{"text_format":"1","workbook":"xlsx","n_sheets":18,"sheets":["Start","A. General information","B. Parameters","B.1 Debt reference values","C.1 Cost data compression","C.2 Cost data pipe PE","C.3 Cost data pipe cath","C.4 Cost control equip","C.5 Other assets","D. Compression energy","E. CIC","F. UL & OPEX flat rates","G. Explanatory notes","Fixed assets","C. Cost data","Costs","Economic test","f-factor"],"not_rendered":{"charts":0,"images":1,"macros":1,"external_links":9,"defined_names":62,"comments":1,"pivot_tables":0},"unopened":[],"bounds":{"document_bytes":16777216,"sheet_cells":100000,"rows_first":2000,"rows_last":500,"rows_between":2000,"halvings":0,"cell_chars":16384,"cell_head_chars":4096},"cells_cut":0,"cells_raw":0,"read":"whole","date_system":"1900"}

{"sheet":"Start","index":0,"n_rows":0,"n_cols":0,"rows_kept":0,"cut":false,"hidden":false,"merged":[]}

{"sheet":"A. General information","index":1,"n_rows":25,"n_cols":20,"rows_kept":25,"cut":false,"hidden":false,"merged":[]}
["Kostentool_§23_Gas_V5_3_160307"]
["Economic_Test_Incremental_Capacities_Gas_V1"]
[]
[null,"A. General information "]
[]
[null,"A.1","Wirtschaftlichkeitsprüfung","Nein"]
[null,"A.2","Wirtschaftlichkeitsprüfung",{"$f":"IF(OR(D6=\"\",D6=\"bitte wählen\"),\"\",IF(D6=\"Ja\",\"Nein\",\"Ja\"))","v":"Ja"}]
[null,"A.1","Company/companies of project promoter(s)","FLUXYS D, GASCADE, GUD, NGT, ONTRAS"]
[null,"A.2","Legal form(s)","GmbH",null,null,null,"Please select","AG","eG","municipal undertaking","GmbH","GmbH & Co KG","KG","OHG","publicly owned enterprise","special purpose association","GbR","KGaA","other"]
[null,"A.3","Bundesnetzagentur registration number"]
[null,"A.4","Network number at the Bundesnetzagentur"]
[null,"A.5","Bundesnetzagentur reference number\nunder which the procedure is filed [BKY-JJ-XXX]"]
[null,"A.6","Project name"]
[null,"A.7","Submission date of calculation tool","2018-12-20"]
[null,"A.8","Year of first capitalisation of assets under construction as part of the project",2020]
[null,"A.9","Year of first capitalisation of depreciable capital asset as part of the project",2025]
[null,"A.10","Year of last capitalisation of depreciable capital asset as part of the project",2025]
[null,"A.15","Finanzierung"]
[null,"A.11","Last calendar year for which reference prices are available",2018]
[null,"A.12","Amount of last available reference price in €/kWh/h/a",3.65,"Indikative Referenceprice considering the market merger acc. REGENT appendix 4: 3,97 €/kWh/h/a","Explanation: If the product differs from fFZK the according price is stated. --> DZK therefore 92 % of the FZK tarif"]
[null,"A.13","Amount of last available reference price in €/kWh/h/a including costs for incremental capacity project at current prices ",3.6524000000000001]
[null,"A.14","Year of binding capacity request (year of present value consideration)",2019]
[null,"A.15","Year of first capacity usage",2025]
[null,"A.16","Year up to which network users can make binding booking as part of the incremental capacity process",2040]
[null,"A.17","Proportion of capacity set aside",0.2]

{"sheet":"B. Parameters","index":2,"n_rows":301,"n_cols":81,"rows_kept":301,"cut":false,"hidden":false,"merged":[]}
["B. Parameters"]
[]
["General data"]
[null,"A.4","A.6a","A.6b","A.6c"]
["Item","Current rate of\nassessment for trade tax*","Interest rate on debt","Rate of return on equity < 40%","WACC/ interest rate for compounding and discounting",null,"*Please base the calculation of the rate of assessment for trade tax for future years on the average of the last 10 years."]
["Unit","%","%","%","%"]
["Source","Notice of trade tax assessment","flat rate","flat rate","flat rate"]
[2016,null,{"$f":"'B.1 Debt reference values'!C5","v":3.6805416666666667E-2},9.0499999999999997E-2,{"$f":"0.4*D8+(0.6*C8)","v":5.8283250000000002E-2}]
[2017,null,{"$f":"'B.1 Debt reference values'!C6","v":3.6805416666666667E-2},9.0499999999999997E-2,{"$f":"0.4*D9+(0.6*C9)","v":5.8283250000000002E-2}]
[2018,null,{"$f":"'B.1 Debt reference values'!C7","v":3.6805416666666667E-2},6.9099999999999995E-2,4.9723249999999997E-2]
[2019,null,{"$f":"'B.1 Debt reference values'!C8","v":3.6805416666666667E-2},6.9099999999999995E-2,4.9723249999999997E-2]
[2020,null,{"$f":"'B.1 Debt reference values'!C9","v":3.6805416666666667E-2},6.9099999999999995E-2,4.9723249999999997E-2]
[2021,null,{"$f":"'B.1 Debt reference values'!C10","v":3.6805416666666667E-2},6.9099999999999995E-2,4.9723249999999997E-2]
[2022,null,{"$f":"'B.1 Debt reference values'!C11","v":3.6805416666666667E-2},6.9099999999999995E-2,4.9723249999999997E-2]
[2023,null,{"$f":"'B.1 Debt reference values'!C12","v":3.6805416666666667E-2},6.9099999999999995E-2,4.9723249999999997E-2]
[2024,null,{"$f":"'B.1 Debt reference values'!C13","v":3.6805416666666667E-2},6.9099999999999995E-2,4.9723249999999997E-2]
[2025,null,{"$f":"'B.1 Debt reference values'!C14","v":3.6805416666666667E-2},6.9099999999999995E-2,4.9723249999999997E-2]
[2026,null,{"$f":"'B.1 Debt reference values'!C15","v":3.6805416666666667E-2},6.9099999999999995E-2,4.9723249999999997E-2]
[2027,null,{"$f":"'B.1 Debt reference values'!C16","v":3.6805416666666667E-2},6.9099999999999995E-2,4.9723249999999997E-2]
[2028,null,{"$f":"'B.1 Debt reference values'!C17","v":3.6805416666666667E-2},6.9099999999999995E-2,4.9723249999999997E-2]
[2029,null,{"$f":"'B.1 Debt reference values'!C18","v":3.6805416666666667E-2},6.9099999999999995E-2,4.9723249999999997E-2]
[2030,null,{"$f":"'B.1 Debt reference values'!C19","v":3.6805416666666667E-2},6.9099999999999995E-2,4.9723249999999997E-2]
[2031,null,{"$f":"'B.1 Debt reference values'!C20","v":3.6805416666666667E-2},6.9099999999999995E-2,4.9723249999999997E-2]
[2032,null,{"$f":"'B.1 Debt reference values'!C21","v":3.6805416666666667E-2},6.9099999999999995E-2,4.9723249999999997E-2]
[2033,null,{"$f":"'B.1 Debt reference values'!C22","v":3.6805416666666667E-2},6.9099999999999995E-2,4.9723249999999997E-2]
[2034,null,{"$f":"'B.1 Debt reference values'!C23","v":3.6805416666666667E-2},6.9099999999999995E-2,4.9723249999999997E-2]
[2035,null,{"$f":"'B.1 Debt reference values'!C24","v":3.6805416666666667E-2},6.9099999999999995E-2,4.9723249999999997E-2]
[2036,null,{"$f":"'B.1 Debt reference values'!C25","v":3.6805416666666667E-2},6.9099999999999995E-2,4.9723249999999997E-2]
[2037,null,{"$f":"'B.1 Debt reference values'!C26","v":3.6805416666666667E-2},6.9099999999999995E-2,4.9723249999999997E-2]
[2038,null,{"$f":"'B.1 Debt reference values'!C27","v":3.6805416666666667E-2},6.9099999999999995E-2,4.9723249999999997E-2]
[2039,null,{"$f":"'B.1 Debt reference values'!C28","v":3.6805416666666667E-2},6.9099999999999995E-2,4.9723249999999997E-2]
[2040,null,{"$f":"'B.1 Debt reference values'!C29","v":3.6805416666666667E-2},6.9099999999999995E-2,4.9723249999999997E-2]
[2041,null,{"$f":"'B.1 Debt reference values'!C30","v":3.6805416666666667E-2},6.9099999999999995E-2,4.9723249999999997E-2]
[2042,null,{"$f":"'B.1 Debt reference values'!C31","v":3.6805416666666667E-2},6.9099999999999995E-2,4.9723249999999997E-2]
[2043,null,{"$f":"'B.1 Debt reference values'!C32","v":3.6805416666666667E-2},6.9099999999999995E-2,4.9723249999999997E-2]
[2044,null,{"$f":"'B.1 Debt reference values'!C33","v":3.6805416666666667E-2},6.9099999999999995E-2,4.9723249999999997E-2]
[2045,null,{"$f":"'B.1 Debt reference values'!C34","v":3.6805416666666667E-2},6.9099999999999995E-2,4.9723249999999997E-2]
[2046,null,{"$f":"'B.1 Debt reference values'!C35","v":3.6805416666666667E-2},6.9099999999999995E-2,4.9723249999999997E-2]
[2047,null,{"$f":"'B.1 Debt reference values'!C36","v":3.6805416666666667E-2},6.9099999999999995E-2,4.9723249999999997E-2]
[2048,null,{"$f":"'B.1 Debt reference values'!C37","v":3.6805416666666667E-2},6.9099999999999995E-2,4.9723249999999997E-2]
[2049,null,{"$f":"'B.1 Debt reference values'!C38","v":3.6805416666666667E-2},6.9099999999999995E-2,4.9723249999999997E-2]
[2050,null,{"$f":"'B.1 Debt reference values'!C39","v":3.6805416666666667E-2},6.9099999999999995E-2,4.9723249999999997E-2]
[2051,null,{"$f":"'B.1 Debt reference values'!C40","v":3.6805416666666667E-2},6.9099999999999995E-2,4.9723249999999997E-2]
[2052,null,{"$f":"'B.1 Debt reference values'!C41","v":3.6805416666666667E-2},6.9099999999999995E-2,4.9723249999999997E-2]
[2053,null,{"$f":"'B.1 Debt reference values'!C42","v":3.6805416666666667E-2},6.9099999999999995E-2,4.9723249999999997E-2]
[2054,null,{"$f":"'B.1 Debt reference values'!C43","v":3.6805416666666667E-2},6.9099999999999995E-2,4.9723249999999997E-2]
[2055,null,{"$f":"'B.1 Debt reference values'!C44","v":3.6805416666666667E-2},6.9099999999999995E-2,4.9723249999999997E-2]
[2056,null,{"$f":"'B.1 Debt reference values'!C45","v":3.6805416666666667E-2},6.9099999999999995E-2,4.9723249999999997E-2]
[2057,null,{"$f":"'B.1 Debt reference values'!C46","v":3.6805416666666667E-2},6.9099999999999995E-2,4.9723249999999997E-2]
[2058,null,{"$f":"'B.1 Debt reference values'!C47","v":3.6805416666666667E-2},6.9099999999999995E-2,4.9723249999999997E-2]
[2059,null,{"$f":"'B.1 Debt reference values'!C48","v":3.6805416666666667E-2},6.9099999999999995E-2,4.9723249999999997E-2]
[2060,null,{"$f":"'B.1 Debt reference values'!C49","v":3.6805416666666667E-2},6.9099999999999995E-2,4.9723249999999997E-2]
[2061,null,{"$f":"'B.1 Debt reference values'!C50","v":3.6805416666666667E-2},6.9099999999999995E-2,4.9723249999999997E-2]
[2062,null,{"$f":"'B.1 Debt reference values'!C51","v":3.6805416666666667E-2},6.9099999999999995E-2,4.9723249999999997E-2]
[2063,null,{"$f":"'B.1 Debt reference values'!C52","v":3.6805416666666667E-2},6.9099999999999995E-2,4.9723249999999997E-2]
[2064,null,{"$f":"'B.1 Debt reference values'!C53","v":3.6805416666666667E-2},6.9099999999999995E-2,4.9723249999999997E-2]
[2065,null,{"$f":"'B.1 Debt reference values'!C54","v":3.6805416666666667E-2},6.9099999999999995E-2,4.9723249999999997E-2]
[2066,null,{"$f":"'B.1 Debt reference values'!C55","v":3.6805416666666667E-2},6.9099999999999995E-2,4.9723249999999997E-2]
[2067,null,{"$f":"'B.1 Debt reference values'!C56","v":3.6805416666666667E-2},6.9099999999999995E-2,4.9723249999999997E-2]
[2068,null,{"$f":"'B.1 Debt reference values'!C57","v":3.6805416666666667E-2},6.9099999999999995E-2,4.9723249999999997E-2]
[2069,null,{"$f":"'B.1 Debt reference values'!C58","v":3.6805416666666667E-2},6.9099999999999995E-2,4.9723249999999997E-2]
[2070,null,{"$f":"'B.1 Debt reference values'!C59","v":3.6805416666666667E-2},6.9099999999999995E-2,4.9723249999999997E-2]
[2071,null,{"$f":"'B.1 Debt reference values'!C60","v":3.6805416666666667E-2},6.9099999999999995E-2,4.9723249999999997E-2]
[2072,null,{"$f":"'B.1 Debt reference values'!C61","v":3.6805416666666667E-2},6.9099999999999995E-2,4.9723249999999997E-2]
[2073,null,{"$f":"'B.1 Debt reference values'!C62","v":3.6805416666666667E-2},6.9099999999999995E-2,4.9723249999999997E-2]
[2074,null,{"$f":"'B.1 Debt reference values'!C63","v":3.6805416666666667E-2},6.9099999999999995E-2,4.9723249999999997E-2]
[2075,null,{"$f":"'B.1 Debt reference values'!C64","v":3.6805416666666667E-2},6.9099999999999995E-2,4.9723249999999997E-2]
[2076,null,{"$f":"'B.1 Debt reference values'!C65","v":3.6805416666666667E-2},6.9099999999999995E-2,4.9723249999999997E-2]
[2077,null,{"$f":"'B.1 Debt reference values'!C66","v":3.6805416666666667E-2},6.9099999999999995E-2,4.9723249999999997E-2]
[2078,null,{"$f":"'B.1 Debt reference values'!C67","v":3.6805416666666667E-2},6.9099999999999995E-2,4.9723249999999997E-2]
[2079,null,{"$f":"'B.1 Debt reference values'!C68","v":3.6805416666666667E-2},6.9099999999999995E-2,4.9723249999999997E-2]
[2080,null,{"$f":"'B.1 Debt reference values'!C69","v":3.6805416666666667E-2},6.9099999999999995E-2,4.9723249999999997E-2]
[2081,null,{"$f":"'B.1 Debt reference values'!C70","v":3.6805416666666667E-2},6.9099999999999995E-2,{"$f":"0.4*D73+(0.6*C73)","v":4.9723249999999997E-2}]
[2082,null,{"$f":"'B.1 Debt reference values'!C71","v":3.6805416666666667E-2},6.9099999999999995E-2,4.9723249999999997E-2]
[2083,null,{"$f":"'B.1 Debt reference values'!C72","v":3.6805416666666667E-2},6.9099999999999995E-2,4.9723249999999997E-2]
[2084,null,{"$f":"'B.1 Debt reference values'!C73","v":3.6805416666666667E-2},6.9099999999999995E-2,4.9723249999999997E-2]
[2085,null,{"$f":"'B.1 Debt reference values'!C74","v":3.6805416666666667E-2},6.9099999999999995E-2,4.9723249999999997E-2]
[2086,null,{"$f":"'B.1 Debt reference values'!C75","v":3.6805416666666667E-2},6.9099999999999995E-2,4.9723249999999997E-2]
[2087,null,{"$f":"'B.1 Debt reference values'!C76","v":3.6805416666666667E-2},6.9099999999999995E-2,4.9723249999999997E-2]
[2088,null,{"$f":"'B.1 Debt reference values'!C77","v":3.6805416666666667E-2},6.9099999999999995E-2,4.9723249999999997E-2]
[2089,null,{"$f":"'B.1 Debt reference values'!C78","v":3.6805416666666667E-2},6.9099999999999995E-2,4.9723249999999997E-2]
[2090,null,{"$f":"'B.1 Debt reference values'!C79","v":3.6805416666666667E-2},6.9099999999999995E-2,4.9723249999999997E-2]
[2091,null,{"$f":"'B.1 Debt reference values'!C80","v":3.6805416666666667E-2},6.9099999999999995E-2,4.9723249999999997E-2]
[2092,null,{"$f":"'B.1 Debt reference values'!C81","v":3.6805416666666667E-2},6.9099999999999995E-2,4.9723249999999997E-2]
[2093,null,{"$f":"'B.1 Debt reference values'!C82","v":3.6805416666666667E-2},6.9099999999999995E-2,4.9723249999999997E-2]
[2094,null,{"$f":"'B.1 Debt reference values'!C83","v":3.6805416666666667E-2},6.9099999999999995E-2,4.9723249999999997E-2]
[2095,null,{"$f":"'B.1 Debt reference values'!C84","v":3.6805416666666667E-2},6.9099999999999995E-2,4.9723249999999997E-2]
[2096,null,{"$f":"'B.1 Debt reference values'!C85","v":3.6805416666666667E-2},6.9099999999999995E-2,4.9723249999999997E-2]
[2097,null,{"$f":"'B.1 Debt reference values'!C86","v":3.6805416666666667E-2},6.9099999999999995E-2,4.9723249999999997E-2]
[2098,null,{"$f":"'B.1 Debt reference values'!C87","v":3.6805416666666667E-2},6.9099999999999995E-2,4.9723249999999997E-2]
[2099,null,{"$f":"'B.1 Debt reference values'!C88","v":3.6805416666666667E-2},6.9099999999999995E-2,4.9723249999999997E-2]
[2100,null,{"$f":"'B.1 Debt reference values'!C89","v":3.6805416666666667E-2},6.9099999999999995E-2,4.9723249999999997E-2]
[]
[]
["Kapitalbindung",null,null,null,null,null,null,null,null,null,"Kapitalbindung FK - lfd.Nr.1",null,null,null,null,null,null,null,"Kapitalbindung FK - lfd.Nr.2",null,null,null,null,null,null,"Kapitalbindung FK - lfd.Nr.3",null,null,null,null,null,null,"Kapitalbindung FK - lfd.Nr.4",null,null,null,null,null,null,"Kapitalbindung FK - lfd.Nr.5",null,null,null,null,null,null,"Kapitalbindung FK - lfd.Nr.6",null,null,null,null,null,null,"Kapitalbindung FK - lfd.Nr.7",null,null,null,null,null,null,"Kapitalbindung FK - lfd.Nr.8",null,null,null,null,null,null,"Kapitalbindung FK - lfd.Nr.9",null,null,null,null,null,null,"Kapitalbindung FK - lfd.Nr.10"]
[null,"B.1","B.1a","B.1a.1","B.1b","B.1c","B.2a","B.2b","B.2c","B.2d",null,"B.2a.1","B.2b.1","B.2c.1","B.2d.1","B.2e.1","A.5.1",null,null,"B.2a.2","B.2b.2","B.2c.2","B.2d.2","B.2e.2","A.5.2",null,"B.2a.3","B.2b.3","B.2c.3","B.2d.3","B.2e.3","A.5.3",null,"B.2a.4","B.2b.4","B.2c.4","B.2d.4","B.2e.4","A.5.4",null,"B.2a.5","B.2b.5","B.2c.5","B.2d.5","B.2e.5","A.5.5",null,"B.2a.6","B.2b.6","B.2c.6","B.2d.6","B.2e.6","A.5.6",null,"B.2a.7","B.2b.7","B.2c.7","B.2d.7","B.2e.7","A.5.7",null,"B.2a.8","B.2b.8","B.2c.8","B.2d.8","B.2e.8","A.5.8",null,"B.2a.9","B.2b.9","B.2c.9","B.2d.9","B.2e.9","A.5.9",null,"B.2a.10","B.2b.10","B.2c.10","B.2d.10","B.2e.10","A.5.10"]
["Position","Gesamte aktivierte Fertiganlagen des Gesamtunternehmens (keine AIB)","davon Gasverteilung/ Gasfernleitung","davon aktivierte Fertiganlagen aus Genehmigungen gem. § 23 ARegV","davon Stromverteilung/ Stromübertragung","davon weitere Sparten / Aktivitäten","verzinsliches Fremdkapital\n\nJahresanfangs- bestand","Tilgung","verzinsliches Fremdkapital\n\nJahresendbestand","verzinsliches Fremdkapital\nMittelwert","Position","Anfangsbestand","Fremdkapitalaufnahme","Tilgung","Endbestand","Mittelwert","Zinssatz",null,"Position","Anfangsbestand","Fremdkapitalaufnahme","Tilgung","Endbestand","Mittelwert","Zinssatz","Position","Anfangsbestand","Fremdkapitalaufnahme","Tilgung","Endbestand","Mittelwert","Zinssatz","Position","Anfangsbestand","Fremdkapitalaufnahme","Tilgung","Endbestand","Mittelwert","Zinssatz","Position","Anfangsbestand","Fremdkapitalaufnahme","Tilgung","Endbestand","Mittelwert","Zinssatz","Position","Anfangsbestand","Fremdkapitalaufnahme","Tilgung","Endbestand","Mittelwert","Zinssatz","Position","Anfangsbestand","Fremdkapitalaufnahme","Tilgung","Endbestand","Mittelwert","Zinssatz","Position","Anfangsbestand","Fremdkapitalaufnahme","Tilgung","Endbestand","Mittelwert","Zinssatz","Position","Anfangsbestand","Fremdkapitalaufnahme","Tilgung","Endbestand","Mittelwert","Zinssatz","Position","Anfangsbestand","Fremdkapitalaufnahme","Tilgung","Endbestand","Mittelwert","Zinssatz"]
["Einheit","€","€","€","€","€","€","€","€","€","Einheit","€","€","€","€","€","%",null,"Einheit","€","€","€","€","€","%","Einheit","€","€","€","€","€","%","Einheit","€","€","€","€","€","%","Einheit","€","€","€","€","€","%","Einheit","€","€","€","€","€","%","Einheit","€","€","€","€","€","%","Einheit","€","€","€","€","€","%","Einheit","€","€","€","€","€","%","Einheit","€","€","€","€","€","%"]
["Quelle","Jahresabschluss","Jahresabschluss","gesonderter Nachweis","Jahresabschluss","Jahresabschluss","gesonderter Nachweis","gesonderter Nachweis","gesonderter Nachweis","gesonderter Nachweis","Quelle","gesonderter Nachweis","gesonderter Nachweis","gesonderter Nachweis","gesonderter Nachweis","gesonderter Nachweis","gesonderter Nachweis",null,"Quelle","gesonderter Nachweis","gesonderter Nachweis","gesonderter Nachweis","gesonderter Nachweis","gesonderter Nachweis","gesonderter Nachweis","Quelle","gesonderter Nachweis","gesonderter Nachweis","gesonderter Nachweis","gesonderter Nachweis","gesonderter Nachweis","gesonderter Nachweis","Quelle","gesonderter Nachweis","gesonderter Nachweis","gesonderter Nachweis","gesonderter Nachweis","gesonderter Nachweis","gesonderter Nachweis","Quelle","gesonderter Nachweis","gesonderter Nachweis","gesonderter Nachweis","gesonderter Nachweis","gesonderter Nachweis","gesonderter Nachweis","Quelle","gesonderter Nachweis","gesonderter Nachweis","gesonderter Nachweis","gesonderter Nachweis","gesonderter Nachweis","gesonderter Nachweis","Quelle","gesonderter Nachweis","gesonderter Nachweis","gesonderter Nachweis","gesonderter Nachweis","gesonderter Nachweis","gesonderter Nachweis","Quelle","gesonderter Nachweis","gesonderter Nachweis","gesonderter Nachweis","gesonderter Nachweis","gesonderter Nachweis","gesonderter Nachweis","Quelle","gesonderter Nachweis","gesonderter Nachweis","gesonderter Nachweis","gesonderter Nachweis","gesonderter Nachweis","gesonderter Nachweis","Quelle","gesonderter Nachweis","gesonderter Nachweis","gesonderter Nachweis","gesonderter Nachweis","gesonderter Nachweis","gesonderter Nachweis"]
[2015,null,null,null,null,null,0,{"$f":"N100+V100+AC100+AJ100+AQ100+AX100+BE100+BL100+BS100+BZ100","v":0},0,0,2015,null,null,null,{"$f":"L100+M100-N100","v":0},{"$f":"(L100+O100)/2","v":0},null,null,2015,null,null,null,{"$f":"T100+U100-V100","v":0},{"$f":"(T100+W100)/2","v":0},null,2015,null,null,null,{"$f":"AA100+AB100-AC100","v":0},{"$f":"(AA100+AD100)/2","v":0},null,2015,null,null,null,{"$f":"AH100+AI100-AJ100","v":0},{"$f":"(AH100+AK100)/2","v":0},null,2015,null,null,null,{"$f":"AO100+AP100-AQ100","v":0},{"$f":"(AO100+AR100)/2","v":0},null,2015,null,null,null,{"$f":"AV100+AW100-AX100","v":0},{"$f":"(AV100+AY100)/2","v":0},null,2015,null,null,null,{"$f":"BC100+BD100-BE100","v":0},{"$f":"(BC100+BF100)/2","v":0},null,2015,null,null,null,{"$f":"BJ100+BK100-BL100","v":0},{"$f":"(BJ100+BM100)/2","v":0},null,2015,null,null,null,{"$f":"BQ100+BR100-BS100","v":0},{"$f":"(BQ100+BT100)/2","v":0},null,2015,null,null,null,{"$f":"BX100+BY100-BZ100","v":0},{"$f":"(BX100+CA100)/2","v":0}]
[2016,null,null,null,null,null,{"$f":"L101+T101+AA101+AH101+AO101+AV101+BC101+BJ101+BQ101+BX101","v":0},{"$f":"N101+V101+AC101+AJ101+AQ101+AX101+BE101+BL101+BS101+BZ101","v":0},{"$f":"O101+W101+AD101+AK101+AR101+AY101+BF101+BM101+BT101+CA101","v":0},{"$f":"P101+X101+AE101+AL101+AS101+AZ101+BG101+BN101+BU101+CB101","v":0},2016,{"$f":"O100","v":0},null,null,{"$f":"L101+M101-N101","v":0},{"$f":"(L101+O101)/2","v":0},null,null,2016,{"$f":"W100","v":0},null,null,{"$f":"T101+U101-V101","v":0},{"$f":"(T101+W101)/2","v":0},null,2016,{"$f":"AD100","v":0},null,null,{"$f":"AA101+AB101-AC101","v":0},{"$f":"(AA101+AD101)/2","v":0},null,2016,{"$f":"AK100","v":0},null,null,{"$f":"AH101+AI101-AJ101","v":0},{"$f":"(AH101+AK101)/2","v":0},null,2016,{"$f":"AR100","v":0},null,null,{"$f":"AO101+AP101-AQ101","v":0},{"$f":"(AO101+AR101)/2","v":0},null,2016,{"$f":"AY100","v":0},null,null,{"$f":"AV101+AW101-AX101","v":0},{"$f":"(AV101+AY101)/2","v":0},null,2016,{"$f":"BF100","v":0},null,null,{"$f":"BC101+BD101-BE101","v":0},{"$f":"(BC101+BF101)/2","v":0},null,2016,{"$f":"BM100","v":0},null,null,{"$f":"BJ101+BK101-BL101","v":0},{"$f":"(BJ101+BM101)/2","v":0},null,2016,{"$f":"BT100","v":0},null,null,{"$f":"BQ101+BR101-BS101","v":0},{"$f":"(BQ101+BT101)/2","v":0},null,2016,{"$f":"CA100","v":0},null,null,{"$f":"BX101+BY101-BZ101","v":0},{"$f":"(BX101+CA101)/2","v":0}]
[2017,null,null,null,null,null,{"$f":"L102+T102+AA102+AH102+AO102+AV102+BC102+BJ102+BQ102+BX102","v":0},0,0,0,2017,{"$f":"O101","v":0},null,null,0,0,null,null,2017,{"$f":"W101","v":0},null,null,{"$f":"T102+U102-V102","v":0},0,null,2017,{"$f":"AD101","v":0},null,null,0,0,null,2017,{"$f":"AK101","v":0},null,null,0,0,null,2017,{"$f":"AR101","v":0},null,null,0,0,null,2017,{"$f":"AY101","v":0},null,null,0,0,null,2017,{"$f":"BF101","v":0},null,null,0,0,null,2017,{"$f":"BM101","v":0},null,null,0,0,null,2017,{"$f":"BT101","v":0},null,null,0,0,null,2017,{"$f":"CA101","v":0},null,null,0,0]
[2018,null,null,null,null,null,0,0,0,0,2018,0,null,null,0,0,null,null,2018,0,null,null,0,0,null,2018,0,null,null,0,0,null,2018,0,null,null,0,0,null,2018,0,null,null,{"$f":"AO103+AP103-AQ103","v":0},0,null,2018,0,null,null,0,0,null,2018,0,null,null,0,0,null,2018,0,null,null,0,0,null,2018,0,null,null,0,0,null,2018,0,null,null,0,0]
[2019,null,null,null,null,null,0,0,0,0,2019,0,null,null,0,0,null,null,2019,0,null,null,0,0,null,2019,0,null,null,0,0,null,2019,0,null,null,0,0,null,2019,0,null,null,0,0,null,2019,0,null,null,0,0,null,2019,0,null,null,0,0,null,2019,0,null,null,0,0,null,2019,0,null,null,0,0,null,2019,0,null,null,0,0]
[2020,null,null,null,null,null,0,0,0,0,2020,0,null,null,0,0,null,null,2020,0,null,null,0,0,null,2020,0,null,null,0,0,null,2020,0,null,null,0,0,null,2020,0,null,null,0,0,null,2020,0,null,null,0,0,null,2020,0,null,null,0,0,null,2020,0,null,null,0,0,null,2020,0,null,null,0,0,null,2020,0,null,null,0,0]
[2021,null,null,null,null,null,0,0,0,0,2021,0,null,null,0,0,null,null,2021,0,null,null,0,0,null,2021,0,null,null,0,0,null,2021,0,null,null,0,0,null,2021,0,null,null,0,0,null,2021,0,null,null,0,0,null,2021,0,null,null,0,0,null,2021,0,null,null,0,0,null,2021,0,null,null,0,0,null,2021,0,null,null,0,0]
[2022,null,null,null,null,null,0,0,0,0,2022,0,null,null,0,0,null,null,2022,0,null,null,0,0,null,2022,0,null,null,0,0,null,2022,0,null,null,0,0,null,2022,0,null,null,0,0,null,2022,0,null,null,0,0,null,2022,0,null,null,0,0,null,2022,0,null,null,0,0,null,2022,0,null,null,0,0,null,2022,0,null,null,0,0]
[2023,null,null,null,null,null,0,0,0,0,2023,0,null,null,0,0,null,null,2023,0,null,null,0,0,null,2023,0,null,null,0,0,null,2023,0,null,null,0,0,null,2023,0,null,null,0,0,null,2023,0,null,null,0,{"$f":"(AV108+AY108)/2","v":0},null,2023,0,null,null,0,0,null,2023,0,null,null,0,0,null,2023,0,null,null,0,0,null,2023,0,null,null,0,0]
[2024,null,null,null,null,null,0,0,0,0,2024,0,null,null,0,0,null,null,2024,0,null,null,0,0,null,2024,0,null,null,0,0,null,2024,0,null,null,0,0,null,2024,0,null,null,0,0,null,2024,0,null,null,0,0,null,2024,0,null,null,0,0,null,2024,0,null,null,0,0,null,2024,0,null,null,0,0,null,2024,0,null,null,0,0]
[2025,null,null,null,null,null,0,0,0,0,2025,0,null,null,0,0,null,null,2025,0,null,null,0,0,null,2025,0,null,null,0,0,null,2025,0,null,null,0,0,null,2025,0,null,null,0,0,null,2025,0,null,null,0,0,null,2025,0,null,null,0,0,null,2025,0,null,null,0,0,null,2025,0,null,null,0,0,null,2025,0,null,null,0,0]
[2026,null,null,null,null,null,0,0,0,0,2026,0,null,null,0,0,null,null,2026,0,null,null,0,0,null,2026,0,null,null,0,0,null,2026,0,null,null,0,0,null,2026,0,null,null,0,0,null,2026,0,null,null,0,0,null,2026,0,null,null,0,0,null,2026,0,null,null,0,0,null,2026,0,null,null,0,0,null,2026,0,null,null,0,0]
[2027,null,null,null,null,null,0,0,0,0,2027,0,null,null,0,0,null,null,2027,0,null,null,0,0,null,2027,0,null,null,0,0,null,2027,0,null,null,0,0,null,2027,0,null,null,0,0,null,2027,0,null,null,0,0,null,2027,0,null,null,0,0,null,2027,0,null,null,0,0,null,2027,0,null,null,0,0,null,2027,0,null,null,0,0]
[2028,null,null,null,null,null,0,0,0,0,2028,0,null,null,0,0,null,null,2028,0,null,null,0,0,null,2028,0,null,null,0,0,null,2028,0,null,null,0,0,null,2028,0,null,null,0,0,null,2028,0,null,null,0,0,null,2028,0,null,null,0,0,null,2028,0,null,null,0,0,null,2028,0,null,null,0,0,null,2028,0,null,null,0,0]
[2029,null,null,null,null,null,0,0,0,0,2029,0,null,null,0,0,null,null,2029,0,null,null,0,0,null,2029,0,null,null,0,0,null,2029,0,null,null,0,0,null,2029,0,null,null,0,0,null,2029,0,null,null,0,0,null,2029,0,null,null,0,0,null,2029,0,null,null,0,0,null,2029,0,null,null,0,0,null,2029,0,null,null,0,0]
[2030,null,null,null,null,null,0,0,0,0,2030,0,null,null,0,0,null,null,2030,0,null,null,0,0,null,2030,0,null,null,0,0,null,2030,0,null,null,0,0,null,2030,0,null,null,0,0,null,2030,0,null,null,0,0,null,2030,0,null,null,0,0,null,2030,0,null,null,0,0,null,2030,0,null,null,0,0,null,2030,0,null,null,0,0]
[2031,null,null,null,null,null,0,0,0,0,2031,0,null,null,0,0,null,null,2031,0,null,null,0,0,null,2031,0,null,null,0,0,null,2031,0,null,null,0,0,null,2031,0,null,null,0,0,null,2031,0,null,null,0,0,null,2031,0,null,null,0,0,null,2031,0,null,null,0,0,null,2031,0,null,null,0,0,null,2031,0,null,null,0,0]
[]
[]
["Cost-reducing revenue/non-interesting-bearing liabilities"]
[null,"Revenue (based on acquisition and production costs)",null,null,"Public support (based on APC)",null,null,"Other (based on APC)",null,"Other revenue (based on costs)"]
[null,"C.1a","C.1b","C.2","C.3a","C.3b","C.3c","C.4a","C.4b","C.5"]
["Item","From measures within the scope of Article 5 of Regulation (EU) No 1775/2005, provided that these are to be used with cost-reducing effect for measures to remove congestion [€]","Pursuant to section 10 GasNZV, provided that these measures are to be used with cost-reducing effect to remove congestion pursuant to section 10(6) fourth sentence GasNZV [€]","Release of network connection contributions and installation costs contributions","Amount of public support","Type of public support","Status of public support [completed, applied for, guaranteed or rejected] ","Income from release of provisions whose justification no longer applies due to the implementation of the investment project","Other non-interest-bearing items (please also enter installation costs contributions/network connection contributions here)","Other revenue to be subtracted from capital and operating costs (e.g. lease revenues)"]
["Unit","€","€","€","€","Text","Text","€","€","€"]
["Source","Annual financial statement","Annual financial statement","Annual financial statement","Annual financial statement","Separate statement","Separate statement","Separate statement","Separate statement","Separate statement"]
[2016,null,null,0]
[2017,null,null,0]
[2018,null,null,0]
[2019,null,null,0]
[2020,null,null,0]
[2021,null,null,0]
[2022,null,null,0]
[2023,null,null,0]
[2024,null,null,0]
[2025,null,null,0]
[2026,null,null,0]
[2027,null,null,0]
[2028,null,null,0]
[2029,null,null,0]
[2030,null,null,0]
[2031,null,null,0]
[2032,null,null,0]
[2033,null,null,0]
[2034,null,null,0]
[2035,null,null,0]
[2036,null,null,0]
[2037,null,null,0]
[2038,null,null,0]
[2039,null,null,0]
[2040,null,null,0]
[2041,null,null,0]
[2042,null,null,0]
[2043,null,null,0]
[2044,null,null,0]
[2045,null,null,0]
[2046,null,null,0]
[2047,null,null,0]
[2048,null,null,0]
[2049,null,null,0]
[2050,null,null,0]
[2051,null,null,0]
[2052,null,null,0]
[2053,null,null,0]
[2054,null,null,0]
[2055,null,null,0]
[2056,null,null,0]
[2057,null,null,0]
[2058,null,null,0]
[2059,null,null,0]
[2060,null,null,0]
[2061,null,null,0]
[2062,null,null,0]
[2063,null,null,0]
[2064,null,null,0]
[2065,null,null,0]
[2066,null,null,0]
[2067,null,null,0]
[2068,null,null,0]
[2069,null,null,0]
[2070,null,null,0]
[2071,null,null,0]
[2072,null,null,0]
[2073,null,null,0]
[2074,null,null,0]
[2075,null,null,0]
[2076,null,null,0]
[2077,null,null,0]
[2078,null,null,0]
[2079,null,null,0]
[2080,null,null,0]
[2081,null,null,0]
[2082,null,null,0]
[2083,null,null,0]
[2084,null,null,0]
[2085,null,null,0]
[2086,null,null,0]
[2087,null,null,0]
[2088,null,null,0]
[2089,null,null,0]
[2090,null,null,0]
[2091,null,null,0]
[2092,null,null,0]
[2093,null,null,0]
[2094,null,null,0]
[2095,null,null,0]
[2096,null,null,0]
[2097,null,null,0]
[2098,null,null,0]
[2099,null,null,0]
[2100,null,null,0]
[]
[]
[]
["Replacement proportion"]
[null,"D.1"]
["Item"]
["Unit","in %"]
[2016]
[2017]
[2018]
[2019]
[2020]
[2021]
[2022]
[2023]
[2024]
[2025]
[2026]
[2027]
[2028]
[2029]
[2030]
[2031]
[2032]
[2033]
[2034]
[2035]
[2036]
[2037]
[2038]
[2039]
[2040]
[2041]
[2042]
[2043]
[2044]
[2045]
[2046]
[2047]
[2048]
[2049]
[2050]
[2051]
[2052]
[2053]
[2054]
[2055]
[2056]
[2057]
[2058]
[2059]
[2060]
[2061]
[2062]
[2063]
[2064]
[2065]
[2066]
[2067]
[2068]
[2069]
[2070]
[2071]
[2072]
[2073]
[2074]
[2075]
[2076]
[2077]
[2078]
[2079]
[2080]
[2081]
[2082]
[2083]
[2084]
[2085]
[2086]
[2087]
[2088]
[2089]
[2090]
[2091]
[2092]
[2093]
[2094]
[2095]
[2096]
[2097]
[2098]
[2099]
[2100]

{"sheet":"B.1 Debt reference values","index":3,"n_rows":242,"n_cols":8,"rows_kept":242,"cut":false,"hidden":false,"merged":[]}
[]
[null,"Debt reference values "]
[]
[null,"Year","10-year average"]
[null,2016,{"$f":"1/10*(E107+E122+E137+E152+E167+E182+E197+E212+E227+E242)/100","v":3.6805416666666667E-2}]
[null,{"$f":"B5+1","v":2017},{"$f":"C5","v":3.6805416666666667E-2}]
[null,{"$f":"B6+1","v":2018},{"$f":"C6","v":3.6805416666666667E-2}]
[null,2019,{"$f":"C7","v":3.6805416666666667E-2}]
[null,2020,3.6805416666666667E-2]
[null,2021,3.6805416666666667E-2]
[null,2022,3.6805416666666667E-2]
[null,2023,3.6805416666666667E-2]
[null,2024,3.6805416666666667E-2]
[null,2025,3.6805416666666667E-2]
[null,2026,3.6805416666666667E-2]
[null,2027,3.6805416666666667E-2]
[null,2028,3.6805416666666667E-2]
[null,2029,3.6805416666666667E-2]
[null,2030,3.6805416666666667E-2]
[null,2031,3.6805416666666667E-2]
[null,2032,3.6805416666666667E-2]
[null,2033,3.6805416666666667E-2]
[null,2034,3.6805416666666667E-2]
[null,2035,3.6805416666666667E-2]
[null,2036,3.6805416666666667E-2]
[null,2037,3.6805416666666667E-2]
[null,2038,3.6805416666666667E-2]
[null,2039,3.6805416666666667E-2]
[null,2040,3.6805416666666667E-2]
[null,2041,3.6805416666666667E-2]
[null,2042,3.6805416666666667E-2]
[null,2043,3.6805416666666667E-2]
[null,2044,3.6805416666666667E-2]
[null,2045,3.6805416666666667E-2]
[null,2046,3.6805416666666667E-2]
[null,2047,3.6805416666666667E-2]
[null,2048,3.6805416666666667E-2]
[null,2049,3.6805416666666667E-2]
[null,2050,3.6805416666666667E-2]
[null,2051,3.6805416666666667E-2]
[null,2052,3.6805416666666667E-2]
[null,2053,3.6805416666666667E-2]
[null,2054,3.6805416666666667E-2]
[null,2055,3.6805416666666667E-2]
[null,2056,3.6805416666666667E-2]
[null,2057,3.6805416666666667E-2]
[null,2058,3.6805416666666667E-2]
[null,2059,3.6805416666666667E-2]
[null,2060,3.6805416666666667E-2]
[null,2061,3.6805416666666667E-2]
[null,2062,3.6805416666666667E-2]
[null,2063,3.6805416666666667E-2]
[null,2064,3.6805416666666667E-2]
[null,2065,3.6805416666666667E-2]
[null,2066,3.6805416666666667E-2]
[null,2067,3.6805416666666667E-2]
[null,2068,3.6805416666666667E-2]
[null,2069,3.6805416666666667E-2]
[null,2070,3.6805416666666667E-2]
[null,2071,3.6805416666666667E-2]
[null,2072,3.6805416666666667E-2]
[null,2073,3.6805416666666667E-2]
[null,2074,3.6805416666666667E-2]
[null,2075,3.6805416666666667E-2]
[null,2076,3.6805416666666667E-2]
[null,2077,3.6805416666666667E-2]
[null,2078,3.6805416666666667E-2]
[null,2079,3.6805416666666667E-2]
[null,2080,3.6805416666666667E-2]
[null,2081,3.6805416666666667E-2]
[null,{"$f":"B70+1","v":2082},3.6805416666666667E-2]
[null,2083,{"$f":"C71","v":3.6805416666666667E-2}]
[null,2084,3.6805416666666667E-2]
[null,2085,3.6805416666666667E-2]
[null,2086,3.6805416666666667E-2]
[null,2087,3.6805416666666667E-2]
[null,2088,3.6805416666666667E-2]
[null,2089,3.6805416666666667E-2]
[null,2090,3.6805416666666667E-2]
[null,2091,3.6805416666666667E-2]
[null,2092,3.6805416666666667E-2]
[null,2093,3.6805416666666667E-2]
[null,2094,3.6805416666666667E-2]
[null,2095,3.6805416666666667E-2]
[null,2096,3.6805416666666667E-2]
[null,2097,3.6805416666666667E-2]
[null,2098,3.6805416666666667E-2]
[null,2099,3.6805416666666667E-2]
[null,2100,3.6805416666666667E-2]
[]
[null,"Debt reference values - historical values"]
[]
[null,null,"Lending to non-MFIs for loans of over €1 million with an initial period of interest rate fixation with a maturity of more than one and no more than 5 years in %","Corporate bonds (non-MFIs) in %","Average in %"]
[null,"2007-01",4.84,4.5,{"$f":"(C94+D94)/2","v":4.67},null,null,"Bundesbank Monthly Report - statistics page *47"]
[null,"2007-02",4.6900000000000004,4.5,4.5950000000000006,null,null,"Bundesbank Monthly Report - statistics page *53"]
[null,"2007-03",4.82,4.4000000000000004,4.6100000000000003]
[null,"2007-04",5.05,4.5999999999999996,4.8249999999999993]
[null,"2007-05",5.13,4.7,4.915]
[null,"2007-06",5.5,4.9000000000000004,5.2]
[null,"2007-07",5.17,5.5,5.335]
[null,"2007-08",5.55,5.5,5.5250000000000004]
[null,"2007-09",5.71,5.6,5.6549999999999994]
[null,"2007-10",5.51,5.5,5.5049999999999999]
[null,"2007-11",5.39,5.3,5.3449999999999998]
[null,"2007-12",5.67,5.5,5.585]
[]
[null,"Average",{"$f":"AVERAGE(C94:C105)","v":5.2525000000000004},{"$f":"ROUND(AVERAGE(D94:D105),1)","v":5},{"$f":"(C107+D107)/2","v":5.1262500000000006}]
[]
[null,"2008-01",5.39,5.5,{"$f":"(C109+D109)/2","v":5.4450000000000003}]
[null,"2008-02",5.84,5.5,5.67]
[null,"2008-03",5.58,5.5,5.54]
[null,"2008-04",5.59,5.9,5.7450000000000001]
[null,"2008-05",5.74,5.9,5.82]
[null,"2008-06",6.09,6.3,6.1950000000000003]
[null,"2008-07",5.97,6.4,6.1850000000000005]
[null,"2008-08",5.91,6.1,6.0049999999999999]
[null,"2008-09",5.63,6.4,6.0150000000000006]
[null,"2008-10",6.1,7.6,6.85]
[null,"2008-11",5.38,7.2,6.29]
[null,"2008-12",4.82,6.9,5.86]
[]
[null,"Average",{"$f":"AVERAGE(C109:C120)","v":5.6700000000000008},{"$f":"ROUND(AVERAGE(D109:D120),1)","v":6.3},{"$f":"(C122+D122)/2","v":5.9850000000000003}]
[]
[null,"2009-01",5,6.5,{"$f":"(C124+D124)/2","v":5.75}]
[null,"2009-02",4.79,6.2,5.4950000000000001]
[null,"2009-03",4.2300000000000004,6.5,5.3650000000000002]
[null,"2009-04",4.22,6.3,5.26]
[null,"2009-05",3.98,6.2,5.09]
[null,"2009-06",4.33,6.2,5.2650000000000006]
[null,"2009-07",3.85,5.2,4.5250000000000004]
[null,"2009-08",4.18,4.7,4.4399999999999995]
[null,"2009-09",4.2300000000000004,4.8,4.5150000000000006]
[null,"2009-10",3.88,4.7,4.29]
[null,"2009-11",3.87,4.4000000000000004,4.1349999999999998]
[null,"2009-12",3.88,4.8,4.34]
[]
[null,"Average",{"$f":"ROUND(AVERAGE(C124:C135),2)","v":4.2},{"$f":"ROUND(AVERAGE(D124:D135),1)","v":5.5},{"$f":"(C137+D137)/2","v":4.8499999999999996}]
[]
[null,"2010-01",3.9,4.4000000000000004,4.1500000000000004]
[null,"2010-02",4.54,4.4000000000000004,4.47]
[null,"2010-03",3.69,4.2,3.9449999999999998]
[null,"2010-04",3.92,4.3,4.1100000000000003]
[null,"2010-05",3.59,4.3,3.9449999999999998]
[null,"2010-06",3.29,4.4000000000000004,3.8450000000000002]
[null,"2010-07",2.97,4,3.4849999999999999]
[null,"2010-08",3.39,3.8,3.5950000000000002]
[null,"2010-09",3.4,3.7,3.55]
[null,"2010-10",3.33,3.5,3.415]
[null,"2010-11",3.47,3.6,3.5350000000000001]
[null,"2010-12",3.26,3.8,3.53]
[]
[null,"Average ",{"$f":"AVERAGE(C139:C150)","v":3.5624999999999996},{"$f":"AVERAGE(D139:D150)","v":4.0333333333333332},{"$f":"(C152+D152)/2","v":3.7979166666666666}]
[]
[null,"2011-01",3.34,3.9,{"$f":"(C154+D154)/2","v":3.62}]
[null,"2011-02",4.05,4,4.0250000000000004]
[null,"2011-03",3.84,3.9,3.87]
[null,"2011-04",3.82,4.0999999999999996,3.96]
[null,"2011-05",3.67,4.2,3.9350000000000001]
[null,"2011-06",3.62,4.2,3.91]
[null,"2011-07",3.79,4.2,3.9950000000000001]
[null,"2011-08",3.92,4.4000000000000004,4.16]
[null,"2011-09",3.61,4.5999999999999996,4.1049999999999995]
[null,"2011-10",3.91,4.5999999999999996,4.2549999999999999]
[null,"2011-11",3.67,4.4000000000000004,4.0350000000000001]
[null,"2011-12",3.71,4.5999999999999996,4.1549999999999994]
[]
[null,"Average ",{"$f":"AVERAGE(C154:C165)","v":3.7458333333333331},{"$f":"AVERAGE(D154:D165)","v":4.2583333333333337},{"$f":"(C167+D167)/2","v":4.0020833333333332}]
[]
[null,"2012-01",3.37,4.3,{"$f":"(C169+D169)/2","v":3.835}]
[null,"2012-02",3.47,4,3.7350000000000003]
[null,"2012-03",2.85,4,3.4249999999999998]
[null,"2012-04",3.04,3.9,3.4699999999999998]
[null,"2012-05",2.98,3.8,3.3899999999999997]
[null,"2012-06",2.89,3.5,3.1950000000000003]
[null,"2012-07",2.96,3,2.98]
[null,"2012-08",2.82,3.6,3.21]
[null,"2012-09",2.81,3.9,3.355]
[null,"2012-10",2.84,3.8,3.32]
[null,"2012-11",3.25,3.6,3.4249999999999998]
[null,"2012-12",2.54,3.3,2.92]
[]
[null,"Average ",{"$f":"AVERAGE(C169:C180)","v":2.9849999999999999},{"$f":"AVERAGE(D169:D180)","v":3.7249999999999996},{"$f":"(C182+D182)/2","v":3.3549999999999995}]
[]
[null,"2013-01",2.94,3.4,{"$f":"(C184+D184)/2","v":3.17}]
[null,"2013-02",3.16,3.3,3.23]
[null,"2013-03",2.63,3.1,2.8650000000000002]
[null,"2013-04",2.85,3,2.9249999999999998]
[null,"2013-05",2.77,2.9,2.835]
[null,"2013-06",2.58,3.2,2.89]
[null,"2013-07",2.84,3.4,3.12]
[null,"2013-08",2.5099999999999998,3.5,3.0049999999999999]
[null,"2013-09",2.84,3.9,3.37]
[null,"2013-10",2.86,3.8,3.33]
[null,"2013-11",2.4300000000000002,3.6,3.0150000000000001]
[null,"2013-12",2.62,3.5,3.06]
[]
[null,"Average ",{"$f":"AVERAGE(C184:C195)","v":2.7524999999999999},{"$f":"AVERAGE(D184:D195)","v":3.3833333333333329},{"$f":"(C197+D197)/2","v":3.0679166666666662}]
[]
[null,"2014-01",2.41,3.4,{"$f":"(C199+D199)/2","v":2.9050000000000002}]
[null,"2014-02",2.14,3.4,2.77]
[null,"2014-03",2.5299999999999998,3.4,{"$f":"(C201+D201)/2","v":2.9649999999999999}]
[null,"2014-04",2.34,3.3,2.82]
[null,"2014-05",2.19,3.2,2.6950000000000003]
[null,"2014-06",2.31,3,2.6550000000000002]
[null,"2014-07",2.56,2.8,2.6799999999999997]
[null,"2014-08",2.2200000000000002,2.7,2.46]
[null,"2014-09",2.37,2.7,2.5350000000000001]
[null,"2014-10",2.59,2.6,2.5949999999999998]
[null,"2014-11",2.42,2.5,2.46]
[null,"2014-12",1.99,2.4,2.1949999999999998]
[]
[null,"Average ",{"$f":"AVERAGE(C199:C210)","v":2.3391666666666664},{"$f":"AVERAGE(D199:D210)","v":2.9499999999999997},{"$f":"(C212+D212)/2","v":2.6445833333333333}]
[]
[null,"2015-01",1.9,2.2999999999999998,{"$f":"(C214+D214)/2","v":2.0999999999999996}]
[null,"2015-02",1.63,2.2000000000000002,1.915]
[null,"2015-03",1.63,2.1,1.865]
[null,"2015-04",1.75,2,1.875]
[null,"2015-05",1.92,2.2000000000000002,2.06]
[null,"2015-06",1.91,2.4,2.1549999999999998]
[null,"2015-07",1.94,2.4,2.17]
[null,"2015-08",1.99,2.4,2.1949999999999998]
[null,"2015-09",1.69,2.7,2.1950000000000003]
[null,"2015-10",1.71,2.8,2.2549999999999999]
[null,"2015-11",1.98,2.8,2.3899999999999997]
[null,"2015-12",1.79,2.7,2.2450000000000001]
[]
[null,"Average ",{"$f":"AVERAGE(C214:C225)","v":1.82},{"$f":"AVERAGE(D214:D225)","v":2.4166666666666665},{"$f":"(C227+D227)/2","v":2.1183333333333332}]
[]
[null,"2016-01",2.16,2.8,{"$f":"(C229+D229)/2","v":2.48}]
[null,"2016-02",1.42,2.8,{"$f":"(C230+D230)/2","v":2.11}]
[null,"2016-03",1.76,2.4,{"$f":"(C231+D231)/2","v":2.08}]
[null,"2016-04",1.56,2.2000000000000002,{"$f":"(C232+D232)/2","v":1.8800000000000001}]
[null,"2016-05",1.55,2.1,1.8250000000000002]
[null,"2016-06",1.57,2,1.7850000000000001]
[null,"2016-07",1.88,1.7,1.79]
[null,"2016-08",1.48,1.6,1.54]
[null,"2016-09",1.67,1.6,1.635]
[null,"2016-10",1.69,1.7,1.6949999999999998]
[null,"2016-11",1.32,2,1.6600000000000001]
[null,"2016-12",1.64,2,1.8199999999999998]
[]
[null,"Average ",{"$f":"AVERAGE(C229:C240)","v":1.6416666666666668},{"$f":"AVERAGE(D229:D240)","v":2.0749999999999997},{"$f":"(C242+D242)/2","v":1.8583333333333334}]

{"sheet":"C.1 Cost data compression","index":4,"n_rows":149,"n_cols":29,"rows_kept":149,"cut":false,"hidden":false,"merged":[[3,8,3,9],[3,26,3,27]]}
[]
[null,"III. 1. Erdgasverdichtung",null,null,null,null,null,null,null,null,null,null,"C.1 Natural gas compression (predicted values)"]
[null,{"$f":"IF('[2]A. Allgemeine Informationen'!D7=\"Ja\",\"Genehmigte\",\"Beantragte\")&\" Planwerte des Anlagevermögens - Investitionsplan\"","v":"Beantragte Planwerte des Anlagevermögens - Investitionsplan"},null,null,null,null,null,null,null,null,null,null,"Capitalised assets under construction",null,null,null,null,null," Capitalised completed installations"]
[null,"gesamte geplante AK / HK",{"$f":"SUM(C6:C1000)","v":0},null,"Investitionskosten",null,null,null,"technische Spezifikation",null,null,null,null,null,"Capital asset",{"$f":"SUM(P6:P1000)","v":150000000},{"$f":"SUM(Q6:Q1000)","v":150000000},null,null,{"$f":"SUM(T6:T1000)","v":150000000},null,"Investitionskosten",null,null,null,null,"technische Spezifikation"]
[null,"lfd. Nr. des Anlagengutes","Planwerte Anschaffungs- und Herstellungs- kosten gesamt [€]","davon geplante\n AK/HK Verdichteranlage","davon geplante\nAK/HK für Grundstück und Gebäude","davon geplante AK/HK für Sonstiges","voraussichtliches Jahr der Inbetriebnahme","Betriebsmittel","max. Durchfluss bis … [in Nm³ / h]","Auslegungsdruck - eingangsseitig - bis ... [in bar]","Auslegungsdruck - ausgangsseitig - bis ... [in bar]",null,"No in investment plan","Year"," Capitalisation in asset group acc. to sheet F. UL"," Additions"," Reclassifications/disposals",null,"No in investment plan","Acquisition and production costs [total]","davon tatsächliche\n AK/HK Verdichteranlage","davon tatsächliche\nAK/HK für Grundstück und Gebäude","davon tatsächliche AK/HK für Sonstiges","Year of \ncommissioning","Monat der Inbetriebnahme","Betriebsmittel","max. Durchfluss bis … [in Nm³ / h]","Auslegungsdruck - eingangsseitig - bis ... [in bar]","Auslegungsdruck - ausgangsseitig - bis ... [in bar]"]
[null,1,{"$f":"D6+E6+F6","v":0},null,null,null,null,null,null,null,null,null,1,2020,14,{"$f":"1500000","v":1500000},null,null,1,{"$f":"Q11","v":150000000},null,null,null,2025]
[null,2,0,null,null,null,null,null,null,null,null,null,1,2021,14,{"$f":"7500000","v":7500000}]
[null,3,0,null,null,null,null,null,null,null,null,null,1,2022,14,{"$f":"30000000","v":30000000}]
[null,4,0,null,null,null,null,null,null,null,null,null,1,2023,14,{"$f":"51000000","v":51000000}]
[null,5,0,null,null,null,null,null,null,null,null,null,1,2024,14,{"$f":"60000000","v":60000000}]
[null,6,0,null,null,null,null,null,null,null,null,null,1,2025,14,null,{"$f":"SUM(P6:P10)","v":150000000}]
[null,7,0]
[null,8,0]
[null,9,0]
[null,10,0]
[null,11,0]
[null,12,0]
[null,13,0]
[null,14,0]
[null,15,0]
[null,16,0]
[null,17,0]
[null,18,0]
[null,19,0]
[null,20,0]
[null,21,0]
[null,22,0]
[null,23,0]
[null,24,0]
[null,25,0]
[null,26,0]
[null,27,0]
[null,28,0]
[null,29,0]
[null,30,0]
[null,31,0]
[null,32,0]
[null,33,0]
[null,34,0]
[null,35,0]
[null,36,0]
[null,37,0]
[null,38,0]
[]
[]
[]
[]
[]
[]
[]
[]
[]
[]
[]
[]
[]
[]
[]
[]
[]
[]
[]
[]
[]
[]
[]
[]
[]
[]
[]
[]
[]
[]
[]
[]
[]
[]
[]
[]
[]
[]
[]
[]
[]
[]
[]
[]
[]
[]
[]
[]
[]
[]
[]
[]
[]
[]
[]
[]
[]
[]
[]
[]
[]
[]
[]
[]
[null,null,null,null,null,null,2007]
[null,null,null,null,null,null,2008]
[null,null,null,null,null,null,2009,"Gas",100000,1,1]
[null,null,null,null,null,null,2010,"Strom",200000,5,2]
[null,null,null,null,null,null,2011,null,300000,16,3]
[null,null,null,null,null,null,2012,null,400000,70,4]
[null,null,null,null,null,null,2013,null,500000,80,5]
[null,null,null,null,null,null,2014,null,600000,90,6]
[null,null,null,null,null,null,2015,null,700000,100,7]
[null,null,null,null,null,null,2016,null,800000,110,8]
[null,null,null,null,null,null,2017,null,900000,120,9]
[null,null,null,null,null,null,2018,null,1000000,130,10]
[null,null,null,null,null,null,2019,null,1100000,null,11]
[null,null,null,null,null,null,2020,null,1200000,null,12]
[null,null,null,null,null,null,2021,null,1300000]
[null,null,null,null,null,null,2022,null,1400000]
[null,null,null,null,null,null,2023,null,1500000]
[null,null,null,null,null,null,2024,null,1600000]
[null,null,null,null,null,null,2025,null,1700000]
[null,null,null,null,null,null,2026,null,1800000]
[null,null,null,null,null,null,2027,null,1900000]
[null,null,null,null,null,null,2028,null,2000000]
[null,null,null,null,null,null,2029,null,2100000]
[null,null,null,null,null,null,2030,null,2200000]
[null,null,null,null,null,null,2031,null,2300000]
[null,null,null,null,null,null,2032,null,2400000]
[null,null,null,null,null,null,2033,null,2500000]
[null,null,null,null,null,null,2034,null,2600000]
[null,null,null,null,null,null,2035,null,2700000]
[null,null,null,null,null,null,2036,null,2800000]
[null,null,null,null,null,null,2037,null,2900000]
[null,null,null,null,null,null,2038,null,3000000]
[null,null,null,null,null,null,2039,null,3100000]
[null,null,null,null,null,null,2040,null,3200000]
[null,null,null,null,null,null,null,null,3300000]
[null,null,null,null,null,null,null,null,3400000]
[null,null,null,null,null,null,null,null,3500000]
[null,null,null,null,null,null,null,null,3600000]
[null,null,null,null,null,null,null,null,3700000]
[null,null,null,null,null,null,null,null,3800000]
[null,null,null,null,null,null,null,null,3900000]
[null,null,null,null,null,null,null,null,4000000]

{"sheet":"C.2 Cost data pipe PE","index":5,"n_rows":141,"n_cols":43,"rows_kept":141,"cut":false,"hidden":false,"merged":[]}
[]
[null,"IV. 1.1 Rohrleitungen - Stahl - PE ummantelt",null,null,null,null,null,null,null,null,null,null,null,null,null,null,null,null,null,"C.2 Pipelines – steel – encapsulated in PE (predicted values)"]
[null,{"$f":"IF('[2]A. Allgemeine Informationen'!D7=\"Ja\",\"Genehmigte\",\"Beantragte\")&\" Planwerte des Anlagevermögens - Investitionsplan\"","v":"Beantragte Planwerte des Anlagevermögens - Investitionsplan"},null,null,null,null,null,null,null,null,null,null,null,null,null,null,null,null,null,"Capitalised assets under construction",null,null,null,null,null,"Capitalised completed assets"]
[null,"gesamte geplante AK / HK",{"$f":"SUM(C6:C1000)","v":0},null,null,null,"Investitionskosten",null,null,null,null,null,null,null,"technische Spezifikation",null,null,null,null,null,null,"Capital asset",{"$f":"SUM(W6:W1000)","v":0},{"$f":"SUM(X6:X1000)","v":0},null,null,{"$f":"SUM(AA6:AA1000)","v":0},null,null,null,"Investitionskosten",null,null,null,null,null,null,null,null,"technische Spezifikation"]
[null,"lfd. Nr. des Anlagengutes","Planwerte Anschaffungs- und Herstellungs- kosten gesamt [€]","davon geplante\n AK/HK Materialkosten Rohre","davon geplante\nAK/HK Materialkosten Armaturen","davon geplante AK/HK Sonderbauwerke (z.B. Düker)","davon geplante AK/HK Herstellung des Kathodenschutzes","davon geplante AK/HK Rohrverlegungs- und Rohrgrabenarbeiten","davon geplante AK/HK Planungs-, Beratungs- und Prozesskosten","davon geplante AK/HK für Sonstiges","voraussichtliches Jahr der Inbetriebnahme","Durchmesser [DN] bis … mm","Nenndruck [PN] bis … bar","Grabenarbeiten nach Gebietstyp","Bodenklasse","Grabenlänge in km","mittlere Grabentiefe [mm]","mittlere Grabenbreite [mm]",null,"No in investment plan","Year","Capitalisation in asset group acc. to sheet F. UL","Additions","Reclassifications/disposals",null,"No in investment plan"," Acquisition and production costs [total]","davon tatsächliche\n AK/HK Materialkosten Rohre","davon tatsächliche\nAK/HK Materialkosten Armaturen","davon tatsächliche AK/HK Sonderbauwerke (z.B. Düker)","davon tatsächliche AK/HK Herstellung des Kathodenschutzes","davon tatsächliche AK/HK Rohrverlegungs- und Rohrgrabenarbeiten","davon tatsächliche AK/HK Planungs-, Beratungs- und Prozesskosten","davon tatsächliche AK/HK für Sonstiges"," Year of commissioning","Monat der Inbetriebnahme","Durchmesser [DN] bis … mm","Nenndruck [PN] bis … bar","Grabenarbeiten nach Gebietstyp","Bodenklasse","Grabenlänge in km","mittlere Grabentiefe [mm]","mittlere Grabenbreite [mm]"]
[null,1,{"$f":"SUM(D6:J6)","v":0}]
[null,2,{"$f":"SUM(D7:J7)","v":0}]
[null,3,{"$f":"SUM(D8:J8)","v":0}]
[null,4,{"$f":"SUM(D9:J9)","v":0}]
[null,5,0]
[null,6,0]
[null,7,0]
[null,8,0]
[null,9,0]
[null,10,0]
[null,11,0]
[null,12,0]
[null,13,0]
[null,14,0]
[null,15,0]
[null,16,0]
[null,17,0]
[null,18,0]
[null,19,0]
[null,20,0]
[null,21,0]
[null,22,0]
[null,23,0]
[null,24,0]
[null,25,0]
[null,26,0]
[null,27,0]
[null,28,0]
[null,29,0]
[null,30,0]
[null,31,0]
[null,32,0]
[null,33,0]
[null,34,0]
[null,35,0]
[null,36,0]
[null,37,0]
[null,38,0]
[]
[]
[]
[]
[]
[]
[]
[]
[]
[]
[]
[]
[]
[]
[]
[]
[]
[]
[]
[]
[]
[]
[]
[]
[]
[]
[]
[]
[]
[]
[]
[]
[]
[]
[]
[]
[]
[]
[]
[]
[]
[]
[]
[]
[]
[]
[]
[]
[]
[]
[]
[]
[]
[]
[]
[]
[]
[]
[]
[]
[]
[]
[]
[]
[null,null,null,null,null,null,null,null,null,null,2007]
[null,null,null,null,null,null,null,null,null,null,2008]
[null,null,null,null,null,null,null,null,null,null,2009,100,1,"Unbebaut - Feld / Flachland",1]
[null,null,null,null,null,null,null,null,null,null,2010,200,5,"Wald",2]
[null,null,null,null,null,null,null,null,null,null,2011,300,16,"Besiedelung - Flachland",3]
[null,null,null,null,null,null,null,null,null,null,2012,400,70,"Unbebaut - Mittelgebirge",4]
[null,null,null,null,null,null,null,null,null,null,2013,500,80,"Besiedelung - Mittelgebirge",5]
[null,null,null,null,null,null,null,null,null,null,2014,600,90,"Hochgebirge",6]
[null,null,null,null,null,null,null,null,null,null,2015,700,100,"Sonstiges",7]
[null,null,null,null,null,null,null,null,null,null,2016,800,110,null,8]
[null,null,null,null,null,null,null,null,null,null,2017,900,120,null,9]
[null,null,null,null,null,null,null,null,null,null,2018,1000,130,null,10]
[null,null,null,null,null,null,null,null,null,null,2019,1100,null,null,11]
[null,null,null,null,null,null,null,null,null,null,2020,1200,null,null,12]
[null,null,null,null,null,null,null,null,null,null,2021,1300]
[null,null,null,null,null,null,null,null,null,null,2022,1400]
[null,null,null,null,null,null,null,null,null,null,2023,1500]
[null,null,null,null,null,null,null,null,null,null,2024,1600]
[null,null,null,null,null,null,null,null,null,null,2025,1700]
[null,null,null,null,null,null,null,null,null,null,2026,1800]
[null,null,null,null,null,null,null,null,null,null,2027]
[null,null,null,null,null,null,null,null,null,null,2028]
[null,null,null,null,null,null,null,null,null,null,2029]
[null,null,null,null,null,null,null,null,null,null,2030]
[null,null,null,null,null,null,null,null,null,null,2031]
[null,null,null,null,null,null,null,null,null,null,2032]
[null,null,null,null,null,null,null,null,null,null,2033]
[null,null,null,null,null,null,null,null,null,null,2034]
[null,null,null,null,null,null,null,null,null,null,2035]
[null,null,null,null,null,null,null,null,null,null,2036]
[null,null,null,null,null,null,null,null,null,null,2037]
[null,null,null,null,null,null,null,null,null,null,2038]
[null,null,null,null,null,null,null,null,null,null,2039]
[null,null,null,null,null,null,null,null,null,null,2040]

{"sheet":"C.3 Cost data pipe cath","index":6,"n_rows":141,"n_cols":43,"rows_kept":141,"cut":false,"hidden":false,"merged":[]}
[]
[null,"C.3 Rohrleitungen - Stahl - kathodisch geschützt",null,null,null,null,null,null,null,null,null,null,null,null,null,null,null,null,null,"C.2 Pipelines – steel – cathodic protection (predicted values)"]
[null,{"$f":"IF('[2]A. Allgemeine Informationen'!D7=\"Ja\",\"Genehmigte\",\"Beantragte\")&\" Planwerte des Anlagevermögens - Investitionsplan\"","v":"Beantragte Planwerte des Anlagevermögens - Investitionsplan"},null,null,null,null,null,null,null,null,null,null,null,null,null,null,null,null,null,"Capitalised assets under construction",null,null,null,null,null,"Capitalised completed assets"]
[null,"gesamte geplante AK / HK",{"$f":"SUM(C6:C1000)","v":0},null,null,null,"Investitionskosten",null,null,null,null,null,null,null,"technische Spezifikation",null,null,null,null,null,null,"Capital asset",{"$f":"SUM(W6:W1000)","v":0},{"$f":"SUM(X6:X1000)","v":0},null,null,{"$f":"SUM(AA6:AA1000)","v":0},null,null,null,"Investitionskosten",null,null,null,null,null,null,null,null,"technische Spezifikation"]
[null,"lfd. Nr. des Anlagengutes","Planwerte Anschaffungs- und Herstellungs- kosten gesamt [€]","davon geplante\n AK/HK Materialkosten Rohre","davon geplante\nAK/HK Materialkosten Armaturen","davon geplante AK/HK Sonderbauwerke (z.B. Düker)","davon geplante AK/HK Herstellung des Kathodenschutzes","davon geplante AK/HK Rohrverlegungs- und Rohrgrabenarbeiten","davon geplante AK/HK Planungs-, Beratungs- und Prozesskosten","davon geplante AK/HK für Sonstiges","voraussichtliches Jahr der Inbetriebnahme","Durchmesser [DN] bis … mm","Nenndruck [PN] bis … bar","Grabenarbeiten nach Gebietstyp","Bodenklasse","Grabenlänge in km","mittlere Grabentiefe [mm]","mittlere Grabenbreite [mm]",null,"No in investment plan","Year"," Capitalisation in asset group acc. to sheet F. UL","Additions","Reclassifications/disposals",null,"No in investment plan"," Acquisition and production costs [total]","davon tatsächliche\n AK/HK Materialkosten Rohre","davon tatsächliche\nAK/HK Materialkosten Armaturen","davon tatsächliche AK/HK Sonderbauwerke (z.B. Düker)","davon tatsächliche AK/HK Herstellung des Kathodenschutzes","davon tatsächliche AK/HK Rohrverlegungs- und Rohrgrabenarbeiten","davon tatsächliche AK/HK Planungs-, Beratungs- und Prozesskosten","davon tatsächliche AK/HK für Sonstiges"," Year of commissioning","Monat der Inbetriebnahme","Durchmesser [DN] bis … mm","Nenndruck [PN] bis … bar","Grabenarbeiten nach Gebietstyp","Bodenklasse","Grabenlänge in km","mittlere Grabentiefe [mm]","mittlere Grabenbreite [mm]"]
[null,1,{"$f":"SUM(D6:J6)","v":0}]
[null,2,{"$f":"SUM(D7:J7)","v":0}]
[null,3,0]
[null,4,0]
[null,5,0]
[null,6,0]
[null,7,0]
[null,8,0]
[null,9,0]
[null,10,0]
[null,11,0]
[null,12,0]
[null,13,0]
[null,14,0]
[null,15,0]
[null,16,0]
[null,17,0]
[null,18,0]
[null,19,0]
[null,20,0]
[null,21,0]
[null,22,0]
[null,23,0]
[null,24,0]
[null,25,0]
[null,26,0]
[null,27,0]
[null,28,0]
[null,29,0]
[null,30,0]
[null,31,0]
[null,32,0]
[null,33,0]
[null,34,0]
[null,35,0]
[null,36,0]
[null,37,0]
[null,38,0]
[]
[]
[]
[]
[]
[]
[]
[]
[]
[]
[]
[]
[]
[]
[]
[]
[]
[]
[]
[]
[]
[]
[]
[]
[]
[]
[]
[]
[]
[]
[]
[]
[]
[]
[]
[]
[]
[]
[]
[]
[]
[]
[]
[]
[]
[]
[]
[]
[]
[]
[]
[]
[]
[]
[]
[]
[]
[]
[]
[]
[]
[]
[]
[]
[null,null,null,null,null,null,null,null,null,null,2007]
[null,null,null,null,null,null,null,null,null,null,2008]
[null,null,null,null,null,null,null,null,null,null,2009,100,1,"Unbebaut - Feld / Flachland",1]
[null,null,null,null,null,null,null,null,null,null,2010,200,5,"Wald",2]
[null,null,null,null,null,null,null,null,null,null,2011,300,16,"Besiedelung - Flachland",3]
[null,null,null,null,null,null,null,null,null,null,2012,400,70,"Unbebaut - Mittelgebirge",4]
[null,null,null,null,null,null,null,null,null,null,2013,500,80,"Besiedelung - Mittelgebirge",5]
[null,null,null,null,null,null,null,null,null,null,2014,600,90,"Hochgebirge",6]
[null,null,null,null,null,null,null,null,null,null,2015,700,100,"Sonstiges",7]
[null,null,null,null,null,null,null,null,null,null,2016,800,110,null,8]
[null,null,null,null,null,null,null,null,null,null,2017,900,120,null,9]
[null,null,null,null,null,null,null,null,null,null,2018,1000,130,null,10]
[null,null,null,null,null,null,null,null,null,null,2019,1100,null,null,11]
[null,null,null,null,null,null,null,null,null,null,2020,1200,null,null,12]
[null,null,null,null,null,null,null,null,null,null,2021,1300]
[null,null,null,null,null,null,null,null,null,null,2022,1400]
[null,null,null,null,null,null,null,null,null,null,2023,1500]
[null,null,null,null,null,null,null,null,null,null,2024,1600]
[null,null,null,null,null,null,null,null,null,null,2025,1700]
[null,null,null,null,null,null,null,null,null,null,2026,1800]
[null,null,null,null,null,null,null,null,null,null,2027]
[null,null,null,null,null,null,null,null,null,null,2028]
[null,null,null,null,null,null,null,null,null,null,2029]
[null,null,null,null,null,null,null,null,null,null,2030]
[null,null,null,null,null,null,null,null,null,null,2031]
[null,null,null,null,null,null,null,null,null,null,2032]
[null,null,null,null,null,null,null,null,null,null,2033]
[null,null,null,null,null,null,null,null,null,null,2034]
[null,null,null,null,null,null,null,null,null,null,2035]
[null,null,null,null,null,null,null,null,null,null,2036]
[null,null,null,null,null,null,null,null,null,null,2037]
[null,null,null,null,null,null,null,null,null,null,2038]
[null,null,null,null,null,null,null,null,null,null,2039]
[null,null,null,null,null,null,null,null,null,null,2040]

{"sheet":"C.4 Cost control equip","index":7,"n_rows":156,"n_cols":43,"rows_kept":156,"cut":false,"hidden":false,"merged":[[3,26,3,27]]}
[]
[null,"V. 4. Regeleinrichtungen",null,null,null,null,null,null,null,null,null,null,"C.4 Control equipment (predicted values)"]
[null,{"$f":"IF('[2]A. Allgemeine Informationen'!D7=\"Ja\",\"Genehmigte\",\"Beantragte\")&\" Planwerte des Anlagevermögens - Investitionsplan\"","v":"Beantragte Planwerte des Anlagevermögens - Investitionsplan"},null,null,null,null,null,null,null,null,null,null,"Capitalised assets under construction",null,null,null,null,null,"Capitalised completed assets"]
[null,"gesamte geplante AK / HK",{"$f":"SUM(C6:C1000)","v":0},null,"Investitionskosten",null,null,null,"technische Spezifikation",null,null,null,null,null,"Capital asset",{"$f":"SUM(P6:P1000)","v":0},{"$f":"SUM(Q6:Q1000)","v":0},null,null,{"$f":"SUM(T6:T1000)","v":0},null,"Investitionskosten",null,null,null,null,"technische Spezifikation","technische Spezifikation",null,null,"Investitionskosten",null,null,null,null,null,null,null,null,"technische Spezifikation"]
[null,"lfd. Nr. des Anlagengutes","Planwerte Anschaffungs- und Herstellungs- kosten gesamt [€]","davon geplante\n AK/HK Regelanlage(n)","davon geplante\nAK/HK für Grundstück und Gebäude","davon geplante AK/HK für Sonstiges","voraussichtliches Jahr der Inbetriebnahme","max. Durchfluss bis … [in Nm³ / h]","Anzahl der Regler","Auslegungsdruck - eingangsseitig - bis ... [in bar]","Auslegungsdruck - ausgangsseitig - bis ... [in bar]",null,"No in investment plan","Year","Capitalisation in asset group acc. to sheet F. UL","Additions","Reclassifications/disposals",null,"No in investment plan","Acquisition and production costs [total]","davon geplante\n AK/HK Regelanlage(n)","davon geplante\nAK/HK für Grundstück und Gebäude","davon geplante AK/HK für Sonstiges","Year of commissioning","Monat der Inbetriebnahme","max. Durchfluss bis … [in Nm³ / h]","Anzahl der Regler","Auslegungsdruck - eingangsseitig - bis ... [in bar]","Auslegungsdruck - ausgangsseitig - bis ... [in bar]","davon tatsächliche AK/HK Sonderbauwerke (z.B. Düker)","davon tatsächliche AK/HK Herstellung des Kathodenschutzes","davon tatsächliche AK/HK Rohrverlegungs- und Rohrgrabenarbeiten","davon tatsächliche AK/HK Planungs-, Beratungs- und Prozesskosten","davon tatsächliche AK/HK für Sonstiges"," Jahr der Inbetriebnahme","Monat der Inbetriebnahme","Durchmesser [DN] bis … mm","Nenndruck [PN] bis … bar","Grabenarbeiten nach Gebietstyp","Bodenklasse","Grabenlänge in km","mittlere Grabentiefe [mm]","mittlere Grabenbreite [mm]"]
[null,1,{"$f":"D6+E6+F6","v":0}]
[null,2,0]
[null,3,0]
[null,4,0]
[null,5,0]
[null,6,0]
[null,7,0]
[null,8,0]
[null,9,0]
[null,10,0]
[null,11,0]
[null,12,0]
[null,13,0]
[null,14,0]
[null,15,0]
[null,16,0]
[null,17,0]
[null,18,0]
[null,19,0]
[null,20,0]
[null,21,0]
[null,22,0]
[null,23,0]
[null,24,0]
[null,25,0]
[null,26,0]
[null,27,0]
[null,28,0]
[null,29,0]
[null,30,0]
[null,31,0]
[null,32,0]
[null,33,0]
[null,34,0]
[null,35,0]
[null,36,0]
[null,37,0]
[null,38,0]
[]
[]
[]
[]
[]
[]
[]
[]
[]
[]
[]
[]
[]
[]
[]
[]
[]
[]
[]
[]
[]
[]
[]
[]
[]
[]
[]
[]
[]
[]
[]
[]
[]
[]
[]
[]
[]
[]
[]
[]
[]
[]
[]
[]
[]
[]
[]
[]
[]
[]
[]
[]
[]
[]
[]
[]
[]
[]
[]
[]
[]
[]
[]
[]
[null,null,null,null,null,null,2007,10000,1]
[null,null,null,null,null,null,2008,20000,2]
[null,null,null,null,null,null,2009,30000,3,1]
[null,null,null,null,null,null,2010,40000,4,5]
[null,null,null,null,null,null,2011,50000,5,16]
[null,null,null,null,null,null,2012,60000,6,70]
[null,null,null,null,null,null,2013,70000,7,80]
[null,null,null,null,null,null,2014,80000,8,90]
[null,null,null,null,null,null,2015,90000,9,100]
[null,null,null,null,null,null,2016,100000,10,110]
[null,null,null,null,null,null,2017,200000,11,120]
[null,null,null,null,null,null,2018,300000,12,130]
[null,null,null,null,null,null,2019,400000]
[null,null,null,null,null,null,2020,500000]
[null,null,null,null,null,null,2021,600000]
[null,null,null,null,null,null,2022,700000]
[null,null,null,null,null,null,2023,800000]
[null,null,null,null,null,null,2024,900000]
[null,null,null,null,null,null,2025,1000000]
[null,null,null,null,null,null,2026,1100000]
[null,null,null,null,null,null,2027,1200000]
[null,null,null,null,null,null,2028,1300000]
[null,null,null,null,null,null,2029,1400000]
[null,null,null,null,null,null,2030,1500000]
[null,null,null,null,null,null,2031,1600000]
[null,null,null,null,null,null,2032,1700000]
[null,null,null,null,null,null,2033,1800000]
[null,null,null,null,null,null,2034,1900000]
[null,null,null,null,null,null,2035,2000000]
[null,null,null,null,null,null,2036,2100000]
[null,null,null,null,null,null,2037,2200000]
[null,null,null,null,null,null,2038,2300000]
[null,null,null,null,null,null,2039,2400000]
[null,null,null,null,null,null,2040,2500000]
[null,null,null,null,null,null,null,2600000]
[null,null,null,null,null,null,null,2700000]
[null,null,null,null,null,null,null,2800000]
[null,null,null,null,null,null,null,2900000]
[null,null,null,null,null,null,null,3000000]
[null,null,null,null,null,null,null,3100000]
[null,null,null,null,null,null,null,3200000]
[null,null,null,null,null,null,null,3300000]
[null,null,null,null,null,null,null,3400000]
[null,null,null,null,null,null,null,3500000]
[null,null,null,null,null,null,null,3600000]
[null,null,null,null,null,null,null,3700000]
[null,null,null,null,null,null,null,3800000]
[null,null,null,null,null,null,null,3900000]
[null,null,null,null,null,null,null,4000000]

{"sheet":"C.5 Other assets","index":8,"n_rows":253,"n_cols":25,"rows_kept":253,"cut":false,"hidden":false,"merged":[]}
[]
[null,"C.5 Übrige Anlagen",null,null,null,null,null,null,null,null,"C.5 Other assets (predicted values)"]
[null,{"$f":"IF('A. General information'!D7=\"Ja\",\"Genehmigte\",\"Beantragte\")&\" Planwerte des Anlagevermögens - Investitionsplan\"","v":"Genehmigte Planwerte des Anlagevermögens - Investitionsplan"},null,null,null,null,null,null,null,null,"Assets under construction",null,null,null,null,null,"Capitalised fixed assets"]
[null,"Istabrechnung",null,null,null,"bitte zuerst Spalte\nC befüllen!","gesamte geplante AK / HK",{"$f":"SUM(H6:H1000)","v":0},null,null,null,null,"Capital asset",{"$f":"SUM(N6:N1000)","v":1000000},{"$f":"SUM(O6:O1000)","v":1000000},null,null,null,null,null,"bitte zuerst Spalte\nC befüllen!",null,{"$f":"SUM(W6:W1000)","v":1000000}]
[null,"lfd. Nr. des Anlagengutes","Anlagengruppennummer gem. Blatt F. ND","Anlagengut","Nutzungsdauer [gem. Eintrag in Blatt F. ND]","Menge","Mengeneinheit","Planwerte Anschaffungs- und Herstellungskosten [€]","voraussichtliches Jahr der Inbetriebnahme",null,"No in investment plan","Year","Capitalisation in asset group acc. to sheet F. UL","Additions","Reclassifications/disposals",null,"No in investment plan","Asset group no acc. to sheet F. UL","Capital asset (text)","Useful life (acc to entry in sheet F. UL)","Menge","Mengeneinheit","Acquisition and production costs \n[€]","Year of commissioning","Monat der Inbetriebnahme"]
[null,1,"please select",null,{"$f":"IF(C6=\"please select\",\"\",VLOOKUP(C6,'[5] F'!$B$2:$F$43,5,FALSE))","v":""},null,null,null,null,null,2,2024,34,1000000,null,null,2,34,null,{"$f":"IF(R6=\"bitte auswählen\",\"\",VLOOKUP(R6,'[7]F. ND u. OPEX-Pauschale'!$B$3:$F$43,5,FALSE))","v":45},null,null,1000000,2025]
[null,2,"please select",null,{"$f":"IF(C7=\"please select\",\"\",VLOOKUP(C7,'[5] F'!$B$2:$F$43,5,FALSE))","v":""},null,null,null,null,null,2,2025,34,null,1000000,null,null,"please select",null,{"$f":"IF(R7=\"please select\",\"\",VLOOKUP(R7,'F. UL & OPEX flat rates'!$B$3:$F$43,5,FALSE))","v":""}]
[null,3,"please select",null,{"$f":"IF(C8=\"please select\",\"\",VLOOKUP(C8,'F. UL & OPEX flat rates'!$B$2:$F$43,5,FALSE))","v":""},null,null,null,null,null,null,null,null,null,null,null,null,"please select",null,{"$f":"IF(R8=\"please select\",\"\",VLOOKUP(R8,'F. UL & OPEX flat rates'!$B$3:$F$43,5,FALSE))","v":""}]
[null,4,"please select",null,{"$f":"IF(C9=\"please select\",\"\",VLOOKUP(C9,'F. UL & OPEX flat rates'!$B$2:$F$43,5,FALSE))","v":""},null,null,null,null,null,null,null,null,null,null,null,null,"please select",null,{"$f":"IF(R9=\"please select\",\"\",VLOOKUP(R9,'F. UL & OPEX flat rates'!$B$3:$F$43,5,FALSE))","v":""}]
[null,5,"please select",null,{"$f":"IF(C10=\"please select\",\"\",VLOOKUP(C10,'F. UL & OPEX flat rates'!$B$2:$F$43,5,FALSE))","v":""},null,null,null,null,null,null,null,null,null,null,null,null,"please select",null,{"$f":"IF(R10=\"please select\",\"\",VLOOKUP(R10,'F. UL & OPEX flat rates'!$B$3:$F$43,5,FALSE))","v":""}]
[null,6,"please select",null,{"$f":"IF(C11=\"please select\",\"\",VLOOKUP(C11,'F. UL & OPEX flat rates'!$B$2:$F$43,5,FALSE))","v":""},null,null,null,null,null,null,null,null,null,null,null,null,"please select",null,{"$f":"IF(R11=\"please select\",\"\",VLOOKUP(R11,'F. UL & OPEX flat rates'!$B$3:$F$43,5,FALSE))","v":""}]
[null,7,"please select",null,{"$f":"IF(C12=\"please select\",\"\",VLOOKUP(C12,'F. UL & OPEX flat rates'!$B$2:$F$43,5,FALSE))","v":""},null,null,null,null,null,null,null,null,null,null,null,null,"please select",null,{"$f":"IF(R12=\"please select\",\"\",VLOOKUP(R12,'F. UL & OPEX flat rates'!$B$3:$F$43,5,FALSE))","v":""}]
[null,8,"please select",null,{"$f":"IF(C13=\"please select\",\"\",VLOOKUP(C13,'F. UL & OPEX flat rates'!$B$2:$F$43,5,FALSE))","v":""},null,null,null,null,null,null,null,null,null,null,null,null,"please select",null,{"$f":"IF(R13=\"please select\",\"\",VLOOKUP(R13,'F. UL & OPEX flat rates'!$B$3:$F$43,5,FALSE))","v":""}]
[null,9,"please select",null,{"$f":"IF(C14=\"please select\",\"\",VLOOKUP(C14,'F. UL & OPEX flat rates'!$B$2:$F$43,5,FALSE))","v":""},null,null,null,null,null,null,null,null,null,null,null,null,"please select",null,{"$f":"IF(R14=\"please select\",\"\",VLOOKUP(R14,'F. UL & OPEX flat rates'!$B$3:$F$43,5,FALSE))","v":""}]
[null,10,"please select","",{"$f":"IF(C15=\"please select\",\"\",VLOOKUP(C15,'F. UL & OPEX flat rates'!$B$2:$F$43,5,FALSE))","v":""},"","",null,null,null,null,null,null,null,null,null,null,"please select",null,{"$f":"IF(R15=\"please select\",\"\",VLOOKUP(R15,'F. UL & OPEX flat rates'!$B$3:$F$43,5,FALSE))","v":""}]
[null,11,"please select","",{"$f":"IF(C16=\"please select\",\"\",VLOOKUP(C16,'F. UL & OPEX flat rates'!$B$2:$F$43,5,FALSE))","v":""},"","",null,null,null,null,null,null,null,null,null,null,"please select",null,{"$f":"IF(R16=\"please select\",\"\",VLOOKUP(R16,'F. UL & OPEX flat rates'!$B$3:$F$43,5,FALSE))","v":""}]
[null,12,"please select","",{"$f":"IF(C17=\"please select\",\"\",VLOOKUP(C17,'F. UL & OPEX flat rates'!$B$2:$F$43,5,FALSE))","v":""},"","",null,null,null,null,null,null,null,null,null,null,"please select",null,{"$f":"IF(R17=\"please select\",\"\",VLOOKUP(R17,'F. UL & OPEX flat rates'!$B$3:$F$43,5,FALSE))","v":""}]
[null,13,"please select","",{"$f":"IF(C18=\"please select\",\"\",VLOOKUP(C18,'F. UL & OPEX flat rates'!$B$2:$F$43,5,FALSE))","v":""},"","",null,null,null,null,null,null,null,null,null,null,"please select",null,{"$f":"IF(R18=\"please select\",\"\",VLOOKUP(R18,'F. UL & OPEX flat rates'!$B$3:$F$43,5,FALSE))","v":""}]
[null,14,"please select","",{"$f":"IF(C19=\"please select\",\"\",VLOOKUP(C19,'F. UL & OPEX flat rates'!$B$2:$F$43,5,FALSE))","v":""},"","",null,null,null,null,null,null,null,null,null,null,"please select",null,{"$f":"IF(R19=\"please select\",\"\",VLOOKUP(R19,'F. UL & OPEX flat rates'!$B$3:$F$43,5,FALSE))","v":""}]
[null,15,"please select","",{"$f":"IF(C20=\"please select\",\"\",VLOOKUP(C20,'F. UL & OPEX flat rates'!$B$2:$F$43,5,FALSE))","v":""},"","",null,null,null,null,null,null,null,null,null,null,"please select",null,{"$f":"IF(R20=\"please select\",\"\",VLOOKUP(R20,'F. UL & OPEX flat rates'!$B$3:$F$43,5,FALSE))","v":""}]
[null,16,"please select","",{"$f":"IF(C21=\"please select\",\"\",VLOOKUP(C21,'F. UL & OPEX flat rates'!$B$2:$F$43,5,FALSE))","v":""},"","",null,null,null,null,null,null,null,null,null,null,"please select",null,{"$f":"IF(R21=\"please select\",\"\",VLOOKUP(R21,'F. UL & OPEX flat rates'!$B$3:$F$43,5,FALSE))","v":""}]
[null,17,"please select","",{"$f":"IF(C22=\"please select\",\"\",VLOOKUP(C22,'F. UL & OPEX flat rates'!$B$2:$F$43,5,FALSE))","v":""},"","",null,null,null,null,null,null,null,null,null,null,"please select",null,{"$f":"IF(R22=\"please select\",\"\",VLOOKUP(R22,'F. UL & OPEX flat rates'!$B$3:$F$43,5,FALSE))","v":""}]
[null,18,"please select","",{"$f":"IF(C23=\"please select\",\"\",VLOOKUP(C23,'F. UL & OPEX flat rates'!$B$2:$F$43,5,FALSE))","v":""},"","",null,null,null,null,null,null,null,null,null,null,"please select",null,{"$f":"IF(R23=\"please select\",\"\",VLOOKUP(R23,'F. UL & OPEX flat rates'!$B$3:$F$43,5,FALSE))","v":""}]
[null,19,"please select","",{"$f":"IF(C24=\"please select\",\"\",VLOOKUP(C24,'F. UL & OPEX flat rates'!$B$2:$F$43,5,FALSE))","v":""},"","",null,null,null,null,null,null,null,null,null,null,"please select",null,{"$f":"IF(R24=\"please select\",\"\",VLOOKUP(R24,'F. UL & OPEX flat rates'!$B$3:$F$43,5,FALSE))","v":""}]
[null,20,"please select","",{"$f":"IF(C25=\"please select\",\"\",VLOOKUP(C25,'F. UL & OPEX flat rates'!$B$2:$F$43,5,FALSE))","v":""},"","",null,null,null,null,null,null,null,null,null,null,"please select",null,{"$f":"IF(R25=\"please select\",\"\",VLOOKUP(R25,'F. UL & OPEX flat rates'!$B$3:$F$43,5,FALSE))","v":""}]
[null,21,"please select","",{"$f":"IF(C26=\"please select\",\"\",VLOOKUP(C26,'F. UL & OPEX flat rates'!$B$2:$F$43,5,FALSE))","v":""},"","",null,null,null,null,null,null,null,null,null,null,"please select",null,{"$f":"IF(R26=\"please select\",\"\",VLOOKUP(R26,'F. UL & OPEX flat rates'!$B$3:$F$43,5,FALSE))","v":""}]
[null,22,"please select","",{"$f":"IF(C27=\"please select\",\"\",VLOOKUP(C27,'F. UL & OPEX flat rates'!$B$2:$F$43,5,FALSE))","v":""},"","",null,null,null,null,null,null,null,null,null,null,"please select",null,{"$f":"IF(R27=\"please select\",\"\",VLOOKUP(R27,'F. UL & OPEX flat rates'!$B$3:$F$43,5,FALSE))","v":""}]
[null,23,"please select","",{"$f":"IF(C28=\"please select\",\"\",VLOOKUP(C28,'F. UL & OPEX flat rates'!$B$2:$F$43,5,FALSE))","v":""},"","",null,null,null,null,null,null,null,null,null,null,"please select",null,{"$f":"IF(R28=\"please select\",\"\",VLOOKUP(R28,'F. UL & OPEX flat rates'!$B$3:$F$43,5,FALSE))","v":""}]
[null,24,"please select","",{"$f":"IF(C29=\"please select\",\"\",VLOOKUP(C29,'F. UL & OPEX flat rates'!$B$2:$F$43,5,FALSE))","v":""},"","",null,null,null,null,null,null,null,null,null,null,"please select",null,{"$f":"IF(R29=\"please select\",\"\",VLOOKUP(R29,'F. UL & OPEX flat rates'!$B$3:$F$43,5,FALSE))","v":""}]
[null,25,"please select","",{"$f":"IF(C30=\"please select\",\"\",VLOOKUP(C30,'F. UL & OPEX flat rates'!$B$2:$F$43,5,FALSE))","v":""},"","",null,null,null,null,null,null,null,null,null,null,"please select",null,{"$f":"IF(R30=\"please select\",\"\",VLOOKUP(R30,'F. UL & OPEX flat rates'!$B$3:$F$43,5,FALSE))","v":""}]
[null,26,"please select","",{"$f":"IF(C31=\"please select\",\"\",VLOOKUP(C31,'F. UL & OPEX flat rates'!$B$2:$F$43,5,FALSE))","v":""},"","",null,null,null,null,null,null,null,null,null,null,"please select",null,{"$f":"IF(R31=\"please select\",\"\",VLOOKUP(R31,'F. UL & OPEX flat rates'!$B$3:$F$43,5,FALSE))","v":""}]
[null,27,"please select","",{"$f":"IF(C32=\"please select\",\"\",VLOOKUP(C32,'F. UL & OPEX flat rates'!$B$2:$F$43,5,FALSE))","v":""},"","",null,null,null,null,null,null,null,null,null,null,"please select",null,{"$f":"IF(R32=\"please select\",\"\",VLOOKUP(R32,'F. UL & OPEX flat rates'!$B$3:$F$43,5,FALSE))","v":""}]
[null,28,"please select","",{"$f":"IF(C33=\"please select\",\"\",VLOOKUP(C33,'F. UL & OPEX flat rates'!$B$2:$F$43,5,FALSE))","v":""},"","",null,null,null,null,null,null,null,null,null,null,"please select",null,{"$f":"IF(R33=\"please select\",\"\",VLOOKUP(R33,'F. UL & OPEX flat rates'!$B$3:$F$43,5,FALSE))","v":""}]
[null,29,"please select","",{"$f":"IF(C34=\"please select\",\"\",VLOOKUP(C34,'F. UL & OPEX flat rates'!$B$2:$F$43,5,FALSE))","v":""},"","",null,null,null,null,null,null,null,null,null,null,"please select",null,{"$f":"IF(R34=\"please select\",\"\",VLOOKUP(R34,'F. UL & OPEX flat rates'!$B$3:$F$43,5,FALSE))","v":""}]
[null,30,"please select","",{"$f":"IF(C35=\"please select\",\"\",VLOOKUP(C35,'F. UL & OPEX flat rates'!$B$2:$F$43,5,FALSE))","v":""},"","",null,null,null,null,null,null,null,null,null,null,"please select",null,{"$f":"IF(R35=\"please select\",\"\",VLOOKUP(R35,'F. UL & OPEX flat rates'!$B$3:$F$43,5,FALSE))","v":""}]
[null,31,"please select","",{"$f":"IF(C36=\"please select\",\"\",VLOOKUP(C36,'F. UL & OPEX flat rates'!$B$2:$F$43,5,FALSE))","v":""},"","",null,null,null,null,null,null,null,null,null,null,"please select",null,{"$f":"IF(R36=\"please select\",\"\",VLOOKUP(R36,'F. UL & OPEX flat rates'!$B$3:$F$43,5,FALSE))","v":""}]
[null,32,"please select","",{"$f":"IF(C37=\"please select\",\"\",VLOOKUP(C37,'F. UL & OPEX flat rates'!$B$2:$F$43,5,FALSE))","v":""},"","",null,null,null,null,null,null,null,null,null,null,"please select","",{"$f":"IF(R37=\"please select\",\"\",VLOOKUP(R37,'F. UL & OPEX flat rates'!$B$3:$F$43,5,FALSE))","v":""},"",""]
[null,33,"please select","",{"$f":"IF(C38=\"please select\",\"\",VLOOKUP(C38,'F. UL & OPEX flat rates'!$B$2:$F$43,5,FALSE))","v":""},"","",null,null,null,null,null,null,null,null,null,null,"please select","",{"$f":"IF(R38=\"please select\",\"\",VLOOKUP(R38,'F. UL & OPEX flat rates'!$B$3:$F$43,5,FALSE))","v":""},"",""]
[null,34,"please select","",{"$f":"IF(C39=\"please select\",\"\",VLOOKUP(C39,'F. UL & OPEX flat rates'!$B$2:$F$43,5,FALSE))","v":""},"","",null,null,null,null,null,null,null,null,null,null,"please select","",{"$f":"IF(R39=\"please select\",\"\",VLOOKUP(R39,'F. UL & OPEX flat rates'!$B$3:$F$43,5,FALSE))","v":""},"",""]
[null,35,"please select","",{"$f":"IF(C40=\"please select\",\"\",VLOOKUP(C40,'F. UL & OPEX flat rates'!$B$2:$F$43,5,FALSE))","v":""},"","",null,null,null,null,null,null,null,null,null,null,"please select","",{"$f":"IF(R40=\"please select\",\"\",VLOOKUP(R40,'F. UL & OPEX flat rates'!$B$3:$F$43,5,FALSE))","v":""},"",""]
[null,36,"please select","",{"$f":"IF(C41=\"please select\",\"\",VLOOKUP(C41,'F. UL & OPEX flat rates'!$B$2:$F$43,5,FALSE))","v":""},"","",null,null,null,null,null,null,null,null,null,null,"please select","",{"$f":"IF(R41=\"please select\",\"\",VLOOKUP(R41,'F. UL & OPEX flat rates'!$B$3:$F$43,5,FALSE))","v":""},"",""]
[null,37,"please select","",{"$f":"IF(C42=\"please select\",\"\",VLOOKUP(C42,'F. UL & OPEX flat rates'!$B$2:$F$43,5,FALSE))","v":""},"","",null,null,null,null,null,null,null,null,null,null,"please select","",{"$f":"IF(R42=\"please select\",\"\",VLOOKUP(R42,'F. UL & OPEX flat rates'!$B$3:$F$43,5,FALSE))","v":""},"",""]
[null,38,"please select","",{"$f":"IF(C43=\"please select\",\"\",VLOOKUP(C43,'F. UL & OPEX flat rates'!$B$2:$F$43,5,FALSE))","v":""},"","",null,null,null,null,null,null,null,null,null,null,"please select","",{"$f":"IF(R43=\"please select\",\"\",VLOOKUP(R43,'F. UL & OPEX flat rates'!$B$3:$F$43,5,FALSE))","v":""},"",""]
[null,39,"please select","",{"$f":"IF(C44=\"please select\",\"\",VLOOKUP(C44,'F. UL & OPEX flat rates'!$B$2:$F$43,5,FALSE))","v":""},"","",null,null,null,null,null,null,null,null,null,null,"please select","",{"$f":"IF(R44=\"please select\",\"\",VLOOKUP(R44,'F. UL & OPEX flat rates'!$B$3:$F$43,5,FALSE))","v":""},"",""]
[null,40,"please select","",{"$f":"IF(C45=\"please select\",\"\",VLOOKUP(C45,'F. UL & OPEX flat rates'!$B$2:$F$43,5,FALSE))","v":""},"","",null,null,null,null,null,null,null,null,null,null,"please select","",{"$f":"IF(R45=\"please select\",\"\",VLOOKUP(R45,'F. UL & OPEX flat rates'!$B$3:$F$43,5,FALSE))","v":""},"",""]
[null,41,"please select","",{"$f":"IF(C46=\"please select\",\"\",VLOOKUP(C46,'F. UL & OPEX flat rates'!$B$2:$F$43,5,FALSE))","v":""},"","",null,null,null,null,null,null,null,null,null,null,"please select","",{"$f":"IF(R46=\"please select\",\"\",VLOOKUP(R46,'F. UL & OPEX flat rates'!$B$3:$F$43,5,FALSE))","v":""},"",""]
[null,42,"please select","",{"$f":"IF(C47=\"please select\",\"\",VLOOKUP(C47,'F. UL & OPEX flat rates'!$B$2:$F$43,5,FALSE))","v":""},"","",null,null,null,null,null,null,null,null,null,null,"please select","",{"$f":"IF(R47=\"please select\",\"\",VLOOKUP(R47,'F. UL & OPEX flat rates'!$B$3:$F$43,5,FALSE))","v":""},"",""]
[null,43,"please select","",{"$f":"IF(C48=\"please select\",\"\",VLOOKUP(C48,'F. UL & OPEX flat rates'!$B$2:$F$43,5,FALSE))","v":""},"","",null,null,null,null,null,null,null,null,null,null,"please select","",{"$f":"IF(R48=\"please select\",\"\",VLOOKUP(R48,'F. UL & OPEX flat rates'!$B$3:$F$43,5,FALSE))","v":""},"",""]
[null,44,"please select","",{"$f":"IF(C49=\"please select\",\"\",VLOOKUP(C49,'F. UL & OPEX flat rates'!$B$2:$F$43,5,FALSE))","v":""},"","",null,null,null,null,null,null,null,null,null,null,"please select","",{"$f":"IF(R49=\"please select\",\"\",VLOOKUP(R49,'F. UL & OPEX flat rates'!$B$3:$F$43,5,FALSE))","v":""},"",""]
[null,45,"please select","",{"$f":"IF(C50=\"please select\",\"\",VLOOKUP(C50,'F. UL & OPEX flat rates'!$B$2:$F$43,5,FALSE))","v":""},"","",null,null,null,null,null,null,null,null,null,null,"please select","",{"$f":"IF(R50=\"please select\",\"\",VLOOKUP(R50,'F. UL & OPEX flat rates'!$B$3:$F$43,5,FALSE))","v":""},"",""]
[null,46,"please select","",{"$f":"IF(C51=\"please select\",\"\",VLOOKUP(C51,'F. UL & OPEX flat rates'!$B$2:$F$43,5,FALSE))","v":""},"","",null,null,null,null,null,null,null,null,null,null,"please select","",{"$f":"IF(R51=\"please select\",\"\",VLOOKUP(R51,'F. UL & OPEX flat rates'!$B$3:$F$43,5,FALSE))","v":""},"",""]
[null,47,"please select","",{"$f":"IF(C52=\"please select\",\"\",VLOOKUP(C52,'F. UL & OPEX flat rates'!$B$2:$F$43,5,FALSE))","v":""},"","",null,null,null,null,null,null,null,null,null,null,"please select","",{"$f":"IF(R52=\"please select\",\"\",VLOOKUP(R52,'F. UL & OPEX flat rates'!$B$3:$F$43,5,FALSE))","v":""},"",""]
[null,48,"please select","",{"$f":"IF(C53=\"please select\",\"\",VLOOKUP(C53,'F. UL & OPEX flat rates'!$B$2:$F$43,5,FALSE))","v":""},"","",null,null,null,null,null,null,null,null,null,null,"please select","",{"$f":"IF(R53=\"please select\",\"\",VLOOKUP(R53,'F. UL & OPEX flat rates'!$B$3:$F$43,5,FALSE))","v":""},"",""]
[null,49,"please select","",{"$f":"IF(C54=\"please select\",\"\",VLOOKUP(C54,'F. UL & OPEX flat rates'!$B$2:$F$43,5,FALSE))","v":""},"","",null,null,null,null,null,null,null,null,null,null,"please select","",{"$f":"IF(R54=\"please select\",\"\",VLOOKUP(R54,'F. UL & OPEX flat rates'!$B$3:$F$43,5,FALSE))","v":""},"",""]
[null,50,"please select","",{"$f":"IF(C55=\"please select\",\"\",VLOOKUP(C55,'F. UL & OPEX flat rates'!$B$2:$F$43,5,FALSE))","v":""},"","",null,null,null,null,null,null,null,null,null,null,"please select","",{"$f":"IF(R55=\"please select\",\"\",VLOOKUP(R55,'F. UL & OPEX flat rates'!$B$3:$F$43,5,FALSE))","v":""},"",""]
[null,51,"please select","",{"$f":"IF(C56=\"please select\",\"\",VLOOKUP(C56,'F. UL & OPEX flat rates'!$B$2:$F$43,5,FALSE))","v":""},"","",null,null,null,null,null,null,null,null,null,null,"please select","",{"$f":"IF(R56=\"please select\",\"\",VLOOKUP(R56,'F. UL & OPEX flat rates'!$B$3:$F$43,5,FALSE))","v":""},"",""]
[null,52,"please select","",{"$f":"IF(C57=\"please select\",\"\",VLOOKUP(C57,'F. UL & OPEX flat rates'!$B$2:$F$43,5,FALSE))","v":""},"","",null,null,null,null,null,null,null,null,null,null,"please select","",{"$f":"IF(R57=\"please select\",\"\",VLOOKUP(R57,'F. UL & OPEX flat rates'!$B$3:$F$43,5,FALSE))","v":""},"",""]
[null,53,"please select","",{"$f":"IF(C58=\"please select\",\"\",VLOOKUP(C58,'F. UL & OPEX flat rates'!$B$2:$F$43,5,FALSE))","v":""},"","",null,null,null,null,null,null,null,null,null,null,"please select","",{"$f":"IF(R58=\"please select\",\"\",VLOOKUP(R58,'F. UL & OPEX flat rates'!$B$3:$F$43,5,FALSE))","v":""},"",""]
[null,54,"please select","",{"$f":"IF(C59=\"please select\",\"\",VLOOKUP(C59,'F. UL & OPEX flat rates'!$B$2:$F$43,5,FALSE))","v":""},"","",null,null,null,null,null,null,null,null,null,null,"please select","",{"$f":"IF(R59=\"please select\",\"\",VLOOKUP(R59,'F. UL & OPEX flat rates'!$B$3:$F$43,5,FALSE))","v":""},"",""]
[null,55,"please select","",{"$f":"IF(C60=\"please select\",\"\",VLOOKUP(C60,'F. UL & OPEX flat rates'!$B$2:$F$43,5,FALSE))","v":""},"","",null,null,null,null,null,null,null,null,null,null,"please select","",{"$f":"IF(R60=\"please select\",\"\",VLOOKUP(R60,'F. UL & OPEX flat rates'!$B$3:$F$43,5,FALSE))","v":""},"",""]
[null,56,"please select","",{"$f":"IF(C61=\"please select\",\"\",VLOOKUP(C61,'F. UL & OPEX flat rates'!$B$2:$F$43,5,FALSE))","v":""},"","",null,null,null,null,null,null,null,null,null,null,"please select","",{"$f":"IF(R61=\"please select\",\"\",VLOOKUP(R61,'F. UL & OPEX flat rates'!$B$3:$F$43,5,FALSE))","v":""},"",""]
[null,57,"please select","",{"$f":"IF(C62=\"please select\",\"\",VLOOKUP(C62,'F. UL & OPEX flat rates'!$B$2:$F$43,5,FALSE))","v":""},"","",null,null,null,null,null,null,null,null,null,null,"please select","",{"$f":"IF(R62=\"please select\",\"\",VLOOKUP(R62,'F. UL & OPEX flat rates'!$B$3:$F$43,5,FALSE))","v":""},"",""]
[null,58,"please select","",{"$f":"IF(C63=\"please select\",\"\",VLOOKUP(C63,'F. UL & OPEX flat rates'!$B$2:$F$43,5,FALSE))","v":""},"","",null,null,null,null,null,null,null,null,null,null,"please select","",{"$f":"IF(R63=\"please select\",\"\",VLOOKUP(R63,'F. UL & OPEX flat rates'!$B$3:$F$43,5,FALSE))","v":""},"",""]
[null,59,"please select","",{"$f":"IF(C64=\"please select\",\"\",VLOOKUP(C64,'F. UL & OPEX flat rates'!$B$2:$F$43,5,FALSE))","v":""},"","",null,null,null,null,null,null,null,null,null,null,"please select","",{"$f":"IF(R64=\"please select\",\"\",VLOOKUP(R64,'F. UL & OPEX flat rates'!$B$3:$F$43,5,FALSE))","v":""},"",""]
[null,60,"please select","",{"$f":"IF(C65=\"please select\",\"\",VLOOKUP(C65,'F. UL & OPEX flat rates'!$B$2:$F$43,5,FALSE))","v":""},"","",null,null,null,null,null,null,null,null,null,null,"please select","",{"$f":"IF(R65=\"please select\",\"\",VLOOKUP(R65,'F. UL & OPEX flat rates'!$B$3:$F$43,5,FALSE))","v":""},"",""]
[null,61,"please select","",{"$f":"IF(C66=\"please select\",\"\",VLOOKUP(C66,'F. UL & OPEX flat rates'!$B$2:$F$43,5,FALSE))","v":""},"","",null,null,null,null,null,null,null,null,null,null,"please select","",{"$f":"IF(R66=\"please select\",\"\",VLOOKUP(R66,'F. UL & OPEX flat rates'!$B$3:$F$43,5,FALSE))","v":""},"",""]
[null,62,"please select","",{"$f":"IF(C67=\"please select\",\"\",VLOOKUP(C67,'F. UL & OPEX flat rates'!$B$2:$F$43,5,FALSE))","v":""},"","",null,null,null,null,null,null,null,null,null,null,"please select","",{"$f":"IF(R67=\"please select\",\"\",VLOOKUP(R67,'F. UL & OPEX flat rates'!$B$3:$F$43,5,FALSE))","v":""},"",""]
[null,63,"please select","",{"$f":"IF(C68=\"please select\",\"\",VLOOKUP(C68,'F. UL & OPEX flat rates'!$B$2:$F$43,5,FALSE))","v":""},"","",null,null,null,null,null,null,null,null,null,null,"please select","",{"$f":"IF(R68=\"please select\",\"\",VLOOKUP(R68,'F. UL & OPEX flat rates'!$B$3:$F$43,5,FALSE))","v":""},"",""]
[null,64,"please select","",{"$f":"IF(C69=\"please select\",\"\",VLOOKUP(C69,'F. UL & OPEX flat rates'!$B$2:$F$43,5,FALSE))","v":""},"","",null,null,null,null,null,null,null,null,null,null,"please select","",{"$f":"IF(R69=\"please select\",\"\",VLOOKUP(R69,'F. UL & OPEX flat rates'!$B$3:$F$43,5,FALSE))","v":""},"",""]
[null,65,"please select","",{"$f":"IF(C70=\"please select\",\"\",VLOOKUP(C70,'F. UL & OPEX flat rates'!$B$2:$F$43,5,FALSE))","v":""},"","",null,null,null,null,null,null,null,null,null,null,"please select","",{"$f":"IF(R70=\"please select\",\"\",VLOOKUP(R70,'F. UL & OPEX flat rates'!$B$3:$F$43,5,FALSE))","v":""},"",""]
[null,66,"please select","",{"$f":"IF(C71=\"please select\",\"\",VLOOKUP(C71,'F. UL & OPEX flat rates'!$B$2:$F$43,5,FALSE))","v":""},"","",null,null,null,null,null,null,null,null,null,null,"please select","",{"$f":"IF(R71=\"please select\",\"\",VLOOKUP(R71,'F. UL & OPEX flat rates'!$B$3:$F$43,5,FALSE))","v":""},"",""]
[null,67,"please select","",{"$f":"IF(C72=\"please select\",\"\",VLOOKUP(C72,'F. UL & OPEX flat rates'!$B$2:$F$43,5,FALSE))","v":""},"","",null,null,null,null,null,null,null,null,null,null,"please select","",{"$f":"IF(R72=\"please select\",\"\",VLOOKUP(R72,'F. UL & OPEX flat rates'!$B$3:$F$43,5,FALSE))","v":""},"",""]
[null,68,"please select","",{"$f":"IF(C73=\"please select\",\"\",VLOOKUP(C73,'F. UL & OPEX flat rates'!$B$2:$F$43,5,FALSE))","v":""},"","",null,null,null,null,null,null,null,null,null,null,"please select","",{"$f":"IF(R73=\"please select\",\"\",VLOOKUP(R73,'F. UL & OPEX flat rates'!$B$3:$F$43,5,FALSE))","v":""},"",""]
[null,69,"please select","",{"$f":"IF(C74=\"please select\",\"\",VLOOKUP(C74,'[2]F. ND u. OPEX-Pauschale'!$B$2:$F$43,5,FALSE))","v":""},"","",null,null,null,null,null,null,null,null,null,null,"please select","",{"$f":"IF(R74=\"please select\",\"\",VLOOKUP(R74,'F. UL & OPEX flat rates'!$B$3:$F$43,5,FALSE))","v":""},"",""]
[null,70,"please select","",{"$f":"IF(C75=\"please select\",\"\",VLOOKUP(C75,'[2]F. ND u. OPEX-Pauschale'!$B$2:$F$43,5,FALSE))","v":""},"","",null,null,null,null,null,null,null,null,null,null,"please select","",{"$f":"IF(R75=\"please select\",\"\",VLOOKUP(R75,'F. UL & OPEX flat rates'!$B$3:$F$43,5,FALSE))","v":""},"",""]
[null,71,"please select","",{"$f":"IF(C76=\"please select\",\"\",VLOOKUP(C76,'[2]F. ND u. OPEX-Pauschale'!$B$2:$F$43,5,FALSE))","v":""},"","",null,null,null,null,null,null,null,null,null,null,"please select","",{"$f":"IF(R76=\"please select\",\"\",VLOOKUP(R76,'F. UL & OPEX flat rates'!$B$3:$F$43,5,FALSE))","v":""},"",""]
[null,72,"please select","",{"$f":"IF(C77=\"please select\",\"\",VLOOKUP(C77,'F. UL & OPEX flat rates'!$B$2:$F$43,5,FALSE))","v":""},"","",null,null,null,null,null,null,null,null,null,null,"please select","",{"$f":"IF(R77=\"please select\",\"\",VLOOKUP(R77,'F. UL & OPEX flat rates'!$B$3:$F$43,5,FALSE))","v":""},"",""]
[null,73,"please select","",{"$f":"IF(C78=\"please select\",\"\",VLOOKUP(C78,'F. UL & OPEX flat rates'!$B$2:$F$43,5,FALSE))","v":""},"","",null,null,null,null,null,null,null,null,null,null,"please select","",{"$f":"IF(R78=\"please select\",\"\",VLOOKUP(R78,'F. UL & OPEX flat rates'!$B$3:$F$43,5,FALSE))","v":""},"",""]
[null,74,"please select","",{"$f":"IF(C79=\"please select\",\"\",VLOOKUP(C79,'F. UL & OPEX flat rates'!$B$2:$F$43,5,FALSE))","v":""},"","",null,null,null,null,null,null,null,null,null,null,"please select","",{"$f":"IF(R79=\"please select\",\"\",VLOOKUP(R79,'F. UL & OPEX flat rates'!$B$3:$F$43,5,FALSE))","v":""},"",""]
[null,75,"please select","",{"$f":"IF(C80=\"please select\",\"\",VLOOKUP(C80,'F. UL & OPEX flat rates'!$B$2:$F$43,5,FALSE))","v":""},"","",null,null,null,null,null,null,null,null,null,null,"please select","",{"$f":"IF(R80=\"please select\",\"\",VLOOKUP(R80,'F. UL & OPEX flat rates'!$B$3:$F$43,5,FALSE))","v":""},"",""]
[null,76,"please select","",{"$f":"IF(C81=\"please select\",\"\",VLOOKUP(C81,'F. UL & OPEX flat rates'!$B$2:$F$43,5,FALSE))","v":""},"","",null,null,null,null,null,null,null,null,null,null,"please select","",{"$f":"IF(R81=\"please select\",\"\",VLOOKUP(R81,'F. UL & OPEX flat rates'!$B$3:$F$43,5,FALSE))","v":""},"",""]
[null,77,"please select","",{"$f":"IF(C82=\"please select\",\"\",VLOOKUP(C82,'F. UL & OPEX flat rates'!$B$2:$F$43,5,FALSE))","v":""},"","",null,null,null,null,null,null,null,null,null,null,"please select","",{"$f":"IF(R82=\"please select\",\"\",VLOOKUP(R82,'F. UL & OPEX flat rates'!$B$3:$F$43,5,FALSE))","v":""},"",""]
[null,78,"please select","",{"$f":"IF(C83=\"please select\",\"\",VLOOKUP(C83,'F. UL & OPEX flat rates'!$B$2:$F$43,5,FALSE))","v":""},"","",null,null,null,null,null,null,null,null,null,null,"please select","",{"$f":"IF(R83=\"please select\",\"\",VLOOKUP(R83,'F. UL & OPEX flat rates'!$B$3:$F$43,5,FALSE))","v":""},"",""]
[null,79,"please select","",{"$f":"IF(C84=\"please select\",\"\",VLOOKUP(C84,'F. UL & OPEX flat rates'!$B$2:$F$43,5,FALSE))","v":""},"","",null,null,null,null,null,null,null,null,null,null,"please select","",{"$f":"IF(R84=\"please select\",\"\",VLOOKUP(R84,'F. UL & OPEX flat rates'!$B$3:$F$43,5,FALSE))","v":""},"",""]
[null,80,"please select","",{"$f":"IF(C85=\"please select\",\"\",VLOOKUP(C85,'F. UL & OPEX flat rates'!$B$2:$F$43,5,FALSE))","v":""},"","",null,null,null,null,null,null,null,null,null,null,"please select","",{"$f":"IF(R85=\"please select\",\"\",VLOOKUP(R85,'F. UL & OPEX flat rates'!$B$3:$F$43,5,FALSE))","v":""},"",""]
[null,81,"please select","",{"$f":"IF(C86=\"please select\",\"\",VLOOKUP(C86,'F. UL & OPEX flat rates'!$B$2:$F$43,5,FALSE))","v":""},"","",null,null,null,null,null,null,null,null,null,null,"please select","",{"$f":"IF(R86=\"please select\",\"\",VLOOKUP(R86,'F. UL & OPEX flat rates'!$B$3:$F$43,5,FALSE))","v":""},"",""]
[null,82,"please select","",{"$f":"IF(C87=\"please select\",\"\",VLOOKUP(C87,'F. UL & OPEX flat rates'!$B$2:$F$43,5,FALSE))","v":""},"","",null,null,null,null,null,null,null,null,null,null,"please select","",{"$f":"IF(R87=\"please select\",\"\",VLOOKUP(R87,'F. UL & OPEX flat rates'!$B$3:$F$43,5,FALSE))","v":""},"",""]
[null,83,"please select","",{"$f":"IF(C88=\"please select\",\"\",VLOOKUP(C88,'F. UL & OPEX flat rates'!$B$2:$F$43,5,FALSE))","v":""},"","",null,null,null,null,null,null,null,null,null,null,"please select","",{"$f":"IF(R88=\"please select\",\"\",VLOOKUP(R88,'F. UL & OPEX flat rates'!$B$3:$F$43,5,FALSE))","v":""},"",""]
[null,84,"please select","",{"$f":"IF(C89=\"please select\",\"\",VLOOKUP(C89,'F. UL & OPEX flat rates'!$B$2:$F$43,5,FALSE))","v":""},"","",null,null,null,null,null,null,null,null,null,null,"please select","",{"$f":"IF(R89=\"please select\",\"\",VLOOKUP(R89,'F. UL & OPEX flat rates'!$B$3:$F$43,5,FALSE))","v":""},"",""]
[null,85,"please select","",{"$f":"IF(C90=\"please select\",\"\",VLOOKUP(C90,'F. UL & OPEX flat rates'!$B$2:$F$43,5,FALSE))","v":""},"","",null,null,null,null,null,null,null,null,null,null,"please select","",{"$f":"IF(R90=\"please select\",\"\",VLOOKUP(R90,'F. UL & OPEX flat rates'!$B$3:$F$43,5,FALSE))","v":""},"",""]
[null,86,"please select","",{"$f":"IF(C91=\"please select\",\"\",VLOOKUP(C91,'F. UL & OPEX flat rates'!$B$2:$F$43,5,FALSE))","v":""},"","",null,null,null,null,null,null,null,null,null,null,"please select","",{"$f":"IF(R91=\"please select\",\"\",VLOOKUP(R91,'F. UL & OPEX flat rates'!$B$3:$F$43,5,FALSE))","v":""},"",""]
[null,87,"please select","",{"$f":"IF(C92=\"please select\",\"\",VLOOKUP(C92,'F. UL & OPEX flat rates'!$B$2:$F$43,5,FALSE))","v":""},"","",null,null,null,null,null,null,null,null,null,null,"please select","",{"$f":"IF(R92=\"please select\",\"\",VLOOKUP(R92,'F. UL & OPEX flat rates'!$B$3:$F$43,5,FALSE))","v":""},"",""]
[null,88,"please select","",{"$f":"IF(C93=\"please select\",\"\",VLOOKUP(C93,'F. UL & OPEX flat rates'!$B$2:$F$43,5,FALSE))","v":""},"","",null,null,null,null,null,null,null,null,null,null,"please select","",{"$f":"IF(R93=\"please select\",\"\",VLOOKUP(R93,'F. UL & OPEX flat rates'!$B$3:$F$43,5,FALSE))","v":""},"",""]
[null,89,"please select","",{"$f":"IF(C94=\"please select\",\"\",VLOOKUP(C94,'F. UL & OPEX flat rates'!$B$2:$F$43,5,FALSE))","v":""},"","",null,null,null,null,null,null,null,null,null,null,"please select","",{"$f":"IF(R94=\"please select\",\"\",VLOOKUP(R94,'F. UL & OPEX flat rates'!$B$3:$F$43,5,FALSE))","v":""},"",""]
[null,90,"please select","",{"$f":"IF(C95=\"please select\",\"\",VLOOKUP(C95,'F. UL & OPEX flat rates'!$B$2:$F$43,5,FALSE))","v":""},"","",null,null,null,null,null,null,null,null,null,null,"please select","",{"$f":"IF(R95=\"please select\",\"\",VLOOKUP(R95,'F. UL & OPEX flat rates'!$B$3:$F$43,5,FALSE))","v":""},"",""]
[null,91,"please select","",{"$f":"IF(C96=\"please select\",\"\",VLOOKUP(C96,'F. UL & OPEX flat rates'!$B$2:$F$43,5,FALSE))","v":""},"","",null,null,null,null,null,null,null,null,null,null,"please select","",{"$f":"IF(R96=\"please select\",\"\",VLOOKUP(R96,'F. UL & OPEX flat rates'!$B$3:$F$43,5,FALSE))","v":""},"",""]
[null,92,"please select","",{"$f":"IF(C97=\"please select\",\"\",VLOOKUP(C97,'F. UL & OPEX flat rates'!$B$2:$F$43,5,FALSE))","v":""},"","",null,null,null,null,null,null,null,null,null,null,"please select","",{"$f":"IF(R97=\"please select\",\"\",VLOOKUP(R97,'F. UL & OPEX flat rates'!$B$3:$F$43,5,FALSE))","v":""},"",""]
[null,93,"please select","",{"$f":"IF(C98=\"please select\",\"\",VLOOKUP(C98,'F. UL & OPEX flat rates'!$B$2:$F$43,5,FALSE))","v":""},"","",null,null,null,null,null,null,null,null,null,null,"please select","",{"$f":"IF(R98=\"please select\",\"\",VLOOKUP(R98,'F. UL & OPEX flat rates'!$B$3:$F$43,5,FALSE))","v":""},"",""]
[null,94,"please select","",{"$f":"IF(C99=\"please select\",\"\",VLOOKUP(C99,'F. UL & OPEX flat rates'!$B$2:$F$43,5,FALSE))","v":""},"","",null,null,null,null,null,null,null,null,null,null,"please select","",{"$f":"IF(R99=\"please select\",\"\",VLOOKUP(R99,'F. UL & OPEX flat rates'!$B$3:$F$43,5,FALSE))","v":""},"",""]
[null,95,"please select","",{"$f":"IF(C100=\"please select\",\"\",VLOOKUP(C100,'F. UL & OPEX flat rates'!$B$2:$F$43,5,FALSE))","v":""},"","",null,null,null,null,null,null,null,null,null,null,"please select","",{"$f":"IF(R100=\"please select\",\"\",VLOOKUP(R100,'F. UL & OPEX flat rates'!$B$3:$F$43,5,FALSE))","v":""},"",""]
[null,96,"please select","",{"$f":"IF(C101=\"please select\",\"\",VLOOKUP(C101,'F. UL & OPEX flat rates'!$B$2:$F$43,5,FALSE))","v":""},"","",null,null,null,null,null,null,null,null,null,null,"please select","",{"$f":"IF(R101=\"please select\",\"\",VLOOKUP(R101,'F. UL & OPEX flat rates'!$B$3:$F$43,5,FALSE))","v":""},"",""]
[null,97,"please select","",{"$f":"IF(C102=\"please select\",\"\",VLOOKUP(C102,'F. UL & OPEX flat rates'!$B$2:$F$43,5,FALSE))","v":""},"","",null,null,null,null,null,null,null,null,null,null,"please select","",{"$f":"IF(R102=\"please select\",\"\",VLOOKUP(R102,'F. UL & OPEX flat rates'!$B$3:$F$43,5,FALSE))","v":""},"",""]
[null,98,"please select","",{"$f":"IF(C103=\"please select\",\"\",VLOOKUP(C103,'F. UL & OPEX flat rates'!$B$2:$F$43,5,FALSE))","v":""},"","",null,null,null,null,null,null,null,null,null,null,"please select","",{"$f":"IF(R103=\"please select\",\"\",VLOOKUP(R103,'F. UL & OPEX flat rates'!$B$3:$F$43,5,FALSE))","v":""},"",""]
[null,99,"please select","",{"$f":"IF(C104=\"please select\",\"\",VLOOKUP(C104,'F. UL & OPEX flat rates'!$B$2:$F$43,5,FALSE))","v":""},"","",null,null,null,null,null,null,null,null,null,null,"please select","",{"$f":"IF(R104=\"please select\",\"\",VLOOKUP(R104,'F. UL & OPEX flat rates'!$B$3:$F$43,5,FALSE))","v":""},"",""]
[null,100,"please select","",{"$f":"IF(C105=\"please select\",\"\",VLOOKUP(C105,'F. UL & OPEX flat rates'!$B$2:$F$43,5,FALSE))","v":""},"","",null,null,null,null,null,null,null,null,null,null,"please select","",{"$f":"IF(R105=\"please select\",\"\",VLOOKUP(R105,'F. UL & OPEX flat rates'!$B$3:$F$43,5,FALSE))","v":""},"",""]
[null,101,"please select","",{"$f":"IF(C106=\"please select\",\"\",VLOOKUP(C106,'F. UL & OPEX flat rates'!$B$2:$F$43,5,FALSE))","v":""},"","",null,null,null,null,null,null,null,null,null,null,"please select","",{"$f":"IF(R106=\"please select\",\"\",VLOOKUP(R106,'F. UL & OPEX flat rates'!$B$3:$F$43,5,FALSE))","v":""},"",""]
[null,102,"please select","",{"$f":"IF(C107=\"please select\",\"\",VLOOKUP(C107,'F. UL & OPEX flat rates'!$B$2:$F$43,5,FALSE))","v":""},"","",null,null,null,null,null,null,null,null,null,null,"please select","",{"$f":"IF(R107=\"please select\",\"\",VLOOKUP(R107,'F. UL & OPEX flat rates'!$B$3:$F$43,5,FALSE))","v":""},"",""]
[null,103,"please select","",{"$f":"IF(C108=\"please select\",\"\",VLOOKUP(C108,'F. UL & OPEX flat rates'!$B$2:$F$43,5,FALSE))","v":""},"","",null,null,null,null,null,null,null,null,null,null,"please select","",{"$f":"IF(R108=\"please select\",\"\",VLOOKUP(R108,'F. UL & OPEX flat rates'!$B$3:$F$43,5,FALSE))","v":""},"",""]
[null,104,"please select","",{"$f":"IF(C109=\"please select\",\"\",VLOOKUP(C109,'F. UL & OPEX flat rates'!$B$2:$F$43,5,FALSE))","v":""},"","",null,null,null,null,null,null,null,null,null,null,"please select","",{"$f":"IF(R109=\"please select\",\"\",VLOOKUP(R109,'F. UL & OPEX flat rates'!$B$3:$F$43,5,FALSE))","v":""},"",""]
[null,105,"please select","",{"$f":"IF(C110=\"please select\",\"\",VLOOKUP(C110,'F. UL & OPEX flat rates'!$B$2:$F$43,5,FALSE))","v":""},"","",null,null,null,null,null,null,null,null,null,null,"please select","",{"$f":"IF(R110=\"please select\",\"\",VLOOKUP(R110,'F. UL & OPEX flat rates'!$B$3:$F$43,5,FALSE))","v":""},"",""]
[null,106,"please select","",{"$f":"IF(C111=\"please select\",\"\",VLOOKUP(C111,'F. UL & OPEX flat rates'!$B$2:$F$43,5,FALSE))","v":""},"","",null,null,null,null,null,null,null,null,null,null,"please select","",{"$f":"IF(R111=\"please select\",\"\",VLOOKUP(R111,'F. UL & OPEX flat rates'!$B$3:$F$43,5,FALSE))","v":""},"",""]
[null,107,"please select","",{"$f":"IF(C112=\"please select\",\"\",VLOOKUP(C112,'F. UL & OPEX flat rates'!$B$2:$F$43,5,FALSE))","v":""},"","",null,null,null,null,null,null,null,null,null,null,"please select","",{"$f":"IF(R112=\"please select\",\"\",VLOOKUP(R112,'F. UL & OPEX flat rates'!$B$3:$F$43,5,FALSE))","v":""},"",""]
[null,108,"please select","",{"$f":"IF(C113=\"please select\",\"\",VLOOKUP(C113,'F. UL & OPEX flat rates'!$B$2:$F$43,5,FALSE))","v":""},"","",null,null,null,null,null,null,null,null,null,null,"please select","",{"$f":"IF(R113=\"please select\",\"\",VLOOKUP(R113,'F. UL & OPEX flat rates'!$B$3:$F$43,5,FALSE))","v":""},"",""]
[null,109,"please select","",{"$f":"IF(C114=\"please select\",\"\",VLOOKUP(C114,'F. UL & OPEX flat rates'!$B$2:$F$43,5,FALSE))","v":""},"","",null,null,null,null,null,null,null,null,null,null,"please select","",{"$f":"IF(R114=\"please select\",\"\",VLOOKUP(R114,'F. UL & OPEX flat rates'!$B$3:$F$43,5,FALSE))","v":""},"",""]
[null,110,"please select","",{"$f":"IF(C115=\"please select\",\"\",VLOOKUP(C115,'F. UL & OPEX flat rates'!$B$2:$F$43,5,FALSE))","v":""},"","",null,null,null,null,null,null,null,null,null,null,"please select","",{"$f":"IF(R115=\"please select\",\"\",VLOOKUP(R115,'F. UL & OPEX flat rates'!$B$3:$F$43,5,FALSE))","v":""},"",""]
[null,111,"please select","",{"$f":"IF(C116=\"please select\",\"\",VLOOKUP(C116,'F. UL & OPEX flat rates'!$B$2:$F$43,5,FALSE))","v":""},"","",null,null,null,null,null,null,null,null,null,null,"please select","",{"$f":"IF(R116=\"please select\",\"\",VLOOKUP(R116,'F. UL & OPEX flat rates'!$B$3:$F$43,5,FALSE))","v":""},"",""]
[null,112,"please select","",{"$f":"IF(C117=\"please select\",\"\",VLOOKUP(C117,'F. UL & OPEX flat rates'!$B$2:$F$43,5,FALSE))","v":""},"","",null,null,null,null,null,null,null,null,null,null,"please select","",{"$f":"IF(R117=\"please select\",\"\",VLOOKUP(R117,'F. UL & OPEX flat rates'!$B$3:$F$43,5,FALSE))","v":""},"",""]
[null,113,"please select","",{"$f":"IF(C118=\"please select\",\"\",VLOOKUP(C118,'F. UL & OPEX flat rates'!$B$2:$F$43,5,FALSE))","v":""},"","",null,null,null,null,null,null,null,null,null,null,"please select","",{"$f":"IF(R118=\"please select\",\"\",VLOOKUP(R118,'F. UL & OPEX flat rates'!$B$3:$F$43,5,FALSE))","v":""},"",""]
[null,114,"please select","",{"$f":"IF(C119=\"please select\",\"\",VLOOKUP(C119,'F. UL & OPEX flat rates'!$B$2:$F$43,5,FALSE))","v":""},"","",null,null,null,null,null,null,null,null,null,null,"please select","",{"$f":"IF(R119=\"please select\",\"\",VLOOKUP(R119,'F. UL & OPEX flat rates'!$B$3:$F$43,5,FALSE))","v":""},"",""]
[null,115,"please select","",{"$f":"IF(C120=\"please select\",\"\",VLOOKUP(C120,'F. UL & OPEX flat rates'!$B$2:$F$43,5,FALSE))","v":""},"","",null,null,null,null,null,null,null,null,null,null,"please select","",{"$f":"IF(R120=\"please select\",\"\",VLOOKUP(R120,'F. UL & OPEX flat rates'!$B$3:$F$43,5,FALSE))","v":""},"",""]
[null,116,"please select","",{"$f":"IF(C121=\"please select\",\"\",VLOOKUP(C121,'F. UL & OPEX flat rates'!$B$2:$F$43,5,FALSE))","v":""},"","",null,null,null,null,null,null,null,null,null,null,"please select","",{"$f":"IF(R121=\"please select\",\"\",VLOOKUP(R121,'F. UL & OPEX flat rates'!$B$3:$F$43,5,FALSE))","v":""},"",""]
[null,117,"please select","",{"$f":"IF(C122=\"please select\",\"\",VLOOKUP(C122,'F. UL & OPEX flat rates'!$B$2:$F$43,5,FALSE))","v":""},"","",null,null,null,null,null,null,null,null,null,null,"please select","",{"$f":"IF(R122=\"please select\",\"\",VLOOKUP(R122,'F. UL & OPEX flat rates'!$B$3:$F$43,5,FALSE))","v":""},"",""]
[null,118,"please select","",{"$f":"IF(C123=\"please select\",\"\",VLOOKUP(C123,'F. UL & OPEX flat rates'!$B$2:$F$43,5,FALSE))","v":""},"","",null,null,null,null,null,null,null,null,null,null,"please select","",{"$f":"IF(R123=\"please select\",\"\",VLOOKUP(R123,'F. UL & OPEX flat rates'!$B$3:$F$43,5,FALSE))","v":""},"",""]
[null,119,"please select","",{"$f":"IF(C124=\"please select\",\"\",VLOOKUP(C124,'F. UL & OPEX flat rates'!$B$2:$F$43,5,FALSE))","v":""},"","",null,null,null,null,null,null,null,null,null,null,"please select","",{"$f":"IF(R124=\"please select\",\"\",VLOOKUP(R124,'F. UL & OPEX flat rates'!$B$3:$F$43,5,FALSE))","v":""},"",""]
[null,120,"please select","",{"$f":"IF(C125=\"please select\",\"\",VLOOKUP(C125,'F. UL & OPEX flat rates'!$B$2:$F$43,5,FALSE))","v":""},"","",null,null,null,null,null,null,null,null,null,null,"please select","",{"$f":"IF(R125=\"please select\",\"\",VLOOKUP(R125,'F. UL & OPEX flat rates'!$B$3:$F$43,5,FALSE))","v":""},"",""]
[null,121,"please select","",{"$f":"IF(C126=\"please select\",\"\",VLOOKUP(C126,'F. UL & OPEX flat rates'!$B$2:$F$43,5,FALSE))","v":""},"","",null,null,null,null,null,null,null,null,null,null,"please select","",{"$f":"IF(R126=\"please select\",\"\",VLOOKUP(R126,'F. UL & OPEX flat rates'!$B$3:$F$43,5,FALSE))","v":""},"",""]
[null,122,"please select","",{"$f":"IF(C127=\"please select\",\"\",VLOOKUP(C127,'F. UL & OPEX flat rates'!$B$2:$F$43,5,FALSE))","v":""},"","",null,null,null,null,null,null,null,null,null,null,"please select","",{"$f":"IF(R127=\"please select\",\"\",VLOOKUP(R127,'F. UL & OPEX flat rates'!$B$3:$F$43,5,FALSE))","v":""},"",""]
[null,123,"please select","",{"$f":"IF(C128=\"please select\",\"\",VLOOKUP(C128,'F. UL & OPEX flat rates'!$B$2:$F$43,5,FALSE))","v":""},"","",null,null,null,null,null,null,null,null,null,null,"please select","",{"$f":"IF(R128=\"please select\",\"\",VLOOKUP(R128,'F. UL & OPEX flat rates'!$B$3:$F$43,5,FALSE))","v":""},"",""]
[null,124,"please select","",{"$f":"IF(C129=\"please select\",\"\",VLOOKUP(C129,'F. UL & OPEX flat rates'!$B$2:$F$43,5,FALSE))","v":""},"","",null,null,null,null,null,null,null,null,null,null,"please select","",{"$f":"IF(R129=\"please select\",\"\",VLOOKUP(R129,'F. UL & OPEX flat rates'!$B$3:$F$43,5,FALSE))","v":""},"",""]
[null,125,"please select","",{"$f":"IF(C130=\"please select\",\"\",VLOOKUP(C130,'F. UL & OPEX flat rates'!$B$2:$F$43,5,FALSE))","v":""},"","",null,null,null,null,null,null,null,null,null,null,"please select","",{"$f":"IF(R130=\"please select\",\"\",VLOOKUP(R130,'F. UL & OPEX flat rates'!$B$3:$F$43,5,FALSE))","v":""},"",""]
[null,126,"please select","",{"$f":"IF(C131=\"please select\",\"\",VLOOKUP(C131,'F. UL & OPEX flat rates'!$B$2:$F$43,5,FALSE))","v":""},"","",null,null,null,null,null,null,null,null,null,null,"please select","",{"$f":"IF(R131=\"please select\",\"\",VLOOKUP(R131,'F. UL & OPEX flat rates'!$B$3:$F$43,5,FALSE))","v":""},"",""]
[null,127,"please select","",{"$f":"IF(C132=\"please select\",\"\",VLOOKUP(C132,'F. UL & OPEX flat rates'!$B$2:$F$43,5,FALSE))","v":""},"","",null,null,null,null,null,null,null,null,null,null,"please select","",{"$f":"IF(R132=\"please select\",\"\",VLOOKUP(R132,'F. UL & OPEX flat rates'!$B$3:$F$43,5,FALSE))","v":""},"",""]
[null,128,"please select","",{"$f":"IF(C133=\"please select\",\"\",VLOOKUP(C133,'F. UL & OPEX flat rates'!$B$2:$F$43,5,FALSE))","v":""},"","",null,null,null,null,null,null,null,null,null,null,"please select","",{"$f":"IF(R133=\"please select\",\"\",VLOOKUP(R133,'F. UL & OPEX flat rates'!$B$3:$F$43,5,FALSE))","v":""},"",""]
[null,129,"please select","",{"$f":"IF(C134=\"please select\",\"\",VLOOKUP(C134,'F. UL & OPEX flat rates'!$B$2:$F$43,5,FALSE))","v":""},"","",null,null,null,null,null,null,null,null,null,null,"please select","",{"$f":"IF(R134=\"please select\",\"\",VLOOKUP(R134,'F. UL & OPEX flat rates'!$B$3:$F$43,5,FALSE))","v":""},"",""]
[null,130,"please select","",{"$f":"IF(C135=\"please select\",\"\",VLOOKUP(C135,'F. UL & OPEX flat rates'!$B$2:$F$43,5,FALSE))","v":""},"","",null,null,null,null,null,null,null,null,null,null,"please select","",{"$f":"IF(R135=\"please select\",\"\",VLOOKUP(R135,'F. UL & OPEX flat rates'!$B$3:$F$43,5,FALSE))","v":""},"",""]
[null,131,"please select","",{"$f":"IF(C136=\"please select\",\"\",VLOOKUP(C136,'F. UL & OPEX flat rates'!$B$2:$F$43,5,FALSE))","v":""},"","",null,null,null,null,null,null,null,null,null,null,"please select","",{"$f":"IF(R136=\"please select\",\"\",VLOOKUP(R136,'F. UL & OPEX flat rates'!$B$3:$F$43,5,FALSE))","v":""},"",""]
[null,132,"please select","",{"$f":"IF(C137=\"please select\",\"\",VLOOKUP(C137,'F. UL & OPEX flat rates'!$B$2:$F$43,5,FALSE))","v":""},"","",null,null,null,null,null,null,null,null,null,null,"please select","",{"$f":"IF(R137=\"please select\",\"\",VLOOKUP(R137,'F. UL & OPEX flat rates'!$B$3:$F$43,5,FALSE))","v":""},"",""]
[null,133,"please select","",{"$f":"IF(C138=\"please select\",\"\",VLOOKUP(C138,'F. UL & OPEX flat rates'!$B$2:$F$43,5,FALSE))","v":""},"","",null,null,null,null,null,null,null,null,null,null,"please select","",{"$f":"IF(R138=\"please select\",\"\",VLOOKUP(R138,'F. UL & OPEX flat rates'!$B$3:$F$43,5,FALSE))","v":""},"",""]
[null,134,"please select","",{"$f":"IF(C139=\"please select\",\"\",VLOOKUP(C139,'F. UL & OPEX flat rates'!$B$2:$F$43,5,FALSE))","v":""},"","",null,null,null,null,null,null,null,null,null,null,"please select","",{"$f":"IF(R139=\"please select\",\"\",VLOOKUP(R139,'F. UL & OPEX flat rates'!$B$3:$F$43,5,FALSE))","v":""},"",""]
[null,135,"please select","",{"$f":"IF(C140=\"please select\",\"\",VLOOKUP(C140,'F. UL & OPEX flat rates'!$B$2:$F$43,5,FALSE))","v":""},"","",null,null,null,null,null,null,null,null,null,null,"please select","",{"$f":"IF(R140=\"please select\",\"\",VLOOKUP(R140,'F. UL & OPEX flat rates'!$B$3:$F$43,5,FALSE))","v":""},"",""]
[null,136,"please select","",{"$f":"IF(C141=\"please select\",\"\",VLOOKUP(C141,'F. UL & OPEX flat rates'!$B$2:$F$43,5,FALSE))","v":""},"","",null,null,null,null,null,null,null,null,null,null,"please select","",{"$f":"IF(R141=\"please select\",\"\",VLOOKUP(R141,'F. UL & OPEX flat rates'!$B$3:$F$43,5,FALSE))","v":""},"",""]
[null,137,"please select","",{"$f":"IF(C142=\"please select\",\"\",VLOOKUP(C142,'F. UL & OPEX flat rates'!$B$2:$F$43,5,FALSE))","v":""},"","",null,null,null,null,null,null,null,null,null,null,"please select","",{"$f":"IF(R142=\"please select\",\"\",VLOOKUP(R142,'F. UL & OPEX flat rates'!$B$3:$F$43,5,FALSE))","v":""},"",""]
[null,138,"please select","",{"$f":"IF(C143=\"please select\",\"\",VLOOKUP(C143,'F. UL & OPEX flat rates'!$B$2:$F$43,5,FALSE))","v":""},"","",null,null,null,null,null,null,null,null,null,null,"please select","",{"$f":"IF(R143=\"please select\",\"\",VLOOKUP(R143,'F. UL & OPEX flat rates'!$B$3:$F$43,5,FALSE))","v":""},"",""]
[null,139,"please select","",{"$f":"IF(C144=\"please select\",\"\",VLOOKUP(C144,'F. UL & OPEX flat rates'!$B$2:$F$43,5,FALSE))","v":""},"","",null,null,null,null,null,null,null,null,null,null,"please select","",{"$f":"IF(R144=\"please select\",\"\",VLOOKUP(R144,'F. UL & OPEX flat rates'!$B$3:$F$43,5,FALSE))","v":""},"",""]
[null,140,"please select","",{"$f":"IF(C145=\"please select\",\"\",VLOOKUP(C145,'F. UL & OPEX flat rates'!$B$2:$F$43,5,FALSE))","v":""},"","",null,null,null,null,null,null,null,null,null,null,"please select","",{"$f":"IF(R145=\"please select\",\"\",VLOOKUP(R145,'F. UL & OPEX flat rates'!$B$3:$F$43,5,FALSE))","v":""},"",""]
[null,141,"please select","",{"$f":"IF(C146=\"please select\",\"\",VLOOKUP(C146,'F. UL & OPEX flat rates'!$B$2:$F$43,5,FALSE))","v":""},"","",null,null,null,null,null,null,null,null,null,null,"please select","",{"$f":"IF(R146=\"please select\",\"\",VLOOKUP(R146,'F. UL & OPEX flat rates'!$B$3:$F$43,5,FALSE))","v":""},"",""]
[null,142,"please select","",{"$f":"IF(C147=\"please select\",\"\",VLOOKUP(C147,'F. UL & OPEX flat rates'!$B$2:$F$43,5,FALSE))","v":""},"","",null,null,null,null,null,null,null,null,null,null,"please select","",{"$f":"IF(R147=\"please select\",\"\",VLOOKUP(R147,'F. UL & OPEX flat rates'!$B$3:$F$43,5,FALSE))","v":""},"",""]
[null,143,"please select","",{"$f":"IF(C148=\"please select\",\"\",VLOOKUP(C148,'F. UL & OPEX flat rates'!$B$2:$F$43,5,FALSE))","v":""},"","",null,null,null,null,null,null,null,null,null,null,"please select","",{"$f":"IF(R148=\"please select\",\"\",VLOOKUP(R148,'F. UL & OPEX flat rates'!$B$3:$F$43,5,FALSE))","v":""},"",""]
[null,144,"please select","",{"$f":"IF(C149=\"please select\",\"\",VLOOKUP(C149,'F. UL & OPEX flat rates'!$B$2:$F$43,5,FALSE))","v":""},"","",null,null,null,null,null,null,null,null,null,null,"please select",null,{"$f":"IF(R149=\"please select\",\"\",VLOOKUP(R149,'F. UL & OPEX flat rates'!$B$3:$F$43,5,FALSE))","v":""}]
[null,"weitere Zeilen einfügbar"]
[]
[]
[]
[]
[]
[]
[]
[]
[]
[]
[]
[]
[]
[]
[]
[]
[]
[]
[]
[]
[]
[]
[]
[]
[]
[]
[]
[]
[]
[]
[]
[]
[]
[]
[]
[]
[]
[]
[]
[]
[]
[]
[]
[]
[]
[]
[]
[]
[]
[]
[]
[]
[]
[]
[]
[]
[]
[]
[]
[]
[null,null,null,null,null,null,null,null,null,null,null,null,null,null,null,null,null,"please select"]
[null,null,null,null,null,null,null,null,null,null,null,null,null,null,null,null,null,1,1,null,null,null,null,2007]
[null,null,"please select",null,null,null,null,null,null,null,null,null,null,null,null,null,null,2,2,null,null,null,null,2008]
[null,null,1,null,null,null,null,null,2007,null,null,null,null,null,null,null,null,3,3,null,null,null,null,2009]
[null,null,2,null,null,null,null,null,2008,null,null,null,null,null,null,null,null,4,4,null,null,null,null,2010]
[null,null,3,null,null,null,null,null,2009,null,null,null,null,null,null,null,null,5,5,null,null,null,null,2011]
[null,null,4,null,null,null,null,null,2010,null,null,null,null,null,null,null,null,6,6,null,null,null,null,2012]
[null,null,5,null,null,null,null,null,2011,null,null,null,null,null,null,null,null,7,7,null,null,null,null,2013]
[null,null,6,null,null,null,null,null,2012,null,null,null,null,null,null,null,null,8,8,null,null,null,null,2014]
[null,null,7,null,null,null,null,null,2013,null,null,null,null,null,null,null,null,9,9,null,null,null,null,2015]
[null,null,8,null,null,null,null,null,2014,null,null,null,null,null,null,null,null,10,10,null,null,null,null,2016]
[null,null,9,null,null,null,null,null,2015,null,null,null,null,null,null,null,null,11,11,null,null,null,null,2017]
[null,null,10,null,null,null,null,null,2016,null,null,null,null,null,null,null,null,12,12,null,null,null,null,2018]
[null,null,11,null,null,null,null,null,2017,null,null,null,null,null,null,null,null,13,null,null,null,null,null,2019]
[null,null,12,null,null,null,null,null,2018,null,null,null,null,null,null,null,null,14,null,null,null,null,null,2020]
[null,null,13,null,null,null,null,null,2019,null,null,null,null,null,null,null,null,15,null,null,null,null,null,2021]
[null,null,15,null,null,null,null,null,2020,null,null,null,null,null,null,null,null,16,null,null,null,null,null,2022]
[null,null,16,null,null,null,null,null,2021,null,null,null,null,null,null,null,null,17,null,null,null,null,null,2023]
[null,null,17,null,null,null,null,null,2022,null,null,null,null,null,null,null,null,18,null,null,null,null,null,2024]
[null,null,18,null,null,null,null,null,2023,null,null,null,null,null,null,null,null,19,null,null,null,null,null,2025]
[null,null,19,null,null,null,null,null,2024,null,null,null,null,null,null,null,null,20,null,null,null,null,null,2026]
[null,null,20,null,null,null,null,null,2025,null,null,null,null,null,null,null,null,21,null,null,null,null,null,2027]
[null,null,21,null,null,null,null,null,2026,null,null,null,null,null,null,null,null,22,null,null,null,null,null,2028]
[null,null,22,null,null,null,null,null,2027,null,null,null,null,null,null,null,null,23,null,null,null,null,null,2029]
[null,null,23,null,null,null,null,null,2028,null,null,null,null,null,null,null,null,24,null,null,null,null,null,2030]
[null,null,24,null,null,null,null,null,2029,null,null,null,null,null,null,null,null,25,null,null,null,null,null,2031]
[null,null,25,null,null,null,null,null,2030,null,null,null,null,null,null,null,null,26,null,null,null,null,null,2032]
[null,null,26,null,null,null,null,null,2031,null,null,null,null,null,null,null,null,27,null,null,null,null,null,2033]
[null,null,27,null,null,null,null,null,2032,null,null,null,null,null,null,null,null,28,null,null,null,null,null,2034]
[null,null,28,null,null,null,null,null,2033,null,null,null,null,null,null,null,null,29,null,null,null,null,null,2035]
[null,null,29,null,null,null,null,null,2034,null,null,null,null,null,null,null,null,30,null,null,null,null,null,2036]
[null,null,30,null,null,null,null,null,2035,null,null,null,null,null,null,null,null,31,null,null,null,null,null,2037]
[null,null,31,null,null,null,null,null,2036,null,null,null,null,null,null,null,null,32,null,null,null,null,null,2038]
[null,null,32,null,null,null,null,null,2037,null,null,null,null,null,null,null,null,33,null,null,null,null,null,2039]
[null,null,33,null,null,null,null,null,2038,null,null,null,null,null,null,null,null,34,null,null,null,null,null,2040]
[null,null,34,null,null,null,null,null,2039,null,null,null,null,null,null,null,null,35]
[null,null,35,null,null,null,null,null,2040,null,null,null,null,null,null,null,null,36]
[null,null,36,null,null,null,null,null,null,null,null,null,null,null,null,null,null,37]
[null,null,37,null,null,null,null,null,null,null,null,null,null,null,null,null,null,38]
[null,null,38,null,null,null,null,null,null,null,null,null,null,null,null,null,null,39]
[null,null,39,null,null,null,null,null,null,null,null,null,null,null,null,null,null,40]
[null,null,40]
[null,null,41]

{"sheet":"D. Compression energy","index":9,"n_rows":89,"n_cols":5,"rows_kept":89,"cut":false,"hidden":false,"merged":[]}
[]
[null,"D. Costs for compression energy (predicted values)"]
[]
[null,"Year ","Costs in euros [total]",null,"Explanation: Please enter costs for gas, electricity (used for compression energy) "]
[null,2016,0,null,"and for CO2 certificates"]
[null,2017,0]
[null,2018,0]
[null,2019,0]
[null,2020,0]
[null,2021,0]
[null,2022,0]
[null,2023,0]
[null,2024,0]
[null,2025,2082783.89]
[null,2026,10413918.65]
[null,2027,16662267.949999999]
[null,2028,16662267.949999999]
[null,2029,16662267.949999999]
[null,2030,21869227.280000001]
[null,2031,37490105.259999998]
[null,2032,37490105.259999998]
[null,2033,37490105.259999998]
[null,2034,37490105.259999998]
[null,2035,37490105.259999998]
[null,2036,37490105.259999998]
[null,2037,37490105.259999998]
[null,2038,37490105.259999998]
[null,2039,37490105.259999998]
[null,2040,32803842.109999999]
[null,2041,18745052.629999999]
[null,2042,18745052.629999999]
[null,2043,18745052.629999999]
[null,2044,18745052.629999999]
[null,2045,18745052.629999999]
[null,2046,18745052.629999999]
[null,2047,18745052.629999999]
[null,2048,18745052.629999999]
[null,2049,18745052.629999999]
[null,2050,0]
[null,2051,0]
[null,2052,0]
[null,2053,0]
[null,2054,0]
[null,2055,0]
[null,2056,0]
[null,2057,0]
[null,2058,0]
[null,2059,0]
[null,2060,0]
[null,2061,0]
[null,2062,0]
[null,2063,0]
[null,2064,0]
[null,2065,0]
[null,2066,0]
[null,2067,0]
[null,2068,0]
[null,2069,0]
[null,2070,0]
[null,2071,0]
[null,2072,0]
[null,2073,0]
[null,2074,0]
[null,2075,0]
[null,2076,0]
[null,2077,0]
[null,2078,0]
[null,2079,0]
[null,2080,0]
[null,2081,0]
[null,2082,0]
[null,2083,0]
[null,2084,0]
[null,2085,0]
[null,2086,0]
[null,2087,0]
[null,2088,0]
[null,2089,0]
[null,2090,0]
[null,2091,0]
[null,2092,0]
[null,2093,0]
[null,2094,0]
[null,2095,0]
[null,2096,0]
[null,2097,0]
[null,2098,0]
[null,2099,0]
[null,2100,0]

{"sheet":"E. CIC","index":10,"n_rows":91,"n_cols":88,"rows_kept":91,"cut":false,"hidden":false,"merged":[[90,1,90,2],[1,3,1,88]]}
[null,"E. Contributions to installation costs (CIC)/network connection costs"]
[null,null,"Addition","Release"]
[null,null,null,2016,{"$f":"D3+1","v":2017},2018,2019,2020,2021,2022,2023,2024,2025,2026,2027,2028,2029,2030,2031,2032,2033,2034,2035,2036,2037,2038,2039,2040,2041,2042,2043,2044,2045,2046,2047,2048,2049,2050,{"$f":"AL3+1","v":2051},2052,2053,2054,2055,2056,2057,2058,2059,2060,2061,2062,2063,2064,2065,2066,2067,2068,2069,2070,2071,2072,2073,2074,2075,2076,2077,2078,2079,2080,2081,2082,2083,2084,2085,2086,2087,2088,2089,2090,2091,2092,2093,2094,2095,2096,2097,2098,2099,2100]
[null,2016,0,{"$f":"IF(OR(D$3<$B4,D$3>=$B4+$D$91),\"\",$C4/$D$91)","v":0},0,0,0,0,0,0,0,0,0,0,0,0,0,0,0,0,0,0,0,"","","","","","","","","","","","",{"$f":"IF(OR(AJ$3<$B4,AJ$3>=$B4+$D$91),\"\",$C4/$D$91)","v":""},"","","","","","","","","","","","","","","","","","","","","","","","","","","","","","","",{"$f":"IF(OR(BP$3<$B4,BP$3>=$B4+$D$91),\"\",$C4/$D$91)","v":""},"","","","","","","","","","","","","","","","","","","",""]
[null,2017,0,null,{"$f":"IF(OR(E$3<$B5,E$3>=$B5+$D$91),\"\",$C5/$D$91)","v":0},0,0,0,0,0,0,0,0,0,0,0,0,0,0,0,0,0,0,0,"","","","","","","","","","","","",{"$f":"IF(OR(AK$3<$B5,AK$3>=$B5+$D$91),\"\",$C5/$D$91)","v":""},"","","","","","","","","","","","","","","","","","","","","","","","","","","","","","","",{"$f":"IF(OR(BQ$3<$B5,BQ$3>=$B5+$D$91),\"\",$C5/$D$91)","v":""},"","","","","","","","","","","","","","","","","","",""]
[null,2018,0,null,null,{"$f":"IF(OR(F$3<$B6,F$3>=$B6+$D$91),\"\",$C6/$D$91)","v":0},0,0,0,0,0,0,0,0,0,0,0,0,0,0,0,0,0,0,0,"","","","","","","","","","","","",{"$f":"IF(OR(AL$3<$B6,AL$3>=$B6+$D$91),\"\",$C6/$D$91)","v":""},"","","","","","","","","","","","","","","","","","","","","","","","","","","","","","","",{"$f":"IF(OR(BR$3<$B6,BR$3>=$B6+$D$91),\"\",$C6/$D$91)","v":""},"","","","","","","","","","","","","","","","","",""]
[null,2019,0,null,null,null,{"$f":"IF(OR(G$3<$B7,G$3>=$B7+$D$91),\"\",$C7/$D$91)","v":0},0,0,0,0,0,0,0,0,0,0,0,0,0,0,0,0,0,0,0,"","","","","","","","","","","","",{"$f":"IF(OR(AM$3<$B7,AM$3>=$B7+$D$91),\"\",$C7/$D$91)","v":""},"","","","","","","","","","","","","","","","","","","","","","","","","","","","","","","",{"$f":"IF(OR(BS$3<$B7,BS$3>=$B7+$D$91),\"\",$C7/$D$91)","v":""},"","","","","","","","","","","","","","","","",""]
[null,2020,0,null,null,null,null,{"$f":"IF(OR(H$3<$B8,H$3>=$B8+$D$91),\"\",$C8/$D$91)","v":0},0,0,0,0,0,0,0,0,0,0,0,0,0,0,0,0,0,0,0,"","","","","","","","","","","","",{"$f":"IF(OR(AN$3<$B8,AN$3>=$B8+$D$91),\"\",$C8/$D$91)","v":""},"","","","","","","","","","","","","","","","","","","","","","","","","","","","","","","",{"$f":"IF(OR(BT$3<$B8,BT$3>=$B8+$D$91),\"\",$C8/$D$91)","v":""},"","","","","","","","","","","","","","","",""]
[null,2021,0,null,null,null,null,null,{"$f":"IF(OR(I$3<$B9,I$3>=$B9+$D$91),\"\",$C9/$D$91)","v":0},0,0,0,0,0,0,0,0,0,0,0,0,0,0,0,0,0,0,0,"","","","","","","","","","","","",{"$f":"IF(OR(AO$3<$B9,AO$3>=$B9+$D$91),\"\",$C9/$D$91)","v":""},"","","","","","","","","","","","","","","","","","","","","","","","","","","","","","","",{"$f":"IF(OR(BU$3<$B9,BU$3>=$B9+$D$91),\"\",$C9/$D$91)","v":""},"","","","","","","","","","","","","","",""]
[null,2022,0,null,null,null,null,null,null,{"$f":"IF(OR(J$3<$B10,J$3>=$B10+$D$91),\"\",$C10/$D$91)","v":0},0,0,0,0,0,0,0,0,0,0,0,0,0,0,0,0,0,0,0,"","","","","","","","","","","","",{"$f":"IF(OR(AP$3<$B10,AP$3>=$B10+$D$91),\"\",$C10/$D$91)","v":""},"","","","","","","","","","","","","","","","","","","","","","","","","","","","","","","",{"$f":"IF(OR(BV$3<$B10,BV$3>=$B10+$D$91),\"\",$C10/$D$91)","v":""},"","","","","","","","","","","","","",""]
[null,2023,0,null,null,null,null,null,null,null,{"$f":"IF(OR(K$3<$B11,K$3>=$B11+$D$91),\"\",$C11/$D$91)","v":0},0,0,0,0,0,0,0,0,0,0,0,0,0,0,0,0,0,0,0,"","","","","","","","","","","","",{"$f":"IF(OR(AQ$3<$B11,AQ$3>=$B11+$D$91),\"\",$C11/$D$91)","v":""},"","","","","","","","","","","","","","","","","","","","","","","","","","","","","","","",{"$f":"IF(OR(BW$3<$B11,BW$3>=$B11+$D$91),\"\",$C11/$D$91)","v":""},"","","","","","","","","","","","",""]
[null,2024,0,null,null,null,null,null,null,null,null,{"$f":"IF(OR(L$3<$B12,L$3>=$B12+$D$91),\"\",$C12/$D$91)","v":0},0,0,0,0,0,0,0,0,0,0,0,0,0,0,0,0,0,0,0,"","","","","","","","","","","","",{"$f":"IF(OR(AR$3<$B12,AR$3>=$B12+$D$91),\"\",$C12/$D$91)","v":""},"","","","","","","","","","","","","","","","","","","","","","","","","","","","","","","",{"$f":"IF(OR(BX$3<$B12,BX$3>=$B12+$D$91),\"\",$C12/$D$91)","v":""},"","","","","","","","","","","",""]
[null,2025,0,null,null,null,null,null,null,null,null,null,{"$f":"IF(OR(M$3<$B13,M$3>=$B13+$D$91),\"\",$C13/$D$91)","v":0},0,0,0,0,0,0,0,0,0,0,0,0,0,0,0,0,0,0,0,"","","","","","","","","","","","",{"$f":"IF(OR(AS$3<$B13,AS$3>=$B13+$D$91),\"\",$C13/$D$91)","v":""},"","","","","","","","","","","","","","","","","","","","","","","","","","","","","","","",{"$f":"IF(OR(BY$3<$B13,BY$3>=$B13+$D$91),\"\",$C13/$D$91)","v":""},"","","","","","","","","","",""]
[null,2026,0,null,null,null,null,null,null,null,null,null,null,{"$f":"IF(OR(N$3<$B14,N$3>=$B14+$D$91),\"\",$C14/$D$91)","v":0},0,0,0,0,0,0,0,0,0,0,0,0,0,0,0,0,0,0,0,"","","","","","","","","","","","",{"$f":"IF(OR(AT$3<$B14,AT$3>=$B14+$D$91),\"\",$C14/$D$91)","v":""},"","","","","","","","","","","","","","","","","","","","","","","","","","","","","","","",{"$f":"IF(OR(BZ$3<$B14,BZ$3>=$B14+$D$91),\"\",$C14/$D$91)","v":""},"","","","","","","","","",""]
[null,2027,0,null,null,null,null,null,null,null,null,null,null,null,{"$f":"IF(OR(O$3<$B15,O$3>=$B15+$D$91),\"\",$C15/$D$91)","v":0},0,0,0,0,0,0,0,0,0,0,0,0,0,0,0,0,0,0,0,"","","","","","","","","","","","",{"$f":"IF(OR(AU$3<$B15,AU$3>=$B15+$D$91),\"\",$C15/$D$91)","v":""},"","","","","","","","","","","","","","","","","","","","","","","","","","","","","","","",{"$f":"IF(OR(CA$3<$B15,CA$3>=$B15+$D$91),\"\",$C15/$D$91)","v":""},"","","","","","","","",""]
[null,2028,0,null,null,null,null,null,null,null,null,null,null,null,null,{"$f":"IF(OR(P$3<$B16,P$3>=$B16+$D$91),\"\",$C16/$D$91)","v":0},0,0,0,0,0,0,0,0,0,0,0,0,0,0,0,0,0,0,0,"","","","","","","","","","","","",{"$f":"IF(OR(AV$3<$B16,AV$3>=$B16+$D$91),\"\",$C16/$D$91)","v":""},"","","","","","","","","","","","","","","","","","","","","","","","","","","","","","","",{"$f":"IF(OR(CB$3<$B16,CB$3>=$B16+$D$91),\"\",$C16/$D$91)","v":""},"","","","","","","",""]
[null,2029,0,null,null,null,null,null,null,null,null,null,null,null,null,null,{"$f":"IF(OR(Q$3<$B17,Q$3>=$B17+$D$91),\"\",$C17/$D$91)","v":0},0,0,0,0,0,0,0,0,0,0,0,0,0,0,0,0,0,0,0,"","","","","","","","","","","","",{"$f":"IF(OR(AW$3<$B17,AW$3>=$B17+$D$91),\"\",$C17/$D$91)","v":""},"","","","","","","","","","","","","","","","","","","","","","","","","","","","","","","",{"$f":"IF(OR(CC$3<$B17,CC$3>=$B17+$D$91),\"\",$C17/$D$91)","v":""},"","","","","","",""]
[null,2030,0,null,null,null,null,null,null,null,null,null,null,null,null,null,null,{"$f":"IF(OR(R$3<$B18,R$3>=$B18+$D$91),\"\",$C18/$D$91)","v":0},0,0,0,0,0,0,0,0,0,0,0,0,0,0,0,0,0,0,0,"","","","","","","","","","","","",{"$f":"IF(OR(AX$3<$B18,AX$3>=$B18+$D$91),\"\",$C18/$D$91)","v":""},"","","","","","","","","","","","","","","","","","","","","","","","","","","","","","","",{"$f":"IF(OR(CD$3<$B18,CD$3>=$B18+$D$91),\"\",$C18/$D$91)","v":""},"","","","","",""]
[null,2031,0,null,null,null,null,null,null,null,null,null,null,null,null,null,null,null,{"$f":"IF(OR(S$3<$B19,S$3>=$B19+$D$91),\"\",$C19/$D$91)","v":0},0,0,0,0,0,0,0,0,0,{"$f":"IF(OR(AC$3<$B19,AC$3>=$B19+$D$91),\"\",$C19/$D$91)","v":0},0,0,0,0,0,0,0,0,0,{"$f":"IF(OR(AM$3<$B19,AM$3>=$B19+$D$91),\"\",$C19/$D$91)","v":""},"","","","","","","","","",{"$f":"IF(OR(AW$3<$B19,AW$3>=$B19+$D$91),\"\",$C19/$D$91)","v":""},"","","","","","","","","",{"$f":"IF(OR(BG$3<$B19,BG$3>=$B19+$D$91),\"\",$C19/$D$91)","v":""},"","","","","","","","","",{"$f":"IF(OR(BQ$3<$B19,BQ$3>=$B19+$D$91),\"\",$C19/$D$91)","v":""},"","","","","","","","","",{"$f":"IF(OR(CA$3<$B19,CA$3>=$B19+$D$91),\"\",$C19/$D$91)","v":""},"","","","","","","","",""]
[null,{"$f":"B19+1","v":2032},0,null,null,null,null,null,null,null,null,null,null,null,null,null,null,null,"",0,0,0,0,0,0,0,0,0,0,0,0,0,0,0,0,0,0,0,0,"","","","","","","","","","","","","","","","","","","","","","","","","","","","","","","","","","","","","","","","","","","","","","","","",""]
[null,{"$f":"B20+1","v":2033},0,null,null,null,null,null,null,null,null,null,null,null,null,null,null,null,null,{"$f":"IF(OR(T$3<$B21,T$3>=$B21+$D$91),\"\",$C21/$D$91)","v":""},0,0,0,0,0,0,0,0,0,{"$f":"IF(OR(AD$3<$B21,AD$3>=$B21+$D$91),\"\",$C21/$D$91)","v":0},0,0,0,0,0,0,0,0,0,{"$f":"IF(OR(AN$3<$B21,AN$3>=$B21+$D$91),\"\",$C21/$D$91)","v":0},"","","","","","","","","",{"$f":"IF(OR(AX$3<$B21,AX$3>=$B21+$D$91),\"\",$C21/$D$91)","v":""},"","","","","","","","","",{"$f":"IF(OR(BH$3<$B21,BH$3>=$B21+$D$91),\"\",$C21/$D$91)","v":""},"","","","","","","","","",{"$f":"IF(OR(BR$3<$B21,BR$3>=$B21+$D$91),\"\",$C21/$D$91)","v":""},"","","","","","","","","",{"$f":"IF(OR(CB$3<$B21,CB$3>=$B21+$D$91),\"\",$C21/$D$91)","v":""},"","","","","","","",""]
[null,2034,0,null,null,null,null,null,null,null,null,null,null,null,null,null,null,null,null,"","",0,0,0,0,0,0,0,0,0,0,0,0,0,0,0,0,0,0,0,0,"","","","","","","","","","","","","","","","","","","","","","","","","","","","","","","","","","","","","","","","","","","","","","",""]
[null,2035,0,null,null,null,null,null,null,null,null,null,null,null,null,null,null,null,null,"","","",0,0,0,0,0,0,0,0,0,0,0,0,0,0,0,0,0,0,0,0,"","","","","","","","","","","","","","","","","","","","","","","","","","","","","","","","","","","","","","","","","","","","","",""]
[null,2036,0,null,null,null,null,null,null,null,null,null,null,null,null,null,null,null,null,"","","","",0,0,0,0,0,0,0,0,0,0,0,0,0,0,0,0,0,0,0,0,"","","","","","","","","","","","","","","","","","","","","","","","","","","","","","","","","","","","","","","","","","","","",""]
[null,2037,0,null,null,null,null,null,null,null,null,null,null,null,null,null,null,null,null,null,{"$f":"IF(OR(U$3<$B25,U$3>=$B25+$D$91),\"\",$C25/$D$91)","v":""},"","","",0,0,0,0,0,0,{"$f":"IF(OR(AE$3<$B25,AE$3>=$B25+$D$91),\"\",$C25/$D$91)","v":0},0,0,0,0,0,0,0,0,0,{"$f":"IF(OR(AO$3<$B25,AO$3>=$B25+$D$91),\"\",$C25/$D$91)","v":0},0,0,0,"","","","","","",{"$f":"IF(OR(AY$3<$B25,AY$3>=$B25+$D$91),\"\",$C25/$D$91)","v":""},"","","","","","","","","",{"$f":"IF(OR(BI$3<$B25,BI$3>=$B25+$D$91),\"\",$C25/$D$91)","v":""},"","","","","","","","","",{"$f":"IF(OR(BS$3<$B25,BS$3>=$B25+$D$91),\"\",$C25/$D$91)","v":""},"","","","","","","","","",{"$f":"IF(OR(CC$3<$B25,CC$3>=$B25+$D$91),\"\",$C25/$D$91)","v":""},"","","","","","",""]
[null,2038,0,null,null,null,null,null,null,null,null,null,null,null,null,null,null,null,null,null,"","","","","",0,0,0,0,0,0,0,0,0,0,0,0,0,0,0,0,0,0,0,0,"","","","","","","","","","","","","","","","","","","","","","","","","","","","","","","","","","","","","","","","","","",""]
[null,2039,0,null,null,null,null,null,null,null,null,null,null,null,null,null,null,null,null,null,"","","","","","",0,0,0,0,0,0,0,0,0,0,0,0,0,0,0,0,0,0,0,0,"","","","","","","","","","","","","","","","","","","","","","","","","","","","","","","","","","","","","","","","","",""]
[null,2040,0,null,null,null,null,null,null,null,null,null,null,null,null,null,null,null,null,null,"","","","","","","",0,0,0,0,0,0,0,0,0,0,0,0,0,0,0,0,0,0,0,0,"","","","","","","","","","","","","","","","","","","","","","","","","","","","","","","","","","","","","","","","",""]
[null,2041,0,null,null,null,null,null,null,null,null,null,null,null,null,null,null,null,null,null,"","","","","","","","",0,0,0,0,0,0,0,0,0,0,0,0,0,0,0,0,0,0,0,0,"","","","","","","","","","","","","","","","","","","","","","","","","","","","","","","","","","","","","","","",""]
[null,2042,0,null,null,null,null,null,null,null,null,null,null,null,null,null,null,null,null,null,"","","","","","","","","",0,0,0,0,0,0,0,0,0,0,0,0,0,0,0,0,0,0,0,0,"","","","","","","","","","","","","","","","","","","","","","","","","","","","","","","","","","","","","","",""]
[null,2043,0,null,null,null,null,null,null,null,null,null,null,null,null,null,null,null,null,null,"","","","","","","","","","",0,0,0,0,0,0,0,0,0,0,0,0,0,0,0,0,0,0,0,0,"","","","","","","","","","","","","","","","","","","","","","","","","","","","","","","","","","","","","",""]
[null,2044,0,null,null,null,null,null,null,null,null,null,null,null,null,null,null,null,null,null,"","","","","","","","","","","",0,0,0,0,0,0,0,0,0,0,0,0,0,0,0,0,0,0,0,0,"","","","","","","","","","","","","","","","","","","","","","","","","","","","","","","","","","","","",""]
[null,2045,0,null,null,null,null,null,null,null,null,null,null,null,null,null,null,null,null,null,"","","","","","","","","","","","",0,0,0,0,0,0,0,0,0,0,0,0,0,0,0,0,0,0,0,0,"","","","","","","","","","","","","","","","","","","","","","","","","","","","","","","","","","","",""]
[null,2046,0,null,null,null,null,null,null,null,null,null,null,null,null,null,null,null,null,null,null,null,null,null,null,null,null,null,null,null,null,null,{"$f":"IF(OR(AG$3<$B34,AG$3>=$B34+$D$91),\"\",$C34/$D$91)","v":""},0,0,0,0,0,0,0,0,0,{"$f":"IF(OR(AQ$3<$B34,AQ$3>=$B34+$D$91),\"\",$C34/$D$91)","v":0},0,0,0,0,0,0,0,0,0,{"$f":"IF(OR(BA$3<$B34,BA$3>=$B34+$D$91),\"\",$C34/$D$91)","v":0},"","","","","","","","","",{"$f":"IF(OR(BK$3<$B34,BK$3>=$B34+$D$91),\"\",$C34/$D$91)","v":""},"","","","","","","","","",{"$f":"IF(OR(BU$3<$B34,BU$3>=$B34+$D$91),\"\",$C34/$D$91)","v":""},"","","","","","","","","",{"$f":"IF(OR(CE$3<$B34,CE$3>=$B34+$D$91),\"\",$C34/$D$91)","v":""},"","","","",""]
[null,2047,0,null,null,null,null,null,null,null,null,null,null,null,null,null,null,null,null,null,null,null,null,null,null,null,null,null,null,null,null,null,"","",0,0,0,0,0,0,0,0,0,0,0,0,0,0,0,0,0,0,0,0,"","","","","","","","","","","","","","","","","","","","","","","","","","","","","","","","","",""]
[null,2048,0,null,null,null,null,null,null,null,null,null,null,null,null,null,null,null,null,null,null,null,null,null,null,null,null,null,null,null,null,null,"","","",0,0,0,0,0,0,0,0,0,0,0,0,0,0,0,0,0,0,0,0,"","","","","","","","","","","","","","","","","","","","","","","","","","","","","","","","",""]
[null,2049,0,null,null,null,null,null,null,null,null,null,null,null,null,null,null,null,null,null,null,null,null,null,null,null,null,null,null,null,null,null,"","","","",0,0,0,0,0,0,0,0,0,0,0,0,0,0,0,0,0,0,0,0,"","","","","","","","","","","","","","","","","","","","","","","","","","","","","","","",""]
[null,2050,0,null,null,null,null,null,null,null,null,null,null,null,null,null,null,null,null,null,null,null,null,null,null,null,null,null,null,null,null,null,"","","","","",0,0,0,0,0,0,0,0,0,0,0,0,0,0,0,0,0,0,0,0,"","","","","","","","","","","","","","","","","","","","","","","","","","","","","","",""]
[null,2051,0,null,null,null,null,null,null,null,null,null,null,null,null,null,null,null,null,null,null,null,null,null,null,null,null,null,null,null,null,null,"","","","","","",0,0,0,0,0,0,0,0,0,0,0,0,0,0,0,0,0,0,0,0,"","","","","","","","","","","","","","","","","","","","","","","","","","","","","",""]
[null,2052,0,null,null,null,null,null,null,null,null,null,null,null,null,null,null,null,null,null,null,null,null,null,null,null,null,null,null,null,null,null,"","","","","","","",0,0,0,0,0,0,0,0,0,0,0,0,0,0,0,0,0,0,0,0,"","","","","","","","","","","","","","","","","","","","","","","","","","","","",""]
[null,2053,0,null,null,null,null,null,null,null,null,null,null,null,null,null,null,null,null,null,null,null,null,null,null,null,null,null,null,null,null,null,"","","","","","","","",0,0,0,0,0,0,0,0,0,0,0,0,0,0,0,0,0,0,0,0,"","","","","","","","","","","","","","","","","","","","","","","","","","","",""]
[null,2054,0,null,null,null,null,null,null,null,null,null,null,null,null,null,null,null,null,null,null,null,null,null,null,null,null,null,null,null,null,null,"","","","","","","","","",0,0,0,0,0,0,0,0,0,0,0,0,0,0,0,0,0,0,0,0,"","","","","","","","","","","","","","","","","","","","","","","","","","",""]
[null,2055,0,null,null,null,null,null,null,null,null,null,null,null,null,null,null,null,null,null,null,null,null,null,null,null,null,null,null,null,null,null,"","","","","","","","","","",0,0,0,0,0,0,0,0,0,0,0,0,0,0,0,0,0,0,0,0,"","","","","","","","","","","","","","","","","","","","","","","","","",""]
[null,2056,0,null,null,null,null,null,null,null,null,null,null,null,null,null,null,null,null,null,null,null,null,null,null,null,null,null,null,null,null,null,{"$f":"IF(OR(AG$3<$B44,AG$3>=$B44+$D$91),\"\",$C44/$D$91)","v":""},"","","","","","","","","",{"$f":"IF(OR(AQ$3<$B44,AQ$3>=$B44+$D$91),\"\",$C44/$D$91)","v":""},0,0,0,0,0,0,0,0,0,{"$f":"IF(OR(BA$3<$B44,BA$3>=$B44+$D$91),\"\",$C44/$D$91)","v":0},0,0,0,0,0,0,0,0,0,{"$f":"IF(OR(BK$3<$B44,BK$3>=$B44+$D$91),\"\",$C44/$D$91)","v":0},"","","","","","","","","",{"$f":"IF(OR(BU$3<$B44,BU$3>=$B44+$D$91),\"\",$C44/$D$91)","v":""},"","","","","","","","","",{"$f":"IF(OR(CE$3<$B44,CE$3>=$B44+$D$91),\"\",$C44/$D$91)","v":""},"","","","",""]
[null,2057,0,null,null,null,null,null,null,null,null,null,null,null,null,null,null,null,null,null,null,null,null,null,null,null,null,null,null,null,null,null,"","","","","","","","","","","","",0,0,0,0,0,0,0,0,0,0,0,0,0,0,0,0,0,0,0,0,"","","","","","","","","","","","","","","","","","","","","","","",""]
[null,2058,0,null,null,null,null,null,null,null,null,null,null,null,null,null,null,null,null,null,null,null,null,null,null,null,null,null,null,null,null,null,"","","","","","","","","","","","","",0,0,0,0,0,0,0,0,0,0,0,0,0,0,0,0,0,0,0,0,"","","","","","","","","","","","","","","","","","","","","","",""]
[null,2059,0,null,null,null,null,null,null,null,null,null,null,null,null,null,null,null,null,null,null,null,null,null,null,null,null,null,null,null,null,null,"","","","","","","","","","","","","","",0,0,0,0,0,0,0,0,0,0,0,0,0,0,0,0,0,0,0,0,"","","","","","","","","","","","","","","","","","","","","",""]
[null,2060,0,null,null,null,null,null,null,null,null,null,null,null,null,null,null,null,null,null,null,null,null,null,null,null,null,null,null,null,null,null,"","","","","","","","","","","","","","","",0,0,0,0,0,0,0,0,0,0,0,0,0,0,0,0,0,0,0,0,"","","","","","","","","","","","","","","","","","","","",""]
[null,2061,0,null,null,null,null,null,null,null,null,null,null,null,null,null,null,null,null,null,null,null,null,null,null,null,null,null,null,null,null,null,"","","","","","","","","","","","","","","","",0,0,0,0,0,0,0,0,0,0,0,0,0,0,0,0,0,0,0,0,"","","","","","","","","","","","","","","","","","","",""]
[null,2062,0,null,null,null,null,null,null,null,null,null,null,null,null,null,null,null,null,null,null,null,null,null,null,null,null,null,null,null,null,null,"","","","","","","","","","","","","","","","","",0,0,0,0,0,0,0,0,0,0,0,0,0,0,0,0,0,0,0,0,"","","","","","","","","","","","","","","","","","",""]
[null,{"$f":"B50+1","v":2063},0,null,null,null,null,null,null,null,null,null,null,null,null,null,null,null,null,null,null,null,null,null,null,null,null,null,null,null,null,null,"","","","","","","","","","","","","","","","","","",0,0,0,0,0,0,0,0,0,0,0,0,0,0,0,0,0,0,0,0,"","","","","","","","","","","","","","","","","",""]
[null,{"$f":"B51+1","v":2064},0,null,null,null,null,null,null,null,null,null,null,null,null,null,null,null,null,null,null,null,null,null,null,null,null,null,null,null,null,null,"","","","","","","","","","","","","","","","","","","",0,0,0,0,0,0,0,0,0,0,0,0,0,0,0,0,0,0,0,0,"","","","","","","","","","","","","","","","",""]
[null,2065,0,null,null,null,null,null,null,null,null,null,null,null,null,null,null,null,null,null,null,null,null,null,null,null,null,null,null,null,null,null,"","","","","","","","","","","","","","","","","","","","",0,0,0,0,0,0,0,0,0,0,0,0,0,0,0,0,0,0,0,0,"","","","","","","","","","","","","","","",""]
[null,2066,0,null,null,null,null,null,null,null,null,null,null,null,null,null,null,null,null,null,null,null,null,null,null,null,null,null,null,null,null,null,{"$f":"IF(OR(AG$3<$B54,AG$3>=$B54+$D$91),\"\",$C54/$D$91)","v":""},"","","","","","","","","",{"$f":"IF(OR(AQ$3<$B54,AQ$3>=$B54+$D$91),\"\",$C54/$D$91)","v":""},"","","","","","","","","",{"$f":"IF(OR(BA$3<$B54,BA$3>=$B54+$D$91),\"\",$C54/$D$91)","v":""},0,0,0,0,0,0,0,0,0,{"$f":"IF(OR(BK$3<$B54,BK$3>=$B54+$D$91),\"\",$C54/$D$91)","v":0},0,0,0,0,0,0,0,0,0,{"$f":"IF(OR(BU$3<$B54,BU$3>=$B54+$D$91),\"\",$C54/$D$91)","v":0},"","","","","","","","","",{"$f":"IF(OR(CE$3<$B54,CE$3>=$B54+$D$91),\"\",$C54/$D$91)","v":""},"","","","",""]
[null,2067,0,null,null,null,null,null,null,null,null,null,null,null,null,null,null,null,null,null,null,null,null,null,null,null,null,null,null,null,null,null,"","","","","","","","","","","","","","","","","","","","","","",0,0,0,0,0,0,0,0,0,0,0,0,0,0,0,0,0,0,0,0,"","","","","","","","","","","","","",""]
[null,2068,0,null,null,null,null,null,null,null,null,null,null,null,null,null,null,null,null,null,null,null,null,null,null,null,null,null,null,null,null,null,"","","","","","","","","","","","","","","","","","","","","","","",0,0,0,0,0,0,0,0,0,0,0,0,0,0,0,0,0,0,0,0,"","","","","","","","","","","","",""]
[null,2069,0,null,null,null,null,null,null,null,null,null,null,null,null,null,null,null,null,null,null,null,null,null,null,null,null,null,null,null,null,null,"","","","","","","","","","","","","","","","","","","","","","","","",0,0,0,0,0,0,0,0,0,0,0,0,0,0,0,0,0,0,0,0,"","","","","","","","","","","",""]
[null,2070,0,null,null,null,null,null,null,null,null,null,null,null,null,null,null,null,null,null,null,null,null,null,null,null,null,null,null,null,null,null,"","","","","","","","","","","","","","","","","","","","","","","","","",0,0,0,0,0,0,0,0,0,0,0,0,0,0,0,0,0,0,0,0,"","","","","","","","","","",""]
[null,2071,0,null,null,null,null,null,null,null,null,null,null,null,null,null,null,null,null,null,null,null,null,null,null,null,null,null,null,null,null,null,"","","","","","","","","","","","","","","","","","","","","","","","","","",0,0,0,0,0,0,0,0,0,0,0,0,0,0,0,0,0,0,0,0,"","","","","","","","","",""]
[null,2072,0,null,null,null,null,null,null,null,null,null,null,null,null,null,null,null,null,null,null,null,null,null,null,null,null,null,null,null,null,null,"","","","","","","","","","","","","","","","","","","","","","","","","","","",0,0,0,0,0,0,0,0,0,0,0,0,0,0,0,0,0,0,0,0,"","","","","","","","",""]
[null,2073,0,null,null,null,null,null,null,null,null,null,null,null,null,null,null,null,null,null,null,null,null,null,null,null,null,null,null,null,null,null,"","","","","","","","","","","","","","","","","","","","","","","","","","","","",0,0,0,0,0,0,0,0,0,0,0,0,0,0,0,0,0,0,0,0,"","","","","","","",""]
[null,2074,0,null,null,null,null,null,null,null,null,null,null,null,null,null,null,null,null,null,null,null,null,null,null,null,null,null,null,null,null,null,"","","","","","","","","","","","","","","","","","","","","","","","","","","","","",0,0,0,0,0,0,0,0,0,0,0,0,0,0,0,0,0,0,0,0,"","","","","","",""]
[null,2075,0,null,null,null,null,null,null,null,null,null,null,null,null,null,null,null,null,null,null,null,null,null,null,null,null,null,null,null,null,null,"","","","","","","","","","","","","","","","","","","","","","","","","","","","","","",0,0,0,0,0,0,0,0,0,0,0,0,0,0,0,0,0,0,0,0,"","","","","",""]
[null,2076,0,null,null,null,null,null,null,null,null,null,null,null,null,null,null,null,null,null,null,null,null,null,null,null,null,null,null,null,null,null,{"$f":"IF(OR(AG$3<$B64,AG$3>=$B64+$D$91),\"\",$C64/$D$91)","v":""},"","","","","","","","","",{"$f":"IF(OR(AQ$3<$B64,AQ$3>=$B64+$D$91),\"\",$C64/$D$91)","v":""},"","","","","","","","","",{"$f":"IF(OR(BA$3<$B64,BA$3>=$B64+$D$91),\"\",$C64/$D$91)","v":""},"","","","","","","","","",{"$f":"IF(OR(BK$3<$B64,BK$3>=$B64+$D$91),\"\",$C64/$D$91)","v":""},0,0,0,0,0,0,0,0,0,{"$f":"IF(OR(BU$3<$B64,BU$3>=$B64+$D$91),\"\",$C64/$D$91)","v":0},0,0,0,0,0,0,0,0,0,{"$f":"IF(OR(CE$3<$B64,CE$3>=$B64+$D$91),\"\",$C64/$D$91)","v":0},"","","","",""]
[null,2077,0,null,null,null,null,null,null,null,null,null,null,null,null,null,null,null,null,null,null,null,null,null,null,null,null,null,null,null,null,null,"","","","","","","","","","","","","","","","","","","","","","","","","","","","","","","","",0,0,0,0,0,0,0,0,0,0,0,0,0,0,0,0,0,0,0,0,"","","",""]
[null,2078,0,null,null,null,null,null,null,null,null,null,null,null,null,null,null,null,null,null,null,null,null,null,null,null,null,null,null,null,null,null,"","","","","","","","","","","","","","","","","","","","","","","","","","","","","","","","","",0,0,0,0,0,0,0,0,0,0,0,0,0,0,0,0,0,0,0,0,"","",""]
[null,2079,0,null,null,null,null,null,null,null,null,null,null,null,null,null,null,null,null,null,null,null,null,null,null,null,null,null,null,null,null,null,"","","","","","","","","","","","","","","","","","","","","","","","","","","","","","","","","","",0,0,0,0,0,0,0,0,0,0,0,0,0,0,0,0,0,0,0,0,"",""]
[null,2080,0,null,null,null,null,null,null,null,null,null,null,null,null,null,null,null,null,null,null,null,null,null,null,null,null,null,null,null,null,null,"","","","","","","","","","","","","","","","","","","","","","","","","","","","","","","","","","","",0,0,0,0,0,0,0,0,0,0,0,0,0,0,0,0,0,0,0,0,""]
[null,2081,0,null,null,null,null,null,null,null,null,null,null,null,null,null,null,null,null,null,null,null,null,null,null,null,null,null,null,null,null,null,"","","","","","","","","","","","","","","","","","","","","","","","","","","","","","","","","","","","",0,0,0,0,0,0,0,0,0,0,0,0,0,0,0,0,0,0,0,0]
[null,2082,0,null,null,null,null,null,null,null,null,null,null,null,null,null,null,null,null,null,null,null,null,null,null,null,null,null,null,null,null,null,"","","","","","","","","","","","","","","","","","","","","","","","","","","","","","","","","","","","","",0,0,0,0,0,0,0,0,0,0,0,0,0,0,0,0,0,0,0]
[null,2083,0,null,null,null,null,null,null,null,null,null,null,null,null,null,null,null,null,null,null,null,null,null,null,null,null,null,null,null,null,null,"","","","","","","","","","","","","","","","","","","","","","","","","","","","","","","","","","","","","","",0,0,0,0,0,0,0,0,0,0,0,0,0,0,0,0,0,0]
[null,2084,0,null,null,null,null,null,null,null,null,null,null,null,null,null,null,null,null,null,null,null,null,null,null,null,null,null,null,null,null,null,"","","","","","","","","","","","","","","","","","","","","","","","","","","","","","","","","","","","","","","",0,0,0,0,0,0,0,0,0,0,0,0,0,0,0,0,0]
[null,2085,0,null,null,null,null,null,null,null,null,null,null,null,null,null,null,null,null,null,null,null,null,null,null,null,null,null,null,null,null,null,"","","","","","","","","","","","","","","","","","","","","","","","","","","","","","","","","","","","","","","","",0,0,0,0,0,0,0,0,0,0,0,0,0,0,0,0]
[null,2086,0,null,null,null,null,null,null,null,null,null,null,null,null,null,null,null,null,null,null,null,null,null,null,null,null,null,null,null,null,null,{"$f":"IF(OR(AG$3<$B74,AG$3>=$B74+$D$91),\"\",$C74/$D$91)","v":""},"","","","","","","","","",{"$f":"IF(OR(AQ$3<$B74,AQ$3>=$B74+$D$91),\"\",$C74/$D$91)","v":""},"","","","","","","","","",{"$f":"IF(OR(BA$3<$B74,BA$3>=$B74+$D$91),\"\",$C74/$D$91)","v":""},"","","","","","","","","",{"$f":"IF(OR(BK$3<$B74,BK$3>=$B74+$D$91),\"\",$C74/$D$91)","v":""},"","","","","","","","","",{"$f":"IF(OR(BU$3<$B74,BU$3>=$B74+$D$91),\"\",$C74/$D$91)","v":""},0,0,0,0,0,0,0,0,0,{"$f":"IF(OR(CE$3<$B74,CE$3>=$B74+$D$91),\"\",$C74/$D$91)","v":0},0,0,0,0,0]
[null,2087,0,null,null,null,null,null,null,null,null,null,null,null,null,null,null,null,null,null,null,null,null,null,null,null,null,null,null,null,null,null,"","","","","","","","","","","","","","","","","","","","","","","","","","","","","","","","","","","","","","","","","","",0,0,0,0,0,0,0,0,0,0,0,0,0,0]
[null,2088,0,null,null,null,null,null,null,null,null,null,null,null,null,null,null,null,null,null,null,null,null,null,null,null,null,null,null,null,null,null,"","","","","","","","","","","","","","","","","","","","","","","","","","","","","","","","","","","","","","","","","","","",0,0,0,0,0,0,0,0,0,0,0,0,0]
[null,2089,0,null,null,null,null,null,null,null,null,null,null,null,null,null,null,null,null,null,null,null,null,null,null,null,null,null,null,null,null,null,"","","","","","","","","","","","","","","","","","","","","","","","","","","","","","","","","","","","","","","","","","","","",0,0,0,0,0,0,0,0,0,0,0,0]
[null,2090,0,null,null,null,null,null,null,null,null,null,null,null,null,null,null,null,null,null,null,null,null,null,null,null,null,null,null,null,null,null,"","","","","","","","","","","","","","","","","","","","","","","","","","","","","","","","","","","","","","","","","","","","","",0,0,0,0,0,0,0,0,0,0,0]
[null,2091,0,null,null,null,null,null,null,null,null,null,null,null,null,null,null,null,null,null,null,null,null,null,null,null,null,null,null,null,null,null,"","","","","","","","","","","","","","","","","","","","","","","","","","","","","","","","","","","","","","","","","","","","","","",0,0,0,0,0,0,0,0,0,0]
[null,2092,0,null,null,null,null,null,null,null,null,null,null,null,null,null,null,null,null,null,null,null,null,null,null,null,null,null,null,null,null,null,"","","","","","","","","","","","","","","","","","","","","","","","","","","","","","","","","","","","","","","","","","","","","","","",0,0,0,0,0,0,0,0,0]
[null,2093,0,null,null,null,null,null,null,null,null,null,null,null,null,null,null,null,null,null,null,null,null,null,null,null,null,null,null,null,null,null,"","","","","","","","","","","","","","","","","","","","","","","","","","","","","","","","","","","","","","","","","","","","","","","","",0,0,0,0,0,0,0,0]
[null,2094,0,null,null,null,null,null,null,null,null,null,null,null,null,null,null,null,null,null,null,null,null,null,null,null,null,null,null,null,null,null,"","","","","","","","","","","","","","","","","","","","","","","","","","","","","","","","","","","","","","","","","","","","","","","","","",0,0,0,0,0,0,0]
[null,2095,0,null,null,null,null,null,null,null,null,null,null,null,null,null,null,null,null,null,null,null,null,null,null,null,null,null,null,null,null,null,"","","","","","","","","","","","","","","","","","","","","","","","","","","","","","","","","","","","","","","","","","","","","","","","","","",0,0,0,0,0,0]
[null,2096,0,null,null,null,null,null,null,null,null,null,null,null,null,null,null,null,null,null,null,null,null,null,null,null,null,null,null,null,null,null,"","","","","","","","","","","","","","","","","","","","","","","","","","","","","","","","","","","","","","","","","","","","","","","","","","","",0,0,0,0,0]
[null,2097,0,null,null,null,null,null,null,null,null,null,null,null,null,null,null,null,null,null,null,null,null,null,null,null,null,null,null,null,null,null,"","","","","","","","","","","","","","","","","","","","","","","","","","","","","","","","","","","","","","","","","","","","","","","","","","","","",0,0,0,0]
[null,2098,0,null,null,null,null,null,null,null,null,null,null,null,null,null,null,null,null,null,null,null,null,null,null,null,null,null,null,null,null,null,"","","","","","","","","","","","","","","","","","","","","","","","","","","","","","","","","","","","","","","","","","","","","","","","","","","","","",0,0,0]
[null,2099,0,null,null,null,null,null,null,null,null,null,null,null,null,null,null,null,null,null,null,null,null,null,null,null,null,null,null,null,null,null,"","","","","","","","","","","","","","","","","","","","","","","","","","","","","","","","","","","","","","","","","","","","","","","","","","","","","","",0,0]
[null,2100,0,null,null,null,null,null,null,null,null,null,null,null,null,null,null,null,null,null,null,null,null,null,null,null,null,null,null,null,null,null,"","","","","","","","","","","","","","","","","","","","","","","","","","","","","","","","","","","","","","","","","","","","","","","","","","","","","","","",0]
[null,null,"Release amount:",{"$f":"SUM(D4:D88)","v":0},0,0,0,0,0,0,0,0,0,0,0,0,0,0,0,0,0,0,0,0,0,0,0,0,0,0,0,0,0,0,0,{"$f":"SUM(AJ4:AJ88)","v":0},0,0,0,0,0,0,0,0,0,0,0,0,0,0,0,0,0,0,0,0,0,0,0,0,0,0,0,0,0,0,0,{"$f":"SUM(BP4:BP88)","v":0},0,0,0,0,0,0,0,0,0,0,0,0,0,0,0,0,0,0,0,0]
[]
[null,"Release duration",null,20]

{"sheet":"F. UL & OPEX flat rates","index":11,"n_rows":43,"n_cols":8,"rows_kept":43,"cut":false,"hidden":false,"merged":[]}
[null,"F. Investment budget category"]
[null,"Asset group number","Asset group","Minimum useful life","Maximum useful life","Network operator-specific useful life","OPEX flat rate"]
[null,1,"Properties",null,null,null,8.0000000000000002E-3,"m²"]
[null,2,"Property facilities, structures for transport system",25,35,{"$f":"D4","v":25},8.0000000000000002E-3,"keine Einheit"]
[null,3,"Operating buildings",50,60,{"$f":"D5","v":50},8.0000000000000002E-3,"m²"]
[null,4,"Administrative buildings",60,70,60,8.0000000000000002E-3,"m²"]
[null,5,"Track systems, wagons",23,27,23,8.0000000000000002E-3,"keine Einheit"]
[null,6,"Business equipment (without IT/tools/devices)",8,10,8,8.0000000000000002E-3,"keine Einheit"]
[null,7,"Tools/devices",14,18,14,8.0000000000000002E-3,"keine Einheit"]
[null,8,"Storage facilities",14,25,14,8.0000000000000002E-3,"m²"]
[null,9,"Hardware",4,8,4,8.0000000000000002E-3,"keine Einheit"]
[null,10,"Software",3,5,3,8.0000000000000002E-3,"keine Einheit"]
[null,11,"Light vehicles",5,5,5,8.0000000000000002E-3,"Stück"]
[null,12,"Heavy vehicles",8,8,8,8.0000000000000002E-3,"Stück"]
[null,13,"Gas holders",45,55,45,8.0000000000000002E-3,"m³"]
[null,14,"Natural gas compression",25,25,25,5.1999999999999998E-2,"keine Einheit"]
[null,15,"Gas purifiers",25,25,25,5.1999999999999998E-2,"Stück"]
[null,16,"Piping and fittings",25,25,25,5.1999999999999998E-2,"Stück"]
[null,17,"Gas measuring equipment",25,25,25,5.1999999999999998E-2,"Stück"]
[null,18,"Safety equipment",25,25,25,5.1999999999999998E-2,"Stück"]
[null,19,"Control and energy technology",20,20,20,5.1999999999999998E-2,"keine Einheit"]
[null,20,"Ancillary facilities",25,25,25,5.1999999999999998E-2,"Stück"]
[null,21,"Buildings, transport routes",25,60,25,5.1999999999999998E-2,"keine Einheit"]
[null,22,"Steel pipelines – encapsulated in PE",45,55,45,8.0000000000000002E-3,"keine Einheit"]
[null,23,"Steel pipelines – cathodic protection",55,65,55,8.0000000000000002E-3,"km"]
[null,24,"Steel pipelines – bituminised",45,55,45,8.0000000000000002E-3,"km"]
[null,25,"Grey cast iron (> DN 150)",45,55,45,8.0000000000000002E-3,"km"]
[null,26,"Ductile cast ",45,55,45,8.0000000000000002E-3,"km"]
[null,27,"Polyethylene (PE - HD)",45,55,45,8.0000000000000002E-3,"km"]
[null,28,"Polyvinyl chloride (PVC)",30,40,30,8.0000000000000002E-3,"Stück"]
[null,29,"Fittings",45,45,45,8.0000000000000002E-3,"Stück"]
[null,30,"Pig traps",45,45,45,8.0000000000000002E-3,"Stück"]
[null,31,"Safety equipment",45,45,45,8.0000000000000002E-3,"Stück"]
[null,32,"Gas meters of distribution",8,16,8,5.8000000000000003E-2,"Stück"]
[null,33,"Service regulators/meter regulators",15,25,15,5.8000000000000003E-2,"Stück"]
[null,34,"Metering equipment",45,45,45,5.8000000000000003E-2,"keine Einheit"]
[null,35,"Control equipment",45,45,45,5.8000000000000003E-2,"Stück"]
[null,36,"Safety equipment",20,30,20,5.8000000000000003E-2,"keine Einheit"]
[null,37,"Control and energy technology",10,30,10,5.8000000000000003E-2,"Stück"]
[null,38,"Compressors in gas-mixing systems by duration of use",15,30,15,5.8000000000000003E-2,"Stück"]
[null,39,"Ancillary facilities",15,30,15,5.8000000000000003E-2,"m²"]
[null,40,"Buildings",60,60,60,5.8000000000000003E-2,"Stück"]
[null,41,"Remote control equipment",15,20,15,8.0000000000000002E-3]

{"sheet":"G. Explanatory notes","index":12,"n_rows":221,"n_cols":3,"rows_kept":221,"cut":false,"hidden":false,"merged":[]}
["G. Explanatory notes"]
["Table","Cell","Note"]
["Please select"]
["Please select"]
["Please select"]
["Please select"]
["Please select"]
["Please select"]
["Please select"]
["Please select"]
["Please select"]
["Please select"]
["Please select"]
["Please select"]
["Please select"]
["Please select"]
["Please select"]
["Please select"]
["Please select"]
["Please select"]
["Please select"]
["Please select"]
["Please select"]
["Please select"]
["Please select"]
["Please select"]
["Please select"]
["Please select"]
["Please select"]
["Please select"]
["Please select"]
["Please select"]
["Please select"]
["Please select"]
["Please select"]
["Please select"]
["Please select"]
["Please select"]
["Please select"]
["Please select"]
["Please select"]
["Please select"]
["Please select"]
["Please select"]
["Please select"]
["Please select"]
["Please select"]
["Please select"]
["Please select"]
["Please select"]
["Please select"]
["Please select"]
["Please select"]
["Please select"]
["Please select"]
["Please select"]
["Please select"]
["Please select"]
["Please select"]
["Please select"]
["Please select"]
["Please select"]
["Please select"]
["Please select"]
["Please select"]
["Please select"]
["Please select"]
["Please select"]
["Please select"]
["Please select"]
["Please select"]
["Please select"]
["Please select"]
["Please select"]
["Please select"]
[]
[]
[]
[]
[]
[]
[]
[]
[]
[]
[]
[]
[]
[]
[]
[]
[]
[]
[]
[]
[]
[]
[]
[]
[]
[]
[]
[]
[]
[]
[]
[]
[]
[]
[]
[]
[]
[]
[]
[]
[]
[]
[]
[]
[]
[]
[]
[]
[]
[]
[]
[]
[]
[]
[]
[]
[]
[]
[]
[]
[]
[]
[]
[]
[]
[]
[]
[]
[]
[]
[]
[]
[]
[]
[]
[]
[]
[]
[]
[]
[]
[]
[]
[]
[]
[]
[]
[]
[]
[]
[]
[]
[]
[]
[]
[]
[]
[]
[]
[]
[]
[]
[]
[]
[]
[]
[]
[]
[]
[]
[]
[]
[]
[]
[]
[]
[]
[]
[]
[]
[]
[]
[]
[]
[]
[]
[]
[]
[]
[]
[]
[]
[]
[]
["Please select"]
["A. General information"]
["B. Parameters"]
["C. Cost data"]
["C.1 Cost data compression"]
["C.2 Cost data pipe PE "]
["C.3 Cost data pipe PE cath "]
["C.4 Cost control dev"]
["C.5 Other assets"]
["D. CIC"]
["E. Investment budget category"]
["F. UL & OPEX flat rates"]

{"sheet":"Fixed assets","index":13,"n_rows":11,"n_cols":23,"rows_kept":11,"cut":false,"hidden":false,"merged":[]}
["No in investment plan","Acquisition and production costs total [€]",null,null,null,"Year of capitalisation","Month of capitalisation","Asset group number (see F. UL)","Useful life (see F. UL)","Reduction cost-reducing revenue","APC additions with cost-reducing revenue deducted","Tested useful life","Annual depreciation","Year end of depreciation","Month end of depreciation ","Year","Expected capitalisation in asset group (see F. UL)","Additions","Reclassifications/disposals","Reclassifications from assets under construction (AUC) carried out?","Reclassification year of AUC","Total disposals from AUC","Total reclassifications/disposals from AUC"]
[1,null,null,null,null,null,null,null,null,null,null,null,null,null,null,2020,14,1500000,null,"YES",2025]
[1,null,null,null,null,null,null,null,null,null,null,null,null,null,null,2021,14,7500000,null,"YES",2025]
[1,null,null,null,null,null,null,null,null,null,null,null,null,null,null,2022,14,30000000,null,"YES",2025]
[1,null,null,null,null,null,null,null,null,null,null,null,null,null,null,2023,14,51000000,null,"YES",2025]
[1,null,null,null,null,null,null,null,null,null,null,null,null,null,null,2024,14,60000000,null,"YES",2025]
[1,null,null,null,null,null,null,null,null,null,null,null,null,null,null,2025,14,null,150000000,"YES",2025]
[1,150000000,null,null,null,2025,null,14,25,{"$f":"VLOOKUP(F8,[9]Kosten!$A$91:$K$175,11,0)","v":0},{"$f":"B8*(1-J8)","v":150000000},25,{"$f":"K8/L8","v":6000000},{"$f":"F8+L8-1","v":2049},null,null,null,null,null,"YES",2025,150000000,150000000]
[2,null,null,null,null,null,null,null,null,null,null,null,null,null,null,2024,34,1000000,null,"YES",2025]
[2,null,null,null,null,null,null,null,null,null,null,null,null,null,null,2025,34,null,1000000,"YES",2025]
[2,1000000,null,null,null,2025,null,34,45,{"$f":"VLOOKUP(F11,[9]Kosten!$A$91:$K$175,11,0)","v":0},{"$f":"B11*(1-J11)","v":1000000},45,{"$f":"K11/L11","v":22222.222222222223},{"$f":"F11+L11-1","v":2069},null,null,null,null,null,"YES",2025,1000000,1000000]

{"sheet":"C. Cost data","index":14,"n_rows":56,"n_cols":46,"rows_kept":56,"cut":false,"hidden":false,"merged":[]}
[null,"C. Cost data (predicted values)"]
[null,null,null,null,"Properties","Property facilities, structures for transport system","Operating buildings","Administrative buildings","Track systems, wagons","Business equipment (without IT/tools/devices)","Tools/devices","Storage facilities","Hardware","Software","Light vehicles","Heavy vehicles","Gas holders","Natural gas compression","Gas purifiers","Piping and fittings","Gas measuring equipment","Safety equipment","Control and energy technology","Ancillary facilities","Buildings, transport routes","Steel pipelines – encapsulated in PE","Steel pipelines – cathodic protection","Steel pipelines – bituminised","Grey cast iron (> DN 150)","Ductile cast ","Polyethylene (PE - HD)","Polyvinyl chloride (PVC)","Fittings","Pig traps","Safety equipment","Gas meters of distribution","Service regulators/meter regulators","Metering equipment","Control equipment","Safety equipment","Control and energy technology","Compressors in gas-mixing systems by duration of use","Ancillary facilities","Buildings","Remote control equipment"]
[null,null,"Year","Total","I. General assets",null,null,null,null,null,null,null,null,null,null,null,"II. Gas holders","III. Natural gas compression equipment",null,null,null,null,null,null,null,"IV. Pipelines/house connections",null,null,null,null,null,null,null,null,null,"V. Measuring, control and metering equipment",null,null,null,null,null,null,null,null,"VI. Remote\ncontrol equipment"]
[null,"Asset group no",null,null,1,2,3,4,5,6,7,8,9,10,11,12,13,14,15,16,17,18,19,20,21,22,23,24,25,26,27,28,29,30,31,32,33,34,35,36,37,38,39,40,41]
[null,"Total plan APC",null,{"$f":"SUM(E5,F5,G5,H5,I5,J5,K5,L5,M5,N5,O5,P5,Q5,R5,S5,T5,U5,V5,W5,X5,Z5,AA5)+SUM(AB5,AC5,AD5,AE5,AF5,AG5,AH5,AI5,AJ5,AK5,AL5,AM5,AN5,AO5,AP5,AQ5,AR5,AS5)","v":0},{"$f":"SUMPRODUCT(('C.5 Other assets'!$C$6:$C$149='C. Cost data'!E4)*('C.5 Other assets'!$H$6:$H$149))","v":0},{"$f":"SUMPRODUCT(('C.5 Other assets'!$C$6:$C$149='C. Cost data'!F4)*('C.5 Other assets'!$H$6:$H$149))","v":0},{"$f":"SUMPRODUCT(('C.5 Other assets'!$C$6:$C$149='C. Cost data'!G4)*('C.5 Other assets'!$H$6:$H$149))","v":0},{"$f":"SUMPRODUCT(('C.5 Other assets'!$C$6:$C$149='C. Cost data'!H4)*('C.5 Other assets'!$H$6:$H$149))","v":0},{"$f":"SUMPRODUCT(('C.5 Other assets'!$C$6:$C$149='C. Cost data'!I4)*('C.5 Other assets'!$H$6:$H$149))","v":0},{"$f":"SUMPRODUCT(('C.5 Other assets'!$C$6:$C$149='C. Cost data'!J4)*('C.5 Other assets'!$H$6:$H$149))","v":0},{"$f":"SUMPRODUCT(('C.5 Other assets'!$C$6:$C$149='C. Cost data'!K4)*('C.5 Other assets'!$H$6:$H$149))","v":0},{"$f":"SUMPRODUCT(('C.5 Other assets'!$C$6:$C$149='C. Cost data'!L4)*('C.5 Other assets'!$H$6:$H$149))","v":0},{"$f":"SUMPRODUCT(('C.5 Other assets'!$C$6:$C$149='C. Cost data'!M4)*('C.5 Other assets'!$H$6:$H$149))","v":0},{"$f":"SUMPRODUCT(('C.5 Other assets'!$C$6:$C$149='C. Cost data'!N4)*('C.5 Other assets'!$H$6:$H$149))","v":0},{"$f":"SUMPRODUCT(('C.5 Other assets'!$C$6:$C$149='C. Cost data'!O4)*('C.5 Other assets'!$H$6:$H$149))","v":0},{"$f":"SUMPRODUCT(('C.5 Other assets'!$C$6:$C$149='C. Cost data'!P4)*('C.5 Other assets'!$H$6:$H$149))","v":0},{"$f":"SUMPRODUCT(('C.5 Other assets'!$C$6:$C$149='C. Cost data'!Q4)*('C.5 Other assets'!$H$6:$H$149))","v":0},{"$f":"'C.1 Cost data compression'!C4","v":0},{"$f":"SUMPRODUCT(('C.5 Other assets'!$C$6:$C$149='C. Cost data'!S4)*('C.5 Other assets'!$H$6:$H$149))","v":0},{"$f":"SUMPRODUCT(('C.5 Other assets'!$C$6:$C$149='C. Cost data'!T4)*('C.5 Other assets'!$H$6:$H$149))","v":0},{"$f":"SUMPRODUCT(('C.5 Other assets'!$C$6:$C$149='C. Cost data'!U4)*('C.5 Other assets'!$H$6:$H$149))","v":0},{"$f":"SUMPRODUCT(('C.5 Other assets'!$C$6:$C$149='C. Cost data'!V4)*('C.5 Other assets'!$H$6:$H$149))","v":0},{"$f":"SUMPRODUCT(('C.5 Other assets'!$C$6:$C$149='C. Cost data'!W4)*('C.5 Other assets'!$H$6:$H$149))","v":0},{"$f":"SUMPRODUCT(('C.5 Other assets'!$C$6:$C$149='C. Cost data'!X4)*('C.5 Other assets'!$H$6:$H$149))","v":0},{"$f":"SUMPRODUCT(('C.5 Other assets'!$C$6:$C$149='C. Cost data'!Y4)*('C.5 Other assets'!$H$6:$H$149))","v":0},{"$f":"'C.2 Cost data pipe PE'!C4","v":0},{"$f":"'C.3 Cost data pipe cath'!C4","v":0},{"$f":"SUMPRODUCT(('C.5 Other assets'!$C$6:$C$149='C. Cost data'!AB4)*('C.5 Other assets'!$H$6:$H$149))","v":0},{"$f":"SUMPRODUCT(('C.5 Other assets'!$C$6:$C$149='C. Cost data'!AC4)*('C.5 Other assets'!$H$6:$H$149))","v":0},{"$f":"SUMPRODUCT(('C.5 Other assets'!$C$6:$C$149='C. Cost data'!AD4)*('C.5 Other assets'!$H$6:$H$149))","v":0},{"$f":"SUMPRODUCT(('C.5 Other assets'!$C$6:$C$149='C. Cost data'!AE4)*('C.5 Other assets'!$H$6:$H$149))","v":0},{"$f":"SUMPRODUCT(('C.5 Other assets'!$C$6:$C$149='C. Cost data'!AF4)*('C.5 Other assets'!$H$6:$H$149))","v":0},{"$f":"SUMPRODUCT(('C.5 Other assets'!$C$6:$C$149='C. Cost data'!AG4)*('C.5 Other assets'!$H$6:$H$149))","v":0},{"$f":"SUMPRODUCT(('C.5 Other assets'!$C$6:$C$149='C. Cost data'!AH4)*('C.5 Other assets'!$H$6:$H$149))","v":0},{"$f":"SUMPRODUCT(('C.5 Other assets'!$C$6:$C$149='C. Cost data'!AI4)*('C.5 Other assets'!$H$6:$H$149))","v":0},{"$f":"SUMPRODUCT(('C.5 Other assets'!$C$6:$C$149='C. Cost data'!AJ4)*('C.5 Other assets'!$H$6:$H$149))","v":0},{"$f":"SUMPRODUCT(('C.5 Other assets'!$C$6:$C$149='C. Cost data'!AK4)*('C.5 Other assets'!$H$6:$H$149))","v":0},{"$f":"SUMPRODUCT(('C.5 Other assets'!$C$6:$C$149='C. Cost data'!AL4)*('C.5 Other assets'!$H$6:$H$149))","v":0},{"$f":"'C.4 Cost control equip'!C4","v":0},{"$f":"SUMPRODUCT(('C.5 Other assets'!$C$6:$C$149='C. Cost data'!AN4)*('C.5 Other assets'!$H$6:$H$149))","v":0},{"$f":"SUMPRODUCT(('C.5 Other assets'!$C$6:$C$149='C. Cost data'!AO4)*('C.5 Other assets'!$H$6:$H$149))","v":0},{"$f":"SUMPRODUCT(('C.5 Other assets'!$C$6:$C$149='C. Cost data'!AP4)*('C.5 Other assets'!$H$6:$H$149))","v":0},{"$f":"SUMPRODUCT(('C.5 Other assets'!$C$6:$C$149='C. Cost data'!AQ4)*('C.5 Other assets'!$H$6:$H$149))","v":0},{"$f":"SUMPRODUCT(('C.5 Other assets'!$C$6:$C$149='C. Cost data'!AR4)*('C.5 Other assets'!$H$6:$H$149))","v":0},{"$f":"SUMPRODUCT(('C.5 Other assets'!$C$6:$C$149='C. Cost data'!AS4)*('C.5 Other assets'!$H$6:$H$149))","v":0}]
[null,"Assets under construction 2016 – opening balance",2016,{"$f":"SUM(E6:AS6)","v":0},{"$f":"SUMPRODUCT(('C.5 Other assets'!$M$6:$M$149='C. Cost data'!E$4)*('C.5 Other assets'!$L$6:$L$149<=2015)*'C.5 Other assets'!$N$6:$N$149)-SUMPRODUCT(('C.5 Other assets'!$M$6:$M$149='C. Cost data'!E$4)*('C.5 Other assets'!$L$6:$L$149<=2015)*'C.5 Other assets'!$O$6:$O$149)","v":0},{"$f":"SUMPRODUCT(('C.5 Other assets'!$M$6:$M$149='C. Cost data'!F$4)*('C.5 Other assets'!$L$6:$L$149<=2015)*'C.5 Other assets'!$N$6:$N$149)-SUMPRODUCT(('C.5 Other assets'!$M$6:$M$149='C. Cost data'!F$4)*('C.5 Other assets'!$L$6:$L$149<=2015)*'C.5 Other assets'!$O$6:$O$149)","v":0},{"$f":"SUMPRODUCT(('C.5 Other assets'!$M$6:$M$149='C. Cost data'!G$4)*('C.5 Other assets'!$L$6:$L$149<=2015)*'C.5 Other assets'!$N$6:$N$149)-SUMPRODUCT(('C.5 Other assets'!$M$6:$M$149='C. Cost data'!G$4)*('C.5 Other assets'!$L$6:$L$149<=2015)*'C.5 Other assets'!$O$6:$O$149)","v":0},{"$f":"SUMPRODUCT(('C.5 Other assets'!$M$6:$M$149='C. Cost data'!H$4)*('C.5 Other assets'!$L$6:$L$149<=2015)*'C.5 Other assets'!$N$6:$N$149)-SUMPRODUCT(('C.5 Other assets'!$M$6:$M$149='C. Cost data'!H$4)*('C.5 Other assets'!$L$6:$L$149<=2015)*'C.5 Other assets'!$O$6:$O$149)","v":0},{"$f":"SUMPRODUCT(('C.5 Other assets'!$M$6:$M$149='C. Cost data'!I$4)*('C.5 Other assets'!$L$6:$L$149<=2015)*'C.5 Other assets'!$N$6:$N$149)-SUMPRODUCT(('C.5 Other assets'!$M$6:$M$149='C. Cost data'!I$4)*('C.5 Other assets'!$L$6:$L$149<=2015)*'C.5 Other assets'!$O$6:$O$149)","v":0},{"$f":"SUMPRODUCT(('C.5 Other assets'!$M$6:$M$149='C. Cost data'!J$4)*('C.5 Other assets'!$L$6:$L$149<=2015)*'C.5 Other assets'!$N$6:$N$149)-SUMPRODUCT(('C.5 Other assets'!$M$6:$M$149='C. Cost data'!J$4)*('C.5 Other assets'!$L$6:$L$149<=2015)*'C.5 Other assets'!$O$6:$O$149)","v":0},{"$f":"SUMPRODUCT(('C.5 Other assets'!$M$6:$M$149='C. Cost data'!K$4)*('C.5 Other assets'!$L$6:$L$149<=2015)*'C.5 Other assets'!$N$6:$N$149)-SUMPRODUCT(('C.5 Other assets'!$M$6:$M$149='C. Cost data'!K$4)*('C.5 Other assets'!$L$6:$L$149<=2015)*'C.5 Other assets'!$O$6:$O$149)","v":0},{"$f":"SUMPRODUCT(('C.5 Other assets'!$M$6:$M$149='C. Cost data'!L$4)*('C.5 Other assets'!$L$6:$L$149<=2015)*'C.5 Other assets'!$N$6:$N$149)-SUMPRODUCT(('C.5 Other assets'!$M$6:$M$149='C. Cost data'!L$4)*('C.5 Other assets'!$L$6:$L$149<=2015)*'C.5 Other assets'!$O$6:$O$149)","v":0},{"$f":"SUMPRODUCT(('C.5 Other assets'!$M$6:$M$149='C. Cost data'!M$4)*('C.5 Other assets'!$L$6:$L$149<=2015)*'C.5 Other assets'!$N$6:$N$149)-SUMPRODUCT(('C.5 Other assets'!$M$6:$M$149='C. Cost data'!M$4)*('C.5 Other assets'!$L$6:$L$149<=2015)*'C.5 Other assets'!$O$6:$O$149)","v":0},{"$f":"SUMPRODUCT(('C.5 Other assets'!$M$6:$M$149='C. Cost data'!N$4)*('C.5 Other assets'!$L$6:$L$149<=2015)*'C.5 Other assets'!$N$6:$N$149)-SUMPRODUCT(('C.5 Other assets'!$M$6:$M$149='C. Cost data'!N$4)*('C.5 Other assets'!$L$6:$L$149<=2015)*'C.5 Other assets'!$O$6:$O$149)","v":0},{"$f":"SUMPRODUCT(('C.5 Other assets'!$M$6:$M$149='C. Cost data'!O$4)*('C.5 Other assets'!$L$6:$L$149<=2015)*'C.5 Other assets'!$N$6:$N$149)-SUMPRODUCT(('C.5 Other assets'!$M$6:$M$149='C. Cost data'!O$4)*('C.5 Other assets'!$L$6:$L$149<=2015)*'C.5 Other assets'!$O$6:$O$149)","v":0},{"$f":"SUMPRODUCT(('C.5 Other assets'!$M$6:$M$149='C. Cost data'!P$4)*('C.5 Other assets'!$L$6:$L$149<=2015)*'C.5 Other assets'!$N$6:$N$149)-SUMPRODUCT(('C.5 Other assets'!$M$6:$M$149='C. Cost data'!P$4)*('C.5 Other assets'!$L$6:$L$149<=2015)*'C.5 Other assets'!$O$6:$O$149)","v":0},{"$f":"SUMPRODUCT(('C.5 Other assets'!$M$6:$M$149='C. Cost data'!Q$4)*('C.5 Other assets'!$L$6:$L$149<=2015)*'C.5 Other assets'!$N$6:$N$149)-SUMPRODUCT(('C.5 Other assets'!$M$6:$M$149='C. Cost data'!Q$4)*('C.5 Other assets'!$L$6:$L$149<=2015)*'C.5 Other assets'!$O$6:$O$149)","v":0},{"$f":"SUMPRODUCT(('C.1 Cost data compression'!$O$6:$O$149='C. Cost data'!R$4)*('C.1 Cost data compression'!$N$6:$N$149<=2015)*'C.1 Cost data compression'!$P$6:$P$149)-SUMPRODUCT(('C.1 Cost data compression'!$O$6:$O$149='C. Cost data'!R$4)*('C.1 Cost data compression'!$N$6:$N$149<=2015)*'C.1 Cost data compression'!$Q$6:$Q$149)","v":0},{"$f":"SUMPRODUCT(('C.5 Other assets'!$M$6:$M$149='C. Cost data'!S$4)*('C.5 Other assets'!$L$6:$L$149<=2015)*'C.5 Other assets'!$N$6:$N$149)-SUMPRODUCT(('C.5 Other assets'!$M$6:$M$149='C. Cost data'!S$4)*('C.5 Other assets'!$L$6:$L$149<=2015)*'C.5 Other assets'!$O$6:$O$149)","v":0},{"$f":"SUMPRODUCT(('C.5 Other assets'!$M$6:$M$149='C. Cost data'!T$4)*('C.5 Other assets'!$L$6:$L$149<=2015)*'C.5 Other assets'!$N$6:$N$149)-SUMPRODUCT(('C.5 Other assets'!$M$6:$M$149='C. Cost data'!T$4)*('C.5 Other assets'!$L$6:$L$149<=2015)*'C.5 Other assets'!$O$6:$O$149)","v":0},{"$f":"SUMPRODUCT(('C.5 Other assets'!$M$6:$M$149='C. Cost data'!U$4)*('C.5 Other assets'!$L$6:$L$149<=2015)*'C.5 Other assets'!$N$6:$N$149)-SUMPRODUCT(('C.5 Other assets'!$M$6:$M$149='C. Cost data'!U$4)*('C.5 Other assets'!$L$6:$L$149<=2015)*'C.5 Other assets'!$O$6:$O$149)","v":0},{"$f":"SUMPRODUCT(('C.5 Other assets'!$M$6:$M$149='C. Cost data'!V$4)*('C.5 Other assets'!$L$6:$L$149<=2015)*'C.5 Other assets'!$N$6:$N$149)-SUMPRODUCT(('C.5 Other assets'!$M$6:$M$149='C. Cost data'!V$4)*('C.5 Other assets'!$L$6:$L$149<=2015)*'C.5 Other assets'!$O$6:$O$149)","v":0},{"$f":"SUMPRODUCT(('C.5 Other assets'!$M$6:$M$149='C. Cost data'!W$4)*('C.5 Other assets'!$L$6:$L$149<=2015)*'C.5 Other assets'!$N$6:$N$149)-SUMPRODUCT(('C.5 Other assets'!$M$6:$M$149='C. Cost data'!W$4)*('C.5 Other assets'!$L$6:$L$149<=2015)*'C.5 Other assets'!$O$6:$O$149)","v":0},{"$f":"SUMPRODUCT(('C.5 Other assets'!$M$6:$M$149='C. Cost data'!X$4)*('C.5 Other assets'!$L$6:$L$149<=2015)*'C.5 Other assets'!$N$6:$N$149)-SUMPRODUCT(('C.5 Other assets'!$M$6:$M$149='C. Cost data'!X$4)*('C.5 Other assets'!$L$6:$L$149<=2015)*'C.5 Other assets'!$O$6:$O$149)","v":0},{"$f":"SUMPRODUCT(('C.5 Other assets'!$M$6:$M$149='C. Cost data'!Y$4)*('C.5 Other assets'!$L$6:$L$149<=2015)*'C.5 Other assets'!$N$6:$N$149)-SUMPRODUCT(('C.5 Other assets'!$M$6:$M$149='C. Cost data'!Y$4)*('C.5 Other assets'!$L$6:$L$149<=2015)*'C.5 Other assets'!$O$6:$O$149)","v":0},{"$f":"SUMPRODUCT(('C.2 Cost data pipe PE'!$V$6:$V$149='C. Cost data'!Z$4)*('C.2 Cost data pipe PE'!$U$6:$U$149<=2015)*'C.2 Cost data pipe PE'!$W$6:$W$149)-SUMPRODUCT(('C.2 Cost data pipe PE'!$V$6:$V$149='C. Cost data'!Z$4)*('C.2 Cost data pipe PE'!$U$6:$U$149<=2015)*'C.2 Cost data pipe PE'!$X$6:$X$149)","v":0},{"$f":"SUMPRODUCT(('C.3 Cost data pipe cath'!$V$6:$V$149='C. Cost data'!AA$4)*('C.3 Cost data pipe cath'!$U$6:$U$149<=2015)*'C.3 Cost data pipe cath'!$W$6:$W$149)-SUMPRODUCT(('C.3 Cost data pipe cath'!$V$6:$V$149='C. Cost data'!AA$4)*('C.3 Cost data pipe cath'!$U$6:$U$149<=2015)*'C.3 Cost data pipe cath'!$X$6:$X$149)","v":0},{"$f":"SUMPRODUCT(('C.5 Other assets'!$M$6:$M$149='C. Cost data'!AB$4)*('C.5 Other assets'!$L$6:$L$149<=2015)*'C.5 Other assets'!$N$6:$N$149)-SUMPRODUCT(('C.5 Other assets'!$M$6:$M$149='C. Cost data'!AB$4)*('C.5 Other assets'!$L$6:$L$149<=2015)*'C.5 Other assets'!$O$6:$O$149)","v":0},{"$f":"SUMPRODUCT(('C.5 Other assets'!$M$6:$M$149='C. Cost data'!AC$4)*('C.5 Other assets'!$L$6:$L$149<=2015)*'C.5 Other assets'!$N$6:$N$149)-SUMPRODUCT(('C.5 Other assets'!$M$6:$M$149='C. Cost data'!AC$4)*('C.5 Other assets'!$L$6:$L$149<=2015)*'C.5 Other assets'!$O$6:$O$149)","v":0},{"$f":"SUMPRODUCT(('C.5 Other assets'!$M$6:$M$149='C. Cost data'!AD$4)*('C.5 Other assets'!$L$6:$L$149<=2015)*'C.5 Other assets'!$N$6:$N$149)-SUMPRODUCT(('C.5 Other assets'!$M$6:$M$149='C. Cost data'!AD$4)*('C.5 Other assets'!$L$6:$L$149<=2015)*'C.5 Other assets'!$O$6:$O$149)","v":0},{"$f":"SUMPRODUCT(('C.5 Other assets'!$M$6:$M$149='C. Cost data'!AE$4)*('C.5 Other assets'!$L$6:$L$149<=2015)*'C.5 Other assets'!$N$6:$N$149)-SUMPRODUCT(('C.5 Other assets'!$M$6:$M$149='C. Cost data'!AE$4)*('C.5 Other assets'!$L$6:$L$149<=2015)*'C.5 Other assets'!$O$6:$O$149)","v":0},{"$f":"SUMPRODUCT(('C.5 Other assets'!$M$6:$M$149='C. Cost data'!AF$4)*('C.5 Other assets'!$L$6:$L$149<=2015)*'C.5 Other assets'!$N$6:$N$149)-SUMPRODUCT(('C.5 Other assets'!$M$6:$M$149='C. Cost data'!AF$4)*('C.5 Other assets'!$L$6:$L$149<=2015)*'C.5 Other assets'!$O$6:$O$149)","v":0},{"$f":"SUMPRODUCT(('C.5 Other assets'!$M$6:$M$149='C. Cost data'!AG$4)*('C.5 Other assets'!$L$6:$L$149<=2015)*'C.5 Other assets'!$N$6:$N$149)-SUMPRODUCT(('C.5 Other assets'!$M$6:$M$149='C. Cost data'!AG$4)*('C.5 Other assets'!$L$6:$L$149<=2015)*'C.5 Other assets'!$O$6:$O$149)","v":0},{"$f":"SUMPRODUCT(('C.5 Other assets'!$M$6:$M$149='C. Cost data'!AH$4)*('C.5 Other assets'!$L$6:$L$149<=2015)*'C.5 Other assets'!$N$6:$N$149)-SUMPRODUCT(('C.5 Other assets'!$M$6:$M$149='C. Cost data'!AH$4)*('C.5 Other assets'!$L$6:$L$149<=2015)*'C.5 Other assets'!$O$6:$O$149)","v":0},{"$f":"SUMPRODUCT(('C.5 Other assets'!$M$6:$M$149='C. Cost data'!AI$4)*('C.5 Other assets'!$L$6:$L$149<=2015)*'C.5 Other assets'!$N$6:$N$149)-SUMPRODUCT(('C.5 Other assets'!$M$6:$M$149='C. Cost data'!AI$4)*('C.5 Other assets'!$L$6:$L$149<=2015)*'C.5 Other assets'!$O$6:$O$149)","v":0},{"$f":"SUMPRODUCT(('C.5 Other assets'!$M$6:$M$149='C. Cost data'!AJ$4)*('C.5 Other assets'!$L$6:$L$149<=2015)*'C.5 Other assets'!$N$6:$N$149)-SUMPRODUCT(('C.5 Other assets'!$M$6:$M$149='C. Cost data'!AJ$4)*('C.5 Other assets'!$L$6:$L$149<=2015)*'C.5 Other assets'!$O$6:$O$149)","v":0},{"$f":"SUMPRODUCT(('C.5 Other assets'!$M$6:$M$149='C. Cost data'!AK$4)*('C.5 Other assets'!$L$6:$L$149<=2015)*'C.5 Other assets'!$N$6:$N$149)-SUMPRODUCT(('C.5 Other assets'!$M$6:$M$149='C. Cost data'!AK$4)*('C.5 Other assets'!$L$6:$L$149<=2015)*'C.5 Other assets'!$O$6:$O$149)","v":0},{"$f":"SUMPRODUCT(('C.5 Other assets'!$M$6:$M$149='C. Cost data'!AL$4)*('C.5 Other assets'!$L$6:$L$149<=2015)*'C.5 Other assets'!$N$6:$N$149)-SUMPRODUCT(('C.5 Other assets'!$M$6:$M$149='C. Cost data'!AL$4)*('C.5 Other assets'!$L$6:$L$149<=2015)*'C.5 Other assets'!$O$6:$O$149)","v":0},{"$f":"SUMPRODUCT(('C.4 Cost control equip'!$O$6:$O$149='C. Cost data'!AM$4)*('C.4 Cost control equip'!$N$6:$N$149<=2015)*'C.4 Cost control equip'!$P$6:$P$149)-SUMPRODUCT(('C.4 Cost control equip'!$O$6:$O$149='C. Cost data'!AM$4)*('C.4 Cost control equip'!$N$6:$N$149<=2015)*'C.4 Cost control equip'!$Q$6:$Q$149)","v":0},{"$f":"SUMPRODUCT(('C.5 Other assets'!$M$6:$M$149='C. Cost data'!AN$4)*('C.5 Other assets'!$L$6:$L$149<=2015)*'C.5 Other assets'!$N$6:$N$149)-SUMPRODUCT(('C.5 Other assets'!$M$6:$M$149='C. Cost data'!AN$4)*('C.5 Other assets'!$L$6:$L$149<=2015)*'C.5 Other assets'!$O$6:$O$149)","v":0},{"$f":"SUMPRODUCT(('C.5 Other assets'!$M$6:$M$149='C. Cost data'!AO$4)*('C.5 Other assets'!$L$6:$L$149<=2015)*'C.5 Other assets'!$N$6:$N$149)-SUMPRODUCT(('C.5 Other assets'!$M$6:$M$149='C. Cost data'!AO$4)*('C.5 Other assets'!$L$6:$L$149<=2015)*'C.5 Other assets'!$O$6:$O$149)","v":0},{"$f":"SUMPRODUCT(('C.5 Other assets'!$M$6:$M$149='C. Cost data'!AP$4)*('C.5 Other assets'!$L$6:$L$149<=2015)*'C.5 Other assets'!$N$6:$N$149)-SUMPRODUCT(('C.5 Other assets'!$M$6:$M$149='C. Cost data'!AP$4)*('C.5 Other assets'!$L$6:$L$149<=2015)*'C.5 Other assets'!$O$6:$O$149)","v":0},{"$f":"SUMPRODUCT(('C.5 Other assets'!$M$6:$M$149='C. Cost data'!AQ$4)*('C.5 Other assets'!$L$6:$L$149<=2015)*'C.5 Other assets'!$N$6:$N$149)-SUMPRODUCT(('C.5 Other assets'!$M$6:$M$149='C. Cost data'!AQ$4)*('C.5 Other assets'!$L$6:$L$149<=2015)*'C.5 Other assets'!$O$6:$O$149)","v":0},{"$f":"SUMPRODUCT(('C.5 Other assets'!$M$6:$M$149='C. Cost data'!AR$4)*('C.5 Other assets'!$L$6:$L$149<=2015)*'C.5 Other assets'!$N$6:$N$149)-SUMPRODUCT(('C.5 Other assets'!$M$6:$M$149='C. Cost data'!AR$4)*('C.5 Other assets'!$L$6:$L$149<=2015)*'C.5 Other assets'!$O$6:$O$149)","v":0},{"$f":"SUMPRODUCT(('C.5 Other assets'!$M$6:$M$149='C. Cost data'!AS$4)*('C.5 Other assets'!$L$6:$L$149<=2015)*'C.5 Other assets'!$N$6:$N$149)-SUMPRODUCT(('C.5 Other assets'!$M$6:$M$149='C. Cost data'!AS$4)*('C.5 Other assets'!$L$6:$L$149<=2015)*'C.5 Other assets'!$O$6:$O$149)","v":0}]
[null,"Assets under construction 2016 – additions",2016,{"$f":"SUM(E7:AS7)","v":0},{"$f":"SUMPRODUCT(('C.5 Other assets'!$M$6:$M$149='C. Cost data'!E$4)*('C.5 Other assets'!$L$6:$L$149='C. Cost data'!$C7)*'C.5 Other assets'!$N$6:$N$149)","v":0},{"$f":"SUMPRODUCT(('C.5 Other assets'!$M$6:$M$149='C. Cost data'!F$4)*('C.5 Other assets'!$L$6:$L$149='C. Cost data'!$C7)*'C.5 Other assets'!$N$6:$N$149)","v":0},{"$f":"SUMPRODUCT(('C.5 Other assets'!$M$6:$M$149='C. Cost data'!G$4)*('C.5 Other assets'!$L$6:$L$149='C. Cost data'!$C7)*'C.5 Other assets'!$N$6:$N$149)","v":0},{"$f":"SUMPRODUCT(('C.5 Other assets'!$M$6:$M$149='C. Cost data'!H$4)*('C.5 Other assets'!$L$6:$L$149='C. Cost data'!$C7)*'C.5 Other assets'!$N$6:$N$149)","v":0},{"$f":"SUMPRODUCT(('C.5 Other assets'!$M$6:$M$149='C. Cost data'!I$4)*('C.5 Other assets'!$L$6:$L$149='C. Cost data'!$C7)*'C.5 Other assets'!$N$6:$N$149)","v":0},{"$f":"SUMPRODUCT(('C.5 Other assets'!$M$6:$M$149='C. Cost data'!J$4)*('C.5 Other assets'!$L$6:$L$149='C. Cost data'!$C7)*'C.5 Other assets'!$N$6:$N$149)","v":0},{"$f":"SUMPRODUCT(('C.5 Other assets'!$M$6:$M$149='C. Cost data'!K$4)*('C.5 Other assets'!$L$6:$L$149='C. Cost data'!$C7)*'C.5 Other assets'!$N$6:$N$149)","v":0},{"$f":"SUMPRODUCT(('C.5 Other assets'!$M$6:$M$149='C. Cost data'!L$4)*('C.5 Other assets'!$L$6:$L$149='C. Cost data'!$C7)*'C.5 Other assets'!$N$6:$N$149)","v":0},{"$f":"SUMPRODUCT(('C.5 Other assets'!$M$6:$M$149='C. Cost data'!M$4)*('C.5 Other assets'!$L$6:$L$149='C. Cost data'!$C7)*'C.5 Other assets'!$N$6:$N$149)","v":0},{"$f":"SUMPRODUCT(('C.5 Other assets'!$M$6:$M$149='C. Cost data'!N$4)*('C.5 Other assets'!$L$6:$L$149='C. Cost data'!$C7)*'C.5 Other assets'!$N$6:$N$149)","v":0},{"$f":"SUMPRODUCT(('C.5 Other assets'!$M$6:$M$149='C. Cost data'!O$4)*('C.5 Other assets'!$L$6:$L$149='C. Cost data'!$C7)*'C.5 Other assets'!$N$6:$N$149)","v":0},{"$f":"SUMPRODUCT(('C.5 Other assets'!$M$6:$M$149='C. Cost data'!P$4)*('C.5 Other assets'!$L$6:$L$149='C. Cost data'!$C7)*'C.5 Other assets'!$N$6:$N$149)","v":0},{"$f":"SUMPRODUCT(('C.5 Other assets'!$M$6:$M$149='C. Cost data'!Q$4)*('C.5 Other assets'!$L$6:$L$149='C. Cost data'!$C7)*'C.5 Other assets'!$N$6:$N$149)","v":0},{"$f":"SUMPRODUCT(('C.1 Cost data compression'!$O$6:$O$149='C. Cost data'!R$4)*('C.1 Cost data compression'!$N$6:$N$149='C. Cost data'!$C7)*'C.1 Cost data compression'!$P$6:$P$149)","v":0},{"$f":"SUMPRODUCT(('C.5 Other assets'!$M$6:$M$149='C. Cost data'!S$4)*('C.5 Other assets'!$L$6:$L$149='C. Cost data'!$C7)*'C.5 Other assets'!$N$6:$N$149)","v":0},{"$f":"SUMPRODUCT(('C.5 Other assets'!$M$6:$M$149='C. Cost data'!T$4)*('C.5 Other assets'!$L$6:$L$149='C. Cost data'!$C7)*'C.5 Other assets'!$N$6:$N$149)","v":0},{"$f":"SUMPRODUCT(('C.5 Other assets'!$M$6:$M$149='C. Cost data'!U$4)*('C.5 Other assets'!$L$6:$L$149='C. Cost data'!$C7)*'C.5 Other assets'!$N$6:$N$149)","v":0},{"$f":"SUMPRODUCT(('C.5 Other assets'!$M$6:$M$149='C. Cost data'!V$4)*('C.5 Other assets'!$L$6:$L$149='C. Cost data'!$C7)*'C.5 Other assets'!$N$6:$N$149)","v":0},{"$f":"SUMPRODUCT(('C.5 Other assets'!$M$6:$M$149='C. Cost data'!W$4)*('C.5 Other assets'!$L$6:$L$149='C. Cost data'!$C7)*'C.5 Other assets'!$N$6:$N$149)","v":0},{"$f":"SUMPRODUCT(('C.5 Other assets'!$M$6:$M$149='C. Cost data'!X$4)*('C.5 Other assets'!$L$6:$L$149='C. Cost data'!$C7)*'C.5 Other assets'!$N$6:$N$149)","v":0},{"$f":"SUMPRODUCT(('C.5 Other assets'!$M$6:$M$149='C. Cost data'!Y$4)*('C.5 Other assets'!$L$6:$L$149='C. Cost data'!$C7)*'C.5 Other assets'!$N$6:$N$149)","v":0},{"$f":"SUMPRODUCT(('C.2 Cost data pipe PE'!$V$6:$V$149='C. Cost data'!Z$4)*('C.2 Cost data pipe PE'!$U$6:$U$149='C. Cost data'!$C7)*'C.2 Cost data pipe PE'!$W$6:$W$149)","v":0},{"$f":"SUMPRODUCT(('C.3 Cost data pipe cath'!$V$6:$V$149='C. Cost data'!AA$4)*('C.3 Cost data pipe cath'!$U$6:$U$149='C. Cost data'!$C7)*'C.3 Cost data pipe cath'!$W$6:$W$149)","v":0},{"$f":"SUMPRODUCT(('C.5 Other assets'!$M$6:$M$149='C. Cost data'!AB$4)*('C.5 Other assets'!$L$6:$L$149='C. Cost data'!$C7)*'C.5 Other assets'!$N$6:$N$149)","v":0},{"$f":"SUMPRODUCT(('C.5 Other assets'!$M$6:$M$149='C. Cost data'!AC$4)*('C.5 Other assets'!$L$6:$L$149='C. Cost data'!$C7)*'C.5 Other assets'!$N$6:$N$149)","v":0},{"$f":"SUMPRODUCT(('C.5 Other assets'!$M$6:$M$149='C. Cost data'!AD$4)*('C.5 Other assets'!$L$6:$L$149='C. Cost data'!$C7)*'C.5 Other assets'!$N$6:$N$149)","v":0},{"$f":"SUMPRODUCT(('C.5 Other assets'!$M$6:$M$149='C. Cost data'!AE$4)*('C.5 Other assets'!$L$6:$L$149='C. Cost data'!$C7)*'C.5 Other assets'!$N$6:$N$149)","v":0},{"$f":"SUMPRODUCT(('C.5 Other assets'!$M$6:$M$149='C. Cost data'!AF$4)*('C.5 Other assets'!$L$6:$L$149='C. Cost data'!$C7)*'C.5 Other assets'!$N$6:$N$149)","v":0},{"$f":"SUMPRODUCT(('C.5 Other assets'!$M$6:$M$149='C. Cost data'!AG$4)*('C.5 Other assets'!$L$6:$L$149='C. Cost data'!$C7)*'C.5 Other assets'!$N$6:$N$149)","v":0},{"$f":"SUMPRODUCT(('C.5 Other assets'!$M$6:$M$149='C. Cost data'!AH$4)*('C.5 Other assets'!$L$6:$L$149='C. Cost data'!$C7)*'C.5 Other assets'!$N$6:$N$149)","v":0},{"$f":"SUMPRODUCT(('C.5 Other assets'!$M$6:$M$149='C. Cost data'!AI$4)*('C.5 Other assets'!$L$6:$L$149='C. Cost data'!$C7)*'C.5 Other assets'!$N$6:$N$149)","v":0},{"$f":"SUMPRODUCT(('C.5 Other assets'!$M$6:$M$149='C. Cost data'!AJ$4)*('C.5 Other assets'!$L$6:$L$149='C. Cost data'!$C7)*'C.5 Other assets'!$N$6:$N$149)","v":0},{"$f":"SUMPRODUCT(('C.5 Other assets'!$M$6:$M$149='C. Cost data'!AK$4)*('C.5 Other assets'!$L$6:$L$149='C. Cost data'!$C7)*'C.5 Other assets'!$N$6:$N$149)","v":0},{"$f":"SUMPRODUCT(('C.5 Other assets'!$M$6:$M$149='C. Cost data'!AL$4)*('C.5 Other assets'!$L$6:$L$149='C. Cost data'!$C7)*'C.5 Other assets'!$N$6:$N$149)","v":0},{"$f":"SUMPRODUCT(('C.4 Cost control equip'!$O$6:$O$149='C. Cost data'!AM$4)*('C.4 Cost control equip'!$N$6:$N$149='C. Cost data'!$C7)*'C.4 Cost control equip'!$P$6:$P$149)","v":0},{"$f":"SUMPRODUCT(('C.5 Other assets'!$M$6:$M$149='C. Cost data'!AN$4)*('C.5 Other assets'!$L$6:$L$149='C. Cost data'!$C7)*'C.5 Other assets'!$N$6:$N$149)","v":0},{"$f":"SUMPRODUCT(('C.5 Other assets'!$M$6:$M$149='C. Cost data'!AO$4)*('C.5 Other assets'!$L$6:$L$149='C. Cost data'!$C7)*'C.5 Other assets'!$N$6:$N$149)","v":0},{"$f":"SUMPRODUCT(('C.5 Other assets'!$M$6:$M$149='C. Cost data'!AP$4)*('C.5 Other assets'!$L$6:$L$149='C. Cost data'!$C7)*'C.5 Other assets'!$N$6:$N$149)","v":0},{"$f":"SUMPRODUCT(('C.5 Other assets'!$M$6:$M$149='C. Cost data'!AQ$4)*('C.5 Other assets'!$L$6:$L$149='C. Cost data'!$C7)*'C.5 Other assets'!$N$6:$N$149)","v":0},{"$f":"SUMPRODUCT(('C.5 Other assets'!$M$6:$M$149='C. Cost data'!AR$4)*('C.5 Other assets'!$L$6:$L$149='C. Cost data'!$C7)*'C.5 Other assets'!$N$6:$N$149)","v":0},{"$f":"SUMPRODUCT(('C.5 Other assets'!$M$6:$M$149='C. Cost data'!AS$4)*('C.5 Other assets'!$L$6:$L$149='C. Cost data'!$C7)*'C.5 Other assets'!$N$6:$N$149)","v":0}]
[null,"Assets under construction 2016 – disposals/reclassifications",2016,{"$f":"SUM(E8:AS8)","v":0},{"$f":"SUMPRODUCT(('C.5 Other assets'!$M$6:$M$149='C. Cost data'!E$4)*('C.5 Other assets'!$L$6:$L$149='C. Cost data'!$C8)*'C.5 Other assets'!$O$6:$O$149)","v":0},{"$f":"SUMPRODUCT(('C.5 Other assets'!$M$6:$M$149='C. Cost data'!F$4)*('C.5 Other assets'!$L$6:$L$149='C. Cost data'!$C8)*'C.5 Other assets'!$O$6:$O$149)","v":0},{"$f":"SUMPRODUCT(('C.5 Other assets'!$M$6:$M$149='C. Cost data'!G$4)*('C.5 Other assets'!$L$6:$L$149='C. Cost data'!$C8)*'C.5 Other assets'!$O$6:$O$149)","v":0},{"$f":"SUMPRODUCT(('C.5 Other assets'!$M$6:$M$149='C. Cost data'!H$4)*('C.5 Other assets'!$L$6:$L$149='C. Cost data'!$C8)*'C.5 Other assets'!$O$6:$O$149)","v":0},{"$f":"SUMPRODUCT(('C.5 Other assets'!$M$6:$M$149='C. Cost data'!I$4)*('C.5 Other assets'!$L$6:$L$149='C. Cost data'!$C8)*'C.5 Other assets'!$O$6:$O$149)","v":0},{"$f":"SUMPRODUCT(('C.5 Other assets'!$M$6:$M$149='C. Cost data'!J$4)*('C.5 Other assets'!$L$6:$L$149='C. Cost data'!$C8)*'C.5 Other assets'!$O$6:$O$149)","v":0},{"$f":"SUMPRODUCT(('C.5 Other assets'!$M$6:$M$149='C. Cost data'!K$4)*('C.5 Other assets'!$L$6:$L$149='C. Cost data'!$C8)*'C.5 Other assets'!$O$6:$O$149)","v":0},{"$f":"SUMPRODUCT(('C.5 Other assets'!$M$6:$M$149='C. Cost data'!L$4)*('C.5 Other assets'!$L$6:$L$149='C. Cost data'!$C8)*'C.5 Other assets'!$O$6:$O$149)","v":0},{"$f":"SUMPRODUCT(('C.5 Other assets'!$M$6:$M$149='C. Cost data'!M$4)*('C.5 Other assets'!$L$6:$L$149='C. Cost data'!$C8)*'C.5 Other assets'!$O$6:$O$149)","v":0},{"$f":"SUMPRODUCT(('C.5 Other assets'!$M$6:$M$149='C. Cost data'!N$4)*('C.5 Other assets'!$L$6:$L$149='C. Cost data'!$C8)*'C.5 Other assets'!$O$6:$O$149)","v":0},{"$f":"SUMPRODUCT(('C.5 Other assets'!$M$6:$M$149='C. Cost data'!O$4)*('C.5 Other assets'!$L$6:$L$149='C. Cost data'!$C8)*'C.5 Other assets'!$O$6:$O$149)","v":0},{"$f":"SUMPRODUCT(('C.5 Other assets'!$M$6:$M$149='C. Cost data'!P$4)*('C.5 Other assets'!$L$6:$L$149='C. Cost data'!$C8)*'C.5 Other assets'!$O$6:$O$149)","v":0},{"$f":"SUMPRODUCT(('C.5 Other assets'!$M$6:$M$149='C. Cost data'!Q$4)*('C.5 Other assets'!$L$6:$L$149='C. Cost data'!$C8)*'C.5 Other assets'!$O$6:$O$149)","v":0},{"$f":"SUMPRODUCT(('C.1 Cost data compression'!$O$6:$O$149='C. Cost data'!R$4)*('C.1 Cost data compression'!$N$6:$N$149='C. Cost data'!$C8)*'C.1 Cost data compression'!$Q$6:$Q$149)","v":0},{"$f":"SUMPRODUCT(('C.5 Other assets'!$M$6:$M$149='C. Cost data'!S$4)*('C.5 Other assets'!$L$6:$L$149='C. Cost data'!$C8)*'C.5 Other assets'!$O$6:$O$149)","v":0},{"$f":"SUMPRODUCT(('C.5 Other assets'!$M$6:$M$149='C. Cost data'!T$4)*('C.5 Other assets'!$L$6:$L$149='C. Cost data'!$C8)*'C.5 Other assets'!$O$6:$O$149)","v":0},{"$f":"SUMPRODUCT(('C.5 Other assets'!$M$6:$M$149='C. Cost data'!U$4)*('C.5 Other assets'!$L$6:$L$149='C. Cost data'!$C8)*'C.5 Other assets'!$O$6:$O$149)","v":0},{"$f":"SUMPRODUCT(('C.5 Other assets'!$M$6:$M$149='C. Cost data'!V$4)*('C.5 Other assets'!$L$6:$L$149='C. Cost data'!$C8)*'C.5 Other assets'!$O$6:$O$149)","v":0},{"$f":"SUMPRODUCT(('C.5 Other assets'!$M$6:$M$149='C. Cost data'!W$4)*('C.5 Other assets'!$L$6:$L$149='C. Cost data'!$C8)*'C.5 Other assets'!$O$6:$O$149)","v":0},{"$f":"SUMPRODUCT(('C.5 Other assets'!$M$6:$M$149='C. Cost data'!X$4)*('C.5 Other assets'!$L$6:$L$149='C. Cost data'!$C8)*'C.5 Other assets'!$O$6:$O$149)","v":0},{"$f":"SUMPRODUCT(('C.5 Other assets'!$M$6:$M$149='C. Cost data'!Y$4)*('C.5 Other assets'!$L$6:$L$149='C. Cost data'!$C8)*'C.5 Other assets'!$O$6:$O$149)","v":0},{"$f":"SUMPRODUCT(('C.2 Cost data pipe PE'!$V$6:$V$149='C. Cost data'!Z$4)*('C.2 Cost data pipe PE'!$U$6:$U$149='C. Cost data'!$C8)*'C.2 Cost data pipe PE'!$X$6:$X$149)","v":0},{"$f":"SUMPRODUCT(('C.3 Cost data pipe cath'!$V$6:$V$149='C. Cost data'!AA$4)*('C.3 Cost data pipe cath'!$U$6:$U$149='C. Cost data'!$C8)*'C.3 Cost data pipe cath'!$X$6:$X$149)","v":0},{"$f":"SUMPRODUCT(('C.5 Other assets'!$M$6:$M$149='C. Cost data'!AB$4)*('C.5 Other assets'!$L$6:$L$149='C. Cost data'!$C8)*'C.5 Other assets'!$O$6:$O$149)","v":0},{"$f":"SUMPRODUCT(('C.5 Other assets'!$M$6:$M$149='C. Cost data'!AC$4)*('C.5 Other assets'!$L$6:$L$149='C. Cost data'!$C8)*'C.5 Other assets'!$O$6:$O$149)","v":0},{"$f":"SUMPRODUCT(('C.5 Other assets'!$M$6:$M$149='C. Cost data'!AD$4)*('C.5 Other assets'!$L$6:$L$149='C. Cost data'!$C8)*'C.5 Other assets'!$O$6:$O$149)","v":0},{"$f":"SUMPRODUCT(('C.5 Other assets'!$M$6:$M$149='C. Cost data'!AE$4)*('C.5 Other assets'!$L$6:$L$149='C. Cost data'!$C8)*'C.5 Other assets'!$O$6:$O$149)","v":0},{"$f":"SUMPRODUCT(('C.5 Other assets'!$M$6:$M$149='C. Cost data'!AF$4)*('C.5 Other assets'!$L$6:$L$149='C. Cost data'!$C8)*'C.5 Other assets'!$O$6:$O$149)","v":0},{"$f":"SUMPRODUCT(('C.5 Other assets'!$M$6:$M$149='C. Cost data'!AG$4)*('C.5 Other assets'!$L$6:$L$149='C. Cost data'!$C8)*'C.5 Other assets'!$O$6:$O$149)","v":0},{"$f":"SUMPRODUCT(('C.5 Other assets'!$M$6:$M$149='C. Cost data'!AH$4)*('C.5 Other assets'!$L$6:$L$149='C. Cost data'!$C8)*'C.5 Other assets'!$O$6:$O$149)","v":0},{"$f":"SUMPRODUCT(('C.5 Other assets'!$M$6:$M$149='C. Cost data'!AI$4)*('C.5 Other assets'!$L$6:$L$149='C. Cost data'!$C8)*'C.5 Other assets'!$O$6:$O$149)","v":0},{"$f":"SUMPRODUCT(('C.5 Other assets'!$M$6:$M$149='C. Cost data'!AJ$4)*('C.5 Other assets'!$L$6:$L$149='C. Cost data'!$C8)*'C.5 Other assets'!$O$6:$O$149)","v":0},{"$f":"SUMPRODUCT(('C.5 Other assets'!$M$6:$M$149='C. Cost data'!AK$4)*('C.5 Other assets'!$L$6:$L$149='C. Cost data'!$C8)*'C.5 Other assets'!$O$6:$O$149)","v":0},{"$f":"SUMPRODUCT(('C.5 Other assets'!$M$6:$M$149='C. Cost data'!AL$4)*('C.5 Other assets'!$L$6:$L$149='C. Cost data'!$C8)*'C.5 Other assets'!$O$6:$O$149)","v":0},{"$f":"SUMPRODUCT(('C.4 Cost control equip'!$O$6:$O$149='C. Cost data'!AM$4)*('C.4 Cost control equip'!$N$6:$N$149='C. Cost data'!$C8)*'C.4 Cost control equip'!$Q$6:$Q$149)","v":0},{"$f":"SUMPRODUCT(('C.5 Other assets'!$M$6:$M$149='C. Cost data'!AN$4)*('C.5 Other assets'!$L$6:$L$149='C. Cost data'!$C8)*'C.5 Other assets'!$O$6:$O$149)","v":0},{"$f":"SUMPRODUCT(('C.5 Other assets'!$M$6:$M$149='C. Cost data'!AO$4)*('C.5 Other assets'!$L$6:$L$149='C. Cost data'!$C8)*'C.5 Other assets'!$O$6:$O$149)","v":0},{"$f":"SUMPRODUCT(('C.5 Other assets'!$M$6:$M$149='C. Cost data'!AP$4)*('C.5 Other assets'!$L$6:$L$149='C. Cost data'!$C8)*'C.5 Other assets'!$O$6:$O$149)","v":0},{"$f":"SUMPRODUCT(('C.5 Other assets'!$M$6:$M$149='C. Cost data'!AQ$4)*('C.5 Other assets'!$L$6:$L$149='C. Cost data'!$C8)*'C.5 Other assets'!$O$6:$O$149)","v":0},{"$f":"SUMPRODUCT(('C.5 Other assets'!$M$6:$M$149='C. Cost data'!AR$4)*('C.5 Other assets'!$L$6:$L$149='C. Cost data'!$C8)*'C.5 Other assets'!$O$6:$O$149)","v":0},{"$f":"SUMPRODUCT(('C.5 Other assets'!$M$6:$M$149='C. Cost data'!AS$4)*('C.5 Other assets'!$L$6:$L$149='C. Cost data'!$C8)*'C.5 Other assets'!$O$6:$O$149)","v":0}]
[null,"Assets under construction 2017 – opening balance",{"$f":"C6+1","v":2017},0,{"$f":"E6+E7-E8","v":0},{"$f":"F6+F7-F8","v":0},0,0,0,0,0,0,0,0,0,0,0,0,0,0,0,0,0,0,0,0,0,0,0,0,0,0,0,0,0,0,0,0,0,0,0,0,0,0,0]
[null,"Assets under construction 2017 – additions",{"$f":"C7+1","v":2017},0,{"$f":"SUMPRODUCT(('C.5 Other assets'!$M$6:$M$149='C. Cost data'!E$4)*('C.5 Other assets'!$L$6:$L$149='C. Cost data'!$C10)*'C.5 Other assets'!$N$6:$N$149)","v":0},{"$f":"SUMPRODUCT(('C.5 Other assets'!$M$6:$M$149='C. Cost data'!F$4)*('C.5 Other assets'!$L$6:$L$149='C. Cost data'!$C10)*'C.5 Other assets'!$N$6:$N$149)","v":0},{"$f":"SUMPRODUCT(('C.5 Other assets'!$M$6:$M$149='C. Cost data'!G$4)*('C.5 Other assets'!$L$6:$L$149='C. Cost data'!$C10)*'C.5 Other assets'!$N$6:$N$149)","v":0},{"$f":"SUMPRODUCT(('C.5 Other assets'!$M$6:$M$149='C. Cost data'!H$4)*('C.5 Other assets'!$L$6:$L$149='C. Cost data'!$C10)*'C.5 Other assets'!$N$6:$N$149)","v":0},{"$f":"SUMPRODUCT(('C.5 Other assets'!$M$6:$M$149='C. Cost data'!I$4)*('C.5 Other assets'!$L$6:$L$149='C. Cost data'!$C10)*'C.5 Other assets'!$N$6:$N$149)","v":0},{"$f":"SUMPRODUCT(('C.5 Other assets'!$M$6:$M$149='C. Cost data'!J$4)*('C.5 Other assets'!$L$6:$L$149='C. Cost data'!$C10)*'C.5 Other assets'!$N$6:$N$149)","v":0},{"$f":"SUMPRODUCT(('C.5 Other assets'!$M$6:$M$149='C. Cost data'!K$4)*('C.5 Other assets'!$L$6:$L$149='C. Cost data'!$C10)*'C.5 Other assets'!$N$6:$N$149)","v":0},{"$f":"SUMPRODUCT(('C.5 Other assets'!$M$6:$M$149='C. Cost data'!L$4)*('C.5 Other assets'!$L$6:$L$149='C. Cost data'!$C10)*'C.5 Other assets'!$N$6:$N$149)","v":0},{"$f":"SUMPRODUCT(('C.5 Other assets'!$M$6:$M$149='C. Cost data'!M$4)*('C.5 Other assets'!$L$6:$L$149='C. Cost data'!$C10)*'C.5 Other assets'!$N$6:$N$149)","v":0},{"$f":"SUMPRODUCT(('C.5 Other assets'!$M$6:$M$149='C. Cost data'!N$4)*('C.5 Other assets'!$L$6:$L$149='C. Cost data'!$C10)*'C.5 Other assets'!$N$6:$N$149)","v":0},{"$f":"SUMPRODUCT(('C.5 Other assets'!$M$6:$M$149='C. Cost data'!O$4)*('C.5 Other assets'!$L$6:$L$149='C. Cost data'!$C10)*'C.5 Other assets'!$N$6:$N$149)","v":0},{"$f":"SUMPRODUCT(('C.5 Other assets'!$M$6:$M$149='C. Cost data'!P$4)*('C.5 Other assets'!$L$6:$L$149='C. Cost data'!$C10)*'C.5 Other assets'!$N$6:$N$149)","v":0},{"$f":"SUMPRODUCT(('C.5 Other assets'!$M$6:$M$149='C. Cost data'!Q$4)*('C.5 Other assets'!$L$6:$L$149='C. Cost data'!$C10)*'C.5 Other assets'!$N$6:$N$149)","v":0},{"$f":"SUMPRODUCT(('C.1 Cost data compression'!$O$6:$O$149='C. Cost data'!R$4)*('C.1 Cost data compression'!$N$6:$N$149='C. Cost data'!$C10)*'C.1 Cost data compression'!$P$6:$P$149)","v":0},{"$f":"SUMPRODUCT(('C.5 Other assets'!$M$6:$M$149='C. Cost data'!S$4)*('C.5 Other assets'!$L$6:$L$149='C. Cost data'!$C10)*'C.5 Other assets'!$N$6:$N$149)","v":0},{"$f":"SUMPRODUCT(('C.5 Other assets'!$M$6:$M$149='C. Cost data'!T$4)*('C.5 Other assets'!$L$6:$L$149='C. Cost data'!$C10)*'C.5 Other assets'!$N$6:$N$149)","v":0},{"$f":"SUMPRODUCT(('C.5 Other assets'!$M$6:$M$149='C. Cost data'!U$4)*('C.5 Other assets'!$L$6:$L$149='C. Cost data'!$C10)*'C.5 Other assets'!$N$6:$N$149)","v":0},{"$f":"SUMPRODUCT(('C.5 Other assets'!$M$6:$M$149='C. Cost data'!V$4)*('C.5 Other assets'!$L$6:$L$149='C. Cost data'!$C10)*'C.5 Other assets'!$N$6:$N$149)","v":0},{"$f":"SUMPRODUCT(('C.5 Other assets'!$M$6:$M$149='C. Cost data'!W$4)*('C.5 Other assets'!$L$6:$L$149='C. Cost data'!$C10)*'C.5 Other assets'!$N$6:$N$149)","v":0},{"$f":"SUMPRODUCT(('C.5 Other assets'!$M$6:$M$149='C. Cost data'!X$4)*('C.5 Other assets'!$L$6:$L$149='C. Cost data'!$C10)*'C.5 Other assets'!$N$6:$N$149)","v":0},{"$f":"SUMPRODUCT(('C.5 Other assets'!$M$6:$M$149='C. Cost data'!Y$4)*('C.5 Other assets'!$L$6:$L$149='C. Cost data'!$C10)*'C.5 Other assets'!$N$6:$N$149)","v":0},{"$f":"SUMPRODUCT(('C.2 Cost data pipe PE'!$V$6:$V$149='C. Cost data'!Z$4)*('C.2 Cost data pipe PE'!$U$6:$U$149='C. Cost data'!$C10)*'C.2 Cost data pipe PE'!$W$6:$W$149)","v":0},{"$f":"SUMPRODUCT(('C.3 Cost data pipe cath'!$V$6:$V$149='C. Cost data'!AA$4)*('C.3 Cost data pipe cath'!$U$6:$U$149='C. Cost data'!$C10)*'C.3 Cost data pipe cath'!$W$6:$W$149)","v":0},{"$f":"SUMPRODUCT(('C.5 Other assets'!$M$6:$M$149='C. Cost data'!AB$4)*('C.5 Other assets'!$L$6:$L$149='C. Cost data'!$C10)*'C.5 Other assets'!$N$6:$N$149)","v":0},{"$f":"SUMPRODUCT(('C.5 Other assets'!$M$6:$M$149='C. Cost data'!AC$4)*('C.5 Other assets'!$L$6:$L$149='C. Cost data'!$C10)*'C.5 Other assets'!$N$6:$N$149)","v":0},{"$f":"SUMPRODUCT(('C.5 Other assets'!$M$6:$M$149='C. Cost data'!AD$4)*('C.5 Other assets'!$L$6:$L$149='C. Cost data'!$C10)*'C.5 Other assets'!$N$6:$N$149)","v":0},{"$f":"SUMPRODUCT(('C.5 Other assets'!$M$6:$M$149='C. Cost data'!AE$4)*('C.5 Other assets'!$L$6:$L$149='C. Cost data'!$C10)*'C.5 Other assets'!$N$6:$N$149)","v":0},{"$f":"SUMPRODUCT(('C.5 Other assets'!$M$6:$M$149='C. Cost data'!AF$4)*('C.5 Other assets'!$L$6:$L$149='C. Cost data'!$C10)*'C.5 Other assets'!$N$6:$N$149)","v":0},{"$f":"SUMPRODUCT(('C.5 Other assets'!$M$6:$M$149='C. Cost data'!AG$4)*('C.5 Other assets'!$L$6:$L$149='C. Cost data'!$C10)*'C.5 Other assets'!$N$6:$N$149)","v":0},{"$f":"SUMPRODUCT(('C.5 Other assets'!$M$6:$M$149='C. Cost data'!AH$4)*('C.5 Other assets'!$L$6:$L$149='C. Cost data'!$C10)*'C.5 Other assets'!$N$6:$N$149)","v":0},{"$f":"SUMPRODUCT(('C.5 Other assets'!$M$6:$M$149='C. Cost data'!AI$4)*('C.5 Other assets'!$L$6:$L$149='C. Cost data'!$C10)*'C.5 Other assets'!$N$6:$N$149)","v":0},{"$f":"SUMPRODUCT(('C.5 Other assets'!$M$6:$M$149='C. Cost data'!AJ$4)*('C.5 Other assets'!$L$6:$L$149='C. Cost data'!$C10)*'C.5 Other assets'!$N$6:$N$149)","v":0},{"$f":"SUMPRODUCT(('C.5 Other assets'!$M$6:$M$149='C. Cost data'!AK$4)*('C.5 Other assets'!$L$6:$L$149='C. Cost data'!$C10)*'C.5 Other assets'!$N$6:$N$149)","v":0},{"$f":"SUMPRODUCT(('C.5 Other assets'!$M$6:$M$149='C. Cost data'!AL$4)*('C.5 Other assets'!$L$6:$L$149='C. Cost data'!$C10)*'C.5 Other assets'!$N$6:$N$149)","v":0},{"$f":"SUMPRODUCT(('C.4 Cost control equip'!$O$6:$O$149='C. Cost data'!AM$4)*('C.4 Cost control equip'!$N$6:$N$149='C. Cost data'!$C10)*'C.4 Cost control equip'!$P$6:$P$149)","v":0},{"$f":"SUMPRODUCT(('C.5 Other assets'!$M$6:$M$149='C. Cost data'!AN$4)*('C.5 Other assets'!$L$6:$L$149='C. Cost data'!$C10)*'C.5 Other assets'!$N$6:$N$149)","v":0},{"$f":"SUMPRODUCT(('C.5 Other assets'!$M$6:$M$149='C. Cost data'!AO$4)*('C.5 Other assets'!$L$6:$L$149='C. Cost data'!$C10)*'C.5 Other assets'!$N$6:$N$149)","v":0},{"$f":"SUMPRODUCT(('C.5 Other assets'!$M$6:$M$149='C. Cost data'!AP$4)*('C.5 Other assets'!$L$6:$L$149='C. Cost data'!$C10)*'C.5 Other assets'!$N$6:$N$149)","v":0},{"$f":"SUMPRODUCT(('C.5 Other assets'!$M$6:$M$149='C. Cost data'!AQ$4)*('C.5 Other assets'!$L$6:$L$149='C. Cost data'!$C10)*'C.5 Other assets'!$N$6:$N$149)","v":0},{"$f":"SUMPRODUCT(('C.5 Other assets'!$M$6:$M$149='C. Cost data'!AR$4)*('C.5 Other assets'!$L$6:$L$149='C. Cost data'!$C10)*'C.5 Other assets'!$N$6:$N$149)","v":0},{"$f":"SUMPRODUCT(('C.5 Other assets'!$M$6:$M$149='C. Cost data'!AS$4)*('C.5 Other assets'!$L$6:$L$149='C. Cost data'!$C10)*'C.5 Other assets'!$N$6:$N$149)","v":0}]
[null,"Assets under construction 2017 – disposals/reclassifications",{"$f":"C8+1","v":2017},0,{"$f":"SUMPRODUCT(('C.5 Other assets'!$M$6:$M$149='C. Cost data'!E$4)*('C.5 Other assets'!$L$6:$L$149='C. Cost data'!$C11)*'C.5 Other assets'!$O$6:$O$149)","v":0},null,{"$f":"SUMPRODUCT(('C.5 Other assets'!$M$6:$M$149='C. Cost data'!G$4)*('C.5 Other assets'!$L$6:$L$149='C. Cost data'!$C11)*'C.5 Other assets'!$O$6:$O$149)","v":0},{"$f":"SUMPRODUCT(('C.5 Other assets'!$M$6:$M$149='C. Cost data'!H$4)*('C.5 Other assets'!$L$6:$L$149='C. Cost data'!$C11)*'C.5 Other assets'!$O$6:$O$149)","v":0},{"$f":"SUMPRODUCT(('C.5 Other assets'!$M$6:$M$149='C. Cost data'!I$4)*('C.5 Other assets'!$L$6:$L$149='C. Cost data'!$C11)*'C.5 Other assets'!$O$6:$O$149)","v":0},{"$f":"SUMPRODUCT(('C.5 Other assets'!$M$6:$M$149='C. Cost data'!J$4)*('C.5 Other assets'!$L$6:$L$149='C. Cost data'!$C11)*'C.5 Other assets'!$O$6:$O$149)","v":0},{"$f":"SUMPRODUCT(('C.5 Other assets'!$M$6:$M$149='C. Cost data'!K$4)*('C.5 Other assets'!$L$6:$L$149='C. Cost data'!$C11)*'C.5 Other assets'!$O$6:$O$149)","v":0},{"$f":"SUMPRODUCT(('C.5 Other assets'!$M$6:$M$149='C. Cost data'!L$4)*('C.5 Other assets'!$L$6:$L$149='C. Cost data'!$C11)*'C.5 Other assets'!$O$6:$O$149)","v":0},{"$f":"SUMPRODUCT(('C.5 Other assets'!$M$6:$M$149='C. Cost data'!M$4)*('C.5 Other assets'!$L$6:$L$149='C. Cost data'!$C11)*'C.5 Other assets'!$O$6:$O$149)","v":0},{"$f":"SUMPRODUCT(('C.5 Other assets'!$M$6:$M$149='C. Cost data'!N$4)*('C.5 Other assets'!$L$6:$L$149='C. Cost data'!$C11)*'C.5 Other assets'!$O$6:$O$149)","v":0},{"$f":"SUMPRODUCT(('C.5 Other assets'!$M$6:$M$149='C. Cost data'!O$4)*('C.5 Other assets'!$L$6:$L$149='C. Cost data'!$C11)*'C.5 Other assets'!$O$6:$O$149)","v":0},{"$f":"SUMPRODUCT(('C.5 Other assets'!$M$6:$M$149='C. Cost data'!P$4)*('C.5 Other assets'!$L$6:$L$149='C. Cost data'!$C11)*'C.5 Other assets'!$O$6:$O$149)","v":0},{"$f":"SUMPRODUCT(('C.5 Other assets'!$M$6:$M$149='C. Cost data'!Q$4)*('C.5 Other assets'!$L$6:$L$149='C. Cost data'!$C11)*'C.5 Other assets'!$O$6:$O$149)","v":0},{"$f":"SUMPRODUCT(('C.1 Cost data compression'!$O$6:$O$149='C. Cost data'!R$4)*('C.1 Cost data compression'!$N$6:$N$149='C. Cost data'!$C11)*'C.1 Cost data compression'!$Q$6:$Q$149)","v":0},{"$f":"SUMPRODUCT(('C.5 Other assets'!$M$6:$M$149='C. Cost data'!S$4)*('C.5 Other assets'!$L$6:$L$149='C. Cost data'!$C11)*'C.5 Other assets'!$O$6:$O$149)","v":0},{"$f":"SUMPRODUCT(('C.5 Other assets'!$M$6:$M$149='C. Cost data'!T$4)*('C.5 Other assets'!$L$6:$L$149='C. Cost data'!$C11)*'C.5 Other assets'!$O$6:$O$149)","v":0},{"$f":"SUMPRODUCT(('C.5 Other assets'!$M$6:$M$149='C. Cost data'!U$4)*('C.5 Other assets'!$L$6:$L$149='C. Cost data'!$C11)*'C.5 Other assets'!$O$6:$O$149)","v":0},{"$f":"SUMPRODUCT(('C.5 Other assets'!$M$6:$M$149='C. Cost data'!V$4)*('C.5 Other assets'!$L$6:$L$149='C. Cost data'!$C11)*'C.5 Other assets'!$O$6:$O$149)","v":0},{"$f":"SUMPRODUCT(('C.5 Other assets'!$M$6:$M$149='C. Cost data'!W$4)*('C.5 Other assets'!$L$6:$L$149='C. Cost data'!$C11)*'C.5 Other assets'!$O$6:$O$149)","v":0},{"$f":"SUMPRODUCT(('C.5 Other assets'!$M$6:$M$149='C. Cost data'!X$4)*('C.5 Other assets'!$L$6:$L$149='C. Cost data'!$C11)*'C.5 Other assets'!$O$6:$O$149)","v":0},{"$f":"SUMPRODUCT(('C.5 Other assets'!$M$6:$M$149='C. Cost data'!Y$4)*('C.5 Other assets'!$L$6:$L$149='C. Cost data'!$C11)*'C.5 Other assets'!$O$6:$O$149)","v":0},{"$f":"SUMPRODUCT(('C.2 Cost data pipe PE'!$V$6:$V$149='C. Cost data'!Z$4)*('C.2 Cost data pipe PE'!$U$6:$U$149='C. Cost data'!$C11)*'C.2 Cost data pipe PE'!$X$6:$X$149)","v":0},{"$f":"SUMPRODUCT(('C.3 Cost data pipe cath'!$V$6:$V$149='C. Cost data'!AA$4)*('C.3 Cost data pipe cath'!$U$6:$U$149='C. Cost data'!$C11)*'C.3 Cost data pipe cath'!$X$6:$X$149)","v":0},{"$f":"SUMPRODUCT(('C.5 Other assets'!$M$6:$M$149='C. Cost data'!AB$4)*('C.5 Other assets'!$L$6:$L$149='C. Cost data'!$C11)*'C.5 Other assets'!$O$6:$O$149)","v":0},{"$f":"SUMPRODUCT(('C.5 Other assets'!$M$6:$M$149='C. Cost data'!AC$4)*('C.5 Other assets'!$L$6:$L$149='C. Cost data'!$C11)*'C.5 Other assets'!$O$6:$O$149)","v":0},{"$f":"SUMPRODUCT(('C.5 Other assets'!$M$6:$M$149='C. Cost data'!AD$4)*('C.5 Other assets'!$L$6:$L$149='C. Cost data'!$C11)*'C.5 Other assets'!$O$6:$O$149)","v":0},{"$f":"SUMPRODUCT(('C.5 Other assets'!$M$6:$M$149='C. Cost data'!AE$4)*('C.5 Other assets'!$L$6:$L$149='C. Cost data'!$C11)*'C.5 Other assets'!$O$6:$O$149)","v":0},{"$f":"SUMPRODUCT(('C.5 Other assets'!$M$6:$M$149='C. Cost data'!AF$4)*('C.5 Other assets'!$L$6:$L$149='C. Cost data'!$C11)*'C.5 Other assets'!$O$6:$O$149)","v":0},{"$f":"SUMPRODUCT(('C.5 Other assets'!$M$6:$M$149='C. Cost data'!AG$4)*('C.5 Other assets'!$L$6:$L$149='C. Cost data'!$C11)*'C.5 Other assets'!$O$6:$O$149)","v":0},{"$f":"SUMPRODUCT(('C.5 Other assets'!$M$6:$M$149='C. Cost data'!AH$4)*('C.5 Other assets'!$L$6:$L$149='C. Cost data'!$C11)*'C.5 Other assets'!$O$6:$O$149)","v":0},{"$f":"SUMPRODUCT(('C.5 Other assets'!$M$6:$M$149='C. Cost data'!AI$4)*('C.5 Other assets'!$L$6:$L$149='C. Cost data'!$C11)*'C.5 Other assets'!$O$6:$O$149)","v":0},{"$f":"SUMPRODUCT(('C.5 Other assets'!$M$6:$M$149='C. Cost data'!AJ$4)*('C.5 Other assets'!$L$6:$L$149='C. Cost data'!$C11)*'C.5 Other assets'!$O$6:$O$149)","v":0},{"$f":"SUMPRODUCT(('C.5 Other assets'!$M$6:$M$149='C. Cost data'!AK$4)*('C.5 Other assets'!$L$6:$L$149='C. Cost data'!$C11)*'C.5 Other assets'!$O$6:$O$149)","v":0},{"$f":"SUMPRODUCT(('C.5 Other assets'!$M$6:$M$149='C. Cost data'!AL$4)*('C.5 Other assets'!$L$6:$L$149='C. Cost data'!$C11)*'C.5 Other assets'!$O$6:$O$149)","v":0},{"$f":"SUMPRODUCT(('C.4 Cost control equip'!$O$6:$O$149='C. Cost data'!AM$4)*('C.4 Cost control equip'!$N$6:$N$149='C. Cost data'!$C11)*'C.4 Cost control equip'!$Q$6:$Q$149)","v":0},{"$f":"SUMPRODUCT(('C.5 Other assets'!$M$6:$M$149='C. Cost data'!AN$4)*('C.5 Other assets'!$L$6:$L$149='C. Cost data'!$C11)*'C.5 Other assets'!$O$6:$O$149)","v":0},{"$f":"SUMPRODUCT(('C.5 Other assets'!$M$6:$M$149='C. Cost data'!AO$4)*('C.5 Other assets'!$L$6:$L$149='C. Cost data'!$C11)*'C.5 Other assets'!$O$6:$O$149)","v":0},{"$f":"SUMPRODUCT(('C.5 Other assets'!$M$6:$M$149='C. Cost data'!AP$4)*('C.5 Other assets'!$L$6:$L$149='C. Cost data'!$C11)*'C.5 Other assets'!$O$6:$O$149)","v":0},{"$f":"SUMPRODUCT(('C.5 Other assets'!$M$6:$M$149='C. Cost data'!AQ$4)*('C.5 Other assets'!$L$6:$L$149='C. Cost data'!$C11)*'C.5 Other assets'!$O$6:$O$149)","v":0},{"$f":"SUMPRODUCT(('C.5 Other assets'!$M$6:$M$149='C. Cost data'!AR$4)*('C.5 Other assets'!$L$6:$L$149='C. Cost data'!$C11)*'C.5 Other assets'!$O$6:$O$149)","v":0},{"$f":"SUMPRODUCT(('C.5 Other assets'!$M$6:$M$149='C. Cost data'!AS$4)*('C.5 Other assets'!$L$6:$L$149='C. Cost data'!$C11)*'C.5 Other assets'!$O$6:$O$149)","v":0},{"$f":"COLUMN()","v":46}]
[null,"Assets under construction 2018 – opening balance",{"$f":"C9+1","v":2018},0,{"$f":"E9+E10-E11","v":0},0,0,0,0,0,0,0,0,0,0,0,0,0,0,0,0,0,0,0,0,0,0,0,0,0,0,0,0,0,0,0,0,0,0,0,0,0,0,0,0]
[null,"Assets under construction 2018 – additions",2018,0,{"$f":"SUMPRODUCT(('C.5 Other assets'!$M$6:$M$149='C. Cost data'!E$4)*('C.5 Other assets'!$L$6:$L$149='C. Cost data'!$C13)*'C.5 Other assets'!$N$6:$N$149)","v":0},{"$f":"SUMPRODUCT(('C.5 Other assets'!$M$6:$M$149='C. Cost data'!F$4)*('C.5 Other assets'!$L$6:$L$149='C. Cost data'!$C13)*'C.5 Other assets'!$N$6:$N$149)","v":0},{"$f":"SUMPRODUCT(('C.5 Other assets'!$M$6:$M$149='C. Cost data'!G$4)*('C.5 Other assets'!$L$6:$L$149='C. Cost data'!$C13)*'C.5 Other assets'!$N$6:$N$149)","v":0},{"$f":"SUMPRODUCT(('C.5 Other assets'!$M$6:$M$149='C. Cost data'!H$4)*('C.5 Other assets'!$L$6:$L$149='C. Cost data'!$C13)*'C.5 Other assets'!$N$6:$N$149)","v":0},{"$f":"SUMPRODUCT(('C.5 Other assets'!$M$6:$M$149='C. Cost data'!I$4)*('C.5 Other assets'!$L$6:$L$149='C. Cost data'!$C13)*'C.5 Other assets'!$N$6:$N$149)","v":0},{"$f":"SUMPRODUCT(('C.5 Other assets'!$M$6:$M$149='C. Cost data'!J$4)*('C.5 Other assets'!$L$6:$L$149='C. Cost data'!$C13)*'C.5 Other assets'!$N$6:$N$149)","v":0},{"$f":"SUMPRODUCT(('C.5 Other assets'!$M$6:$M$149='C. Cost data'!K$4)*('C.5 Other assets'!$L$6:$L$149='C. Cost data'!$C13)*'C.5 Other assets'!$N$6:$N$149)","v":0},{"$f":"SUMPRODUCT(('C.5 Other assets'!$M$6:$M$149='C. Cost data'!L$4)*('C.5 Other assets'!$L$6:$L$149='C. Cost data'!$C13)*'C.5 Other assets'!$N$6:$N$149)","v":0},{"$f":"SUMPRODUCT(('C.5 Other assets'!$M$6:$M$149='C. Cost data'!M$4)*('C.5 Other assets'!$L$6:$L$149='C. Cost data'!$C13)*'C.5 Other assets'!$N$6:$N$149)","v":0},{"$f":"SUMPRODUCT(('C.5 Other assets'!$M$6:$M$149='C. Cost data'!N$4)*('C.5 Other assets'!$L$6:$L$149='C. Cost data'!$C13)*'C.5 Other assets'!$N$6:$N$149)","v":0},{"$f":"SUMPRODUCT(('C.5 Other assets'!$M$6:$M$149='C. Cost data'!O$4)*('C.5 Other assets'!$L$6:$L$149='C. Cost data'!$C13)*'C.5 Other assets'!$N$6:$N$149)","v":0},{"$f":"SUMPRODUCT(('C.5 Other assets'!$M$6:$M$149='C. Cost data'!P$4)*('C.5 Other assets'!$L$6:$L$149='C. Cost data'!$C13)*'C.5 Other assets'!$N$6:$N$149)","v":0},{"$f":"SUMPRODUCT(('C.5 Other assets'!$M$6:$M$149='C. Cost data'!Q$4)*('C.5 Other assets'!$L$6:$L$149='C. Cost data'!$C13)*'C.5 Other assets'!$N$6:$N$149)","v":0},{"$f":"SUMPRODUCT(('C.1 Cost data compression'!$O$6:$O$149='C. Cost data'!R$4)*('C.1 Cost data compression'!$N$6:$N$149='C. Cost data'!$C13)*'C.1 Cost data compression'!$P$6:$P$149)","v":0},{"$f":"SUMPRODUCT(('C.5 Other assets'!$M$6:$M$149='C. Cost data'!S$4)*('C.5 Other assets'!$L$6:$L$149='C. Cost data'!$C13)*'C.5 Other assets'!$N$6:$N$149)","v":0},{"$f":"SUMPRODUCT(('C.5 Other assets'!$M$6:$M$149='C. Cost data'!T$4)*('C.5 Other assets'!$L$6:$L$149='C. Cost data'!$C13)*'C.5 Other assets'!$N$6:$N$149)","v":0},{"$f":"SUMPRODUCT(('C.5 Other assets'!$M$6:$M$149='C. Cost data'!U$4)*('C.5 Other assets'!$L$6:$L$149='C. Cost data'!$C13)*'C.5 Other assets'!$N$6:$N$149)","v":0},{"$f":"SUMPRODUCT(('C.5 Other assets'!$M$6:$M$149='C. Cost data'!V$4)*('C.5 Other assets'!$L$6:$L$149='C. Cost data'!$C13)*'C.5 Other assets'!$N$6:$N$149)","v":0},{"$f":"SUMPRODUCT(('C.5 Other assets'!$M$6:$M$149='C. Cost data'!W$4)*('C.5 Other assets'!$L$6:$L$149='C. Cost data'!$C13)*'C.5 Other assets'!$N$6:$N$149)","v":0},{"$f":"SUMPRODUCT(('C.5 Other assets'!$M$6:$M$149='C. Cost data'!X$4)*('C.5 Other assets'!$L$6:$L$149='C. Cost data'!$C13)*'C.5 Other assets'!$N$6:$N$149)","v":0},{"$f":"SUMPRODUCT(('C.5 Other assets'!$M$6:$M$149='C. Cost data'!Y$4)*('C.5 Other assets'!$L$6:$L$149='C. Cost data'!$C13)*'C.5 Other assets'!$N$6:$N$149)","v":0},{"$f":"SUMPRODUCT(('C.2 Cost data pipe PE'!$V$6:$V$149='C. Cost data'!Z$4)*('C.2 Cost data pipe PE'!$U$6:$U$149='C. Cost data'!$C13)*'C.2 Cost data pipe PE'!$W$6:$W$149)","v":0},{"$f":"SUMPRODUCT(('C.3 Cost data pipe cath'!$V$6:$V$149='C. Cost data'!AA$4)*('C.3 Cost data pipe cath'!$U$6:$U$149='C. Cost data'!$C13)*'C.3 Cost data pipe cath'!$W$6:$W$149)","v":0},{"$f":"SUMPRODUCT(('C.5 Other assets'!$M$6:$M$149='C. Cost data'!AB$4)*('C.5 Other assets'!$L$6:$L$149='C. Cost data'!$C13)*'C.5 Other assets'!$N$6:$N$149)","v":0},{"$f":"SUMPRODUCT(('C.5 Other assets'!$M$6:$M$149='C. Cost data'!AC$4)*('C.5 Other assets'!$L$6:$L$149='C. Cost data'!$C13)*'C.5 Other assets'!$N$6:$N$149)","v":0},{"$f":"SUMPRODUCT(('C.5 Other assets'!$M$6:$M$149='C. Cost data'!AD$4)*('C.5 Other assets'!$L$6:$L$149='C. Cost data'!$C13)*'C.5 Other assets'!$N$6:$N$149)","v":0},{"$f":"SUMPRODUCT(('C.5 Other assets'!$M$6:$M$149='C. Cost data'!AE$4)*('C.5 Other assets'!$L$6:$L$149='C. Cost data'!$C13)*'C.5 Other assets'!$N$6:$N$149)","v":0},{"$f":"SUMPRODUCT(('C.5 Other assets'!$M$6:$M$149='C. Cost data'!AF$4)*('C.5 Other assets'!$L$6:$L$149='C. Cost data'!$C13)*'C.5 Other assets'!$N$6:$N$149)","v":0},{"$f":"SUMPRODUCT(('C.5 Other assets'!$M$6:$M$149='C. Cost data'!AG$4)*('C.5 Other assets'!$L$6:$L$149='C. Cost data'!$C13)*'C.5 Other assets'!$N$6:$N$149)","v":0},{"$f":"SUMPRODUCT(('C.5 Other assets'!$M$6:$M$149='C. Cost data'!AH$4)*('C.5 Other assets'!$L$6:$L$149='C. Cost data'!$C13)*'C.5 Other assets'!$N$6:$N$149)","v":0},{"$f":"SUMPRODUCT(('C.5 Other assets'!$M$6:$M$149='C. Cost data'!AI$4)*('C.5 Other assets'!$L$6:$L$149='C. Cost data'!$C13)*'C.5 Other assets'!$N$6:$N$149)","v":0},{"$f":"SUMPRODUCT(('C.5 Other assets'!$M$6:$M$149='C. Cost data'!AJ$4)*('C.5 Other assets'!$L$6:$L$149='C. Cost data'!$C13)*'C.5 Other assets'!$N$6:$N$149)","v":0},{"$f":"SUMPRODUCT(('C.5 Other assets'!$M$6:$M$149='C. Cost data'!AK$4)*('C.5 Other assets'!$L$6:$L$149='C. Cost data'!$C13)*'C.5 Other assets'!$N$6:$N$149)","v":0},{"$f":"SUMPRODUCT(('C.5 Other assets'!$M$6:$M$149='C. Cost data'!AL$4)*('C.5 Other assets'!$L$6:$L$149='C. Cost data'!$C13)*'C.5 Other assets'!$N$6:$N$149)","v":0},{"$f":"SUMPRODUCT(('C.4 Cost control equip'!$O$6:$O$149='C. Cost data'!AM$4)*('C.4 Cost control equip'!$N$6:$N$149='C. Cost data'!$C13)*'C.4 Cost control equip'!$P$6:$P$149)","v":0},{"$f":"SUMPRODUCT(('C.5 Other assets'!$M$6:$M$149='C. Cost data'!AN$4)*('C.5 Other assets'!$L$6:$L$149='C. Cost data'!$C13)*'C.5 Other assets'!$N$6:$N$149)","v":0},{"$f":"SUMPRODUCT(('C.5 Other assets'!$M$6:$M$149='C. Cost data'!AO$4)*('C.5 Other assets'!$L$6:$L$149='C. Cost data'!$C13)*'C.5 Other assets'!$N$6:$N$149)","v":0},{"$f":"SUMPRODUCT(('C.5 Other assets'!$M$6:$M$149='C. Cost data'!AP$4)*('C.5 Other assets'!$L$6:$L$149='C. Cost data'!$C13)*'C.5 Other assets'!$N$6:$N$149)","v":0},{"$f":"SUMPRODUCT(('C.5 Other assets'!$M$6:$M$149='C. Cost data'!AQ$4)*('C.5 Other assets'!$L$6:$L$149='C. Cost data'!$C13)*'C.5 Other assets'!$N$6:$N$149)","v":0},{"$f":"SUMPRODUCT(('C.5 Other assets'!$M$6:$M$149='C. Cost data'!AR$4)*('C.5 Other assets'!$L$6:$L$149='C. Cost data'!$C13)*'C.5 Other assets'!$N$6:$N$149)","v":0},{"$f":"SUMPRODUCT(('C.5 Other assets'!$M$6:$M$149='C. Cost data'!AS$4)*('C.5 Other assets'!$L$6:$L$149='C. Cost data'!$C13)*'C.5 Other assets'!$N$6:$N$149)","v":0}]
[null,"Assets under construction 2018 – disposals/reclassifications",2018,0,{"$f":"SUMPRODUCT(('C.5 Other assets'!$M$6:$M$149='C. Cost data'!E$4)*('C.5 Other assets'!$L$6:$L$149='C. Cost data'!$C14)*'C.5 Other assets'!$O$6:$O$149)","v":0},{"$f":"SUMPRODUCT(('C.5 Other assets'!$M$6:$M$149='C. Cost data'!F$4)*('C.5 Other assets'!$L$6:$L$149='C. Cost data'!$C14)*'C.5 Other assets'!$O$6:$O$149)","v":0},{"$f":"SUMPRODUCT(('C.5 Other assets'!$M$6:$M$149='C. Cost data'!G$4)*('C.5 Other assets'!$L$6:$L$149='C. Cost data'!$C14)*'C.5 Other assets'!$O$6:$O$149)","v":0},{"$f":"SUMPRODUCT(('C.5 Other assets'!$M$6:$M$149='C. Cost data'!H$4)*('C.5 Other assets'!$L$6:$L$149='C. Cost data'!$C14)*'C.5 Other assets'!$O$6:$O$149)","v":0},{"$f":"SUMPRODUCT(('C.5 Other assets'!$M$6:$M$149='C. Cost data'!I$4)*('C.5 Other assets'!$L$6:$L$149='C. Cost data'!$C14)*'C.5 Other assets'!$O$6:$O$149)","v":0},{"$f":"SUMPRODUCT(('C.5 Other assets'!$M$6:$M$149='C. Cost data'!J$4)*('C.5 Other assets'!$L$6:$L$149='C. Cost data'!$C14)*'C.5 Other assets'!$O$6:$O$149)","v":0},{"$f":"SUMPRODUCT(('C.5 Other assets'!$M$6:$M$149='C. Cost data'!K$4)*('C.5 Other assets'!$L$6:$L$149='C. Cost data'!$C14)*'C.5 Other assets'!$O$6:$O$149)","v":0},{"$f":"SUMPRODUCT(('C.5 Other assets'!$M$6:$M$149='C. Cost data'!L$4)*('C.5 Other assets'!$L$6:$L$149='C. Cost data'!$C14)*'C.5 Other assets'!$O$6:$O$149)","v":0},{"$f":"SUMPRODUCT(('C.5 Other assets'!$M$6:$M$149='C. Cost data'!M$4)*('C.5 Other assets'!$L$6:$L$149='C. Cost data'!$C14)*'C.5 Other assets'!$O$6:$O$149)","v":0},{"$f":"SUMPRODUCT(('C.5 Other assets'!$M$6:$M$149='C. Cost data'!N$4)*('C.5 Other assets'!$L$6:$L$149='C. Cost data'!$C14)*'C.5 Other assets'!$O$6:$O$149)","v":0},{"$f":"SUMPRODUCT(('C.5 Other assets'!$M$6:$M$149='C. Cost data'!O$4)*('C.5 Other assets'!$L$6:$L$149='C. Cost data'!$C14)*'C.5 Other assets'!$O$6:$O$149)","v":0},{"$f":"SUMPRODUCT(('C.5 Other assets'!$M$6:$M$149='C. Cost data'!P$4)*('C.5 Other assets'!$L$6:$L$149='C. Cost data'!$C14)*'C.5 Other assets'!$O$6:$O$149)","v":0},{"$f":"SUMPRODUCT(('C.5 Other assets'!$M$6:$M$149='C. Cost data'!Q$4)*('C.5 Other assets'!$L$6:$L$149='C. Cost data'!$C14)*'C.5 Other assets'!$O$6:$O$149)","v":0},{"$f":"SUMPRODUCT(('C.1 Cost data compression'!$O$6:$O$149='C. Cost data'!R$4)*('C.1 Cost data compression'!$N$6:$N$149='C. Cost data'!$C14)*'C.1 Cost data compression'!$Q$6:$Q$149)","v":0},{"$f":"SUMPRODUCT(('C.5 Other assets'!$M$6:$M$149='C. Cost data'!S$4)*('C.5 Other assets'!$L$6:$L$149='C. Cost data'!$C14)*'C.5 Other assets'!$O$6:$O$149)","v":0},{"$f":"SUMPRODUCT(('C.5 Other assets'!$M$6:$M$149='C. Cost data'!T$4)*('C.5 Other assets'!$L$6:$L$149='C. Cost data'!$C14)*'C.5 Other assets'!$O$6:$O$149)","v":0},{"$f":"SUMPRODUCT(('C.5 Other assets'!$M$6:$M$149='C. Cost data'!U$4)*('C.5 Other assets'!$L$6:$L$149='C. Cost data'!$C14)*'C.5 Other assets'!$O$6:$O$149)","v":0},{"$f":"SUMPRODUCT(('C.5 Other assets'!$M$6:$M$149='C. Cost data'!V$4)*('C.5 Other assets'!$L$6:$L$149='C. Cost data'!$C14)*'C.5 Other assets'!$O$6:$O$149)","v":0},{"$f":"SUMPRODUCT(('C.5 Other assets'!$M$6:$M$149='C. Cost data'!W$4)*('C.5 Other assets'!$L$6:$L$149='C. Cost data'!$C14)*'C.5 Other assets'!$O$6:$O$149)","v":0},{"$f":"SUMPRODUCT(('C.5 Other assets'!$M$6:$M$149='C. Cost data'!X$4)*('C.5 Other assets'!$L$6:$L$149='C. Cost data'!$C14)*'C.5 Other assets'!$O$6:$O$149)","v":0},{"$f":"SUMPRODUCT(('C.5 Other assets'!$M$6:$M$149='C. Cost data'!Y$4)*('C.5 Other assets'!$L$6:$L$149='C. Cost data'!$C14)*'C.5 Other assets'!$O$6:$O$149)","v":0},{"$f":"SUMPRODUCT(('C.2 Cost data pipe PE'!$V$6:$V$149='C. Cost data'!Z$4)*('C.2 Cost data pipe PE'!$U$6:$U$149='C. Cost data'!$C14)*'C.2 Cost data pipe PE'!$X$6:$X$149)","v":0},{"$f":"SUMPRODUCT(('C.3 Cost data pipe cath'!$V$6:$V$149='C. Cost data'!AA$4)*('C.3 Cost data pipe cath'!$U$6:$U$149='C. Cost data'!$C14)*'C.3 Cost data pipe cath'!$X$6:$X$149)","v":0},{"$f":"SUMPRODUCT(('C.5 Other assets'!$M$6:$M$149='C. Cost data'!AB$4)*('C.5 Other assets'!$L$6:$L$149='C. Cost data'!$C14)*'C.5 Other assets'!$O$6:$O$149)","v":0},{"$f":"SUMPRODUCT(('C.5 Other assets'!$M$6:$M$149='C. Cost data'!AC$4)*('C.5 Other assets'!$L$6:$L$149='C. Cost data'!$C14)*'C.5 Other assets'!$O$6:$O$149)","v":0},{"$f":"SUMPRODUCT(('C.5 Other assets'!$M$6:$M$149='C. Cost data'!AD$4)*('C.5 Other assets'!$L$6:$L$149='C. Cost data'!$C14)*'C.5 Other assets'!$O$6:$O$149)","v":0},{"$f":"SUMPRODUCT(('C.5 Other assets'!$M$6:$M$149='C. Cost data'!AE$4)*('C.5 Other assets'!$L$6:$L$149='C. Cost data'!$C14)*'C.5 Other assets'!$O$6:$O$149)","v":0},{"$f":"SUMPRODUCT(('C.5 Other assets'!$M$6:$M$149='C. Cost data'!AF$4)*('C.5 Other assets'!$L$6:$L$149='C. Cost data'!$C14)*'C.5 Other assets'!$O$6:$O$149)","v":0},{"$f":"SUMPRODUCT(('C.5 Other assets'!$M$6:$M$149='C. Cost data'!AG$4)*('C.5 Other assets'!$L$6:$L$149='C. Cost data'!$C14)*'C.5 Other assets'!$O$6:$O$149)","v":0},{"$f":"SUMPRODUCT(('C.5 Other assets'!$M$6:$M$149='C. Cost data'!AH$4)*('C.5 Other assets'!$L$6:$L$149='C. Cost data'!$C14)*'C.5 Other assets'!$O$6:$O$149)","v":0},{"$f":"SUMPRODUCT(('C.5 Other assets'!$M$6:$M$149='C. Cost data'!AI$4)*('C.5 Other assets'!$L$6:$L$149='C. Cost data'!$C14)*'C.5 Other assets'!$O$6:$O$149)","v":0},{"$f":"SUMPRODUCT(('C.5 Other assets'!$M$6:$M$149='C. Cost data'!AJ$4)*('C.5 Other assets'!$L$6:$L$149='C. Cost data'!$C14)*'C.5 Other assets'!$O$6:$O$149)","v":0},{"$f":"SUMPRODUCT(('C.5 Other assets'!$M$6:$M$149='C. Cost data'!AK$4)*('C.5 Other assets'!$L$6:$L$149='C. Cost data'!$C14)*'C.5 Other assets'!$O$6:$O$149)","v":0},{"$f":"SUMPRODUCT(('C.5 Other assets'!$M$6:$M$149='C. Cost data'!AL$4)*('C.5 Other assets'!$L$6:$L$149='C. Cost data'!$C14)*'C.5 Other assets'!$O$6:$O$149)","v":0},{"$f":"SUMPRODUCT(('C.4 Cost control equip'!$O$6:$O$149='C. Cost data'!AM$4)*('C.4 Cost control equip'!$N$6:$N$149='C. Cost data'!$C14)*'C.4 Cost control equip'!$Q$6:$Q$149)","v":0},{"$f":"SUMPRODUCT(('C.5 Other assets'!$M$6:$M$149='C. Cost data'!AN$4)*('C.5 Other assets'!$L$6:$L$149='C. Cost data'!$C14)*'C.5 Other assets'!$O$6:$O$149)","v":0},{"$f":"SUMPRODUCT(('C.5 Other assets'!$M$6:$M$149='C. Cost data'!AO$4)*('C.5 Other assets'!$L$6:$L$149='C. Cost data'!$C14)*'C.5 Other assets'!$O$6:$O$149)","v":0},{"$f":"SUMPRODUCT(('C.5 Other assets'!$M$6:$M$149='C. Cost data'!AP$4)*('C.5 Other assets'!$L$6:$L$149='C. Cost data'!$C14)*'C.5 Other assets'!$O$6:$O$149)","v":0},{"$f":"SUMPRODUCT(('C.5 Other assets'!$M$6:$M$149='C. Cost data'!AQ$4)*('C.5 Other assets'!$L$6:$L$149='C. Cost data'!$C14)*'C.5 Other assets'!$O$6:$O$149)","v":0},{"$f":"SUMPRODUCT(('C.5 Other assets'!$M$6:$M$149='C. Cost data'!AR$4)*('C.5 Other assets'!$L$6:$L$149='C. Cost data'!$C14)*'C.5 Other assets'!$O$6:$O$149)","v":0},{"$f":"SUMPRODUCT(('C.5 Other assets'!$M$6:$M$149='C. Cost data'!AS$4)*('C.5 Other assets'!$L$6:$L$149='C. Cost data'!$C14)*'C.5 Other assets'!$O$6:$O$149)","v":0}]
[null,"Assets under construction 2019 – opening balance",2019,0,{"$f":"E12+E13-E14","v":0},0,0,0,0,0,0,0,0,0,0,0,0,0,0,0,0,0,0,0,0,0,0,0,0,0,0,0,0,0,0,0,0,0,0,0,0,0,0,0,0]
[null,"Assets under construction 2019 – additions",2019,0,{"$f":"SUMPRODUCT(('C.5 Other assets'!$M$6:$M$149='C. Cost data'!E$4)*('C.5 Other assets'!$L$6:$L$149='C. Cost data'!$C16)*'C.5 Other assets'!$N$6:$N$149)","v":0},{"$f":"SUMPRODUCT(('C.5 Other assets'!$M$6:$M$149='C. Cost data'!F$4)*('C.5 Other assets'!$L$6:$L$149='C. Cost data'!$C16)*'C.5 Other assets'!$N$6:$N$149)","v":0},{"$f":"SUMPRODUCT(('C.5 Other assets'!$M$6:$M$149='C. Cost data'!G$4)*('C.5 Other assets'!$L$6:$L$149='C. Cost data'!$C16)*'C.5 Other assets'!$N$6:$N$149)","v":0},{"$f":"SUMPRODUCT(('C.5 Other assets'!$M$6:$M$149='C. Cost data'!H$4)*('C.5 Other assets'!$L$6:$L$149='C. Cost data'!$C16)*'C.5 Other assets'!$N$6:$N$149)","v":0},{"$f":"SUMPRODUCT(('C.5 Other assets'!$M$6:$M$149='C. Cost data'!I$4)*('C.5 Other assets'!$L$6:$L$149='C. Cost data'!$C16)*'C.5 Other assets'!$N$6:$N$149)","v":0},{"$f":"SUMPRODUCT(('C.5 Other assets'!$M$6:$M$149='C. Cost data'!J$4)*('C.5 Other assets'!$L$6:$L$149='C. Cost data'!$C16)*'C.5 Other assets'!$N$6:$N$149)","v":0},{"$f":"SUMPRODUCT(('C.5 Other assets'!$M$6:$M$149='C. Cost data'!K$4)*('C.5 Other assets'!$L$6:$L$149='C. Cost data'!$C16)*'C.5 Other assets'!$N$6:$N$149)","v":0},{"$f":"SUMPRODUCT(('C.5 Other assets'!$M$6:$M$149='C. Cost data'!L$4)*('C.5 Other assets'!$L$6:$L$149='C. Cost data'!$C16)*'C.5 Other assets'!$N$6:$N$149)","v":0},{"$f":"SUMPRODUCT(('C.5 Other assets'!$M$6:$M$149='C. Cost data'!M$4)*('C.5 Other assets'!$L$6:$L$149='C. Cost data'!$C16)*'C.5 Other assets'!$N$6:$N$149)","v":0},{"$f":"SUMPRODUCT(('C.5 Other assets'!$M$6:$M$149='C. Cost data'!N$4)*('C.5 Other assets'!$L$6:$L$149='C. Cost data'!$C16)*'C.5 Other assets'!$N$6:$N$149)","v":0},{"$f":"SUMPRODUCT(('C.5 Other assets'!$M$6:$M$149='C. Cost data'!O$4)*('C.5 Other assets'!$L$6:$L$149='C. Cost data'!$C16)*'C.5 Other assets'!$N$6:$N$149)","v":0},{"$f":"SUMPRODUCT(('C.5 Other assets'!$M$6:$M$149='C. Cost data'!P$4)*('C.5 Other assets'!$L$6:$L$149='C. Cost data'!$C16)*'C.5 Other assets'!$N$6:$N$149)","v":0},{"$f":"SUMPRODUCT(('C.5 Other assets'!$M$6:$M$149='C. Cost data'!Q$4)*('C.5 Other assets'!$L$6:$L$149='C. Cost data'!$C16)*'C.5 Other assets'!$N$6:$N$149)","v":0},{"$f":"SUMPRODUCT(('C.1 Cost data compression'!$O$6:$O$149='C. Cost data'!R$4)*('C.1 Cost data compression'!$N$6:$N$149='C. Cost data'!$C16)*'C.1 Cost data compression'!$P$6:$P$149)","v":0},{"$f":"SUMPRODUCT(('C.5 Other assets'!$M$6:$M$149='C. Cost data'!S$4)*('C.5 Other assets'!$L$6:$L$149='C. Cost data'!$C16)*'C.5 Other assets'!$N$6:$N$149)","v":0},{"$f":"SUMPRODUCT(('C.5 Other assets'!$M$6:$M$149='C. Cost data'!T$4)*('C.5 Other assets'!$L$6:$L$149='C. Cost data'!$C16)*'C.5 Other assets'!$N$6:$N$149)","v":0},{"$f":"SUMPRODUCT(('C.5 Other assets'!$M$6:$M$149='C. Cost data'!U$4)*('C.5 Other assets'!$L$6:$L$149='C. Cost data'!$C16)*'C.5 Other assets'!$N$6:$N$149)","v":0},{"$f":"SUMPRODUCT(('C.5 Other assets'!$M$6:$M$149='C. Cost data'!V$4)*('C.5 Other assets'!$L$6:$L$149='C. Cost data'!$C16)*'C.5 Other assets'!$N$6:$N$149)","v":0},{"$f":"SUMPRODUCT(('C.5 Other assets'!$M$6:$M$149='C. Cost data'!W$4)*('C.5 Other assets'!$L$6:$L$149='C. Cost data'!$C16)*'C.5 Other assets'!$N$6:$N$149)","v":0},{"$f":"SUMPRODUCT(('C.5 Other assets'!$M$6:$M$149='C. Cost data'!X$4)*('C.5 Other assets'!$L$6:$L$149='C. Cost data'!$C16)*'C.5 Other assets'!$N$6:$N$149)","v":0},{"$f":"SUMPRODUCT(('C.5 Other assets'!$M$6:$M$149='C. Cost data'!Y$4)*('C.5 Other assets'!$L$6:$L$149='C. Cost data'!$C16)*'C.5 Other assets'!$N$6:$N$149)","v":0},{"$f":"SUMPRODUCT(('C.2 Cost data pipe PE'!$V$6:$V$149='C. Cost data'!Z$4)*('C.2 Cost data pipe PE'!$U$6:$U$149='C. Cost data'!$C16)*'C.2 Cost data pipe PE'!$W$6:$W$149)","v":0},{"$f":"SUMPRODUCT(('C.3 Cost data pipe cath'!$V$6:$V$149='C. Cost data'!AA$4)*('C.3 Cost data pipe cath'!$U$6:$U$149='C. Cost data'!$C16)*'C.3 Cost data pipe cath'!$W$6:$W$149)","v":0},{"$f":"SUMPRODUCT(('C.5 Other assets'!$M$6:$M$149='C. Cost data'!AB$4)*('C.5 Other assets'!$L$6:$L$149='C. Cost data'!$C16)*'C.5 Other assets'!$N$6:$N$149)","v":0},{"$f":"SUMPRODUCT(('C.5 Other assets'!$M$6:$M$149='C. Cost data'!AC$4)*('C.5 Other assets'!$L$6:$L$149='C. Cost data'!$C16)*'C.5 Other assets'!$N$6:$N$149)","v":0},{"$f":"SUMPRODUCT(('C.5 Other assets'!$M$6:$M$149='C. Cost data'!AD$4)*('C.5 Other assets'!$L$6:$L$149='C. Cost data'!$C16)*'C.5 Other assets'!$N$6:$N$149)","v":0},{"$f":"SUMPRODUCT(('C.5 Other assets'!$M$6:$M$149='C. Cost data'!AE$4)*('C.5 Other assets'!$L$6:$L$149='C. Cost data'!$C16)*'C.5 Other assets'!$N$6:$N$149)","v":0},{"$f":"SUMPRODUCT(('C.5 Other assets'!$M$6:$M$149='C. Cost data'!AF$4)*('C.5 Other assets'!$L$6:$L$149='C. Cost data'!$C16)*'C.5 Other assets'!$N$6:$N$149)","v":0},{"$f":"SUMPRODUCT(('C.5 Other assets'!$M$6:$M$149='C. Cost data'!AG$4)*('C.5 Other assets'!$L$6:$L$149='C. Cost data'!$C16)*'C.5 Other assets'!$N$6:$N$149)","v":0},{"$f":"SUMPRODUCT(('C.5 Other assets'!$M$6:$M$149='C. Cost data'!AH$4)*('C.5 Other assets'!$L$6:$L$149='C. Cost data'!$C16)*'C.5 Other assets'!$N$6:$N$149)","v":0},{"$f":"SUMPRODUCT(('C.5 Other assets'!$M$6:$M$149='C. Cost data'!AI$4)*('C.5 Other assets'!$L$6:$L$149='C. Cost data'!$C16)*'C.5 Other assets'!$N$6:$N$149)","v":0},{"$f":"SUMPRODUCT(('C.5 Other assets'!$M$6:$M$149='C. Cost data'!AJ$4)*('C.5 Other assets'!$L$6:$L$149='C. Cost data'!$C16)*'C.5 Other assets'!$N$6:$N$149)","v":0},{"$f":"SUMPRODUCT(('C.5 Other assets'!$M$6:$M$149='C. Cost data'!AK$4)*('C.5 Other assets'!$L$6:$L$149='C. Cost data'!$C16)*'C.5 Other assets'!$N$6:$N$149)","v":0},{"$f":"SUMPRODUCT(('C.5 Other assets'!$M$6:$M$149='C. Cost data'!AL$4)*('C.5 Other assets'!$L$6:$L$149='C. Cost data'!$C16)*'C.5 Other assets'!$N$6:$N$149)","v":0},{"$f":"SUMPRODUCT(('C.4 Cost control equip'!$O$6:$O$149='C. Cost data'!AM$4)*('C.4 Cost control equip'!$N$6:$N$149='C. Cost data'!$C16)*'C.4 Cost control equip'!$P$6:$P$149)","v":0},{"$f":"SUMPRODUCT(('C.5 Other assets'!$M$6:$M$149='C. Cost data'!AN$4)*('C.5 Other assets'!$L$6:$L$149='C. Cost data'!$C16)*'C.5 Other assets'!$N$6:$N$149)","v":0},{"$f":"SUMPRODUCT(('C.5 Other assets'!$M$6:$M$149='C. Cost data'!AO$4)*('C.5 Other assets'!$L$6:$L$149='C. Cost data'!$C16)*'C.5 Other assets'!$N$6:$N$149)","v":0},{"$f":"SUMPRODUCT(('C.5 Other assets'!$M$6:$M$149='C. Cost data'!AP$4)*('C.5 Other assets'!$L$6:$L$149='C. Cost data'!$C16)*'C.5 Other assets'!$N$6:$N$149)","v":0},{"$f":"SUMPRODUCT(('C.5 Other assets'!$M$6:$M$149='C. Cost data'!AQ$4)*('C.5 Other assets'!$L$6:$L$149='C. Cost data'!$C16)*'C.5 Other assets'!$N$6:$N$149)","v":0},{"$f":"SUMPRODUCT(('C.5 Other assets'!$M$6:$M$149='C. Cost data'!AR$4)*('C.5 Other assets'!$L$6:$L$149='C. Cost data'!$C16)*'C.5 Other assets'!$N$6:$N$149)","v":0},{"$f":"SUMPRODUCT(('C.5 Other assets'!$M$6:$M$149='C. Cost data'!AS$4)*('C.5 Other assets'!$L$6:$L$149='C. Cost data'!$C16)*'C.5 Other assets'!$N$6:$N$149)","v":0}]
[null,"Assets under construction 2019 – disposals/reclassifications",2019,0,{"$f":"SUMPRODUCT(('C.5 Other assets'!$M$6:$M$149='C. Cost data'!E$4)*('C.5 Other assets'!$L$6:$L$149='C. Cost data'!$C17)*'C.5 Other assets'!$O$6:$O$149)","v":0},{"$f":"SUMPRODUCT(('C.5 Other assets'!$M$6:$M$149='C. Cost data'!F$4)*('C.5 Other assets'!$L$6:$L$149='C. Cost data'!$C17)*'C.5 Other assets'!$O$6:$O$149)","v":0},{"$f":"SUMPRODUCT(('C.5 Other assets'!$M$6:$M$149='C. Cost data'!G$4)*('C.5 Other assets'!$L$6:$L$149='C. Cost data'!$C17)*'C.5 Other assets'!$O$6:$O$149)","v":0},{"$f":"SUMPRODUCT(('C.5 Other assets'!$M$6:$M$149='C. Cost data'!H$4)*('C.5 Other assets'!$L$6:$L$149='C. Cost data'!$C17)*'C.5 Other assets'!$O$6:$O$149)","v":0},{"$f":"SUMPRODUCT(('C.5 Other assets'!$M$6:$M$149='C. Cost data'!I$4)*('C.5 Other assets'!$L$6:$L$149='C. Cost data'!$C17)*'C.5 Other assets'!$O$6:$O$149)","v":0},{"$f":"SUMPRODUCT(('C.5 Other assets'!$M$6:$M$149='C. Cost data'!J$4)*('C.5 Other assets'!$L$6:$L$149='C. Cost data'!$C17)*'C.5 Other assets'!$O$6:$O$149)","v":0},{"$f":"SUMPRODUCT(('C.5 Other assets'!$M$6:$M$149='C. Cost data'!K$4)*('C.5 Other assets'!$L$6:$L$149='C. Cost data'!$C17)*'C.5 Other assets'!$O$6:$O$149)","v":0},{"$f":"SUMPRODUCT(('C.5 Other assets'!$M$6:$M$149='C. Cost data'!L$4)*('C.5 Other assets'!$L$6:$L$149='C. Cost data'!$C17)*'C.5 Other assets'!$O$6:$O$149)","v":0},{"$f":"SUMPRODUCT(('C.5 Other assets'!$M$6:$M$149='C. Cost data'!M$4)*('C.5 Other assets'!$L$6:$L$149='C. Cost data'!$C17)*'C.5 Other assets'!$O$6:$O$149)","v":0},{"$f":"SUMPRODUCT(('C.5 Other assets'!$M$6:$M$149='C. Cost data'!N$4)*('C.5 Other assets'!$L$6:$L$149='C. Cost data'!$C17)*'C.5 Other assets'!$O$6:$O$149)","v":0},{"$f":"SUMPRODUCT(('C.5 Other assets'!$M$6:$M$149='C. Cost data'!O$4)*('C.5 Other assets'!$L$6:$L$149='C. Cost data'!$C17)*'C.5 Other assets'!$O$6:$O$149)","v":0},{"$f":"SUMPRODUCT(('C.5 Other assets'!$M$6:$M$149='C. Cost data'!P$4)*('C.5 Other assets'!$L$6:$L$149='C. Cost data'!$C17)*'C.5 Other assets'!$O$6:$O$149)","v":0},{"$f":"SUMPRODUCT(('C.5 Other assets'!$M$6:$M$149='C. Cost data'!Q$4)*('C.5 Other assets'!$L$6:$L$149='C. Cost data'!$C17)*'C.5 Other assets'!$O$6:$O$149)","v":0},{"$f":"SUMPRODUCT(('C.1 Cost data compression'!$O$6:$O$149='C. Cost data'!R$4)*('C.1 Cost data compression'!$N$6:$N$149='C. Cost data'!$C17)*'C.1 Cost data compression'!$Q$6:$Q$149)","v":0},{"$f":"SUMPRODUCT(('C.5 Other assets'!$M$6:$M$149='C. Cost data'!S$4)*('C.5 Other assets'!$L$6:$L$149='C. Cost data'!$C17)*'C.5 Other assets'!$O$6:$O$149)","v":0},{"$f":"SUMPRODUCT(('C.5 Other assets'!$M$6:$M$149='C. Cost data'!T$4)*('C.5 Other assets'!$L$6:$L$149='C. Cost data'!$C17)*'C.5 Other assets'!$O$6:$O$149)","v":0},{"$f":"SUMPRODUCT(('C.5 Other assets'!$M$6:$M$149='C. Cost data'!U$4)*('C.5 Other assets'!$L$6:$L$149='C. Cost data'!$C17)*'C.5 Other assets'!$O$6:$O$149)","v":0},{"$f":"SUMPRODUCT(('C.5 Other assets'!$M$6:$M$149='C. Cost data'!V$4)*('C.5 Other assets'!$L$6:$L$149='C. Cost data'!$C17)*'C.5 Other assets'!$O$6:$O$149)","v":0},{"$f":"SUMPRODUCT(('C.5 Other assets'!$M$6:$M$149='C. Cost data'!W$4)*('C.5 Other assets'!$L$6:$L$149='C. Cost data'!$C17)*'C.5 Other assets'!$O$6:$O$149)","v":0},{"$f":"SUMPRODUCT(('C.5 Other assets'!$M$6:$M$149='C. Cost data'!X$4)*('C.5 Other assets'!$L$6:$L$149='C. Cost data'!$C17)*'C.5 Other assets'!$O$6:$O$149)","v":0},{"$f":"SUMPRODUCT(('C.5 Other assets'!$M$6:$M$149='C. Cost data'!Y$4)*('C.5 Other assets'!$L$6:$L$149='C. Cost data'!$C17)*'C.5 Other assets'!$O$6:$O$149)","v":0},{"$f":"SUMPRODUCT(('C.2 Cost data pipe PE'!$V$6:$V$149='C. Cost data'!Z$4)*('C.2 Cost data pipe PE'!$U$6:$U$149='C. Cost data'!$C17)*'C.2 Cost data pipe PE'!$X$6:$X$149)","v":0},{"$f":"SUMPRODUCT(('C.3 Cost data pipe cath'!$V$6:$V$149='C. Cost data'!AA$4)*('C.3 Cost data pipe cath'!$U$6:$U$149='C. Cost data'!$C17)*'C.3 Cost data pipe cath'!$X$6:$X$149)","v":0},{"$f":"SUMPRODUCT(('C.5 Other assets'!$M$6:$M$149='C. Cost data'!AB$4)*('C.5 Other assets'!$L$6:$L$149='C. Cost data'!$C17)*'C.5 Other assets'!$O$6:$O$149)","v":0},{"$f":"SUMPRODUCT(('C.5 Other assets'!$M$6:$M$149='C. Cost data'!AC$4)*('C.5 Other assets'!$L$6:$L$149='C. Cost data'!$C17)*'C.5 Other assets'!$O$6:$O$149)","v":0},{"$f":"SUMPRODUCT(('C.5 Other assets'!$M$6:$M$149='C. Cost data'!AD$4)*('C.5 Other assets'!$L$6:$L$149='C. Cost data'!$C17)*'C.5 Other assets'!$O$6:$O$149)","v":0},{"$f":"SUMPRODUCT(('C.5 Other assets'!$M$6:$M$149='C. Cost data'!AE$4)*('C.5 Other assets'!$L$6:$L$149='C. Cost data'!$C17)*'C.5 Other assets'!$O$6:$O$149)","v":0},{"$f":"SUMPRODUCT(('C.5 Other assets'!$M$6:$M$149='C. Cost data'!AF$4)*('C.5 Other assets'!$L$6:$L$149='C. Cost data'!$C17)*'C.5 Other assets'!$O$6:$O$149)","v":0},{"$f":"SUMPRODUCT(('C.5 Other assets'!$M$6:$M$149='C. Cost data'!AG$4)*('C.5 Other assets'!$L$6:$L$149='C. Cost data'!$C17)*'C.5 Other assets'!$O$6:$O$149)","v":0},{"$f":"SUMPRODUCT(('C.5 Other assets'!$M$6:$M$149='C. Cost data'!AH$4)*('C.5 Other assets'!$L$6:$L$149='C. Cost data'!$C17)*'C.5 Other assets'!$O$6:$O$149)","v":0},{"$f":"SUMPRODUCT(('C.5 Other assets'!$M$6:$M$149='C. Cost data'!AI$4)*('C.5 Other assets'!$L$6:$L$149='C. Cost data'!$C17)*'C.5 Other assets'!$O$6:$O$149)","v":0},{"$f":"SUMPRODUCT(('C.5 Other assets'!$M$6:$M$149='C. Cost data'!AJ$4)*('C.5 Other assets'!$L$6:$L$149='C. Cost data'!$C17)*'C.5 Other assets'!$O$6:$O$149)","v":0},{"$f":"SUMPRODUCT(('C.5 Other assets'!$M$6:$M$149='C. Cost data'!AK$4)*('C.5 Other assets'!$L$6:$L$149='C. Cost data'!$C17)*'C.5 Other assets'!$O$6:$O$149)","v":0},{"$f":"SUMPRODUCT(('C.5 Other assets'!$M$6:$M$149='C. Cost data'!AL$4)*('C.5 Other assets'!$L$6:$L$149='C. Cost data'!$C17)*'C.5 Other assets'!$O$6:$O$149)","v":0},{"$f":"SUMPRODUCT(('C.4 Cost control equip'!$O$6:$O$149='C. Cost data'!AM$4)*('C.4 Cost control equip'!$N$6:$N$149='C. Cost data'!$C17)*'C.4 Cost control equip'!$Q$6:$Q$149)","v":0},{"$f":"SUMPRODUCT(('C.5 Other assets'!$M$6:$M$149='C. Cost data'!AN$4)*('C.5 Other assets'!$L$6:$L$149='C. Cost data'!$C17)*'C.5 Other assets'!$O$6:$O$149)","v":0},{"$f":"SUMPRODUCT(('C.5 Other assets'!$M$6:$M$149='C. Cost data'!AO$4)*('C.5 Other assets'!$L$6:$L$149='C. Cost data'!$C17)*'C.5 Other assets'!$O$6:$O$149)","v":0},{"$f":"SUMPRODUCT(('C.5 Other assets'!$M$6:$M$149='C. Cost data'!AP$4)*('C.5 Other assets'!$L$6:$L$149='C. Cost data'!$C17)*'C.5 Other assets'!$O$6:$O$149)","v":0},{"$f":"SUMPRODUCT(('C.5 Other assets'!$M$6:$M$149='C. Cost data'!AQ$4)*('C.5 Other assets'!$L$6:$L$149='C. Cost data'!$C17)*'C.5 Other assets'!$O$6:$O$149)","v":0},{"$f":"SUMPRODUCT(('C.5 Other assets'!$M$6:$M$149='C. Cost data'!AR$4)*('C.5 Other assets'!$L$6:$L$149='C. Cost data'!$C17)*'C.5 Other assets'!$O$6:$O$149)","v":0},{"$f":"SUMPRODUCT(('C.5 Other assets'!$M$6:$M$149='C. Cost data'!AS$4)*('C.5 Other assets'!$L$6:$L$149='C. Cost data'!$C17)*'C.5 Other assets'!$O$6:$O$149)","v":0}]
[null,"Assets under construction 2020 – opening balance",2020,0,{"$f":"E15+E16-E17","v":0},0,0,0,0,0,0,0,0,0,0,0,0,0,0,0,0,0,0,0,0,0,0,0,0,0,0,0,0,0,0,0,0,0,0,0,0,0,0,0,0]
[null,"Assets under construction 2020 – additions",2020,1500000,{"$f":"SUMPRODUCT(('C.5 Other assets'!$M$6:$M$149='C. Cost data'!E$4)*('C.5 Other assets'!$L$6:$L$149='C. Cost data'!$C19)*'C.5 Other assets'!$N$6:$N$149)","v":0},{"$f":"SUMPRODUCT(('C.5 Other assets'!$M$6:$M$149='C. Cost data'!F$4)*('C.5 Other assets'!$L$6:$L$149='C. Cost data'!$C19)*'C.5 Other assets'!$N$6:$N$149)","v":0},{"$f":"SUMPRODUCT(('C.5 Other assets'!$M$6:$M$149='C. Cost data'!G$4)*('C.5 Other assets'!$L$6:$L$149='C. Cost data'!$C19)*'C.5 Other assets'!$N$6:$N$149)","v":0},{"$f":"SUMPRODUCT(('C.5 Other assets'!$M$6:$M$149='C. Cost data'!H$4)*('C.5 Other assets'!$L$6:$L$149='C. Cost data'!$C19)*'C.5 Other assets'!$N$6:$N$149)","v":0},{"$f":"SUMPRODUCT(('C.5 Other assets'!$M$6:$M$149='C. Cost data'!I$4)*('C.5 Other assets'!$L$6:$L$149='C. Cost data'!$C19)*'C.5 Other assets'!$N$6:$N$149)","v":0},{"$f":"SUMPRODUCT(('C.5 Other assets'!$M$6:$M$149='C. Cost data'!J$4)*('C.5 Other assets'!$L$6:$L$149='C. Cost data'!$C19)*'C.5 Other assets'!$N$6:$N$149)","v":0},{"$f":"SUMPRODUCT(('C.5 Other assets'!$M$6:$M$149='C. Cost data'!K$4)*('C.5 Other assets'!$L$6:$L$149='C. Cost data'!$C19)*'C.5 Other assets'!$N$6:$N$149)","v":0},{"$f":"SUMPRODUCT(('C.5 Other assets'!$M$6:$M$149='C. Cost data'!L$4)*('C.5 Other assets'!$L$6:$L$149='C. Cost data'!$C19)*'C.5 Other assets'!$N$6:$N$149)","v":0},{"$f":"SUMPRODUCT(('C.5 Other assets'!$M$6:$M$149='C. Cost data'!M$4)*('C.5 Other assets'!$L$6:$L$149='C. Cost data'!$C19)*'C.5 Other assets'!$N$6:$N$149)","v":0},{"$f":"SUMPRODUCT(('C.5 Other assets'!$M$6:$M$149='C. Cost data'!N$4)*('C.5 Other assets'!$L$6:$L$149='C. Cost data'!$C19)*'C.5 Other assets'!$N$6:$N$149)","v":0},{"$f":"SUMPRODUCT(('C.5 Other assets'!$M$6:$M$149='C. Cost data'!O$4)*('C.5 Other assets'!$L$6:$L$149='C. Cost data'!$C19)*'C.5 Other assets'!$N$6:$N$149)","v":0},{"$f":"SUMPRODUCT(('C.5 Other assets'!$M$6:$M$149='C. Cost data'!P$4)*('C.5 Other assets'!$L$6:$L$149='C. Cost data'!$C19)*'C.5 Other assets'!$N$6:$N$149)","v":0},{"$f":"SUMPRODUCT(('C.5 Other assets'!$M$6:$M$149='C. Cost data'!Q$4)*('C.5 Other assets'!$L$6:$L$149='C. Cost data'!$C19)*'C.5 Other assets'!$N$6:$N$149)","v":0},{"$f":"SUMPRODUCT(('C.1 Cost data compression'!$O$6:$O$149='C. Cost data'!R$4)*('C.1 Cost data compression'!$N$6:$N$149='C. Cost data'!$C19)*'C.1 Cost data compression'!$P$6:$P$149)","v":1500000},{"$f":"SUMPRODUCT(('C.5 Other assets'!$M$6:$M$149='C. Cost data'!S$4)*('C.5 Other assets'!$L$6:$L$149='C. Cost data'!$C19)*'C.5 Other assets'!$N$6:$N$149)","v":0},{"$f":"SUMPRODUCT(('C.5 Other assets'!$M$6:$M$149='C. Cost data'!T$4)*('C.5 Other assets'!$L$6:$L$149='C. Cost data'!$C19)*'C.5 Other assets'!$N$6:$N$149)","v":0},{"$f":"SUMPRODUCT(('C.5 Other assets'!$M$6:$M$149='C. Cost data'!U$4)*('C.5 Other assets'!$L$6:$L$149='C. Cost data'!$C19)*'C.5 Other assets'!$N$6:$N$149)","v":0},{"$f":"SUMPRODUCT(('C.5 Other assets'!$M$6:$M$149='C. Cost data'!V$4)*('C.5 Other assets'!$L$6:$L$149='C. Cost data'!$C19)*'C.5 Other assets'!$N$6:$N$149)","v":0},{"$f":"SUMPRODUCT(('C.5 Other assets'!$M$6:$M$149='C. Cost data'!W$4)*('C.5 Other assets'!$L$6:$L$149='C. Cost data'!$C19)*'C.5 Other assets'!$N$6:$N$149)","v":0},{"$f":"SUMPRODUCT(('C.5 Other assets'!$M$6:$M$149='C. Cost data'!X$4)*('C.5 Other assets'!$L$6:$L$149='C. Cost data'!$C19)*'C.5 Other assets'!$N$6:$N$149)","v":0},{"$f":"SUMPRODUCT(('C.5 Other assets'!$M$6:$M$149='C. Cost data'!Y$4)*('C.5 Other assets'!$L$6:$L$149='C. Cost data'!$C19)*'C.5 Other assets'!$N$6:$N$149)","v":0},{"$f":"SUMPRODUCT(('C.2 Cost data pipe PE'!$V$6:$V$149='C. Cost data'!Z$4)*('C.2 Cost data pipe PE'!$U$6:$U$149='C. Cost data'!$C19)*'C.2 Cost data pipe PE'!$W$6:$W$149)","v":0},{"$f":"SUMPRODUCT(('C.3 Cost data pipe cath'!$V$6:$V$149='C. Cost data'!AA$4)*('C.3 Cost data pipe cath'!$U$6:$U$149='C. Cost data'!$C19)*'C.3 Cost data pipe cath'!$W$6:$W$149)","v":0},{"$f":"SUMPRODUCT(('C.5 Other assets'!$M$6:$M$149='C. Cost data'!AB$4)*('C.5 Other assets'!$L$6:$L$149='C. Cost data'!$C19)*'C.5 Other assets'!$N$6:$N$149)","v":0},{"$f":"SUMPRODUCT(('C.5 Other assets'!$M$6:$M$149='C. Cost data'!AC$4)*('C.5 Other assets'!$L$6:$L$149='C. Cost data'!$C19)*'C.5 Other assets'!$N$6:$N$149)","v":0},{"$f":"SUMPRODUCT(('C.5 Other assets'!$M$6:$M$149='C. Cost data'!AD$4)*('C.5 Other assets'!$L$6:$L$149='C. Cost data'!$C19)*'C.5 Other assets'!$N$6:$N$149)","v":0},{"$f":"SUMPRODUCT(('C.5 Other assets'!$M$6:$M$149='C. Cost data'!AE$4)*('C.5 Other assets'!$L$6:$L$149='C. Cost data'!$C19)*'C.5 Other assets'!$N$6:$N$149)","v":0},{"$f":"SUMPRODUCT(('C.5 Other assets'!$M$6:$M$149='C. Cost data'!AF$4)*('C.5 Other assets'!$L$6:$L$149='C. Cost data'!$C19)*'C.5 Other assets'!$N$6:$N$149)","v":0},{"$f":"SUMPRODUCT(('C.5 Other assets'!$M$6:$M$149='C. Cost data'!AG$4)*('C.5 Other assets'!$L$6:$L$149='C. Cost data'!$C19)*'C.5 Other assets'!$N$6:$N$149)","v":0},{"$f":"SUMPRODUCT(('C.5 Other assets'!$M$6:$M$149='C. Cost data'!AH$4)*('C.5 Other assets'!$L$6:$L$149='C. Cost data'!$C19)*'C.5 Other assets'!$N$6:$N$149)","v":0},{"$f":"SUMPRODUCT(('C.5 Other assets'!$M$6:$M$149='C. Cost data'!AI$4)*('C.5 Other assets'!$L$6:$L$149='C. Cost data'!$C19)*'C.5 Other assets'!$N$6:$N$149)","v":0},{"$f":"SUMPRODUCT(('C.5 Other assets'!$M$6:$M$149='C. Cost data'!AJ$4)*('C.5 Other assets'!$L$6:$L$149='C. Cost data'!$C19)*'C.5 Other assets'!$N$6:$N$149)","v":0},{"$f":"SUMPRODUCT(('C.5 Other assets'!$M$6:$M$149='C. Cost data'!AK$4)*('C.5 Other assets'!$L$6:$L$149='C. Cost data'!$C19)*'C.5 Other assets'!$N$6:$N$149)","v":0},{"$f":"SUMPRODUCT(('C.5 Other assets'!$M$6:$M$149='C. Cost data'!AL$4)*('C.5 Other assets'!$L$6:$L$149='C. Cost data'!$C19)*'C.5 Other assets'!$N$6:$N$149)","v":0},{"$f":"SUMPRODUCT(('C.4 Cost control equip'!$O$6:$O$149='C. Cost data'!AM$4)*('C.4 Cost control equip'!$N$6:$N$149='C. Cost data'!$C19)*'C.4 Cost control equip'!$P$6:$P$149)","v":0},{"$f":"SUMPRODUCT(('C.5 Other assets'!$M$6:$M$149='C. Cost data'!AN$4)*('C.5 Other assets'!$L$6:$L$149='C. Cost data'!$C19)*'C.5 Other assets'!$N$6:$N$149)","v":0},{"$f":"SUMPRODUCT(('C.5 Other assets'!$M$6:$M$149='C. Cost data'!AO$4)*('C.5 Other assets'!$L$6:$L$149='C. Cost data'!$C19)*'C.5 Other assets'!$N$6:$N$149)","v":0},{"$f":"SUMPRODUCT(('C.5 Other assets'!$M$6:$M$149='C. Cost data'!AP$4)*('C.5 Other assets'!$L$6:$L$149='C. Cost data'!$C19)*'C.5 Other assets'!$N$6:$N$149)","v":0},{"$f":"SUMPRODUCT(('C.5 Other assets'!$M$6:$M$149='C. Cost data'!AQ$4)*('C.5 Other assets'!$L$6:$L$149='C. Cost data'!$C19)*'C.5 Other assets'!$N$6:$N$149)","v":0},{"$f":"SUMPRODUCT(('C.5 Other assets'!$M$6:$M$149='C. Cost data'!AR$4)*('C.5 Other assets'!$L$6:$L$149='C. Cost data'!$C19)*'C.5 Other assets'!$N$6:$N$149)","v":0},{"$f":"SUMPRODUCT(('C.5 Other assets'!$M$6:$M$149='C. Cost data'!AS$4)*('C.5 Other assets'!$L$6:$L$149='C. Cost data'!$C19)*'C.5 Other assets'!$N$6:$N$149)","v":0}]
[null,"Assets under construction 2020 – disposals/reclassifications",2020,0,{"$f":"SUMPRODUCT(('C.5 Other assets'!$M$6:$M$149='C. Cost data'!E$4)*('C.5 Other assets'!$L$6:$L$149='C. Cost data'!$C20)*'C.5 Other assets'!$O$6:$O$149)","v":0},{"$f":"SUMPRODUCT(('C.5 Other assets'!$M$6:$M$149='C. Cost data'!F$4)*('C.5 Other assets'!$L$6:$L$149='C. Cost data'!$C20)*'C.5 Other assets'!$O$6:$O$149)","v":0},{"$f":"SUMPRODUCT(('C.5 Other assets'!$M$6:$M$149='C. Cost data'!G$4)*('C.5 Other assets'!$L$6:$L$149='C. Cost data'!$C20)*'C.5 Other assets'!$O$6:$O$149)","v":0},{"$f":"SUMPRODUCT(('C.5 Other assets'!$M$6:$M$149='C. Cost data'!H$4)*('C.5 Other assets'!$L$6:$L$149='C. Cost data'!$C20)*'C.5 Other assets'!$O$6:$O$149)","v":0},{"$f":"SUMPRODUCT(('C.5 Other assets'!$M$6:$M$149='C. Cost data'!I$4)*('C.5 Other assets'!$L$6:$L$149='C. Cost data'!$C20)*'C.5 Other assets'!$O$6:$O$149)","v":0},{"$f":"SUMPRODUCT(('C.5 Other assets'!$M$6:$M$149='C. Cost data'!J$4)*('C.5 Other assets'!$L$6:$L$149='C. Cost data'!$C20)*'C.5 Other assets'!$O$6:$O$149)","v":0},{"$f":"SUMPRODUCT(('C.5 Other assets'!$M$6:$M$149='C. Cost data'!K$4)*('C.5 Other assets'!$L$6:$L$149='C. Cost data'!$C20)*'C.5 Other assets'!$O$6:$O$149)","v":0},{"$f":"SUMPRODUCT(('C.5 Other assets'!$M$6:$M$149='C. Cost data'!L$4)*('C.5 Other assets'!$L$6:$L$149='C. Cost data'!$C20)*'C.5 Other assets'!$O$6:$O$149)","v":0},{"$f":"SUMPRODUCT(('C.5 Other assets'!$M$6:$M$149='C. Cost data'!M$4)*('C.5 Other assets'!$L$6:$L$149='C. Cost data'!$C20)*'C.5 Other assets'!$O$6:$O$149)","v":0},{"$f":"SUMPRODUCT(('C.5 Other assets'!$M$6:$M$149='C. Cost data'!N$4)*('C.5 Other assets'!$L$6:$L$149='C. Cost data'!$C20)*'C.5 Other assets'!$O$6:$O$149)","v":0},{"$f":"SUMPRODUCT(('C.5 Other assets'!$M$6:$M$149='C. Cost data'!O$4)*('C.5 Other assets'!$L$6:$L$149='C. Cost data'!$C20)*'C.5 Other assets'!$O$6:$O$149)","v":0},{"$f":"SUMPRODUCT(('C.5 Other assets'!$M$6:$M$149='C. Cost data'!P$4)*('C.5 Other assets'!$L$6:$L$149='C. Cost data'!$C20)*'C.5 Other assets'!$O$6:$O$149)","v":0},{"$f":"SUMPRODUCT(('C.5 Other assets'!$M$6:$M$149='C. Cost data'!Q$4)*('C.5 Other assets'!$L$6:$L$149='C. Cost data'!$C20)*'C.5 Other assets'!$O$6:$O$149)","v":0},{"$f":"SUMPRODUCT(('C.1 Cost data compression'!$O$6:$O$149='C. Cost data'!R$4)*('C.1 Cost data compression'!$N$6:$N$149='C. Cost data'!$C20)*'C.1 Cost data compression'!$Q$6:$Q$149)","v":0},{"$f":"SUMPRODUCT(('C.5 Other assets'!$M$6:$M$149='C. Cost data'!S$4)*('C.5 Other assets'!$L$6:$L$149='C. Cost data'!$C20)*'C.5 Other assets'!$O$6:$O$149)","v":0},{"$f":"SUMPRODUCT(('C.5 Other assets'!$M$6:$M$149='C. Cost data'!T$4)*('C.5 Other assets'!$L$6:$L$149='C. Cost data'!$C20)*'C.5 Other assets'!$O$6:$O$149)","v":0},{"$f":"SUMPRODUCT(('C.5 Other assets'!$M$6:$M$149='C. Cost data'!U$4)*('C.5 Other assets'!$L$6:$L$149='C. Cost data'!$C20)*'C.5 Other assets'!$O$6:$O$149)","v":0},{"$f":"SUMPRODUCT(('C.5 Other assets'!$M$6:$M$149='C. Cost data'!V$4)*('C.5 Other assets'!$L$6:$L$149='C. Cost data'!$C20)*'C.5 Other assets'!$O$6:$O$149)","v":0},{"$f":"SUMPRODUCT(('C.5 Other assets'!$M$6:$M$149='C. Cost data'!W$4)*('C.5 Other assets'!$L$6:$L$149='C. Cost data'!$C20)*'C.5 Other assets'!$O$6:$O$149)","v":0},{"$f":"SUMPRODUCT(('C.5 Other assets'!$M$6:$M$149='C. Cost data'!X$4)*('C.5 Other assets'!$L$6:$L$149='C. Cost data'!$C20)*'C.5 Other assets'!$O$6:$O$149)","v":0},{"$f":"SUMPRODUCT(('C.5 Other assets'!$M$6:$M$149='C. Cost data'!Y$4)*('C.5 Other assets'!$L$6:$L$149='C. Cost data'!$C20)*'C.5 Other assets'!$O$6:$O$149)","v":0},{"$f":"SUMPRODUCT(('C.2 Cost data pipe PE'!$V$6:$V$149='C. Cost data'!Z$4)*('C.2 Cost data pipe PE'!$U$6:$U$149='C. Cost data'!$C20)*'C.2 Cost data pipe PE'!$X$6:$X$149)","v":0},{"$f":"SUMPRODUCT(('C.3 Cost data pipe cath'!$V$6:$V$149='C. Cost data'!AA$4)*('C.3 Cost data pipe cath'!$U$6:$U$149='C. Cost data'!$C20)*'C.3 Cost data pipe cath'!$X$6:$X$149)","v":0},{"$f":"SUMPRODUCT(('C.5 Other assets'!$M$6:$M$149='C. Cost data'!AB$4)*('C.5 Other assets'!$L$6:$L$149='C. Cost data'!$C20)*'C.5 Other assets'!$O$6:$O$149)","v":0},{"$f":"SUMPRODUCT(('C.5 Other assets'!$M$6:$M$149='C. Cost data'!AC$4)*('C.5 Other assets'!$L$6:$L$149='C. Cost data'!$C20)*'C.5 Other assets'!$O$6:$O$149)","v":0},{"$f":"SUMPRODUCT(('C.5 Other assets'!$M$6:$M$149='C. Cost data'!AD$4)*('C.5 Other assets'!$L$6:$L$149='C. Cost data'!$C20)*'C.5 Other assets'!$O$6:$O$149)","v":0},{"$f":"SUMPRODUCT(('C.5 Other assets'!$M$6:$M$149='C. Cost data'!AE$4)*('C.5 Other assets'!$L$6:$L$149='C. Cost data'!$C20)*'C.5 Other assets'!$O$6:$O$149)","v":0},{"$f":"SUMPRODUCT(('C.5 Other assets'!$M$6:$M$149='C. Cost data'!AF$4)*('C.5 Other assets'!$L$6:$L$149='C. Cost data'!$C20)*'C.5 Other assets'!$O$6:$O$149)","v":0},{"$f":"SUMPRODUCT(('C.5 Other assets'!$M$6:$M$149='C. Cost data'!AG$4)*('C.5 Other assets'!$L$6:$L$149='C. Cost data'!$C20)*'C.5 Other assets'!$O$6:$O$149)","v":0},{"$f":"SUMPRODUCT(('C.5 Other assets'!$M$6:$M$149='C. Cost data'!AH$4)*('C.5 Other assets'!$L$6:$L$149='C. Cost data'!$C20)*'C.5 Other assets'!$O$6:$O$149)","v":0},{"$f":"SUMPRODUCT(('C.5 Other assets'!$M$6:$M$149='C. Cost data'!AI$4)*('C.5 Other assets'!$L$6:$L$149='C. Cost data'!$C20)*'C.5 Other assets'!$O$6:$O$149)","v":0},{"$f":"SUMPRODUCT(('C.5 Other assets'!$M$6:$M$149='C. Cost data'!AJ$4)*('C.5 Other assets'!$L$6:$L$149='C. Cost data'!$C20)*'C.5 Other assets'!$O$6:$O$149)","v":0},{"$f":"SUMPRODUCT(('C.5 Other assets'!$M$6:$M$149='C. Cost data'!AK$4)*('C.5 Other assets'!$L$6:$L$149='C. Cost data'!$C20)*'C.5 Other assets'!$O$6:$O$149)","v":0},{"$f":"SUMPRODUCT(('C.5 Other assets'!$M$6:$M$149='C. Cost data'!AL$4)*('C.5 Other assets'!$L$6:$L$149='C. Cost data'!$C20)*'C.5 Other assets'!$O$6:$O$149)","v":0},{"$f":"SUMPRODUCT(('C.4 Cost control equip'!$O$6:$O$149='C. Cost data'!AM$4)*('C.4 Cost control equip'!$N$6:$N$149='C. Cost data'!$C20)*'C.4 Cost control equip'!$Q$6:$Q$149)","v":0},{"$f":"SUMPRODUCT(('C.5 Other assets'!$M$6:$M$149='C. Cost data'!AN$4)*('C.5 Other assets'!$L$6:$L$149='C. Cost data'!$C20)*'C.5 Other assets'!$O$6:$O$149)","v":0},{"$f":"SUMPRODUCT(('C.5 Other assets'!$M$6:$M$149='C. Cost data'!AO$4)*('C.5 Other assets'!$L$6:$L$149='C. Cost data'!$C20)*'C.5 Other assets'!$O$6:$O$149)","v":0},{"$f":"SUMPRODUCT(('C.5 Other assets'!$M$6:$M$149='C. Cost data'!AP$4)*('C.5 Other assets'!$L$6:$L$149='C. Cost data'!$C20)*'C.5 Other assets'!$O$6:$O$149)","v":0},{"$f":"SUMPRODUCT(('C.5 Other assets'!$M$6:$M$149='C. Cost data'!AQ$4)*('C.5 Other assets'!$L$6:$L$149='C. Cost data'!$C20)*'C.5 Other assets'!$O$6:$O$149)","v":0},{"$f":"SUMPRODUCT(('C.5 Other assets'!$M$6:$M$149='C. Cost data'!AR$4)*('C.5 Other assets'!$L$6:$L$149='C. Cost data'!$C20)*'C.5 Other assets'!$O$6:$O$149)","v":0},{"$f":"SUMPRODUCT(('C.5 Other assets'!$M$6:$M$149='C. Cost data'!AS$4)*('C.5 Other assets'!$L$6:$L$149='C. Cost data'!$C20)*'C.5 Other assets'!$O$6:$O$149)","v":0}]
[null,"Assets under construction 2021 – opening balance",2021,1500000,{"$f":"E18+E19-E20","v":0},0,0,0,0,0,0,0,0,0,0,0,0,1500000,0,0,0,0,0,0,0,0,0,0,0,0,0,0,0,0,0,0,0,0,0,0,0,0,0,0,0]
[null,"Assets under construction 2021 – additions",2021,7500000,{"$f":"SUMPRODUCT(('C.5 Other assets'!$M$6:$M$149='C. Cost data'!E$4)*('C.5 Other assets'!$L$6:$L$149='C. Cost data'!$C22)*'C.5 Other assets'!$N$6:$N$149)","v":0},{"$f":"SUMPRODUCT(('C.5 Other assets'!$M$6:$M$149='C. Cost data'!F$4)*('C.5 Other assets'!$L$6:$L$149='C. Cost data'!$C22)*'C.5 Other assets'!$N$6:$N$149)","v":0},{"$f":"SUMPRODUCT(('C.5 Other assets'!$M$6:$M$149='C. Cost data'!G$4)*('C.5 Other assets'!$L$6:$L$149='C. Cost data'!$C22)*'C.5 Other assets'!$N$6:$N$149)","v":0},{"$f":"SUMPRODUCT(('C.5 Other assets'!$M$6:$M$149='C. Cost data'!H$4)*('C.5 Other assets'!$L$6:$L$149='C. Cost data'!$C22)*'C.5 Other assets'!$N$6:$N$149)","v":0},{"$f":"SUMPRODUCT(('C.5 Other assets'!$M$6:$M$149='C. Cost data'!I$4)*('C.5 Other assets'!$L$6:$L$149='C. Cost data'!$C22)*'C.5 Other assets'!$N$6:$N$149)","v":0},{"$f":"SUMPRODUCT(('C.5 Other assets'!$M$6:$M$149='C. Cost data'!J$4)*('C.5 Other assets'!$L$6:$L$149='C. Cost data'!$C22)*'C.5 Other assets'!$N$6:$N$149)","v":0},{"$f":"SUMPRODUCT(('C.5 Other assets'!$M$6:$M$149='C. Cost data'!K$4)*('C.5 Other assets'!$L$6:$L$149='C. Cost data'!$C22)*'C.5 Other assets'!$N$6:$N$149)","v":0},{"$f":"SUMPRODUCT(('C.5 Other assets'!$M$6:$M$149='C. Cost data'!L$4)*('C.5 Other assets'!$L$6:$L$149='C. Cost data'!$C22)*'C.5 Other assets'!$N$6:$N$149)","v":0},{"$f":"SUMPRODUCT(('C.5 Other assets'!$M$6:$M$149='C. Cost data'!M$4)*('C.5 Other assets'!$L$6:$L$149='C. Cost data'!$C22)*'C.5 Other assets'!$N$6:$N$149)","v":0},{"$f":"SUMPRODUCT(('C.5 Other assets'!$M$6:$M$149='C. Cost data'!N$4)*('C.5 Other assets'!$L$6:$L$149='C. Cost data'!$C22)*'C.5 Other assets'!$N$6:$N$149)","v":0},{"$f":"SUMPRODUCT(('C.5 Other assets'!$M$6:$M$149='C. Cost data'!O$4)*('C.5 Other assets'!$L$6:$L$149='C. Cost data'!$C22)*'C.5 Other assets'!$N$6:$N$149)","v":0},{"$f":"SUMPRODUCT(('C.5 Other assets'!$M$6:$M$149='C. Cost data'!P$4)*('C.5 Other assets'!$L$6:$L$149='C. Cost data'!$C22)*'C.5 Other assets'!$N$6:$N$149)","v":0},{"$f":"SUMPRODUCT(('C.5 Other assets'!$M$6:$M$149='C. Cost data'!Q$4)*('C.5 Other assets'!$L$6:$L$149='C. Cost data'!$C22)*'C.5 Other assets'!$N$6:$N$149)","v":0},{"$f":"SUMPRODUCT(('C.1 Cost data compression'!$O$6:$O$149='C. Cost data'!R$4)*('C.1 Cost data compression'!$N$6:$N$149='C. Cost data'!$C22)*'C.1 Cost data compression'!$P$6:$P$149)","v":7500000},{"$f":"SUMPRODUCT(('C.5 Other assets'!$M$6:$M$149='C. Cost data'!S$4)*('C.5 Other assets'!$L$6:$L$149='C. Cost data'!$C22)*'C.5 Other assets'!$N$6:$N$149)","v":0},{"$f":"SUMPRODUCT(('C.5 Other assets'!$M$6:$M$149='C. Cost data'!T$4)*('C.5 Other assets'!$L$6:$L$149='C. Cost data'!$C22)*'C.5 Other assets'!$N$6:$N$149)","v":0},{"$f":"SUMPRODUCT(('C.5 Other assets'!$M$6:$M$149='C. Cost data'!U$4)*('C.5 Other assets'!$L$6:$L$149='C. Cost data'!$C22)*'C.5 Other assets'!$N$6:$N$149)","v":0},{"$f":"SUMPRODUCT(('C.5 Other assets'!$M$6:$M$149='C. Cost data'!V$4)*('C.5 Other assets'!$L$6:$L$149='C. Cost data'!$C22)*'C.5 Other assets'!$N$6:$N$149)","v":0},{"$f":"SUMPRODUCT(('C.5 Other assets'!$M$6:$M$149='C. Cost data'!W$4)*('C.5 Other assets'!$L$6:$L$149='C. Cost data'!$C22)*'C.5 Other assets'!$N$6:$N$149)","v":0},{"$f":"SUMPRODUCT(('C.5 Other assets'!$M$6:$M$149='C. Cost data'!X$4)*('C.5 Other assets'!$L$6:$L$149='C. Cost data'!$C22)*'C.5 Other assets'!$N$6:$N$149)","v":0},{"$f":"SUMPRODUCT(('C.5 Other assets'!$M$6:$M$149='C. Cost data'!Y$4)*('C.5 Other assets'!$L$6:$L$149='C. Cost data'!$C22)*'C.5 Other assets'!$N$6:$N$149)","v":0},{"$f":"SUMPRODUCT(('C.2 Cost data pipe PE'!$V$6:$V$149='C. Cost data'!Z$4)*('C.2 Cost data pipe PE'!$U$6:$U$149='C. Cost data'!$C22)*'C.2 Cost data pipe PE'!$W$6:$W$149)","v":0},{"$f":"SUMPRODUCT(('C.3 Cost data pipe cath'!$V$6:$V$149='C. Cost data'!AA$4)*('C.3 Cost data pipe cath'!$U$6:$U$149='C. Cost data'!$C22)*'C.3 Cost data pipe cath'!$W$6:$W$149)","v":0},{"$f":"SUMPRODUCT(('C.5 Other assets'!$M$6:$M$149='C. Cost data'!AB$4)*('C.5 Other assets'!$L$6:$L$149='C. Cost data'!$C22)*'C.5 Other assets'!$N$6:$N$149)","v":0},{"$f":"SUMPRODUCT(('C.5 Other assets'!$M$6:$M$149='C. Cost data'!AC$4)*('C.5 Other assets'!$L$6:$L$149='C. Cost data'!$C22)*'C.5 Other assets'!$N$6:$N$149)","v":0},{"$f":"SUMPRODUCT(('C.5 Other assets'!$M$6:$M$149='C. Cost data'!AD$4)*('C.5 Other assets'!$L$6:$L$149='C. Cost data'!$C22)*'C.5 Other assets'!$N$6:$N$149)","v":0},{"$f":"SUMPRODUCT(('C.5 Other assets'!$M$6:$M$149='C. Cost data'!AE$4)*('C.5 Other assets'!$L$6:$L$149='C. Cost data'!$C22)*'C.5 Other assets'!$N$6:$N$149)","v":0},{"$f":"SUMPRODUCT(('C.5 Other assets'!$M$6:$M$149='C. Cost data'!AF$4)*('C.5 Other assets'!$L$6:$L$149='C. Cost data'!$C22)*'C.5 Other assets'!$N$6:$N$149)","v":0},{"$f":"SUMPRODUCT(('C.5 Other assets'!$M$6:$M$149='C. Cost data'!AG$4)*('C.5 Other assets'!$L$6:$L$149='C. Cost data'!$C22)*'C.5 Other assets'!$N$6:$N$149)","v":0},{"$f":"SUMPRODUCT(('C.5 Other assets'!$M$6:$M$149='C. Cost data'!AH$4)*('C.5 Other assets'!$L$6:$L$149='C. Cost data'!$C22)*'C.5 Other assets'!$N$6:$N$149)","v":0},{"$f":"SUMPRODUCT(('C.5 Other assets'!$M$6:$M$149='C. Cost data'!AI$4)*('C.5 Other assets'!$L$6:$L$149='C. Cost data'!$C22)*'C.5 Other assets'!$N$6:$N$149)","v":0},{"$f":"SUMPRODUCT(('C.5 Other assets'!$M$6:$M$149='C. Cost data'!AJ$4)*('C.5 Other assets'!$L$6:$L$149='C. Cost data'!$C22)*'C.5 Other assets'!$N$6:$N$149)","v":0},{"$f":"SUMPRODUCT(('C.5 Other assets'!$M$6:$M$149='C. Cost data'!AK$4)*('C.5 Other assets'!$L$6:$L$149='C. Cost data'!$C22)*'C.5 Other assets'!$N$6:$N$149)","v":0},{"$f":"SUMPRODUCT(('C.5 Other assets'!$M$6:$M$149='C. Cost data'!AL$4)*('C.5 Other assets'!$L$6:$L$149='C. Cost data'!$C22)*'C.5 Other assets'!$N$6:$N$149)","v":0},{"$f":"SUMPRODUCT(('C.4 Cost control equip'!$O$6:$O$149='C. Cost data'!AM$4)*('C.4 Cost control equip'!$N$6:$N$149='C. Cost data'!$C22)*'C.4 Cost control equip'!$P$6:$P$149)","v":0},{"$f":"SUMPRODUCT(('C.5 Other assets'!$M$6:$M$149='C. Cost data'!AN$4)*('C.5 Other assets'!$L$6:$L$149='C. Cost data'!$C22)*'C.5 Other assets'!$N$6:$N$149)","v":0},{"$f":"SUMPRODUCT(('C.5 Other assets'!$M$6:$M$149='C. Cost data'!AO$4)*('C.5 Other assets'!$L$6:$L$149='C. Cost data'!$C22)*'C.5 Other assets'!$N$6:$N$149)","v":0},{"$f":"SUMPRODUCT(('C.5 Other assets'!$M$6:$M$149='C. Cost data'!AP$4)*('C.5 Other assets'!$L$6:$L$149='C. Cost data'!$C22)*'C.5 Other assets'!$N$6:$N$149)","v":0},{"$f":"SUMPRODUCT(('C.5 Other assets'!$M$6:$M$149='C. Cost data'!AQ$4)*('C.5 Other assets'!$L$6:$L$149='C. Cost data'!$C22)*'C.5 Other assets'!$N$6:$N$149)","v":0},{"$f":"SUMPRODUCT(('C.5 Other assets'!$M$6:$M$149='C. Cost data'!AR$4)*('C.5 Other assets'!$L$6:$L$149='C. Cost data'!$C22)*'C.5 Other assets'!$N$6:$N$149)","v":0},{"$f":"SUMPRODUCT(('C.5 Other assets'!$M$6:$M$149='C. Cost data'!AS$4)*('C.5 Other assets'!$L$6:$L$149='C. Cost data'!$C22)*'C.5 Other assets'!$N$6:$N$149)","v":0}]
[null,"Assets under construction 2021 – disposals/reclassifications",2021,0,{"$f":"SUMPRODUCT(('C.5 Other assets'!$M$6:$M$149='C. Cost data'!E$4)*('C.5 Other assets'!$L$6:$L$149='C. Cost data'!$C23)*'C.5 Other assets'!$O$6:$O$149)","v":0},{"$f":"SUMPRODUCT(('C.5 Other assets'!$M$6:$M$149='C. Cost data'!F$4)*('C.5 Other assets'!$L$6:$L$149='C. Cost data'!$C23)*'C.5 Other assets'!$O$6:$O$149)","v":0},{"$f":"SUMPRODUCT(('C.5 Other assets'!$M$6:$M$149='C. Cost data'!G$4)*('C.5 Other assets'!$L$6:$L$149='C. Cost data'!$C23)*'C.5 Other assets'!$O$6:$O$149)","v":0},{"$f":"SUMPRODUCT(('C.5 Other assets'!$M$6:$M$149='C. Cost data'!H$4)*('C.5 Other assets'!$L$6:$L$149='C. Cost data'!$C23)*'C.5 Other assets'!$O$6:$O$149)","v":0},{"$f":"SUMPRODUCT(('C.5 Other assets'!$M$6:$M$149='C. Cost data'!I$4)*('C.5 Other assets'!$L$6:$L$149='C. Cost data'!$C23)*'C.5 Other assets'!$O$6:$O$149)","v":0},{"$f":"SUMPRODUCT(('C.5 Other assets'!$M$6:$M$149='C. Cost data'!J$4)*('C.5 Other assets'!$L$6:$L$149='C. Cost data'!$C23)*'C.5 Other assets'!$O$6:$O$149)","v":0},{"$f":"SUMPRODUCT(('C.5 Other assets'!$M$6:$M$149='C. Cost data'!K$4)*('C.5 Other assets'!$L$6:$L$149='C. Cost data'!$C23)*'C.5 Other assets'!$O$6:$O$149)","v":0},{"$f":"SUMPRODUCT(('C.5 Other assets'!$M$6:$M$149='C. Cost data'!L$4)*('C.5 Other assets'!$L$6:$L$149='C. Cost data'!$C23)*'C.5 Other assets'!$O$6:$O$149)","v":0},{"$f":"SUMPRODUCT(('C.5 Other assets'!$M$6:$M$149='C. Cost data'!M$4)*('C.5 Other assets'!$L$6:$L$149='C. Cost data'!$C23)*'C.5 Other assets'!$O$6:$O$149)","v":0},{"$f":"SUMPRODUCT(('C.5 Other assets'!$M$6:$M$149='C. Cost data'!N$4)*('C.5 Other assets'!$L$6:$L$149='C. Cost data'!$C23)*'C.5 Other assets'!$O$6:$O$149)","v":0},{"$f":"SUMPRODUCT(('C.5 Other assets'!$M$6:$M$149='C. Cost data'!O$4)*('C.5 Other assets'!$L$6:$L$149='C. Cost data'!$C23)*'C.5 Other assets'!$O$6:$O$149)","v":0},{"$f":"SUMPRODUCT(('C.5 Other assets'!$M$6:$M$149='C. Cost data'!P$4)*('C.5 Other assets'!$L$6:$L$149='C. Cost data'!$C23)*'C.5 Other assets'!$O$6:$O$149)","v":0},{"$f":"SUMPRODUCT(('C.5 Other assets'!$M$6:$M$149='C. Cost data'!Q$4)*('C.5 Other assets'!$L$6:$L$149='C. Cost data'!$C23)*'C.5 Other assets'!$O$6:$O$149)","v":0},{"$f":"SUMPRODUCT(('C.1 Cost data compression'!$O$6:$O$149='C. Cost data'!R$4)*('C.1 Cost data compression'!$N$6:$N$149='C. Cost data'!$C23)*'C.1 Cost data compression'!$Q$6:$Q$149)","v":0},{"$f":"SUMPRODUCT(('C.5 Other assets'!$M$6:$M$149='C. Cost data'!S$4)*('C.5 Other assets'!$L$6:$L$149='C. Cost data'!$C23)*'C.5 Other assets'!$O$6:$O$149)","v":0},{"$f":"SUMPRODUCT(('C.5 Other assets'!$M$6:$M$149='C. Cost data'!T$4)*('C.5 Other assets'!$L$6:$L$149='C. Cost data'!$C23)*'C.5 Other assets'!$O$6:$O$149)","v":0},{"$f":"SUMPRODUCT(('C.5 Other assets'!$M$6:$M$149='C. Cost data'!U$4)*('C.5 Other assets'!$L$6:$L$149='C. Cost data'!$C23)*'C.5 Other assets'!$O$6:$O$149)","v":0},{"$f":"SUMPRODUCT(('C.5 Other assets'!$M$6:$M$149='C. Cost data'!V$4)*('C.5 Other assets'!$L$6:$L$149='C. Cost data'!$C23)*'C.5 Other assets'!$O$6:$O$149)","v":0},{"$f":"SUMPRODUCT(('C.5 Other assets'!$M$6:$M$149='C. Cost data'!W$4)*('C.5 Other assets'!$L$6:$L$149='C. Cost data'!$C23)*'C.5 Other assets'!$O$6:$O$149)","v":0},{"$f":"SUMPRODUCT(('C.5 Other assets'!$M$6:$M$149='C. Cost data'!X$4)*('C.5 Other assets'!$L$6:$L$149='C. Cost data'!$C23)*'C.5 Other assets'!$O$6:$O$149)","v":0},{"$f":"SUMPRODUCT(('C.5 Other assets'!$M$6:$M$149='C. Cost data'!Y$4)*('C.5 Other assets'!$L$6:$L$149='C. Cost data'!$C23)*'C.5 Other assets'!$O$6:$O$149)","v":0},{"$f":"SUMPRODUCT(('C.2 Cost data pipe PE'!$V$6:$V$149='C. Cost data'!Z$4)*('C.2 Cost data pipe PE'!$U$6:$U$149='C. Cost data'!$C23)*'C.2 Cost data pipe PE'!$X$6:$X$149)","v":0},{"$f":"SUMPRODUCT(('C.3 Cost data pipe cath'!$V$6:$V$149='C. Cost data'!AA$4)*('C.3 Cost data pipe cath'!$U$6:$U$149='C. Cost data'!$C23)*'C.3 Cost data pipe cath'!$X$6:$X$149)","v":0},{"$f":"SUMPRODUCT(('C.5 Other assets'!$M$6:$M$149='C. Cost data'!AB$4)*('C.5 Other assets'!$L$6:$L$149='C. Cost data'!$C23)*'C.5 Other assets'!$O$6:$O$149)","v":0},{"$f":"SUMPRODUCT(('C.5 Other assets'!$M$6:$M$149='C. Cost data'!AC$4)*('C.5 Other assets'!$L$6:$L$149='C. Cost data'!$C23)*'C.5 Other assets'!$O$6:$O$149)","v":0},{"$f":"SUMPRODUCT(('C.5 Other assets'!$M$6:$M$149='C. Cost data'!AD$4)*('C.5 Other assets'!$L$6:$L$149='C. Cost data'!$C23)*'C.5 Other assets'!$O$6:$O$149)","v":0},{"$f":"SUMPRODUCT(('C.5 Other assets'!$M$6:$M$149='C. Cost data'!AE$4)*('C.5 Other assets'!$L$6:$L$149='C. Cost data'!$C23)*'C.5 Other assets'!$O$6:$O$149)","v":0},{"$f":"SUMPRODUCT(('C.5 Other assets'!$M$6:$M$149='C. Cost data'!AF$4)*('C.5 Other assets'!$L$6:$L$149='C. Cost data'!$C23)*'C.5 Other assets'!$O$6:$O$149)","v":0},{"$f":"SUMPRODUCT(('C.5 Other assets'!$M$6:$M$149='C. Cost data'!AG$4)*('C.5 Other assets'!$L$6:$L$149='C. Cost data'!$C23)*'C.5 Other assets'!$O$6:$O$149)","v":0},{"$f":"SUMPRODUCT(('C.5 Other assets'!$M$6:$M$149='C. Cost data'!AH$4)*('C.5 Other assets'!$L$6:$L$149='C. Cost data'!$C23)*'C.5 Other assets'!$O$6:$O$149)","v":0},{"$f":"SUMPRODUCT(('C.5 Other assets'!$M$6:$M$149='C. Cost data'!AI$4)*('C.5 Other assets'!$L$6:$L$149='C. Cost data'!$C23)*'C.5 Other assets'!$O$6:$O$149)","v":0},{"$f":"SUMPRODUCT(('C.5 Other assets'!$M$6:$M$149='C. Cost data'!AJ$4)*('C.5 Other assets'!$L$6:$L$149='C. Cost data'!$C23)*'C.5 Other assets'!$O$6:$O$149)","v":0},{"$f":"SUMPRODUCT(('C.5 Other assets'!$M$6:$M$149='C. Cost data'!AK$4)*('C.5 Other assets'!$L$6:$L$149='C. Cost data'!$C23)*'C.5 Other assets'!$O$6:$O$149)","v":0},{"$f":"SUMPRODUCT(('C.5 Other assets'!$M$6:$M$149='C. Cost data'!AL$4)*('C.5 Other assets'!$L$6:$L$149='C. Cost data'!$C23)*'C.5 Other assets'!$O$6:$O$149)","v":0},{"$f":"SUMPRODUCT(('C.4 Cost control equip'!$O$6:$O$149='C. Cost data'!AM$4)*('C.4 Cost control equip'!$N$6:$N$149='C. Cost data'!$C23)*'C.4 Cost control equip'!$Q$6:$Q$149)","v":0},{"$f":"SUMPRODUCT(('C.5 Other assets'!$M$6:$M$149='C. Cost data'!AN$4)*('C.5 Other assets'!$L$6:$L$149='C. Cost data'!$C23)*'C.5 Other assets'!$O$6:$O$149)","v":0},{"$f":"SUMPRODUCT(('C.5 Other assets'!$M$6:$M$149='C. Cost data'!AO$4)*('C.5 Other assets'!$L$6:$L$149='C. Cost data'!$C23)*'C.5 Other assets'!$O$6:$O$149)","v":0},{"$f":"SUMPRODUCT(('C.5 Other assets'!$M$6:$M$149='C. Cost data'!AP$4)*('C.5 Other assets'!$L$6:$L$149='C. Cost data'!$C23)*'C.5 Other assets'!$O$6:$O$149)","v":0},{"$f":"SUMPRODUCT(('C.5 Other assets'!$M$6:$M$149='C. Cost data'!AQ$4)*('C.5 Other assets'!$L$6:$L$149='C. Cost data'!$C23)*'C.5 Other assets'!$O$6:$O$149)","v":0},{"$f":"SUMPRODUCT(('C.5 Other assets'!$M$6:$M$149='C. Cost data'!AR$4)*('C.5 Other assets'!$L$6:$L$149='C. Cost data'!$C23)*'C.5 Other assets'!$O$6:$O$149)","v":0},{"$f":"SUMPRODUCT(('C.5 Other assets'!$M$6:$M$149='C. Cost data'!AS$4)*('C.5 Other assets'!$L$6:$L$149='C. Cost data'!$C23)*'C.5 Other assets'!$O$6:$O$149)","v":0}]
[null,"Assets under construction 2022 – opening balance",2022,9000000,{"$f":"E21+E22-E23","v":0},0,0,0,0,0,0,0,0,0,0,0,0,9000000,0,0,0,0,0,0,0,0,0,0,0,0,0,0,0,0,0,0,0,0,0,0,0,0,0,0,0]
[null,"Assets under construction 2022 – additions",2022,30000000,{"$f":"SUMPRODUCT(('C.5 Other assets'!$M$6:$M$149='C. Cost data'!E$4)*('C.5 Other assets'!$L$6:$L$149='C. Cost data'!$C25)*'C.5 Other assets'!$N$6:$N$149)","v":0},{"$f":"SUMPRODUCT(('C.5 Other assets'!$M$6:$M$149='C. Cost data'!F$4)*('C.5 Other assets'!$L$6:$L$149='C. Cost data'!$C25)*'C.5 Other assets'!$N$6:$N$149)","v":0},{"$f":"SUMPRODUCT(('C.5 Other assets'!$M$6:$M$149='C. Cost data'!G$4)*('C.5 Other assets'!$L$6:$L$149='C. Cost data'!$C25)*'C.5 Other assets'!$N$6:$N$149)","v":0},{"$f":"SUMPRODUCT(('C.5 Other assets'!$M$6:$M$149='C. Cost data'!H$4)*('C.5 Other assets'!$L$6:$L$149='C. Cost data'!$C25)*'C.5 Other assets'!$N$6:$N$149)","v":0},{"$f":"SUMPRODUCT(('C.5 Other assets'!$M$6:$M$149='C. Cost data'!I$4)*('C.5 Other assets'!$L$6:$L$149='C. Cost data'!$C25)*'C.5 Other assets'!$N$6:$N$149)","v":0},{"$f":"SUMPRODUCT(('C.5 Other assets'!$M$6:$M$149='C. Cost data'!J$4)*('C.5 Other assets'!$L$6:$L$149='C. Cost data'!$C25)*'C.5 Other assets'!$N$6:$N$149)","v":0},{"$f":"SUMPRODUCT(('C.5 Other assets'!$M$6:$M$149='C. Cost data'!K$4)*('C.5 Other assets'!$L$6:$L$149='C. Cost data'!$C25)*'C.5 Other assets'!$N$6:$N$149)","v":0},{"$f":"SUMPRODUCT(('C.5 Other assets'!$M$6:$M$149='C. Cost data'!L$4)*('C.5 Other assets'!$L$6:$L$149='C. Cost data'!$C25)*'C.5 Other assets'!$N$6:$N$149)","v":0},{"$f":"SUMPRODUCT(('C.5 Other assets'!$M$6:$M$149='C. Cost data'!M$4)*('C.5 Other assets'!$L$6:$L$149='C. Cost data'!$C25)*'C.5 Other assets'!$N$6:$N$149)","v":0},{"$f":"SUMPRODUCT(('C.5 Other assets'!$M$6:$M$149='C. Cost data'!N$4)*('C.5 Other assets'!$L$6:$L$149='C. Cost data'!$C25)*'C.5 Other assets'!$N$6:$N$149)","v":0},{"$f":"SUMPRODUCT(('C.5 Other assets'!$M$6:$M$149='C. Cost data'!O$4)*('C.5 Other assets'!$L$6:$L$149='C. Cost data'!$C25)*'C.5 Other assets'!$N$6:$N$149)","v":0},{"$f":"SUMPRODUCT(('C.5 Other assets'!$M$6:$M$149='C. Cost data'!P$4)*('C.5 Other assets'!$L$6:$L$149='C. Cost data'!$C25)*'C.5 Other assets'!$N$6:$N$149)","v":0},{"$f":"SUMPRODUCT(('C.5 Other assets'!$M$6:$M$149='C. Cost data'!Q$4)*('C.5 Other assets'!$L$6:$L$149='C. Cost data'!$C25)*'C.5 Other assets'!$N$6:$N$149)","v":0},{"$f":"SUMPRODUCT(('C.1 Cost data compression'!$O$6:$O$149='C. Cost data'!R$4)*('C.1 Cost data compression'!$N$6:$N$149='C. Cost data'!$C25)*'C.1 Cost data compression'!$P$6:$P$149)","v":30000000},{"$f":"SUMPRODUCT(('C.5 Other assets'!$M$6:$M$149='C. Cost data'!S$4)*('C.5 Other assets'!$L$6:$L$149='C. Cost data'!$C25)*'C.5 Other assets'!$N$6:$N$149)","v":0},{"$f":"SUMPRODUCT(('C.5 Other assets'!$M$6:$M$149='C. Cost data'!T$4)*('C.5 Other assets'!$L$6:$L$149='C. Cost data'!$C25)*'C.5 Other assets'!$N$6:$N$149)","v":0},{"$f":"SUMPRODUCT(('C.5 Other assets'!$M$6:$M$149='C. Cost data'!U$4)*('C.5 Other assets'!$L$6:$L$149='C. Cost data'!$C25)*'C.5 Other assets'!$N$6:$N$149)","v":0},{"$f":"SUMPRODUCT(('C.5 Other assets'!$M$6:$M$149='C. Cost data'!V$4)*('C.5 Other assets'!$L$6:$L$149='C. Cost data'!$C25)*'C.5 Other assets'!$N$6:$N$149)","v":0},{"$f":"SUMPRODUCT(('C.5 Other assets'!$M$6:$M$149='C. Cost data'!W$4)*('C.5 Other assets'!$L$6:$L$149='C. Cost data'!$C25)*'C.5 Other assets'!$N$6:$N$149)","v":0},{"$f":"SUMPRODUCT(('C.5 Other assets'!$M$6:$M$149='C. Cost data'!X$4)*('C.5 Other assets'!$L$6:$L$149='C. Cost data'!$C25)*'C.5 Other assets'!$N$6:$N$149)","v":0},{"$f":"SUMPRODUCT(('C.5 Other assets'!$M$6:$M$149='C. Cost data'!Y$4)*('C.5 Other assets'!$L$6:$L$149='C. Cost data'!$C25)*'C.5 Other assets'!$N$6:$N$149)","v":0},{"$f":"SUMPRODUCT(('C.2 Cost data pipe PE'!$V$6:$V$149='C. Cost data'!Z$4)*('C.2 Cost data pipe PE'!$U$6:$U$149='C. Cost data'!$C25)*'C.2 Cost data pipe PE'!$W$6:$W$149)","v":0},{"$f":"SUMPRODUCT(('C.3 Cost data pipe cath'!$V$6:$V$149='C. Cost data'!AA$4)*('C.3 Cost data pipe cath'!$U$6:$U$149='C. Cost data'!$C25)*'C.3 Cost data pipe cath'!$W$6:$W$149)","v":0},{"$f":"SUMPRODUCT(('C.5 Other assets'!$M$6:$M$149='C. Cost data'!AB$4)*('C.5 Other assets'!$L$6:$L$149='C. Cost data'!$C25)*'C.5 Other assets'!$N$6:$N$149)","v":0},{"$f":"SUMPRODUCT(('C.5 Other assets'!$M$6:$M$149='C. Cost data'!AC$4)*('C.5 Other assets'!$L$6:$L$149='C. Cost data'!$C25)*'C.5 Other assets'!$N$6:$N$149)","v":0},{"$f":"SUMPRODUCT(('C.5 Other assets'!$M$6:$M$149='C. Cost data'!AD$4)*('C.5 Other assets'!$L$6:$L$149='C. Cost data'!$C25)*'C.5 Other assets'!$N$6:$N$149)","v":0},{"$f":"SUMPRODUCT(('C.5 Other assets'!$M$6:$M$149='C. Cost data'!AE$4)*('C.5 Other assets'!$L$6:$L$149='C. Cost data'!$C25)*'C.5 Other assets'!$N$6:$N$149)","v":0},{"$f":"SUMPRODUCT(('C.5 Other assets'!$M$6:$M$149='C. Cost data'!AF$4)*('C.5 Other assets'!$L$6:$L$149='C. Cost data'!$C25)*'C.5 Other assets'!$N$6:$N$149)","v":0},{"$f":"SUMPRODUCT(('C.5 Other assets'!$M$6:$M$149='C. Cost data'!AG$4)*('C.5 Other assets'!$L$6:$L$149='C. Cost data'!$C25)*'C.5 Other assets'!$N$6:$N$149)","v":0},{"$f":"SUMPRODUCT(('C.5 Other assets'!$M$6:$M$149='C. Cost data'!AH$4)*('C.5 Other assets'!$L$6:$L$149='C. Cost data'!$C25)*'C.5 Other assets'!$N$6:$N$149)","v":0},{"$f":"SUMPRODUCT(('C.5 Other assets'!$M$6:$M$149='C. Cost data'!AI$4)*('C.5 Other assets'!$L$6:$L$149='C. Cost data'!$C25)*'C.5 Other assets'!$N$6:$N$149)","v":0},{"$f":"SUMPRODUCT(('C.5 Other assets'!$M$6:$M$149='C. Cost data'!AJ$4)*('C.5 Other assets'!$L$6:$L$149='C. Cost data'!$C25)*'C.5 Other assets'!$N$6:$N$149)","v":0},{"$f":"SUMPRODUCT(('C.5 Other assets'!$M$6:$M$149='C. Cost data'!AK$4)*('C.5 Other assets'!$L$6:$L$149='C. Cost data'!$C25)*'C.5 Other assets'!$N$6:$N$149)","v":0},{"$f":"SUMPRODUCT(('C.5 Other assets'!$M$6:$M$149='C. Cost data'!AL$4)*('C.5 Other assets'!$L$6:$L$149='C. Cost data'!$C25)*'C.5 Other assets'!$N$6:$N$149)","v":0},{"$f":"SUMPRODUCT(('C.4 Cost control equip'!$O$6:$O$149='C. Cost data'!AM$4)*('C.4 Cost control equip'!$N$6:$N$149='C. Cost data'!$C25)*'C.4 Cost control equip'!$P$6:$P$149)","v":0},{"$f":"SUMPRODUCT(('C.5 Other assets'!$M$6:$M$149='C. Cost data'!AN$4)*('C.5 Other assets'!$L$6:$L$149='C. Cost data'!$C25)*'C.5 Other assets'!$N$6:$N$149)","v":0},{"$f":"SUMPRODUCT(('C.5 Other assets'!$M$6:$M$149='C. Cost data'!AO$4)*('C.5 Other assets'!$L$6:$L$149='C. Cost data'!$C25)*'C.5 Other assets'!$N$6:$N$149)","v":0},{"$f":"SUMPRODUCT(('C.5 Other assets'!$M$6:$M$149='C. Cost data'!AP$4)*('C.5 Other assets'!$L$6:$L$149='C. Cost data'!$C25)*'C.5 Other assets'!$N$6:$N$149)","v":0},{"$f":"SUMPRODUCT(('C.5 Other assets'!$M$6:$M$149='C. Cost data'!AQ$4)*('C.5 Other assets'!$L$6:$L$149='C. Cost data'!$C25)*'C.5 Other assets'!$N$6:$N$149)","v":0},{"$f":"SUMPRODUCT(('C.5 Other assets'!$M$6:$M$149='C. Cost data'!AR$4)*('C.5 Other assets'!$L$6:$L$149='C. Cost data'!$C25)*'C.5 Other assets'!$N$6:$N$149)","v":0},{"$f":"SUMPRODUCT(('C.5 Other assets'!$M$6:$M$149='C. Cost data'!AS$4)*('C.5 Other assets'!$L$6:$L$149='C. Cost data'!$C25)*'C.5 Other assets'!$N$6:$N$149)","v":0}]
[null,"Assets under construction 2022 – disposals/reclassifications",2022,0,{"$f":"SUMPRODUCT(('C.5 Other assets'!$M$6:$M$149='C. Cost data'!E$4)*('C.5 Other assets'!$L$6:$L$149='C. Cost data'!$C26)*'C.5 Other assets'!$O$6:$O$149)","v":0},{"$f":"SUMPRODUCT(('C.5 Other assets'!$M$6:$M$149='C. Cost data'!F$4)*('C.5 Other assets'!$L$6:$L$149='C. Cost data'!$C26)*'C.5 Other assets'!$O$6:$O$149)","v":0},{"$f":"SUMPRODUCT(('C.5 Other assets'!$M$6:$M$149='C. Cost data'!G$4)*('C.5 Other assets'!$L$6:$L$149='C. Cost data'!$C26)*'C.5 Other assets'!$O$6:$O$149)","v":0},{"$f":"SUMPRODUCT(('C.5 Other assets'!$M$6:$M$149='C. Cost data'!H$4)*('C.5 Other assets'!$L$6:$L$149='C. Cost data'!$C26)*'C.5 Other assets'!$O$6:$O$149)","v":0},{"$f":"SUMPRODUCT(('C.5 Other assets'!$M$6:$M$149='C. Cost data'!I$4)*('C.5 Other assets'!$L$6:$L$149='C. Cost data'!$C26)*'C.5 Other assets'!$O$6:$O$149)","v":0},{"$f":"SUMPRODUCT(('C.5 Other assets'!$M$6:$M$149='C. Cost data'!J$4)*('C.5 Other assets'!$L$6:$L$149='C. Cost data'!$C26)*'C.5 Other assets'!$O$6:$O$149)","v":0},{"$f":"SUMPRODUCT(('C.5 Other assets'!$M$6:$M$149='C. Cost data'!K$4)*('C.5 Other assets'!$L$6:$L$149='C. Cost data'!$C26)*'C.5 Other assets'!$O$6:$O$149)","v":0},{"$f":"SUMPRODUCT(('C.5 Other assets'!$M$6:$M$149='C. Cost data'!L$4)*('C.5 Other assets'!$L$6:$L$149='C. Cost data'!$C26)*'C.5 Other assets'!$O$6:$O$149)","v":0},{"$f":"SUMPRODUCT(('C.5 Other assets'!$M$6:$M$149='C. Cost data'!M$4)*('C.5 Other assets'!$L$6:$L$149='C. Cost data'!$C26)*'C.5 Other assets'!$O$6:$O$149)","v":0},{"$f":"SUMPRODUCT(('C.5 Other assets'!$M$6:$M$149='C. Cost data'!N$4)*('C.5 Other assets'!$L$6:$L$149='C. Cost data'!$C26)*'C.5 Other assets'!$O$6:$O$149)","v":0},{"$f":"SUMPRODUCT(('C.5 Other assets'!$M$6:$M$149='C. Cost data'!O$4)*('C.5 Other assets'!$L$6:$L$149='C. Cost data'!$C26)*'C.5 Other assets'!$O$6:$O$149)","v":0},{"$f":"SUMPRODUCT(('C.5 Other assets'!$M$6:$M$149='C. Cost data'!P$4)*('C.5 Other assets'!$L$6:$L$149='C. Cost data'!$C26)*'C.5 Other assets'!$O$6:$O$149)","v":0},{"$f":"SUMPRODUCT(('C.5 Other assets'!$M$6:$M$149='C. Cost data'!Q$4)*('C.5 Other assets'!$L$6:$L$149='C. Cost data'!$C26)*'C.5 Other assets'!$O$6:$O$149)","v":0},{"$f":"SUMPRODUCT(('C.1 Cost data compression'!$O$6:$O$149='C. Cost data'!R$4)*('C.1 Cost data compression'!$N$6:$N$149='C. Cost data'!$C26)*'C.1 Cost data compression'!$Q$6:$Q$149)","v":0},{"$f":"SUMPRODUCT(('C.5 Other assets'!$M$6:$M$149='C. Cost data'!S$4)*('C.5 Other assets'!$L$6:$L$149='C. Cost data'!$C26)*'C.5 Other assets'!$O$6:$O$149)","v":0},{"$f":"SUMPRODUCT(('C.5 Other assets'!$M$6:$M$149='C. Cost data'!T$4)*('C.5 Other assets'!$L$6:$L$149='C. Cost data'!$C26)*'C.5 Other assets'!$O$6:$O$149)","v":0},{"$f":"SUMPRODUCT(('C.5 Other assets'!$M$6:$M$149='C. Cost data'!U$4)*('C.5 Other assets'!$L$6:$L$149='C. Cost data'!$C26)*'C.5 Other assets'!$O$6:$O$149)","v":0},{"$f":"SUMPRODUCT(('C.5 Other assets'!$M$6:$M$149='C. Cost data'!V$4)*('C.5 Other assets'!$L$6:$L$149='C. Cost data'!$C26)*'C.5 Other assets'!$O$6:$O$149)","v":0},{"$f":"SUMPRODUCT(('C.5 Other assets'!$M$6:$M$149='C. Cost data'!W$4)*('C.5 Other assets'!$L$6:$L$149='C. Cost data'!$C26)*'C.5 Other assets'!$O$6:$O$149)","v":0},{"$f":"SUMPRODUCT(('C.5 Other assets'!$M$6:$M$149='C. Cost data'!X$4)*('C.5 Other assets'!$L$6:$L$149='C. Cost data'!$C26)*'C.5 Other assets'!$O$6:$O$149)","v":0},{"$f":"SUMPRODUCT(('C.5 Other assets'!$M$6:$M$149='C. Cost data'!Y$4)*('C.5 Other assets'!$L$6:$L$149='C. Cost data'!$C26)*'C.5 Other assets'!$O$6:$O$149)","v":0},{"$f":"SUMPRODUCT(('C.2 Cost data pipe PE'!$V$6:$V$149='C. Cost data'!Z$4)*('C.2 Cost data pipe PE'!$U$6:$U$149='C. Cost data'!$C26)*'C.2 Cost data pipe PE'!$X$6:$X$149)","v":0},{"$f":"SUMPRODUCT(('C.3 Cost data pipe cath'!$V$6:$V$149='C. Cost data'!AA$4)*('C.3 Cost data pipe cath'!$U$6:$U$149='C. Cost data'!$C26)*'C.3 Cost data pipe cath'!$X$6:$X$149)","v":0},{"$f":"SUMPRODUCT(('C.5 Other assets'!$M$6:$M$149='C. Cost data'!AB$4)*('C.5 Other assets'!$L$6:$L$149='C. Cost data'!$C26)*'C.5 Other assets'!$O$6:$O$149)","v":0},{"$f":"SUMPRODUCT(('C.5 Other assets'!$M$6:$M$149='C. Cost data'!AC$4)*('C.5 Other assets'!$L$6:$L$149='C. Cost data'!$C26)*'C.5 Other assets'!$O$6:$O$149)","v":0},{"$f":"SUMPRODUCT(('C.5 Other assets'!$M$6:$M$149='C. Cost data'!AD$4)*('C.5 Other assets'!$L$6:$L$149='C. Cost data'!$C26)*'C.5 Other assets'!$O$6:$O$149)","v":0},{"$f":"SUMPRODUCT(('C.5 Other assets'!$M$6:$M$149='C. Cost data'!AE$4)*('C.5 Other assets'!$L$6:$L$149='C. Cost data'!$C26)*'C.5 Other assets'!$O$6:$O$149)","v":0},{"$f":"SUMPRODUCT(('C.5 Other assets'!$M$6:$M$149='C. Cost data'!AF$4)*('C.5 Other assets'!$L$6:$L$149='C. Cost data'!$C26)*'C.5 Other assets'!$O$6:$O$149)","v":0},{"$f":"SUMPRODUCT(('C.5 Other assets'!$M$6:$M$149='C. Cost data'!AG$4)*('C.5 Other assets'!$L$6:$L$149='C. Cost data'!$C26)*'C.5 Other assets'!$O$6:$O$149)","v":0},{"$f":"SUMPRODUCT(('C.5 Other assets'!$M$6:$M$149='C. Cost data'!AH$4)*('C.5 Other assets'!$L$6:$L$149='C. Cost data'!$C26)*'C.5 Other assets'!$O$6:$O$149)","v":0},{"$f":"SUMPRODUCT(('C.5 Other assets'!$M$6:$M$149='C. Cost data'!AI$4)*('C.5 Other assets'!$L$6:$L$149='C. Cost data'!$C26)*'C.5 Other assets'!$O$6:$O$149)","v":0},{"$f":"SUMPRODUCT(('C.5 Other assets'!$M$6:$M$149='C. Cost data'!AJ$4)*('C.5 Other assets'!$L$6:$L$149='C. Cost data'!$C26)*'C.5 Other assets'!$O$6:$O$149)","v":0},{"$f":"SUMPRODUCT(('C.5 Other assets'!$M$6:$M$149='C. Cost data'!AK$4)*('C.5 Other assets'!$L$6:$L$149='C. Cost data'!$C26)*'C.5 Other assets'!$O$6:$O$149)","v":0},{"$f":"SUMPRODUCT(('C.5 Other assets'!$M$6:$M$149='C. Cost data'!AL$4)*('C.5 Other assets'!$L$6:$L$149='C. Cost data'!$C26)*'C.5 Other assets'!$O$6:$O$149)","v":0},{"$f":"SUMPRODUCT(('C.4 Cost control equip'!$O$6:$O$149='C. Cost data'!AM$4)*('C.4 Cost control equip'!$N$6:$N$149='C. Cost data'!$C26)*'C.4 Cost control equip'!$Q$6:$Q$149)","v":0},{"$f":"SUMPRODUCT(('C.5 Other assets'!$M$6:$M$149='C. Cost data'!AN$4)*('C.5 Other assets'!$L$6:$L$149='C. Cost data'!$C26)*'C.5 Other assets'!$O$6:$O$149)","v":0},{"$f":"SUMPRODUCT(('C.5 Other assets'!$M$6:$M$149='C. Cost data'!AO$4)*('C.5 Other assets'!$L$6:$L$149='C. Cost data'!$C26)*'C.5 Other assets'!$O$6:$O$149)","v":0},{"$f":"SUMPRODUCT(('C.5 Other assets'!$M$6:$M$149='C. Cost data'!AP$4)*('C.5 Other assets'!$L$6:$L$149='C. Cost data'!$C26)*'C.5 Other assets'!$O$6:$O$149)","v":0},{"$f":"SUMPRODUCT(('C.5 Other assets'!$M$6:$M$149='C. Cost data'!AQ$4)*('C.5 Other assets'!$L$6:$L$149='C. Cost data'!$C26)*'C.5 Other assets'!$O$6:$O$149)","v":0},{"$f":"SUMPRODUCT(('C.5 Other assets'!$M$6:$M$149='C. Cost data'!AR$4)*('C.5 Other assets'!$L$6:$L$149='C. Cost data'!$C26)*'C.5 Other assets'!$O$6:$O$149)","v":0},{"$f":"SUMPRODUCT(('C.5 Other assets'!$M$6:$M$149='C. Cost data'!AS$4)*('C.5 Other assets'!$L$6:$L$149='C. Cost data'!$C26)*'C.5 Other assets'!$O$6:$O$149)","v":0}]
[null,"Assets under construction 2023 – opening balance",2023,39000000,{"$f":"E24+E25-E26","v":0},0,0,0,0,0,0,0,0,0,0,0,0,39000000,0,0,0,0,0,0,0,0,0,0,0,0,0,0,0,0,0,0,0,0,0,0,0,0,0,0,0]
[null,"Assets under construction 2023 – additions",2023,51000000,{"$f":"SUMPRODUCT(('C.5 Other assets'!$M$6:$M$149='C. Cost data'!E$4)*('C.5 Other assets'!$L$6:$L$149='C. Cost data'!$C28)*'C.5 Other assets'!$N$6:$N$149)","v":0},{"$f":"SUMPRODUCT(('C.5 Other assets'!$M$6:$M$149='C. Cost data'!F$4)*('C.5 Other assets'!$L$6:$L$149='C. Cost data'!$C28)*'C.5 Other assets'!$N$6:$N$149)","v":0},{"$f":"SUMPRODUCT(('C.5 Other assets'!$M$6:$M$149='C. Cost data'!G$4)*('C.5 Other assets'!$L$6:$L$149='C. Cost data'!$C28)*'C.5 Other assets'!$N$6:$N$149)","v":0},{"$f":"SUMPRODUCT(('C.5 Other assets'!$M$6:$M$149='C. Cost data'!H$4)*('C.5 Other assets'!$L$6:$L$149='C. Cost data'!$C28)*'C.5 Other assets'!$N$6:$N$149)","v":0},{"$f":"SUMPRODUCT(('C.5 Other assets'!$M$6:$M$149='C. Cost data'!I$4)*('C.5 Other assets'!$L$6:$L$149='C. Cost data'!$C28)*'C.5 Other assets'!$N$6:$N$149)","v":0},{"$f":"SUMPRODUCT(('C.5 Other assets'!$M$6:$M$149='C. Cost data'!J$4)*('C.5 Other assets'!$L$6:$L$149='C. Cost data'!$C28)*'C.5 Other assets'!$N$6:$N$149)","v":0},{"$f":"SUMPRODUCT(('C.5 Other assets'!$M$6:$M$149='C. Cost data'!K$4)*('C.5 Other assets'!$L$6:$L$149='C. Cost data'!$C28)*'C.5 Other assets'!$N$6:$N$149)","v":0},{"$f":"SUMPRODUCT(('C.5 Other assets'!$M$6:$M$149='C. Cost data'!L$4)*('C.5 Other assets'!$L$6:$L$149='C. Cost data'!$C28)*'C.5 Other assets'!$N$6:$N$149)","v":0},{"$f":"SUMPRODUCT(('C.5 Other assets'!$M$6:$M$149='C. Cost data'!M$4)*('C.5 Other assets'!$L$6:$L$149='C. Cost data'!$C28)*'C.5 Other assets'!$N$6:$N$149)","v":0},{"$f":"SUMPRODUCT(('C.5 Other assets'!$M$6:$M$149='C. Cost data'!N$4)*('C.5 Other assets'!$L$6:$L$149='C. Cost data'!$C28)*'C.5 Other assets'!$N$6:$N$149)","v":0},{"$f":"SUMPRODUCT(('C.5 Other assets'!$M$6:$M$149='C. Cost data'!O$4)*('C.5 Other assets'!$L$6:$L$149='C. Cost data'!$C28)*'C.5 Other assets'!$N$6:$N$149)","v":0},{"$f":"SUMPRODUCT(('C.5 Other assets'!$M$6:$M$149='C. Cost data'!P$4)*('C.5 Other assets'!$L$6:$L$149='C. Cost data'!$C28)*'C.5 Other assets'!$N$6:$N$149)","v":0},{"$f":"SUMPRODUCT(('C.5 Other assets'!$M$6:$M$149='C. Cost data'!Q$4)*('C.5 Other assets'!$L$6:$L$149='C. Cost data'!$C28)*'C.5 Other assets'!$N$6:$N$149)","v":0},{"$f":"SUMPRODUCT(('C.1 Cost data compression'!$O$6:$O$149='C. Cost data'!R$4)*('C.1 Cost data compression'!$N$6:$N$149='C. Cost data'!$C28)*'C.1 Cost data compression'!$P$6:$P$149)","v":51000000},{"$f":"SUMPRODUCT(('C.5 Other assets'!$M$6:$M$149='C. Cost data'!S$4)*('C.5 Other assets'!$L$6:$L$149='C. Cost data'!$C28)*'C.5 Other assets'!$N$6:$N$149)","v":0},{"$f":"SUMPRODUCT(('C.5 Other assets'!$M$6:$M$149='C. Cost data'!T$4)*('C.5 Other assets'!$L$6:$L$149='C. Cost data'!$C28)*'C.5 Other assets'!$N$6:$N$149)","v":0},{"$f":"SUMPRODUCT(('C.5 Other assets'!$M$6:$M$149='C. Cost data'!U$4)*('C.5 Other assets'!$L$6:$L$149='C. Cost data'!$C28)*'C.5 Other assets'!$N$6:$N$149)","v":0},{"$f":"SUMPRODUCT(('C.5 Other assets'!$M$6:$M$149='C. Cost data'!V$4)*('C.5 Other assets'!$L$6:$L$149='C. Cost data'!$C28)*'C.5 Other assets'!$N$6:$N$149)","v":0},{"$f":"SUMPRODUCT(('C.5 Other assets'!$M$6:$M$149='C. Cost data'!W$4)*('C.5 Other assets'!$L$6:$L$149='C. Cost data'!$C28)*'C.5 Other assets'!$N$6:$N$149)","v":0},{"$f":"SUMPRODUCT(('C.5 Other assets'!$M$6:$M$149='C. Cost data'!X$4)*('C.5 Other assets'!$L$6:$L$149='C. Cost data'!$C28)*'C.5 Other assets'!$N$6:$N$149)","v":0},{"$f":"SUMPRODUCT(('C.5 Other assets'!$M$6:$M$149='C. Cost data'!Y$4)*('C.5 Other assets'!$L$6:$L$149='C. Cost data'!$C28)*'C.5 Other assets'!$N$6:$N$149)","v":0},{"$f":"SUMPRODUCT(('C.2 Cost data pipe PE'!$V$6:$V$149='C. Cost data'!Z$4)*('C.2 Cost data pipe PE'!$U$6:$U$149='C. Cost data'!$C28)*'C.2 Cost data pipe PE'!$W$6:$W$149)","v":0},{"$f":"SUMPRODUCT(('C.3 Cost data pipe cath'!$V$6:$V$149='C. Cost data'!AA$4)*('C.3 Cost data pipe cath'!$U$6:$U$149='C. Cost data'!$C28)*'C.3 Cost data pipe cath'!$W$6:$W$149)","v":0},{"$f":"SUMPRODUCT(('C.5 Other assets'!$M$6:$M$149='C. Cost data'!AB$4)*('C.5 Other assets'!$L$6:$L$149='C. Cost data'!$C28)*'C.5 Other assets'!$N$6:$N$149)","v":0},{"$f":"SUMPRODUCT(('C.5 Other assets'!$M$6:$M$149='C. Cost data'!AC$4)*('C.5 Other assets'!$L$6:$L$149='C. Cost data'!$C28)*'C.5 Other assets'!$N$6:$N$149)","v":0},{"$f":"SUMPRODUCT(('C.5 Other assets'!$M$6:$M$149='C. Cost data'!AD$4)*('C.5 Other assets'!$L$6:$L$149='C. Cost data'!$C28)*'C.5 Other assets'!$N$6:$N$149)","v":0},{"$f":"SUMPRODUCT(('C.5 Other assets'!$M$6:$M$149='C. Cost data'!AE$4)*('C.5 Other assets'!$L$6:$L$149='C. Cost data'!$C28)*'C.5 Other assets'!$N$6:$N$149)","v":0},{"$f":"SUMPRODUCT(('C.5 Other assets'!$M$6:$M$149='C. Cost data'!AF$4)*('C.5 Other assets'!$L$6:$L$149='C. Cost data'!$C28)*'C.5 Other assets'!$N$6:$N$149)","v":0},{"$f":"SUMPRODUCT(('C.5 Other assets'!$M$6:$M$149='C. Cost data'!AG$4)*('C.5 Other assets'!$L$6:$L$149='C. Cost data'!$C28)*'C.5 Other assets'!$N$6:$N$149)","v":0},{"$f":"SUMPRODUCT(('C.5 Other assets'!$M$6:$M$149='C. Cost data'!AH$4)*('C.5 Other assets'!$L$6:$L$149='C. Cost data'!$C28)*'C.5 Other assets'!$N$6:$N$149)","v":0},{"$f":"SUMPRODUCT(('C.5 Other assets'!$M$6:$M$149='C. Cost data'!AI$4)*('C.5 Other assets'!$L$6:$L$149='C. Cost data'!$C28)*'C.5 Other assets'!$N$6:$N$149)","v":0},{"$f":"SUMPRODUCT(('C.5 Other assets'!$M$6:$M$149='C. Cost data'!AJ$4)*('C.5 Other assets'!$L$6:$L$149='C. Cost data'!$C28)*'C.5 Other assets'!$N$6:$N$149)","v":0},{"$f":"SUMPRODUCT(('C.5 Other assets'!$M$6:$M$149='C. Cost data'!AK$4)*('C.5 Other assets'!$L$6:$L$149='C. Cost data'!$C28)*'C.5 Other assets'!$N$6:$N$149)","v":0},{"$f":"SUMPRODUCT(('C.5 Other assets'!$M$6:$M$149='C. Cost data'!AL$4)*('C.5 Other assets'!$L$6:$L$149='C. Cost data'!$C28)*'C.5 Other assets'!$N$6:$N$149)","v":0},{"$f":"SUMPRODUCT(('C.4 Cost control equip'!$O$6:$O$149='C. Cost data'!AM$4)*('C.4 Cost control equip'!$N$6:$N$149='C. Cost data'!$C28)*'C.4 Cost control equip'!$P$6:$P$149)","v":0},{"$f":"SUMPRODUCT(('C.5 Other assets'!$M$6:$M$149='C. Cost data'!AN$4)*('C.5 Other assets'!$L$6:$L$149='C. Cost data'!$C28)*'C.5 Other assets'!$N$6:$N$149)","v":0},{"$f":"SUMPRODUCT(('C.5 Other assets'!$M$6:$M$149='C. Cost data'!AO$4)*('C.5 Other assets'!$L$6:$L$149='C. Cost data'!$C28)*'C.5 Other assets'!$N$6:$N$149)","v":0},{"$f":"SUMPRODUCT(('C.5 Other assets'!$M$6:$M$149='C. Cost data'!AP$4)*('C.5 Other assets'!$L$6:$L$149='C. Cost data'!$C28)*'C.5 Other assets'!$N$6:$N$149)","v":0},{"$f":"SUMPRODUCT(('C.5 Other assets'!$M$6:$M$149='C. Cost data'!AQ$4)*('C.5 Other assets'!$L$6:$L$149='C. Cost data'!$C28)*'C.5 Other assets'!$N$6:$N$149)","v":0},{"$f":"SUMPRODUCT(('C.5 Other assets'!$M$6:$M$149='C. Cost data'!AR$4)*('C.5 Other assets'!$L$6:$L$149='C. Cost data'!$C28)*'C.5 Other assets'!$N$6:$N$149)","v":0},{"$f":"SUMPRODUCT(('C.5 Other assets'!$M$6:$M$149='C. Cost data'!AS$4)*('C.5 Other assets'!$L$6:$L$149='C. Cost data'!$C28)*'C.5 Other assets'!$N$6:$N$149)","v":0}]
[null,"Assets under construction 2023 – disposals/reclassifications",2023,0,{"$f":"SUMPRODUCT(('C.5 Other assets'!$M$6:$M$149='C. Cost data'!E$4)*('C.5 Other assets'!$L$6:$L$149='C. Cost data'!$C29)*'C.5 Other assets'!$O$6:$O$149)","v":0},{"$f":"SUMPRODUCT(('C.5 Other assets'!$M$6:$M$149='C. Cost data'!F$4)*('C.5 Other assets'!$L$6:$L$149='C. Cost data'!$C29)*'C.5 Other assets'!$O$6:$O$149)","v":0},{"$f":"SUMPRODUCT(('C.5 Other assets'!$M$6:$M$149='C. Cost data'!G$4)*('C.5 Other assets'!$L$6:$L$149='C. Cost data'!$C29)*'C.5 Other assets'!$O$6:$O$149)","v":0},{"$f":"SUMPRODUCT(('C.5 Other assets'!$M$6:$M$149='C. Cost data'!H$4)*('C.5 Other assets'!$L$6:$L$149='C. Cost data'!$C29)*'C.5 Other assets'!$O$6:$O$149)","v":0},{"$f":"SUMPRODUCT(('C.5 Other assets'!$M$6:$M$149='C. Cost data'!I$4)*('C.5 Other assets'!$L$6:$L$149='C. Cost data'!$C29)*'C.5 Other assets'!$O$6:$O$149)","v":0},{"$f":"SUMPRODUCT(('C.5 Other assets'!$M$6:$M$149='C. Cost data'!J$4)*('C.5 Other assets'!$L$6:$L$149='C. Cost data'!$C29)*'C.5 Other assets'!$O$6:$O$149)","v":0},{"$f":"SUMPRODUCT(('C.5 Other assets'!$M$6:$M$149='C. Cost data'!K$4)*('C.5 Other assets'!$L$6:$L$149='C. Cost data'!$C29)*'C.5 Other assets'!$O$6:$O$149)","v":0},{"$f":"SUMPRODUCT(('C.5 Other assets'!$M$6:$M$149='C. Cost data'!L$4)*('C.5 Other assets'!$L$6:$L$149='C. Cost data'!$C29)*'C.5 Other assets'!$O$6:$O$149)","v":0},{"$f":"SUMPRODUCT(('C.5 Other assets'!$M$6:$M$149='C. Cost data'!M$4)*('C.5 Other assets'!$L$6:$L$149='C. Cost data'!$C29)*'C.5 Other assets'!$O$6:$O$149)","v":0},{"$f":"SUMPRODUCT(('C.5 Other assets'!$M$6:$M$149='C. Cost data'!N$4)*('C.5 Other assets'!$L$6:$L$149='C. Cost data'!$C29)*'C.5 Other assets'!$O$6:$O$149)","v":0},{"$f":"SUMPRODUCT(('C.5 Other assets'!$M$6:$M$149='C. Cost data'!O$4)*('C.5 Other assets'!$L$6:$L$149='C. Cost data'!$C29)*'C.5 Other assets'!$O$6:$O$149)","v":0},{"$f":"SUMPRODUCT(('C.5 Other assets'!$M$6:$M$149='C. Cost data'!P$4)*('C.5 Other assets'!$L$6:$L$149='C. Cost data'!$C29)*'C.5 Other assets'!$O$6:$O$149)","v":0},{"$f":"SUMPRODUCT(('C.5 Other assets'!$M$6:$M$149='C. Cost data'!Q$4)*('C.5 Other assets'!$L$6:$L$149='C. Cost data'!$C29)*'C.5 Other assets'!$O$6:$O$149)","v":0},{"$f":"SUMPRODUCT(('C.1 Cost data compression'!$O$6:$O$149='C. Cost data'!R$4)*('C.1 Cost data compression'!$N$6:$N$149='C. Cost data'!$C29)*'C.1 Cost data compression'!$Q$6:$Q$149)","v":0},{"$f":"SUMPRODUCT(('C.5 Other assets'!$M$6:$M$149='C. Cost data'!S$4)*('C.5 Other assets'!$L$6:$L$149='C. Cost data'!$C29)*'C.5 Other assets'!$O$6:$O$149)","v":0},{"$f":"SUMPRODUCT(('C.5 Other assets'!$M$6:$M$149='C. Cost data'!T$4)*('C.5 Other assets'!$L$6:$L$149='C. Cost data'!$C29)*'C.5 Other assets'!$O$6:$O$149)","v":0},{"$f":"SUMPRODUCT(('C.5 Other assets'!$M$6:$M$149='C. Cost data'!U$4)*('C.5 Other assets'!$L$6:$L$149='C. Cost data'!$C29)*'C.5 Other assets'!$O$6:$O$149)","v":0},{"$f":"SUMPRODUCT(('C.5 Other assets'!$M$6:$M$149='C. Cost data'!V$4)*('C.5 Other assets'!$L$6:$L$149='C. Cost data'!$C29)*'C.5 Other assets'!$O$6:$O$149)","v":0},{"$f":"SUMPRODUCT(('C.5 Other assets'!$M$6:$M$149='C. Cost data'!W$4)*('C.5 Other assets'!$L$6:$L$149='C. Cost data'!$C29)*'C.5 Other assets'!$O$6:$O$149)","v":0},{"$f":"SUMPRODUCT(('C.5 Other assets'!$M$6:$M$149='C. Cost data'!X$4)*('C.5 Other assets'!$L$6:$L$149='C. Cost data'!$C29)*'C.5 Other assets'!$O$6:$O$149)","v":0},{"$f":"SUMPRODUCT(('C.5 Other assets'!$M$6:$M$149='C. Cost data'!Y$4)*('C.5 Other assets'!$L$6:$L$149='C. Cost data'!$C29)*'C.5 Other assets'!$O$6:$O$149)","v":0},{"$f":"SUMPRODUCT(('C.2 Cost data pipe PE'!$V$6:$V$149='C. Cost data'!Z$4)*('C.2 Cost data pipe PE'!$U$6:$U$149='C. Cost data'!$C29)*'C.2 Cost data pipe PE'!$X$6:$X$149)","v":0},{"$f":"SUMPRODUCT(('C.3 Cost data pipe cath'!$V$6:$V$149='C. Cost data'!AA$4)*('C.3 Cost data pipe cath'!$U$6:$U$149='C. Cost data'!$C29)*'C.3 Cost data pipe cath'!$X$6:$X$149)","v":0},{"$f":"SUMPRODUCT(('C.5 Other assets'!$M$6:$M$149='C. Cost data'!AB$4)*('C.5 Other assets'!$L$6:$L$149='C. Cost data'!$C29)*'C.5 Other assets'!$O$6:$O$149)","v":0},{"$f":"SUMPRODUCT(('C.5 Other assets'!$M$6:$M$149='C. Cost data'!AC$4)*('C.5 Other assets'!$L$6:$L$149='C. Cost data'!$C29)*'C.5 Other assets'!$O$6:$O$149)","v":0},{"$f":"SUMPRODUCT(('C.5 Other assets'!$M$6:$M$149='C. Cost data'!AD$4)*('C.5 Other assets'!$L$6:$L$149='C. Cost data'!$C29)*'C.5 Other assets'!$O$6:$O$149)","v":0},{"$f":"SUMPRODUCT(('C.5 Other assets'!$M$6:$M$149='C. Cost data'!AE$4)*('C.5 Other assets'!$L$6:$L$149='C. Cost data'!$C29)*'C.5 Other assets'!$O$6:$O$149)","v":0},{"$f":"SUMPRODUCT(('C.5 Other assets'!$M$6:$M$149='C. Cost data'!AF$4)*('C.5 Other assets'!$L$6:$L$149='C. Cost data'!$C29)*'C.5 Other assets'!$O$6:$O$149)","v":0},{"$f":"SUMPRODUCT(('C.5 Other assets'!$M$6:$M$149='C. Cost data'!AG$4)*('C.5 Other assets'!$L$6:$L$149='C. Cost data'!$C29)*'C.5 Other assets'!$O$6:$O$149)","v":0},{"$f":"SUMPRODUCT(('C.5 Other assets'!$M$6:$M$149='C. Cost data'!AH$4)*('C.5 Other assets'!$L$6:$L$149='C. Cost data'!$C29)*'C.5 Other assets'!$O$6:$O$149)","v":0},{"$f":"SUMPRODUCT(('C.5 Other assets'!$M$6:$M$149='C. Cost data'!AI$4)*('C.5 Other assets'!$L$6:$L$149='C. Cost data'!$C29)*'C.5 Other assets'!$O$6:$O$149)","v":0},{"$f":"SUMPRODUCT(('C.5 Other assets'!$M$6:$M$149='C. Cost data'!AJ$4)*('C.5 Other assets'!$L$6:$L$149='C. Cost data'!$C29)*'C.5 Other assets'!$O$6:$O$149)","v":0},{"$f":"SUMPRODUCT(('C.5 Other assets'!$M$6:$M$149='C. Cost data'!AK$4)*('C.5 Other assets'!$L$6:$L$149='C. Cost data'!$C29)*'C.5 Other assets'!$O$6:$O$149)","v":0},{"$f":"SUMPRODUCT(('C.5 Other assets'!$M$6:$M$149='C. Cost data'!AL$4)*('C.5 Other assets'!$L$6:$L$149='C. Cost data'!$C29)*'C.5 Other assets'!$O$6:$O$149)","v":0},{"$f":"SUMPRODUCT(('C.4 Cost control equip'!$O$6:$O$149='C. Cost data'!AM$4)*('C.4 Cost control equip'!$N$6:$N$149='C. Cost data'!$C29)*'C.4 Cost control equip'!$Q$6:$Q$149)","v":0},{"$f":"SUMPRODUCT(('C.5 Other assets'!$M$6:$M$149='C. Cost data'!AN$4)*('C.5 Other assets'!$L$6:$L$149='C. Cost data'!$C29)*'C.5 Other assets'!$O$6:$O$149)","v":0},{"$f":"SUMPRODUCT(('C.5 Other assets'!$M$6:$M$149='C. Cost data'!AO$4)*('C.5 Other assets'!$L$6:$L$149='C. Cost data'!$C29)*'C.5 Other assets'!$O$6:$O$149)","v":0},{"$f":"SUMPRODUCT(('C.5 Other assets'!$M$6:$M$149='C. Cost data'!AP$4)*('C.5 Other assets'!$L$6:$L$149='C. Cost data'!$C29)*'C.5 Other assets'!$O$6:$O$149)","v":0},{"$f":"SUMPRODUCT(('C.5 Other assets'!$M$6:$M$149='C. Cost data'!AQ$4)*('C.5 Other assets'!$L$6:$L$149='C. Cost data'!$C29)*'C.5 Other assets'!$O$6:$O$149)","v":0},{"$f":"SUMPRODUCT(('C.5 Other assets'!$M$6:$M$149='C. Cost data'!AR$4)*('C.5 Other assets'!$L$6:$L$149='C. Cost data'!$C29)*'C.5 Other assets'!$O$6:$O$149)","v":0},{"$f":"SUMPRODUCT(('C.5 Other assets'!$M$6:$M$149='C. Cost data'!AS$4)*('C.5 Other assets'!$L$6:$L$149='C. Cost data'!$C29)*'C.5 Other assets'!$O$6:$O$149)","v":0}]
[null,"Assets under construction 2024 – opening balance",2024,90000000,{"$f":"E27+E28-E29","v":0},0,0,0,0,0,0,0,0,0,0,0,0,90000000,0,0,0,0,0,0,0,0,0,0,0,0,0,0,0,0,0,0,0,0,0,0,0,0,0,0,0]
[null,"Assets under construction 2024 – additions",2024,61000000,{"$f":"SUMPRODUCT(('C.5 Other assets'!$M$6:$M$149='C. Cost data'!E$4)*('C.5 Other assets'!$L$6:$L$149='C. Cost data'!$C31)*'C.5 Other assets'!$N$6:$N$149)","v":0},{"$f":"SUMPRODUCT(('C.5 Other assets'!$M$6:$M$149='C. Cost data'!F$4)*('C.5 Other assets'!$L$6:$L$149='C. Cost data'!$C31)*'C.5 Other assets'!$N$6:$N$149)","v":0},{"$f":"SUMPRODUCT(('C.5 Other assets'!$M$6:$M$149='C. Cost data'!G$4)*('C.5 Other assets'!$L$6:$L$149='C. Cost data'!$C31)*'C.5 Other assets'!$N$6:$N$149)","v":0},{"$f":"SUMPRODUCT(('C.5 Other assets'!$M$6:$M$149='C. Cost data'!H$4)*('C.5 Other assets'!$L$6:$L$149='C. Cost data'!$C31)*'C.5 Other assets'!$N$6:$N$149)","v":0},{"$f":"SUMPRODUCT(('C.5 Other assets'!$M$6:$M$149='C. Cost data'!I$4)*('C.5 Other assets'!$L$6:$L$149='C. Cost data'!$C31)*'C.5 Other assets'!$N$6:$N$149)","v":0},{"$f":"SUMPRODUCT(('C.5 Other assets'!$M$6:$M$149='C. Cost data'!J$4)*('C.5 Other assets'!$L$6:$L$149='C. Cost data'!$C31)*'C.5 Other assets'!$N$6:$N$149)","v":0},{"$f":"SUMPRODUCT(('C.5 Other assets'!$M$6:$M$149='C. Cost data'!K$4)*('C.5 Other assets'!$L$6:$L$149='C. Cost data'!$C31)*'C.5 Other assets'!$N$6:$N$149)","v":0},{"$f":"SUMPRODUCT(('C.5 Other assets'!$M$6:$M$149='C. Cost data'!L$4)*('C.5 Other assets'!$L$6:$L$149='C. Cost data'!$C31)*'C.5 Other assets'!$N$6:$N$149)","v":0},{"$f":"SUMPRODUCT(('C.5 Other assets'!$M$6:$M$149='C. Cost data'!M$4)*('C.5 Other assets'!$L$6:$L$149='C. Cost data'!$C31)*'C.5 Other assets'!$N$6:$N$149)","v":0},{"$f":"SUMPRODUCT(('C.5 Other assets'!$M$6:$M$149='C. Cost data'!N$4)*('C.5 Other assets'!$L$6:$L$149='C. Cost data'!$C31)*'C.5 Other assets'!$N$6:$N$149)","v":0},{"$f":"SUMPRODUCT(('C.5 Other assets'!$M$6:$M$149='C. Cost data'!O$4)*('C.5 Other assets'!$L$6:$L$149='C. Cost data'!$C31)*'C.5 Other assets'!$N$6:$N$149)","v":0},{"$f":"SUMPRODUCT(('C.5 Other assets'!$M$6:$M$149='C. Cost data'!P$4)*('C.5 Other assets'!$L$6:$L$149='C. Cost data'!$C31)*'C.5 Other assets'!$N$6:$N$149)","v":0},{"$f":"SUMPRODUCT(('C.5 Other assets'!$M$6:$M$149='C. Cost data'!Q$4)*('C.5 Other assets'!$L$6:$L$149='C. Cost data'!$C31)*'C.5 Other assets'!$N$6:$N$149)","v":0},{"$f":"SUMPRODUCT(('C.1 Cost data compression'!$O$6:$O$149='C. Cost data'!R$4)*('C.1 Cost data compression'!$N$6:$N$149='C. Cost data'!$C31)*'C.1 Cost data compression'!$P$6:$P$149)","v":60000000},{"$f":"SUMPRODUCT(('C.5 Other assets'!$M$6:$M$149='C. Cost data'!S$4)*('C.5 Other assets'!$L$6:$L$149='C. Cost data'!$C31)*'C.5 Other assets'!$N$6:$N$149)","v":0},{"$f":"SUMPRODUCT(('C.5 Other assets'!$M$6:$M$149='C. Cost data'!T$4)*('C.5 Other assets'!$L$6:$L$149='C. Cost data'!$C31)*'C.5 Other assets'!$N$6:$N$149)","v":0},{"$f":"SUMPRODUCT(('C.5 Other assets'!$M$6:$M$149='C. Cost data'!U$4)*('C.5 Other assets'!$L$6:$L$149='C. Cost data'!$C31)*'C.5 Other assets'!$N$6:$N$149)","v":0},{"$f":"SUMPRODUCT(('C.5 Other assets'!$M$6:$M$149='C. Cost data'!V$4)*('C.5 Other assets'!$L$6:$L$149='C. Cost data'!$C31)*'C.5 Other assets'!$N$6:$N$149)","v":0},{"$f":"SUMPRODUCT(('C.5 Other assets'!$M$6:$M$149='C. Cost data'!W$4)*('C.5 Other assets'!$L$6:$L$149='C. Cost data'!$C31)*'C.5 Other assets'!$N$6:$N$149)","v":0},{"$f":"SUMPRODUCT(('C.5 Other assets'!$M$6:$M$149='C. Cost data'!X$4)*('C.5 Other assets'!$L$6:$L$149='C. Cost data'!$C31)*'C.5 Other assets'!$N$6:$N$149)","v":0},{"$f":"SUMPRODUCT(('C.5 Other assets'!$M$6:$M$149='C. Cost data'!Y$4)*('C.5 Other assets'!$L$6:$L$149='C. Cost data'!$C31)*'C.5 Other assets'!$N$6:$N$149)","v":0},{"$f":"SUMPRODUCT(('C.2 Cost data pipe PE'!$V$6:$V$149='C. Cost data'!Z$4)*('C.2 Cost data pipe PE'!$U$6:$U$149='C. Cost data'!$C31)*'C.2 Cost data pipe PE'!$W$6:$W$149)","v":0},{"$f":"SUMPRODUCT(('C.3 Cost data pipe cath'!$V$6:$V$149='C. Cost data'!AA$4)*('C.3 Cost data pipe cath'!$U$6:$U$149='C. Cost data'!$C31)*'C.3 Cost data pipe cath'!$W$6:$W$149)","v":0},{"$f":"SUMPRODUCT(('C.5 Other assets'!$M$6:$M$149='C. Cost data'!AB$4)*('C.5 Other assets'!$L$6:$L$149='C. Cost data'!$C31)*'C.5 Other assets'!$N$6:$N$149)","v":0},{"$f":"SUMPRODUCT(('C.5 Other assets'!$M$6:$M$149='C. Cost data'!AC$4)*('C.5 Other assets'!$L$6:$L$149='C. Cost data'!$C31)*'C.5 Other assets'!$N$6:$N$149)","v":0},{"$f":"SUMPRODUCT(('C.5 Other assets'!$M$6:$M$149='C. Cost data'!AD$4)*('C.5 Other assets'!$L$6:$L$149='C. Cost data'!$C31)*'C.5 Other assets'!$N$6:$N$149)","v":0},{"$f":"SUMPRODUCT(('C.5 Other assets'!$M$6:$M$149='C. Cost data'!AE$4)*('C.5 Other assets'!$L$6:$L$149='C. Cost data'!$C31)*'C.5 Other assets'!$N$6:$N$149)","v":0},{"$f":"SUMPRODUCT(('C.5 Other assets'!$M$6:$M$149='C. Cost data'!AF$4)*('C.5 Other assets'!$L$6:$L$149='C. Cost data'!$C31)*'C.5 Other assets'!$N$6:$N$149)","v":0},{"$f":"SUMPRODUCT(('C.5 Other assets'!$M$6:$M$149='C. Cost data'!AG$4)*('C.5 Other assets'!$L$6:$L$149='C. Cost data'!$C31)*'C.5 Other assets'!$N$6:$N$149)","v":0},{"$f":"SUMPRODUCT(('C.5 Other assets'!$M$6:$M$149='C. Cost data'!AH$4)*('C.5 Other assets'!$L$6:$L$149='C. Cost data'!$C31)*'C.5 Other assets'!$N$6:$N$149)","v":0},{"$f":"SUMPRODUCT(('C.5 Other assets'!$M$6:$M$149='C. Cost data'!AI$4)*('C.5 Other assets'!$L$6:$L$149='C. Cost data'!$C31)*'C.5 Other assets'!$N$6:$N$149)","v":0},{"$f":"SUMPRODUCT(('C.5 Other assets'!$M$6:$M$149='C. Cost data'!AJ$4)*('C.5 Other assets'!$L$6:$L$149='C. Cost data'!$C31)*'C.5 Other assets'!$N$6:$N$149)","v":0},{"$f":"SUMPRODUCT(('C.5 Other assets'!$M$6:$M$149='C. Cost data'!AK$4)*('C.5 Other assets'!$L$6:$L$149='C. Cost data'!$C31)*'C.5 Other assets'!$N$6:$N$149)","v":0},{"$f":"SUMPRODUCT(('C.5 Other assets'!$M$6:$M$149='C. Cost data'!AL$4)*('C.5 Other assets'!$L$6:$L$149='C. Cost data'!$C31)*'C.5 Other assets'!$N$6:$N$149)","v":1000000},{"$f":"SUMPRODUCT(('C.4 Cost control equip'!$O$6:$O$149='C. Cost data'!AM$4)*('C.4 Cost control equip'!$N$6:$N$149='C. Cost data'!$C31)*'C.4 Cost control equip'!$P$6:$P$149)","v":0},{"$f":"SUMPRODUCT(('C.5 Other assets'!$M$6:$M$149='C. Cost data'!AN$4)*('C.5 Other assets'!$L$6:$L$149='C. Cost data'!$C31)*'C.5 Other assets'!$N$6:$N$149)","v":0},{"$f":"SUMPRODUCT(('C.5 Other assets'!$M$6:$M$149='C. Cost data'!AO$4)*('C.5 Other assets'!$L$6:$L$149='C. Cost data'!$C31)*'C.5 Other assets'!$N$6:$N$149)","v":0},{"$f":"SUMPRODUCT(('C.5 Other assets'!$M$6:$M$149='C. Cost data'!AP$4)*('C.5 Other assets'!$L$6:$L$149='C. Cost data'!$C31)*'C.5 Other assets'!$N$6:$N$149)","v":0},{"$f":"SUMPRODUCT(('C.5 Other assets'!$M$6:$M$149='C. Cost data'!AQ$4)*('C.5 Other assets'!$L$6:$L$149='C. Cost data'!$C31)*'C.5 Other assets'!$N$6:$N$149)","v":0},{"$f":"SUMPRODUCT(('C.5 Other assets'!$M$6:$M$149='C. Cost data'!AR$4)*('C.5 Other assets'!$L$6:$L$149='C. Cost data'!$C31)*'C.5 Other assets'!$N$6:$N$149)","v":0},{"$f":"SUMPRODUCT(('C.5 Other assets'!$M$6:$M$149='C. Cost data'!AS$4)*('C.5 Other assets'!$L$6:$L$149='C. Cost data'!$C31)*'C.5 Other assets'!$N$6:$N$149)","v":0}]
[null,"Assets under construction 2024 – disposals/reclassifications",2024,0,{"$f":"SUMPRODUCT(('C.5 Other assets'!$M$6:$M$149='C. Cost data'!E$4)*('C.5 Other assets'!$L$6:$L$149='C. Cost data'!$C32)*'C.5 Other assets'!$O$6:$O$149)","v":0},{"$f":"SUMPRODUCT(('C.5 Other assets'!$M$6:$M$149='C. Cost data'!F$4)*('C.5 Other assets'!$L$6:$L$149='C. Cost data'!$C32)*'C.5 Other assets'!$O$6:$O$149)","v":0},{"$f":"SUMPRODUCT(('C.5 Other assets'!$M$6:$M$149='C. Cost data'!G$4)*('C.5 Other assets'!$L$6:$L$149='C. Cost data'!$C32)*'C.5 Other assets'!$O$6:$O$149)","v":0},{"$f":"SUMPRODUCT(('C.5 Other assets'!$M$6:$M$149='C. Cost data'!H$4)*('C.5 Other assets'!$L$6:$L$149='C. Cost data'!$C32)*'C.5 Other assets'!$O$6:$O$149)","v":0},{"$f":"SUMPRODUCT(('C.5 Other assets'!$M$6:$M$149='C. Cost data'!I$4)*('C.5 Other assets'!$L$6:$L$149='C. Cost data'!$C32)*'C.5 Other assets'!$O$6:$O$149)","v":0},{"$f":"SUMPRODUCT(('C.5 Other assets'!$M$6:$M$149='C. Cost data'!J$4)*('C.5 Other assets'!$L$6:$L$149='C. Cost data'!$C32)*'C.5 Other assets'!$O$6:$O$149)","v":0},{"$f":"SUMPRODUCT(('C.5 Other assets'!$M$6:$M$149='C. Cost data'!K$4)*('C.5 Other assets'!$L$6:$L$149='C. Cost data'!$C32)*'C.5 Other assets'!$O$6:$O$149)","v":0},{"$f":"SUMPRODUCT(('C.5 Other assets'!$M$6:$M$149='C. Cost data'!L$4)*('C.5 Other assets'!$L$6:$L$149='C. Cost data'!$C32)*'C.5 Other assets'!$O$6:$O$149)","v":0},{"$f":"SUMPRODUCT(('C.5 Other assets'!$M$6:$M$149='C. Cost data'!M$4)*('C.5 Other assets'!$L$6:$L$149='C. Cost data'!$C32)*'C.5 Other assets'!$O$6:$O$149)","v":0},{"$f":"SUMPRODUCT(('C.5 Other assets'!$M$6:$M$149='C. Cost data'!N$4)*('C.5 Other assets'!$L$6:$L$149='C. Cost data'!$C32)*'C.5 Other assets'!$O$6:$O$149)","v":0},{"$f":"SUMPRODUCT(('C.5 Other assets'!$M$6:$M$149='C. Cost data'!O$4)*('C.5 Other assets'!$L$6:$L$149='C. Cost data'!$C32)*'C.5 Other assets'!$O$6:$O$149)","v":0},{"$f":"SUMPRODUCT(('C.5 Other assets'!$M$6:$M$149='C. Cost data'!P$4)*('C.5 Other assets'!$L$6:$L$149='C. Cost data'!$C32)*'C.5 Other assets'!$O$6:$O$149)","v":0},{"$f":"SUMPRODUCT(('C.5 Other assets'!$M$6:$M$149='C. Cost data'!Q$4)*('C.5 Other assets'!$L$6:$L$149='C. Cost data'!$C32)*'C.5 Other assets'!$O$6:$O$149)","v":0},{"$f":"SUMPRODUCT(('C.1 Cost data compression'!$O$6:$O$149='C. Cost data'!R$4)*('C.1 Cost data compression'!$N$6:$N$149='C. Cost data'!$C32)*'C.1 Cost data compression'!$Q$6:$Q$149)","v":0},{"$f":"SUMPRODUCT(('C.5 Other assets'!$M$6:$M$149='C. Cost data'!S$4)*('C.5 Other assets'!$L$6:$L$149='C. Cost data'!$C32)*'C.5 Other assets'!$O$6:$O$149)","v":0},{"$f":"SUMPRODUCT(('C.5 Other assets'!$M$6:$M$149='C. Cost data'!T$4)*('C.5 Other assets'!$L$6:$L$149='C. Cost data'!$C32)*'C.5 Other assets'!$O$6:$O$149)","v":0},{"$f":"SUMPRODUCT(('C.5 Other assets'!$M$6:$M$149='C. Cost data'!U$4)*('C.5 Other assets'!$L$6:$L$149='C. Cost data'!$C32)*'C.5 Other assets'!$O$6:$O$149)","v":0},{"$f":"SUMPRODUCT(('C.5 Other assets'!$M$6:$M$149='C. Cost data'!V$4)*('C.5 Other assets'!$L$6:$L$149='C. Cost data'!$C32)*'C.5 Other assets'!$O$6:$O$149)","v":0},{"$f":"SUMPRODUCT(('C.5 Other assets'!$M$6:$M$149='C. Cost data'!W$4)*('C.5 Other assets'!$L$6:$L$149='C. Cost data'!$C32)*'C.5 Other assets'!$O$6:$O$149)","v":0},{"$f":"SUMPRODUCT(('C.5 Other assets'!$M$6:$M$149='C. Cost data'!X$4)*('C.5 Other assets'!$L$6:$L$149='C. Cost data'!$C32)*'C.5 Other assets'!$O$6:$O$149)","v":0},{"$f":"SUMPRODUCT(('C.5 Other assets'!$M$6:$M$149='C. Cost data'!Y$4)*('C.5 Other assets'!$L$6:$L$149='C. Cost data'!$C32)*'C.5 Other assets'!$O$6:$O$149)","v":0},{"$f":"SUMPRODUCT(('C.2 Cost data pipe PE'!$V$6:$V$149='C. Cost data'!Z$4)*('C.2 Cost data pipe PE'!$U$6:$U$149='C. Cost data'!$C32)*'C.2 Cost data pipe PE'!$X$6:$X$149)","v":0},{"$f":"SUMPRODUCT(('C.3 Cost data pipe cath'!$V$6:$V$149='C. Cost data'!AA$4)*('C.3 Cost data pipe cath'!$U$6:$U$149='C. Cost data'!$C32)*'C.3 Cost data pipe cath'!$X$6:$X$149)","v":0},{"$f":"SUMPRODUCT(('C.5 Other assets'!$M$6:$M$149='C. Cost data'!AB$4)*('C.5 Other assets'!$L$6:$L$149='C. Cost data'!$C32)*'C.5 Other assets'!$O$6:$O$149)","v":0},{"$f":"SUMPRODUCT(('C.5 Other assets'!$M$6:$M$149='C. Cost data'!AC$4)*('C.5 Other assets'!$L$6:$L$149='C. Cost data'!$C32)*'C.5 Other assets'!$O$6:$O$149)","v":0},{"$f":"SUMPRODUCT(('C.5 Other assets'!$M$6:$M$149='C. Cost data'!AD$4)*('C.5 Other assets'!$L$6:$L$149='C. Cost data'!$C32)*'C.5 Other assets'!$O$6:$O$149)","v":0},{"$f":"SUMPRODUCT(('C.5 Other assets'!$M$6:$M$149='C. Cost data'!AE$4)*('C.5 Other assets'!$L$6:$L$149='C. Cost data'!$C32)*'C.5 Other assets'!$O$6:$O$149)","v":0},{"$f":"SUMPRODUCT(('C.5 Other assets'!$M$6:$M$149='C. Cost data'!AF$4)*('C.5 Other assets'!$L$6:$L$149='C. Cost data'!$C32)*'C.5 Other assets'!$O$6:$O$149)","v":0},{"$f":"SUMPRODUCT(('C.5 Other assets'!$M$6:$M$149='C. Cost data'!AG$4)*('C.5 Other assets'!$L$6:$L$149='C. Cost data'!$C32)*'C.5 Other assets'!$O$6:$O$149)","v":0},{"$f":"SUMPRODUCT(('C.5 Other assets'!$M$6:$M$149='C. Cost data'!AH$4)*('C.5 Other assets'!$L$6:$L$149='C. Cost data'!$C32)*'C.5 Other assets'!$O$6:$O$149)","v":0},{"$f":"SUMPRODUCT(('C.5 Other assets'!$M$6:$M$149='C. Cost data'!AI$4)*('C.5 Other assets'!$L$6:$L$149='C. Cost data'!$C32)*'C.5 Other assets'!$O$6:$O$149)","v":0},{"$f":"SUMPRODUCT(('C.5 Other assets'!$M$6:$M$149='C. Cost data'!AJ$4)*('C.5 Other assets'!$L$6:$L$149='C. Cost data'!$C32)*'C.5 Other assets'!$O$6:$O$149)","v":0},{"$f":"SUMPRODUCT(('C.5 Other assets'!$M$6:$M$149='C. Cost data'!AK$4)*('C.5 Other assets'!$L$6:$L$149='C. Cost data'!$C32)*'C.5 Other assets'!$O$6:$O$149)","v":0},{"$f":"SUMPRODUCT(('C.5 Other assets'!$M$6:$M$149='C. Cost data'!AL$4)*('C.5 Other assets'!$L$6:$L$149='C. Cost data'!$C32)*'C.5 Other assets'!$O$6:$O$149)","v":0},{"$f":"SUMPRODUCT(('C.4 Cost control equip'!$O$6:$O$149='C. Cost data'!AM$4)*('C.4 Cost control equip'!$N$6:$N$149='C. Cost data'!$C32)*'C.4 Cost control equip'!$Q$6:$Q$149)","v":0},{"$f":"SUMPRODUCT(('C.5 Other assets'!$M$6:$M$149='C. Cost data'!AN$4)*('C.5 Other assets'!$L$6:$L$149='C. Cost data'!$C32)*'C.5 Other assets'!$O$6:$O$149)","v":0},{"$f":"SUMPRODUCT(('C.5 Other assets'!$M$6:$M$149='C. Cost data'!AO$4)*('C.5 Other assets'!$L$6:$L$149='C. Cost data'!$C32)*'C.5 Other assets'!$O$6:$O$149)","v":0},{"$f":"SUMPRODUCT(('C.5 Other assets'!$M$6:$M$149='C. Cost data'!AP$4)*('C.5 Other assets'!$L$6:$L$149='C. Cost data'!$C32)*'C.5 Other assets'!$O$6:$O$149)","v":0},{"$f":"SUMPRODUCT(('C.5 Other assets'!$M$6:$M$149='C. Cost data'!AQ$4)*('C.5 Other assets'!$L$6:$L$149='C. Cost data'!$C32)*'C.5 Other assets'!$O$6:$O$149)","v":0},{"$f":"SUMPRODUCT(('C.5 Other assets'!$M$6:$M$149='C. Cost data'!AR$4)*('C.5 Other assets'!$L$6:$L$149='C. Cost data'!$C32)*'C.5 Other assets'!$O$6:$O$149)","v":0},{"$f":"SUMPRODUCT(('C.5 Other assets'!$M$6:$M$149='C. Cost data'!AS$4)*('C.5 Other assets'!$L$6:$L$149='C. Cost data'!$C32)*'C.5 Other assets'!$O$6:$O$149)","v":0}]
[null,"Assets under construction 2025 – opening balance",2025,151000000,{"$f":"E30+E31-E32","v":0},0,0,0,0,0,0,0,0,0,0,0,0,150000000,0,0,0,0,0,0,0,0,0,0,0,0,0,0,0,0,0,0,0,1000000,0,0,0,0,0,0,0]
[null,"Assets under construction 2025 – additions",2025,0,{"$f":"SUMPRODUCT(('C.5 Other assets'!$M$6:$M$149='C. Cost data'!E$4)*('C.5 Other assets'!$L$6:$L$149='C. Cost data'!$C34)*'C.5 Other assets'!$N$6:$N$149)","v":0},{"$f":"SUMPRODUCT(('C.5 Other assets'!$M$6:$M$149='C. Cost data'!F$4)*('C.5 Other assets'!$L$6:$L$149='C. Cost data'!$C34)*'C.5 Other assets'!$N$6:$N$149)","v":0},{"$f":"SUMPRODUCT(('C.5 Other assets'!$M$6:$M$149='C. Cost data'!G$4)*('C.5 Other assets'!$L$6:$L$149='C. Cost data'!$C34)*'C.5 Other assets'!$N$6:$N$149)","v":0},{"$f":"SUMPRODUCT(('C.5 Other assets'!$M$6:$M$149='C. Cost data'!H$4)*('C.5 Other assets'!$L$6:$L$149='C. Cost data'!$C34)*'C.5 Other assets'!$N$6:$N$149)","v":0},{"$f":"SUMPRODUCT(('C.5 Other assets'!$M$6:$M$149='C. Cost data'!I$4)*('C.5 Other assets'!$L$6:$L$149='C. Cost data'!$C34)*'C.5 Other assets'!$N$6:$N$149)","v":0},{"$f":"SUMPRODUCT(('C.5 Other assets'!$M$6:$M$149='C. Cost data'!J$4)*('C.5 Other assets'!$L$6:$L$149='C. Cost data'!$C34)*'C.5 Other assets'!$N$6:$N$149)","v":0},{"$f":"SUMPRODUCT(('C.5 Other assets'!$M$6:$M$149='C. Cost data'!K$4)*('C.5 Other assets'!$L$6:$L$149='C. Cost data'!$C34)*'C.5 Other assets'!$N$6:$N$149)","v":0},{"$f":"SUMPRODUCT(('C.5 Other assets'!$M$6:$M$149='C. Cost data'!L$4)*('C.5 Other assets'!$L$6:$L$149='C. Cost data'!$C34)*'C.5 Other assets'!$N$6:$N$149)","v":0},{"$f":"SUMPRODUCT(('C.5 Other assets'!$M$6:$M$149='C. Cost data'!M$4)*('C.5 Other assets'!$L$6:$L$149='C. Cost data'!$C34)*'C.5 Other assets'!$N$6:$N$149)","v":0},{"$f":"SUMPRODUCT(('C.5 Other assets'!$M$6:$M$149='C. Cost data'!N$4)*('C.5 Other assets'!$L$6:$L$149='C. Cost data'!$C34)*'C.5 Other assets'!$N$6:$N$149)","v":0},{"$f":"SUMPRODUCT(('C.5 Other assets'!$M$6:$M$149='C. Cost data'!O$4)*('C.5 Other assets'!$L$6:$L$149='C. Cost data'!$C34)*'C.5 Other assets'!$N$6:$N$149)","v":0},{"$f":"SUMPRODUCT(('C.5 Other assets'!$M$6:$M$149='C. Cost data'!P$4)*('C.5 Other assets'!$L$6:$L$149='C. Cost data'!$C34)*'C.5 Other assets'!$N$6:$N$149)","v":0},{"$f":"SUMPRODUCT(('C.5 Other assets'!$M$6:$M$149='C. Cost data'!Q$4)*('C.5 Other assets'!$L$6:$L$149='C. Cost data'!$C34)*'C.5 Other assets'!$N$6:$N$149)","v":0},{"$f":"SUMPRODUCT(('C.1 Cost data compression'!$O$6:$O$149='C. Cost data'!R$4)*('C.1 Cost data compression'!$N$6:$N$149='C. Cost data'!$C34)*'C.1 Cost data compression'!$P$6:$P$149)","v":0},{"$f":"SUMPRODUCT(('C.5 Other assets'!$M$6:$M$149='C. Cost data'!S$4)*('C.5 Other assets'!$L$6:$L$149='C. Cost data'!$C34)*'C.5 Other assets'!$N$6:$N$149)","v":0},{"$f":"SUMPRODUCT(('C.5 Other assets'!$M$6:$M$149='C. Cost data'!T$4)*('C.5 Other assets'!$L$6:$L$149='C. Cost data'!$C34)*'C.5 Other assets'!$N$6:$N$149)","v":0},{"$f":"SUMPRODUCT(('C.5 Other assets'!$M$6:$M$149='C. Cost data'!U$4)*('C.5 Other assets'!$L$6:$L$149='C. Cost data'!$C34)*'C.5 Other assets'!$N$6:$N$149)","v":0},{"$f":"SUMPRODUCT(('C.5 Other assets'!$M$6:$M$149='C. Cost data'!V$4)*('C.5 Other assets'!$L$6:$L$149='C. Cost data'!$C34)*'C.5 Other assets'!$N$6:$N$149)","v":0},{"$f":"SUMPRODUCT(('C.5 Other assets'!$M$6:$M$149='C. Cost data'!W$4)*('C.5 Other assets'!$L$6:$L$149='C. Cost data'!$C34)*'C.5 Other assets'!$N$6:$N$149)","v":0},{"$f":"SUMPRODUCT(('C.5 Other assets'!$M$6:$M$149='C. Cost data'!X$4)*('C.5 Other assets'!$L$6:$L$149='C. Cost data'!$C34)*'C.5 Other assets'!$N$6:$N$149)","v":0},{"$f":"SUMPRODUCT(('C.5 Other assets'!$M$6:$M$149='C. Cost data'!Y$4)*('C.5 Other assets'!$L$6:$L$149='C. Cost data'!$C34)*'C.5 Other assets'!$N$6:$N$149)","v":0},{"$f":"SUMPRODUCT(('C.2 Cost data pipe PE'!$V$6:$V$149='C. Cost data'!Z$4)*('C.2 Cost data pipe PE'!$U$6:$U$149='C. Cost data'!$C34)*'C.2 Cost data pipe PE'!$W$6:$W$149)","v":0},{"$f":"SUMPRODUCT(('C.3 Cost data pipe cath'!$V$6:$V$149='C. Cost data'!AA$4)*('C.3 Cost data pipe cath'!$U$6:$U$149='C. Cost data'!$C34)*'C.3 Cost data pipe cath'!$W$6:$W$149)","v":0},{"$f":"SUMPRODUCT(('C.5 Other assets'!$M$6:$M$149='C. Cost data'!AB$4)*('C.5 Other assets'!$L$6:$L$149='C. Cost data'!$C34)*'C.5 Other assets'!$N$6:$N$149)","v":0},{"$f":"SUMPRODUCT(('C.5 Other assets'!$M$6:$M$149='C. Cost data'!AC$4)*('C.5 Other assets'!$L$6:$L$149='C. Cost data'!$C34)*'C.5 Other assets'!$N$6:$N$149)","v":0},{"$f":"SUMPRODUCT(('C.5 Other assets'!$M$6:$M$149='C. Cost data'!AD$4)*('C.5 Other assets'!$L$6:$L$149='C. Cost data'!$C34)*'C.5 Other assets'!$N$6:$N$149)","v":0},{"$f":"SUMPRODUCT(('C.5 Other assets'!$M$6:$M$149='C. Cost data'!AE$4)*('C.5 Other assets'!$L$6:$L$149='C. Cost data'!$C34)*'C.5 Other assets'!$N$6:$N$149)","v":0},{"$f":"SUMPRODUCT(('C.5 Other assets'!$M$6:$M$149='C. Cost data'!AF$4)*('C.5 Other assets'!$L$6:$L$149='C. Cost data'!$C34)*'C.5 Other assets'!$N$6:$N$149)","v":0},{"$f":"SUMPRODUCT(('C.5 Other assets'!$M$6:$M$149='C. Cost data'!AG$4)*('C.5 Other assets'!$L$6:$L$149='C. Cost data'!$C34)*'C.5 Other assets'!$N$6:$N$149)","v":0},{"$f":"SUMPRODUCT(('C.5 Other assets'!$M$6:$M$149='C. Cost data'!AH$4)*('C.5 Other assets'!$L$6:$L$149='C. Cost data'!$C34)*'C.5 Other assets'!$N$6:$N$149)","v":0},{"$f":"SUMPRODUCT(('C.5 Other assets'!$M$6:$M$149='C. Cost data'!AI$4)*('C.5 Other assets'!$L$6:$L$149='C. Cost data'!$C34)*'C.5 Other assets'!$N$6:$N$149)","v":0},{"$f":"SUMPRODUCT(('C.5 Other assets'!$M$6:$M$149='C. Cost data'!AJ$4)*('C.5 Other assets'!$L$6:$L$149='C. Cost data'!$C34)*'C.5 Other assets'!$N$6:$N$149)","v":0},{"$f":"SUMPRODUCT(('C.5 Other assets'!$M$6:$M$149='C. Cost data'!AK$4)*('C.5 Other assets'!$L$6:$L$149='C. Cost data'!$C34)*'C.5 Other assets'!$N$6:$N$149)","v":0},{"$f":"SUMPRODUCT(('C.5 Other assets'!$M$6:$M$149='C. Cost data'!AL$4)*('C.5 Other assets'!$L$6:$L$149='C. Cost data'!$C34)*'C.5 Other assets'!$N$6:$N$149)","v":0},{"$f":"SUMPRODUCT(('C.4 Cost control equip'!$O$6:$O$149='C. Cost data'!AM$4)*('C.4 Cost control equip'!$N$6:$N$149='C. Cost data'!$C34)*'C.4 Cost control equip'!$P$6:$P$149)","v":0},{"$f":"SUMPRODUCT(('C.5 Other assets'!$M$6:$M$149='C. Cost data'!AN$4)*('C.5 Other assets'!$L$6:$L$149='C. Cost data'!$C34)*'C.5 Other assets'!$N$6:$N$149)","v":0},{"$f":"SUMPRODUCT(('C.5 Other assets'!$M$6:$M$149='C. Cost data'!AO$4)*('C.5 Other assets'!$L$6:$L$149='C. Cost data'!$C34)*'C.5 Other assets'!$N$6:$N$149)","v":0},{"$f":"SUMPRODUCT(('C.5 Other assets'!$M$6:$M$149='C. Cost data'!AP$4)*('C.5 Other assets'!$L$6:$L$149='C. Cost data'!$C34)*'C.5 Other assets'!$N$6:$N$149)","v":0},{"$f":"SUMPRODUCT(('C.5 Other assets'!$M$6:$M$149='C. Cost data'!AQ$4)*('C.5 Other assets'!$L$6:$L$149='C. Cost data'!$C34)*'C.5 Other assets'!$N$6:$N$149)","v":0},{"$f":"SUMPRODUCT(('C.5 Other assets'!$M$6:$M$149='C. Cost data'!AR$4)*('C.5 Other assets'!$L$6:$L$149='C. Cost data'!$C34)*'C.5 Other assets'!$N$6:$N$149)","v":0},{"$f":"SUMPRODUCT(('C.5 Other assets'!$M$6:$M$149='C. Cost data'!AS$4)*('C.5 Other assets'!$L$6:$L$149='C. Cost data'!$C34)*'C.5 Other assets'!$N$6:$N$149)","v":0}]
[null,"Assets under construction 2025 – disposals/reclassifications",2025,151000000,{"$f":"SUMPRODUCT(('C.5 Other assets'!$M$6:$M$149='C. Cost data'!E$4)*('C.5 Other assets'!$L$6:$L$149='C. Cost data'!$C35)*'C.5 Other assets'!$O$6:$O$149)","v":0},{"$f":"SUMPRODUCT(('C.5 Other assets'!$M$6:$M$149='C. Cost data'!F$4)*('C.5 Other assets'!$L$6:$L$149='C. Cost data'!$C35)*'C.5 Other assets'!$O$6:$O$149)","v":0},{"$f":"SUMPRODUCT(('C.5 Other assets'!$M$6:$M$149='C. Cost data'!G$4)*('C.5 Other assets'!$L$6:$L$149='C. Cost data'!$C35)*'C.5 Other assets'!$O$6:$O$149)","v":0},{"$f":"SUMPRODUCT(('C.5 Other assets'!$M$6:$M$149='C. Cost data'!H$4)*('C.5 Other assets'!$L$6:$L$149='C. Cost data'!$C35)*'C.5 Other assets'!$O$6:$O$149)","v":0},{"$f":"SUMPRODUCT(('C.5 Other assets'!$M$6:$M$149='C. Cost data'!I$4)*('C.5 Other assets'!$L$6:$L$149='C. Cost data'!$C35)*'C.5 Other assets'!$O$6:$O$149)","v":0},{"$f":"SUMPRODUCT(('C.5 Other assets'!$M$6:$M$149='C. Cost data'!J$4)*('C.5 Other assets'!$L$6:$L$149='C. Cost data'!$C35)*'C.5 Other assets'!$O$6:$O$149)","v":0},{"$f":"SUMPRODUCT(('C.5 Other assets'!$M$6:$M$149='C. Cost data'!K$4)*('C.5 Other assets'!$L$6:$L$149='C. Cost data'!$C35)*'C.5 Other assets'!$O$6:$O$149)","v":0},{"$f":"SUMPRODUCT(('C.5 Other assets'!$M$6:$M$149='C. Cost data'!L$4)*('C.5 Other assets'!$L$6:$L$149='C. Cost data'!$C35)*'C.5 Other assets'!$O$6:$O$149)","v":0},{"$f":"SUMPRODUCT(('C.5 Other assets'!$M$6:$M$149='C. Cost data'!M$4)*('C.5 Other assets'!$L$6:$L$149='C. Cost data'!$C35)*'C.5 Other assets'!$O$6:$O$149)","v":0},{"$f":"SUMPRODUCT(('C.5 Other assets'!$M$6:$M$149='C. Cost data'!N$4)*('C.5 Other assets'!$L$6:$L$149='C. Cost data'!$C35)*'C.5 Other assets'!$O$6:$O$149)","v":0},{"$f":"SUMPRODUCT(('C.5 Other assets'!$M$6:$M$149='C. Cost data'!O$4)*('C.5 Other assets'!$L$6:$L$149='C. Cost data'!$C35)*'C.5 Other assets'!$O$6:$O$149)","v":0},{"$f":"SUMPRODUCT(('C.5 Other assets'!$M$6:$M$149='C. Cost data'!P$4)*('C.5 Other assets'!$L$6:$L$149='C. Cost data'!$C35)*'C.5 Other assets'!$O$6:$O$149)","v":0},{"$f":"SUMPRODUCT(('C.5 Other assets'!$M$6:$M$149='C. Cost data'!Q$4)*('C.5 Other assets'!$L$6:$L$149='C. Cost data'!$C35)*'C.5 Other assets'!$O$6:$O$149)","v":0},{"$f":"SUMPRODUCT(('C.1 Cost data compression'!$O$6:$O$149='C. Cost data'!R$4)*('C.1 Cost data compression'!$N$6:$N$149='C. Cost data'!$C35)*'C.1 Cost data compression'!$Q$6:$Q$149)","v":150000000},{"$f":"SUMPRODUCT(('C.5 Other assets'!$M$6:$M$149='C. Cost data'!S$4)*('C.5 Other assets'!$L$6:$L$149='C. Cost data'!$C35)*'C.5 Other assets'!$O$6:$O$149)","v":0},{"$f":"SUMPRODUCT(('C.5 Other assets'!$M$6:$M$149='C. Cost data'!T$4)*('C.5 Other assets'!$L$6:$L$149='C. Cost data'!$C35)*'C.5 Other assets'!$O$6:$O$149)","v":0},{"$f":"SUMPRODUCT(('C.5 Other assets'!$M$6:$M$149='C. Cost data'!U$4)*('C.5 Other assets'!$L$6:$L$149='C. Cost data'!$C35)*'C.5 Other assets'!$O$6:$O$149)","v":0},{"$f":"SUMPRODUCT(('C.5 Other assets'!$M$6:$M$149='C. Cost data'!V$4)*('C.5 Other assets'!$L$6:$L$149='C. Cost data'!$C35)*'C.5 Other assets'!$O$6:$O$149)","v":0},{"$f":"SUMPRODUCT(('C.5 Other assets'!$M$6:$M$149='C. Cost data'!W$4)*('C.5 Other assets'!$L$6:$L$149='C. Cost data'!$C35)*'C.5 Other assets'!$O$6:$O$149)","v":0},{"$f":"SUMPRODUCT(('C.5 Other assets'!$M$6:$M$149='C. Cost data'!X$4)*('C.5 Other assets'!$L$6:$L$149='C. Cost data'!$C35)*'C.5 Other assets'!$O$6:$O$149)","v":0},{"$f":"SUMPRODUCT(('C.5 Other assets'!$M$6:$M$149='C. Cost data'!Y$4)*('C.5 Other assets'!$L$6:$L$149='C. Cost data'!$C35)*'C.5 Other assets'!$O$6:$O$149)","v":0},{"$f":"SUMPRODUCT(('C.2 Cost data pipe PE'!$V$6:$V$149='C. Cost data'!Z$4)*('C.2 Cost data pipe PE'!$U$6:$U$149='C. Cost data'!$C35)*'C.2 Cost data pipe PE'!$X$6:$X$149)","v":0},{"$f":"SUMPRODUCT(('C.3 Cost data pipe cath'!$V$6:$V$149='C. Cost data'!AA$4)*('C.3 Cost data pipe cath'!$U$6:$U$149='C. Cost data'!$C35)*'C.3 Cost data pipe cath'!$X$6:$X$149)","v":0},{"$f":"SUMPRODUCT(('C.5 Other assets'!$M$6:$M$149='C. Cost data'!AB$4)*('C.5 Other assets'!$L$6:$L$149='C. Cost data'!$C35)*'C.5 Other assets'!$O$6:$O$149)","v":0},{"$f":"SUMPRODUCT(('C.5 Other assets'!$M$6:$M$149='C. Cost data'!AC$4)*('C.5 Other assets'!$L$6:$L$149='C. Cost data'!$C35)*'C.5 Other assets'!$O$6:$O$149)","v":0},{"$f":"SUMPRODUCT(('C.5 Other assets'!$M$6:$M$149='C. Cost data'!AD$4)*('C.5 Other assets'!$L$6:$L$149='C. Cost data'!$C35)*'C.5 Other assets'!$O$6:$O$149)","v":0},{"$f":"SUMPRODUCT(('C.5 Other assets'!$M$6:$M$149='C. Cost data'!AE$4)*('C.5 Other assets'!$L$6:$L$149='C. Cost data'!$C35)*'C.5 Other assets'!$O$6:$O$149)","v":0},{"$f":"SUMPRODUCT(('C.5 Other assets'!$M$6:$M$149='C. Cost data'!AF$4)*('C.5 Other assets'!$L$6:$L$149='C. Cost data'!$C35)*'C.5 Other assets'!$O$6:$O$149)","v":0},{"$f":"SUMPRODUCT(('C.5 Other assets'!$M$6:$M$149='C. Cost data'!AG$4)*('C.5 Other assets'!$L$6:$L$149='C. Cost data'!$C35)*'C.5 Other assets'!$O$6:$O$149)","v":0},{"$f":"SUMPRODUCT(('C.5 Other assets'!$M$6:$M$149='C. Cost data'!AH$4)*('C.5 Other assets'!$L$6:$L$149='C. Cost data'!$C35)*'C.5 Other assets'!$O$6:$O$149)","v":0},{"$f":"SUMPRODUCT(('C.5 Other assets'!$M$6:$M$149='C. Cost data'!AI$4)*('C.5 Other assets'!$L$6:$L$149='C. Cost data'!$C35)*'C.5 Other assets'!$O$6:$O$149)","v":0},{"$f":"SUMPRODUCT(('C.5 Other assets'!$M$6:$M$149='C. Cost data'!AJ$4)*('C.5 Other assets'!$L$6:$L$149='C. Cost data'!$C35)*'C.5 Other assets'!$O$6:$O$149)","v":0},{"$f":"SUMPRODUCT(('C.5 Other assets'!$M$6:$M$149='C. Cost data'!AK$4)*('C.5 Other assets'!$L$6:$L$149='C. Cost data'!$C35)*'C.5 Other assets'!$O$6:$O$149)","v":0},{"$f":"SUMPRODUCT(('C.5 Other assets'!$M$6:$M$149='C. Cost data'!AL$4)*('C.5 Other assets'!$L$6:$L$149='C. Cost data'!$C35)*'C.5 Other assets'!$O$6:$O$149)","v":1000000},{"$f":"SUMPRODUCT(('C.4 Cost control equip'!$O$6:$O$149='C. Cost data'!AM$4)*('C.4 Cost control equip'!$N$6:$N$149='C. Cost data'!$C35)*'C.4 Cost control equip'!$Q$6:$Q$149)","v":0},{"$f":"SUMPRODUCT(('C.5 Other assets'!$M$6:$M$149='C. Cost data'!AN$4)*('C.5 Other assets'!$L$6:$L$149='C. Cost data'!$C35)*'C.5 Other assets'!$O$6:$O$149)","v":0},{"$f":"SUMPRODUCT(('C.5 Other assets'!$M$6:$M$149='C. Cost data'!AO$4)*('C.5 Other assets'!$L$6:$L$149='C. Cost data'!$C35)*'C.5 Other assets'!$O$6:$O$149)","v":0},{"$f":"SUMPRODUCT(('C.5 Other assets'!$M$6:$M$149='C. Cost data'!AP$4)*('C.5 Other assets'!$L$6:$L$149='C. Cost data'!$C35)*'C.5 Other assets'!$O$6:$O$149)","v":0},{"$f":"SUMPRODUCT(('C.5 Other assets'!$M$6:$M$149='C. Cost data'!AQ$4)*('C.5 Other assets'!$L$6:$L$149='C. Cost data'!$C35)*'C.5 Other assets'!$O$6:$O$149)","v":0},{"$f":"SUMPRODUCT(('C.5 Other assets'!$M$6:$M$149='C. Cost data'!AR$4)*('C.5 Other assets'!$L$6:$L$149='C. Cost data'!$C35)*'C.5 Other assets'!$O$6:$O$149)","v":0},{"$f":"SUMPRODUCT(('C.5 Other assets'!$M$6:$M$149='C. Cost data'!AS$4)*('C.5 Other assets'!$L$6:$L$149='C. Cost data'!$C35)*'C.5 Other assets'!$O$6:$O$149)","v":0}]
[null,"Assets under construction 2026 – opening balance",2026,0,{"$f":"E33+E34-E35","v":0},0,0,0,0,0,0,0,0,0,0,0,0,0,0,0,0,0,0,0,0,0,0,0,0,0,0,0,0,0,0,0,0,0,0,0,0,0,0,0,0]
[null,"Assets under construction 2026 – additions",2026,0,{"$f":"SUMPRODUCT(('C.5 Other assets'!$M$6:$M$149='C. Cost data'!E$4)*('C.5 Other assets'!$L$6:$L$149='C. Cost data'!$C37)*'C.5 Other assets'!$N$6:$N$149)","v":0},{"$f":"SUMPRODUCT(('C.5 Other assets'!$M$6:$M$149='C. Cost data'!F$4)*('C.5 Other assets'!$L$6:$L$149='C. Cost data'!$C37)*'C.5 Other assets'!$N$6:$N$149)","v":0},{"$f":"SUMPRODUCT(('C.5 Other assets'!$M$6:$M$149='C. Cost data'!G$4)*('C.5 Other assets'!$L$6:$L$149='C. Cost data'!$C37)*'C.5 Other assets'!$N$6:$N$149)","v":0},{"$f":"SUMPRODUCT(('C.5 Other assets'!$M$6:$M$149='C. Cost data'!H$4)*('C.5 Other assets'!$L$6:$L$149='C. Cost data'!$C37)*'C.5 Other assets'!$N$6:$N$149)","v":0},{"$f":"SUMPRODUCT(('C.5 Other assets'!$M$6:$M$149='C. Cost data'!I$4)*('C.5 Other assets'!$L$6:$L$149='C. Cost data'!$C37)*'C.5 Other assets'!$N$6:$N$149)","v":0},{"$f":"SUMPRODUCT(('C.5 Other assets'!$M$6:$M$149='C. Cost data'!J$4)*('C.5 Other assets'!$L$6:$L$149='C. Cost data'!$C37)*'C.5 Other assets'!$N$6:$N$149)","v":0},{"$f":"SUMPRODUCT(('C.5 Other assets'!$M$6:$M$149='C. Cost data'!K$4)*('C.5 Other assets'!$L$6:$L$149='C. Cost data'!$C37)*'C.5 Other assets'!$N$6:$N$149)","v":0},{"$f":"SUMPRODUCT(('C.5 Other assets'!$M$6:$M$149='C. Cost data'!L$4)*('C.5 Other assets'!$L$6:$L$149='C. Cost data'!$C37)*'C.5 Other assets'!$N$6:$N$149)","v":0},{"$f":"SUMPRODUCT(('C.5 Other assets'!$M$6:$M$149='C. Cost data'!M$4)*('C.5 Other assets'!$L$6:$L$149='C. Cost data'!$C37)*'C.5 Other assets'!$N$6:$N$149)","v":0},{"$f":"SUMPRODUCT(('C.5 Other assets'!$M$6:$M$149='C. Cost data'!N$4)*('C.5 Other assets'!$L$6:$L$149='C. Cost data'!$C37)*'C.5 Other assets'!$N$6:$N$149)","v":0},{"$f":"SUMPRODUCT(('C.5 Other assets'!$M$6:$M$149='C. Cost data'!O$4)*('C.5 Other assets'!$L$6:$L$149='C. Cost data'!$C37)*'C.5 Other assets'!$N$6:$N$149)","v":0},{"$f":"SUMPRODUCT(('C.5 Other assets'!$M$6:$M$149='C. Cost data'!P$4)*('C.5 Other assets'!$L$6:$L$149='C. Cost data'!$C37)*'C.5 Other assets'!$N$6:$N$149)","v":0},{"$f":"SUMPRODUCT(('C.5 Other assets'!$M$6:$M$149='C. Cost data'!Q$4)*('C.5 Other assets'!$L$6:$L$149='C. Cost data'!$C37)*'C.5 Other assets'!$N$6:$N$149)","v":0},{"$f":"SUMPRODUCT(('C.1 Cost data compression'!$O$6:$O$149='C. Cost data'!R$4)*('C.1 Cost data compression'!$N$6:$N$149='C. Cost data'!$C37)*'C.1 Cost data compression'!$P$6:$P$149)","v":0},{"$f":"SUMPRODUCT(('C.5 Other assets'!$M$6:$M$149='C. Cost data'!S$4)*('C.5 Other assets'!$L$6:$L$149='C. Cost data'!$C37)*'C.5 Other assets'!$N$6:$N$149)","v":0},{"$f":"SUMPRODUCT(('C.5 Other assets'!$M$6:$M$149='C. Cost data'!T$4)*('C.5 Other assets'!$L$6:$L$149='C. Cost data'!$C37)*'C.5 Other assets'!$N$6:$N$149)","v":0},{"$f":"SUMPRODUCT(('C.5 Other assets'!$M$6:$M$149='C. Cost data'!U$4)*('C.5 Other assets'!$L$6:$L$149='C. Cost data'!$C37)*'C.5 Other assets'!$N$6:$N$149)","v":0},{"$f":"SUMPRODUCT(('C.5 Other assets'!$M$6:$M$149='C. Cost data'!V$4)*('C.5 Other assets'!$L$6:$L$149='C. Cost data'!$C37)*'C.5 Other assets'!$N$6:$N$149)","v":0},{"$f":"SUMPRODUCT(('C.5 Other assets'!$M$6:$M$149='C. Cost data'!W$4)*('C.5 Other assets'!$L$6:$L$149='C. Cost data'!$C37)*'C.5 Other assets'!$N$6:$N$149)","v":0},{"$f":"SUMPRODUCT(('C.5 Other assets'!$M$6:$M$149='C. Cost data'!X$4)*('C.5 Other assets'!$L$6:$L$149='C. Cost data'!$C37)*'C.5 Other assets'!$N$6:$N$149)","v":0},{"$f":"SUMPRODUCT(('C.5 Other assets'!$M$6:$M$149='C. Cost data'!Y$4)*('C.5 Other assets'!$L$6:$L$149='C. Cost data'!$C37)*'C.5 Other assets'!$N$6:$N$149)","v":0},{"$f":"SUMPRODUCT(('C.2 Cost data pipe PE'!$V$6:$V$149='C. Cost data'!Z$4)*('C.2 Cost data pipe PE'!$U$6:$U$149='C. Cost data'!$C37)*'C.2 Cost data pipe PE'!$W$6:$W$149)","v":0},{"$f":"SUMPRODUCT(('C.3 Cost data pipe cath'!$V$6:$V$149='C. Cost data'!AA$4)*('C.3 Cost data pipe cath'!$U$6:$U$149='C. Cost data'!$C37)*'C.3 Cost data pipe cath'!$W$6:$W$149)","v":0},{"$f":"SUMPRODUCT(('C.5 Other assets'!$M$6:$M$149='C. Cost data'!AB$4)*('C.5 Other assets'!$L$6:$L$149='C. Cost data'!$C37)*'C.5 Other assets'!$N$6:$N$149)","v":0},{"$f":"SUMPRODUCT(('C.5 Other assets'!$M$6:$M$149='C. Cost data'!AC$4)*('C.5 Other assets'!$L$6:$L$149='C. Cost data'!$C37)*'C.5 Other assets'!$N$6:$N$149)","v":0},{"$f":"SUMPRODUCT(('C.5 Other assets'!$M$6:$M$149='C. Cost data'!AD$4)*('C.5 Other assets'!$L$6:$L$149='C. Cost data'!$C37)*'C.5 Other assets'!$N$6:$N$149)","v":0},{"$f":"SUMPRODUCT(('C.5 Other assets'!$M$6:$M$149='C. Cost data'!AE$4)*('C.5 Other assets'!$L$6:$L$149='C. Cost data'!$C37)*'C.5 Other assets'!$N$6:$N$149)","v":0},{"$f":"SUMPRODUCT(('C.5 Other assets'!$M$6:$M$149='C. Cost data'!AF$4)*('C.5 Other assets'!$L$6:$L$149='C. Cost data'!$C37)*'C.5 Other assets'!$N$6:$N$149)","v":0},{"$f":"SUMPRODUCT(('C.5 Other assets'!$M$6:$M$149='C. Cost data'!AG$4)*('C.5 Other assets'!$L$6:$L$149='C. Cost data'!$C37)*'C.5 Other assets'!$N$6:$N$149)","v":0},{"$f":"SUMPRODUCT(('C.5 Other assets'!$M$6:$M$149='C. Cost data'!AH$4)*('C.5 Other assets'!$L$6:$L$149='C. Cost data'!$C37)*'C.5 Other assets'!$N$6:$N$149)","v":0},{"$f":"SUMPRODUCT(('C.5 Other assets'!$M$6:$M$149='C. Cost data'!AI$4)*('C.5 Other assets'!$L$6:$L$149='C. Cost data'!$C37)*'C.5 Other assets'!$N$6:$N$149)","v":0},{"$f":"SUMPRODUCT(('C.5 Other assets'!$M$6:$M$149='C. Cost data'!AJ$4)*('C.5 Other assets'!$L$6:$L$149='C. Cost data'!$C37)*'C.5 Other assets'!$N$6:$N$149)","v":0},{"$f":"SUMPRODUCT(('C.5 Other assets'!$M$6:$M$149='C. Cost data'!AK$4)*('C.5 Other assets'!$L$6:$L$149='C. Cost data'!$C37)*'C.5 Other assets'!$N$6:$N$149)","v":0},{"$f":"SUMPRODUCT(('C.5 Other assets'!$M$6:$M$149='C. Cost data'!AL$4)*('C.5 Other assets'!$L$6:$L$149='C. Cost data'!$C37)*'C.5 Other assets'!$N$6:$N$149)","v":0},{"$f":"SUMPRODUCT(('C.4 Cost control equip'!$O$6:$O$149='C. Cost data'!AM$4)*('C.4 Cost control equip'!$N$6:$N$149='C. Cost data'!$C37)*'C.4 Cost control equip'!$P$6:$P$149)","v":0},{"$f":"SUMPRODUCT(('C.5 Other assets'!$M$6:$M$149='C. Cost data'!AN$4)*('C.5 Other assets'!$L$6:$L$149='C. Cost data'!$C37)*'C.5 Other assets'!$N$6:$N$149)","v":0},{"$f":"SUMPRODUCT(('C.5 Other assets'!$M$6:$M$149='C. Cost data'!AO$4)*('C.5 Other assets'!$L$6:$L$149='C. Cost data'!$C37)*'C.5 Other assets'!$N$6:$N$149)","v":0},{"$f":"SUMPRODUCT(('C.5 Other assets'!$M$6:$M$149='C. Cost data'!AP$4)*('C.5 Other assets'!$L$6:$L$149='C. Cost data'!$C37)*'C.5 Other assets'!$N$6:$N$149)","v":0},{"$f":"SUMPRODUCT(('C.5 Other assets'!$M$6:$M$149='C. Cost data'!AQ$4)*('C.5 Other assets'!$L$6:$L$149='C. Cost data'!$C37)*'C.5 Other assets'!$N$6:$N$149)","v":0},{"$f":"SUMPRODUCT(('C.5 Other assets'!$M$6:$M$149='C. Cost data'!AR$4)*('C.5 Other assets'!$L$6:$L$149='C. Cost data'!$C37)*'C.5 Other assets'!$N$6:$N$149)","v":0},{"$f":"SUMPRODUCT(('C.5 Other assets'!$M$6:$M$149='C. Cost data'!AS$4)*('C.5 Other assets'!$L$6:$L$149='C. Cost data'!$C37)*'C.5 Other assets'!$N$6:$N$149)","v":0}]
[null,"Assets under construction 2026 – disposals/reclassifications",2026,0,{"$f":"SUMPRODUCT(('C.5 Other assets'!$M$6:$M$149='C. Cost data'!E$4)*('C.5 Other assets'!$L$6:$L$149='C. Cost data'!$C38)*'C.5 Other assets'!$O$6:$O$149)","v":0},{"$f":"SUMPRODUCT(('C.5 Other assets'!$M$6:$M$149='C. Cost data'!F$4)*('C.5 Other assets'!$L$6:$L$149='C. Cost data'!$C38)*'C.5 Other assets'!$O$6:$O$149)","v":0},{"$f":"SUMPRODUCT(('C.5 Other assets'!$M$6:$M$149='C. Cost data'!G$4)*('C.5 Other assets'!$L$6:$L$149='C. Cost data'!$C38)*'C.5 Other assets'!$O$6:$O$149)","v":0},{"$f":"SUMPRODUCT(('C.5 Other assets'!$M$6:$M$149='C. Cost data'!H$4)*('C.5 Other assets'!$L$6:$L$149='C. Cost data'!$C38)*'C.5 Other assets'!$O$6:$O$149)","v":0},{"$f":"SUMPRODUCT(('C.5 Other assets'!$M$6:$M$149='C. Cost data'!I$4)*('C.5 Other assets'!$L$6:$L$149='C. Cost data'!$C38)*'C.5 Other assets'!$O$6:$O$149)","v":0},{"$f":"SUMPRODUCT(('C.5 Other assets'!$M$6:$M$149='C. Cost data'!J$4)*('C.5 Other assets'!$L$6:$L$149='C. Cost data'!$C38)*'C.5 Other assets'!$O$6:$O$149)","v":0},{"$f":"SUMPRODUCT(('C.5 Other assets'!$M$6:$M$149='C. Cost data'!K$4)*('C.5 Other assets'!$L$6:$L$149='C. Cost data'!$C38)*'C.5 Other assets'!$O$6:$O$149)","v":0},{"$f":"SUMPRODUCT(('C.5 Other assets'!$M$6:$M$149='C. Cost data'!L$4)*('C.5 Other assets'!$L$6:$L$149='C. Cost data'!$C38)*'C.5 Other assets'!$O$6:$O$149)","v":0},{"$f":"SUMPRODUCT(('C.5 Other assets'!$M$6:$M$149='C. Cost data'!M$4)*('C.5 Other assets'!$L$6:$L$149='C. Cost data'!$C38)*'C.5 Other assets'!$O$6:$O$149)","v":0},{"$f":"SUMPRODUCT(('C.5 Other assets'!$M$6:$M$149='C. Cost data'!N$4)*('C.5 Other assets'!$L$6:$L$149='C. Cost data'!$C38)*'C.5 Other assets'!$O$6:$O$149)","v":0},{"$f":"SUMPRODUCT(('C.5 Other assets'!$M$6:$M$149='C. Cost data'!O$4)*('C.5 Other assets'!$L$6:$L$149='C. Cost data'!$C38)*'C.5 Other assets'!$O$6:$O$149)","v":0},{"$f":"SUMPRODUCT(('C.5 Other assets'!$M$6:$M$149='C. Cost data'!P$4)*('C.5 Other assets'!$L$6:$L$149='C. Cost data'!$C38)*'C.5 Other assets'!$O$6:$O$149)","v":0},{"$f":"SUMPRODUCT(('C.5 Other assets'!$M$6:$M$149='C. Cost data'!Q$4)*('C.5 Other assets'!$L$6:$L$149='C. Cost data'!$C38)*'C.5 Other assets'!$O$6:$O$149)","v":0},{"$f":"SUMPRODUCT(('C.1 Cost data compression'!$O$6:$O$149='C. Cost data'!R$4)*('C.1 Cost data compression'!$N$6:$N$149='C. Cost data'!$C38)*'C.1 Cost data compression'!$Q$6:$Q$149)","v":0},{"$f":"SUMPRODUCT(('C.5 Other assets'!$M$6:$M$149='C. Cost data'!S$4)*('C.5 Other assets'!$L$6:$L$149='C. Cost data'!$C38)*'C.5 Other assets'!$O$6:$O$149)","v":0},{"$f":"SUMPRODUCT(('C.5 Other assets'!$M$6:$M$149='C. Cost data'!T$4)*('C.5 Other assets'!$L$6:$L$149='C. Cost data'!$C38)*'C.5 Other assets'!$O$6:$O$149)","v":0},{"$f":"SUMPRODUCT(('C.5 Other assets'!$M$6:$M$149='C. Cost data'!U$4)*('C.5 Other assets'!$L$6:$L$149='C. Cost data'!$C38)*'C.5 Other assets'!$O$6:$O$149)","v":0},{"$f":"SUMPRODUCT(('C.5 Other assets'!$M$6:$M$149='C. Cost data'!V$4)*('C.5 Other assets'!$L$6:$L$149='C. Cost data'!$C38)*'C.5 Other assets'!$O$6:$O$149)","v":0},{"$f":"SUMPRODUCT(('C.5 Other assets'!$M$6:$M$149='C. Cost data'!W$4)*('C.5 Other assets'!$L$6:$L$149='C. Cost data'!$C38)*'C.5 Other assets'!$O$6:$O$149)","v":0},{"$f":"SUMPRODUCT(('C.5 Other assets'!$M$6:$M$149='C. Cost data'!X$4)*('C.5 Other assets'!$L$6:$L$149='C. Cost data'!$C38)*'C.5 Other assets'!$O$6:$O$149)","v":0},{"$f":"SUMPRODUCT(('C.5 Other assets'!$M$6:$M$149='C. Cost data'!Y$4)*('C.5 Other assets'!$L$6:$L$149='C. Cost data'!$C38)*'C.5 Other assets'!$O$6:$O$149)","v":0},{"$f":"SUMPRODUCT(('C.2 Cost data pipe PE'!$V$6:$V$149='C. Cost data'!Z$4)*('C.2 Cost data pipe PE'!$U$6:$U$149='C. Cost data'!$C38)*'C.2 Cost data pipe PE'!$X$6:$X$149)","v":0},{"$f":"SUMPRODUCT(('C.3 Cost data pipe cath'!$V$6:$V$149='C. Cost data'!AA$4)*('C.3 Cost data pipe cath'!$U$6:$U$149='C. Cost data'!$C38)*'C.3 Cost data pipe cath'!$X$6:$X$149)","v":0},{"$f":"SUMPRODUCT(('C.5 Other assets'!$M$6:$M$149='C. Cost data'!AB$4)*('C.5 Other assets'!$L$6:$L$149='C. Cost data'!$C38)*'C.5 Other assets'!$O$6:$O$149)","v":0},{"$f":"SUMPRODUCT(('C.5 Other assets'!$M$6:$M$149='C. Cost data'!AC$4)*('C.5 Other assets'!$L$6:$L$149='C. Cost data'!$C38)*'C.5 Other assets'!$O$6:$O$149)","v":0},{"$f":"SUMPRODUCT(('C.5 Other assets'!$M$6:$M$149='C. Cost data'!AD$4)*('C.5 Other assets'!$L$6:$L$149='C. Cost data'!$C38)*'C.5 Other assets'!$O$6:$O$149)","v":0},{"$f":"SUMPRODUCT(('C.5 Other assets'!$M$6:$M$149='C. Cost data'!AE$4)*('C.5 Other assets'!$L$6:$L$149='C. Cost data'!$C38)*'C.5 Other assets'!$O$6:$O$149)","v":0},{"$f":"SUMPRODUCT(('C.5 Other assets'!$M$6:$M$149='C. Cost data'!AF$4)*('C.5 Other assets'!$L$6:$L$149='C. Cost data'!$C38)*'C.5 Other assets'!$O$6:$O$149)","v":0},{"$f":"SUMPRODUCT(('C.5 Other assets'!$M$6:$M$149='C. Cost data'!AG$4)*('C.5 Other assets'!$L$6:$L$149='C. Cost data'!$C38)*'C.5 Other assets'!$O$6:$O$149)","v":0},{"$f":"SUMPRODUCT(('C.5 Other assets'!$M$6:$M$149='C. Cost data'!AH$4)*('C.5 Other assets'!$L$6:$L$149='C. Cost data'!$C38)*'C.5 Other assets'!$O$6:$O$149)","v":0},{"$f":"SUMPRODUCT(('C.5 Other assets'!$M$6:$M$149='C. Cost data'!AI$4)*('C.5 Other assets'!$L$6:$L$149='C. Cost data'!$C38)*'C.5 Other assets'!$O$6:$O$149)","v":0},{"$f":"SUMPRODUCT(('C.5 Other assets'!$M$6:$M$149='C. Cost data'!AJ$4)*('C.5 Other assets'!$L$6:$L$149='C. Cost data'!$C38)*'C.5 Other assets'!$O$6:$O$149)","v":0},{"$f":"SUMPRODUCT(('C.5 Other assets'!$M$6:$M$149='C. Cost data'!AK$4)*('C.5 Other assets'!$L$6:$L$149='C. Cost data'!$C38)*'C.5 Other assets'!$O$6:$O$149)","v":0},{"$f":"SUMPRODUCT(('C.5 Other assets'!$M$6:$M$149='C. Cost data'!AL$4)*('C.5 Other assets'!$L$6:$L$149='C. Cost data'!$C38)*'C.5 Other assets'!$O$6:$O$149)","v":0},{"$f":"SUMPRODUCT(('C.4 Cost control equip'!$O$6:$O$149='C. Cost data'!AM$4)*('C.4 Cost control equip'!$N$6:$N$149='C. Cost data'!$C38)*'C.4 Cost control equip'!$Q$6:$Q$149)","v":0},{"$f":"SUMPRODUCT(('C.5 Other assets'!$M$6:$M$149='C. Cost data'!AN$4)*('C.5 Other assets'!$L$6:$L$149='C. Cost data'!$C38)*'C.5 Other assets'!$O$6:$O$149)","v":0},{"$f":"SUMPRODUCT(('C.5 Other assets'!$M$6:$M$149='C. Cost data'!AO$4)*('C.5 Other assets'!$L$6:$L$149='C. Cost data'!$C38)*'C.5 Other assets'!$O$6:$O$149)","v":0},{"$f":"SUMPRODUCT(('C.5 Other assets'!$M$6:$M$149='C. Cost data'!AP$4)*('C.5 Other assets'!$L$6:$L$149='C. Cost data'!$C38)*'C.5 Other assets'!$O$6:$O$149)","v":0},{"$f":"SUMPRODUCT(('C.5 Other assets'!$M$6:$M$149='C. Cost data'!AQ$4)*('C.5 Other assets'!$L$6:$L$149='C. Cost data'!$C38)*'C.5 Other assets'!$O$6:$O$149)","v":0},{"$f":"SUMPRODUCT(('C.5 Other assets'!$M$6:$M$149='C. Cost data'!AR$4)*('C.5 Other assets'!$L$6:$L$149='C. Cost data'!$C38)*'C.5 Other assets'!$O$6:$O$149)","v":0},{"$f":"SUMPRODUCT(('C.5 Other assets'!$M$6:$M$149='C. Cost data'!AS$4)*('C.5 Other assets'!$L$6:$L$149='C. Cost data'!$C38)*'C.5 Other assets'!$O$6:$O$149)","v":0}]
[null,"Assets under construction 2027 – opening balance",2027,0,{"$f":"E36+E37-E38","v":0},0,0,0,0,0,0,0,0,0,0,0,0,0,0,0,0,0,0,0,0,0,0,0,0,0,0,0,0,0,0,0,0,0,0,0,0,0,0,0,0]
[null,"Assets under construction 2027 – additions",2027,0,{"$f":"SUMPRODUCT(('C.5 Other assets'!$M$6:$M$149='C. Cost data'!E$4)*('C.5 Other assets'!$L$6:$L$149='C. Cost data'!$C40)*'C.5 Other assets'!$N$6:$N$149)","v":0},{"$f":"SUMPRODUCT(('C.5 Other assets'!$M$6:$M$149='C. Cost data'!F$4)*('C.5 Other assets'!$L$6:$L$149='C. Cost data'!$C40)*'C.5 Other assets'!$N$6:$N$149)","v":0},{"$f":"SUMPRODUCT(('C.5 Other assets'!$M$6:$M$149='C. Cost data'!G$4)*('C.5 Other assets'!$L$6:$L$149='C. Cost data'!$C40)*'C.5 Other assets'!$N$6:$N$149)","v":0},{"$f":"SUMPRODUCT(('C.5 Other assets'!$M$6:$M$149='C. Cost data'!H$4)*('C.5 Other assets'!$L$6:$L$149='C. Cost data'!$C40)*'C.5 Other assets'!$N$6:$N$149)","v":0},{"$f":"SUMPRODUCT(('C.5 Other assets'!$M$6:$M$149='C. Cost data'!I$4)*('C.5 Other assets'!$L$6:$L$149='C. Cost data'!$C40)*'C.5 Other assets'!$N$6:$N$149)","v":0},{"$f":"SUMPRODUCT(('C.5 Other assets'!$M$6:$M$149='C. Cost data'!J$4)*('C.5 Other assets'!$L$6:$L$149='C. Cost data'!$C40)*'C.5 Other assets'!$N$6:$N$149)","v":0},{"$f":"SUMPRODUCT(('C.5 Other assets'!$M$6:$M$149='C. Cost data'!K$4)*('C.5 Other assets'!$L$6:$L$149='C. Cost data'!$C40)*'C.5 Other assets'!$N$6:$N$149)","v":0},{"$f":"SUMPRODUCT(('C.5 Other assets'!$M$6:$M$149='C. Cost data'!L$4)*('C.5 Other assets'!$L$6:$L$149='C. Cost data'!$C40)*'C.5 Other assets'!$N$6:$N$149)","v":0},{"$f":"SUMPRODUCT(('C.5 Other assets'!$M$6:$M$149='C. Cost data'!M$4)*('C.5 Other assets'!$L$6:$L$149='C. Cost data'!$C40)*'C.5 Other assets'!$N$6:$N$149)","v":0},{"$f":"SUMPRODUCT(('C.5 Other assets'!$M$6:$M$149='C. Cost data'!N$4)*('C.5 Other assets'!$L$6:$L$149='C. Cost data'!$C40)*'C.5 Other assets'!$N$6:$N$149)","v":0},{"$f":"SUMPRODUCT(('C.5 Other assets'!$M$6:$M$149='C. Cost data'!O$4)*('C.5 Other assets'!$L$6:$L$149='C. Cost data'!$C40)*'C.5 Other assets'!$N$6:$N$149)","v":0},{"$f":"SUMPRODUCT(('C.5 Other assets'!$M$6:$M$149='C. Cost data'!P$4)*('C.5 Other assets'!$L$6:$L$149='C. Cost data'!$C40)*'C.5 Other assets'!$N$6:$N$149)","v":0},{"$f":"SUMPRODUCT(('C.5 Other assets'!$M$6:$M$149='C. Cost data'!Q$4)*('C.5 Other assets'!$L$6:$L$149='C. Cost data'!$C40)*'C.5 Other assets'!$N$6:$N$149)","v":0},{"$f":"SUMPRODUCT(('C.1 Cost data compression'!$O$6:$O$149='C. Cost data'!R$4)*('C.1 Cost data compression'!$N$6:$N$149='C. Cost data'!$C40)*'C.1 Cost data compression'!$P$6:$P$149)","v":0},{"$f":"SUMPRODUCT(('C.5 Other assets'!$M$6:$M$149='C. Cost data'!S$4)*('C.5 Other assets'!$L$6:$L$149='C. Cost data'!$C40)*'C.5 Other assets'!$N$6:$N$149)","v":0},{"$f":"SUMPRODUCT(('C.5 Other assets'!$M$6:$M$149='C. Cost data'!T$4)*('C.5 Other assets'!$L$6:$L$149='C. Cost data'!$C40)*'C.5 Other assets'!$N$6:$N$149)","v":0},{"$f":"SUMPRODUCT(('C.5 Other assets'!$M$6:$M$149='C. Cost data'!U$4)*('C.5 Other assets'!$L$6:$L$149='C. Cost data'!$C40)*'C.5 Other assets'!$N$6:$N$149)","v":0},{"$f":"SUMPRODUCT(('C.5 Other assets'!$M$6:$M$149='C. Cost data'!V$4)*('C.5 Other assets'!$L$6:$L$149='C. Cost data'!$C40)*'C.5 Other assets'!$N$6:$N$149)","v":0},{"$f":"SUMPRODUCT(('C.5 Other assets'!$M$6:$M$149='C. Cost data'!W$4)*('C.5 Other assets'!$L$6:$L$149='C. Cost data'!$C40)*'C.5 Other assets'!$N$6:$N$149)","v":0},{"$f":"SUMPRODUCT(('C.5 Other assets'!$M$6:$M$149='C. Cost data'!X$4)*('C.5 Other assets'!$L$6:$L$149='C. Cost data'!$C40)*'C.5 Other assets'!$N$6:$N$149)","v":0},{"$f":"SUMPRODUCT(('C.5 Other assets'!$M$6:$M$149='C. Cost data'!Y$4)*('C.5 Other assets'!$L$6:$L$149='C. Cost data'!$C40)*'C.5 Other assets'!$N$6:$N$149)","v":0},{"$f":"SUMPRODUCT(('C.2 Cost data pipe PE'!$V$6:$V$149='C. Cost data'!Z$4)*('C.2 Cost data pipe PE'!$U$6:$U$149='C. Cost data'!$C40)*'C.2 Cost data pipe PE'!$W$6:$W$149)","v":0},{"$f":"SUMPRODUCT(('C.3 Cost data pipe cath'!$V$6:$V$149='C. Cost data'!AA$4)*('C.3 Cost data pipe cath'!$U$6:$U$149='C. Cost data'!$C40)*'C.3 Cost data pipe cath'!$W$6:$W$149)","v":0},{"$f":"SUMPRODUCT(('C.5 Other assets'!$M$6:$M$149='C. Cost data'!AB$4)*('C.5 Other assets'!$L$6:$L$149='C. Cost data'!$C40)*'C.5 Other assets'!$N$6:$N$149)","v":0},{"$f":"SUMPRODUCT(('C.5 Other assets'!$M$6:$M$149='C. Cost data'!AC$4)*('C.5 Other assets'!$L$6:$L$149='C. Cost data'!$C40)*'C.5 Other assets'!$N$6:$N$149)","v":0},{"$f":"SUMPRODUCT(('C.5 Other assets'!$M$6:$M$149='C. Cost data'!AD$4)*('C.5 Other assets'!$L$6:$L$149='C. Cost data'!$C40)*'C.5 Other assets'!$N$6:$N$149)","v":0},{"$f":"SUMPRODUCT(('C.5 Other assets'!$M$6:$M$149='C. Cost data'!AE$4)*('C.5 Other assets'!$L$6:$L$149='C. Cost data'!$C40)*'C.5 Other assets'!$N$6:$N$149)","v":0},{"$f":"SUMPRODUCT(('C.5 Other assets'!$M$6:$M$149='C. Cost data'!AF$4)*('C.5 Other assets'!$L$6:$L$149='C. Cost data'!$C40)*'C.5 Other assets'!$N$6:$N$149)","v":0},{"$f":"SUMPRODUCT(('C.5 Other assets'!$M$6:$M$149='C. Cost data'!AG$4)*('C.5 Other assets'!$L$6:$L$149='C. Cost data'!$C40)*'C.5 Other assets'!$N$6:$N$149)","v":0},{"$f":"SUMPRODUCT(('C.5 Other assets'!$M$6:$M$149='C. Cost data'!AH$4)*('C.5 Other assets'!$L$6:$L$149='C. Cost data'!$C40)*'C.5 Other assets'!$N$6:$N$149)","v":0},{"$f":"SUMPRODUCT(('C.5 Other assets'!$M$6:$M$149='C. Cost data'!AI$4)*('C.5 Other assets'!$L$6:$L$149='C. Cost data'!$C40)*'C.5 Other assets'!$N$6:$N$149)","v":0},{"$f":"SUMPRODUCT(('C.5 Other assets'!$M$6:$M$149='C. Cost data'!AJ$4)*('C.5 Other assets'!$L$6:$L$149='C. Cost data'!$C40)*'C.5 Other assets'!$N$6:$N$149)","v":0},{"$f":"SUMPRODUCT(('C.5 Other assets'!$M$6:$M$149='C. Cost data'!AK$4)*('C.5 Other assets'!$L$6:$L$149='C. Cost data'!$C40)*'C.5 Other assets'!$N$6:$N$149)","v":0},{"$f":"SUMPRODUCT(('C.5 Other assets'!$M$6:$M$149='C. Cost data'!AL$4)*('C.5 Other assets'!$L$6:$L$149='C. Cost data'!$C40)*'C.5 Other assets'!$N$6:$N$149)","v":0},{"$f":"SUMPRODUCT(('C.4 Cost control equip'!$O$6:$O$149='C. Cost data'!AM$4)*('C.4 Cost control equip'!$N$6:$N$149='C. Cost data'!$C40)*'C.4 Cost control equip'!$P$6:$P$149)","v":0},{"$f":"SUMPRODUCT(('C.5 Other assets'!$M$6:$M$149='C. Cost data'!AN$4)*('C.5 Other assets'!$L$6:$L$149='C. Cost data'!$C40)*'C.5 Other assets'!$N$6:$N$149)","v":0},{"$f":"SUMPRODUCT(('C.5 Other assets'!$M$6:$M$149='C. Cost data'!AO$4)*('C.5 Other assets'!$L$6:$L$149='C. Cost data'!$C40)*'C.5 Other assets'!$N$6:$N$149)","v":0},{"$f":"SUMPRODUCT(('C.5 Other assets'!$M$6:$M$149='C. Cost data'!AP$4)*('C.5 Other assets'!$L$6:$L$149='C. Cost data'!$C40)*'C.5 Other assets'!$N$6:$N$149)","v":0},{"$f":"SUMPRODUCT(('C.5 Other assets'!$M$6:$M$149='C. Cost data'!AQ$4)*('C.5 Other assets'!$L$6:$L$149='C. Cost data'!$C40)*'C.5 Other assets'!$N$6:$N$149)","v":0},{"$f":"SUMPRODUCT(('C.5 Other assets'!$M$6:$M$149='C. Cost data'!AR$4)*('C.5 Other assets'!$L$6:$L$149='C. Cost data'!$C40)*'C.5 Other assets'!$N$6:$N$149)","v":0},{"$f":"SUMPRODUCT(('C.5 Other assets'!$M$6:$M$149='C. Cost data'!AS$4)*('C.5 Other assets'!$L$6:$L$149='C. Cost data'!$C40)*'C.5 Other assets'!$N$6:$N$149)","v":0}]
[null,"Assets under construction 2027 – disposals/reclassifications",2027,0,{"$f":"SUMPRODUCT(('C.5 Other assets'!$M$6:$M$149='C. Cost data'!E$4)*('C.5 Other assets'!$L$6:$L$149='C. Cost data'!$C41)*'C.5 Other assets'!$O$6:$O$149)","v":0},{"$f":"SUMPRODUCT(('C.5 Other assets'!$M$6:$M$149='C. Cost data'!F$4)*('C.5 Other assets'!$L$6:$L$149='C. Cost data'!$C41)*'C.5 Other assets'!$O$6:$O$149)","v":0},{"$f":"SUMPRODUCT(('C.5 Other assets'!$M$6:$M$149='C. Cost data'!G$4)*('C.5 Other assets'!$L$6:$L$149='C. Cost data'!$C41)*'C.5 Other assets'!$O$6:$O$149)","v":0},{"$f":"SUMPRODUCT(('C.5 Other assets'!$M$6:$M$149='C. Cost data'!H$4)*('C.5 Other assets'!$L$6:$L$149='C. Cost data'!$C41)*'C.5 Other assets'!$O$6:$O$149)","v":0},{"$f":"SUMPRODUCT(('C.5 Other assets'!$M$6:$M$149='C. Cost data'!I$4)*('C.5 Other assets'!$L$6:$L$149='C. Cost data'!$C41)*'C.5 Other assets'!$O$6:$O$149)","v":0},{"$f":"SUMPRODUCT(('C.5 Other assets'!$M$6:$M$149='C. Cost data'!J$4)*('C.5 Other assets'!$L$6:$L$149='C. Cost data'!$C41)*'C.5 Other assets'!$O$6:$O$149)","v":0},{"$f":"SUMPRODUCT(('C.5 Other assets'!$M$6:$M$149='C. Cost data'!K$4)*('C.5 Other assets'!$L$6:$L$149='C. Cost data'!$C41)*'C.5 Other assets'!$O$6:$O$149)","v":0},{"$f":"SUMPRODUCT(('C.5 Other assets'!$M$6:$M$149='C. Cost data'!L$4)*('C.5 Other assets'!$L$6:$L$149='C. Cost data'!$C41)*'C.5 Other assets'!$O$6:$O$149)","v":0},{"$f":"SUMPRODUCT(('C.5 Other assets'!$M$6:$M$149='C. Cost data'!M$4)*('C.5 Other assets'!$L$6:$L$149='C. Cost data'!$C41)*'C.5 Other assets'!$O$6:$O$149)","v":0},{"$f":"SUMPRODUCT(('C.5 Other assets'!$M$6:$M$149='C. Cost data'!N$4)*('C.5 Other assets'!$L$6:$L$149='C. Cost data'!$C41)*'C.5 Other assets'!$O$6:$O$149)","v":0},{"$f":"SUMPRODUCT(('C.5 Other assets'!$M$6:$M$149='C. Cost data'!O$4)*('C.5 Other assets'!$L$6:$L$149='C. Cost data'!$C41)*'C.5 Other assets'!$O$6:$O$149)","v":0},{"$f":"SUMPRODUCT(('C.5 Other assets'!$M$6:$M$149='C. Cost data'!P$4)*('C.5 Other assets'!$L$6:$L$149='C. Cost data'!$C41)*'C.5 Other assets'!$O$6:$O$149)","v":0},{"$f":"SUMPRODUCT(('C.5 Other assets'!$M$6:$M$149='C. Cost data'!Q$4)*('C.5 Other assets'!$L$6:$L$149='C. Cost data'!$C41)*'C.5 Other assets'!$O$6:$O$149)","v":0},{"$f":"SUMPRODUCT(('C.1 Cost data compression'!$O$6:$O$149='C. Cost data'!R$4)*('C.1 Cost data compression'!$N$6:$N$149='C. Cost data'!$C41)*'C.1 Cost data compression'!$Q$6:$Q$149)","v":0},{"$f":"SUMPRODUCT(('C.5 Other assets'!$M$6:$M$149='C. Cost data'!S$4)*('C.5 Other assets'!$L$6:$L$149='C. Cost data'!$C41)*'C.5 Other assets'!$O$6:$O$149)","v":0},{"$f":"SUMPRODUCT(('C.5 Other assets'!$M$6:$M$149='C. Cost data'!T$4)*('C.5 Other assets'!$L$6:$L$149='C. Cost data'!$C41)*'C.5 Other assets'!$O$6:$O$149)","v":0},{"$f":"SUMPRODUCT(('C.5 Other assets'!$M$6:$M$149='C. Cost data'!U$4)*('C.5 Other assets'!$L$6:$L$149='C. Cost data'!$C41)*'C.5 Other assets'!$O$6:$O$149)","v":0},{"$f":"SUMPRODUCT(('C.5 Other assets'!$M$6:$M$149='C. Cost data'!V$4)*('C.5 Other assets'!$L$6:$L$149='C. Cost data'!$C41)*'C.5 Other assets'!$O$6:$O$149)","v":0},{"$f":"SUMPRODUCT(('C.5 Other assets'!$M$6:$M$149='C. Cost data'!W$4)*('C.5 Other assets'!$L$6:$L$149='C. Cost data'!$C41)*'C.5 Other assets'!$O$6:$O$149)","v":0},{"$f":"SUMPRODUCT(('C.5 Other assets'!$M$6:$M$149='C. Cost data'!X$4)*('C.5 Other assets'!$L$6:$L$149='C. Cost data'!$C41)*'C.5 Other assets'!$O$6:$O$149)","v":0},{"$f":"SUMPRODUCT(('C.5 Other assets'!$M$6:$M$149='C. Cost data'!Y$4)*('C.5 Other assets'!$L$6:$L$149='C. Cost data'!$C41)*'C.5 Other assets'!$O$6:$O$149)","v":0},{"$f":"SUMPRODUCT(('C.2 Cost data pipe PE'!$V$6:$V$149='C. Cost data'!Z$4)*('C.2 Cost data pipe PE'!$U$6:$U$149='C. Cost data'!$C41)*'C.2 Cost data pipe PE'!$X$6:$X$149)","v":0},{"$f":"SUMPRODUCT(('C.3 Cost data pipe cath'!$V$6:$V$149='C. Cost data'!AA$4)*('C.3 Cost data pipe cath'!$U$6:$U$149='C. Cost data'!$C41)*'C.3 Cost data pipe cath'!$X$6:$X$149)","v":0},{"$f":"SUMPRODUCT(('C.5 Other assets'!$M$6:$M$149='C. Cost data'!AB$4)*('C.5 Other assets'!$L$6:$L$149='C. Cost data'!$C41)*'C.5 Other assets'!$O$6:$O$149)","v":0},{"$f":"SUMPRODUCT(('C.5 Other assets'!$M$6:$M$149='C. Cost data'!AC$4)*('C.5 Other assets'!$L$6:$L$149='C. Cost data'!$C41)*'C.5 Other assets'!$O$6:$O$149)","v":0},{"$f":"SUMPRODUCT(('C.5 Other assets'!$M$6:$M$149='C. Cost data'!AD$4)*('C.5 Other assets'!$L$6:$L$149='C. Cost data'!$C41)*'C.5 Other assets'!$O$6:$O$149)","v":0},{"$f":"SUMPRODUCT(('C.5 Other assets'!$M$6:$M$149='C. Cost data'!AE$4)*('C.5 Other assets'!$L$6:$L$149='C. Cost data'!$C41)*'C.5 Other assets'!$O$6:$O$149)","v":0},{"$f":"SUMPRODUCT(('C.5 Other assets'!$M$6:$M$149='C. Cost data'!AF$4)*('C.5 Other assets'!$L$6:$L$149='C. Cost data'!$C41)*'C.5 Other assets'!$O$6:$O$149)","v":0},{"$f":"SUMPRODUCT(('C.5 Other assets'!$M$6:$M$149='C. Cost data'!AG$4)*('C.5 Other assets'!$L$6:$L$149='C. Cost data'!$C41)*'C.5 Other assets'!$O$6:$O$149)","v":0},{"$f":"SUMPRODUCT(('C.5 Other assets'!$M$6:$M$149='C. Cost data'!AH$4)*('C.5 Other assets'!$L$6:$L$149='C. Cost data'!$C41)*'C.5 Other assets'!$O$6:$O$149)","v":0},{"$f":"SUMPRODUCT(('C.5 Other assets'!$M$6:$M$149='C. Cost data'!AI$4)*('C.5 Other assets'!$L$6:$L$149='C. Cost data'!$C41)*'C.5 Other assets'!$O$6:$O$149)","v":0},{"$f":"SUMPRODUCT(('C.5 Other assets'!$M$6:$M$149='C. Cost data'!AJ$4)*('C.5 Other assets'!$L$6:$L$149='C. Cost data'!$C41)*'C.5 Other assets'!$O$6:$O$149)","v":0},{"$f":"SUMPRODUCT(('C.5 Other assets'!$M$6:$M$149='C. Cost data'!AK$4)*('C.5 Other assets'!$L$6:$L$149='C. Cost data'!$C41)*'C.5 Other assets'!$O$6:$O$149)","v":0},{"$f":"SUMPRODUCT(('C.5 Other assets'!$M$6:$M$149='C. Cost data'!AL$4)*('C.5 Other assets'!$L$6:$L$149='C. Cost data'!$C41)*'C.5 Other assets'!$O$6:$O$149)","v":0},{"$f":"SUMPRODUCT(('C.4 Cost control equip'!$O$6:$O$149='C. Cost data'!AM$4)*('C.4 Cost control equip'!$N$6:$N$149='C. Cost data'!$C41)*'C.4 Cost control equip'!$Q$6:$Q$149)","v":0},{"$f":"SUMPRODUCT(('C.5 Other assets'!$M$6:$M$149='C. Cost data'!AN$4)*('C.5 Other assets'!$L$6:$L$149='C. Cost data'!$C41)*'C.5 Other assets'!$O$6:$O$149)","v":0},{"$f":"SUMPRODUCT(('C.5 Other assets'!$M$6:$M$149='C. Cost data'!AO$4)*('C.5 Other assets'!$L$6:$L$149='C. Cost data'!$C41)*'C.5 Other assets'!$O$6:$O$149)","v":0},{"$f":"SUMPRODUCT(('C.5 Other assets'!$M$6:$M$149='C. Cost data'!AP$4)*('C.5 Other assets'!$L$6:$L$149='C. Cost data'!$C41)*'C.5 Other assets'!$O$6:$O$149)","v":0},{"$f":"SUMPRODUCT(('C.5 Other assets'!$M$6:$M$149='C. Cost data'!AQ$4)*('C.5 Other assets'!$L$6:$L$149='C. Cost data'!$C41)*'C.5 Other assets'!$O$6:$O$149)","v":0},{"$f":"SUMPRODUCT(('C.5 Other assets'!$M$6:$M$149='C. Cost data'!AR$4)*('C.5 Other assets'!$L$6:$L$149='C. Cost data'!$C41)*'C.5 Other assets'!$O$6:$O$149)","v":0},{"$f":"SUMPRODUCT(('C.5 Other assets'!$M$6:$M$149='C. Cost data'!AS$4)*('C.5 Other assets'!$L$6:$L$149='C. Cost data'!$C41)*'C.5 Other assets'!$O$6:$O$149)","v":0}]
[null,"Assets under construction 2028 – opening balance",2028,0,{"$f":"E39+E40-E41","v":0},0,0,0,0,0,0,0,0,0,0,0,0,0,0,0,0,0,0,0,0,0,0,0,0,0,0,0,0,0,0,0,0,0,0,0,0,0,0,0,0]
[null,"Assets under construction 2028 – additions",2028,0,{"$f":"SUMPRODUCT(('C.5 Other assets'!$M$6:$M$149='C. Cost data'!E$4)*('C.5 Other assets'!$L$6:$L$149='C. Cost data'!$C43)*'C.5 Other assets'!$N$6:$N$149)","v":0},{"$f":"SUMPRODUCT(('C.5 Other assets'!$M$6:$M$149='C. Cost data'!F$4)*('C.5 Other assets'!$L$6:$L$149='C. Cost data'!$C43)*'C.5 Other assets'!$N$6:$N$149)","v":0},{"$f":"SUMPRODUCT(('C.5 Other assets'!$M$6:$M$149='C. Cost data'!G$4)*('C.5 Other assets'!$L$6:$L$149='C. Cost data'!$C43)*'C.5 Other assets'!$N$6:$N$149)","v":0},{"$f":"SUMPRODUCT(('C.5 Other assets'!$M$6:$M$149='C. Cost data'!H$4)*('C.5 Other assets'!$L$6:$L$149='C. Cost data'!$C43)*'C.5 Other assets'!$N$6:$N$149)","v":0},{"$f":"SUMPRODUCT(('C.5 Other assets'!$M$6:$M$149='C. Cost data'!I$4)*('C.5 Other assets'!$L$6:$L$149='C. Cost data'!$C43)*'C.5 Other assets'!$N$6:$N$149)","v":0},{"$f":"SUMPRODUCT(('C.5 Other assets'!$M$6:$M$149='C. Cost data'!J$4)*('C.5 Other assets'!$L$6:$L$149='C. Cost data'!$C43)*'C.5 Other assets'!$N$6:$N$149)","v":0},{"$f":"SUMPRODUCT(('C.5 Other assets'!$M$6:$M$149='C. Cost data'!K$4)*('C.5 Other assets'!$L$6:$L$149='C. Cost data'!$C43)*'C.5 Other assets'!$N$6:$N$149)","v":0},{"$f":"SUMPRODUCT(('C.5 Other assets'!$M$6:$M$149='C. Cost data'!L$4)*('C.5 Other assets'!$L$6:$L$149='C. Cost data'!$C43)*'C.5 Other assets'!$N$6:$N$149)","v":0},{"$f":"SUMPRODUCT(('C.5 Other assets'!$M$6:$M$149='C. Cost data'!M$4)*('C.5 Other assets'!$L$6:$L$149='C. Cost data'!$C43)*'C.5 Other assets'!$N$6:$N$149)","v":0},{"$f":"SUMPRODUCT(('C.5 Other assets'!$M$6:$M$149='C. Cost data'!N$4)*('C.5 Other assets'!$L$6:$L$149='C. Cost data'!$C43)*'C.5 Other assets'!$N$6:$N$149)","v":0},{"$f":"SUMPRODUCT(('C.5 Other assets'!$M$6:$M$149='C. Cost data'!O$4)*('C.5 Other assets'!$L$6:$L$149='C. Cost data'!$C43)*'C.5 Other assets'!$N$6:$N$149)","v":0},{"$f":"SUMPRODUCT(('C.5 Other assets'!$M$6:$M$149='C. Cost data'!P$4)*('C.5 Other assets'!$L$6:$L$149='C. Cost data'!$C43)*'C.5 Other assets'!$N$6:$N$149)","v":0},{"$f":"SUMPRODUCT(('C.5 Other assets'!$M$6:$M$149='C. Cost data'!Q$4)*('C.5 Other assets'!$L$6:$L$149='C. Cost data'!$C43)*'C.5 Other assets'!$N$6:$N$149)","v":0},{"$f":"SUMPRODUCT(('C.1 Cost data compression'!$O$6:$O$149='C. Cost data'!R$4)*('C.1 Cost data compression'!$N$6:$N$149='C. Cost data'!$C43)*'C.1 Cost data compression'!$P$6:$P$149)","v":0},{"$f":"SUMPRODUCT(('C.5 Other assets'!$M$6:$M$149='C. Cost data'!S$4)*('C.5 Other assets'!$L$6:$L$149='C. Cost data'!$C43)*'C.5 Other assets'!$N$6:$N$149)","v":0},{"$f":"SUMPRODUCT(('C.5 Other assets'!$M$6:$M$149='C. Cost data'!T$4)*('C.5 Other assets'!$L$6:$L$149='C. Cost data'!$C43)*'C.5 Other assets'!$N$6:$N$149)","v":0},{"$f":"SUMPRODUCT(('C.5 Other assets'!$M$6:$M$149='C. Cost data'!U$4)*('C.5 Other assets'!$L$6:$L$149='C. Cost data'!$C43)*'C.5 Other assets'!$N$6:$N$149)","v":0},{"$f":"SUMPRODUCT(('C.5 Other assets'!$M$6:$M$149='C. Cost data'!V$4)*('C.5 Other assets'!$L$6:$L$149='C. Cost data'!$C43)*'C.5 Other assets'!$N$6:$N$149)","v":0},{"$f":"SUMPRODUCT(('C.5 Other assets'!$M$6:$M$149='C. Cost data'!W$4)*('C.5 Other assets'!$L$6:$L$149='C. Cost data'!$C43)*'C.5 Other assets'!$N$6:$N$149)","v":0},{"$f":"SUMPRODUCT(('C.5 Other assets'!$M$6:$M$149='C. Cost data'!X$4)*('C.5 Other assets'!$L$6:$L$149='C. Cost data'!$C43)*'C.5 Other assets'!$N$6:$N$149)","v":0},{"$f":"SUMPRODUCT(('C.5 Other assets'!$M$6:$M$149='C. Cost data'!Y$4)*('C.5 Other assets'!$L$6:$L$149='C. Cost data'!$C43)*'C.5 Other assets'!$N$6:$N$149)","v":0},{"$f":"SUMPRODUCT(('C.2 Cost data pipe PE'!$V$6:$V$149='C. Cost data'!Z$4)*('C.2 Cost data pipe PE'!$U$6:$U$149='C. Cost data'!$C43)*'C.2 Cost data pipe PE'!$W$6:$W$149)","v":0},{"$f":"SUMPRODUCT(('C.3 Cost data pipe cath'!$V$6:$V$149='C. Cost data'!AA$4)*('C.3 Cost data pipe cath'!$U$6:$U$149='C. Cost data'!$C43)*'C.3 Cost data pipe cath'!$W$6:$W$149)","v":0},{"$f":"SUMPRODUCT(('C.5 Other assets'!$M$6:$M$149='C. Cost data'!AB$4)*('C.5 Other assets'!$L$6:$L$149='C. Cost data'!$C43)*'C.5 Other assets'!$N$6:$N$149)","v":0},{"$f":"SUMPRODUCT(('C.5 Other assets'!$M$6:$M$149='C. Cost data'!AC$4)*('C.5 Other assets'!$L$6:$L$149='C. Cost data'!$C43)*'C.5 Other assets'!$N$6:$N$149)","v":0},{"$f":"SUMPRODUCT(('C.5 Other assets'!$M$6:$M$149='C. Cost data'!AD$4)*('C.5 Other assets'!$L$6:$L$149='C. Cost data'!$C43)*'C.5 Other assets'!$N$6:$N$149)","v":0},{"$f":"SUMPRODUCT(('C.5 Other assets'!$M$6:$M$149='C. Cost data'!AE$4)*('C.5 Other assets'!$L$6:$L$149='C. Cost data'!$C43)*'C.5 Other assets'!$N$6:$N$149)","v":0},{"$f":"SUMPRODUCT(('C.5 Other assets'!$M$6:$M$149='C. Cost data'!AF$4)*('C.5 Other assets'!$L$6:$L$149='C. Cost data'!$C43)*'C.5 Other assets'!$N$6:$N$149)","v":0},{"$f":"SUMPRODUCT(('C.5 Other assets'!$M$6:$M$149='C. Cost data'!AG$4)*('C.5 Other assets'!$L$6:$L$149='C. Cost data'!$C43)*'C.5 Other assets'!$N$6:$N$149)","v":0},{"$f":"SUMPRODUCT(('C.5 Other assets'!$M$6:$M$149='C. Cost data'!AH$4)*('C.5 Other assets'!$L$6:$L$149='C. Cost data'!$C43)*'C.5 Other assets'!$N$6:$N$149)","v":0},{"$f":"SUMPRODUCT(('C.5 Other assets'!$M$6:$M$149='C. Cost data'!AI$4)*('C.5 Other assets'!$L$6:$L$149='C. Cost data'!$C43)*'C.5 Other assets'!$N$6:$N$149)","v":0},{"$f":"SUMPRODUCT(('C.5 Other assets'!$M$6:$M$149='C. Cost data'!AJ$4)*('C.5 Other assets'!$L$6:$L$149='C. Cost data'!$C43)*'C.5 Other assets'!$N$6:$N$149)","v":0},{"$f":"SUMPRODUCT(('C.5 Other assets'!$M$6:$M$149='C. Cost data'!AK$4)*('C.5 Other assets'!$L$6:$L$149='C. Cost data'!$C43)*'C.5 Other assets'!$N$6:$N$149)","v":0},{"$f":"SUMPRODUCT(('C.5 Other assets'!$M$6:$M$149='C. Cost data'!AL$4)*('C.5 Other assets'!$L$6:$L$149='C. Cost data'!$C43)*'C.5 Other assets'!$N$6:$N$149)","v":0},{"$f":"SUMPRODUCT(('C.4 Cost control equip'!$O$6:$O$149='C. Cost data'!AM$4)*('C.4 Cost control equip'!$N$6:$N$149='C. Cost data'!$C43)*'C.4 Cost control equip'!$P$6:$P$149)","v":0},{"$f":"SUMPRODUCT(('C.5 Other assets'!$M$6:$M$149='C. Cost data'!AN$4)*('C.5 Other assets'!$L$6:$L$149='C. Cost data'!$C43)*'C.5 Other assets'!$N$6:$N$149)","v":0},{"$f":"SUMPRODUCT(('C.5 Other assets'!$M$6:$M$149='C. Cost data'!AO$4)*('C.5 Other assets'!$L$6:$L$149='C. Cost data'!$C43)*'C.5 Other assets'!$N$6:$N$149)","v":0},{"$f":"SUMPRODUCT(('C.5 Other assets'!$M$6:$M$149='C. Cost data'!AP$4)*('C.5 Other assets'!$L$6:$L$149='C. Cost data'!$C43)*'C.5 Other assets'!$N$6:$N$149)","v":0},{"$f":"SUMPRODUCT(('C.5 Other assets'!$M$6:$M$149='C. Cost data'!AQ$4)*('C.5 Other assets'!$L$6:$L$149='C. Cost data'!$C43)*'C.5 Other assets'!$N$6:$N$149)","v":0},{"$f":"SUMPRODUCT(('C.5 Other assets'!$M$6:$M$149='C. Cost data'!AR$4)*('C.5 Other assets'!$L$6:$L$149='C. Cost data'!$C43)*'C.5 Other assets'!$N$6:$N$149)","v":0},{"$f":"SUMPRODUCT(('C.5 Other assets'!$M$6:$M$149='C. Cost data'!AS$4)*('C.5 Other assets'!$L$6:$L$149='C. Cost data'!$C43)*'C.5 Other assets'!$N$6:$N$149)","v":0}]
[null,"Assets under construction 2028 – disposals/reclassifications",2028,0,{"$f":"SUMPRODUCT(('C.5 Other assets'!$M$6:$M$149='C. Cost data'!E$4)*('C.5 Other assets'!$L$6:$L$149='C. Cost data'!$C44)*'C.5 Other assets'!$O$6:$O$149)","v":0},{"$f":"SUMPRODUCT(('C.5 Other assets'!$M$6:$M$149='C. Cost data'!F$4)*('C.5 Other assets'!$L$6:$L$149='C. Cost data'!$C44)*'C.5 Other assets'!$O$6:$O$149)","v":0},{"$f":"SUMPRODUCT(('C.5 Other assets'!$M$6:$M$149='C. Cost data'!G$4)*('C.5 Other assets'!$L$6:$L$149='C. Cost data'!$C44)*'C.5 Other assets'!$O$6:$O$149)","v":0},{"$f":"SUMPRODUCT(('C.5 Other assets'!$M$6:$M$149='C. Cost data'!H$4)*('C.5 Other assets'!$L$6:$L$149='C. Cost data'!$C44)*'C.5 Other assets'!$O$6:$O$149)","v":0},{"$f":"SUMPRODUCT(('C.5 Other assets'!$M$6:$M$149='C. Cost data'!I$4)*('C.5 Other assets'!$L$6:$L$149='C. Cost data'!$C44)*'C.5 Other assets'!$O$6:$O$149)","v":0},{"$f":"SUMPRODUCT(('C.5 Other assets'!$M$6:$M$149='C. Cost data'!J$4)*('C.5 Other assets'!$L$6:$L$149='C. Cost data'!$C44)*'C.5 Other assets'!$O$6:$O$149)","v":0},{"$f":"SUMPRODUCT(('C.5 Other assets'!$M$6:$M$149='C. Cost data'!K$4)*('C.5 Other assets'!$L$6:$L$149='C. Cost data'!$C44)*'C.5 Other assets'!$O$6:$O$149)","v":0},{"$f":"SUMPRODUCT(('C.5 Other assets'!$M$6:$M$149='C. Cost data'!L$4)*('C.5 Other assets'!$L$6:$L$149='C. Cost data'!$C44)*'C.5 Other assets'!$O$6:$O$149)","v":0},{"$f":"SUMPRODUCT(('C.5 Other assets'!$M$6:$M$149='C. Cost data'!M$4)*('C.5 Other assets'!$L$6:$L$149='C. Cost data'!$C44)*'C.5 Other assets'!$O$6:$O$149)","v":0},{"$f":"SUMPRODUCT(('C.5 Other assets'!$M$6:$M$149='C. Cost data'!N$4)*('C.5 Other assets'!$L$6:$L$149='C. Cost data'!$C44)*'C.5 Other assets'!$O$6:$O$149)","v":0},{"$f":"SUMPRODUCT(('C.5 Other assets'!$M$6:$M$149='C. Cost data'!O$4)*('C.5 Other assets'!$L$6:$L$149='C. Cost data'!$C44)*'C.5 Other assets'!$O$6:$O$149)","v":0},{"$f":"SUMPRODUCT(('C.5 Other assets'!$M$6:$M$149='C. Cost data'!P$4)*('C.5 Other assets'!$L$6:$L$149='C. Cost data'!$C44)*'C.5 Other assets'!$O$6:$O$149)","v":0},{"$f":"SUMPRODUCT(('C.5 Other assets'!$M$6:$M$149='C. Cost data'!Q$4)*('C.5 Other assets'!$L$6:$L$149='C. Cost data'!$C44)*'C.5 Other assets'!$O$6:$O$149)","v":0},{"$f":"SUMPRODUCT(('C.1 Cost data compression'!$O$6:$O$149='C. Cost data'!R$4)*('C.1 Cost data compression'!$N$6:$N$149='C. Cost data'!$C44)*'C.1 Cost data compression'!$Q$6:$Q$149)","v":0},{"$f":"SUMPRODUCT(('C.5 Other assets'!$M$6:$M$149='C. Cost data'!S$4)*('C.5 Other assets'!$L$6:$L$149='C. Cost data'!$C44)*'C.5 Other assets'!$O$6:$O$149)","v":0},{"$f":"SUMPRODUCT(('C.5 Other assets'!$M$6:$M$149='C. Cost data'!T$4)*('C.5 Other assets'!$L$6:$L$149='C. Cost data'!$C44)*'C.5 Other assets'!$O$6:$O$149)","v":0},{"$f":"SUMPRODUCT(('C.5 Other assets'!$M$6:$M$149='C. Cost data'!U$4)*('C.5 Other assets'!$L$6:$L$149='C. Cost data'!$C44)*'C.5 Other assets'!$O$6:$O$149)","v":0},{"$f":"SUMPRODUCT(('C.5 Other assets'!$M$6:$M$149='C. Cost data'!V$4)*('C.5 Other assets'!$L$6:$L$149='C. Cost data'!$C44)*'C.5 Other assets'!$O$6:$O$149)","v":0},{"$f":"SUMPRODUCT(('C.5 Other assets'!$M$6:$M$149='C. Cost data'!W$4)*('C.5 Other assets'!$L$6:$L$149='C. Cost data'!$C44)*'C.5 Other assets'!$O$6:$O$149)","v":0},{"$f":"SUMPRODUCT(('C.5 Other assets'!$M$6:$M$149='C. Cost data'!X$4)*('C.5 Other assets'!$L$6:$L$149='C. Cost data'!$C44)*'C.5 Other assets'!$O$6:$O$149)","v":0},{"$f":"SUMPRODUCT(('C.5 Other assets'!$M$6:$M$149='C. Cost data'!Y$4)*('C.5 Other assets'!$L$6:$L$149='C. Cost data'!$C44)*'C.5 Other assets'!$O$6:$O$149)","v":0},{"$f":"SUMPRODUCT(('C.2 Cost data pipe PE'!$V$6:$V$149='C. Cost data'!Z$4)*('C.2 Cost data pipe PE'!$U$6:$U$149='C. Cost data'!$C44)*'C.2 Cost data pipe PE'!$X$6:$X$149)","v":0},{"$f":"SUMPRODUCT(('C.3 Cost data pipe cath'!$V$6:$V$149='C. Cost data'!AA$4)*('C.3 Cost data pipe cath'!$U$6:$U$149='C. Cost data'!$C44)*'C.3 Cost data pipe cath'!$X$6:$X$149)","v":0},{"$f":"SUMPRODUCT(('C.5 Other assets'!$M$6:$M$149='C. Cost data'!AB$4)*('C.5 Other assets'!$L$6:$L$149='C. Cost data'!$C44)*'C.5 Other assets'!$O$6:$O$149)","v":0},{"$f":"SUMPRODUCT(('C.5 Other assets'!$M$6:$M$149='C. Cost data'!AC$4)*('C.5 Other assets'!$L$6:$L$149='C. Cost data'!$C44)*'C.5 Other assets'!$O$6:$O$149)","v":0},{"$f":"SUMPRODUCT(('C.5 Other assets'!$M$6:$M$149='C. Cost data'!AD$4)*('C.5 Other assets'!$L$6:$L$149='C. Cost data'!$C44)*'C.5 Other assets'!$O$6:$O$149)","v":0},{"$f":"SUMPRODUCT(('C.5 Other assets'!$M$6:$M$149='C. Cost data'!AE$4)*('C.5 Other assets'!$L$6:$L$149='C. Cost data'!$C44)*'C.5 Other assets'!$O$6:$O$149)","v":0},{"$f":"SUMPRODUCT(('C.5 Other assets'!$M$6:$M$149='C. Cost data'!AF$4)*('C.5 Other assets'!$L$6:$L$149='C. Cost data'!$C44)*'C.5 Other assets'!$O$6:$O$149)","v":0},{"$f":"SUMPRODUCT(('C.5 Other assets'!$M$6:$M$149='C. Cost data'!AG$4)*('C.5 Other assets'!$L$6:$L$149='C. Cost data'!$C44)*'C.5 Other assets'!$O$6:$O$149)","v":0},{"$f":"SUMPRODUCT(('C.5 Other assets'!$M$6:$M$149='C. Cost data'!AH$4)*('C.5 Other assets'!$L$6:$L$149='C. Cost data'!$C44)*'C.5 Other assets'!$O$6:$O$149)","v":0},{"$f":"SUMPRODUCT(('C.5 Other assets'!$M$6:$M$149='C. Cost data'!AI$4)*('C.5 Other assets'!$L$6:$L$149='C. Cost data'!$C44)*'C.5 Other assets'!$O$6:$O$149)","v":0},{"$f":"SUMPRODUCT(('C.5 Other assets'!$M$6:$M$149='C. Cost data'!AJ$4)*('C.5 Other assets'!$L$6:$L$149='C. Cost data'!$C44)*'C.5 Other assets'!$O$6:$O$149)","v":0},{"$f":"SUMPRODUCT(('C.5 Other assets'!$M$6:$M$149='C. Cost data'!AK$4)*('C.5 Other assets'!$L$6:$L$149='C. Cost data'!$C44)*'C.5 Other assets'!$O$6:$O$149)","v":0},{"$f":"SUMPRODUCT(('C.5 Other assets'!$M$6:$M$149='C. Cost data'!AL$4)*('C.5 Other assets'!$L$6:$L$149='C. Cost data'!$C44)*'C.5 Other assets'!$O$6:$O$149)","v":0},{"$f":"SUMPRODUCT(('C.4 Cost control equip'!$O$6:$O$149='C. Cost data'!AM$4)*('C.4 Cost control equip'!$N$6:$N$149='C. Cost data'!$C44)*'C.4 Cost control equip'!$Q$6:$Q$149)","v":0},{"$f":"SUMPRODUCT(('C.5 Other assets'!$M$6:$M$149='C. Cost data'!AN$4)*('C.5 Other assets'!$L$6:$L$149='C. Cost data'!$C44)*'C.5 Other assets'!$O$6:$O$149)","v":0},{"$f":"SUMPRODUCT(('C.5 Other assets'!$M$6:$M$149='C. Cost data'!AO$4)*('C.5 Other assets'!$L$6:$L$149='C. Cost data'!$C44)*'C.5 Other assets'!$O$6:$O$149)","v":0},{"$f":"SUMPRODUCT(('C.5 Other assets'!$M$6:$M$149='C. Cost data'!AP$4)*('C.5 Other assets'!$L$6:$L$149='C. Cost data'!$C44)*'C.5 Other assets'!$O$6:$O$149)","v":0},{"$f":"SUMPRODUCT(('C.5 Other assets'!$M$6:$M$149='C. Cost data'!AQ$4)*('C.5 Other assets'!$L$6:$L$149='C. Cost data'!$C44)*'C.5 Other assets'!$O$6:$O$149)","v":0},{"$f":"SUMPRODUCT(('C.5 Other assets'!$M$6:$M$149='C. Cost data'!AR$4)*('C.5 Other assets'!$L$6:$L$149='C. Cost data'!$C44)*'C.5 Other assets'!$O$6:$O$149)","v":0},{"$f":"SUMPRODUCT(('C.5 Other assets'!$M$6:$M$149='C. Cost data'!AS$4)*('C.5 Other assets'!$L$6:$L$149='C. Cost data'!$C44)*'C.5 Other assets'!$O$6:$O$149)","v":0}]
[null,"Assets under construction 2029 – opening balance",2029,0,{"$f":"E42+E43-E44","v":0},0,0,0,0,0,0,0,0,0,0,0,0,0,0,0,0,0,0,0,0,0,0,0,0,0,0,0,0,0,0,0,0,0,0,0,0,0,0,0,0]
[null,"Assets under construction 2029 – additions",2029,0,{"$f":"SUMPRODUCT(('C.5 Other assets'!$M$6:$M$149='C. Cost data'!E$4)*('C.5 Other assets'!$L$6:$L$149='C. Cost data'!$C46)*'C.5 Other assets'!$N$6:$N$149)","v":0},{"$f":"SUMPRODUCT(('C.5 Other assets'!$M$6:$M$149='C. Cost data'!F$4)*('C.5 Other assets'!$L$6:$L$149='C. Cost data'!$C46)*'C.5 Other assets'!$N$6:$N$149)","v":0},{"$f":"SUMPRODUCT(('C.5 Other assets'!$M$6:$M$149='C. Cost data'!G$4)*('C.5 Other assets'!$L$6:$L$149='C. Cost data'!$C46)*'C.5 Other assets'!$N$6:$N$149)","v":0},{"$f":"SUMPRODUCT(('C.5 Other assets'!$M$6:$M$149='C. Cost data'!H$4)*('C.5 Other assets'!$L$6:$L$149='C. Cost data'!$C46)*'C.5 Other assets'!$N$6:$N$149)","v":0},{"$f":"SUMPRODUCT(('C.5 Other assets'!$M$6:$M$149='C. Cost data'!I$4)*('C.5 Other assets'!$L$6:$L$149='C. Cost data'!$C46)*'C.5 Other assets'!$N$6:$N$149)","v":0},{"$f":"SUMPRODUCT(('C.5 Other assets'!$M$6:$M$149='C. Cost data'!J$4)*('C.5 Other assets'!$L$6:$L$149='C. Cost data'!$C46)*'C.5 Other assets'!$N$6:$N$149)","v":0},{"$f":"SUMPRODUCT(('C.5 Other assets'!$M$6:$M$149='C. Cost data'!K$4)*('C.5 Other assets'!$L$6:$L$149='C. Cost data'!$C46)*'C.5 Other assets'!$N$6:$N$149)","v":0},{"$f":"SUMPRODUCT(('C.5 Other assets'!$M$6:$M$149='C. Cost data'!L$4)*('C.5 Other assets'!$L$6:$L$149='C. Cost data'!$C46)*'C.5 Other assets'!$N$6:$N$149)","v":0},{"$f":"SUMPRODUCT(('C.5 Other assets'!$M$6:$M$149='C. Cost data'!M$4)*('C.5 Other assets'!$L$6:$L$149='C. Cost data'!$C46)*'C.5 Other assets'!$N$6:$N$149)","v":0},{"$f":"SUMPRODUCT(('C.5 Other assets'!$M$6:$M$149='C. Cost data'!N$4)*('C.5 Other assets'!$L$6:$L$149='C. Cost data'!$C46)*'C.5 Other assets'!$N$6:$N$149)","v":0},{"$f":"SUMPRODUCT(('C.5 Other assets'!$M$6:$M$149='C. Cost data'!O$4)*('C.5 Other assets'!$L$6:$L$149='C. Cost data'!$C46)*'C.5 Other assets'!$N$6:$N$149)","v":0},{"$f":"SUMPRODUCT(('C.5 Other assets'!$M$6:$M$149='C. Cost data'!P$4)*('C.5 Other assets'!$L$6:$L$149='C. Cost data'!$C46)*'C.5 Other assets'!$N$6:$N$149)","v":0},{"$f":"SUMPRODUCT(('C.5 Other assets'!$M$6:$M$149='C. Cost data'!Q$4)*('C.5 Other assets'!$L$6:$L$149='C. Cost data'!$C46)*'C.5 Other assets'!$N$6:$N$149)","v":0},{"$f":"SUMPRODUCT(('C.1 Cost data compression'!$O$6:$O$149='C. Cost data'!R$4)*('C.1 Cost data compression'!$N$6:$N$149='C. Cost data'!$C46)*'C.1 Cost data compression'!$P$6:$P$149)","v":0},{"$f":"SUMPRODUCT(('C.5 Other assets'!$M$6:$M$149='C. Cost data'!S$4)*('C.5 Other assets'!$L$6:$L$149='C. Cost data'!$C46)*'C.5 Other assets'!$N$6:$N$149)","v":0},{"$f":"SUMPRODUCT(('C.5 Other assets'!$M$6:$M$149='C. Cost data'!T$4)*('C.5 Other assets'!$L$6:$L$149='C. Cost data'!$C46)*'C.5 Other assets'!$N$6:$N$149)","v":0},{"$f":"SUMPRODUCT(('C.5 Other assets'!$M$6:$M$149='C. Cost data'!U$4)*('C.5 Other assets'!$L$6:$L$149='C. Cost data'!$C46)*'C.5 Other assets'!$N$6:$N$149)","v":0},{"$f":"SUMPRODUCT(('C.5 Other assets'!$M$6:$M$149='C. Cost data'!V$4)*('C.5 Other assets'!$L$6:$L$149='C. Cost data'!$C46)*'C.5 Other assets'!$N$6:$N$149)","v":0},{"$f":"SUMPRODUCT(('C.5 Other assets'!$M$6:$M$149='C. Cost data'!W$4)*('C.5 Other assets'!$L$6:$L$149='C. Cost data'!$C46)*'C.5 Other assets'!$N$6:$N$149)","v":0},{"$f":"SUMPRODUCT(('C.5 Other assets'!$M$6:$M$149='C. Cost data'!X$4)*('C.5 Other assets'!$L$6:$L$149='C. Cost data'!$C46)*'C.5 Other assets'!$N$6:$N$149)","v":0},{"$f":"SUMPRODUCT(('C.5 Other assets'!$M$6:$M$149='C. Cost data'!Y$4)*('C.5 Other assets'!$L$6:$L$149='C. Cost data'!$C46)*'C.5 Other assets'!$N$6:$N$149)","v":0},{"$f":"SUMPRODUCT(('C.2 Cost data pipe PE'!$V$6:$V$149='C. Cost data'!Z$4)*('C.2 Cost data pipe PE'!$U$6:$U$149='C. Cost data'!$C46)*'C.2 Cost data pipe PE'!$W$6:$W$149)","v":0},{"$f":"SUMPRODUCT(('C.3 Cost data pipe cath'!$V$6:$V$149='C. Cost data'!AA$4)*('C.3 Cost data pipe cath'!$U$6:$U$149='C. Cost data'!$C46)*'C.3 Cost data pipe cath'!$W$6:$W$149)","v":0},{"$f":"SUMPRODUCT(('C.5 Other assets'!$M$6:$M$149='C. Cost data'!AB$4)*('C.5 Other assets'!$L$6:$L$149='C. Cost data'!$C46)*'C.5 Other assets'!$N$6:$N$149)","v":0},{"$f":"SUMPRODUCT(('C.5 Other assets'!$M$6:$M$149='C. Cost data'!AC$4)*('C.5 Other assets'!$L$6:$L$149='C. Cost data'!$C46)*'C.5 Other assets'!$N$6:$N$149)","v":0},{"$f":"SUMPRODUCT(('C.5 Other assets'!$M$6:$M$149='C. Cost data'!AD$4)*('C.5 Other assets'!$L$6:$L$149='C. Cost data'!$C46)*'C.5 Other assets'!$N$6:$N$149)","v":0},{"$f":"SUMPRODUCT(('C.5 Other assets'!$M$6:$M$149='C. Cost data'!AE$4)*('C.5 Other assets'!$L$6:$L$149='C. Cost data'!$C46)*'C.5 Other assets'!$N$6:$N$149)","v":0},{"$f":"SUMPRODUCT(('C.5 Other assets'!$M$6:$M$149='C. Cost data'!AF$4)*('C.5 Other assets'!$L$6:$L$149='C. Cost data'!$C46)*'C.5 Other assets'!$N$6:$N$149)","v":0},{"$f":"SUMPRODUCT(('C.5 Other assets'!$M$6:$M$149='C. Cost data'!AG$4)*('C.5 Other assets'!$L$6:$L$149='C. Cost data'!$C46)*'C.5 Other assets'!$N$6:$N$149)","v":0},{"$f":"SUMPRODUCT(('C.5 Other assets'!$M$6:$M$149='C. Cost data'!AH$4)*('C.5 Other assets'!$L$6:$L$149='C. Cost data'!$C46)*'C.5 Other assets'!$N$6:$N$149)","v":0},{"$f":"SUMPRODUCT(('C.5 Other assets'!$M$6:$M$149='C. Cost data'!AI$4)*('C.5 Other assets'!$L$6:$L$149='C. Cost data'!$C46)*'C.5 Other assets'!$N$6:$N$149)","v":0},{"$f":"SUMPRODUCT(('C.5 Other assets'!$M$6:$M$149='C. Cost data'!AJ$4)*('C.5 Other assets'!$L$6:$L$149='C. Cost data'!$C46)*'C.5 Other assets'!$N$6:$N$149)","v":0},{"$f":"SUMPRODUCT(('C.5 Other assets'!$M$6:$M$149='C. Cost data'!AK$4)*('C.5 Other assets'!$L$6:$L$149='C. Cost data'!$C46)*'C.5 Other assets'!$N$6:$N$149)","v":0},{"$f":"SUMPRODUCT(('C.5 Other assets'!$M$6:$M$149='C. Cost data'!AL$4)*('C.5 Other assets'!$L$6:$L$149='C. Cost data'!$C46)*'C.5 Other assets'!$N$6:$N$149)","v":0},{"$f":"SUMPRODUCT(('C.4 Cost control equip'!$O$6:$O$149='C. Cost data'!AM$4)*('C.4 Cost control equip'!$N$6:$N$149='C. Cost data'!$C46)*'C.4 Cost control equip'!$P$6:$P$149)","v":0},{"$f":"SUMPRODUCT(('C.5 Other assets'!$M$6:$M$149='C. Cost data'!AN$4)*('C.5 Other assets'!$L$6:$L$149='C. Cost data'!$C46)*'C.5 Other assets'!$N$6:$N$149)","v":0},{"$f":"SUMPRODUCT(('C.5 Other assets'!$M$6:$M$149='C. Cost data'!AO$4)*('C.5 Other assets'!$L$6:$L$149='C. Cost data'!$C46)*'C.5 Other assets'!$N$6:$N$149)","v":0},{"$f":"SUMPRODUCT(('C.5 Other assets'!$M$6:$M$149='C. Cost data'!AP$4)*('C.5 Other assets'!$L$6:$L$149='C. Cost data'!$C46)*'C.5 Other assets'!$N$6:$N$149)","v":0},{"$f":"SUMPRODUCT(('C.5 Other assets'!$M$6:$M$149='C. Cost data'!AQ$4)*('C.5 Other assets'!$L$6:$L$149='C. Cost data'!$C46)*'C.5 Other assets'!$N$6:$N$149)","v":0},{"$f":"SUMPRODUCT(('C.5 Other assets'!$M$6:$M$149='C. Cost data'!AR$4)*('C.5 Other assets'!$L$6:$L$149='C. Cost data'!$C46)*'C.5 Other assets'!$N$6:$N$149)","v":0},{"$f":"SUMPRODUCT(('C.5 Other assets'!$M$6:$M$149='C. Cost data'!AS$4)*('C.5 Other assets'!$L$6:$L$149='C. Cost data'!$C46)*'C.5 Other assets'!$N$6:$N$149)","v":0}]
[null,"Assets under construction 2029 – disposals/reclassifications",2029,0,{"$f":"SUMPRODUCT(('C.5 Other assets'!$M$6:$M$149='C. Cost data'!E$4)*('C.5 Other assets'!$L$6:$L$149='C. Cost data'!$C47)*'C.5 Other assets'!$O$6:$O$149)","v":0},{"$f":"SUMPRODUCT(('C.5 Other assets'!$M$6:$M$149='C. Cost data'!F$4)*('C.5 Other assets'!$L$6:$L$149='C. Cost data'!$C47)*'C.5 Other assets'!$O$6:$O$149)","v":0},{"$f":"SUMPRODUCT(('C.5 Other assets'!$M$6:$M$149='C. Cost data'!G$4)*('C.5 Other assets'!$L$6:$L$149='C. Cost data'!$C47)*'C.5 Other assets'!$O$6:$O$149)","v":0},{"$f":"SUMPRODUCT(('C.5 Other assets'!$M$6:$M$149='C. Cost data'!H$4)*('C.5 Other assets'!$L$6:$L$149='C. Cost data'!$C47)*'C.5 Other assets'!$O$6:$O$149)","v":0},{"$f":"SUMPRODUCT(('C.5 Other assets'!$M$6:$M$149='C. Cost data'!I$4)*('C.5 Other assets'!$L$6:$L$149='C. Cost data'!$C47)*'C.5 Other assets'!$O$6:$O$149)","v":0},{"$f":"SUMPRODUCT(('C.5 Other assets'!$M$6:$M$149='C. Cost data'!J$4)*('C.5 Other assets'!$L$6:$L$149='C. Cost data'!$C47)*'C.5 Other assets'!$O$6:$O$149)","v":0},{"$f":"SUMPRODUCT(('C.5 Other assets'!$M$6:$M$149='C. Cost data'!K$4)*('C.5 Other assets'!$L$6:$L$149='C. Cost data'!$C47)*'C.5 Other assets'!$O$6:$O$149)","v":0},{"$f":"SUMPRODUCT(('C.5 Other assets'!$M$6:$M$149='C. Cost data'!L$4)*('C.5 Other assets'!$L$6:$L$149='C. Cost data'!$C47)*'C.5 Other assets'!$O$6:$O$149)","v":0},{"$f":"SUMPRODUCT(('C.5 Other assets'!$M$6:$M$149='C. Cost data'!M$4)*('C.5 Other assets'!$L$6:$L$149='C. Cost data'!$C47)*'C.5 Other assets'!$O$6:$O$149)","v":0},{"$f":"SUMPRODUCT(('C.5 Other assets'!$M$6:$M$149='C. Cost data'!N$4)*('C.5 Other assets'!$L$6:$L$149='C. Cost data'!$C47)*'C.5 Other assets'!$O$6:$O$149)","v":0},{"$f":"SUMPRODUCT(('C.5 Other assets'!$M$6:$M$149='C. Cost data'!O$4)*('C.5 Other assets'!$L$6:$L$149='C. Cost data'!$C47)*'C.5 Other assets'!$O$6:$O$149)","v":0},{"$f":"SUMPRODUCT(('C.5 Other assets'!$M$6:$M$149='C. Cost data'!P$4)*('C.5 Other assets'!$L$6:$L$149='C. Cost data'!$C47)*'C.5 Other assets'!$O$6:$O$149)","v":0},{"$f":"SUMPRODUCT(('C.5 Other assets'!$M$6:$M$149='C. Cost data'!Q$4)*('C.5 Other assets'!$L$6:$L$149='C. Cost data'!$C47)*'C.5 Other assets'!$O$6:$O$149)","v":0},{"$f":"SUMPRODUCT(('C.1 Cost data compression'!$O$6:$O$149='C. Cost data'!R$4)*('C.1 Cost data compression'!$N$6:$N$149='C. Cost data'!$C47)*'C.1 Cost data compression'!$Q$6:$Q$149)","v":0},{"$f":"SUMPRODUCT(('C.5 Other assets'!$M$6:$M$149='C. Cost data'!S$4)*('C.5 Other assets'!$L$6:$L$149='C. Cost data'!$C47)*'C.5 Other assets'!$O$6:$O$149)","v":0},{"$f":"SUMPRODUCT(('C.5 Other assets'!$M$6:$M$149='C. Cost data'!T$4)*('C.5 Other assets'!$L$6:$L$149='C. Cost data'!$C47)*'C.5 Other assets'!$O$6:$O$149)","v":0},{"$f":"SUMPRODUCT(('C.5 Other assets'!$M$6:$M$149='C. Cost data'!U$4)*('C.5 Other assets'!$L$6:$L$149='C. Cost data'!$C47)*'C.5 Other assets'!$O$6:$O$149)","v":0},{"$f":"SUMPRODUCT(('C.5 Other assets'!$M$6:$M$149='C. Cost data'!V$4)*('C.5 Other assets'!$L$6:$L$149='C. Cost data'!$C47)*'C.5 Other assets'!$O$6:$O$149)","v":0},{"$f":"SUMPRODUCT(('C.5 Other assets'!$M$6:$M$149='C. Cost data'!W$4)*('C.5 Other assets'!$L$6:$L$149='C. Cost data'!$C47)*'C.5 Other assets'!$O$6:$O$149)","v":0},{"$f":"SUMPRODUCT(('C.5 Other assets'!$M$6:$M$149='C. Cost data'!X$4)*('C.5 Other assets'!$L$6:$L$149='C. Cost data'!$C47)*'C.5 Other assets'!$O$6:$O$149)","v":0},{"$f":"SUMPRODUCT(('C.5 Other assets'!$M$6:$M$149='C. Cost data'!Y$4)*('C.5 Other assets'!$L$6:$L$149='C. Cost data'!$C47)*'C.5 Other assets'!$O$6:$O$149)","v":0},{"$f":"SUMPRODUCT(('C.2 Cost data pipe PE'!$V$6:$V$149='C. Cost data'!Z$4)*('C.2 Cost data pipe PE'!$U$6:$U$149='C. Cost data'!$C47)*'C.2 Cost data pipe PE'!$X$6:$X$149)","v":0},{"$f":"SUMPRODUCT(('C.3 Cost data pipe cath'!$V$6:$V$149='C. Cost data'!AA$4)*('C.3 Cost data pipe cath'!$U$6:$U$149='C. Cost data'!$C47)*'C.3 Cost data pipe cath'!$X$6:$X$149)","v":0},{"$f":"SUMPRODUCT(('C.5 Other assets'!$M$6:$M$149='C. Cost data'!AB$4)*('C.5 Other assets'!$L$6:$L$149='C. Cost data'!$C47)*'C.5 Other assets'!$O$6:$O$149)","v":0},{"$f":"SUMPRODUCT(('C.5 Other assets'!$M$6:$M$149='C. Cost data'!AC$4)*('C.5 Other assets'!$L$6:$L$149='C. Cost data'!$C47)*'C.5 Other assets'!$O$6:$O$149)","v":0},{"$f":"SUMPRODUCT(('C.5 Other assets'!$M$6:$M$149='C. Cost data'!AD$4)*('C.5 Other assets'!$L$6:$L$149='C. Cost data'!$C47)*'C.5 Other assets'!$O$6:$O$149)","v":0},{"$f":"SUMPRODUCT(('C.5 Other assets'!$M$6:$M$149='C. Cost data'!AE$4)*('C.5 Other assets'!$L$6:$L$149='C. Cost data'!$C47)*'C.5 Other assets'!$O$6:$O$149)","v":0},{"$f":"SUMPRODUCT(('C.5 Other assets'!$M$6:$M$149='C. Cost data'!AF$4)*('C.5 Other assets'!$L$6:$L$149='C. Cost data'!$C47)*'C.5 Other assets'!$O$6:$O$149)","v":0},{"$f":"SUMPRODUCT(('C.5 Other assets'!$M$6:$M$149='C. Cost data'!AG$4)*('C.5 Other assets'!$L$6:$L$149='C. Cost data'!$C47)*'C.5 Other assets'!$O$6:$O$149)","v":0},{"$f":"SUMPRODUCT(('C.5 Other assets'!$M$6:$M$149='C. Cost data'!AH$4)*('C.5 Other assets'!$L$6:$L$149='C. Cost data'!$C47)*'C.5 Other assets'!$O$6:$O$149)","v":0},{"$f":"SUMPRODUCT(('C.5 Other assets'!$M$6:$M$149='C. Cost data'!AI$4)*('C.5 Other assets'!$L$6:$L$149='C. Cost data'!$C47)*'C.5 Other assets'!$O$6:$O$149)","v":0},{"$f":"SUMPRODUCT(('C.5 Other assets'!$M$6:$M$149='C. Cost data'!AJ$4)*('C.5 Other assets'!$L$6:$L$149='C. Cost data'!$C47)*'C.5 Other assets'!$O$6:$O$149)","v":0},{"$f":"SUMPRODUCT(('C.5 Other assets'!$M$6:$M$149='C. Cost data'!AK$4)*('C.5 Other assets'!$L$6:$L$149='C. Cost data'!$C47)*'C.5 Other assets'!$O$6:$O$149)","v":0},{"$f":"SUMPRODUCT(('C.5 Other assets'!$M$6:$M$149='C. Cost data'!AL$4)*('C.5 Other assets'!$L$6:$L$149='C. Cost data'!$C47)*'C.5 Other assets'!$O$6:$O$149)","v":0},{"$f":"SUMPRODUCT(('C.4 Cost control equip'!$O$6:$O$149='C. Cost data'!AM$4)*('C.4 Cost control equip'!$N$6:$N$149='C. Cost data'!$C47)*'C.4 Cost control equip'!$Q$6:$Q$149)","v":0},{"$f":"SUMPRODUCT(('C.5 Other assets'!$M$6:$M$149='C. Cost data'!AN$4)*('C.5 Other assets'!$L$6:$L$149='C. Cost data'!$C47)*'C.5 Other assets'!$O$6:$O$149)","v":0},{"$f":"SUMPRODUCT(('C.5 Other assets'!$M$6:$M$149='C. Cost data'!AO$4)*('C.5 Other assets'!$L$6:$L$149='C. Cost data'!$C47)*'C.5 Other assets'!$O$6:$O$149)","v":0},{"$f":"SUMPRODUCT(('C.5 Other assets'!$M$6:$M$149='C. Cost data'!AP$4)*('C.5 Other assets'!$L$6:$L$149='C. Cost data'!$C47)*'C.5 Other assets'!$O$6:$O$149)","v":0},{"$f":"SUMPRODUCT(('C.5 Other assets'!$M$6:$M$149='C. Cost data'!AQ$4)*('C.5 Other assets'!$L$6:$L$149='C. Cost data'!$C47)*'C.5 Other assets'!$O$6:$O$149)","v":0},{"$f":"SUMPRODUCT(('C.5 Other assets'!$M$6:$M$149='C. Cost data'!AR$4)*('C.5 Other assets'!$L$6:$L$149='C. Cost data'!$C47)*'C.5 Other assets'!$O$6:$O$149)","v":0},{"$f":"SUMPRODUCT(('C.5 Other assets'!$M$6:$M$149='C. Cost data'!AS$4)*('C.5 Other assets'!$L$6:$L$149='C. Cost data'!$C47)*'C.5 Other assets'!$O$6:$O$149)","v":0}]
[null,"Assets under construction 2030 – opening balance",2030,0,{"$f":"E45+E46-E47","v":0},0,0,0,0,0,0,0,0,0,0,0,0,0,0,0,0,0,0,0,0,0,0,0,0,0,0,0,0,0,0,0,0,0,0,0,0,0,0,0,0]
[null,"Assets under construction 2030 – additions",2030,0,{"$f":"SUMPRODUCT(('C.5 Other assets'!$M$6:$M$149='C. Cost data'!E$4)*('C.5 Other assets'!$L$6:$L$149='C. Cost data'!$C49)*'C.5 Other assets'!$N$6:$N$149)","v":0},{"$f":"SUMPRODUCT(('C.5 Other assets'!$M$6:$M$149='C. Cost data'!F$4)*('C.5 Other assets'!$L$6:$L$149='C. Cost data'!$C49)*'C.5 Other assets'!$N$6:$N$149)","v":0},{"$f":"SUMPRODUCT(('C.5 Other assets'!$M$6:$M$149='C. Cost data'!G$4)*('C.5 Other assets'!$L$6:$L$149='C. Cost data'!$C49)*'C.5 Other assets'!$N$6:$N$149)","v":0},{"$f":"SUMPRODUCT(('C.5 Other assets'!$M$6:$M$149='C. Cost data'!H$4)*('C.5 Other assets'!$L$6:$L$149='C. Cost data'!$C49)*'C.5 Other assets'!$N$6:$N$149)","v":0},{"$f":"SUMPRODUCT(('C.5 Other assets'!$M$6:$M$149='C. Cost data'!I$4)*('C.5 Other assets'!$L$6:$L$149='C. Cost data'!$C49)*'C.5 Other assets'!$N$6:$N$149)","v":0},{"$f":"SUMPRODUCT(('C.5 Other assets'!$M$6:$M$149='C. Cost data'!J$4)*('C.5 Other assets'!$L$6:$L$149='C. Cost data'!$C49)*'C.5 Other assets'!$N$6:$N$149)","v":0},{"$f":"SUMPRODUCT(('C.5 Other assets'!$M$6:$M$149='C. Cost data'!K$4)*('C.5 Other assets'!$L$6:$L$149='C. Cost data'!$C49)*'C.5 Other assets'!$N$6:$N$149)","v":0},{"$f":"SUMPRODUCT(('C.5 Other assets'!$M$6:$M$149='C. Cost data'!L$4)*('C.5 Other assets'!$L$6:$L$149='C. Cost data'!$C49)*'C.5 Other assets'!$N$6:$N$149)","v":0},{"$f":"SUMPRODUCT(('C.5 Other assets'!$M$6:$M$149='C. Cost data'!M$4)*('C.5 Other assets'!$L$6:$L$149='C. Cost data'!$C49)*'C.5 Other assets'!$N$6:$N$149)","v":0},{"$f":"SUMPRODUCT(('C.5 Other assets'!$M$6:$M$149='C. Cost data'!N$4)*('C.5 Other assets'!$L$6:$L$149='C. Cost data'!$C49)*'C.5 Other assets'!$N$6:$N$149)","v":0},{"$f":"SUMPRODUCT(('C.5 Other assets'!$M$6:$M$149='C. Cost data'!O$4)*('C.5 Other assets'!$L$6:$L$149='C. Cost data'!$C49)*'C.5 Other assets'!$N$6:$N$149)","v":0},{"$f":"SUMPRODUCT(('C.5 Other assets'!$M$6:$M$149='C. Cost data'!P$4)*('C.5 Other assets'!$L$6:$L$149='C. Cost data'!$C49)*'C.5 Other assets'!$N$6:$N$149)","v":0},{"$f":"SUMPRODUCT(('C.5 Other assets'!$M$6:$M$149='C. Cost data'!Q$4)*('C.5 Other assets'!$L$6:$L$149='C. Cost data'!$C49)*'C.5 Other assets'!$N$6:$N$149)","v":0},{"$f":"SUMPRODUCT(('C.1 Cost data compression'!$O$6:$O$149='C. Cost data'!R$4)*('C.1 Cost data compression'!$N$6:$N$149='C. Cost data'!$C49)*'C.1 Cost data compression'!$P$6:$P$149)","v":0},{"$f":"SUMPRODUCT(('C.5 Other assets'!$M$6:$M$149='C. Cost data'!S$4)*('C.5 Other assets'!$L$6:$L$149='C. Cost data'!$C49)*'C.5 Other assets'!$N$6:$N$149)","v":0},{"$f":"SUMPRODUCT(('C.5 Other assets'!$M$6:$M$149='C. Cost data'!T$4)*('C.5 Other assets'!$L$6:$L$149='C. Cost data'!$C49)*'C.5 Other assets'!$N$6:$N$149)","v":0},{"$f":"SUMPRODUCT(('C.5 Other assets'!$M$6:$M$149='C. Cost data'!U$4)*('C.5 Other assets'!$L$6:$L$149='C. Cost data'!$C49)*'C.5 Other assets'!$N$6:$N$149)","v":0},{"$f":"SUMPRODUCT(('C.5 Other assets'!$M$6:$M$149='C. Cost data'!V$4)*('C.5 Other assets'!$L$6:$L$149='C. Cost data'!$C49)*'C.5 Other assets'!$N$6:$N$149)","v":0},{"$f":"SUMPRODUCT(('C.5 Other assets'!$M$6:$M$149='C. Cost data'!W$4)*('C.5 Other assets'!$L$6:$L$149='C. Cost data'!$C49)*'C.5 Other assets'!$N$6:$N$149)","v":0},{"$f":"SUMPRODUCT(('C.5 Other assets'!$M$6:$M$149='C. Cost data'!X$4)*('C.5 Other assets'!$L$6:$L$149='C. Cost data'!$C49)*'C.5 Other assets'!$N$6:$N$149)","v":0},{"$f":"SUMPRODUCT(('C.5 Other assets'!$M$6:$M$149='C. Cost data'!Y$4)*('C.5 Other assets'!$L$6:$L$149='C. Cost data'!$C49)*'C.5 Other assets'!$N$6:$N$149)","v":0},{"$f":"SUMPRODUCT(('C.2 Cost data pipe PE'!$V$6:$V$149='C. Cost data'!Z$4)*('C.2 Cost data pipe PE'!$U$6:$U$149='C. Cost data'!$C49)*'C.2 Cost data pipe PE'!$W$6:$W$149)","v":0},{"$f":"SUMPRODUCT(('C.3 Cost data pipe cath'!$V$6:$V$149='C. Cost data'!AA$4)*('C.3 Cost data pipe cath'!$U$6:$U$149='C. Cost data'!$C49)*'C.3 Cost data pipe cath'!$W$6:$W$149)","v":0},{"$f":"SUMPRODUCT(('C.5 Other assets'!$M$6:$M$149='C. Cost data'!AB$4)*('C.5 Other assets'!$L$6:$L$149='C. Cost data'!$C49)*'C.5 Other assets'!$N$6:$N$149)","v":0},{"$f":"SUMPRODUCT(('C.5 Other assets'!$M$6:$M$149='C. Cost data'!AC$4)*('C.5 Other assets'!$L$6:$L$149='C. Cost data'!$C49)*'C.5 Other assets'!$N$6:$N$149)","v":0},{"$f":"SUMPRODUCT(('C.5 Other assets'!$M$6:$M$149='C. Cost data'!AD$4)*('C.5 Other assets'!$L$6:$L$149='C. Cost data'!$C49)*'C.5 Other assets'!$N$6:$N$149)","v":0},{"$f":"SUMPRODUCT(('C.5 Other assets'!$M$6:$M$149='C. Cost data'!AE$4)*('C.5 Other assets'!$L$6:$L$149='C. Cost data'!$C49)*'C.5 Other assets'!$N$6:$N$149)","v":0},{"$f":"SUMPRODUCT(('C.5 Other assets'!$M$6:$M$149='C. Cost data'!AF$4)*('C.5 Other assets'!$L$6:$L$149='C. Cost data'!$C49)*'C.5 Other assets'!$N$6:$N$149)","v":0},{"$f":"SUMPRODUCT(('C.5 Other assets'!$M$6:$M$149='C. Cost data'!AG$4)*('C.5 Other assets'!$L$6:$L$149='C. Cost data'!$C49)*'C.5 Other assets'!$N$6:$N$149)","v":0},{"$f":"SUMPRODUCT(('C.5 Other assets'!$M$6:$M$149='C. Cost data'!AH$4)*('C.5 Other assets'!$L$6:$L$149='C. Cost data'!$C49)*'C.5 Other assets'!$N$6:$N$149)","v":0},{"$f":"SUMPRODUCT(('C.5 Other assets'!$M$6:$M$149='C. Cost data'!AI$4)*('C.5 Other assets'!$L$6:$L$149='C. Cost data'!$C49)*'C.5 Other assets'!$N$6:$N$149)","v":0},{"$f":"SUMPRODUCT(('C.5 Other assets'!$M$6:$M$149='C. Cost data'!AJ$4)*('C.5 Other assets'!$L$6:$L$149='C. Cost data'!$C49)*'C.5 Other assets'!$N$6:$N$149)","v":0},{"$f":"SUMPRODUCT(('C.5 Other assets'!$M$6:$M$149='C. Cost data'!AK$4)*('C.5 Other assets'!$L$6:$L$149='C. Cost data'!$C49)*'C.5 Other assets'!$N$6:$N$149)","v":0},{"$f":"SUMPRODUCT(('C.5 Other assets'!$M$6:$M$149='C. Cost data'!AL$4)*('C.5 Other assets'!$L$6:$L$149='C. Cost data'!$C49)*'C.5 Other assets'!$N$6:$N$149)","v":0},{"$f":"SUMPRODUCT(('C.4 Cost control equip'!$O$6:$O$149='C. Cost data'!AM$4)*('C.4 Cost control equip'!$N$6:$N$149='C. Cost data'!$C49)*'C.4 Cost control equip'!$P$6:$P$149)","v":0},{"$f":"SUMPRODUCT(('C.5 Other assets'!$M$6:$M$149='C. Cost data'!AN$4)*('C.5 Other assets'!$L$6:$L$149='C. Cost data'!$C49)*'C.5 Other assets'!$N$6:$N$149)","v":0},{"$f":"SUMPRODUCT(('C.5 Other assets'!$M$6:$M$149='C. Cost data'!AO$4)*('C.5 Other assets'!$L$6:$L$149='C. Cost data'!$C49)*'C.5 Other assets'!$N$6:$N$149)","v":0},{"$f":"SUMPRODUCT(('C.5 Other assets'!$M$6:$M$149='C. Cost data'!AP$4)*('C.5 Other assets'!$L$6:$L$149='C. Cost data'!$C49)*'C.5 Other assets'!$N$6:$N$149)","v":0},{"$f":"SUMPRODUCT(('C.5 Other assets'!$M$6:$M$149='C. Cost data'!AQ$4)*('C.5 Other assets'!$L$6:$L$149='C. Cost data'!$C49)*'C.5 Other assets'!$N$6:$N$149)","v":0},{"$f":"SUMPRODUCT(('C.5 Other assets'!$M$6:$M$149='C. Cost data'!AR$4)*('C.5 Other assets'!$L$6:$L$149='C. Cost data'!$C49)*'C.5 Other assets'!$N$6:$N$149)","v":0},{"$f":"SUMPRODUCT(('C.5 Other assets'!$M$6:$M$149='C. Cost data'!AS$4)*('C.5 Other assets'!$L$6:$L$149='C. Cost data'!$C49)*'C.5 Other assets'!$N$6:$N$149)","v":0}]
[null,"Assets under construction 2030 – disposals/reclassifications",2030,0,{"$f":"SUMPRODUCT(('C.5 Other assets'!$M$6:$M$149='C. Cost data'!E$4)*('C.5 Other assets'!$L$6:$L$149='C. Cost data'!$C50)*'C.5 Other assets'!$O$6:$O$149)","v":0},{"$f":"SUMPRODUCT(('C.5 Other assets'!$M$6:$M$149='C. Cost data'!F$4)*('C.5 Other assets'!$L$6:$L$149='C. Cost data'!$C50)*'C.5 Other assets'!$O$6:$O$149)","v":0},{"$f":"SUMPRODUCT(('C.5 Other assets'!$M$6:$M$149='C. Cost data'!G$4)*('C.5 Other assets'!$L$6:$L$149='C. Cost data'!$C50)*'C.5 Other assets'!$O$6:$O$149)","v":0},{"$f":"SUMPRODUCT(('C.5 Other assets'!$M$6:$M$149='C. Cost data'!H$4)*('C.5 Other assets'!$L$6:$L$149='C. Cost data'!$C50)*'C.5 Other assets'!$O$6:$O$149)","v":0},{"$f":"SUMPRODUCT(('C.5 Other assets'!$M$6:$M$149='C. Cost data'!I$4)*('C.5 Other assets'!$L$6:$L$149='C. Cost data'!$C50)*'C.5 Other assets'!$O$6:$O$149)","v":0},{"$f":"SUMPRODUCT(('C.5 Other assets'!$M$6:$M$149='C. Cost data'!J$4)*('C.5 Other assets'!$L$6:$L$149='C. Cost data'!$C50)*'C.5 Other assets'!$O$6:$O$149)","v":0},{"$f":"SUMPRODUCT(('C.5 Other assets'!$M$6:$M$149='C. Cost data'!K$4)*('C.5 Other assets'!$L$6:$L$149='C. Cost data'!$C50)*'C.5 Other assets'!$O$6:$O$149)","v":0},{"$f":"SUMPRODUCT(('C.5 Other assets'!$M$6:$M$149='C. Cost data'!L$4)*('C.5 Other assets'!$L$6:$L$149='C. Cost data'!$C50)*'C.5 Other assets'!$O$6:$O$149)","v":0},{"$f":"SUMPRODUCT(('C.5 Other assets'!$M$6:$M$149='C. Cost data'!M$4)*('C.5 Other assets'!$L$6:$L$149='C. Cost data'!$C50)*'C.5 Other assets'!$O$6:$O$149)","v":0},{"$f":"SUMPRODUCT(('C.5 Other assets'!$M$6:$M$149='C. Cost data'!N$4)*('C.5 Other assets'!$L$6:$L$149='C. Cost data'!$C50)*'C.5 Other assets'!$O$6:$O$149)","v":0},{"$f":"SUMPRODUCT(('C.5 Other assets'!$M$6:$M$149='C. Cost data'!O$4)*('C.5 Other assets'!$L$6:$L$149='C. Cost data'!$C50)*'C.5 Other assets'!$O$6:$O$149)","v":0},{"$f":"SUMPRODUCT(('C.5 Other assets'!$M$6:$M$149='C. Cost data'!P$4)*('C.5 Other assets'!$L$6:$L$149='C. Cost data'!$C50)*'C.5 Other assets'!$O$6:$O$149)","v":0},{"$f":"SUMPRODUCT(('C.5 Other assets'!$M$6:$M$149='C. Cost data'!Q$4)*('C.5 Other assets'!$L$6:$L$149='C. Cost data'!$C50)*'C.5 Other assets'!$O$6:$O$149)","v":0},{"$f":"SUMPRODUCT(('C.1 Cost data compression'!$O$6:$O$149='C. Cost data'!R$4)*('C.1 Cost data compression'!$N$6:$N$149='C. Cost data'!$C50)*'C.1 Cost data compression'!$Q$6:$Q$149)","v":0},{"$f":"SUMPRODUCT(('C.5 Other assets'!$M$6:$M$149='C. Cost data'!S$4)*('C.5 Other assets'!$L$6:$L$149='C. Cost data'!$C50)*'C.5 Other assets'!$O$6:$O$149)","v":0},{"$f":"SUMPRODUCT(('C.5 Other assets'!$M$6:$M$149='C. Cost data'!T$4)*('C.5 Other assets'!$L$6:$L$149='C. Cost data'!$C50)*'C.5 Other assets'!$O$6:$O$149)","v":0},{"$f":"SUMPRODUCT(('C.5 Other assets'!$M$6:$M$149='C. Cost data'!U$4)*('C.5 Other assets'!$L$6:$L$149='C. Cost data'!$C50)*'C.5 Other assets'!$O$6:$O$149)","v":0},{"$f":"SUMPRODUCT(('C.5 Other assets'!$M$6:$M$149='C. Cost data'!V$4)*('C.5 Other assets'!$L$6:$L$149='C. Cost data'!$C50)*'C.5 Other assets'!$O$6:$O$149)","v":0},{"$f":"SUMPRODUCT(('C.5 Other assets'!$M$6:$M$149='C. Cost data'!W$4)*('C.5 Other assets'!$L$6:$L$149='C. Cost data'!$C50)*'C.5 Other assets'!$O$6:$O$149)","v":0},{"$f":"SUMPRODUCT(('C.5 Other assets'!$M$6:$M$149='C. Cost data'!X$4)*('C.5 Other assets'!$L$6:$L$149='C. Cost data'!$C50)*'C.5 Other assets'!$O$6:$O$149)","v":0},{"$f":"SUMPRODUCT(('C.5 Other assets'!$M$6:$M$149='C. Cost data'!Y$4)*('C.5 Other assets'!$L$6:$L$149='C. Cost data'!$C50)*'C.5 Other assets'!$O$6:$O$149)","v":0},{"$f":"SUMPRODUCT(('C.2 Cost data pipe PE'!$V$6:$V$149='C. Cost data'!Z$4)*('C.2 Cost data pipe PE'!$U$6:$U$149='C. Cost data'!$C50)*'C.2 Cost data pipe PE'!$X$6:$X$149)","v":0},{"$f":"SUMPRODUCT(('C.3 Cost data pipe cath'!$V$6:$V$149='C. Cost data'!AA$4)*('C.3 Cost data pipe cath'!$U$6:$U$149='C. Cost data'!$C50)*'C.3 Cost data pipe cath'!$X$6:$X$149)","v":0},{"$f":"SUMPRODUCT(('C.5 Other assets'!$M$6:$M$149='C. Cost data'!AB$4)*('C.5 Other assets'!$L$6:$L$149='C. Cost data'!$C50)*'C.5 Other assets'!$O$6:$O$149)","v":0},{"$f":"SUMPRODUCT(('C.5 Other assets'!$M$6:$M$149='C. Cost data'!AC$4)*('C.5 Other assets'!$L$6:$L$149='C. Cost data'!$C50)*'C.5 Other assets'!$O$6:$O$149)","v":0},{"$f":"SUMPRODUCT(('C.5 Other assets'!$M$6:$M$149='C. Cost data'!AD$4)*('C.5 Other assets'!$L$6:$L$149='C. Cost data'!$C50)*'C.5 Other assets'!$O$6:$O$149)","v":0},{"$f":"SUMPRODUCT(('C.5 Other assets'!$M$6:$M$149='C. Cost data'!AE$4)*('C.5 Other assets'!$L$6:$L$149='C. Cost data'!$C50)*'C.5 Other assets'!$O$6:$O$149)","v":0},{"$f":"SUMPRODUCT(('C.5 Other assets'!$M$6:$M$149='C. Cost data'!AF$4)*('C.5 Other assets'!$L$6:$L$149='C. Cost data'!$C50)*'C.5 Other assets'!$O$6:$O$149)","v":0},{"$f":"SUMPRODUCT(('C.5 Other assets'!$M$6:$M$149='C. Cost data'!AG$4)*('C.5 Other assets'!$L$6:$L$149='C. Cost data'!$C50)*'C.5 Other assets'!$O$6:$O$149)","v":0},{"$f":"SUMPRODUCT(('C.5 Other assets'!$M$6:$M$149='C. Cost data'!AH$4)*('C.5 Other assets'!$L$6:$L$149='C. Cost data'!$C50)*'C.5 Other assets'!$O$6:$O$149)","v":0},{"$f":"SUMPRODUCT(('C.5 Other assets'!$M$6:$M$149='C. Cost data'!AI$4)*('C.5 Other assets'!$L$6:$L$149='C. Cost data'!$C50)*'C.5 Other assets'!$O$6:$O$149)","v":0},{"$f":"SUMPRODUCT(('C.5 Other assets'!$M$6:$M$149='C. Cost data'!AJ$4)*('C.5 Other assets'!$L$6:$L$149='C. Cost data'!$C50)*'C.5 Other assets'!$O$6:$O$149)","v":0},{"$f":"SUMPRODUCT(('C.5 Other assets'!$M$6:$M$149='C. Cost data'!AK$4)*('C.5 Other assets'!$L$6:$L$149='C. Cost data'!$C50)*'C.5 Other assets'!$O$6:$O$149)","v":0},{"$f":"SUMPRODUCT(('C.5 Other assets'!$M$6:$M$149='C. Cost data'!AL$4)*('C.5 Other assets'!$L$6:$L$149='C. Cost data'!$C50)*'C.5 Other assets'!$O$6:$O$149)","v":0},{"$f":"SUMPRODUCT(('C.4 Cost control equip'!$O$6:$O$149='C. Cost data'!AM$4)*('C.4 Cost control equip'!$N$6:$N$149='C. Cost data'!$C50)*'C.4 Cost control equip'!$Q$6:$Q$149)","v":0},{"$f":"SUMPRODUCT(('C.5 Other assets'!$M$6:$M$149='C. Cost data'!AN$4)*('C.5 Other assets'!$L$6:$L$149='C. Cost data'!$C50)*'C.5 Other assets'!$O$6:$O$149)","v":0},{"$f":"SUMPRODUCT(('C.5 Other assets'!$M$6:$M$149='C. Cost data'!AO$4)*('C.5 Other assets'!$L$6:$L$149='C. Cost data'!$C50)*'C.5 Other assets'!$O$6:$O$149)","v":0},{"$f":"SUMPRODUCT(('C.5 Other assets'!$M$6:$M$149='C. Cost data'!AP$4)*('C.5 Other assets'!$L$6:$L$149='C. Cost data'!$C50)*'C.5 Other assets'!$O$6:$O$149)","v":0},{"$f":"SUMPRODUCT(('C.5 Other assets'!$M$6:$M$149='C. Cost data'!AQ$4)*('C.5 Other assets'!$L$6:$L$149='C. Cost data'!$C50)*'C.5 Other assets'!$O$6:$O$149)","v":0},{"$f":"SUMPRODUCT(('C.5 Other assets'!$M$6:$M$149='C. Cost data'!AR$4)*('C.5 Other assets'!$L$6:$L$149='C. Cost data'!$C50)*'C.5 Other assets'!$O$6:$O$149)","v":0},{"$f":"SUMPRODUCT(('C.5 Other assets'!$M$6:$M$149='C. Cost data'!AS$4)*('C.5 Other assets'!$L$6:$L$149='C. Cost data'!$C50)*'C.5 Other assets'!$O$6:$O$149)","v":0}]
[null,"Assets under construction 2031 – opening balance",2031,0,{"$f":"E48+E49-E50","v":0},0,0,0,0,0,0,0,0,0,0,0,0,0,0,0,0,0,0,0,0,0,0,0,0,0,0,0,0,0,0,0,0,0,0,0,0,0,0,0,0]
[null,"Assets under construction 2031 – additions",2031,0,{"$f":"SUMPRODUCT(('C.5 Other assets'!$M$6:$M$149='C. Cost data'!E$4)*('C.5 Other assets'!$L$6:$L$149='C. Cost data'!$C52)*'C.5 Other assets'!$N$6:$N$149)","v":0},{"$f":"SUMPRODUCT(('C.5 Other assets'!$M$6:$M$149='C. Cost data'!F$4)*('C.5 Other assets'!$L$6:$L$149='C. Cost data'!$C52)*'C.5 Other assets'!$N$6:$N$149)","v":0},{"$f":"SUMPRODUCT(('C.5 Other assets'!$M$6:$M$149='C. Cost data'!G$4)*('C.5 Other assets'!$L$6:$L$149='C. Cost data'!$C52)*'C.5 Other assets'!$N$6:$N$149)","v":0},{"$f":"SUMPRODUCT(('C.5 Other assets'!$M$6:$M$149='C. Cost data'!H$4)*('C.5 Other assets'!$L$6:$L$149='C. Cost data'!$C52)*'C.5 Other assets'!$N$6:$N$149)","v":0},{"$f":"SUMPRODUCT(('C.5 Other assets'!$M$6:$M$149='C. Cost data'!I$4)*('C.5 Other assets'!$L$6:$L$149='C. Cost data'!$C52)*'C.5 Other assets'!$N$6:$N$149)","v":0},{"$f":"SUMPRODUCT(('C.5 Other assets'!$M$6:$M$149='C. Cost data'!J$4)*('C.5 Other assets'!$L$6:$L$149='C. Cost data'!$C52)*'C.5 Other assets'!$N$6:$N$149)","v":0},{"$f":"SUMPRODUCT(('C.5 Other assets'!$M$6:$M$149='C. Cost data'!K$4)*('C.5 Other assets'!$L$6:$L$149='C. Cost data'!$C52)*'C.5 Other assets'!$N$6:$N$149)","v":0},{"$f":"SUMPRODUCT(('C.5 Other assets'!$M$6:$M$149='C. Cost data'!L$4)*('C.5 Other assets'!$L$6:$L$149='C. Cost data'!$C52)*'C.5 Other assets'!$N$6:$N$149)","v":0},{"$f":"SUMPRODUCT(('C.5 Other assets'!$M$6:$M$149='C. Cost data'!M$4)*('C.5 Other assets'!$L$6:$L$149='C. Cost data'!$C52)*'C.5 Other assets'!$N$6:$N$149)","v":0},{"$f":"SUMPRODUCT(('C.5 Other assets'!$M$6:$M$149='C. Cost data'!N$4)*('C.5 Other assets'!$L$6:$L$149='C. Cost data'!$C52)*'C.5 Other assets'!$N$6:$N$149)","v":0},{"$f":"SUMPRODUCT(('C.5 Other assets'!$M$6:$M$149='C. Cost data'!O$4)*('C.5 Other assets'!$L$6:$L$149='C. Cost data'!$C52)*'C.5 Other assets'!$N$6:$N$149)","v":0},{"$f":"SUMPRODUCT(('C.5 Other assets'!$M$6:$M$149='C. Cost data'!P$4)*('C.5 Other assets'!$L$6:$L$149='C. Cost data'!$C52)*'C.5 Other assets'!$N$6:$N$149)","v":0},{"$f":"SUMPRODUCT(('C.5 Other assets'!$M$6:$M$149='C. Cost data'!Q$4)*('C.5 Other assets'!$L$6:$L$149='C. Cost data'!$C52)*'C.5 Other assets'!$N$6:$N$149)","v":0},{"$f":"SUMPRODUCT(('C.1 Cost data compression'!$O$6:$O$149='C. Cost data'!R$4)*('C.1 Cost data compression'!$N$6:$N$149='C. Cost data'!$C52)*'C.1 Cost data compression'!$P$6:$P$149)","v":0},{"$f":"SUMPRODUCT(('C.5 Other assets'!$M$6:$M$149='C. Cost data'!S$4)*('C.5 Other assets'!$L$6:$L$149='C. Cost data'!$C52)*'C.5 Other assets'!$N$6:$N$149)","v":0},{"$f":"SUMPRODUCT(('C.5 Other assets'!$M$6:$M$149='C. Cost data'!T$4)*('C.5 Other assets'!$L$6:$L$149='C. Cost data'!$C52)*'C.5 Other assets'!$N$6:$N$149)","v":0},{"$f":"SUMPRODUCT(('C.5 Other assets'!$M$6:$M$149='C. Cost data'!U$4)*('C.5 Other assets'!$L$6:$L$149='C. Cost data'!$C52)*'C.5 Other assets'!$N$6:$N$149)","v":0},{"$f":"SUMPRODUCT(('C.5 Other assets'!$M$6:$M$149='C. Cost data'!V$4)*('C.5 Other assets'!$L$6:$L$149='C. Cost data'!$C52)*'C.5 Other assets'!$N$6:$N$149)","v":0},{"$f":"SUMPRODUCT(('C.5 Other assets'!$M$6:$M$149='C. Cost data'!W$4)*('C.5 Other assets'!$L$6:$L$149='C. Cost data'!$C52)*'C.5 Other assets'!$N$6:$N$149)","v":0},{"$f":"SUMPRODUCT(('C.5 Other assets'!$M$6:$M$149='C. Cost data'!X$4)*('C.5 Other assets'!$L$6:$L$149='C. Cost data'!$C52)*'C.5 Other assets'!$N$6:$N$149)","v":0},{"$f":"SUMPRODUCT(('C.5 Other assets'!$M$6:$M$149='C. Cost data'!Y$4)*('C.5 Other assets'!$L$6:$L$149='C. Cost data'!$C52)*'C.5 Other assets'!$N$6:$N$149)","v":0},{"$f":"SUMPRODUCT(('C.2 Cost data pipe PE'!$V$6:$V$149='C. Cost data'!Z$4)*('C.2 Cost data pipe PE'!$U$6:$U$149='C. Cost data'!$C52)*'C.2 Cost data pipe PE'!$W$6:$W$149)","v":0},{"$f":"SUMPRODUCT(('C.3 Cost data pipe cath'!$V$6:$V$149='C. Cost data'!AA$4)*('C.3 Cost data pipe cath'!$U$6:$U$149='C. Cost data'!$C52)*'C.3 Cost data pipe cath'!$W$6:$W$149)","v":0},{"$f":"SUMPRODUCT(('C.5 Other assets'!$M$6:$M$149='C. Cost data'!AB$4)*('C.5 Other assets'!$L$6:$L$149='C. Cost data'!$C52)*'C.5 Other assets'!$N$6:$N$149)","v":0},{"$f":"SUMPRODUCT(('C.5 Other assets'!$M$6:$M$149='C. Cost data'!AC$4)*('C.5 Other assets'!$L$6:$L$149='C. Cost data'!$C52)*'C.5 Other assets'!$N$6:$N$149)","v":0},{"$f":"SUMPRODUCT(('C.5 Other assets'!$M$6:$M$149='C. Cost data'!AD$4)*('C.5 Other assets'!$L$6:$L$149='C. Cost data'!$C52)*'C.5 Other assets'!$N$6:$N$149)","v":0},{"$f":"SUMPRODUCT(('C.5 Other assets'!$M$6:$M$149='C. Cost data'!AE$4)*('C.5 Other assets'!$L$6:$L$149='C. Cost data'!$C52)*'C.5 Other assets'!$N$6:$N$149)","v":0},{"$f":"SUMPRODUCT(('C.5 Other assets'!$M$6:$M$149='C. Cost data'!AF$4)*('C.5 Other assets'!$L$6:$L$149='C. Cost data'!$C52)*'C.5 Other assets'!$N$6:$N$149)","v":0},{"$f":"SUMPRODUCT(('C.5 Other assets'!$M$6:$M$149='C. Cost data'!AG$4)*('C.5 Other assets'!$L$6:$L$149='C. Cost data'!$C52)*'C.5 Other assets'!$N$6:$N$149)","v":0},{"$f":"SUMPRODUCT(('C.5 Other assets'!$M$6:$M$149='C. Cost data'!AH$4)*('C.5 Other assets'!$L$6:$L$149='C. Cost data'!$C52)*'C.5 Other assets'!$N$6:$N$149)","v":0},{"$f":"SUMPRODUCT(('C.5 Other assets'!$M$6:$M$149='C. Cost data'!AI$4)*('C.5 Other assets'!$L$6:$L$149='C. Cost data'!$C52)*'C.5 Other assets'!$N$6:$N$149)","v":0},{"$f":"SUMPRODUCT(('C.5 Other assets'!$M$6:$M$149='C. Cost data'!AJ$4)*('C.5 Other assets'!$L$6:$L$149='C. Cost data'!$C52)*'C.5 Other assets'!$N$6:$N$149)","v":0},{"$f":"SUMPRODUCT(('C.5 Other assets'!$M$6:$M$149='C. Cost data'!AK$4)*('C.5 Other assets'!$L$6:$L$149='C. Cost data'!$C52)*'C.5 Other assets'!$N$6:$N$149)","v":0},{"$f":"SUMPRODUCT(('C.5 Other assets'!$M$6:$M$149='C. Cost data'!AL$4)*('C.5 Other assets'!$L$6:$L$149='C. Cost data'!$C52)*'C.5 Other assets'!$N$6:$N$149)","v":0},{"$f":"SUMPRODUCT(('C.4 Cost control equip'!$O$6:$O$149='C. Cost data'!AM$4)*('C.4 Cost control equip'!$N$6:$N$149='C. Cost data'!$C52)*'C.4 Cost control equip'!$P$6:$P$149)","v":0},{"$f":"SUMPRODUCT(('C.5 Other assets'!$M$6:$M$149='C. Cost data'!AN$4)*('C.5 Other assets'!$L$6:$L$149='C. Cost data'!$C52)*'C.5 Other assets'!$N$6:$N$149)","v":0},{"$f":"SUMPRODUCT(('C.5 Other assets'!$M$6:$M$149='C. Cost data'!AO$4)*('C.5 Other assets'!$L$6:$L$149='C. Cost data'!$C52)*'C.5 Other assets'!$N$6:$N$149)","v":0},{"$f":"SUMPRODUCT(('C.5 Other assets'!$M$6:$M$149='C. Cost data'!AP$4)*('C.5 Other assets'!$L$6:$L$149='C. Cost data'!$C52)*'C.5 Other assets'!$N$6:$N$149)","v":0},{"$f":"SUMPRODUCT(('C.5 Other assets'!$M$6:$M$149='C. Cost data'!AQ$4)*('C.5 Other assets'!$L$6:$L$149='C. Cost data'!$C52)*'C.5 Other assets'!$N$6:$N$149)","v":0},{"$f":"SUMPRODUCT(('C.5 Other assets'!$M$6:$M$149='C. Cost data'!AR$4)*('C.5 Other assets'!$L$6:$L$149='C. Cost data'!$C52)*'C.5 Other assets'!$N$6:$N$149)","v":0},{"$f":"SUMPRODUCT(('C.5 Other assets'!$M$6:$M$149='C. Cost data'!AS$4)*('C.5 Other assets'!$L$6:$L$149='C. Cost data'!$C52)*'C.5 Other assets'!$N$6:$N$149)","v":0}]
[null,"Assets under construction 2031 – disposals/reclassifications",2031,0,{"$f":"SUMPRODUCT(('C.5 Other assets'!$M$6:$M$149='C. Cost data'!E$4)*('C.5 Other assets'!$L$6:$L$149='C. Cost data'!$C53)*'C.5 Other assets'!$O$6:$O$149)","v":0},{"$f":"SUMPRODUCT(('C.5 Other assets'!$M$6:$M$149='C. Cost data'!F$4)*('C.5 Other assets'!$L$6:$L$149='C. Cost data'!$C53)*'C.5 Other assets'!$O$6:$O$149)","v":0},{"$f":"SUMPRODUCT(('C.5 Other assets'!$M$6:$M$149='C. Cost data'!G$4)*('C.5 Other assets'!$L$6:$L$149='C. Cost data'!$C53)*'C.5 Other assets'!$O$6:$O$149)","v":0},{"$f":"SUMPRODUCT(('C.5 Other assets'!$M$6:$M$149='C. Cost data'!H$4)*('C.5 Other assets'!$L$6:$L$149='C. Cost data'!$C53)*'C.5 Other assets'!$O$6:$O$149)","v":0},{"$f":"SUMPRODUCT(('C.5 Other assets'!$M$6:$M$149='C. Cost data'!I$4)*('C.5 Other assets'!$L$6:$L$149='C. Cost data'!$C53)*'C.5 Other assets'!$O$6:$O$149)","v":0},{"$f":"SUMPRODUCT(('C.5 Other assets'!$M$6:$M$149='C. Cost data'!J$4)*('C.5 Other assets'!$L$6:$L$149='C. Cost data'!$C53)*'C.5 Other assets'!$O$6:$O$149)","v":0},{"$f":"SUMPRODUCT(('C.5 Other assets'!$M$6:$M$149='C. Cost data'!K$4)*('C.5 Other assets'!$L$6:$L$149='C. Cost data'!$C53)*'C.5 Other assets'!$O$6:$O$149)","v":0},{"$f":"SUMPRODUCT(('C.5 Other assets'!$M$6:$M$149='C. Cost data'!L$4)*('C.5 Other assets'!$L$6:$L$149='C. Cost data'!$C53)*'C.5 Other assets'!$O$6:$O$149)","v":0},{"$f":"SUMPRODUCT(('C.5 Other assets'!$M$6:$M$149='C. Cost data'!M$4)*('C.5 Other assets'!$L$6:$L$149='C. Cost data'!$C53)*'C.5 Other assets'!$O$6:$O$149)","v":0},{"$f":"SUMPRODUCT(('C.5 Other assets'!$M$6:$M$149='C. Cost data'!N$4)*('C.5 Other assets'!$L$6:$L$149='C. Cost data'!$C53)*'C.5 Other assets'!$O$6:$O$149)","v":0},{"$f":"SUMPRODUCT(('C.5 Other assets'!$M$6:$M$149='C. Cost data'!O$4)*('C.5 Other assets'!$L$6:$L$149='C. Cost data'!$C53)*'C.5 Other assets'!$O$6:$O$149)","v":0},{"$f":"SUMPRODUCT(('C.5 Other assets'!$M$6:$M$149='C. Cost data'!P$4)*('C.5 Other assets'!$L$6:$L$149='C. Cost data'!$C53)*'C.5 Other assets'!$O$6:$O$149)","v":0},{"$f":"SUMPRODUCT(('C.5 Other assets'!$M$6:$M$149='C. Cost data'!Q$4)*('C.5 Other assets'!$L$6:$L$149='C. Cost data'!$C53)*'C.5 Other assets'!$O$6:$O$149)","v":0},{"$f":"SUMPRODUCT(('C.1 Cost data compression'!$O$6:$O$149='C. Cost data'!R$4)*('C.1 Cost data compression'!$N$6:$N$149='C. Cost data'!$C53)*'C.1 Cost data compression'!$Q$6:$Q$149)","v":0},{"$f":"SUMPRODUCT(('C.5 Other assets'!$M$6:$M$149='C. Cost data'!S$4)*('C.5 Other assets'!$L$6:$L$149='C. Cost data'!$C53)*'C.5 Other assets'!$O$6:$O$149)","v":0},{"$f":"SUMPRODUCT(('C.5 Other assets'!$M$6:$M$149='C. Cost data'!T$4)*('C.5 Other assets'!$L$6:$L$149='C. Cost data'!$C53)*'C.5 Other assets'!$O$6:$O$149)","v":0},{"$f":"SUMPRODUCT(('C.5 Other assets'!$M$6:$M$149='C. Cost data'!U$4)*('C.5 Other assets'!$L$6:$L$149='C. Cost data'!$C53)*'C.5 Other assets'!$O$6:$O$149)","v":0},{"$f":"SUMPRODUCT(('C.5 Other assets'!$M$6:$M$149='C. Cost data'!V$4)*('C.5 Other assets'!$L$6:$L$149='C. Cost data'!$C53)*'C.5 Other assets'!$O$6:$O$149)","v":0},{"$f":"SUMPRODUCT(('C.5 Other assets'!$M$6:$M$149='C. Cost data'!W$4)*('C.5 Other assets'!$L$6:$L$149='C. Cost data'!$C53)*'C.5 Other assets'!$O$6:$O$149)","v":0},{"$f":"SUMPRODUCT(('C.5 Other assets'!$M$6:$M$149='C. Cost data'!X$4)*('C.5 Other assets'!$L$6:$L$149='C. Cost data'!$C53)*'C.5 Other assets'!$O$6:$O$149)","v":0},{"$f":"SUMPRODUCT(('C.5 Other assets'!$M$6:$M$149='C. Cost data'!Y$4)*('C.5 Other assets'!$L$6:$L$149='C. Cost data'!$C53)*'C.5 Other assets'!$O$6:$O$149)","v":0},{"$f":"SUMPRODUCT(('C.2 Cost data pipe PE'!$V$6:$V$149='C. Cost data'!Z$4)*('C.2 Cost data pipe PE'!$U$6:$U$149='C. Cost data'!$C53)*'C.2 Cost data pipe PE'!$X$6:$X$149)","v":0},{"$f":"SUMPRODUCT(('C.3 Cost data pipe cath'!$V$6:$V$149='C. Cost data'!AA$4)*('C.3 Cost data pipe cath'!$U$6:$U$149='C. Cost data'!$C53)*'C.3 Cost data pipe cath'!$X$6:$X$149)","v":0},{"$f":"SUMPRODUCT(('C.5 Other assets'!$M$6:$M$149='C. Cost data'!AB$4)*('C.5 Other assets'!$L$6:$L$149='C. Cost data'!$C53)*'C.5 Other assets'!$O$6:$O$149)","v":0},{"$f":"SUMPRODUCT(('C.5 Other assets'!$M$6:$M$149='C. Cost data'!AC$4)*('C.5 Other assets'!$L$6:$L$149='C. Cost data'!$C53)*'C.5 Other assets'!$O$6:$O$149)","v":0},{"$f":"SUMPRODUCT(('C.5 Other assets'!$M$6:$M$149='C. Cost data'!AD$4)*('C.5 Other assets'!$L$6:$L$149='C. Cost data'!$C53)*'C.5 Other assets'!$O$6:$O$149)","v":0},{"$f":"SUMPRODUCT(('C.5 Other assets'!$M$6:$M$149='C. Cost data'!AE$4)*('C.5 Other assets'!$L$6:$L$149='C. Cost data'!$C53)*'C.5 Other assets'!$O$6:$O$149)","v":0},{"$f":"SUMPRODUCT(('C.5 Other assets'!$M$6:$M$149='C. Cost data'!AF$4)*('C.5 Other assets'!$L$6:$L$149='C. Cost data'!$C53)*'C.5 Other assets'!$O$6:$O$149)","v":0},{"$f":"SUMPRODUCT(('C.5 Other assets'!$M$6:$M$149='C. Cost data'!AG$4)*('C.5 Other assets'!$L$6:$L$149='C. Cost data'!$C53)*'C.5 Other assets'!$O$6:$O$149)","v":0},{"$f":"SUMPRODUCT(('C.5 Other assets'!$M$6:$M$149='C. Cost data'!AH$4)*('C.5 Other assets'!$L$6:$L$149='C. Cost data'!$C53)*'C.5 Other assets'!$O$6:$O$149)","v":0},{"$f":"SUMPRODUCT(('C.5 Other assets'!$M$6:$M$149='C. Cost data'!AI$4)*('C.5 Other assets'!$L$6:$L$149='C. Cost data'!$C53)*'C.5 Other assets'!$O$6:$O$149)","v":0},{"$f":"SUMPRODUCT(('C.5 Other assets'!$M$6:$M$149='C. Cost data'!AJ$4)*('C.5 Other assets'!$L$6:$L$149='C. Cost data'!$C53)*'C.5 Other assets'!$O$6:$O$149)","v":0},{"$f":"SUMPRODUCT(('C.5 Other assets'!$M$6:$M$149='C. Cost data'!AK$4)*('C.5 Other assets'!$L$6:$L$149='C. Cost data'!$C53)*'C.5 Other assets'!$O$6:$O$149)","v":0},{"$f":"SUMPRODUCT(('C.5 Other assets'!$M$6:$M$149='C. Cost data'!AL$4)*('C.5 Other assets'!$L$6:$L$149='C. Cost data'!$C53)*'C.5 Other assets'!$O$6:$O$149)","v":0},{"$f":"SUMPRODUCT(('C.4 Cost control equip'!$O$6:$O$149='C. Cost data'!AM$4)*('C.4 Cost control equip'!$N$6:$N$149='C. Cost data'!$C53)*'C.4 Cost control equip'!$Q$6:$Q$149)","v":0},{"$f":"SUMPRODUCT(('C.5 Other assets'!$M$6:$M$149='C. Cost data'!AN$4)*('C.5 Other assets'!$L$6:$L$149='C. Cost data'!$C53)*'C.5 Other assets'!$O$6:$O$149)","v":0},{"$f":"SUMPRODUCT(('C.5 Other assets'!$M$6:$M$149='C. Cost data'!AO$4)*('C.5 Other assets'!$L$6:$L$149='C. Cost data'!$C53)*'C.5 Other assets'!$O$6:$O$149)","v":0},{"$f":"SUMPRODUCT(('C.5 Other assets'!$M$6:$M$149='C. Cost data'!AP$4)*('C.5 Other assets'!$L$6:$L$149='C. Cost data'!$C53)*'C.5 Other assets'!$O$6:$O$149)","v":0},{"$f":"SUMPRODUCT(('C.5 Other assets'!$M$6:$M$149='C. Cost data'!AQ$4)*('C.5 Other assets'!$L$6:$L$149='C. Cost data'!$C53)*'C.5 Other assets'!$O$6:$O$149)","v":0},{"$f":"SUMPRODUCT(('C.5 Other assets'!$M$6:$M$149='C. Cost data'!AR$4)*('C.5 Other assets'!$L$6:$L$149='C. Cost data'!$C53)*'C.5 Other assets'!$O$6:$O$149)","v":0},{"$f":"SUMPRODUCT(('C.5 Other assets'!$M$6:$M$149='C. Cost data'!AS$4)*('C.5 Other assets'!$L$6:$L$149='C. Cost data'!$C53)*'C.5 Other assets'!$O$6:$O$149)","v":0}]
[null,"Assets under construction 2032 – opening balance",2032,0,{"$f":"E51+E52-E53","v":0},0,0,0,0,0,0,0,0,0,0,0,0,0,0,0,0,0,0,0,0,0,0,0,0,0,0,0,0,0,0,0,0,0,0,0,0,0,0,0,0]
[null,"Assets under construction 2032 – additions",2032,0,{"$f":"SUMPRODUCT(('C.5 Other assets'!$M$6:$M$149='C. Cost data'!E$4)*('C.5 Other assets'!$L$6:$L$149='C. Cost data'!$C55)*'C.5 Other assets'!$N$6:$N$149)","v":0},{"$f":"SUMPRODUCT(('C.5 Other assets'!$M$6:$M$149='C. Cost data'!F$4)*('C.5 Other assets'!$L$6:$L$149='C. Cost data'!$C55)*'C.5 Other assets'!$N$6:$N$149)","v":0},{"$f":"SUMPRODUCT(('C.5 Other assets'!$M$6:$M$149='C. Cost data'!G$4)*('C.5 Other assets'!$L$6:$L$149='C. Cost data'!$C55)*'C.5 Other assets'!$N$6:$N$149)","v":0},{"$f":"SUMPRODUCT(('C.5 Other assets'!$M$6:$M$149='C. Cost data'!H$4)*('C.5 Other assets'!$L$6:$L$149='C. Cost data'!$C55)*'C.5 Other assets'!$N$6:$N$149)","v":0},{"$f":"SUMPRODUCT(('C.5 Other assets'!$M$6:$M$149='C. Cost data'!I$4)*('C.5 Other assets'!$L$6:$L$149='C. Cost data'!$C55)*'C.5 Other assets'!$N$6:$N$149)","v":0},{"$f":"SUMPRODUCT(('C.5 Other assets'!$M$6:$M$149='C. Cost data'!J$4)*('C.5 Other assets'!$L$6:$L$149='C. Cost data'!$C55)*'C.5 Other assets'!$N$6:$N$149)","v":0},{"$f":"SUMPRODUCT(('C.5 Other assets'!$M$6:$M$149='C. Cost data'!K$4)*('C.5 Other assets'!$L$6:$L$149='C. Cost data'!$C55)*'C.5 Other assets'!$N$6:$N$149)","v":0},{"$f":"SUMPRODUCT(('C.5 Other assets'!$M$6:$M$149='C. Cost data'!L$4)*('C.5 Other assets'!$L$6:$L$149='C. Cost data'!$C55)*'C.5 Other assets'!$N$6:$N$149)","v":0},{"$f":"SUMPRODUCT(('C.5 Other assets'!$M$6:$M$149='C. Cost data'!M$4)*('C.5 Other assets'!$L$6:$L$149='C. Cost data'!$C55)*'C.5 Other assets'!$N$6:$N$149)","v":0},{"$f":"SUMPRODUCT(('C.5 Other assets'!$M$6:$M$149='C. Cost data'!N$4)*('C.5 Other assets'!$L$6:$L$149='C. Cost data'!$C55)*'C.5 Other assets'!$N$6:$N$149)","v":0},{"$f":"SUMPRODUCT(('C.5 Other assets'!$M$6:$M$149='C. Cost data'!O$4)*('C.5 Other assets'!$L$6:$L$149='C. Cost data'!$C55)*'C.5 Other assets'!$N$6:$N$149)","v":0},{"$f":"SUMPRODUCT(('C.5 Other assets'!$M$6:$M$149='C. Cost data'!P$4)*('C.5 Other assets'!$L$6:$L$149='C. Cost data'!$C55)*'C.5 Other assets'!$N$6:$N$149)","v":0},{"$f":"SUMPRODUCT(('C.5 Other assets'!$M$6:$M$149='C. Cost data'!Q$4)*('C.5 Other assets'!$L$6:$L$149='C. Cost data'!$C55)*'C.5 Other assets'!$N$6:$N$149)","v":0},{"$f":"SUMPRODUCT(('C.1 Cost data compression'!$O$6:$O$149='C. Cost data'!R$4)*('C.1 Cost data compression'!$N$6:$N$149='C. Cost data'!$C55)*'C.1 Cost data compression'!$P$6:$P$149)","v":0},{"$f":"SUMPRODUCT(('C.5 Other assets'!$M$6:$M$149='C. Cost data'!S$4)*('C.5 Other assets'!$L$6:$L$149='C. Cost data'!$C55)*'C.5 Other assets'!$N$6:$N$149)","v":0},{"$f":"SUMPRODUCT(('C.5 Other assets'!$M$6:$M$149='C. Cost data'!T$4)*('C.5 Other assets'!$L$6:$L$149='C. Cost data'!$C55)*'C.5 Other assets'!$N$6:$N$149)","v":0},{"$f":"SUMPRODUCT(('C.5 Other assets'!$M$6:$M$149='C. Cost data'!U$4)*('C.5 Other assets'!$L$6:$L$149='C. Cost data'!$C55)*'C.5 Other assets'!$N$6:$N$149)","v":0},{"$f":"SUMPRODUCT(('C.5 Other assets'!$M$6:$M$149='C. Cost data'!V$4)*('C.5 Other assets'!$L$6:$L$149='C. Cost data'!$C55)*'C.5 Other assets'!$N$6:$N$149)","v":0},{"$f":"SUMPRODUCT(('C.5 Other assets'!$M$6:$M$149='C. Cost data'!W$4)*('C.5 Other assets'!$L$6:$L$149='C. Cost data'!$C55)*'C.5 Other assets'!$N$6:$N$149)","v":0},{"$f":"SUMPRODUCT(('C.5 Other assets'!$M$6:$M$149='C. Cost data'!X$4)*('C.5 Other assets'!$L$6:$L$149='C. Cost data'!$C55)*'C.5 Other assets'!$N$6:$N$149)","v":0},{"$f":"SUMPRODUCT(('C.5 Other assets'!$M$6:$M$149='C. Cost data'!Y$4)*('C.5 Other assets'!$L$6:$L$149='C. Cost data'!$C55)*'C.5 Other assets'!$N$6:$N$149)","v":0},{"$f":"SUMPRODUCT(('C.2 Cost data pipe PE'!$V$6:$V$149='C. Cost data'!Z$4)*('C.2 Cost data pipe PE'!$U$6:$U$149='C. Cost data'!$C55)*'C.2 Cost data pipe PE'!$W$6:$W$149)","v":0},{"$f":"SUMPRODUCT(('C.3 Cost data pipe cath'!$V$6:$V$149='C. Cost data'!AA$4)*('C.3 Cost data pipe cath'!$U$6:$U$149='C. Cost data'!$C55)*'C.3 Cost data pipe cath'!$W$6:$W$149)","v":0},{"$f":"SUMPRODUCT(('C.5 Other assets'!$M$6:$M$149='C. Cost data'!AB$4)*('C.5 Other assets'!$L$6:$L$149='C. Cost data'!$C55)*'C.5 Other assets'!$N$6:$N$149)","v":0},{"$f":"SUMPRODUCT(('C.5 Other assets'!$M$6:$M$149='C. Cost data'!AC$4)*('C.5 Other assets'!$L$6:$L$149='C. Cost data'!$C55)*'C.5 Other assets'!$N$6:$N$149)","v":0},{"$f":"SUMPRODUCT(('C.5 Other assets'!$M$6:$M$149='C. Cost data'!AD$4)*('C.5 Other assets'!$L$6:$L$149='C. Cost data'!$C55)*'C.5 Other assets'!$N$6:$N$149)","v":0},{"$f":"SUMPRODUCT(('C.5 Other assets'!$M$6:$M$149='C. Cost data'!AE$4)*('C.5 Other assets'!$L$6:$L$149='C. Cost data'!$C55)*'C.5 Other assets'!$N$6:$N$149)","v":0},{"$f":"SUMPRODUCT(('C.5 Other assets'!$M$6:$M$149='C. Cost data'!AF$4)*('C.5 Other assets'!$L$6:$L$149='C. Cost data'!$C55)*'C.5 Other assets'!$N$6:$N$149)","v":0},{"$f":"SUMPRODUCT(('C.5 Other assets'!$M$6:$M$149='C. Cost data'!AG$4)*('C.5 Other assets'!$L$6:$L$149='C. Cost data'!$C55)*'C.5 Other assets'!$N$6:$N$149)","v":0},{"$f":"SUMPRODUCT(('C.5 Other assets'!$M$6:$M$149='C. Cost data'!AH$4)*('C.5 Other assets'!$L$6:$L$149='C. Cost data'!$C55)*'C.5 Other assets'!$N$6:$N$149)","v":0},{"$f":"SUMPRODUCT(('C.5 Other assets'!$M$6:$M$149='C. Cost data'!AI$4)*('C.5 Other assets'!$L$6:$L$149='C. Cost data'!$C55)*'C.5 Other assets'!$N$6:$N$149)","v":0},{"$f":"SUMPRODUCT(('C.5 Other assets'!$M$6:$M$149='C. Cost data'!AJ$4)*('C.5 Other assets'!$L$6:$L$149='C. Cost data'!$C55)*'C.5 Other assets'!$N$6:$N$149)","v":0},{"$f":"SUMPRODUCT(('C.5 Other assets'!$M$6:$M$149='C. Cost data'!AK$4)*('C.5 Other assets'!$L$6:$L$149='C. Cost data'!$C55)*'C.5 Other assets'!$N$6:$N$149)","v":0},{"$f":"SUMPRODUCT(('C.5 Other assets'!$M$6:$M$149='C. Cost data'!AL$4)*('C.5 Other assets'!$L$6:$L$149='C. Cost data'!$C55)*'C.5 Other assets'!$N$6:$N$149)","v":0},{"$f":"SUMPRODUCT(('C.4 Cost control equip'!$O$6:$O$149='C. Cost data'!AM$4)*('C.4 Cost control equip'!$N$6:$N$149='C. Cost data'!$C55)*'C.4 Cost control equip'!$P$6:$P$149)","v":0},{"$f":"SUMPRODUCT(('C.5 Other assets'!$M$6:$M$149='C. Cost data'!AN$4)*('C.5 Other assets'!$L$6:$L$149='C. Cost data'!$C55)*'C.5 Other assets'!$N$6:$N$149)","v":0},{"$f":"SUMPRODUCT(('C.5 Other assets'!$M$6:$M$149='C. Cost data'!AO$4)*('C.5 Other assets'!$L$6:$L$149='C. Cost data'!$C55)*'C.5 Other assets'!$N$6:$N$149)","v":0},{"$f":"SUMPRODUCT(('C.5 Other assets'!$M$6:$M$149='C. Cost data'!AP$4)*('C.5 Other assets'!$L$6:$L$149='C. Cost data'!$C55)*'C.5 Other assets'!$N$6:$N$149)","v":0},{"$f":"SUMPRODUCT(('C.5 Other assets'!$M$6:$M$149='C. Cost data'!AQ$4)*('C.5 Other assets'!$L$6:$L$149='C. Cost data'!$C55)*'C.5 Other assets'!$N$6:$N$149)","v":0},{"$f":"SUMPRODUCT(('C.5 Other assets'!$M$6:$M$149='C. Cost data'!AR$4)*('C.5 Other assets'!$L$6:$L$149='C. Cost data'!$C55)*'C.5 Other assets'!$N$6:$N$149)","v":0},{"$f":"SUMPRODUCT(('C.5 Other assets'!$M$6:$M$149='C. Cost data'!AS$4)*('C.5 Other assets'!$L$6:$L$149='C. Cost data'!$C55)*'C.5 Other assets'!$N$6:$N$149)","v":0}]
[null,"Assets under construction 2032 – disposals/reclassifications",2032,0,{"$f":"SUMPRODUCT(('C.5 Other assets'!$M$6:$M$149='C. Cost data'!E$4)*('C.5 Other assets'!$L$6:$L$149='C. Cost data'!$C56)*'C.5 Other assets'!$O$6:$O$149)","v":0},{"$f":"SUMPRODUCT(('C.5 Other assets'!$M$6:$M$149='C. Cost data'!F$4)*('C.5 Other assets'!$L$6:$L$149='C. Cost data'!$C56)*'C.5 Other assets'!$O$6:$O$149)","v":0},{"$f":"SUMPRODUCT(('C.5 Other assets'!$M$6:$M$149='C. Cost data'!G$4)*('C.5 Other assets'!$L$6:$L$149='C. Cost data'!$C56)*'C.5 Other assets'!$O$6:$O$149)","v":0},{"$f":"SUMPRODUCT(('C.5 Other assets'!$M$6:$M$149='C. Cost data'!H$4)*('C.5 Other assets'!$L$6:$L$149='C. Cost data'!$C56)*'C.5 Other assets'!$O$6:$O$149)","v":0},{"$f":"SUMPRODUCT(('C.5 Other assets'!$M$6:$M$149='C. Cost data'!I$4)*('C.5 Other assets'!$L$6:$L$149='C. Cost data'!$C56)*'C.5 Other assets'!$O$6:$O$149)","v":0},{"$f":"SUMPRODUCT(('C.5 Other assets'!$M$6:$M$149='C. Cost data'!J$4)*('C.5 Other assets'!$L$6:$L$149='C. Cost data'!$C56)*'C.5 Other assets'!$O$6:$O$149)","v":0},{"$f":"SUMPRODUCT(('C.5 Other assets'!$M$6:$M$149='C. Cost data'!K$4)*('C.5 Other assets'!$L$6:$L$149='C. Cost data'!$C56)*'C.5 Other assets'!$O$6:$O$149)","v":0},{"$f":"SUMPRODUCT(('C.5 Other assets'!$M$6:$M$149='C. Cost data'!L$4)*('C.5 Other assets'!$L$6:$L$149='C. Cost data'!$C56)*'C.5 Other assets'!$O$6:$O$149)","v":0},{"$f":"SUMPRODUCT(('C.5 Other assets'!$M$6:$M$149='C. Cost data'!M$4)*('C.5 Other assets'!$L$6:$L$149='C. Cost data'!$C56)*'C.5 Other assets'!$O$6:$O$149)","v":0},{"$f":"SUMPRODUCT(('C.5 Other assets'!$M$6:$M$149='C. Cost data'!N$4)*('C.5 Other assets'!$L$6:$L$149='C. Cost data'!$C56)*'C.5 Other assets'!$O$6:$O$149)","v":0},{"$f":"SUMPRODUCT(('C.5 Other assets'!$M$6:$M$149='C. Cost data'!O$4)*('C.5 Other assets'!$L$6:$L$149='C. Cost data'!$C56)*'C.5 Other assets'!$O$6:$O$149)","v":0},{"$f":"SUMPRODUCT(('C.5 Other assets'!$M$6:$M$149='C. Cost data'!P$4)*('C.5 Other assets'!$L$6:$L$149='C. Cost data'!$C56)*'C.5 Other assets'!$O$6:$O$149)","v":0},{"$f":"SUMPRODUCT(('C.5 Other assets'!$M$6:$M$149='C. Cost data'!Q$4)*('C.5 Other assets'!$L$6:$L$149='C. Cost data'!$C56)*'C.5 Other assets'!$O$6:$O$149)","v":0},{"$f":"SUMPRODUCT(('C.1 Cost data compression'!$O$6:$O$149='C. Cost data'!R$4)*('C.1 Cost data compression'!$N$6:$N$149='C. Cost data'!$C56)*'C.1 Cost data compression'!$Q$6:$Q$149)","v":0},{"$f":"SUMPRODUCT(('C.5 Other assets'!$M$6:$M$149='C. Cost data'!S$4)*('C.5 Other assets'!$L$6:$L$149='C. Cost data'!$C56)*'C.5 Other assets'!$O$6:$O$149)","v":0},{"$f":"SUMPRODUCT(('C.5 Other assets'!$M$6:$M$149='C. Cost data'!T$4)*('C.5 Other assets'!$L$6:$L$149='C. Cost data'!$C56)*'C.5 Other assets'!$O$6:$O$149)","v":0},{"$f":"SUMPRODUCT(('C.5 Other assets'!$M$6:$M$149='C. Cost data'!U$4)*('C.5 Other assets'!$L$6:$L$149='C. Cost data'!$C56)*'C.5 Other assets'!$O$6:$O$149)","v":0},{"$f":"SUMPRODUCT(('C.5 Other assets'!$M$6:$M$149='C. Cost data'!V$4)*('C.5 Other assets'!$L$6:$L$149='C. Cost data'!$C56)*'C.5 Other assets'!$O$6:$O$149)","v":0},{"$f":"SUMPRODUCT(('C.5 Other assets'!$M$6:$M$149='C. Cost data'!W$4)*('C.5 Other assets'!$L$6:$L$149='C. Cost data'!$C56)*'C.5 Other assets'!$O$6:$O$149)","v":0},{"$f":"SUMPRODUCT(('C.5 Other assets'!$M$6:$M$149='C. Cost data'!X$4)*('C.5 Other assets'!$L$6:$L$149='C. Cost data'!$C56)*'C.5 Other assets'!$O$6:$O$149)","v":0},{"$f":"SUMPRODUCT(('C.5 Other assets'!$M$6:$M$149='C. Cost data'!Y$4)*('C.5 Other assets'!$L$6:$L$149='C. Cost data'!$C56)*'C.5 Other assets'!$O$6:$O$149)","v":0},{"$f":"SUMPRODUCT(('C.2 Cost data pipe PE'!$V$6:$V$149='C. Cost data'!Z$4)*('C.2 Cost data pipe PE'!$U$6:$U$149='C. Cost data'!$C56)*'C.2 Cost data pipe PE'!$X$6:$X$149)","v":0},{"$f":"SUMPRODUCT(('C.3 Cost data pipe cath'!$V$6:$V$149='C. Cost data'!AA$4)*('C.3 Cost data pipe cath'!$U$6:$U$149='C. Cost data'!$C56)*'C.3 Cost data pipe cath'!$X$6:$X$149)","v":0},{"$f":"SUMPRODUCT(('C.5 Other assets'!$M$6:$M$149='C. Cost data'!AB$4)*('C.5 Other assets'!$L$6:$L$149='C. Cost data'!$C56)*'C.5 Other assets'!$O$6:$O$149)","v":0},{"$f":"SUMPRODUCT(('C.5 Other assets'!$M$6:$M$149='C. Cost data'!AC$4)*('C.5 Other assets'!$L$6:$L$149='C. Cost data'!$C56)*'C.5 Other assets'!$O$6:$O$149)","v":0},{"$f":"SUMPRODUCT(('C.5 Other assets'!$M$6:$M$149='C. Cost data'!AD$4)*('C.5 Other assets'!$L$6:$L$149='C. Cost data'!$C56)*'C.5 Other assets'!$O$6:$O$149)","v":0},{"$f":"SUMPRODUCT(('C.5 Other assets'!$M$6:$M$149='C. Cost data'!AE$4)*('C.5 Other assets'!$L$6:$L$149='C. Cost data'!$C56)*'C.5 Other assets'!$O$6:$O$149)","v":0},{"$f":"SUMPRODUCT(('C.5 Other assets'!$M$6:$M$149='C. Cost data'!AF$4)*('C.5 Other assets'!$L$6:$L$149='C. Cost data'!$C56)*'C.5 Other assets'!$O$6:$O$149)","v":0},{"$f":"SUMPRODUCT(('C.5 Other assets'!$M$6:$M$149='C. Cost data'!AG$4)*('C.5 Other assets'!$L$6:$L$149='C. Cost data'!$C56)*'C.5 Other assets'!$O$6:$O$149)","v":0},{"$f":"SUMPRODUCT(('C.5 Other assets'!$M$6:$M$149='C. Cost data'!AH$4)*('C.5 Other assets'!$L$6:$L$149='C. Cost data'!$C56)*'C.5 Other assets'!$O$6:$O$149)","v":0},{"$f":"SUMPRODUCT(('C.5 Other assets'!$M$6:$M$149='C. Cost data'!AI$4)*('C.5 Other assets'!$L$6:$L$149='C. Cost data'!$C56)*'C.5 Other assets'!$O$6:$O$149)","v":0},{"$f":"SUMPRODUCT(('C.5 Other assets'!$M$6:$M$149='C. Cost data'!AJ$4)*('C.5 Other assets'!$L$6:$L$149='C. Cost data'!$C56)*'C.5 Other assets'!$O$6:$O$149)","v":0},{"$f":"SUMPRODUCT(('C.5 Other assets'!$M$6:$M$149='C. Cost data'!AK$4)*('C.5 Other assets'!$L$6:$L$149='C. Cost data'!$C56)*'C.5 Other assets'!$O$6:$O$149)","v":0},{"$f":"SUMPRODUCT(('C.5 Other assets'!$M$6:$M$149='C. Cost data'!AL$4)*('C.5 Other assets'!$L$6:$L$149='C. Cost data'!$C56)*'C.5 Other assets'!$O$6:$O$149)","v":0},{"$f":"SUMPRODUCT(('C.4 Cost control equip'!$O$6:$O$149='C. Cost data'!AM$4)*('C.4 Cost control equip'!$N$6:$N$149='C. Cost data'!$C56)*'C.4 Cost control equip'!$Q$6:$Q$149)","v":0},{"$f":"SUMPRODUCT(('C.5 Other assets'!$M$6:$M$149='C. Cost data'!AN$4)*('C.5 Other assets'!$L$6:$L$149='C. Cost data'!$C56)*'C.5 Other assets'!$O$6:$O$149)","v":0},{"$f":"SUMPRODUCT(('C.5 Other assets'!$M$6:$M$149='C. Cost data'!AO$4)*('C.5 Other assets'!$L$6:$L$149='C. Cost data'!$C56)*'C.5 Other assets'!$O$6:$O$149)","v":0},{"$f":"SUMPRODUCT(('C.5 Other assets'!$M$6:$M$149='C. Cost data'!AP$4)*('C.5 Other assets'!$L$6:$L$149='C. Cost data'!$C56)*'C.5 Other assets'!$O$6:$O$149)","v":0},{"$f":"SUMPRODUCT(('C.5 Other assets'!$M$6:$M$149='C. Cost data'!AQ$4)*('C.5 Other assets'!$L$6:$L$149='C. Cost data'!$C56)*'C.5 Other assets'!$O$6:$O$149)","v":0},{"$f":"SUMPRODUCT(('C.5 Other assets'!$M$6:$M$149='C. Cost data'!AR$4)*('C.5 Other assets'!$L$6:$L$149='C. Cost data'!$C56)*'C.5 Other assets'!$O$6:$O$149)","v":0},{"$f":"SUMPRODUCT(('C.5 Other assets'!$M$6:$M$149='C. Cost data'!AS$4)*('C.5 Other assets'!$L$6:$L$149='C. Cost data'!$C56)*'C.5 Other assets'!$O$6:$O$149)","v":0}]

{"sheet":"Costs","index":15,"n_rows":1141,"n_cols":43,"rows_kept":1141,"cut":false,"hidden":false,"merged":[]}
["Additions of fixed assets per year",null,1,2,3,4,5,6,7,8,9,10,11,12,13,14,15,16,17,18,19,20,21,22,23,24,25,26,27,28,29,30,31,32,33,34,35,36,37,38,39,40,41]
[null,"Total","Properties","Property facilities, structures for transport system","Operating buildings","Administrative buildings","Track systems, wagons","Business equipment (without IT/tools/devices)","Tools/devices","Storage facilities","Hardware","Software","Light vehicles","Heavy vehicles","Gas holders","Natural gas compression","Gas purifiers","Piping and fittings","Gas measuring equipment","Safety equipment","Control and energy technology","Ancillary facilities","Buildings, transport routes","Steel pipelines – encapsulated in PE","Steel pipelines – cathodic protection","Steel pipelines – bituminised","Grey cast iron (> DN 150)","Polyethylene (PE - HD)","Polyvinyl chloride (PVC)","Polyvinyl chloride (PVC)","Fittings","Pig traps","Safety equipment","Gas meters of distribution","Service regulators/meter regulators","Metering equipment","Control equipment","Safety equipment","Control and energy technology","Compressors in gas-mixing systems by duration of use","Ancillary facilities","Buildings","Remote control equipment"]
[2016,{"$f":"SUM(C3:AQ3)","v":0},{"$f":"SUMPRODUCT((AbschreibungAGr=C$1)*(Aktivierungsjahr=$A3)*(AbschreibungAHK))","v":0},0,0,0,0,0,0,0,0,0,{"$f":"SUMPRODUCT((AbschreibungAGr=M$1)*(Aktivierungsjahr=$A3)*(AbschreibungAHK))","v":0},0,0,0,0,0,0,0,0,0,{"$f":"SUMPRODUCT((AbschreibungAGr=W$1)*(Aktivierungsjahr=$A3)*(AbschreibungAHK))","v":0},0,0,0,0,0,0,0,0,0,{"$f":"SUMPRODUCT((AbschreibungAGr=AG$1)*(Aktivierungsjahr=$A3)*(AbschreibungAHK))","v":0},0,0,0,0,0,0,0,0,0,0]
[2017,0,0,0,0,0,0,0,0,0,0,0,0,0,0,0,0,0,0,0,0,0,0,0,0,0,0,0,0,0,0,0,0,0,0,0,0,0,0,0,0,0,0]
[2018,0,0,0,0,0,0,0,0,0,0,0,0,0,0,0,0,0,0,0,0,0,0,0,0,0,0,0,0,0,0,0,0,0,0,0,0,0,0,0,0,0,0]
[2019,0,0,0,0,0,0,0,0,0,0,0,0,0,0,0,0,0,0,0,0,0,0,0,0,0,0,0,0,0,0,0,0,0,0,0,0,0,0,0,0,0,0]
[2020,0,0,0,0,0,0,0,0,0,0,0,0,0,0,0,0,0,0,0,0,0,0,0,0,0,0,0,0,0,0,0,0,0,0,0,0,0,0,0,0,0,0]
[2021,0,0,0,0,0,0,0,0,0,0,0,0,0,0,0,0,0,0,0,0,0,0,0,0,0,0,0,0,0,0,0,0,0,0,0,0,0,0,0,0,0,0]
[2022,0,0,0,0,0,0,0,0,0,0,0,0,0,0,0,0,0,0,0,0,0,0,0,0,0,0,0,0,0,0,0,0,0,0,0,0,0,0,0,0,0,0]
[2023,0,0,0,0,0,0,0,0,0,0,0,0,0,0,0,0,0,0,0,0,0,0,0,0,0,0,0,0,0,0,0,0,0,0,0,0,0,0,0,0,0,0]
[2024,0,0,0,0,0,0,0,0,0,0,0,0,0,0,0,0,0,0,0,0,0,0,0,0,0,0,0,0,0,0,0,0,0,0,0,0,0,0,0,0,0,0]
[2025,151000000,{"$f":"SUMPRODUCT((AbschreibungAGr=C$1)*(Aktivierungsjahr=$A12)*(AbschreibungAHK))","v":0},0,0,0,0,0,0,0,0,0,{"$f":"SUMPRODUCT((AbschreibungAGr=M$1)*(Aktivierungsjahr=$A12)*(AbschreibungAHK))","v":0},0,0,150000000,0,0,0,0,0,0,{"$f":"SUMPRODUCT((AbschreibungAGr=W$1)*(Aktivierungsjahr=$A12)*(AbschreibungAHK))","v":0},0,0,0,0,0,0,0,0,0,{"$f":"SUMPRODUCT((AbschreibungAGr=AG$1)*(Aktivierungsjahr=$A12)*(AbschreibungAHK))","v":0},0,0,1000000,0,0,0,0,0,0,0]
[2026,0,0,0,0,0,0,0,0,0,0,0,0,0,0,0,0,0,0,0,0,0,0,0,0,0,0,0,0,0,0,0,0,0,0,0,0,0,0,0,0,0,0]
[2027,0,0,0,0,0,0,0,0,0,0,0,0,0,0,0,0,0,0,0,0,0,0,0,0,0,0,0,0,0,0,0,0,0,0,0,0,0,0,0,0,0,0]
[2028,0,0,0,0,0,0,0,0,0,0,0,0,0,0,0,0,0,0,0,0,0,0,0,0,0,0,0,0,0,0,0,0,0,0,0,0,0,0,0,0,0,0]
[2029,0,0,0,0,0,0,0,0,0,0,0,0,0,0,0,0,0,0,0,0,0,0,0,0,0,0,0,0,0,0,0,0,0,0,0,0,0,0,0,0,0,0]
[2030,0,0,0,0,0,0,0,0,0,0,0,0,0,0,0,0,0,0,0,0,0,0,0,0,0,0,0,0,0,0,0,0,0,0,0,0,0,0,0,0,0,0]
[2031,0,0,0,0,0,0,0,0,0,0,0,0,0,0,0,0,0,0,0,0,0,0,0,0,0,0,0,0,0,0,0,0,0,0,0,0,0,0,0,0,0,0]
[2032,{"$f":"SUM(C19:AQ19)","v":0},0,0,0,0,0,0,0,0,0,0,0,0,0,0,0,0,0,0,0,0,0,0,0,0,0,0,0,0,0,0,0,0,0,0,0,0,0,0,0,0,0]
[2033,0,0,0,0,0,0,0,0,0,0,0,0,0,0,0,0,0,0,0,0,0,0,0,0,0,0,0,0,0,0,0,0,0,0,0,0,0,0,0,0,0,0]
[2034,0,0,0,0,0,0,0,0,0,0,0,0,0,0,0,0,0,0,0,0,0,0,0,0,0,0,0,0,0,0,0,0,0,0,0,0,0,0,0,0,0,0]
[2035,0,{"$f":"SUMPRODUCT((AbschreibungAGr=C$1)*(Aktivierungsjahr=$A22)*(AbschreibungAHK))","v":0},0,0,0,0,0,0,0,0,0,{"$f":"SUMPRODUCT((AbschreibungAGr=M$1)*(Aktivierungsjahr=$A22)*(AbschreibungAHK))","v":0},0,0,0,0,0,0,0,0,0,{"$f":"SUMPRODUCT((AbschreibungAGr=W$1)*(Aktivierungsjahr=$A22)*(AbschreibungAHK))","v":0},0,0,0,0,0,0,0,0,0,{"$f":"SUMPRODUCT((AbschreibungAGr=AG$1)*(Aktivierungsjahr=$A22)*(AbschreibungAHK))","v":0},0,0,0,0,0,0,0,0,0,0]
[2036,0,0,0,0,0,0,0,0,0,0,0,0,0,0,0,0,0,0,0,0,0,0,0,0,0,0,0,0,0,0,0,0,0,0,0,0,0,0,0,0,0,0]
[2037,0,0,0,0,0,0,0,0,0,0,0,0,0,0,0,0,0,0,0,0,0,0,0,0,0,0,0,0,0,0,0,0,0,0,0,0,0,0,0,0,0,0]
[2038,0,0,0,0,0,0,0,0,0,0,0,0,0,0,0,0,0,0,0,0,0,0,0,0,0,0,0,0,0,0,0,0,0,0,0,0,0,0,0,0,0,0]
[2039,0,0,0,0,0,0,0,0,0,0,0,0,0,0,0,0,0,0,0,0,0,0,0,0,0,0,0,0,0,0,0,0,0,0,0,0,0,0,0,0,0,0]
[2040,0,0,0,0,0,0,0,0,0,0,0,0,0,0,0,0,0,0,0,0,0,0,0,0,0,0,0,0,0,0,0,0,0,0,0,0,0,0,0,0,0,0]
[2041,0,0,0,0,0,0,0,0,0,0,0,0,0,0,0,0,0,0,0,0,0,0,0,0,0,0,0,0,0,0,0,0,0,0,0,0,0,0,0,0,0,0]
[2042,0,0,0,0,0,0,0,0,0,0,0,0,0,0,0,0,0,0,0,0,0,0,0,0,0,0,0,0,0,0,0,0,0,0,0,0,0,0,0,0,0,0]
[2043,0,0,0,0,0,0,0,0,0,0,0,0,0,0,0,0,0,0,0,0,0,0,0,0,0,0,0,0,0,0,0,0,0,0,0,0,0,0,0,0,0,0]
[2044,0,0,0,0,0,0,0,0,0,0,0,0,0,0,0,0,0,0,0,0,0,0,0,0,0,0,0,0,0,0,0,0,0,0,0,0,0,0,0,0,0,0]
[2045,0,{"$f":"SUMPRODUCT((AbschreibungAGr=C$1)*(Aktivierungsjahr=$A32)*(AbschreibungAHK))","v":0},0,0,0,0,0,0,0,0,0,{"$f":"SUMPRODUCT((AbschreibungAGr=M$1)*(Aktivierungsjahr=$A32)*(AbschreibungAHK))","v":0},0,0,0,0,0,0,0,0,0,{"$f":"SUMPRODUCT((AbschreibungAGr=W$1)*(Aktivierungsjahr=$A32)*(AbschreibungAHK))","v":0},0,0,0,0,0,0,0,0,0,{"$f":"SUMPRODUCT((AbschreibungAGr=AG$1)*(Aktivierungsjahr=$A32)*(AbschreibungAHK))","v":0},0,0,0,0,0,0,0,0,0,0]
[2046,0,0,0,0,0,0,0,0,0,0,0,0,0,0,0,0,0,0,0,0,0,0,0,0,0,0,0,0,0,0,0,0,0,0,0,0,0,0,0,0,0,0]
[2047,0,0,0,0,0,0,0,0,0,0,0,0,0,0,0,0,0,0,0,0,0,0,0,0,0,0,0,0,0,0,0,0,0,0,0,0,0,0,0,0,0,0]
[2048,0,0,0,0,0,0,0,0,0,0,0,0,0,0,0,0,0,0,0,0,0,0,0,0,0,0,0,0,0,0,0,0,0,0,0,0,0,0,0,0,0,0]
[2049,0,0,0,0,0,0,0,0,0,0,0,0,0,0,0,0,0,0,0,0,0,0,0,0,0,0,0,0,0,0,0,0,0,0,0,0,0,0,0,0,0,0]
[2050,0,0,0,0,0,0,0,0,0,0,0,0,0,0,0,0,0,0,0,0,0,0,0,0,0,0,0,0,0,0,0,0,0,0,0,0,0,0,0,0,0,0]
[2051,0,0,0,0,0,0,0,0,0,0,0,0,0,0,0,0,0,0,0,0,0,0,0,0,0,0,0,0,0,0,0,0,0,0,0,0,0,0,0,0,0,0]
[2052,0,0,0,0,0,0,0,0,0,0,0,0,0,0,0,0,0,0,0,0,0,0,0,0,0,0,0,0,0,0,0,0,0,0,0,0,0,0,0,0,0,0]
[2053,0,0,0,0,0,0,0,0,0,0,0,0,0,0,0,0,0,0,0,0,0,0,0,0,0,0,0,0,0,0,0,0,0,0,0,0,0,0,0,0,0,0]
[2054,0,0,0,0,0,0,0,0,0,0,0,0,0,0,0,0,0,0,0,0,0,0,0,0,0,0,0,0,0,0,0,0,0,0,0,0,0,0,0,0,0,0]
[2055,0,{"$f":"SUMPRODUCT((AbschreibungAGr=C$1)*(Aktivierungsjahr=$A42)*(AbschreibungAHK))","v":0},0,0,0,0,0,0,0,0,0,{"$f":"SUMPRODUCT((AbschreibungAGr=M$1)*(Aktivierungsjahr=$A42)*(AbschreibungAHK))","v":0},0,0,0,0,0,0,0,0,0,{"$f":"SUMPRODUCT((AbschreibungAGr=W$1)*(Aktivierungsjahr=$A42)*(AbschreibungAHK))","v":0},0,0,0,0,0,0,0,0,0,{"$f":"SUMPRODUCT((AbschreibungAGr=AG$1)*(Aktivierungsjahr=$A42)*(AbschreibungAHK))","v":0},0,0,0,0,0,0,0,0,0,0]
[2056,0,0,0,0,0,0,0,0,0,0,0,0,0,0,0,0,0,0,0,0,0,0,0,0,0,0,0,0,0,0,0,0,0,0,0,0,0,0,0,0,0,0]
[2057,0,0,0,0,0,0,0,0,0,0,0,0,0,0,0,0,0,0,0,0,0,0,0,0,0,0,0,0,0,0,0,0,0,0,0,0,0,0,0,0,0,0]
[2058,0,0,0,0,0,0,0,0,0,0,0,0,0,0,0,0,0,0,0,0,0,0,0,0,0,0,0,0,0,0,0,0,0,0,0,0,0,0,0,0,0,0]
[2059,0,0,0,0,0,0,0,0,0,0,0,0,0,0,0,0,0,0,0,0,0,0,0,0,0,0,0,0,0,0,0,0,0,0,0,0,0,0,0,0,0,0]
[2060,0,0,0,0,0,0,0,0,0,0,0,0,0,0,0,0,0,0,0,0,0,0,0,0,0,0,0,0,0,0,0,0,0,0,0,0,0,0,0,0,0,0]
[2061,0,0,0,0,0,0,0,0,0,0,0,0,0,0,0,0,0,0,0,0,0,0,0,0,0,0,0,0,0,0,0,0,0,0,0,0,0,0,0,0,0,0]
[2062,0,0,0,0,0,0,0,0,0,0,0,0,0,0,0,0,0,0,0,0,0,0,0,0,0,0,0,0,0,0,0,0,0,0,0,0,0,0,0,0,0,0]
[2063,0,0,0,0,0,0,0,0,0,0,0,0,0,0,0,0,0,0,0,0,0,0,0,0,0,0,0,0,0,0,0,0,0,0,0,0,0,0,0,0,0,0]
[2064,0,0,0,0,0,0,0,0,0,0,0,0,0,0,0,0,0,0,0,0,0,0,0,0,0,0,0,0,0,0,0,0,0,0,0,0,0,0,0,0,0,0]
[2065,0,{"$f":"SUMPRODUCT((AbschreibungAGr=C$1)*(Aktivierungsjahr=$A52)*(AbschreibungAHK))","v":0},0,0,0,0,0,0,0,0,0,{"$f":"SUMPRODUCT((AbschreibungAGr=M$1)*(Aktivierungsjahr=$A52)*(AbschreibungAHK))","v":0},0,0,0,0,0,0,0,0,0,{"$f":"SUMPRODUCT((AbschreibungAGr=W$1)*(Aktivierungsjahr=$A52)*(AbschreibungAHK))","v":0},0,0,0,0,0,0,0,0,0,{"$f":"SUMPRODUCT((AbschreibungAGr=AG$1)*(Aktivierungsjahr=$A52)*(AbschreibungAHK))","v":0},0,0,0,0,0,0,0,0,0,0]
[2066,0,0,0,0,0,0,0,0,0,0,0,0,0,0,0,0,0,0,0,0,0,0,0,0,0,0,0,0,0,0,0,0,0,0,0,0,0,0,0,0,0,0]
[2067,0,0,0,0,0,0,0,0,0,0,0,0,0,0,0,0,0,0,0,0,0,0,0,0,0,0,0,0,0,0,0,0,0,0,0,0,0,0,0,0,0,0]
[2068,0,0,0,0,0,0,0,0,0,0,0,0,0,0,0,0,0,0,0,0,0,0,0,0,0,0,0,0,0,0,0,0,0,0,0,0,0,0,0,0,0,0]
[2069,0,0,0,0,0,0,0,0,0,0,0,0,0,0,0,0,0,0,0,0,0,0,0,0,0,0,0,0,0,0,0,0,0,0,0,0,0,0,0,0,0,0]
[2070,0,0,0,0,0,0,0,0,0,0,0,0,0,0,0,0,0,0,0,0,0,0,0,0,0,0,0,0,0,0,0,0,0,0,0,0,0,0,0,0,0,0]
[2071,0,0,0,0,0,0,0,0,0,0,0,0,0,0,0,0,0,0,0,0,0,0,0,0,0,0,0,0,0,0,0,0,0,0,0,0,0,0,0,0,0,0]
[2072,0,0,0,0,0,0,0,0,0,0,0,0,0,0,0,0,0,0,0,0,0,0,0,0,0,0,0,0,0,0,0,0,0,0,0,0,0,0,0,0,0,0]
[2073,0,0,0,0,0,0,0,0,0,0,0,0,0,0,0,0,0,0,0,0,0,0,0,0,0,0,0,0,0,0,0,0,0,0,0,0,0,0,0,0,0,0]
[2074,0,0,0,0,0,0,0,0,0,0,0,0,0,0,0,0,0,0,0,0,0,0,0,0,0,0,0,0,0,0,0,0,0,0,0,0,0,0,0,0,0,0]
[2075,0,{"$f":"SUMPRODUCT((AbschreibungAGr=C$1)*(Aktivierungsjahr=$A62)*(AbschreibungAHK))","v":0},0,0,0,0,0,0,0,0,0,{"$f":"SUMPRODUCT((AbschreibungAGr=M$1)*(Aktivierungsjahr=$A62)*(AbschreibungAHK))","v":0},0,0,0,0,0,0,0,0,0,{"$f":"SUMPRODUCT((AbschreibungAGr=W$1)*(Aktivierungsjahr=$A62)*(AbschreibungAHK))","v":0},0,0,0,0,0,0,0,0,0,{"$f":"SUMPRODUCT((AbschreibungAGr=AG$1)*(Aktivierungsjahr=$A62)*(AbschreibungAHK))","v":0},0,0,0,0,0,0,0,0,0,0]
[2076,0,0,0,0,0,0,0,0,0,0,0,0,0,0,0,0,0,0,0,0,0,0,0,0,0,0,0,0,0,0,0,0,0,0,0,0,0,0,0,0,0,0]
[2077,0,0,0,0,0,0,0,0,0,0,0,0,0,0,0,0,0,0,0,0,0,0,0,0,0,0,0,0,0,0,0,0,0,0,0,0,0,0,0,0,0,0]
[2078,0,0,0,0,0,0,0,0,0,0,0,0,0,0,0,0,0,0,0,0,0,0,0,0,0,0,0,0,0,0,0,0,0,0,0,0,0,0,0,0,0,0]
[2079,0,0,0,0,0,0,0,0,0,0,0,0,0,0,0,0,0,0,0,0,0,0,0,0,0,0,0,0,0,0,0,0,0,0,0,0,0,0,0,0,0,0]
[2080,0,0,0,0,0,0,0,0,0,0,0,0,0,0,0,0,0,0,0,0,0,0,0,0,0,0,0,0,0,0,0,0,0,0,0,0,0,0,0,0,0,0]
[2081,0,0,0,0,0,0,0,0,0,0,0,0,0,0,0,0,0,0,0,0,0,0,0,0,0,0,0,0,0,0,0,0,0,0,0,0,0,0,0,0,0,0]
[2082,0,0,0,0,0,0,0,0,0,0,0,0,0,0,0,0,0,0,0,0,0,0,0,0,0,0,0,0,0,0,0,0,0,0,0,0,0,0,0,0,0,0]
[2083,0,0,0,0,0,0,0,0,0,0,0,0,0,0,0,0,0,0,0,0,0,0,0,0,0,0,0,0,0,0,0,0,0,0,0,0,0,0,0,0,0,0]
[2084,{"$f":"SUM(C71:AQ71)","v":0},0,0,0,0,0,0,0,0,0,0,0,0,0,0,0,0,0,0,0,0,0,0,0,0,0,0,0,0,0,0,0,0,0,0,0,0,0,0,0,0,0]
[2085,0,{"$f":"SUMPRODUCT((AbschreibungAGr=C$1)*(Aktivierungsjahr=$A72)*(AbschreibungAHK))","v":0},0,0,0,0,0,0,0,0,0,{"$f":"SUMPRODUCT((AbschreibungAGr=M$1)*(Aktivierungsjahr=$A72)*(AbschreibungAHK))","v":0},0,0,0,0,0,0,0,0,0,{"$f":"SUMPRODUCT((AbschreibungAGr=W$1)*(Aktivierungsjahr=$A72)*(AbschreibungAHK))","v":0},0,0,0,0,0,0,0,0,0,{"$f":"SUMPRODUCT((AbschreibungAGr=AG$1)*(Aktivierungsjahr=$A72)*(AbschreibungAHK))","v":0},0,0,0,0,0,0,0,0,0,0]
[2086,0,0,0,0,0,0,0,0,0,0,0,0,0,0,0,0,0,0,0,0,0,0,0,0,0,0,0,0,0,0,0,0,0,0,0,0,0,0,0,0,0,0]
[2087,0,0,0,0,0,0,0,0,0,0,0,0,0,0,0,0,0,0,0,0,0,0,0,0,0,0,0,0,0,0,0,0,0,0,0,0,0,0,0,0,0,0]
[2088,0,0,0,0,0,0,0,0,0,0,0,0,0,0,0,0,0,0,0,0,0,0,0,0,0,0,0,0,0,0,0,0,0,0,0,0,0,0,0,0,0,0]
[2089,0,0,0,0,0,0,0,0,0,0,0,0,0,0,0,0,0,0,0,0,0,0,0,0,0,0,0,0,0,0,0,0,0,0,0,0,0,0,0,0,0,0]
[2090,0,0,0,0,0,0,0,0,0,0,0,0,0,0,0,0,0,0,0,0,0,0,0,0,0,0,0,0,0,0,0,0,0,0,0,0,0,0,0,0,0,0]
[2091,0,0,0,0,0,0,0,0,0,0,0,0,0,0,0,0,0,0,0,0,0,0,0,0,0,0,0,0,0,0,0,0,0,0,0,0,0,0,0,0,0,0]
[2092,0,0,0,0,0,0,0,0,0,0,0,0,0,0,0,0,0,0,0,0,0,0,0,0,0,0,0,0,0,0,0,0,0,0,0,0,0,0,0,0,0,0]
[2093,0,0,0,0,0,0,0,0,0,0,0,0,0,0,0,0,0,0,0,0,0,0,0,0,0,0,0,0,0,0,0,0,0,0,0,0,0,0,0,0,0,0]
[2094,0,0,0,0,0,0,0,0,0,0,0,0,0,0,0,0,0,0,0,0,0,0,0,0,0,0,0,0,0,0,0,0,0,0,0,0,0,0,0,0,0,0]
[2095,0,{"$f":"SUMPRODUCT((AbschreibungAGr=C$1)*(Aktivierungsjahr=$A82)*(AbschreibungAHK))","v":0},0,0,0,0,0,0,0,0,0,{"$f":"SUMPRODUCT((AbschreibungAGr=M$1)*(Aktivierungsjahr=$A82)*(AbschreibungAHK))","v":0},0,0,0,0,0,0,0,0,0,{"$f":"SUMPRODUCT((AbschreibungAGr=W$1)*(Aktivierungsjahr=$A82)*(AbschreibungAHK))","v":0},0,0,0,0,0,0,0,0,0,{"$f":"SUMPRODUCT((AbschreibungAGr=AG$1)*(Aktivierungsjahr=$A82)*(AbschreibungAHK))","v":0},0,0,0,0,0,0,0,0,0,0]
[2096,0,0,0,0,0,0,0,0,0,0,0,0,0,0,0,0,0,0,0,0,0,0,0,0,0,0,0,0,0,0,0,0,0,0,0,0,0,0,0,0,0,0]
[2097,0,0,0,0,0,0,0,0,0,0,0,0,0,0,0,0,0,0,0,0,0,0,0,0,0,0,0,0,0,0,0,0,0,0,0,0,0,0,0,0,0,0]
[2098,0,0,0,0,0,0,0,0,0,0,0,0,0,0,0,0,0,0,0,0,0,0,0,0,0,0,0,0,0,0,0,0,0,0,0,0,0,0,0,0,0,0]
[2099,0,0,0,0,0,0,0,0,0,0,0,0,0,0,0,0,0,0,0,0,0,0,0,0,0,0,0,0,0,0,0,0,0,0,0,0,0,0,0,0,0,0]
[2100,0,0,0,0,0,0,0,0,0,0,0,0,0,0,0,0,0,0,0,0,0,0,0,0,0,0,0,0,0,0,0,0,0,0,0,0,0,0,0,0,0,0]
[]
["Non-interest-bearing items"]
[null,"Pursuant to Article 6 of Regulation (EC) No 1228/2003, provided these are used with cost-reducing effect for measures to eliminate congestion under Article6(6)(b) of Regulation (EC) No 1228/2003.","Pursuant to section 15 StromNZV, provided these are used with cost-reducing effect for measures to eliminate congestion pursuant to section 15(3) first sentence of the StromNZV.","Amount of public support","Type of public support","Status of public support [completed, applied for, guaranteed or rejected] ","Income from release of provisions whose justification no longer applies due to the implementation of the investment project","Other non-interest-bearing items","Total non-interest-bearing items"," Replacement proportion on completed assets","Percentage reduction of completed assets due to non-interest-bearing items"]
[2016,{"$f":"'B. Parameters'!B125","v":0},{"$f":"'B. Parameters'!C125","v":0},{"$f":"'B. Parameters'!E125","v":0},{"$f":"'B. Parameters'!F125","v":0},{"$f":"'B. Parameters'!G125","v":0},{"$f":"'B. Parameters'!H125","v":0},{"$f":"'B. Parameters'!I125","v":0},{"$f":"SUM(B91:H91)","v":0},{"$f":"'B. Parameters'!B217*Costs!B3","v":0},{"$f":"IF(B3=0,0,(I91+J91)/B3)","v":0}]
[2017,{"$f":"'B. Parameters'!B126","v":0},{"$f":"'B. Parameters'!C126","v":0},{"$f":"'B. Parameters'!E126","v":0},{"$f":"'B. Parameters'!F126","v":0},{"$f":"'B. Parameters'!G126","v":0},{"$f":"'B. Parameters'!H126","v":0},{"$f":"'B. Parameters'!I126","v":0},0,{"$f":"'B. Parameters'!B218*Costs!B4","v":0},0]
[2018,{"$f":"'B. Parameters'!B127","v":0},{"$f":"'B. Parameters'!C127","v":0},{"$f":"'B. Parameters'!E127","v":0},{"$f":"'B. Parameters'!F127","v":0},{"$f":"'B. Parameters'!G127","v":0},{"$f":"'B. Parameters'!H127","v":0},{"$f":"'B. Parameters'!I127","v":0},0,{"$f":"'B. Parameters'!B219*Costs!B5","v":0},0]
[2019,{"$f":"'B. Parameters'!B128","v":0},{"$f":"'B. Parameters'!C128","v":0},{"$f":"'B. Parameters'!E128","v":0},{"$f":"'B. Parameters'!F128","v":0},{"$f":"'B. Parameters'!G128","v":0},{"$f":"'B. Parameters'!H128","v":0},{"$f":"'B. Parameters'!I128","v":0},0,{"$f":"'B. Parameters'!B220*Costs!B6","v":0},{"$f":"IF(B6=0,0,(I94+J94)/B6)","v":0}]
[2020,{"$f":"'B. Parameters'!B129","v":0},{"$f":"'B. Parameters'!C129","v":0},{"$f":"'B. Parameters'!E129","v":0},{"$f":"'B. Parameters'!F129","v":0},{"$f":"'B. Parameters'!G129","v":0},{"$f":"'B. Parameters'!H129","v":0},{"$f":"'B. Parameters'!I129","v":0},0,{"$f":"'B. Parameters'!B221*Costs!B7","v":0},0]
[2021,{"$f":"'B. Parameters'!B130","v":0},{"$f":"'B. Parameters'!C130","v":0},{"$f":"'B. Parameters'!E130","v":0},{"$f":"'B. Parameters'!F130","v":0},{"$f":"'B. Parameters'!G130","v":0},{"$f":"'B. Parameters'!H130","v":0},{"$f":"'B. Parameters'!I130","v":0},0,{"$f":"'B. Parameters'!B222*Costs!B8","v":0},0]
[2022,{"$f":"'B. Parameters'!B131","v":0},{"$f":"'B. Parameters'!C131","v":0},{"$f":"'B. Parameters'!E131","v":0},{"$f":"'B. Parameters'!F131","v":0},{"$f":"'B. Parameters'!G131","v":0},{"$f":"'B. Parameters'!H131","v":0},{"$f":"'B. Parameters'!I131","v":0},0,{"$f":"'B. Parameters'!B223*Costs!B9","v":0},0]
[2023,{"$f":"'B. Parameters'!B132","v":0},{"$f":"'B. Parameters'!C132","v":0},{"$f":"'B. Parameters'!E132","v":0},{"$f":"'B. Parameters'!F132","v":0},{"$f":"'B. Parameters'!G132","v":0},{"$f":"'B. Parameters'!H132","v":0},{"$f":"'B. Parameters'!I132","v":0},0,{"$f":"'B. Parameters'!B224*Costs!B10","v":0},0]
[2024,{"$f":"'B. Parameters'!B133","v":0},{"$f":"'B. Parameters'!C133","v":0},{"$f":"'B. Parameters'!E133","v":0},{"$f":"'B. Parameters'!F133","v":0},{"$f":"'B. Parameters'!G133","v":0},{"$f":"'B. Parameters'!H133","v":0},{"$f":"'B. Parameters'!I133","v":0},0,{"$f":"'B. Parameters'!B225*Costs!B11","v":0},0]
[2025,{"$f":"'B. Parameters'!B134","v":0},{"$f":"'B. Parameters'!C134","v":0},{"$f":"'B. Parameters'!E134","v":0},{"$f":"'B. Parameters'!F134","v":0},{"$f":"'B. Parameters'!G134","v":0},{"$f":"'B. Parameters'!H134","v":0},{"$f":"'B. Parameters'!I134","v":0},0,{"$f":"'B. Parameters'!B226*Costs!B12","v":0},0]
[2026,{"$f":"'B. Parameters'!B135","v":0},{"$f":"'B. Parameters'!C135","v":0},{"$f":"'B. Parameters'!E135","v":0},{"$f":"'B. Parameters'!F135","v":0},{"$f":"'B. Parameters'!G135","v":0},{"$f":"'B. Parameters'!H135","v":0},{"$f":"'B. Parameters'!I135","v":0},0,{"$f":"'B. Parameters'!B227*Costs!B13","v":0},0]
[2027,{"$f":"'B. Parameters'!B136","v":0},{"$f":"'B. Parameters'!C136","v":0},{"$f":"'B. Parameters'!E136","v":0},{"$f":"'B. Parameters'!F136","v":0},{"$f":"'B. Parameters'!G136","v":0},{"$f":"'B. Parameters'!H136","v":0},{"$f":"'B. Parameters'!I136","v":0},0,{"$f":"'B. Parameters'!B228*Costs!B14","v":0},0]
[2028,{"$f":"'B. Parameters'!B137","v":0},{"$f":"'B. Parameters'!C137","v":0},{"$f":"'B. Parameters'!E137","v":0},{"$f":"'B. Parameters'!F137","v":0},{"$f":"'B. Parameters'!G137","v":0},{"$f":"'B. Parameters'!H137","v":0},{"$f":"'B. Parameters'!I137","v":0},0,{"$f":"'B. Parameters'!B229*Costs!B15","v":0},0]
[2029,{"$f":"'B. Parameters'!B138","v":0},{"$f":"'B. Parameters'!C138","v":0},{"$f":"'B. Parameters'!E138","v":0},{"$f":"'B. Parameters'!F138","v":0},{"$f":"'B. Parameters'!G138","v":0},{"$f":"'B. Parameters'!H138","v":0},{"$f":"'B. Parameters'!I138","v":0},0,{"$f":"'B. Parameters'!B230*Costs!B16","v":0},0]
[2030,{"$f":"'B. Parameters'!B139","v":0},{"$f":"'B. Parameters'!C139","v":0},{"$f":"'B. Parameters'!E139","v":0},{"$f":"'B. Parameters'!F139","v":0},{"$f":"'B. Parameters'!G139","v":0},{"$f":"'B. Parameters'!H139","v":0},{"$f":"'B. Parameters'!I139","v":0},0,{"$f":"'B. Parameters'!B231*Costs!B17","v":0},0]
[2031,{"$f":"'B. Parameters'!B140","v":0},{"$f":"'B. Parameters'!C140","v":0},{"$f":"'B. Parameters'!E140","v":0},{"$f":"'B. Parameters'!F140","v":0},{"$f":"'B. Parameters'!G140","v":0},{"$f":"'B. Parameters'!H140","v":0},{"$f":"'B. Parameters'!I140","v":0},0,{"$f":"'B. Parameters'!B232*Costs!B18","v":0},0]
[2032,{"$f":"'B. Parameters'!B141","v":0},{"$f":"'B. Parameters'!C141","v":0},{"$f":"'B. Parameters'!E141","v":0},{"$f":"'B. Parameters'!F141","v":0},{"$f":"'B. Parameters'!G141","v":0},{"$f":"'B. Parameters'!H141","v":0},{"$f":"'B. Parameters'!I141","v":0},{"$f":"SUM(B107:H107)","v":0},{"$f":"'B. Parameters'!B233*Costs!B19","v":0},0]
[2033,{"$f":"'B. Parameters'!B142","v":0},{"$f":"'B. Parameters'!C142","v":0},{"$f":"'B. Parameters'!E142","v":0},{"$f":"'B. Parameters'!F142","v":0},{"$f":"'B. Parameters'!G142","v":0},{"$f":"'B. Parameters'!H142","v":0},{"$f":"'B. Parameters'!I142","v":0},0,{"$f":"'B. Parameters'!B234*Costs!B20","v":0},0]
[2034,{"$f":"'B. Parameters'!B143","v":0},{"$f":"'B. Parameters'!C143","v":0},{"$f":"'B. Parameters'!E143","v":0},{"$f":"'B. Parameters'!F143","v":0},{"$f":"'B. Parameters'!G143","v":0},{"$f":"'B. Parameters'!H143","v":0},{"$f":"'B. Parameters'!I143","v":0},0,{"$f":"'B. Parameters'!B235*Costs!B21","v":0},0]
[2035,{"$f":"'B. Parameters'!B144","v":0},{"$f":"'B. Parameters'!C144","v":0},{"$f":"'B. Parameters'!E144","v":0},{"$f":"'B. Parameters'!F144","v":0},{"$f":"'B. Parameters'!G144","v":0},{"$f":"'B. Parameters'!H144","v":0},{"$f":"'B. Parameters'!I144","v":0},0,{"$f":"'B. Parameters'!B236*Costs!B22","v":0},0]
[2036,{"$f":"'B. Parameters'!B145","v":0},{"$f":"'B. Parameters'!C145","v":0},{"$f":"'B. Parameters'!E145","v":0},{"$f":"'B. Parameters'!F145","v":0},{"$f":"'B. Parameters'!G145","v":0},{"$f":"'B. Parameters'!H145","v":0},{"$f":"'B. Parameters'!I145","v":0},0,{"$f":"'B. Parameters'!B237*Costs!B23","v":0},0]
[2037,{"$f":"'B. Parameters'!B146","v":0},{"$f":"'B. Parameters'!C146","v":0},{"$f":"'B. Parameters'!E146","v":0},{"$f":"'B. Parameters'!F146","v":0},{"$f":"'B. Parameters'!G146","v":0},{"$f":"'B. Parameters'!H146","v":0},{"$f":"'B. Parameters'!I146","v":0},0,{"$f":"'B. Parameters'!B238*Costs!B24","v":0},0]
[2038,{"$f":"'B. Parameters'!B147","v":0},{"$f":"'B. Parameters'!C147","v":0},{"$f":"'B. Parameters'!E147","v":0},{"$f":"'B. Parameters'!F147","v":0},{"$f":"'B. Parameters'!G147","v":0},{"$f":"'B. Parameters'!H147","v":0},{"$f":"'B. Parameters'!I147","v":0},0,{"$f":"'B. Parameters'!B239*Costs!B25","v":0},0]
[2039,{"$f":"'B. Parameters'!B148","v":0},{"$f":"'B. Parameters'!C148","v":0},{"$f":"'B. Parameters'!E148","v":0},{"$f":"'B. Parameters'!F148","v":0},{"$f":"'B. Parameters'!G148","v":0},{"$f":"'B. Parameters'!H148","v":0},{"$f":"'B. Parameters'!I148","v":0},0,{"$f":"'B. Parameters'!B240*Costs!B26","v":0},0]
[2040,{"$f":"'B. Parameters'!B149","v":0},{"$f":"'B. Parameters'!C149","v":0},{"$f":"'B. Parameters'!E149","v":0},{"$f":"'B. Parameters'!F149","v":0},{"$f":"'B. Parameters'!G149","v":0},{"$f":"'B. Parameters'!H149","v":0},{"$f":"'B. Parameters'!I149","v":0},0,{"$f":"'B. Parameters'!B241*Costs!B27","v":0},0]
[2041,{"$f":"'B. Parameters'!B150","v":0},{"$f":"'B. Parameters'!C150","v":0},{"$f":"'B. Parameters'!E150","v":0},{"$f":"'B. Parameters'!F150","v":0},{"$f":"'B. Parameters'!G150","v":0},{"$f":"'B. Parameters'!H150","v":0},{"$f":"'B. Parameters'!I150","v":0},0,{"$f":"'B. Parameters'!B242*Costs!B28","v":0},0]
[2042,{"$f":"'B. Parameters'!B151","v":0},{"$f":"'B. Parameters'!C151","v":0},{"$f":"'B. Parameters'!E151","v":0},{"$f":"'B. Parameters'!F151","v":0},{"$f":"'B. Parameters'!G151","v":0},{"$f":"'B. Parameters'!H151","v":0},{"$f":"'B. Parameters'!I151","v":0},0,{"$f":"'B. Parameters'!B243*Costs!B29","v":0},0]
[2043,{"$f":"'B. Parameters'!B152","v":0},{"$f":"'B. Parameters'!C152","v":0},{"$f":"'B. Parameters'!E152","v":0},{"$f":"'B. Parameters'!F152","v":0},{"$f":"'B. Parameters'!G152","v":0},{"$f":"'B. Parameters'!H152","v":0},{"$f":"'B. Parameters'!I152","v":0},0,{"$f":"'B. Parameters'!B244*Costs!B30","v":0},0]
[2044,{"$f":"'B. Parameters'!B153","v":0},{"$f":"'B. Parameters'!C153","v":0},{"$f":"'B. Parameters'!E153","v":0},{"$f":"'B. Parameters'!F153","v":0},{"$f":"'B. Parameters'!G153","v":0},{"$f":"'B. Parameters'!H153","v":0},{"$f":"'B. Parameters'!I153","v":0},0,{"$f":"'B. Parameters'!B245*Costs!B31","v":0},0]
[2045,{"$f":"'B. Parameters'!B154","v":0},{"$f":"'B. Parameters'!C154","v":0},{"$f":"'B. Parameters'!E154","v":0},{"$f":"'B. Parameters'!F154","v":0},{"$f":"'B. Parameters'!G154","v":0},{"$f":"'B. Parameters'!H154","v":0},{"$f":"'B. Parameters'!I154","v":0},0,{"$f":"'B. Parameters'!B246*Costs!B32","v":0},0]
[2046,{"$f":"'B. Parameters'!B155","v":0},{"$f":"'B. Parameters'!C155","v":0},{"$f":"'B. Parameters'!E155","v":0},{"$f":"'B. Parameters'!F155","v":0},{"$f":"'B. Parameters'!G155","v":0},{"$f":"'B. Parameters'!H155","v":0},{"$f":"'B. Parameters'!I155","v":0},0,{"$f":"'B. Parameters'!B247*Costs!B33","v":0},0]
[2047,{"$f":"'B. Parameters'!B156","v":0},{"$f":"'B. Parameters'!C156","v":0},{"$f":"'B. Parameters'!E156","v":0},{"$f":"'B. Parameters'!F156","v":0},{"$f":"'B. Parameters'!G156","v":0},{"$f":"'B. Parameters'!H156","v":0},{"$f":"'B. Parameters'!I156","v":0},0,{"$f":"'B. Parameters'!B248*Costs!B34","v":0},0]
[2048,{"$f":"'B. Parameters'!B157","v":0},{"$f":"'B. Parameters'!C157","v":0},{"$f":"'B. Parameters'!E157","v":0},{"$f":"'B. Parameters'!F157","v":0},{"$f":"'B. Parameters'!G157","v":0},{"$f":"'B. Parameters'!H157","v":0},{"$f":"'B. Parameters'!I157","v":0},0,{"$f":"'B. Parameters'!B249*Costs!B35","v":0},{"$f":"IF(B35=0,0,(I123+J123)/B35)","v":0}]
[2049,{"$f":"'B. Parameters'!B158","v":0},{"$f":"'B. Parameters'!C158","v":0},{"$f":"'B. Parameters'!E158","v":0},{"$f":"'B. Parameters'!F158","v":0},{"$f":"'B. Parameters'!G158","v":0},{"$f":"'B. Parameters'!H158","v":0},{"$f":"'B. Parameters'!I158","v":0},0,{"$f":"'B. Parameters'!B250*Costs!B36","v":0},0]
[2050,{"$f":"'B. Parameters'!B159","v":0},{"$f":"'B. Parameters'!C159","v":0},{"$f":"'B. Parameters'!E159","v":0},{"$f":"'B. Parameters'!F159","v":0},{"$f":"'B. Parameters'!G159","v":0},{"$f":"'B. Parameters'!H159","v":0},{"$f":"'B. Parameters'!I159","v":0},0,{"$f":"'B. Parameters'!B251*Costs!B37","v":0},0]
[2051,{"$f":"'B. Parameters'!B160","v":0},{"$f":"'B. Parameters'!C160","v":0},{"$f":"'B. Parameters'!E160","v":0},{"$f":"'B. Parameters'!F160","v":0},{"$f":"'B. Parameters'!G160","v":0},{"$f":"'B. Parameters'!H160","v":0},{"$f":"'B. Parameters'!I160","v":0},0,{"$f":"'B. Parameters'!B252*Costs!B38","v":0},0]
[2052,{"$f":"'B. Parameters'!B161","v":0},{"$f":"'B. Parameters'!C161","v":0},{"$f":"'B. Parameters'!E161","v":0},{"$f":"'B. Parameters'!F161","v":0},{"$f":"'B. Parameters'!G161","v":0},{"$f":"'B. Parameters'!H161","v":0},{"$f":"'B. Parameters'!I161","v":0},0,{"$f":"'B. Parameters'!B253*Costs!B39","v":0},0]
[2053,{"$f":"'B. Parameters'!B162","v":0},{"$f":"'B. Parameters'!C162","v":0},{"$f":"'B. Parameters'!E162","v":0},{"$f":"'B. Parameters'!F162","v":0},{"$f":"'B. Parameters'!G162","v":0},{"$f":"'B. Parameters'!H162","v":0},{"$f":"'B. Parameters'!I162","v":0},0,{"$f":"'B. Parameters'!B254*Costs!B40","v":0},0]
[2054,{"$f":"'B. Parameters'!B163","v":0},{"$f":"'B. Parameters'!C163","v":0},{"$f":"'B. Parameters'!E163","v":0},{"$f":"'B. Parameters'!F163","v":0},{"$f":"'B. Parameters'!G163","v":0},{"$f":"'B. Parameters'!H163","v":0},{"$f":"'B. Parameters'!I163","v":0},0,{"$f":"'B. Parameters'!B255*Costs!B41","v":0},0]
[2055,{"$f":"'B. Parameters'!B164","v":0},{"$f":"'B. Parameters'!C164","v":0},{"$f":"'B. Parameters'!E164","v":0},{"$f":"'B. Parameters'!F164","v":0},{"$f":"'B. Parameters'!G164","v":0},{"$f":"'B. Parameters'!H164","v":0},{"$f":"'B. Parameters'!I164","v":0},0,{"$f":"'B. Parameters'!B256*Costs!B42","v":0},0]
[2056,{"$f":"'B. Parameters'!B165","v":0},{"$f":"'B. Parameters'!C165","v":0},{"$f":"'B. Parameters'!E165","v":0},{"$f":"'B. Parameters'!F165","v":0},{"$f":"'B. Parameters'!G165","v":0},{"$f":"'B. Parameters'!H165","v":0},{"$f":"'B. Parameters'!I165","v":0},0,{"$f":"'B. Parameters'!B257*Costs!B43","v":0},0]
[2057,{"$f":"'B. Parameters'!B166","v":0},{"$f":"'B. Parameters'!C166","v":0},{"$f":"'B. Parameters'!E166","v":0},{"$f":"'B. Parameters'!F166","v":0},{"$f":"'B. Parameters'!G166","v":0},{"$f":"'B. Parameters'!H166","v":0},{"$f":"'B. Parameters'!I166","v":0},0,{"$f":"'B. Parameters'!B258*Costs!B44","v":0},0]
[2058,{"$f":"'B. Parameters'!B167","v":0},{"$f":"'B. Parameters'!C167","v":0},{"$f":"'B. Parameters'!E167","v":0},{"$f":"'B. Parameters'!F167","v":0},{"$f":"'B. Parameters'!G167","v":0},{"$f":"'B. Parameters'!H167","v":0},{"$f":"'B. Parameters'!I167","v":0},0,{"$f":"'B. Parameters'!B259*Costs!B45","v":0},0]
[2059,{"$f":"'B. Parameters'!B168","v":0},{"$f":"'B. Parameters'!C168","v":0},{"$f":"'B. Parameters'!E168","v":0},{"$f":"'B. Parameters'!F168","v":0},{"$f":"'B. Parameters'!G168","v":0},{"$f":"'B. Parameters'!H168","v":0},{"$f":"'B. Parameters'!I168","v":0},0,{"$f":"'B. Parameters'!B260*Costs!B46","v":0},0]
[2060,{"$f":"'B. Parameters'!B169","v":0},{"$f":"'B. Parameters'!C169","v":0},{"$f":"'B. Parameters'!E169","v":0},{"$f":"'B. Parameters'!F169","v":0},{"$f":"'B. Parameters'!G169","v":0},{"$f":"'B. Parameters'!H169","v":0},{"$f":"'B. Parameters'!I169","v":0},0,{"$f":"'B. Parameters'!B261*Costs!B47","v":0},0]
[2061,{"$f":"'B. Parameters'!B170","v":0},{"$f":"'B. Parameters'!C170","v":0},{"$f":"'B. Parameters'!E170","v":0},{"$f":"'B. Parameters'!F170","v":0},{"$f":"'B. Parameters'!G170","v":0},{"$f":"'B. Parameters'!H170","v":0},{"$f":"'B. Parameters'!I170","v":0},0,{"$f":"'B. Parameters'!B262*Costs!B48","v":0},0]
[2062,{"$f":"'B. Parameters'!B171","v":0},{"$f":"'B. Parameters'!C171","v":0},{"$f":"'B. Parameters'!E171","v":0},{"$f":"'B. Parameters'!F171","v":0},{"$f":"'B. Parameters'!G171","v":0},{"$f":"'B. Parameters'!H171","v":0},{"$f":"'B. Parameters'!I171","v":0},0,{"$f":"'B. Parameters'!B263*Costs!B49","v":0},0]
[2063,{"$f":"'B. Parameters'!B172","v":0},{"$f":"'B. Parameters'!C172","v":0},{"$f":"'B. Parameters'!E172","v":0},{"$f":"'B. Parameters'!F172","v":0},{"$f":"'B. Parameters'!G172","v":0},{"$f":"'B. Parameters'!H172","v":0},{"$f":"'B. Parameters'!I172","v":0},0,{"$f":"'B. Parameters'!B264*Costs!B50","v":0},0]
[2064,{"$f":"'B. Parameters'!B173","v":0},{"$f":"'B. Parameters'!C173","v":0},{"$f":"'B. Parameters'!E173","v":0},{"$f":"'B. Parameters'!F173","v":0},{"$f":"'B. Parameters'!G173","v":0},{"$f":"'B. Parameters'!H173","v":0},{"$f":"'B. Parameters'!I173","v":0},0,{"$f":"'B. Parameters'!B265*Costs!B51","v":0},0]
[2065,{"$f":"'B. Parameters'!B174","v":0},{"$f":"'B. Parameters'!C174","v":0},{"$f":"'B. Parameters'!E174","v":0},{"$f":"'B. Parameters'!F174","v":0},{"$f":"'B. Parameters'!G174","v":0},{"$f":"'B. Parameters'!H174","v":0},{"$f":"'B. Parameters'!I174","v":0},0,{"$f":"'B. Parameters'!B266*Costs!B52","v":0},0]
[2066,{"$f":"'B. Parameters'!B175","v":0},{"$f":"'B. Parameters'!C175","v":0},{"$f":"'B. Parameters'!E175","v":0},{"$f":"'B. Parameters'!F175","v":0},{"$f":"'B. Parameters'!G175","v":0},{"$f":"'B. Parameters'!H175","v":0},{"$f":"'B. Parameters'!I175","v":0},0,{"$f":"'B. Parameters'!B267*Costs!B53","v":0},0]
[2067,{"$f":"'B. Parameters'!B176","v":0},{"$f":"'B. Parameters'!C176","v":0},{"$f":"'B. Parameters'!E176","v":0},{"$f":"'B. Parameters'!F176","v":0},{"$f":"'B. Parameters'!G176","v":0},{"$f":"'B. Parameters'!H176","v":0},{"$f":"'B. Parameters'!I176","v":0},0,{"$f":"'B. Parameters'!B268*Costs!B54","v":0},0]
[2068,{"$f":"'B. Parameters'!B177","v":0},{"$f":"'B. Parameters'!C177","v":0},{"$f":"'B. Parameters'!E177","v":0},{"$f":"'B. Parameters'!F177","v":0},{"$f":"'B. Parameters'!G177","v":0},{"$f":"'B. Parameters'!H177","v":0},{"$f":"'B. Parameters'!I177","v":0},0,{"$f":"'B. Parameters'!B269*Costs!B55","v":0},0]
[2069,{"$f":"'B. Parameters'!B178","v":0},{"$f":"'B. Parameters'!C178","v":0},{"$f":"'B. Parameters'!E178","v":0},{"$f":"'B. Parameters'!F178","v":0},{"$f":"'B. Parameters'!G178","v":0},{"$f":"'B. Parameters'!H178","v":0},{"$f":"'B. Parameters'!I178","v":0},0,{"$f":"'B. Parameters'!B270*Costs!B56","v":0},0]
[2070,{"$f":"'B. Parameters'!B179","v":0},{"$f":"'B. Parameters'!C179","v":0},{"$f":"'B. Parameters'!E179","v":0},{"$f":"'B. Parameters'!F179","v":0},{"$f":"'B. Parameters'!G179","v":0},{"$f":"'B. Parameters'!H179","v":0},{"$f":"'B. Parameters'!I179","v":0},0,{"$f":"'B. Parameters'!B271*Costs!B57","v":0},0]
[2071,{"$f":"'B. Parameters'!B180","v":0},{"$f":"'B. Parameters'!C180","v":0},{"$f":"'B. Parameters'!E180","v":0},{"$f":"'B. Parameters'!F180","v":0},{"$f":"'B. Parameters'!G180","v":0},{"$f":"'B. Parameters'!H180","v":0},{"$f":"'B. Parameters'!I180","v":0},0,{"$f":"'B. Parameters'!B272*Costs!B58","v":0},0]
[2072,{"$f":"'B. Parameters'!B181","v":0},{"$f":"'B. Parameters'!C181","v":0},{"$f":"'B. Parameters'!E181","v":0},{"$f":"'B. Parameters'!F181","v":0},{"$f":"'B. Parameters'!G181","v":0},{"$f":"'B. Parameters'!H181","v":0},{"$f":"'B. Parameters'!I181","v":0},0,{"$f":"'B. Parameters'!B273*Costs!B59","v":0},0]
[2073,{"$f":"'B. Parameters'!B182","v":0},{"$f":"'B. Parameters'!C182","v":0},{"$f":"'B. Parameters'!E182","v":0},{"$f":"'B. Parameters'!F182","v":0},{"$f":"'B. Parameters'!G182","v":0},{"$f":"'B. Parameters'!H182","v":0},{"$f":"'B. Parameters'!I182","v":0},0,{"$f":"'B. Parameters'!B274*Costs!B60","v":0},0]
[2074,{"$f":"'B. Parameters'!B183","v":0},{"$f":"'B. Parameters'!C183","v":0},{"$f":"'B. Parameters'!E183","v":0},{"$f":"'B. Parameters'!F183","v":0},{"$f":"'B. Parameters'!G183","v":0},{"$f":"'B. Parameters'!H183","v":0},{"$f":"'B. Parameters'!I183","v":0},0,{"$f":"'B. Parameters'!B275*Costs!B61","v":0},0]
[2075,{"$f":"'B. Parameters'!B184","v":0},{"$f":"'B. Parameters'!C184","v":0},{"$f":"'B. Parameters'!E184","v":0},{"$f":"'B. Parameters'!F184","v":0},{"$f":"'B. Parameters'!G184","v":0},{"$f":"'B. Parameters'!H184","v":0},{"$f":"'B. Parameters'!I184","v":0},0,{"$f":"'B. Parameters'!B276*Costs!B62","v":0},0]
[2076,{"$f":"'B. Parameters'!B185","v":0},{"$f":"'B. Parameters'!C185","v":0},{"$f":"'B. Parameters'!E185","v":0},{"$f":"'B. Parameters'!F185","v":0},{"$f":"'B. Parameters'!G185","v":0},{"$f":"'B. Parameters'!H185","v":0},{"$f":"'B. Parameters'!I185","v":0},0,{"$f":"'B. Parameters'!B277*Costs!B63","v":0},0]
[2077,{"$f":"'B. Parameters'!B186","v":0},{"$f":"'B. Parameters'!C186","v":0},{"$f":"'B. Parameters'!E186","v":0},{"$f":"'B. Parameters'!F186","v":0},{"$f":"'B. Parameters'!G186","v":0},{"$f":"'B. Parameters'!H186","v":0},{"$f":"'B. Parameters'!I186","v":0},0,{"$f":"'B. Parameters'!B278*Costs!B64","v":0},0]
[2078,{"$f":"'B. Parameters'!B187","v":0},{"$f":"'B. Parameters'!C187","v":0},{"$f":"'B. Parameters'!E187","v":0},{"$f":"'B. Parameters'!F187","v":0},{"$f":"'B. Parameters'!G187","v":0},{"$f":"'B. Parameters'!H187","v":0},{"$f":"'B. Parameters'!I187","v":0},0,{"$f":"'B. Parameters'!B279*Costs!B65","v":0},0]
[2079,{"$f":"'B. Parameters'!B188","v":0},{"$f":"'B. Parameters'!C188","v":0},{"$f":"'B. Parameters'!E188","v":0},{"$f":"'B. Parameters'!F188","v":0},{"$f":"'B. Parameters'!G188","v":0},{"$f":"'B. Parameters'!H188","v":0},{"$f":"'B. Parameters'!I188","v":0},0,{"$f":"'B. Parameters'!B280*Costs!B66","v":0},0]
[2080,{"$f":"'B. Parameters'!B189","v":0},{"$f":"'B. Parameters'!C189","v":0},{"$f":"'B. Parameters'!E189","v":0},{"$f":"'B. Parameters'!F189","v":0},{"$f":"'B. Parameters'!G189","v":0},{"$f":"'B. Parameters'!H189","v":0},{"$f":"'B. Parameters'!I189","v":0},0,{"$f":"'B. Parameters'!B281*Costs!B67","v":0},{"$f":"IF(B67=0,0,(I155+J155)/B67)","v":0}]
[2081,{"$f":"'B. Parameters'!B190","v":0},{"$f":"'B. Parameters'!C190","v":0},{"$f":"'B. Parameters'!E190","v":0},{"$f":"'B. Parameters'!F190","v":0},{"$f":"'B. Parameters'!G190","v":0},{"$f":"'B. Parameters'!H190","v":0},{"$f":"'B. Parameters'!I190","v":0},0,{"$f":"'B. Parameters'!B282*Costs!B68","v":0},0]
[2082,{"$f":"'B. Parameters'!B191","v":0},{"$f":"'B. Parameters'!C191","v":0},{"$f":"'B. Parameters'!E191","v":0},{"$f":"'B. Parameters'!F191","v":0},{"$f":"'B. Parameters'!G191","v":0},{"$f":"'B. Parameters'!H191","v":0},{"$f":"'B. Parameters'!I191","v":0},0,{"$f":"'B. Parameters'!B283*Costs!B69","v":0},0]
[2083,{"$f":"'B. Parameters'!B192","v":0},{"$f":"'B. Parameters'!C192","v":0},{"$f":"'B. Parameters'!E192","v":0},{"$f":"'B. Parameters'!F192","v":0},{"$f":"'B. Parameters'!G192","v":0},{"$f":"'B. Parameters'!H192","v":0},{"$f":"'B. Parameters'!I192","v":0},0,{"$f":"'B. Parameters'!B284*Costs!B70","v":0},0]
[2084,{"$f":"'B. Parameters'!B193","v":0},{"$f":"'B. Parameters'!C193","v":0},{"$f":"'B. Parameters'!E193","v":0},{"$f":"'B. Parameters'!F193","v":0},{"$f":"'B. Parameters'!G193","v":0},{"$f":"'B. Parameters'!H193","v":0},{"$f":"'B. Parameters'!I193","v":0},0,{"$f":"'B. Parameters'!B285*Costs!B71","v":0},0]
[2085,{"$f":"'B. Parameters'!B194","v":0},{"$f":"'B. Parameters'!C194","v":0},{"$f":"'B. Parameters'!E194","v":0},{"$f":"'B. Parameters'!F194","v":0},{"$f":"'B. Parameters'!G194","v":0},{"$f":"'B. Parameters'!H194","v":0},{"$f":"'B. Parameters'!I194","v":0},0,{"$f":"'B. Parameters'!B286*Costs!B72","v":0},0]
[2086,{"$f":"'B. Parameters'!B195","v":0},{"$f":"'B. Parameters'!C195","v":0},{"$f":"'B. Parameters'!E195","v":0},{"$f":"'B. Parameters'!F195","v":0},{"$f":"'B. Parameters'!G195","v":0},{"$f":"'B. Parameters'!H195","v":0},{"$f":"'B. Parameters'!I195","v":0},0,{"$f":"'B. Parameters'!B287*Costs!B73","v":0},0]
[2087,{"$f":"'B. Parameters'!B196","v":0},{"$f":"'B. Parameters'!C196","v":0},{"$f":"'B. Parameters'!E196","v":0},{"$f":"'B. Parameters'!F196","v":0},{"$f":"'B. Parameters'!G196","v":0},{"$f":"'B. Parameters'!H196","v":0},{"$f":"'B. Parameters'!I196","v":0},0,{"$f":"'B. Parameters'!B288*Costs!B74","v":0},0]
[2088,{"$f":"'B. Parameters'!B197","v":0},{"$f":"'B. Parameters'!C197","v":0},{"$f":"'B. Parameters'!E197","v":0},{"$f":"'B. Parameters'!F197","v":0},{"$f":"'B. Parameters'!G197","v":0},{"$f":"'B. Parameters'!H197","v":0},{"$f":"'B. Parameters'!I197","v":0},0,{"$f":"'B. Parameters'!B289*Costs!B75","v":0},0]
[2089,{"$f":"'B. Parameters'!B198","v":0},{"$f":"'B. Parameters'!C198","v":0},{"$f":"'B. Parameters'!E198","v":0},{"$f":"'B. Parameters'!F198","v":0},{"$f":"'B. Parameters'!G198","v":0},{"$f":"'B. Parameters'!H198","v":0},{"$f":"'B. Parameters'!I198","v":0},0,{"$f":"'B. Parameters'!B290*Costs!B76","v":0},0]
[2090,{"$f":"'B. Parameters'!B199","v":0},{"$f":"'B. Parameters'!C199","v":0},{"$f":"'B. Parameters'!E199","v":0},{"$f":"'B. Parameters'!F199","v":0},{"$f":"'B. Parameters'!G199","v":0},{"$f":"'B. Parameters'!H199","v":0},{"$f":"'B. Parameters'!I199","v":0},0,{"$f":"'B. Parameters'!B291*Costs!B77","v":0},0]
[2091,{"$f":"'B. Parameters'!B200","v":0},{"$f":"'B. Parameters'!C200","v":0},{"$f":"'B. Parameters'!E200","v":0},{"$f":"'B. Parameters'!F200","v":0},{"$f":"'B. Parameters'!G200","v":0},{"$f":"'B. Parameters'!H200","v":0},{"$f":"'B. Parameters'!I200","v":0},0,{"$f":"'B. Parameters'!B292*Costs!B78","v":0},0]
[2092,{"$f":"'B. Parameters'!B201","v":0},{"$f":"'B. Parameters'!C201","v":0},{"$f":"'B. Parameters'!E201","v":0},{"$f":"'B. Parameters'!F201","v":0},{"$f":"'B. Parameters'!G201","v":0},{"$f":"'B. Parameters'!H201","v":0},{"$f":"'B. Parameters'!I201","v":0},0,{"$f":"'B. Parameters'!B293*Costs!B79","v":0},0]
[2093,{"$f":"'B. Parameters'!B202","v":0},{"$f":"'B. Parameters'!C202","v":0},{"$f":"'B. Parameters'!E202","v":0},{"$f":"'B. Parameters'!F202","v":0},{"$f":"'B. Parameters'!G202","v":0},{"$f":"'B. Parameters'!H202","v":0},{"$f":"'B. Parameters'!I202","v":0},0,{"$f":"'B. Parameters'!B294*Costs!B80","v":0},0]
[2094,{"$f":"'B. Parameters'!B203","v":0},{"$f":"'B. Parameters'!C203","v":0},{"$f":"'B. Parameters'!E203","v":0},{"$f":"'B. Parameters'!F203","v":0},{"$f":"'B. Parameters'!G203","v":0},{"$f":"'B. Parameters'!H203","v":0},{"$f":"'B. Parameters'!I203","v":0},0,{"$f":"'B. Parameters'!B295*Costs!B81","v":0},0]
[2095,{"$f":"'B. Parameters'!B204","v":0},{"$f":"'B. Parameters'!C204","v":0},{"$f":"'B. Parameters'!E204","v":0},{"$f":"'B. Parameters'!F204","v":0},{"$f":"'B. Parameters'!G204","v":0},{"$f":"'B. Parameters'!H204","v":0},{"$f":"'B. Parameters'!I204","v":0},0,{"$f":"'B. Parameters'!B296*Costs!B82","v":0},0]
[2096,{"$f":"'B. Parameters'!B205","v":0},{"$f":"'B. Parameters'!C205","v":0},{"$f":"'B. Parameters'!E205","v":0},{"$f":"'B. Parameters'!F205","v":0},{"$f":"'B. Parameters'!G205","v":0},{"$f":"'B. Parameters'!H205","v":0},{"$f":"'B. Parameters'!I205","v":0},{"$f":"SUM(B171:H171)","v":0},{"$f":"'B. Parameters'!B297*Costs!B83","v":0},0]
[2097,{"$f":"'B. Parameters'!B206","v":0},{"$f":"'B. Parameters'!C206","v":0},{"$f":"'B. Parameters'!E206","v":0},{"$f":"'B. Parameters'!F206","v":0},{"$f":"'B. Parameters'!G206","v":0},{"$f":"'B. Parameters'!H206","v":0},{"$f":"'B. Parameters'!I206","v":0},{"$f":"SUM(B172:H172)","v":0},{"$f":"'B. Parameters'!B298*Costs!B84","v":0},0]
[2098,{"$f":"'B. Parameters'!B207","v":0},{"$f":"'B. Parameters'!C207","v":0},{"$f":"'B. Parameters'!E207","v":0},{"$f":"'B. Parameters'!F207","v":0},{"$f":"'B. Parameters'!G207","v":0},{"$f":"'B. Parameters'!H207","v":0},{"$f":"'B. Parameters'!I207","v":0},{"$f":"SUM(B173:H173)","v":0},{"$f":"'B. Parameters'!B299*Costs!B85","v":0},0]
[2099,{"$f":"'B. Parameters'!B208","v":0},{"$f":"'B. Parameters'!C208","v":0},{"$f":"'B. Parameters'!E208","v":0},{"$f":"'B. Parameters'!F208","v":0},{"$f":"'B. Parameters'!G208","v":0},{"$f":"'B. Parameters'!H208","v":0},{"$f":"'B. Parameters'!I208","v":0},{"$f":"SUM(B174:H174)","v":0},{"$f":"'B. Parameters'!B300*Costs!B86","v":0},0]
[2100,{"$f":"'B. Parameters'!B209","v":0},{"$f":"'B. Parameters'!C209","v":0},{"$f":"'B. Parameters'!E209","v":0},{"$f":"'B. Parameters'!F209","v":0},{"$f":"'B. Parameters'!G209","v":0},{"$f":"'B. Parameters'!H209","v":0},{"$f":"'B. Parameters'!I209","v":0},{"$f":"SUM(B175:H175)","v":0},{"$f":"'B. Parameters'!B301*Costs!B87","v":0},0]
[]
["Completed assets after non-interest-bearing items",null,1,2,3,4,5,6,7,8,9,10,11,12,13,14,15,16,17,18,19,20,21,22,23,24,25,26,27,28,29,30,31,32,33,34,35,36,37,38,39,40,41]
[null,"Total","Properties","Property facilities, structures for transport system","Operating buildings","Administrative buildings","Track systems, wagons","Business equipment (without IT/tools/devices)","Tools/devices","Storage facilities","Hardware","Software","Light vehicles","Heavy vehicles","Gas holders","Natural gas compression","Gas purifiers","Piping and fittings","Gas measuring equipment","Safety equipment","Control and energy technology","Ancillary facilities","Buildings, transport routes","Steel pipelines – encapsulated in PE","Steel pipelines – cathodic protection","Steel pipelines – bituminised","Grey cast iron (> DN 150)","Polyethylene (PE - HD)","Polyvinyl chloride (PVC)","Polyvinyl chloride (PVC)","Fittings","Pig traps","Safety equipment","Gas meters of distribution","Service regulators/meter regulators","Metering equipment","Control equipment","Safety equipment","Control and energy technology","Compressors in gas-mixing systems by duration of use","Ancillary facilities","Buildings","Remote control equipment"]
[2016,{"$f":"SUM(C179:AQ179)","v":0},{"$f":"SUMPRODUCT((AbschreibungAGr=C$177)*(Aktivierungsjahr=$A179)*(AbschreibungAHKBvD))","v":0},0,0,0,0,0,0,0,0,0,{"$f":"SUMPRODUCT((AbschreibungAGr=M$177)*(Aktivierungsjahr=$A179)*(AbschreibungAHKBvD))","v":0},0,0,0,0,0,0,0,0,0,{"$f":"SUMPRODUCT((AbschreibungAGr=W$177)*(Aktivierungsjahr=$A179)*(AbschreibungAHKBvD))","v":0},0,0,0,0,0,0,0,0,0,{"$f":"SUMPRODUCT((AbschreibungAGr=AG$177)*(Aktivierungsjahr=$A179)*(AbschreibungAHKBvD))","v":0},0,0,0,0,0,0,0,0,0,0]
[2017,0,0,0,0,0,0,0,0,0,0,0,0,0,0,0,0,0,0,0,0,0,0,0,0,0,0,0,0,0,0,0,0,0,0,0,0,0,0,0,0,0,0]
[2018,0,0,0,0,0,0,0,0,0,0,0,0,0,0,0,0,0,0,0,0,0,0,0,0,0,0,0,0,0,0,0,0,0,0,0,0,0,0,0,0,0,0]
[2019,0,0,0,0,0,0,0,0,0,0,0,0,0,0,0,0,0,0,0,0,0,0,0,0,0,0,0,0,0,0,0,0,0,0,0,0,0,0,0,0,0,0]
[2020,0,0,0,0,0,0,0,0,0,0,0,0,0,0,0,0,0,0,0,0,0,0,0,0,0,0,0,0,0,0,0,0,0,0,0,0,0,0,0,0,0,0]
[2021,0,0,0,0,0,0,0,0,0,0,0,0,0,0,0,0,0,0,0,0,0,0,0,0,0,0,0,0,0,0,0,0,0,0,0,0,0,0,0,0,0,0]
[2022,0,0,0,0,0,0,0,0,0,0,0,0,0,0,0,0,0,0,0,0,0,0,0,0,0,0,0,0,0,0,0,0,0,0,0,0,0,0,0,0,0,0]
[2023,0,0,0,0,0,0,0,0,0,0,0,0,0,0,0,0,0,0,0,0,0,0,0,0,0,0,0,0,0,0,0,0,0,0,0,0,0,0,0,0,0,0]
[2024,0,0,0,0,0,0,0,0,0,0,0,0,0,0,0,0,0,0,0,0,0,0,0,0,0,0,0,0,0,0,0,0,0,0,0,0,0,0,0,0,0,0]
[2025,151000000,{"$f":"SUMPRODUCT((AbschreibungAGr=C$177)*(Aktivierungsjahr=$A188)*(AbschreibungAHKBvD))","v":0},0,0,0,0,0,0,0,0,0,{"$f":"SUMPRODUCT((AbschreibungAGr=M$177)*(Aktivierungsjahr=$A188)*(AbschreibungAHKBvD))","v":0},0,0,150000000,0,0,0,0,0,0,{"$f":"SUMPRODUCT((AbschreibungAGr=W$177)*(Aktivierungsjahr=$A188)*(AbschreibungAHKBvD))","v":0},0,0,0,0,0,0,0,0,0,{"$f":"SUMPRODUCT((AbschreibungAGr=AG$177)*(Aktivierungsjahr=$A188)*(AbschreibungAHKBvD))","v":0},0,0,1000000,0,0,0,0,0,0,0]
[2026,0,0,0,0,0,0,0,0,0,0,0,0,0,0,0,0,0,0,0,0,0,0,0,0,0,0,0,0,0,0,0,0,0,0,0,0,0,0,0,0,0,0]
[2027,0,0,0,0,0,0,0,0,0,0,0,0,0,0,0,0,0,0,0,0,0,0,0,0,0,0,0,0,0,0,0,0,0,0,0,0,0,0,0,0,0,0]
[2028,0,0,0,0,0,0,0,0,0,0,0,0,0,0,0,0,0,0,0,0,0,0,0,0,0,0,0,0,0,0,0,0,0,0,0,0,0,0,0,0,0,0]
[2029,0,0,0,0,0,0,0,0,0,0,0,0,0,0,0,0,0,0,0,0,0,0,0,0,0,0,0,0,0,0,0,0,0,0,0,0,0,0,0,0,0,0]
[2030,0,0,0,0,0,0,0,0,0,0,0,0,0,0,0,0,0,0,0,0,0,0,0,0,0,0,0,0,0,0,0,0,0,0,0,0,0,0,0,0,0,0]
[2031,0,0,0,0,0,0,0,0,0,0,0,0,0,0,0,0,0,0,0,0,0,0,0,0,0,0,0,0,0,0,0,0,0,0,0,0,0,0,0,0,0,0]
[2032,{"$f":"SUM(C195:AQ195)","v":0},0,0,0,0,0,0,0,0,0,0,0,0,0,0,0,0,0,0,0,0,0,0,0,0,0,0,0,0,0,0,0,0,0,0,0,0,0,0,0,0,0]
[2033,0,0,0,0,0,0,0,0,0,0,0,0,0,0,0,0,0,0,0,0,0,0,0,0,0,0,0,0,0,0,0,0,0,0,0,0,0,0,0,0,0,0]
[2034,0,0,0,0,0,0,0,0,0,0,0,0,0,0,0,0,0,0,0,0,0,0,0,0,0,0,0,0,0,0,0,0,0,0,0,0,0,0,0,0,0,0]
[2035,0,{"$f":"SUMPRODUCT((AbschreibungAGr=C$177)*(Aktivierungsjahr=$A198)*(AbschreibungAHKBvD))","v":0},0,0,0,0,0,0,0,0,0,{"$f":"SUMPRODUCT((AbschreibungAGr=M$177)*(Aktivierungsjahr=$A198)*(AbschreibungAHKBvD))","v":0},0,0,0,0,0,0,0,0,0,{"$f":"SUMPRODUCT((AbschreibungAGr=W$177)*(Aktivierungsjahr=$A198)*(AbschreibungAHKBvD))","v":0},0,0,0,0,0,0,0,0,0,{"$f":"SUMPRODUCT((AbschreibungAGr=AG$177)*(Aktivierungsjahr=$A198)*(AbschreibungAHKBvD))","v":0},0,0,0,0,0,0,0,0,0,0]
[2036,0,0,0,0,0,0,0,0,0,0,0,0,0,0,0,0,0,0,0,0,0,0,0,0,0,0,0,0,0,0,0,0,0,0,0,0,0,0,0,0,0,0]
[2037,0,0,0,0,0,0,0,0,0,0,0,0,0,0,0,0,0,0,0,0,0,0,0,0,0,0,0,0,0,0,0,0,0,0,0,0,0,0,0,0,0,0]
[2038,0,0,0,0,0,0,0,0,0,0,0,0,0,0,0,0,0,0,0,0,0,0,0,0,0,0,0,0,0,0,0,0,0,0,0,0,0,0,0,0,0,0]
[2039,0,0,0,0,0,0,0,0,0,0,0,0,0,0,0,0,0,0,0,0,0,0,0,0,0,0,0,0,0,0,0,0,0,0,0,0,0,0,0,0,0,0]
[2040,0,0,0,0,0,0,0,0,0,0,0,0,0,0,0,0,0,0,0,0,0,0,0,0,0,0,0,0,0,0,0,0,0,0,0,0,0,0,0,0,0,0]
[2041,0,0,0,0,0,0,0,0,0,0,0,0,0,0,0,0,0,0,0,0,0,0,0,0,0,0,0,0,0,0,0,0,0,0,0,0,0,0,0,0,0,0]
[2042,0,0,0,0,0,0,0,0,0,0,0,0,0,0,0,0,0,0,0,0,0,0,0,0,0,0,0,0,0,0,0,0,0,0,0,0,0,0,0,0,0,0]
[2043,0,0,0,0,0,0,0,0,0,0,0,0,0,0,0,0,0,0,0,0,0,0,0,0,0,0,0,0,0,0,0,0,0,0,0,0,0,0,0,0,0,0]
[2044,0,0,0,0,0,0,0,0,0,0,0,0,0,0,0,0,0,0,0,0,0,0,0,0,0,0,0,0,0,0,0,0,0,0,0,0,0,0,0,0,0,0]
[2045,0,{"$f":"SUMPRODUCT((AbschreibungAGr=C$177)*(Aktivierungsjahr=$A208)*(AbschreibungAHKBvD))","v":0},0,0,0,0,0,0,0,0,0,{"$f":"SUMPRODUCT((AbschreibungAGr=M$177)*(Aktivierungsjahr=$A208)*(AbschreibungAHKBvD))","v":0},0,0,0,0,0,0,0,0,0,{"$f":"SUMPRODUCT((AbschreibungAGr=W$177)*(Aktivierungsjahr=$A208)*(AbschreibungAHKBvD))","v":0},0,0,0,0,0,0,0,0,0,{"$f":"SUMPRODUCT((AbschreibungAGr=AG$177)*(Aktivierungsjahr=$A208)*(AbschreibungAHKBvD))","v":0},0,0,0,0,0,0,0,0,0,0]
[2046,0,0,0,0,0,0,0,0,0,0,0,0,0,0,0,0,0,0,0,0,0,0,0,0,0,0,0,0,0,0,0,0,0,0,0,0,0,0,0,0,0,0]
[2047,0,0,0,0,0,0,0,0,0,0,0,0,0,0,0,0,0,0,0,0,0,0,0,0,0,0,0,0,0,0,0,0,0,0,0,0,0,0,0,0,0,0]
[2048,0,0,0,0,0,0,0,0,0,0,0,0,0,0,0,0,0,0,0,0,0,0,0,0,0,0,0,0,0,0,0,0,0,0,0,0,0,0,0,0,0,0]
[2049,0,0,0,0,0,0,0,0,0,0,0,0,0,0,0,0,0,0,0,0,0,0,0,0,0,0,0,0,0,0,0,0,0,0,0,0,0,0,0,0,0,0]
[2050,0,0,0,0,0,0,0,0,0,0,0,0,0,0,0,0,0,0,0,0,0,0,0,0,0,0,0,0,0,0,0,0,0,0,0,0,0,0,0,0,0,0]
[2051,0,0,0,0,0,0,0,0,0,0,0,0,0,0,0,0,0,0,0,0,0,0,0,0,0,0,0,0,0,0,0,0,0,0,0,0,0,0,0,0,0,0]
[2052,0,0,0,0,0,0,0,0,0,0,0,0,0,0,0,0,0,0,0,0,0,0,0,0,0,0,0,0,0,0,0,0,0,0,0,0,0,0,0,0,0,0]
[2053,0,0,0,0,0,0,0,0,0,0,0,0,0,0,0,0,0,0,0,0,0,0,0,0,0,0,0,0,0,0,0,0,0,0,0,0,0,0,0,0,0,0]
[2054,0,0,0,0,0,0,0,0,0,0,0,0,0,0,0,0,0,0,0,0,0,0,0,0,0,0,0,0,0,0,0,0,0,0,0,0,0,0,0,0,0,0]
[2055,0,{"$f":"SUMPRODUCT((AbschreibungAGr=C$177)*(Aktivierungsjahr=$A218)*(AbschreibungAHKBvD))","v":0},0,0,0,0,0,0,0,0,0,{"$f":"SUMPRODUCT((AbschreibungAGr=M$177)*(Aktivierungsjahr=$A218)*(AbschreibungAHKBvD))","v":0},0,0,0,0,0,0,0,0,0,{"$f":"SUMPRODUCT((AbschreibungAGr=W$177)*(Aktivierungsjahr=$A218)*(AbschreibungAHKBvD))","v":0},0,0,0,0,0,0,0,0,0,{"$f":"SUMPRODUCT((AbschreibungAGr=AG$177)*(Aktivierungsjahr=$A218)*(AbschreibungAHKBvD))","v":0},0,0,0,0,0,0,0,0,0,0]
[2056,0,0,0,0,0,0,0,0,0,0,0,0,0,0,0,0,0,0,0,0,0,0,0,0,0,0,0,0,0,0,0,0,0,0,0,0,0,0,0,0,0,0]
[2057,0,0,0,0,0,0,0,0,0,0,0,0,0,0,0,0,0,0,0,0,0,0,0,0,0,0,0,0,0,0,0,0,0,0,0,0,0,0,0,0,0,0]
[2058,0,0,0,0,0,0,0,0,0,0,0,0,0,0,0,0,0,0,0,0,0,0,0,0,0,0,0,0,0,0,0,0,0,0,0,0,0,0,0,0,0,0]
[2059,0,0,0,0,0,0,0,0,0,0,0,0,0,0,0,0,0,0,0,0,0,0,0,0,0,0,0,0,0,0,0,0,0,0,0,0,0,0,0,0,0,0]
[2060,0,0,0,0,0,0,0,0,0,0,0,0,0,0,0,0,0,0,0,0,0,0,0,0,0,0,0,0,0,0,0,0,0,0,0,0,0,0,0,0,0,0]
[2061,0,0,0,0,0,0,0,0,0,0,0,0,0,0,0,0,0,0,0,0,0,0,0,0,0,0,0,0,0,0,0,0,0,0,0,0,0,0,0,0,0,0]
[2062,0,0,0,0,0,0,0,0,0,0,0,0,0,0,0,0,0,0,0,0,0,0,0,0,0,0,0,0,0,0,0,0,0,0,0,0,0,0,0,0,0,0]
[2063,0,0,0,0,0,0,0,0,0,0,0,0,0,0,0,0,0,0,0,0,0,0,0,0,0,0,0,0,0,0,0,0,0,0,0,0,0,0,0,0,0,0]
[2064,0,0,0,0,0,0,0,0,0,0,0,0,0,0,0,0,0,0,0,0,0,0,0,0,0,0,0,0,0,0,0,0,0,0,0,0,0,0,0,0,0,0]
[2065,0,{"$f":"SUMPRODUCT((AbschreibungAGr=C$177)*(Aktivierungsjahr=$A228)*(AbschreibungAHKBvD))","v":0},0,0,0,0,0,0,0,0,0,{"$f":"SUMPRODUCT((AbschreibungAGr=M$177)*(Aktivierungsjahr=$A228)*(AbschreibungAHKBvD))","v":0},0,0,0,0,0,0,0,0,0,{"$f":"SUMPRODUCT((AbschreibungAGr=W$177)*(Aktivierungsjahr=$A228)*(AbschreibungAHKBvD))","v":0},0,0,0,0,0,0,0,0,0,{"$f":"SUMPRODUCT((AbschreibungAGr=AG$177)*(Aktivierungsjahr=$A228)*(AbschreibungAHKBvD))","v":0},0,0,0,0,0,0,0,0,0,0]
[2066,0,0,0,0,0,0,0,0,0,0,0,0,0,0,0,0,0,0,0,0,0,0,0,0,0,0,0,0,0,0,0,0,0,0,0,0,0,0,0,0,0,0]
[2067,0,0,0,0,0,0,0,0,0,0,0,0,0,0,0,0,0,0,0,0,0,0,0,0,0,0,0,0,0,0,0,0,0,0,0,0,0,0,0,0,0,0]
[2068,0,0,0,0,0,0,0,0,0,0,0,0,0,0,0,0,0,0,0,0,0,0,0,0,0,0,0,0,0,0,0,0,0,0,0,0,0,0,0,0,0,0]
[2069,0,0,0,0,0,0,0,0,0,0,0,0,0,0,0,0,0,0,0,0,0,0,0,0,0,0,0,0,0,0,0,0,0,0,0,0,0,0,0,0,0,0]
[2070,0,0,0,0,0,0,0,0,0,0,0,0,0,0,0,0,0,0,0,0,0,0,0,0,0,0,0,0,0,0,0,0,0,0,0,0,0,0,0,0,0,0]
[2071,0,0,0,0,0,0,0,0,0,0,0,0,0,0,0,0,0,0,0,0,0,0,0,0,0,0,0,0,0,0,0,0,0,0,0,0,0,0,0,0,0,0]
[2072,0,0,0,0,0,0,0,0,0,0,0,0,0,0,0,0,0,0,0,0,0,0,0,0,0,0,0,0,0,0,0,0,0,0,0,0,0,0,0,0,0,0]
[2073,0,0,0,0,0,0,0,0,0,0,0,0,0,0,0,0,0,0,0,0,0,0,0,0,0,0,0,0,0,0,0,0,0,0,0,0,0,0,0,0,0,0]
[2074,0,0,0,0,0,0,0,0,0,0,0,0,0,0,0,0,0,0,0,0,0,0,0,0,0,0,0,0,0,0,0,0,0,0,0,0,0,0,0,0,0,0]
[2075,0,{"$f":"SUMPRODUCT((AbschreibungAGr=C$177)*(Aktivierungsjahr=$A238)*(AbschreibungAHKBvD))","v":0},0,0,0,0,0,0,0,0,0,{"$f":"SUMPRODUCT((AbschreibungAGr=M$177)*(Aktivierungsjahr=$A238)*(AbschreibungAHKBvD))","v":0},0,0,0,0,0,0,0,0,0,{"$f":"SUMPRODUCT((AbschreibungAGr=W$177)*(Aktivierungsjahr=$A238)*(AbschreibungAHKBvD))","v":0},0,0,0,0,0,0,0,0,0,{"$f":"SUMPRODUCT((AbschreibungAGr=AG$177)*(Aktivierungsjahr=$A238)*(AbschreibungAHKBvD))","v":0},0,0,0,0,0,0,0,0,0,0]
[2076,0,0,0,0,0,0,0,0,0,0,0,0,0,0,0,0,0,0,0,0,0,0,0,0,0,0,0,0,0,0,0,0,0,0,0,0,0,0,0,0,0,0]
[2077,0,0,0,0,0,0,0,0,0,0,0,0,0,0,0,0,0,0,0,0,0,0,0,0,0,0,0,0,0,0,0,0,0,0,0,0,0,0,0,0,0,0]
[2078,0,0,0,0,0,0,0,0,0,0,0,0,0,0,0,0,0,0,0,0,0,0,0,0,0,0,0,0,0,0,0,0,0,0,0,0,0,0,0,0,0,0]
[2079,0,0,0,0,0,0,0,0,0,0,0,0,0,0,0,0,0,0,0,0,0,0,0,0,0,0,0,0,0,0,0,0,0,0,0,0,0,0,0,0,0,0]
[2080,0,0,0,0,0,0,0,0,0,0,0,0,0,0,0,0,0,0,0,0,0,0,0,0,0,0,0,0,0,0,0,0,0,0,0,0,0,0,0,0,0,0]
[2081,0,0,0,0,0,0,0,0,0,0,0,0,0,0,0,0,0,0,0,0,0,0,0,0,0,0,0,0,0,0,0,0,0,0,0,0,0,0,0,0,0,0]
[2082,0,0,0,0,0,0,0,0,0,0,0,0,0,0,0,0,0,0,0,0,0,0,0,0,0,0,0,0,0,0,0,0,0,0,0,0,0,0,0,0,0,0]
[2083,0,0,0,0,0,0,0,0,0,0,0,0,0,0,0,0,0,0,0,0,0,0,0,0,0,0,0,0,0,0,0,0,0,0,0,0,0,0,0,0,0,0]
[2084,0,0,0,0,0,0,0,0,0,0,0,0,0,0,0,0,0,0,0,0,0,0,0,0,0,0,0,0,0,0,0,0,0,0,0,0,0,0,0,0,0,0]
[2085,0,{"$f":"SUMPRODUCT((AbschreibungAGr=C$177)*(Aktivierungsjahr=$A248)*(AbschreibungAHKBvD))","v":0},0,0,0,0,0,0,0,0,0,{"$f":"SUMPRODUCT((AbschreibungAGr=M$177)*(Aktivierungsjahr=$A248)*(AbschreibungAHKBvD))","v":0},0,0,0,0,0,0,0,0,0,{"$f":"SUMPRODUCT((AbschreibungAGr=W$177)*(Aktivierungsjahr=$A248)*(AbschreibungAHKBvD))","v":0},0,0,0,0,0,0,0,0,0,{"$f":"SUMPRODUCT((AbschreibungAGr=AG$177)*(Aktivierungsjahr=$A248)*(AbschreibungAHKBvD))","v":0},0,0,0,0,0,0,0,0,0,0]
[2086,0,0,0,0,0,0,0,0,0,0,0,0,0,0,0,0,0,0,0,0,0,0,0,0,0,0,0,0,0,0,0,0,0,0,0,0,0,0,0,0,0,0]
[2087,0,0,0,0,0,0,0,0,0,0,0,0,0,0,0,0,0,0,0,0,0,0,0,0,0,0,0,0,0,0,0,0,0,0,0,0,0,0,0,0,0,0]
[2088,0,0,0,0,0,0,0,0,0,0,0,0,0,0,0,0,0,0,0,0,0,0,0,0,0,0,0,0,0,0,0,0,0,0,0,0,0,0,0,0,0,0]
[2089,0,0,0,0,0,0,0,0,0,0,0,0,0,0,0,0,0,0,0,0,0,0,0,0,0,0,0,0,0,0,0,0,0,0,0,0,0,0,0,0,0,0]
[2090,0,0,0,0,0,0,0,0,0,0,0,0,0,0,0,0,0,0,0,0,0,0,0,0,0,0,0,0,0,0,0,0,0,0,0,0,0,0,0,0,0,0]
[2091,0,0,0,0,0,0,0,0,0,0,0,0,0,0,0,0,0,0,0,0,0,0,0,0,0,0,0,0,0,0,0,0,0,0,0,0,0,0,0,0,0,0]
[2092,0,0,0,0,0,0,0,0,0,0,0,0,0,0,0,0,0,0,0,0,0,0,0,0,0,0,0,0,0,0,0,0,0,0,0,0,0,0,0,0,0,0]
[2093,0,0,0,0,0,0,0,0,0,0,0,0,0,0,0,0,0,0,0,0,0,0,0,0,0,0,0,0,0,0,0,0,0,0,0,0,0,0,0,0,0,0]
[2094,0,0,0,0,0,0,0,0,0,0,0,0,0,0,0,0,0,0,0,0,0,0,0,0,0,0,0,0,0,0,0,0,0,0,0,0,0,0,0,0,0,0]
[2095,0,{"$f":"SUMPRODUCT((AbschreibungAGr=C$177)*(Aktivierungsjahr=$A258)*(AbschreibungAHKBvD))","v":0},0,0,0,0,0,0,0,0,0,{"$f":"SUMPRODUCT((AbschreibungAGr=M$177)*(Aktivierungsjahr=$A258)*(AbschreibungAHKBvD))","v":0},0,0,0,0,0,0,0,0,0,{"$f":"SUMPRODUCT((AbschreibungAGr=W$177)*(Aktivierungsjahr=$A258)*(AbschreibungAHKBvD))","v":0},0,0,0,0,0,0,0,0,0,{"$f":"SUMPRODUCT((AbschreibungAGr=AG$177)*(Aktivierungsjahr=$A258)*(AbschreibungAHKBvD))","v":0},0,0,0,0,0,0,0,0,0,0]
[2096,{"$f":"SUM(C259:AQ259)","v":0},0,0,0,0,0,0,0,0,0,0,0,0,0,0,0,0,0,0,0,0,0,0,0,0,0,0,0,0,0,0,0,0,0,0,0,0,0,0,0,0,0]
[2097,{"$f":"SUM(C260:AQ260)","v":0},0,0,0,0,0,0,0,0,0,0,0,0,0,0,0,0,0,0,0,0,0,0,0,0,0,0,0,0,0,0,0,0,0,0,0,0,0,0,0,0,0]
[2098,{"$f":"SUM(C261:AQ261)","v":0},0,0,0,0,0,0,0,0,0,0,0,0,0,0,0,0,0,0,0,0,0,0,0,0,0,0,0,0,0,0,0,0,0,0,0,0,0,0,0,0,0]
[2099,{"$f":"SUM(C262:AQ262)","v":0},0,0,0,0,0,0,0,0,0,0,0,0,0,0,0,0,0,0,0,0,0,0,0,0,0,0,0,0,0,0,0,0,0,0,0,0,0,0,0,0,0]
[2100,{"$f":"SUM(C263:AQ263)","v":0},0,0,0,0,0,0,0,0,0,0,0,0,0,0,0,0,0,0,0,0,0,0,0,0,0,0,0,0,0,0,0,0,0,0,0,0,0,0,0,0,0]
[]
[null,null,1,2,3,4,5,6,7,8,9,10,11,12,13,14,15,16,17,18,19,20,21,22,23,24,25,26,27,28,29,30,31,32,33,34,35,36,37,38,39,40,41]
["Depreciation","Total","Properties","Property facilities, structures for transport system","Operating buildings","Administrative buildings","Track systems, wagons","Business equipment (without IT/tools/devices)","Tools/devices","Storage facilities","Hardware","Software","Light vehicles","Heavy vehicles","Gas holders","Natural gas compression","Gas purifiers","Piping and fittings","Gas measuring equipment","Safety equipment","Control and energy technology","Ancillary facilities","Buildings, transport routes","Steel pipelines – encapsulated in PE","Steel pipelines – cathodic protection","Steel pipelines – bituminised","Grey cast iron (> DN 150)","Polyethylene (PE - HD)","Polyvinyl chloride (PVC)","Polyvinyl chloride (PVC)","Fittings","Pig traps","Safety equipment","Gas meters of distribution","Service regulators/meter regulators","Metering equipment","Control equipment","Safety equipment","Control and energy technology","Compressors in gas-mixing systems by duration of use","Ancillary facilities","Buildings","Remote control equipment"]
[2016,{"$f":"SUM(C267:AQ267)","v":0},0,{"$f":"MAX(SUMPRODUCT((AbschreibungAGr=D$265)*(AbschreibungsendeJahr>=$A267)*(Aktivierungsjahr<=$A267)*(Abschreibungsbetrag)),0)","v":0},0,0,0,0,0,0,0,0,0,{"$f":"MAX(SUMPRODUCT((AbschreibungAGr=N$265)*(AbschreibungsendeJahr>=$A267)*(Aktivierungsjahr<=$A267)*(Abschreibungsbetrag)),0)","v":0},0,0,0,0,0,0,0,0,0,{"$f":"MAX(SUMPRODUCT((AbschreibungAGr=X$265)*(AbschreibungsendeJahr>=$A267)*(Aktivierungsjahr<=$A267)*(Abschreibungsbetrag)),0)","v":0},0,0,0,0,0,0,0,0,0,{"$f":"MAX(SUMPRODUCT((AbschreibungAGr=AH$265)*(AbschreibungsendeJahr>=$A267)*(Aktivierungsjahr<=$A267)*(Abschreibungsbetrag)),0)","v":0},0,0,0,0,0,0,0,0,0]
[2017,0,0,0,0,0,0,0,0,0,0,0,0,0,0,0,0,0,0,0,0,0,0,0,0,0,0,0,0,0,0,0,0,0,0,0,0,0,0,0,0,0,0]
[2018,0,0,0,0,0,0,0,0,0,0,0,0,0,0,0,0,0,0,0,0,0,0,0,0,0,0,0,0,0,0,0,0,0,0,0,0,0,0,0,0,0,0]
[2019,0,0,0,0,0,0,0,0,0,0,0,0,0,0,0,0,0,0,0,0,0,0,0,0,0,0,0,0,0,0,0,0,0,0,0,0,0,0,0,0,0,0]
[2020,0,0,0,0,0,0,0,0,0,0,0,0,0,0,0,0,0,0,0,0,0,0,0,0,0,0,0,0,0,0,0,0,0,0,0,0,0,0,0,0,0,0]
[2021,0,0,0,0,0,0,0,0,0,0,0,0,0,0,0,0,0,0,0,0,0,0,0,0,0,0,0,0,0,0,0,0,0,0,0,0,0,0,0,0,0,0]
[2022,0,0,0,0,0,0,0,0,0,0,0,0,0,0,0,0,0,0,0,0,0,0,0,0,0,0,0,0,0,0,0,0,0,0,0,0,0,0,0,0,0,0]
[2023,0,0,0,0,0,0,0,0,0,0,0,0,0,0,0,0,0,0,0,0,0,0,0,0,0,0,0,0,0,0,0,0,0,0,0,0,0,0,0,0,0,0]
[2024,0,0,0,0,0,0,0,0,0,0,0,0,0,0,0,0,0,0,0,0,0,0,0,0,0,0,0,0,0,0,0,0,0,0,0,0,0,0,0,0,0,0]
[2025,6022222.222222222,0,0,0,0,0,0,0,0,0,0,0,0,0,6000000,0,0,0,0,0,0,0,0,0,0,0,0,0,0,0,0,0,0,0,22222.222222222223,0,0,0,0,0,0,0]
[2026,6022222.222222222,0,{"$f":"MAX(SUMPRODUCT((AbschreibungAGr=D$265)*(AbschreibungsendeJahr>=$A277)*(Aktivierungsjahr<=$A277)*(Abschreibungsbetrag)),0)","v":0},0,0,0,0,0,0,0,0,0,{"$f":"MAX(SUMPRODUCT((AbschreibungAGr=N$265)*(AbschreibungsendeJahr>=$A277)*(Aktivierungsjahr<=$A277)*(Abschreibungsbetrag)),0)","v":0},0,6000000,0,0,0,0,0,0,0,{"$f":"MAX(SUMPRODUCT((AbschreibungAGr=X$265)*(AbschreibungsendeJahr>=$A277)*(Aktivierungsjahr<=$A277)*(Abschreibungsbetrag)),0)","v":0},0,0,0,0,0,0,0,0,0,{"$f":"MAX(SUMPRODUCT((AbschreibungAGr=AH$265)*(AbschreibungsendeJahr>=$A277)*(Aktivierungsjahr<=$A277)*(Abschreibungsbetrag)),0)","v":0},0,22222.222222222223,0,0,0,0,0,0,0]
[2027,6022222.222222222,0,0,0,0,0,0,0,0,0,0,0,0,0,6000000,0,0,0,0,0,0,0,0,0,0,0,0,0,0,0,0,0,0,0,22222.222222222223,0,0,0,0,0,0,0]
[2028,6022222.222222222,0,0,0,0,0,0,0,0,0,0,0,0,0,6000000,0,0,0,0,0,0,0,0,0,0,0,0,0,0,0,0,0,0,0,22222.222222222223,0,0,0,0,0,0,0]
[2029,6022222.222222222,0,0,0,0,0,0,0,0,0,0,0,0,0,6000000,0,0,0,0,0,0,0,0,0,0,0,0,0,0,0,0,0,0,0,22222.222222222223,0,0,0,0,0,0,0]
[2030,6022222.222222222,0,0,0,0,0,0,0,0,0,0,0,0,0,6000000,0,0,0,0,0,0,0,0,0,0,0,0,0,0,0,0,0,0,0,22222.222222222223,0,0,0,0,0,0,0]
[2031,6022222.222222222,0,0,0,0,0,0,0,0,0,0,0,0,0,6000000,0,0,0,0,0,0,0,0,0,0,0,0,0,0,0,0,0,0,0,22222.222222222223,0,0,0,0,0,0,0]
[2032,{"$f":"SUM(C283:AQ283)","v":6022222.222222222},0,0,0,0,0,0,0,0,0,0,0,0,0,6000000,0,0,0,0,0,0,0,0,0,0,0,0,0,0,0,0,0,0,0,22222.222222222223,0,0,0,0,0,0,0]
[2033,6022222.222222222,0,0,0,0,0,0,0,0,0,0,0,0,0,6000000,0,0,0,0,0,0,0,0,0,0,0,0,0,0,0,0,0,0,0,22222.222222222223,0,0,0,0,0,0,0]
[2034,6022222.222222222,0,0,0,0,0,0,0,0,0,0,0,0,0,6000000,0,0,0,0,0,0,0,0,0,0,0,0,0,0,0,0,0,0,0,22222.222222222223,0,0,0,0,0,0,0]
[2035,6022222.222222222,0,0,0,0,0,0,0,0,0,0,0,0,0,6000000,0,0,0,0,0,0,0,0,0,0,0,0,0,0,0,0,0,0,0,22222.222222222223,0,0,0,0,0,0,0]
[2036,6022222.222222222,0,{"$f":"MAX(SUMPRODUCT((AbschreibungAGr=D$265)*(AbschreibungsendeJahr>=$A287)*(Aktivierungsjahr<=$A287)*(Abschreibungsbetrag)),0)","v":0},0,0,0,0,0,0,0,0,0,{"$f":"MAX(SUMPRODUCT((AbschreibungAGr=N$265)*(AbschreibungsendeJahr>=$A287)*(Aktivierungsjahr<=$A287)*(Abschreibungsbetrag)),0)","v":0},0,6000000,0,0,0,0,0,0,0,{"$f":"MAX(SUMPRODUCT((AbschreibungAGr=X$265)*(AbschreibungsendeJahr>=$A287)*(Aktivierungsjahr<=$A287)*(Abschreibungsbetrag)),0)","v":0},0,0,0,0,0,0,0,0,0,{"$f":"MAX(SUMPRODUCT((AbschreibungAGr=AH$265)*(AbschreibungsendeJahr>=$A287)*(Aktivierungsjahr<=$A287)*(Abschreibungsbetrag)),0)","v":0},0,22222.222222222223,0,0,0,0,0,0,0]
[2037,6022222.222222222,0,0,0,0,0,0,0,0,0,0,0,0,0,6000000,0,0,0,0,0,0,0,0,0,0,0,0,0,0,0,0,0,0,0,22222.222222222223,0,0,0,0,0,0,0]
[2038,6022222.222222222,0,0,0,0,0,0,0,0,0,0,0,0,0,6000000,0,0,0,0,0,0,0,0,0,0,0,0,0,0,0,0,0,0,0,22222.222222222223,0,0,0,0,0,0,0]
[2039,6022222.222222222,0,0,0,0,0,0,0,0,0,0,0,0,0,6000000,0,0,0,0,0,0,0,0,0,0,0,0,0,0,0,0,0,0,0,22222.222222222223,0,0,0,0,0,0,0]
[2040,6022222.222222222,0,0,0,0,0,0,0,0,0,0,0,0,0,6000000,0,0,0,0,0,0,0,0,0,0,0,0,0,0,0,0,0,0,0,22222.222222222223,0,0,0,0,0,0,0]
[2041,6022222.222222222,0,0,0,0,0,0,0,0,0,0,0,0,0,6000000,0,0,0,0,0,0,0,0,0,0,0,0,0,0,0,0,0,0,0,22222.222222222223,0,0,0,0,0,0,0]
[2042,6022222.222222222,0,0,0,0,0,0,0,0,0,0,0,0,0,6000000,0,0,0,0,0,0,0,0,0,0,0,0,0,0,0,0,0,0,0,22222.222222222223,0,0,0,0,0,0,0]
[2043,6022222.222222222,0,0,0,0,0,0,0,0,0,0,0,0,0,6000000,0,0,0,0,0,0,0,0,0,0,0,0,0,0,0,0,0,0,0,22222.222222222223,0,0,0,0,0,0,0]
[2044,6022222.222222222,0,0,0,0,0,0,0,0,0,0,0,0,0,6000000,0,0,0,0,0,0,0,0,0,0,0,0,0,0,0,0,0,0,0,22222.222222222223,0,0,0,0,0,0,0]
[2045,6022222.222222222,0,0,0,0,0,0,0,0,0,0,0,0,0,6000000,0,0,0,0,0,0,0,0,0,0,0,0,0,0,0,0,0,0,0,22222.222222222223,0,0,0,0,0,0,0]
[2046,6022222.222222222,0,{"$f":"MAX(SUMPRODUCT((AbschreibungAGr=D$265)*(AbschreibungsendeJahr>=$A297)*(Aktivierungsjahr<=$A297)*(Abschreibungsbetrag)),0)","v":0},0,0,0,0,0,0,0,0,0,{"$f":"MAX(SUMPRODUCT((AbschreibungAGr=N$265)*(AbschreibungsendeJahr>=$A297)*(Aktivierungsjahr<=$A297)*(Abschreibungsbetrag)),0)","v":0},0,6000000,0,0,0,0,0,0,0,{"$f":"MAX(SUMPRODUCT((AbschreibungAGr=X$265)*(AbschreibungsendeJahr>=$A297)*(Aktivierungsjahr<=$A297)*(Abschreibungsbetrag)),0)","v":0},0,0,0,0,0,0,0,0,0,{"$f":"MAX(SUMPRODUCT((AbschreibungAGr=AH$265)*(AbschreibungsendeJahr>=$A297)*(Aktivierungsjahr<=$A297)*(Abschreibungsbetrag)),0)","v":0},0,22222.222222222223,0,0,0,0,0,0,0]
[2047,6022222.222222222,0,0,0,0,0,0,0,0,0,0,0,0,0,6000000,0,0,0,0,0,0,0,0,0,0,0,0,0,0,0,0,0,0,0,22222.222222222223,0,0,0,0,0,0,0]
[2048,6022222.222222222,0,0,0,0,0,0,0,0,0,0,0,0,0,6000000,0,0,0,0,0,0,0,0,0,0,0,0,0,0,0,0,0,0,0,22222.222222222223,0,0,0,0,0,0,0]
[2049,6022222.222222222,0,0,0,0,0,0,0,0,0,0,0,0,0,6000000,0,0,0,0,0,0,0,0,0,0,0,0,0,0,0,0,0,0,0,22222.222222222223,0,0,0,0,0,0,0]
[2050,22222.222222222223,0,0,0,0,0,0,0,0,0,0,0,0,0,0,0,0,0,0,0,0,0,0,0,0,0,0,0,0,0,0,0,0,0,22222.222222222223,0,0,0,0,0,0,0]
[2051,22222.222222222223,0,0,0,0,0,0,0,0,0,0,0,0,0,0,0,0,0,0,0,0,0,0,0,0,0,0,0,0,0,0,0,0,0,22222.222222222223,0,0,0,0,0,0,0]
[2052,22222.222222222223,0,0,0,0,0,0,0,0,0,0,0,0,0,0,0,0,0,0,0,0,0,0,0,0,0,0,0,0,0,0,0,0,0,22222.222222222223,0,0,0,0,0,0,0]
[2053,22222.222222222223,0,0,0,0,0,0,0,0,0,0,0,0,0,0,0,0,0,0,0,0,0,0,0,0,0,0,0,0,0,0,0,0,0,22222.222222222223,0,0,0,0,0,0,0]
[2054,22222.222222222223,0,0,0,0,0,0,0,0,0,0,0,0,0,0,0,0,0,0,0,0,0,0,0,0,0,0,0,0,0,0,0,0,0,22222.222222222223,0,0,0,0,0,0,0]
[2055,22222.222222222223,0,0,0,0,0,0,0,0,0,0,0,0,0,0,0,0,0,0,0,0,0,0,0,0,0,0,0,0,0,0,0,0,0,22222.222222222223,0,0,0,0,0,0,0]
[2056,22222.222222222223,0,{"$f":"MAX(SUMPRODUCT((AbschreibungAGr=D$265)*(AbschreibungsendeJahr>=$A307)*(Aktivierungsjahr<=$A307)*(Abschreibungsbetrag)),0)","v":0},0,0,0,0,0,0,0,0,0,{"$f":"MAX(SUMPRODUCT((AbschreibungAGr=N$265)*(AbschreibungsendeJahr>=$A307)*(Aktivierungsjahr<=$A307)*(Abschreibungsbetrag)),0)","v":0},0,0,0,0,0,0,0,0,0,{"$f":"MAX(SUMPRODUCT((AbschreibungAGr=X$265)*(AbschreibungsendeJahr>=$A307)*(Aktivierungsjahr<=$A307)*(Abschreibungsbetrag)),0)","v":0},0,0,0,0,0,0,0,0,0,{"$f":"MAX(SUMPRODUCT((AbschreibungAGr=AH$265)*(AbschreibungsendeJahr>=$A307)*(Aktivierungsjahr<=$A307)*(Abschreibungsbetrag)),0)","v":0},0,22222.222222222223,0,0,0,0,0,0,0]
[2057,22222.222222222223,0,0,0,0,0,0,0,0,0,0,0,0,0,0,0,0,0,0,0,0,0,0,0,0,0,0,0,0,0,0,0,0,0,22222.222222222223,0,0,0,0,0,0,0]
[2058,22222.222222222223,0,0,0,0,0,0,0,0,0,0,0,0,0,0,0,0,0,0,0,0,0,0,0,0,0,0,0,0,0,0,0,0,0,22222.222222222223,0,0,0,0,0,0,0]
[2059,22222.222222222223,0,0,0,0,0,0,0,0,0,0,0,0,0,0,0,0,0,0,0,0,0,0,0,0,0,0,0,0,0,0,0,0,0,22222.222222222223,0,0,0,0,0,0,0]
[2060,22222.222222222223,0,0,0,0,0,0,0,0,0,0,0,0,0,0,0,0,0,0,0,0,0,0,0,0,0,0,0,0,0,0,0,0,0,22222.222222222223,0,0,0,0,0,0,0]
[2061,22222.222222222223,0,0,0,0,0,0,0,0,0,0,0,0,0,0,0,0,0,0,0,0,0,0,0,0,0,0,0,0,0,0,0,0,0,22222.222222222223,0,0,0,0,0,0,0]
[2062,22222.222222222223,0,0,0,0,0,0,0,0,0,0,0,0,0,0,0,0,0,0,0,0,0,0,0,0,0,0,0,0,0,0,0,0,0,22222.222222222223,0,0,0,0,0,0,0]
[2063,22222.222222222223,0,0,0,0,0,0,0,0,0,0,0,0,0,0,0,0,0,0,0,0,0,0,0,0,0,0,0,0,0,0,0,0,0,22222.222222222223,0,0,0,0,0,0,0]
[2064,22222.222222222223,0,0,0,0,0,0,0,0,0,0,0,0,0,0,0,0,0,0,0,0,0,0,0,0,0,0,0,0,0,0,0,0,0,22222.222222222223,0,0,0,0,0,0,0]
[2065,22222.222222222223,0,0,0,0,0,0,0,0,0,0,0,0,0,0,0,0,0,0,0,0,0,0,0,0,0,0,0,0,0,0,0,0,0,22222.222222222223,0,0,0,0,0,0,0]
[2066,22222.222222222223,0,{"$f":"MAX(SUMPRODUCT((AbschreibungAGr=D$265)*(AbschreibungsendeJahr>=$A317)*(Aktivierungsjahr<=$A317)*(Abschreibungsbetrag)),0)","v":0},0,0,0,0,0,0,0,0,0,{"$f":"MAX(SUMPRODUCT((AbschreibungAGr=N$265)*(AbschreibungsendeJahr>=$A317)*(Aktivierungsjahr<=$A317)*(Abschreibungsbetrag)),0)","v":0},0,0,0,0,0,0,0,0,0,{"$f":"MAX(SUMPRODUCT((AbschreibungAGr=X$265)*(AbschreibungsendeJahr>=$A317)*(Aktivierungsjahr<=$A317)*(Abschreibungsbetrag)),0)","v":0},0,0,0,0,0,0,0,0,0,{"$f":"MAX(SUMPRODUCT((AbschreibungAGr=AH$265)*(AbschreibungsendeJahr>=$A317)*(Aktivierungsjahr<=$A317)*(Abschreibungsbetrag)),0)","v":0},0,22222.222222222223,0,0,0,0,0,0,0]
[2067,22222.222222222223,0,0,0,0,0,0,0,0,0,0,0,0,0,0,0,0,0,0,0,0,0,0,0,0,0,0,0,0,0,0,0,0,0,22222.222222222223,0,0,0,0,0,0,0]
[2068,22222.222222222223,0,0,0,0,0,0,0,0,0,0,0,0,0,0,0,0,0,0,0,0,0,0,0,0,0,0,0,0,0,0,0,0,0,22222.222222222223,0,0,0,0,0,0,0]
[2069,22222.222222222223,0,0,0,0,0,0,0,0,0,0,0,0,0,0,0,0,0,0,0,0,0,0,0,0,0,0,0,0,0,0,0,0,0,22222.222222222223,0,0,0,0,0,0,0]
[2070,0,0,0,0,0,0,0,0,0,0,0,0,0,0,0,0,0,0,0,0,0,0,0,0,0,0,0,0,0,0,0,0,0,0,0,0,0,0,0,0,0,0]
[2071,0,0,0,0,0,0,0,0,0,0,0,0,0,0,0,0,0,0,0,0,0,0,0,0,0,0,0,0,0,0,0,0,0,0,0,0,0,0,0,0,0,0]
[2072,0,0,0,0,0,0,0,0,0,0,0,0,0,0,0,0,0,0,0,0,0,0,0,0,0,0,0,0,0,0,0,0,0,0,0,0,0,0,0,0,0,0]
[2073,0,0,0,0,0,0,0,0,0,0,0,0,0,0,0,0,0,0,0,0,0,0,0,0,0,0,0,0,0,0,0,0,0,0,0,0,0,0,0,0,0,0]
[2074,0,0,0,0,0,0,0,0,0,0,0,0,0,0,0,0,0,0,0,0,0,0,0,0,0,0,0,0,0,0,0,0,0,0,0,0,0,0,0,0,0,0]
[2075,0,0,0,0,0,0,0,0,0,0,0,0,0,0,0,0,0,0,0,0,0,0,0,0,0,0,0,0,0,0,0,0,0,0,0,0,0,0,0,0,0,0]
[2076,0,0,{"$f":"MAX(SUMPRODUCT((AbschreibungAGr=D$265)*(AbschreibungsendeJahr>=$A327)*(Aktivierungsjahr<=$A327)*(Abschreibungsbetrag)),0)","v":0},0,0,0,0,0,0,0,0,0,{"$f":"MAX(SUMPRODUCT((AbschreibungAGr=N$265)*(AbschreibungsendeJahr>=$A327)*(Aktivierungsjahr<=$A327)*(Abschreibungsbetrag)),0)","v":0},0,0,0,0,0,0,0,0,0,{"$f":"MAX(SUMPRODUCT((AbschreibungAGr=X$265)*(AbschreibungsendeJahr>=$A327)*(Aktivierungsjahr<=$A327)*(Abschreibungsbetrag)),0)","v":0},0,0,0,0,0,0,0,0,0,{"$f":"MAX(SUMPRODUCT((AbschreibungAGr=AH$265)*(AbschreibungsendeJahr>=$A327)*(Aktivierungsjahr<=$A327)*(Abschreibungsbetrag)),0)","v":0},0,0,0,0,0,0,0,0,0]
[2077,0,0,0,0,0,0,0,0,0,0,0,0,0,0,0,0,0,0,0,0,0,0,0,0,0,0,0,0,0,0,0,0,0,0,0,0,0,0,0,0,0,0]
[2078,0,0,0,0,0,0,0,0,0,0,0,0,0,0,0,0,0,0,0,0,0,0,0,0,0,0,0,0,0,0,0,0,0,0,0,0,0,0,0,0,0,0]
[2079,0,0,0,0,0,0,0,0,0,0,0,0,0,0,0,0,0,0,0,0,0,0,0,0,0,0,0,0,0,0,0,0,0,0,0,0,0,0,0,0,0,0]
[2080,0,0,0,0,0,0,0,0,0,0,0,0,0,0,0,0,0,0,0,0,0,0,0,0,0,0,0,0,0,0,0,0,0,0,0,0,0,0,0,0,0,0]
[2081,0,0,0,0,0,0,0,0,0,0,0,0,0,0,0,0,0,0,0,0,0,0,0,0,0,0,0,0,0,0,0,0,0,0,0,0,0,0,0,0,0,0]
[2082,0,0,0,0,0,0,0,0,0,0,0,0,0,0,0,0,0,0,0,0,0,0,0,0,0,0,0,0,0,0,0,0,0,0,0,0,0,0,0,0,0,0]
[2083,0,0,0,0,0,0,0,0,0,0,0,0,0,0,0,0,0,0,0,0,0,0,0,0,0,0,0,0,0,0,0,0,0,0,0,0,0,0,0,0,0,0]
[2084,0,0,0,0,0,0,0,0,0,0,0,0,0,0,0,0,0,0,0,0,0,0,0,0,0,0,0,0,0,0,0,0,0,0,0,0,0,0,0,0,0,0]
[2085,0,0,0,0,0,0,0,0,0,0,0,0,0,0,0,0,0,0,0,0,0,0,0,0,0,0,0,0,0,0,0,0,0,0,0,0,0,0,0,0,0,0]
[2086,0,0,{"$f":"MAX(SUMPRODUCT((AbschreibungAGr=D$265)*(AbschreibungsendeJahr>=$A337)*(Aktivierungsjahr<=$A337)*(Abschreibungsbetrag)),0)","v":0},0,0,0,0,0,0,0,0,0,{"$f":"MAX(SUMPRODUCT((AbschreibungAGr=N$265)*(AbschreibungsendeJahr>=$A337)*(Aktivierungsjahr<=$A337)*(Abschreibungsbetrag)),0)","v":0},0,0,0,0,0,0,0,0,0,{"$f":"MAX(SUMPRODUCT((AbschreibungAGr=X$265)*(AbschreibungsendeJahr>=$A337)*(Aktivierungsjahr<=$A337)*(Abschreibungsbetrag)),0)","v":0},0,0,0,0,0,0,0,0,0,{"$f":"MAX(SUMPRODUCT((AbschreibungAGr=AH$265)*(AbschreibungsendeJahr>=$A337)*(Aktivierungsjahr<=$A337)*(Abschreibungsbetrag)),0)","v":0},0,0,0,0,0,0,0,0,0]
[2087,0,0,0,0,0,0,0,0,0,0,0,0,0,0,0,0,0,0,0,0,0,0,0,0,0,0,0,0,0,0,0,0,0,0,0,0,0,0,0,0,0,0]
[2088,0,0,0,0,0,0,0,0,0,0,0,0,0,0,0,0,0,0,0,0,0,0,0,0,0,0,0,0,0,0,0,0,0,0,0,0,0,0,0,0,0,0]
[2089,0,0,0,0,0,0,0,0,0,0,0,0,0,0,0,0,0,0,0,0,0,0,0,0,0,0,0,0,0,0,0,0,0,0,0,0,0,0,0,0,0,0]
[2090,0,0,0,0,0,0,0,0,0,0,0,0,0,0,0,0,0,0,0,0,0,0,0,0,0,0,0,0,0,0,0,0,0,0,0,0,0,0,0,0,0,0]
[2091,0,0,0,0,0,0,0,0,0,0,0,0,0,0,0,0,0,0,0,0,0,0,0,0,0,0,0,0,0,0,0,0,0,0,0,0,0,0,0,0,0,0]
[2092,0,0,0,0,0,0,0,0,0,0,0,0,0,0,0,0,0,0,0,0,0,0,0,0,0,0,0,0,0,0,0,0,0,0,0,0,0,0,0,0,0,0]
[2093,0,0,0,0,0,0,0,0,0,0,0,0,0,0,0,0,0,0,0,0,0,0,0,0,0,0,0,0,0,0,0,0,0,0,0,0,0,0,0,0,0,0]
[2094,0,0,0,0,0,0,0,0,0,0,0,0,0,0,0,0,0,0,0,0,0,0,0,0,0,0,0,0,0,0,0,0,0,0,0,0,0,0,0,0,0,0]
[2095,0,0,0,0,0,0,0,0,0,0,0,0,0,0,0,0,0,0,0,0,0,0,0,0,0,0,0,0,0,0,0,0,0,0,0,0,0,0,0,0,0,0]
[2096,{"$f":"SUM(C347:AQ347)","v":0},0,0,0,0,0,0,0,0,0,0,0,0,0,0,0,0,0,0,0,0,0,0,0,0,0,0,0,0,0,0,0,0,0,0,0,0,0,0,0,0,0]
[2097,{"$f":"SUM(C348:AQ348)","v":0},0,0,0,0,0,0,0,0,0,0,0,0,0,0,0,0,0,0,0,0,0,0,0,0,0,0,0,0,0,0,0,0,0,0,0,0,0,0,0,0,0]
[2098,{"$f":"SUM(C349:AQ349)","v":0},0,0,0,0,0,0,0,0,0,0,0,0,0,0,0,0,0,0,0,0,0,0,0,0,0,0,0,0,0,0,0,0,0,0,0,0,0,0,0,0,0]
[2099,{"$f":"SUM(C350:AQ350)","v":0},0,0,0,0,0,0,0,0,0,0,0,0,0,0,0,0,0,0,0,0,0,0,0,0,0,0,0,0,0,0,0,0,0,0,0,0,0,0,0,0,0]
[2100,{"$f":"SUM(C351:AQ351)","v":0},0,0,0,0,0,0,0,0,0,0,0,0,0,0,0,0,0,0,0,0,0,0,0,0,0,0,0,0,0,0,0,0,0,0,0,0,0,0,0,0,0]
[]
[null,null,1,2,3,4,5,6,7,8,9,10,11,12,13,14,15,16,17,18,19,20,21,22,23,24,25,26,27,28,29,30,31,32,33,34,35,36,37,38,39,40,41]
["Residual values, yearly opening balance","Total","Properties","Property facilities, structures for transport system","Operating buildings","Administrative buildings","Track systems, wagons","Business equipment (without IT/tools/devices)","Tools/devices","Storage facilities","Hardware","Software","Light vehicles","Heavy vehicles","Gas holders","Natural gas compression","Gas purifiers","Piping and fittings","Gas measuring equipment","Safety equipment","Control and energy technology","Ancillary facilities","Buildings, transport routes","Steel pipelines – encapsulated in PE","Steel pipelines – cathodic protection","Steel pipelines – bituminised","Grey cast iron (> DN 150)","Polyethylene (PE - HD)","Polyvinyl chloride (PVC)","Polyvinyl chloride (PVC)","Fittings","Pig traps","Safety equipment","Gas meters of distribution","Service regulators/meter regulators","Metering equipment","Control equipment","Safety equipment","Control and energy technology","Compressors in gas-mixing systems by duration of use","Ancillary facilities","Buildings","Remote control equipment"]
[2016,{"$f":"SUM(C355:AQ355)","v":0},{"$f":"SUM(C$178:C178)-SUM(C$266:C266)+SUMPRODUCT((Aktivierungsjahr=Costs!$A355)*(AbschreibungAGr=Costs!C$353)*('Fixed assets'!$U$2:$U$1000=Costs!$A355)*(AbschreibungAHKBvD))","v":0},{"$f":"SUM(D$178:D178)-SUM(D$266:D266)+SUMPRODUCT((Aktivierungsjahr=Costs!$A355)*(AbschreibungAGr=Costs!D$353)*('Fixed assets'!$U$2:$U$1000=Costs!$A355)*(AbschreibungAHKBvD))","v":0},{"$f":"SUM(E$178:E178)-SUM(E$266:E266)+SUMPRODUCT((Aktivierungsjahr=Costs!$A355)*(AbschreibungAGr=Costs!E$353)*('Fixed assets'!$U$2:$U$1000=Costs!$A355)*(AbschreibungAHKBvD))","v":0},{"$f":"SUM(F$178:F178)-SUM(F$266:F266)+SUMPRODUCT((Aktivierungsjahr=Costs!$A355)*(AbschreibungAGr=Costs!F$353)*('Fixed assets'!$U$2:$U$1000=Costs!$A355)*(AbschreibungAHKBvD))","v":0},{"$f":"SUM(G$178:G178)-SUM(G$266:G266)+SUMPRODUCT((Aktivierungsjahr=Costs!$A355)*(AbschreibungAGr=Costs!G$353)*('Fixed assets'!$U$2:$U$1000=Costs!$A355)*(AbschreibungAHKBvD))","v":0},{"$f":"SUM(H$178:H178)-SUM(H$266:H266)+SUMPRODUCT((Aktivierungsjahr=Costs!$A355)*(AbschreibungAGr=Costs!H$353)*('Fixed assets'!$U$2:$U$1000=Costs!$A355)*(AbschreibungAHKBvD))","v":0},{"$f":"SUM(I$178:I178)-SUM(I$266:I266)+SUMPRODUCT((Aktivierungsjahr=Costs!$A355)*(AbschreibungAGr=Costs!I$353)*('Fixed assets'!$U$2:$U$1000=Costs!$A355)*(AbschreibungAHKBvD))","v":0},{"$f":"SUM(J$178:J178)-SUM(J$266:J266)+SUMPRODUCT((Aktivierungsjahr=Costs!$A355)*(AbschreibungAGr=Costs!J$353)*('Fixed assets'!$U$2:$U$1000=Costs!$A355)*(AbschreibungAHKBvD))","v":0},{"$f":"SUM(K$178:K178)-SUM(K$266:K266)+SUMPRODUCT((Aktivierungsjahr=Costs!$A355)*(AbschreibungAGr=Costs!K$353)*('Fixed assets'!$U$2:$U$1000=Costs!$A355)*(AbschreibungAHKBvD))","v":0},{"$f":"SUM(L$178:L178)-SUM(L$266:L266)+SUMPRODUCT((Aktivierungsjahr=Costs!$A355)*(AbschreibungAGr=Costs!L$353)*('Fixed assets'!$U$2:$U$1000=Costs!$A355)*(AbschreibungAHKBvD))","v":0},{"$f":"SUM(M$178:M178)-SUM(M$266:M266)+SUMPRODUCT((Aktivierungsjahr=Costs!$A355)*(AbschreibungAGr=Costs!M$353)*('Fixed assets'!$U$2:$U$1000=Costs!$A355)*(AbschreibungAHKBvD))","v":0},{"$f":"SUM(N$178:N178)-SUM(N$266:N266)+SUMPRODUCT((Aktivierungsjahr=Costs!$A355)*(AbschreibungAGr=Costs!N$353)*('Fixed assets'!$U$2:$U$1000=Costs!$A355)*(AbschreibungAHKBvD))","v":0},{"$f":"SUM(O$178:O178)-SUM(O$266:O266)+SUMPRODUCT((Aktivierungsjahr=Costs!$A355)*(AbschreibungAGr=Costs!O$353)*('Fixed assets'!$U$2:$U$1000=Costs!$A355)*(AbschreibungAHKBvD))","v":0},{"$f":"SUM(P$178:P178)-SUM(P$266:P266)+SUMPRODUCT((Aktivierungsjahr=Costs!$A355)*(AbschreibungAGr=Costs!P$353)*('Fixed assets'!$U$2:$U$1000=Costs!$A355)*(AbschreibungAHKBvD))","v":0},{"$f":"SUM(Q$178:Q178)-SUM(Q$266:Q266)+SUMPRODUCT((Aktivierungsjahr=Costs!$A355)*(AbschreibungAGr=Costs!Q$353)*('Fixed assets'!$U$2:$U$1000=Costs!$A355)*(AbschreibungAHKBvD))","v":0},{"$f":"SUM(R$178:R178)-SUM(R$266:R266)+SUMPRODUCT((Aktivierungsjahr=Costs!$A355)*(AbschreibungAGr=Costs!R$353)*('Fixed assets'!$U$2:$U$1000=Costs!$A355)*(AbschreibungAHKBvD))","v":0},{"$f":"SUM(S$178:S178)-SUM(S$266:S266)+SUMPRODUCT((Aktivierungsjahr=Costs!$A355)*(AbschreibungAGr=Costs!S$353)*('Fixed assets'!$U$2:$U$1000=Costs!$A355)*(AbschreibungAHKBvD))","v":0},{"$f":"SUM(T$178:T178)-SUM(T$266:T266)+SUMPRODUCT((Aktivierungsjahr=Costs!$A355)*(AbschreibungAGr=Costs!T$353)*('Fixed assets'!$U$2:$U$1000=Costs!$A355)*(AbschreibungAHKBvD))","v":0},{"$f":"SUM(U$178:U178)-SUM(U$266:U266)+SUMPRODUCT((Aktivierungsjahr=Costs!$A355)*(AbschreibungAGr=Costs!U$353)*('Fixed assets'!$U$2:$U$1000=Costs!$A355)*(AbschreibungAHKBvD))","v":0},{"$f":"SUM(V$178:V178)-SUM(V$266:V266)+SUMPRODUCT((Aktivierungsjahr=Costs!$A355)*(AbschreibungAGr=Costs!V$353)*('Fixed assets'!$U$2:$U$1000=Costs!$A355)*(AbschreibungAHKBvD))","v":0},{"$f":"SUM(W$178:W178)-SUM(W$266:W266)+SUMPRODUCT((Aktivierungsjahr=Costs!$A355)*(AbschreibungAGr=Costs!W$353)*('Fixed assets'!$U$2:$U$1000=Costs!$A355)*(AbschreibungAHKBvD))","v":0},{"$f":"SUM(X$178:X178)-SUM(X$266:X266)+SUMPRODUCT((Aktivierungsjahr=Costs!$A355)*(AbschreibungAGr=Costs!X$353)*('Fixed assets'!$U$2:$U$1000=Costs!$A355)*(AbschreibungAHKBvD))","v":0},{"$f":"SUM(Y$178:Y178)-SUM(Y$266:Y266)+SUMPRODUCT((Aktivierungsjahr=Costs!$A355)*(AbschreibungAGr=Costs!Y$353)*('Fixed assets'!$U$2:$U$1000=Costs!$A355)*(AbschreibungAHKBvD))","v":0},{"$f":"SUM(Z$178:Z178)-SUM(Z$266:Z266)+SUMPRODUCT((Aktivierungsjahr=Costs!$A355)*(AbschreibungAGr=Costs!Z$353)*('Fixed assets'!$U$2:$U$1000=Costs!$A355)*(AbschreibungAHKBvD))","v":0},{"$f":"SUM(AA$178:AA178)-SUM(AA$266:AA266)+SUMPRODUCT((Aktivierungsjahr=Costs!$A355)*(AbschreibungAGr=Costs!AA$353)*('Fixed assets'!$U$2:$U$1000=Costs!$A355)*(AbschreibungAHKBvD))","v":0},{"$f":"SUM(AB$178:AB178)-SUM(AB$266:AB266)+SUMPRODUCT((Aktivierungsjahr=Costs!$A355)*(AbschreibungAGr=Costs!AB$353)*('Fixed assets'!$U$2:$U$1000=Costs!$A355)*(AbschreibungAHKBvD))","v":0},{"$f":"SUM(AC$178:AC178)-SUM(AC$266:AC266)+SUMPRODUCT((Aktivierungsjahr=Costs!$A355)*(AbschreibungAGr=Costs!AC$353)*('Fixed assets'!$U$2:$U$1000=Costs!$A355)*(AbschreibungAHKBvD))","v":0},{"$f":"SUM(AD$178:AD178)-SUM(AD$266:AD266)+SUMPRODUCT((Aktivierungsjahr=Costs!$A355)*(AbschreibungAGr=Costs!AD$353)*('Fixed assets'!$U$2:$U$1000=Costs!$A355)*(AbschreibungAHKBvD))","v":0},{"$f":"SUM(AE$178:AE178)-SUM(AE$266:AE266)+SUMPRODUCT((Aktivierungsjahr=Costs!$A355)*(AbschreibungAGr=Costs!AE$353)*('Fixed assets'!$U$2:$U$1000=Costs!$A355)*(AbschreibungAHKBvD))","v":0},{"$f":"SUM(AF$178:AF178)-SUM(AF$266:AF266)+SUMPRODUCT((Aktivierungsjahr=Costs!$A355)*(AbschreibungAGr=Costs!AF$353)*('Fixed assets'!$U$2:$U$1000=Costs!$A355)*(AbschreibungAHKBvD))","v":0},{"$f":"SUM(AG$178:AG178)-SUM(AG$266:AG266)+SUMPRODUCT((Aktivierungsjahr=Costs!$A355)*(AbschreibungAGr=Costs!AG$353)*('Fixed assets'!$U$2:$U$1000=Costs!$A355)*(AbschreibungAHKBvD))","v":0},{"$f":"SUM(AH$178:AH178)-SUM(AH$266:AH266)+SUMPRODUCT((Aktivierungsjahr=Costs!$A355)*(AbschreibungAGr=Costs!AH$353)*('Fixed assets'!$U$2:$U$1000=Costs!$A355)*(AbschreibungAHKBvD))","v":0},{"$f":"SUM(AI$178:AI178)-SUM(AI$266:AI266)+SUMPRODUCT((Aktivierungsjahr=Costs!$A355)*(AbschreibungAGr=Costs!AI$353)*('Fixed assets'!$U$2:$U$1000=Costs!$A355)*(AbschreibungAHKBvD))","v":0},{"$f":"SUM(AJ$178:AJ178)-SUM(AJ$266:AJ266)+SUMPRODUCT((Aktivierungsjahr=Costs!$A355)*(AbschreibungAGr=Costs!AJ$353)*('Fixed assets'!$U$2:$U$1000=Costs!$A355)*(AbschreibungAHKBvD))","v":0},{"$f":"SUM(AK$178:AK178)-SUM(AK$266:AK266)+SUMPRODUCT((Aktivierungsjahr=Costs!$A355)*(AbschreibungAGr=Costs!AK$353)*('Fixed assets'!$U$2:$U$1000=Costs!$A355)*(AbschreibungAHKBvD))","v":0},{"$f":"SUM(AL$178:AL178)-SUM(AL$266:AL266)+SUMPRODUCT((Aktivierungsjahr=Costs!$A355)*(AbschreibungAGr=Costs!AL$353)*('Fixed assets'!$U$2:$U$1000=Costs!$A355)*(AbschreibungAHKBvD))","v":0},{"$f":"SUM(AM$178:AM178)-SUM(AM$266:AM266)+SUMPRODUCT((Aktivierungsjahr=Costs!$A355)*(AbschreibungAGr=Costs!AM$353)*('Fixed assets'!$U$2:$U$1000=Costs!$A355)*(AbschreibungAHKBvD))","v":0},{"$f":"SUM(AN$178:AN178)-SUM(AN$266:AN266)+SUMPRODUCT((Aktivierungsjahr=Costs!$A355)*(AbschreibungAGr=Costs!AN$353)*('Fixed assets'!$U$2:$U$1000=Costs!$A355)*(AbschreibungAHKBvD))","v":0},{"$f":"SUM(AO$178:AO178)-SUM(AO$266:AO266)+SUMPRODUCT((Aktivierungsjahr=Costs!$A355)*(AbschreibungAGr=Costs!AO$353)*('Fixed assets'!$U$2:$U$1000=Costs!$A355)*(AbschreibungAHKBvD))","v":0},{"$f":"SUM(AP$178:AP178)-SUM(AP$266:AP266)+SUMPRODUCT((Aktivierungsjahr=Costs!$A355)*(AbschreibungAGr=Costs!AP$353)*('Fixed assets'!$U$2:$U$1000=Costs!$A355)*(AbschreibungAHKBvD))","v":0},{"$f":"SUM(AQ$178:AQ178)-SUM(AQ$266:AQ266)+SUMPRODUCT((Aktivierungsjahr=Costs!$A355)*(AbschreibungAGr=Costs!AQ$353)*('Fixed assets'!$U$2:$U$1000=Costs!$A355)*(AbschreibungAHKBvD))","v":0}]
[2017,0,{"$f":"SUM(C$178:C179)-SUM(C$266:C267)+SUMPRODUCT((Aktivierungsjahr=Costs!$A356)*(AbschreibungAGr=Costs!C$353)*('Fixed assets'!$U$2:$U$1000=Costs!$A356)*(AbschreibungAHKBvD))","v":0},{"$f":"SUM(D$178:D179)-SUM(D$266:D267)+SUMPRODUCT((Aktivierungsjahr=Costs!$A356)*(AbschreibungAGr=Costs!D$353)*('Fixed assets'!$U$2:$U$1000=Costs!$A356)*(AbschreibungAHKBvD))","v":0},{"$f":"SUM(E$178:E179)-SUM(E$266:E267)+SUMPRODUCT((Aktivierungsjahr=Costs!$A356)*(AbschreibungAGr=Costs!E$353)*('Fixed assets'!$U$2:$U$1000=Costs!$A356)*(AbschreibungAHKBvD))","v":0},{"$f":"SUM(F$178:F179)-SUM(F$266:F267)+SUMPRODUCT((Aktivierungsjahr=Costs!$A356)*(AbschreibungAGr=Costs!F$353)*('Fixed assets'!$U$2:$U$1000=Costs!$A356)*(AbschreibungAHKBvD))","v":0},{"$f":"SUM(G$178:G179)-SUM(G$266:G267)+SUMPRODUCT((Aktivierungsjahr=Costs!$A356)*(AbschreibungAGr=Costs!G$353)*('Fixed assets'!$U$2:$U$1000=Costs!$A356)*(AbschreibungAHKBvD))","v":0},{"$f":"SUM(H$178:H179)-SUM(H$266:H267)+SUMPRODUCT((Aktivierungsjahr=Costs!$A356)*(AbschreibungAGr=Costs!H$353)*('Fixed assets'!$U$2:$U$1000=Costs!$A356)*(AbschreibungAHKBvD))","v":0},{"$f":"SUM(I$178:I179)-SUM(I$266:I267)+SUMPRODUCT((Aktivierungsjahr=Costs!$A356)*(AbschreibungAGr=Costs!I$353)*('Fixed assets'!$U$2:$U$1000=Costs!$A356)*(AbschreibungAHKBvD))","v":0},{"$f":"SUM(J$178:J179)-SUM(J$266:J267)+SUMPRODUCT((Aktivierungsjahr=Costs!$A356)*(AbschreibungAGr=Costs!J$353)*('Fixed assets'!$U$2:$U$1000=Costs!$A356)*(AbschreibungAHKBvD))","v":0},{"$f":"SUM(K$178:K179)-SUM(K$266:K267)+SUMPRODUCT((Aktivierungsjahr=Costs!$A356)*(AbschreibungAGr=Costs!K$353)*('Fixed assets'!$U$2:$U$1000=Costs!$A356)*(AbschreibungAHKBvD))","v":0},{"$f":"SUM(L$178:L179)-SUM(L$266:L267)+SUMPRODUCT((Aktivierungsjahr=Costs!$A356)*(AbschreibungAGr=Costs!L$353)*('Fixed assets'!$U$2:$U$1000=Costs!$A356)*(AbschreibungAHKBvD))","v":0},{"$f":"SUM(M$178:M179)-SUM(M$266:M267)+SUMPRODUCT((Aktivierungsjahr=Costs!$A356)*(AbschreibungAGr=Costs!M$353)*('Fixed assets'!$U$2:$U$1000=Costs!$A356)*(AbschreibungAHKBvD))","v":0},{"$f":"SUM(N$178:N179)-SUM(N$266:N267)+SUMPRODUCT((Aktivierungsjahr=Costs!$A356)*(AbschreibungAGr=Costs!N$353)*('Fixed assets'!$U$2:$U$1000=Costs!$A356)*(AbschreibungAHKBvD))","v":0},{"$f":"SUM(O$178:O179)-SUM(O$266:O267)+SUMPRODUCT((Aktivierungsjahr=Costs!$A356)*(AbschreibungAGr=Costs!O$353)*('Fixed assets'!$U$2:$U$1000=Costs!$A356)*(AbschreibungAHKBvD))","v":0},{"$f":"SUM(P$178:P179)-SUM(P$266:P267)+SUMPRODUCT((Aktivierungsjahr=Costs!$A356)*(AbschreibungAGr=Costs!P$353)*('Fixed assets'!$U$2:$U$1000=Costs!$A356)*(AbschreibungAHKBvD))","v":0},{"$f":"SUM(Q$178:Q179)-SUM(Q$266:Q267)+SUMPRODUCT((Aktivierungsjahr=Costs!$A356)*(AbschreibungAGr=Costs!Q$353)*('Fixed assets'!$U$2:$U$1000=Costs!$A356)*(AbschreibungAHKBvD))","v":0},{"$f":"SUM(R$178:R179)-SUM(R$266:R267)+SUMPRODUCT((Aktivierungsjahr=Costs!$A356)*(AbschreibungAGr=Costs!R$353)*('Fixed assets'!$U$2:$U$1000=Costs!$A356)*(AbschreibungAHKBvD))","v":0},{"$f":"SUM(S$178:S179)-SUM(S$266:S267)+SUMPRODUCT((Aktivierungsjahr=Costs!$A356)*(AbschreibungAGr=Costs!S$353)*('Fixed assets'!$U$2:$U$1000=Costs!$A356)*(AbschreibungAHKBvD))","v":0},{"$f":"SUM(T$178:T179)-SUM(T$266:T267)+SUMPRODUCT((Aktivierungsjahr=Costs!$A356)*(AbschreibungAGr=Costs!T$353)*('Fixed assets'!$U$2:$U$1000=Costs!$A356)*(AbschreibungAHKBvD))","v":0},{"$f":"SUM(U$178:U179)-SUM(U$266:U267)+SUMPRODUCT((Aktivierungsjahr=Costs!$A356)*(AbschreibungAGr=Costs!U$353)*('Fixed assets'!$U$2:$U$1000=Costs!$A356)*(AbschreibungAHKBvD))","v":0},{"$f":"SUM(V$178:V179)-SUM(V$266:V267)+SUMPRODUCT((Aktivierungsjahr=Costs!$A356)*(AbschreibungAGr=Costs!V$353)*('Fixed assets'!$U$2:$U$1000=Costs!$A356)*(AbschreibungAHKBvD))","v":0},{"$f":"SUM(W$178:W179)-SUM(W$266:W267)+SUMPRODUCT((Aktivierungsjahr=Costs!$A356)*(AbschreibungAGr=Costs!W$353)*('Fixed assets'!$U$2:$U$1000=Costs!$A356)*(AbschreibungAHKBvD))","v":0},{"$f":"SUM(X$178:X179)-SUM(X$266:X267)+SUMPRODUCT((Aktivierungsjahr=Costs!$A356)*(AbschreibungAGr=Costs!X$353)*('Fixed assets'!$U$2:$U$1000=Costs!$A356)*(AbschreibungAHKBvD))","v":0},{"$f":"SUM(Y$178:Y179)-SUM(Y$266:Y267)+SUMPRODUCT((Aktivierungsjahr=Costs!$A356)*(AbschreibungAGr=Costs!Y$353)*('Fixed assets'!$U$2:$U$1000=Costs!$A356)*(AbschreibungAHKBvD))","v":0},{"$f":"SUM(Z$178:Z179)-SUM(Z$266:Z267)+SUMPRODUCT((Aktivierungsjahr=Costs!$A356)*(AbschreibungAGr=Costs!Z$353)*('Fixed assets'!$U$2:$U$1000=Costs!$A356)*(AbschreibungAHKBvD))","v":0},{"$f":"SUM(AA$178:AA179)-SUM(AA$266:AA267)+SUMPRODUCT((Aktivierungsjahr=Costs!$A356)*(AbschreibungAGr=Costs!AA$353)*('Fixed assets'!$U$2:$U$1000=Costs!$A356)*(AbschreibungAHKBvD))","v":0},{"$f":"SUM(AB$178:AB179)-SUM(AB$266:AB267)+SUMPRODUCT((Aktivierungsjahr=Costs!$A356)*(AbschreibungAGr=Costs!AB$353)*('Fixed assets'!$U$2:$U$1000=Costs!$A356)*(AbschreibungAHKBvD))","v":0},{"$f":"SUM(AC$178:AC179)-SUM(AC$266:AC267)+SUMPRODUCT((Aktivierungsjahr=Costs!$A356)*(AbschreibungAGr=Costs!AC$353)*('Fixed assets'!$U$2:$U$1000=Costs!$A356)*(AbschreibungAHKBvD))","v":0},{"$f":"SUM(AD$178:AD179)-SUM(AD$266:AD267)+SUMPRODUCT((Aktivierungsjahr=Costs!$A356)*(AbschreibungAGr=Costs!AD$353)*('Fixed assets'!$U$2:$U$1000=Costs!$A356)*(AbschreibungAHKBvD))","v":0},{"$f":"SUM(AE$178:AE179)-SUM(AE$266:AE267)+SUMPRODUCT((Aktivierungsjahr=Costs!$A356)*(AbschreibungAGr=Costs!AE$353)*('Fixed assets'!$U$2:$U$1000=Costs!$A356)*(AbschreibungAHKBvD))","v":0},{"$f":"SUM(AF$178:AF179)-SUM(AF$266:AF267)+SUMPRODUCT((Aktivierungsjahr=Costs!$A356)*(AbschreibungAGr=Costs!AF$353)*('Fixed assets'!$U$2:$U$1000=Costs!$A356)*(AbschreibungAHKBvD))","v":0},{"$f":"SUM(AG$178:AG179)-SUM(AG$266:AG267)+SUMPRODUCT((Aktivierungsjahr=Costs!$A356)*(AbschreibungAGr=Costs!AG$353)*('Fixed assets'!$U$2:$U$1000=Costs!$A356)*(AbschreibungAHKBvD))","v":0},{"$f":"SUM(AH$178:AH179)-SUM(AH$266:AH267)+SUMPRODUCT((Aktivierungsjahr=Costs!$A356)*(AbschreibungAGr=Costs!AH$353)*('Fixed assets'!$U$2:$U$1000=Costs!$A356)*(AbschreibungAHKBvD))","v":0},{"$f":"SUM(AI$178:AI179)-SUM(AI$266:AI267)+SUMPRODUCT((Aktivierungsjahr=Costs!$A356)*(AbschreibungAGr=Costs!AI$353)*('Fixed assets'!$U$2:$U$1000=Costs!$A356)*(AbschreibungAHKBvD))","v":0},{"$f":"SUM(AJ$178:AJ179)-SUM(AJ$266:AJ267)+SUMPRODUCT((Aktivierungsjahr=Costs!$A356)*(AbschreibungAGr=Costs!AJ$353)*('Fixed assets'!$U$2:$U$1000=Costs!$A356)*(AbschreibungAHKBvD))","v":0},{"$f":"SUM(AK$178:AK179)-SUM(AK$266:AK267)+SUMPRODUCT((Aktivierungsjahr=Costs!$A356)*(AbschreibungAGr=Costs!AK$353)*('Fixed assets'!$U$2:$U$1000=Costs!$A356)*(AbschreibungAHKBvD))","v":0},{"$f":"SUM(AL$178:AL179)-SUM(AL$266:AL267)+SUMPRODUCT((Aktivierungsjahr=Costs!$A356)*(AbschreibungAGr=Costs!AL$353)*('Fixed assets'!$U$2:$U$1000=Costs!$A356)*(AbschreibungAHKBvD))","v":0},{"$f":"SUM(AM$178:AM179)-SUM(AM$266:AM267)+SUMPRODUCT((Aktivierungsjahr=Costs!$A356)*(AbschreibungAGr=Costs!AM$353)*('Fixed assets'!$U$2:$U$1000=Costs!$A356)*(AbschreibungAHKBvD))","v":0},{"$f":"SUM(AN$178:AN179)-SUM(AN$266:AN267)+SUMPRODUCT((Aktivierungsjahr=Costs!$A356)*(AbschreibungAGr=Costs!AN$353)*('Fixed assets'!$U$2:$U$1000=Costs!$A356)*(AbschreibungAHKBvD))","v":0},{"$f":"SUM(AO$178:AO179)-SUM(AO$266:AO267)+SUMPRODUCT((Aktivierungsjahr=Costs!$A356)*(AbschreibungAGr=Costs!AO$353)*('Fixed assets'!$U$2:$U$1000=Costs!$A356)*(AbschreibungAHKBvD))","v":0},{"$f":"SUM(AP$178:AP179)-SUM(AP$266:AP267)+SUMPRODUCT((Aktivierungsjahr=Costs!$A356)*(AbschreibungAGr=Costs!AP$353)*('Fixed assets'!$U$2:$U$1000=Costs!$A356)*(AbschreibungAHKBvD))","v":0},{"$f":"SUM(AQ$178:AQ179)-SUM(AQ$266:AQ267)+SUMPRODUCT((Aktivierungsjahr=Costs!$A356)*(AbschreibungAGr=Costs!AQ$353)*('Fixed assets'!$U$2:$U$1000=Costs!$A356)*(AbschreibungAHKBvD))","v":0}]
[2018,0,{"$f":"SUM(C$178:C180)-SUM(C$266:C268)+SUMPRODUCT((Aktivierungsjahr=Costs!$A357)*(AbschreibungAGr=Costs!C$353)*('Fixed assets'!$U$2:$U$1000=Costs!$A357)*(AbschreibungAHKBvD))","v":0},{"$f":"SUM(D$178:D180)-SUM(D$266:D268)+SUMPRODUCT((Aktivierungsjahr=Costs!$A357)*(AbschreibungAGr=Costs!D$353)*('Fixed assets'!$U$2:$U$1000=Costs!$A357)*(AbschreibungAHKBvD))","v":0},{"$f":"SUM(E$178:E180)-SUM(E$266:E268)+SUMPRODUCT((Aktivierungsjahr=Costs!$A357)*(AbschreibungAGr=Costs!E$353)*('Fixed assets'!$U$2:$U$1000=Costs!$A357)*(AbschreibungAHKBvD))","v":0},{"$f":"SUM(F$178:F180)-SUM(F$266:F268)+SUMPRODUCT((Aktivierungsjahr=Costs!$A357)*(AbschreibungAGr=Costs!F$353)*('Fixed assets'!$U$2:$U$1000=Costs!$A357)*(AbschreibungAHKBvD))","v":0},{"$f":"SUM(G$178:G180)-SUM(G$266:G268)+SUMPRODUCT((Aktivierungsjahr=Costs!$A357)*(AbschreibungAGr=Costs!G$353)*('Fixed assets'!$U$2:$U$1000=Costs!$A357)*(AbschreibungAHKBvD))","v":0},{"$f":"SUM(H$178:H180)-SUM(H$266:H268)+SUMPRODUCT((Aktivierungsjahr=Costs!$A357)*(AbschreibungAGr=Costs!H$353)*('Fixed assets'!$U$2:$U$1000=Costs!$A357)*(AbschreibungAHKBvD))","v":0},{"$f":"SUM(I$178:I180)-SUM(I$266:I268)+SUMPRODUCT((Aktivierungsjahr=Costs!$A357)*(AbschreibungAGr=Costs!I$353)*('Fixed assets'!$U$2:$U$1000=Costs!$A357)*(AbschreibungAHKBvD))","v":0},{"$f":"SUM(J$178:J180)-SUM(J$266:J268)+SUMPRODUCT((Aktivierungsjahr=Costs!$A357)*(AbschreibungAGr=Costs!J$353)*('Fixed assets'!$U$2:$U$1000=Costs!$A357)*(AbschreibungAHKBvD))","v":0},{"$f":"SUM(K$178:K180)-SUM(K$266:K268)+SUMPRODUCT((Aktivierungsjahr=Costs!$A357)*(AbschreibungAGr=Costs!K$353)*('Fixed assets'!$U$2:$U$1000=Costs!$A357)*(AbschreibungAHKBvD))","v":0},{"$f":"SUM(L$178:L180)-SUM(L$266:L268)+SUMPRODUCT((Aktivierungsjahr=Costs!$A357)*(AbschreibungAGr=Costs!L$353)*('Fixed assets'!$U$2:$U$1000=Costs!$A357)*(AbschreibungAHKBvD))","v":0},{"$f":"SUM(M$178:M180)-SUM(M$266:M268)+SUMPRODUCT((Aktivierungsjahr=Costs!$A357)*(AbschreibungAGr=Costs!M$353)*('Fixed assets'!$U$2:$U$1000=Costs!$A357)*(AbschreibungAHKBvD))","v":0},{"$f":"SUM(N$178:N180)-SUM(N$266:N268)+SUMPRODUCT((Aktivierungsjahr=Costs!$A357)*(AbschreibungAGr=Costs!N$353)*('Fixed assets'!$U$2:$U$1000=Costs!$A357)*(AbschreibungAHKBvD))","v":0},{"$f":"SUM(O$178:O180)-SUM(O$266:O268)+SUMPRODUCT((Aktivierungsjahr=Costs!$A357)*(AbschreibungAGr=Costs!O$353)*('Fixed assets'!$U$2:$U$1000=Costs!$A357)*(AbschreibungAHKBvD))","v":0},{"$f":"SUM(P$178:P180)-SUM(P$266:P268)+SUMPRODUCT((Aktivierungsjahr=Costs!$A357)*(AbschreibungAGr=Costs!P$353)*('Fixed assets'!$U$2:$U$1000=Costs!$A357)*(AbschreibungAHKBvD))","v":0},{"$f":"SUM(Q$178:Q180)-SUM(Q$266:Q268)+SUMPRODUCT((Aktivierungsjahr=Costs!$A357)*(AbschreibungAGr=Costs!Q$353)*('Fixed assets'!$U$2:$U$1000=Costs!$A357)*(AbschreibungAHKBvD))","v":0},{"$f":"SUM(R$178:R180)-SUM(R$266:R268)+SUMPRODUCT((Aktivierungsjahr=Costs!$A357)*(AbschreibungAGr=Costs!R$353)*('Fixed assets'!$U$2:$U$1000=Costs!$A357)*(AbschreibungAHKBvD))","v":0},{"$f":"SUM(S$178:S180)-SUM(S$266:S268)+SUMPRODUCT((Aktivierungsjahr=Costs!$A357)*(AbschreibungAGr=Costs!S$353)*('Fixed assets'!$U$2:$U$1000=Costs!$A357)*(AbschreibungAHKBvD))","v":0},{"$f":"SUM(T$178:T180)-SUM(T$266:T268)+SUMPRODUCT((Aktivierungsjahr=Costs!$A357)*(AbschreibungAGr=Costs!T$353)*('Fixed assets'!$U$2:$U$1000=Costs!$A357)*(AbschreibungAHKBvD))","v":0},{"$f":"SUM(U$178:U180)-SUM(U$266:U268)+SUMPRODUCT((Aktivierungsjahr=Costs!$A357)*(AbschreibungAGr=Costs!U$353)*('Fixed assets'!$U$2:$U$1000=Costs!$A357)*(AbschreibungAHKBvD))","v":0},{"$f":"SUM(V$178:V180)-SUM(V$266:V268)+SUMPRODUCT((Aktivierungsjahr=Costs!$A357)*(AbschreibungAGr=Costs!V$353)*('Fixed assets'!$U$2:$U$1000=Costs!$A357)*(AbschreibungAHKBvD))","v":0},{"$f":"SUM(W$178:W180)-SUM(W$266:W268)+SUMPRODUCT((Aktivierungsjahr=Costs!$A357)*(AbschreibungAGr=Costs!W$353)*('Fixed assets'!$U$2:$U$1000=Costs!$A357)*(AbschreibungAHKBvD))","v":0},{"$f":"SUM(X$178:X180)-SUM(X$266:X268)+SUMPRODUCT((Aktivierungsjahr=Costs!$A357)*(AbschreibungAGr=Costs!X$353)*('Fixed assets'!$U$2:$U$1000=Costs!$A357)*(AbschreibungAHKBvD))","v":0},{"$f":"SUM(Y$178:Y180)-SUM(Y$266:Y268)+SUMPRODUCT((Aktivierungsjahr=Costs!$A357)*(AbschreibungAGr=Costs!Y$353)*('Fixed assets'!$U$2:$U$1000=Costs!$A357)*(AbschreibungAHKBvD))","v":0},{"$f":"SUM(Z$178:Z180)-SUM(Z$266:Z268)+SUMPRODUCT((Aktivierungsjahr=Costs!$A357)*(AbschreibungAGr=Costs!Z$353)*('Fixed assets'!$U$2:$U$1000=Costs!$A357)*(AbschreibungAHKBvD))","v":0},{"$f":"SUM(AA$178:AA180)-SUM(AA$266:AA268)+SUMPRODUCT((Aktivierungsjahr=Costs!$A357)*(AbschreibungAGr=Costs!AA$353)*('Fixed assets'!$U$2:$U$1000=Costs!$A357)*(AbschreibungAHKBvD))","v":0},{"$f":"SUM(AB$178:AB180)-SUM(AB$266:AB268)+SUMPRODUCT((Aktivierungsjahr=Costs!$A357)*(AbschreibungAGr=Costs!AB$353)*('Fixed assets'!$U$2:$U$1000=Costs!$A357)*(AbschreibungAHKBvD))","v":0},{"$f":"SUM(AC$178:AC180)-SUM(AC$266:AC268)+SUMPRODUCT((Aktivierungsjahr=Costs!$A357)*(AbschreibungAGr=Costs!AC$353)*('Fixed assets'!$U$2:$U$1000=Costs!$A357)*(AbschreibungAHKBvD))","v":0},{"$f":"SUM(AD$178:AD180)-SUM(AD$266:AD268)+SUMPRODUCT((Aktivierungsjahr=Costs!$A357)*(AbschreibungAGr=Costs!AD$353)*('Fixed assets'!$U$2:$U$1000=Costs!$A357)*(AbschreibungAHKBvD))","v":0},{"$f":"SUM(AE$178:AE180)-SUM(AE$266:AE268)+SUMPRODUCT((Aktivierungsjahr=Costs!$A357)*(AbschreibungAGr=Costs!AE$353)*('Fixed assets'!$U$2:$U$1000=Costs!$A357)*(AbschreibungAHKBvD))","v":0},{"$f":"SUM(AF$178:AF180)-SUM(AF$266:AF268)+SUMPRODUCT((Aktivierungsjahr=Costs!$A357)*(AbschreibungAGr=Costs!AF$353)*('Fixed assets'!$U$2:$U$1000=Costs!$A357)*(AbschreibungAHKBvD))","v":0},{"$f":"SUM(AG$178:AG180)-SUM(AG$266:AG268)+SUMPRODUCT((Aktivierungsjahr=Costs!$A357)*(AbschreibungAGr=Costs!AG$353)*('Fixed assets'!$U$2:$U$1000=Costs!$A357)*(AbschreibungAHKBvD))","v":0},{"$f":"SUM(AH$178:AH180)-SUM(AH$266:AH268)+SUMPRODUCT((Aktivierungsjahr=Costs!$A357)*(AbschreibungAGr=Costs!AH$353)*('Fixed assets'!$U$2:$U$1000=Costs!$A357)*(AbschreibungAHKBvD))","v":0},{"$f":"SUM(AI$178:AI180)-SUM(AI$266:AI268)+SUMPRODUCT((Aktivierungsjahr=Costs!$A357)*(AbschreibungAGr=Costs!AI$353)*('Fixed assets'!$U$2:$U$1000=Costs!$A357)*(AbschreibungAHKBvD))","v":0},{"$f":"SUM(AJ$178:AJ180)-SUM(AJ$266:AJ268)+SUMPRODUCT((Aktivierungsjahr=Costs!$A357)*(AbschreibungAGr=Costs!AJ$353)*('Fixed assets'!$U$2:$U$1000=Costs!$A357)*(AbschreibungAHKBvD))","v":0},{"$f":"SUM(AK$178:AK180)-SUM(AK$266:AK268)+SUMPRODUCT((Aktivierungsjahr=Costs!$A357)*(AbschreibungAGr=Costs!AK$353)*('Fixed assets'!$U$2:$U$1000=Costs!$A357)*(AbschreibungAHKBvD))","v":0},{"$f":"SUM(AL$178:AL180)-SUM(AL$266:AL268)+SUMPRODUCT((Aktivierungsjahr=Costs!$A357)*(AbschreibungAGr=Costs!AL$353)*('Fixed assets'!$U$2:$U$1000=Costs!$A357)*(AbschreibungAHKBvD))","v":0},{"$f":"SUM(AM$178:AM180)-SUM(AM$266:AM268)+SUMPRODUCT((Aktivierungsjahr=Costs!$A357)*(AbschreibungAGr=Costs!AM$353)*('Fixed assets'!$U$2:$U$1000=Costs!$A357)*(AbschreibungAHKBvD))","v":0},{"$f":"SUM(AN$178:AN180)-SUM(AN$266:AN268)+SUMPRODUCT((Aktivierungsjahr=Costs!$A357)*(AbschreibungAGr=Costs!AN$353)*('Fixed assets'!$U$2:$U$1000=Costs!$A357)*(AbschreibungAHKBvD))","v":0},{"$f":"SUM(AO$178:AO180)-SUM(AO$266:AO268)+SUMPRODUCT((Aktivierungsjahr=Costs!$A357)*(AbschreibungAGr=Costs!AO$353)*('Fixed assets'!$U$2:$U$1000=Costs!$A357)*(AbschreibungAHKBvD))","v":0},{"$f":"SUM(AP$178:AP180)-SUM(AP$266:AP268)+SUMPRODUCT((Aktivierungsjahr=Costs!$A357)*(AbschreibungAGr=Costs!AP$353)*('Fixed assets'!$U$2:$U$1000=Costs!$A357)*(AbschreibungAHKBvD))","v":0},{"$f":"SUM(AQ$178:AQ180)-SUM(AQ$266:AQ268)+SUMPRODUCT((Aktivierungsjahr=Costs!$A357)*(AbschreibungAGr=Costs!AQ$353)*('Fixed assets'!$U$2:$U$1000=Costs!$A357)*(AbschreibungAHKBvD))","v":0}]
[2019,0,{"$f":"SUM(C$178:C181)-SUM(C$266:C269)+SUMPRODUCT((Aktivierungsjahr=Costs!$A358)*(AbschreibungAGr=Costs!C$353)*('Fixed assets'!$U$2:$U$1000=Costs!$A358)*(AbschreibungAHKBvD))","v":0},{"$f":"SUM(D$178:D181)-SUM(D$266:D269)+SUMPRODUCT((Aktivierungsjahr=Costs!$A358)*(AbschreibungAGr=Costs!D$353)*('Fixed assets'!$U$2:$U$1000=Costs!$A358)*(AbschreibungAHKBvD))","v":0},{"$f":"SUM(E$178:E181)-SUM(E$266:E269)+SUMPRODUCT((Aktivierungsjahr=Costs!$A358)*(AbschreibungAGr=Costs!E$353)*('Fixed assets'!$U$2:$U$1000=Costs!$A358)*(AbschreibungAHKBvD))","v":0},{"$f":"SUM(F$178:F181)-SUM(F$266:F269)+SUMPRODUCT((Aktivierungsjahr=Costs!$A358)*(AbschreibungAGr=Costs!F$353)*('Fixed assets'!$U$2:$U$1000=Costs!$A358)*(AbschreibungAHKBvD))","v":0},{"$f":"SUM(G$178:G181)-SUM(G$266:G269)+SUMPRODUCT((Aktivierungsjahr=Costs!$A358)*(AbschreibungAGr=Costs!G$353)*('Fixed assets'!$U$2:$U$1000=Costs!$A358)*(AbschreibungAHKBvD))","v":0},{"$f":"SUM(H$178:H181)-SUM(H$266:H269)+SUMPRODUCT((Aktivierungsjahr=Costs!$A358)*(AbschreibungAGr=Costs!H$353)*('Fixed assets'!$U$2:$U$1000=Costs!$A358)*(AbschreibungAHKBvD))","v":0},{"$f":"SUM(I$178:I181)-SUM(I$266:I269)+SUMPRODUCT((Aktivierungsjahr=Costs!$A358)*(AbschreibungAGr=Costs!I$353)*('Fixed assets'!$U$2:$U$1000=Costs!$A358)*(AbschreibungAHKBvD))","v":0},{"$f":"SUM(J$178:J181)-SUM(J$266:J269)+SUMPRODUCT((Aktivierungsjahr=Costs!$A358)*(AbschreibungAGr=Costs!J$353)*('Fixed assets'!$U$2:$U$1000=Costs!$A358)*(AbschreibungAHKBvD))","v":0},{"$f":"SUM(K$178:K181)-SUM(K$266:K269)+SUMPRODUCT((Aktivierungsjahr=Costs!$A358)*(AbschreibungAGr=Costs!K$353)*('Fixed assets'!$U$2:$U$1000=Costs!$A358)*(AbschreibungAHKBvD))","v":0},{"$f":"SUM(L$178:L181)-SUM(L$266:L269)+SUMPRODUCT((Aktivierungsjahr=Costs!$A358)*(AbschreibungAGr=Costs!L$353)*('Fixed assets'!$U$2:$U$1000=Costs!$A358)*(AbschreibungAHKBvD))","v":0},{"$f":"SUM(M$178:M181)-SUM(M$266:M269)+SUMPRODUCT((Aktivierungsjahr=Costs!$A358)*(AbschreibungAGr=Costs!M$353)*('Fixed assets'!$U$2:$U$1000=Costs!$A358)*(AbschreibungAHKBvD))","v":0},{"$f":"SUM(N$178:N181)-SUM(N$266:N269)+SUMPRODUCT((Aktivierungsjahr=Costs!$A358)*(AbschreibungAGr=Costs!N$353)*('Fixed assets'!$U$2:$U$1000=Costs!$A358)*(AbschreibungAHKBvD))","v":0},{"$f":"SUM(O$178:O181)-SUM(O$266:O269)+SUMPRODUCT((Aktivierungsjahr=Costs!$A358)*(AbschreibungAGr=Costs!O$353)*('Fixed assets'!$U$2:$U$1000=Costs!$A358)*(AbschreibungAHKBvD))","v":0},{"$f":"SUM(P$178:P181)-SUM(P$266:P269)+SUMPRODUCT((Aktivierungsjahr=Costs!$A358)*(AbschreibungAGr=Costs!P$353)*('Fixed assets'!$U$2:$U$1000=Costs!$A358)*(AbschreibungAHKBvD))","v":0},{"$f":"SUM(Q$178:Q181)-SUM(Q$266:Q269)+SUMPRODUCT((Aktivierungsjahr=Costs!$A358)*(AbschreibungAGr=Costs!Q$353)*('Fixed assets'!$U$2:$U$1000=Costs!$A358)*(AbschreibungAHKBvD))","v":0},{"$f":"SUM(R$178:R181)-SUM(R$266:R269)+SUMPRODUCT((Aktivierungsjahr=Costs!$A358)*(AbschreibungAGr=Costs!R$353)*('Fixed assets'!$U$2:$U$1000=Costs!$A358)*(AbschreibungAHKBvD))","v":0},{"$f":"SUM(S$178:S181)-SUM(S$266:S269)+SUMPRODUCT((Aktivierungsjahr=Costs!$A358)*(AbschreibungAGr=Costs!S$353)*('Fixed assets'!$U$2:$U$1000=Costs!$A358)*(AbschreibungAHKBvD))","v":0},{"$f":"SUM(T$178:T181)-SUM(T$266:T269)+SUMPRODUCT((Aktivierungsjahr=Costs!$A358)*(AbschreibungAGr=Costs!T$353)*('Fixed assets'!$U$2:$U$1000=Costs!$A358)*(AbschreibungAHKBvD))","v":0},{"$f":"SUM(U$178:U181)-SUM(U$266:U269)+SUMPRODUCT((Aktivierungsjahr=Costs!$A358)*(AbschreibungAGr=Costs!U$353)*('Fixed assets'!$U$2:$U$1000=Costs!$A358)*(AbschreibungAHKBvD))","v":0},{"$f":"SUM(V$178:V181)-SUM(V$266:V269)+SUMPRODUCT((Aktivierungsjahr=Costs!$A358)*(AbschreibungAGr=Costs!V$353)*('Fixed assets'!$U$2:$U$1000=Costs!$A358)*(AbschreibungAHKBvD))","v":0},{"$f":"SUM(W$178:W181)-SUM(W$266:W269)+SUMPRODUCT((Aktivierungsjahr=Costs!$A358)*(AbschreibungAGr=Costs!W$353)*('Fixed assets'!$U$2:$U$1000=Costs!$A358)*(AbschreibungAHKBvD))","v":0},{"$f":"SUM(X$178:X181)-SUM(X$266:X269)+SUMPRODUCT((Aktivierungsjahr=Costs!$A358)*(AbschreibungAGr=Costs!X$353)*('Fixed assets'!$U$2:$U$1000=Costs!$A358)*(AbschreibungAHKBvD))","v":0},{"$f":"SUM(Y$178:Y181)-SUM(Y$266:Y269)+SUMPRODUCT((Aktivierungsjahr=Costs!$A358)*(AbschreibungAGr=Costs!Y$353)*('Fixed assets'!$U$2:$U$1000=Costs!$A358)*(AbschreibungAHKBvD))","v":0},{"$f":"SUM(Z$178:Z181)-SUM(Z$266:Z269)+SUMPRODUCT((Aktivierungsjahr=Costs!$A358)*(AbschreibungAGr=Costs!Z$353)*('Fixed assets'!$U$2:$U$1000=Costs!$A358)*(AbschreibungAHKBvD))","v":0},{"$f":"SUM(AA$178:AA181)-SUM(AA$266:AA269)+SUMPRODUCT((Aktivierungsjahr=Costs!$A358)*(AbschreibungAGr=Costs!AA$353)*('Fixed assets'!$U$2:$U$1000=Costs!$A358)*(AbschreibungAHKBvD))","v":0},{"$f":"SUM(AB$178:AB181)-SUM(AB$266:AB269)+SUMPRODUCT((Aktivierungsjahr=Costs!$A358)*(AbschreibungAGr=Costs!AB$353)*('Fixed assets'!$U$2:$U$1000=Costs!$A358)*(AbschreibungAHKBvD))","v":0},{"$f":"SUM(AC$178:AC181)-SUM(AC$266:AC269)+SUMPRODUCT((Aktivierungsjahr=Costs!$A358)*(AbschreibungAGr=Costs!AC$353)*('Fixed assets'!$U$2:$U$1000=Costs!$A358)*(AbschreibungAHKBvD))","v":0},{"$f":"SUM(AD$178:AD181)-SUM(AD$266:AD269)+SUMPRODUCT((Aktivierungsjahr=Costs!$A358)*(AbschreibungAGr=Costs!AD$353)*('Fixed assets'!$U$2:$U$1000=Costs!$A358)*(AbschreibungAHKBvD))","v":0},{"$f":"SUM(AE$178:AE181)-SUM(AE$266:AE269)+SUMPRODUCT((Aktivierungsjahr=Costs!$A358)*(AbschreibungAGr=Costs!AE$353)*('Fixed assets'!$U$2:$U$1000=Costs!$A358)*(AbschreibungAHKBvD))","v":0},{"$f":"SUM(AF$178:AF181)-SUM(AF$266:AF269)+SUMPRODUCT((Aktivierungsjahr=Costs!$A358)*(AbschreibungAGr=Costs!AF$353)*('Fixed assets'!$U$2:$U$1000=Costs!$A358)*(AbschreibungAHKBvD))","v":0},{"$f":"SUM(AG$178:AG181)-SUM(AG$266:AG269)+SUMPRODUCT((Aktivierungsjahr=Costs!$A358)*(AbschreibungAGr=Costs!AG$353)*('Fixed assets'!$U$2:$U$1000=Costs!$A358)*(AbschreibungAHKBvD))","v":0},{"$f":"SUM(AH$178:AH181)-SUM(AH$266:AH269)+SUMPRODUCT((Aktivierungsjahr=Costs!$A358)*(AbschreibungAGr=Costs!AH$353)*('Fixed assets'!$U$2:$U$1000=Costs!$A358)*(AbschreibungAHKBvD))","v":0},{"$f":"SUM(AI$178:AI181)-SUM(AI$266:AI269)+SUMPRODUCT((Aktivierungsjahr=Costs!$A358)*(AbschreibungAGr=Costs!AI$353)*('Fixed assets'!$U$2:$U$1000=Costs!$A358)*(AbschreibungAHKBvD))","v":0},{"$f":"SUM(AJ$178:AJ181)-SUM(AJ$266:AJ269)+SUMPRODUCT((Aktivierungsjahr=Costs!$A358)*(AbschreibungAGr=Costs!AJ$353)*('Fixed assets'!$U$2:$U$1000=Costs!$A358)*(AbschreibungAHKBvD))","v":0},{"$f":"SUM(AK$178:AK181)-SUM(AK$266:AK269)+SUMPRODUCT((Aktivierungsjahr=Costs!$A358)*(AbschreibungAGr=Costs!AK$353)*('Fixed assets'!$U$2:$U$1000=Costs!$A358)*(AbschreibungAHKBvD))","v":0},{"$f":"SUM(AL$178:AL181)-SUM(AL$266:AL269)+SUMPRODUCT((Aktivierungsjahr=Costs!$A358)*(AbschreibungAGr=Costs!AL$353)*('Fixed assets'!$U$2:$U$1000=Costs!$A358)*(AbschreibungAHKBvD))","v":0},{"$f":"SUM(AM$178:AM181)-SUM(AM$266:AM269)+SUMPRODUCT((Aktivierungsjahr=Costs!$A358)*(AbschreibungAGr=Costs!AM$353)*('Fixed assets'!$U$2:$U$1000=Costs!$A358)*(AbschreibungAHKBvD))","v":0},{"$f":"SUM(AN$178:AN181)-SUM(AN$266:AN269)+SUMPRODUCT((Aktivierungsjahr=Costs!$A358)*(AbschreibungAGr=Costs!AN$353)*('Fixed assets'!$U$2:$U$1000=Costs!$A358)*(AbschreibungAHKBvD))","v":0},{"$f":"SUM(AO$178:AO181)-SUM(AO$266:AO269)+SUMPRODUCT((Aktivierungsjahr=Costs!$A358)*(AbschreibungAGr=Costs!AO$353)*('Fixed assets'!$U$2:$U$1000=Costs!$A358)*(AbschreibungAHKBvD))","v":0},{"$f":"SUM(AP$178:AP181)-SUM(AP$266:AP269)+SUMPRODUCT((Aktivierungsjahr=Costs!$A358)*(AbschreibungAGr=Costs!AP$353)*('Fixed assets'!$U$2:$U$1000=Costs!$A358)*(AbschreibungAHKBvD))","v":0},{"$f":"SUM(AQ$178:AQ181)-SUM(AQ$266:AQ269)+SUMPRODUCT((Aktivierungsjahr=Costs!$A358)*(AbschreibungAGr=Costs!AQ$353)*('Fixed assets'!$U$2:$U$1000=Costs!$A358)*(AbschreibungAHKBvD))","v":0}]
[2020,0,{"$f":"SUM(C$178:C182)-SUM(C$266:C270)+SUMPRODUCT((Aktivierungsjahr=Costs!$A359)*(AbschreibungAGr=Costs!C$353)*('Fixed assets'!$U$2:$U$1000=Costs!$A359)*(AbschreibungAHKBvD))","v":0},{"$f":"SUM(D$178:D182)-SUM(D$266:D270)+SUMPRODUCT((Aktivierungsjahr=Costs!$A359)*(AbschreibungAGr=Costs!D$353)*('Fixed assets'!$U$2:$U$1000=Costs!$A359)*(AbschreibungAHKBvD))","v":0},{"$f":"SUM(E$178:E182)-SUM(E$266:E270)+SUMPRODUCT((Aktivierungsjahr=Costs!$A359)*(AbschreibungAGr=Costs!E$353)*('Fixed assets'!$U$2:$U$1000=Costs!$A359)*(AbschreibungAHKBvD))","v":0},{"$f":"SUM(F$178:F182)-SUM(F$266:F270)+SUMPRODUCT((Aktivierungsjahr=Costs!$A359)*(AbschreibungAGr=Costs!F$353)*('Fixed assets'!$U$2:$U$1000=Costs!$A359)*(AbschreibungAHKBvD))","v":0},{"$f":"SUM(G$178:G182)-SUM(G$266:G270)+SUMPRODUCT((Aktivierungsjahr=Costs!$A359)*(AbschreibungAGr=Costs!G$353)*('Fixed assets'!$U$2:$U$1000=Costs!$A359)*(AbschreibungAHKBvD))","v":0},{"$f":"SUM(H$178:H182)-SUM(H$266:H270)+SUMPRODUCT((Aktivierungsjahr=Costs!$A359)*(AbschreibungAGr=Costs!H$353)*('Fixed assets'!$U$2:$U$1000=Costs!$A359)*(AbschreibungAHKBvD))","v":0},{"$f":"SUM(I$178:I182)-SUM(I$266:I270)+SUMPRODUCT((Aktivierungsjahr=Costs!$A359)*(AbschreibungAGr=Costs!I$353)*('Fixed assets'!$U$2:$U$1000=Costs!$A359)*(AbschreibungAHKBvD))","v":0},{"$f":"SUM(J$178:J182)-SUM(J$266:J270)+SUMPRODUCT((Aktivierungsjahr=Costs!$A359)*(AbschreibungAGr=Costs!J$353)*('Fixed assets'!$U$2:$U$1000=Costs!$A359)*(AbschreibungAHKBvD))","v":0},{"$f":"SUM(K$178:K182)-SUM(K$266:K270)+SUMPRODUCT((Aktivierungsjahr=Costs!$A359)*(AbschreibungAGr=Costs!K$353)*('Fixed assets'!$U$2:$U$1000=Costs!$A359)*(AbschreibungAHKBvD))","v":0},{"$f":"SUM(L$178:L182)-SUM(L$266:L270)+SUMPRODUCT((Aktivierungsjahr=Costs!$A359)*(AbschreibungAGr=Costs!L$353)*('Fixed assets'!$U$2:$U$1000=Costs!$A359)*(AbschreibungAHKBvD))","v":0},{"$f":"SUM(M$178:M182)-SUM(M$266:M270)+SUMPRODUCT((Aktivierungsjahr=Costs!$A359)*(AbschreibungAGr=Costs!M$353)*('Fixed assets'!$U$2:$U$1000=Costs!$A359)*(AbschreibungAHKBvD))","v":0},{"$f":"SUM(N$178:N182)-SUM(N$266:N270)+SUMPRODUCT((Aktivierungsjahr=Costs!$A359)*(AbschreibungAGr=Costs!N$353)*('Fixed assets'!$U$2:$U$1000=Costs!$A359)*(AbschreibungAHKBvD))","v":0},{"$f":"SUM(O$178:O182)-SUM(O$266:O270)+SUMPRODUCT((Aktivierungsjahr=Costs!$A359)*(AbschreibungAGr=Costs!O$353)*('Fixed assets'!$U$2:$U$1000=Costs!$A359)*(AbschreibungAHKBvD))","v":0},{"$f":"SUM(P$178:P182)-SUM(P$266:P270)+SUMPRODUCT((Aktivierungsjahr=Costs!$A359)*(AbschreibungAGr=Costs!P$353)*('Fixed assets'!$U$2:$U$1000=Costs!$A359)*(AbschreibungAHKBvD))","v":0},{"$f":"SUM(Q$178:Q182)-SUM(Q$266:Q270)+SUMPRODUCT((Aktivierungsjahr=Costs!$A359)*(AbschreibungAGr=Costs!Q$353)*('Fixed assets'!$U$2:$U$1000=Costs!$A359)*(AbschreibungAHKBvD))","v":0},{"$f":"SUM(R$178:R182)-SUM(R$266:R270)+SUMPRODUCT((Aktivierungsjahr=Costs!$A359)*(AbschreibungAGr=Costs!R$353)*('Fixed assets'!$U$2:$U$1000=Costs!$A359)*(AbschreibungAHKBvD))","v":0},{"$f":"SUM(S$178:S182)-SUM(S$266:S270)+SUMPRODUCT((Aktivierungsjahr=Costs!$A359)*(AbschreibungAGr=Costs!S$353)*('Fixed assets'!$U$2:$U$1000=Costs!$A359)*(AbschreibungAHKBvD))","v":0},{"$f":"SUM(T$178:T182)-SUM(T$266:T270)+SUMPRODUCT((Aktivierungsjahr=Costs!$A359)*(AbschreibungAGr=Costs!T$353)*('Fixed assets'!$U$2:$U$1000=Costs!$A359)*(AbschreibungAHKBvD))","v":0},{"$f":"SUM(U$178:U182)-SUM(U$266:U270)+SUMPRODUCT((Aktivierungsjahr=Costs!$A359)*(AbschreibungAGr=Costs!U$353)*('Fixed assets'!$U$2:$U$1000=Costs!$A359)*(AbschreibungAHKBvD))","v":0},{"$f":"SUM(V$178:V182)-SUM(V$266:V270)+SUMPRODUCT((Aktivierungsjahr=Costs!$A359)*(AbschreibungAGr=Costs!V$353)*('Fixed assets'!$U$2:$U$1000=Costs!$A359)*(AbschreibungAHKBvD))","v":0},{"$f":"SUM(W$178:W182)-SUM(W$266:W270)+SUMPRODUCT((Aktivierungsjahr=Costs!$A359)*(AbschreibungAGr=Costs!W$353)*('Fixed assets'!$U$2:$U$1000=Costs!$A359)*(AbschreibungAHKBvD))","v":0},{"$f":"SUM(X$178:X182)-SUM(X$266:X270)+SUMPRODUCT((Aktivierungsjahr=Costs!$A359)*(AbschreibungAGr=Costs!X$353)*('Fixed assets'!$U$2:$U$1000=Costs!$A359)*(AbschreibungAHKBvD))","v":0},{"$f":"SUM(Y$178:Y182)-SUM(Y$266:Y270)+SUMPRODUCT((Aktivierungsjahr=Costs!$A359)*(AbschreibungAGr=Costs!Y$353)*('Fixed assets'!$U$2:$U$1000=Costs!$A359)*(AbschreibungAHKBvD))","v":0},{"$f":"SUM(Z$178:Z182)-SUM(Z$266:Z270)+SUMPRODUCT((Aktivierungsjahr=Costs!$A359)*(AbschreibungAGr=Costs!Z$353)*('Fixed assets'!$U$2:$U$1000=Costs!$A359)*(AbschreibungAHKBvD))","v":0},{"$f":"SUM(AA$178:AA182)-SUM(AA$266:AA270)+SUMPRODUCT((Aktivierungsjahr=Costs!$A359)*(AbschreibungAGr=Costs!AA$353)*('Fixed assets'!$U$2:$U$1000=Costs!$A359)*(AbschreibungAHKBvD))","v":0},{"$f":"SUM(AB$178:AB182)-SUM(AB$266:AB270)+SUMPRODUCT((Aktivierungsjahr=Costs!$A359)*(AbschreibungAGr=Costs!AB$353)*('Fixed assets'!$U$2:$U$1000=Costs!$A359)*(AbschreibungAHKBvD))","v":0},{"$f":"SUM(AC$178:AC182)-SUM(AC$266:AC270)+SUMPRODUCT((Aktivierungsjahr=Costs!$A359)*(AbschreibungAGr=Costs!AC$353)*('Fixed assets'!$U$2:$U$1000=Costs!$A359)*(AbschreibungAHKBvD))","v":0},{"$f":"SUM(AD$178:AD182)-SUM(AD$266:AD270)+SUMPRODUCT((Aktivierungsjahr=Costs!$A359)*(AbschreibungAGr=Costs!AD$353)*('Fixed assets'!$U$2:$U$1000=Costs!$A359)*(AbschreibungAHKBvD))","v":0},{"$f":"SUM(AE$178:AE182)-SUM(AE$266:AE270)+SUMPRODUCT((Aktivierungsjahr=Costs!$A359)*(AbschreibungAGr=Costs!AE$353)*('Fixed assets'!$U$2:$U$1000=Costs!$A359)*(AbschreibungAHKBvD))","v":0},{"$f":"SUM(AF$178:AF182)-SUM(AF$266:AF270)+SUMPRODUCT((Aktivierungsjahr=Costs!$A359)*(AbschreibungAGr=Costs!AF$353)*('Fixed assets'!$U$2:$U$1000=Costs!$A359)*(AbschreibungAHKBvD))","v":0},{"$f":"SUM(AG$178:AG182)-SUM(AG$266:AG270)+SUMPRODUCT((Aktivierungsjahr=Costs!$A359)*(AbschreibungAGr=Costs!AG$353)*('Fixed assets'!$U$2:$U$1000=Costs!$A359)*(AbschreibungAHKBvD))","v":0},{"$f":"SUM(AH$178:AH182)-SUM(AH$266:AH270)+SUMPRODUCT((Aktivierungsjahr=Costs!$A359)*(AbschreibungAGr=Costs!AH$353)*('Fixed assets'!$U$2:$U$1000=Costs!$A359)*(AbschreibungAHKBvD))","v":0},{"$f":"SUM(AI$178:AI182)-SUM(AI$266:AI270)+SUMPRODUCT((Aktivierungsjahr=Costs!$A359)*(AbschreibungAGr=Costs!AI$353)*('Fixed assets'!$U$2:$U$1000=Costs!$A359)*(AbschreibungAHKBvD))","v":0},{"$f":"SUM(AJ$178:AJ182)-SUM(AJ$266:AJ270)+SUMPRODUCT((Aktivierungsjahr=Costs!$A359)*(AbschreibungAGr=Costs!AJ$353)*('Fixed assets'!$U$2:$U$1000=Costs!$A359)*(AbschreibungAHKBvD))","v":0},{"$f":"SUM(AK$178:AK182)-SUM(AK$266:AK270)+SUMPRODUCT((Aktivierungsjahr=Costs!$A359)*(AbschreibungAGr=Costs!AK$353)*('Fixed assets'!$U$2:$U$1000=Costs!$A359)*(AbschreibungAHKBvD))","v":0},{"$f":"SUM(AL$178:AL182)-SUM(AL$266:AL270)+SUMPRODUCT((Aktivierungsjahr=Costs!$A359)*(AbschreibungAGr=Costs!AL$353)*('Fixed assets'!$U$2:$U$1000=Costs!$A359)*(AbschreibungAHKBvD))","v":0},{"$f":"SUM(AM$178:AM182)-SUM(AM$266:AM270)+SUMPRODUCT((Aktivierungsjahr=Costs!$A359)*(AbschreibungAGr=Costs!AM$353)*('Fixed assets'!$U$2:$U$1000=Costs!$A359)*(AbschreibungAHKBvD))","v":0},{"$f":"SUM(AN$178:AN182)-SUM(AN$266:AN270)+SUMPRODUCT((Aktivierungsjahr=Costs!$A359)*(AbschreibungAGr=Costs!AN$353)*('Fixed assets'!$U$2:$U$1000=Costs!$A359)*(AbschreibungAHKBvD))","v":0},{"$f":"SUM(AO$178:AO182)-SUM(AO$266:AO270)+SUMPRODUCT((Aktivierungsjahr=Costs!$A359)*(AbschreibungAGr=Costs!AO$353)*('Fixed assets'!$U$2:$U$1000=Costs!$A359)*(AbschreibungAHKBvD))","v":0},{"$f":"SUM(AP$178:AP182)-SUM(AP$266:AP270)+SUMPRODUCT((Aktivierungsjahr=Costs!$A359)*(AbschreibungAGr=Costs!AP$353)*('Fixed assets'!$U$2:$U$1000=Costs!$A359)*(AbschreibungAHKBvD))","v":0},{"$f":"SUM(AQ$178:AQ182)-SUM(AQ$266:AQ270)+SUMPRODUCT((Aktivierungsjahr=Costs!$A359)*(AbschreibungAGr=Costs!AQ$353)*('Fixed assets'!$U$2:$U$1000=Costs!$A359)*(AbschreibungAHKBvD))","v":0}]
[2021,0,{"$f":"SUM(C$178:C183)-SUM(C$266:C271)+SUMPRODUCT((Aktivierungsjahr=Costs!$A360)*(AbschreibungAGr=Costs!C$353)*('Fixed assets'!$U$2:$U$1000=Costs!$A360)*(AbschreibungAHKBvD))","v":0},{"$f":"SUM(D$178:D183)-SUM(D$266:D271)+SUMPRODUCT((Aktivierungsjahr=Costs!$A360)*(AbschreibungAGr=Costs!D$353)*('Fixed assets'!$U$2:$U$1000=Costs!$A360)*(AbschreibungAHKBvD))","v":0},{"$f":"SUM(E$178:E183)-SUM(E$266:E271)+SUMPRODUCT((Aktivierungsjahr=Costs!$A360)*(AbschreibungAGr=Costs!E$353)*('Fixed assets'!$U$2:$U$1000=Costs!$A360)*(AbschreibungAHKBvD))","v":0},{"$f":"SUM(F$178:F183)-SUM(F$266:F271)+SUMPRODUCT((Aktivierungsjahr=Costs!$A360)*(AbschreibungAGr=Costs!F$353)*('Fixed assets'!$U$2:$U$1000=Costs!$A360)*(AbschreibungAHKBvD))","v":0},{"$f":"SUM(G$178:G183)-SUM(G$266:G271)+SUMPRODUCT((Aktivierungsjahr=Costs!$A360)*(AbschreibungAGr=Costs!G$353)*('Fixed assets'!$U$2:$U$1000=Costs!$A360)*(AbschreibungAHKBvD))","v":0},{"$f":"SUM(H$178:H183)-SUM(H$266:H271)+SUMPRODUCT((Aktivierungsjahr=Costs!$A360)*(AbschreibungAGr=Costs!H$353)*('Fixed assets'!$U$2:$U$1000=Costs!$A360)*(AbschreibungAHKBvD))","v":0},{"$f":"SUM(I$178:I183)-SUM(I$266:I271)+SUMPRODUCT((Aktivierungsjahr=Costs!$A360)*(AbschreibungAGr=Costs!I$353)*('Fixed assets'!$U$2:$U$1000=Costs!$A360)*(AbschreibungAHKBvD))","v":0},{"$f":"SUM(J$178:J183)-SUM(J$266:J271)+SUMPRODUCT((Aktivierungsjahr=Costs!$A360)*(AbschreibungAGr=Costs!J$353)*('Fixed assets'!$U$2:$U$1000=Costs!$A360)*(AbschreibungAHKBvD))","v":0},{"$f":"SUM(K$178:K183)-SUM(K$266:K271)+SUMPRODUCT((Aktivierungsjahr=Costs!$A360)*(AbschreibungAGr=Costs!K$353)*('Fixed assets'!$U$2:$U$1000=Costs!$A360)*(AbschreibungAHKBvD))","v":0},{"$f":"SUM(L$178:L183)-SUM(L$266:L271)+SUMPRODUCT((Aktivierungsjahr=Costs!$A360)*(AbschreibungAGr=Costs!L$353)*('Fixed assets'!$U$2:$U$1000=Costs!$A360)*(AbschreibungAHKBvD))","v":0},{"$f":"SUM(M$178:M183)-SUM(M$266:M271)+SUMPRODUCT((Aktivierungsjahr=Costs!$A360)*(AbschreibungAGr=Costs!M$353)*('Fixed assets'!$U$2:$U$1000=Costs!$A360)*(AbschreibungAHKBvD))","v":0},{"$f":"SUM(N$178:N183)-SUM(N$266:N271)+SUMPRODUCT((Aktivierungsjahr=Costs!$A360)*(AbschreibungAGr=Costs!N$353)*('Fixed assets'!$U$2:$U$1000=Costs!$A360)*(AbschreibungAHKBvD))","v":0},{"$f":"SUM(O$178:O183)-SUM(O$266:O271)+SUMPRODUCT((Aktivierungsjahr=Costs!$A360)*(AbschreibungAGr=Costs!O$353)*('Fixed assets'!$U$2:$U$1000=Costs!$A360)*(AbschreibungAHKBvD))","v":0},{"$f":"SUM(P$178:P183)-SUM(P$266:P271)+SUMPRODUCT((Aktivierungsjahr=Costs!$A360)*(AbschreibungAGr=Costs!P$353)*('Fixed assets'!$U$2:$U$1000=Costs!$A360)*(AbschreibungAHKBvD))","v":0},{"$f":"SUM(Q$178:Q183)-SUM(Q$266:Q271)+SUMPRODUCT((Aktivierungsjahr=Costs!$A360)*(AbschreibungAGr=Costs!Q$353)*('Fixed assets'!$U$2:$U$1000=Costs!$A360)*(AbschreibungAHKBvD))","v":0},{"$f":"SUM(R$178:R183)-SUM(R$266:R271)+SUMPRODUCT((Aktivierungsjahr=Costs!$A360)*(AbschreibungAGr=Costs!R$353)*('Fixed assets'!$U$2:$U$1000=Costs!$A360)*(AbschreibungAHKBvD))","v":0},{"$f":"SUM(S$178:S183)-SUM(S$266:S271)+SUMPRODUCT((Aktivierungsjahr=Costs!$A360)*(AbschreibungAGr=Costs!S$353)*('Fixed assets'!$U$2:$U$1000=Costs!$A360)*(AbschreibungAHKBvD))","v":0},{"$f":"SUM(T$178:T183)-SUM(T$266:T271)+SUMPRODUCT((Aktivierungsjahr=Costs!$A360)*(AbschreibungAGr=Costs!T$353)*('Fixed assets'!$U$2:$U$1000=Costs!$A360)*(AbschreibungAHKBvD))","v":0},{"$f":"SUM(U$178:U183)-SUM(U$266:U271)+SUMPRODUCT((Aktivierungsjahr=Costs!$A360)*(AbschreibungAGr=Costs!U$353)*('Fixed assets'!$U$2:$U$1000=Costs!$A360)*(AbschreibungAHKBvD))","v":0},{"$f":"SUM(V$178:V183)-SUM(V$266:V271)+SUMPRODUCT((Aktivierungsjahr=Costs!$A360)*(AbschreibungAGr=Costs!V$353)*('Fixed assets'!$U$2:$U$1000=Costs!$A360)*(AbschreibungAHKBvD))","v":0},{"$f":"SUM(W$178:W183)-SUM(W$266:W271)+SUMPRODUCT((Aktivierungsjahr=Costs!$A360)*(AbschreibungAGr=Costs!W$353)*('Fixed assets'!$U$2:$U$1000=Costs!$A360)*(AbschreibungAHKBvD))","v":0},{"$f":"SUM(X$178:X183)-SUM(X$266:X271)+SUMPRODUCT((Aktivierungsjahr=Costs!$A360)*(AbschreibungAGr=Costs!X$353)*('Fixed assets'!$U$2:$U$1000=Costs!$A360)*(AbschreibungAHKBvD))","v":0},{"$f":"SUM(Y$178:Y183)-SUM(Y$266:Y271)+SUMPRODUCT((Aktivierungsjahr=Costs!$A360)*(AbschreibungAGr=Costs!Y$353)*('Fixed assets'!$U$2:$U$1000=Costs!$A360)*(AbschreibungAHKBvD))","v":0},{"$f":"SUM(Z$178:Z183)-SUM(Z$266:Z271)+SUMPRODUCT((Aktivierungsjahr=Costs!$A360)*(AbschreibungAGr=Costs!Z$353)*('Fixed assets'!$U$2:$U$1000=Costs!$A360)*(AbschreibungAHKBvD))","v":0},{"$f":"SUM(AA$178:AA183)-SUM(AA$266:AA271)+SUMPRODUCT((Aktivierungsjahr=Costs!$A360)*(AbschreibungAGr=Costs!AA$353)*('Fixed assets'!$U$2:$U$1000=Costs!$A360)*(AbschreibungAHKBvD))","v":0},{"$f":"SUM(AB$178:AB183)-SUM(AB$266:AB271)+SUMPRODUCT((Aktivierungsjahr=Costs!$A360)*(AbschreibungAGr=Costs!AB$353)*('Fixed assets'!$U$2:$U$1000=Costs!$A360)*(AbschreibungAHKBvD))","v":0},{"$f":"SUM(AC$178:AC183)-SUM(AC$266:AC271)+SUMPRODUCT((Aktivierungsjahr=Costs!$A360)*(AbschreibungAGr=Costs!AC$353)*('Fixed assets'!$U$2:$U$1000=Costs!$A360)*(AbschreibungAHKBvD))","v":0},{"$f":"SUM(AD$178:AD183)-SUM(AD$266:AD271)+SUMPRODUCT((Aktivierungsjahr=Costs!$A360)*(AbschreibungAGr=Costs!AD$353)*('Fixed assets'!$U$2:$U$1000=Costs!$A360)*(AbschreibungAHKBvD))","v":0},{"$f":"SUM(AE$178:AE183)-SUM(AE$266:AE271)+SUMPRODUCT((Aktivierungsjahr=Costs!$A360)*(AbschreibungAGr=Costs!AE$353)*('Fixed assets'!$U$2:$U$1000=Costs!$A360)*(AbschreibungAHKBvD))","v":0},{"$f":"SUM(AF$178:AF183)-SUM(AF$266:AF271)+SUMPRODUCT((Aktivierungsjahr=Costs!$A360)*(AbschreibungAGr=Costs!AF$353)*('Fixed assets'!$U$2:$U$1000=Costs!$A360)*(AbschreibungAHKBvD))","v":0},{"$f":"SUM(AG$178:AG183)-SUM(AG$266:AG271)+SUMPRODUCT((Aktivierungsjahr=Costs!$A360)*(AbschreibungAGr=Costs!AG$353)*('Fixed assets'!$U$2:$U$1000=Costs!$A360)*(AbschreibungAHKBvD))","v":0},{"$f":"SUM(AH$178:AH183)-SUM(AH$266:AH271)+SUMPRODUCT((Aktivierungsjahr=Costs!$A360)*(AbschreibungAGr=Costs!AH$353)*('Fixed assets'!$U$2:$U$1000=Costs!$A360)*(AbschreibungAHKBvD))","v":0},{"$f":"SUM(AI$178:AI183)-SUM(AI$266:AI271)+SUMPRODUCT((Aktivierungsjahr=Costs!$A360)*(AbschreibungAGr=Costs!AI$353)*('Fixed assets'!$U$2:$U$1000=Costs!$A360)*(AbschreibungAHKBvD))","v":0},{"$f":"SUM(AJ$178:AJ183)-SUM(AJ$266:AJ271)+SUMPRODUCT((Aktivierungsjahr=Costs!$A360)*(AbschreibungAGr=Costs!AJ$353)*('Fixed assets'!$U$2:$U$1000=Costs!$A360)*(AbschreibungAHKBvD))","v":0},{"$f":"SUM(AK$178:AK183)-SUM(AK$266:AK271)+SUMPRODUCT((Aktivierungsjahr=Costs!$A360)*(AbschreibungAGr=Costs!AK$353)*('Fixed assets'!$U$2:$U$1000=Costs!$A360)*(AbschreibungAHKBvD))","v":0},{"$f":"SUM(AL$178:AL183)-SUM(AL$266:AL271)+SUMPRODUCT((Aktivierungsjahr=Costs!$A360)*(AbschreibungAGr=Costs!AL$353)*('Fixed assets'!$U$2:$U$1000=Costs!$A360)*(AbschreibungAHKBvD))","v":0},{"$f":"SUM(AM$178:AM183)-SUM(AM$266:AM271)+SUMPRODUCT((Aktivierungsjahr=Costs!$A360)*(AbschreibungAGr=Costs!AM$353)*('Fixed assets'!$U$2:$U$1000=Costs!$A360)*(AbschreibungAHKBvD))","v":0},{"$f":"SUM(AN$178:AN183)-SUM(AN$266:AN271)+SUMPRODUCT((Aktivierungsjahr=Costs!$A360)*(AbschreibungAGr=Costs!AN$353)*('Fixed assets'!$U$2:$U$1000=Costs!$A360)*(AbschreibungAHKBvD))","v":0},{"$f":"SUM(AO$178:AO183)-SUM(AO$266:AO271)+SUMPRODUCT((Aktivierungsjahr=Costs!$A360)*(AbschreibungAGr=Costs!AO$353)*('Fixed assets'!$U$2:$U$1000=Costs!$A360)*(AbschreibungAHKBvD))","v":0},{"$f":"SUM(AP$178:AP183)-SUM(AP$266:AP271)+SUMPRODUCT((Aktivierungsjahr=Costs!$A360)*(AbschreibungAGr=Costs!AP$353)*('Fixed assets'!$U$2:$U$1000=Costs!$A360)*(AbschreibungAHKBvD))","v":0},{"$f":"SUM(AQ$178:AQ183)-SUM(AQ$266:AQ271)+SUMPRODUCT((Aktivierungsjahr=Costs!$A360)*(AbschreibungAGr=Costs!AQ$353)*('Fixed assets'!$U$2:$U$1000=Costs!$A360)*(AbschreibungAHKBvD))","v":0}]
[2022,0,{"$f":"SUM(C$178:C184)-SUM(C$266:C272)+SUMPRODUCT((Aktivierungsjahr=Costs!$A361)*(AbschreibungAGr=Costs!C$353)*('Fixed assets'!$U$2:$U$1000=Costs!$A361)*(AbschreibungAHKBvD))","v":0},{"$f":"SUM(D$178:D184)-SUM(D$266:D272)+SUMPRODUCT((Aktivierungsjahr=Costs!$A361)*(AbschreibungAGr=Costs!D$353)*('Fixed assets'!$U$2:$U$1000=Costs!$A361)*(AbschreibungAHKBvD))","v":0},{"$f":"SUM(E$178:E184)-SUM(E$266:E272)+SUMPRODUCT((Aktivierungsjahr=Costs!$A361)*(AbschreibungAGr=Costs!E$353)*('Fixed assets'!$U$2:$U$1000=Costs!$A361)*(AbschreibungAHKBvD))","v":0},{"$f":"SUM(F$178:F184)-SUM(F$266:F272)+SUMPRODUCT((Aktivierungsjahr=Costs!$A361)*(AbschreibungAGr=Costs!F$353)*('Fixed assets'!$U$2:$U$1000=Costs!$A361)*(AbschreibungAHKBvD))","v":0},{"$f":"SUM(G$178:G184)-SUM(G$266:G272)+SUMPRODUCT((Aktivierungsjahr=Costs!$A361)*(AbschreibungAGr=Costs!G$353)*('Fixed assets'!$U$2:$U$1000=Costs!$A361)*(AbschreibungAHKBvD))","v":0},{"$f":"SUM(H$178:H184)-SUM(H$266:H272)+SUMPRODUCT((Aktivierungsjahr=Costs!$A361)*(AbschreibungAGr=Costs!H$353)*('Fixed assets'!$U$2:$U$1000=Costs!$A361)*(AbschreibungAHKBvD))","v":0},{"$f":"SUM(I$178:I184)-SUM(I$266:I272)+SUMPRODUCT((Aktivierungsjahr=Costs!$A361)*(AbschreibungAGr=Costs!I$353)*('Fixed assets'!$U$2:$U$1000=Costs!$A361)*(AbschreibungAHKBvD))","v":0},{"$f":"SUM(J$178:J184)-SUM(J$266:J272)+SUMPRODUCT((Aktivierungsjahr=Costs!$A361)*(AbschreibungAGr=Costs!J$353)*('Fixed assets'!$U$2:$U$1000=Costs!$A361)*(AbschreibungAHKBvD))","v":0},{"$f":"SUM(K$178:K184)-SUM(K$266:K272)+SUMPRODUCT((Aktivierungsjahr=Costs!$A361)*(AbschreibungAGr=Costs!K$353)*('Fixed assets'!$U$2:$U$1000=Costs!$A361)*(AbschreibungAHKBvD))","v":0},{"$f":"SUM(L$178:L184)-SUM(L$266:L272)+SUMPRODUCT((Aktivierungsjahr=Costs!$A361)*(AbschreibungAGr=Costs!L$353)*('Fixed assets'!$U$2:$U$1000=Costs!$A361)*(AbschreibungAHKBvD))","v":0},{"$f":"SUM(M$178:M184)-SUM(M$266:M272)+SUMPRODUCT((Aktivierungsjahr=Costs!$A361)*(AbschreibungAGr=Costs!M$353)*('Fixed assets'!$U$2:$U$1000=Costs!$A361)*(AbschreibungAHKBvD))","v":0},{"$f":"SUM(N$178:N184)-SUM(N$266:N272)+SUMPRODUCT((Aktivierungsjahr=Costs!$A361)*(AbschreibungAGr=Costs!N$353)*('Fixed assets'!$U$2:$U$1000=Costs!$A361)*(AbschreibungAHKBvD))","v":0},{"$f":"SUM(O$178:O184)-SUM(O$266:O272)+SUMPRODUCT((Aktivierungsjahr=Costs!$A361)*(AbschreibungAGr=Costs!O$353)*('Fixed assets'!$U$2:$U$1000=Costs!$A361)*(AbschreibungAHKBvD))","v":0},{"$f":"SUM(P$178:P184)-SUM(P$266:P272)+SUMPRODUCT((Aktivierungsjahr=Costs!$A361)*(AbschreibungAGr=Costs!P$353)*('Fixed assets'!$U$2:$U$1000=Costs!$A361)*(AbschreibungAHKBvD))","v":0},{"$f":"SUM(Q$178:Q184)-SUM(Q$266:Q272)+SUMPRODUCT((Aktivierungsjahr=Costs!$A361)*(AbschreibungAGr=Costs!Q$353)*('Fixed assets'!$U$2:$U$1000=Costs!$A361)*(AbschreibungAHKBvD))","v":0},{"$f":"SUM(R$178:R184)-SUM(R$266:R272)+SUMPRODUCT((Aktivierungsjahr=Costs!$A361)*(AbschreibungAGr=Costs!R$353)*('Fixed assets'!$U$2:$U$1000=Costs!$A361)*(AbschreibungAHKBvD))","v":0},{"$f":"SUM(S$178:S184)-SUM(S$266:S272)+SUMPRODUCT((Aktivierungsjahr=Costs!$A361)*(AbschreibungAGr=Costs!S$353)*('Fixed assets'!$U$2:$U$1000=Costs!$A361)*(AbschreibungAHKBvD))","v":0},{"$f":"SUM(T$178:T184)-SUM(T$266:T272)+SUMPRODUCT((Aktivierungsjahr=Costs!$A361)*(AbschreibungAGr=Costs!T$353)*('Fixed assets'!$U$2:$U$1000=Costs!$A361)*(AbschreibungAHKBvD))","v":0},{"$f":"SUM(U$178:U184)-SUM(U$266:U272)+SUMPRODUCT((Aktivierungsjahr=Costs!$A361)*(AbschreibungAGr=Costs!U$353)*('Fixed assets'!$U$2:$U$1000=Costs!$A361)*(AbschreibungAHKBvD))","v":0},{"$f":"SUM(V$178:V184)-SUM(V$266:V272)+SUMPRODUCT((Aktivierungsjahr=Costs!$A361)*(AbschreibungAGr=Costs!V$353)*('Fixed assets'!$U$2:$U$1000=Costs!$A361)*(AbschreibungAHKBvD))","v":0},{"$f":"SUM(W$178:W184)-SUM(W$266:W272)+SUMPRODUCT((Aktivierungsjahr=Costs!$A361)*(AbschreibungAGr=Costs!W$353)*('Fixed assets'!$U$2:$U$1000=Costs!$A361)*(AbschreibungAHKBvD))","v":0},{"$f":"SUM(X$178:X184)-SUM(X$266:X272)+SUMPRODUCT((Aktivierungsjahr=Costs!$A361)*(AbschreibungAGr=Costs!X$353)*('Fixed assets'!$U$2:$U$1000=Costs!$A361)*(AbschreibungAHKBvD))","v":0},{"$f":"SUM(Y$178:Y184)-SUM(Y$266:Y272)+SUMPRODUCT((Aktivierungsjahr=Costs!$A361)*(AbschreibungAGr=Costs!Y$353)*('Fixed assets'!$U$2:$U$1000=Costs!$A361)*(AbschreibungAHKBvD))","v":0},{"$f":"SUM(Z$178:Z184)-SUM(Z$266:Z272)+SUMPRODUCT((Aktivierungsjahr=Costs!$A361)*(AbschreibungAGr=Costs!Z$353)*('Fixed assets'!$U$2:$U$1000=Costs!$A361)*(AbschreibungAHKBvD))","v":0},{"$f":"SUM(AA$178:AA184)-SUM(AA$266:AA272)+SUMPRODUCT((Aktivierungsjahr=Costs!$A361)*(AbschreibungAGr=Costs!AA$353)*('Fixed assets'!$U$2:$U$1000=Costs!$A361)*(AbschreibungAHKBvD))","v":0},{"$f":"SUM(AB$178:AB184)-SUM(AB$266:AB272)+SUMPRODUCT((Aktivierungsjahr=Costs!$A361)*(AbschreibungAGr=Costs!AB$353)*('Fixed assets'!$U$2:$U$1000=Costs!$A361)*(AbschreibungAHKBvD))","v":0},{"$f":"SUM(AC$178:AC184)-SUM(AC$266:AC272)+SUMPRODUCT((Aktivierungsjahr=Costs!$A361)*(AbschreibungAGr=Costs!AC$353)*('Fixed assets'!$U$2:$U$1000=Costs!$A361)*(AbschreibungAHKBvD))","v":0},{"$f":"SUM(AD$178:AD184)-SUM(AD$266:AD272)+SUMPRODUCT((Aktivierungsjahr=Costs!$A361)*(AbschreibungAGr=Costs!AD$353)*('Fixed assets'!$U$2:$U$1000=Costs!$A361)*(AbschreibungAHKBvD))","v":0},{"$f":"SUM(AE$178:AE184)-SUM(AE$266:AE272)+SUMPRODUCT((Aktivierungsjahr=Costs!$A361)*(AbschreibungAGr=Costs!AE$353)*('Fixed assets'!$U$2:$U$1000=Costs!$A361)*(AbschreibungAHKBvD))","v":0},{"$f":"SUM(AF$178:AF184)-SUM(AF$266:AF272)+SUMPRODUCT((Aktivierungsjahr=Costs!$A361)*(AbschreibungAGr=Costs!AF$353)*('Fixed assets'!$U$2:$U$1000=Costs!$A361)*(AbschreibungAHKBvD))","v":0},{"$f":"SUM(AG$178:AG184)-SUM(AG$266:AG272)+SUMPRODUCT((Aktivierungsjahr=Costs!$A361)*(AbschreibungAGr=Costs!AG$353)*('Fixed assets'!$U$2:$U$1000=Costs!$A361)*(AbschreibungAHKBvD))","v":0},{"$f":"SUM(AH$178:AH184)-SUM(AH$266:AH272)+SUMPRODUCT((Aktivierungsjahr=Costs!$A361)*(AbschreibungAGr=Costs!AH$353)*('Fixed assets'!$U$2:$U$1000=Costs!$A361)*(AbschreibungAHKBvD))","v":0},{"$f":"SUM(AI$178:AI184)-SUM(AI$266:AI272)+SUMPRODUCT((Aktivierungsjahr=Costs!$A361)*(AbschreibungAGr=Costs!AI$353)*('Fixed assets'!$U$2:$U$1000=Costs!$A361)*(AbschreibungAHKBvD))","v":0},{"$f":"SUM(AJ$178:AJ184)-SUM(AJ$266:AJ272)+SUMPRODUCT((Aktivierungsjahr=Costs!$A361)*(AbschreibungAGr=Costs!AJ$353)*('Fixed assets'!$U$2:$U$1000=Costs!$A361)*(AbschreibungAHKBvD))","v":0},{"$f":"SUM(AK$178:AK184)-SUM(AK$266:AK272)+SUMPRODUCT((Aktivierungsjahr=Costs!$A361)*(AbschreibungAGr=Costs!AK$353)*('Fixed assets'!$U$2:$U$1000=Costs!$A361)*(AbschreibungAHKBvD))","v":0},{"$f":"SUM(AL$178:AL184)-SUM(AL$266:AL272)+SUMPRODUCT((Aktivierungsjahr=Costs!$A361)*(AbschreibungAGr=Costs!AL$353)*('Fixed assets'!$U$2:$U$1000=Costs!$A361)*(AbschreibungAHKBvD))","v":0},{"$f":"SUM(AM$178:AM184)-SUM(AM$266:AM272)+SUMPRODUCT((Aktivierungsjahr=Costs!$A361)*(AbschreibungAGr=Costs!AM$353)*('Fixed assets'!$U$2:$U$1000=Costs!$A361)*(AbschreibungAHKBvD))","v":0},{"$f":"SUM(AN$178:AN184)-SUM(AN$266:AN272)+SUMPRODUCT((Aktivierungsjahr=Costs!$A361)*(AbschreibungAGr=Costs!AN$353)*('Fixed assets'!$U$2:$U$1000=Costs!$A361)*(AbschreibungAHKBvD))","v":0},{"$f":"SUM(AO$178:AO184)-SUM(AO$266:AO272)+SUMPRODUCT((Aktivierungsjahr=Costs!$A361)*(AbschreibungAGr=Costs!AO$353)*('Fixed assets'!$U$2:$U$1000=Costs!$A361)*(AbschreibungAHKBvD))","v":0},{"$f":"SUM(AP$178:AP184)-SUM(AP$266:AP272)+SUMPRODUCT((Aktivierungsjahr=Costs!$A361)*(AbschreibungAGr=Costs!AP$353)*('Fixed assets'!$U$2:$U$1000=Costs!$A361)*(AbschreibungAHKBvD))","v":0},{"$f":"SUM(AQ$178:AQ184)-SUM(AQ$266:AQ272)+SUMPRODUCT((Aktivierungsjahr=Costs!$A361)*(AbschreibungAGr=Costs!AQ$353)*('Fixed assets'!$U$2:$U$1000=Costs!$A361)*(AbschreibungAHKBvD))","v":0}]
[2023,0,{"$f":"SUM(C$178:C185)-SUM(C$266:C273)+SUMPRODUCT((Aktivierungsjahr=Costs!$A362)*(AbschreibungAGr=Costs!C$353)*('Fixed assets'!$U$2:$U$1000=Costs!$A362)*(AbschreibungAHKBvD))","v":0},{"$f":"SUM(D$178:D185)-SUM(D$266:D273)+SUMPRODUCT((Aktivierungsjahr=Costs!$A362)*(AbschreibungAGr=Costs!D$353)*('Fixed assets'!$U$2:$U$1000=Costs!$A362)*(AbschreibungAHKBvD))","v":0},{"$f":"SUM(E$178:E185)-SUM(E$266:E273)+SUMPRODUCT((Aktivierungsjahr=Costs!$A362)*(AbschreibungAGr=Costs!E$353)*('Fixed assets'!$U$2:$U$1000=Costs!$A362)*(AbschreibungAHKBvD))","v":0},{"$f":"SUM(F$178:F185)-SUM(F$266:F273)+SUMPRODUCT((Aktivierungsjahr=Costs!$A362)*(AbschreibungAGr=Costs!F$353)*('Fixed assets'!$U$2:$U$1000=Costs!$A362)*(AbschreibungAHKBvD))","v":0},{"$f":"SUM(G$178:G185)-SUM(G$266:G273)+SUMPRODUCT((Aktivierungsjahr=Costs!$A362)*(AbschreibungAGr=Costs!G$353)*('Fixed assets'!$U$2:$U$1000=Costs!$A362)*(AbschreibungAHKBvD))","v":0},{"$f":"SUM(H$178:H185)-SUM(H$266:H273)+SUMPRODUCT((Aktivierungsjahr=Costs!$A362)*(AbschreibungAGr=Costs!H$353)*('Fixed assets'!$U$2:$U$1000=Costs!$A362)*(AbschreibungAHKBvD))","v":0},{"$f":"SUM(I$178:I185)-SUM(I$266:I273)+SUMPRODUCT((Aktivierungsjahr=Costs!$A362)*(AbschreibungAGr=Costs!I$353)*('Fixed assets'!$U$2:$U$1000=Costs!$A362)*(AbschreibungAHKBvD))","v":0},{"$f":"SUM(J$178:J185)-SUM(J$266:J273)+SUMPRODUCT((Aktivierungsjahr=Costs!$A362)*(AbschreibungAGr=Costs!J$353)*('Fixed assets'!$U$2:$U$1000=Costs!$A362)*(AbschreibungAHKBvD))","v":0},{"$f":"SUM(K$178:K185)-SUM(K$266:K273)+SUMPRODUCT((Aktivierungsjahr=Costs!$A362)*(AbschreibungAGr=Costs!K$353)*('Fixed assets'!$U$2:$U$1000=Costs!$A362)*(AbschreibungAHKBvD))","v":0},{"$f":"SUM(L$178:L185)-SUM(L$266:L273)+SUMPRODUCT((Aktivierungsjahr=Costs!$A362)*(AbschreibungAGr=Costs!L$353)*('Fixed assets'!$U$2:$U$1000=Costs!$A362)*(AbschreibungAHKBvD))","v":0},{"$f":"SUM(M$178:M185)-SUM(M$266:M273)+SUMPRODUCT((Aktivierungsjahr=Costs!$A362)*(AbschreibungAGr=Costs!M$353)*('Fixed assets'!$U$2:$U$1000=Costs!$A362)*(AbschreibungAHKBvD))","v":0},{"$f":"SUM(N$178:N185)-SUM(N$266:N273)+SUMPRODUCT((Aktivierungsjahr=Costs!$A362)*(AbschreibungAGr=Costs!N$353)*('Fixed assets'!$U$2:$U$1000=Costs!$A362)*(AbschreibungAHKBvD))","v":0},{"$f":"SUM(O$178:O185)-SUM(O$266:O273)+SUMPRODUCT((Aktivierungsjahr=Costs!$A362)*(AbschreibungAGr=Costs!O$353)*('Fixed assets'!$U$2:$U$1000=Costs!$A362)*(AbschreibungAHKBvD))","v":0},{"$f":"SUM(P$178:P185)-SUM(P$266:P273)+SUMPRODUCT((Aktivierungsjahr=Costs!$A362)*(AbschreibungAGr=Costs!P$353)*('Fixed assets'!$U$2:$U$1000=Costs!$A362)*(AbschreibungAHKBvD))","v":0},{"$f":"SUM(Q$178:Q185)-SUM(Q$266:Q273)+SUMPRODUCT((Aktivierungsjahr=Costs!$A362)*(AbschreibungAGr=Costs!Q$353)*('Fixed assets'!$U$2:$U$1000=Costs!$A362)*(AbschreibungAHKBvD))","v":0},{"$f":"SUM(R$178:R185)-SUM(R$266:R273)+SUMPRODUCT((Aktivierungsjahr=Costs!$A362)*(AbschreibungAGr=Costs!R$353)*('Fixed assets'!$U$2:$U$1000=Costs!$A362)*(AbschreibungAHKBvD))","v":0},{"$f":"SUM(S$178:S185)-SUM(S$266:S273)+SUMPRODUCT((Aktivierungsjahr=Costs!$A362)*(AbschreibungAGr=Costs!S$353)*('Fixed assets'!$U$2:$U$1000=Costs!$A362)*(AbschreibungAHKBvD))","v":0},{"$f":"SUM(T$178:T185)-SUM(T$266:T273)+SUMPRODUCT((Aktivierungsjahr=Costs!$A362)*(AbschreibungAGr=Costs!T$353)*('Fixed assets'!$U$2:$U$1000=Costs!$A362)*(AbschreibungAHKBvD))","v":0},{"$f":"SUM(U$178:U185)-SUM(U$266:U273)+SUMPRODUCT((Aktivierungsjahr=Costs!$A362)*(AbschreibungAGr=Costs!U$353)*('Fixed assets'!$U$2:$U$1000=Costs!$A362)*(AbschreibungAHKBvD))","v":0},{"$f":"SUM(V$178:V185)-SUM(V$266:V273)+SUMPRODUCT((Aktivierungsjahr=Costs!$A362)*(AbschreibungAGr=Costs!V$353)*('Fixed assets'!$U$2:$U$1000=Costs!$A362)*(AbschreibungAHKBvD))","v":0},{"$f":"SUM(W$178:W185)-SUM(W$266:W273)+SUMPRODUCT((Aktivierungsjahr=Costs!$A362)*(AbschreibungAGr=Costs!W$353)*('Fixed assets'!$U$2:$U$1000=Costs!$A362)*(AbschreibungAHKBvD))","v":0},{"$f":"SUM(X$178:X185)-SUM(X$266:X273)+SUMPRODUCT((Aktivierungsjahr=Costs!$A362)*(AbschreibungAGr=Costs!X$353)*('Fixed assets'!$U$2:$U$1000=Costs!$A362)*(AbschreibungAHKBvD))","v":0},{"$f":"SUM(Y$178:Y185)-SUM(Y$266:Y273)+SUMPRODUCT((Aktivierungsjahr=Costs!$A362)*(AbschreibungAGr=Costs!Y$353)*('Fixed assets'!$U$2:$U$1000=Costs!$A362)*(AbschreibungAHKBvD))","v":0},{"$f":"SUM(Z$178:Z185)-SUM(Z$266:Z273)+SUMPRODUCT((Aktivierungsjahr=Costs!$A362)*(AbschreibungAGr=Costs!Z$353)*('Fixed assets'!$U$2:$U$1000=Costs!$A362)*(AbschreibungAHKBvD))","v":0},{"$f":"SUM(AA$178:AA185)-SUM(AA$266:AA273)+SUMPRODUCT((Aktivierungsjahr=Costs!$A362)*(AbschreibungAGr=Costs!AA$353)*('Fixed assets'!$U$2:$U$1000=Costs!$A362)*(AbschreibungAHKBvD))","v":0},{"$f":"SUM(AB$178:AB185)-SUM(AB$266:AB273)+SUMPRODUCT((Aktivierungsjahr=Costs!$A362)*(AbschreibungAGr=Costs!AB$353)*('Fixed assets'!$U$2:$U$1000=Costs!$A362)*(AbschreibungAHKBvD))","v":0},{"$f":"SUM(AC$178:AC185)-SUM(AC$266:AC273)+SUMPRODUCT((Aktivierungsjahr=Costs!$A362)*(AbschreibungAGr=Costs!AC$353)*('Fixed assets'!$U$2:$U$1000=Costs!$A362)*(AbschreibungAHKBvD))","v":0},{"$f":"SUM(AD$178:AD185)-SUM(AD$266:AD273)+SUMPRODUCT((Aktivierungsjahr=Costs!$A362)*(AbschreibungAGr=Costs!AD$353)*('Fixed assets'!$U$2:$U$1000=Costs!$A362)*(AbschreibungAHKBvD))","v":0},{"$f":"SUM(AE$178:AE185)-SUM(AE$266:AE273)+SUMPRODUCT((Aktivierungsjahr=Costs!$A362)*(AbschreibungAGr=Costs!AE$353)*('Fixed assets'!$U$2:$U$1000=Costs!$A362)*(AbschreibungAHKBvD))","v":0},{"$f":"SUM(AF$178:AF185)-SUM(AF$266:AF273)+SUMPRODUCT((Aktivierungsjahr=Costs!$A362)*(AbschreibungAGr=Costs!AF$353)*('Fixed assets'!$U$2:$U$1000=Costs!$A362)*(AbschreibungAHKBvD))","v":0},{"$f":"SUM(AG$178:AG185)-SUM(AG$266:AG273)+SUMPRODUCT((Aktivierungsjahr=Costs!$A362)*(AbschreibungAGr=Costs!AG$353)*('Fixed assets'!$U$2:$U$1000=Costs!$A362)*(AbschreibungAHKBvD))","v":0},{"$f":"SUM(AH$178:AH185)-SUM(AH$266:AH273)+SUMPRODUCT((Aktivierungsjahr=Costs!$A362)*(AbschreibungAGr=Costs!AH$353)*('Fixed assets'!$U$2:$U$1000=Costs!$A362)*(AbschreibungAHKBvD))","v":0},{"$f":"SUM(AI$178:AI185)-SUM(AI$266:AI273)+SUMPRODUCT((Aktivierungsjahr=Costs!$A362)*(AbschreibungAGr=Costs!AI$353)*('Fixed assets'!$U$2:$U$1000=Costs!$A362)*(AbschreibungAHKBvD))","v":0},{"$f":"SUM(AJ$178:AJ185)-SUM(AJ$266:AJ273)+SUMPRODUCT((Aktivierungsjahr=Costs!$A362)*(AbschreibungAGr=Costs!AJ$353)*('Fixed assets'!$U$2:$U$1000=Costs!$A362)*(AbschreibungAHKBvD))","v":0},{"$f":"SUM(AK$178:AK185)-SUM(AK$266:AK273)+SUMPRODUCT((Aktivierungsjahr=Costs!$A362)*(AbschreibungAGr=Costs!AK$353)*('Fixed assets'!$U$2:$U$1000=Costs!$A362)*(AbschreibungAHKBvD))","v":0},{"$f":"SUM(AL$178:AL185)-SUM(AL$266:AL273)+SUMPRODUCT((Aktivierungsjahr=Costs!$A362)*(AbschreibungAGr=Costs!AL$353)*('Fixed assets'!$U$2:$U$1000=Costs!$A362)*(AbschreibungAHKBvD))","v":0},{"$f":"SUM(AM$178:AM185)-SUM(AM$266:AM273)+SUMPRODUCT((Aktivierungsjahr=Costs!$A362)*(AbschreibungAGr=Costs!AM$353)*('Fixed assets'!$U$2:$U$1000=Costs!$A362)*(AbschreibungAHKBvD))","v":0},{"$f":"SUM(AN$178:AN185)-SUM(AN$266:AN273)+SUMPRODUCT((Aktivierungsjahr=Costs!$A362)*(AbschreibungAGr=Costs!AN$353)*('Fixed assets'!$U$2:$U$1000=Costs!$A362)*(AbschreibungAHKBvD))","v":0},{"$f":"SUM(AO$178:AO185)-SUM(AO$266:AO273)+SUMPRODUCT((Aktivierungsjahr=Costs!$A362)*(AbschreibungAGr=Costs!AO$353)*('Fixed assets'!$U$2:$U$1000=Costs!$A362)*(AbschreibungAHKBvD))","v":0},{"$f":"SUM(AP$178:AP185)-SUM(AP$266:AP273)+SUMPRODUCT((Aktivierungsjahr=Costs!$A362)*(AbschreibungAGr=Costs!AP$353)*('Fixed assets'!$U$2:$U$1000=Costs!$A362)*(AbschreibungAHKBvD))","v":0},{"$f":"SUM(AQ$178:AQ185)-SUM(AQ$266:AQ273)+SUMPRODUCT((Aktivierungsjahr=Costs!$A362)*(AbschreibungAGr=Costs!AQ$353)*('Fixed assets'!$U$2:$U$1000=Costs!$A362)*(AbschreibungAHKBvD))","v":0}]
[2024,0,{"$f":"SUM(C$178:C186)-SUM(C$266:C274)+SUMPRODUCT((Aktivierungsjahr=Costs!$A363)*(AbschreibungAGr=Costs!C$353)*('Fixed assets'!$U$2:$U$1000=Costs!$A363)*(AbschreibungAHKBvD))","v":0},{"$f":"SUM(D$178:D186)-SUM(D$266:D274)+SUMPRODUCT((Aktivierungsjahr=Costs!$A363)*(AbschreibungAGr=Costs!D$353)*('Fixed assets'!$U$2:$U$1000=Costs!$A363)*(AbschreibungAHKBvD))","v":0},{"$f":"SUM(E$178:E186)-SUM(E$266:E274)+SUMPRODUCT((Aktivierungsjahr=Costs!$A363)*(AbschreibungAGr=Costs!E$353)*('Fixed assets'!$U$2:$U$1000=Costs!$A363)*(AbschreibungAHKBvD))","v":0},{"$f":"SUM(F$178:F186)-SUM(F$266:F274)+SUMPRODUCT((Aktivierungsjahr=Costs!$A363)*(AbschreibungAGr=Costs!F$353)*('Fixed assets'!$U$2:$U$1000=Costs!$A363)*(AbschreibungAHKBvD))","v":0},{"$f":"SUM(G$178:G186)-SUM(G$266:G274)+SUMPRODUCT((Aktivierungsjahr=Costs!$A363)*(AbschreibungAGr=Costs!G$353)*('Fixed assets'!$U$2:$U$1000=Costs!$A363)*(AbschreibungAHKBvD))","v":0},{"$f":"SUM(H$178:H186)-SUM(H$266:H274)+SUMPRODUCT((Aktivierungsjahr=Costs!$A363)*(AbschreibungAGr=Costs!H$353)*('Fixed assets'!$U$2:$U$1000=Costs!$A363)*(AbschreibungAHKBvD))","v":0},{"$f":"SUM(I$178:I186)-SUM(I$266:I274)+SUMPRODUCT((Aktivierungsjahr=Costs!$A363)*(AbschreibungAGr=Costs!I$353)*('Fixed assets'!$U$2:$U$1000=Costs!$A363)*(AbschreibungAHKBvD))","v":0},{"$f":"SUM(J$178:J186)-SUM(J$266:J274)+SUMPRODUCT((Aktivierungsjahr=Costs!$A363)*(AbschreibungAGr=Costs!J$353)*('Fixed assets'!$U$2:$U$1000=Costs!$A363)*(AbschreibungAHKBvD))","v":0},{"$f":"SUM(K$178:K186)-SUM(K$266:K274)+SUMPRODUCT((Aktivierungsjahr=Costs!$A363)*(AbschreibungAGr=Costs!K$353)*('Fixed assets'!$U$2:$U$1000=Costs!$A363)*(AbschreibungAHKBvD))","v":0},{"$f":"SUM(L$178:L186)-SUM(L$266:L274)+SUMPRODUCT((Aktivierungsjahr=Costs!$A363)*(AbschreibungAGr=Costs!L$353)*('Fixed assets'!$U$2:$U$1000=Costs!$A363)*(AbschreibungAHKBvD))","v":0},{"$f":"SUM(M$178:M186)-SUM(M$266:M274)+SUMPRODUCT((Aktivierungsjahr=Costs!$A363)*(AbschreibungAGr=Costs!M$353)*('Fixed assets'!$U$2:$U$1000=Costs!$A363)*(AbschreibungAHKBvD))","v":0},{"$f":"SUM(N$178:N186)-SUM(N$266:N274)+SUMPRODUCT((Aktivierungsjahr=Costs!$A363)*(AbschreibungAGr=Costs!N$353)*('Fixed assets'!$U$2:$U$1000=Costs!$A363)*(AbschreibungAHKBvD))","v":0},{"$f":"SUM(O$178:O186)-SUM(O$266:O274)+SUMPRODUCT((Aktivierungsjahr=Costs!$A363)*(AbschreibungAGr=Costs!O$353)*('Fixed assets'!$U$2:$U$1000=Costs!$A363)*(AbschreibungAHKBvD))","v":0},{"$f":"SUM(P$178:P186)-SUM(P$266:P274)+SUMPRODUCT((Aktivierungsjahr=Costs!$A363)*(AbschreibungAGr=Costs!P$353)*('Fixed assets'!$U$2:$U$1000=Costs!$A363)*(AbschreibungAHKBvD))","v":0},{"$f":"SUM(Q$178:Q186)-SUM(Q$266:Q274)+SUMPRODUCT((Aktivierungsjahr=Costs!$A363)*(AbschreibungAGr=Costs!Q$353)*('Fixed assets'!$U$2:$U$1000=Costs!$A363)*(AbschreibungAHKBvD))","v":0},{"$f":"SUM(R$178:R186)-SUM(R$266:R274)+SUMPRODUCT((Aktivierungsjahr=Costs!$A363)*(AbschreibungAGr=Costs!R$353)*('Fixed assets'!$U$2:$U$1000=Costs!$A363)*(AbschreibungAHKBvD))","v":0},{"$f":"SUM(S$178:S186)-SUM(S$266:S274)+SUMPRODUCT((Aktivierungsjahr=Costs!$A363)*(AbschreibungAGr=Costs!S$353)*('Fixed assets'!$U$2:$U$1000=Costs!$A363)*(AbschreibungAHKBvD))","v":0},{"$f":"SUM(T$178:T186)-SUM(T$266:T274)+SUMPRODUCT((Aktivierungsjahr=Costs!$A363)*(AbschreibungAGr=Costs!T$353)*('Fixed assets'!$U$2:$U$1000=Costs!$A363)*(AbschreibungAHKBvD))","v":0},{"$f":"SUM(U$178:U186)-SUM(U$266:U274)+SUMPRODUCT((Aktivierungsjahr=Costs!$A363)*(AbschreibungAGr=Costs!U$353)*('Fixed assets'!$U$2:$U$1000=Costs!$A363)*(AbschreibungAHKBvD))","v":0},{"$f":"SUM(V$178:V186)-SUM(V$266:V274)+SUMPRODUCT((Aktivierungsjahr=Costs!$A363)*(AbschreibungAGr=Costs!V$353)*('Fixed assets'!$U$2:$U$1000=Costs!$A363)*(AbschreibungAHKBvD))","v":0},{"$f":"SUM(W$178:W186)-SUM(W$266:W274)+SUMPRODUCT((Aktivierungsjahr=Costs!$A363)*(AbschreibungAGr=Costs!W$353)*('Fixed assets'!$U$2:$U$1000=Costs!$A363)*(AbschreibungAHKBvD))","v":0},{"$f":"SUM(X$178:X186)-SUM(X$266:X274)+SUMPRODUCT((Aktivierungsjahr=Costs!$A363)*(AbschreibungAGr=Costs!X$353)*('Fixed assets'!$U$2:$U$1000=Costs!$A363)*(AbschreibungAHKBvD))","v":0},{"$f":"SUM(Y$178:Y186)-SUM(Y$266:Y274)+SUMPRODUCT((Aktivierungsjahr=Costs!$A363)*(AbschreibungAGr=Costs!Y$353)*('Fixed assets'!$U$2:$U$1000=Costs!$A363)*(AbschreibungAHKBvD))","v":0},{"$f":"SUM(Z$178:Z186)-SUM(Z$266:Z274)+SUMPRODUCT((Aktivierungsjahr=Costs!$A363)*(AbschreibungAGr=Costs!Z$353)*('Fixed assets'!$U$2:$U$1000=Costs!$A363)*(AbschreibungAHKBvD))","v":0},{"$f":"SUM(AA$178:AA186)-SUM(AA$266:AA274)+SUMPRODUCT((Aktivierungsjahr=Costs!$A363)*(AbschreibungAGr=Costs!AA$353)*('Fixed assets'!$U$2:$U$1000=Costs!$A363)*(AbschreibungAHKBvD))","v":0},{"$f":"SUM(AB$178:AB186)-SUM(AB$266:AB274)+SUMPRODUCT((Aktivierungsjahr=Costs!$A363)*(AbschreibungAGr=Costs!AB$353)*('Fixed assets'!$U$2:$U$1000=Costs!$A363)*(AbschreibungAHKBvD))","v":0},{"$f":"SUM(AC$178:AC186)-SUM(AC$266:AC274)+SUMPRODUCT((Aktivierungsjahr=Costs!$A363)*(AbschreibungAGr=Costs!AC$353)*('Fixed assets'!$U$2:$U$1000=Costs!$A363)*(AbschreibungAHKBvD))","v":0},{"$f":"SUM(AD$178:AD186)-SUM(AD$266:AD274)+SUMPRODUCT((Aktivierungsjahr=Costs!$A363)*(AbschreibungAGr=Costs!AD$353)*('Fixed assets'!$U$2:$U$1000=Costs!$A363)*(AbschreibungAHKBvD))","v":0},{"$f":"SUM(AE$178:AE186)-SUM(AE$266:AE274)+SUMPRODUCT((Aktivierungsjahr=Costs!$A363)*(AbschreibungAGr=Costs!AE$353)*('Fixed assets'!$U$2:$U$1000=Costs!$A363)*(AbschreibungAHKBvD))","v":0},{"$f":"SUM(AF$178:AF186)-SUM(AF$266:AF274)+SUMPRODUCT((Aktivierungsjahr=Costs!$A363)*(AbschreibungAGr=Costs!AF$353)*('Fixed assets'!$U$2:$U$1000=Costs!$A363)*(AbschreibungAHKBvD))","v":0},{"$f":"SUM(AG$178:AG186)-SUM(AG$266:AG274)+SUMPRODUCT((Aktivierungsjahr=Costs!$A363)*(AbschreibungAGr=Costs!AG$353)*('Fixed assets'!$U$2:$U$1000=Costs!$A363)*(AbschreibungAHKBvD))","v":0},{"$f":"SUM(AH$178:AH186)-SUM(AH$266:AH274)+SUMPRODUCT((Aktivierungsjahr=Costs!$A363)*(AbschreibungAGr=Costs!AH$353)*('Fixed assets'!$U$2:$U$1000=Costs!$A363)*(AbschreibungAHKBvD))","v":0},{"$f":"SUM(AI$178:AI186)-SUM(AI$266:AI274)+SUMPRODUCT((Aktivierungsjahr=Costs!$A363)*(AbschreibungAGr=Costs!AI$353)*('Fixed assets'!$U$2:$U$1000=Costs!$A363)*(AbschreibungAHKBvD))","v":0},{"$f":"SUM(AJ$178:AJ186)-SUM(AJ$266:AJ274)+SUMPRODUCT((Aktivierungsjahr=Costs!$A363)*(AbschreibungAGr=Costs!AJ$353)*('Fixed assets'!$U$2:$U$1000=Costs!$A363)*(AbschreibungAHKBvD))","v":0},{"$f":"SUM(AK$178:AK186)-SUM(AK$266:AK274)+SUMPRODUCT((Aktivierungsjahr=Costs!$A363)*(AbschreibungAGr=Costs!AK$353)*('Fixed assets'!$U$2:$U$1000=Costs!$A363)*(AbschreibungAHKBvD))","v":0},{"$f":"SUM(AL$178:AL186)-SUM(AL$266:AL274)+SUMPRODUCT((Aktivierungsjahr=Costs!$A363)*(AbschreibungAGr=Costs!AL$353)*('Fixed assets'!$U$2:$U$1000=Costs!$A363)*(AbschreibungAHKBvD))","v":0},{"$f":"SUM(AM$178:AM186)-SUM(AM$266:AM274)+SUMPRODUCT((Aktivierungsjahr=Costs!$A363)*(AbschreibungAGr=Costs!AM$353)*('Fixed assets'!$U$2:$U$1000=Costs!$A363)*(AbschreibungAHKBvD))","v":0},{"$f":"SUM(AN$178:AN186)-SUM(AN$266:AN274)+SUMPRODUCT((Aktivierungsjahr=Costs!$A363)*(AbschreibungAGr=Costs!AN$353)*('Fixed assets'!$U$2:$U$1000=Costs!$A363)*(AbschreibungAHKBvD))","v":0},{"$f":"SUM(AO$178:AO186)-SUM(AO$266:AO274)+SUMPRODUCT((Aktivierungsjahr=Costs!$A363)*(AbschreibungAGr=Costs!AO$353)*('Fixed assets'!$U$2:$U$1000=Costs!$A363)*(AbschreibungAHKBvD))","v":0},{"$f":"SUM(AP$178:AP186)-SUM(AP$266:AP274)+SUMPRODUCT((Aktivierungsjahr=Costs!$A363)*(AbschreibungAGr=Costs!AP$353)*('Fixed assets'!$U$2:$U$1000=Costs!$A363)*(AbschreibungAHKBvD))","v":0},{"$f":"SUM(AQ$178:AQ186)-SUM(AQ$266:AQ274)+SUMPRODUCT((Aktivierungsjahr=Costs!$A363)*(AbschreibungAGr=Costs!AQ$353)*('Fixed assets'!$U$2:$U$1000=Costs!$A363)*(AbschreibungAHKBvD))","v":0}]
[2025,151000000,{"$f":"SUM(C$178:C187)-SUM(C$266:C275)+SUMPRODUCT((Aktivierungsjahr=Costs!$A364)*(AbschreibungAGr=Costs!C$353)*('Fixed assets'!$U$2:$U$1000=Costs!$A364)*(AbschreibungAHKBvD))","v":0},{"$f":"SUM(D$178:D187)-SUM(D$266:D275)+SUMPRODUCT((Aktivierungsjahr=Costs!$A364)*(AbschreibungAGr=Costs!D$353)*('Fixed assets'!$U$2:$U$1000=Costs!$A364)*(AbschreibungAHKBvD))","v":0},{"$f":"SUM(E$178:E187)-SUM(E$266:E275)+SUMPRODUCT((Aktivierungsjahr=Costs!$A364)*(AbschreibungAGr=Costs!E$353)*('Fixed assets'!$U$2:$U$1000=Costs!$A364)*(AbschreibungAHKBvD))","v":0},{"$f":"SUM(F$178:F187)-SUM(F$266:F275)+SUMPRODUCT((Aktivierungsjahr=Costs!$A364)*(AbschreibungAGr=Costs!F$353)*('Fixed assets'!$U$2:$U$1000=Costs!$A364)*(AbschreibungAHKBvD))","v":0},{"$f":"SUM(G$178:G187)-SUM(G$266:G275)+SUMPRODUCT((Aktivierungsjahr=Costs!$A364)*(AbschreibungAGr=Costs!G$353)*('Fixed assets'!$U$2:$U$1000=Costs!$A364)*(AbschreibungAHKBvD))","v":0},{"$f":"SUM(H$178:H187)-SUM(H$266:H275)+SUMPRODUCT((Aktivierungsjahr=Costs!$A364)*(AbschreibungAGr=Costs!H$353)*('Fixed assets'!$U$2:$U$1000=Costs!$A364)*(AbschreibungAHKBvD))","v":0},{"$f":"SUM(I$178:I187)-SUM(I$266:I275)+SUMPRODUCT((Aktivierungsjahr=Costs!$A364)*(AbschreibungAGr=Costs!I$353)*('Fixed assets'!$U$2:$U$1000=Costs!$A364)*(AbschreibungAHKBvD))","v":0},{"$f":"SUM(J$178:J187)-SUM(J$266:J275)+SUMPRODUCT((Aktivierungsjahr=Costs!$A364)*(AbschreibungAGr=Costs!J$353)*('Fixed assets'!$U$2:$U$1000=Costs!$A364)*(AbschreibungAHKBvD))","v":0},{"$f":"SUM(K$178:K187)-SUM(K$266:K275)+SUMPRODUCT((Aktivierungsjahr=Costs!$A364)*(AbschreibungAGr=Costs!K$353)*('Fixed assets'!$U$2:$U$1000=Costs!$A364)*(AbschreibungAHKBvD))","v":0},{"$f":"SUM(L$178:L187)-SUM(L$266:L275)+SUMPRODUCT((Aktivierungsjahr=Costs!$A364)*(AbschreibungAGr=Costs!L$353)*('Fixed assets'!$U$2:$U$1000=Costs!$A364)*(AbschreibungAHKBvD))","v":0},{"$f":"SUM(M$178:M187)-SUM(M$266:M275)+SUMPRODUCT((Aktivierungsjahr=Costs!$A364)*(AbschreibungAGr=Costs!M$353)*('Fixed assets'!$U$2:$U$1000=Costs!$A364)*(AbschreibungAHKBvD))","v":0},{"$f":"SUM(N$178:N187)-SUM(N$266:N275)+SUMPRODUCT((Aktivierungsjahr=Costs!$A364)*(AbschreibungAGr=Costs!N$353)*('Fixed assets'!$U$2:$U$1000=Costs!$A364)*(AbschreibungAHKBvD))","v":0},{"$f":"SUM(O$178:O187)-SUM(O$266:O275)+SUMPRODUCT((Aktivierungsjahr=Costs!$A364)*(AbschreibungAGr=Costs!O$353)*('Fixed assets'!$U$2:$U$1000=Costs!$A364)*(AbschreibungAHKBvD))","v":0},{"$f":"SUM(P$178:P187)-SUM(P$266:P275)+SUMPRODUCT((Aktivierungsjahr=Costs!$A364)*(AbschreibungAGr=Costs!P$353)*('Fixed assets'!$U$2:$U$1000=Costs!$A364)*(AbschreibungAHKBvD))","v":150000000},{"$f":"SUM(Q$178:Q187)-SUM(Q$266:Q275)+SUMPRODUCT((Aktivierungsjahr=Costs!$A364)*(AbschreibungAGr=Costs!Q$353)*('Fixed assets'!$U$2:$U$1000=Costs!$A364)*(AbschreibungAHKBvD))","v":0},{"$f":"SUM(R$178:R187)-SUM(R$266:R275)+SUMPRODUCT((Aktivierungsjahr=Costs!$A364)*(AbschreibungAGr=Costs!R$353)*('Fixed assets'!$U$2:$U$1000=Costs!$A364)*(AbschreibungAHKBvD))","v":0},{"$f":"SUM(S$178:S187)-SUM(S$266:S275)+SUMPRODUCT((Aktivierungsjahr=Costs!$A364)*(AbschreibungAGr=Costs!S$353)*('Fixed assets'!$U$2:$U$1000=Costs!$A364)*(AbschreibungAHKBvD))","v":0},{"$f":"SUM(T$178:T187)-SUM(T$266:T275)+SUMPRODUCT((Aktivierungsjahr=Costs!$A364)*(AbschreibungAGr=Costs!T$353)*('Fixed assets'!$U$2:$U$1000=Costs!$A364)*(AbschreibungAHKBvD))","v":0},{"$f":"SUM(U$178:U187)-SUM(U$266:U275)+SUMPRODUCT((Aktivierungsjahr=Costs!$A364)*(AbschreibungAGr=Costs!U$353)*('Fixed assets'!$U$2:$U$1000=Costs!$A364)*(AbschreibungAHKBvD))","v":0},{"$f":"SUM(V$178:V187)-SUM(V$266:V275)+SUMPRODUCT((Aktivierungsjahr=Costs!$A364)*(AbschreibungAGr=Costs!V$353)*('Fixed assets'!$U$2:$U$1000=Costs!$A364)*(AbschreibungAHKBvD))","v":0},{"$f":"SUM(W$178:W187)-SUM(W$266:W275)+SUMPRODUCT((Aktivierungsjahr=Costs!$A364)*(AbschreibungAGr=Costs!W$353)*('Fixed assets'!$U$2:$U$1000=Costs!$A364)*(AbschreibungAHKBvD))","v":0},{"$f":"SUM(X$178:X187)-SUM(X$266:X275)+SUMPRODUCT((Aktivierungsjahr=Costs!$A364)*(AbschreibungAGr=Costs!X$353)*('Fixed assets'!$U$2:$U$1000=Costs!$A364)*(AbschreibungAHKBvD))","v":0},{"$f":"SUM(Y$178:Y187)-SUM(Y$266:Y275)+SUMPRODUCT((Aktivierungsjahr=Costs!$A364)*(AbschreibungAGr=Costs!Y$353)*('Fixed assets'!$U$2:$U$1000=Costs!$A364)*(AbschreibungAHKBvD))","v":0},{"$f":"SUM(Z$178:Z187)-SUM(Z$266:Z275)+SUMPRODUCT((Aktivierungsjahr=Costs!$A364)*(AbschreibungAGr=Costs!Z$353)*('Fixed assets'!$U$2:$U$1000=Costs!$A364)*(AbschreibungAHKBvD))","v":0},{"$f":"SUM(AA$178:AA187)-SUM(AA$266:AA275)+SUMPRODUCT((Aktivierungsjahr=Costs!$A364)*(AbschreibungAGr=Costs!AA$353)*('Fixed assets'!$U$2:$U$1000=Costs!$A364)*(AbschreibungAHKBvD))","v":0},{"$f":"SUM(AB$178:AB187)-SUM(AB$266:AB275)+SUMPRODUCT((Aktivierungsjahr=Costs!$A364)*(AbschreibungAGr=Costs!AB$353)*('Fixed assets'!$U$2:$U$1000=Costs!$A364)*(AbschreibungAHKBvD))","v":0},{"$f":"SUM(AC$178:AC187)-SUM(AC$266:AC275)+SUMPRODUCT((Aktivierungsjahr=Costs!$A364)*(AbschreibungAGr=Costs!AC$353)*('Fixed assets'!$U$2:$U$1000=Costs!$A364)*(AbschreibungAHKBvD))","v":0},{"$f":"SUM(AD$178:AD187)-SUM(AD$266:AD275)+SUMPRODUCT((Aktivierungsjahr=Costs!$A364)*(AbschreibungAGr=Costs!AD$353)*('Fixed assets'!$U$2:$U$1000=Costs!$A364)*(AbschreibungAHKBvD))","v":0},{"$f":"SUM(AE$178:AE187)-SUM(AE$266:AE275)+SUMPRODUCT((Aktivierungsjahr=Costs!$A364)*(AbschreibungAGr=Costs!AE$353)*('Fixed assets'!$U$2:$U$1000=Costs!$A364)*(AbschreibungAHKBvD))","v":0},{"$f":"SUM(AF$178:AF187)-SUM(AF$266:AF275)+SUMPRODUCT((Aktivierungsjahr=Costs!$A364)*(AbschreibungAGr=Costs!AF$353)*('Fixed assets'!$U$2:$U$1000=Costs!$A364)*(AbschreibungAHKBvD))","v":0},{"$f":"SUM(AG$178:AG187)-SUM(AG$266:AG275)+SUMPRODUCT((Aktivierungsjahr=Costs!$A364)*(AbschreibungAGr=Costs!AG$353)*('Fixed assets'!$U$2:$U$1000=Costs!$A364)*(AbschreibungAHKBvD))","v":0},{"$f":"SUM(AH$178:AH187)-SUM(AH$266:AH275)+SUMPRODUCT((Aktivierungsjahr=Costs!$A364)*(AbschreibungAGr=Costs!AH$353)*('Fixed assets'!$U$2:$U$1000=Costs!$A364)*(AbschreibungAHKBvD))","v":0},{"$f":"SUM(AI$178:AI187)-SUM(AI$266:AI275)+SUMPRODUCT((Aktivierungsjahr=Costs!$A364)*(AbschreibungAGr=Costs!AI$353)*('Fixed assets'!$U$2:$U$1000=Costs!$A364)*(AbschreibungAHKBvD))","v":0},{"$f":"SUM(AJ$178:AJ187)-SUM(AJ$266:AJ275)+SUMPRODUCT((Aktivierungsjahr=Costs!$A364)*(AbschreibungAGr=Costs!AJ$353)*('Fixed assets'!$U$2:$U$1000=Costs!$A364)*(AbschreibungAHKBvD))","v":1000000},{"$f":"SUM(AK$178:AK187)-SUM(AK$266:AK275)+SUMPRODUCT((Aktivierungsjahr=Costs!$A364)*(AbschreibungAGr=Costs!AK$353)*('Fixed assets'!$U$2:$U$1000=Costs!$A364)*(AbschreibungAHKBvD))","v":0},{"$f":"SUM(AL$178:AL187)-SUM(AL$266:AL275)+SUMPRODUCT((Aktivierungsjahr=Costs!$A364)*(AbschreibungAGr=Costs!AL$353)*('Fixed assets'!$U$2:$U$1000=Costs!$A364)*(AbschreibungAHKBvD))","v":0},{"$f":"SUM(AM$178:AM187)-SUM(AM$266:AM275)+SUMPRODUCT((Aktivierungsjahr=Costs!$A364)*(AbschreibungAGr=Costs!AM$353)*('Fixed assets'!$U$2:$U$1000=Costs!$A364)*(AbschreibungAHKBvD))","v":0},{"$f":"SUM(AN$178:AN187)-SUM(AN$266:AN275)+SUMPRODUCT((Aktivierungsjahr=Costs!$A364)*(AbschreibungAGr=Costs!AN$353)*('Fixed assets'!$U$2:$U$1000=Costs!$A364)*(AbschreibungAHKBvD))","v":0},{"$f":"SUM(AO$178:AO187)-SUM(AO$266:AO275)+SUMPRODUCT((Aktivierungsjahr=Costs!$A364)*(AbschreibungAGr=Costs!AO$353)*('Fixed assets'!$U$2:$U$1000=Costs!$A364)*(AbschreibungAHKBvD))","v":0},{"$f":"SUM(AP$178:AP187)-SUM(AP$266:AP275)+SUMPRODUCT((Aktivierungsjahr=Costs!$A364)*(AbschreibungAGr=Costs!AP$353)*('Fixed assets'!$U$2:$U$1000=Costs!$A364)*(AbschreibungAHKBvD))","v":0},{"$f":"SUM(AQ$178:AQ187)-SUM(AQ$266:AQ275)+SUMPRODUCT((Aktivierungsjahr=Costs!$A364)*(AbschreibungAGr=Costs!AQ$353)*('Fixed assets'!$U$2:$U$1000=Costs!$A364)*(AbschreibungAHKBvD))","v":0}]
[2026,144977777.77777779,{"$f":"SUM(C$178:C188)-SUM(C$266:C276)+SUMPRODUCT((Aktivierungsjahr=Costs!$A365)*(AbschreibungAGr=Costs!C$353)*('Fixed assets'!$U$2:$U$1000=Costs!$A365)*(AbschreibungAHKBvD))","v":0},{"$f":"SUM(D$178:D188)-SUM(D$266:D276)+SUMPRODUCT((Aktivierungsjahr=Costs!$A365)*(AbschreibungAGr=Costs!D$353)*('Fixed assets'!$U$2:$U$1000=Costs!$A365)*(AbschreibungAHKBvD))","v":0},{"$f":"SUM(E$178:E188)-SUM(E$266:E276)+SUMPRODUCT((Aktivierungsjahr=Costs!$A365)*(AbschreibungAGr=Costs!E$353)*('Fixed assets'!$U$2:$U$1000=Costs!$A365)*(AbschreibungAHKBvD))","v":0},{"$f":"SUM(F$178:F188)-SUM(F$266:F276)+SUMPRODUCT((Aktivierungsjahr=Costs!$A365)*(AbschreibungAGr=Costs!F$353)*('Fixed assets'!$U$2:$U$1000=Costs!$A365)*(AbschreibungAHKBvD))","v":0},{"$f":"SUM(G$178:G188)-SUM(G$266:G276)+SUMPRODUCT((Aktivierungsjahr=Costs!$A365)*(AbschreibungAGr=Costs!G$353)*('Fixed assets'!$U$2:$U$1000=Costs!$A365)*(AbschreibungAHKBvD))","v":0},{"$f":"SUM(H$178:H188)-SUM(H$266:H276)+SUMPRODUCT((Aktivierungsjahr=Costs!$A365)*(AbschreibungAGr=Costs!H$353)*('Fixed assets'!$U$2:$U$1000=Costs!$A365)*(AbschreibungAHKBvD))","v":0},{"$f":"SUM(I$178:I188)-SUM(I$266:I276)+SUMPRODUCT((Aktivierungsjahr=Costs!$A365)*(AbschreibungAGr=Costs!I$353)*('Fixed assets'!$U$2:$U$1000=Costs!$A365)*(AbschreibungAHKBvD))","v":0},{"$f":"SUM(J$178:J188)-SUM(J$266:J276)+SUMPRODUCT((Aktivierungsjahr=Costs!$A365)*(AbschreibungAGr=Costs!J$353)*('Fixed assets'!$U$2:$U$1000=Costs!$A365)*(AbschreibungAHKBvD))","v":0},{"$f":"SUM(K$178:K188)-SUM(K$266:K276)+SUMPRODUCT((Aktivierungsjahr=Costs!$A365)*(AbschreibungAGr=Costs!K$353)*('Fixed assets'!$U$2:$U$1000=Costs!$A365)*(AbschreibungAHKBvD))","v":0},{"$f":"SUM(L$178:L188)-SUM(L$266:L276)+SUMPRODUCT((Aktivierungsjahr=Costs!$A365)*(AbschreibungAGr=Costs!L$353)*('Fixed assets'!$U$2:$U$1000=Costs!$A365)*(AbschreibungAHKBvD))","v":0},{"$f":"SUM(M$178:M188)-SUM(M$266:M276)+SUMPRODUCT((Aktivierungsjahr=Costs!$A365)*(AbschreibungAGr=Costs!M$353)*('Fixed assets'!$U$2:$U$1000=Costs!$A365)*(AbschreibungAHKBvD))","v":0},{"$f":"SUM(N$178:N188)-SUM(N$266:N276)+SUMPRODUCT((Aktivierungsjahr=Costs!$A365)*(AbschreibungAGr=Costs!N$353)*('Fixed assets'!$U$2:$U$1000=Costs!$A365)*(AbschreibungAHKBvD))","v":0},{"$f":"SUM(O$178:O188)-SUM(O$266:O276)+SUMPRODUCT((Aktivierungsjahr=Costs!$A365)*(AbschreibungAGr=Costs!O$353)*('Fixed assets'!$U$2:$U$1000=Costs!$A365)*(AbschreibungAHKBvD))","v":0},{"$f":"SUM(P$178:P188)-SUM(P$266:P276)+SUMPRODUCT((Aktivierungsjahr=Costs!$A365)*(AbschreibungAGr=Costs!P$353)*('Fixed assets'!$U$2:$U$1000=Costs!$A365)*(AbschreibungAHKBvD))","v":144000000},{"$f":"SUM(Q$178:Q188)-SUM(Q$266:Q276)+SUMPRODUCT((Aktivierungsjahr=Costs!$A365)*(AbschreibungAGr=Costs!Q$353)*('Fixed assets'!$U$2:$U$1000=Costs!$A365)*(AbschreibungAHKBvD))","v":0},{"$f":"SUM(R$178:R188)-SUM(R$266:R276)+SUMPRODUCT((Aktivierungsjahr=Costs!$A365)*(AbschreibungAGr=Costs!R$353)*('Fixed assets'!$U$2:$U$1000=Costs!$A365)*(AbschreibungAHKBvD))","v":0},{"$f":"SUM(S$178:S188)-SUM(S$266:S276)+SUMPRODUCT((Aktivierungsjahr=Costs!$A365)*(AbschreibungAGr=Costs!S$353)*('Fixed assets'!$U$2:$U$1000=Costs!$A365)*(AbschreibungAHKBvD))","v":0},{"$f":"SUM(T$178:T188)-SUM(T$266:T276)+SUMPRODUCT((Aktivierungsjahr=Costs!$A365)*(AbschreibungAGr=Costs!T$353)*('Fixed assets'!$U$2:$U$1000=Costs!$A365)*(AbschreibungAHKBvD))","v":0},{"$f":"SUM(U$178:U188)-SUM(U$266:U276)+SUMPRODUCT((Aktivierungsjahr=Costs!$A365)*(AbschreibungAGr=Costs!U$353)*('Fixed assets'!$U$2:$U$1000=Costs!$A365)*(AbschreibungAHKBvD))","v":0},{"$f":"SUM(V$178:V188)-SUM(V$266:V276)+SUMPRODUCT((Aktivierungsjahr=Costs!$A365)*(AbschreibungAGr=Costs!V$353)*('Fixed assets'!$U$2:$U$1000=Costs!$A365)*(AbschreibungAHKBvD))","v":0},{"$f":"SUM(W$178:W188)-SUM(W$266:W276)+SUMPRODUCT((Aktivierungsjahr=Costs!$A365)*(AbschreibungAGr=Costs!W$353)*('Fixed assets'!$U$2:$U$1000=Costs!$A365)*(AbschreibungAHKBvD))","v":0},{"$f":"SUM(X$178:X188)-SUM(X$266:X276)+SUMPRODUCT((Aktivierungsjahr=Costs!$A365)*(AbschreibungAGr=Costs!X$353)*('Fixed assets'!$U$2:$U$1000=Costs!$A365)*(AbschreibungAHKBvD))","v":0},{"$f":"SUM(Y$178:Y188)-SUM(Y$266:Y276)+SUMPRODUCT((Aktivierungsjahr=Costs!$A365)*(AbschreibungAGr=Costs!Y$353)*('Fixed assets'!$U$2:$U$1000=Costs!$A365)*(AbschreibungAHKBvD))","v":0},{"$f":"SUM(Z$178:Z188)-SUM(Z$266:Z276)+SUMPRODUCT((Aktivierungsjahr=Costs!$A365)*(AbschreibungAGr=Costs!Z$353)*('Fixed assets'!$U$2:$U$1000=Costs!$A365)*(AbschreibungAHKBvD))","v":0},{"$f":"SUM(AA$178:AA188)-SUM(AA$266:AA276)+SUMPRODUCT((Aktivierungsjahr=Costs!$A365)*(AbschreibungAGr=Costs!AA$353)*('Fixed assets'!$U$2:$U$1000=Costs!$A365)*(AbschreibungAHKBvD))","v":0},{"$f":"SUM(AB$178:AB188)-SUM(AB$266:AB276)+SUMPRODUCT((Aktivierungsjahr=Costs!$A365)*(AbschreibungAGr=Costs!AB$353)*('Fixed assets'!$U$2:$U$1000=Costs!$A365)*(AbschreibungAHKBvD))","v":0},{"$f":"SUM(AC$178:AC188)-SUM(AC$266:AC276)+SUMPRODUCT((Aktivierungsjahr=Costs!$A365)*(AbschreibungAGr=Costs!AC$353)*('Fixed assets'!$U$2:$U$1000=Costs!$A365)*(AbschreibungAHKBvD))","v":0},{"$f":"SUM(AD$178:AD188)-SUM(AD$266:AD276)+SUMPRODUCT((Aktivierungsjahr=Costs!$A365)*(AbschreibungAGr=Costs!AD$353)*('Fixed assets'!$U$2:$U$1000=Costs!$A365)*(AbschreibungAHKBvD))","v":0},{"$f":"SUM(AE$178:AE188)-SUM(AE$266:AE276)+SUMPRODUCT((Aktivierungsjahr=Costs!$A365)*(AbschreibungAGr=Costs!AE$353)*('Fixed assets'!$U$2:$U$1000=Costs!$A365)*(AbschreibungAHKBvD))","v":0},{"$f":"SUM(AF$178:AF188)-SUM(AF$266:AF276)+SUMPRODUCT((Aktivierungsjahr=Costs!$A365)*(AbschreibungAGr=Costs!AF$353)*('Fixed assets'!$U$2:$U$1000=Costs!$A365)*(AbschreibungAHKBvD))","v":0},{"$f":"SUM(AG$178:AG188)-SUM(AG$266:AG276)+SUMPRODUCT((Aktivierungsjahr=Costs!$A365)*(AbschreibungAGr=Costs!AG$353)*('Fixed assets'!$U$2:$U$1000=Costs!$A365)*(AbschreibungAHKBvD))","v":0},{"$f":"SUM(AH$178:AH188)-SUM(AH$266:AH276)+SUMPRODUCT((Aktivierungsjahr=Costs!$A365)*(AbschreibungAGr=Costs!AH$353)*('Fixed assets'!$U$2:$U$1000=Costs!$A365)*(AbschreibungAHKBvD))","v":0},{"$f":"SUM(AI$178:AI188)-SUM(AI$266:AI276)+SUMPRODUCT((Aktivierungsjahr=Costs!$A365)*(AbschreibungAGr=Costs!AI$353)*('Fixed assets'!$U$2:$U$1000=Costs!$A365)*(AbschreibungAHKBvD))","v":0},{"$f":"SUM(AJ$178:AJ188)-SUM(AJ$266:AJ276)+SUMPRODUCT((Aktivierungsjahr=Costs!$A365)*(AbschreibungAGr=Costs!AJ$353)*('Fixed assets'!$U$2:$U$1000=Costs!$A365)*(AbschreibungAHKBvD))","v":977777.77777777775},{"$f":"SUM(AK$178:AK188)-SUM(AK$266:AK276)+SUMPRODUCT((Aktivierungsjahr=Costs!$A365)*(AbschreibungAGr=Costs!AK$353)*('Fixed assets'!$U$2:$U$1000=Costs!$A365)*(AbschreibungAHKBvD))","v":0},{"$f":"SUM(AL$178:AL188)-SUM(AL$266:AL276)+SUMPRODUCT((Aktivierungsjahr=Costs!$A365)*(AbschreibungAGr=Costs!AL$353)*('Fixed assets'!$U$2:$U$1000=Costs!$A365)*(AbschreibungAHKBvD))","v":0},{"$f":"SUM(AM$178:AM188)-SUM(AM$266:AM276)+SUMPRODUCT((Aktivierungsjahr=Costs!$A365)*(AbschreibungAGr=Costs!AM$353)*('Fixed assets'!$U$2:$U$1000=Costs!$A365)*(AbschreibungAHKBvD))","v":0},{"$f":"SUM(AN$178:AN188)-SUM(AN$266:AN276)+SUMPRODUCT((Aktivierungsjahr=Costs!$A365)*(AbschreibungAGr=Costs!AN$353)*('Fixed assets'!$U$2:$U$1000=Costs!$A365)*(AbschreibungAHKBvD))","v":0},{"$f":"SUM(AO$178:AO188)-SUM(AO$266:AO276)+SUMPRODUCT((Aktivierungsjahr=Costs!$A365)*(AbschreibungAGr=Costs!AO$353)*('Fixed assets'!$U$2:$U$1000=Costs!$A365)*(AbschreibungAHKBvD))","v":0},{"$f":"SUM(AP$178:AP188)-SUM(AP$266:AP276)+SUMPRODUCT((Aktivierungsjahr=Costs!$A365)*(AbschreibungAGr=Costs!AP$353)*('Fixed assets'!$U$2:$U$1000=Costs!$A365)*(AbschreibungAHKBvD))","v":0},{"$f":"SUM(AQ$178:AQ188)-SUM(AQ$266:AQ276)+SUMPRODUCT((Aktivierungsjahr=Costs!$A365)*(AbschreibungAGr=Costs!AQ$353)*('Fixed assets'!$U$2:$U$1000=Costs!$A365)*(AbschreibungAHKBvD))","v":0}]
[2027,138955555.55555555,{"$f":"SUM(C$178:C189)-SUM(C$266:C277)+SUMPRODUCT((Aktivierungsjahr=Costs!$A366)*(AbschreibungAGr=Costs!C$353)*('Fixed assets'!$U$2:$U$1000=Costs!$A366)*(AbschreibungAHKBvD))","v":0},{"$f":"SUM(D$178:D189)-SUM(D$266:D277)+SUMPRODUCT((Aktivierungsjahr=Costs!$A366)*(AbschreibungAGr=Costs!D$353)*('Fixed assets'!$U$2:$U$1000=Costs!$A366)*(AbschreibungAHKBvD))","v":0},{"$f":"SUM(E$178:E189)-SUM(E$266:E277)+SUMPRODUCT((Aktivierungsjahr=Costs!$A366)*(AbschreibungAGr=Costs!E$353)*('Fixed assets'!$U$2:$U$1000=Costs!$A366)*(AbschreibungAHKBvD))","v":0},{"$f":"SUM(F$178:F189)-SUM(F$266:F277)+SUMPRODUCT((Aktivierungsjahr=Costs!$A366)*(AbschreibungAGr=Costs!F$353)*('Fixed assets'!$U$2:$U$1000=Costs!$A366)*(AbschreibungAHKBvD))","v":0},{"$f":"SUM(G$178:G189)-SUM(G$266:G277)+SUMPRODUCT((Aktivierungsjahr=Costs!$A366)*(AbschreibungAGr=Costs!G$353)*('Fixed assets'!$U$2:$U$1000=Costs!$A366)*(AbschreibungAHKBvD))","v":0},{"$f":"SUM(H$178:H189)-SUM(H$266:H277)+SUMPRODUCT((Aktivierungsjahr=Costs!$A366)*(AbschreibungAGr=Costs!H$353)*('Fixed assets'!$U$2:$U$1000=Costs!$A366)*(AbschreibungAHKBvD))","v":0},{"$f":"SUM(I$178:I189)-SUM(I$266:I277)+SUMPRODUCT((Aktivierungsjahr=Costs!$A366)*(AbschreibungAGr=Costs!I$353)*('Fixed assets'!$U$2:$U$1000=Costs!$A366)*(AbschreibungAHKBvD))","v":0},{"$f":"SUM(J$178:J189)-SUM(J$266:J277)+SUMPRODUCT((Aktivierungsjahr=Costs!$A366)*(AbschreibungAGr=Costs!J$353)*('Fixed assets'!$U$2:$U$1000=Costs!$A366)*(AbschreibungAHKBvD))","v":0},{"$f":"SUM(K$178:K189)-SUM(K$266:K277)+SUMPRODUCT((Aktivierungsjahr=Costs!$A366)*(AbschreibungAGr=Costs!K$353)*('Fixed assets'!$U$2:$U$1000=Costs!$A366)*(AbschreibungAHKBvD))","v":0},{"$f":"SUM(L$178:L189)-SUM(L$266:L277)+SUMPRODUCT((Aktivierungsjahr=Costs!$A366)*(AbschreibungAGr=Costs!L$353)*('Fixed assets'!$U$2:$U$1000=Costs!$A366)*(AbschreibungAHKBvD))","v":0},{"$f":"SUM(M$178:M189)-SUM(M$266:M277)+SUMPRODUCT((Aktivierungsjahr=Costs!$A366)*(AbschreibungAGr=Costs!M$353)*('Fixed assets'!$U$2:$U$1000=Costs!$A366)*(AbschreibungAHKBvD))","v":0},{"$f":"SUM(N$178:N189)-SUM(N$266:N277)+SUMPRODUCT((Aktivierungsjahr=Costs!$A366)*(AbschreibungAGr=Costs!N$353)*('Fixed assets'!$U$2:$U$1000=Costs!$A366)*(AbschreibungAHKBvD))","v":0},{"$f":"SUM(O$178:O189)-SUM(O$266:O277)+SUMPRODUCT((Aktivierungsjahr=Costs!$A366)*(AbschreibungAGr=Costs!O$353)*('Fixed assets'!$U$2:$U$1000=Costs!$A366)*(AbschreibungAHKBvD))","v":0},{"$f":"SUM(P$178:P189)-SUM(P$266:P277)+SUMPRODUCT((Aktivierungsjahr=Costs!$A366)*(AbschreibungAGr=Costs!P$353)*('Fixed assets'!$U$2:$U$1000=Costs!$A366)*(AbschreibungAHKBvD))","v":138000000},{"$f":"SUM(Q$178:Q189)-SUM(Q$266:Q277)+SUMPRODUCT((Aktivierungsjahr=Costs!$A366)*(AbschreibungAGr=Costs!Q$353)*('Fixed assets'!$U$2:$U$1000=Costs!$A366)*(AbschreibungAHKBvD))","v":0},{"$f":"SUM(R$178:R189)-SUM(R$266:R277)+SUMPRODUCT((Aktivierungsjahr=Costs!$A366)*(AbschreibungAGr=Costs!R$353)*('Fixed assets'!$U$2:$U$1000=Costs!$A366)*(AbschreibungAHKBvD))","v":0},{"$f":"SUM(S$178:S189)-SUM(S$266:S277)+SUMPRODUCT((Aktivierungsjahr=Costs!$A366)*(AbschreibungAGr=Costs!S$353)*('Fixed assets'!$U$2:$U$1000=Costs!$A366)*(AbschreibungAHKBvD))","v":0},{"$f":"SUM(T$178:T189)-SUM(T$266:T277)+SUMPRODUCT((Aktivierungsjahr=Costs!$A366)*(AbschreibungAGr=Costs!T$353)*('Fixed assets'!$U$2:$U$1000=Costs!$A366)*(AbschreibungAHKBvD))","v":0},{"$f":"SUM(U$178:U189)-SUM(U$266:U277)+SUMPRODUCT((Aktivierungsjahr=Costs!$A366)*(AbschreibungAGr=Costs!U$353)*('Fixed assets'!$U$2:$U$1000=Costs!$A366)*(AbschreibungAHKBvD))","v":0},{"$f":"SUM(V$178:V189)-SUM(V$266:V277)+SUMPRODUCT((Aktivierungsjahr=Costs!$A366)*(AbschreibungAGr=Costs!V$353)*('Fixed assets'!$U$2:$U$1000=Costs!$A366)*(AbschreibungAHKBvD))","v":0},{"$f":"SUM(W$178:W189)-SUM(W$266:W277)+SUMPRODUCT((Aktivierungsjahr=Costs!$A366)*(AbschreibungAGr=Costs!W$353)*('Fixed assets'!$U$2:$U$1000=Costs!$A366)*(AbschreibungAHKBvD))","v":0},{"$f":"SUM(X$178:X189)-SUM(X$266:X277)+SUMPRODUCT((Aktivierungsjahr=Costs!$A366)*(AbschreibungAGr=Costs!X$353)*('Fixed assets'!$U$2:$U$1000=Costs!$A366)*(AbschreibungAHKBvD))","v":0},{"$f":"SUM(Y$178:Y189)-SUM(Y$266:Y277)+SUMPRODUCT((Aktivierungsjahr=Costs!$A366)*(AbschreibungAGr=Costs!Y$353)*('Fixed assets'!$U$2:$U$1000=Costs!$A366)*(AbschreibungAHKBvD))","v":0},{"$f":"SUM(Z$178:Z189)-SUM(Z$266:Z277)+SUMPRODUCT((Aktivierungsjahr=Costs!$A366)*(AbschreibungAGr=Costs!Z$353)*('Fixed assets'!$U$2:$U$1000=Costs!$A366)*(AbschreibungAHKBvD))","v":0},{"$f":"SUM(AA$178:AA189)-SUM(AA$266:AA277)+SUMPRODUCT((Aktivierungsjahr=Costs!$A366)*(AbschreibungAGr=Costs!AA$353)*('Fixed assets'!$U$2:$U$1000=Costs!$A366)*(AbschreibungAHKBvD))","v":0},{"$f":"SUM(AB$178:AB189)-SUM(AB$266:AB277)+SUMPRODUCT((Aktivierungsjahr=Costs!$A366)*(AbschreibungAGr=Costs!AB$353)*('Fixed assets'!$U$2:$U$1000=Costs!$A366)*(AbschreibungAHKBvD))","v":0},{"$f":"SUM(AC$178:AC189)-SUM(AC$266:AC277)+SUMPRODUCT((Aktivierungsjahr=Costs!$A366)*(AbschreibungAGr=Costs!AC$353)*('Fixed assets'!$U$2:$U$1000=Costs!$A366)*(AbschreibungAHKBvD))","v":0},{"$f":"SUM(AD$178:AD189)-SUM(AD$266:AD277)+SUMPRODUCT((Aktivierungsjahr=Costs!$A366)*(AbschreibungAGr=Costs!AD$353)*('Fixed assets'!$U$2:$U$1000=Costs!$A366)*(AbschreibungAHKBvD))","v":0},{"$f":"SUM(AE$178:AE189)-SUM(AE$266:AE277)+SUMPRODUCT((Aktivierungsjahr=Costs!$A366)*(AbschreibungAGr=Costs!AE$353)*('Fixed assets'!$U$2:$U$1000=Costs!$A366)*(AbschreibungAHKBvD))","v":0},{"$f":"SUM(AF$178:AF189)-SUM(AF$266:AF277)+SUMPRODUCT((Aktivierungsjahr=Costs!$A366)*(AbschreibungAGr=Costs!AF$353)*('Fixed assets'!$U$2:$U$1000=Costs!$A366)*(AbschreibungAHKBvD))","v":0},{"$f":"SUM(AG$178:AG189)-SUM(AG$266:AG277)+SUMPRODUCT((Aktivierungsjahr=Costs!$A366)*(AbschreibungAGr=Costs!AG$353)*('Fixed assets'!$U$2:$U$1000=Costs!$A366)*(AbschreibungAHKBvD))","v":0},{"$f":"SUM(AH$178:AH189)-SUM(AH$266:AH277)+SUMPRODUCT((Aktivierungsjahr=Costs!$A366)*(AbschreibungAGr=Costs!AH$353)*('Fixed assets'!$U$2:$U$1000=Costs!$A366)*(AbschreibungAHKBvD))","v":0},{"$f":"SUM(AI$178:AI189)-SUM(AI$266:AI277)+SUMPRODUCT((Aktivierungsjahr=Costs!$A366)*(AbschreibungAGr=Costs!AI$353)*('Fixed assets'!$U$2:$U$1000=Costs!$A366)*(AbschreibungAHKBvD))","v":0},{"$f":"SUM(AJ$178:AJ189)-SUM(AJ$266:AJ277)+SUMPRODUCT((Aktivierungsjahr=Costs!$A366)*(AbschreibungAGr=Costs!AJ$353)*('Fixed assets'!$U$2:$U$1000=Costs!$A366)*(AbschreibungAHKBvD))","v":955555.5555555555},{"$f":"SUM(AK$178:AK189)-SUM(AK$266:AK277)+SUMPRODUCT((Aktivierungsjahr=Costs!$A366)*(AbschreibungAGr=Costs!AK$353)*('Fixed assets'!$U$2:$U$1000=Costs!$A366)*(AbschreibungAHKBvD))","v":0},{"$f":"SUM(AL$178:AL189)-SUM(AL$266:AL277)+SUMPRODUCT((Aktivierungsjahr=Costs!$A366)*(AbschreibungAGr=Costs!AL$353)*('Fixed assets'!$U$2:$U$1000=Costs!$A366)*(AbschreibungAHKBvD))","v":0},{"$f":"SUM(AM$178:AM189)-SUM(AM$266:AM277)+SUMPRODUCT((Aktivierungsjahr=Costs!$A366)*(AbschreibungAGr=Costs!AM$353)*('Fixed assets'!$U$2:$U$1000=Costs!$A366)*(AbschreibungAHKBvD))","v":0},{"$f":"SUM(AN$178:AN189)-SUM(AN$266:AN277)+SUMPRODUCT((Aktivierungsjahr=Costs!$A366)*(AbschreibungAGr=Costs!AN$353)*('Fixed assets'!$U$2:$U$1000=Costs!$A366)*(AbschreibungAHKBvD))","v":0},{"$f":"SUM(AO$178:AO189)-SUM(AO$266:AO277)+SUMPRODUCT((Aktivierungsjahr=Costs!$A366)*(AbschreibungAGr=Costs!AO$353)*('Fixed assets'!$U$2:$U$1000=Costs!$A366)*(AbschreibungAHKBvD))","v":0},{"$f":"SUM(AP$178:AP189)-SUM(AP$266:AP277)+SUMPRODUCT((Aktivierungsjahr=Costs!$A366)*(AbschreibungAGr=Costs!AP$353)*('Fixed assets'!$U$2:$U$1000=Costs!$A366)*(AbschreibungAHKBvD))","v":0},{"$f":"SUM(AQ$178:AQ189)-SUM(AQ$266:AQ277)+SUMPRODUCT((Aktivierungsjahr=Costs!$A366)*(AbschreibungAGr=Costs!AQ$353)*('Fixed assets'!$U$2:$U$1000=Costs!$A366)*(AbschreibungAHKBvD))","v":0}]
[2028,132933333.33333333,{"$f":"SUM(C$178:C190)-SUM(C$266:C278)+SUMPRODUCT((Aktivierungsjahr=Costs!$A367)*(AbschreibungAGr=Costs!C$353)*('Fixed assets'!$U$2:$U$1000=Costs!$A367)*(AbschreibungAHKBvD))","v":0},{"$f":"SUM(D$178:D190)-SUM(D$266:D278)+SUMPRODUCT((Aktivierungsjahr=Costs!$A367)*(AbschreibungAGr=Costs!D$353)*('Fixed assets'!$U$2:$U$1000=Costs!$A367)*(AbschreibungAHKBvD))","v":0},{"$f":"SUM(E$178:E190)-SUM(E$266:E278)+SUMPRODUCT((Aktivierungsjahr=Costs!$A367)*(AbschreibungAGr=Costs!E$353)*('Fixed assets'!$U$2:$U$1000=Costs!$A367)*(AbschreibungAHKBvD))","v":0},{"$f":"SUM(F$178:F190)-SUM(F$266:F278)+SUMPRODUCT((Aktivierungsjahr=Costs!$A367)*(AbschreibungAGr=Costs!F$353)*('Fixed assets'!$U$2:$U$1000=Costs!$A367)*(AbschreibungAHKBvD))","v":0},{"$f":"SUM(G$178:G190)-SUM(G$266:G278)+SUMPRODUCT((Aktivierungsjahr=Costs!$A367)*(AbschreibungAGr=Costs!G$353)*('Fixed assets'!$U$2:$U$1000=Costs!$A367)*(AbschreibungAHKBvD))","v":0},{"$f":"SUM(H$178:H190)-SUM(H$266:H278)+SUMPRODUCT((Aktivierungsjahr=Costs!$A367)*(AbschreibungAGr=Costs!H$353)*('Fixed assets'!$U$2:$U$1000=Costs!$A367)*(AbschreibungAHKBvD))","v":0},{"$f":"SUM(I$178:I190)-SUM(I$266:I278)+SUMPRODUCT((Aktivierungsjahr=Costs!$A367)*(AbschreibungAGr=Costs!I$353)*('Fixed assets'!$U$2:$U$1000=Costs!$A367)*(AbschreibungAHKBvD))","v":0},{"$f":"SUM(J$178:J190)-SUM(J$266:J278)+SUMPRODUCT((Aktivierungsjahr=Costs!$A367)*(AbschreibungAGr=Costs!J$353)*('Fixed assets'!$U$2:$U$1000=Costs!$A367)*(AbschreibungAHKBvD))","v":0},{"$f":"SUM(K$178:K190)-SUM(K$266:K278)+SUMPRODUCT((Aktivierungsjahr=Costs!$A367)*(AbschreibungAGr=Costs!K$353)*('Fixed assets'!$U$2:$U$1000=Costs!$A367)*(AbschreibungAHKBvD))","v":0},{"$f":"SUM(L$178:L190)-SUM(L$266:L278)+SUMPRODUCT((Aktivierungsjahr=Costs!$A367)*(AbschreibungAGr=Costs!L$353)*('Fixed assets'!$U$2:$U$1000=Costs!$A367)*(AbschreibungAHKBvD))","v":0},{"$f":"SUM(M$178:M190)-SUM(M$266:M278)+SUMPRODUCT((Aktivierungsjahr=Costs!$A367)*(AbschreibungAGr=Costs!M$353)*('Fixed assets'!$U$2:$U$1000=Costs!$A367)*(AbschreibungAHKBvD))","v":0},{"$f":"SUM(N$178:N190)-SUM(N$266:N278)+SUMPRODUCT((Aktivierungsjahr=Costs!$A367)*(AbschreibungAGr=Costs!N$353)*('Fixed assets'!$U$2:$U$1000=Costs!$A367)*(AbschreibungAHKBvD))","v":0},{"$f":"SUM(O$178:O190)-SUM(O$266:O278)+SUMPRODUCT((Aktivierungsjahr=Costs!$A367)*(AbschreibungAGr=Costs!O$353)*('Fixed assets'!$U$2:$U$1000=Costs!$A367)*(AbschreibungAHKBvD))","v":0},{"$f":"SUM(P$178:P190)-SUM(P$266:P278)+SUMPRODUCT((Aktivierungsjahr=Costs!$A367)*(AbschreibungAGr=Costs!P$353)*('Fixed assets'!$U$2:$U$1000=Costs!$A367)*(AbschreibungAHKBvD))","v":132000000},{"$f":"SUM(Q$178:Q190)-SUM(Q$266:Q278)+SUMPRODUCT((Aktivierungsjahr=Costs!$A367)*(AbschreibungAGr=Costs!Q$353)*('Fixed assets'!$U$2:$U$1000=Costs!$A367)*(AbschreibungAHKBvD))","v":0},{"$f":"SUM(R$178:R190)-SUM(R$266:R278)+SUMPRODUCT((Aktivierungsjahr=Costs!$A367)*(AbschreibungAGr=Costs!R$353)*('Fixed assets'!$U$2:$U$1000=Costs!$A367)*(AbschreibungAHKBvD))","v":0},{"$f":"SUM(S$178:S190)-SUM(S$266:S278)+SUMPRODUCT((Aktivierungsjahr=Costs!$A367)*(AbschreibungAGr=Costs!S$353)*('Fixed assets'!$U$2:$U$1000=Costs!$A367)*(AbschreibungAHKBvD))","v":0},{"$f":"SUM(T$178:T190)-SUM(T$266:T278)+SUMPRODUCT((Aktivierungsjahr=Costs!$A367)*(AbschreibungAGr=Costs!T$353)*('Fixed assets'!$U$2:$U$1000=Costs!$A367)*(AbschreibungAHKBvD))","v":0},{"$f":"SUM(U$178:U190)-SUM(U$266:U278)+SUMPRODUCT((Aktivierungsjahr=Costs!$A367)*(AbschreibungAGr=Costs!U$353)*('Fixed assets'!$U$2:$U$1000=Costs!$A367)*(AbschreibungAHKBvD))","v":0},{"$f":"SUM(V$178:V190)-SUM(V$266:V278)+SUMPRODUCT((Aktivierungsjahr=Costs!$A367)*(AbschreibungAGr=Costs!V$353)*('Fixed assets'!$U$2:$U$1000=Costs!$A367)*(AbschreibungAHKBvD))","v":0},{"$f":"SUM(W$178:W190)-SUM(W$266:W278)+SUMPRODUCT((Aktivierungsjahr=Costs!$A367)*(AbschreibungAGr=Costs!W$353)*('Fixed assets'!$U$2:$U$1000=Costs!$A367)*(AbschreibungAHKBvD))","v":0},{"$f":"SUM(X$178:X190)-SUM(X$266:X278)+SUMPRODUCT((Aktivierungsjahr=Costs!$A367)*(AbschreibungAGr=Costs!X$353)*('Fixed assets'!$U$2:$U$1000=Costs!$A367)*(AbschreibungAHKBvD))","v":0},{"$f":"SUM(Y$178:Y190)-SUM(Y$266:Y278)+SUMPRODUCT((Aktivierungsjahr=Costs!$A367)*(AbschreibungAGr=Costs!Y$353)*('Fixed assets'!$U$2:$U$1000=Costs!$A367)*(AbschreibungAHKBvD))","v":0},{"$f":"SUM(Z$178:Z190)-SUM(Z$266:Z278)+SUMPRODUCT((Aktivierungsjahr=Costs!$A367)*(AbschreibungAGr=Costs!Z$353)*('Fixed assets'!$U$2:$U$1000=Costs!$A367)*(AbschreibungAHKBvD))","v":0},{"$f":"SUM(AA$178:AA190)-SUM(AA$266:AA278)+SUMPRODUCT((Aktivierungsjahr=Costs!$A367)*(AbschreibungAGr=Costs!AA$353)*('Fixed assets'!$U$2:$U$1000=Costs!$A367)*(AbschreibungAHKBvD))","v":0},{"$f":"SUM(AB$178:AB190)-SUM(AB$266:AB278)+SUMPRODUCT((Aktivierungsjahr=Costs!$A367)*(AbschreibungAGr=Costs!AB$353)*('Fixed assets'!$U$2:$U$1000=Costs!$A367)*(AbschreibungAHKBvD))","v":0},{"$f":"SUM(AC$178:AC190)-SUM(AC$266:AC278)+SUMPRODUCT((Aktivierungsjahr=Costs!$A367)*(AbschreibungAGr=Costs!AC$353)*('Fixed assets'!$U$2:$U$1000=Costs!$A367)*(AbschreibungAHKBvD))","v":0},{"$f":"SUM(AD$178:AD190)-SUM(AD$266:AD278)+SUMPRODUCT((Aktivierungsjahr=Costs!$A367)*(AbschreibungAGr=Costs!AD$353)*('Fixed assets'!$U$2:$U$1000=Costs!$A367)*(AbschreibungAHKBvD))","v":0},{"$f":"SUM(AE$178:AE190)-SUM(AE$266:AE278)+SUMPRODUCT((Aktivierungsjahr=Costs!$A367)*(AbschreibungAGr=Costs!AE$353)*('Fixed assets'!$U$2:$U$1000=Costs!$A367)*(AbschreibungAHKBvD))","v":0},{"$f":"SUM(AF$178:AF190)-SUM(AF$266:AF278)+SUMPRODUCT((Aktivierungsjahr=Costs!$A367)*(AbschreibungAGr=Costs!AF$353)*('Fixed assets'!$U$2:$U$1000=Costs!$A367)*(AbschreibungAHKBvD))","v":0},{"$f":"SUM(AG$178:AG190)-SUM(AG$266:AG278)+SUMPRODUCT((Aktivierungsjahr=Costs!$A367)*(AbschreibungAGr=Costs!AG$353)*('Fixed assets'!$U$2:$U$1000=Costs!$A367)*(AbschreibungAHKBvD))","v":0},{"$f":"SUM(AH$178:AH190)-SUM(AH$266:AH278)+SUMPRODUCT((Aktivierungsjahr=Costs!$A367)*(AbschreibungAGr=Costs!AH$353)*('Fixed assets'!$U$2:$U$1000=Costs!$A367)*(AbschreibungAHKBvD))","v":0},{"$f":"SUM(AI$178:AI190)-SUM(AI$266:AI278)+SUMPRODUCT((Aktivierungsjahr=Costs!$A367)*(AbschreibungAGr=Costs!AI$353)*('Fixed assets'!$U$2:$U$1000=Costs!$A367)*(AbschreibungAHKBvD))","v":0},{"$f":"SUM(AJ$178:AJ190)-SUM(AJ$266:AJ278)+SUMPRODUCT((Aktivierungsjahr=Costs!$A367)*(AbschreibungAGr=Costs!AJ$353)*('Fixed assets'!$U$2:$U$1000=Costs!$A367)*(AbschreibungAHKBvD))","v":933333.33333333337},{"$f":"SUM(AK$178:AK190)-SUM(AK$266:AK278)+SUMPRODUCT((Aktivierungsjahr=Costs!$A367)*(AbschreibungAGr=Costs!AK$353)*('Fixed assets'!$U$2:$U$1000=Costs!$A367)*(AbschreibungAHKBvD))","v":0},{"$f":"SUM(AL$178:AL190)-SUM(AL$266:AL278)+SUMPRODUCT((Aktivierungsjahr=Costs!$A367)*(AbschreibungAGr=Costs!AL$353)*('Fixed assets'!$U$2:$U$1000=Costs!$A367)*(AbschreibungAHKBvD))","v":0},{"$f":"SUM(AM$178:AM190)-SUM(AM$266:AM278)+SUMPRODUCT((Aktivierungsjahr=Costs!$A367)*(AbschreibungAGr=Costs!AM$353)*('Fixed assets'!$U$2:$U$1000=Costs!$A367)*(AbschreibungAHKBvD))","v":0},{"$f":"SUM(AN$178:AN190)-SUM(AN$266:AN278)+SUMPRODUCT((Aktivierungsjahr=Costs!$A367)*(AbschreibungAGr=Costs!AN$353)*('Fixed assets'!$U$2:$U$1000=Costs!$A367)*(AbschreibungAHKBvD))","v":0},{"$f":"SUM(AO$178:AO190)-SUM(AO$266:AO278)+SUMPRODUCT((Aktivierungsjahr=Costs!$A367)*(AbschreibungAGr=Costs!AO$353)*('Fixed assets'!$U$2:$U$1000=Costs!$A367)*(AbschreibungAHKBvD))","v":0},{"$f":"SUM(AP$178:AP190)-SUM(AP$266:AP278)+SUMPRODUCT((Aktivierungsjahr=Costs!$A367)*(AbschreibungAGr=Costs!AP$353)*('Fixed assets'!$U$2:$U$1000=Costs!$A367)*(AbschreibungAHKBvD))","v":0},{"$f":"SUM(AQ$178:AQ190)-SUM(AQ$266:AQ278)+SUMPRODUCT((Aktivierungsjahr=Costs!$A367)*(AbschreibungAGr=Costs!AQ$353)*('Fixed assets'!$U$2:$U$1000=Costs!$A367)*(AbschreibungAHKBvD))","v":0}]
[2029,126911111.1111111,{"$f":"SUM(C$178:C191)-SUM(C$266:C279)+SUMPRODUCT((Aktivierungsjahr=Costs!$A368)*(AbschreibungAGr=Costs!C$353)*('Fixed assets'!$U$2:$U$1000=Costs!$A368)*(AbschreibungAHKBvD))","v":0},{"$f":"SUM(D$178:D191)-SUM(D$266:D279)+SUMPRODUCT((Aktivierungsjahr=Costs!$A368)*(AbschreibungAGr=Costs!D$353)*('Fixed assets'!$U$2:$U$1000=Costs!$A368)*(AbschreibungAHKBvD))","v":0},{"$f":"SUM(E$178:E191)-SUM(E$266:E279)+SUMPRODUCT((Aktivierungsjahr=Costs!$A368)*(AbschreibungAGr=Costs!E$353)*('Fixed assets'!$U$2:$U$1000=Costs!$A368)*(AbschreibungAHKBvD))","v":0},{"$f":"SUM(F$178:F191)-SUM(F$266:F279)+SUMPRODUCT((Aktivierungsjahr=Costs!$A368)*(AbschreibungAGr=Costs!F$353)*('Fixed assets'!$U$2:$U$1000=Costs!$A368)*(AbschreibungAHKBvD))","v":0},{"$f":"SUM(G$178:G191)-SUM(G$266:G279)+SUMPRODUCT((Aktivierungsjahr=Costs!$A368)*(AbschreibungAGr=Costs!G$353)*('Fixed assets'!$U$2:$U$1000=Costs!$A368)*(AbschreibungAHKBvD))","v":0},{"$f":"SUM(H$178:H191)-SUM(H$266:H279)+SUMPRODUCT((Aktivierungsjahr=Costs!$A368)*(AbschreibungAGr=Costs!H$353)*('Fixed assets'!$U$2:$U$1000=Costs!$A368)*(AbschreibungAHKBvD))","v":0},{"$f":"SUM(I$178:I191)-SUM(I$266:I279)+SUMPRODUCT((Aktivierungsjahr=Costs!$A368)*(AbschreibungAGr=Costs!I$353)*('Fixed assets'!$U$2:$U$1000=Costs!$A368)*(AbschreibungAHKBvD))","v":0},{"$f":"SUM(J$178:J191)-SUM(J$266:J279)+SUMPRODUCT((Aktivierungsjahr=Costs!$A368)*(AbschreibungAGr=Costs!J$353)*('Fixed assets'!$U$2:$U$1000=Costs!$A368)*(AbschreibungAHKBvD))","v":0},{"$f":"SUM(K$178:K191)-SUM(K$266:K279)+SUMPRODUCT((Aktivierungsjahr=Costs!$A368)*(AbschreibungAGr=Costs!K$353)*('Fixed assets'!$U$2:$U$1000=Costs!$A368)*(AbschreibungAHKBvD))","v":0},{"$f":"SUM(L$178:L191)-SUM(L$266:L279)+SUMPRODUCT((Aktivierungsjahr=Costs!$A368)*(AbschreibungAGr=Costs!L$353)*('Fixed assets'!$U$2:$U$1000=Costs!$A368)*(AbschreibungAHKBvD))","v":0},{"$f":"SUM(M$178:M191)-SUM(M$266:M279)+SUMPRODUCT((Aktivierungsjahr=Costs!$A368)*(AbschreibungAGr=Costs!M$353)*('Fixed assets'!$U$2:$U$1000=Costs!$A368)*(AbschreibungAHKBvD))","v":0},{"$f":"SUM(N$178:N191)-SUM(N$266:N279)+SUMPRODUCT((Aktivierungsjahr=Costs!$A368)*(AbschreibungAGr=Costs!N$353)*('Fixed assets'!$U$2:$U$1000=Costs!$A368)*(AbschreibungAHKBvD))","v":0},{"$f":"SUM(O$178:O191)-SUM(O$266:O279)+SUMPRODUCT((Aktivierungsjahr=Costs!$A368)*(AbschreibungAGr=Costs!O$353)*('Fixed assets'!$U$2:$U$1000=Costs!$A368)*(AbschreibungAHKBvD))","v":0},{"$f":"SUM(P$178:P191)-SUM(P$266:P279)+SUMPRODUCT((Aktivierungsjahr=Costs!$A368)*(AbschreibungAGr=Costs!P$353)*('Fixed assets'!$U$2:$U$1000=Costs!$A368)*(AbschreibungAHKBvD))","v":126000000},{"$f":"SUM(Q$178:Q191)-SUM(Q$266:Q279)+SUMPRODUCT((Aktivierungsjahr=Costs!$A368)*(AbschreibungAGr=Costs!Q$353)*('Fixed assets'!$U$2:$U$1000=Costs!$A368)*(AbschreibungAHKBvD))","v":0},{"$f":"SUM(R$178:R191)-SUM(R$266:R279)+SUMPRODUCT((Aktivierungsjahr=Costs!$A368)*(AbschreibungAGr=Costs!R$353)*('Fixed assets'!$U$2:$U$1000=Costs!$A368)*(AbschreibungAHKBvD))","v":0},{"$f":"SUM(S$178:S191)-SUM(S$266:S279)+SUMPRODUCT((Aktivierungsjahr=Costs!$A368)*(AbschreibungAGr=Costs!S$353)*('Fixed assets'!$U$2:$U$1000=Costs!$A368)*(AbschreibungAHKBvD))","v":0},{"$f":"SUM(T$178:T191)-SUM(T$266:T279)+SUMPRODUCT((Aktivierungsjahr=Costs!$A368)*(AbschreibungAGr=Costs!T$353)*('Fixed assets'!$U$2:$U$1000=Costs!$A368)*(AbschreibungAHKBvD))","v":0},{"$f":"SUM(U$178:U191)-SUM(U$266:U279)+SUMPRODUCT((Aktivierungsjahr=Costs!$A368)*(AbschreibungAGr=Costs!U$353)*('Fixed assets'!$U$2:$U$1000=Costs!$A368)*(AbschreibungAHKBvD))","v":0},{"$f":"SUM(V$178:V191)-SUM(V$266:V279)+SUMPRODUCT((Aktivierungsjahr=Costs!$A368)*(AbschreibungAGr=Costs!V$353)*('Fixed assets'!$U$2:$U$1000=Costs!$A368)*(AbschreibungAHKBvD))","v":0},{"$f":"SUM(W$178:W191)-SUM(W$266:W279)+SUMPRODUCT((Aktivierungsjahr=Costs!$A368)*(AbschreibungAGr=Costs!W$353)*('Fixed assets'!$U$2:$U$1000=Costs!$A368)*(AbschreibungAHKBvD))","v":0},{"$f":"SUM(X$178:X191)-SUM(X$266:X279)+SUMPRODUCT((Aktivierungsjahr=Costs!$A368)*(AbschreibungAGr=Costs!X$353)*('Fixed assets'!$U$2:$U$1000=Costs!$A368)*(AbschreibungAHKBvD))","v":0},{"$f":"SUM(Y$178:Y191)-SUM(Y$266:Y279)+SUMPRODUCT((Aktivierungsjahr=Costs!$A368)*(AbschreibungAGr=Costs!Y$353)*('Fixed assets'!$U$2:$U$1000=Costs!$A368)*(AbschreibungAHKBvD))","v":0},{"$f":"SUM(Z$178:Z191)-SUM(Z$266:Z279)+SUMPRODUCT((Aktivierungsjahr=Costs!$A368)*(AbschreibungAGr=Costs!Z$353)*('Fixed assets'!$U$2:$U$1000=Costs!$A368)*(AbschreibungAHKBvD))","v":0},{"$f":"SUM(AA$178:AA191)-SUM(AA$266:AA279)+SUMPRODUCT((Aktivierungsjahr=Costs!$A368)*(AbschreibungAGr=Costs!AA$353)*('Fixed assets'!$U$2:$U$1000=Costs!$A368)*(AbschreibungAHKBvD))","v":0},{"$f":"SUM(AB$178:AB191)-SUM(AB$266:AB279)+SUMPRODUCT((Aktivierungsjahr=Costs!$A368)*(AbschreibungAGr=Costs!AB$353)*('Fixed assets'!$U$2:$U$1000=Costs!$A368)*(AbschreibungAHKBvD))","v":0},{"$f":"SUM(AC$178:AC191)-SUM(AC$266:AC279)+SUMPRODUCT((Aktivierungsjahr=Costs!$A368)*(AbschreibungAGr=Costs!AC$353)*('Fixed assets'!$U$2:$U$1000=Costs!$A368)*(AbschreibungAHKBvD))","v":0},{"$f":"SUM(AD$178:AD191)-SUM(AD$266:AD279)+SUMPRODUCT((Aktivierungsjahr=Costs!$A368)*(AbschreibungAGr=Costs!AD$353)*('Fixed assets'!$U$2:$U$1000=Costs!$A368)*(AbschreibungAHKBvD))","v":0},{"$f":"SUM(AE$178:AE191)-SUM(AE$266:AE279)+SUMPRODUCT((Aktivierungsjahr=Costs!$A368)*(AbschreibungAGr=Costs!AE$353)*('Fixed assets'!$U$2:$U$1000=Costs!$A368)*(AbschreibungAHKBvD))","v":0},{"$f":"SUM(AF$178:AF191)-SUM(AF$266:AF279)+SUMPRODUCT((Aktivierungsjahr=Costs!$A368)*(AbschreibungAGr=Costs!AF$353)*('Fixed assets'!$U$2:$U$1000=Costs!$A368)*(AbschreibungAHKBvD))","v":0},{"$f":"SUM(AG$178:AG191)-SUM(AG$266:AG279)+SUMPRODUCT((Aktivierungsjahr=Costs!$A368)*(AbschreibungAGr=Costs!AG$353)*('Fixed assets'!$U$2:$U$1000=Costs!$A368)*(AbschreibungAHKBvD))","v":0},{"$f":"SUM(AH$178:AH191)-SUM(AH$266:AH279)+SUMPRODUCT((Aktivierungsjahr=Costs!$A368)*(AbschreibungAGr=Costs!AH$353)*('Fixed assets'!$U$2:$U$1000=Costs!$A368)*(AbschreibungAHKBvD))","v":0},{"$f":"SUM(AI$178:AI191)-SUM(AI$266:AI279)+SUMPRODUCT((Aktivierungsjahr=Costs!$A368)*(AbschreibungAGr=Costs!AI$353)*('Fixed assets'!$U$2:$U$1000=Costs!$A368)*(AbschreibungAHKBvD))","v":0},{"$f":"SUM(AJ$178:AJ191)-SUM(AJ$266:AJ279)+SUMPRODUCT((Aktivierungsjahr=Costs!$A368)*(AbschreibungAGr=Costs!AJ$353)*('Fixed assets'!$U$2:$U$1000=Costs!$A368)*(AbschreibungAHKBvD))","v":911111.11111111112},{"$f":"SUM(AK$178:AK191)-SUM(AK$266:AK279)+SUMPRODUCT((Aktivierungsjahr=Costs!$A368)*(AbschreibungAGr=Costs!AK$353)*('Fixed assets'!$U$2:$U$1000=Costs!$A368)*(AbschreibungAHKBvD))","v":0},{"$f":"SUM(AL$178:AL191)-SUM(AL$266:AL279)+SUMPRODUCT((Aktivierungsjahr=Costs!$A368)*(AbschreibungAGr=Costs!AL$353)*('Fixed assets'!$U$2:$U$1000=Costs!$A368)*(AbschreibungAHKBvD))","v":0},{"$f":"SUM(AM$178:AM191)-SUM(AM$266:AM279)+SUMPRODUCT((Aktivierungsjahr=Costs!$A368)*(AbschreibungAGr=Costs!AM$353)*('Fixed assets'!$U$2:$U$1000=Costs!$A368)*(AbschreibungAHKBvD))","v":0},{"$f":"SUM(AN$178:AN191)-SUM(AN$266:AN279)+SUMPRODUCT((Aktivierungsjahr=Costs!$A368)*(AbschreibungAGr=Costs!AN$353)*('Fixed assets'!$U$2:$U$1000=Costs!$A368)*(AbschreibungAHKBvD))","v":0},{"$f":"SUM(AO$178:AO191)-SUM(AO$266:AO279)+SUMPRODUCT((Aktivierungsjahr=Costs!$A368)*(AbschreibungAGr=Costs!AO$353)*('Fixed assets'!$U$2:$U$1000=Costs!$A368)*(AbschreibungAHKBvD))","v":0},{"$f":"SUM(AP$178:AP191)-SUM(AP$266:AP279)+SUMPRODUCT((Aktivierungsjahr=Costs!$A368)*(AbschreibungAGr=Costs!AP$353)*('Fixed assets'!$U$2:$U$1000=Costs!$A368)*(AbschreibungAHKBvD))","v":0},{"$f":"SUM(AQ$178:AQ191)-SUM(AQ$266:AQ279)+SUMPRODUCT((Aktivierungsjahr=Costs!$A368)*(AbschreibungAGr=Costs!AQ$353)*('Fixed assets'!$U$2:$U$1000=Costs!$A368)*(AbschreibungAHKBvD))","v":0}]
[2030,120888888.8888889,{"$f":"SUM(C$178:C192)-SUM(C$266:C280)+SUMPRODUCT((Aktivierungsjahr=Costs!$A369)*(AbschreibungAGr=Costs!C$353)*('Fixed assets'!$U$2:$U$1000=Costs!$A369)*(AbschreibungAHKBvD))","v":0},{"$f":"SUM(D$178:D192)-SUM(D$266:D280)+SUMPRODUCT((Aktivierungsjahr=Costs!$A369)*(AbschreibungAGr=Costs!D$353)*('Fixed assets'!$U$2:$U$1000=Costs!$A369)*(AbschreibungAHKBvD))","v":0},{"$f":"SUM(E$178:E192)-SUM(E$266:E280)+SUMPRODUCT((Aktivierungsjahr=Costs!$A369)*(AbschreibungAGr=Costs!E$353)*('Fixed assets'!$U$2:$U$1000=Costs!$A369)*(AbschreibungAHKBvD))","v":0},{"$f":"SUM(F$178:F192)-SUM(F$266:F280)+SUMPRODUCT((Aktivierungsjahr=Costs!$A369)*(AbschreibungAGr=Costs!F$353)*('Fixed assets'!$U$2:$U$1000=Costs!$A369)*(AbschreibungAHKBvD))","v":0},{"$f":"SUM(G$178:G192)-SUM(G$266:G280)+SUMPRODUCT((Aktivierungsjahr=Costs!$A369)*(AbschreibungAGr=Costs!G$353)*('Fixed assets'!$U$2:$U$1000=Costs!$A369)*(AbschreibungAHKBvD))","v":0},{"$f":"SUM(H$178:H192)-SUM(H$266:H280)+SUMPRODUCT((Aktivierungsjahr=Costs!$A369)*(AbschreibungAGr=Costs!H$353)*('Fixed assets'!$U$2:$U$1000=Costs!$A369)*(AbschreibungAHKBvD))","v":0},{"$f":"SUM(I$178:I192)-SUM(I$266:I280)+SUMPRODUCT((Aktivierungsjahr=Costs!$A369)*(AbschreibungAGr=Costs!I$353)*('Fixed assets'!$U$2:$U$1000=Costs!$A369)*(AbschreibungAHKBvD))","v":0},{"$f":"SUM(J$178:J192)-SUM(J$266:J280)+SUMPRODUCT((Aktivierungsjahr=Costs!$A369)*(AbschreibungAGr=Costs!J$353)*('Fixed assets'!$U$2:$U$1000=Costs!$A369)*(AbschreibungAHKBvD))","v":0},{"$f":"SUM(K$178:K192)-SUM(K$266:K280)+SUMPRODUCT((Aktivierungsjahr=Costs!$A369)*(AbschreibungAGr=Costs!K$353)*('Fixed assets'!$U$2:$U$1000=Costs!$A369)*(AbschreibungAHKBvD))","v":0},{"$f":"SUM(L$178:L192)-SUM(L$266:L280)+SUMPRODUCT((Aktivierungsjahr=Costs!$A369)*(AbschreibungAGr=Costs!L$353)*('Fixed assets'!$U$2:$U$1000=Costs!$A369)*(AbschreibungAHKBvD))","v":0},{"$f":"SUM(M$178:M192)-SUM(M$266:M280)+SUMPRODUCT((Aktivierungsjahr=Costs!$A369)*(AbschreibungAGr=Costs!M$353)*('Fixed assets'!$U$2:$U$1000=Costs!$A369)*(AbschreibungAHKBvD))","v":0},{"$f":"SUM(N$178:N192)-SUM(N$266:N280)+SUMPRODUCT((Aktivierungsjahr=Costs!$A369)*(AbschreibungAGr=Costs!N$353)*('Fixed assets'!$U$2:$U$1000=Costs!$A369)*(AbschreibungAHKBvD))","v":0},{"$f":"SUM(O$178:O192)-SUM(O$266:O280)+SUMPRODUCT((Aktivierungsjahr=Costs!$A369)*(AbschreibungAGr=Costs!O$353)*('Fixed assets'!$U$2:$U$1000=Costs!$A369)*(AbschreibungAHKBvD))","v":0},{"$f":"SUM(P$178:P192)-SUM(P$266:P280)+SUMPRODUCT((Aktivierungsjahr=Costs!$A369)*(AbschreibungAGr=Costs!P$353)*('Fixed assets'!$U$2:$U$1000=Costs!$A369)*(AbschreibungAHKBvD))","v":120000000},{"$f":"SUM(Q$178:Q192)-SUM(Q$266:Q280)+SUMPRODUCT((Aktivierungsjahr=Costs!$A369)*(AbschreibungAGr=Costs!Q$353)*('Fixed assets'!$U$2:$U$1000=Costs!$A369)*(AbschreibungAHKBvD))","v":0},{"$f":"SUM(R$178:R192)-SUM(R$266:R280)+SUMPRODUCT((Aktivierungsjahr=Costs!$A369)*(AbschreibungAGr=Costs!R$353)*('Fixed assets'!$U$2:$U$1000=Costs!$A369)*(AbschreibungAHKBvD))","v":0},{"$f":"SUM(S$178:S192)-SUM(S$266:S280)+SUMPRODUCT((Aktivierungsjahr=Costs!$A369)*(AbschreibungAGr=Costs!S$353)*('Fixed assets'!$U$2:$U$1000=Costs!$A369)*(AbschreibungAHKBvD))","v":0},{"$f":"SUM(T$178:T192)-SUM(T$266:T280)+SUMPRODUCT((Aktivierungsjahr=Costs!$A369)*(AbschreibungAGr=Costs!T$353)*('Fixed assets'!$U$2:$U$1000=Costs!$A369)*(AbschreibungAHKBvD))","v":0},{"$f":"SUM(U$178:U192)-SUM(U$266:U280)+SUMPRODUCT((Aktivierungsjahr=Costs!$A369)*(AbschreibungAGr=Costs!U$353)*('Fixed assets'!$U$2:$U$1000=Costs!$A369)*(AbschreibungAHKBvD))","v":0},{"$f":"SUM(V$178:V192)-SUM(V$266:V280)+SUMPRODUCT((Aktivierungsjahr=Costs!$A369)*(AbschreibungAGr=Costs!V$353)*('Fixed assets'!$U$2:$U$1000=Costs!$A369)*(AbschreibungAHKBvD))","v":0},{"$f":"SUM(W$178:W192)-SUM(W$266:W280)+SUMPRODUCT((Aktivierungsjahr=Costs!$A369)*(AbschreibungAGr=Costs!W$353)*('Fixed assets'!$U$2:$U$1000=Costs!$A369)*(AbschreibungAHKBvD))","v":0},{"$f":"SUM(X$178:X192)-SUM(X$266:X280)+SUMPRODUCT((Aktivierungsjahr=Costs!$A369)*(AbschreibungAGr=Costs!X$353)*('Fixed assets'!$U$2:$U$1000=Costs!$A369)*(AbschreibungAHKBvD))","v":0},{"$f":"SUM(Y$178:Y192)-SUM(Y$266:Y280)+SUMPRODUCT((Aktivierungsjahr=Costs!$A369)*(AbschreibungAGr=Costs!Y$353)*('Fixed assets'!$U$2:$U$1000=Costs!$A369)*(AbschreibungAHKBvD))","v":0},{"$f":"SUM(Z$178:Z192)-SUM(Z$266:Z280)+SUMPRODUCT((Aktivierungsjahr=Costs!$A369)*(AbschreibungAGr=Costs!Z$353)*('Fixed assets'!$U$2:$U$1000=Costs!$A369)*(AbschreibungAHKBvD))","v":0},{"$f":"SUM(AA$178:AA192)-SUM(AA$266:AA280)+SUMPRODUCT((Aktivierungsjahr=Costs!$A369)*(AbschreibungAGr=Costs!AA$353)*('Fixed assets'!$U$2:$U$1000=Costs!$A369)*(AbschreibungAHKBvD))","v":0},{"$f":"SUM(AB$178:AB192)-SUM(AB$266:AB280)+SUMPRODUCT((Aktivierungsjahr=Costs!$A369)*(AbschreibungAGr=Costs!AB$353)*('Fixed assets'!$U$2:$U$1000=Costs!$A369)*(AbschreibungAHKBvD))","v":0},{"$f":"SUM(AC$178:AC192)-SUM(AC$266:AC280)+SUMPRODUCT((Aktivierungsjahr=Costs!$A369)*(AbschreibungAGr=Costs!AC$353)*('Fixed assets'!$U$2:$U$1000=Costs!$A369)*(AbschreibungAHKBvD))","v":0},{"$f":"SUM(AD$178:AD192)-SUM(AD$266:AD280)+SUMPRODUCT((Aktivierungsjahr=Costs!$A369)*(AbschreibungAGr=Costs!AD$353)*('Fixed assets'!$U$2:$U$1000=Costs!$A369)*(AbschreibungAHKBvD))","v":0},{"$f":"SUM(AE$178:AE192)-SUM(AE$266:AE280)+SUMPRODUCT((Aktivierungsjahr=Costs!$A369)*(AbschreibungAGr=Costs!AE$353)*('Fixed assets'!$U$2:$U$1000=Costs!$A369)*(AbschreibungAHKBvD))","v":0},{"$f":"SUM(AF$178:AF192)-SUM(AF$266:AF280)+SUMPRODUCT((Aktivierungsjahr=Costs!$A369)*(AbschreibungAGr=Costs!AF$353)*('Fixed assets'!$U$2:$U$1000=Costs!$A369)*(AbschreibungAHKBvD))","v":0},{"$f":"SUM(AG$178:AG192)-SUM(AG$266:AG280)+SUMPRODUCT((Aktivierungsjahr=Costs!$A369)*(AbschreibungAGr=Costs!AG$353)*('Fixed assets'!$U$2:$U$1000=Costs!$A369)*(AbschreibungAHKBvD))","v":0},{"$f":"SUM(AH$178:AH192)-SUM(AH$266:AH280)+SUMPRODUCT((Aktivierungsjahr=Costs!$A369)*(AbschreibungAGr=Costs!AH$353)*('Fixed assets'!$U$2:$U$1000=Costs!$A369)*(AbschreibungAHKBvD))","v":0},{"$f":"SUM(AI$178:AI192)-SUM(AI$266:AI280)+SUMPRODUCT((Aktivierungsjahr=Costs!$A369)*(AbschreibungAGr=Costs!AI$353)*('Fixed assets'!$U$2:$U$1000=Costs!$A369)*(AbschreibungAHKBvD))","v":0},{"$f":"SUM(AJ$178:AJ192)-SUM(AJ$266:AJ280)+SUMPRODUCT((Aktivierungsjahr=Costs!$A369)*(AbschreibungAGr=Costs!AJ$353)*('Fixed assets'!$U$2:$U$1000=Costs!$A369)*(AbschreibungAHKBvD))","v":888888.88888888888},{"$f":"SUM(AK$178:AK192)-SUM(AK$266:AK280)+SUMPRODUCT((Aktivierungsjahr=Costs!$A369)*(AbschreibungAGr=Costs!AK$353)*('Fixed assets'!$U$2:$U$1000=Costs!$A369)*(AbschreibungAHKBvD))","v":0},{"$f":"SUM(AL$178:AL192)-SUM(AL$266:AL280)+SUMPRODUCT((Aktivierungsjahr=Costs!$A369)*(AbschreibungAGr=Costs!AL$353)*('Fixed assets'!$U$2:$U$1000=Costs!$A369)*(AbschreibungAHKBvD))","v":0},{"$f":"SUM(AM$178:AM192)-SUM(AM$266:AM280)+SUMPRODUCT((Aktivierungsjahr=Costs!$A369)*(AbschreibungAGr=Costs!AM$353)*('Fixed assets'!$U$2:$U$1000=Costs!$A369)*(AbschreibungAHKBvD))","v":0},{"$f":"SUM(AN$178:AN192)-SUM(AN$266:AN280)+SUMPRODUCT((Aktivierungsjahr=Costs!$A369)*(AbschreibungAGr=Costs!AN$353)*('Fixed assets'!$U$2:$U$1000=Costs!$A369)*(AbschreibungAHKBvD))","v":0},{"$f":"SUM(AO$178:AO192)-SUM(AO$266:AO280)+SUMPRODUCT((Aktivierungsjahr=Costs!$A369)*(AbschreibungAGr=Costs!AO$353)*('Fixed assets'!$U$2:$U$1000=Costs!$A369)*(AbschreibungAHKBvD))","v":0},{"$f":"SUM(AP$178:AP192)-SUM(AP$266:AP280)+SUMPRODUCT((Aktivierungsjahr=Costs!$A369)*(AbschreibungAGr=Costs!AP$353)*('Fixed assets'!$U$2:$U$1000=Costs!$A369)*(AbschreibungAHKBvD))","v":0},{"$f":"SUM(AQ$178:AQ192)-SUM(AQ$266:AQ280)+SUMPRODUCT((Aktivierungsjahr=Costs!$A369)*(AbschreibungAGr=Costs!AQ$353)*('Fixed assets'!$U$2:$U$1000=Costs!$A369)*(AbschreibungAHKBvD))","v":0}]
[2031,{"$f":"SUM(C370:AQ370)","v":114866666.66666667},{"$f":"SUM(C$178:C193)-SUM(C$266:C281)+SUMPRODUCT((Aktivierungsjahr=Costs!$A370)*(AbschreibungAGr=Costs!C$353)*('Fixed assets'!$U$2:$U$1000=Costs!$A370)*(AbschreibungAHKBvD))","v":0},{"$f":"SUM(D$178:D193)-SUM(D$266:D281)+SUMPRODUCT((Aktivierungsjahr=Costs!$A370)*(AbschreibungAGr=Costs!D$353)*('Fixed assets'!$U$2:$U$1000=Costs!$A370)*(AbschreibungAHKBvD))","v":0},{"$f":"SUM(E$178:E193)-SUM(E$266:E281)+SUMPRODUCT((Aktivierungsjahr=Costs!$A370)*(AbschreibungAGr=Costs!E$353)*('Fixed assets'!$U$2:$U$1000=Costs!$A370)*(AbschreibungAHKBvD))","v":0},{"$f":"SUM(F$178:F193)-SUM(F$266:F281)+SUMPRODUCT((Aktivierungsjahr=Costs!$A370)*(AbschreibungAGr=Costs!F$353)*('Fixed assets'!$U$2:$U$1000=Costs!$A370)*(AbschreibungAHKBvD))","v":0},{"$f":"SUM(G$178:G193)-SUM(G$266:G281)+SUMPRODUCT((Aktivierungsjahr=Costs!$A370)*(AbschreibungAGr=Costs!G$353)*('Fixed assets'!$U$2:$U$1000=Costs!$A370)*(AbschreibungAHKBvD))","v":0},{"$f":"SUM(H$178:H193)-SUM(H$266:H281)+SUMPRODUCT((Aktivierungsjahr=Costs!$A370)*(AbschreibungAGr=Costs!H$353)*('Fixed assets'!$U$2:$U$1000=Costs!$A370)*(AbschreibungAHKBvD))","v":0},{"$f":"SUM(I$178:I193)-SUM(I$266:I281)+SUMPRODUCT((Aktivierungsjahr=Costs!$A370)*(AbschreibungAGr=Costs!I$353)*('Fixed assets'!$U$2:$U$1000=Costs!$A370)*(AbschreibungAHKBvD))","v":0},{"$f":"SUM(J$178:J193)-SUM(J$266:J281)+SUMPRODUCT((Aktivierungsjahr=Costs!$A370)*(AbschreibungAGr=Costs!J$353)*('Fixed assets'!$U$2:$U$1000=Costs!$A370)*(AbschreibungAHKBvD))","v":0},{"$f":"SUM(K$178:K193)-SUM(K$266:K281)+SUMPRODUCT((Aktivierungsjahr=Costs!$A370)*(AbschreibungAGr=Costs!K$353)*('Fixed assets'!$U$2:$U$1000=Costs!$A370)*(AbschreibungAHKBvD))","v":0},{"$f":"SUM(L$178:L193)-SUM(L$266:L281)+SUMPRODUCT((Aktivierungsjahr=Costs!$A370)*(AbschreibungAGr=Costs!L$353)*('Fixed assets'!$U$2:$U$1000=Costs!$A370)*(AbschreibungAHKBvD))","v":0},{"$f":"SUM(M$178:M193)-SUM(M$266:M281)+SUMPRODUCT((Aktivierungsjahr=Costs!$A370)*(AbschreibungAGr=Costs!M$353)*('Fixed assets'!$U$2:$U$1000=Costs!$A370)*(AbschreibungAHKBvD))","v":0},{"$f":"SUM(N$178:N193)-SUM(N$266:N281)+SUMPRODUCT((Aktivierungsjahr=Costs!$A370)*(AbschreibungAGr=Costs!N$353)*('Fixed assets'!$U$2:$U$1000=Costs!$A370)*(AbschreibungAHKBvD))","v":0},{"$f":"SUM(O$178:O193)-SUM(O$266:O281)+SUMPRODUCT((Aktivierungsjahr=Costs!$A370)*(AbschreibungAGr=Costs!O$353)*('Fixed assets'!$U$2:$U$1000=Costs!$A370)*(AbschreibungAHKBvD))","v":0},{"$f":"SUM(P$178:P193)-SUM(P$266:P281)+SUMPRODUCT((Aktivierungsjahr=Costs!$A370)*(AbschreibungAGr=Costs!P$353)*('Fixed assets'!$U$2:$U$1000=Costs!$A370)*(AbschreibungAHKBvD))","v":114000000},{"$f":"SUM(Q$178:Q193)-SUM(Q$266:Q281)+SUMPRODUCT((Aktivierungsjahr=Costs!$A370)*(AbschreibungAGr=Costs!Q$353)*('Fixed assets'!$U$2:$U$1000=Costs!$A370)*(AbschreibungAHKBvD))","v":0},{"$f":"SUM(R$178:R193)-SUM(R$266:R281)+SUMPRODUCT((Aktivierungsjahr=Costs!$A370)*(AbschreibungAGr=Costs!R$353)*('Fixed assets'!$U$2:$U$1000=Costs!$A370)*(AbschreibungAHKBvD))","v":0},{"$f":"SUM(S$178:S193)-SUM(S$266:S281)+SUMPRODUCT((Aktivierungsjahr=Costs!$A370)*(AbschreibungAGr=Costs!S$353)*('Fixed assets'!$U$2:$U$1000=Costs!$A370)*(AbschreibungAHKBvD))","v":0},{"$f":"SUM(T$178:T193)-SUM(T$266:T281)+SUMPRODUCT((Aktivierungsjahr=Costs!$A370)*(AbschreibungAGr=Costs!T$353)*('Fixed assets'!$U$2:$U$1000=Costs!$A370)*(AbschreibungAHKBvD))","v":0},{"$f":"SUM(U$178:U193)-SUM(U$266:U281)+SUMPRODUCT((Aktivierungsjahr=Costs!$A370)*(AbschreibungAGr=Costs!U$353)*('Fixed assets'!$U$2:$U$1000=Costs!$A370)*(AbschreibungAHKBvD))","v":0},{"$f":"SUM(V$178:V193)-SUM(V$266:V281)+SUMPRODUCT((Aktivierungsjahr=Costs!$A370)*(AbschreibungAGr=Costs!V$353)*('Fixed assets'!$U$2:$U$1000=Costs!$A370)*(AbschreibungAHKBvD))","v":0},{"$f":"SUM(W$178:W193)-SUM(W$266:W281)+SUMPRODUCT((Aktivierungsjahr=Costs!$A370)*(AbschreibungAGr=Costs!W$353)*('Fixed assets'!$U$2:$U$1000=Costs!$A370)*(AbschreibungAHKBvD))","v":0},{"$f":"SUM(X$178:X193)-SUM(X$266:X281)+SUMPRODUCT((Aktivierungsjahr=Costs!$A370)*(AbschreibungAGr=Costs!X$353)*('Fixed assets'!$U$2:$U$1000=Costs!$A370)*(AbschreibungAHKBvD))","v":0},{"$f":"SUM(Y$178:Y193)-SUM(Y$266:Y281)+SUMPRODUCT((Aktivierungsjahr=Costs!$A370)*(AbschreibungAGr=Costs!Y$353)*('Fixed assets'!$U$2:$U$1000=Costs!$A370)*(AbschreibungAHKBvD))","v":0},{"$f":"SUM(Z$178:Z193)-SUM(Z$266:Z281)+SUMPRODUCT((Aktivierungsjahr=Costs!$A370)*(AbschreibungAGr=Costs!Z$353)*('Fixed assets'!$U$2:$U$1000=Costs!$A370)*(AbschreibungAHKBvD))","v":0},{"$f":"SUM(AA$178:AA193)-SUM(AA$266:AA281)+SUMPRODUCT((Aktivierungsjahr=Costs!$A370)*(AbschreibungAGr=Costs!AA$353)*('Fixed assets'!$U$2:$U$1000=Costs!$A370)*(AbschreibungAHKBvD))","v":0},{"$f":"SUM(AB$178:AB193)-SUM(AB$266:AB281)+SUMPRODUCT((Aktivierungsjahr=Costs!$A370)*(AbschreibungAGr=Costs!AB$353)*('Fixed assets'!$U$2:$U$1000=Costs!$A370)*(AbschreibungAHKBvD))","v":0},{"$f":"SUM(AC$178:AC193)-SUM(AC$266:AC281)+SUMPRODUCT((Aktivierungsjahr=Costs!$A370)*(AbschreibungAGr=Costs!AC$353)*('Fixed assets'!$U$2:$U$1000=Costs!$A370)*(AbschreibungAHKBvD))","v":0},{"$f":"SUM(AD$178:AD193)-SUM(AD$266:AD281)+SUMPRODUCT((Aktivierungsjahr=Costs!$A370)*(AbschreibungAGr=Costs!AD$353)*('Fixed assets'!$U$2:$U$1000=Costs!$A370)*(AbschreibungAHKBvD))","v":0},{"$f":"SUM(AE$178:AE193)-SUM(AE$266:AE281)+SUMPRODUCT((Aktivierungsjahr=Costs!$A370)*(AbschreibungAGr=Costs!AE$353)*('Fixed assets'!$U$2:$U$1000=Costs!$A370)*(AbschreibungAHKBvD))","v":0},{"$f":"SUM(AF$178:AF193)-SUM(AF$266:AF281)+SUMPRODUCT((Aktivierungsjahr=Costs!$A370)*(AbschreibungAGr=Costs!AF$353)*('Fixed assets'!$U$2:$U$1000=Costs!$A370)*(AbschreibungAHKBvD))","v":0},{"$f":"SUM(AG$178:AG193)-SUM(AG$266:AG281)+SUMPRODUCT((Aktivierungsjahr=Costs!$A370)*(AbschreibungAGr=Costs!AG$353)*('Fixed assets'!$U$2:$U$1000=Costs!$A370)*(AbschreibungAHKBvD))","v":0},{"$f":"SUM(AH$178:AH193)-SUM(AH$266:AH281)+SUMPRODUCT((Aktivierungsjahr=Costs!$A370)*(AbschreibungAGr=Costs!AH$353)*('Fixed assets'!$U$2:$U$1000=Costs!$A370)*(AbschreibungAHKBvD))","v":0},{"$f":"SUM(AI$178:AI193)-SUM(AI$266:AI281)+SUMPRODUCT((Aktivierungsjahr=Costs!$A370)*(AbschreibungAGr=Costs!AI$353)*('Fixed assets'!$U$2:$U$1000=Costs!$A370)*(AbschreibungAHKBvD))","v":0},{"$f":"SUM(AJ$178:AJ193)-SUM(AJ$266:AJ281)+SUMPRODUCT((Aktivierungsjahr=Costs!$A370)*(AbschreibungAGr=Costs!AJ$353)*('Fixed assets'!$U$2:$U$1000=Costs!$A370)*(AbschreibungAHKBvD))","v":866666.66666666663},{"$f":"SUM(AK$178:AK193)-SUM(AK$266:AK281)+SUMPRODUCT((Aktivierungsjahr=Costs!$A370)*(AbschreibungAGr=Costs!AK$353)*('Fixed assets'!$U$2:$U$1000=Costs!$A370)*(AbschreibungAHKBvD))","v":0},{"$f":"SUM(AL$178:AL193)-SUM(AL$266:AL281)+SUMPRODUCT((Aktivierungsjahr=Costs!$A370)*(AbschreibungAGr=Costs!AL$353)*('Fixed assets'!$U$2:$U$1000=Costs!$A370)*(AbschreibungAHKBvD))","v":0},{"$f":"SUM(AM$178:AM193)-SUM(AM$266:AM281)+SUMPRODUCT((Aktivierungsjahr=Costs!$A370)*(AbschreibungAGr=Costs!AM$353)*('Fixed assets'!$U$2:$U$1000=Costs!$A370)*(AbschreibungAHKBvD))","v":0},{"$f":"SUM(AN$178:AN193)-SUM(AN$266:AN281)+SUMPRODUCT((Aktivierungsjahr=Costs!$A370)*(AbschreibungAGr=Costs!AN$353)*('Fixed assets'!$U$2:$U$1000=Costs!$A370)*(AbschreibungAHKBvD))","v":0},{"$f":"SUM(AO$178:AO193)-SUM(AO$266:AO281)+SUMPRODUCT((Aktivierungsjahr=Costs!$A370)*(AbschreibungAGr=Costs!AO$353)*('Fixed assets'!$U$2:$U$1000=Costs!$A370)*(AbschreibungAHKBvD))","v":0},{"$f":"SUM(AP$178:AP193)-SUM(AP$266:AP281)+SUMPRODUCT((Aktivierungsjahr=Costs!$A370)*(AbschreibungAGr=Costs!AP$353)*('Fixed assets'!$U$2:$U$1000=Costs!$A370)*(AbschreibungAHKBvD))","v":0},{"$f":"SUM(AQ$178:AQ193)-SUM(AQ$266:AQ281)+SUMPRODUCT((Aktivierungsjahr=Costs!$A370)*(AbschreibungAGr=Costs!AQ$353)*('Fixed assets'!$U$2:$U$1000=Costs!$A370)*(AbschreibungAHKBvD))","v":0}]
[2032,108844444.44444445,{"$f":"SUM(C$178:C194)-SUM(C$266:C282)+SUMPRODUCT((Aktivierungsjahr=Costs!$A371)*(AbschreibungAGr=Costs!C$353)*('Fixed assets'!$U$2:$U$1000=Costs!$A371)*(AbschreibungAHKBvD))","v":0},{"$f":"SUM(D$178:D194)-SUM(D$266:D282)+SUMPRODUCT((Aktivierungsjahr=Costs!$A371)*(AbschreibungAGr=Costs!D$353)*('Fixed assets'!$U$2:$U$1000=Costs!$A371)*(AbschreibungAHKBvD))","v":0},{"$f":"SUM(E$178:E194)-SUM(E$266:E282)+SUMPRODUCT((Aktivierungsjahr=Costs!$A371)*(AbschreibungAGr=Costs!E$353)*('Fixed assets'!$U$2:$U$1000=Costs!$A371)*(AbschreibungAHKBvD))","v":0},{"$f":"SUM(F$178:F194)-SUM(F$266:F282)+SUMPRODUCT((Aktivierungsjahr=Costs!$A371)*(AbschreibungAGr=Costs!F$353)*('Fixed assets'!$U$2:$U$1000=Costs!$A371)*(AbschreibungAHKBvD))","v":0},{"$f":"SUM(G$178:G194)-SUM(G$266:G282)+SUMPRODUCT((Aktivierungsjahr=Costs!$A371)*(AbschreibungAGr=Costs!G$353)*('Fixed assets'!$U$2:$U$1000=Costs!$A371)*(AbschreibungAHKBvD))","v":0},{"$f":"SUM(H$178:H194)-SUM(H$266:H282)+SUMPRODUCT((Aktivierungsjahr=Costs!$A371)*(AbschreibungAGr=Costs!H$353)*('Fixed assets'!$U$2:$U$1000=Costs!$A371)*(AbschreibungAHKBvD))","v":0},{"$f":"SUM(I$178:I194)-SUM(I$266:I282)+SUMPRODUCT((Aktivierungsjahr=Costs!$A371)*(AbschreibungAGr=Costs!I$353)*('Fixed assets'!$U$2:$U$1000=Costs!$A371)*(AbschreibungAHKBvD))","v":0},{"$f":"SUM(J$178:J194)-SUM(J$266:J282)+SUMPRODUCT((Aktivierungsjahr=Costs!$A371)*(AbschreibungAGr=Costs!J$353)*('Fixed assets'!$U$2:$U$1000=Costs!$A371)*(AbschreibungAHKBvD))","v":0},{"$f":"SUM(K$178:K194)-SUM(K$266:K282)+SUMPRODUCT((Aktivierungsjahr=Costs!$A371)*(AbschreibungAGr=Costs!K$353)*('Fixed assets'!$U$2:$U$1000=Costs!$A371)*(AbschreibungAHKBvD))","v":0},{"$f":"SUM(L$178:L194)-SUM(L$266:L282)+SUMPRODUCT((Aktivierungsjahr=Costs!$A371)*(AbschreibungAGr=Costs!L$353)*('Fixed assets'!$U$2:$U$1000=Costs!$A371)*(AbschreibungAHKBvD))","v":0},{"$f":"SUM(M$178:M194)-SUM(M$266:M282)+SUMPRODUCT((Aktivierungsjahr=Costs!$A371)*(AbschreibungAGr=Costs!M$353)*('Fixed assets'!$U$2:$U$1000=Costs!$A371)*(AbschreibungAHKBvD))","v":0},{"$f":"SUM(N$178:N194)-SUM(N$266:N282)+SUMPRODUCT((Aktivierungsjahr=Costs!$A371)*(AbschreibungAGr=Costs!N$353)*('Fixed assets'!$U$2:$U$1000=Costs!$A371)*(AbschreibungAHKBvD))","v":0},{"$f":"SUM(O$178:O194)-SUM(O$266:O282)+SUMPRODUCT((Aktivierungsjahr=Costs!$A371)*(AbschreibungAGr=Costs!O$353)*('Fixed assets'!$U$2:$U$1000=Costs!$A371)*(AbschreibungAHKBvD))","v":0},{"$f":"SUM(P$178:P194)-SUM(P$266:P282)+SUMPRODUCT((Aktivierungsjahr=Costs!$A371)*(AbschreibungAGr=Costs!P$353)*('Fixed assets'!$U$2:$U$1000=Costs!$A371)*(AbschreibungAHKBvD))","v":108000000},{"$f":"SUM(Q$178:Q194)-SUM(Q$266:Q282)+SUMPRODUCT((Aktivierungsjahr=Costs!$A371)*(AbschreibungAGr=Costs!Q$353)*('Fixed assets'!$U$2:$U$1000=Costs!$A371)*(AbschreibungAHKBvD))","v":0},{"$f":"SUM(R$178:R194)-SUM(R$266:R282)+SUMPRODUCT((Aktivierungsjahr=Costs!$A371)*(AbschreibungAGr=Costs!R$353)*('Fixed assets'!$U$2:$U$1000=Costs!$A371)*(AbschreibungAHKBvD))","v":0},{"$f":"SUM(S$178:S194)-SUM(S$266:S282)+SUMPRODUCT((Aktivierungsjahr=Costs!$A371)*(AbschreibungAGr=Costs!S$353)*('Fixed assets'!$U$2:$U$1000=Costs!$A371)*(AbschreibungAHKBvD))","v":0},{"$f":"SUM(T$178:T194)-SUM(T$266:T282)+SUMPRODUCT((Aktivierungsjahr=Costs!$A371)*(AbschreibungAGr=Costs!T$353)*('Fixed assets'!$U$2:$U$1000=Costs!$A371)*(AbschreibungAHKBvD))","v":0},{"$f":"SUM(U$178:U194)-SUM(U$266:U282)+SUMPRODUCT((Aktivierungsjahr=Costs!$A371)*(AbschreibungAGr=Costs!U$353)*('Fixed assets'!$U$2:$U$1000=Costs!$A371)*(AbschreibungAHKBvD))","v":0},{"$f":"SUM(V$178:V194)-SUM(V$266:V282)+SUMPRODUCT((Aktivierungsjahr=Costs!$A371)*(AbschreibungAGr=Costs!V$353)*('Fixed assets'!$U$2:$U$1000=Costs!$A371)*(AbschreibungAHKBvD))","v":0},{"$f":"SUM(W$178:W194)-SUM(W$266:W282)+SUMPRODUCT((Aktivierungsjahr=Costs!$A371)*(AbschreibungAGr=Costs!W$353)*('Fixed assets'!$U$2:$U$1000=Costs!$A371)*(AbschreibungAHKBvD))","v":0},{"$f":"SUM(X$178:X194)-SUM(X$266:X282)+SUMPRODUCT((Aktivierungsjahr=Costs!$A371)*(AbschreibungAGr=Costs!X$353)*('Fixed assets'!$U$2:$U$1000=Costs!$A371)*(AbschreibungAHKBvD))","v":0},{"$f":"SUM(Y$178:Y194)-SUM(Y$266:Y282)+SUMPRODUCT((Aktivierungsjahr=Costs!$A371)*(AbschreibungAGr=Costs!Y$353)*('Fixed assets'!$U$2:$U$1000=Costs!$A371)*(AbschreibungAHKBvD))","v":0},{"$f":"SUM(Z$178:Z194)-SUM(Z$266:Z282)+SUMPRODUCT((Aktivierungsjahr=Costs!$A371)*(AbschreibungAGr=Costs!Z$353)*('Fixed assets'!$U$2:$U$1000=Costs!$A371)*(AbschreibungAHKBvD))","v":0},{"$f":"SUM(AA$178:AA194)-SUM(AA$266:AA282)+SUMPRODUCT((Aktivierungsjahr=Costs!$A371)*(AbschreibungAGr=Costs!AA$353)*('Fixed assets'!$U$2:$U$1000=Costs!$A371)*(AbschreibungAHKBvD))","v":0},{"$f":"SUM(AB$178:AB194)-SUM(AB$266:AB282)+SUMPRODUCT((Aktivierungsjahr=Costs!$A371)*(AbschreibungAGr=Costs!AB$353)*('Fixed assets'!$U$2:$U$1000=Costs!$A371)*(AbschreibungAHKBvD))","v":0},{"$f":"SUM(AC$178:AC194)-SUM(AC$266:AC282)+SUMPRODUCT((Aktivierungsjahr=Costs!$A371)*(AbschreibungAGr=Costs!AC$353)*('Fixed assets'!$U$2:$U$1000=Costs!$A371)*(AbschreibungAHKBvD))","v":0},{"$f":"SUM(AD$178:AD194)-SUM(AD$266:AD282)+SUMPRODUCT((Aktivierungsjahr=Costs!$A371)*(AbschreibungAGr=Costs!AD$353)*('Fixed assets'!$U$2:$U$1000=Costs!$A371)*(AbschreibungAHKBvD))","v":0},{"$f":"SUM(AE$178:AE194)-SUM(AE$266:AE282)+SUMPRODUCT((Aktivierungsjahr=Costs!$A371)*(AbschreibungAGr=Costs!AE$353)*('Fixed assets'!$U$2:$U$1000=Costs!$A371)*(AbschreibungAHKBvD))","v":0},{"$f":"SUM(AF$178:AF194)-SUM(AF$266:AF282)+SUMPRODUCT((Aktivierungsjahr=Costs!$A371)*(AbschreibungAGr=Costs!AF$353)*('Fixed assets'!$U$2:$U$1000=Costs!$A371)*(AbschreibungAHKBvD))","v":0},{"$f":"SUM(AG$178:AG194)-SUM(AG$266:AG282)+SUMPRODUCT((Aktivierungsjahr=Costs!$A371)*(AbschreibungAGr=Costs!AG$353)*('Fixed assets'!$U$2:$U$1000=Costs!$A371)*(AbschreibungAHKBvD))","v":0},{"$f":"SUM(AH$178:AH194)-SUM(AH$266:AH282)+SUMPRODUCT((Aktivierungsjahr=Costs!$A371)*(AbschreibungAGr=Costs!AH$353)*('Fixed assets'!$U$2:$U$1000=Costs!$A371)*(AbschreibungAHKBvD))","v":0},{"$f":"SUM(AI$178:AI194)-SUM(AI$266:AI282)+SUMPRODUCT((Aktivierungsjahr=Costs!$A371)*(AbschreibungAGr=Costs!AI$353)*('Fixed assets'!$U$2:$U$1000=Costs!$A371)*(AbschreibungAHKBvD))","v":0},{"$f":"SUM(AJ$178:AJ194)-SUM(AJ$266:AJ282)+SUMPRODUCT((Aktivierungsjahr=Costs!$A371)*(AbschreibungAGr=Costs!AJ$353)*('Fixed assets'!$U$2:$U$1000=Costs!$A371)*(AbschreibungAHKBvD))","v":844444.4444444445},{"$f":"SUM(AK$178:AK194)-SUM(AK$266:AK282)+SUMPRODUCT((Aktivierungsjahr=Costs!$A371)*(AbschreibungAGr=Costs!AK$353)*('Fixed assets'!$U$2:$U$1000=Costs!$A371)*(AbschreibungAHKBvD))","v":0},{"$f":"SUM(AL$178:AL194)-SUM(AL$266:AL282)+SUMPRODUCT((Aktivierungsjahr=Costs!$A371)*(AbschreibungAGr=Costs!AL$353)*('Fixed assets'!$U$2:$U$1000=Costs!$A371)*(AbschreibungAHKBvD))","v":0},{"$f":"SUM(AM$178:AM194)-SUM(AM$266:AM282)+SUMPRODUCT((Aktivierungsjahr=Costs!$A371)*(AbschreibungAGr=Costs!AM$353)*('Fixed assets'!$U$2:$U$1000=Costs!$A371)*(AbschreibungAHKBvD))","v":0},{"$f":"SUM(AN$178:AN194)-SUM(AN$266:AN282)+SUMPRODUCT((Aktivierungsjahr=Costs!$A371)*(AbschreibungAGr=Costs!AN$353)*('Fixed assets'!$U$2:$U$1000=Costs!$A371)*(AbschreibungAHKBvD))","v":0},{"$f":"SUM(AO$178:AO194)-SUM(AO$266:AO282)+SUMPRODUCT((Aktivierungsjahr=Costs!$A371)*(AbschreibungAGr=Costs!AO$353)*('Fixed assets'!$U$2:$U$1000=Costs!$A371)*(AbschreibungAHKBvD))","v":0},{"$f":"SUM(AP$178:AP194)-SUM(AP$266:AP282)+SUMPRODUCT((Aktivierungsjahr=Costs!$A371)*(AbschreibungAGr=Costs!AP$353)*('Fixed assets'!$U$2:$U$1000=Costs!$A371)*(AbschreibungAHKBvD))","v":0},{"$f":"SUM(AQ$178:AQ194)-SUM(AQ$266:AQ282)+SUMPRODUCT((Aktivierungsjahr=Costs!$A371)*(AbschreibungAGr=Costs!AQ$353)*('Fixed assets'!$U$2:$U$1000=Costs!$A371)*(AbschreibungAHKBvD))","v":0}]
[2033,102822222.22222222,{"$f":"SUM(C$178:C195)-SUM(C$266:C283)+SUMPRODUCT((Aktivierungsjahr=Costs!$A372)*(AbschreibungAGr=Costs!C$353)*('Fixed assets'!$U$2:$U$1000=Costs!$A372)*(AbschreibungAHKBvD))","v":0},{"$f":"SUM(D$178:D195)-SUM(D$266:D283)+SUMPRODUCT((Aktivierungsjahr=Costs!$A372)*(AbschreibungAGr=Costs!D$353)*('Fixed assets'!$U$2:$U$1000=Costs!$A372)*(AbschreibungAHKBvD))","v":0},{"$f":"SUM(E$178:E195)-SUM(E$266:E283)+SUMPRODUCT((Aktivierungsjahr=Costs!$A372)*(AbschreibungAGr=Costs!E$353)*('Fixed assets'!$U$2:$U$1000=Costs!$A372)*(AbschreibungAHKBvD))","v":0},{"$f":"SUM(F$178:F195)-SUM(F$266:F283)+SUMPRODUCT((Aktivierungsjahr=Costs!$A372)*(AbschreibungAGr=Costs!F$353)*('Fixed assets'!$U$2:$U$1000=Costs!$A372)*(AbschreibungAHKBvD))","v":0},{"$f":"SUM(G$178:G195)-SUM(G$266:G283)+SUMPRODUCT((Aktivierungsjahr=Costs!$A372)*(AbschreibungAGr=Costs!G$353)*('Fixed assets'!$U$2:$U$1000=Costs!$A372)*(AbschreibungAHKBvD))","v":0},{"$f":"SUM(H$178:H195)-SUM(H$266:H283)+SUMPRODUCT((Aktivierungsjahr=Costs!$A372)*(AbschreibungAGr=Costs!H$353)*('Fixed assets'!$U$2:$U$1000=Costs!$A372)*(AbschreibungAHKBvD))","v":0},{"$f":"SUM(I$178:I195)-SUM(I$266:I283)+SUMPRODUCT((Aktivierungsjahr=Costs!$A372)*(AbschreibungAGr=Costs!I$353)*('Fixed assets'!$U$2:$U$1000=Costs!$A372)*(AbschreibungAHKBvD))","v":0},{"$f":"SUM(J$178:J195)-SUM(J$266:J283)+SUMPRODUCT((Aktivierungsjahr=Costs!$A372)*(AbschreibungAGr=Costs!J$353)*('Fixed assets'!$U$2:$U$1000=Costs!$A372)*(AbschreibungAHKBvD))","v":0},{"$f":"SUM(K$178:K195)-SUM(K$266:K283)+SUMPRODUCT((Aktivierungsjahr=Costs!$A372)*(AbschreibungAGr=Costs!K$353)*('Fixed assets'!$U$2:$U$1000=Costs!$A372)*(AbschreibungAHKBvD))","v":0},{"$f":"SUM(L$178:L195)-SUM(L$266:L283)+SUMPRODUCT((Aktivierungsjahr=Costs!$A372)*(AbschreibungAGr=Costs!L$353)*('Fixed assets'!$U$2:$U$1000=Costs!$A372)*(AbschreibungAHKBvD))","v":0},{"$f":"SUM(M$178:M195)-SUM(M$266:M283)+SUMPRODUCT((Aktivierungsjahr=Costs!$A372)*(AbschreibungAGr=Costs!M$353)*('Fixed assets'!$U$2:$U$1000=Costs!$A372)*(AbschreibungAHKBvD))","v":0},{"$f":"SUM(N$178:N195)-SUM(N$266:N283)+SUMPRODUCT((Aktivierungsjahr=Costs!$A372)*(AbschreibungAGr=Costs!N$353)*('Fixed assets'!$U$2:$U$1000=Costs!$A372)*(AbschreibungAHKBvD))","v":0},{"$f":"SUM(O$178:O195)-SUM(O$266:O283)+SUMPRODUCT((Aktivierungsjahr=Costs!$A372)*(AbschreibungAGr=Costs!O$353)*('Fixed assets'!$U$2:$U$1000=Costs!$A372)*(AbschreibungAHKBvD))","v":0},{"$f":"SUM(P$178:P195)-SUM(P$266:P283)+SUMPRODUCT((Aktivierungsjahr=Costs!$A372)*(AbschreibungAGr=Costs!P$353)*('Fixed assets'!$U$2:$U$1000=Costs!$A372)*(AbschreibungAHKBvD))","v":102000000},{"$f":"SUM(Q$178:Q195)-SUM(Q$266:Q283)+SUMPRODUCT((Aktivierungsjahr=Costs!$A372)*(AbschreibungAGr=Costs!Q$353)*('Fixed assets'!$U$2:$U$1000=Costs!$A372)*(AbschreibungAHKBvD))","v":0},{"$f":"SUM(R$178:R195)-SUM(R$266:R283)+SUMPRODUCT((Aktivierungsjahr=Costs!$A372)*(AbschreibungAGr=Costs!R$353)*('Fixed assets'!$U$2:$U$1000=Costs!$A372)*(AbschreibungAHKBvD))","v":0},{"$f":"SUM(S$178:S195)-SUM(S$266:S283)+SUMPRODUCT((Aktivierungsjahr=Costs!$A372)*(AbschreibungAGr=Costs!S$353)*('Fixed assets'!$U$2:$U$1000=Costs!$A372)*(AbschreibungAHKBvD))","v":0},{"$f":"SUM(T$178:T195)-SUM(T$266:T283)+SUMPRODUCT((Aktivierungsjahr=Costs!$A372)*(AbschreibungAGr=Costs!T$353)*('Fixed assets'!$U$2:$U$1000=Costs!$A372)*(AbschreibungAHKBvD))","v":0},{"$f":"SUM(U$178:U195)-SUM(U$266:U283)+SUMPRODUCT((Aktivierungsjahr=Costs!$A372)*(AbschreibungAGr=Costs!U$353)*('Fixed assets'!$U$2:$U$1000=Costs!$A372)*(AbschreibungAHKBvD))","v":0},{"$f":"SUM(V$178:V195)-SUM(V$266:V283)+SUMPRODUCT((Aktivierungsjahr=Costs!$A372)*(AbschreibungAGr=Costs!V$353)*('Fixed assets'!$U$2:$U$1000=Costs!$A372)*(AbschreibungAHKBvD))","v":0},{"$f":"SUM(W$178:W195)-SUM(W$266:W283)+SUMPRODUCT((Aktivierungsjahr=Costs!$A372)*(AbschreibungAGr=Costs!W$353)*('Fixed assets'!$U$2:$U$1000=Costs!$A372)*(AbschreibungAHKBvD))","v":0},{"$f":"SUM(X$178:X195)-SUM(X$266:X283)+SUMPRODUCT((Aktivierungsjahr=Costs!$A372)*(AbschreibungAGr=Costs!X$353)*('Fixed assets'!$U$2:$U$1000=Costs!$A372)*(AbschreibungAHKBvD))","v":0},{"$f":"SUM(Y$178:Y195)-SUM(Y$266:Y283)+SUMPRODUCT((Aktivierungsjahr=Costs!$A372)*(AbschreibungAGr=Costs!Y$353)*('Fixed assets'!$U$2:$U$1000=Costs!$A372)*(AbschreibungAHKBvD))","v":0},{"$f":"SUM(Z$178:Z195)-SUM(Z$266:Z283)+SUMPRODUCT((Aktivierungsjahr=Costs!$A372)*(AbschreibungAGr=Costs!Z$353)*('Fixed assets'!$U$2:$U$1000=Costs!$A372)*(AbschreibungAHKBvD))","v":0},{"$f":"SUM(AA$178:AA195)-SUM(AA$266:AA283)+SUMPRODUCT((Aktivierungsjahr=Costs!$A372)*(AbschreibungAGr=Costs!AA$353)*('Fixed assets'!$U$2:$U$1000=Costs!$A372)*(AbschreibungAHKBvD))","v":0},{"$f":"SUM(AB$178:AB195)-SUM(AB$266:AB283)+SUMPRODUCT((Aktivierungsjahr=Costs!$A372)*(AbschreibungAGr=Costs!AB$353)*('Fixed assets'!$U$2:$U$1000=Costs!$A372)*(AbschreibungAHKBvD))","v":0},{"$f":"SUM(AC$178:AC195)-SUM(AC$266:AC283)+SUMPRODUCT((Aktivierungsjahr=Costs!$A372)*(AbschreibungAGr=Costs!AC$353)*('Fixed assets'!$U$2:$U$1000=Costs!$A372)*(AbschreibungAHKBvD))","v":0},{"$f":"SUM(AD$178:AD195)-SUM(AD$266:AD283)+SUMPRODUCT((Aktivierungsjahr=Costs!$A372)*(AbschreibungAGr=Costs!AD$353)*('Fixed assets'!$U$2:$U$1000=Costs!$A372)*(AbschreibungAHKBvD))","v":0},{"$f":"SUM(AE$178:AE195)-SUM(AE$266:AE283)+SUMPRODUCT((Aktivierungsjahr=Costs!$A372)*(AbschreibungAGr=Costs!AE$353)*('Fixed assets'!$U$2:$U$1000=Costs!$A372)*(AbschreibungAHKBvD))","v":0},{"$f":"SUM(AF$178:AF195)-SUM(AF$266:AF283)+SUMPRODUCT((Aktivierungsjahr=Costs!$A372)*(AbschreibungAGr=Costs!AF$353)*('Fixed assets'!$U$2:$U$1000=Costs!$A372)*(AbschreibungAHKBvD))","v":0},{"$f":"SUM(AG$178:AG195)-SUM(AG$266:AG283)+SUMPRODUCT((Aktivierungsjahr=Costs!$A372)*(AbschreibungAGr=Costs!AG$353)*('Fixed assets'!$U$2:$U$1000=Costs!$A372)*(AbschreibungAHKBvD))","v":0},{"$f":"SUM(AH$178:AH195)-SUM(AH$266:AH283)+SUMPRODUCT((Aktivierungsjahr=Costs!$A372)*(AbschreibungAGr=Costs!AH$353)*('Fixed assets'!$U$2:$U$1000=Costs!$A372)*(AbschreibungAHKBvD))","v":0},{"$f":"SUM(AI$178:AI195)-SUM(AI$266:AI283)+SUMPRODUCT((Aktivierungsjahr=Costs!$A372)*(AbschreibungAGr=Costs!AI$353)*('Fixed assets'!$U$2:$U$1000=Costs!$A372)*(AbschreibungAHKBvD))","v":0},{"$f":"SUM(AJ$178:AJ195)-SUM(AJ$266:AJ283)+SUMPRODUCT((Aktivierungsjahr=Costs!$A372)*(AbschreibungAGr=Costs!AJ$353)*('Fixed assets'!$U$2:$U$1000=Costs!$A372)*(AbschreibungAHKBvD))","v":822222.22222222225},{"$f":"SUM(AK$178:AK195)-SUM(AK$266:AK283)+SUMPRODUCT((Aktivierungsjahr=Costs!$A372)*(AbschreibungAGr=Costs!AK$353)*('Fixed assets'!$U$2:$U$1000=Costs!$A372)*(AbschreibungAHKBvD))","v":0},{"$f":"SUM(AL$178:AL195)-SUM(AL$266:AL283)+SUMPRODUCT((Aktivierungsjahr=Costs!$A372)*(AbschreibungAGr=Costs!AL$353)*('Fixed assets'!$U$2:$U$1000=Costs!$A372)*(AbschreibungAHKBvD))","v":0},{"$f":"SUM(AM$178:AM195)-SUM(AM$266:AM283)+SUMPRODUCT((Aktivierungsjahr=Costs!$A372)*(AbschreibungAGr=Costs!AM$353)*('Fixed assets'!$U$2:$U$1000=Costs!$A372)*(AbschreibungAHKBvD))","v":0},{"$f":"SUM(AN$178:AN195)-SUM(AN$266:AN283)+SUMPRODUCT((Aktivierungsjahr=Costs!$A372)*(AbschreibungAGr=Costs!AN$353)*('Fixed assets'!$U$2:$U$1000=Costs!$A372)*(AbschreibungAHKBvD))","v":0},{"$f":"SUM(AO$178:AO195)-SUM(AO$266:AO283)+SUMPRODUCT((Aktivierungsjahr=Costs!$A372)*(AbschreibungAGr=Costs!AO$353)*('Fixed assets'!$U$2:$U$1000=Costs!$A372)*(AbschreibungAHKBvD))","v":0},{"$f":"SUM(AP$178:AP195)-SUM(AP$266:AP283)+SUMPRODUCT((Aktivierungsjahr=Costs!$A372)*(AbschreibungAGr=Costs!AP$353)*('Fixed assets'!$U$2:$U$1000=Costs!$A372)*(AbschreibungAHKBvD))","v":0},{"$f":"SUM(AQ$178:AQ195)-SUM(AQ$266:AQ283)+SUMPRODUCT((Aktivierungsjahr=Costs!$A372)*(AbschreibungAGr=Costs!AQ$353)*('Fixed assets'!$U$2:$U$1000=Costs!$A372)*(AbschreibungAHKBvD))","v":0}]
[2034,96800000,{"$f":"SUM(C$178:C196)-SUM(C$266:C284)+SUMPRODUCT((Aktivierungsjahr=Costs!$A373)*(AbschreibungAGr=Costs!C$353)*('Fixed assets'!$U$2:$U$1000=Costs!$A373)*(AbschreibungAHKBvD))","v":0},{"$f":"SUM(D$178:D196)-SUM(D$266:D284)+SUMPRODUCT((Aktivierungsjahr=Costs!$A373)*(AbschreibungAGr=Costs!D$353)*('Fixed assets'!$U$2:$U$1000=Costs!$A373)*(AbschreibungAHKBvD))","v":0},{"$f":"SUM(E$178:E196)-SUM(E$266:E284)+SUMPRODUCT((Aktivierungsjahr=Costs!$A373)*(AbschreibungAGr=Costs!E$353)*('Fixed assets'!$U$2:$U$1000=Costs!$A373)*(AbschreibungAHKBvD))","v":0},{"$f":"SUM(F$178:F196)-SUM(F$266:F284)+SUMPRODUCT((Aktivierungsjahr=Costs!$A373)*(AbschreibungAGr=Costs!F$353)*('Fixed assets'!$U$2:$U$1000=Costs!$A373)*(AbschreibungAHKBvD))","v":0},{"$f":"SUM(G$178:G196)-SUM(G$266:G284)+SUMPRODUCT((Aktivierungsjahr=Costs!$A373)*(AbschreibungAGr=Costs!G$353)*('Fixed assets'!$U$2:$U$1000=Costs!$A373)*(AbschreibungAHKBvD))","v":0},{"$f":"SUM(H$178:H196)-SUM(H$266:H284)+SUMPRODUCT((Aktivierungsjahr=Costs!$A373)*(AbschreibungAGr=Costs!H$353)*('Fixed assets'!$U$2:$U$1000=Costs!$A373)*(AbschreibungAHKBvD))","v":0},{"$f":"SUM(I$178:I196)-SUM(I$266:I284)+SUMPRODUCT((Aktivierungsjahr=Costs!$A373)*(AbschreibungAGr=Costs!I$353)*('Fixed assets'!$U$2:$U$1000=Costs!$A373)*(AbschreibungAHKBvD))","v":0},{"$f":"SUM(J$178:J196)-SUM(J$266:J284)+SUMPRODUCT((Aktivierungsjahr=Costs!$A373)*(AbschreibungAGr=Costs!J$353)*('Fixed assets'!$U$2:$U$1000=Costs!$A373)*(AbschreibungAHKBvD))","v":0},{"$f":"SUM(K$178:K196)-SUM(K$266:K284)+SUMPRODUCT((Aktivierungsjahr=Costs!$A373)*(AbschreibungAGr=Costs!K$353)*('Fixed assets'!$U$2:$U$1000=Costs!$A373)*(AbschreibungAHKBvD))","v":0},{"$f":"SUM(L$178:L196)-SUM(L$266:L284)+SUMPRODUCT((Aktivierungsjahr=Costs!$A373)*(AbschreibungAGr=Costs!L$353)*('Fixed assets'!$U$2:$U$1000=Costs!$A373)*(AbschreibungAHKBvD))","v":0},{"$f":"SUM(M$178:M196)-SUM(M$266:M284)+SUMPRODUCT((Aktivierungsjahr=Costs!$A373)*(AbschreibungAGr=Costs!M$353)*('Fixed assets'!$U$2:$U$1000=Costs!$A373)*(AbschreibungAHKBvD))","v":0},{"$f":"SUM(N$178:N196)-SUM(N$266:N284)+SUMPRODUCT((Aktivierungsjahr=Costs!$A373)*(AbschreibungAGr=Costs!N$353)*('Fixed assets'!$U$2:$U$1000=Costs!$A373)*(AbschreibungAHKBvD))","v":0},{"$f":"SUM(O$178:O196)-SUM(O$266:O284)+SUMPRODUCT((Aktivierungsjahr=Costs!$A373)*(AbschreibungAGr=Costs!O$353)*('Fixed assets'!$U$2:$U$1000=Costs!$A373)*(AbschreibungAHKBvD))","v":0},{"$f":"SUM(P$178:P196)-SUM(P$266:P284)+SUMPRODUCT((Aktivierungsjahr=Costs!$A373)*(AbschreibungAGr=Costs!P$353)*('Fixed assets'!$U$2:$U$1000=Costs!$A373)*(AbschreibungAHKBvD))","v":96000000},{"$f":"SUM(Q$178:Q196)-SUM(Q$266:Q284)+SUMPRODUCT((Aktivierungsjahr=Costs!$A373)*(AbschreibungAGr=Costs!Q$353)*('Fixed assets'!$U$2:$U$1000=Costs!$A373)*(AbschreibungAHKBvD))","v":0},{"$f":"SUM(R$178:R196)-SUM(R$266:R284)+SUMPRODUCT((Aktivierungsjahr=Costs!$A373)*(AbschreibungAGr=Costs!R$353)*('Fixed assets'!$U$2:$U$1000=Costs!$A373)*(AbschreibungAHKBvD))","v":0},{"$f":"SUM(S$178:S196)-SUM(S$266:S284)+SUMPRODUCT((Aktivierungsjahr=Costs!$A373)*(AbschreibungAGr=Costs!S$353)*('Fixed assets'!$U$2:$U$1000=Costs!$A373)*(AbschreibungAHKBvD))","v":0},{"$f":"SUM(T$178:T196)-SUM(T$266:T284)+SUMPRODUCT((Aktivierungsjahr=Costs!$A373)*(AbschreibungAGr=Costs!T$353)*('Fixed assets'!$U$2:$U$1000=Costs!$A373)*(AbschreibungAHKBvD))","v":0},{"$f":"SUM(U$178:U196)-SUM(U$266:U284)+SUMPRODUCT((Aktivierungsjahr=Costs!$A373)*(AbschreibungAGr=Costs!U$353)*('Fixed assets'!$U$2:$U$1000=Costs!$A373)*(AbschreibungAHKBvD))","v":0},{"$f":"SUM(V$178:V196)-SUM(V$266:V284)+SUMPRODUCT((Aktivierungsjahr=Costs!$A373)*(AbschreibungAGr=Costs!V$353)*('Fixed assets'!$U$2:$U$1000=Costs!$A373)*(AbschreibungAHKBvD))","v":0},{"$f":"SUM(W$178:W196)-SUM(W$266:W284)+SUMPRODUCT((Aktivierungsjahr=Costs!$A373)*(AbschreibungAGr=Costs!W$353)*('Fixed assets'!$U$2:$U$1000=Costs!$A373)*(AbschreibungAHKBvD))","v":0},{"$f":"SUM(X$178:X196)-SUM(X$266:X284)+SUMPRODUCT((Aktivierungsjahr=Costs!$A373)*(AbschreibungAGr=Costs!X$353)*('Fixed assets'!$U$2:$U$1000=Costs!$A373)*(AbschreibungAHKBvD))","v":0},{"$f":"SUM(Y$178:Y196)-SUM(Y$266:Y284)+SUMPRODUCT((Aktivierungsjahr=Costs!$A373)*(AbschreibungAGr=Costs!Y$353)*('Fixed assets'!$U$2:$U$1000=Costs!$A373)*(AbschreibungAHKBvD))","v":0},{"$f":"SUM(Z$178:Z196)-SUM(Z$266:Z284)+SUMPRODUCT((Aktivierungsjahr=Costs!$A373)*(AbschreibungAGr=Costs!Z$353)*('Fixed assets'!$U$2:$U$1000=Costs!$A373)*(AbschreibungAHKBvD))","v":0},{"$f":"SUM(AA$178:AA196)-SUM(AA$266:AA284)+SUMPRODUCT((Aktivierungsjahr=Costs!$A373)*(AbschreibungAGr=Costs!AA$353)*('Fixed assets'!$U$2:$U$1000=Costs!$A373)*(AbschreibungAHKBvD))","v":0},{"$f":"SUM(AB$178:AB196)-SUM(AB$266:AB284)+SUMPRODUCT((Aktivierungsjahr=Costs!$A373)*(AbschreibungAGr=Costs!AB$353)*('Fixed assets'!$U$2:$U$1000=Costs!$A373)*(AbschreibungAHKBvD))","v":0},{"$f":"SUM(AC$178:AC196)-SUM(AC$266:AC284)+SUMPRODUCT((Aktivierungsjahr=Costs!$A373)*(AbschreibungAGr=Costs!AC$353)*('Fixed assets'!$U$2:$U$1000=Costs!$A373)*(AbschreibungAHKBvD))","v":0},{"$f":"SUM(AD$178:AD196)-SUM(AD$266:AD284)+SUMPRODUCT((Aktivierungsjahr=Costs!$A373)*(AbschreibungAGr=Costs!AD$353)*('Fixed assets'!$U$2:$U$1000=Costs!$A373)*(AbschreibungAHKBvD))","v":0},{"$f":"SUM(AE$178:AE196)-SUM(AE$266:AE284)+SUMPRODUCT((Aktivierungsjahr=Costs!$A373)*(AbschreibungAGr=Costs!AE$353)*('Fixed assets'!$U$2:$U$1000=Costs!$A373)*(AbschreibungAHKBvD))","v":0},{"$f":"SUM(AF$178:AF196)-SUM(AF$266:AF284)+SUMPRODUCT((Aktivierungsjahr=Costs!$A373)*(AbschreibungAGr=Costs!AF$353)*('Fixed assets'!$U$2:$U$1000=Costs!$A373)*(AbschreibungAHKBvD))","v":0},{"$f":"SUM(AG$178:AG196)-SUM(AG$266:AG284)+SUMPRODUCT((Aktivierungsjahr=Costs!$A373)*(AbschreibungAGr=Costs!AG$353)*('Fixed assets'!$U$2:$U$1000=Costs!$A373)*(AbschreibungAHKBvD))","v":0},{"$f":"SUM(AH$178:AH196)-SUM(AH$266:AH284)+SUMPRODUCT((Aktivierungsjahr=Costs!$A373)*(AbschreibungAGr=Costs!AH$353)*('Fixed assets'!$U$2:$U$1000=Costs!$A373)*(AbschreibungAHKBvD))","v":0},{"$f":"SUM(AI$178:AI196)-SUM(AI$266:AI284)+SUMPRODUCT((Aktivierungsjahr=Costs!$A373)*(AbschreibungAGr=Costs!AI$353)*('Fixed assets'!$U$2:$U$1000=Costs!$A373)*(AbschreibungAHKBvD))","v":0},{"$f":"SUM(AJ$178:AJ196)-SUM(AJ$266:AJ284)+SUMPRODUCT((Aktivierungsjahr=Costs!$A373)*(AbschreibungAGr=Costs!AJ$353)*('Fixed assets'!$U$2:$U$1000=Costs!$A373)*(AbschreibungAHKBvD))","v":800000},{"$f":"SUM(AK$178:AK196)-SUM(AK$266:AK284)+SUMPRODUCT((Aktivierungsjahr=Costs!$A373)*(AbschreibungAGr=Costs!AK$353)*('Fixed assets'!$U$2:$U$1000=Costs!$A373)*(AbschreibungAHKBvD))","v":0},{"$f":"SUM(AL$178:AL196)-SUM(AL$266:AL284)+SUMPRODUCT((Aktivierungsjahr=Costs!$A373)*(AbschreibungAGr=Costs!AL$353)*('Fixed assets'!$U$2:$U$1000=Costs!$A373)*(AbschreibungAHKBvD))","v":0},{"$f":"SUM(AM$178:AM196)-SUM(AM$266:AM284)+SUMPRODUCT((Aktivierungsjahr=Costs!$A373)*(AbschreibungAGr=Costs!AM$353)*('Fixed assets'!$U$2:$U$1000=Costs!$A373)*(AbschreibungAHKBvD))","v":0},{"$f":"SUM(AN$178:AN196)-SUM(AN$266:AN284)+SUMPRODUCT((Aktivierungsjahr=Costs!$A373)*(AbschreibungAGr=Costs!AN$353)*('Fixed assets'!$U$2:$U$1000=Costs!$A373)*(AbschreibungAHKBvD))","v":0},{"$f":"SUM(AO$178:AO196)-SUM(AO$266:AO284)+SUMPRODUCT((Aktivierungsjahr=Costs!$A373)*(AbschreibungAGr=Costs!AO$353)*('Fixed assets'!$U$2:$U$1000=Costs!$A373)*(AbschreibungAHKBvD))","v":0},{"$f":"SUM(AP$178:AP196)-SUM(AP$266:AP284)+SUMPRODUCT((Aktivierungsjahr=Costs!$A373)*(AbschreibungAGr=Costs!AP$353)*('Fixed assets'!$U$2:$U$1000=Costs!$A373)*(AbschreibungAHKBvD))","v":0},{"$f":"SUM(AQ$178:AQ196)-SUM(AQ$266:AQ284)+SUMPRODUCT((Aktivierungsjahr=Costs!$A373)*(AbschreibungAGr=Costs!AQ$353)*('Fixed assets'!$U$2:$U$1000=Costs!$A373)*(AbschreibungAHKBvD))","v":0}]
[2035,90777777.777777776,{"$f":"SUM(C$178:C197)-SUM(C$266:C285)+SUMPRODUCT((Aktivierungsjahr=Costs!$A374)*(AbschreibungAGr=Costs!C$353)*('Fixed assets'!$U$2:$U$1000=Costs!$A374)*(AbschreibungAHKBvD))","v":0},{"$f":"SUM(D$178:D197)-SUM(D$266:D285)+SUMPRODUCT((Aktivierungsjahr=Costs!$A374)*(AbschreibungAGr=Costs!D$353)*('Fixed assets'!$U$2:$U$1000=Costs!$A374)*(AbschreibungAHKBvD))","v":0},{"$f":"SUM(E$178:E197)-SUM(E$266:E285)+SUMPRODUCT((Aktivierungsjahr=Costs!$A374)*(AbschreibungAGr=Costs!E$353)*('Fixed assets'!$U$2:$U$1000=Costs!$A374)*(AbschreibungAHKBvD))","v":0},{"$f":"SUM(F$178:F197)-SUM(F$266:F285)+SUMPRODUCT((Aktivierungsjahr=Costs!$A374)*(AbschreibungAGr=Costs!F$353)*('Fixed assets'!$U$2:$U$1000=Costs!$A374)*(AbschreibungAHKBvD))","v":0},{"$f":"SUM(G$178:G197)-SUM(G$266:G285)+SUMPRODUCT((Aktivierungsjahr=Costs!$A374)*(AbschreibungAGr=Costs!G$353)*('Fixed assets'!$U$2:$U$1000=Costs!$A374)*(AbschreibungAHKBvD))","v":0},{"$f":"SUM(H$178:H197)-SUM(H$266:H285)+SUMPRODUCT((Aktivierungsjahr=Costs!$A374)*(AbschreibungAGr=Costs!H$353)*('Fixed assets'!$U$2:$U$1000=Costs!$A374)*(AbschreibungAHKBvD))","v":0},{"$f":"SUM(I$178:I197)-SUM(I$266:I285)+SUMPRODUCT((Aktivierungsjahr=Costs!$A374)*(AbschreibungAGr=Costs!I$353)*('Fixed assets'!$U$2:$U$1000=Costs!$A374)*(AbschreibungAHKBvD))","v":0},{"$f":"SUM(J$178:J197)-SUM(J$266:J285)+SUMPRODUCT((Aktivierungsjahr=Costs!$A374)*(AbschreibungAGr=Costs!J$353)*('Fixed assets'!$U$2:$U$1000=Costs!$A374)*(AbschreibungAHKBvD))","v":0},{"$f":"SUM(K$178:K197)-SUM(K$266:K285)+SUMPRODUCT((Aktivierungsjahr=Costs!$A374)*(AbschreibungAGr=Costs!K$353)*('Fixed assets'!$U$2:$U$1000=Costs!$A374)*(AbschreibungAHKBvD))","v":0},{"$f":"SUM(L$178:L197)-SUM(L$266:L285)+SUMPRODUCT((Aktivierungsjahr=Costs!$A374)*(AbschreibungAGr=Costs!L$353)*('Fixed assets'!$U$2:$U$1000=Costs!$A374)*(AbschreibungAHKBvD))","v":0},{"$f":"SUM(M$178:M197)-SUM(M$266:M285)+SUMPRODUCT((Aktivierungsjahr=Costs!$A374)*(AbschreibungAGr=Costs!M$353)*('Fixed assets'!$U$2:$U$1000=Costs!$A374)*(AbschreibungAHKBvD))","v":0},{"$f":"SUM(N$178:N197)-SUM(N$266:N285)+SUMPRODUCT((Aktivierungsjahr=Costs!$A374)*(AbschreibungAGr=Costs!N$353)*('Fixed assets'!$U$2:$U$1000=Costs!$A374)*(AbschreibungAHKBvD))","v":0},{"$f":"SUM(O$178:O197)-SUM(O$266:O285)+SUMPRODUCT((Aktivierungsjahr=Costs!$A374)*(AbschreibungAGr=Costs!O$353)*('Fixed assets'!$U$2:$U$1000=Costs!$A374)*(AbschreibungAHKBvD))","v":0},{"$f":"SUM(P$178:P197)-SUM(P$266:P285)+SUMPRODUCT((Aktivierungsjahr=Costs!$A374)*(AbschreibungAGr=Costs!P$353)*('Fixed assets'!$U$2:$U$1000=Costs!$A374)*(AbschreibungAHKBvD))","v":90000000},{"$f":"SUM(Q$178:Q197)-SUM(Q$266:Q285)+SUMPRODUCT((Aktivierungsjahr=Costs!$A374)*(AbschreibungAGr=Costs!Q$353)*('Fixed assets'!$U$2:$U$1000=Costs!$A374)*(AbschreibungAHKBvD))","v":0},{"$f":"SUM(R$178:R197)-SUM(R$266:R285)+SUMPRODUCT((Aktivierungsjahr=Costs!$A374)*(AbschreibungAGr=Costs!R$353)*('Fixed assets'!$U$2:$U$1000=Costs!$A374)*(AbschreibungAHKBvD))","v":0},{"$f":"SUM(S$178:S197)-SUM(S$266:S285)+SUMPRODUCT((Aktivierungsjahr=Costs!$A374)*(AbschreibungAGr=Costs!S$353)*('Fixed assets'!$U$2:$U$1000=Costs!$A374)*(AbschreibungAHKBvD))","v":0},{"$f":"SUM(T$178:T197)-SUM(T$266:T285)+SUMPRODUCT((Aktivierungsjahr=Costs!$A374)*(AbschreibungAGr=Costs!T$353)*('Fixed assets'!$U$2:$U$1000=Costs!$A374)*(AbschreibungAHKBvD))","v":0},{"$f":"SUM(U$178:U197)-SUM(U$266:U285)+SUMPRODUCT((Aktivierungsjahr=Costs!$A374)*(AbschreibungAGr=Costs!U$353)*('Fixed assets'!$U$2:$U$1000=Costs!$A374)*(AbschreibungAHKBvD))","v":0},{"$f":"SUM(V$178:V197)-SUM(V$266:V285)+SUMPRODUCT((Aktivierungsjahr=Costs!$A374)*(AbschreibungAGr=Costs!V$353)*('Fixed assets'!$U$2:$U$1000=Costs!$A374)*(AbschreibungAHKBvD))","v":0},{"$f":"SUM(W$178:W197)-SUM(W$266:W285)+SUMPRODUCT((Aktivierungsjahr=Costs!$A374)*(AbschreibungAGr=Costs!W$353)*('Fixed assets'!$U$2:$U$1000=Costs!$A374)*(AbschreibungAHKBvD))","v":0},{"$f":"SUM(X$178:X197)-SUM(X$266:X285)+SUMPRODUCT((Aktivierungsjahr=Costs!$A374)*(AbschreibungAGr=Costs!X$353)*('Fixed assets'!$U$2:$U$1000=Costs!$A374)*(AbschreibungAHKBvD))","v":0},{"$f":"SUM(Y$178:Y197)-SUM(Y$266:Y285)+SUMPRODUCT((Aktivierungsjahr=Costs!$A374)*(AbschreibungAGr=Costs!Y$353)*('Fixed assets'!$U$2:$U$1000=Costs!$A374)*(AbschreibungAHKBvD))","v":0},{"$f":"SUM(Z$178:Z197)-SUM(Z$266:Z285)+SUMPRODUCT((Aktivierungsjahr=Costs!$A374)*(AbschreibungAGr=Costs!Z$353)*('Fixed assets'!$U$2:$U$1000=Costs!$A374)*(AbschreibungAHKBvD))","v":0},{"$f":"SUM(AA$178:AA197)-SUM(AA$266:AA285)+SUMPRODUCT((Aktivierungsjahr=Costs!$A374)*(AbschreibungAGr=Costs!AA$353)*('Fixed assets'!$U$2:$U$1000=Costs!$A374)*(AbschreibungAHKBvD))","v":0},{"$f":"SUM(AB$178:AB197)-SUM(AB$266:AB285)+SUMPRODUCT((Aktivierungsjahr=Costs!$A374)*(AbschreibungAGr=Costs!AB$353)*('Fixed assets'!$U$2:$U$1000=Costs!$A374)*(AbschreibungAHKBvD))","v":0},{"$f":"SUM(AC$178:AC197)-SUM(AC$266:AC285)+SUMPRODUCT((Aktivierungsjahr=Costs!$A374)*(AbschreibungAGr=Costs!AC$353)*('Fixed assets'!$U$2:$U$1000=Costs!$A374)*(AbschreibungAHKBvD))","v":0},{"$f":"SUM(AD$178:AD197)-SUM(AD$266:AD285)+SUMPRODUCT((Aktivierungsjahr=Costs!$A374)*(AbschreibungAGr=Costs!AD$353)*('Fixed assets'!$U$2:$U$1000=Costs!$A374)*(AbschreibungAHKBvD))","v":0},{"$f":"SUM(AE$178:AE197)-SUM(AE$266:AE285)+SUMPRODUCT((Aktivierungsjahr=Costs!$A374)*(AbschreibungAGr=Costs!AE$353)*('Fixed assets'!$U$2:$U$1000=Costs!$A374)*(AbschreibungAHKBvD))","v":0},{"$f":"SUM(AF$178:AF197)-SUM(AF$266:AF285)+SUMPRODUCT((Aktivierungsjahr=Costs!$A374)*(AbschreibungAGr=Costs!AF$353)*('Fixed assets'!$U$2:$U$1000=Costs!$A374)*(AbschreibungAHKBvD))","v":0},{"$f":"SUM(AG$178:AG197)-SUM(AG$266:AG285)+SUMPRODUCT((Aktivierungsjahr=Costs!$A374)*(AbschreibungAGr=Costs!AG$353)*('Fixed assets'!$U$2:$U$1000=Costs!$A374)*(AbschreibungAHKBvD))","v":0},{"$f":"SUM(AH$178:AH197)-SUM(AH$266:AH285)+SUMPRODUCT((Aktivierungsjahr=Costs!$A374)*(AbschreibungAGr=Costs!AH$353)*('Fixed assets'!$U$2:$U$1000=Costs!$A374)*(AbschreibungAHKBvD))","v":0},{"$f":"SUM(AI$178:AI197)-SUM(AI$266:AI285)+SUMPRODUCT((Aktivierungsjahr=Costs!$A374)*(AbschreibungAGr=Costs!AI$353)*('Fixed assets'!$U$2:$U$1000=Costs!$A374)*(AbschreibungAHKBvD))","v":0},{"$f":"SUM(AJ$178:AJ197)-SUM(AJ$266:AJ285)+SUMPRODUCT((Aktivierungsjahr=Costs!$A374)*(AbschreibungAGr=Costs!AJ$353)*('Fixed assets'!$U$2:$U$1000=Costs!$A374)*(AbschreibungAHKBvD))","v":777777.77777777775},{"$f":"SUM(AK$178:AK197)-SUM(AK$266:AK285)+SUMPRODUCT((Aktivierungsjahr=Costs!$A374)*(AbschreibungAGr=Costs!AK$353)*('Fixed assets'!$U$2:$U$1000=Costs!$A374)*(AbschreibungAHKBvD))","v":0},{"$f":"SUM(AL$178:AL197)-SUM(AL$266:AL285)+SUMPRODUCT((Aktivierungsjahr=Costs!$A374)*(AbschreibungAGr=Costs!AL$353)*('Fixed assets'!$U$2:$U$1000=Costs!$A374)*(AbschreibungAHKBvD))","v":0},{"$f":"SUM(AM$178:AM197)-SUM(AM$266:AM285)+SUMPRODUCT((Aktivierungsjahr=Costs!$A374)*(AbschreibungAGr=Costs!AM$353)*('Fixed assets'!$U$2:$U$1000=Costs!$A374)*(AbschreibungAHKBvD))","v":0},{"$f":"SUM(AN$178:AN197)-SUM(AN$266:AN285)+SUMPRODUCT((Aktivierungsjahr=Costs!$A374)*(AbschreibungAGr=Costs!AN$353)*('Fixed assets'!$U$2:$U$1000=Costs!$A374)*(AbschreibungAHKBvD))","v":0},{"$f":"SUM(AO$178:AO197)-SUM(AO$266:AO285)+SUMPRODUCT((Aktivierungsjahr=Costs!$A374)*(AbschreibungAGr=Costs!AO$353)*('Fixed assets'!$U$2:$U$1000=Costs!$A374)*(AbschreibungAHKBvD))","v":0},{"$f":"SUM(AP$178:AP197)-SUM(AP$266:AP285)+SUMPRODUCT((Aktivierungsjahr=Costs!$A374)*(AbschreibungAGr=Costs!AP$353)*('Fixed assets'!$U$2:$U$1000=Costs!$A374)*(AbschreibungAHKBvD))","v":0},{"$f":"SUM(AQ$178:AQ197)-SUM(AQ$266:AQ285)+SUMPRODUCT((Aktivierungsjahr=Costs!$A374)*(AbschreibungAGr=Costs!AQ$353)*('Fixed assets'!$U$2:$U$1000=Costs!$A374)*(AbschreibungAHKBvD))","v":0}]
[2036,84755555.555555552,{"$f":"SUM(C$178:C198)-SUM(C$266:C286)+SUMPRODUCT((Aktivierungsjahr=Costs!$A375)*(AbschreibungAGr=Costs!C$353)*('Fixed assets'!$U$2:$U$1000=Costs!$A375)*(AbschreibungAHKBvD))","v":0},{"$f":"SUM(D$178:D198)-SUM(D$266:D286)+SUMPRODUCT((Aktivierungsjahr=Costs!$A375)*(AbschreibungAGr=Costs!D$353)*('Fixed assets'!$U$2:$U$1000=Costs!$A375)*(AbschreibungAHKBvD))","v":0},{"$f":"SUM(E$178:E198)-SUM(E$266:E286)+SUMPRODUCT((Aktivierungsjahr=Costs!$A375)*(AbschreibungAGr=Costs!E$353)*('Fixed assets'!$U$2:$U$1000=Costs!$A375)*(AbschreibungAHKBvD))","v":0},{"$f":"SUM(F$178:F198)-SUM(F$266:F286)+SUMPRODUCT((Aktivierungsjahr=Costs!$A375)*(AbschreibungAGr=Costs!F$353)*('Fixed assets'!$U$2:$U$1000=Costs!$A375)*(AbschreibungAHKBvD))","v":0},{"$f":"SUM(G$178:G198)-SUM(G$266:G286)+SUMPRODUCT((Aktivierungsjahr=Costs!$A375)*(AbschreibungAGr=Costs!G$353)*('Fixed assets'!$U$2:$U$1000=Costs!$A375)*(AbschreibungAHKBvD))","v":0},{"$f":"SUM(H$178:H198)-SUM(H$266:H286)+SUMPRODUCT((Aktivierungsjahr=Costs!$A375)*(AbschreibungAGr=Costs!H$353)*('Fixed assets'!$U$2:$U$1000=Costs!$A375)*(AbschreibungAHKBvD))","v":0},{"$f":"SUM(I$178:I198)-SUM(I$266:I286)+SUMPRODUCT((Aktivierungsjahr=Costs!$A375)*(AbschreibungAGr=Costs!I$353)*('Fixed assets'!$U$2:$U$1000=Costs!$A375)*(AbschreibungAHKBvD))","v":0},{"$f":"SUM(J$178:J198)-SUM(J$266:J286)+SUMPRODUCT((Aktivierungsjahr=Costs!$A375)*(AbschreibungAGr=Costs!J$353)*('Fixed assets'!$U$2:$U$1000=Costs!$A375)*(AbschreibungAHKBvD))","v":0},{"$f":"SUM(K$178:K198)-SUM(K$266:K286)+SUMPRODUCT((Aktivierungsjahr=Costs!$A375)*(AbschreibungAGr=Costs!K$353)*('Fixed assets'!$U$2:$U$1000=Costs!$A375)*(AbschreibungAHKBvD))","v":0},{"$f":"SUM(L$178:L198)-SUM(L$266:L286)+SUMPRODUCT((Aktivierungsjahr=Costs!$A375)*(AbschreibungAGr=Costs!L$353)*('Fixed assets'!$U$2:$U$1000=Costs!$A375)*(AbschreibungAHKBvD))","v":0},{"$f":"SUM(M$178:M198)-SUM(M$266:M286)+SUMPRODUCT((Aktivierungsjahr=Costs!$A375)*(AbschreibungAGr=Costs!M$353)*('Fixed assets'!$U$2:$U$1000=Costs!$A375)*(AbschreibungAHKBvD))","v":0},{"$f":"SUM(N$178:N198)-SUM(N$266:N286)+SUMPRODUCT((Aktivierungsjahr=Costs!$A375)*(AbschreibungAGr=Costs!N$353)*('Fixed assets'!$U$2:$U$1000=Costs!$A375)*(AbschreibungAHKBvD))","v":0},{"$f":"SUM(O$178:O198)-SUM(O$266:O286)+SUMPRODUCT((Aktivierungsjahr=Costs!$A375)*(AbschreibungAGr=Costs!O$353)*('Fixed assets'!$U$2:$U$1000=Costs!$A375)*(AbschreibungAHKBvD))","v":0},{"$f":"SUM(P$178:P198)-SUM(P$266:P286)+SUMPRODUCT((Aktivierungsjahr=Costs!$A375)*(AbschreibungAGr=Costs!P$353)*('Fixed assets'!$U$2:$U$1000=Costs!$A375)*(AbschreibungAHKBvD))","v":84000000},{"$f":"SUM(Q$178:Q198)-SUM(Q$266:Q286)+SUMPRODUCT((Aktivierungsjahr=Costs!$A375)*(AbschreibungAGr=Costs!Q$353)*('Fixed assets'!$U$2:$U$1000=Costs!$A375)*(AbschreibungAHKBvD))","v":0},{"$f":"SUM(R$178:R198)-SUM(R$266:R286)+SUMPRODUCT((Aktivierungsjahr=Costs!$A375)*(AbschreibungAGr=Costs!R$353)*('Fixed assets'!$U$2:$U$1000=Costs!$A375)*(AbschreibungAHKBvD))","v":0},{"$f":"SUM(S$178:S198)-SUM(S$266:S286)+SUMPRODUCT((Aktivierungsjahr=Costs!$A375)*(AbschreibungAGr=Costs!S$353)*('Fixed assets'!$U$2:$U$1000=Costs!$A375)*(AbschreibungAHKBvD))","v":0},{"$f":"SUM(T$178:T198)-SUM(T$266:T286)+SUMPRODUCT((Aktivierungsjahr=Costs!$A375)*(AbschreibungAGr=Costs!T$353)*('Fixed assets'!$U$2:$U$1000=Costs!$A375)*(AbschreibungAHKBvD))","v":0},{"$f":"SUM(U$178:U198)-SUM(U$266:U286)+SUMPRODUCT((Aktivierungsjahr=Costs!$A375)*(AbschreibungAGr=Costs!U$353)*('Fixed assets'!$U$2:$U$1000=Costs!$A375)*(AbschreibungAHKBvD))","v":0},{"$f":"SUM(V$178:V198)-SUM(V$266:V286)+SUMPRODUCT((Aktivierungsjahr=Costs!$A375)*(AbschreibungAGr=Costs!V$353)*('Fixed assets'!$U$2:$U$1000=Costs!$A375)*(AbschreibungAHKBvD))","v":0},{"$f":"SUM(W$178:W198)-SUM(W$266:W286)+SUMPRODUCT((Aktivierungsjahr=Costs!$A375)*(AbschreibungAGr=Costs!W$353)*('Fixed assets'!$U$2:$U$1000=Costs!$A375)*(AbschreibungAHKBvD))","v":0},{"$f":"SUM(X$178:X198)-SUM(X$266:X286)+SUMPRODUCT((Aktivierungsjahr=Costs!$A375)*(AbschreibungAGr=Costs!X$353)*('Fixed assets'!$U$2:$U$1000=Costs!$A375)*(AbschreibungAHKBvD))","v":0},{"$f":"SUM(Y$178:Y198)-SUM(Y$266:Y286)+SUMPRODUCT((Aktivierungsjahr=Costs!$A375)*(AbschreibungAGr=Costs!Y$353)*('Fixed assets'!$U$2:$U$1000=Costs!$A375)*(AbschreibungAHKBvD))","v":0},{"$f":"SUM(Z$178:Z198)-SUM(Z$266:Z286)+SUMPRODUCT((Aktivierungsjahr=Costs!$A375)*(AbschreibungAGr=Costs!Z$353)*('Fixed assets'!$U$2:$U$1000=Costs!$A375)*(AbschreibungAHKBvD))","v":0},{"$f":"SUM(AA$178:AA198)-SUM(AA$266:AA286)+SUMPRODUCT((Aktivierungsjahr=Costs!$A375)*(AbschreibungAGr=Costs!AA$353)*('Fixed assets'!$U$2:$U$1000=Costs!$A375)*(AbschreibungAHKBvD))","v":0},{"$f":"SUM(AB$178:AB198)-SUM(AB$266:AB286)+SUMPRODUCT((Aktivierungsjahr=Costs!$A375)*(AbschreibungAGr=Costs!AB$353)*('Fixed assets'!$U$2:$U$1000=Costs!$A375)*(AbschreibungAHKBvD))","v":0},{"$f":"SUM(AC$178:AC198)-SUM(AC$266:AC286)+SUMPRODUCT((Aktivierungsjahr=Costs!$A375)*(AbschreibungAGr=Costs!AC$353)*('Fixed assets'!$U$2:$U$1000=Costs!$A375)*(AbschreibungAHKBvD))","v":0},{"$f":"SUM(AD$178:AD198)-SUM(AD$266:AD286)+SUMPRODUCT((Aktivierungsjahr=Costs!$A375)*(AbschreibungAGr=Costs!AD$353)*('Fixed assets'!$U$2:$U$1000=Costs!$A375)*(AbschreibungAHKBvD))","v":0},{"$f":"SUM(AE$178:AE198)-SUM(AE$266:AE286)+SUMPRODUCT((Aktivierungsjahr=Costs!$A375)*(AbschreibungAGr=Costs!AE$353)*('Fixed assets'!$U$2:$U$1000=Costs!$A375)*(AbschreibungAHKBvD))","v":0},{"$f":"SUM(AF$178:AF198)-SUM(AF$266:AF286)+SUMPRODUCT((Aktivierungsjahr=Costs!$A375)*(AbschreibungAGr=Costs!AF$353)*('Fixed assets'!$U$2:$U$1000=Costs!$A375)*(AbschreibungAHKBvD))","v":0},{"$f":"SUM(AG$178:AG198)-SUM(AG$266:AG286)+SUMPRODUCT((Aktivierungsjahr=Costs!$A375)*(AbschreibungAGr=Costs!AG$353)*('Fixed assets'!$U$2:$U$1000=Costs!$A375)*(AbschreibungAHKBvD))","v":0},{"$f":"SUM(AH$178:AH198)-SUM(AH$266:AH286)+SUMPRODUCT((Aktivierungsjahr=Costs!$A375)*(AbschreibungAGr=Costs!AH$353)*('Fixed assets'!$U$2:$U$1000=Costs!$A375)*(AbschreibungAHKBvD))","v":0},{"$f":"SUM(AI$178:AI198)-SUM(AI$266:AI286)+SUMPRODUCT((Aktivierungsjahr=Costs!$A375)*(AbschreibungAGr=Costs!AI$353)*('Fixed assets'!$U$2:$U$1000=Costs!$A375)*(AbschreibungAHKBvD))","v":0},{"$f":"SUM(AJ$178:AJ198)-SUM(AJ$266:AJ286)+SUMPRODUCT((Aktivierungsjahr=Costs!$A375)*(AbschreibungAGr=Costs!AJ$353)*('Fixed assets'!$U$2:$U$1000=Costs!$A375)*(AbschreibungAHKBvD))","v":755555.5555555555},{"$f":"SUM(AK$178:AK198)-SUM(AK$266:AK286)+SUMPRODUCT((Aktivierungsjahr=Costs!$A375)*(AbschreibungAGr=Costs!AK$353)*('Fixed assets'!$U$2:$U$1000=Costs!$A375)*(AbschreibungAHKBvD))","v":0},{"$f":"SUM(AL$178:AL198)-SUM(AL$266:AL286)+SUMPRODUCT((Aktivierungsjahr=Costs!$A375)*(AbschreibungAGr=Costs!AL$353)*('Fixed assets'!$U$2:$U$1000=Costs!$A375)*(AbschreibungAHKBvD))","v":0},{"$f":"SUM(AM$178:AM198)-SUM(AM$266:AM286)+SUMPRODUCT((Aktivierungsjahr=Costs!$A375)*(AbschreibungAGr=Costs!AM$353)*('Fixed assets'!$U$2:$U$1000=Costs!$A375)*(AbschreibungAHKBvD))","v":0},{"$f":"SUM(AN$178:AN198)-SUM(AN$266:AN286)+SUMPRODUCT((Aktivierungsjahr=Costs!$A375)*(AbschreibungAGr=Costs!AN$353)*('Fixed assets'!$U$2:$U$1000=Costs!$A375)*(AbschreibungAHKBvD))","v":0},{"$f":"SUM(AO$178:AO198)-SUM(AO$266:AO286)+SUMPRODUCT((Aktivierungsjahr=Costs!$A375)*(AbschreibungAGr=Costs!AO$353)*('Fixed assets'!$U$2:$U$1000=Costs!$A375)*(AbschreibungAHKBvD))","v":0},{"$f":"SUM(AP$178:AP198)-SUM(AP$266:AP286)+SUMPRODUCT((Aktivierungsjahr=Costs!$A375)*(AbschreibungAGr=Costs!AP$353)*('Fixed assets'!$U$2:$U$1000=Costs!$A375)*(AbschreibungAHKBvD))","v":0},{"$f":"SUM(AQ$178:AQ198)-SUM(AQ$266:AQ286)+SUMPRODUCT((Aktivierungsjahr=Costs!$A375)*(AbschreibungAGr=Costs!AQ$353)*('Fixed assets'!$U$2:$U$1000=Costs!$A375)*(AbschreibungAHKBvD))","v":0}]
[2037,78733333.333333328,{"$f":"SUM(C$178:C199)-SUM(C$266:C287)+SUMPRODUCT((Aktivierungsjahr=Costs!$A376)*(AbschreibungAGr=Costs!C$353)*('Fixed assets'!$U$2:$U$1000=Costs!$A376)*(AbschreibungAHKBvD))","v":0},{"$f":"SUM(D$178:D199)-SUM(D$266:D287)+SUMPRODUCT((Aktivierungsjahr=Costs!$A376)*(AbschreibungAGr=Costs!D$353)*('Fixed assets'!$U$2:$U$1000=Costs!$A376)*(AbschreibungAHKBvD))","v":0},{"$f":"SUM(E$178:E199)-SUM(E$266:E287)+SUMPRODUCT((Aktivierungsjahr=Costs!$A376)*(AbschreibungAGr=Costs!E$353)*('Fixed assets'!$U$2:$U$1000=Costs!$A376)*(AbschreibungAHKBvD))","v":0},{"$f":"SUM(F$178:F199)-SUM(F$266:F287)+SUMPRODUCT((Aktivierungsjahr=Costs!$A376)*(AbschreibungAGr=Costs!F$353)*('Fixed assets'!$U$2:$U$1000=Costs!$A376)*(AbschreibungAHKBvD))","v":0},{"$f":"SUM(G$178:G199)-SUM(G$266:G287)+SUMPRODUCT((Aktivierungsjahr=Costs!$A376)*(AbschreibungAGr=Costs!G$353)*('Fixed assets'!$U$2:$U$1000=Costs!$A376)*(AbschreibungAHKBvD))","v":0},{"$f":"SUM(H$178:H199)-SUM(H$266:H287)+SUMPRODUCT((Aktivierungsjahr=Costs!$A376)*(AbschreibungAGr=Costs!H$353)*('Fixed assets'!$U$2:$U$1000=Costs!$A376)*(AbschreibungAHKBvD))","v":0},{"$f":"SUM(I$178:I199)-SUM(I$266:I287)+SUMPRODUCT((Aktivierungsjahr=Costs!$A376)*(AbschreibungAGr=Costs!I$353)*('Fixed assets'!$U$2:$U$1000=Costs!$A376)*(AbschreibungAHKBvD))","v":0},{"$f":"SUM(J$178:J199)-SUM(J$266:J287)+SUMPRODUCT((Aktivierungsjahr=Costs!$A376)*(AbschreibungAGr=Costs!J$353)*('Fixed assets'!$U$2:$U$1000=Costs!$A376)*(AbschreibungAHKBvD))","v":0},{"$f":"SUM(K$178:K199)-SUM(K$266:K287)+SUMPRODUCT((Aktivierungsjahr=Costs!$A376)*(AbschreibungAGr=Costs!K$353)*('Fixed assets'!$U$2:$U$1000=Costs!$A376)*(AbschreibungAHKBvD))","v":0},{"$f":"SUM(L$178:L199)-SUM(L$266:L287)+SUMPRODUCT((Aktivierungsjahr=Costs!$A376)*(AbschreibungAGr=Costs!L$353)*('Fixed assets'!$U$2:$U$1000=Costs!$A376)*(AbschreibungAHKBvD))","v":0},{"$f":"SUM(M$178:M199)-SUM(M$266:M287)+SUMPRODUCT((Aktivierungsjahr=Costs!$A376)*(AbschreibungAGr=Costs!M$353)*('Fixed assets'!$U$2:$U$1000=Costs!$A376)*(AbschreibungAHKBvD))","v":0},{"$f":"SUM(N$178:N199)-SUM(N$266:N287)+SUMPRODUCT((Aktivierungsjahr=Costs!$A376)*(AbschreibungAGr=Costs!N$353)*('Fixed assets'!$U$2:$U$1000=Costs!$A376)*(AbschreibungAHKBvD))","v":0},{"$f":"SUM(O$178:O199)-SUM(O$266:O287)+SUMPRODUCT((Aktivierungsjahr=Costs!$A376)*(AbschreibungAGr=Costs!O$353)*('Fixed assets'!$U$2:$U$1000=Costs!$A376)*(AbschreibungAHKBvD))","v":0},{"$f":"SUM(P$178:P199)-SUM(P$266:P287)+SUMPRODUCT((Aktivierungsjahr=Costs!$A376)*(AbschreibungAGr=Costs!P$353)*('Fixed assets'!$U$2:$U$1000=Costs!$A376)*(AbschreibungAHKBvD))","v":78000000},{"$f":"SUM(Q$178:Q199)-SUM(Q$266:Q287)+SUMPRODUCT((Aktivierungsjahr=Costs!$A376)*(AbschreibungAGr=Costs!Q$353)*('Fixed assets'!$U$2:$U$1000=Costs!$A376)*(AbschreibungAHKBvD))","v":0},{"$f":"SUM(R$178:R199)-SUM(R$266:R287)+SUMPRODUCT((Aktivierungsjahr=Costs!$A376)*(AbschreibungAGr=Costs!R$353)*('Fixed assets'!$U$2:$U$1000=Costs!$A376)*(AbschreibungAHKBvD))","v":0},{"$f":"SUM(S$178:S199)-SUM(S$266:S287)+SUMPRODUCT((Aktivierungsjahr=Costs!$A376)*(AbschreibungAGr=Costs!S$353)*('Fixed assets'!$U$2:$U$1000=Costs!$A376)*(AbschreibungAHKBvD))","v":0},{"$f":"SUM(T$178:T199)-SUM(T$266:T287)+SUMPRODUCT((Aktivierungsjahr=Costs!$A376)*(AbschreibungAGr=Costs!T$353)*('Fixed assets'!$U$2:$U$1000=Costs!$A376)*(AbschreibungAHKBvD))","v":0},{"$f":"SUM(U$178:U199)-SUM(U$266:U287)+SUMPRODUCT((Aktivierungsjahr=Costs!$A376)*(AbschreibungAGr=Costs!U$353)*('Fixed assets'!$U$2:$U$1000=Costs!$A376)*(AbschreibungAHKBvD))","v":0},{"$f":"SUM(V$178:V199)-SUM(V$266:V287)+SUMPRODUCT((Aktivierungsjahr=Costs!$A376)*(AbschreibungAGr=Costs!V$353)*('Fixed assets'!$U$2:$U$1000=Costs!$A376)*(AbschreibungAHKBvD))","v":0},{"$f":"SUM(W$178:W199)-SUM(W$266:W287)+SUMPRODUCT((Aktivierungsjahr=Costs!$A376)*(AbschreibungAGr=Costs!W$353)*('Fixed assets'!$U$2:$U$1000=Costs!$A376)*(AbschreibungAHKBvD))","v":0},{"$f":"SUM(X$178:X199)-SUM(X$266:X287)+SUMPRODUCT((Aktivierungsjahr=Costs!$A376)*(AbschreibungAGr=Costs!X$353)*('Fixed assets'!$U$2:$U$1000=Costs!$A376)*(AbschreibungAHKBvD))","v":0},{"$f":"SUM(Y$178:Y199)-SUM(Y$266:Y287)+SUMPRODUCT((Aktivierungsjahr=Costs!$A376)*(AbschreibungAGr=Costs!Y$353)*('Fixed assets'!$U$2:$U$1000=Costs!$A376)*(AbschreibungAHKBvD))","v":0},{"$f":"SUM(Z$178:Z199)-SUM(Z$266:Z287)+SUMPRODUCT((Aktivierungsjahr=Costs!$A376)*(AbschreibungAGr=Costs!Z$353)*('Fixed assets'!$U$2:$U$1000=Costs!$A376)*(AbschreibungAHKBvD))","v":0},{"$f":"SUM(AA$178:AA199)-SUM(AA$266:AA287)+SUMPRODUCT((Aktivierungsjahr=Costs!$A376)*(AbschreibungAGr=Costs!AA$353)*('Fixed assets'!$U$2:$U$1000=Costs!$A376)*(AbschreibungAHKBvD))","v":0},{"$f":"SUM(AB$178:AB199)-SUM(AB$266:AB287)+SUMPRODUCT((Aktivierungsjahr=Costs!$A376)*(AbschreibungAGr=Costs!AB$353)*('Fixed assets'!$U$2:$U$1000=Costs!$A376)*(AbschreibungAHKBvD))","v":0},{"$f":"SUM(AC$178:AC199)-SUM(AC$266:AC287)+SUMPRODUCT((Aktivierungsjahr=Costs!$A376)*(AbschreibungAGr=Costs!AC$353)*('Fixed assets'!$U$2:$U$1000=Costs!$A376)*(AbschreibungAHKBvD))","v":0},{"$f":"SUM(AD$178:AD199)-SUM(AD$266:AD287)+SUMPRODUCT((Aktivierungsjahr=Costs!$A376)*(AbschreibungAGr=Costs!AD$353)*('Fixed assets'!$U$2:$U$1000=Costs!$A376)*(AbschreibungAHKBvD))","v":0},{"$f":"SUM(AE$178:AE199)-SUM(AE$266:AE287)+SUMPRODUCT((Aktivierungsjahr=Costs!$A376)*(AbschreibungAGr=Costs!AE$353)*('Fixed assets'!$U$2:$U$1000=Costs!$A376)*(AbschreibungAHKBvD))","v":0},{"$f":"SUM(AF$178:AF199)-SUM(AF$266:AF287)+SUMPRODUCT((Aktivierungsjahr=Costs!$A376)*(AbschreibungAGr=Costs!AF$353)*('Fixed assets'!$U$2:$U$1000=Costs!$A376)*(AbschreibungAHKBvD))","v":0},{"$f":"SUM(AG$178:AG199)-SUM(AG$266:AG287)+SUMPRODUCT((Aktivierungsjahr=Costs!$A376)*(AbschreibungAGr=Costs!AG$353)*('Fixed assets'!$U$2:$U$1000=Costs!$A376)*(AbschreibungAHKBvD))","v":0},{"$f":"SUM(AH$178:AH199)-SUM(AH$266:AH287)+SUMPRODUCT((Aktivierungsjahr=Costs!$A376)*(AbschreibungAGr=Costs!AH$353)*('Fixed assets'!$U$2:$U$1000=Costs!$A376)*(AbschreibungAHKBvD))","v":0},{"$f":"SUM(AI$178:AI199)-SUM(AI$266:AI287)+SUMPRODUCT((Aktivierungsjahr=Costs!$A376)*(AbschreibungAGr=Costs!AI$353)*('Fixed assets'!$U$2:$U$1000=Costs!$A376)*(AbschreibungAHKBvD))","v":0},{"$f":"SUM(AJ$178:AJ199)-SUM(AJ$266:AJ287)+SUMPRODUCT((Aktivierungsjahr=Costs!$A376)*(AbschreibungAGr=Costs!AJ$353)*('Fixed assets'!$U$2:$U$1000=Costs!$A376)*(AbschreibungAHKBvD))","v":733333.33333333326},{"$f":"SUM(AK$178:AK199)-SUM(AK$266:AK287)+SUMPRODUCT((Aktivierungsjahr=Costs!$A376)*(AbschreibungAGr=Costs!AK$353)*('Fixed assets'!$U$2:$U$1000=Costs!$A376)*(AbschreibungAHKBvD))","v":0},{"$f":"SUM(AL$178:AL199)-SUM(AL$266:AL287)+SUMPRODUCT((Aktivierungsjahr=Costs!$A376)*(AbschreibungAGr=Costs!AL$353)*('Fixed assets'!$U$2:$U$1000=Costs!$A376)*(AbschreibungAHKBvD))","v":0},{"$f":"SUM(AM$178:AM199)-SUM(AM$266:AM287)+SUMPRODUCT((Aktivierungsjahr=Costs!$A376)*(AbschreibungAGr=Costs!AM$353)*('Fixed assets'!$U$2:$U$1000=Costs!$A376)*(AbschreibungAHKBvD))","v":0},{"$f":"SUM(AN$178:AN199)-SUM(AN$266:AN287)+SUMPRODUCT((Aktivierungsjahr=Costs!$A376)*(AbschreibungAGr=Costs!AN$353)*('Fixed assets'!$U$2:$U$1000=Costs!$A376)*(AbschreibungAHKBvD))","v":0},{"$f":"SUM(AO$178:AO199)-SUM(AO$266:AO287)+SUMPRODUCT((Aktivierungsjahr=Costs!$A376)*(AbschreibungAGr=Costs!AO$353)*('Fixed assets'!$U$2:$U$1000=Costs!$A376)*(AbschreibungAHKBvD))","v":0},{"$f":"SUM(AP$178:AP199)-SUM(AP$266:AP287)+SUMPRODUCT((Aktivierungsjahr=Costs!$A376)*(AbschreibungAGr=Costs!AP$353)*('Fixed assets'!$U$2:$U$1000=Costs!$A376)*(AbschreibungAHKBvD))","v":0},{"$f":"SUM(AQ$178:AQ199)-SUM(AQ$266:AQ287)+SUMPRODUCT((Aktivierungsjahr=Costs!$A376)*(AbschreibungAGr=Costs!AQ$353)*('Fixed assets'!$U$2:$U$1000=Costs!$A376)*(AbschreibungAHKBvD))","v":0}]
[2038,72711111.111111104,{"$f":"SUM(C$178:C200)-SUM(C$266:C288)+SUMPRODUCT((Aktivierungsjahr=Costs!$A377)*(AbschreibungAGr=Costs!C$353)*('Fixed assets'!$U$2:$U$1000=Costs!$A377)*(AbschreibungAHKBvD))","v":0},{"$f":"SUM(D$178:D200)-SUM(D$266:D288)+SUMPRODUCT((Aktivierungsjahr=Costs!$A377)*(AbschreibungAGr=Costs!D$353)*('Fixed assets'!$U$2:$U$1000=Costs!$A377)*(AbschreibungAHKBvD))","v":0},{"$f":"SUM(E$178:E200)-SUM(E$266:E288)+SUMPRODUCT((Aktivierungsjahr=Costs!$A377)*(AbschreibungAGr=Costs!E$353)*('Fixed assets'!$U$2:$U$1000=Costs!$A377)*(AbschreibungAHKBvD))","v":0},{"$f":"SUM(F$178:F200)-SUM(F$266:F288)+SUMPRODUCT((Aktivierungsjahr=Costs!$A377)*(AbschreibungAGr=Costs!F$353)*('Fixed assets'!$U$2:$U$1000=Costs!$A377)*(AbschreibungAHKBvD))","v":0},{"$f":"SUM(G$178:G200)-SUM(G$266:G288)+SUMPRODUCT((Aktivierungsjahr=Costs!$A377)*(AbschreibungAGr=Costs!G$353)*('Fixed assets'!$U$2:$U$1000=Costs!$A377)*(AbschreibungAHKBvD))","v":0},{"$f":"SUM(H$178:H200)-SUM(H$266:H288)+SUMPRODUCT((Aktivierungsjahr=Costs!$A377)*(AbschreibungAGr=Costs!H$353)*('Fixed assets'!$U$2:$U$1000=Costs!$A377)*(AbschreibungAHKBvD))","v":0},{"$f":"SUM(I$178:I200)-SUM(I$266:I288)+SUMPRODUCT((Aktivierungsjahr=Costs!$A377)*(AbschreibungAGr=Costs!I$353)*('Fixed assets'!$U$2:$U$1000=Costs!$A377)*(AbschreibungAHKBvD))","v":0},{"$f":"SUM(J$178:J200)-SUM(J$266:J288)+SUMPRODUCT((Aktivierungsjahr=Costs!$A377)*(AbschreibungAGr=Costs!J$353)*('Fixed assets'!$U$2:$U$1000=Costs!$A377)*(AbschreibungAHKBvD))","v":0},{"$f":"SUM(K$178:K200)-SUM(K$266:K288)+SUMPRODUCT((Aktivierungsjahr=Costs!$A377)*(AbschreibungAGr=Costs!K$353)*('Fixed assets'!$U$2:$U$1000=Costs!$A377)*(AbschreibungAHKBvD))","v":0},{"$f":"SUM(L$178:L200)-SUM(L$266:L288)+SUMPRODUCT((Aktivierungsjahr=Costs!$A377)*(AbschreibungAGr=Costs!L$353)*('Fixed assets'!$U$2:$U$1000=Costs!$A377)*(AbschreibungAHKBvD))","v":0},{"$f":"SUM(M$178:M200)-SUM(M$266:M288)+SUMPRODUCT((Aktivierungsjahr=Costs!$A377)*(AbschreibungAGr=Costs!M$353)*('Fixed assets'!$U$2:$U$1000=Costs!$A377)*(AbschreibungAHKBvD))","v":0},{"$f":"SUM(N$178:N200)-SUM(N$266:N288)+SUMPRODUCT((Aktivierungsjahr=Costs!$A377)*(AbschreibungAGr=Costs!N$353)*('Fixed assets'!$U$2:$U$1000=Costs!$A377)*(AbschreibungAHKBvD))","v":0},{"$f":"SUM(O$178:O200)-SUM(O$266:O288)+SUMPRODUCT((Aktivierungsjahr=Costs!$A377)*(AbschreibungAGr=Costs!O$353)*('Fixed assets'!$U$2:$U$1000=Costs!$A377)*(AbschreibungAHKBvD))","v":0},{"$f":"SUM(P$178:P200)-SUM(P$266:P288)+SUMPRODUCT((Aktivierungsjahr=Costs!$A377)*(AbschreibungAGr=Costs!P$353)*('Fixed assets'!$U$2:$U$1000=Costs!$A377)*(AbschreibungAHKBvD))","v":72000000},{"$f":"SUM(Q$178:Q200)-SUM(Q$266:Q288)+SUMPRODUCT((Aktivierungsjahr=Costs!$A377)*(AbschreibungAGr=Costs!Q$353)*('Fixed assets'!$U$2:$U$1000=Costs!$A377)*(AbschreibungAHKBvD))","v":0},{"$f":"SUM(R$178:R200)-SUM(R$266:R288)+SUMPRODUCT((Aktivierungsjahr=Costs!$A377)*(AbschreibungAGr=Costs!R$353)*('Fixed assets'!$U$2:$U$1000=Costs!$A377)*(AbschreibungAHKBvD))","v":0},{"$f":"SUM(S$178:S200)-SUM(S$266:S288)+SUMPRODUCT((Aktivierungsjahr=Costs!$A377)*(AbschreibungAGr=Costs!S$353)*('Fixed assets'!$U$2:$U$1000=Costs!$A377)*(AbschreibungAHKBvD))","v":0},{"$f":"SUM(T$178:T200)-SUM(T$266:T288)+SUMPRODUCT((Aktivierungsjahr=Costs!$A377)*(AbschreibungAGr=Costs!T$353)*('Fixed assets'!$U$2:$U$1000=Costs!$A377)*(AbschreibungAHKBvD))","v":0},{"$f":"SUM(U$178:U200)-SUM(U$266:U288)+SUMPRODUCT((Aktivierungsjahr=Costs!$A377)*(AbschreibungAGr=Costs!U$353)*('Fixed assets'!$U$2:$U$1000=Costs!$A377)*(AbschreibungAHKBvD))","v":0},{"$f":"SUM(V$178:V200)-SUM(V$266:V288)+SUMPRODUCT((Aktivierungsjahr=Costs!$A377)*(AbschreibungAGr=Costs!V$353)*('Fixed assets'!$U$2:$U$1000=Costs!$A377)*(AbschreibungAHKBvD))","v":0},{"$f":"SUM(W$178:W200)-SUM(W$266:W288)+SUMPRODUCT((Aktivierungsjahr=Costs!$A377)*(AbschreibungAGr=Costs!W$353)*('Fixed assets'!$U$2:$U$1000=Costs!$A377)*(AbschreibungAHKBvD))","v":0},{"$f":"SUM(X$178:X200)-SUM(X$266:X288)+SUMPRODUCT((Aktivierungsjahr=Costs!$A377)*(AbschreibungAGr=Costs!X$353)*('Fixed assets'!$U$2:$U$1000=Costs!$A377)*(AbschreibungAHKBvD))","v":0},{"$f":"SUM(Y$178:Y200)-SUM(Y$266:Y288)+SUMPRODUCT((Aktivierungsjahr=Costs!$A377)*(AbschreibungAGr=Costs!Y$353)*('Fixed assets'!$U$2:$U$1000=Costs!$A377)*(AbschreibungAHKBvD))","v":0},{"$f":"SUM(Z$178:Z200)-SUM(Z$266:Z288)+SUMPRODUCT((Aktivierungsjahr=Costs!$A377)*(AbschreibungAGr=Costs!Z$353)*('Fixed assets'!$U$2:$U$1000=Costs!$A377)*(AbschreibungAHKBvD))","v":0},{"$f":"SUM(AA$178:AA200)-SUM(AA$266:AA288)+SUMPRODUCT((Aktivierungsjahr=Costs!$A377)*(AbschreibungAGr=Costs!AA$353)*('Fixed assets'!$U$2:$U$1000=Costs!$A377)*(AbschreibungAHKBvD))","v":0},{"$f":"SUM(AB$178:AB200)-SUM(AB$266:AB288)+SUMPRODUCT((Aktivierungsjahr=Costs!$A377)*(AbschreibungAGr=Costs!AB$353)*('Fixed assets'!$U$2:$U$1000=Costs!$A377)*(AbschreibungAHKBvD))","v":0},{"$f":"SUM(AC$178:AC200)-SUM(AC$266:AC288)+SUMPRODUCT((Aktivierungsjahr=Costs!$A377)*(AbschreibungAGr=Costs!AC$353)*('Fixed assets'!$U$2:$U$1000=Costs!$A377)*(AbschreibungAHKBvD))","v":0},{"$f":"SUM(AD$178:AD200)-SUM(AD$266:AD288)+SUMPRODUCT((Aktivierungsjahr=Costs!$A377)*(AbschreibungAGr=Costs!AD$353)*('Fixed assets'!$U$2:$U$1000=Costs!$A377)*(AbschreibungAHKBvD))","v":0},{"$f":"SUM(AE$178:AE200)-SUM(AE$266:AE288)+SUMPRODUCT((Aktivierungsjahr=Costs!$A377)*(AbschreibungAGr=Costs!AE$353)*('Fixed assets'!$U$2:$U$1000=Costs!$A377)*(AbschreibungAHKBvD))","v":0},{"$f":"SUM(AF$178:AF200)-SUM(AF$266:AF288)+SUMPRODUCT((Aktivierungsjahr=Costs!$A377)*(AbschreibungAGr=Costs!AF$353)*('Fixed assets'!$U$2:$U$1000=Costs!$A377)*(AbschreibungAHKBvD))","v":0},{"$f":"SUM(AG$178:AG200)-SUM(AG$266:AG288)+SUMPRODUCT((Aktivierungsjahr=Costs!$A377)*(AbschreibungAGr=Costs!AG$353)*('Fixed assets'!$U$2:$U$1000=Costs!$A377)*(AbschreibungAHKBvD))","v":0},{"$f":"SUM(AH$178:AH200)-SUM(AH$266:AH288)+SUMPRODUCT((Aktivierungsjahr=Costs!$A377)*(AbschreibungAGr=Costs!AH$353)*('Fixed assets'!$U$2:$U$1000=Costs!$A377)*(AbschreibungAHKBvD))","v":0},{"$f":"SUM(AI$178:AI200)-SUM(AI$266:AI288)+SUMPRODUCT((Aktivierungsjahr=Costs!$A377)*(AbschreibungAGr=Costs!AI$353)*('Fixed assets'!$U$2:$U$1000=Costs!$A377)*(AbschreibungAHKBvD))","v":0},{"$f":"SUM(AJ$178:AJ200)-SUM(AJ$266:AJ288)+SUMPRODUCT((Aktivierungsjahr=Costs!$A377)*(AbschreibungAGr=Costs!AJ$353)*('Fixed assets'!$U$2:$U$1000=Costs!$A377)*(AbschreibungAHKBvD))","v":711111.11111111101},{"$f":"SUM(AK$178:AK200)-SUM(AK$266:AK288)+SUMPRODUCT((Aktivierungsjahr=Costs!$A377)*(AbschreibungAGr=Costs!AK$353)*('Fixed assets'!$U$2:$U$1000=Costs!$A377)*(AbschreibungAHKBvD))","v":0},{"$f":"SUM(AL$178:AL200)-SUM(AL$266:AL288)+SUMPRODUCT((Aktivierungsjahr=Costs!$A377)*(AbschreibungAGr=Costs!AL$353)*('Fixed assets'!$U$2:$U$1000=Costs!$A377)*(AbschreibungAHKBvD))","v":0},{"$f":"SUM(AM$178:AM200)-SUM(AM$266:AM288)+SUMPRODUCT((Aktivierungsjahr=Costs!$A377)*(AbschreibungAGr=Costs!AM$353)*('Fixed assets'!$U$2:$U$1000=Costs!$A377)*(AbschreibungAHKBvD))","v":0},{"$f":"SUM(AN$178:AN200)-SUM(AN$266:AN288)+SUMPRODUCT((Aktivierungsjahr=Costs!$A377)*(AbschreibungAGr=Costs!AN$353)*('Fixed assets'!$U$2:$U$1000=Costs!$A377)*(AbschreibungAHKBvD))","v":0},{"$f":"SUM(AO$178:AO200)-SUM(AO$266:AO288)+SUMPRODUCT((Aktivierungsjahr=Costs!$A377)*(AbschreibungAGr=Costs!AO$353)*('Fixed assets'!$U$2:$U$1000=Costs!$A377)*(AbschreibungAHKBvD))","v":0},{"$f":"SUM(AP$178:AP200)-SUM(AP$266:AP288)+SUMPRODUCT((Aktivierungsjahr=Costs!$A377)*(AbschreibungAGr=Costs!AP$353)*('Fixed assets'!$U$2:$U$1000=Costs!$A377)*(AbschreibungAHKBvD))","v":0},{"$f":"SUM(AQ$178:AQ200)-SUM(AQ$266:AQ288)+SUMPRODUCT((Aktivierungsjahr=Costs!$A377)*(AbschreibungAGr=Costs!AQ$353)*('Fixed assets'!$U$2:$U$1000=Costs!$A377)*(AbschreibungAHKBvD))","v":0}]
[2039,66688888.888888888,{"$f":"SUM(C$178:C201)-SUM(C$266:C289)+SUMPRODUCT((Aktivierungsjahr=Costs!$A378)*(AbschreibungAGr=Costs!C$353)*('Fixed assets'!$U$2:$U$1000=Costs!$A378)*(AbschreibungAHKBvD))","v":0},{"$f":"SUM(D$178:D201)-SUM(D$266:D289)+SUMPRODUCT((Aktivierungsjahr=Costs!$A378)*(AbschreibungAGr=Costs!D$353)*('Fixed assets'!$U$2:$U$1000=Costs!$A378)*(AbschreibungAHKBvD))","v":0},{"$f":"SUM(E$178:E201)-SUM(E$266:E289)+SUMPRODUCT((Aktivierungsjahr=Costs!$A378)*(AbschreibungAGr=Costs!E$353)*('Fixed assets'!$U$2:$U$1000=Costs!$A378)*(AbschreibungAHKBvD))","v":0},{"$f":"SUM(F$178:F201)-SUM(F$266:F289)+SUMPRODUCT((Aktivierungsjahr=Costs!$A378)*(AbschreibungAGr=Costs!F$353)*('Fixed assets'!$U$2:$U$1000=Costs!$A378)*(AbschreibungAHKBvD))","v":0},{"$f":"SUM(G$178:G201)-SUM(G$266:G289)+SUMPRODUCT((Aktivierungsjahr=Costs!$A378)*(AbschreibungAGr=Costs!G$353)*('Fixed assets'!$U$2:$U$1000=Costs!$A378)*(AbschreibungAHKBvD))","v":0},{"$f":"SUM(H$178:H201)-SUM(H$266:H289)+SUMPRODUCT((Aktivierungsjahr=Costs!$A378)*(AbschreibungAGr=Costs!H$353)*('Fixed assets'!$U$2:$U$1000=Costs!$A378)*(AbschreibungAHKBvD))","v":0},{"$f":"SUM(I$178:I201)-SUM(I$266:I289)+SUMPRODUCT((Aktivierungsjahr=Costs!$A378)*(AbschreibungAGr=Costs!I$353)*('Fixed assets'!$U$2:$U$1000=Costs!$A378)*(AbschreibungAHKBvD))","v":0},{"$f":"SUM(J$178:J201)-SUM(J$266:J289)+SUMPRODUCT((Aktivierungsjahr=Costs!$A378)*(AbschreibungAGr=Costs!J$353)*('Fixed assets'!$U$2:$U$1000=Costs!$A378)*(AbschreibungAHKBvD))","v":0},{"$f":"SUM(K$178:K201)-SUM(K$266:K289)+SUMPRODUCT((Aktivierungsjahr=Costs!$A378)*(AbschreibungAGr=Costs!K$353)*('Fixed assets'!$U$2:$U$1000=Costs!$A378)*(AbschreibungAHKBvD))","v":0},{"$f":"SUM(L$178:L201)-SUM(L$266:L289)+SUMPRODUCT((Aktivierungsjahr=Costs!$A378)*(AbschreibungAGr=Costs!L$353)*('Fixed assets'!$U$2:$U$1000=Costs!$A378)*(AbschreibungAHKBvD))","v":0},{"$f":"SUM(M$178:M201)-SUM(M$266:M289)+SUMPRODUCT((Aktivierungsjahr=Costs!$A378)*(AbschreibungAGr=Costs!M$353)*('Fixed assets'!$U$2:$U$1000=Costs!$A378)*(AbschreibungAHKBvD))","v":0},{"$f":"SUM(N$178:N201)-SUM(N$266:N289)+SUMPRODUCT((Aktivierungsjahr=Costs!$A378)*(AbschreibungAGr=Costs!N$353)*('Fixed assets'!$U$2:$U$1000=Costs!$A378)*(AbschreibungAHKBvD))","v":0},{"$f":"SUM(O$178:O201)-SUM(O$266:O289)+SUMPRODUCT((Aktivierungsjahr=Costs!$A378)*(AbschreibungAGr=Costs!O$353)*('Fixed assets'!$U$2:$U$1000=Costs!$A378)*(AbschreibungAHKBvD))","v":0},{"$f":"SUM(P$178:P201)-SUM(P$266:P289)+SUMPRODUCT((Aktivierungsjahr=Costs!$A378)*(AbschreibungAGr=Costs!P$353)*('Fixed assets'!$U$2:$U$1000=Costs!$A378)*(AbschreibungAHKBvD))","v":66000000},{"$f":"SUM(Q$178:Q201)-SUM(Q$266:Q289)+SUMPRODUCT((Aktivierungsjahr=Costs!$A378)*(AbschreibungAGr=Costs!Q$353)*('Fixed assets'!$U$2:$U$1000=Costs!$A378)*(AbschreibungAHKBvD))","v":0},{"$f":"SUM(R$178:R201)-SUM(R$266:R289)+SUMPRODUCT((Aktivierungsjahr=Costs!$A378)*(AbschreibungAGr=Costs!R$353)*('Fixed assets'!$U$2:$U$1000=Costs!$A378)*(AbschreibungAHKBvD))","v":0},{"$f":"SUM(S$178:S201)-SUM(S$266:S289)+SUMPRODUCT((Aktivierungsjahr=Costs!$A378)*(AbschreibungAGr=Costs!S$353)*('Fixed assets'!$U$2:$U$1000=Costs!$A378)*(AbschreibungAHKBvD))","v":0},{"$f":"SUM(T$178:T201)-SUM(T$266:T289)+SUMPRODUCT((Aktivierungsjahr=Costs!$A378)*(AbschreibungAGr=Costs!T$353)*('Fixed assets'!$U$2:$U$1000=Costs!$A378)*(AbschreibungAHKBvD))","v":0},{"$f":"SUM(U$178:U201)-SUM(U$266:U289)+SUMPRODUCT((Aktivierungsjahr=Costs!$A378)*(AbschreibungAGr=Costs!U$353)*('Fixed assets'!$U$2:$U$1000=Costs!$A378)*(AbschreibungAHKBvD))","v":0},{"$f":"SUM(V$178:V201)-SUM(V$266:V289)+SUMPRODUCT((Aktivierungsjahr=Costs!$A378)*(AbschreibungAGr=Costs!V$353)*('Fixed assets'!$U$2:$U$1000=Costs!$A378)*(AbschreibungAHKBvD))","v":0},{"$f":"SUM(W$178:W201)-SUM(W$266:W289)+SUMPRODUCT((Aktivierungsjahr=Costs!$A378)*(AbschreibungAGr=Costs!W$353)*('Fixed assets'!$U$2:$U$1000=Costs!$A378)*(AbschreibungAHKBvD))","v":0},{"$f":"SUM(X$178:X201)-SUM(X$266:X289)+SUMPRODUCT((Aktivierungsjahr=Costs!$A378)*(AbschreibungAGr=Costs!X$353)*('Fixed assets'!$U$2:$U$1000=Costs!$A378)*(AbschreibungAHKBvD))","v":0},{"$f":"SUM(Y$178:Y201)-SUM(Y$266:Y289)+SUMPRODUCT((Aktivierungsjahr=Costs!$A378)*(AbschreibungAGr=Costs!Y$353)*('Fixed assets'!$U$2:$U$1000=Costs!$A378)*(AbschreibungAHKBvD))","v":0},{"$f":"SUM(Z$178:Z201)-SUM(Z$266:Z289)+SUMPRODUCT((Aktivierungsjahr=Costs!$A378)*(AbschreibungAGr=Costs!Z$353)*('Fixed assets'!$U$2:$U$1000=Costs!$A378)*(AbschreibungAHKBvD))","v":0},{"$f":"SUM(AA$178:AA201)-SUM(AA$266:AA289)+SUMPRODUCT((Aktivierungsjahr=Costs!$A378)*(AbschreibungAGr=Costs!AA$353)*('Fixed assets'!$U$2:$U$1000=Costs!$A378)*(AbschreibungAHKBvD))","v":0},{"$f":"SUM(AB$178:AB201)-SUM(AB$266:AB289)+SUMPRODUCT((Aktivierungsjahr=Costs!$A378)*(AbschreibungAGr=Costs!AB$353)*('Fixed assets'!$U$2:$U$1000=Costs!$A378)*(AbschreibungAHKBvD))","v":0},{"$f":"SUM(AC$178:AC201)-SUM(AC$266:AC289)+SUMPRODUCT((Aktivierungsjahr=Costs!$A378)*(AbschreibungAGr=Costs!AC$353)*('Fixed assets'!$U$2:$U$1000=Costs!$A378)*(AbschreibungAHKBvD))","v":0},{"$f":"SUM(AD$178:AD201)-SUM(AD$266:AD289)+SUMPRODUCT((Aktivierungsjahr=Costs!$A378)*(AbschreibungAGr=Costs!AD$353)*('Fixed assets'!$U$2:$U$1000=Costs!$A378)*(AbschreibungAHKBvD))","v":0},{"$f":"SUM(AE$178:AE201)-SUM(AE$266:AE289)+SUMPRODUCT((Aktivierungsjahr=Costs!$A378)*(AbschreibungAGr=Costs!AE$353)*('Fixed assets'!$U$2:$U$1000=Costs!$A378)*(AbschreibungAHKBvD))","v":0},{"$f":"SUM(AF$178:AF201)-SUM(AF$266:AF289)+SUMPRODUCT((Aktivierungsjahr=Costs!$A378)*(AbschreibungAGr=Costs!AF$353)*('Fixed assets'!$U$2:$U$1000=Costs!$A378)*(AbschreibungAHKBvD))","v":0},{"$f":"SUM(AG$178:AG201)-SUM(AG$266:AG289)+SUMPRODUCT((Aktivierungsjahr=Costs!$A378)*(AbschreibungAGr=Costs!AG$353)*('Fixed assets'!$U$2:$U$1000=Costs!$A378)*(AbschreibungAHKBvD))","v":0},{"$f":"SUM(AH$178:AH201)-SUM(AH$266:AH289)+SUMPRODUCT((Aktivierungsjahr=Costs!$A378)*(AbschreibungAGr=Costs!AH$353)*('Fixed assets'!$U$2:$U$1000=Costs!$A378)*(AbschreibungAHKBvD))","v":0},{"$f":"SUM(AI$178:AI201)-SUM(AI$266:AI289)+SUMPRODUCT((Aktivierungsjahr=Costs!$A378)*(AbschreibungAGr=Costs!AI$353)*('Fixed assets'!$U$2:$U$1000=Costs!$A378)*(AbschreibungAHKBvD))","v":0},{"$f":"SUM(AJ$178:AJ201)-SUM(AJ$266:AJ289)+SUMPRODUCT((Aktivierungsjahr=Costs!$A378)*(AbschreibungAGr=Costs!AJ$353)*('Fixed assets'!$U$2:$U$1000=Costs!$A378)*(AbschreibungAHKBvD))","v":688888.88888888876},{"$f":"SUM(AK$178:AK201)-SUM(AK$266:AK289)+SUMPRODUCT((Aktivierungsjahr=Costs!$A378)*(AbschreibungAGr=Costs!AK$353)*('Fixed assets'!$U$2:$U$1000=Costs!$A378)*(AbschreibungAHKBvD))","v":0},{"$f":"SUM(AL$178:AL201)-SUM(AL$266:AL289)+SUMPRODUCT((Aktivierungsjahr=Costs!$A378)*(AbschreibungAGr=Costs!AL$353)*('Fixed assets'!$U$2:$U$1000=Costs!$A378)*(AbschreibungAHKBvD))","v":0},{"$f":"SUM(AM$178:AM201)-SUM(AM$266:AM289)+SUMPRODUCT((Aktivierungsjahr=Costs!$A378)*(AbschreibungAGr=Costs!AM$353)*('Fixed assets'!$U$2:$U$1000=Costs!$A378)*(AbschreibungAHKBvD))","v":0},{"$f":"SUM(AN$178:AN201)-SUM(AN$266:AN289)+SUMPRODUCT((Aktivierungsjahr=Costs!$A378)*(AbschreibungAGr=Costs!AN$353)*('Fixed assets'!$U$2:$U$1000=Costs!$A378)*(AbschreibungAHKBvD))","v":0},{"$f":"SUM(AO$178:AO201)-SUM(AO$266:AO289)+SUMPRODUCT((Aktivierungsjahr=Costs!$A378)*(AbschreibungAGr=Costs!AO$353)*('Fixed assets'!$U$2:$U$1000=Costs!$A378)*(AbschreibungAHKBvD))","v":0},{"$f":"SUM(AP$178:AP201)-SUM(AP$266:AP289)+SUMPRODUCT((Aktivierungsjahr=Costs!$A378)*(AbschreibungAGr=Costs!AP$353)*('Fixed assets'!$U$2:$U$1000=Costs!$A378)*(AbschreibungAHKBvD))","v":0},{"$f":"SUM(AQ$178:AQ201)-SUM(AQ$266:AQ289)+SUMPRODUCT((Aktivierungsjahr=Costs!$A378)*(AbschreibungAGr=Costs!AQ$353)*('Fixed assets'!$U$2:$U$1000=Costs!$A378)*(AbschreibungAHKBvD))","v":0}]
[2040,60666666.666666664,{"$f":"SUM(C$178:C202)-SUM(C$266:C290)+SUMPRODUCT((Aktivierungsjahr=Costs!$A379)*(AbschreibungAGr=Costs!C$353)*('Fixed assets'!$U$2:$U$1000=Costs!$A379)*(AbschreibungAHKBvD))","v":0},{"$f":"SUM(D$178:D202)-SUM(D$266:D290)+SUMPRODUCT((Aktivierungsjahr=Costs!$A379)*(AbschreibungAGr=Costs!D$353)*('Fixed assets'!$U$2:$U$1000=Costs!$A379)*(AbschreibungAHKBvD))","v":0},{"$f":"SUM(E$178:E202)-SUM(E$266:E290)+SUMPRODUCT((Aktivierungsjahr=Costs!$A379)*(AbschreibungAGr=Costs!E$353)*('Fixed assets'!$U$2:$U$1000=Costs!$A379)*(AbschreibungAHKBvD))","v":0},{"$f":"SUM(F$178:F202)-SUM(F$266:F290)+SUMPRODUCT((Aktivierungsjahr=Costs!$A379)*(AbschreibungAGr=Costs!F$353)*('Fixed assets'!$U$2:$U$1000=Costs!$A379)*(AbschreibungAHKBvD))","v":0},{"$f":"SUM(G$178:G202)-SUM(G$266:G290)+SUMPRODUCT((Aktivierungsjahr=Costs!$A379)*(AbschreibungAGr=Costs!G$353)*('Fixed assets'!$U$2:$U$1000=Costs!$A379)*(AbschreibungAHKBvD))","v":0},{"$f":"SUM(H$178:H202)-SUM(H$266:H290)+SUMPRODUCT((Aktivierungsjahr=Costs!$A379)*(AbschreibungAGr=Costs!H$353)*('Fixed assets'!$U$2:$U$1000=Costs!$A379)*(AbschreibungAHKBvD))","v":0},{"$f":"SUM(I$178:I202)-SUM(I$266:I290)+SUMPRODUCT((Aktivierungsjahr=Costs!$A379)*(AbschreibungAGr=Costs!I$353)*('Fixed assets'!$U$2:$U$1000=Costs!$A379)*(AbschreibungAHKBvD))","v":0},{"$f":"SUM(J$178:J202)-SUM(J$266:J290)+SUMPRODUCT((Aktivierungsjahr=Costs!$A379)*(AbschreibungAGr=Costs!J$353)*('Fixed assets'!$U$2:$U$1000=Costs!$A379)*(AbschreibungAHKBvD))","v":0},{"$f":"SUM(K$178:K202)-SUM(K$266:K290)+SUMPRODUCT((Aktivierungsjahr=Costs!$A379)*(AbschreibungAGr=Costs!K$353)*('Fixed assets'!$U$2:$U$1000=Costs!$A379)*(AbschreibungAHKBvD))","v":0},{"$f":"SUM(L$178:L202)-SUM(L$266:L290)+SUMPRODUCT((Aktivierungsjahr=Costs!$A379)*(AbschreibungAGr=Costs!L$353)*('Fixed assets'!$U$2:$U$1000=Costs!$A379)*(AbschreibungAHKBvD))","v":0},{"$f":"SUM(M$178:M202)-SUM(M$266:M290)+SUMPRODUCT((Aktivierungsjahr=Costs!$A379)*(AbschreibungAGr=Costs!M$353)*('Fixed assets'!$U$2:$U$1000=Costs!$A379)*(AbschreibungAHKBvD))","v":0},{"$f":"SUM(N$178:N202)-SUM(N$266:N290)+SUMPRODUCT((Aktivierungsjahr=Costs!$A379)*(AbschreibungAGr=Costs!N$353)*('Fixed assets'!$U$2:$U$1000=Costs!$A379)*(AbschreibungAHKBvD))","v":0},{"$f":"SUM(O$178:O202)-SUM(O$266:O290)+SUMPRODUCT((Aktivierungsjahr=Costs!$A379)*(AbschreibungAGr=Costs!O$353)*('Fixed assets'!$U$2:$U$1000=Costs!$A379)*(AbschreibungAHKBvD))","v":0},{"$f":"SUM(P$178:P202)-SUM(P$266:P290)+SUMPRODUCT((Aktivierungsjahr=Costs!$A379)*(AbschreibungAGr=Costs!P$353)*('Fixed assets'!$U$2:$U$1000=Costs!$A379)*(AbschreibungAHKBvD))","v":60000000},{"$f":"SUM(Q$178:Q202)-SUM(Q$266:Q290)+SUMPRODUCT((Aktivierungsjahr=Costs!$A379)*(AbschreibungAGr=Costs!Q$353)*('Fixed assets'!$U$2:$U$1000=Costs!$A379)*(AbschreibungAHKBvD))","v":0},{"$f":"SUM(R$178:R202)-SUM(R$266:R290)+SUMPRODUCT((Aktivierungsjahr=Costs!$A379)*(AbschreibungAGr=Costs!R$353)*('Fixed assets'!$U$2:$U$1000=Costs!$A379)*(AbschreibungAHKBvD))","v":0},{"$f":"SUM(S$178:S202)-SUM(S$266:S290)+SUMPRODUCT((Aktivierungsjahr=Costs!$A379)*(AbschreibungAGr=Costs!S$353)*('Fixed assets'!$U$2:$U$1000=Costs!$A379)*(AbschreibungAHKBvD))","v":0},{"$f":"SUM(T$178:T202)-SUM(T$266:T290)+SUMPRODUCT((Aktivierungsjahr=Costs!$A379)*(AbschreibungAGr=Costs!T$353)*('Fixed assets'!$U$2:$U$1000=Costs!$A379)*(AbschreibungAHKBvD))","v":0},{"$f":"SUM(U$178:U202)-SUM(U$266:U290)+SUMPRODUCT((Aktivierungsjahr=Costs!$A379)*(AbschreibungAGr=Costs!U$353)*('Fixed assets'!$U$2:$U$1000=Costs!$A379)*(AbschreibungAHKBvD))","v":0},{"$f":"SUM(V$178:V202)-SUM(V$266:V290)+SUMPRODUCT((Aktivierungsjahr=Costs!$A379)*(AbschreibungAGr=Costs!V$353)*('Fixed assets'!$U$2:$U$1000=Costs!$A379)*(AbschreibungAHKBvD))","v":0},{"$f":"SUM(W$178:W202)-SUM(W$266:W290)+SUMPRODUCT((Aktivierungsjahr=Costs!$A379)*(AbschreibungAGr=Costs!W$353)*('Fixed assets'!$U$2:$U$1000=Costs!$A379)*(AbschreibungAHKBvD))","v":0},{"$f":"SUM(X$178:X202)-SUM(X$266:X290)+SUMPRODUCT((Aktivierungsjahr=Costs!$A379)*(AbschreibungAGr=Costs!X$353)*('Fixed assets'!$U$2:$U$1000=Costs!$A379)*(AbschreibungAHKBvD))","v":0},{"$f":"SUM(Y$178:Y202)-SUM(Y$266:Y290)+SUMPRODUCT((Aktivierungsjahr=Costs!$A379)*(AbschreibungAGr=Costs!Y$353)*('Fixed assets'!$U$2:$U$1000=Costs!$A379)*(AbschreibungAHKBvD))","v":0},{"$f":"SUM(Z$178:Z202)-SUM(Z$266:Z290)+SUMPRODUCT((Aktivierungsjahr=Costs!$A379)*(AbschreibungAGr=Costs!Z$353)*('Fixed assets'!$U$2:$U$1000=Costs!$A379)*(AbschreibungAHKBvD))","v":0},{"$f":"SUM(AA$178:AA202)-SUM(AA$266:AA290)+SUMPRODUCT((Aktivierungsjahr=Costs!$A379)*(AbschreibungAGr=Costs!AA$353)*('Fixed assets'!$U$2:$U$1000=Costs!$A379)*(AbschreibungAHKBvD))","v":0},{"$f":"SUM(AB$178:AB202)-SUM(AB$266:AB290)+SUMPRODUCT((Aktivierungsjahr=Costs!$A379)*(AbschreibungAGr=Costs!AB$353)*('Fixed assets'!$U$2:$U$1000=Costs!$A379)*(AbschreibungAHKBvD))","v":0},{"$f":"SUM(AC$178:AC202)-SUM(AC$266:AC290)+SUMPRODUCT((Aktivierungsjahr=Costs!$A379)*(AbschreibungAGr=Costs!AC$353)*('Fixed assets'!$U$2:$U$1000=Costs!$A379)*(AbschreibungAHKBvD))","v":0},{"$f":"SUM(AD$178:AD202)-SUM(AD$266:AD290)+SUMPRODUCT((Aktivierungsjahr=Costs!$A379)*(AbschreibungAGr=Costs!AD$353)*('Fixed assets'!$U$2:$U$1000=Costs!$A379)*(AbschreibungAHKBvD))","v":0},{"$f":"SUM(AE$178:AE202)-SUM(AE$266:AE290)+SUMPRODUCT((Aktivierungsjahr=Costs!$A379)*(AbschreibungAGr=Costs!AE$353)*('Fixed assets'!$U$2:$U$1000=Costs!$A379)*(AbschreibungAHKBvD))","v":0},{"$f":"SUM(AF$178:AF202)-SUM(AF$266:AF290)+SUMPRODUCT((Aktivierungsjahr=Costs!$A379)*(AbschreibungAGr=Costs!AF$353)*('Fixed assets'!$U$2:$U$1000=Costs!$A379)*(AbschreibungAHKBvD))","v":0},{"$f":"SUM(AG$178:AG202)-SUM(AG$266:AG290)+SUMPRODUCT((Aktivierungsjahr=Costs!$A379)*(AbschreibungAGr=Costs!AG$353)*('Fixed assets'!$U$2:$U$1000=Costs!$A379)*(AbschreibungAHKBvD))","v":0},{"$f":"SUM(AH$178:AH202)-SUM(AH$266:AH290)+SUMPRODUCT((Aktivierungsjahr=Costs!$A379)*(AbschreibungAGr=Costs!AH$353)*('Fixed assets'!$U$2:$U$1000=Costs!$A379)*(AbschreibungAHKBvD))","v":0},{"$f":"SUM(AI$178:AI202)-SUM(AI$266:AI290)+SUMPRODUCT((Aktivierungsjahr=Costs!$A379)*(AbschreibungAGr=Costs!AI$353)*('Fixed assets'!$U$2:$U$1000=Costs!$A379)*(AbschreibungAHKBvD))","v":0},{"$f":"SUM(AJ$178:AJ202)-SUM(AJ$266:AJ290)+SUMPRODUCT((Aktivierungsjahr=Costs!$A379)*(AbschreibungAGr=Costs!AJ$353)*('Fixed assets'!$U$2:$U$1000=Costs!$A379)*(AbschreibungAHKBvD))","v":666666.66666666651},{"$f":"SUM(AK$178:AK202)-SUM(AK$266:AK290)+SUMPRODUCT((Aktivierungsjahr=Costs!$A379)*(AbschreibungAGr=Costs!AK$353)*('Fixed assets'!$U$2:$U$1000=Costs!$A379)*(AbschreibungAHKBvD))","v":0},{"$f":"SUM(AL$178:AL202)-SUM(AL$266:AL290)+SUMPRODUCT((Aktivierungsjahr=Costs!$A379)*(AbschreibungAGr=Costs!AL$353)*('Fixed assets'!$U$2:$U$1000=Costs!$A379)*(AbschreibungAHKBvD))","v":0},{"$f":"SUM(AM$178:AM202)-SUM(AM$266:AM290)+SUMPRODUCT((Aktivierungsjahr=Costs!$A379)*(AbschreibungAGr=Costs!AM$353)*('Fixed assets'!$U$2:$U$1000=Costs!$A379)*(AbschreibungAHKBvD))","v":0},{"$f":"SUM(AN$178:AN202)-SUM(AN$266:AN290)+SUMPRODUCT((Aktivierungsjahr=Costs!$A379)*(AbschreibungAGr=Costs!AN$353)*('Fixed assets'!$U$2:$U$1000=Costs!$A379)*(AbschreibungAHKBvD))","v":0},{"$f":"SUM(AO$178:AO202)-SUM(AO$266:AO290)+SUMPRODUCT((Aktivierungsjahr=Costs!$A379)*(AbschreibungAGr=Costs!AO$353)*('Fixed assets'!$U$2:$U$1000=Costs!$A379)*(AbschreibungAHKBvD))","v":0},{"$f":"SUM(AP$178:AP202)-SUM(AP$266:AP290)+SUMPRODUCT((Aktivierungsjahr=Costs!$A379)*(AbschreibungAGr=Costs!AP$353)*('Fixed assets'!$U$2:$U$1000=Costs!$A379)*(AbschreibungAHKBvD))","v":0},{"$f":"SUM(AQ$178:AQ202)-SUM(AQ$266:AQ290)+SUMPRODUCT((Aktivierungsjahr=Costs!$A379)*(AbschreibungAGr=Costs!AQ$353)*('Fixed assets'!$U$2:$U$1000=Costs!$A379)*(AbschreibungAHKBvD))","v":0}]
[2041,54644444.444444448,{"$f":"SUM(C$178:C203)-SUM(C$266:C291)+SUMPRODUCT((Aktivierungsjahr=Costs!$A380)*(AbschreibungAGr=Costs!C$353)*('Fixed assets'!$U$2:$U$1000=Costs!$A380)*(AbschreibungAHKBvD))","v":0},{"$f":"SUM(D$178:D203)-SUM(D$266:D291)+SUMPRODUCT((Aktivierungsjahr=Costs!$A380)*(AbschreibungAGr=Costs!D$353)*('Fixed assets'!$U$2:$U$1000=Costs!$A380)*(AbschreibungAHKBvD))","v":0},{"$f":"SUM(E$178:E203)-SUM(E$266:E291)+SUMPRODUCT((Aktivierungsjahr=Costs!$A380)*(AbschreibungAGr=Costs!E$353)*('Fixed assets'!$U$2:$U$1000=Costs!$A380)*(AbschreibungAHKBvD))","v":0},{"$f":"SUM(F$178:F203)-SUM(F$266:F291)+SUMPRODUCT((Aktivierungsjahr=Costs!$A380)*(AbschreibungAGr=Costs!F$353)*('Fixed assets'!$U$2:$U$1000=Costs!$A380)*(AbschreibungAHKBvD))","v":0},{"$f":"SUM(G$178:G203)-SUM(G$266:G291)+SUMPRODUCT((Aktivierungsjahr=Costs!$A380)*(AbschreibungAGr=Costs!G$353)*('Fixed assets'!$U$2:$U$1000=Costs!$A380)*(AbschreibungAHKBvD))","v":0},{"$f":"SUM(H$178:H203)-SUM(H$266:H291)+SUMPRODUCT((Aktivierungsjahr=Costs!$A380)*(AbschreibungAGr=Costs!H$353)*('Fixed assets'!$U$2:$U$1000=Costs!$A380)*(AbschreibungAHKBvD))","v":0},{"$f":"SUM(I$178:I203)-SUM(I$266:I291)+SUMPRODUCT((Aktivierungsjahr=Costs!$A380)*(AbschreibungAGr=Costs!I$353)*('Fixed assets'!$U$2:$U$1000=Costs!$A380)*(AbschreibungAHKBvD))","v":0},{"$f":"SUM(J$178:J203)-SUM(J$266:J291)+SUMPRODUCT((Aktivierungsjahr=Costs!$A380)*(AbschreibungAGr=Costs!J$353)*('Fixed assets'!$U$2:$U$1000=Costs!$A380)*(AbschreibungAHKBvD))","v":0},{"$f":"SUM(K$178:K203)-SUM(K$266:K291)+SUMPRODUCT((Aktivierungsjahr=Costs!$A380)*(AbschreibungAGr=Costs!K$353)*('Fixed assets'!$U$2:$U$1000=Costs!$A380)*(AbschreibungAHKBvD))","v":0},{"$f":"SUM(L$178:L203)-SUM(L$266:L291)+SUMPRODUCT((Aktivierungsjahr=Costs!$A380)*(AbschreibungAGr=Costs!L$353)*('Fixed assets'!$U$2:$U$1000=Costs!$A380)*(AbschreibungAHKBvD))","v":0},{"$f":"SUM(M$178:M203)-SUM(M$266:M291)+SUMPRODUCT((Aktivierungsjahr=Costs!$A380)*(AbschreibungAGr=Costs!M$353)*('Fixed assets'!$U$2:$U$1000=Costs!$A380)*(AbschreibungAHKBvD))","v":0},{"$f":"SUM(N$178:N203)-SUM(N$266:N291)+SUMPRODUCT((Aktivierungsjahr=Costs!$A380)*(AbschreibungAGr=Costs!N$353)*('Fixed assets'!$U$2:$U$1000=Costs!$A380)*(AbschreibungAHKBvD))","v":0},{"$f":"SUM(O$178:O203)-SUM(O$266:O291)+SUMPRODUCT((Aktivierungsjahr=Costs!$A380)*(AbschreibungAGr=Costs!O$353)*('Fixed assets'!$U$2:$U$1000=Costs!$A380)*(AbschreibungAHKBvD))","v":0},{"$f":"SUM(P$178:P203)-SUM(P$266:P291)+SUMPRODUCT((Aktivierungsjahr=Costs!$A380)*(AbschreibungAGr=Costs!P$353)*('Fixed assets'!$U$2:$U$1000=Costs!$A380)*(AbschreibungAHKBvD))","v":54000000},{"$f":"SUM(Q$178:Q203)-SUM(Q$266:Q291)+SUMPRODUCT((Aktivierungsjahr=Costs!$A380)*(AbschreibungAGr=Costs!Q$353)*('Fixed assets'!$U$2:$U$1000=Costs!$A380)*(AbschreibungAHKBvD))","v":0},{"$f":"SUM(R$178:R203)-SUM(R$266:R291)+SUMPRODUCT((Aktivierungsjahr=Costs!$A380)*(AbschreibungAGr=Costs!R$353)*('Fixed assets'!$U$2:$U$1000=Costs!$A380)*(AbschreibungAHKBvD))","v":0},{"$f":"SUM(S$178:S203)-SUM(S$266:S291)+SUMPRODUCT((Aktivierungsjahr=Costs!$A380)*(AbschreibungAGr=Costs!S$353)*('Fixed assets'!$U$2:$U$1000=Costs!$A380)*(AbschreibungAHKBvD))","v":0},{"$f":"SUM(T$178:T203)-SUM(T$266:T291)+SUMPRODUCT((Aktivierungsjahr=Costs!$A380)*(AbschreibungAGr=Costs!T$353)*('Fixed assets'!$U$2:$U$1000=Costs!$A380)*(AbschreibungAHKBvD))","v":0},{"$f":"SUM(U$178:U203)-SUM(U$266:U291)+SUMPRODUCT((Aktivierungsjahr=Costs!$A380)*(AbschreibungAGr=Costs!U$353)*('Fixed assets'!$U$2:$U$1000=Costs!$A380)*(AbschreibungAHKBvD))","v":0},{"$f":"SUM(V$178:V203)-SUM(V$266:V291)+SUMPRODUCT((Aktivierungsjahr=Costs!$A380)*(AbschreibungAGr=Costs!V$353)*('Fixed assets'!$U$2:$U$1000=Costs!$A380)*(AbschreibungAHKBvD))","v":0},{"$f":"SUM(W$178:W203)-SUM(W$266:W291)+SUMPRODUCT((Aktivierungsjahr=Costs!$A380)*(AbschreibungAGr=Costs!W$353)*('Fixed assets'!$U$2:$U$1000=Costs!$A380)*(AbschreibungAHKBvD))","v":0},{"$f":"SUM(X$178:X203)-SUM(X$266:X291)+SUMPRODUCT((Aktivierungsjahr=Costs!$A380)*(AbschreibungAGr=Costs!X$353)*('Fixed assets'!$U$2:$U$1000=Costs!$A380)*(AbschreibungAHKBvD))","v":0},{"$f":"SUM(Y$178:Y203)-SUM(Y$266:Y291)+SUMPRODUCT((Aktivierungsjahr=Costs!$A380)*(AbschreibungAGr=Costs!Y$353)*('Fixed assets'!$U$2:$U$1000=Costs!$A380)*(AbschreibungAHKBvD))","v":0},{"$f":"SUM(Z$178:Z203)-SUM(Z$266:Z291)+SUMPRODUCT((Aktivierungsjahr=Costs!$A380)*(AbschreibungAGr=Costs!Z$353)*('Fixed assets'!$U$2:$U$1000=Costs!$A380)*(AbschreibungAHKBvD))","v":0},{"$f":"SUM(AA$178:AA203)-SUM(AA$266:AA291)+SUMPRODUCT((Aktivierungsjahr=Costs!$A380)*(AbschreibungAGr=Costs!AA$353)*('Fixed assets'!$U$2:$U$1000=Costs!$A380)*(AbschreibungAHKBvD))","v":0},{"$f":"SUM(AB$178:AB203)-SUM(AB$266:AB291)+SUMPRODUCT((Aktivierungsjahr=Costs!$A380)*(AbschreibungAGr=Costs!AB$353)*('Fixed assets'!$U$2:$U$1000=Costs!$A380)*(AbschreibungAHKBvD))","v":0},{"$f":"SUM(AC$178:AC203)-SUM(AC$266:AC291)+SUMPRODUCT((Aktivierungsjahr=Costs!$A380)*(AbschreibungAGr=Costs!AC$353)*('Fixed assets'!$U$2:$U$1000=Costs!$A380)*(AbschreibungAHKBvD))","v":0},{"$f":"SUM(AD$178:AD203)-SUM(AD$266:AD291)+SUMPRODUCT((Aktivierungsjahr=Costs!$A380)*(AbschreibungAGr=Costs!AD$353)*('Fixed assets'!$U$2:$U$1000=Costs!$A380)*(AbschreibungAHKBvD))","v":0},{"$f":"SUM(AE$178:AE203)-SUM(AE$266:AE291)+SUMPRODUCT((Aktivierungsjahr=Costs!$A380)*(AbschreibungAGr=Costs!AE$353)*('Fixed assets'!$U$2:$U$1000=Costs!$A380)*(AbschreibungAHKBvD))","v":0},{"$f":"SUM(AF$178:AF203)-SUM(AF$266:AF291)+SUMPRODUCT((Aktivierungsjahr=Costs!$A380)*(AbschreibungAGr=Costs!AF$353)*('Fixed assets'!$U$2:$U$1000=Costs!$A380)*(AbschreibungAHKBvD))","v":0},{"$f":"SUM(AG$178:AG203)-SUM(AG$266:AG291)+SUMPRODUCT((Aktivierungsjahr=Costs!$A380)*(AbschreibungAGr=Costs!AG$353)*('Fixed assets'!$U$2:$U$1000=Costs!$A380)*(AbschreibungAHKBvD))","v":0},{"$f":"SUM(AH$178:AH203)-SUM(AH$266:AH291)+SUMPRODUCT((Aktivierungsjahr=Costs!$A380)*(AbschreibungAGr=Costs!AH$353)*('Fixed assets'!$U$2:$U$1000=Costs!$A380)*(AbschreibungAHKBvD))","v":0},{"$f":"SUM(AI$178:AI203)-SUM(AI$266:AI291)+SUMPRODUCT((Aktivierungsjahr=Costs!$A380)*(AbschreibungAGr=Costs!AI$353)*('Fixed assets'!$U$2:$U$1000=Costs!$A380)*(AbschreibungAHKBvD))","v":0},{"$f":"SUM(AJ$178:AJ203)-SUM(AJ$266:AJ291)+SUMPRODUCT((Aktivierungsjahr=Costs!$A380)*(AbschreibungAGr=Costs!AJ$353)*('Fixed assets'!$U$2:$U$1000=Costs!$A380)*(AbschreibungAHKBvD))","v":644444.44444444426},{"$f":"SUM(AK$178:AK203)-SUM(AK$266:AK291)+SUMPRODUCT((Aktivierungsjahr=Costs!$A380)*(AbschreibungAGr=Costs!AK$353)*('Fixed assets'!$U$2:$U$1000=Costs!$A380)*(AbschreibungAHKBvD))","v":0},{"$f":"SUM(AL$178:AL203)-SUM(AL$266:AL291)+SUMPRODUCT((Aktivierungsjahr=Costs!$A380)*(AbschreibungAGr=Costs!AL$353)*('Fixed assets'!$U$2:$U$1000=Costs!$A380)*(AbschreibungAHKBvD))","v":0},{"$f":"SUM(AM$178:AM203)-SUM(AM$266:AM291)+SUMPRODUCT((Aktivierungsjahr=Costs!$A380)*(AbschreibungAGr=Costs!AM$353)*('Fixed assets'!$U$2:$U$1000=Costs!$A380)*(AbschreibungAHKBvD))","v":0},{"$f":"SUM(AN$178:AN203)-SUM(AN$266:AN291)+SUMPRODUCT((Aktivierungsjahr=Costs!$A380)*(AbschreibungAGr=Costs!AN$353)*('Fixed assets'!$U$2:$U$1000=Costs!$A380)*(AbschreibungAHKBvD))","v":0},{"$f":"SUM(AO$178:AO203)-SUM(AO$266:AO291)+SUMPRODUCT((Aktivierungsjahr=Costs!$A380)*(AbschreibungAGr=Costs!AO$353)*('Fixed assets'!$U$2:$U$1000=Costs!$A380)*(AbschreibungAHKBvD))","v":0},{"$f":"SUM(AP$178:AP203)-SUM(AP$266:AP291)+SUMPRODUCT((Aktivierungsjahr=Costs!$A380)*(AbschreibungAGr=Costs!AP$353)*('Fixed assets'!$U$2:$U$1000=Costs!$A380)*(AbschreibungAHKBvD))","v":0},{"$f":"SUM(AQ$178:AQ203)-SUM(AQ$266:AQ291)+SUMPRODUCT((Aktivierungsjahr=Costs!$A380)*(AbschreibungAGr=Costs!AQ$353)*('Fixed assets'!$U$2:$U$1000=Costs!$A380)*(AbschreibungAHKBvD))","v":0}]
[2042,48622222.222222224,{"$f":"SUM(C$178:C204)-SUM(C$266:C292)+SUMPRODUCT((Aktivierungsjahr=Costs!$A381)*(AbschreibungAGr=Costs!C$353)*('Fixed assets'!$U$2:$U$1000=Costs!$A381)*(AbschreibungAHKBvD))","v":0},{"$f":"SUM(D$178:D204)-SUM(D$266:D292)+SUMPRODUCT((Aktivierungsjahr=Costs!$A381)*(AbschreibungAGr=Costs!D$353)*('Fixed assets'!$U$2:$U$1000=Costs!$A381)*(AbschreibungAHKBvD))","v":0},{"$f":"SUM(E$178:E204)-SUM(E$266:E292)+SUMPRODUCT((Aktivierungsjahr=Costs!$A381)*(AbschreibungAGr=Costs!E$353)*('Fixed assets'!$U$2:$U$1000=Costs!$A381)*(AbschreibungAHKBvD))","v":0},{"$f":"SUM(F$178:F204)-SUM(F$266:F292)+SUMPRODUCT((Aktivierungsjahr=Costs!$A381)*(AbschreibungAGr=Costs!F$353)*('Fixed assets'!$U$2:$U$1000=Costs!$A381)*(AbschreibungAHKBvD))","v":0},{"$f":"SUM(G$178:G204)-SUM(G$266:G292)+SUMPRODUCT((Aktivierungsjahr=Costs!$A381)*(AbschreibungAGr=Costs!G$353)*('Fixed assets'!$U$2:$U$1000=Costs!$A381)*(AbschreibungAHKBvD))","v":0},{"$f":"SUM(H$178:H204)-SUM(H$266:H292)+SUMPRODUCT((Aktivierungsjahr=Costs!$A381)*(AbschreibungAGr=Costs!H$353)*('Fixed assets'!$U$2:$U$1000=Costs!$A381)*(AbschreibungAHKBvD))","v":0},{"$f":"SUM(I$178:I204)-SUM(I$266:I292)+SUMPRODUCT((Aktivierungsjahr=Costs!$A381)*(AbschreibungAGr=Costs!I$353)*('Fixed assets'!$U$2:$U$1000=Costs!$A381)*(AbschreibungAHKBvD))","v":0},{"$f":"SUM(J$178:J204)-SUM(J$266:J292)+SUMPRODUCT((Aktivierungsjahr=Costs!$A381)*(AbschreibungAGr=Costs!J$353)*('Fixed assets'!$U$2:$U$1000=Costs!$A381)*(AbschreibungAHKBvD))","v":0},{"$f":"SUM(K$178:K204)-SUM(K$266:K292)+SUMPRODUCT((Aktivierungsjahr=Costs!$A381)*(AbschreibungAGr=Costs!K$353)*('Fixed assets'!$U$2:$U$1000=Costs!$A381)*(AbschreibungAHKBvD))","v":0},{"$f":"SUM(L$178:L204)-SUM(L$266:L292)+SUMPRODUCT((Aktivierungsjahr=Costs!$A381)*(AbschreibungAGr=Costs!L$353)*('Fixed assets'!$U$2:$U$1000=Costs!$A381)*(AbschreibungAHKBvD))","v":0},{"$f":"SUM(M$178:M204)-SUM(M$266:M292)+SUMPRODUCT((Aktivierungsjahr=Costs!$A381)*(AbschreibungAGr=Costs!M$353)*('Fixed assets'!$U$2:$U$1000=Costs!$A381)*(AbschreibungAHKBvD))","v":0},{"$f":"SUM(N$178:N204)-SUM(N$266:N292)+SUMPRODUCT((Aktivierungsjahr=Costs!$A381)*(AbschreibungAGr=Costs!N$353)*('Fixed assets'!$U$2:$U$1000=Costs!$A381)*(AbschreibungAHKBvD))","v":0},{"$f":"SUM(O$178:O204)-SUM(O$266:O292)+SUMPRODUCT((Aktivierungsjahr=Costs!$A381)*(AbschreibungAGr=Costs!O$353)*('Fixed assets'!$U$2:$U$1000=Costs!$A381)*(AbschreibungAHKBvD))","v":0},{"$f":"SUM(P$178:P204)-SUM(P$266:P292)+SUMPRODUCT((Aktivierungsjahr=Costs!$A381)*(AbschreibungAGr=Costs!P$353)*('Fixed assets'!$U$2:$U$1000=Costs!$A381)*(AbschreibungAHKBvD))","v":48000000},{"$f":"SUM(Q$178:Q204)-SUM(Q$266:Q292)+SUMPRODUCT((Aktivierungsjahr=Costs!$A381)*(AbschreibungAGr=Costs!Q$353)*('Fixed assets'!$U$2:$U$1000=Costs!$A381)*(AbschreibungAHKBvD))","v":0},{"$f":"SUM(R$178:R204)-SUM(R$266:R292)+SUMPRODUCT((Aktivierungsjahr=Costs!$A381)*(AbschreibungAGr=Costs!R$353)*('Fixed assets'!$U$2:$U$1000=Costs!$A381)*(AbschreibungAHKBvD))","v":0},{"$f":"SUM(S$178:S204)-SUM(S$266:S292)+SUMPRODUCT((Aktivierungsjahr=Costs!$A381)*(AbschreibungAGr=Costs!S$353)*('Fixed assets'!$U$2:$U$1000=Costs!$A381)*(AbschreibungAHKBvD))","v":0},{"$f":"SUM(T$178:T204)-SUM(T$266:T292)+SUMPRODUCT((Aktivierungsjahr=Costs!$A381)*(AbschreibungAGr=Costs!T$353)*('Fixed assets'!$U$2:$U$1000=Costs!$A381)*(AbschreibungAHKBvD))","v":0},{"$f":"SUM(U$178:U204)-SUM(U$266:U292)+SUMPRODUCT((Aktivierungsjahr=Costs!$A381)*(AbschreibungAGr=Costs!U$353)*('Fixed assets'!$U$2:$U$1000=Costs!$A381)*(AbschreibungAHKBvD))","v":0},{"$f":"SUM(V$178:V204)-SUM(V$266:V292)+SUMPRODUCT((Aktivierungsjahr=Costs!$A381)*(AbschreibungAGr=Costs!V$353)*('Fixed assets'!$U$2:$U$1000=Costs!$A381)*(AbschreibungAHKBvD))","v":0},{"$f":"SUM(W$178:W204)-SUM(W$266:W292)+SUMPRODUCT((Aktivierungsjahr=Costs!$A381)*(AbschreibungAGr=Costs!W$353)*('Fixed assets'!$U$2:$U$1000=Costs!$A381)*(AbschreibungAHKBvD))","v":0},{"$f":"SUM(X$178:X204)-SUM(X$266:X292)+SUMPRODUCT((Aktivierungsjahr=Costs!$A381)*(AbschreibungAGr=Costs!X$353)*('Fixed assets'!$U$2:$U$1000=Costs!$A381)*(AbschreibungAHKBvD))","v":0},{"$f":"SUM(Y$178:Y204)-SUM(Y$266:Y292)+SUMPRODUCT((Aktivierungsjahr=Costs!$A381)*(AbschreibungAGr=Costs!Y$353)*('Fixed assets'!$U$2:$U$1000=Costs!$A381)*(AbschreibungAHKBvD))","v":0},{"$f":"SUM(Z$178:Z204)-SUM(Z$266:Z292)+SUMPRODUCT((Aktivierungsjahr=Costs!$A381)*(AbschreibungAGr=Costs!Z$353)*('Fixed assets'!$U$2:$U$1000=Costs!$A381)*(AbschreibungAHKBvD))","v":0},{"$f":"SUM(AA$178:AA204)-SUM(AA$266:AA292)+SUMPRODUCT((Aktivierungsjahr=Costs!$A381)*(AbschreibungAGr=Costs!AA$353)*('Fixed assets'!$U$2:$U$1000=Costs!$A381)*(AbschreibungAHKBvD))","v":0},{"$f":"SUM(AB$178:AB204)-SUM(AB$266:AB292)+SUMPRODUCT((Aktivierungsjahr=Costs!$A381)*(AbschreibungAGr=Costs!AB$353)*('Fixed assets'!$U$2:$U$1000=Costs!$A381)*(AbschreibungAHKBvD))","v":0},{"$f":"SUM(AC$178:AC204)-SUM(AC$266:AC292)+SUMPRODUCT((Aktivierungsjahr=Costs!$A381)*(AbschreibungAGr=Costs!AC$353)*('Fixed assets'!$U$2:$U$1000=Costs!$A381)*(AbschreibungAHKBvD))","v":0},{"$f":"SUM(AD$178:AD204)-SUM(AD$266:AD292)+SUMPRODUCT((Aktivierungsjahr=Costs!$A381)*(AbschreibungAGr=Costs!AD$353)*('Fixed assets'!$U$2:$U$1000=Costs!$A381)*(AbschreibungAHKBvD))","v":0},{"$f":"SUM(AE$178:AE204)-SUM(AE$266:AE292)+SUMPRODUCT((Aktivierungsjahr=Costs!$A381)*(AbschreibungAGr=Costs!AE$353)*('Fixed assets'!$U$2:$U$1000=Costs!$A381)*(AbschreibungAHKBvD))","v":0},{"$f":"SUM(AF$178:AF204)-SUM(AF$266:AF292)+SUMPRODUCT((Aktivierungsjahr=Costs!$A381)*(AbschreibungAGr=Costs!AF$353)*('Fixed assets'!$U$2:$U$1000=Costs!$A381)*(AbschreibungAHKBvD))","v":0},{"$f":"SUM(AG$178:AG204)-SUM(AG$266:AG292)+SUMPRODUCT((Aktivierungsjahr=Costs!$A381)*(AbschreibungAGr=Costs!AG$353)*('Fixed assets'!$U$2:$U$1000=Costs!$A381)*(AbschreibungAHKBvD))","v":0},{"$f":"SUM(AH$178:AH204)-SUM(AH$266:AH292)+SUMPRODUCT((Aktivierungsjahr=Costs!$A381)*(AbschreibungAGr=Costs!AH$353)*('Fixed assets'!$U$2:$U$1000=Costs!$A381)*(AbschreibungAHKBvD))","v":0},{"$f":"SUM(AI$178:AI204)-SUM(AI$266:AI292)+SUMPRODUCT((Aktivierungsjahr=Costs!$A381)*(AbschreibungAGr=Costs!AI$353)*('Fixed assets'!$U$2:$U$1000=Costs!$A381)*(AbschreibungAHKBvD))","v":0},{"$f":"SUM(AJ$178:AJ204)-SUM(AJ$266:AJ292)+SUMPRODUCT((Aktivierungsjahr=Costs!$A381)*(AbschreibungAGr=Costs!AJ$353)*('Fixed assets'!$U$2:$U$1000=Costs!$A381)*(AbschreibungAHKBvD))","v":622222.22222222202},{"$f":"SUM(AK$178:AK204)-SUM(AK$266:AK292)+SUMPRODUCT((Aktivierungsjahr=Costs!$A381)*(AbschreibungAGr=Costs!AK$353)*('Fixed assets'!$U$2:$U$1000=Costs!$A381)*(AbschreibungAHKBvD))","v":0},{"$f":"SUM(AL$178:AL204)-SUM(AL$266:AL292)+SUMPRODUCT((Aktivierungsjahr=Costs!$A381)*(AbschreibungAGr=Costs!AL$353)*('Fixed assets'!$U$2:$U$1000=Costs!$A381)*(AbschreibungAHKBvD))","v":0},{"$f":"SUM(AM$178:AM204)-SUM(AM$266:AM292)+SUMPRODUCT((Aktivierungsjahr=Costs!$A381)*(AbschreibungAGr=Costs!AM$353)*('Fixed assets'!$U$2:$U$1000=Costs!$A381)*(AbschreibungAHKBvD))","v":0},{"$f":"SUM(AN$178:AN204)-SUM(AN$266:AN292)+SUMPRODUCT((Aktivierungsjahr=Costs!$A381)*(AbschreibungAGr=Costs!AN$353)*('Fixed assets'!$U$2:$U$1000=Costs!$A381)*(AbschreibungAHKBvD))","v":0},{"$f":"SUM(AO$178:AO204)-SUM(AO$266:AO292)+SUMPRODUCT((Aktivierungsjahr=Costs!$A381)*(AbschreibungAGr=Costs!AO$353)*('Fixed assets'!$U$2:$U$1000=Costs!$A381)*(AbschreibungAHKBvD))","v":0},{"$f":"SUM(AP$178:AP204)-SUM(AP$266:AP292)+SUMPRODUCT((Aktivierungsjahr=Costs!$A381)*(AbschreibungAGr=Costs!AP$353)*('Fixed assets'!$U$2:$U$1000=Costs!$A381)*(AbschreibungAHKBvD))","v":0},{"$f":"SUM(AQ$178:AQ204)-SUM(AQ$266:AQ292)+SUMPRODUCT((Aktivierungsjahr=Costs!$A381)*(AbschreibungAGr=Costs!AQ$353)*('Fixed assets'!$U$2:$U$1000=Costs!$A381)*(AbschreibungAHKBvD))","v":0}]
[2043,42600000,{"$f":"SUM(C$178:C205)-SUM(C$266:C293)+SUMPRODUCT((Aktivierungsjahr=Costs!$A382)*(AbschreibungAGr=Costs!C$353)*('Fixed assets'!$U$2:$U$1000=Costs!$A382)*(AbschreibungAHKBvD))","v":0},{"$f":"SUM(D$178:D205)-SUM(D$266:D293)+SUMPRODUCT((Aktivierungsjahr=Costs!$A382)*(AbschreibungAGr=Costs!D$353)*('Fixed assets'!$U$2:$U$1000=Costs!$A382)*(AbschreibungAHKBvD))","v":0},{"$f":"SUM(E$178:E205)-SUM(E$266:E293)+SUMPRODUCT((Aktivierungsjahr=Costs!$A382)*(AbschreibungAGr=Costs!E$353)*('Fixed assets'!$U$2:$U$1000=Costs!$A382)*(AbschreibungAHKBvD))","v":0},{"$f":"SUM(F$178:F205)-SUM(F$266:F293)+SUMPRODUCT((Aktivierungsjahr=Costs!$A382)*(AbschreibungAGr=Costs!F$353)*('Fixed assets'!$U$2:$U$1000=Costs!$A382)*(AbschreibungAHKBvD))","v":0},{"$f":"SUM(G$178:G205)-SUM(G$266:G293)+SUMPRODUCT((Aktivierungsjahr=Costs!$A382)*(AbschreibungAGr=Costs!G$353)*('Fixed assets'!$U$2:$U$1000=Costs!$A382)*(AbschreibungAHKBvD))","v":0},{"$f":"SUM(H$178:H205)-SUM(H$266:H293)+SUMPRODUCT((Aktivierungsjahr=Costs!$A382)*(AbschreibungAGr=Costs!H$353)*('Fixed assets'!$U$2:$U$1000=Costs!$A382)*(AbschreibungAHKBvD))","v":0},{"$f":"SUM(I$178:I205)-SUM(I$266:I293)+SUMPRODUCT((Aktivierungsjahr=Costs!$A382)*(AbschreibungAGr=Costs!I$353)*('Fixed assets'!$U$2:$U$1000=Costs!$A382)*(AbschreibungAHKBvD))","v":0},{"$f":"SUM(J$178:J205)-SUM(J$266:J293)+SUMPRODUCT((Aktivierungsjahr=Costs!$A382)*(AbschreibungAGr=Costs!J$353)*('Fixed assets'!$U$2:$U$1000=Costs!$A382)*(AbschreibungAHKBvD))","v":0},{"$f":"SUM(K$178:K205)-SUM(K$266:K293)+SUMPRODUCT((Aktivierungsjahr=Costs!$A382)*(AbschreibungAGr=Costs!K$353)*('Fixed assets'!$U$2:$U$1000=Costs!$A382)*(AbschreibungAHKBvD))","v":0},{"$f":"SUM(L$178:L205)-SUM(L$266:L293)+SUMPRODUCT((Aktivierungsjahr=Costs!$A382)*(AbschreibungAGr=Costs!L$353)*('Fixed assets'!$U$2:$U$1000=Costs!$A382)*(AbschreibungAHKBvD))","v":0},{"$f":"SUM(M$178:M205)-SUM(M$266:M293)+SUMPRODUCT((Aktivierungsjahr=Costs!$A382)*(AbschreibungAGr=Costs!M$353)*('Fixed assets'!$U$2:$U$1000=Costs!$A382)*(AbschreibungAHKBvD))","v":0},{"$f":"SUM(N$178:N205)-SUM(N$266:N293)+SUMPRODUCT((Aktivierungsjahr=Costs!$A382)*(AbschreibungAGr=Costs!N$353)*('Fixed assets'!$U$2:$U$1000=Costs!$A382)*(AbschreibungAHKBvD))","v":0},{"$f":"SUM(O$178:O205)-SUM(O$266:O293)+SUMPRODUCT((Aktivierungsjahr=Costs!$A382)*(AbschreibungAGr=Costs!O$353)*('Fixed assets'!$U$2:$U$1000=Costs!$A382)*(AbschreibungAHKBvD))","v":0},{"$f":"SUM(P$178:P205)-SUM(P$266:P293)+SUMPRODUCT((Aktivierungsjahr=Costs!$A382)*(AbschreibungAGr=Costs!P$353)*('Fixed assets'!$U$2:$U$1000=Costs!$A382)*(AbschreibungAHKBvD))","v":42000000},{"$f":"SUM(Q$178:Q205)-SUM(Q$266:Q293)+SUMPRODUCT((Aktivierungsjahr=Costs!$A382)*(AbschreibungAGr=Costs!Q$353)*('Fixed assets'!$U$2:$U$1000=Costs!$A382)*(AbschreibungAHKBvD))","v":0},{"$f":"SUM(R$178:R205)-SUM(R$266:R293)+SUMPRODUCT((Aktivierungsjahr=Costs!$A382)*(AbschreibungAGr=Costs!R$353)*('Fixed assets'!$U$2:$U$1000=Costs!$A382)*(AbschreibungAHKBvD))","v":0},{"$f":"SUM(S$178:S205)-SUM(S$266:S293)+SUMPRODUCT((Aktivierungsjahr=Costs!$A382)*(AbschreibungAGr=Costs!S$353)*('Fixed assets'!$U$2:$U$1000=Costs!$A382)*(AbschreibungAHKBvD))","v":0},{"$f":"SUM(T$178:T205)-SUM(T$266:T293)+SUMPRODUCT((Aktivierungsjahr=Costs!$A382)*(AbschreibungAGr=Costs!T$353)*('Fixed assets'!$U$2:$U$1000=Costs!$A382)*(AbschreibungAHKBvD))","v":0},{"$f":"SUM(U$178:U205)-SUM(U$266:U293)+SUMPRODUCT((Aktivierungsjahr=Costs!$A382)*(AbschreibungAGr=Costs!U$353)*('Fixed assets'!$U$2:$U$1000=Costs!$A382)*(AbschreibungAHKBvD))","v":0},{"$f":"SUM(V$178:V205)-SUM(V$266:V293)+SUMPRODUCT((Aktivierungsjahr=Costs!$A382)*(AbschreibungAGr=Costs!V$353)*('Fixed assets'!$U$2:$U$1000=Costs!$A382)*(AbschreibungAHKBvD))","v":0},{"$f":"SUM(W$178:W205)-SUM(W$266:W293)+SUMPRODUCT((Aktivierungsjahr=Costs!$A382)*(AbschreibungAGr=Costs!W$353)*('Fixed assets'!$U$2:$U$1000=Costs!$A382)*(AbschreibungAHKBvD))","v":0},{"$f":"SUM(X$178:X205)-SUM(X$266:X293)+SUMPRODUCT((Aktivierungsjahr=Costs!$A382)*(AbschreibungAGr=Costs!X$353)*('Fixed assets'!$U$2:$U$1000=Costs!$A382)*(AbschreibungAHKBvD))","v":0},{"$f":"SUM(Y$178:Y205)-SUM(Y$266:Y293)+SUMPRODUCT((Aktivierungsjahr=Costs!$A382)*(AbschreibungAGr=Costs!Y$353)*('Fixed assets'!$U$2:$U$1000=Costs!$A382)*(AbschreibungAHKBvD))","v":0},{"$f":"SUM(Z$178:Z205)-SUM(Z$266:Z293)+SUMPRODUCT((Aktivierungsjahr=Costs!$A382)*(AbschreibungAGr=Costs!Z$353)*('Fixed assets'!$U$2:$U$1000=Costs!$A382)*(AbschreibungAHKBvD))","v":0},{"$f":"SUM(AA$178:AA205)-SUM(AA$266:AA293)+SUMPRODUCT((Aktivierungsjahr=Costs!$A382)*(AbschreibungAGr=Costs!AA$353)*('Fixed assets'!$U$2:$U$1000=Costs!$A382)*(AbschreibungAHKBvD))","v":0},{"$f":"SUM(AB$178:AB205)-SUM(AB$266:AB293)+SUMPRODUCT((Aktivierungsjahr=Costs!$A382)*(AbschreibungAGr=Costs!AB$353)*('Fixed assets'!$U$2:$U$1000=Costs!$A382)*(AbschreibungAHKBvD))","v":0},{"$f":"SUM(AC$178:AC205)-SUM(AC$266:AC293)+SUMPRODUCT((Aktivierungsjahr=Costs!$A382)*(AbschreibungAGr=Costs!AC$353)*('Fixed assets'!$U$2:$U$1000=Costs!$A382)*(AbschreibungAHKBvD))","v":0},{"$f":"SUM(AD$178:AD205)-SUM(AD$266:AD293)+SUMPRODUCT((Aktivierungsjahr=Costs!$A382)*(AbschreibungAGr=Costs!AD$353)*('Fixed assets'!$U$2:$U$1000=Costs!$A382)*(AbschreibungAHKBvD))","v":0},{"$f":"SUM(AE$178:AE205)-SUM(AE$266:AE293)+SUMPRODUCT((Aktivierungsjahr=Costs!$A382)*(AbschreibungAGr=Costs!AE$353)*('Fixed assets'!$U$2:$U$1000=Costs!$A382)*(AbschreibungAHKBvD))","v":0},{"$f":"SUM(AF$178:AF205)-SUM(AF$266:AF293)+SUMPRODUCT((Aktivierungsjahr=Costs!$A382)*(AbschreibungAGr=Costs!AF$353)*('Fixed assets'!$U$2:$U$1000=Costs!$A382)*(AbschreibungAHKBvD))","v":0},{"$f":"SUM(AG$178:AG205)-SUM(AG$266:AG293)+SUMPRODUCT((Aktivierungsjahr=Costs!$A382)*(AbschreibungAGr=Costs!AG$353)*('Fixed assets'!$U$2:$U$1000=Costs!$A382)*(AbschreibungAHKBvD))","v":0},{"$f":"SUM(AH$178:AH205)-SUM(AH$266:AH293)+SUMPRODUCT((Aktivierungsjahr=Costs!$A382)*(AbschreibungAGr=Costs!AH$353)*('Fixed assets'!$U$2:$U$1000=Costs!$A382)*(AbschreibungAHKBvD))","v":0},{"$f":"SUM(AI$178:AI205)-SUM(AI$266:AI293)+SUMPRODUCT((Aktivierungsjahr=Costs!$A382)*(AbschreibungAGr=Costs!AI$353)*('Fixed assets'!$U$2:$U$1000=Costs!$A382)*(AbschreibungAHKBvD))","v":0},{"$f":"SUM(AJ$178:AJ205)-SUM(AJ$266:AJ293)+SUMPRODUCT((Aktivierungsjahr=Costs!$A382)*(AbschreibungAGr=Costs!AJ$353)*('Fixed assets'!$U$2:$U$1000=Costs!$A382)*(AbschreibungAHKBvD))","v":599999.99999999977},{"$f":"SUM(AK$178:AK205)-SUM(AK$266:AK293)+SUMPRODUCT((Aktivierungsjahr=Costs!$A382)*(AbschreibungAGr=Costs!AK$353)*('Fixed assets'!$U$2:$U$1000=Costs!$A382)*(AbschreibungAHKBvD))","v":0},{"$f":"SUM(AL$178:AL205)-SUM(AL$266:AL293)+SUMPRODUCT((Aktivierungsjahr=Costs!$A382)*(AbschreibungAGr=Costs!AL$353)*('Fixed assets'!$U$2:$U$1000=Costs!$A382)*(AbschreibungAHKBvD))","v":0},{"$f":"SUM(AM$178:AM205)-SUM(AM$266:AM293)+SUMPRODUCT((Aktivierungsjahr=Costs!$A382)*(AbschreibungAGr=Costs!AM$353)*('Fixed assets'!$U$2:$U$1000=Costs!$A382)*(AbschreibungAHKBvD))","v":0},{"$f":"SUM(AN$178:AN205)-SUM(AN$266:AN293)+SUMPRODUCT((Aktivierungsjahr=Costs!$A382)*(AbschreibungAGr=Costs!AN$353)*('Fixed assets'!$U$2:$U$1000=Costs!$A382)*(AbschreibungAHKBvD))","v":0},{"$f":"SUM(AO$178:AO205)-SUM(AO$266:AO293)+SUMPRODUCT((Aktivierungsjahr=Costs!$A382)*(AbschreibungAGr=Costs!AO$353)*('Fixed assets'!$U$2:$U$1000=Costs!$A382)*(AbschreibungAHKBvD))","v":0},{"$f":"SUM(AP$178:AP205)-SUM(AP$266:AP293)+SUMPRODUCT((Aktivierungsjahr=Costs!$A382)*(AbschreibungAGr=Costs!AP$353)*('Fixed assets'!$U$2:$U$1000=Costs!$A382)*(AbschreibungAHKBvD))","v":0},{"$f":"SUM(AQ$178:AQ205)-SUM(AQ$266:AQ293)+SUMPRODUCT((Aktivierungsjahr=Costs!$A382)*(AbschreibungAGr=Costs!AQ$353)*('Fixed assets'!$U$2:$U$1000=Costs!$A382)*(AbschreibungAHKBvD))","v":0}]
[2044,36577777.777777776,{"$f":"SUM(C$178:C206)-SUM(C$266:C294)+SUMPRODUCT((Aktivierungsjahr=Costs!$A383)*(AbschreibungAGr=Costs!C$353)*('Fixed assets'!$U$2:$U$1000=Costs!$A383)*(AbschreibungAHKBvD))","v":0},{"$f":"SUM(D$178:D206)-SUM(D$266:D294)+SUMPRODUCT((Aktivierungsjahr=Costs!$A383)*(AbschreibungAGr=Costs!D$353)*('Fixed assets'!$U$2:$U$1000=Costs!$A383)*(AbschreibungAHKBvD))","v":0},{"$f":"SUM(E$178:E206)-SUM(E$266:E294)+SUMPRODUCT((Aktivierungsjahr=Costs!$A383)*(AbschreibungAGr=Costs!E$353)*('Fixed assets'!$U$2:$U$1000=Costs!$A383)*(AbschreibungAHKBvD))","v":0},{"$f":"SUM(F$178:F206)-SUM(F$266:F294)+SUMPRODUCT((Aktivierungsjahr=Costs!$A383)*(AbschreibungAGr=Costs!F$353)*('Fixed assets'!$U$2:$U$1000=Costs!$A383)*(AbschreibungAHKBvD))","v":0},{"$f":"SUM(G$178:G206)-SUM(G$266:G294)+SUMPRODUCT((Aktivierungsjahr=Costs!$A383)*(AbschreibungAGr=Costs!G$353)*('Fixed assets'!$U$2:$U$1000=Costs!$A383)*(AbschreibungAHKBvD))","v":0},{"$f":"SUM(H$178:H206)-SUM(H$266:H294)+SUMPRODUCT((Aktivierungsjahr=Costs!$A383)*(AbschreibungAGr=Costs!H$353)*('Fixed assets'!$U$2:$U$1000=Costs!$A383)*(AbschreibungAHKBvD))","v":0},{"$f":"SUM(I$178:I206)-SUM(I$266:I294)+SUMPRODUCT((Aktivierungsjahr=Costs!$A383)*(AbschreibungAGr=Costs!I$353)*('Fixed assets'!$U$2:$U$1000=Costs!$A383)*(AbschreibungAHKBvD))","v":0},{"$f":"SUM(J$178:J206)-SUM(J$266:J294)+SUMPRODUCT((Aktivierungsjahr=Costs!$A383)*(AbschreibungAGr=Costs!J$353)*('Fixed assets'!$U$2:$U$1000=Costs!$A383)*(AbschreibungAHKBvD))","v":0},{"$f":"SUM(K$178:K206)-SUM(K$266:K294)+SUMPRODUCT((Aktivierungsjahr=Costs!$A383)*(AbschreibungAGr=Costs!K$353)*('Fixed assets'!$U$2:$U$1000=Costs!$A383)*(AbschreibungAHKBvD))","v":0},{"$f":"SUM(L$178:L206)-SUM(L$266:L294)+SUMPRODUCT((Aktivierungsjahr=Costs!$A383)*(AbschreibungAGr=Costs!L$353)*('Fixed assets'!$U$2:$U$1000=Costs!$A383)*(AbschreibungAHKBvD))","v":0},{"$f":"SUM(M$178:M206)-SUM(M$266:M294)+SUMPRODUCT((Aktivierungsjahr=Costs!$A383)*(AbschreibungAGr=Costs!M$353)*('Fixed assets'!$U$2:$U$1000=Costs!$A383)*(AbschreibungAHKBvD))","v":0},{"$f":"SUM(N$178:N206)-SUM(N$266:N294)+SUMPRODUCT((Aktivierungsjahr=Costs!$A383)*(AbschreibungAGr=Costs!N$353)*('Fixed assets'!$U$2:$U$1000=Costs!$A383)*(AbschreibungAHKBvD))","v":0},{"$f":"SUM(O$178:O206)-SUM(O$266:O294)+SUMPRODUCT((Aktivierungsjahr=Costs!$A383)*(AbschreibungAGr=Costs!O$353)*('Fixed assets'!$U$2:$U$1000=Costs!$A383)*(AbschreibungAHKBvD))","v":0},{"$f":"SUM(P$178:P206)-SUM(P$266:P294)+SUMPRODUCT((Aktivierungsjahr=Costs!$A383)*(AbschreibungAGr=Costs!P$353)*('Fixed assets'!$U$2:$U$1000=Costs!$A383)*(AbschreibungAHKBvD))","v":36000000},{"$f":"SUM(Q$178:Q206)-SUM(Q$266:Q294)+SUMPRODUCT((Aktivierungsjahr=Costs!$A383)*(AbschreibungAGr=Costs!Q$353)*('Fixed assets'!$U$2:$U$1000=Costs!$A383)*(AbschreibungAHKBvD))","v":0},{"$f":"SUM(R$178:R206)-SUM(R$266:R294)+SUMPRODUCT((Aktivierungsjahr=Costs!$A383)*(AbschreibungAGr=Costs!R$353)*('Fixed assets'!$U$2:$U$1000=Costs!$A383)*(AbschreibungAHKBvD))","v":0},{"$f":"SUM(S$178:S206)-SUM(S$266:S294)+SUMPRODUCT((Aktivierungsjahr=Costs!$A383)*(AbschreibungAGr=Costs!S$353)*('Fixed assets'!$U$2:$U$1000=Costs!$A383)*(AbschreibungAHKBvD))","v":0},{"$f":"SUM(T$178:T206)-SUM(T$266:T294)+SUMPRODUCT((Aktivierungsjahr=Costs!$A383)*(AbschreibungAGr=Costs!T$353)*('Fixed assets'!$U$2:$U$1000=Costs!$A383)*(AbschreibungAHKBvD))","v":0},{"$f":"SUM(U$178:U206)-SUM(U$266:U294)+SUMPRODUCT((Aktivierungsjahr=Costs!$A383)*(AbschreibungAGr=Costs!U$353)*('Fixed assets'!$U$2:$U$1000=Costs!$A383)*(AbschreibungAHKBvD))","v":0},{"$f":"SUM(V$178:V206)-SUM(V$266:V294)+SUMPRODUCT((Aktivierungsjahr=Costs!$A383)*(AbschreibungAGr=Costs!V$353)*('Fixed assets'!$U$2:$U$1000=Costs!$A383)*(AbschreibungAHKBvD))","v":0},{"$f":"SUM(W$178:W206)-SUM(W$266:W294)+SUMPRODUCT((Aktivierungsjahr=Costs!$A383)*(AbschreibungAGr=Costs!W$353)*('Fixed assets'!$U$2:$U$1000=Costs!$A383)*(AbschreibungAHKBvD))","v":0},{"$f":"SUM(X$178:X206)-SUM(X$266:X294)+SUMPRODUCT((Aktivierungsjahr=Costs!$A383)*(AbschreibungAGr=Costs!X$353)*('Fixed assets'!$U$2:$U$1000=Costs!$A383)*(AbschreibungAHKBvD))","v":0},{"$f":"SUM(Y$178:Y206)-SUM(Y$266:Y294)+SUMPRODUCT((Aktivierungsjahr=Costs!$A383)*(AbschreibungAGr=Costs!Y$353)*('Fixed assets'!$U$2:$U$1000=Costs!$A383)*(AbschreibungAHKBvD))","v":0},{"$f":"SUM(Z$178:Z206)-SUM(Z$266:Z294)+SUMPRODUCT((Aktivierungsjahr=Costs!$A383)*(AbschreibungAGr=Costs!Z$353)*('Fixed assets'!$U$2:$U$1000=Costs!$A383)*(AbschreibungAHKBvD))","v":0},{"$f":"SUM(AA$178:AA206)-SUM(AA$266:AA294)+SUMPRODUCT((Aktivierungsjahr=Costs!$A383)*(AbschreibungAGr=Costs!AA$353)*('Fixed assets'!$U$2:$U$1000=Costs!$A383)*(AbschreibungAHKBvD))","v":0},{"$f":"SUM(AB$178:AB206)-SUM(AB$266:AB294)+SUMPRODUCT((Aktivierungsjahr=Costs!$A383)*(AbschreibungAGr=Costs!AB$353)*('Fixed assets'!$U$2:$U$1000=Costs!$A383)*(AbschreibungAHKBvD))","v":0},{"$f":"SUM(AC$178:AC206)-SUM(AC$266:AC294)+SUMPRODUCT((Aktivierungsjahr=Costs!$A383)*(AbschreibungAGr=Costs!AC$353)*('Fixed assets'!$U$2:$U$1000=Costs!$A383)*(AbschreibungAHKBvD))","v":0},{"$f":"SUM(AD$178:AD206)-SUM(AD$266:AD294)+SUMPRODUCT((Aktivierungsjahr=Costs!$A383)*(AbschreibungAGr=Costs!AD$353)*('Fixed assets'!$U$2:$U$1000=Costs!$A383)*(AbschreibungAHKBvD))","v":0},{"$f":"SUM(AE$178:AE206)-SUM(AE$266:AE294)+SUMPRODUCT((Aktivierungsjahr=Costs!$A383)*(AbschreibungAGr=Costs!AE$353)*('Fixed assets'!$U$2:$U$1000=Costs!$A383)*(AbschreibungAHKBvD))","v":0},{"$f":"SUM(AF$178:AF206)-SUM(AF$266:AF294)+SUMPRODUCT((Aktivierungsjahr=Costs!$A383)*(AbschreibungAGr=Costs!AF$353)*('Fixed assets'!$U$2:$U$1000=Costs!$A383)*(AbschreibungAHKBvD))","v":0},{"$f":"SUM(AG$178:AG206)-SUM(AG$266:AG294)+SUMPRODUCT((Aktivierungsjahr=Costs!$A383)*(AbschreibungAGr=Costs!AG$353)*('Fixed assets'!$U$2:$U$1000=Costs!$A383)*(AbschreibungAHKBvD))","v":0},{"$f":"SUM(AH$178:AH206)-SUM(AH$266:AH294)+SUMPRODUCT((Aktivierungsjahr=Costs!$A383)*(AbschreibungAGr=Costs!AH$353)*('Fixed assets'!$U$2:$U$1000=Costs!$A383)*(AbschreibungAHKBvD))","v":0},{"$f":"SUM(AI$178:AI206)-SUM(AI$266:AI294)+SUMPRODUCT((Aktivierungsjahr=Costs!$A383)*(AbschreibungAGr=Costs!AI$353)*('Fixed assets'!$U$2:$U$1000=Costs!$A383)*(AbschreibungAHKBvD))","v":0},{"$f":"SUM(AJ$178:AJ206)-SUM(AJ$266:AJ294)+SUMPRODUCT((Aktivierungsjahr=Costs!$A383)*(AbschreibungAGr=Costs!AJ$353)*('Fixed assets'!$U$2:$U$1000=Costs!$A383)*(AbschreibungAHKBvD))","v":577777.77777777752},{"$f":"SUM(AK$178:AK206)-SUM(AK$266:AK294)+SUMPRODUCT((Aktivierungsjahr=Costs!$A383)*(AbschreibungAGr=Costs!AK$353)*('Fixed assets'!$U$2:$U$1000=Costs!$A383)*(AbschreibungAHKBvD))","v":0},{"$f":"SUM(AL$178:AL206)-SUM(AL$266:AL294)+SUMPRODUCT((Aktivierungsjahr=Costs!$A383)*(AbschreibungAGr=Costs!AL$353)*('Fixed assets'!$U$2:$U$1000=Costs!$A383)*(AbschreibungAHKBvD))","v":0},{"$f":"SUM(AM$178:AM206)-SUM(AM$266:AM294)+SUMPRODUCT((Aktivierungsjahr=Costs!$A383)*(AbschreibungAGr=Costs!AM$353)*('Fixed assets'!$U$2:$U$1000=Costs!$A383)*(AbschreibungAHKBvD))","v":0},{"$f":"SUM(AN$178:AN206)-SUM(AN$266:AN294)+SUMPRODUCT((Aktivierungsjahr=Costs!$A383)*(AbschreibungAGr=Costs!AN$353)*('Fixed assets'!$U$2:$U$1000=Costs!$A383)*(AbschreibungAHKBvD))","v":0},{"$f":"SUM(AO$178:AO206)-SUM(AO$266:AO294)+SUMPRODUCT((Aktivierungsjahr=Costs!$A383)*(AbschreibungAGr=Costs!AO$353)*('Fixed assets'!$U$2:$U$1000=Costs!$A383)*(AbschreibungAHKBvD))","v":0},{"$f":"SUM(AP$178:AP206)-SUM(AP$266:AP294)+SUMPRODUCT((Aktivierungsjahr=Costs!$A383)*(AbschreibungAGr=Costs!AP$353)*('Fixed assets'!$U$2:$U$1000=Costs!$A383)*(AbschreibungAHKBvD))","v":0},{"$f":"SUM(AQ$178:AQ206)-SUM(AQ$266:AQ294)+SUMPRODUCT((Aktivierungsjahr=Costs!$A383)*(AbschreibungAGr=Costs!AQ$353)*('Fixed assets'!$U$2:$U$1000=Costs!$A383)*(AbschreibungAHKBvD))","v":0}]
[2045,30555555.555555556,{"$f":"SUM(C$178:C207)-SUM(C$266:C295)+SUMPRODUCT((Aktivierungsjahr=Costs!$A384)*(AbschreibungAGr=Costs!C$353)*('Fixed assets'!$U$2:$U$1000=Costs!$A384)*(AbschreibungAHKBvD))","v":0},{"$f":"SUM(D$178:D207)-SUM(D$266:D295)+SUMPRODUCT((Aktivierungsjahr=Costs!$A384)*(AbschreibungAGr=Costs!D$353)*('Fixed assets'!$U$2:$U$1000=Costs!$A384)*(AbschreibungAHKBvD))","v":0},{"$f":"SUM(E$178:E207)-SUM(E$266:E295)+SUMPRODUCT((Aktivierungsjahr=Costs!$A384)*(AbschreibungAGr=Costs!E$353)*('Fixed assets'!$U$2:$U$1000=Costs!$A384)*(AbschreibungAHKBvD))","v":0},{"$f":"SUM(F$178:F207)-SUM(F$266:F295)+SUMPRODUCT((Aktivierungsjahr=Costs!$A384)*(AbschreibungAGr=Costs!F$353)*('Fixed assets'!$U$2:$U$1000=Costs!$A384)*(AbschreibungAHKBvD))","v":0},{"$f":"SUM(G$178:G207)-SUM(G$266:G295)+SUMPRODUCT((Aktivierungsjahr=Costs!$A384)*(AbschreibungAGr=Costs!G$353)*('Fixed assets'!$U$2:$U$1000=Costs!$A384)*(AbschreibungAHKBvD))","v":0},{"$f":"SUM(H$178:H207)-SUM(H$266:H295)+SUMPRODUCT((Aktivierungsjahr=Costs!$A384)*(AbschreibungAGr=Costs!H$353)*('Fixed assets'!$U$2:$U$1000=Costs!$A384)*(AbschreibungAHKBvD))","v":0},{"$f":"SUM(I$178:I207)-SUM(I$266:I295)+SUMPRODUCT((Aktivierungsjahr=Costs!$A384)*(AbschreibungAGr=Costs!I$353)*('Fixed assets'!$U$2:$U$1000=Costs!$A384)*(AbschreibungAHKBvD))","v":0},{"$f":"SUM(J$178:J207)-SUM(J$266:J295)+SUMPRODUCT((Aktivierungsjahr=Costs!$A384)*(AbschreibungAGr=Costs!J$353)*('Fixed assets'!$U$2:$U$1000=Costs!$A384)*(AbschreibungAHKBvD))","v":0},{"$f":"SUM(K$178:K207)-SUM(K$266:K295)+SUMPRODUCT((Aktivierungsjahr=Costs!$A384)*(AbschreibungAGr=Costs!K$353)*('Fixed assets'!$U$2:$U$1000=Costs!$A384)*(AbschreibungAHKBvD))","v":0},{"$f":"SUM(L$178:L207)-SUM(L$266:L295)+SUMPRODUCT((Aktivierungsjahr=Costs!$A384)*(AbschreibungAGr=Costs!L$353)*('Fixed assets'!$U$2:$U$1000=Costs!$A384)*(AbschreibungAHKBvD))","v":0},{"$f":"SUM(M$178:M207)-SUM(M$266:M295)+SUMPRODUCT((Aktivierungsjahr=Costs!$A384)*(AbschreibungAGr=Costs!M$353)*('Fixed assets'!$U$2:$U$1000=Costs!$A384)*(AbschreibungAHKBvD))","v":0},{"$f":"SUM(N$178:N207)-SUM(N$266:N295)+SUMPRODUCT((Aktivierungsjahr=Costs!$A384)*(AbschreibungAGr=Costs!N$353)*('Fixed assets'!$U$2:$U$1000=Costs!$A384)*(AbschreibungAHKBvD))","v":0},{"$f":"SUM(O$178:O207)-SUM(O$266:O295)+SUMPRODUCT((Aktivierungsjahr=Costs!$A384)*(AbschreibungAGr=Costs!O$353)*('Fixed assets'!$U$2:$U$1000=Costs!$A384)*(AbschreibungAHKBvD))","v":0},{"$f":"SUM(P$178:P207)-SUM(P$266:P295)+SUMPRODUCT((Aktivierungsjahr=Costs!$A384)*(AbschreibungAGr=Costs!P$353)*('Fixed assets'!$U$2:$U$1000=Costs!$A384)*(AbschreibungAHKBvD))","v":30000000},{"$f":"SUM(Q$178:Q207)-SUM(Q$266:Q295)+SUMPRODUCT((Aktivierungsjahr=Costs!$A384)*(AbschreibungAGr=Costs!Q$353)*('Fixed assets'!$U$2:$U$1000=Costs!$A384)*(AbschreibungAHKBvD))","v":0},{"$f":"SUM(R$178:R207)-SUM(R$266:R295)+SUMPRODUCT((Aktivierungsjahr=Costs!$A384)*(AbschreibungAGr=Costs!R$353)*('Fixed assets'!$U$2:$U$1000=Costs!$A384)*(AbschreibungAHKBvD))","v":0},{"$f":"SUM(S$178:S207)-SUM(S$266:S295)+SUMPRODUCT((Aktivierungsjahr=Costs!$A384)*(AbschreibungAGr=Costs!S$353)*('Fixed assets'!$U$2:$U$1000=Costs!$A384)*(AbschreibungAHKBvD))","v":0},{"$f":"SUM(T$178:T207)-SUM(T$266:T295)+SUMPRODUCT((Aktivierungsjahr=Costs!$A384)*(AbschreibungAGr=Costs!T$353)*('Fixed assets'!$U$2:$U$1000=Costs!$A384)*(AbschreibungAHKBvD))","v":0},{"$f":"SUM(U$178:U207)-SUM(U$266:U295)+SUMPRODUCT((Aktivierungsjahr=Costs!$A384)*(AbschreibungAGr=Costs!U$353)*('Fixed assets'!$U$2:$U$1000=Costs!$A384)*(AbschreibungAHKBvD))","v":0},{"$f":"SUM(V$178:V207)-SUM(V$266:V295)+SUMPRODUCT((Aktivierungsjahr=Costs!$A384)*(AbschreibungAGr=Costs!V$353)*('Fixed assets'!$U$2:$U$1000=Costs!$A384)*(AbschreibungAHKBvD))","v":0},{"$f":"SUM(W$178:W207)-SUM(W$266:W295)+SUMPRODUCT((Aktivierungsjahr=Costs!$A384)*(AbschreibungAGr=Costs!W$353)*('Fixed assets'!$U$2:$U$1000=Costs!$A384)*(AbschreibungAHKBvD))","v":0},{"$f":"SUM(X$178:X207)-SUM(X$266:X295)+SUMPRODUCT((Aktivierungsjahr=Costs!$A384)*(AbschreibungAGr=Costs!X$353)*('Fixed assets'!$U$2:$U$1000=Costs!$A384)*(AbschreibungAHKBvD))","v":0},{"$f":"SUM(Y$178:Y207)-SUM(Y$266:Y295)+SUMPRODUCT((Aktivierungsjahr=Costs!$A384)*(AbschreibungAGr=Costs!Y$353)*('Fixed assets'!$U$2:$U$1000=Costs!$A384)*(AbschreibungAHKBvD))","v":0},{"$f":"SUM(Z$178:Z207)-SUM(Z$266:Z295)+SUMPRODUCT((Aktivierungsjahr=Costs!$A384)*(AbschreibungAGr=Costs!Z$353)*('Fixed assets'!$U$2:$U$1000=Costs!$A384)*(AbschreibungAHKBvD))","v":0},{"$f":"SUM(AA$178:AA207)-SUM(AA$266:AA295)+SUMPRODUCT((Aktivierungsjahr=Costs!$A384)*(AbschreibungAGr=Costs!AA$353)*('Fixed assets'!$U$2:$U$1000=Costs!$A384)*(AbschreibungAHKBvD))","v":0},{"$f":"SUM(AB$178:AB207)-SUM(AB$266:AB295)+SUMPRODUCT((Aktivierungsjahr=Costs!$A384)*(AbschreibungAGr=Costs!AB$353)*('Fixed assets'!$U$2:$U$1000=Costs!$A384)*(AbschreibungAHKBvD))","v":0},{"$f":"SUM(AC$178:AC207)-SUM(AC$266:AC295)+SUMPRODUCT((Aktivierungsjahr=Costs!$A384)*(AbschreibungAGr=Costs!AC$353)*('Fixed assets'!$U$2:$U$1000=Costs!$A384)*(AbschreibungAHKBvD))","v":0},{"$f":"SUM(AD$178:AD207)-SUM(AD$266:AD295)+SUMPRODUCT((Aktivierungsjahr=Costs!$A384)*(AbschreibungAGr=Costs!AD$353)*('Fixed assets'!$U$2:$U$1000=Costs!$A384)*(AbschreibungAHKBvD))","v":0},{"$f":"SUM(AE$178:AE207)-SUM(AE$266:AE295)+SUMPRODUCT((Aktivierungsjahr=Costs!$A384)*(AbschreibungAGr=Costs!AE$353)*('Fixed assets'!$U$2:$U$1000=Costs!$A384)*(AbschreibungAHKBvD))","v":0},{"$f":"SUM(AF$178:AF207)-SUM(AF$266:AF295)+SUMPRODUCT((Aktivierungsjahr=Costs!$A384)*(AbschreibungAGr=Costs!AF$353)*('Fixed assets'!$U$2:$U$1000=Costs!$A384)*(AbschreibungAHKBvD))","v":0},{"$f":"SUM(AG$178:AG207)-SUM(AG$266:AG295)+SUMPRODUCT((Aktivierungsjahr=Costs!$A384)*(AbschreibungAGr=Costs!AG$353)*('Fixed assets'!$U$2:$U$1000=Costs!$A384)*(AbschreibungAHKBvD))","v":0},{"$f":"SUM(AH$178:AH207)-SUM(AH$266:AH295)+SUMPRODUCT((Aktivierungsjahr=Costs!$A384)*(AbschreibungAGr=Costs!AH$353)*('Fixed assets'!$U$2:$U$1000=Costs!$A384)*(AbschreibungAHKBvD))","v":0},{"$f":"SUM(AI$178:AI207)-SUM(AI$266:AI295)+SUMPRODUCT((Aktivierungsjahr=Costs!$A384)*(AbschreibungAGr=Costs!AI$353)*('Fixed assets'!$U$2:$U$1000=Costs!$A384)*(AbschreibungAHKBvD))","v":0},{"$f":"SUM(AJ$178:AJ207)-SUM(AJ$266:AJ295)+SUMPRODUCT((Aktivierungsjahr=Costs!$A384)*(AbschreibungAGr=Costs!AJ$353)*('Fixed assets'!$U$2:$U$1000=Costs!$A384)*(AbschreibungAHKBvD))","v":555555.55555555527},{"$f":"SUM(AK$178:AK207)-SUM(AK$266:AK295)+SUMPRODUCT((Aktivierungsjahr=Costs!$A384)*(AbschreibungAGr=Costs!AK$353)*('Fixed assets'!$U$2:$U$1000=Costs!$A384)*(AbschreibungAHKBvD))","v":0},{"$f":"SUM(AL$178:AL207)-SUM(AL$266:AL295)+SUMPRODUCT((Aktivierungsjahr=Costs!$A384)*(AbschreibungAGr=Costs!AL$353)*('Fixed assets'!$U$2:$U$1000=Costs!$A384)*(AbschreibungAHKBvD))","v":0},{"$f":"SUM(AM$178:AM207)-SUM(AM$266:AM295)+SUMPRODUCT((Aktivierungsjahr=Costs!$A384)*(AbschreibungAGr=Costs!AM$353)*('Fixed assets'!$U$2:$U$1000=Costs!$A384)*(AbschreibungAHKBvD))","v":0},{"$f":"SUM(AN$178:AN207)-SUM(AN$266:AN295)+SUMPRODUCT((Aktivierungsjahr=Costs!$A384)*(AbschreibungAGr=Costs!AN$353)*('Fixed assets'!$U$2:$U$1000=Costs!$A384)*(AbschreibungAHKBvD))","v":0},{"$f":"SUM(AO$178:AO207)-SUM(AO$266:AO295)+SUMPRODUCT((Aktivierungsjahr=Costs!$A384)*(AbschreibungAGr=Costs!AO$353)*('Fixed assets'!$U$2:$U$1000=Costs!$A384)*(AbschreibungAHKBvD))","v":0},{"$f":"SUM(AP$178:AP207)-SUM(AP$266:AP295)+SUMPRODUCT((Aktivierungsjahr=Costs!$A384)*(AbschreibungAGr=Costs!AP$353)*('Fixed assets'!$U$2:$U$1000=Costs!$A384)*(AbschreibungAHKBvD))","v":0},{"$f":"SUM(AQ$178:AQ207)-SUM(AQ$266:AQ295)+SUMPRODUCT((Aktivierungsjahr=Costs!$A384)*(AbschreibungAGr=Costs!AQ$353)*('Fixed assets'!$U$2:$U$1000=Costs!$A384)*(AbschreibungAHKBvD))","v":0}]
[2046,24533333.333333332,{"$f":"SUM(C$178:C208)-SUM(C$266:C296)+SUMPRODUCT((Aktivierungsjahr=Costs!$A385)*(AbschreibungAGr=Costs!C$353)*('Fixed assets'!$U$2:$U$1000=Costs!$A385)*(AbschreibungAHKBvD))","v":0},{"$f":"SUM(D$178:D208)-SUM(D$266:D296)+SUMPRODUCT((Aktivierungsjahr=Costs!$A385)*(AbschreibungAGr=Costs!D$353)*('Fixed assets'!$U$2:$U$1000=Costs!$A385)*(AbschreibungAHKBvD))","v":0},{"$f":"SUM(E$178:E208)-SUM(E$266:E296)+SUMPRODUCT((Aktivierungsjahr=Costs!$A385)*(AbschreibungAGr=Costs!E$353)*('Fixed assets'!$U$2:$U$1000=Costs!$A385)*(AbschreibungAHKBvD))","v":0},{"$f":"SUM(F$178:F208)-SUM(F$266:F296)+SUMPRODUCT((Aktivierungsjahr=Costs!$A385)*(AbschreibungAGr=Costs!F$353)*('Fixed assets'!$U$2:$U$1000=Costs!$A385)*(AbschreibungAHKBvD))","v":0},{"$f":"SUM(G$178:G208)-SUM(G$266:G296)+SUMPRODUCT((Aktivierungsjahr=Costs!$A385)*(AbschreibungAGr=Costs!G$353)*('Fixed assets'!$U$2:$U$1000=Costs!$A385)*(AbschreibungAHKBvD))","v":0},{"$f":"SUM(H$178:H208)-SUM(H$266:H296)+SUMPRODUCT((Aktivierungsjahr=Costs!$A385)*(AbschreibungAGr=Costs!H$353)*('Fixed assets'!$U$2:$U$1000=Costs!$A385)*(AbschreibungAHKBvD))","v":0},{"$f":"SUM(I$178:I208)-SUM(I$266:I296)+SUMPRODUCT((Aktivierungsjahr=Costs!$A385)*(AbschreibungAGr=Costs!I$353)*('Fixed assets'!$U$2:$U$1000=Costs!$A385)*(AbschreibungAHKBvD))","v":0},{"$f":"SUM(J$178:J208)-SUM(J$266:J296)+SUMPRODUCT((Aktivierungsjahr=Costs!$A385)*(AbschreibungAGr=Costs!J$353)*('Fixed assets'!$U$2:$U$1000=Costs!$A385)*(AbschreibungAHKBvD))","v":0},{"$f":"SUM(K$178:K208)-SUM(K$266:K296)+SUMPRODUCT((Aktivierungsjahr=Costs!$A385)*(AbschreibungAGr=Costs!K$353)*('Fixed assets'!$U$2:$U$1000=Costs!$A385)*(AbschreibungAHKBvD))","v":0},{"$f":"SUM(L$178:L208)-SUM(L$266:L296)+SUMPRODUCT((Aktivierungsjahr=Costs!$A385)*(AbschreibungAGr=Costs!L$353)*('Fixed assets'!$U$2:$U$1000=Costs!$A385)*(AbschreibungAHKBvD))","v":0},{"$f":"SUM(M$178:M208)-SUM(M$266:M296)+SUMPRODUCT((Aktivierungsjahr=Costs!$A385)*(AbschreibungAGr=Costs!M$353)*('Fixed assets'!$U$2:$U$1000=Costs!$A385)*(AbschreibungAHKBvD))","v":0},{"$f":"SUM(N$178:N208)-SUM(N$266:N296)+SUMPRODUCT((Aktivierungsjahr=Costs!$A385)*(AbschreibungAGr=Costs!N$353)*('Fixed assets'!$U$2:$U$1000=Costs!$A385)*(AbschreibungAHKBvD))","v":0},{"$f":"SUM(O$178:O208)-SUM(O$266:O296)+SUMPRODUCT((Aktivierungsjahr=Costs!$A385)*(AbschreibungAGr=Costs!O$353)*('Fixed assets'!$U$2:$U$1000=Costs!$A385)*(AbschreibungAHKBvD))","v":0},{"$f":"SUM(P$178:P208)-SUM(P$266:P296)+SUMPRODUCT((Aktivierungsjahr=Costs!$A385)*(AbschreibungAGr=Costs!P$353)*('Fixed assets'!$U$2:$U$1000=Costs!$A385)*(AbschreibungAHKBvD))","v":24000000},{"$f":"SUM(Q$178:Q208)-SUM(Q$266:Q296)+SUMPRODUCT((Aktivierungsjahr=Costs!$A385)*(AbschreibungAGr=Costs!Q$353)*('Fixed assets'!$U$2:$U$1000=Costs!$A385)*(AbschreibungAHKBvD))","v":0},{"$f":"SUM(R$178:R208)-SUM(R$266:R296)+SUMPRODUCT((Aktivierungsjahr=Costs!$A385)*(AbschreibungAGr=Costs!R$353)*('Fixed assets'!$U$2:$U$1000=Costs!$A385)*(AbschreibungAHKBvD))","v":0},{"$f":"SUM(S$178:S208)-SUM(S$266:S296)+SUMPRODUCT((Aktivierungsjahr=Costs!$A385)*(AbschreibungAGr=Costs!S$353)*('Fixed assets'!$U$2:$U$1000=Costs!$A385)*(AbschreibungAHKBvD))","v":0},{"$f":"SUM(T$178:T208)-SUM(T$266:T296)+SUMPRODUCT((Aktivierungsjahr=Costs!$A385)*(AbschreibungAGr=Costs!T$353)*('Fixed assets'!$U$2:$U$1000=Costs!$A385)*(AbschreibungAHKBvD))","v":0},{"$f":"SUM(U$178:U208)-SUM(U$266:U296)+SUMPRODUCT((Aktivierungsjahr=Costs!$A385)*(AbschreibungAGr=Costs!U$353)*('Fixed assets'!$U$2:$U$1000=Costs!$A385)*(AbschreibungAHKBvD))","v":0},{"$f":"SUM(V$178:V208)-SUM(V$266:V296)+SUMPRODUCT((Aktivierungsjahr=Costs!$A385)*(AbschreibungAGr=Costs!V$353)*('Fixed assets'!$U$2:$U$1000=Costs!$A385)*(AbschreibungAHKBvD))","v":0},{"$f":"SUM(W$178:W208)-SUM(W$266:W296)+SUMPRODUCT((Aktivierungsjahr=Costs!$A385)*(AbschreibungAGr=Costs!W$353)*('Fixed assets'!$U$2:$U$1000=Costs!$A385)*(AbschreibungAHKBvD))","v":0},{"$f":"SUM(X$178:X208)-SUM(X$266:X296)+SUMPRODUCT((Aktivierungsjahr=Costs!$A385)*(AbschreibungAGr=Costs!X$353)*('Fixed assets'!$U$2:$U$1000=Costs!$A385)*(AbschreibungAHKBvD))","v":0},{"$f":"SUM(Y$178:Y208)-SUM(Y$266:Y296)+SUMPRODUCT((Aktivierungsjahr=Costs!$A385)*(AbschreibungAGr=Costs!Y$353)*('Fixed assets'!$U$2:$U$1000=Costs!$A385)*(AbschreibungAHKBvD))","v":0},{"$f":"SUM(Z$178:Z208)-SUM(Z$266:Z296)+SUMPRODUCT((Aktivierungsjahr=Costs!$A385)*(AbschreibungAGr=Costs!Z$353)*('Fixed assets'!$U$2:$U$1000=Costs!$A385)*(AbschreibungAHKBvD))","v":0},{"$f":"SUM(AA$178:AA208)-SUM(AA$266:AA296)+SUMPRODUCT((Aktivierungsjahr=Costs!$A385)*(AbschreibungAGr=Costs!AA$353)*('Fixed assets'!$U$2:$U$1000=Costs!$A385)*(AbschreibungAHKBvD))","v":0},{"$f":"SUM(AB$178:AB208)-SUM(AB$266:AB296)+SUMPRODUCT((Aktivierungsjahr=Costs!$A385)*(AbschreibungAGr=Costs!AB$353)*('Fixed assets'!$U$2:$U$1000=Costs!$A385)*(AbschreibungAHKBvD))","v":0},{"$f":"SUM(AC$178:AC208)-SUM(AC$266:AC296)+SUMPRODUCT((Aktivierungsjahr=Costs!$A385)*(AbschreibungAGr=Costs!AC$353)*('Fixed assets'!$U$2:$U$1000=Costs!$A385)*(AbschreibungAHKBvD))","v":0},{"$f":"SUM(AD$178:AD208)-SUM(AD$266:AD296)+SUMPRODUCT((Aktivierungsjahr=Costs!$A385)*(AbschreibungAGr=Costs!AD$353)*('Fixed assets'!$U$2:$U$1000=Costs!$A385)*(AbschreibungAHKBvD))","v":0},{"$f":"SUM(AE$178:AE208)-SUM(AE$266:AE296)+SUMPRODUCT((Aktivierungsjahr=Costs!$A385)*(AbschreibungAGr=Costs!AE$353)*('Fixed assets'!$U$2:$U$1000=Costs!$A385)*(AbschreibungAHKBvD))","v":0},{"$f":"SUM(AF$178:AF208)-SUM(AF$266:AF296)+SUMPRODUCT((Aktivierungsjahr=Costs!$A385)*(AbschreibungAGr=Costs!AF$353)*('Fixed assets'!$U$2:$U$1000=Costs!$A385)*(AbschreibungAHKBvD))","v":0},{"$f":"SUM(AG$178:AG208)-SUM(AG$266:AG296)+SUMPRODUCT((Aktivierungsjahr=Costs!$A385)*(AbschreibungAGr=Costs!AG$353)*('Fixed assets'!$U$2:$U$1000=Costs!$A385)*(AbschreibungAHKBvD))","v":0},{"$f":"SUM(AH$178:AH208)-SUM(AH$266:AH296)+SUMPRODUCT((Aktivierungsjahr=Costs!$A385)*(AbschreibungAGr=Costs!AH$353)*('Fixed assets'!$U$2:$U$1000=Costs!$A385)*(AbschreibungAHKBvD))","v":0},{"$f":"SUM(AI$178:AI208)-SUM(AI$266:AI296)+SUMPRODUCT((Aktivierungsjahr=Costs!$A385)*(AbschreibungAGr=Costs!AI$353)*('Fixed assets'!$U$2:$U$1000=Costs!$A385)*(AbschreibungAHKBvD))","v":0},{"$f":"SUM(AJ$178:AJ208)-SUM(AJ$266:AJ296)+SUMPRODUCT((Aktivierungsjahr=Costs!$A385)*(AbschreibungAGr=Costs!AJ$353)*('Fixed assets'!$U$2:$U$1000=Costs!$A385)*(AbschreibungAHKBvD))","v":533333.33333333302},{"$f":"SUM(AK$178:AK208)-SUM(AK$266:AK296)+SUMPRODUCT((Aktivierungsjahr=Costs!$A385)*(AbschreibungAGr=Costs!AK$353)*('Fixed assets'!$U$2:$U$1000=Costs!$A385)*(AbschreibungAHKBvD))","v":0},{"$f":"SUM(AL$178:AL208)-SUM(AL$266:AL296)+SUMPRODUCT((Aktivierungsjahr=Costs!$A385)*(AbschreibungAGr=Costs!AL$353)*('Fixed assets'!$U$2:$U$1000=Costs!$A385)*(AbschreibungAHKBvD))","v":0},{"$f":"SUM(AM$178:AM208)-SUM(AM$266:AM296)+SUMPRODUCT((Aktivierungsjahr=Costs!$A385)*(AbschreibungAGr=Costs!AM$353)*('Fixed assets'!$U$2:$U$1000=Costs!$A385)*(AbschreibungAHKBvD))","v":0},{"$f":"SUM(AN$178:AN208)-SUM(AN$266:AN296)+SUMPRODUCT((Aktivierungsjahr=Costs!$A385)*(AbschreibungAGr=Costs!AN$353)*('Fixed assets'!$U$2:$U$1000=Costs!$A385)*(AbschreibungAHKBvD))","v":0},{"$f":"SUM(AO$178:AO208)-SUM(AO$266:AO296)+SUMPRODUCT((Aktivierungsjahr=Costs!$A385)*(AbschreibungAGr=Costs!AO$353)*('Fixed assets'!$U$2:$U$1000=Costs!$A385)*(AbschreibungAHKBvD))","v":0},{"$f":"SUM(AP$178:AP208)-SUM(AP$266:AP296)+SUMPRODUCT((Aktivierungsjahr=Costs!$A385)*(AbschreibungAGr=Costs!AP$353)*('Fixed assets'!$U$2:$U$1000=Costs!$A385)*(AbschreibungAHKBvD))","v":0},{"$f":"SUM(AQ$178:AQ208)-SUM(AQ$266:AQ296)+SUMPRODUCT((Aktivierungsjahr=Costs!$A385)*(AbschreibungAGr=Costs!AQ$353)*('Fixed assets'!$U$2:$U$1000=Costs!$A385)*(AbschreibungAHKBvD))","v":0}]
[2047,18511111.111111112,{"$f":"SUM(C$178:C209)-SUM(C$266:C297)+SUMPRODUCT((Aktivierungsjahr=Costs!$A386)*(AbschreibungAGr=Costs!C$353)*('Fixed assets'!$U$2:$U$1000=Costs!$A386)*(AbschreibungAHKBvD))","v":0},{"$f":"SUM(D$178:D209)-SUM(D$266:D297)+SUMPRODUCT((Aktivierungsjahr=Costs!$A386)*(AbschreibungAGr=Costs!D$353)*('Fixed assets'!$U$2:$U$1000=Costs!$A386)*(AbschreibungAHKBvD))","v":0},{"$f":"SUM(E$178:E209)-SUM(E$266:E297)+SUMPRODUCT((Aktivierungsjahr=Costs!$A386)*(AbschreibungAGr=Costs!E$353)*('Fixed assets'!$U$2:$U$1000=Costs!$A386)*(AbschreibungAHKBvD))","v":0},{"$f":"SUM(F$178:F209)-SUM(F$266:F297)+SUMPRODUCT((Aktivierungsjahr=Costs!$A386)*(AbschreibungAGr=Costs!F$353)*('Fixed assets'!$U$2:$U$1000=Costs!$A386)*(AbschreibungAHKBvD))","v":0},{"$f":"SUM(G$178:G209)-SUM(G$266:G297)+SUMPRODUCT((Aktivierungsjahr=Costs!$A386)*(AbschreibungAGr=Costs!G$353)*('Fixed assets'!$U$2:$U$1000=Costs!$A386)*(AbschreibungAHKBvD))","v":0},{"$f":"SUM(H$178:H209)-SUM(H$266:H297)+SUMPRODUCT((Aktivierungsjahr=Costs!$A386)*(AbschreibungAGr=Costs!H$353)*('Fixed assets'!$U$2:$U$1000=Costs!$A386)*(AbschreibungAHKBvD))","v":0},{"$f":"SUM(I$178:I209)-SUM(I$266:I297)+SUMPRODUCT((Aktivierungsjahr=Costs!$A386)*(AbschreibungAGr=Costs!I$353)*('Fixed assets'!$U$2:$U$1000=Costs!$A386)*(AbschreibungAHKBvD))","v":0},{"$f":"SUM(J$178:J209)-SUM(J$266:J297)+SUMPRODUCT((Aktivierungsjahr=Costs!$A386)*(AbschreibungAGr=Costs!J$353)*('Fixed assets'!$U$2:$U$1000=Costs!$A386)*(AbschreibungAHKBvD))","v":0},{"$f":"SUM(K$178:K209)-SUM(K$266:K297)+SUMPRODUCT((Aktivierungsjahr=Costs!$A386)*(AbschreibungAGr=Costs!K$353)*('Fixed assets'!$U$2:$U$1000=Costs!$A386)*(AbschreibungAHKBvD))","v":0},{"$f":"SUM(L$178:L209)-SUM(L$266:L297)+SUMPRODUCT((Aktivierungsjahr=Costs!$A386)*(AbschreibungAGr=Costs!L$353)*('Fixed assets'!$U$2:$U$1000=Costs!$A386)*(AbschreibungAHKBvD))","v":0},{"$f":"SUM(M$178:M209)-SUM(M$266:M297)+SUMPRODUCT((Aktivierungsjahr=Costs!$A386)*(AbschreibungAGr=Costs!M$353)*('Fixed assets'!$U$2:$U$1000=Costs!$A386)*(AbschreibungAHKBvD))","v":0},{"$f":"SUM(N$178:N209)-SUM(N$266:N297)+SUMPRODUCT((Aktivierungsjahr=Costs!$A386)*(AbschreibungAGr=Costs!N$353)*('Fixed assets'!$U$2:$U$1000=Costs!$A386)*(AbschreibungAHKBvD))","v":0},{"$f":"SUM(O$178:O209)-SUM(O$266:O297)+SUMPRODUCT((Aktivierungsjahr=Costs!$A386)*(AbschreibungAGr=Costs!O$353)*('Fixed assets'!$U$2:$U$1000=Costs!$A386)*(AbschreibungAHKBvD))","v":0},{"$f":"SUM(P$178:P209)-SUM(P$266:P297)+SUMPRODUCT((Aktivierungsjahr=Costs!$A386)*(AbschreibungAGr=Costs!P$353)*('Fixed assets'!$U$2:$U$1000=Costs!$A386)*(AbschreibungAHKBvD))","v":18000000},{"$f":"SUM(Q$178:Q209)-SUM(Q$266:Q297)+SUMPRODUCT((Aktivierungsjahr=Costs!$A386)*(AbschreibungAGr=Costs!Q$353)*('Fixed assets'!$U$2:$U$1000=Costs!$A386)*(AbschreibungAHKBvD))","v":0},{"$f":"SUM(R$178:R209)-SUM(R$266:R297)+SUMPRODUCT((Aktivierungsjahr=Costs!$A386)*(AbschreibungAGr=Costs!R$353)*('Fixed assets'!$U$2:$U$1000=Costs!$A386)*(AbschreibungAHKBvD))","v":0},{"$f":"SUM(S$178:S209)-SUM(S$266:S297)+SUMPRODUCT((Aktivierungsjahr=Costs!$A386)*(AbschreibungAGr=Costs!S$353)*('Fixed assets'!$U$2:$U$1000=Costs!$A386)*(AbschreibungAHKBvD))","v":0},{"$f":"SUM(T$178:T209)-SUM(T$266:T297)+SUMPRODUCT((Aktivierungsjahr=Costs!$A386)*(AbschreibungAGr=Costs!T$353)*('Fixed assets'!$U$2:$U$1000=Costs!$A386)*(AbschreibungAHKBvD))","v":0},{"$f":"SUM(U$178:U209)-SUM(U$266:U297)+SUMPRODUCT((Aktivierungsjahr=Costs!$A386)*(AbschreibungAGr=Costs!U$353)*('Fixed assets'!$U$2:$U$1000=Costs!$A386)*(AbschreibungAHKBvD))","v":0},{"$f":"SUM(V$178:V209)-SUM(V$266:V297)+SUMPRODUCT((Aktivierungsjahr=Costs!$A386)*(AbschreibungAGr=Costs!V$353)*('Fixed assets'!$U$2:$U$1000=Costs!$A386)*(AbschreibungAHKBvD))","v":0},{"$f":"SUM(W$178:W209)-SUM(W$266:W297)+SUMPRODUCT((Aktivierungsjahr=Costs!$A386)*(AbschreibungAGr=Costs!W$353)*('Fixed assets'!$U$2:$U$1000=Costs!$A386)*(AbschreibungAHKBvD))","v":0},{"$f":"SUM(X$178:X209)-SUM(X$266:X297)+SUMPRODUCT((Aktivierungsjahr=Costs!$A386)*(AbschreibungAGr=Costs!X$353)*('Fixed assets'!$U$2:$U$1000=Costs!$A386)*(AbschreibungAHKBvD))","v":0},{"$f":"SUM(Y$178:Y209)-SUM(Y$266:Y297)+SUMPRODUCT((Aktivierungsjahr=Costs!$A386)*(AbschreibungAGr=Costs!Y$353)*('Fixed assets'!$U$2:$U$1000=Costs!$A386)*(AbschreibungAHKBvD))","v":0},{"$f":"SUM(Z$178:Z209)-SUM(Z$266:Z297)+SUMPRODUCT((Aktivierungsjahr=Costs!$A386)*(AbschreibungAGr=Costs!Z$353)*('Fixed assets'!$U$2:$U$1000=Costs!$A386)*(AbschreibungAHKBvD))","v":0},{"$f":"SUM(AA$178:AA209)-SUM(AA$266:AA297)+SUMPRODUCT((Aktivierungsjahr=Costs!$A386)*(AbschreibungAGr=Costs!AA$353)*('Fixed assets'!$U$2:$U$1000=Costs!$A386)*(AbschreibungAHKBvD))","v":0},{"$f":"SUM(AB$178:AB209)-SUM(AB$266:AB297)+SUMPRODUCT((Aktivierungsjahr=Costs!$A386)*(AbschreibungAGr=Costs!AB$353)*('Fixed assets'!$U$2:$U$1000=Costs!$A386)*(AbschreibungAHKBvD))","v":0},{"$f":"SUM(AC$178:AC209)-SUM(AC$266:AC297)+SUMPRODUCT((Aktivierungsjahr=Costs!$A386)*(AbschreibungAGr=Costs!AC$353)*('Fixed assets'!$U$2:$U$1000=Costs!$A386)*(AbschreibungAHKBvD))","v":0},{"$f":"SUM(AD$178:AD209)-SUM(AD$266:AD297)+SUMPRODUCT((Aktivierungsjahr=Costs!$A386)*(AbschreibungAGr=Costs!AD$353)*('Fixed assets'!$U$2:$U$1000=Costs!$A386)*(AbschreibungAHKBvD))","v":0},{"$f":"SUM(AE$178:AE209)-SUM(AE$266:AE297)+SUMPRODUCT((Aktivierungsjahr=Costs!$A386)*(AbschreibungAGr=Costs!AE$353)*('Fixed assets'!$U$2:$U$1000=Costs!$A386)*(AbschreibungAHKBvD))","v":0},{"$f":"SUM(AF$178:AF209)-SUM(AF$266:AF297)+SUMPRODUCT((Aktivierungsjahr=Costs!$A386)*(AbschreibungAGr=Costs!AF$353)*('Fixed assets'!$U$2:$U$1000=Costs!$A386)*(AbschreibungAHKBvD))","v":0},{"$f":"SUM(AG$178:AG209)-SUM(AG$266:AG297)+SUMPRODUCT((Aktivierungsjahr=Costs!$A386)*(AbschreibungAGr=Costs!AG$353)*('Fixed assets'!$U$2:$U$1000=Costs!$A386)*(AbschreibungAHKBvD))","v":0},{"$f":"SUM(AH$178:AH209)-SUM(AH$266:AH297)+SUMPRODUCT((Aktivierungsjahr=Costs!$A386)*(AbschreibungAGr=Costs!AH$353)*('Fixed assets'!$U$2:$U$1000=Costs!$A386)*(AbschreibungAHKBvD))","v":0},{"$f":"SUM(AI$178:AI209)-SUM(AI$266:AI297)+SUMPRODUCT((Aktivierungsjahr=Costs!$A386)*(AbschreibungAGr=Costs!AI$353)*('Fixed assets'!$U$2:$U$1000=Costs!$A386)*(AbschreibungAHKBvD))","v":0},{"$f":"SUM(AJ$178:AJ209)-SUM(AJ$266:AJ297)+SUMPRODUCT((Aktivierungsjahr=Costs!$A386)*(AbschreibungAGr=Costs!AJ$353)*('Fixed assets'!$U$2:$U$1000=Costs!$A386)*(AbschreibungAHKBvD))","v":511111.11111111083},{"$f":"SUM(AK$178:AK209)-SUM(AK$266:AK297)+SUMPRODUCT((Aktivierungsjahr=Costs!$A386)*(AbschreibungAGr=Costs!AK$353)*('Fixed assets'!$U$2:$U$1000=Costs!$A386)*(AbschreibungAHKBvD))","v":0},{"$f":"SUM(AL$178:AL209)-SUM(AL$266:AL297)+SUMPRODUCT((Aktivierungsjahr=Costs!$A386)*(AbschreibungAGr=Costs!AL$353)*('Fixed assets'!$U$2:$U$1000=Costs!$A386)*(AbschreibungAHKBvD))","v":0},{"$f":"SUM(AM$178:AM209)-SUM(AM$266:AM297)+SUMPRODUCT((Aktivierungsjahr=Costs!$A386)*(AbschreibungAGr=Costs!AM$353)*('Fixed assets'!$U$2:$U$1000=Costs!$A386)*(AbschreibungAHKBvD))","v":0},{"$f":"SUM(AN$178:AN209)-SUM(AN$266:AN297)+SUMPRODUCT((Aktivierungsjahr=Costs!$A386)*(AbschreibungAGr=Costs!AN$353)*('Fixed assets'!$U$2:$U$1000=Costs!$A386)*(AbschreibungAHKBvD))","v":0},{"$f":"SUM(AO$178:AO209)-SUM(AO$266:AO297)+SUMPRODUCT((Aktivierungsjahr=Costs!$A386)*(AbschreibungAGr=Costs!AO$353)*('Fixed assets'!$U$2:$U$1000=Costs!$A386)*(AbschreibungAHKBvD))","v":0},{"$f":"SUM(AP$178:AP209)-SUM(AP$266:AP297)+SUMPRODUCT((Aktivierungsjahr=Costs!$A386)*(AbschreibungAGr=Costs!AP$353)*('Fixed assets'!$U$2:$U$1000=Costs!$A386)*(AbschreibungAHKBvD))","v":0},{"$f":"SUM(AQ$178:AQ209)-SUM(AQ$266:AQ297)+SUMPRODUCT((Aktivierungsjahr=Costs!$A386)*(AbschreibungAGr=Costs!AQ$353)*('Fixed assets'!$U$2:$U$1000=Costs!$A386)*(AbschreibungAHKBvD))","v":0}]
[2048,12488888.888888888,{"$f":"SUM(C$178:C210)-SUM(C$266:C298)+SUMPRODUCT((Aktivierungsjahr=Costs!$A387)*(AbschreibungAGr=Costs!C$353)*('Fixed assets'!$U$2:$U$1000=Costs!$A387)*(AbschreibungAHKBvD))","v":0},{"$f":"SUM(D$178:D210)-SUM(D$266:D298)+SUMPRODUCT((Aktivierungsjahr=Costs!$A387)*(AbschreibungAGr=Costs!D$353)*('Fixed assets'!$U$2:$U$1000=Costs!$A387)*(AbschreibungAHKBvD))","v":0},{"$f":"SUM(E$178:E210)-SUM(E$266:E298)+SUMPRODUCT((Aktivierungsjahr=Costs!$A387)*(AbschreibungAGr=Costs!E$353)*('Fixed assets'!$U$2:$U$1000=Costs!$A387)*(AbschreibungAHKBvD))","v":0},{"$f":"SUM(F$178:F210)-SUM(F$266:F298)+SUMPRODUCT((Aktivierungsjahr=Costs!$A387)*(AbschreibungAGr=Costs!F$353)*('Fixed assets'!$U$2:$U$1000=Costs!$A387)*(AbschreibungAHKBvD))","v":0},{"$f":"SUM(G$178:G210)-SUM(G$266:G298)+SUMPRODUCT((Aktivierungsjahr=Costs!$A387)*(AbschreibungAGr=Costs!G$353)*('Fixed assets'!$U$2:$U$1000=Costs!$A387)*(AbschreibungAHKBvD))","v":0},{"$f":"SUM(H$178:H210)-SUM(H$266:H298)+SUMPRODUCT((Aktivierungsjahr=Costs!$A387)*(AbschreibungAGr=Costs!H$353)*('Fixed assets'!$U$2:$U$1000=Costs!$A387)*(AbschreibungAHKBvD))","v":0},{"$f":"SUM(I$178:I210)-SUM(I$266:I298)+SUMPRODUCT((Aktivierungsjahr=Costs!$A387)*(AbschreibungAGr=Costs!I$353)*('Fixed assets'!$U$2:$U$1000=Costs!$A387)*(AbschreibungAHKBvD))","v":0},{"$f":"SUM(J$178:J210)-SUM(J$266:J298)+SUMPRODUCT((Aktivierungsjahr=Costs!$A387)*(AbschreibungAGr=Costs!J$353)*('Fixed assets'!$U$2:$U$1000=Costs!$A387)*(AbschreibungAHKBvD))","v":0},{"$f":"SUM(K$178:K210)-SUM(K$266:K298)+SUMPRODUCT((Aktivierungsjahr=Costs!$A387)*(AbschreibungAGr=Costs!K$353)*('Fixed assets'!$U$2:$U$1000=Costs!$A387)*(AbschreibungAHKBvD))","v":0},{"$f":"SUM(L$178:L210)-SUM(L$266:L298)+SUMPRODUCT((Aktivierungsjahr=Costs!$A387)*(AbschreibungAGr=Costs!L$353)*('Fixed assets'!$U$2:$U$1000=Costs!$A387)*(AbschreibungAHKBvD))","v":0},{"$f":"SUM(M$178:M210)-SUM(M$266:M298)+SUMPRODUCT((Aktivierungsjahr=Costs!$A387)*(AbschreibungAGr=Costs!M$353)*('Fixed assets'!$U$2:$U$1000=Costs!$A387)*(AbschreibungAHKBvD))","v":0},{"$f":"SUM(N$178:N210)-SUM(N$266:N298)+SUMPRODUCT((Aktivierungsjahr=Costs!$A387)*(AbschreibungAGr=Costs!N$353)*('Fixed assets'!$U$2:$U$1000=Costs!$A387)*(AbschreibungAHKBvD))","v":0},{"$f":"SUM(O$178:O210)-SUM(O$266:O298)+SUMPRODUCT((Aktivierungsjahr=Costs!$A387)*(AbschreibungAGr=Costs!O$353)*('Fixed assets'!$U$2:$U$1000=Costs!$A387)*(AbschreibungAHKBvD))","v":0},{"$f":"SUM(P$178:P210)-SUM(P$266:P298)+SUMPRODUCT((Aktivierungsjahr=Costs!$A387)*(AbschreibungAGr=Costs!P$353)*('Fixed assets'!$U$2:$U$1000=Costs!$A387)*(AbschreibungAHKBvD))","v":12000000},{"$f":"SUM(Q$178:Q210)-SUM(Q$266:Q298)+SUMPRODUCT((Aktivierungsjahr=Costs!$A387)*(AbschreibungAGr=Costs!Q$353)*('Fixed assets'!$U$2:$U$1000=Costs!$A387)*(AbschreibungAHKBvD))","v":0},{"$f":"SUM(R$178:R210)-SUM(R$266:R298)+SUMPRODUCT((Aktivierungsjahr=Costs!$A387)*(AbschreibungAGr=Costs!R$353)*('Fixed assets'!$U$2:$U$1000=Costs!$A387)*(AbschreibungAHKBvD))","v":0},{"$f":"SUM(S$178:S210)-SUM(S$266:S298)+SUMPRODUCT((Aktivierungsjahr=Costs!$A387)*(AbschreibungAGr=Costs!S$353)*('Fixed assets'!$U$2:$U$1000=Costs!$A387)*(AbschreibungAHKBvD))","v":0},{"$f":"SUM(T$178:T210)-SUM(T$266:T298)+SUMPRODUCT((Aktivierungsjahr=Costs!$A387)*(AbschreibungAGr=Costs!T$353)*('Fixed assets'!$U$2:$U$1000=Costs!$A387)*(AbschreibungAHKBvD))","v":0},{"$f":"SUM(U$178:U210)-SUM(U$266:U298)+SUMPRODUCT((Aktivierungsjahr=Costs!$A387)*(AbschreibungAGr=Costs!U$353)*('Fixed assets'!$U$2:$U$1000=Costs!$A387)*(AbschreibungAHKBvD))","v":0},{"$f":"SUM(V$178:V210)-SUM(V$266:V298)+SUMPRODUCT((Aktivierungsjahr=Costs!$A387)*(AbschreibungAGr=Costs!V$353)*('Fixed assets'!$U$2:$U$1000=Costs!$A387)*(AbschreibungAHKBvD))","v":0},{"$f":"SUM(W$178:W210)-SUM(W$266:W298)+SUMPRODUCT((Aktivierungsjahr=Costs!$A387)*(AbschreibungAGr=Costs!W$353)*('Fixed assets'!$U$2:$U$1000=Costs!$A387)*(AbschreibungAHKBvD))","v":0},{"$f":"SUM(X$178:X210)-SUM(X$266:X298)+SUMPRODUCT((Aktivierungsjahr=Costs!$A387)*(AbschreibungAGr=Costs!X$353)*('Fixed assets'!$U$2:$U$1000=Costs!$A387)*(AbschreibungAHKBvD))","v":0},{"$f":"SUM(Y$178:Y210)-SUM(Y$266:Y298)+SUMPRODUCT((Aktivierungsjahr=Costs!$A387)*(AbschreibungAGr=Costs!Y$353)*('Fixed assets'!$U$2:$U$1000=Costs!$A387)*(AbschreibungAHKBvD))","v":0},{"$f":"SUM(Z$178:Z210)-SUM(Z$266:Z298)+SUMPRODUCT((Aktivierungsjahr=Costs!$A387)*(AbschreibungAGr=Costs!Z$353)*('Fixed assets'!$U$2:$U$1000=Costs!$A387)*(AbschreibungAHKBvD))","v":0},{"$f":"SUM(AA$178:AA210)-SUM(AA$266:AA298)+SUMPRODUCT((Aktivierungsjahr=Costs!$A387)*(AbschreibungAGr=Costs!AA$353)*('Fixed assets'!$U$2:$U$1000=Costs!$A387)*(AbschreibungAHKBvD))","v":0},{"$f":"SUM(AB$178:AB210)-SUM(AB$266:AB298)+SUMPRODUCT((Aktivierungsjahr=Costs!$A387)*(AbschreibungAGr=Costs!AB$353)*('Fixed assets'!$U$2:$U$1000=Costs!$A387)*(AbschreibungAHKBvD))","v":0},{"$f":"SUM(AC$178:AC210)-SUM(AC$266:AC298)+SUMPRODUCT((Aktivierungsjahr=Costs!$A387)*(AbschreibungAGr=Costs!AC$353)*('Fixed assets'!$U$2:$U$1000=Costs!$A387)*(AbschreibungAHKBvD))","v":0},{"$f":"SUM(AD$178:AD210)-SUM(AD$266:AD298)+SUMPRODUCT((Aktivierungsjahr=Costs!$A387)*(AbschreibungAGr=Costs!AD$353)*('Fixed assets'!$U$2:$U$1000=Costs!$A387)*(AbschreibungAHKBvD))","v":0},{"$f":"SUM(AE$178:AE210)-SUM(AE$266:AE298)+SUMPRODUCT((Aktivierungsjahr=Costs!$A387)*(AbschreibungAGr=Costs!AE$353)*('Fixed assets'!$U$2:$U$1000=Costs!$A387)*(AbschreibungAHKBvD))","v":0},{"$f":"SUM(AF$178:AF210)-SUM(AF$266:AF298)+SUMPRODUCT((Aktivierungsjahr=Costs!$A387)*(AbschreibungAGr=Costs!AF$353)*('Fixed assets'!$U$2:$U$1000=Costs!$A387)*(AbschreibungAHKBvD))","v":0},{"$f":"SUM(AG$178:AG210)-SUM(AG$266:AG298)+SUMPRODUCT((Aktivierungsjahr=Costs!$A387)*(AbschreibungAGr=Costs!AG$353)*('Fixed assets'!$U$2:$U$1000=Costs!$A387)*(AbschreibungAHKBvD))","v":0},{"$f":"SUM(AH$178:AH210)-SUM(AH$266:AH298)+SUMPRODUCT((Aktivierungsjahr=Costs!$A387)*(AbschreibungAGr=Costs!AH$353)*('Fixed assets'!$U$2:$U$1000=Costs!$A387)*(AbschreibungAHKBvD))","v":0},{"$f":"SUM(AI$178:AI210)-SUM(AI$266:AI298)+SUMPRODUCT((Aktivierungsjahr=Costs!$A387)*(AbschreibungAGr=Costs!AI$353)*('Fixed assets'!$U$2:$U$1000=Costs!$A387)*(AbschreibungAHKBvD))","v":0},{"$f":"SUM(AJ$178:AJ210)-SUM(AJ$266:AJ298)+SUMPRODUCT((Aktivierungsjahr=Costs!$A387)*(AbschreibungAGr=Costs!AJ$353)*('Fixed assets'!$U$2:$U$1000=Costs!$A387)*(AbschreibungAHKBvD))","v":488888.88888888858},{"$f":"SUM(AK$178:AK210)-SUM(AK$266:AK298)+SUMPRODUCT((Aktivierungsjahr=Costs!$A387)*(AbschreibungAGr=Costs!AK$353)*('Fixed assets'!$U$2:$U$1000=Costs!$A387)*(AbschreibungAHKBvD))","v":0},{"$f":"SUM(AL$178:AL210)-SUM(AL$266:AL298)+SUMPRODUCT((Aktivierungsjahr=Costs!$A387)*(AbschreibungAGr=Costs!AL$353)*('Fixed assets'!$U$2:$U$1000=Costs!$A387)*(AbschreibungAHKBvD))","v":0},{"$f":"SUM(AM$178:AM210)-SUM(AM$266:AM298)+SUMPRODUCT((Aktivierungsjahr=Costs!$A387)*(AbschreibungAGr=Costs!AM$353)*('Fixed assets'!$U$2:$U$1000=Costs!$A387)*(AbschreibungAHKBvD))","v":0},{"$f":"SUM(AN$178:AN210)-SUM(AN$266:AN298)+SUMPRODUCT((Aktivierungsjahr=Costs!$A387)*(AbschreibungAGr=Costs!AN$353)*('Fixed assets'!$U$2:$U$1000=Costs!$A387)*(AbschreibungAHKBvD))","v":0},{"$f":"SUM(AO$178:AO210)-SUM(AO$266:AO298)+SUMPRODUCT((Aktivierungsjahr=Costs!$A387)*(AbschreibungAGr=Costs!AO$353)*('Fixed assets'!$U$2:$U$1000=Costs!$A387)*(AbschreibungAHKBvD))","v":0},{"$f":"SUM(AP$178:AP210)-SUM(AP$266:AP298)+SUMPRODUCT((Aktivierungsjahr=Costs!$A387)*(AbschreibungAGr=Costs!AP$353)*('Fixed assets'!$U$2:$U$1000=Costs!$A387)*(AbschreibungAHKBvD))","v":0},{"$f":"SUM(AQ$178:AQ210)-SUM(AQ$266:AQ298)+SUMPRODUCT((Aktivierungsjahr=Costs!$A387)*(AbschreibungAGr=Costs!AQ$353)*('Fixed assets'!$U$2:$U$1000=Costs!$A387)*(AbschreibungAHKBvD))","v":0}]
[2049,6466666.666666666,{"$f":"SUM(C$178:C211)-SUM(C$266:C299)+SUMPRODUCT((Aktivierungsjahr=Costs!$A388)*(AbschreibungAGr=Costs!C$353)*('Fixed assets'!$U$2:$U$1000=Costs!$A388)*(AbschreibungAHKBvD))","v":0},{"$f":"SUM(D$178:D211)-SUM(D$266:D299)+SUMPRODUCT((Aktivierungsjahr=Costs!$A388)*(AbschreibungAGr=Costs!D$353)*('Fixed assets'!$U$2:$U$1000=Costs!$A388)*(AbschreibungAHKBvD))","v":0},{"$f":"SUM(E$178:E211)-SUM(E$266:E299)+SUMPRODUCT((Aktivierungsjahr=Costs!$A388)*(AbschreibungAGr=Costs!E$353)*('Fixed assets'!$U$2:$U$1000=Costs!$A388)*(AbschreibungAHKBvD))","v":0},{"$f":"SUM(F$178:F211)-SUM(F$266:F299)+SUMPRODUCT((Aktivierungsjahr=Costs!$A388)*(AbschreibungAGr=Costs!F$353)*('Fixed assets'!$U$2:$U$1000=Costs!$A388)*(AbschreibungAHKBvD))","v":0},{"$f":"SUM(G$178:G211)-SUM(G$266:G299)+SUMPRODUCT((Aktivierungsjahr=Costs!$A388)*(AbschreibungAGr=Costs!G$353)*('Fixed assets'!$U$2:$U$1000=Costs!$A388)*(AbschreibungAHKBvD))","v":0},{"$f":"SUM(H$178:H211)-SUM(H$266:H299)+SUMPRODUCT((Aktivierungsjahr=Costs!$A388)*(AbschreibungAGr=Costs!H$353)*('Fixed assets'!$U$2:$U$1000=Costs!$A388)*(AbschreibungAHKBvD))","v":0},{"$f":"SUM(I$178:I211)-SUM(I$266:I299)+SUMPRODUCT((Aktivierungsjahr=Costs!$A388)*(AbschreibungAGr=Costs!I$353)*('Fixed assets'!$U$2:$U$1000=Costs!$A388)*(AbschreibungAHKBvD))","v":0},{"$f":"SUM(J$178:J211)-SUM(J$266:J299)+SUMPRODUCT((Aktivierungsjahr=Costs!$A388)*(AbschreibungAGr=Costs!J$353)*('Fixed assets'!$U$2:$U$1000=Costs!$A388)*(AbschreibungAHKBvD))","v":0},{"$f":"SUM(K$178:K211)-SUM(K$266:K299)+SUMPRODUCT((Aktivierungsjahr=Costs!$A388)*(AbschreibungAGr=Costs!K$353)*('Fixed assets'!$U$2:$U$1000=Costs!$A388)*(AbschreibungAHKBvD))","v":0},{"$f":"SUM(L$178:L211)-SUM(L$266:L299)+SUMPRODUCT((Aktivierungsjahr=Costs!$A388)*(AbschreibungAGr=Costs!L$353)*('Fixed assets'!$U$2:$U$1000=Costs!$A388)*(AbschreibungAHKBvD))","v":0},{"$f":"SUM(M$178:M211)-SUM(M$266:M299)+SUMPRODUCT((Aktivierungsjahr=Costs!$A388)*(AbschreibungAGr=Costs!M$353)*('Fixed assets'!$U$2:$U$1000=Costs!$A388)*(AbschreibungAHKBvD))","v":0},{"$f":"SUM(N$178:N211)-SUM(N$266:N299)+SUMPRODUCT((Aktivierungsjahr=Costs!$A388)*(AbschreibungAGr=Costs!N$353)*('Fixed assets'!$U$2:$U$1000=Costs!$A388)*(AbschreibungAHKBvD))","v":0},{"$f":"SUM(O$178:O211)-SUM(O$266:O299)+SUMPRODUCT((Aktivierungsjahr=Costs!$A388)*(AbschreibungAGr=Costs!O$353)*('Fixed assets'!$U$2:$U$1000=Costs!$A388)*(AbschreibungAHKBvD))","v":0},{"$f":"SUM(P$178:P211)-SUM(P$266:P299)+SUMPRODUCT((Aktivierungsjahr=Costs!$A388)*(AbschreibungAGr=Costs!P$353)*('Fixed assets'!$U$2:$U$1000=Costs!$A388)*(AbschreibungAHKBvD))","v":6000000},{"$f":"SUM(Q$178:Q211)-SUM(Q$266:Q299)+SUMPRODUCT((Aktivierungsjahr=Costs!$A388)*(AbschreibungAGr=Costs!Q$353)*('Fixed assets'!$U$2:$U$1000=Costs!$A388)*(AbschreibungAHKBvD))","v":0},{"$f":"SUM(R$178:R211)-SUM(R$266:R299)+SUMPRODUCT((Aktivierungsjahr=Costs!$A388)*(AbschreibungAGr=Costs!R$353)*('Fixed assets'!$U$2:$U$1000=Costs!$A388)*(AbschreibungAHKBvD))","v":0},{"$f":"SUM(S$178:S211)-SUM(S$266:S299)+SUMPRODUCT((Aktivierungsjahr=Costs!$A388)*(AbschreibungAGr=Costs!S$353)*('Fixed assets'!$U$2:$U$1000=Costs!$A388)*(AbschreibungAHKBvD))","v":0},{"$f":"SUM(T$178:T211)-SUM(T$266:T299)+SUMPRODUCT((Aktivierungsjahr=Costs!$A388)*(AbschreibungAGr=Costs!T$353)*('Fixed assets'!$U$2:$U$1000=Costs!$A388)*(AbschreibungAHKBvD))","v":0},{"$f":"SUM(U$178:U211)-SUM(U$266:U299)+SUMPRODUCT((Aktivierungsjahr=Costs!$A388)*(AbschreibungAGr=Costs!U$353)*('Fixed assets'!$U$2:$U$1000=Costs!$A388)*(AbschreibungAHKBvD))","v":0},{"$f":"SUM(V$178:V211)-SUM(V$266:V299)+SUMPRODUCT((Aktivierungsjahr=Costs!$A388)*(AbschreibungAGr=Costs!V$353)*('Fixed assets'!$U$2:$U$1000=Costs!$A388)*(AbschreibungAHKBvD))","v":0},{"$f":"SUM(W$178:W211)-SUM(W$266:W299)+SUMPRODUCT((Aktivierungsjahr=Costs!$A388)*(AbschreibungAGr=Costs!W$353)*('Fixed assets'!$U$2:$U$1000=Costs!$A388)*(AbschreibungAHKBvD))","v":0},{"$f":"SUM(X$178:X211)-SUM(X$266:X299)+SUMPRODUCT((Aktivierungsjahr=Costs!$A388)*(AbschreibungAGr=Costs!X$353)*('Fixed assets'!$U$2:$U$1000=Costs!$A388)*(AbschreibungAHKBvD))","v":0},{"$f":"SUM(Y$178:Y211)-SUM(Y$266:Y299)+SUMPRODUCT((Aktivierungsjahr=Costs!$A388)*(AbschreibungAGr=Costs!Y$353)*('Fixed assets'!$U$2:$U$1000=Costs!$A388)*(AbschreibungAHKBvD))","v":0},{"$f":"SUM(Z$178:Z211)-SUM(Z$266:Z299)+SUMPRODUCT((Aktivierungsjahr=Costs!$A388)*(AbschreibungAGr=Costs!Z$353)*('Fixed assets'!$U$2:$U$1000=Costs!$A388)*(AbschreibungAHKBvD))","v":0},{"$f":"SUM(AA$178:AA211)-SUM(AA$266:AA299)+SUMPRODUCT((Aktivierungsjahr=Costs!$A388)*(AbschreibungAGr=Costs!AA$353)*('Fixed assets'!$U$2:$U$1000=Costs!$A388)*(AbschreibungAHKBvD))","v":0},{"$f":"SUM(AB$178:AB211)-SUM(AB$266:AB299)+SUMPRODUCT((Aktivierungsjahr=Costs!$A388)*(AbschreibungAGr=Costs!AB$353)*('Fixed assets'!$U$2:$U$1000=Costs!$A388)*(AbschreibungAHKBvD))","v":0},{"$f":"SUM(AC$178:AC211)-SUM(AC$266:AC299)+SUMPRODUCT((Aktivierungsjahr=Costs!$A388)*(AbschreibungAGr=Costs!AC$353)*('Fixed assets'!$U$2:$U$1000=Costs!$A388)*(AbschreibungAHKBvD))","v":0},{"$f":"SUM(AD$178:AD211)-SUM(AD$266:AD299)+SUMPRODUCT((Aktivierungsjahr=Costs!$A388)*(AbschreibungAGr=Costs!AD$353)*('Fixed assets'!$U$2:$U$1000=Costs!$A388)*(AbschreibungAHKBvD))","v":0},{"$f":"SUM(AE$178:AE211)-SUM(AE$266:AE299)+SUMPRODUCT((Aktivierungsjahr=Costs!$A388)*(AbschreibungAGr=Costs!AE$353)*('Fixed assets'!$U$2:$U$1000=Costs!$A388)*(AbschreibungAHKBvD))","v":0},{"$f":"SUM(AF$178:AF211)-SUM(AF$266:AF299)+SUMPRODUCT((Aktivierungsjahr=Costs!$A388)*(AbschreibungAGr=Costs!AF$353)*('Fixed assets'!$U$2:$U$1000=Costs!$A388)*(AbschreibungAHKBvD))","v":0},{"$f":"SUM(AG$178:AG211)-SUM(AG$266:AG299)+SUMPRODUCT((Aktivierungsjahr=Costs!$A388)*(AbschreibungAGr=Costs!AG$353)*('Fixed assets'!$U$2:$U$1000=Costs!$A388)*(AbschreibungAHKBvD))","v":0},{"$f":"SUM(AH$178:AH211)-SUM(AH$266:AH299)+SUMPRODUCT((Aktivierungsjahr=Costs!$A388)*(AbschreibungAGr=Costs!AH$353)*('Fixed assets'!$U$2:$U$1000=Costs!$A388)*(AbschreibungAHKBvD))","v":0},{"$f":"SUM(AI$178:AI211)-SUM(AI$266:AI299)+SUMPRODUCT((Aktivierungsjahr=Costs!$A388)*(AbschreibungAGr=Costs!AI$353)*('Fixed assets'!$U$2:$U$1000=Costs!$A388)*(AbschreibungAHKBvD))","v":0},{"$f":"SUM(AJ$178:AJ211)-SUM(AJ$266:AJ299)+SUMPRODUCT((Aktivierungsjahr=Costs!$A388)*(AbschreibungAGr=Costs!AJ$353)*('Fixed assets'!$U$2:$U$1000=Costs!$A388)*(AbschreibungAHKBvD))","v":466666.6666666664},{"$f":"SUM(AK$178:AK211)-SUM(AK$266:AK299)+SUMPRODUCT((Aktivierungsjahr=Costs!$A388)*(AbschreibungAGr=Costs!AK$353)*('Fixed assets'!$U$2:$U$1000=Costs!$A388)*(AbschreibungAHKBvD))","v":0},{"$f":"SUM(AL$178:AL211)-SUM(AL$266:AL299)+SUMPRODUCT((Aktivierungsjahr=Costs!$A388)*(AbschreibungAGr=Costs!AL$353)*('Fixed assets'!$U$2:$U$1000=Costs!$A388)*(AbschreibungAHKBvD))","v":0},{"$f":"SUM(AM$178:AM211)-SUM(AM$266:AM299)+SUMPRODUCT((Aktivierungsjahr=Costs!$A388)*(AbschreibungAGr=Costs!AM$353)*('Fixed assets'!$U$2:$U$1000=Costs!$A388)*(AbschreibungAHKBvD))","v":0},{"$f":"SUM(AN$178:AN211)-SUM(AN$266:AN299)+SUMPRODUCT((Aktivierungsjahr=Costs!$A388)*(AbschreibungAGr=Costs!AN$353)*('Fixed assets'!$U$2:$U$1000=Costs!$A388)*(AbschreibungAHKBvD))","v":0},{"$f":"SUM(AO$178:AO211)-SUM(AO$266:AO299)+SUMPRODUCT((Aktivierungsjahr=Costs!$A388)*(AbschreibungAGr=Costs!AO$353)*('Fixed assets'!$U$2:$U$1000=Costs!$A388)*(AbschreibungAHKBvD))","v":0},{"$f":"SUM(AP$178:AP211)-SUM(AP$266:AP299)+SUMPRODUCT((Aktivierungsjahr=Costs!$A388)*(AbschreibungAGr=Costs!AP$353)*('Fixed assets'!$U$2:$U$1000=Costs!$A388)*(AbschreibungAHKBvD))","v":0},{"$f":"SUM(AQ$178:AQ211)-SUM(AQ$266:AQ299)+SUMPRODUCT((Aktivierungsjahr=Costs!$A388)*(AbschreibungAGr=Costs!AQ$353)*('Fixed assets'!$U$2:$U$1000=Costs!$A388)*(AbschreibungAHKBvD))","v":0}]
[2050,444444.44444444415,{"$f":"SUM(C$178:C212)-SUM(C$266:C300)+SUMPRODUCT((Aktivierungsjahr=Costs!$A389)*(AbschreibungAGr=Costs!C$353)*('Fixed assets'!$U$2:$U$1000=Costs!$A389)*(AbschreibungAHKBvD))","v":0},{"$f":"SUM(D$178:D212)-SUM(D$266:D300)+SUMPRODUCT((Aktivierungsjahr=Costs!$A389)*(AbschreibungAGr=Costs!D$353)*('Fixed assets'!$U$2:$U$1000=Costs!$A389)*(AbschreibungAHKBvD))","v":0},{"$f":"SUM(E$178:E212)-SUM(E$266:E300)+SUMPRODUCT((Aktivierungsjahr=Costs!$A389)*(AbschreibungAGr=Costs!E$353)*('Fixed assets'!$U$2:$U$1000=Costs!$A389)*(AbschreibungAHKBvD))","v":0},{"$f":"SUM(F$178:F212)-SUM(F$266:F300)+SUMPRODUCT((Aktivierungsjahr=Costs!$A389)*(AbschreibungAGr=Costs!F$353)*('Fixed assets'!$U$2:$U$1000=Costs!$A389)*(AbschreibungAHKBvD))","v":0},{"$f":"SUM(G$178:G212)-SUM(G$266:G300)+SUMPRODUCT((Aktivierungsjahr=Costs!$A389)*(AbschreibungAGr=Costs!G$353)*('Fixed assets'!$U$2:$U$1000=Costs!$A389)*(AbschreibungAHKBvD))","v":0},{"$f":"SUM(H$178:H212)-SUM(H$266:H300)+SUMPRODUCT((Aktivierungsjahr=Costs!$A389)*(AbschreibungAGr=Costs!H$353)*('Fixed assets'!$U$2:$U$1000=Costs!$A389)*(AbschreibungAHKBvD))","v":0},{"$f":"SUM(I$178:I212)-SUM(I$266:I300)+SUMPRODUCT((Aktivierungsjahr=Costs!$A389)*(AbschreibungAGr=Costs!I$353)*('Fixed assets'!$U$2:$U$1000=Costs!$A389)*(AbschreibungAHKBvD))","v":0},{"$f":"SUM(J$178:J212)-SUM(J$266:J300)+SUMPRODUCT((Aktivierungsjahr=Costs!$A389)*(AbschreibungAGr=Costs!J$353)*('Fixed assets'!$U$2:$U$1000=Costs!$A389)*(AbschreibungAHKBvD))","v":0},{"$f":"SUM(K$178:K212)-SUM(K$266:K300)+SUMPRODUCT((Aktivierungsjahr=Costs!$A389)*(AbschreibungAGr=Costs!K$353)*('Fixed assets'!$U$2:$U$1000=Costs!$A389)*(AbschreibungAHKBvD))","v":0},{"$f":"SUM(L$178:L212)-SUM(L$266:L300)+SUMPRODUCT((Aktivierungsjahr=Costs!$A389)*(AbschreibungAGr=Costs!L$353)*('Fixed assets'!$U$2:$U$1000=Costs!$A389)*(AbschreibungAHKBvD))","v":0},{"$f":"SUM(M$178:M212)-SUM(M$266:M300)+SUMPRODUCT((Aktivierungsjahr=Costs!$A389)*(AbschreibungAGr=Costs!M$353)*('Fixed assets'!$U$2:$U$1000=Costs!$A389)*(AbschreibungAHKBvD))","v":0},{"$f":"SUM(N$178:N212)-SUM(N$266:N300)+SUMPRODUCT((Aktivierungsjahr=Costs!$A389)*(AbschreibungAGr=Costs!N$353)*('Fixed assets'!$U$2:$U$1000=Costs!$A389)*(AbschreibungAHKBvD))","v":0},{"$f":"SUM(O$178:O212)-SUM(O$266:O300)+SUMPRODUCT((Aktivierungsjahr=Costs!$A389)*(AbschreibungAGr=Costs!O$353)*('Fixed assets'!$U$2:$U$1000=Costs!$A389)*(AbschreibungAHKBvD))","v":0},{"$f":"SUM(P$178:P212)-SUM(P$266:P300)+SUMPRODUCT((Aktivierungsjahr=Costs!$A389)*(AbschreibungAGr=Costs!P$353)*('Fixed assets'!$U$2:$U$1000=Costs!$A389)*(AbschreibungAHKBvD))","v":0},{"$f":"SUM(Q$178:Q212)-SUM(Q$266:Q300)+SUMPRODUCT((Aktivierungsjahr=Costs!$A389)*(AbschreibungAGr=Costs!Q$353)*('Fixed assets'!$U$2:$U$1000=Costs!$A389)*(AbschreibungAHKBvD))","v":0},{"$f":"SUM(R$178:R212)-SUM(R$266:R300)+SUMPRODUCT((Aktivierungsjahr=Costs!$A389)*(AbschreibungAGr=Costs!R$353)*('Fixed assets'!$U$2:$U$1000=Costs!$A389)*(AbschreibungAHKBvD))","v":0},{"$f":"SUM(S$178:S212)-SUM(S$266:S300)+SUMPRODUCT((Aktivierungsjahr=Costs!$A389)*(AbschreibungAGr=Costs!S$353)*('Fixed assets'!$U$2:$U$1000=Costs!$A389)*(AbschreibungAHKBvD))","v":0},{"$f":"SUM(T$178:T212)-SUM(T$266:T300)+SUMPRODUCT((Aktivierungsjahr=Costs!$A389)*(AbschreibungAGr=Costs!T$353)*('Fixed assets'!$U$2:$U$1000=Costs!$A389)*(AbschreibungAHKBvD))","v":0},{"$f":"SUM(U$178:U212)-SUM(U$266:U300)+SUMPRODUCT((Aktivierungsjahr=Costs!$A389)*(AbschreibungAGr=Costs!U$353)*('Fixed assets'!$U$2:$U$1000=Costs!$A389)*(AbschreibungAHKBvD))","v":0},{"$f":"SUM(V$178:V212)-SUM(V$266:V300)+SUMPRODUCT((Aktivierungsjahr=Costs!$A389)*(AbschreibungAGr=Costs!V$353)*('Fixed assets'!$U$2:$U$1000=Costs!$A389)*(AbschreibungAHKBvD))","v":0},{"$f":"SUM(W$178:W212)-SUM(W$266:W300)+SUMPRODUCT((Aktivierungsjahr=Costs!$A389)*(AbschreibungAGr=Costs!W$353)*('Fixed assets'!$U$2:$U$1000=Costs!$A389)*(AbschreibungAHKBvD))","v":0},{"$f":"SUM(X$178:X212)-SUM(X$266:X300)+SUMPRODUCT((Aktivierungsjahr=Costs!$A389)*(AbschreibungAGr=Costs!X$353)*('Fixed assets'!$U$2:$U$1000=Costs!$A389)*(AbschreibungAHKBvD))","v":0},{"$f":"SUM(Y$178:Y212)-SUM(Y$266:Y300)+SUMPRODUCT((Aktivierungsjahr=Costs!$A389)*(AbschreibungAGr=Costs!Y$353)*('Fixed assets'!$U$2:$U$1000=Costs!$A389)*(AbschreibungAHKBvD))","v":0},{"$f":"SUM(Z$178:Z212)-SUM(Z$266:Z300)+SUMPRODUCT((Aktivierungsjahr=Costs!$A389)*(AbschreibungAGr=Costs!Z$353)*('Fixed assets'!$U$2:$U$1000=Costs!$A389)*(AbschreibungAHKBvD))","v":0},{"$f":"SUM(AA$178:AA212)-SUM(AA$266:AA300)+SUMPRODUCT((Aktivierungsjahr=Costs!$A389)*(AbschreibungAGr=Costs!AA$353)*('Fixed assets'!$U$2:$U$1000=Costs!$A389)*(AbschreibungAHKBvD))","v":0},{"$f":"SUM(AB$178:AB212)-SUM(AB$266:AB300)+SUMPRODUCT((Aktivierungsjahr=Costs!$A389)*(AbschreibungAGr=Costs!AB$353)*('Fixed assets'!$U$2:$U$1000=Costs!$A389)*(AbschreibungAHKBvD))","v":0},{"$f":"SUM(AC$178:AC212)-SUM(AC$266:AC300)+SUMPRODUCT((Aktivierungsjahr=Costs!$A389)*(AbschreibungAGr=Costs!AC$353)*('Fixed assets'!$U$2:$U$1000=Costs!$A389)*(AbschreibungAHKBvD))","v":0},{"$f":"SUM(AD$178:AD212)-SUM(AD$266:AD300)+SUMPRODUCT((Aktivierungsjahr=Costs!$A389)*(AbschreibungAGr=Costs!AD$353)*('Fixed assets'!$U$2:$U$1000=Costs!$A389)*(AbschreibungAHKBvD))","v":0},{"$f":"SUM(AE$178:AE212)-SUM(AE$266:AE300)+SUMPRODUCT((Aktivierungsjahr=Costs!$A389)*(AbschreibungAGr=Costs!AE$353)*('Fixed assets'!$U$2:$U$1000=Costs!$A389)*(AbschreibungAHKBvD))","v":0},{"$f":"SUM(AF$178:AF212)-SUM(AF$266:AF300)+SUMPRODUCT((Aktivierungsjahr=Costs!$A389)*(AbschreibungAGr=Costs!AF$353)*('Fixed assets'!$U$2:$U$1000=Costs!$A389)*(AbschreibungAHKBvD))","v":0},{"$f":"SUM(AG$178:AG212)-SUM(AG$266:AG300)+SUMPRODUCT((Aktivierungsjahr=Costs!$A389)*(AbschreibungAGr=Costs!AG$353)*('Fixed assets'!$U$2:$U$1000=Costs!$A389)*(AbschreibungAHKBvD))","v":0},{"$f":"SUM(AH$178:AH212)-SUM(AH$266:AH300)+SUMPRODUCT((Aktivierungsjahr=Costs!$A389)*(AbschreibungAGr=Costs!AH$353)*('Fixed assets'!$U$2:$U$1000=Costs!$A389)*(AbschreibungAHKBvD))","v":0},{"$f":"SUM(AI$178:AI212)-SUM(AI$266:AI300)+SUMPRODUCT((Aktivierungsjahr=Costs!$A389)*(AbschreibungAGr=Costs!AI$353)*('Fixed assets'!$U$2:$U$1000=Costs!$A389)*(AbschreibungAHKBvD))","v":0},{"$f":"SUM(AJ$178:AJ212)-SUM(AJ$266:AJ300)+SUMPRODUCT((Aktivierungsjahr=Costs!$A389)*(AbschreibungAGr=Costs!AJ$353)*('Fixed assets'!$U$2:$U$1000=Costs!$A389)*(AbschreibungAHKBvD))","v":444444.44444444415},{"$f":"SUM(AK$178:AK212)-SUM(AK$266:AK300)+SUMPRODUCT((Aktivierungsjahr=Costs!$A389)*(AbschreibungAGr=Costs!AK$353)*('Fixed assets'!$U$2:$U$1000=Costs!$A389)*(AbschreibungAHKBvD))","v":0},{"$f":"SUM(AL$178:AL212)-SUM(AL$266:AL300)+SUMPRODUCT((Aktivierungsjahr=Costs!$A389)*(AbschreibungAGr=Costs!AL$353)*('Fixed assets'!$U$2:$U$1000=Costs!$A389)*(AbschreibungAHKBvD))","v":0},{"$f":"SUM(AM$178:AM212)-SUM(AM$266:AM300)+SUMPRODUCT((Aktivierungsjahr=Costs!$A389)*(AbschreibungAGr=Costs!AM$353)*('Fixed assets'!$U$2:$U$1000=Costs!$A389)*(AbschreibungAHKBvD))","v":0},{"$f":"SUM(AN$178:AN212)-SUM(AN$266:AN300)+SUMPRODUCT((Aktivierungsjahr=Costs!$A389)*(AbschreibungAGr=Costs!AN$353)*('Fixed assets'!$U$2:$U$1000=Costs!$A389)*(AbschreibungAHKBvD))","v":0},{"$f":"SUM(AO$178:AO212)-SUM(AO$266:AO300)+SUMPRODUCT((Aktivierungsjahr=Costs!$A389)*(AbschreibungAGr=Costs!AO$353)*('Fixed assets'!$U$2:$U$1000=Costs!$A389)*(AbschreibungAHKBvD))","v":0},{"$f":"SUM(AP$178:AP212)-SUM(AP$266:AP300)+SUMPRODUCT((Aktivierungsjahr=Costs!$A389)*(AbschreibungAGr=Costs!AP$353)*('Fixed assets'!$U$2:$U$1000=Costs!$A389)*(AbschreibungAHKBvD))","v":0},{"$f":"SUM(AQ$178:AQ212)-SUM(AQ$266:AQ300)+SUMPRODUCT((Aktivierungsjahr=Costs!$A389)*(AbschreibungAGr=Costs!AQ$353)*('Fixed assets'!$U$2:$U$1000=Costs!$A389)*(AbschreibungAHKBvD))","v":0}]
[2051,422222.2222222219,{"$f":"SUM(C$178:C213)-SUM(C$266:C301)+SUMPRODUCT((Aktivierungsjahr=Costs!$A390)*(AbschreibungAGr=Costs!C$353)*('Fixed assets'!$U$2:$U$1000=Costs!$A390)*(AbschreibungAHKBvD))","v":0},{"$f":"SUM(D$178:D213)-SUM(D$266:D301)+SUMPRODUCT((Aktivierungsjahr=Costs!$A390)*(AbschreibungAGr=Costs!D$353)*('Fixed assets'!$U$2:$U$1000=Costs!$A390)*(AbschreibungAHKBvD))","v":0},{"$f":"SUM(E$178:E213)-SUM(E$266:E301)+SUMPRODUCT((Aktivierungsjahr=Costs!$A390)*(AbschreibungAGr=Costs!E$353)*('Fixed assets'!$U$2:$U$1000=Costs!$A390)*(AbschreibungAHKBvD))","v":0},{"$f":"SUM(F$178:F213)-SUM(F$266:F301)+SUMPRODUCT((Aktivierungsjahr=Costs!$A390)*(AbschreibungAGr=Costs!F$353)*('Fixed assets'!$U$2:$U$1000=Costs!$A390)*(AbschreibungAHKBvD))","v":0},{"$f":"SUM(G$178:G213)-SUM(G$266:G301)+SUMPRODUCT((Aktivierungsjahr=Costs!$A390)*(AbschreibungAGr=Costs!G$353)*('Fixed assets'!$U$2:$U$1000=Costs!$A390)*(AbschreibungAHKBvD))","v":0},{"$f":"SUM(H$178:H213)-SUM(H$266:H301)+SUMPRODUCT((Aktivierungsjahr=Costs!$A390)*(AbschreibungAGr=Costs!H$353)*('Fixed assets'!$U$2:$U$1000=Costs!$A390)*(AbschreibungAHKBvD))","v":0},{"$f":"SUM(I$178:I213)-SUM(I$266:I301)+SUMPRODUCT((Aktivierungsjahr=Costs!$A390)*(AbschreibungAGr=Costs!I$353)*('Fixed assets'!$U$2:$U$1000=Costs!$A390)*(AbschreibungAHKBvD))","v":0},{"$f":"SUM(J$178:J213)-SUM(J$266:J301)+SUMPRODUCT((Aktivierungsjahr=Costs!$A390)*(AbschreibungAGr=Costs!J$353)*('Fixed assets'!$U$2:$U$1000=Costs!$A390)*(AbschreibungAHKBvD))","v":0},{"$f":"SUM(K$178:K213)-SUM(K$266:K301)+SUMPRODUCT((Aktivierungsjahr=Costs!$A390)*(AbschreibungAGr=Costs!K$353)*('Fixed assets'!$U$2:$U$1000=Costs!$A390)*(AbschreibungAHKBvD))","v":0},{"$f":"SUM(L$178:L213)-SUM(L$266:L301)+SUMPRODUCT((Aktivierungsjahr=Costs!$A390)*(AbschreibungAGr=Costs!L$353)*('Fixed assets'!$U$2:$U$1000=Costs!$A390)*(AbschreibungAHKBvD))","v":0},{"$f":"SUM(M$178:M213)-SUM(M$266:M301)+SUMPRODUCT((Aktivierungsjahr=Costs!$A390)*(AbschreibungAGr=Costs!M$353)*('Fixed assets'!$U$2:$U$1000=Costs!$A390)*(AbschreibungAHKBvD))","v":0},{"$f":"SUM(N$178:N213)-SUM(N$266:N301)+SUMPRODUCT((Aktivierungsjahr=Costs!$A390)*(AbschreibungAGr=Costs!N$353)*('Fixed assets'!$U$2:$U$1000=Costs!$A390)*(AbschreibungAHKBvD))","v":0},{"$f":"SUM(O$178:O213)-SUM(O$266:O301)+SUMPRODUCT((Aktivierungsjahr=Costs!$A390)*(AbschreibungAGr=Costs!O$353)*('Fixed assets'!$U$2:$U$1000=Costs!$A390)*(AbschreibungAHKBvD))","v":0},{"$f":"SUM(P$178:P213)-SUM(P$266:P301)+SUMPRODUCT((Aktivierungsjahr=Costs!$A390)*(AbschreibungAGr=Costs!P$353)*('Fixed assets'!$U$2:$U$1000=Costs!$A390)*(AbschreibungAHKBvD))","v":0},{"$f":"SUM(Q$178:Q213)-SUM(Q$266:Q301)+SUMPRODUCT((Aktivierungsjahr=Costs!$A390)*(AbschreibungAGr=Costs!Q$353)*('Fixed assets'!$U$2:$U$1000=Costs!$A390)*(AbschreibungAHKBvD))","v":0},{"$f":"SUM(R$178:R213)-SUM(R$266:R301)+SUMPRODUCT((Aktivierungsjahr=Costs!$A390)*(AbschreibungAGr=Costs!R$353)*('Fixed assets'!$U$2:$U$1000=Costs!$A390)*(AbschreibungAHKBvD))","v":0},{"$f":"SUM(S$178:S213)-SUM(S$266:S301)+SUMPRODUCT((Aktivierungsjahr=Costs!$A390)*(AbschreibungAGr=Costs!S$353)*('Fixed assets'!$U$2:$U$1000=Costs!$A390)*(AbschreibungAHKBvD))","v":0},{"$f":"SUM(T$178:T213)-SUM(T$266:T301)+SUMPRODUCT((Aktivierungsjahr=Costs!$A390)*(AbschreibungAGr=Costs!T$353)*('Fixed assets'!$U$2:$U$1000=Costs!$A390)*(AbschreibungAHKBvD))","v":0},{"$f":"SUM(U$178:U213)-SUM(U$266:U301)+SUMPRODUCT((Aktivierungsjahr=Costs!$A390)*(AbschreibungAGr=Costs!U$353)*('Fixed assets'!$U$2:$U$1000=Costs!$A390)*(AbschreibungAHKBvD))","v":0},{"$f":"SUM(V$178:V213)-SUM(V$266:V301)+SUMPRODUCT((Aktivierungsjahr=Costs!$A390)*(AbschreibungAGr=Costs!V$353)*('Fixed assets'!$U$2:$U$1000=Costs!$A390)*(AbschreibungAHKBvD))","v":0},{"$f":"SUM(W$178:W213)-SUM(W$266:W301)+SUMPRODUCT((Aktivierungsjahr=Costs!$A390)*(AbschreibungAGr=Costs!W$353)*('Fixed assets'!$U$2:$U$1000=Costs!$A390)*(AbschreibungAHKBvD))","v":0},{"$f":"SUM(X$178:X213)-SUM(X$266:X301)+SUMPRODUCT((Aktivierungsjahr=Costs!$A390)*(AbschreibungAGr=Costs!X$353)*('Fixed assets'!$U$2:$U$1000=Costs!$A390)*(AbschreibungAHKBvD))","v":0},{"$f":"SUM(Y$178:Y213)-SUM(Y$266:Y301)+SUMPRODUCT((Aktivierungsjahr=Costs!$A390)*(AbschreibungAGr=Costs!Y$353)*('Fixed assets'!$U$2:$U$1000=Costs!$A390)*(AbschreibungAHKBvD))","v":0},{"$f":"SUM(Z$178:Z213)-SUM(Z$266:Z301)+SUMPRODUCT((Aktivierungsjahr=Costs!$A390)*(AbschreibungAGr=Costs!Z$353)*('Fixed assets'!$U$2:$U$1000=Costs!$A390)*(AbschreibungAHKBvD))","v":0},{"$f":"SUM(AA$178:AA213)-SUM(AA$266:AA301)+SUMPRODUCT((Aktivierungsjahr=Costs!$A390)*(AbschreibungAGr=Costs!AA$353)*('Fixed assets'!$U$2:$U$1000=Costs!$A390)*(AbschreibungAHKBvD))","v":0},{"$f":"SUM(AB$178:AB213)-SUM(AB$266:AB301)+SUMPRODUCT((Aktivierungsjahr=Costs!$A390)*(AbschreibungAGr=Costs!AB$353)*('Fixed assets'!$U$2:$U$1000=Costs!$A390)*(AbschreibungAHKBvD))","v":0},{"$f":"SUM(AC$178:AC213)-SUM(AC$266:AC301)+SUMPRODUCT((Aktivierungsjahr=Costs!$A390)*(AbschreibungAGr=Costs!AC$353)*('Fixed assets'!$U$2:$U$1000=Costs!$A390)*(AbschreibungAHKBvD))","v":0},{"$f":"SUM(AD$178:AD213)-SUM(AD$266:AD301)+SUMPRODUCT((Aktivierungsjahr=Costs!$A390)*(AbschreibungAGr=Costs!AD$353)*('Fixed assets'!$U$2:$U$1000=Costs!$A390)*(AbschreibungAHKBvD))","v":0},{"$f":"SUM(AE$178:AE213)-SUM(AE$266:AE301)+SUMPRODUCT((Aktivierungsjahr=Costs!$A390)*(AbschreibungAGr=Costs!AE$353)*('Fixed assets'!$U$2:$U$1000=Costs!$A390)*(AbschreibungAHKBvD))","v":0},{"$f":"SUM(AF$178:AF213)-SUM(AF$266:AF301)+SUMPRODUCT((Aktivierungsjahr=Costs!$A390)*(AbschreibungAGr=Costs!AF$353)*('Fixed assets'!$U$2:$U$1000=Costs!$A390)*(AbschreibungAHKBvD))","v":0},{"$f":"SUM(AG$178:AG213)-SUM(AG$266:AG301)+SUMPRODUCT((Aktivierungsjahr=Costs!$A390)*(AbschreibungAGr=Costs!AG$353)*('Fixed assets'!$U$2:$U$1000=Costs!$A390)*(AbschreibungAHKBvD))","v":0},{"$f":"SUM(AH$178:AH213)-SUM(AH$266:AH301)+SUMPRODUCT((Aktivierungsjahr=Costs!$A390)*(AbschreibungAGr=Costs!AH$353)*('Fixed assets'!$U$2:$U$1000=Costs!$A390)*(AbschreibungAHKBvD))","v":0},{"$f":"SUM(AI$178:AI213)-SUM(AI$266:AI301)+SUMPRODUCT((Aktivierungsjahr=Costs!$A390)*(AbschreibungAGr=Costs!AI$353)*('Fixed assets'!$U$2:$U$1000=Costs!$A390)*(AbschreibungAHKBvD))","v":0},{"$f":"SUM(AJ$178:AJ213)-SUM(AJ$266:AJ301)+SUMPRODUCT((Aktivierungsjahr=Costs!$A390)*(AbschreibungAGr=Costs!AJ$353)*('Fixed assets'!$U$2:$U$1000=Costs!$A390)*(AbschreibungAHKBvD))","v":422222.2222222219},{"$f":"SUM(AK$178:AK213)-SUM(AK$266:AK301)+SUMPRODUCT((Aktivierungsjahr=Costs!$A390)*(AbschreibungAGr=Costs!AK$353)*('Fixed assets'!$U$2:$U$1000=Costs!$A390)*(AbschreibungAHKBvD))","v":0},{"$f":"SUM(AL$178:AL213)-SUM(AL$266:AL301)+SUMPRODUCT((Aktivierungsjahr=Costs!$A390)*(AbschreibungAGr=Costs!AL$353)*('Fixed assets'!$U$2:$U$1000=Costs!$A390)*(AbschreibungAHKBvD))","v":0},{"$f":"SUM(AM$178:AM213)-SUM(AM$266:AM301)+SUMPRODUCT((Aktivierungsjahr=Costs!$A390)*(AbschreibungAGr=Costs!AM$353)*('Fixed assets'!$U$2:$U$1000=Costs!$A390)*(AbschreibungAHKBvD))","v":0},{"$f":"SUM(AN$178:AN213)-SUM(AN$266:AN301)+SUMPRODUCT((Aktivierungsjahr=Costs!$A390)*(AbschreibungAGr=Costs!AN$353)*('Fixed assets'!$U$2:$U$1000=Costs!$A390)*(AbschreibungAHKBvD))","v":0},{"$f":"SUM(AO$178:AO213)-SUM(AO$266:AO301)+SUMPRODUCT((Aktivierungsjahr=Costs!$A390)*(AbschreibungAGr=Costs!AO$353)*('Fixed assets'!$U$2:$U$1000=Costs!$A390)*(AbschreibungAHKBvD))","v":0},{"$f":"SUM(AP$178:AP213)-SUM(AP$266:AP301)+SUMPRODUCT((Aktivierungsjahr=Costs!$A390)*(AbschreibungAGr=Costs!AP$353)*('Fixed assets'!$U$2:$U$1000=Costs!$A390)*(AbschreibungAHKBvD))","v":0},{"$f":"SUM(AQ$178:AQ213)-SUM(AQ$266:AQ301)+SUMPRODUCT((Aktivierungsjahr=Costs!$A390)*(AbschreibungAGr=Costs!AQ$353)*('Fixed assets'!$U$2:$U$1000=Costs!$A390)*(AbschreibungAHKBvD))","v":0}]
[2052,399999.99999999965,{"$f":"SUM(C$178:C214)-SUM(C$266:C302)+SUMPRODUCT((Aktivierungsjahr=Costs!$A391)*(AbschreibungAGr=Costs!C$353)*('Fixed assets'!$U$2:$U$1000=Costs!$A391)*(AbschreibungAHKBvD))","v":0},{"$f":"SUM(D$178:D214)-SUM(D$266:D302)+SUMPRODUCT((Aktivierungsjahr=Costs!$A391)*(AbschreibungAGr=Costs!D$353)*('Fixed assets'!$U$2:$U$1000=Costs!$A391)*(AbschreibungAHKBvD))","v":0},{"$f":"SUM(E$178:E214)-SUM(E$266:E302)+SUMPRODUCT((Aktivierungsjahr=Costs!$A391)*(AbschreibungAGr=Costs!E$353)*('Fixed assets'!$U$2:$U$1000=Costs!$A391)*(AbschreibungAHKBvD))","v":0},{"$f":"SUM(F$178:F214)-SUM(F$266:F302)+SUMPRODUCT((Aktivierungsjahr=Costs!$A391)*(AbschreibungAGr=Costs!F$353)*('Fixed assets'!$U$2:$U$1000=Costs!$A391)*(AbschreibungAHKBvD))","v":0},{"$f":"SUM(G$178:G214)-SUM(G$266:G302)+SUMPRODUCT((Aktivierungsjahr=Costs!$A391)*(AbschreibungAGr=Costs!G$353)*('Fixed assets'!$U$2:$U$1000=Costs!$A391)*(AbschreibungAHKBvD))","v":0},{"$f":"SUM(H$178:H214)-SUM(H$266:H302)+SUMPRODUCT((Aktivierungsjahr=Costs!$A391)*(AbschreibungAGr=Costs!H$353)*('Fixed assets'!$U$2:$U$1000=Costs!$A391)*(AbschreibungAHKBvD))","v":0},{"$f":"SUM(I$178:I214)-SUM(I$266:I302)+SUMPRODUCT((Aktivierungsjahr=Costs!$A391)*(AbschreibungAGr=Costs!I$353)*('Fixed assets'!$U$2:$U$1000=Costs!$A391)*(AbschreibungAHKBvD))","v":0},{"$f":"SUM(J$178:J214)-SUM(J$266:J302)+SUMPRODUCT((Aktivierungsjahr=Costs!$A391)*(AbschreibungAGr=Costs!J$353)*('Fixed assets'!$U$2:$U$1000=Costs!$A391)*(AbschreibungAHKBvD))","v":0},{"$f":"SUM(K$178:K214)-SUM(K$266:K302)+SUMPRODUCT((Aktivierungsjahr=Costs!$A391)*(AbschreibungAGr=Costs!K$353)*('Fixed assets'!$U$2:$U$1000=Costs!$A391)*(AbschreibungAHKBvD))","v":0},{"$f":"SUM(L$178:L214)-SUM(L$266:L302)+SUMPRODUCT((Aktivierungsjahr=Costs!$A391)*(AbschreibungAGr=Costs!L$353)*('Fixed assets'!$U$2:$U$1000=Costs!$A391)*(AbschreibungAHKBvD))","v":0},{"$f":"SUM(M$178:M214)-SUM(M$266:M302)+SUMPRODUCT((Aktivierungsjahr=Costs!$A391)*(AbschreibungAGr=Costs!M$353)*('Fixed assets'!$U$2:$U$1000=Costs!$A391)*(AbschreibungAHKBvD))","v":0},{"$f":"SUM(N$178:N214)-SUM(N$266:N302)+SUMPRODUCT((Aktivierungsjahr=Costs!$A391)*(AbschreibungAGr=Costs!N$353)*('Fixed assets'!$U$2:$U$1000=Costs!$A391)*(AbschreibungAHKBvD))","v":0},{"$f":"SUM(O$178:O214)-SUM(O$266:O302)+SUMPRODUCT((Aktivierungsjahr=Costs!$A391)*(AbschreibungAGr=Costs!O$353)*('Fixed assets'!$U$2:$U$1000=Costs!$A391)*(AbschreibungAHKBvD))","v":0},{"$f":"SUM(P$178:P214)-SUM(P$266:P302)+SUMPRODUCT((Aktivierungsjahr=Costs!$A391)*(AbschreibungAGr=Costs!P$353)*('Fixed assets'!$U$2:$U$1000=Costs!$A391)*(AbschreibungAHKBvD))","v":0},{"$f":"SUM(Q$178:Q214)-SUM(Q$266:Q302)+SUMPRODUCT((Aktivierungsjahr=Costs!$A391)*(AbschreibungAGr=Costs!Q$353)*('Fixed assets'!$U$2:$U$1000=Costs!$A391)*(AbschreibungAHKBvD))","v":0},{"$f":"SUM(R$178:R214)-SUM(R$266:R302)+SUMPRODUCT((Aktivierungsjahr=Costs!$A391)*(AbschreibungAGr=Costs!R$353)*('Fixed assets'!$U$2:$U$1000=Costs!$A391)*(AbschreibungAHKBvD))","v":0},{"$f":"SUM(S$178:S214)-SUM(S$266:S302)+SUMPRODUCT((Aktivierungsjahr=Costs!$A391)*(AbschreibungAGr=Costs!S$353)*('Fixed assets'!$U$2:$U$1000=Costs!$A391)*(AbschreibungAHKBvD))","v":0},{"$f":"SUM(T$178:T214)-SUM(T$266:T302)+SUMPRODUCT((Aktivierungsjahr=Costs!$A391)*(AbschreibungAGr=Costs!T$353)*('Fixed assets'!$U$2:$U$1000=Costs!$A391)*(AbschreibungAHKBvD))","v":0},{"$f":"SUM(U$178:U214)-SUM(U$266:U302)+SUMPRODUCT((Aktivierungsjahr=Costs!$A391)*(AbschreibungAGr=Costs!U$353)*('Fixed assets'!$U$2:$U$1000=Costs!$A391)*(AbschreibungAHKBvD))","v":0},{"$f":"SUM(V$178:V214)-SUM(V$266:V302)+SUMPRODUCT((Aktivierungsjahr=Costs!$A391)*(AbschreibungAGr=Costs!V$353)*('Fixed assets'!$U$2:$U$1000=Costs!$A391)*(AbschreibungAHKBvD))","v":0},{"$f":"SUM(W$178:W214)-SUM(W$266:W302)+SUMPRODUCT((Aktivierungsjahr=Costs!$A391)*(AbschreibungAGr=Costs!W$353)*('Fixed assets'!$U$2:$U$1000=Costs!$A391)*(AbschreibungAHKBvD))","v":0},{"$f":"SUM(X$178:X214)-SUM(X$266:X302)+SUMPRODUCT((Aktivierungsjahr=Costs!$A391)*(AbschreibungAGr=Costs!X$353)*('Fixed assets'!$U$2:$U$1000=Costs!$A391)*(AbschreibungAHKBvD))","v":0},{"$f":"SUM(Y$178:Y214)-SUM(Y$266:Y302)+SUMPRODUCT((Aktivierungsjahr=Costs!$A391)*(AbschreibungAGr=Costs!Y$353)*('Fixed assets'!$U$2:$U$1000=Costs!$A391)*(AbschreibungAHKBvD))","v":0},{"$f":"SUM(Z$178:Z214)-SUM(Z$266:Z302)+SUMPRODUCT((Aktivierungsjahr=Costs!$A391)*(AbschreibungAGr=Costs!Z$353)*('Fixed assets'!$U$2:$U$1000=Costs!$A391)*(AbschreibungAHKBvD))","v":0},{"$f":"SUM(AA$178:AA214)-SUM(AA$266:AA302)+SUMPRODUCT((Aktivierungsjahr=Costs!$A391)*(AbschreibungAGr=Costs!AA$353)*('Fixed assets'!$U$2:$U$1000=Costs!$A391)*(AbschreibungAHKBvD))","v":0},{"$f":"SUM(AB$178:AB214)-SUM(AB$266:AB302)+SUMPRODUCT((Aktivierungsjahr=Costs!$A391)*(AbschreibungAGr=Costs!AB$353)*('Fixed assets'!$U$2:$U$1000=Costs!$A391)*(AbschreibungAHKBvD))","v":0},{"$f":"SUM(AC$178:AC214)-SUM(AC$266:AC302)+SUMPRODUCT((Aktivierungsjahr=Costs!$A391)*(AbschreibungAGr=Costs!AC$353)*('Fixed assets'!$U$2:$U$1000=Costs!$A391)*(AbschreibungAHKBvD))","v":0},{"$f":"SUM(AD$178:AD214)-SUM(AD$266:AD302)+SUMPRODUCT((Aktivierungsjahr=Costs!$A391)*(AbschreibungAGr=Costs!AD$353)*('Fixed assets'!$U$2:$U$1000=Costs!$A391)*(AbschreibungAHKBvD))","v":0},{"$f":"SUM(AE$178:AE214)-SUM(AE$266:AE302)+SUMPRODUCT((Aktivierungsjahr=Costs!$A391)*(AbschreibungAGr=Costs!AE$353)*('Fixed assets'!$U$2:$U$1000=Costs!$A391)*(AbschreibungAHKBvD))","v":0},{"$f":"SUM(AF$178:AF214)-SUM(AF$266:AF302)+SUMPRODUCT((Aktivierungsjahr=Costs!$A391)*(AbschreibungAGr=Costs!AF$353)*('Fixed assets'!$U$2:$U$1000=Costs!$A391)*(AbschreibungAHKBvD))","v":0},{"$f":"SUM(AG$178:AG214)-SUM(AG$266:AG302)+SUMPRODUCT((Aktivierungsjahr=Costs!$A391)*(AbschreibungAGr=Costs!AG$353)*('Fixed assets'!$U$2:$U$1000=Costs!$A391)*(AbschreibungAHKBvD))","v":0},{"$f":"SUM(AH$178:AH214)-SUM(AH$266:AH302)+SUMPRODUCT((Aktivierungsjahr=Costs!$A391)*(AbschreibungAGr=Costs!AH$353)*('Fixed assets'!$U$2:$U$1000=Costs!$A391)*(AbschreibungAHKBvD))","v":0},{"$f":"SUM(AI$178:AI214)-SUM(AI$266:AI302)+SUMPRODUCT((Aktivierungsjahr=Costs!$A391)*(AbschreibungAGr=Costs!AI$353)*('Fixed assets'!$U$2:$U$1000=Costs!$A391)*(AbschreibungAHKBvD))","v":0},{"$f":"SUM(AJ$178:AJ214)-SUM(AJ$266:AJ302)+SUMPRODUCT((Aktivierungsjahr=Costs!$A391)*(AbschreibungAGr=Costs!AJ$353)*('Fixed assets'!$U$2:$U$1000=Costs!$A391)*(AbschreibungAHKBvD))","v":399999.99999999965},{"$f":"SUM(AK$178:AK214)-SUM(AK$266:AK302)+SUMPRODUCT((Aktivierungsjahr=Costs!$A391)*(AbschreibungAGr=Costs!AK$353)*('Fixed assets'!$U$2:$U$1000=Costs!$A391)*(AbschreibungAHKBvD))","v":0},{"$f":"SUM(AL$178:AL214)-SUM(AL$266:AL302)+SUMPRODUCT((Aktivierungsjahr=Costs!$A391)*(AbschreibungAGr=Costs!AL$353)*('Fixed assets'!$U$2:$U$1000=Costs!$A391)*(AbschreibungAHKBvD))","v":0},{"$f":"SUM(AM$178:AM214)-SUM(AM$266:AM302)+SUMPRODUCT((Aktivierungsjahr=Costs!$A391)*(AbschreibungAGr=Costs!AM$353)*('Fixed assets'!$U$2:$U$1000=Costs!$A391)*(AbschreibungAHKBvD))","v":0},{"$f":"SUM(AN$178:AN214)-SUM(AN$266:AN302)+SUMPRODUCT((Aktivierungsjahr=Costs!$A391)*(AbschreibungAGr=Costs!AN$353)*('Fixed assets'!$U$2:$U$1000=Costs!$A391)*(AbschreibungAHKBvD))","v":0},{"$f":"SUM(AO$178:AO214)-SUM(AO$266:AO302)+SUMPRODUCT((Aktivierungsjahr=Costs!$A391)*(AbschreibungAGr=Costs!AO$353)*('Fixed assets'!$U$2:$U$1000=Costs!$A391)*(AbschreibungAHKBvD))","v":0},{"$f":"SUM(AP$178:AP214)-SUM(AP$266:AP302)+SUMPRODUCT((Aktivierungsjahr=Costs!$A391)*(AbschreibungAGr=Costs!AP$353)*('Fixed assets'!$U$2:$U$1000=Costs!$A391)*(AbschreibungAHKBvD))","v":0},{"$f":"SUM(AQ$178:AQ214)-SUM(AQ$266:AQ302)+SUMPRODUCT((Aktivierungsjahr=Costs!$A391)*(AbschreibungAGr=Costs!AQ$353)*('Fixed assets'!$U$2:$U$1000=Costs!$A391)*(AbschreibungAHKBvD))","v":0}]
[2053,377777.7777777774,{"$f":"SUM(C$178:C215)-SUM(C$266:C303)+SUMPRODUCT((Aktivierungsjahr=Costs!$A392)*(AbschreibungAGr=Costs!C$353)*('Fixed assets'!$U$2:$U$1000=Costs!$A392)*(AbschreibungAHKBvD))","v":0},{"$f":"SUM(D$178:D215)-SUM(D$266:D303)+SUMPRODUCT((Aktivierungsjahr=Costs!$A392)*(AbschreibungAGr=Costs!D$353)*('Fixed assets'!$U$2:$U$1000=Costs!$A392)*(AbschreibungAHKBvD))","v":0},{"$f":"SUM(E$178:E215)-SUM(E$266:E303)+SUMPRODUCT((Aktivierungsjahr=Costs!$A392)*(AbschreibungAGr=Costs!E$353)*('Fixed assets'!$U$2:$U$1000=Costs!$A392)*(AbschreibungAHKBvD))","v":0},{"$f":"SUM(F$178:F215)-SUM(F$266:F303)+SUMPRODUCT((Aktivierungsjahr=Costs!$A392)*(AbschreibungAGr=Costs!F$353)*('Fixed assets'!$U$2:$U$1000=Costs!$A392)*(AbschreibungAHKBvD))","v":0},{"$f":"SUM(G$178:G215)-SUM(G$266:G303)+SUMPRODUCT((Aktivierungsjahr=Costs!$A392)*(AbschreibungAGr=Costs!G$353)*('Fixed assets'!$U$2:$U$1000=Costs!$A392)*(AbschreibungAHKBvD))","v":0},{"$f":"SUM(H$178:H215)-SUM(H$266:H303)+SUMPRODUCT((Aktivierungsjahr=Costs!$A392)*(AbschreibungAGr=Costs!H$353)*('Fixed assets'!$U$2:$U$1000=Costs!$A392)*(AbschreibungAHKBvD))","v":0},{"$f":"SUM(I$178:I215)-SUM(I$266:I303)+SUMPRODUCT((Aktivierungsjahr=Costs!$A392)*(AbschreibungAGr=Costs!I$353)*('Fixed assets'!$U$2:$U$1000=Costs!$A392)*(AbschreibungAHKBvD))","v":0},{"$f":"SUM(J$178:J215)-SUM(J$266:J303)+SUMPRODUCT((Aktivierungsjahr=Costs!$A392)*(AbschreibungAGr=Costs!J$353)*('Fixed assets'!$U$2:$U$1000=Costs!$A392)*(AbschreibungAHKBvD))","v":0},{"$f":"SUM(K$178:K215)-SUM(K$266:K303)+SUMPRODUCT((Aktivierungsjahr=Costs!$A392)*(AbschreibungAGr=Costs!K$353)*('Fixed assets'!$U$2:$U$1000=Costs!$A392)*(AbschreibungAHKBvD))","v":0},{"$f":"SUM(L$178:L215)-SUM(L$266:L303)+SUMPRODUCT((Aktivierungsjahr=Costs!$A392)*(AbschreibungAGr=Costs!L$353)*('Fixed assets'!$U$2:$U$1000=Costs!$A392)*(AbschreibungAHKBvD))","v":0},{"$f":"SUM(M$178:M215)-SUM(M$266:M303)+SUMPRODUCT((Aktivierungsjahr=Costs!$A392)*(AbschreibungAGr=Costs!M$353)*('Fixed assets'!$U$2:$U$1000=Costs!$A392)*(AbschreibungAHKBvD))","v":0},{"$f":"SUM(N$178:N215)-SUM(N$266:N303)+SUMPRODUCT((Aktivierungsjahr=Costs!$A392)*(AbschreibungAGr=Costs!N$353)*('Fixed assets'!$U$2:$U$1000=Costs!$A392)*(AbschreibungAHKBvD))","v":0},{"$f":"SUM(O$178:O215)-SUM(O$266:O303)+SUMPRODUCT((Aktivierungsjahr=Costs!$A392)*(AbschreibungAGr=Costs!O$353)*('Fixed assets'!$U$2:$U$1000=Costs!$A392)*(AbschreibungAHKBvD))","v":0},{"$f":"SUM(P$178:P215)-SUM(P$266:P303)+SUMPRODUCT((Aktivierungsjahr=Costs!$A392)*(AbschreibungAGr=Costs!P$353)*('Fixed assets'!$U$2:$U$1000=Costs!$A392)*(AbschreibungAHKBvD))","v":0},{"$f":"SUM(Q$178:Q215)-SUM(Q$266:Q303)+SUMPRODUCT((Aktivierungsjahr=Costs!$A392)*(AbschreibungAGr=Costs!Q$353)*('Fixed assets'!$U$2:$U$1000=Costs!$A392)*(AbschreibungAHKBvD))","v":0},{"$f":"SUM(R$178:R215)-SUM(R$266:R303)+SUMPRODUCT((Aktivierungsjahr=Costs!$A392)*(AbschreibungAGr=Costs!R$353)*('Fixed assets'!$U$2:$U$1000=Costs!$A392)*(AbschreibungAHKBvD))","v":0},{"$f":"SUM(S$178:S215)-SUM(S$266:S303)+SUMPRODUCT((Aktivierungsjahr=Costs!$A392)*(AbschreibungAGr=Costs!S$353)*('Fixed assets'!$U$2:$U$1000=Costs!$A392)*(AbschreibungAHKBvD))","v":0},{"$f":"SUM(T$178:T215)-SUM(T$266:T303)+SUMPRODUCT((Aktivierungsjahr=Costs!$A392)*(AbschreibungAGr=Costs!T$353)*('Fixed assets'!$U$2:$U$1000=Costs!$A392)*(AbschreibungAHKBvD))","v":0},{"$f":"SUM(U$178:U215)-SUM(U$266:U303)+SUMPRODUCT((Aktivierungsjahr=Costs!$A392)*(AbschreibungAGr=Costs!U$353)*('Fixed assets'!$U$2:$U$1000=Costs!$A392)*(AbschreibungAHKBvD))","v":0},{"$f":"SUM(V$178:V215)-SUM(V$266:V303)+SUMPRODUCT((Aktivierungsjahr=Costs!$A392)*(AbschreibungAGr=Costs!V$353)*('Fixed assets'!$U$2:$U$1000=Costs!$A392)*(AbschreibungAHKBvD))","v":0},{"$f":"SUM(W$178:W215)-SUM(W$266:W303)+SUMPRODUCT((Aktivierungsjahr=Costs!$A392)*(AbschreibungAGr=Costs!W$353)*('Fixed assets'!$U$2:$U$1000=Costs!$A392)*(AbschreibungAHKBvD))","v":0},{"$f":"SUM(X$178:X215)-SUM(X$266:X303)+SUMPRODUCT((Aktivierungsjahr=Costs!$A392)*(AbschreibungAGr=Costs!X$353)*('Fixed assets'!$U$2:$U$1000=Costs!$A392)*(AbschreibungAHKBvD))","v":0},{"$f":"SUM(Y$178:Y215)-SUM(Y$266:Y303)+SUMPRODUCT((Aktivierungsjahr=Costs!$A392)*(AbschreibungAGr=Costs!Y$353)*('Fixed assets'!$U$2:$U$1000=Costs!$A392)*(AbschreibungAHKBvD))","v":0},{"$f":"SUM(Z$178:Z215)-SUM(Z$266:Z303)+SUMPRODUCT((Aktivierungsjahr=Costs!$A392)*(AbschreibungAGr=Costs!Z$353)*('Fixed assets'!$U$2:$U$1000=Costs!$A392)*(AbschreibungAHKBvD))","v":0},{"$f":"SUM(AA$178:AA215)-SUM(AA$266:AA303)+SUMPRODUCT((Aktivierungsjahr=Costs!$A392)*(AbschreibungAGr=Costs!AA$353)*('Fixed assets'!$U$2:$U$1000=Costs!$A392)*(AbschreibungAHKBvD))","v":0},{"$f":"SUM(AB$178:AB215)-SUM(AB$266:AB303)+SUMPRODUCT((Aktivierungsjahr=Costs!$A392)*(AbschreibungAGr=Costs!AB$353)*('Fixed assets'!$U$2:$U$1000=Costs!$A392)*(AbschreibungAHKBvD))","v":0},{"$f":"SUM(AC$178:AC215)-SUM(AC$266:AC303)+SUMPRODUCT((Aktivierungsjahr=Costs!$A392)*(AbschreibungAGr=Costs!AC$353)*('Fixed assets'!$U$2:$U$1000=Costs!$A392)*(AbschreibungAHKBvD))","v":0},{"$f":"SUM(AD$178:AD215)-SUM(AD$266:AD303)+SUMPRODUCT((Aktivierungsjahr=Costs!$A392)*(AbschreibungAGr=Costs!AD$353)*('Fixed assets'!$U$2:$U$1000=Costs!$A392)*(AbschreibungAHKBvD))","v":0},{"$f":"SUM(AE$178:AE215)-SUM(AE$266:AE303)+SUMPRODUCT((Aktivierungsjahr=Costs!$A392)*(AbschreibungAGr=Costs!AE$353)*('Fixed assets'!$U$2:$U$1000=Costs!$A392)*(AbschreibungAHKBvD))","v":0},{"$f":"SUM(AF$178:AF215)-SUM(AF$266:AF303)+SUMPRODUCT((Aktivierungsjahr=Costs!$A392)*(AbschreibungAGr=Costs!AF$353)*('Fixed assets'!$U$2:$U$1000=Costs!$A392)*(AbschreibungAHKBvD))","v":0},{"$f":"SUM(AG$178:AG215)-SUM(AG$266:AG303)+SUMPRODUCT((Aktivierungsjahr=Costs!$A392)*(AbschreibungAGr=Costs!AG$353)*('Fixed assets'!$U$2:$U$1000=Costs!$A392)*(AbschreibungAHKBvD))","v":0},{"$f":"SUM(AH$178:AH215)-SUM(AH$266:AH303)+SUMPRODUCT((Aktivierungsjahr=Costs!$A392)*(AbschreibungAGr=Costs!AH$353)*('Fixed assets'!$U$2:$U$1000=Costs!$A392)*(AbschreibungAHKBvD))","v":0},{"$f":"SUM(AI$178:AI215)-SUM(AI$266:AI303)+SUMPRODUCT((Aktivierungsjahr=Costs!$A392)*(AbschreibungAGr=Costs!AI$353)*('Fixed assets'!$U$2:$U$1000=Costs!$A392)*(AbschreibungAHKBvD))","v":0},{"$f":"SUM(AJ$178:AJ215)-SUM(AJ$266:AJ303)+SUMPRODUCT((Aktivierungsjahr=Costs!$A392)*(AbschreibungAGr=Costs!AJ$353)*('Fixed assets'!$U$2:$U$1000=Costs!$A392)*(AbschreibungAHKBvD))","v":377777.7777777774},{"$f":"SUM(AK$178:AK215)-SUM(AK$266:AK303)+SUMPRODUCT((Aktivierungsjahr=Costs!$A392)*(AbschreibungAGr=Costs!AK$353)*('Fixed assets'!$U$2:$U$1000=Costs!$A392)*(AbschreibungAHKBvD))","v":0},{"$f":"SUM(AL$178:AL215)-SUM(AL$266:AL303)+SUMPRODUCT((Aktivierungsjahr=Costs!$A392)*(AbschreibungAGr=Costs!AL$353)*('Fixed assets'!$U$2:$U$1000=Costs!$A392)*(AbschreibungAHKBvD))","v":0},{"$f":"SUM(AM$178:AM215)-SUM(AM$266:AM303)+SUMPRODUCT((Aktivierungsjahr=Costs!$A392)*(AbschreibungAGr=Costs!AM$353)*('Fixed assets'!$U$2:$U$1000=Costs!$A392)*(AbschreibungAHKBvD))","v":0},{"$f":"SUM(AN$178:AN215)-SUM(AN$266:AN303)+SUMPRODUCT((Aktivierungsjahr=Costs!$A392)*(AbschreibungAGr=Costs!AN$353)*('Fixed assets'!$U$2:$U$1000=Costs!$A392)*(AbschreibungAHKBvD))","v":0},{"$f":"SUM(AO$178:AO215)-SUM(AO$266:AO303)+SUMPRODUCT((Aktivierungsjahr=Costs!$A392)*(AbschreibungAGr=Costs!AO$353)*('Fixed assets'!$U$2:$U$1000=Costs!$A392)*(AbschreibungAHKBvD))","v":0},{"$f":"SUM(AP$178:AP215)-SUM(AP$266:AP303)+SUMPRODUCT((Aktivierungsjahr=Costs!$A392)*(AbschreibungAGr=Costs!AP$353)*('Fixed assets'!$U$2:$U$1000=Costs!$A392)*(AbschreibungAHKBvD))","v":0},{"$f":"SUM(AQ$178:AQ215)-SUM(AQ$266:AQ303)+SUMPRODUCT((Aktivierungsjahr=Costs!$A392)*(AbschreibungAGr=Costs!AQ$353)*('Fixed assets'!$U$2:$U$1000=Costs!$A392)*(AbschreibungAHKBvD))","v":0}]
[2054,355555.55555555515,{"$f":"SUM(C$178:C216)-SUM(C$266:C304)+SUMPRODUCT((Aktivierungsjahr=Costs!$A393)*(AbschreibungAGr=Costs!C$353)*('Fixed assets'!$U$2:$U$1000=Costs!$A393)*(AbschreibungAHKBvD))","v":0},{"$f":"SUM(D$178:D216)-SUM(D$266:D304)+SUMPRODUCT((Aktivierungsjahr=Costs!$A393)*(AbschreibungAGr=Costs!D$353)*('Fixed assets'!$U$2:$U$1000=Costs!$A393)*(AbschreibungAHKBvD))","v":0},{"$f":"SUM(E$178:E216)-SUM(E$266:E304)+SUMPRODUCT((Aktivierungsjahr=Costs!$A393)*(AbschreibungAGr=Costs!E$353)*('Fixed assets'!$U$2:$U$1000=Costs!$A393)*(AbschreibungAHKBvD))","v":0},{"$f":"SUM(F$178:F216)-SUM(F$266:F304)+SUMPRODUCT((Aktivierungsjahr=Costs!$A393)*(AbschreibungAGr=Costs!F$353)*('Fixed assets'!$U$2:$U$1000=Costs!$A393)*(AbschreibungAHKBvD))","v":0},{"$f":"SUM(G$178:G216)-SUM(G$266:G304)+SUMPRODUCT((Aktivierungsjahr=Costs!$A393)*(AbschreibungAGr=Costs!G$353)*('Fixed assets'!$U$2:$U$1000=Costs!$A393)*(AbschreibungAHKBvD))","v":0},{"$f":"SUM(H$178:H216)-SUM(H$266:H304)+SUMPRODUCT((Aktivierungsjahr=Costs!$A393)*(AbschreibungAGr=Costs!H$353)*('Fixed assets'!$U$2:$U$1000=Costs!$A393)*(AbschreibungAHKBvD))","v":0},{"$f":"SUM(I$178:I216)-SUM(I$266:I304)+SUMPRODUCT((Aktivierungsjahr=Costs!$A393)*(AbschreibungAGr=Costs!I$353)*('Fixed assets'!$U$2:$U$1000=Costs!$A393)*(AbschreibungAHKBvD))","v":0},{"$f":"SUM(J$178:J216)-SUM(J$266:J304)+SUMPRODUCT((Aktivierungsjahr=Costs!$A393)*(AbschreibungAGr=Costs!J$353)*('Fixed assets'!$U$2:$U$1000=Costs!$A393)*(AbschreibungAHKBvD))","v":0},{"$f":"SUM(K$178:K216)-SUM(K$266:K304)+SUMPRODUCT((Aktivierungsjahr=Costs!$A393)*(AbschreibungAGr=Costs!K$353)*('Fixed assets'!$U$2:$U$1000=Costs!$A393)*(AbschreibungAHKBvD))","v":0},{"$f":"SUM(L$178:L216)-SUM(L$266:L304)+SUMPRODUCT((Aktivierungsjahr=Costs!$A393)*(AbschreibungAGr=Costs!L$353)*('Fixed assets'!$U$2:$U$1000=Costs!$A393)*(AbschreibungAHKBvD))","v":0},{"$f":"SUM(M$178:M216)-SUM(M$266:M304)+SUMPRODUCT((Aktivierungsjahr=Costs!$A393)*(AbschreibungAGr=Costs!M$353)*('Fixed assets'!$U$2:$U$1000=Costs!$A393)*(AbschreibungAHKBvD))","v":0},{"$f":"SUM(N$178:N216)-SUM(N$266:N304)+SUMPRODUCT((Aktivierungsjahr=Costs!$A393)*(AbschreibungAGr=Costs!N$353)*('Fixed assets'!$U$2:$U$1000=Costs!$A393)*(AbschreibungAHKBvD))","v":0},{"$f":"SUM(O$178:O216)-SUM(O$266:O304)+SUMPRODUCT((Aktivierungsjahr=Costs!$A393)*(AbschreibungAGr=Costs!O$353)*('Fixed assets'!$U$2:$U$1000=Costs!$A393)*(AbschreibungAHKBvD))","v":0},{"$f":"SUM(P$178:P216)-SUM(P$266:P304)+SUMPRODUCT((Aktivierungsjahr=Costs!$A393)*(AbschreibungAGr=Costs!P$353)*('Fixed assets'!$U$2:$U$1000=Costs!$A393)*(AbschreibungAHKBvD))","v":0},{"$f":"SUM(Q$178:Q216)-SUM(Q$266:Q304)+SUMPRODUCT((Aktivierungsjahr=Costs!$A393)*(AbschreibungAGr=Costs!Q$353)*('Fixed assets'!$U$2:$U$1000=Costs!$A393)*(AbschreibungAHKBvD))","v":0},{"$f":"SUM(R$178:R216)-SUM(R$266:R304)+SUMPRODUCT((Aktivierungsjahr=Costs!$A393)*(AbschreibungAGr=Costs!R$353)*('Fixed assets'!$U$2:$U$1000=Costs!$A393)*(AbschreibungAHKBvD))","v":0},{"$f":"SUM(S$178:S216)-SUM(S$266:S304)+SUMPRODUCT((Aktivierungsjahr=Costs!$A393)*(AbschreibungAGr=Costs!S$353)*('Fixed assets'!$U$2:$U$1000=Costs!$A393)*(AbschreibungAHKBvD))","v":0},{"$f":"SUM(T$178:T216)-SUM(T$266:T304)+SUMPRODUCT((Aktivierungsjahr=Costs!$A393)*(AbschreibungAGr=Costs!T$353)*('Fixed assets'!$U$2:$U$1000=Costs!$A393)*(AbschreibungAHKBvD))","v":0},{"$f":"SUM(U$178:U216)-SUM(U$266:U304)+SUMPRODUCT((Aktivierungsjahr=Costs!$A393)*(AbschreibungAGr=Costs!U$353)*('Fixed assets'!$U$2:$U$1000=Costs!$A393)*(AbschreibungAHKBvD))","v":0},{"$f":"SUM(V$178:V216)-SUM(V$266:V304)+SUMPRODUCT((Aktivierungsjahr=Costs!$A393)*(AbschreibungAGr=Costs!V$353)*('Fixed assets'!$U$2:$U$1000=Costs!$A393)*(AbschreibungAHKBvD))","v":0},{"$f":"SUM(W$178:W216)-SUM(W$266:W304)+SUMPRODUCT((Aktivierungsjahr=Costs!$A393)*(AbschreibungAGr=Costs!W$353)*('Fixed assets'!$U$2:$U$1000=Costs!$A393)*(AbschreibungAHKBvD))","v":0},{"$f":"SUM(X$178:X216)-SUM(X$266:X304)+SUMPRODUCT((Aktivierungsjahr=Costs!$A393)*(AbschreibungAGr=Costs!X$353)*('Fixed assets'!$U$2:$U$1000=Costs!$A393)*(AbschreibungAHKBvD))","v":0},{"$f":"SUM(Y$178:Y216)-SUM(Y$266:Y304)+SUMPRODUCT((Aktivierungsjahr=Costs!$A393)*(AbschreibungAGr=Costs!Y$353)*('Fixed assets'!$U$2:$U$1000=Costs!$A393)*(AbschreibungAHKBvD))","v":0},{"$f":"SUM(Z$178:Z216)-SUM(Z$266:Z304)+SUMPRODUCT((Aktivierungsjahr=Costs!$A393)*(AbschreibungAGr=Costs!Z$353)*('Fixed assets'!$U$2:$U$1000=Costs!$A393)*(AbschreibungAHKBvD))","v":0},{"$f":"SUM(AA$178:AA216)-SUM(AA$266:AA304)+SUMPRODUCT((Aktivierungsjahr=Costs!$A393)*(AbschreibungAGr=Costs!AA$353)*('Fixed assets'!$U$2:$U$1000=Costs!$A393)*(AbschreibungAHKBvD))","v":0},{"$f":"SUM(AB$178:AB216)-SUM(AB$266:AB304)+SUMPRODUCT((Aktivierungsjahr=Costs!$A393)*(AbschreibungAGr=Costs!AB$353)*('Fixed assets'!$U$2:$U$1000=Costs!$A393)*(AbschreibungAHKBvD))","v":0},{"$f":"SUM(AC$178:AC216)-SUM(AC$266:AC304)+SUMPRODUCT((Aktivierungsjahr=Costs!$A393)*(AbschreibungAGr=Costs!AC$353)*('Fixed assets'!$U$2:$U$1000=Costs!$A393)*(AbschreibungAHKBvD))","v":0},{"$f":"SUM(AD$178:AD216)-SUM(AD$266:AD304)+SUMPRODUCT((Aktivierungsjahr=Costs!$A393)*(AbschreibungAGr=Costs!AD$353)*('Fixed assets'!$U$2:$U$1000=Costs!$A393)*(AbschreibungAHKBvD))","v":0},{"$f":"SUM(AE$178:AE216)-SUM(AE$266:AE304)+SUMPRODUCT((Aktivierungsjahr=Costs!$A393)*(AbschreibungAGr=Costs!AE$353)*('Fixed assets'!$U$2:$U$1000=Costs!$A393)*(AbschreibungAHKBvD))","v":0},{"$f":"SUM(AF$178:AF216)-SUM(AF$266:AF304)+SUMPRODUCT((Aktivierungsjahr=Costs!$A393)*(AbschreibungAGr=Costs!AF$353)*('Fixed assets'!$U$2:$U$1000=Costs!$A393)*(AbschreibungAHKBvD))","v":0},{"$f":"SUM(AG$178:AG216)-SUM(AG$266:AG304)+SUMPRODUCT((Aktivierungsjahr=Costs!$A393)*(AbschreibungAGr=Costs!AG$353)*('Fixed assets'!$U$2:$U$1000=Costs!$A393)*(AbschreibungAHKBvD))","v":0},{"$f":"SUM(AH$178:AH216)-SUM(AH$266:AH304)+SUMPRODUCT((Aktivierungsjahr=Costs!$A393)*(AbschreibungAGr=Costs!AH$353)*('Fixed assets'!$U$2:$U$1000=Costs!$A393)*(AbschreibungAHKBvD))","v":0},{"$f":"SUM(AI$178:AI216)-SUM(AI$266:AI304)+SUMPRODUCT((Aktivierungsjahr=Costs!$A393)*(AbschreibungAGr=Costs!AI$353)*('Fixed assets'!$U$2:$U$1000=Costs!$A393)*(AbschreibungAHKBvD))","v":0},{"$f":"SUM(AJ$178:AJ216)-SUM(AJ$266:AJ304)+SUMPRODUCT((Aktivierungsjahr=Costs!$A393)*(AbschreibungAGr=Costs!AJ$353)*('Fixed assets'!$U$2:$U$1000=Costs!$A393)*(AbschreibungAHKBvD))","v":355555.55555555515},{"$f":"SUM(AK$178:AK216)-SUM(AK$266:AK304)+SUMPRODUCT((Aktivierungsjahr=Costs!$A393)*(AbschreibungAGr=Costs!AK$353)*('Fixed assets'!$U$2:$U$1000=Costs!$A393)*(AbschreibungAHKBvD))","v":0},{"$f":"SUM(AL$178:AL216)-SUM(AL$266:AL304)+SUMPRODUCT((Aktivierungsjahr=Costs!$A393)*(AbschreibungAGr=Costs!AL$353)*('Fixed assets'!$U$2:$U$1000=Costs!$A393)*(AbschreibungAHKBvD))","v":0},{"$f":"SUM(AM$178:AM216)-SUM(AM$266:AM304)+SUMPRODUCT((Aktivierungsjahr=Costs!$A393)*(AbschreibungAGr=Costs!AM$353)*('Fixed assets'!$U$2:$U$1000=Costs!$A393)*(AbschreibungAHKBvD))","v":0},{"$f":"SUM(AN$178:AN216)-SUM(AN$266:AN304)+SUMPRODUCT((Aktivierungsjahr=Costs!$A393)*(AbschreibungAGr=Costs!AN$353)*('Fixed assets'!$U$2:$U$1000=Costs!$A393)*(AbschreibungAHKBvD))","v":0},{"$f":"SUM(AO$178:AO216)-SUM(AO$266:AO304)+SUMPRODUCT((Aktivierungsjahr=Costs!$A393)*(AbschreibungAGr=Costs!AO$353)*('Fixed assets'!$U$2:$U$1000=Costs!$A393)*(AbschreibungAHKBvD))","v":0},{"$f":"SUM(AP$178:AP216)-SUM(AP$266:AP304)+SUMPRODUCT((Aktivierungsjahr=Costs!$A393)*(AbschreibungAGr=Costs!AP$353)*('Fixed assets'!$U$2:$U$1000=Costs!$A393)*(AbschreibungAHKBvD))","v":0},{"$f":"SUM(AQ$178:AQ216)-SUM(AQ$266:AQ304)+SUMPRODUCT((Aktivierungsjahr=Costs!$A393)*(AbschreibungAGr=Costs!AQ$353)*('Fixed assets'!$U$2:$U$1000=Costs!$A393)*(AbschreibungAHKBvD))","v":0}]
[2055,333333.33333333291,{"$f":"SUM(C$178:C217)-SUM(C$266:C305)+SUMPRODUCT((Aktivierungsjahr=Costs!$A394)*(AbschreibungAGr=Costs!C$353)*('Fixed assets'!$U$2:$U$1000=Costs!$A394)*(AbschreibungAHKBvD))","v":0},{"$f":"SUM(D$178:D217)-SUM(D$266:D305)+SUMPRODUCT((Aktivierungsjahr=Costs!$A394)*(AbschreibungAGr=Costs!D$353)*('Fixed assets'!$U$2:$U$1000=Costs!$A394)*(AbschreibungAHKBvD))","v":0},{"$f":"SUM(E$178:E217)-SUM(E$266:E305)+SUMPRODUCT((Aktivierungsjahr=Costs!$A394)*(AbschreibungAGr=Costs!E$353)*('Fixed assets'!$U$2:$U$1000=Costs!$A394)*(AbschreibungAHKBvD))","v":0},{"$f":"SUM(F$178:F217)-SUM(F$266:F305)+SUMPRODUCT((Aktivierungsjahr=Costs!$A394)*(AbschreibungAGr=Costs!F$353)*('Fixed assets'!$U$2:$U$1000=Costs!$A394)*(AbschreibungAHKBvD))","v":0},{"$f":"SUM(G$178:G217)-SUM(G$266:G305)+SUMPRODUCT((Aktivierungsjahr=Costs!$A394)*(AbschreibungAGr=Costs!G$353)*('Fixed assets'!$U$2:$U$1000=Costs!$A394)*(AbschreibungAHKBvD))","v":0},{"$f":"SUM(H$178:H217)-SUM(H$266:H305)+SUMPRODUCT((Aktivierungsjahr=Costs!$A394)*(AbschreibungAGr=Costs!H$353)*('Fixed assets'!$U$2:$U$1000=Costs!$A394)*(AbschreibungAHKBvD))","v":0},{"$f":"SUM(I$178:I217)-SUM(I$266:I305)+SUMPRODUCT((Aktivierungsjahr=Costs!$A394)*(AbschreibungAGr=Costs!I$353)*('Fixed assets'!$U$2:$U$1000=Costs!$A394)*(AbschreibungAHKBvD))","v":0},{"$f":"SUM(J$178:J217)-SUM(J$266:J305)+SUMPRODUCT((Aktivierungsjahr=Costs!$A394)*(AbschreibungAGr=Costs!J$353)*('Fixed assets'!$U$2:$U$1000=Costs!$A394)*(AbschreibungAHKBvD))","v":0},{"$f":"SUM(K$178:K217)-SUM(K$266:K305)+SUMPRODUCT((Aktivierungsjahr=Costs!$A394)*(AbschreibungAGr=Costs!K$353)*('Fixed assets'!$U$2:$U$1000=Costs!$A394)*(AbschreibungAHKBvD))","v":0},{"$f":"SUM(L$178:L217)-SUM(L$266:L305)+SUMPRODUCT((Aktivierungsjahr=Costs!$A394)*(AbschreibungAGr=Costs!L$353)*('Fixed assets'!$U$2:$U$1000=Costs!$A394)*(AbschreibungAHKBvD))","v":0},{"$f":"SUM(M$178:M217)-SUM(M$266:M305)+SUMPRODUCT((Aktivierungsjahr=Costs!$A394)*(AbschreibungAGr=Costs!M$353)*('Fixed assets'!$U$2:$U$1000=Costs!$A394)*(AbschreibungAHKBvD))","v":0},{"$f":"SUM(N$178:N217)-SUM(N$266:N305)+SUMPRODUCT((Aktivierungsjahr=Costs!$A394)*(AbschreibungAGr=Costs!N$353)*('Fixed assets'!$U$2:$U$1000=Costs!$A394)*(AbschreibungAHKBvD))","v":0},{"$f":"SUM(O$178:O217)-SUM(O$266:O305)+SUMPRODUCT((Aktivierungsjahr=Costs!$A394)*(AbschreibungAGr=Costs!O$353)*('Fixed assets'!$U$2:$U$1000=Costs!$A394)*(AbschreibungAHKBvD))","v":0},{"$f":"SUM(P$178:P217)-SUM(P$266:P305)+SUMPRODUCT((Aktivierungsjahr=Costs!$A394)*(AbschreibungAGr=Costs!P$353)*('Fixed assets'!$U$2:$U$1000=Costs!$A394)*(AbschreibungAHKBvD))","v":0},{"$f":"SUM(Q$178:Q217)-SUM(Q$266:Q305)+SUMPRODUCT((Aktivierungsjahr=Costs!$A394)*(AbschreibungAGr=Costs!Q$353)*('Fixed assets'!$U$2:$U$1000=Costs!$A394)*(AbschreibungAHKBvD))","v":0},{"$f":"SUM(R$178:R217)-SUM(R$266:R305)+SUMPRODUCT((Aktivierungsjahr=Costs!$A394)*(AbschreibungAGr=Costs!R$353)*('Fixed assets'!$U$2:$U$1000=Costs!$A394)*(AbschreibungAHKBvD))","v":0},{"$f":"SUM(S$178:S217)-SUM(S$266:S305)+SUMPRODUCT((Aktivierungsjahr=Costs!$A394)*(AbschreibungAGr=Costs!S$353)*('Fixed assets'!$U$2:$U$1000=Costs!$A394)*(AbschreibungAHKBvD))","v":0},{"$f":"SUM(T$178:T217)-SUM(T$266:T305)+SUMPRODUCT((Aktivierungsjahr=Costs!$A394)*(AbschreibungAGr=Costs!T$353)*('Fixed assets'!$U$2:$U$1000=Costs!$A394)*(AbschreibungAHKBvD))","v":0},{"$f":"SUM(U$178:U217)-SUM(U$266:U305)+SUMPRODUCT((Aktivierungsjahr=Costs!$A394)*(AbschreibungAGr=Costs!U$353)*('Fixed assets'!$U$2:$U$1000=Costs!$A394)*(AbschreibungAHKBvD))","v":0},{"$f":"SUM(V$178:V217)-SUM(V$266:V305)+SUMPRODUCT((Aktivierungsjahr=Costs!$A394)*(AbschreibungAGr=Costs!V$353)*('Fixed assets'!$U$2:$U$1000=Costs!$A394)*(AbschreibungAHKBvD))","v":0},{"$f":"SUM(W$178:W217)-SUM(W$266:W305)+SUMPRODUCT((Aktivierungsjahr=Costs!$A394)*(AbschreibungAGr=Costs!W$353)*('Fixed assets'!$U$2:$U$1000=Costs!$A394)*(AbschreibungAHKBvD))","v":0},{"$f":"SUM(X$178:X217)-SUM(X$266:X305)+SUMPRODUCT((Aktivierungsjahr=Costs!$A394)*(AbschreibungAGr=Costs!X$353)*('Fixed assets'!$U$2:$U$1000=Costs!$A394)*(AbschreibungAHKBvD))","v":0},{"$f":"SUM(Y$178:Y217)-SUM(Y$266:Y305)+SUMPRODUCT((Aktivierungsjahr=Costs!$A394)*(AbschreibungAGr=Costs!Y$353)*('Fixed assets'!$U$2:$U$1000=Costs!$A394)*(AbschreibungAHKBvD))","v":0},{"$f":"SUM(Z$178:Z217)-SUM(Z$266:Z305)+SUMPRODUCT((Aktivierungsjahr=Costs!$A394)*(AbschreibungAGr=Costs!Z$353)*('Fixed assets'!$U$2:$U$1000=Costs!$A394)*(AbschreibungAHKBvD))","v":0},{"$f":"SUM(AA$178:AA217)-SUM(AA$266:AA305)+SUMPRODUCT((Aktivierungsjahr=Costs!$A394)*(AbschreibungAGr=Costs!AA$353)*('Fixed assets'!$U$2:$U$1000=Costs!$A394)*(AbschreibungAHKBvD))","v":0},{"$f":"SUM(AB$178:AB217)-SUM(AB$266:AB305)+SUMPRODUCT((Aktivierungsjahr=Costs!$A394)*(AbschreibungAGr=Costs!AB$353)*('Fixed assets'!$U$2:$U$1000=Costs!$A394)*(AbschreibungAHKBvD))","v":0},{"$f":"SUM(AC$178:AC217)-SUM(AC$266:AC305)+SUMPRODUCT((Aktivierungsjahr=Costs!$A394)*(AbschreibungAGr=Costs!AC$353)*('Fixed assets'!$U$2:$U$1000=Costs!$A394)*(AbschreibungAHKBvD))","v":0},{"$f":"SUM(AD$178:AD217)-SUM(AD$266:AD305)+SUMPRODUCT((Aktivierungsjahr=Costs!$A394)*(AbschreibungAGr=Costs!AD$353)*('Fixed assets'!$U$2:$U$1000=Costs!$A394)*(AbschreibungAHKBvD))","v":0},{"$f":"SUM(AE$178:AE217)-SUM(AE$266:AE305)+SUMPRODUCT((Aktivierungsjahr=Costs!$A394)*(AbschreibungAGr=Costs!AE$353)*('Fixed assets'!$U$2:$U$1000=Costs!$A394)*(AbschreibungAHKBvD))","v":0},{"$f":"SUM(AF$178:AF217)-SUM(AF$266:AF305)+SUMPRODUCT((Aktivierungsjahr=Costs!$A394)*(AbschreibungAGr=Costs!AF$353)*('Fixed assets'!$U$2:$U$1000=Costs!$A394)*(AbschreibungAHKBvD))","v":0},{"$f":"SUM(AG$178:AG217)-SUM(AG$266:AG305)+SUMPRODUCT((Aktivierungsjahr=Costs!$A394)*(AbschreibungAGr=Costs!AG$353)*('Fixed assets'!$U$2:$U$1000=Costs!$A394)*(AbschreibungAHKBvD))","v":0},{"$f":"SUM(AH$178:AH217)-SUM(AH$266:AH305)+SUMPRODUCT((Aktivierungsjahr=Costs!$A394)*(AbschreibungAGr=Costs!AH$353)*('Fixed assets'!$U$2:$U$1000=Costs!$A394)*(AbschreibungAHKBvD))","v":0},{"$f":"SUM(AI$178:AI217)-SUM(AI$266:AI305)+SUMPRODUCT((Aktivierungsjahr=Costs!$A394)*(AbschreibungAGr=Costs!AI$353)*('Fixed assets'!$U$2:$U$1000=Costs!$A394)*(AbschreibungAHKBvD))","v":0},{"$f":"SUM(AJ$178:AJ217)-SUM(AJ$266:AJ305)+SUMPRODUCT((Aktivierungsjahr=Costs!$A394)*(AbschreibungAGr=Costs!AJ$353)*('Fixed assets'!$U$2:$U$1000=Costs!$A394)*(AbschreibungAHKBvD))","v":333333.33333333291},{"$f":"SUM(AK$178:AK217)-SUM(AK$266:AK305)+SUMPRODUCT((Aktivierungsjahr=Costs!$A394)*(AbschreibungAGr=Costs!AK$353)*('Fixed assets'!$U$2:$U$1000=Costs!$A394)*(AbschreibungAHKBvD))","v":0},{"$f":"SUM(AL$178:AL217)-SUM(AL$266:AL305)+SUMPRODUCT((Aktivierungsjahr=Costs!$A394)*(AbschreibungAGr=Costs!AL$353)*('Fixed assets'!$U$2:$U$1000=Costs!$A394)*(AbschreibungAHKBvD))","v":0},{"$f":"SUM(AM$178:AM217)-SUM(AM$266:AM305)+SUMPRODUCT((Aktivierungsjahr=Costs!$A394)*(AbschreibungAGr=Costs!AM$353)*('Fixed assets'!$U$2:$U$1000=Costs!$A394)*(AbschreibungAHKBvD))","v":0},{"$f":"SUM(AN$178:AN217)-SUM(AN$266:AN305)+SUMPRODUCT((Aktivierungsjahr=Costs!$A394)*(AbschreibungAGr=Costs!AN$353)*('Fixed assets'!$U$2:$U$1000=Costs!$A394)*(AbschreibungAHKBvD))","v":0},{"$f":"SUM(AO$178:AO217)-SUM(AO$266:AO305)+SUMPRODUCT((Aktivierungsjahr=Costs!$A394)*(AbschreibungAGr=Costs!AO$353)*('Fixed assets'!$U$2:$U$1000=Costs!$A394)*(AbschreibungAHKBvD))","v":0},{"$f":"SUM(AP$178:AP217)-SUM(AP$266:AP305)+SUMPRODUCT((Aktivierungsjahr=Costs!$A394)*(AbschreibungAGr=Costs!AP$353)*('Fixed assets'!$U$2:$U$1000=Costs!$A394)*(AbschreibungAHKBvD))","v":0},{"$f":"SUM(AQ$178:AQ217)-SUM(AQ$266:AQ305)+SUMPRODUCT((Aktivierungsjahr=Costs!$A394)*(AbschreibungAGr=Costs!AQ$353)*('Fixed assets'!$U$2:$U$1000=Costs!$A394)*(AbschreibungAHKBvD))","v":0}]
[2056,311111.11111111066,{"$f":"SUM(C$178:C218)-SUM(C$266:C306)+SUMPRODUCT((Aktivierungsjahr=Costs!$A395)*(AbschreibungAGr=Costs!C$353)*('Fixed assets'!$U$2:$U$1000=Costs!$A395)*(AbschreibungAHKBvD))","v":0},{"$f":"SUM(D$178:D218)-SUM(D$266:D306)+SUMPRODUCT((Aktivierungsjahr=Costs!$A395)*(AbschreibungAGr=Costs!D$353)*('Fixed assets'!$U$2:$U$1000=Costs!$A395)*(AbschreibungAHKBvD))","v":0},{"$f":"SUM(E$178:E218)-SUM(E$266:E306)+SUMPRODUCT((Aktivierungsjahr=Costs!$A395)*(AbschreibungAGr=Costs!E$353)*('Fixed assets'!$U$2:$U$1000=Costs!$A395)*(AbschreibungAHKBvD))","v":0},{"$f":"SUM(F$178:F218)-SUM(F$266:F306)+SUMPRODUCT((Aktivierungsjahr=Costs!$A395)*(AbschreibungAGr=Costs!F$353)*('Fixed assets'!$U$2:$U$1000=Costs!$A395)*(AbschreibungAHKBvD))","v":0},{"$f":"SUM(G$178:G218)-SUM(G$266:G306)+SUMPRODUCT((Aktivierungsjahr=Costs!$A395)*(AbschreibungAGr=Costs!G$353)*('Fixed assets'!$U$2:$U$1000=Costs!$A395)*(AbschreibungAHKBvD))","v":0},{"$f":"SUM(H$178:H218)-SUM(H$266:H306)+SUMPRODUCT((Aktivierungsjahr=Costs!$A395)*(AbschreibungAGr=Costs!H$353)*('Fixed assets'!$U$2:$U$1000=Costs!$A395)*(AbschreibungAHKBvD))","v":0},{"$f":"SUM(I$178:I218)-SUM(I$266:I306)+SUMPRODUCT((Aktivierungsjahr=Costs!$A395)*(AbschreibungAGr=Costs!I$353)*('Fixed assets'!$U$2:$U$1000=Costs!$A395)*(AbschreibungAHKBvD))","v":0},{"$f":"SUM(J$178:J218)-SUM(J$266:J306)+SUMPRODUCT((Aktivierungsjahr=Costs!$A395)*(AbschreibungAGr=Costs!J$353)*('Fixed assets'!$U$2:$U$1000=Costs!$A395)*(AbschreibungAHKBvD))","v":0},{"$f":"SUM(K$178:K218)-SUM(K$266:K306)+SUMPRODUCT((Aktivierungsjahr=Costs!$A395)*(AbschreibungAGr=Costs!K$353)*('Fixed assets'!$U$2:$U$1000=Costs!$A395)*(AbschreibungAHKBvD))","v":0},{"$f":"SUM(L$178:L218)-SUM(L$266:L306)+SUMPRODUCT((Aktivierungsjahr=Costs!$A395)*(AbschreibungAGr=Costs!L$353)*('Fixed assets'!$U$2:$U$1000=Costs!$A395)*(AbschreibungAHKBvD))","v":0},{"$f":"SUM(M$178:M218)-SUM(M$266:M306)+SUMPRODUCT((Aktivierungsjahr=Costs!$A395)*(AbschreibungAGr=Costs!M$353)*('Fixed assets'!$U$2:$U$1000=Costs!$A395)*(AbschreibungAHKBvD))","v":0},{"$f":"SUM(N$178:N218)-SUM(N$266:N306)+SUMPRODUCT((Aktivierungsjahr=Costs!$A395)*(AbschreibungAGr=Costs!N$353)*('Fixed assets'!$U$2:$U$1000=Costs!$A395)*(AbschreibungAHKBvD))","v":0},{"$f":"SUM(O$178:O218)-SUM(O$266:O306)+SUMPRODUCT((Aktivierungsjahr=Costs!$A395)*(AbschreibungAGr=Costs!O$353)*('Fixed assets'!$U$2:$U$1000=Costs!$A395)*(AbschreibungAHKBvD))","v":0},{"$f":"SUM(P$178:P218)-SUM(P$266:P306)+SUMPRODUCT((Aktivierungsjahr=Costs!$A395)*(AbschreibungAGr=Costs!P$353)*('Fixed assets'!$U$2:$U$1000=Costs!$A395)*(AbschreibungAHKBvD))","v":0},{"$f":"SUM(Q$178:Q218)-SUM(Q$266:Q306)+SUMPRODUCT((Aktivierungsjahr=Costs!$A395)*(AbschreibungAGr=Costs!Q$353)*('Fixed assets'!$U$2:$U$1000=Costs!$A395)*(AbschreibungAHKBvD))","v":0},{"$f":"SUM(R$178:R218)-SUM(R$266:R306)+SUMPRODUCT((Aktivierungsjahr=Costs!$A395)*(AbschreibungAGr=Costs!R$353)*('Fixed assets'!$U$2:$U$1000=Costs!$A395)*(AbschreibungAHKBvD))","v":0},{"$f":"SUM(S$178:S218)-SUM(S$266:S306)+SUMPRODUCT((Aktivierungsjahr=Costs!$A395)*(AbschreibungAGr=Costs!S$353)*('Fixed assets'!$U$2:$U$1000=Costs!$A395)*(AbschreibungAHKBvD))","v":0},{"$f":"SUM(T$178:T218)-SUM(T$266:T306)+SUMPRODUCT((Aktivierungsjahr=Costs!$A395)*(AbschreibungAGr=Costs!T$353)*('Fixed assets'!$U$2:$U$1000=Costs!$A395)*(AbschreibungAHKBvD))","v":0},{"$f":"SUM(U$178:U218)-SUM(U$266:U306)+SUMPRODUCT((Aktivierungsjahr=Costs!$A395)*(AbschreibungAGr=Costs!U$353)*('Fixed assets'!$U$2:$U$1000=Costs!$A395)*(AbschreibungAHKBvD))","v":0},{"$f":"SUM(V$178:V218)-SUM(V$266:V306)+SUMPRODUCT((Aktivierungsjahr=Costs!$A395)*(AbschreibungAGr=Costs!V$353)*('Fixed assets'!$U$2:$U$1000=Costs!$A395)*(AbschreibungAHKBvD))","v":0},{"$f":"SUM(W$178:W218)-SUM(W$266:W306)+SUMPRODUCT((Aktivierungsjahr=Costs!$A395)*(AbschreibungAGr=Costs!W$353)*('Fixed assets'!$U$2:$U$1000=Costs!$A395)*(AbschreibungAHKBvD))","v":0},{"$f":"SUM(X$178:X218)-SUM(X$266:X306)+SUMPRODUCT((Aktivierungsjahr=Costs!$A395)*(AbschreibungAGr=Costs!X$353)*('Fixed assets'!$U$2:$U$1000=Costs!$A395)*(AbschreibungAHKBvD))","v":0},{"$f":"SUM(Y$178:Y218)-SUM(Y$266:Y306)+SUMPRODUCT((Aktivierungsjahr=Costs!$A395)*(AbschreibungAGr=Costs!Y$353)*('Fixed assets'!$U$2:$U$1000=Costs!$A395)*(AbschreibungAHKBvD))","v":0},{"$f":"SUM(Z$178:Z218)-SUM(Z$266:Z306)+SUMPRODUCT((Aktivierungsjahr=Costs!$A395)*(AbschreibungAGr=Costs!Z$353)*('Fixed assets'!$U$2:$U$1000=Costs!$A395)*(AbschreibungAHKBvD))","v":0},{"$f":"SUM(AA$178:AA218)-SUM(AA$266:AA306)+SUMPRODUCT((Aktivierungsjahr=Costs!$A395)*(AbschreibungAGr=Costs!AA$353)*('Fixed assets'!$U$2:$U$1000=Costs!$A395)*(AbschreibungAHKBvD))","v":0},{"$f":"SUM(AB$178:AB218)-SUM(AB$266:AB306)+SUMPRODUCT((Aktivierungsjahr=Costs!$A395)*(AbschreibungAGr=Costs!AB$353)*('Fixed assets'!$U$2:$U$1000=Costs!$A395)*(AbschreibungAHKBvD))","v":0},{"$f":"SUM(AC$178:AC218)-SUM(AC$266:AC306)+SUMPRODUCT((Aktivierungsjahr=Costs!$A395)*(AbschreibungAGr=Costs!AC$353)*('Fixed assets'!$U$2:$U$1000=Costs!$A395)*(AbschreibungAHKBvD))","v":0},{"$f":"SUM(AD$178:AD218)-SUM(AD$266:AD306)+SUMPRODUCT((Aktivierungsjahr=Costs!$A395)*(AbschreibungAGr=Costs!AD$353)*('Fixed assets'!$U$2:$U$1000=Costs!$A395)*(AbschreibungAHKBvD))","v":0},{"$f":"SUM(AE$178:AE218)-SUM(AE$266:AE306)+SUMPRODUCT((Aktivierungsjahr=Costs!$A395)*(AbschreibungAGr=Costs!AE$353)*('Fixed assets'!$U$2:$U$1000=Costs!$A395)*(AbschreibungAHKBvD))","v":0},{"$f":"SUM(AF$178:AF218)-SUM(AF$266:AF306)+SUMPRODUCT((Aktivierungsjahr=Costs!$A395)*(AbschreibungAGr=Costs!AF$353)*('Fixed assets'!$U$2:$U$1000=Costs!$A395)*(AbschreibungAHKBvD))","v":0},{"$f":"SUM(AG$178:AG218)-SUM(AG$266:AG306)+SUMPRODUCT((Aktivierungsjahr=Costs!$A395)*(AbschreibungAGr=Costs!AG$353)*('Fixed assets'!$U$2:$U$1000=Costs!$A395)*(AbschreibungAHKBvD))","v":0},{"$f":"SUM(AH$178:AH218)-SUM(AH$266:AH306)+SUMPRODUCT((Aktivierungsjahr=Costs!$A395)*(AbschreibungAGr=Costs!AH$353)*('Fixed assets'!$U$2:$U$1000=Costs!$A395)*(AbschreibungAHKBvD))","v":0},{"$f":"SUM(AI$178:AI218)-SUM(AI$266:AI306)+SUMPRODUCT((Aktivierungsjahr=Costs!$A395)*(AbschreibungAGr=Costs!AI$353)*('Fixed assets'!$U$2:$U$1000=Costs!$A395)*(AbschreibungAHKBvD))","v":0},{"$f":"SUM(AJ$178:AJ218)-SUM(AJ$266:AJ306)+SUMPRODUCT((Aktivierungsjahr=Costs!$A395)*(AbschreibungAGr=Costs!AJ$353)*('Fixed assets'!$U$2:$U$1000=Costs!$A395)*(AbschreibungAHKBvD))","v":311111.11111111066},{"$f":"SUM(AK$178:AK218)-SUM(AK$266:AK306)+SUMPRODUCT((Aktivierungsjahr=Costs!$A395)*(AbschreibungAGr=Costs!AK$353)*('Fixed assets'!$U$2:$U$1000=Costs!$A395)*(AbschreibungAHKBvD))","v":0},{"$f":"SUM(AL$178:AL218)-SUM(AL$266:AL306)+SUMPRODUCT((Aktivierungsjahr=Costs!$A395)*(AbschreibungAGr=Costs!AL$353)*('Fixed assets'!$U$2:$U$1000=Costs!$A395)*(AbschreibungAHKBvD))","v":0},{"$f":"SUM(AM$178:AM218)-SUM(AM$266:AM306)+SUMPRODUCT((Aktivierungsjahr=Costs!$A395)*(AbschreibungAGr=Costs!AM$353)*('Fixed assets'!$U$2:$U$1000=Costs!$A395)*(AbschreibungAHKBvD))","v":0},{"$f":"SUM(AN$178:AN218)-SUM(AN$266:AN306)+SUMPRODUCT((Aktivierungsjahr=Costs!$A395)*(AbschreibungAGr=Costs!AN$353)*('Fixed assets'!$U$2:$U$1000=Costs!$A395)*(AbschreibungAHKBvD))","v":0},{"$f":"SUM(AO$178:AO218)-SUM(AO$266:AO306)+SUMPRODUCT((Aktivierungsjahr=Costs!$A395)*(AbschreibungAGr=Costs!AO$353)*('Fixed assets'!$U$2:$U$1000=Costs!$A395)*(AbschreibungAHKBvD))","v":0},{"$f":"SUM(AP$178:AP218)-SUM(AP$266:AP306)+SUMPRODUCT((Aktivierungsjahr=Costs!$A395)*(AbschreibungAGr=Costs!AP$353)*('Fixed assets'!$U$2:$U$1000=Costs!$A395)*(AbschreibungAHKBvD))","v":0},{"$f":"SUM(AQ$178:AQ218)-SUM(AQ$266:AQ306)+SUMPRODUCT((Aktivierungsjahr=Costs!$A395)*(AbschreibungAGr=Costs!AQ$353)*('Fixed assets'!$U$2:$U$1000=Costs!$A395)*(AbschreibungAHKBvD))","v":0}]
[2057,288888.88888888841,{"$f":"SUM(C$178:C219)-SUM(C$266:C307)+SUMPRODUCT((Aktivierungsjahr=Costs!$A396)*(AbschreibungAGr=Costs!C$353)*('Fixed assets'!$U$2:$U$1000=Costs!$A396)*(AbschreibungAHKBvD))","v":0},{"$f":"SUM(D$178:D219)-SUM(D$266:D307)+SUMPRODUCT((Aktivierungsjahr=Costs!$A396)*(AbschreibungAGr=Costs!D$353)*('Fixed assets'!$U$2:$U$1000=Costs!$A396)*(AbschreibungAHKBvD))","v":0},{"$f":"SUM(E$178:E219)-SUM(E$266:E307)+SUMPRODUCT((Aktivierungsjahr=Costs!$A396)*(AbschreibungAGr=Costs!E$353)*('Fixed assets'!$U$2:$U$1000=Costs!$A396)*(AbschreibungAHKBvD))","v":0},{"$f":"SUM(F$178:F219)-SUM(F$266:F307)+SUMPRODUCT((Aktivierungsjahr=Costs!$A396)*(AbschreibungAGr=Costs!F$353)*('Fixed assets'!$U$2:$U$1000=Costs!$A396)*(AbschreibungAHKBvD))","v":0},{"$f":"SUM(G$178:G219)-SUM(G$266:G307)+SUMPRODUCT((Aktivierungsjahr=Costs!$A396)*(AbschreibungAGr=Costs!G$353)*('Fixed assets'!$U$2:$U$1000=Costs!$A396)*(AbschreibungAHKBvD))","v":0},{"$f":"SUM(H$178:H219)-SUM(H$266:H307)+SUMPRODUCT((Aktivierungsjahr=Costs!$A396)*(AbschreibungAGr=Costs!H$353)*('Fixed assets'!$U$2:$U$1000=Costs!$A396)*(AbschreibungAHKBvD))","v":0},{"$f":"SUM(I$178:I219)-SUM(I$266:I307)+SUMPRODUCT((Aktivierungsjahr=Costs!$A396)*(AbschreibungAGr=Costs!I$353)*('Fixed assets'!$U$2:$U$1000=Costs!$A396)*(AbschreibungAHKBvD))","v":0},{"$f":"SUM(J$178:J219)-SUM(J$266:J307)+SUMPRODUCT((Aktivierungsjahr=Costs!$A396)*(AbschreibungAGr=Costs!J$353)*('Fixed assets'!$U$2:$U$1000=Costs!$A396)*(AbschreibungAHKBvD))","v":0},{"$f":"SUM(K$178:K219)-SUM(K$266:K307)+SUMPRODUCT((Aktivierungsjahr=Costs!$A396)*(AbschreibungAGr=Costs!K$353)*('Fixed assets'!$U$2:$U$1000=Costs!$A396)*(AbschreibungAHKBvD))","v":0},{"$f":"SUM(L$178:L219)-SUM(L$266:L307)+SUMPRODUCT((Aktivierungsjahr=Costs!$A396)*(AbschreibungAGr=Costs!L$353)*('Fixed assets'!$U$2:$U$1000=Costs!$A396)*(AbschreibungAHKBvD))","v":0},{"$f":"SUM(M$178:M219)-SUM(M$266:M307)+SUMPRODUCT((Aktivierungsjahr=Costs!$A396)*(AbschreibungAGr=Costs!M$353)*('Fixed assets'!$U$2:$U$1000=Costs!$A396)*(AbschreibungAHKBvD))","v":0},{"$f":"SUM(N$178:N219)-SUM(N$266:N307)+SUMPRODUCT((Aktivierungsjahr=Costs!$A396)*(AbschreibungAGr=Costs!N$353)*('Fixed assets'!$U$2:$U$1000=Costs!$A396)*(AbschreibungAHKBvD))","v":0},{"$f":"SUM(O$178:O219)-SUM(O$266:O307)+SUMPRODUCT((Aktivierungsjahr=Costs!$A396)*(AbschreibungAGr=Costs!O$353)*('Fixed assets'!$U$2:$U$1000=Costs!$A396)*(AbschreibungAHKBvD))","v":0},{"$f":"SUM(P$178:P219)-SUM(P$266:P307)+SUMPRODUCT((Aktivierungsjahr=Costs!$A396)*(AbschreibungAGr=Costs!P$353)*('Fixed assets'!$U$2:$U$1000=Costs!$A396)*(AbschreibungAHKBvD))","v":0},{"$f":"SUM(Q$178:Q219)-SUM(Q$266:Q307)+SUMPRODUCT((Aktivierungsjahr=Costs!$A396)*(AbschreibungAGr=Costs!Q$353)*('Fixed assets'!$U$2:$U$1000=Costs!$A396)*(AbschreibungAHKBvD))","v":0},{"$f":"SUM(R$178:R219)-SUM(R$266:R307)+SUMPRODUCT((Aktivierungsjahr=Costs!$A396)*(AbschreibungAGr=Costs!R$353)*('Fixed assets'!$U$2:$U$1000=Costs!$A396)*(AbschreibungAHKBvD))","v":0},{"$f":"SUM(S$178:S219)-SUM(S$266:S307)+SUMPRODUCT((Aktivierungsjahr=Costs!$A396)*(AbschreibungAGr=Costs!S$353)*('Fixed assets'!$U$2:$U$1000=Costs!$A396)*(AbschreibungAHKBvD))","v":0},{"$f":"SUM(T$178:T219)-SUM(T$266:T307)+SUMPRODUCT((Aktivierungsjahr=Costs!$A396)*(AbschreibungAGr=Costs!T$353)*('Fixed assets'!$U$2:$U$1000=Costs!$A396)*(AbschreibungAHKBvD))","v":0},{"$f":"SUM(U$178:U219)-SUM(U$266:U307)+SUMPRODUCT((Aktivierungsjahr=Costs!$A396)*(AbschreibungAGr=Costs!U$353)*('Fixed assets'!$U$2:$U$1000=Costs!$A396)*(AbschreibungAHKBvD))","v":0},{"$f":"SUM(V$178:V219)-SUM(V$266:V307)+SUMPRODUCT((Aktivierungsjahr=Costs!$A396)*(AbschreibungAGr=Costs!V$353)*('Fixed assets'!$U$2:$U$1000=Costs!$A396)*(AbschreibungAHKBvD))","v":0},{"$f":"SUM(W$178:W219)-SUM(W$266:W307)+SUMPRODUCT((Aktivierungsjahr=Costs!$A396)*(AbschreibungAGr=Costs!W$353)*('Fixed assets'!$U$2:$U$1000=Costs!$A396)*(AbschreibungAHKBvD))","v":0},{"$f":"SUM(X$178:X219)-SUM(X$266:X307)+SUMPRODUCT((Aktivierungsjahr=Costs!$A396)*(AbschreibungAGr=Costs!X$353)*('Fixed assets'!$U$2:$U$1000=Costs!$A396)*(AbschreibungAHKBvD))","v":0},{"$f":"SUM(Y$178:Y219)-SUM(Y$266:Y307)+SUMPRODUCT((Aktivierungsjahr=Costs!$A396)*(AbschreibungAGr=Costs!Y$353)*('Fixed assets'!$U$2:$U$1000=Costs!$A396)*(AbschreibungAHKBvD))","v":0},{"$f":"SUM(Z$178:Z219)-SUM(Z$266:Z307)+SUMPRODUCT((Aktivierungsjahr=Costs!$A396)*(AbschreibungAGr=Costs!Z$353)*('Fixed assets'!$U$2:$U$1000=Costs!$A396)*(AbschreibungAHKBvD))","v":0},{"$f":"SUM(AA$178:AA219)-SUM(AA$266:AA307)+SUMPRODUCT((Aktivierungsjahr=Costs!$A396)*(AbschreibungAGr=Costs!AA$353)*('Fixed assets'!$U$2:$U$1000=Costs!$A396)*(AbschreibungAHKBvD))","v":0},{"$f":"SUM(AB$178:AB219)-SUM(AB$266:AB307)+SUMPRODUCT((Aktivierungsjahr=Costs!$A396)*(AbschreibungAGr=Costs!AB$353)*('Fixed assets'!$U$2:$U$1000=Costs!$A396)*(AbschreibungAHKBvD))","v":0},{"$f":"SUM(AC$178:AC219)-SUM(AC$266:AC307)+SUMPRODUCT((Aktivierungsjahr=Costs!$A396)*(AbschreibungAGr=Costs!AC$353)*('Fixed assets'!$U$2:$U$1000=Costs!$A396)*(AbschreibungAHKBvD))","v":0},{"$f":"SUM(AD$178:AD219)-SUM(AD$266:AD307)+SUMPRODUCT((Aktivierungsjahr=Costs!$A396)*(AbschreibungAGr=Costs!AD$353)*('Fixed assets'!$U$2:$U$1000=Costs!$A396)*(AbschreibungAHKBvD))","v":0},{"$f":"SUM(AE$178:AE219)-SUM(AE$266:AE307)+SUMPRODUCT((Aktivierungsjahr=Costs!$A396)*(AbschreibungAGr=Costs!AE$353)*('Fixed assets'!$U$2:$U$1000=Costs!$A396)*(AbschreibungAHKBvD))","v":0},{"$f":"SUM(AF$178:AF219)-SUM(AF$266:AF307)+SUMPRODUCT((Aktivierungsjahr=Costs!$A396)*(AbschreibungAGr=Costs!AF$353)*('Fixed assets'!$U$2:$U$1000=Costs!$A396)*(AbschreibungAHKBvD))","v":0},{"$f":"SUM(AG$178:AG219)-SUM(AG$266:AG307)+SUMPRODUCT((Aktivierungsjahr=Costs!$A396)*(AbschreibungAGr=Costs!AG$353)*('Fixed assets'!$U$2:$U$1000=Costs!$A396)*(AbschreibungAHKBvD))","v":0},{"$f":"SUM(AH$178:AH219)-SUM(AH$266:AH307)+SUMPRODUCT((Aktivierungsjahr=Costs!$A396)*(AbschreibungAGr=Costs!AH$353)*('Fixed assets'!$U$2:$U$1000=Costs!$A396)*(AbschreibungAHKBvD))","v":0},{"$f":"SUM(AI$178:AI219)-SUM(AI$266:AI307)+SUMPRODUCT((Aktivierungsjahr=Costs!$A396)*(AbschreibungAGr=Costs!AI$353)*('Fixed assets'!$U$2:$U$1000=Costs!$A396)*(AbschreibungAHKBvD))","v":0},{"$f":"SUM(AJ$178:AJ219)-SUM(AJ$266:AJ307)+SUMPRODUCT((Aktivierungsjahr=Costs!$A396)*(AbschreibungAGr=Costs!AJ$353)*('Fixed assets'!$U$2:$U$1000=Costs!$A396)*(AbschreibungAHKBvD))","v":288888.88888888841},{"$f":"SUM(AK$178:AK219)-SUM(AK$266:AK307)+SUMPRODUCT((Aktivierungsjahr=Costs!$A396)*(AbschreibungAGr=Costs!AK$353)*('Fixed assets'!$U$2:$U$1000=Costs!$A396)*(AbschreibungAHKBvD))","v":0},{"$f":"SUM(AL$178:AL219)-SUM(AL$266:AL307)+SUMPRODUCT((Aktivierungsjahr=Costs!$A396)*(AbschreibungAGr=Costs!AL$353)*('Fixed assets'!$U$2:$U$1000=Costs!$A396)*(AbschreibungAHKBvD))","v":0},{"$f":"SUM(AM$178:AM219)-SUM(AM$266:AM307)+SUMPRODUCT((Aktivierungsjahr=Costs!$A396)*(AbschreibungAGr=Costs!AM$353)*('Fixed assets'!$U$2:$U$1000=Costs!$A396)*(AbschreibungAHKBvD))","v":0},{"$f":"SUM(AN$178:AN219)-SUM(AN$266:AN307)+SUMPRODUCT((Aktivierungsjahr=Costs!$A396)*(AbschreibungAGr=Costs!AN$353)*('Fixed assets'!$U$2:$U$1000=Costs!$A396)*(AbschreibungAHKBvD))","v":0},{"$f":"SUM(AO$178:AO219)-SUM(AO$266:AO307)+SUMPRODUCT((Aktivierungsjahr=Costs!$A396)*(AbschreibungAGr=Costs!AO$353)*('Fixed assets'!$U$2:$U$1000=Costs!$A396)*(AbschreibungAHKBvD))","v":0},{"$f":"SUM(AP$178:AP219)-SUM(AP$266:AP307)+SUMPRODUCT((Aktivierungsjahr=Costs!$A396)*(AbschreibungAGr=Costs!AP$353)*('Fixed assets'!$U$2:$U$1000=Costs!$A396)*(AbschreibungAHKBvD))","v":0},{"$f":"SUM(AQ$178:AQ219)-SUM(AQ$266:AQ307)+SUMPRODUCT((Aktivierungsjahr=Costs!$A396)*(AbschreibungAGr=Costs!AQ$353)*('Fixed assets'!$U$2:$U$1000=Costs!$A396)*(AbschreibungAHKBvD))","v":0}]
[2058,266666.66666666616,{"$f":"SUM(C$178:C220)-SUM(C$266:C308)+SUMPRODUCT((Aktivierungsjahr=Costs!$A397)*(AbschreibungAGr=Costs!C$353)*('Fixed assets'!$U$2:$U$1000=Costs!$A397)*(AbschreibungAHKBvD))","v":0},{"$f":"SUM(D$178:D220)-SUM(D$266:D308)+SUMPRODUCT((Aktivierungsjahr=Costs!$A397)*(AbschreibungAGr=Costs!D$353)*('Fixed assets'!$U$2:$U$1000=Costs!$A397)*(AbschreibungAHKBvD))","v":0},{"$f":"SUM(E$178:E220)-SUM(E$266:E308)+SUMPRODUCT((Aktivierungsjahr=Costs!$A397)*(AbschreibungAGr=Costs!E$353)*('Fixed assets'!$U$2:$U$1000=Costs!$A397)*(AbschreibungAHKBvD))","v":0},{"$f":"SUM(F$178:F220)-SUM(F$266:F308)+SUMPRODUCT((Aktivierungsjahr=Costs!$A397)*(AbschreibungAGr=Costs!F$353)*('Fixed assets'!$U$2:$U$1000=Costs!$A397)*(AbschreibungAHKBvD))","v":0},{"$f":"SUM(G$178:G220)-SUM(G$266:G308)+SUMPRODUCT((Aktivierungsjahr=Costs!$A397)*(AbschreibungAGr=Costs!G$353)*('Fixed assets'!$U$2:$U$1000=Costs!$A397)*(AbschreibungAHKBvD))","v":0},{"$f":"SUM(H$178:H220)-SUM(H$266:H308)+SUMPRODUCT((Aktivierungsjahr=Costs!$A397)*(AbschreibungAGr=Costs!H$353)*('Fixed assets'!$U$2:$U$1000=Costs!$A397)*(AbschreibungAHKBvD))","v":0},{"$f":"SUM(I$178:I220)-SUM(I$266:I308)+SUMPRODUCT((Aktivierungsjahr=Costs!$A397)*(AbschreibungAGr=Costs!I$353)*('Fixed assets'!$U$2:$U$1000=Costs!$A397)*(AbschreibungAHKBvD))","v":0},{"$f":"SUM(J$178:J220)-SUM(J$266:J308)+SUMPRODUCT((Aktivierungsjahr=Costs!$A397)*(AbschreibungAGr=Costs!J$353)*('Fixed assets'!$U$2:$U$1000=Costs!$A397)*(AbschreibungAHKBvD))","v":0},{"$f":"SUM(K$178:K220)-SUM(K$266:K308)+SUMPRODUCT((Aktivierungsjahr=Costs!$A397)*(AbschreibungAGr=Costs!K$353)*('Fixed assets'!$U$2:$U$1000=Costs!$A397)*(AbschreibungAHKBvD))","v":0},{"$f":"SUM(L$178:L220)-SUM(L$266:L308)+SUMPRODUCT((Aktivierungsjahr=Costs!$A397)*(AbschreibungAGr=Costs!L$353)*('Fixed assets'!$U$2:$U$1000=Costs!$A397)*(AbschreibungAHKBvD))","v":0},{"$f":"SUM(M$178:M220)-SUM(M$266:M308)+SUMPRODUCT((Aktivierungsjahr=Costs!$A397)*(AbschreibungAGr=Costs!M$353)*('Fixed assets'!$U$2:$U$1000=Costs!$A397)*(AbschreibungAHKBvD))","v":0},{"$f":"SUM(N$178:N220)-SUM(N$266:N308)+SUMPRODUCT((Aktivierungsjahr=Costs!$A397)*(AbschreibungAGr=Costs!N$353)*('Fixed assets'!$U$2:$U$1000=Costs!$A397)*(AbschreibungAHKBvD))","v":0},{"$f":"SUM(O$178:O220)-SUM(O$266:O308)+SUMPRODUCT((Aktivierungsjahr=Costs!$A397)*(AbschreibungAGr=Costs!O$353)*('Fixed assets'!$U$2:$U$1000=Costs!$A397)*(AbschreibungAHKBvD))","v":0},{"$f":"SUM(P$178:P220)-SUM(P$266:P308)+SUMPRODUCT((Aktivierungsjahr=Costs!$A397)*(AbschreibungAGr=Costs!P$353)*('Fixed assets'!$U$2:$U$1000=Costs!$A397)*(AbschreibungAHKBvD))","v":0},{"$f":"SUM(Q$178:Q220)-SUM(Q$266:Q308)+SUMPRODUCT((Aktivierungsjahr=Costs!$A397)*(AbschreibungAGr=Costs!Q$353)*('Fixed assets'!$U$2:$U$1000=Costs!$A397)*(AbschreibungAHKBvD))","v":0},{"$f":"SUM(R$178:R220)-SUM(R$266:R308)+SUMPRODUCT((Aktivierungsjahr=Costs!$A397)*(AbschreibungAGr=Costs!R$353)*('Fixed assets'!$U$2:$U$1000=Costs!$A397)*(AbschreibungAHKBvD))","v":0},{"$f":"SUM(S$178:S220)-SUM(S$266:S308)+SUMPRODUCT((Aktivierungsjahr=Costs!$A397)*(AbschreibungAGr=Costs!S$353)*('Fixed assets'!$U$2:$U$1000=Costs!$A397)*(AbschreibungAHKBvD))","v":0},{"$f":"SUM(T$178:T220)-SUM(T$266:T308)+SUMPRODUCT((Aktivierungsjahr=Costs!$A397)*(AbschreibungAGr=Costs!T$353)*('Fixed assets'!$U$2:$U$1000=Costs!$A397)*(AbschreibungAHKBvD))","v":0},{"$f":"SUM(U$178:U220)-SUM(U$266:U308)+SUMPRODUCT((Aktivierungsjahr=Costs!$A397)*(AbschreibungAGr=Costs!U$353)*('Fixed assets'!$U$2:$U$1000=Costs!$A397)*(AbschreibungAHKBvD))","v":0},{"$f":"SUM(V$178:V220)-SUM(V$266:V308)+SUMPRODUCT((Aktivierungsjahr=Costs!$A397)*(AbschreibungAGr=Costs!V$353)*('Fixed assets'!$U$2:$U$1000=Costs!$A397)*(AbschreibungAHKBvD))","v":0},{"$f":"SUM(W$178:W220)-SUM(W$266:W308)+SUMPRODUCT((Aktivierungsjahr=Costs!$A397)*(AbschreibungAGr=Costs!W$353)*('Fixed assets'!$U$2:$U$1000=Costs!$A397)*(AbschreibungAHKBvD))","v":0},{"$f":"SUM(X$178:X220)-SUM(X$266:X308)+SUMPRODUCT((Aktivierungsjahr=Costs!$A397)*(AbschreibungAGr=Costs!X$353)*('Fixed assets'!$U$2:$U$1000=Costs!$A397)*(AbschreibungAHKBvD))","v":0},{"$f":"SUM(Y$178:Y220)-SUM(Y$266:Y308)+SUMPRODUCT((Aktivierungsjahr=Costs!$A397)*(AbschreibungAGr=Costs!Y$353)*('Fixed assets'!$U$2:$U$1000=Costs!$A397)*(AbschreibungAHKBvD))","v":0},{"$f":"SUM(Z$178:Z220)-SUM(Z$266:Z308)+SUMPRODUCT((Aktivierungsjahr=Costs!$A397)*(AbschreibungAGr=Costs!Z$353)*('Fixed assets'!$U$2:$U$1000=Costs!$A397)*(AbschreibungAHKBvD))","v":0},{"$f":"SUM(AA$178:AA220)-SUM(AA$266:AA308)+SUMPRODUCT((Aktivierungsjahr=Costs!$A397)*(AbschreibungAGr=Costs!AA$353)*('Fixed assets'!$U$2:$U$1000=Costs!$A397)*(AbschreibungAHKBvD))","v":0},{"$f":"SUM(AB$178:AB220)-SUM(AB$266:AB308)+SUMPRODUCT((Aktivierungsjahr=Costs!$A397)*(AbschreibungAGr=Costs!AB$353)*('Fixed assets'!$U$2:$U$1000=Costs!$A397)*(AbschreibungAHKBvD))","v":0},{"$f":"SUM(AC$178:AC220)-SUM(AC$266:AC308)+SUMPRODUCT((Aktivierungsjahr=Costs!$A397)*(AbschreibungAGr=Costs!AC$353)*('Fixed assets'!$U$2:$U$1000=Costs!$A397)*(AbschreibungAHKBvD))","v":0},{"$f":"SUM(AD$178:AD220)-SUM(AD$266:AD308)+SUMPRODUCT((Aktivierungsjahr=Costs!$A397)*(AbschreibungAGr=Costs!AD$353)*('Fixed assets'!$U$2:$U$1000=Costs!$A397)*(AbschreibungAHKBvD))","v":0},{"$f":"SUM(AE$178:AE220)-SUM(AE$266:AE308)+SUMPRODUCT((Aktivierungsjahr=Costs!$A397)*(AbschreibungAGr=Costs!AE$353)*('Fixed assets'!$U$2:$U$1000=Costs!$A397)*(AbschreibungAHKBvD))","v":0},{"$f":"SUM(AF$178:AF220)-SUM(AF$266:AF308)+SUMPRODUCT((Aktivierungsjahr=Costs!$A397)*(AbschreibungAGr=Costs!AF$353)*('Fixed assets'!$U$2:$U$1000=Costs!$A397)*(AbschreibungAHKBvD))","v":0},{"$f":"SUM(AG$178:AG220)-SUM(AG$266:AG308)+SUMPRODUCT((Aktivierungsjahr=Costs!$A397)*(AbschreibungAGr=Costs!AG$353)*('Fixed assets'!$U$2:$U$1000=Costs!$A397)*(AbschreibungAHKBvD))","v":0},{"$f":"SUM(AH$178:AH220)-SUM(AH$266:AH308)+SUMPRODUCT((Aktivierungsjahr=Costs!$A397)*(AbschreibungAGr=Costs!AH$353)*('Fixed assets'!$U$2:$U$1000=Costs!$A397)*(AbschreibungAHKBvD))","v":0},{"$f":"SUM(AI$178:AI220)-SUM(AI$266:AI308)+SUMPRODUCT((Aktivierungsjahr=Costs!$A397)*(AbschreibungAGr=Costs!AI$353)*('Fixed assets'!$U$2:$U$1000=Costs!$A397)*(AbschreibungAHKBvD))","v":0},{"$f":"SUM(AJ$178:AJ220)-SUM(AJ$266:AJ308)+SUMPRODUCT((Aktivierungsjahr=Costs!$A397)*(AbschreibungAGr=Costs!AJ$353)*('Fixed assets'!$U$2:$U$1000=Costs!$A397)*(AbschreibungAHKBvD))","v":266666.66666666616},{"$f":"SUM(AK$178:AK220)-SUM(AK$266:AK308)+SUMPRODUCT((Aktivierungsjahr=Costs!$A397)*(AbschreibungAGr=Costs!AK$353)*('Fixed assets'!$U$2:$U$1000=Costs!$A397)*(AbschreibungAHKBvD))","v":0},{"$f":"SUM(AL$178:AL220)-SUM(AL$266:AL308)+SUMPRODUCT((Aktivierungsjahr=Costs!$A397)*(AbschreibungAGr=Costs!AL$353)*('Fixed assets'!$U$2:$U$1000=Costs!$A397)*(AbschreibungAHKBvD))","v":0},{"$f":"SUM(AM$178:AM220)-SUM(AM$266:AM308)+SUMPRODUCT((Aktivierungsjahr=Costs!$A397)*(AbschreibungAGr=Costs!AM$353)*('Fixed assets'!$U$2:$U$1000=Costs!$A397)*(AbschreibungAHKBvD))","v":0},{"$f":"SUM(AN$178:AN220)-SUM(AN$266:AN308)+SUMPRODUCT((Aktivierungsjahr=Costs!$A397)*(AbschreibungAGr=Costs!AN$353)*('Fixed assets'!$U$2:$U$1000=Costs!$A397)*(AbschreibungAHKBvD))","v":0},{"$f":"SUM(AO$178:AO220)-SUM(AO$266:AO308)+SUMPRODUCT((Aktivierungsjahr=Costs!$A397)*(AbschreibungAGr=Costs!AO$353)*('Fixed assets'!$U$2:$U$1000=Costs!$A397)*(AbschreibungAHKBvD))","v":0},{"$f":"SUM(AP$178:AP220)-SUM(AP$266:AP308)+SUMPRODUCT((Aktivierungsjahr=Costs!$A397)*(AbschreibungAGr=Costs!AP$353)*('Fixed assets'!$U$2:$U$1000=Costs!$A397)*(AbschreibungAHKBvD))","v":0},{"$f":"SUM(AQ$178:AQ220)-SUM(AQ$266:AQ308)+SUMPRODUCT((Aktivierungsjahr=Costs!$A397)*(AbschreibungAGr=Costs!AQ$353)*('Fixed assets'!$U$2:$U$1000=Costs!$A397)*(AbschreibungAHKBvD))","v":0}]
[2059,244444.44444444391,{"$f":"SUM(C$178:C221)-SUM(C$266:C309)+SUMPRODUCT((Aktivierungsjahr=Costs!$A398)*(AbschreibungAGr=Costs!C$353)*('Fixed assets'!$U$2:$U$1000=Costs!$A398)*(AbschreibungAHKBvD))","v":0},{"$f":"SUM(D$178:D221)-SUM(D$266:D309)+SUMPRODUCT((Aktivierungsjahr=Costs!$A398)*(AbschreibungAGr=Costs!D$353)*('Fixed assets'!$U$2:$U$1000=Costs!$A398)*(AbschreibungAHKBvD))","v":0},{"$f":"SUM(E$178:E221)-SUM(E$266:E309)+SUMPRODUCT((Aktivierungsjahr=Costs!$A398)*(AbschreibungAGr=Costs!E$353)*('Fixed assets'!$U$2:$U$1000=Costs!$A398)*(AbschreibungAHKBvD))","v":0},{"$f":"SUM(F$178:F221)-SUM(F$266:F309)+SUMPRODUCT((Aktivierungsjahr=Costs!$A398)*(AbschreibungAGr=Costs!F$353)*('Fixed assets'!$U$2:$U$1000=Costs!$A398)*(AbschreibungAHKBvD))","v":0},{"$f":"SUM(G$178:G221)-SUM(G$266:G309)+SUMPRODUCT((Aktivierungsjahr=Costs!$A398)*(AbschreibungAGr=Costs!G$353)*('Fixed assets'!$U$2:$U$1000=Costs!$A398)*(AbschreibungAHKBvD))","v":0},{"$f":"SUM(H$178:H221)-SUM(H$266:H309)+SUMPRODUCT((Aktivierungsjahr=Costs!$A398)*(AbschreibungAGr=Costs!H$353)*('Fixed assets'!$U$2:$U$1000=Costs!$A398)*(AbschreibungAHKBvD))","v":0},{"$f":"SUM(I$178:I221)-SUM(I$266:I309)+SUMPRODUCT((Aktivierungsjahr=Costs!$A398)*(AbschreibungAGr=Costs!I$353)*('Fixed assets'!$U$2:$U$1000=Costs!$A398)*(AbschreibungAHKBvD))","v":0},{"$f":"SUM(J$178:J221)-SUM(J$266:J309)+SUMPRODUCT((Aktivierungsjahr=Costs!$A398)*(AbschreibungAGr=Costs!J$353)*('Fixed assets'!$U$2:$U$1000=Costs!$A398)*(AbschreibungAHKBvD))","v":0},{"$f":"SUM(K$178:K221)-SUM(K$266:K309)+SUMPRODUCT((Aktivierungsjahr=Costs!$A398)*(AbschreibungAGr=Costs!K$353)*('Fixed assets'!$U$2:$U$1000=Costs!$A398)*(AbschreibungAHKBvD))","v":0},{"$f":"SUM(L$178:L221)-SUM(L$266:L309)+SUMPRODUCT((Aktivierungsjahr=Costs!$A398)*(AbschreibungAGr=Costs!L$353)*('Fixed assets'!$U$2:$U$1000=Costs!$A398)*(AbschreibungAHKBvD))","v":0},{"$f":"SUM(M$178:M221)-SUM(M$266:M309)+SUMPRODUCT((Aktivierungsjahr=Costs!$A398)*(AbschreibungAGr=Costs!M$353)*('Fixed assets'!$U$2:$U$1000=Costs!$A398)*(AbschreibungAHKBvD))","v":0},{"$f":"SUM(N$178:N221)-SUM(N$266:N309)+SUMPRODUCT((Aktivierungsjahr=Costs!$A398)*(AbschreibungAGr=Costs!N$353)*('Fixed assets'!$U$2:$U$1000=Costs!$A398)*(AbschreibungAHKBvD))","v":0},{"$f":"SUM(O$178:O221)-SUM(O$266:O309)+SUMPRODUCT((Aktivierungsjahr=Costs!$A398)*(AbschreibungAGr=Costs!O$353)*('Fixed assets'!$U$2:$U$1000=Costs!$A398)*(AbschreibungAHKBvD))","v":0},{"$f":"SUM(P$178:P221)-SUM(P$266:P309)+SUMPRODUCT((Aktivierungsjahr=Costs!$A398)*(AbschreibungAGr=Costs!P$353)*('Fixed assets'!$U$2:$U$1000=Costs!$A398)*(AbschreibungAHKBvD))","v":0},{"$f":"SUM(Q$178:Q221)-SUM(Q$266:Q309)+SUMPRODUCT((Aktivierungsjahr=Costs!$A398)*(AbschreibungAGr=Costs!Q$353)*('Fixed assets'!$U$2:$U$1000=Costs!$A398)*(AbschreibungAHKBvD))","v":0},{"$f":"SUM(R$178:R221)-SUM(R$266:R309)+SUMPRODUCT((Aktivierungsjahr=Costs!$A398)*(AbschreibungAGr=Costs!R$353)*('Fixed assets'!$U$2:$U$1000=Costs!$A398)*(AbschreibungAHKBvD))","v":0},{"$f":"SUM(S$178:S221)-SUM(S$266:S309)+SUMPRODUCT((Aktivierungsjahr=Costs!$A398)*(AbschreibungAGr=Costs!S$353)*('Fixed assets'!$U$2:$U$1000=Costs!$A398)*(AbschreibungAHKBvD))","v":0},{"$f":"SUM(T$178:T221)-SUM(T$266:T309)+SUMPRODUCT((Aktivierungsjahr=Costs!$A398)*(AbschreibungAGr=Costs!T$353)*('Fixed assets'!$U$2:$U$1000=Costs!$A398)*(AbschreibungAHKBvD))","v":0},{"$f":"SUM(U$178:U221)-SUM(U$266:U309)+SUMPRODUCT((Aktivierungsjahr=Costs!$A398)*(AbschreibungAGr=Costs!U$353)*('Fixed assets'!$U$2:$U$1000=Costs!$A398)*(AbschreibungAHKBvD))","v":0},{"$f":"SUM(V$178:V221)-SUM(V$266:V309)+SUMPRODUCT((Aktivierungsjahr=Costs!$A398)*(AbschreibungAGr=Costs!V$353)*('Fixed assets'!$U$2:$U$1000=Costs!$A398)*(AbschreibungAHKBvD))","v":0},{"$f":"SUM(W$178:W221)-SUM(W$266:W309)+SUMPRODUCT((Aktivierungsjahr=Costs!$A398)*(AbschreibungAGr=Costs!W$353)*('Fixed assets'!$U$2:$U$1000=Costs!$A398)*(AbschreibungAHKBvD))","v":0},{"$f":"SUM(X$178:X221)-SUM(X$266:X309)+SUMPRODUCT((Aktivierungsjahr=Costs!$A398)*(AbschreibungAGr=Costs!X$353)*('Fixed assets'!$U$2:$U$1000=Costs!$A398)*(AbschreibungAHKBvD))","v":0},{"$f":"SUM(Y$178:Y221)-SUM(Y$266:Y309)+SUMPRODUCT((Aktivierungsjahr=Costs!$A398)*(AbschreibungAGr=Costs!Y$353)*('Fixed assets'!$U$2:$U$1000=Costs!$A398)*(AbschreibungAHKBvD))","v":0},{"$f":"SUM(Z$178:Z221)-SUM(Z$266:Z309)+SUMPRODUCT((Aktivierungsjahr=Costs!$A398)*(AbschreibungAGr=Costs!Z$353)*('Fixed assets'!$U$2:$U$1000=Costs!$A398)*(AbschreibungAHKBvD))","v":0},{"$f":"SUM(AA$178:AA221)-SUM(AA$266:AA309)+SUMPRODUCT((Aktivierungsjahr=Costs!$A398)*(AbschreibungAGr=Costs!AA$353)*('Fixed assets'!$U$2:$U$1000=Costs!$A398)*(AbschreibungAHKBvD))","v":0},{"$f":"SUM(AB$178:AB221)-SUM(AB$266:AB309)+SUMPRODUCT((Aktivierungsjahr=Costs!$A398)*(AbschreibungAGr=Costs!AB$353)*('Fixed assets'!$U$2:$U$1000=Costs!$A398)*(AbschreibungAHKBvD))","v":0},{"$f":"SUM(AC$178:AC221)-SUM(AC$266:AC309)+SUMPRODUCT((Aktivierungsjahr=Costs!$A398)*(AbschreibungAGr=Costs!AC$353)*('Fixed assets'!$U$2:$U$1000=Costs!$A398)*(AbschreibungAHKBvD))","v":0},{"$f":"SUM(AD$178:AD221)-SUM(AD$266:AD309)+SUMPRODUCT((Aktivierungsjahr=Costs!$A398)*(AbschreibungAGr=Costs!AD$353)*('Fixed assets'!$U$2:$U$1000=Costs!$A398)*(AbschreibungAHKBvD))","v":0},{"$f":"SUM(AE$178:AE221)-SUM(AE$266:AE309)+SUMPRODUCT((Aktivierungsjahr=Costs!$A398)*(AbschreibungAGr=Costs!AE$353)*('Fixed assets'!$U$2:$U$1000=Costs!$A398)*(AbschreibungAHKBvD))","v":0},{"$f":"SUM(AF$178:AF221)-SUM(AF$266:AF309)+SUMPRODUCT((Aktivierungsjahr=Costs!$A398)*(AbschreibungAGr=Costs!AF$353)*('Fixed assets'!$U$2:$U$1000=Costs!$A398)*(AbschreibungAHKBvD))","v":0},{"$f":"SUM(AG$178:AG221)-SUM(AG$266:AG309)+SUMPRODUCT((Aktivierungsjahr=Costs!$A398)*(AbschreibungAGr=Costs!AG$353)*('Fixed assets'!$U$2:$U$1000=Costs!$A398)*(AbschreibungAHKBvD))","v":0},{"$f":"SUM(AH$178:AH221)-SUM(AH$266:AH309)+SUMPRODUCT((Aktivierungsjahr=Costs!$A398)*(AbschreibungAGr=Costs!AH$353)*('Fixed assets'!$U$2:$U$1000=Costs!$A398)*(AbschreibungAHKBvD))","v":0},{"$f":"SUM(AI$178:AI221)-SUM(AI$266:AI309)+SUMPRODUCT((Aktivierungsjahr=Costs!$A398)*(AbschreibungAGr=Costs!AI$353)*('Fixed assets'!$U$2:$U$1000=Costs!$A398)*(AbschreibungAHKBvD))","v":0},{"$f":"SUM(AJ$178:AJ221)-SUM(AJ$266:AJ309)+SUMPRODUCT((Aktivierungsjahr=Costs!$A398)*(AbschreibungAGr=Costs!AJ$353)*('Fixed assets'!$U$2:$U$1000=Costs!$A398)*(AbschreibungAHKBvD))","v":244444.44444444391},{"$f":"SUM(AK$178:AK221)-SUM(AK$266:AK309)+SUMPRODUCT((Aktivierungsjahr=Costs!$A398)*(AbschreibungAGr=Costs!AK$353)*('Fixed assets'!$U$2:$U$1000=Costs!$A398)*(AbschreibungAHKBvD))","v":0},{"$f":"SUM(AL$178:AL221)-SUM(AL$266:AL309)+SUMPRODUCT((Aktivierungsjahr=Costs!$A398)*(AbschreibungAGr=Costs!AL$353)*('Fixed assets'!$U$2:$U$1000=Costs!$A398)*(AbschreibungAHKBvD))","v":0},{"$f":"SUM(AM$178:AM221)-SUM(AM$266:AM309)+SUMPRODUCT((Aktivierungsjahr=Costs!$A398)*(AbschreibungAGr=Costs!AM$353)*('Fixed assets'!$U$2:$U$1000=Costs!$A398)*(AbschreibungAHKBvD))","v":0},{"$f":"SUM(AN$178:AN221)-SUM(AN$266:AN309)+SUMPRODUCT((Aktivierungsjahr=Costs!$A398)*(AbschreibungAGr=Costs!AN$353)*('Fixed assets'!$U$2:$U$1000=Costs!$A398)*(AbschreibungAHKBvD))","v":0},{"$f":"SUM(AO$178:AO221)-SUM(AO$266:AO309)+SUMPRODUCT((Aktivierungsjahr=Costs!$A398)*(AbschreibungAGr=Costs!AO$353)*('Fixed assets'!$U$2:$U$1000=Costs!$A398)*(AbschreibungAHKBvD))","v":0},{"$f":"SUM(AP$178:AP221)-SUM(AP$266:AP309)+SUMPRODUCT((Aktivierungsjahr=Costs!$A398)*(AbschreibungAGr=Costs!AP$353)*('Fixed assets'!$U$2:$U$1000=Costs!$A398)*(AbschreibungAHKBvD))","v":0},{"$f":"SUM(AQ$178:AQ221)-SUM(AQ$266:AQ309)+SUMPRODUCT((Aktivierungsjahr=Costs!$A398)*(AbschreibungAGr=Costs!AQ$353)*('Fixed assets'!$U$2:$U$1000=Costs!$A398)*(AbschreibungAHKBvD))","v":0}]
[2060,222222.22222222167,{"$f":"SUM(C$178:C222)-SUM(C$266:C310)+SUMPRODUCT((Aktivierungsjahr=Costs!$A399)*(AbschreibungAGr=Costs!C$353)*('Fixed assets'!$U$2:$U$1000=Costs!$A399)*(AbschreibungAHKBvD))","v":0},{"$f":"SUM(D$178:D222)-SUM(D$266:D310)+SUMPRODUCT((Aktivierungsjahr=Costs!$A399)*(AbschreibungAGr=Costs!D$353)*('Fixed assets'!$U$2:$U$1000=Costs!$A399)*(AbschreibungAHKBvD))","v":0},{"$f":"SUM(E$178:E222)-SUM(E$266:E310)+SUMPRODUCT((Aktivierungsjahr=Costs!$A399)*(AbschreibungAGr=Costs!E$353)*('Fixed assets'!$U$2:$U$1000=Costs!$A399)*(AbschreibungAHKBvD))","v":0},{"$f":"SUM(F$178:F222)-SUM(F$266:F310)+SUMPRODUCT((Aktivierungsjahr=Costs!$A399)*(AbschreibungAGr=Costs!F$353)*('Fixed assets'!$U$2:$U$1000=Costs!$A399)*(AbschreibungAHKBvD))","v":0},{"$f":"SUM(G$178:G222)-SUM(G$266:G310)+SUMPRODUCT((Aktivierungsjahr=Costs!$A399)*(AbschreibungAGr=Costs!G$353)*('Fixed assets'!$U$2:$U$1000=Costs!$A399)*(AbschreibungAHKBvD))","v":0},{"$f":"SUM(H$178:H222)-SUM(H$266:H310)+SUMPRODUCT((Aktivierungsjahr=Costs!$A399)*(AbschreibungAGr=Costs!H$353)*('Fixed assets'!$U$2:$U$1000=Costs!$A399)*(AbschreibungAHKBvD))","v":0},{"$f":"SUM(I$178:I222)-SUM(I$266:I310)+SUMPRODUCT((Aktivierungsjahr=Costs!$A399)*(AbschreibungAGr=Costs!I$353)*('Fixed assets'!$U$2:$U$1000=Costs!$A399)*(AbschreibungAHKBvD))","v":0},{"$f":"SUM(J$178:J222)-SUM(J$266:J310)+SUMPRODUCT((Aktivierungsjahr=Costs!$A399)*(AbschreibungAGr=Costs!J$353)*('Fixed assets'!$U$2:$U$1000=Costs!$A399)*(AbschreibungAHKBvD))","v":0},{"$f":"SUM(K$178:K222)-SUM(K$266:K310)+SUMPRODUCT((Aktivierungsjahr=Costs!$A399)*(AbschreibungAGr=Costs!K$353)*('Fixed assets'!$U$2:$U$1000=Costs!$A399)*(AbschreibungAHKBvD))","v":0},{"$f":"SUM(L$178:L222)-SUM(L$266:L310)+SUMPRODUCT((Aktivierungsjahr=Costs!$A399)*(AbschreibungAGr=Costs!L$353)*('Fixed assets'!$U$2:$U$1000=Costs!$A399)*(AbschreibungAHKBvD))","v":0},{"$f":"SUM(M$178:M222)-SUM(M$266:M310)+SUMPRODUCT((Aktivierungsjahr=Costs!$A399)*(AbschreibungAGr=Costs!M$353)*('Fixed assets'!$U$2:$U$1000=Costs!$A399)*(AbschreibungAHKBvD))","v":0},{"$f":"SUM(N$178:N222)-SUM(N$266:N310)+SUMPRODUCT((Aktivierungsjahr=Costs!$A399)*(AbschreibungAGr=Costs!N$353)*('Fixed assets'!$U$2:$U$1000=Costs!$A399)*(AbschreibungAHKBvD))","v":0},{"$f":"SUM(O$178:O222)-SUM(O$266:O310)+SUMPRODUCT((Aktivierungsjahr=Costs!$A399)*(AbschreibungAGr=Costs!O$353)*('Fixed assets'!$U$2:$U$1000=Costs!$A399)*(AbschreibungAHKBvD))","v":0},{"$f":"SUM(P$178:P222)-SUM(P$266:P310)+SUMPRODUCT((Aktivierungsjahr=Costs!$A399)*(AbschreibungAGr=Costs!P$353)*('Fixed assets'!$U$2:$U$1000=Costs!$A399)*(AbschreibungAHKBvD))","v":0},{"$f":"SUM(Q$178:Q222)-SUM(Q$266:Q310)+SUMPRODUCT((Aktivierungsjahr=Costs!$A399)*(AbschreibungAGr=Costs!Q$353)*('Fixed assets'!$U$2:$U$1000=Costs!$A399)*(AbschreibungAHKBvD))","v":0},{"$f":"SUM(R$178:R222)-SUM(R$266:R310)+SUMPRODUCT((Aktivierungsjahr=Costs!$A399)*(AbschreibungAGr=Costs!R$353)*('Fixed assets'!$U$2:$U$1000=Costs!$A399)*(AbschreibungAHKBvD))","v":0},{"$f":"SUM(S$178:S222)-SUM(S$266:S310)+SUMPRODUCT((Aktivierungsjahr=Costs!$A399)*(AbschreibungAGr=Costs!S$353)*('Fixed assets'!$U$2:$U$1000=Costs!$A399)*(AbschreibungAHKBvD))","v":0},{"$f":"SUM(T$178:T222)-SUM(T$266:T310)+SUMPRODUCT((Aktivierungsjahr=Costs!$A399)*(AbschreibungAGr=Costs!T$353)*('Fixed assets'!$U$2:$U$1000=Costs!$A399)*(AbschreibungAHKBvD))","v":0},{"$f":"SUM(U$178:U222)-SUM(U$266:U310)+SUMPRODUCT((Aktivierungsjahr=Costs!$A399)*(AbschreibungAGr=Costs!U$353)*('Fixed assets'!$U$2:$U$1000=Costs!$A399)*(AbschreibungAHKBvD))","v":0},{"$f":"SUM(V$178:V222)-SUM(V$266:V310)+SUMPRODUCT((Aktivierungsjahr=Costs!$A399)*(AbschreibungAGr=Costs!V$353)*('Fixed assets'!$U$2:$U$1000=Costs!$A399)*(AbschreibungAHKBvD))","v":0},{"$f":"SUM(W$178:W222)-SUM(W$266:W310)+SUMPRODUCT((Aktivierungsjahr=Costs!$A399)*(AbschreibungAGr=Costs!W$353)*('Fixed assets'!$U$2:$U$1000=Costs!$A399)*(AbschreibungAHKBvD))","v":0},{"$f":"SUM(X$178:X222)-SUM(X$266:X310)+SUMPRODUCT((Aktivierungsjahr=Costs!$A399)*(AbschreibungAGr=Costs!X$353)*('Fixed assets'!$U$2:$U$1000=Costs!$A399)*(AbschreibungAHKBvD))","v":0},{"$f":"SUM(Y$178:Y222)-SUM(Y$266:Y310)+SUMPRODUCT((Aktivierungsjahr=Costs!$A399)*(AbschreibungAGr=Costs!Y$353)*('Fixed assets'!$U$2:$U$1000=Costs!$A399)*(AbschreibungAHKBvD))","v":0},{"$f":"SUM(Z$178:Z222)-SUM(Z$266:Z310)+SUMPRODUCT((Aktivierungsjahr=Costs!$A399)*(AbschreibungAGr=Costs!Z$353)*('Fixed assets'!$U$2:$U$1000=Costs!$A399)*(AbschreibungAHKBvD))","v":0},{"$f":"SUM(AA$178:AA222)-SUM(AA$266:AA310)+SUMPRODUCT((Aktivierungsjahr=Costs!$A399)*(AbschreibungAGr=Costs!AA$353)*('Fixed assets'!$U$2:$U$1000=Costs!$A399)*(AbschreibungAHKBvD))","v":0},{"$f":"SUM(AB$178:AB222)-SUM(AB$266:AB310)+SUMPRODUCT((Aktivierungsjahr=Costs!$A399)*(AbschreibungAGr=Costs!AB$353)*('Fixed assets'!$U$2:$U$1000=Costs!$A399)*(AbschreibungAHKBvD))","v":0},{"$f":"SUM(AC$178:AC222)-SUM(AC$266:AC310)+SUMPRODUCT((Aktivierungsjahr=Costs!$A399)*(AbschreibungAGr=Costs!AC$353)*('Fixed assets'!$U$2:$U$1000=Costs!$A399)*(AbschreibungAHKBvD))","v":0},{"$f":"SUM(AD$178:AD222)-SUM(AD$266:AD310)+SUMPRODUCT((Aktivierungsjahr=Costs!$A399)*(AbschreibungAGr=Costs!AD$353)*('Fixed assets'!$U$2:$U$1000=Costs!$A399)*(AbschreibungAHKBvD))","v":0},{"$f":"SUM(AE$178:AE222)-SUM(AE$266:AE310)+SUMPRODUCT((Aktivierungsjahr=Costs!$A399)*(AbschreibungAGr=Costs!AE$353)*('Fixed assets'!$U$2:$U$1000=Costs!$A399)*(AbschreibungAHKBvD))","v":0},{"$f":"SUM(AF$178:AF222)-SUM(AF$266:AF310)+SUMPRODUCT((Aktivierungsjahr=Costs!$A399)*(AbschreibungAGr=Costs!AF$353)*('Fixed assets'!$U$2:$U$1000=Costs!$A399)*(AbschreibungAHKBvD))","v":0},{"$f":"SUM(AG$178:AG222)-SUM(AG$266:AG310)+SUMPRODUCT((Aktivierungsjahr=Costs!$A399)*(AbschreibungAGr=Costs!AG$353)*('Fixed assets'!$U$2:$U$1000=Costs!$A399)*(AbschreibungAHKBvD))","v":0},{"$f":"SUM(AH$178:AH222)-SUM(AH$266:AH310)+SUMPRODUCT((Aktivierungsjahr=Costs!$A399)*(AbschreibungAGr=Costs!AH$353)*('Fixed assets'!$U$2:$U$1000=Costs!$A399)*(AbschreibungAHKBvD))","v":0},{"$f":"SUM(AI$178:AI222)-SUM(AI$266:AI310)+SUMPRODUCT((Aktivierungsjahr=Costs!$A399)*(AbschreibungAGr=Costs!AI$353)*('Fixed assets'!$U$2:$U$1000=Costs!$A399)*(AbschreibungAHKBvD))","v":0},{"$f":"SUM(AJ$178:AJ222)-SUM(AJ$266:AJ310)+SUMPRODUCT((Aktivierungsjahr=Costs!$A399)*(AbschreibungAGr=Costs!AJ$353)*('Fixed assets'!$U$2:$U$1000=Costs!$A399)*(AbschreibungAHKBvD))","v":222222.22222222167},{"$f":"SUM(AK$178:AK222)-SUM(AK$266:AK310)+SUMPRODUCT((Aktivierungsjahr=Costs!$A399)*(AbschreibungAGr=Costs!AK$353)*('Fixed assets'!$U$2:$U$1000=Costs!$A399)*(AbschreibungAHKBvD))","v":0},{"$f":"SUM(AL$178:AL222)-SUM(AL$266:AL310)+SUMPRODUCT((Aktivierungsjahr=Costs!$A399)*(AbschreibungAGr=Costs!AL$353)*('Fixed assets'!$U$2:$U$1000=Costs!$A399)*(AbschreibungAHKBvD))","v":0},{"$f":"SUM(AM$178:AM222)-SUM(AM$266:AM310)+SUMPRODUCT((Aktivierungsjahr=Costs!$A399)*(AbschreibungAGr=Costs!AM$353)*('Fixed assets'!$U$2:$U$1000=Costs!$A399)*(AbschreibungAHKBvD))","v":0},{"$f":"SUM(AN$178:AN222)-SUM(AN$266:AN310)+SUMPRODUCT((Aktivierungsjahr=Costs!$A399)*(AbschreibungAGr=Costs!AN$353)*('Fixed assets'!$U$2:$U$1000=Costs!$A399)*(AbschreibungAHKBvD))","v":0},{"$f":"SUM(AO$178:AO222)-SUM(AO$266:AO310)+SUMPRODUCT((Aktivierungsjahr=Costs!$A399)*(AbschreibungAGr=Costs!AO$353)*('Fixed assets'!$U$2:$U$1000=Costs!$A399)*(AbschreibungAHKBvD))","v":0},{"$f":"SUM(AP$178:AP222)-SUM(AP$266:AP310)+SUMPRODUCT((Aktivierungsjahr=Costs!$A399)*(AbschreibungAGr=Costs!AP$353)*('Fixed assets'!$U$2:$U$1000=Costs!$A399)*(AbschreibungAHKBvD))","v":0},{"$f":"SUM(AQ$178:AQ222)-SUM(AQ$266:AQ310)+SUMPRODUCT((Aktivierungsjahr=Costs!$A399)*(AbschreibungAGr=Costs!AQ$353)*('Fixed assets'!$U$2:$U$1000=Costs!$A399)*(AbschreibungAHKBvD))","v":0}]
[2061,199999.99999999942,{"$f":"SUM(C$178:C223)-SUM(C$266:C311)+SUMPRODUCT((Aktivierungsjahr=Costs!$A400)*(AbschreibungAGr=Costs!C$353)*('Fixed assets'!$U$2:$U$1000=Costs!$A400)*(AbschreibungAHKBvD))","v":0},{"$f":"SUM(D$178:D223)-SUM(D$266:D311)+SUMPRODUCT((Aktivierungsjahr=Costs!$A400)*(AbschreibungAGr=Costs!D$353)*('Fixed assets'!$U$2:$U$1000=Costs!$A400)*(AbschreibungAHKBvD))","v":0},{"$f":"SUM(E$178:E223)-SUM(E$266:E311)+SUMPRODUCT((Aktivierungsjahr=Costs!$A400)*(AbschreibungAGr=Costs!E$353)*('Fixed assets'!$U$2:$U$1000=Costs!$A400)*(AbschreibungAHKBvD))","v":0},{"$f":"SUM(F$178:F223)-SUM(F$266:F311)+SUMPRODUCT((Aktivierungsjahr=Costs!$A400)*(AbschreibungAGr=Costs!F$353)*('Fixed assets'!$U$2:$U$1000=Costs!$A400)*(AbschreibungAHKBvD))","v":0},{"$f":"SUM(G$178:G223)-SUM(G$266:G311)+SUMPRODUCT((Aktivierungsjahr=Costs!$A400)*(AbschreibungAGr=Costs!G$353)*('Fixed assets'!$U$2:$U$1000=Costs!$A400)*(AbschreibungAHKBvD))","v":0},{"$f":"SUM(H$178:H223)-SUM(H$266:H311)+SUMPRODUCT((Aktivierungsjahr=Costs!$A400)*(AbschreibungAGr=Costs!H$353)*('Fixed assets'!$U$2:$U$1000=Costs!$A400)*(AbschreibungAHKBvD))","v":0},{"$f":"SUM(I$178:I223)-SUM(I$266:I311)+SUMPRODUCT((Aktivierungsjahr=Costs!$A400)*(AbschreibungAGr=Costs!I$353)*('Fixed assets'!$U$2:$U$1000=Costs!$A400)*(AbschreibungAHKBvD))","v":0},{"$f":"SUM(J$178:J223)-SUM(J$266:J311)+SUMPRODUCT((Aktivierungsjahr=Costs!$A400)*(AbschreibungAGr=Costs!J$353)*('Fixed assets'!$U$2:$U$1000=Costs!$A400)*(AbschreibungAHKBvD))","v":0},{"$f":"SUM(K$178:K223)-SUM(K$266:K311)+SUMPRODUCT((Aktivierungsjahr=Costs!$A400)*(AbschreibungAGr=Costs!K$353)*('Fixed assets'!$U$2:$U$1000=Costs!$A400)*(AbschreibungAHKBvD))","v":0},{"$f":"SUM(L$178:L223)-SUM(L$266:L311)+SUMPRODUCT((Aktivierungsjahr=Costs!$A400)*(AbschreibungAGr=Costs!L$353)*('Fixed assets'!$U$2:$U$1000=Costs!$A400)*(AbschreibungAHKBvD))","v":0},{"$f":"SUM(M$178:M223)-SUM(M$266:M311)+SUMPRODUCT((Aktivierungsjahr=Costs!$A400)*(AbschreibungAGr=Costs!M$353)*('Fixed assets'!$U$2:$U$1000=Costs!$A400)*(AbschreibungAHKBvD))","v":0},{"$f":"SUM(N$178:N223)-SUM(N$266:N311)+SUMPRODUCT((Aktivierungsjahr=Costs!$A400)*(AbschreibungAGr=Costs!N$353)*('Fixed assets'!$U$2:$U$1000=Costs!$A400)*(AbschreibungAHKBvD))","v":0},{"$f":"SUM(O$178:O223)-SUM(O$266:O311)+SUMPRODUCT((Aktivierungsjahr=Costs!$A400)*(AbschreibungAGr=Costs!O$353)*('Fixed assets'!$U$2:$U$1000=Costs!$A400)*(AbschreibungAHKBvD))","v":0},{"$f":"SUM(P$178:P223)-SUM(P$266:P311)+SUMPRODUCT((Aktivierungsjahr=Costs!$A400)*(AbschreibungAGr=Costs!P$353)*('Fixed assets'!$U$2:$U$1000=Costs!$A400)*(AbschreibungAHKBvD))","v":0},{"$f":"SUM(Q$178:Q223)-SUM(Q$266:Q311)+SUMPRODUCT((Aktivierungsjahr=Costs!$A400)*(AbschreibungAGr=Costs!Q$353)*('Fixed assets'!$U$2:$U$1000=Costs!$A400)*(AbschreibungAHKBvD))","v":0},{"$f":"SUM(R$178:R223)-SUM(R$266:R311)+SUMPRODUCT((Aktivierungsjahr=Costs!$A400)*(AbschreibungAGr=Costs!R$353)*('Fixed assets'!$U$2:$U$1000=Costs!$A400)*(AbschreibungAHKBvD))","v":0},{"$f":"SUM(S$178:S223)-SUM(S$266:S311)+SUMPRODUCT((Aktivierungsjahr=Costs!$A400)*(AbschreibungAGr=Costs!S$353)*('Fixed assets'!$U$2:$U$1000=Costs!$A400)*(AbschreibungAHKBvD))","v":0},{"$f":"SUM(T$178:T223)-SUM(T$266:T311)+SUMPRODUCT((Aktivierungsjahr=Costs!$A400)*(AbschreibungAGr=Costs!T$353)*('Fixed assets'!$U$2:$U$1000=Costs!$A400)*(AbschreibungAHKBvD))","v":0},{"$f":"SUM(U$178:U223)-SUM(U$266:U311)+SUMPRODUCT((Aktivierungsjahr=Costs!$A400)*(AbschreibungAGr=Costs!U$353)*('Fixed assets'!$U$2:$U$1000=Costs!$A400)*(AbschreibungAHKBvD))","v":0},{"$f":"SUM(V$178:V223)-SUM(V$266:V311)+SUMPRODUCT((Aktivierungsjahr=Costs!$A400)*(AbschreibungAGr=Costs!V$353)*('Fixed assets'!$U$2:$U$1000=Costs!$A400)*(AbschreibungAHKBvD))","v":0},{"$f":"SUM(W$178:W223)-SUM(W$266:W311)+SUMPRODUCT((Aktivierungsjahr=Costs!$A400)*(AbschreibungAGr=Costs!W$353)*('Fixed assets'!$U$2:$U$1000=Costs!$A400)*(AbschreibungAHKBvD))","v":0},{"$f":"SUM(X$178:X223)-SUM(X$266:X311)+SUMPRODUCT((Aktivierungsjahr=Costs!$A400)*(AbschreibungAGr=Costs!X$353)*('Fixed assets'!$U$2:$U$1000=Costs!$A400)*(AbschreibungAHKBvD))","v":0},{"$f":"SUM(Y$178:Y223)-SUM(Y$266:Y311)+SUMPRODUCT((Aktivierungsjahr=Costs!$A400)*(AbschreibungAGr=Costs!Y$353)*('Fixed assets'!$U$2:$U$1000=Costs!$A400)*(AbschreibungAHKBvD))","v":0},{"$f":"SUM(Z$178:Z223)-SUM(Z$266:Z311)+SUMPRODUCT((Aktivierungsjahr=Costs!$A400)*(AbschreibungAGr=Costs!Z$353)*('Fixed assets'!$U$2:$U$1000=Costs!$A400)*(AbschreibungAHKBvD))","v":0},{"$f":"SUM(AA$178:AA223)-SUM(AA$266:AA311)+SUMPRODUCT((Aktivierungsjahr=Costs!$A400)*(AbschreibungAGr=Costs!AA$353)*('Fixed assets'!$U$2:$U$1000=Costs!$A400)*(AbschreibungAHKBvD))","v":0},{"$f":"SUM(AB$178:AB223)-SUM(AB$266:AB311)+SUMPRODUCT((Aktivierungsjahr=Costs!$A400)*(AbschreibungAGr=Costs!AB$353)*('Fixed assets'!$U$2:$U$1000=Costs!$A400)*(AbschreibungAHKBvD))","v":0},{"$f":"SUM(AC$178:AC223)-SUM(AC$266:AC311)+SUMPRODUCT((Aktivierungsjahr=Costs!$A400)*(AbschreibungAGr=Costs!AC$353)*('Fixed assets'!$U$2:$U$1000=Costs!$A400)*(AbschreibungAHKBvD))","v":0},{"$f":"SUM(AD$178:AD223)-SUM(AD$266:AD311)+SUMPRODUCT((Aktivierungsjahr=Costs!$A400)*(AbschreibungAGr=Costs!AD$353)*('Fixed assets'!$U$2:$U$1000=Costs!$A400)*(AbschreibungAHKBvD))","v":0},{"$f":"SUM(AE$178:AE223)-SUM(AE$266:AE311)+SUMPRODUCT((Aktivierungsjahr=Costs!$A400)*(AbschreibungAGr=Costs!AE$353)*('Fixed assets'!$U$2:$U$1000=Costs!$A400)*(AbschreibungAHKBvD))","v":0},{"$f":"SUM(AF$178:AF223)-SUM(AF$266:AF311)+SUMPRODUCT((Aktivierungsjahr=Costs!$A400)*(AbschreibungAGr=Costs!AF$353)*('Fixed assets'!$U$2:$U$1000=Costs!$A400)*(AbschreibungAHKBvD))","v":0},{"$f":"SUM(AG$178:AG223)-SUM(AG$266:AG311)+SUMPRODUCT((Aktivierungsjahr=Costs!$A400)*(AbschreibungAGr=Costs!AG$353)*('Fixed assets'!$U$2:$U$1000=Costs!$A400)*(AbschreibungAHKBvD))","v":0},{"$f":"SUM(AH$178:AH223)-SUM(AH$266:AH311)+SUMPRODUCT((Aktivierungsjahr=Costs!$A400)*(AbschreibungAGr=Costs!AH$353)*('Fixed assets'!$U$2:$U$1000=Costs!$A400)*(AbschreibungAHKBvD))","v":0},{"$f":"SUM(AI$178:AI223)-SUM(AI$266:AI311)+SUMPRODUCT((Aktivierungsjahr=Costs!$A400)*(AbschreibungAGr=Costs!AI$353)*('Fixed assets'!$U$2:$U$1000=Costs!$A400)*(AbschreibungAHKBvD))","v":0},{"$f":"SUM(AJ$178:AJ223)-SUM(AJ$266:AJ311)+SUMPRODUCT((Aktivierungsjahr=Costs!$A400)*(AbschreibungAGr=Costs!AJ$353)*('Fixed assets'!$U$2:$U$1000=Costs!$A400)*(AbschreibungAHKBvD))","v":199999.99999999942},{"$f":"SUM(AK$178:AK223)-SUM(AK$266:AK311)+SUMPRODUCT((Aktivierungsjahr=Costs!$A400)*(AbschreibungAGr=Costs!AK$353)*('Fixed assets'!$U$2:$U$1000=Costs!$A400)*(AbschreibungAHKBvD))","v":0},{"$f":"SUM(AL$178:AL223)-SUM(AL$266:AL311)+SUMPRODUCT((Aktivierungsjahr=Costs!$A400)*(AbschreibungAGr=Costs!AL$353)*('Fixed assets'!$U$2:$U$1000=Costs!$A400)*(AbschreibungAHKBvD))","v":0},{"$f":"SUM(AM$178:AM223)-SUM(AM$266:AM311)+SUMPRODUCT((Aktivierungsjahr=Costs!$A400)*(AbschreibungAGr=Costs!AM$353)*('Fixed assets'!$U$2:$U$1000=Costs!$A400)*(AbschreibungAHKBvD))","v":0},{"$f":"SUM(AN$178:AN223)-SUM(AN$266:AN311)+SUMPRODUCT((Aktivierungsjahr=Costs!$A400)*(AbschreibungAGr=Costs!AN$353)*('Fixed assets'!$U$2:$U$1000=Costs!$A400)*(AbschreibungAHKBvD))","v":0},{"$f":"SUM(AO$178:AO223)-SUM(AO$266:AO311)+SUMPRODUCT((Aktivierungsjahr=Costs!$A400)*(AbschreibungAGr=Costs!AO$353)*('Fixed assets'!$U$2:$U$1000=Costs!$A400)*(AbschreibungAHKBvD))","v":0},{"$f":"SUM(AP$178:AP223)-SUM(AP$266:AP311)+SUMPRODUCT((Aktivierungsjahr=Costs!$A400)*(AbschreibungAGr=Costs!AP$353)*('Fixed assets'!$U$2:$U$1000=Costs!$A400)*(AbschreibungAHKBvD))","v":0},{"$f":"SUM(AQ$178:AQ223)-SUM(AQ$266:AQ311)+SUMPRODUCT((Aktivierungsjahr=Costs!$A400)*(AbschreibungAGr=Costs!AQ$353)*('Fixed assets'!$U$2:$U$1000=Costs!$A400)*(AbschreibungAHKBvD))","v":0}]
[2062,177777.77777777717,{"$f":"SUM(C$178:C224)-SUM(C$266:C312)+SUMPRODUCT((Aktivierungsjahr=Costs!$A401)*(AbschreibungAGr=Costs!C$353)*('Fixed assets'!$U$2:$U$1000=Costs!$A401)*(AbschreibungAHKBvD))","v":0},{"$f":"SUM(D$178:D224)-SUM(D$266:D312)+SUMPRODUCT((Aktivierungsjahr=Costs!$A401)*(AbschreibungAGr=Costs!D$353)*('Fixed assets'!$U$2:$U$1000=Costs!$A401)*(AbschreibungAHKBvD))","v":0},{"$f":"SUM(E$178:E224)-SUM(E$266:E312)+SUMPRODUCT((Aktivierungsjahr=Costs!$A401)*(AbschreibungAGr=Costs!E$353)*('Fixed assets'!$U$2:$U$1000=Costs!$A401)*(AbschreibungAHKBvD))","v":0},{"$f":"SUM(F$178:F224)-SUM(F$266:F312)+SUMPRODUCT((Aktivierungsjahr=Costs!$A401)*(AbschreibungAGr=Costs!F$353)*('Fixed assets'!$U$2:$U$1000=Costs!$A401)*(AbschreibungAHKBvD))","v":0},{"$f":"SUM(G$178:G224)-SUM(G$266:G312)+SUMPRODUCT((Aktivierungsjahr=Costs!$A401)*(AbschreibungAGr=Costs!G$353)*('Fixed assets'!$U$2:$U$1000=Costs!$A401)*(AbschreibungAHKBvD))","v":0},{"$f":"SUM(H$178:H224)-SUM(H$266:H312)+SUMPRODUCT((Aktivierungsjahr=Costs!$A401)*(AbschreibungAGr=Costs!H$353)*('Fixed assets'!$U$2:$U$1000=Costs!$A401)*(AbschreibungAHKBvD))","v":0},{"$f":"SUM(I$178:I224)-SUM(I$266:I312)+SUMPRODUCT((Aktivierungsjahr=Costs!$A401)*(AbschreibungAGr=Costs!I$353)*('Fixed assets'!$U$2:$U$1000=Costs!$A401)*(AbschreibungAHKBvD))","v":0},{"$f":"SUM(J$178:J224)-SUM(J$266:J312)+SUMPRODUCT((Aktivierungsjahr=Costs!$A401)*(AbschreibungAGr=Costs!J$353)*('Fixed assets'!$U$2:$U$1000=Costs!$A401)*(AbschreibungAHKBvD))","v":0},{"$f":"SUM(K$178:K224)-SUM(K$266:K312)+SUMPRODUCT((Aktivierungsjahr=Costs!$A401)*(AbschreibungAGr=Costs!K$353)*('Fixed assets'!$U$2:$U$1000=Costs!$A401)*(AbschreibungAHKBvD))","v":0},{"$f":"SUM(L$178:L224)-SUM(L$266:L312)+SUMPRODUCT((Aktivierungsjahr=Costs!$A401)*(AbschreibungAGr=Costs!L$353)*('Fixed assets'!$U$2:$U$1000=Costs!$A401)*(AbschreibungAHKBvD))","v":0},{"$f":"SUM(M$178:M224)-SUM(M$266:M312)+SUMPRODUCT((Aktivierungsjahr=Costs!$A401)*(AbschreibungAGr=Costs!M$353)*('Fixed assets'!$U$2:$U$1000=Costs!$A401)*(AbschreibungAHKBvD))","v":0},{"$f":"SUM(N$178:N224)-SUM(N$266:N312)+SUMPRODUCT((Aktivierungsjahr=Costs!$A401)*(AbschreibungAGr=Costs!N$353)*('Fixed assets'!$U$2:$U$1000=Costs!$A401)*(AbschreibungAHKBvD))","v":0},{"$f":"SUM(O$178:O224)-SUM(O$266:O312)+SUMPRODUCT((Aktivierungsjahr=Costs!$A401)*(AbschreibungAGr=Costs!O$353)*('Fixed assets'!$U$2:$U$1000=Costs!$A401)*(AbschreibungAHKBvD))","v":0},{"$f":"SUM(P$178:P224)-SUM(P$266:P312)+SUMPRODUCT((Aktivierungsjahr=Costs!$A401)*(AbschreibungAGr=Costs!P$353)*('Fixed assets'!$U$2:$U$1000=Costs!$A401)*(AbschreibungAHKBvD))","v":0},{"$f":"SUM(Q$178:Q224)-SUM(Q$266:Q312)+SUMPRODUCT((Aktivierungsjahr=Costs!$A401)*(AbschreibungAGr=Costs!Q$353)*('Fixed assets'!$U$2:$U$1000=Costs!$A401)*(AbschreibungAHKBvD))","v":0},{"$f":"SUM(R$178:R224)-SUM(R$266:R312)+SUMPRODUCT((Aktivierungsjahr=Costs!$A401)*(AbschreibungAGr=Costs!R$353)*('Fixed assets'!$U$2:$U$1000=Costs!$A401)*(AbschreibungAHKBvD))","v":0},{"$f":"SUM(S$178:S224)-SUM(S$266:S312)+SUMPRODUCT((Aktivierungsjahr=Costs!$A401)*(AbschreibungAGr=Costs!S$353)*('Fixed assets'!$U$2:$U$1000=Costs!$A401)*(AbschreibungAHKBvD))","v":0},{"$f":"SUM(T$178:T224)-SUM(T$266:T312)+SUMPRODUCT((Aktivierungsjahr=Costs!$A401)*(AbschreibungAGr=Costs!T$353)*('Fixed assets'!$U$2:$U$1000=Costs!$A401)*(AbschreibungAHKBvD))","v":0},{"$f":"SUM(U$178:U224)-SUM(U$266:U312)+SUMPRODUCT((Aktivierungsjahr=Costs!$A401)*(AbschreibungAGr=Costs!U$353)*('Fixed assets'!$U$2:$U$1000=Costs!$A401)*(AbschreibungAHKBvD))","v":0},{"$f":"SUM(V$178:V224)-SUM(V$266:V312)+SUMPRODUCT((Aktivierungsjahr=Costs!$A401)*(AbschreibungAGr=Costs!V$353)*('Fixed assets'!$U$2:$U$1000=Costs!$A401)*(AbschreibungAHKBvD))","v":0},{"$f":"SUM(W$178:W224)-SUM(W$266:W312)+SUMPRODUCT((Aktivierungsjahr=Costs!$A401)*(AbschreibungAGr=Costs!W$353)*('Fixed assets'!$U$2:$U$1000=Costs!$A401)*(AbschreibungAHKBvD))","v":0},{"$f":"SUM(X$178:X224)-SUM(X$266:X312)+SUMPRODUCT((Aktivierungsjahr=Costs!$A401)*(AbschreibungAGr=Costs!X$353)*('Fixed assets'!$U$2:$U$1000=Costs!$A401)*(AbschreibungAHKBvD))","v":0},{"$f":"SUM(Y$178:Y224)-SUM(Y$266:Y312)+SUMPRODUCT((Aktivierungsjahr=Costs!$A401)*(AbschreibungAGr=Costs!Y$353)*('Fixed assets'!$U$2:$U$1000=Costs!$A401)*(AbschreibungAHKBvD))","v":0},{"$f":"SUM(Z$178:Z224)-SUM(Z$266:Z312)+SUMPRODUCT((Aktivierungsjahr=Costs!$A401)*(AbschreibungAGr=Costs!Z$353)*('Fixed assets'!$U$2:$U$1000=Costs!$A401)*(AbschreibungAHKBvD))","v":0},{"$f":"SUM(AA$178:AA224)-SUM(AA$266:AA312)+SUMPRODUCT((Aktivierungsjahr=Costs!$A401)*(AbschreibungAGr=Costs!AA$353)*('Fixed assets'!$U$2:$U$1000=Costs!$A401)*(AbschreibungAHKBvD))","v":0},{"$f":"SUM(AB$178:AB224)-SUM(AB$266:AB312)+SUMPRODUCT((Aktivierungsjahr=Costs!$A401)*(AbschreibungAGr=Costs!AB$353)*('Fixed assets'!$U$2:$U$1000=Costs!$A401)*(AbschreibungAHKBvD))","v":0},{"$f":"SUM(AC$178:AC224)-SUM(AC$266:AC312)+SUMPRODUCT((Aktivierungsjahr=Costs!$A401)*(AbschreibungAGr=Costs!AC$353)*('Fixed assets'!$U$2:$U$1000=Costs!$A401)*(AbschreibungAHKBvD))","v":0},{"$f":"SUM(AD$178:AD224)-SUM(AD$266:AD312)+SUMPRODUCT((Aktivierungsjahr=Costs!$A401)*(AbschreibungAGr=Costs!AD$353)*('Fixed assets'!$U$2:$U$1000=Costs!$A401)*(AbschreibungAHKBvD))","v":0},{"$f":"SUM(AE$178:AE224)-SUM(AE$266:AE312)+SUMPRODUCT((Aktivierungsjahr=Costs!$A401)*(AbschreibungAGr=Costs!AE$353)*('Fixed assets'!$U$2:$U$1000=Costs!$A401)*(AbschreibungAHKBvD))","v":0},{"$f":"SUM(AF$178:AF224)-SUM(AF$266:AF312)+SUMPRODUCT((Aktivierungsjahr=Costs!$A401)*(AbschreibungAGr=Costs!AF$353)*('Fixed assets'!$U$2:$U$1000=Costs!$A401)*(AbschreibungAHKBvD))","v":0},{"$f":"SUM(AG$178:AG224)-SUM(AG$266:AG312)+SUMPRODUCT((Aktivierungsjahr=Costs!$A401)*(AbschreibungAGr=Costs!AG$353)*('Fixed assets'!$U$2:$U$1000=Costs!$A401)*(AbschreibungAHKBvD))","v":0},{"$f":"SUM(AH$178:AH224)-SUM(AH$266:AH312)+SUMPRODUCT((Aktivierungsjahr=Costs!$A401)*(AbschreibungAGr=Costs!AH$353)*('Fixed assets'!$U$2:$U$1000=Costs!$A401)*(AbschreibungAHKBvD))","v":0},{"$f":"SUM(AI$178:AI224)-SUM(AI$266:AI312)+SUMPRODUCT((Aktivierungsjahr=Costs!$A401)*(AbschreibungAGr=Costs!AI$353)*('Fixed assets'!$U$2:$U$1000=Costs!$A401)*(AbschreibungAHKBvD))","v":0},{"$f":"SUM(AJ$178:AJ224)-SUM(AJ$266:AJ312)+SUMPRODUCT((Aktivierungsjahr=Costs!$A401)*(AbschreibungAGr=Costs!AJ$353)*('Fixed assets'!$U$2:$U$1000=Costs!$A401)*(AbschreibungAHKBvD))","v":177777.77777777717},{"$f":"SUM(AK$178:AK224)-SUM(AK$266:AK312)+SUMPRODUCT((Aktivierungsjahr=Costs!$A401)*(AbschreibungAGr=Costs!AK$353)*('Fixed assets'!$U$2:$U$1000=Costs!$A401)*(AbschreibungAHKBvD))","v":0},{"$f":"SUM(AL$178:AL224)-SUM(AL$266:AL312)+SUMPRODUCT((Aktivierungsjahr=Costs!$A401)*(AbschreibungAGr=Costs!AL$353)*('Fixed assets'!$U$2:$U$1000=Costs!$A401)*(AbschreibungAHKBvD))","v":0},{"$f":"SUM(AM$178:AM224)-SUM(AM$266:AM312)+SUMPRODUCT((Aktivierungsjahr=Costs!$A401)*(AbschreibungAGr=Costs!AM$353)*('Fixed assets'!$U$2:$U$1000=Costs!$A401)*(AbschreibungAHKBvD))","v":0},{"$f":"SUM(AN$178:AN224)-SUM(AN$266:AN312)+SUMPRODUCT((Aktivierungsjahr=Costs!$A401)*(AbschreibungAGr=Costs!AN$353)*('Fixed assets'!$U$2:$U$1000=Costs!$A401)*(AbschreibungAHKBvD))","v":0},{"$f":"SUM(AO$178:AO224)-SUM(AO$266:AO312)+SUMPRODUCT((Aktivierungsjahr=Costs!$A401)*(AbschreibungAGr=Costs!AO$353)*('Fixed assets'!$U$2:$U$1000=Costs!$A401)*(AbschreibungAHKBvD))","v":0},{"$f":"SUM(AP$178:AP224)-SUM(AP$266:AP312)+SUMPRODUCT((Aktivierungsjahr=Costs!$A401)*(AbschreibungAGr=Costs!AP$353)*('Fixed assets'!$U$2:$U$1000=Costs!$A401)*(AbschreibungAHKBvD))","v":0},{"$f":"SUM(AQ$178:AQ224)-SUM(AQ$266:AQ312)+SUMPRODUCT((Aktivierungsjahr=Costs!$A401)*(AbschreibungAGr=Costs!AQ$353)*('Fixed assets'!$U$2:$U$1000=Costs!$A401)*(AbschreibungAHKBvD))","v":0}]
[2063,155555.55555555492,{"$f":"SUM(C$178:C225)-SUM(C$266:C313)+SUMPRODUCT((Aktivierungsjahr=Costs!$A402)*(AbschreibungAGr=Costs!C$353)*('Fixed assets'!$U$2:$U$1000=Costs!$A402)*(AbschreibungAHKBvD))","v":0},{"$f":"SUM(D$178:D225)-SUM(D$266:D313)+SUMPRODUCT((Aktivierungsjahr=Costs!$A402)*(AbschreibungAGr=Costs!D$353)*('Fixed assets'!$U$2:$U$1000=Costs!$A402)*(AbschreibungAHKBvD))","v":0},{"$f":"SUM(E$178:E225)-SUM(E$266:E313)+SUMPRODUCT((Aktivierungsjahr=Costs!$A402)*(AbschreibungAGr=Costs!E$353)*('Fixed assets'!$U$2:$U$1000=Costs!$A402)*(AbschreibungAHKBvD))","v":0},{"$f":"SUM(F$178:F225)-SUM(F$266:F313)+SUMPRODUCT((Aktivierungsjahr=Costs!$A402)*(AbschreibungAGr=Costs!F$353)*('Fixed assets'!$U$2:$U$1000=Costs!$A402)*(AbschreibungAHKBvD))","v":0},{"$f":"SUM(G$178:G225)-SUM(G$266:G313)+SUMPRODUCT((Aktivierungsjahr=Costs!$A402)*(AbschreibungAGr=Costs!G$353)*('Fixed assets'!$U$2:$U$1000=Costs!$A402)*(AbschreibungAHKBvD))","v":0},{"$f":"SUM(H$178:H225)-SUM(H$266:H313)+SUMPRODUCT((Aktivierungsjahr=Costs!$A402)*(AbschreibungAGr=Costs!H$353)*('Fixed assets'!$U$2:$U$1000=Costs!$A402)*(AbschreibungAHKBvD))","v":0},{"$f":"SUM(I$178:I225)-SUM(I$266:I313)+SUMPRODUCT((Aktivierungsjahr=Costs!$A402)*(AbschreibungAGr=Costs!I$353)*('Fixed assets'!$U$2:$U$1000=Costs!$A402)*(AbschreibungAHKBvD))","v":0},{"$f":"SUM(J$178:J225)-SUM(J$266:J313)+SUMPRODUCT((Aktivierungsjahr=Costs!$A402)*(AbschreibungAGr=Costs!J$353)*('Fixed assets'!$U$2:$U$1000=Costs!$A402)*(AbschreibungAHKBvD))","v":0},{"$f":"SUM(K$178:K225)-SUM(K$266:K313)+SUMPRODUCT((Aktivierungsjahr=Costs!$A402)*(AbschreibungAGr=Costs!K$353)*('Fixed assets'!$U$2:$U$1000=Costs!$A402)*(AbschreibungAHKBvD))","v":0},{"$f":"SUM(L$178:L225)-SUM(L$266:L313)+SUMPRODUCT((Aktivierungsjahr=Costs!$A402)*(AbschreibungAGr=Costs!L$353)*('Fixed assets'!$U$2:$U$1000=Costs!$A402)*(AbschreibungAHKBvD))","v":0},{"$f":"SUM(M$178:M225)-SUM(M$266:M313)+SUMPRODUCT((Aktivierungsjahr=Costs!$A402)*(AbschreibungAGr=Costs!M$353)*('Fixed assets'!$U$2:$U$1000=Costs!$A402)*(AbschreibungAHKBvD))","v":0},{"$f":"SUM(N$178:N225)-SUM(N$266:N313)+SUMPRODUCT((Aktivierungsjahr=Costs!$A402)*(AbschreibungAGr=Costs!N$353)*('Fixed assets'!$U$2:$U$1000=Costs!$A402)*(AbschreibungAHKBvD))","v":0},{"$f":"SUM(O$178:O225)-SUM(O$266:O313)+SUMPRODUCT((Aktivierungsjahr=Costs!$A402)*(AbschreibungAGr=Costs!O$353)*('Fixed assets'!$U$2:$U$1000=Costs!$A402)*(AbschreibungAHKBvD))","v":0},{"$f":"SUM(P$178:P225)-SUM(P$266:P313)+SUMPRODUCT((Aktivierungsjahr=Costs!$A402)*(AbschreibungAGr=Costs!P$353)*('Fixed assets'!$U$2:$U$1000=Costs!$A402)*(AbschreibungAHKBvD))","v":0},{"$f":"SUM(Q$178:Q225)-SUM(Q$266:Q313)+SUMPRODUCT((Aktivierungsjahr=Costs!$A402)*(AbschreibungAGr=Costs!Q$353)*('Fixed assets'!$U$2:$U$1000=Costs!$A402)*(AbschreibungAHKBvD))","v":0},{"$f":"SUM(R$178:R225)-SUM(R$266:R313)+SUMPRODUCT((Aktivierungsjahr=Costs!$A402)*(AbschreibungAGr=Costs!R$353)*('Fixed assets'!$U$2:$U$1000=Costs!$A402)*(AbschreibungAHKBvD))","v":0},{"$f":"SUM(S$178:S225)-SUM(S$266:S313)+SUMPRODUCT((Aktivierungsjahr=Costs!$A402)*(AbschreibungAGr=Costs!S$353)*('Fixed assets'!$U$2:$U$1000=Costs!$A402)*(AbschreibungAHKBvD))","v":0},{"$f":"SUM(T$178:T225)-SUM(T$266:T313)+SUMPRODUCT((Aktivierungsjahr=Costs!$A402)*(AbschreibungAGr=Costs!T$353)*('Fixed assets'!$U$2:$U$1000=Costs!$A402)*(AbschreibungAHKBvD))","v":0},{"$f":"SUM(U$178:U225)-SUM(U$266:U313)+SUMPRODUCT((Aktivierungsjahr=Costs!$A402)*(AbschreibungAGr=Costs!U$353)*('Fixed assets'!$U$2:$U$1000=Costs!$A402)*(AbschreibungAHKBvD))","v":0},{"$f":"SUM(V$178:V225)-SUM(V$266:V313)+SUMPRODUCT((Aktivierungsjahr=Costs!$A402)*(AbschreibungAGr=Costs!V$353)*('Fixed assets'!$U$2:$U$1000=Costs!$A402)*(AbschreibungAHKBvD))","v":0},{"$f":"SUM(W$178:W225)-SUM(W$266:W313)+SUMPRODUCT((Aktivierungsjahr=Costs!$A402)*(AbschreibungAGr=Costs!W$353)*('Fixed assets'!$U$2:$U$1000=Costs!$A402)*(AbschreibungAHKBvD))","v":0},{"$f":"SUM(X$178:X225)-SUM(X$266:X313)+SUMPRODUCT((Aktivierungsjahr=Costs!$A402)*(AbschreibungAGr=Costs!X$353)*('Fixed assets'!$U$2:$U$1000=Costs!$A402)*(AbschreibungAHKBvD))","v":0},{"$f":"SUM(Y$178:Y225)-SUM(Y$266:Y313)+SUMPRODUCT((Aktivierungsjahr=Costs!$A402)*(AbschreibungAGr=Costs!Y$353)*('Fixed assets'!$U$2:$U$1000=Costs!$A402)*(AbschreibungAHKBvD))","v":0},{"$f":"SUM(Z$178:Z225)-SUM(Z$266:Z313)+SUMPRODUCT((Aktivierungsjahr=Costs!$A402)*(AbschreibungAGr=Costs!Z$353)*('Fixed assets'!$U$2:$U$1000=Costs!$A402)*(AbschreibungAHKBvD))","v":0},{"$f":"SUM(AA$178:AA225)-SUM(AA$266:AA313)+SUMPRODUCT((Aktivierungsjahr=Costs!$A402)*(AbschreibungAGr=Costs!AA$353)*('Fixed assets'!$U$2:$U$1000=Costs!$A402)*(AbschreibungAHKBvD))","v":0},{"$f":"SUM(AB$178:AB225)-SUM(AB$266:AB313)+SUMPRODUCT((Aktivierungsjahr=Costs!$A402)*(AbschreibungAGr=Costs!AB$353)*('Fixed assets'!$U$2:$U$1000=Costs!$A402)*(AbschreibungAHKBvD))","v":0},{"$f":"SUM(AC$178:AC225)-SUM(AC$266:AC313)+SUMPRODUCT((Aktivierungsjahr=Costs!$A402)*(AbschreibungAGr=Costs!AC$353)*('Fixed assets'!$U$2:$U$1000=Costs!$A402)*(AbschreibungAHKBvD))","v":0},{"$f":"SUM(AD$178:AD225)-SUM(AD$266:AD313)+SUMPRODUCT((Aktivierungsjahr=Costs!$A402)*(AbschreibungAGr=Costs!AD$353)*('Fixed assets'!$U$2:$U$1000=Costs!$A402)*(AbschreibungAHKBvD))","v":0},{"$f":"SUM(AE$178:AE225)-SUM(AE$266:AE313)+SUMPRODUCT((Aktivierungsjahr=Costs!$A402)*(AbschreibungAGr=Costs!AE$353)*('Fixed assets'!$U$2:$U$1000=Costs!$A402)*(AbschreibungAHKBvD))","v":0},{"$f":"SUM(AF$178:AF225)-SUM(AF$266:AF313)+SUMPRODUCT((Aktivierungsjahr=Costs!$A402)*(AbschreibungAGr=Costs!AF$353)*('Fixed assets'!$U$2:$U$1000=Costs!$A402)*(AbschreibungAHKBvD))","v":0},{"$f":"SUM(AG$178:AG225)-SUM(AG$266:AG313)+SUMPRODUCT((Aktivierungsjahr=Costs!$A402)*(AbschreibungAGr=Costs!AG$353)*('Fixed assets'!$U$2:$U$1000=Costs!$A402)*(AbschreibungAHKBvD))","v":0},{"$f":"SUM(AH$178:AH225)-SUM(AH$266:AH313)+SUMPRODUCT((Aktivierungsjahr=Costs!$A402)*(AbschreibungAGr=Costs!AH$353)*('Fixed assets'!$U$2:$U$1000=Costs!$A402)*(AbschreibungAHKBvD))","v":0},{"$f":"SUM(AI$178:AI225)-SUM(AI$266:AI313)+SUMPRODUCT((Aktivierungsjahr=Costs!$A402)*(AbschreibungAGr=Costs!AI$353)*('Fixed assets'!$U$2:$U$1000=Costs!$A402)*(AbschreibungAHKBvD))","v":0},{"$f":"SUM(AJ$178:AJ225)-SUM(AJ$266:AJ313)+SUMPRODUCT((Aktivierungsjahr=Costs!$A402)*(AbschreibungAGr=Costs!AJ$353)*('Fixed assets'!$U$2:$U$1000=Costs!$A402)*(AbschreibungAHKBvD))","v":155555.55555555492},{"$f":"SUM(AK$178:AK225)-SUM(AK$266:AK313)+SUMPRODUCT((Aktivierungsjahr=Costs!$A402)*(AbschreibungAGr=Costs!AK$353)*('Fixed assets'!$U$2:$U$1000=Costs!$A402)*(AbschreibungAHKBvD))","v":0},{"$f":"SUM(AL$178:AL225)-SUM(AL$266:AL313)+SUMPRODUCT((Aktivierungsjahr=Costs!$A402)*(AbschreibungAGr=Costs!AL$353)*('Fixed assets'!$U$2:$U$1000=Costs!$A402)*(AbschreibungAHKBvD))","v":0},{"$f":"SUM(AM$178:AM225)-SUM(AM$266:AM313)+SUMPRODUCT((Aktivierungsjahr=Costs!$A402)*(AbschreibungAGr=Costs!AM$353)*('Fixed assets'!$U$2:$U$1000=Costs!$A402)*(AbschreibungAHKBvD))","v":0},{"$f":"SUM(AN$178:AN225)-SUM(AN$266:AN313)+SUMPRODUCT((Aktivierungsjahr=Costs!$A402)*(AbschreibungAGr=Costs!AN$353)*('Fixed assets'!$U$2:$U$1000=Costs!$A402)*(AbschreibungAHKBvD))","v":0},{"$f":"SUM(AO$178:AO225)-SUM(AO$266:AO313)+SUMPRODUCT((Aktivierungsjahr=Costs!$A402)*(AbschreibungAGr=Costs!AO$353)*('Fixed assets'!$U$2:$U$1000=Costs!$A402)*(AbschreibungAHKBvD))","v":0},{"$f":"SUM(AP$178:AP225)-SUM(AP$266:AP313)+SUMPRODUCT((Aktivierungsjahr=Costs!$A402)*(AbschreibungAGr=Costs!AP$353)*('Fixed assets'!$U$2:$U$1000=Costs!$A402)*(AbschreibungAHKBvD))","v":0},{"$f":"SUM(AQ$178:AQ225)-SUM(AQ$266:AQ313)+SUMPRODUCT((Aktivierungsjahr=Costs!$A402)*(AbschreibungAGr=Costs!AQ$353)*('Fixed assets'!$U$2:$U$1000=Costs!$A402)*(AbschreibungAHKBvD))","v":0}]
[2064,133333.33333333267,{"$f":"SUM(C$178:C226)-SUM(C$266:C314)+SUMPRODUCT((Aktivierungsjahr=Costs!$A403)*(AbschreibungAGr=Costs!C$353)*('Fixed assets'!$U$2:$U$1000=Costs!$A403)*(AbschreibungAHKBvD))","v":0},{"$f":"SUM(D$178:D226)-SUM(D$266:D314)+SUMPRODUCT((Aktivierungsjahr=Costs!$A403)*(AbschreibungAGr=Costs!D$353)*('Fixed assets'!$U$2:$U$1000=Costs!$A403)*(AbschreibungAHKBvD))","v":0},{"$f":"SUM(E$178:E226)-SUM(E$266:E314)+SUMPRODUCT((Aktivierungsjahr=Costs!$A403)*(AbschreibungAGr=Costs!E$353)*('Fixed assets'!$U$2:$U$1000=Costs!$A403)*(AbschreibungAHKBvD))","v":0},{"$f":"SUM(F$178:F226)-SUM(F$266:F314)+SUMPRODUCT((Aktivierungsjahr=Costs!$A403)*(AbschreibungAGr=Costs!F$353)*('Fixed assets'!$U$2:$U$1000=Costs!$A403)*(AbschreibungAHKBvD))","v":0},{"$f":"SUM(G$178:G226)-SUM(G$266:G314)+SUMPRODUCT((Aktivierungsjahr=Costs!$A403)*(AbschreibungAGr=Costs!G$353)*('Fixed assets'!$U$2:$U$1000=Costs!$A403)*(AbschreibungAHKBvD))","v":0},{"$f":"SUM(H$178:H226)-SUM(H$266:H314)+SUMPRODUCT((Aktivierungsjahr=Costs!$A403)*(AbschreibungAGr=Costs!H$353)*('Fixed assets'!$U$2:$U$1000=Costs!$A403)*(AbschreibungAHKBvD))","v":0},{"$f":"SUM(I$178:I226)-SUM(I$266:I314)+SUMPRODUCT((Aktivierungsjahr=Costs!$A403)*(AbschreibungAGr=Costs!I$353)*('Fixed assets'!$U$2:$U$1000=Costs!$A403)*(AbschreibungAHKBvD))","v":0},{"$f":"SUM(J$178:J226)-SUM(J$266:J314)+SUMPRODUCT((Aktivierungsjahr=Costs!$A403)*(AbschreibungAGr=Costs!J$353)*('Fixed assets'!$U$2:$U$1000=Costs!$A403)*(AbschreibungAHKBvD))","v":0},{"$f":"SUM(K$178:K226)-SUM(K$266:K314)+SUMPRODUCT((Aktivierungsjahr=Costs!$A403)*(AbschreibungAGr=Costs!K$353)*('Fixed assets'!$U$2:$U$1000=Costs!$A403)*(AbschreibungAHKBvD))","v":0},{"$f":"SUM(L$178:L226)-SUM(L$266:L314)+SUMPRODUCT((Aktivierungsjahr=Costs!$A403)*(AbschreibungAGr=Costs!L$353)*('Fixed assets'!$U$2:$U$1000=Costs!$A403)*(AbschreibungAHKBvD))","v":0},{"$f":"SUM(M$178:M226)-SUM(M$266:M314)+SUMPRODUCT((Aktivierungsjahr=Costs!$A403)*(AbschreibungAGr=Costs!M$353)*('Fixed assets'!$U$2:$U$1000=Costs!$A403)*(AbschreibungAHKBvD))","v":0},{"$f":"SUM(N$178:N226)-SUM(N$266:N314)+SUMPRODUCT((Aktivierungsjahr=Costs!$A403)*(AbschreibungAGr=Costs!N$353)*('Fixed assets'!$U$2:$U$1000=Costs!$A403)*(AbschreibungAHKBvD))","v":0},{"$f":"SUM(O$178:O226)-SUM(O$266:O314)+SUMPRODUCT((Aktivierungsjahr=Costs!$A403)*(AbschreibungAGr=Costs!O$353)*('Fixed assets'!$U$2:$U$1000=Costs!$A403)*(AbschreibungAHKBvD))","v":0},{"$f":"SUM(P$178:P226)-SUM(P$266:P314)+SUMPRODUCT((Aktivierungsjahr=Costs!$A403)*(AbschreibungAGr=Costs!P$353)*('Fixed assets'!$U$2:$U$1000=Costs!$A403)*(AbschreibungAHKBvD))","v":0},{"$f":"SUM(Q$178:Q226)-SUM(Q$266:Q314)+SUMPRODUCT((Aktivierungsjahr=Costs!$A403)*(AbschreibungAGr=Costs!Q$353)*('Fixed assets'!$U$2:$U$1000=Costs!$A403)*(AbschreibungAHKBvD))","v":0},{"$f":"SUM(R$178:R226)-SUM(R$266:R314)+SUMPRODUCT((Aktivierungsjahr=Costs!$A403)*(AbschreibungAGr=Costs!R$353)*('Fixed assets'!$U$2:$U$1000=Costs!$A403)*(AbschreibungAHKBvD))","v":0},{"$f":"SUM(S$178:S226)-SUM(S$266:S314)+SUMPRODUCT((Aktivierungsjahr=Costs!$A403)*(AbschreibungAGr=Costs!S$353)*('Fixed assets'!$U$2:$U$1000=Costs!$A403)*(AbschreibungAHKBvD))","v":0},{"$f":"SUM(T$178:T226)-SUM(T$266:T314)+SUMPRODUCT((Aktivierungsjahr=Costs!$A403)*(AbschreibungAGr=Costs!T$353)*('Fixed assets'!$U$2:$U$1000=Costs!$A403)*(AbschreibungAHKBvD))","v":0},{"$f":"SUM(U$178:U226)-SUM(U$266:U314)+SUMPRODUCT((Aktivierungsjahr=Costs!$A403)*(AbschreibungAGr=Costs!U$353)*('Fixed assets'!$U$2:$U$1000=Costs!$A403)*(AbschreibungAHKBvD))","v":0},{"$f":"SUM(V$178:V226)-SUM(V$266:V314)+SUMPRODUCT((Aktivierungsjahr=Costs!$A403)*(AbschreibungAGr=Costs!V$353)*('Fixed assets'!$U$2:$U$1000=Costs!$A403)*(AbschreibungAHKBvD))","v":0},{"$f":"SUM(W$178:W226)-SUM(W$266:W314)+SUMPRODUCT((Aktivierungsjahr=Costs!$A403)*(AbschreibungAGr=Costs!W$353)*('Fixed assets'!$U$2:$U$1000=Costs!$A403)*(AbschreibungAHKBvD))","v":0},{"$f":"SUM(X$178:X226)-SUM(X$266:X314)+SUMPRODUCT((Aktivierungsjahr=Costs!$A403)*(AbschreibungAGr=Costs!X$353)*('Fixed assets'!$U$2:$U$1000=Costs!$A403)*(AbschreibungAHKBvD))","v":0},{"$f":"SUM(Y$178:Y226)-SUM(Y$266:Y314)+SUMPRODUCT((Aktivierungsjahr=Costs!$A403)*(AbschreibungAGr=Costs!Y$353)*('Fixed assets'!$U$2:$U$1000=Costs!$A403)*(AbschreibungAHKBvD))","v":0},{"$f":"SUM(Z$178:Z226)-SUM(Z$266:Z314)+SUMPRODUCT((Aktivierungsjahr=Costs!$A403)*(AbschreibungAGr=Costs!Z$353)*('Fixed assets'!$U$2:$U$1000=Costs!$A403)*(AbschreibungAHKBvD))","v":0},{"$f":"SUM(AA$178:AA226)-SUM(AA$266:AA314)+SUMPRODUCT((Aktivierungsjahr=Costs!$A403)*(AbschreibungAGr=Costs!AA$353)*('Fixed assets'!$U$2:$U$1000=Costs!$A403)*(AbschreibungAHKBvD))","v":0},{"$f":"SUM(AB$178:AB226)-SUM(AB$266:AB314)+SUMPRODUCT((Aktivierungsjahr=Costs!$A403)*(AbschreibungAGr=Costs!AB$353)*('Fixed assets'!$U$2:$U$1000=Costs!$A403)*(AbschreibungAHKBvD))","v":0},{"$f":"SUM(AC$178:AC226)-SUM(AC$266:AC314)+SUMPRODUCT((Aktivierungsjahr=Costs!$A403)*(AbschreibungAGr=Costs!AC$353)*('Fixed assets'!$U$2:$U$1000=Costs!$A403)*(AbschreibungAHKBvD))","v":0},{"$f":"SUM(AD$178:AD226)-SUM(AD$266:AD314)+SUMPRODUCT((Aktivierungsjahr=Costs!$A403)*(AbschreibungAGr=Costs!AD$353)*('Fixed assets'!$U$2:$U$1000=Costs!$A403)*(AbschreibungAHKBvD))","v":0},{"$f":"SUM(AE$178:AE226)-SUM(AE$266:AE314)+SUMPRODUCT((Aktivierungsjahr=Costs!$A403)*(AbschreibungAGr=Costs!AE$353)*('Fixed assets'!$U$2:$U$1000=Costs!$A403)*(AbschreibungAHKBvD))","v":0},{"$f":"SUM(AF$178:AF226)-SUM(AF$266:AF314)+SUMPRODUCT((Aktivierungsjahr=Costs!$A403)*(AbschreibungAGr=Costs!AF$353)*('Fixed assets'!$U$2:$U$1000=Costs!$A403)*(AbschreibungAHKBvD))","v":0},{"$f":"SUM(AG$178:AG226)-SUM(AG$266:AG314)+SUMPRODUCT((Aktivierungsjahr=Costs!$A403)*(AbschreibungAGr=Costs!AG$353)*('Fixed assets'!$U$2:$U$1000=Costs!$A403)*(AbschreibungAHKBvD))","v":0},{"$f":"SUM(AH$178:AH226)-SUM(AH$266:AH314)+SUMPRODUCT((Aktivierungsjahr=Costs!$A403)*(AbschreibungAGr=Costs!AH$353)*('Fixed assets'!$U$2:$U$1000=Costs!$A403)*(AbschreibungAHKBvD))","v":0},{"$f":"SUM(AI$178:AI226)-SUM(AI$266:AI314)+SUMPRODUCT((Aktivierungsjahr=Costs!$A403)*(AbschreibungAGr=Costs!AI$353)*('Fixed assets'!$U$2:$U$1000=Costs!$A403)*(AbschreibungAHKBvD))","v":0},{"$f":"SUM(AJ$178:AJ226)-SUM(AJ$266:AJ314)+SUMPRODUCT((Aktivierungsjahr=Costs!$A403)*(AbschreibungAGr=Costs!AJ$353)*('Fixed assets'!$U$2:$U$1000=Costs!$A403)*(AbschreibungAHKBvD))","v":133333.33333333267},{"$f":"SUM(AK$178:AK226)-SUM(AK$266:AK314)+SUMPRODUCT((Aktivierungsjahr=Costs!$A403)*(AbschreibungAGr=Costs!AK$353)*('Fixed assets'!$U$2:$U$1000=Costs!$A403)*(AbschreibungAHKBvD))","v":0},{"$f":"SUM(AL$178:AL226)-SUM(AL$266:AL314)+SUMPRODUCT((Aktivierungsjahr=Costs!$A403)*(AbschreibungAGr=Costs!AL$353)*('Fixed assets'!$U$2:$U$1000=Costs!$A403)*(AbschreibungAHKBvD))","v":0},{"$f":"SUM(AM$178:AM226)-SUM(AM$266:AM314)+SUMPRODUCT((Aktivierungsjahr=Costs!$A403)*(AbschreibungAGr=Costs!AM$353)*('Fixed assets'!$U$2:$U$1000=Costs!$A403)*(AbschreibungAHKBvD))","v":0},{"$f":"SUM(AN$178:AN226)-SUM(AN$266:AN314)+SUMPRODUCT((Aktivierungsjahr=Costs!$A403)*(AbschreibungAGr=Costs!AN$353)*('Fixed assets'!$U$2:$U$1000=Costs!$A403)*(AbschreibungAHKBvD))","v":0},{"$f":"SUM(AO$178:AO226)-SUM(AO$266:AO314)+SUMPRODUCT((Aktivierungsjahr=Costs!$A403)*(AbschreibungAGr=Costs!AO$353)*('Fixed assets'!$U$2:$U$1000=Costs!$A403)*(AbschreibungAHKBvD))","v":0},{"$f":"SUM(AP$178:AP226)-SUM(AP$266:AP314)+SUMPRODUCT((Aktivierungsjahr=Costs!$A403)*(AbschreibungAGr=Costs!AP$353)*('Fixed assets'!$U$2:$U$1000=Costs!$A403)*(AbschreibungAHKBvD))","v":0},{"$f":"SUM(AQ$178:AQ226)-SUM(AQ$266:AQ314)+SUMPRODUCT((Aktivierungsjahr=Costs!$A403)*(AbschreibungAGr=Costs!AQ$353)*('Fixed assets'!$U$2:$U$1000=Costs!$A403)*(AbschreibungAHKBvD))","v":0}]
[2065,111111.11111111043,{"$f":"SUM(C$178:C227)-SUM(C$266:C315)+SUMPRODUCT((Aktivierungsjahr=Costs!$A404)*(AbschreibungAGr=Costs!C$353)*('Fixed assets'!$U$2:$U$1000=Costs!$A404)*(AbschreibungAHKBvD))","v":0},{"$f":"SUM(D$178:D227)-SUM(D$266:D315)+SUMPRODUCT((Aktivierungsjahr=Costs!$A404)*(AbschreibungAGr=Costs!D$353)*('Fixed assets'!$U$2:$U$1000=Costs!$A404)*(AbschreibungAHKBvD))","v":0},{"$f":"SUM(E$178:E227)-SUM(E$266:E315)+SUMPRODUCT((Aktivierungsjahr=Costs!$A404)*(AbschreibungAGr=Costs!E$353)*('Fixed assets'!$U$2:$U$1000=Costs!$A404)*(AbschreibungAHKBvD))","v":0},{"$f":"SUM(F$178:F227)-SUM(F$266:F315)+SUMPRODUCT((Aktivierungsjahr=Costs!$A404)*(AbschreibungAGr=Costs!F$353)*('Fixed assets'!$U$2:$U$1000=Costs!$A404)*(AbschreibungAHKBvD))","v":0},{"$f":"SUM(G$178:G227)-SUM(G$266:G315)+SUMPRODUCT((Aktivierungsjahr=Costs!$A404)*(AbschreibungAGr=Costs!G$353)*('Fixed assets'!$U$2:$U$1000=Costs!$A404)*(AbschreibungAHKBvD))","v":0},{"$f":"SUM(H$178:H227)-SUM(H$266:H315)+SUMPRODUCT((Aktivierungsjahr=Costs!$A404)*(AbschreibungAGr=Costs!H$353)*('Fixed assets'!$U$2:$U$1000=Costs!$A404)*(AbschreibungAHKBvD))","v":0},{"$f":"SUM(I$178:I227)-SUM(I$266:I315)+SUMPRODUCT((Aktivierungsjahr=Costs!$A404)*(AbschreibungAGr=Costs!I$353)*('Fixed assets'!$U$2:$U$1000=Costs!$A404)*(AbschreibungAHKBvD))","v":0},{"$f":"SUM(J$178:J227)-SUM(J$266:J315)+SUMPRODUCT((Aktivierungsjahr=Costs!$A404)*(AbschreibungAGr=Costs!J$353)*('Fixed assets'!$U$2:$U$1000=Costs!$A404)*(AbschreibungAHKBvD))","v":0},{"$f":"SUM(K$178:K227)-SUM(K$266:K315)+SUMPRODUCT((Aktivierungsjahr=Costs!$A404)*(AbschreibungAGr=Costs!K$353)*('Fixed assets'!$U$2:$U$1000=Costs!$A404)*(AbschreibungAHKBvD))","v":0},{"$f":"SUM(L$178:L227)-SUM(L$266:L315)+SUMPRODUCT((Aktivierungsjahr=Costs!$A404)*(AbschreibungAGr=Costs!L$353)*('Fixed assets'!$U$2:$U$1000=Costs!$A404)*(AbschreibungAHKBvD))","v":0},{"$f":"SUM(M$178:M227)-SUM(M$266:M315)+SUMPRODUCT((Aktivierungsjahr=Costs!$A404)*(AbschreibungAGr=Costs!M$353)*('Fixed assets'!$U$2:$U$1000=Costs!$A404)*(AbschreibungAHKBvD))","v":0},{"$f":"SUM(N$178:N227)-SUM(N$266:N315)+SUMPRODUCT((Aktivierungsjahr=Costs!$A404)*(AbschreibungAGr=Costs!N$353)*('Fixed assets'!$U$2:$U$1000=Costs!$A404)*(AbschreibungAHKBvD))","v":0},{"$f":"SUM(O$178:O227)-SUM(O$266:O315)+SUMPRODUCT((Aktivierungsjahr=Costs!$A404)*(AbschreibungAGr=Costs!O$353)*('Fixed assets'!$U$2:$U$1000=Costs!$A404)*(AbschreibungAHKBvD))","v":0},{"$f":"SUM(P$178:P227)-SUM(P$266:P315)+SUMPRODUCT((Aktivierungsjahr=Costs!$A404)*(AbschreibungAGr=Costs!P$353)*('Fixed assets'!$U$2:$U$1000=Costs!$A404)*(AbschreibungAHKBvD))","v":0},{"$f":"SUM(Q$178:Q227)-SUM(Q$266:Q315)+SUMPRODUCT((Aktivierungsjahr=Costs!$A404)*(AbschreibungAGr=Costs!Q$353)*('Fixed assets'!$U$2:$U$1000=Costs!$A404)*(AbschreibungAHKBvD))","v":0},{"$f":"SUM(R$178:R227)-SUM(R$266:R315)+SUMPRODUCT((Aktivierungsjahr=Costs!$A404)*(AbschreibungAGr=Costs!R$353)*('Fixed assets'!$U$2:$U$1000=Costs!$A404)*(AbschreibungAHKBvD))","v":0},{"$f":"SUM(S$178:S227)-SUM(S$266:S315)+SUMPRODUCT((Aktivierungsjahr=Costs!$A404)*(AbschreibungAGr=Costs!S$353)*('Fixed assets'!$U$2:$U$1000=Costs!$A404)*(AbschreibungAHKBvD))","v":0},{"$f":"SUM(T$178:T227)-SUM(T$266:T315)+SUMPRODUCT((Aktivierungsjahr=Costs!$A404)*(AbschreibungAGr=Costs!T$353)*('Fixed assets'!$U$2:$U$1000=Costs!$A404)*(AbschreibungAHKBvD))","v":0},{"$f":"SUM(U$178:U227)-SUM(U$266:U315)+SUMPRODUCT((Aktivierungsjahr=Costs!$A404)*(AbschreibungAGr=Costs!U$353)*('Fixed assets'!$U$2:$U$1000=Costs!$A404)*(AbschreibungAHKBvD))","v":0},{"$f":"SUM(V$178:V227)-SUM(V$266:V315)+SUMPRODUCT((Aktivierungsjahr=Costs!$A404)*(AbschreibungAGr=Costs!V$353)*('Fixed assets'!$U$2:$U$1000=Costs!$A404)*(AbschreibungAHKBvD))","v":0},{"$f":"SUM(W$178:W227)-SUM(W$266:W315)+SUMPRODUCT((Aktivierungsjahr=Costs!$A404)*(AbschreibungAGr=Costs!W$353)*('Fixed assets'!$U$2:$U$1000=Costs!$A404)*(AbschreibungAHKBvD))","v":0},{"$f":"SUM(X$178:X227)-SUM(X$266:X315)+SUMPRODUCT((Aktivierungsjahr=Costs!$A404)*(AbschreibungAGr=Costs!X$353)*('Fixed assets'!$U$2:$U$1000=Costs!$A404)*(AbschreibungAHKBvD))","v":0},{"$f":"SUM(Y$178:Y227)-SUM(Y$266:Y315)+SUMPRODUCT((Aktivierungsjahr=Costs!$A404)*(AbschreibungAGr=Costs!Y$353)*('Fixed assets'!$U$2:$U$1000=Costs!$A404)*(AbschreibungAHKBvD))","v":0},{"$f":"SUM(Z$178:Z227)-SUM(Z$266:Z315)+SUMPRODUCT((Aktivierungsjahr=Costs!$A404)*(AbschreibungAGr=Costs!Z$353)*('Fixed assets'!$U$2:$U$1000=Costs!$A404)*(AbschreibungAHKBvD))","v":0},{"$f":"SUM(AA$178:AA227)-SUM(AA$266:AA315)+SUMPRODUCT((Aktivierungsjahr=Costs!$A404)*(AbschreibungAGr=Costs!AA$353)*('Fixed assets'!$U$2:$U$1000=Costs!$A404)*(AbschreibungAHKBvD))","v":0},{"$f":"SUM(AB$178:AB227)-SUM(AB$266:AB315)+SUMPRODUCT((Aktivierungsjahr=Costs!$A404)*(AbschreibungAGr=Costs!AB$353)*('Fixed assets'!$U$2:$U$1000=Costs!$A404)*(AbschreibungAHKBvD))","v":0},{"$f":"SUM(AC$178:AC227)-SUM(AC$266:AC315)+SUMPRODUCT((Aktivierungsjahr=Costs!$A404)*(AbschreibungAGr=Costs!AC$353)*('Fixed assets'!$U$2:$U$1000=Costs!$A404)*(AbschreibungAHKBvD))","v":0},{"$f":"SUM(AD$178:AD227)-SUM(AD$266:AD315)+SUMPRODUCT((Aktivierungsjahr=Costs!$A404)*(AbschreibungAGr=Costs!AD$353)*('Fixed assets'!$U$2:$U$1000=Costs!$A404)*(AbschreibungAHKBvD))","v":0},{"$f":"SUM(AE$178:AE227)-SUM(AE$266:AE315)+SUMPRODUCT((Aktivierungsjahr=Costs!$A404)*(AbschreibungAGr=Costs!AE$353)*('Fixed assets'!$U$2:$U$1000=Costs!$A404)*(AbschreibungAHKBvD))","v":0},{"$f":"SUM(AF$178:AF227)-SUM(AF$266:AF315)+SUMPRODUCT((Aktivierungsjahr=Costs!$A404)*(AbschreibungAGr=Costs!AF$353)*('Fixed assets'!$U$2:$U$1000=Costs!$A404)*(AbschreibungAHKBvD))","v":0},{"$f":"SUM(AG$178:AG227)-SUM(AG$266:AG315)+SUMPRODUCT((Aktivierungsjahr=Costs!$A404)*(AbschreibungAGr=Costs!AG$353)*('Fixed assets'!$U$2:$U$1000=Costs!$A404)*(AbschreibungAHKBvD))","v":0},{"$f":"SUM(AH$178:AH227)-SUM(AH$266:AH315)+SUMPRODUCT((Aktivierungsjahr=Costs!$A404)*(AbschreibungAGr=Costs!AH$353)*('Fixed assets'!$U$2:$U$1000=Costs!$A404)*(AbschreibungAHKBvD))","v":0},{"$f":"SUM(AI$178:AI227)-SUM(AI$266:AI315)+SUMPRODUCT((Aktivierungsjahr=Costs!$A404)*(AbschreibungAGr=Costs!AI$353)*('Fixed assets'!$U$2:$U$1000=Costs!$A404)*(AbschreibungAHKBvD))","v":0},{"$f":"SUM(AJ$178:AJ227)-SUM(AJ$266:AJ315)+SUMPRODUCT((Aktivierungsjahr=Costs!$A404)*(AbschreibungAGr=Costs!AJ$353)*('Fixed assets'!$U$2:$U$1000=Costs!$A404)*(AbschreibungAHKBvD))","v":111111.11111111043},{"$f":"SUM(AK$178:AK227)-SUM(AK$266:AK315)+SUMPRODUCT((Aktivierungsjahr=Costs!$A404)*(AbschreibungAGr=Costs!AK$353)*('Fixed assets'!$U$2:$U$1000=Costs!$A404)*(AbschreibungAHKBvD))","v":0},{"$f":"SUM(AL$178:AL227)-SUM(AL$266:AL315)+SUMPRODUCT((Aktivierungsjahr=Costs!$A404)*(AbschreibungAGr=Costs!AL$353)*('Fixed assets'!$U$2:$U$1000=Costs!$A404)*(AbschreibungAHKBvD))","v":0},{"$f":"SUM(AM$178:AM227)-SUM(AM$266:AM315)+SUMPRODUCT((Aktivierungsjahr=Costs!$A404)*(AbschreibungAGr=Costs!AM$353)*('Fixed assets'!$U$2:$U$1000=Costs!$A404)*(AbschreibungAHKBvD))","v":0},{"$f":"SUM(AN$178:AN227)-SUM(AN$266:AN315)+SUMPRODUCT((Aktivierungsjahr=Costs!$A404)*(AbschreibungAGr=Costs!AN$353)*('Fixed assets'!$U$2:$U$1000=Costs!$A404)*(AbschreibungAHKBvD))","v":0},{"$f":"SUM(AO$178:AO227)-SUM(AO$266:AO315)+SUMPRODUCT((Aktivierungsjahr=Costs!$A404)*(AbschreibungAGr=Costs!AO$353)*('Fixed assets'!$U$2:$U$1000=Costs!$A404)*(AbschreibungAHKBvD))","v":0},{"$f":"SUM(AP$178:AP227)-SUM(AP$266:AP315)+SUMPRODUCT((Aktivierungsjahr=Costs!$A404)*(AbschreibungAGr=Costs!AP$353)*('Fixed assets'!$U$2:$U$1000=Costs!$A404)*(AbschreibungAHKBvD))","v":0},{"$f":"SUM(AQ$178:AQ227)-SUM(AQ$266:AQ315)+SUMPRODUCT((Aktivierungsjahr=Costs!$A404)*(AbschreibungAGr=Costs!AQ$353)*('Fixed assets'!$U$2:$U$1000=Costs!$A404)*(AbschreibungAHKBvD))","v":0}]
[2066,88888.888888888177,{"$f":"SUM(C$178:C228)-SUM(C$266:C316)+SUMPRODUCT((Aktivierungsjahr=Costs!$A405)*(AbschreibungAGr=Costs!C$353)*('Fixed assets'!$U$2:$U$1000=Costs!$A405)*(AbschreibungAHKBvD))","v":0},{"$f":"SUM(D$178:D228)-SUM(D$266:D316)+SUMPRODUCT((Aktivierungsjahr=Costs!$A405)*(AbschreibungAGr=Costs!D$353)*('Fixed assets'!$U$2:$U$1000=Costs!$A405)*(AbschreibungAHKBvD))","v":0},{"$f":"SUM(E$178:E228)-SUM(E$266:E316)+SUMPRODUCT((Aktivierungsjahr=Costs!$A405)*(AbschreibungAGr=Costs!E$353)*('Fixed assets'!$U$2:$U$1000=Costs!$A405)*(AbschreibungAHKBvD))","v":0},{"$f":"SUM(F$178:F228)-SUM(F$266:F316)+SUMPRODUCT((Aktivierungsjahr=Costs!$A405)*(AbschreibungAGr=Costs!F$353)*('Fixed assets'!$U$2:$U$1000=Costs!$A405)*(AbschreibungAHKBvD))","v":0},{"$f":"SUM(G$178:G228)-SUM(G$266:G316)+SUMPRODUCT((Aktivierungsjahr=Costs!$A405)*(AbschreibungAGr=Costs!G$353)*('Fixed assets'!$U$2:$U$1000=Costs!$A405)*(AbschreibungAHKBvD))","v":0},{"$f":"SUM(H$178:H228)-SUM(H$266:H316)+SUMPRODUCT((Aktivierungsjahr=Costs!$A405)*(AbschreibungAGr=Costs!H$353)*('Fixed assets'!$U$2:$U$1000=Costs!$A405)*(AbschreibungAHKBvD))","v":0},{"$f":"SUM(I$178:I228)-SUM(I$266:I316)+SUMPRODUCT((Aktivierungsjahr=Costs!$A405)*(AbschreibungAGr=Costs!I$353)*('Fixed assets'!$U$2:$U$1000=Costs!$A405)*(AbschreibungAHKBvD))","v":0},{"$f":"SUM(J$178:J228)-SUM(J$266:J316)+SUMPRODUCT((Aktivierungsjahr=Costs!$A405)*(AbschreibungAGr=Costs!J$353)*('Fixed assets'!$U$2:$U$1000=Costs!$A405)*(AbschreibungAHKBvD))","v":0},{"$f":"SUM(K$178:K228)-SUM(K$266:K316)+SUMPRODUCT((Aktivierungsjahr=Costs!$A405)*(AbschreibungAGr=Costs!K$353)*('Fixed assets'!$U$2:$U$1000=Costs!$A405)*(AbschreibungAHKBvD))","v":0},{"$f":"SUM(L$178:L228)-SUM(L$266:L316)+SUMPRODUCT((Aktivierungsjahr=Costs!$A405)*(AbschreibungAGr=Costs!L$353)*('Fixed assets'!$U$2:$U$1000=Costs!$A405)*(AbschreibungAHKBvD))","v":0},{"$f":"SUM(M$178:M228)-SUM(M$266:M316)+SUMPRODUCT((Aktivierungsjahr=Costs!$A405)*(AbschreibungAGr=Costs!M$353)*('Fixed assets'!$U$2:$U$1000=Costs!$A405)*(AbschreibungAHKBvD))","v":0},{"$f":"SUM(N$178:N228)-SUM(N$266:N316)+SUMPRODUCT((Aktivierungsjahr=Costs!$A405)*(AbschreibungAGr=Costs!N$353)*('Fixed assets'!$U$2:$U$1000=Costs!$A405)*(AbschreibungAHKBvD))","v":0},{"$f":"SUM(O$178:O228)-SUM(O$266:O316)+SUMPRODUCT((Aktivierungsjahr=Costs!$A405)*(AbschreibungAGr=Costs!O$353)*('Fixed assets'!$U$2:$U$1000=Costs!$A405)*(AbschreibungAHKBvD))","v":0},{"$f":"SUM(P$178:P228)-SUM(P$266:P316)+SUMPRODUCT((Aktivierungsjahr=Costs!$A405)*(AbschreibungAGr=Costs!P$353)*('Fixed assets'!$U$2:$U$1000=Costs!$A405)*(AbschreibungAHKBvD))","v":0},{"$f":"SUM(Q$178:Q228)-SUM(Q$266:Q316)+SUMPRODUCT((Aktivierungsjahr=Costs!$A405)*(AbschreibungAGr=Costs!Q$353)*('Fixed assets'!$U$2:$U$1000=Costs!$A405)*(AbschreibungAHKBvD))","v":0},{"$f":"SUM(R$178:R228)-SUM(R$266:R316)+SUMPRODUCT((Aktivierungsjahr=Costs!$A405)*(AbschreibungAGr=Costs!R$353)*('Fixed assets'!$U$2:$U$1000=Costs!$A405)*(AbschreibungAHKBvD))","v":0},{"$f":"SUM(S$178:S228)-SUM(S$266:S316)+SUMPRODUCT((Aktivierungsjahr=Costs!$A405)*(AbschreibungAGr=Costs!S$353)*('Fixed assets'!$U$2:$U$1000=Costs!$A405)*(AbschreibungAHKBvD))","v":0},{"$f":"SUM(T$178:T228)-SUM(T$266:T316)+SUMPRODUCT((Aktivierungsjahr=Costs!$A405)*(AbschreibungAGr=Costs!T$353)*('Fixed assets'!$U$2:$U$1000=Costs!$A405)*(AbschreibungAHKBvD))","v":0},{"$f":"SUM(U$178:U228)-SUM(U$266:U316)+SUMPRODUCT((Aktivierungsjahr=Costs!$A405)*(AbschreibungAGr=Costs!U$353)*('Fixed assets'!$U$2:$U$1000=Costs!$A405)*(AbschreibungAHKBvD))","v":0},{"$f":"SUM(V$178:V228)-SUM(V$266:V316)+SUMPRODUCT((Aktivierungsjahr=Costs!$A405)*(AbschreibungAGr=Costs!V$353)*('Fixed assets'!$U$2:$U$1000=Costs!$A405)*(AbschreibungAHKBvD))","v":0},{"$f":"SUM(W$178:W228)-SUM(W$266:W316)+SUMPRODUCT((Aktivierungsjahr=Costs!$A405)*(AbschreibungAGr=Costs!W$353)*('Fixed assets'!$U$2:$U$1000=Costs!$A405)*(AbschreibungAHKBvD))","v":0},{"$f":"SUM(X$178:X228)-SUM(X$266:X316)+SUMPRODUCT((Aktivierungsjahr=Costs!$A405)*(AbschreibungAGr=Costs!X$353)*('Fixed assets'!$U$2:$U$1000=Costs!$A405)*(AbschreibungAHKBvD))","v":0},{"$f":"SUM(Y$178:Y228)-SUM(Y$266:Y316)+SUMPRODUCT((Aktivierungsjahr=Costs!$A405)*(AbschreibungAGr=Costs!Y$353)*('Fixed assets'!$U$2:$U$1000=Costs!$A405)*(AbschreibungAHKBvD))","v":0},{"$f":"SUM(Z$178:Z228)-SUM(Z$266:Z316)+SUMPRODUCT((Aktivierungsjahr=Costs!$A405)*(AbschreibungAGr=Costs!Z$353)*('Fixed assets'!$U$2:$U$1000=Costs!$A405)*(AbschreibungAHKBvD))","v":0},{"$f":"SUM(AA$178:AA228)-SUM(AA$266:AA316)+SUMPRODUCT((Aktivierungsjahr=Costs!$A405)*(AbschreibungAGr=Costs!AA$353)*('Fixed assets'!$U$2:$U$1000=Costs!$A405)*(AbschreibungAHKBvD))","v":0},{"$f":"SUM(AB$178:AB228)-SUM(AB$266:AB316)+SUMPRODUCT((Aktivierungsjahr=Costs!$A405)*(AbschreibungAGr=Costs!AB$353)*('Fixed assets'!$U$2:$U$1000=Costs!$A405)*(AbschreibungAHKBvD))","v":0},{"$f":"SUM(AC$178:AC228)-SUM(AC$266:AC316)+SUMPRODUCT((Aktivierungsjahr=Costs!$A405)*(AbschreibungAGr=Costs!AC$353)*('Fixed assets'!$U$2:$U$1000=Costs!$A405)*(AbschreibungAHKBvD))","v":0},{"$f":"SUM(AD$178:AD228)-SUM(AD$266:AD316)+SUMPRODUCT((Aktivierungsjahr=Costs!$A405)*(AbschreibungAGr=Costs!AD$353)*('Fixed assets'!$U$2:$U$1000=Costs!$A405)*(AbschreibungAHKBvD))","v":0},{"$f":"SUM(AE$178:AE228)-SUM(AE$266:AE316)+SUMPRODUCT((Aktivierungsjahr=Costs!$A405)*(AbschreibungAGr=Costs!AE$353)*('Fixed assets'!$U$2:$U$1000=Costs!$A405)*(AbschreibungAHKBvD))","v":0},{"$f":"SUM(AF$178:AF228)-SUM(AF$266:AF316)+SUMPRODUCT((Aktivierungsjahr=Costs!$A405)*(AbschreibungAGr=Costs!AF$353)*('Fixed assets'!$U$2:$U$1000=Costs!$A405)*(AbschreibungAHKBvD))","v":0},{"$f":"SUM(AG$178:AG228)-SUM(AG$266:AG316)+SUMPRODUCT((Aktivierungsjahr=Costs!$A405)*(AbschreibungAGr=Costs!AG$353)*('Fixed assets'!$U$2:$U$1000=Costs!$A405)*(AbschreibungAHKBvD))","v":0},{"$f":"SUM(AH$178:AH228)-SUM(AH$266:AH316)+SUMPRODUCT((Aktivierungsjahr=Costs!$A405)*(AbschreibungAGr=Costs!AH$353)*('Fixed assets'!$U$2:$U$1000=Costs!$A405)*(AbschreibungAHKBvD))","v":0},{"$f":"SUM(AI$178:AI228)-SUM(AI$266:AI316)+SUMPRODUCT((Aktivierungsjahr=Costs!$A405)*(AbschreibungAGr=Costs!AI$353)*('Fixed assets'!$U$2:$U$1000=Costs!$A405)*(AbschreibungAHKBvD))","v":0},{"$f":"SUM(AJ$178:AJ228)-SUM(AJ$266:AJ316)+SUMPRODUCT((Aktivierungsjahr=Costs!$A405)*(AbschreibungAGr=Costs!AJ$353)*('Fixed assets'!$U$2:$U$1000=Costs!$A405)*(AbschreibungAHKBvD))","v":88888.888888888177},{"$f":"SUM(AK$178:AK228)-SUM(AK$266:AK316)+SUMPRODUCT((Aktivierungsjahr=Costs!$A405)*(AbschreibungAGr=Costs!AK$353)*('Fixed assets'!$U$2:$U$1000=Costs!$A405)*(AbschreibungAHKBvD))","v":0},{"$f":"SUM(AL$178:AL228)-SUM(AL$266:AL316)+SUMPRODUCT((Aktivierungsjahr=Costs!$A405)*(AbschreibungAGr=Costs!AL$353)*('Fixed assets'!$U$2:$U$1000=Costs!$A405)*(AbschreibungAHKBvD))","v":0},{"$f":"SUM(AM$178:AM228)-SUM(AM$266:AM316)+SUMPRODUCT((Aktivierungsjahr=Costs!$A405)*(AbschreibungAGr=Costs!AM$353)*('Fixed assets'!$U$2:$U$1000=Costs!$A405)*(AbschreibungAHKBvD))","v":0},{"$f":"SUM(AN$178:AN228)-SUM(AN$266:AN316)+SUMPRODUCT((Aktivierungsjahr=Costs!$A405)*(AbschreibungAGr=Costs!AN$353)*('Fixed assets'!$U$2:$U$1000=Costs!$A405)*(AbschreibungAHKBvD))","v":0},{"$f":"SUM(AO$178:AO228)-SUM(AO$266:AO316)+SUMPRODUCT((Aktivierungsjahr=Costs!$A405)*(AbschreibungAGr=Costs!AO$353)*('Fixed assets'!$U$2:$U$1000=Costs!$A405)*(AbschreibungAHKBvD))","v":0},{"$f":"SUM(AP$178:AP228)-SUM(AP$266:AP316)+SUMPRODUCT((Aktivierungsjahr=Costs!$A405)*(AbschreibungAGr=Costs!AP$353)*('Fixed assets'!$U$2:$U$1000=Costs!$A405)*(AbschreibungAHKBvD))","v":0},{"$f":"SUM(AQ$178:AQ228)-SUM(AQ$266:AQ316)+SUMPRODUCT((Aktivierungsjahr=Costs!$A405)*(AbschreibungAGr=Costs!AQ$353)*('Fixed assets'!$U$2:$U$1000=Costs!$A405)*(AbschreibungAHKBvD))","v":0}]
[2067,66666.666666665929,{"$f":"SUM(C$178:C229)-SUM(C$266:C317)+SUMPRODUCT((Aktivierungsjahr=Costs!$A406)*(AbschreibungAGr=Costs!C$353)*('Fixed assets'!$U$2:$U$1000=Costs!$A406)*(AbschreibungAHKBvD))","v":0},{"$f":"SUM(D$178:D229)-SUM(D$266:D317)+SUMPRODUCT((Aktivierungsjahr=Costs!$A406)*(AbschreibungAGr=Costs!D$353)*('Fixed assets'!$U$2:$U$1000=Costs!$A406)*(AbschreibungAHKBvD))","v":0},{"$f":"SUM(E$178:E229)-SUM(E$266:E317)+SUMPRODUCT((Aktivierungsjahr=Costs!$A406)*(AbschreibungAGr=Costs!E$353)*('Fixed assets'!$U$2:$U$1000=Costs!$A406)*(AbschreibungAHKBvD))","v":0},{"$f":"SUM(F$178:F229)-SUM(F$266:F317)+SUMPRODUCT((Aktivierungsjahr=Costs!$A406)*(AbschreibungAGr=Costs!F$353)*('Fixed assets'!$U$2:$U$1000=Costs!$A406)*(AbschreibungAHKBvD))","v":0},{"$f":"SUM(G$178:G229)-SUM(G$266:G317)+SUMPRODUCT((Aktivierungsjahr=Costs!$A406)*(AbschreibungAGr=Costs!G$353)*('Fixed assets'!$U$2:$U$1000=Costs!$A406)*(AbschreibungAHKBvD))","v":0},{"$f":"SUM(H$178:H229)-SUM(H$266:H317)+SUMPRODUCT((Aktivierungsjahr=Costs!$A406)*(AbschreibungAGr=Costs!H$353)*('Fixed assets'!$U$2:$U$1000=Costs!$A406)*(AbschreibungAHKBvD))","v":0},{"$f":"SUM(I$178:I229)-SUM(I$266:I317)+SUMPRODUCT((Aktivierungsjahr=Costs!$A406)*(AbschreibungAGr=Costs!I$353)*('Fixed assets'!$U$2:$U$1000=Costs!$A406)*(AbschreibungAHKBvD))","v":0},{"$f":"SUM(J$178:J229)-SUM(J$266:J317)+SUMPRODUCT((Aktivierungsjahr=Costs!$A406)*(AbschreibungAGr=Costs!J$353)*('Fixed assets'!$U$2:$U$1000=Costs!$A406)*(AbschreibungAHKBvD))","v":0},{"$f":"SUM(K$178:K229)-SUM(K$266:K317)+SUMPRODUCT((Aktivierungsjahr=Costs!$A406)*(AbschreibungAGr=Costs!K$353)*('Fixed assets'!$U$2:$U$1000=Costs!$A406)*(AbschreibungAHKBvD))","v":0},{"$f":"SUM(L$178:L229)-SUM(L$266:L317)+SUMPRODUCT((Aktivierungsjahr=Costs!$A406)*(AbschreibungAGr=Costs!L$353)*('Fixed assets'!$U$2:$U$1000=Costs!$A406)*(AbschreibungAHKBvD))","v":0},{"$f":"SUM(M$178:M229)-SUM(M$266:M317)+SUMPRODUCT((Aktivierungsjahr=Costs!$A406)*(AbschreibungAGr=Costs!M$353)*('Fixed assets'!$U$2:$U$1000=Costs!$A406)*(AbschreibungAHKBvD))","v":0},{"$f":"SUM(N$178:N229)-SUM(N$266:N317)+SUMPRODUCT((Aktivierungsjahr=Costs!$A406)*(AbschreibungAGr=Costs!N$353)*('Fixed assets'!$U$2:$U$1000=Costs!$A406)*(AbschreibungAHKBvD))","v":0},{"$f":"SUM(O$178:O229)-SUM(O$266:O317)+SUMPRODUCT((Aktivierungsjahr=Costs!$A406)*(AbschreibungAGr=Costs!O$353)*('Fixed assets'!$U$2:$U$1000=Costs!$A406)*(AbschreibungAHKBvD))","v":0},{"$f":"SUM(P$178:P229)-SUM(P$266:P317)+SUMPRODUCT((Aktivierungsjahr=Costs!$A406)*(AbschreibungAGr=Costs!P$353)*('Fixed assets'!$U$2:$U$1000=Costs!$A406)*(AbschreibungAHKBvD))","v":0},{"$f":"SUM(Q$178:Q229)-SUM(Q$266:Q317)+SUMPRODUCT((Aktivierungsjahr=Costs!$A406)*(AbschreibungAGr=Costs!Q$353)*('Fixed assets'!$U$2:$U$1000=Costs!$A406)*(AbschreibungAHKBvD))","v":0},{"$f":"SUM(R$178:R229)-SUM(R$266:R317)+SUMPRODUCT((Aktivierungsjahr=Costs!$A406)*(AbschreibungAGr=Costs!R$353)*('Fixed assets'!$U$2:$U$1000=Costs!$A406)*(AbschreibungAHKBvD))","v":0},{"$f":"SUM(S$178:S229)-SUM(S$266:S317)+SUMPRODUCT((Aktivierungsjahr=Costs!$A406)*(AbschreibungAGr=Costs!S$353)*('Fixed assets'!$U$2:$U$1000=Costs!$A406)*(AbschreibungAHKBvD))","v":0},{"$f":"SUM(T$178:T229)-SUM(T$266:T317)+SUMPRODUCT((Aktivierungsjahr=Costs!$A406)*(AbschreibungAGr=Costs!T$353)*('Fixed assets'!$U$2:$U$1000=Costs!$A406)*(AbschreibungAHKBvD))","v":0},{"$f":"SUM(U$178:U229)-SUM(U$266:U317)+SUMPRODUCT((Aktivierungsjahr=Costs!$A406)*(AbschreibungAGr=Costs!U$353)*('Fixed assets'!$U$2:$U$1000=Costs!$A406)*(AbschreibungAHKBvD))","v":0},{"$f":"SUM(V$178:V229)-SUM(V$266:V317)+SUMPRODUCT((Aktivierungsjahr=Costs!$A406)*(AbschreibungAGr=Costs!V$353)*('Fixed assets'!$U$2:$U$1000=Costs!$A406)*(AbschreibungAHKBvD))","v":0},{"$f":"SUM(W$178:W229)-SUM(W$266:W317)+SUMPRODUCT((Aktivierungsjahr=Costs!$A406)*(AbschreibungAGr=Costs!W$353)*('Fixed assets'!$U$2:$U$1000=Costs!$A406)*(AbschreibungAHKBvD))","v":0},{"$f":"SUM(X$178:X229)-SUM(X$266:X317)+SUMPRODUCT((Aktivierungsjahr=Costs!$A406)*(AbschreibungAGr=Costs!X$353)*('Fixed assets'!$U$2:$U$1000=Costs!$A406)*(AbschreibungAHKBvD))","v":0},{"$f":"SUM(Y$178:Y229)-SUM(Y$266:Y317)+SUMPRODUCT((Aktivierungsjahr=Costs!$A406)*(AbschreibungAGr=Costs!Y$353)*('Fixed assets'!$U$2:$U$1000=Costs!$A406)*(AbschreibungAHKBvD))","v":0},{"$f":"SUM(Z$178:Z229)-SUM(Z$266:Z317)+SUMPRODUCT((Aktivierungsjahr=Costs!$A406)*(AbschreibungAGr=Costs!Z$353)*('Fixed assets'!$U$2:$U$1000=Costs!$A406)*(AbschreibungAHKBvD))","v":0},{"$f":"SUM(AA$178:AA229)-SUM(AA$266:AA317)+SUMPRODUCT((Aktivierungsjahr=Costs!$A406)*(AbschreibungAGr=Costs!AA$353)*('Fixed assets'!$U$2:$U$1000=Costs!$A406)*(AbschreibungAHKBvD))","v":0},{"$f":"SUM(AB$178:AB229)-SUM(AB$266:AB317)+SUMPRODUCT((Aktivierungsjahr=Costs!$A406)*(AbschreibungAGr=Costs!AB$353)*('Fixed assets'!$U$2:$U$1000=Costs!$A406)*(AbschreibungAHKBvD))","v":0},{"$f":"SUM(AC$178:AC229)-SUM(AC$266:AC317)+SUMPRODUCT((Aktivierungsjahr=Costs!$A406)*(AbschreibungAGr=Costs!AC$353)*('Fixed assets'!$U$2:$U$1000=Costs!$A406)*(AbschreibungAHKBvD))","v":0},{"$f":"SUM(AD$178:AD229)-SUM(AD$266:AD317)+SUMPRODUCT((Aktivierungsjahr=Costs!$A406)*(AbschreibungAGr=Costs!AD$353)*('Fixed assets'!$U$2:$U$1000=Costs!$A406)*(AbschreibungAHKBvD))","v":0},{"$f":"SUM(AE$178:AE229)-SUM(AE$266:AE317)+SUMPRODUCT((Aktivierungsjahr=Costs!$A406)*(AbschreibungAGr=Costs!AE$353)*('Fixed assets'!$U$2:$U$1000=Costs!$A406)*(AbschreibungAHKBvD))","v":0},{"$f":"SUM(AF$178:AF229)-SUM(AF$266:AF317)+SUMPRODUCT((Aktivierungsjahr=Costs!$A406)*(AbschreibungAGr=Costs!AF$353)*('Fixed assets'!$U$2:$U$1000=Costs!$A406)*(AbschreibungAHKBvD))","v":0},{"$f":"SUM(AG$178:AG229)-SUM(AG$266:AG317)+SUMPRODUCT((Aktivierungsjahr=Costs!$A406)*(AbschreibungAGr=Costs!AG$353)*('Fixed assets'!$U$2:$U$1000=Costs!$A406)*(AbschreibungAHKBvD))","v":0},{"$f":"SUM(AH$178:AH229)-SUM(AH$266:AH317)+SUMPRODUCT((Aktivierungsjahr=Costs!$A406)*(AbschreibungAGr=Costs!AH$353)*('Fixed assets'!$U$2:$U$1000=Costs!$A406)*(AbschreibungAHKBvD))","v":0},{"$f":"SUM(AI$178:AI229)-SUM(AI$266:AI317)+SUMPRODUCT((Aktivierungsjahr=Costs!$A406)*(AbschreibungAGr=Costs!AI$353)*('Fixed assets'!$U$2:$U$1000=Costs!$A406)*(AbschreibungAHKBvD))","v":0},{"$f":"SUM(AJ$178:AJ229)-SUM(AJ$266:AJ317)+SUMPRODUCT((Aktivierungsjahr=Costs!$A406)*(AbschreibungAGr=Costs!AJ$353)*('Fixed assets'!$U$2:$U$1000=Costs!$A406)*(AbschreibungAHKBvD))","v":66666.666666665929},{"$f":"SUM(AK$178:AK229)-SUM(AK$266:AK317)+SUMPRODUCT((Aktivierungsjahr=Costs!$A406)*(AbschreibungAGr=Costs!AK$353)*('Fixed assets'!$U$2:$U$1000=Costs!$A406)*(AbschreibungAHKBvD))","v":0},{"$f":"SUM(AL$178:AL229)-SUM(AL$266:AL317)+SUMPRODUCT((Aktivierungsjahr=Costs!$A406)*(AbschreibungAGr=Costs!AL$353)*('Fixed assets'!$U$2:$U$1000=Costs!$A406)*(AbschreibungAHKBvD))","v":0},{"$f":"SUM(AM$178:AM229)-SUM(AM$266:AM317)+SUMPRODUCT((Aktivierungsjahr=Costs!$A406)*(AbschreibungAGr=Costs!AM$353)*('Fixed assets'!$U$2:$U$1000=Costs!$A406)*(AbschreibungAHKBvD))","v":0},{"$f":"SUM(AN$178:AN229)-SUM(AN$266:AN317)+SUMPRODUCT((Aktivierungsjahr=Costs!$A406)*(AbschreibungAGr=Costs!AN$353)*('Fixed assets'!$U$2:$U$1000=Costs!$A406)*(AbschreibungAHKBvD))","v":0},{"$f":"SUM(AO$178:AO229)-SUM(AO$266:AO317)+SUMPRODUCT((Aktivierungsjahr=Costs!$A406)*(AbschreibungAGr=Costs!AO$353)*('Fixed assets'!$U$2:$U$1000=Costs!$A406)*(AbschreibungAHKBvD))","v":0},{"$f":"SUM(AP$178:AP229)-SUM(AP$266:AP317)+SUMPRODUCT((Aktivierungsjahr=Costs!$A406)*(AbschreibungAGr=Costs!AP$353)*('Fixed assets'!$U$2:$U$1000=Costs!$A406)*(AbschreibungAHKBvD))","v":0},{"$f":"SUM(AQ$178:AQ229)-SUM(AQ$266:AQ317)+SUMPRODUCT((Aktivierungsjahr=Costs!$A406)*(AbschreibungAGr=Costs!AQ$353)*('Fixed assets'!$U$2:$U$1000=Costs!$A406)*(AbschreibungAHKBvD))","v":0}]
[2068,44444.444444443681,{"$f":"SUM(C$178:C230)-SUM(C$266:C318)+SUMPRODUCT((Aktivierungsjahr=Costs!$A407)*(AbschreibungAGr=Costs!C$353)*('Fixed assets'!$U$2:$U$1000=Costs!$A407)*(AbschreibungAHKBvD))","v":0},{"$f":"SUM(D$178:D230)-SUM(D$266:D318)+SUMPRODUCT((Aktivierungsjahr=Costs!$A407)*(AbschreibungAGr=Costs!D$353)*('Fixed assets'!$U$2:$U$1000=Costs!$A407)*(AbschreibungAHKBvD))","v":0},{"$f":"SUM(E$178:E230)-SUM(E$266:E318)+SUMPRODUCT((Aktivierungsjahr=Costs!$A407)*(AbschreibungAGr=Costs!E$353)*('Fixed assets'!$U$2:$U$1000=Costs!$A407)*(AbschreibungAHKBvD))","v":0},{"$f":"SUM(F$178:F230)-SUM(F$266:F318)+SUMPRODUCT((Aktivierungsjahr=Costs!$A407)*(AbschreibungAGr=Costs!F$353)*('Fixed assets'!$U$2:$U$1000=Costs!$A407)*(AbschreibungAHKBvD))","v":0},{"$f":"SUM(G$178:G230)-SUM(G$266:G318)+SUMPRODUCT((Aktivierungsjahr=Costs!$A407)*(AbschreibungAGr=Costs!G$353)*('Fixed assets'!$U$2:$U$1000=Costs!$A407)*(AbschreibungAHKBvD))","v":0},{"$f":"SUM(H$178:H230)-SUM(H$266:H318)+SUMPRODUCT((Aktivierungsjahr=Costs!$A407)*(AbschreibungAGr=Costs!H$353)*('Fixed assets'!$U$2:$U$1000=Costs!$A407)*(AbschreibungAHKBvD))","v":0},{"$f":"SUM(I$178:I230)-SUM(I$266:I318)+SUMPRODUCT((Aktivierungsjahr=Costs!$A407)*(AbschreibungAGr=Costs!I$353)*('Fixed assets'!$U$2:$U$1000=Costs!$A407)*(AbschreibungAHKBvD))","v":0},{"$f":"SUM(J$178:J230)-SUM(J$266:J318)+SUMPRODUCT((Aktivierungsjahr=Costs!$A407)*(AbschreibungAGr=Costs!J$353)*('Fixed assets'!$U$2:$U$1000=Costs!$A407)*(AbschreibungAHKBvD))","v":0},{"$f":"SUM(K$178:K230)-SUM(K$266:K318)+SUMPRODUCT((Aktivierungsjahr=Costs!$A407)*(AbschreibungAGr=Costs!K$353)*('Fixed assets'!$U$2:$U$1000=Costs!$A407)*(AbschreibungAHKBvD))","v":0},{"$f":"SUM(L$178:L230)-SUM(L$266:L318)+SUMPRODUCT((Aktivierungsjahr=Costs!$A407)*(AbschreibungAGr=Costs!L$353)*('Fixed assets'!$U$2:$U$1000=Costs!$A407)*(AbschreibungAHKBvD))","v":0},{"$f":"SUM(M$178:M230)-SUM(M$266:M318)+SUMPRODUCT((Aktivierungsjahr=Costs!$A407)*(AbschreibungAGr=Costs!M$353)*('Fixed assets'!$U$2:$U$1000=Costs!$A407)*(AbschreibungAHKBvD))","v":0},{"$f":"SUM(N$178:N230)-SUM(N$266:N318)+SUMPRODUCT((Aktivierungsjahr=Costs!$A407)*(AbschreibungAGr=Costs!N$353)*('Fixed assets'!$U$2:$U$1000=Costs!$A407)*(AbschreibungAHKBvD))","v":0},{"$f":"SUM(O$178:O230)-SUM(O$266:O318)+SUMPRODUCT((Aktivierungsjahr=Costs!$A407)*(AbschreibungAGr=Costs!O$353)*('Fixed assets'!$U$2:$U$1000=Costs!$A407)*(AbschreibungAHKBvD))","v":0},{"$f":"SUM(P$178:P230)-SUM(P$266:P318)+SUMPRODUCT((Aktivierungsjahr=Costs!$A407)*(AbschreibungAGr=Costs!P$353)*('Fixed assets'!$U$2:$U$1000=Costs!$A407)*(AbschreibungAHKBvD))","v":0},{"$f":"SUM(Q$178:Q230)-SUM(Q$266:Q318)+SUMPRODUCT((Aktivierungsjahr=Costs!$A407)*(AbschreibungAGr=Costs!Q$353)*('Fixed assets'!$U$2:$U$1000=Costs!$A407)*(AbschreibungAHKBvD))","v":0},{"$f":"SUM(R$178:R230)-SUM(R$266:R318)+SUMPRODUCT((Aktivierungsjahr=Costs!$A407)*(AbschreibungAGr=Costs!R$353)*('Fixed assets'!$U$2:$U$1000=Costs!$A407)*(AbschreibungAHKBvD))","v":0},{"$f":"SUM(S$178:S230)-SUM(S$266:S318)+SUMPRODUCT((Aktivierungsjahr=Costs!$A407)*(AbschreibungAGr=Costs!S$353)*('Fixed assets'!$U$2:$U$1000=Costs!$A407)*(AbschreibungAHKBvD))","v":0},{"$f":"SUM(T$178:T230)-SUM(T$266:T318)+SUMPRODUCT((Aktivierungsjahr=Costs!$A407)*(AbschreibungAGr=Costs!T$353)*('Fixed assets'!$U$2:$U$1000=Costs!$A407)*(AbschreibungAHKBvD))","v":0},{"$f":"SUM(U$178:U230)-SUM(U$266:U318)+SUMPRODUCT((Aktivierungsjahr=Costs!$A407)*(AbschreibungAGr=Costs!U$353)*('Fixed assets'!$U$2:$U$1000=Costs!$A407)*(AbschreibungAHKBvD))","v":0},{"$f":"SUM(V$178:V230)-SUM(V$266:V318)+SUMPRODUCT((Aktivierungsjahr=Costs!$A407)*(AbschreibungAGr=Costs!V$353)*('Fixed assets'!$U$2:$U$1000=Costs!$A407)*(AbschreibungAHKBvD))","v":0},{"$f":"SUM(W$178:W230)-SUM(W$266:W318)+SUMPRODUCT((Aktivierungsjahr=Costs!$A407)*(AbschreibungAGr=Costs!W$353)*('Fixed assets'!$U$2:$U$1000=Costs!$A407)*(AbschreibungAHKBvD))","v":0},{"$f":"SUM(X$178:X230)-SUM(X$266:X318)+SUMPRODUCT((Aktivierungsjahr=Costs!$A407)*(AbschreibungAGr=Costs!X$353)*('Fixed assets'!$U$2:$U$1000=Costs!$A407)*(AbschreibungAHKBvD))","v":0},{"$f":"SUM(Y$178:Y230)-SUM(Y$266:Y318)+SUMPRODUCT((Aktivierungsjahr=Costs!$A407)*(AbschreibungAGr=Costs!Y$353)*('Fixed assets'!$U$2:$U$1000=Costs!$A407)*(AbschreibungAHKBvD))","v":0},{"$f":"SUM(Z$178:Z230)-SUM(Z$266:Z318)+SUMPRODUCT((Aktivierungsjahr=Costs!$A407)*(AbschreibungAGr=Costs!Z$353)*('Fixed assets'!$U$2:$U$1000=Costs!$A407)*(AbschreibungAHKBvD))","v":0},{"$f":"SUM(AA$178:AA230)-SUM(AA$266:AA318)+SUMPRODUCT((Aktivierungsjahr=Costs!$A407)*(AbschreibungAGr=Costs!AA$353)*('Fixed assets'!$U$2:$U$1000=Costs!$A407)*(AbschreibungAHKBvD))","v":0},{"$f":"SUM(AB$178:AB230)-SUM(AB$266:AB318)+SUMPRODUCT((Aktivierungsjahr=Costs!$A407)*(AbschreibungAGr=Costs!AB$353)*('Fixed assets'!$U$2:$U$1000=Costs!$A407)*(AbschreibungAHKBvD))","v":0},{"$f":"SUM(AC$178:AC230)-SUM(AC$266:AC318)+SUMPRODUCT((Aktivierungsjahr=Costs!$A407)*(AbschreibungAGr=Costs!AC$353)*('Fixed assets'!$U$2:$U$1000=Costs!$A407)*(AbschreibungAHKBvD))","v":0},{"$f":"SUM(AD$178:AD230)-SUM(AD$266:AD318)+SUMPRODUCT((Aktivierungsjahr=Costs!$A407)*(AbschreibungAGr=Costs!AD$353)*('Fixed assets'!$U$2:$U$1000=Costs!$A407)*(AbschreibungAHKBvD))","v":0},{"$f":"SUM(AE$178:AE230)-SUM(AE$266:AE318)+SUMPRODUCT((Aktivierungsjahr=Costs!$A407)*(AbschreibungAGr=Costs!AE$353)*('Fixed assets'!$U$2:$U$1000=Costs!$A407)*(AbschreibungAHKBvD))","v":0},{"$f":"SUM(AF$178:AF230)-SUM(AF$266:AF318)+SUMPRODUCT((Aktivierungsjahr=Costs!$A407)*(AbschreibungAGr=Costs!AF$353)*('Fixed assets'!$U$2:$U$1000=Costs!$A407)*(AbschreibungAHKBvD))","v":0},{"$f":"SUM(AG$178:AG230)-SUM(AG$266:AG318)+SUMPRODUCT((Aktivierungsjahr=Costs!$A407)*(AbschreibungAGr=Costs!AG$353)*('Fixed assets'!$U$2:$U$1000=Costs!$A407)*(AbschreibungAHKBvD))","v":0},{"$f":"SUM(AH$178:AH230)-SUM(AH$266:AH318)+SUMPRODUCT((Aktivierungsjahr=Costs!$A407)*(AbschreibungAGr=Costs!AH$353)*('Fixed assets'!$U$2:$U$1000=Costs!$A407)*(AbschreibungAHKBvD))","v":0},{"$f":"SUM(AI$178:AI230)-SUM(AI$266:AI318)+SUMPRODUCT((Aktivierungsjahr=Costs!$A407)*(AbschreibungAGr=Costs!AI$353)*('Fixed assets'!$U$2:$U$1000=Costs!$A407)*(AbschreibungAHKBvD))","v":0},{"$f":"SUM(AJ$178:AJ230)-SUM(AJ$266:AJ318)+SUMPRODUCT((Aktivierungsjahr=Costs!$A407)*(AbschreibungAGr=Costs!AJ$353)*('Fixed assets'!$U$2:$U$1000=Costs!$A407)*(AbschreibungAHKBvD))","v":44444.444444443681},{"$f":"SUM(AK$178:AK230)-SUM(AK$266:AK318)+SUMPRODUCT((Aktivierungsjahr=Costs!$A407)*(AbschreibungAGr=Costs!AK$353)*('Fixed assets'!$U$2:$U$1000=Costs!$A407)*(AbschreibungAHKBvD))","v":0},{"$f":"SUM(AL$178:AL230)-SUM(AL$266:AL318)+SUMPRODUCT((Aktivierungsjahr=Costs!$A407)*(AbschreibungAGr=Costs!AL$353)*('Fixed assets'!$U$2:$U$1000=Costs!$A407)*(AbschreibungAHKBvD))","v":0},{"$f":"SUM(AM$178:AM230)-SUM(AM$266:AM318)+SUMPRODUCT((Aktivierungsjahr=Costs!$A407)*(AbschreibungAGr=Costs!AM$353)*('Fixed assets'!$U$2:$U$1000=Costs!$A407)*(AbschreibungAHKBvD))","v":0},{"$f":"SUM(AN$178:AN230)-SUM(AN$266:AN318)+SUMPRODUCT((Aktivierungsjahr=Costs!$A407)*(AbschreibungAGr=Costs!AN$353)*('Fixed assets'!$U$2:$U$1000=Costs!$A407)*(AbschreibungAHKBvD))","v":0},{"$f":"SUM(AO$178:AO230)-SUM(AO$266:AO318)+SUMPRODUCT((Aktivierungsjahr=Costs!$A407)*(AbschreibungAGr=Costs!AO$353)*('Fixed assets'!$U$2:$U$1000=Costs!$A407)*(AbschreibungAHKBvD))","v":0},{"$f":"SUM(AP$178:AP230)-SUM(AP$266:AP318)+SUMPRODUCT((Aktivierungsjahr=Costs!$A407)*(AbschreibungAGr=Costs!AP$353)*('Fixed assets'!$U$2:$U$1000=Costs!$A407)*(AbschreibungAHKBvD))","v":0},{"$f":"SUM(AQ$178:AQ230)-SUM(AQ$266:AQ318)+SUMPRODUCT((Aktivierungsjahr=Costs!$A407)*(AbschreibungAGr=Costs!AQ$353)*('Fixed assets'!$U$2:$U$1000=Costs!$A407)*(AbschreibungAHKBvD))","v":0}]
[2069,22222.222222221433,{"$f":"SUM(C$178:C231)-SUM(C$266:C319)+SUMPRODUCT((Aktivierungsjahr=Costs!$A408)*(AbschreibungAGr=Costs!C$353)*('Fixed assets'!$U$2:$U$1000=Costs!$A408)*(AbschreibungAHKBvD))","v":0},{"$f":"SUM(D$178:D231)-SUM(D$266:D319)+SUMPRODUCT((Aktivierungsjahr=Costs!$A408)*(AbschreibungAGr=Costs!D$353)*('Fixed assets'!$U$2:$U$1000=Costs!$A408)*(AbschreibungAHKBvD))","v":0},{"$f":"SUM(E$178:E231)-SUM(E$266:E319)+SUMPRODUCT((Aktivierungsjahr=Costs!$A408)*(AbschreibungAGr=Costs!E$353)*('Fixed assets'!$U$2:$U$1000=Costs!$A408)*(AbschreibungAHKBvD))","v":0},{"$f":"SUM(F$178:F231)-SUM(F$266:F319)+SUMPRODUCT((Aktivierungsjahr=Costs!$A408)*(AbschreibungAGr=Costs!F$353)*('Fixed assets'!$U$2:$U$1000=Costs!$A408)*(AbschreibungAHKBvD))","v":0},{"$f":"SUM(G$178:G231)-SUM(G$266:G319)+SUMPRODUCT((Aktivierungsjahr=Costs!$A408)*(AbschreibungAGr=Costs!G$353)*('Fixed assets'!$U$2:$U$1000=Costs!$A408)*(AbschreibungAHKBvD))","v":0},{"$f":"SUM(H$178:H231)-SUM(H$266:H319)+SUMPRODUCT((Aktivierungsjahr=Costs!$A408)*(AbschreibungAGr=Costs!H$353)*('Fixed assets'!$U$2:$U$1000=Costs!$A408)*(AbschreibungAHKBvD))","v":0},{"$f":"SUM(I$178:I231)-SUM(I$266:I319)+SUMPRODUCT((Aktivierungsjahr=Costs!$A408)*(AbschreibungAGr=Costs!I$353)*('Fixed assets'!$U$2:$U$1000=Costs!$A408)*(AbschreibungAHKBvD))","v":0},{"$f":"SUM(J$178:J231)-SUM(J$266:J319)+SUMPRODUCT((Aktivierungsjahr=Costs!$A408)*(AbschreibungAGr=Costs!J$353)*('Fixed assets'!$U$2:$U$1000=Costs!$A408)*(AbschreibungAHKBvD))","v":0},{"$f":"SUM(K$178:K231)-SUM(K$266:K319)+SUMPRODUCT((Aktivierungsjahr=Costs!$A408)*(AbschreibungAGr=Costs!K$353)*('Fixed assets'!$U$2:$U$1000=Costs!$A408)*(AbschreibungAHKBvD))","v":0},{"$f":"SUM(L$178:L231)-SUM(L$266:L319)+SUMPRODUCT((Aktivierungsjahr=Costs!$A408)*(AbschreibungAGr=Costs!L$353)*('Fixed assets'!$U$2:$U$1000=Costs!$A408)*(AbschreibungAHKBvD))","v":0},{"$f":"SUM(M$178:M231)-SUM(M$266:M319)+SUMPRODUCT((Aktivierungsjahr=Costs!$A408)*(AbschreibungAGr=Costs!M$353)*('Fixed assets'!$U$2:$U$1000=Costs!$A408)*(AbschreibungAHKBvD))","v":0},{"$f":"SUM(N$178:N231)-SUM(N$266:N319)+SUMPRODUCT((Aktivierungsjahr=Costs!$A408)*(AbschreibungAGr=Costs!N$353)*('Fixed assets'!$U$2:$U$1000=Costs!$A408)*(AbschreibungAHKBvD))","v":0},{"$f":"SUM(O$178:O231)-SUM(O$266:O319)+SUMPRODUCT((Aktivierungsjahr=Costs!$A408)*(AbschreibungAGr=Costs!O$353)*('Fixed assets'!$U$2:$U$1000=Costs!$A408)*(AbschreibungAHKBvD))","v":0},{"$f":"SUM(P$178:P231)-SUM(P$266:P319)+SUMPRODUCT((Aktivierungsjahr=Costs!$A408)*(AbschreibungAGr=Costs!P$353)*('Fixed assets'!$U$2:$U$1000=Costs!$A408)*(AbschreibungAHKBvD))","v":0},{"$f":"SUM(Q$178:Q231)-SUM(Q$266:Q319)+SUMPRODUCT((Aktivierungsjahr=Costs!$A408)*(AbschreibungAGr=Costs!Q$353)*('Fixed assets'!$U$2:$U$1000=Costs!$A408)*(AbschreibungAHKBvD))","v":0},{"$f":"SUM(R$178:R231)-SUM(R$266:R319)+SUMPRODUCT((Aktivierungsjahr=Costs!$A408)*(AbschreibungAGr=Costs!R$353)*('Fixed assets'!$U$2:$U$1000=Costs!$A408)*(AbschreibungAHKBvD))","v":0},{"$f":"SUM(S$178:S231)-SUM(S$266:S319)+SUMPRODUCT((Aktivierungsjahr=Costs!$A408)*(AbschreibungAGr=Costs!S$353)*('Fixed assets'!$U$2:$U$1000=Costs!$A408)*(AbschreibungAHKBvD))","v":0},{"$f":"SUM(T$178:T231)-SUM(T$266:T319)+SUMPRODUCT((Aktivierungsjahr=Costs!$A408)*(AbschreibungAGr=Costs!T$353)*('Fixed assets'!$U$2:$U$1000=Costs!$A408)*(AbschreibungAHKBvD))","v":0},{"$f":"SUM(U$178:U231)-SUM(U$266:U319)+SUMPRODUCT((Aktivierungsjahr=Costs!$A408)*(AbschreibungAGr=Costs!U$353)*('Fixed assets'!$U$2:$U$1000=Costs!$A408)*(AbschreibungAHKBvD))","v":0},{"$f":"SUM(V$178:V231)-SUM(V$266:V319)+SUMPRODUCT((Aktivierungsjahr=Costs!$A408)*(AbschreibungAGr=Costs!V$353)*('Fixed assets'!$U$2:$U$1000=Costs!$A408)*(AbschreibungAHKBvD))","v":0},{"$f":"SUM(W$178:W231)-SUM(W$266:W319)+SUMPRODUCT((Aktivierungsjahr=Costs!$A408)*(AbschreibungAGr=Costs!W$353)*('Fixed assets'!$U$2:$U$1000=Costs!$A408)*(AbschreibungAHKBvD))","v":0},{"$f":"SUM(X$178:X231)-SUM(X$266:X319)+SUMPRODUCT((Aktivierungsjahr=Costs!$A408)*(AbschreibungAGr=Costs!X$353)*('Fixed assets'!$U$2:$U$1000=Costs!$A408)*(AbschreibungAHKBvD))","v":0},{"$f":"SUM(Y$178:Y231)-SUM(Y$266:Y319)+SUMPRODUCT((Aktivierungsjahr=Costs!$A408)*(AbschreibungAGr=Costs!Y$353)*('Fixed assets'!$U$2:$U$1000=Costs!$A408)*(AbschreibungAHKBvD))","v":0},{"$f":"SUM(Z$178:Z231)-SUM(Z$266:Z319)+SUMPRODUCT((Aktivierungsjahr=Costs!$A408)*(AbschreibungAGr=Costs!Z$353)*('Fixed assets'!$U$2:$U$1000=Costs!$A408)*(AbschreibungAHKBvD))","v":0},{"$f":"SUM(AA$178:AA231)-SUM(AA$266:AA319)+SUMPRODUCT((Aktivierungsjahr=Costs!$A408)*(AbschreibungAGr=Costs!AA$353)*('Fixed assets'!$U$2:$U$1000=Costs!$A408)*(AbschreibungAHKBvD))","v":0},{"$f":"SUM(AB$178:AB231)-SUM(AB$266:AB319)+SUMPRODUCT((Aktivierungsjahr=Costs!$A408)*(AbschreibungAGr=Costs!AB$353)*('Fixed assets'!$U$2:$U$1000=Costs!$A408)*(AbschreibungAHKBvD))","v":0},{"$f":"SUM(AC$178:AC231)-SUM(AC$266:AC319)+SUMPRODUCT((Aktivierungsjahr=Costs!$A408)*(AbschreibungAGr=Costs!AC$353)*('Fixed assets'!$U$2:$U$1000=Costs!$A408)*(AbschreibungAHKBvD))","v":0},{"$f":"SUM(AD$178:AD231)-SUM(AD$266:AD319)+SUMPRODUCT((Aktivierungsjahr=Costs!$A408)*(AbschreibungAGr=Costs!AD$353)*('Fixed assets'!$U$2:$U$1000=Costs!$A408)*(AbschreibungAHKBvD))","v":0},{"$f":"SUM(AE$178:AE231)-SUM(AE$266:AE319)+SUMPRODUCT((Aktivierungsjahr=Costs!$A408)*(AbschreibungAGr=Costs!AE$353)*('Fixed assets'!$U$2:$U$1000=Costs!$A408)*(AbschreibungAHKBvD))","v":0},{"$f":"SUM(AF$178:AF231)-SUM(AF$266:AF319)+SUMPRODUCT((Aktivierungsjahr=Costs!$A408)*(AbschreibungAGr=Costs!AF$353)*('Fixed assets'!$U$2:$U$1000=Costs!$A408)*(AbschreibungAHKBvD))","v":0},{"$f":"SUM(AG$178:AG231)-SUM(AG$266:AG319)+SUMPRODUCT((Aktivierungsjahr=Costs!$A408)*(AbschreibungAGr=Costs!AG$353)*('Fixed assets'!$U$2:$U$1000=Costs!$A408)*(AbschreibungAHKBvD))","v":0},{"$f":"SUM(AH$178:AH231)-SUM(AH$266:AH319)+SUMPRODUCT((Aktivierungsjahr=Costs!$A408)*(AbschreibungAGr=Costs!AH$353)*('Fixed assets'!$U$2:$U$1000=Costs!$A408)*(AbschreibungAHKBvD))","v":0},{"$f":"SUM(AI$178:AI231)-SUM(AI$266:AI319)+SUMPRODUCT((Aktivierungsjahr=Costs!$A408)*(AbschreibungAGr=Costs!AI$353)*('Fixed assets'!$U$2:$U$1000=Costs!$A408)*(AbschreibungAHKBvD))","v":0},{"$f":"SUM(AJ$178:AJ231)-SUM(AJ$266:AJ319)+SUMPRODUCT((Aktivierungsjahr=Costs!$A408)*(AbschreibungAGr=Costs!AJ$353)*('Fixed assets'!$U$2:$U$1000=Costs!$A408)*(AbschreibungAHKBvD))","v":22222.222222221433},{"$f":"SUM(AK$178:AK231)-SUM(AK$266:AK319)+SUMPRODUCT((Aktivierungsjahr=Costs!$A408)*(AbschreibungAGr=Costs!AK$353)*('Fixed assets'!$U$2:$U$1000=Costs!$A408)*(AbschreibungAHKBvD))","v":0},{"$f":"SUM(AL$178:AL231)-SUM(AL$266:AL319)+SUMPRODUCT((Aktivierungsjahr=Costs!$A408)*(AbschreibungAGr=Costs!AL$353)*('Fixed assets'!$U$2:$U$1000=Costs!$A408)*(AbschreibungAHKBvD))","v":0},{"$f":"SUM(AM$178:AM231)-SUM(AM$266:AM319)+SUMPRODUCT((Aktivierungsjahr=Costs!$A408)*(AbschreibungAGr=Costs!AM$353)*('Fixed assets'!$U$2:$U$1000=Costs!$A408)*(AbschreibungAHKBvD))","v":0},{"$f":"SUM(AN$178:AN231)-SUM(AN$266:AN319)+SUMPRODUCT((Aktivierungsjahr=Costs!$A408)*(AbschreibungAGr=Costs!AN$353)*('Fixed assets'!$U$2:$U$1000=Costs!$A408)*(AbschreibungAHKBvD))","v":0},{"$f":"SUM(AO$178:AO231)-SUM(AO$266:AO319)+SUMPRODUCT((Aktivierungsjahr=Costs!$A408)*(AbschreibungAGr=Costs!AO$353)*('Fixed assets'!$U$2:$U$1000=Costs!$A408)*(AbschreibungAHKBvD))","v":0},{"$f":"SUM(AP$178:AP231)-SUM(AP$266:AP319)+SUMPRODUCT((Aktivierungsjahr=Costs!$A408)*(AbschreibungAGr=Costs!AP$353)*('Fixed assets'!$U$2:$U$1000=Costs!$A408)*(AbschreibungAHKBvD))","v":0},{"$f":"SUM(AQ$178:AQ231)-SUM(AQ$266:AQ319)+SUMPRODUCT((Aktivierungsjahr=Costs!$A408)*(AbschreibungAGr=Costs!AQ$353)*('Fixed assets'!$U$2:$U$1000=Costs!$A408)*(AbschreibungAHKBvD))","v":0}]
[2070,-8.149072527885437E-10,{"$f":"SUM(C$178:C232)-SUM(C$266:C320)+SUMPRODUCT((Aktivierungsjahr=Costs!$A409)*(AbschreibungAGr=Costs!C$353)*('Fixed assets'!$U$2:$U$1000=Costs!$A409)*(AbschreibungAHKBvD))","v":0},{"$f":"SUM(D$178:D232)-SUM(D$266:D320)+SUMPRODUCT((Aktivierungsjahr=Costs!$A409)*(AbschreibungAGr=Costs!D$353)*('Fixed assets'!$U$2:$U$1000=Costs!$A409)*(AbschreibungAHKBvD))","v":0},{"$f":"SUM(E$178:E232)-SUM(E$266:E320)+SUMPRODUCT((Aktivierungsjahr=Costs!$A409)*(AbschreibungAGr=Costs!E$353)*('Fixed assets'!$U$2:$U$1000=Costs!$A409)*(AbschreibungAHKBvD))","v":0},{"$f":"SUM(F$178:F232)-SUM(F$266:F320)+SUMPRODUCT((Aktivierungsjahr=Costs!$A409)*(AbschreibungAGr=Costs!F$353)*('Fixed assets'!$U$2:$U$1000=Costs!$A409)*(AbschreibungAHKBvD))","v":0},{"$f":"SUM(G$178:G232)-SUM(G$266:G320)+SUMPRODUCT((Aktivierungsjahr=Costs!$A409)*(AbschreibungAGr=Costs!G$353)*('Fixed assets'!$U$2:$U$1000=Costs!$A409)*(AbschreibungAHKBvD))","v":0},{"$f":"SUM(H$178:H232)-SUM(H$266:H320)+SUMPRODUCT((Aktivierungsjahr=Costs!$A409)*(AbschreibungAGr=Costs!H$353)*('Fixed assets'!$U$2:$U$1000=Costs!$A409)*(AbschreibungAHKBvD))","v":0},{"$f":"SUM(I$178:I232)-SUM(I$266:I320)+SUMPRODUCT((Aktivierungsjahr=Costs!$A409)*(AbschreibungAGr=Costs!I$353)*('Fixed assets'!$U$2:$U$1000=Costs!$A409)*(AbschreibungAHKBvD))","v":0},{"$f":"SUM(J$178:J232)-SUM(J$266:J320)+SUMPRODUCT((Aktivierungsjahr=Costs!$A409)*(AbschreibungAGr=Costs!J$353)*('Fixed assets'!$U$2:$U$1000=Costs!$A409)*(AbschreibungAHKBvD))","v":0},{"$f":"SUM(K$178:K232)-SUM(K$266:K320)+SUMPRODUCT((Aktivierungsjahr=Costs!$A409)*(AbschreibungAGr=Costs!K$353)*('Fixed assets'!$U$2:$U$1000=Costs!$A409)*(AbschreibungAHKBvD))","v":0},{"$f":"SUM(L$178:L232)-SUM(L$266:L320)+SUMPRODUCT((Aktivierungsjahr=Costs!$A409)*(AbschreibungAGr=Costs!L$353)*('Fixed assets'!$U$2:$U$1000=Costs!$A409)*(AbschreibungAHKBvD))","v":0},{"$f":"SUM(M$178:M232)-SUM(M$266:M320)+SUMPRODUCT((Aktivierungsjahr=Costs!$A409)*(AbschreibungAGr=Costs!M$353)*('Fixed assets'!$U$2:$U$1000=Costs!$A409)*(AbschreibungAHKBvD))","v":0},{"$f":"SUM(N$178:N232)-SUM(N$266:N320)+SUMPRODUCT((Aktivierungsjahr=Costs!$A409)*(AbschreibungAGr=Costs!N$353)*('Fixed assets'!$U$2:$U$1000=Costs!$A409)*(AbschreibungAHKBvD))","v":0},{"$f":"SUM(O$178:O232)-SUM(O$266:O320)+SUMPRODUCT((Aktivierungsjahr=Costs!$A409)*(AbschreibungAGr=Costs!O$353)*('Fixed assets'!$U$2:$U$1000=Costs!$A409)*(AbschreibungAHKBvD))","v":0},{"$f":"SUM(P$178:P232)-SUM(P$266:P320)+SUMPRODUCT((Aktivierungsjahr=Costs!$A409)*(AbschreibungAGr=Costs!P$353)*('Fixed assets'!$U$2:$U$1000=Costs!$A409)*(AbschreibungAHKBvD))","v":0},{"$f":"SUM(Q$178:Q232)-SUM(Q$266:Q320)+SUMPRODUCT((Aktivierungsjahr=Costs!$A409)*(AbschreibungAGr=Costs!Q$353)*('Fixed assets'!$U$2:$U$1000=Costs!$A409)*(AbschreibungAHKBvD))","v":0},{"$f":"SUM(R$178:R232)-SUM(R$266:R320)+SUMPRODUCT((Aktivierungsjahr=Costs!$A409)*(AbschreibungAGr=Costs!R$353)*('Fixed assets'!$U$2:$U$1000=Costs!$A409)*(AbschreibungAHKBvD))","v":0},{"$f":"SUM(S$178:S232)-SUM(S$266:S320)+SUMPRODUCT((Aktivierungsjahr=Costs!$A409)*(AbschreibungAGr=Costs!S$353)*('Fixed assets'!$U$2:$U$1000=Costs!$A409)*(AbschreibungAHKBvD))","v":0},{"$f":"SUM(T$178:T232)-SUM(T$266:T320)+SUMPRODUCT((Aktivierungsjahr=Costs!$A409)*(AbschreibungAGr=Costs!T$353)*('Fixed assets'!$U$2:$U$1000=Costs!$A409)*(AbschreibungAHKBvD))","v":0},{"$f":"SUM(U$178:U232)-SUM(U$266:U320)+SUMPRODUCT((Aktivierungsjahr=Costs!$A409)*(AbschreibungAGr=Costs!U$353)*('Fixed assets'!$U$2:$U$1000=Costs!$A409)*(AbschreibungAHKBvD))","v":0},{"$f":"SUM(V$178:V232)-SUM(V$266:V320)+SUMPRODUCT((Aktivierungsjahr=Costs!$A409)*(AbschreibungAGr=Costs!V$353)*('Fixed assets'!$U$2:$U$1000=Costs!$A409)*(AbschreibungAHKBvD))","v":0},{"$f":"SUM(W$178:W232)-SUM(W$266:W320)+SUMPRODUCT((Aktivierungsjahr=Costs!$A409)*(AbschreibungAGr=Costs!W$353)*('Fixed assets'!$U$2:$U$1000=Costs!$A409)*(AbschreibungAHKBvD))","v":0},{"$f":"SUM(X$178:X232)-SUM(X$266:X320)+SUMPRODUCT((Aktivierungsjahr=Costs!$A409)*(AbschreibungAGr=Costs!X$353)*('Fixed assets'!$U$2:$U$1000=Costs!$A409)*(AbschreibungAHKBvD))","v":0},{"$f":"SUM(Y$178:Y232)-SUM(Y$266:Y320)+SUMPRODUCT((Aktivierungsjahr=Costs!$A409)*(AbschreibungAGr=Costs!Y$353)*('Fixed assets'!$U$2:$U$1000=Costs!$A409)*(AbschreibungAHKBvD))","v":0},{"$f":"SUM(Z$178:Z232)-SUM(Z$266:Z320)+SUMPRODUCT((Aktivierungsjahr=Costs!$A409)*(AbschreibungAGr=Costs!Z$353)*('Fixed assets'!$U$2:$U$1000=Costs!$A409)*(AbschreibungAHKBvD))","v":0},{"$f":"SUM(AA$178:AA232)-SUM(AA$266:AA320)+SUMPRODUCT((Aktivierungsjahr=Costs!$A409)*(AbschreibungAGr=Costs!AA$353)*('Fixed assets'!$U$2:$U$1000=Costs!$A409)*(AbschreibungAHKBvD))","v":0},{"$f":"SUM(AB$178:AB232)-SUM(AB$266:AB320)+SUMPRODUCT((Aktivierungsjahr=Costs!$A409)*(AbschreibungAGr=Costs!AB$353)*('Fixed assets'!$U$2:$U$1000=Costs!$A409)*(AbschreibungAHKBvD))","v":0},{"$f":"SUM(AC$178:AC232)-SUM(AC$266:AC320)+SUMPRODUCT((Aktivierungsjahr=Costs!$A409)*(AbschreibungAGr=Costs!AC$353)*('Fixed assets'!$U$2:$U$1000=Costs!$A409)*(AbschreibungAHKBvD))","v":0},{"$f":"SUM(AD$178:AD232)-SUM(AD$266:AD320)+SUMPRODUCT((Aktivierungsjahr=Costs!$A409)*(AbschreibungAGr=Costs!AD$353)*('Fixed assets'!$U$2:$U$1000=Costs!$A409)*(AbschreibungAHKBvD))","v":0},{"$f":"SUM(AE$178:AE232)-SUM(AE$266:AE320)+SUMPRODUCT((Aktivierungsjahr=Costs!$A409)*(AbschreibungAGr=Costs!AE$353)*('Fixed assets'!$U$2:$U$1000=Costs!$A409)*(AbschreibungAHKBvD))","v":0},{"$f":"SUM(AF$178:AF232)-SUM(AF$266:AF320)+SUMPRODUCT((Aktivierungsjahr=Costs!$A409)*(AbschreibungAGr=Costs!AF$353)*('Fixed assets'!$U$2:$U$1000=Costs!$A409)*(AbschreibungAHKBvD))","v":0},{"$f":"SUM(AG$178:AG232)-SUM(AG$266:AG320)+SUMPRODUCT((Aktivierungsjahr=Costs!$A409)*(AbschreibungAGr=Costs!AG$353)*('Fixed assets'!$U$2:$U$1000=Costs!$A409)*(AbschreibungAHKBvD))","v":0},{"$f":"SUM(AH$178:AH232)-SUM(AH$266:AH320)+SUMPRODUCT((Aktivierungsjahr=Costs!$A409)*(AbschreibungAGr=Costs!AH$353)*('Fixed assets'!$U$2:$U$1000=Costs!$A409)*(AbschreibungAHKBvD))","v":0},{"$f":"SUM(AI$178:AI232)-SUM(AI$266:AI320)+SUMPRODUCT((Aktivierungsjahr=Costs!$A409)*(AbschreibungAGr=Costs!AI$353)*('Fixed assets'!$U$2:$U$1000=Costs!$A409)*(AbschreibungAHKBvD))","v":0},{"$f":"SUM(AJ$178:AJ232)-SUM(AJ$266:AJ320)+SUMPRODUCT((Aktivierungsjahr=Costs!$A409)*(AbschreibungAGr=Costs!AJ$353)*('Fixed assets'!$U$2:$U$1000=Costs!$A409)*(AbschreibungAHKBvD))","v":-8.149072527885437E-10},{"$f":"SUM(AK$178:AK232)-SUM(AK$266:AK320)+SUMPRODUCT((Aktivierungsjahr=Costs!$A409)*(AbschreibungAGr=Costs!AK$353)*('Fixed assets'!$U$2:$U$1000=Costs!$A409)*(AbschreibungAHKBvD))","v":0},{"$f":"SUM(AL$178:AL232)-SUM(AL$266:AL320)+SUMPRODUCT((Aktivierungsjahr=Costs!$A409)*(AbschreibungAGr=Costs!AL$353)*('Fixed assets'!$U$2:$U$1000=Costs!$A409)*(AbschreibungAHKBvD))","v":0},{"$f":"SUM(AM$178:AM232)-SUM(AM$266:AM320)+SUMPRODUCT((Aktivierungsjahr=Costs!$A409)*(AbschreibungAGr=Costs!AM$353)*('Fixed assets'!$U$2:$U$1000=Costs!$A409)*(AbschreibungAHKBvD))","v":0},{"$f":"SUM(AN$178:AN232)-SUM(AN$266:AN320)+SUMPRODUCT((Aktivierungsjahr=Costs!$A409)*(AbschreibungAGr=Costs!AN$353)*('Fixed assets'!$U$2:$U$1000=Costs!$A409)*(AbschreibungAHKBvD))","v":0},{"$f":"SUM(AO$178:AO232)-SUM(AO$266:AO320)+SUMPRODUCT((Aktivierungsjahr=Costs!$A409)*(AbschreibungAGr=Costs!AO$353)*('Fixed assets'!$U$2:$U$1000=Costs!$A409)*(AbschreibungAHKBvD))","v":0},{"$f":"SUM(AP$178:AP232)-SUM(AP$266:AP320)+SUMPRODUCT((Aktivierungsjahr=Costs!$A409)*(AbschreibungAGr=Costs!AP$353)*('Fixed assets'!$U$2:$U$1000=Costs!$A409)*(AbschreibungAHKBvD))","v":0},{"$f":"SUM(AQ$178:AQ232)-SUM(AQ$266:AQ320)+SUMPRODUCT((Aktivierungsjahr=Costs!$A409)*(AbschreibungAGr=Costs!AQ$353)*('Fixed assets'!$U$2:$U$1000=Costs!$A409)*(AbschreibungAHKBvD))","v":0}]
[2071,-8.149072527885437E-10,{"$f":"SUM(C$178:C233)-SUM(C$266:C321)+SUMPRODUCT((Aktivierungsjahr=Costs!$A410)*(AbschreibungAGr=Costs!C$353)*('Fixed assets'!$U$2:$U$1000=Costs!$A410)*(AbschreibungAHKBvD))","v":0},{"$f":"SUM(D$178:D233)-SUM(D$266:D321)+SUMPRODUCT((Aktivierungsjahr=Costs!$A410)*(AbschreibungAGr=Costs!D$353)*('Fixed assets'!$U$2:$U$1000=Costs!$A410)*(AbschreibungAHKBvD))","v":0},{"$f":"SUM(E$178:E233)-SUM(E$266:E321)+SUMPRODUCT((Aktivierungsjahr=Costs!$A410)*(AbschreibungAGr=Costs!E$353)*('Fixed assets'!$U$2:$U$1000=Costs!$A410)*(AbschreibungAHKBvD))","v":0},{"$f":"SUM(F$178:F233)-SUM(F$266:F321)+SUMPRODUCT((Aktivierungsjahr=Costs!$A410)*(AbschreibungAGr=Costs!F$353)*('Fixed assets'!$U$2:$U$1000=Costs!$A410)*(AbschreibungAHKBvD))","v":0},{"$f":"SUM(G$178:G233)-SUM(G$266:G321)+SUMPRODUCT((Aktivierungsjahr=Costs!$A410)*(AbschreibungAGr=Costs!G$353)*('Fixed assets'!$U$2:$U$1000=Costs!$A410)*(AbschreibungAHKBvD))","v":0},{"$f":"SUM(H$178:H233)-SUM(H$266:H321)+SUMPRODUCT((Aktivierungsjahr=Costs!$A410)*(AbschreibungAGr=Costs!H$353)*('Fixed assets'!$U$2:$U$1000=Costs!$A410)*(AbschreibungAHKBvD))","v":0},{"$f":"SUM(I$178:I233)-SUM(I$266:I321)+SUMPRODUCT((Aktivierungsjahr=Costs!$A410)*(AbschreibungAGr=Costs!I$353)*('Fixed assets'!$U$2:$U$1000=Costs!$A410)*(AbschreibungAHKBvD))","v":0},{"$f":"SUM(J$178:J233)-SUM(J$266:J321)+SUMPRODUCT((Aktivierungsjahr=Costs!$A410)*(AbschreibungAGr=Costs!J$353)*('Fixed assets'!$U$2:$U$1000=Costs!$A410)*(AbschreibungAHKBvD))","v":0},{"$f":"SUM(K$178:K233)-SUM(K$266:K321)+SUMPRODUCT((Aktivierungsjahr=Costs!$A410)*(AbschreibungAGr=Costs!K$353)*('Fixed assets'!$U$2:$U$1000=Costs!$A410)*(AbschreibungAHKBvD))","v":0},{"$f":"SUM(L$178:L233)-SUM(L$266:L321)+SUMPRODUCT((Aktivierungsjahr=Costs!$A410)*(AbschreibungAGr=Costs!L$353)*('Fixed assets'!$U$2:$U$1000=Costs!$A410)*(AbschreibungAHKBvD))","v":0},{"$f":"SUM(M$178:M233)-SUM(M$266:M321)+SUMPRODUCT((Aktivierungsjahr=Costs!$A410)*(AbschreibungAGr=Costs!M$353)*('Fixed assets'!$U$2:$U$1000=Costs!$A410)*(AbschreibungAHKBvD))","v":0},{"$f":"SUM(N$178:N233)-SUM(N$266:N321)+SUMPRODUCT((Aktivierungsjahr=Costs!$A410)*(AbschreibungAGr=Costs!N$353)*('Fixed assets'!$U$2:$U$1000=Costs!$A410)*(AbschreibungAHKBvD))","v":0},{"$f":"SUM(O$178:O233)-SUM(O$266:O321)+SUMPRODUCT((Aktivierungsjahr=Costs!$A410)*(AbschreibungAGr=Costs!O$353)*('Fixed assets'!$U$2:$U$1000=Costs!$A410)*(AbschreibungAHKBvD))","v":0},{"$f":"SUM(P$178:P233)-SUM(P$266:P321)+SUMPRODUCT((Aktivierungsjahr=Costs!$A410)*(AbschreibungAGr=Costs!P$353)*('Fixed assets'!$U$2:$U$1000=Costs!$A410)*(AbschreibungAHKBvD))","v":0},{"$f":"SUM(Q$178:Q233)-SUM(Q$266:Q321)+SUMPRODUCT((Aktivierungsjahr=Costs!$A410)*(AbschreibungAGr=Costs!Q$353)*('Fixed assets'!$U$2:$U$1000=Costs!$A410)*(AbschreibungAHKBvD))","v":0},{"$f":"SUM(R$178:R233)-SUM(R$266:R321)+SUMPRODUCT((Aktivierungsjahr=Costs!$A410)*(AbschreibungAGr=Costs!R$353)*('Fixed assets'!$U$2:$U$1000=Costs!$A410)*(AbschreibungAHKBvD))","v":0},{"$f":"SUM(S$178:S233)-SUM(S$266:S321)+SUMPRODUCT((Aktivierungsjahr=Costs!$A410)*(AbschreibungAGr=Costs!S$353)*('Fixed assets'!$U$2:$U$1000=Costs!$A410)*(AbschreibungAHKBvD))","v":0},{"$f":"SUM(T$178:T233)-SUM(T$266:T321)+SUMPRODUCT((Aktivierungsjahr=Costs!$A410)*(AbschreibungAGr=Costs!T$353)*('Fixed assets'!$U$2:$U$1000=Costs!$A410)*(AbschreibungAHKBvD))","v":0},{"$f":"SUM(U$178:U233)-SUM(U$266:U321)+SUMPRODUCT((Aktivierungsjahr=Costs!$A410)*(AbschreibungAGr=Costs!U$353)*('Fixed assets'!$U$2:$U$1000=Costs!$A410)*(AbschreibungAHKBvD))","v":0},{"$f":"SUM(V$178:V233)-SUM(V$266:V321)+SUMPRODUCT((Aktivierungsjahr=Costs!$A410)*(AbschreibungAGr=Costs!V$353)*('Fixed assets'!$U$2:$U$1000=Costs!$A410)*(AbschreibungAHKBvD))","v":0},{"$f":"SUM(W$178:W233)-SUM(W$266:W321)+SUMPRODUCT((Aktivierungsjahr=Costs!$A410)*(AbschreibungAGr=Costs!W$353)*('Fixed assets'!$U$2:$U$1000=Costs!$A410)*(AbschreibungAHKBvD))","v":0},{"$f":"SUM(X$178:X233)-SUM(X$266:X321)+SUMPRODUCT((Aktivierungsjahr=Costs!$A410)*(AbschreibungAGr=Costs!X$353)*('Fixed assets'!$U$2:$U$1000=Costs!$A410)*(AbschreibungAHKBvD))","v":0},{"$f":"SUM(Y$178:Y233)-SUM(Y$266:Y321)+SUMPRODUCT((Aktivierungsjahr=Costs!$A410)*(AbschreibungAGr=Costs!Y$353)*('Fixed assets'!$U$2:$U$1000=Costs!$A410)*(AbschreibungAHKBvD))","v":0},{"$f":"SUM(Z$178:Z233)-SUM(Z$266:Z321)+SUMPRODUCT((Aktivierungsjahr=Costs!$A410)*(AbschreibungAGr=Costs!Z$353)*('Fixed assets'!$U$2:$U$1000=Costs!$A410)*(AbschreibungAHKBvD))","v":0},{"$f":"SUM(AA$178:AA233)-SUM(AA$266:AA321)+SUMPRODUCT((Aktivierungsjahr=Costs!$A410)*(AbschreibungAGr=Costs!AA$353)*('Fixed assets'!$U$2:$U$1000=Costs!$A410)*(AbschreibungAHKBvD))","v":0},{"$f":"SUM(AB$178:AB233)-SUM(AB$266:AB321)+SUMPRODUCT((Aktivierungsjahr=Costs!$A410)*(AbschreibungAGr=Costs!AB$353)*('Fixed assets'!$U$2:$U$1000=Costs!$A410)*(AbschreibungAHKBvD))","v":0},{"$f":"SUM(AC$178:AC233)-SUM(AC$266:AC321)+SUMPRODUCT((Aktivierungsjahr=Costs!$A410)*(AbschreibungAGr=Costs!AC$353)*('Fixed assets'!$U$2:$U$1000=Costs!$A410)*(AbschreibungAHKBvD))","v":0},{"$f":"SUM(AD$178:AD233)-SUM(AD$266:AD321)+SUMPRODUCT((Aktivierungsjahr=Costs!$A410)*(AbschreibungAGr=Costs!AD$353)*('Fixed assets'!$U$2:$U$1000=Costs!$A410)*(AbschreibungAHKBvD))","v":0},{"$f":"SUM(AE$178:AE233)-SUM(AE$266:AE321)+SUMPRODUCT((Aktivierungsjahr=Costs!$A410)*(AbschreibungAGr=Costs!AE$353)*('Fixed assets'!$U$2:$U$1000=Costs!$A410)*(AbschreibungAHKBvD))","v":0},{"$f":"SUM(AF$178:AF233)-SUM(AF$266:AF321)+SUMPRODUCT((Aktivierungsjahr=Costs!$A410)*(AbschreibungAGr=Costs!AF$353)*('Fixed assets'!$U$2:$U$1000=Costs!$A410)*(AbschreibungAHKBvD))","v":0},{"$f":"SUM(AG$178:AG233)-SUM(AG$266:AG321)+SUMPRODUCT((Aktivierungsjahr=Costs!$A410)*(AbschreibungAGr=Costs!AG$353)*('Fixed assets'!$U$2:$U$1000=Costs!$A410)*(AbschreibungAHKBvD))","v":0},{"$f":"SUM(AH$178:AH233)-SUM(AH$266:AH321)+SUMPRODUCT((Aktivierungsjahr=Costs!$A410)*(AbschreibungAGr=Costs!AH$353)*('Fixed assets'!$U$2:$U$1000=Costs!$A410)*(AbschreibungAHKBvD))","v":0},{"$f":"SUM(AI$178:AI233)-SUM(AI$266:AI321)+SUMPRODUCT((Aktivierungsjahr=Costs!$A410)*(AbschreibungAGr=Costs!AI$353)*('Fixed assets'!$U$2:$U$1000=Costs!$A410)*(AbschreibungAHKBvD))","v":0},{"$f":"SUM(AJ$178:AJ233)-SUM(AJ$266:AJ321)+SUMPRODUCT((Aktivierungsjahr=Costs!$A410)*(AbschreibungAGr=Costs!AJ$353)*('Fixed assets'!$U$2:$U$1000=Costs!$A410)*(AbschreibungAHKBvD))","v":-8.149072527885437E-10},{"$f":"SUM(AK$178:AK233)-SUM(AK$266:AK321)+SUMPRODUCT((Aktivierungsjahr=Costs!$A410)*(AbschreibungAGr=Costs!AK$353)*('Fixed assets'!$U$2:$U$1000=Costs!$A410)*(AbschreibungAHKBvD))","v":0},{"$f":"SUM(AL$178:AL233)-SUM(AL$266:AL321)+SUMPRODUCT((Aktivierungsjahr=Costs!$A410)*(AbschreibungAGr=Costs!AL$353)*('Fixed assets'!$U$2:$U$1000=Costs!$A410)*(AbschreibungAHKBvD))","v":0},{"$f":"SUM(AM$178:AM233)-SUM(AM$266:AM321)+SUMPRODUCT((Aktivierungsjahr=Costs!$A410)*(AbschreibungAGr=Costs!AM$353)*('Fixed assets'!$U$2:$U$1000=Costs!$A410)*(AbschreibungAHKBvD))","v":0},{"$f":"SUM(AN$178:AN233)-SUM(AN$266:AN321)+SUMPRODUCT((Aktivierungsjahr=Costs!$A410)*(AbschreibungAGr=Costs!AN$353)*('Fixed assets'!$U$2:$U$1000=Costs!$A410)*(AbschreibungAHKBvD))","v":0},{"$f":"SUM(AO$178:AO233)-SUM(AO$266:AO321)+SUMPRODUCT((Aktivierungsjahr=Costs!$A410)*(AbschreibungAGr=Costs!AO$353)*('Fixed assets'!$U$2:$U$1000=Costs!$A410)*(AbschreibungAHKBvD))","v":0},{"$f":"SUM(AP$178:AP233)-SUM(AP$266:AP321)+SUMPRODUCT((Aktivierungsjahr=Costs!$A410)*(AbschreibungAGr=Costs!AP$353)*('Fixed assets'!$U$2:$U$1000=Costs!$A410)*(AbschreibungAHKBvD))","v":0},{"$f":"SUM(AQ$178:AQ233)-SUM(AQ$266:AQ321)+SUMPRODUCT((Aktivierungsjahr=Costs!$A410)*(AbschreibungAGr=Costs!AQ$353)*('Fixed assets'!$U$2:$U$1000=Costs!$A410)*(AbschreibungAHKBvD))","v":0}]
[2072,-8.149072527885437E-10,{"$f":"SUM(C$178:C234)-SUM(C$266:C322)+SUMPRODUCT((Aktivierungsjahr=Costs!$A411)*(AbschreibungAGr=Costs!C$353)*('Fixed assets'!$U$2:$U$1000=Costs!$A411)*(AbschreibungAHKBvD))","v":0},{"$f":"SUM(D$178:D234)-SUM(D$266:D322)+SUMPRODUCT((Aktivierungsjahr=Costs!$A411)*(AbschreibungAGr=Costs!D$353)*('Fixed assets'!$U$2:$U$1000=Costs!$A411)*(AbschreibungAHKBvD))","v":0},{"$f":"SUM(E$178:E234)-SUM(E$266:E322)+SUMPRODUCT((Aktivierungsjahr=Costs!$A411)*(AbschreibungAGr=Costs!E$353)*('Fixed assets'!$U$2:$U$1000=Costs!$A411)*(AbschreibungAHKBvD))","v":0},{"$f":"SUM(F$178:F234)-SUM(F$266:F322)+SUMPRODUCT((Aktivierungsjahr=Costs!$A411)*(AbschreibungAGr=Costs!F$353)*('Fixed assets'!$U$2:$U$1000=Costs!$A411)*(AbschreibungAHKBvD))","v":0},{"$f":"SUM(G$178:G234)-SUM(G$266:G322)+SUMPRODUCT((Aktivierungsjahr=Costs!$A411)*(AbschreibungAGr=Costs!G$353)*('Fixed assets'!$U$2:$U$1000=Costs!$A411)*(AbschreibungAHKBvD))","v":0},{"$f":"SUM(H$178:H234)-SUM(H$266:H322)+SUMPRODUCT((Aktivierungsjahr=Costs!$A411)*(AbschreibungAGr=Costs!H$353)*('Fixed assets'!$U$2:$U$1000=Costs!$A411)*(AbschreibungAHKBvD))","v":0},{"$f":"SUM(I$178:I234)-SUM(I$266:I322)+SUMPRODUCT((Aktivierungsjahr=Costs!$A411)*(AbschreibungAGr=Costs!I$353)*('Fixed assets'!$U$2:$U$1000=Costs!$A411)*(AbschreibungAHKBvD))","v":0},{"$f":"SUM(J$178:J234)-SUM(J$266:J322)+SUMPRODUCT((Aktivierungsjahr=Costs!$A411)*(AbschreibungAGr=Costs!J$353)*('Fixed assets'!$U$2:$U$1000=Costs!$A411)*(AbschreibungAHKBvD))","v":0},{"$f":"SUM(K$178:K234)-SUM(K$266:K322)+SUMPRODUCT((Aktivierungsjahr=Costs!$A411)*(AbschreibungAGr=Costs!K$353)*('Fixed assets'!$U$2:$U$1000=Costs!$A411)*(AbschreibungAHKBvD))","v":0},{"$f":"SUM(L$178:L234)-SUM(L$266:L322)+SUMPRODUCT((Aktivierungsjahr=Costs!$A411)*(AbschreibungAGr=Costs!L$353)*('Fixed assets'!$U$2:$U$1000=Costs!$A411)*(AbschreibungAHKBvD))","v":0},{"$f":"SUM(M$178:M234)-SUM(M$266:M322)+SUMPRODUCT((Aktivierungsjahr=Costs!$A411)*(AbschreibungAGr=Costs!M$353)*('Fixed assets'!$U$2:$U$1000=Costs!$A411)*(AbschreibungAHKBvD))","v":0},{"$f":"SUM(N$178:N234)-SUM(N$266:N322)+SUMPRODUCT((Aktivierungsjahr=Costs!$A411)*(AbschreibungAGr=Costs!N$353)*('Fixed assets'!$U$2:$U$1000=Costs!$A411)*(AbschreibungAHKBvD))","v":0},{"$f":"SUM(O$178:O234)-SUM(O$266:O322)+SUMPRODUCT((Aktivierungsjahr=Costs!$A411)*(AbschreibungAGr=Costs!O$353)*('Fixed assets'!$U$2:$U$1000=Costs!$A411)*(AbschreibungAHKBvD))","v":0},{"$f":"SUM(P$178:P234)-SUM(P$266:P322)+SUMPRODUCT((Aktivierungsjahr=Costs!$A411)*(AbschreibungAGr=Costs!P$353)*('Fixed assets'!$U$2:$U$1000=Costs!$A411)*(AbschreibungAHKBvD))","v":0},{"$f":"SUM(Q$178:Q234)-SUM(Q$266:Q322)+SUMPRODUCT((Aktivierungsjahr=Costs!$A411)*(AbschreibungAGr=Costs!Q$353)*('Fixed assets'!$U$2:$U$1000=Costs!$A411)*(AbschreibungAHKBvD))","v":0},{"$f":"SUM(R$178:R234)-SUM(R$266:R322)+SUMPRODUCT((Aktivierungsjahr=Costs!$A411)*(AbschreibungAGr=Costs!R$353)*('Fixed assets'!$U$2:$U$1000=Costs!$A411)*(AbschreibungAHKBvD))","v":0},{"$f":"SUM(S$178:S234)-SUM(S$266:S322)+SUMPRODUCT((Aktivierungsjahr=Costs!$A411)*(AbschreibungAGr=Costs!S$353)*('Fixed assets'!$U$2:$U$1000=Costs!$A411)*(AbschreibungAHKBvD))","v":0},{"$f":"SUM(T$178:T234)-SUM(T$266:T322)+SUMPRODUCT((Aktivierungsjahr=Costs!$A411)*(AbschreibungAGr=Costs!T$353)*('Fixed assets'!$U$2:$U$1000=Costs!$A411)*(AbschreibungAHKBvD))","v":0},{"$f":"SUM(U$178:U234)-SUM(U$266:U322)+SUMPRODUCT((Aktivierungsjahr=Costs!$A411)*(AbschreibungAGr=Costs!U$353)*('Fixed assets'!$U$2:$U$1000=Costs!$A411)*(AbschreibungAHKBvD))","v":0},{"$f":"SUM(V$178:V234)-SUM(V$266:V322)+SUMPRODUCT((Aktivierungsjahr=Costs!$A411)*(AbschreibungAGr=Costs!V$353)*('Fixed assets'!$U$2:$U$1000=Costs!$A411)*(AbschreibungAHKBvD))","v":0},{"$f":"SUM(W$178:W234)-SUM(W$266:W322)+SUMPRODUCT((Aktivierungsjahr=Costs!$A411)*(AbschreibungAGr=Costs!W$353)*('Fixed assets'!$U$2:$U$1000=Costs!$A411)*(AbschreibungAHKBvD))","v":0},{"$f":"SUM(X$178:X234)-SUM(X$266:X322)+SUMPRODUCT((Aktivierungsjahr=Costs!$A411)*(AbschreibungAGr=Costs!X$353)*('Fixed assets'!$U$2:$U$1000=Costs!$A411)*(AbschreibungAHKBvD))","v":0},{"$f":"SUM(Y$178:Y234)-SUM(Y$266:Y322)+SUMPRODUCT((Aktivierungsjahr=Costs!$A411)*(AbschreibungAGr=Costs!Y$353)*('Fixed assets'!$U$2:$U$1000=Costs!$A411)*(AbschreibungAHKBvD))","v":0},{"$f":"SUM(Z$178:Z234)-SUM(Z$266:Z322)+SUMPRODUCT((Aktivierungsjahr=Costs!$A411)*(AbschreibungAGr=Costs!Z$353)*('Fixed assets'!$U$2:$U$1000=Costs!$A411)*(AbschreibungAHKBvD))","v":0},{"$f":"SUM(AA$178:AA234)-SUM(AA$266:AA322)+SUMPRODUCT((Aktivierungsjahr=Costs!$A411)*(AbschreibungAGr=Costs!AA$353)*('Fixed assets'!$U$2:$U$1000=Costs!$A411)*(AbschreibungAHKBvD))","v":0},{"$f":"SUM(AB$178:AB234)-SUM(AB$266:AB322)+SUMPRODUCT((Aktivierungsjahr=Costs!$A411)*(AbschreibungAGr=Costs!AB$353)*('Fixed assets'!$U$2:$U$1000=Costs!$A411)*(AbschreibungAHKBvD))","v":0},{"$f":"SUM(AC$178:AC234)-SUM(AC$266:AC322)+SUMPRODUCT((Aktivierungsjahr=Costs!$A411)*(AbschreibungAGr=Costs!AC$353)*('Fixed assets'!$U$2:$U$1000=Costs!$A411)*(AbschreibungAHKBvD))","v":0},{"$f":"SUM(AD$178:AD234)-SUM(AD$266:AD322)+SUMPRODUCT((Aktivierungsjahr=Costs!$A411)*(AbschreibungAGr=Costs!AD$353)*('Fixed assets'!$U$2:$U$1000=Costs!$A411)*(AbschreibungAHKBvD))","v":0},{"$f":"SUM(AE$178:AE234)-SUM(AE$266:AE322)+SUMPRODUCT((Aktivierungsjahr=Costs!$A411)*(AbschreibungAGr=Costs!AE$353)*('Fixed assets'!$U$2:$U$1000=Costs!$A411)*(AbschreibungAHKBvD))","v":0},{"$f":"SUM(AF$178:AF234)-SUM(AF$266:AF322)+SUMPRODUCT((Aktivierungsjahr=Costs!$A411)*(AbschreibungAGr=Costs!AF$353)*('Fixed assets'!$U$2:$U$1000=Costs!$A411)*(AbschreibungAHKBvD))","v":0},{"$f":"SUM(AG$178:AG234)-SUM(AG$266:AG322)+SUMPRODUCT((Aktivierungsjahr=Costs!$A411)*(AbschreibungAGr=Costs!AG$353)*('Fixed assets'!$U$2:$U$1000=Costs!$A411)*(AbschreibungAHKBvD))","v":0},{"$f":"SUM(AH$178:AH234)-SUM(AH$266:AH322)+SUMPRODUCT((Aktivierungsjahr=Costs!$A411)*(AbschreibungAGr=Costs!AH$353)*('Fixed assets'!$U$2:$U$1000=Costs!$A411)*(AbschreibungAHKBvD))","v":0},{"$f":"SUM(AI$178:AI234)-SUM(AI$266:AI322)+SUMPRODUCT((Aktivierungsjahr=Costs!$A411)*(AbschreibungAGr=Costs!AI$353)*('Fixed assets'!$U$2:$U$1000=Costs!$A411)*(AbschreibungAHKBvD))","v":0},{"$f":"SUM(AJ$178:AJ234)-SUM(AJ$266:AJ322)+SUMPRODUCT((Aktivierungsjahr=Costs!$A411)*(AbschreibungAGr=Costs!AJ$353)*('Fixed assets'!$U$2:$U$1000=Costs!$A411)*(AbschreibungAHKBvD))","v":-8.149072527885437E-10},{"$f":"SUM(AK$178:AK234)-SUM(AK$266:AK322)+SUMPRODUCT((Aktivierungsjahr=Costs!$A411)*(AbschreibungAGr=Costs!AK$353)*('Fixed assets'!$U$2:$U$1000=Costs!$A411)*(AbschreibungAHKBvD))","v":0},{"$f":"SUM(AL$178:AL234)-SUM(AL$266:AL322)+SUMPRODUCT((Aktivierungsjahr=Costs!$A411)*(AbschreibungAGr=Costs!AL$353)*('Fixed assets'!$U$2:$U$1000=Costs!$A411)*(AbschreibungAHKBvD))","v":0},{"$f":"SUM(AM$178:AM234)-SUM(AM$266:AM322)+SUMPRODUCT((Aktivierungsjahr=Costs!$A411)*(AbschreibungAGr=Costs!AM$353)*('Fixed assets'!$U$2:$U$1000=Costs!$A411)*(AbschreibungAHKBvD))","v":0},{"$f":"SUM(AN$178:AN234)-SUM(AN$266:AN322)+SUMPRODUCT((Aktivierungsjahr=Costs!$A411)*(AbschreibungAGr=Costs!AN$353)*('Fixed assets'!$U$2:$U$1000=Costs!$A411)*(AbschreibungAHKBvD))","v":0},{"$f":"SUM(AO$178:AO234)-SUM(AO$266:AO322)+SUMPRODUCT((Aktivierungsjahr=Costs!$A411)*(AbschreibungAGr=Costs!AO$353)*('Fixed assets'!$U$2:$U$1000=Costs!$A411)*(AbschreibungAHKBvD))","v":0},{"$f":"SUM(AP$178:AP234)-SUM(AP$266:AP322)+SUMPRODUCT((Aktivierungsjahr=Costs!$A411)*(AbschreibungAGr=Costs!AP$353)*('Fixed assets'!$U$2:$U$1000=Costs!$A411)*(AbschreibungAHKBvD))","v":0},{"$f":"SUM(AQ$178:AQ234)-SUM(AQ$266:AQ322)+SUMPRODUCT((Aktivierungsjahr=Costs!$A411)*(AbschreibungAGr=Costs!AQ$353)*('Fixed assets'!$U$2:$U$1000=Costs!$A411)*(AbschreibungAHKBvD))","v":0}]
[2073,-8.149072527885437E-10,{"$f":"SUM(C$178:C235)-SUM(C$266:C323)+SUMPRODUCT((Aktivierungsjahr=Costs!$A412)*(AbschreibungAGr=Costs!C$353)*('Fixed assets'!$U$2:$U$1000=Costs!$A412)*(AbschreibungAHKBvD))","v":0},{"$f":"SUM(D$178:D235)-SUM(D$266:D323)+SUMPRODUCT((Aktivierungsjahr=Costs!$A412)*(AbschreibungAGr=Costs!D$353)*('Fixed assets'!$U$2:$U$1000=Costs!$A412)*(AbschreibungAHKBvD))","v":0},{"$f":"SUM(E$178:E235)-SUM(E$266:E323)+SUMPRODUCT((Aktivierungsjahr=Costs!$A412)*(AbschreibungAGr=Costs!E$353)*('Fixed assets'!$U$2:$U$1000=Costs!$A412)*(AbschreibungAHKBvD))","v":0},{"$f":"SUM(F$178:F235)-SUM(F$266:F323)+SUMPRODUCT((Aktivierungsjahr=Costs!$A412)*(AbschreibungAGr=Costs!F$353)*('Fixed assets'!$U$2:$U$1000=Costs!$A412)*(AbschreibungAHKBvD))","v":0},{"$f":"SUM(G$178:G235)-SUM(G$266:G323)+SUMPRODUCT((Aktivierungsjahr=Costs!$A412)*(AbschreibungAGr=Costs!G$353)*('Fixed assets'!$U$2:$U$1000=Costs!$A412)*(AbschreibungAHKBvD))","v":0},{"$f":"SUM(H$178:H235)-SUM(H$266:H323)+SUMPRODUCT((Aktivierungsjahr=Costs!$A412)*(AbschreibungAGr=Costs!H$353)*('Fixed assets'!$U$2:$U$1000=Costs!$A412)*(AbschreibungAHKBvD))","v":0},{"$f":"SUM(I$178:I235)-SUM(I$266:I323)+SUMPRODUCT((Aktivierungsjahr=Costs!$A412)*(AbschreibungAGr=Costs!I$353)*('Fixed assets'!$U$2:$U$1000=Costs!$A412)*(AbschreibungAHKBvD))","v":0},{"$f":"SUM(J$178:J235)-SUM(J$266:J323)+SUMPRODUCT((Aktivierungsjahr=Costs!$A412)*(AbschreibungAGr=Costs!J$353)*('Fixed assets'!$U$2:$U$1000=Costs!$A412)*(AbschreibungAHKBvD))","v":0},{"$f":"SUM(K$178:K235)-SUM(K$266:K323)+SUMPRODUCT((Aktivierungsjahr=Costs!$A412)*(AbschreibungAGr=Costs!K$353)*('Fixed assets'!$U$2:$U$1000=Costs!$A412)*(AbschreibungAHKBvD))","v":0},{"$f":"SUM(L$178:L235)-SUM(L$266:L323)+SUMPRODUCT((Aktivierungsjahr=Costs!$A412)*(AbschreibungAGr=Costs!L$353)*('Fixed assets'!$U$2:$U$1000=Costs!$A412)*(AbschreibungAHKBvD))","v":0},{"$f":"SUM(M$178:M235)-SUM(M$266:M323)+SUMPRODUCT((Aktivierungsjahr=Costs!$A412)*(AbschreibungAGr=Costs!M$353)*('Fixed assets'!$U$2:$U$1000=Costs!$A412)*(AbschreibungAHKBvD))","v":0},{"$f":"SUM(N$178:N235)-SUM(N$266:N323)+SUMPRODUCT((Aktivierungsjahr=Costs!$A412)*(AbschreibungAGr=Costs!N$353)*('Fixed assets'!$U$2:$U$1000=Costs!$A412)*(AbschreibungAHKBvD))","v":0},{"$f":"SUM(O$178:O235)-SUM(O$266:O323)+SUMPRODUCT((Aktivierungsjahr=Costs!$A412)*(AbschreibungAGr=Costs!O$353)*('Fixed assets'!$U$2:$U$1000=Costs!$A412)*(AbschreibungAHKBvD))","v":0},{"$f":"SUM(P$178:P235)-SUM(P$266:P323)+SUMPRODUCT((Aktivierungsjahr=Costs!$A412)*(AbschreibungAGr=Costs!P$353)*('Fixed assets'!$U$2:$U$1000=Costs!$A412)*(AbschreibungAHKBvD))","v":0},{"$f":"SUM(Q$178:Q235)-SUM(Q$266:Q323)+SUMPRODUCT((Aktivierungsjahr=Costs!$A412)*(AbschreibungAGr=Costs!Q$353)*('Fixed assets'!$U$2:$U$1000=Costs!$A412)*(AbschreibungAHKBvD))","v":0},{"$f":"SUM(R$178:R235)-SUM(R$266:R323)+SUMPRODUCT((Aktivierungsjahr=Costs!$A412)*(AbschreibungAGr=Costs!R$353)*('Fixed assets'!$U$2:$U$1000=Costs!$A412)*(AbschreibungAHKBvD))","v":0},{"$f":"SUM(S$178:S235)-SUM(S$266:S323)+SUMPRODUCT((Aktivierungsjahr=Costs!$A412)*(AbschreibungAGr=Costs!S$353)*('Fixed assets'!$U$2:$U$1000=Costs!$A412)*(AbschreibungAHKBvD))","v":0},{"$f":"SUM(T$178:T235)-SUM(T$266:T323)+SUMPRODUCT((Aktivierungsjahr=Costs!$A412)*(AbschreibungAGr=Costs!T$353)*('Fixed assets'!$U$2:$U$1000=Costs!$A412)*(AbschreibungAHKBvD))","v":0},{"$f":"SUM(U$178:U235)-SUM(U$266:U323)+SUMPRODUCT((Aktivierungsjahr=Costs!$A412)*(AbschreibungAGr=Costs!U$353)*('Fixed assets'!$U$2:$U$1000=Costs!$A412)*(AbschreibungAHKBvD))","v":0},{"$f":"SUM(V$178:V235)-SUM(V$266:V323)+SUMPRODUCT((Aktivierungsjahr=Costs!$A412)*(AbschreibungAGr=Costs!V$353)*('Fixed assets'!$U$2:$U$1000=Costs!$A412)*(AbschreibungAHKBvD))","v":0},{"$f":"SUM(W$178:W235)-SUM(W$266:W323)+SUMPRODUCT((Aktivierungsjahr=Costs!$A412)*(AbschreibungAGr=Costs!W$353)*('Fixed assets'!$U$2:$U$1000=Costs!$A412)*(AbschreibungAHKBvD))","v":0},{"$f":"SUM(X$178:X235)-SUM(X$266:X323)+SUMPRODUCT((Aktivierungsjahr=Costs!$A412)*(AbschreibungAGr=Costs!X$353)*('Fixed assets'!$U$2:$U$1000=Costs!$A412)*(AbschreibungAHKBvD))","v":0},{"$f":"SUM(Y$178:Y235)-SUM(Y$266:Y323)+SUMPRODUCT((Aktivierungsjahr=Costs!$A412)*(AbschreibungAGr=Costs!Y$353)*('Fixed assets'!$U$2:$U$1000=Costs!$A412)*(AbschreibungAHKBvD))","v":0},{"$f":"SUM(Z$178:Z235)-SUM(Z$266:Z323)+SUMPRODUCT((Aktivierungsjahr=Costs!$A412)*(AbschreibungAGr=Costs!Z$353)*('Fixed assets'!$U$2:$U$1000=Costs!$A412)*(AbschreibungAHKBvD))","v":0},{"$f":"SUM(AA$178:AA235)-SUM(AA$266:AA323)+SUMPRODUCT((Aktivierungsjahr=Costs!$A412)*(AbschreibungAGr=Costs!AA$353)*('Fixed assets'!$U$2:$U$1000=Costs!$A412)*(AbschreibungAHKBvD))","v":0},{"$f":"SUM(AB$178:AB235)-SUM(AB$266:AB323)+SUMPRODUCT((Aktivierungsjahr=Costs!$A412)*(AbschreibungAGr=Costs!AB$353)*('Fixed assets'!$U$2:$U$1000=Costs!$A412)*(AbschreibungAHKBvD))","v":0},{"$f":"SUM(AC$178:AC235)-SUM(AC$266:AC323)+SUMPRODUCT((Aktivierungsjahr=Costs!$A412)*(AbschreibungAGr=Costs!AC$353)*('Fixed assets'!$U$2:$U$1000=Costs!$A412)*(AbschreibungAHKBvD))","v":0},{"$f":"SUM(AD$178:AD235)-SUM(AD$266:AD323)+SUMPRODUCT((Aktivierungsjahr=Costs!$A412)*(AbschreibungAGr=Costs!AD$353)*('Fixed assets'!$U$2:$U$1000=Costs!$A412)*(AbschreibungAHKBvD))","v":0},{"$f":"SUM(AE$178:AE235)-SUM(AE$266:AE323)+SUMPRODUCT((Aktivierungsjahr=Costs!$A412)*(AbschreibungAGr=Costs!AE$353)*('Fixed assets'!$U$2:$U$1000=Costs!$A412)*(AbschreibungAHKBvD))","v":0},{"$f":"SUM(AF$178:AF235)-SUM(AF$266:AF323)+SUMPRODUCT((Aktivierungsjahr=Costs!$A412)*(AbschreibungAGr=Costs!AF$353)*('Fixed assets'!$U$2:$U$1000=Costs!$A412)*(AbschreibungAHKBvD))","v":0},{"$f":"SUM(AG$178:AG235)-SUM(AG$266:AG323)+SUMPRODUCT((Aktivierungsjahr=Costs!$A412)*(AbschreibungAGr=Costs!AG$353)*('Fixed assets'!$U$2:$U$1000=Costs!$A412)*(AbschreibungAHKBvD))","v":0},{"$f":"SUM(AH$178:AH235)-SUM(AH$266:AH323)+SUMPRODUCT((Aktivierungsjahr=Costs!$A412)*(AbschreibungAGr=Costs!AH$353)*('Fixed assets'!$U$2:$U$1000=Costs!$A412)*(AbschreibungAHKBvD))","v":0},{"$f":"SUM(AI$178:AI235)-SUM(AI$266:AI323)+SUMPRODUCT((Aktivierungsjahr=Costs!$A412)*(AbschreibungAGr=Costs!AI$353)*('Fixed assets'!$U$2:$U$1000=Costs!$A412)*(AbschreibungAHKBvD))","v":0},{"$f":"SUM(AJ$178:AJ235)-SUM(AJ$266:AJ323)+SUMPRODUCT((Aktivierungsjahr=Costs!$A412)*(AbschreibungAGr=Costs!AJ$353)*('Fixed assets'!$U$2:$U$1000=Costs!$A412)*(AbschreibungAHKBvD))","v":-8.149072527885437E-10},{"$f":"SUM(AK$178:AK235)-SUM(AK$266:AK323)+SUMPRODUCT((Aktivierungsjahr=Costs!$A412)*(AbschreibungAGr=Costs!AK$353)*('Fixed assets'!$U$2:$U$1000=Costs!$A412)*(AbschreibungAHKBvD))","v":0},{"$f":"SUM(AL$178:AL235)-SUM(AL$266:AL323)+SUMPRODUCT((Aktivierungsjahr=Costs!$A412)*(AbschreibungAGr=Costs!AL$353)*('Fixed assets'!$U$2:$U$1000=Costs!$A412)*(AbschreibungAHKBvD))","v":0},{"$f":"SUM(AM$178:AM235)-SUM(AM$266:AM323)+SUMPRODUCT((Aktivierungsjahr=Costs!$A412)*(AbschreibungAGr=Costs!AM$353)*('Fixed assets'!$U$2:$U$1000=Costs!$A412)*(AbschreibungAHKBvD))","v":0},{"$f":"SUM(AN$178:AN235)-SUM(AN$266:AN323)+SUMPRODUCT((Aktivierungsjahr=Costs!$A412)*(AbschreibungAGr=Costs!AN$353)*('Fixed assets'!$U$2:$U$1000=Costs!$A412)*(AbschreibungAHKBvD))","v":0},{"$f":"SUM(AO$178:AO235)-SUM(AO$266:AO323)+SUMPRODUCT((Aktivierungsjahr=Costs!$A412)*(AbschreibungAGr=Costs!AO$353)*('Fixed assets'!$U$2:$U$1000=Costs!$A412)*(AbschreibungAHKBvD))","v":0},{"$f":"SUM(AP$178:AP235)-SUM(AP$266:AP323)+SUMPRODUCT((Aktivierungsjahr=Costs!$A412)*(AbschreibungAGr=Costs!AP$353)*('Fixed assets'!$U$2:$U$1000=Costs!$A412)*(AbschreibungAHKBvD))","v":0},{"$f":"SUM(AQ$178:AQ235)-SUM(AQ$266:AQ323)+SUMPRODUCT((Aktivierungsjahr=Costs!$A412)*(AbschreibungAGr=Costs!AQ$353)*('Fixed assets'!$U$2:$U$1000=Costs!$A412)*(AbschreibungAHKBvD))","v":0}]
[2074,-8.149072527885437E-10,{"$f":"SUM(C$178:C236)-SUM(C$266:C324)+SUMPRODUCT((Aktivierungsjahr=Costs!$A413)*(AbschreibungAGr=Costs!C$353)*('Fixed assets'!$U$2:$U$1000=Costs!$A413)*(AbschreibungAHKBvD))","v":0},{"$f":"SUM(D$178:D236)-SUM(D$266:D324)+SUMPRODUCT((Aktivierungsjahr=Costs!$A413)*(AbschreibungAGr=Costs!D$353)*('Fixed assets'!$U$2:$U$1000=Costs!$A413)*(AbschreibungAHKBvD))","v":0},{"$f":"SUM(E$178:E236)-SUM(E$266:E324)+SUMPRODUCT((Aktivierungsjahr=Costs!$A413)*(AbschreibungAGr=Costs!E$353)*('Fixed assets'!$U$2:$U$1000=Costs!$A413)*(AbschreibungAHKBvD))","v":0},{"$f":"SUM(F$178:F236)-SUM(F$266:F324)+SUMPRODUCT((Aktivierungsjahr=Costs!$A413)*(AbschreibungAGr=Costs!F$353)*('Fixed assets'!$U$2:$U$1000=Costs!$A413)*(AbschreibungAHKBvD))","v":0},{"$f":"SUM(G$178:G236)-SUM(G$266:G324)+SUMPRODUCT((Aktivierungsjahr=Costs!$A413)*(AbschreibungAGr=Costs!G$353)*('Fixed assets'!$U$2:$U$1000=Costs!$A413)*(AbschreibungAHKBvD))","v":0},{"$f":"SUM(H$178:H236)-SUM(H$266:H324)+SUMPRODUCT((Aktivierungsjahr=Costs!$A413)*(AbschreibungAGr=Costs!H$353)*('Fixed assets'!$U$2:$U$1000=Costs!$A413)*(AbschreibungAHKBvD))","v":0},{"$f":"SUM(I$178:I236)-SUM(I$266:I324)+SUMPRODUCT((Aktivierungsjahr=Costs!$A413)*(AbschreibungAGr=Costs!I$353)*('Fixed assets'!$U$2:$U$1000=Costs!$A413)*(AbschreibungAHKBvD))","v":0},{"$f":"SUM(J$178:J236)-SUM(J$266:J324)+SUMPRODUCT((Aktivierungsjahr=Costs!$A413)*(AbschreibungAGr=Costs!J$353)*('Fixed assets'!$U$2:$U$1000=Costs!$A413)*(AbschreibungAHKBvD))","v":0},{"$f":"SUM(K$178:K236)-SUM(K$266:K324)+SUMPRODUCT((Aktivierungsjahr=Costs!$A413)*(AbschreibungAGr=Costs!K$353)*('Fixed assets'!$U$2:$U$1000=Costs!$A413)*(AbschreibungAHKBvD))","v":0},{"$f":"SUM(L$178:L236)-SUM(L$266:L324)+SUMPRODUCT((Aktivierungsjahr=Costs!$A413)*(AbschreibungAGr=Costs!L$353)*('Fixed assets'!$U$2:$U$1000=Costs!$A413)*(AbschreibungAHKBvD))","v":0},{"$f":"SUM(M$178:M236)-SUM(M$266:M324)+SUMPRODUCT((Aktivierungsjahr=Costs!$A413)*(AbschreibungAGr=Costs!M$353)*('Fixed assets'!$U$2:$U$1000=Costs!$A413)*(AbschreibungAHKBvD))","v":0},{"$f":"SUM(N$178:N236)-SUM(N$266:N324)+SUMPRODUCT((Aktivierungsjahr=Costs!$A413)*(AbschreibungAGr=Costs!N$353)*('Fixed assets'!$U$2:$U$1000=Costs!$A413)*(AbschreibungAHKBvD))","v":0},{"$f":"SUM(O$178:O236)-SUM(O$266:O324)+SUMPRODUCT((Aktivierungsjahr=Costs!$A413)*(AbschreibungAGr=Costs!O$353)*('Fixed assets'!$U$2:$U$1000=Costs!$A413)*(AbschreibungAHKBvD))","v":0},{"$f":"SUM(P$178:P236)-SUM(P$266:P324)+SUMPRODUCT((Aktivierungsjahr=Costs!$A413)*(AbschreibungAGr=Costs!P$353)*('Fixed assets'!$U$2:$U$1000=Costs!$A413)*(AbschreibungAHKBvD))","v":0},{"$f":"SUM(Q$178:Q236)-SUM(Q$266:Q324)+SUMPRODUCT((Aktivierungsjahr=Costs!$A413)*(AbschreibungAGr=Costs!Q$353)*('Fixed assets'!$U$2:$U$1000=Costs!$A413)*(AbschreibungAHKBvD))","v":0},{"$f":"SUM(R$178:R236)-SUM(R$266:R324)+SUMPRODUCT((Aktivierungsjahr=Costs!$A413)*(AbschreibungAGr=Costs!R$353)*('Fixed assets'!$U$2:$U$1000=Costs!$A413)*(AbschreibungAHKBvD))","v":0},{"$f":"SUM(S$178:S236)-SUM(S$266:S324)+SUMPRODUCT((Aktivierungsjahr=Costs!$A413)*(AbschreibungAGr=Costs!S$353)*('Fixed assets'!$U$2:$U$1000=Costs!$A413)*(AbschreibungAHKBvD))","v":0},{"$f":"SUM(T$178:T236)-SUM(T$266:T324)+SUMPRODUCT((Aktivierungsjahr=Costs!$A413)*(AbschreibungAGr=Costs!T$353)*('Fixed assets'!$U$2:$U$1000=Costs!$A413)*(AbschreibungAHKBvD))","v":0},{"$f":"SUM(U$178:U236)-SUM(U$266:U324)+SUMPRODUCT((Aktivierungsjahr=Costs!$A413)*(AbschreibungAGr=Costs!U$353)*('Fixed assets'!$U$2:$U$1000=Costs!$A413)*(AbschreibungAHKBvD))","v":0},{"$f":"SUM(V$178:V236)-SUM(V$266:V324)+SUMPRODUCT((Aktivierungsjahr=Costs!$A413)*(AbschreibungAGr=Costs!V$353)*('Fixed assets'!$U$2:$U$1000=Costs!$A413)*(AbschreibungAHKBvD))","v":0},{"$f":"SUM(W$178:W236)-SUM(W$266:W324)+SUMPRODUCT((Aktivierungsjahr=Costs!$A413)*(AbschreibungAGr=Costs!W$353)*('Fixed assets'!$U$2:$U$1000=Costs!$A413)*(AbschreibungAHKBvD))","v":0},{"$f":"SUM(X$178:X236)-SUM(X$266:X324)+SUMPRODUCT((Aktivierungsjahr=Costs!$A413)*(AbschreibungAGr=Costs!X$353)*('Fixed assets'!$U$2:$U$1000=Costs!$A413)*(AbschreibungAHKBvD))","v":0},{"$f":"SUM(Y$178:Y236)-SUM(Y$266:Y324)+SUMPRODUCT((Aktivierungsjahr=Costs!$A413)*(AbschreibungAGr=Costs!Y$353)*('Fixed assets'!$U$2:$U$1000=Costs!$A413)*(AbschreibungAHKBvD))","v":0},{"$f":"SUM(Z$178:Z236)-SUM(Z$266:Z324)+SUMPRODUCT((Aktivierungsjahr=Costs!$A413)*(AbschreibungAGr=Costs!Z$353)*('Fixed assets'!$U$2:$U$1000=Costs!$A413)*(AbschreibungAHKBvD))","v":0},{"$f":"SUM(AA$178:AA236)-SUM(AA$266:AA324)+SUMPRODUCT((Aktivierungsjahr=Costs!$A413)*(AbschreibungAGr=Costs!AA$353)*('Fixed assets'!$U$2:$U$1000=Costs!$A413)*(AbschreibungAHKBvD))","v":0},{"$f":"SUM(AB$178:AB236)-SUM(AB$266:AB324)+SUMPRODUCT((Aktivierungsjahr=Costs!$A413)*(AbschreibungAGr=Costs!AB$353)*('Fixed assets'!$U$2:$U$1000=Costs!$A413)*(AbschreibungAHKBvD))","v":0},{"$f":"SUM(AC$178:AC236)-SUM(AC$266:AC324)+SUMPRODUCT((Aktivierungsjahr=Costs!$A413)*(AbschreibungAGr=Costs!AC$353)*('Fixed assets'!$U$2:$U$1000=Costs!$A413)*(AbschreibungAHKBvD))","v":0},{"$f":"SUM(AD$178:AD236)-SUM(AD$266:AD324)+SUMPRODUCT((Aktivierungsjahr=Costs!$A413)*(AbschreibungAGr=Costs!AD$353)*('Fixed assets'!$U$2:$U$1000=Costs!$A413)*(AbschreibungAHKBvD))","v":0},{"$f":"SUM(AE$178:AE236)-SUM(AE$266:AE324)+SUMPRODUCT((Aktivierungsjahr=Costs!$A413)*(AbschreibungAGr=Costs!AE$353)*('Fixed assets'!$U$2:$U$1000=Costs!$A413)*(AbschreibungAHKBvD))","v":0},{"$f":"SUM(AF$178:AF236)-SUM(AF$266:AF324)+SUMPRODUCT((Aktivierungsjahr=Costs!$A413)*(AbschreibungAGr=Costs!AF$353)*('Fixed assets'!$U$2:$U$1000=Costs!$A413)*(AbschreibungAHKBvD))","v":0},{"$f":"SUM(AG$178:AG236)-SUM(AG$266:AG324)+SUMPRODUCT((Aktivierungsjahr=Costs!$A413)*(AbschreibungAGr=Costs!AG$353)*('Fixed assets'!$U$2:$U$1000=Costs!$A413)*(AbschreibungAHKBvD))","v":0},{"$f":"SUM(AH$178:AH236)-SUM(AH$266:AH324)+SUMPRODUCT((Aktivierungsjahr=Costs!$A413)*(AbschreibungAGr=Costs!AH$353)*('Fixed assets'!$U$2:$U$1000=Costs!$A413)*(AbschreibungAHKBvD))","v":0},{"$f":"SUM(AI$178:AI236)-SUM(AI$266:AI324)+SUMPRODUCT((Aktivierungsjahr=Costs!$A413)*(AbschreibungAGr=Costs!AI$353)*('Fixed assets'!$U$2:$U$1000=Costs!$A413)*(AbschreibungAHKBvD))","v":0},{"$f":"SUM(AJ$178:AJ236)-SUM(AJ$266:AJ324)+SUMPRODUCT((Aktivierungsjahr=Costs!$A413)*(AbschreibungAGr=Costs!AJ$353)*('Fixed assets'!$U$2:$U$1000=Costs!$A413)*(AbschreibungAHKBvD))","v":-8.149072527885437E-10},{"$f":"SUM(AK$178:AK236)-SUM(AK$266:AK324)+SUMPRODUCT((Aktivierungsjahr=Costs!$A413)*(AbschreibungAGr=Costs!AK$353)*('Fixed assets'!$U$2:$U$1000=Costs!$A413)*(AbschreibungAHKBvD))","v":0},{"$f":"SUM(AL$178:AL236)-SUM(AL$266:AL324)+SUMPRODUCT((Aktivierungsjahr=Costs!$A413)*(AbschreibungAGr=Costs!AL$353)*('Fixed assets'!$U$2:$U$1000=Costs!$A413)*(AbschreibungAHKBvD))","v":0},{"$f":"SUM(AM$178:AM236)-SUM(AM$266:AM324)+SUMPRODUCT((Aktivierungsjahr=Costs!$A413)*(AbschreibungAGr=Costs!AM$353)*('Fixed assets'!$U$2:$U$1000=Costs!$A413)*(AbschreibungAHKBvD))","v":0},{"$f":"SUM(AN$178:AN236)-SUM(AN$266:AN324)+SUMPRODUCT((Aktivierungsjahr=Costs!$A413)*(AbschreibungAGr=Costs!AN$353)*('Fixed assets'!$U$2:$U$1000=Costs!$A413)*(AbschreibungAHKBvD))","v":0},{"$f":"SUM(AO$178:AO236)-SUM(AO$266:AO324)+SUMPRODUCT((Aktivierungsjahr=Costs!$A413)*(AbschreibungAGr=Costs!AO$353)*('Fixed assets'!$U$2:$U$1000=Costs!$A413)*(AbschreibungAHKBvD))","v":0},{"$f":"SUM(AP$178:AP236)-SUM(AP$266:AP324)+SUMPRODUCT((Aktivierungsjahr=Costs!$A413)*(AbschreibungAGr=Costs!AP$353)*('Fixed assets'!$U$2:$U$1000=Costs!$A413)*(AbschreibungAHKBvD))","v":0},{"$f":"SUM(AQ$178:AQ236)-SUM(AQ$266:AQ324)+SUMPRODUCT((Aktivierungsjahr=Costs!$A413)*(AbschreibungAGr=Costs!AQ$353)*('Fixed assets'!$U$2:$U$1000=Costs!$A413)*(AbschreibungAHKBvD))","v":0}]
[2075,-8.149072527885437E-10,{"$f":"SUM(C$178:C237)-SUM(C$266:C325)+SUMPRODUCT((Aktivierungsjahr=Costs!$A414)*(AbschreibungAGr=Costs!C$353)*('Fixed assets'!$U$2:$U$1000=Costs!$A414)*(AbschreibungAHKBvD))","v":0},{"$f":"SUM(D$178:D237)-SUM(D$266:D325)+SUMPRODUCT((Aktivierungsjahr=Costs!$A414)*(AbschreibungAGr=Costs!D$353)*('Fixed assets'!$U$2:$U$1000=Costs!$A414)*(AbschreibungAHKBvD))","v":0},{"$f":"SUM(E$178:E237)-SUM(E$266:E325)+SUMPRODUCT((Aktivierungsjahr=Costs!$A414)*(AbschreibungAGr=Costs!E$353)*('Fixed assets'!$U$2:$U$1000=Costs!$A414)*(AbschreibungAHKBvD))","v":0},{"$f":"SUM(F$178:F237)-SUM(F$266:F325)+SUMPRODUCT((Aktivierungsjahr=Costs!$A414)*(AbschreibungAGr=Costs!F$353)*('Fixed assets'!$U$2:$U$1000=Costs!$A414)*(AbschreibungAHKBvD))","v":0},{"$f":"SUM(G$178:G237)-SUM(G$266:G325)+SUMPRODUCT((Aktivierungsjahr=Costs!$A414)*(AbschreibungAGr=Costs!G$353)*('Fixed assets'!$U$2:$U$1000=Costs!$A414)*(AbschreibungAHKBvD))","v":0},{"$f":"SUM(H$178:H237)-SUM(H$266:H325)+SUMPRODUCT((Aktivierungsjahr=Costs!$A414)*(AbschreibungAGr=Costs!H$353)*('Fixed assets'!$U$2:$U$1000=Costs!$A414)*(AbschreibungAHKBvD))","v":0},{"$f":"SUM(I$178:I237)-SUM(I$266:I325)+SUMPRODUCT((Aktivierungsjahr=Costs!$A414)*(AbschreibungAGr=Costs!I$353)*('Fixed assets'!$U$2:$U$1000=Costs!$A414)*(AbschreibungAHKBvD))","v":0},{"$f":"SUM(J$178:J237)-SUM(J$266:J325)+SUMPRODUCT((Aktivierungsjahr=Costs!$A414)*(AbschreibungAGr=Costs!J$353)*('Fixed assets'!$U$2:$U$1000=Costs!$A414)*(AbschreibungAHKBvD))","v":0},{"$f":"SUM(K$178:K237)-SUM(K$266:K325)+SUMPRODUCT((Aktivierungsjahr=Costs!$A414)*(AbschreibungAGr=Costs!K$353)*('Fixed assets'!$U$2:$U$1000=Costs!$A414)*(AbschreibungAHKBvD))","v":0},{"$f":"SUM(L$178:L237)-SUM(L$266:L325)+SUMPRODUCT((Aktivierungsjahr=Costs!$A414)*(AbschreibungAGr=Costs!L$353)*('Fixed assets'!$U$2:$U$1000=Costs!$A414)*(AbschreibungAHKBvD))","v":0},{"$f":"SUM(M$178:M237)-SUM(M$266:M325)+SUMPRODUCT((Aktivierungsjahr=Costs!$A414)*(AbschreibungAGr=Costs!M$353)*('Fixed assets'!$U$2:$U$1000=Costs!$A414)*(AbschreibungAHKBvD))","v":0},{"$f":"SUM(N$178:N237)-SUM(N$266:N325)+SUMPRODUCT((Aktivierungsjahr=Costs!$A414)*(AbschreibungAGr=Costs!N$353)*('Fixed assets'!$U$2:$U$1000=Costs!$A414)*(AbschreibungAHKBvD))","v":0},{"$f":"SUM(O$178:O237)-SUM(O$266:O325)+SUMPRODUCT((Aktivierungsjahr=Costs!$A414)*(AbschreibungAGr=Costs!O$353)*('Fixed assets'!$U$2:$U$1000=Costs!$A414)*(AbschreibungAHKBvD))","v":0},{"$f":"SUM(P$178:P237)-SUM(P$266:P325)+SUMPRODUCT((Aktivierungsjahr=Costs!$A414)*(AbschreibungAGr=Costs!P$353)*('Fixed assets'!$U$2:$U$1000=Costs!$A414)*(AbschreibungAHKBvD))","v":0},{"$f":"SUM(Q$178:Q237)-SUM(Q$266:Q325)+SUMPRODUCT((Aktivierungsjahr=Costs!$A414)*(AbschreibungAGr=Costs!Q$353)*('Fixed assets'!$U$2:$U$1000=Costs!$A414)*(AbschreibungAHKBvD))","v":0},{"$f":"SUM(R$178:R237)-SUM(R$266:R325)+SUMPRODUCT((Aktivierungsjahr=Costs!$A414)*(AbschreibungAGr=Costs!R$353)*('Fixed assets'!$U$2:$U$1000=Costs!$A414)*(AbschreibungAHKBvD))","v":0},{"$f":"SUM(S$178:S237)-SUM(S$266:S325)+SUMPRODUCT((Aktivierungsjahr=Costs!$A414)*(AbschreibungAGr=Costs!S$353)*('Fixed assets'!$U$2:$U$1000=Costs!$A414)*(AbschreibungAHKBvD))","v":0},{"$f":"SUM(T$178:T237)-SUM(T$266:T325)+SUMPRODUCT((Aktivierungsjahr=Costs!$A414)*(AbschreibungAGr=Costs!T$353)*('Fixed assets'!$U$2:$U$1000=Costs!$A414)*(AbschreibungAHKBvD))","v":0},{"$f":"SUM(U$178:U237)-SUM(U$266:U325)+SUMPRODUCT((Aktivierungsjahr=Costs!$A414)*(AbschreibungAGr=Costs!U$353)*('Fixed assets'!$U$2:$U$1000=Costs!$A414)*(AbschreibungAHKBvD))","v":0},{"$f":"SUM(V$178:V237)-SUM(V$266:V325)+SUMPRODUCT((Aktivierungsjahr=Costs!$A414)*(AbschreibungAGr=Costs!V$353)*('Fixed assets'!$U$2:$U$1000=Costs!$A414)*(AbschreibungAHKBvD))","v":0},{"$f":"SUM(W$178:W237)-SUM(W$266:W325)+SUMPRODUCT((Aktivierungsjahr=Costs!$A414)*(AbschreibungAGr=Costs!W$353)*('Fixed assets'!$U$2:$U$1000=Costs!$A414)*(AbschreibungAHKBvD))","v":0},{"$f":"SUM(X$178:X237)-SUM(X$266:X325)+SUMPRODUCT((Aktivierungsjahr=Costs!$A414)*(AbschreibungAGr=Costs!X$353)*('Fixed assets'!$U$2:$U$1000=Costs!$A414)*(AbschreibungAHKBvD))","v":0},{"$f":"SUM(Y$178:Y237)-SUM(Y$266:Y325)+SUMPRODUCT((Aktivierungsjahr=Costs!$A414)*(AbschreibungAGr=Costs!Y$353)*('Fixed assets'!$U$2:$U$1000=Costs!$A414)*(AbschreibungAHKBvD))","v":0},{"$f":"SUM(Z$178:Z237)-SUM(Z$266:Z325)+SUMPRODUCT((Aktivierungsjahr=Costs!$A414)*(AbschreibungAGr=Costs!Z$353)*('Fixed assets'!$U$2:$U$1000=Costs!$A414)*(AbschreibungAHKBvD))","v":0},{"$f":"SUM(AA$178:AA237)-SUM(AA$266:AA325)+SUMPRODUCT((Aktivierungsjahr=Costs!$A414)*(AbschreibungAGr=Costs!AA$353)*('Fixed assets'!$U$2:$U$1000=Costs!$A414)*(AbschreibungAHKBvD))","v":0},{"$f":"SUM(AB$178:AB237)-SUM(AB$266:AB325)+SUMPRODUCT((Aktivierungsjahr=Costs!$A414)*(AbschreibungAGr=Costs!AB$353)*('Fixed assets'!$U$2:$U$1000=Costs!$A414)*(AbschreibungAHKBvD))","v":0},{"$f":"SUM(AC$178:AC237)-SUM(AC$266:AC325)+SUMPRODUCT((Aktivierungsjahr=Costs!$A414)*(AbschreibungAGr=Costs!AC$353)*('Fixed assets'!$U$2:$U$1000=Costs!$A414)*(AbschreibungAHKBvD))","v":0},{"$f":"SUM(AD$178:AD237)-SUM(AD$266:AD325)+SUMPRODUCT((Aktivierungsjahr=Costs!$A414)*(AbschreibungAGr=Costs!AD$353)*('Fixed assets'!$U$2:$U$1000=Costs!$A414)*(AbschreibungAHKBvD))","v":0},{"$f":"SUM(AE$178:AE237)-SUM(AE$266:AE325)+SUMPRODUCT((Aktivierungsjahr=Costs!$A414)*(AbschreibungAGr=Costs!AE$353)*('Fixed assets'!$U$2:$U$1000=Costs!$A414)*(AbschreibungAHKBvD))","v":0},{"$f":"SUM(AF$178:AF237)-SUM(AF$266:AF325)+SUMPRODUCT((Aktivierungsjahr=Costs!$A414)*(AbschreibungAGr=Costs!AF$353)*('Fixed assets'!$U$2:$U$1000=Costs!$A414)*(AbschreibungAHKBvD))","v":0},{"$f":"SUM(AG$178:AG237)-SUM(AG$266:AG325)+SUMPRODUCT((Aktivierungsjahr=Costs!$A414)*(AbschreibungAGr=Costs!AG$353)*('Fixed assets'!$U$2:$U$1000=Costs!$A414)*(AbschreibungAHKBvD))","v":0},{"$f":"SUM(AH$178:AH237)-SUM(AH$266:AH325)+SUMPRODUCT((Aktivierungsjahr=Costs!$A414)*(AbschreibungAGr=Costs!AH$353)*('Fixed assets'!$U$2:$U$1000=Costs!$A414)*(AbschreibungAHKBvD))","v":0},{"$f":"SUM(AI$178:AI237)-SUM(AI$266:AI325)+SUMPRODUCT((Aktivierungsjahr=Costs!$A414)*(AbschreibungAGr=Costs!AI$353)*('Fixed assets'!$U$2:$U$1000=Costs!$A414)*(AbschreibungAHKBvD))","v":0},{"$f":"SUM(AJ$178:AJ237)-SUM(AJ$266:AJ325)+SUMPRODUCT((Aktivierungsjahr=Costs!$A414)*(AbschreibungAGr=Costs!AJ$353)*('Fixed assets'!$U$2:$U$1000=Costs!$A414)*(AbschreibungAHKBvD))","v":-8.149072527885437E-10},{"$f":"SUM(AK$178:AK237)-SUM(AK$266:AK325)+SUMPRODUCT((Aktivierungsjahr=Costs!$A414)*(AbschreibungAGr=Costs!AK$353)*('Fixed assets'!$U$2:$U$1000=Costs!$A414)*(AbschreibungAHKBvD))","v":0},{"$f":"SUM(AL$178:AL237)-SUM(AL$266:AL325)+SUMPRODUCT((Aktivierungsjahr=Costs!$A414)*(AbschreibungAGr=Costs!AL$353)*('Fixed assets'!$U$2:$U$1000=Costs!$A414)*(AbschreibungAHKBvD))","v":0},{"$f":"SUM(AM$178:AM237)-SUM(AM$266:AM325)+SUMPRODUCT((Aktivierungsjahr=Costs!$A414)*(AbschreibungAGr=Costs!AM$353)*('Fixed assets'!$U$2:$U$1000=Costs!$A414)*(AbschreibungAHKBvD))","v":0},{"$f":"SUM(AN$178:AN237)-SUM(AN$266:AN325)+SUMPRODUCT((Aktivierungsjahr=Costs!$A414)*(AbschreibungAGr=Costs!AN$353)*('Fixed assets'!$U$2:$U$1000=Costs!$A414)*(AbschreibungAHKBvD))","v":0},{"$f":"SUM(AO$178:AO237)-SUM(AO$266:AO325)+SUMPRODUCT((Aktivierungsjahr=Costs!$A414)*(AbschreibungAGr=Costs!AO$353)*('Fixed assets'!$U$2:$U$1000=Costs!$A414)*(AbschreibungAHKBvD))","v":0},{"$f":"SUM(AP$178:AP237)-SUM(AP$266:AP325)+SUMPRODUCT((Aktivierungsjahr=Costs!$A414)*(AbschreibungAGr=Costs!AP$353)*('Fixed assets'!$U$2:$U$1000=Costs!$A414)*(AbschreibungAHKBvD))","v":0},{"$f":"SUM(AQ$178:AQ237)-SUM(AQ$266:AQ325)+SUMPRODUCT((Aktivierungsjahr=Costs!$A414)*(AbschreibungAGr=Costs!AQ$353)*('Fixed assets'!$U$2:$U$1000=Costs!$A414)*(AbschreibungAHKBvD))","v":0}]
[2076,-8.149072527885437E-10,{"$f":"SUM(C$178:C238)-SUM(C$266:C326)+SUMPRODUCT((Aktivierungsjahr=Costs!$A415)*(AbschreibungAGr=Costs!C$353)*('Fixed assets'!$U$2:$U$1000=Costs!$A415)*(AbschreibungAHKBvD))","v":0},{"$f":"SUM(D$178:D238)-SUM(D$266:D326)+SUMPRODUCT((Aktivierungsjahr=Costs!$A415)*(AbschreibungAGr=Costs!D$353)*('Fixed assets'!$U$2:$U$1000=Costs!$A415)*(AbschreibungAHKBvD))","v":0},{"$f":"SUM(E$178:E238)-SUM(E$266:E326)+SUMPRODUCT((Aktivierungsjahr=Costs!$A415)*(AbschreibungAGr=Costs!E$353)*('Fixed assets'!$U$2:$U$1000=Costs!$A415)*(AbschreibungAHKBvD))","v":0},{"$f":"SUM(F$178:F238)-SUM(F$266:F326)+SUMPRODUCT((Aktivierungsjahr=Costs!$A415)*(AbschreibungAGr=Costs!F$353)*('Fixed assets'!$U$2:$U$1000=Costs!$A415)*(AbschreibungAHKBvD))","v":0},{"$f":"SUM(G$178:G238)-SUM(G$266:G326)+SUMPRODUCT((Aktivierungsjahr=Costs!$A415)*(AbschreibungAGr=Costs!G$353)*('Fixed assets'!$U$2:$U$1000=Costs!$A415)*(AbschreibungAHKBvD))","v":0},{"$f":"SUM(H$178:H238)-SUM(H$266:H326)+SUMPRODUCT((Aktivierungsjahr=Costs!$A415)*(AbschreibungAGr=Costs!H$353)*('Fixed assets'!$U$2:$U$1000=Costs!$A415)*(AbschreibungAHKBvD))","v":0},{"$f":"SUM(I$178:I238)-SUM(I$266:I326)+SUMPRODUCT((Aktivierungsjahr=Costs!$A415)*(AbschreibungAGr=Costs!I$353)*('Fixed assets'!$U$2:$U$1000=Costs!$A415)*(AbschreibungAHKBvD))","v":0},{"$f":"SUM(J$178:J238)-SUM(J$266:J326)+SUMPRODUCT((Aktivierungsjahr=Costs!$A415)*(AbschreibungAGr=Costs!J$353)*('Fixed assets'!$U$2:$U$1000=Costs!$A415)*(AbschreibungAHKBvD))","v":0},{"$f":"SUM(K$178:K238)-SUM(K$266:K326)+SUMPRODUCT((Aktivierungsjahr=Costs!$A415)*(AbschreibungAGr=Costs!K$353)*('Fixed assets'!$U$2:$U$1000=Costs!$A415)*(AbschreibungAHKBvD))","v":0},{"$f":"SUM(L$178:L238)-SUM(L$266:L326)+SUMPRODUCT((Aktivierungsjahr=Costs!$A415)*(AbschreibungAGr=Costs!L$353)*('Fixed assets'!$U$2:$U$1000=Costs!$A415)*(AbschreibungAHKBvD))","v":0},{"$f":"SUM(M$178:M238)-SUM(M$266:M326)+SUMPRODUCT((Aktivierungsjahr=Costs!$A415)*(AbschreibungAGr=Costs!M$353)*('Fixed assets'!$U$2:$U$1000=Costs!$A415)*(AbschreibungAHKBvD))","v":0},{"$f":"SUM(N$178:N238)-SUM(N$266:N326)+SUMPRODUCT((Aktivierungsjahr=Costs!$A415)*(AbschreibungAGr=Costs!N$353)*('Fixed assets'!$U$2:$U$1000=Costs!$A415)*(AbschreibungAHKBvD))","v":0},{"$f":"SUM(O$178:O238)-SUM(O$266:O326)+SUMPRODUCT((Aktivierungsjahr=Costs!$A415)*(AbschreibungAGr=Costs!O$353)*('Fixed assets'!$U$2:$U$1000=Costs!$A415)*(AbschreibungAHKBvD))","v":0},{"$f":"SUM(P$178:P238)-SUM(P$266:P326)+SUMPRODUCT((Aktivierungsjahr=Costs!$A415)*(AbschreibungAGr=Costs!P$353)*('Fixed assets'!$U$2:$U$1000=Costs!$A415)*(AbschreibungAHKBvD))","v":0},{"$f":"SUM(Q$178:Q238)-SUM(Q$266:Q326)+SUMPRODUCT((Aktivierungsjahr=Costs!$A415)*(AbschreibungAGr=Costs!Q$353)*('Fixed assets'!$U$2:$U$1000=Costs!$A415)*(AbschreibungAHKBvD))","v":0},{"$f":"SUM(R$178:R238)-SUM(R$266:R326)+SUMPRODUCT((Aktivierungsjahr=Costs!$A415)*(AbschreibungAGr=Costs!R$353)*('Fixed assets'!$U$2:$U$1000=Costs!$A415)*(AbschreibungAHKBvD))","v":0},{"$f":"SUM(S$178:S238)-SUM(S$266:S326)+SUMPRODUCT((Aktivierungsjahr=Costs!$A415)*(AbschreibungAGr=Costs!S$353)*('Fixed assets'!$U$2:$U$1000=Costs!$A415)*(AbschreibungAHKBvD))","v":0},{"$f":"SUM(T$178:T238)-SUM(T$266:T326)+SUMPRODUCT((Aktivierungsjahr=Costs!$A415)*(AbschreibungAGr=Costs!T$353)*('Fixed assets'!$U$2:$U$1000=Costs!$A415)*(AbschreibungAHKBvD))","v":0},{"$f":"SUM(U$178:U238)-SUM(U$266:U326)+SUMPRODUCT((Aktivierungsjahr=Costs!$A415)*(AbschreibungAGr=Costs!U$353)*('Fixed assets'!$U$2:$U$1000=Costs!$A415)*(AbschreibungAHKBvD))","v":0},{"$f":"SUM(V$178:V238)-SUM(V$266:V326)+SUMPRODUCT((Aktivierungsjahr=Costs!$A415)*(AbschreibungAGr=Costs!V$353)*('Fixed assets'!$U$2:$U$1000=Costs!$A415)*(AbschreibungAHKBvD))","v":0},{"$f":"SUM(W$178:W238)-SUM(W$266:W326)+SUMPRODUCT((Aktivierungsjahr=Costs!$A415)*(AbschreibungAGr=Costs!W$353)*('Fixed assets'!$U$2:$U$1000=Costs!$A415)*(AbschreibungAHKBvD))","v":0},{"$f":"SUM(X$178:X238)-SUM(X$266:X326)+SUMPRODUCT((Aktivierungsjahr=Costs!$A415)*(AbschreibungAGr=Costs!X$353)*('Fixed assets'!$U$2:$U$1000=Costs!$A415)*(AbschreibungAHKBvD))","v":0},{"$f":"SUM(Y$178:Y238)-SUM(Y$266:Y326)+SUMPRODUCT((Aktivierungsjahr=Costs!$A415)*(AbschreibungAGr=Costs!Y$353)*('Fixed assets'!$U$2:$U$1000=Costs!$A415)*(AbschreibungAHKBvD))","v":0},{"$f":"SUM(Z$178:Z238)-SUM(Z$266:Z326)+SUMPRODUCT((Aktivierungsjahr=Costs!$A415)*(AbschreibungAGr=Costs!Z$353)*('Fixed assets'!$U$2:$U$1000=Costs!$A415)*(AbschreibungAHKBvD))","v":0},{"$f":"SUM(AA$178:AA238)-SUM(AA$266:AA326)+SUMPRODUCT((Aktivierungsjahr=Costs!$A415)*(AbschreibungAGr=Costs!AA$353)*('Fixed assets'!$U$2:$U$1000=Costs!$A415)*(AbschreibungAHKBvD))","v":0},{"$f":"SUM(AB$178:AB238)-SUM(AB$266:AB326)+SUMPRODUCT((Aktivierungsjahr=Costs!$A415)*(AbschreibungAGr=Costs!AB$353)*('Fixed assets'!$U$2:$U$1000=Costs!$A415)*(AbschreibungAHKBvD))","v":0},{"$f":"SUM(AC$178:AC238)-SUM(AC$266:AC326)+SUMPRODUCT((Aktivierungsjahr=Costs!$A415)*(AbschreibungAGr=Costs!AC$353)*('Fixed assets'!$U$2:$U$1000=Costs!$A415)*(AbschreibungAHKBvD))","v":0},{"$f":"SUM(AD$178:AD238)-SUM(AD$266:AD326)+SUMPRODUCT((Aktivierungsjahr=Costs!$A415)*(AbschreibungAGr=Costs!AD$353)*('Fixed assets'!$U$2:$U$1000=Costs!$A415)*(AbschreibungAHKBvD))","v":0},{"$f":"SUM(AE$178:AE238)-SUM(AE$266:AE326)+SUMPRODUCT((Aktivierungsjahr=Costs!$A415)*(AbschreibungAGr=Costs!AE$353)*('Fixed assets'!$U$2:$U$1000=Costs!$A415)*(AbschreibungAHKBvD))","v":0},{"$f":"SUM(AF$178:AF238)-SUM(AF$266:AF326)+SUMPRODUCT((Aktivierungsjahr=Costs!$A415)*(AbschreibungAGr=Costs!AF$353)*('Fixed assets'!$U$2:$U$1000=Costs!$A415)*(AbschreibungAHKBvD))","v":0},{"$f":"SUM(AG$178:AG238)-SUM(AG$266:AG326)+SUMPRODUCT((Aktivierungsjahr=Costs!$A415)*(AbschreibungAGr=Costs!AG$353)*('Fixed assets'!$U$2:$U$1000=Costs!$A415)*(AbschreibungAHKBvD))","v":0},{"$f":"SUM(AH$178:AH238)-SUM(AH$266:AH326)+SUMPRODUCT((Aktivierungsjahr=Costs!$A415)*(AbschreibungAGr=Costs!AH$353)*('Fixed assets'!$U$2:$U$1000=Costs!$A415)*(AbschreibungAHKBvD))","v":0},{"$f":"SUM(AI$178:AI238)-SUM(AI$266:AI326)+SUMPRODUCT((Aktivierungsjahr=Costs!$A415)*(AbschreibungAGr=Costs!AI$353)*('Fixed assets'!$U$2:$U$1000=Costs!$A415)*(AbschreibungAHKBvD))","v":0},{"$f":"SUM(AJ$178:AJ238)-SUM(AJ$266:AJ326)+SUMPRODUCT((Aktivierungsjahr=Costs!$A415)*(AbschreibungAGr=Costs!AJ$353)*('Fixed assets'!$U$2:$U$1000=Costs!$A415)*(AbschreibungAHKBvD))","v":-8.149072527885437E-10},{"$f":"SUM(AK$178:AK238)-SUM(AK$266:AK326)+SUMPRODUCT((Aktivierungsjahr=Costs!$A415)*(AbschreibungAGr=Costs!AK$353)*('Fixed assets'!$U$2:$U$1000=Costs!$A415)*(AbschreibungAHKBvD))","v":0},{"$f":"SUM(AL$178:AL238)-SUM(AL$266:AL326)+SUMPRODUCT((Aktivierungsjahr=Costs!$A415)*(AbschreibungAGr=Costs!AL$353)*('Fixed assets'!$U$2:$U$1000=Costs!$A415)*(AbschreibungAHKBvD))","v":0},{"$f":"SUM(AM$178:AM238)-SUM(AM$266:AM326)+SUMPRODUCT((Aktivierungsjahr=Costs!$A415)*(AbschreibungAGr=Costs!AM$353)*('Fixed assets'!$U$2:$U$1000=Costs!$A415)*(AbschreibungAHKBvD))","v":0},{"$f":"SUM(AN$178:AN238)-SUM(AN$266:AN326)+SUMPRODUCT((Aktivierungsjahr=Costs!$A415)*(AbschreibungAGr=Costs!AN$353)*('Fixed assets'!$U$2:$U$1000=Costs!$A415)*(AbschreibungAHKBvD))","v":0},{"$f":"SUM(AO$178:AO238)-SUM(AO$266:AO326)+SUMPRODUCT((Aktivierungsjahr=Costs!$A415)*(AbschreibungAGr=Costs!AO$353)*('Fixed assets'!$U$2:$U$1000=Costs!$A415)*(AbschreibungAHKBvD))","v":0},{"$f":"SUM(AP$178:AP238)-SUM(AP$266:AP326)+SUMPRODUCT((Aktivierungsjahr=Costs!$A415)*(AbschreibungAGr=Costs!AP$353)*('Fixed assets'!$U$2:$U$1000=Costs!$A415)*(AbschreibungAHKBvD))","v":0},{"$f":"SUM(AQ$178:AQ238)-SUM(AQ$266:AQ326)+SUMPRODUCT((Aktivierungsjahr=Costs!$A415)*(AbschreibungAGr=Costs!AQ$353)*('Fixed assets'!$U$2:$U$1000=Costs!$A415)*(AbschreibungAHKBvD))","v":0}]
[2077,-8.149072527885437E-10,{"$f":"SUM(C$178:C239)-SUM(C$266:C327)+SUMPRODUCT((Aktivierungsjahr=Costs!$A416)*(AbschreibungAGr=Costs!C$353)*('Fixed assets'!$U$2:$U$1000=Costs!$A416)*(AbschreibungAHKBvD))","v":0},{"$f":"SUM(D$178:D239)-SUM(D$266:D327)+SUMPRODUCT((Aktivierungsjahr=Costs!$A416)*(AbschreibungAGr=Costs!D$353)*('Fixed assets'!$U$2:$U$1000=Costs!$A416)*(AbschreibungAHKBvD))","v":0},{"$f":"SUM(E$178:E239)-SUM(E$266:E327)+SUMPRODUCT((Aktivierungsjahr=Costs!$A416)*(AbschreibungAGr=Costs!E$353)*('Fixed assets'!$U$2:$U$1000=Costs!$A416)*(AbschreibungAHKBvD))","v":0},{"$f":"SUM(F$178:F239)-SUM(F$266:F327)+SUMPRODUCT((Aktivierungsjahr=Costs!$A416)*(AbschreibungAGr=Costs!F$353)*('Fixed assets'!$U$2:$U$1000=Costs!$A416)*(AbschreibungAHKBvD))","v":0},{"$f":"SUM(G$178:G239)-SUM(G$266:G327)+SUMPRODUCT((Aktivierungsjahr=Costs!$A416)*(AbschreibungAGr=Costs!G$353)*('Fixed assets'!$U$2:$U$1000=Costs!$A416)*(AbschreibungAHKBvD))","v":0},{"$f":"SUM(H$178:H239)-SUM(H$266:H327)+SUMPRODUCT((Aktivierungsjahr=Costs!$A416)*(AbschreibungAGr=Costs!H$353)*('Fixed assets'!$U$2:$U$1000=Costs!$A416)*(AbschreibungAHKBvD))","v":0},{"$f":"SUM(I$178:I239)-SUM(I$266:I327)+SUMPRODUCT((Aktivierungsjahr=Costs!$A416)*(AbschreibungAGr=Costs!I$353)*('Fixed assets'!$U$2:$U$1000=Costs!$A416)*(AbschreibungAHKBvD))","v":0},{"$f":"SUM(J$178:J239)-SUM(J$266:J327)+SUMPRODUCT((Aktivierungsjahr=Costs!$A416)*(AbschreibungAGr=Costs!J$353)*('Fixed assets'!$U$2:$U$1000=Costs!$A416)*(AbschreibungAHKBvD))","v":0},{"$f":"SUM(K$178:K239)-SUM(K$266:K327)+SUMPRODUCT((Aktivierungsjahr=Costs!$A416)*(AbschreibungAGr=Costs!K$353)*('Fixed assets'!$U$2:$U$1000=Costs!$A416)*(AbschreibungAHKBvD))","v":0},{"$f":"SUM(L$178:L239)-SUM(L$266:L327)+SUMPRODUCT((Aktivierungsjahr=Costs!$A416)*(AbschreibungAGr=Costs!L$353)*('Fixed assets'!$U$2:$U$1000=Costs!$A416)*(AbschreibungAHKBvD))","v":0},{"$f":"SUM(M$178:M239)-SUM(M$266:M327)+SUMPRODUCT((Aktivierungsjahr=Costs!$A416)*(AbschreibungAGr=Costs!M$353)*('Fixed assets'!$U$2:$U$1000=Costs!$A416)*(AbschreibungAHKBvD))","v":0},{"$f":"SUM(N$178:N239)-SUM(N$266:N327)+SUMPRODUCT((Aktivierungsjahr=Costs!$A416)*(AbschreibungAGr=Costs!N$353)*('Fixed assets'!$U$2:$U$1000=Costs!$A416)*(AbschreibungAHKBvD))","v":0},{"$f":"SUM(O$178:O239)-SUM(O$266:O327)+SUMPRODUCT((Aktivierungsjahr=Costs!$A416)*(AbschreibungAGr=Costs!O$353)*('Fixed assets'!$U$2:$U$1000=Costs!$A416)*(AbschreibungAHKBvD))","v":0},{"$f":"SUM(P$178:P239)-SUM(P$266:P327)+SUMPRODUCT((Aktivierungsjahr=Costs!$A416)*(AbschreibungAGr=Costs!P$353)*('Fixed assets'!$U$2:$U$1000=Costs!$A416)*(AbschreibungAHKBvD))","v":0},{"$f":"SUM(Q$178:Q239)-SUM(Q$266:Q327)+SUMPRODUCT((Aktivierungsjahr=Costs!$A416)*(AbschreibungAGr=Costs!Q$353)*('Fixed assets'!$U$2:$U$1000=Costs!$A416)*(AbschreibungAHKBvD))","v":0},{"$f":"SUM(R$178:R239)-SUM(R$266:R327)+SUMPRODUCT((Aktivierungsjahr=Costs!$A416)*(AbschreibungAGr=Costs!R$353)*('Fixed assets'!$U$2:$U$1000=Costs!$A416)*(AbschreibungAHKBvD))","v":0},{"$f":"SUM(S$178:S239)-SUM(S$266:S327)+SUMPRODUCT((Aktivierungsjahr=Costs!$A416)*(AbschreibungAGr=Costs!S$353)*('Fixed assets'!$U$2:$U$1000=Costs!$A416)*(AbschreibungAHKBvD))","v":0},{"$f":"SUM(T$178:T239)-SUM(T$266:T327)+SUMPRODUCT((Aktivierungsjahr=Costs!$A416)*(AbschreibungAGr=Costs!T$353)*('Fixed assets'!$U$2:$U$1000=Costs!$A416)*(AbschreibungAHKBvD))","v":0},{"$f":"SUM(U$178:U239)-SUM(U$266:U327)+SUMPRODUCT((Aktivierungsjahr=Costs!$A416)*(AbschreibungAGr=Costs!U$353)*('Fixed assets'!$U$2:$U$1000=Costs!$A416)*(AbschreibungAHKBvD))","v":0},{"$f":"SUM(V$178:V239)-SUM(V$266:V327)+SUMPRODUCT((Aktivierungsjahr=Costs!$A416)*(AbschreibungAGr=Costs!V$353)*('Fixed assets'!$U$2:$U$1000=Costs!$A416)*(AbschreibungAHKBvD))","v":0},{"$f":"SUM(W$178:W239)-SUM(W$266:W327)+SUMPRODUCT((Aktivierungsjahr=Costs!$A416)*(AbschreibungAGr=Costs!W$353)*('Fixed assets'!$U$2:$U$1000=Costs!$A416)*(AbschreibungAHKBvD))","v":0},{"$f":"SUM(X$178:X239)-SUM(X$266:X327)+SUMPRODUCT((Aktivierungsjahr=Costs!$A416)*(AbschreibungAGr=Costs!X$353)*('Fixed assets'!$U$2:$U$1000=Costs!$A416)*(AbschreibungAHKBvD))","v":0},{"$f":"SUM(Y$178:Y239)-SUM(Y$266:Y327)+SUMPRODUCT((Aktivierungsjahr=Costs!$A416)*(AbschreibungAGr=Costs!Y$353)*('Fixed assets'!$U$2:$U$1000=Costs!$A416)*(AbschreibungAHKBvD))","v":0},{"$f":"SUM(Z$178:Z239)-SUM(Z$266:Z327)+SUMPRODUCT((Aktivierungsjahr=Costs!$A416)*(AbschreibungAGr=Costs!Z$353)*('Fixed assets'!$U$2:$U$1000=Costs!$A416)*(AbschreibungAHKBvD))","v":0},{"$f":"SUM(AA$178:AA239)-SUM(AA$266:AA327)+SUMPRODUCT((Aktivierungsjahr=Costs!$A416)*(AbschreibungAGr=Costs!AA$353)*('Fixed assets'!$U$2:$U$1000=Costs!$A416)*(AbschreibungAHKBvD))","v":0},{"$f":"SUM(AB$178:AB239)-SUM(AB$266:AB327)+SUMPRODUCT((Aktivierungsjahr=Costs!$A416)*(AbschreibungAGr=Costs!AB$353)*('Fixed assets'!$U$2:$U$1000=Costs!$A416)*(AbschreibungAHKBvD))","v":0},{"$f":"SUM(AC$178:AC239)-SUM(AC$266:AC327)+SUMPRODUCT((Aktivierungsjahr=Costs!$A416)*(AbschreibungAGr=Costs!AC$353)*('Fixed assets'!$U$2:$U$1000=Costs!$A416)*(AbschreibungAHKBvD))","v":0},{"$f":"SUM(AD$178:AD239)-SUM(AD$266:AD327)+SUMPRODUCT((Aktivierungsjahr=Costs!$A416)*(AbschreibungAGr=Costs!AD$353)*('Fixed assets'!$U$2:$U$1000=Costs!$A416)*(AbschreibungAHKBvD))","v":0},{"$f":"SUM(AE$178:AE239)-SUM(AE$266:AE327)+SUMPRODUCT((Aktivierungsjahr=Costs!$A416)*(AbschreibungAGr=Costs!AE$353)*('Fixed assets'!$U$2:$U$1000=Costs!$A416)*(AbschreibungAHKBvD))","v":0},{"$f":"SUM(AF$178:AF239)-SUM(AF$266:AF327)+SUMPRODUCT((Aktivierungsjahr=Costs!$A416)*(AbschreibungAGr=Costs!AF$353)*('Fixed assets'!$U$2:$U$1000=Costs!$A416)*(AbschreibungAHKBvD))","v":0},{"$f":"SUM(AG$178:AG239)-SUM(AG$266:AG327)+SUMPRODUCT((Aktivierungsjahr=Costs!$A416)*(AbschreibungAGr=Costs!AG$353)*('Fixed assets'!$U$2:$U$1000=Costs!$A416)*(AbschreibungAHKBvD))","v":0},{"$f":"SUM(AH$178:AH239)-SUM(AH$266:AH327)+SUMPRODUCT((Aktivierungsjahr=Costs!$A416)*(AbschreibungAGr=Costs!AH$353)*('Fixed assets'!$U$2:$U$1000=Costs!$A416)*(AbschreibungAHKBvD))","v":0},{"$f":"SUM(AI$178:AI239)-SUM(AI$266:AI327)+SUMPRODUCT((Aktivierungsjahr=Costs!$A416)*(AbschreibungAGr=Costs!AI$353)*('Fixed assets'!$U$2:$U$1000=Costs!$A416)*(AbschreibungAHKBvD))","v":0},{"$f":"SUM(AJ$178:AJ239)-SUM(AJ$266:AJ327)+SUMPRODUCT((Aktivierungsjahr=Costs!$A416)*(AbschreibungAGr=Costs!AJ$353)*('Fixed assets'!$U$2:$U$1000=Costs!$A416)*(AbschreibungAHKBvD))","v":-8.149072527885437E-10},{"$f":"SUM(AK$178:AK239)-SUM(AK$266:AK327)+SUMPRODUCT((Aktivierungsjahr=Costs!$A416)*(AbschreibungAGr=Costs!AK$353)*('Fixed assets'!$U$2:$U$1000=Costs!$A416)*(AbschreibungAHKBvD))","v":0},{"$f":"SUM(AL$178:AL239)-SUM(AL$266:AL327)+SUMPRODUCT((Aktivierungsjahr=Costs!$A416)*(AbschreibungAGr=Costs!AL$353)*('Fixed assets'!$U$2:$U$1000=Costs!$A416)*(AbschreibungAHKBvD))","v":0},{"$f":"SUM(AM$178:AM239)-SUM(AM$266:AM327)+SUMPRODUCT((Aktivierungsjahr=Costs!$A416)*(AbschreibungAGr=Costs!AM$353)*('Fixed assets'!$U$2:$U$1000=Costs!$A416)*(AbschreibungAHKBvD))","v":0},{"$f":"SUM(AN$178:AN239)-SUM(AN$266:AN327)+SUMPRODUCT((Aktivierungsjahr=Costs!$A416)*(AbschreibungAGr=Costs!AN$353)*('Fixed assets'!$U$2:$U$1000=Costs!$A416)*(AbschreibungAHKBvD))","v":0},{"$f":"SUM(AO$178:AO239)-SUM(AO$266:AO327)+SUMPRODUCT((Aktivierungsjahr=Costs!$A416)*(AbschreibungAGr=Costs!AO$353)*('Fixed assets'!$U$2:$U$1000=Costs!$A416)*(AbschreibungAHKBvD))","v":0},{"$f":"SUM(AP$178:AP239)-SUM(AP$266:AP327)+SUMPRODUCT((Aktivierungsjahr=Costs!$A416)*(AbschreibungAGr=Costs!AP$353)*('Fixed assets'!$U$2:$U$1000=Costs!$A416)*(AbschreibungAHKBvD))","v":0},{"$f":"SUM(AQ$178:AQ239)-SUM(AQ$266:AQ327)+SUMPRODUCT((Aktivierungsjahr=Costs!$A416)*(AbschreibungAGr=Costs!AQ$353)*('Fixed assets'!$U$2:$U$1000=Costs!$A416)*(AbschreibungAHKBvD))","v":0}]
[2078,-8.149072527885437E-10,{"$f":"SUM(C$178:C240)-SUM(C$266:C328)+SUMPRODUCT((Aktivierungsjahr=Costs!$A417)*(AbschreibungAGr=Costs!C$353)*('Fixed assets'!$U$2:$U$1000=Costs!$A417)*(AbschreibungAHKBvD))","v":0},{"$f":"SUM(D$178:D240)-SUM(D$266:D328)+SUMPRODUCT((Aktivierungsjahr=Costs!$A417)*(AbschreibungAGr=Costs!D$353)*('Fixed assets'!$U$2:$U$1000=Costs!$A417)*(AbschreibungAHKBvD))","v":0},{"$f":"SUM(E$178:E240)-SUM(E$266:E328)+SUMPRODUCT((Aktivierungsjahr=Costs!$A417)*(AbschreibungAGr=Costs!E$353)*('Fixed assets'!$U$2:$U$1000=Costs!$A417)*(AbschreibungAHKBvD))","v":0},{"$f":"SUM(F$178:F240)-SUM(F$266:F328)+SUMPRODUCT((Aktivierungsjahr=Costs!$A417)*(AbschreibungAGr=Costs!F$353)*('Fixed assets'!$U$2:$U$1000=Costs!$A417)*(AbschreibungAHKBvD))","v":0},{"$f":"SUM(G$178:G240)-SUM(G$266:G328)+SUMPRODUCT((Aktivierungsjahr=Costs!$A417)*(AbschreibungAGr=Costs!G$353)*('Fixed assets'!$U$2:$U$1000=Costs!$A417)*(AbschreibungAHKBvD))","v":0},{"$f":"SUM(H$178:H240)-SUM(H$266:H328)+SUMPRODUCT((Aktivierungsjahr=Costs!$A417)*(AbschreibungAGr=Costs!H$353)*('Fixed assets'!$U$2:$U$1000=Costs!$A417)*(AbschreibungAHKBvD))","v":0},{"$f":"SUM(I$178:I240)-SUM(I$266:I328)+SUMPRODUCT((Aktivierungsjahr=Costs!$A417)*(AbschreibungAGr=Costs!I$353)*('Fixed assets'!$U$2:$U$1000=Costs!$A417)*(AbschreibungAHKBvD))","v":0},{"$f":"SUM(J$178:J240)-SUM(J$266:J328)+SUMPRODUCT((Aktivierungsjahr=Costs!$A417)*(AbschreibungAGr=Costs!J$353)*('Fixed assets'!$U$2:$U$1000=Costs!$A417)*(AbschreibungAHKBvD))","v":0},{"$f":"SUM(K$178:K240)-SUM(K$266:K328)+SUMPRODUCT((Aktivierungsjahr=Costs!$A417)*(AbschreibungAGr=Costs!K$353)*('Fixed assets'!$U$2:$U$1000=Costs!$A417)*(AbschreibungAHKBvD))","v":0},{"$f":"SUM(L$178:L240)-SUM(L$266:L328)+SUMPRODUCT((Aktivierungsjahr=Costs!$A417)*(AbschreibungAGr=Costs!L$353)*('Fixed assets'!$U$2:$U$1000=Costs!$A417)*(AbschreibungAHKBvD))","v":0},{"$f":"SUM(M$178:M240)-SUM(M$266:M328)+SUMPRODUCT((Aktivierungsjahr=Costs!$A417)*(AbschreibungAGr=Costs!M$353)*('Fixed assets'!$U$2:$U$1000=Costs!$A417)*(AbschreibungAHKBvD))","v":0},{"$f":"SUM(N$178:N240)-SUM(N$266:N328)+SUMPRODUCT((Aktivierungsjahr=Costs!$A417)*(AbschreibungAGr=Costs!N$353)*('Fixed assets'!$U$2:$U$1000=Costs!$A417)*(AbschreibungAHKBvD))","v":0},{"$f":"SUM(O$178:O240)-SUM(O$266:O328)+SUMPRODUCT((Aktivierungsjahr=Costs!$A417)*(AbschreibungAGr=Costs!O$353)*('Fixed assets'!$U$2:$U$1000=Costs!$A417)*(AbschreibungAHKBvD))","v":0},{"$f":"SUM(P$178:P240)-SUM(P$266:P328)+SUMPRODUCT((Aktivierungsjahr=Costs!$A417)*(AbschreibungAGr=Costs!P$353)*('Fixed assets'!$U$2:$U$1000=Costs!$A417)*(AbschreibungAHKBvD))","v":0},{"$f":"SUM(Q$178:Q240)-SUM(Q$266:Q328)+SUMPRODUCT((Aktivierungsjahr=Costs!$A417)*(AbschreibungAGr=Costs!Q$353)*('Fixed assets'!$U$2:$U$1000=Costs!$A417)*(AbschreibungAHKBvD))","v":0},{"$f":"SUM(R$178:R240)-SUM(R$266:R328)+SUMPRODUCT((Aktivierungsjahr=Costs!$A417)*(AbschreibungAGr=Costs!R$353)*('Fixed assets'!$U$2:$U$1000=Costs!$A417)*(AbschreibungAHKBvD))","v":0},{"$f":"SUM(S$178:S240)-SUM(S$266:S328)+SUMPRODUCT((Aktivierungsjahr=Costs!$A417)*(AbschreibungAGr=Costs!S$353)*('Fixed assets'!$U$2:$U$1000=Costs!$A417)*(AbschreibungAHKBvD))","v":0},{"$f":"SUM(T$178:T240)-SUM(T$266:T328)+SUMPRODUCT((Aktivierungsjahr=Costs!$A417)*(AbschreibungAGr=Costs!T$353)*('Fixed assets'!$U$2:$U$1000=Costs!$A417)*(AbschreibungAHKBvD))","v":0},{"$f":"SUM(U$178:U240)-SUM(U$266:U328)+SUMPRODUCT((Aktivierungsjahr=Costs!$A417)*(AbschreibungAGr=Costs!U$353)*('Fixed assets'!$U$2:$U$1000=Costs!$A417)*(AbschreibungAHKBvD))","v":0},{"$f":"SUM(V$178:V240)-SUM(V$266:V328)+SUMPRODUCT((Aktivierungsjahr=Costs!$A417)*(AbschreibungAGr=Costs!V$353)*('Fixed assets'!$U$2:$U$1000=Costs!$A417)*(AbschreibungAHKBvD))","v":0},{"$f":"SUM(W$178:W240)-SUM(W$266:W328)+SUMPRODUCT((Aktivierungsjahr=Costs!$A417)*(AbschreibungAGr=Costs!W$353)*('Fixed assets'!$U$2:$U$1000=Costs!$A417)*(AbschreibungAHKBvD))","v":0},{"$f":"SUM(X$178:X240)-SUM(X$266:X328)+SUMPRODUCT((Aktivierungsjahr=Costs!$A417)*(AbschreibungAGr=Costs!X$353)*('Fixed assets'!$U$2:$U$1000=Costs!$A417)*(AbschreibungAHKBvD))","v":0},{"$f":"SUM(Y$178:Y240)-SUM(Y$266:Y328)+SUMPRODUCT((Aktivierungsjahr=Costs!$A417)*(AbschreibungAGr=Costs!Y$353)*('Fixed assets'!$U$2:$U$1000=Costs!$A417)*(AbschreibungAHKBvD))","v":0},{"$f":"SUM(Z$178:Z240)-SUM(Z$266:Z328)+SUMPRODUCT((Aktivierungsjahr=Costs!$A417)*(AbschreibungAGr=Costs!Z$353)*('Fixed assets'!$U$2:$U$1000=Costs!$A417)*(AbschreibungAHKBvD))","v":0},{"$f":"SUM(AA$178:AA240)-SUM(AA$266:AA328)+SUMPRODUCT((Aktivierungsjahr=Costs!$A417)*(AbschreibungAGr=Costs!AA$353)*('Fixed assets'!$U$2:$U$1000=Costs!$A417)*(AbschreibungAHKBvD))","v":0},{"$f":"SUM(AB$178:AB240)-SUM(AB$266:AB328)+SUMPRODUCT((Aktivierungsjahr=Costs!$A417)*(AbschreibungAGr=Costs!AB$353)*('Fixed assets'!$U$2:$U$1000=Costs!$A417)*(AbschreibungAHKBvD))","v":0},{"$f":"SUM(AC$178:AC240)-SUM(AC$266:AC328)+SUMPRODUCT((Aktivierungsjahr=Costs!$A417)*(AbschreibungAGr=Costs!AC$353)*('Fixed assets'!$U$2:$U$1000=Costs!$A417)*(AbschreibungAHKBvD))","v":0},{"$f":"SUM(AD$178:AD240)-SUM(AD$266:AD328)+SUMPRODUCT((Aktivierungsjahr=Costs!$A417)*(AbschreibungAGr=Costs!AD$353)*('Fixed assets'!$U$2:$U$1000=Costs!$A417)*(AbschreibungAHKBvD))","v":0},{"$f":"SUM(AE$178:AE240)-SUM(AE$266:AE328)+SUMPRODUCT((Aktivierungsjahr=Costs!$A417)*(AbschreibungAGr=Costs!AE$353)*('Fixed assets'!$U$2:$U$1000=Costs!$A417)*(AbschreibungAHKBvD))","v":0},{"$f":"SUM(AF$178:AF240)-SUM(AF$266:AF328)+SUMPRODUCT((Aktivierungsjahr=Costs!$A417)*(AbschreibungAGr=Costs!AF$353)*('Fixed assets'!$U$2:$U$1000=Costs!$A417)*(AbschreibungAHKBvD))","v":0},{"$f":"SUM(AG$178:AG240)-SUM(AG$266:AG328)+SUMPRODUCT((Aktivierungsjahr=Costs!$A417)*(AbschreibungAGr=Costs!AG$353)*('Fixed assets'!$U$2:$U$1000=Costs!$A417)*(AbschreibungAHKBvD))","v":0},{"$f":"SUM(AH$178:AH240)-SUM(AH$266:AH328)+SUMPRODUCT((Aktivierungsjahr=Costs!$A417)*(AbschreibungAGr=Costs!AH$353)*('Fixed assets'!$U$2:$U$1000=Costs!$A417)*(AbschreibungAHKBvD))","v":0},{"$f":"SUM(AI$178:AI240)-SUM(AI$266:AI328)+SUMPRODUCT((Aktivierungsjahr=Costs!$A417)*(AbschreibungAGr=Costs!AI$353)*('Fixed assets'!$U$2:$U$1000=Costs!$A417)*(AbschreibungAHKBvD))","v":0},{"$f":"SUM(AJ$178:AJ240)-SUM(AJ$266:AJ328)+SUMPRODUCT((Aktivierungsjahr=Costs!$A417)*(AbschreibungAGr=Costs!AJ$353)*('Fixed assets'!$U$2:$U$1000=Costs!$A417)*(AbschreibungAHKBvD))","v":-8.149072527885437E-10},{"$f":"SUM(AK$178:AK240)-SUM(AK$266:AK328)+SUMPRODUCT((Aktivierungsjahr=Costs!$A417)*(AbschreibungAGr=Costs!AK$353)*('Fixed assets'!$U$2:$U$1000=Costs!$A417)*(AbschreibungAHKBvD))","v":0},{"$f":"SUM(AL$178:AL240)-SUM(AL$266:AL328)+SUMPRODUCT((Aktivierungsjahr=Costs!$A417)*(AbschreibungAGr=Costs!AL$353)*('Fixed assets'!$U$2:$U$1000=Costs!$A417)*(AbschreibungAHKBvD))","v":0},{"$f":"SUM(AM$178:AM240)-SUM(AM$266:AM328)+SUMPRODUCT((Aktivierungsjahr=Costs!$A417)*(AbschreibungAGr=Costs!AM$353)*('Fixed assets'!$U$2:$U$1000=Costs!$A417)*(AbschreibungAHKBvD))","v":0},{"$f":"SUM(AN$178:AN240)-SUM(AN$266:AN328)+SUMPRODUCT((Aktivierungsjahr=Costs!$A417)*(AbschreibungAGr=Costs!AN$353)*('Fixed assets'!$U$2:$U$1000=Costs!$A417)*(AbschreibungAHKBvD))","v":0},{"$f":"SUM(AO$178:AO240)-SUM(AO$266:AO328)+SUMPRODUCT((Aktivierungsjahr=Costs!$A417)*(AbschreibungAGr=Costs!AO$353)*('Fixed assets'!$U$2:$U$1000=Costs!$A417)*(AbschreibungAHKBvD))","v":0},{"$f":"SUM(AP$178:AP240)-SUM(AP$266:AP328)+SUMPRODUCT((Aktivierungsjahr=Costs!$A417)*(AbschreibungAGr=Costs!AP$353)*('Fixed assets'!$U$2:$U$1000=Costs!$A417)*(AbschreibungAHKBvD))","v":0},{"$f":"SUM(AQ$178:AQ240)-SUM(AQ$266:AQ328)+SUMPRODUCT((Aktivierungsjahr=Costs!$A417)*(AbschreibungAGr=Costs!AQ$353)*('Fixed assets'!$U$2:$U$1000=Costs!$A417)*(AbschreibungAHKBvD))","v":0}]
[2079,-8.149072527885437E-10,{"$f":"SUM(C$178:C241)-SUM(C$266:C329)+SUMPRODUCT((Aktivierungsjahr=Costs!$A418)*(AbschreibungAGr=Costs!C$353)*('Fixed assets'!$U$2:$U$1000=Costs!$A418)*(AbschreibungAHKBvD))","v":0},{"$f":"SUM(D$178:D241)-SUM(D$266:D329)+SUMPRODUCT((Aktivierungsjahr=Costs!$A418)*(AbschreibungAGr=Costs!D$353)*('Fixed assets'!$U$2:$U$1000=Costs!$A418)*(AbschreibungAHKBvD))","v":0},{"$f":"SUM(E$178:E241)-SUM(E$266:E329)+SUMPRODUCT((Aktivierungsjahr=Costs!$A418)*(AbschreibungAGr=Costs!E$353)*('Fixed assets'!$U$2:$U$1000=Costs!$A418)*(AbschreibungAHKBvD))","v":0},{"$f":"SUM(F$178:F241)-SUM(F$266:F329)+SUMPRODUCT((Aktivierungsjahr=Costs!$A418)*(AbschreibungAGr=Costs!F$353)*('Fixed assets'!$U$2:$U$1000=Costs!$A418)*(AbschreibungAHKBvD))","v":0},{"$f":"SUM(G$178:G241)-SUM(G$266:G329)+SUMPRODUCT((Aktivierungsjahr=Costs!$A418)*(AbschreibungAGr=Costs!G$353)*('Fixed assets'!$U$2:$U$1000=Costs!$A418)*(AbschreibungAHKBvD))","v":0},{"$f":"SUM(H$178:H241)-SUM(H$266:H329)+SUMPRODUCT((Aktivierungsjahr=Costs!$A418)*(AbschreibungAGr=Costs!H$353)*('Fixed assets'!$U$2:$U$1000=Costs!$A418)*(AbschreibungAHKBvD))","v":0},{"$f":"SUM(I$178:I241)-SUM(I$266:I329)+SUMPRODUCT((Aktivierungsjahr=Costs!$A418)*(AbschreibungAGr=Costs!I$353)*('Fixed assets'!$U$2:$U$1000=Costs!$A418)*(AbschreibungAHKBvD))","v":0},{"$f":"SUM(J$178:J241)-SUM(J$266:J329)+SUMPRODUCT((Aktivierungsjahr=Costs!$A418)*(AbschreibungAGr=Costs!J$353)*('Fixed assets'!$U$2:$U$1000=Costs!$A418)*(AbschreibungAHKBvD))","v":0},{"$f":"SUM(K$178:K241)-SUM(K$266:K329)+SUMPRODUCT((Aktivierungsjahr=Costs!$A418)*(AbschreibungAGr=Costs!K$353)*('Fixed assets'!$U$2:$U$1000=Costs!$A418)*(AbschreibungAHKBvD))","v":0},{"$f":"SUM(L$178:L241)-SUM(L$266:L329)+SUMPRODUCT((Aktivierungsjahr=Costs!$A418)*(AbschreibungAGr=Costs!L$353)*('Fixed assets'!$U$2:$U$1000=Costs!$A418)*(AbschreibungAHKBvD))","v":0},{"$f":"SUM(M$178:M241)-SUM(M$266:M329)+SUMPRODUCT((Aktivierungsjahr=Costs!$A418)*(AbschreibungAGr=Costs!M$353)*('Fixed assets'!$U$2:$U$1000=Costs!$A418)*(AbschreibungAHKBvD))","v":0},{"$f":"SUM(N$178:N241)-SUM(N$266:N329)+SUMPRODUCT((Aktivierungsjahr=Costs!$A418)*(AbschreibungAGr=Costs!N$353)*('Fixed assets'!$U$2:$U$1000=Costs!$A418)*(AbschreibungAHKBvD))","v":0},{"$f":"SUM(O$178:O241)-SUM(O$266:O329)+SUMPRODUCT((Aktivierungsjahr=Costs!$A418)*(AbschreibungAGr=Costs!O$353)*('Fixed assets'!$U$2:$U$1000=Costs!$A418)*(AbschreibungAHKBvD))","v":0},{"$f":"SUM(P$178:P241)-SUM(P$266:P329)+SUMPRODUCT((Aktivierungsjahr=Costs!$A418)*(AbschreibungAGr=Costs!P$353)*('Fixed assets'!$U$2:$U$1000=Costs!$A418)*(AbschreibungAHKBvD))","v":0},{"$f":"SUM(Q$178:Q241)-SUM(Q$266:Q329)+SUMPRODUCT((Aktivierungsjahr=Costs!$A418)*(AbschreibungAGr=Costs!Q$353)*('Fixed assets'!$U$2:$U$1000=Costs!$A418)*(AbschreibungAHKBvD))","v":0},{"$f":"SUM(R$178:R241)-SUM(R$266:R329)+SUMPRODUCT((Aktivierungsjahr=Costs!$A418)*(AbschreibungAGr=Costs!R$353)*('Fixed assets'!$U$2:$U$1000=Costs!$A418)*(AbschreibungAHKBvD))","v":0},{"$f":"SUM(S$178:S241)-SUM(S$266:S329)+SUMPRODUCT((Aktivierungsjahr=Costs!$A418)*(AbschreibungAGr=Costs!S$353)*('Fixed assets'!$U$2:$U$1000=Costs!$A418)*(AbschreibungAHKBvD))","v":0},{"$f":"SUM(T$178:T241)-SUM(T$266:T329)+SUMPRODUCT((Aktivierungsjahr=Costs!$A418)*(AbschreibungAGr=Costs!T$353)*('Fixed assets'!$U$2:$U$1000=Costs!$A418)*(AbschreibungAHKBvD))","v":0},{"$f":"SUM(U$178:U241)-SUM(U$266:U329)+SUMPRODUCT((Aktivierungsjahr=Costs!$A418)*(AbschreibungAGr=Costs!U$353)*('Fixed assets'!$U$2:$U$1000=Costs!$A418)*(AbschreibungAHKBvD))","v":0},{"$f":"SUM(V$178:V241)-SUM(V$266:V329)+SUMPRODUCT((Aktivierungsjahr=Costs!$A418)*(AbschreibungAGr=Costs!V$353)*('Fixed assets'!$U$2:$U$1000=Costs!$A418)*(AbschreibungAHKBvD))","v":0},{"$f":"SUM(W$178:W241)-SUM(W$266:W329)+SUMPRODUCT((Aktivierungsjahr=Costs!$A418)*(AbschreibungAGr=Costs!W$353)*('Fixed assets'!$U$2:$U$1000=Costs!$A418)*(AbschreibungAHKBvD))","v":0},{"$f":"SUM(X$178:X241)-SUM(X$266:X329)+SUMPRODUCT((Aktivierungsjahr=Costs!$A418)*(AbschreibungAGr=Costs!X$353)*('Fixed assets'!$U$2:$U$1000=Costs!$A418)*(AbschreibungAHKBvD))","v":0},{"$f":"SUM(Y$178:Y241)-SUM(Y$266:Y329)+SUMPRODUCT((Aktivierungsjahr=Costs!$A418)*(AbschreibungAGr=Costs!Y$353)*('Fixed assets'!$U$2:$U$1000=Costs!$A418)*(AbschreibungAHKBvD))","v":0},{"$f":"SUM(Z$178:Z241)-SUM(Z$266:Z329)+SUMPRODUCT((Aktivierungsjahr=Costs!$A418)*(AbschreibungAGr=Costs!Z$353)*('Fixed assets'!$U$2:$U$1000=Costs!$A418)*(AbschreibungAHKBvD))","v":0},{"$f":"SUM(AA$178:AA241)-SUM(AA$266:AA329)+SUMPRODUCT((Aktivierungsjahr=Costs!$A418)*(AbschreibungAGr=Costs!AA$353)*('Fixed assets'!$U$2:$U$1000=Costs!$A418)*(AbschreibungAHKBvD))","v":0},{"$f":"SUM(AB$178:AB241)-SUM(AB$266:AB329)+SUMPRODUCT((Aktivierungsjahr=Costs!$A418)*(AbschreibungAGr=Costs!AB$353)*('Fixed assets'!$U$2:$U$1000=Costs!$A418)*(AbschreibungAHKBvD))","v":0},{"$f":"SUM(AC$178:AC241)-SUM(AC$266:AC329)+SUMPRODUCT((Aktivierungsjahr=Costs!$A418)*(AbschreibungAGr=Costs!AC$353)*('Fixed assets'!$U$2:$U$1000=Costs!$A418)*(AbschreibungAHKBvD))","v":0},{"$f":"SUM(AD$178:AD241)-SUM(AD$266:AD329)+SUMPRODUCT((Aktivierungsjahr=Costs!$A418)*(AbschreibungAGr=Costs!AD$353)*('Fixed assets'!$U$2:$U$1000=Costs!$A418)*(AbschreibungAHKBvD))","v":0},{"$f":"SUM(AE$178:AE241)-SUM(AE$266:AE329)+SUMPRODUCT((Aktivierungsjahr=Costs!$A418)*(AbschreibungAGr=Costs!AE$353)*('Fixed assets'!$U$2:$U$1000=Costs!$A418)*(AbschreibungAHKBvD))","v":0},{"$f":"SUM(AF$178:AF241)-SUM(AF$266:AF329)+SUMPRODUCT((Aktivierungsjahr=Costs!$A418)*(AbschreibungAGr=Costs!AF$353)*('Fixed assets'!$U$2:$U$1000=Costs!$A418)*(AbschreibungAHKBvD))","v":0},{"$f":"SUM(AG$178:AG241)-SUM(AG$266:AG329)+SUMPRODUCT((Aktivierungsjahr=Costs!$A418)*(AbschreibungAGr=Costs!AG$353)*('Fixed assets'!$U$2:$U$1000=Costs!$A418)*(AbschreibungAHKBvD))","v":0},{"$f":"SUM(AH$178:AH241)-SUM(AH$266:AH329)+SUMPRODUCT((Aktivierungsjahr=Costs!$A418)*(AbschreibungAGr=Costs!AH$353)*('Fixed assets'!$U$2:$U$1000=Costs!$A418)*(AbschreibungAHKBvD))","v":0},{"$f":"SUM(AI$178:AI241)-SUM(AI$266:AI329)+SUMPRODUCT((Aktivierungsjahr=Costs!$A418)*(AbschreibungAGr=Costs!AI$353)*('Fixed assets'!$U$2:$U$1000=Costs!$A418)*(AbschreibungAHKBvD))","v":0},{"$f":"SUM(AJ$178:AJ241)-SUM(AJ$266:AJ329)+SUMPRODUCT((Aktivierungsjahr=Costs!$A418)*(AbschreibungAGr=Costs!AJ$353)*('Fixed assets'!$U$2:$U$1000=Costs!$A418)*(AbschreibungAHKBvD))","v":-8.149072527885437E-10},{"$f":"SUM(AK$178:AK241)-SUM(AK$266:AK329)+SUMPRODUCT((Aktivierungsjahr=Costs!$A418)*(AbschreibungAGr=Costs!AK$353)*('Fixed assets'!$U$2:$U$1000=Costs!$A418)*(AbschreibungAHKBvD))","v":0},{"$f":"SUM(AL$178:AL241)-SUM(AL$266:AL329)+SUMPRODUCT((Aktivierungsjahr=Costs!$A418)*(AbschreibungAGr=Costs!AL$353)*('Fixed assets'!$U$2:$U$1000=Costs!$A418)*(AbschreibungAHKBvD))","v":0},{"$f":"SUM(AM$178:AM241)-SUM(AM$266:AM329)+SUMPRODUCT((Aktivierungsjahr=Costs!$A418)*(AbschreibungAGr=Costs!AM$353)*('Fixed assets'!$U$2:$U$1000=Costs!$A418)*(AbschreibungAHKBvD))","v":0},{"$f":"SUM(AN$178:AN241)-SUM(AN$266:AN329)+SUMPRODUCT((Aktivierungsjahr=Costs!$A418)*(AbschreibungAGr=Costs!AN$353)*('Fixed assets'!$U$2:$U$1000=Costs!$A418)*(AbschreibungAHKBvD))","v":0},{"$f":"SUM(AO$178:AO241)-SUM(AO$266:AO329)+SUMPRODUCT((Aktivierungsjahr=Costs!$A418)*(AbschreibungAGr=Costs!AO$353)*('Fixed assets'!$U$2:$U$1000=Costs!$A418)*(AbschreibungAHKBvD))","v":0},{"$f":"SUM(AP$178:AP241)-SUM(AP$266:AP329)+SUMPRODUCT((Aktivierungsjahr=Costs!$A418)*(AbschreibungAGr=Costs!AP$353)*('Fixed assets'!$U$2:$U$1000=Costs!$A418)*(AbschreibungAHKBvD))","v":0},{"$f":"SUM(AQ$178:AQ241)-SUM(AQ$266:AQ329)+SUMPRODUCT((Aktivierungsjahr=Costs!$A418)*(AbschreibungAGr=Costs!AQ$353)*('Fixed assets'!$U$2:$U$1000=Costs!$A418)*(AbschreibungAHKBvD))","v":0}]
[2080,-8.149072527885437E-10,{"$f":"SUM(C$178:C242)-SUM(C$266:C330)+SUMPRODUCT((Aktivierungsjahr=Costs!$A419)*(AbschreibungAGr=Costs!C$353)*('Fixed assets'!$U$2:$U$1000=Costs!$A419)*(AbschreibungAHKBvD))","v":0},{"$f":"SUM(D$178:D242)-SUM(D$266:D330)+SUMPRODUCT((Aktivierungsjahr=Costs!$A419)*(AbschreibungAGr=Costs!D$353)*('Fixed assets'!$U$2:$U$1000=Costs!$A419)*(AbschreibungAHKBvD))","v":0},{"$f":"SUM(E$178:E242)-SUM(E$266:E330)+SUMPRODUCT((Aktivierungsjahr=Costs!$A419)*(AbschreibungAGr=Costs!E$353)*('Fixed assets'!$U$2:$U$1000=Costs!$A419)*(AbschreibungAHKBvD))","v":0},{"$f":"SUM(F$178:F242)-SUM(F$266:F330)+SUMPRODUCT((Aktivierungsjahr=Costs!$A419)*(AbschreibungAGr=Costs!F$353)*('Fixed assets'!$U$2:$U$1000=Costs!$A419)*(AbschreibungAHKBvD))","v":0},{"$f":"SUM(G$178:G242)-SUM(G$266:G330)+SUMPRODUCT((Aktivierungsjahr=Costs!$A419)*(AbschreibungAGr=Costs!G$353)*('Fixed assets'!$U$2:$U$1000=Costs!$A419)*(AbschreibungAHKBvD))","v":0},{"$f":"SUM(H$178:H242)-SUM(H$266:H330)+SUMPRODUCT((Aktivierungsjahr=Costs!$A419)*(AbschreibungAGr=Costs!H$353)*('Fixed assets'!$U$2:$U$1000=Costs!$A419)*(AbschreibungAHKBvD))","v":0},{"$f":"SUM(I$178:I242)-SUM(I$266:I330)+SUMPRODUCT((Aktivierungsjahr=Costs!$A419)*(AbschreibungAGr=Costs!I$353)*('Fixed assets'!$U$2:$U$1000=Costs!$A419)*(AbschreibungAHKBvD))","v":0},{"$f":"SUM(J$178:J242)-SUM(J$266:J330)+SUMPRODUCT((Aktivierungsjahr=Costs!$A419)*(AbschreibungAGr=Costs!J$353)*('Fixed assets'!$U$2:$U$1000=Costs!$A419)*(AbschreibungAHKBvD))","v":0},{"$f":"SUM(K$178:K242)-SUM(K$266:K330)+SUMPRODUCT((Aktivierungsjahr=Costs!$A419)*(AbschreibungAGr=Costs!K$353)*('Fixed assets'!$U$2:$U$1000=Costs!$A419)*(AbschreibungAHKBvD))","v":0},{"$f":"SUM(L$178:L242)-SUM(L$266:L330)+SUMPRODUCT((Aktivierungsjahr=Costs!$A419)*(AbschreibungAGr=Costs!L$353)*('Fixed assets'!$U$2:$U$1000=Costs!$A419)*(AbschreibungAHKBvD))","v":0},{"$f":"SUM(M$178:M242)-SUM(M$266:M330)+SUMPRODUCT((Aktivierungsjahr=Costs!$A419)*(AbschreibungAGr=Costs!M$353)*('Fixed assets'!$U$2:$U$1000=Costs!$A419)*(AbschreibungAHKBvD))","v":0},{"$f":"SUM(N$178:N242)-SUM(N$266:N330)+SUMPRODUCT((Aktivierungsjahr=Costs!$A419)*(AbschreibungAGr=Costs!N$353)*('Fixed assets'!$U$2:$U$1000=Costs!$A419)*(AbschreibungAHKBvD))","v":0},{"$f":"SUM(O$178:O242)-SUM(O$266:O330)+SUMPRODUCT((Aktivierungsjahr=Costs!$A419)*(AbschreibungAGr=Costs!O$353)*('Fixed assets'!$U$2:$U$1000=Costs!$A419)*(AbschreibungAHKBvD))","v":0},{"$f":"SUM(P$178:P242)-SUM(P$266:P330)+SUMPRODUCT((Aktivierungsjahr=Costs!$A419)*(AbschreibungAGr=Costs!P$353)*('Fixed assets'!$U$2:$U$1000=Costs!$A419)*(AbschreibungAHKBvD))","v":0},{"$f":"SUM(Q$178:Q242)-SUM(Q$266:Q330)+SUMPRODUCT((Aktivierungsjahr=Costs!$A419)*(AbschreibungAGr=Costs!Q$353)*('Fixed assets'!$U$2:$U$1000=Costs!$A419)*(AbschreibungAHKBvD))","v":0},{"$f":"SUM(R$178:R242)-SUM(R$266:R330)+SUMPRODUCT((Aktivierungsjahr=Costs!$A419)*(AbschreibungAGr=Costs!R$353)*('Fixed assets'!$U$2:$U$1000=Costs!$A419)*(AbschreibungAHKBvD))","v":0},{"$f":"SUM(S$178:S242)-SUM(S$266:S330)+SUMPRODUCT((Aktivierungsjahr=Costs!$A419)*(AbschreibungAGr=Costs!S$353)*('Fixed assets'!$U$2:$U$1000=Costs!$A419)*(AbschreibungAHKBvD))","v":0},{"$f":"SUM(T$178:T242)-SUM(T$266:T330)+SUMPRODUCT((Aktivierungsjahr=Costs!$A419)*(AbschreibungAGr=Costs!T$353)*('Fixed assets'!$U$2:$U$1000=Costs!$A419)*(AbschreibungAHKBvD))","v":0},{"$f":"SUM(U$178:U242)-SUM(U$266:U330)+SUMPRODUCT((Aktivierungsjahr=Costs!$A419)*(AbschreibungAGr=Costs!U$353)*('Fixed assets'!$U$2:$U$1000=Costs!$A419)*(AbschreibungAHKBvD))","v":0},{"$f":"SUM(V$178:V242)-SUM(V$266:V330)+SUMPRODUCT((Aktivierungsjahr=Costs!$A419)*(AbschreibungAGr=Costs!V$353)*('Fixed assets'!$U$2:$U$1000=Costs!$A419)*(AbschreibungAHKBvD))","v":0},{"$f":"SUM(W$178:W242)-SUM(W$266:W330)+SUMPRODUCT((Aktivierungsjahr=Costs!$A419)*(AbschreibungAGr=Costs!W$353)*('Fixed assets'!$U$2:$U$1000=Costs!$A419)*(AbschreibungAHKBvD))","v":0},{"$f":"SUM(X$178:X242)-SUM(X$266:X330)+SUMPRODUCT((Aktivierungsjahr=Costs!$A419)*(AbschreibungAGr=Costs!X$353)*('Fixed assets'!$U$2:$U$1000=Costs!$A419)*(AbschreibungAHKBvD))","v":0},{"$f":"SUM(Y$178:Y242)-SUM(Y$266:Y330)+SUMPRODUCT((Aktivierungsjahr=Costs!$A419)*(AbschreibungAGr=Costs!Y$353)*('Fixed assets'!$U$2:$U$1000=Costs!$A419)*(AbschreibungAHKBvD))","v":0},{"$f":"SUM(Z$178:Z242)-SUM(Z$266:Z330)+SUMPRODUCT((Aktivierungsjahr=Costs!$A419)*(AbschreibungAGr=Costs!Z$353)*('Fixed assets'!$U$2:$U$1000=Costs!$A419)*(AbschreibungAHKBvD))","v":0},{"$f":"SUM(AA$178:AA242)-SUM(AA$266:AA330)+SUMPRODUCT((Aktivierungsjahr=Costs!$A419)*(AbschreibungAGr=Costs!AA$353)*('Fixed assets'!$U$2:$U$1000=Costs!$A419)*(AbschreibungAHKBvD))","v":0},{"$f":"SUM(AB$178:AB242)-SUM(AB$266:AB330)+SUMPRODUCT((Aktivierungsjahr=Costs!$A419)*(AbschreibungAGr=Costs!AB$353)*('Fixed assets'!$U$2:$U$1000=Costs!$A419)*(AbschreibungAHKBvD))","v":0},{"$f":"SUM(AC$178:AC242)-SUM(AC$266:AC330)+SUMPRODUCT((Aktivierungsjahr=Costs!$A419)*(AbschreibungAGr=Costs!AC$353)*('Fixed assets'!$U$2:$U$1000=Costs!$A419)*(AbschreibungAHKBvD))","v":0},{"$f":"SUM(AD$178:AD242)-SUM(AD$266:AD330)+SUMPRODUCT((Aktivierungsjahr=Costs!$A419)*(AbschreibungAGr=Costs!AD$353)*('Fixed assets'!$U$2:$U$1000=Costs!$A419)*(AbschreibungAHKBvD))","v":0},{"$f":"SUM(AE$178:AE242)-SUM(AE$266:AE330)+SUMPRODUCT((Aktivierungsjahr=Costs!$A419)*(AbschreibungAGr=Costs!AE$353)*('Fixed assets'!$U$2:$U$1000=Costs!$A419)*(AbschreibungAHKBvD))","v":0},{"$f":"SUM(AF$178:AF242)-SUM(AF$266:AF330)+SUMPRODUCT((Aktivierungsjahr=Costs!$A419)*(AbschreibungAGr=Costs!AF$353)*('Fixed assets'!$U$2:$U$1000=Costs!$A419)*(AbschreibungAHKBvD))","v":0},{"$f":"SUM(AG$178:AG242)-SUM(AG$266:AG330)+SUMPRODUCT((Aktivierungsjahr=Costs!$A419)*(AbschreibungAGr=Costs!AG$353)*('Fixed assets'!$U$2:$U$1000=Costs!$A419)*(AbschreibungAHKBvD))","v":0},{"$f":"SUM(AH$178:AH242)-SUM(AH$266:AH330)+SUMPRODUCT((Aktivierungsjahr=Costs!$A419)*(AbschreibungAGr=Costs!AH$353)*('Fixed assets'!$U$2:$U$1000=Costs!$A419)*(AbschreibungAHKBvD))","v":0},{"$f":"SUM(AI$178:AI242)-SUM(AI$266:AI330)+SUMPRODUCT((Aktivierungsjahr=Costs!$A419)*(AbschreibungAGr=Costs!AI$353)*('Fixed assets'!$U$2:$U$1000=Costs!$A419)*(AbschreibungAHKBvD))","v":0},{"$f":"SUM(AJ$178:AJ242)-SUM(AJ$266:AJ330)+SUMPRODUCT((Aktivierungsjahr=Costs!$A419)*(AbschreibungAGr=Costs!AJ$353)*('Fixed assets'!$U$2:$U$1000=Costs!$A419)*(AbschreibungAHKBvD))","v":-8.149072527885437E-10},{"$f":"SUM(AK$178:AK242)-SUM(AK$266:AK330)+SUMPRODUCT((Aktivierungsjahr=Costs!$A419)*(AbschreibungAGr=Costs!AK$353)*('Fixed assets'!$U$2:$U$1000=Costs!$A419)*(AbschreibungAHKBvD))","v":0},{"$f":"SUM(AL$178:AL242)-SUM(AL$266:AL330)+SUMPRODUCT((Aktivierungsjahr=Costs!$A419)*(AbschreibungAGr=Costs!AL$353)*('Fixed assets'!$U$2:$U$1000=Costs!$A419)*(AbschreibungAHKBvD))","v":0},{"$f":"SUM(AM$178:AM242)-SUM(AM$266:AM330)+SUMPRODUCT((Aktivierungsjahr=Costs!$A419)*(AbschreibungAGr=Costs!AM$353)*('Fixed assets'!$U$2:$U$1000=Costs!$A419)*(AbschreibungAHKBvD))","v":0},{"$f":"SUM(AN$178:AN242)-SUM(AN$266:AN330)+SUMPRODUCT((Aktivierungsjahr=Costs!$A419)*(AbschreibungAGr=Costs!AN$353)*('Fixed assets'!$U$2:$U$1000=Costs!$A419)*(AbschreibungAHKBvD))","v":0},{"$f":"SUM(AO$178:AO242)-SUM(AO$266:AO330)+SUMPRODUCT((Aktivierungsjahr=Costs!$A419)*(AbschreibungAGr=Costs!AO$353)*('Fixed assets'!$U$2:$U$1000=Costs!$A419)*(AbschreibungAHKBvD))","v":0},{"$f":"SUM(AP$178:AP242)-SUM(AP$266:AP330)+SUMPRODUCT((Aktivierungsjahr=Costs!$A419)*(AbschreibungAGr=Costs!AP$353)*('Fixed assets'!$U$2:$U$1000=Costs!$A419)*(AbschreibungAHKBvD))","v":0},{"$f":"SUM(AQ$178:AQ242)-SUM(AQ$266:AQ330)+SUMPRODUCT((Aktivierungsjahr=Costs!$A419)*(AbschreibungAGr=Costs!AQ$353)*('Fixed assets'!$U$2:$U$1000=Costs!$A419)*(AbschreibungAHKBvD))","v":0}]
[2081,-8.149072527885437E-10,{"$f":"SUM(C$178:C243)-SUM(C$266:C331)+SUMPRODUCT((Aktivierungsjahr=Costs!$A420)*(AbschreibungAGr=Costs!C$353)*('Fixed assets'!$U$2:$U$1000=Costs!$A420)*(AbschreibungAHKBvD))","v":0},{"$f":"SUM(D$178:D243)-SUM(D$266:D331)+SUMPRODUCT((Aktivierungsjahr=Costs!$A420)*(AbschreibungAGr=Costs!D$353)*('Fixed assets'!$U$2:$U$1000=Costs!$A420)*(AbschreibungAHKBvD))","v":0},{"$f":"SUM(E$178:E243)-SUM(E$266:E331)+SUMPRODUCT((Aktivierungsjahr=Costs!$A420)*(AbschreibungAGr=Costs!E$353)*('Fixed assets'!$U$2:$U$1000=Costs!$A420)*(AbschreibungAHKBvD))","v":0},{"$f":"SUM(F$178:F243)-SUM(F$266:F331)+SUMPRODUCT((Aktivierungsjahr=Costs!$A420)*(AbschreibungAGr=Costs!F$353)*('Fixed assets'!$U$2:$U$1000=Costs!$A420)*(AbschreibungAHKBvD))","v":0},{"$f":"SUM(G$178:G243)-SUM(G$266:G331)+SUMPRODUCT((Aktivierungsjahr=Costs!$A420)*(AbschreibungAGr=Costs!G$353)*('Fixed assets'!$U$2:$U$1000=Costs!$A420)*(AbschreibungAHKBvD))","v":0},{"$f":"SUM(H$178:H243)-SUM(H$266:H331)+SUMPRODUCT((Aktivierungsjahr=Costs!$A420)*(AbschreibungAGr=Costs!H$353)*('Fixed assets'!$U$2:$U$1000=Costs!$A420)*(AbschreibungAHKBvD))","v":0},{"$f":"SUM(I$178:I243)-SUM(I$266:I331)+SUMPRODUCT((Aktivierungsjahr=Costs!$A420)*(AbschreibungAGr=Costs!I$353)*('Fixed assets'!$U$2:$U$1000=Costs!$A420)*(AbschreibungAHKBvD))","v":0},{"$f":"SUM(J$178:J243)-SUM(J$266:J331)+SUMPRODUCT((Aktivierungsjahr=Costs!$A420)*(AbschreibungAGr=Costs!J$353)*('Fixed assets'!$U$2:$U$1000=Costs!$A420)*(AbschreibungAHKBvD))","v":0},{"$f":"SUM(K$178:K243)-SUM(K$266:K331)+SUMPRODUCT((Aktivierungsjahr=Costs!$A420)*(AbschreibungAGr=Costs!K$353)*('Fixed assets'!$U$2:$U$1000=Costs!$A420)*(AbschreibungAHKBvD))","v":0},{"$f":"SUM(L$178:L243)-SUM(L$266:L331)+SUMPRODUCT((Aktivierungsjahr=Costs!$A420)*(AbschreibungAGr=Costs!L$353)*('Fixed assets'!$U$2:$U$1000=Costs!$A420)*(AbschreibungAHKBvD))","v":0},{"$f":"SUM(M$178:M243)-SUM(M$266:M331)+SUMPRODUCT((Aktivierungsjahr=Costs!$A420)*(AbschreibungAGr=Costs!M$353)*('Fixed assets'!$U$2:$U$1000=Costs!$A420)*(AbschreibungAHKBvD))","v":0},{"$f":"SUM(N$178:N243)-SUM(N$266:N331)+SUMPRODUCT((Aktivierungsjahr=Costs!$A420)*(AbschreibungAGr=Costs!N$353)*('Fixed assets'!$U$2:$U$1000=Costs!$A420)*(AbschreibungAHKBvD))","v":0},{"$f":"SUM(O$178:O243)-SUM(O$266:O331)+SUMPRODUCT((Aktivierungsjahr=Costs!$A420)*(AbschreibungAGr=Costs!O$353)*('Fixed assets'!$U$2:$U$1000=Costs!$A420)*(AbschreibungAHKBvD))","v":0},{"$f":"SUM(P$178:P243)-SUM(P$266:P331)+SUMPRODUCT((Aktivierungsjahr=Costs!$A420)*(AbschreibungAGr=Costs!P$353)*('Fixed assets'!$U$2:$U$1000=Costs!$A420)*(AbschreibungAHKBvD))","v":0},{"$f":"SUM(Q$178:Q243)-SUM(Q$266:Q331)+SUMPRODUCT((Aktivierungsjahr=Costs!$A420)*(AbschreibungAGr=Costs!Q$353)*('Fixed assets'!$U$2:$U$1000=Costs!$A420)*(AbschreibungAHKBvD))","v":0},{"$f":"SUM(R$178:R243)-SUM(R$266:R331)+SUMPRODUCT((Aktivierungsjahr=Costs!$A420)*(AbschreibungAGr=Costs!R$353)*('Fixed assets'!$U$2:$U$1000=Costs!$A420)*(AbschreibungAHKBvD))","v":0},{"$f":"SUM(S$178:S243)-SUM(S$266:S331)+SUMPRODUCT((Aktivierungsjahr=Costs!$A420)*(AbschreibungAGr=Costs!S$353)*('Fixed assets'!$U$2:$U$1000=Costs!$A420)*(AbschreibungAHKBvD))","v":0},{"$f":"SUM(T$178:T243)-SUM(T$266:T331)+SUMPRODUCT((Aktivierungsjahr=Costs!$A420)*(AbschreibungAGr=Costs!T$353)*('Fixed assets'!$U$2:$U$1000=Costs!$A420)*(AbschreibungAHKBvD))","v":0},{"$f":"SUM(U$178:U243)-SUM(U$266:U331)+SUMPRODUCT((Aktivierungsjahr=Costs!$A420)*(AbschreibungAGr=Costs!U$353)*('Fixed assets'!$U$2:$U$1000=Costs!$A420)*(AbschreibungAHKBvD))","v":0},{"$f":"SUM(V$178:V243)-SUM(V$266:V331)+SUMPRODUCT((Aktivierungsjahr=Costs!$A420)*(AbschreibungAGr=Costs!V$353)*('Fixed assets'!$U$2:$U$1000=Costs!$A420)*(AbschreibungAHKBvD))","v":0},{"$f":"SUM(W$178:W243)-SUM(W$266:W331)+SUMPRODUCT((Aktivierungsjahr=Costs!$A420)*(AbschreibungAGr=Costs!W$353)*('Fixed assets'!$U$2:$U$1000=Costs!$A420)*(AbschreibungAHKBvD))","v":0},{"$f":"SUM(X$178:X243)-SUM(X$266:X331)+SUMPRODUCT((Aktivierungsjahr=Costs!$A420)*(AbschreibungAGr=Costs!X$353)*('Fixed assets'!$U$2:$U$1000=Costs!$A420)*(AbschreibungAHKBvD))","v":0},{"$f":"SUM(Y$178:Y243)-SUM(Y$266:Y331)+SUMPRODUCT((Aktivierungsjahr=Costs!$A420)*(AbschreibungAGr=Costs!Y$353)*('Fixed assets'!$U$2:$U$1000=Costs!$A420)*(AbschreibungAHKBvD))","v":0},{"$f":"SUM(Z$178:Z243)-SUM(Z$266:Z331)+SUMPRODUCT((Aktivierungsjahr=Costs!$A420)*(AbschreibungAGr=Costs!Z$353)*('Fixed assets'!$U$2:$U$1000=Costs!$A420)*(AbschreibungAHKBvD))","v":0},{"$f":"SUM(AA$178:AA243)-SUM(AA$266:AA331)+SUMPRODUCT((Aktivierungsjahr=Costs!$A420)*(AbschreibungAGr=Costs!AA$353)*('Fixed assets'!$U$2:$U$1000=Costs!$A420)*(AbschreibungAHKBvD))","v":0},{"$f":"SUM(AB$178:AB243)-SUM(AB$266:AB331)+SUMPRODUCT((Aktivierungsjahr=Costs!$A420)*(AbschreibungAGr=Costs!AB$353)*('Fixed assets'!$U$2:$U$1000=Costs!$A420)*(AbschreibungAHKBvD))","v":0},{"$f":"SUM(AC$178:AC243)-SUM(AC$266:AC331)+SUMPRODUCT((Aktivierungsjahr=Costs!$A420)*(AbschreibungAGr=Costs!AC$353)*('Fixed assets'!$U$2:$U$1000=Costs!$A420)*(AbschreibungAHKBvD))","v":0},{"$f":"SUM(AD$178:AD243)-SUM(AD$266:AD331)+SUMPRODUCT((Aktivierungsjahr=Costs!$A420)*(AbschreibungAGr=Costs!AD$353)*('Fixed assets'!$U$2:$U$1000=Costs!$A420)*(AbschreibungAHKBvD))","v":0},{"$f":"SUM(AE$178:AE243)-SUM(AE$266:AE331)+SUMPRODUCT((Aktivierungsjahr=Costs!$A420)*(AbschreibungAGr=Costs!AE$353)*('Fixed assets'!$U$2:$U$1000=Costs!$A420)*(AbschreibungAHKBvD))","v":0},{"$f":"SUM(AF$178:AF243)-SUM(AF$266:AF331)+SUMPRODUCT((Aktivierungsjahr=Costs!$A420)*(AbschreibungAGr=Costs!AF$353)*('Fixed assets'!$U$2:$U$1000=Costs!$A420)*(AbschreibungAHKBvD))","v":0},{"$f":"SUM(AG$178:AG243)-SUM(AG$266:AG331)+SUMPRODUCT((Aktivierungsjahr=Costs!$A420)*(AbschreibungAGr=Costs!AG$353)*('Fixed assets'!$U$2:$U$1000=Costs!$A420)*(AbschreibungAHKBvD))","v":0},{"$f":"SUM(AH$178:AH243)-SUM(AH$266:AH331)+SUMPRODUCT((Aktivierungsjahr=Costs!$A420)*(AbschreibungAGr=Costs!AH$353)*('Fixed assets'!$U$2:$U$1000=Costs!$A420)*(AbschreibungAHKBvD))","v":0},{"$f":"SUM(AI$178:AI243)-SUM(AI$266:AI331)+SUMPRODUCT((Aktivierungsjahr=Costs!$A420)*(AbschreibungAGr=Costs!AI$353)*('Fixed assets'!$U$2:$U$1000=Costs!$A420)*(AbschreibungAHKBvD))","v":0},{"$f":"SUM(AJ$178:AJ243)-SUM(AJ$266:AJ331)+SUMPRODUCT((Aktivierungsjahr=Costs!$A420)*(AbschreibungAGr=Costs!AJ$353)*('Fixed assets'!$U$2:$U$1000=Costs!$A420)*(AbschreibungAHKBvD))","v":-8.149072527885437E-10},{"$f":"SUM(AK$178:AK243)-SUM(AK$266:AK331)+SUMPRODUCT((Aktivierungsjahr=Costs!$A420)*(AbschreibungAGr=Costs!AK$353)*('Fixed assets'!$U$2:$U$1000=Costs!$A420)*(AbschreibungAHKBvD))","v":0},{"$f":"SUM(AL$178:AL243)-SUM(AL$266:AL331)+SUMPRODUCT((Aktivierungsjahr=Costs!$A420)*(AbschreibungAGr=Costs!AL$353)*('Fixed assets'!$U$2:$U$1000=Costs!$A420)*(AbschreibungAHKBvD))","v":0},{"$f":"SUM(AM$178:AM243)-SUM(AM$266:AM331)+SUMPRODUCT((Aktivierungsjahr=Costs!$A420)*(AbschreibungAGr=Costs!AM$353)*('Fixed assets'!$U$2:$U$1000=Costs!$A420)*(AbschreibungAHKBvD))","v":0},{"$f":"SUM(AN$178:AN243)-SUM(AN$266:AN331)+SUMPRODUCT((Aktivierungsjahr=Costs!$A420)*(AbschreibungAGr=Costs!AN$353)*('Fixed assets'!$U$2:$U$1000=Costs!$A420)*(AbschreibungAHKBvD))","v":0},{"$f":"SUM(AO$178:AO243)-SUM(AO$266:AO331)+SUMPRODUCT((Aktivierungsjahr=Costs!$A420)*(AbschreibungAGr=Costs!AO$353)*('Fixed assets'!$U$2:$U$1000=Costs!$A420)*(AbschreibungAHKBvD))","v":0},{"$f":"SUM(AP$178:AP243)-SUM(AP$266:AP331)+SUMPRODUCT((Aktivierungsjahr=Costs!$A420)*(AbschreibungAGr=Costs!AP$353)*('Fixed assets'!$U$2:$U$1000=Costs!$A420)*(AbschreibungAHKBvD))","v":0},{"$f":"SUM(AQ$178:AQ243)-SUM(AQ$266:AQ331)+SUMPRODUCT((Aktivierungsjahr=Costs!$A420)*(AbschreibungAGr=Costs!AQ$353)*('Fixed assets'!$U$2:$U$1000=Costs!$A420)*(AbschreibungAHKBvD))","v":0}]
[2082,-8.149072527885437E-10,{"$f":"SUM(C$178:C244)-SUM(C$266:C332)+SUMPRODUCT((Aktivierungsjahr=Costs!$A421)*(AbschreibungAGr=Costs!C$353)*('Fixed assets'!$U$2:$U$1000=Costs!$A421)*(AbschreibungAHKBvD))","v":0},{"$f":"SUM(D$178:D244)-SUM(D$266:D332)+SUMPRODUCT((Aktivierungsjahr=Costs!$A421)*(AbschreibungAGr=Costs!D$353)*('Fixed assets'!$U$2:$U$1000=Costs!$A421)*(AbschreibungAHKBvD))","v":0},{"$f":"SUM(E$178:E244)-SUM(E$266:E332)+SUMPRODUCT((Aktivierungsjahr=Costs!$A421)*(AbschreibungAGr=Costs!E$353)*('Fixed assets'!$U$2:$U$1000=Costs!$A421)*(AbschreibungAHKBvD))","v":0},{"$f":"SUM(F$178:F244)-SUM(F$266:F332)+SUMPRODUCT((Aktivierungsjahr=Costs!$A421)*(AbschreibungAGr=Costs!F$353)*('Fixed assets'!$U$2:$U$1000=Costs!$A421)*(AbschreibungAHKBvD))","v":0},{"$f":"SUM(G$178:G244)-SUM(G$266:G332)+SUMPRODUCT((Aktivierungsjahr=Costs!$A421)*(AbschreibungAGr=Costs!G$353)*('Fixed assets'!$U$2:$U$1000=Costs!$A421)*(AbschreibungAHKBvD))","v":0},{"$f":"SUM(H$178:H244)-SUM(H$266:H332)+SUMPRODUCT((Aktivierungsjahr=Costs!$A421)*(AbschreibungAGr=Costs!H$353)*('Fixed assets'!$U$2:$U$1000=Costs!$A421)*(AbschreibungAHKBvD))","v":0},{"$f":"SUM(I$178:I244)-SUM(I$266:I332)+SUMPRODUCT((Aktivierungsjahr=Costs!$A421)*(AbschreibungAGr=Costs!I$353)*('Fixed assets'!$U$2:$U$1000=Costs!$A421)*(AbschreibungAHKBvD))","v":0},{"$f":"SUM(J$178:J244)-SUM(J$266:J332)+SUMPRODUCT((Aktivierungsjahr=Costs!$A421)*(AbschreibungAGr=Costs!J$353)*('Fixed assets'!$U$2:$U$1000=Costs!$A421)*(AbschreibungAHKBvD))","v":0},{"$f":"SUM(K$178:K244)-SUM(K$266:K332)+SUMPRODUCT((Aktivierungsjahr=Costs!$A421)*(AbschreibungAGr=Costs!K$353)*('Fixed assets'!$U$2:$U$1000=Costs!$A421)*(AbschreibungAHKBvD))","v":0},{"$f":"SUM(L$178:L244)-SUM(L$266:L332)+SUMPRODUCT((Aktivierungsjahr=Costs!$A421)*(AbschreibungAGr=Costs!L$353)*('Fixed assets'!$U$2:$U$1000=Costs!$A421)*(AbschreibungAHKBvD))","v":0},{"$f":"SUM(M$178:M244)-SUM(M$266:M332)+SUMPRODUCT((Aktivierungsjahr=Costs!$A421)*(AbschreibungAGr=Costs!M$353)*('Fixed assets'!$U$2:$U$1000=Costs!$A421)*(AbschreibungAHKBvD))","v":0},{"$f":"SUM(N$178:N244)-SUM(N$266:N332)+SUMPRODUCT((Aktivierungsjahr=Costs!$A421)*(AbschreibungAGr=Costs!N$353)*('Fixed assets'!$U$2:$U$1000=Costs!$A421)*(AbschreibungAHKBvD))","v":0},{"$f":"SUM(O$178:O244)-SUM(O$266:O332)+SUMPRODUCT((Aktivierungsjahr=Costs!$A421)*(AbschreibungAGr=Costs!O$353)*('Fixed assets'!$U$2:$U$1000=Costs!$A421)*(AbschreibungAHKBvD))","v":0},{"$f":"SUM(P$178:P244)-SUM(P$266:P332)+SUMPRODUCT((Aktivierungsjahr=Costs!$A421)*(AbschreibungAGr=Costs!P$353)*('Fixed assets'!$U$2:$U$1000=Costs!$A421)*(AbschreibungAHKBvD))","v":0},{"$f":"SUM(Q$178:Q244)-SUM(Q$266:Q332)+SUMPRODUCT((Aktivierungsjahr=Costs!$A421)*(AbschreibungAGr=Costs!Q$353)*('Fixed assets'!$U$2:$U$1000=Costs!$A421)*(AbschreibungAHKBvD))","v":0},{"$f":"SUM(R$178:R244)-SUM(R$266:R332)+SUMPRODUCT((Aktivierungsjahr=Costs!$A421)*(AbschreibungAGr=Costs!R$353)*('Fixed assets'!$U$2:$U$1000=Costs!$A421)*(AbschreibungAHKBvD))","v":0},{"$f":"SUM(S$178:S244)-SUM(S$266:S332)+SUMPRODUCT((Aktivierungsjahr=Costs!$A421)*(AbschreibungAGr=Costs!S$353)*('Fixed assets'!$U$2:$U$1000=Costs!$A421)*(AbschreibungAHKBvD))","v":0},{"$f":"SUM(T$178:T244)-SUM(T$266:T332)+SUMPRODUCT((Aktivierungsjahr=Costs!$A421)*(AbschreibungAGr=Costs!T$353)*('Fixed assets'!$U$2:$U$1000=Costs!$A421)*(AbschreibungAHKBvD))","v":0},{"$f":"SUM(U$178:U244)-SUM(U$266:U332)+SUMPRODUCT((Aktivierungsjahr=Costs!$A421)*(AbschreibungAGr=Costs!U$353)*('Fixed assets'!$U$2:$U$1000=Costs!$A421)*(AbschreibungAHKBvD))","v":0},{"$f":"SUM(V$178:V244)-SUM(V$266:V332)+SUMPRODUCT((Aktivierungsjahr=Costs!$A421)*(AbschreibungAGr=Costs!V$353)*('Fixed assets'!$U$2:$U$1000=Costs!$A421)*(AbschreibungAHKBvD))","v":0},{"$f":"SUM(W$178:W244)-SUM(W$266:W332)+SUMPRODUCT((Aktivierungsjahr=Costs!$A421)*(AbschreibungAGr=Costs!W$353)*('Fixed assets'!$U$2:$U$1000=Costs!$A421)*(AbschreibungAHKBvD))","v":0},{"$f":"SUM(X$178:X244)-SUM(X$266:X332)+SUMPRODUCT((Aktivierungsjahr=Costs!$A421)*(AbschreibungAGr=Costs!X$353)*('Fixed assets'!$U$2:$U$1000=Costs!$A421)*(AbschreibungAHKBvD))","v":0},{"$f":"SUM(Y$178:Y244)-SUM(Y$266:Y332)+SUMPRODUCT((Aktivierungsjahr=Costs!$A421)*(AbschreibungAGr=Costs!Y$353)*('Fixed assets'!$U$2:$U$1000=Costs!$A421)*(AbschreibungAHKBvD))","v":0},{"$f":"SUM(Z$178:Z244)-SUM(Z$266:Z332)+SUMPRODUCT((Aktivierungsjahr=Costs!$A421)*(AbschreibungAGr=Costs!Z$353)*('Fixed assets'!$U$2:$U$1000=Costs!$A421)*(AbschreibungAHKBvD))","v":0},{"$f":"SUM(AA$178:AA244)-SUM(AA$266:AA332)+SUMPRODUCT((Aktivierungsjahr=Costs!$A421)*(AbschreibungAGr=Costs!AA$353)*('Fixed assets'!$U$2:$U$1000=Costs!$A421)*(AbschreibungAHKBvD))","v":0},{"$f":"SUM(AB$178:AB244)-SUM(AB$266:AB332)+SUMPRODUCT((Aktivierungsjahr=Costs!$A421)*(AbschreibungAGr=Costs!AB$353)*('Fixed assets'!$U$2:$U$1000=Costs!$A421)*(AbschreibungAHKBvD))","v":0},{"$f":"SUM(AC$178:AC244)-SUM(AC$266:AC332)+SUMPRODUCT((Aktivierungsjahr=Costs!$A421)*(AbschreibungAGr=Costs!AC$353)*('Fixed assets'!$U$2:$U$1000=Costs!$A421)*(AbschreibungAHKBvD))","v":0},{"$f":"SUM(AD$178:AD244)-SUM(AD$266:AD332)+SUMPRODUCT((Aktivierungsjahr=Costs!$A421)*(AbschreibungAGr=Costs!AD$353)*('Fixed assets'!$U$2:$U$1000=Costs!$A421)*(AbschreibungAHKBvD))","v":0},{"$f":"SUM(AE$178:AE244)-SUM(AE$266:AE332)+SUMPRODUCT((Aktivierungsjahr=Costs!$A421)*(AbschreibungAGr=Costs!AE$353)*('Fixed assets'!$U$2:$U$1000=Costs!$A421)*(AbschreibungAHKBvD))","v":0},{"$f":"SUM(AF$178:AF244)-SUM(AF$266:AF332)+SUMPRODUCT((Aktivierungsjahr=Costs!$A421)*(AbschreibungAGr=Costs!AF$353)*('Fixed assets'!$U$2:$U$1000=Costs!$A421)*(AbschreibungAHKBvD))","v":0},{"$f":"SUM(AG$178:AG244)-SUM(AG$266:AG332)+SUMPRODUCT((Aktivierungsjahr=Costs!$A421)*(AbschreibungAGr=Costs!AG$353)*('Fixed assets'!$U$2:$U$1000=Costs!$A421)*(AbschreibungAHKBvD))","v":0},{"$f":"SUM(AH$178:AH244)-SUM(AH$266:AH332)+SUMPRODUCT((Aktivierungsjahr=Costs!$A421)*(AbschreibungAGr=Costs!AH$353)*('Fixed assets'!$U$2:$U$1000=Costs!$A421)*(AbschreibungAHKBvD))","v":0},{"$f":"SUM(AI$178:AI244)-SUM(AI$266:AI332)+SUMPRODUCT((Aktivierungsjahr=Costs!$A421)*(AbschreibungAGr=Costs!AI$353)*('Fixed assets'!$U$2:$U$1000=Costs!$A421)*(AbschreibungAHKBvD))","v":0},{"$f":"SUM(AJ$178:AJ244)-SUM(AJ$266:AJ332)+SUMPRODUCT((Aktivierungsjahr=Costs!$A421)*(AbschreibungAGr=Costs!AJ$353)*('Fixed assets'!$U$2:$U$1000=Costs!$A421)*(AbschreibungAHKBvD))","v":-8.149072527885437E-10},{"$f":"SUM(AK$178:AK244)-SUM(AK$266:AK332)+SUMPRODUCT((Aktivierungsjahr=Costs!$A421)*(AbschreibungAGr=Costs!AK$353)*('Fixed assets'!$U$2:$U$1000=Costs!$A421)*(AbschreibungAHKBvD))","v":0},{"$f":"SUM(AL$178:AL244)-SUM(AL$266:AL332)+SUMPRODUCT((Aktivierungsjahr=Costs!$A421)*(AbschreibungAGr=Costs!AL$353)*('Fixed assets'!$U$2:$U$1000=Costs!$A421)*(AbschreibungAHKBvD))","v":0},{"$f":"SUM(AM$178:AM244)-SUM(AM$266:AM332)+SUMPRODUCT((Aktivierungsjahr=Costs!$A421)*(AbschreibungAGr=Costs!AM$353)*('Fixed assets'!$U$2:$U$1000=Costs!$A421)*(AbschreibungAHKBvD))","v":0},{"$f":"SUM(AN$178:AN244)-SUM(AN$266:AN332)+SUMPRODUCT((Aktivierungsjahr=Costs!$A421)*(AbschreibungAGr=Costs!AN$353)*('Fixed assets'!$U$2:$U$1000=Costs!$A421)*(AbschreibungAHKBvD))","v":0},{"$f":"SUM(AO$178:AO244)-SUM(AO$266:AO332)+SUMPRODUCT((Aktivierungsjahr=Costs!$A421)*(AbschreibungAGr=Costs!AO$353)*('Fixed assets'!$U$2:$U$1000=Costs!$A421)*(AbschreibungAHKBvD))","v":0},{"$f":"SUM(AP$178:AP244)-SUM(AP$266:AP332)+SUMPRODUCT((Aktivierungsjahr=Costs!$A421)*(AbschreibungAGr=Costs!AP$353)*('Fixed assets'!$U$2:$U$1000=Costs!$A421)*(AbschreibungAHKBvD))","v":0},{"$f":"SUM(AQ$178:AQ244)-SUM(AQ$266:AQ332)+SUMPRODUCT((Aktivierungsjahr=Costs!$A421)*(AbschreibungAGr=Costs!AQ$353)*('Fixed assets'!$U$2:$U$1000=Costs!$A421)*(AbschreibungAHKBvD))","v":0}]
[2083,-8.149072527885437E-10,{"$f":"SUM(C$178:C245)-SUM(C$266:C333)+SUMPRODUCT((Aktivierungsjahr=Costs!$A422)*(AbschreibungAGr=Costs!C$353)*('Fixed assets'!$U$2:$U$1000=Costs!$A422)*(AbschreibungAHKBvD))","v":0},{"$f":"SUM(D$178:D245)-SUM(D$266:D333)+SUMPRODUCT((Aktivierungsjahr=Costs!$A422)*(AbschreibungAGr=Costs!D$353)*('Fixed assets'!$U$2:$U$1000=Costs!$A422)*(AbschreibungAHKBvD))","v":0},{"$f":"SUM(E$178:E245)-SUM(E$266:E333)+SUMPRODUCT((Aktivierungsjahr=Costs!$A422)*(AbschreibungAGr=Costs!E$353)*('Fixed assets'!$U$2:$U$1000=Costs!$A422)*(AbschreibungAHKBvD))","v":0},{"$f":"SUM(F$178:F245)-SUM(F$266:F333)+SUMPRODUCT((Aktivierungsjahr=Costs!$A422)*(AbschreibungAGr=Costs!F$353)*('Fixed assets'!$U$2:$U$1000=Costs!$A422)*(AbschreibungAHKBvD))","v":0},{"$f":"SUM(G$178:G245)-SUM(G$266:G333)+SUMPRODUCT((Aktivierungsjahr=Costs!$A422)*(AbschreibungAGr=Costs!G$353)*('Fixed assets'!$U$2:$U$1000=Costs!$A422)*(AbschreibungAHKBvD))","v":0},{"$f":"SUM(H$178:H245)-SUM(H$266:H333)+SUMPRODUCT((Aktivierungsjahr=Costs!$A422)*(AbschreibungAGr=Costs!H$353)*('Fixed assets'!$U$2:$U$1000=Costs!$A422)*(AbschreibungAHKBvD))","v":0},{"$f":"SUM(I$178:I245)-SUM(I$266:I333)+SUMPRODUCT((Aktivierungsjahr=Costs!$A422)*(AbschreibungAGr=Costs!I$353)*('Fixed assets'!$U$2:$U$1000=Costs!$A422)*(AbschreibungAHKBvD))","v":0},{"$f":"SUM(J$178:J245)-SUM(J$266:J333)+SUMPRODUCT((Aktivierungsjahr=Costs!$A422)*(AbschreibungAGr=Costs!J$353)*('Fixed assets'!$U$2:$U$1000=Costs!$A422)*(AbschreibungAHKBvD))","v":0},{"$f":"SUM(K$178:K245)-SUM(K$266:K333)+SUMPRODUCT((Aktivierungsjahr=Costs!$A422)*(AbschreibungAGr=Costs!K$353)*('Fixed assets'!$U$2:$U$1000=Costs!$A422)*(AbschreibungAHKBvD))","v":0},{"$f":"SUM(L$178:L245)-SUM(L$266:L333)+SUMPRODUCT((Aktivierungsjahr=Costs!$A422)*(AbschreibungAGr=Costs!L$353)*('Fixed assets'!$U$2:$U$1000=Costs!$A422)*(AbschreibungAHKBvD))","v":0},{"$f":"SUM(M$178:M245)-SUM(M$266:M333)+SUMPRODUCT((Aktivierungsjahr=Costs!$A422)*(AbschreibungAGr=Costs!M$353)*('Fixed assets'!$U$2:$U$1000=Costs!$A422)*(AbschreibungAHKBvD))","v":0},{"$f":"SUM(N$178:N245)-SUM(N$266:N333)+SUMPRODUCT((Aktivierungsjahr=Costs!$A422)*(AbschreibungAGr=Costs!N$353)*('Fixed assets'!$U$2:$U$1000=Costs!$A422)*(AbschreibungAHKBvD))","v":0},{"$f":"SUM(O$178:O245)-SUM(O$266:O333)+SUMPRODUCT((Aktivierungsjahr=Costs!$A422)*(AbschreibungAGr=Costs!O$353)*('Fixed assets'!$U$2:$U$1000=Costs!$A422)*(AbschreibungAHKBvD))","v":0},{"$f":"SUM(P$178:P245)-SUM(P$266:P333)+SUMPRODUCT((Aktivierungsjahr=Costs!$A422)*(AbschreibungAGr=Costs!P$353)*('Fixed assets'!$U$2:$U$1000=Costs!$A422)*(AbschreibungAHKBvD))","v":0},{"$f":"SUM(Q$178:Q245)-SUM(Q$266:Q333)+SUMPRODUCT((Aktivierungsjahr=Costs!$A422)*(AbschreibungAGr=Costs!Q$353)*('Fixed assets'!$U$2:$U$1000=Costs!$A422)*(AbschreibungAHKBvD))","v":0},{"$f":"SUM(R$178:R245)-SUM(R$266:R333)+SUMPRODUCT((Aktivierungsjahr=Costs!$A422)*(AbschreibungAGr=Costs!R$353)*('Fixed assets'!$U$2:$U$1000=Costs!$A422)*(AbschreibungAHKBvD))","v":0},{"$f":"SUM(S$178:S245)-SUM(S$266:S333)+SUMPRODUCT((Aktivierungsjahr=Costs!$A422)*(AbschreibungAGr=Costs!S$353)*('Fixed assets'!$U$2:$U$1000=Costs!$A422)*(AbschreibungAHKBvD))","v":0},{"$f":"SUM(T$178:T245)-SUM(T$266:T333)+SUMPRODUCT((Aktivierungsjahr=Costs!$A422)*(AbschreibungAGr=Costs!T$353)*('Fixed assets'!$U$2:$U$1000=Costs!$A422)*(AbschreibungAHKBvD))","v":0},{"$f":"SUM(U$178:U245)-SUM(U$266:U333)+SUMPRODUCT((Aktivierungsjahr=Costs!$A422)*(AbschreibungAGr=Costs!U$353)*('Fixed assets'!$U$2:$U$1000=Costs!$A422)*(AbschreibungAHKBvD))","v":0},{"$f":"SUM(V$178:V245)-SUM(V$266:V333)+SUMPRODUCT((Aktivierungsjahr=Costs!$A422)*(AbschreibungAGr=Costs!V$353)*('Fixed assets'!$U$2:$U$1000=Costs!$A422)*(AbschreibungAHKBvD))","v":0},{"$f":"SUM(W$178:W245)-SUM(W$266:W333)+SUMPRODUCT((Aktivierungsjahr=Costs!$A422)*(AbschreibungAGr=Costs!W$353)*('Fixed assets'!$U$2:$U$1000=Costs!$A422)*(AbschreibungAHKBvD))","v":0},{"$f":"SUM(X$178:X245)-SUM(X$266:X333)+SUMPRODUCT((Aktivierungsjahr=Costs!$A422)*(AbschreibungAGr=Costs!X$353)*('Fixed assets'!$U$2:$U$1000=Costs!$A422)*(AbschreibungAHKBvD))","v":0},{"$f":"SUM(Y$178:Y245)-SUM(Y$266:Y333)+SUMPRODUCT((Aktivierungsjahr=Costs!$A422)*(AbschreibungAGr=Costs!Y$353)*('Fixed assets'!$U$2:$U$1000=Costs!$A422)*(AbschreibungAHKBvD))","v":0},{"$f":"SUM(Z$178:Z245)-SUM(Z$266:Z333)+SUMPRODUCT((Aktivierungsjahr=Costs!$A422)*(AbschreibungAGr=Costs!Z$353)*('Fixed assets'!$U$2:$U$1000=Costs!$A422)*(AbschreibungAHKBvD))","v":0},{"$f":"SUM(AA$178:AA245)-SUM(AA$266:AA333)+SUMPRODUCT((Aktivierungsjahr=Costs!$A422)*(AbschreibungAGr=Costs!AA$353)*('Fixed assets'!$U$2:$U$1000=Costs!$A422)*(AbschreibungAHKBvD))","v":0},{"$f":"SUM(AB$178:AB245)-SUM(AB$266:AB333)+SUMPRODUCT((Aktivierungsjahr=Costs!$A422)*(AbschreibungAGr=Costs!AB$353)*('Fixed assets'!$U$2:$U$1000=Costs!$A422)*(AbschreibungAHKBvD))","v":0},{"$f":"SUM(AC$178:AC245)-SUM(AC$266:AC333)+SUMPRODUCT((Aktivierungsjahr=Costs!$A422)*(AbschreibungAGr=Costs!AC$353)*('Fixed assets'!$U$2:$U$1000=Costs!$A422)*(AbschreibungAHKBvD))","v":0},{"$f":"SUM(AD$178:AD245)-SUM(AD$266:AD333)+SUMPRODUCT((Aktivierungsjahr=Costs!$A422)*(AbschreibungAGr=Costs!AD$353)*('Fixed assets'!$U$2:$U$1000=Costs!$A422)*(AbschreibungAHKBvD))","v":0},{"$f":"SUM(AE$178:AE245)-SUM(AE$266:AE333)+SUMPRODUCT((Aktivierungsjahr=Costs!$A422)*(AbschreibungAGr=Costs!AE$353)*('Fixed assets'!$U$2:$U$1000=Costs!$A422)*(AbschreibungAHKBvD))","v":0},{"$f":"SUM(AF$178:AF245)-SUM(AF$266:AF333)+SUMPRODUCT((Aktivierungsjahr=Costs!$A422)*(AbschreibungAGr=Costs!AF$353)*('Fixed assets'!$U$2:$U$1000=Costs!$A422)*(AbschreibungAHKBvD))","v":0},{"$f":"SUM(AG$178:AG245)-SUM(AG$266:AG333)+SUMPRODUCT((Aktivierungsjahr=Costs!$A422)*(AbschreibungAGr=Costs!AG$353)*('Fixed assets'!$U$2:$U$1000=Costs!$A422)*(AbschreibungAHKBvD))","v":0},{"$f":"SUM(AH$178:AH245)-SUM(AH$266:AH333)+SUMPRODUCT((Aktivierungsjahr=Costs!$A422)*(AbschreibungAGr=Costs!AH$353)*('Fixed assets'!$U$2:$U$1000=Costs!$A422)*(AbschreibungAHKBvD))","v":0},{"$f":"SUM(AI$178:AI245)-SUM(AI$266:AI333)+SUMPRODUCT((Aktivierungsjahr=Costs!$A422)*(AbschreibungAGr=Costs!AI$353)*('Fixed assets'!$U$2:$U$1000=Costs!$A422)*(AbschreibungAHKBvD))","v":0},{"$f":"SUM(AJ$178:AJ245)-SUM(AJ$266:AJ333)+SUMPRODUCT((Aktivierungsjahr=Costs!$A422)*(AbschreibungAGr=Costs!AJ$353)*('Fixed assets'!$U$2:$U$1000=Costs!$A422)*(AbschreibungAHKBvD))","v":-8.149072527885437E-10},{"$f":"SUM(AK$178:AK245)-SUM(AK$266:AK333)+SUMPRODUCT((Aktivierungsjahr=Costs!$A422)*(AbschreibungAGr=Costs!AK$353)*('Fixed assets'!$U$2:$U$1000=Costs!$A422)*(AbschreibungAHKBvD))","v":0},{"$f":"SUM(AL$178:AL245)-SUM(AL$266:AL333)+SUMPRODUCT((Aktivierungsjahr=Costs!$A422)*(AbschreibungAGr=Costs!AL$353)*('Fixed assets'!$U$2:$U$1000=Costs!$A422)*(AbschreibungAHKBvD))","v":0},{"$f":"SUM(AM$178:AM245)-SUM(AM$266:AM333)+SUMPRODUCT((Aktivierungsjahr=Costs!$A422)*(AbschreibungAGr=Costs!AM$353)*('Fixed assets'!$U$2:$U$1000=Costs!$A422)*(AbschreibungAHKBvD))","v":0},{"$f":"SUM(AN$178:AN245)-SUM(AN$266:AN333)+SUMPRODUCT((Aktivierungsjahr=Costs!$A422)*(AbschreibungAGr=Costs!AN$353)*('Fixed assets'!$U$2:$U$1000=Costs!$A422)*(AbschreibungAHKBvD))","v":0},{"$f":"SUM(AO$178:AO245)-SUM(AO$266:AO333)+SUMPRODUCT((Aktivierungsjahr=Costs!$A422)*(AbschreibungAGr=Costs!AO$353)*('Fixed assets'!$U$2:$U$1000=Costs!$A422)*(AbschreibungAHKBvD))","v":0},{"$f":"SUM(AP$178:AP245)-SUM(AP$266:AP333)+SUMPRODUCT((Aktivierungsjahr=Costs!$A422)*(AbschreibungAGr=Costs!AP$353)*('Fixed assets'!$U$2:$U$1000=Costs!$A422)*(AbschreibungAHKBvD))","v":0},{"$f":"SUM(AQ$178:AQ245)-SUM(AQ$266:AQ333)+SUMPRODUCT((Aktivierungsjahr=Costs!$A422)*(AbschreibungAGr=Costs!AQ$353)*('Fixed assets'!$U$2:$U$1000=Costs!$A422)*(AbschreibungAHKBvD))","v":0}]
[2084,-8.149072527885437E-10,{"$f":"SUM(C$178:C246)-SUM(C$266:C334)+SUMPRODUCT((Aktivierungsjahr=Costs!$A423)*(AbschreibungAGr=Costs!C$353)*('Fixed assets'!$U$2:$U$1000=Costs!$A423)*(AbschreibungAHKBvD))","v":0},{"$f":"SUM(D$178:D246)-SUM(D$266:D334)+SUMPRODUCT((Aktivierungsjahr=Costs!$A423)*(AbschreibungAGr=Costs!D$353)*('Fixed assets'!$U$2:$U$1000=Costs!$A423)*(AbschreibungAHKBvD))","v":0},{"$f":"SUM(E$178:E246)-SUM(E$266:E334)+SUMPRODUCT((Aktivierungsjahr=Costs!$A423)*(AbschreibungAGr=Costs!E$353)*('Fixed assets'!$U$2:$U$1000=Costs!$A423)*(AbschreibungAHKBvD))","v":0},{"$f":"SUM(F$178:F246)-SUM(F$266:F334)+SUMPRODUCT((Aktivierungsjahr=Costs!$A423)*(AbschreibungAGr=Costs!F$353)*('Fixed assets'!$U$2:$U$1000=Costs!$A423)*(AbschreibungAHKBvD))","v":0},{"$f":"SUM(G$178:G246)-SUM(G$266:G334)+SUMPRODUCT((Aktivierungsjahr=Costs!$A423)*(AbschreibungAGr=Costs!G$353)*('Fixed assets'!$U$2:$U$1000=Costs!$A423)*(AbschreibungAHKBvD))","v":0},{"$f":"SUM(H$178:H246)-SUM(H$266:H334)+SUMPRODUCT((Aktivierungsjahr=Costs!$A423)*(AbschreibungAGr=Costs!H$353)*('Fixed assets'!$U$2:$U$1000=Costs!$A423)*(AbschreibungAHKBvD))","v":0},{"$f":"SUM(I$178:I246)-SUM(I$266:I334)+SUMPRODUCT((Aktivierungsjahr=Costs!$A423)*(AbschreibungAGr=Costs!I$353)*('Fixed assets'!$U$2:$U$1000=Costs!$A423)*(AbschreibungAHKBvD))","v":0},{"$f":"SUM(J$178:J246)-SUM(J$266:J334)+SUMPRODUCT((Aktivierungsjahr=Costs!$A423)*(AbschreibungAGr=Costs!J$353)*('Fixed assets'!$U$2:$U$1000=Costs!$A423)*(AbschreibungAHKBvD))","v":0},{"$f":"SUM(K$178:K246)-SUM(K$266:K334)+SUMPRODUCT((Aktivierungsjahr=Costs!$A423)*(AbschreibungAGr=Costs!K$353)*('Fixed assets'!$U$2:$U$1000=Costs!$A423)*(AbschreibungAHKBvD))","v":0},{"$f":"SUM(L$178:L246)-SUM(L$266:L334)+SUMPRODUCT((Aktivierungsjahr=Costs!$A423)*(AbschreibungAGr=Costs!L$353)*('Fixed assets'!$U$2:$U$1000=Costs!$A423)*(AbschreibungAHKBvD))","v":0},{"$f":"SUM(M$178:M246)-SUM(M$266:M334)+SUMPRODUCT((Aktivierungsjahr=Costs!$A423)*(AbschreibungAGr=Costs!M$353)*('Fixed assets'!$U$2:$U$1000=Costs!$A423)*(AbschreibungAHKBvD))","v":0},{"$f":"SUM(N$178:N246)-SUM(N$266:N334)+SUMPRODUCT((Aktivierungsjahr=Costs!$A423)*(AbschreibungAGr=Costs!N$353)*('Fixed assets'!$U$2:$U$1000=Costs!$A423)*(AbschreibungAHKBvD))","v":0},{"$f":"SUM(O$178:O246)-SUM(O$266:O334)+SUMPRODUCT((Aktivierungsjahr=Costs!$A423)*(AbschreibungAGr=Costs!O$353)*('Fixed assets'!$U$2:$U$1000=Costs!$A423)*(AbschreibungAHKBvD))","v":0},{"$f":"SUM(P$178:P246)-SUM(P$266:P334)+SUMPRODUCT((Aktivierungsjahr=Costs!$A423)*(AbschreibungAGr=Costs!P$353)*('Fixed assets'!$U$2:$U$1000=Costs!$A423)*(AbschreibungAHKBvD))","v":0},{"$f":"SUM(Q$178:Q246)-SUM(Q$266:Q334)+SUMPRODUCT((Aktivierungsjahr=Costs!$A423)*(AbschreibungAGr=Costs!Q$353)*('Fixed assets'!$U$2:$U$1000=Costs!$A423)*(AbschreibungAHKBvD))","v":0},{"$f":"SUM(R$178:R246)-SUM(R$266:R334)+SUMPRODUCT((Aktivierungsjahr=Costs!$A423)*(AbschreibungAGr=Costs!R$353)*('Fixed assets'!$U$2:$U$1000=Costs!$A423)*(AbschreibungAHKBvD))","v":0},{"$f":"SUM(S$178:S246)-SUM(S$266:S334)+SUMPRODUCT((Aktivierungsjahr=Costs!$A423)*(AbschreibungAGr=Costs!S$353)*('Fixed assets'!$U$2:$U$1000=Costs!$A423)*(AbschreibungAHKBvD))","v":0},{"$f":"SUM(T$178:T246)-SUM(T$266:T334)+SUMPRODUCT((Aktivierungsjahr=Costs!$A423)*(AbschreibungAGr=Costs!T$353)*('Fixed assets'!$U$2:$U$1000=Costs!$A423)*(AbschreibungAHKBvD))","v":0},{"$f":"SUM(U$178:U246)-SUM(U$266:U334)+SUMPRODUCT((Aktivierungsjahr=Costs!$A423)*(AbschreibungAGr=Costs!U$353)*('Fixed assets'!$U$2:$U$1000=Costs!$A423)*(AbschreibungAHKBvD))","v":0},{"$f":"SUM(V$178:V246)-SUM(V$266:V334)+SUMPRODUCT((Aktivierungsjahr=Costs!$A423)*(AbschreibungAGr=Costs!V$353)*('Fixed assets'!$U$2:$U$1000=Costs!$A423)*(AbschreibungAHKBvD))","v":0},{"$f":"SUM(W$178:W246)-SUM(W$266:W334)+SUMPRODUCT((Aktivierungsjahr=Costs!$A423)*(AbschreibungAGr=Costs!W$353)*('Fixed assets'!$U$2:$U$1000=Costs!$A423)*(AbschreibungAHKBvD))","v":0},{"$f":"SUM(X$178:X246)-SUM(X$266:X334)+SUMPRODUCT((Aktivierungsjahr=Costs!$A423)*(AbschreibungAGr=Costs!X$353)*('Fixed assets'!$U$2:$U$1000=Costs!$A423)*(AbschreibungAHKBvD))","v":0},{"$f":"SUM(Y$178:Y246)-SUM(Y$266:Y334)+SUMPRODUCT((Aktivierungsjahr=Costs!$A423)*(AbschreibungAGr=Costs!Y$353)*('Fixed assets'!$U$2:$U$1000=Costs!$A423)*(AbschreibungAHKBvD))","v":0},{"$f":"SUM(Z$178:Z246)-SUM(Z$266:Z334)+SUMPRODUCT((Aktivierungsjahr=Costs!$A423)*(AbschreibungAGr=Costs!Z$353)*('Fixed assets'!$U$2:$U$1000=Costs!$A423)*(AbschreibungAHKBvD))","v":0},{"$f":"SUM(AA$178:AA246)-SUM(AA$266:AA334)+SUMPRODUCT((Aktivierungsjahr=Costs!$A423)*(AbschreibungAGr=Costs!AA$353)*('Fixed assets'!$U$2:$U$1000=Costs!$A423)*(AbschreibungAHKBvD))","v":0},{"$f":"SUM(AB$178:AB246)-SUM(AB$266:AB334)+SUMPRODUCT((Aktivierungsjahr=Costs!$A423)*(AbschreibungAGr=Costs!AB$353)*('Fixed assets'!$U$2:$U$1000=Costs!$A423)*(AbschreibungAHKBvD))","v":0},{"$f":"SUM(AC$178:AC246)-SUM(AC$266:AC334)+SUMPRODUCT((Aktivierungsjahr=Costs!$A423)*(AbschreibungAGr=Costs!AC$353)*('Fixed assets'!$U$2:$U$1000=Costs!$A423)*(AbschreibungAHKBvD))","v":0},{"$f":"SUM(AD$178:AD246)-SUM(AD$266:AD334)+SUMPRODUCT((Aktivierungsjahr=Costs!$A423)*(AbschreibungAGr=Costs!AD$353)*('Fixed assets'!$U$2:$U$1000=Costs!$A423)*(AbschreibungAHKBvD))","v":0},{"$f":"SUM(AE$178:AE246)-SUM(AE$266:AE334)+SUMPRODUCT((Aktivierungsjahr=Costs!$A423)*(AbschreibungAGr=Costs!AE$353)*('Fixed assets'!$U$2:$U$1000=Costs!$A423)*(AbschreibungAHKBvD))","v":0},{"$f":"SUM(AF$178:AF246)-SUM(AF$266:AF334)+SUMPRODUCT((Aktivierungsjahr=Costs!$A423)*(AbschreibungAGr=Costs!AF$353)*('Fixed assets'!$U$2:$U$1000=Costs!$A423)*(AbschreibungAHKBvD))","v":0},{"$f":"SUM(AG$178:AG246)-SUM(AG$266:AG334)+SUMPRODUCT((Aktivierungsjahr=Costs!$A423)*(AbschreibungAGr=Costs!AG$353)*('Fixed assets'!$U$2:$U$1000=Costs!$A423)*(AbschreibungAHKBvD))","v":0},{"$f":"SUM(AH$178:AH246)-SUM(AH$266:AH334)+SUMPRODUCT((Aktivierungsjahr=Costs!$A423)*(AbschreibungAGr=Costs!AH$353)*('Fixed assets'!$U$2:$U$1000=Costs!$A423)*(AbschreibungAHKBvD))","v":0},{"$f":"SUM(AI$178:AI246)-SUM(AI$266:AI334)+SUMPRODUCT((Aktivierungsjahr=Costs!$A423)*(AbschreibungAGr=Costs!AI$353)*('Fixed assets'!$U$2:$U$1000=Costs!$A423)*(AbschreibungAHKBvD))","v":0},{"$f":"SUM(AJ$178:AJ246)-SUM(AJ$266:AJ334)+SUMPRODUCT((Aktivierungsjahr=Costs!$A423)*(AbschreibungAGr=Costs!AJ$353)*('Fixed assets'!$U$2:$U$1000=Costs!$A423)*(AbschreibungAHKBvD))","v":-8.149072527885437E-10},{"$f":"SUM(AK$178:AK246)-SUM(AK$266:AK334)+SUMPRODUCT((Aktivierungsjahr=Costs!$A423)*(AbschreibungAGr=Costs!AK$353)*('Fixed assets'!$U$2:$U$1000=Costs!$A423)*(AbschreibungAHKBvD))","v":0},{"$f":"SUM(AL$178:AL246)-SUM(AL$266:AL334)+SUMPRODUCT((Aktivierungsjahr=Costs!$A423)*(AbschreibungAGr=Costs!AL$353)*('Fixed assets'!$U$2:$U$1000=Costs!$A423)*(AbschreibungAHKBvD))","v":0},{"$f":"SUM(AM$178:AM246)-SUM(AM$266:AM334)+SUMPRODUCT((Aktivierungsjahr=Costs!$A423)*(AbschreibungAGr=Costs!AM$353)*('Fixed assets'!$U$2:$U$1000=Costs!$A423)*(AbschreibungAHKBvD))","v":0},{"$f":"SUM(AN$178:AN246)-SUM(AN$266:AN334)+SUMPRODUCT((Aktivierungsjahr=Costs!$A423)*(AbschreibungAGr=Costs!AN$353)*('Fixed assets'!$U$2:$U$1000=Costs!$A423)*(AbschreibungAHKBvD))","v":0},{"$f":"SUM(AO$178:AO246)-SUM(AO$266:AO334)+SUMPRODUCT((Aktivierungsjahr=Costs!$A423)*(AbschreibungAGr=Costs!AO$353)*('Fixed assets'!$U$2:$U$1000=Costs!$A423)*(AbschreibungAHKBvD))","v":0},{"$f":"SUM(AP$178:AP246)-SUM(AP$266:AP334)+SUMPRODUCT((Aktivierungsjahr=Costs!$A423)*(AbschreibungAGr=Costs!AP$353)*('Fixed assets'!$U$2:$U$1000=Costs!$A423)*(AbschreibungAHKBvD))","v":0},{"$f":"SUM(AQ$178:AQ246)-SUM(AQ$266:AQ334)+SUMPRODUCT((Aktivierungsjahr=Costs!$A423)*(AbschreibungAGr=Costs!AQ$353)*('Fixed assets'!$U$2:$U$1000=Costs!$A423)*(AbschreibungAHKBvD))","v":0}]
[2085,-8.149072527885437E-10,{"$f":"SUM(C$178:C247)-SUM(C$266:C335)+SUMPRODUCT((Aktivierungsjahr=Costs!$A424)*(AbschreibungAGr=Costs!C$353)*('Fixed assets'!$U$2:$U$1000=Costs!$A424)*(AbschreibungAHKBvD))","v":0},{"$f":"SUM(D$178:D247)-SUM(D$266:D335)+SUMPRODUCT((Aktivierungsjahr=Costs!$A424)*(AbschreibungAGr=Costs!D$353)*('Fixed assets'!$U$2:$U$1000=Costs!$A424)*(AbschreibungAHKBvD))","v":0},{"$f":"SUM(E$178:E247)-SUM(E$266:E335)+SUMPRODUCT((Aktivierungsjahr=Costs!$A424)*(AbschreibungAGr=Costs!E$353)*('Fixed assets'!$U$2:$U$1000=Costs!$A424)*(AbschreibungAHKBvD))","v":0},{"$f":"SUM(F$178:F247)-SUM(F$266:F335)+SUMPRODUCT((Aktivierungsjahr=Costs!$A424)*(AbschreibungAGr=Costs!F$353)*('Fixed assets'!$U$2:$U$1000=Costs!$A424)*(AbschreibungAHKBvD))","v":0},{"$f":"SUM(G$178:G247)-SUM(G$266:G335)+SUMPRODUCT((Aktivierungsjahr=Costs!$A424)*(AbschreibungAGr=Costs!G$353)*('Fixed assets'!$U$2:$U$1000=Costs!$A424)*(AbschreibungAHKBvD))","v":0},{"$f":"SUM(H$178:H247)-SUM(H$266:H335)+SUMPRODUCT((Aktivierungsjahr=Costs!$A424)*(AbschreibungAGr=Costs!H$353)*('Fixed assets'!$U$2:$U$1000=Costs!$A424)*(AbschreibungAHKBvD))","v":0},{"$f":"SUM(I$178:I247)-SUM(I$266:I335)+SUMPRODUCT((Aktivierungsjahr=Costs!$A424)*(AbschreibungAGr=Costs!I$353)*('Fixed assets'!$U$2:$U$1000=Costs!$A424)*(AbschreibungAHKBvD))","v":0},{"$f":"SUM(J$178:J247)-SUM(J$266:J335)+SUMPRODUCT((Aktivierungsjahr=Costs!$A424)*(AbschreibungAGr=Costs!J$353)*('Fixed assets'!$U$2:$U$1000=Costs!$A424)*(AbschreibungAHKBvD))","v":0},{"$f":"SUM(K$178:K247)-SUM(K$266:K335)+SUMPRODUCT((Aktivierungsjahr=Costs!$A424)*(AbschreibungAGr=Costs!K$353)*('Fixed assets'!$U$2:$U$1000=Costs!$A424)*(AbschreibungAHKBvD))","v":0},{"$f":"SUM(L$178:L247)-SUM(L$266:L335)+SUMPRODUCT((Aktivierungsjahr=Costs!$A424)*(AbschreibungAGr=Costs!L$353)*('Fixed assets'!$U$2:$U$1000=Costs!$A424)*(AbschreibungAHKBvD))","v":0},{"$f":"SUM(M$178:M247)-SUM(M$266:M335)+SUMPRODUCT((Aktivierungsjahr=Costs!$A424)*(AbschreibungAGr=Costs!M$353)*('Fixed assets'!$U$2:$U$1000=Costs!$A424)*(AbschreibungAHKBvD))","v":0},{"$f":"SUM(N$178:N247)-SUM(N$266:N335)+SUMPRODUCT((Aktivierungsjahr=Costs!$A424)*(AbschreibungAGr=Costs!N$353)*('Fixed assets'!$U$2:$U$1000=Costs!$A424)*(AbschreibungAHKBvD))","v":0},{"$f":"SUM(O$178:O247)-SUM(O$266:O335)+SUMPRODUCT((Aktivierungsjahr=Costs!$A424)*(AbschreibungAGr=Costs!O$353)*('Fixed assets'!$U$2:$U$1000=Costs!$A424)*(AbschreibungAHKBvD))","v":0},{"$f":"SUM(P$178:P247)-SUM(P$266:P335)+SUMPRODUCT((Aktivierungsjahr=Costs!$A424)*(AbschreibungAGr=Costs!P$353)*('Fixed assets'!$U$2:$U$1000=Costs!$A424)*(AbschreibungAHKBvD))","v":0},{"$f":"SUM(Q$178:Q247)-SUM(Q$266:Q335)+SUMPRODUCT((Aktivierungsjahr=Costs!$A424)*(AbschreibungAGr=Costs!Q$353)*('Fixed assets'!$U$2:$U$1000=Costs!$A424)*(AbschreibungAHKBvD))","v":0},{"$f":"SUM(R$178:R247)-SUM(R$266:R335)+SUMPRODUCT((Aktivierungsjahr=Costs!$A424)*(AbschreibungAGr=Costs!R$353)*('Fixed assets'!$U$2:$U$1000=Costs!$A424)*(AbschreibungAHKBvD))","v":0},{"$f":"SUM(S$178:S247)-SUM(S$266:S335)+SUMPRODUCT((Aktivierungsjahr=Costs!$A424)*(AbschreibungAGr=Costs!S$353)*('Fixed assets'!$U$2:$U$1000=Costs!$A424)*(AbschreibungAHKBvD))","v":0},{"$f":"SUM(T$178:T247)-SUM(T$266:T335)+SUMPRODUCT((Aktivierungsjahr=Costs!$A424)*(AbschreibungAGr=Costs!T$353)*('Fixed assets'!$U$2:$U$1000=Costs!$A424)*(AbschreibungAHKBvD))","v":0},{"$f":"SUM(U$178:U247)-SUM(U$266:U335)+SUMPRODUCT((Aktivierungsjahr=Costs!$A424)*(AbschreibungAGr=Costs!U$353)*('Fixed assets'!$U$2:$U$1000=Costs!$A424)*(AbschreibungAHKBvD))","v":0},{"$f":"SUM(V$178:V247)-SUM(V$266:V335)+SUMPRODUCT((Aktivierungsjahr=Costs!$A424)*(AbschreibungAGr=Costs!V$353)*('Fixed assets'!$U$2:$U$1000=Costs!$A424)*(AbschreibungAHKBvD))","v":0},{"$f":"SUM(W$178:W247)-SUM(W$266:W335)+SUMPRODUCT((Aktivierungsjahr=Costs!$A424)*(AbschreibungAGr=Costs!W$353)*('Fixed assets'!$U$2:$U$1000=Costs!$A424)*(AbschreibungAHKBvD))","v":0},{"$f":"SUM(X$178:X247)-SUM(X$266:X335)+SUMPRODUCT((Aktivierungsjahr=Costs!$A424)*(AbschreibungAGr=Costs!X$353)*('Fixed assets'!$U$2:$U$1000=Costs!$A424)*(AbschreibungAHKBvD))","v":0},{"$f":"SUM(Y$178:Y247)-SUM(Y$266:Y335)+SUMPRODUCT((Aktivierungsjahr=Costs!$A424)*(AbschreibungAGr=Costs!Y$353)*('Fixed assets'!$U$2:$U$1000=Costs!$A424)*(AbschreibungAHKBvD))","v":0},{"$f":"SUM(Z$178:Z247)-SUM(Z$266:Z335)+SUMPRODUCT((Aktivierungsjahr=Costs!$A424)*(AbschreibungAGr=Costs!Z$353)*('Fixed assets'!$U$2:$U$1000=Costs!$A424)*(AbschreibungAHKBvD))","v":0},{"$f":"SUM(AA$178:AA247)-SUM(AA$266:AA335)+SUMPRODUCT((Aktivierungsjahr=Costs!$A424)*(AbschreibungAGr=Costs!AA$353)*('Fixed assets'!$U$2:$U$1000=Costs!$A424)*(AbschreibungAHKBvD))","v":0},{"$f":"SUM(AB$178:AB247)-SUM(AB$266:AB335)+SUMPRODUCT((Aktivierungsjahr=Costs!$A424)*(AbschreibungAGr=Costs!AB$353)*('Fixed assets'!$U$2:$U$1000=Costs!$A424)*(AbschreibungAHKBvD))","v":0},{"$f":"SUM(AC$178:AC247)-SUM(AC$266:AC335)+SUMPRODUCT((Aktivierungsjahr=Costs!$A424)*(AbschreibungAGr=Costs!AC$353)*('Fixed assets'!$U$2:$U$1000=Costs!$A424)*(AbschreibungAHKBvD))","v":0},{"$f":"SUM(AD$178:AD247)-SUM(AD$266:AD335)+SUMPRODUCT((Aktivierungsjahr=Costs!$A424)*(AbschreibungAGr=Costs!AD$353)*('Fixed assets'!$U$2:$U$1000=Costs!$A424)*(AbschreibungAHKBvD))","v":0},{"$f":"SUM(AE$178:AE247)-SUM(AE$266:AE335)+SUMPRODUCT((Aktivierungsjahr=Costs!$A424)*(AbschreibungAGr=Costs!AE$353)*('Fixed assets'!$U$2:$U$1000=Costs!$A424)*(AbschreibungAHKBvD))","v":0},{"$f":"SUM(AF$178:AF247)-SUM(AF$266:AF335)+SUMPRODUCT((Aktivierungsjahr=Costs!$A424)*(AbschreibungAGr=Costs!AF$353)*('Fixed assets'!$U$2:$U$1000=Costs!$A424)*(AbschreibungAHKBvD))","v":0},{"$f":"SUM(AG$178:AG247)-SUM(AG$266:AG335)+SUMPRODUCT((Aktivierungsjahr=Costs!$A424)*(AbschreibungAGr=Costs!AG$353)*('Fixed assets'!$U$2:$U$1000=Costs!$A424)*(AbschreibungAHKBvD))","v":0},{"$f":"SUM(AH$178:AH247)-SUM(AH$266:AH335)+SUMPRODUCT((Aktivierungsjahr=Costs!$A424)*(AbschreibungAGr=Costs!AH$353)*('Fixed assets'!$U$2:$U$1000=Costs!$A424)*(AbschreibungAHKBvD))","v":0},{"$f":"SUM(AI$178:AI247)-SUM(AI$266:AI335)+SUMPRODUCT((Aktivierungsjahr=Costs!$A424)*(AbschreibungAGr=Costs!AI$353)*('Fixed assets'!$U$2:$U$1000=Costs!$A424)*(AbschreibungAHKBvD))","v":0},{"$f":"SUM(AJ$178:AJ247)-SUM(AJ$266:AJ335)+SUMPRODUCT((Aktivierungsjahr=Costs!$A424)*(AbschreibungAGr=Costs!AJ$353)*('Fixed assets'!$U$2:$U$1000=Costs!$A424)*(AbschreibungAHKBvD))","v":-8.149072527885437E-10},{"$f":"SUM(AK$178:AK247)-SUM(AK$266:AK335)+SUMPRODUCT((Aktivierungsjahr=Costs!$A424)*(AbschreibungAGr=Costs!AK$353)*('Fixed assets'!$U$2:$U$1000=Costs!$A424)*(AbschreibungAHKBvD))","v":0},{"$f":"SUM(AL$178:AL247)-SUM(AL$266:AL335)+SUMPRODUCT((Aktivierungsjahr=Costs!$A424)*(AbschreibungAGr=Costs!AL$353)*('Fixed assets'!$U$2:$U$1000=Costs!$A424)*(AbschreibungAHKBvD))","v":0},{"$f":"SUM(AM$178:AM247)-SUM(AM$266:AM335)+SUMPRODUCT((Aktivierungsjahr=Costs!$A424)*(AbschreibungAGr=Costs!AM$353)*('Fixed assets'!$U$2:$U$1000=Costs!$A424)*(AbschreibungAHKBvD))","v":0},{"$f":"SUM(AN$178:AN247)-SUM(AN$266:AN335)+SUMPRODUCT((Aktivierungsjahr=Costs!$A424)*(AbschreibungAGr=Costs!AN$353)*('Fixed assets'!$U$2:$U$1000=Costs!$A424)*(AbschreibungAHKBvD))","v":0},{"$f":"SUM(AO$178:AO247)-SUM(AO$266:AO335)+SUMPRODUCT((Aktivierungsjahr=Costs!$A424)*(AbschreibungAGr=Costs!AO$353)*('Fixed assets'!$U$2:$U$1000=Costs!$A424)*(AbschreibungAHKBvD))","v":0},{"$f":"SUM(AP$178:AP247)-SUM(AP$266:AP335)+SUMPRODUCT((Aktivierungsjahr=Costs!$A424)*(AbschreibungAGr=Costs!AP$353)*('Fixed assets'!$U$2:$U$1000=Costs!$A424)*(AbschreibungAHKBvD))","v":0},{"$f":"SUM(AQ$178:AQ247)-SUM(AQ$266:AQ335)+SUMPRODUCT((Aktivierungsjahr=Costs!$A424)*(AbschreibungAGr=Costs!AQ$353)*('Fixed assets'!$U$2:$U$1000=Costs!$A424)*(AbschreibungAHKBvD))","v":0}]
[2086,-8.149072527885437E-10,{"$f":"SUM(C$178:C248)-SUM(C$266:C336)+SUMPRODUCT((Aktivierungsjahr=Costs!$A425)*(AbschreibungAGr=Costs!C$353)*('Fixed assets'!$U$2:$U$1000=Costs!$A425)*(AbschreibungAHKBvD))","v":0},{"$f":"SUM(D$178:D248)-SUM(D$266:D336)+SUMPRODUCT((Aktivierungsjahr=Costs!$A425)*(AbschreibungAGr=Costs!D$353)*('Fixed assets'!$U$2:$U$1000=Costs!$A425)*(AbschreibungAHKBvD))","v":0},{"$f":"SUM(E$178:E248)-SUM(E$266:E336)+SUMPRODUCT((Aktivierungsjahr=Costs!$A425)*(AbschreibungAGr=Costs!E$353)*('Fixed assets'!$U$2:$U$1000=Costs!$A425)*(AbschreibungAHKBvD))","v":0},{"$f":"SUM(F$178:F248)-SUM(F$266:F336)+SUMPRODUCT((Aktivierungsjahr=Costs!$A425)*(AbschreibungAGr=Costs!F$353)*('Fixed assets'!$U$2:$U$1000=Costs!$A425)*(AbschreibungAHKBvD))","v":0},{"$f":"SUM(G$178:G248)-SUM(G$266:G336)+SUMPRODUCT((Aktivierungsjahr=Costs!$A425)*(AbschreibungAGr=Costs!G$353)*('Fixed assets'!$U$2:$U$1000=Costs!$A425)*(AbschreibungAHKBvD))","v":0},{"$f":"SUM(H$178:H248)-SUM(H$266:H336)+SUMPRODUCT((Aktivierungsjahr=Costs!$A425)*(AbschreibungAGr=Costs!H$353)*('Fixed assets'!$U$2:$U$1000=Costs!$A425)*(AbschreibungAHKBvD))","v":0},{"$f":"SUM(I$178:I248)-SUM(I$266:I336)+SUMPRODUCT((Aktivierungsjahr=Costs!$A425)*(AbschreibungAGr=Costs!I$353)*('Fixed assets'!$U$2:$U$1000=Costs!$A425)*(AbschreibungAHKBvD))","v":0},{"$f":"SUM(J$178:J248)-SUM(J$266:J336)+SUMPRODUCT((Aktivierungsjahr=Costs!$A425)*(AbschreibungAGr=Costs!J$353)*('Fixed assets'!$U$2:$U$1000=Costs!$A425)*(AbschreibungAHKBvD))","v":0},{"$f":"SUM(K$178:K248)-SUM(K$266:K336)+SUMPRODUCT((Aktivierungsjahr=Costs!$A425)*(AbschreibungAGr=Costs!K$353)*('Fixed assets'!$U$2:$U$1000=Costs!$A425)*(AbschreibungAHKBvD))","v":0},{"$f":"SUM(L$178:L248)-SUM(L$266:L336)+SUMPRODUCT((Aktivierungsjahr=Costs!$A425)*(AbschreibungAGr=Costs!L$353)*('Fixed assets'!$U$2:$U$1000=Costs!$A425)*(AbschreibungAHKBvD))","v":0},{"$f":"SUM(M$178:M248)-SUM(M$266:M336)+SUMPRODUCT((Aktivierungsjahr=Costs!$A425)*(AbschreibungAGr=Costs!M$353)*('Fixed assets'!$U$2:$U$1000=Costs!$A425)*(AbschreibungAHKBvD))","v":0},{"$f":"SUM(N$178:N248)-SUM(N$266:N336)+SUMPRODUCT((Aktivierungsjahr=Costs!$A425)*(AbschreibungAGr=Costs!N$353)*('Fixed assets'!$U$2:$U$1000=Costs!$A425)*(AbschreibungAHKBvD))","v":0},{"$f":"SUM(O$178:O248)-SUM(O$266:O336)+SUMPRODUCT((Aktivierungsjahr=Costs!$A425)*(AbschreibungAGr=Costs!O$353)*('Fixed assets'!$U$2:$U$1000=Costs!$A425)*(AbschreibungAHKBvD))","v":0},{"$f":"SUM(P$178:P248)-SUM(P$266:P336)+SUMPRODUCT((Aktivierungsjahr=Costs!$A425)*(AbschreibungAGr=Costs!P$353)*('Fixed assets'!$U$2:$U$1000=Costs!$A425)*(AbschreibungAHKBvD))","v":0},{"$f":"SUM(Q$178:Q248)-SUM(Q$266:Q336)+SUMPRODUCT((Aktivierungsjahr=Costs!$A425)*(AbschreibungAGr=Costs!Q$353)*('Fixed assets'!$U$2:$U$1000=Costs!$A425)*(AbschreibungAHKBvD))","v":0},{"$f":"SUM(R$178:R248)-SUM(R$266:R336)+SUMPRODUCT((Aktivierungsjahr=Costs!$A425)*(AbschreibungAGr=Costs!R$353)*('Fixed assets'!$U$2:$U$1000=Costs!$A425)*(AbschreibungAHKBvD))","v":0},{"$f":"SUM(S$178:S248)-SUM(S$266:S336)+SUMPRODUCT((Aktivierungsjahr=Costs!$A425)*(AbschreibungAGr=Costs!S$353)*('Fixed assets'!$U$2:$U$1000=Costs!$A425)*(AbschreibungAHKBvD))","v":0},{"$f":"SUM(T$178:T248)-SUM(T$266:T336)+SUMPRODUCT((Aktivierungsjahr=Costs!$A425)*(AbschreibungAGr=Costs!T$353)*('Fixed assets'!$U$2:$U$1000=Costs!$A425)*(AbschreibungAHKBvD))","v":0},{"$f":"SUM(U$178:U248)-SUM(U$266:U336)+SUMPRODUCT((Aktivierungsjahr=Costs!$A425)*(AbschreibungAGr=Costs!U$353)*('Fixed assets'!$U$2:$U$1000=Costs!$A425)*(AbschreibungAHKBvD))","v":0},{"$f":"SUM(V$178:V248)-SUM(V$266:V336)+SUMPRODUCT((Aktivierungsjahr=Costs!$A425)*(AbschreibungAGr=Costs!V$353)*('Fixed assets'!$U$2:$U$1000=Costs!$A425)*(AbschreibungAHKBvD))","v":0},{"$f":"SUM(W$178:W248)-SUM(W$266:W336)+SUMPRODUCT((Aktivierungsjahr=Costs!$A425)*(AbschreibungAGr=Costs!W$353)*('Fixed assets'!$U$2:$U$1000=Costs!$A425)*(AbschreibungAHKBvD))","v":0},{"$f":"SUM(X$178:X248)-SUM(X$266:X336)+SUMPRODUCT((Aktivierungsjahr=Costs!$A425)*(AbschreibungAGr=Costs!X$353)*('Fixed assets'!$U$2:$U$1000=Costs!$A425)*(AbschreibungAHKBvD))","v":0},{"$f":"SUM(Y$178:Y248)-SUM(Y$266:Y336)+SUMPRODUCT((Aktivierungsjahr=Costs!$A425)*(AbschreibungAGr=Costs!Y$353)*('Fixed assets'!$U$2:$U$1000=Costs!$A425)*(AbschreibungAHKBvD))","v":0},{"$f":"SUM(Z$178:Z248)-SUM(Z$266:Z336)+SUMPRODUCT((Aktivierungsjahr=Costs!$A425)*(AbschreibungAGr=Costs!Z$353)*('Fixed assets'!$U$2:$U$1000=Costs!$A425)*(AbschreibungAHKBvD))","v":0},{"$f":"SUM(AA$178:AA248)-SUM(AA$266:AA336)+SUMPRODUCT((Aktivierungsjahr=Costs!$A425)*(AbschreibungAGr=Costs!AA$353)*('Fixed assets'!$U$2:$U$1000=Costs!$A425)*(AbschreibungAHKBvD))","v":0},{"$f":"SUM(AB$178:AB248)-SUM(AB$266:AB336)+SUMPRODUCT((Aktivierungsjahr=Costs!$A425)*(AbschreibungAGr=Costs!AB$353)*('Fixed assets'!$U$2:$U$1000=Costs!$A425)*(AbschreibungAHKBvD))","v":0},{"$f":"SUM(AC$178:AC248)-SUM(AC$266:AC336)+SUMPRODUCT((Aktivierungsjahr=Costs!$A425)*(AbschreibungAGr=Costs!AC$353)*('Fixed assets'!$U$2:$U$1000=Costs!$A425)*(AbschreibungAHKBvD))","v":0},{"$f":"SUM(AD$178:AD248)-SUM(AD$266:AD336)+SUMPRODUCT((Aktivierungsjahr=Costs!$A425)*(AbschreibungAGr=Costs!AD$353)*('Fixed assets'!$U$2:$U$1000=Costs!$A425)*(AbschreibungAHKBvD))","v":0},{"$f":"SUM(AE$178:AE248)-SUM(AE$266:AE336)+SUMPRODUCT((Aktivierungsjahr=Costs!$A425)*(AbschreibungAGr=Costs!AE$353)*('Fixed assets'!$U$2:$U$1000=Costs!$A425)*(AbschreibungAHKBvD))","v":0},{"$f":"SUM(AF$178:AF248)-SUM(AF$266:AF336)+SUMPRODUCT((Aktivierungsjahr=Costs!$A425)*(AbschreibungAGr=Costs!AF$353)*('Fixed assets'!$U$2:$U$1000=Costs!$A425)*(AbschreibungAHKBvD))","v":0},{"$f":"SUM(AG$178:AG248)-SUM(AG$266:AG336)+SUMPRODUCT((Aktivierungsjahr=Costs!$A425)*(AbschreibungAGr=Costs!AG$353)*('Fixed assets'!$U$2:$U$1000=Costs!$A425)*(AbschreibungAHKBvD))","v":0},{"$f":"SUM(AH$178:AH248)-SUM(AH$266:AH336)+SUMPRODUCT((Aktivierungsjahr=Costs!$A425)*(AbschreibungAGr=Costs!AH$353)*('Fixed assets'!$U$2:$U$1000=Costs!$A425)*(AbschreibungAHKBvD))","v":0},{"$f":"SUM(AI$178:AI248)-SUM(AI$266:AI336)+SUMPRODUCT((Aktivierungsjahr=Costs!$A425)*(AbschreibungAGr=Costs!AI$353)*('Fixed assets'!$U$2:$U$1000=Costs!$A425)*(AbschreibungAHKBvD))","v":0},{"$f":"SUM(AJ$178:AJ248)-SUM(AJ$266:AJ336)+SUMPRODUCT((Aktivierungsjahr=Costs!$A425)*(AbschreibungAGr=Costs!AJ$353)*('Fixed assets'!$U$2:$U$1000=Costs!$A425)*(AbschreibungAHKBvD))","v":-8.149072527885437E-10},{"$f":"SUM(AK$178:AK248)-SUM(AK$266:AK336)+SUMPRODUCT((Aktivierungsjahr=Costs!$A425)*(AbschreibungAGr=Costs!AK$353)*('Fixed assets'!$U$2:$U$1000=Costs!$A425)*(AbschreibungAHKBvD))","v":0},{"$f":"SUM(AL$178:AL248)-SUM(AL$266:AL336)+SUMPRODUCT((Aktivierungsjahr=Costs!$A425)*(AbschreibungAGr=Costs!AL$353)*('Fixed assets'!$U$2:$U$1000=Costs!$A425)*(AbschreibungAHKBvD))","v":0},{"$f":"SUM(AM$178:AM248)-SUM(AM$266:AM336)+SUMPRODUCT((Aktivierungsjahr=Costs!$A425)*(AbschreibungAGr=Costs!AM$353)*('Fixed assets'!$U$2:$U$1000=Costs!$A425)*(AbschreibungAHKBvD))","v":0},{"$f":"SUM(AN$178:AN248)-SUM(AN$266:AN336)+SUMPRODUCT((Aktivierungsjahr=Costs!$A425)*(AbschreibungAGr=Costs!AN$353)*('Fixed assets'!$U$2:$U$1000=Costs!$A425)*(AbschreibungAHKBvD))","v":0},{"$f":"SUM(AO$178:AO248)-SUM(AO$266:AO336)+SUMPRODUCT((Aktivierungsjahr=Costs!$A425)*(AbschreibungAGr=Costs!AO$353)*('Fixed assets'!$U$2:$U$1000=Costs!$A425)*(AbschreibungAHKBvD))","v":0},{"$f":"SUM(AP$178:AP248)-SUM(AP$266:AP336)+SUMPRODUCT((Aktivierungsjahr=Costs!$A425)*(AbschreibungAGr=Costs!AP$353)*('Fixed assets'!$U$2:$U$1000=Costs!$A425)*(AbschreibungAHKBvD))","v":0},{"$f":"SUM(AQ$178:AQ248)-SUM(AQ$266:AQ336)+SUMPRODUCT((Aktivierungsjahr=Costs!$A425)*(AbschreibungAGr=Costs!AQ$353)*('Fixed assets'!$U$2:$U$1000=Costs!$A425)*(AbschreibungAHKBvD))","v":0}]
[2087,-8.149072527885437E-10,{"$f":"SUM(C$178:C249)-SUM(C$266:C337)+SUMPRODUCT((Aktivierungsjahr=Costs!$A426)*(AbschreibungAGr=Costs!C$353)*('Fixed assets'!$U$2:$U$1000=Costs!$A426)*(AbschreibungAHKBvD))","v":0},{"$f":"SUM(D$178:D249)-SUM(D$266:D337)+SUMPRODUCT((Aktivierungsjahr=Costs!$A426)*(AbschreibungAGr=Costs!D$353)*('Fixed assets'!$U$2:$U$1000=Costs!$A426)*(AbschreibungAHKBvD))","v":0},{"$f":"SUM(E$178:E249)-SUM(E$266:E337)+SUMPRODUCT((Aktivierungsjahr=Costs!$A426)*(AbschreibungAGr=Costs!E$353)*('Fixed assets'!$U$2:$U$1000=Costs!$A426)*(AbschreibungAHKBvD))","v":0},{"$f":"SUM(F$178:F249)-SUM(F$266:F337)+SUMPRODUCT((Aktivierungsjahr=Costs!$A426)*(AbschreibungAGr=Costs!F$353)*('Fixed assets'!$U$2:$U$1000=Costs!$A426)*(AbschreibungAHKBvD))","v":0},{"$f":"SUM(G$178:G249)-SUM(G$266:G337)+SUMPRODUCT((Aktivierungsjahr=Costs!$A426)*(AbschreibungAGr=Costs!G$353)*('Fixed assets'!$U$2:$U$1000=Costs!$A426)*(AbschreibungAHKBvD))","v":0},{"$f":"SUM(H$178:H249)-SUM(H$266:H337)+SUMPRODUCT((Aktivierungsjahr=Costs!$A426)*(AbschreibungAGr=Costs!H$353)*('Fixed assets'!$U$2:$U$1000=Costs!$A426)*(AbschreibungAHKBvD))","v":0},{"$f":"SUM(I$178:I249)-SUM(I$266:I337)+SUMPRODUCT((Aktivierungsjahr=Costs!$A426)*(AbschreibungAGr=Costs!I$353)*('Fixed assets'!$U$2:$U$1000=Costs!$A426)*(AbschreibungAHKBvD))","v":0},{"$f":"SUM(J$178:J249)-SUM(J$266:J337)+SUMPRODUCT((Aktivierungsjahr=Costs!$A426)*(AbschreibungAGr=Costs!J$353)*('Fixed assets'!$U$2:$U$1000=Costs!$A426)*(AbschreibungAHKBvD))","v":0},{"$f":"SUM(K$178:K249)-SUM(K$266:K337)+SUMPRODUCT((Aktivierungsjahr=Costs!$A426)*(AbschreibungAGr=Costs!K$353)*('Fixed assets'!$U$2:$U$1000=Costs!$A426)*(AbschreibungAHKBvD))","v":0},{"$f":"SUM(L$178:L249)-SUM(L$266:L337)+SUMPRODUCT((Aktivierungsjahr=Costs!$A426)*(AbschreibungAGr=Costs!L$353)*('Fixed assets'!$U$2:$U$1000=Costs!$A426)*(AbschreibungAHKBvD))","v":0},{"$f":"SUM(M$178:M249)-SUM(M$266:M337)+SUMPRODUCT((Aktivierungsjahr=Costs!$A426)*(AbschreibungAGr=Costs!M$353)*('Fixed assets'!$U$2:$U$1000=Costs!$A426)*(AbschreibungAHKBvD))","v":0},{"$f":"SUM(N$178:N249)-SUM(N$266:N337)+SUMPRODUCT((Aktivierungsjahr=Costs!$A426)*(AbschreibungAGr=Costs!N$353)*('Fixed assets'!$U$2:$U$1000=Costs!$A426)*(AbschreibungAHKBvD))","v":0},{"$f":"SUM(O$178:O249)-SUM(O$266:O337)+SUMPRODUCT((Aktivierungsjahr=Costs!$A426)*(AbschreibungAGr=Costs!O$353)*('Fixed assets'!$U$2:$U$1000=Costs!$A426)*(AbschreibungAHKBvD))","v":0},{"$f":"SUM(P$178:P249)-SUM(P$266:P337)+SUMPRODUCT((Aktivierungsjahr=Costs!$A426)*(AbschreibungAGr=Costs!P$353)*('Fixed assets'!$U$2:$U$1000=Costs!$A426)*(AbschreibungAHKBvD))","v":0},{"$f":"SUM(Q$178:Q249)-SUM(Q$266:Q337)+SUMPRODUCT((Aktivierungsjahr=Costs!$A426)*(AbschreibungAGr=Costs!Q$353)*('Fixed assets'!$U$2:$U$1000=Costs!$A426)*(AbschreibungAHKBvD))","v":0},{"$f":"SUM(R$178:R249)-SUM(R$266:R337)+SUMPRODUCT((Aktivierungsjahr=Costs!$A426)*(AbschreibungAGr=Costs!R$353)*('Fixed assets'!$U$2:$U$1000=Costs!$A426)*(AbschreibungAHKBvD))","v":0},{"$f":"SUM(S$178:S249)-SUM(S$266:S337)+SUMPRODUCT((Aktivierungsjahr=Costs!$A426)*(AbschreibungAGr=Costs!S$353)*('Fixed assets'!$U$2:$U$1000=Costs!$A426)*(AbschreibungAHKBvD))","v":0},{"$f":"SUM(T$178:T249)-SUM(T$266:T337)+SUMPRODUCT((Aktivierungsjahr=Costs!$A426)*(AbschreibungAGr=Costs!T$353)*('Fixed assets'!$U$2:$U$1000=Costs!$A426)*(AbschreibungAHKBvD))","v":0},{"$f":"SUM(U$178:U249)-SUM(U$266:U337)+SUMPRODUCT((Aktivierungsjahr=Costs!$A426)*(AbschreibungAGr=Costs!U$353)*('Fixed assets'!$U$2:$U$1000=Costs!$A426)*(AbschreibungAHKBvD))","v":0},{"$f":"SUM(V$178:V249)-SUM(V$266:V337)+SUMPRODUCT((Aktivierungsjahr=Costs!$A426)*(AbschreibungAGr=Costs!V$353)*('Fixed assets'!$U$2:$U$1000=Costs!$A426)*(AbschreibungAHKBvD))","v":0},{"$f":"SUM(W$178:W249)-SUM(W$266:W337)+SUMPRODUCT((Aktivierungsjahr=Costs!$A426)*(AbschreibungAGr=Costs!W$353)*('Fixed assets'!$U$2:$U$1000=Costs!$A426)*(AbschreibungAHKBvD))","v":0},{"$f":"SUM(X$178:X249)-SUM(X$266:X337)+SUMPRODUCT((Aktivierungsjahr=Costs!$A426)*(AbschreibungAGr=Costs!X$353)*('Fixed assets'!$U$2:$U$1000=Costs!$A426)*(AbschreibungAHKBvD))","v":0},{"$f":"SUM(Y$178:Y249)-SUM(Y$266:Y337)+SUMPRODUCT((Aktivierungsjahr=Costs!$A426)*(AbschreibungAGr=Costs!Y$353)*('Fixed assets'!$U$2:$U$1000=Costs!$A426)*(AbschreibungAHKBvD))","v":0},{"$f":"SUM(Z$178:Z249)-SUM(Z$266:Z337)+SUMPRODUCT((Aktivierungsjahr=Costs!$A426)*(AbschreibungAGr=Costs!Z$353)*('Fixed assets'!$U$2:$U$1000=Costs!$A426)*(AbschreibungAHKBvD))","v":0},{"$f":"SUM(AA$178:AA249)-SUM(AA$266:AA337)+SUMPRODUCT((Aktivierungsjahr=Costs!$A426)*(AbschreibungAGr=Costs!AA$353)*('Fixed assets'!$U$2:$U$1000=Costs!$A426)*(AbschreibungAHKBvD))","v":0},{"$f":"SUM(AB$178:AB249)-SUM(AB$266:AB337)+SUMPRODUCT((Aktivierungsjahr=Costs!$A426)*(AbschreibungAGr=Costs!AB$353)*('Fixed assets'!$U$2:$U$1000=Costs!$A426)*(AbschreibungAHKBvD))","v":0},{"$f":"SUM(AC$178:AC249)-SUM(AC$266:AC337)+SUMPRODUCT((Aktivierungsjahr=Costs!$A426)*(AbschreibungAGr=Costs!AC$353)*('Fixed assets'!$U$2:$U$1000=Costs!$A426)*(AbschreibungAHKBvD))","v":0},{"$f":"SUM(AD$178:AD249)-SUM(AD$266:AD337)+SUMPRODUCT((Aktivierungsjahr=Costs!$A426)*(AbschreibungAGr=Costs!AD$353)*('Fixed assets'!$U$2:$U$1000=Costs!$A426)*(AbschreibungAHKBvD))","v":0},{"$f":"SUM(AE$178:AE249)-SUM(AE$266:AE337)+SUMPRODUCT((Aktivierungsjahr=Costs!$A426)*(AbschreibungAGr=Costs!AE$353)*('Fixed assets'!$U$2:$U$1000=Costs!$A426)*(AbschreibungAHKBvD))","v":0},{"$f":"SUM(AF$178:AF249)-SUM(AF$266:AF337)+SUMPRODUCT((Aktivierungsjahr=Costs!$A426)*(AbschreibungAGr=Costs!AF$353)*('Fixed assets'!$U$2:$U$1000=Costs!$A426)*(AbschreibungAHKBvD))","v":0},{"$f":"SUM(AG$178:AG249)-SUM(AG$266:AG337)+SUMPRODUCT((Aktivierungsjahr=Costs!$A426)*(AbschreibungAGr=Costs!AG$353)*('Fixed assets'!$U$2:$U$1000=Costs!$A426)*(AbschreibungAHKBvD))","v":0},{"$f":"SUM(AH$178:AH249)-SUM(AH$266:AH337)+SUMPRODUCT((Aktivierungsjahr=Costs!$A426)*(AbschreibungAGr=Costs!AH$353)*('Fixed assets'!$U$2:$U$1000=Costs!$A426)*(AbschreibungAHKBvD))","v":0},{"$f":"SUM(AI$178:AI249)-SUM(AI$266:AI337)+SUMPRODUCT((Aktivierungsjahr=Costs!$A426)*(AbschreibungAGr=Costs!AI$353)*('Fixed assets'!$U$2:$U$1000=Costs!$A426)*(AbschreibungAHKBvD))","v":0},{"$f":"SUM(AJ$178:AJ249)-SUM(AJ$266:AJ337)+SUMPRODUCT((Aktivierungsjahr=Costs!$A426)*(AbschreibungAGr=Costs!AJ$353)*('Fixed assets'!$U$2:$U$1000=Costs!$A426)*(AbschreibungAHKBvD))","v":-8.149072527885437E-10},{"$f":"SUM(AK$178:AK249)-SUM(AK$266:AK337)+SUMPRODUCT((Aktivierungsjahr=Costs!$A426)*(AbschreibungAGr=Costs!AK$353)*('Fixed assets'!$U$2:$U$1000=Costs!$A426)*(AbschreibungAHKBvD))","v":0},{"$f":"SUM(AL$178:AL249)-SUM(AL$266:AL337)+SUMPRODUCT((Aktivierungsjahr=Costs!$A426)*(AbschreibungAGr=Costs!AL$353)*('Fixed assets'!$U$2:$U$1000=Costs!$A426)*(AbschreibungAHKBvD))","v":0},{"$f":"SUM(AM$178:AM249)-SUM(AM$266:AM337)+SUMPRODUCT((Aktivierungsjahr=Costs!$A426)*(AbschreibungAGr=Costs!AM$353)*('Fixed assets'!$U$2:$U$1000=Costs!$A426)*(AbschreibungAHKBvD))","v":0},{"$f":"SUM(AN$178:AN249)-SUM(AN$266:AN337)+SUMPRODUCT((Aktivierungsjahr=Costs!$A426)*(AbschreibungAGr=Costs!AN$353)*('Fixed assets'!$U$2:$U$1000=Costs!$A426)*(AbschreibungAHKBvD))","v":0},{"$f":"SUM(AO$178:AO249)-SUM(AO$266:AO337)+SUMPRODUCT((Aktivierungsjahr=Costs!$A426)*(AbschreibungAGr=Costs!AO$353)*('Fixed assets'!$U$2:$U$1000=Costs!$A426)*(AbschreibungAHKBvD))","v":0},{"$f":"SUM(AP$178:AP249)-SUM(AP$266:AP337)+SUMPRODUCT((Aktivierungsjahr=Costs!$A426)*(AbschreibungAGr=Costs!AP$353)*('Fixed assets'!$U$2:$U$1000=Costs!$A426)*(AbschreibungAHKBvD))","v":0},{"$f":"SUM(AQ$178:AQ249)-SUM(AQ$266:AQ337)+SUMPRODUCT((Aktivierungsjahr=Costs!$A426)*(AbschreibungAGr=Costs!AQ$353)*('Fixed assets'!$U$2:$U$1000=Costs!$A426)*(AbschreibungAHKBvD))","v":0}]
[2088,-8.149072527885437E-10,{"$f":"SUM(C$178:C250)-SUM(C$266:C338)+SUMPRODUCT((Aktivierungsjahr=Costs!$A427)*(AbschreibungAGr=Costs!C$353)*('Fixed assets'!$U$2:$U$1000=Costs!$A427)*(AbschreibungAHKBvD))","v":0},{"$f":"SUM(D$178:D250)-SUM(D$266:D338)+SUMPRODUCT((Aktivierungsjahr=Costs!$A427)*(AbschreibungAGr=Costs!D$353)*('Fixed assets'!$U$2:$U$1000=Costs!$A427)*(AbschreibungAHKBvD))","v":0},{"$f":"SUM(E$178:E250)-SUM(E$266:E338)+SUMPRODUCT((Aktivierungsjahr=Costs!$A427)*(AbschreibungAGr=Costs!E$353)*('Fixed assets'!$U$2:$U$1000=Costs!$A427)*(AbschreibungAHKBvD))","v":0},{"$f":"SUM(F$178:F250)-SUM(F$266:F338)+SUMPRODUCT((Aktivierungsjahr=Costs!$A427)*(AbschreibungAGr=Costs!F$353)*('Fixed assets'!$U$2:$U$1000=Costs!$A427)*(AbschreibungAHKBvD))","v":0},{"$f":"SUM(G$178:G250)-SUM(G$266:G338)+SUMPRODUCT((Aktivierungsjahr=Costs!$A427)*(AbschreibungAGr=Costs!G$353)*('Fixed assets'!$U$2:$U$1000=Costs!$A427)*(AbschreibungAHKBvD))","v":0},{"$f":"SUM(H$178:H250)-SUM(H$266:H338)+SUMPRODUCT((Aktivierungsjahr=Costs!$A427)*(AbschreibungAGr=Costs!H$353)*('Fixed assets'!$U$2:$U$1000=Costs!$A427)*(AbschreibungAHKBvD))","v":0},{"$f":"SUM(I$178:I250)-SUM(I$266:I338)+SUMPRODUCT((Aktivierungsjahr=Costs!$A427)*(AbschreibungAGr=Costs!I$353)*('Fixed assets'!$U$2:$U$1000=Costs!$A427)*(AbschreibungAHKBvD))","v":0},{"$f":"SUM(J$178:J250)-SUM(J$266:J338)+SUMPRODUCT((Aktivierungsjahr=Costs!$A427)*(AbschreibungAGr=Costs!J$353)*('Fixed assets'!$U$2:$U$1000=Costs!$A427)*(AbschreibungAHKBvD))","v":0},{"$f":"SUM(K$178:K250)-SUM(K$266:K338)+SUMPRODUCT((Aktivierungsjahr=Costs!$A427)*(AbschreibungAGr=Costs!K$353)*('Fixed assets'!$U$2:$U$1000=Costs!$A427)*(AbschreibungAHKBvD))","v":0},{"$f":"SUM(L$178:L250)-SUM(L$266:L338)+SUMPRODUCT((Aktivierungsjahr=Costs!$A427)*(AbschreibungAGr=Costs!L$353)*('Fixed assets'!$U$2:$U$1000=Costs!$A427)*(AbschreibungAHKBvD))","v":0},{"$f":"SUM(M$178:M250)-SUM(M$266:M338)+SUMPRODUCT((Aktivierungsjahr=Costs!$A427)*(AbschreibungAGr=Costs!M$353)*('Fixed assets'!$U$2:$U$1000=Costs!$A427)*(AbschreibungAHKBvD))","v":0},{"$f":"SUM(N$178:N250)-SUM(N$266:N338)+SUMPRODUCT((Aktivierungsjahr=Costs!$A427)*(AbschreibungAGr=Costs!N$353)*('Fixed assets'!$U$2:$U$1000=Costs!$A427)*(AbschreibungAHKBvD))","v":0},{"$f":"SUM(O$178:O250)-SUM(O$266:O338)+SUMPRODUCT((Aktivierungsjahr=Costs!$A427)*(AbschreibungAGr=Costs!O$353)*('Fixed assets'!$U$2:$U$1000=Costs!$A427)*(AbschreibungAHKBvD))","v":0},{"$f":"SUM(P$178:P250)-SUM(P$266:P338)+SUMPRODUCT((Aktivierungsjahr=Costs!$A427)*(AbschreibungAGr=Costs!P$353)*('Fixed assets'!$U$2:$U$1000=Costs!$A427)*(AbschreibungAHKBvD))","v":0},{"$f":"SUM(Q$178:Q250)-SUM(Q$266:Q338)+SUMPRODUCT((Aktivierungsjahr=Costs!$A427)*(AbschreibungAGr=Costs!Q$353)*('Fixed assets'!$U$2:$U$1000=Costs!$A427)*(AbschreibungAHKBvD))","v":0},{"$f":"SUM(R$178:R250)-SUM(R$266:R338)+SUMPRODUCT((Aktivierungsjahr=Costs!$A427)*(AbschreibungAGr=Costs!R$353)*('Fixed assets'!$U$2:$U$1000=Costs!$A427)*(AbschreibungAHKBvD))","v":0},{"$f":"SUM(S$178:S250)-SUM(S$266:S338)+SUMPRODUCT((Aktivierungsjahr=Costs!$A427)*(AbschreibungAGr=Costs!S$353)*('Fixed assets'!$U$2:$U$1000=Costs!$A427)*(AbschreibungAHKBvD))","v":0},{"$f":"SUM(T$178:T250)-SUM(T$266:T338)+SUMPRODUCT((Aktivierungsjahr=Costs!$A427)*(AbschreibungAGr=Costs!T$353)*('Fixed assets'!$U$2:$U$1000=Costs!$A427)*(AbschreibungAHKBvD))","v":0},{"$f":"SUM(U$178:U250)-SUM(U$266:U338)+SUMPRODUCT((Aktivierungsjahr=Costs!$A427)*(AbschreibungAGr=Costs!U$353)*('Fixed assets'!$U$2:$U$1000=Costs!$A427)*(AbschreibungAHKBvD))","v":0},{"$f":"SUM(V$178:V250)-SUM(V$266:V338)+SUMPRODUCT((Aktivierungsjahr=Costs!$A427)*(AbschreibungAGr=Costs!V$353)*('Fixed assets'!$U$2:$U$1000=Costs!$A427)*(AbschreibungAHKBvD))","v":0},{"$f":"SUM(W$178:W250)-SUM(W$266:W338)+SUMPRODUCT((Aktivierungsjahr=Costs!$A427)*(AbschreibungAGr=Costs!W$353)*('Fixed assets'!$U$2:$U$1000=Costs!$A427)*(AbschreibungAHKBvD))","v":0},{"$f":"SUM(X$178:X250)-SUM(X$266:X338)+SUMPRODUCT((Aktivierungsjahr=Costs!$A427)*(AbschreibungAGr=Costs!X$353)*('Fixed assets'!$U$2:$U$1000=Costs!$A427)*(AbschreibungAHKBvD))","v":0},{"$f":"SUM(Y$178:Y250)-SUM(Y$266:Y338)+SUMPRODUCT((Aktivierungsjahr=Costs!$A427)*(AbschreibungAGr=Costs!Y$353)*('Fixed assets'!$U$2:$U$1000=Costs!$A427)*(AbschreibungAHKBvD))","v":0},{"$f":"SUM(Z$178:Z250)-SUM(Z$266:Z338)+SUMPRODUCT((Aktivierungsjahr=Costs!$A427)*(AbschreibungAGr=Costs!Z$353)*('Fixed assets'!$U$2:$U$1000=Costs!$A427)*(AbschreibungAHKBvD))","v":0},{"$f":"SUM(AA$178:AA250)-SUM(AA$266:AA338)+SUMPRODUCT((Aktivierungsjahr=Costs!$A427)*(AbschreibungAGr=Costs!AA$353)*('Fixed assets'!$U$2:$U$1000=Costs!$A427)*(AbschreibungAHKBvD))","v":0},{"$f":"SUM(AB$178:AB250)-SUM(AB$266:AB338)+SUMPRODUCT((Aktivierungsjahr=Costs!$A427)*(AbschreibungAGr=Costs!AB$353)*('Fixed assets'!$U$2:$U$1000=Costs!$A427)*(AbschreibungAHKBvD))","v":0},{"$f":"SUM(AC$178:AC250)-SUM(AC$266:AC338)+SUMPRODUCT((Aktivierungsjahr=Costs!$A427)*(AbschreibungAGr=Costs!AC$353)*('Fixed assets'!$U$2:$U$1000=Costs!$A427)*(AbschreibungAHKBvD))","v":0},{"$f":"SUM(AD$178:AD250)-SUM(AD$266:AD338)+SUMPRODUCT((Aktivierungsjahr=Costs!$A427)*(AbschreibungAGr=Costs!AD$353)*('Fixed assets'!$U$2:$U$1000=Costs!$A427)*(AbschreibungAHKBvD))","v":0},{"$f":"SUM(AE$178:AE250)-SUM(AE$266:AE338)+SUMPRODUCT((Aktivierungsjahr=Costs!$A427)*(AbschreibungAGr=Costs!AE$353)*('Fixed assets'!$U$2:$U$1000=Costs!$A427)*(AbschreibungAHKBvD))","v":0},{"$f":"SUM(AF$178:AF250)-SUM(AF$266:AF338)+SUMPRODUCT((Aktivierungsjahr=Costs!$A427)*(AbschreibungAGr=Costs!AF$353)*('Fixed assets'!$U$2:$U$1000=Costs!$A427)*(AbschreibungAHKBvD))","v":0},{"$f":"SUM(AG$178:AG250)-SUM(AG$266:AG338)+SUMPRODUCT((Aktivierungsjahr=Costs!$A427)*(AbschreibungAGr=Costs!AG$353)*('Fixed assets'!$U$2:$U$1000=Costs!$A427)*(AbschreibungAHKBvD))","v":0},{"$f":"SUM(AH$178:AH250)-SUM(AH$266:AH338)+SUMPRODUCT((Aktivierungsjahr=Costs!$A427)*(AbschreibungAGr=Costs!AH$353)*('Fixed assets'!$U$2:$U$1000=Costs!$A427)*(AbschreibungAHKBvD))","v":0},{"$f":"SUM(AI$178:AI250)-SUM(AI$266:AI338)+SUMPRODUCT((Aktivierungsjahr=Costs!$A427)*(AbschreibungAGr=Costs!AI$353)*('Fixed assets'!$U$2:$U$1000=Costs!$A427)*(AbschreibungAHKBvD))","v":0},{"$f":"SUM(AJ$178:AJ250)-SUM(AJ$266:AJ338)+SUMPRODUCT((Aktivierungsjahr=Costs!$A427)*(AbschreibungAGr=Costs!AJ$353)*('Fixed assets'!$U$2:$U$1000=Costs!$A427)*(AbschreibungAHKBvD))","v":-8.149072527885437E-10},{"$f":"SUM(AK$178:AK250)-SUM(AK$266:AK338)+SUMPRODUCT((Aktivierungsjahr=Costs!$A427)*(AbschreibungAGr=Costs!AK$353)*('Fixed assets'!$U$2:$U$1000=Costs!$A427)*(AbschreibungAHKBvD))","v":0},{"$f":"SUM(AL$178:AL250)-SUM(AL$266:AL338)+SUMPRODUCT((Aktivierungsjahr=Costs!$A427)*(AbschreibungAGr=Costs!AL$353)*('Fixed assets'!$U$2:$U$1000=Costs!$A427)*(AbschreibungAHKBvD))","v":0},{"$f":"SUM(AM$178:AM250)-SUM(AM$266:AM338)+SUMPRODUCT((Aktivierungsjahr=Costs!$A427)*(AbschreibungAGr=Costs!AM$353)*('Fixed assets'!$U$2:$U$1000=Costs!$A427)*(AbschreibungAHKBvD))","v":0},{"$f":"SUM(AN$178:AN250)-SUM(AN$266:AN338)+SUMPRODUCT((Aktivierungsjahr=Costs!$A427)*(AbschreibungAGr=Costs!AN$353)*('Fixed assets'!$U$2:$U$1000=Costs!$A427)*(AbschreibungAHKBvD))","v":0},{"$f":"SUM(AO$178:AO250)-SUM(AO$266:AO338)+SUMPRODUCT((Aktivierungsjahr=Costs!$A427)*(AbschreibungAGr=Costs!AO$353)*('Fixed assets'!$U$2:$U$1000=Costs!$A427)*(AbschreibungAHKBvD))","v":0},{"$f":"SUM(AP$178:AP250)-SUM(AP$266:AP338)+SUMPRODUCT((Aktivierungsjahr=Costs!$A427)*(AbschreibungAGr=Costs!AP$353)*('Fixed assets'!$U$2:$U$1000=Costs!$A427)*(AbschreibungAHKBvD))","v":0},{"$f":"SUM(AQ$178:AQ250)-SUM(AQ$266:AQ338)+SUMPRODUCT((Aktivierungsjahr=Costs!$A427)*(AbschreibungAGr=Costs!AQ$353)*('Fixed assets'!$U$2:$U$1000=Costs!$A427)*(AbschreibungAHKBvD))","v":0}]
[2089,-8.149072527885437E-10,{"$f":"SUM(C$178:C251)-SUM(C$266:C339)+SUMPRODUCT((Aktivierungsjahr=Costs!$A428)*(AbschreibungAGr=Costs!C$353)*('Fixed assets'!$U$2:$U$1000=Costs!$A428)*(AbschreibungAHKBvD))","v":0},{"$f":"SUM(D$178:D251)-SUM(D$266:D339)+SUMPRODUCT((Aktivierungsjahr=Costs!$A428)*(AbschreibungAGr=Costs!D$353)*('Fixed assets'!$U$2:$U$1000=Costs!$A428)*(AbschreibungAHKBvD))","v":0},{"$f":"SUM(E$178:E251)-SUM(E$266:E339)+SUMPRODUCT((Aktivierungsjahr=Costs!$A428)*(AbschreibungAGr=Costs!E$353)*('Fixed assets'!$U$2:$U$1000=Costs!$A428)*(AbschreibungAHKBvD))","v":0},{"$f":"SUM(F$178:F251)-SUM(F$266:F339)+SUMPRODUCT((Aktivierungsjahr=Costs!$A428)*(AbschreibungAGr=Costs!F$353)*('Fixed assets'!$U$2:$U$1000=Costs!$A428)*(AbschreibungAHKBvD))","v":0},{"$f":"SUM(G$178:G251)-SUM(G$266:G339)+SUMPRODUCT((Aktivierungsjahr=Costs!$A428)*(AbschreibungAGr=Costs!G$353)*('Fixed assets'!$U$2:$U$1000=Costs!$A428)*(AbschreibungAHKBvD))","v":0},{"$f":"SUM(H$178:H251)-SUM(H$266:H339)+SUMPRODUCT((Aktivierungsjahr=Costs!$A428)*(AbschreibungAGr=Costs!H$353)*('Fixed assets'!$U$2:$U$1000=Costs!$A428)*(AbschreibungAHKBvD))","v":0},{"$f":"SUM(I$178:I251)-SUM(I$266:I339)+SUMPRODUCT((Aktivierungsjahr=Costs!$A428)*(AbschreibungAGr=Costs!I$353)*('Fixed assets'!$U$2:$U$1000=Costs!$A428)*(AbschreibungAHKBvD))","v":0},{"$f":"SUM(J$178:J251)-SUM(J$266:J339)+SUMPRODUCT((Aktivierungsjahr=Costs!$A428)*(AbschreibungAGr=Costs!J$353)*('Fixed assets'!$U$2:$U$1000=Costs!$A428)*(AbschreibungAHKBvD))","v":0},{"$f":"SUM(K$178:K251)-SUM(K$266:K339)+SUMPRODUCT((Aktivierungsjahr=Costs!$A428)*(AbschreibungAGr=Costs!K$353)*('Fixed assets'!$U$2:$U$1000=Costs!$A428)*(AbschreibungAHKBvD))","v":0},{"$f":"SUM(L$178:L251)-SUM(L$266:L339)+SUMPRODUCT((Aktivierungsjahr=Costs!$A428)*(AbschreibungAGr=Costs!L$353)*('Fixed assets'!$U$2:$U$1000=Costs!$A428)*(AbschreibungAHKBvD))","v":0},{"$f":"SUM(M$178:M251)-SUM(M$266:M339)+SUMPRODUCT((Aktivierungsjahr=Costs!$A428)*(AbschreibungAGr=Costs!M$353)*('Fixed assets'!$U$2:$U$1000=Costs!$A428)*(AbschreibungAHKBvD))","v":0},{"$f":"SUM(N$178:N251)-SUM(N$266:N339)+SUMPRODUCT((Aktivierungsjahr=Costs!$A428)*(AbschreibungAGr=Costs!N$353)*('Fixed assets'!$U$2:$U$1000=Costs!$A428)*(AbschreibungAHKBvD))","v":0},{"$f":"SUM(O$178:O251)-SUM(O$266:O339)+SUMPRODUCT((Aktivierungsjahr=Costs!$A428)*(AbschreibungAGr=Costs!O$353)*('Fixed assets'!$U$2:$U$1000=Costs!$A428)*(AbschreibungAHKBvD))","v":0},{"$f":"SUM(P$178:P251)-SUM(P$266:P339)+SUMPRODUCT((Aktivierungsjahr=Costs!$A428)*(AbschreibungAGr=Costs!P$353)*('Fixed assets'!$U$2:$U$1000=Costs!$A428)*(AbschreibungAHKBvD))","v":0},{"$f":"SUM(Q$178:Q251)-SUM(Q$266:Q339)+SUMPRODUCT((Aktivierungsjahr=Costs!$A428)*(AbschreibungAGr=Costs!Q$353)*('Fixed assets'!$U$2:$U$1000=Costs!$A428)*(AbschreibungAHKBvD))","v":0},{"$f":"SUM(R$178:R251)-SUM(R$266:R339)+SUMPRODUCT((Aktivierungsjahr=Costs!$A428)*(AbschreibungAGr=Costs!R$353)*('Fixed assets'!$U$2:$U$1000=Costs!$A428)*(AbschreibungAHKBvD))","v":0},{"$f":"SUM(S$178:S251)-SUM(S$266:S339)+SUMPRODUCT((Aktivierungsjahr=Costs!$A428)*(AbschreibungAGr=Costs!S$353)*('Fixed assets'!$U$2:$U$1000=Costs!$A428)*(AbschreibungAHKBvD))","v":0},{"$f":"SUM(T$178:T251)-SUM(T$266:T339)+SUMPRODUCT((Aktivierungsjahr=Costs!$A428)*(AbschreibungAGr=Costs!T$353)*('Fixed assets'!$U$2:$U$1000=Costs!$A428)*(AbschreibungAHKBvD))","v":0},{"$f":"SUM(U$178:U251)-SUM(U$266:U339)+SUMPRODUCT((Aktivierungsjahr=Costs!$A428)*(AbschreibungAGr=Costs!U$353)*('Fixed assets'!$U$2:$U$1000=Costs!$A428)*(AbschreibungAHKBvD))","v":0},{"$f":"SUM(V$178:V251)-SUM(V$266:V339)+SUMPRODUCT((Aktivierungsjahr=Costs!$A428)*(AbschreibungAGr=Costs!V$353)*('Fixed assets'!$U$2:$U$1000=Costs!$A428)*(AbschreibungAHKBvD))","v":0},{"$f":"SUM(W$178:W251)-SUM(W$266:W339)+SUMPRODUCT((Aktivierungsjahr=Costs!$A428)*(AbschreibungAGr=Costs!W$353)*('Fixed assets'!$U$2:$U$1000=Costs!$A428)*(AbschreibungAHKBvD))","v":0},{"$f":"SUM(X$178:X251)-SUM(X$266:X339)+SUMPRODUCT((Aktivierungsjahr=Costs!$A428)*(AbschreibungAGr=Costs!X$353)*('Fixed assets'!$U$2:$U$1000=Costs!$A428)*(AbschreibungAHKBvD))","v":0},{"$f":"SUM(Y$178:Y251)-SUM(Y$266:Y339)+SUMPRODUCT((Aktivierungsjahr=Costs!$A428)*(AbschreibungAGr=Costs!Y$353)*('Fixed assets'!$U$2:$U$1000=Costs!$A428)*(AbschreibungAHKBvD))","v":0},{"$f":"SUM(Z$178:Z251)-SUM(Z$266:Z339)+SUMPRODUCT((Aktivierungsjahr=Costs!$A428)*(AbschreibungAGr=Costs!Z$353)*('Fixed assets'!$U$2:$U$1000=Costs!$A428)*(AbschreibungAHKBvD))","v":0},{"$f":"SUM(AA$178:AA251)-SUM(AA$266:AA339)+SUMPRODUCT((Aktivierungsjahr=Costs!$A428)*(AbschreibungAGr=Costs!AA$353)*('Fixed assets'!$U$2:$U$1000=Costs!$A428)*(AbschreibungAHKBvD))","v":0},{"$f":"SUM(AB$178:AB251)-SUM(AB$266:AB339)+SUMPRODUCT((Aktivierungsjahr=Costs!$A428)*(AbschreibungAGr=Costs!AB$353)*('Fixed assets'!$U$2:$U$1000=Costs!$A428)*(AbschreibungAHKBvD))","v":0},{"$f":"SUM(AC$178:AC251)-SUM(AC$266:AC339)+SUMPRODUCT((Aktivierungsjahr=Costs!$A428)*(AbschreibungAGr=Costs!AC$353)*('Fixed assets'!$U$2:$U$1000=Costs!$A428)*(AbschreibungAHKBvD))","v":0},{"$f":"SUM(AD$178:AD251)-SUM(AD$266:AD339)+SUMPRODUCT((Aktivierungsjahr=Costs!$A428)*(AbschreibungAGr=Costs!AD$353)*('Fixed assets'!$U$2:$U$1000=Costs!$A428)*(AbschreibungAHKBvD))","v":0},{"$f":"SUM(AE$178:AE251)-SUM(AE$266:AE339)+SUMPRODUCT((Aktivierungsjahr=Costs!$A428)*(AbschreibungAGr=Costs!AE$353)*('Fixed assets'!$U$2:$U$1000=Costs!$A428)*(AbschreibungAHKBvD))","v":0},{"$f":"SUM(AF$178:AF251)-SUM(AF$266:AF339)+SUMPRODUCT((Aktivierungsjahr=Costs!$A428)*(AbschreibungAGr=Costs!AF$353)*('Fixed assets'!$U$2:$U$1000=Costs!$A428)*(AbschreibungAHKBvD))","v":0},{"$f":"SUM(AG$178:AG251)-SUM(AG$266:AG339)+SUMPRODUCT((Aktivierungsjahr=Costs!$A428)*(AbschreibungAGr=Costs!AG$353)*('Fixed assets'!$U$2:$U$1000=Costs!$A428)*(AbschreibungAHKBvD))","v":0},{"$f":"SUM(AH$178:AH251)-SUM(AH$266:AH339)+SUMPRODUCT((Aktivierungsjahr=Costs!$A428)*(AbschreibungAGr=Costs!AH$353)*('Fixed assets'!$U$2:$U$1000=Costs!$A428)*(AbschreibungAHKBvD))","v":0},{"$f":"SUM(AI$178:AI251)-SUM(AI$266:AI339)+SUMPRODUCT((Aktivierungsjahr=Costs!$A428)*(AbschreibungAGr=Costs!AI$353)*('Fixed assets'!$U$2:$U$1000=Costs!$A428)*(AbschreibungAHKBvD))","v":0},{"$f":"SUM(AJ$178:AJ251)-SUM(AJ$266:AJ339)+SUMPRODUCT((Aktivierungsjahr=Costs!$A428)*(AbschreibungAGr=Costs!AJ$353)*('Fixed assets'!$U$2:$U$1000=Costs!$A428)*(AbschreibungAHKBvD))","v":-8.149072527885437E-10},{"$f":"SUM(AK$178:AK251)-SUM(AK$266:AK339)+SUMPRODUCT((Aktivierungsjahr=Costs!$A428)*(AbschreibungAGr=Costs!AK$353)*('Fixed assets'!$U$2:$U$1000=Costs!$A428)*(AbschreibungAHKBvD))","v":0},{"$f":"SUM(AL$178:AL251)-SUM(AL$266:AL339)+SUMPRODUCT((Aktivierungsjahr=Costs!$A428)*(AbschreibungAGr=Costs!AL$353)*('Fixed assets'!$U$2:$U$1000=Costs!$A428)*(AbschreibungAHKBvD))","v":0},{"$f":"SUM(AM$178:AM251)-SUM(AM$266:AM339)+SUMPRODUCT((Aktivierungsjahr=Costs!$A428)*(AbschreibungAGr=Costs!AM$353)*('Fixed assets'!$U$2:$U$1000=Costs!$A428)*(AbschreibungAHKBvD))","v":0},{"$f":"SUM(AN$178:AN251)-SUM(AN$266:AN339)+SUMPRODUCT((Aktivierungsjahr=Costs!$A428)*(AbschreibungAGr=Costs!AN$353)*('Fixed assets'!$U$2:$U$1000=Costs!$A428)*(AbschreibungAHKBvD))","v":0},{"$f":"SUM(AO$178:AO251)-SUM(AO$266:AO339)+SUMPRODUCT((Aktivierungsjahr=Costs!$A428)*(AbschreibungAGr=Costs!AO$353)*('Fixed assets'!$U$2:$U$1000=Costs!$A428)*(AbschreibungAHKBvD))","v":0},{"$f":"SUM(AP$178:AP251)-SUM(AP$266:AP339)+SUMPRODUCT((Aktivierungsjahr=Costs!$A428)*(AbschreibungAGr=Costs!AP$353)*('Fixed assets'!$U$2:$U$1000=Costs!$A428)*(AbschreibungAHKBvD))","v":0},{"$f":"SUM(AQ$178:AQ251)-SUM(AQ$266:AQ339)+SUMPRODUCT((Aktivierungsjahr=Costs!$A428)*(AbschreibungAGr=Costs!AQ$353)*('Fixed assets'!$U$2:$U$1000=Costs!$A428)*(AbschreibungAHKBvD))","v":0}]
[2090,-8.149072527885437E-10,{"$f":"SUM(C$178:C252)-SUM(C$266:C340)+SUMPRODUCT((Aktivierungsjahr=Costs!$A429)*(AbschreibungAGr=Costs!C$353)*('Fixed assets'!$U$2:$U$1000=Costs!$A429)*(AbschreibungAHKBvD))","v":0},{"$f":"SUM(D$178:D252)-SUM(D$266:D340)+SUMPRODUCT((Aktivierungsjahr=Costs!$A429)*(AbschreibungAGr=Costs!D$353)*('Fixed assets'!$U$2:$U$1000=Costs!$A429)*(AbschreibungAHKBvD))","v":0},{"$f":"SUM(E$178:E252)-SUM(E$266:E340)+SUMPRODUCT((Aktivierungsjahr=Costs!$A429)*(AbschreibungAGr=Costs!E$353)*('Fixed assets'!$U$2:$U$1000=Costs!$A429)*(AbschreibungAHKBvD))","v":0},{"$f":"SUM(F$178:F252)-SUM(F$266:F340)+SUMPRODUCT((Aktivierungsjahr=Costs!$A429)*(AbschreibungAGr=Costs!F$353)*('Fixed assets'!$U$2:$U$1000=Costs!$A429)*(AbschreibungAHKBvD))","v":0},{"$f":"SUM(G$178:G252)-SUM(G$266:G340)+SUMPRODUCT((Aktivierungsjahr=Costs!$A429)*(AbschreibungAGr=Costs!G$353)*('Fixed assets'!$U$2:$U$1000=Costs!$A429)*(AbschreibungAHKBvD))","v":0},{"$f":"SUM(H$178:H252)-SUM(H$266:H340)+SUMPRODUCT((Aktivierungsjahr=Costs!$A429)*(AbschreibungAGr=Costs!H$353)*('Fixed assets'!$U$2:$U$1000=Costs!$A429)*(AbschreibungAHKBvD))","v":0},{"$f":"SUM(I$178:I252)-SUM(I$266:I340)+SUMPRODUCT((Aktivierungsjahr=Costs!$A429)*(AbschreibungAGr=Costs!I$353)*('Fixed assets'!$U$2:$U$1000=Costs!$A429)*(AbschreibungAHKBvD))","v":0},{"$f":"SUM(J$178:J252)-SUM(J$266:J340)+SUMPRODUCT((Aktivierungsjahr=Costs!$A429)*(AbschreibungAGr=Costs!J$353)*('Fixed assets'!$U$2:$U$1000=Costs!$A429)*(AbschreibungAHKBvD))","v":0},{"$f":"SUM(K$178:K252)-SUM(K$266:K340)+SUMPRODUCT((Aktivierungsjahr=Costs!$A429)*(AbschreibungAGr=Costs!K$353)*('Fixed assets'!$U$2:$U$1000=Costs!$A429)*(AbschreibungAHKBvD))","v":0},{"$f":"SUM(L$178:L252)-SUM(L$266:L340)+SUMPRODUCT((Aktivierungsjahr=Costs!$A429)*(AbschreibungAGr=Costs!L$353)*('Fixed assets'!$U$2:$U$1000=Costs!$A429)*(AbschreibungAHKBvD))","v":0},{"$f":"SUM(M$178:M252)-SUM(M$266:M340)+SUMPRODUCT((Aktivierungsjahr=Costs!$A429)*(AbschreibungAGr=Costs!M$353)*('Fixed assets'!$U$2:$U$1000=Costs!$A429)*(AbschreibungAHKBvD))","v":0},{"$f":"SUM(N$178:N252)-SUM(N$266:N340)+SUMPRODUCT((Aktivierungsjahr=Costs!$A429)*(AbschreibungAGr=Costs!N$353)*('Fixed assets'!$U$2:$U$1000=Costs!$A429)*(AbschreibungAHKBvD))","v":0},{"$f":"SUM(O$178:O252)-SUM(O$266:O340)+SUMPRODUCT((Aktivierungsjahr=Costs!$A429)*(AbschreibungAGr=Costs!O$353)*('Fixed assets'!$U$2:$U$1000=Costs!$A429)*(AbschreibungAHKBvD))","v":0},{"$f":"SUM(P$178:P252)-SUM(P$266:P340)+SUMPRODUCT((Aktivierungsjahr=Costs!$A429)*(AbschreibungAGr=Costs!P$353)*('Fixed assets'!$U$2:$U$1000=Costs!$A429)*(AbschreibungAHKBvD))","v":0},{"$f":"SUM(Q$178:Q252)-SUM(Q$266:Q340)+SUMPRODUCT((Aktivierungsjahr=Costs!$A429)*(AbschreibungAGr=Costs!Q$353)*('Fixed assets'!$U$2:$U$1000=Costs!$A429)*(AbschreibungAHKBvD))","v":0},{"$f":"SUM(R$178:R252)-SUM(R$266:R340)+SUMPRODUCT((Aktivierungsjahr=Costs!$A429)*(AbschreibungAGr=Costs!R$353)*('Fixed assets'!$U$2:$U$1000=Costs!$A429)*(AbschreibungAHKBvD))","v":0},{"$f":"SUM(S$178:S252)-SUM(S$266:S340)+SUMPRODUCT((Aktivierungsjahr=Costs!$A429)*(AbschreibungAGr=Costs!S$353)*('Fixed assets'!$U$2:$U$1000=Costs!$A429)*(AbschreibungAHKBvD))","v":0},{"$f":"SUM(T$178:T252)-SUM(T$266:T340)+SUMPRODUCT((Aktivierungsjahr=Costs!$A429)*(AbschreibungAGr=Costs!T$353)*('Fixed assets'!$U$2:$U$1000=Costs!$A429)*(AbschreibungAHKBvD))","v":0},{"$f":"SUM(U$178:U252)-SUM(U$266:U340)+SUMPRODUCT((Aktivierungsjahr=Costs!$A429)*(AbschreibungAGr=Costs!U$353)*('Fixed assets'!$U$2:$U$1000=Costs!$A429)*(AbschreibungAHKBvD))","v":0},{"$f":"SUM(V$178:V252)-SUM(V$266:V340)+SUMPRODUCT((Aktivierungsjahr=Costs!$A429)*(AbschreibungAGr=Costs!V$353)*('Fixed assets'!$U$2:$U$1000=Costs!$A429)*(AbschreibungAHKBvD))","v":0},{"$f":"SUM(W$178:W252)-SUM(W$266:W340)+SUMPRODUCT((Aktivierungsjahr=Costs!$A429)*(AbschreibungAGr=Costs!W$353)*('Fixed assets'!$U$2:$U$1000=Costs!$A429)*(AbschreibungAHKBvD))","v":0},{"$f":"SUM(X$178:X252)-SUM(X$266:X340)+SUMPRODUCT((Aktivierungsjahr=Costs!$A429)*(AbschreibungAGr=Costs!X$353)*('Fixed assets'!$U$2:$U$1000=Costs!$A429)*(AbschreibungAHKBvD))","v":0},{"$f":"SUM(Y$178:Y252)-SUM(Y$266:Y340)+SUMPRODUCT((Aktivierungsjahr=Costs!$A429)*(AbschreibungAGr=Costs!Y$353)*('Fixed assets'!$U$2:$U$1000=Costs!$A429)*(AbschreibungAHKBvD))","v":0},{"$f":"SUM(Z$178:Z252)-SUM(Z$266:Z340)+SUMPRODUCT((Aktivierungsjahr=Costs!$A429)*(AbschreibungAGr=Costs!Z$353)*('Fixed assets'!$U$2:$U$1000=Costs!$A429)*(AbschreibungAHKBvD))","v":0},{"$f":"SUM(AA$178:AA252)-SUM(AA$266:AA340)+SUMPRODUCT((Aktivierungsjahr=Costs!$A429)*(AbschreibungAGr=Costs!AA$353)*('Fixed assets'!$U$2:$U$1000=Costs!$A429)*(AbschreibungAHKBvD))","v":0},{"$f":"SUM(AB$178:AB252)-SUM(AB$266:AB340)+SUMPRODUCT((Aktivierungsjahr=Costs!$A429)*(AbschreibungAGr=Costs!AB$353)*('Fixed assets'!$U$2:$U$1000=Costs!$A429)*(AbschreibungAHKBvD))","v":0},{"$f":"SUM(AC$178:AC252)-SUM(AC$266:AC340)+SUMPRODUCT((Aktivierungsjahr=Costs!$A429)*(AbschreibungAGr=Costs!AC$353)*('Fixed assets'!$U$2:$U$1000=Costs!$A429)*(AbschreibungAHKBvD))","v":0},{"$f":"SUM(AD$178:AD252)-SUM(AD$266:AD340)+SUMPRODUCT((Aktivierungsjahr=Costs!$A429)*(AbschreibungAGr=Costs!AD$353)*('Fixed assets'!$U$2:$U$1000=Costs!$A429)*(AbschreibungAHKBvD))","v":0},{"$f":"SUM(AE$178:AE252)-SUM(AE$266:AE340)+SUMPRODUCT((Aktivierungsjahr=Costs!$A429)*(AbschreibungAGr=Costs!AE$353)*('Fixed assets'!$U$2:$U$1000=Costs!$A429)*(AbschreibungAHKBvD))","v":0},{"$f":"SUM(AF$178:AF252)-SUM(AF$266:AF340)+SUMPRODUCT((Aktivierungsjahr=Costs!$A429)*(AbschreibungAGr=Costs!AF$353)*('Fixed assets'!$U$2:$U$1000=Costs!$A429)*(AbschreibungAHKBvD))","v":0},{"$f":"SUM(AG$178:AG252)-SUM(AG$266:AG340)+SUMPRODUCT((Aktivierungsjahr=Costs!$A429)*(AbschreibungAGr=Costs!AG$353)*('Fixed assets'!$U$2:$U$1000=Costs!$A429)*(AbschreibungAHKBvD))","v":0},{"$f":"SUM(AH$178:AH252)-SUM(AH$266:AH340)+SUMPRODUCT((Aktivierungsjahr=Costs!$A429)*(AbschreibungAGr=Costs!AH$353)*('Fixed assets'!$U$2:$U$1000=Costs!$A429)*(AbschreibungAHKBvD))","v":0},{"$f":"SUM(AI$178:AI252)-SUM(AI$266:AI340)+SUMPRODUCT((Aktivierungsjahr=Costs!$A429)*(AbschreibungAGr=Costs!AI$353)*('Fixed assets'!$U$2:$U$1000=Costs!$A429)*(AbschreibungAHKBvD))","v":0},{"$f":"SUM(AJ$178:AJ252)-SUM(AJ$266:AJ340)+SUMPRODUCT((Aktivierungsjahr=Costs!$A429)*(AbschreibungAGr=Costs!AJ$353)*('Fixed assets'!$U$2:$U$1000=Costs!$A429)*(AbschreibungAHKBvD))","v":-8.149072527885437E-10},{"$f":"SUM(AK$178:AK252)-SUM(AK$266:AK340)+SUMPRODUCT((Aktivierungsjahr=Costs!$A429)*(AbschreibungAGr=Costs!AK$353)*('Fixed assets'!$U$2:$U$1000=Costs!$A429)*(AbschreibungAHKBvD))","v":0},{"$f":"SUM(AL$178:AL252)-SUM(AL$266:AL340)+SUMPRODUCT((Aktivierungsjahr=Costs!$A429)*(AbschreibungAGr=Costs!AL$353)*('Fixed assets'!$U$2:$U$1000=Costs!$A429)*(AbschreibungAHKBvD))","v":0},{"$f":"SUM(AM$178:AM252)-SUM(AM$266:AM340)+SUMPRODUCT((Aktivierungsjahr=Costs!$A429)*(AbschreibungAGr=Costs!AM$353)*('Fixed assets'!$U$2:$U$1000=Costs!$A429)*(AbschreibungAHKBvD))","v":0},{"$f":"SUM(AN$178:AN252)-SUM(AN$266:AN340)+SUMPRODUCT((Aktivierungsjahr=Costs!$A429)*(AbschreibungAGr=Costs!AN$353)*('Fixed assets'!$U$2:$U$1000=Costs!$A429)*(AbschreibungAHKBvD))","v":0},{"$f":"SUM(AO$178:AO252)-SUM(AO$266:AO340)+SUMPRODUCT((Aktivierungsjahr=Costs!$A429)*(AbschreibungAGr=Costs!AO$353)*('Fixed assets'!$U$2:$U$1000=Costs!$A429)*(AbschreibungAHKBvD))","v":0},{"$f":"SUM(AP$178:AP252)-SUM(AP$266:AP340)+SUMPRODUCT((Aktivierungsjahr=Costs!$A429)*(AbschreibungAGr=Costs!AP$353)*('Fixed assets'!$U$2:$U$1000=Costs!$A429)*(AbschreibungAHKBvD))","v":0},{"$f":"SUM(AQ$178:AQ252)-SUM(AQ$266:AQ340)+SUMPRODUCT((Aktivierungsjahr=Costs!$A429)*(AbschreibungAGr=Costs!AQ$353)*('Fixed assets'!$U$2:$U$1000=Costs!$A429)*(AbschreibungAHKBvD))","v":0}]
[2091,-8.149072527885437E-10,{"$f":"SUM(C$178:C253)-SUM(C$266:C341)+SUMPRODUCT((Aktivierungsjahr=Costs!$A430)*(AbschreibungAGr=Costs!C$353)*('Fixed assets'!$U$2:$U$1000=Costs!$A430)*(AbschreibungAHKBvD))","v":0},{"$f":"SUM(D$178:D253)-SUM(D$266:D341)+SUMPRODUCT((Aktivierungsjahr=Costs!$A430)*(AbschreibungAGr=Costs!D$353)*('Fixed assets'!$U$2:$U$1000=Costs!$A430)*(AbschreibungAHKBvD))","v":0},{"$f":"SUM(E$178:E253)-SUM(E$266:E341)+SUMPRODUCT((Aktivierungsjahr=Costs!$A430)*(AbschreibungAGr=Costs!E$353)*('Fixed assets'!$U$2:$U$1000=Costs!$A430)*(AbschreibungAHKBvD))","v":0},{"$f":"SUM(F$178:F253)-SUM(F$266:F341)+SUMPRODUCT((Aktivierungsjahr=Costs!$A430)*(AbschreibungAGr=Costs!F$353)*('Fixed assets'!$U$2:$U$1000=Costs!$A430)*(AbschreibungAHKBvD))","v":0},{"$f":"SUM(G$178:G253)-SUM(G$266:G341)+SUMPRODUCT((Aktivierungsjahr=Costs!$A430)*(AbschreibungAGr=Costs!G$353)*('Fixed assets'!$U$2:$U$1000=Costs!$A430)*(AbschreibungAHKBvD))","v":0},{"$f":"SUM(H$178:H253)-SUM(H$266:H341)+SUMPRODUCT((Aktivierungsjahr=Costs!$A430)*(AbschreibungAGr=Costs!H$353)*('Fixed assets'!$U$2:$U$1000=Costs!$A430)*(AbschreibungAHKBvD))","v":0},{"$f":"SUM(I$178:I253)-SUM(I$266:I341)+SUMPRODUCT((Aktivierungsjahr=Costs!$A430)*(AbschreibungAGr=Costs!I$353)*('Fixed assets'!$U$2:$U$1000=Costs!$A430)*(AbschreibungAHKBvD))","v":0},{"$f":"SUM(J$178:J253)-SUM(J$266:J341)+SUMPRODUCT((Aktivierungsjahr=Costs!$A430)*(AbschreibungAGr=Costs!J$353)*('Fixed assets'!$U$2:$U$1000=Costs!$A430)*(AbschreibungAHKBvD))","v":0},{"$f":"SUM(K$178:K253)-SUM(K$266:K341)+SUMPRODUCT((Aktivierungsjahr=Costs!$A430)*(AbschreibungAGr=Costs!K$353)*('Fixed assets'!$U$2:$U$1000=Costs!$A430)*(AbschreibungAHKBvD))","v":0},{"$f":"SUM(L$178:L253)-SUM(L$266:L341)+SUMPRODUCT((Aktivierungsjahr=Costs!$A430)*(AbschreibungAGr=Costs!L$353)*('Fixed assets'!$U$2:$U$1000=Costs!$A430)*(AbschreibungAHKBvD))","v":0},{"$f":"SUM(M$178:M253)-SUM(M$266:M341)+SUMPRODUCT((Aktivierungsjahr=Costs!$A430)*(AbschreibungAGr=Costs!M$353)*('Fixed assets'!$U$2:$U$1000=Costs!$A430)*(AbschreibungAHKBvD))","v":0},{"$f":"SUM(N$178:N253)-SUM(N$266:N341)+SUMPRODUCT((Aktivierungsjahr=Costs!$A430)*(AbschreibungAGr=Costs!N$353)*('Fixed assets'!$U$2:$U$1000=Costs!$A430)*(AbschreibungAHKBvD))","v":0},{"$f":"SUM(O$178:O253)-SUM(O$266:O341)+SUMPRODUCT((Aktivierungsjahr=Costs!$A430)*(AbschreibungAGr=Costs!O$353)*('Fixed assets'!$U$2:$U$1000=Costs!$A430)*(AbschreibungAHKBvD))","v":0},{"$f":"SUM(P$178:P253)-SUM(P$266:P341)+SUMPRODUCT((Aktivierungsjahr=Costs!$A430)*(AbschreibungAGr=Costs!P$353)*('Fixed assets'!$U$2:$U$1000=Costs!$A430)*(AbschreibungAHKBvD))","v":0},{"$f":"SUM(Q$178:Q253)-SUM(Q$266:Q341)+SUMPRODUCT((Aktivierungsjahr=Costs!$A430)*(AbschreibungAGr=Costs!Q$353)*('Fixed assets'!$U$2:$U$1000=Costs!$A430)*(AbschreibungAHKBvD))","v":0},{"$f":"SUM(R$178:R253)-SUM(R$266:R341)+SUMPRODUCT((Aktivierungsjahr=Costs!$A430)*(AbschreibungAGr=Costs!R$353)*('Fixed assets'!$U$2:$U$1000=Costs!$A430)*(AbschreibungAHKBvD))","v":0},{"$f":"SUM(S$178:S253)-SUM(S$266:S341)+SUMPRODUCT((Aktivierungsjahr=Costs!$A430)*(AbschreibungAGr=Costs!S$353)*('Fixed assets'!$U$2:$U$1000=Costs!$A430)*(AbschreibungAHKBvD))","v":0},{"$f":"SUM(T$178:T253)-SUM(T$266:T341)+SUMPRODUCT((Aktivierungsjahr=Costs!$A430)*(AbschreibungAGr=Costs!T$353)*('Fixed assets'!$U$2:$U$1000=Costs!$A430)*(AbschreibungAHKBvD))","v":0},{"$f":"SUM(U$178:U253)-SUM(U$266:U341)+SUMPRODUCT((Aktivierungsjahr=Costs!$A430)*(AbschreibungAGr=Costs!U$353)*('Fixed assets'!$U$2:$U$1000=Costs!$A430)*(AbschreibungAHKBvD))","v":0},{"$f":"SUM(V$178:V253)-SUM(V$266:V341)+SUMPRODUCT((Aktivierungsjahr=Costs!$A430)*(AbschreibungAGr=Costs!V$353)*('Fixed assets'!$U$2:$U$1000=Costs!$A430)*(AbschreibungAHKBvD))","v":0},{"$f":"SUM(W$178:W253)-SUM(W$266:W341)+SUMPRODUCT((Aktivierungsjahr=Costs!$A430)*(AbschreibungAGr=Costs!W$353)*('Fixed assets'!$U$2:$U$1000=Costs!$A430)*(AbschreibungAHKBvD))","v":0},{"$f":"SUM(X$178:X253)-SUM(X$266:X341)+SUMPRODUCT((Aktivierungsjahr=Costs!$A430)*(AbschreibungAGr=Costs!X$353)*('Fixed assets'!$U$2:$U$1000=Costs!$A430)*(AbschreibungAHKBvD))","v":0},{"$f":"SUM(Y$178:Y253)-SUM(Y$266:Y341)+SUMPRODUCT((Aktivierungsjahr=Costs!$A430)*(AbschreibungAGr=Costs!Y$353)*('Fixed assets'!$U$2:$U$1000=Costs!$A430)*(AbschreibungAHKBvD))","v":0},{"$f":"SUM(Z$178:Z253)-SUM(Z$266:Z341)+SUMPRODUCT((Aktivierungsjahr=Costs!$A430)*(AbschreibungAGr=Costs!Z$353)*('Fixed assets'!$U$2:$U$1000=Costs!$A430)*(AbschreibungAHKBvD))","v":0},{"$f":"SUM(AA$178:AA253)-SUM(AA$266:AA341)+SUMPRODUCT((Aktivierungsjahr=Costs!$A430)*(AbschreibungAGr=Costs!AA$353)*('Fixed assets'!$U$2:$U$1000=Costs!$A430)*(AbschreibungAHKBvD))","v":0},{"$f":"SUM(AB$178:AB253)-SUM(AB$266:AB341)+SUMPRODUCT((Aktivierungsjahr=Costs!$A430)*(AbschreibungAGr=Costs!AB$353)*('Fixed assets'!$U$2:$U$1000=Costs!$A430)*(AbschreibungAHKBvD))","v":0},{"$f":"SUM(AC$178:AC253)-SUM(AC$266:AC341)+SUMPRODUCT((Aktivierungsjahr=Costs!$A430)*(AbschreibungAGr=Costs!AC$353)*('Fixed assets'!$U$2:$U$1000=Costs!$A430)*(AbschreibungAHKBvD))","v":0},{"$f":"SUM(AD$178:AD253)-SUM(AD$266:AD341)+SUMPRODUCT((Aktivierungsjahr=Costs!$A430)*(AbschreibungAGr=Costs!AD$353)*('Fixed assets'!$U$2:$U$1000=Costs!$A430)*(AbschreibungAHKBvD))","v":0},{"$f":"SUM(AE$178:AE253)-SUM(AE$266:AE341)+SUMPRODUCT((Aktivierungsjahr=Costs!$A430)*(AbschreibungAGr=Costs!AE$353)*('Fixed assets'!$U$2:$U$1000=Costs!$A430)*(AbschreibungAHKBvD))","v":0},{"$f":"SUM(AF$178:AF253)-SUM(AF$266:AF341)+SUMPRODUCT((Aktivierungsjahr=Costs!$A430)*(AbschreibungAGr=Costs!AF$353)*('Fixed assets'!$U$2:$U$1000=Costs!$A430)*(AbschreibungAHKBvD))","v":0},{"$f":"SUM(AG$178:AG253)-SUM(AG$266:AG341)+SUMPRODUCT((Aktivierungsjahr=Costs!$A430)*(AbschreibungAGr=Costs!AG$353)*('Fixed assets'!$U$2:$U$1000=Costs!$A430)*(AbschreibungAHKBvD))","v":0},{"$f":"SUM(AH$178:AH253)-SUM(AH$266:AH341)+SUMPRODUCT((Aktivierungsjahr=Costs!$A430)*(AbschreibungAGr=Costs!AH$353)*('Fixed assets'!$U$2:$U$1000=Costs!$A430)*(AbschreibungAHKBvD))","v":0},{"$f":"SUM(AI$178:AI253)-SUM(AI$266:AI341)+SUMPRODUCT((Aktivierungsjahr=Costs!$A430)*(AbschreibungAGr=Costs!AI$353)*('Fixed assets'!$U$2:$U$1000=Costs!$A430)*(AbschreibungAHKBvD))","v":0},{"$f":"SUM(AJ$178:AJ253)-SUM(AJ$266:AJ341)+SUMPRODUCT((Aktivierungsjahr=Costs!$A430)*(AbschreibungAGr=Costs!AJ$353)*('Fixed assets'!$U$2:$U$1000=Costs!$A430)*(AbschreibungAHKBvD))","v":-8.149072527885437E-10},{"$f":"SUM(AK$178:AK253)-SUM(AK$266:AK341)+SUMPRODUCT((Aktivierungsjahr=Costs!$A430)*(AbschreibungAGr=Costs!AK$353)*('Fixed assets'!$U$2:$U$1000=Costs!$A430)*(AbschreibungAHKBvD))","v":0},{"$f":"SUM(AL$178:AL253)-SUM(AL$266:AL341)+SUMPRODUCT((Aktivierungsjahr=Costs!$A430)*(AbschreibungAGr=Costs!AL$353)*('Fixed assets'!$U$2:$U$1000=Costs!$A430)*(AbschreibungAHKBvD))","v":0},{"$f":"SUM(AM$178:AM253)-SUM(AM$266:AM341)+SUMPRODUCT((Aktivierungsjahr=Costs!$A430)*(AbschreibungAGr=Costs!AM$353)*('Fixed assets'!$U$2:$U$1000=Costs!$A430)*(AbschreibungAHKBvD))","v":0},{"$f":"SUM(AN$178:AN253)-SUM(AN$266:AN341)+SUMPRODUCT((Aktivierungsjahr=Costs!$A430)*(AbschreibungAGr=Costs!AN$353)*('Fixed assets'!$U$2:$U$1000=Costs!$A430)*(AbschreibungAHKBvD))","v":0},{"$f":"SUM(AO$178:AO253)-SUM(AO$266:AO341)+SUMPRODUCT((Aktivierungsjahr=Costs!$A430)*(AbschreibungAGr=Costs!AO$353)*('Fixed assets'!$U$2:$U$1000=Costs!$A430)*(AbschreibungAHKBvD))","v":0},{"$f":"SUM(AP$178:AP253)-SUM(AP$266:AP341)+SUMPRODUCT((Aktivierungsjahr=Costs!$A430)*(AbschreibungAGr=Costs!AP$353)*('Fixed assets'!$U$2:$U$1000=Costs!$A430)*(AbschreibungAHKBvD))","v":0},{"$f":"SUM(AQ$178:AQ253)-SUM(AQ$266:AQ341)+SUMPRODUCT((Aktivierungsjahr=Costs!$A430)*(AbschreibungAGr=Costs!AQ$353)*('Fixed assets'!$U$2:$U$1000=Costs!$A430)*(AbschreibungAHKBvD))","v":0}]
[2092,-8.149072527885437E-10,{"$f":"SUM(C$178:C254)-SUM(C$266:C342)+SUMPRODUCT((Aktivierungsjahr=Costs!$A431)*(AbschreibungAGr=Costs!C$353)*('Fixed assets'!$U$2:$U$1000=Costs!$A431)*(AbschreibungAHKBvD))","v":0},{"$f":"SUM(D$178:D254)-SUM(D$266:D342)+SUMPRODUCT((Aktivierungsjahr=Costs!$A431)*(AbschreibungAGr=Costs!D$353)*('Fixed assets'!$U$2:$U$1000=Costs!$A431)*(AbschreibungAHKBvD))","v":0},{"$f":"SUM(E$178:E254)-SUM(E$266:E342)+SUMPRODUCT((Aktivierungsjahr=Costs!$A431)*(AbschreibungAGr=Costs!E$353)*('Fixed assets'!$U$2:$U$1000=Costs!$A431)*(AbschreibungAHKBvD))","v":0},{"$f":"SUM(F$178:F254)-SUM(F$266:F342)+SUMPRODUCT((Aktivierungsjahr=Costs!$A431)*(AbschreibungAGr=Costs!F$353)*('Fixed assets'!$U$2:$U$1000=Costs!$A431)*(AbschreibungAHKBvD))","v":0},{"$f":"SUM(G$178:G254)-SUM(G$266:G342)+SUMPRODUCT((Aktivierungsjahr=Costs!$A431)*(AbschreibungAGr=Costs!G$353)*('Fixed assets'!$U$2:$U$1000=Costs!$A431)*(AbschreibungAHKBvD))","v":0},{"$f":"SUM(H$178:H254)-SUM(H$266:H342)+SUMPRODUCT((Aktivierungsjahr=Costs!$A431)*(AbschreibungAGr=Costs!H$353)*('Fixed assets'!$U$2:$U$1000=Costs!$A431)*(AbschreibungAHKBvD))","v":0},{"$f":"SUM(I$178:I254)-SUM(I$266:I342)+SUMPRODUCT((Aktivierungsjahr=Costs!$A431)*(AbschreibungAGr=Costs!I$353)*('Fixed assets'!$U$2:$U$1000=Costs!$A431)*(AbschreibungAHKBvD))","v":0},{"$f":"SUM(J$178:J254)-SUM(J$266:J342)+SUMPRODUCT((Aktivierungsjahr=Costs!$A431)*(AbschreibungAGr=Costs!J$353)*('Fixed assets'!$U$2:$U$1000=Costs!$A431)*(AbschreibungAHKBvD))","v":0},{"$f":"SUM(K$178:K254)-SUM(K$266:K342)+SUMPRODUCT((Aktivierungsjahr=Costs!$A431)*(AbschreibungAGr=Costs!K$353)*('Fixed assets'!$U$2:$U$1000=Costs!$A431)*(AbschreibungAHKBvD))","v":0},{"$f":"SUM(L$178:L254)-SUM(L$266:L342)+SUMPRODUCT((Aktivierungsjahr=Costs!$A431)*(AbschreibungAGr=Costs!L$353)*('Fixed assets'!$U$2:$U$1000=Costs!$A431)*(AbschreibungAHKBvD))","v":0},{"$f":"SUM(M$178:M254)-SUM(M$266:M342)+SUMPRODUCT((Aktivierungsjahr=Costs!$A431)*(AbschreibungAGr=Costs!M$353)*('Fixed assets'!$U$2:$U$1000=Costs!$A431)*(AbschreibungAHKBvD))","v":0},{"$f":"SUM(N$178:N254)-SUM(N$266:N342)+SUMPRODUCT((Aktivierungsjahr=Costs!$A431)*(AbschreibungAGr=Costs!N$353)*('Fixed assets'!$U$2:$U$1000=Costs!$A431)*(AbschreibungAHKBvD))","v":0},{"$f":"SUM(O$178:O254)-SUM(O$266:O342)+SUMPRODUCT((Aktivierungsjahr=Costs!$A431)*(AbschreibungAGr=Costs!O$353)*('Fixed assets'!$U$2:$U$1000=Costs!$A431)*(AbschreibungAHKBvD))","v":0},{"$f":"SUM(P$178:P254)-SUM(P$266:P342)+SUMPRODUCT((Aktivierungsjahr=Costs!$A431)*(AbschreibungAGr=Costs!P$353)*('Fixed assets'!$U$2:$U$1000=Costs!$A431)*(AbschreibungAHKBvD))","v":0},{"$f":"SUM(Q$178:Q254)-SUM(Q$266:Q342)+SUMPRODUCT((Aktivierungsjahr=Costs!$A431)*(AbschreibungAGr=Costs!Q$353)*('Fixed assets'!$U$2:$U$1000=Costs!$A431)*(AbschreibungAHKBvD))","v":0},{"$f":"SUM(R$178:R254)-SUM(R$266:R342)+SUMPRODUCT((Aktivierungsjahr=Costs!$A431)*(AbschreibungAGr=Costs!R$353)*('Fixed assets'!$U$2:$U$1000=Costs!$A431)*(AbschreibungAHKBvD))","v":0},{"$f":"SUM(S$178:S254)-SUM(S$266:S342)+SUMPRODUCT((Aktivierungsjahr=Costs!$A431)*(AbschreibungAGr=Costs!S$353)*('Fixed assets'!$U$2:$U$1000=Costs!$A431)*(AbschreibungAHKBvD))","v":0},{"$f":"SUM(T$178:T254)-SUM(T$266:T342)+SUMPRODUCT((Aktivierungsjahr=Costs!$A431)*(AbschreibungAGr=Costs!T$353)*('Fixed assets'!$U$2:$U$1000=Costs!$A431)*(AbschreibungAHKBvD))","v":0},{"$f":"SUM(U$178:U254)-SUM(U$266:U342)+SUMPRODUCT((Aktivierungsjahr=Costs!$A431)*(AbschreibungAGr=Costs!U$353)*('Fixed assets'!$U$2:$U$1000=Costs!$A431)*(AbschreibungAHKBvD))","v":0},{"$f":"SUM(V$178:V254)-SUM(V$266:V342)+SUMPRODUCT((Aktivierungsjahr=Costs!$A431)*(AbschreibungAGr=Costs!V$353)*('Fixed assets'!$U$2:$U$1000=Costs!$A431)*(AbschreibungAHKBvD))","v":0},{"$f":"SUM(W$178:W254)-SUM(W$266:W342)+SUMPRODUCT((Aktivierungsjahr=Costs!$A431)*(AbschreibungAGr=Costs!W$353)*('Fixed assets'!$U$2:$U$1000=Costs!$A431)*(AbschreibungAHKBvD))","v":0},{"$f":"SUM(X$178:X254)-SUM(X$266:X342)+SUMPRODUCT((Aktivierungsjahr=Costs!$A431)*(AbschreibungAGr=Costs!X$353)*('Fixed assets'!$U$2:$U$1000=Costs!$A431)*(AbschreibungAHKBvD))","v":0},{"$f":"SUM(Y$178:Y254)-SUM(Y$266:Y342)+SUMPRODUCT((Aktivierungsjahr=Costs!$A431)*(AbschreibungAGr=Costs!Y$353)*('Fixed assets'!$U$2:$U$1000=Costs!$A431)*(AbschreibungAHKBvD))","v":0},{"$f":"SUM(Z$178:Z254)-SUM(Z$266:Z342)+SUMPRODUCT((Aktivierungsjahr=Costs!$A431)*(AbschreibungAGr=Costs!Z$353)*('Fixed assets'!$U$2:$U$1000=Costs!$A431)*(AbschreibungAHKBvD))","v":0},{"$f":"SUM(AA$178:AA254)-SUM(AA$266:AA342)+SUMPRODUCT((Aktivierungsjahr=Costs!$A431)*(AbschreibungAGr=Costs!AA$353)*('Fixed assets'!$U$2:$U$1000=Costs!$A431)*(AbschreibungAHKBvD))","v":0},{"$f":"SUM(AB$178:AB254)-SUM(AB$266:AB342)+SUMPRODUCT((Aktivierungsjahr=Costs!$A431)*(AbschreibungAGr=Costs!AB$353)*('Fixed assets'!$U$2:$U$1000=Costs!$A431)*(AbschreibungAHKBvD))","v":0},{"$f":"SUM(AC$178:AC254)-SUM(AC$266:AC342)+SUMPRODUCT((Aktivierungsjahr=Costs!$A431)*(AbschreibungAGr=Costs!AC$353)*('Fixed assets'!$U$2:$U$1000=Costs!$A431)*(AbschreibungAHKBvD))","v":0},{"$f":"SUM(AD$178:AD254)-SUM(AD$266:AD342)+SUMPRODUCT((Aktivierungsjahr=Costs!$A431)*(AbschreibungAGr=Costs!AD$353)*('Fixed assets'!$U$2:$U$1000=Costs!$A431)*(AbschreibungAHKBvD))","v":0},{"$f":"SUM(AE$178:AE254)-SUM(AE$266:AE342)+SUMPRODUCT((Aktivierungsjahr=Costs!$A431)*(AbschreibungAGr=Costs!AE$353)*('Fixed assets'!$U$2:$U$1000=Costs!$A431)*(AbschreibungAHKBvD))","v":0},{"$f":"SUM(AF$178:AF254)-SUM(AF$266:AF342)+SUMPRODUCT((Aktivierungsjahr=Costs!$A431)*(AbschreibungAGr=Costs!AF$353)*('Fixed assets'!$U$2:$U$1000=Costs!$A431)*(AbschreibungAHKBvD))","v":0},{"$f":"SUM(AG$178:AG254)-SUM(AG$266:AG342)+SUMPRODUCT((Aktivierungsjahr=Costs!$A431)*(AbschreibungAGr=Costs!AG$353)*('Fixed assets'!$U$2:$U$1000=Costs!$A431)*(AbschreibungAHKBvD))","v":0},{"$f":"SUM(AH$178:AH254)-SUM(AH$266:AH342)+SUMPRODUCT((Aktivierungsjahr=Costs!$A431)*(AbschreibungAGr=Costs!AH$353)*('Fixed assets'!$U$2:$U$1000=Costs!$A431)*(AbschreibungAHKBvD))","v":0},{"$f":"SUM(AI$178:AI254)-SUM(AI$266:AI342)+SUMPRODUCT((Aktivierungsjahr=Costs!$A431)*(AbschreibungAGr=Costs!AI$353)*('Fixed assets'!$U$2:$U$1000=Costs!$A431)*(AbschreibungAHKBvD))","v":0},{"$f":"SUM(AJ$178:AJ254)-SUM(AJ$266:AJ342)+SUMPRODUCT((Aktivierungsjahr=Costs!$A431)*(AbschreibungAGr=Costs!AJ$353)*('Fixed assets'!$U$2:$U$1000=Costs!$A431)*(AbschreibungAHKBvD))","v":-8.149072527885437E-10},{"$f":"SUM(AK$178:AK254)-SUM(AK$266:AK342)+SUMPRODUCT((Aktivierungsjahr=Costs!$A431)*(AbschreibungAGr=Costs!AK$353)*('Fixed assets'!$U$2:$U$1000=Costs!$A431)*(AbschreibungAHKBvD))","v":0},{"$f":"SUM(AL$178:AL254)-SUM(AL$266:AL342)+SUMPRODUCT((Aktivierungsjahr=Costs!$A431)*(AbschreibungAGr=Costs!AL$353)*('Fixed assets'!$U$2:$U$1000=Costs!$A431)*(AbschreibungAHKBvD))","v":0},{"$f":"SUM(AM$178:AM254)-SUM(AM$266:AM342)+SUMPRODUCT((Aktivierungsjahr=Costs!$A431)*(AbschreibungAGr=Costs!AM$353)*('Fixed assets'!$U$2:$U$1000=Costs!$A431)*(AbschreibungAHKBvD))","v":0},{"$f":"SUM(AN$178:AN254)-SUM(AN$266:AN342)+SUMPRODUCT((Aktivierungsjahr=Costs!$A431)*(AbschreibungAGr=Costs!AN$353)*('Fixed assets'!$U$2:$U$1000=Costs!$A431)*(AbschreibungAHKBvD))","v":0},{"$f":"SUM(AO$178:AO254)-SUM(AO$266:AO342)+SUMPRODUCT((Aktivierungsjahr=Costs!$A431)*(AbschreibungAGr=Costs!AO$353)*('Fixed assets'!$U$2:$U$1000=Costs!$A431)*(AbschreibungAHKBvD))","v":0},{"$f":"SUM(AP$178:AP254)-SUM(AP$266:AP342)+SUMPRODUCT((Aktivierungsjahr=Costs!$A431)*(AbschreibungAGr=Costs!AP$353)*('Fixed assets'!$U$2:$U$1000=Costs!$A431)*(AbschreibungAHKBvD))","v":0},{"$f":"SUM(AQ$178:AQ254)-SUM(AQ$266:AQ342)+SUMPRODUCT((Aktivierungsjahr=Costs!$A431)*(AbschreibungAGr=Costs!AQ$353)*('Fixed assets'!$U$2:$U$1000=Costs!$A431)*(AbschreibungAHKBvD))","v":0}]
[2093,-8.149072527885437E-10,{"$f":"SUM(C$178:C255)-SUM(C$266:C343)+SUMPRODUCT((Aktivierungsjahr=Costs!$A432)*(AbschreibungAGr=Costs!C$353)*('Fixed assets'!$U$2:$U$1000=Costs!$A432)*(AbschreibungAHKBvD))","v":0},{"$f":"SUM(D$178:D255)-SUM(D$266:D343)+SUMPRODUCT((Aktivierungsjahr=Costs!$A432)*(AbschreibungAGr=Costs!D$353)*('Fixed assets'!$U$2:$U$1000=Costs!$A432)*(AbschreibungAHKBvD))","v":0},{"$f":"SUM(E$178:E255)-SUM(E$266:E343)+SUMPRODUCT((Aktivierungsjahr=Costs!$A432)*(AbschreibungAGr=Costs!E$353)*('Fixed assets'!$U$2:$U$1000=Costs!$A432)*(AbschreibungAHKBvD))","v":0},{"$f":"SUM(F$178:F255)-SUM(F$266:F343)+SUMPRODUCT((Aktivierungsjahr=Costs!$A432)*(AbschreibungAGr=Costs!F$353)*('Fixed assets'!$U$2:$U$1000=Costs!$A432)*(AbschreibungAHKBvD))","v":0},{"$f":"SUM(G$178:G255)-SUM(G$266:G343)+SUMPRODUCT((Aktivierungsjahr=Costs!$A432)*(AbschreibungAGr=Costs!G$353)*('Fixed assets'!$U$2:$U$1000=Costs!$A432)*(AbschreibungAHKBvD))","v":0},{"$f":"SUM(H$178:H255)-SUM(H$266:H343)+SUMPRODUCT((Aktivierungsjahr=Costs!$A432)*(AbschreibungAGr=Costs!H$353)*('Fixed assets'!$U$2:$U$1000=Costs!$A432)*(AbschreibungAHKBvD))","v":0},{"$f":"SUM(I$178:I255)-SUM(I$266:I343)+SUMPRODUCT((Aktivierungsjahr=Costs!$A432)*(AbschreibungAGr=Costs!I$353)*('Fixed assets'!$U$2:$U$1000=Costs!$A432)*(AbschreibungAHKBvD))","v":0},{"$f":"SUM(J$178:J255)-SUM(J$266:J343)+SUMPRODUCT((Aktivierungsjahr=Costs!$A432)*(AbschreibungAGr=Costs!J$353)*('Fixed assets'!$U$2:$U$1000=Costs!$A432)*(AbschreibungAHKBvD))","v":0},{"$f":"SUM(K$178:K255)-SUM(K$266:K343)+SUMPRODUCT((Aktivierungsjahr=Costs!$A432)*(AbschreibungAGr=Costs!K$353)*('Fixed assets'!$U$2:$U$1000=Costs!$A432)*(AbschreibungAHKBvD))","v":0},{"$f":"SUM(L$178:L255)-SUM(L$266:L343)+SUMPRODUCT((Aktivierungsjahr=Costs!$A432)*(AbschreibungAGr=Costs!L$353)*('Fixed assets'!$U$2:$U$1000=Costs!$A432)*(AbschreibungAHKBvD))","v":0},{"$f":"SUM(M$178:M255)-SUM(M$266:M343)+SUMPRODUCT((Aktivierungsjahr=Costs!$A432)*(AbschreibungAGr=Costs!M$353)*('Fixed assets'!$U$2:$U$1000=Costs!$A432)*(AbschreibungAHKBvD))","v":0},{"$f":"SUM(N$178:N255)-SUM(N$266:N343)+SUMPRODUCT((Aktivierungsjahr=Costs!$A432)*(AbschreibungAGr=Costs!N$353)*('Fixed assets'!$U$2:$U$1000=Costs!$A432)*(AbschreibungAHKBvD))","v":0},{"$f":"SUM(O$178:O255)-SUM(O$266:O343)+SUMPRODUCT((Aktivierungsjahr=Costs!$A432)*(AbschreibungAGr=Costs!O$353)*('Fixed assets'!$U$2:$U$1000=Costs!$A432)*(AbschreibungAHKBvD))","v":0},{"$f":"SUM(P$178:P255)-SUM(P$266:P343)+SUMPRODUCT((Aktivierungsjahr=Costs!$A432)*(AbschreibungAGr=Costs!P$353)*('Fixed assets'!$U$2:$U$1000=Costs!$A432)*(AbschreibungAHKBvD))","v":0},{"$f":"SUM(Q$178:Q255)-SUM(Q$266:Q343)+SUMPRODUCT((Aktivierungsjahr=Costs!$A432)*(AbschreibungAGr=Costs!Q$353)*('Fixed assets'!$U$2:$U$1000=Costs!$A432)*(AbschreibungAHKBvD))","v":0},{"$f":"SUM(R$178:R255)-SUM(R$266:R343)+SUMPRODUCT((Aktivierungsjahr=Costs!$A432)*(AbschreibungAGr=Costs!R$353)*('Fixed assets'!$U$2:$U$1000=Costs!$A432)*(AbschreibungAHKBvD))","v":0},{"$f":"SUM(S$178:S255)-SUM(S$266:S343)+SUMPRODUCT((Aktivierungsjahr=Costs!$A432)*(AbschreibungAGr=Costs!S$353)*('Fixed assets'!$U$2:$U$1000=Costs!$A432)*(AbschreibungAHKBvD))","v":0},{"$f":"SUM(T$178:T255)-SUM(T$266:T343)+SUMPRODUCT((Aktivierungsjahr=Costs!$A432)*(AbschreibungAGr=Costs!T$353)*('Fixed assets'!$U$2:$U$1000=Costs!$A432)*(AbschreibungAHKBvD))","v":0},{"$f":"SUM(U$178:U255)-SUM(U$266:U343)+SUMPRODUCT((Aktivierungsjahr=Costs!$A432)*(AbschreibungAGr=Costs!U$353)*('Fixed assets'!$U$2:$U$1000=Costs!$A432)*(AbschreibungAHKBvD))","v":0},{"$f":"SUM(V$178:V255)-SUM(V$266:V343)+SUMPRODUCT((Aktivierungsjahr=Costs!$A432)*(AbschreibungAGr=Costs!V$353)*('Fixed assets'!$U$2:$U$1000=Costs!$A432)*(AbschreibungAHKBvD))","v":0},{"$f":"SUM(W$178:W255)-SUM(W$266:W343)+SUMPRODUCT((Aktivierungsjahr=Costs!$A432)*(AbschreibungAGr=Costs!W$353)*('Fixed assets'!$U$2:$U$1000=Costs!$A432)*(AbschreibungAHKBvD))","v":0},{"$f":"SUM(X$178:X255)-SUM(X$266:X343)+SUMPRODUCT((Aktivierungsjahr=Costs!$A432)*(AbschreibungAGr=Costs!X$353)*('Fixed assets'!$U$2:$U$1000=Costs!$A432)*(AbschreibungAHKBvD))","v":0},{"$f":"SUM(Y$178:Y255)-SUM(Y$266:Y343)+SUMPRODUCT((Aktivierungsjahr=Costs!$A432)*(AbschreibungAGr=Costs!Y$353)*('Fixed assets'!$U$2:$U$1000=Costs!$A432)*(AbschreibungAHKBvD))","v":0},{"$f":"SUM(Z$178:Z255)-SUM(Z$266:Z343)+SUMPRODUCT((Aktivierungsjahr=Costs!$A432)*(AbschreibungAGr=Costs!Z$353)*('Fixed assets'!$U$2:$U$1000=Costs!$A432)*(AbschreibungAHKBvD))","v":0},{"$f":"SUM(AA$178:AA255)-SUM(AA$266:AA343)+SUMPRODUCT((Aktivierungsjahr=Costs!$A432)*(AbschreibungAGr=Costs!AA$353)*('Fixed assets'!$U$2:$U$1000=Costs!$A432)*(AbschreibungAHKBvD))","v":0},{"$f":"SUM(AB$178:AB255)-SUM(AB$266:AB343)+SUMPRODUCT((Aktivierungsjahr=Costs!$A432)*(AbschreibungAGr=Costs!AB$353)*('Fixed assets'!$U$2:$U$1000=Costs!$A432)*(AbschreibungAHKBvD))","v":0},{"$f":"SUM(AC$178:AC255)-SUM(AC$266:AC343)+SUMPRODUCT((Aktivierungsjahr=Costs!$A432)*(AbschreibungAGr=Costs!AC$353)*('Fixed assets'!$U$2:$U$1000=Costs!$A432)*(AbschreibungAHKBvD))","v":0},{"$f":"SUM(AD$178:AD255)-SUM(AD$266:AD343)+SUMPRODUCT((Aktivierungsjahr=Costs!$A432)*(AbschreibungAGr=Costs!AD$353)*('Fixed assets'!$U$2:$U$1000=Costs!$A432)*(AbschreibungAHKBvD))","v":0},{"$f":"SUM(AE$178:AE255)-SUM(AE$266:AE343)+SUMPRODUCT((Aktivierungsjahr=Costs!$A432)*(AbschreibungAGr=Costs!AE$353)*('Fixed assets'!$U$2:$U$1000=Costs!$A432)*(AbschreibungAHKBvD))","v":0},{"$f":"SUM(AF$178:AF255)-SUM(AF$266:AF343)+SUMPRODUCT((Aktivierungsjahr=Costs!$A432)*(AbschreibungAGr=Costs!AF$353)*('Fixed assets'!$U$2:$U$1000=Costs!$A432)*(AbschreibungAHKBvD))","v":0},{"$f":"SUM(AG$178:AG255)-SUM(AG$266:AG343)+SUMPRODUCT((Aktivierungsjahr=Costs!$A432)*(AbschreibungAGr=Costs!AG$353)*('Fixed assets'!$U$2:$U$1000=Costs!$A432)*(AbschreibungAHKBvD))","v":0},{"$f":"SUM(AH$178:AH255)-SUM(AH$266:AH343)+SUMPRODUCT((Aktivierungsjahr=Costs!$A432)*(AbschreibungAGr=Costs!AH$353)*('Fixed assets'!$U$2:$U$1000=Costs!$A432)*(AbschreibungAHKBvD))","v":0},{"$f":"SUM(AI$178:AI255)-SUM(AI$266:AI343)+SUMPRODUCT((Aktivierungsjahr=Costs!$A432)*(AbschreibungAGr=Costs!AI$353)*('Fixed assets'!$U$2:$U$1000=Costs!$A432)*(AbschreibungAHKBvD))","v":0},{"$f":"SUM(AJ$178:AJ255)-SUM(AJ$266:AJ343)+SUMPRODUCT((Aktivierungsjahr=Costs!$A432)*(AbschreibungAGr=Costs!AJ$353)*('Fixed assets'!$U$2:$U$1000=Costs!$A432)*(AbschreibungAHKBvD))","v":-8.149072527885437E-10},{"$f":"SUM(AK$178:AK255)-SUM(AK$266:AK343)+SUMPRODUCT((Aktivierungsjahr=Costs!$A432)*(AbschreibungAGr=Costs!AK$353)*('Fixed assets'!$U$2:$U$1000=Costs!$A432)*(AbschreibungAHKBvD))","v":0},{"$f":"SUM(AL$178:AL255)-SUM(AL$266:AL343)+SUMPRODUCT((Aktivierungsjahr=Costs!$A432)*(AbschreibungAGr=Costs!AL$353)*('Fixed assets'!$U$2:$U$1000=Costs!$A432)*(AbschreibungAHKBvD))","v":0},{"$f":"SUM(AM$178:AM255)-SUM(AM$266:AM343)+SUMPRODUCT((Aktivierungsjahr=Costs!$A432)*(AbschreibungAGr=Costs!AM$353)*('Fixed assets'!$U$2:$U$1000=Costs!$A432)*(AbschreibungAHKBvD))","v":0},{"$f":"SUM(AN$178:AN255)-SUM(AN$266:AN343)+SUMPRODUCT((Aktivierungsjahr=Costs!$A432)*(AbschreibungAGr=Costs!AN$353)*('Fixed assets'!$U$2:$U$1000=Costs!$A432)*(AbschreibungAHKBvD))","v":0},{"$f":"SUM(AO$178:AO255)-SUM(AO$266:AO343)+SUMPRODUCT((Aktivierungsjahr=Costs!$A432)*(AbschreibungAGr=Costs!AO$353)*('Fixed assets'!$U$2:$U$1000=Costs!$A432)*(AbschreibungAHKBvD))","v":0},{"$f":"SUM(AP$178:AP255)-SUM(AP$266:AP343)+SUMPRODUCT((Aktivierungsjahr=Costs!$A432)*(AbschreibungAGr=Costs!AP$353)*('Fixed assets'!$U$2:$U$1000=Costs!$A432)*(AbschreibungAHKBvD))","v":0},{"$f":"SUM(AQ$178:AQ255)-SUM(AQ$266:AQ343)+SUMPRODUCT((Aktivierungsjahr=Costs!$A432)*(AbschreibungAGr=Costs!AQ$353)*('Fixed assets'!$U$2:$U$1000=Costs!$A432)*(AbschreibungAHKBvD))","v":0}]
[2094,-8.149072527885437E-10,{"$f":"SUM(C$178:C256)-SUM(C$266:C344)+SUMPRODUCT((Aktivierungsjahr=Costs!$A433)*(AbschreibungAGr=Costs!C$353)*('Fixed assets'!$U$2:$U$1000=Costs!$A433)*(AbschreibungAHKBvD))","v":0},{"$f":"SUM(D$178:D256)-SUM(D$266:D344)+SUMPRODUCT((Aktivierungsjahr=Costs!$A433)*(AbschreibungAGr=Costs!D$353)*('Fixed assets'!$U$2:$U$1000=Costs!$A433)*(AbschreibungAHKBvD))","v":0},{"$f":"SUM(E$178:E256)-SUM(E$266:E344)+SUMPRODUCT((Aktivierungsjahr=Costs!$A433)*(AbschreibungAGr=Costs!E$353)*('Fixed assets'!$U$2:$U$1000=Costs!$A433)*(AbschreibungAHKBvD))","v":0},{"$f":"SUM(F$178:F256)-SUM(F$266:F344)+SUMPRODUCT((Aktivierungsjahr=Costs!$A433)*(AbschreibungAGr=Costs!F$353)*('Fixed assets'!$U$2:$U$1000=Costs!$A433)*(AbschreibungAHKBvD))","v":0},{"$f":"SUM(G$178:G256)-SUM(G$266:G344)+SUMPRODUCT((Aktivierungsjahr=Costs!$A433)*(AbschreibungAGr=Costs!G$353)*('Fixed assets'!$U$2:$U$1000=Costs!$A433)*(AbschreibungAHKBvD))","v":0},{"$f":"SUM(H$178:H256)-SUM(H$266:H344)+SUMPRODUCT((Aktivierungsjahr=Costs!$A433)*(AbschreibungAGr=Costs!H$353)*('Fixed assets'!$U$2:$U$1000=Costs!$A433)*(AbschreibungAHKBvD))","v":0},{"$f":"SUM(I$178:I256)-SUM(I$266:I344)+SUMPRODUCT((Aktivierungsjahr=Costs!$A433)*(AbschreibungAGr=Costs!I$353)*('Fixed assets'!$U$2:$U$1000=Costs!$A433)*(AbschreibungAHKBvD))","v":0},{"$f":"SUM(J$178:J256)-SUM(J$266:J344)+SUMPRODUCT((Aktivierungsjahr=Costs!$A433)*(AbschreibungAGr=Costs!J$353)*('Fixed assets'!$U$2:$U$1000=Costs!$A433)*(AbschreibungAHKBvD))","v":0},{"$f":"SUM(K$178:K256)-SUM(K$266:K344)+SUMPRODUCT((Aktivierungsjahr=Costs!$A433)*(AbschreibungAGr=Costs!K$353)*('Fixed assets'!$U$2:$U$1000=Costs!$A433)*(AbschreibungAHKBvD))","v":0},{"$f":"SUM(L$178:L256)-SUM(L$266:L344)+SUMPRODUCT((Aktivierungsjahr=Costs!$A433)*(AbschreibungAGr=Costs!L$353)*('Fixed assets'!$U$2:$U$1000=Costs!$A433)*(AbschreibungAHKBvD))","v":0},{"$f":"SUM(M$178:M256)-SUM(M$266:M344)+SUMPRODUCT((Aktivierungsjahr=Costs!$A433)*(AbschreibungAGr=Costs!M$353)*('Fixed assets'!$U$2:$U$1000=Costs!$A433)*(AbschreibungAHKBvD))","v":0},{"$f":"SUM(N$178:N256)-SUM(N$266:N344)+SUMPRODUCT((Aktivierungsjahr=Costs!$A433)*(AbschreibungAGr=Costs!N$353)*('Fixed assets'!$U$2:$U$1000=Costs!$A433)*(AbschreibungAHKBvD))","v":0},{"$f":"SUM(O$178:O256)-SUM(O$266:O344)+SUMPRODUCT((Aktivierungsjahr=Costs!$A433)*(AbschreibungAGr=Costs!O$353)*('Fixed assets'!$U$2:$U$1000=Costs!$A433)*(AbschreibungAHKBvD))","v":0},{"$f":"SUM(P$178:P256)-SUM(P$266:P344)+SUMPRODUCT((Aktivierungsjahr=Costs!$A433)*(AbschreibungAGr=Costs!P$353)*('Fixed assets'!$U$2:$U$1000=Costs!$A433)*(AbschreibungAHKBvD))","v":0},{"$f":"SUM(Q$178:Q256)-SUM(Q$266:Q344)+SUMPRODUCT((Aktivierungsjahr=Costs!$A433)*(AbschreibungAGr=Costs!Q$353)*('Fixed assets'!$U$2:$U$1000=Costs!$A433)*(AbschreibungAHKBvD))","v":0},{"$f":"SUM(R$178:R256)-SUM(R$266:R344)+SUMPRODUCT((Aktivierungsjahr=Costs!$A433)*(AbschreibungAGr=Costs!R$353)*('Fixed assets'!$U$2:$U$1000=Costs!$A433)*(AbschreibungAHKBvD))","v":0},{"$f":"SUM(S$178:S256)-SUM(S$266:S344)+SUMPRODUCT((Aktivierungsjahr=Costs!$A433)*(AbschreibungAGr=Costs!S$353)*('Fixed assets'!$U$2:$U$1000=Costs!$A433)*(AbschreibungAHKBvD))","v":0},{"$f":"SUM(T$178:T256)-SUM(T$266:T344)+SUMPRODUCT((Aktivierungsjahr=Costs!$A433)*(AbschreibungAGr=Costs!T$353)*('Fixed assets'!$U$2:$U$1000=Costs!$A433)*(AbschreibungAHKBvD))","v":0},{"$f":"SUM(U$178:U256)-SUM(U$266:U344)+SUMPRODUCT((Aktivierungsjahr=Costs!$A433)*(AbschreibungAGr=Costs!U$353)*('Fixed assets'!$U$2:$U$1000=Costs!$A433)*(AbschreibungAHKBvD))","v":0},{"$f":"SUM(V$178:V256)-SUM(V$266:V344)+SUMPRODUCT((Aktivierungsjahr=Costs!$A433)*(AbschreibungAGr=Costs!V$353)*('Fixed assets'!$U$2:$U$1000=Costs!$A433)*(AbschreibungAHKBvD))","v":0},{"$f":"SUM(W$178:W256)-SUM(W$266:W344)+SUMPRODUCT((Aktivierungsjahr=Costs!$A433)*(AbschreibungAGr=Costs!W$353)*('Fixed assets'!$U$2:$U$1000=Costs!$A433)*(AbschreibungAHKBvD))","v":0},{"$f":"SUM(X$178:X256)-SUM(X$266:X344)+SUMPRODUCT((Aktivierungsjahr=Costs!$A433)*(AbschreibungAGr=Costs!X$353)*('Fixed assets'!$U$2:$U$1000=Costs!$A433)*(AbschreibungAHKBvD))","v":0},{"$f":"SUM(Y$178:Y256)-SUM(Y$266:Y344)+SUMPRODUCT((Aktivierungsjahr=Costs!$A433)*(AbschreibungAGr=Costs!Y$353)*('Fixed assets'!$U$2:$U$1000=Costs!$A433)*(AbschreibungAHKBvD))","v":0},{"$f":"SUM(Z$178:Z256)-SUM(Z$266:Z344)+SUMPRODUCT((Aktivierungsjahr=Costs!$A433)*(AbschreibungAGr=Costs!Z$353)*('Fixed assets'!$U$2:$U$1000=Costs!$A433)*(AbschreibungAHKBvD))","v":0},{"$f":"SUM(AA$178:AA256)-SUM(AA$266:AA344)+SUMPRODUCT((Aktivierungsjahr=Costs!$A433)*(AbschreibungAGr=Costs!AA$353)*('Fixed assets'!$U$2:$U$1000=Costs!$A433)*(AbschreibungAHKBvD))","v":0},{"$f":"SUM(AB$178:AB256)-SUM(AB$266:AB344)+SUMPRODUCT((Aktivierungsjahr=Costs!$A433)*(AbschreibungAGr=Costs!AB$353)*('Fixed assets'!$U$2:$U$1000=Costs!$A433)*(AbschreibungAHKBvD))","v":0},{"$f":"SUM(AC$178:AC256)-SUM(AC$266:AC344)+SUMPRODUCT((Aktivierungsjahr=Costs!$A433)*(AbschreibungAGr=Costs!AC$353)*('Fixed assets'!$U$2:$U$1000=Costs!$A433)*(AbschreibungAHKBvD))","v":0},{"$f":"SUM(AD$178:AD256)-SUM(AD$266:AD344)+SUMPRODUCT((Aktivierungsjahr=Costs!$A433)*(AbschreibungAGr=Costs!AD$353)*('Fixed assets'!$U$2:$U$1000=Costs!$A433)*(AbschreibungAHKBvD))","v":0},{"$f":"SUM(AE$178:AE256)-SUM(AE$266:AE344)+SUMPRODUCT((Aktivierungsjahr=Costs!$A433)*(AbschreibungAGr=Costs!AE$353)*('Fixed assets'!$U$2:$U$1000=Costs!$A433)*(AbschreibungAHKBvD))","v":0},{"$f":"SUM(AF$178:AF256)-SUM(AF$266:AF344)+SUMPRODUCT((Aktivierungsjahr=Costs!$A433)*(AbschreibungAGr=Costs!AF$353)*('Fixed assets'!$U$2:$U$1000=Costs!$A433)*(AbschreibungAHKBvD))","v":0},{"$f":"SUM(AG$178:AG256)-SUM(AG$266:AG344)+SUMPRODUCT((Aktivierungsjahr=Costs!$A433)*(AbschreibungAGr=Costs!AG$353)*('Fixed assets'!$U$2:$U$1000=Costs!$A433)*(AbschreibungAHKBvD))","v":0},{"$f":"SUM(AH$178:AH256)-SUM(AH$266:AH344)+SUMPRODUCT((Aktivierungsjahr=Costs!$A433)*(AbschreibungAGr=Costs!AH$353)*('Fixed assets'!$U$2:$U$1000=Costs!$A433)*(AbschreibungAHKBvD))","v":0},{"$f":"SUM(AI$178:AI256)-SUM(AI$266:AI344)+SUMPRODUCT((Aktivierungsjahr=Costs!$A433)*(AbschreibungAGr=Costs!AI$353)*('Fixed assets'!$U$2:$U$1000=Costs!$A433)*(AbschreibungAHKBvD))","v":0},{"$f":"SUM(AJ$178:AJ256)-SUM(AJ$266:AJ344)+SUMPRODUCT((Aktivierungsjahr=Costs!$A433)*(AbschreibungAGr=Costs!AJ$353)*('Fixed assets'!$U$2:$U$1000=Costs!$A433)*(AbschreibungAHKBvD))","v":-8.149072527885437E-10},{"$f":"SUM(AK$178:AK256)-SUM(AK$266:AK344)+SUMPRODUCT((Aktivierungsjahr=Costs!$A433)*(AbschreibungAGr=Costs!AK$353)*('Fixed assets'!$U$2:$U$1000=Costs!$A433)*(AbschreibungAHKBvD))","v":0},{"$f":"SUM(AL$178:AL256)-SUM(AL$266:AL344)+SUMPRODUCT((Aktivierungsjahr=Costs!$A433)*(AbschreibungAGr=Costs!AL$353)*('Fixed assets'!$U$2:$U$1000=Costs!$A433)*(AbschreibungAHKBvD))","v":0},{"$f":"SUM(AM$178:AM256)-SUM(AM$266:AM344)+SUMPRODUCT((Aktivierungsjahr=Costs!$A433)*(AbschreibungAGr=Costs!AM$353)*('Fixed assets'!$U$2:$U$1000=Costs!$A433)*(AbschreibungAHKBvD))","v":0},{"$f":"SUM(AN$178:AN256)-SUM(AN$266:AN344)+SUMPRODUCT((Aktivierungsjahr=Costs!$A433)*(AbschreibungAGr=Costs!AN$353)*('Fixed assets'!$U$2:$U$1000=Costs!$A433)*(AbschreibungAHKBvD))","v":0},{"$f":"SUM(AO$178:AO256)-SUM(AO$266:AO344)+SUMPRODUCT((Aktivierungsjahr=Costs!$A433)*(AbschreibungAGr=Costs!AO$353)*('Fixed assets'!$U$2:$U$1000=Costs!$A433)*(AbschreibungAHKBvD))","v":0},{"$f":"SUM(AP$178:AP256)-SUM(AP$266:AP344)+SUMPRODUCT((Aktivierungsjahr=Costs!$A433)*(AbschreibungAGr=Costs!AP$353)*('Fixed assets'!$U$2:$U$1000=Costs!$A433)*(AbschreibungAHKBvD))","v":0},{"$f":"SUM(AQ$178:AQ256)-SUM(AQ$266:AQ344)+SUMPRODUCT((Aktivierungsjahr=Costs!$A433)*(AbschreibungAGr=Costs!AQ$353)*('Fixed assets'!$U$2:$U$1000=Costs!$A433)*(AbschreibungAHKBvD))","v":0}]
[2095,{"$f":"SUM(C434:AQ434)","v":-8.149072527885437E-10},{"$f":"SUM(C$178:C257)-SUM(C$266:C345)+SUMPRODUCT((Aktivierungsjahr=Costs!$A434)*(AbschreibungAGr=Costs!C$353)*('Fixed assets'!$U$2:$U$1000=Costs!$A434)*(AbschreibungAHKBvD))","v":0},{"$f":"SUM(D$178:D257)-SUM(D$266:D345)+SUMPRODUCT((Aktivierungsjahr=Costs!$A434)*(AbschreibungAGr=Costs!D$353)*('Fixed assets'!$U$2:$U$1000=Costs!$A434)*(AbschreibungAHKBvD))","v":0},{"$f":"SUM(E$178:E257)-SUM(E$266:E345)+SUMPRODUCT((Aktivierungsjahr=Costs!$A434)*(AbschreibungAGr=Costs!E$353)*('Fixed assets'!$U$2:$U$1000=Costs!$A434)*(AbschreibungAHKBvD))","v":0},{"$f":"SUM(F$178:F257)-SUM(F$266:F345)+SUMPRODUCT((Aktivierungsjahr=Costs!$A434)*(AbschreibungAGr=Costs!F$353)*('Fixed assets'!$U$2:$U$1000=Costs!$A434)*(AbschreibungAHKBvD))","v":0},{"$f":"SUM(G$178:G257)-SUM(G$266:G345)+SUMPRODUCT((Aktivierungsjahr=Costs!$A434)*(AbschreibungAGr=Costs!G$353)*('Fixed assets'!$U$2:$U$1000=Costs!$A434)*(AbschreibungAHKBvD))","v":0},{"$f":"SUM(H$178:H257)-SUM(H$266:H345)+SUMPRODUCT((Aktivierungsjahr=Costs!$A434)*(AbschreibungAGr=Costs!H$353)*('Fixed assets'!$U$2:$U$1000=Costs!$A434)*(AbschreibungAHKBvD))","v":0},{"$f":"SUM(I$178:I257)-SUM(I$266:I345)+SUMPRODUCT((Aktivierungsjahr=Costs!$A434)*(AbschreibungAGr=Costs!I$353)*('Fixed assets'!$U$2:$U$1000=Costs!$A434)*(AbschreibungAHKBvD))","v":0},{"$f":"SUM(J$178:J257)-SUM(J$266:J345)+SUMPRODUCT((Aktivierungsjahr=Costs!$A434)*(AbschreibungAGr=Costs!J$353)*('Fixed assets'!$U$2:$U$1000=Costs!$A434)*(AbschreibungAHKBvD))","v":0},{"$f":"SUM(K$178:K257)-SUM(K$266:K345)+SUMPRODUCT((Aktivierungsjahr=Costs!$A434)*(AbschreibungAGr=Costs!K$353)*('Fixed assets'!$U$2:$U$1000=Costs!$A434)*(AbschreibungAHKBvD))","v":0},{"$f":"SUM(L$178:L257)-SUM(L$266:L345)+SUMPRODUCT((Aktivierungsjahr=Costs!$A434)*(AbschreibungAGr=Costs!L$353)*('Fixed assets'!$U$2:$U$1000=Costs!$A434)*(AbschreibungAHKBvD))","v":0},{"$f":"SUM(M$178:M257)-SUM(M$266:M345)+SUMPRODUCT((Aktivierungsjahr=Costs!$A434)*(AbschreibungAGr=Costs!M$353)*('Fixed assets'!$U$2:$U$1000=Costs!$A434)*(AbschreibungAHKBvD))","v":0},{"$f":"SUM(N$178:N257)-SUM(N$266:N345)+SUMPRODUCT((Aktivierungsjahr=Costs!$A434)*(AbschreibungAGr=Costs!N$353)*('Fixed assets'!$U$2:$U$1000=Costs!$A434)*(AbschreibungAHKBvD))","v":0},{"$f":"SUM(O$178:O257)-SUM(O$266:O345)+SUMPRODUCT((Aktivierungsjahr=Costs!$A434)*(AbschreibungAGr=Costs!O$353)*('Fixed assets'!$U$2:$U$1000=Costs!$A434)*(AbschreibungAHKBvD))","v":0},{"$f":"SUM(P$178:P257)-SUM(P$266:P345)+SUMPRODUCT((Aktivierungsjahr=Costs!$A434)*(AbschreibungAGr=Costs!P$353)*('Fixed assets'!$U$2:$U$1000=Costs!$A434)*(AbschreibungAHKBvD))","v":0},{"$f":"SUM(Q$178:Q257)-SUM(Q$266:Q345)+SUMPRODUCT((Aktivierungsjahr=Costs!$A434)*(AbschreibungAGr=Costs!Q$353)*('Fixed assets'!$U$2:$U$1000=Costs!$A434)*(AbschreibungAHKBvD))","v":0},{"$f":"SUM(R$178:R257)-SUM(R$266:R345)+SUMPRODUCT((Aktivierungsjahr=Costs!$A434)*(AbschreibungAGr=Costs!R$353)*('Fixed assets'!$U$2:$U$1000=Costs!$A434)*(AbschreibungAHKBvD))","v":0},{"$f":"SUM(S$178:S257)-SUM(S$266:S345)+SUMPRODUCT((Aktivierungsjahr=Costs!$A434)*(AbschreibungAGr=Costs!S$353)*('Fixed assets'!$U$2:$U$1000=Costs!$A434)*(AbschreibungAHKBvD))","v":0},{"$f":"SUM(T$178:T257)-SUM(T$266:T345)+SUMPRODUCT((Aktivierungsjahr=Costs!$A434)*(AbschreibungAGr=Costs!T$353)*('Fixed assets'!$U$2:$U$1000=Costs!$A434)*(AbschreibungAHKBvD))","v":0},{"$f":"SUM(U$178:U257)-SUM(U$266:U345)+SUMPRODUCT((Aktivierungsjahr=Costs!$A434)*(AbschreibungAGr=Costs!U$353)*('Fixed assets'!$U$2:$U$1000=Costs!$A434)*(AbschreibungAHKBvD))","v":0},{"$f":"SUM(V$178:V257)-SUM(V$266:V345)+SUMPRODUCT((Aktivierungsjahr=Costs!$A434)*(AbschreibungAGr=Costs!V$353)*('Fixed assets'!$U$2:$U$1000=Costs!$A434)*(AbschreibungAHKBvD))","v":0},{"$f":"SUM(W$178:W257)-SUM(W$266:W345)+SUMPRODUCT((Aktivierungsjahr=Costs!$A434)*(AbschreibungAGr=Costs!W$353)*('Fixed assets'!$U$2:$U$1000=Costs!$A434)*(AbschreibungAHKBvD))","v":0},{"$f":"SUM(X$178:X257)-SUM(X$266:X345)+SUMPRODUCT((Aktivierungsjahr=Costs!$A434)*(AbschreibungAGr=Costs!X$353)*('Fixed assets'!$U$2:$U$1000=Costs!$A434)*(AbschreibungAHKBvD))","v":0},{"$f":"SUM(Y$178:Y257)-SUM(Y$266:Y345)+SUMPRODUCT((Aktivierungsjahr=Costs!$A434)*(AbschreibungAGr=Costs!Y$353)*('Fixed assets'!$U$2:$U$1000=Costs!$A434)*(AbschreibungAHKBvD))","v":0},{"$f":"SUM(Z$178:Z257)-SUM(Z$266:Z345)+SUMPRODUCT((Aktivierungsjahr=Costs!$A434)*(AbschreibungAGr=Costs!Z$353)*('Fixed assets'!$U$2:$U$1000=Costs!$A434)*(AbschreibungAHKBvD))","v":0},{"$f":"SUM(AA$178:AA257)-SUM(AA$266:AA345)+SUMPRODUCT((Aktivierungsjahr=Costs!$A434)*(AbschreibungAGr=Costs!AA$353)*('Fixed assets'!$U$2:$U$1000=Costs!$A434)*(AbschreibungAHKBvD))","v":0},{"$f":"SUM(AB$178:AB257)-SUM(AB$266:AB345)+SUMPRODUCT((Aktivierungsjahr=Costs!$A434)*(AbschreibungAGr=Costs!AB$353)*('Fixed assets'!$U$2:$U$1000=Costs!$A434)*(AbschreibungAHKBvD))","v":0},{"$f":"SUM(AC$178:AC257)-SUM(AC$266:AC345)+SUMPRODUCT((Aktivierungsjahr=Costs!$A434)*(AbschreibungAGr=Costs!AC$353)*('Fixed assets'!$U$2:$U$1000=Costs!$A434)*(AbschreibungAHKBvD))","v":0},{"$f":"SUM(AD$178:AD257)-SUM(AD$266:AD345)+SUMPRODUCT((Aktivierungsjahr=Costs!$A434)*(AbschreibungAGr=Costs!AD$353)*('Fixed assets'!$U$2:$U$1000=Costs!$A434)*(AbschreibungAHKBvD))","v":0},{"$f":"SUM(AE$178:AE257)-SUM(AE$266:AE345)+SUMPRODUCT((Aktivierungsjahr=Costs!$A434)*(AbschreibungAGr=Costs!AE$353)*('Fixed assets'!$U$2:$U$1000=Costs!$A434)*(AbschreibungAHKBvD))","v":0},{"$f":"SUM(AF$178:AF257)-SUM(AF$266:AF345)+SUMPRODUCT((Aktivierungsjahr=Costs!$A434)*(AbschreibungAGr=Costs!AF$353)*('Fixed assets'!$U$2:$U$1000=Costs!$A434)*(AbschreibungAHKBvD))","v":0},{"$f":"SUM(AG$178:AG257)-SUM(AG$266:AG345)+SUMPRODUCT((Aktivierungsjahr=Costs!$A434)*(AbschreibungAGr=Costs!AG$353)*('Fixed assets'!$U$2:$U$1000=Costs!$A434)*(AbschreibungAHKBvD))","v":0},{"$f":"SUM(AH$178:AH257)-SUM(AH$266:AH345)+SUMPRODUCT((Aktivierungsjahr=Costs!$A434)*(AbschreibungAGr=Costs!AH$353)*('Fixed assets'!$U$2:$U$1000=Costs!$A434)*(AbschreibungAHKBvD))","v":0},{"$f":"SUM(AI$178:AI257)-SUM(AI$266:AI345)+SUMPRODUCT((Aktivierungsjahr=Costs!$A434)*(AbschreibungAGr=Costs!AI$353)*('Fixed assets'!$U$2:$U$1000=Costs!$A434)*(AbschreibungAHKBvD))","v":0},{"$f":"SUM(AJ$178:AJ257)-SUM(AJ$266:AJ345)+SUMPRODUCT((Aktivierungsjahr=Costs!$A434)*(AbschreibungAGr=Costs!AJ$353)*('Fixed assets'!$U$2:$U$1000=Costs!$A434)*(AbschreibungAHKBvD))","v":-8.149072527885437E-10},{"$f":"SUM(AK$178:AK257)-SUM(AK$266:AK345)+SUMPRODUCT((Aktivierungsjahr=Costs!$A434)*(AbschreibungAGr=Costs!AK$353)*('Fixed assets'!$U$2:$U$1000=Costs!$A434)*(AbschreibungAHKBvD))","v":0},{"$f":"SUM(AL$178:AL257)-SUM(AL$266:AL345)+SUMPRODUCT((Aktivierungsjahr=Costs!$A434)*(AbschreibungAGr=Costs!AL$353)*('Fixed assets'!$U$2:$U$1000=Costs!$A434)*(AbschreibungAHKBvD))","v":0},{"$f":"SUM(AM$178:AM257)-SUM(AM$266:AM345)+SUMPRODUCT((Aktivierungsjahr=Costs!$A434)*(AbschreibungAGr=Costs!AM$353)*('Fixed assets'!$U$2:$U$1000=Costs!$A434)*(AbschreibungAHKBvD))","v":0},{"$f":"SUM(AN$178:AN257)-SUM(AN$266:AN345)+SUMPRODUCT((Aktivierungsjahr=Costs!$A434)*(AbschreibungAGr=Costs!AN$353)*('Fixed assets'!$U$2:$U$1000=Costs!$A434)*(AbschreibungAHKBvD))","v":0},{"$f":"SUM(AO$178:AO257)-SUM(AO$266:AO345)+SUMPRODUCT((Aktivierungsjahr=Costs!$A434)*(AbschreibungAGr=Costs!AO$353)*('Fixed assets'!$U$2:$U$1000=Costs!$A434)*(AbschreibungAHKBvD))","v":0},{"$f":"SUM(AP$178:AP257)-SUM(AP$266:AP345)+SUMPRODUCT((Aktivierungsjahr=Costs!$A434)*(AbschreibungAGr=Costs!AP$353)*('Fixed assets'!$U$2:$U$1000=Costs!$A434)*(AbschreibungAHKBvD))","v":0},{"$f":"SUM(AQ$178:AQ257)-SUM(AQ$266:AQ345)+SUMPRODUCT((Aktivierungsjahr=Costs!$A434)*(AbschreibungAGr=Costs!AQ$353)*('Fixed assets'!$U$2:$U$1000=Costs!$A434)*(AbschreibungAHKBvD))","v":0}]
[2096,-8.149072527885437E-10,{"$f":"SUM(C$178:C258)-SUM(C$266:C346)+SUMPRODUCT((Aktivierungsjahr=Costs!$A435)*(AbschreibungAGr=Costs!C$353)*('Fixed assets'!$U$2:$U$1000=Costs!$A435)*(AbschreibungAHKBvD))","v":0},{"$f":"SUM(D$178:D258)-SUM(D$266:D346)+SUMPRODUCT((Aktivierungsjahr=Costs!$A435)*(AbschreibungAGr=Costs!D$353)*('Fixed assets'!$U$2:$U$1000=Costs!$A435)*(AbschreibungAHKBvD))","v":0},{"$f":"SUM(E$178:E258)-SUM(E$266:E346)+SUMPRODUCT((Aktivierungsjahr=Costs!$A435)*(AbschreibungAGr=Costs!E$353)*('Fixed assets'!$U$2:$U$1000=Costs!$A435)*(AbschreibungAHKBvD))","v":0},{"$f":"SUM(F$178:F258)-SUM(F$266:F346)+SUMPRODUCT((Aktivierungsjahr=Costs!$A435)*(AbschreibungAGr=Costs!F$353)*('Fixed assets'!$U$2:$U$1000=Costs!$A435)*(AbschreibungAHKBvD))","v":0},{"$f":"SUM(G$178:G258)-SUM(G$266:G346)+SUMPRODUCT((Aktivierungsjahr=Costs!$A435)*(AbschreibungAGr=Costs!G$353)*('Fixed assets'!$U$2:$U$1000=Costs!$A435)*(AbschreibungAHKBvD))","v":0},{"$f":"SUM(H$178:H258)-SUM(H$266:H346)+SUMPRODUCT((Aktivierungsjahr=Costs!$A435)*(AbschreibungAGr=Costs!H$353)*('Fixed assets'!$U$2:$U$1000=Costs!$A435)*(AbschreibungAHKBvD))","v":0},{"$f":"SUM(I$178:I258)-SUM(I$266:I346)+SUMPRODUCT((Aktivierungsjahr=Costs!$A435)*(AbschreibungAGr=Costs!I$353)*('Fixed assets'!$U$2:$U$1000=Costs!$A435)*(AbschreibungAHKBvD))","v":0},{"$f":"SUM(J$178:J258)-SUM(J$266:J346)+SUMPRODUCT((Aktivierungsjahr=Costs!$A435)*(AbschreibungAGr=Costs!J$353)*('Fixed assets'!$U$2:$U$1000=Costs!$A435)*(AbschreibungAHKBvD))","v":0},{"$f":"SUM(K$178:K258)-SUM(K$266:K346)+SUMPRODUCT((Aktivierungsjahr=Costs!$A435)*(AbschreibungAGr=Costs!K$353)*('Fixed assets'!$U$2:$U$1000=Costs!$A435)*(AbschreibungAHKBvD))","v":0},{"$f":"SUM(L$178:L258)-SUM(L$266:L346)+SUMPRODUCT((Aktivierungsjahr=Costs!$A435)*(AbschreibungAGr=Costs!L$353)*('Fixed assets'!$U$2:$U$1000=Costs!$A435)*(AbschreibungAHKBvD))","v":0},{"$f":"SUM(M$178:M258)-SUM(M$266:M346)+SUMPRODUCT((Aktivierungsjahr=Costs!$A435)*(AbschreibungAGr=Costs!M$353)*('Fixed assets'!$U$2:$U$1000=Costs!$A435)*(AbschreibungAHKBvD))","v":0},{"$f":"SUM(N$178:N258)-SUM(N$266:N346)+SUMPRODUCT((Aktivierungsjahr=Costs!$A435)*(AbschreibungAGr=Costs!N$353)*('Fixed assets'!$U$2:$U$1000=Costs!$A435)*(AbschreibungAHKBvD))","v":0},{"$f":"SUM(O$178:O258)-SUM(O$266:O346)+SUMPRODUCT((Aktivierungsjahr=Costs!$A435)*(AbschreibungAGr=Costs!O$353)*('Fixed assets'!$U$2:$U$1000=Costs!$A435)*(AbschreibungAHKBvD))","v":0},{"$f":"SUM(P$178:P258)-SUM(P$266:P346)+SUMPRODUCT((Aktivierungsjahr=Costs!$A435)*(AbschreibungAGr=Costs!P$353)*('Fixed assets'!$U$2:$U$1000=Costs!$A435)*(AbschreibungAHKBvD))","v":0},{"$f":"SUM(Q$178:Q258)-SUM(Q$266:Q346)+SUMPRODUCT((Aktivierungsjahr=Costs!$A435)*(AbschreibungAGr=Costs!Q$353)*('Fixed assets'!$U$2:$U$1000=Costs!$A435)*(AbschreibungAHKBvD))","v":0},{"$f":"SUM(R$178:R258)-SUM(R$266:R346)+SUMPRODUCT((Aktivierungsjahr=Costs!$A435)*(AbschreibungAGr=Costs!R$353)*('Fixed assets'!$U$2:$U$1000=Costs!$A435)*(AbschreibungAHKBvD))","v":0},{"$f":"SUM(S$178:S258)-SUM(S$266:S346)+SUMPRODUCT((Aktivierungsjahr=Costs!$A435)*(AbschreibungAGr=Costs!S$353)*('Fixed assets'!$U$2:$U$1000=Costs!$A435)*(AbschreibungAHKBvD))","v":0},{"$f":"SUM(T$178:T258)-SUM(T$266:T346)+SUMPRODUCT((Aktivierungsjahr=Costs!$A435)*(AbschreibungAGr=Costs!T$353)*('Fixed assets'!$U$2:$U$1000=Costs!$A435)*(AbschreibungAHKBvD))","v":0},{"$f":"SUM(U$178:U258)-SUM(U$266:U346)+SUMPRODUCT((Aktivierungsjahr=Costs!$A435)*(AbschreibungAGr=Costs!U$353)*('Fixed assets'!$U$2:$U$1000=Costs!$A435)*(AbschreibungAHKBvD))","v":0},{"$f":"SUM(V$178:V258)-SUM(V$266:V346)+SUMPRODUCT((Aktivierungsjahr=Costs!$A435)*(AbschreibungAGr=Costs!V$353)*('Fixed assets'!$U$2:$U$1000=Costs!$A435)*(AbschreibungAHKBvD))","v":0},{"$f":"SUM(W$178:W258)-SUM(W$266:W346)+SUMPRODUCT((Aktivierungsjahr=Costs!$A435)*(AbschreibungAGr=Costs!W$353)*('Fixed assets'!$U$2:$U$1000=Costs!$A435)*(AbschreibungAHKBvD))","v":0},{"$f":"SUM(X$178:X258)-SUM(X$266:X346)+SUMPRODUCT((Aktivierungsjahr=Costs!$A435)*(AbschreibungAGr=Costs!X$353)*('Fixed assets'!$U$2:$U$1000=Costs!$A435)*(AbschreibungAHKBvD))","v":0},{"$f":"SUM(Y$178:Y258)-SUM(Y$266:Y346)+SUMPRODUCT((Aktivierungsjahr=Costs!$A435)*(AbschreibungAGr=Costs!Y$353)*('Fixed assets'!$U$2:$U$1000=Costs!$A435)*(AbschreibungAHKBvD))","v":0},{"$f":"SUM(Z$178:Z258)-SUM(Z$266:Z346)+SUMPRODUCT((Aktivierungsjahr=Costs!$A435)*(AbschreibungAGr=Costs!Z$353)*('Fixed assets'!$U$2:$U$1000=Costs!$A435)*(AbschreibungAHKBvD))","v":0},{"$f":"SUM(AA$178:AA258)-SUM(AA$266:AA346)+SUMPRODUCT((Aktivierungsjahr=Costs!$A435)*(AbschreibungAGr=Costs!AA$353)*('Fixed assets'!$U$2:$U$1000=Costs!$A435)*(AbschreibungAHKBvD))","v":0},{"$f":"SUM(AB$178:AB258)-SUM(AB$266:AB346)+SUMPRODUCT((Aktivierungsjahr=Costs!$A435)*(AbschreibungAGr=Costs!AB$353)*('Fixed assets'!$U$2:$U$1000=Costs!$A435)*(AbschreibungAHKBvD))","v":0},{"$f":"SUM(AC$178:AC258)-SUM(AC$266:AC346)+SUMPRODUCT((Aktivierungsjahr=Costs!$A435)*(AbschreibungAGr=Costs!AC$353)*('Fixed assets'!$U$2:$U$1000=Costs!$A435)*(AbschreibungAHKBvD))","v":0},{"$f":"SUM(AD$178:AD258)-SUM(AD$266:AD346)+SUMPRODUCT((Aktivierungsjahr=Costs!$A435)*(AbschreibungAGr=Costs!AD$353)*('Fixed assets'!$U$2:$U$1000=Costs!$A435)*(AbschreibungAHKBvD))","v":0},{"$f":"SUM(AE$178:AE258)-SUM(AE$266:AE346)+SUMPRODUCT((Aktivierungsjahr=Costs!$A435)*(AbschreibungAGr=Costs!AE$353)*('Fixed assets'!$U$2:$U$1000=Costs!$A435)*(AbschreibungAHKBvD))","v":0},{"$f":"SUM(AF$178:AF258)-SUM(AF$266:AF346)+SUMPRODUCT((Aktivierungsjahr=Costs!$A435)*(AbschreibungAGr=Costs!AF$353)*('Fixed assets'!$U$2:$U$1000=Costs!$A435)*(AbschreibungAHKBvD))","v":0},{"$f":"SUM(AG$178:AG258)-SUM(AG$266:AG346)+SUMPRODUCT((Aktivierungsjahr=Costs!$A435)*(AbschreibungAGr=Costs!AG$353)*('Fixed assets'!$U$2:$U$1000=Costs!$A435)*(AbschreibungAHKBvD))","v":0},{"$f":"SUM(AH$178:AH258)-SUM(AH$266:AH346)+SUMPRODUCT((Aktivierungsjahr=Costs!$A435)*(AbschreibungAGr=Costs!AH$353)*('Fixed assets'!$U$2:$U$1000=Costs!$A435)*(AbschreibungAHKBvD))","v":0},{"$f":"SUM(AI$178:AI258)-SUM(AI$266:AI346)+SUMPRODUCT((Aktivierungsjahr=Costs!$A435)*(AbschreibungAGr=Costs!AI$353)*('Fixed assets'!$U$2:$U$1000=Costs!$A435)*(AbschreibungAHKBvD))","v":0},{"$f":"SUM(AJ$178:AJ258)-SUM(AJ$266:AJ346)+SUMPRODUCT((Aktivierungsjahr=Costs!$A435)*(AbschreibungAGr=Costs!AJ$353)*('Fixed assets'!$U$2:$U$1000=Costs!$A435)*(AbschreibungAHKBvD))","v":-8.149072527885437E-10},{"$f":"SUM(AK$178:AK258)-SUM(AK$266:AK346)+SUMPRODUCT((Aktivierungsjahr=Costs!$A435)*(AbschreibungAGr=Costs!AK$353)*('Fixed assets'!$U$2:$U$1000=Costs!$A435)*(AbschreibungAHKBvD))","v":0},{"$f":"SUM(AL$178:AL258)-SUM(AL$266:AL346)+SUMPRODUCT((Aktivierungsjahr=Costs!$A435)*(AbschreibungAGr=Costs!AL$353)*('Fixed assets'!$U$2:$U$1000=Costs!$A435)*(AbschreibungAHKBvD))","v":0},{"$f":"SUM(AM$178:AM258)-SUM(AM$266:AM346)+SUMPRODUCT((Aktivierungsjahr=Costs!$A435)*(AbschreibungAGr=Costs!AM$353)*('Fixed assets'!$U$2:$U$1000=Costs!$A435)*(AbschreibungAHKBvD))","v":0},{"$f":"SUM(AN$178:AN258)-SUM(AN$266:AN346)+SUMPRODUCT((Aktivierungsjahr=Costs!$A435)*(AbschreibungAGr=Costs!AN$353)*('Fixed assets'!$U$2:$U$1000=Costs!$A435)*(AbschreibungAHKBvD))","v":0},{"$f":"SUM(AO$178:AO258)-SUM(AO$266:AO346)+SUMPRODUCT((Aktivierungsjahr=Costs!$A435)*(AbschreibungAGr=Costs!AO$353)*('Fixed assets'!$U$2:$U$1000=Costs!$A435)*(AbschreibungAHKBvD))","v":0},{"$f":"SUM(AP$178:AP258)-SUM(AP$266:AP346)+SUMPRODUCT((Aktivierungsjahr=Costs!$A435)*(AbschreibungAGr=Costs!AP$353)*('Fixed assets'!$U$2:$U$1000=Costs!$A435)*(AbschreibungAHKBvD))","v":0},{"$f":"SUM(AQ$178:AQ258)-SUM(AQ$266:AQ346)+SUMPRODUCT((Aktivierungsjahr=Costs!$A435)*(AbschreibungAGr=Costs!AQ$353)*('Fixed assets'!$U$2:$U$1000=Costs!$A435)*(AbschreibungAHKBvD))","v":0}]
[2097,-8.149072527885437E-10,{"$f":"SUM(C$178:C259)-SUM(C$266:C347)+SUMPRODUCT((Aktivierungsjahr=Costs!$A436)*(AbschreibungAGr=Costs!C$353)*('Fixed assets'!$U$2:$U$1000=Costs!$A436)*(AbschreibungAHKBvD))","v":0},{"$f":"SUM(D$178:D259)-SUM(D$266:D347)+SUMPRODUCT((Aktivierungsjahr=Costs!$A436)*(AbschreibungAGr=Costs!D$353)*('Fixed assets'!$U$2:$U$1000=Costs!$A436)*(AbschreibungAHKBvD))","v":0},{"$f":"SUM(E$178:E259)-SUM(E$266:E347)+SUMPRODUCT((Aktivierungsjahr=Costs!$A436)*(AbschreibungAGr=Costs!E$353)*('Fixed assets'!$U$2:$U$1000=Costs!$A436)*(AbschreibungAHKBvD))","v":0},{"$f":"SUM(F$178:F259)-SUM(F$266:F347)+SUMPRODUCT((Aktivierungsjahr=Costs!$A436)*(AbschreibungAGr=Costs!F$353)*('Fixed assets'!$U$2:$U$1000=Costs!$A436)*(AbschreibungAHKBvD))","v":0},{"$f":"SUM(G$178:G259)-SUM(G$266:G347)+SUMPRODUCT((Aktivierungsjahr=Costs!$A436)*(AbschreibungAGr=Costs!G$353)*('Fixed assets'!$U$2:$U$1000=Costs!$A436)*(AbschreibungAHKBvD))","v":0},{"$f":"SUM(H$178:H259)-SUM(H$266:H347)+SUMPRODUCT((Aktivierungsjahr=Costs!$A436)*(AbschreibungAGr=Costs!H$353)*('Fixed assets'!$U$2:$U$1000=Costs!$A436)*(AbschreibungAHKBvD))","v":0},{"$f":"SUM(I$178:I259)-SUM(I$266:I347)+SUMPRODUCT((Aktivierungsjahr=Costs!$A436)*(AbschreibungAGr=Costs!I$353)*('Fixed assets'!$U$2:$U$1000=Costs!$A436)*(AbschreibungAHKBvD))","v":0},{"$f":"SUM(J$178:J259)-SUM(J$266:J347)+SUMPRODUCT((Aktivierungsjahr=Costs!$A436)*(AbschreibungAGr=Costs!J$353)*('Fixed assets'!$U$2:$U$1000=Costs!$A436)*(AbschreibungAHKBvD))","v":0},{"$f":"SUM(K$178:K259)-SUM(K$266:K347)+SUMPRODUCT((Aktivierungsjahr=Costs!$A436)*(AbschreibungAGr=Costs!K$353)*('Fixed assets'!$U$2:$U$1000=Costs!$A436)*(AbschreibungAHKBvD))","v":0},{"$f":"SUM(L$178:L259)-SUM(L$266:L347)+SUMPRODUCT((Aktivierungsjahr=Costs!$A436)*(AbschreibungAGr=Costs!L$353)*('Fixed assets'!$U$2:$U$1000=Costs!$A436)*(AbschreibungAHKBvD))","v":0},{"$f":"SUM(M$178:M259)-SUM(M$266:M347)+SUMPRODUCT((Aktivierungsjahr=Costs!$A436)*(AbschreibungAGr=Costs!M$353)*('Fixed assets'!$U$2:$U$1000=Costs!$A436)*(AbschreibungAHKBvD))","v":0},{"$f":"SUM(N$178:N259)-SUM(N$266:N347)+SUMPRODUCT((Aktivierungsjahr=Costs!$A436)*(AbschreibungAGr=Costs!N$353)*('Fixed assets'!$U$2:$U$1000=Costs!$A436)*(AbschreibungAHKBvD))","v":0},{"$f":"SUM(O$178:O259)-SUM(O$266:O347)+SUMPRODUCT((Aktivierungsjahr=Costs!$A436)*(AbschreibungAGr=Costs!O$353)*('Fixed assets'!$U$2:$U$1000=Costs!$A436)*(AbschreibungAHKBvD))","v":0},{"$f":"SUM(P$178:P259)-SUM(P$266:P347)+SUMPRODUCT((Aktivierungsjahr=Costs!$A436)*(AbschreibungAGr=Costs!P$353)*('Fixed assets'!$U$2:$U$1000=Costs!$A436)*(AbschreibungAHKBvD))","v":0},{"$f":"SUM(Q$178:Q259)-SUM(Q$266:Q347)+SUMPRODUCT((Aktivierungsjahr=Costs!$A436)*(AbschreibungAGr=Costs!Q$353)*('Fixed assets'!$U$2:$U$1000=Costs!$A436)*(AbschreibungAHKBvD))","v":0},{"$f":"SUM(R$178:R259)-SUM(R$266:R347)+SUMPRODUCT((Aktivierungsjahr=Costs!$A436)*(AbschreibungAGr=Costs!R$353)*('Fixed assets'!$U$2:$U$1000=Costs!$A436)*(AbschreibungAHKBvD))","v":0},{"$f":"SUM(S$178:S259)-SUM(S$266:S347)+SUMPRODUCT((Aktivierungsjahr=Costs!$A436)*(AbschreibungAGr=Costs!S$353)*('Fixed assets'!$U$2:$U$1000=Costs!$A436)*(AbschreibungAHKBvD))","v":0},{"$f":"SUM(T$178:T259)-SUM(T$266:T347)+SUMPRODUCT((Aktivierungsjahr=Costs!$A436)*(AbschreibungAGr=Costs!T$353)*('Fixed assets'!$U$2:$U$1000=Costs!$A436)*(AbschreibungAHKBvD))","v":0},{"$f":"SUM(U$178:U259)-SUM(U$266:U347)+SUMPRODUCT((Aktivierungsjahr=Costs!$A436)*(AbschreibungAGr=Costs!U$353)*('Fixed assets'!$U$2:$U$1000=Costs!$A436)*(AbschreibungAHKBvD))","v":0},{"$f":"SUM(V$178:V259)-SUM(V$266:V347)+SUMPRODUCT((Aktivierungsjahr=Costs!$A436)*(AbschreibungAGr=Costs!V$353)*('Fixed assets'!$U$2:$U$1000=Costs!$A436)*(AbschreibungAHKBvD))","v":0},{"$f":"SUM(W$178:W259)-SUM(W$266:W347)+SUMPRODUCT((Aktivierungsjahr=Costs!$A436)*(AbschreibungAGr=Costs!W$353)*('Fixed assets'!$U$2:$U$1000=Costs!$A436)*(AbschreibungAHKBvD))","v":0},{"$f":"SUM(X$178:X259)-SUM(X$266:X347)+SUMPRODUCT((Aktivierungsjahr=Costs!$A436)*(AbschreibungAGr=Costs!X$353)*('Fixed assets'!$U$2:$U$1000=Costs!$A436)*(AbschreibungAHKBvD))","v":0},{"$f":"SUM(Y$178:Y259)-SUM(Y$266:Y347)+SUMPRODUCT((Aktivierungsjahr=Costs!$A436)*(AbschreibungAGr=Costs!Y$353)*('Fixed assets'!$U$2:$U$1000=Costs!$A436)*(AbschreibungAHKBvD))","v":0},{"$f":"SUM(Z$178:Z259)-SUM(Z$266:Z347)+SUMPRODUCT((Aktivierungsjahr=Costs!$A436)*(AbschreibungAGr=Costs!Z$353)*('Fixed assets'!$U$2:$U$1000=Costs!$A436)*(AbschreibungAHKBvD))","v":0},{"$f":"SUM(AA$178:AA259)-SUM(AA$266:AA347)+SUMPRODUCT((Aktivierungsjahr=Costs!$A436)*(AbschreibungAGr=Costs!AA$353)*('Fixed assets'!$U$2:$U$1000=Costs!$A436)*(AbschreibungAHKBvD))","v":0},{"$f":"SUM(AB$178:AB259)-SUM(AB$266:AB347)+SUMPRODUCT((Aktivierungsjahr=Costs!$A436)*(AbschreibungAGr=Costs!AB$353)*('Fixed assets'!$U$2:$U$1000=Costs!$A436)*(AbschreibungAHKBvD))","v":0},{"$f":"SUM(AC$178:AC259)-SUM(AC$266:AC347)+SUMPRODUCT((Aktivierungsjahr=Costs!$A436)*(AbschreibungAGr=Costs!AC$353)*('Fixed assets'!$U$2:$U$1000=Costs!$A436)*(AbschreibungAHKBvD))","v":0},{"$f":"SUM(AD$178:AD259)-SUM(AD$266:AD347)+SUMPRODUCT((Aktivierungsjahr=Costs!$A436)*(AbschreibungAGr=Costs!AD$353)*('Fixed assets'!$U$2:$U$1000=Costs!$A436)*(AbschreibungAHKBvD))","v":0},{"$f":"SUM(AE$178:AE259)-SUM(AE$266:AE347)+SUMPRODUCT((Aktivierungsjahr=Costs!$A436)*(AbschreibungAGr=Costs!AE$353)*('Fixed assets'!$U$2:$U$1000=Costs!$A436)*(AbschreibungAHKBvD))","v":0},{"$f":"SUM(AF$178:AF259)-SUM(AF$266:AF347)+SUMPRODUCT((Aktivierungsjahr=Costs!$A436)*(AbschreibungAGr=Costs!AF$353)*('Fixed assets'!$U$2:$U$1000=Costs!$A436)*(AbschreibungAHKBvD))","v":0},{"$f":"SUM(AG$178:AG259)-SUM(AG$266:AG347)+SUMPRODUCT((Aktivierungsjahr=Costs!$A436)*(AbschreibungAGr=Costs!AG$353)*('Fixed assets'!$U$2:$U$1000=Costs!$A436)*(AbschreibungAHKBvD))","v":0},{"$f":"SUM(AH$178:AH259)-SUM(AH$266:AH347)+SUMPRODUCT((Aktivierungsjahr=Costs!$A436)*(AbschreibungAGr=Costs!AH$353)*('Fixed assets'!$U$2:$U$1000=Costs!$A436)*(AbschreibungAHKBvD))","v":0},{"$f":"SUM(AI$178:AI259)-SUM(AI$266:AI347)+SUMPRODUCT((Aktivierungsjahr=Costs!$A436)*(AbschreibungAGr=Costs!AI$353)*('Fixed assets'!$U$2:$U$1000=Costs!$A436)*(AbschreibungAHKBvD))","v":0},{"$f":"SUM(AJ$178:AJ259)-SUM(AJ$266:AJ347)+SUMPRODUCT((Aktivierungsjahr=Costs!$A436)*(AbschreibungAGr=Costs!AJ$353)*('Fixed assets'!$U$2:$U$1000=Costs!$A436)*(AbschreibungAHKBvD))","v":-8.149072527885437E-10},{"$f":"SUM(AK$178:AK259)-SUM(AK$266:AK347)+SUMPRODUCT((Aktivierungsjahr=Costs!$A436)*(AbschreibungAGr=Costs!AK$353)*('Fixed assets'!$U$2:$U$1000=Costs!$A436)*(AbschreibungAHKBvD))","v":0},{"$f":"SUM(AL$178:AL259)-SUM(AL$266:AL347)+SUMPRODUCT((Aktivierungsjahr=Costs!$A436)*(AbschreibungAGr=Costs!AL$353)*('Fixed assets'!$U$2:$U$1000=Costs!$A436)*(AbschreibungAHKBvD))","v":0},{"$f":"SUM(AM$178:AM259)-SUM(AM$266:AM347)+SUMPRODUCT((Aktivierungsjahr=Costs!$A436)*(AbschreibungAGr=Costs!AM$353)*('Fixed assets'!$U$2:$U$1000=Costs!$A436)*(AbschreibungAHKBvD))","v":0},{"$f":"SUM(AN$178:AN259)-SUM(AN$266:AN347)+SUMPRODUCT((Aktivierungsjahr=Costs!$A436)*(AbschreibungAGr=Costs!AN$353)*('Fixed assets'!$U$2:$U$1000=Costs!$A436)*(AbschreibungAHKBvD))","v":0},{"$f":"SUM(AO$178:AO259)-SUM(AO$266:AO347)+SUMPRODUCT((Aktivierungsjahr=Costs!$A436)*(AbschreibungAGr=Costs!AO$353)*('Fixed assets'!$U$2:$U$1000=Costs!$A436)*(AbschreibungAHKBvD))","v":0},{"$f":"SUM(AP$178:AP259)-SUM(AP$266:AP347)+SUMPRODUCT((Aktivierungsjahr=Costs!$A436)*(AbschreibungAGr=Costs!AP$353)*('Fixed assets'!$U$2:$U$1000=Costs!$A436)*(AbschreibungAHKBvD))","v":0},{"$f":"SUM(AQ$178:AQ259)-SUM(AQ$266:AQ347)+SUMPRODUCT((Aktivierungsjahr=Costs!$A436)*(AbschreibungAGr=Costs!AQ$353)*('Fixed assets'!$U$2:$U$1000=Costs!$A436)*(AbschreibungAHKBvD))","v":0}]
[2098,-8.149072527885437E-10,{"$f":"SUM(C$178:C260)-SUM(C$266:C348)+SUMPRODUCT((Aktivierungsjahr=Costs!$A437)*(AbschreibungAGr=Costs!C$353)*('Fixed assets'!$U$2:$U$1000=Costs!$A437)*(AbschreibungAHKBvD))","v":0},{"$f":"SUM(D$178:D260)-SUM(D$266:D348)+SUMPRODUCT((Aktivierungsjahr=Costs!$A437)*(AbschreibungAGr=Costs!D$353)*('Fixed assets'!$U$2:$U$1000=Costs!$A437)*(AbschreibungAHKBvD))","v":0},{"$f":"SUM(E$178:E260)-SUM(E$266:E348)+SUMPRODUCT((Aktivierungsjahr=Costs!$A437)*(AbschreibungAGr=Costs!E$353)*('Fixed assets'!$U$2:$U$1000=Costs!$A437)*(AbschreibungAHKBvD))","v":0},{"$f":"SUM(F$178:F260)-SUM(F$266:F348)+SUMPRODUCT((Aktivierungsjahr=Costs!$A437)*(AbschreibungAGr=Costs!F$353)*('Fixed assets'!$U$2:$U$1000=Costs!$A437)*(AbschreibungAHKBvD))","v":0},{"$f":"SUM(G$178:G260)-SUM(G$266:G348)+SUMPRODUCT((Aktivierungsjahr=Costs!$A437)*(AbschreibungAGr=Costs!G$353)*('Fixed assets'!$U$2:$U$1000=Costs!$A437)*(AbschreibungAHKBvD))","v":0},{"$f":"SUM(H$178:H260)-SUM(H$266:H348)+SUMPRODUCT((Aktivierungsjahr=Costs!$A437)*(AbschreibungAGr=Costs!H$353)*('Fixed assets'!$U$2:$U$1000=Costs!$A437)*(AbschreibungAHKBvD))","v":0},{"$f":"SUM(I$178:I260)-SUM(I$266:I348)+SUMPRODUCT((Aktivierungsjahr=Costs!$A437)*(AbschreibungAGr=Costs!I$353)*('Fixed assets'!$U$2:$U$1000=Costs!$A437)*(AbschreibungAHKBvD))","v":0},{"$f":"SUM(J$178:J260)-SUM(J$266:J348)+SUMPRODUCT((Aktivierungsjahr=Costs!$A437)*(AbschreibungAGr=Costs!J$353)*('Fixed assets'!$U$2:$U$1000=Costs!$A437)*(AbschreibungAHKBvD))","v":0},{"$f":"SUM(K$178:K260)-SUM(K$266:K348)+SUMPRODUCT((Aktivierungsjahr=Costs!$A437)*(AbschreibungAGr=Costs!K$353)*('Fixed assets'!$U$2:$U$1000=Costs!$A437)*(AbschreibungAHKBvD))","v":0},{"$f":"SUM(L$178:L260)-SUM(L$266:L348)+SUMPRODUCT((Aktivierungsjahr=Costs!$A437)*(AbschreibungAGr=Costs!L$353)*('Fixed assets'!$U$2:$U$1000=Costs!$A437)*(AbschreibungAHKBvD))","v":0},{"$f":"SUM(M$178:M260)-SUM(M$266:M348)+SUMPRODUCT((Aktivierungsjahr=Costs!$A437)*(AbschreibungAGr=Costs!M$353)*('Fixed assets'!$U$2:$U$1000=Costs!$A437)*(AbschreibungAHKBvD))","v":0},{"$f":"SUM(N$178:N260)-SUM(N$266:N348)+SUMPRODUCT((Aktivierungsjahr=Costs!$A437)*(AbschreibungAGr=Costs!N$353)*('Fixed assets'!$U$2:$U$1000=Costs!$A437)*(AbschreibungAHKBvD))","v":0},{"$f":"SUM(O$178:O260)-SUM(O$266:O348)+SUMPRODUCT((Aktivierungsjahr=Costs!$A437)*(AbschreibungAGr=Costs!O$353)*('Fixed assets'!$U$2:$U$1000=Costs!$A437)*(AbschreibungAHKBvD))","v":0},{"$f":"SUM(P$178:P260)-SUM(P$266:P348)+SUMPRODUCT((Aktivierungsjahr=Costs!$A437)*(AbschreibungAGr=Costs!P$353)*('Fixed assets'!$U$2:$U$1000=Costs!$A437)*(AbschreibungAHKBvD))","v":0},{"$f":"SUM(Q$178:Q260)-SUM(Q$266:Q348)+SUMPRODUCT((Aktivierungsjahr=Costs!$A437)*(AbschreibungAGr=Costs!Q$353)*('Fixed assets'!$U$2:$U$1000=Costs!$A437)*(AbschreibungAHKBvD))","v":0},{"$f":"SUM(R$178:R260)-SUM(R$266:R348)+SUMPRODUCT((Aktivierungsjahr=Costs!$A437)*(AbschreibungAGr=Costs!R$353)*('Fixed assets'!$U$2:$U$1000=Costs!$A437)*(AbschreibungAHKBvD))","v":0},{"$f":"SUM(S$178:S260)-SUM(S$266:S348)+SUMPRODUCT((Aktivierungsjahr=Costs!$A437)*(AbschreibungAGr=Costs!S$353)*('Fixed assets'!$U$2:$U$1000=Costs!$A437)*(AbschreibungAHKBvD))","v":0},{"$f":"SUM(T$178:T260)-SUM(T$266:T348)+SUMPRODUCT((Aktivierungsjahr=Costs!$A437)*(AbschreibungAGr=Costs!T$353)*('Fixed assets'!$U$2:$U$1000=Costs!$A437)*(AbschreibungAHKBvD))","v":0},{"$f":"SUM(U$178:U260)-SUM(U$266:U348)+SUMPRODUCT((Aktivierungsjahr=Costs!$A437)*(AbschreibungAGr=Costs!U$353)*('Fixed assets'!$U$2:$U$1000=Costs!$A437)*(AbschreibungAHKBvD))","v":0},{"$f":"SUM(V$178:V260)-SUM(V$266:V348)+SUMPRODUCT((Aktivierungsjahr=Costs!$A437)*(AbschreibungAGr=Costs!V$353)*('Fixed assets'!$U$2:$U$1000=Costs!$A437)*(AbschreibungAHKBvD))","v":0},{"$f":"SUM(W$178:W260)-SUM(W$266:W348)+SUMPRODUCT((Aktivierungsjahr=Costs!$A437)*(AbschreibungAGr=Costs!W$353)*('Fixed assets'!$U$2:$U$1000=Costs!$A437)*(AbschreibungAHKBvD))","v":0},{"$f":"SUM(X$178:X260)-SUM(X$266:X348)+SUMPRODUCT((Aktivierungsjahr=Costs!$A437)*(AbschreibungAGr=Costs!X$353)*('Fixed assets'!$U$2:$U$1000=Costs!$A437)*(AbschreibungAHKBvD))","v":0},{"$f":"SUM(Y$178:Y260)-SUM(Y$266:Y348)+SUMPRODUCT((Aktivierungsjahr=Costs!$A437)*(AbschreibungAGr=Costs!Y$353)*('Fixed assets'!$U$2:$U$1000=Costs!$A437)*(AbschreibungAHKBvD))","v":0},{"$f":"SUM(Z$178:Z260)-SUM(Z$266:Z348)+SUMPRODUCT((Aktivierungsjahr=Costs!$A437)*(AbschreibungAGr=Costs!Z$353)*('Fixed assets'!$U$2:$U$1000=Costs!$A437)*(AbschreibungAHKBvD))","v":0},{"$f":"SUM(AA$178:AA260)-SUM(AA$266:AA348)+SUMPRODUCT((Aktivierungsjahr=Costs!$A437)*(AbschreibungAGr=Costs!AA$353)*('Fixed assets'!$U$2:$U$1000=Costs!$A437)*(AbschreibungAHKBvD))","v":0},{"$f":"SUM(AB$178:AB260)-SUM(AB$266:AB348)+SUMPRODUCT((Aktivierungsjahr=Costs!$A437)*(AbschreibungAGr=Costs!AB$353)*('Fixed assets'!$U$2:$U$1000=Costs!$A437)*(AbschreibungAHKBvD))","v":0},{"$f":"SUM(AC$178:AC260)-SUM(AC$266:AC348)+SUMPRODUCT((Aktivierungsjahr=Costs!$A437)*(AbschreibungAGr=Costs!AC$353)*('Fixed assets'!$U$2:$U$1000=Costs!$A437)*(AbschreibungAHKBvD))","v":0},{"$f":"SUM(AD$178:AD260)-SUM(AD$266:AD348)+SUMPRODUCT((Aktivierungsjahr=Costs!$A437)*(AbschreibungAGr=Costs!AD$353)*('Fixed assets'!$U$2:$U$1000=Costs!$A437)*(AbschreibungAHKBvD))","v":0},{"$f":"SUM(AE$178:AE260)-SUM(AE$266:AE348)+SUMPRODUCT((Aktivierungsjahr=Costs!$A437)*(AbschreibungAGr=Costs!AE$353)*('Fixed assets'!$U$2:$U$1000=Costs!$A437)*(AbschreibungAHKBvD))","v":0},{"$f":"SUM(AF$178:AF260)-SUM(AF$266:AF348)+SUMPRODUCT((Aktivierungsjahr=Costs!$A437)*(AbschreibungAGr=Costs!AF$353)*('Fixed assets'!$U$2:$U$1000=Costs!$A437)*(AbschreibungAHKBvD))","v":0},{"$f":"SUM(AG$178:AG260)-SUM(AG$266:AG348)+SUMPRODUCT((Aktivierungsjahr=Costs!$A437)*(AbschreibungAGr=Costs!AG$353)*('Fixed assets'!$U$2:$U$1000=Costs!$A437)*(AbschreibungAHKBvD))","v":0},{"$f":"SUM(AH$178:AH260)-SUM(AH$266:AH348)+SUMPRODUCT((Aktivierungsjahr=Costs!$A437)*(AbschreibungAGr=Costs!AH$353)*('Fixed assets'!$U$2:$U$1000=Costs!$A437)*(AbschreibungAHKBvD))","v":0},{"$f":"SUM(AI$178:AI260)-SUM(AI$266:AI348)+SUMPRODUCT((Aktivierungsjahr=Costs!$A437)*(AbschreibungAGr=Costs!AI$353)*('Fixed assets'!$U$2:$U$1000=Costs!$A437)*(AbschreibungAHKBvD))","v":0},{"$f":"SUM(AJ$178:AJ260)-SUM(AJ$266:AJ348)+SUMPRODUCT((Aktivierungsjahr=Costs!$A437)*(AbschreibungAGr=Costs!AJ$353)*('Fixed assets'!$U$2:$U$1000=Costs!$A437)*(AbschreibungAHKBvD))","v":-8.149072527885437E-10},{"$f":"SUM(AK$178:AK260)-SUM(AK$266:AK348)+SUMPRODUCT((Aktivierungsjahr=Costs!$A437)*(AbschreibungAGr=Costs!AK$353)*('Fixed assets'!$U$2:$U$1000=Costs!$A437)*(AbschreibungAHKBvD))","v":0},{"$f":"SUM(AL$178:AL260)-SUM(AL$266:AL348)+SUMPRODUCT((Aktivierungsjahr=Costs!$A437)*(AbschreibungAGr=Costs!AL$353)*('Fixed assets'!$U$2:$U$1000=Costs!$A437)*(AbschreibungAHKBvD))","v":0},{"$f":"SUM(AM$178:AM260)-SUM(AM$266:AM348)+SUMPRODUCT((Aktivierungsjahr=Costs!$A437)*(AbschreibungAGr=Costs!AM$353)*('Fixed assets'!$U$2:$U$1000=Costs!$A437)*(AbschreibungAHKBvD))","v":0},{"$f":"SUM(AN$178:AN260)-SUM(AN$266:AN348)+SUMPRODUCT((Aktivierungsjahr=Costs!$A437)*(AbschreibungAGr=Costs!AN$353)*('Fixed assets'!$U$2:$U$1000=Costs!$A437)*(AbschreibungAHKBvD))","v":0},{"$f":"SUM(AO$178:AO260)-SUM(AO$266:AO348)+SUMPRODUCT((Aktivierungsjahr=Costs!$A437)*(AbschreibungAGr=Costs!AO$353)*('Fixed assets'!$U$2:$U$1000=Costs!$A437)*(AbschreibungAHKBvD))","v":0},{"$f":"SUM(AP$178:AP260)-SUM(AP$266:AP348)+SUMPRODUCT((Aktivierungsjahr=Costs!$A437)*(AbschreibungAGr=Costs!AP$353)*('Fixed assets'!$U$2:$U$1000=Costs!$A437)*(AbschreibungAHKBvD))","v":0},{"$f":"SUM(AQ$178:AQ260)-SUM(AQ$266:AQ348)+SUMPRODUCT((Aktivierungsjahr=Costs!$A437)*(AbschreibungAGr=Costs!AQ$353)*('Fixed assets'!$U$2:$U$1000=Costs!$A437)*(AbschreibungAHKBvD))","v":0}]
[2099,-8.149072527885437E-10,{"$f":"SUM(C$178:C261)-SUM(C$266:C349)+SUMPRODUCT((Aktivierungsjahr=Costs!$A438)*(AbschreibungAGr=Costs!C$353)*('Fixed assets'!$U$2:$U$1000=Costs!$A438)*(AbschreibungAHKBvD))","v":0},{"$f":"SUM(D$178:D261)-SUM(D$266:D349)+SUMPRODUCT((Aktivierungsjahr=Costs!$A438)*(AbschreibungAGr=Costs!D$353)*('Fixed assets'!$U$2:$U$1000=Costs!$A438)*(AbschreibungAHKBvD))","v":0},{"$f":"SUM(E$178:E261)-SUM(E$266:E349)+SUMPRODUCT((Aktivierungsjahr=Costs!$A438)*(AbschreibungAGr=Costs!E$353)*('Fixed assets'!$U$2:$U$1000=Costs!$A438)*(AbschreibungAHKBvD))","v":0},{"$f":"SUM(F$178:F261)-SUM(F$266:F349)+SUMPRODUCT((Aktivierungsjahr=Costs!$A438)*(AbschreibungAGr=Costs!F$353)*('Fixed assets'!$U$2:$U$1000=Costs!$A438)*(AbschreibungAHKBvD))","v":0},{"$f":"SUM(G$178:G261)-SUM(G$266:G349)+SUMPRODUCT((Aktivierungsjahr=Costs!$A438)*(AbschreibungAGr=Costs!G$353)*('Fixed assets'!$U$2:$U$1000=Costs!$A438)*(AbschreibungAHKBvD))","v":0},{"$f":"SUM(H$178:H261)-SUM(H$266:H349)+SUMPRODUCT((Aktivierungsjahr=Costs!$A438)*(AbschreibungAGr=Costs!H$353)*('Fixed assets'!$U$2:$U$1000=Costs!$A438)*(AbschreibungAHKBvD))","v":0},{"$f":"SUM(I$178:I261)-SUM(I$266:I349)+SUMPRODUCT((Aktivierungsjahr=Costs!$A438)*(AbschreibungAGr=Costs!I$353)*('Fixed assets'!$U$2:$U$1000=Costs!$A438)*(AbschreibungAHKBvD))","v":0},{"$f":"SUM(J$178:J261)-SUM(J$266:J349)+SUMPRODUCT((Aktivierungsjahr=Costs!$A438)*(AbschreibungAGr=Costs!J$353)*('Fixed assets'!$U$2:$U$1000=Costs!$A438)*(AbschreibungAHKBvD))","v":0},{"$f":"SUM(K$178:K261)-SUM(K$266:K349)+SUMPRODUCT((Aktivierungsjahr=Costs!$A438)*(AbschreibungAGr=Costs!K$353)*('Fixed assets'!$U$2:$U$1000=Costs!$A438)*(AbschreibungAHKBvD))","v":0},{"$f":"SUM(L$178:L261)-SUM(L$266:L349)+SUMPRODUCT((Aktivierungsjahr=Costs!$A438)*(AbschreibungAGr=Costs!L$353)*('Fixed assets'!$U$2:$U$1000=Costs!$A438)*(AbschreibungAHKBvD))","v":0},{"$f":"SUM(M$178:M261)-SUM(M$266:M349)+SUMPRODUCT((Aktivierungsjahr=Costs!$A438)*(AbschreibungAGr=Costs!M$353)*('Fixed assets'!$U$2:$U$1000=Costs!$A438)*(AbschreibungAHKBvD))","v":0},{"$f":"SUM(N$178:N261)-SUM(N$266:N349)+SUMPRODUCT((Aktivierungsjahr=Costs!$A438)*(AbschreibungAGr=Costs!N$353)*('Fixed assets'!$U$2:$U$1000=Costs!$A438)*(AbschreibungAHKBvD))","v":0},{"$f":"SUM(O$178:O261)-SUM(O$266:O349)+SUMPRODUCT((Aktivierungsjahr=Costs!$A438)*(AbschreibungAGr=Costs!O$353)*('Fixed assets'!$U$2:$U$1000=Costs!$A438)*(AbschreibungAHKBvD))","v":0},{"$f":"SUM(P$178:P261)-SUM(P$266:P349)+SUMPRODUCT((Aktivierungsjahr=Costs!$A438)*(AbschreibungAGr=Costs!P$353)*('Fixed assets'!$U$2:$U$1000=Costs!$A438)*(AbschreibungAHKBvD))","v":0},{"$f":"SUM(Q$178:Q261)-SUM(Q$266:Q349)+SUMPRODUCT((Aktivierungsjahr=Costs!$A438)*(AbschreibungAGr=Costs!Q$353)*('Fixed assets'!$U$2:$U$1000=Costs!$A438)*(AbschreibungAHKBvD))","v":0},{"$f":"SUM(R$178:R261)-SUM(R$266:R349)+SUMPRODUCT((Aktivierungsjahr=Costs!$A438)*(AbschreibungAGr=Costs!R$353)*('Fixed assets'!$U$2:$U$1000=Costs!$A438)*(AbschreibungAHKBvD))","v":0},{"$f":"SUM(S$178:S261)-SUM(S$266:S349)+SUMPRODUCT((Aktivierungsjahr=Costs!$A438)*(AbschreibungAGr=Costs!S$353)*('Fixed assets'!$U$2:$U$1000=Costs!$A438)*(AbschreibungAHKBvD))","v":0},{"$f":"SUM(T$178:T261)-SUM(T$266:T349)+SUMPRODUCT((Aktivierungsjahr=Costs!$A438)*(AbschreibungAGr=Costs!T$353)*('Fixed assets'!$U$2:$U$1000=Costs!$A438)*(AbschreibungAHKBvD))","v":0},{"$f":"SUM(U$178:U261)-SUM(U$266:U349)+SUMPRODUCT((Aktivierungsjahr=Costs!$A438)*(AbschreibungAGr=Costs!U$353)*('Fixed assets'!$U$2:$U$1000=Costs!$A438)*(AbschreibungAHKBvD))","v":0},{"$f":"SUM(V$178:V261)-SUM(V$266:V349)+SUMPRODUCT((Aktivierungsjahr=Costs!$A438)*(AbschreibungAGr=Costs!V$353)*('Fixed assets'!$U$2:$U$1000=Costs!$A438)*(AbschreibungAHKBvD))","v":0},{"$f":"SUM(W$178:W261)-SUM(W$266:W349)+SUMPRODUCT((Aktivierungsjahr=Costs!$A438)*(AbschreibungAGr=Costs!W$353)*('Fixed assets'!$U$2:$U$1000=Costs!$A438)*(AbschreibungAHKBvD))","v":0},{"$f":"SUM(X$178:X261)-SUM(X$266:X349)+SUMPRODUCT((Aktivierungsjahr=Costs!$A438)*(AbschreibungAGr=Costs!X$353)*('Fixed assets'!$U$2:$U$1000=Costs!$A438)*(AbschreibungAHKBvD))","v":0},{"$f":"SUM(Y$178:Y261)-SUM(Y$266:Y349)+SUMPRODUCT((Aktivierungsjahr=Costs!$A438)*(AbschreibungAGr=Costs!Y$353)*('Fixed assets'!$U$2:$U$1000=Costs!$A438)*(AbschreibungAHKBvD))","v":0},{"$f":"SUM(Z$178:Z261)-SUM(Z$266:Z349)+SUMPRODUCT((Aktivierungsjahr=Costs!$A438)*(AbschreibungAGr=Costs!Z$353)*('Fixed assets'!$U$2:$U$1000=Costs!$A438)*(AbschreibungAHKBvD))","v":0},{"$f":"SUM(AA$178:AA261)-SUM(AA$266:AA349)+SUMPRODUCT((Aktivierungsjahr=Costs!$A438)*(AbschreibungAGr=Costs!AA$353)*('Fixed assets'!$U$2:$U$1000=Costs!$A438)*(AbschreibungAHKBvD))","v":0},{"$f":"SUM(AB$178:AB261)-SUM(AB$266:AB349)+SUMPRODUCT((Aktivierungsjahr=Costs!$A438)*(AbschreibungAGr=Costs!AB$353)*('Fixed assets'!$U$2:$U$1000=Costs!$A438)*(AbschreibungAHKBvD))","v":0},{"$f":"SUM(AC$178:AC261)-SUM(AC$266:AC349)+SUMPRODUCT((Aktivierungsjahr=Costs!$A438)*(AbschreibungAGr=Costs!AC$353)*('Fixed assets'!$U$2:$U$1000=Costs!$A438)*(AbschreibungAHKBvD))","v":0},{"$f":"SUM(AD$178:AD261)-SUM(AD$266:AD349)+SUMPRODUCT((Aktivierungsjahr=Costs!$A438)*(AbschreibungAGr=Costs!AD$353)*('Fixed assets'!$U$2:$U$1000=Costs!$A438)*(AbschreibungAHKBvD))","v":0},{"$f":"SUM(AE$178:AE261)-SUM(AE$266:AE349)+SUMPRODUCT((Aktivierungsjahr=Costs!$A438)*(AbschreibungAGr=Costs!AE$353)*('Fixed assets'!$U$2:$U$1000=Costs!$A438)*(AbschreibungAHKBvD))","v":0},{"$f":"SUM(AF$178:AF261)-SUM(AF$266:AF349)+SUMPRODUCT((Aktivierungsjahr=Costs!$A438)*(AbschreibungAGr=Costs!AF$353)*('Fixed assets'!$U$2:$U$1000=Costs!$A438)*(AbschreibungAHKBvD))","v":0},{"$f":"SUM(AG$178:AG261)-SUM(AG$266:AG349)+SUMPRODUCT((Aktivierungsjahr=Costs!$A438)*(AbschreibungAGr=Costs!AG$353)*('Fixed assets'!$U$2:$U$1000=Costs!$A438)*(AbschreibungAHKBvD))","v":0},{"$f":"SUM(AH$178:AH261)-SUM(AH$266:AH349)+SUMPRODUCT((Aktivierungsjahr=Costs!$A438)*(AbschreibungAGr=Costs!AH$353)*('Fixed assets'!$U$2:$U$1000=Costs!$A438)*(AbschreibungAHKBvD))","v":0},{"$f":"SUM(AI$178:AI261)-SUM(AI$266:AI349)+SUMPRODUCT((Aktivierungsjahr=Costs!$A438)*(AbschreibungAGr=Costs!AI$353)*('Fixed assets'!$U$2:$U$1000=Costs!$A438)*(AbschreibungAHKBvD))","v":0},{"$f":"SUM(AJ$178:AJ261)-SUM(AJ$266:AJ349)+SUMPRODUCT((Aktivierungsjahr=Costs!$A438)*(AbschreibungAGr=Costs!AJ$353)*('Fixed assets'!$U$2:$U$1000=Costs!$A438)*(AbschreibungAHKBvD))","v":-8.149072527885437E-10},{"$f":"SUM(AK$178:AK261)-SUM(AK$266:AK349)+SUMPRODUCT((Aktivierungsjahr=Costs!$A438)*(AbschreibungAGr=Costs!AK$353)*('Fixed assets'!$U$2:$U$1000=Costs!$A438)*(AbschreibungAHKBvD))","v":0},{"$f":"SUM(AL$178:AL261)-SUM(AL$266:AL349)+SUMPRODUCT((Aktivierungsjahr=Costs!$A438)*(AbschreibungAGr=Costs!AL$353)*('Fixed assets'!$U$2:$U$1000=Costs!$A438)*(AbschreibungAHKBvD))","v":0},{"$f":"SUM(AM$178:AM261)-SUM(AM$266:AM349)+SUMPRODUCT((Aktivierungsjahr=Costs!$A438)*(AbschreibungAGr=Costs!AM$353)*('Fixed assets'!$U$2:$U$1000=Costs!$A438)*(AbschreibungAHKBvD))","v":0},{"$f":"SUM(AN$178:AN261)-SUM(AN$266:AN349)+SUMPRODUCT((Aktivierungsjahr=Costs!$A438)*(AbschreibungAGr=Costs!AN$353)*('Fixed assets'!$U$2:$U$1000=Costs!$A438)*(AbschreibungAHKBvD))","v":0},{"$f":"SUM(AO$178:AO261)-SUM(AO$266:AO349)+SUMPRODUCT((Aktivierungsjahr=Costs!$A438)*(AbschreibungAGr=Costs!AO$353)*('Fixed assets'!$U$2:$U$1000=Costs!$A438)*(AbschreibungAHKBvD))","v":0},{"$f":"SUM(AP$178:AP261)-SUM(AP$266:AP349)+SUMPRODUCT((Aktivierungsjahr=Costs!$A438)*(AbschreibungAGr=Costs!AP$353)*('Fixed assets'!$U$2:$U$1000=Costs!$A438)*(AbschreibungAHKBvD))","v":0},{"$f":"SUM(AQ$178:AQ261)-SUM(AQ$266:AQ349)+SUMPRODUCT((Aktivierungsjahr=Costs!$A438)*(AbschreibungAGr=Costs!AQ$353)*('Fixed assets'!$U$2:$U$1000=Costs!$A438)*(AbschreibungAHKBvD))","v":0}]
[2100,-8.149072527885437E-10,{"$f":"SUM(C$178:C262)-SUM(C$266:C350)+SUMPRODUCT((Aktivierungsjahr=Costs!$A439)*(AbschreibungAGr=Costs!C$353)*('Fixed assets'!$U$2:$U$1000=Costs!$A439)*(AbschreibungAHKBvD))","v":0},{"$f":"SUM(D$178:D262)-SUM(D$266:D350)+SUMPRODUCT((Aktivierungsjahr=Costs!$A439)*(AbschreibungAGr=Costs!D$353)*('Fixed assets'!$U$2:$U$1000=Costs!$A439)*(AbschreibungAHKBvD))","v":0},{"$f":"SUM(E$178:E262)-SUM(E$266:E350)+SUMPRODUCT((Aktivierungsjahr=Costs!$A439)*(AbschreibungAGr=Costs!E$353)*('Fixed assets'!$U$2:$U$1000=Costs!$A439)*(AbschreibungAHKBvD))","v":0},{"$f":"SUM(F$178:F262)-SUM(F$266:F350)+SUMPRODUCT((Aktivierungsjahr=Costs!$A439)*(AbschreibungAGr=Costs!F$353)*('Fixed assets'!$U$2:$U$1000=Costs!$A439)*(AbschreibungAHKBvD))","v":0},{"$f":"SUM(G$178:G262)-SUM(G$266:G350)+SUMPRODUCT((Aktivierungsjahr=Costs!$A439)*(AbschreibungAGr=Costs!G$353)*('Fixed assets'!$U$2:$U$1000=Costs!$A439)*(AbschreibungAHKBvD))","v":0},{"$f":"SUM(H$178:H262)-SUM(H$266:H350)+SUMPRODUCT((Aktivierungsjahr=Costs!$A439)*(AbschreibungAGr=Costs!H$353)*('Fixed assets'!$U$2:$U$1000=Costs!$A439)*(AbschreibungAHKBvD))","v":0},{"$f":"SUM(I$178:I262)-SUM(I$266:I350)+SUMPRODUCT((Aktivierungsjahr=Costs!$A439)*(AbschreibungAGr=Costs!I$353)*('Fixed assets'!$U$2:$U$1000=Costs!$A439)*(AbschreibungAHKBvD))","v":0},{"$f":"SUM(J$178:J262)-SUM(J$266:J350)+SUMPRODUCT((Aktivierungsjahr=Costs!$A439)*(AbschreibungAGr=Costs!J$353)*('Fixed assets'!$U$2:$U$1000=Costs!$A439)*(AbschreibungAHKBvD))","v":0},{"$f":"SUM(K$178:K262)-SUM(K$266:K350)+SUMPRODUCT((Aktivierungsjahr=Costs!$A439)*(AbschreibungAGr=Costs!K$353)*('Fixed assets'!$U$2:$U$1000=Costs!$A439)*(AbschreibungAHKBvD))","v":0},{"$f":"SUM(L$178:L262)-SUM(L$266:L350)+SUMPRODUCT((Aktivierungsjahr=Costs!$A439)*(AbschreibungAGr=Costs!L$353)*('Fixed assets'!$U$2:$U$1000=Costs!$A439)*(AbschreibungAHKBvD))","v":0},{"$f":"SUM(M$178:M262)-SUM(M$266:M350)+SUMPRODUCT((Aktivierungsjahr=Costs!$A439)*(AbschreibungAGr=Costs!M$353)*('Fixed assets'!$U$2:$U$1000=Costs!$A439)*(AbschreibungAHKBvD))","v":0},{"$f":"SUM(N$178:N262)-SUM(N$266:N350)+SUMPRODUCT((Aktivierungsjahr=Costs!$A439)*(AbschreibungAGr=Costs!N$353)*('Fixed assets'!$U$2:$U$1000=Costs!$A439)*(AbschreibungAHKBvD))","v":0},{"$f":"SUM(O$178:O262)-SUM(O$266:O350)+SUMPRODUCT((Aktivierungsjahr=Costs!$A439)*(AbschreibungAGr=Costs!O$353)*('Fixed assets'!$U$2:$U$1000=Costs!$A439)*(AbschreibungAHKBvD))","v":0},{"$f":"SUM(P$178:P262)-SUM(P$266:P350)+SUMPRODUCT((Aktivierungsjahr=Costs!$A439)*(AbschreibungAGr=Costs!P$353)*('Fixed assets'!$U$2:$U$1000=Costs!$A439)*(AbschreibungAHKBvD))","v":0},{"$f":"SUM(Q$178:Q262)-SUM(Q$266:Q350)+SUMPRODUCT((Aktivierungsjahr=Costs!$A439)*(AbschreibungAGr=Costs!Q$353)*('Fixed assets'!$U$2:$U$1000=Costs!$A439)*(AbschreibungAHKBvD))","v":0},{"$f":"SUM(R$178:R262)-SUM(R$266:R350)+SUMPRODUCT((Aktivierungsjahr=Costs!$A439)*(AbschreibungAGr=Costs!R$353)*('Fixed assets'!$U$2:$U$1000=Costs!$A439)*(AbschreibungAHKBvD))","v":0},{"$f":"SUM(S$178:S262)-SUM(S$266:S350)+SUMPRODUCT((Aktivierungsjahr=Costs!$A439)*(AbschreibungAGr=Costs!S$353)*('Fixed assets'!$U$2:$U$1000=Costs!$A439)*(AbschreibungAHKBvD))","v":0},{"$f":"SUM(T$178:T262)-SUM(T$266:T350)+SUMPRODUCT((Aktivierungsjahr=Costs!$A439)*(AbschreibungAGr=Costs!T$353)*('Fixed assets'!$U$2:$U$1000=Costs!$A439)*(AbschreibungAHKBvD))","v":0},{"$f":"SUM(U$178:U262)-SUM(U$266:U350)+SUMPRODUCT((Aktivierungsjahr=Costs!$A439)*(AbschreibungAGr=Costs!U$353)*('Fixed assets'!$U$2:$U$1000=Costs!$A439)*(AbschreibungAHKBvD))","v":0},{"$f":"SUM(V$178:V262)-SUM(V$266:V350)+SUMPRODUCT((Aktivierungsjahr=Costs!$A439)*(AbschreibungAGr=Costs!V$353)*('Fixed assets'!$U$2:$U$1000=Costs!$A439)*(AbschreibungAHKBvD))","v":0},{"$f":"SUM(W$178:W262)-SUM(W$266:W350)+SUMPRODUCT((Aktivierungsjahr=Costs!$A439)*(AbschreibungAGr=Costs!W$353)*('Fixed assets'!$U$2:$U$1000=Costs!$A439)*(AbschreibungAHKBvD))","v":0},{"$f":"SUM(X$178:X262)-SUM(X$266:X350)+SUMPRODUCT((Aktivierungsjahr=Costs!$A439)*(AbschreibungAGr=Costs!X$353)*('Fixed assets'!$U$2:$U$1000=Costs!$A439)*(AbschreibungAHKBvD))","v":0},{"$f":"SUM(Y$178:Y262)-SUM(Y$266:Y350)+SUMPRODUCT((Aktivierungsjahr=Costs!$A439)*(AbschreibungAGr=Costs!Y$353)*('Fixed assets'!$U$2:$U$1000=Costs!$A439)*(AbschreibungAHKBvD))","v":0},{"$f":"SUM(Z$178:Z262)-SUM(Z$266:Z350)+SUMPRODUCT((Aktivierungsjahr=Costs!$A439)*(AbschreibungAGr=Costs!Z$353)*('Fixed assets'!$U$2:$U$1000=Costs!$A439)*(AbschreibungAHKBvD))","v":0},{"$f":"SUM(AA$178:AA262)-SUM(AA$266:AA350)+SUMPRODUCT((Aktivierungsjahr=Costs!$A439)*(AbschreibungAGr=Costs!AA$353)*('Fixed assets'!$U$2:$U$1000=Costs!$A439)*(AbschreibungAHKBvD))","v":0},{"$f":"SUM(AB$178:AB262)-SUM(AB$266:AB350)+SUMPRODUCT((Aktivierungsjahr=Costs!$A439)*(AbschreibungAGr=Costs!AB$353)*('Fixed assets'!$U$2:$U$1000=Costs!$A439)*(AbschreibungAHKBvD))","v":0},{"$f":"SUM(AC$178:AC262)-SUM(AC$266:AC350)+SUMPRODUCT((Aktivierungsjahr=Costs!$A439)*(AbschreibungAGr=Costs!AC$353)*('Fixed assets'!$U$2:$U$1000=Costs!$A439)*(AbschreibungAHKBvD))","v":0},{"$f":"SUM(AD$178:AD262)-SUM(AD$266:AD350)+SUMPRODUCT((Aktivierungsjahr=Costs!$A439)*(AbschreibungAGr=Costs!AD$353)*('Fixed assets'!$U$2:$U$1000=Costs!$A439)*(AbschreibungAHKBvD))","v":0},{"$f":"SUM(AE$178:AE262)-SUM(AE$266:AE350)+SUMPRODUCT((Aktivierungsjahr=Costs!$A439)*(AbschreibungAGr=Costs!AE$353)*('Fixed assets'!$U$2:$U$1000=Costs!$A439)*(AbschreibungAHKBvD))","v":0},{"$f":"SUM(AF$178:AF262)-SUM(AF$266:AF350)+SUMPRODUCT((Aktivierungsjahr=Costs!$A439)*(AbschreibungAGr=Costs!AF$353)*('Fixed assets'!$U$2:$U$1000=Costs!$A439)*(AbschreibungAHKBvD))","v":0},{"$f":"SUM(AG$178:AG262)-SUM(AG$266:AG350)+SUMPRODUCT((Aktivierungsjahr=Costs!$A439)*(AbschreibungAGr=Costs!AG$353)*('Fixed assets'!$U$2:$U$1000=Costs!$A439)*(AbschreibungAHKBvD))","v":0},{"$f":"SUM(AH$178:AH262)-SUM(AH$266:AH350)+SUMPRODUCT((Aktivierungsjahr=Costs!$A439)*(AbschreibungAGr=Costs!AH$353)*('Fixed assets'!$U$2:$U$1000=Costs!$A439)*(AbschreibungAHKBvD))","v":0},{"$f":"SUM(AI$178:AI262)-SUM(AI$266:AI350)+SUMPRODUCT((Aktivierungsjahr=Costs!$A439)*(AbschreibungAGr=Costs!AI$353)*('Fixed assets'!$U$2:$U$1000=Costs!$A439)*(AbschreibungAHKBvD))","v":0},{"$f":"SUM(AJ$178:AJ262)-SUM(AJ$266:AJ350)+SUMPRODUCT((Aktivierungsjahr=Costs!$A439)*(AbschreibungAGr=Costs!AJ$353)*('Fixed assets'!$U$2:$U$1000=Costs!$A439)*(AbschreibungAHKBvD))","v":-8.149072527885437E-10},{"$f":"SUM(AK$178:AK262)-SUM(AK$266:AK350)+SUMPRODUCT((Aktivierungsjahr=Costs!$A439)*(AbschreibungAGr=Costs!AK$353)*('Fixed assets'!$U$2:$U$1000=Costs!$A439)*(AbschreibungAHKBvD))","v":0},{"$f":"SUM(AL$178:AL262)-SUM(AL$266:AL350)+SUMPRODUCT((Aktivierungsjahr=Costs!$A439)*(AbschreibungAGr=Costs!AL$353)*('Fixed assets'!$U$2:$U$1000=Costs!$A439)*(AbschreibungAHKBvD))","v":0},{"$f":"SUM(AM$178:AM262)-SUM(AM$266:AM350)+SUMPRODUCT((Aktivierungsjahr=Costs!$A439)*(AbschreibungAGr=Costs!AM$353)*('Fixed assets'!$U$2:$U$1000=Costs!$A439)*(AbschreibungAHKBvD))","v":0},{"$f":"SUM(AN$178:AN262)-SUM(AN$266:AN350)+SUMPRODUCT((Aktivierungsjahr=Costs!$A439)*(AbschreibungAGr=Costs!AN$353)*('Fixed assets'!$U$2:$U$1000=Costs!$A439)*(AbschreibungAHKBvD))","v":0},{"$f":"SUM(AO$178:AO262)-SUM(AO$266:AO350)+SUMPRODUCT((Aktivierungsjahr=Costs!$A439)*(AbschreibungAGr=Costs!AO$353)*('Fixed assets'!$U$2:$U$1000=Costs!$A439)*(AbschreibungAHKBvD))","v":0},{"$f":"SUM(AP$178:AP262)-SUM(AP$266:AP350)+SUMPRODUCT((Aktivierungsjahr=Costs!$A439)*(AbschreibungAGr=Costs!AP$353)*('Fixed assets'!$U$2:$U$1000=Costs!$A439)*(AbschreibungAHKBvD))","v":0},{"$f":"SUM(AQ$178:AQ262)-SUM(AQ$266:AQ350)+SUMPRODUCT((Aktivierungsjahr=Costs!$A439)*(AbschreibungAGr=Costs!AQ$353)*('Fixed assets'!$U$2:$U$1000=Costs!$A439)*(AbschreibungAHKBvD))","v":0}]
[]
[null,null,1,2,3,4,5,6,7,8,9,10,11,12,13,14,15,16,17,18,19,20,21,22,23,24,25,26,27,28,29,30,31,32,33,34,35,36,37,38,39,40,41]
["Residual values, yearly closing balance","Total","Properties","Property facilities, structures for transport system","Operating buildings","Administrative buildings","Track systems, wagons","Business equipment (without IT/tools/devices)","Tools/devices","Storage facilities","Hardware","Software","Light vehicles","Heavy vehicles","Gas holders","Natural gas compression","Gas purifiers","Piping and fittings","Gas measuring equipment","Safety equipment","Control and energy technology","Ancillary facilities","Buildings, transport routes","Steel pipelines – encapsulated in PE","Steel pipelines – cathodic protection","Steel pipelines – bituminised","Grey cast iron (> DN 150)","Polyethylene (PE - HD)","Polyvinyl chloride (PVC)","Polyvinyl chloride (PVC)","Fittings","Pig traps","Safety equipment","Gas meters of distribution","Service regulators/meter regulators","Metering equipment","Control equipment","Safety equipment","Control and energy technology","Compressors in gas-mixing systems by duration of use","Ancillary facilities","Buildings","Remote control equipment"]
[2016,{"$f":"SUM(C443:AQ443)","v":0},{"$f":"SUMPRODUCT((Aktivierungsjahr<=Costs!$A355)*(AbschreibungAGr=Costs!C$353)*(AbschreibungAHKBvD))-SUM(C$267:C267)","v":0},{"$f":"SUMPRODUCT((Aktivierungsjahr<=Costs!$A355)*(AbschreibungAGr=Costs!D$353)*(AbschreibungAHKBvD))-SUM(D$267:D267)","v":0},{"$f":"SUMPRODUCT((Aktivierungsjahr<=Costs!$A355)*(AbschreibungAGr=Costs!E$353)*(AbschreibungAHKBvD))-SUM(E$267:E267)","v":0},{"$f":"SUMPRODUCT((Aktivierungsjahr<=Costs!$A355)*(AbschreibungAGr=Costs!F$353)*(AbschreibungAHKBvD))-SUM(F$267:F267)","v":0},{"$f":"SUMPRODUCT((Aktivierungsjahr<=Costs!$A355)*(AbschreibungAGr=Costs!G$353)*(AbschreibungAHKBvD))-SUM(G$267:G267)","v":0},{"$f":"SUMPRODUCT((Aktivierungsjahr<=Costs!$A355)*(AbschreibungAGr=Costs!H$353)*(AbschreibungAHKBvD))-SUM(H$267:H267)","v":0},{"$f":"SUMPRODUCT((Aktivierungsjahr<=Costs!$A355)*(AbschreibungAGr=Costs!I$353)*(AbschreibungAHKBvD))-SUM(I$267:I267)","v":0},{"$f":"SUMPRODUCT((Aktivierungsjahr<=Costs!$A355)*(AbschreibungAGr=Costs!J$353)*(AbschreibungAHKBvD))-SUM(J$267:J267)","v":0},{"$f":"SUMPRODUCT((Aktivierungsjahr<=Costs!$A355)*(AbschreibungAGr=Costs!K$353)*(AbschreibungAHKBvD))-SUM(K$267:K267)","v":0},{"$f":"SUMPRODUCT((Aktivierungsjahr<=Costs!$A355)*(AbschreibungAGr=Costs!L$353)*(AbschreibungAHKBvD))-SUM(L$267:L267)","v":0},{"$f":"SUMPRODUCT((Aktivierungsjahr<=Costs!$A355)*(AbschreibungAGr=Costs!M$353)*(AbschreibungAHKBvD))-SUM(M$267:M267)","v":0},{"$f":"SUMPRODUCT((Aktivierungsjahr<=Costs!$A355)*(AbschreibungAGr=Costs!N$353)*(AbschreibungAHKBvD))-SUM(N$267:N267)","v":0},{"$f":"SUMPRODUCT((Aktivierungsjahr<=Costs!$A355)*(AbschreibungAGr=Costs!O$353)*(AbschreibungAHKBvD))-SUM(O$267:O267)","v":0},{"$f":"SUMPRODUCT((Aktivierungsjahr<=Costs!$A355)*(AbschreibungAGr=Costs!P$353)*(AbschreibungAHKBvD))-SUM(P$267:P267)","v":0},{"$f":"SUMPRODUCT((Aktivierungsjahr<=Costs!$A355)*(AbschreibungAGr=Costs!Q$353)*(AbschreibungAHKBvD))-SUM(Q$267:Q267)","v":0},{"$f":"SUMPRODUCT((Aktivierungsjahr<=Costs!$A355)*(AbschreibungAGr=Costs!R$353)*(AbschreibungAHKBvD))-SUM(R$267:R267)","v":0},{"$f":"SUMPRODUCT((Aktivierungsjahr<=Costs!$A355)*(AbschreibungAGr=Costs!S$353)*(AbschreibungAHKBvD))-SUM(S$267:S267)","v":0},{"$f":"SUMPRODUCT((Aktivierungsjahr<=Costs!$A355)*(AbschreibungAGr=Costs!T$353)*(AbschreibungAHKBvD))-SUM(T$267:T267)","v":0},{"$f":"SUMPRODUCT((Aktivierungsjahr<=Costs!$A355)*(AbschreibungAGr=Costs!U$353)*(AbschreibungAHKBvD))-SUM(U$267:U267)","v":0},{"$f":"SUMPRODUCT((Aktivierungsjahr<=Costs!$A355)*(AbschreibungAGr=Costs!V$353)*(AbschreibungAHKBvD))-SUM(V$267:V267)","v":0},{"$f":"SUMPRODUCT((Aktivierungsjahr<=Costs!$A355)*(AbschreibungAGr=Costs!W$353)*(AbschreibungAHKBvD))-SUM(W$267:W267)","v":0},{"$f":"SUMPRODUCT((Aktivierungsjahr<=Costs!$A355)*(AbschreibungAGr=Costs!X$353)*(AbschreibungAHKBvD))-SUM(X$267:X267)","v":0},{"$f":"SUMPRODUCT((Aktivierungsjahr<=Costs!$A355)*(AbschreibungAGr=Costs!Y$353)*(AbschreibungAHKBvD))-SUM(Y$267:Y267)","v":0},{"$f":"SUMPRODUCT((Aktivierungsjahr<=Costs!$A355)*(AbschreibungAGr=Costs!Z$353)*(AbschreibungAHKBvD))-SUM(Z$267:Z267)","v":0},{"$f":"SUMPRODUCT((Aktivierungsjahr<=Costs!$A355)*(AbschreibungAGr=Costs!AA$353)*(AbschreibungAHKBvD))-SUM(AA$267:AA267)","v":0},{"$f":"SUMPRODUCT((Aktivierungsjahr<=Costs!$A355)*(AbschreibungAGr=Costs!AB$353)*(AbschreibungAHKBvD))-SUM(AB$267:AB267)","v":0},{"$f":"SUMPRODUCT((Aktivierungsjahr<=Costs!$A355)*(AbschreibungAGr=Costs!AC$353)*(AbschreibungAHKBvD))-SUM(AC$267:AC267)","v":0},{"$f":"SUMPRODUCT((Aktivierungsjahr<=Costs!$A355)*(AbschreibungAGr=Costs!AD$353)*(AbschreibungAHKBvD))-SUM(AD$267:AD267)","v":0},{"$f":"SUMPRODUCT((Aktivierungsjahr<=Costs!$A355)*(AbschreibungAGr=Costs!AE$353)*(AbschreibungAHKBvD))-SUM(AE$267:AE267)","v":0},{"$f":"SUMPRODUCT((Aktivierungsjahr<=Costs!$A355)*(AbschreibungAGr=Costs!AF$353)*(AbschreibungAHKBvD))-SUM(AF$267:AF267)","v":0},{"$f":"SUMPRODUCT((Aktivierungsjahr<=Costs!$A355)*(AbschreibungAGr=Costs!AG$353)*(AbschreibungAHKBvD))-SUM(AG$267:AG267)","v":0},{"$f":"SUMPRODUCT((Aktivierungsjahr<=Costs!$A355)*(AbschreibungAGr=Costs!AH$353)*(AbschreibungAHKBvD))-SUM(AH$267:AH267)","v":0},{"$f":"SUMPRODUCT((Aktivierungsjahr<=Costs!$A355)*(AbschreibungAGr=Costs!AI$353)*(AbschreibungAHKBvD))-SUM(AI$267:AI267)","v":0},{"$f":"SUMPRODUCT((Aktivierungsjahr<=Costs!$A355)*(AbschreibungAGr=Costs!AJ$353)*(AbschreibungAHKBvD))-SUM(AJ$267:AJ267)","v":0},{"$f":"SUMPRODUCT((Aktivierungsjahr<=Costs!$A355)*(AbschreibungAGr=Costs!AK$353)*(AbschreibungAHKBvD))-SUM(AK$267:AK267)","v":0},{"$f":"SUMPRODUCT((Aktivierungsjahr<=Costs!$A355)*(AbschreibungAGr=Costs!AL$353)*(AbschreibungAHKBvD))-SUM(AL$267:AL267)","v":0},{"$f":"SUMPRODUCT((Aktivierungsjahr<=Costs!$A355)*(AbschreibungAGr=Costs!AM$353)*(AbschreibungAHKBvD))-SUM(AM$267:AM267)","v":0},{"$f":"SUMPRODUCT((Aktivierungsjahr<=Costs!$A355)*(AbschreibungAGr=Costs!AN$353)*(AbschreibungAHKBvD))-SUM(AN$267:AN267)","v":0},{"$f":"SUMPRODUCT((Aktivierungsjahr<=Costs!$A355)*(AbschreibungAGr=Costs!AO$353)*(AbschreibungAHKBvD))-SUM(AO$267:AO267)","v":0},{"$f":"SUMPRODUCT((Aktivierungsjahr<=Costs!$A355)*(AbschreibungAGr=Costs!AP$353)*(AbschreibungAHKBvD))-SUM(AP$267:AP267)","v":0},{"$f":"SUMPRODUCT((Aktivierungsjahr<=Costs!$A355)*(AbschreibungAGr=Costs!AQ$353)*(AbschreibungAHKBvD))-SUM(AQ$267:AQ267)","v":0}]
[2017,0,{"$f":"SUMPRODUCT((Aktivierungsjahr<=Costs!$A356)*(AbschreibungAGr=Costs!C$353)*(AbschreibungAHKBvD))-SUM(C$267:C268)","v":0},{"$f":"SUMPRODUCT((Aktivierungsjahr<=Costs!$A356)*(AbschreibungAGr=Costs!D$353)*(AbschreibungAHKBvD))-SUM(D$267:D268)","v":0},{"$f":"SUMPRODUCT((Aktivierungsjahr<=Costs!$A356)*(AbschreibungAGr=Costs!E$353)*(AbschreibungAHKBvD))-SUM(E$267:E268)","v":0},{"$f":"SUMPRODUCT((Aktivierungsjahr<=Costs!$A356)*(AbschreibungAGr=Costs!F$353)*(AbschreibungAHKBvD))-SUM(F$267:F268)","v":0},{"$f":"SUMPRODUCT((Aktivierungsjahr<=Costs!$A356)*(AbschreibungAGr=Costs!G$353)*(AbschreibungAHKBvD))-SUM(G$267:G268)","v":0},{"$f":"SUMPRODUCT((Aktivierungsjahr<=Costs!$A356)*(AbschreibungAGr=Costs!H$353)*(AbschreibungAHKBvD))-SUM(H$267:H268)","v":0},{"$f":"SUMPRODUCT((Aktivierungsjahr<=Costs!$A356)*(AbschreibungAGr=Costs!I$353)*(AbschreibungAHKBvD))-SUM(I$267:I268)","v":0},{"$f":"SUMPRODUCT((Aktivierungsjahr<=Costs!$A356)*(AbschreibungAGr=Costs!J$353)*(AbschreibungAHKBvD))-SUM(J$267:J268)","v":0},{"$f":"SUMPRODUCT((Aktivierungsjahr<=Costs!$A356)*(AbschreibungAGr=Costs!K$353)*(AbschreibungAHKBvD))-SUM(K$267:K268)","v":0},{"$f":"SUMPRODUCT((Aktivierungsjahr<=Costs!$A356)*(AbschreibungAGr=Costs!L$353)*(AbschreibungAHKBvD))-SUM(L$267:L268)","v":0},{"$f":"SUMPRODUCT((Aktivierungsjahr<=Costs!$A356)*(AbschreibungAGr=Costs!M$353)*(AbschreibungAHKBvD))-SUM(M$267:M268)","v":0},{"$f":"SUMPRODUCT((Aktivierungsjahr<=Costs!$A356)*(AbschreibungAGr=Costs!N$353)*(AbschreibungAHKBvD))-SUM(N$267:N268)","v":0},{"$f":"SUMPRODUCT((Aktivierungsjahr<=Costs!$A356)*(AbschreibungAGr=Costs!O$353)*(AbschreibungAHKBvD))-SUM(O$267:O268)","v":0},{"$f":"SUMPRODUCT((Aktivierungsjahr<=Costs!$A356)*(AbschreibungAGr=Costs!P$353)*(AbschreibungAHKBvD))-SUM(P$267:P268)","v":0},{"$f":"SUMPRODUCT((Aktivierungsjahr<=Costs!$A356)*(AbschreibungAGr=Costs!Q$353)*(AbschreibungAHKBvD))-SUM(Q$267:Q268)","v":0},{"$f":"SUMPRODUCT((Aktivierungsjahr<=Costs!$A356)*(AbschreibungAGr=Costs!R$353)*(AbschreibungAHKBvD))-SUM(R$267:R268)","v":0},{"$f":"SUMPRODUCT((Aktivierungsjahr<=Costs!$A356)*(AbschreibungAGr=Costs!S$353)*(AbschreibungAHKBvD))-SUM(S$267:S268)","v":0},{"$f":"SUMPRODUCT((Aktivierungsjahr<=Costs!$A356)*(AbschreibungAGr=Costs!T$353)*(AbschreibungAHKBvD))-SUM(T$267:T268)","v":0},{"$f":"SUMPRODUCT((Aktivierungsjahr<=Costs!$A356)*(AbschreibungAGr=Costs!U$353)*(AbschreibungAHKBvD))-SUM(U$267:U268)","v":0},{"$f":"SUMPRODUCT((Aktivierungsjahr<=Costs!$A356)*(AbschreibungAGr=Costs!V$353)*(AbschreibungAHKBvD))-SUM(V$267:V268)","v":0},{"$f":"SUMPRODUCT((Aktivierungsjahr<=Costs!$A356)*(AbschreibungAGr=Costs!W$353)*(AbschreibungAHKBvD))-SUM(W$267:W268)","v":0},{"$f":"SUMPRODUCT((Aktivierungsjahr<=Costs!$A356)*(AbschreibungAGr=Costs!X$353)*(AbschreibungAHKBvD))-SUM(X$267:X268)","v":0},{"$f":"SUMPRODUCT((Aktivierungsjahr<=Costs!$A356)*(AbschreibungAGr=Costs!Y$353)*(AbschreibungAHKBvD))-SUM(Y$267:Y268)","v":0},{"$f":"SUMPRODUCT((Aktivierungsjahr<=Costs!$A356)*(AbschreibungAGr=Costs!Z$353)*(AbschreibungAHKBvD))-SUM(Z$267:Z268)","v":0},{"$f":"SUMPRODUCT((Aktivierungsjahr<=Costs!$A356)*(AbschreibungAGr=Costs!AA$353)*(AbschreibungAHKBvD))-SUM(AA$267:AA268)","v":0},{"$f":"SUMPRODUCT((Aktivierungsjahr<=Costs!$A356)*(AbschreibungAGr=Costs!AB$353)*(AbschreibungAHKBvD))-SUM(AB$267:AB268)","v":0},{"$f":"SUMPRODUCT((Aktivierungsjahr<=Costs!$A356)*(AbschreibungAGr=Costs!AC$353)*(AbschreibungAHKBvD))-SUM(AC$267:AC268)","v":0},{"$f":"SUMPRODUCT((Aktivierungsjahr<=Costs!$A356)*(AbschreibungAGr=Costs!AD$353)*(AbschreibungAHKBvD))-SUM(AD$267:AD268)","v":0},{"$f":"SUMPRODUCT((Aktivierungsjahr<=Costs!$A356)*(AbschreibungAGr=Costs!AE$353)*(AbschreibungAHKBvD))-SUM(AE$267:AE268)","v":0},{"$f":"SUMPRODUCT((Aktivierungsjahr<=Costs!$A356)*(AbschreibungAGr=Costs!AF$353)*(AbschreibungAHKBvD))-SUM(AF$267:AF268)","v":0},{"$f":"SUMPRODUCT((Aktivierungsjahr<=Costs!$A356)*(AbschreibungAGr=Costs!AG$353)*(AbschreibungAHKBvD))-SUM(AG$267:AG268)","v":0},{"$f":"SUMPRODUCT((Aktivierungsjahr<=Costs!$A356)*(AbschreibungAGr=Costs!AH$353)*(AbschreibungAHKBvD))-SUM(AH$267:AH268)","v":0},{"$f":"SUMPRODUCT((Aktivierungsjahr<=Costs!$A356)*(AbschreibungAGr=Costs!AI$353)*(AbschreibungAHKBvD))-SUM(AI$267:AI268)","v":0},{"$f":"SUMPRODUCT((Aktivierungsjahr<=Costs!$A356)*(AbschreibungAGr=Costs!AJ$353)*(AbschreibungAHKBvD))-SUM(AJ$267:AJ268)","v":0},{"$f":"SUMPRODUCT((Aktivierungsjahr<=Costs!$A356)*(AbschreibungAGr=Costs!AK$353)*(AbschreibungAHKBvD))-SUM(AK$267:AK268)","v":0},{"$f":"SUMPRODUCT((Aktivierungsjahr<=Costs!$A356)*(AbschreibungAGr=Costs!AL$353)*(AbschreibungAHKBvD))-SUM(AL$267:AL268)","v":0},{"$f":"SUMPRODUCT((Aktivierungsjahr<=Costs!$A356)*(AbschreibungAGr=Costs!AM$353)*(AbschreibungAHKBvD))-SUM(AM$267:AM268)","v":0},{"$f":"SUMPRODUCT((Aktivierungsjahr<=Costs!$A356)*(AbschreibungAGr=Costs!AN$353)*(AbschreibungAHKBvD))-SUM(AN$267:AN268)","v":0},{"$f":"SUMPRODUCT((Aktivierungsjahr<=Costs!$A356)*(AbschreibungAGr=Costs!AO$353)*(AbschreibungAHKBvD))-SUM(AO$267:AO268)","v":0},{"$f":"SUMPRODUCT((Aktivierungsjahr<=Costs!$A356)*(AbschreibungAGr=Costs!AP$353)*(AbschreibungAHKBvD))-SUM(AP$267:AP268)","v":0},{"$f":"SUMPRODUCT((Aktivierungsjahr<=Costs!$A356)*(AbschreibungAGr=Costs!AQ$353)*(AbschreibungAHKBvD))-SUM(AQ$267:AQ268)","v":0}]
[2018,0,{"$f":"SUMPRODUCT((Aktivierungsjahr<=Costs!$A357)*(AbschreibungAGr=Costs!C$353)*(AbschreibungAHKBvD))-SUM(C$267:C269)","v":0},{"$f":"SUMPRODUCT((Aktivierungsjahr<=Costs!$A357)*(AbschreibungAGr=Costs!D$353)*(AbschreibungAHKBvD))-SUM(D$267:D269)","v":0},{"$f":"SUMPRODUCT((Aktivierungsjahr<=Costs!$A357)*(AbschreibungAGr=Costs!E$353)*(AbschreibungAHKBvD))-SUM(E$267:E269)","v":0},{"$f":"SUMPRODUCT((Aktivierungsjahr<=Costs!$A357)*(AbschreibungAGr=Costs!F$353)*(AbschreibungAHKBvD))-SUM(F$267:F269)","v":0},{"$f":"SUMPRODUCT((Aktivierungsjahr<=Costs!$A357)*(AbschreibungAGr=Costs!G$353)*(AbschreibungAHKBvD))-SUM(G$267:G269)","v":0},{"$f":"SUMPRODUCT((Aktivierungsjahr<=Costs!$A357)*(AbschreibungAGr=Costs!H$353)*(AbschreibungAHKBvD))-SUM(H$267:H269)","v":0},{"$f":"SUMPRODUCT((Aktivierungsjahr<=Costs!$A357)*(AbschreibungAGr=Costs!I$353)*(AbschreibungAHKBvD))-SUM(I$267:I269)","v":0},{"$f":"SUMPRODUCT((Aktivierungsjahr<=Costs!$A357)*(AbschreibungAGr=Costs!J$353)*(AbschreibungAHKBvD))-SUM(J$267:J269)","v":0},{"$f":"SUMPRODUCT((Aktivierungsjahr<=Costs!$A357)*(AbschreibungAGr=Costs!K$353)*(AbschreibungAHKBvD))-SUM(K$267:K269)","v":0},{"$f":"SUMPRODUCT((Aktivierungsjahr<=Costs!$A357)*(AbschreibungAGr=Costs!L$353)*(AbschreibungAHKBvD))-SUM(L$267:L269)","v":0},{"$f":"SUMPRODUCT((Aktivierungsjahr<=Costs!$A357)*(AbschreibungAGr=Costs!M$353)*(AbschreibungAHKBvD))-SUM(M$267:M269)","v":0},{"$f":"SUMPRODUCT((Aktivierungsjahr<=Costs!$A357)*(AbschreibungAGr=Costs!N$353)*(AbschreibungAHKBvD))-SUM(N$267:N269)","v":0},{"$f":"SUMPRODUCT((Aktivierungsjahr<=Costs!$A357)*(AbschreibungAGr=Costs!O$353)*(AbschreibungAHKBvD))-SUM(O$267:O269)","v":0},{"$f":"SUMPRODUCT((Aktivierungsjahr<=Costs!$A357)*(AbschreibungAGr=Costs!P$353)*(AbschreibungAHKBvD))-SUM(P$267:P269)","v":0},{"$f":"SUMPRODUCT((Aktivierungsjahr<=Costs!$A357)*(AbschreibungAGr=Costs!Q$353)*(AbschreibungAHKBvD))-SUM(Q$267:Q269)","v":0},{"$f":"SUMPRODUCT((Aktivierungsjahr<=Costs!$A357)*(AbschreibungAGr=Costs!R$353)*(AbschreibungAHKBvD))-SUM(R$267:R269)","v":0},{"$f":"SUMPRODUCT((Aktivierungsjahr<=Costs!$A357)*(AbschreibungAGr=Costs!S$353)*(AbschreibungAHKBvD))-SUM(S$267:S269)","v":0},{"$f":"SUMPRODUCT((Aktivierungsjahr<=Costs!$A357)*(AbschreibungAGr=Costs!T$353)*(AbschreibungAHKBvD))-SUM(T$267:T269)","v":0},{"$f":"SUMPRODUCT((Aktivierungsjahr<=Costs!$A357)*(AbschreibungAGr=Costs!U$353)*(AbschreibungAHKBvD))-SUM(U$267:U269)","v":0},{"$f":"SUMPRODUCT((Aktivierungsjahr<=Costs!$A357)*(AbschreibungAGr=Costs!V$353)*(AbschreibungAHKBvD))-SUM(V$267:V269)","v":0},{"$f":"SUMPRODUCT((Aktivierungsjahr<=Costs!$A357)*(AbschreibungAGr=Costs!W$353)*(AbschreibungAHKBvD))-SUM(W$267:W269)","v":0},{"$f":"SUMPRODUCT((Aktivierungsjahr<=Costs!$A357)*(AbschreibungAGr=Costs!X$353)*(AbschreibungAHKBvD))-SUM(X$267:X269)","v":0},{"$f":"SUMPRODUCT((Aktivierungsjahr<=Costs!$A357)*(AbschreibungAGr=Costs!Y$353)*(AbschreibungAHKBvD))-SUM(Y$267:Y269)","v":0},{"$f":"SUMPRODUCT((Aktivierungsjahr<=Costs!$A357)*(AbschreibungAGr=Costs!Z$353)*(AbschreibungAHKBvD))-SUM(Z$267:Z269)","v":0},{"$f":"SUMPRODUCT((Aktivierungsjahr<=Costs!$A357)*(AbschreibungAGr=Costs!AA$353)*(AbschreibungAHKBvD))-SUM(AA$267:AA269)","v":0},{"$f":"SUMPRODUCT((Aktivierungsjahr<=Costs!$A357)*(AbschreibungAGr=Costs!AB$353)*(AbschreibungAHKBvD))-SUM(AB$267:AB269)","v":0},{"$f":"SUMPRODUCT((Aktivierungsjahr<=Costs!$A357)*(AbschreibungAGr=Costs!AC$353)*(AbschreibungAHKBvD))-SUM(AC$267:AC269)","v":0},{"$f":"SUMPRODUCT((Aktivierungsjahr<=Costs!$A357)*(AbschreibungAGr=Costs!AD$353)*(AbschreibungAHKBvD))-SUM(AD$267:AD269)","v":0},{"$f":"SUMPRODUCT((Aktivierungsjahr<=Costs!$A357)*(AbschreibungAGr=Costs!AE$353)*(AbschreibungAHKBvD))-SUM(AE$267:AE269)","v":0},{"$f":"SUMPRODUCT((Aktivierungsjahr<=Costs!$A357)*(AbschreibungAGr=Costs!AF$353)*(AbschreibungAHKBvD))-SUM(AF$267:AF269)","v":0},{"$f":"SUMPRODUCT((Aktivierungsjahr<=Costs!$A357)*(AbschreibungAGr=Costs!AG$353)*(AbschreibungAHKBvD))-SUM(AG$267:AG269)","v":0},{"$f":"SUMPRODUCT((Aktivierungsjahr<=Costs!$A357)*(AbschreibungAGr=Costs!AH$353)*(AbschreibungAHKBvD))-SUM(AH$267:AH269)","v":0},{"$f":"SUMPRODUCT((Aktivierungsjahr<=Costs!$A357)*(AbschreibungAGr=Costs!AI$353)*(AbschreibungAHKBvD))-SUM(AI$267:AI269)","v":0},{"$f":"SUMPRODUCT((Aktivierungsjahr<=Costs!$A357)*(AbschreibungAGr=Costs!AJ$353)*(AbschreibungAHKBvD))-SUM(AJ$267:AJ269)","v":0},{"$f":"SUMPRODUCT((Aktivierungsjahr<=Costs!$A357)*(AbschreibungAGr=Costs!AK$353)*(AbschreibungAHKBvD))-SUM(AK$267:AK269)","v":0},{"$f":"SUMPRODUCT((Aktivierungsjahr<=Costs!$A357)*(AbschreibungAGr=Costs!AL$353)*(AbschreibungAHKBvD))-SUM(AL$267:AL269)","v":0},{"$f":"SUMPRODUCT((Aktivierungsjahr<=Costs!$A357)*(AbschreibungAGr=Costs!AM$353)*(AbschreibungAHKBvD))-SUM(AM$267:AM269)","v":0},{"$f":"SUMPRODUCT((Aktivierungsjahr<=Costs!$A357)*(AbschreibungAGr=Costs!AN$353)*(AbschreibungAHKBvD))-SUM(AN$267:AN269)","v":0},{"$f":"SUMPRODUCT((Aktivierungsjahr<=Costs!$A357)*(AbschreibungAGr=Costs!AO$353)*(AbschreibungAHKBvD))-SUM(AO$267:AO269)","v":0},{"$f":"SUMPRODUCT((Aktivierungsjahr<=Costs!$A357)*(AbschreibungAGr=Costs!AP$353)*(AbschreibungAHKBvD))-SUM(AP$267:AP269)","v":0},{"$f":"SUMPRODUCT((Aktivierungsjahr<=Costs!$A357)*(AbschreibungAGr=Costs!AQ$353)*(AbschreibungAHKBvD))-SUM(AQ$267:AQ269)","v":0}]
[2019,0,{"$f":"SUMPRODUCT((Aktivierungsjahr<=Costs!$A358)*(AbschreibungAGr=Costs!C$353)*(AbschreibungAHKBvD))-SUM(C$267:C270)","v":0},{"$f":"SUMPRODUCT((Aktivierungsjahr<=Costs!$A358)*(AbschreibungAGr=Costs!D$353)*(AbschreibungAHKBvD))-SUM(D$267:D270)","v":0},{"$f":"SUMPRODUCT((Aktivierungsjahr<=Costs!$A358)*(AbschreibungAGr=Costs!E$353)*(AbschreibungAHKBvD))-SUM(E$267:E270)","v":0},{"$f":"SUMPRODUCT((Aktivierungsjahr<=Costs!$A358)*(AbschreibungAGr=Costs!F$353)*(AbschreibungAHKBvD))-SUM(F$267:F270)","v":0},{"$f":"SUMPRODUCT((Aktivierungsjahr<=Costs!$A358)*(AbschreibungAGr=Costs!G$353)*(AbschreibungAHKBvD))-SUM(G$267:G270)","v":0},{"$f":"SUMPRODUCT((Aktivierungsjahr<=Costs!$A358)*(AbschreibungAGr=Costs!H$353)*(AbschreibungAHKBvD))-SUM(H$267:H270)","v":0},{"$f":"SUMPRODUCT((Aktivierungsjahr<=Costs!$A358)*(AbschreibungAGr=Costs!I$353)*(AbschreibungAHKBvD))-SUM(I$267:I270)","v":0},{"$f":"SUMPRODUCT((Aktivierungsjahr<=Costs!$A358)*(AbschreibungAGr=Costs!J$353)*(AbschreibungAHKBvD))-SUM(J$267:J270)","v":0},{"$f":"SUMPRODUCT((Aktivierungsjahr<=Costs!$A358)*(AbschreibungAGr=Costs!K$353)*(AbschreibungAHKBvD))-SUM(K$267:K270)","v":0},{"$f":"SUMPRODUCT((Aktivierungsjahr<=Costs!$A358)*(AbschreibungAGr=Costs!L$353)*(AbschreibungAHKBvD))-SUM(L$267:L270)","v":0},{"$f":"SUMPRODUCT((Aktivierungsjahr<=Costs!$A358)*(AbschreibungAGr=Costs!M$353)*(AbschreibungAHKBvD))-SUM(M$267:M270)","v":0},{"$f":"SUMPRODUCT((Aktivierungsjahr<=Costs!$A358)*(AbschreibungAGr=Costs!N$353)*(AbschreibungAHKBvD))-SUM(N$267:N270)","v":0},{"$f":"SUMPRODUCT((Aktivierungsjahr<=Costs!$A358)*(AbschreibungAGr=Costs!O$353)*(AbschreibungAHKBvD))-SUM(O$267:O270)","v":0},{"$f":"SUMPRODUCT((Aktivierungsjahr<=Costs!$A358)*(AbschreibungAGr=Costs!P$353)*(AbschreibungAHKBvD))-SUM(P$267:P270)","v":0},{"$f":"SUMPRODUCT((Aktivierungsjahr<=Costs!$A358)*(AbschreibungAGr=Costs!Q$353)*(AbschreibungAHKBvD))-SUM(Q$267:Q270)","v":0},{"$f":"SUMPRODUCT((Aktivierungsjahr<=Costs!$A358)*(AbschreibungAGr=Costs!R$353)*(AbschreibungAHKBvD))-SUM(R$267:R270)","v":0},{"$f":"SUMPRODUCT((Aktivierungsjahr<=Costs!$A358)*(AbschreibungAGr=Costs!S$353)*(AbschreibungAHKBvD))-SUM(S$267:S270)","v":0},{"$f":"SUMPRODUCT((Aktivierungsjahr<=Costs!$A358)*(AbschreibungAGr=Costs!T$353)*(AbschreibungAHKBvD))-SUM(T$267:T270)","v":0},{"$f":"SUMPRODUCT((Aktivierungsjahr<=Costs!$A358)*(AbschreibungAGr=Costs!U$353)*(AbschreibungAHKBvD))-SUM(U$267:U270)","v":0},{"$f":"SUMPRODUCT((Aktivierungsjahr<=Costs!$A358)*(AbschreibungAGr=Costs!V$353)*(AbschreibungAHKBvD))-SUM(V$267:V270)","v":0},{"$f":"SUMPRODUCT((Aktivierungsjahr<=Costs!$A358)*(AbschreibungAGr=Costs!W$353)*(AbschreibungAHKBvD))-SUM(W$267:W270)","v":0},{"$f":"SUMPRODUCT((Aktivierungsjahr<=Costs!$A358)*(AbschreibungAGr=Costs!X$353)*(AbschreibungAHKBvD))-SUM(X$267:X270)","v":0},{"$f":"SUMPRODUCT((Aktivierungsjahr<=Costs!$A358)*(AbschreibungAGr=Costs!Y$353)*(AbschreibungAHKBvD))-SUM(Y$267:Y270)","v":0},{"$f":"SUMPRODUCT((Aktivierungsjahr<=Costs!$A358)*(AbschreibungAGr=Costs!Z$353)*(AbschreibungAHKBvD))-SUM(Z$267:Z270)","v":0},{"$f":"SUMPRODUCT((Aktivierungsjahr<=Costs!$A358)*(AbschreibungAGr=Costs!AA$353)*(AbschreibungAHKBvD))-SUM(AA$267:AA270)","v":0},{"$f":"SUMPRODUCT((Aktivierungsjahr<=Costs!$A358)*(AbschreibungAGr=Costs!AB$353)*(AbschreibungAHKBvD))-SUM(AB$267:AB270)","v":0},{"$f":"SUMPRODUCT((Aktivierungsjahr<=Costs!$A358)*(AbschreibungAGr=Costs!AC$353)*(AbschreibungAHKBvD))-SUM(AC$267:AC270)","v":0},{"$f":"SUMPRODUCT((Aktivierungsjahr<=Costs!$A358)*(AbschreibungAGr=Costs!AD$353)*(AbschreibungAHKBvD))-SUM(AD$267:AD270)","v":0},{"$f":"SUMPRODUCT((Aktivierungsjahr<=Costs!$A358)*(AbschreibungAGr=Costs!AE$353)*(AbschreibungAHKBvD))-SUM(AE$267:AE270)","v":0},{"$f":"SUMPRODUCT((Aktivierungsjahr<=Costs!$A358)*(AbschreibungAGr=Costs!AF$353)*(AbschreibungAHKBvD))-SUM(AF$267:AF270)","v":0},{"$f":"SUMPRODUCT((Aktivierungsjahr<=Costs!$A358)*(AbschreibungAGr=Costs!AG$353)*(AbschreibungAHKBvD))-SUM(AG$267:AG270)","v":0},{"$f":"SUMPRODUCT((Aktivierungsjahr<=Costs!$A358)*(AbschreibungAGr=Costs!AH$353)*(AbschreibungAHKBvD))-SUM(AH$267:AH270)","v":0},{"$f":"SUMPRODUCT((Aktivierungsjahr<=Costs!$A358)*(AbschreibungAGr=Costs!AI$353)*(AbschreibungAHKBvD))-SUM(AI$267:AI270)","v":0},{"$f":"SUMPRODUCT((Aktivierungsjahr<=Costs!$A358)*(AbschreibungAGr=Costs!AJ$353)*(AbschreibungAHKBvD))-SUM(AJ$267:AJ270)","v":0},{"$f":"SUMPRODUCT((Aktivierungsjahr<=Costs!$A358)*(AbschreibungAGr=Costs!AK$353)*(AbschreibungAHKBvD))-SUM(AK$267:AK270)","v":0},{"$f":"SUMPRODUCT((Aktivierungsjahr<=Costs!$A358)*(AbschreibungAGr=Costs!AL$353)*(AbschreibungAHKBvD))-SUM(AL$267:AL270)","v":0},{"$f":"SUMPRODUCT((Aktivierungsjahr<=Costs!$A358)*(AbschreibungAGr=Costs!AM$353)*(AbschreibungAHKBvD))-SUM(AM$267:AM270)","v":0},{"$f":"SUMPRODUCT((Aktivierungsjahr<=Costs!$A358)*(AbschreibungAGr=Costs!AN$353)*(AbschreibungAHKBvD))-SUM(AN$267:AN270)","v":0},{"$f":"SUMPRODUCT((Aktivierungsjahr<=Costs!$A358)*(AbschreibungAGr=Costs!AO$353)*(AbschreibungAHKBvD))-SUM(AO$267:AO270)","v":0},{"$f":"SUMPRODUCT((Aktivierungsjahr<=Costs!$A358)*(AbschreibungAGr=Costs!AP$353)*(AbschreibungAHKBvD))-SUM(AP$267:AP270)","v":0},{"$f":"SUMPRODUCT((Aktivierungsjahr<=Costs!$A358)*(AbschreibungAGr=Costs!AQ$353)*(AbschreibungAHKBvD))-SUM(AQ$267:AQ270)","v":0}]
[2020,0,{"$f":"SUMPRODUCT((Aktivierungsjahr<=Costs!$A359)*(AbschreibungAGr=Costs!C$353)*(AbschreibungAHKBvD))-SUM(C$267:C271)","v":0},{"$f":"SUMPRODUCT((Aktivierungsjahr<=Costs!$A359)*(AbschreibungAGr=Costs!D$353)*(AbschreibungAHKBvD))-SUM(D$267:D271)","v":0},{"$f":"SUMPRODUCT((Aktivierungsjahr<=Costs!$A359)*(AbschreibungAGr=Costs!E$353)*(AbschreibungAHKBvD))-SUM(E$267:E271)","v":0},{"$f":"SUMPRODUCT((Aktivierungsjahr<=Costs!$A359)*(AbschreibungAGr=Costs!F$353)*(AbschreibungAHKBvD))-SUM(F$267:F271)","v":0},{"$f":"SUMPRODUCT((Aktivierungsjahr<=Costs!$A359)*(AbschreibungAGr=Costs!G$353)*(AbschreibungAHKBvD))-SUM(G$267:G271)","v":0},{"$f":"SUMPRODUCT((Aktivierungsjahr<=Costs!$A359)*(AbschreibungAGr=Costs!H$353)*(AbschreibungAHKBvD))-SUM(H$267:H271)","v":0},{"$f":"SUMPRODUCT((Aktivierungsjahr<=Costs!$A359)*(AbschreibungAGr=Costs!I$353)*(AbschreibungAHKBvD))-SUM(I$267:I271)","v":0},{"$f":"SUMPRODUCT((Aktivierungsjahr<=Costs!$A359)*(AbschreibungAGr=Costs!J$353)*(AbschreibungAHKBvD))-SUM(J$267:J271)","v":0},{"$f":"SUMPRODUCT((Aktivierungsjahr<=Costs!$A359)*(AbschreibungAGr=Costs!K$353)*(AbschreibungAHKBvD))-SUM(K$267:K271)","v":0},{"$f":"SUMPRODUCT((Aktivierungsjahr<=Costs!$A359)*(AbschreibungAGr=Costs!L$353)*(AbschreibungAHKBvD))-SUM(L$267:L271)","v":0},{"$f":"SUMPRODUCT((Aktivierungsjahr<=Costs!$A359)*(AbschreibungAGr=Costs!M$353)*(AbschreibungAHKBvD))-SUM(M$267:M271)","v":0},{"$f":"SUMPRODUCT((Aktivierungsjahr<=Costs!$A359)*(AbschreibungAGr=Costs!N$353)*(AbschreibungAHKBvD))-SUM(N$267:N271)","v":0},{"$f":"SUMPRODUCT((Aktivierungsjahr<=Costs!$A359)*(AbschreibungAGr=Costs!O$353)*(AbschreibungAHKBvD))-SUM(O$267:O271)","v":0},{"$f":"SUMPRODUCT((Aktivierungsjahr<=Costs!$A359)*(AbschreibungAGr=Costs!P$353)*(AbschreibungAHKBvD))-SUM(P$267:P271)","v":0},{"$f":"SUMPRODUCT((Aktivierungsjahr<=Costs!$A359)*(AbschreibungAGr=Costs!Q$353)*(AbschreibungAHKBvD))-SUM(Q$267:Q271)","v":0},{"$f":"SUMPRODUCT((Aktivierungsjahr<=Costs!$A359)*(AbschreibungAGr=Costs!R$353)*(AbschreibungAHKBvD))-SUM(R$267:R271)","v":0},{"$f":"SUMPRODUCT((Aktivierungsjahr<=Costs!$A359)*(AbschreibungAGr=Costs!S$353)*(AbschreibungAHKBvD))-SUM(S$267:S271)","v":0},{"$f":"SUMPRODUCT((Aktivierungsjahr<=Costs!$A359)*(AbschreibungAGr=Costs!T$353)*(AbschreibungAHKBvD))-SUM(T$267:T271)","v":0},{"$f":"SUMPRODUCT((Aktivierungsjahr<=Costs!$A359)*(AbschreibungAGr=Costs!U$353)*(AbschreibungAHKBvD))-SUM(U$267:U271)","v":0},{"$f":"SUMPRODUCT((Aktivierungsjahr<=Costs!$A359)*(AbschreibungAGr=Costs!V$353)*(AbschreibungAHKBvD))-SUM(V$267:V271)","v":0},{"$f":"SUMPRODUCT((Aktivierungsjahr<=Costs!$A359)*(AbschreibungAGr=Costs!W$353)*(AbschreibungAHKBvD))-SUM(W$267:W271)","v":0},{"$f":"SUMPRODUCT((Aktivierungsjahr<=Costs!$A359)*(AbschreibungAGr=Costs!X$353)*(AbschreibungAHKBvD))-SUM(X$267:X271)","v":0},{"$f":"SUMPRODUCT((Aktivierungsjahr<=Costs!$A359)*(AbschreibungAGr=Costs!Y$353)*(AbschreibungAHKBvD))-SUM(Y$267:Y271)","v":0},{"$f":"SUMPRODUCT((Aktivierungsjahr<=Costs!$A359)*(AbschreibungAGr=Costs!Z$353)*(AbschreibungAHKBvD))-SUM(Z$267:Z271)","v":0},{"$f":"SUMPRODUCT((Aktivierungsjahr<=Costs!$A359)*(AbschreibungAGr=Costs!AA$353)*(AbschreibungAHKBvD))-SUM(AA$267:AA271)","v":0},{"$f":"SUMPRODUCT((Aktivierungsjahr<=Costs!$A359)*(AbschreibungAGr=Costs!AB$353)*(AbschreibungAHKBvD))-SUM(AB$267:AB271)","v":0},{"$f":"SUMPRODUCT((Aktivierungsjahr<=Costs!$A359)*(AbschreibungAGr=Costs!AC$353)*(AbschreibungAHKBvD))-SUM(AC$267:AC271)","v":0},{"$f":"SUMPRODUCT((Aktivierungsjahr<=Costs!$A359)*(AbschreibungAGr=Costs!AD$353)*(AbschreibungAHKBvD))-SUM(AD$267:AD271)","v":0},{"$f":"SUMPRODUCT((Aktivierungsjahr<=Costs!$A359)*(AbschreibungAGr=Costs!AE$353)*(AbschreibungAHKBvD))-SUM(AE$267:AE271)","v":0},{"$f":"SUMPRODUCT((Aktivierungsjahr<=Costs!$A359)*(AbschreibungAGr=Costs!AF$353)*(AbschreibungAHKBvD))-SUM(AF$267:AF271)","v":0},{"$f":"SUMPRODUCT((Aktivierungsjahr<=Costs!$A359)*(AbschreibungAGr=Costs!AG$353)*(AbschreibungAHKBvD))-SUM(AG$267:AG271)","v":0},{"$f":"SUMPRODUCT((Aktivierungsjahr<=Costs!$A359)*(AbschreibungAGr=Costs!AH$353)*(AbschreibungAHKBvD))-SUM(AH$267:AH271)","v":0},{"$f":"SUMPRODUCT((Aktivierungsjahr<=Costs!$A359)*(AbschreibungAGr=Costs!AI$353)*(AbschreibungAHKBvD))-SUM(AI$267:AI271)","v":0},{"$f":"SUMPRODUCT((Aktivierungsjahr<=Costs!$A359)*(AbschreibungAGr=Costs!AJ$353)*(AbschreibungAHKBvD))-SUM(AJ$267:AJ271)","v":0},{"$f":"SUMPRODUCT((Aktivierungsjahr<=Costs!$A359)*(AbschreibungAGr=Costs!AK$353)*(AbschreibungAHKBvD))-SUM(AK$267:AK271)","v":0},{"$f":"SUMPRODUCT((Aktivierungsjahr<=Costs!$A359)*(AbschreibungAGr=Costs!AL$353)*(AbschreibungAHKBvD))-SUM(AL$267:AL271)","v":0},{"$f":"SUMPRODUCT((Aktivierungsjahr<=Costs!$A359)*(AbschreibungAGr=Costs!AM$353)*(AbschreibungAHKBvD))-SUM(AM$267:AM271)","v":0},{"$f":"SUMPRODUCT((Aktivierungsjahr<=Costs!$A359)*(AbschreibungAGr=Costs!AN$353)*(AbschreibungAHKBvD))-SUM(AN$267:AN271)","v":0},{"$f":"SUMPRODUCT((Aktivierungsjahr<=Costs!$A359)*(AbschreibungAGr=Costs!AO$353)*(AbschreibungAHKBvD))-SUM(AO$267:AO271)","v":0},{"$f":"SUMPRODUCT((Aktivierungsjahr<=Costs!$A359)*(AbschreibungAGr=Costs!AP$353)*(AbschreibungAHKBvD))-SUM(AP$267:AP271)","v":0},{"$f":"SUMPRODUCT((Aktivierungsjahr<=Costs!$A359)*(AbschreibungAGr=Costs!AQ$353)*(AbschreibungAHKBvD))-SUM(AQ$267:AQ271)","v":0}]
[2021,0,{"$f":"SUMPRODUCT((Aktivierungsjahr<=Costs!$A360)*(AbschreibungAGr=Costs!C$353)*(AbschreibungAHKBvD))-SUM(C$267:C272)","v":0},{"$f":"SUMPRODUCT((Aktivierungsjahr<=Costs!$A360)*(AbschreibungAGr=Costs!D$353)*(AbschreibungAHKBvD))-SUM(D$267:D272)","v":0},{"$f":"SUMPRODUCT((Aktivierungsjahr<=Costs!$A360)*(AbschreibungAGr=Costs!E$353)*(AbschreibungAHKBvD))-SUM(E$267:E272)","v":0},{"$f":"SUMPRODUCT((Aktivierungsjahr<=Costs!$A360)*(AbschreibungAGr=Costs!F$353)*(AbschreibungAHKBvD))-SUM(F$267:F272)","v":0},{"$f":"SUMPRODUCT((Aktivierungsjahr<=Costs!$A360)*(AbschreibungAGr=Costs!G$353)*(AbschreibungAHKBvD))-SUM(G$267:G272)","v":0},{"$f":"SUMPRODUCT((Aktivierungsjahr<=Costs!$A360)*(AbschreibungAGr=Costs!H$353)*(AbschreibungAHKBvD))-SUM(H$267:H272)","v":0},{"$f":"SUMPRODUCT((Aktivierungsjahr<=Costs!$A360)*(AbschreibungAGr=Costs!I$353)*(AbschreibungAHKBvD))-SUM(I$267:I272)","v":0},{"$f":"SUMPRODUCT((Aktivierungsjahr<=Costs!$A360)*(AbschreibungAGr=Costs!J$353)*(AbschreibungAHKBvD))-SUM(J$267:J272)","v":0},{"$f":"SUMPRODUCT((Aktivierungsjahr<=Costs!$A360)*(AbschreibungAGr=Costs!K$353)*(AbschreibungAHKBvD))-SUM(K$267:K272)","v":0},{"$f":"SUMPRODUCT((Aktivierungsjahr<=Costs!$A360)*(AbschreibungAGr=Costs!L$353)*(AbschreibungAHKBvD))-SUM(L$267:L272)","v":0},{"$f":"SUMPRODUCT((Aktivierungsjahr<=Costs!$A360)*(AbschreibungAGr=Costs!M$353)*(AbschreibungAHKBvD))-SUM(M$267:M272)","v":0},{"$f":"SUMPRODUCT((Aktivierungsjahr<=Costs!$A360)*(AbschreibungAGr=Costs!N$353)*(AbschreibungAHKBvD))-SUM(N$267:N272)","v":0},{"$f":"SUMPRODUCT((Aktivierungsjahr<=Costs!$A360)*(AbschreibungAGr=Costs!O$353)*(AbschreibungAHKBvD))-SUM(O$267:O272)","v":0},{"$f":"SUMPRODUCT((Aktivierungsjahr<=Costs!$A360)*(AbschreibungAGr=Costs!P$353)*(AbschreibungAHKBvD))-SUM(P$267:P272)","v":0},{"$f":"SUMPRODUCT((Aktivierungsjahr<=Costs!$A360)*(AbschreibungAGr=Costs!Q$353)*(AbschreibungAHKBvD))-SUM(Q$267:Q272)","v":0},{"$f":"SUMPRODUCT((Aktivierungsjahr<=Costs!$A360)*(AbschreibungAGr=Costs!R$353)*(AbschreibungAHKBvD))-SUM(R$267:R272)","v":0},{"$f":"SUMPRODUCT((Aktivierungsjahr<=Costs!$A360)*(AbschreibungAGr=Costs!S$353)*(AbschreibungAHKBvD))-SUM(S$267:S272)","v":0},{"$f":"SUMPRODUCT((Aktivierungsjahr<=Costs!$A360)*(AbschreibungAGr=Costs!T$353)*(AbschreibungAHKBvD))-SUM(T$267:T272)","v":0},{"$f":"SUMPRODUCT((Aktivierungsjahr<=Costs!$A360)*(AbschreibungAGr=Costs!U$353)*(AbschreibungAHKBvD))-SUM(U$267:U272)","v":0},{"$f":"SUMPRODUCT((Aktivierungsjahr<=Costs!$A360)*(AbschreibungAGr=Costs!V$353)*(AbschreibungAHKBvD))-SUM(V$267:V272)","v":0},{"$f":"SUMPRODUCT((Aktivierungsjahr<=Costs!$A360)*(AbschreibungAGr=Costs!W$353)*(AbschreibungAHKBvD))-SUM(W$267:W272)","v":0},{"$f":"SUMPRODUCT((Aktivierungsjahr<=Costs!$A360)*(AbschreibungAGr=Costs!X$353)*(AbschreibungAHKBvD))-SUM(X$267:X272)","v":0},{"$f":"SUMPRODUCT((Aktivierungsjahr<=Costs!$A360)*(AbschreibungAGr=Costs!Y$353)*(AbschreibungAHKBvD))-SUM(Y$267:Y272)","v":0},{"$f":"SUMPRODUCT((Aktivierungsjahr<=Costs!$A360)*(AbschreibungAGr=Costs!Z$353)*(AbschreibungAHKBvD))-SUM(Z$267:Z272)","v":0},{"$f":"SUMPRODUCT((Aktivierungsjahr<=Costs!$A360)*(AbschreibungAGr=Costs!AA$353)*(AbschreibungAHKBvD))-SUM(AA$267:AA272)","v":0},{"$f":"SUMPRODUCT((Aktivierungsjahr<=Costs!$A360)*(AbschreibungAGr=Costs!AB$353)*(AbschreibungAHKBvD))-SUM(AB$267:AB272)","v":0},{"$f":"SUMPRODUCT((Aktivierungsjahr<=Costs!$A360)*(AbschreibungAGr=Costs!AC$353)*(AbschreibungAHKBvD))-SUM(AC$267:AC272)","v":0},{"$f":"SUMPRODUCT((Aktivierungsjahr<=Costs!$A360)*(AbschreibungAGr=Costs!AD$353)*(AbschreibungAHKBvD))-SUM(AD$267:AD272)","v":0},{"$f":"SUMPRODUCT((Aktivierungsjahr<=Costs!$A360)*(AbschreibungAGr=Costs!AE$353)*(AbschreibungAHKBvD))-SUM(AE$267:AE272)","v":0},{"$f":"SUMPRODUCT((Aktivierungsjahr<=Costs!$A360)*(AbschreibungAGr=Costs!AF$353)*(AbschreibungAHKBvD))-SUM(AF$267:AF272)","v":0},{"$f":"SUMPRODUCT((Aktivierungsjahr<=Costs!$A360)*(AbschreibungAGr=Costs!AG$353)*(AbschreibungAHKBvD))-SUM(AG$267:AG272)","v":0},{"$f":"SUMPRODUCT((Aktivierungsjahr<=Costs!$A360)*(AbschreibungAGr=Costs!AH$353)*(AbschreibungAHKBvD))-SUM(AH$267:AH272)","v":0},{"$f":"SUMPRODUCT((Aktivierungsjahr<=Costs!$A360)*(AbschreibungAGr=Costs!AI$353)*(AbschreibungAHKBvD))-SUM(AI$267:AI272)","v":0},{"$f":"SUMPRODUCT((Aktivierungsjahr<=Costs!$A360)*(AbschreibungAGr=Costs!AJ$353)*(AbschreibungAHKBvD))-SUM(AJ$267:AJ272)","v":0},{"$f":"SUMPRODUCT((Aktivierungsjahr<=Costs!$A360)*(AbschreibungAGr=Costs!AK$353)*(AbschreibungAHKBvD))-SUM(AK$267:AK272)","v":0},{"$f":"SUMPRODUCT((Aktivierungsjahr<=Costs!$A360)*(AbschreibungAGr=Costs!AL$353)*(AbschreibungAHKBvD))-SUM(AL$267:AL272)","v":0},{"$f":"SUMPRODUCT((Aktivierungsjahr<=Costs!$A360)*(AbschreibungAGr=Costs!AM$353)*(AbschreibungAHKBvD))-SUM(AM$267:AM272)","v":0},{"$f":"SUMPRODUCT((Aktivierungsjahr<=Costs!$A360)*(AbschreibungAGr=Costs!AN$353)*(AbschreibungAHKBvD))-SUM(AN$267:AN272)","v":0},{"$f":"SUMPRODUCT((Aktivierungsjahr<=Costs!$A360)*(AbschreibungAGr=Costs!AO$353)*(AbschreibungAHKBvD))-SUM(AO$267:AO272)","v":0},{"$f":"SUMPRODUCT((Aktivierungsjahr<=Costs!$A360)*(AbschreibungAGr=Costs!AP$353)*(AbschreibungAHKBvD))-SUM(AP$267:AP272)","v":0},{"$f":"SUMPRODUCT((Aktivierungsjahr<=Costs!$A360)*(AbschreibungAGr=Costs!AQ$353)*(AbschreibungAHKBvD))-SUM(AQ$267:AQ272)","v":0}]
[2022,0,{"$f":"SUMPRODUCT((Aktivierungsjahr<=Costs!$A361)*(AbschreibungAGr=Costs!C$353)*(AbschreibungAHKBvD))-SUM(C$267:C273)","v":0},{"$f":"SUMPRODUCT((Aktivierungsjahr<=Costs!$A361)*(AbschreibungAGr=Costs!D$353)*(AbschreibungAHKBvD))-SUM(D$267:D273)","v":0},{"$f":"SUMPRODUCT((Aktivierungsjahr<=Costs!$A361)*(AbschreibungAGr=Costs!E$353)*(AbschreibungAHKBvD))-SUM(E$267:E273)","v":0},{"$f":"SUMPRODUCT((Aktivierungsjahr<=Costs!$A361)*(AbschreibungAGr=Costs!F$353)*(AbschreibungAHKBvD))-SUM(F$267:F273)","v":0},{"$f":"SUMPRODUCT((Aktivierungsjahr<=Costs!$A361)*(AbschreibungAGr=Costs!G$353)*(AbschreibungAHKBvD))-SUM(G$267:G273)","v":0},{"$f":"SUMPRODUCT((Aktivierungsjahr<=Costs!$A361)*(AbschreibungAGr=Costs!H$353)*(AbschreibungAHKBvD))-SUM(H$267:H273)","v":0},{"$f":"SUMPRODUCT((Aktivierungsjahr<=Costs!$A361)*(AbschreibungAGr=Costs!I$353)*(AbschreibungAHKBvD))-SUM(I$267:I273)","v":0},{"$f":"SUMPRODUCT((Aktivierungsjahr<=Costs!$A361)*(AbschreibungAGr=Costs!J$353)*(AbschreibungAHKBvD))-SUM(J$267:J273)","v":0},{"$f":"SUMPRODUCT((Aktivierungsjahr<=Costs!$A361)*(AbschreibungAGr=Costs!K$353)*(AbschreibungAHKBvD))-SUM(K$267:K273)","v":0},{"$f":"SUMPRODUCT((Aktivierungsjahr<=Costs!$A361)*(AbschreibungAGr=Costs!L$353)*(AbschreibungAHKBvD))-SUM(L$267:L273)","v":0},{"$f":"SUMPRODUCT((Aktivierungsjahr<=Costs!$A361)*(AbschreibungAGr=Costs!M$353)*(AbschreibungAHKBvD))-SUM(M$267:M273)","v":0},{"$f":"SUMPRODUCT((Aktivierungsjahr<=Costs!$A361)*(AbschreibungAGr=Costs!N$353)*(AbschreibungAHKBvD))-SUM(N$267:N273)","v":0},{"$f":"SUMPRODUCT((Aktivierungsjahr<=Costs!$A361)*(AbschreibungAGr=Costs!O$353)*(AbschreibungAHKBvD))-SUM(O$267:O273)","v":0},{"$f":"SUMPRODUCT((Aktivierungsjahr<=Costs!$A361)*(AbschreibungAGr=Costs!P$353)*(AbschreibungAHKBvD))-SUM(P$267:P273)","v":0},{"$f":"SUMPRODUCT((Aktivierungsjahr<=Costs!$A361)*(AbschreibungAGr=Costs!Q$353)*(AbschreibungAHKBvD))-SUM(Q$267:Q273)","v":0},{"$f":"SUMPRODUCT((Aktivierungsjahr<=Costs!$A361)*(AbschreibungAGr=Costs!R$353)*(AbschreibungAHKBvD))-SUM(R$267:R273)","v":0},{"$f":"SUMPRODUCT((Aktivierungsjahr<=Costs!$A361)*(AbschreibungAGr=Costs!S$353)*(AbschreibungAHKBvD))-SUM(S$267:S273)","v":0},{"$f":"SUMPRODUCT((Aktivierungsjahr<=Costs!$A361)*(AbschreibungAGr=Costs!T$353)*(AbschreibungAHKBvD))-SUM(T$267:T273)","v":0},{"$f":"SUMPRODUCT((Aktivierungsjahr<=Costs!$A361)*(AbschreibungAGr=Costs!U$353)*(AbschreibungAHKBvD))-SUM(U$267:U273)","v":0},{"$f":"SUMPRODUCT((Aktivierungsjahr<=Costs!$A361)*(AbschreibungAGr=Costs!V$353)*(AbschreibungAHKBvD))-SUM(V$267:V273)","v":0},{"$f":"SUMPRODUCT((Aktivierungsjahr<=Costs!$A361)*(AbschreibungAGr=Costs!W$353)*(AbschreibungAHKBvD))-SUM(W$267:W273)","v":0},{"$f":"SUMPRODUCT((Aktivierungsjahr<=Costs!$A361)*(AbschreibungAGr=Costs!X$353)*(AbschreibungAHKBvD))-SUM(X$267:X273)","v":0},{"$f":"SUMPRODUCT((Aktivierungsjahr<=Costs!$A361)*(AbschreibungAGr=Costs!Y$353)*(AbschreibungAHKBvD))-SUM(Y$267:Y273)","v":0},{"$f":"SUMPRODUCT((Aktivierungsjahr<=Costs!$A361)*(AbschreibungAGr=Costs!Z$353)*(AbschreibungAHKBvD))-SUM(Z$267:Z273)","v":0},{"$f":"SUMPRODUCT((Aktivierungsjahr<=Costs!$A361)*(AbschreibungAGr=Costs!AA$353)*(AbschreibungAHKBvD))-SUM(AA$267:AA273)","v":0},{"$f":"SUMPRODUCT((Aktivierungsjahr<=Costs!$A361)*(AbschreibungAGr=Costs!AB$353)*(AbschreibungAHKBvD))-SUM(AB$267:AB273)","v":0},{"$f":"SUMPRODUCT((Aktivierungsjahr<=Costs!$A361)*(AbschreibungAGr=Costs!AC$353)*(AbschreibungAHKBvD))-SUM(AC$267:AC273)","v":0},{"$f":"SUMPRODUCT((Aktivierungsjahr<=Costs!$A361)*(AbschreibungAGr=Costs!AD$353)*(AbschreibungAHKBvD))-SUM(AD$267:AD273)","v":0},{"$f":"SUMPRODUCT((Aktivierungsjahr<=Costs!$A361)*(AbschreibungAGr=Costs!AE$353)*(AbschreibungAHKBvD))-SUM(AE$267:AE273)","v":0},{"$f":"SUMPRODUCT((Aktivierungsjahr<=Costs!$A361)*(AbschreibungAGr=Costs!AF$353)*(AbschreibungAHKBvD))-SUM(AF$267:AF273)","v":0},{"$f":"SUMPRODUCT((Aktivierungsjahr<=Costs!$A361)*(AbschreibungAGr=Costs!AG$353)*(AbschreibungAHKBvD))-SUM(AG$267:AG273)","v":0},{"$f":"SUMPRODUCT((Aktivierungsjahr<=Costs!$A361)*(AbschreibungAGr=Costs!AH$353)*(AbschreibungAHKBvD))-SUM(AH$267:AH273)","v":0},{"$f":"SUMPRODUCT((Aktivierungsjahr<=Costs!$A361)*(AbschreibungAGr=Costs!AI$353)*(AbschreibungAHKBvD))-SUM(AI$267:AI273)","v":0},{"$f":"SUMPRODUCT((Aktivierungsjahr<=Costs!$A361)*(AbschreibungAGr=Costs!AJ$353)*(AbschreibungAHKBvD))-SUM(AJ$267:AJ273)","v":0},{"$f":"SUMPRODUCT((Aktivierungsjahr<=Costs!$A361)*(AbschreibungAGr=Costs!AK$353)*(AbschreibungAHKBvD))-SUM(AK$267:AK273)","v":0},{"$f":"SUMPRODUCT((Aktivierungsjahr<=Costs!$A361)*(AbschreibungAGr=Costs!AL$353)*(AbschreibungAHKBvD))-SUM(AL$267:AL273)","v":0},{"$f":"SUMPRODUCT((Aktivierungsjahr<=Costs!$A361)*(AbschreibungAGr=Costs!AM$353)*(AbschreibungAHKBvD))-SUM(AM$267:AM273)","v":0},{"$f":"SUMPRODUCT((Aktivierungsjahr<=Costs!$A361)*(AbschreibungAGr=Costs!AN$353)*(AbschreibungAHKBvD))-SUM(AN$267:AN273)","v":0},{"$f":"SUMPRODUCT((Aktivierungsjahr<=Costs!$A361)*(AbschreibungAGr=Costs!AO$353)*(AbschreibungAHKBvD))-SUM(AO$267:AO273)","v":0},{"$f":"SUMPRODUCT((Aktivierungsjahr<=Costs!$A361)*(AbschreibungAGr=Costs!AP$353)*(AbschreibungAHKBvD))-SUM(AP$267:AP273)","v":0},{"$f":"SUMPRODUCT((Aktivierungsjahr<=Costs!$A361)*(AbschreibungAGr=Costs!AQ$353)*(AbschreibungAHKBvD))-SUM(AQ$267:AQ273)","v":0}]
[2023,0,{"$f":"SUMPRODUCT((Aktivierungsjahr<=Costs!$A362)*(AbschreibungAGr=Costs!C$353)*(AbschreibungAHKBvD))-SUM(C$267:C274)","v":0},{"$f":"SUMPRODUCT((Aktivierungsjahr<=Costs!$A362)*(AbschreibungAGr=Costs!D$353)*(AbschreibungAHKBvD))-SUM(D$267:D274)","v":0},{"$f":"SUMPRODUCT((Aktivierungsjahr<=Costs!$A362)*(AbschreibungAGr=Costs!E$353)*(AbschreibungAHKBvD))-SUM(E$267:E274)","v":0},{"$f":"SUMPRODUCT((Aktivierungsjahr<=Costs!$A362)*(AbschreibungAGr=Costs!F$353)*(AbschreibungAHKBvD))-SUM(F$267:F274)","v":0},{"$f":"SUMPRODUCT((Aktivierungsjahr<=Costs!$A362)*(AbschreibungAGr=Costs!G$353)*(AbschreibungAHKBvD))-SUM(G$267:G274)","v":0},{"$f":"SUMPRODUCT((Aktivierungsjahr<=Costs!$A362)*(AbschreibungAGr=Costs!H$353)*(AbschreibungAHKBvD))-SUM(H$267:H274)","v":0},{"$f":"SUMPRODUCT((Aktivierungsjahr<=Costs!$A362)*(AbschreibungAGr=Costs!I$353)*(AbschreibungAHKBvD))-SUM(I$267:I274)","v":0},{"$f":"SUMPRODUCT((Aktivierungsjahr<=Costs!$A362)*(AbschreibungAGr=Costs!J$353)*(AbschreibungAHKBvD))-SUM(J$267:J274)","v":0},{"$f":"SUMPRODUCT((Aktivierungsjahr<=Costs!$A362)*(AbschreibungAGr=Costs!K$353)*(AbschreibungAHKBvD))-SUM(K$267:K274)","v":0},{"$f":"SUMPRODUCT((Aktivierungsjahr<=Costs!$A362)*(AbschreibungAGr=Costs!L$353)*(AbschreibungAHKBvD))-SUM(L$267:L274)","v":0},{"$f":"SUMPRODUCT((Aktivierungsjahr<=Costs!$A362)*(AbschreibungAGr=Costs!M$353)*(AbschreibungAHKBvD))-SUM(M$267:M274)","v":0},{"$f":"SUMPRODUCT((Aktivierungsjahr<=Costs!$A362)*(AbschreibungAGr=Costs!N$353)*(AbschreibungAHKBvD))-SUM(N$267:N274)","v":0},{"$f":"SUMPRODUCT((Aktivierungsjahr<=Costs!$A362)*(AbschreibungAGr=Costs!O$353)*(AbschreibungAHKBvD))-SUM(O$267:O274)","v":0},{"$f":"SUMPRODUCT((Aktivierungsjahr<=Costs!$A362)*(AbschreibungAGr=Costs!P$353)*(AbschreibungAHKBvD))-SUM(P$267:P274)","v":0},{"$f":"SUMPRODUCT((Aktivierungsjahr<=Costs!$A362)*(AbschreibungAGr=Costs!Q$353)*(AbschreibungAHKBvD))-SUM(Q$267:Q274)","v":0},{"$f":"SUMPRODUCT((Aktivierungsjahr<=Costs!$A362)*(AbschreibungAGr=Costs!R$353)*(AbschreibungAHKBvD))-SUM(R$267:R274)","v":0},{"$f":"SUMPRODUCT((Aktivierungsjahr<=Costs!$A362)*(AbschreibungAGr=Costs!S$353)*(AbschreibungAHKBvD))-SUM(S$267:S274)","v":0},{"$f":"SUMPRODUCT((Aktivierungsjahr<=Costs!$A362)*(AbschreibungAGr=Costs!T$353)*(AbschreibungAHKBvD))-SUM(T$267:T274)","v":0},{"$f":"SUMPRODUCT((Aktivierungsjahr<=Costs!$A362)*(AbschreibungAGr=Costs!U$353)*(AbschreibungAHKBvD))-SUM(U$267:U274)","v":0},{"$f":"SUMPRODUCT((Aktivierungsjahr<=Costs!$A362)*(AbschreibungAGr=Costs!V$353)*(AbschreibungAHKBvD))-SUM(V$267:V274)","v":0},{"$f":"SUMPRODUCT((Aktivierungsjahr<=Costs!$A362)*(AbschreibungAGr=Costs!W$353)*(AbschreibungAHKBvD))-SUM(W$267:W274)","v":0},{"$f":"SUMPRODUCT((Aktivierungsjahr<=Costs!$A362)*(AbschreibungAGr=Costs!X$353)*(AbschreibungAHKBvD))-SUM(X$267:X274)","v":0},{"$f":"SUMPRODUCT((Aktivierungsjahr<=Costs!$A362)*(AbschreibungAGr=Costs!Y$353)*(AbschreibungAHKBvD))-SUM(Y$267:Y274)","v":0},{"$f":"SUMPRODUCT((Aktivierungsjahr<=Costs!$A362)*(AbschreibungAGr=Costs!Z$353)*(AbschreibungAHKBvD))-SUM(Z$267:Z274)","v":0},{"$f":"SUMPRODUCT((Aktivierungsjahr<=Costs!$A362)*(AbschreibungAGr=Costs!AA$353)*(AbschreibungAHKBvD))-SUM(AA$267:AA274)","v":0},{"$f":"SUMPRODUCT((Aktivierungsjahr<=Costs!$A362)*(AbschreibungAGr=Costs!AB$353)*(AbschreibungAHKBvD))-SUM(AB$267:AB274)","v":0},{"$f":"SUMPRODUCT((Aktivierungsjahr<=Costs!$A362)*(AbschreibungAGr=Costs!AC$353)*(AbschreibungAHKBvD))-SUM(AC$267:AC274)","v":0},{"$f":"SUMPRODUCT((Aktivierungsjahr<=Costs!$A362)*(AbschreibungAGr=Costs!AD$353)*(AbschreibungAHKBvD))-SUM(AD$267:AD274)","v":0},{"$f":"SUMPRODUCT((Aktivierungsjahr<=Costs!$A362)*(AbschreibungAGr=Costs!AE$353)*(AbschreibungAHKBvD))-SUM(AE$267:AE274)","v":0},{"$f":"SUMPRODUCT((Aktivierungsjahr<=Costs!$A362)*(AbschreibungAGr=Costs!AF$353)*(AbschreibungAHKBvD))-SUM(AF$267:AF274)","v":0},{"$f":"SUMPRODUCT((Aktivierungsjahr<=Costs!$A362)*(AbschreibungAGr=Costs!AG$353)*(AbschreibungAHKBvD))-SUM(AG$267:AG274)","v":0},{"$f":"SUMPRODUCT((Aktivierungsjahr<=Costs!$A362)*(AbschreibungAGr=Costs!AH$353)*(AbschreibungAHKBvD))-SUM(AH$267:AH274)","v":0},{"$f":"SUMPRODUCT((Aktivierungsjahr<=Costs!$A362)*(AbschreibungAGr=Costs!AI$353)*(AbschreibungAHKBvD))-SUM(AI$267:AI274)","v":0},{"$f":"SUMPRODUCT((Aktivierungsjahr<=Costs!$A362)*(AbschreibungAGr=Costs!AJ$353)*(AbschreibungAHKBvD))-SUM(AJ$267:AJ274)","v":0},{"$f":"SUMPRODUCT((Aktivierungsjahr<=Costs!$A362)*(AbschreibungAGr=Costs!AK$353)*(AbschreibungAHKBvD))-SUM(AK$267:AK274)","v":0},{"$f":"SUMPRODUCT((Aktivierungsjahr<=Costs!$A362)*(AbschreibungAGr=Costs!AL$353)*(AbschreibungAHKBvD))-SUM(AL$267:AL274)","v":0},{"$f":"SUMPRODUCT((Aktivierungsjahr<=Costs!$A362)*(AbschreibungAGr=Costs!AM$353)*(AbschreibungAHKBvD))-SUM(AM$267:AM274)","v":0},{"$f":"SUMPRODUCT((Aktivierungsjahr<=Costs!$A362)*(AbschreibungAGr=Costs!AN$353)*(AbschreibungAHKBvD))-SUM(AN$267:AN274)","v":0},{"$f":"SUMPRODUCT((Aktivierungsjahr<=Costs!$A362)*(AbschreibungAGr=Costs!AO$353)*(AbschreibungAHKBvD))-SUM(AO$267:AO274)","v":0},{"$f":"SUMPRODUCT((Aktivierungsjahr<=Costs!$A362)*(AbschreibungAGr=Costs!AP$353)*(AbschreibungAHKBvD))-SUM(AP$267:AP274)","v":0},{"$f":"SUMPRODUCT((Aktivierungsjahr<=Costs!$A362)*(AbschreibungAGr=Costs!AQ$353)*(AbschreibungAHKBvD))-SUM(AQ$267:AQ274)","v":0}]
[2024,0,{"$f":"SUMPRODUCT((Aktivierungsjahr<=Costs!$A363)*(AbschreibungAGr=Costs!C$353)*(AbschreibungAHKBvD))-SUM(C$267:C275)","v":0},{"$f":"SUMPRODUCT((Aktivierungsjahr<=Costs!$A363)*(AbschreibungAGr=Costs!D$353)*(AbschreibungAHKBvD))-SUM(D$267:D275)","v":0},{"$f":"SUMPRODUCT((Aktivierungsjahr<=Costs!$A363)*(AbschreibungAGr=Costs!E$353)*(AbschreibungAHKBvD))-SUM(E$267:E275)","v":0},{"$f":"SUMPRODUCT((Aktivierungsjahr<=Costs!$A363)*(AbschreibungAGr=Costs!F$353)*(AbschreibungAHKBvD))-SUM(F$267:F275)","v":0},{"$f":"SUMPRODUCT((Aktivierungsjahr<=Costs!$A363)*(AbschreibungAGr=Costs!G$353)*(AbschreibungAHKBvD))-SUM(G$267:G275)","v":0},{"$f":"SUMPRODUCT((Aktivierungsjahr<=Costs!$A363)*(AbschreibungAGr=Costs!H$353)*(AbschreibungAHKBvD))-SUM(H$267:H275)","v":0},{"$f":"SUMPRODUCT((Aktivierungsjahr<=Costs!$A363)*(AbschreibungAGr=Costs!I$353)*(AbschreibungAHKBvD))-SUM(I$267:I275)","v":0},{"$f":"SUMPRODUCT((Aktivierungsjahr<=Costs!$A363)*(AbschreibungAGr=Costs!J$353)*(AbschreibungAHKBvD))-SUM(J$267:J275)","v":0},{"$f":"SUMPRODUCT((Aktivierungsjahr<=Costs!$A363)*(AbschreibungAGr=Costs!K$353)*(AbschreibungAHKBvD))-SUM(K$267:K275)","v":0},{"$f":"SUMPRODUCT((Aktivierungsjahr<=Costs!$A363)*(AbschreibungAGr=Costs!L$353)*(AbschreibungAHKBvD))-SUM(L$267:L275)","v":0},{"$f":"SUMPRODUCT((Aktivierungsjahr<=Costs!$A363)*(AbschreibungAGr=Costs!M$353)*(AbschreibungAHKBvD))-SUM(M$267:M275)","v":0},{"$f":"SUMPRODUCT((Aktivierungsjahr<=Costs!$A363)*(AbschreibungAGr=Costs!N$353)*(AbschreibungAHKBvD))-SUM(N$267:N275)","v":0},{"$f":"SUMPRODUCT((Aktivierungsjahr<=Costs!$A363)*(AbschreibungAGr=Costs!O$353)*(AbschreibungAHKBvD))-SUM(O$267:O275)","v":0},{"$f":"SUMPRODUCT((Aktivierungsjahr<=Costs!$A363)*(AbschreibungAGr=Costs!P$353)*(AbschreibungAHKBvD))-SUM(P$267:P275)","v":0},{"$f":"SUMPRODUCT((Aktivierungsjahr<=Costs!$A363)*(AbschreibungAGr=Costs!Q$353)*(AbschreibungAHKBvD))-SUM(Q$267:Q275)","v":0},{"$f":"SUMPRODUCT((Aktivierungsjahr<=Costs!$A363)*(AbschreibungAGr=Costs!R$353)*(AbschreibungAHKBvD))-SUM(R$267:R275)","v":0},{"$f":"SUMPRODUCT((Aktivierungsjahr<=Costs!$A363)*(AbschreibungAGr=Costs!S$353)*(AbschreibungAHKBvD))-SUM(S$267:S275)","v":0},{"$f":"SUMPRODUCT((Aktivierungsjahr<=Costs!$A363)*(AbschreibungAGr=Costs!T$353)*(AbschreibungAHKBvD))-SUM(T$267:T275)","v":0},{"$f":"SUMPRODUCT((Aktivierungsjahr<=Costs!$A363)*(AbschreibungAGr=Costs!U$353)*(AbschreibungAHKBvD))-SUM(U$267:U275)","v":0},{"$f":"SUMPRODUCT((Aktivierungsjahr<=Costs!$A363)*(AbschreibungAGr=Costs!V$353)*(AbschreibungAHKBvD))-SUM(V$267:V275)","v":0},{"$f":"SUMPRODUCT((Aktivierungsjahr<=Costs!$A363)*(AbschreibungAGr=Costs!W$353)*(AbschreibungAHKBvD))-SUM(W$267:W275)","v":0},{"$f":"SUMPRODUCT((Aktivierungsjahr<=Costs!$A363)*(AbschreibungAGr=Costs!X$353)*(AbschreibungAHKBvD))-SUM(X$267:X275)","v":0},{"$f":"SUMPRODUCT((Aktivierungsjahr<=Costs!$A363)*(AbschreibungAGr=Costs!Y$353)*(AbschreibungAHKBvD))-SUM(Y$267:Y275)","v":0},{"$f":"SUMPRODUCT((Aktivierungsjahr<=Costs!$A363)*(AbschreibungAGr=Costs!Z$353)*(AbschreibungAHKBvD))-SUM(Z$267:Z275)","v":0},{"$f":"SUMPRODUCT((Aktivierungsjahr<=Costs!$A363)*(AbschreibungAGr=Costs!AA$353)*(AbschreibungAHKBvD))-SUM(AA$267:AA275)","v":0},{"$f":"SUMPRODUCT((Aktivierungsjahr<=Costs!$A363)*(AbschreibungAGr=Costs!AB$353)*(AbschreibungAHKBvD))-SUM(AB$267:AB275)","v":0},{"$f":"SUMPRODUCT((Aktivierungsjahr<=Costs!$A363)*(AbschreibungAGr=Costs!AC$353)*(AbschreibungAHKBvD))-SUM(AC$267:AC275)","v":0},{"$f":"SUMPRODUCT((Aktivierungsjahr<=Costs!$A363)*(AbschreibungAGr=Costs!AD$353)*(AbschreibungAHKBvD))-SUM(AD$267:AD275)","v":0},{"$f":"SUMPRODUCT((Aktivierungsjahr<=Costs!$A363)*(AbschreibungAGr=Costs!AE$353)*(AbschreibungAHKBvD))-SUM(AE$267:AE275)","v":0},{"$f":"SUMPRODUCT((Aktivierungsjahr<=Costs!$A363)*(AbschreibungAGr=Costs!AF$353)*(AbschreibungAHKBvD))-SUM(AF$267:AF275)","v":0},{"$f":"SUMPRODUCT((Aktivierungsjahr<=Costs!$A363)*(AbschreibungAGr=Costs!AG$353)*(AbschreibungAHKBvD))-SUM(AG$267:AG275)","v":0},{"$f":"SUMPRODUCT((Aktivierungsjahr<=Costs!$A363)*(AbschreibungAGr=Costs!AH$353)*(AbschreibungAHKBvD))-SUM(AH$267:AH275)","v":0},{"$f":"SUMPRODUCT((Aktivierungsjahr<=Costs!$A363)*(AbschreibungAGr=Costs!AI$353)*(AbschreibungAHKBvD))-SUM(AI$267:AI275)","v":0},{"$f":"SUMPRODUCT((Aktivierungsjahr<=Costs!$A363)*(AbschreibungAGr=Costs!AJ$353)*(AbschreibungAHKBvD))-SUM(AJ$267:AJ275)","v":0},{"$f":"SUMPRODUCT((Aktivierungsjahr<=Costs!$A363)*(AbschreibungAGr=Costs!AK$353)*(AbschreibungAHKBvD))-SUM(AK$267:AK275)","v":0},{"$f":"SUMPRODUCT((Aktivierungsjahr<=Costs!$A363)*(AbschreibungAGr=Costs!AL$353)*(AbschreibungAHKBvD))-SUM(AL$267:AL275)","v":0},{"$f":"SUMPRODUCT((Aktivierungsjahr<=Costs!$A363)*(AbschreibungAGr=Costs!AM$353)*(AbschreibungAHKBvD))-SUM(AM$267:AM275)","v":0},{"$f":"SUMPRODUCT((Aktivierungsjahr<=Costs!$A363)*(AbschreibungAGr=Costs!AN$353)*(AbschreibungAHKBvD))-SUM(AN$267:AN275)","v":0},{"$f":"SUMPRODUCT((Aktivierungsjahr<=Costs!$A363)*(AbschreibungAGr=Costs!AO$353)*(AbschreibungAHKBvD))-SUM(AO$267:AO275)","v":0},{"$f":"SUMPRODUCT((Aktivierungsjahr<=Costs!$A363)*(AbschreibungAGr=Costs!AP$353)*(AbschreibungAHKBvD))-SUM(AP$267:AP275)","v":0},{"$f":"SUMPRODUCT((Aktivierungsjahr<=Costs!$A363)*(AbschreibungAGr=Costs!AQ$353)*(AbschreibungAHKBvD))-SUM(AQ$267:AQ275)","v":0}]
[2025,144977777.77777779,{"$f":"SUMPRODUCT((Aktivierungsjahr<=Costs!$A364)*(AbschreibungAGr=Costs!C$353)*(AbschreibungAHKBvD))-SUM(C$267:C276)","v":0},{"$f":"SUMPRODUCT((Aktivierungsjahr<=Costs!$A364)*(AbschreibungAGr=Costs!D$353)*(AbschreibungAHKBvD))-SUM(D$267:D276)","v":0},{"$f":"SUMPRODUCT((Aktivierungsjahr<=Costs!$A364)*(AbschreibungAGr=Costs!E$353)*(AbschreibungAHKBvD))-SUM(E$267:E276)","v":0},{"$f":"SUMPRODUCT((Aktivierungsjahr<=Costs!$A364)*(AbschreibungAGr=Costs!F$353)*(AbschreibungAHKBvD))-SUM(F$267:F276)","v":0},{"$f":"SUMPRODUCT((Aktivierungsjahr<=Costs!$A364)*(AbschreibungAGr=Costs!G$353)*(AbschreibungAHKBvD))-SUM(G$267:G276)","v":0},{"$f":"SUMPRODUCT((Aktivierungsjahr<=Costs!$A364)*(AbschreibungAGr=Costs!H$353)*(AbschreibungAHKBvD))-SUM(H$267:H276)","v":0},{"$f":"SUMPRODUCT((Aktivierungsjahr<=Costs!$A364)*(AbschreibungAGr=Costs!I$353)*(AbschreibungAHKBvD))-SUM(I$267:I276)","v":0},{"$f":"SUMPRODUCT((Aktivierungsjahr<=Costs!$A364)*(AbschreibungAGr=Costs!J$353)*(AbschreibungAHKBvD))-SUM(J$267:J276)","v":0},{"$f":"SUMPRODUCT((Aktivierungsjahr<=Costs!$A364)*(AbschreibungAGr=Costs!K$353)*(AbschreibungAHKBvD))-SUM(K$267:K276)","v":0},{"$f":"SUMPRODUCT((Aktivierungsjahr<=Costs!$A364)*(AbschreibungAGr=Costs!L$353)*(AbschreibungAHKBvD))-SUM(L$267:L276)","v":0},{"$f":"SUMPRODUCT((Aktivierungsjahr<=Costs!$A364)*(AbschreibungAGr=Costs!M$353)*(AbschreibungAHKBvD))-SUM(M$267:M276)","v":0},{"$f":"SUMPRODUCT((Aktivierungsjahr<=Costs!$A364)*(AbschreibungAGr=Costs!N$353)*(AbschreibungAHKBvD))-SUM(N$267:N276)","v":0},{"$f":"SUMPRODUCT((Aktivierungsjahr<=Costs!$A364)*(AbschreibungAGr=Costs!O$353)*(AbschreibungAHKBvD))-SUM(O$267:O276)","v":0},{"$f":"SUMPRODUCT((Aktivierungsjahr<=Costs!$A364)*(AbschreibungAGr=Costs!P$353)*(AbschreibungAHKBvD))-SUM(P$267:P276)","v":144000000},{"$f":"SUMPRODUCT((Aktivierungsjahr<=Costs!$A364)*(AbschreibungAGr=Costs!Q$353)*(AbschreibungAHKBvD))-SUM(Q$267:Q276)","v":0},{"$f":"SUMPRODUCT((Aktivierungsjahr<=Costs!$A364)*(AbschreibungAGr=Costs!R$353)*(AbschreibungAHKBvD))-SUM(R$267:R276)","v":0},{"$f":"SUMPRODUCT((Aktivierungsjahr<=Costs!$A364)*(AbschreibungAGr=Costs!S$353)*(AbschreibungAHKBvD))-SUM(S$267:S276)","v":0},{"$f":"SUMPRODUCT((Aktivierungsjahr<=Costs!$A364)*(AbschreibungAGr=Costs!T$353)*(AbschreibungAHKBvD))-SUM(T$267:T276)","v":0},{"$f":"SUMPRODUCT((Aktivierungsjahr<=Costs!$A364)*(AbschreibungAGr=Costs!U$353)*(AbschreibungAHKBvD))-SUM(U$267:U276)","v":0},{"$f":"SUMPRODUCT((Aktivierungsjahr<=Costs!$A364)*(AbschreibungAGr=Costs!V$353)*(AbschreibungAHKBvD))-SUM(V$267:V276)","v":0},{"$f":"SUMPRODUCT((Aktivierungsjahr<=Costs!$A364)*(AbschreibungAGr=Costs!W$353)*(AbschreibungAHKBvD))-SUM(W$267:W276)","v":0},{"$f":"SUMPRODUCT((Aktivierungsjahr<=Costs!$A364)*(AbschreibungAGr=Costs!X$353)*(AbschreibungAHKBvD))-SUM(X$267:X276)","v":0},{"$f":"SUMPRODUCT((Aktivierungsjahr<=Costs!$A364)*(AbschreibungAGr=Costs!Y$353)*(AbschreibungAHKBvD))-SUM(Y$267:Y276)","v":0},{"$f":"SUMPRODUCT((Aktivierungsjahr<=Costs!$A364)*(AbschreibungAGr=Costs!Z$353)*(AbschreibungAHKBvD))-SUM(Z$267:Z276)","v":0},{"$f":"SUMPRODUCT((Aktivierungsjahr<=Costs!$A364)*(AbschreibungAGr=Costs!AA$353)*(AbschreibungAHKBvD))-SUM(AA$267:AA276)","v":0},{"$f":"SUMPRODUCT((Aktivierungsjahr<=Costs!$A364)*(AbschreibungAGr=Costs!AB$353)*(AbschreibungAHKBvD))-SUM(AB$267:AB276)","v":0},{"$f":"SUMPRODUCT((Aktivierungsjahr<=Costs!$A364)*(AbschreibungAGr=Costs!AC$353)*(AbschreibungAHKBvD))-SUM(AC$267:AC276)","v":0},{"$f":"SUMPRODUCT((Aktivierungsjahr<=Costs!$A364)*(AbschreibungAGr=Costs!AD$353)*(AbschreibungAHKBvD))-SUM(AD$267:AD276)","v":0},{"$f":"SUMPRODUCT((Aktivierungsjahr<=Costs!$A364)*(AbschreibungAGr=Costs!AE$353)*(AbschreibungAHKBvD))-SUM(AE$267:AE276)","v":0},{"$f":"SUMPRODUCT((Aktivierungsjahr<=Costs!$A364)*(AbschreibungAGr=Costs!AF$353)*(AbschreibungAHKBvD))-SUM(AF$267:AF276)","v":0},{"$f":"SUMPRODUCT((Aktivierungsjahr<=Costs!$A364)*(AbschreibungAGr=Costs!AG$353)*(AbschreibungAHKBvD))-SUM(AG$267:AG276)","v":0},{"$f":"SUMPRODUCT((Aktivierungsjahr<=Costs!$A364)*(AbschreibungAGr=Costs!AH$353)*(AbschreibungAHKBvD))-SUM(AH$267:AH276)","v":0},{"$f":"SUMPRODUCT((Aktivierungsjahr<=Costs!$A364)*(AbschreibungAGr=Costs!AI$353)*(AbschreibungAHKBvD))-SUM(AI$267:AI276)","v":0},{"$f":"SUMPRODUCT((Aktivierungsjahr<=Costs!$A364)*(AbschreibungAGr=Costs!AJ$353)*(AbschreibungAHKBvD))-SUM(AJ$267:AJ276)","v":977777.77777777775},{"$f":"SUMPRODUCT((Aktivierungsjahr<=Costs!$A364)*(AbschreibungAGr=Costs!AK$353)*(AbschreibungAHKBvD))-SUM(AK$267:AK276)","v":0},{"$f":"SUMPRODUCT((Aktivierungsjahr<=Costs!$A364)*(AbschreibungAGr=Costs!AL$353)*(AbschreibungAHKBvD))-SUM(AL$267:AL276)","v":0},{"$f":"SUMPRODUCT((Aktivierungsjahr<=Costs!$A364)*(AbschreibungAGr=Costs!AM$353)*(AbschreibungAHKBvD))-SUM(AM$267:AM276)","v":0},{"$f":"SUMPRODUCT((Aktivierungsjahr<=Costs!$A364)*(AbschreibungAGr=Costs!AN$353)*(AbschreibungAHKBvD))-SUM(AN$267:AN276)","v":0},{"$f":"SUMPRODUCT((Aktivierungsjahr<=Costs!$A364)*(AbschreibungAGr=Costs!AO$353)*(AbschreibungAHKBvD))-SUM(AO$267:AO276)","v":0},{"$f":"SUMPRODUCT((Aktivierungsjahr<=Costs!$A364)*(AbschreibungAGr=Costs!AP$353)*(AbschreibungAHKBvD))-SUM(AP$267:AP276)","v":0},{"$f":"SUMPRODUCT((Aktivierungsjahr<=Costs!$A364)*(AbschreibungAGr=Costs!AQ$353)*(AbschreibungAHKBvD))-SUM(AQ$267:AQ276)","v":0}]
[2026,138955555.55555555,{"$f":"SUMPRODUCT((Aktivierungsjahr<=Costs!$A365)*(AbschreibungAGr=Costs!C$353)*(AbschreibungAHKBvD))-SUM(C$267:C277)","v":0},{"$f":"SUMPRODUCT((Aktivierungsjahr<=Costs!$A365)*(AbschreibungAGr=Costs!D$353)*(AbschreibungAHKBvD))-SUM(D$267:D277)","v":0},{"$f":"SUMPRODUCT((Aktivierungsjahr<=Costs!$A365)*(AbschreibungAGr=Costs!E$353)*(AbschreibungAHKBvD))-SUM(E$267:E277)","v":0},{"$f":"SUMPRODUCT((Aktivierungsjahr<=Costs!$A365)*(AbschreibungAGr=Costs!F$353)*(AbschreibungAHKBvD))-SUM(F$267:F277)","v":0},{"$f":"SUMPRODUCT((Aktivierungsjahr<=Costs!$A365)*(AbschreibungAGr=Costs!G$353)*(AbschreibungAHKBvD))-SUM(G$267:G277)","v":0},{"$f":"SUMPRODUCT((Aktivierungsjahr<=Costs!$A365)*(AbschreibungAGr=Costs!H$353)*(AbschreibungAHKBvD))-SUM(H$267:H277)","v":0},{"$f":"SUMPRODUCT((Aktivierungsjahr<=Costs!$A365)*(AbschreibungAGr=Costs!I$353)*(AbschreibungAHKBvD))-SUM(I$267:I277)","v":0},{"$f":"SUMPRODUCT((Aktivierungsjahr<=Costs!$A365)*(AbschreibungAGr=Costs!J$353)*(AbschreibungAHKBvD))-SUM(J$267:J277)","v":0},{"$f":"SUMPRODUCT((Aktivierungsjahr<=Costs!$A365)*(AbschreibungAGr=Costs!K$353)*(AbschreibungAHKBvD))-SUM(K$267:K277)","v":0},{"$f":"SUMPRODUCT((Aktivierungsjahr<=Costs!$A365)*(AbschreibungAGr=Costs!L$353)*(AbschreibungAHKBvD))-SUM(L$267:L277)","v":0},{"$f":"SUMPRODUCT((Aktivierungsjahr<=Costs!$A365)*(AbschreibungAGr=Costs!M$353)*(AbschreibungAHKBvD))-SUM(M$267:M277)","v":0},{"$f":"SUMPRODUCT((Aktivierungsjahr<=Costs!$A365)*(AbschreibungAGr=Costs!N$353)*(AbschreibungAHKBvD))-SUM(N$267:N277)","v":0},{"$f":"SUMPRODUCT((Aktivierungsjahr<=Costs!$A365)*(AbschreibungAGr=Costs!O$353)*(AbschreibungAHKBvD))-SUM(O$267:O277)","v":0},{"$f":"SUMPRODUCT((Aktivierungsjahr<=Costs!$A365)*(AbschreibungAGr=Costs!P$353)*(AbschreibungAHKBvD))-SUM(P$267:P277)","v":138000000},{"$f":"SUMPRODUCT((Aktivierungsjahr<=Costs!$A365)*(AbschreibungAGr=Costs!Q$353)*(AbschreibungAHKBvD))-SUM(Q$267:Q277)","v":0},{"$f":"SUMPRODUCT((Aktivierungsjahr<=Costs!$A365)*(AbschreibungAGr=Costs!R$353)*(AbschreibungAHKBvD))-SUM(R$267:R277)","v":0},{"$f":"SUMPRODUCT((Aktivierungsjahr<=Costs!$A365)*(AbschreibungAGr=Costs!S$353)*(AbschreibungAHKBvD))-SUM(S$267:S277)","v":0},{"$f":"SUMPRODUCT((Aktivierungsjahr<=Costs!$A365)*(AbschreibungAGr=Costs!T$353)*(AbschreibungAHKBvD))-SUM(T$267:T277)","v":0},{"$f":"SUMPRODUCT((Aktivierungsjahr<=Costs!$A365)*(AbschreibungAGr=Costs!U$353)*(AbschreibungAHKBvD))-SUM(U$267:U277)","v":0},{"$f":"SUMPRODUCT((Aktivierungsjahr<=Costs!$A365)*(AbschreibungAGr=Costs!V$353)*(AbschreibungAHKBvD))-SUM(V$267:V277)","v":0},{"$f":"SUMPRODUCT((Aktivierungsjahr<=Costs!$A365)*(AbschreibungAGr=Costs!W$353)*(AbschreibungAHKBvD))-SUM(W$267:W277)","v":0},{"$f":"SUMPRODUCT((Aktivierungsjahr<=Costs!$A365)*(AbschreibungAGr=Costs!X$353)*(AbschreibungAHKBvD))-SUM(X$267:X277)","v":0},{"$f":"SUMPRODUCT((Aktivierungsjahr<=Costs!$A365)*(AbschreibungAGr=Costs!Y$353)*(AbschreibungAHKBvD))-SUM(Y$267:Y277)","v":0},{"$f":"SUMPRODUCT((Aktivierungsjahr<=Costs!$A365)*(AbschreibungAGr=Costs!Z$353)*(AbschreibungAHKBvD))-SUM(Z$267:Z277)","v":0},{"$f":"SUMPRODUCT((Aktivierungsjahr<=Costs!$A365)*(AbschreibungAGr=Costs!AA$353)*(AbschreibungAHKBvD))-SUM(AA$267:AA277)","v":0},{"$f":"SUMPRODUCT((Aktivierungsjahr<=Costs!$A365)*(AbschreibungAGr=Costs!AB$353)*(AbschreibungAHKBvD))-SUM(AB$267:AB277)","v":0},{"$f":"SUMPRODUCT((Aktivierungsjahr<=Costs!$A365)*(AbschreibungAGr=Costs!AC$353)*(AbschreibungAHKBvD))-SUM(AC$267:AC277)","v":0},{"$f":"SUMPRODUCT((Aktivierungsjahr<=Costs!$A365)*(AbschreibungAGr=Costs!AD$353)*(AbschreibungAHKBvD))-SUM(AD$267:AD277)","v":0},{"$f":"SUMPRODUCT((Aktivierungsjahr<=Costs!$A365)*(AbschreibungAGr=Costs!AE$353)*(AbschreibungAHKBvD))-SUM(AE$267:AE277)","v":0},{"$f":"SUMPRODUCT((Aktivierungsjahr<=Costs!$A365)*(AbschreibungAGr=Costs!AF$353)*(AbschreibungAHKBvD))-SUM(AF$267:AF277)","v":0},{"$f":"SUMPRODUCT((Aktivierungsjahr<=Costs!$A365)*(AbschreibungAGr=Costs!AG$353)*(AbschreibungAHKBvD))-SUM(AG$267:AG277)","v":0},{"$f":"SUMPRODUCT((Aktivierungsjahr<=Costs!$A365)*(AbschreibungAGr=Costs!AH$353)*(AbschreibungAHKBvD))-SUM(AH$267:AH277)","v":0},{"$f":"SUMPRODUCT((Aktivierungsjahr<=Costs!$A365)*(AbschreibungAGr=Costs!AI$353)*(AbschreibungAHKBvD))-SUM(AI$267:AI277)","v":0},{"$f":"SUMPRODUCT((Aktivierungsjahr<=Costs!$A365)*(AbschreibungAGr=Costs!AJ$353)*(AbschreibungAHKBvD))-SUM(AJ$267:AJ277)","v":955555.5555555555},{"$f":"SUMPRODUCT((Aktivierungsjahr<=Costs!$A365)*(AbschreibungAGr=Costs!AK$353)*(AbschreibungAHKBvD))-SUM(AK$267:AK277)","v":0},{"$f":"SUMPRODUCT((Aktivierungsjahr<=Costs!$A365)*(AbschreibungAGr=Costs!AL$353)*(AbschreibungAHKBvD))-SUM(AL$267:AL277)","v":0},{"$f":"SUMPRODUCT((Aktivierungsjahr<=Costs!$A365)*(AbschreibungAGr=Costs!AM$353)*(AbschreibungAHKBvD))-SUM(AM$267:AM277)","v":0},{"$f":"SUMPRODUCT((Aktivierungsjahr<=Costs!$A365)*(AbschreibungAGr=Costs!AN$353)*(AbschreibungAHKBvD))-SUM(AN$267:AN277)","v":0},{"$f":"SUMPRODUCT((Aktivierungsjahr<=Costs!$A365)*(AbschreibungAGr=Costs!AO$353)*(AbschreibungAHKBvD))-SUM(AO$267:AO277)","v":0},{"$f":"SUMPRODUCT((Aktivierungsjahr<=Costs!$A365)*(AbschreibungAGr=Costs!AP$353)*(AbschreibungAHKBvD))-SUM(AP$267:AP277)","v":0},{"$f":"SUMPRODUCT((Aktivierungsjahr<=Costs!$A365)*(AbschreibungAGr=Costs!AQ$353)*(AbschreibungAHKBvD))-SUM(AQ$267:AQ277)","v":0}]
[2027,132933333.33333333,{"$f":"SUMPRODUCT((Aktivierungsjahr<=Costs!$A366)*(AbschreibungAGr=Costs!C$353)*(AbschreibungAHKBvD))-SUM(C$267:C278)","v":0},{"$f":"SUMPRODUCT((Aktivierungsjahr<=Costs!$A366)*(AbschreibungAGr=Costs!D$353)*(AbschreibungAHKBvD))-SUM(D$267:D278)","v":0},{"$f":"SUMPRODUCT((Aktivierungsjahr<=Costs!$A366)*(AbschreibungAGr=Costs!E$353)*(AbschreibungAHKBvD))-SUM(E$267:E278)","v":0},{"$f":"SUMPRODUCT((Aktivierungsjahr<=Costs!$A366)*(AbschreibungAGr=Costs!F$353)*(AbschreibungAHKBvD))-SUM(F$267:F278)","v":0},{"$f":"SUMPRODUCT((Aktivierungsjahr<=Costs!$A366)*(AbschreibungAGr=Costs!G$353)*(AbschreibungAHKBvD))-SUM(G$267:G278)","v":0},{"$f":"SUMPRODUCT((Aktivierungsjahr<=Costs!$A366)*(AbschreibungAGr=Costs!H$353)*(AbschreibungAHKBvD))-SUM(H$267:H278)","v":0},{"$f":"SUMPRODUCT((Aktivierungsjahr<=Costs!$A366)*(AbschreibungAGr=Costs!I$353)*(AbschreibungAHKBvD))-SUM(I$267:I278)","v":0},{"$f":"SUMPRODUCT((Aktivierungsjahr<=Costs!$A366)*(AbschreibungAGr=Costs!J$353)*(AbschreibungAHKBvD))-SUM(J$267:J278)","v":0},{"$f":"SUMPRODUCT((Aktivierungsjahr<=Costs!$A366)*(AbschreibungAGr=Costs!K$353)*(AbschreibungAHKBvD))-SUM(K$267:K278)","v":0},{"$f":"SUMPRODUCT((Aktivierungsjahr<=Costs!$A366)*(AbschreibungAGr=Costs!L$353)*(AbschreibungAHKBvD))-SUM(L$267:L278)","v":0},{"$f":"SUMPRODUCT((Aktivierungsjahr<=Costs!$A366)*(AbschreibungAGr=Costs!M$353)*(AbschreibungAHKBvD))-SUM(M$267:M278)","v":0},{"$f":"SUMPRODUCT((Aktivierungsjahr<=Costs!$A366)*(AbschreibungAGr=Costs!N$353)*(AbschreibungAHKBvD))-SUM(N$267:N278)","v":0},{"$f":"SUMPRODUCT((Aktivierungsjahr<=Costs!$A366)*(AbschreibungAGr=Costs!O$353)*(AbschreibungAHKBvD))-SUM(O$267:O278)","v":0},{"$f":"SUMPRODUCT((Aktivierungsjahr<=Costs!$A366)*(AbschreibungAGr=Costs!P$353)*(AbschreibungAHKBvD))-SUM(P$267:P278)","v":132000000},{"$f":"SUMPRODUCT((Aktivierungsjahr<=Costs!$A366)*(AbschreibungAGr=Costs!Q$353)*(AbschreibungAHKBvD))-SUM(Q$267:Q278)","v":0},{"$f":"SUMPRODUCT((Aktivierungsjahr<=Costs!$A366)*(AbschreibungAGr=Costs!R$353)*(AbschreibungAHKBvD))-SUM(R$267:R278)","v":0},{"$f":"SUMPRODUCT((Aktivierungsjahr<=Costs!$A366)*(AbschreibungAGr=Costs!S$353)*(AbschreibungAHKBvD))-SUM(S$267:S278)","v":0},{"$f":"SUMPRODUCT((Aktivierungsjahr<=Costs!$A366)*(AbschreibungAGr=Costs!T$353)*(AbschreibungAHKBvD))-SUM(T$267:T278)","v":0},{"$f":"SUMPRODUCT((Aktivierungsjahr<=Costs!$A366)*(AbschreibungAGr=Costs!U$353)*(AbschreibungAHKBvD))-SUM(U$267:U278)","v":0},{"$f":"SUMPRODUCT((Aktivierungsjahr<=Costs!$A366)*(AbschreibungAGr=Costs!V$353)*(AbschreibungAHKBvD))-SUM(V$267:V278)","v":0},{"$f":"SUMPRODUCT((Aktivierungsjahr<=Costs!$A366)*(AbschreibungAGr=Costs!W$353)*(AbschreibungAHKBvD))-SUM(W$267:W278)","v":0},{"$f":"SUMPRODUCT((Aktivierungsjahr<=Costs!$A366)*(AbschreibungAGr=Costs!X$353)*(AbschreibungAHKBvD))-SUM(X$267:X278)","v":0},{"$f":"SUMPRODUCT((Aktivierungsjahr<=Costs!$A366)*(AbschreibungAGr=Costs!Y$353)*(AbschreibungAHKBvD))-SUM(Y$267:Y278)","v":0},{"$f":"SUMPRODUCT((Aktivierungsjahr<=Costs!$A366)*(AbschreibungAGr=Costs!Z$353)*(AbschreibungAHKBvD))-SUM(Z$267:Z278)","v":0},{"$f":"SUMPRODUCT((Aktivierungsjahr<=Costs!$A366)*(AbschreibungAGr=Costs!AA$353)*(AbschreibungAHKBvD))-SUM(AA$267:AA278)","v":0},{"$f":"SUMPRODUCT((Aktivierungsjahr<=Costs!$A366)*(AbschreibungAGr=Costs!AB$353)*(AbschreibungAHKBvD))-SUM(AB$267:AB278)","v":0},{"$f":"SUMPRODUCT((Aktivierungsjahr<=Costs!$A366)*(AbschreibungAGr=Costs!AC$353)*(AbschreibungAHKBvD))-SUM(AC$267:AC278)","v":0},{"$f":"SUMPRODUCT((Aktivierungsjahr<=Costs!$A366)*(AbschreibungAGr=Costs!AD$353)*(AbschreibungAHKBvD))-SUM(AD$267:AD278)","v":0},{"$f":"SUMPRODUCT((Aktivierungsjahr<=Costs!$A366)*(AbschreibungAGr=Costs!AE$353)*(AbschreibungAHKBvD))-SUM(AE$267:AE278)","v":0},{"$f":"SUMPRODUCT((Aktivierungsjahr<=Costs!$A366)*(AbschreibungAGr=Costs!AF$353)*(AbschreibungAHKBvD))-SUM(AF$267:AF278)","v":0},{"$f":"SUMPRODUCT((Aktivierungsjahr<=Costs!$A366)*(AbschreibungAGr=Costs!AG$353)*(AbschreibungAHKBvD))-SUM(AG$267:AG278)","v":0},{"$f":"SUMPRODUCT((Aktivierungsjahr<=Costs!$A366)*(AbschreibungAGr=Costs!AH$353)*(AbschreibungAHKBvD))-SUM(AH$267:AH278)","v":0},{"$f":"SUMPRODUCT((Aktivierungsjahr<=Costs!$A366)*(AbschreibungAGr=Costs!AI$353)*(AbschreibungAHKBvD))-SUM(AI$267:AI278)","v":0},{"$f":"SUMPRODUCT((Aktivierungsjahr<=Costs!$A366)*(AbschreibungAGr=Costs!AJ$353)*(AbschreibungAHKBvD))-SUM(AJ$267:AJ278)","v":933333.33333333337},{"$f":"SUMPRODUCT((Aktivierungsjahr<=Costs!$A366)*(AbschreibungAGr=Costs!AK$353)*(AbschreibungAHKBvD))-SUM(AK$267:AK278)","v":0},{"$f":"SUMPRODUCT((Aktivierungsjahr<=Costs!$A366)*(AbschreibungAGr=Costs!AL$353)*(AbschreibungAHKBvD))-SUM(AL$267:AL278)","v":0},{"$f":"SUMPRODUCT((Aktivierungsjahr<=Costs!$A366)*(AbschreibungAGr=Costs!AM$353)*(AbschreibungAHKBvD))-SUM(AM$267:AM278)","v":0},{"$f":"SUMPRODUCT((Aktivierungsjahr<=Costs!$A366)*(AbschreibungAGr=Costs!AN$353)*(AbschreibungAHKBvD))-SUM(AN$267:AN278)","v":0},{"$f":"SUMPRODUCT((Aktivierungsjahr<=Costs!$A366)*(AbschreibungAGr=Costs!AO$353)*(AbschreibungAHKBvD))-SUM(AO$267:AO278)","v":0},{"$f":"SUMPRODUCT((Aktivierungsjahr<=Costs!$A366)*(AbschreibungAGr=Costs!AP$353)*(AbschreibungAHKBvD))-SUM(AP$267:AP278)","v":0},{"$f":"SUMPRODUCT((Aktivierungsjahr<=Costs!$A366)*(AbschreibungAGr=Costs!AQ$353)*(AbschreibungAHKBvD))-SUM(AQ$267:AQ278)","v":0}]
[2028,126911111.1111111,{"$f":"SUMPRODUCT((Aktivierungsjahr<=Costs!$A367)*(AbschreibungAGr=Costs!C$353)*(AbschreibungAHKBvD))-SUM(C$267:C279)","v":0},{"$f":"SUMPRODUCT((Aktivierungsjahr<=Costs!$A367)*(AbschreibungAGr=Costs!D$353)*(AbschreibungAHKBvD))-SUM(D$267:D279)","v":0},{"$f":"SUMPRODUCT((Aktivierungsjahr<=Costs!$A367)*(AbschreibungAGr=Costs!E$353)*(AbschreibungAHKBvD))-SUM(E$267:E279)","v":0},{"$f":"SUMPRODUCT((Aktivierungsjahr<=Costs!$A367)*(AbschreibungAGr=Costs!F$353)*(AbschreibungAHKBvD))-SUM(F$267:F279)","v":0},{"$f":"SUMPRODUCT((Aktivierungsjahr<=Costs!$A367)*(AbschreibungAGr=Costs!G$353)*(AbschreibungAHKBvD))-SUM(G$267:G279)","v":0},{"$f":"SUMPRODUCT((Aktivierungsjahr<=Costs!$A367)*(AbschreibungAGr=Costs!H$353)*(AbschreibungAHKBvD))-SUM(H$267:H279)","v":0},{"$f":"SUMPRODUCT((Aktivierungsjahr<=Costs!$A367)*(AbschreibungAGr=Costs!I$353)*(AbschreibungAHKBvD))-SUM(I$267:I279)","v":0},{"$f":"SUMPRODUCT((Aktivierungsjahr<=Costs!$A367)*(AbschreibungAGr=Costs!J$353)*(AbschreibungAHKBvD))-SUM(J$267:J279)","v":0},{"$f":"SUMPRODUCT((Aktivierungsjahr<=Costs!$A367)*(AbschreibungAGr=Costs!K$353)*(AbschreibungAHKBvD))-SUM(K$267:K279)","v":0},{"$f":"SUMPRODUCT((Aktivierungsjahr<=Costs!$A367)*(AbschreibungAGr=Costs!L$353)*(AbschreibungAHKBvD))-SUM(L$267:L279)","v":0},{"$f":"SUMPRODUCT((Aktivierungsjahr<=Costs!$A367)*(AbschreibungAGr=Costs!M$353)*(AbschreibungAHKBvD))-SUM(M$267:M279)","v":0},{"$f":"SUMPRODUCT((Aktivierungsjahr<=Costs!$A367)*(AbschreibungAGr=Costs!N$353)*(AbschreibungAHKBvD))-SUM(N$267:N279)","v":0},{"$f":"SUMPRODUCT((Aktivierungsjahr<=Costs!$A367)*(AbschreibungAGr=Costs!O$353)*(AbschreibungAHKBvD))-SUM(O$267:O279)","v":0},{"$f":"SUMPRODUCT((Aktivierungsjahr<=Costs!$A367)*(AbschreibungAGr=Costs!P$353)*(AbschreibungAHKBvD))-SUM(P$267:P279)","v":126000000},{"$f":"SUMPRODUCT((Aktivierungsjahr<=Costs!$A367)*(AbschreibungAGr=Costs!Q$353)*(AbschreibungAHKBvD))-SUM(Q$267:Q279)","v":0},{"$f":"SUMPRODUCT((Aktivierungsjahr<=Costs!$A367)*(AbschreibungAGr=Costs!R$353)*(AbschreibungAHKBvD))-SUM(R$267:R279)","v":0},{"$f":"SUMPRODUCT((Aktivierungsjahr<=Costs!$A367)*(AbschreibungAGr=Costs!S$353)*(AbschreibungAHKBvD))-SUM(S$267:S279)","v":0},{"$f":"SUMPRODUCT((Aktivierungsjahr<=Costs!$A367)*(AbschreibungAGr=Costs!T$353)*(AbschreibungAHKBvD))-SUM(T$267:T279)","v":0},{"$f":"SUMPRODUCT((Aktivierungsjahr<=Costs!$A367)*(AbschreibungAGr=Costs!U$353)*(AbschreibungAHKBvD))-SUM(U$267:U279)","v":0},{"$f":"SUMPRODUCT((Aktivierungsjahr<=Costs!$A367)*(AbschreibungAGr=Costs!V$353)*(AbschreibungAHKBvD))-SUM(V$267:V279)","v":0},{"$f":"SUMPRODUCT((Aktivierungsjahr<=Costs!$A367)*(AbschreibungAGr=Costs!W$353)*(AbschreibungAHKBvD))-SUM(W$267:W279)","v":0},{"$f":"SUMPRODUCT((Aktivierungsjahr<=Costs!$A367)*(AbschreibungAGr=Costs!X$353)*(AbschreibungAHKBvD))-SUM(X$267:X279)","v":0},{"$f":"SUMPRODUCT((Aktivierungsjahr<=Costs!$A367)*(AbschreibungAGr=Costs!Y$353)*(AbschreibungAHKBvD))-SUM(Y$267:Y279)","v":0},{"$f":"SUMPRODUCT((Aktivierungsjahr<=Costs!$A367)*(AbschreibungAGr=Costs!Z$353)*(AbschreibungAHKBvD))-SUM(Z$267:Z279)","v":0},{"$f":"SUMPRODUCT((Aktivierungsjahr<=Costs!$A367)*(AbschreibungAGr=Costs!AA$353)*(AbschreibungAHKBvD))-SUM(AA$267:AA279)","v":0},{"$f":"SUMPRODUCT((Aktivierungsjahr<=Costs!$A367)*(AbschreibungAGr=Costs!AB$353)*(AbschreibungAHKBvD))-SUM(AB$267:AB279)","v":0},{"$f":"SUMPRODUCT((Aktivierungsjahr<=Costs!$A367)*(AbschreibungAGr=Costs!AC$353)*(AbschreibungAHKBvD))-SUM(AC$267:AC279)","v":0},{"$f":"SUMPRODUCT((Aktivierungsjahr<=Costs!$A367)*(AbschreibungAGr=Costs!AD$353)*(AbschreibungAHKBvD))-SUM(AD$267:AD279)","v":0},{"$f":"SUMPRODUCT((Aktivierungsjahr<=Costs!$A367)*(AbschreibungAGr=Costs!AE$353)*(AbschreibungAHKBvD))-SUM(AE$267:AE279)","v":0},{"$f":"SUMPRODUCT((Aktivierungsjahr<=Costs!$A367)*(AbschreibungAGr=Costs!AF$353)*(AbschreibungAHKBvD))-SUM(AF$267:AF279)","v":0},{"$f":"SUMPRODUCT((Aktivierungsjahr<=Costs!$A367)*(AbschreibungAGr=Costs!AG$353)*(AbschreibungAHKBvD))-SUM(AG$267:AG279)","v":0},{"$f":"SUMPRODUCT((Aktivierungsjahr<=Costs!$A367)*(AbschreibungAGr=Costs!AH$353)*(AbschreibungAHKBvD))-SUM(AH$267:AH279)","v":0},{"$f":"SUMPRODUCT((Aktivierungsjahr<=Costs!$A367)*(AbschreibungAGr=Costs!AI$353)*(AbschreibungAHKBvD))-SUM(AI$267:AI279)","v":0},{"$f":"SUMPRODUCT((Aktivierungsjahr<=Costs!$A367)*(AbschreibungAGr=Costs!AJ$353)*(AbschreibungAHKBvD))-SUM(AJ$267:AJ279)","v":911111.11111111112},{"$f":"SUMPRODUCT((Aktivierungsjahr<=Costs!$A367)*(AbschreibungAGr=Costs!AK$353)*(AbschreibungAHKBvD))-SUM(AK$267:AK279)","v":0},{"$f":"SUMPRODUCT((Aktivierungsjahr<=Costs!$A367)*(AbschreibungAGr=Costs!AL$353)*(AbschreibungAHKBvD))-SUM(AL$267:AL279)","v":0},{"$f":"SUMPRODUCT((Aktivierungsjahr<=Costs!$A367)*(AbschreibungAGr=Costs!AM$353)*(AbschreibungAHKBvD))-SUM(AM$267:AM279)","v":0},{"$f":"SUMPRODUCT((Aktivierungsjahr<=Costs!$A367)*(AbschreibungAGr=Costs!AN$353)*(AbschreibungAHKBvD))-SUM(AN$267:AN279)","v":0},{"$f":"SUMPRODUCT((Aktivierungsjahr<=Costs!$A367)*(AbschreibungAGr=Costs!AO$353)*(AbschreibungAHKBvD))-SUM(AO$267:AO279)","v":0},{"$f":"SUMPRODUCT((Aktivierungsjahr<=Costs!$A367)*(AbschreibungAGr=Costs!AP$353)*(AbschreibungAHKBvD))-SUM(AP$267:AP279)","v":0},{"$f":"SUMPRODUCT((Aktivierungsjahr<=Costs!$A367)*(AbschreibungAGr=Costs!AQ$353)*(AbschreibungAHKBvD))-SUM(AQ$267:AQ279)","v":0}]
[2029,120888888.8888889,{"$f":"SUMPRODUCT((Aktivierungsjahr<=Costs!$A368)*(AbschreibungAGr=Costs!C$353)*(AbschreibungAHKBvD))-SUM(C$267:C280)","v":0},{"$f":"SUMPRODUCT((Aktivierungsjahr<=Costs!$A368)*(AbschreibungAGr=Costs!D$353)*(AbschreibungAHKBvD))-SUM(D$267:D280)","v":0},{"$f":"SUMPRODUCT((Aktivierungsjahr<=Costs!$A368)*(AbschreibungAGr=Costs!E$353)*(AbschreibungAHKBvD))-SUM(E$267:E280)","v":0},{"$f":"SUMPRODUCT((Aktivierungsjahr<=Costs!$A368)*(AbschreibungAGr=Costs!F$353)*(AbschreibungAHKBvD))-SUM(F$267:F280)","v":0},{"$f":"SUMPRODUCT((Aktivierungsjahr<=Costs!$A368)*(AbschreibungAGr=Costs!G$353)*(AbschreibungAHKBvD))-SUM(G$267:G280)","v":0},{"$f":"SUMPRODUCT((Aktivierungsjahr<=Costs!$A368)*(AbschreibungAGr=Costs!H$353)*(AbschreibungAHKBvD))-SUM(H$267:H280)","v":0},{"$f":"SUMPRODUCT((Aktivierungsjahr<=Costs!$A368)*(AbschreibungAGr=Costs!I$353)*(AbschreibungAHKBvD))-SUM(I$267:I280)","v":0},{"$f":"SUMPRODUCT((Aktivierungsjahr<=Costs!$A368)*(AbschreibungAGr=Costs!J$353)*(AbschreibungAHKBvD))-SUM(J$267:J280)","v":0},{"$f":"SUMPRODUCT((Aktivierungsjahr<=Costs!$A368)*(AbschreibungAGr=Costs!K$353)*(AbschreibungAHKBvD))-SUM(K$267:K280)","v":0},{"$f":"SUMPRODUCT((Aktivierungsjahr<=Costs!$A368)*(AbschreibungAGr=Costs!L$353)*(AbschreibungAHKBvD))-SUM(L$267:L280)","v":0},{"$f":"SUMPRODUCT((Aktivierungsjahr<=Costs!$A368)*(AbschreibungAGr=Costs!M$353)*(AbschreibungAHKBvD))-SUM(M$267:M280)","v":0},{"$f":"SUMPRODUCT((Aktivierungsjahr<=Costs!$A368)*(AbschreibungAGr=Costs!N$353)*(AbschreibungAHKBvD))-SUM(N$267:N280)","v":0},{"$f":"SUMPRODUCT((Aktivierungsjahr<=Costs!$A368)*(AbschreibungAGr=Costs!O$353)*(AbschreibungAHKBvD))-SUM(O$267:O280)","v":0},{"$f":"SUMPRODUCT((Aktivierungsjahr<=Costs!$A368)*(AbschreibungAGr=Costs!P$353)*(AbschreibungAHKBvD))-SUM(P$267:P280)","v":120000000},{"$f":"SUMPRODUCT((Aktivierungsjahr<=Costs!$A368)*(AbschreibungAGr=Costs!Q$353)*(AbschreibungAHKBvD))-SUM(Q$267:Q280)","v":0},{"$f":"SUMPRODUCT((Aktivierungsjahr<=Costs!$A368)*(AbschreibungAGr=Costs!R$353)*(AbschreibungAHKBvD))-SUM(R$267:R280)","v":0},{"$f":"SUMPRODUCT((Aktivierungsjahr<=Costs!$A368)*(AbschreibungAGr=Costs!S$353)*(AbschreibungAHKBvD))-SUM(S$267:S280)","v":0},{"$f":"SUMPRODUCT((Aktivierungsjahr<=Costs!$A368)*(AbschreibungAGr=Costs!T$353)*(AbschreibungAHKBvD))-SUM(T$267:T280)","v":0},{"$f":"SUMPRODUCT((Aktivierungsjahr<=Costs!$A368)*(AbschreibungAGr=Costs!U$353)*(AbschreibungAHKBvD))-SUM(U$267:U280)","v":0},{"$f":"SUMPRODUCT((Aktivierungsjahr<=Costs!$A368)*(AbschreibungAGr=Costs!V$353)*(AbschreibungAHKBvD))-SUM(V$267:V280)","v":0},{"$f":"SUMPRODUCT((Aktivierungsjahr<=Costs!$A368)*(AbschreibungAGr=Costs!W$353)*(AbschreibungAHKBvD))-SUM(W$267:W280)","v":0},{"$f":"SUMPRODUCT((Aktivierungsjahr<=Costs!$A368)*(AbschreibungAGr=Costs!X$353)*(AbschreibungAHKBvD))-SUM(X$267:X280)","v":0},{"$f":"SUMPRODUCT((Aktivierungsjahr<=Costs!$A368)*(AbschreibungAGr=Costs!Y$353)*(AbschreibungAHKBvD))-SUM(Y$267:Y280)","v":0},{"$f":"SUMPRODUCT((Aktivierungsjahr<=Costs!$A368)*(AbschreibungAGr=Costs!Z$353)*(AbschreibungAHKBvD))-SUM(Z$267:Z280)","v":0},{"$f":"SUMPRODUCT((Aktivierungsjahr<=Costs!$A368)*(AbschreibungAGr=Costs!AA$353)*(AbschreibungAHKBvD))-SUM(AA$267:AA280)","v":0},{"$f":"SUMPRODUCT((Aktivierungsjahr<=Costs!$A368)*(AbschreibungAGr=Costs!AB$353)*(AbschreibungAHKBvD))-SUM(AB$267:AB280)","v":0},{"$f":"SUMPRODUCT((Aktivierungsjahr<=Costs!$A368)*(AbschreibungAGr=Costs!AC$353)*(AbschreibungAHKBvD))-SUM(AC$267:AC280)","v":0},{"$f":"SUMPRODUCT((Aktivierungsjahr<=Costs!$A368)*(AbschreibungAGr=Costs!AD$353)*(AbschreibungAHKBvD))-SUM(AD$267:AD280)","v":0},{"$f":"SUMPRODUCT((Aktivierungsjahr<=Costs!$A368)*(AbschreibungAGr=Costs!AE$353)*(AbschreibungAHKBvD))-SUM(AE$267:AE280)","v":0},{"$f":"SUMPRODUCT((Aktivierungsjahr<=Costs!$A368)*(AbschreibungAGr=Costs!AF$353)*(AbschreibungAHKBvD))-SUM(AF$267:AF280)","v":0},{"$f":"SUMPRODUCT((Aktivierungsjahr<=Costs!$A368)*(AbschreibungAGr=Costs!AG$353)*(AbschreibungAHKBvD))-SUM(AG$267:AG280)","v":0},{"$f":"SUMPRODUCT((Aktivierungsjahr<=Costs!$A368)*(AbschreibungAGr=Costs!AH$353)*(AbschreibungAHKBvD))-SUM(AH$267:AH280)","v":0},{"$f":"SUMPRODUCT((Aktivierungsjahr<=Costs!$A368)*(AbschreibungAGr=Costs!AI$353)*(AbschreibungAHKBvD))-SUM(AI$267:AI280)","v":0},{"$f":"SUMPRODUCT((Aktivierungsjahr<=Costs!$A368)*(AbschreibungAGr=Costs!AJ$353)*(AbschreibungAHKBvD))-SUM(AJ$267:AJ280)","v":888888.88888888888},{"$f":"SUMPRODUCT((Aktivierungsjahr<=Costs!$A368)*(AbschreibungAGr=Costs!AK$353)*(AbschreibungAHKBvD))-SUM(AK$267:AK280)","v":0},{"$f":"SUMPRODUCT((Aktivierungsjahr<=Costs!$A368)*(AbschreibungAGr=Costs!AL$353)*(AbschreibungAHKBvD))-SUM(AL$267:AL280)","v":0},{"$f":"SUMPRODUCT((Aktivierungsjahr<=Costs!$A368)*(AbschreibungAGr=Costs!AM$353)*(AbschreibungAHKBvD))-SUM(AM$267:AM280)","v":0},{"$f":"SUMPRODUCT((Aktivierungsjahr<=Costs!$A368)*(AbschreibungAGr=Costs!AN$353)*(AbschreibungAHKBvD))-SUM(AN$267:AN280)","v":0},{"$f":"SUMPRODUCT((Aktivierungsjahr<=Costs!$A368)*(AbschreibungAGr=Costs!AO$353)*(AbschreibungAHKBvD))-SUM(AO$267:AO280)","v":0},{"$f":"SUMPRODUCT((Aktivierungsjahr<=Costs!$A368)*(AbschreibungAGr=Costs!AP$353)*(AbschreibungAHKBvD))-SUM(AP$267:AP280)","v":0},{"$f":"SUMPRODUCT((Aktivierungsjahr<=Costs!$A368)*(AbschreibungAGr=Costs!AQ$353)*(AbschreibungAHKBvD))-SUM(AQ$267:AQ280)","v":0}]
[2030,114866666.66666667,{"$f":"SUMPRODUCT((Aktivierungsjahr<=Costs!$A369)*(AbschreibungAGr=Costs!C$353)*(AbschreibungAHKBvD))-SUM(C$267:C281)","v":0},{"$f":"SUMPRODUCT((Aktivierungsjahr<=Costs!$A369)*(AbschreibungAGr=Costs!D$353)*(AbschreibungAHKBvD))-SUM(D$267:D281)","v":0},{"$f":"SUMPRODUCT((Aktivierungsjahr<=Costs!$A369)*(AbschreibungAGr=Costs!E$353)*(AbschreibungAHKBvD))-SUM(E$267:E281)","v":0},{"$f":"SUMPRODUCT((Aktivierungsjahr<=Costs!$A369)*(AbschreibungAGr=Costs!F$353)*(AbschreibungAHKBvD))-SUM(F$267:F281)","v":0},{"$f":"SUMPRODUCT((Aktivierungsjahr<=Costs!$A369)*(AbschreibungAGr=Costs!G$353)*(AbschreibungAHKBvD))-SUM(G$267:G281)","v":0},{"$f":"SUMPRODUCT((Aktivierungsjahr<=Costs!$A369)*(AbschreibungAGr=Costs!H$353)*(AbschreibungAHKBvD))-SUM(H$267:H281)","v":0},{"$f":"SUMPRODUCT((Aktivierungsjahr<=Costs!$A369)*(AbschreibungAGr=Costs!I$353)*(AbschreibungAHKBvD))-SUM(I$267:I281)","v":0},{"$f":"SUMPRODUCT((Aktivierungsjahr<=Costs!$A369)*(AbschreibungAGr=Costs!J$353)*(AbschreibungAHKBvD))-SUM(J$267:J281)","v":0},{"$f":"SUMPRODUCT((Aktivierungsjahr<=Costs!$A369)*(AbschreibungAGr=Costs!K$353)*(AbschreibungAHKBvD))-SUM(K$267:K281)","v":0},{"$f":"SUMPRODUCT((Aktivierungsjahr<=Costs!$A369)*(AbschreibungAGr=Costs!L$353)*(AbschreibungAHKBvD))-SUM(L$267:L281)","v":0},{"$f":"SUMPRODUCT((Aktivierungsjahr<=Costs!$A369)*(AbschreibungAGr=Costs!M$353)*(AbschreibungAHKBvD))-SUM(M$267:M281)","v":0},{"$f":"SUMPRODUCT((Aktivierungsjahr<=Costs!$A369)*(AbschreibungAGr=Costs!N$353)*(AbschreibungAHKBvD))-SUM(N$267:N281)","v":0},{"$f":"SUMPRODUCT((Aktivierungsjahr<=Costs!$A369)*(AbschreibungAGr=Costs!O$353)*(AbschreibungAHKBvD))-SUM(O$267:O281)","v":0},{"$f":"SUMPRODUCT((Aktivierungsjahr<=Costs!$A369)*(AbschreibungAGr=Costs!P$353)*(AbschreibungAHKBvD))-SUM(P$267:P281)","v":114000000},{"$f":"SUMPRODUCT((Aktivierungsjahr<=Costs!$A369)*(AbschreibungAGr=Costs!Q$353)*(AbschreibungAHKBvD))-SUM(Q$267:Q281)","v":0},{"$f":"SUMPRODUCT((Aktivierungsjahr<=Costs!$A369)*(AbschreibungAGr=Costs!R$353)*(AbschreibungAHKBvD))-SUM(R$267:R281)","v":0},{"$f":"SUMPRODUCT((Aktivierungsjahr<=Costs!$A369)*(AbschreibungAGr=Costs!S$353)*(AbschreibungAHKBvD))-SUM(S$267:S281)","v":0},{"$f":"SUMPRODUCT((Aktivierungsjahr<=Costs!$A369)*(AbschreibungAGr=Costs!T$353)*(AbschreibungAHKBvD))-SUM(T$267:T281)","v":0},{"$f":"SUMPRODUCT((Aktivierungsjahr<=Costs!$A369)*(AbschreibungAGr=Costs!U$353)*(AbschreibungAHKBvD))-SUM(U$267:U281)","v":0},{"$f":"SUMPRODUCT((Aktivierungsjahr<=Costs!$A369)*(AbschreibungAGr=Costs!V$353)*(AbschreibungAHKBvD))-SUM(V$267:V281)","v":0},{"$f":"SUMPRODUCT((Aktivierungsjahr<=Costs!$A369)*(AbschreibungAGr=Costs!W$353)*(AbschreibungAHKBvD))-SUM(W$267:W281)","v":0},{"$f":"SUMPRODUCT((Aktivierungsjahr<=Costs!$A369)*(AbschreibungAGr=Costs!X$353)*(AbschreibungAHKBvD))-SUM(X$267:X281)","v":0},{"$f":"SUMPRODUCT((Aktivierungsjahr<=Costs!$A369)*(AbschreibungAGr=Costs!Y$353)*(AbschreibungAHKBvD))-SUM(Y$267:Y281)","v":0},{"$f":"SUMPRODUCT((Aktivierungsjahr<=Costs!$A369)*(AbschreibungAGr=Costs!Z$353)*(AbschreibungAHKBvD))-SUM(Z$267:Z281)","v":0},{"$f":"SUMPRODUCT((Aktivierungsjahr<=Costs!$A369)*(AbschreibungAGr=Costs!AA$353)*(AbschreibungAHKBvD))-SUM(AA$267:AA281)","v":0},{"$f":"SUMPRODUCT((Aktivierungsjahr<=Costs!$A369)*(AbschreibungAGr=Costs!AB$353)*(AbschreibungAHKBvD))-SUM(AB$267:AB281)","v":0},{"$f":"SUMPRODUCT((Aktivierungsjahr<=Costs!$A369)*(AbschreibungAGr=Costs!AC$353)*(AbschreibungAHKBvD))-SUM(AC$267:AC281)","v":0},{"$f":"SUMPRODUCT((Aktivierungsjahr<=Costs!$A369)*(AbschreibungAGr=Costs!AD$353)*(AbschreibungAHKBvD))-SUM(AD$267:AD281)","v":0},{"$f":"SUMPRODUCT((Aktivierungsjahr<=Costs!$A369)*(AbschreibungAGr=Costs!AE$353)*(AbschreibungAHKBvD))-SUM(AE$267:AE281)","v":0},{"$f":"SUMPRODUCT((Aktivierungsjahr<=Costs!$A369)*(AbschreibungAGr=Costs!AF$353)*(AbschreibungAHKBvD))-SUM(AF$267:AF281)","v":0},{"$f":"SUMPRODUCT((Aktivierungsjahr<=Costs!$A369)*(AbschreibungAGr=Costs!AG$353)*(AbschreibungAHKBvD))-SUM(AG$267:AG281)","v":0},{"$f":"SUMPRODUCT((Aktivierungsjahr<=Costs!$A369)*(AbschreibungAGr=Costs!AH$353)*(AbschreibungAHKBvD))-SUM(AH$267:AH281)","v":0},{"$f":"SUMPRODUCT((Aktivierungsjahr<=Costs!$A369)*(AbschreibungAGr=Costs!AI$353)*(AbschreibungAHKBvD))-SUM(AI$267:AI281)","v":0},{"$f":"SUMPRODUCT((Aktivierungsjahr<=Costs!$A369)*(AbschreibungAGr=Costs!AJ$353)*(AbschreibungAHKBvD))-SUM(AJ$267:AJ281)","v":866666.66666666663},{"$f":"SUMPRODUCT((Aktivierungsjahr<=Costs!$A369)*(AbschreibungAGr=Costs!AK$353)*(AbschreibungAHKBvD))-SUM(AK$267:AK281)","v":0},{"$f":"SUMPRODUCT((Aktivierungsjahr<=Costs!$A369)*(AbschreibungAGr=Costs!AL$353)*(AbschreibungAHKBvD))-SUM(AL$267:AL281)","v":0},{"$f":"SUMPRODUCT((Aktivierungsjahr<=Costs!$A369)*(AbschreibungAGr=Costs!AM$353)*(AbschreibungAHKBvD))-SUM(AM$267:AM281)","v":0},{"$f":"SUMPRODUCT((Aktivierungsjahr<=Costs!$A369)*(AbschreibungAGr=Costs!AN$353)*(AbschreibungAHKBvD))-SUM(AN$267:AN281)","v":0},{"$f":"SUMPRODUCT((Aktivierungsjahr<=Costs!$A369)*(AbschreibungAGr=Costs!AO$353)*(AbschreibungAHKBvD))-SUM(AO$267:AO281)","v":0},{"$f":"SUMPRODUCT((Aktivierungsjahr<=Costs!$A369)*(AbschreibungAGr=Costs!AP$353)*(AbschreibungAHKBvD))-SUM(AP$267:AP281)","v":0},{"$f":"SUMPRODUCT((Aktivierungsjahr<=Costs!$A369)*(AbschreibungAGr=Costs!AQ$353)*(AbschreibungAHKBvD))-SUM(AQ$267:AQ281)","v":0}]
[2031,{"$f":"SUM(C458:AQ458)","v":108844444.44444445},{"$f":"SUMPRODUCT((Aktivierungsjahr<=Costs!$A370)*(AbschreibungAGr=Costs!C$353)*(AbschreibungAHKBvD))-SUM(C$267:C282)","v":0},{"$f":"SUMPRODUCT((Aktivierungsjahr<=Costs!$A370)*(AbschreibungAGr=Costs!D$353)*(AbschreibungAHKBvD))-SUM(D$267:D282)","v":0},{"$f":"SUMPRODUCT((Aktivierungsjahr<=Costs!$A370)*(AbschreibungAGr=Costs!E$353)*(AbschreibungAHKBvD))-SUM(E$267:E282)","v":0},{"$f":"SUMPRODUCT((Aktivierungsjahr<=Costs!$A370)*(AbschreibungAGr=Costs!F$353)*(AbschreibungAHKBvD))-SUM(F$267:F282)","v":0},{"$f":"SUMPRODUCT((Aktivierungsjahr<=Costs!$A370)*(AbschreibungAGr=Costs!G$353)*(AbschreibungAHKBvD))-SUM(G$267:G282)","v":0},{"$f":"SUMPRODUCT((Aktivierungsjahr<=Costs!$A370)*(AbschreibungAGr=Costs!H$353)*(AbschreibungAHKBvD))-SUM(H$267:H282)","v":0},{"$f":"SUMPRODUCT((Aktivierungsjahr<=Costs!$A370)*(AbschreibungAGr=Costs!I$353)*(AbschreibungAHKBvD))-SUM(I$267:I282)","v":0},{"$f":"SUMPRODUCT((Aktivierungsjahr<=Costs!$A370)*(AbschreibungAGr=Costs!J$353)*(AbschreibungAHKBvD))-SUM(J$267:J282)","v":0},{"$f":"SUMPRODUCT((Aktivierungsjahr<=Costs!$A370)*(AbschreibungAGr=Costs!K$353)*(AbschreibungAHKBvD))-SUM(K$267:K282)","v":0},{"$f":"SUMPRODUCT((Aktivierungsjahr<=Costs!$A370)*(AbschreibungAGr=Costs!L$353)*(AbschreibungAHKBvD))-SUM(L$267:L282)","v":0},{"$f":"SUMPRODUCT((Aktivierungsjahr<=Costs!$A370)*(AbschreibungAGr=Costs!M$353)*(AbschreibungAHKBvD))-SUM(M$267:M282)","v":0},{"$f":"SUMPRODUCT((Aktivierungsjahr<=Costs!$A370)*(AbschreibungAGr=Costs!N$353)*(AbschreibungAHKBvD))-SUM(N$267:N282)","v":0},{"$f":"SUMPRODUCT((Aktivierungsjahr<=Costs!$A370)*(AbschreibungAGr=Costs!O$353)*(AbschreibungAHKBvD))-SUM(O$267:O282)","v":0},{"$f":"SUMPRODUCT((Aktivierungsjahr<=Costs!$A370)*(AbschreibungAGr=Costs!P$353)*(AbschreibungAHKBvD))-SUM(P$267:P282)","v":108000000},{"$f":"SUMPRODUCT((Aktivierungsjahr<=Costs!$A370)*(AbschreibungAGr=Costs!Q$353)*(AbschreibungAHKBvD))-SUM(Q$267:Q282)","v":0},{"$f":"SUMPRODUCT((Aktivierungsjahr<=Costs!$A370)*(AbschreibungAGr=Costs!R$353)*(AbschreibungAHKBvD))-SUM(R$267:R282)","v":0},{"$f":"SUMPRODUCT((Aktivierungsjahr<=Costs!$A370)*(AbschreibungAGr=Costs!S$353)*(AbschreibungAHKBvD))-SUM(S$267:S282)","v":0},{"$f":"SUMPRODUCT((Aktivierungsjahr<=Costs!$A370)*(AbschreibungAGr=Costs!T$353)*(AbschreibungAHKBvD))-SUM(T$267:T282)","v":0},{"$f":"SUMPRODUCT((Aktivierungsjahr<=Costs!$A370)*(AbschreibungAGr=Costs!U$353)*(AbschreibungAHKBvD))-SUM(U$267:U282)","v":0},{"$f":"SUMPRODUCT((Aktivierungsjahr<=Costs!$A370)*(AbschreibungAGr=Costs!V$353)*(AbschreibungAHKBvD))-SUM(V$267:V282)","v":0},{"$f":"SUMPRODUCT((Aktivierungsjahr<=Costs!$A370)*(AbschreibungAGr=Costs!W$353)*(AbschreibungAHKBvD))-SUM(W$267:W282)","v":0},{"$f":"SUMPRODUCT((Aktivierungsjahr<=Costs!$A370)*(AbschreibungAGr=Costs!X$353)*(AbschreibungAHKBvD))-SUM(X$267:X282)","v":0},{"$f":"SUMPRODUCT((Aktivierungsjahr<=Costs!$A370)*(AbschreibungAGr=Costs!Y$353)*(AbschreibungAHKBvD))-SUM(Y$267:Y282)","v":0},{"$f":"SUMPRODUCT((Aktivierungsjahr<=Costs!$A370)*(AbschreibungAGr=Costs!Z$353)*(AbschreibungAHKBvD))-SUM(Z$267:Z282)","v":0},{"$f":"SUMPRODUCT((Aktivierungsjahr<=Costs!$A370)*(AbschreibungAGr=Costs!AA$353)*(AbschreibungAHKBvD))-SUM(AA$267:AA282)","v":0},{"$f":"SUMPRODUCT((Aktivierungsjahr<=Costs!$A370)*(AbschreibungAGr=Costs!AB$353)*(AbschreibungAHKBvD))-SUM(AB$267:AB282)","v":0},{"$f":"SUMPRODUCT((Aktivierungsjahr<=Costs!$A370)*(AbschreibungAGr=Costs!AC$353)*(AbschreibungAHKBvD))-SUM(AC$267:AC282)","v":0},{"$f":"SUMPRODUCT((Aktivierungsjahr<=Costs!$A370)*(AbschreibungAGr=Costs!AD$353)*(AbschreibungAHKBvD))-SUM(AD$267:AD282)","v":0},{"$f":"SUMPRODUCT((Aktivierungsjahr<=Costs!$A370)*(AbschreibungAGr=Costs!AE$353)*(AbschreibungAHKBvD))-SUM(AE$267:AE282)","v":0},{"$f":"SUMPRODUCT((Aktivierungsjahr<=Costs!$A370)*(AbschreibungAGr=Costs!AF$353)*(AbschreibungAHKBvD))-SUM(AF$267:AF282)","v":0},{"$f":"SUMPRODUCT((Aktivierungsjahr<=Costs!$A370)*(AbschreibungAGr=Costs!AG$353)*(AbschreibungAHKBvD))-SUM(AG$267:AG282)","v":0},{"$f":"SUMPRODUCT((Aktivierungsjahr<=Costs!$A370)*(AbschreibungAGr=Costs!AH$353)*(AbschreibungAHKBvD))-SUM(AH$267:AH282)","v":0},{"$f":"SUMPRODUCT((Aktivierungsjahr<=Costs!$A370)*(AbschreibungAGr=Costs!AI$353)*(AbschreibungAHKBvD))-SUM(AI$267:AI282)","v":0},{"$f":"SUMPRODUCT((Aktivierungsjahr<=Costs!$A370)*(AbschreibungAGr=Costs!AJ$353)*(AbschreibungAHKBvD))-SUM(AJ$267:AJ282)","v":844444.4444444445},{"$f":"SUMPRODUCT((Aktivierungsjahr<=Costs!$A370)*(AbschreibungAGr=Costs!AK$353)*(AbschreibungAHKBvD))-SUM(AK$267:AK282)","v":0},{"$f":"SUMPRODUCT((Aktivierungsjahr<=Costs!$A370)*(AbschreibungAGr=Costs!AL$353)*(AbschreibungAHKBvD))-SUM(AL$267:AL282)","v":0},{"$f":"SUMPRODUCT((Aktivierungsjahr<=Costs!$A370)*(AbschreibungAGr=Costs!AM$353)*(AbschreibungAHKBvD))-SUM(AM$267:AM282)","v":0},{"$f":"SUMPRODUCT((Aktivierungsjahr<=Costs!$A370)*(AbschreibungAGr=Costs!AN$353)*(AbschreibungAHKBvD))-SUM(AN$267:AN282)","v":0},{"$f":"SUMPRODUCT((Aktivierungsjahr<=Costs!$A370)*(AbschreibungAGr=Costs!AO$353)*(AbschreibungAHKBvD))-SUM(AO$267:AO282)","v":0},{"$f":"SUMPRODUCT((Aktivierungsjahr<=Costs!$A370)*(AbschreibungAGr=Costs!AP$353)*(AbschreibungAHKBvD))-SUM(AP$267:AP282)","v":0},{"$f":"SUMPRODUCT((Aktivierungsjahr<=Costs!$A370)*(AbschreibungAGr=Costs!AQ$353)*(AbschreibungAHKBvD))-SUM(AQ$267:AQ282)","v":0}]
[2032,102822222.22222222,{"$f":"SUMPRODUCT((Aktivierungsjahr<=Costs!$A371)*(AbschreibungAGr=Costs!C$353)*(AbschreibungAHKBvD))-SUM(C$267:C283)","v":0},{"$f":"SUMPRODUCT((Aktivierungsjahr<=Costs!$A371)*(AbschreibungAGr=Costs!D$353)*(AbschreibungAHKBvD))-SUM(D$267:D283)","v":0},{"$f":"SUMPRODUCT((Aktivierungsjahr<=Costs!$A371)*(AbschreibungAGr=Costs!E$353)*(AbschreibungAHKBvD))-SUM(E$267:E283)","v":0},{"$f":"SUMPRODUCT((Aktivierungsjahr<=Costs!$A371)*(AbschreibungAGr=Costs!F$353)*(AbschreibungAHKBvD))-SUM(F$267:F283)","v":0},{"$f":"SUMPRODUCT((Aktivierungsjahr<=Costs!$A371)*(AbschreibungAGr=Costs!G$353)*(AbschreibungAHKBvD))-SUM(G$267:G283)","v":0},{"$f":"SUMPRODUCT((Aktivierungsjahr<=Costs!$A371)*(AbschreibungAGr=Costs!H$353)*(AbschreibungAHKBvD))-SUM(H$267:H283)","v":0},{"$f":"SUMPRODUCT((Aktivierungsjahr<=Costs!$A371)*(AbschreibungAGr=Costs!I$353)*(AbschreibungAHKBvD))-SUM(I$267:I283)","v":0},{"$f":"SUMPRODUCT((Aktivierungsjahr<=Costs!$A371)*(AbschreibungAGr=Costs!J$353)*(AbschreibungAHKBvD))-SUM(J$267:J283)","v":0},{"$f":"SUMPRODUCT((Aktivierungsjahr<=Costs!$A371)*(AbschreibungAGr=Costs!K$353)*(AbschreibungAHKBvD))-SUM(K$267:K283)","v":0},{"$f":"SUMPRODUCT((Aktivierungsjahr<=Costs!$A371)*(AbschreibungAGr=Costs!L$353)*(AbschreibungAHKBvD))-SUM(L$267:L283)","v":0},{"$f":"SUMPRODUCT((Aktivierungsjahr<=Costs!$A371)*(AbschreibungAGr=Costs!M$353)*(AbschreibungAHKBvD))-SUM(M$267:M283)","v":0},{"$f":"SUMPRODUCT((Aktivierungsjahr<=Costs!$A371)*(AbschreibungAGr=Costs!N$353)*(AbschreibungAHKBvD))-SUM(N$267:N283)","v":0},{"$f":"SUMPRODUCT((Aktivierungsjahr<=Costs!$A371)*(AbschreibungAGr=Costs!O$353)*(AbschreibungAHKBvD))-SUM(O$267:O283)","v":0},{"$f":"SUMPRODUCT((Aktivierungsjahr<=Costs!$A371)*(AbschreibungAGr=Costs!P$353)*(AbschreibungAHKBvD))-SUM(P$267:P283)","v":102000000},{"$f":"SUMPRODUCT((Aktivierungsjahr<=Costs!$A371)*(AbschreibungAGr=Costs!Q$353)*(AbschreibungAHKBvD))-SUM(Q$267:Q283)","v":0},{"$f":"SUMPRODUCT((Aktivierungsjahr<=Costs!$A371)*(AbschreibungAGr=Costs!R$353)*(AbschreibungAHKBvD))-SUM(R$267:R283)","v":0},{"$f":"SUMPRODUCT((Aktivierungsjahr<=Costs!$A371)*(AbschreibungAGr=Costs!S$353)*(AbschreibungAHKBvD))-SUM(S$267:S283)","v":0},{"$f":"SUMPRODUCT((Aktivierungsjahr<=Costs!$A371)*(AbschreibungAGr=Costs!T$353)*(AbschreibungAHKBvD))-SUM(T$267:T283)","v":0},{"$f":"SUMPRODUCT((Aktivierungsjahr<=Costs!$A371)*(AbschreibungAGr=Costs!U$353)*(AbschreibungAHKBvD))-SUM(U$267:U283)","v":0},{"$f":"SUMPRODUCT((Aktivierungsjahr<=Costs!$A371)*(AbschreibungAGr=Costs!V$353)*(AbschreibungAHKBvD))-SUM(V$267:V283)","v":0},{"$f":"SUMPRODUCT((Aktivierungsjahr<=Costs!$A371)*(AbschreibungAGr=Costs!W$353)*(AbschreibungAHKBvD))-SUM(W$267:W283)","v":0},{"$f":"SUMPRODUCT((Aktivierungsjahr<=Costs!$A371)*(AbschreibungAGr=Costs!X$353)*(AbschreibungAHKBvD))-SUM(X$267:X283)","v":0},{"$f":"SUMPRODUCT((Aktivierungsjahr<=Costs!$A371)*(AbschreibungAGr=Costs!Y$353)*(AbschreibungAHKBvD))-SUM(Y$267:Y283)","v":0},{"$f":"SUMPRODUCT((Aktivierungsjahr<=Costs!$A371)*(AbschreibungAGr=Costs!Z$353)*(AbschreibungAHKBvD))-SUM(Z$267:Z283)","v":0},{"$f":"SUMPRODUCT((Aktivierungsjahr<=Costs!$A371)*(AbschreibungAGr=Costs!AA$353)*(AbschreibungAHKBvD))-SUM(AA$267:AA283)","v":0},{"$f":"SUMPRODUCT((Aktivierungsjahr<=Costs!$A371)*(AbschreibungAGr=Costs!AB$353)*(AbschreibungAHKBvD))-SUM(AB$267:AB283)","v":0},{"$f":"SUMPRODUCT((Aktivierungsjahr<=Costs!$A371)*(AbschreibungAGr=Costs!AC$353)*(AbschreibungAHKBvD))-SUM(AC$267:AC283)","v":0},{"$f":"SUMPRODUCT((Aktivierungsjahr<=Costs!$A371)*(AbschreibungAGr=Costs!AD$353)*(AbschreibungAHKBvD))-SUM(AD$267:AD283)","v":0},{"$f":"SUMPRODUCT((Aktivierungsjahr<=Costs!$A371)*(AbschreibungAGr=Costs!AE$353)*(AbschreibungAHKBvD))-SUM(AE$267:AE283)","v":0},{"$f":"SUMPRODUCT((Aktivierungsjahr<=Costs!$A371)*(AbschreibungAGr=Costs!AF$353)*(AbschreibungAHKBvD))-SUM(AF$267:AF283)","v":0},{"$f":"SUMPRODUCT((Aktivierungsjahr<=Costs!$A371)*(AbschreibungAGr=Costs!AG$353)*(AbschreibungAHKBvD))-SUM(AG$267:AG283)","v":0},{"$f":"SUMPRODUCT((Aktivierungsjahr<=Costs!$A371)*(AbschreibungAGr=Costs!AH$353)*(AbschreibungAHKBvD))-SUM(AH$267:AH283)","v":0},{"$f":"SUMPRODUCT((Aktivierungsjahr<=Costs!$A371)*(AbschreibungAGr=Costs!AI$353)*(AbschreibungAHKBvD))-SUM(AI$267:AI283)","v":0},{"$f":"SUMPRODUCT((Aktivierungsjahr<=Costs!$A371)*(AbschreibungAGr=Costs!AJ$353)*(AbschreibungAHKBvD))-SUM(AJ$267:AJ283)","v":822222.22222222225},{"$f":"SUMPRODUCT((Aktivierungsjahr<=Costs!$A371)*(AbschreibungAGr=Costs!AK$353)*(AbschreibungAHKBvD))-SUM(AK$267:AK283)","v":0},{"$f":"SUMPRODUCT((Aktivierungsjahr<=Costs!$A371)*(AbschreibungAGr=Costs!AL$353)*(AbschreibungAHKBvD))-SUM(AL$267:AL283)","v":0},{"$f":"SUMPRODUCT((Aktivierungsjahr<=Costs!$A371)*(AbschreibungAGr=Costs!AM$353)*(AbschreibungAHKBvD))-SUM(AM$267:AM283)","v":0},{"$f":"SUMPRODUCT((Aktivierungsjahr<=Costs!$A371)*(AbschreibungAGr=Costs!AN$353)*(AbschreibungAHKBvD))-SUM(AN$267:AN283)","v":0},{"$f":"SUMPRODUCT((Aktivierungsjahr<=Costs!$A371)*(AbschreibungAGr=Costs!AO$353)*(AbschreibungAHKBvD))-SUM(AO$267:AO283)","v":0},{"$f":"SUMPRODUCT((Aktivierungsjahr<=Costs!$A371)*(AbschreibungAGr=Costs!AP$353)*(AbschreibungAHKBvD))-SUM(AP$267:AP283)","v":0},{"$f":"SUMPRODUCT((Aktivierungsjahr<=Costs!$A371)*(AbschreibungAGr=Costs!AQ$353)*(AbschreibungAHKBvD))-SUM(AQ$267:AQ283)","v":0}]
[2033,96800000,{"$f":"SUMPRODUCT((Aktivierungsjahr<=Costs!$A372)*(AbschreibungAGr=Costs!C$353)*(AbschreibungAHKBvD))-SUM(C$267:C284)","v":0},{"$f":"SUMPRODUCT((Aktivierungsjahr<=Costs!$A372)*(AbschreibungAGr=Costs!D$353)*(AbschreibungAHKBvD))-SUM(D$267:D284)","v":0},{"$f":"SUMPRODUCT((Aktivierungsjahr<=Costs!$A372)*(AbschreibungAGr=Costs!E$353)*(AbschreibungAHKBvD))-SUM(E$267:E284)","v":0},{"$f":"SUMPRODUCT((Aktivierungsjahr<=Costs!$A372)*(AbschreibungAGr=Costs!F$353)*(AbschreibungAHKBvD))-SUM(F$267:F284)","v":0},{"$f":"SUMPRODUCT((Aktivierungsjahr<=Costs!$A372)*(AbschreibungAGr=Costs!G$353)*(AbschreibungAHKBvD))-SUM(G$267:G284)","v":0},{"$f":"SUMPRODUCT((Aktivierungsjahr<=Costs!$A372)*(AbschreibungAGr=Costs!H$353)*(AbschreibungAHKBvD))-SUM(H$267:H284)","v":0},{"$f":"SUMPRODUCT((Aktivierungsjahr<=Costs!$A372)*(AbschreibungAGr=Costs!I$353)*(AbschreibungAHKBvD))-SUM(I$267:I284)","v":0},{"$f":"SUMPRODUCT((Aktivierungsjahr<=Costs!$A372)*(AbschreibungAGr=Costs!J$353)*(AbschreibungAHKBvD))-SUM(J$267:J284)","v":0},{"$f":"SUMPRODUCT((Aktivierungsjahr<=Costs!$A372)*(AbschreibungAGr=Costs!K$353)*(AbschreibungAHKBvD))-SUM(K$267:K284)","v":0},{"$f":"SUMPRODUCT((Aktivierungsjahr<=Costs!$A372)*(AbschreibungAGr=Costs!L$353)*(AbschreibungAHKBvD))-SUM(L$267:L284)","v":0},{"$f":"SUMPRODUCT((Aktivierungsjahr<=Costs!$A372)*(AbschreibungAGr=Costs!M$353)*(AbschreibungAHKBvD))-SUM(M$267:M284)","v":0},{"$f":"SUMPRODUCT((Aktivierungsjahr<=Costs!$A372)*(AbschreibungAGr=Costs!N$353)*(AbschreibungAHKBvD))-SUM(N$267:N284)","v":0},{"$f":"SUMPRODUCT((Aktivierungsjahr<=Costs!$A372)*(AbschreibungAGr=Costs!O$353)*(AbschreibungAHKBvD))-SUM(O$267:O284)","v":0},{"$f":"SUMPRODUCT((Aktivierungsjahr<=Costs!$A372)*(AbschreibungAGr=Costs!P$353)*(AbschreibungAHKBvD))-SUM(P$267:P284)","v":96000000},{"$f":"SUMPRODUCT((Aktivierungsjahr<=Costs!$A372)*(AbschreibungAGr=Costs!Q$353)*(AbschreibungAHKBvD))-SUM(Q$267:Q284)","v":0},{"$f":"SUMPRODUCT((Aktivierungsjahr<=Costs!$A372)*(AbschreibungAGr=Costs!R$353)*(AbschreibungAHKBvD))-SUM(R$267:R284)","v":0},{"$f":"SUMPRODUCT((Aktivierungsjahr<=Costs!$A372)*(AbschreibungAGr=Costs!S$353)*(AbschreibungAHKBvD))-SUM(S$267:S284)","v":0},{"$f":"SUMPRODUCT((Aktivierungsjahr<=Costs!$A372)*(AbschreibungAGr=Costs!T$353)*(AbschreibungAHKBvD))-SUM(T$267:T284)","v":0},{"$f":"SUMPRODUCT((Aktivierungsjahr<=Costs!$A372)*(AbschreibungAGr=Costs!U$353)*(AbschreibungAHKBvD))-SUM(U$267:U284)","v":0},{"$f":"SUMPRODUCT((Aktivierungsjahr<=Costs!$A372)*(AbschreibungAGr=Costs!V$353)*(AbschreibungAHKBvD))-SUM(V$267:V284)","v":0},{"$f":"SUMPRODUCT((Aktivierungsjahr<=Costs!$A372)*(AbschreibungAGr=Costs!W$353)*(AbschreibungAHKBvD))-SUM(W$267:W284)","v":0},{"$f":"SUMPRODUCT((Aktivierungsjahr<=Costs!$A372)*(AbschreibungAGr=Costs!X$353)*(AbschreibungAHKBvD))-SUM(X$267:X284)","v":0},{"$f":"SUMPRODUCT((Aktivierungsjahr<=Costs!$A372)*(AbschreibungAGr=Costs!Y$353)*(AbschreibungAHKBvD))-SUM(Y$267:Y284)","v":0},{"$f":"SUMPRODUCT((Aktivierungsjahr<=Costs!$A372)*(AbschreibungAGr=Costs!Z$353)*(AbschreibungAHKBvD))-SUM(Z$267:Z284)","v":0},{"$f":"SUMPRODUCT((Aktivierungsjahr<=Costs!$A372)*(AbschreibungAGr=Costs!AA$353)*(AbschreibungAHKBvD))-SUM(AA$267:AA284)","v":0},{"$f":"SUMPRODUCT((Aktivierungsjahr<=Costs!$A372)*(AbschreibungAGr=Costs!AB$353)*(AbschreibungAHKBvD))-SUM(AB$267:AB284)","v":0},{"$f":"SUMPRODUCT((Aktivierungsjahr<=Costs!$A372)*(AbschreibungAGr=Costs!AC$353)*(AbschreibungAHKBvD))-SUM(AC$267:AC284)","v":0},{"$f":"SUMPRODUCT((Aktivierungsjahr<=Costs!$A372)*(AbschreibungAGr=Costs!AD$353)*(AbschreibungAHKBvD))-SUM(AD$267:AD284)","v":0},{"$f":"SUMPRODUCT((Aktivierungsjahr<=Costs!$A372)*(AbschreibungAGr=Costs!AE$353)*(AbschreibungAHKBvD))-SUM(AE$267:AE284)","v":0},{"$f":"SUMPRODUCT((Aktivierungsjahr<=Costs!$A372)*(AbschreibungAGr=Costs!AF$353)*(AbschreibungAHKBvD))-SUM(AF$267:AF284)","v":0},{"$f":"SUMPRODUCT((Aktivierungsjahr<=Costs!$A372)*(AbschreibungAGr=Costs!AG$353)*(AbschreibungAHKBvD))-SUM(AG$267:AG284)","v":0},{"$f":"SUMPRODUCT((Aktivierungsjahr<=Costs!$A372)*(AbschreibungAGr=Costs!AH$353)*(AbschreibungAHKBvD))-SUM(AH$267:AH284)","v":0},{"$f":"SUMPRODUCT((Aktivierungsjahr<=Costs!$A372)*(AbschreibungAGr=Costs!AI$353)*(AbschreibungAHKBvD))-SUM(AI$267:AI284)","v":0},{"$f":"SUMPRODUCT((Aktivierungsjahr<=Costs!$A372)*(AbschreibungAGr=Costs!AJ$353)*(AbschreibungAHKBvD))-SUM(AJ$267:AJ284)","v":800000},{"$f":"SUMPRODUCT((Aktivierungsjahr<=Costs!$A372)*(AbschreibungAGr=Costs!AK$353)*(AbschreibungAHKBvD))-SUM(AK$267:AK284)","v":0},{"$f":"SUMPRODUCT((Aktivierungsjahr<=Costs!$A372)*(AbschreibungAGr=Costs!AL$353)*(AbschreibungAHKBvD))-SUM(AL$267:AL284)","v":0},{"$f":"SUMPRODUCT((Aktivierungsjahr<=Costs!$A372)*(AbschreibungAGr=Costs!AM$353)*(AbschreibungAHKBvD))-SUM(AM$267:AM284)","v":0},{"$f":"SUMPRODUCT((Aktivierungsjahr<=Costs!$A372)*(AbschreibungAGr=Costs!AN$353)*(AbschreibungAHKBvD))-SUM(AN$267:AN284)","v":0},{"$f":"SUMPRODUCT((Aktivierungsjahr<=Costs!$A372)*(AbschreibungAGr=Costs!AO$353)*(AbschreibungAHKBvD))-SUM(AO$267:AO284)","v":0},{"$f":"SUMPRODUCT((Aktivierungsjahr<=Costs!$A372)*(AbschreibungAGr=Costs!AP$353)*(AbschreibungAHKBvD))-SUM(AP$267:AP284)","v":0},{"$f":"SUMPRODUCT((Aktivierungsjahr<=Costs!$A372)*(AbschreibungAGr=Costs!AQ$353)*(AbschreibungAHKBvD))-SUM(AQ$267:AQ284)","v":0}]
[2034,90777777.777777776,{"$f":"SUMPRODUCT((Aktivierungsjahr<=Costs!$A373)*(AbschreibungAGr=Costs!C$353)*(AbschreibungAHKBvD))-SUM(C$267:C285)","v":0},{"$f":"SUMPRODUCT((Aktivierungsjahr<=Costs!$A373)*(AbschreibungAGr=Costs!D$353)*(AbschreibungAHKBvD))-SUM(D$267:D285)","v":0},{"$f":"SUMPRODUCT((Aktivierungsjahr<=Costs!$A373)*(AbschreibungAGr=Costs!E$353)*(AbschreibungAHKBvD))-SUM(E$267:E285)","v":0},{"$f":"SUMPRODUCT((Aktivierungsjahr<=Costs!$A373)*(AbschreibungAGr=Costs!F$353)*(AbschreibungAHKBvD))-SUM(F$267:F285)","v":0},{"$f":"SUMPRODUCT((Aktivierungsjahr<=Costs!$A373)*(AbschreibungAGr=Costs!G$353)*(AbschreibungAHKBvD))-SUM(G$267:G285)","v":0},{"$f":"SUMPRODUCT((Aktivierungsjahr<=Costs!$A373)*(AbschreibungAGr=Costs!H$353)*(AbschreibungAHKBvD))-SUM(H$267:H285)","v":0},{"$f":"SUMPRODUCT((Aktivierungsjahr<=Costs!$A373)*(AbschreibungAGr=Costs!I$353)*(AbschreibungAHKBvD))-SUM(I$267:I285)","v":0},{"$f":"SUMPRODUCT((Aktivierungsjahr<=Costs!$A373)*(AbschreibungAGr=Costs!J$353)*(AbschreibungAHKBvD))-SUM(J$267:J285)","v":0},{"$f":"SUMPRODUCT((Aktivierungsjahr<=Costs!$A373)*(AbschreibungAGr=Costs!K$353)*(AbschreibungAHKBvD))-SUM(K$267:K285)","v":0},{"$f":"SUMPRODUCT((Aktivierungsjahr<=Costs!$A373)*(AbschreibungAGr=Costs!L$353)*(AbschreibungAHKBvD))-SUM(L$267:L285)","v":0},{"$f":"SUMPRODUCT((Aktivierungsjahr<=Costs!$A373)*(AbschreibungAGr=Costs!M$353)*(AbschreibungAHKBvD))-SUM(M$267:M285)","v":0},{"$f":"SUMPRODUCT((Aktivierungsjahr<=Costs!$A373)*(AbschreibungAGr=Costs!N$353)*(AbschreibungAHKBvD))-SUM(N$267:N285)","v":0},{"$f":"SUMPRODUCT((Aktivierungsjahr<=Costs!$A373)*(AbschreibungAGr=Costs!O$353)*(AbschreibungAHKBvD))-SUM(O$267:O285)","v":0},{"$f":"SUMPRODUCT((Aktivierungsjahr<=Costs!$A373)*(AbschreibungAGr=Costs!P$353)*(AbschreibungAHKBvD))-SUM(P$267:P285)","v":90000000},{"$f":"SUMPRODUCT((Aktivierungsjahr<=Costs!$A373)*(AbschreibungAGr=Costs!Q$353)*(AbschreibungAHKBvD))-SUM(Q$267:Q285)","v":0},{"$f":"SUMPRODUCT((Aktivierungsjahr<=Costs!$A373)*(AbschreibungAGr=Costs!R$353)*(AbschreibungAHKBvD))-SUM(R$267:R285)","v":0},{"$f":"SUMPRODUCT((Aktivierungsjahr<=Costs!$A373)*(AbschreibungAGr=Costs!S$353)*(AbschreibungAHKBvD))-SUM(S$267:S285)","v":0},{"$f":"SUMPRODUCT((Aktivierungsjahr<=Costs!$A373)*(AbschreibungAGr=Costs!T$353)*(AbschreibungAHKBvD))-SUM(T$267:T285)","v":0},{"$f":"SUMPRODUCT((Aktivierungsjahr<=Costs!$A373)*(AbschreibungAGr=Costs!U$353)*(AbschreibungAHKBvD))-SUM(U$267:U285)","v":0},{"$f":"SUMPRODUCT((Aktivierungsjahr<=Costs!$A373)*(AbschreibungAGr=Costs!V$353)*(AbschreibungAHKBvD))-SUM(V$267:V285)","v":0},{"$f":"SUMPRODUCT((Aktivierungsjahr<=Costs!$A373)*(AbschreibungAGr=Costs!W$353)*(AbschreibungAHKBvD))-SUM(W$267:W285)","v":0},{"$f":"SUMPRODUCT((Aktivierungsjahr<=Costs!$A373)*(AbschreibungAGr=Costs!X$353)*(AbschreibungAHKBvD))-SUM(X$267:X285)","v":0},{"$f":"SUMPRODUCT((Aktivierungsjahr<=Costs!$A373)*(AbschreibungAGr=Costs!Y$353)*(AbschreibungAHKBvD))-SUM(Y$267:Y285)","v":0},{"$f":"SUMPRODUCT((Aktivierungsjahr<=Costs!$A373)*(AbschreibungAGr=Costs!Z$353)*(AbschreibungAHKBvD))-SUM(Z$267:Z285)","v":0},{"$f":"SUMPRODUCT((Aktivierungsjahr<=Costs!$A373)*(AbschreibungAGr=Costs!AA$353)*(AbschreibungAHKBvD))-SUM(AA$267:AA285)","v":0},{"$f":"SUMPRODUCT((Aktivierungsjahr<=Costs!$A373)*(AbschreibungAGr=Costs!AB$353)*(AbschreibungAHKBvD))-SUM(AB$267:AB285)","v":0},{"$f":"SUMPRODUCT((Aktivierungsjahr<=Costs!$A373)*(AbschreibungAGr=Costs!AC$353)*(AbschreibungAHKBvD))-SUM(AC$267:AC285)","v":0},{"$f":"SUMPRODUCT((Aktivierungsjahr<=Costs!$A373)*(AbschreibungAGr=Costs!AD$353)*(AbschreibungAHKBvD))-SUM(AD$267:AD285)","v":0},{"$f":"SUMPRODUCT((Aktivierungsjahr<=Costs!$A373)*(AbschreibungAGr=Costs!AE$353)*(AbschreibungAHKBvD))-SUM(AE$267:AE285)","v":0},{"$f":"SUMPRODUCT((Aktivierungsjahr<=Costs!$A373)*(AbschreibungAGr=Costs!AF$353)*(AbschreibungAHKBvD))-SUM(AF$267:AF285)","v":0},{"$f":"SUMPRODUCT((Aktivierungsjahr<=Costs!$A373)*(AbschreibungAGr=Costs!AG$353)*(AbschreibungAHKBvD))-SUM(AG$267:AG285)","v":0},{"$f":"SUMPRODUCT((Aktivierungsjahr<=Costs!$A373)*(AbschreibungAGr=Costs!AH$353)*(AbschreibungAHKBvD))-SUM(AH$267:AH285)","v":0},{"$f":"SUMPRODUCT((Aktivierungsjahr<=Costs!$A373)*(AbschreibungAGr=Costs!AI$353)*(AbschreibungAHKBvD))-SUM(AI$267:AI285)","v":0},{"$f":"SUMPRODUCT((Aktivierungsjahr<=Costs!$A373)*(AbschreibungAGr=Costs!AJ$353)*(AbschreibungAHKBvD))-SUM(AJ$267:AJ285)","v":777777.77777777775},{"$f":"SUMPRODUCT((Aktivierungsjahr<=Costs!$A373)*(AbschreibungAGr=Costs!AK$353)*(AbschreibungAHKBvD))-SUM(AK$267:AK285)","v":0},{"$f":"SUMPRODUCT((Aktivierungsjahr<=Costs!$A373)*(AbschreibungAGr=Costs!AL$353)*(AbschreibungAHKBvD))-SUM(AL$267:AL285)","v":0},{"$f":"SUMPRODUCT((Aktivierungsjahr<=Costs!$A373)*(AbschreibungAGr=Costs!AM$353)*(AbschreibungAHKBvD))-SUM(AM$267:AM285)","v":0},{"$f":"SUMPRODUCT((Aktivierungsjahr<=Costs!$A373)*(AbschreibungAGr=Costs!AN$353)*(AbschreibungAHKBvD))-SUM(AN$267:AN285)","v":0},{"$f":"SUMPRODUCT((Aktivierungsjahr<=Costs!$A373)*(AbschreibungAGr=Costs!AO$353)*(AbschreibungAHKBvD))-SUM(AO$267:AO285)","v":0},{"$f":"SUMPRODUCT((Aktivierungsjahr<=Costs!$A373)*(AbschreibungAGr=Costs!AP$353)*(AbschreibungAHKBvD))-SUM(AP$267:AP285)","v":0},{"$f":"SUMPRODUCT((Aktivierungsjahr<=Costs!$A373)*(AbschreibungAGr=Costs!AQ$353)*(AbschreibungAHKBvD))-SUM(AQ$267:AQ285)","v":0}]
[2035,84755555.555555552,{"$f":"SUMPRODUCT((Aktivierungsjahr<=Costs!$A374)*(AbschreibungAGr=Costs!C$353)*(AbschreibungAHKBvD))-SUM(C$267:C286)","v":0},{"$f":"SUMPRODUCT((Aktivierungsjahr<=Costs!$A374)*(AbschreibungAGr=Costs!D$353)*(AbschreibungAHKBvD))-SUM(D$267:D286)","v":0},{"$f":"SUMPRODUCT((Aktivierungsjahr<=Costs!$A374)*(AbschreibungAGr=Costs!E$353)*(AbschreibungAHKBvD))-SUM(E$267:E286)","v":0},{"$f":"SUMPRODUCT((Aktivierungsjahr<=Costs!$A374)*(AbschreibungAGr=Costs!F$353)*(AbschreibungAHKBvD))-SUM(F$267:F286)","v":0},{"$f":"SUMPRODUCT((Aktivierungsjahr<=Costs!$A374)*(AbschreibungAGr=Costs!G$353)*(AbschreibungAHKBvD))-SUM(G$267:G286)","v":0},{"$f":"SUMPRODUCT((Aktivierungsjahr<=Costs!$A374)*(AbschreibungAGr=Costs!H$353)*(AbschreibungAHKBvD))-SUM(H$267:H286)","v":0},{"$f":"SUMPRODUCT((Aktivierungsjahr<=Costs!$A374)*(AbschreibungAGr=Costs!I$353)*(AbschreibungAHKBvD))-SUM(I$267:I286)","v":0},{"$f":"SUMPRODUCT((Aktivierungsjahr<=Costs!$A374)*(AbschreibungAGr=Costs!J$353)*(AbschreibungAHKBvD))-SUM(J$267:J286)","v":0},{"$f":"SUMPRODUCT((Aktivierungsjahr<=Costs!$A374)*(AbschreibungAGr=Costs!K$353)*(AbschreibungAHKBvD))-SUM(K$267:K286)","v":0},{"$f":"SUMPRODUCT((Aktivierungsjahr<=Costs!$A374)*(AbschreibungAGr=Costs!L$353)*(AbschreibungAHKBvD))-SUM(L$267:L286)","v":0},{"$f":"SUMPRODUCT((Aktivierungsjahr<=Costs!$A374)*(AbschreibungAGr=Costs!M$353)*(AbschreibungAHKBvD))-SUM(M$267:M286)","v":0},{"$f":"SUMPRODUCT((Aktivierungsjahr<=Costs!$A374)*(AbschreibungAGr=Costs!N$353)*(AbschreibungAHKBvD))-SUM(N$267:N286)","v":0},{"$f":"SUMPRODUCT((Aktivierungsjahr<=Costs!$A374)*(AbschreibungAGr=Costs!O$353)*(AbschreibungAHKBvD))-SUM(O$267:O286)","v":0},{"$f":"SUMPRODUCT((Aktivierungsjahr<=Costs!$A374)*(AbschreibungAGr=Costs!P$353)*(AbschreibungAHKBvD))-SUM(P$267:P286)","v":84000000},{"$f":"SUMPRODUCT((Aktivierungsjahr<=Costs!$A374)*(AbschreibungAGr=Costs!Q$353)*(AbschreibungAHKBvD))-SUM(Q$267:Q286)","v":0},{"$f":"SUMPRODUCT((Aktivierungsjahr<=Costs!$A374)*(AbschreibungAGr=Costs!R$353)*(AbschreibungAHKBvD))-SUM(R$267:R286)","v":0},{"$f":"SUMPRODUCT((Aktivierungsjahr<=Costs!$A374)*(AbschreibungAGr=Costs!S$353)*(AbschreibungAHKBvD))-SUM(S$267:S286)","v":0},{"$f":"SUMPRODUCT((Aktivierungsjahr<=Costs!$A374)*(AbschreibungAGr=Costs!T$353)*(AbschreibungAHKBvD))-SUM(T$267:T286)","v":0},{"$f":"SUMPRODUCT((Aktivierungsjahr<=Costs!$A374)*(AbschreibungAGr=Costs!U$353)*(AbschreibungAHKBvD))-SUM(U$267:U286)","v":0},{"$f":"SUMPRODUCT((Aktivierungsjahr<=Costs!$A374)*(AbschreibungAGr=Costs!V$353)*(AbschreibungAHKBvD))-SUM(V$267:V286)","v":0},{"$f":"SUMPRODUCT((Aktivierungsjahr<=Costs!$A374)*(AbschreibungAGr=Costs!W$353)*(AbschreibungAHKBvD))-SUM(W$267:W286)","v":0},{"$f":"SUMPRODUCT((Aktivierungsjahr<=Costs!$A374)*(AbschreibungAGr=Costs!X$353)*(AbschreibungAHKBvD))-SUM(X$267:X286)","v":0},{"$f":"SUMPRODUCT((Aktivierungsjahr<=Costs!$A374)*(AbschreibungAGr=Costs!Y$353)*(AbschreibungAHKBvD))-SUM(Y$267:Y286)","v":0},{"$f":"SUMPRODUCT((Aktivierungsjahr<=Costs!$A374)*(AbschreibungAGr=Costs!Z$353)*(AbschreibungAHKBvD))-SUM(Z$267:Z286)","v":0},{"$f":"SUMPRODUCT((Aktivierungsjahr<=Costs!$A374)*(AbschreibungAGr=Costs!AA$353)*(AbschreibungAHKBvD))-SUM(AA$267:AA286)","v":0},{"$f":"SUMPRODUCT((Aktivierungsjahr<=Costs!$A374)*(AbschreibungAGr=Costs!AB$353)*(AbschreibungAHKBvD))-SUM(AB$267:AB286)","v":0},{"$f":"SUMPRODUCT((Aktivierungsjahr<=Costs!$A374)*(AbschreibungAGr=Costs!AC$353)*(AbschreibungAHKBvD))-SUM(AC$267:AC286)","v":0},{"$f":"SUMPRODUCT((Aktivierungsjahr<=Costs!$A374)*(AbschreibungAGr=Costs!AD$353)*(AbschreibungAHKBvD))-SUM(AD$267:AD286)","v":0},{"$f":"SUMPRODUCT((Aktivierungsjahr<=Costs!$A374)*(AbschreibungAGr=Costs!AE$353)*(AbschreibungAHKBvD))-SUM(AE$267:AE286)","v":0},{"$f":"SUMPRODUCT((Aktivierungsjahr<=Costs!$A374)*(AbschreibungAGr=Costs!AF$353)*(AbschreibungAHKBvD))-SUM(AF$267:AF286)","v":0},{"$f":"SUMPRODUCT((Aktivierungsjahr<=Costs!$A374)*(AbschreibungAGr=Costs!AG$353)*(AbschreibungAHKBvD))-SUM(AG$267:AG286)","v":0},{"$f":"SUMPRODUCT((Aktivierungsjahr<=Costs!$A374)*(AbschreibungAGr=Costs!AH$353)*(AbschreibungAHKBvD))-SUM(AH$267:AH286)","v":0},{"$f":"SUMPRODUCT((Aktivierungsjahr<=Costs!$A374)*(AbschreibungAGr=Costs!AI$353)*(AbschreibungAHKBvD))-SUM(AI$267:AI286)","v":0},{"$f":"SUMPRODUCT((Aktivierungsjahr<=Costs!$A374)*(AbschreibungAGr=Costs!AJ$353)*(AbschreibungAHKBvD))-SUM(AJ$267:AJ286)","v":755555.5555555555},{"$f":"SUMPRODUCT((Aktivierungsjahr<=Costs!$A374)*(AbschreibungAGr=Costs!AK$353)*(AbschreibungAHKBvD))-SUM(AK$267:AK286)","v":0},{"$f":"SUMPRODUCT((Aktivierungsjahr<=Costs!$A374)*(AbschreibungAGr=Costs!AL$353)*(AbschreibungAHKBvD))-SUM(AL$267:AL286)","v":0},{"$f":"SUMPRODUCT((Aktivierungsjahr<=Costs!$A374)*(AbschreibungAGr=Costs!AM$353)*(AbschreibungAHKBvD))-SUM(AM$267:AM286)","v":0},{"$f":"SUMPRODUCT((Aktivierungsjahr<=Costs!$A374)*(AbschreibungAGr=Costs!AN$353)*(AbschreibungAHKBvD))-SUM(AN$267:AN286)","v":0},{"$f":"SUMPRODUCT((Aktivierungsjahr<=Costs!$A374)*(AbschreibungAGr=Costs!AO$353)*(AbschreibungAHKBvD))-SUM(AO$267:AO286)","v":0},{"$f":"SUMPRODUCT((Aktivierungsjahr<=Costs!$A374)*(AbschreibungAGr=Costs!AP$353)*(AbschreibungAHKBvD))-SUM(AP$267:AP286)","v":0},{"$f":"SUMPRODUCT((Aktivierungsjahr<=Costs!$A374)*(AbschreibungAGr=Costs!AQ$353)*(AbschreibungAHKBvD))-SUM(AQ$267:AQ286)","v":0}]
[2036,78733333.333333328,{"$f":"SUMPRODUCT((Aktivierungsjahr<=Costs!$A375)*(AbschreibungAGr=Costs!C$353)*(AbschreibungAHKBvD))-SUM(C$267:C287)","v":0},{"$f":"SUMPRODUCT((Aktivierungsjahr<=Costs!$A375)*(AbschreibungAGr=Costs!D$353)*(AbschreibungAHKBvD))-SUM(D$267:D287)","v":0},{"$f":"SUMPRODUCT((Aktivierungsjahr<=Costs!$A375)*(AbschreibungAGr=Costs!E$353)*(AbschreibungAHKBvD))-SUM(E$267:E287)","v":0},{"$f":"SUMPRODUCT((Aktivierungsjahr<=Costs!$A375)*(AbschreibungAGr=Costs!F$353)*(AbschreibungAHKBvD))-SUM(F$267:F287)","v":0},{"$f":"SUMPRODUCT((Aktivierungsjahr<=Costs!$A375)*(AbschreibungAGr=Costs!G$353)*(AbschreibungAHKBvD))-SUM(G$267:G287)","v":0},{"$f":"SUMPRODUCT((Aktivierungsjahr<=Costs!$A375)*(AbschreibungAGr=Costs!H$353)*(AbschreibungAHKBvD))-SUM(H$267:H287)","v":0},{"$f":"SUMPRODUCT((Aktivierungsjahr<=Costs!$A375)*(AbschreibungAGr=Costs!I$353)*(AbschreibungAHKBvD))-SUM(I$267:I287)","v":0},{"$f":"SUMPRODUCT((Aktivierungsjahr<=Costs!$A375)*(AbschreibungAGr=Costs!J$353)*(AbschreibungAHKBvD))-SUM(J$267:J287)","v":0},{"$f":"SUMPRODUCT((Aktivierungsjahr<=Costs!$A375)*(AbschreibungAGr=Costs!K$353)*(AbschreibungAHKBvD))-SUM(K$267:K287)","v":0},{"$f":"SUMPRODUCT((Aktivierungsjahr<=Costs!$A375)*(AbschreibungAGr=Costs!L$353)*(AbschreibungAHKBvD))-SUM(L$267:L287)","v":0},{"$f":"SUMPRODUCT((Aktivierungsjahr<=Costs!$A375)*(AbschreibungAGr=Costs!M$353)*(AbschreibungAHKBvD))-SUM(M$267:M287)","v":0},{"$f":"SUMPRODUCT((Aktivierungsjahr<=Costs!$A375)*(AbschreibungAGr=Costs!N$353)*(AbschreibungAHKBvD))-SUM(N$267:N287)","v":0},{"$f":"SUMPRODUCT((Aktivierungsjahr<=Costs!$A375)*(AbschreibungAGr=Costs!O$353)*(AbschreibungAHKBvD))-SUM(O$267:O287)","v":0},{"$f":"SUMPRODUCT((Aktivierungsjahr<=Costs!$A375)*(AbschreibungAGr=Costs!P$353)*(AbschreibungAHKBvD))-SUM(P$267:P287)","v":78000000},{"$f":"SUMPRODUCT((Aktivierungsjahr<=Costs!$A375)*(AbschreibungAGr=Costs!Q$353)*(AbschreibungAHKBvD))-SUM(Q$267:Q287)","v":0},{"$f":"SUMPRODUCT((Aktivierungsjahr<=Costs!$A375)*(AbschreibungAGr=Costs!R$353)*(AbschreibungAHKBvD))-SUM(R$267:R287)","v":0},{"$f":"SUMPRODUCT((Aktivierungsjahr<=Costs!$A375)*(AbschreibungAGr=Costs!S$353)*(AbschreibungAHKBvD))-SUM(S$267:S287)","v":0},{"$f":"SUMPRODUCT((Aktivierungsjahr<=Costs!$A375)*(AbschreibungAGr=Costs!T$353)*(AbschreibungAHKBvD))-SUM(T$267:T287)","v":0},{"$f":"SUMPRODUCT((Aktivierungsjahr<=Costs!$A375)*(AbschreibungAGr=Costs!U$353)*(AbschreibungAHKBvD))-SUM(U$267:U287)","v":0},{"$f":"SUMPRODUCT((Aktivierungsjahr<=Costs!$A375)*(AbschreibungAGr=Costs!V$353)*(AbschreibungAHKBvD))-SUM(V$267:V287)","v":0},{"$f":"SUMPRODUCT((Aktivierungsjahr<=Costs!$A375)*(AbschreibungAGr=Costs!W$353)*(AbschreibungAHKBvD))-SUM(W$267:W287)","v":0},{"$f":"SUMPRODUCT((Aktivierungsjahr<=Costs!$A375)*(AbschreibungAGr=Costs!X$353)*(AbschreibungAHKBvD))-SUM(X$267:X287)","v":0},{"$f":"SUMPRODUCT((Aktivierungsjahr<=Costs!$A375)*(AbschreibungAGr=Costs!Y$353)*(AbschreibungAHKBvD))-SUM(Y$267:Y287)","v":0},{"$f":"SUMPRODUCT((Aktivierungsjahr<=Costs!$A375)*(AbschreibungAGr=Costs!Z$353)*(AbschreibungAHKBvD))-SUM(Z$267:Z287)","v":0},{"$f":"SUMPRODUCT((Aktivierungsjahr<=Costs!$A375)*(AbschreibungAGr=Costs!AA$353)*(AbschreibungAHKBvD))-SUM(AA$267:AA287)","v":0},{"$f":"SUMPRODUCT((Aktivierungsjahr<=Costs!$A375)*(AbschreibungAGr=Costs!AB$353)*(AbschreibungAHKBvD))-SUM(AB$267:AB287)","v":0},{"$f":"SUMPRODUCT((Aktivierungsjahr<=Costs!$A375)*(AbschreibungAGr=Costs!AC$353)*(AbschreibungAHKBvD))-SUM(AC$267:AC287)","v":0},{"$f":"SUMPRODUCT((Aktivierungsjahr<=Costs!$A375)*(AbschreibungAGr=Costs!AD$353)*(AbschreibungAHKBvD))-SUM(AD$267:AD287)","v":0},{"$f":"SUMPRODUCT((Aktivierungsjahr<=Costs!$A375)*(AbschreibungAGr=Costs!AE$353)*(AbschreibungAHKBvD))-SUM(AE$267:AE287)","v":0},{"$f":"SUMPRODUCT((Aktivierungsjahr<=Costs!$A375)*(AbschreibungAGr=Costs!AF$353)*(AbschreibungAHKBvD))-SUM(AF$267:AF287)","v":0},{"$f":"SUMPRODUCT((Aktivierungsjahr<=Costs!$A375)*(AbschreibungAGr=Costs!AG$353)*(AbschreibungAHKBvD))-SUM(AG$267:AG287)","v":0},{"$f":"SUMPRODUCT((Aktivierungsjahr<=Costs!$A375)*(AbschreibungAGr=Costs!AH$353)*(AbschreibungAHKBvD))-SUM(AH$267:AH287)","v":0},{"$f":"SUMPRODUCT((Aktivierungsjahr<=Costs!$A375)*(AbschreibungAGr=Costs!AI$353)*(AbschreibungAHKBvD))-SUM(AI$267:AI287)","v":0},{"$f":"SUMPRODUCT((Aktivierungsjahr<=Costs!$A375)*(AbschreibungAGr=Costs!AJ$353)*(AbschreibungAHKBvD))-SUM(AJ$267:AJ287)","v":733333.33333333326},{"$f":"SUMPRODUCT((Aktivierungsjahr<=Costs!$A375)*(AbschreibungAGr=Costs!AK$353)*(AbschreibungAHKBvD))-SUM(AK$267:AK287)","v":0},{"$f":"SUMPRODUCT((Aktivierungsjahr<=Costs!$A375)*(AbschreibungAGr=Costs!AL$353)*(AbschreibungAHKBvD))-SUM(AL$267:AL287)","v":0},{"$f":"SUMPRODUCT((Aktivierungsjahr<=Costs!$A375)*(AbschreibungAGr=Costs!AM$353)*(AbschreibungAHKBvD))-SUM(AM$267:AM287)","v":0},{"$f":"SUMPRODUCT((Aktivierungsjahr<=Costs!$A375)*(AbschreibungAGr=Costs!AN$353)*(AbschreibungAHKBvD))-SUM(AN$267:AN287)","v":0},{"$f":"SUMPRODUCT((Aktivierungsjahr<=Costs!$A375)*(AbschreibungAGr=Costs!AO$353)*(AbschreibungAHKBvD))-SUM(AO$267:AO287)","v":0},{"$f":"SUMPRODUCT((Aktivierungsjahr<=Costs!$A375)*(AbschreibungAGr=Costs!AP$353)*(AbschreibungAHKBvD))-SUM(AP$267:AP287)","v":0},{"$f":"SUMPRODUCT((Aktivierungsjahr<=Costs!$A375)*(AbschreibungAGr=Costs!AQ$353)*(AbschreibungAHKBvD))-SUM(AQ$267:AQ287)","v":0}]
[2037,72711111.111111104,{"$f":"SUMPRODUCT((Aktivierungsjahr<=Costs!$A376)*(AbschreibungAGr=Costs!C$353)*(AbschreibungAHKBvD))-SUM(C$267:C288)","v":0},{"$f":"SUMPRODUCT((Aktivierungsjahr<=Costs!$A376)*(AbschreibungAGr=Costs!D$353)*(AbschreibungAHKBvD))-SUM(D$267:D288)","v":0},{"$f":"SUMPRODUCT((Aktivierungsjahr<=Costs!$A376)*(AbschreibungAGr=Costs!E$353)*(AbschreibungAHKBvD))-SUM(E$267:E288)","v":0},{"$f":"SUMPRODUCT((Aktivierungsjahr<=Costs!$A376)*(AbschreibungAGr=Costs!F$353)*(AbschreibungAHKBvD))-SUM(F$267:F288)","v":0},{"$f":"SUMPRODUCT((Aktivierungsjahr<=Costs!$A376)*(AbschreibungAGr=Costs!G$353)*(AbschreibungAHKBvD))-SUM(G$267:G288)","v":0},{"$f":"SUMPRODUCT((Aktivierungsjahr<=Costs!$A376)*(AbschreibungAGr=Costs!H$353)*(AbschreibungAHKBvD))-SUM(H$267:H288)","v":0},{"$f":"SUMPRODUCT((Aktivierungsjahr<=Costs!$A376)*(AbschreibungAGr=Costs!I$353)*(AbschreibungAHKBvD))-SUM(I$267:I288)","v":0},{"$f":"SUMPRODUCT((Aktivierungsjahr<=Costs!$A376)*(AbschreibungAGr=Costs!J$353)*(AbschreibungAHKBvD))-SUM(J$267:J288)","v":0},{"$f":"SUMPRODUCT((Aktivierungsjahr<=Costs!$A376)*(AbschreibungAGr=Costs!K$353)*(AbschreibungAHKBvD))-SUM(K$267:K288)","v":0},{"$f":"SUMPRODUCT((Aktivierungsjahr<=Costs!$A376)*(AbschreibungAGr=Costs!L$353)*(AbschreibungAHKBvD))-SUM(L$267:L288)","v":0},{"$f":"SUMPRODUCT((Aktivierungsjahr<=Costs!$A376)*(AbschreibungAGr=Costs!M$353)*(AbschreibungAHKBvD))-SUM(M$267:M288)","v":0},{"$f":"SUMPRODUCT((Aktivierungsjahr<=Costs!$A376)*(AbschreibungAGr=Costs!N$353)*(AbschreibungAHKBvD))-SUM(N$267:N288)","v":0},{"$f":"SUMPRODUCT((Aktivierungsjahr<=Costs!$A376)*(AbschreibungAGr=Costs!O$353)*(AbschreibungAHKBvD))-SUM(O$267:O288)","v":0},{"$f":"SUMPRODUCT((Aktivierungsjahr<=Costs!$A376)*(AbschreibungAGr=Costs!P$353)*(AbschreibungAHKBvD))-SUM(P$267:P288)","v":72000000},{"$f":"SUMPRODUCT((Aktivierungsjahr<=Costs!$A376)*(AbschreibungAGr=Costs!Q$353)*(AbschreibungAHKBvD))-SUM(Q$267:Q288)","v":0},{"$f":"SUMPRODUCT((Aktivierungsjahr<=Costs!$A376)*(AbschreibungAGr=Costs!R$353)*(AbschreibungAHKBvD))-SUM(R$267:R288)","v":0},{"$f":"SUMPRODUCT((Aktivierungsjahr<=Costs!$A376)*(AbschreibungAGr=Costs!S$353)*(AbschreibungAHKBvD))-SUM(S$267:S288)","v":0},{"$f":"SUMPRODUCT((Aktivierungsjahr<=Costs!$A376)*(AbschreibungAGr=Costs!T$353)*(AbschreibungAHKBvD))-SUM(T$267:T288)","v":0},{"$f":"SUMPRODUCT((Aktivierungsjahr<=Costs!$A376)*(AbschreibungAGr=Costs!U$353)*(AbschreibungAHKBvD))-SUM(U$267:U288)","v":0},{"$f":"SUMPRODUCT((Aktivierungsjahr<=Costs!$A376)*(AbschreibungAGr=Costs!V$353)*(AbschreibungAHKBvD))-SUM(V$267:V288)","v":0},{"$f":"SUMPRODUCT((Aktivierungsjahr<=Costs!$A376)*(AbschreibungAGr=Costs!W$353)*(AbschreibungAHKBvD))-SUM(W$267:W288)","v":0},{"$f":"SUMPRODUCT((Aktivierungsjahr<=Costs!$A376)*(AbschreibungAGr=Costs!X$353)*(AbschreibungAHKBvD))-SUM(X$267:X288)","v":0},{"$f":"SUMPRODUCT((Aktivierungsjahr<=Costs!$A376)*(AbschreibungAGr=Costs!Y$353)*(AbschreibungAHKBvD))-SUM(Y$267:Y288)","v":0},{"$f":"SUMPRODUCT((Aktivierungsjahr<=Costs!$A376)*(AbschreibungAGr=Costs!Z$353)*(AbschreibungAHKBvD))-SUM(Z$267:Z288)","v":0},{"$f":"SUMPRODUCT((Aktivierungsjahr<=Costs!$A376)*(AbschreibungAGr=Costs!AA$353)*(AbschreibungAHKBvD))-SUM(AA$267:AA288)","v":0},{"$f":"SUMPRODUCT((Aktivierungsjahr<=Costs!$A376)*(AbschreibungAGr=Costs!AB$353)*(AbschreibungAHKBvD))-SUM(AB$267:AB288)","v":0},{"$f":"SUMPRODUCT((Aktivierungsjahr<=Costs!$A376)*(AbschreibungAGr=Costs!AC$353)*(AbschreibungAHKBvD))-SUM(AC$267:AC288)","v":0},{"$f":"SUMPRODUCT((Aktivierungsjahr<=Costs!$A376)*(AbschreibungAGr=Costs!AD$353)*(AbschreibungAHKBvD))-SUM(AD$267:AD288)","v":0},{"$f":"SUMPRODUCT((Aktivierungsjahr<=Costs!$A376)*(AbschreibungAGr=Costs!AE$353)*(AbschreibungAHKBvD))-SUM(AE$267:AE288)","v":0},{"$f":"SUMPRODUCT((Aktivierungsjahr<=Costs!$A376)*(AbschreibungAGr=Costs!AF$353)*(AbschreibungAHKBvD))-SUM(AF$267:AF288)","v":0},{"$f":"SUMPRODUCT((Aktivierungsjahr<=Costs!$A376)*(AbschreibungAGr=Costs!AG$353)*(AbschreibungAHKBvD))-SUM(AG$267:AG288)","v":0},{"$f":"SUMPRODUCT((Aktivierungsjahr<=Costs!$A376)*(AbschreibungAGr=Costs!AH$353)*(AbschreibungAHKBvD))-SUM(AH$267:AH288)","v":0},{"$f":"SUMPRODUCT((Aktivierungsjahr<=Costs!$A376)*(AbschreibungAGr=Costs!AI$353)*(AbschreibungAHKBvD))-SUM(AI$267:AI288)","v":0},{"$f":"SUMPRODUCT((Aktivierungsjahr<=Costs!$A376)*(AbschreibungAGr=Costs!AJ$353)*(AbschreibungAHKBvD))-SUM(AJ$267:AJ288)","v":711111.11111111101},{"$f":"SUMPRODUCT((Aktivierungsjahr<=Costs!$A376)*(AbschreibungAGr=Costs!AK$353)*(AbschreibungAHKBvD))-SUM(AK$267:AK288)","v":0},{"$f":"SUMPRODUCT((Aktivierungsjahr<=Costs!$A376)*(AbschreibungAGr=Costs!AL$353)*(AbschreibungAHKBvD))-SUM(AL$267:AL288)","v":0},{"$f":"SUMPRODUCT((Aktivierungsjahr<=Costs!$A376)*(AbschreibungAGr=Costs!AM$353)*(AbschreibungAHKBvD))-SUM(AM$267:AM288)","v":0},{"$f":"SUMPRODUCT((Aktivierungsjahr<=Costs!$A376)*(AbschreibungAGr=Costs!AN$353)*(AbschreibungAHKBvD))-SUM(AN$267:AN288)","v":0},{"$f":"SUMPRODUCT((Aktivierungsjahr<=Costs!$A376)*(AbschreibungAGr=Costs!AO$353)*(AbschreibungAHKBvD))-SUM(AO$267:AO288)","v":0},{"$f":"SUMPRODUCT((Aktivierungsjahr<=Costs!$A376)*(AbschreibungAGr=Costs!AP$353)*(AbschreibungAHKBvD))-SUM(AP$267:AP288)","v":0},{"$f":"SUMPRODUCT((Aktivierungsjahr<=Costs!$A376)*(AbschreibungAGr=Costs!AQ$353)*(AbschreibungAHKBvD))-SUM(AQ$267:AQ288)","v":0}]
[2038,66688888.888888888,{"$f":"SUMPRODUCT((Aktivierungsjahr<=Costs!$A377)*(AbschreibungAGr=Costs!C$353)*(AbschreibungAHKBvD))-SUM(C$267:C289)","v":0},{"$f":"SUMPRODUCT((Aktivierungsjahr<=Costs!$A377)*(AbschreibungAGr=Costs!D$353)*(AbschreibungAHKBvD))-SUM(D$267:D289)","v":0},{"$f":"SUMPRODUCT((Aktivierungsjahr<=Costs!$A377)*(AbschreibungAGr=Costs!E$353)*(AbschreibungAHKBvD))-SUM(E$267:E289)","v":0},{"$f":"SUMPRODUCT((Aktivierungsjahr<=Costs!$A377)*(AbschreibungAGr=Costs!F$353)*(AbschreibungAHKBvD))-SUM(F$267:F289)","v":0},{"$f":"SUMPRODUCT((Aktivierungsjahr<=Costs!$A377)*(AbschreibungAGr=Costs!G$353)*(AbschreibungAHKBvD))-SUM(G$267:G289)","v":0},{"$f":"SUMPRODUCT((Aktivierungsjahr<=Costs!$A377)*(AbschreibungAGr=Costs!H$353)*(AbschreibungAHKBvD))-SUM(H$267:H289)","v":0},{"$f":"SUMPRODUCT((Aktivierungsjahr<=Costs!$A377)*(AbschreibungAGr=Costs!I$353)*(AbschreibungAHKBvD))-SUM(I$267:I289)","v":0},{"$f":"SUMPRODUCT((Aktivierungsjahr<=Costs!$A377)*(AbschreibungAGr=Costs!J$353)*(AbschreibungAHKBvD))-SUM(J$267:J289)","v":0},{"$f":"SUMPRODUCT((Aktivierungsjahr<=Costs!$A377)*(AbschreibungAGr=Costs!K$353)*(AbschreibungAHKBvD))-SUM(K$267:K289)","v":0},{"$f":"SUMPRODUCT((Aktivierungsjahr<=Costs!$A377)*(AbschreibungAGr=Costs!L$353)*(AbschreibungAHKBvD))-SUM(L$267:L289)","v":0},{"$f":"SUMPRODUCT((Aktivierungsjahr<=Costs!$A377)*(AbschreibungAGr=Costs!M$353)*(AbschreibungAHKBvD))-SUM(M$267:M289)","v":0},{"$f":"SUMPRODUCT((Aktivierungsjahr<=Costs!$A377)*(AbschreibungAGr=Costs!N$353)*(AbschreibungAHKBvD))-SUM(N$267:N289)","v":0},{"$f":"SUMPRODUCT((Aktivierungsjahr<=Costs!$A377)*(AbschreibungAGr=Costs!O$353)*(AbschreibungAHKBvD))-SUM(O$267:O289)","v":0},{"$f":"SUMPRODUCT((Aktivierungsjahr<=Costs!$A377)*(AbschreibungAGr=Costs!P$353)*(AbschreibungAHKBvD))-SUM(P$267:P289)","v":66000000},{"$f":"SUMPRODUCT((Aktivierungsjahr<=Costs!$A377)*(AbschreibungAGr=Costs!Q$353)*(AbschreibungAHKBvD))-SUM(Q$267:Q289)","v":0},{"$f":"SUMPRODUCT((Aktivierungsjahr<=Costs!$A377)*(AbschreibungAGr=Costs!R$353)*(AbschreibungAHKBvD))-SUM(R$267:R289)","v":0},{"$f":"SUMPRODUCT((Aktivierungsjahr<=Costs!$A377)*(AbschreibungAGr=Costs!S$353)*(AbschreibungAHKBvD))-SUM(S$267:S289)","v":0},{"$f":"SUMPRODUCT((Aktivierungsjahr<=Costs!$A377)*(AbschreibungAGr=Costs!T$353)*(AbschreibungAHKBvD))-SUM(T$267:T289)","v":0},{"$f":"SUMPRODUCT((Aktivierungsjahr<=Costs!$A377)*(AbschreibungAGr=Costs!U$353)*(AbschreibungAHKBvD))-SUM(U$267:U289)","v":0},{"$f":"SUMPRODUCT((Aktivierungsjahr<=Costs!$A377)*(AbschreibungAGr=Costs!V$353)*(AbschreibungAHKBvD))-SUM(V$267:V289)","v":0},{"$f":"SUMPRODUCT((Aktivierungsjahr<=Costs!$A377)*(AbschreibungAGr=Costs!W$353)*(AbschreibungAHKBvD))-SUM(W$267:W289)","v":0},{"$f":"SUMPRODUCT((Aktivierungsjahr<=Costs!$A377)*(AbschreibungAGr=Costs!X$353)*(AbschreibungAHKBvD))-SUM(X$267:X289)","v":0},{"$f":"SUMPRODUCT((Aktivierungsjahr<=Costs!$A377)*(AbschreibungAGr=Costs!Y$353)*(AbschreibungAHKBvD))-SUM(Y$267:Y289)","v":0},{"$f":"SUMPRODUCT((Aktivierungsjahr<=Costs!$A377)*(AbschreibungAGr=Costs!Z$353)*(AbschreibungAHKBvD))-SUM(Z$267:Z289)","v":0},{"$f":"SUMPRODUCT((Aktivierungsjahr<=Costs!$A377)*(AbschreibungAGr=Costs!AA$353)*(AbschreibungAHKBvD))-SUM(AA$267:AA289)","v":0},{"$f":"SUMPRODUCT((Aktivierungsjahr<=Costs!$A377)*(AbschreibungAGr=Costs!AB$353)*(AbschreibungAHKBvD))-SUM(AB$267:AB289)","v":0},{"$f":"SUMPRODUCT((Aktivierungsjahr<=Costs!$A377)*(AbschreibungAGr=Costs!AC$353)*(AbschreibungAHKBvD))-SUM(AC$267:AC289)","v":0},{"$f":"SUMPRODUCT((Aktivierungsjahr<=Costs!$A377)*(AbschreibungAGr=Costs!AD$353)*(AbschreibungAHKBvD))-SUM(AD$267:AD289)","v":0},{"$f":"SUMPRODUCT((Aktivierungsjahr<=Costs!$A377)*(AbschreibungAGr=Costs!AE$353)*(AbschreibungAHKBvD))-SUM(AE$267:AE289)","v":0},{"$f":"SUMPRODUCT((Aktivierungsjahr<=Costs!$A377)*(AbschreibungAGr=Costs!AF$353)*(AbschreibungAHKBvD))-SUM(AF$267:AF289)","v":0},{"$f":"SUMPRODUCT((Aktivierungsjahr<=Costs!$A377)*(AbschreibungAGr=Costs!AG$353)*(AbschreibungAHKBvD))-SUM(AG$267:AG289)","v":0},{"$f":"SUMPRODUCT((Aktivierungsjahr<=Costs!$A377)*(AbschreibungAGr=Costs!AH$353)*(AbschreibungAHKBvD))-SUM(AH$267:AH289)","v":0},{"$f":"SUMPRODUCT((Aktivierungsjahr<=Costs!$A377)*(AbschreibungAGr=Costs!AI$353)*(AbschreibungAHKBvD))-SUM(AI$267:AI289)","v":0},{"$f":"SUMPRODUCT((Aktivierungsjahr<=Costs!$A377)*(AbschreibungAGr=Costs!AJ$353)*(AbschreibungAHKBvD))-SUM(AJ$267:AJ289)","v":688888.88888888876},{"$f":"SUMPRODUCT((Aktivierungsjahr<=Costs!$A377)*(AbschreibungAGr=Costs!AK$353)*(AbschreibungAHKBvD))-SUM(AK$267:AK289)","v":0},{"$f":"SUMPRODUCT((Aktivierungsjahr<=Costs!$A377)*(AbschreibungAGr=Costs!AL$353)*(AbschreibungAHKBvD))-SUM(AL$267:AL289)","v":0},{"$f":"SUMPRODUCT((Aktivierungsjahr<=Costs!$A377)*(AbschreibungAGr=Costs!AM$353)*(AbschreibungAHKBvD))-SUM(AM$267:AM289)","v":0},{"$f":"SUMPRODUCT((Aktivierungsjahr<=Costs!$A377)*(AbschreibungAGr=Costs!AN$353)*(AbschreibungAHKBvD))-SUM(AN$267:AN289)","v":0},{"$f":"SUMPRODUCT((Aktivierungsjahr<=Costs!$A377)*(AbschreibungAGr=Costs!AO$353)*(AbschreibungAHKBvD))-SUM(AO$267:AO289)","v":0},{"$f":"SUMPRODUCT((Aktivierungsjahr<=Costs!$A377)*(AbschreibungAGr=Costs!AP$353)*(AbschreibungAHKBvD))-SUM(AP$267:AP289)","v":0},{"$f":"SUMPRODUCT((Aktivierungsjahr<=Costs!$A377)*(AbschreibungAGr=Costs!AQ$353)*(AbschreibungAHKBvD))-SUM(AQ$267:AQ289)","v":0}]
[2039,60666666.666666664,{"$f":"SUMPRODUCT((Aktivierungsjahr<=Costs!$A378)*(AbschreibungAGr=Costs!C$353)*(AbschreibungAHKBvD))-SUM(C$267:C290)","v":0},{"$f":"SUMPRODUCT((Aktivierungsjahr<=Costs!$A378)*(AbschreibungAGr=Costs!D$353)*(AbschreibungAHKBvD))-SUM(D$267:D290)","v":0},{"$f":"SUMPRODUCT((Aktivierungsjahr<=Costs!$A378)*(AbschreibungAGr=Costs!E$353)*(AbschreibungAHKBvD))-SUM(E$267:E290)","v":0},{"$f":"SUMPRODUCT((Aktivierungsjahr<=Costs!$A378)*(AbschreibungAGr=Costs!F$353)*(AbschreibungAHKBvD))-SUM(F$267:F290)","v":0},{"$f":"SUMPRODUCT((Aktivierungsjahr<=Costs!$A378)*(AbschreibungAGr=Costs!G$353)*(AbschreibungAHKBvD))-SUM(G$267:G290)","v":0},{"$f":"SUMPRODUCT((Aktivierungsjahr<=Costs!$A378)*(AbschreibungAGr=Costs!H$353)*(AbschreibungAHKBvD))-SUM(H$267:H290)","v":0},{"$f":"SUMPRODUCT((Aktivierungsjahr<=Costs!$A378)*(AbschreibungAGr=Costs!I$353)*(AbschreibungAHKBvD))-SUM(I$267:I290)","v":0},{"$f":"SUMPRODUCT((Aktivierungsjahr<=Costs!$A378)*(AbschreibungAGr=Costs!J$353)*(AbschreibungAHKBvD))-SUM(J$267:J290)","v":0},{"$f":"SUMPRODUCT((Aktivierungsjahr<=Costs!$A378)*(AbschreibungAGr=Costs!K$353)*(AbschreibungAHKBvD))-SUM(K$267:K290)","v":0},{"$f":"SUMPRODUCT((Aktivierungsjahr<=Costs!$A378)*(AbschreibungAGr=Costs!L$353)*(AbschreibungAHKBvD))-SUM(L$267:L290)","v":0},{"$f":"SUMPRODUCT((Aktivierungsjahr<=Costs!$A378)*(AbschreibungAGr=Costs!M$353)*(AbschreibungAHKBvD))-SUM(M$267:M290)","v":0},{"$f":"SUMPRODUCT((Aktivierungsjahr<=Costs!$A378)*(AbschreibungAGr=Costs!N$353)*(AbschreibungAHKBvD))-SUM(N$267:N290)","v":0},{"$f":"SUMPRODUCT((Aktivierungsjahr<=Costs!$A378)*(AbschreibungAGr=Costs!O$353)*(AbschreibungAHKBvD))-SUM(O$267:O290)","v":0},{"$f":"SUMPRODUCT((Aktivierungsjahr<=Costs!$A378)*(AbschreibungAGr=Costs!P$353)*(AbschreibungAHKBvD))-SUM(P$267:P290)","v":60000000},{"$f":"SUMPRODUCT((Aktivierungsjahr<=Costs!$A378)*(AbschreibungAGr=Costs!Q$353)*(AbschreibungAHKBvD))-SUM(Q$267:Q290)","v":0},{"$f":"SUMPRODUCT((Aktivierungsjahr<=Costs!$A378)*(AbschreibungAGr=Costs!R$353)*(AbschreibungAHKBvD))-SUM(R$267:R290)","v":0},{"$f":"SUMPRODUCT((Aktivierungsjahr<=Costs!$A378)*(AbschreibungAGr=Costs!S$353)*(AbschreibungAHKBvD))-SUM(S$267:S290)","v":0},{"$f":"SUMPRODUCT((Aktivierungsjahr<=Costs!$A378)*(AbschreibungAGr=Costs!T$353)*(AbschreibungAHKBvD))-SUM(T$267:T290)","v":0},{"$f":"SUMPRODUCT((Aktivierungsjahr<=Costs!$A378)*(AbschreibungAGr=Costs!U$353)*(AbschreibungAHKBvD))-SUM(U$267:U290)","v":0},{"$f":"SUMPRODUCT((Aktivierungsjahr<=Costs!$A378)*(AbschreibungAGr=Costs!V$353)*(AbschreibungAHKBvD))-SUM(V$267:V290)","v":0},{"$f":"SUMPRODUCT((Aktivierungsjahr<=Costs!$A378)*(AbschreibungAGr=Costs!W$353)*(AbschreibungAHKBvD))-SUM(W$267:W290)","v":0},{"$f":"SUMPRODUCT((Aktivierungsjahr<=Costs!$A378)*(AbschreibungAGr=Costs!X$353)*(AbschreibungAHKBvD))-SUM(X$267:X290)","v":0},{"$f":"SUMPRODUCT((Aktivierungsjahr<=Costs!$A378)*(AbschreibungAGr=Costs!Y$353)*(AbschreibungAHKBvD))-SUM(Y$267:Y290)","v":0},{"$f":"SUMPRODUCT((Aktivierungsjahr<=Costs!$A378)*(AbschreibungAGr=Costs!Z$353)*(AbschreibungAHKBvD))-SUM(Z$267:Z290)","v":0},{"$f":"SUMPRODUCT((Aktivierungsjahr<=Costs!$A378)*(AbschreibungAGr=Costs!AA$353)*(AbschreibungAHKBvD))-SUM(AA$267:AA290)","v":0},{"$f":"SUMPRODUCT((Aktivierungsjahr<=Costs!$A378)*(AbschreibungAGr=Costs!AB$353)*(AbschreibungAHKBvD))-SUM(AB$267:AB290)","v":0},{"$f":"SUMPRODUCT((Aktivierungsjahr<=Costs!$A378)*(AbschreibungAGr=Costs!AC$353)*(AbschreibungAHKBvD))-SUM(AC$267:AC290)","v":0},{"$f":"SUMPRODUCT((Aktivierungsjahr<=Costs!$A378)*(AbschreibungAGr=Costs!AD$353)*(AbschreibungAHKBvD))-SUM(AD$267:AD290)","v":0},{"$f":"SUMPRODUCT((Aktivierungsjahr<=Costs!$A378)*(AbschreibungAGr=Costs!AE$353)*(AbschreibungAHKBvD))-SUM(AE$267:AE290)","v":0},{"$f":"SUMPRODUCT((Aktivierungsjahr<=Costs!$A378)*(AbschreibungAGr=Costs!AF$353)*(AbschreibungAHKBvD))-SUM(AF$267:AF290)","v":0},{"$f":"SUMPRODUCT((Aktivierungsjahr<=Costs!$A378)*(AbschreibungAGr=Costs!AG$353)*(AbschreibungAHKBvD))-SUM(AG$267:AG290)","v":0},{"$f":"SUMPRODUCT((Aktivierungsjahr<=Costs!$A378)*(AbschreibungAGr=Costs!AH$353)*(AbschreibungAHKBvD))-SUM(AH$267:AH290)","v":0},{"$f":"SUMPRODUCT((Aktivierungsjahr<=Costs!$A378)*(AbschreibungAGr=Costs!AI$353)*(AbschreibungAHKBvD))-SUM(AI$267:AI290)","v":0},{"$f":"SUMPRODUCT((Aktivierungsjahr<=Costs!$A378)*(AbschreibungAGr=Costs!AJ$353)*(AbschreibungAHKBvD))-SUM(AJ$267:AJ290)","v":666666.66666666651},{"$f":"SUMPRODUCT((Aktivierungsjahr<=Costs!$A378)*(AbschreibungAGr=Costs!AK$353)*(AbschreibungAHKBvD))-SUM(AK$267:AK290)","v":0},{"$f":"SUMPRODUCT((Aktivierungsjahr<=Costs!$A378)*(AbschreibungAGr=Costs!AL$353)*(AbschreibungAHKBvD))-SUM(AL$267:AL290)","v":0},{"$f":"SUMPRODUCT((Aktivierungsjahr<=Costs!$A378)*(AbschreibungAGr=Costs!AM$353)*(AbschreibungAHKBvD))-SUM(AM$267:AM290)","v":0},{"$f":"SUMPRODUCT((Aktivierungsjahr<=Costs!$A378)*(AbschreibungAGr=Costs!AN$353)*(AbschreibungAHKBvD))-SUM(AN$267:AN290)","v":0},{"$f":"SUMPRODUCT((Aktivierungsjahr<=Costs!$A378)*(AbschreibungAGr=Costs!AO$353)*(AbschreibungAHKBvD))-SUM(AO$267:AO290)","v":0},{"$f":"SUMPRODUCT((Aktivierungsjahr<=Costs!$A378)*(AbschreibungAGr=Costs!AP$353)*(AbschreibungAHKBvD))-SUM(AP$267:AP290)","v":0},{"$f":"SUMPRODUCT((Aktivierungsjahr<=Costs!$A378)*(AbschreibungAGr=Costs!AQ$353)*(AbschreibungAHKBvD))-SUM(AQ$267:AQ290)","v":0}]
[2040,54644444.444444448,{"$f":"SUMPRODUCT((Aktivierungsjahr<=Costs!$A379)*(AbschreibungAGr=Costs!C$353)*(AbschreibungAHKBvD))-SUM(C$267:C291)","v":0},{"$f":"SUMPRODUCT((Aktivierungsjahr<=Costs!$A379)*(AbschreibungAGr=Costs!D$353)*(AbschreibungAHKBvD))-SUM(D$267:D291)","v":0},{"$f":"SUMPRODUCT((Aktivierungsjahr<=Costs!$A379)*(AbschreibungAGr=Costs!E$353)*(AbschreibungAHKBvD))-SUM(E$267:E291)","v":0},{"$f":"SUMPRODUCT((Aktivierungsjahr<=Costs!$A379)*(AbschreibungAGr=Costs!F$353)*(AbschreibungAHKBvD))-SUM(F$267:F291)","v":0},{"$f":"SUMPRODUCT((Aktivierungsjahr<=Costs!$A379)*(AbschreibungAGr=Costs!G$353)*(AbschreibungAHKBvD))-SUM(G$267:G291)","v":0},{"$f":"SUMPRODUCT((Aktivierungsjahr<=Costs!$A379)*(AbschreibungAGr=Costs!H$353)*(AbschreibungAHKBvD))-SUM(H$267:H291)","v":0},{"$f":"SUMPRODUCT((Aktivierungsjahr<=Costs!$A379)*(AbschreibungAGr=Costs!I$353)*(AbschreibungAHKBvD))-SUM(I$267:I291)","v":0},{"$f":"SUMPRODUCT((Aktivierungsjahr<=Costs!$A379)*(AbschreibungAGr=Costs!J$353)*(AbschreibungAHKBvD))-SUM(J$267:J291)","v":0},{"$f":"SUMPRODUCT((Aktivierungsjahr<=Costs!$A379)*(AbschreibungAGr=Costs!K$353)*(AbschreibungAHKBvD))-SUM(K$267:K291)","v":0},{"$f":"SUMPRODUCT((Aktivierungsjahr<=Costs!$A379)*(AbschreibungAGr=Costs!L$353)*(AbschreibungAHKBvD))-SUM(L$267:L291)","v":0},{"$f":"SUMPRODUCT((Aktivierungsjahr<=Costs!$A379)*(AbschreibungAGr=Costs!M$353)*(AbschreibungAHKBvD))-SUM(M$267:M291)","v":0},{"$f":"SUMPRODUCT((Aktivierungsjahr<=Costs!$A379)*(AbschreibungAGr=Costs!N$353)*(AbschreibungAHKBvD))-SUM(N$267:N291)","v":0},{"$f":"SUMPRODUCT((Aktivierungsjahr<=Costs!$A379)*(AbschreibungAGr=Costs!O$353)*(AbschreibungAHKBvD))-SUM(O$267:O291)","v":0},{"$f":"SUMPRODUCT((Aktivierungsjahr<=Costs!$A379)*(AbschreibungAGr=Costs!P$353)*(AbschreibungAHKBvD))-SUM(P$267:P291)","v":54000000},{"$f":"SUMPRODUCT((Aktivierungsjahr<=Costs!$A379)*(AbschreibungAGr=Costs!Q$353)*(AbschreibungAHKBvD))-SUM(Q$267:Q291)","v":0},{"$f":"SUMPRODUCT((Aktivierungsjahr<=Costs!$A379)*(AbschreibungAGr=Costs!R$353)*(AbschreibungAHKBvD))-SUM(R$267:R291)","v":0},{"$f":"SUMPRODUCT((Aktivierungsjahr<=Costs!$A379)*(AbschreibungAGr=Costs!S$353)*(AbschreibungAHKBvD))-SUM(S$267:S291)","v":0},{"$f":"SUMPRODUCT((Aktivierungsjahr<=Costs!$A379)*(AbschreibungAGr=Costs!T$353)*(AbschreibungAHKBvD))-SUM(T$267:T291)","v":0},{"$f":"SUMPRODUCT((Aktivierungsjahr<=Costs!$A379)*(AbschreibungAGr=Costs!U$353)*(AbschreibungAHKBvD))-SUM(U$267:U291)","v":0},{"$f":"SUMPRODUCT((Aktivierungsjahr<=Costs!$A379)*(AbschreibungAGr=Costs!V$353)*(AbschreibungAHKBvD))-SUM(V$267:V291)","v":0},{"$f":"SUMPRODUCT((Aktivierungsjahr<=Costs!$A379)*(AbschreibungAGr=Costs!W$353)*(AbschreibungAHKBvD))-SUM(W$267:W291)","v":0},{"$f":"SUMPRODUCT((Aktivierungsjahr<=Costs!$A379)*(AbschreibungAGr=Costs!X$353)*(AbschreibungAHKBvD))-SUM(X$267:X291)","v":0},{"$f":"SUMPRODUCT((Aktivierungsjahr<=Costs!$A379)*(AbschreibungAGr=Costs!Y$353)*(AbschreibungAHKBvD))-SUM(Y$267:Y291)","v":0},{"$f":"SUMPRODUCT((Aktivierungsjahr<=Costs!$A379)*(AbschreibungAGr=Costs!Z$353)*(AbschreibungAHKBvD))-SUM(Z$267:Z291)","v":0},{"$f":"SUMPRODUCT((Aktivierungsjahr<=Costs!$A379)*(AbschreibungAGr=Costs!AA$353)*(AbschreibungAHKBvD))-SUM(AA$267:AA291)","v":0},{"$f":"SUMPRODUCT((Aktivierungsjahr<=Costs!$A379)*(AbschreibungAGr=Costs!AB$353)*(AbschreibungAHKBvD))-SUM(AB$267:AB291)","v":0},{"$f":"SUMPRODUCT((Aktivierungsjahr<=Costs!$A379)*(AbschreibungAGr=Costs!AC$353)*(AbschreibungAHKBvD))-SUM(AC$267:AC291)","v":0},{"$f":"SUMPRODUCT((Aktivierungsjahr<=Costs!$A379)*(AbschreibungAGr=Costs!AD$353)*(AbschreibungAHKBvD))-SUM(AD$267:AD291)","v":0},{"$f":"SUMPRODUCT((Aktivierungsjahr<=Costs!$A379)*(AbschreibungAGr=Costs!AE$353)*(AbschreibungAHKBvD))-SUM(AE$267:AE291)","v":0},{"$f":"SUMPRODUCT((Aktivierungsjahr<=Costs!$A379)*(AbschreibungAGr=Costs!AF$353)*(AbschreibungAHKBvD))-SUM(AF$267:AF291)","v":0},{"$f":"SUMPRODUCT((Aktivierungsjahr<=Costs!$A379)*(AbschreibungAGr=Costs!AG$353)*(AbschreibungAHKBvD))-SUM(AG$267:AG291)","v":0},{"$f":"SUMPRODUCT((Aktivierungsjahr<=Costs!$A379)*(AbschreibungAGr=Costs!AH$353)*(AbschreibungAHKBvD))-SUM(AH$267:AH291)","v":0},{"$f":"SUMPRODUCT((Aktivierungsjahr<=Costs!$A379)*(AbschreibungAGr=Costs!AI$353)*(AbschreibungAHKBvD))-SUM(AI$267:AI291)","v":0},{"$f":"SUMPRODUCT((Aktivierungsjahr<=Costs!$A379)*(AbschreibungAGr=Costs!AJ$353)*(AbschreibungAHKBvD))-SUM(AJ$267:AJ291)","v":644444.44444444426},{"$f":"SUMPRODUCT((Aktivierungsjahr<=Costs!$A379)*(AbschreibungAGr=Costs!AK$353)*(AbschreibungAHKBvD))-SUM(AK$267:AK291)","v":0},{"$f":"SUMPRODUCT((Aktivierungsjahr<=Costs!$A379)*(AbschreibungAGr=Costs!AL$353)*(AbschreibungAHKBvD))-SUM(AL$267:AL291)","v":0},{"$f":"SUMPRODUCT((Aktivierungsjahr<=Costs!$A379)*(AbschreibungAGr=Costs!AM$353)*(AbschreibungAHKBvD))-SUM(AM$267:AM291)","v":0},{"$f":"SUMPRODUCT((Aktivierungsjahr<=Costs!$A379)*(AbschreibungAGr=Costs!AN$353)*(AbschreibungAHKBvD))-SUM(AN$267:AN291)","v":0},{"$f":"SUMPRODUCT((Aktivierungsjahr<=Costs!$A379)*(AbschreibungAGr=Costs!AO$353)*(AbschreibungAHKBvD))-SUM(AO$267:AO291)","v":0},{"$f":"SUMPRODUCT((Aktivierungsjahr<=Costs!$A379)*(AbschreibungAGr=Costs!AP$353)*(AbschreibungAHKBvD))-SUM(AP$267:AP291)","v":0},{"$f":"SUMPRODUCT((Aktivierungsjahr<=Costs!$A379)*(AbschreibungAGr=Costs!AQ$353)*(AbschreibungAHKBvD))-SUM(AQ$267:AQ291)","v":0}]
[2041,48622222.222222224,{"$f":"SUMPRODUCT((Aktivierungsjahr<=Costs!$A380)*(AbschreibungAGr=Costs!C$353)*(AbschreibungAHKBvD))-SUM(C$267:C292)","v":0},{"$f":"SUMPRODUCT((Aktivierungsjahr<=Costs!$A380)*(AbschreibungAGr=Costs!D$353)*(AbschreibungAHKBvD))-SUM(D$267:D292)","v":0},{"$f":"SUMPRODUCT((Aktivierungsjahr<=Costs!$A380)*(AbschreibungAGr=Costs!E$353)*(AbschreibungAHKBvD))-SUM(E$267:E292)","v":0},{"$f":"SUMPRODUCT((Aktivierungsjahr<=Costs!$A380)*(AbschreibungAGr=Costs!F$353)*(AbschreibungAHKBvD))-SUM(F$267:F292)","v":0},{"$f":"SUMPRODUCT((Aktivierungsjahr<=Costs!$A380)*(AbschreibungAGr=Costs!G$353)*(AbschreibungAHKBvD))-SUM(G$267:G292)","v":0},{"$f":"SUMPRODUCT((Aktivierungsjahr<=Costs!$A380)*(AbschreibungAGr=Costs!H$353)*(AbschreibungAHKBvD))-SUM(H$267:H292)","v":0},{"$f":"SUMPRODUCT((Aktivierungsjahr<=Costs!$A380)*(AbschreibungAGr=Costs!I$353)*(AbschreibungAHKBvD))-SUM(I$267:I292)","v":0},{"$f":"SUMPRODUCT((Aktivierungsjahr<=Costs!$A380)*(AbschreibungAGr=Costs!J$353)*(AbschreibungAHKBvD))-SUM(J$267:J292)","v":0},{"$f":"SUMPRODUCT((Aktivierungsjahr<=Costs!$A380)*(AbschreibungAGr=Costs!K$353)*(AbschreibungAHKBvD))-SUM(K$267:K292)","v":0},{"$f":"SUMPRODUCT((Aktivierungsjahr<=Costs!$A380)*(AbschreibungAGr=Costs!L$353)*(AbschreibungAHKBvD))-SUM(L$267:L292)","v":0},{"$f":"SUMPRODUCT((Aktivierungsjahr<=Costs!$A380)*(AbschreibungAGr=Costs!M$353)*(AbschreibungAHKBvD))-SUM(M$267:M292)","v":0},{"$f":"SUMPRODUCT((Aktivierungsjahr<=Costs!$A380)*(AbschreibungAGr=Costs!N$353)*(AbschreibungAHKBvD))-SUM(N$267:N292)","v":0},{"$f":"SUMPRODUCT((Aktivierungsjahr<=Costs!$A380)*(AbschreibungAGr=Costs!O$353)*(AbschreibungAHKBvD))-SUM(O$267:O292)","v":0},{"$f":"SUMPRODUCT((Aktivierungsjahr<=Costs!$A380)*(AbschreibungAGr=Costs!P$353)*(AbschreibungAHKBvD))-SUM(P$267:P292)","v":48000000},{"$f":"SUMPRODUCT((Aktivierungsjahr<=Costs!$A380)*(AbschreibungAGr=Costs!Q$353)*(AbschreibungAHKBvD))-SUM(Q$267:Q292)","v":0},{"$f":"SUMPRODUCT((Aktivierungsjahr<=Costs!$A380)*(AbschreibungAGr=Costs!R$353)*(AbschreibungAHKBvD))-SUM(R$267:R292)","v":0},{"$f":"SUMPRODUCT((Aktivierungsjahr<=Costs!$A380)*(AbschreibungAGr=Costs!S$353)*(AbschreibungAHKBvD))-SUM(S$267:S292)","v":0},{"$f":"SUMPRODUCT((Aktivierungsjahr<=Costs!$A380)*(AbschreibungAGr=Costs!T$353)*(AbschreibungAHKBvD))-SUM(T$267:T292)","v":0},{"$f":"SUMPRODUCT((Aktivierungsjahr<=Costs!$A380)*(AbschreibungAGr=Costs!U$353)*(AbschreibungAHKBvD))-SUM(U$267:U292)","v":0},{"$f":"SUMPRODUCT((Aktivierungsjahr<=Costs!$A380)*(AbschreibungAGr=Costs!V$353)*(AbschreibungAHKBvD))-SUM(V$267:V292)","v":0},{"$f":"SUMPRODUCT((Aktivierungsjahr<=Costs!$A380)*(AbschreibungAGr=Costs!W$353)*(AbschreibungAHKBvD))-SUM(W$267:W292)","v":0},{"$f":"SUMPRODUCT((Aktivierungsjahr<=Costs!$A380)*(AbschreibungAGr=Costs!X$353)*(AbschreibungAHKBvD))-SUM(X$267:X292)","v":0},{"$f":"SUMPRODUCT((Aktivierungsjahr<=Costs!$A380)*(AbschreibungAGr=Costs!Y$353)*(AbschreibungAHKBvD))-SUM(Y$267:Y292)","v":0},{"$f":"SUMPRODUCT((Aktivierungsjahr<=Costs!$A380)*(AbschreibungAGr=Costs!Z$353)*(AbschreibungAHKBvD))-SUM(Z$267:Z292)","v":0},{"$f":"SUMPRODUCT((Aktivierungsjahr<=Costs!$A380)*(AbschreibungAGr=Costs!AA$353)*(AbschreibungAHKBvD))-SUM(AA$267:AA292)","v":0},{"$f":"SUMPRODUCT((Aktivierungsjahr<=Costs!$A380)*(AbschreibungAGr=Costs!AB$353)*(AbschreibungAHKBvD))-SUM(AB$267:AB292)","v":0},{"$f":"SUMPRODUCT((Aktivierungsjahr<=Costs!$A380)*(AbschreibungAGr=Costs!AC$353)*(AbschreibungAHKBvD))-SUM(AC$267:AC292)","v":0},{"$f":"SUMPRODUCT((Aktivierungsjahr<=Costs!$A380)*(AbschreibungAGr=Costs!AD$353)*(AbschreibungAHKBvD))-SUM(AD$267:AD292)","v":0},{"$f":"SUMPRODUCT((Aktivierungsjahr<=Costs!$A380)*(AbschreibungAGr=Costs!AE$353)*(AbschreibungAHKBvD))-SUM(AE$267:AE292)","v":0},{"$f":"SUMPRODUCT((Aktivierungsjahr<=Costs!$A380)*(AbschreibungAGr=Costs!AF$353)*(AbschreibungAHKBvD))-SUM(AF$267:AF292)","v":0},{"$f":"SUMPRODUCT((Aktivierungsjahr<=Costs!$A380)*(AbschreibungAGr=Costs!AG$353)*(AbschreibungAHKBvD))-SUM(AG$267:AG292)","v":0},{"$f":"SUMPRODUCT((Aktivierungsjahr<=Costs!$A380)*(AbschreibungAGr=Costs!AH$353)*(AbschreibungAHKBvD))-SUM(AH$267:AH292)","v":0},{"$f":"SUMPRODUCT((Aktivierungsjahr<=Costs!$A380)*(AbschreibungAGr=Costs!AI$353)*(AbschreibungAHKBvD))-SUM(AI$267:AI292)","v":0},{"$f":"SUMPRODUCT((Aktivierungsjahr<=Costs!$A380)*(AbschreibungAGr=Costs!AJ$353)*(AbschreibungAHKBvD))-SUM(AJ$267:AJ292)","v":622222.22222222202},{"$f":"SUMPRODUCT((Aktivierungsjahr<=Costs!$A380)*(AbschreibungAGr=Costs!AK$353)*(AbschreibungAHKBvD))-SUM(AK$267:AK292)","v":0},{"$f":"SUMPRODUCT((Aktivierungsjahr<=Costs!$A380)*(AbschreibungAGr=Costs!AL$353)*(AbschreibungAHKBvD))-SUM(AL$267:AL292)","v":0},{"$f":"SUMPRODUCT((Aktivierungsjahr<=Costs!$A380)*(AbschreibungAGr=Costs!AM$353)*(AbschreibungAHKBvD))-SUM(AM$267:AM292)","v":0},{"$f":"SUMPRODUCT((Aktivierungsjahr<=Costs!$A380)*(AbschreibungAGr=Costs!AN$353)*(AbschreibungAHKBvD))-SUM(AN$267:AN292)","v":0},{"$f":"SUMPRODUCT((Aktivierungsjahr<=Costs!$A380)*(AbschreibungAGr=Costs!AO$353)*(AbschreibungAHKBvD))-SUM(AO$267:AO292)","v":0},{"$f":"SUMPRODUCT((Aktivierungsjahr<=Costs!$A380)*(AbschreibungAGr=Costs!AP$353)*(AbschreibungAHKBvD))-SUM(AP$267:AP292)","v":0},{"$f":"SUMPRODUCT((Aktivierungsjahr<=Costs!$A380)*(AbschreibungAGr=Costs!AQ$353)*(AbschreibungAHKBvD))-SUM(AQ$267:AQ292)","v":0}]
[2042,42600000,{"$f":"SUMPRODUCT((Aktivierungsjahr<=Costs!$A381)*(AbschreibungAGr=Costs!C$353)*(AbschreibungAHKBvD))-SUM(C$267:C293)","v":0},{"$f":"SUMPRODUCT((Aktivierungsjahr<=Costs!$A381)*(AbschreibungAGr=Costs!D$353)*(AbschreibungAHKBvD))-SUM(D$267:D293)","v":0},{"$f":"SUMPRODUCT((Aktivierungsjahr<=Costs!$A381)*(AbschreibungAGr=Costs!E$353)*(AbschreibungAHKBvD))-SUM(E$267:E293)","v":0},{"$f":"SUMPRODUCT((Aktivierungsjahr<=Costs!$A381)*(AbschreibungAGr=Costs!F$353)*(AbschreibungAHKBvD))-SUM(F$267:F293)","v":0},{"$f":"SUMPRODUCT((Aktivierungsjahr<=Costs!$A381)*(AbschreibungAGr=Costs!G$353)*(AbschreibungAHKBvD))-SUM(G$267:G293)","v":0},{"$f":"SUMPRODUCT((Aktivierungsjahr<=Costs!$A381)*(AbschreibungAGr=Costs!H$353)*(AbschreibungAHKBvD))-SUM(H$267:H293)","v":0},{"$f":"SUMPRODUCT((Aktivierungsjahr<=Costs!$A381)*(AbschreibungAGr=Costs!I$353)*(AbschreibungAHKBvD))-SUM(I$267:I293)","v":0},{"$f":"SUMPRODUCT((Aktivierungsjahr<=Costs!$A381)*(AbschreibungAGr=Costs!J$353)*(AbschreibungAHKBvD))-SUM(J$267:J293)","v":0},{"$f":"SUMPRODUCT((Aktivierungsjahr<=Costs!$A381)*(AbschreibungAGr=Costs!K$353)*(AbschreibungAHKBvD))-SUM(K$267:K293)","v":0},{"$f":"SUMPRODUCT((Aktivierungsjahr<=Costs!$A381)*(AbschreibungAGr=Costs!L$353)*(AbschreibungAHKBvD))-SUM(L$267:L293)","v":0},{"$f":"SUMPRODUCT((Aktivierungsjahr<=Costs!$A381)*(AbschreibungAGr=Costs!M$353)*(AbschreibungAHKBvD))-SUM(M$267:M293)","v":0},{"$f":"SUMPRODUCT((Aktivierungsjahr<=Costs!$A381)*(AbschreibungAGr=Costs!N$353)*(AbschreibungAHKBvD))-SUM(N$267:N293)","v":0},{"$f":"SUMPRODUCT((Aktivierungsjahr<=Costs!$A381)*(AbschreibungAGr=Costs!O$353)*(AbschreibungAHKBvD))-SUM(O$267:O293)","v":0},{"$f":"SUMPRODUCT((Aktivierungsjahr<=Costs!$A381)*(AbschreibungAGr=Costs!P$353)*(AbschreibungAHKBvD))-SUM(P$267:P293)","v":42000000},{"$f":"SUMPRODUCT((Aktivierungsjahr<=Costs!$A381)*(AbschreibungAGr=Costs!Q$353)*(AbschreibungAHKBvD))-SUM(Q$267:Q293)","v":0},{"$f":"SUMPRODUCT((Aktivierungsjahr<=Costs!$A381)*(AbschreibungAGr=Costs!R$353)*(AbschreibungAHKBvD))-SUM(R$267:R293)","v":0},{"$f":"SUMPRODUCT((Aktivierungsjahr<=Costs!$A381)*(AbschreibungAGr=Costs!S$353)*(AbschreibungAHKBvD))-SUM(S$267:S293)","v":0},{"$f":"SUMPRODUCT((Aktivierungsjahr<=Costs!$A381)*(AbschreibungAGr=Costs!T$353)*(AbschreibungAHKBvD))-SUM(T$267:T293)","v":0},{"$f":"SUMPRODUCT((Aktivierungsjahr<=Costs!$A381)*(AbschreibungAGr=Costs!U$353)*(AbschreibungAHKBvD))-SUM(U$267:U293)","v":0},{"$f":"SUMPRODUCT((Aktivierungsjahr<=Costs!$A381)*(AbschreibungAGr=Costs!V$353)*(AbschreibungAHKBvD))-SUM(V$267:V293)","v":0},{"$f":"SUMPRODUCT((Aktivierungsjahr<=Costs!$A381)*(AbschreibungAGr=Costs!W$353)*(AbschreibungAHKBvD))-SUM(W$267:W293)","v":0},{"$f":"SUMPRODUCT((Aktivierungsjahr<=Costs!$A381)*(AbschreibungAGr=Costs!X$353)*(AbschreibungAHKBvD))-SUM(X$267:X293)","v":0},{"$f":"SUMPRODUCT((Aktivierungsjahr<=Costs!$A381)*(AbschreibungAGr=Costs!Y$353)*(AbschreibungAHKBvD))-SUM(Y$267:Y293)","v":0},{"$f":"SUMPRODUCT((Aktivierungsjahr<=Costs!$A381)*(AbschreibungAGr=Costs!Z$353)*(AbschreibungAHKBvD))-SUM(Z$267:Z293)","v":0},{"$f":"SUMPRODUCT((Aktivierungsjahr<=Costs!$A381)*(AbschreibungAGr=Costs!AA$353)*(AbschreibungAHKBvD))-SUM(AA$267:AA293)","v":0},{"$f":"SUMPRODUCT((Aktivierungsjahr<=Costs!$A381)*(AbschreibungAGr=Costs!AB$353)*(AbschreibungAHKBvD))-SUM(AB$267:AB293)","v":0},{"$f":"SUMPRODUCT((Aktivierungsjahr<=Costs!$A381)*(AbschreibungAGr=Costs!AC$353)*(AbschreibungAHKBvD))-SUM(AC$267:AC293)","v":0},{"$f":"SUMPRODUCT((Aktivierungsjahr<=Costs!$A381)*(AbschreibungAGr=Costs!AD$353)*(AbschreibungAHKBvD))-SUM(AD$267:AD293)","v":0},{"$f":"SUMPRODUCT((Aktivierungsjahr<=Costs!$A381)*(AbschreibungAGr=Costs!AE$353)*(AbschreibungAHKBvD))-SUM(AE$267:AE293)","v":0},{"$f":"SUMPRODUCT((Aktivierungsjahr<=Costs!$A381)*(AbschreibungAGr=Costs!AF$353)*(AbschreibungAHKBvD))-SUM(AF$267:AF293)","v":0},{"$f":"SUMPRODUCT((Aktivierungsjahr<=Costs!$A381)*(AbschreibungAGr=Costs!AG$353)*(AbschreibungAHKBvD))-SUM(AG$267:AG293)","v":0},{"$f":"SUMPRODUCT((Aktivierungsjahr<=Costs!$A381)*(AbschreibungAGr=Costs!AH$353)*(AbschreibungAHKBvD))-SUM(AH$267:AH293)","v":0},{"$f":"SUMPRODUCT((Aktivierungsjahr<=Costs!$A381)*(AbschreibungAGr=Costs!AI$353)*(AbschreibungAHKBvD))-SUM(AI$267:AI293)","v":0},{"$f":"SUMPRODUCT((Aktivierungsjahr<=Costs!$A381)*(AbschreibungAGr=Costs!AJ$353)*(AbschreibungAHKBvD))-SUM(AJ$267:AJ293)","v":599999.99999999977},{"$f":"SUMPRODUCT((Aktivierungsjahr<=Costs!$A381)*(AbschreibungAGr=Costs!AK$353)*(AbschreibungAHKBvD))-SUM(AK$267:AK293)","v":0},{"$f":"SUMPRODUCT((Aktivierungsjahr<=Costs!$A381)*(AbschreibungAGr=Costs!AL$353)*(AbschreibungAHKBvD))-SUM(AL$267:AL293)","v":0},{"$f":"SUMPRODUCT((Aktivierungsjahr<=Costs!$A381)*(AbschreibungAGr=Costs!AM$353)*(AbschreibungAHKBvD))-SUM(AM$267:AM293)","v":0},{"$f":"SUMPRODUCT((Aktivierungsjahr<=Costs!$A381)*(AbschreibungAGr=Costs!AN$353)*(AbschreibungAHKBvD))-SUM(AN$267:AN293)","v":0},{"$f":"SUMPRODUCT((Aktivierungsjahr<=Costs!$A381)*(AbschreibungAGr=Costs!AO$353)*(AbschreibungAHKBvD))-SUM(AO$267:AO293)","v":0},{"$f":"SUMPRODUCT((Aktivierungsjahr<=Costs!$A381)*(AbschreibungAGr=Costs!AP$353)*(AbschreibungAHKBvD))-SUM(AP$267:AP293)","v":0},{"$f":"SUMPRODUCT((Aktivierungsjahr<=Costs!$A381)*(AbschreibungAGr=Costs!AQ$353)*(AbschreibungAHKBvD))-SUM(AQ$267:AQ293)","v":0}]
[2043,36577777.777777776,{"$f":"SUMPRODUCT((Aktivierungsjahr<=Costs!$A382)*(AbschreibungAGr=Costs!C$353)*(AbschreibungAHKBvD))-SUM(C$267:C294)","v":0},{"$f":"SUMPRODUCT((Aktivierungsjahr<=Costs!$A382)*(AbschreibungAGr=Costs!D$353)*(AbschreibungAHKBvD))-SUM(D$267:D294)","v":0},{"$f":"SUMPRODUCT((Aktivierungsjahr<=Costs!$A382)*(AbschreibungAGr=Costs!E$353)*(AbschreibungAHKBvD))-SUM(E$267:E294)","v":0},{"$f":"SUMPRODUCT((Aktivierungsjahr<=Costs!$A382)*(AbschreibungAGr=Costs!F$353)*(AbschreibungAHKBvD))-SUM(F$267:F294)","v":0},{"$f":"SUMPRODUCT((Aktivierungsjahr<=Costs!$A382)*(AbschreibungAGr=Costs!G$353)*(AbschreibungAHKBvD))-SUM(G$267:G294)","v":0},{"$f":"SUMPRODUCT((Aktivierungsjahr<=Costs!$A382)*(AbschreibungAGr=Costs!H$353)*(AbschreibungAHKBvD))-SUM(H$267:H294)","v":0},{"$f":"SUMPRODUCT((Aktivierungsjahr<=Costs!$A382)*(AbschreibungAGr=Costs!I$353)*(AbschreibungAHKBvD))-SUM(I$267:I294)","v":0},{"$f":"SUMPRODUCT((Aktivierungsjahr<=Costs!$A382)*(AbschreibungAGr=Costs!J$353)*(AbschreibungAHKBvD))-SUM(J$267:J294)","v":0},{"$f":"SUMPRODUCT((Aktivierungsjahr<=Costs!$A382)*(AbschreibungAGr=Costs!K$353)*(AbschreibungAHKBvD))-SUM(K$267:K294)","v":0},{"$f":"SUMPRODUCT((Aktivierungsjahr<=Costs!$A382)*(AbschreibungAGr=Costs!L$353)*(AbschreibungAHKBvD))-SUM(L$267:L294)","v":0},{"$f":"SUMPRODUCT((Aktivierungsjahr<=Costs!$A382)*(AbschreibungAGr=Costs!M$353)*(AbschreibungAHKBvD))-SUM(M$267:M294)","v":0},{"$f":"SUMPRODUCT((Aktivierungsjahr<=Costs!$A382)*(AbschreibungAGr=Costs!N$353)*(AbschreibungAHKBvD))-SUM(N$267:N294)","v":0},{"$f":"SUMPRODUCT((Aktivierungsjahr<=Costs!$A382)*(AbschreibungAGr=Costs!O$353)*(AbschreibungAHKBvD))-SUM(O$267:O294)","v":0},{"$f":"SUMPRODUCT((Aktivierungsjahr<=Costs!$A382)*(AbschreibungAGr=Costs!P$353)*(AbschreibungAHKBvD))-SUM(P$267:P294)","v":36000000},{"$f":"SUMPRODUCT((Aktivierungsjahr<=Costs!$A382)*(AbschreibungAGr=Costs!Q$353)*(AbschreibungAHKBvD))-SUM(Q$267:Q294)","v":0},{"$f":"SUMPRODUCT((Aktivierungsjahr<=Costs!$A382)*(AbschreibungAGr=Costs!R$353)*(AbschreibungAHKBvD))-SUM(R$267:R294)","v":0},{"$f":"SUMPRODUCT((Aktivierungsjahr<=Costs!$A382)*(AbschreibungAGr=Costs!S$353)*(AbschreibungAHKBvD))-SUM(S$267:S294)","v":0},{"$f":"SUMPRODUCT((Aktivierungsjahr<=Costs!$A382)*(AbschreibungAGr=Costs!T$353)*(AbschreibungAHKBvD))-SUM(T$267:T294)","v":0},{"$f":"SUMPRODUCT((Aktivierungsjahr<=Costs!$A382)*(AbschreibungAGr=Costs!U$353)*(AbschreibungAHKBvD))-SUM(U$267:U294)","v":0},{"$f":"SUMPRODUCT((Aktivierungsjahr<=Costs!$A382)*(AbschreibungAGr=Costs!V$353)*(AbschreibungAHKBvD))-SUM(V$267:V294)","v":0},{"$f":"SUMPRODUCT((Aktivierungsjahr<=Costs!$A382)*(AbschreibungAGr=Costs!W$353)*(AbschreibungAHKBvD))-SUM(W$267:W294)","v":0},{"$f":"SUMPRODUCT((Aktivierungsjahr<=Costs!$A382)*(AbschreibungAGr=Costs!X$353)*(AbschreibungAHKBvD))-SUM(X$267:X294)","v":0},{"$f":"SUMPRODUCT((Aktivierungsjahr<=Costs!$A382)*(AbschreibungAGr=Costs!Y$353)*(AbschreibungAHKBvD))-SUM(Y$267:Y294)","v":0},{"$f":"SUMPRODUCT((Aktivierungsjahr<=Costs!$A382)*(AbschreibungAGr=Costs!Z$353)*(AbschreibungAHKBvD))-SUM(Z$267:Z294)","v":0},{"$f":"SUMPRODUCT((Aktivierungsjahr<=Costs!$A382)*(AbschreibungAGr=Costs!AA$353)*(AbschreibungAHKBvD))-SUM(AA$267:AA294)","v":0},{"$f":"SUMPRODUCT((Aktivierungsjahr<=Costs!$A382)*(AbschreibungAGr=Costs!AB$353)*(AbschreibungAHKBvD))-SUM(AB$267:AB294)","v":0},{"$f":"SUMPRODUCT((Aktivierungsjahr<=Costs!$A382)*(AbschreibungAGr=Costs!AC$353)*(AbschreibungAHKBvD))-SUM(AC$267:AC294)","v":0},{"$f":"SUMPRODUCT((Aktivierungsjahr<=Costs!$A382)*(AbschreibungAGr=Costs!AD$353)*(AbschreibungAHKBvD))-SUM(AD$267:AD294)","v":0},{"$f":"SUMPRODUCT((Aktivierungsjahr<=Costs!$A382)*(AbschreibungAGr=Costs!AE$353)*(AbschreibungAHKBvD))-SUM(AE$267:AE294)","v":0},{"$f":"SUMPRODUCT((Aktivierungsjahr<=Costs!$A382)*(AbschreibungAGr=Costs!AF$353)*(AbschreibungAHKBvD))-SUM(AF$267:AF294)","v":0},{"$f":"SUMPRODUCT((Aktivierungsjahr<=Costs!$A382)*(AbschreibungAGr=Costs!AG$353)*(AbschreibungAHKBvD))-SUM(AG$267:AG294)","v":0},{"$f":"SUMPRODUCT((Aktivierungsjahr<=Costs!$A382)*(AbschreibungAGr=Costs!AH$353)*(AbschreibungAHKBvD))-SUM(AH$267:AH294)","v":0},{"$f":"SUMPRODUCT((Aktivierungsjahr<=Costs!$A382)*(AbschreibungAGr=Costs!AI$353)*(AbschreibungAHKBvD))-SUM(AI$267:AI294)","v":0},{"$f":"SUMPRODUCT((Aktivierungsjahr<=Costs!$A382)*(AbschreibungAGr=Costs!AJ$353)*(AbschreibungAHKBvD))-SUM(AJ$267:AJ294)","v":577777.77777777752},{"$f":"SUMPRODUCT((Aktivierungsjahr<=Costs!$A382)*(AbschreibungAGr=Costs!AK$353)*(AbschreibungAHKBvD))-SUM(AK$267:AK294)","v":0},{"$f":"SUMPRODUCT((Aktivierungsjahr<=Costs!$A382)*(AbschreibungAGr=Costs!AL$353)*(AbschreibungAHKBvD))-SUM(AL$267:AL294)","v":0},{"$f":"SUMPRODUCT((Aktivierungsjahr<=Costs!$A382)*(AbschreibungAGr=Costs!AM$353)*(AbschreibungAHKBvD))-SUM(AM$267:AM294)","v":0},{"$f":"SUMPRODUCT((Aktivierungsjahr<=Costs!$A382)*(AbschreibungAGr=Costs!AN$353)*(AbschreibungAHKBvD))-SUM(AN$267:AN294)","v":0},{"$f":"SUMPRODUCT((Aktivierungsjahr<=Costs!$A382)*(AbschreibungAGr=Costs!AO$353)*(AbschreibungAHKBvD))-SUM(AO$267:AO294)","v":0},{"$f":"SUMPRODUCT((Aktivierungsjahr<=Costs!$A382)*(AbschreibungAGr=Costs!AP$353)*(AbschreibungAHKBvD))-SUM(AP$267:AP294)","v":0},{"$f":"SUMPRODUCT((Aktivierungsjahr<=Costs!$A382)*(AbschreibungAGr=Costs!AQ$353)*(AbschreibungAHKBvD))-SUM(AQ$267:AQ294)","v":0}]
[2044,30555555.555555556,{"$f":"SUMPRODUCT((Aktivierungsjahr<=Costs!$A383)*(AbschreibungAGr=Costs!C$353)*(AbschreibungAHKBvD))-SUM(C$267:C295)","v":0},{"$f":"SUMPRODUCT((Aktivierungsjahr<=Costs!$A383)*(AbschreibungAGr=Costs!D$353)*(AbschreibungAHKBvD))-SUM(D$267:D295)","v":0},{"$f":"SUMPRODUCT((Aktivierungsjahr<=Costs!$A383)*(AbschreibungAGr=Costs!E$353)*(AbschreibungAHKBvD))-SUM(E$267:E295)","v":0},{"$f":"SUMPRODUCT((Aktivierungsjahr<=Costs!$A383)*(AbschreibungAGr=Costs!F$353)*(AbschreibungAHKBvD))-SUM(F$267:F295)","v":0},{"$f":"SUMPRODUCT((Aktivierungsjahr<=Costs!$A383)*(AbschreibungAGr=Costs!G$353)*(AbschreibungAHKBvD))-SUM(G$267:G295)","v":0},{"$f":"SUMPRODUCT((Aktivierungsjahr<=Costs!$A383)*(AbschreibungAGr=Costs!H$353)*(AbschreibungAHKBvD))-SUM(H$267:H295)","v":0},{"$f":"SUMPRODUCT((Aktivierungsjahr<=Costs!$A383)*(AbschreibungAGr=Costs!I$353)*(AbschreibungAHKBvD))-SUM(I$267:I295)","v":0},{"$f":"SUMPRODUCT((Aktivierungsjahr<=Costs!$A383)*(AbschreibungAGr=Costs!J$353)*(AbschreibungAHKBvD))-SUM(J$267:J295)","v":0},{"$f":"SUMPRODUCT((Aktivierungsjahr<=Costs!$A383)*(AbschreibungAGr=Costs!K$353)*(AbschreibungAHKBvD))-SUM(K$267:K295)","v":0},{"$f":"SUMPRODUCT((Aktivierungsjahr<=Costs!$A383)*(AbschreibungAGr=Costs!L$353)*(AbschreibungAHKBvD))-SUM(L$267:L295)","v":0},{"$f":"SUMPRODUCT((Aktivierungsjahr<=Costs!$A383)*(AbschreibungAGr=Costs!M$353)*(AbschreibungAHKBvD))-SUM(M$267:M295)","v":0},{"$f":"SUMPRODUCT((Aktivierungsjahr<=Costs!$A383)*(AbschreibungAGr=Costs!N$353)*(AbschreibungAHKBvD))-SUM(N$267:N295)","v":0},{"$f":"SUMPRODUCT((Aktivierungsjahr<=Costs!$A383)*(AbschreibungAGr=Costs!O$353)*(AbschreibungAHKBvD))-SUM(O$267:O295)","v":0},{"$f":"SUMPRODUCT((Aktivierungsjahr<=Costs!$A383)*(AbschreibungAGr=Costs!P$353)*(AbschreibungAHKBvD))-SUM(P$267:P295)","v":30000000},{"$f":"SUMPRODUCT((Aktivierungsjahr<=Costs!$A383)*(AbschreibungAGr=Costs!Q$353)*(AbschreibungAHKBvD))-SUM(Q$267:Q295)","v":0},{"$f":"SUMPRODUCT((Aktivierungsjahr<=Costs!$A383)*(AbschreibungAGr=Costs!R$353)*(AbschreibungAHKBvD))-SUM(R$267:R295)","v":0},{"$f":"SUMPRODUCT((Aktivierungsjahr<=Costs!$A383)*(AbschreibungAGr=Costs!S$353)*(AbschreibungAHKBvD))-SUM(S$267:S295)","v":0},{"$f":"SUMPRODUCT((Aktivierungsjahr<=Costs!$A383)*(AbschreibungAGr=Costs!T$353)*(AbschreibungAHKBvD))-SUM(T$267:T295)","v":0},{"$f":"SUMPRODUCT((Aktivierungsjahr<=Costs!$A383)*(AbschreibungAGr=Costs!U$353)*(AbschreibungAHKBvD))-SUM(U$267:U295)","v":0},{"$f":"SUMPRODUCT((Aktivierungsjahr<=Costs!$A383)*(AbschreibungAGr=Costs!V$353)*(AbschreibungAHKBvD))-SUM(V$267:V295)","v":0},{"$f":"SUMPRODUCT((Aktivierungsjahr<=Costs!$A383)*(AbschreibungAGr=Costs!W$353)*(AbschreibungAHKBvD))-SUM(W$267:W295)","v":0},{"$f":"SUMPRODUCT((Aktivierungsjahr<=Costs!$A383)*(AbschreibungAGr=Costs!X$353)*(AbschreibungAHKBvD))-SUM(X$267:X295)","v":0},{"$f":"SUMPRODUCT((Aktivierungsjahr<=Costs!$A383)*(AbschreibungAGr=Costs!Y$353)*(AbschreibungAHKBvD))-SUM(Y$267:Y295)","v":0},{"$f":"SUMPRODUCT((Aktivierungsjahr<=Costs!$A383)*(AbschreibungAGr=Costs!Z$353)*(AbschreibungAHKBvD))-SUM(Z$267:Z295)","v":0},{"$f":"SUMPRODUCT((Aktivierungsjahr<=Costs!$A383)*(AbschreibungAGr=Costs!AA$353)*(AbschreibungAHKBvD))-SUM(AA$267:AA295)","v":0},{"$f":"SUMPRODUCT((Aktivierungsjahr<=Costs!$A383)*(AbschreibungAGr=Costs!AB$353)*(AbschreibungAHKBvD))-SUM(AB$267:AB295)","v":0},{"$f":"SUMPRODUCT((Aktivierungsjahr<=Costs!$A383)*(AbschreibungAGr=Costs!AC$353)*(AbschreibungAHKBvD))-SUM(AC$267:AC295)","v":0},{"$f":"SUMPRODUCT((Aktivierungsjahr<=Costs!$A383)*(AbschreibungAGr=Costs!AD$353)*(AbschreibungAHKBvD))-SUM(AD$267:AD295)","v":0},{"$f":"SUMPRODUCT((Aktivierungsjahr<=Costs!$A383)*(AbschreibungAGr=Costs!AE$353)*(AbschreibungAHKBvD))-SUM(AE$267:AE295)","v":0},{"$f":"SUMPRODUCT((Aktivierungsjahr<=Costs!$A383)*(AbschreibungAGr=Costs!AF$353)*(AbschreibungAHKBvD))-SUM(AF$267:AF295)","v":0},{"$f":"SUMPRODUCT((Aktivierungsjahr<=Costs!$A383)*(AbschreibungAGr=Costs!AG$353)*(AbschreibungAHKBvD))-SUM(AG$267:AG295)","v":0},{"$f":"SUMPRODUCT((Aktivierungsjahr<=Costs!$A383)*(AbschreibungAGr=Costs!AH$353)*(AbschreibungAHKBvD))-SUM(AH$267:AH295)","v":0},{"$f":"SUMPRODUCT((Aktivierungsjahr<=Costs!$A383)*(AbschreibungAGr=Costs!AI$353)*(AbschreibungAHKBvD))-SUM(AI$267:AI295)","v":0},{"$f":"SUMPRODUCT((Aktivierungsjahr<=Costs!$A383)*(AbschreibungAGr=Costs!AJ$353)*(AbschreibungAHKBvD))-SUM(AJ$267:AJ295)","v":555555.55555555527},{"$f":"SUMPRODUCT((Aktivierungsjahr<=Costs!$A383)*(AbschreibungAGr=Costs!AK$353)*(AbschreibungAHKBvD))-SUM(AK$267:AK295)","v":0},{"$f":"SUMPRODUCT((Aktivierungsjahr<=Costs!$A383)*(AbschreibungAGr=Costs!AL$353)*(AbschreibungAHKBvD))-SUM(AL$267:AL295)","v":0},{"$f":"SUMPRODUCT((Aktivierungsjahr<=Costs!$A383)*(AbschreibungAGr=Costs!AM$353)*(AbschreibungAHKBvD))-SUM(AM$267:AM295)","v":0},{"$f":"SUMPRODUCT((Aktivierungsjahr<=Costs!$A383)*(AbschreibungAGr=Costs!AN$353)*(AbschreibungAHKBvD))-SUM(AN$267:AN295)","v":0},{"$f":"SUMPRODUCT((Aktivierungsjahr<=Costs!$A383)*(AbschreibungAGr=Costs!AO$353)*(AbschreibungAHKBvD))-SUM(AO$267:AO295)","v":0},{"$f":"SUMPRODUCT((Aktivierungsjahr<=Costs!$A383)*(AbschreibungAGr=Costs!AP$353)*(AbschreibungAHKBvD))-SUM(AP$267:AP295)","v":0},{"$f":"SUMPRODUCT((Aktivierungsjahr<=Costs!$A383)*(AbschreibungAGr=Costs!AQ$353)*(AbschreibungAHKBvD))-SUM(AQ$267:AQ295)","v":0}]
[2045,24533333.333333332,{"$f":"SUMPRODUCT((Aktivierungsjahr<=Costs!$A384)*(AbschreibungAGr=Costs!C$353)*(AbschreibungAHKBvD))-SUM(C$267:C296)","v":0},{"$f":"SUMPRODUCT((Aktivierungsjahr<=Costs!$A384)*(AbschreibungAGr=Costs!D$353)*(AbschreibungAHKBvD))-SUM(D$267:D296)","v":0},{"$f":"SUMPRODUCT((Aktivierungsjahr<=Costs!$A384)*(AbschreibungAGr=Costs!E$353)*(AbschreibungAHKBvD))-SUM(E$267:E296)","v":0},{"$f":"SUMPRODUCT((Aktivierungsjahr<=Costs!$A384)*(AbschreibungAGr=Costs!F$353)*(AbschreibungAHKBvD))-SUM(F$267:F296)","v":0},{"$f":"SUMPRODUCT((Aktivierungsjahr<=Costs!$A384)*(AbschreibungAGr=Costs!G$353)*(AbschreibungAHKBvD))-SUM(G$267:G296)","v":0},{"$f":"SUMPRODUCT((Aktivierungsjahr<=Costs!$A384)*(AbschreibungAGr=Costs!H$353)*(AbschreibungAHKBvD))-SUM(H$267:H296)","v":0},{"$f":"SUMPRODUCT((Aktivierungsjahr<=Costs!$A384)*(AbschreibungAGr=Costs!I$353)*(AbschreibungAHKBvD))-SUM(I$267:I296)","v":0},{"$f":"SUMPRODUCT((Aktivierungsjahr<=Costs!$A384)*(AbschreibungAGr=Costs!J$353)*(AbschreibungAHKBvD))-SUM(J$267:J296)","v":0},{"$f":"SUMPRODUCT((Aktivierungsjahr<=Costs!$A384)*(AbschreibungAGr=Costs!K$353)*(AbschreibungAHKBvD))-SUM(K$267:K296)","v":0},{"$f":"SUMPRODUCT((Aktivierungsjahr<=Costs!$A384)*(AbschreibungAGr=Costs!L$353)*(AbschreibungAHKBvD))-SUM(L$267:L296)","v":0},{"$f":"SUMPRODUCT((Aktivierungsjahr<=Costs!$A384)*(AbschreibungAGr=Costs!M$353)*(AbschreibungAHKBvD))-SUM(M$267:M296)","v":0},{"$f":"SUMPRODUCT((Aktivierungsjahr<=Costs!$A384)*(AbschreibungAGr=Costs!N$353)*(AbschreibungAHKBvD))-SUM(N$267:N296)","v":0},{"$f":"SUMPRODUCT((Aktivierungsjahr<=Costs!$A384)*(AbschreibungAGr=Costs!O$353)*(AbschreibungAHKBvD))-SUM(O$267:O296)","v":0},{"$f":"SUMPRODUCT((Aktivierungsjahr<=Costs!$A384)*(AbschreibungAGr=Costs!P$353)*(AbschreibungAHKBvD))-SUM(P$267:P296)","v":24000000},{"$f":"SUMPRODUCT((Aktivierungsjahr<=Costs!$A384)*(AbschreibungAGr=Costs!Q$353)*(AbschreibungAHKBvD))-SUM(Q$267:Q296)","v":0},{"$f":"SUMPRODUCT((Aktivierungsjahr<=Costs!$A384)*(AbschreibungAGr=Costs!R$353)*(AbschreibungAHKBvD))-SUM(R$267:R296)","v":0},{"$f":"SUMPRODUCT((Aktivierungsjahr<=Costs!$A384)*(AbschreibungAGr=Costs!S$353)*(AbschreibungAHKBvD))-SUM(S$267:S296)","v":0},{"$f":"SUMPRODUCT((Aktivierungsjahr<=Costs!$A384)*(AbschreibungAGr=Costs!T$353)*(AbschreibungAHKBvD))-SUM(T$267:T296)","v":0},{"$f":"SUMPRODUCT((Aktivierungsjahr<=Costs!$A384)*(AbschreibungAGr=Costs!U$353)*(AbschreibungAHKBvD))-SUM(U$267:U296)","v":0},{"$f":"SUMPRODUCT((Aktivierungsjahr<=Costs!$A384)*(AbschreibungAGr=Costs!V$353)*(AbschreibungAHKBvD))-SUM(V$267:V296)","v":0},{"$f":"SUMPRODUCT((Aktivierungsjahr<=Costs!$A384)*(AbschreibungAGr=Costs!W$353)*(AbschreibungAHKBvD))-SUM(W$267:W296)","v":0},{"$f":"SUMPRODUCT((Aktivierungsjahr<=Costs!$A384)*(AbschreibungAGr=Costs!X$353)*(AbschreibungAHKBvD))-SUM(X$267:X296)","v":0},{"$f":"SUMPRODUCT((Aktivierungsjahr<=Costs!$A384)*(AbschreibungAGr=Costs!Y$353)*(AbschreibungAHKBvD))-SUM(Y$267:Y296)","v":0},{"$f":"SUMPRODUCT((Aktivierungsjahr<=Costs!$A384)*(AbschreibungAGr=Costs!Z$353)*(AbschreibungAHKBvD))-SUM(Z$267:Z296)","v":0},{"$f":"SUMPRODUCT((Aktivierungsjahr<=Costs!$A384)*(AbschreibungAGr=Costs!AA$353)*(AbschreibungAHKBvD))-SUM(AA$267:AA296)","v":0},{"$f":"SUMPRODUCT((Aktivierungsjahr<=Costs!$A384)*(AbschreibungAGr=Costs!AB$353)*(AbschreibungAHKBvD))-SUM(AB$267:AB296)","v":0},{"$f":"SUMPRODUCT((Aktivierungsjahr<=Costs!$A384)*(AbschreibungAGr=Costs!AC$353)*(AbschreibungAHKBvD))-SUM(AC$267:AC296)","v":0},{"$f":"SUMPRODUCT((Aktivierungsjahr<=Costs!$A384)*(AbschreibungAGr=Costs!AD$353)*(AbschreibungAHKBvD))-SUM(AD$267:AD296)","v":0},{"$f":"SUMPRODUCT((Aktivierungsjahr<=Costs!$A384)*(AbschreibungAGr=Costs!AE$353)*(AbschreibungAHKBvD))-SUM(AE$267:AE296)","v":0},{"$f":"SUMPRODUCT((Aktivierungsjahr<=Costs!$A384)*(AbschreibungAGr=Costs!AF$353)*(AbschreibungAHKBvD))-SUM(AF$267:AF296)","v":0},{"$f":"SUMPRODUCT((Aktivierungsjahr<=Costs!$A384)*(AbschreibungAGr=Costs!AG$353)*(AbschreibungAHKBvD))-SUM(AG$267:AG296)","v":0},{"$f":"SUMPRODUCT((Aktivierungsjahr<=Costs!$A384)*(AbschreibungAGr=Costs!AH$353)*(AbschreibungAHKBvD))-SUM(AH$267:AH296)","v":0},{"$f":"SUMPRODUCT((Aktivierungsjahr<=Costs!$A384)*(AbschreibungAGr=Costs!AI$353)*(AbschreibungAHKBvD))-SUM(AI$267:AI296)","v":0},{"$f":"SUMPRODUCT((Aktivierungsjahr<=Costs!$A384)*(AbschreibungAGr=Costs!AJ$353)*(AbschreibungAHKBvD))-SUM(AJ$267:AJ296)","v":533333.33333333302},{"$f":"SUMPRODUCT((Aktivierungsjahr<=Costs!$A384)*(AbschreibungAGr=Costs!AK$353)*(AbschreibungAHKBvD))-SUM(AK$267:AK296)","v":0},{"$f":"SUMPRODUCT((Aktivierungsjahr<=Costs!$A384)*(AbschreibungAGr=Costs!AL$353)*(AbschreibungAHKBvD))-SUM(AL$267:AL296)","v":0},{"$f":"SUMPRODUCT((Aktivierungsjahr<=Costs!$A384)*(AbschreibungAGr=Costs!AM$353)*(AbschreibungAHKBvD))-SUM(AM$267:AM296)","v":0},{"$f":"SUMPRODUCT((Aktivierungsjahr<=Costs!$A384)*(AbschreibungAGr=Costs!AN$353)*(AbschreibungAHKBvD))-SUM(AN$267:AN296)","v":0},{"$f":"SUMPRODUCT((Aktivierungsjahr<=Costs!$A384)*(AbschreibungAGr=Costs!AO$353)*(AbschreibungAHKBvD))-SUM(AO$267:AO296)","v":0},{"$f":"SUMPRODUCT((Aktivierungsjahr<=Costs!$A384)*(AbschreibungAGr=Costs!AP$353)*(AbschreibungAHKBvD))-SUM(AP$267:AP296)","v":0},{"$f":"SUMPRODUCT((Aktivierungsjahr<=Costs!$A384)*(AbschreibungAGr=Costs!AQ$353)*(AbschreibungAHKBvD))-SUM(AQ$267:AQ296)","v":0}]
[2046,18511111.111111112,{"$f":"SUMPRODUCT((Aktivierungsjahr<=Costs!$A385)*(AbschreibungAGr=Costs!C$353)*(AbschreibungAHKBvD))-SUM(C$267:C297)","v":0},{"$f":"SUMPRODUCT((Aktivierungsjahr<=Costs!$A385)*(AbschreibungAGr=Costs!D$353)*(AbschreibungAHKBvD))-SUM(D$267:D297)","v":0},{"$f":"SUMPRODUCT((Aktivierungsjahr<=Costs!$A385)*(AbschreibungAGr=Costs!E$353)*(AbschreibungAHKBvD))-SUM(E$267:E297)","v":0},{"$f":"SUMPRODUCT((Aktivierungsjahr<=Costs!$A385)*(AbschreibungAGr=Costs!F$353)*(AbschreibungAHKBvD))-SUM(F$267:F297)","v":0},{"$f":"SUMPRODUCT((Aktivierungsjahr<=Costs!$A385)*(AbschreibungAGr=Costs!G$353)*(AbschreibungAHKBvD))-SUM(G$267:G297)","v":0},{"$f":"SUMPRODUCT((Aktivierungsjahr<=Costs!$A385)*(AbschreibungAGr=Costs!H$353)*(AbschreibungAHKBvD))-SUM(H$267:H297)","v":0},{"$f":"SUMPRODUCT((Aktivierungsjahr<=Costs!$A385)*(AbschreibungAGr=Costs!I$353)*(AbschreibungAHKBvD))-SUM(I$267:I297)","v":0},{"$f":"SUMPRODUCT((Aktivierungsjahr<=Costs!$A385)*(AbschreibungAGr=Costs!J$353)*(AbschreibungAHKBvD))-SUM(J$267:J297)","v":0},{"$f":"SUMPRODUCT((Aktivierungsjahr<=Costs!$A385)*(AbschreibungAGr=Costs!K$353)*(AbschreibungAHKBvD))-SUM(K$267:K297)","v":0},{"$f":"SUMPRODUCT((Aktivierungsjahr<=Costs!$A385)*(AbschreibungAGr=Costs!L$353)*(AbschreibungAHKBvD))-SUM(L$267:L297)","v":0},{"$f":"SUMPRODUCT((Aktivierungsjahr<=Costs!$A385)*(AbschreibungAGr=Costs!M$353)*(AbschreibungAHKBvD))-SUM(M$267:M297)","v":0},{"$f":"SUMPRODUCT((Aktivierungsjahr<=Costs!$A385)*(AbschreibungAGr=Costs!N$353)*(AbschreibungAHKBvD))-SUM(N$267:N297)","v":0},{"$f":"SUMPRODUCT((Aktivierungsjahr<=Costs!$A385)*(AbschreibungAGr=Costs!O$353)*(AbschreibungAHKBvD))-SUM(O$267:O297)","v":0},{"$f":"SUMPRODUCT((Aktivierungsjahr<=Costs!$A385)*(AbschreibungAGr=Costs!P$353)*(AbschreibungAHKBvD))-SUM(P$267:P297)","v":18000000},{"$f":"SUMPRODUCT((Aktivierungsjahr<=Costs!$A385)*(AbschreibungAGr=Costs!Q$353)*(AbschreibungAHKBvD))-SUM(Q$267:Q297)","v":0},{"$f":"SUMPRODUCT((Aktivierungsjahr<=Costs!$A385)*(AbschreibungAGr=Costs!R$353)*(AbschreibungAHKBvD))-SUM(R$267:R297)","v":0},{"$f":"SUMPRODUCT((Aktivierungsjahr<=Costs!$A385)*(AbschreibungAGr=Costs!S$353)*(AbschreibungAHKBvD))-SUM(S$267:S297)","v":0},{"$f":"SUMPRODUCT((Aktivierungsjahr<=Costs!$A385)*(AbschreibungAGr=Costs!T$353)*(AbschreibungAHKBvD))-SUM(T$267:T297)","v":0},{"$f":"SUMPRODUCT((Aktivierungsjahr<=Costs!$A385)*(AbschreibungAGr=Costs!U$353)*(AbschreibungAHKBvD))-SUM(U$267:U297)","v":0},{"$f":"SUMPRODUCT((Aktivierungsjahr<=Costs!$A385)*(AbschreibungAGr=Costs!V$353)*(AbschreibungAHKBvD))-SUM(V$267:V297)","v":0},{"$f":"SUMPRODUCT((Aktivierungsjahr<=Costs!$A385)*(AbschreibungAGr=Costs!W$353)*(AbschreibungAHKBvD))-SUM(W$267:W297)","v":0},{"$f":"SUMPRODUCT((Aktivierungsjahr<=Costs!$A385)*(AbschreibungAGr=Costs!X$353)*(AbschreibungAHKBvD))-SUM(X$267:X297)","v":0},{"$f":"SUMPRODUCT((Aktivierungsjahr<=Costs!$A385)*(AbschreibungAGr=Costs!Y$353)*(AbschreibungAHKBvD))-SUM(Y$267:Y297)","v":0},{"$f":"SUMPRODUCT((Aktivierungsjahr<=Costs!$A385)*(AbschreibungAGr=Costs!Z$353)*(AbschreibungAHKBvD))-SUM(Z$267:Z297)","v":0},{"$f":"SUMPRODUCT((Aktivierungsjahr<=Costs!$A385)*(AbschreibungAGr=Costs!AA$353)*(AbschreibungAHKBvD))-SUM(AA$267:AA297)","v":0},{"$f":"SUMPRODUCT((Aktivierungsjahr<=Costs!$A385)*(AbschreibungAGr=Costs!AB$353)*(AbschreibungAHKBvD))-SUM(AB$267:AB297)","v":0},{"$f":"SUMPRODUCT((Aktivierungsjahr<=Costs!$A385)*(AbschreibungAGr=Costs!AC$353)*(AbschreibungAHKBvD))-SUM(AC$267:AC297)","v":0},{"$f":"SUMPRODUCT((Aktivierungsjahr<=Costs!$A385)*(AbschreibungAGr=Costs!AD$353)*(AbschreibungAHKBvD))-SUM(AD$267:AD297)","v":0},{"$f":"SUMPRODUCT((Aktivierungsjahr<=Costs!$A385)*(AbschreibungAGr=Costs!AE$353)*(AbschreibungAHKBvD))-SUM(AE$267:AE297)","v":0},{"$f":"SUMPRODUCT((Aktivierungsjahr<=Costs!$A385)*(AbschreibungAGr=Costs!AF$353)*(AbschreibungAHKBvD))-SUM(AF$267:AF297)","v":0},{"$f":"SUMPRODUCT((Aktivierungsjahr<=Costs!$A385)*(AbschreibungAGr=Costs!AG$353)*(AbschreibungAHKBvD))-SUM(AG$267:AG297)","v":0},{"$f":"SUMPRODUCT((Aktivierungsjahr<=Costs!$A385)*(AbschreibungAGr=Costs!AH$353)*(AbschreibungAHKBvD))-SUM(AH$267:AH297)","v":0},{"$f":"SUMPRODUCT((Aktivierungsjahr<=Costs!$A385)*(AbschreibungAGr=Costs!AI$353)*(AbschreibungAHKBvD))-SUM(AI$267:AI297)","v":0},{"$f":"SUMPRODUCT((Aktivierungsjahr<=Costs!$A385)*(AbschreibungAGr=Costs!AJ$353)*(AbschreibungAHKBvD))-SUM(AJ$267:AJ297)","v":511111.11111111083},{"$f":"SUMPRODUCT((Aktivierungsjahr<=Costs!$A385)*(AbschreibungAGr=Costs!AK$353)*(AbschreibungAHKBvD))-SUM(AK$267:AK297)","v":0},{"$f":"SUMPRODUCT((Aktivierungsjahr<=Costs!$A385)*(AbschreibungAGr=Costs!AL$353)*(AbschreibungAHKBvD))-SUM(AL$267:AL297)","v":0},{"$f":"SUMPRODUCT((Aktivierungsjahr<=Costs!$A385)*(AbschreibungAGr=Costs!AM$353)*(AbschreibungAHKBvD))-SUM(AM$267:AM297)","v":0},{"$f":"SUMPRODUCT((Aktivierungsjahr<=Costs!$A385)*(AbschreibungAGr=Costs!AN$353)*(AbschreibungAHKBvD))-SUM(AN$267:AN297)","v":0},{"$f":"SUMPRODUCT((Aktivierungsjahr<=Costs!$A385)*(AbschreibungAGr=Costs!AO$353)*(AbschreibungAHKBvD))-SUM(AO$267:AO297)","v":0},{"$f":"SUMPRODUCT((Aktivierungsjahr<=Costs!$A385)*(AbschreibungAGr=Costs!AP$353)*(AbschreibungAHKBvD))-SUM(AP$267:AP297)","v":0},{"$f":"SUMPRODUCT((Aktivierungsjahr<=Costs!$A385)*(AbschreibungAGr=Costs!AQ$353)*(AbschreibungAHKBvD))-SUM(AQ$267:AQ297)","v":0}]
[2047,12488888.888888888,{"$f":"SUMPRODUCT((Aktivierungsjahr<=Costs!$A386)*(AbschreibungAGr=Costs!C$353)*(AbschreibungAHKBvD))-SUM(C$267:C298)","v":0},{"$f":"SUMPRODUCT((Aktivierungsjahr<=Costs!$A386)*(AbschreibungAGr=Costs!D$353)*(AbschreibungAHKBvD))-SUM(D$267:D298)","v":0},{"$f":"SUMPRODUCT((Aktivierungsjahr<=Costs!$A386)*(AbschreibungAGr=Costs!E$353)*(AbschreibungAHKBvD))-SUM(E$267:E298)","v":0},{"$f":"SUMPRODUCT((Aktivierungsjahr<=Costs!$A386)*(AbschreibungAGr=Costs!F$353)*(AbschreibungAHKBvD))-SUM(F$267:F298)","v":0},{"$f":"SUMPRODUCT((Aktivierungsjahr<=Costs!$A386)*(AbschreibungAGr=Costs!G$353)*(AbschreibungAHKBvD))-SUM(G$267:G298)","v":0},{"$f":"SUMPRODUCT((Aktivierungsjahr<=Costs!$A386)*(AbschreibungAGr=Costs!H$353)*(AbschreibungAHKBvD))-SUM(H$267:H298)","v":0},{"$f":"SUMPRODUCT((Aktivierungsjahr<=Costs!$A386)*(AbschreibungAGr=Costs!I$353)*(AbschreibungAHKBvD))-SUM(I$267:I298)","v":0},{"$f":"SUMPRODUCT((Aktivierungsjahr<=Costs!$A386)*(AbschreibungAGr=Costs!J$353)*(AbschreibungAHKBvD))-SUM(J$267:J298)","v":0},{"$f":"SUMPRODUCT((Aktivierungsjahr<=Costs!$A386)*(AbschreibungAGr=Costs!K$353)*(AbschreibungAHKBvD))-SUM(K$267:K298)","v":0},{"$f":"SUMPRODUCT((Aktivierungsjahr<=Costs!$A386)*(AbschreibungAGr=Costs!L$353)*(AbschreibungAHKBvD))-SUM(L$267:L298)","v":0},{"$f":"SUMPRODUCT((Aktivierungsjahr<=Costs!$A386)*(AbschreibungAGr=Costs!M$353)*(AbschreibungAHKBvD))-SUM(M$267:M298)","v":0},{"$f":"SUMPRODUCT((Aktivierungsjahr<=Costs!$A386)*(AbschreibungAGr=Costs!N$353)*(AbschreibungAHKBvD))-SUM(N$267:N298)","v":0},{"$f":"SUMPRODUCT((Aktivierungsjahr<=Costs!$A386)*(AbschreibungAGr=Costs!O$353)*(AbschreibungAHKBvD))-SUM(O$267:O298)","v":0},{"$f":"SUMPRODUCT((Aktivierungsjahr<=Costs!$A386)*(AbschreibungAGr=Costs!P$353)*(AbschreibungAHKBvD))-SUM(P$267:P298)","v":12000000},{"$f":"SUMPRODUCT((Aktivierungsjahr<=Costs!$A386)*(AbschreibungAGr=Costs!Q$353)*(AbschreibungAHKBvD))-SUM(Q$267:Q298)","v":0},{"$f":"SUMPRODUCT((Aktivierungsjahr<=Costs!$A386)*(AbschreibungAGr=Costs!R$353)*(AbschreibungAHKBvD))-SUM(R$267:R298)","v":0},{"$f":"SUMPRODUCT((Aktivierungsjahr<=Costs!$A386)*(AbschreibungAGr=Costs!S$353)*(AbschreibungAHKBvD))-SUM(S$267:S298)","v":0},{"$f":"SUMPRODUCT((Aktivierungsjahr<=Costs!$A386)*(AbschreibungAGr=Costs!T$353)*(AbschreibungAHKBvD))-SUM(T$267:T298)","v":0},{"$f":"SUMPRODUCT((Aktivierungsjahr<=Costs!$A386)*(AbschreibungAGr=Costs!U$353)*(AbschreibungAHKBvD))-SUM(U$267:U298)","v":0},{"$f":"SUMPRODUCT((Aktivierungsjahr<=Costs!$A386)*(AbschreibungAGr=Costs!V$353)*(AbschreibungAHKBvD))-SUM(V$267:V298)","v":0},{"$f":"SUMPRODUCT((Aktivierungsjahr<=Costs!$A386)*(AbschreibungAGr=Costs!W$353)*(AbschreibungAHKBvD))-SUM(W$267:W298)","v":0},{"$f":"SUMPRODUCT((Aktivierungsjahr<=Costs!$A386)*(AbschreibungAGr=Costs!X$353)*(AbschreibungAHKBvD))-SUM(X$267:X298)","v":0},{"$f":"SUMPRODUCT((Aktivierungsjahr<=Costs!$A386)*(AbschreibungAGr=Costs!Y$353)*(AbschreibungAHKBvD))-SUM(Y$267:Y298)","v":0},{"$f":"SUMPRODUCT((Aktivierungsjahr<=Costs!$A386)*(AbschreibungAGr=Costs!Z$353)*(AbschreibungAHKBvD))-SUM(Z$267:Z298)","v":0},{"$f":"SUMPRODUCT((Aktivierungsjahr<=Costs!$A386)*(AbschreibungAGr=Costs!AA$353)*(AbschreibungAHKBvD))-SUM(AA$267:AA298)","v":0},{"$f":"SUMPRODUCT((Aktivierungsjahr<=Costs!$A386)*(AbschreibungAGr=Costs!AB$353)*(AbschreibungAHKBvD))-SUM(AB$267:AB298)","v":0},{"$f":"SUMPRODUCT((Aktivierungsjahr<=Costs!$A386)*(AbschreibungAGr=Costs!AC$353)*(AbschreibungAHKBvD))-SUM(AC$267:AC298)","v":0},{"$f":"SUMPRODUCT((Aktivierungsjahr<=Costs!$A386)*(AbschreibungAGr=Costs!AD$353)*(AbschreibungAHKBvD))-SUM(AD$267:AD298)","v":0},{"$f":"SUMPRODUCT((Aktivierungsjahr<=Costs!$A386)*(AbschreibungAGr=Costs!AE$353)*(AbschreibungAHKBvD))-SUM(AE$267:AE298)","v":0},{"$f":"SUMPRODUCT((Aktivierungsjahr<=Costs!$A386)*(AbschreibungAGr=Costs!AF$353)*(AbschreibungAHKBvD))-SUM(AF$267:AF298)","v":0},{"$f":"SUMPRODUCT((Aktivierungsjahr<=Costs!$A386)*(AbschreibungAGr=Costs!AG$353)*(AbschreibungAHKBvD))-SUM(AG$267:AG298)","v":0},{"$f":"SUMPRODUCT((Aktivierungsjahr<=Costs!$A386)*(AbschreibungAGr=Costs!AH$353)*(AbschreibungAHKBvD))-SUM(AH$267:AH298)","v":0},{"$f":"SUMPRODUCT((Aktivierungsjahr<=Costs!$A386)*(AbschreibungAGr=Costs!AI$353)*(AbschreibungAHKBvD))-SUM(AI$267:AI298)","v":0},{"$f":"SUMPRODUCT((Aktivierungsjahr<=Costs!$A386)*(AbschreibungAGr=Costs!AJ$353)*(AbschreibungAHKBvD))-SUM(AJ$267:AJ298)","v":488888.88888888858},{"$f":"SUMPRODUCT((Aktivierungsjahr<=Costs!$A386)*(AbschreibungAGr=Costs!AK$353)*(AbschreibungAHKBvD))-SUM(AK$267:AK298)","v":0},{"$f":"SUMPRODUCT((Aktivierungsjahr<=Costs!$A386)*(AbschreibungAGr=Costs!AL$353)*(AbschreibungAHKBvD))-SUM(AL$267:AL298)","v":0},{"$f":"SUMPRODUCT((Aktivierungsjahr<=Costs!$A386)*(AbschreibungAGr=Costs!AM$353)*(AbschreibungAHKBvD))-SUM(AM$267:AM298)","v":0},{"$f":"SUMPRODUCT((Aktivierungsjahr<=Costs!$A386)*(AbschreibungAGr=Costs!AN$353)*(AbschreibungAHKBvD))-SUM(AN$267:AN298)","v":0},{"$f":"SUMPRODUCT((Aktivierungsjahr<=Costs!$A386)*(AbschreibungAGr=Costs!AO$353)*(AbschreibungAHKBvD))-SUM(AO$267:AO298)","v":0},{"$f":"SUMPRODUCT((Aktivierungsjahr<=Costs!$A386)*(AbschreibungAGr=Costs!AP$353)*(AbschreibungAHKBvD))-SUM(AP$267:AP298)","v":0},{"$f":"SUMPRODUCT((Aktivierungsjahr<=Costs!$A386)*(AbschreibungAGr=Costs!AQ$353)*(AbschreibungAHKBvD))-SUM(AQ$267:AQ298)","v":0}]
[2048,6466666.666666666,{"$f":"SUMPRODUCT((Aktivierungsjahr<=Costs!$A387)*(AbschreibungAGr=Costs!C$353)*(AbschreibungAHKBvD))-SUM(C$267:C299)","v":0},{"$f":"SUMPRODUCT((Aktivierungsjahr<=Costs!$A387)*(AbschreibungAGr=Costs!D$353)*(AbschreibungAHKBvD))-SUM(D$267:D299)","v":0},{"$f":"SUMPRODUCT((Aktivierungsjahr<=Costs!$A387)*(AbschreibungAGr=Costs!E$353)*(AbschreibungAHKBvD))-SUM(E$267:E299)","v":0},{"$f":"SUMPRODUCT((Aktivierungsjahr<=Costs!$A387)*(AbschreibungAGr=Costs!F$353)*(AbschreibungAHKBvD))-SUM(F$267:F299)","v":0},{"$f":"SUMPRODUCT((Aktivierungsjahr<=Costs!$A387)*(AbschreibungAGr=Costs!G$353)*(AbschreibungAHKBvD))-SUM(G$267:G299)","v":0},{"$f":"SUMPRODUCT((Aktivierungsjahr<=Costs!$A387)*(AbschreibungAGr=Costs!H$353)*(AbschreibungAHKBvD))-SUM(H$267:H299)","v":0},{"$f":"SUMPRODUCT((Aktivierungsjahr<=Costs!$A387)*(AbschreibungAGr=Costs!I$353)*(AbschreibungAHKBvD))-SUM(I$267:I299)","v":0},{"$f":"SUMPRODUCT((Aktivierungsjahr<=Costs!$A387)*(AbschreibungAGr=Costs!J$353)*(AbschreibungAHKBvD))-SUM(J$267:J299)","v":0},{"$f":"SUMPRODUCT((Aktivierungsjahr<=Costs!$A387)*(AbschreibungAGr=Costs!K$353)*(AbschreibungAHKBvD))-SUM(K$267:K299)","v":0},{"$f":"SUMPRODUCT((Aktivierungsjahr<=Costs!$A387)*(AbschreibungAGr=Costs!L$353)*(AbschreibungAHKBvD))-SUM(L$267:L299)","v":0},{"$f":"SUMPRODUCT((Aktivierungsjahr<=Costs!$A387)*(AbschreibungAGr=Costs!M$353)*(AbschreibungAHKBvD))-SUM(M$267:M299)","v":0},{"$f":"SUMPRODUCT((Aktivierungsjahr<=Costs!$A387)*(AbschreibungAGr=Costs!N$353)*(AbschreibungAHKBvD))-SUM(N$267:N299)","v":0},{"$f":"SUMPRODUCT((Aktivierungsjahr<=Costs!$A387)*(AbschreibungAGr=Costs!O$353)*(AbschreibungAHKBvD))-SUM(O$267:O299)","v":0},{"$f":"SUMPRODUCT((Aktivierungsjahr<=Costs!$A387)*(AbschreibungAGr=Costs!P$353)*(AbschreibungAHKBvD))-SUM(P$267:P299)","v":6000000},{"$f":"SUMPRODUCT((Aktivierungsjahr<=Costs!$A387)*(AbschreibungAGr=Costs!Q$353)*(AbschreibungAHKBvD))-SUM(Q$267:Q299)","v":0},{"$f":"SUMPRODUCT((Aktivierungsjahr<=Costs!$A387)*(AbschreibungAGr=Costs!R$353)*(AbschreibungAHKBvD))-SUM(R$267:R299)","v":0},{"$f":"SUMPRODUCT((Aktivierungsjahr<=Costs!$A387)*(AbschreibungAGr=Costs!S$353)*(AbschreibungAHKBvD))-SUM(S$267:S299)","v":0},{"$f":"SUMPRODUCT((Aktivierungsjahr<=Costs!$A387)*(AbschreibungAGr=Costs!T$353)*(AbschreibungAHKBvD))-SUM(T$267:T299)","v":0},{"$f":"SUMPRODUCT((Aktivierungsjahr<=Costs!$A387)*(AbschreibungAGr=Costs!U$353)*(AbschreibungAHKBvD))-SUM(U$267:U299)","v":0},{"$f":"SUMPRODUCT((Aktivierungsjahr<=Costs!$A387)*(AbschreibungAGr=Costs!V$353)*(AbschreibungAHKBvD))-SUM(V$267:V299)","v":0},{"$f":"SUMPRODUCT((Aktivierungsjahr<=Costs!$A387)*(AbschreibungAGr=Costs!W$353)*(AbschreibungAHKBvD))-SUM(W$267:W299)","v":0},{"$f":"SUMPRODUCT((Aktivierungsjahr<=Costs!$A387)*(AbschreibungAGr=Costs!X$353)*(AbschreibungAHKBvD))-SUM(X$267:X299)","v":0},{"$f":"SUMPRODUCT((Aktivierungsjahr<=Costs!$A387)*(AbschreibungAGr=Costs!Y$353)*(AbschreibungAHKBvD))-SUM(Y$267:Y299)","v":0},{"$f":"SUMPRODUCT((Aktivierungsjahr<=Costs!$A387)*(AbschreibungAGr=Costs!Z$353)*(AbschreibungAHKBvD))-SUM(Z$267:Z299)","v":0},{"$f":"SUMPRODUCT((Aktivierungsjahr<=Costs!$A387)*(AbschreibungAGr=Costs!AA$353)*(AbschreibungAHKBvD))-SUM(AA$267:AA299)","v":0},{"$f":"SUMPRODUCT((Aktivierungsjahr<=Costs!$A387)*(AbschreibungAGr=Costs!AB$353)*(AbschreibungAHKBvD))-SUM(AB$267:AB299)","v":0},{"$f":"SUMPRODUCT((Aktivierungsjahr<=Costs!$A387)*(AbschreibungAGr=Costs!AC$353)*(AbschreibungAHKBvD))-SUM(AC$267:AC299)","v":0},{"$f":"SUMPRODUCT((Aktivierungsjahr<=Costs!$A387)*(AbschreibungAGr=Costs!AD$353)*(AbschreibungAHKBvD))-SUM(AD$267:AD299)","v":0},{"$f":"SUMPRODUCT((Aktivierungsjahr<=Costs!$A387)*(AbschreibungAGr=Costs!AE$353)*(AbschreibungAHKBvD))-SUM(AE$267:AE299)","v":0},{"$f":"SUMPRODUCT((Aktivierungsjahr<=Costs!$A387)*(AbschreibungAGr=Costs!AF$353)*(AbschreibungAHKBvD))-SUM(AF$267:AF299)","v":0},{"$f":"SUMPRODUCT((Aktivierungsjahr<=Costs!$A387)*(AbschreibungAGr=Costs!AG$353)*(AbschreibungAHKBvD))-SUM(AG$267:AG299)","v":0},{"$f":"SUMPRODUCT((Aktivierungsjahr<=Costs!$A387)*(AbschreibungAGr=Costs!AH$353)*(AbschreibungAHKBvD))-SUM(AH$267:AH299)","v":0},{"$f":"SUMPRODUCT((Aktivierungsjahr<=Costs!$A387)*(AbschreibungAGr=Costs!AI$353)*(AbschreibungAHKBvD))-SUM(AI$267:AI299)","v":0},{"$f":"SUMPRODUCT((Aktivierungsjahr<=Costs!$A387)*(AbschreibungAGr=Costs!AJ$353)*(AbschreibungAHKBvD))-SUM(AJ$267:AJ299)","v":466666.6666666664},{"$f":"SUMPRODUCT((Aktivierungsjahr<=Costs!$A387)*(AbschreibungAGr=Costs!AK$353)*(AbschreibungAHKBvD))-SUM(AK$267:AK299)","v":0},{"$f":"SUMPRODUCT((Aktivierungsjahr<=Costs!$A387)*(AbschreibungAGr=Costs!AL$353)*(AbschreibungAHKBvD))-SUM(AL$267:AL299)","v":0},{"$f":"SUMPRODUCT((Aktivierungsjahr<=Costs!$A387)*(AbschreibungAGr=Costs!AM$353)*(AbschreibungAHKBvD))-SUM(AM$267:AM299)","v":0},{"$f":"SUMPRODUCT((Aktivierungsjahr<=Costs!$A387)*(AbschreibungAGr=Costs!AN$353)*(AbschreibungAHKBvD))-SUM(AN$267:AN299)","v":0},{"$f":"SUMPRODUCT((Aktivierungsjahr<=Costs!$A387)*(AbschreibungAGr=Costs!AO$353)*(AbschreibungAHKBvD))-SUM(AO$267:AO299)","v":0},{"$f":"SUMPRODUCT((Aktivierungsjahr<=Costs!$A387)*(AbschreibungAGr=Costs!AP$353)*(AbschreibungAHKBvD))-SUM(AP$267:AP299)","v":0},{"$f":"SUMPRODUCT((Aktivierungsjahr<=Costs!$A387)*(AbschreibungAGr=Costs!AQ$353)*(AbschreibungAHKBvD))-SUM(AQ$267:AQ299)","v":0}]
[2049,444444.44444444415,{"$f":"SUMPRODUCT((Aktivierungsjahr<=Costs!$A388)*(AbschreibungAGr=Costs!C$353)*(AbschreibungAHKBvD))-SUM(C$267:C300)","v":0},{"$f":"SUMPRODUCT((Aktivierungsjahr<=Costs!$A388)*(AbschreibungAGr=Costs!D$353)*(AbschreibungAHKBvD))-SUM(D$267:D300)","v":0},{"$f":"SUMPRODUCT((Aktivierungsjahr<=Costs!$A388)*(AbschreibungAGr=Costs!E$353)*(AbschreibungAHKBvD))-SUM(E$267:E300)","v":0},{"$f":"SUMPRODUCT((Aktivierungsjahr<=Costs!$A388)*(AbschreibungAGr=Costs!F$353)*(AbschreibungAHKBvD))-SUM(F$267:F300)","v":0},{"$f":"SUMPRODUCT((Aktivierungsjahr<=Costs!$A388)*(AbschreibungAGr=Costs!G$353)*(AbschreibungAHKBvD))-SUM(G$267:G300)","v":0},{"$f":"SUMPRODUCT((Aktivierungsjahr<=Costs!$A388)*(AbschreibungAGr=Costs!H$353)*(AbschreibungAHKBvD))-SUM(H$267:H300)","v":0},{"$f":"SUMPRODUCT((Aktivierungsjahr<=Costs!$A388)*(AbschreibungAGr=Costs!I$353)*(AbschreibungAHKBvD))-SUM(I$267:I300)","v":0},{"$f":"SUMPRODUCT((Aktivierungsjahr<=Costs!$A388)*(AbschreibungAGr=Costs!J$353)*(AbschreibungAHKBvD))-SUM(J$267:J300)","v":0},{"$f":"SUMPRODUCT((Aktivierungsjahr<=Costs!$A388)*(AbschreibungAGr=Costs!K$353)*(AbschreibungAHKBvD))-SUM(K$267:K300)","v":0},{"$f":"SUMPRODUCT((Aktivierungsjahr<=Costs!$A388)*(AbschreibungAGr=Costs!L$353)*(AbschreibungAHKBvD))-SUM(L$267:L300)","v":0},{"$f":"SUMPRODUCT((Aktivierungsjahr<=Costs!$A388)*(AbschreibungAGr=Costs!M$353)*(AbschreibungAHKBvD))-SUM(M$267:M300)","v":0},{"$f":"SUMPRODUCT((Aktivierungsjahr<=Costs!$A388)*(AbschreibungAGr=Costs!N$353)*(AbschreibungAHKBvD))-SUM(N$267:N300)","v":0},{"$f":"SUMPRODUCT((Aktivierungsjahr<=Costs!$A388)*(AbschreibungAGr=Costs!O$353)*(AbschreibungAHKBvD))-SUM(O$267:O300)","v":0},{"$f":"SUMPRODUCT((Aktivierungsjahr<=Costs!$A388)*(AbschreibungAGr=Costs!P$353)*(AbschreibungAHKBvD))-SUM(P$267:P300)","v":0},{"$f":"SUMPRODUCT((Aktivierungsjahr<=Costs!$A388)*(AbschreibungAGr=Costs!Q$353)*(AbschreibungAHKBvD))-SUM(Q$267:Q300)","v":0},{"$f":"SUMPRODUCT((Aktivierungsjahr<=Costs!$A388)*(AbschreibungAGr=Costs!R$353)*(AbschreibungAHKBvD))-SUM(R$267:R300)","v":0},{"$f":"SUMPRODUCT((Aktivierungsjahr<=Costs!$A388)*(AbschreibungAGr=Costs!S$353)*(AbschreibungAHKBvD))-SUM(S$267:S300)","v":0},{"$f":"SUMPRODUCT((Aktivierungsjahr<=Costs!$A388)*(AbschreibungAGr=Costs!T$353)*(AbschreibungAHKBvD))-SUM(T$267:T300)","v":0},{"$f":"SUMPRODUCT((Aktivierungsjahr<=Costs!$A388)*(AbschreibungAGr=Costs!U$353)*(AbschreibungAHKBvD))-SUM(U$267:U300)","v":0},{"$f":"SUMPRODUCT((Aktivierungsjahr<=Costs!$A388)*(AbschreibungAGr=Costs!V$353)*(AbschreibungAHKBvD))-SUM(V$267:V300)","v":0},{"$f":"SUMPRODUCT((Aktivierungsjahr<=Costs!$A388)*(AbschreibungAGr=Costs!W$353)*(AbschreibungAHKBvD))-SUM(W$267:W300)","v":0},{"$f":"SUMPRODUCT((Aktivierungsjahr<=Costs!$A388)*(AbschreibungAGr=Costs!X$353)*(AbschreibungAHKBvD))-SUM(X$267:X300)","v":0},{"$f":"SUMPRODUCT((Aktivierungsjahr<=Costs!$A388)*(AbschreibungAGr=Costs!Y$353)*(AbschreibungAHKBvD))-SUM(Y$267:Y300)","v":0},{"$f":"SUMPRODUCT((Aktivierungsjahr<=Costs!$A388)*(AbschreibungAGr=Costs!Z$353)*(AbschreibungAHKBvD))-SUM(Z$267:Z300)","v":0},{"$f":"SUMPRODUCT((Aktivierungsjahr<=Costs!$A388)*(AbschreibungAGr=Costs!AA$353)*(AbschreibungAHKBvD))-SUM(AA$267:AA300)","v":0},{"$f":"SUMPRODUCT((Aktivierungsjahr<=Costs!$A388)*(AbschreibungAGr=Costs!AB$353)*(AbschreibungAHKBvD))-SUM(AB$267:AB300)","v":0},{"$f":"SUMPRODUCT((Aktivierungsjahr<=Costs!$A388)*(AbschreibungAGr=Costs!AC$353)*(AbschreibungAHKBvD))-SUM(AC$267:AC300)","v":0},{"$f":"SUMPRODUCT((Aktivierungsjahr<=Costs!$A388)*(AbschreibungAGr=Costs!AD$353)*(AbschreibungAHKBvD))-SUM(AD$267:AD300)","v":0},{"$f":"SUMPRODUCT((Aktivierungsjahr<=Costs!$A388)*(AbschreibungAGr=Costs!AE$353)*(AbschreibungAHKBvD))-SUM(AE$267:AE300)","v":0},{"$f":"SUMPRODUCT((Aktivierungsjahr<=Costs!$A388)*(AbschreibungAGr=Costs!AF$353)*(AbschreibungAHKBvD))-SUM(AF$267:AF300)","v":0},{"$f":"SUMPRODUCT((Aktivierungsjahr<=Costs!$A388)*(AbschreibungAGr=Costs!AG$353)*(AbschreibungAHKBvD))-SUM(AG$267:AG300)","v":0},{"$f":"SUMPRODUCT((Aktivierungsjahr<=Costs!$A388)*(AbschreibungAGr=Costs!AH$353)*(AbschreibungAHKBvD))-SUM(AH$267:AH300)","v":0},{"$f":"SUMPRODUCT((Aktivierungsjahr<=Costs!$A388)*(AbschreibungAGr=Costs!AI$353)*(AbschreibungAHKBvD))-SUM(AI$267:AI300)","v":0},{"$f":"SUMPRODUCT((Aktivierungsjahr<=Costs!$A388)*(AbschreibungAGr=Costs!AJ$353)*(AbschreibungAHKBvD))-SUM(AJ$267:AJ300)","v":444444.44444444415},{"$f":"SUMPRODUCT((Aktivierungsjahr<=Costs!$A388)*(AbschreibungAGr=Costs!AK$353)*(AbschreibungAHKBvD))-SUM(AK$267:AK300)","v":0},{"$f":"SUMPRODUCT((Aktivierungsjahr<=Costs!$A388)*(AbschreibungAGr=Costs!AL$353)*(AbschreibungAHKBvD))-SUM(AL$267:AL300)","v":0},{"$f":"SUMPRODUCT((Aktivierungsjahr<=Costs!$A388)*(AbschreibungAGr=Costs!AM$353)*(AbschreibungAHKBvD))-SUM(AM$267:AM300)","v":0},{"$f":"SUMPRODUCT((Aktivierungsjahr<=Costs!$A388)*(AbschreibungAGr=Costs!AN$353)*(AbschreibungAHKBvD))-SUM(AN$267:AN300)","v":0},{"$f":"SUMPRODUCT((Aktivierungsjahr<=Costs!$A388)*(AbschreibungAGr=Costs!AO$353)*(AbschreibungAHKBvD))-SUM(AO$267:AO300)","v":0},{"$f":"SUMPRODUCT((Aktivierungsjahr<=Costs!$A388)*(AbschreibungAGr=Costs!AP$353)*(AbschreibungAHKBvD))-SUM(AP$267:AP300)","v":0},{"$f":"SUMPRODUCT((Aktivierungsjahr<=Costs!$A388)*(AbschreibungAGr=Costs!AQ$353)*(AbschreibungAHKBvD))-SUM(AQ$267:AQ300)","v":0}]
[2050,422222.2222222219,{"$f":"SUMPRODUCT((Aktivierungsjahr<=Costs!$A389)*(AbschreibungAGr=Costs!C$353)*(AbschreibungAHKBvD))-SUM(C$267:C301)","v":0},{"$f":"SUMPRODUCT((Aktivierungsjahr<=Costs!$A389)*(AbschreibungAGr=Costs!D$353)*(AbschreibungAHKBvD))-SUM(D$267:D301)","v":0},{"$f":"SUMPRODUCT((Aktivierungsjahr<=Costs!$A389)*(AbschreibungAGr=Costs!E$353)*(AbschreibungAHKBvD))-SUM(E$267:E301)","v":0},{"$f":"SUMPRODUCT((Aktivierungsjahr<=Costs!$A389)*(AbschreibungAGr=Costs!F$353)*(AbschreibungAHKBvD))-SUM(F$267:F301)","v":0},{"$f":"SUMPRODUCT((Aktivierungsjahr<=Costs!$A389)*(AbschreibungAGr=Costs!G$353)*(AbschreibungAHKBvD))-SUM(G$267:G301)","v":0},{"$f":"SUMPRODUCT((Aktivierungsjahr<=Costs!$A389)*(AbschreibungAGr=Costs!H$353)*(AbschreibungAHKBvD))-SUM(H$267:H301)","v":0},{"$f":"SUMPRODUCT((Aktivierungsjahr<=Costs!$A389)*(AbschreibungAGr=Costs!I$353)*(AbschreibungAHKBvD))-SUM(I$267:I301)","v":0},{"$f":"SUMPRODUCT((Aktivierungsjahr<=Costs!$A389)*(AbschreibungAGr=Costs!J$353)*(AbschreibungAHKBvD))-SUM(J$267:J301)","v":0},{"$f":"SUMPRODUCT((Aktivierungsjahr<=Costs!$A389)*(AbschreibungAGr=Costs!K$353)*(AbschreibungAHKBvD))-SUM(K$267:K301)","v":0},{"$f":"SUMPRODUCT((Aktivierungsjahr<=Costs!$A389)*(AbschreibungAGr=Costs!L$353)*(AbschreibungAHKBvD))-SUM(L$267:L301)","v":0},{"$f":"SUMPRODUCT((Aktivierungsjahr<=Costs!$A389)*(AbschreibungAGr=Costs!M$353)*(AbschreibungAHKBvD))-SUM(M$267:M301)","v":0},{"$f":"SUMPRODUCT((Aktivierungsjahr<=Costs!$A389)*(AbschreibungAGr=Costs!N$353)*(AbschreibungAHKBvD))-SUM(N$267:N301)","v":0},{"$f":"SUMPRODUCT((Aktivierungsjahr<=Costs!$A389)*(AbschreibungAGr=Costs!O$353)*(AbschreibungAHKBvD))-SUM(O$267:O301)","v":0},{"$f":"SUMPRODUCT((Aktivierungsjahr<=Costs!$A389)*(AbschreibungAGr=Costs!P$353)*(AbschreibungAHKBvD))-SUM(P$267:P301)","v":0},{"$f":"SUMPRODUCT((Aktivierungsjahr<=Costs!$A389)*(AbschreibungAGr=Costs!Q$353)*(AbschreibungAHKBvD))-SUM(Q$267:Q301)","v":0},{"$f":"SUMPRODUCT((Aktivierungsjahr<=Costs!$A389)*(AbschreibungAGr=Costs!R$353)*(AbschreibungAHKBvD))-SUM(R$267:R301)","v":0},{"$f":"SUMPRODUCT((Aktivierungsjahr<=Costs!$A389)*(AbschreibungAGr=Costs!S$353)*(AbschreibungAHKBvD))-SUM(S$267:S301)","v":0},{"$f":"SUMPRODUCT((Aktivierungsjahr<=Costs!$A389)*(AbschreibungAGr=Costs!T$353)*(AbschreibungAHKBvD))-SUM(T$267:T301)","v":0},{"$f":"SUMPRODUCT((Aktivierungsjahr<=Costs!$A389)*(AbschreibungAGr=Costs!U$353)*(AbschreibungAHKBvD))-SUM(U$267:U301)","v":0},{"$f":"SUMPRODUCT((Aktivierungsjahr<=Costs!$A389)*(AbschreibungAGr=Costs!V$353)*(AbschreibungAHKBvD))-SUM(V$267:V301)","v":0},{"$f":"SUMPRODUCT((Aktivierungsjahr<=Costs!$A389)*(AbschreibungAGr=Costs!W$353)*(AbschreibungAHKBvD))-SUM(W$267:W301)","v":0},{"$f":"SUMPRODUCT((Aktivierungsjahr<=Costs!$A389)*(AbschreibungAGr=Costs!X$353)*(AbschreibungAHKBvD))-SUM(X$267:X301)","v":0},{"$f":"SUMPRODUCT((Aktivierungsjahr<=Costs!$A389)*(AbschreibungAGr=Costs!Y$353)*(AbschreibungAHKBvD))-SUM(Y$267:Y301)","v":0},{"$f":"SUMPRODUCT((Aktivierungsjahr<=Costs!$A389)*(AbschreibungAGr=Costs!Z$353)*(AbschreibungAHKBvD))-SUM(Z$267:Z301)","v":0},{"$f":"SUMPRODUCT((Aktivierungsjahr<=Costs!$A389)*(AbschreibungAGr=Costs!AA$353)*(AbschreibungAHKBvD))-SUM(AA$267:AA301)","v":0},{"$f":"SUMPRODUCT((Aktivierungsjahr<=Costs!$A389)*(AbschreibungAGr=Costs!AB$353)*(AbschreibungAHKBvD))-SUM(AB$267:AB301)","v":0},{"$f":"SUMPRODUCT((Aktivierungsjahr<=Costs!$A389)*(AbschreibungAGr=Costs!AC$353)*(AbschreibungAHKBvD))-SUM(AC$267:AC301)","v":0},{"$f":"SUMPRODUCT((Aktivierungsjahr<=Costs!$A389)*(AbschreibungAGr=Costs!AD$353)*(AbschreibungAHKBvD))-SUM(AD$267:AD301)","v":0},{"$f":"SUMPRODUCT((Aktivierungsjahr<=Costs!$A389)*(AbschreibungAGr=Costs!AE$353)*(AbschreibungAHKBvD))-SUM(AE$267:AE301)","v":0},{"$f":"SUMPRODUCT((Aktivierungsjahr<=Costs!$A389)*(AbschreibungAGr=Costs!AF$353)*(AbschreibungAHKBvD))-SUM(AF$267:AF301)","v":0},{"$f":"SUMPRODUCT((Aktivierungsjahr<=Costs!$A389)*(AbschreibungAGr=Costs!AG$353)*(AbschreibungAHKBvD))-SUM(AG$267:AG301)","v":0},{"$f":"SUMPRODUCT((Aktivierungsjahr<=Costs!$A389)*(AbschreibungAGr=Costs!AH$353)*(AbschreibungAHKBvD))-SUM(AH$267:AH301)","v":0},{"$f":"SUMPRODUCT((Aktivierungsjahr<=Costs!$A389)*(AbschreibungAGr=Costs!AI$353)*(AbschreibungAHKBvD))-SUM(AI$267:AI301)","v":0},{"$f":"SUMPRODUCT((Aktivierungsjahr<=Costs!$A389)*(AbschreibungAGr=Costs!AJ$353)*(AbschreibungAHKBvD))-SUM(AJ$267:AJ301)","v":422222.2222222219},{"$f":"SUMPRODUCT((Aktivierungsjahr<=Costs!$A389)*(AbschreibungAGr=Costs!AK$353)*(AbschreibungAHKBvD))-SUM(AK$267:AK301)","v":0},{"$f":"SUMPRODUCT((Aktivierungsjahr<=Costs!$A389)*(AbschreibungAGr=Costs!AL$353)*(AbschreibungAHKBvD))-SUM(AL$267:AL301)","v":0},{"$f":"SUMPRODUCT((Aktivierungsjahr<=Costs!$A389)*(AbschreibungAGr=Costs!AM$353)*(AbschreibungAHKBvD))-SUM(AM$267:AM301)","v":0},{"$f":"SUMPRODUCT((Aktivierungsjahr<=Costs!$A389)*(AbschreibungAGr=Costs!AN$353)*(AbschreibungAHKBvD))-SUM(AN$267:AN301)","v":0},{"$f":"SUMPRODUCT((Aktivierungsjahr<=Costs!$A389)*(AbschreibungAGr=Costs!AO$353)*(AbschreibungAHKBvD))-SUM(AO$267:AO301)","v":0},{"$f":"SUMPRODUCT((Aktivierungsjahr<=Costs!$A389)*(AbschreibungAGr=Costs!AP$353)*(AbschreibungAHKBvD))-SUM(AP$267:AP301)","v":0},{"$f":"SUMPRODUCT((Aktivierungsjahr<=Costs!$A389)*(AbschreibungAGr=Costs!AQ$353)*(AbschreibungAHKBvD))-SUM(AQ$267:AQ301)","v":0}]
[2051,399999.99999999965,{"$f":"SUMPRODUCT((Aktivierungsjahr<=Costs!$A390)*(AbschreibungAGr=Costs!C$353)*(AbschreibungAHKBvD))-SUM(C$267:C302)","v":0},{"$f":"SUMPRODUCT((Aktivierungsjahr<=Costs!$A390)*(AbschreibungAGr=Costs!D$353)*(AbschreibungAHKBvD))-SUM(D$267:D302)","v":0},{"$f":"SUMPRODUCT((Aktivierungsjahr<=Costs!$A390)*(AbschreibungAGr=Costs!E$353)*(AbschreibungAHKBvD))-SUM(E$267:E302)","v":0},{"$f":"SUMPRODUCT((Aktivierungsjahr<=Costs!$A390)*(AbschreibungAGr=Costs!F$353)*(AbschreibungAHKBvD))-SUM(F$267:F302)","v":0},{"$f":"SUMPRODUCT((Aktivierungsjahr<=Costs!$A390)*(AbschreibungAGr=Costs!G$353)*(AbschreibungAHKBvD))-SUM(G$267:G302)","v":0},{"$f":"SUMPRODUCT((Aktivierungsjahr<=Costs!$A390)*(AbschreibungAGr=Costs!H$353)*(AbschreibungAHKBvD))-SUM(H$267:H302)","v":0},{"$f":"SUMPRODUCT((Aktivierungsjahr<=Costs!$A390)*(AbschreibungAGr=Costs!I$353)*(AbschreibungAHKBvD))-SUM(I$267:I302)","v":0},{"$f":"SUMPRODUCT((Aktivierungsjahr<=Costs!$A390)*(AbschreibungAGr=Costs!J$353)*(AbschreibungAHKBvD))-SUM(J$267:J302)","v":0},{"$f":"SUMPRODUCT((Aktivierungsjahr<=Costs!$A390)*(AbschreibungAGr=Costs!K$353)*(AbschreibungAHKBvD))-SUM(K$267:K302)","v":0},{"$f":"SUMPRODUCT((Aktivierungsjahr<=Costs!$A390)*(AbschreibungAGr=Costs!L$353)*(AbschreibungAHKBvD))-SUM(L$267:L302)","v":0},{"$f":"SUMPRODUCT((Aktivierungsjahr<=Costs!$A390)*(AbschreibungAGr=Costs!M$353)*(AbschreibungAHKBvD))-SUM(M$267:M302)","v":0},{"$f":"SUMPRODUCT((Aktivierungsjahr<=Costs!$A390)*(AbschreibungAGr=Costs!N$353)*(AbschreibungAHKBvD))-SUM(N$267:N302)","v":0},{"$f":"SUMPRODUCT((Aktivierungsjahr<=Costs!$A390)*(AbschreibungAGr=Costs!O$353)*(AbschreibungAHKBvD))-SUM(O$267:O302)","v":0},{"$f":"SUMPRODUCT((Aktivierungsjahr<=Costs!$A390)*(AbschreibungAGr=Costs!P$353)*(AbschreibungAHKBvD))-SUM(P$267:P302)","v":0},{"$f":"SUMPRODUCT((Aktivierungsjahr<=Costs!$A390)*(AbschreibungAGr=Costs!Q$353)*(AbschreibungAHKBvD))-SUM(Q$267:Q302)","v":0},{"$f":"SUMPRODUCT((Aktivierungsjahr<=Costs!$A390)*(AbschreibungAGr=Costs!R$353)*(AbschreibungAHKBvD))-SUM(R$267:R302)","v":0},{"$f":"SUMPRODUCT((Aktivierungsjahr<=Costs!$A390)*(AbschreibungAGr=Costs!S$353)*(AbschreibungAHKBvD))-SUM(S$267:S302)","v":0},{"$f":"SUMPRODUCT((Aktivierungsjahr<=Costs!$A390)*(AbschreibungAGr=Costs!T$353)*(AbschreibungAHKBvD))-SUM(T$267:T302)","v":0},{"$f":"SUMPRODUCT((Aktivierungsjahr<=Costs!$A390)*(AbschreibungAGr=Costs!U$353)*(AbschreibungAHKBvD))-SUM(U$267:U302)","v":0},{"$f":"SUMPRODUCT((Aktivierungsjahr<=Costs!$A390)*(AbschreibungAGr=Costs!V$353)*(AbschreibungAHKBvD))-SUM(V$267:V302)","v":0},{"$f":"SUMPRODUCT((Aktivierungsjahr<=Costs!$A390)*(AbschreibungAGr=Costs!W$353)*(AbschreibungAHKBvD))-SUM(W$267:W302)","v":0},{"$f":"SUMPRODUCT((Aktivierungsjahr<=Costs!$A390)*(AbschreibungAGr=Costs!X$353)*(AbschreibungAHKBvD))-SUM(X$267:X302)","v":0},{"$f":"SUMPRODUCT((Aktivierungsjahr<=Costs!$A390)*(AbschreibungAGr=Costs!Y$353)*(AbschreibungAHKBvD))-SUM(Y$267:Y302)","v":0},{"$f":"SUMPRODUCT((Aktivierungsjahr<=Costs!$A390)*(AbschreibungAGr=Costs!Z$353)*(AbschreibungAHKBvD))-SUM(Z$267:Z302)","v":0},{"$f":"SUMPRODUCT((Aktivierungsjahr<=Costs!$A390)*(AbschreibungAGr=Costs!AA$353)*(AbschreibungAHKBvD))-SUM(AA$267:AA302)","v":0},{"$f":"SUMPRODUCT((Aktivierungsjahr<=Costs!$A390)*(AbschreibungAGr=Costs!AB$353)*(AbschreibungAHKBvD))-SUM(AB$267:AB302)","v":0},{"$f":"SUMPRODUCT((Aktivierungsjahr<=Costs!$A390)*(AbschreibungAGr=Costs!AC$353)*(AbschreibungAHKBvD))-SUM(AC$267:AC302)","v":0},{"$f":"SUMPRODUCT((Aktivierungsjahr<=Costs!$A390)*(AbschreibungAGr=Costs!AD$353)*(AbschreibungAHKBvD))-SUM(AD$267:AD302)","v":0},{"$f":"SUMPRODUCT((Aktivierungsjahr<=Costs!$A390)*(AbschreibungAGr=Costs!AE$353)*(AbschreibungAHKBvD))-SUM(AE$267:AE302)","v":0},{"$f":"SUMPRODUCT((Aktivierungsjahr<=Costs!$A390)*(AbschreibungAGr=Costs!AF$353)*(AbschreibungAHKBvD))-SUM(AF$267:AF302)","v":0},{"$f":"SUMPRODUCT((Aktivierungsjahr<=Costs!$A390)*(AbschreibungAGr=Costs!AG$353)*(AbschreibungAHKBvD))-SUM(AG$267:AG302)","v":0},{"$f":"SUMPRODUCT((Aktivierungsjahr<=Costs!$A390)*(AbschreibungAGr=Costs!AH$353)*(AbschreibungAHKBvD))-SUM(AH$267:AH302)","v":0},{"$f":"SUMPRODUCT((Aktivierungsjahr<=Costs!$A390)*(AbschreibungAGr=Costs!AI$353)*(AbschreibungAHKBvD))-SUM(AI$267:AI302)","v":0},{"$f":"SUMPRODUCT((Aktivierungsjahr<=Costs!$A390)*(AbschreibungAGr=Costs!AJ$353)*(AbschreibungAHKBvD))-SUM(AJ$267:AJ302)","v":399999.99999999965},{"$f":"SUMPRODUCT((Aktivierungsjahr<=Costs!$A390)*(AbschreibungAGr=Costs!AK$353)*(AbschreibungAHKBvD))-SUM(AK$267:AK302)","v":0},{"$f":"SUMPRODUCT((Aktivierungsjahr<=Costs!$A390)*(AbschreibungAGr=Costs!AL$353)*(AbschreibungAHKBvD))-SUM(AL$267:AL302)","v":0},{"$f":"SUMPRODUCT((Aktivierungsjahr<=Costs!$A390)*(AbschreibungAGr=Costs!AM$353)*(AbschreibungAHKBvD))-SUM(AM$267:AM302)","v":0},{"$f":"SUMPRODUCT((Aktivierungsjahr<=Costs!$A390)*(AbschreibungAGr=Costs!AN$353)*(AbschreibungAHKBvD))-SUM(AN$267:AN302)","v":0},{"$f":"SUMPRODUCT((Aktivierungsjahr<=Costs!$A390)*(AbschreibungAGr=Costs!AO$353)*(AbschreibungAHKBvD))-SUM(AO$267:AO302)","v":0},{"$f":"SUMPRODUCT((Aktivierungsjahr<=Costs!$A390)*(AbschreibungAGr=Costs!AP$353)*(AbschreibungAHKBvD))-SUM(AP$267:AP302)","v":0},{"$f":"SUMPRODUCT((Aktivierungsjahr<=Costs!$A390)*(AbschreibungAGr=Costs!AQ$353)*(AbschreibungAHKBvD))-SUM(AQ$267:AQ302)","v":0}]
[2052,377777.7777777774,{"$f":"SUMPRODUCT((Aktivierungsjahr<=Costs!$A391)*(AbschreibungAGr=Costs!C$353)*(AbschreibungAHKBvD))-SUM(C$267:C303)","v":0},{"$f":"SUMPRODUCT((Aktivierungsjahr<=Costs!$A391)*(AbschreibungAGr=Costs!D$353)*(AbschreibungAHKBvD))-SUM(D$267:D303)","v":0},{"$f":"SUMPRODUCT((Aktivierungsjahr<=Costs!$A391)*(AbschreibungAGr=Costs!E$353)*(AbschreibungAHKBvD))-SUM(E$267:E303)","v":0},{"$f":"SUMPRODUCT((Aktivierungsjahr<=Costs!$A391)*(AbschreibungAGr=Costs!F$353)*(AbschreibungAHKBvD))-SUM(F$267:F303)","v":0},{"$f":"SUMPRODUCT((Aktivierungsjahr<=Costs!$A391)*(AbschreibungAGr=Costs!G$353)*(AbschreibungAHKBvD))-SUM(G$267:G303)","v":0},{"$f":"SUMPRODUCT((Aktivierungsjahr<=Costs!$A391)*(AbschreibungAGr=Costs!H$353)*(AbschreibungAHKBvD))-SUM(H$267:H303)","v":0},{"$f":"SUMPRODUCT((Aktivierungsjahr<=Costs!$A391)*(AbschreibungAGr=Costs!I$353)*(AbschreibungAHKBvD))-SUM(I$267:I303)","v":0},{"$f":"SUMPRODUCT((Aktivierungsjahr<=Costs!$A391)*(AbschreibungAGr=Costs!J$353)*(AbschreibungAHKBvD))-SUM(J$267:J303)","v":0},{"$f":"SUMPRODUCT((Aktivierungsjahr<=Costs!$A391)*(AbschreibungAGr=Costs!K$353)*(AbschreibungAHKBvD))-SUM(K$267:K303)","v":0},{"$f":"SUMPRODUCT((Aktivierungsjahr<=Costs!$A391)*(AbschreibungAGr=Costs!L$353)*(AbschreibungAHKBvD))-SUM(L$267:L303)","v":0},{"$f":"SUMPRODUCT((Aktivierungsjahr<=Costs!$A391)*(AbschreibungAGr=Costs!M$353)*(AbschreibungAHKBvD))-SUM(M$267:M303)","v":0},{"$f":"SUMPRODUCT((Aktivierungsjahr<=Costs!$A391)*(AbschreibungAGr=Costs!N$353)*(AbschreibungAHKBvD))-SUM(N$267:N303)","v":0},{"$f":"SUMPRODUCT((Aktivierungsjahr<=Costs!$A391)*(AbschreibungAGr=Costs!O$353)*(AbschreibungAHKBvD))-SUM(O$267:O303)","v":0},{"$f":"SUMPRODUCT((Aktivierungsjahr<=Costs!$A391)*(AbschreibungAGr=Costs!P$353)*(AbschreibungAHKBvD))-SUM(P$267:P303)","v":0},{"$f":"SUMPRODUCT((Aktivierungsjahr<=Costs!$A391)*(AbschreibungAGr=Costs!Q$353)*(AbschreibungAHKBvD))-SUM(Q$267:Q303)","v":0},{"$f":"SUMPRODUCT((Aktivierungsjahr<=Costs!$A391)*(AbschreibungAGr=Costs!R$353)*(AbschreibungAHKBvD))-SUM(R$267:R303)","v":0},{"$f":"SUMPRODUCT((Aktivierungsjahr<=Costs!$A391)*(AbschreibungAGr=Costs!S$353)*(AbschreibungAHKBvD))-SUM(S$267:S303)","v":0},{"$f":"SUMPRODUCT((Aktivierungsjahr<=Costs!$A391)*(AbschreibungAGr=Costs!T$353)*(AbschreibungAHKBvD))-SUM(T$267:T303)","v":0},{"$f":"SUMPRODUCT((Aktivierungsjahr<=Costs!$A391)*(AbschreibungAGr=Costs!U$353)*(AbschreibungAHKBvD))-SUM(U$267:U303)","v":0},{"$f":"SUMPRODUCT((Aktivierungsjahr<=Costs!$A391)*(AbschreibungAGr=Costs!V$353)*(AbschreibungAHKBvD))-SUM(V$267:V303)","v":0},{"$f":"SUMPRODUCT((Aktivierungsjahr<=Costs!$A391)*(AbschreibungAGr=Costs!W$353)*(AbschreibungAHKBvD))-SUM(W$267:W303)","v":0},{"$f":"SUMPRODUCT((Aktivierungsjahr<=Costs!$A391)*(AbschreibungAGr=Costs!X$353)*(AbschreibungAHKBvD))-SUM(X$267:X303)","v":0},{"$f":"SUMPRODUCT((Aktivierungsjahr<=Costs!$A391)*(AbschreibungAGr=Costs!Y$353)*(AbschreibungAHKBvD))-SUM(Y$267:Y303)","v":0},{"$f":"SUMPRODUCT((Aktivierungsjahr<=Costs!$A391)*(AbschreibungAGr=Costs!Z$353)*(AbschreibungAHKBvD))-SUM(Z$267:Z303)","v":0},{"$f":"SUMPRODUCT((Aktivierungsjahr<=Costs!$A391)*(AbschreibungAGr=Costs!AA$353)*(AbschreibungAHKBvD))-SUM(AA$267:AA303)","v":0},{"$f":"SUMPRODUCT((Aktivierungsjahr<=Costs!$A391)*(AbschreibungAGr=Costs!AB$353)*(AbschreibungAHKBvD))-SUM(AB$267:AB303)","v":0},{"$f":"SUMPRODUCT((Aktivierungsjahr<=Costs!$A391)*(AbschreibungAGr=Costs!AC$353)*(AbschreibungAHKBvD))-SUM(AC$267:AC303)","v":0},{"$f":"SUMPRODUCT((Aktivierungsjahr<=Costs!$A391)*(AbschreibungAGr=Costs!AD$353)*(AbschreibungAHKBvD))-SUM(AD$267:AD303)","v":0},{"$f":"SUMPRODUCT((Aktivierungsjahr<=Costs!$A391)*(AbschreibungAGr=Costs!AE$353)*(AbschreibungAHKBvD))-SUM(AE$267:AE303)","v":0},{"$f":"SUMPRODUCT((Aktivierungsjahr<=Costs!$A391)*(AbschreibungAGr=Costs!AF$353)*(AbschreibungAHKBvD))-SUM(AF$267:AF303)","v":0},{"$f":"SUMPRODUCT((Aktivierungsjahr<=Costs!$A391)*(AbschreibungAGr=Costs!AG$353)*(AbschreibungAHKBvD))-SUM(AG$267:AG303)","v":0},{"$f":"SUMPRODUCT((Aktivierungsjahr<=Costs!$A391)*(AbschreibungAGr=Costs!AH$353)*(AbschreibungAHKBvD))-SUM(AH$267:AH303)","v":0},{"$f":"SUMPRODUCT((Aktivierungsjahr<=Costs!$A391)*(AbschreibungAGr=Costs!AI$353)*(AbschreibungAHKBvD))-SUM(AI$267:AI303)","v":0},{"$f":"SUMPRODUCT((Aktivierungsjahr<=Costs!$A391)*(AbschreibungAGr=Costs!AJ$353)*(AbschreibungAHKBvD))-SUM(AJ$267:AJ303)","v":377777.7777777774},{"$f":"SUMPRODUCT((Aktivierungsjahr<=Costs!$A391)*(AbschreibungAGr=Costs!AK$353)*(AbschreibungAHKBvD))-SUM(AK$267:AK303)","v":0},{"$f":"SUMPRODUCT((Aktivierungsjahr<=Costs!$A391)*(AbschreibungAGr=Costs!AL$353)*(AbschreibungAHKBvD))-SUM(AL$267:AL303)","v":0},{"$f":"SUMPRODUCT((Aktivierungsjahr<=Costs!$A391)*(AbschreibungAGr=Costs!AM$353)*(AbschreibungAHKBvD))-SUM(AM$267:AM303)","v":0},{"$f":"SUMPRODUCT((Aktivierungsjahr<=Costs!$A391)*(AbschreibungAGr=Costs!AN$353)*(AbschreibungAHKBvD))-SUM(AN$267:AN303)","v":0},{"$f":"SUMPRODUCT((Aktivierungsjahr<=Costs!$A391)*(AbschreibungAGr=Costs!AO$353)*(AbschreibungAHKBvD))-SUM(AO$267:AO303)","v":0},{"$f":"SUMPRODUCT((Aktivierungsjahr<=Costs!$A391)*(AbschreibungAGr=Costs!AP$353)*(AbschreibungAHKBvD))-SUM(AP$267:AP303)","v":0},{"$f":"SUMPRODUCT((Aktivierungsjahr<=Costs!$A391)*(AbschreibungAGr=Costs!AQ$353)*(AbschreibungAHKBvD))-SUM(AQ$267:AQ303)","v":0}]
[2053,355555.55555555515,{"$f":"SUMPRODUCT((Aktivierungsjahr<=Costs!$A392)*(AbschreibungAGr=Costs!C$353)*(AbschreibungAHKBvD))-SUM(C$267:C304)","v":0},{"$f":"SUMPRODUCT((Aktivierungsjahr<=Costs!$A392)*(AbschreibungAGr=Costs!D$353)*(AbschreibungAHKBvD))-SUM(D$267:D304)","v":0},{"$f":"SUMPRODUCT((Aktivierungsjahr<=Costs!$A392)*(AbschreibungAGr=Costs!E$353)*(AbschreibungAHKBvD))-SUM(E$267:E304)","v":0},{"$f":"SUMPRODUCT((Aktivierungsjahr<=Costs!$A392)*(AbschreibungAGr=Costs!F$353)*(AbschreibungAHKBvD))-SUM(F$267:F304)","v":0},{"$f":"SUMPRODUCT((Aktivierungsjahr<=Costs!$A392)*(AbschreibungAGr=Costs!G$353)*(AbschreibungAHKBvD))-SUM(G$267:G304)","v":0},{"$f":"SUMPRODUCT((Aktivierungsjahr<=Costs!$A392)*(AbschreibungAGr=Costs!H$353)*(AbschreibungAHKBvD))-SUM(H$267:H304)","v":0},{"$f":"SUMPRODUCT((Aktivierungsjahr<=Costs!$A392)*(AbschreibungAGr=Costs!I$353)*(AbschreibungAHKBvD))-SUM(I$267:I304)","v":0},{"$f":"SUMPRODUCT((Aktivierungsjahr<=Costs!$A392)*(AbschreibungAGr=Costs!J$353)*(AbschreibungAHKBvD))-SUM(J$267:J304)","v":0},{"$f":"SUMPRODUCT((Aktivierungsjahr<=Costs!$A392)*(AbschreibungAGr=Costs!K$353)*(AbschreibungAHKBvD))-SUM(K$267:K304)","v":0},{"$f":"SUMPRODUCT((Aktivierungsjahr<=Costs!$A392)*(AbschreibungAGr=Costs!L$353)*(AbschreibungAHKBvD))-SUM(L$267:L304)","v":0},{"$f":"SUMPRODUCT((Aktivierungsjahr<=Costs!$A392)*(AbschreibungAGr=Costs!M$353)*(AbschreibungAHKBvD))-SUM(M$267:M304)","v":0},{"$f":"SUMPRODUCT((Aktivierungsjahr<=Costs!$A392)*(AbschreibungAGr=Costs!N$353)*(AbschreibungAHKBvD))-SUM(N$267:N304)","v":0},{"$f":"SUMPRODUCT((Aktivierungsjahr<=Costs!$A392)*(AbschreibungAGr=Costs!O$353)*(AbschreibungAHKBvD))-SUM(O$267:O304)","v":0},{"$f":"SUMPRODUCT((Aktivierungsjahr<=Costs!$A392)*(AbschreibungAGr=Costs!P$353)*(AbschreibungAHKBvD))-SUM(P$267:P304)","v":0},{"$f":"SUMPRODUCT((Aktivierungsjahr<=Costs!$A392)*(AbschreibungAGr=Costs!Q$353)*(AbschreibungAHKBvD))-SUM(Q$267:Q304)","v":0},{"$f":"SUMPRODUCT((Aktivierungsjahr<=Costs!$A392)*(AbschreibungAGr=Costs!R$353)*(AbschreibungAHKBvD))-SUM(R$267:R304)","v":0},{"$f":"SUMPRODUCT((Aktivierungsjahr<=Costs!$A392)*(AbschreibungAGr=Costs!S$353)*(AbschreibungAHKBvD))-SUM(S$267:S304)","v":0},{"$f":"SUMPRODUCT((Aktivierungsjahr<=Costs!$A392)*(AbschreibungAGr=Costs!T$353)*(AbschreibungAHKBvD))-SUM(T$267:T304)","v":0},{"$f":"SUMPRODUCT((Aktivierungsjahr<=Costs!$A392)*(AbschreibungAGr=Costs!U$353)*(AbschreibungAHKBvD))-SUM(U$267:U304)","v":0},{"$f":"SUMPRODUCT((Aktivierungsjahr<=Costs!$A392)*(AbschreibungAGr=Costs!V$353)*(AbschreibungAHKBvD))-SUM(V$267:V304)","v":0},{"$f":"SUMPRODUCT((Aktivierungsjahr<=Costs!$A392)*(AbschreibungAGr=Costs!W$353)*(AbschreibungAHKBvD))-SUM(W$267:W304)","v":0},{"$f":"SUMPRODUCT((Aktivierungsjahr<=Costs!$A392)*(AbschreibungAGr=Costs!X$353)*(AbschreibungAHKBvD))-SUM(X$267:X304)","v":0},{"$f":"SUMPRODUCT((Aktivierungsjahr<=Costs!$A392)*(AbschreibungAGr=Costs!Y$353)*(AbschreibungAHKBvD))-SUM(Y$267:Y304)","v":0},{"$f":"SUMPRODUCT((Aktivierungsjahr<=Costs!$A392)*(AbschreibungAGr=Costs!Z$353)*(AbschreibungAHKBvD))-SUM(Z$267:Z304)","v":0},{"$f":"SUMPRODUCT((Aktivierungsjahr<=Costs!$A392)*(AbschreibungAGr=Costs!AA$353)*(AbschreibungAHKBvD))-SUM(AA$267:AA304)","v":0},{"$f":"SUMPRODUCT((Aktivierungsjahr<=Costs!$A392)*(AbschreibungAGr=Costs!AB$353)*(AbschreibungAHKBvD))-SUM(AB$267:AB304)","v":0},{"$f":"SUMPRODUCT((Aktivierungsjahr<=Costs!$A392)*(AbschreibungAGr=Costs!AC$353)*(AbschreibungAHKBvD))-SUM(AC$267:AC304)","v":0},{"$f":"SUMPRODUCT((Aktivierungsjahr<=Costs!$A392)*(AbschreibungAGr=Costs!AD$353)*(AbschreibungAHKBvD))-SUM(AD$267:AD304)","v":0},{"$f":"SUMPRODUCT((Aktivierungsjahr<=Costs!$A392)*(AbschreibungAGr=Costs!AE$353)*(AbschreibungAHKBvD))-SUM(AE$267:AE304)","v":0},{"$f":"SUMPRODUCT((Aktivierungsjahr<=Costs!$A392)*(AbschreibungAGr=Costs!AF$353)*(AbschreibungAHKBvD))-SUM(AF$267:AF304)","v":0},{"$f":"SUMPRODUCT((Aktivierungsjahr<=Costs!$A392)*(AbschreibungAGr=Costs!AG$353)*(AbschreibungAHKBvD))-SUM(AG$267:AG304)","v":0},{"$f":"SUMPRODUCT((Aktivierungsjahr<=Costs!$A392)*(AbschreibungAGr=Costs!AH$353)*(AbschreibungAHKBvD))-SUM(AH$267:AH304)","v":0},{"$f":"SUMPRODUCT((Aktivierungsjahr<=Costs!$A392)*(AbschreibungAGr=Costs!AI$353)*(AbschreibungAHKBvD))-SUM(AI$267:AI304)","v":0},{"$f":"SUMPRODUCT((Aktivierungsjahr<=Costs!$A392)*(AbschreibungAGr=Costs!AJ$353)*(AbschreibungAHKBvD))-SUM(AJ$267:AJ304)","v":355555.55555555515},{"$f":"SUMPRODUCT((Aktivierungsjahr<=Costs!$A392)*(AbschreibungAGr=Costs!AK$353)*(AbschreibungAHKBvD))-SUM(AK$267:AK304)","v":0},{"$f":"SUMPRODUCT((Aktivierungsjahr<=Costs!$A392)*(AbschreibungAGr=Costs!AL$353)*(AbschreibungAHKBvD))-SUM(AL$267:AL304)","v":0},{"$f":"SUMPRODUCT((Aktivierungsjahr<=Costs!$A392)*(AbschreibungAGr=Costs!AM$353)*(AbschreibungAHKBvD))-SUM(AM$267:AM304)","v":0},{"$f":"SUMPRODUCT((Aktivierungsjahr<=Costs!$A392)*(AbschreibungAGr=Costs!AN$353)*(AbschreibungAHKBvD))-SUM(AN$267:AN304)","v":0},{"$f":"SUMPRODUCT((Aktivierungsjahr<=Costs!$A392)*(AbschreibungAGr=Costs!AO$353)*(AbschreibungAHKBvD))-SUM(AO$267:AO304)","v":0},{"$f":"SUMPRODUCT((Aktivierungsjahr<=Costs!$A392)*(AbschreibungAGr=Costs!AP$353)*(AbschreibungAHKBvD))-SUM(AP$267:AP304)","v":0},{"$f":"SUMPRODUCT((Aktivierungsjahr<=Costs!$A392)*(AbschreibungAGr=Costs!AQ$353)*(AbschreibungAHKBvD))-SUM(AQ$267:AQ304)","v":0}]
[2054,333333.33333333291,{"$f":"SUMPRODUCT((Aktivierungsjahr<=Costs!$A393)*(AbschreibungAGr=Costs!C$353)*(AbschreibungAHKBvD))-SUM(C$267:C305)","v":0},{"$f":"SUMPRODUCT((Aktivierungsjahr<=Costs!$A393)*(AbschreibungAGr=Costs!D$353)*(AbschreibungAHKBvD))-SUM(D$267:D305)","v":0},{"$f":"SUMPRODUCT((Aktivierungsjahr<=Costs!$A393)*(AbschreibungAGr=Costs!E$353)*(AbschreibungAHKBvD))-SUM(E$267:E305)","v":0},{"$f":"SUMPRODUCT((Aktivierungsjahr<=Costs!$A393)*(AbschreibungAGr=Costs!F$353)*(AbschreibungAHKBvD))-SUM(F$267:F305)","v":0},{"$f":"SUMPRODUCT((Aktivierungsjahr<=Costs!$A393)*(AbschreibungAGr=Costs!G$353)*(AbschreibungAHKBvD))-SUM(G$267:G305)","v":0},{"$f":"SUMPRODUCT((Aktivierungsjahr<=Costs!$A393)*(AbschreibungAGr=Costs!H$353)*(AbschreibungAHKBvD))-SUM(H$267:H305)","v":0},{"$f":"SUMPRODUCT((Aktivierungsjahr<=Costs!$A393)*(AbschreibungAGr=Costs!I$353)*(AbschreibungAHKBvD))-SUM(I$267:I305)","v":0},{"$f":"SUMPRODUCT((Aktivierungsjahr<=Costs!$A393)*(AbschreibungAGr=Costs!J$353)*(AbschreibungAHKBvD))-SUM(J$267:J305)","v":0},{"$f":"SUMPRODUCT((Aktivierungsjahr<=Costs!$A393)*(AbschreibungAGr=Costs!K$353)*(AbschreibungAHKBvD))-SUM(K$267:K305)","v":0},{"$f":"SUMPRODUCT((Aktivierungsjahr<=Costs!$A393)*(AbschreibungAGr=Costs!L$353)*(AbschreibungAHKBvD))-SUM(L$267:L305)","v":0},{"$f":"SUMPRODUCT((Aktivierungsjahr<=Costs!$A393)*(AbschreibungAGr=Costs!M$353)*(AbschreibungAHKBvD))-SUM(M$267:M305)","v":0},{"$f":"SUMPRODUCT((Aktivierungsjahr<=Costs!$A393)*(AbschreibungAGr=Costs!N$353)*(AbschreibungAHKBvD))-SUM(N$267:N305)","v":0},{"$f":"SUMPRODUCT((Aktivierungsjahr<=Costs!$A393)*(AbschreibungAGr=Costs!O$353)*(AbschreibungAHKBvD))-SUM(O$267:O305)","v":0},{"$f":"SUMPRODUCT((Aktivierungsjahr<=Costs!$A393)*(AbschreibungAGr=Costs!P$353)*(AbschreibungAHKBvD))-SUM(P$267:P305)","v":0},{"$f":"SUMPRODUCT((Aktivierungsjahr<=Costs!$A393)*(AbschreibungAGr=Costs!Q$353)*(AbschreibungAHKBvD))-SUM(Q$267:Q305)","v":0},{"$f":"SUMPRODUCT((Aktivierungsjahr<=Costs!$A393)*(AbschreibungAGr=Costs!R$353)*(AbschreibungAHKBvD))-SUM(R$267:R305)","v":0},{"$f":"SUMPRODUCT((Aktivierungsjahr<=Costs!$A393)*(AbschreibungAGr=Costs!S$353)*(AbschreibungAHKBvD))-SUM(S$267:S305)","v":0},{"$f":"SUMPRODUCT((Aktivierungsjahr<=Costs!$A393)*(AbschreibungAGr=Costs!T$353)*(AbschreibungAHKBvD))-SUM(T$267:T305)","v":0},{"$f":"SUMPRODUCT((Aktivierungsjahr<=Costs!$A393)*(AbschreibungAGr=Costs!U$353)*(AbschreibungAHKBvD))-SUM(U$267:U305)","v":0},{"$f":"SUMPRODUCT((Aktivierungsjahr<=Costs!$A393)*(AbschreibungAGr=Costs!V$353)*(AbschreibungAHKBvD))-SUM(V$267:V305)","v":0},{"$f":"SUMPRODUCT((Aktivierungsjahr<=Costs!$A393)*(AbschreibungAGr=Costs!W$353)*(AbschreibungAHKBvD))-SUM(W$267:W305)","v":0},{"$f":"SUMPRODUCT((Aktivierungsjahr<=Costs!$A393)*(AbschreibungAGr=Costs!X$353)*(AbschreibungAHKBvD))-SUM(X$267:X305)","v":0},{"$f":"SUMPRODUCT((Aktivierungsjahr<=Costs!$A393)*(AbschreibungAGr=Costs!Y$353)*(AbschreibungAHKBvD))-SUM(Y$267:Y305)","v":0},{"$f":"SUMPRODUCT((Aktivierungsjahr<=Costs!$A393)*(AbschreibungAGr=Costs!Z$353)*(AbschreibungAHKBvD))-SUM(Z$267:Z305)","v":0},{"$f":"SUMPRODUCT((Aktivierungsjahr<=Costs!$A393)*(AbschreibungAGr=Costs!AA$353)*(AbschreibungAHKBvD))-SUM(AA$267:AA305)","v":0},{"$f":"SUMPRODUCT((Aktivierungsjahr<=Costs!$A393)*(AbschreibungAGr=Costs!AB$353)*(AbschreibungAHKBvD))-SUM(AB$267:AB305)","v":0},{"$f":"SUMPRODUCT((Aktivierungsjahr<=Costs!$A393)*(AbschreibungAGr=Costs!AC$353)*(AbschreibungAHKBvD))-SUM(AC$267:AC305)","v":0},{"$f":"SUMPRODUCT((Aktivierungsjahr<=Costs!$A393)*(AbschreibungAGr=Costs!AD$353)*(AbschreibungAHKBvD))-SUM(AD$267:AD305)","v":0},{"$f":"SUMPRODUCT((Aktivierungsjahr<=Costs!$A393)*(AbschreibungAGr=Costs!AE$353)*(AbschreibungAHKBvD))-SUM(AE$267:AE305)","v":0},{"$f":"SUMPRODUCT((Aktivierungsjahr<=Costs!$A393)*(AbschreibungAGr=Costs!AF$353)*(AbschreibungAHKBvD))-SUM(AF$267:AF305)","v":0},{"$f":"SUMPRODUCT((Aktivierungsjahr<=Costs!$A393)*(AbschreibungAGr=Costs!AG$353)*(AbschreibungAHKBvD))-SUM(AG$267:AG305)","v":0},{"$f":"SUMPRODUCT((Aktivierungsjahr<=Costs!$A393)*(AbschreibungAGr=Costs!AH$353)*(AbschreibungAHKBvD))-SUM(AH$267:AH305)","v":0},{"$f":"SUMPRODUCT((Aktivierungsjahr<=Costs!$A393)*(AbschreibungAGr=Costs!AI$353)*(AbschreibungAHKBvD))-SUM(AI$267:AI305)","v":0},{"$f":"SUMPRODUCT((Aktivierungsjahr<=Costs!$A393)*(AbschreibungAGr=Costs!AJ$353)*(AbschreibungAHKBvD))-SUM(AJ$267:AJ305)","v":333333.33333333291},{"$f":"SUMPRODUCT((Aktivierungsjahr<=Costs!$A393)*(AbschreibungAGr=Costs!AK$353)*(AbschreibungAHKBvD))-SUM(AK$267:AK305)","v":0},{"$f":"SUMPRODUCT((Aktivierungsjahr<=Costs!$A393)*(AbschreibungAGr=Costs!AL$353)*(AbschreibungAHKBvD))-SUM(AL$267:AL305)","v":0},{"$f":"SUMPRODUCT((Aktivierungsjahr<=Costs!$A393)*(AbschreibungAGr=Costs!AM$353)*(AbschreibungAHKBvD))-SUM(AM$267:AM305)","v":0},{"$f":"SUMPRODUCT((Aktivierungsjahr<=Costs!$A393)*(AbschreibungAGr=Costs!AN$353)*(AbschreibungAHKBvD))-SUM(AN$267:AN305)","v":0},{"$f":"SUMPRODUCT((Aktivierungsjahr<=Costs!$A393)*(AbschreibungAGr=Costs!AO$353)*(AbschreibungAHKBvD))-SUM(AO$267:AO305)","v":0},{"$f":"SUMPRODUCT((Aktivierungsjahr<=Costs!$A393)*(AbschreibungAGr=Costs!AP$353)*(AbschreibungAHKBvD))-SUM(AP$267:AP305)","v":0},{"$f":"SUMPRODUCT((Aktivierungsjahr<=Costs!$A393)*(AbschreibungAGr=Costs!AQ$353)*(AbschreibungAHKBvD))-SUM(AQ$267:AQ305)","v":0}]
[2055,311111.11111111066,{"$f":"SUMPRODUCT((Aktivierungsjahr<=Costs!$A394)*(AbschreibungAGr=Costs!C$353)*(AbschreibungAHKBvD))-SUM(C$267:C306)","v":0},{"$f":"SUMPRODUCT((Aktivierungsjahr<=Costs!$A394)*(AbschreibungAGr=Costs!D$353)*(AbschreibungAHKBvD))-SUM(D$267:D306)","v":0},{"$f":"SUMPRODUCT((Aktivierungsjahr<=Costs!$A394)*(AbschreibungAGr=Costs!E$353)*(AbschreibungAHKBvD))-SUM(E$267:E306)","v":0},{"$f":"SUMPRODUCT((Aktivierungsjahr<=Costs!$A394)*(AbschreibungAGr=Costs!F$353)*(AbschreibungAHKBvD))-SUM(F$267:F306)","v":0},{"$f":"SUMPRODUCT((Aktivierungsjahr<=Costs!$A394)*(AbschreibungAGr=Costs!G$353)*(AbschreibungAHKBvD))-SUM(G$267:G306)","v":0},{"$f":"SUMPRODUCT((Aktivierungsjahr<=Costs!$A394)*(AbschreibungAGr=Costs!H$353)*(AbschreibungAHKBvD))-SUM(H$267:H306)","v":0},{"$f":"SUMPRODUCT((Aktivierungsjahr<=Costs!$A394)*(AbschreibungAGr=Costs!I$353)*(AbschreibungAHKBvD))-SUM(I$267:I306)","v":0},{"$f":"SUMPRODUCT((Aktivierungsjahr<=Costs!$A394)*(AbschreibungAGr=Costs!J$353)*(AbschreibungAHKBvD))-SUM(J$267:J306)","v":0},{"$f":"SUMPRODUCT((Aktivierungsjahr<=Costs!$A394)*(AbschreibungAGr=Costs!K$353)*(AbschreibungAHKBvD))-SUM(K$267:K306)","v":0},{"$f":"SUMPRODUCT((Aktivierungsjahr<=Costs!$A394)*(AbschreibungAGr=Costs!L$353)*(AbschreibungAHKBvD))-SUM(L$267:L306)","v":0},{"$f":"SUMPRODUCT((Aktivierungsjahr<=Costs!$A394)*(AbschreibungAGr=Costs!M$353)*(AbschreibungAHKBvD))-SUM(M$267:M306)","v":0},{"$f":"SUMPRODUCT((Aktivierungsjahr<=Costs!$A394)*(AbschreibungAGr=Costs!N$353)*(AbschreibungAHKBvD))-SUM(N$267:N306)","v":0},{"$f":"SUMPRODUCT((Aktivierungsjahr<=Costs!$A394)*(AbschreibungAGr=Costs!O$353)*(AbschreibungAHKBvD))-SUM(O$267:O306)","v":0},{"$f":"SUMPRODUCT((Aktivierungsjahr<=Costs!$A394)*(AbschreibungAGr=Costs!P$353)*(AbschreibungAHKBvD))-SUM(P$267:P306)","v":0},{"$f":"SUMPRODUCT((Aktivierungsjahr<=Costs!$A394)*(AbschreibungAGr=Costs!Q$353)*(AbschreibungAHKBvD))-SUM(Q$267:Q306)","v":0},{"$f":"SUMPRODUCT((Aktivierungsjahr<=Costs!$A394)*(AbschreibungAGr=Costs!R$353)*(AbschreibungAHKBvD))-SUM(R$267:R306)","v":0},{"$f":"SUMPRODUCT((Aktivierungsjahr<=Costs!$A394)*(AbschreibungAGr=Costs!S$353)*(AbschreibungAHKBvD))-SUM(S$267:S306)","v":0},{"$f":"SUMPRODUCT((Aktivierungsjahr<=Costs!$A394)*(AbschreibungAGr=Costs!T$353)*(AbschreibungAHKBvD))-SUM(T$267:T306)","v":0},{"$f":"SUMPRODUCT((Aktivierungsjahr<=Costs!$A394)*(AbschreibungAGr=Costs!U$353)*(AbschreibungAHKBvD))-SUM(U$267:U306)","v":0},{"$f":"SUMPRODUCT((Aktivierungsjahr<=Costs!$A394)*(AbschreibungAGr=Costs!V$353)*(AbschreibungAHKBvD))-SUM(V$267:V306)","v":0},{"$f":"SUMPRODUCT((Aktivierungsjahr<=Costs!$A394)*(AbschreibungAGr=Costs!W$353)*(AbschreibungAHKBvD))-SUM(W$267:W306)","v":0},{"$f":"SUMPRODUCT((Aktivierungsjahr<=Costs!$A394)*(AbschreibungAGr=Costs!X$353)*(AbschreibungAHKBvD))-SUM(X$267:X306)","v":0},{"$f":"SUMPRODUCT((Aktivierungsjahr<=Costs!$A394)*(AbschreibungAGr=Costs!Y$353)*(AbschreibungAHKBvD))-SUM(Y$267:Y306)","v":0},{"$f":"SUMPRODUCT((Aktivierungsjahr<=Costs!$A394)*(AbschreibungAGr=Costs!Z$353)*(AbschreibungAHKBvD))-SUM(Z$267:Z306)","v":0},{"$f":"SUMPRODUCT((Aktivierungsjahr<=Costs!$A394)*(AbschreibungAGr=Costs!AA$353)*(AbschreibungAHKBvD))-SUM(AA$267:AA306)","v":0},{"$f":"SUMPRODUCT((Aktivierungsjahr<=Costs!$A394)*(AbschreibungAGr=Costs!AB$353)*(AbschreibungAHKBvD))-SUM(AB$267:AB306)","v":0},{"$f":"SUMPRODUCT((Aktivierungsjahr<=Costs!$A394)*(AbschreibungAGr=Costs!AC$353)*(AbschreibungAHKBvD))-SUM(AC$267:AC306)","v":0},{"$f":"SUMPRODUCT((Aktivierungsjahr<=Costs!$A394)*(AbschreibungAGr=Costs!AD$353)*(AbschreibungAHKBvD))-SUM(AD$267:AD306)","v":0},{"$f":"SUMPRODUCT((Aktivierungsjahr<=Costs!$A394)*(AbschreibungAGr=Costs!AE$353)*(AbschreibungAHKBvD))-SUM(AE$267:AE306)","v":0},{"$f":"SUMPRODUCT((Aktivierungsjahr<=Costs!$A394)*(AbschreibungAGr=Costs!AF$353)*(AbschreibungAHKBvD))-SUM(AF$267:AF306)","v":0},{"$f":"SUMPRODUCT((Aktivierungsjahr<=Costs!$A394)*(AbschreibungAGr=Costs!AG$353)*(AbschreibungAHKBvD))-SUM(AG$267:AG306)","v":0},{"$f":"SUMPRODUCT((Aktivierungsjahr<=Costs!$A394)*(AbschreibungAGr=Costs!AH$353)*(AbschreibungAHKBvD))-SUM(AH$267:AH306)","v":0},{"$f":"SUMPRODUCT((Aktivierungsjahr<=Costs!$A394)*(AbschreibungAGr=Costs!AI$353)*(AbschreibungAHKBvD))-SUM(AI$267:AI306)","v":0},{"$f":"SUMPRODUCT((Aktivierungsjahr<=Costs!$A394)*(AbschreibungAGr=Costs!AJ$353)*(AbschreibungAHKBvD))-SUM(AJ$267:AJ306)","v":311111.11111111066},{"$f":"SUMPRODUCT((Aktivierungsjahr<=Costs!$A394)*(AbschreibungAGr=Costs!AK$353)*(AbschreibungAHKBvD))-SUM(AK$267:AK306)","v":0},{"$f":"SUMPRODUCT((Aktivierungsjahr<=Costs!$A394)*(AbschreibungAGr=Costs!AL$353)*(AbschreibungAHKBvD))-SUM(AL$267:AL306)","v":0},{"$f":"SUMPRODUCT((Aktivierungsjahr<=Costs!$A394)*(AbschreibungAGr=Costs!AM$353)*(AbschreibungAHKBvD))-SUM(AM$267:AM306)","v":0},{"$f":"SUMPRODUCT((Aktivierungsjahr<=Costs!$A394)*(AbschreibungAGr=Costs!AN$353)*(AbschreibungAHKBvD))-SUM(AN$267:AN306)","v":0},{"$f":"SUMPRODUCT((Aktivierungsjahr<=Costs!$A394)*(AbschreibungAGr=Costs!AO$353)*(AbschreibungAHKBvD))-SUM(AO$267:AO306)","v":0},{"$f":"SUMPRODUCT((Aktivierungsjahr<=Costs!$A394)*(AbschreibungAGr=Costs!AP$353)*(AbschreibungAHKBvD))-SUM(AP$267:AP306)","v":0},{"$f":"SUMPRODUCT((Aktivierungsjahr<=Costs!$A394)*(AbschreibungAGr=Costs!AQ$353)*(AbschreibungAHKBvD))-SUM(AQ$267:AQ306)","v":0}]
[2056,288888.88888888841,{"$f":"SUMPRODUCT((Aktivierungsjahr<=Costs!$A395)*(AbschreibungAGr=Costs!C$353)*(AbschreibungAHKBvD))-SUM(C$267:C307)","v":0},{"$f":"SUMPRODUCT((Aktivierungsjahr<=Costs!$A395)*(AbschreibungAGr=Costs!D$353)*(AbschreibungAHKBvD))-SUM(D$267:D307)","v":0},{"$f":"SUMPRODUCT((Aktivierungsjahr<=Costs!$A395)*(AbschreibungAGr=Costs!E$353)*(AbschreibungAHKBvD))-SUM(E$267:E307)","v":0},{"$f":"SUMPRODUCT((Aktivierungsjahr<=Costs!$A395)*(AbschreibungAGr=Costs!F$353)*(AbschreibungAHKBvD))-SUM(F$267:F307)","v":0},{"$f":"SUMPRODUCT((Aktivierungsjahr<=Costs!$A395)*(AbschreibungAGr=Costs!G$353)*(AbschreibungAHKBvD))-SUM(G$267:G307)","v":0},{"$f":"SUMPRODUCT((Aktivierungsjahr<=Costs!$A395)*(AbschreibungAGr=Costs!H$353)*(AbschreibungAHKBvD))-SUM(H$267:H307)","v":0},{"$f":"SUMPRODUCT((Aktivierungsjahr<=Costs!$A395)*(AbschreibungAGr=Costs!I$353)*(AbschreibungAHKBvD))-SUM(I$267:I307)","v":0},{"$f":"SUMPRODUCT((Aktivierungsjahr<=Costs!$A395)*(AbschreibungAGr=Costs!J$353)*(AbschreibungAHKBvD))-SUM(J$267:J307)","v":0},{"$f":"SUMPRODUCT((Aktivierungsjahr<=Costs!$A395)*(AbschreibungAGr=Costs!K$353)*(AbschreibungAHKBvD))-SUM(K$267:K307)","v":0},{"$f":"SUMPRODUCT((Aktivierungsjahr<=Costs!$A395)*(AbschreibungAGr=Costs!L$353)*(AbschreibungAHKBvD))-SUM(L$267:L307)","v":0},{"$f":"SUMPRODUCT((Aktivierungsjahr<=Costs!$A395)*(AbschreibungAGr=Costs!M$353)*(AbschreibungAHKBvD))-SUM(M$267:M307)","v":0},{"$f":"SUMPRODUCT((Aktivierungsjahr<=Costs!$A395)*(AbschreibungAGr=Costs!N$353)*(AbschreibungAHKBvD))-SUM(N$267:N307)","v":0},{"$f":"SUMPRODUCT((Aktivierungsjahr<=Costs!$A395)*(AbschreibungAGr=Costs!O$353)*(AbschreibungAHKBvD))-SUM(O$267:O307)","v":0},{"$f":"SUMPRODUCT((Aktivierungsjahr<=Costs!$A395)*(AbschreibungAGr=Costs!P$353)*(AbschreibungAHKBvD))-SUM(P$267:P307)","v":0},{"$f":"SUMPRODUCT((Aktivierungsjahr<=Costs!$A395)*(AbschreibungAGr=Costs!Q$353)*(AbschreibungAHKBvD))-SUM(Q$267:Q307)","v":0},{"$f":"SUMPRODUCT((Aktivierungsjahr<=Costs!$A395)*(AbschreibungAGr=Costs!R$353)*(AbschreibungAHKBvD))-SUM(R$267:R307)","v":0},{"$f":"SUMPRODUCT((Aktivierungsjahr<=Costs!$A395)*(AbschreibungAGr=Costs!S$353)*(AbschreibungAHKBvD))-SUM(S$267:S307)","v":0},{"$f":"SUMPRODUCT((Aktivierungsjahr<=Costs!$A395)*(AbschreibungAGr=Costs!T$353)*(AbschreibungAHKBvD))-SUM(T$267:T307)","v":0},{"$f":"SUMPRODUCT((Aktivierungsjahr<=Costs!$A395)*(AbschreibungAGr=Costs!U$353)*(AbschreibungAHKBvD))-SUM(U$267:U307)","v":0},{"$f":"SUMPRODUCT((Aktivierungsjahr<=Costs!$A395)*(AbschreibungAGr=Costs!V$353)*(AbschreibungAHKBvD))-SUM(V$267:V307)","v":0},{"$f":"SUMPRODUCT((Aktivierungsjahr<=Costs!$A395)*(AbschreibungAGr=Costs!W$353)*(AbschreibungAHKBvD))-SUM(W$267:W307)","v":0},{"$f":"SUMPRODUCT((Aktivierungsjahr<=Costs!$A395)*(AbschreibungAGr=Costs!X$353)*(AbschreibungAHKBvD))-SUM(X$267:X307)","v":0},{"$f":"SUMPRODUCT((Aktivierungsjahr<=Costs!$A395)*(AbschreibungAGr=Costs!Y$353)*(AbschreibungAHKBvD))-SUM(Y$267:Y307)","v":0},{"$f":"SUMPRODUCT((Aktivierungsjahr<=Costs!$A395)*(AbschreibungAGr=Costs!Z$353)*(AbschreibungAHKBvD))-SUM(Z$267:Z307)","v":0},{"$f":"SUMPRODUCT((Aktivierungsjahr<=Costs!$A395)*(AbschreibungAGr=Costs!AA$353)*(AbschreibungAHKBvD))-SUM(AA$267:AA307)","v":0},{"$f":"SUMPRODUCT((Aktivierungsjahr<=Costs!$A395)*(AbschreibungAGr=Costs!AB$353)*(AbschreibungAHKBvD))-SUM(AB$267:AB307)","v":0},{"$f":"SUMPRODUCT((Aktivierungsjahr<=Costs!$A395)*(AbschreibungAGr=Costs!AC$353)*(AbschreibungAHKBvD))-SUM(AC$267:AC307)","v":0},{"$f":"SUMPRODUCT((Aktivierungsjahr<=Costs!$A395)*(AbschreibungAGr=Costs!AD$353)*(AbschreibungAHKBvD))-SUM(AD$267:AD307)","v":0},{"$f":"SUMPRODUCT((Aktivierungsjahr<=Costs!$A395)*(AbschreibungAGr=Costs!AE$353)*(AbschreibungAHKBvD))-SUM(AE$267:AE307)","v":0},{"$f":"SUMPRODUCT((Aktivierungsjahr<=Costs!$A395)*(AbschreibungAGr=Costs!AF$353)*(AbschreibungAHKBvD))-SUM(AF$267:AF307)","v":0},{"$f":"SUMPRODUCT((Aktivierungsjahr<=Costs!$A395)*(AbschreibungAGr=Costs!AG$353)*(AbschreibungAHKBvD))-SUM(AG$267:AG307)","v":0},{"$f":"SUMPRODUCT((Aktivierungsjahr<=Costs!$A395)*(AbschreibungAGr=Costs!AH$353)*(AbschreibungAHKBvD))-SUM(AH$267:AH307)","v":0},{"$f":"SUMPRODUCT((Aktivierungsjahr<=Costs!$A395)*(AbschreibungAGr=Costs!AI$353)*(AbschreibungAHKBvD))-SUM(AI$267:AI307)","v":0},{"$f":"SUMPRODUCT((Aktivierungsjahr<=Costs!$A395)*(AbschreibungAGr=Costs!AJ$353)*(AbschreibungAHKBvD))-SUM(AJ$267:AJ307)","v":288888.88888888841},{"$f":"SUMPRODUCT((Aktivierungsjahr<=Costs!$A395)*(AbschreibungAGr=Costs!AK$353)*(AbschreibungAHKBvD))-SUM(AK$267:AK307)","v":0},{"$f":"SUMPRODUCT((Aktivierungsjahr<=Costs!$A395)*(AbschreibungAGr=Costs!AL$353)*(AbschreibungAHKBvD))-SUM(AL$267:AL307)","v":0},{"$f":"SUMPRODUCT((Aktivierungsjahr<=Costs!$A395)*(AbschreibungAGr=Costs!AM$353)*(AbschreibungAHKBvD))-SUM(AM$267:AM307)","v":0},{"$f":"SUMPRODUCT((Aktivierungsjahr<=Costs!$A395)*(AbschreibungAGr=Costs!AN$353)*(AbschreibungAHKBvD))-SUM(AN$267:AN307)","v":0},{"$f":"SUMPRODUCT((Aktivierungsjahr<=Costs!$A395)*(AbschreibungAGr=Costs!AO$353)*(AbschreibungAHKBvD))-SUM(AO$267:AO307)","v":0},{"$f":"SUMPRODUCT((Aktivierungsjahr<=Costs!$A395)*(AbschreibungAGr=Costs!AP$353)*(AbschreibungAHKBvD))-SUM(AP$267:AP307)","v":0},{"$f":"SUMPRODUCT((Aktivierungsjahr<=Costs!$A395)*(AbschreibungAGr=Costs!AQ$353)*(AbschreibungAHKBvD))-SUM(AQ$267:AQ307)","v":0}]
[2057,266666.66666666616,{"$f":"SUMPRODUCT((Aktivierungsjahr<=Costs!$A396)*(AbschreibungAGr=Costs!C$353)*(AbschreibungAHKBvD))-SUM(C$267:C308)","v":0},{"$f":"SUMPRODUCT((Aktivierungsjahr<=Costs!$A396)*(AbschreibungAGr=Costs!D$353)*(AbschreibungAHKBvD))-SUM(D$267:D308)","v":0},{"$f":"SUMPRODUCT((Aktivierungsjahr<=Costs!$A396)*(AbschreibungAGr=Costs!E$353)*(AbschreibungAHKBvD))-SUM(E$267:E308)","v":0},{"$f":"SUMPRODUCT((Aktivierungsjahr<=Costs!$A396)*(AbschreibungAGr=Costs!F$353)*(AbschreibungAHKBvD))-SUM(F$267:F308)","v":0},{"$f":"SUMPRODUCT((Aktivierungsjahr<=Costs!$A396)*(AbschreibungAGr=Costs!G$353)*(AbschreibungAHKBvD))-SUM(G$267:G308)","v":0},{"$f":"SUMPRODUCT((Aktivierungsjahr<=Costs!$A396)*(AbschreibungAGr=Costs!H$353)*(AbschreibungAHKBvD))-SUM(H$267:H308)","v":0},{"$f":"SUMPRODUCT((Aktivierungsjahr<=Costs!$A396)*(AbschreibungAGr=Costs!I$353)*(AbschreibungAHKBvD))-SUM(I$267:I308)","v":0},{"$f":"SUMPRODUCT((Aktivierungsjahr<=Costs!$A396)*(AbschreibungAGr=Costs!J$353)*(AbschreibungAHKBvD))-SUM(J$267:J308)","v":0},{"$f":"SUMPRODUCT((Aktivierungsjahr<=Costs!$A396)*(AbschreibungAGr=Costs!K$353)*(AbschreibungAHKBvD))-SUM(K$267:K308)","v":0},{"$f":"SUMPRODUCT((Aktivierungsjahr<=Costs!$A396)*(AbschreibungAGr=Costs!L$353)*(AbschreibungAHKBvD))-SUM(L$267:L308)","v":0},{"$f":"SUMPRODUCT((Aktivierungsjahr<=Costs!$A396)*(AbschreibungAGr=Costs!M$353)*(AbschreibungAHKBvD))-SUM(M$267:M308)","v":0},{"$f":"SUMPRODUCT((Aktivierungsjahr<=Costs!$A396)*(AbschreibungAGr=Costs!N$353)*(AbschreibungAHKBvD))-SUM(N$267:N308)","v":0},{"$f":"SUMPRODUCT((Aktivierungsjahr<=Costs!$A396)*(AbschreibungAGr=Costs!O$353)*(AbschreibungAHKBvD))-SUM(O$267:O308)","v":0},{"$f":"SUMPRODUCT((Aktivierungsjahr<=Costs!$A396)*(AbschreibungAGr=Costs!P$353)*(AbschreibungAHKBvD))-SUM(P$267:P308)","v":0},{"$f":"SUMPRODUCT((Aktivierungsjahr<=Costs!$A396)*(AbschreibungAGr=Costs!Q$353)*(AbschreibungAHKBvD))-SUM(Q$267:Q308)","v":0},{"$f":"SUMPRODUCT((Aktivierungsjahr<=Costs!$A396)*(AbschreibungAGr=Costs!R$353)*(AbschreibungAHKBvD))-SUM(R$267:R308)","v":0},{"$f":"SUMPRODUCT((Aktivierungsjahr<=Costs!$A396)*(AbschreibungAGr=Costs!S$353)*(AbschreibungAHKBvD))-SUM(S$267:S308)","v":0},{"$f":"SUMPRODUCT((Aktivierungsjahr<=Costs!$A396)*(AbschreibungAGr=Costs!T$353)*(AbschreibungAHKBvD))-SUM(T$267:T308)","v":0},{"$f":"SUMPRODUCT((Aktivierungsjahr<=Costs!$A396)*(AbschreibungAGr=Costs!U$353)*(AbschreibungAHKBvD))-SUM(U$267:U308)","v":0},{"$f":"SUMPRODUCT((Aktivierungsjahr<=Costs!$A396)*(AbschreibungAGr=Costs!V$353)*(AbschreibungAHKBvD))-SUM(V$267:V308)","v":0},{"$f":"SUMPRODUCT((Aktivierungsjahr<=Costs!$A396)*(AbschreibungAGr=Costs!W$353)*(AbschreibungAHKBvD))-SUM(W$267:W308)","v":0},{"$f":"SUMPRODUCT((Aktivierungsjahr<=Costs!$A396)*(AbschreibungAGr=Costs!X$353)*(AbschreibungAHKBvD))-SUM(X$267:X308)","v":0},{"$f":"SUMPRODUCT((Aktivierungsjahr<=Costs!$A396)*(AbschreibungAGr=Costs!Y$353)*(AbschreibungAHKBvD))-SUM(Y$267:Y308)","v":0},{"$f":"SUMPRODUCT((Aktivierungsjahr<=Costs!$A396)*(AbschreibungAGr=Costs!Z$353)*(AbschreibungAHKBvD))-SUM(Z$267:Z308)","v":0},{"$f":"SUMPRODUCT((Aktivierungsjahr<=Costs!$A396)*(AbschreibungAGr=Costs!AA$353)*(AbschreibungAHKBvD))-SUM(AA$267:AA308)","v":0},{"$f":"SUMPRODUCT((Aktivierungsjahr<=Costs!$A396)*(AbschreibungAGr=Costs!AB$353)*(AbschreibungAHKBvD))-SUM(AB$267:AB308)","v":0},{"$f":"SUMPRODUCT((Aktivierungsjahr<=Costs!$A396)*(AbschreibungAGr=Costs!AC$353)*(AbschreibungAHKBvD))-SUM(AC$267:AC308)","v":0},{"$f":"SUMPRODUCT((Aktivierungsjahr<=Costs!$A396)*(AbschreibungAGr=Costs!AD$353)*(AbschreibungAHKBvD))-SUM(AD$267:AD308)","v":0},{"$f":"SUMPRODUCT((Aktivierungsjahr<=Costs!$A396)*(AbschreibungAGr=Costs!AE$353)*(AbschreibungAHKBvD))-SUM(AE$267:AE308)","v":0},{"$f":"SUMPRODUCT((Aktivierungsjahr<=Costs!$A396)*(AbschreibungAGr=Costs!AF$353)*(AbschreibungAHKBvD))-SUM(AF$267:AF308)","v":0},{"$f":"SUMPRODUCT((Aktivierungsjahr<=Costs!$A396)*(AbschreibungAGr=Costs!AG$353)*(AbschreibungAHKBvD))-SUM(AG$267:AG308)","v":0},{"$f":"SUMPRODUCT((Aktivierungsjahr<=Costs!$A396)*(AbschreibungAGr=Costs!AH$353)*(AbschreibungAHKBvD))-SUM(AH$267:AH308)","v":0},{"$f":"SUMPRODUCT((Aktivierungsjahr<=Costs!$A396)*(AbschreibungAGr=Costs!AI$353)*(AbschreibungAHKBvD))-SUM(AI$267:AI308)","v":0},{"$f":"SUMPRODUCT((Aktivierungsjahr<=Costs!$A396)*(AbschreibungAGr=Costs!AJ$353)*(AbschreibungAHKBvD))-SUM(AJ$267:AJ308)","v":266666.66666666616},{"$f":"SUMPRODUCT((Aktivierungsjahr<=Costs!$A396)*(AbschreibungAGr=Costs!AK$353)*(AbschreibungAHKBvD))-SUM(AK$267:AK308)","v":0},{"$f":"SUMPRODUCT((Aktivierungsjahr<=Costs!$A396)*(AbschreibungAGr=Costs!AL$353)*(AbschreibungAHKBvD))-SUM(AL$267:AL308)","v":0},{"$f":"SUMPRODUCT((Aktivierungsjahr<=Costs!$A396)*(AbschreibungAGr=Costs!AM$353)*(AbschreibungAHKBvD))-SUM(AM$267:AM308)","v":0},{"$f":"SUMPRODUCT((Aktivierungsjahr<=Costs!$A396)*(AbschreibungAGr=Costs!AN$353)*(AbschreibungAHKBvD))-SUM(AN$267:AN308)","v":0},{"$f":"SUMPRODUCT((Aktivierungsjahr<=Costs!$A396)*(AbschreibungAGr=Costs!AO$353)*(AbschreibungAHKBvD))-SUM(AO$267:AO308)","v":0},{"$f":"SUMPRODUCT((Aktivierungsjahr<=Costs!$A396)*(AbschreibungAGr=Costs!AP$353)*(AbschreibungAHKBvD))-SUM(AP$267:AP308)","v":0},{"$f":"SUMPRODUCT((Aktivierungsjahr<=Costs!$A396)*(AbschreibungAGr=Costs!AQ$353)*(AbschreibungAHKBvD))-SUM(AQ$267:AQ308)","v":0}]
[2058,244444.44444444391,{"$f":"SUMPRODUCT((Aktivierungsjahr<=Costs!$A397)*(AbschreibungAGr=Costs!C$353)*(AbschreibungAHKBvD))-SUM(C$267:C309)","v":0},{"$f":"SUMPRODUCT((Aktivierungsjahr<=Costs!$A397)*(AbschreibungAGr=Costs!D$353)*(AbschreibungAHKBvD))-SUM(D$267:D309)","v":0},{"$f":"SUMPRODUCT((Aktivierungsjahr<=Costs!$A397)*(AbschreibungAGr=Costs!E$353)*(AbschreibungAHKBvD))-SUM(E$267:E309)","v":0},{"$f":"SUMPRODUCT((Aktivierungsjahr<=Costs!$A397)*(AbschreibungAGr=Costs!F$353)*(AbschreibungAHKBvD))-SUM(F$267:F309)","v":0},{"$f":"SUMPRODUCT((Aktivierungsjahr<=Costs!$A397)*(AbschreibungAGr=Costs!G$353)*(AbschreibungAHKBvD))-SUM(G$267:G309)","v":0},{"$f":"SUMPRODUCT((Aktivierungsjahr<=Costs!$A397)*(AbschreibungAGr=Costs!H$353)*(AbschreibungAHKBvD))-SUM(H$267:H309)","v":0},{"$f":"SUMPRODUCT((Aktivierungsjahr<=Costs!$A397)*(AbschreibungAGr=Costs!I$353)*(AbschreibungAHKBvD))-SUM(I$267:I309)","v":0},{"$f":"SUMPRODUCT((Aktivierungsjahr<=Costs!$A397)*(AbschreibungAGr=Costs!J$353)*(AbschreibungAHKBvD))-SUM(J$267:J309)","v":0},{"$f":"SUMPRODUCT((Aktivierungsjahr<=Costs!$A397)*(AbschreibungAGr=Costs!K$353)*(AbschreibungAHKBvD))-SUM(K$267:K309)","v":0},{"$f":"SUMPRODUCT((Aktivierungsjahr<=Costs!$A397)*(AbschreibungAGr=Costs!L$353)*(AbschreibungAHKBvD))-SUM(L$267:L309)","v":0},{"$f":"SUMPRODUCT((Aktivierungsjahr<=Costs!$A397)*(AbschreibungAGr=Costs!M$353)*(AbschreibungAHKBvD))-SUM(M$267:M309)","v":0},{"$f":"SUMPRODUCT((Aktivierungsjahr<=Costs!$A397)*(AbschreibungAGr=Costs!N$353)*(AbschreibungAHKBvD))-SUM(N$267:N309)","v":0},{"$f":"SUMPRODUCT((Aktivierungsjahr<=Costs!$A397)*(AbschreibungAGr=Costs!O$353)*(AbschreibungAHKBvD))-SUM(O$267:O309)","v":0},{"$f":"SUMPRODUCT((Aktivierungsjahr<=Costs!$A397)*(AbschreibungAGr=Costs!P$353)*(AbschreibungAHKBvD))-SUM(P$267:P309)","v":0},{"$f":"SUMPRODUCT((Aktivierungsjahr<=Costs!$A397)*(AbschreibungAGr=Costs!Q$353)*(AbschreibungAHKBvD))-SUM(Q$267:Q309)","v":0},{"$f":"SUMPRODUCT((Aktivierungsjahr<=Costs!$A397)*(AbschreibungAGr=Costs!R$353)*(AbschreibungAHKBvD))-SUM(R$267:R309)","v":0},{"$f":"SUMPRODUCT((Aktivierungsjahr<=Costs!$A397)*(AbschreibungAGr=Costs!S$353)*(AbschreibungAHKBvD))-SUM(S$267:S309)","v":0},{"$f":"SUMPRODUCT((Aktivierungsjahr<=Costs!$A397)*(AbschreibungAGr=Costs!T$353)*(AbschreibungAHKBvD))-SUM(T$267:T309)","v":0},{"$f":"SUMPRODUCT((Aktivierungsjahr<=Costs!$A397)*(AbschreibungAGr=Costs!U$353)*(AbschreibungAHKBvD))-SUM(U$267:U309)","v":0},{"$f":"SUMPRODUCT((Aktivierungsjahr<=Costs!$A397)*(AbschreibungAGr=Costs!V$353)*(AbschreibungAHKBvD))-SUM(V$267:V309)","v":0},{"$f":"SUMPRODUCT((Aktivierungsjahr<=Costs!$A397)*(AbschreibungAGr=Costs!W$353)*(AbschreibungAHKBvD))-SUM(W$267:W309)","v":0},{"$f":"SUMPRODUCT((Aktivierungsjahr<=Costs!$A397)*(AbschreibungAGr=Costs!X$353)*(AbschreibungAHKBvD))-SUM(X$267:X309)","v":0},{"$f":"SUMPRODUCT((Aktivierungsjahr<=Costs!$A397)*(AbschreibungAGr=Costs!Y$353)*(AbschreibungAHKBvD))-SUM(Y$267:Y309)","v":0},{"$f":"SUMPRODUCT((Aktivierungsjahr<=Costs!$A397)*(AbschreibungAGr=Costs!Z$353)*(AbschreibungAHKBvD))-SUM(Z$267:Z309)","v":0},{"$f":"SUMPRODUCT((Aktivierungsjahr<=Costs!$A397)*(AbschreibungAGr=Costs!AA$353)*(AbschreibungAHKBvD))-SUM(AA$267:AA309)","v":0},{"$f":"SUMPRODUCT((Aktivierungsjahr<=Costs!$A397)*(AbschreibungAGr=Costs!AB$353)*(AbschreibungAHKBvD))-SUM(AB$267:AB309)","v":0},{"$f":"SUMPRODUCT((Aktivierungsjahr<=Costs!$A397)*(AbschreibungAGr=Costs!AC$353)*(AbschreibungAHKBvD))-SUM(AC$267:AC309)","v":0},{"$f":"SUMPRODUCT((Aktivierungsjahr<=Costs!$A397)*(AbschreibungAGr=Costs!AD$353)*(AbschreibungAHKBvD))-SUM(AD$267:AD309)","v":0},{"$f":"SUMPRODUCT((Aktivierungsjahr<=Costs!$A397)*(AbschreibungAGr=Costs!AE$353)*(AbschreibungAHKBvD))-SUM(AE$267:AE309)","v":0},{"$f":"SUMPRODUCT((Aktivierungsjahr<=Costs!$A397)*(AbschreibungAGr=Costs!AF$353)*(AbschreibungAHKBvD))-SUM(AF$267:AF309)","v":0},{"$f":"SUMPRODUCT((Aktivierungsjahr<=Costs!$A397)*(AbschreibungAGr=Costs!AG$353)*(AbschreibungAHKBvD))-SUM(AG$267:AG309)","v":0},{"$f":"SUMPRODUCT((Aktivierungsjahr<=Costs!$A397)*(AbschreibungAGr=Costs!AH$353)*(AbschreibungAHKBvD))-SUM(AH$267:AH309)","v":0},{"$f":"SUMPRODUCT((Aktivierungsjahr<=Costs!$A397)*(AbschreibungAGr=Costs!AI$353)*(AbschreibungAHKBvD))-SUM(AI$267:AI309)","v":0},{"$f":"SUMPRODUCT((Aktivierungsjahr<=Costs!$A397)*(AbschreibungAGr=Costs!AJ$353)*(AbschreibungAHKBvD))-SUM(AJ$267:AJ309)","v":244444.44444444391},{"$f":"SUMPRODUCT((Aktivierungsjahr<=Costs!$A397)*(AbschreibungAGr=Costs!AK$353)*(AbschreibungAHKBvD))-SUM(AK$267:AK309)","v":0},{"$f":"SUMPRODUCT((Aktivierungsjahr<=Costs!$A397)*(AbschreibungAGr=Costs!AL$353)*(AbschreibungAHKBvD))-SUM(AL$267:AL309)","v":0},{"$f":"SUMPRODUCT((Aktivierungsjahr<=Costs!$A397)*(AbschreibungAGr=Costs!AM$353)*(AbschreibungAHKBvD))-SUM(AM$267:AM309)","v":0},{"$f":"SUMPRODUCT((Aktivierungsjahr<=Costs!$A397)*(AbschreibungAGr=Costs!AN$353)*(AbschreibungAHKBvD))-SUM(AN$267:AN309)","v":0},{"$f":"SUMPRODUCT((Aktivierungsjahr<=Costs!$A397)*(AbschreibungAGr=Costs!AO$353)*(AbschreibungAHKBvD))-SUM(AO$267:AO309)","v":0},{"$f":"SUMPRODUCT((Aktivierungsjahr<=Costs!$A397)*(AbschreibungAGr=Costs!AP$353)*(AbschreibungAHKBvD))-SUM(AP$267:AP309)","v":0},{"$f":"SUMPRODUCT((Aktivierungsjahr<=Costs!$A397)*(AbschreibungAGr=Costs!AQ$353)*(AbschreibungAHKBvD))-SUM(AQ$267:AQ309)","v":0}]
[2059,222222.22222222167,{"$f":"SUMPRODUCT((Aktivierungsjahr<=Costs!$A398)*(AbschreibungAGr=Costs!C$353)*(AbschreibungAHKBvD))-SUM(C$267:C310)","v":0},{"$f":"SUMPRODUCT((Aktivierungsjahr<=Costs!$A398)*(AbschreibungAGr=Costs!D$353)*(AbschreibungAHKBvD))-SUM(D$267:D310)","v":0},{"$f":"SUMPRODUCT((Aktivierungsjahr<=Costs!$A398)*(AbschreibungAGr=Costs!E$353)*(AbschreibungAHKBvD))-SUM(E$267:E310)","v":0},{"$f":"SUMPRODUCT((Aktivierungsjahr<=Costs!$A398)*(AbschreibungAGr=Costs!F$353)*(AbschreibungAHKBvD))-SUM(F$267:F310)","v":0},{"$f":"SUMPRODUCT((Aktivierungsjahr<=Costs!$A398)*(AbschreibungAGr=Costs!G$353)*(AbschreibungAHKBvD))-SUM(G$267:G310)","v":0},{"$f":"SUMPRODUCT((Aktivierungsjahr<=Costs!$A398)*(AbschreibungAGr=Costs!H$353)*(AbschreibungAHKBvD))-SUM(H$267:H310)","v":0},{"$f":"SUMPRODUCT((Aktivierungsjahr<=Costs!$A398)*(AbschreibungAGr=Costs!I$353)*(AbschreibungAHKBvD))-SUM(I$267:I310)","v":0},{"$f":"SUMPRODUCT((Aktivierungsjahr<=Costs!$A398)*(AbschreibungAGr=Costs!J$353)*(AbschreibungAHKBvD))-SUM(J$267:J310)","v":0},{"$f":"SUMPRODUCT((Aktivierungsjahr<=Costs!$A398)*(AbschreibungAGr=Costs!K$353)*(AbschreibungAHKBvD))-SUM(K$267:K310)","v":0},{"$f":"SUMPRODUCT((Aktivierungsjahr<=Costs!$A398)*(AbschreibungAGr=Costs!L$353)*(AbschreibungAHKBvD))-SUM(L$267:L310)","v":0},{"$f":"SUMPRODUCT((Aktivierungsjahr<=Costs!$A398)*(AbschreibungAGr=Costs!M$353)*(AbschreibungAHKBvD))-SUM(M$267:M310)","v":0},{"$f":"SUMPRODUCT((Aktivierungsjahr<=Costs!$A398)*(AbschreibungAGr=Costs!N$353)*(AbschreibungAHKBvD))-SUM(N$267:N310)","v":0},{"$f":"SUMPRODUCT((Aktivierungsjahr<=Costs!$A398)*(AbschreibungAGr=Costs!O$353)*(AbschreibungAHKBvD))-SUM(O$267:O310)","v":0},{"$f":"SUMPRODUCT((Aktivierungsjahr<=Costs!$A398)*(AbschreibungAGr=Costs!P$353)*(AbschreibungAHKBvD))-SUM(P$267:P310)","v":0},{"$f":"SUMPRODUCT((Aktivierungsjahr<=Costs!$A398)*(AbschreibungAGr=Costs!Q$353)*(AbschreibungAHKBvD))-SUM(Q$267:Q310)","v":0},{"$f":"SUMPRODUCT((Aktivierungsjahr<=Costs!$A398)*(AbschreibungAGr=Costs!R$353)*(AbschreibungAHKBvD))-SUM(R$267:R310)","v":0},{"$f":"SUMPRODUCT((Aktivierungsjahr<=Costs!$A398)*(AbschreibungAGr=Costs!S$353)*(AbschreibungAHKBvD))-SUM(S$267:S310)","v":0},{"$f":"SUMPRODUCT((Aktivierungsjahr<=Costs!$A398)*(AbschreibungAGr=Costs!T$353)*(AbschreibungAHKBvD))-SUM(T$267:T310)","v":0},{"$f":"SUMPRODUCT((Aktivierungsjahr<=Costs!$A398)*(AbschreibungAGr=Costs!U$353)*(AbschreibungAHKBvD))-SUM(U$267:U310)","v":0},{"$f":"SUMPRODUCT((Aktivierungsjahr<=Costs!$A398)*(AbschreibungAGr=Costs!V$353)*(AbschreibungAHKBvD))-SUM(V$267:V310)","v":0},{"$f":"SUMPRODUCT((Aktivierungsjahr<=Costs!$A398)*(AbschreibungAGr=Costs!W$353)*(AbschreibungAHKBvD))-SUM(W$267:W310)","v":0},{"$f":"SUMPRODUCT((Aktivierungsjahr<=Costs!$A398)*(AbschreibungAGr=Costs!X$353)*(AbschreibungAHKBvD))-SUM(X$267:X310)","v":0},{"$f":"SUMPRODUCT((Aktivierungsjahr<=Costs!$A398)*(AbschreibungAGr=Costs!Y$353)*(AbschreibungAHKBvD))-SUM(Y$267:Y310)","v":0},{"$f":"SUMPRODUCT((Aktivierungsjahr<=Costs!$A398)*(AbschreibungAGr=Costs!Z$353)*(AbschreibungAHKBvD))-SUM(Z$267:Z310)","v":0},{"$f":"SUMPRODUCT((Aktivierungsjahr<=Costs!$A398)*(AbschreibungAGr=Costs!AA$353)*(AbschreibungAHKBvD))-SUM(AA$267:AA310)","v":0},{"$f":"SUMPRODUCT((Aktivierungsjahr<=Costs!$A398)*(AbschreibungAGr=Costs!AB$353)*(AbschreibungAHKBvD))-SUM(AB$267:AB310)","v":0},{"$f":"SUMPRODUCT((Aktivierungsjahr<=Costs!$A398)*(AbschreibungAGr=Costs!AC$353)*(AbschreibungAHKBvD))-SUM(AC$267:AC310)","v":0},{"$f":"SUMPRODUCT((Aktivierungsjahr<=Costs!$A398)*(AbschreibungAGr=Costs!AD$353)*(AbschreibungAHKBvD))-SUM(AD$267:AD310)","v":0},{"$f":"SUMPRODUCT((Aktivierungsjahr<=Costs!$A398)*(AbschreibungAGr=Costs!AE$353)*(AbschreibungAHKBvD))-SUM(AE$267:AE310)","v":0},{"$f":"SUMPRODUCT((Aktivierungsjahr<=Costs!$A398)*(AbschreibungAGr=Costs!AF$353)*(AbschreibungAHKBvD))-SUM(AF$267:AF310)","v":0},{"$f":"SUMPRODUCT((Aktivierungsjahr<=Costs!$A398)*(AbschreibungAGr=Costs!AG$353)*(AbschreibungAHKBvD))-SUM(AG$267:AG310)","v":0},{"$f":"SUMPRODUCT((Aktivierungsjahr<=Costs!$A398)*(AbschreibungAGr=Costs!AH$353)*(AbschreibungAHKBvD))-SUM(AH$267:AH310)","v":0},{"$f":"SUMPRODUCT((Aktivierungsjahr<=Costs!$A398)*(AbschreibungAGr=Costs!AI$353)*(AbschreibungAHKBvD))-SUM(AI$267:AI310)","v":0},{"$f":"SUMPRODUCT((Aktivierungsjahr<=Costs!$A398)*(AbschreibungAGr=Costs!AJ$353)*(AbschreibungAHKBvD))-SUM(AJ$267:AJ310)","v":222222.22222222167},{"$f":"SUMPRODUCT((Aktivierungsjahr<=Costs!$A398)*(AbschreibungAGr=Costs!AK$353)*(AbschreibungAHKBvD))-SUM(AK$267:AK310)","v":0},{"$f":"SUMPRODUCT((Aktivierungsjahr<=Costs!$A398)*(AbschreibungAGr=Costs!AL$353)*(AbschreibungAHKBvD))-SUM(AL$267:AL310)","v":0},{"$f":"SUMPRODUCT((Aktivierungsjahr<=Costs!$A398)*(AbschreibungAGr=Costs!AM$353)*(AbschreibungAHKBvD))-SUM(AM$267:AM310)","v":0},{"$f":"SUMPRODUCT((Aktivierungsjahr<=Costs!$A398)*(AbschreibungAGr=Costs!AN$353)*(AbschreibungAHKBvD))-SUM(AN$267:AN310)","v":0},{"$f":"SUMPRODUCT((Aktivierungsjahr<=Costs!$A398)*(AbschreibungAGr=Costs!AO$353)*(AbschreibungAHKBvD))-SUM(AO$267:AO310)","v":0},{"$f":"SUMPRODUCT((Aktivierungsjahr<=Costs!$A398)*(AbschreibungAGr=Costs!AP$353)*(AbschreibungAHKBvD))-SUM(AP$267:AP310)","v":0},{"$f":"SUMPRODUCT((Aktivierungsjahr<=Costs!$A398)*(AbschreibungAGr=Costs!AQ$353)*(AbschreibungAHKBvD))-SUM(AQ$267:AQ310)","v":0}]
[2060,199999.99999999942,{"$f":"SUMPRODUCT((Aktivierungsjahr<=Costs!$A399)*(AbschreibungAGr=Costs!C$353)*(AbschreibungAHKBvD))-SUM(C$267:C311)","v":0},{"$f":"SUMPRODUCT((Aktivierungsjahr<=Costs!$A399)*(AbschreibungAGr=Costs!D$353)*(AbschreibungAHKBvD))-SUM(D$267:D311)","v":0},{"$f":"SUMPRODUCT((Aktivierungsjahr<=Costs!$A399)*(AbschreibungAGr=Costs!E$353)*(AbschreibungAHKBvD))-SUM(E$267:E311)","v":0},{"$f":"SUMPRODUCT((Aktivierungsjahr<=Costs!$A399)*(AbschreibungAGr=Costs!F$353)*(AbschreibungAHKBvD))-SUM(F$267:F311)","v":0},{"$f":"SUMPRODUCT((Aktivierungsjahr<=Costs!$A399)*(AbschreibungAGr=Costs!G$353)*(AbschreibungAHKBvD))-SUM(G$267:G311)","v":0},{"$f":"SUMPRODUCT((Aktivierungsjahr<=Costs!$A399)*(AbschreibungAGr=Costs!H$353)*(AbschreibungAHKBvD))-SUM(H$267:H311)","v":0},{"$f":"SUMPRODUCT((Aktivierungsjahr<=Costs!$A399)*(AbschreibungAGr=Costs!I$353)*(AbschreibungAHKBvD))-SUM(I$267:I311)","v":0},{"$f":"SUMPRODUCT((Aktivierungsjahr<=Costs!$A399)*(AbschreibungAGr=Costs!J$353)*(AbschreibungAHKBvD))-SUM(J$267:J311)","v":0},{"$f":"SUMPRODUCT((Aktivierungsjahr<=Costs!$A399)*(AbschreibungAGr=Costs!K$353)*(AbschreibungAHKBvD))-SUM(K$267:K311)","v":0},{"$f":"SUMPRODUCT((Aktivierungsjahr<=Costs!$A399)*(AbschreibungAGr=Costs!L$353)*(AbschreibungAHKBvD))-SUM(L$267:L311)","v":0},{"$f":"SUMPRODUCT((Aktivierungsjahr<=Costs!$A399)*(AbschreibungAGr=Costs!M$353)*(AbschreibungAHKBvD))-SUM(M$267:M311)","v":0},{"$f":"SUMPRODUCT((Aktivierungsjahr<=Costs!$A399)*(AbschreibungAGr=Costs!N$353)*(AbschreibungAHKBvD))-SUM(N$267:N311)","v":0},{"$f":"SUMPRODUCT((Aktivierungsjahr<=Costs!$A399)*(AbschreibungAGr=Costs!O$353)*(AbschreibungAHKBvD))-SUM(O$267:O311)","v":0},{"$f":"SUMPRODUCT((Aktivierungsjahr<=Costs!$A399)*(AbschreibungAGr=Costs!P$353)*(AbschreibungAHKBvD))-SUM(P$267:P311)","v":0},{"$f":"SUMPRODUCT((Aktivierungsjahr<=Costs!$A399)*(AbschreibungAGr=Costs!Q$353)*(AbschreibungAHKBvD))-SUM(Q$267:Q311)","v":0},{"$f":"SUMPRODUCT((Aktivierungsjahr<=Costs!$A399)*(AbschreibungAGr=Costs!R$353)*(AbschreibungAHKBvD))-SUM(R$267:R311)","v":0},{"$f":"SUMPRODUCT((Aktivierungsjahr<=Costs!$A399)*(AbschreibungAGr=Costs!S$353)*(AbschreibungAHKBvD))-SUM(S$267:S311)","v":0},{"$f":"SUMPRODUCT((Aktivierungsjahr<=Costs!$A399)*(AbschreibungAGr=Costs!T$353)*(AbschreibungAHKBvD))-SUM(T$267:T311)","v":0},{"$f":"SUMPRODUCT((Aktivierungsjahr<=Costs!$A399)*(AbschreibungAGr=Costs!U$353)*(AbschreibungAHKBvD))-SUM(U$267:U311)","v":0},{"$f":"SUMPRODUCT((Aktivierungsjahr<=Costs!$A399)*(AbschreibungAGr=Costs!V$353)*(AbschreibungAHKBvD))-SUM(V$267:V311)","v":0},{"$f":"SUMPRODUCT((Aktivierungsjahr<=Costs!$A399)*(AbschreibungAGr=Costs!W$353)*(AbschreibungAHKBvD))-SUM(W$267:W311)","v":0},{"$f":"SUMPRODUCT((Aktivierungsjahr<=Costs!$A399)*(AbschreibungAGr=Costs!X$353)*(AbschreibungAHKBvD))-SUM(X$267:X311)","v":0},{"$f":"SUMPRODUCT((Aktivierungsjahr<=Costs!$A399)*(AbschreibungAGr=Costs!Y$353)*(AbschreibungAHKBvD))-SUM(Y$267:Y311)","v":0},{"$f":"SUMPRODUCT((Aktivierungsjahr<=Costs!$A399)*(AbschreibungAGr=Costs!Z$353)*(AbschreibungAHKBvD))-SUM(Z$267:Z311)","v":0},{"$f":"SUMPRODUCT((Aktivierungsjahr<=Costs!$A399)*(AbschreibungAGr=Costs!AA$353)*(AbschreibungAHKBvD))-SUM(AA$267:AA311)","v":0},{"$f":"SUMPRODUCT((Aktivierungsjahr<=Costs!$A399)*(AbschreibungAGr=Costs!AB$353)*(AbschreibungAHKBvD))-SUM(AB$267:AB311)","v":0},{"$f":"SUMPRODUCT((Aktivierungsjahr<=Costs!$A399)*(AbschreibungAGr=Costs!AC$353)*(AbschreibungAHKBvD))-SUM(AC$267:AC311)","v":0},{"$f":"SUMPRODUCT((Aktivierungsjahr<=Costs!$A399)*(AbschreibungAGr=Costs!AD$353)*(AbschreibungAHKBvD))-SUM(AD$267:AD311)","v":0},{"$f":"SUMPRODUCT((Aktivierungsjahr<=Costs!$A399)*(AbschreibungAGr=Costs!AE$353)*(AbschreibungAHKBvD))-SUM(AE$267:AE311)","v":0},{"$f":"SUMPRODUCT((Aktivierungsjahr<=Costs!$A399)*(AbschreibungAGr=Costs!AF$353)*(AbschreibungAHKBvD))-SUM(AF$267:AF311)","v":0},{"$f":"SUMPRODUCT((Aktivierungsjahr<=Costs!$A399)*(AbschreibungAGr=Costs!AG$353)*(AbschreibungAHKBvD))-SUM(AG$267:AG311)","v":0},{"$f":"SUMPRODUCT((Aktivierungsjahr<=Costs!$A399)*(AbschreibungAGr=Costs!AH$353)*(AbschreibungAHKBvD))-SUM(AH$267:AH311)","v":0},{"$f":"SUMPRODUCT((Aktivierungsjahr<=Costs!$A399)*(AbschreibungAGr=Costs!AI$353)*(AbschreibungAHKBvD))-SUM(AI$267:AI311)","v":0},{"$f":"SUMPRODUCT((Aktivierungsjahr<=Costs!$A399)*(AbschreibungAGr=Costs!AJ$353)*(AbschreibungAHKBvD))-SUM(AJ$267:AJ311)","v":199999.99999999942},{"$f":"SUMPRODUCT((Aktivierungsjahr<=Costs!$A399)*(AbschreibungAGr=Costs!AK$353)*(AbschreibungAHKBvD))-SUM(AK$267:AK311)","v":0},{"$f":"SUMPRODUCT((Aktivierungsjahr<=Costs!$A399)*(AbschreibungAGr=Costs!AL$353)*(AbschreibungAHKBvD))-SUM(AL$267:AL311)","v":0},{"$f":"SUMPRODUCT((Aktivierungsjahr<=Costs!$A399)*(AbschreibungAGr=Costs!AM$353)*(AbschreibungAHKBvD))-SUM(AM$267:AM311)","v":0},{"$f":"SUMPRODUCT((Aktivierungsjahr<=Costs!$A399)*(AbschreibungAGr=Costs!AN$353)*(AbschreibungAHKBvD))-SUM(AN$267:AN311)","v":0},{"$f":"SUMPRODUCT((Aktivierungsjahr<=Costs!$A399)*(AbschreibungAGr=Costs!AO$353)*(AbschreibungAHKBvD))-SUM(AO$267:AO311)","v":0},{"$f":"SUMPRODUCT((Aktivierungsjahr<=Costs!$A399)*(AbschreibungAGr=Costs!AP$353)*(AbschreibungAHKBvD))-SUM(AP$267:AP311)","v":0},{"$f":"SUMPRODUCT((Aktivierungsjahr<=Costs!$A399)*(AbschreibungAGr=Costs!AQ$353)*(AbschreibungAHKBvD))-SUM(AQ$267:AQ311)","v":0}]
[2061,177777.77777777717,{"$f":"SUMPRODUCT((Aktivierungsjahr<=Costs!$A400)*(AbschreibungAGr=Costs!C$353)*(AbschreibungAHKBvD))-SUM(C$267:C312)","v":0},{"$f":"SUMPRODUCT((Aktivierungsjahr<=Costs!$A400)*(AbschreibungAGr=Costs!D$353)*(AbschreibungAHKBvD))-SUM(D$267:D312)","v":0},{"$f":"SUMPRODUCT((Aktivierungsjahr<=Costs!$A400)*(AbschreibungAGr=Costs!E$353)*(AbschreibungAHKBvD))-SUM(E$267:E312)","v":0},{"$f":"SUMPRODUCT((Aktivierungsjahr<=Costs!$A400)*(AbschreibungAGr=Costs!F$353)*(AbschreibungAHKBvD))-SUM(F$267:F312)","v":0},{"$f":"SUMPRODUCT((Aktivierungsjahr<=Costs!$A400)*(AbschreibungAGr=Costs!G$353)*(AbschreibungAHKBvD))-SUM(G$267:G312)","v":0},{"$f":"SUMPRODUCT((Aktivierungsjahr<=Costs!$A400)*(AbschreibungAGr=Costs!H$353)*(AbschreibungAHKBvD))-SUM(H$267:H312)","v":0},{"$f":"SUMPRODUCT((Aktivierungsjahr<=Costs!$A400)*(AbschreibungAGr=Costs!I$353)*(AbschreibungAHKBvD))-SUM(I$267:I312)","v":0},{"$f":"SUMPRODUCT((Aktivierungsjahr<=Costs!$A400)*(AbschreibungAGr=Costs!J$353)*(AbschreibungAHKBvD))-SUM(J$267:J312)","v":0},{"$f":"SUMPRODUCT((Aktivierungsjahr<=Costs!$A400)*(AbschreibungAGr=Costs!K$353)*(AbschreibungAHKBvD))-SUM(K$267:K312)","v":0},{"$f":"SUMPRODUCT((Aktivierungsjahr<=Costs!$A400)*(AbschreibungAGr=Costs!L$353)*(AbschreibungAHKBvD))-SUM(L$267:L312)","v":0},{"$f":"SUMPRODUCT((Aktivierungsjahr<=Costs!$A400)*(AbschreibungAGr=Costs!M$353)*(AbschreibungAHKBvD))-SUM(M$267:M312)","v":0},{"$f":"SUMPRODUCT((Aktivierungsjahr<=Costs!$A400)*(AbschreibungAGr=Costs!N$353)*(AbschreibungAHKBvD))-SUM(N$267:N312)","v":0},{"$f":"SUMPRODUCT((Aktivierungsjahr<=Costs!$A400)*(AbschreibungAGr=Costs!O$353)*(AbschreibungAHKBvD))-SUM(O$267:O312)","v":0},{"$f":"SUMPRODUCT((Aktivierungsjahr<=Costs!$A400)*(AbschreibungAGr=Costs!P$353)*(AbschreibungAHKBvD))-SUM(P$267:P312)","v":0},{"$f":"SUMPRODUCT((Aktivierungsjahr<=Costs!$A400)*(AbschreibungAGr=Costs!Q$353)*(AbschreibungAHKBvD))-SUM(Q$267:Q312)","v":0},{"$f":"SUMPRODUCT((Aktivierungsjahr<=Costs!$A400)*(AbschreibungAGr=Costs!R$353)*(AbschreibungAHKBvD))-SUM(R$267:R312)","v":0},{"$f":"SUMPRODUCT((Aktivierungsjahr<=Costs!$A400)*(AbschreibungAGr=Costs!S$353)*(AbschreibungAHKBvD))-SUM(S$267:S312)","v":0},{"$f":"SUMPRODUCT((Aktivierungsjahr<=Costs!$A400)*(AbschreibungAGr=Costs!T$353)*(AbschreibungAHKBvD))-SUM(T$267:T312)","v":0},{"$f":"SUMPRODUCT((Aktivierungsjahr<=Costs!$A400)*(AbschreibungAGr=Costs!U$353)*(AbschreibungAHKBvD))-SUM(U$267:U312)","v":0},{"$f":"SUMPRODUCT((Aktivierungsjahr<=Costs!$A400)*(AbschreibungAGr=Costs!V$353)*(AbschreibungAHKBvD))-SUM(V$267:V312)","v":0},{"$f":"SUMPRODUCT((Aktivierungsjahr<=Costs!$A400)*(AbschreibungAGr=Costs!W$353)*(AbschreibungAHKBvD))-SUM(W$267:W312)","v":0},{"$f":"SUMPRODUCT((Aktivierungsjahr<=Costs!$A400)*(AbschreibungAGr=Costs!X$353)*(AbschreibungAHKBvD))-SUM(X$267:X312)","v":0},{"$f":"SUMPRODUCT((Aktivierungsjahr<=Costs!$A400)*(AbschreibungAGr=Costs!Y$353)*(AbschreibungAHKBvD))-SUM(Y$267:Y312)","v":0},{"$f":"SUMPRODUCT((Aktivierungsjahr<=Costs!$A400)*(AbschreibungAGr=Costs!Z$353)*(AbschreibungAHKBvD))-SUM(Z$267:Z312)","v":0},{"$f":"SUMPRODUCT((Aktivierungsjahr<=Costs!$A400)*(AbschreibungAGr=Costs!AA$353)*(AbschreibungAHKBvD))-SUM(AA$267:AA312)","v":0},{"$f":"SUMPRODUCT((Aktivierungsjahr<=Costs!$A400)*(AbschreibungAGr=Costs!AB$353)*(AbschreibungAHKBvD))-SUM(AB$267:AB312)","v":0},{"$f":"SUMPRODUCT((Aktivierungsjahr<=Costs!$A400)*(AbschreibungAGr=Costs!AC$353)*(AbschreibungAHKBvD))-SUM(AC$267:AC312)","v":0},{"$f":"SUMPRODUCT((Aktivierungsjahr<=Costs!$A400)*(AbschreibungAGr=Costs!AD$353)*(AbschreibungAHKBvD))-SUM(AD$267:AD312)","v":0},{"$f":"SUMPRODUCT((Aktivierungsjahr<=Costs!$A400)*(AbschreibungAGr=Costs!AE$353)*(AbschreibungAHKBvD))-SUM(AE$267:AE312)","v":0},{"$f":"SUMPRODUCT((Aktivierungsjahr<=Costs!$A400)*(AbschreibungAGr=Costs!AF$353)*(AbschreibungAHKBvD))-SUM(AF$267:AF312)","v":0},{"$f":"SUMPRODUCT((Aktivierungsjahr<=Costs!$A400)*(AbschreibungAGr=Costs!AG$353)*(AbschreibungAHKBvD))-SUM(AG$267:AG312)","v":0},{"$f":"SUMPRODUCT((Aktivierungsjahr<=Costs!$A400)*(AbschreibungAGr=Costs!AH$353)*(AbschreibungAHKBvD))-SUM(AH$267:AH312)","v":0},{"$f":"SUMPRODUCT((Aktivierungsjahr<=Costs!$A400)*(AbschreibungAGr=Costs!AI$353)*(AbschreibungAHKBvD))-SUM(AI$267:AI312)","v":0},{"$f":"SUMPRODUCT((Aktivierungsjahr<=Costs!$A400)*(AbschreibungAGr=Costs!AJ$353)*(AbschreibungAHKBvD))-SUM(AJ$267:AJ312)","v":177777.77777777717},{"$f":"SUMPRODUCT((Aktivierungsjahr<=Costs!$A400)*(AbschreibungAGr=Costs!AK$353)*(AbschreibungAHKBvD))-SUM(AK$267:AK312)","v":0},{"$f":"SUMPRODUCT((Aktivierungsjahr<=Costs!$A400)*(AbschreibungAGr=Costs!AL$353)*(AbschreibungAHKBvD))-SUM(AL$267:AL312)","v":0},{"$f":"SUMPRODUCT((Aktivierungsjahr<=Costs!$A400)*(AbschreibungAGr=Costs!AM$353)*(AbschreibungAHKBvD))-SUM(AM$267:AM312)","v":0},{"$f":"SUMPRODUCT((Aktivierungsjahr<=Costs!$A400)*(AbschreibungAGr=Costs!AN$353)*(AbschreibungAHKBvD))-SUM(AN$267:AN312)","v":0},{"$f":"SUMPRODUCT((Aktivierungsjahr<=Costs!$A400)*(AbschreibungAGr=Costs!AO$353)*(AbschreibungAHKBvD))-SUM(AO$267:AO312)","v":0},{"$f":"SUMPRODUCT((Aktivierungsjahr<=Costs!$A400)*(AbschreibungAGr=Costs!AP$353)*(AbschreibungAHKBvD))-SUM(AP$267:AP312)","v":0},{"$f":"SUMPRODUCT((Aktivierungsjahr<=Costs!$A400)*(AbschreibungAGr=Costs!AQ$353)*(AbschreibungAHKBvD))-SUM(AQ$267:AQ312)","v":0}]
[2062,155555.55555555492,{"$f":"SUMPRODUCT((Aktivierungsjahr<=Costs!$A401)*(AbschreibungAGr=Costs!C$353)*(AbschreibungAHKBvD))-SUM(C$267:C313)","v":0},{"$f":"SUMPRODUCT((Aktivierungsjahr<=Costs!$A401)*(AbschreibungAGr=Costs!D$353)*(AbschreibungAHKBvD))-SUM(D$267:D313)","v":0},{"$f":"SUMPRODUCT((Aktivierungsjahr<=Costs!$A401)*(AbschreibungAGr=Costs!E$353)*(AbschreibungAHKBvD))-SUM(E$267:E313)","v":0},{"$f":"SUMPRODUCT((Aktivierungsjahr<=Costs!$A401)*(AbschreibungAGr=Costs!F$353)*(AbschreibungAHKBvD))-SUM(F$267:F313)","v":0},{"$f":"SUMPRODUCT((Aktivierungsjahr<=Costs!$A401)*(AbschreibungAGr=Costs!G$353)*(AbschreibungAHKBvD))-SUM(G$267:G313)","v":0},{"$f":"SUMPRODUCT((Aktivierungsjahr<=Costs!$A401)*(AbschreibungAGr=Costs!H$353)*(AbschreibungAHKBvD))-SUM(H$267:H313)","v":0},{"$f":"SUMPRODUCT((Aktivierungsjahr<=Costs!$A401)*(AbschreibungAGr=Costs!I$353)*(AbschreibungAHKBvD))-SUM(I$267:I313)","v":0},{"$f":"SUMPRODUCT((Aktivierungsjahr<=Costs!$A401)*(AbschreibungAGr=Costs!J$353)*(AbschreibungAHKBvD))-SUM(J$267:J313)","v":0},{"$f":"SUMPRODUCT((Aktivierungsjahr<=Costs!$A401)*(AbschreibungAGr=Costs!K$353)*(AbschreibungAHKBvD))-SUM(K$267:K313)","v":0},{"$f":"SUMPRODUCT((Aktivierungsjahr<=Costs!$A401)*(AbschreibungAGr=Costs!L$353)*(AbschreibungAHKBvD))-SUM(L$267:L313)","v":0},{"$f":"SUMPRODUCT((Aktivierungsjahr<=Costs!$A401)*(AbschreibungAGr=Costs!M$353)*(AbschreibungAHKBvD))-SUM(M$267:M313)","v":0},{"$f":"SUMPRODUCT((Aktivierungsjahr<=Costs!$A401)*(AbschreibungAGr=Costs!N$353)*(AbschreibungAHKBvD))-SUM(N$267:N313)","v":0},{"$f":"SUMPRODUCT((Aktivierungsjahr<=Costs!$A401)*(AbschreibungAGr=Costs!O$353)*(AbschreibungAHKBvD))-SUM(O$267:O313)","v":0},{"$f":"SUMPRODUCT((Aktivierungsjahr<=Costs!$A401)*(AbschreibungAGr=Costs!P$353)*(AbschreibungAHKBvD))-SUM(P$267:P313)","v":0},{"$f":"SUMPRODUCT((Aktivierungsjahr<=Costs!$A401)*(AbschreibungAGr=Costs!Q$353)*(AbschreibungAHKBvD))-SUM(Q$267:Q313)","v":0},{"$f":"SUMPRODUCT((Aktivierungsjahr<=Costs!$A401)*(AbschreibungAGr=Costs!R$353)*(AbschreibungAHKBvD))-SUM(R$267:R313)","v":0},{"$f":"SUMPRODUCT((Aktivierungsjahr<=Costs!$A401)*(AbschreibungAGr=Costs!S$353)*(AbschreibungAHKBvD))-SUM(S$267:S313)","v":0},{"$f":"SUMPRODUCT((Aktivierungsjahr<=Costs!$A401)*(AbschreibungAGr=Costs!T$353)*(AbschreibungAHKBvD))-SUM(T$267:T313)","v":0},{"$f":"SUMPRODUCT((Aktivierungsjahr<=Costs!$A401)*(AbschreibungAGr=Costs!U$353)*(AbschreibungAHKBvD))-SUM(U$267:U313)","v":0},{"$f":"SUMPRODUCT((Aktivierungsjahr<=Costs!$A401)*(AbschreibungAGr=Costs!V$353)*(AbschreibungAHKBvD))-SUM(V$267:V313)","v":0},{"$f":"SUMPRODUCT((Aktivierungsjahr<=Costs!$A401)*(AbschreibungAGr=Costs!W$353)*(AbschreibungAHKBvD))-SUM(W$267:W313)","v":0},{"$f":"SUMPRODUCT((Aktivierungsjahr<=Costs!$A401)*(AbschreibungAGr=Costs!X$353)*(AbschreibungAHKBvD))-SUM(X$267:X313)","v":0},{"$f":"SUMPRODUCT((Aktivierungsjahr<=Costs!$A401)*(AbschreibungAGr=Costs!Y$353)*(AbschreibungAHKBvD))-SUM(Y$267:Y313)","v":0},{"$f":"SUMPRODUCT((Aktivierungsjahr<=Costs!$A401)*(AbschreibungAGr=Costs!Z$353)*(AbschreibungAHKBvD))-SUM(Z$267:Z313)","v":0},{"$f":"SUMPRODUCT((Aktivierungsjahr<=Costs!$A401)*(AbschreibungAGr=Costs!AA$353)*(AbschreibungAHKBvD))-SUM(AA$267:AA313)","v":0},{"$f":"SUMPRODUCT((Aktivierungsjahr<=Costs!$A401)*(AbschreibungAGr=Costs!AB$353)*(AbschreibungAHKBvD))-SUM(AB$267:AB313)","v":0},{"$f":"SUMPRODUCT((Aktivierungsjahr<=Costs!$A401)*(AbschreibungAGr=Costs!AC$353)*(AbschreibungAHKBvD))-SUM(AC$267:AC313)","v":0},{"$f":"SUMPRODUCT((Aktivierungsjahr<=Costs!$A401)*(AbschreibungAGr=Costs!AD$353)*(AbschreibungAHKBvD))-SUM(AD$267:AD313)","v":0},{"$f":"SUMPRODUCT((Aktivierungsjahr<=Costs!$A401)*(AbschreibungAGr=Costs!AE$353)*(AbschreibungAHKBvD))-SUM(AE$267:AE313)","v":0},{"$f":"SUMPRODUCT((Aktivierungsjahr<=Costs!$A401)*(AbschreibungAGr=Costs!AF$353)*(AbschreibungAHKBvD))-SUM(AF$267:AF313)","v":0},{"$f":"SUMPRODUCT((Aktivierungsjahr<=Costs!$A401)*(AbschreibungAGr=Costs!AG$353)*(AbschreibungAHKBvD))-SUM(AG$267:AG313)","v":0},{"$f":"SUMPRODUCT((Aktivierungsjahr<=Costs!$A401)*(AbschreibungAGr=Costs!AH$353)*(AbschreibungAHKBvD))-SUM(AH$267:AH313)","v":0},{"$f":"SUMPRODUCT((Aktivierungsjahr<=Costs!$A401)*(AbschreibungAGr=Costs!AI$353)*(AbschreibungAHKBvD))-SUM(AI$267:AI313)","v":0},{"$f":"SUMPRODUCT((Aktivierungsjahr<=Costs!$A401)*(AbschreibungAGr=Costs!AJ$353)*(AbschreibungAHKBvD))-SUM(AJ$267:AJ313)","v":155555.55555555492},{"$f":"SUMPRODUCT((Aktivierungsjahr<=Costs!$A401)*(AbschreibungAGr=Costs!AK$353)*(AbschreibungAHKBvD))-SUM(AK$267:AK313)","v":0},{"$f":"SUMPRODUCT((Aktivierungsjahr<=Costs!$A401)*(AbschreibungAGr=Costs!AL$353)*(AbschreibungAHKBvD))-SUM(AL$267:AL313)","v":0},{"$f":"SUMPRODUCT((Aktivierungsjahr<=Costs!$A401)*(AbschreibungAGr=Costs!AM$353)*(AbschreibungAHKBvD))-SUM(AM$267:AM313)","v":0},{"$f":"SUMPRODUCT((Aktivierungsjahr<=Costs!$A401)*(AbschreibungAGr=Costs!AN$353)*(AbschreibungAHKBvD))-SUM(AN$267:AN313)","v":0},{"$f":"SUMPRODUCT((Aktivierungsjahr<=Costs!$A401)*(AbschreibungAGr=Costs!AO$353)*(AbschreibungAHKBvD))-SUM(AO$267:AO313)","v":0},{"$f":"SUMPRODUCT((Aktivierungsjahr<=Costs!$A401)*(AbschreibungAGr=Costs!AP$353)*(AbschreibungAHKBvD))-SUM(AP$267:AP313)","v":0},{"$f":"SUMPRODUCT((Aktivierungsjahr<=Costs!$A401)*(AbschreibungAGr=Costs!AQ$353)*(AbschreibungAHKBvD))-SUM(AQ$267:AQ313)","v":0}]
[2063,133333.33333333267,{"$f":"SUMPRODUCT((Aktivierungsjahr<=Costs!$A402)*(AbschreibungAGr=Costs!C$353)*(AbschreibungAHKBvD))-SUM(C$267:C314)","v":0},{"$f":"SUMPRODUCT((Aktivierungsjahr<=Costs!$A402)*(AbschreibungAGr=Costs!D$353)*(AbschreibungAHKBvD))-SUM(D$267:D314)","v":0},{"$f":"SUMPRODUCT((Aktivierungsjahr<=Costs!$A402)*(AbschreibungAGr=Costs!E$353)*(AbschreibungAHKBvD))-SUM(E$267:E314)","v":0},{"$f":"SUMPRODUCT((Aktivierungsjahr<=Costs!$A402)*(AbschreibungAGr=Costs!F$353)*(AbschreibungAHKBvD))-SUM(F$267:F314)","v":0},{"$f":"SUMPRODUCT((Aktivierungsjahr<=Costs!$A402)*(AbschreibungAGr=Costs!G$353)*(AbschreibungAHKBvD))-SUM(G$267:G314)","v":0},{"$f":"SUMPRODUCT((Aktivierungsjahr<=Costs!$A402)*(AbschreibungAGr=Costs!H$353)*(AbschreibungAHKBvD))-SUM(H$267:H314)","v":0},{"$f":"SUMPRODUCT((Aktivierungsjahr<=Costs!$A402)*(AbschreibungAGr=Costs!I$353)*(AbschreibungAHKBvD))-SUM(I$267:I314)","v":0},{"$f":"SUMPRODUCT((Aktivierungsjahr<=Costs!$A402)*(AbschreibungAGr=Costs!J$353)*(AbschreibungAHKBvD))-SUM(J$267:J314)","v":0},{"$f":"SUMPRODUCT((Aktivierungsjahr<=Costs!$A402)*(AbschreibungAGr=Costs!K$353)*(AbschreibungAHKBvD))-SUM(K$267:K314)","v":0},{"$f":"SUMPRODUCT((Aktivierungsjahr<=Costs!$A402)*(AbschreibungAGr=Costs!L$353)*(AbschreibungAHKBvD))-SUM(L$267:L314)","v":0},{"$f":"SUMPRODUCT((Aktivierungsjahr<=Costs!$A402)*(AbschreibungAGr=Costs!M$353)*(AbschreibungAHKBvD))-SUM(M$267:M314)","v":0},{"$f":"SUMPRODUCT((Aktivierungsjahr<=Costs!$A402)*(AbschreibungAGr=Costs!N$353)*(AbschreibungAHKBvD))-SUM(N$267:N314)","v":0},{"$f":"SUMPRODUCT((Aktivierungsjahr<=Costs!$A402)*(AbschreibungAGr=Costs!O$353)*(AbschreibungAHKBvD))-SUM(O$267:O314)","v":0},{"$f":"SUMPRODUCT((Aktivierungsjahr<=Costs!$A402)*(AbschreibungAGr=Costs!P$353)*(AbschreibungAHKBvD))-SUM(P$267:P314)","v":0},{"$f":"SUMPRODUCT((Aktivierungsjahr<=Costs!$A402)*(AbschreibungAGr=Costs!Q$353)*(AbschreibungAHKBvD))-SUM(Q$267:Q314)","v":0},{"$f":"SUMPRODUCT((Aktivierungsjahr<=Costs!$A402)*(AbschreibungAGr=Costs!R$353)*(AbschreibungAHKBvD))-SUM(R$267:R314)","v":0},{"$f":"SUMPRODUCT((Aktivierungsjahr<=Costs!$A402)*(AbschreibungAGr=Costs!S$353)*(AbschreibungAHKBvD))-SUM(S$267:S314)","v":0},{"$f":"SUMPRODUCT((Aktivierungsjahr<=Costs!$A402)*(AbschreibungAGr=Costs!T$353)*(AbschreibungAHKBvD))-SUM(T$267:T314)","v":0},{"$f":"SUMPRODUCT((Aktivierungsjahr<=Costs!$A402)*(AbschreibungAGr=Costs!U$353)*(AbschreibungAHKBvD))-SUM(U$267:U314)","v":0},{"$f":"SUMPRODUCT((Aktivierungsjahr<=Costs!$A402)*(AbschreibungAGr=Costs!V$353)*(AbschreibungAHKBvD))-SUM(V$267:V314)","v":0},{"$f":"SUMPRODUCT((Aktivierungsjahr<=Costs!$A402)*(AbschreibungAGr=Costs!W$353)*(AbschreibungAHKBvD))-SUM(W$267:W314)","v":0},{"$f":"SUMPRODUCT((Aktivierungsjahr<=Costs!$A402)*(AbschreibungAGr=Costs!X$353)*(AbschreibungAHKBvD))-SUM(X$267:X314)","v":0},{"$f":"SUMPRODUCT((Aktivierungsjahr<=Costs!$A402)*(AbschreibungAGr=Costs!Y$353)*(AbschreibungAHKBvD))-SUM(Y$267:Y314)","v":0},{"$f":"SUMPRODUCT((Aktivierungsjahr<=Costs!$A402)*(AbschreibungAGr=Costs!Z$353)*(AbschreibungAHKBvD))-SUM(Z$267:Z314)","v":0},{"$f":"SUMPRODUCT((Aktivierungsjahr<=Costs!$A402)*(AbschreibungAGr=Costs!AA$353)*(AbschreibungAHKBvD))-SUM(AA$267:AA314)","v":0},{"$f":"SUMPRODUCT((Aktivierungsjahr<=Costs!$A402)*(AbschreibungAGr=Costs!AB$353)*(AbschreibungAHKBvD))-SUM(AB$267:AB314)","v":0},{"$f":"SUMPRODUCT((Aktivierungsjahr<=Costs!$A402)*(AbschreibungAGr=Costs!AC$353)*(AbschreibungAHKBvD))-SUM(AC$267:AC314)","v":0},{"$f":"SUMPRODUCT((Aktivierungsjahr<=Costs!$A402)*(AbschreibungAGr=Costs!AD$353)*(AbschreibungAHKBvD))-SUM(AD$267:AD314)","v":0},{"$f":"SUMPRODUCT((Aktivierungsjahr<=Costs!$A402)*(AbschreibungAGr=Costs!AE$353)*(AbschreibungAHKBvD))-SUM(AE$267:AE314)","v":0},{"$f":"SUMPRODUCT((Aktivierungsjahr<=Costs!$A402)*(AbschreibungAGr=Costs!AF$353)*(AbschreibungAHKBvD))-SUM(AF$267:AF314)","v":0},{"$f":"SUMPRODUCT((Aktivierungsjahr<=Costs!$A402)*(AbschreibungAGr=Costs!AG$353)*(AbschreibungAHKBvD))-SUM(AG$267:AG314)","v":0},{"$f":"SUMPRODUCT((Aktivierungsjahr<=Costs!$A402)*(AbschreibungAGr=Costs!AH$353)*(AbschreibungAHKBvD))-SUM(AH$267:AH314)","v":0},{"$f":"SUMPRODUCT((Aktivierungsjahr<=Costs!$A402)*(AbschreibungAGr=Costs!AI$353)*(AbschreibungAHKBvD))-SUM(AI$267:AI314)","v":0},{"$f":"SUMPRODUCT((Aktivierungsjahr<=Costs!$A402)*(AbschreibungAGr=Costs!AJ$353)*(AbschreibungAHKBvD))-SUM(AJ$267:AJ314)","v":133333.33333333267},{"$f":"SUMPRODUCT((Aktivierungsjahr<=Costs!$A402)*(AbschreibungAGr=Costs!AK$353)*(AbschreibungAHKBvD))-SUM(AK$267:AK314)","v":0},{"$f":"SUMPRODUCT((Aktivierungsjahr<=Costs!$A402)*(AbschreibungAGr=Costs!AL$353)*(AbschreibungAHKBvD))-SUM(AL$267:AL314)","v":0},{"$f":"SUMPRODUCT((Aktivierungsjahr<=Costs!$A402)*(AbschreibungAGr=Costs!AM$353)*(AbschreibungAHKBvD))-SUM(AM$267:AM314)","v":0},{"$f":"SUMPRODUCT((Aktivierungsjahr<=Costs!$A402)*(AbschreibungAGr=Costs!AN$353)*(AbschreibungAHKBvD))-SUM(AN$267:AN314)","v":0},{"$f":"SUMPRODUCT((Aktivierungsjahr<=Costs!$A402)*(AbschreibungAGr=Costs!AO$353)*(AbschreibungAHKBvD))-SUM(AO$267:AO314)","v":0},{"$f":"SUMPRODUCT((Aktivierungsjahr<=Costs!$A402)*(AbschreibungAGr=Costs!AP$353)*(AbschreibungAHKBvD))-SUM(AP$267:AP314)","v":0},{"$f":"SUMPRODUCT((Aktivierungsjahr<=Costs!$A402)*(AbschreibungAGr=Costs!AQ$353)*(AbschreibungAHKBvD))-SUM(AQ$267:AQ314)","v":0}]
[2064,111111.11111111043,{"$f":"SUMPRODUCT((Aktivierungsjahr<=Costs!$A403)*(AbschreibungAGr=Costs!C$353)*(AbschreibungAHKBvD))-SUM(C$267:C315)","v":0},{"$f":"SUMPRODUCT((Aktivierungsjahr<=Costs!$A403)*(AbschreibungAGr=Costs!D$353)*(AbschreibungAHKBvD))-SUM(D$267:D315)","v":0},{"$f":"SUMPRODUCT((Aktivierungsjahr<=Costs!$A403)*(AbschreibungAGr=Costs!E$353)*(AbschreibungAHKBvD))-SUM(E$267:E315)","v":0},{"$f":"SUMPRODUCT((Aktivierungsjahr<=Costs!$A403)*(AbschreibungAGr=Costs!F$353)*(AbschreibungAHKBvD))-SUM(F$267:F315)","v":0},{"$f":"SUMPRODUCT((Aktivierungsjahr<=Costs!$A403)*(AbschreibungAGr=Costs!G$353)*(AbschreibungAHKBvD))-SUM(G$267:G315)","v":0},{"$f":"SUMPRODUCT((Aktivierungsjahr<=Costs!$A403)*(AbschreibungAGr=Costs!H$353)*(AbschreibungAHKBvD))-SUM(H$267:H315)","v":0},{"$f":"SUMPRODUCT((Aktivierungsjahr<=Costs!$A403)*(AbschreibungAGr=Costs!I$353)*(AbschreibungAHKBvD))-SUM(I$267:I315)","v":0},{"$f":"SUMPRODUCT((Aktivierungsjahr<=Costs!$A403)*(AbschreibungAGr=Costs!J$353)*(AbschreibungAHKBvD))-SUM(J$267:J315)","v":0},{"$f":"SUMPRODUCT((Aktivierungsjahr<=Costs!$A403)*(AbschreibungAGr=Costs!K$353)*(AbschreibungAHKBvD))-SUM(K$267:K315)","v":0},{"$f":"SUMPRODUCT((Aktivierungsjahr<=Costs!$A403)*(AbschreibungAGr=Costs!L$353)*(AbschreibungAHKBvD))-SUM(L$267:L315)","v":0},{"$f":"SUMPRODUCT((Aktivierungsjahr<=Costs!$A403)*(AbschreibungAGr=Costs!M$353)*(AbschreibungAHKBvD))-SUM(M$267:M315)","v":0},{"$f":"SUMPRODUCT((Aktivierungsjahr<=Costs!$A403)*(AbschreibungAGr=Costs!N$353)*(AbschreibungAHKBvD))-SUM(N$267:N315)","v":0},{"$f":"SUMPRODUCT((Aktivierungsjahr<=Costs!$A403)*(AbschreibungAGr=Costs!O$353)*(AbschreibungAHKBvD))-SUM(O$267:O315)","v":0},{"$f":"SUMPRODUCT((Aktivierungsjahr<=Costs!$A403)*(AbschreibungAGr=Costs!P$353)*(AbschreibungAHKBvD))-SUM(P$267:P315)","v":0},{"$f":"SUMPRODUCT((Aktivierungsjahr<=Costs!$A403)*(AbschreibungAGr=Costs!Q$353)*(AbschreibungAHKBvD))-SUM(Q$267:Q315)","v":0},{"$f":"SUMPRODUCT((Aktivierungsjahr<=Costs!$A403)*(AbschreibungAGr=Costs!R$353)*(AbschreibungAHKBvD))-SUM(R$267:R315)","v":0},{"$f":"SUMPRODUCT((Aktivierungsjahr<=Costs!$A403)*(AbschreibungAGr=Costs!S$353)*(AbschreibungAHKBvD))-SUM(S$267:S315)","v":0},{"$f":"SUMPRODUCT((Aktivierungsjahr<=Costs!$A403)*(AbschreibungAGr=Costs!T$353)*(AbschreibungAHKBvD))-SUM(T$267:T315)","v":0},{"$f":"SUMPRODUCT((Aktivierungsjahr<=Costs!$A403)*(AbschreibungAGr=Costs!U$353)*(AbschreibungAHKBvD))-SUM(U$267:U315)","v":0},{"$f":"SUMPRODUCT((Aktivierungsjahr<=Costs!$A403)*(AbschreibungAGr=Costs!V$353)*(AbschreibungAHKBvD))-SUM(V$267:V315)","v":0},{"$f":"SUMPRODUCT((Aktivierungsjahr<=Costs!$A403)*(AbschreibungAGr=Costs!W$353)*(AbschreibungAHKBvD))-SUM(W$267:W315)","v":0},{"$f":"SUMPRODUCT((Aktivierungsjahr<=Costs!$A403)*(AbschreibungAGr=Costs!X$353)*(AbschreibungAHKBvD))-SUM(X$267:X315)","v":0},{"$f":"SUMPRODUCT((Aktivierungsjahr<=Costs!$A403)*(AbschreibungAGr=Costs!Y$353)*(AbschreibungAHKBvD))-SUM(Y$267:Y315)","v":0},{"$f":"SUMPRODUCT((Aktivierungsjahr<=Costs!$A403)*(AbschreibungAGr=Costs!Z$353)*(AbschreibungAHKBvD))-SUM(Z$267:Z315)","v":0},{"$f":"SUMPRODUCT((Aktivierungsjahr<=Costs!$A403)*(AbschreibungAGr=Costs!AA$353)*(AbschreibungAHKBvD))-SUM(AA$267:AA315)","v":0},{"$f":"SUMPRODUCT((Aktivierungsjahr<=Costs!$A403)*(AbschreibungAGr=Costs!AB$353)*(AbschreibungAHKBvD))-SUM(AB$267:AB315)","v":0},{"$f":"SUMPRODUCT((Aktivierungsjahr<=Costs!$A403)*(AbschreibungAGr=Costs!AC$353)*(AbschreibungAHKBvD))-SUM(AC$267:AC315)","v":0},{"$f":"SUMPRODUCT((Aktivierungsjahr<=Costs!$A403)*(AbschreibungAGr=Costs!AD$353)*(AbschreibungAHKBvD))-SUM(AD$267:AD315)","v":0},{"$f":"SUMPRODUCT((Aktivierungsjahr<=Costs!$A403)*(AbschreibungAGr=Costs!AE$353)*(AbschreibungAHKBvD))-SUM(AE$267:AE315)","v":0},{"$f":"SUMPRODUCT((Aktivierungsjahr<=Costs!$A403)*(AbschreibungAGr=Costs!AF$353)*(AbschreibungAHKBvD))-SUM(AF$267:AF315)","v":0},{"$f":"SUMPRODUCT((Aktivierungsjahr<=Costs!$A403)*(AbschreibungAGr=Costs!AG$353)*(AbschreibungAHKBvD))-SUM(AG$267:AG315)","v":0},{"$f":"SUMPRODUCT((Aktivierungsjahr<=Costs!$A403)*(AbschreibungAGr=Costs!AH$353)*(AbschreibungAHKBvD))-SUM(AH$267:AH315)","v":0},{"$f":"SUMPRODUCT((Aktivierungsjahr<=Costs!$A403)*(AbschreibungAGr=Costs!AI$353)*(AbschreibungAHKBvD))-SUM(AI$267:AI315)","v":0},{"$f":"SUMPRODUCT((Aktivierungsjahr<=Costs!$A403)*(AbschreibungAGr=Costs!AJ$353)*(AbschreibungAHKBvD))-SUM(AJ$267:AJ315)","v":111111.11111111043},{"$f":"SUMPRODUCT((Aktivierungsjahr<=Costs!$A403)*(AbschreibungAGr=Costs!AK$353)*(AbschreibungAHKBvD))-SUM(AK$267:AK315)","v":0},{"$f":"SUMPRODUCT((Aktivierungsjahr<=Costs!$A403)*(AbschreibungAGr=Costs!AL$353)*(AbschreibungAHKBvD))-SUM(AL$267:AL315)","v":0},{"$f":"SUMPRODUCT((Aktivierungsjahr<=Costs!$A403)*(AbschreibungAGr=Costs!AM$353)*(AbschreibungAHKBvD))-SUM(AM$267:AM315)","v":0},{"$f":"SUMPRODUCT((Aktivierungsjahr<=Costs!$A403)*(AbschreibungAGr=Costs!AN$353)*(AbschreibungAHKBvD))-SUM(AN$267:AN315)","v":0},{"$f":"SUMPRODUCT((Aktivierungsjahr<=Costs!$A403)*(AbschreibungAGr=Costs!AO$353)*(AbschreibungAHKBvD))-SUM(AO$267:AO315)","v":0},{"$f":"SUMPRODUCT((Aktivierungsjahr<=Costs!$A403)*(AbschreibungAGr=Costs!AP$353)*(AbschreibungAHKBvD))-SUM(AP$267:AP315)","v":0},{"$f":"SUMPRODUCT((Aktivierungsjahr<=Costs!$A403)*(AbschreibungAGr=Costs!AQ$353)*(AbschreibungAHKBvD))-SUM(AQ$267:AQ315)","v":0}]
[2065,88888.888888888177,{"$f":"SUMPRODUCT((Aktivierungsjahr<=Costs!$A404)*(AbschreibungAGr=Costs!C$353)*(AbschreibungAHKBvD))-SUM(C$267:C316)","v":0},{"$f":"SUMPRODUCT((Aktivierungsjahr<=Costs!$A404)*(AbschreibungAGr=Costs!D$353)*(AbschreibungAHKBvD))-SUM(D$267:D316)","v":0},{"$f":"SUMPRODUCT((Aktivierungsjahr<=Costs!$A404)*(AbschreibungAGr=Costs!E$353)*(AbschreibungAHKBvD))-SUM(E$267:E316)","v":0},{"$f":"SUMPRODUCT((Aktivierungsjahr<=Costs!$A404)*(AbschreibungAGr=Costs!F$353)*(AbschreibungAHKBvD))-SUM(F$267:F316)","v":0},{"$f":"SUMPRODUCT((Aktivierungsjahr<=Costs!$A404)*(AbschreibungAGr=Costs!G$353)*(AbschreibungAHKBvD))-SUM(G$267:G316)","v":0},{"$f":"SUMPRODUCT((Aktivierungsjahr<=Costs!$A404)*(AbschreibungAGr=Costs!H$353)*(AbschreibungAHKBvD))-SUM(H$267:H316)","v":0},{"$f":"SUMPRODUCT((Aktivierungsjahr<=Costs!$A404)*(AbschreibungAGr=Costs!I$353)*(AbschreibungAHKBvD))-SUM(I$267:I316)","v":0},{"$f":"SUMPRODUCT((Aktivierungsjahr<=Costs!$A404)*(AbschreibungAGr=Costs!J$353)*(AbschreibungAHKBvD))-SUM(J$267:J316)","v":0},{"$f":"SUMPRODUCT((Aktivierungsjahr<=Costs!$A404)*(AbschreibungAGr=Costs!K$353)*(AbschreibungAHKBvD))-SUM(K$267:K316)","v":0},{"$f":"SUMPRODUCT((Aktivierungsjahr<=Costs!$A404)*(AbschreibungAGr=Costs!L$353)*(AbschreibungAHKBvD))-SUM(L$267:L316)","v":0},{"$f":"SUMPRODUCT((Aktivierungsjahr<=Costs!$A404)*(AbschreibungAGr=Costs!M$353)*(AbschreibungAHKBvD))-SUM(M$267:M316)","v":0},{"$f":"SUMPRODUCT((Aktivierungsjahr<=Costs!$A404)*(AbschreibungAGr=Costs!N$353)*(AbschreibungAHKBvD))-SUM(N$267:N316)","v":0},{"$f":"SUMPRODUCT((Aktivierungsjahr<=Costs!$A404)*(AbschreibungAGr=Costs!O$353)*(AbschreibungAHKBvD))-SUM(O$267:O316)","v":0},{"$f":"SUMPRODUCT((Aktivierungsjahr<=Costs!$A404)*(AbschreibungAGr=Costs!P$353)*(AbschreibungAHKBvD))-SUM(P$267:P316)","v":0},{"$f":"SUMPRODUCT((Aktivierungsjahr<=Costs!$A404)*(AbschreibungAGr=Costs!Q$353)*(AbschreibungAHKBvD))-SUM(Q$267:Q316)","v":0},{"$f":"SUMPRODUCT((Aktivierungsjahr<=Costs!$A404)*(AbschreibungAGr=Costs!R$353)*(AbschreibungAHKBvD))-SUM(R$267:R316)","v":0},{"$f":"SUMPRODUCT((Aktivierungsjahr<=Costs!$A404)*(AbschreibungAGr=Costs!S$353)*(AbschreibungAHKBvD))-SUM(S$267:S316)","v":0},{"$f":"SUMPRODUCT((Aktivierungsjahr<=Costs!$A404)*(AbschreibungAGr=Costs!T$353)*(AbschreibungAHKBvD))-SUM(T$267:T316)","v":0},{"$f":"SUMPRODUCT((Aktivierungsjahr<=Costs!$A404)*(AbschreibungAGr=Costs!U$353)*(AbschreibungAHKBvD))-SUM(U$267:U316)","v":0},{"$f":"SUMPRODUCT((Aktivierungsjahr<=Costs!$A404)*(AbschreibungAGr=Costs!V$353)*(AbschreibungAHKBvD))-SUM(V$267:V316)","v":0},{"$f":"SUMPRODUCT((Aktivierungsjahr<=Costs!$A404)*(AbschreibungAGr=Costs!W$353)*(AbschreibungAHKBvD))-SUM(W$267:W316)","v":0},{"$f":"SUMPRODUCT((Aktivierungsjahr<=Costs!$A404)*(AbschreibungAGr=Costs!X$353)*(AbschreibungAHKBvD))-SUM(X$267:X316)","v":0},{"$f":"SUMPRODUCT((Aktivierungsjahr<=Costs!$A404)*(AbschreibungAGr=Costs!Y$353)*(AbschreibungAHKBvD))-SUM(Y$267:Y316)","v":0},{"$f":"SUMPRODUCT((Aktivierungsjahr<=Costs!$A404)*(AbschreibungAGr=Costs!Z$353)*(AbschreibungAHKBvD))-SUM(Z$267:Z316)","v":0},{"$f":"SUMPRODUCT((Aktivierungsjahr<=Costs!$A404)*(AbschreibungAGr=Costs!AA$353)*(AbschreibungAHKBvD))-SUM(AA$267:AA316)","v":0},{"$f":"SUMPRODUCT((Aktivierungsjahr<=Costs!$A404)*(AbschreibungAGr=Costs!AB$353)*(AbschreibungAHKBvD))-SUM(AB$267:AB316)","v":0},{"$f":"SUMPRODUCT((Aktivierungsjahr<=Costs!$A404)*(AbschreibungAGr=Costs!AC$353)*(AbschreibungAHKBvD))-SUM(AC$267:AC316)","v":0},{"$f":"SUMPRODUCT((Aktivierungsjahr<=Costs!$A404)*(AbschreibungAGr=Costs!AD$353)*(AbschreibungAHKBvD))-SUM(AD$267:AD316)","v":0},{"$f":"SUMPRODUCT((Aktivierungsjahr<=Costs!$A404)*(AbschreibungAGr=Costs!AE$353)*(AbschreibungAHKBvD))-SUM(AE$267:AE316)","v":0},{"$f":"SUMPRODUCT((Aktivierungsjahr<=Costs!$A404)*(AbschreibungAGr=Costs!AF$353)*(AbschreibungAHKBvD))-SUM(AF$267:AF316)","v":0},{"$f":"SUMPRODUCT((Aktivierungsjahr<=Costs!$A404)*(AbschreibungAGr=Costs!AG$353)*(AbschreibungAHKBvD))-SUM(AG$267:AG316)","v":0},{"$f":"SUMPRODUCT((Aktivierungsjahr<=Costs!$A404)*(AbschreibungAGr=Costs!AH$353)*(AbschreibungAHKBvD))-SUM(AH$267:AH316)","v":0},{"$f":"SUMPRODUCT((Aktivierungsjahr<=Costs!$A404)*(AbschreibungAGr=Costs!AI$353)*(AbschreibungAHKBvD))-SUM(AI$267:AI316)","v":0},{"$f":"SUMPRODUCT((Aktivierungsjahr<=Costs!$A404)*(AbschreibungAGr=Costs!AJ$353)*(AbschreibungAHKBvD))-SUM(AJ$267:AJ316)","v":88888.888888888177},{"$f":"SUMPRODUCT((Aktivierungsjahr<=Costs!$A404)*(AbschreibungAGr=Costs!AK$353)*(AbschreibungAHKBvD))-SUM(AK$267:AK316)","v":0},{"$f":"SUMPRODUCT((Aktivierungsjahr<=Costs!$A404)*(AbschreibungAGr=Costs!AL$353)*(AbschreibungAHKBvD))-SUM(AL$267:AL316)","v":0},{"$f":"SUMPRODUCT((Aktivierungsjahr<=Costs!$A404)*(AbschreibungAGr=Costs!AM$353)*(AbschreibungAHKBvD))-SUM(AM$267:AM316)","v":0},{"$f":"SUMPRODUCT((Aktivierungsjahr<=Costs!$A404)*(AbschreibungAGr=Costs!AN$353)*(AbschreibungAHKBvD))-SUM(AN$267:AN316)","v":0},{"$f":"SUMPRODUCT((Aktivierungsjahr<=Costs!$A404)*(AbschreibungAGr=Costs!AO$353)*(AbschreibungAHKBvD))-SUM(AO$267:AO316)","v":0},{"$f":"SUMPRODUCT((Aktivierungsjahr<=Costs!$A404)*(AbschreibungAGr=Costs!AP$353)*(AbschreibungAHKBvD))-SUM(AP$267:AP316)","v":0},{"$f":"SUMPRODUCT((Aktivierungsjahr<=Costs!$A404)*(AbschreibungAGr=Costs!AQ$353)*(AbschreibungAHKBvD))-SUM(AQ$267:AQ316)","v":0}]
[2066,66666.666666665929,{"$f":"SUMPRODUCT((Aktivierungsjahr<=Costs!$A405)*(AbschreibungAGr=Costs!C$353)*(AbschreibungAHKBvD))-SUM(C$267:C317)","v":0},{"$f":"SUMPRODUCT((Aktivierungsjahr<=Costs!$A405)*(AbschreibungAGr=Costs!D$353)*(AbschreibungAHKBvD))-SUM(D$267:D317)","v":0},{"$f":"SUMPRODUCT((Aktivierungsjahr<=Costs!$A405)*(AbschreibungAGr=Costs!E$353)*(AbschreibungAHKBvD))-SUM(E$267:E317)","v":0},{"$f":"SUMPRODUCT((Aktivierungsjahr<=Costs!$A405)*(AbschreibungAGr=Costs!F$353)*(AbschreibungAHKBvD))-SUM(F$267:F317)","v":0},{"$f":"SUMPRODUCT((Aktivierungsjahr<=Costs!$A405)*(AbschreibungAGr=Costs!G$353)*(AbschreibungAHKBvD))-SUM(G$267:G317)","v":0},{"$f":"SUMPRODUCT((Aktivierungsjahr<=Costs!$A405)*(AbschreibungAGr=Costs!H$353)*(AbschreibungAHKBvD))-SUM(H$267:H317)","v":0},{"$f":"SUMPRODUCT((Aktivierungsjahr<=Costs!$A405)*(AbschreibungAGr=Costs!I$353)*(AbschreibungAHKBvD))-SUM(I$267:I317)","v":0},{"$f":"SUMPRODUCT((Aktivierungsjahr<=Costs!$A405)*(AbschreibungAGr=Costs!J$353)*(AbschreibungAHKBvD))-SUM(J$267:J317)","v":0},{"$f":"SUMPRODUCT((Aktivierungsjahr<=Costs!$A405)*(AbschreibungAGr=Costs!K$353)*(AbschreibungAHKBvD))-SUM(K$267:K317)","v":0},{"$f":"SUMPRODUCT((Aktivierungsjahr<=Costs!$A405)*(AbschreibungAGr=Costs!L$353)*(AbschreibungAHKBvD))-SUM(L$267:L317)","v":0},{"$f":"SUMPRODUCT((Aktivierungsjahr<=Costs!$A405)*(AbschreibungAGr=Costs!M$353)*(AbschreibungAHKBvD))-SUM(M$267:M317)","v":0},{"$f":"SUMPRODUCT((Aktivierungsjahr<=Costs!$A405)*(AbschreibungAGr=Costs!N$353)*(AbschreibungAHKBvD))-SUM(N$267:N317)","v":0},{"$f":"SUMPRODUCT((Aktivierungsjahr<=Costs!$A405)*(AbschreibungAGr=Costs!O$353)*(AbschreibungAHKBvD))-SUM(O$267:O317)","v":0},{"$f":"SUMPRODUCT((Aktivierungsjahr<=Costs!$A405)*(AbschreibungAGr=Costs!P$353)*(AbschreibungAHKBvD))-SUM(P$267:P317)","v":0},{"$f":"SUMPRODUCT((Aktivierungsjahr<=Costs!$A405)*(AbschreibungAGr=Costs!Q$353)*(AbschreibungAHKBvD))-SUM(Q$267:Q317)","v":0},{"$f":"SUMPRODUCT((Aktivierungsjahr<=Costs!$A405)*(AbschreibungAGr=Costs!R$353)*(AbschreibungAHKBvD))-SUM(R$267:R317)","v":0},{"$f":"SUMPRODUCT((Aktivierungsjahr<=Costs!$A405)*(AbschreibungAGr=Costs!S$353)*(AbschreibungAHKBvD))-SUM(S$267:S317)","v":0},{"$f":"SUMPRODUCT((Aktivierungsjahr<=Costs!$A405)*(AbschreibungAGr=Costs!T$353)*(AbschreibungAHKBvD))-SUM(T$267:T317)","v":0},{"$f":"SUMPRODUCT((Aktivierungsjahr<=Costs!$A405)*(AbschreibungAGr=Costs!U$353)*(AbschreibungAHKBvD))-SUM(U$267:U317)","v":0},{"$f":"SUMPRODUCT((Aktivierungsjahr<=Costs!$A405)*(AbschreibungAGr=Costs!V$353)*(AbschreibungAHKBvD))-SUM(V$267:V317)","v":0},{"$f":"SUMPRODUCT((Aktivierungsjahr<=Costs!$A405)*(AbschreibungAGr=Costs!W$353)*(AbschreibungAHKBvD))-SUM(W$267:W317)","v":0},{"$f":"SUMPRODUCT((Aktivierungsjahr<=Costs!$A405)*(AbschreibungAGr=Costs!X$353)*(AbschreibungAHKBvD))-SUM(X$267:X317)","v":0},{"$f":"SUMPRODUCT((Aktivierungsjahr<=Costs!$A405)*(AbschreibungAGr=Costs!Y$353)*(AbschreibungAHKBvD))-SUM(Y$267:Y317)","v":0},{"$f":"SUMPRODUCT((Aktivierungsjahr<=Costs!$A405)*(AbschreibungAGr=Costs!Z$353)*(AbschreibungAHKBvD))-SUM(Z$267:Z317)","v":0},{"$f":"SUMPRODUCT((Aktivierungsjahr<=Costs!$A405)*(AbschreibungAGr=Costs!AA$353)*(AbschreibungAHKBvD))-SUM(AA$267:AA317)","v":0},{"$f":"SUMPRODUCT((Aktivierungsjahr<=Costs!$A405)*(AbschreibungAGr=Costs!AB$353)*(AbschreibungAHKBvD))-SUM(AB$267:AB317)","v":0},{"$f":"SUMPRODUCT((Aktivierungsjahr<=Costs!$A405)*(AbschreibungAGr=Costs!AC$353)*(AbschreibungAHKBvD))-SUM(AC$267:AC317)","v":0},{"$f":"SUMPRODUCT((Aktivierungsjahr<=Costs!$A405)*(AbschreibungAGr=Costs!AD$353)*(AbschreibungAHKBvD))-SUM(AD$267:AD317)","v":0},{"$f":"SUMPRODUCT((Aktivierungsjahr<=Costs!$A405)*(AbschreibungAGr=Costs!AE$353)*(AbschreibungAHKBvD))-SUM(AE$267:AE317)","v":0},{"$f":"SUMPRODUCT((Aktivierungsjahr<=Costs!$A405)*(AbschreibungAGr=Costs!AF$353)*(AbschreibungAHKBvD))-SUM(AF$267:AF317)","v":0},{"$f":"SUMPRODUCT((Aktivierungsjahr<=Costs!$A405)*(AbschreibungAGr=Costs!AG$353)*(AbschreibungAHKBvD))-SUM(AG$267:AG317)","v":0},{"$f":"SUMPRODUCT((Aktivierungsjahr<=Costs!$A405)*(AbschreibungAGr=Costs!AH$353)*(AbschreibungAHKBvD))-SUM(AH$267:AH317)","v":0},{"$f":"SUMPRODUCT((Aktivierungsjahr<=Costs!$A405)*(AbschreibungAGr=Costs!AI$353)*(AbschreibungAHKBvD))-SUM(AI$267:AI317)","v":0},{"$f":"SUMPRODUCT((Aktivierungsjahr<=Costs!$A405)*(AbschreibungAGr=Costs!AJ$353)*(AbschreibungAHKBvD))-SUM(AJ$267:AJ317)","v":66666.666666665929},{"$f":"SUMPRODUCT((Aktivierungsjahr<=Costs!$A405)*(AbschreibungAGr=Costs!AK$353)*(AbschreibungAHKBvD))-SUM(AK$267:AK317)","v":0},{"$f":"SUMPRODUCT((Aktivierungsjahr<=Costs!$A405)*(AbschreibungAGr=Costs!AL$353)*(AbschreibungAHKBvD))-SUM(AL$267:AL317)","v":0},{"$f":"SUMPRODUCT((Aktivierungsjahr<=Costs!$A405)*(AbschreibungAGr=Costs!AM$353)*(AbschreibungAHKBvD))-SUM(AM$267:AM317)","v":0},{"$f":"SUMPRODUCT((Aktivierungsjahr<=Costs!$A405)*(AbschreibungAGr=Costs!AN$353)*(AbschreibungAHKBvD))-SUM(AN$267:AN317)","v":0},{"$f":"SUMPRODUCT((Aktivierungsjahr<=Costs!$A405)*(AbschreibungAGr=Costs!AO$353)*(AbschreibungAHKBvD))-SUM(AO$267:AO317)","v":0},{"$f":"SUMPRODUCT((Aktivierungsjahr<=Costs!$A405)*(AbschreibungAGr=Costs!AP$353)*(AbschreibungAHKBvD))-SUM(AP$267:AP317)","v":0},{"$f":"SUMPRODUCT((Aktivierungsjahr<=Costs!$A405)*(AbschreibungAGr=Costs!AQ$353)*(AbschreibungAHKBvD))-SUM(AQ$267:AQ317)","v":0}]
[2067,44444.444444443681,{"$f":"SUMPRODUCT((Aktivierungsjahr<=Costs!$A406)*(AbschreibungAGr=Costs!C$353)*(AbschreibungAHKBvD))-SUM(C$267:C318)","v":0},{"$f":"SUMPRODUCT((Aktivierungsjahr<=Costs!$A406)*(AbschreibungAGr=Costs!D$353)*(AbschreibungAHKBvD))-SUM(D$267:D318)","v":0},{"$f":"SUMPRODUCT((Aktivierungsjahr<=Costs!$A406)*(AbschreibungAGr=Costs!E$353)*(AbschreibungAHKBvD))-SUM(E$267:E318)","v":0},{"$f":"SUMPRODUCT((Aktivierungsjahr<=Costs!$A406)*(AbschreibungAGr=Costs!F$353)*(AbschreibungAHKBvD))-SUM(F$267:F318)","v":0},{"$f":"SUMPRODUCT((Aktivierungsjahr<=Costs!$A406)*(AbschreibungAGr=Costs!G$353)*(AbschreibungAHKBvD))-SUM(G$267:G318)","v":0},{"$f":"SUMPRODUCT((Aktivierungsjahr<=Costs!$A406)*(AbschreibungAGr=Costs!H$353)*(AbschreibungAHKBvD))-SUM(H$267:H318)","v":0},{"$f":"SUMPRODUCT((Aktivierungsjahr<=Costs!$A406)*(AbschreibungAGr=Costs!I$353)*(AbschreibungAHKBvD))-SUM(I$267:I318)","v":0},{"$f":"SUMPRODUCT((Aktivierungsjahr<=Costs!$A406)*(AbschreibungAGr=Costs!J$353)*(AbschreibungAHKBvD))-SUM(J$267:J318)","v":0},{"$f":"SUMPRODUCT((Aktivierungsjahr<=Costs!$A406)*(AbschreibungAGr=Costs!K$353)*(AbschreibungAHKBvD))-SUM(K$267:K318)","v":0},{"$f":"SUMPRODUCT((Aktivierungsjahr<=Costs!$A406)*(AbschreibungAGr=Costs!L$353)*(AbschreibungAHKBvD))-SUM(L$267:L318)","v":0},{"$f":"SUMPRODUCT((Aktivierungsjahr<=Costs!$A406)*(AbschreibungAGr=Costs!M$353)*(AbschreibungAHKBvD))-SUM(M$267:M318)","v":0},{"$f":"SUMPRODUCT((Aktivierungsjahr<=Costs!$A406)*(AbschreibungAGr=Costs!N$353)*(AbschreibungAHKBvD))-SUM(N$267:N318)","v":0},{"$f":"SUMPRODUCT((Aktivierungsjahr<=Costs!$A406)*(AbschreibungAGr=Costs!O$353)*(AbschreibungAHKBvD))-SUM(O$267:O318)","v":0},{"$f":"SUMPRODUCT((Aktivierungsjahr<=Costs!$A406)*(AbschreibungAGr=Costs!P$353)*(AbschreibungAHKBvD))-SUM(P$267:P318)","v":0},{"$f":"SUMPRODUCT((Aktivierungsjahr<=Costs!$A406)*(AbschreibungAGr=Costs!Q$353)*(AbschreibungAHKBvD))-SUM(Q$267:Q318)","v":0},{"$f":"SUMPRODUCT((Aktivierungsjahr<=Costs!$A406)*(AbschreibungAGr=Costs!R$353)*(AbschreibungAHKBvD))-SUM(R$267:R318)","v":0},{"$f":"SUMPRODUCT((Aktivierungsjahr<=Costs!$A406)*(AbschreibungAGr=Costs!S$353)*(AbschreibungAHKBvD))-SUM(S$267:S318)","v":0},{"$f":"SUMPRODUCT((Aktivierungsjahr<=Costs!$A406)*(AbschreibungAGr=Costs!T$353)*(AbschreibungAHKBvD))-SUM(T$267:T318)","v":0},{"$f":"SUMPRODUCT((Aktivierungsjahr<=Costs!$A406)*(AbschreibungAGr=Costs!U$353)*(AbschreibungAHKBvD))-SUM(U$267:U318)","v":0},{"$f":"SUMPRODUCT((Aktivierungsjahr<=Costs!$A406)*(AbschreibungAGr=Costs!V$353)*(AbschreibungAHKBvD))-SUM(V$267:V318)","v":0},{"$f":"SUMPRODUCT((Aktivierungsjahr<=Costs!$A406)*(AbschreibungAGr=Costs!W$353)*(AbschreibungAHKBvD))-SUM(W$267:W318)","v":0},{"$f":"SUMPRODUCT((Aktivierungsjahr<=Costs!$A406)*(AbschreibungAGr=Costs!X$353)*(AbschreibungAHKBvD))-SUM(X$267:X318)","v":0},{"$f":"SUMPRODUCT((Aktivierungsjahr<=Costs!$A406)*(AbschreibungAGr=Costs!Y$353)*(AbschreibungAHKBvD))-SUM(Y$267:Y318)","v":0},{"$f":"SUMPRODUCT((Aktivierungsjahr<=Costs!$A406)*(AbschreibungAGr=Costs!Z$353)*(AbschreibungAHKBvD))-SUM(Z$267:Z318)","v":0},{"$f":"SUMPRODUCT((Aktivierungsjahr<=Costs!$A406)*(AbschreibungAGr=Costs!AA$353)*(AbschreibungAHKBvD))-SUM(AA$267:AA318)","v":0},{"$f":"SUMPRODUCT((Aktivierungsjahr<=Costs!$A406)*(AbschreibungAGr=Costs!AB$353)*(AbschreibungAHKBvD))-SUM(AB$267:AB318)","v":0},{"$f":"SUMPRODUCT((Aktivierungsjahr<=Costs!$A406)*(AbschreibungAGr=Costs!AC$353)*(AbschreibungAHKBvD))-SUM(AC$267:AC318)","v":0},{"$f":"SUMPRODUCT((Aktivierungsjahr<=Costs!$A406)*(AbschreibungAGr=Costs!AD$353)*(AbschreibungAHKBvD))-SUM(AD$267:AD318)","v":0},{"$f":"SUMPRODUCT((Aktivierungsjahr<=Costs!$A406)*(AbschreibungAGr=Costs!AE$353)*(AbschreibungAHKBvD))-SUM(AE$267:AE318)","v":0},{"$f":"SUMPRODUCT((Aktivierungsjahr<=Costs!$A406)*(AbschreibungAGr=Costs!AF$353)*(AbschreibungAHKBvD))-SUM(AF$267:AF318)","v":0},{"$f":"SUMPRODUCT((Aktivierungsjahr<=Costs!$A406)*(AbschreibungAGr=Costs!AG$353)*(AbschreibungAHKBvD))-SUM(AG$267:AG318)","v":0},{"$f":"SUMPRODUCT((Aktivierungsjahr<=Costs!$A406)*(AbschreibungAGr=Costs!AH$353)*(AbschreibungAHKBvD))-SUM(AH$267:AH318)","v":0},{"$f":"SUMPRODUCT((Aktivierungsjahr<=Costs!$A406)*(AbschreibungAGr=Costs!AI$353)*(AbschreibungAHKBvD))-SUM(AI$267:AI318)","v":0},{"$f":"SUMPRODUCT((Aktivierungsjahr<=Costs!$A406)*(AbschreibungAGr=Costs!AJ$353)*(AbschreibungAHKBvD))-SUM(AJ$267:AJ318)","v":44444.444444443681},{"$f":"SUMPRODUCT((Aktivierungsjahr<=Costs!$A406)*(AbschreibungAGr=Costs!AK$353)*(AbschreibungAHKBvD))-SUM(AK$267:AK318)","v":0},{"$f":"SUMPRODUCT((Aktivierungsjahr<=Costs!$A406)*(AbschreibungAGr=Costs!AL$353)*(AbschreibungAHKBvD))-SUM(AL$267:AL318)","v":0},{"$f":"SUMPRODUCT((Aktivierungsjahr<=Costs!$A406)*(AbschreibungAGr=Costs!AM$353)*(AbschreibungAHKBvD))-SUM(AM$267:AM318)","v":0},{"$f":"SUMPRODUCT((Aktivierungsjahr<=Costs!$A406)*(AbschreibungAGr=Costs!AN$353)*(AbschreibungAHKBvD))-SUM(AN$267:AN318)","v":0},{"$f":"SUMPRODUCT((Aktivierungsjahr<=Costs!$A406)*(AbschreibungAGr=Costs!AO$353)*(AbschreibungAHKBvD))-SUM(AO$267:AO318)","v":0},{"$f":"SUMPRODUCT((Aktivierungsjahr<=Costs!$A406)*(AbschreibungAGr=Costs!AP$353)*(AbschreibungAHKBvD))-SUM(AP$267:AP318)","v":0},{"$f":"SUMPRODUCT((Aktivierungsjahr<=Costs!$A406)*(AbschreibungAGr=Costs!AQ$353)*(AbschreibungAHKBvD))-SUM(AQ$267:AQ318)","v":0}]
[2068,22222.222222221433,{"$f":"SUMPRODUCT((Aktivierungsjahr<=Costs!$A407)*(AbschreibungAGr=Costs!C$353)*(AbschreibungAHKBvD))-SUM(C$267:C319)","v":0},{"$f":"SUMPRODUCT((Aktivierungsjahr<=Costs!$A407)*(AbschreibungAGr=Costs!D$353)*(AbschreibungAHKBvD))-SUM(D$267:D319)","v":0},{"$f":"SUMPRODUCT((Aktivierungsjahr<=Costs!$A407)*(AbschreibungAGr=Costs!E$353)*(AbschreibungAHKBvD))-SUM(E$267:E319)","v":0},{"$f":"SUMPRODUCT((Aktivierungsjahr<=Costs!$A407)*(AbschreibungAGr=Costs!F$353)*(AbschreibungAHKBvD))-SUM(F$267:F319)","v":0},{"$f":"SUMPRODUCT((Aktivierungsjahr<=Costs!$A407)*(AbschreibungAGr=Costs!G$353)*(AbschreibungAHKBvD))-SUM(G$267:G319)","v":0},{"$f":"SUMPRODUCT((Aktivierungsjahr<=Costs!$A407)*(AbschreibungAGr=Costs!H$353)*(AbschreibungAHKBvD))-SUM(H$267:H319)","v":0},{"$f":"SUMPRODUCT((Aktivierungsjahr<=Costs!$A407)*(AbschreibungAGr=Costs!I$353)*(AbschreibungAHKBvD))-SUM(I$267:I319)","v":0},{"$f":"SUMPRODUCT((Aktivierungsjahr<=Costs!$A407)*(AbschreibungAGr=Costs!J$353)*(AbschreibungAHKBvD))-SUM(J$267:J319)","v":0},{"$f":"SUMPRODUCT((Aktivierungsjahr<=Costs!$A407)*(AbschreibungAGr=Costs!K$353)*(AbschreibungAHKBvD))-SUM(K$267:K319)","v":0},{"$f":"SUMPRODUCT((Aktivierungsjahr<=Costs!$A407)*(AbschreibungAGr=Costs!L$353)*(AbschreibungAHKBvD))-SUM(L$267:L319)","v":0},{"$f":"SUMPRODUCT((Aktivierungsjahr<=Costs!$A407)*(AbschreibungAGr=Costs!M$353)*(AbschreibungAHKBvD))-SUM(M$267:M319)","v":0},{"$f":"SUMPRODUCT((Aktivierungsjahr<=Costs!$A407)*(AbschreibungAGr=Costs!N$353)*(AbschreibungAHKBvD))-SUM(N$267:N319)","v":0},{"$f":"SUMPRODUCT((Aktivierungsjahr<=Costs!$A407)*(AbschreibungAGr=Costs!O$353)*(AbschreibungAHKBvD))-SUM(O$267:O319)","v":0},{"$f":"SUMPRODUCT((Aktivierungsjahr<=Costs!$A407)*(AbschreibungAGr=Costs!P$353)*(AbschreibungAHKBvD))-SUM(P$267:P319)","v":0},{"$f":"SUMPRODUCT((Aktivierungsjahr<=Costs!$A407)*(AbschreibungAGr=Costs!Q$353)*(AbschreibungAHKBvD))-SUM(Q$267:Q319)","v":0},{"$f":"SUMPRODUCT((Aktivierungsjahr<=Costs!$A407)*(AbschreibungAGr=Costs!R$353)*(AbschreibungAHKBvD))-SUM(R$267:R319)","v":0},{"$f":"SUMPRODUCT((Aktivierungsjahr<=Costs!$A407)*(AbschreibungAGr=Costs!S$353)*(AbschreibungAHKBvD))-SUM(S$267:S319)","v":0},{"$f":"SUMPRODUCT((Aktivierungsjahr<=Costs!$A407)*(AbschreibungAGr=Costs!T$353)*(AbschreibungAHKBvD))-SUM(T$267:T319)","v":0},{"$f":"SUMPRODUCT((Aktivierungsjahr<=Costs!$A407)*(AbschreibungAGr=Costs!U$353)*(AbschreibungAHKBvD))-SUM(U$267:U319)","v":0},{"$f":"SUMPRODUCT((Aktivierungsjahr<=Costs!$A407)*(AbschreibungAGr=Costs!V$353)*(AbschreibungAHKBvD))-SUM(V$267:V319)","v":0},{"$f":"SUMPRODUCT((Aktivierungsjahr<=Costs!$A407)*(AbschreibungAGr=Costs!W$353)*(AbschreibungAHKBvD))-SUM(W$267:W319)","v":0},{"$f":"SUMPRODUCT((Aktivierungsjahr<=Costs!$A407)*(AbschreibungAGr=Costs!X$353)*(AbschreibungAHKBvD))-SUM(X$267:X319)","v":0},{"$f":"SUMPRODUCT((Aktivierungsjahr<=Costs!$A407)*(AbschreibungAGr=Costs!Y$353)*(AbschreibungAHKBvD))-SUM(Y$267:Y319)","v":0},{"$f":"SUMPRODUCT((Aktivierungsjahr<=Costs!$A407)*(AbschreibungAGr=Costs!Z$353)*(AbschreibungAHKBvD))-SUM(Z$267:Z319)","v":0},{"$f":"SUMPRODUCT((Aktivierungsjahr<=Costs!$A407)*(AbschreibungAGr=Costs!AA$353)*(AbschreibungAHKBvD))-SUM(AA$267:AA319)","v":0},{"$f":"SUMPRODUCT((Aktivierungsjahr<=Costs!$A407)*(AbschreibungAGr=Costs!AB$353)*(AbschreibungAHKBvD))-SUM(AB$267:AB319)","v":0},{"$f":"SUMPRODUCT((Aktivierungsjahr<=Costs!$A407)*(AbschreibungAGr=Costs!AC$353)*(AbschreibungAHKBvD))-SUM(AC$267:AC319)","v":0},{"$f":"SUMPRODUCT((Aktivierungsjahr<=Costs!$A407)*(AbschreibungAGr=Costs!AD$353)*(AbschreibungAHKBvD))-SUM(AD$267:AD319)","v":0},{"$f":"SUMPRODUCT((Aktivierungsjahr<=Costs!$A407)*(AbschreibungAGr=Costs!AE$353)*(AbschreibungAHKBvD))-SUM(AE$267:AE319)","v":0},{"$f":"SUMPRODUCT((Aktivierungsjahr<=Costs!$A407)*(AbschreibungAGr=Costs!AF$353)*(AbschreibungAHKBvD))-SUM(AF$267:AF319)","v":0},{"$f":"SUMPRODUCT((Aktivierungsjahr<=Costs!$A407)*(AbschreibungAGr=Costs!AG$353)*(AbschreibungAHKBvD))-SUM(AG$267:AG319)","v":0},{"$f":"SUMPRODUCT((Aktivierungsjahr<=Costs!$A407)*(AbschreibungAGr=Costs!AH$353)*(AbschreibungAHKBvD))-SUM(AH$267:AH319)","v":0},{"$f":"SUMPRODUCT((Aktivierungsjahr<=Costs!$A407)*(AbschreibungAGr=Costs!AI$353)*(AbschreibungAHKBvD))-SUM(AI$267:AI319)","v":0},{"$f":"SUMPRODUCT((Aktivierungsjahr<=Costs!$A407)*(AbschreibungAGr=Costs!AJ$353)*(AbschreibungAHKBvD))-SUM(AJ$267:AJ319)","v":22222.222222221433},{"$f":"SUMPRODUCT((Aktivierungsjahr<=Costs!$A407)*(AbschreibungAGr=Costs!AK$353)*(AbschreibungAHKBvD))-SUM(AK$267:AK319)","v":0},{"$f":"SUMPRODUCT((Aktivierungsjahr<=Costs!$A407)*(AbschreibungAGr=Costs!AL$353)*(AbschreibungAHKBvD))-SUM(AL$267:AL319)","v":0},{"$f":"SUMPRODUCT((Aktivierungsjahr<=Costs!$A407)*(AbschreibungAGr=Costs!AM$353)*(AbschreibungAHKBvD))-SUM(AM$267:AM319)","v":0},{"$f":"SUMPRODUCT((Aktivierungsjahr<=Costs!$A407)*(AbschreibungAGr=Costs!AN$353)*(AbschreibungAHKBvD))-SUM(AN$267:AN319)","v":0},{"$f":"SUMPRODUCT((Aktivierungsjahr<=Costs!$A407)*(AbschreibungAGr=Costs!AO$353)*(AbschreibungAHKBvD))-SUM(AO$267:AO319)","v":0},{"$f":"SUMPRODUCT((Aktivierungsjahr<=Costs!$A407)*(AbschreibungAGr=Costs!AP$353)*(AbschreibungAHKBvD))-SUM(AP$267:AP319)","v":0},{"$f":"SUMPRODUCT((Aktivierungsjahr<=Costs!$A407)*(AbschreibungAGr=Costs!AQ$353)*(AbschreibungAHKBvD))-SUM(AQ$267:AQ319)","v":0}]
[2069,0,{"$f":"SUMPRODUCT((Aktivierungsjahr<=Costs!$A408)*(AbschreibungAGr=Costs!C$353)*(AbschreibungAHKBvD))-SUM(C$267:C320)","v":0},{"$f":"SUMPRODUCT((Aktivierungsjahr<=Costs!$A408)*(AbschreibungAGr=Costs!D$353)*(AbschreibungAHKBvD))-SUM(D$267:D320)","v":0},{"$f":"SUMPRODUCT((Aktivierungsjahr<=Costs!$A408)*(AbschreibungAGr=Costs!E$353)*(AbschreibungAHKBvD))-SUM(E$267:E320)","v":0},{"$f":"SUMPRODUCT((Aktivierungsjahr<=Costs!$A408)*(AbschreibungAGr=Costs!F$353)*(AbschreibungAHKBvD))-SUM(F$267:F320)","v":0},{"$f":"SUMPRODUCT((Aktivierungsjahr<=Costs!$A408)*(AbschreibungAGr=Costs!G$353)*(AbschreibungAHKBvD))-SUM(G$267:G320)","v":0},{"$f":"SUMPRODUCT((Aktivierungsjahr<=Costs!$A408)*(AbschreibungAGr=Costs!H$353)*(AbschreibungAHKBvD))-SUM(H$267:H320)","v":0},{"$f":"SUMPRODUCT((Aktivierungsjahr<=Costs!$A408)*(AbschreibungAGr=Costs!I$353)*(AbschreibungAHKBvD))-SUM(I$267:I320)","v":0},{"$f":"SUMPRODUCT((Aktivierungsjahr<=Costs!$A408)*(AbschreibungAGr=Costs!J$353)*(AbschreibungAHKBvD))-SUM(J$267:J320)","v":0},{"$f":"SUMPRODUCT((Aktivierungsjahr<=Costs!$A408)*(AbschreibungAGr=Costs!K$353)*(AbschreibungAHKBvD))-SUM(K$267:K320)","v":0},{"$f":"SUMPRODUCT((Aktivierungsjahr<=Costs!$A408)*(AbschreibungAGr=Costs!L$353)*(AbschreibungAHKBvD))-SUM(L$267:L320)","v":0},{"$f":"SUMPRODUCT((Aktivierungsjahr<=Costs!$A408)*(AbschreibungAGr=Costs!M$353)*(AbschreibungAHKBvD))-SUM(M$267:M320)","v":0},{"$f":"SUMPRODUCT((Aktivierungsjahr<=Costs!$A408)*(AbschreibungAGr=Costs!N$353)*(AbschreibungAHKBvD))-SUM(N$267:N320)","v":0},{"$f":"SUMPRODUCT((Aktivierungsjahr<=Costs!$A408)*(AbschreibungAGr=Costs!O$353)*(AbschreibungAHKBvD))-SUM(O$267:O320)","v":0},{"$f":"SUMPRODUCT((Aktivierungsjahr<=Costs!$A408)*(AbschreibungAGr=Costs!P$353)*(AbschreibungAHKBvD))-SUM(P$267:P320)","v":0},{"$f":"SUMPRODUCT((Aktivierungsjahr<=Costs!$A408)*(AbschreibungAGr=Costs!Q$353)*(AbschreibungAHKBvD))-SUM(Q$267:Q320)","v":0},{"$f":"SUMPRODUCT((Aktivierungsjahr<=Costs!$A408)*(AbschreibungAGr=Costs!R$353)*(AbschreibungAHKBvD))-SUM(R$267:R320)","v":0},{"$f":"SUMPRODUCT((Aktivierungsjahr<=Costs!$A408)*(AbschreibungAGr=Costs!S$353)*(AbschreibungAHKBvD))-SUM(S$267:S320)","v":0},{"$f":"SUMPRODUCT((Aktivierungsjahr<=Costs!$A408)*(AbschreibungAGr=Costs!T$353)*(AbschreibungAHKBvD))-SUM(T$267:T320)","v":0},{"$f":"SUMPRODUCT((Aktivierungsjahr<=Costs!$A408)*(AbschreibungAGr=Costs!U$353)*(AbschreibungAHKBvD))-SUM(U$267:U320)","v":0},{"$f":"SUMPRODUCT((Aktivierungsjahr<=Costs!$A408)*(AbschreibungAGr=Costs!V$353)*(AbschreibungAHKBvD))-SUM(V$267:V320)","v":0},{"$f":"SUMPRODUCT((Aktivierungsjahr<=Costs!$A408)*(AbschreibungAGr=Costs!W$353)*(AbschreibungAHKBvD))-SUM(W$267:W320)","v":0},{"$f":"SUMPRODUCT((Aktivierungsjahr<=Costs!$A408)*(AbschreibungAGr=Costs!X$353)*(AbschreibungAHKBvD))-SUM(X$267:X320)","v":0},{"$f":"SUMPRODUCT((Aktivierungsjahr<=Costs!$A408)*(AbschreibungAGr=Costs!Y$353)*(AbschreibungAHKBvD))-SUM(Y$267:Y320)","v":0},{"$f":"SUMPRODUCT((Aktivierungsjahr<=Costs!$A408)*(AbschreibungAGr=Costs!Z$353)*(AbschreibungAHKBvD))-SUM(Z$267:Z320)","v":0},{"$f":"SUMPRODUCT((Aktivierungsjahr<=Costs!$A408)*(AbschreibungAGr=Costs!AA$353)*(AbschreibungAHKBvD))-SUM(AA$267:AA320)","v":0},{"$f":"SUMPRODUCT((Aktivierungsjahr<=Costs!$A408)*(AbschreibungAGr=Costs!AB$353)*(AbschreibungAHKBvD))-SUM(AB$267:AB320)","v":0},{"$f":"SUMPRODUCT((Aktivierungsjahr<=Costs!$A408)*(AbschreibungAGr=Costs!AC$353)*(AbschreibungAHKBvD))-SUM(AC$267:AC320)","v":0},{"$f":"SUMPRODUCT((Aktivierungsjahr<=Costs!$A408)*(AbschreibungAGr=Costs!AD$353)*(AbschreibungAHKBvD))-SUM(AD$267:AD320)","v":0},{"$f":"SUMPRODUCT((Aktivierungsjahr<=Costs!$A408)*(AbschreibungAGr=Costs!AE$353)*(AbschreibungAHKBvD))-SUM(AE$267:AE320)","v":0},{"$f":"SUMPRODUCT((Aktivierungsjahr<=Costs!$A408)*(AbschreibungAGr=Costs!AF$353)*(AbschreibungAHKBvD))-SUM(AF$267:AF320)","v":0},{"$f":"SUMPRODUCT((Aktivierungsjahr<=Costs!$A408)*(AbschreibungAGr=Costs!AG$353)*(AbschreibungAHKBvD))-SUM(AG$267:AG320)","v":0},{"$f":"SUMPRODUCT((Aktivierungsjahr<=Costs!$A408)*(AbschreibungAGr=Costs!AH$353)*(AbschreibungAHKBvD))-SUM(AH$267:AH320)","v":0},{"$f":"SUMPRODUCT((Aktivierungsjahr<=Costs!$A408)*(AbschreibungAGr=Costs!AI$353)*(AbschreibungAHKBvD))-SUM(AI$267:AI320)","v":0},{"$f":"SUMPRODUCT((Aktivierungsjahr<=Costs!$A408)*(AbschreibungAGr=Costs!AJ$353)*(AbschreibungAHKBvD))-SUM(AJ$267:AJ320)","v":0},{"$f":"SUMPRODUCT((Aktivierungsjahr<=Costs!$A408)*(AbschreibungAGr=Costs!AK$353)*(AbschreibungAHKBvD))-SUM(AK$267:AK320)","v":0},{"$f":"SUMPRODUCT((Aktivierungsjahr<=Costs!$A408)*(AbschreibungAGr=Costs!AL$353)*(AbschreibungAHKBvD))-SUM(AL$267:AL320)","v":0},{"$f":"SUMPRODUCT((Aktivierungsjahr<=Costs!$A408)*(AbschreibungAGr=Costs!AM$353)*(AbschreibungAHKBvD))-SUM(AM$267:AM320)","v":0},{"$f":"SUMPRODUCT((Aktivierungsjahr<=Costs!$A408)*(AbschreibungAGr=Costs!AN$353)*(AbschreibungAHKBvD))-SUM(AN$267:AN320)","v":0},{"$f":"SUMPRODUCT((Aktivierungsjahr<=Costs!$A408)*(AbschreibungAGr=Costs!AO$353)*(AbschreibungAHKBvD))-SUM(AO$267:AO320)","v":0},{"$f":"SUMPRODUCT((Aktivierungsjahr<=Costs!$A408)*(AbschreibungAGr=Costs!AP$353)*(AbschreibungAHKBvD))-SUM(AP$267:AP320)","v":0},{"$f":"SUMPRODUCT((Aktivierungsjahr<=Costs!$A408)*(AbschreibungAGr=Costs!AQ$353)*(AbschreibungAHKBvD))-SUM(AQ$267:AQ320)","v":0}]
[2070,0,{"$f":"SUMPRODUCT((Aktivierungsjahr<=Costs!$A409)*(AbschreibungAGr=Costs!C$353)*(AbschreibungAHKBvD))-SUM(C$267:C321)","v":0},{"$f":"SUMPRODUCT((Aktivierungsjahr<=Costs!$A409)*(AbschreibungAGr=Costs!D$353)*(AbschreibungAHKBvD))-SUM(D$267:D321)","v":0},{"$f":"SUMPRODUCT((Aktivierungsjahr<=Costs!$A409)*(AbschreibungAGr=Costs!E$353)*(AbschreibungAHKBvD))-SUM(E$267:E321)","v":0},{"$f":"SUMPRODUCT((Aktivierungsjahr<=Costs!$A409)*(AbschreibungAGr=Costs!F$353)*(AbschreibungAHKBvD))-SUM(F$267:F321)","v":0},{"$f":"SUMPRODUCT((Aktivierungsjahr<=Costs!$A409)*(AbschreibungAGr=Costs!G$353)*(AbschreibungAHKBvD))-SUM(G$267:G321)","v":0},{"$f":"SUMPRODUCT((Aktivierungsjahr<=Costs!$A409)*(AbschreibungAGr=Costs!H$353)*(AbschreibungAHKBvD))-SUM(H$267:H321)","v":0},{"$f":"SUMPRODUCT((Aktivierungsjahr<=Costs!$A409)*(AbschreibungAGr=Costs!I$353)*(AbschreibungAHKBvD))-SUM(I$267:I321)","v":0},{"$f":"SUMPRODUCT((Aktivierungsjahr<=Costs!$A409)*(AbschreibungAGr=Costs!J$353)*(AbschreibungAHKBvD))-SUM(J$267:J321)","v":0},{"$f":"SUMPRODUCT((Aktivierungsjahr<=Costs!$A409)*(AbschreibungAGr=Costs!K$353)*(AbschreibungAHKBvD))-SUM(K$267:K321)","v":0},{"$f":"SUMPRODUCT((Aktivierungsjahr<=Costs!$A409)*(AbschreibungAGr=Costs!L$353)*(AbschreibungAHKBvD))-SUM(L$267:L321)","v":0},{"$f":"SUMPRODUCT((Aktivierungsjahr<=Costs!$A409)*(AbschreibungAGr=Costs!M$353)*(AbschreibungAHKBvD))-SUM(M$267:M321)","v":0},{"$f":"SUMPRODUCT((Aktivierungsjahr<=Costs!$A409)*(AbschreibungAGr=Costs!N$353)*(AbschreibungAHKBvD))-SUM(N$267:N321)","v":0},{"$f":"SUMPRODUCT((Aktivierungsjahr<=Costs!$A409)*(AbschreibungAGr=Costs!O$353)*(AbschreibungAHKBvD))-SUM(O$267:O321)","v":0},{"$f":"SUMPRODUCT((Aktivierungsjahr<=Costs!$A409)*(AbschreibungAGr=Costs!P$353)*(AbschreibungAHKBvD))-SUM(P$267:P321)","v":0},{"$f":"SUMPRODUCT((Aktivierungsjahr<=Costs!$A409)*(AbschreibungAGr=Costs!Q$353)*(AbschreibungAHKBvD))-SUM(Q$267:Q321)","v":0},{"$f":"SUMPRODUCT((Aktivierungsjahr<=Costs!$A409)*(AbschreibungAGr=Costs!R$353)*(AbschreibungAHKBvD))-SUM(R$267:R321)","v":0},{"$f":"SUMPRODUCT((Aktivierungsjahr<=Costs!$A409)*(AbschreibungAGr=Costs!S$353)*(AbschreibungAHKBvD))-SUM(S$267:S321)","v":0},{"$f":"SUMPRODUCT((Aktivierungsjahr<=Costs!$A409)*(AbschreibungAGr=Costs!T$353)*(AbschreibungAHKBvD))-SUM(T$267:T321)","v":0},{"$f":"SUMPRODUCT((Aktivierungsjahr<=Costs!$A409)*(AbschreibungAGr=Costs!U$353)*(AbschreibungAHKBvD))-SUM(U$267:U321)","v":0},{"$f":"SUMPRODUCT((Aktivierungsjahr<=Costs!$A409)*(AbschreibungAGr=Costs!V$353)*(AbschreibungAHKBvD))-SUM(V$267:V321)","v":0},{"$f":"SUMPRODUCT((Aktivierungsjahr<=Costs!$A409)*(AbschreibungAGr=Costs!W$353)*(AbschreibungAHKBvD))-SUM(W$267:W321)","v":0},{"$f":"SUMPRODUCT((Aktivierungsjahr<=Costs!$A409)*(AbschreibungAGr=Costs!X$353)*(AbschreibungAHKBvD))-SUM(X$267:X321)","v":0},{"$f":"SUMPRODUCT((Aktivierungsjahr<=Costs!$A409)*(AbschreibungAGr=Costs!Y$353)*(AbschreibungAHKBvD))-SUM(Y$267:Y321)","v":0},{"$f":"SUMPRODUCT((Aktivierungsjahr<=Costs!$A409)*(AbschreibungAGr=Costs!Z$353)*(AbschreibungAHKBvD))-SUM(Z$267:Z321)","v":0},{"$f":"SUMPRODUCT((Aktivierungsjahr<=Costs!$A409)*(AbschreibungAGr=Costs!AA$353)*(AbschreibungAHKBvD))-SUM(AA$267:AA321)","v":0},{"$f":"SUMPRODUCT((Aktivierungsjahr<=Costs!$A409)*(AbschreibungAGr=Costs!AB$353)*(AbschreibungAHKBvD))-SUM(AB$267:AB321)","v":0},{"$f":"SUMPRODUCT((Aktivierungsjahr<=Costs!$A409)*(AbschreibungAGr=Costs!AC$353)*(AbschreibungAHKBvD))-SUM(AC$267:AC321)","v":0},{"$f":"SUMPRODUCT((Aktivierungsjahr<=Costs!$A409)*(AbschreibungAGr=Costs!AD$353)*(AbschreibungAHKBvD))-SUM(AD$267:AD321)","v":0},{"$f":"SUMPRODUCT((Aktivierungsjahr<=Costs!$A409)*(AbschreibungAGr=Costs!AE$353)*(AbschreibungAHKBvD))-SUM(AE$267:AE321)","v":0},{"$f":"SUMPRODUCT((Aktivierungsjahr<=Costs!$A409)*(AbschreibungAGr=Costs!AF$353)*(AbschreibungAHKBvD))-SUM(AF$267:AF321)","v":0},{"$f":"SUMPRODUCT((Aktivierungsjahr<=Costs!$A409)*(AbschreibungAGr=Costs!AG$353)*(AbschreibungAHKBvD))-SUM(AG$267:AG321)","v":0},{"$f":"SUMPRODUCT((Aktivierungsjahr<=Costs!$A409)*(AbschreibungAGr=Costs!AH$353)*(AbschreibungAHKBvD))-SUM(AH$267:AH321)","v":0},{"$f":"SUMPRODUCT((Aktivierungsjahr<=Costs!$A409)*(AbschreibungAGr=Costs!AI$353)*(AbschreibungAHKBvD))-SUM(AI$267:AI321)","v":0},{"$f":"SUMPRODUCT((Aktivierungsjahr<=Costs!$A409)*(AbschreibungAGr=Costs!AJ$353)*(AbschreibungAHKBvD))-SUM(AJ$267:AJ321)","v":0},{"$f":"SUMPRODUCT((Aktivierungsjahr<=Costs!$A409)*(AbschreibungAGr=Costs!AK$353)*(AbschreibungAHKBvD))-SUM(AK$267:AK321)","v":0},{"$f":"SUMPRODUCT((Aktivierungsjahr<=Costs!$A409)*(AbschreibungAGr=Costs!AL$353)*(AbschreibungAHKBvD))-SUM(AL$267:AL321)","v":0},{"$f":"SUMPRODUCT((Aktivierungsjahr<=Costs!$A409)*(AbschreibungAGr=Costs!AM$353)*(AbschreibungAHKBvD))-SUM(AM$267:AM321)","v":0},{"$f":"SUMPRODUCT((Aktivierungsjahr<=Costs!$A409)*(AbschreibungAGr=Costs!AN$353)*(AbschreibungAHKBvD))-SUM(AN$267:AN321)","v":0},{"$f":"SUMPRODUCT((Aktivierungsjahr<=Costs!$A409)*(AbschreibungAGr=Costs!AO$353)*(AbschreibungAHKBvD))-SUM(AO$267:AO321)","v":0},{"$f":"SUMPRODUCT((Aktivierungsjahr<=Costs!$A409)*(AbschreibungAGr=Costs!AP$353)*(AbschreibungAHKBvD))-SUM(AP$267:AP321)","v":0},{"$f":"SUMPRODUCT((Aktivierungsjahr<=Costs!$A409)*(AbschreibungAGr=Costs!AQ$353)*(AbschreibungAHKBvD))-SUM(AQ$267:AQ321)","v":0}]
[2071,0,{"$f":"SUMPRODUCT((Aktivierungsjahr<=Costs!$A410)*(AbschreibungAGr=Costs!C$353)*(AbschreibungAHKBvD))-SUM(C$267:C322)","v":0},{"$f":"SUMPRODUCT((Aktivierungsjahr<=Costs!$A410)*(AbschreibungAGr=Costs!D$353)*(AbschreibungAHKBvD))-SUM(D$267:D322)","v":0},{"$f":"SUMPRODUCT((Aktivierungsjahr<=Costs!$A410)*(AbschreibungAGr=Costs!E$353)*(AbschreibungAHKBvD))-SUM(E$267:E322)","v":0},{"$f":"SUMPRODUCT((Aktivierungsjahr<=Costs!$A410)*(AbschreibungAGr=Costs!F$353)*(AbschreibungAHKBvD))-SUM(F$267:F322)","v":0},{"$f":"SUMPRODUCT((Aktivierungsjahr<=Costs!$A410)*(AbschreibungAGr=Costs!G$353)*(AbschreibungAHKBvD))-SUM(G$267:G322)","v":0},{"$f":"SUMPRODUCT((Aktivierungsjahr<=Costs!$A410)*(AbschreibungAGr=Costs!H$353)*(AbschreibungAHKBvD))-SUM(H$267:H322)","v":0},{"$f":"SUMPRODUCT((Aktivierungsjahr<=Costs!$A410)*(AbschreibungAGr=Costs!I$353)*(AbschreibungAHKBvD))-SUM(I$267:I322)","v":0},{"$f":"SUMPRODUCT((Aktivierungsjahr<=Costs!$A410)*(AbschreibungAGr=Costs!J$353)*(AbschreibungAHKBvD))-SUM(J$267:J322)","v":0},{"$f":"SUMPRODUCT((Aktivierungsjahr<=Costs!$A410)*(AbschreibungAGr=Costs!K$353)*(AbschreibungAHKBvD))-SUM(K$267:K322)","v":0},{"$f":"SUMPRODUCT((Aktivierungsjahr<=Costs!$A410)*(AbschreibungAGr=Costs!L$353)*(AbschreibungAHKBvD))-SUM(L$267:L322)","v":0},{"$f":"SUMPRODUCT((Aktivierungsjahr<=Costs!$A410)*(AbschreibungAGr=Costs!M$353)*(AbschreibungAHKBvD))-SUM(M$267:M322)","v":0},{"$f":"SUMPRODUCT((Aktivierungsjahr<=Costs!$A410)*(AbschreibungAGr=Costs!N$353)*(AbschreibungAHKBvD))-SUM(N$267:N322)","v":0},{"$f":"SUMPRODUCT((Aktivierungsjahr<=Costs!$A410)*(AbschreibungAGr=Costs!O$353)*(AbschreibungAHKBvD))-SUM(O$267:O322)","v":0},{"$f":"SUMPRODUCT((Aktivierungsjahr<=Costs!$A410)*(AbschreibungAGr=Costs!P$353)*(AbschreibungAHKBvD))-SUM(P$267:P322)","v":0},{"$f":"SUMPRODUCT((Aktivierungsjahr<=Costs!$A410)*(AbschreibungAGr=Costs!Q$353)*(AbschreibungAHKBvD))-SUM(Q$267:Q322)","v":0},{"$f":"SUMPRODUCT((Aktivierungsjahr<=Costs!$A410)*(AbschreibungAGr=Costs!R$353)*(AbschreibungAHKBvD))-SUM(R$267:R322)","v":0},{"$f":"SUMPRODUCT((Aktivierungsjahr<=Costs!$A410)*(AbschreibungAGr=Costs!S$353)*(AbschreibungAHKBvD))-SUM(S$267:S322)","v":0},{"$f":"SUMPRODUCT((Aktivierungsjahr<=Costs!$A410)*(AbschreibungAGr=Costs!T$353)*(AbschreibungAHKBvD))-SUM(T$267:T322)","v":0},{"$f":"SUMPRODUCT((Aktivierungsjahr<=Costs!$A410)*(AbschreibungAGr=Costs!U$353)*(AbschreibungAHKBvD))-SUM(U$267:U322)","v":0},{"$f":"SUMPRODUCT((Aktivierungsjahr<=Costs!$A410)*(AbschreibungAGr=Costs!V$353)*(AbschreibungAHKBvD))-SUM(V$267:V322)","v":0},{"$f":"SUMPRODUCT((Aktivierungsjahr<=Costs!$A410)*(AbschreibungAGr=Costs!W$353)*(AbschreibungAHKBvD))-SUM(W$267:W322)","v":0},{"$f":"SUMPRODUCT((Aktivierungsjahr<=Costs!$A410)*(AbschreibungAGr=Costs!X$353)*(AbschreibungAHKBvD))-SUM(X$267:X322)","v":0},{"$f":"SUMPRODUCT((Aktivierungsjahr<=Costs!$A410)*(AbschreibungAGr=Costs!Y$353)*(AbschreibungAHKBvD))-SUM(Y$267:Y322)","v":0},{"$f":"SUMPRODUCT((Aktivierungsjahr<=Costs!$A410)*(AbschreibungAGr=Costs!Z$353)*(AbschreibungAHKBvD))-SUM(Z$267:Z322)","v":0},{"$f":"SUMPRODUCT((Aktivierungsjahr<=Costs!$A410)*(AbschreibungAGr=Costs!AA$353)*(AbschreibungAHKBvD))-SUM(AA$267:AA322)","v":0},{"$f":"SUMPRODUCT((Aktivierungsjahr<=Costs!$A410)*(AbschreibungAGr=Costs!AB$353)*(AbschreibungAHKBvD))-SUM(AB$267:AB322)","v":0},{"$f":"SUMPRODUCT((Aktivierungsjahr<=Costs!$A410)*(AbschreibungAGr=Costs!AC$353)*(AbschreibungAHKBvD))-SUM(AC$267:AC322)","v":0},{"$f":"SUMPRODUCT((Aktivierungsjahr<=Costs!$A410)*(AbschreibungAGr=Costs!AD$353)*(AbschreibungAHKBvD))-SUM(AD$267:AD322)","v":0},{"$f":"SUMPRODUCT((Aktivierungsjahr<=Costs!$A410)*(AbschreibungAGr=Costs!AE$353)*(AbschreibungAHKBvD))-SUM(AE$267:AE322)","v":0},{"$f":"SUMPRODUCT((Aktivierungsjahr<=Costs!$A410)*(AbschreibungAGr=Costs!AF$353)*(AbschreibungAHKBvD))-SUM(AF$267:AF322)","v":0},{"$f":"SUMPRODUCT((Aktivierungsjahr<=Costs!$A410)*(AbschreibungAGr=Costs!AG$353)*(AbschreibungAHKBvD))-SUM(AG$267:AG322)","v":0},{"$f":"SUMPRODUCT((Aktivierungsjahr<=Costs!$A410)*(AbschreibungAGr=Costs!AH$353)*(AbschreibungAHKBvD))-SUM(AH$267:AH322)","v":0},{"$f":"SUMPRODUCT((Aktivierungsjahr<=Costs!$A410)*(AbschreibungAGr=Costs!AI$353)*(AbschreibungAHKBvD))-SUM(AI$267:AI322)","v":0},{"$f":"SUMPRODUCT((Aktivierungsjahr<=Costs!$A410)*(AbschreibungAGr=Costs!AJ$353)*(AbschreibungAHKBvD))-SUM(AJ$267:AJ322)","v":0},{"$f":"SUMPRODUCT((Aktivierungsjahr<=Costs!$A410)*(AbschreibungAGr=Costs!AK$353)*(AbschreibungAHKBvD))-SUM(AK$267:AK322)","v":0},{"$f":"SUMPRODUCT((Aktivierungsjahr<=Costs!$A410)*(AbschreibungAGr=Costs!AL$353)*(AbschreibungAHKBvD))-SUM(AL$267:AL322)","v":0},{"$f":"SUMPRODUCT((Aktivierungsjahr<=Costs!$A410)*(AbschreibungAGr=Costs!AM$353)*(AbschreibungAHKBvD))-SUM(AM$267:AM322)","v":0},{"$f":"SUMPRODUCT((Aktivierungsjahr<=Costs!$A410)*(AbschreibungAGr=Costs!AN$353)*(AbschreibungAHKBvD))-SUM(AN$267:AN322)","v":0},{"$f":"SUMPRODUCT((Aktivierungsjahr<=Costs!$A410)*(AbschreibungAGr=Costs!AO$353)*(AbschreibungAHKBvD))-SUM(AO$267:AO322)","v":0},{"$f":"SUMPRODUCT((Aktivierungsjahr<=Costs!$A410)*(AbschreibungAGr=Costs!AP$353)*(AbschreibungAHKBvD))-SUM(AP$267:AP322)","v":0},{"$f":"SUMPRODUCT((Aktivierungsjahr<=Costs!$A410)*(AbschreibungAGr=Costs!AQ$353)*(AbschreibungAHKBvD))-SUM(AQ$267:AQ322)","v":0}]
[2072,0,{"$f":"SUMPRODUCT((Aktivierungsjahr<=Costs!$A411)*(AbschreibungAGr=Costs!C$353)*(AbschreibungAHKBvD))-SUM(C$267:C323)","v":0},{"$f":"SUMPRODUCT((Aktivierungsjahr<=Costs!$A411)*(AbschreibungAGr=Costs!D$353)*(AbschreibungAHKBvD))-SUM(D$267:D323)","v":0},{"$f":"SUMPRODUCT((Aktivierungsjahr<=Costs!$A411)*(AbschreibungAGr=Costs!E$353)*(AbschreibungAHKBvD))-SUM(E$267:E323)","v":0},{"$f":"SUMPRODUCT((Aktivierungsjahr<=Costs!$A411)*(AbschreibungAGr=Costs!F$353)*(AbschreibungAHKBvD))-SUM(F$267:F323)","v":0},{"$f":"SUMPRODUCT((Aktivierungsjahr<=Costs!$A411)*(AbschreibungAGr=Costs!G$353)*(AbschreibungAHKBvD))-SUM(G$267:G323)","v":0},{"$f":"SUMPRODUCT((Aktivierungsjahr<=Costs!$A411)*(AbschreibungAGr=Costs!H$353)*(AbschreibungAHKBvD))-SUM(H$267:H323)","v":0},{"$f":"SUMPRODUCT((Aktivierungsjahr<=Costs!$A411)*(AbschreibungAGr=Costs!I$353)*(AbschreibungAHKBvD))-SUM(I$267:I323)","v":0},{"$f":"SUMPRODUCT((Aktivierungsjahr<=Costs!$A411)*(AbschreibungAGr=Costs!J$353)*(AbschreibungAHKBvD))-SUM(J$267:J323)","v":0},{"$f":"SUMPRODUCT((Aktivierungsjahr<=Costs!$A411)*(AbschreibungAGr=Costs!K$353)*(AbschreibungAHKBvD))-SUM(K$267:K323)","v":0},{"$f":"SUMPRODUCT((Aktivierungsjahr<=Costs!$A411)*(AbschreibungAGr=Costs!L$353)*(AbschreibungAHKBvD))-SUM(L$267:L323)","v":0},{"$f":"SUMPRODUCT((Aktivierungsjahr<=Costs!$A411)*(AbschreibungAGr=Costs!M$353)*(AbschreibungAHKBvD))-SUM(M$267:M323)","v":0},{"$f":"SUMPRODUCT((Aktivierungsjahr<=Costs!$A411)*(AbschreibungAGr=Costs!N$353)*(AbschreibungAHKBvD))-SUM(N$267:N323)","v":0},{"$f":"SUMPRODUCT((Aktivierungsjahr<=Costs!$A411)*(AbschreibungAGr=Costs!O$353)*(AbschreibungAHKBvD))-SUM(O$267:O323)","v":0},{"$f":"SUMPRODUCT((Aktivierungsjahr<=Costs!$A411)*(AbschreibungAGr=Costs!P$353)*(AbschreibungAHKBvD))-SUM(P$267:P323)","v":0},{"$f":"SUMPRODUCT((Aktivierungsjahr<=Costs!$A411)*(AbschreibungAGr=Costs!Q$353)*(AbschreibungAHKBvD))-SUM(Q$267:Q323)","v":0},{"$f":"SUMPRODUCT((Aktivierungsjahr<=Costs!$A411)*(AbschreibungAGr=Costs!R$353)*(AbschreibungAHKBvD))-SUM(R$267:R323)","v":0},{"$f":"SUMPRODUCT((Aktivierungsjahr<=Costs!$A411)*(AbschreibungAGr=Costs!S$353)*(AbschreibungAHKBvD))-SUM(S$267:S323)","v":0},{"$f":"SUMPRODUCT((Aktivierungsjahr<=Costs!$A411)*(AbschreibungAGr=Costs!T$353)*(AbschreibungAHKBvD))-SUM(T$267:T323)","v":0},{"$f":"SUMPRODUCT((Aktivierungsjahr<=Costs!$A411)*(AbschreibungAGr=Costs!U$353)*(AbschreibungAHKBvD))-SUM(U$267:U323)","v":0},{"$f":"SUMPRODUCT((Aktivierungsjahr<=Costs!$A411)*(AbschreibungAGr=Costs!V$353)*(AbschreibungAHKBvD))-SUM(V$267:V323)","v":0},{"$f":"SUMPRODUCT((Aktivierungsjahr<=Costs!$A411)*(AbschreibungAGr=Costs!W$353)*(AbschreibungAHKBvD))-SUM(W$267:W323)","v":0},{"$f":"SUMPRODUCT((Aktivierungsjahr<=Costs!$A411)*(AbschreibungAGr=Costs!X$353)*(AbschreibungAHKBvD))-SUM(X$267:X323)","v":0},{"$f":"SUMPRODUCT((Aktivierungsjahr<=Costs!$A411)*(AbschreibungAGr=Costs!Y$353)*(AbschreibungAHKBvD))-SUM(Y$267:Y323)","v":0},{"$f":"SUMPRODUCT((Aktivierungsjahr<=Costs!$A411)*(AbschreibungAGr=Costs!Z$353)*(AbschreibungAHKBvD))-SUM(Z$267:Z323)","v":0},{"$f":"SUMPRODUCT((Aktivierungsjahr<=Costs!$A411)*(AbschreibungAGr=Costs!AA$353)*(AbschreibungAHKBvD))-SUM(AA$267:AA323)","v":0},{"$f":"SUMPRODUCT((Aktivierungsjahr<=Costs!$A411)*(AbschreibungAGr=Costs!AB$353)*(AbschreibungAHKBvD))-SUM(AB$267:AB323)","v":0},{"$f":"SUMPRODUCT((Aktivierungsjahr<=Costs!$A411)*(AbschreibungAGr=Costs!AC$353)*(AbschreibungAHKBvD))-SUM(AC$267:AC323)","v":0},{"$f":"SUMPRODUCT((Aktivierungsjahr<=Costs!$A411)*(AbschreibungAGr=Costs!AD$353)*(AbschreibungAHKBvD))-SUM(AD$267:AD323)","v":0},{"$f":"SUMPRODUCT((Aktivierungsjahr<=Costs!$A411)*(AbschreibungAGr=Costs!AE$353)*(AbschreibungAHKBvD))-SUM(AE$267:AE323)","v":0},{"$f":"SUMPRODUCT((Aktivierungsjahr<=Costs!$A411)*(AbschreibungAGr=Costs!AF$353)*(AbschreibungAHKBvD))-SUM(AF$267:AF323)","v":0},{"$f":"SUMPRODUCT((Aktivierungsjahr<=Costs!$A411)*(AbschreibungAGr=Costs!AG$353)*(AbschreibungAHKBvD))-SUM(AG$267:AG323)","v":0},{"$f":"SUMPRODUCT((Aktivierungsjahr<=Costs!$A411)*(AbschreibungAGr=Costs!AH$353)*(AbschreibungAHKBvD))-SUM(AH$267:AH323)","v":0},{"$f":"SUMPRODUCT((Aktivierungsjahr<=Costs!$A411)*(AbschreibungAGr=Costs!AI$353)*(AbschreibungAHKBvD))-SUM(AI$267:AI323)","v":0},{"$f":"SUMPRODUCT((Aktivierungsjahr<=Costs!$A411)*(AbschreibungAGr=Costs!AJ$353)*(AbschreibungAHKBvD))-SUM(AJ$267:AJ323)","v":0},{"$f":"SUMPRODUCT((Aktivierungsjahr<=Costs!$A411)*(AbschreibungAGr=Costs!AK$353)*(AbschreibungAHKBvD))-SUM(AK$267:AK323)","v":0},{"$f":"SUMPRODUCT((Aktivierungsjahr<=Costs!$A411)*(AbschreibungAGr=Costs!AL$353)*(AbschreibungAHKBvD))-SUM(AL$267:AL323)","v":0},{"$f":"SUMPRODUCT((Aktivierungsjahr<=Costs!$A411)*(AbschreibungAGr=Costs!AM$353)*(AbschreibungAHKBvD))-SUM(AM$267:AM323)","v":0},{"$f":"SUMPRODUCT((Aktivierungsjahr<=Costs!$A411)*(AbschreibungAGr=Costs!AN$353)*(AbschreibungAHKBvD))-SUM(AN$267:AN323)","v":0},{"$f":"SUMPRODUCT((Aktivierungsjahr<=Costs!$A411)*(AbschreibungAGr=Costs!AO$353)*(AbschreibungAHKBvD))-SUM(AO$267:AO323)","v":0},{"$f":"SUMPRODUCT((Aktivierungsjahr<=Costs!$A411)*(AbschreibungAGr=Costs!AP$353)*(AbschreibungAHKBvD))-SUM(AP$267:AP323)","v":0},{"$f":"SUMPRODUCT((Aktivierungsjahr<=Costs!$A411)*(AbschreibungAGr=Costs!AQ$353)*(AbschreibungAHKBvD))-SUM(AQ$267:AQ323)","v":0}]
[2073,0,{"$f":"SUMPRODUCT((Aktivierungsjahr<=Costs!$A412)*(AbschreibungAGr=Costs!C$353)*(AbschreibungAHKBvD))-SUM(C$267:C324)","v":0},{"$f":"SUMPRODUCT((Aktivierungsjahr<=Costs!$A412)*(AbschreibungAGr=Costs!D$353)*(AbschreibungAHKBvD))-SUM(D$267:D324)","v":0},{"$f":"SUMPRODUCT((Aktivierungsjahr<=Costs!$A412)*(AbschreibungAGr=Costs!E$353)*(AbschreibungAHKBvD))-SUM(E$267:E324)","v":0},{"$f":"SUMPRODUCT((Aktivierungsjahr<=Costs!$A412)*(AbschreibungAGr=Costs!F$353)*(AbschreibungAHKBvD))-SUM(F$267:F324)","v":0},{"$f":"SUMPRODUCT((Aktivierungsjahr<=Costs!$A412)*(AbschreibungAGr=Costs!G$353)*(AbschreibungAHKBvD))-SUM(G$267:G324)","v":0},{"$f":"SUMPRODUCT((Aktivierungsjahr<=Costs!$A412)*(AbschreibungAGr=Costs!H$353)*(AbschreibungAHKBvD))-SUM(H$267:H324)","v":0},{"$f":"SUMPRODUCT((Aktivierungsjahr<=Costs!$A412)*(AbschreibungAGr=Costs!I$353)*(AbschreibungAHKBvD))-SUM(I$267:I324)","v":0},{"$f":"SUMPRODUCT((Aktivierungsjahr<=Costs!$A412)*(AbschreibungAGr=Costs!J$353)*(AbschreibungAHKBvD))-SUM(J$267:J324)","v":0},{"$f":"SUMPRODUCT((Aktivierungsjahr<=Costs!$A412)*(AbschreibungAGr=Costs!K$353)*(AbschreibungAHKBvD))-SUM(K$267:K324)","v":0},{"$f":"SUMPRODUCT((Aktivierungsjahr<=Costs!$A412)*(AbschreibungAGr=Costs!L$353)*(AbschreibungAHKBvD))-SUM(L$267:L324)","v":0},{"$f":"SUMPRODUCT((Aktivierungsjahr<=Costs!$A412)*(AbschreibungAGr=Costs!M$353)*(AbschreibungAHKBvD))-SUM(M$267:M324)","v":0},{"$f":"SUMPRODUCT((Aktivierungsjahr<=Costs!$A412)*(AbschreibungAGr=Costs!N$353)*(AbschreibungAHKBvD))-SUM(N$267:N324)","v":0},{"$f":"SUMPRODUCT((Aktivierungsjahr<=Costs!$A412)*(AbschreibungAGr=Costs!O$353)*(AbschreibungAHKBvD))-SUM(O$267:O324)","v":0},{"$f":"SUMPRODUCT((Aktivierungsjahr<=Costs!$A412)*(AbschreibungAGr=Costs!P$353)*(AbschreibungAHKBvD))-SUM(P$267:P324)","v":0},{"$f":"SUMPRODUCT((Aktivierungsjahr<=Costs!$A412)*(AbschreibungAGr=Costs!Q$353)*(AbschreibungAHKBvD))-SUM(Q$267:Q324)","v":0},{"$f":"SUMPRODUCT((Aktivierungsjahr<=Costs!$A412)*(AbschreibungAGr=Costs!R$353)*(AbschreibungAHKBvD))-SUM(R$267:R324)","v":0},{"$f":"SUMPRODUCT((Aktivierungsjahr<=Costs!$A412)*(AbschreibungAGr=Costs!S$353)*(AbschreibungAHKBvD))-SUM(S$267:S324)","v":0},{"$f":"SUMPRODUCT((Aktivierungsjahr<=Costs!$A412)*(AbschreibungAGr=Costs!T$353)*(AbschreibungAHKBvD))-SUM(T$267:T324)","v":0},{"$f":"SUMPRODUCT((Aktivierungsjahr<=Costs!$A412)*(AbschreibungAGr=Costs!U$353)*(AbschreibungAHKBvD))-SUM(U$267:U324)","v":0},{"$f":"SUMPRODUCT((Aktivierungsjahr<=Costs!$A412)*(AbschreibungAGr=Costs!V$353)*(AbschreibungAHKBvD))-SUM(V$267:V324)","v":0},{"$f":"SUMPRODUCT((Aktivierungsjahr<=Costs!$A412)*(AbschreibungAGr=Costs!W$353)*(AbschreibungAHKBvD))-SUM(W$267:W324)","v":0},{"$f":"SUMPRODUCT((Aktivierungsjahr<=Costs!$A412)*(AbschreibungAGr=Costs!X$353)*(AbschreibungAHKBvD))-SUM(X$267:X324)","v":0},{"$f":"SUMPRODUCT((Aktivierungsjahr<=Costs!$A412)*(AbschreibungAGr=Costs!Y$353)*(AbschreibungAHKBvD))-SUM(Y$267:Y324)","v":0},{"$f":"SUMPRODUCT((Aktivierungsjahr<=Costs!$A412)*(AbschreibungAGr=Costs!Z$353)*(AbschreibungAHKBvD))-SUM(Z$267:Z324)","v":0},{"$f":"SUMPRODUCT((Aktivierungsjahr<=Costs!$A412)*(AbschreibungAGr=Costs!AA$353)*(AbschreibungAHKBvD))-SUM(AA$267:AA324)","v":0},{"$f":"SUMPRODUCT((Aktivierungsjahr<=Costs!$A412)*(AbschreibungAGr=Costs!AB$353)*(AbschreibungAHKBvD))-SUM(AB$267:AB324)","v":0},{"$f":"SUMPRODUCT((Aktivierungsjahr<=Costs!$A412)*(AbschreibungAGr=Costs!AC$353)*(AbschreibungAHKBvD))-SUM(AC$267:AC324)","v":0},{"$f":"SUMPRODUCT((Aktivierungsjahr<=Costs!$A412)*(AbschreibungAGr=Costs!AD$353)*(AbschreibungAHKBvD))-SUM(AD$267:AD324)","v":0},{"$f":"SUMPRODUCT((Aktivierungsjahr<=Costs!$A412)*(AbschreibungAGr=Costs!AE$353)*(AbschreibungAHKBvD))-SUM(AE$267:AE324)","v":0},{"$f":"SUMPRODUCT((Aktivierungsjahr<=Costs!$A412)*(AbschreibungAGr=Costs!AF$353)*(AbschreibungAHKBvD))-SUM(AF$267:AF324)","v":0},{"$f":"SUMPRODUCT((Aktivierungsjahr<=Costs!$A412)*(AbschreibungAGr=Costs!AG$353)*(AbschreibungAHKBvD))-SUM(AG$267:AG324)","v":0},{"$f":"SUMPRODUCT((Aktivierungsjahr<=Costs!$A412)*(AbschreibungAGr=Costs!AH$353)*(AbschreibungAHKBvD))-SUM(AH$267:AH324)","v":0},{"$f":"SUMPRODUCT((Aktivierungsjahr<=Costs!$A412)*(AbschreibungAGr=Costs!AI$353)*(AbschreibungAHKBvD))-SUM(AI$267:AI324)","v":0},{"$f":"SUMPRODUCT((Aktivierungsjahr<=Costs!$A412)*(AbschreibungAGr=Costs!AJ$353)*(AbschreibungAHKBvD))-SUM(AJ$267:AJ324)","v":0},{"$f":"SUMPRODUCT((Aktivierungsjahr<=Costs!$A412)*(AbschreibungAGr=Costs!AK$353)*(AbschreibungAHKBvD))-SUM(AK$267:AK324)","v":0},{"$f":"SUMPRODUCT((Aktivierungsjahr<=Costs!$A412)*(AbschreibungAGr=Costs!AL$353)*(AbschreibungAHKBvD))-SUM(AL$267:AL324)","v":0},{"$f":"SUMPRODUCT((Aktivierungsjahr<=Costs!$A412)*(AbschreibungAGr=Costs!AM$353)*(AbschreibungAHKBvD))-SUM(AM$267:AM324)","v":0},{"$f":"SUMPRODUCT((Aktivierungsjahr<=Costs!$A412)*(AbschreibungAGr=Costs!AN$353)*(AbschreibungAHKBvD))-SUM(AN$267:AN324)","v":0},{"$f":"SUMPRODUCT((Aktivierungsjahr<=Costs!$A412)*(AbschreibungAGr=Costs!AO$353)*(AbschreibungAHKBvD))-SUM(AO$267:AO324)","v":0},{"$f":"SUMPRODUCT((Aktivierungsjahr<=Costs!$A412)*(AbschreibungAGr=Costs!AP$353)*(AbschreibungAHKBvD))-SUM(AP$267:AP324)","v":0},{"$f":"SUMPRODUCT((Aktivierungsjahr<=Costs!$A412)*(AbschreibungAGr=Costs!AQ$353)*(AbschreibungAHKBvD))-SUM(AQ$267:AQ324)","v":0}]
[2074,0,{"$f":"SUMPRODUCT((Aktivierungsjahr<=Costs!$A413)*(AbschreibungAGr=Costs!C$353)*(AbschreibungAHKBvD))-SUM(C$267:C325)","v":0},{"$f":"SUMPRODUCT((Aktivierungsjahr<=Costs!$A413)*(AbschreibungAGr=Costs!D$353)*(AbschreibungAHKBvD))-SUM(D$267:D325)","v":0},{"$f":"SUMPRODUCT((Aktivierungsjahr<=Costs!$A413)*(AbschreibungAGr=Costs!E$353)*(AbschreibungAHKBvD))-SUM(E$267:E325)","v":0},{"$f":"SUMPRODUCT((Aktivierungsjahr<=Costs!$A413)*(AbschreibungAGr=Costs!F$353)*(AbschreibungAHKBvD))-SUM(F$267:F325)","v":0},{"$f":"SUMPRODUCT((Aktivierungsjahr<=Costs!$A413)*(AbschreibungAGr=Costs!G$353)*(AbschreibungAHKBvD))-SUM(G$267:G325)","v":0},{"$f":"SUMPRODUCT((Aktivierungsjahr<=Costs!$A413)*(AbschreibungAGr=Costs!H$353)*(AbschreibungAHKBvD))-SUM(H$267:H325)","v":0},{"$f":"SUMPRODUCT((Aktivierungsjahr<=Costs!$A413)*(AbschreibungAGr=Costs!I$353)*(AbschreibungAHKBvD))-SUM(I$267:I325)","v":0},{"$f":"SUMPRODUCT((Aktivierungsjahr<=Costs!$A413)*(AbschreibungAGr=Costs!J$353)*(AbschreibungAHKBvD))-SUM(J$267:J325)","v":0},{"$f":"SUMPRODUCT((Aktivierungsjahr<=Costs!$A413)*(AbschreibungAGr=Costs!K$353)*(AbschreibungAHKBvD))-SUM(K$267:K325)","v":0},{"$f":"SUMPRODUCT((Aktivierungsjahr<=Costs!$A413)*(AbschreibungAGr=Costs!L$353)*(AbschreibungAHKBvD))-SUM(L$267:L325)","v":0},{"$f":"SUMPRODUCT((Aktivierungsjahr<=Costs!$A413)*(AbschreibungAGr=Costs!M$353)*(AbschreibungAHKBvD))-SUM(M$267:M325)","v":0},{"$f":"SUMPRODUCT((Aktivierungsjahr<=Costs!$A413)*(AbschreibungAGr=Costs!N$353)*(AbschreibungAHKBvD))-SUM(N$267:N325)","v":0},{"$f":"SUMPRODUCT((Aktivierungsjahr<=Costs!$A413)*(AbschreibungAGr=Costs!O$353)*(AbschreibungAHKBvD))-SUM(O$267:O325)","v":0},{"$f":"SUMPRODUCT((Aktivierungsjahr<=Costs!$A413)*(AbschreibungAGr=Costs!P$353)*(AbschreibungAHKBvD))-SUM(P$267:P325)","v":0},{"$f":"SUMPRODUCT((Aktivierungsjahr<=Costs!$A413)*(AbschreibungAGr=Costs!Q$353)*(AbschreibungAHKBvD))-SUM(Q$267:Q325)","v":0},{"$f":"SUMPRODUCT((Aktivierungsjahr<=Costs!$A413)*(AbschreibungAGr=Costs!R$353)*(AbschreibungAHKBvD))-SUM(R$267:R325)","v":0},{"$f":"SUMPRODUCT((Aktivierungsjahr<=Costs!$A413)*(AbschreibungAGr=Costs!S$353)*(AbschreibungAHKBvD))-SUM(S$267:S325)","v":0},{"$f":"SUMPRODUCT((Aktivierungsjahr<=Costs!$A413)*(AbschreibungAGr=Costs!T$353)*(AbschreibungAHKBvD))-SUM(T$267:T325)","v":0},{"$f":"SUMPRODUCT((Aktivierungsjahr<=Costs!$A413)*(AbschreibungAGr=Costs!U$353)*(AbschreibungAHKBvD))-SUM(U$267:U325)","v":0},{"$f":"SUMPRODUCT((Aktivierungsjahr<=Costs!$A413)*(AbschreibungAGr=Costs!V$353)*(AbschreibungAHKBvD))-SUM(V$267:V325)","v":0},{"$f":"SUMPRODUCT((Aktivierungsjahr<=Costs!$A413)*(AbschreibungAGr=Costs!W$353)*(AbschreibungAHKBvD))-SUM(W$267:W325)","v":0},{"$f":"SUMPRODUCT((Aktivierungsjahr<=Costs!$A413)*(AbschreibungAGr=Costs!X$353)*(AbschreibungAHKBvD))-SUM(X$267:X325)","v":0},{"$f":"SUMPRODUCT((Aktivierungsjahr<=Costs!$A413)*(AbschreibungAGr=Costs!Y$353)*(AbschreibungAHKBvD))-SUM(Y$267:Y325)","v":0},{"$f":"SUMPRODUCT((Aktivierungsjahr<=Costs!$A413)*(AbschreibungAGr=Costs!Z$353)*(AbschreibungAHKBvD))-SUM(Z$267:Z325)","v":0},{"$f":"SUMPRODUCT((Aktivierungsjahr<=Costs!$A413)*(AbschreibungAGr=Costs!AA$353)*(AbschreibungAHKBvD))-SUM(AA$267:AA325)","v":0},{"$f":"SUMPRODUCT((Aktivierungsjahr<=Costs!$A413)*(AbschreibungAGr=Costs!AB$353)*(AbschreibungAHKBvD))-SUM(AB$267:AB325)","v":0},{"$f":"SUMPRODUCT((Aktivierungsjahr<=Costs!$A413)*(AbschreibungAGr=Costs!AC$353)*(AbschreibungAHKBvD))-SUM(AC$267:AC325)","v":0},{"$f":"SUMPRODUCT((Aktivierungsjahr<=Costs!$A413)*(AbschreibungAGr=Costs!AD$353)*(AbschreibungAHKBvD))-SUM(AD$267:AD325)","v":0},{"$f":"SUMPRODUCT((Aktivierungsjahr<=Costs!$A413)*(AbschreibungAGr=Costs!AE$353)*(AbschreibungAHKBvD))-SUM(AE$267:AE325)","v":0},{"$f":"SUMPRODUCT((Aktivierungsjahr<=Costs!$A413)*(AbschreibungAGr=Costs!AF$353)*(AbschreibungAHKBvD))-SUM(AF$267:AF325)","v":0},{"$f":"SUMPRODUCT((Aktivierungsjahr<=Costs!$A413)*(AbschreibungAGr=Costs!AG$353)*(AbschreibungAHKBvD))-SUM(AG$267:AG325)","v":0},{"$f":"SUMPRODUCT((Aktivierungsjahr<=Costs!$A413)*(AbschreibungAGr=Costs!AH$353)*(AbschreibungAHKBvD))-SUM(AH$267:AH325)","v":0},{"$f":"SUMPRODUCT((Aktivierungsjahr<=Costs!$A413)*(AbschreibungAGr=Costs!AI$353)*(AbschreibungAHKBvD))-SUM(AI$267:AI325)","v":0},{"$f":"SUMPRODUCT((Aktivierungsjahr<=Costs!$A413)*(AbschreibungAGr=Costs!AJ$353)*(AbschreibungAHKBvD))-SUM(AJ$267:AJ325)","v":0},{"$f":"SUMPRODUCT((Aktivierungsjahr<=Costs!$A413)*(AbschreibungAGr=Costs!AK$353)*(AbschreibungAHKBvD))-SUM(AK$267:AK325)","v":0},{"$f":"SUMPRODUCT((Aktivierungsjahr<=Costs!$A413)*(AbschreibungAGr=Costs!AL$353)*(AbschreibungAHKBvD))-SUM(AL$267:AL325)","v":0},{"$f":"SUMPRODUCT((Aktivierungsjahr<=Costs!$A413)*(AbschreibungAGr=Costs!AM$353)*(AbschreibungAHKBvD))-SUM(AM$267:AM325)","v":0},{"$f":"SUMPRODUCT((Aktivierungsjahr<=Costs!$A413)*(AbschreibungAGr=Costs!AN$353)*(AbschreibungAHKBvD))-SUM(AN$267:AN325)","v":0},{"$f":"SUMPRODUCT((Aktivierungsjahr<=Costs!$A413)*(AbschreibungAGr=Costs!AO$353)*(AbschreibungAHKBvD))-SUM(AO$267:AO325)","v":0},{"$f":"SUMPRODUCT((Aktivierungsjahr<=Costs!$A413)*(AbschreibungAGr=Costs!AP$353)*(AbschreibungAHKBvD))-SUM(AP$267:AP325)","v":0},{"$f":"SUMPRODUCT((Aktivierungsjahr<=Costs!$A413)*(AbschreibungAGr=Costs!AQ$353)*(AbschreibungAHKBvD))-SUM(AQ$267:AQ325)","v":0}]
[2075,0,{"$f":"SUMPRODUCT((Aktivierungsjahr<=Costs!$A414)*(AbschreibungAGr=Costs!C$353)*(AbschreibungAHKBvD))-SUM(C$267:C326)","v":0},{"$f":"SUMPRODUCT((Aktivierungsjahr<=Costs!$A414)*(AbschreibungAGr=Costs!D$353)*(AbschreibungAHKBvD))-SUM(D$267:D326)","v":0},{"$f":"SUMPRODUCT((Aktivierungsjahr<=Costs!$A414)*(AbschreibungAGr=Costs!E$353)*(AbschreibungAHKBvD))-SUM(E$267:E326)","v":0},{"$f":"SUMPRODUCT((Aktivierungsjahr<=Costs!$A414)*(AbschreibungAGr=Costs!F$353)*(AbschreibungAHKBvD))-SUM(F$267:F326)","v":0},{"$f":"SUMPRODUCT((Aktivierungsjahr<=Costs!$A414)*(AbschreibungAGr=Costs!G$353)*(AbschreibungAHKBvD))-SUM(G$267:G326)","v":0},{"$f":"SUMPRODUCT((Aktivierungsjahr<=Costs!$A414)*(AbschreibungAGr=Costs!H$353)*(AbschreibungAHKBvD))-SUM(H$267:H326)","v":0},{"$f":"SUMPRODUCT((Aktivierungsjahr<=Costs!$A414)*(AbschreibungAGr=Costs!I$353)*(AbschreibungAHKBvD))-SUM(I$267:I326)","v":0},{"$f":"SUMPRODUCT((Aktivierungsjahr<=Costs!$A414)*(AbschreibungAGr=Costs!J$353)*(AbschreibungAHKBvD))-SUM(J$267:J326)","v":0},{"$f":"SUMPRODUCT((Aktivierungsjahr<=Costs!$A414)*(AbschreibungAGr=Costs!K$353)*(AbschreibungAHKBvD))-SUM(K$267:K326)","v":0},{"$f":"SUMPRODUCT((Aktivierungsjahr<=Costs!$A414)*(AbschreibungAGr=Costs!L$353)*(AbschreibungAHKBvD))-SUM(L$267:L326)","v":0},{"$f":"SUMPRODUCT((Aktivierungsjahr<=Costs!$A414)*(AbschreibungAGr=Costs!M$353)*(AbschreibungAHKBvD))-SUM(M$267:M326)","v":0},{"$f":"SUMPRODUCT((Aktivierungsjahr<=Costs!$A414)*(AbschreibungAGr=Costs!N$353)*(AbschreibungAHKBvD))-SUM(N$267:N326)","v":0},{"$f":"SUMPRODUCT((Aktivierungsjahr<=Costs!$A414)*(AbschreibungAGr=Costs!O$353)*(AbschreibungAHKBvD))-SUM(O$267:O326)","v":0},{"$f":"SUMPRODUCT((Aktivierungsjahr<=Costs!$A414)*(AbschreibungAGr=Costs!P$353)*(AbschreibungAHKBvD))-SUM(P$267:P326)","v":0},{"$f":"SUMPRODUCT((Aktivierungsjahr<=Costs!$A414)*(AbschreibungAGr=Costs!Q$353)*(AbschreibungAHKBvD))-SUM(Q$267:Q326)","v":0},{"$f":"SUMPRODUCT((Aktivierungsjahr<=Costs!$A414)*(AbschreibungAGr=Costs!R$353)*(AbschreibungAHKBvD))-SUM(R$267:R326)","v":0},{"$f":"SUMPRODUCT((Aktivierungsjahr<=Costs!$A414)*(AbschreibungAGr=Costs!S$353)*(AbschreibungAHKBvD))-SUM(S$267:S326)","v":0},{"$f":"SUMPRODUCT((Aktivierungsjahr<=Costs!$A414)*(AbschreibungAGr=Costs!T$353)*(AbschreibungAHKBvD))-SUM(T$267:T326)","v":0},{"$f":"SUMPRODUCT((Aktivierungsjahr<=Costs!$A414)*(AbschreibungAGr=Costs!U$353)*(AbschreibungAHKBvD))-SUM(U$267:U326)","v":0},{"$f":"SUMPRODUCT((Aktivierungsjahr<=Costs!$A414)*(AbschreibungAGr=Costs!V$353)*(AbschreibungAHKBvD))-SUM(V$267:V326)","v":0},{"$f":"SUMPRODUCT((Aktivierungsjahr<=Costs!$A414)*(AbschreibungAGr=Costs!W$353)*(AbschreibungAHKBvD))-SUM(W$267:W326)","v":0},{"$f":"SUMPRODUCT((Aktivierungsjahr<=Costs!$A414)*(AbschreibungAGr=Costs!X$353)*(AbschreibungAHKBvD))-SUM(X$267:X326)","v":0},{"$f":"SUMPRODUCT((Aktivierungsjahr<=Costs!$A414)*(AbschreibungAGr=Costs!Y$353)*(AbschreibungAHKBvD))-SUM(Y$267:Y326)","v":0},{"$f":"SUMPRODUCT((Aktivierungsjahr<=Costs!$A414)*(AbschreibungAGr=Costs!Z$353)*(AbschreibungAHKBvD))-SUM(Z$267:Z326)","v":0},{"$f":"SUMPRODUCT((Aktivierungsjahr<=Costs!$A414)*(AbschreibungAGr=Costs!AA$353)*(AbschreibungAHKBvD))-SUM(AA$267:AA326)","v":0},{"$f":"SUMPRODUCT((Aktivierungsjahr<=Costs!$A414)*(AbschreibungAGr=Costs!AB$353)*(AbschreibungAHKBvD))-SUM(AB$267:AB326)","v":0},{"$f":"SUMPRODUCT((Aktivierungsjahr<=Costs!$A414)*(AbschreibungAGr=Costs!AC$353)*(AbschreibungAHKBvD))-SUM(AC$267:AC326)","v":0},{"$f":"SUMPRODUCT((Aktivierungsjahr<=Costs!$A414)*(AbschreibungAGr=Costs!AD$353)*(AbschreibungAHKBvD))-SUM(AD$267:AD326)","v":0},{"$f":"SUMPRODUCT((Aktivierungsjahr<=Costs!$A414)*(AbschreibungAGr=Costs!AE$353)*(AbschreibungAHKBvD))-SUM(AE$267:AE326)","v":0},{"$f":"SUMPRODUCT((Aktivierungsjahr<=Costs!$A414)*(AbschreibungAGr=Costs!AF$353)*(AbschreibungAHKBvD))-SUM(AF$267:AF326)","v":0},{"$f":"SUMPRODUCT((Aktivierungsjahr<=Costs!$A414)*(AbschreibungAGr=Costs!AG$353)*(AbschreibungAHKBvD))-SUM(AG$267:AG326)","v":0},{"$f":"SUMPRODUCT((Aktivierungsjahr<=Costs!$A414)*(AbschreibungAGr=Costs!AH$353)*(AbschreibungAHKBvD))-SUM(AH$267:AH326)","v":0},{"$f":"SUMPRODUCT((Aktivierungsjahr<=Costs!$A414)*(AbschreibungAGr=Costs!AI$353)*(AbschreibungAHKBvD))-SUM(AI$267:AI326)","v":0},{"$f":"SUMPRODUCT((Aktivierungsjahr<=Costs!$A414)*(AbschreibungAGr=Costs!AJ$353)*(AbschreibungAHKBvD))-SUM(AJ$267:AJ326)","v":0},{"$f":"SUMPRODUCT((Aktivierungsjahr<=Costs!$A414)*(AbschreibungAGr=Costs!AK$353)*(AbschreibungAHKBvD))-SUM(AK$267:AK326)","v":0},{"$f":"SUMPRODUCT((Aktivierungsjahr<=Costs!$A414)*(AbschreibungAGr=Costs!AL$353)*(AbschreibungAHKBvD))-SUM(AL$267:AL326)","v":0},{"$f":"SUMPRODUCT((Aktivierungsjahr<=Costs!$A414)*(AbschreibungAGr=Costs!AM$353)*(AbschreibungAHKBvD))-SUM(AM$267:AM326)","v":0},{"$f":"SUMPRODUCT((Aktivierungsjahr<=Costs!$A414)*(AbschreibungAGr=Costs!AN$353)*(AbschreibungAHKBvD))-SUM(AN$267:AN326)","v":0},{"$f":"SUMPRODUCT((Aktivierungsjahr<=Costs!$A414)*(AbschreibungAGr=Costs!AO$353)*(AbschreibungAHKBvD))-SUM(AO$267:AO326)","v":0},{"$f":"SUMPRODUCT((Aktivierungsjahr<=Costs!$A414)*(AbschreibungAGr=Costs!AP$353)*(AbschreibungAHKBvD))-SUM(AP$267:AP326)","v":0},{"$f":"SUMPRODUCT((Aktivierungsjahr<=Costs!$A414)*(AbschreibungAGr=Costs!AQ$353)*(AbschreibungAHKBvD))-SUM(AQ$267:AQ326)","v":0}]
[2076,0,{"$f":"SUMPRODUCT((Aktivierungsjahr<=Costs!$A415)*(AbschreibungAGr=Costs!C$353)*(AbschreibungAHKBvD))-SUM(C$267:C327)","v":0},{"$f":"SUMPRODUCT((Aktivierungsjahr<=Costs!$A415)*(AbschreibungAGr=Costs!D$353)*(AbschreibungAHKBvD))-SUM(D$267:D327)","v":0},{"$f":"SUMPRODUCT((Aktivierungsjahr<=Costs!$A415)*(AbschreibungAGr=Costs!E$353)*(AbschreibungAHKBvD))-SUM(E$267:E327)","v":0},{"$f":"SUMPRODUCT((Aktivierungsjahr<=Costs!$A415)*(AbschreibungAGr=Costs!F$353)*(AbschreibungAHKBvD))-SUM(F$267:F327)","v":0},{"$f":"SUMPRODUCT((Aktivierungsjahr<=Costs!$A415)*(AbschreibungAGr=Costs!G$353)*(AbschreibungAHKBvD))-SUM(G$267:G327)","v":0},{"$f":"SUMPRODUCT((Aktivierungsjahr<=Costs!$A415)*(AbschreibungAGr=Costs!H$353)*(AbschreibungAHKBvD))-SUM(H$267:H327)","v":0},{"$f":"SUMPRODUCT((Aktivierungsjahr<=Costs!$A415)*(AbschreibungAGr=Costs!I$353)*(AbschreibungAHKBvD))-SUM(I$267:I327)","v":0},{"$f":"SUMPRODUCT((Aktivierungsjahr<=Costs!$A415)*(AbschreibungAGr=Costs!J$353)*(AbschreibungAHKBvD))-SUM(J$267:J327)","v":0},{"$f":"SUMPRODUCT((Aktivierungsjahr<=Costs!$A415)*(AbschreibungAGr=Costs!K$353)*(AbschreibungAHKBvD))-SUM(K$267:K327)","v":0},{"$f":"SUMPRODUCT((Aktivierungsjahr<=Costs!$A415)*(AbschreibungAGr=Costs!L$353)*(AbschreibungAHKBvD))-SUM(L$267:L327)","v":0},{"$f":"SUMPRODUCT((Aktivierungsjahr<=Costs!$A415)*(AbschreibungAGr=Costs!M$353)*(AbschreibungAHKBvD))-SUM(M$267:M327)","v":0},{"$f":"SUMPRODUCT((Aktivierungsjahr<=Costs!$A415)*(AbschreibungAGr=Costs!N$353)*(AbschreibungAHKBvD))-SUM(N$267:N327)","v":0},{"$f":"SUMPRODUCT((Aktivierungsjahr<=Costs!$A415)*(AbschreibungAGr=Costs!O$353)*(AbschreibungAHKBvD))-SUM(O$267:O327)","v":0},{"$f":"SUMPRODUCT((Aktivierungsjahr<=Costs!$A415)*(AbschreibungAGr=Costs!P$353)*(AbschreibungAHKBvD))-SUM(P$267:P327)","v":0},{"$f":"SUMPRODUCT((Aktivierungsjahr<=Costs!$A415)*(AbschreibungAGr=Costs!Q$353)*(AbschreibungAHKBvD))-SUM(Q$267:Q327)","v":0},{"$f":"SUMPRODUCT((Aktivierungsjahr<=Costs!$A415)*(AbschreibungAGr=Costs!R$353)*(AbschreibungAHKBvD))-SUM(R$267:R327)","v":0},{"$f":"SUMPRODUCT((Aktivierungsjahr<=Costs!$A415)*(AbschreibungAGr=Costs!S$353)*(AbschreibungAHKBvD))-SUM(S$267:S327)","v":0},{"$f":"SUMPRODUCT((Aktivierungsjahr<=Costs!$A415)*(AbschreibungAGr=Costs!T$353)*(AbschreibungAHKBvD))-SUM(T$267:T327)","v":0},{"$f":"SUMPRODUCT((Aktivierungsjahr<=Costs!$A415)*(AbschreibungAGr=Costs!U$353)*(AbschreibungAHKBvD))-SUM(U$267:U327)","v":0},{"$f":"SUMPRODUCT((Aktivierungsjahr<=Costs!$A415)*(AbschreibungAGr=Costs!V$353)*(AbschreibungAHKBvD))-SUM(V$267:V327)","v":0},{"$f":"SUMPRODUCT((Aktivierungsjahr<=Costs!$A415)*(AbschreibungAGr=Costs!W$353)*(AbschreibungAHKBvD))-SUM(W$267:W327)","v":0},{"$f":"SUMPRODUCT((Aktivierungsjahr<=Costs!$A415)*(AbschreibungAGr=Costs!X$353)*(AbschreibungAHKBvD))-SUM(X$267:X327)","v":0},{"$f":"SUMPRODUCT((Aktivierungsjahr<=Costs!$A415)*(AbschreibungAGr=Costs!Y$353)*(AbschreibungAHKBvD))-SUM(Y$267:Y327)","v":0},{"$f":"SUMPRODUCT((Aktivierungsjahr<=Costs!$A415)*(AbschreibungAGr=Costs!Z$353)*(AbschreibungAHKBvD))-SUM(Z$267:Z327)","v":0},{"$f":"SUMPRODUCT((Aktivierungsjahr<=Costs!$A415)*(AbschreibungAGr=Costs!AA$353)*(AbschreibungAHKBvD))-SUM(AA$267:AA327)","v":0},{"$f":"SUMPRODUCT((Aktivierungsjahr<=Costs!$A415)*(AbschreibungAGr=Costs!AB$353)*(AbschreibungAHKBvD))-SUM(AB$267:AB327)","v":0},{"$f":"SUMPRODUCT((Aktivierungsjahr<=Costs!$A415)*(AbschreibungAGr=Costs!AC$353)*(AbschreibungAHKBvD))-SUM(AC$267:AC327)","v":0},{"$f":"SUMPRODUCT((Aktivierungsjahr<=Costs!$A415)*(AbschreibungAGr=Costs!AD$353)*(AbschreibungAHKBvD))-SUM(AD$267:AD327)","v":0},{"$f":"SUMPRODUCT((Aktivierungsjahr<=Costs!$A415)*(AbschreibungAGr=Costs!AE$353)*(AbschreibungAHKBvD))-SUM(AE$267:AE327)","v":0},{"$f":"SUMPRODUCT((Aktivierungsjahr<=Costs!$A415)*(AbschreibungAGr=Costs!AF$353)*(AbschreibungAHKBvD))-SUM(AF$267:AF327)","v":0},{"$f":"SUMPRODUCT((Aktivierungsjahr<=Costs!$A415)*(AbschreibungAGr=Costs!AG$353)*(AbschreibungAHKBvD))-SUM(AG$267:AG327)","v":0},{"$f":"SUMPRODUCT((Aktivierungsjahr<=Costs!$A415)*(AbschreibungAGr=Costs!AH$353)*(AbschreibungAHKBvD))-SUM(AH$267:AH327)","v":0},{"$f":"SUMPRODUCT((Aktivierungsjahr<=Costs!$A415)*(AbschreibungAGr=Costs!AI$353)*(AbschreibungAHKBvD))-SUM(AI$267:AI327)","v":0},{"$f":"SUMPRODUCT((Aktivierungsjahr<=Costs!$A415)*(AbschreibungAGr=Costs!AJ$353)*(AbschreibungAHKBvD))-SUM(AJ$267:AJ327)","v":0},{"$f":"SUMPRODUCT((Aktivierungsjahr<=Costs!$A415)*(AbschreibungAGr=Costs!AK$353)*(AbschreibungAHKBvD))-SUM(AK$267:AK327)","v":0},{"$f":"SUMPRODUCT((Aktivierungsjahr<=Costs!$A415)*(AbschreibungAGr=Costs!AL$353)*(AbschreibungAHKBvD))-SUM(AL$267:AL327)","v":0},{"$f":"SUMPRODUCT((Aktivierungsjahr<=Costs!$A415)*(AbschreibungAGr=Costs!AM$353)*(AbschreibungAHKBvD))-SUM(AM$267:AM327)","v":0},{"$f":"SUMPRODUCT((Aktivierungsjahr<=Costs!$A415)*(AbschreibungAGr=Costs!AN$353)*(AbschreibungAHKBvD))-SUM(AN$267:AN327)","v":0},{"$f":"SUMPRODUCT((Aktivierungsjahr<=Costs!$A415)*(AbschreibungAGr=Costs!AO$353)*(AbschreibungAHKBvD))-SUM(AO$267:AO327)","v":0},{"$f":"SUMPRODUCT((Aktivierungsjahr<=Costs!$A415)*(AbschreibungAGr=Costs!AP$353)*(AbschreibungAHKBvD))-SUM(AP$267:AP327)","v":0},{"$f":"SUMPRODUCT((Aktivierungsjahr<=Costs!$A415)*(AbschreibungAGr=Costs!AQ$353)*(AbschreibungAHKBvD))-SUM(AQ$267:AQ327)","v":0}]
[2077,0,{"$f":"SUMPRODUCT((Aktivierungsjahr<=Costs!$A416)*(AbschreibungAGr=Costs!C$353)*(AbschreibungAHKBvD))-SUM(C$267:C328)","v":0},{"$f":"SUMPRODUCT((Aktivierungsjahr<=Costs!$A416)*(AbschreibungAGr=Costs!D$353)*(AbschreibungAHKBvD))-SUM(D$267:D328)","v":0},{"$f":"SUMPRODUCT((Aktivierungsjahr<=Costs!$A416)*(AbschreibungAGr=Costs!E$353)*(AbschreibungAHKBvD))-SUM(E$267:E328)","v":0},{"$f":"SUMPRODUCT((Aktivierungsjahr<=Costs!$A416)*(AbschreibungAGr=Costs!F$353)*(AbschreibungAHKBvD))-SUM(F$267:F328)","v":0},{"$f":"SUMPRODUCT((Aktivierungsjahr<=Costs!$A416)*(AbschreibungAGr=Costs!G$353)*(AbschreibungAHKBvD))-SUM(G$267:G328)","v":0},{"$f":"SUMPRODUCT((Aktivierungsjahr<=Costs!$A416)*(AbschreibungAGr=Costs!H$353)*(AbschreibungAHKBvD))-SUM(H$267:H328)","v":0},{"$f":"SUMPRODUCT((Aktivierungsjahr<=Costs!$A416)*(AbschreibungAGr=Costs!I$353)*(AbschreibungAHKBvD))-SUM(I$267:I328)","v":0},{"$f":"SUMPRODUCT((Aktivierungsjahr<=Costs!$A416)*(AbschreibungAGr=Costs!J$353)*(AbschreibungAHKBvD))-SUM(J$267:J328)","v":0},{"$f":"SUMPRODUCT((Aktivierungsjahr<=Costs!$A416)*(AbschreibungAGr=Costs!K$353)*(AbschreibungAHKBvD))-SUM(K$267:K328)","v":0},{"$f":"SUMPRODUCT((Aktivierungsjahr<=Costs!$A416)*(AbschreibungAGr=Costs!L$353)*(AbschreibungAHKBvD))-SUM(L$267:L328)","v":0},{"$f":"SUMPRODUCT((Aktivierungsjahr<=Costs!$A416)*(AbschreibungAGr=Costs!M$353)*(AbschreibungAHKBvD))-SUM(M$267:M328)","v":0},{"$f":"SUMPRODUCT((Aktivierungsjahr<=Costs!$A416)*(AbschreibungAGr=Costs!N$353)*(AbschreibungAHKBvD))-SUM(N$267:N328)","v":0},{"$f":"SUMPRODUCT((Aktivierungsjahr<=Costs!$A416)*(AbschreibungAGr=Costs!O$353)*(AbschreibungAHKBvD))-SUM(O$267:O328)","v":0},{"$f":"SUMPRODUCT((Aktivierungsjahr<=Costs!$A416)*(AbschreibungAGr=Costs!P$353)*(AbschreibungAHKBvD))-SUM(P$267:P328)","v":0},{"$f":"SUMPRODUCT((Aktivierungsjahr<=Costs!$A416)*(AbschreibungAGr=Costs!Q$353)*(AbschreibungAHKBvD))-SUM(Q$267:Q328)","v":0},{"$f":"SUMPRODUCT((Aktivierungsjahr<=Costs!$A416)*(AbschreibungAGr=Costs!R$353)*(AbschreibungAHKBvD))-SUM(R$267:R328)","v":0},{"$f":"SUMPRODUCT((Aktivierungsjahr<=Costs!$A416)*(AbschreibungAGr=Costs!S$353)*(AbschreibungAHKBvD))-SUM(S$267:S328)","v":0},{"$f":"SUMPRODUCT((Aktivierungsjahr<=Costs!$A416)*(AbschreibungAGr=Costs!T$353)*(AbschreibungAHKBvD))-SUM(T$267:T328)","v":0},{"$f":"SUMPRODUCT((Aktivierungsjahr<=Costs!$A416)*(AbschreibungAGr=Costs!U$353)*(AbschreibungAHKBvD))-SUM(U$267:U328)","v":0},{"$f":"SUMPRODUCT((Aktivierungsjahr<=Costs!$A416)*(AbschreibungAGr=Costs!V$353)*(AbschreibungAHKBvD))-SUM(V$267:V328)","v":0},{"$f":"SUMPRODUCT((Aktivierungsjahr<=Costs!$A416)*(AbschreibungAGr=Costs!W$353)*(AbschreibungAHKBvD))-SUM(W$267:W328)","v":0},{"$f":"SUMPRODUCT((Aktivierungsjahr<=Costs!$A416)*(AbschreibungAGr=Costs!X$353)*(AbschreibungAHKBvD))-SUM(X$267:X328)","v":0},{"$f":"SUMPRODUCT((Aktivierungsjahr<=Costs!$A416)*(AbschreibungAGr=Costs!Y$353)*(AbschreibungAHKBvD))-SUM(Y$267:Y328)","v":0},{"$f":"SUMPRODUCT((Aktivierungsjahr<=Costs!$A416)*(AbschreibungAGr=Costs!Z$353)*(AbschreibungAHKBvD))-SUM(Z$267:Z328)","v":0},{"$f":"SUMPRODUCT((Aktivierungsjahr<=Costs!$A416)*(AbschreibungAGr=Costs!AA$353)*(AbschreibungAHKBvD))-SUM(AA$267:AA328)","v":0},{"$f":"SUMPRODUCT((Aktivierungsjahr<=Costs!$A416)*(AbschreibungAGr=Costs!AB$353)*(AbschreibungAHKBvD))-SUM(AB$267:AB328)","v":0},{"$f":"SUMPRODUCT((Aktivierungsjahr<=Costs!$A416)*(AbschreibungAGr=Costs!AC$353)*(AbschreibungAHKBvD))-SUM(AC$267:AC328)","v":0},{"$f":"SUMPRODUCT((Aktivierungsjahr<=Costs!$A416)*(AbschreibungAGr=Costs!AD$353)*(AbschreibungAHKBvD))-SUM(AD$267:AD328)","v":0},{"$f":"SUMPRODUCT((Aktivierungsjahr<=Costs!$A416)*(AbschreibungAGr=Costs!AE$353)*(AbschreibungAHKBvD))-SUM(AE$267:AE328)","v":0},{"$f":"SUMPRODUCT((Aktivierungsjahr<=Costs!$A416)*(AbschreibungAGr=Costs!AF$353)*(AbschreibungAHKBvD))-SUM(AF$267:AF328)","v":0},{"$f":"SUMPRODUCT((Aktivierungsjahr<=Costs!$A416)*(AbschreibungAGr=Costs!AG$353)*(AbschreibungAHKBvD))-SUM(AG$267:AG328)","v":0},{"$f":"SUMPRODUCT((Aktivierungsjahr<=Costs!$A416)*(AbschreibungAGr=Costs!AH$353)*(AbschreibungAHKBvD))-SUM(AH$267:AH328)","v":0},{"$f":"SUMPRODUCT((Aktivierungsjahr<=Costs!$A416)*(AbschreibungAGr=Costs!AI$353)*(AbschreibungAHKBvD))-SUM(AI$267:AI328)","v":0},{"$f":"SUMPRODUCT((Aktivierungsjahr<=Costs!$A416)*(AbschreibungAGr=Costs!AJ$353)*(AbschreibungAHKBvD))-SUM(AJ$267:AJ328)","v":0},{"$f":"SUMPRODUCT((Aktivierungsjahr<=Costs!$A416)*(AbschreibungAGr=Costs!AK$353)*(AbschreibungAHKBvD))-SUM(AK$267:AK328)","v":0},{"$f":"SUMPRODUCT((Aktivierungsjahr<=Costs!$A416)*(AbschreibungAGr=Costs!AL$353)*(AbschreibungAHKBvD))-SUM(AL$267:AL328)","v":0},{"$f":"SUMPRODUCT((Aktivierungsjahr<=Costs!$A416)*(AbschreibungAGr=Costs!AM$353)*(AbschreibungAHKBvD))-SUM(AM$267:AM328)","v":0},{"$f":"SUMPRODUCT((Aktivierungsjahr<=Costs!$A416)*(AbschreibungAGr=Costs!AN$353)*(AbschreibungAHKBvD))-SUM(AN$267:AN328)","v":0},{"$f":"SUMPRODUCT((Aktivierungsjahr<=Costs!$A416)*(AbschreibungAGr=Costs!AO$353)*(AbschreibungAHKBvD))-SUM(AO$267:AO328)","v":0},{"$f":"SUMPRODUCT((Aktivierungsjahr<=Costs!$A416)*(AbschreibungAGr=Costs!AP$353)*(AbschreibungAHKBvD))-SUM(AP$267:AP328)","v":0},{"$f":"SUMPRODUCT((Aktivierungsjahr<=Costs!$A416)*(AbschreibungAGr=Costs!AQ$353)*(AbschreibungAHKBvD))-SUM(AQ$267:AQ328)","v":0}]
[2078,0,{"$f":"SUMPRODUCT((Aktivierungsjahr<=Costs!$A417)*(AbschreibungAGr=Costs!C$353)*(AbschreibungAHKBvD))-SUM(C$267:C329)","v":0},{"$f":"SUMPRODUCT((Aktivierungsjahr<=Costs!$A417)*(AbschreibungAGr=Costs!D$353)*(AbschreibungAHKBvD))-SUM(D$267:D329)","v":0},{"$f":"SUMPRODUCT((Aktivierungsjahr<=Costs!$A417)*(AbschreibungAGr=Costs!E$353)*(AbschreibungAHKBvD))-SUM(E$267:E329)","v":0},{"$f":"SUMPRODUCT((Aktivierungsjahr<=Costs!$A417)*(AbschreibungAGr=Costs!F$353)*(AbschreibungAHKBvD))-SUM(F$267:F329)","v":0},{"$f":"SUMPRODUCT((Aktivierungsjahr<=Costs!$A417)*(AbschreibungAGr=Costs!G$353)*(AbschreibungAHKBvD))-SUM(G$267:G329)","v":0},{"$f":"SUMPRODUCT((Aktivierungsjahr<=Costs!$A417)*(AbschreibungAGr=Costs!H$353)*(AbschreibungAHKBvD))-SUM(H$267:H329)","v":0},{"$f":"SUMPRODUCT((Aktivierungsjahr<=Costs!$A417)*(AbschreibungAGr=Costs!I$353)*(AbschreibungAHKBvD))-SUM(I$267:I329)","v":0},{"$f":"SUMPRODUCT((Aktivierungsjahr<=Costs!$A417)*(AbschreibungAGr=Costs!J$353)*(AbschreibungAHKBvD))-SUM(J$267:J329)","v":0},{"$f":"SUMPRODUCT((Aktivierungsjahr<=Costs!$A417)*(AbschreibungAGr=Costs!K$353)*(AbschreibungAHKBvD))-SUM(K$267:K329)","v":0},{"$f":"SUMPRODUCT((Aktivierungsjahr<=Costs!$A417)*(AbschreibungAGr=Costs!L$353)*(AbschreibungAHKBvD))-SUM(L$267:L329)","v":0},{"$f":"SUMPRODUCT((Aktivierungsjahr<=Costs!$A417)*(AbschreibungAGr=Costs!M$353)*(AbschreibungAHKBvD))-SUM(M$267:M329)","v":0},{"$f":"SUMPRODUCT((Aktivierungsjahr<=Costs!$A417)*(AbschreibungAGr=Costs!N$353)*(AbschreibungAHKBvD))-SUM(N$267:N329)","v":0},{"$f":"SUMPRODUCT((Aktivierungsjahr<=Costs!$A417)*(AbschreibungAGr=Costs!O$353)*(AbschreibungAHKBvD))-SUM(O$267:O329)","v":0},{"$f":"SUMPRODUCT((Aktivierungsjahr<=Costs!$A417)*(AbschreibungAGr=Costs!P$353)*(AbschreibungAHKBvD))-SUM(P$267:P329)","v":0},{"$f":"SUMPRODUCT((Aktivierungsjahr<=Costs!$A417)*(AbschreibungAGr=Costs!Q$353)*(AbschreibungAHKBvD))-SUM(Q$267:Q329)","v":0},{"$f":"SUMPRODUCT((Aktivierungsjahr<=Costs!$A417)*(AbschreibungAGr=Costs!R$353)*(AbschreibungAHKBvD))-SUM(R$267:R329)","v":0},{"$f":"SUMPRODUCT((Aktivierungsjahr<=Costs!$A417)*(AbschreibungAGr=Costs!S$353)*(AbschreibungAHKBvD))-SUM(S$267:S329)","v":0},{"$f":"SUMPRODUCT((Aktivierungsjahr<=Costs!$A417)*(AbschreibungAGr=Costs!T$353)*(AbschreibungAHKBvD))-SUM(T$267:T329)","v":0},{"$f":"SUMPRODUCT((Aktivierungsjahr<=Costs!$A417)*(AbschreibungAGr=Costs!U$353)*(AbschreibungAHKBvD))-SUM(U$267:U329)","v":0},{"$f":"SUMPRODUCT((Aktivierungsjahr<=Costs!$A417)*(AbschreibungAGr=Costs!V$353)*(AbschreibungAHKBvD))-SUM(V$267:V329)","v":0},{"$f":"SUMPRODUCT((Aktivierungsjahr<=Costs!$A417)*(AbschreibungAGr=Costs!W$353)*(AbschreibungAHKBvD))-SUM(W$267:W329)","v":0},{"$f":"SUMPRODUCT((Aktivierungsjahr<=Costs!$A417)*(AbschreibungAGr=Costs!X$353)*(AbschreibungAHKBvD))-SUM(X$267:X329)","v":0},{"$f":"SUMPRODUCT((Aktivierungsjahr<=Costs!$A417)*(AbschreibungAGr=Costs!Y$353)*(AbschreibungAHKBvD))-SUM(Y$267:Y329)","v":0},{"$f":"SUMPRODUCT((Aktivierungsjahr<=Costs!$A417)*(AbschreibungAGr=Costs!Z$353)*(AbschreibungAHKBvD))-SUM(Z$267:Z329)","v":0},{"$f":"SUMPRODUCT((Aktivierungsjahr<=Costs!$A417)*(AbschreibungAGr=Costs!AA$353)*(AbschreibungAHKBvD))-SUM(AA$267:AA329)","v":0},{"$f":"SUMPRODUCT((Aktivierungsjahr<=Costs!$A417)*(AbschreibungAGr=Costs!AB$353)*(AbschreibungAHKBvD))-SUM(AB$267:AB329)","v":0},{"$f":"SUMPRODUCT((Aktivierungsjahr<=Costs!$A417)*(AbschreibungAGr=Costs!AC$353)*(AbschreibungAHKBvD))-SUM(AC$267:AC329)","v":0},{"$f":"SUMPRODUCT((Aktivierungsjahr<=Costs!$A417)*(AbschreibungAGr=Costs!AD$353)*(AbschreibungAHKBvD))-SUM(AD$267:AD329)","v":0},{"$f":"SUMPRODUCT((Aktivierungsjahr<=Costs!$A417)*(AbschreibungAGr=Costs!AE$353)*(AbschreibungAHKBvD))-SUM(AE$267:AE329)","v":0},{"$f":"SUMPRODUCT((Aktivierungsjahr<=Costs!$A417)*(AbschreibungAGr=Costs!AF$353)*(AbschreibungAHKBvD))-SUM(AF$267:AF329)","v":0},{"$f":"SUMPRODUCT((Aktivierungsjahr<=Costs!$A417)*(AbschreibungAGr=Costs!AG$353)*(AbschreibungAHKBvD))-SUM(AG$267:AG329)","v":0},{"$f":"SUMPRODUCT((Aktivierungsjahr<=Costs!$A417)*(AbschreibungAGr=Costs!AH$353)*(AbschreibungAHKBvD))-SUM(AH$267:AH329)","v":0},{"$f":"SUMPRODUCT((Aktivierungsjahr<=Costs!$A417)*(AbschreibungAGr=Costs!AI$353)*(AbschreibungAHKBvD))-SUM(AI$267:AI329)","v":0},{"$f":"SUMPRODUCT((Aktivierungsjahr<=Costs!$A417)*(AbschreibungAGr=Costs!AJ$353)*(AbschreibungAHKBvD))-SUM(AJ$267:AJ329)","v":0},{"$f":"SUMPRODUCT((Aktivierungsjahr<=Costs!$A417)*(AbschreibungAGr=Costs!AK$353)*(AbschreibungAHKBvD))-SUM(AK$267:AK329)","v":0},{"$f":"SUMPRODUCT((Aktivierungsjahr<=Costs!$A417)*(AbschreibungAGr=Costs!AL$353)*(AbschreibungAHKBvD))-SUM(AL$267:AL329)","v":0},{"$f":"SUMPRODUCT((Aktivierungsjahr<=Costs!$A417)*(AbschreibungAGr=Costs!AM$353)*(AbschreibungAHKBvD))-SUM(AM$267:AM329)","v":0},{"$f":"SUMPRODUCT((Aktivierungsjahr<=Costs!$A417)*(AbschreibungAGr=Costs!AN$353)*(AbschreibungAHKBvD))-SUM(AN$267:AN329)","v":0},{"$f":"SUMPRODUCT((Aktivierungsjahr<=Costs!$A417)*(AbschreibungAGr=Costs!AO$353)*(AbschreibungAHKBvD))-SUM(AO$267:AO329)","v":0},{"$f":"SUMPRODUCT((Aktivierungsjahr<=Costs!$A417)*(AbschreibungAGr=Costs!AP$353)*(AbschreibungAHKBvD))-SUM(AP$267:AP329)","v":0},{"$f":"SUMPRODUCT((Aktivierungsjahr<=Costs!$A417)*(AbschreibungAGr=Costs!AQ$353)*(AbschreibungAHKBvD))-SUM(AQ$267:AQ329)","v":0}]
[2079,0,{"$f":"SUMPRODUCT((Aktivierungsjahr<=Costs!$A418)*(AbschreibungAGr=Costs!C$353)*(AbschreibungAHKBvD))-SUM(C$267:C330)","v":0},{"$f":"SUMPRODUCT((Aktivierungsjahr<=Costs!$A418)*(AbschreibungAGr=Costs!D$353)*(AbschreibungAHKBvD))-SUM(D$267:D330)","v":0},{"$f":"SUMPRODUCT((Aktivierungsjahr<=Costs!$A418)*(AbschreibungAGr=Costs!E$353)*(AbschreibungAHKBvD))-SUM(E$267:E330)","v":0},{"$f":"SUMPRODUCT((Aktivierungsjahr<=Costs!$A418)*(AbschreibungAGr=Costs!F$353)*(AbschreibungAHKBvD))-SUM(F$267:F330)","v":0},{"$f":"SUMPRODUCT((Aktivierungsjahr<=Costs!$A418)*(AbschreibungAGr=Costs!G$353)*(AbschreibungAHKBvD))-SUM(G$267:G330)","v":0},{"$f":"SUMPRODUCT((Aktivierungsjahr<=Costs!$A418)*(AbschreibungAGr=Costs!H$353)*(AbschreibungAHKBvD))-SUM(H$267:H330)","v":0},{"$f":"SUMPRODUCT((Aktivierungsjahr<=Costs!$A418)*(AbschreibungAGr=Costs!I$353)*(AbschreibungAHKBvD))-SUM(I$267:I330)","v":0},{"$f":"SUMPRODUCT((Aktivierungsjahr<=Costs!$A418)*(AbschreibungAGr=Costs!J$353)*(AbschreibungAHKBvD))-SUM(J$267:J330)","v":0},{"$f":"SUMPRODUCT((Aktivierungsjahr<=Costs!$A418)*(AbschreibungAGr=Costs!K$353)*(AbschreibungAHKBvD))-SUM(K$267:K330)","v":0},{"$f":"SUMPRODUCT((Aktivierungsjahr<=Costs!$A418)*(AbschreibungAGr=Costs!L$353)*(AbschreibungAHKBvD))-SUM(L$267:L330)","v":0},{"$f":"SUMPRODUCT((Aktivierungsjahr<=Costs!$A418)*(AbschreibungAGr=Costs!M$353)*(AbschreibungAHKBvD))-SUM(M$267:M330)","v":0},{"$f":"SUMPRODUCT((Aktivierungsjahr<=Costs!$A418)*(AbschreibungAGr=Costs!N$353)*(AbschreibungAHKBvD))-SUM(N$267:N330)","v":0},{"$f":"SUMPRODUCT((Aktivierungsjahr<=Costs!$A418)*(AbschreibungAGr=Costs!O$353)*(AbschreibungAHKBvD))-SUM(O$267:O330)","v":0},{"$f":"SUMPRODUCT((Aktivierungsjahr<=Costs!$A418)*(AbschreibungAGr=Costs!P$353)*(AbschreibungAHKBvD))-SUM(P$267:P330)","v":0},{"$f":"SUMPRODUCT((Aktivierungsjahr<=Costs!$A418)*(AbschreibungAGr=Costs!Q$353)*(AbschreibungAHKBvD))-SUM(Q$267:Q330)","v":0},{"$f":"SUMPRODUCT((Aktivierungsjahr<=Costs!$A418)*(AbschreibungAGr=Costs!R$353)*(AbschreibungAHKBvD))-SUM(R$267:R330)","v":0},{"$f":"SUMPRODUCT((Aktivierungsjahr<=Costs!$A418)*(AbschreibungAGr=Costs!S$353)*(AbschreibungAHKBvD))-SUM(S$267:S330)","v":0},{"$f":"SUMPRODUCT((Aktivierungsjahr<=Costs!$A418)*(AbschreibungAGr=Costs!T$353)*(AbschreibungAHKBvD))-SUM(T$267:T330)","v":0},{"$f":"SUMPRODUCT((Aktivierungsjahr<=Costs!$A418)*(AbschreibungAGr=Costs!U$353)*(AbschreibungAHKBvD))-SUM(U$267:U330)","v":0},{"$f":"SUMPRODUCT((Aktivierungsjahr<=Costs!$A418)*(AbschreibungAGr=Costs!V$353)*(AbschreibungAHKBvD))-SUM(V$267:V330)","v":0},{"$f":"SUMPRODUCT((Aktivierungsjahr<=Costs!$A418)*(AbschreibungAGr=Costs!W$353)*(AbschreibungAHKBvD))-SUM(W$267:W330)","v":0},{"$f":"SUMPRODUCT((Aktivierungsjahr<=Costs!$A418)*(AbschreibungAGr=Costs!X$353)*(AbschreibungAHKBvD))-SUM(X$267:X330)","v":0},{"$f":"SUMPRODUCT((Aktivierungsjahr<=Costs!$A418)*(AbschreibungAGr=Costs!Y$353)*(AbschreibungAHKBvD))-SUM(Y$267:Y330)","v":0},{"$f":"SUMPRODUCT((Aktivierungsjahr<=Costs!$A418)*(AbschreibungAGr=Costs!Z$353)*(AbschreibungAHKBvD))-SUM(Z$267:Z330)","v":0},{"$f":"SUMPRODUCT((Aktivierungsjahr<=Costs!$A418)*(AbschreibungAGr=Costs!AA$353)*(AbschreibungAHKBvD))-SUM(AA$267:AA330)","v":0},{"$f":"SUMPRODUCT((Aktivierungsjahr<=Costs!$A418)*(AbschreibungAGr=Costs!AB$353)*(AbschreibungAHKBvD))-SUM(AB$267:AB330)","v":0},{"$f":"SUMPRODUCT((Aktivierungsjahr<=Costs!$A418)*(AbschreibungAGr=Costs!AC$353)*(AbschreibungAHKBvD))-SUM(AC$267:AC330)","v":0},{"$f":"SUMPRODUCT((Aktivierungsjahr<=Costs!$A418)*(AbschreibungAGr=Costs!AD$353)*(AbschreibungAHKBvD))-SUM(AD$267:AD330)","v":0},{"$f":"SUMPRODUCT((Aktivierungsjahr<=Costs!$A418)*(AbschreibungAGr=Costs!AE$353)*(AbschreibungAHKBvD))-SUM(AE$267:AE330)","v":0},{"$f":"SUMPRODUCT((Aktivierungsjahr<=Costs!$A418)*(AbschreibungAGr=Costs!AF$353)*(AbschreibungAHKBvD))-SUM(AF$267:AF330)","v":0},{"$f":"SUMPRODUCT((Aktivierungsjahr<=Costs!$A418)*(AbschreibungAGr=Costs!AG$353)*(AbschreibungAHKBvD))-SUM(AG$267:AG330)","v":0},{"$f":"SUMPRODUCT((Aktivierungsjahr<=Costs!$A418)*(AbschreibungAGr=Costs!AH$353)*(AbschreibungAHKBvD))-SUM(AH$267:AH330)","v":0},{"$f":"SUMPRODUCT((Aktivierungsjahr<=Costs!$A418)*(AbschreibungAGr=Costs!AI$353)*(AbschreibungAHKBvD))-SUM(AI$267:AI330)","v":0},{"$f":"SUMPRODUCT((Aktivierungsjahr<=Costs!$A418)*(AbschreibungAGr=Costs!AJ$353)*(AbschreibungAHKBvD))-SUM(AJ$267:AJ330)","v":0},{"$f":"SUMPRODUCT((Aktivierungsjahr<=Costs!$A418)*(AbschreibungAGr=Costs!AK$353)*(AbschreibungAHKBvD))-SUM(AK$267:AK330)","v":0},{"$f":"SUMPRODUCT((Aktivierungsjahr<=Costs!$A418)*(AbschreibungAGr=Costs!AL$353)*(AbschreibungAHKBvD))-SUM(AL$267:AL330)","v":0},{"$f":"SUMPRODUCT((Aktivierungsjahr<=Costs!$A418)*(AbschreibungAGr=Costs!AM$353)*(AbschreibungAHKBvD))-SUM(AM$267:AM330)","v":0},{"$f":"SUMPRODUCT((Aktivierungsjahr<=Costs!$A418)*(AbschreibungAGr=Costs!AN$353)*(AbschreibungAHKBvD))-SUM(AN$267:AN330)","v":0},{"$f":"SUMPRODUCT((Aktivierungsjahr<=Costs!$A418)*(AbschreibungAGr=Costs!AO$353)*(AbschreibungAHKBvD))-SUM(AO$267:AO330)","v":0},{"$f":"SUMPRODUCT((Aktivierungsjahr<=Costs!$A418)*(AbschreibungAGr=Costs!AP$353)*(AbschreibungAHKBvD))-SUM(AP$267:AP330)","v":0},{"$f":"SUMPRODUCT((Aktivierungsjahr<=Costs!$A418)*(AbschreibungAGr=Costs!AQ$353)*(AbschreibungAHKBvD))-SUM(AQ$267:AQ330)","v":0}]
[2080,0,{"$f":"SUMPRODUCT((Aktivierungsjahr<=Costs!$A419)*(AbschreibungAGr=Costs!C$353)*(AbschreibungAHKBvD))-SUM(C$267:C331)","v":0},{"$f":"SUMPRODUCT((Aktivierungsjahr<=Costs!$A419)*(AbschreibungAGr=Costs!D$353)*(AbschreibungAHKBvD))-SUM(D$267:D331)","v":0},{"$f":"SUMPRODUCT((Aktivierungsjahr<=Costs!$A419)*(AbschreibungAGr=Costs!E$353)*(AbschreibungAHKBvD))-SUM(E$267:E331)","v":0},{"$f":"SUMPRODUCT((Aktivierungsjahr<=Costs!$A419)*(AbschreibungAGr=Costs!F$353)*(AbschreibungAHKBvD))-SUM(F$267:F331)","v":0},{"$f":"SUMPRODUCT((Aktivierungsjahr<=Costs!$A419)*(AbschreibungAGr=Costs!G$353)*(AbschreibungAHKBvD))-SUM(G$267:G331)","v":0},{"$f":"SUMPRODUCT((Aktivierungsjahr<=Costs!$A419)*(AbschreibungAGr=Costs!H$353)*(AbschreibungAHKBvD))-SUM(H$267:H331)","v":0},{"$f":"SUMPRODUCT((Aktivierungsjahr<=Costs!$A419)*(AbschreibungAGr=Costs!I$353)*(AbschreibungAHKBvD))-SUM(I$267:I331)","v":0},{"$f":"SUMPRODUCT((Aktivierungsjahr<=Costs!$A419)*(AbschreibungAGr=Costs!J$353)*(AbschreibungAHKBvD))-SUM(J$267:J331)","v":0},{"$f":"SUMPRODUCT((Aktivierungsjahr<=Costs!$A419)*(AbschreibungAGr=Costs!K$353)*(AbschreibungAHKBvD))-SUM(K$267:K331)","v":0},{"$f":"SUMPRODUCT((Aktivierungsjahr<=Costs!$A419)*(AbschreibungAGr=Costs!L$353)*(AbschreibungAHKBvD))-SUM(L$267:L331)","v":0},{"$f":"SUMPRODUCT((Aktivierungsjahr<=Costs!$A419)*(AbschreibungAGr=Costs!M$353)*(AbschreibungAHKBvD))-SUM(M$267:M331)","v":0},{"$f":"SUMPRODUCT((Aktivierungsjahr<=Costs!$A419)*(AbschreibungAGr=Costs!N$353)*(AbschreibungAHKBvD))-SUM(N$267:N331)","v":0},{"$f":"SUMPRODUCT((Aktivierungsjahr<=Costs!$A419)*(AbschreibungAGr=Costs!O$353)*(AbschreibungAHKBvD))-SUM(O$267:O331)","v":0},{"$f":"SUMPRODUCT((Aktivierungsjahr<=Costs!$A419)*(AbschreibungAGr=Costs!P$353)*(AbschreibungAHKBvD))-SUM(P$267:P331)","v":0},{"$f":"SUMPRODUCT((Aktivierungsjahr<=Costs!$A419)*(AbschreibungAGr=Costs!Q$353)*(AbschreibungAHKBvD))-SUM(Q$267:Q331)","v":0},{"$f":"SUMPRODUCT((Aktivierungsjahr<=Costs!$A419)*(AbschreibungAGr=Costs!R$353)*(AbschreibungAHKBvD))-SUM(R$267:R331)","v":0},{"$f":"SUMPRODUCT((Aktivierungsjahr<=Costs!$A419)*(AbschreibungAGr=Costs!S$353)*(AbschreibungAHKBvD))-SUM(S$267:S331)","v":0},{"$f":"SUMPRODUCT((Aktivierungsjahr<=Costs!$A419)*(AbschreibungAGr=Costs!T$353)*(AbschreibungAHKBvD))-SUM(T$267:T331)","v":0},{"$f":"SUMPRODUCT((Aktivierungsjahr<=Costs!$A419)*(AbschreibungAGr=Costs!U$353)*(AbschreibungAHKBvD))-SUM(U$267:U331)","v":0},{"$f":"SUMPRODUCT((Aktivierungsjahr<=Costs!$A419)*(AbschreibungAGr=Costs!V$353)*(AbschreibungAHKBvD))-SUM(V$267:V331)","v":0},{"$f":"SUMPRODUCT((Aktivierungsjahr<=Costs!$A419)*(AbschreibungAGr=Costs!W$353)*(AbschreibungAHKBvD))-SUM(W$267:W331)","v":0},{"$f":"SUMPRODUCT((Aktivierungsjahr<=Costs!$A419)*(AbschreibungAGr=Costs!X$353)*(AbschreibungAHKBvD))-SUM(X$267:X331)","v":0},{"$f":"SUMPRODUCT((Aktivierungsjahr<=Costs!$A419)*(AbschreibungAGr=Costs!Y$353)*(AbschreibungAHKBvD))-SUM(Y$267:Y331)","v":0},{"$f":"SUMPRODUCT((Aktivierungsjahr<=Costs!$A419)*(AbschreibungAGr=Costs!Z$353)*(AbschreibungAHKBvD))-SUM(Z$267:Z331)","v":0},{"$f":"SUMPRODUCT((Aktivierungsjahr<=Costs!$A419)*(AbschreibungAGr=Costs!AA$353)*(AbschreibungAHKBvD))-SUM(AA$267:AA331)","v":0},{"$f":"SUMPRODUCT((Aktivierungsjahr<=Costs!$A419)*(AbschreibungAGr=Costs!AB$353)*(AbschreibungAHKBvD))-SUM(AB$267:AB331)","v":0},{"$f":"SUMPRODUCT((Aktivierungsjahr<=Costs!$A419)*(AbschreibungAGr=Costs!AC$353)*(AbschreibungAHKBvD))-SUM(AC$267:AC331)","v":0},{"$f":"SUMPRODUCT((Aktivierungsjahr<=Costs!$A419)*(AbschreibungAGr=Costs!AD$353)*(AbschreibungAHKBvD))-SUM(AD$267:AD331)","v":0},{"$f":"SUMPRODUCT((Aktivierungsjahr<=Costs!$A419)*(AbschreibungAGr=Costs!AE$353)*(AbschreibungAHKBvD))-SUM(AE$267:AE331)","v":0},{"$f":"SUMPRODUCT((Aktivierungsjahr<=Costs!$A419)*(AbschreibungAGr=Costs!AF$353)*(AbschreibungAHKBvD))-SUM(AF$267:AF331)","v":0},{"$f":"SUMPRODUCT((Aktivierungsjahr<=Costs!$A419)*(AbschreibungAGr=Costs!AG$353)*(AbschreibungAHKBvD))-SUM(AG$267:AG331)","v":0},{"$f":"SUMPRODUCT((Aktivierungsjahr<=Costs!$A419)*(AbschreibungAGr=Costs!AH$353)*(AbschreibungAHKBvD))-SUM(AH$267:AH331)","v":0},{"$f":"SUMPRODUCT((Aktivierungsjahr<=Costs!$A419)*(AbschreibungAGr=Costs!AI$353)*(AbschreibungAHKBvD))-SUM(AI$267:AI331)","v":0},{"$f":"SUMPRODUCT((Aktivierungsjahr<=Costs!$A419)*(AbschreibungAGr=Costs!AJ$353)*(AbschreibungAHKBvD))-SUM(AJ$267:AJ331)","v":0},{"$f":"SUMPRODUCT((Aktivierungsjahr<=Costs!$A419)*(AbschreibungAGr=Costs!AK$353)*(AbschreibungAHKBvD))-SUM(AK$267:AK331)","v":0},{"$f":"SUMPRODUCT((Aktivierungsjahr<=Costs!$A419)*(AbschreibungAGr=Costs!AL$353)*(AbschreibungAHKBvD))-SUM(AL$267:AL331)","v":0},{"$f":"SUMPRODUCT((Aktivierungsjahr<=Costs!$A419)*(AbschreibungAGr=Costs!AM$353)*(AbschreibungAHKBvD))-SUM(AM$267:AM331)","v":0},{"$f":"SUMPRODUCT((Aktivierungsjahr<=Costs!$A419)*(AbschreibungAGr=Costs!AN$353)*(AbschreibungAHKBvD))-SUM(AN$267:AN331)","v":0},{"$f":"SUMPRODUCT((Aktivierungsjahr<=Costs!$A419)*(AbschreibungAGr=Costs!AO$353)*(AbschreibungAHKBvD))-SUM(AO$267:AO331)","v":0},{"$f":"SUMPRODUCT((Aktivierungsjahr<=Costs!$A419)*(AbschreibungAGr=Costs!AP$353)*(AbschreibungAHKBvD))-SUM(AP$267:AP331)","v":0},{"$f":"SUMPRODUCT((Aktivierungsjahr<=Costs!$A419)*(AbschreibungAGr=Costs!AQ$353)*(AbschreibungAHKBvD))-SUM(AQ$267:AQ331)","v":0}]
[2081,0,{"$f":"SUMPRODUCT((Aktivierungsjahr<=Costs!$A420)*(AbschreibungAGr=Costs!C$353)*(AbschreibungAHKBvD))-SUM(C$267:C332)","v":0},{"$f":"SUMPRODUCT((Aktivierungsjahr<=Costs!$A420)*(AbschreibungAGr=Costs!D$353)*(AbschreibungAHKBvD))-SUM(D$267:D332)","v":0},{"$f":"SUMPRODUCT((Aktivierungsjahr<=Costs!$A420)*(AbschreibungAGr=Costs!E$353)*(AbschreibungAHKBvD))-SUM(E$267:E332)","v":0},{"$f":"SUMPRODUCT((Aktivierungsjahr<=Costs!$A420)*(AbschreibungAGr=Costs!F$353)*(AbschreibungAHKBvD))-SUM(F$267:F332)","v":0},{"$f":"SUMPRODUCT((Aktivierungsjahr<=Costs!$A420)*(AbschreibungAGr=Costs!G$353)*(AbschreibungAHKBvD))-SUM(G$267:G332)","v":0},{"$f":"SUMPRODUCT((Aktivierungsjahr<=Costs!$A420)*(AbschreibungAGr=Costs!H$353)*(AbschreibungAHKBvD))-SUM(H$267:H332)","v":0},{"$f":"SUMPRODUCT((Aktivierungsjahr<=Costs!$A420)*(AbschreibungAGr=Costs!I$353)*(AbschreibungAHKBvD))-SUM(I$267:I332)","v":0},{"$f":"SUMPRODUCT((Aktivierungsjahr<=Costs!$A420)*(AbschreibungAGr=Costs!J$353)*(AbschreibungAHKBvD))-SUM(J$267:J332)","v":0},{"$f":"SUMPRODUCT((Aktivierungsjahr<=Costs!$A420)*(AbschreibungAGr=Costs!K$353)*(AbschreibungAHKBvD))-SUM(K$267:K332)","v":0},{"$f":"SUMPRODUCT((Aktivierungsjahr<=Costs!$A420)*(AbschreibungAGr=Costs!L$353)*(AbschreibungAHKBvD))-SUM(L$267:L332)","v":0},{"$f":"SUMPRODUCT((Aktivierungsjahr<=Costs!$A420)*(AbschreibungAGr=Costs!M$353)*(AbschreibungAHKBvD))-SUM(M$267:M332)","v":0},{"$f":"SUMPRODUCT((Aktivierungsjahr<=Costs!$A420)*(AbschreibungAGr=Costs!N$353)*(AbschreibungAHKBvD))-SUM(N$267:N332)","v":0},{"$f":"SUMPRODUCT((Aktivierungsjahr<=Costs!$A420)*(AbschreibungAGr=Costs!O$353)*(AbschreibungAHKBvD))-SUM(O$267:O332)","v":0},{"$f":"SUMPRODUCT((Aktivierungsjahr<=Costs!$A420)*(AbschreibungAGr=Costs!P$353)*(AbschreibungAHKBvD))-SUM(P$267:P332)","v":0},{"$f":"SUMPRODUCT((Aktivierungsjahr<=Costs!$A420)*(AbschreibungAGr=Costs!Q$353)*(AbschreibungAHKBvD))-SUM(Q$267:Q332)","v":0},{"$f":"SUMPRODUCT((Aktivierungsjahr<=Costs!$A420)*(AbschreibungAGr=Costs!R$353)*(AbschreibungAHKBvD))-SUM(R$267:R332)","v":0},{"$f":"SUMPRODUCT((Aktivierungsjahr<=Costs!$A420)*(AbschreibungAGr=Costs!S$353)*(AbschreibungAHKBvD))-SUM(S$267:S332)","v":0},{"$f":"SUMPRODUCT((Aktivierungsjahr<=Costs!$A420)*(AbschreibungAGr=Costs!T$353)*(AbschreibungAHKBvD))-SUM(T$267:T332)","v":0},{"$f":"SUMPRODUCT((Aktivierungsjahr<=Costs!$A420)*(AbschreibungAGr=Costs!U$353)*(AbschreibungAHKBvD))-SUM(U$267:U332)","v":0},{"$f":"SUMPRODUCT((Aktivierungsjahr<=Costs!$A420)*(AbschreibungAGr=Costs!V$353)*(AbschreibungAHKBvD))-SUM(V$267:V332)","v":0},{"$f":"SUMPRODUCT((Aktivierungsjahr<=Costs!$A420)*(AbschreibungAGr=Costs!W$353)*(AbschreibungAHKBvD))-SUM(W$267:W332)","v":0},{"$f":"SUMPRODUCT((Aktivierungsjahr<=Costs!$A420)*(AbschreibungAGr=Costs!X$353)*(AbschreibungAHKBvD))-SUM(X$267:X332)","v":0},{"$f":"SUMPRODUCT((Aktivierungsjahr<=Costs!$A420)*(AbschreibungAGr=Costs!Y$353)*(AbschreibungAHKBvD))-SUM(Y$267:Y332)","v":0},{"$f":"SUMPRODUCT((Aktivierungsjahr<=Costs!$A420)*(AbschreibungAGr=Costs!Z$353)*(AbschreibungAHKBvD))-SUM(Z$267:Z332)","v":0},{"$f":"SUMPRODUCT((Aktivierungsjahr<=Costs!$A420)*(AbschreibungAGr=Costs!AA$353)*(AbschreibungAHKBvD))-SUM(AA$267:AA332)","v":0},{"$f":"SUMPRODUCT((Aktivierungsjahr<=Costs!$A420)*(AbschreibungAGr=Costs!AB$353)*(AbschreibungAHKBvD))-SUM(AB$267:AB332)","v":0},{"$f":"SUMPRODUCT((Aktivierungsjahr<=Costs!$A420)*(AbschreibungAGr=Costs!AC$353)*(AbschreibungAHKBvD))-SUM(AC$267:AC332)","v":0},{"$f":"SUMPRODUCT((Aktivierungsjahr<=Costs!$A420)*(AbschreibungAGr=Costs!AD$353)*(AbschreibungAHKBvD))-SUM(AD$267:AD332)","v":0},{"$f":"SUMPRODUCT((Aktivierungsjahr<=Costs!$A420)*(AbschreibungAGr=Costs!AE$353)*(AbschreibungAHKBvD))-SUM(AE$267:AE332)","v":0},{"$f":"SUMPRODUCT((Aktivierungsjahr<=Costs!$A420)*(AbschreibungAGr=Costs!AF$353)*(AbschreibungAHKBvD))-SUM(AF$267:AF332)","v":0},{"$f":"SUMPRODUCT((Aktivierungsjahr<=Costs!$A420)*(AbschreibungAGr=Costs!AG$353)*(AbschreibungAHKBvD))-SUM(AG$267:AG332)","v":0},{"$f":"SUMPRODUCT((Aktivierungsjahr<=Costs!$A420)*(AbschreibungAGr=Costs!AH$353)*(AbschreibungAHKBvD))-SUM(AH$267:AH332)","v":0},{"$f":"SUMPRODUCT((Aktivierungsjahr<=Costs!$A420)*(AbschreibungAGr=Costs!AI$353)*(AbschreibungAHKBvD))-SUM(AI$267:AI332)","v":0},{"$f":"SUMPRODUCT((Aktivierungsjahr<=Costs!$A420)*(AbschreibungAGr=Costs!AJ$353)*(AbschreibungAHKBvD))-SUM(AJ$267:AJ332)","v":0},{"$f":"SUMPRODUCT((Aktivierungsjahr<=Costs!$A420)*(AbschreibungAGr=Costs!AK$353)*(AbschreibungAHKBvD))-SUM(AK$267:AK332)","v":0},{"$f":"SUMPRODUCT((Aktivierungsjahr<=Costs!$A420)*(AbschreibungAGr=Costs!AL$353)*(AbschreibungAHKBvD))-SUM(AL$267:AL332)","v":0},{"$f":"SUMPRODUCT((Aktivierungsjahr<=Costs!$A420)*(AbschreibungAGr=Costs!AM$353)*(AbschreibungAHKBvD))-SUM(AM$267:AM332)","v":0},{"$f":"SUMPRODUCT((Aktivierungsjahr<=Costs!$A420)*(AbschreibungAGr=Costs!AN$353)*(AbschreibungAHKBvD))-SUM(AN$267:AN332)","v":0},{"$f":"SUMPRODUCT((Aktivierungsjahr<=Costs!$A420)*(AbschreibungAGr=Costs!AO$353)*(AbschreibungAHKBvD))-SUM(AO$267:AO332)","v":0},{"$f":"SUMPRODUCT((Aktivierungsjahr<=Costs!$A420)*(AbschreibungAGr=Costs!AP$353)*(AbschreibungAHKBvD))-SUM(AP$267:AP332)","v":0},{"$f":"SUMPRODUCT((Aktivierungsjahr<=Costs!$A420)*(AbschreibungAGr=Costs!AQ$353)*(AbschreibungAHKBvD))-SUM(AQ$267:AQ332)","v":0}]
[2082,0,{"$f":"SUMPRODUCT((Aktivierungsjahr<=Costs!$A421)*(AbschreibungAGr=Costs!C$353)*(AbschreibungAHKBvD))-SUM(C$267:C333)","v":0},{"$f":"SUMPRODUCT((Aktivierungsjahr<=Costs!$A421)*(AbschreibungAGr=Costs!D$353)*(AbschreibungAHKBvD))-SUM(D$267:D333)","v":0},{"$f":"SUMPRODUCT((Aktivierungsjahr<=Costs!$A421)*(AbschreibungAGr=Costs!E$353)*(AbschreibungAHKBvD))-SUM(E$267:E333)","v":0},{"$f":"SUMPRODUCT((Aktivierungsjahr<=Costs!$A421)*(AbschreibungAGr=Costs!F$353)*(AbschreibungAHKBvD))-SUM(F$267:F333)","v":0},{"$f":"SUMPRODUCT((Aktivierungsjahr<=Costs!$A421)*(AbschreibungAGr=Costs!G$353)*(AbschreibungAHKBvD))-SUM(G$267:G333)","v":0},{"$f":"SUMPRODUCT((Aktivierungsjahr<=Costs!$A421)*(AbschreibungAGr=Costs!H$353)*(AbschreibungAHKBvD))-SUM(H$267:H333)","v":0},{"$f":"SUMPRODUCT((Aktivierungsjahr<=Costs!$A421)*(AbschreibungAGr=Costs!I$353)*(AbschreibungAHKBvD))-SUM(I$267:I333)","v":0},{"$f":"SUMPRODUCT((Aktivierungsjahr<=Costs!$A421)*(AbschreibungAGr=Costs!J$353)*(AbschreibungAHKBvD))-SUM(J$267:J333)","v":0},{"$f":"SUMPRODUCT((Aktivierungsjahr<=Costs!$A421)*(AbschreibungAGr=Costs!K$353)*(AbschreibungAHKBvD))-SUM(K$267:K333)","v":0},{"$f":"SUMPRODUCT((Aktivierungsjahr<=Costs!$A421)*(AbschreibungAGr=Costs!L$353)*(AbschreibungAHKBvD))-SUM(L$267:L333)","v":0},{"$f":"SUMPRODUCT((Aktivierungsjahr<=Costs!$A421)*(AbschreibungAGr=Costs!M$353)*(AbschreibungAHKBvD))-SUM(M$267:M333)","v":0},{"$f":"SUMPRODUCT((Aktivierungsjahr<=Costs!$A421)*(AbschreibungAGr=Costs!N$353)*(AbschreibungAHKBvD))-SUM(N$267:N333)","v":0},{"$f":"SUMPRODUCT((Aktivierungsjahr<=Costs!$A421)*(AbschreibungAGr=Costs!O$353)*(AbschreibungAHKBvD))-SUM(O$267:O333)","v":0},{"$f":"SUMPRODUCT((Aktivierungsjahr<=Costs!$A421)*(AbschreibungAGr=Costs!P$353)*(AbschreibungAHKBvD))-SUM(P$267:P333)","v":0},{"$f":"SUMPRODUCT((Aktivierungsjahr<=Costs!$A421)*(AbschreibungAGr=Costs!Q$353)*(AbschreibungAHKBvD))-SUM(Q$267:Q333)","v":0},{"$f":"SUMPRODUCT((Aktivierungsjahr<=Costs!$A421)*(AbschreibungAGr=Costs!R$353)*(AbschreibungAHKBvD))-SUM(R$267:R333)","v":0},{"$f":"SUMPRODUCT((Aktivierungsjahr<=Costs!$A421)*(AbschreibungAGr=Costs!S$353)*(AbschreibungAHKBvD))-SUM(S$267:S333)","v":0},{"$f":"SUMPRODUCT((Aktivierungsjahr<=Costs!$A421)*(AbschreibungAGr=Costs!T$353)*(AbschreibungAHKBvD))-SUM(T$267:T333)","v":0},{"$f":"SUMPRODUCT((Aktivierungsjahr<=Costs!$A421)*(AbschreibungAGr=Costs!U$353)*(AbschreibungAHKBvD))-SUM(U$267:U333)","v":0},{"$f":"SUMPRODUCT((Aktivierungsjahr<=Costs!$A421)*(AbschreibungAGr=Costs!V$353)*(AbschreibungAHKBvD))-SUM(V$267:V333)","v":0},{"$f":"SUMPRODUCT((Aktivierungsjahr<=Costs!$A421)*(AbschreibungAGr=Costs!W$353)*(AbschreibungAHKBvD))-SUM(W$267:W333)","v":0},{"$f":"SUMPRODUCT((Aktivierungsjahr<=Costs!$A421)*(AbschreibungAGr=Costs!X$353)*(AbschreibungAHKBvD))-SUM(X$267:X333)","v":0},{"$f":"SUMPRODUCT((Aktivierungsjahr<=Costs!$A421)*(AbschreibungAGr=Costs!Y$353)*(AbschreibungAHKBvD))-SUM(Y$267:Y333)","v":0},{"$f":"SUMPRODUCT((Aktivierungsjahr<=Costs!$A421)*(AbschreibungAGr=Costs!Z$353)*(AbschreibungAHKBvD))-SUM(Z$267:Z333)","v":0},{"$f":"SUMPRODUCT((Aktivierungsjahr<=Costs!$A421)*(AbschreibungAGr=Costs!AA$353)*(AbschreibungAHKBvD))-SUM(AA$267:AA333)","v":0},{"$f":"SUMPRODUCT((Aktivierungsjahr<=Costs!$A421)*(AbschreibungAGr=Costs!AB$353)*(AbschreibungAHKBvD))-SUM(AB$267:AB333)","v":0},{"$f":"SUMPRODUCT((Aktivierungsjahr<=Costs!$A421)*(AbschreibungAGr=Costs!AC$353)*(AbschreibungAHKBvD))-SUM(AC$267:AC333)","v":0},{"$f":"SUMPRODUCT((Aktivierungsjahr<=Costs!$A421)*(AbschreibungAGr=Costs!AD$353)*(AbschreibungAHKBvD))-SUM(AD$267:AD333)","v":0},{"$f":"SUMPRODUCT((Aktivierungsjahr<=Costs!$A421)*(AbschreibungAGr=Costs!AE$353)*(AbschreibungAHKBvD))-SUM(AE$267:AE333)","v":0},{"$f":"SUMPRODUCT((Aktivierungsjahr<=Costs!$A421)*(AbschreibungAGr=Costs!AF$353)*(AbschreibungAHKBvD))-SUM(AF$267:AF333)","v":0},{"$f":"SUMPRODUCT((Aktivierungsjahr<=Costs!$A421)*(AbschreibungAGr=Costs!AG$353)*(AbschreibungAHKBvD))-SUM(AG$267:AG333)","v":0},{"$f":"SUMPRODUCT((Aktivierungsjahr<=Costs!$A421)*(AbschreibungAGr=Costs!AH$353)*(AbschreibungAHKBvD))-SUM(AH$267:AH333)","v":0},{"$f":"SUMPRODUCT((Aktivierungsjahr<=Costs!$A421)*(AbschreibungAGr=Costs!AI$353)*(AbschreibungAHKBvD))-SUM(AI$267:AI333)","v":0},{"$f":"SUMPRODUCT((Aktivierungsjahr<=Costs!$A421)*(AbschreibungAGr=Costs!AJ$353)*(AbschreibungAHKBvD))-SUM(AJ$267:AJ333)","v":0},{"$f":"SUMPRODUCT((Aktivierungsjahr<=Costs!$A421)*(AbschreibungAGr=Costs!AK$353)*(AbschreibungAHKBvD))-SUM(AK$267:AK333)","v":0},{"$f":"SUMPRODUCT((Aktivierungsjahr<=Costs!$A421)*(AbschreibungAGr=Costs!AL$353)*(AbschreibungAHKBvD))-SUM(AL$267:AL333)","v":0},{"$f":"SUMPRODUCT((Aktivierungsjahr<=Costs!$A421)*(AbschreibungAGr=Costs!AM$353)*(AbschreibungAHKBvD))-SUM(AM$267:AM333)","v":0},{"$f":"SUMPRODUCT((Aktivierungsjahr<=Costs!$A421)*(AbschreibungAGr=Costs!AN$353)*(AbschreibungAHKBvD))-SUM(AN$267:AN333)","v":0},{"$f":"SUMPRODUCT((Aktivierungsjahr<=Costs!$A421)*(AbschreibungAGr=Costs!AO$353)*(AbschreibungAHKBvD))-SUM(AO$267:AO333)","v":0},{"$f":"SUMPRODUCT((Aktivierungsjahr<=Costs!$A421)*(AbschreibungAGr=Costs!AP$353)*(AbschreibungAHKBvD))-SUM(AP$267:AP333)","v":0},{"$f":"SUMPRODUCT((Aktivierungsjahr<=Costs!$A421)*(AbschreibungAGr=Costs!AQ$353)*(AbschreibungAHKBvD))-SUM(AQ$267:AQ333)","v":0}]
[2083,0,{"$f":"SUMPRODUCT((Aktivierungsjahr<=Costs!$A422)*(AbschreibungAGr=Costs!C$353)*(AbschreibungAHKBvD))-SUM(C$267:C334)","v":0},{"$f":"SUMPRODUCT((Aktivierungsjahr<=Costs!$A422)*(AbschreibungAGr=Costs!D$353)*(AbschreibungAHKBvD))-SUM(D$267:D334)","v":0},{"$f":"SUMPRODUCT((Aktivierungsjahr<=Costs!$A422)*(AbschreibungAGr=Costs!E$353)*(AbschreibungAHKBvD))-SUM(E$267:E334)","v":0},{"$f":"SUMPRODUCT((Aktivierungsjahr<=Costs!$A422)*(AbschreibungAGr=Costs!F$353)*(AbschreibungAHKBvD))-SUM(F$267:F334)","v":0},{"$f":"SUMPRODUCT((Aktivierungsjahr<=Costs!$A422)*(AbschreibungAGr=Costs!G$353)*(AbschreibungAHKBvD))-SUM(G$267:G334)","v":0},{"$f":"SUMPRODUCT((Aktivierungsjahr<=Costs!$A422)*(AbschreibungAGr=Costs!H$353)*(AbschreibungAHKBvD))-SUM(H$267:H334)","v":0},{"$f":"SUMPRODUCT((Aktivierungsjahr<=Costs!$A422)*(AbschreibungAGr=Costs!I$353)*(AbschreibungAHKBvD))-SUM(I$267:I334)","v":0},{"$f":"SUMPRODUCT((Aktivierungsjahr<=Costs!$A422)*(AbschreibungAGr=Costs!J$353)*(AbschreibungAHKBvD))-SUM(J$267:J334)","v":0},{"$f":"SUMPRODUCT((Aktivierungsjahr<=Costs!$A422)*(AbschreibungAGr=Costs!K$353)*(AbschreibungAHKBvD))-SUM(K$267:K334)","v":0},{"$f":"SUMPRODUCT((Aktivierungsjahr<=Costs!$A422)*(AbschreibungAGr=Costs!L$353)*(AbschreibungAHKBvD))-SUM(L$267:L334)","v":0},{"$f":"SUMPRODUCT((Aktivierungsjahr<=Costs!$A422)*(AbschreibungAGr=Costs!M$353)*(AbschreibungAHKBvD))-SUM(M$267:M334)","v":0},{"$f":"SUMPRODUCT((Aktivierungsjahr<=Costs!$A422)*(AbschreibungAGr=Costs!N$353)*(AbschreibungAHKBvD))-SUM(N$267:N334)","v":0},{"$f":"SUMPRODUCT((Aktivierungsjahr<=Costs!$A422)*(AbschreibungAGr=Costs!O$353)*(AbschreibungAHKBvD))-SUM(O$267:O334)","v":0},{"$f":"SUMPRODUCT((Aktivierungsjahr<=Costs!$A422)*(AbschreibungAGr=Costs!P$353)*(AbschreibungAHKBvD))-SUM(P$267:P334)","v":0},{"$f":"SUMPRODUCT((Aktivierungsjahr<=Costs!$A422)*(AbschreibungAGr=Costs!Q$353)*(AbschreibungAHKBvD))-SUM(Q$267:Q334)","v":0},{"$f":"SUMPRODUCT((Aktivierungsjahr<=Costs!$A422)*(AbschreibungAGr=Costs!R$353)*(AbschreibungAHKBvD))-SUM(R$267:R334)","v":0},{"$f":"SUMPRODUCT((Aktivierungsjahr<=Costs!$A422)*(AbschreibungAGr=Costs!S$353)*(AbschreibungAHKBvD))-SUM(S$267:S334)","v":0},{"$f":"SUMPRODUCT((Aktivierungsjahr<=Costs!$A422)*(AbschreibungAGr=Costs!T$353)*(AbschreibungAHKBvD))-SUM(T$267:T334)","v":0},{"$f":"SUMPRODUCT((Aktivierungsjahr<=Costs!$A422)*(AbschreibungAGr=Costs!U$353)*(AbschreibungAHKBvD))-SUM(U$267:U334)","v":0},{"$f":"SUMPRODUCT((Aktivierungsjahr<=Costs!$A422)*(AbschreibungAGr=Costs!V$353)*(AbschreibungAHKBvD))-SUM(V$267:V334)","v":0},{"$f":"SUMPRODUCT((Aktivierungsjahr<=Costs!$A422)*(AbschreibungAGr=Costs!W$353)*(AbschreibungAHKBvD))-SUM(W$267:W334)","v":0},{"$f":"SUMPRODUCT((Aktivierungsjahr<=Costs!$A422)*(AbschreibungAGr=Costs!X$353)*(AbschreibungAHKBvD))-SUM(X$267:X334)","v":0},{"$f":"SUMPRODUCT((Aktivierungsjahr<=Costs!$A422)*(AbschreibungAGr=Costs!Y$353)*(AbschreibungAHKBvD))-SUM(Y$267:Y334)","v":0},{"$f":"SUMPRODUCT((Aktivierungsjahr<=Costs!$A422)*(AbschreibungAGr=Costs!Z$353)*(AbschreibungAHKBvD))-SUM(Z$267:Z334)","v":0},{"$f":"SUMPRODUCT((Aktivierungsjahr<=Costs!$A422)*(AbschreibungAGr=Costs!AA$353)*(AbschreibungAHKBvD))-SUM(AA$267:AA334)","v":0},{"$f":"SUMPRODUCT((Aktivierungsjahr<=Costs!$A422)*(AbschreibungAGr=Costs!AB$353)*(AbschreibungAHKBvD))-SUM(AB$267:AB334)","v":0},{"$f":"SUMPRODUCT((Aktivierungsjahr<=Costs!$A422)*(AbschreibungAGr=Costs!AC$353)*(AbschreibungAHKBvD))-SUM(AC$267:AC334)","v":0},{"$f":"SUMPRODUCT((Aktivierungsjahr<=Costs!$A422)*(AbschreibungAGr=Costs!AD$353)*(AbschreibungAHKBvD))-SUM(AD$267:AD334)","v":0},{"$f":"SUMPRODUCT((Aktivierungsjahr<=Costs!$A422)*(AbschreibungAGr=Costs!AE$353)*(AbschreibungAHKBvD))-SUM(AE$267:AE334)","v":0},{"$f":"SUMPRODUCT((Aktivierungsjahr<=Costs!$A422)*(AbschreibungAGr=Costs!AF$353)*(AbschreibungAHKBvD))-SUM(AF$267:AF334)","v":0},{"$f":"SUMPRODUCT((Aktivierungsjahr<=Costs!$A422)*(AbschreibungAGr=Costs!AG$353)*(AbschreibungAHKBvD))-SUM(AG$267:AG334)","v":0},{"$f":"SUMPRODUCT((Aktivierungsjahr<=Costs!$A422)*(AbschreibungAGr=Costs!AH$353)*(AbschreibungAHKBvD))-SUM(AH$267:AH334)","v":0},{"$f":"SUMPRODUCT((Aktivierungsjahr<=Costs!$A422)*(AbschreibungAGr=Costs!AI$353)*(AbschreibungAHKBvD))-SUM(AI$267:AI334)","v":0},{"$f":"SUMPRODUCT((Aktivierungsjahr<=Costs!$A422)*(AbschreibungAGr=Costs!AJ$353)*(AbschreibungAHKBvD))-SUM(AJ$267:AJ334)","v":0},{"$f":"SUMPRODUCT((Aktivierungsjahr<=Costs!$A422)*(AbschreibungAGr=Costs!AK$353)*(AbschreibungAHKBvD))-SUM(AK$267:AK334)","v":0},{"$f":"SUMPRODUCT((Aktivierungsjahr<=Costs!$A422)*(AbschreibungAGr=Costs!AL$353)*(AbschreibungAHKBvD))-SUM(AL$267:AL334)","v":0},{"$f":"SUMPRODUCT((Aktivierungsjahr<=Costs!$A422)*(AbschreibungAGr=Costs!AM$353)*(AbschreibungAHKBvD))-SUM(AM$267:AM334)","v":0},{"$f":"SUMPRODUCT((Aktivierungsjahr<=Costs!$A422)*(AbschreibungAGr=Costs!AN$353)*(AbschreibungAHKBvD))-SUM(AN$267:AN334)","v":0},{"$f":"SUMPRODUCT((Aktivierungsjahr<=Costs!$A422)*(AbschreibungAGr=Costs!AO$353)*(AbschreibungAHKBvD))-SUM(AO$267:AO334)","v":0},{"$f":"SUMPRODUCT((Aktivierungsjahr<=Costs!$A422)*(AbschreibungAGr=Costs!AP$353)*(AbschreibungAHKBvD))-SUM(AP$267:AP334)","v":0},{"$f":"SUMPRODUCT((Aktivierungsjahr<=Costs!$A422)*(AbschreibungAGr=Costs!AQ$353)*(AbschreibungAHKBvD))-SUM(AQ$267:AQ334)","v":0}]
[2084,0,{"$f":"SUMPRODUCT((Aktivierungsjahr<=Costs!$A423)*(AbschreibungAGr=Costs!C$353)*(AbschreibungAHKBvD))-SUM(C$267:C335)","v":0},{"$f":"SUMPRODUCT((Aktivierungsjahr<=Costs!$A423)*(AbschreibungAGr=Costs!D$353)*(AbschreibungAHKBvD))-SUM(D$267:D335)","v":0},{"$f":"SUMPRODUCT((Aktivierungsjahr<=Costs!$A423)*(AbschreibungAGr=Costs!E$353)*(AbschreibungAHKBvD))-SUM(E$267:E335)","v":0},{"$f":"SUMPRODUCT((Aktivierungsjahr<=Costs!$A423)*(AbschreibungAGr=Costs!F$353)*(AbschreibungAHKBvD))-SUM(F$267:F335)","v":0},{"$f":"SUMPRODUCT((Aktivierungsjahr<=Costs!$A423)*(AbschreibungAGr=Costs!G$353)*(AbschreibungAHKBvD))-SUM(G$267:G335)","v":0},{"$f":"SUMPRODUCT((Aktivierungsjahr<=Costs!$A423)*(AbschreibungAGr=Costs!H$353)*(AbschreibungAHKBvD))-SUM(H$267:H335)","v":0},{"$f":"SUMPRODUCT((Aktivierungsjahr<=Costs!$A423)*(AbschreibungAGr=Costs!I$353)*(AbschreibungAHKBvD))-SUM(I$267:I335)","v":0},{"$f":"SUMPRODUCT((Aktivierungsjahr<=Costs!$A423)*(AbschreibungAGr=Costs!J$353)*(AbschreibungAHKBvD))-SUM(J$267:J335)","v":0},{"$f":"SUMPRODUCT((Aktivierungsjahr<=Costs!$A423)*(AbschreibungAGr=Costs!K$353)*(AbschreibungAHKBvD))-SUM(K$267:K335)","v":0},{"$f":"SUMPRODUCT((Aktivierungsjahr<=Costs!$A423)*(AbschreibungAGr=Costs!L$353)*(AbschreibungAHKBvD))-SUM(L$267:L335)","v":0},{"$f":"SUMPRODUCT((Aktivierungsjahr<=Costs!$A423)*(AbschreibungAGr=Costs!M$353)*(AbschreibungAHKBvD))-SUM(M$267:M335)","v":0},{"$f":"SUMPRODUCT((Aktivierungsjahr<=Costs!$A423)*(AbschreibungAGr=Costs!N$353)*(AbschreibungAHKBvD))-SUM(N$267:N335)","v":0},{"$f":"SUMPRODUCT((Aktivierungsjahr<=Costs!$A423)*(AbschreibungAGr=Costs!O$353)*(AbschreibungAHKBvD))-SUM(O$267:O335)","v":0},{"$f":"SUMPRODUCT((Aktivierungsjahr<=Costs!$A423)*(AbschreibungAGr=Costs!P$353)*(AbschreibungAHKBvD))-SUM(P$267:P335)","v":0},{"$f":"SUMPRODUCT((Aktivierungsjahr<=Costs!$A423)*(AbschreibungAGr=Costs!Q$353)*(AbschreibungAHKBvD))-SUM(Q$267:Q335)","v":0},{"$f":"SUMPRODUCT((Aktivierungsjahr<=Costs!$A423)*(AbschreibungAGr=Costs!R$353)*(AbschreibungAHKBvD))-SUM(R$267:R335)","v":0},{"$f":"SUMPRODUCT((Aktivierungsjahr<=Costs!$A423)*(AbschreibungAGr=Costs!S$353)*(AbschreibungAHKBvD))-SUM(S$267:S335)","v":0},{"$f":"SUMPRODUCT((Aktivierungsjahr<=Costs!$A423)*(AbschreibungAGr=Costs!T$353)*(AbschreibungAHKBvD))-SUM(T$267:T335)","v":0},{"$f":"SUMPRODUCT((Aktivierungsjahr<=Costs!$A423)*(AbschreibungAGr=Costs!U$353)*(AbschreibungAHKBvD))-SUM(U$267:U335)","v":0},{"$f":"SUMPRODUCT((Aktivierungsjahr<=Costs!$A423)*(AbschreibungAGr=Costs!V$353)*(AbschreibungAHKBvD))-SUM(V$267:V335)","v":0},{"$f":"SUMPRODUCT((Aktivierungsjahr<=Costs!$A423)*(AbschreibungAGr=Costs!W$353)*(AbschreibungAHKBvD))-SUM(W$267:W335)","v":0},{"$f":"SUMPRODUCT((Aktivierungsjahr<=Costs!$A423)*(AbschreibungAGr=Costs!X$353)*(AbschreibungAHKBvD))-SUM(X$267:X335)","v":0},{"$f":"SUMPRODUCT((Aktivierungsjahr<=Costs!$A423)*(AbschreibungAGr=Costs!Y$353)*(AbschreibungAHKBvD))-SUM(Y$267:Y335)","v":0},{"$f":"SUMPRODUCT((Aktivierungsjahr<=Costs!$A423)*(AbschreibungAGr=Costs!Z$353)*(AbschreibungAHKBvD))-SUM(Z$267:Z335)","v":0},{"$f":"SUMPRODUCT((Aktivierungsjahr<=Costs!$A423)*(AbschreibungAGr=Costs!AA$353)*(AbschreibungAHKBvD))-SUM(AA$267:AA335)","v":0},{"$f":"SUMPRODUCT((Aktivierungsjahr<=Costs!$A423)*(AbschreibungAGr=Costs!AB$353)*(AbschreibungAHKBvD))-SUM(AB$267:AB335)","v":0},{"$f":"SUMPRODUCT((Aktivierungsjahr<=Costs!$A423)*(AbschreibungAGr=Costs!AC$353)*(AbschreibungAHKBvD))-SUM(AC$267:AC335)","v":0},{"$f":"SUMPRODUCT((Aktivierungsjahr<=Costs!$A423)*(AbschreibungAGr=Costs!AD$353)*(AbschreibungAHKBvD))-SUM(AD$267:AD335)","v":0},{"$f":"SUMPRODUCT((Aktivierungsjahr<=Costs!$A423)*(AbschreibungAGr=Costs!AE$353)*(AbschreibungAHKBvD))-SUM(AE$267:AE335)","v":0},{"$f":"SUMPRODUCT((Aktivierungsjahr<=Costs!$A423)*(AbschreibungAGr=Costs!AF$353)*(AbschreibungAHKBvD))-SUM(AF$267:AF335)","v":0},{"$f":"SUMPRODUCT((Aktivierungsjahr<=Costs!$A423)*(AbschreibungAGr=Costs!AG$353)*(AbschreibungAHKBvD))-SUM(AG$267:AG335)","v":0},{"$f":"SUMPRODUCT((Aktivierungsjahr<=Costs!$A423)*(AbschreibungAGr=Costs!AH$353)*(AbschreibungAHKBvD))-SUM(AH$267:AH335)","v":0},{"$f":"SUMPRODUCT((Aktivierungsjahr<=Costs!$A423)*(AbschreibungAGr=Costs!AI$353)*(AbschreibungAHKBvD))-SUM(AI$267:AI335)","v":0},{"$f":"SUMPRODUCT((Aktivierungsjahr<=Costs!$A423)*(AbschreibungAGr=Costs!AJ$353)*(AbschreibungAHKBvD))-SUM(AJ$267:AJ335)","v":0},{"$f":"SUMPRODUCT((Aktivierungsjahr<=Costs!$A423)*(AbschreibungAGr=Costs!AK$353)*(AbschreibungAHKBvD))-SUM(AK$267:AK335)","v":0},{"$f":"SUMPRODUCT((Aktivierungsjahr<=Costs!$A423)*(AbschreibungAGr=Costs!AL$353)*(AbschreibungAHKBvD))-SUM(AL$267:AL335)","v":0},{"$f":"SUMPRODUCT((Aktivierungsjahr<=Costs!$A423)*(AbschreibungAGr=Costs!AM$353)*(AbschreibungAHKBvD))-SUM(AM$267:AM335)","v":0},{"$f":"SUMPRODUCT((Aktivierungsjahr<=Costs!$A423)*(AbschreibungAGr=Costs!AN$353)*(AbschreibungAHKBvD))-SUM(AN$267:AN335)","v":0},{"$f":"SUMPRODUCT((Aktivierungsjahr<=Costs!$A423)*(AbschreibungAGr=Costs!AO$353)*(AbschreibungAHKBvD))-SUM(AO$267:AO335)","v":0},{"$f":"SUMPRODUCT((Aktivierungsjahr<=Costs!$A423)*(AbschreibungAGr=Costs!AP$353)*(AbschreibungAHKBvD))-SUM(AP$267:AP335)","v":0},{"$f":"SUMPRODUCT((Aktivierungsjahr<=Costs!$A423)*(AbschreibungAGr=Costs!AQ$353)*(AbschreibungAHKBvD))-SUM(AQ$267:AQ335)","v":0}]
[2085,0,{"$f":"SUMPRODUCT((Aktivierungsjahr<=Costs!$A424)*(AbschreibungAGr=Costs!C$353)*(AbschreibungAHKBvD))-SUM(C$267:C336)","v":0},{"$f":"SUMPRODUCT((Aktivierungsjahr<=Costs!$A424)*(AbschreibungAGr=Costs!D$353)*(AbschreibungAHKBvD))-SUM(D$267:D336)","v":0},{"$f":"SUMPRODUCT((Aktivierungsjahr<=Costs!$A424)*(AbschreibungAGr=Costs!E$353)*(AbschreibungAHKBvD))-SUM(E$267:E336)","v":0},{"$f":"SUMPRODUCT((Aktivierungsjahr<=Costs!$A424)*(AbschreibungAGr=Costs!F$353)*(AbschreibungAHKBvD))-SUM(F$267:F336)","v":0},{"$f":"SUMPRODUCT((Aktivierungsjahr<=Costs!$A424)*(AbschreibungAGr=Costs!G$353)*(AbschreibungAHKBvD))-SUM(G$267:G336)","v":0},{"$f":"SUMPRODUCT((Aktivierungsjahr<=Costs!$A424)*(AbschreibungAGr=Costs!H$353)*(AbschreibungAHKBvD))-SUM(H$267:H336)","v":0},{"$f":"SUMPRODUCT((Aktivierungsjahr<=Costs!$A424)*(AbschreibungAGr=Costs!I$353)*(AbschreibungAHKBvD))-SUM(I$267:I336)","v":0},{"$f":"SUMPRODUCT((Aktivierungsjahr<=Costs!$A424)*(AbschreibungAGr=Costs!J$353)*(AbschreibungAHKBvD))-SUM(J$267:J336)","v":0},{"$f":"SUMPRODUCT((Aktivierungsjahr<=Costs!$A424)*(AbschreibungAGr=Costs!K$353)*(AbschreibungAHKBvD))-SUM(K$267:K336)","v":0},{"$f":"SUMPRODUCT((Aktivierungsjahr<=Costs!$A424)*(AbschreibungAGr=Costs!L$353)*(AbschreibungAHKBvD))-SUM(L$267:L336)","v":0},{"$f":"SUMPRODUCT((Aktivierungsjahr<=Costs!$A424)*(AbschreibungAGr=Costs!M$353)*(AbschreibungAHKBvD))-SUM(M$267:M336)","v":0},{"$f":"SUMPRODUCT((Aktivierungsjahr<=Costs!$A424)*(AbschreibungAGr=Costs!N$353)*(AbschreibungAHKBvD))-SUM(N$267:N336)","v":0},{"$f":"SUMPRODUCT((Aktivierungsjahr<=Costs!$A424)*(AbschreibungAGr=Costs!O$353)*(AbschreibungAHKBvD))-SUM(O$267:O336)","v":0},{"$f":"SUMPRODUCT((Aktivierungsjahr<=Costs!$A424)*(AbschreibungAGr=Costs!P$353)*(AbschreibungAHKBvD))-SUM(P$267:P336)","v":0},{"$f":"SUMPRODUCT((Aktivierungsjahr<=Costs!$A424)*(AbschreibungAGr=Costs!Q$353)*(AbschreibungAHKBvD))-SUM(Q$267:Q336)","v":0},{"$f":"SUMPRODUCT((Aktivierungsjahr<=Costs!$A424)*(AbschreibungAGr=Costs!R$353)*(AbschreibungAHKBvD))-SUM(R$267:R336)","v":0},{"$f":"SUMPRODUCT((Aktivierungsjahr<=Costs!$A424)*(AbschreibungAGr=Costs!S$353)*(AbschreibungAHKBvD))-SUM(S$267:S336)","v":0},{"$f":"SUMPRODUCT((Aktivierungsjahr<=Costs!$A424)*(AbschreibungAGr=Costs!T$353)*(AbschreibungAHKBvD))-SUM(T$267:T336)","v":0},{"$f":"SUMPRODUCT((Aktivierungsjahr<=Costs!$A424)*(AbschreibungAGr=Costs!U$353)*(AbschreibungAHKBvD))-SUM(U$267:U336)","v":0},{"$f":"SUMPRODUCT((Aktivierungsjahr<=Costs!$A424)*(AbschreibungAGr=Costs!V$353)*(AbschreibungAHKBvD))-SUM(V$267:V336)","v":0},{"$f":"SUMPRODUCT((Aktivierungsjahr<=Costs!$A424)*(AbschreibungAGr=Costs!W$353)*(AbschreibungAHKBvD))-SUM(W$267:W336)","v":0},{"$f":"SUMPRODUCT((Aktivierungsjahr<=Costs!$A424)*(AbschreibungAGr=Costs!X$353)*(AbschreibungAHKBvD))-SUM(X$267:X336)","v":0},{"$f":"SUMPRODUCT((Aktivierungsjahr<=Costs!$A424)*(AbschreibungAGr=Costs!Y$353)*(AbschreibungAHKBvD))-SUM(Y$267:Y336)","v":0},{"$f":"SUMPRODUCT((Aktivierungsjahr<=Costs!$A424)*(AbschreibungAGr=Costs!Z$353)*(AbschreibungAHKBvD))-SUM(Z$267:Z336)","v":0},{"$f":"SUMPRODUCT((Aktivierungsjahr<=Costs!$A424)*(AbschreibungAGr=Costs!AA$353)*(AbschreibungAHKBvD))-SUM(AA$267:AA336)","v":0},{"$f":"SUMPRODUCT((Aktivierungsjahr<=Costs!$A424)*(AbschreibungAGr=Costs!AB$353)*(AbschreibungAHKBvD))-SUM(AB$267:AB336)","v":0},{"$f":"SUMPRODUCT((Aktivierungsjahr<=Costs!$A424)*(AbschreibungAGr=Costs!AC$353)*(AbschreibungAHKBvD))-SUM(AC$267:AC336)","v":0},{"$f":"SUMPRODUCT((Aktivierungsjahr<=Costs!$A424)*(AbschreibungAGr=Costs!AD$353)*(AbschreibungAHKBvD))-SUM(AD$267:AD336)","v":0},{"$f":"SUMPRODUCT((Aktivierungsjahr<=Costs!$A424)*(AbschreibungAGr=Costs!AE$353)*(AbschreibungAHKBvD))-SUM(AE$267:AE336)","v":0},{"$f":"SUMPRODUCT((Aktivierungsjahr<=Costs!$A424)*(AbschreibungAGr=Costs!AF$353)*(AbschreibungAHKBvD))-SUM(AF$267:AF336)","v":0},{"$f":"SUMPRODUCT((Aktivierungsjahr<=Costs!$A424)*(AbschreibungAGr=Costs!AG$353)*(AbschreibungAHKBvD))-SUM(AG$267:AG336)","v":0},{"$f":"SUMPRODUCT((Aktivierungsjahr<=Costs!$A424)*(AbschreibungAGr=Costs!AH$353)*(AbschreibungAHKBvD))-SUM(AH$267:AH336)","v":0},{"$f":"SUMPRODUCT((Aktivierungsjahr<=Costs!$A424)*(AbschreibungAGr=Costs!AI$353)*(AbschreibungAHKBvD))-SUM(AI$267:AI336)","v":0},{"$f":"SUMPRODUCT((Aktivierungsjahr<=Costs!$A424)*(AbschreibungAGr=Costs!AJ$353)*(AbschreibungAHKBvD))-SUM(AJ$267:AJ336)","v":0},{"$f":"SUMPRODUCT((Aktivierungsjahr<=Costs!$A424)*(AbschreibungAGr=Costs!AK$353)*(AbschreibungAHKBvD))-SUM(AK$267:AK336)","v":0},{"$f":"SUMPRODUCT((Aktivierungsjahr<=Costs!$A424)*(AbschreibungAGr=Costs!AL$353)*(AbschreibungAHKBvD))-SUM(AL$267:AL336)","v":0},{"$f":"SUMPRODUCT((Aktivierungsjahr<=Costs!$A424)*(AbschreibungAGr=Costs!AM$353)*(AbschreibungAHKBvD))-SUM(AM$267:AM336)","v":0},{"$f":"SUMPRODUCT((Aktivierungsjahr<=Costs!$A424)*(AbschreibungAGr=Costs!AN$353)*(AbschreibungAHKBvD))-SUM(AN$267:AN336)","v":0},{"$f":"SUMPRODUCT((Aktivierungsjahr<=Costs!$A424)*(AbschreibungAGr=Costs!AO$353)*(AbschreibungAHKBvD))-SUM(AO$267:AO336)","v":0},{"$f":"SUMPRODUCT((Aktivierungsjahr<=Costs!$A424)*(AbschreibungAGr=Costs!AP$353)*(AbschreibungAHKBvD))-SUM(AP$267:AP336)","v":0},{"$f":"SUMPRODUCT((Aktivierungsjahr<=Costs!$A424)*(AbschreibungAGr=Costs!AQ$353)*(AbschreibungAHKBvD))-SUM(AQ$267:AQ336)","v":0}]
[2086,0,{"$f":"SUMPRODUCT((Aktivierungsjahr<=Costs!$A425)*(AbschreibungAGr=Costs!C$353)*(AbschreibungAHKBvD))-SUM(C$267:C337)","v":0},{"$f":"SUMPRODUCT((Aktivierungsjahr<=Costs!$A425)*(AbschreibungAGr=Costs!D$353)*(AbschreibungAHKBvD))-SUM(D$267:D337)","v":0},{"$f":"SUMPRODUCT((Aktivierungsjahr<=Costs!$A425)*(AbschreibungAGr=Costs!E$353)*(AbschreibungAHKBvD))-SUM(E$267:E337)","v":0},{"$f":"SUMPRODUCT((Aktivierungsjahr<=Costs!$A425)*(AbschreibungAGr=Costs!F$353)*(AbschreibungAHKBvD))-SUM(F$267:F337)","v":0},{"$f":"SUMPRODUCT((Aktivierungsjahr<=Costs!$A425)*(AbschreibungAGr=Costs!G$353)*(AbschreibungAHKBvD))-SUM(G$267:G337)","v":0},{"$f":"SUMPRODUCT((Aktivierungsjahr<=Costs!$A425)*(AbschreibungAGr=Costs!H$353)*(AbschreibungAHKBvD))-SUM(H$267:H337)","v":0},{"$f":"SUMPRODUCT((Aktivierungsjahr<=Costs!$A425)*(AbschreibungAGr=Costs!I$353)*(AbschreibungAHKBvD))-SUM(I$267:I337)","v":0},{"$f":"SUMPRODUCT((Aktivierungsjahr<=Costs!$A425)*(AbschreibungAGr=Costs!J$353)*(AbschreibungAHKBvD))-SUM(J$267:J337)","v":0},{"$f":"SUMPRODUCT((Aktivierungsjahr<=Costs!$A425)*(AbschreibungAGr=Costs!K$353)*(AbschreibungAHKBvD))-SUM(K$267:K337)","v":0},{"$f":"SUMPRODUCT((Aktivierungsjahr<=Costs!$A425)*(AbschreibungAGr=Costs!L$353)*(AbschreibungAHKBvD))-SUM(L$267:L337)","v":0},{"$f":"SUMPRODUCT((Aktivierungsjahr<=Costs!$A425)*(AbschreibungAGr=Costs!M$353)*(AbschreibungAHKBvD))-SUM(M$267:M337)","v":0},{"$f":"SUMPRODUCT((Aktivierungsjahr<=Costs!$A425)*(AbschreibungAGr=Costs!N$353)*(AbschreibungAHKBvD))-SUM(N$267:N337)","v":0},{"$f":"SUMPRODUCT((Aktivierungsjahr<=Costs!$A425)*(AbschreibungAGr=Costs!O$353)*(AbschreibungAHKBvD))-SUM(O$267:O337)","v":0},{"$f":"SUMPRODUCT((Aktivierungsjahr<=Costs!$A425)*(AbschreibungAGr=Costs!P$353)*(AbschreibungAHKBvD))-SUM(P$267:P337)","v":0},{"$f":"SUMPRODUCT((Aktivierungsjahr<=Costs!$A425)*(AbschreibungAGr=Costs!Q$353)*(AbschreibungAHKBvD))-SUM(Q$267:Q337)","v":0},{"$f":"SUMPRODUCT((Aktivierungsjahr<=Costs!$A425)*(AbschreibungAGr=Costs!R$353)*(AbschreibungAHKBvD))-SUM(R$267:R337)","v":0},{"$f":"SUMPRODUCT((Aktivierungsjahr<=Costs!$A425)*(AbschreibungAGr=Costs!S$353)*(AbschreibungAHKBvD))-SUM(S$267:S337)","v":0},{"$f":"SUMPRODUCT((Aktivierungsjahr<=Costs!$A425)*(AbschreibungAGr=Costs!T$353)*(AbschreibungAHKBvD))-SUM(T$267:T337)","v":0},{"$f":"SUMPRODUCT((Aktivierungsjahr<=Costs!$A425)*(AbschreibungAGr=Costs!U$353)*(AbschreibungAHKBvD))-SUM(U$267:U337)","v":0},{"$f":"SUMPRODUCT((Aktivierungsjahr<=Costs!$A425)*(AbschreibungAGr=Costs!V$353)*(AbschreibungAHKBvD))-SUM(V$267:V337)","v":0},{"$f":"SUMPRODUCT((Aktivierungsjahr<=Costs!$A425)*(AbschreibungAGr=Costs!W$353)*(AbschreibungAHKBvD))-SUM(W$267:W337)","v":0},{"$f":"SUMPRODUCT((Aktivierungsjahr<=Costs!$A425)*(AbschreibungAGr=Costs!X$353)*(AbschreibungAHKBvD))-SUM(X$267:X337)","v":0},{"$f":"SUMPRODUCT((Aktivierungsjahr<=Costs!$A425)*(AbschreibungAGr=Costs!Y$353)*(AbschreibungAHKBvD))-SUM(Y$267:Y337)","v":0},{"$f":"SUMPRODUCT((Aktivierungsjahr<=Costs!$A425)*(AbschreibungAGr=Costs!Z$353)*(AbschreibungAHKBvD))-SUM(Z$267:Z337)","v":0},{"$f":"SUMPRODUCT((Aktivierungsjahr<=Costs!$A425)*(AbschreibungAGr=Costs!AA$353)*(AbschreibungAHKBvD))-SUM(AA$267:AA337)","v":0},{"$f":"SUMPRODUCT((Aktivierungsjahr<=Costs!$A425)*(AbschreibungAGr=Costs!AB$353)*(AbschreibungAHKBvD))-SUM(AB$267:AB337)","v":0},{"$f":"SUMPRODUCT((Aktivierungsjahr<=Costs!$A425)*(AbschreibungAGr=Costs!AC$353)*(AbschreibungAHKBvD))-SUM(AC$267:AC337)","v":0},{"$f":"SUMPRODUCT((Aktivierungsjahr<=Costs!$A425)*(AbschreibungAGr=Costs!AD$353)*(AbschreibungAHKBvD))-SUM(AD$267:AD337)","v":0},{"$f":"SUMPRODUCT((Aktivierungsjahr<=Costs!$A425)*(AbschreibungAGr=Costs!AE$353)*(AbschreibungAHKBvD))-SUM(AE$267:AE337)","v":0},{"$f":"SUMPRODUCT((Aktivierungsjahr<=Costs!$A425)*(AbschreibungAGr=Costs!AF$353)*(AbschreibungAHKBvD))-SUM(AF$267:AF337)","v":0},{"$f":"SUMPRODUCT((Aktivierungsjahr<=Costs!$A425)*(AbschreibungAGr=Costs!AG$353)*(AbschreibungAHKBvD))-SUM(AG$267:AG337)","v":0},{"$f":"SUMPRODUCT((Aktivierungsjahr<=Costs!$A425)*(AbschreibungAGr=Costs!AH$353)*(AbschreibungAHKBvD))-SUM(AH$267:AH337)","v":0},{"$f":"SUMPRODUCT((Aktivierungsjahr<=Costs!$A425)*(AbschreibungAGr=Costs!AI$353)*(AbschreibungAHKBvD))-SUM(AI$267:AI337)","v":0},{"$f":"SUMPRODUCT((Aktivierungsjahr<=Costs!$A425)*(AbschreibungAGr=Costs!AJ$353)*(AbschreibungAHKBvD))-SUM(AJ$267:AJ337)","v":0},{"$f":"SUMPRODUCT((Aktivierungsjahr<=Costs!$A425)*(AbschreibungAGr=Costs!AK$353)*(AbschreibungAHKBvD))-SUM(AK$267:AK337)","v":0},{"$f":"SUMPRODUCT((Aktivierungsjahr<=Costs!$A425)*(AbschreibungAGr=Costs!AL$353)*(AbschreibungAHKBvD))-SUM(AL$267:AL337)","v":0},{"$f":"SUMPRODUCT((Aktivierungsjahr<=Costs!$A425)*(AbschreibungAGr=Costs!AM$353)*(AbschreibungAHKBvD))-SUM(AM$267:AM337)","v":0},{"$f":"SUMPRODUCT((Aktivierungsjahr<=Costs!$A425)*(AbschreibungAGr=Costs!AN$353)*(AbschreibungAHKBvD))-SUM(AN$267:AN337)","v":0},{"$f":"SUMPRODUCT((Aktivierungsjahr<=Costs!$A425)*(AbschreibungAGr=Costs!AO$353)*(AbschreibungAHKBvD))-SUM(AO$267:AO337)","v":0},{"$f":"SUMPRODUCT((Aktivierungsjahr<=Costs!$A425)*(AbschreibungAGr=Costs!AP$353)*(AbschreibungAHKBvD))-SUM(AP$267:AP337)","v":0},{"$f":"SUMPRODUCT((Aktivierungsjahr<=Costs!$A425)*(AbschreibungAGr=Costs!AQ$353)*(AbschreibungAHKBvD))-SUM(AQ$267:AQ337)","v":0}]
[2087,0,{"$f":"SUMPRODUCT((Aktivierungsjahr<=Costs!$A426)*(AbschreibungAGr=Costs!C$353)*(AbschreibungAHKBvD))-SUM(C$267:C338)","v":0},{"$f":"SUMPRODUCT((Aktivierungsjahr<=Costs!$A426)*(AbschreibungAGr=Costs!D$353)*(AbschreibungAHKBvD))-SUM(D$267:D338)","v":0},{"$f":"SUMPRODUCT((Aktivierungsjahr<=Costs!$A426)*(AbschreibungAGr=Costs!E$353)*(AbschreibungAHKBvD))-SUM(E$267:E338)","v":0},{"$f":"SUMPRODUCT((Aktivierungsjahr<=Costs!$A426)*(AbschreibungAGr=Costs!F$353)*(AbschreibungAHKBvD))-SUM(F$267:F338)","v":0},{"$f":"SUMPRODUCT((Aktivierungsjahr<=Costs!$A426)*(AbschreibungAGr=Costs!G$353)*(AbschreibungAHKBvD))-SUM(G$267:G338)","v":0},{"$f":"SUMPRODUCT((Aktivierungsjahr<=Costs!$A426)*(AbschreibungAGr=Costs!H$353)*(AbschreibungAHKBvD))-SUM(H$267:H338)","v":0},{"$f":"SUMPRODUCT((Aktivierungsjahr<=Costs!$A426)*(AbschreibungAGr=Costs!I$353)*(AbschreibungAHKBvD))-SUM(I$267:I338)","v":0},{"$f":"SUMPRODUCT((Aktivierungsjahr<=Costs!$A426)*(AbschreibungAGr=Costs!J$353)*(AbschreibungAHKBvD))-SUM(J$267:J338)","v":0},{"$f":"SUMPRODUCT((Aktivierungsjahr<=Costs!$A426)*(AbschreibungAGr=Costs!K$353)*(AbschreibungAHKBvD))-SUM(K$267:K338)","v":0},{"$f":"SUMPRODUCT((Aktivierungsjahr<=Costs!$A426)*(AbschreibungAGr=Costs!L$353)*(AbschreibungAHKBvD))-SUM(L$267:L338)","v":0},{"$f":"SUMPRODUCT((Aktivierungsjahr<=Costs!$A426)*(AbschreibungAGr=Costs!M$353)*(AbschreibungAHKBvD))-SUM(M$267:M338)","v":0},{"$f":"SUMPRODUCT((Aktivierungsjahr<=Costs!$A426)*(AbschreibungAGr=Costs!N$353)*(AbschreibungAHKBvD))-SUM(N$267:N338)","v":0},{"$f":"SUMPRODUCT((Aktivierungsjahr<=Costs!$A426)*(AbschreibungAGr=Costs!O$353)*(AbschreibungAHKBvD))-SUM(O$267:O338)","v":0},{"$f":"SUMPRODUCT((Aktivierungsjahr<=Costs!$A426)*(AbschreibungAGr=Costs!P$353)*(AbschreibungAHKBvD))-SUM(P$267:P338)","v":0},{"$f":"SUMPRODUCT((Aktivierungsjahr<=Costs!$A426)*(AbschreibungAGr=Costs!Q$353)*(AbschreibungAHKBvD))-SUM(Q$267:Q338)","v":0},{"$f":"SUMPRODUCT((Aktivierungsjahr<=Costs!$A426)*(AbschreibungAGr=Costs!R$353)*(AbschreibungAHKBvD))-SUM(R$267:R338)","v":0},{"$f":"SUMPRODUCT((Aktivierungsjahr<=Costs!$A426)*(AbschreibungAGr=Costs!S$353)*(AbschreibungAHKBvD))-SUM(S$267:S338)","v":0},{"$f":"SUMPRODUCT((Aktivierungsjahr<=Costs!$A426)*(AbschreibungAGr=Costs!T$353)*(AbschreibungAHKBvD))-SUM(T$267:T338)","v":0},{"$f":"SUMPRODUCT((Aktivierungsjahr<=Costs!$A426)*(AbschreibungAGr=Costs!U$353)*(AbschreibungAHKBvD))-SUM(U$267:U338)","v":0},{"$f":"SUMPRODUCT((Aktivierungsjahr<=Costs!$A426)*(AbschreibungAGr=Costs!V$353)*(AbschreibungAHKBvD))-SUM(V$267:V338)","v":0},{"$f":"SUMPRODUCT((Aktivierungsjahr<=Costs!$A426)*(AbschreibungAGr=Costs!W$353)*(AbschreibungAHKBvD))-SUM(W$267:W338)","v":0},{"$f":"SUMPRODUCT((Aktivierungsjahr<=Costs!$A426)*(AbschreibungAGr=Costs!X$353)*(AbschreibungAHKBvD))-SUM(X$267:X338)","v":0},{"$f":"SUMPRODUCT((Aktivierungsjahr<=Costs!$A426)*(AbschreibungAGr=Costs!Y$353)*(AbschreibungAHKBvD))-SUM(Y$267:Y338)","v":0},{"$f":"SUMPRODUCT((Aktivierungsjahr<=Costs!$A426)*(AbschreibungAGr=Costs!Z$353)*(AbschreibungAHKBvD))-SUM(Z$267:Z338)","v":0},{"$f":"SUMPRODUCT((Aktivierungsjahr<=Costs!$A426)*(AbschreibungAGr=Costs!AA$353)*(AbschreibungAHKBvD))-SUM(AA$267:AA338)","v":0},{"$f":"SUMPRODUCT((Aktivierungsjahr<=Costs!$A426)*(AbschreibungAGr=Costs!AB$353)*(AbschreibungAHKBvD))-SUM(AB$267:AB338)","v":0},{"$f":"SUMPRODUCT((Aktivierungsjahr<=Costs!$A426)*(AbschreibungAGr=Costs!AC$353)*(AbschreibungAHKBvD))-SUM(AC$267:AC338)","v":0},{"$f":"SUMPRODUCT((Aktivierungsjahr<=Costs!$A426)*(AbschreibungAGr=Costs!AD$353)*(AbschreibungAHKBvD))-SUM(AD$267:AD338)","v":0},{"$f":"SUMPRODUCT((Aktivierungsjahr<=Costs!$A426)*(AbschreibungAGr=Costs!AE$353)*(AbschreibungAHKBvD))-SUM(AE$267:AE338)","v":0},{"$f":"SUMPRODUCT((Aktivierungsjahr<=Costs!$A426)*(AbschreibungAGr=Costs!AF$353)*(AbschreibungAHKBvD))-SUM(AF$267:AF338)","v":0},{"$f":"SUMPRODUCT((Aktivierungsjahr<=Costs!$A426)*(AbschreibungAGr=Costs!AG$353)*(AbschreibungAHKBvD))-SUM(AG$267:AG338)","v":0},{"$f":"SUMPRODUCT((Aktivierungsjahr<=Costs!$A426)*(AbschreibungAGr=Costs!AH$353)*(AbschreibungAHKBvD))-SUM(AH$267:AH338)","v":0},{"$f":"SUMPRODUCT((Aktivierungsjahr<=Costs!$A426)*(AbschreibungAGr=Costs!AI$353)*(AbschreibungAHKBvD))-SUM(AI$267:AI338)","v":0},{"$f":"SUMPRODUCT((Aktivierungsjahr<=Costs!$A426)*(AbschreibungAGr=Costs!AJ$353)*(AbschreibungAHKBvD))-SUM(AJ$267:AJ338)","v":0},{"$f":"SUMPRODUCT((Aktivierungsjahr<=Costs!$A426)*(AbschreibungAGr=Costs!AK$353)*(AbschreibungAHKBvD))-SUM(AK$267:AK338)","v":0},{"$f":"SUMPRODUCT((Aktivierungsjahr<=Costs!$A426)*(AbschreibungAGr=Costs!AL$353)*(AbschreibungAHKBvD))-SUM(AL$267:AL338)","v":0},{"$f":"SUMPRODUCT((Aktivierungsjahr<=Costs!$A426)*(AbschreibungAGr=Costs!AM$353)*(AbschreibungAHKBvD))-SUM(AM$267:AM338)","v":0},{"$f":"SUMPRODUCT((Aktivierungsjahr<=Costs!$A426)*(AbschreibungAGr=Costs!AN$353)*(AbschreibungAHKBvD))-SUM(AN$267:AN338)","v":0},{"$f":"SUMPRODUCT((Aktivierungsjahr<=Costs!$A426)*(AbschreibungAGr=Costs!AO$353)*(AbschreibungAHKBvD))-SUM(AO$267:AO338)","v":0},{"$f":"SUMPRODUCT((Aktivierungsjahr<=Costs!$A426)*(AbschreibungAGr=Costs!AP$353)*(AbschreibungAHKBvD))-SUM(AP$267:AP338)","v":0},{"$f":"SUMPRODUCT((Aktivierungsjahr<=Costs!$A426)*(AbschreibungAGr=Costs!AQ$353)*(AbschreibungAHKBvD))-SUM(AQ$267:AQ338)","v":0}]
[2088,0,{"$f":"SUMPRODUCT((Aktivierungsjahr<=Costs!$A427)*(AbschreibungAGr=Costs!C$353)*(AbschreibungAHKBvD))-SUM(C$267:C339)","v":0},{"$f":"SUMPRODUCT((Aktivierungsjahr<=Costs!$A427)*(AbschreibungAGr=Costs!D$353)*(AbschreibungAHKBvD))-SUM(D$267:D339)","v":0},{"$f":"SUMPRODUCT((Aktivierungsjahr<=Costs!$A427)*(AbschreibungAGr=Costs!E$353)*(AbschreibungAHKBvD))-SUM(E$267:E339)","v":0},{"$f":"SUMPRODUCT((Aktivierungsjahr<=Costs!$A427)*(AbschreibungAGr=Costs!F$353)*(AbschreibungAHKBvD))-SUM(F$267:F339)","v":0},{"$f":"SUMPRODUCT((Aktivierungsjahr<=Costs!$A427)*(AbschreibungAGr=Costs!G$353)*(AbschreibungAHKBvD))-SUM(G$267:G339)","v":0},{"$f":"SUMPRODUCT((Aktivierungsjahr<=Costs!$A427)*(AbschreibungAGr=Costs!H$353)*(AbschreibungAHKBvD))-SUM(H$267:H339)","v":0},{"$f":"SUMPRODUCT((Aktivierungsjahr<=Costs!$A427)*(AbschreibungAGr=Costs!I$353)*(AbschreibungAHKBvD))-SUM(I$267:I339)","v":0},{"$f":"SUMPRODUCT((Aktivierungsjahr<=Costs!$A427)*(AbschreibungAGr=Costs!J$353)*(AbschreibungAHKBvD))-SUM(J$267:J339)","v":0},{"$f":"SUMPRODUCT((Aktivierungsjahr<=Costs!$A427)*(AbschreibungAGr=Costs!K$353)*(AbschreibungAHKBvD))-SUM(K$267:K339)","v":0},{"$f":"SUMPRODUCT((Aktivierungsjahr<=Costs!$A427)*(AbschreibungAGr=Costs!L$353)*(AbschreibungAHKBvD))-SUM(L$267:L339)","v":0},{"$f":"SUMPRODUCT((Aktivierungsjahr<=Costs!$A427)*(AbschreibungAGr=Costs!M$353)*(AbschreibungAHKBvD))-SUM(M$267:M339)","v":0},{"$f":"SUMPRODUCT((Aktivierungsjahr<=Costs!$A427)*(AbschreibungAGr=Costs!N$353)*(AbschreibungAHKBvD))-SUM(N$267:N339)","v":0},{"$f":"SUMPRODUCT((Aktivierungsjahr<=Costs!$A427)*(AbschreibungAGr=Costs!O$353)*(AbschreibungAHKBvD))-SUM(O$267:O339)","v":0},{"$f":"SUMPRODUCT((Aktivierungsjahr<=Costs!$A427)*(AbschreibungAGr=Costs!P$353)*(AbschreibungAHKBvD))-SUM(P$267:P339)","v":0},{"$f":"SUMPRODUCT((Aktivierungsjahr<=Costs!$A427)*(AbschreibungAGr=Costs!Q$353)*(AbschreibungAHKBvD))-SUM(Q$267:Q339)","v":0},{"$f":"SUMPRODUCT((Aktivierungsjahr<=Costs!$A427)*(AbschreibungAGr=Costs!R$353)*(AbschreibungAHKBvD))-SUM(R$267:R339)","v":0},{"$f":"SUMPRODUCT((Aktivierungsjahr<=Costs!$A427)*(AbschreibungAGr=Costs!S$353)*(AbschreibungAHKBvD))-SUM(S$267:S339)","v":0},{"$f":"SUMPRODUCT((Aktivierungsjahr<=Costs!$A427)*(AbschreibungAGr=Costs!T$353)*(AbschreibungAHKBvD))-SUM(T$267:T339)","v":0},{"$f":"SUMPRODUCT((Aktivierungsjahr<=Costs!$A427)*(AbschreibungAGr=Costs!U$353)*(AbschreibungAHKBvD))-SUM(U$267:U339)","v":0},{"$f":"SUMPRODUCT((Aktivierungsjahr<=Costs!$A427)*(AbschreibungAGr=Costs!V$353)*(AbschreibungAHKBvD))-SUM(V$267:V339)","v":0},{"$f":"SUMPRODUCT((Aktivierungsjahr<=Costs!$A427)*(AbschreibungAGr=Costs!W$353)*(AbschreibungAHKBvD))-SUM(W$267:W339)","v":0},{"$f":"SUMPRODUCT((Aktivierungsjahr<=Costs!$A427)*(AbschreibungAGr=Costs!X$353)*(AbschreibungAHKBvD))-SUM(X$267:X339)","v":0},{"$f":"SUMPRODUCT((Aktivierungsjahr<=Costs!$A427)*(AbschreibungAGr=Costs!Y$353)*(AbschreibungAHKBvD))-SUM(Y$267:Y339)","v":0},{"$f":"SUMPRODUCT((Aktivierungsjahr<=Costs!$A427)*(AbschreibungAGr=Costs!Z$353)*(AbschreibungAHKBvD))-SUM(Z$267:Z339)","v":0},{"$f":"SUMPRODUCT((Aktivierungsjahr<=Costs!$A427)*(AbschreibungAGr=Costs!AA$353)*(AbschreibungAHKBvD))-SUM(AA$267:AA339)","v":0},{"$f":"SUMPRODUCT((Aktivierungsjahr<=Costs!$A427)*(AbschreibungAGr=Costs!AB$353)*(AbschreibungAHKBvD))-SUM(AB$267:AB339)","v":0},{"$f":"SUMPRODUCT((Aktivierungsjahr<=Costs!$A427)*(AbschreibungAGr=Costs!AC$353)*(AbschreibungAHKBvD))-SUM(AC$267:AC339)","v":0},{"$f":"SUMPRODUCT((Aktivierungsjahr<=Costs!$A427)*(AbschreibungAGr=Costs!AD$353)*(AbschreibungAHKBvD))-SUM(AD$267:AD339)","v":0},{"$f":"SUMPRODUCT((Aktivierungsjahr<=Costs!$A427)*(AbschreibungAGr=Costs!AE$353)*(AbschreibungAHKBvD))-SUM(AE$267:AE339)","v":0},{"$f":"SUMPRODUCT((Aktivierungsjahr<=Costs!$A427)*(AbschreibungAGr=Costs!AF$353)*(AbschreibungAHKBvD))-SUM(AF$267:AF339)","v":0},{"$f":"SUMPRODUCT((Aktivierungsjahr<=Costs!$A427)*(AbschreibungAGr=Costs!AG$353)*(AbschreibungAHKBvD))-SUM(AG$267:AG339)","v":0},{"$f":"SUMPRODUCT((Aktivierungsjahr<=Costs!$A427)*(AbschreibungAGr=Costs!AH$353)*(AbschreibungAHKBvD))-SUM(AH$267:AH339)","v":0},{"$f":"SUMPRODUCT((Aktivierungsjahr<=Costs!$A427)*(AbschreibungAGr=Costs!AI$353)*(AbschreibungAHKBvD))-SUM(AI$267:AI339)","v":0},{"$f":"SUMPRODUCT((Aktivierungsjahr<=Costs!$A427)*(AbschreibungAGr=Costs!AJ$353)*(AbschreibungAHKBvD))-SUM(AJ$267:AJ339)","v":0},{"$f":"SUMPRODUCT((Aktivierungsjahr<=Costs!$A427)*(AbschreibungAGr=Costs!AK$353)*(AbschreibungAHKBvD))-SUM(AK$267:AK339)","v":0},{"$f":"SUMPRODUCT((Aktivierungsjahr<=Costs!$A427)*(AbschreibungAGr=Costs!AL$353)*(AbschreibungAHKBvD))-SUM(AL$267:AL339)","v":0},{"$f":"SUMPRODUCT((Aktivierungsjahr<=Costs!$A427)*(AbschreibungAGr=Costs!AM$353)*(AbschreibungAHKBvD))-SUM(AM$267:AM339)","v":0},{"$f":"SUMPRODUCT((Aktivierungsjahr<=Costs!$A427)*(AbschreibungAGr=Costs!AN$353)*(AbschreibungAHKBvD))-SUM(AN$267:AN339)","v":0},{"$f":"SUMPRODUCT((Aktivierungsjahr<=Costs!$A427)*(AbschreibungAGr=Costs!AO$353)*(AbschreibungAHKBvD))-SUM(AO$267:AO339)","v":0},{"$f":"SUMPRODUCT((Aktivierungsjahr<=Costs!$A427)*(AbschreibungAGr=Costs!AP$353)*(AbschreibungAHKBvD))-SUM(AP$267:AP339)","v":0},{"$f":"SUMPRODUCT((Aktivierungsjahr<=Costs!$A427)*(AbschreibungAGr=Costs!AQ$353)*(AbschreibungAHKBvD))-SUM(AQ$267:AQ339)","v":0}]
[2089,0,{"$f":"SUMPRODUCT((Aktivierungsjahr<=Costs!$A428)*(AbschreibungAGr=Costs!C$353)*(AbschreibungAHKBvD))-SUM(C$267:C340)","v":0},{"$f":"SUMPRODUCT((Aktivierungsjahr<=Costs!$A428)*(AbschreibungAGr=Costs!D$353)*(AbschreibungAHKBvD))-SUM(D$267:D340)","v":0},{"$f":"SUMPRODUCT((Aktivierungsjahr<=Costs!$A428)*(AbschreibungAGr=Costs!E$353)*(AbschreibungAHKBvD))-SUM(E$267:E340)","v":0},{"$f":"SUMPRODUCT((Aktivierungsjahr<=Costs!$A428)*(AbschreibungAGr=Costs!F$353)*(AbschreibungAHKBvD))-SUM(F$267:F340)","v":0},{"$f":"SUMPRODUCT((Aktivierungsjahr<=Costs!$A428)*(AbschreibungAGr=Costs!G$353)*(AbschreibungAHKBvD))-SUM(G$267:G340)","v":0},{"$f":"SUMPRODUCT((Aktivierungsjahr<=Costs!$A428)*(AbschreibungAGr=Costs!H$353)*(AbschreibungAHKBvD))-SUM(H$267:H340)","v":0},{"$f":"SUMPRODUCT((Aktivierungsjahr<=Costs!$A428)*(AbschreibungAGr=Costs!I$353)*(AbschreibungAHKBvD))-SUM(I$267:I340)","v":0},{"$f":"SUMPRODUCT((Aktivierungsjahr<=Costs!$A428)*(AbschreibungAGr=Costs!J$353)*(AbschreibungAHKBvD))-SUM(J$267:J340)","v":0},{"$f":"SUMPRODUCT((Aktivierungsjahr<=Costs!$A428)*(AbschreibungAGr=Costs!K$353)*(AbschreibungAHKBvD))-SUM(K$267:K340)","v":0},{"$f":"SUMPRODUCT((Aktivierungsjahr<=Costs!$A428)*(AbschreibungAGr=Costs!L$353)*(AbschreibungAHKBvD))-SUM(L$267:L340)","v":0},{"$f":"SUMPRODUCT((Aktivierungsjahr<=Costs!$A428)*(AbschreibungAGr=Costs!M$353)*(AbschreibungAHKBvD))-SUM(M$267:M340)","v":0},{"$f":"SUMPRODUCT((Aktivierungsjahr<=Costs!$A428)*(AbschreibungAGr=Costs!N$353)*(AbschreibungAHKBvD))-SUM(N$267:N340)","v":0},{"$f":"SUMPRODUCT((Aktivierungsjahr<=Costs!$A428)*(AbschreibungAGr=Costs!O$353)*(AbschreibungAHKBvD))-SUM(O$267:O340)","v":0},{"$f":"SUMPRODUCT((Aktivierungsjahr<=Costs!$A428)*(AbschreibungAGr=Costs!P$353)*(AbschreibungAHKBvD))-SUM(P$267:P340)","v":0},{"$f":"SUMPRODUCT((Aktivierungsjahr<=Costs!$A428)*(AbschreibungAGr=Costs!Q$353)*(AbschreibungAHKBvD))-SUM(Q$267:Q340)","v":0},{"$f":"SUMPRODUCT((Aktivierungsjahr<=Costs!$A428)*(AbschreibungAGr=Costs!R$353)*(AbschreibungAHKBvD))-SUM(R$267:R340)","v":0},{"$f":"SUMPRODUCT((Aktivierungsjahr<=Costs!$A428)*(AbschreibungAGr=Costs!S$353)*(AbschreibungAHKBvD))-SUM(S$267:S340)","v":0},{"$f":"SUMPRODUCT((Aktivierungsjahr<=Costs!$A428)*(AbschreibungAGr=Costs!T$353)*(AbschreibungAHKBvD))-SUM(T$267:T340)","v":0},{"$f":"SUMPRODUCT((Aktivierungsjahr<=Costs!$A428)*(AbschreibungAGr=Costs!U$353)*(AbschreibungAHKBvD))-SUM(U$267:U340)","v":0},{"$f":"SUMPRODUCT((Aktivierungsjahr<=Costs!$A428)*(AbschreibungAGr=Costs!V$353)*(AbschreibungAHKBvD))-SUM(V$267:V340)","v":0},{"$f":"SUMPRODUCT((Aktivierungsjahr<=Costs!$A428)*(AbschreibungAGr=Costs!W$353)*(AbschreibungAHKBvD))-SUM(W$267:W340)","v":0},{"$f":"SUMPRODUCT((Aktivierungsjahr<=Costs!$A428)*(AbschreibungAGr=Costs!X$353)*(AbschreibungAHKBvD))-SUM(X$267:X340)","v":0},{"$f":"SUMPRODUCT((Aktivierungsjahr<=Costs!$A428)*(AbschreibungAGr=Costs!Y$353)*(AbschreibungAHKBvD))-SUM(Y$267:Y340)","v":0},{"$f":"SUMPRODUCT((Aktivierungsjahr<=Costs!$A428)*(AbschreibungAGr=Costs!Z$353)*(AbschreibungAHKBvD))-SUM(Z$267:Z340)","v":0},{"$f":"SUMPRODUCT((Aktivierungsjahr<=Costs!$A428)*(AbschreibungAGr=Costs!AA$353)*(AbschreibungAHKBvD))-SUM(AA$267:AA340)","v":0},{"$f":"SUMPRODUCT((Aktivierungsjahr<=Costs!$A428)*(AbschreibungAGr=Costs!AB$353)*(AbschreibungAHKBvD))-SUM(AB$267:AB340)","v":0},{"$f":"SUMPRODUCT((Aktivierungsjahr<=Costs!$A428)*(AbschreibungAGr=Costs!AC$353)*(AbschreibungAHKBvD))-SUM(AC$267:AC340)","v":0},{"$f":"SUMPRODUCT((Aktivierungsjahr<=Costs!$A428)*(AbschreibungAGr=Costs!AD$353)*(AbschreibungAHKBvD))-SUM(AD$267:AD340)","v":0},{"$f":"SUMPRODUCT((Aktivierungsjahr<=Costs!$A428)*(AbschreibungAGr=Costs!AE$353)*(AbschreibungAHKBvD))-SUM(AE$267:AE340)","v":0},{"$f":"SUMPRODUCT((Aktivierungsjahr<=Costs!$A428)*(AbschreibungAGr=Costs!AF$353)*(AbschreibungAHKBvD))-SUM(AF$267:AF340)","v":0},{"$f":"SUMPRODUCT((Aktivierungsjahr<=Costs!$A428)*(AbschreibungAGr=Costs!AG$353)*(AbschreibungAHKBvD))-SUM(AG$267:AG340)","v":0},{"$f":"SUMPRODUCT((Aktivierungsjahr<=Costs!$A428)*(AbschreibungAGr=Costs!AH$353)*(AbschreibungAHKBvD))-SUM(AH$267:AH340)","v":0},{"$f":"SUMPRODUCT((Aktivierungsjahr<=Costs!$A428)*(AbschreibungAGr=Costs!AI$353)*(AbschreibungAHKBvD))-SUM(AI$267:AI340)","v":0},{"$f":"SUMPRODUCT((Aktivierungsjahr<=Costs!$A428)*(AbschreibungAGr=Costs!AJ$353)*(AbschreibungAHKBvD))-SUM(AJ$267:AJ340)","v":0},{"$f":"SUMPRODUCT((Aktivierungsjahr<=Costs!$A428)*(AbschreibungAGr=Costs!AK$353)*(AbschreibungAHKBvD))-SUM(AK$267:AK340)","v":0},{"$f":"SUMPRODUCT((Aktivierungsjahr<=Costs!$A428)*(AbschreibungAGr=Costs!AL$353)*(AbschreibungAHKBvD))-SUM(AL$267:AL340)","v":0},{"$f":"SUMPRODUCT((Aktivierungsjahr<=Costs!$A428)*(AbschreibungAGr=Costs!AM$353)*(AbschreibungAHKBvD))-SUM(AM$267:AM340)","v":0},{"$f":"SUMPRODUCT((Aktivierungsjahr<=Costs!$A428)*(AbschreibungAGr=Costs!AN$353)*(AbschreibungAHKBvD))-SUM(AN$267:AN340)","v":0},{"$f":"SUMPRODUCT((Aktivierungsjahr<=Costs!$A428)*(AbschreibungAGr=Costs!AO$353)*(AbschreibungAHKBvD))-SUM(AO$267:AO340)","v":0},{"$f":"SUMPRODUCT((Aktivierungsjahr<=Costs!$A428)*(AbschreibungAGr=Costs!AP$353)*(AbschreibungAHKBvD))-SUM(AP$267:AP340)","v":0},{"$f":"SUMPRODUCT((Aktivierungsjahr<=Costs!$A428)*(AbschreibungAGr=Costs!AQ$353)*(AbschreibungAHKBvD))-SUM(AQ$267:AQ340)","v":0}]
[2090,0,{"$f":"SUMPRODUCT((Aktivierungsjahr<=Costs!$A429)*(AbschreibungAGr=Costs!C$353)*(AbschreibungAHKBvD))-SUM(C$267:C341)","v":0},{"$f":"SUMPRODUCT((Aktivierungsjahr<=Costs!$A429)*(AbschreibungAGr=Costs!D$353)*(AbschreibungAHKBvD))-SUM(D$267:D341)","v":0},{"$f":"SUMPRODUCT((Aktivierungsjahr<=Costs!$A429)*(AbschreibungAGr=Costs!E$353)*(AbschreibungAHKBvD))-SUM(E$267:E341)","v":0},{"$f":"SUMPRODUCT((Aktivierungsjahr<=Costs!$A429)*(AbschreibungAGr=Costs!F$353)*(AbschreibungAHKBvD))-SUM(F$267:F341)","v":0},{"$f":"SUMPRODUCT((Aktivierungsjahr<=Costs!$A429)*(AbschreibungAGr=Costs!G$353)*(AbschreibungAHKBvD))-SUM(G$267:G341)","v":0},{"$f":"SUMPRODUCT((Aktivierungsjahr<=Costs!$A429)*(AbschreibungAGr=Costs!H$353)*(AbschreibungAHKBvD))-SUM(H$267:H341)","v":0},{"$f":"SUMPRODUCT((Aktivierungsjahr<=Costs!$A429)*(AbschreibungAGr=Costs!I$353)*(AbschreibungAHKBvD))-SUM(I$267:I341)","v":0},{"$f":"SUMPRODUCT((Aktivierungsjahr<=Costs!$A429)*(AbschreibungAGr=Costs!J$353)*(AbschreibungAHKBvD))-SUM(J$267:J341)","v":0},{"$f":"SUMPRODUCT((Aktivierungsjahr<=Costs!$A429)*(AbschreibungAGr=Costs!K$353)*(AbschreibungAHKBvD))-SUM(K$267:K341)","v":0},{"$f":"SUMPRODUCT((Aktivierungsjahr<=Costs!$A429)*(AbschreibungAGr=Costs!L$353)*(AbschreibungAHKBvD))-SUM(L$267:L341)","v":0},{"$f":"SUMPRODUCT((Aktivierungsjahr<=Costs!$A429)*(AbschreibungAGr=Costs!M$353)*(AbschreibungAHKBvD))-SUM(M$267:M341)","v":0},{"$f":"SUMPRODUCT((Aktivierungsjahr<=Costs!$A429)*(AbschreibungAGr=Costs!N$353)*(AbschreibungAHKBvD))-SUM(N$267:N341)","v":0},{"$f":"SUMPRODUCT((Aktivierungsjahr<=Costs!$A429)*(AbschreibungAGr=Costs!O$353)*(AbschreibungAHKBvD))-SUM(O$267:O341)","v":0},{"$f":"SUMPRODUCT((Aktivierungsjahr<=Costs!$A429)*(AbschreibungAGr=Costs!P$353)*(AbschreibungAHKBvD))-SUM(P$267:P341)","v":0},{"$f":"SUMPRODUCT((Aktivierungsjahr<=Costs!$A429)*(AbschreibungAGr=Costs!Q$353)*(AbschreibungAHKBvD))-SUM(Q$267:Q341)","v":0},{"$f":"SUMPRODUCT((Aktivierungsjahr<=Costs!$A429)*(AbschreibungAGr=Costs!R$353)*(AbschreibungAHKBvD))-SUM(R$267:R341)","v":0},{"$f":"SUMPRODUCT((Aktivierungsjahr<=Costs!$A429)*(AbschreibungAGr=Costs!S$353)*(AbschreibungAHKBvD))-SUM(S$267:S341)","v":0},{"$f":"SUMPRODUCT((Aktivierungsjahr<=Costs!$A429)*(AbschreibungAGr=Costs!T$353)*(AbschreibungAHKBvD))-SUM(T$267:T341)","v":0},{"$f":"SUMPRODUCT((Aktivierungsjahr<=Costs!$A429)*(AbschreibungAGr=Costs!U$353)*(AbschreibungAHKBvD))-SUM(U$267:U341)","v":0},{"$f":"SUMPRODUCT((Aktivierungsjahr<=Costs!$A429)*(AbschreibungAGr=Costs!V$353)*(AbschreibungAHKBvD))-SUM(V$267:V341)","v":0},{"$f":"SUMPRODUCT((Aktivierungsjahr<=Costs!$A429)*(AbschreibungAGr=Costs!W$353)*(AbschreibungAHKBvD))-SUM(W$267:W341)","v":0},{"$f":"SUMPRODUCT((Aktivierungsjahr<=Costs!$A429)*(AbschreibungAGr=Costs!X$353)*(AbschreibungAHKBvD))-SUM(X$267:X341)","v":0},{"$f":"SUMPRODUCT((Aktivierungsjahr<=Costs!$A429)*(AbschreibungAGr=Costs!Y$353)*(AbschreibungAHKBvD))-SUM(Y$267:Y341)","v":0},{"$f":"SUMPRODUCT((Aktivierungsjahr<=Costs!$A429)*(AbschreibungAGr=Costs!Z$353)*(AbschreibungAHKBvD))-SUM(Z$267:Z341)","v":0},{"$f":"SUMPRODUCT((Aktivierungsjahr<=Costs!$A429)*(AbschreibungAGr=Costs!AA$353)*(AbschreibungAHKBvD))-SUM(AA$267:AA341)","v":0},{"$f":"SUMPRODUCT((Aktivierungsjahr<=Costs!$A429)*(AbschreibungAGr=Costs!AB$353)*(AbschreibungAHKBvD))-SUM(AB$267:AB341)","v":0},{"$f":"SUMPRODUCT((Aktivierungsjahr<=Costs!$A429)*(AbschreibungAGr=Costs!AC$353)*(AbschreibungAHKBvD))-SUM(AC$267:AC341)","v":0},{"$f":"SUMPRODUCT((Aktivierungsjahr<=Costs!$A429)*(AbschreibungAGr=Costs!AD$353)*(AbschreibungAHKBvD))-SUM(AD$267:AD341)","v":0},{"$f":"SUMPRODUCT((Aktivierungsjahr<=Costs!$A429)*(AbschreibungAGr=Costs!AE$353)*(AbschreibungAHKBvD))-SUM(AE$267:AE341)","v":0},{"$f":"SUMPRODUCT((Aktivierungsjahr<=Costs!$A429)*(AbschreibungAGr=Costs!AF$353)*(AbschreibungAHKBvD))-SUM(AF$267:AF341)","v":0},{"$f":"SUMPRODUCT((Aktivierungsjahr<=Costs!$A429)*(AbschreibungAGr=Costs!AG$353)*(AbschreibungAHKBvD))-SUM(AG$267:AG341)","v":0},{"$f":"SUMPRODUCT((Aktivierungsjahr<=Costs!$A429)*(AbschreibungAGr=Costs!AH$353)*(AbschreibungAHKBvD))-SUM(AH$267:AH341)","v":0},{"$f":"SUMPRODUCT((Aktivierungsjahr<=Costs!$A429)*(AbschreibungAGr=Costs!AI$353)*(AbschreibungAHKBvD))-SUM(AI$267:AI341)","v":0},{"$f":"SUMPRODUCT((Aktivierungsjahr<=Costs!$A429)*(AbschreibungAGr=Costs!AJ$353)*(AbschreibungAHKBvD))-SUM(AJ$267:AJ341)","v":0},{"$f":"SUMPRODUCT((Aktivierungsjahr<=Costs!$A429)*(AbschreibungAGr=Costs!AK$353)*(AbschreibungAHKBvD))-SUM(AK$267:AK341)","v":0},{"$f":"SUMPRODUCT((Aktivierungsjahr<=Costs!$A429)*(AbschreibungAGr=Costs!AL$353)*(AbschreibungAHKBvD))-SUM(AL$267:AL341)","v":0},{"$f":"SUMPRODUCT((Aktivierungsjahr<=Costs!$A429)*(AbschreibungAGr=Costs!AM$353)*(AbschreibungAHKBvD))-SUM(AM$267:AM341)","v":0},{"$f":"SUMPRODUCT((Aktivierungsjahr<=Costs!$A429)*(AbschreibungAGr=Costs!AN$353)*(AbschreibungAHKBvD))-SUM(AN$267:AN341)","v":0},{"$f":"SUMPRODUCT((Aktivierungsjahr<=Costs!$A429)*(AbschreibungAGr=Costs!AO$353)*(AbschreibungAHKBvD))-SUM(AO$267:AO341)","v":0},{"$f":"SUMPRODUCT((Aktivierungsjahr<=Costs!$A429)*(AbschreibungAGr=Costs!AP$353)*(AbschreibungAHKBvD))-SUM(AP$267:AP341)","v":0},{"$f":"SUMPRODUCT((Aktivierungsjahr<=Costs!$A429)*(AbschreibungAGr=Costs!AQ$353)*(AbschreibungAHKBvD))-SUM(AQ$267:AQ341)","v":0}]
[2091,0,{"$f":"SUMPRODUCT((Aktivierungsjahr<=Costs!$A430)*(AbschreibungAGr=Costs!C$353)*(AbschreibungAHKBvD))-SUM(C$267:C342)","v":0},{"$f":"SUMPRODUCT((Aktivierungsjahr<=Costs!$A430)*(AbschreibungAGr=Costs!D$353)*(AbschreibungAHKBvD))-SUM(D$267:D342)","v":0},{"$f":"SUMPRODUCT((Aktivierungsjahr<=Costs!$A430)*(AbschreibungAGr=Costs!E$353)*(AbschreibungAHKBvD))-SUM(E$267:E342)","v":0},{"$f":"SUMPRODUCT((Aktivierungsjahr<=Costs!$A430)*(AbschreibungAGr=Costs!F$353)*(AbschreibungAHKBvD))-SUM(F$267:F342)","v":0},{"$f":"SUMPRODUCT((Aktivierungsjahr<=Costs!$A430)*(AbschreibungAGr=Costs!G$353)*(AbschreibungAHKBvD))-SUM(G$267:G342)","v":0},{"$f":"SUMPRODUCT((Aktivierungsjahr<=Costs!$A430)*(AbschreibungAGr=Costs!H$353)*(AbschreibungAHKBvD))-SUM(H$267:H342)","v":0},{"$f":"SUMPRODUCT((Aktivierungsjahr<=Costs!$A430)*(AbschreibungAGr=Costs!I$353)*(AbschreibungAHKBvD))-SUM(I$267:I342)","v":0},{"$f":"SUMPRODUCT((Aktivierungsjahr<=Costs!$A430)*(AbschreibungAGr=Costs!J$353)*(AbschreibungAHKBvD))-SUM(J$267:J342)","v":0},{"$f":"SUMPRODUCT((Aktivierungsjahr<=Costs!$A430)*(AbschreibungAGr=Costs!K$353)*(AbschreibungAHKBvD))-SUM(K$267:K342)","v":0},{"$f":"SUMPRODUCT((Aktivierungsjahr<=Costs!$A430)*(AbschreibungAGr=Costs!L$353)*(AbschreibungAHKBvD))-SUM(L$267:L342)","v":0},{"$f":"SUMPRODUCT((Aktivierungsjahr<=Costs!$A430)*(AbschreibungAGr=Costs!M$353)*(AbschreibungAHKBvD))-SUM(M$267:M342)","v":0},{"$f":"SUMPRODUCT((Aktivierungsjahr<=Costs!$A430)*(AbschreibungAGr=Costs!N$353)*(AbschreibungAHKBvD))-SUM(N$267:N342)","v":0},{"$f":"SUMPRODUCT((Aktivierungsjahr<=Costs!$A430)*(AbschreibungAGr=Costs!O$353)*(AbschreibungAHKBvD))-SUM(O$267:O342)","v":0},{"$f":"SUMPRODUCT((Aktivierungsjahr<=Costs!$A430)*(AbschreibungAGr=Costs!P$353)*(AbschreibungAHKBvD))-SUM(P$267:P342)","v":0},{"$f":"SUMPRODUCT((Aktivierungsjahr<=Costs!$A430)*(AbschreibungAGr=Costs!Q$353)*(AbschreibungAHKBvD))-SUM(Q$267:Q342)","v":0},{"$f":"SUMPRODUCT((Aktivierungsjahr<=Costs!$A430)*(AbschreibungAGr=Costs!R$353)*(AbschreibungAHKBvD))-SUM(R$267:R342)","v":0},{"$f":"SUMPRODUCT((Aktivierungsjahr<=Costs!$A430)*(AbschreibungAGr=Costs!S$353)*(AbschreibungAHKBvD))-SUM(S$267:S342)","v":0},{"$f":"SUMPRODUCT((Aktivierungsjahr<=Costs!$A430)*(AbschreibungAGr=Costs!T$353)*(AbschreibungAHKBvD))-SUM(T$267:T342)","v":0},{"$f":"SUMPRODUCT((Aktivierungsjahr<=Costs!$A430)*(AbschreibungAGr=Costs!U$353)*(AbschreibungAHKBvD))-SUM(U$267:U342)","v":0},{"$f":"SUMPRODUCT((Aktivierungsjahr<=Costs!$A430)*(AbschreibungAGr=Costs!V$353)*(AbschreibungAHKBvD))-SUM(V$267:V342)","v":0},{"$f":"SUMPRODUCT((Aktivierungsjahr<=Costs!$A430)*(AbschreibungAGr=Costs!W$353)*(AbschreibungAHKBvD))-SUM(W$267:W342)","v":0},{"$f":"SUMPRODUCT((Aktivierungsjahr<=Costs!$A430)*(AbschreibungAGr=Costs!X$353)*(AbschreibungAHKBvD))-SUM(X$267:X342)","v":0},{"$f":"SUMPRODUCT((Aktivierungsjahr<=Costs!$A430)*(AbschreibungAGr=Costs!Y$353)*(AbschreibungAHKBvD))-SUM(Y$267:Y342)","v":0},{"$f":"SUMPRODUCT((Aktivierungsjahr<=Costs!$A430)*(AbschreibungAGr=Costs!Z$353)*(AbschreibungAHKBvD))-SUM(Z$267:Z342)","v":0},{"$f":"SUMPRODUCT((Aktivierungsjahr<=Costs!$A430)*(AbschreibungAGr=Costs!AA$353)*(AbschreibungAHKBvD))-SUM(AA$267:AA342)","v":0},{"$f":"SUMPRODUCT((Aktivierungsjahr<=Costs!$A430)*(AbschreibungAGr=Costs!AB$353)*(AbschreibungAHKBvD))-SUM(AB$267:AB342)","v":0},{"$f":"SUMPRODUCT((Aktivierungsjahr<=Costs!$A430)*(AbschreibungAGr=Costs!AC$353)*(AbschreibungAHKBvD))-SUM(AC$267:AC342)","v":0},{"$f":"SUMPRODUCT((Aktivierungsjahr<=Costs!$A430)*(AbschreibungAGr=Costs!AD$353)*(AbschreibungAHKBvD))-SUM(AD$267:AD342)","v":0},{"$f":"SUMPRODUCT((Aktivierungsjahr<=Costs!$A430)*(AbschreibungAGr=Costs!AE$353)*(AbschreibungAHKBvD))-SUM(AE$267:AE342)","v":0},{"$f":"SUMPRODUCT((Aktivierungsjahr<=Costs!$A430)*(AbschreibungAGr=Costs!AF$353)*(AbschreibungAHKBvD))-SUM(AF$267:AF342)","v":0},{"$f":"SUMPRODUCT((Aktivierungsjahr<=Costs!$A430)*(AbschreibungAGr=Costs!AG$353)*(AbschreibungAHKBvD))-SUM(AG$267:AG342)","v":0},{"$f":"SUMPRODUCT((Aktivierungsjahr<=Costs!$A430)*(AbschreibungAGr=Costs!AH$353)*(AbschreibungAHKBvD))-SUM(AH$267:AH342)","v":0},{"$f":"SUMPRODUCT((Aktivierungsjahr<=Costs!$A430)*(AbschreibungAGr=Costs!AI$353)*(AbschreibungAHKBvD))-SUM(AI$267:AI342)","v":0},{"$f":"SUMPRODUCT((Aktivierungsjahr<=Costs!$A430)*(AbschreibungAGr=Costs!AJ$353)*(AbschreibungAHKBvD))-SUM(AJ$267:AJ342)","v":0},{"$f":"SUMPRODUCT((Aktivierungsjahr<=Costs!$A430)*(AbschreibungAGr=Costs!AK$353)*(AbschreibungAHKBvD))-SUM(AK$267:AK342)","v":0},{"$f":"SUMPRODUCT((Aktivierungsjahr<=Costs!$A430)*(AbschreibungAGr=Costs!AL$353)*(AbschreibungAHKBvD))-SUM(AL$267:AL342)","v":0},{"$f":"SUMPRODUCT((Aktivierungsjahr<=Costs!$A430)*(AbschreibungAGr=Costs!AM$353)*(AbschreibungAHKBvD))-SUM(AM$267:AM342)","v":0},{"$f":"SUMPRODUCT((Aktivierungsjahr<=Costs!$A430)*(AbschreibungAGr=Costs!AN$353)*(AbschreibungAHKBvD))-SUM(AN$267:AN342)","v":0},{"$f":"SUMPRODUCT((Aktivierungsjahr<=Costs!$A430)*(AbschreibungAGr=Costs!AO$353)*(AbschreibungAHKBvD))-SUM(AO$267:AO342)","v":0},{"$f":"SUMPRODUCT((Aktivierungsjahr<=Costs!$A430)*(AbschreibungAGr=Costs!AP$353)*(AbschreibungAHKBvD))-SUM(AP$267:AP342)","v":0},{"$f":"SUMPRODUCT((Aktivierungsjahr<=Costs!$A430)*(AbschreibungAGr=Costs!AQ$353)*(AbschreibungAHKBvD))-SUM(AQ$267:AQ342)","v":0}]
[2092,0,{"$f":"SUMPRODUCT((Aktivierungsjahr<=Costs!$A431)*(AbschreibungAGr=Costs!C$353)*(AbschreibungAHKBvD))-SUM(C$267:C343)","v":0},{"$f":"SUMPRODUCT((Aktivierungsjahr<=Costs!$A431)*(AbschreibungAGr=Costs!D$353)*(AbschreibungAHKBvD))-SUM(D$267:D343)","v":0},{"$f":"SUMPRODUCT((Aktivierungsjahr<=Costs!$A431)*(AbschreibungAGr=Costs!E$353)*(AbschreibungAHKBvD))-SUM(E$267:E343)","v":0},{"$f":"SUMPRODUCT((Aktivierungsjahr<=Costs!$A431)*(AbschreibungAGr=Costs!F$353)*(AbschreibungAHKBvD))-SUM(F$267:F343)","v":0},{"$f":"SUMPRODUCT((Aktivierungsjahr<=Costs!$A431)*(AbschreibungAGr=Costs!G$353)*(AbschreibungAHKBvD))-SUM(G$267:G343)","v":0},{"$f":"SUMPRODUCT((Aktivierungsjahr<=Costs!$A431)*(AbschreibungAGr=Costs!H$353)*(AbschreibungAHKBvD))-SUM(H$267:H343)","v":0},{"$f":"SUMPRODUCT((Aktivierungsjahr<=Costs!$A431)*(AbschreibungAGr=Costs!I$353)*(AbschreibungAHKBvD))-SUM(I$267:I343)","v":0},{"$f":"SUMPRODUCT((Aktivierungsjahr<=Costs!$A431)*(AbschreibungAGr=Costs!J$353)*(AbschreibungAHKBvD))-SUM(J$267:J343)","v":0},{"$f":"SUMPRODUCT((Aktivierungsjahr<=Costs!$A431)*(AbschreibungAGr=Costs!K$353)*(AbschreibungAHKBvD))-SUM(K$267:K343)","v":0},{"$f":"SUMPRODUCT((Aktivierungsjahr<=Costs!$A431)*(AbschreibungAGr=Costs!L$353)*(AbschreibungAHKBvD))-SUM(L$267:L343)","v":0},{"$f":"SUMPRODUCT((Aktivierungsjahr<=Costs!$A431)*(AbschreibungAGr=Costs!M$353)*(AbschreibungAHKBvD))-SUM(M$267:M343)","v":0},{"$f":"SUMPRODUCT((Aktivierungsjahr<=Costs!$A431)*(AbschreibungAGr=Costs!N$353)*(AbschreibungAHKBvD))-SUM(N$267:N343)","v":0},{"$f":"SUMPRODUCT((Aktivierungsjahr<=Costs!$A431)*(AbschreibungAGr=Costs!O$353)*(AbschreibungAHKBvD))-SUM(O$267:O343)","v":0},{"$f":"SUMPRODUCT((Aktivierungsjahr<=Costs!$A431)*(AbschreibungAGr=Costs!P$353)*(AbschreibungAHKBvD))-SUM(P$267:P343)","v":0},{"$f":"SUMPRODUCT((Aktivierungsjahr<=Costs!$A431)*(AbschreibungAGr=Costs!Q$353)*(AbschreibungAHKBvD))-SUM(Q$267:Q343)","v":0},{"$f":"SUMPRODUCT((Aktivierungsjahr<=Costs!$A431)*(AbschreibungAGr=Costs!R$353)*(AbschreibungAHKBvD))-SUM(R$267:R343)","v":0},{"$f":"SUMPRODUCT((Aktivierungsjahr<=Costs!$A431)*(AbschreibungAGr=Costs!S$353)*(AbschreibungAHKBvD))-SUM(S$267:S343)","v":0},{"$f":"SUMPRODUCT((Aktivierungsjahr<=Costs!$A431)*(AbschreibungAGr=Costs!T$353)*(AbschreibungAHKBvD))-SUM(T$267:T343)","v":0},{"$f":"SUMPRODUCT((Aktivierungsjahr<=Costs!$A431)*(AbschreibungAGr=Costs!U$353)*(AbschreibungAHKBvD))-SUM(U$267:U343)","v":0},{"$f":"SUMPRODUCT((Aktivierungsjahr<=Costs!$A431)*(AbschreibungAGr=Costs!V$353)*(AbschreibungAHKBvD))-SUM(V$267:V343)","v":0},{"$f":"SUMPRODUCT((Aktivierungsjahr<=Costs!$A431)*(AbschreibungAGr=Costs!W$353)*(AbschreibungAHKBvD))-SUM(W$267:W343)","v":0},{"$f":"SUMPRODUCT((Aktivierungsjahr<=Costs!$A431)*(AbschreibungAGr=Costs!X$353)*(AbschreibungAHKBvD))-SUM(X$267:X343)","v":0},{"$f":"SUMPRODUCT((Aktivierungsjahr<=Costs!$A431)*(AbschreibungAGr=Costs!Y$353)*(AbschreibungAHKBvD))-SUM(Y$267:Y343)","v":0},{"$f":"SUMPRODUCT((Aktivierungsjahr<=Costs!$A431)*(AbschreibungAGr=Costs!Z$353)*(AbschreibungAHKBvD))-SUM(Z$267:Z343)","v":0},{"$f":"SUMPRODUCT((Aktivierungsjahr<=Costs!$A431)*(AbschreibungAGr=Costs!AA$353)*(AbschreibungAHKBvD))-SUM(AA$267:AA343)","v":0},{"$f":"SUMPRODUCT((Aktivierungsjahr<=Costs!$A431)*(AbschreibungAGr=Costs!AB$353)*(AbschreibungAHKBvD))-SUM(AB$267:AB343)","v":0},{"$f":"SUMPRODUCT((Aktivierungsjahr<=Costs!$A431)*(AbschreibungAGr=Costs!AC$353)*(AbschreibungAHKBvD))-SUM(AC$267:AC343)","v":0},{"$f":"SUMPRODUCT((Aktivierungsjahr<=Costs!$A431)*(AbschreibungAGr=Costs!AD$353)*(AbschreibungAHKBvD))-SUM(AD$267:AD343)","v":0},{"$f":"SUMPRODUCT((Aktivierungsjahr<=Costs!$A431)*(AbschreibungAGr=Costs!AE$353)*(AbschreibungAHKBvD))-SUM(AE$267:AE343)","v":0},{"$f":"SUMPRODUCT((Aktivierungsjahr<=Costs!$A431)*(AbschreibungAGr=Costs!AF$353)*(AbschreibungAHKBvD))-SUM(AF$267:AF343)","v":0},{"$f":"SUMPRODUCT((Aktivierungsjahr<=Costs!$A431)*(AbschreibungAGr=Costs!AG$353)*(AbschreibungAHKBvD))-SUM(AG$267:AG343)","v":0},{"$f":"SUMPRODUCT((Aktivierungsjahr<=Costs!$A431)*(AbschreibungAGr=Costs!AH$353)*(AbschreibungAHKBvD))-SUM(AH$267:AH343)","v":0},{"$f":"SUMPRODUCT((Aktivierungsjahr<=Costs!$A431)*(AbschreibungAGr=Costs!AI$353)*(AbschreibungAHKBvD))-SUM(AI$267:AI343)","v":0},{"$f":"SUMPRODUCT((Aktivierungsjahr<=Costs!$A431)*(AbschreibungAGr=Costs!AJ$353)*(AbschreibungAHKBvD))-SUM(AJ$267:AJ343)","v":0},{"$f":"SUMPRODUCT((Aktivierungsjahr<=Costs!$A431)*(AbschreibungAGr=Costs!AK$353)*(AbschreibungAHKBvD))-SUM(AK$267:AK343)","v":0},{"$f":"SUMPRODUCT((Aktivierungsjahr<=Costs!$A431)*(AbschreibungAGr=Costs!AL$353)*(AbschreibungAHKBvD))-SUM(AL$267:AL343)","v":0},{"$f":"SUMPRODUCT((Aktivierungsjahr<=Costs!$A431)*(AbschreibungAGr=Costs!AM$353)*(AbschreibungAHKBvD))-SUM(AM$267:AM343)","v":0},{"$f":"SUMPRODUCT((Aktivierungsjahr<=Costs!$A431)*(AbschreibungAGr=Costs!AN$353)*(AbschreibungAHKBvD))-SUM(AN$267:AN343)","v":0},{"$f":"SUMPRODUCT((Aktivierungsjahr<=Costs!$A431)*(AbschreibungAGr=Costs!AO$353)*(AbschreibungAHKBvD))-SUM(AO$267:AO343)","v":0},{"$f":"SUMPRODUCT((Aktivierungsjahr<=Costs!$A431)*(AbschreibungAGr=Costs!AP$353)*(AbschreibungAHKBvD))-SUM(AP$267:AP343)","v":0},{"$f":"SUMPRODUCT((Aktivierungsjahr<=Costs!$A431)*(AbschreibungAGr=Costs!AQ$353)*(AbschreibungAHKBvD))-SUM(AQ$267:AQ343)","v":0}]
[2093,0,{"$f":"SUMPRODUCT((Aktivierungsjahr<=Costs!$A432)*(AbschreibungAGr=Costs!C$353)*(AbschreibungAHKBvD))-SUM(C$267:C344)","v":0},{"$f":"SUMPRODUCT((Aktivierungsjahr<=Costs!$A432)*(AbschreibungAGr=Costs!D$353)*(AbschreibungAHKBvD))-SUM(D$267:D344)","v":0},{"$f":"SUMPRODUCT((Aktivierungsjahr<=Costs!$A432)*(AbschreibungAGr=Costs!E$353)*(AbschreibungAHKBvD))-SUM(E$267:E344)","v":0},{"$f":"SUMPRODUCT((Aktivierungsjahr<=Costs!$A432)*(AbschreibungAGr=Costs!F$353)*(AbschreibungAHKBvD))-SUM(F$267:F344)","v":0},{"$f":"SUMPRODUCT((Aktivierungsjahr<=Costs!$A432)*(AbschreibungAGr=Costs!G$353)*(AbschreibungAHKBvD))-SUM(G$267:G344)","v":0},{"$f":"SUMPRODUCT((Aktivierungsjahr<=Costs!$A432)*(AbschreibungAGr=Costs!H$353)*(AbschreibungAHKBvD))-SUM(H$267:H344)","v":0},{"$f":"SUMPRODUCT((Aktivierungsjahr<=Costs!$A432)*(AbschreibungAGr=Costs!I$353)*(AbschreibungAHKBvD))-SUM(I$267:I344)","v":0},{"$f":"SUMPRODUCT((Aktivierungsjahr<=Costs!$A432)*(AbschreibungAGr=Costs!J$353)*(AbschreibungAHKBvD))-SUM(J$267:J344)","v":0},{"$f":"SUMPRODUCT((Aktivierungsjahr<=Costs!$A432)*(AbschreibungAGr=Costs!K$353)*(AbschreibungAHKBvD))-SUM(K$267:K344)","v":0},{"$f":"SUMPRODUCT((Aktivierungsjahr<=Costs!$A432)*(AbschreibungAGr=Costs!L$353)*(AbschreibungAHKBvD))-SUM(L$267:L344)","v":0},{"$f":"SUMPRODUCT((Aktivierungsjahr<=Costs!$A432)*(AbschreibungAGr=Costs!M$353)*(AbschreibungAHKBvD))-SUM(M$267:M344)","v":0},{"$f":"SUMPRODUCT((Aktivierungsjahr<=Costs!$A432)*(AbschreibungAGr=Costs!N$353)*(AbschreibungAHKBvD))-SUM(N$267:N344)","v":0},{"$f":"SUMPRODUCT((Aktivierungsjahr<=Costs!$A432)*(AbschreibungAGr=Costs!O$353)*(AbschreibungAHKBvD))-SUM(O$267:O344)","v":0},{"$f":"SUMPRODUCT((Aktivierungsjahr<=Costs!$A432)*(AbschreibungAGr=Costs!P$353)*(AbschreibungAHKBvD))-SUM(P$267:P344)","v":0},{"$f":"SUMPRODUCT((Aktivierungsjahr<=Costs!$A432)*(AbschreibungAGr=Costs!Q$353)*(AbschreibungAHKBvD))-SUM(Q$267:Q344)","v":0},{"$f":"SUMPRODUCT((Aktivierungsjahr<=Costs!$A432)*(AbschreibungAGr=Costs!R$353)*(AbschreibungAHKBvD))-SUM(R$267:R344)","v":0},{"$f":"SUMPRODUCT((Aktivierungsjahr<=Costs!$A432)*(AbschreibungAGr=Costs!S$353)*(AbschreibungAHKBvD))-SUM(S$267:S344)","v":0},{"$f":"SUMPRODUCT((Aktivierungsjahr<=Costs!$A432)*(AbschreibungAGr=Costs!T$353)*(AbschreibungAHKBvD))-SUM(T$267:T344)","v":0},{"$f":"SUMPRODUCT((Aktivierungsjahr<=Costs!$A432)*(AbschreibungAGr=Costs!U$353)*(AbschreibungAHKBvD))-SUM(U$267:U344)","v":0},{"$f":"SUMPRODUCT((Aktivierungsjahr<=Costs!$A432)*(AbschreibungAGr=Costs!V$353)*(AbschreibungAHKBvD))-SUM(V$267:V344)","v":0},{"$f":"SUMPRODUCT((Aktivierungsjahr<=Costs!$A432)*(AbschreibungAGr=Costs!W$353)*(AbschreibungAHKBvD))-SUM(W$267:W344)","v":0},{"$f":"SUMPRODUCT((Aktivierungsjahr<=Costs!$A432)*(AbschreibungAGr=Costs!X$353)*(AbschreibungAHKBvD))-SUM(X$267:X344)","v":0},{"$f":"SUMPRODUCT((Aktivierungsjahr<=Costs!$A432)*(AbschreibungAGr=Costs!Y$353)*(AbschreibungAHKBvD))-SUM(Y$267:Y344)","v":0},{"$f":"SUMPRODUCT((Aktivierungsjahr<=Costs!$A432)*(AbschreibungAGr=Costs!Z$353)*(AbschreibungAHKBvD))-SUM(Z$267:Z344)","v":0},{"$f":"SUMPRODUCT((Aktivierungsjahr<=Costs!$A432)*(AbschreibungAGr=Costs!AA$353)*(AbschreibungAHKBvD))-SUM(AA$267:AA344)","v":0},{"$f":"SUMPRODUCT((Aktivierungsjahr<=Costs!$A432)*(AbschreibungAGr=Costs!AB$353)*(AbschreibungAHKBvD))-SUM(AB$267:AB344)","v":0},{"$f":"SUMPRODUCT((Aktivierungsjahr<=Costs!$A432)*(AbschreibungAGr=Costs!AC$353)*(AbschreibungAHKBvD))-SUM(AC$267:AC344)","v":0},{"$f":"SUMPRODUCT((Aktivierungsjahr<=Costs!$A432)*(AbschreibungAGr=Costs!AD$353)*(AbschreibungAHKBvD))-SUM(AD$267:AD344)","v":0},{"$f":"SUMPRODUCT((Aktivierungsjahr<=Costs!$A432)*(AbschreibungAGr=Costs!AE$353)*(AbschreibungAHKBvD))-SUM(AE$267:AE344)","v":0},{"$f":"SUMPRODUCT((Aktivierungsjahr<=Costs!$A432)*(AbschreibungAGr=Costs!AF$353)*(AbschreibungAHKBvD))-SUM(AF$267:AF344)","v":0},{"$f":"SUMPRODUCT((Aktivierungsjahr<=Costs!$A432)*(AbschreibungAGr=Costs!AG$353)*(AbschreibungAHKBvD))-SUM(AG$267:AG344)","v":0},{"$f":"SUMPRODUCT((Aktivierungsjahr<=Costs!$A432)*(AbschreibungAGr=Costs!AH$353)*(AbschreibungAHKBvD))-SUM(AH$267:AH344)","v":0},{"$f":"SUMPRODUCT((Aktivierungsjahr<=Costs!$A432)*(AbschreibungAGr=Costs!AI$353)*(AbschreibungAHKBvD))-SUM(AI$267:AI344)","v":0},{"$f":"SUMPRODUCT((Aktivierungsjahr<=Costs!$A432)*(AbschreibungAGr=Costs!AJ$353)*(AbschreibungAHKBvD))-SUM(AJ$267:AJ344)","v":0},{"$f":"SUMPRODUCT((Aktivierungsjahr<=Costs!$A432)*(AbschreibungAGr=Costs!AK$353)*(AbschreibungAHKBvD))-SUM(AK$267:AK344)","v":0},{"$f":"SUMPRODUCT((Aktivierungsjahr<=Costs!$A432)*(AbschreibungAGr=Costs!AL$353)*(AbschreibungAHKBvD))-SUM(AL$267:AL344)","v":0},{"$f":"SUMPRODUCT((Aktivierungsjahr<=Costs!$A432)*(AbschreibungAGr=Costs!AM$353)*(AbschreibungAHKBvD))-SUM(AM$267:AM344)","v":0},{"$f":"SUMPRODUCT((Aktivierungsjahr<=Costs!$A432)*(AbschreibungAGr=Costs!AN$353)*(AbschreibungAHKBvD))-SUM(AN$267:AN344)","v":0},{"$f":"SUMPRODUCT((Aktivierungsjahr<=Costs!$A432)*(AbschreibungAGr=Costs!AO$353)*(AbschreibungAHKBvD))-SUM(AO$267:AO344)","v":0},{"$f":"SUMPRODUCT((Aktivierungsjahr<=Costs!$A432)*(AbschreibungAGr=Costs!AP$353)*(AbschreibungAHKBvD))-SUM(AP$267:AP344)","v":0},{"$f":"SUMPRODUCT((Aktivierungsjahr<=Costs!$A432)*(AbschreibungAGr=Costs!AQ$353)*(AbschreibungAHKBvD))-SUM(AQ$267:AQ344)","v":0}]
[2094,0,{"$f":"SUMPRODUCT((Aktivierungsjahr<=Costs!$A433)*(AbschreibungAGr=Costs!C$353)*(AbschreibungAHKBvD))-SUM(C$267:C345)","v":0},{"$f":"SUMPRODUCT((Aktivierungsjahr<=Costs!$A433)*(AbschreibungAGr=Costs!D$353)*(AbschreibungAHKBvD))-SUM(D$267:D345)","v":0},{"$f":"SUMPRODUCT((Aktivierungsjahr<=Costs!$A433)*(AbschreibungAGr=Costs!E$353)*(AbschreibungAHKBvD))-SUM(E$267:E345)","v":0},{"$f":"SUMPRODUCT((Aktivierungsjahr<=Costs!$A433)*(AbschreibungAGr=Costs!F$353)*(AbschreibungAHKBvD))-SUM(F$267:F345)","v":0},{"$f":"SUMPRODUCT((Aktivierungsjahr<=Costs!$A433)*(AbschreibungAGr=Costs!G$353)*(AbschreibungAHKBvD))-SUM(G$267:G345)","v":0},{"$f":"SUMPRODUCT((Aktivierungsjahr<=Costs!$A433)*(AbschreibungAGr=Costs!H$353)*(AbschreibungAHKBvD))-SUM(H$267:H345)","v":0},{"$f":"SUMPRODUCT((Aktivierungsjahr<=Costs!$A433)*(AbschreibungAGr=Costs!I$353)*(AbschreibungAHKBvD))-SUM(I$267:I345)","v":0},{"$f":"SUMPRODUCT((Aktivierungsjahr<=Costs!$A433)*(AbschreibungAGr=Costs!J$353)*(AbschreibungAHKBvD))-SUM(J$267:J345)","v":0},{"$f":"SUMPRODUCT((Aktivierungsjahr<=Costs!$A433)*(AbschreibungAGr=Costs!K$353)*(AbschreibungAHKBvD))-SUM(K$267:K345)","v":0},{"$f":"SUMPRODUCT((Aktivierungsjahr<=Costs!$A433)*(AbschreibungAGr=Costs!L$353)*(AbschreibungAHKBvD))-SUM(L$267:L345)","v":0},{"$f":"SUMPRODUCT((Aktivierungsjahr<=Costs!$A433)*(AbschreibungAGr=Costs!M$353)*(AbschreibungAHKBvD))-SUM(M$267:M345)","v":0},{"$f":"SUMPRODUCT((Aktivierungsjahr<=Costs!$A433)*(AbschreibungAGr=Costs!N$353)*(AbschreibungAHKBvD))-SUM(N$267:N345)","v":0},{"$f":"SUMPRODUCT((Aktivierungsjahr<=Costs!$A433)*(AbschreibungAGr=Costs!O$353)*(AbschreibungAHKBvD))-SUM(O$267:O345)","v":0},{"$f":"SUMPRODUCT((Aktivierungsjahr<=Costs!$A433)*(AbschreibungAGr=Costs!P$353)*(AbschreibungAHKBvD))-SUM(P$267:P345)","v":0},{"$f":"SUMPRODUCT((Aktivierungsjahr<=Costs!$A433)*(AbschreibungAGr=Costs!Q$353)*(AbschreibungAHKBvD))-SUM(Q$267:Q345)","v":0},{"$f":"SUMPRODUCT((Aktivierungsjahr<=Costs!$A433)*(AbschreibungAGr=Costs!R$353)*(AbschreibungAHKBvD))-SUM(R$267:R345)","v":0},{"$f":"SUMPRODUCT((Aktivierungsjahr<=Costs!$A433)*(AbschreibungAGr=Costs!S$353)*(AbschreibungAHKBvD))-SUM(S$267:S345)","v":0},{"$f":"SUMPRODUCT((Aktivierungsjahr<=Costs!$A433)*(AbschreibungAGr=Costs!T$353)*(AbschreibungAHKBvD))-SUM(T$267:T345)","v":0},{"$f":"SUMPRODUCT((Aktivierungsjahr<=Costs!$A433)*(AbschreibungAGr=Costs!U$353)*(AbschreibungAHKBvD))-SUM(U$267:U345)","v":0},{"$f":"SUMPRODUCT((Aktivierungsjahr<=Costs!$A433)*(AbschreibungAGr=Costs!V$353)*(AbschreibungAHKBvD))-SUM(V$267:V345)","v":0},{"$f":"SUMPRODUCT((Aktivierungsjahr<=Costs!$A433)*(AbschreibungAGr=Costs!W$353)*(AbschreibungAHKBvD))-SUM(W$267:W345)","v":0},{"$f":"SUMPRODUCT((Aktivierungsjahr<=Costs!$A433)*(AbschreibungAGr=Costs!X$353)*(AbschreibungAHKBvD))-SUM(X$267:X345)","v":0},{"$f":"SUMPRODUCT((Aktivierungsjahr<=Costs!$A433)*(AbschreibungAGr=Costs!Y$353)*(AbschreibungAHKBvD))-SUM(Y$267:Y345)","v":0},{"$f":"SUMPRODUCT((Aktivierungsjahr<=Costs!$A433)*(AbschreibungAGr=Costs!Z$353)*(AbschreibungAHKBvD))-SUM(Z$267:Z345)","v":0},{"$f":"SUMPRODUCT((Aktivierungsjahr<=Costs!$A433)*(AbschreibungAGr=Costs!AA$353)*(AbschreibungAHKBvD))-SUM(AA$267:AA345)","v":0},{"$f":"SUMPRODUCT((Aktivierungsjahr<=Costs!$A433)*(AbschreibungAGr=Costs!AB$353)*(AbschreibungAHKBvD))-SUM(AB$267:AB345)","v":0},{"$f":"SUMPRODUCT((Aktivierungsjahr<=Costs!$A433)*(AbschreibungAGr=Costs!AC$353)*(AbschreibungAHKBvD))-SUM(AC$267:AC345)","v":0},{"$f":"SUMPRODUCT((Aktivierungsjahr<=Costs!$A433)*(AbschreibungAGr=Costs!AD$353)*(AbschreibungAHKBvD))-SUM(AD$267:AD345)","v":0},{"$f":"SUMPRODUCT((Aktivierungsjahr<=Costs!$A433)*(AbschreibungAGr=Costs!AE$353)*(AbschreibungAHKBvD))-SUM(AE$267:AE345)","v":0},{"$f":"SUMPRODUCT((Aktivierungsjahr<=Costs!$A433)*(AbschreibungAGr=Costs!AF$353)*(AbschreibungAHKBvD))-SUM(AF$267:AF345)","v":0},{"$f":"SUMPRODUCT((Aktivierungsjahr<=Costs!$A433)*(AbschreibungAGr=Costs!AG$353)*(AbschreibungAHKBvD))-SUM(AG$267:AG345)","v":0},{"$f":"SUMPRODUCT((Aktivierungsjahr<=Costs!$A433)*(AbschreibungAGr=Costs!AH$353)*(AbschreibungAHKBvD))-SUM(AH$267:AH345)","v":0},{"$f":"SUMPRODUCT((Aktivierungsjahr<=Costs!$A433)*(AbschreibungAGr=Costs!AI$353)*(AbschreibungAHKBvD))-SUM(AI$267:AI345)","v":0},{"$f":"SUMPRODUCT((Aktivierungsjahr<=Costs!$A433)*(AbschreibungAGr=Costs!AJ$353)*(AbschreibungAHKBvD))-SUM(AJ$267:AJ345)","v":0},{"$f":"SUMPRODUCT((Aktivierungsjahr<=Costs!$A433)*(AbschreibungAGr=Costs!AK$353)*(AbschreibungAHKBvD))-SUM(AK$267:AK345)","v":0},{"$f":"SUMPRODUCT((Aktivierungsjahr<=Costs!$A433)*(AbschreibungAGr=Costs!AL$353)*(AbschreibungAHKBvD))-SUM(AL$267:AL345)","v":0},{"$f":"SUMPRODUCT((Aktivierungsjahr<=Costs!$A433)*(AbschreibungAGr=Costs!AM$353)*(AbschreibungAHKBvD))-SUM(AM$267:AM345)","v":0},{"$f":"SUMPRODUCT((Aktivierungsjahr<=Costs!$A433)*(AbschreibungAGr=Costs!AN$353)*(AbschreibungAHKBvD))-SUM(AN$267:AN345)","v":0},{"$f":"SUMPRODUCT((Aktivierungsjahr<=Costs!$A433)*(AbschreibungAGr=Costs!AO$353)*(AbschreibungAHKBvD))-SUM(AO$267:AO345)","v":0},{"$f":"SUMPRODUCT((Aktivierungsjahr<=Costs!$A433)*(AbschreibungAGr=Costs!AP$353)*(AbschreibungAHKBvD))-SUM(AP$267:AP345)","v":0},{"$f":"SUMPRODUCT((Aktivierungsjahr<=Costs!$A433)*(AbschreibungAGr=Costs!AQ$353)*(AbschreibungAHKBvD))-SUM(AQ$267:AQ345)","v":0}]
[2095,{"$f":"SUM(C522:AQ522)","v":0},{"$f":"SUMPRODUCT((Aktivierungsjahr<=Costs!$A434)*(AbschreibungAGr=Costs!C$353)*(AbschreibungAHKBvD))-SUM(C$267:C346)","v":0},{"$f":"SUMPRODUCT((Aktivierungsjahr<=Costs!$A434)*(AbschreibungAGr=Costs!D$353)*(AbschreibungAHKBvD))-SUM(D$267:D346)","v":0},{"$f":"SUMPRODUCT((Aktivierungsjahr<=Costs!$A434)*(AbschreibungAGr=Costs!E$353)*(AbschreibungAHKBvD))-SUM(E$267:E346)","v":0},{"$f":"SUMPRODUCT((Aktivierungsjahr<=Costs!$A434)*(AbschreibungAGr=Costs!F$353)*(AbschreibungAHKBvD))-SUM(F$267:F346)","v":0},{"$f":"SUMPRODUCT((Aktivierungsjahr<=Costs!$A434)*(AbschreibungAGr=Costs!G$353)*(AbschreibungAHKBvD))-SUM(G$267:G346)","v":0},{"$f":"SUMPRODUCT((Aktivierungsjahr<=Costs!$A434)*(AbschreibungAGr=Costs!H$353)*(AbschreibungAHKBvD))-SUM(H$267:H346)","v":0},{"$f":"SUMPRODUCT((Aktivierungsjahr<=Costs!$A434)*(AbschreibungAGr=Costs!I$353)*(AbschreibungAHKBvD))-SUM(I$267:I346)","v":0},{"$f":"SUMPRODUCT((Aktivierungsjahr<=Costs!$A434)*(AbschreibungAGr=Costs!J$353)*(AbschreibungAHKBvD))-SUM(J$267:J346)","v":0},{"$f":"SUMPRODUCT((Aktivierungsjahr<=Costs!$A434)*(AbschreibungAGr=Costs!K$353)*(AbschreibungAHKBvD))-SUM(K$267:K346)","v":0},{"$f":"SUMPRODUCT((Aktivierungsjahr<=Costs!$A434)*(AbschreibungAGr=Costs!L$353)*(AbschreibungAHKBvD))-SUM(L$267:L346)","v":0},{"$f":"SUMPRODUCT((Aktivierungsjahr<=Costs!$A434)*(AbschreibungAGr=Costs!M$353)*(AbschreibungAHKBvD))-SUM(M$267:M346)","v":0},{"$f":"SUMPRODUCT((Aktivierungsjahr<=Costs!$A434)*(AbschreibungAGr=Costs!N$353)*(AbschreibungAHKBvD))-SUM(N$267:N346)","v":0},{"$f":"SUMPRODUCT((Aktivierungsjahr<=Costs!$A434)*(AbschreibungAGr=Costs!O$353)*(AbschreibungAHKBvD))-SUM(O$267:O346)","v":0},{"$f":"SUMPRODUCT((Aktivierungsjahr<=Costs!$A434)*(AbschreibungAGr=Costs!P$353)*(AbschreibungAHKBvD))-SUM(P$267:P346)","v":0},{"$f":"SUMPRODUCT((Aktivierungsjahr<=Costs!$A434)*(AbschreibungAGr=Costs!Q$353)*(AbschreibungAHKBvD))-SUM(Q$267:Q346)","v":0},{"$f":"SUMPRODUCT((Aktivierungsjahr<=Costs!$A434)*(AbschreibungAGr=Costs!R$353)*(AbschreibungAHKBvD))-SUM(R$267:R346)","v":0},{"$f":"SUMPRODUCT((Aktivierungsjahr<=Costs!$A434)*(AbschreibungAGr=Costs!S$353)*(AbschreibungAHKBvD))-SUM(S$267:S346)","v":0},{"$f":"SUMPRODUCT((Aktivierungsjahr<=Costs!$A434)*(AbschreibungAGr=Costs!T$353)*(AbschreibungAHKBvD))-SUM(T$267:T346)","v":0},{"$f":"SUMPRODUCT((Aktivierungsjahr<=Costs!$A434)*(AbschreibungAGr=Costs!U$353)*(AbschreibungAHKBvD))-SUM(U$267:U346)","v":0},{"$f":"SUMPRODUCT((Aktivierungsjahr<=Costs!$A434)*(AbschreibungAGr=Costs!V$353)*(AbschreibungAHKBvD))-SUM(V$267:V346)","v":0},{"$f":"SUMPRODUCT((Aktivierungsjahr<=Costs!$A434)*(AbschreibungAGr=Costs!W$353)*(AbschreibungAHKBvD))-SUM(W$267:W346)","v":0},{"$f":"SUMPRODUCT((Aktivierungsjahr<=Costs!$A434)*(AbschreibungAGr=Costs!X$353)*(AbschreibungAHKBvD))-SUM(X$267:X346)","v":0},{"$f":"SUMPRODUCT((Aktivierungsjahr<=Costs!$A434)*(AbschreibungAGr=Costs!Y$353)*(AbschreibungAHKBvD))-SUM(Y$267:Y346)","v":0},{"$f":"SUMPRODUCT((Aktivierungsjahr<=Costs!$A434)*(AbschreibungAGr=Costs!Z$353)*(AbschreibungAHKBvD))-SUM(Z$267:Z346)","v":0},{"$f":"SUMPRODUCT((Aktivierungsjahr<=Costs!$A434)*(AbschreibungAGr=Costs!AA$353)*(AbschreibungAHKBvD))-SUM(AA$267:AA346)","v":0},{"$f":"SUMPRODUCT((Aktivierungsjahr<=Costs!$A434)*(AbschreibungAGr=Costs!AB$353)*(AbschreibungAHKBvD))-SUM(AB$267:AB346)","v":0},{"$f":"SUMPRODUCT((Aktivierungsjahr<=Costs!$A434)*(AbschreibungAGr=Costs!AC$353)*(AbschreibungAHKBvD))-SUM(AC$267:AC346)","v":0},{"$f":"SUMPRODUCT((Aktivierungsjahr<=Costs!$A434)*(AbschreibungAGr=Costs!AD$353)*(AbschreibungAHKBvD))-SUM(AD$267:AD346)","v":0},{"$f":"SUMPRODUCT((Aktivierungsjahr<=Costs!$A434)*(AbschreibungAGr=Costs!AE$353)*(AbschreibungAHKBvD))-SUM(AE$267:AE346)","v":0},{"$f":"SUMPRODUCT((Aktivierungsjahr<=Costs!$A434)*(AbschreibungAGr=Costs!AF$353)*(AbschreibungAHKBvD))-SUM(AF$267:AF346)","v":0},{"$f":"SUMPRODUCT((Aktivierungsjahr<=Costs!$A434)*(AbschreibungAGr=Costs!AG$353)*(AbschreibungAHKBvD))-SUM(AG$267:AG346)","v":0},{"$f":"SUMPRODUCT((Aktivierungsjahr<=Costs!$A434)*(AbschreibungAGr=Costs!AH$353)*(AbschreibungAHKBvD))-SUM(AH$267:AH346)","v":0},{"$f":"SUMPRODUCT((Aktivierungsjahr<=Costs!$A434)*(AbschreibungAGr=Costs!AI$353)*(AbschreibungAHKBvD))-SUM(AI$267:AI346)","v":0},{"$f":"SUMPRODUCT((Aktivierungsjahr<=Costs!$A434)*(AbschreibungAGr=Costs!AJ$353)*(AbschreibungAHKBvD))-SUM(AJ$267:AJ346)","v":0},{"$f":"SUMPRODUCT((Aktivierungsjahr<=Costs!$A434)*(AbschreibungAGr=Costs!AK$353)*(AbschreibungAHKBvD))-SUM(AK$267:AK346)","v":0},{"$f":"SUMPRODUCT((Aktivierungsjahr<=Costs!$A434)*(AbschreibungAGr=Costs!AL$353)*(AbschreibungAHKBvD))-SUM(AL$267:AL346)","v":0},{"$f":"SUMPRODUCT((Aktivierungsjahr<=Costs!$A434)*(AbschreibungAGr=Costs!AM$353)*(AbschreibungAHKBvD))-SUM(AM$267:AM346)","v":0},{"$f":"SUMPRODUCT((Aktivierungsjahr<=Costs!$A434)*(AbschreibungAGr=Costs!AN$353)*(AbschreibungAHKBvD))-SUM(AN$267:AN346)","v":0},{"$f":"SUMPRODUCT((Aktivierungsjahr<=Costs!$A434)*(AbschreibungAGr=Costs!AO$353)*(AbschreibungAHKBvD))-SUM(AO$267:AO346)","v":0},{"$f":"SUMPRODUCT((Aktivierungsjahr<=Costs!$A434)*(AbschreibungAGr=Costs!AP$353)*(AbschreibungAHKBvD))-SUM(AP$267:AP346)","v":0},{"$f":"SUMPRODUCT((Aktivierungsjahr<=Costs!$A434)*(AbschreibungAGr=Costs!AQ$353)*(AbschreibungAHKBvD))-SUM(AQ$267:AQ346)","v":0}]
[2096,0,{"$f":"SUMPRODUCT((Aktivierungsjahr<=Costs!$A435)*(AbschreibungAGr=Costs!C$353)*(AbschreibungAHKBvD))-SUM(C$267:C347)","v":0},{"$f":"SUMPRODUCT((Aktivierungsjahr<=Costs!$A435)*(AbschreibungAGr=Costs!D$353)*(AbschreibungAHKBvD))-SUM(D$267:D347)","v":0},{"$f":"SUMPRODUCT((Aktivierungsjahr<=Costs!$A435)*(AbschreibungAGr=Costs!E$353)*(AbschreibungAHKBvD))-SUM(E$267:E347)","v":0},{"$f":"SUMPRODUCT((Aktivierungsjahr<=Costs!$A435)*(AbschreibungAGr=Costs!F$353)*(AbschreibungAHKBvD))-SUM(F$267:F347)","v":0},{"$f":"SUMPRODUCT((Aktivierungsjahr<=Costs!$A435)*(AbschreibungAGr=Costs!G$353)*(AbschreibungAHKBvD))-SUM(G$267:G347)","v":0},{"$f":"SUMPRODUCT((Aktivierungsjahr<=Costs!$A435)*(AbschreibungAGr=Costs!H$353)*(AbschreibungAHKBvD))-SUM(H$267:H347)","v":0},{"$f":"SUMPRODUCT((Aktivierungsjahr<=Costs!$A435)*(AbschreibungAGr=Costs!I$353)*(AbschreibungAHKBvD))-SUM(I$267:I347)","v":0},{"$f":"SUMPRODUCT((Aktivierungsjahr<=Costs!$A435)*(AbschreibungAGr=Costs!J$353)*(AbschreibungAHKBvD))-SUM(J$267:J347)","v":0},{"$f":"SUMPRODUCT((Aktivierungsjahr<=Costs!$A435)*(AbschreibungAGr=Costs!K$353)*(AbschreibungAHKBvD))-SUM(K$267:K347)","v":0},{"$f":"SUMPRODUCT((Aktivierungsjahr<=Costs!$A435)*(AbschreibungAGr=Costs!L$353)*(AbschreibungAHKBvD))-SUM(L$267:L347)","v":0},{"$f":"SUMPRODUCT((Aktivierungsjahr<=Costs!$A435)*(AbschreibungAGr=Costs!M$353)*(AbschreibungAHKBvD))-SUM(M$267:M347)","v":0},{"$f":"SUMPRODUCT((Aktivierungsjahr<=Costs!$A435)*(AbschreibungAGr=Costs!N$353)*(AbschreibungAHKBvD))-SUM(N$267:N347)","v":0},{"$f":"SUMPRODUCT((Aktivierungsjahr<=Costs!$A435)*(AbschreibungAGr=Costs!O$353)*(AbschreibungAHKBvD))-SUM(O$267:O347)","v":0},{"$f":"SUMPRODUCT((Aktivierungsjahr<=Costs!$A435)*(AbschreibungAGr=Costs!P$353)*(AbschreibungAHKBvD))-SUM(P$267:P347)","v":0},{"$f":"SUMPRODUCT((Aktivierungsjahr<=Costs!$A435)*(AbschreibungAGr=Costs!Q$353)*(AbschreibungAHKBvD))-SUM(Q$267:Q347)","v":0},{"$f":"SUMPRODUCT((Aktivierungsjahr<=Costs!$A435)*(AbschreibungAGr=Costs!R$353)*(AbschreibungAHKBvD))-SUM(R$267:R347)","v":0},{"$f":"SUMPRODUCT((Aktivierungsjahr<=Costs!$A435)*(AbschreibungAGr=Costs!S$353)*(AbschreibungAHKBvD))-SUM(S$267:S347)","v":0},{"$f":"SUMPRODUCT((Aktivierungsjahr<=Costs!$A435)*(AbschreibungAGr=Costs!T$353)*(AbschreibungAHKBvD))-SUM(T$267:T347)","v":0},{"$f":"SUMPRODUCT((Aktivierungsjahr<=Costs!$A435)*(AbschreibungAGr=Costs!U$353)*(AbschreibungAHKBvD))-SUM(U$267:U347)","v":0},{"$f":"SUMPRODUCT((Aktivierungsjahr<=Costs!$A435)*(AbschreibungAGr=Costs!V$353)*(AbschreibungAHKBvD))-SUM(V$267:V347)","v":0},{"$f":"SUMPRODUCT((Aktivierungsjahr<=Costs!$A435)*(AbschreibungAGr=Costs!W$353)*(AbschreibungAHKBvD))-SUM(W$267:W347)","v":0},{"$f":"SUMPRODUCT((Aktivierungsjahr<=Costs!$A435)*(AbschreibungAGr=Costs!X$353)*(AbschreibungAHKBvD))-SUM(X$267:X347)","v":0},{"$f":"SUMPRODUCT((Aktivierungsjahr<=Costs!$A435)*(AbschreibungAGr=Costs!Y$353)*(AbschreibungAHKBvD))-SUM(Y$267:Y347)","v":0},{"$f":"SUMPRODUCT((Aktivierungsjahr<=Costs!$A435)*(AbschreibungAGr=Costs!Z$353)*(AbschreibungAHKBvD))-SUM(Z$267:Z347)","v":0},{"$f":"SUMPRODUCT((Aktivierungsjahr<=Costs!$A435)*(AbschreibungAGr=Costs!AA$353)*(AbschreibungAHKBvD))-SUM(AA$267:AA347)","v":0},{"$f":"SUMPRODUCT((Aktivierungsjahr<=Costs!$A435)*(AbschreibungAGr=Costs!AB$353)*(AbschreibungAHKBvD))-SUM(AB$267:AB347)","v":0},{"$f":"SUMPRODUCT((Aktivierungsjahr<=Costs!$A435)*(AbschreibungAGr=Costs!AC$353)*(AbschreibungAHKBvD))-SUM(AC$267:AC347)","v":0},{"$f":"SUMPRODUCT((Aktivierungsjahr<=Costs!$A435)*(AbschreibungAGr=Costs!AD$353)*(AbschreibungAHKBvD))-SUM(AD$267:AD347)","v":0},{"$f":"SUMPRODUCT((Aktivierungsjahr<=Costs!$A435)*(AbschreibungAGr=Costs!AE$353)*(AbschreibungAHKBvD))-SUM(AE$267:AE347)","v":0},{"$f":"SUMPRODUCT((Aktivierungsjahr<=Costs!$A435)*(AbschreibungAGr=Costs!AF$353)*(AbschreibungAHKBvD))-SUM(AF$267:AF347)","v":0},{"$f":"SUMPRODUCT((Aktivierungsjahr<=Costs!$A435)*(AbschreibungAGr=Costs!AG$353)*(AbschreibungAHKBvD))-SUM(AG$267:AG347)","v":0},{"$f":"SUMPRODUCT((Aktivierungsjahr<=Costs!$A435)*(AbschreibungAGr=Costs!AH$353)*(AbschreibungAHKBvD))-SUM(AH$267:AH347)","v":0},{"$f":"SUMPRODUCT((Aktivierungsjahr<=Costs!$A435)*(AbschreibungAGr=Costs!AI$353)*(AbschreibungAHKBvD))-SUM(AI$267:AI347)","v":0},{"$f":"SUMPRODUCT((Aktivierungsjahr<=Costs!$A435)*(AbschreibungAGr=Costs!AJ$353)*(AbschreibungAHKBvD))-SUM(AJ$267:AJ347)","v":0},{"$f":"SUMPRODUCT((Aktivierungsjahr<=Costs!$A435)*(AbschreibungAGr=Costs!AK$353)*(AbschreibungAHKBvD))-SUM(AK$267:AK347)","v":0},{"$f":"SUMPRODUCT((Aktivierungsjahr<=Costs!$A435)*(AbschreibungAGr=Costs!AL$353)*(AbschreibungAHKBvD))-SUM(AL$267:AL347)","v":0},{"$f":"SUMPRODUCT((Aktivierungsjahr<=Costs!$A435)*(AbschreibungAGr=Costs!AM$353)*(AbschreibungAHKBvD))-SUM(AM$267:AM347)","v":0},{"$f":"SUMPRODUCT((Aktivierungsjahr<=Costs!$A435)*(AbschreibungAGr=Costs!AN$353)*(AbschreibungAHKBvD))-SUM(AN$267:AN347)","v":0},{"$f":"SUMPRODUCT((Aktivierungsjahr<=Costs!$A435)*(AbschreibungAGr=Costs!AO$353)*(AbschreibungAHKBvD))-SUM(AO$267:AO347)","v":0},{"$f":"SUMPRODUCT((Aktivierungsjahr<=Costs!$A435)*(AbschreibungAGr=Costs!AP$353)*(AbschreibungAHKBvD))-SUM(AP$267:AP347)","v":0},{"$f":"SUMPRODUCT((Aktivierungsjahr<=Costs!$A435)*(AbschreibungAGr=Costs!AQ$353)*(AbschreibungAHKBvD))-SUM(AQ$267:AQ347)","v":0}]
[2097,0,{"$f":"SUMPRODUCT((Aktivierungsjahr<=Costs!$A436)*(AbschreibungAGr=Costs!C$353)*(AbschreibungAHKBvD))-SUM(C$267:C348)","v":0},{"$f":"SUMPRODUCT((Aktivierungsjahr<=Costs!$A436)*(AbschreibungAGr=Costs!D$353)*(AbschreibungAHKBvD))-SUM(D$267:D348)","v":0},{"$f":"SUMPRODUCT((Aktivierungsjahr<=Costs!$A436)*(AbschreibungAGr=Costs!E$353)*(AbschreibungAHKBvD))-SUM(E$267:E348)","v":0},{"$f":"SUMPRODUCT((Aktivierungsjahr<=Costs!$A436)*(AbschreibungAGr=Costs!F$353)*(AbschreibungAHKBvD))-SUM(F$267:F348)","v":0},{"$f":"SUMPRODUCT((Aktivierungsjahr<=Costs!$A436)*(AbschreibungAGr=Costs!G$353)*(AbschreibungAHKBvD))-SUM(G$267:G348)","v":0},{"$f":"SUMPRODUCT((Aktivierungsjahr<=Costs!$A436)*(AbschreibungAGr=Costs!H$353)*(AbschreibungAHKBvD))-SUM(H$267:H348)","v":0},{"$f":"SUMPRODUCT((Aktivierungsjahr<=Costs!$A436)*(AbschreibungAGr=Costs!I$353)*(AbschreibungAHKBvD))-SUM(I$267:I348)","v":0},{"$f":"SUMPRODUCT((Aktivierungsjahr<=Costs!$A436)*(AbschreibungAGr=Costs!J$353)*(AbschreibungAHKBvD))-SUM(J$267:J348)","v":0},{"$f":"SUMPRODUCT((Aktivierungsjahr<=Costs!$A436)*(AbschreibungAGr=Costs!K$353)*(AbschreibungAHKBvD))-SUM(K$267:K348)","v":0},{"$f":"SUMPRODUCT((Aktivierungsjahr<=Costs!$A436)*(AbschreibungAGr=Costs!L$353)*(AbschreibungAHKBvD))-SUM(L$267:L348)","v":0},{"$f":"SUMPRODUCT((Aktivierungsjahr<=Costs!$A436)*(AbschreibungAGr=Costs!M$353)*(AbschreibungAHKBvD))-SUM(M$267:M348)","v":0},{"$f":"SUMPRODUCT((Aktivierungsjahr<=Costs!$A436)*(AbschreibungAGr=Costs!N$353)*(AbschreibungAHKBvD))-SUM(N$267:N348)","v":0},{"$f":"SUMPRODUCT((Aktivierungsjahr<=Costs!$A436)*(AbschreibungAGr=Costs!O$353)*(AbschreibungAHKBvD))-SUM(O$267:O348)","v":0},{"$f":"SUMPRODUCT((Aktivierungsjahr<=Costs!$A436)*(AbschreibungAGr=Costs!P$353)*(AbschreibungAHKBvD))-SUM(P$267:P348)","v":0},{"$f":"SUMPRODUCT((Aktivierungsjahr<=Costs!$A436)*(AbschreibungAGr=Costs!Q$353)*(AbschreibungAHKBvD))-SUM(Q$267:Q348)","v":0},{"$f":"SUMPRODUCT((Aktivierungsjahr<=Costs!$A436)*(AbschreibungAGr=Costs!R$353)*(AbschreibungAHKBvD))-SUM(R$267:R348)","v":0},{"$f":"SUMPRODUCT((Aktivierungsjahr<=Costs!$A436)*(AbschreibungAGr=Costs!S$353)*(AbschreibungAHKBvD))-SUM(S$267:S348)","v":0},{"$f":"SUMPRODUCT((Aktivierungsjahr<=Costs!$A436)*(AbschreibungAGr=Costs!T$353)*(AbschreibungAHKBvD))-SUM(T$267:T348)","v":0},{"$f":"SUMPRODUCT((Aktivierungsjahr<=Costs!$A436)*(AbschreibungAGr=Costs!U$353)*(AbschreibungAHKBvD))-SUM(U$267:U348)","v":0},{"$f":"SUMPRODUCT((Aktivierungsjahr<=Costs!$A436)*(AbschreibungAGr=Costs!V$353)*(AbschreibungAHKBvD))-SUM(V$267:V348)","v":0},{"$f":"SUMPRODUCT((Aktivierungsjahr<=Costs!$A436)*(AbschreibungAGr=Costs!W$353)*(AbschreibungAHKBvD))-SUM(W$267:W348)","v":0},{"$f":"SUMPRODUCT((Aktivierungsjahr<=Costs!$A436)*(AbschreibungAGr=Costs!X$353)*(AbschreibungAHKBvD))-SUM(X$267:X348)","v":0},{"$f":"SUMPRODUCT((Aktivierungsjahr<=Costs!$A436)*(AbschreibungAGr=Costs!Y$353)*(AbschreibungAHKBvD))-SUM(Y$267:Y348)","v":0},{"$f":"SUMPRODUCT((Aktivierungsjahr<=Costs!$A436)*(AbschreibungAGr=Costs!Z$353)*(AbschreibungAHKBvD))-SUM(Z$267:Z348)","v":0},{"$f":"SUMPRODUCT((Aktivierungsjahr<=Costs!$A436)*(AbschreibungAGr=Costs!AA$353)*(AbschreibungAHKBvD))-SUM(AA$267:AA348)","v":0},{"$f":"SUMPRODUCT((Aktivierungsjahr<=Costs!$A436)*(AbschreibungAGr=Costs!AB$353)*(AbschreibungAHKBvD))-SUM(AB$267:AB348)","v":0},{"$f":"SUMPRODUCT((Aktivierungsjahr<=Costs!$A436)*(AbschreibungAGr=Costs!AC$353)*(AbschreibungAHKBvD))-SUM(AC$267:AC348)","v":0},{"$f":"SUMPRODUCT((Aktivierungsjahr<=Costs!$A436)*(AbschreibungAGr=Costs!AD$353)*(AbschreibungAHKBvD))-SUM(AD$267:AD348)","v":0},{"$f":"SUMPRODUCT((Aktivierungsjahr<=Costs!$A436)*(AbschreibungAGr=Costs!AE$353)*(AbschreibungAHKBvD))-SUM(AE$267:AE348)","v":0},{"$f":"SUMPRODUCT((Aktivierungsjahr<=Costs!$A436)*(AbschreibungAGr=Costs!AF$353)*(AbschreibungAHKBvD))-SUM(AF$267:AF348)","v":0},{"$f":"SUMPRODUCT((Aktivierungsjahr<=Costs!$A436)*(AbschreibungAGr=Costs!AG$353)*(AbschreibungAHKBvD))-SUM(AG$267:AG348)","v":0},{"$f":"SUMPRODUCT((Aktivierungsjahr<=Costs!$A436)*(AbschreibungAGr=Costs!AH$353)*(AbschreibungAHKBvD))-SUM(AH$267:AH348)","v":0},{"$f":"SUMPRODUCT((Aktivierungsjahr<=Costs!$A436)*(AbschreibungAGr=Costs!AI$353)*(AbschreibungAHKBvD))-SUM(AI$267:AI348)","v":0},{"$f":"SUMPRODUCT((Aktivierungsjahr<=Costs!$A436)*(AbschreibungAGr=Costs!AJ$353)*(AbschreibungAHKBvD))-SUM(AJ$267:AJ348)","v":0},{"$f":"SUMPRODUCT((Aktivierungsjahr<=Costs!$A436)*(AbschreibungAGr=Costs!AK$353)*(AbschreibungAHKBvD))-SUM(AK$267:AK348)","v":0},{"$f":"SUMPRODUCT((Aktivierungsjahr<=Costs!$A436)*(AbschreibungAGr=Costs!AL$353)*(AbschreibungAHKBvD))-SUM(AL$267:AL348)","v":0},{"$f":"SUMPRODUCT((Aktivierungsjahr<=Costs!$A436)*(AbschreibungAGr=Costs!AM$353)*(AbschreibungAHKBvD))-SUM(AM$267:AM348)","v":0},{"$f":"SUMPRODUCT((Aktivierungsjahr<=Costs!$A436)*(AbschreibungAGr=Costs!AN$353)*(AbschreibungAHKBvD))-SUM(AN$267:AN348)","v":0},{"$f":"SUMPRODUCT((Aktivierungsjahr<=Costs!$A436)*(AbschreibungAGr=Costs!AO$353)*(AbschreibungAHKBvD))-SUM(AO$267:AO348)","v":0},{"$f":"SUMPRODUCT((Aktivierungsjahr<=Costs!$A436)*(AbschreibungAGr=Costs!AP$353)*(AbschreibungAHKBvD))-SUM(AP$267:AP348)","v":0},{"$f":"SUMPRODUCT((Aktivierungsjahr<=Costs!$A436)*(AbschreibungAGr=Costs!AQ$353)*(AbschreibungAHKBvD))-SUM(AQ$267:AQ348)","v":0}]
[2098,0,{"$f":"SUMPRODUCT((Aktivierungsjahr<=Costs!$A437)*(AbschreibungAGr=Costs!C$353)*(AbschreibungAHKBvD))-SUM(C$267:C349)","v":0},{"$f":"SUMPRODUCT((Aktivierungsjahr<=Costs!$A437)*(AbschreibungAGr=Costs!D$353)*(AbschreibungAHKBvD))-SUM(D$267:D349)","v":0},{"$f":"SUMPRODUCT((Aktivierungsjahr<=Costs!$A437)*(AbschreibungAGr=Costs!E$353)*(AbschreibungAHKBvD))-SUM(E$267:E349)","v":0},{"$f":"SUMPRODUCT((Aktivierungsjahr<=Costs!$A437)*(AbschreibungAGr=Costs!F$353)*(AbschreibungAHKBvD))-SUM(F$267:F349)","v":0},{"$f":"SUMPRODUCT((Aktivierungsjahr<=Costs!$A437)*(AbschreibungAGr=Costs!G$353)*(AbschreibungAHKBvD))-SUM(G$267:G349)","v":0},{"$f":"SUMPRODUCT((Aktivierungsjahr<=Costs!$A437)*(AbschreibungAGr=Costs!H$353)*(AbschreibungAHKBvD))-SUM(H$267:H349)","v":0},{"$f":"SUMPRODUCT((Aktivierungsjahr<=Costs!$A437)*(AbschreibungAGr=Costs!I$353)*(AbschreibungAHKBvD))-SUM(I$267:I349)","v":0},{"$f":"SUMPRODUCT((Aktivierungsjahr<=Costs!$A437)*(AbschreibungAGr=Costs!J$353)*(AbschreibungAHKBvD))-SUM(J$267:J349)","v":0},{"$f":"SUMPRODUCT((Aktivierungsjahr<=Costs!$A437)*(AbschreibungAGr=Costs!K$353)*(AbschreibungAHKBvD))-SUM(K$267:K349)","v":0},{"$f":"SUMPRODUCT((Aktivierungsjahr<=Costs!$A437)*(AbschreibungAGr=Costs!L$353)*(AbschreibungAHKBvD))-SUM(L$267:L349)","v":0},{"$f":"SUMPRODUCT((Aktivierungsjahr<=Costs!$A437)*(AbschreibungAGr=Costs!M$353)*(AbschreibungAHKBvD))-SUM(M$267:M349)","v":0},{"$f":"SUMPRODUCT((Aktivierungsjahr<=Costs!$A437)*(AbschreibungAGr=Costs!N$353)*(AbschreibungAHKBvD))-SUM(N$267:N349)","v":0},{"$f":"SUMPRODUCT((Aktivierungsjahr<=Costs!$A437)*(AbschreibungAGr=Costs!O$353)*(AbschreibungAHKBvD))-SUM(O$267:O349)","v":0},{"$f":"SUMPRODUCT((Aktivierungsjahr<=Costs!$A437)*(AbschreibungAGr=Costs!P$353)*(AbschreibungAHKBvD))-SUM(P$267:P349)","v":0},{"$f":"SUMPRODUCT((Aktivierungsjahr<=Costs!$A437)*(AbschreibungAGr=Costs!Q$353)*(AbschreibungAHKBvD))-SUM(Q$267:Q349)","v":0},{"$f":"SUMPRODUCT((Aktivierungsjahr<=Costs!$A437)*(AbschreibungAGr=Costs!R$353)*(AbschreibungAHKBvD))-SUM(R$267:R349)","v":0},{"$f":"SUMPRODUCT((Aktivierungsjahr<=Costs!$A437)*(AbschreibungAGr=Costs!S$353)*(AbschreibungAHKBvD))-SUM(S$267:S349)","v":0},{"$f":"SUMPRODUCT((Aktivierungsjahr<=Costs!$A437)*(AbschreibungAGr=Costs!T$353)*(AbschreibungAHKBvD))-SUM(T$267:T349)","v":0},{"$f":"SUMPRODUCT((Aktivierungsjahr<=Costs!$A437)*(AbschreibungAGr=Costs!U$353)*(AbschreibungAHKBvD))-SUM(U$267:U349)","v":0},{"$f":"SUMPRODUCT((Aktivierungsjahr<=Costs!$A437)*(AbschreibungAGr=Costs!V$353)*(AbschreibungAHKBvD))-SUM(V$267:V349)","v":0},{"$f":"SUMPRODUCT((Aktivierungsjahr<=Costs!$A437)*(AbschreibungAGr=Costs!W$353)*(AbschreibungAHKBvD))-SUM(W$267:W349)","v":0},{"$f":"SUMPRODUCT((Aktivierungsjahr<=Costs!$A437)*(AbschreibungAGr=Costs!X$353)*(AbschreibungAHKBvD))-SUM(X$267:X349)","v":0},{"$f":"SUMPRODUCT((Aktivierungsjahr<=Costs!$A437)*(AbschreibungAGr=Costs!Y$353)*(AbschreibungAHKBvD))-SUM(Y$267:Y349)","v":0},{"$f":"SUMPRODUCT((Aktivierungsjahr<=Costs!$A437)*(AbschreibungAGr=Costs!Z$353)*(AbschreibungAHKBvD))-SUM(Z$267:Z349)","v":0},{"$f":"SUMPRODUCT((Aktivierungsjahr<=Costs!$A437)*(AbschreibungAGr=Costs!AA$353)*(AbschreibungAHKBvD))-SUM(AA$267:AA349)","v":0},{"$f":"SUMPRODUCT((Aktivierungsjahr<=Costs!$A437)*(AbschreibungAGr=Costs!AB$353)*(AbschreibungAHKBvD))-SUM(AB$267:AB349)","v":0},{"$f":"SUMPRODUCT((Aktivierungsjahr<=Costs!$A437)*(AbschreibungAGr=Costs!AC$353)*(AbschreibungAHKBvD))-SUM(AC$267:AC349)","v":0},{"$f":"SUMPRODUCT((Aktivierungsjahr<=Costs!$A437)*(AbschreibungAGr=Costs!AD$353)*(AbschreibungAHKBvD))-SUM(AD$267:AD349)","v":0},{"$f":"SUMPRODUCT((Aktivierungsjahr<=Costs!$A437)*(AbschreibungAGr=Costs!AE$353)*(AbschreibungAHKBvD))-SUM(AE$267:AE349)","v":0},{"$f":"SUMPRODUCT((Aktivierungsjahr<=Costs!$A437)*(AbschreibungAGr=Costs!AF$353)*(AbschreibungAHKBvD))-SUM(AF$267:AF349)","v":0},{"$f":"SUMPRODUCT((Aktivierungsjahr<=Costs!$A437)*(AbschreibungAGr=Costs!AG$353)*(AbschreibungAHKBvD))-SUM(AG$267:AG349)","v":0},{"$f":"SUMPRODUCT((Aktivierungsjahr<=Costs!$A437)*(AbschreibungAGr=Costs!AH$353)*(AbschreibungAHKBvD))-SUM(AH$267:AH349)","v":0},{"$f":"SUMPRODUCT((Aktivierungsjahr<=Costs!$A437)*(AbschreibungAGr=Costs!AI$353)*(AbschreibungAHKBvD))-SUM(AI$267:AI349)","v":0},{"$f":"SUMPRODUCT((Aktivierungsjahr<=Costs!$A437)*(AbschreibungAGr=Costs!AJ$353)*(AbschreibungAHKBvD))-SUM(AJ$267:AJ349)","v":0},{"$f":"SUMPRODUCT((Aktivierungsjahr<=Costs!$A437)*(AbschreibungAGr=Costs!AK$353)*(AbschreibungAHKBvD))-SUM(AK$267:AK349)","v":0},{"$f":"SUMPRODUCT((Aktivierungsjahr<=Costs!$A437)*(AbschreibungAGr=Costs!AL$353)*(AbschreibungAHKBvD))-SUM(AL$267:AL349)","v":0},{"$f":"SUMPRODUCT((Aktivierungsjahr<=Costs!$A437)*(AbschreibungAGr=Costs!AM$353)*(AbschreibungAHKBvD))-SUM(AM$267:AM349)","v":0},{"$f":"SUMPRODUCT((Aktivierungsjahr<=Costs!$A437)*(AbschreibungAGr=Costs!AN$353)*(AbschreibungAHKBvD))-SUM(AN$267:AN349)","v":0},{"$f":"SUMPRODUCT((Aktivierungsjahr<=Costs!$A437)*(AbschreibungAGr=Costs!AO$353)*(AbschreibungAHKBvD))-SUM(AO$267:AO349)","v":0},{"$f":"SUMPRODUCT((Aktivierungsjahr<=Costs!$A437)*(AbschreibungAGr=Costs!AP$353)*(AbschreibungAHKBvD))-SUM(AP$267:AP349)","v":0},{"$f":"SUMPRODUCT((Aktivierungsjahr<=Costs!$A437)*(AbschreibungAGr=Costs!AQ$353)*(AbschreibungAHKBvD))-SUM(AQ$267:AQ349)","v":0}]
[2099,0,{"$f":"SUMPRODUCT((Aktivierungsjahr<=Costs!$A438)*(AbschreibungAGr=Costs!C$353)*(AbschreibungAHKBvD))-SUM(C$267:C350)","v":0},{"$f":"SUMPRODUCT((Aktivierungsjahr<=Costs!$A438)*(AbschreibungAGr=Costs!D$353)*(AbschreibungAHKBvD))-SUM(D$267:D350)","v":0},{"$f":"SUMPRODUCT((Aktivierungsjahr<=Costs!$A438)*(AbschreibungAGr=Costs!E$353)*(AbschreibungAHKBvD))-SUM(E$267:E350)","v":0},{"$f":"SUMPRODUCT((Aktivierungsjahr<=Costs!$A438)*(AbschreibungAGr=Costs!F$353)*(AbschreibungAHKBvD))-SUM(F$267:F350)","v":0},{"$f":"SUMPRODUCT((Aktivierungsjahr<=Costs!$A438)*(AbschreibungAGr=Costs!G$353)*(AbschreibungAHKBvD))-SUM(G$267:G350)","v":0},{"$f":"SUMPRODUCT((Aktivierungsjahr<=Costs!$A438)*(AbschreibungAGr=Costs!H$353)*(AbschreibungAHKBvD))-SUM(H$267:H350)","v":0},{"$f":"SUMPRODUCT((Aktivierungsjahr<=Costs!$A438)*(AbschreibungAGr=Costs!I$353)*(AbschreibungAHKBvD))-SUM(I$267:I350)","v":0},{"$f":"SUMPRODUCT((Aktivierungsjahr<=Costs!$A438)*(AbschreibungAGr=Costs!J$353)*(AbschreibungAHKBvD))-SUM(J$267:J350)","v":0},{"$f":"SUMPRODUCT((Aktivierungsjahr<=Costs!$A438)*(AbschreibungAGr=Costs!K$353)*(AbschreibungAHKBvD))-SUM(K$267:K350)","v":0},{"$f":"SUMPRODUCT((Aktivierungsjahr<=Costs!$A438)*(AbschreibungAGr=Costs!L$353)*(AbschreibungAHKBvD))-SUM(L$267:L350)","v":0},{"$f":"SUMPRODUCT((Aktivierungsjahr<=Costs!$A438)*(AbschreibungAGr=Costs!M$353)*(AbschreibungAHKBvD))-SUM(M$267:M350)","v":0},{"$f":"SUMPRODUCT((Aktivierungsjahr<=Costs!$A438)*(AbschreibungAGr=Costs!N$353)*(AbschreibungAHKBvD))-SUM(N$267:N350)","v":0},{"$f":"SUMPRODUCT((Aktivierungsjahr<=Costs!$A438)*(AbschreibungAGr=Costs!O$353)*(AbschreibungAHKBvD))-SUM(O$267:O350)","v":0},{"$f":"SUMPRODUCT((Aktivierungsjahr<=Costs!$A438)*(AbschreibungAGr=Costs!P$353)*(AbschreibungAHKBvD))-SUM(P$267:P350)","v":0},{"$f":"SUMPRODUCT((Aktivierungsjahr<=Costs!$A438)*(AbschreibungAGr=Costs!Q$353)*(AbschreibungAHKBvD))-SUM(Q$267:Q350)","v":0},{"$f":"SUMPRODUCT((Aktivierungsjahr<=Costs!$A438)*(AbschreibungAGr=Costs!R$353)*(AbschreibungAHKBvD))-SUM(R$267:R350)","v":0},{"$f":"SUMPRODUCT((Aktivierungsjahr<=Costs!$A438)*(AbschreibungAGr=Costs!S$353)*(AbschreibungAHKBvD))-SUM(S$267:S350)","v":0},{"$f":"SUMPRODUCT((Aktivierungsjahr<=Costs!$A438)*(AbschreibungAGr=Costs!T$353)*(AbschreibungAHKBvD))-SUM(T$267:T350)","v":0},{"$f":"SUMPRODUCT((Aktivierungsjahr<=Costs!$A438)*(AbschreibungAGr=Costs!U$353)*(AbschreibungAHKBvD))-SUM(U$267:U350)","v":0},{"$f":"SUMPRODUCT((Aktivierungsjahr<=Costs!$A438)*(AbschreibungAGr=Costs!V$353)*(AbschreibungAHKBvD))-SUM(V$267:V350)","v":0},{"$f":"SUMPRODUCT((Aktivierungsjahr<=Costs!$A438)*(AbschreibungAGr=Costs!W$353)*(AbschreibungAHKBvD))-SUM(W$267:W350)","v":0},{"$f":"SUMPRODUCT((Aktivierungsjahr<=Costs!$A438)*(AbschreibungAGr=Costs!X$353)*(AbschreibungAHKBvD))-SUM(X$267:X350)","v":0},{"$f":"SUMPRODUCT((Aktivierungsjahr<=Costs!$A438)*(AbschreibungAGr=Costs!Y$353)*(AbschreibungAHKBvD))-SUM(Y$267:Y350)","v":0},{"$f":"SUMPRODUCT((Aktivierungsjahr<=Costs!$A438)*(AbschreibungAGr=Costs!Z$353)*(AbschreibungAHKBvD))-SUM(Z$267:Z350)","v":0},{"$f":"SUMPRODUCT((Aktivierungsjahr<=Costs!$A438)*(AbschreibungAGr=Costs!AA$353)*(AbschreibungAHKBvD))-SUM(AA$267:AA350)","v":0},{"$f":"SUMPRODUCT((Aktivierungsjahr<=Costs!$A438)*(AbschreibungAGr=Costs!AB$353)*(AbschreibungAHKBvD))-SUM(AB$267:AB350)","v":0},{"$f":"SUMPRODUCT((Aktivierungsjahr<=Costs!$A438)*(AbschreibungAGr=Costs!AC$353)*(AbschreibungAHKBvD))-SUM(AC$267:AC350)","v":0},{"$f":"SUMPRODUCT((Aktivierungsjahr<=Costs!$A438)*(AbschreibungAGr=Costs!AD$353)*(AbschreibungAHKBvD))-SUM(AD$267:AD350)","v":0},{"$f":"SUMPRODUCT((Aktivierungsjahr<=Costs!$A438)*(AbschreibungAGr=Costs!AE$353)*(AbschreibungAHKBvD))-SUM(AE$267:AE350)","v":0},{"$f":"SUMPRODUCT((Aktivierungsjahr<=Costs!$A438)*(AbschreibungAGr=Costs!AF$353)*(AbschreibungAHKBvD))-SUM(AF$267:AF350)","v":0},{"$f":"SUMPRODUCT((Aktivierungsjahr<=Costs!$A438)*(AbschreibungAGr=Costs!AG$353)*(AbschreibungAHKBvD))-SUM(AG$267:AG350)","v":0},{"$f":"SUMPRODUCT((Aktivierungsjahr<=Costs!$A438)*(AbschreibungAGr=Costs!AH$353)*(AbschreibungAHKBvD))-SUM(AH$267:AH350)","v":0},{"$f":"SUMPRODUCT((Aktivierungsjahr<=Costs!$A438)*(AbschreibungAGr=Costs!AI$353)*(AbschreibungAHKBvD))-SUM(AI$267:AI350)","v":0},{"$f":"SUMPRODUCT((Aktivierungsjahr<=Costs!$A438)*(AbschreibungAGr=Costs!AJ$353)*(AbschreibungAHKBvD))-SUM(AJ$267:AJ350)","v":0},{"$f":"SUMPRODUCT((Aktivierungsjahr<=Costs!$A438)*(AbschreibungAGr=Costs!AK$353)*(AbschreibungAHKBvD))-SUM(AK$267:AK350)","v":0},{"$f":"SUMPRODUCT((Aktivierungsjahr<=Costs!$A438)*(AbschreibungAGr=Costs!AL$353)*(AbschreibungAHKBvD))-SUM(AL$267:AL350)","v":0},{"$f":"SUMPRODUCT((Aktivierungsjahr<=Costs!$A438)*(AbschreibungAGr=Costs!AM$353)*(AbschreibungAHKBvD))-SUM(AM$267:AM350)","v":0},{"$f":"SUMPRODUCT((Aktivierungsjahr<=Costs!$A438)*(AbschreibungAGr=Costs!AN$353)*(AbschreibungAHKBvD))-SUM(AN$267:AN350)","v":0},{"$f":"SUMPRODUCT((Aktivierungsjahr<=Costs!$A438)*(AbschreibungAGr=Costs!AO$353)*(AbschreibungAHKBvD))-SUM(AO$267:AO350)","v":0},{"$f":"SUMPRODUCT((Aktivierungsjahr<=Costs!$A438)*(AbschreibungAGr=Costs!AP$353)*(AbschreibungAHKBvD))-SUM(AP$267:AP350)","v":0},{"$f":"SUMPRODUCT((Aktivierungsjahr<=Costs!$A438)*(AbschreibungAGr=Costs!AQ$353)*(AbschreibungAHKBvD))-SUM(AQ$267:AQ350)","v":0}]
[2100,0,{"$f":"SUMPRODUCT((Aktivierungsjahr<=Costs!$A439)*(AbschreibungAGr=Costs!C$353)*(AbschreibungAHKBvD))-SUM(C$267:C351)","v":0},{"$f":"SUMPRODUCT((Aktivierungsjahr<=Costs!$A439)*(AbschreibungAGr=Costs!D$353)*(AbschreibungAHKBvD))-SUM(D$267:D351)","v":0},{"$f":"SUMPRODUCT((Aktivierungsjahr<=Costs!$A439)*(AbschreibungAGr=Costs!E$353)*(AbschreibungAHKBvD))-SUM(E$267:E351)","v":0},{"$f":"SUMPRODUCT((Aktivierungsjahr<=Costs!$A439)*(AbschreibungAGr=Costs!F$353)*(AbschreibungAHKBvD))-SUM(F$267:F351)","v":0},{"$f":"SUMPRODUCT((Aktivierungsjahr<=Costs!$A439)*(AbschreibungAGr=Costs!G$353)*(AbschreibungAHKBvD))-SUM(G$267:G351)","v":0},{"$f":"SUMPRODUCT((Aktivierungsjahr<=Costs!$A439)*(AbschreibungAGr=Costs!H$353)*(AbschreibungAHKBvD))-SUM(H$267:H351)","v":0},{"$f":"SUMPRODUCT((Aktivierungsjahr<=Costs!$A439)*(AbschreibungAGr=Costs!I$353)*(AbschreibungAHKBvD))-SUM(I$267:I351)","v":0},{"$f":"SUMPRODUCT((Aktivierungsjahr<=Costs!$A439)*(AbschreibungAGr=Costs!J$353)*(AbschreibungAHKBvD))-SUM(J$267:J351)","v":0},{"$f":"SUMPRODUCT((Aktivierungsjahr<=Costs!$A439)*(AbschreibungAGr=Costs!K$353)*(AbschreibungAHKBvD))-SUM(K$267:K351)","v":0},{"$f":"SUMPRODUCT((Aktivierungsjahr<=Costs!$A439)*(AbschreibungAGr=Costs!L$353)*(AbschreibungAHKBvD))-SUM(L$267:L351)","v":0},{"$f":"SUMPRODUCT((Aktivierungsjahr<=Costs!$A439)*(AbschreibungAGr=Costs!M$353)*(AbschreibungAHKBvD))-SUM(M$267:M351)","v":0},{"$f":"SUMPRODUCT((Aktivierungsjahr<=Costs!$A439)*(AbschreibungAGr=Costs!N$353)*(AbschreibungAHKBvD))-SUM(N$267:N351)","v":0},{"$f":"SUMPRODUCT((Aktivierungsjahr<=Costs!$A439)*(AbschreibungAGr=Costs!O$353)*(AbschreibungAHKBvD))-SUM(O$267:O351)","v":0},{"$f":"SUMPRODUCT((Aktivierungsjahr<=Costs!$A439)*(AbschreibungAGr=Costs!P$353)*(AbschreibungAHKBvD))-SUM(P$267:P351)","v":0},{"$f":"SUMPRODUCT((Aktivierungsjahr<=Costs!$A439)*(AbschreibungAGr=Costs!Q$353)*(AbschreibungAHKBvD))-SUM(Q$267:Q351)","v":0},{"$f":"SUMPRODUCT((Aktivierungsjahr<=Costs!$A439)*(AbschreibungAGr=Costs!R$353)*(AbschreibungAHKBvD))-SUM(R$267:R351)","v":0},{"$f":"SUMPRODUCT((Aktivierungsjahr<=Costs!$A439)*(AbschreibungAGr=Costs!S$353)*(AbschreibungAHKBvD))-SUM(S$267:S351)","v":0},{"$f":"SUMPRODUCT((Aktivierungsjahr<=Costs!$A439)*(AbschreibungAGr=Costs!T$353)*(AbschreibungAHKBvD))-SUM(T$267:T351)","v":0},{"$f":"SUMPRODUCT((Aktivierungsjahr<=Costs!$A439)*(AbschreibungAGr=Costs!U$353)*(AbschreibungAHKBvD))-SUM(U$267:U351)","v":0},{"$f":"SUMPRODUCT((Aktivierungsjahr<=Costs!$A439)*(AbschreibungAGr=Costs!V$353)*(AbschreibungAHKBvD))-SUM(V$267:V351)","v":0},{"$f":"SUMPRODUCT((Aktivierungsjahr<=Costs!$A439)*(AbschreibungAGr=Costs!W$353)*(AbschreibungAHKBvD))-SUM(W$267:W351)","v":0},{"$f":"SUMPRODUCT((Aktivierungsjahr<=Costs!$A439)*(AbschreibungAGr=Costs!X$353)*(AbschreibungAHKBvD))-SUM(X$267:X351)","v":0},{"$f":"SUMPRODUCT((Aktivierungsjahr<=Costs!$A439)*(AbschreibungAGr=Costs!Y$353)*(AbschreibungAHKBvD))-SUM(Y$267:Y351)","v":0},{"$f":"SUMPRODUCT((Aktivierungsjahr<=Costs!$A439)*(AbschreibungAGr=Costs!Z$353)*(AbschreibungAHKBvD))-SUM(Z$267:Z351)","v":0},{"$f":"SUMPRODUCT((Aktivierungsjahr<=Costs!$A439)*(AbschreibungAGr=Costs!AA$353)*(AbschreibungAHKBvD))-SUM(AA$267:AA351)","v":0},{"$f":"SUMPRODUCT((Aktivierungsjahr<=Costs!$A439)*(AbschreibungAGr=Costs!AB$353)*(AbschreibungAHKBvD))-SUM(AB$267:AB351)","v":0},{"$f":"SUMPRODUCT((Aktivierungsjahr<=Costs!$A439)*(AbschreibungAGr=Costs!AC$353)*(AbschreibungAHKBvD))-SUM(AC$267:AC351)","v":0},{"$f":"SUMPRODUCT((Aktivierungsjahr<=Costs!$A439)*(AbschreibungAGr=Costs!AD$353)*(AbschreibungAHKBvD))-SUM(AD$267:AD351)","v":0},{"$f":"SUMPRODUCT((Aktivierungsjahr<=Costs!$A439)*(AbschreibungAGr=Costs!AE$353)*(AbschreibungAHKBvD))-SUM(AE$267:AE351)","v":0},{"$f":"SUMPRODUCT((Aktivierungsjahr<=Costs!$A439)*(AbschreibungAGr=Costs!AF$353)*(AbschreibungAHKBvD))-SUM(AF$267:AF351)","v":0},{"$f":"SUMPRODUCT((Aktivierungsjahr<=Costs!$A439)*(AbschreibungAGr=Costs!AG$353)*(AbschreibungAHKBvD))-SUM(AG$267:AG351)","v":0},{"$f":"SUMPRODUCT((Aktivierungsjahr<=Costs!$A439)*(AbschreibungAGr=Costs!AH$353)*(AbschreibungAHKBvD))-SUM(AH$267:AH351)","v":0},{"$f":"SUMPRODUCT((Aktivierungsjahr<=Costs!$A439)*(AbschreibungAGr=Costs!AI$353)*(AbschreibungAHKBvD))-SUM(AI$267:AI351)","v":0},{"$f":"SUMPRODUCT((Aktivierungsjahr<=Costs!$A439)*(AbschreibungAGr=Costs!AJ$353)*(AbschreibungAHKBvD))-SUM(AJ$267:AJ351)","v":0},{"$f":"SUMPRODUCT((Aktivierungsjahr<=Costs!$A439)*(AbschreibungAGr=Costs!AK$353)*(AbschreibungAHKBvD))-SUM(AK$267:AK351)","v":0},{"$f":"SUMPRODUCT((Aktivierungsjahr<=Costs!$A439)*(AbschreibungAGr=Costs!AL$353)*(AbschreibungAHKBvD))-SUM(AL$267:AL351)","v":0},{"$f":"SUMPRODUCT((Aktivierungsjahr<=Costs!$A439)*(AbschreibungAGr=Costs!AM$353)*(AbschreibungAHKBvD))-SUM(AM$267:AM351)","v":0},{"$f":"SUMPRODUCT((Aktivierungsjahr<=Costs!$A439)*(AbschreibungAGr=Costs!AN$353)*(AbschreibungAHKBvD))-SUM(AN$267:AN351)","v":0},{"$f":"SUMPRODUCT((Aktivierungsjahr<=Costs!$A439)*(AbschreibungAGr=Costs!AO$353)*(AbschreibungAHKBvD))-SUM(AO$267:AO351)","v":0},{"$f":"SUMPRODUCT((Aktivierungsjahr<=Costs!$A439)*(AbschreibungAGr=Costs!AP$353)*(AbschreibungAHKBvD))-SUM(AP$267:AP351)","v":0},{"$f":"SUMPRODUCT((Aktivierungsjahr<=Costs!$A439)*(AbschreibungAGr=Costs!AQ$353)*(AbschreibungAHKBvD))-SUM(AQ$267:AQ351)","v":0}]
[]
[null,null,1,2,3,4,5,6,7,8,9,10,11,12,13,14,15,16,17,18,19,20,21,22,23,24,25,26,27,28,29,30,31,32,33,34,35,36,37,38,39,40,41]
["Residual values average","Total","Properties","Property facilities, structures for transport system","Operating buildings","Administrative buildings","Track systems, wagons","Business equipment (without IT/tools/devices)","Tools/devices","Storage facilities","Hardware","Software","Light vehicles","Heavy vehicles","Gas holders","Natural gas compression","Gas purifiers","Piping and fittings","Gas measuring equipment","Safety equipment","Control and energy technology","Ancillary facilities","Buildings, transport routes","Steel pipelines – encapsulated in PE","Steel pipelines – cathodic protection","Steel pipelines – bituminised","Grey cast iron (> DN 150)","Polyethylene (PE - HD)","Polyvinyl chloride (PVC)","Polyvinyl chloride (PVC)","Fittings","Pig traps","Safety equipment","Gas meters of distribution","Service regulators/meter regulators","Metering equipment","Control equipment","Safety equipment","Control and energy technology","Compressors in gas-mixing systems by duration of use","Ancillary facilities","Buildings","Remote control equipment"]
[2016,{"$f":"SUM(C531:AQ531)","v":0},{"$f":"(C355+C443)/2","v":0},0,0,0,0,0,0,0,0,0,0,0,0,0,0,0,0,0,0,0,0,0,0,0,0,0,0,0,0,0,0,0,0,0,0,0,0,0,0,0,0]
[2017,0,{"$f":"(C356+C444)/2","v":0},0,0,0,0,0,0,0,0,0,0,0,0,0,0,0,0,0,0,0,0,0,0,0,0,0,0,0,0,0,0,0,0,0,0,0,0,0,0,0,0]
[2018,0,{"$f":"(C357+C445)/2","v":0},0,0,0,0,0,0,0,0,0,0,0,0,0,0,0,0,0,0,0,0,0,0,0,0,0,0,0,0,0,0,0,0,0,0,0,0,0,0,0,0]
[2019,0,{"$f":"(C358+C446)/2","v":0},0,0,0,0,0,0,0,0,0,0,0,0,0,0,0,0,0,0,0,0,0,0,0,0,0,0,0,0,0,0,0,0,0,0,0,0,0,0,0,0]
[2020,0,{"$f":"(C359+C447)/2","v":0},0,0,0,0,0,0,0,0,0,0,0,0,0,0,0,0,0,0,0,0,0,0,0,0,0,0,0,0,0,0,0,0,0,0,0,0,0,0,0,0]
[2021,0,{"$f":"(C360+C448)/2","v":0},0,0,0,0,0,0,0,0,0,0,0,0,0,0,0,0,0,0,0,0,0,0,0,0,0,0,0,0,0,0,0,0,0,0,0,0,0,0,0,0]
[2022,0,{"$f":"(C361+C449)/2","v":0},0,0,0,0,0,0,0,0,0,0,0,0,0,0,0,0,0,0,0,0,0,0,0,0,0,0,0,0,0,0,0,0,0,0,0,0,0,0,0,0]
[2023,0,{"$f":"(C362+C450)/2","v":0},0,0,0,0,0,0,0,0,0,0,0,0,0,0,0,0,0,0,0,0,0,0,0,0,0,0,0,0,0,0,0,0,0,0,0,0,0,0,0,0]
[2024,0,{"$f":"(C363+C451)/2","v":0},0,0,0,0,0,0,0,0,0,0,0,0,0,0,0,0,0,0,0,0,0,0,0,0,0,0,0,0,0,0,0,0,0,0,0,0,0,0,0,0]
[2025,147988888.8888889,{"$f":"(C364+C452)/2","v":0},0,0,0,0,0,0,0,0,0,0,0,0,147000000,0,0,0,0,0,0,0,0,0,0,0,0,0,0,0,0,0,0,0,988888.88888888888,0,0,0,0,0,0,0]
[2026,141966666.66666666,{"$f":"(C365+C453)/2","v":0},0,0,0,0,0,0,0,0,0,0,0,0,141000000,0,0,0,0,0,0,0,0,0,0,0,0,0,0,0,0,0,0,0,966666.66666666663,0,0,0,0,0,0,0]
[2027,135944444.44444445,{"$f":"(C366+C454)/2","v":0},0,0,0,0,0,0,0,0,0,0,0,0,135000000,0,0,0,0,0,0,0,0,0,0,0,0,0,0,0,0,0,0,0,944444.4444444445,0,0,0,0,0,0,0]
[2028,129922222.22222222,{"$f":"(C367+C455)/2","v":0},0,0,0,0,0,0,0,0,0,0,0,0,129000000,0,0,0,0,0,0,0,0,0,0,0,0,0,0,0,0,0,0,0,922222.22222222225,0,0,0,0,0,0,0]
[2029,123900000,{"$f":"(C368+C456)/2","v":0},0,0,0,0,0,0,0,0,0,0,0,0,123000000,0,0,0,0,0,0,0,0,0,0,0,0,0,0,0,0,0,0,0,900000,0,0,0,0,0,0,0]
[2030,{"$f":"SUM(C545:AQ545)","v":117877777.77777778},{"$f":"(C369+C457)/2","v":0},0,0,0,0,0,0,0,0,0,0,0,0,117000000,0,0,0,0,0,0,0,0,0,0,0,0,0,0,0,0,0,0,0,877777.77777777775,0,0,0,0,0,0,0]
[2031,111855555.55555555,{"$f":"(C370+C458)/2","v":0},0,0,0,0,0,0,0,0,0,0,0,0,111000000,0,0,0,0,0,0,0,0,0,0,0,0,0,0,0,0,0,0,0,855555.5555555555,0,0,0,0,0,0,0]
[2032,105833333.33333333,{"$f":"(C371+C459)/2","v":0},0,0,0,0,0,0,0,0,0,0,0,0,105000000,0,0,0,0,0,0,0,0,0,0,0,0,0,0,0,0,0,0,0,833333.33333333337,0,0,0,0,0,0,0]
[2033,99811111.111111104,{"$f":"(C372+C460)/2","v":0},0,0,0,0,0,0,0,0,0,0,0,0,99000000,0,0,0,0,0,0,0,0,0,0,0,0,0,0,0,0,0,0,0,811111.11111111112,0,0,0,0,0,0,0]
[2034,93788888.888888896,{"$f":"(C373+C461)/2","v":0},0,0,0,0,0,0,0,0,0,0,0,0,93000000,0,0,0,0,0,0,0,0,0,0,0,0,0,0,0,0,0,0,0,788888.88888888888,0,0,0,0,0,0,0]
[2035,87766666.666666672,{"$f":"(C374+C462)/2","v":0},0,0,0,0,0,0,0,0,0,0,0,0,87000000,0,0,0,0,0,0,0,0,0,0,0,0,0,0,0,0,0,0,0,766666.66666666663,0,0,0,0,0,0,0]
[2036,81744444.444444448,{"$f":"(C375+C463)/2","v":0},0,0,0,0,0,0,0,0,0,0,0,0,81000000,0,0,0,0,0,0,0,0,0,0,0,0,0,0,0,0,0,0,0,744444.44444444438,0,0,0,0,0,0,0]
[2037,75722222.222222224,{"$f":"(C376+C464)/2","v":0},0,0,0,0,0,0,0,0,0,0,0,0,75000000,0,0,0,0,0,0,0,0,0,0,0,0,0,0,0,0,0,0,0,722222.22222222213,0,0,0,0,0,0,0]
[2038,69700000,{"$f":"(C377+C465)/2","v":0},0,0,0,0,0,0,0,0,0,0,0,0,69000000,0,0,0,0,0,0,0,0,0,0,0,0,0,0,0,0,0,0,0,699999.99999999988,0,0,0,0,0,0,0]
[2039,63677777.777777776,{"$f":"(C378+C466)/2","v":0},0,0,0,0,0,0,0,0,0,0,0,0,63000000,0,0,0,0,0,0,0,0,0,0,0,0,0,0,0,0,0,0,0,677777.77777777764,0,0,0,0,0,0,0]
[2040,57655555.555555552,{"$f":"(C379+C467)/2","v":0},0,0,0,0,0,0,0,0,0,0,0,0,57000000,0,0,0,0,0,0,0,0,0,0,0,0,0,0,0,0,0,0,0,655555.55555555539,0,0,0,0,0,0,0]
[2041,51633333.333333336,{"$f":"(C380+C468)/2","v":0},0,0,0,0,0,0,0,0,0,0,0,0,51000000,0,0,0,0,0,0,0,0,0,0,0,0,0,0,0,0,0,0,0,633333.33333333314,0,0,0,0,0,0,0]
[2042,45611111.111111112,{"$f":"(C381+C469)/2","v":0},0,0,0,0,0,0,0,0,0,0,0,0,45000000,0,0,0,0,0,0,0,0,0,0,0,0,0,0,0,0,0,0,0,611111.11111111089,0,0,0,0,0,0,0]
[2043,39588888.888888888,{"$f":"(C382+C470)/2","v":0},0,0,0,0,0,0,0,0,0,0,0,0,39000000,0,0,0,0,0,0,0,0,0,0,0,0,0,0,0,0,0,0,0,588888.88888888864,0,0,0,0,0,0,0]
[2044,33566666.666666664,{"$f":"(C383+C471)/2","v":0},0,0,0,0,0,0,0,0,0,0,0,0,33000000,0,0,0,0,0,0,0,0,0,0,0,0,0,0,0,0,0,0,0,566666.6666666664,0,0,0,0,0,0,0]
[2045,27544444.444444444,{"$f":"(C384+C472)/2","v":0},0,0,0,0,0,0,0,0,0,0,0,0,27000000,0,0,0,0,0,0,0,0,0,0,0,0,0,0,0,0,0,0,0,544444.44444444415,0,0,0,0,0,0,0]
[2046,21522222.22222222,{"$f":"(C385+C473)/2","v":0},0,0,0,0,0,0,0,0,0,0,0,0,21000000,0,0,0,0,0,0,0,0,0,0,0,0,0,0,0,0,0,0,0,522222.2222222219,0,0,0,0,0,0,0]
[2047,15500000,{"$f":"(C386+C474)/2","v":0},0,0,0,0,0,0,0,0,0,0,0,0,15000000,0,0,0,0,0,0,0,0,0,0,0,0,0,0,0,0,0,0,0,499999.99999999971,0,0,0,0,0,0,0]
[2048,9477777.777777778,{"$f":"(C387+C475)/2","v":0},0,0,0,0,0,0,0,0,0,0,0,0,9000000,0,0,0,0,0,0,0,0,0,0,0,0,0,0,0,0,0,0,0,477777.77777777752,0,0,0,0,0,0,0]
[2049,3455555.555555555,{"$f":"(C388+C476)/2","v":0},0,0,0,0,0,0,0,0,0,0,0,0,3000000,0,0,0,0,0,0,0,0,0,0,0,0,0,0,0,0,0,0,0,455555.55555555527,0,0,0,0,0,0,0]
[2050,433333.33333333302,{"$f":"(C389+C477)/2","v":0},0,0,0,0,0,0,0,0,0,0,0,0,0,0,0,0,0,0,0,0,0,0,0,0,0,0,0,0,0,0,0,0,433333.33333333302,0,0,0,0,0,0,0]
[2051,411111.11111111077,{"$f":"(C390+C478)/2","v":0},0,0,0,0,0,0,0,0,0,0,0,0,0,0,0,0,0,0,0,0,0,0,0,0,0,0,0,0,0,0,0,0,411111.11111111077,0,0,0,0,0,0,0]
[2052,388888.88888888853,{"$f":"(C391+C479)/2","v":0},0,0,0,0,0,0,0,0,0,0,0,0,0,0,0,0,0,0,0,0,0,0,0,0,0,0,0,0,0,0,0,0,388888.88888888853,0,0,0,0,0,0,0]
[2053,366666.66666666628,{"$f":"(C392+C480)/2","v":0},0,0,0,0,0,0,0,0,0,0,0,0,0,0,0,0,0,0,0,0,0,0,0,0,0,0,0,0,0,0,0,0,366666.66666666628,0,0,0,0,0,0,0]
[2054,344444.44444444403,{"$f":"(C393+C481)/2","v":0},0,0,0,0,0,0,0,0,0,0,0,0,0,0,0,0,0,0,0,0,0,0,0,0,0,0,0,0,0,0,0,0,344444.44444444403,0,0,0,0,0,0,0]
[2055,322222.22222222178,{"$f":"(C394+C482)/2","v":0},0,0,0,0,0,0,0,0,0,0,0,0,0,0,0,0,0,0,0,0,0,0,0,0,0,0,0,0,0,0,0,0,322222.22222222178,0,0,0,0,0,0,0]
[2056,299999.99999999953,{"$f":"(C395+C483)/2","v":0},0,0,0,0,0,0,0,0,0,0,0,0,0,0,0,0,0,0,0,0,0,0,0,0,0,0,0,0,0,0,0,0,299999.99999999953,0,0,0,0,0,0,0]
[2057,277777.77777777729,{"$f":"(C396+C484)/2","v":0},0,0,0,0,0,0,0,0,0,0,0,0,0,0,0,0,0,0,0,0,0,0,0,0,0,0,0,0,0,0,0,0,277777.77777777729,0,0,0,0,0,0,0]
[2058,255555.55555555504,{"$f":"(C397+C485)/2","v":0},0,0,0,0,0,0,0,0,0,0,0,0,0,0,0,0,0,0,0,0,0,0,0,0,0,0,0,0,0,0,0,0,255555.55555555504,0,0,0,0,0,0,0]
[2059,233333.33333333279,{"$f":"(C398+C486)/2","v":0},0,0,0,0,0,0,0,0,0,0,0,0,0,0,0,0,0,0,0,0,0,0,0,0,0,0,0,0,0,0,0,0,233333.33333333279,0,0,0,0,0,0,0]
[2060,211111.11111111054,{"$f":"(C399+C487)/2","v":0},0,0,0,0,0,0,0,0,0,0,0,0,0,0,0,0,0,0,0,0,0,0,0,0,0,0,0,0,0,0,0,0,211111.11111111054,0,0,0,0,0,0,0]
[2061,188888.88888888829,{"$f":"(C400+C488)/2","v":0},0,0,0,0,0,0,0,0,0,0,0,0,0,0,0,0,0,0,0,0,0,0,0,0,0,0,0,0,0,0,0,0,188888.88888888829,0,0,0,0,0,0,0]
[2062,166666.66666666605,{"$f":"(C401+C489)/2","v":0},0,0,0,0,0,0,0,0,0,0,0,0,0,0,0,0,0,0,0,0,0,0,0,0,0,0,0,0,0,0,0,0,166666.66666666605,0,0,0,0,0,0,0]
[2063,144444.4444444438,{"$f":"(C402+C490)/2","v":0},0,0,0,0,0,0,0,0,0,0,0,0,0,0,0,0,0,0,0,0,0,0,0,0,0,0,0,0,0,0,0,0,144444.4444444438,0,0,0,0,0,0,0]
[2064,122222.22222222155,{"$f":"(C403+C491)/2","v":0},0,0,0,0,0,0,0,0,0,0,0,0,0,0,0,0,0,0,0,0,0,0,0,0,0,0,0,0,0,0,0,0,122222.22222222155,0,0,0,0,0,0,0]
[2065,99999.999999999302,{"$f":"(C404+C492)/2","v":0},0,0,0,0,0,0,0,0,0,0,0,0,0,0,0,0,0,0,0,0,0,0,0,0,0,0,0,0,0,0,0,0,99999.999999999302,0,0,0,0,0,0,0]
[2066,77777.777777777053,{"$f":"(C405+C493)/2","v":0},0,0,0,0,0,0,0,0,0,0,0,0,0,0,0,0,0,0,0,0,0,0,0,0,0,0,0,0,0,0,0,0,77777.777777777053,0,0,0,0,0,0,0]
[2067,55555.555555554805,{"$f":"(C406+C494)/2","v":0},0,0,0,0,0,0,0,0,0,0,0,0,0,0,0,0,0,0,0,0,0,0,0,0,0,0,0,0,0,0,0,0,55555.555555554805,0,0,0,0,0,0,0]
[2068,33333.333333332557,{"$f":"(C407+C495)/2","v":0},0,0,0,0,0,0,0,0,0,0,0,0,0,0,0,0,0,0,0,0,0,0,0,0,0,0,0,0,0,0,0,0,33333.333333332557,0,0,0,0,0,0,0]
[2069,11111.111111110717,{"$f":"(C408+C496)/2","v":0},0,0,0,0,0,0,0,0,0,0,0,0,0,0,0,0,0,0,0,0,0,0,0,0,0,0,0,0,0,0,0,0,11111.111111110717,0,0,0,0,0,0,0]
[2070,-4.0745362639427185E-10,{"$f":"(C409+C497)/2","v":0},0,0,0,0,0,0,0,0,0,0,0,0,0,0,0,0,0,0,0,0,0,0,0,0,0,0,0,0,0,0,0,0,-4.0745362639427185E-10,0,0,0,0,0,0,0]
[2071,-4.0745362639427185E-10,{"$f":"(C410+C498)/2","v":0},0,0,0,0,0,0,0,0,0,0,0,0,0,0,0,0,0,0,0,0,0,0,0,0,0,0,0,0,0,0,0,0,-4.0745362639427185E-10,0,0,0,0,0,0,0]
[2072,-4.0745362639427185E-10,{"$f":"(C411+C499)/2","v":0},0,0,0,0,0,0,0,0,0,0,0,0,0,0,0,0,0,0,0,0,0,0,0,0,0,0,0,0,0,0,0,0,-4.0745362639427185E-10,0,0,0,0,0,0,0]
[2073,-4.0745362639427185E-10,{"$f":"(C412+C500)/2","v":0},0,0,0,0,0,0,0,0,0,0,0,0,0,0,0,0,0,0,0,0,0,0,0,0,0,0,0,0,0,0,0,0,-4.0745362639427185E-10,0,0,0,0,0,0,0]
[2074,-4.0745362639427185E-10,{"$f":"(C413+C501)/2","v":0},0,0,0,0,0,0,0,0,0,0,0,0,0,0,0,0,0,0,0,0,0,0,0,0,0,0,0,0,0,0,0,0,-4.0745362639427185E-10,0,0,0,0,0,0,0]
[2075,-4.0745362639427185E-10,{"$f":"(C414+C502)/2","v":0},0,0,0,0,0,0,0,0,0,0,0,0,0,0,0,0,0,0,0,0,0,0,0,0,0,0,0,0,0,0,0,0,-4.0745362639427185E-10,0,0,0,0,0,0,0]
[2076,-4.0745362639427185E-10,{"$f":"(C415+C503)/2","v":0},0,0,0,0,0,0,0,0,0,0,0,0,0,0,0,0,0,0,0,0,0,0,0,0,0,0,0,0,0,0,0,0,-4.0745362639427185E-10,0,0,0,0,0,0,0]
[2077,-4.0745362639427185E-10,{"$f":"(C416+C504)/2","v":0},0,0,0,0,0,0,0,0,0,0,0,0,0,0,0,0,0,0,0,0,0,0,0,0,0,0,0,0,0,0,0,0,-4.0745362639427185E-10,0,0,0,0,0,0,0]
[2078,-4.0745362639427185E-10,{"$f":"(C417+C505)/2","v":0},0,0,0,0,0,0,0,0,0,0,0,0,0,0,0,0,0,0,0,0,0,0,0,0,0,0,0,0,0,0,0,0,-4.0745362639427185E-10,0,0,0,0,0,0,0]
[2079,-4.0745362639427185E-10,{"$f":"(C418+C506)/2","v":0},0,0,0,0,0,0,0,0,0,0,0,0,0,0,0,0,0,0,0,0,0,0,0,0,0,0,0,0,0,0,0,0,-4.0745362639427185E-10,0,0,0,0,0,0,0]
[2080,-4.0745362639427185E-10,{"$f":"(C419+C507)/2","v":0},0,0,0,0,0,0,0,0,0,0,0,0,0,0,0,0,0,0,0,0,0,0,0,0,0,0,0,0,0,0,0,0,-4.0745362639427185E-10,0,0,0,0,0,0,0]
[2081,-4.0745362639427185E-10,{"$f":"(C420+C508)/2","v":0},0,0,0,0,0,0,0,0,0,0,0,0,0,0,0,0,0,0,0,0,0,0,0,0,0,0,0,0,0,0,0,0,-4.0745362639427185E-10,0,0,0,0,0,0,0]
[2082,-4.0745362639427185E-10,{"$f":"(C421+C509)/2","v":0},0,0,0,0,0,0,0,0,0,0,0,0,0,0,0,0,0,0,0,0,0,0,0,0,0,0,0,0,0,0,0,0,-4.0745362639427185E-10,0,0,0,0,0,0,0]
[2083,-4.0745362639427185E-10,{"$f":"(C422+C510)/2","v":0},0,0,0,0,0,0,0,0,0,0,0,0,0,0,0,0,0,0,0,0,0,0,0,0,0,0,0,0,0,0,0,0,-4.0745362639427185E-10,0,0,0,0,0,0,0]
[2084,-4.0745362639427185E-10,{"$f":"(C423+C511)/2","v":0},0,0,0,0,0,0,0,0,0,0,0,0,0,0,0,0,0,0,0,0,0,0,0,0,0,0,0,0,0,0,0,0,-4.0745362639427185E-10,0,0,0,0,0,0,0]
[2085,-4.0745362639427185E-10,{"$f":"(C424+C512)/2","v":0},0,0,0,0,0,0,0,0,0,0,0,0,0,0,0,0,0,0,0,0,0,0,0,0,0,0,0,0,0,0,0,0,-4.0745362639427185E-10,0,0,0,0,0,0,0]
[2086,-4.0745362639427185E-10,{"$f":"(C425+C513)/2","v":0},0,0,0,0,0,0,0,0,0,0,0,0,0,0,0,0,0,0,0,0,0,0,0,0,0,0,0,0,0,0,0,0,-4.0745362639427185E-10,0,0,0,0,0,0,0]
[2087,-4.0745362639427185E-10,{"$f":"(C426+C514)/2","v":0},0,0,0,0,0,0,0,0,0,0,0,0,0,0,0,0,0,0,0,0,0,0,0,0,0,0,0,0,0,0,0,0,-4.0745362639427185E-10,0,0,0,0,0,0,0]
[2088,-4.0745362639427185E-10,{"$f":"(C427+C515)/2","v":0},0,0,0,0,0,0,0,0,0,0,0,0,0,0,0,0,0,0,0,0,0,0,0,0,0,0,0,0,0,0,0,0,-4.0745362639427185E-10,0,0,0,0,0,0,0]
[2089,-4.0745362639427185E-10,{"$f":"(C428+C516)/2","v":0},0,0,0,0,0,0,0,0,0,0,0,0,0,0,0,0,0,0,0,0,0,0,0,0,0,0,0,0,0,0,0,0,-4.0745362639427185E-10,0,0,0,0,0,0,0]
[2090,-4.0745362639427185E-10,{"$f":"(C429+C517)/2","v":0},0,0,0,0,0,0,0,0,0,0,0,0,0,0,0,0,0,0,0,0,0,0,0,0,0,0,0,0,0,0,0,0,-4.0745362639427185E-10,0,0,0,0,0,0,0]
[2091,-4.0745362639427185E-10,{"$f":"(C430+C518)/2","v":0},0,0,0,0,0,0,0,0,0,0,0,0,0,0,0,0,0,0,0,0,0,0,0,0,0,0,0,0,0,0,0,0,-4.0745362639427185E-10,0,0,0,0,0,0,0]
[2092,-4.0745362639427185E-10,{"$f":"(C431+C519)/2","v":0},0,0,0,0,0,0,0,0,0,0,0,0,0,0,0,0,0,0,0,0,0,0,0,0,0,0,0,0,0,0,0,0,-4.0745362639427185E-10,0,0,0,0,0,0,0]
[2093,-4.0745362639427185E-10,{"$f":"(C432+C520)/2","v":0},0,0,0,0,0,0,0,0,0,0,0,0,0,0,0,0,0,0,0,0,0,0,0,0,0,0,0,0,0,0,0,0,-4.0745362639427185E-10,0,0,0,0,0,0,0]
[2094,{"$f":"SUM(C609:AQ609)","v":-4.0745362639427185E-10},{"$f":"(C433+C521)/2","v":0},0,0,0,0,0,0,0,0,0,0,0,0,0,0,0,0,0,0,0,0,0,0,0,0,0,0,0,0,0,0,0,0,-4.0745362639427185E-10,0,0,0,0,0,0,0]
[2095,-4.0745362639427185E-10,{"$f":"(C434+C522)/2","v":0},0,0,0,0,0,0,0,0,0,0,0,0,0,0,0,0,0,0,0,0,0,0,0,0,0,0,0,0,0,0,0,0,-4.0745362639427185E-10,0,0,0,0,0,0,0]
[2096,-4.0745362639427185E-10,{"$f":"(C435+C523)/2","v":0},0,0,0,0,0,0,0,0,0,0,0,0,0,0,0,0,0,0,0,0,0,0,0,0,0,0,0,0,0,0,0,0,-4.0745362639427185E-10,0,0,0,0,0,0,0]
[2097,-4.0745362639427185E-10,{"$f":"(C436+C524)/2","v":0},0,0,0,0,0,0,0,0,0,0,0,0,0,0,0,0,0,0,0,0,0,0,0,0,0,0,0,0,0,0,0,0,-4.0745362639427185E-10,0,0,0,0,0,0,0]
[2098,-4.0745362639427185E-10,{"$f":"(C437+C525)/2","v":0},0,0,0,0,0,0,0,0,0,0,0,0,0,0,0,0,0,0,0,0,0,0,0,0,0,0,0,0,0,0,0,0,-4.0745362639427185E-10,0,0,0,0,0,0,0]
[2099,-4.0745362639427185E-10,{"$f":"(C438+C526)/2","v":0},0,0,0,0,0,0,0,0,0,0,0,0,0,0,0,0,0,0,0,0,0,0,0,0,0,0,0,0,0,0,0,0,-4.0745362639427185E-10,0,0,0,0,0,0,0]
[2100,{"$f":"SUM(C615:AQ615)","v":-4.0745362639427185E-10},{"$f":"(C439+C527)/2","v":0},0,0,0,0,0,0,0,0,0,0,0,0,0,0,0,0,0,0,0,0,0,0,0,0,0,0,0,0,0,0,0,0,-4.0745362639427185E-10,0,0,0,0,0,0,0]
[]
[null,null,1,2,3,4,5,6,7,8,9,10,11,12,13,14,15,16,17,18,19,20,21,22,23,24,25,26,27,28,29,30,31,32,33,34,35,36,37,38,39,40,41]
["AUC initial value","Total","Properties","Property facilities, structures for transport system","Operating buildings","Administrative buildings","Track systems, wagons","Business equipment (without IT/tools/devices)","Tools/devices","Storage facilities","Hardware","Software","Light vehicles","Heavy vehicles","Gas holders","Natural gas compression","Gas purifiers","Piping and fittings","Gas measuring equipment","Safety equipment","Control and energy technology","Ancillary facilities","Buildings, transport routes","Steel pipelines – encapsulated in PE","Steel pipelines – cathodic protection","Steel pipelines – bituminised","Grey cast iron (> DN 150)","Polyethylene (PE - HD)","Polyvinyl chloride (PVC)","Polyvinyl chloride (PVC)","Fittings","Pig traps","Safety equipment","Gas meters of distribution","Service regulators/meter regulators","Metering equipment","Control equipment","Safety equipment","Control and energy technology","Compressors in gas-mixing systems by duration of use","Ancillary facilities","Buildings","Remote control equipment"]
[2016,{"$f":"SUM(C619:AQ619)","v":0},{"$f":"SUMPRODUCT(('Fixed assets'!$R$2:$R$1000)*('Fixed assets'!$P$2:$P$1000<$A619)*('Fixed assets'!$Q$2:$Q$1000=Costs!C$617))-SUMPRODUCT(('Fixed assets'!$S$2:$S$1000)*('Fixed assets'!$P$2:$P$1000<Costs!$A619)*('Fixed assets'!$Q$2:$Q$1000=Costs!C$617))-SUMPRODUCT(('Fixed assets'!$Q$2:$Q$1000=Costs!C$617)*('Fixed assets'!$U$2:$U$1000=Costs!$A619)*('Fixed assets'!$S$2:$S$1000))+SUMPRODUCT(('Fixed assets'!$Q$2:$Q$1000=Costs!C$617)*('Fixed assets'!$P$2:$P$1000=Costs!$A619)*('Fixed assets'!$U$2:$U$1000=Costs!$A619)*('Fixed assets'!$R$2:$R$1000))","v":0},{"$f":"SUMPRODUCT(('Fixed assets'!$R$2:$R$1000)*('Fixed assets'!$P$2:$P$1000<$A619)*('Fixed assets'!$Q$2:$Q$1000=Costs!D$617))-SUMPRODUCT(('Fixed assets'!$S$2:$S$1000)*('Fixed assets'!$P$2:$P$1000<Costs!$A619)*('Fixed assets'!$Q$2:$Q$1000=Costs!D$617))-SUMPRODUCT(('Fixed assets'!$Q$2:$Q$1000=Costs!D$617)*('Fixed assets'!$U$2:$U$1000=Costs!$A619)*('Fixed assets'!$S$2:$S$1000))+SUMPRODUCT(('Fixed assets'!$Q$2:$Q$1000=Costs!D$617)*('Fixed assets'!$P$2:$P$1000=Costs!$A619)*('Fixed assets'!$U$2:$U$1000=Costs!$A619)*('Fixed assets'!$R$2:$R$1000))","v":0},{"$f":"SUMPRODUCT(('Fixed assets'!$R$2:$R$1000)*('Fixed assets'!$P$2:$P$1000<$A619)*('Fixed assets'!$Q$2:$Q$1000=Costs!E$617))-SUMPRODUCT(('Fixed assets'!$S$2:$S$1000)*('Fixed assets'!$P$2:$P$1000<Costs!$A619)*('Fixed assets'!$Q$2:$Q$1000=Costs!E$617))-SUMPRODUCT(('Fixed assets'!$Q$2:$Q$1000=Costs!E$617)*('Fixed assets'!$U$2:$U$1000=Costs!$A619)*('Fixed assets'!$S$2:$S$1000))+SUMPRODUCT(('Fixed assets'!$Q$2:$Q$1000=Costs!E$617)*('Fixed assets'!$P$2:$P$1000=Costs!$A619)*('Fixed assets'!$U$2:$U$1000=Costs!$A619)*('Fixed assets'!$R$2:$R$1000))","v":0},{"$f":"SUMPRODUCT(('Fixed assets'!$R$2:$R$1000)*('Fixed assets'!$P$2:$P$1000<$A619)*('Fixed assets'!$Q$2:$Q$1000=Costs!F$617))-SUMPRODUCT(('Fixed assets'!$S$2:$S$1000)*('Fixed assets'!$P$2:$P$1000<Costs!$A619)*('Fixed assets'!$Q$2:$Q$1000=Costs!F$617))-SUMPRODUCT(('Fixed assets'!$Q$2:$Q$1000=Costs!F$617)*('Fixed assets'!$U$2:$U$1000=Costs!$A619)*('Fixed assets'!$S$2:$S$1000))+SUMPRODUCT(('Fixed assets'!$Q$2:$Q$1000=Costs!F$617)*('Fixed assets'!$P$2:$P$1000=Costs!$A619)*('Fixed assets'!$U$2:$U$1000=Costs!$A619)*('Fixed assets'!$R$2:$R$1000))","v":0},{"$f":"SUMPRODUCT(('Fixed assets'!$R$2:$R$1000)*('Fixed assets'!$P$2:$P$1000<$A619)*('Fixed assets'!$Q$2:$Q$1000=Costs!G$617))-SUMPRODUCT(('Fixed assets'!$S$2:$S$1000)*('Fixed assets'!$P$2:$P$1000<Costs!$A619)*('Fixed assets'!$Q$2:$Q$1000=Costs!G$617))-SUMPRODUCT(('Fixed assets'!$Q$2:$Q$1000=Costs!G$617)*('Fixed assets'!$U$2:$U$1000=Costs!$A619)*('Fixed assets'!$S$2:$S$1000))+SUMPRODUCT(('Fixed assets'!$Q$2:$Q$1000=Costs!G$617)*('Fixed assets'!$P$2:$P$1000=Costs!$A619)*('Fixed assets'!$U$2:$U$1000=Costs!$A619)*('Fixed assets'!$R$2:$R$1000))","v":0},{"$f":"SUMPRODUCT(('Fixed assets'!$R$2:$R$1000)*('Fixed assets'!$P$2:$P$1000<$A619)*('Fixed assets'!$Q$2:$Q$1000=Costs!H$617))-SUMPRODUCT(('Fixed assets'!$S$2:$S$1000)*('Fixed assets'!$P$2:$P$1000<Costs!$A619)*('Fixed assets'!$Q$2:$Q$1000=Costs!H$617))-SUMPRODUCT(('Fixed assets'!$Q$2:$Q$1000=Costs!H$617)*('Fixed assets'!$U$2:$U$1000=Costs!$A619)*('Fixed assets'!$S$2:$S$1000))+SUMPRODUCT(('Fixed assets'!$Q$2:$Q$1000=Costs!H$617)*('Fixed assets'!$P$2:$P$1000=Costs!$A619)*('Fixed assets'!$U$2:$U$1000=Costs!$A619)*('Fixed assets'!$R$2:$R$1000))","v":0},{"$f":"SUMPRODUCT(('Fixed assets'!$R$2:$R$1000)*('Fixed assets'!$P$2:$P$1000<$A619)*('Fixed assets'!$Q$2:$Q$1000=Costs!I$617))-SUMPRODUCT(('Fixed assets'!$S$2:$S$1000)*('Fixed assets'!$P$2:$P$1000<Costs!$A619)*('Fixed assets'!$Q$2:$Q$1000=Costs!I$617))-SUMPRODUCT(('Fixed assets'!$Q$2:$Q$1000=Costs!I$617)*('Fixed assets'!$U$2:$U$1000=Costs!$A619)*('Fixed assets'!$S$2:$S$1000))+SUMPRODUCT(('Fixed assets'!$Q$2:$Q$1000=Costs!I$617)*('Fixed assets'!$P$2:$P$1000=Costs!$A619)*('Fixed assets'!$U$2:$U$1000=Costs!$A619)*('Fixed assets'!$R$2:$R$1000))","v":0},{"$f":"SUMPRODUCT(('Fixed assets'!$R$2:$R$1000)*('Fixed assets'!$P$2:$P$1000<$A619)*('Fixed assets'!$Q$2:$Q$1000=Costs!J$617))-SUMPRODUCT(('Fixed assets'!$S$2:$S$1000)*('Fixed assets'!$P$2:$P$1000<Costs!$A619)*('Fixed assets'!$Q$2:$Q$1000=Costs!J$617))-SUMPRODUCT(('Fixed assets'!$Q$2:$Q$1000=Costs!J$617)*('Fixed assets'!$U$2:$U$1000=Costs!$A619)*('Fixed assets'!$S$2:$S$1000))+SUMPRODUCT(('Fixed assets'!$Q$2:$Q$1000=Costs!J$617)*('Fixed assets'!$P$2:$P$1000=Costs!$A619)*('Fixed assets'!$U$2:$U$1000=Costs!$A619)*('Fixed assets'!$R$2:$R$1000))","v":0},{"$f":"SUMPRODUCT(('Fixed assets'!$R$2:$R$1000)*('Fixed assets'!$P$2:$P$1000<$A619)*('Fixed assets'!$Q$2:$Q$1000=Costs!K$617))-SUMPRODUCT(('Fixed assets'!$S$2:$S$1000)*('Fixed assets'!$P$2:$P$1000<Costs!$A619)*('Fixed assets'!$Q$2:$Q$1000=Costs!K$617))-SUMPRODUCT(('Fixed assets'!$Q$2:$Q$1000=Costs!K$617)*('Fixed assets'!$U$2:$U$1000=Costs!$A619)*('Fixed assets'!$S$2:$S$1000))+SUMPRODUCT(('Fixed assets'!$Q$2:$Q$1000=Costs!K$617)*('Fixed assets'!$P$2:$P$1000=Costs!$A619)*('Fixed assets'!$U$2:$U$1000=Costs!$A619)*('Fixed assets'!$R$2:$R$1000))","v":0},{"$f":"SUMPRODUCT(('Fixed assets'!$R$2:$R$1000)*('Fixed assets'!$P$2:$P$1000<$A619)*('Fixed assets'!$Q$2:$Q$1000=Costs!L$617))-SUMPRODUCT(('Fixed assets'!$S$2:$S$1000)*('Fixed assets'!$P$2:$P$1000<Costs!$A619)*('Fixed assets'!$Q$2:$Q$1000=Costs!L$617))-SUMPRODUCT(('Fixed assets'!$Q$2:$Q$1000=Costs!L$617)*('Fixed assets'!$U$2:$U$1000=Costs!$A619)*('Fixed assets'!$S$2:$S$1000))+SUMPRODUCT(('Fixed assets'!$Q$2:$Q$1000=Costs!L$617)*('Fixed assets'!$P$2:$P$1000=Costs!$A619)*('Fixed assets'!$U$2:$U$1000=Costs!$A619)*('Fixed assets'!$R$2:$R$1000))","v":0},{"$f":"SUMPRODUCT(('Fixed assets'!$R$2:$R$1000)*('Fixed assets'!$P$2:$P$1000<$A619)*('Fixed assets'!$Q$2:$Q$1000=Costs!M$617))-SUMPRODUCT(('Fixed assets'!$S$2:$S$1000)*('Fixed assets'!$P$2:$P$1000<Costs!$A619)*('Fixed assets'!$Q$2:$Q$1000=Costs!M$617))-SUMPRODUCT(('Fixed assets'!$Q$2:$Q$1000=Costs!M$617)*('Fixed assets'!$U$2:$U$1000=Costs!$A619)*('Fixed assets'!$S$2:$S$1000))+SUMPRODUCT(('Fixed assets'!$Q$2:$Q$1000=Costs!M$617)*('Fixed assets'!$P$2:$P$1000=Costs!$A619)*('Fixed assets'!$U$2:$U$1000=Costs!$A619)*('Fixed assets'!$R$2:$R$1000))","v":0},{"$f":"SUMPRODUCT(('Fixed assets'!$R$2:$R$1000)*('Fixed assets'!$P$2:$P$1000<$A619)*('Fixed assets'!$Q$2:$Q$1000=Costs!N$617))-SUMPRODUCT(('Fixed assets'!$S$2:$S$1000)*('Fixed assets'!$P$2:$P$1000<Costs!$A619)*('Fixed assets'!$Q$2:$Q$1000=Costs!N$617))-SUMPRODUCT(('Fixed assets'!$Q$2:$Q$1000=Costs!N$617)*('Fixed assets'!$U$2:$U$1000=Costs!$A619)*('Fixed assets'!$S$2:$S$1000))+SUMPRODUCT(('Fixed assets'!$Q$2:$Q$1000=Costs!N$617)*('Fixed assets'!$P$2:$P$1000=Costs!$A619)*('Fixed assets'!$U$2:$U$1000=Costs!$A619)*('Fixed assets'!$R$2:$R$1000))","v":0},{"$f":"SUMPRODUCT(('Fixed assets'!$R$2:$R$1000)*('Fixed assets'!$P$2:$P$1000<$A619)*('Fixed assets'!$Q$2:$Q$1000=Costs!O$617))-SUMPRODUCT(('Fixed assets'!$S$2:$S$1000)*('Fixed assets'!$P$2:$P$1000<Costs!$A619)*('Fixed assets'!$Q$2:$Q$1000=Costs!O$617))-SUMPRODUCT(('Fixed assets'!$Q$2:$Q$1000=Costs!O$617)*('Fixed assets'!$U$2:$U$1000=Costs!$A619)*('Fixed assets'!$S$2:$S$1000))+SUMPRODUCT(('Fixed assets'!$Q$2:$Q$1000=Costs!O$617)*('Fixed assets'!$P$2:$P$1000=Costs!$A619)*('Fixed assets'!$U$2:$U$1000=Costs!$A619)*('Fixed assets'!$R$2:$R$1000))","v":0},{"$f":"SUMPRODUCT(('Fixed assets'!$R$2:$R$1000)*('Fixed assets'!$P$2:$P$1000<$A619)*('Fixed assets'!$Q$2:$Q$1000=Costs!P$617))-SUMPRODUCT(('Fixed assets'!$S$2:$S$1000)*('Fixed assets'!$P$2:$P$1000<Costs!$A619)*('Fixed assets'!$Q$2:$Q$1000=Costs!P$617))-SUMPRODUCT(('Fixed assets'!$Q$2:$Q$1000=Costs!P$617)*('Fixed assets'!$U$2:$U$1000=Costs!$A619)*('Fixed assets'!$S$2:$S$1000))+SUMPRODUCT(('Fixed assets'!$Q$2:$Q$1000=Costs!P$617)*('Fixed assets'!$P$2:$P$1000=Costs!$A619)*('Fixed assets'!$U$2:$U$1000=Costs!$A619)*('Fixed assets'!$R$2:$R$1000))","v":0},{"$f":"SUMPRODUCT(('Fixed assets'!$R$2:$R$1000)*('Fixed assets'!$P$2:$P$1000<$A619)*('Fixed assets'!$Q$2:$Q$1000=Costs!Q$617))-SUMPRODUCT(('Fixed assets'!$S$2:$S$1000)*('Fixed assets'!$P$2:$P$1000<Costs!$A619)*('Fixed assets'!$Q$2:$Q$1000=Costs!Q$617))-SUMPRODUCT(('Fixed assets'!$Q$2:$Q$1000=Costs!Q$617)*('Fixed assets'!$U$2:$U$1000=Costs!$A619)*('Fixed assets'!$S$2:$S$1000))+SUMPRODUCT(('Fixed assets'!$Q$2:$Q$1000=Costs!Q$617)*('Fixed assets'!$P$2:$P$1000=Costs!$A619)*('Fixed assets'!$U$2:$U$1000=Costs!$A619)*('Fixed assets'!$R$2:$R$1000))","v":0},{"$f":"SUMPRODUCT(('Fixed assets'!$R$2:$R$1000)*('Fixed assets'!$P$2:$P$1000<$A619)*('Fixed assets'!$Q$2:$Q$1000=Costs!R$617))-SUMPRODUCT(('Fixed assets'!$S$2:$S$1000)*('Fixed assets'!$P$2:$P$1000<Costs!$A619)*('Fixed assets'!$Q$2:$Q$1000=Costs!R$617))-SUMPRODUCT(('Fixed assets'!$Q$2:$Q$1000=Costs!R$617)*('Fixed assets'!$U$2:$U$1000=Costs!$A619)*('Fixed assets'!$S$2:$S$1000))+SUMPRODUCT(('Fixed assets'!$Q$2:$Q$1000=Costs!R$617)*('Fixed assets'!$P$2:$P$1000=Costs!$A619)*('Fixed assets'!$U$2:$U$1000=Costs!$A619)*('Fixed assets'!$R$2:$R$1000))","v":0},{"$f":"SUMPRODUCT(('Fixed assets'!$R$2:$R$1000)*('Fixed assets'!$P$2:$P$1000<$A619)*('Fixed assets'!$Q$2:$Q$1000=Costs!S$617))-SUMPRODUCT(('Fixed assets'!$S$2:$S$1000)*('Fixed assets'!$P$2:$P$1000<Costs!$A619)*('Fixed assets'!$Q$2:$Q$1000=Costs!S$617))-SUMPRODUCT(('Fixed assets'!$Q$2:$Q$1000=Costs!S$617)*('Fixed assets'!$U$2:$U$1000=Costs!$A619)*('Fixed assets'!$S$2:$S$1000))+SUMPRODUCT(('Fixed assets'!$Q$2:$Q$1000=Costs!S$617)*('Fixed assets'!$P$2:$P$1000=Costs!$A619)*('Fixed assets'!$U$2:$U$1000=Costs!$A619)*('Fixed assets'!$R$2:$R$1000))","v":0},{"$f":"SUMPRODUCT(('Fixed assets'!$R$2:$R$1000)*('Fixed assets'!$P$2:$P$1000<$A619)*('Fixed assets'!$Q$2:$Q$1000=Costs!T$617))-SUMPRODUCT(('Fixed assets'!$S$2:$S$1000)*('Fixed assets'!$P$2:$P$1000<Costs!$A619)*('Fixed assets'!$Q$2:$Q$1000=Costs!T$617))-SUMPRODUCT(('Fixed assets'!$Q$2:$Q$1000=Costs!T$617)*('Fixed assets'!$U$2:$U$1000=Costs!$A619)*('Fixed assets'!$S$2:$S$1000))+SUMPRODUCT(('Fixed assets'!$Q$2:$Q$1000=Costs!T$617)*('Fixed assets'!$P$2:$P$1000=Costs!$A619)*('Fixed assets'!$U$2:$U$1000=Costs!$A619)*('Fixed assets'!$R$2:$R$1000))","v":0},{"$f":"SUMPRODUCT(('Fixed assets'!$R$2:$R$1000)*('Fixed assets'!$P$2:$P$1000<$A619)*('Fixed assets'!$Q$2:$Q$1000=Costs!U$617))-SUMPRODUCT(('Fixed assets'!$S$2:$S$1000)*('Fixed assets'!$P$2:$P$1000<Costs!$A619)*('Fixed assets'!$Q$2:$Q$1000=Costs!U$617))-SUMPRODUCT(('Fixed assets'!$Q$2:$Q$1000=Costs!U$617)*('Fixed assets'!$U$2:$U$1000=Costs!$A619)*('Fixed assets'!$S$2:$S$1000))+SUMPRODUCT(('Fixed assets'!$Q$2:$Q$1000=Costs!U$617)*('Fixed assets'!$P$2:$P$1000=Costs!$A619)*('Fixed assets'!$U$2:$U$1000=Costs!$A619)*('Fixed assets'!$R$2:$R$1000))","v":0},{"$f":"SUMPRODUCT(('Fixed assets'!$R$2:$R$1000)*('Fixed assets'!$P$2:$P$1000<$A619)*('Fixed assets'!$Q$2:$Q$1000=Costs!V$617))-SUMPRODUCT(('Fixed assets'!$S$2:$S$1000)*('Fixed assets'!$P$2:$P$1000<Costs!$A619)*('Fixed assets'!$Q$2:$Q$1000=Costs!V$617))-SUMPRODUCT(('Fixed assets'!$Q$2:$Q$1000=Costs!V$617)*('Fixed assets'!$U$2:$U$1000=Costs!$A619)*('Fixed assets'!$S$2:$S$1000))+SUMPRODUCT(('Fixed assets'!$Q$2:$Q$1000=Costs!V$617)*('Fixed assets'!$P$2:$P$1000=Costs!$A619)*('Fixed assets'!$U$2:$U$1000=Costs!$A619)*('Fixed assets'!$R$2:$R$1000))","v":0},{"$f":"SUMPRODUCT(('Fixed assets'!$R$2:$R$1000)*('Fixed assets'!$P$2:$P$1000<$A619)*('Fixed assets'!$Q$2:$Q$1000=Costs!W$617))-SUMPRODUCT(('Fixed assets'!$S$2:$S$1000)*('Fixed assets'!$P$2:$P$1000<Costs!$A619)*('Fixed assets'!$Q$2:$Q$1000=Costs!W$617))-SUMPRODUCT(('Fixed assets'!$Q$2:$Q$1000=Costs!W$617)*('Fixed assets'!$U$2:$U$1000=Costs!$A619)*('Fixed assets'!$S$2:$S$1000))+SUMPRODUCT(('Fixed assets'!$Q$2:$Q$1000=Costs!W$617)*('Fixed assets'!$P$2:$P$1000=Costs!$A619)*('Fixed assets'!$U$2:$U$1000=Costs!$A619)*('Fixed assets'!$R$2:$R$1000))","v":0},{"$f":"SUMPRODUCT(('Fixed assets'!$R$2:$R$1000)*('Fixed assets'!$P$2:$P$1000<$A619)*('Fixed assets'!$Q$2:$Q$1000=Costs!X$617))-SUMPRODUCT(('Fixed assets'!$S$2:$S$1000)*('Fixed assets'!$P$2:$P$1000<Costs!$A619)*('Fixed assets'!$Q$2:$Q$1000=Costs!X$617))-SUMPRODUCT(('Fixed assets'!$Q$2:$Q$1000=Costs!X$617)*('Fixed assets'!$U$2:$U$1000=Costs!$A619)*('Fixed assets'!$S$2:$S$1000))+SUMPRODUCT(('Fixed assets'!$Q$2:$Q$1000=Costs!X$617)*('Fixed assets'!$P$2:$P$1000=Costs!$A619)*('Fixed assets'!$U$2:$U$1000=Costs!$A619)*('Fixed assets'!$R$2:$R$1000))","v":0},{"$f":"SUMPRODUCT(('Fixed assets'!$R$2:$R$1000)*('Fixed assets'!$P$2:$P$1000<$A619)*('Fixed assets'!$Q$2:$Q$1000=Costs!Y$617))-SUMPRODUCT(('Fixed assets'!$S$2:$S$1000)*('Fixed assets'!$P$2:$P$1000<Costs!$A619)*('Fixed assets'!$Q$2:$Q$1000=Costs!Y$617))-SUMPRODUCT(('Fixed assets'!$Q$2:$Q$1000=Costs!Y$617)*('Fixed assets'!$U$2:$U$1000=Costs!$A619)*('Fixed assets'!$S$2:$S$1000))+SUMPRODUCT(('Fixed assets'!$Q$2:$Q$1000=Costs!Y$617)*('Fixed assets'!$P$2:$P$1000=Costs!$A619)*('Fixed assets'!$U$2:$U$1000=Costs!$A619)*('Fixed assets'!$R$2:$R$1000))","v":0},{"$f":"SUMPRODUCT(('Fixed assets'!$R$2:$R$1000)*('Fixed assets'!$P$2:$P$1000<$A619)*('Fixed assets'!$Q$2:$Q$1000=Costs!Z$617))-SUMPRODUCT(('Fixed assets'!$S$2:$S$1000)*('Fixed assets'!$P$2:$P$1000<Costs!$A619)*('Fixed assets'!$Q$2:$Q$1000=Costs!Z$617))-SUMPRODUCT(('Fixed assets'!$Q$2:$Q$1000=Costs!Z$617)*('Fixed assets'!$U$2:$U$1000=Costs!$A619)*('Fixed assets'!$S$2:$S$1000))+SUMPRODUCT(('Fixed assets'!$Q$2:$Q$1000=Costs!Z$617)*('Fixed assets'!$P$2:$P$1000=Costs!$A619)*('Fixed assets'!$U$2:$U$1000=Costs!$A619)*('Fixed assets'!$R$2:$R$1000))","v":0},{"$f":"SUMPRODUCT(('Fixed assets'!$R$2:$R$1000)*('Fixed assets'!$P$2:$P$1000<$A619)*('Fixed assets'!$Q$2:$Q$1000=Costs!AA$617))-SUMPRODUCT(('Fixed assets'!$S$2:$S$1000)*('Fixed assets'!$P$2:$P$1000<Costs!$A619)*('Fixed assets'!$Q$2:$Q$1000=Costs!AA$617))-SUMPRODUCT(('Fixed assets'!$Q$2:$Q$1000=Costs!AA$617)*('Fixed assets'!$U$2:$U$1000=Costs!$A619)*('Fixed assets'!$S$2:$S$1000))+SUMPRODUCT(('Fixed assets'!$Q$2:$Q$1000=Costs!AA$617)*('Fixed assets'!$P$2:$P$1000=Costs!$A619)*('Fixed assets'!$U$2:$U$1000=Costs!$A619)*('Fixed assets'!$R$2:$R$1000))","v":0},{"$f":"SUMPRODUCT(('Fixed assets'!$R$2:$R$1000)*('Fixed assets'!$P$2:$P$1000<$A619)*('Fixed assets'!$Q$2:$Q$1000=Costs!AB$617))-SUMPRODUCT(('Fixed assets'!$S$2:$S$1000)*('Fixed assets'!$P$2:$P$1000<Costs!$A619)*('Fixed assets'!$Q$2:$Q$1000=Costs!AB$617))-SUMPRODUCT(('Fixed assets'!$Q$2:$Q$1000=Costs!AB$617)*('Fixed assets'!$U$2:$U$1000=Costs!$A619)*('Fixed assets'!$S$2:$S$1000))+SUMPRODUCT(('Fixed assets'!$Q$2:$Q$1000=Costs!AB$617)*('Fixed assets'!$P$2:$P$1000=Costs!$A619)*('Fixed assets'!$U$2:$U$1000=Costs!$A619)*('Fixed assets'!$R$2:$R$1000))","v":0},{"$f":"SUMPRODUCT(('Fixed assets'!$R$2:$R$1000)*('Fixed assets'!$P$2:$P$1000<$A619)*('Fixed assets'!$Q$2:$Q$1000=Costs!AC$617))-SUMPRODUCT(('Fixed assets'!$S$2:$S$1000)*('Fixed assets'!$P$2:$P$1000<Costs!$A619)*('Fixed assets'!$Q$2:$Q$1000=Costs!AC$617))-SUMPRODUCT(('Fixed assets'!$Q$2:$Q$1000=Costs!AC$617)*('Fixed assets'!$U$2:$U$1000=Costs!$A619)*('Fixed assets'!$S$2:$S$1000))+SUMPRODUCT(('Fixed assets'!$Q$2:$Q$1000=Costs!AC$617)*('Fixed assets'!$P$2:$P$1000=Costs!$A619)*('Fixed assets'!$U$2:$U$1000=Costs!$A619)*('Fixed assets'!$R$2:$R$1000))","v":0},{"$f":"SUMPRODUCT(('Fixed assets'!$R$2:$R$1000)*('Fixed assets'!$P$2:$P$1000<$A619)*('Fixed assets'!$Q$2:$Q$1000=Costs!AD$617))-SUMPRODUCT(('Fixed assets'!$S$2:$S$1000)*('Fixed assets'!$P$2:$P$1000<Costs!$A619)*('Fixed assets'!$Q$2:$Q$1000=Costs!AD$617))-SUMPRODUCT(('Fixed assets'!$Q$2:$Q$1000=Costs!AD$617)*('Fixed assets'!$U$2:$U$1000=Costs!$A619)*('Fixed assets'!$S$2:$S$1000))+SUMPRODUCT(('Fixed assets'!$Q$2:$Q$1000=Costs!AD$617)*('Fixed assets'!$P$2:$P$1000=Costs!$A619)*('Fixed assets'!$U$2:$U$1000=Costs!$A619)*('Fixed assets'!$R$2:$R$1000))","v":0},{"$f":"SUMPRODUCT(('Fixed assets'!$R$2:$R$1000)*('Fixed assets'!$P$2:$P$1000<$A619)*('Fixed assets'!$Q$2:$Q$1000=Costs!AE$617))-SUMPRODUCT(('Fixed assets'!$S$2:$S$1000)*('Fixed assets'!$P$2:$P$1000<Costs!$A619)*('Fixed assets'!$Q$2:$Q$1000=Costs!AE$617))-SUMPRODUCT(('Fixed assets'!$Q$2:$Q$1000=Costs!AE$617)*('Fixed assets'!$U$2:$U$1000=Costs!$A619)*('Fixed assets'!$S$2:$S$1000))+SUMPRODUCT(('Fixed assets'!$Q$2:$Q$1000=Costs!AE$617)*('Fixed assets'!$P$2:$P$1000=Costs!$A619)*('Fixed assets'!$U$2:$U$1000=Costs!$A619)*('Fixed assets'!$R$2:$R$1000))","v":0},{"$f":"SUMPRODUCT(('Fixed assets'!$R$2:$R$1000)*('Fixed assets'!$P$2:$P$1000<$A619)*('Fixed assets'!$Q$2:$Q$1000=Costs!AF$617))-SUMPRODUCT(('Fixed assets'!$S$2:$S$1000)*('Fixed assets'!$P$2:$P$1000<Costs!$A619)*('Fixed assets'!$Q$2:$Q$1000=Costs!AF$617))-SUMPRODUCT(('Fixed assets'!$Q$2:$Q$1000=Costs!AF$617)*('Fixed assets'!$U$2:$U$1000=Costs!$A619)*('Fixed assets'!$S$2:$S$1000))+SUMPRODUCT(('Fixed assets'!$Q$2:$Q$1000=Costs!AF$617)*('Fixed assets'!$P$2:$P$1000=Costs!$A619)*('Fixed assets'!$U$2:$U$1000=Costs!$A619)*('Fixed assets'!$R$2:$R$1000))","v":0},{"$f":"SUMPRODUCT(('Fixed assets'!$R$2:$R$1000)*('Fixed assets'!$P$2:$P$1000<$A619)*('Fixed assets'!$Q$2:$Q$1000=Costs!AG$617))-SUMPRODUCT(('Fixed assets'!$S$2:$S$1000)*('Fixed assets'!$P$2:$P$1000<Costs!$A619)*('Fixed assets'!$Q$2:$Q$1000=Costs!AG$617))-SUMPRODUCT(('Fixed assets'!$Q$2:$Q$1000=Costs!AG$617)*('Fixed assets'!$U$2:$U$1000=Costs!$A619)*('Fixed assets'!$S$2:$S$1000))+SUMPRODUCT(('Fixed assets'!$Q$2:$Q$1000=Costs!AG$617)*('Fixed assets'!$P$2:$P$1000=Costs!$A619)*('Fixed assets'!$U$2:$U$1000=Costs!$A619)*('Fixed assets'!$R$2:$R$1000))","v":0},{"$f":"SUMPRODUCT(('Fixed assets'!$R$2:$R$1000)*('Fixed assets'!$P$2:$P$1000<$A619)*('Fixed assets'!$Q$2:$Q$1000=Costs!AH$617))-SUMPRODUCT(('Fixed assets'!$S$2:$S$1000)*('Fixed assets'!$P$2:$P$1000<Costs!$A619)*('Fixed assets'!$Q$2:$Q$1000=Costs!AH$617))-SUMPRODUCT(('Fixed assets'!$Q$2:$Q$1000=Costs!AH$617)*('Fixed assets'!$U$2:$U$1000=Costs!$A619)*('Fixed assets'!$S$2:$S$1000))+SUMPRODUCT(('Fixed assets'!$Q$2:$Q$1000=Costs!AH$617)*('Fixed assets'!$P$2:$P$1000=Costs!$A619)*('Fixed assets'!$U$2:$U$1000=Costs!$A619)*('Fixed assets'!$R$2:$R$1000))","v":0},{"$f":"SUMPRODUCT(('Fixed assets'!$R$2:$R$1000)*('Fixed assets'!$P$2:$P$1000<$A619)*('Fixed assets'!$Q$2:$Q$1000=Costs!AI$617))-SUMPRODUCT(('Fixed assets'!$S$2:$S$1000)*('Fixed assets'!$P$2:$P$1000<Costs!$A619)*('Fixed assets'!$Q$2:$Q$1000=Costs!AI$617))-SUMPRODUCT(('Fixed assets'!$Q$2:$Q$1000=Costs!AI$617)*('Fixed assets'!$U$2:$U$1000=Costs!$A619)*('Fixed assets'!$S$2:$S$1000))+SUMPRODUCT(('Fixed assets'!$Q$2:$Q$1000=Costs!AI$617)*('Fixed assets'!$P$2:$P$1000=Costs!$A619)*('Fixed assets'!$U$2:$U$1000=Costs!$A619)*('Fixed assets'!$R$2:$R$1000))","v":0},{"$f":"SUMPRODUCT(('Fixed assets'!$R$2:$R$1000)*('Fixed assets'!$P$2:$P$1000<$A619)*('Fixed assets'!$Q$2:$Q$1000=Costs!AJ$617))-SUMPRODUCT(('Fixed assets'!$S$2:$S$1000)*('Fixed assets'!$P$2:$P$1000<Costs!$A619)*('Fixed assets'!$Q$2:$Q$1000=Costs!AJ$617))-SUMPRODUCT(('Fixed assets'!$Q$2:$Q$1000=Costs!AJ$617)*('Fixed assets'!$U$2:$U$1000=Costs!$A619)*('Fixed assets'!$S$2:$S$1000))+SUMPRODUCT(('Fixed assets'!$Q$2:$Q$1000=Costs!AJ$617)*('Fixed assets'!$P$2:$P$1000=Costs!$A619)*('Fixed assets'!$U$2:$U$1000=Costs!$A619)*('Fixed assets'!$R$2:$R$1000))","v":0},{"$f":"SUMPRODUCT(('Fixed assets'!$R$2:$R$1000)*('Fixed assets'!$P$2:$P$1000<$A619)*('Fixed assets'!$Q$2:$Q$1000=Costs!AK$617))-SUMPRODUCT(('Fixed assets'!$S$2:$S$1000)*('Fixed assets'!$P$2:$P$1000<Costs!$A619)*('Fixed assets'!$Q$2:$Q$1000=Costs!AK$617))-SUMPRODUCT(('Fixed assets'!$Q$2:$Q$1000=Costs!AK$617)*('Fixed assets'!$U$2:$U$1000=Costs!$A619)*('Fixed assets'!$S$2:$S$1000))+SUMPRODUCT(('Fixed assets'!$Q$2:$Q$1000=Costs!AK$617)*('Fixed assets'!$P$2:$P$1000=Costs!$A619)*('Fixed assets'!$U$2:$U$1000=Costs!$A619)*('Fixed assets'!$R$2:$R$1000))","v":0},{"$f":"SUMPRODUCT(('Fixed assets'!$R$2:$R$1000)*('Fixed assets'!$P$2:$P$1000<$A619)*('Fixed assets'!$Q$2:$Q$1000=Costs!AL$617))-SUMPRODUCT(('Fixed assets'!$S$2:$S$1000)*('Fixed assets'!$P$2:$P$1000<Costs!$A619)*('Fixed assets'!$Q$2:$Q$1000=Costs!AL$617))-SUMPRODUCT(('Fixed assets'!$Q$2:$Q$1000=Costs!AL$617)*('Fixed assets'!$U$2:$U$1000=Costs!$A619)*('Fixed assets'!$S$2:$S$1000))+SUMPRODUCT(('Fixed assets'!$Q$2:$Q$1000=Costs!AL$617)*('Fixed assets'!$P$2:$P$1000=Costs!$A619)*('Fixed assets'!$U$2:$U$1000=Costs!$A619)*('Fixed assets'!$R$2:$R$1000))","v":0},{"$f":"SUMPRODUCT(('Fixed assets'!$R$2:$R$1000)*('Fixed assets'!$P$2:$P$1000<$A619)*('Fixed assets'!$Q$2:$Q$1000=Costs!AM$617))-SUMPRODUCT(('Fixed assets'!$S$2:$S$1000)*('Fixed assets'!$P$2:$P$1000<Costs!$A619)*('Fixed assets'!$Q$2:$Q$1000=Costs!AM$617))-SUMPRODUCT(('Fixed assets'!$Q$2:$Q$1000=Costs!AM$617)*('Fixed assets'!$U$2:$U$1000=Costs!$A619)*('Fixed assets'!$S$2:$S$1000))+SUMPRODUCT(('Fixed assets'!$Q$2:$Q$1000=Costs!AM$617)*('Fixed assets'!$P$2:$P$1000=Costs!$A619)*('Fixed assets'!$U$2:$U$1000=Costs!$A619)*('Fixed assets'!$R$2:$R$1000))","v":0},{"$f":"SUMPRODUCT(('Fixed assets'!$R$2:$R$1000)*('Fixed assets'!$P$2:$P$1000<$A619)*('Fixed assets'!$Q$2:$Q$1000=Costs!AN$617))-SUMPRODUCT(('Fixed assets'!$S$2:$S$1000)*('Fixed assets'!$P$2:$P$1000<Costs!$A619)*('Fixed assets'!$Q$2:$Q$1000=Costs!AN$617))-SUMPRODUCT(('Fixed assets'!$Q$2:$Q$1000=Costs!AN$617)*('Fixed assets'!$U$2:$U$1000=Costs!$A619)*('Fixed assets'!$S$2:$S$1000))+SUMPRODUCT(('Fixed assets'!$Q$2:$Q$1000=Costs!AN$617)*('Fixed assets'!$P$2:$P$1000=Costs!$A619)*('Fixed assets'!$U$2:$U$1000=Costs!$A619)*('Fixed assets'!$R$2:$R$1000))","v":0},{"$f":"SUMPRODUCT(('Fixed assets'!$R$2:$R$1000)*('Fixed assets'!$P$2:$P$1000<$A619)*('Fixed assets'!$Q$2:$Q$1000=Costs!AO$617))-SUMPRODUCT(('Fixed assets'!$S$2:$S$1000)*('Fixed assets'!$P$2:$P$1000<Costs!$A619)*('Fixed assets'!$Q$2:$Q$1000=Costs!AO$617))-SUMPRODUCT(('Fixed assets'!$Q$2:$Q$1000=Costs!AO$617)*('Fixed assets'!$U$2:$U$1000=Costs!$A619)*('Fixed assets'!$S$2:$S$1000))+SUMPRODUCT(('Fixed assets'!$Q$2:$Q$1000=Costs!AO$617)*('Fixed assets'!$P$2:$P$1000=Costs!$A619)*('Fixed assets'!$U$2:$U$1000=Costs!$A619)*('Fixed assets'!$R$2:$R$1000))","v":0},{"$f":"SUMPRODUCT(('Fixed assets'!$R$2:$R$1000)*('Fixed assets'!$P$2:$P$1000<$A619)*('Fixed assets'!$Q$2:$Q$1000=Costs!AP$617))-SUMPRODUCT(('Fixed assets'!$S$2:$S$1000)*('Fixed assets'!$P$2:$P$1000<Costs!$A619)*('Fixed assets'!$Q$2:$Q$1000=Costs!AP$617))-SUMPRODUCT(('Fixed assets'!$Q$2:$Q$1000=Costs!AP$617)*('Fixed assets'!$U$2:$U$1000=Costs!$A619)*('Fixed assets'!$S$2:$S$1000))+SUMPRODUCT(('Fixed assets'!$Q$2:$Q$1000=Costs!AP$617)*('Fixed assets'!$P$2:$P$1000=Costs!$A619)*('Fixed assets'!$U$2:$U$1000=Costs!$A619)*('Fixed assets'!$R$2:$R$1000))","v":0},{"$f":"SUMPRODUCT(('Fixed assets'!$R$2:$R$1000)*('Fixed assets'!$P$2:$P$1000<$A619)*('Fixed assets'!$Q$2:$Q$1000=Costs!AQ$617))-SUMPRODUCT(('Fixed assets'!$S$2:$S$1000)*('Fixed assets'!$P$2:$P$1000<Costs!$A619)*('Fixed assets'!$Q$2:$Q$1000=Costs!AQ$617))-SUMPRODUCT(('Fixed assets'!$Q$2:$Q$1000=Costs!AQ$617)*('Fixed assets'!$U$2:$U$1000=Costs!$A619)*('Fixed assets'!$S$2:$S$1000))+SUMPRODUCT(('Fixed assets'!$Q$2:$Q$1000=Costs!AQ$617)*('Fixed assets'!$P$2:$P$1000=Costs!$A619)*('Fixed assets'!$U$2:$U$1000=Costs!$A619)*('Fixed assets'!$R$2:$R$1000))","v":0}]
[2017,0,{"$f":"SUMPRODUCT(('Fixed assets'!$R$2:$R$1000)*('Fixed assets'!$P$2:$P$1000<$A620)*('Fixed assets'!$Q$2:$Q$1000=Costs!C$617))-SUMPRODUCT(('Fixed assets'!$S$2:$S$1000)*('Fixed assets'!$P$2:$P$1000<Costs!$A620)*('Fixed assets'!$Q$2:$Q$1000=Costs!C$617))-SUMPRODUCT(('Fixed assets'!$Q$2:$Q$1000=Costs!C$617)*('Fixed assets'!$U$2:$U$1000=Costs!$A620)*('Fixed assets'!$S$2:$S$1000))+SUMPRODUCT(('Fixed assets'!$Q$2:$Q$1000=Costs!C$617)*('Fixed assets'!$P$2:$P$1000=Costs!$A620)*('Fixed assets'!$U$2:$U$1000=Costs!$A620)*('Fixed assets'!$R$2:$R$1000))","v":0},{"$f":"SUMPRODUCT(('Fixed assets'!$R$2:$R$1000)*('Fixed assets'!$P$2:$P$1000<$A620)*('Fixed assets'!$Q$2:$Q$1000=Costs!D$617))-SUMPRODUCT(('Fixed assets'!$S$2:$S$1000)*('Fixed assets'!$P$2:$P$1000<Costs!$A620)*('Fixed assets'!$Q$2:$Q$1000=Costs!D$617))-SUMPRODUCT(('Fixed assets'!$Q$2:$Q$1000=Costs!D$617)*('Fixed assets'!$U$2:$U$1000=Costs!$A620)*('Fixed assets'!$S$2:$S$1000))+SUMPRODUCT(('Fixed assets'!$Q$2:$Q$1000=Costs!D$617)*('Fixed assets'!$P$2:$P$1000=Costs!$A620)*('Fixed assets'!$U$2:$U$1000=Costs!$A620)*('Fixed assets'!$R$2:$R$1000))","v":0},{"$f":"SUMPRODUCT(('Fixed assets'!$R$2:$R$1000)*('Fixed assets'!$P$2:$P$1000<$A620)*('Fixed assets'!$Q$2:$Q$1000=Costs!E$617))-SUMPRODUCT(('Fixed assets'!$S$2:$S$1000)*('Fixed assets'!$P$2:$P$1000<Costs!$A620)*('Fixed assets'!$Q$2:$Q$1000=Costs!E$617))-SUMPRODUCT(('Fixed assets'!$Q$2:$Q$1000=Costs!E$617)*('Fixed assets'!$U$2:$U$1000=Costs!$A620)*('Fixed assets'!$S$2:$S$1000))+SUMPRODUCT(('Fixed assets'!$Q$2:$Q$1000=Costs!E$617)*('Fixed assets'!$P$2:$P$1000=Costs!$A620)*('Fixed assets'!$U$2:$U$1000=Costs!$A620)*('Fixed assets'!$R$2:$R$1000))","v":0},{"$f":"SUMPRODUCT(('Fixed assets'!$R$2:$R$1000)*('Fixed assets'!$P$2:$P$1000<$A620)*('Fixed assets'!$Q$2:$Q$1000=Costs!F$617))-SUMPRODUCT(('Fixed assets'!$S$2:$S$1000)*('Fixed assets'!$P$2:$P$1000<Costs!$A620)*('Fixed assets'!$Q$2:$Q$1000=Costs!F$617))-SUMPRODUCT(('Fixed assets'!$Q$2:$Q$1000=Costs!F$617)*('Fixed assets'!$U$2:$U$1000=Costs!$A620)*('Fixed assets'!$S$2:$S$1000))+SUMPRODUCT(('Fixed assets'!$Q$2:$Q$1000=Costs!F$617)*('Fixed assets'!$P$2:$P$1000=Costs!$A620)*('Fixed assets'!$U$2:$U$1000=Costs!$A620)*('Fixed assets'!$R$2:$R$1000))","v":0},{"$f":"SUMPRODUCT(('Fixed assets'!$R$2:$R$1000)*('Fixed assets'!$P$2:$P$1000<$A620)*('Fixed assets'!$Q$2:$Q$1000=Costs!G$617))-SUMPRODUCT(('Fixed assets'!$S$2:$S$1000)*('Fixed assets'!$P$2:$P$1000<Costs!$A620)*('Fixed assets'!$Q$2:$Q$1000=Costs!G$617))-SUMPRODUCT(('Fixed assets'!$Q$2:$Q$1000=Costs!G$617)*('Fixed assets'!$U$2:$U$1000=Costs!$A620)*('Fixed assets'!$S$2:$S$1000))+SUMPRODUCT(('Fixed assets'!$Q$2:$Q$1000=Costs!G$617)*('Fixed assets'!$P$2:$P$1000=Costs!$A620)*('Fixed assets'!$U$2:$U$1000=Costs!$A620)*('Fixed assets'!$R$2:$R$1000))","v":0},{"$f":"SUMPRODUCT(('Fixed assets'!$R$2:$R$1000)*('Fixed assets'!$P$2:$P$1000<$A620)*('Fixed assets'!$Q$2:$Q$1000=Costs!H$617))-SUMPRODUCT(('Fixed assets'!$S$2:$S$1000)*('Fixed assets'!$P$2:$P$1000<Costs!$A620)*('Fixed assets'!$Q$2:$Q$1000=Costs!H$617))-SUMPRODUCT(('Fixed assets'!$Q$2:$Q$1000=Costs!H$617)*('Fixed assets'!$U$2:$U$1000=Costs!$A620)*('Fixed assets'!$S$2:$S$1000))+SUMPRODUCT(('Fixed assets'!$Q$2:$Q$1000=Costs!H$617)*('Fixed assets'!$P$2:$P$1000=Costs!$A620)*('Fixed assets'!$U$2:$U$1000=Costs!$A620)*('Fixed assets'!$R$2:$R$1000))","v":0},{"$f":"SUMPRODUCT(('Fixed assets'!$R$2:$R$1000)*('Fixed assets'!$P$2:$P$1000<$A620)*('Fixed assets'!$Q$2:$Q$1000=Costs!I$617))-SUMPRODUCT(('Fixed assets'!$S$2:$S$1000)*('Fixed assets'!$P$2:$P$1000<Costs!$A620)*('Fixed assets'!$Q$2:$Q$1000=Costs!I$617))-SUMPRODUCT(('Fixed assets'!$Q$2:$Q$1000=Costs!I$617)*('Fixed assets'!$U$2:$U$1000=Costs!$A620)*('Fixed assets'!$S$2:$S$1000))+SUMPRODUCT(('Fixed assets'!$Q$2:$Q$1000=Costs!I$617)*('Fixed assets'!$P$2:$P$1000=Costs!$A620)*('Fixed assets'!$U$2:$U$1000=Costs!$A620)*('Fixed assets'!$R$2:$R$1000))","v":0},{"$f":"SUMPRODUCT(('Fixed assets'!$R$2:$R$1000)*('Fixed assets'!$P$2:$P$1000<$A620)*('Fixed assets'!$Q$2:$Q$1000=Costs!J$617))-SUMPRODUCT(('Fixed assets'!$S$2:$S$1000)*('Fixed assets'!$P$2:$P$1000<Costs!$A620)*('Fixed assets'!$Q$2:$Q$1000=Costs!J$617))-SUMPRODUCT(('Fixed assets'!$Q$2:$Q$1000=Costs!J$617)*('Fixed assets'!$U$2:$U$1000=Costs!$A620)*('Fixed assets'!$S$2:$S$1000))+SUMPRODUCT(('Fixed assets'!$Q$2:$Q$1000=Costs!J$617)*('Fixed assets'!$P$2:$P$1000=Costs!$A620)*('Fixed assets'!$U$2:$U$1000=Costs!$A620)*('Fixed assets'!$R$2:$R$1000))","v":0},{"$f":"SUMPRODUCT(('Fixed assets'!$R$2:$R$1000)*('Fixed assets'!$P$2:$P$1000<$A620)*('Fixed assets'!$Q$2:$Q$1000=Costs!K$617))-SUMPRODUCT(('Fixed assets'!$S$2:$S$1000)*('Fixed assets'!$P$2:$P$1000<Costs!$A620)*('Fixed assets'!$Q$2:$Q$1000=Costs!K$617))-SUMPRODUCT(('Fixed assets'!$Q$2:$Q$1000=Costs!K$617)*('Fixed assets'!$U$2:$U$1000=Costs!$A620)*('Fixed assets'!$S$2:$S$1000))+SUMPRODUCT(('Fixed assets'!$Q$2:$Q$1000=Costs!K$617)*('Fixed assets'!$P$2:$P$1000=Costs!$A620)*('Fixed assets'!$U$2:$U$1000=Costs!$A620)*('Fixed assets'!$R$2:$R$1000))","v":0},{"$f":"SUMPRODUCT(('Fixed assets'!$R$2:$R$1000)*('Fixed assets'!$P$2:$P$1000<$A620)*('Fixed assets'!$Q$2:$Q$1000=Costs!L$617))-SUMPRODUCT(('Fixed assets'!$S$2:$S$1000)*('Fixed assets'!$P$2:$P$1000<Costs!$A620)*('Fixed assets'!$Q$2:$Q$1000=Costs!L$617))-SUMPRODUCT(('Fixed assets'!$Q$2:$Q$1000=Costs!L$617)*('Fixed assets'!$U$2:$U$1000=Costs!$A620)*('Fixed assets'!$S$2:$S$1000))+SUMPRODUCT(('Fixed assets'!$Q$2:$Q$1000=Costs!L$617)*('Fixed assets'!$P$2:$P$1000=Costs!$A620)*('Fixed assets'!$U$2:$U$1000=Costs!$A620)*('Fixed assets'!$R$2:$R$1000))","v":0},{"$f":"SUMPRODUCT(('Fixed assets'!$R$2:$R$1000)*('Fixed assets'!$P$2:$P$1000<$A620)*('Fixed assets'!$Q$2:$Q$1000=Costs!M$617))-SUMPRODUCT(('Fixed assets'!$S$2:$S$1000)*('Fixed assets'!$P$2:$P$1000<Costs!$A620)*('Fixed assets'!$Q$2:$Q$1000=Costs!M$617))-SUMPRODUCT(('Fixed assets'!$Q$2:$Q$1000=Costs!M$617)*('Fixed assets'!$U$2:$U$1000=Costs!$A620)*('Fixed assets'!$S$2:$S$1000))+SUMPRODUCT(('Fixed assets'!$Q$2:$Q$1000=Costs!M$617)*('Fixed assets'!$P$2:$P$1000=Costs!$A620)*('Fixed assets'!$U$2:$U$1000=Costs!$A620)*('Fixed assets'!$R$2:$R$1000))","v":0},{"$f":"SUMPRODUCT(('Fixed assets'!$R$2:$R$1000)*('Fixed assets'!$P$2:$P$1000<$A620)*('Fixed assets'!$Q$2:$Q$1000=Costs!N$617))-SUMPRODUCT(('Fixed assets'!$S$2:$S$1000)*('Fixed assets'!$P$2:$P$1000<Costs!$A620)*('Fixed assets'!$Q$2:$Q$1000=Costs!N$617))-SUMPRODUCT(('Fixed assets'!$Q$2:$Q$1000=Costs!N$617)*('Fixed assets'!$U$2:$U$1000=Costs!$A620)*('Fixed assets'!$S$2:$S$1000))+SUMPRODUCT(('Fixed assets'!$Q$2:$Q$1000=Costs!N$617)*('Fixed assets'!$P$2:$P$1000=Costs!$A620)*('Fixed assets'!$U$2:$U$1000=Costs!$A620)*('Fixed assets'!$R$2:$R$1000))","v":0},{"$f":"SUMPRODUCT(('Fixed assets'!$R$2:$R$1000)*('Fixed assets'!$P$2:$P$1000<$A620)*('Fixed assets'!$Q$2:$Q$1000=Costs!O$617))-SUMPRODUCT(('Fixed assets'!$S$2:$S$1000)*('Fixed assets'!$P$2:$P$1000<Costs!$A620)*('Fixed assets'!$Q$2:$Q$1000=Costs!O$617))-SUMPRODUCT(('Fixed assets'!$Q$2:$Q$1000=Costs!O$617)*('Fixed assets'!$U$2:$U$1000=Costs!$A620)*('Fixed assets'!$S$2:$S$1000))+SUMPRODUCT(('Fixed assets'!$Q$2:$Q$1000=Costs!O$617)*('Fixed assets'!$P$2:$P$1000=Costs!$A620)*('Fixed assets'!$U$2:$U$1000=Costs!$A620)*('Fixed assets'!$R$2:$R$1000))","v":0},{"$f":"SUMPRODUCT(('Fixed assets'!$R$2:$R$1000)*('Fixed assets'!$P$2:$P$1000<$A620)*('Fixed assets'!$Q$2:$Q$1000=Costs!P$617))-SUMPRODUCT(('Fixed assets'!$S$2:$S$1000)*('Fixed assets'!$P$2:$P$1000<Costs!$A620)*('Fixed assets'!$Q$2:$Q$1000=Costs!P$617))-SUMPRODUCT(('Fixed assets'!$Q$2:$Q$1000=Costs!P$617)*('Fixed assets'!$U$2:$U$1000=Costs!$A620)*('Fixed assets'!$S$2:$S$1000))+SUMPRODUCT(('Fixed assets'!$Q$2:$Q$1000=Costs!P$617)*('Fixed assets'!$P$2:$P$1000=Costs!$A620)*('Fixed assets'!$U$2:$U$1000=Costs!$A620)*('Fixed assets'!$R$2:$R$1000))","v":0},{"$f":"SUMPRODUCT(('Fixed assets'!$R$2:$R$1000)*('Fixed assets'!$P$2:$P$1000<$A620)*('Fixed assets'!$Q$2:$Q$1000=Costs!Q$617))-SUMPRODUCT(('Fixed assets'!$S$2:$S$1000)*('Fixed assets'!$P$2:$P$1000<Costs!$A620)*('Fixed assets'!$Q$2:$Q$1000=Costs!Q$617))-SUMPRODUCT(('Fixed assets'!$Q$2:$Q$1000=Costs!Q$617)*('Fixed assets'!$U$2:$U$1000=Costs!$A620)*('Fixed assets'!$S$2:$S$1000))+SUMPRODUCT(('Fixed assets'!$Q$2:$Q$1000=Costs!Q$617)*('Fixed assets'!$P$2:$P$1000=Costs!$A620)*('Fixed assets'!$U$2:$U$1000=Costs!$A620)*('Fixed assets'!$R$2:$R$1000))","v":0},{"$f":"SUMPRODUCT(('Fixed assets'!$R$2:$R$1000)*('Fixed assets'!$P$2:$P$1000<$A620)*('Fixed assets'!$Q$2:$Q$1000=Costs!R$617))-SUMPRODUCT(('Fixed assets'!$S$2:$S$1000)*('Fixed assets'!$P$2:$P$1000<Costs!$A620)*('Fixed assets'!$Q$2:$Q$1000=Costs!R$617))-SUMPRODUCT(('Fixed assets'!$Q$2:$Q$1000=Costs!R$617)*('Fixed assets'!$U$2:$U$1000=Costs!$A620)*('Fixed assets'!$S$2:$S$1000))+SUMPRODUCT(('Fixed assets'!$Q$2:$Q$1000=Costs!R$617)*('Fixed assets'!$P$2:$P$1000=Costs!$A620)*('Fixed assets'!$U$2:$U$1000=Costs!$A620)*('Fixed assets'!$R$2:$R$1000))","v":0},{"$f":"SUMPRODUCT(('Fixed assets'!$R$2:$R$1000)*('Fixed assets'!$P$2:$P$1000<$A620)*('Fixed assets'!$Q$2:$Q$1000=Costs!S$617))-SUMPRODUCT(('Fixed assets'!$S$2:$S$1000)*('Fixed assets'!$P$2:$P$1000<Costs!$A620)*('Fixed assets'!$Q$2:$Q$1000=Costs!S$617))-SUMPRODUCT(('Fixed assets'!$Q$2:$Q$1000=Costs!S$617)*('Fixed assets'!$U$2:$U$1000=Costs!$A620)*('Fixed assets'!$S$2:$S$1000))+SUMPRODUCT(('Fixed assets'!$Q$2:$Q$1000=Costs!S$617)*('Fixed assets'!$P$2:$P$1000=Costs!$A620)*('Fixed assets'!$U$2:$U$1000=Costs!$A620)*('Fixed assets'!$R$2:$R$1000))","v":0},{"$f":"SUMPRODUCT(('Fixed assets'!$R$2:$R$1000)*('Fixed assets'!$P$2:$P$1000<$A620)*('Fixed assets'!$Q$2:$Q$1000=Costs!T$617))-SUMPRODUCT(('Fixed assets'!$S$2:$S$1000)*('Fixed assets'!$P$2:$P$1000<Costs!$A620)*('Fixed assets'!$Q$2:$Q$1000=Costs!T$617))-SUMPRODUCT(('Fixed assets'!$Q$2:$Q$1000=Costs!T$617)*('Fixed assets'!$U$2:$U$1000=Costs!$A620)*('Fixed assets'!$S$2:$S$1000))+SUMPRODUCT(('Fixed assets'!$Q$2:$Q$1000=Costs!T$617)*('Fixed assets'!$P$2:$P$1000=Costs!$A620)*('Fixed assets'!$U$2:$U$1000=Costs!$A620)*('Fixed assets'!$R$2:$R$1000))","v":0},{"$f":"SUMPRODUCT(('Fixed assets'!$R$2:$R$1000)*('Fixed assets'!$P$2:$P$1000<$A620)*('Fixed assets'!$Q$2:$Q$1000=Costs!U$617))-SUMPRODUCT(('Fixed assets'!$S$2:$S$1000)*('Fixed assets'!$P$2:$P$1000<Costs!$A620)*('Fixed assets'!$Q$2:$Q$1000=Costs!U$617))-SUMPRODUCT(('Fixed assets'!$Q$2:$Q$1000=Costs!U$617)*('Fixed assets'!$U$2:$U$1000=Costs!$A620)*('Fixed assets'!$S$2:$S$1000))+SUMPRODUCT(('Fixed assets'!$Q$2:$Q$1000=Costs!U$617)*('Fixed assets'!$P$2:$P$1000=Costs!$A620)*('Fixed assets'!$U$2:$U$1000=Costs!$A620)*('Fixed assets'!$R$2:$R$1000))","v":0},{"$f":"SUMPRODUCT(('Fixed assets'!$R$2:$R$1000)*('Fixed assets'!$P$2:$P$1000<$A620)*('Fixed assets'!$Q$2:$Q$1000=Costs!V$617))-SUMPRODUCT(('Fixed assets'!$S$2:$S$1000)*('Fixed assets'!$P$2:$P$1000<Costs!$A620)*('Fixed assets'!$Q$2:$Q$1000=Costs!V$617))-SUMPRODUCT(('Fixed assets'!$Q$2:$Q$1000=Costs!V$617)*('Fixed assets'!$U$2:$U$1000=Costs!$A620)*('Fixed assets'!$S$2:$S$1000))+SUMPRODUCT(('Fixed assets'!$Q$2:$Q$1000=Costs!V$617)*('Fixed assets'!$P$2:$P$1000=Costs!$A620)*('Fixed assets'!$U$2:$U$1000=Costs!$A620)*('Fixed assets'!$R$2:$R$1000))","v":0},{"$f":"SUMPRODUCT(('Fixed assets'!$R$2:$R$1000)*('Fixed assets'!$P$2:$P$1000<$A620)*('Fixed assets'!$Q$2:$Q$1000=Costs!W$617))-SUMPRODUCT(('Fixed assets'!$S$2:$S$1000)*('Fixed assets'!$P$2:$P$1000<Costs!$A620)*('Fixed assets'!$Q$2:$Q$1000=Costs!W$617))-SUMPRODUCT(('Fixed assets'!$Q$2:$Q$1000=Costs!W$617)*('Fixed assets'!$U$2:$U$1000=Costs!$A620)*('Fixed assets'!$S$2:$S$1000))+SUMPRODUCT(('Fixed assets'!$Q$2:$Q$1000=Costs!W$617)*('Fixed assets'!$P$2:$P$1000=Costs!$A620)*('Fixed assets'!$U$2:$U$1000=Costs!$A620)*('Fixed assets'!$R$2:$R$1000))","v":0},{"$f":"SUMPRODUCT(('Fixed assets'!$R$2:$R$1000)*('Fixed assets'!$P$2:$P$1000<$A620)*('Fixed assets'!$Q$2:$Q$1000=Costs!X$617))-SUMPRODUCT(('Fixed assets'!$S$2:$S$1000)*('Fixed assets'!$P$2:$P$1000<Costs!$A620)*('Fixed assets'!$Q$2:$Q$1000=Costs!X$617))-SUMPRODUCT(('Fixed assets'!$Q$2:$Q$1000=Costs!X$617)*('Fixed assets'!$U$2:$U$1000=Costs!$A620)*('Fixed assets'!$S$2:$S$1000))+SUMPRODUCT(('Fixed assets'!$Q$2:$Q$1000=Costs!X$617)*('Fixed assets'!$P$2:$P$1000=Costs!$A620)*('Fixed assets'!$U$2:$U$1000=Costs!$A620)*('Fixed assets'!$R$2:$R$1000))","v":0},{"$f":"SUMPRODUCT(('Fixed assets'!$R$2:$R$1000)*('Fixed assets'!$P$2:$P$1000<$A620)*('Fixed assets'!$Q$2:$Q$1000=Costs!Y$617))-SUMPRODUCT(('Fixed assets'!$S$2:$S$1000)*('Fixed assets'!$P$2:$P$1000<Costs!$A620)*('Fixed assets'!$Q$2:$Q$1000=Costs!Y$617))-SUMPRODUCT(('Fixed assets'!$Q$2:$Q$1000=Costs!Y$617)*('Fixed assets'!$U$2:$U$1000=Costs!$A620)*('Fixed assets'!$S$2:$S$1000))+SUMPRODUCT(('Fixed assets'!$Q$2:$Q$1000=Costs!Y$617)*('Fixed assets'!$P$2:$P$1000=Costs!$A620)*('Fixed assets'!$U$2:$U$1000=Costs!$A620)*('Fixed assets'!$R$2:$R$1000))","v":0},{"$f":"SUMPRODUCT(('Fixed assets'!$R$2:$R$1000)*('Fixed assets'!$P$2:$P$1000<$A620)*('Fixed assets'!$Q$2:$Q$1000=Costs!Z$617))-SUMPRODUCT(('Fixed assets'!$S$2:$S$1000)*('Fixed assets'!$P$2:$P$1000<Costs!$A620)*('Fixed assets'!$Q$2:$Q$1000=Costs!Z$617))-SUMPRODUCT(('Fixed assets'!$Q$2:$Q$1000=Costs!Z$617)*('Fixed assets'!$U$2:$U$1000=Costs!$A620)*('Fixed assets'!$S$2:$S$1000))+SUMPRODUCT(('Fixed assets'!$Q$2:$Q$1000=Costs!Z$617)*('Fixed assets'!$P$2:$P$1000=Costs!$A620)*('Fixed assets'!$U$2:$U$1000=Costs!$A620)*('Fixed assets'!$R$2:$R$1000))","v":0},{"$f":"SUMPRODUCT(('Fixed assets'!$R$2:$R$1000)*('Fixed assets'!$P$2:$P$1000<$A620)*('Fixed assets'!$Q$2:$Q$1000=Costs!AA$617))-SUMPRODUCT(('Fixed assets'!$S$2:$S$1000)*('Fixed assets'!$P$2:$P$1000<Costs!$A620)*('Fixed assets'!$Q$2:$Q$1000=Costs!AA$617))-SUMPRODUCT(('Fixed assets'!$Q$2:$Q$1000=Costs!AA$617)*('Fixed assets'!$U$2:$U$1000=Costs!$A620)*('Fixed assets'!$S$2:$S$1000))+SUMPRODUCT(('Fixed assets'!$Q$2:$Q$1000=Costs!AA$617)*('Fixed assets'!$P$2:$P$1000=Costs!$A620)*('Fixed assets'!$U$2:$U$1000=Costs!$A620)*('Fixed assets'!$R$2:$R$1000))","v":0},{"$f":"SUMPRODUCT(('Fixed assets'!$R$2:$R$1000)*('Fixed assets'!$P$2:$P$1000<$A620)*('Fixed assets'!$Q$2:$Q$1000=Costs!AB$617))-SUMPRODUCT(('Fixed assets'!$S$2:$S$1000)*('Fixed assets'!$P$2:$P$1000<Costs!$A620)*('Fixed assets'!$Q$2:$Q$1000=Costs!AB$617))-SUMPRODUCT(('Fixed assets'!$Q$2:$Q$1000=Costs!AB$617)*('Fixed assets'!$U$2:$U$1000=Costs!$A620)*('Fixed assets'!$S$2:$S$1000))+SUMPRODUCT(('Fixed assets'!$Q$2:$Q$1000=Costs!AB$617)*('Fixed assets'!$P$2:$P$1000=Costs!$A620)*('Fixed assets'!$U$2:$U$1000=Costs!$A620)*('Fixed assets'!$R$2:$R$1000))","v":0},{"$f":"SUMPRODUCT(('Fixed assets'!$R$2:$R$1000)*('Fixed assets'!$P$2:$P$1000<$A620)*('Fixed assets'!$Q$2:$Q$1000=Costs!AC$617))-SUMPRODUCT(('Fixed assets'!$S$2:$S$1000)*('Fixed assets'!$P$2:$P$1000<Costs!$A620)*('Fixed assets'!$Q$2:$Q$1000=Costs!AC$617))-SUMPRODUCT(('Fixed assets'!$Q$2:$Q$1000=Costs!AC$617)*('Fixed assets'!$U$2:$U$1000=Costs!$A620)*('Fixed assets'!$S$2:$S$1000))+SUMPRODUCT(('Fixed assets'!$Q$2:$Q$1000=Costs!AC$617)*('Fixed assets'!$P$2:$P$1000=Costs!$A620)*('Fixed assets'!$U$2:$U$1000=Costs!$A620)*('Fixed assets'!$R$2:$R$1000))","v":0},{"$f":"SUMPRODUCT(('Fixed assets'!$R$2:$R$1000)*('Fixed assets'!$P$2:$P$1000<$A620)*('Fixed assets'!$Q$2:$Q$1000=Costs!AD$617))-SUMPRODUCT(('Fixed assets'!$S$2:$S$1000)*('Fixed assets'!$P$2:$P$1000<Costs!$A620)*('Fixed assets'!$Q$2:$Q$1000=Costs!AD$617))-SUMPRODUCT(('Fixed assets'!$Q$2:$Q$1000=Costs!AD$617)*('Fixed assets'!$U$2:$U$1000=Costs!$A620)*('Fixed assets'!$S$2:$S$1000))+SUMPRODUCT(('Fixed assets'!$Q$2:$Q$1000=Costs!AD$617)*('Fixed assets'!$P$2:$P$1000=Costs!$A620)*('Fixed assets'!$U$2:$U$1000=Costs!$A620)*('Fixed assets'!$R$2:$R$1000))","v":0},{"$f":"SUMPRODUCT(('Fixed assets'!$R$2:$R$1000)*('Fixed assets'!$P$2:$P$1000<$A620)*('Fixed assets'!$Q$2:$Q$1000=Costs!AE$617))-SUMPRODUCT(('Fixed assets'!$S$2:$S$1000)*('Fixed assets'!$P$2:$P$1000<Costs!$A620)*('Fixed assets'!$Q$2:$Q$1000=Costs!AE$617))-SUMPRODUCT(('Fixed assets'!$Q$2:$Q$1000=Costs!AE$617)*('Fixed assets'!$U$2:$U$1000=Costs!$A620)*('Fixed assets'!$S$2:$S$1000))+SUMPRODUCT(('Fixed assets'!$Q$2:$Q$1000=Costs!AE$617)*('Fixed assets'!$P$2:$P$1000=Costs!$A620)*('Fixed assets'!$U$2:$U$1000=Costs!$A620)*('Fixed assets'!$R$2:$R$1000))","v":0},{"$f":"SUMPRODUCT(('Fixed assets'!$R$2:$R$1000)*('Fixed assets'!$P$2:$P$1000<$A620)*('Fixed assets'!$Q$2:$Q$1000=Costs!AF$617))-SUMPRODUCT(('Fixed assets'!$S$2:$S$1000)*('Fixed assets'!$P$2:$P$1000<Costs!$A620)*('Fixed assets'!$Q$2:$Q$1000=Costs!AF$617))-SUMPRODUCT(('Fixed assets'!$Q$2:$Q$1000=Costs!AF$617)*('Fixed assets'!$U$2:$U$1000=Costs!$A620)*('Fixed assets'!$S$2:$S$1000))+SUMPRODUCT(('Fixed assets'!$Q$2:$Q$1000=Costs!AF$617)*('Fixed assets'!$P$2:$P$1000=Costs!$A620)*('Fixed assets'!$U$2:$U$1000=Costs!$A620)*('Fixed assets'!$R$2:$R$1000))","v":0},{"$f":"SUMPRODUCT(('Fixed assets'!$R$2:$R$1000)*('Fixed assets'!$P$2:$P$1000<$A620)*('Fixed assets'!$Q$2:$Q$1000=Costs!AG$617))-SUMPRODUCT(('Fixed assets'!$S$2:$S$1000)*('Fixed assets'!$P$2:$P$1000<Costs!$A620)*('Fixed assets'!$Q$2:$Q$1000=Costs!AG$617))-SUMPRODUCT(('Fixed assets'!$Q$2:$Q$1000=Costs!AG$617)*('Fixed assets'!$U$2:$U$1000=Costs!$A620)*('Fixed assets'!$S$2:$S$1000))+SUMPRODUCT(('Fixed assets'!$Q$2:$Q$1000=Costs!AG$617)*('Fixed assets'!$P$2:$P$1000=Costs!$A620)*('Fixed assets'!$U$2:$U$1000=Costs!$A620)*('Fixed assets'!$R$2:$R$1000))","v":0},{"$f":"SUMPRODUCT(('Fixed assets'!$R$2:$R$1000)*('Fixed assets'!$P$2:$P$1000<$A620)*('Fixed assets'!$Q$2:$Q$1000=Costs!AH$617))-SUMPRODUCT(('Fixed assets'!$S$2:$S$1000)*('Fixed assets'!$P$2:$P$1000<Costs!$A620)*('Fixed assets'!$Q$2:$Q$1000=Costs!AH$617))-SUMPRODUCT(('Fixed assets'!$Q$2:$Q$1000=Costs!AH$617)*('Fixed assets'!$U$2:$U$1000=Costs!$A620)*('Fixed assets'!$S$2:$S$1000))+SUMPRODUCT(('Fixed assets'!$Q$2:$Q$1000=Costs!AH$617)*('Fixed assets'!$P$2:$P$1000=Costs!$A620)*('Fixed assets'!$U$2:$U$1000=Costs!$A620)*('Fixed assets'!$R$2:$R$1000))","v":0},{"$f":"SUMPRODUCT(('Fixed assets'!$R$2:$R$1000)*('Fixed assets'!$P$2:$P$1000<$A620)*('Fixed assets'!$Q$2:$Q$1000=Costs!AI$617))-SUMPRODUCT(('Fixed assets'!$S$2:$S$1000)*('Fixed assets'!$P$2:$P$1000<Costs!$A620)*('Fixed assets'!$Q$2:$Q$1000=Costs!AI$617))-SUMPRODUCT(('Fixed assets'!$Q$2:$Q$1000=Costs!AI$617)*('Fixed assets'!$U$2:$U$1000=Costs!$A620)*('Fixed assets'!$S$2:$S$1000))+SUMPRODUCT(('Fixed assets'!$Q$2:$Q$1000=Costs!AI$617)*('Fixed assets'!$P$2:$P$1000=Costs!$A620)*('Fixed assets'!$U$2:$U$1000=Costs!$A620)*('Fixed assets'!$R$2:$R$1000))","v":0},{"$f":"SUMPRODUCT(('Fixed assets'!$R$2:$R$1000)*('Fixed assets'!$P$2:$P$1000<$A620)*('Fixed assets'!$Q$2:$Q$1000=Costs!AJ$617))-SUMPRODUCT(('Fixed assets'!$S$2:$S$1000)*('Fixed assets'!$P$2:$P$1000<Costs!$A620)*('Fixed assets'!$Q$2:$Q$1000=Costs!AJ$617))-SUMPRODUCT(('Fixed assets'!$Q$2:$Q$1000=Costs!AJ$617)*('Fixed assets'!$U$2:$U$1000=Costs!$A620)*('Fixed assets'!$S$2:$S$1000))+SUMPRODUCT(('Fixed assets'!$Q$2:$Q$1000=Costs!AJ$617)*('Fixed assets'!$P$2:$P$1000=Costs!$A620)*('Fixed assets'!$U$2:$U$1000=Costs!$A620)*('Fixed assets'!$R$2:$R$1000))","v":0},{"$f":"SUMPRODUCT(('Fixed assets'!$R$2:$R$1000)*('Fixed assets'!$P$2:$P$1000<$A620)*('Fixed assets'!$Q$2:$Q$1000=Costs!AK$617))-SUMPRODUCT(('Fixed assets'!$S$2:$S$1000)*('Fixed assets'!$P$2:$P$1000<Costs!$A620)*('Fixed assets'!$Q$2:$Q$1000=Costs!AK$617))-SUMPRODUCT(('Fixed assets'!$Q$2:$Q$1000=Costs!AK$617)*('Fixed assets'!$U$2:$U$1000=Costs!$A620)*('Fixed assets'!$S$2:$S$1000))+SUMPRODUCT(('Fixed assets'!$Q$2:$Q$1000=Costs!AK$617)*('Fixed assets'!$P$2:$P$1000=Costs!$A620)*('Fixed assets'!$U$2:$U$1000=Costs!$A620)*('Fixed assets'!$R$2:$R$1000))","v":0},{"$f":"SUMPRODUCT(('Fixed assets'!$R$2:$R$1000)*('Fixed assets'!$P$2:$P$1000<$A620)*('Fixed assets'!$Q$2:$Q$1000=Costs!AL$617))-SUMPRODUCT(('Fixed assets'!$S$2:$S$1000)*('Fixed assets'!$P$2:$P$1000<Costs!$A620)*('Fixed assets'!$Q$2:$Q$1000=Costs!AL$617))-SUMPRODUCT(('Fixed assets'!$Q$2:$Q$1000=Costs!AL$617)*('Fixed assets'!$U$2:$U$1000=Costs!$A620)*('Fixed assets'!$S$2:$S$1000))+SUMPRODUCT(('Fixed assets'!$Q$2:$Q$1000=Costs!AL$617)*('Fixed assets'!$P$2:$P$1000=Costs!$A620)*('Fixed assets'!$U$2:$U$1000=Costs!$A620)*('Fixed assets'!$R$2:$R$1000))","v":0},{"$f":"SUMPRODUCT(('Fixed assets'!$R$2:$R$1000)*('Fixed assets'!$P$2:$P$1000<$A620)*('Fixed assets'!$Q$2:$Q$1000=Costs!AM$617))-SUMPRODUCT(('Fixed assets'!$S$2:$S$1000)*('Fixed assets'!$P$2:$P$1000<Costs!$A620)*('Fixed assets'!$Q$2:$Q$1000=Costs!AM$617))-SUMPRODUCT(('Fixed assets'!$Q$2:$Q$1000=Costs!AM$617)*('Fixed assets'!$U$2:$U$1000=Costs!$A620)*('Fixed assets'!$S$2:$S$1000))+SUMPRODUCT(('Fixed assets'!$Q$2:$Q$1000=Costs!AM$617)*('Fixed assets'!$P$2:$P$1000=Costs!$A620)*('Fixed assets'!$U$2:$U$1000=Costs!$A620)*('Fixed assets'!$R$2:$R$1000))","v":0},{"$f":"SUMPRODUCT(('Fixed assets'!$R$2:$R$1000)*('Fixed assets'!$P$2:$P$1000<$A620)*('Fixed assets'!$Q$2:$Q$1000=Costs!AN$617))-SUMPRODUCT(('Fixed assets'!$S$2:$S$1000)*('Fixed assets'!$P$2:$P$1000<Costs!$A620)*('Fixed assets'!$Q$2:$Q$1000=Costs!AN$617))-SUMPRODUCT(('Fixed assets'!$Q$2:$Q$1000=Costs!AN$617)*('Fixed assets'!$U$2:$U$1000=Costs!$A620)*('Fixed assets'!$S$2:$S$1000))+SUMPRODUCT(('Fixed assets'!$Q$2:$Q$1000=Costs!AN$617)*('Fixed assets'!$P$2:$P$1000=Costs!$A620)*('Fixed assets'!$U$2:$U$1000=Costs!$A620)*('Fixed assets'!$R$2:$R$1000))","v":0},{"$f":"SUMPRODUCT(('Fixed assets'!$R$2:$R$1000)*('Fixed assets'!$P$2:$P$1000<$A620)*('Fixed assets'!$Q$2:$Q$1000=Costs!AO$617))-SUMPRODUCT(('Fixed assets'!$S$2:$S$1000)*('Fixed assets'!$P$2:$P$1000<Costs!$A620)*('Fixed assets'!$Q$2:$Q$1000=Costs!AO$617))-SUMPRODUCT(('Fixed assets'!$Q$2:$Q$1000=Costs!AO$617)*('Fixed assets'!$U$2:$U$1000=Costs!$A620)*('Fixed assets'!$S$2:$S$1000))+SUMPRODUCT(('Fixed assets'!$Q$2:$Q$1000=Costs!AO$617)*('Fixed assets'!$P$2:$P$1000=Costs!$A620)*('Fixed assets'!$U$2:$U$1000=Costs!$A620)*('Fixed assets'!$R$2:$R$1000))","v":0},{"$f":"SUMPRODUCT(('Fixed assets'!$R$2:$R$1000)*('Fixed assets'!$P$2:$P$1000<$A620)*('Fixed assets'!$Q$2:$Q$1000=Costs!AP$617))-SUMPRODUCT(('Fixed assets'!$S$2:$S$1000)*('Fixed assets'!$P$2:$P$1000<Costs!$A620)*('Fixed assets'!$Q$2:$Q$1000=Costs!AP$617))-SUMPRODUCT(('Fixed assets'!$Q$2:$Q$1000=Costs!AP$617)*('Fixed assets'!$U$2:$U$1000=Costs!$A620)*('Fixed assets'!$S$2:$S$1000))+SUMPRODUCT(('Fixed assets'!$Q$2:$Q$1000=Costs!AP$617)*('Fixed assets'!$P$2:$P$1000=Costs!$A620)*('Fixed assets'!$U$2:$U$1000=Costs!$A620)*('Fixed assets'!$R$2:$R$1000))","v":0},{"$f":"SUMPRODUCT(('Fixed assets'!$R$2:$R$1000)*('Fixed assets'!$P$2:$P$1000<$A620)*('Fixed assets'!$Q$2:$Q$1000=Costs!AQ$617))-SUMPRODUCT(('Fixed assets'!$S$2:$S$1000)*('Fixed assets'!$P$2:$P$1000<Costs!$A620)*('Fixed assets'!$Q$2:$Q$1000=Costs!AQ$617))-SUMPRODUCT(('Fixed assets'!$Q$2:$Q$1000=Costs!AQ$617)*('Fixed assets'!$U$2:$U$1000=Costs!$A620)*('Fixed assets'!$S$2:$S$1000))+SUMPRODUCT(('Fixed assets'!$Q$2:$Q$1000=Costs!AQ$617)*('Fixed assets'!$P$2:$P$1000=Costs!$A620)*('Fixed assets'!$U$2:$U$1000=Costs!$A620)*('Fixed assets'!$R$2:$R$1000))","v":0}]
[2018,0,{"$f":"SUMPRODUCT(('Fixed assets'!$R$2:$R$1000)*('Fixed assets'!$P$2:$P$1000<$A621)*('Fixed assets'!$Q$2:$Q$1000=Costs!C$617))-SUMPRODUCT(('Fixed assets'!$S$2:$S$1000)*('Fixed assets'!$P$2:$P$1000<Costs!$A621)*('Fixed assets'!$Q$2:$Q$1000=Costs!C$617))-SUMPRODUCT(('Fixed assets'!$Q$2:$Q$1000=Costs!C$617)*('Fixed assets'!$U$2:$U$1000=Costs!$A621)*('Fixed assets'!$S$2:$S$1000))+SUMPRODUCT(('Fixed assets'!$Q$2:$Q$1000=Costs!C$617)*('Fixed assets'!$P$2:$P$1000=Costs!$A621)*('Fixed assets'!$U$2:$U$1000=Costs!$A621)*('Fixed assets'!$R$2:$R$1000))","v":0},{"$f":"SUMPRODUCT(('Fixed assets'!$R$2:$R$1000)*('Fixed assets'!$P$2:$P$1000<$A621)*('Fixed assets'!$Q$2:$Q$1000=Costs!D$617))-SUMPRODUCT(('Fixed assets'!$S$2:$S$1000)*('Fixed assets'!$P$2:$P$1000<Costs!$A621)*('Fixed assets'!$Q$2:$Q$1000=Costs!D$617))-SUMPRODUCT(('Fixed assets'!$Q$2:$Q$1000=Costs!D$617)*('Fixed assets'!$U$2:$U$1000=Costs!$A621)*('Fixed assets'!$S$2:$S$1000))+SUMPRODUCT(('Fixed assets'!$Q$2:$Q$1000=Costs!D$617)*('Fixed assets'!$P$2:$P$1000=Costs!$A621)*('Fixed assets'!$U$2:$U$1000=Costs!$A621)*('Fixed assets'!$R$2:$R$1000))","v":0},{"$f":"SUMPRODUCT(('Fixed assets'!$R$2:$R$1000)*('Fixed assets'!$P$2:$P$1000<$A621)*('Fixed assets'!$Q$2:$Q$1000=Costs!E$617))-SUMPRODUCT(('Fixed assets'!$S$2:$S$1000)*('Fixed assets'!$P$2:$P$1000<Costs!$A621)*('Fixed assets'!$Q$2:$Q$1000=Costs!E$617))-SUMPRODUCT(('Fixed assets'!$Q$2:$Q$1000=Costs!E$617)*('Fixed assets'!$U$2:$U$1000=Costs!$A621)*('Fixed assets'!$S$2:$S$1000))+SUMPRODUCT(('Fixed assets'!$Q$2:$Q$1000=Costs!E$617)*('Fixed assets'!$P$2:$P$1000=Costs!$A621)*('Fixed assets'!$U$2:$U$1000=Costs!$A621)*('Fixed assets'!$R$2:$R$1000))","v":0},{"$f":"SUMPRODUCT(('Fixed assets'!$R$2:$R$1000)*('Fixed assets'!$P$2:$P$1000<$A621)*('Fixed assets'!$Q$2:$Q$1000=Costs!F$617))-SUMPRODUCT(('Fixed assets'!$S$2:$S$1000)*('Fixed assets'!$P$2:$P$1000<Costs!$A621)*('Fixed assets'!$Q$2:$Q$1000=Costs!F$617))-SUMPRODUCT(('Fixed assets'!$Q$2:$Q$1000=Costs!F$617)*('Fixed assets'!$U$2:$U$1000=Costs!$A621)*('Fixed assets'!$S$2:$S$1000))+SUMPRODUCT(('Fixed assets'!$Q$2:$Q$1000=Costs!F$617)*('Fixed assets'!$P$2:$P$1000=Costs!$A621)*('Fixed assets'!$U$2:$U$1000=Costs!$A621)*('Fixed assets'!$R$2:$R$1000))","v":0},{"$f":"SUMPRODUCT(('Fixed assets'!$R$2:$R$1000)*('Fixed assets'!$P$2:$P$1000<$A621)*('Fixed assets'!$Q$2:$Q$1000=Costs!G$617))-SUMPRODUCT(('Fixed assets'!$S$2:$S$1000)*('Fixed assets'!$P$2:$P$1000<Costs!$A621)*('Fixed assets'!$Q$2:$Q$1000=Costs!G$617))-SUMPRODUCT(('Fixed assets'!$Q$2:$Q$1000=Costs!G$617)*('Fixed assets'!$U$2:$U$1000=Costs!$A621)*('Fixed assets'!$S$2:$S$1000))+SUMPRODUCT(('Fixed assets'!$Q$2:$Q$1000=Costs!G$617)*('Fixed assets'!$P$2:$P$1000=Costs!$A621)*('Fixed assets'!$U$2:$U$1000=Costs!$A621)*('Fixed assets'!$R$2:$R$1000))","v":0},{"$f":"SUMPRODUCT(('Fixed assets'!$R$2:$R$1000)*('Fixed assets'!$P$2:$P$1000<$A621)*('Fixed assets'!$Q$2:$Q$1000=Costs!H$617))-SUMPRODUCT(('Fixed assets'!$S$2:$S$1000)*('Fixed assets'!$P$2:$P$1000<Costs!$A621)*('Fixed assets'!$Q$2:$Q$1000=Costs!H$617))-SUMPRODUCT(('Fixed assets'!$Q$2:$Q$1000=Costs!H$617)*('Fixed assets'!$U$2:$U$1000=Costs!$A621)*('Fixed assets'!$S$2:$S$1000))+SUMPRODUCT(('Fixed assets'!$Q$2:$Q$1000=Costs!H$617)*('Fixed assets'!$P$2:$P$1000=Costs!$A621)*('Fixed assets'!$U$2:$U$1000=Costs!$A621)*('Fixed assets'!$R$2:$R$1000))","v":0},{"$f":"SUMPRODUCT(('Fixed assets'!$R$2:$R$1000)*('Fixed assets'!$P$2:$P$1000<$A621)*('Fixed assets'!$Q$2:$Q$1000=Costs!I$617))-SUMPRODUCT(('Fixed assets'!$S$2:$S$1000)*('Fixed assets'!$P$2:$P$1000<Costs!$A621)*('Fixed assets'!$Q$2:$Q$1000=Costs!I$617))-SUMPRODUCT(('Fixed assets'!$Q$2:$Q$1000=Costs!I$617)*('Fixed assets'!$U$2:$U$1000=Costs!$A621)*('Fixed assets'!$S$2:$S$1000))+SUMPRODUCT(('Fixed assets'!$Q$2:$Q$1000=Costs!I$617)*('Fixed assets'!$P$2:$P$1000=Costs!$A621)*('Fixed assets'!$U$2:$U$1000=Costs!$A621)*('Fixed assets'!$R$2:$R$1000))","v":0},{"$f":"SUMPRODUCT(('Fixed assets'!$R$2:$R$1000)*('Fixed assets'!$P$2:$P$1000<$A621)*('Fixed assets'!$Q$2:$Q$1000=Costs!J$617))-SUMPRODUCT(('Fixed assets'!$S$2:$S$1000)*('Fixed assets'!$P$2:$P$1000<Costs!$A621)*('Fixed assets'!$Q$2:$Q$1000=Costs!J$617))-SUMPRODUCT(('Fixed assets'!$Q$2:$Q$1000=Costs!J$617)*('Fixed assets'!$U$2:$U$1000=Costs!$A621)*('Fixed assets'!$S$2:$S$1000))+SUMPRODUCT(('Fixed assets'!$Q$2:$Q$1000=Costs!J$617)*('Fixed assets'!$P$2:$P$1000=Costs!$A621)*('Fixed assets'!$U$2:$U$1000=Costs!$A621)*('Fixed assets'!$R$2:$R$1000))","v":0},{"$f":"SUMPRODUCT(('Fixed assets'!$R$2:$R$1000)*('Fixed assets'!$P$2:$P$1000<$A621)*('Fixed assets'!$Q$2:$Q$1000=Costs!K$617))-SUMPRODUCT(('Fixed assets'!$S$2:$S$1000)*('Fixed assets'!$P$2:$P$1000<Costs!$A621)*('Fixed assets'!$Q$2:$Q$1000=Costs!K$617))-SUMPRODUCT(('Fixed assets'!$Q$2:$Q$1000=Costs!K$617)*('Fixed assets'!$U$2:$U$1000=Costs!$A621)*('Fixed assets'!$S$2:$S$1000))+SUMPRODUCT(('Fixed assets'!$Q$2:$Q$1000=Costs!K$617)*('Fixed assets'!$P$2:$P$1000=Costs!$A621)*('Fixed assets'!$U$2:$U$1000=Costs!$A621)*('Fixed assets'!$R$2:$R$1000))","v":0},{"$f":"SUMPRODUCT(('Fixed assets'!$R$2:$R$1000)*('Fixed assets'!$P$2:$P$1000<$A621)*('Fixed assets'!$Q$2:$Q$1000=Costs!L$617))-SUMPRODUCT(('Fixed assets'!$S$2:$S$1000)*('Fixed assets'!$P$2:$P$1000<Costs!$A621)*('Fixed assets'!$Q$2:$Q$1000=Costs!L$617))-SUMPRODUCT(('Fixed assets'!$Q$2:$Q$1000=Costs!L$617)*('Fixed assets'!$U$2:$U$1000=Costs!$A621)*('Fixed assets'!$S$2:$S$1000))+SUMPRODUCT(('Fixed assets'!$Q$2:$Q$1000=Costs!L$617)*('Fixed assets'!$P$2:$P$1000=Costs!$A621)*('Fixed assets'!$U$2:$U$1000=Costs!$A621)*('Fixed assets'!$R$2:$R$1000))","v":0},{"$f":"SUMPRODUCT(('Fixed assets'!$R$2:$R$1000)*('Fixed assets'!$P$2:$P$1000<$A621)*('Fixed assets'!$Q$2:$Q$1000=Costs!M$617))-SUMPRODUCT(('Fixed assets'!$S$2:$S$1000)*('Fixed assets'!$P$2:$P$1000<Costs!$A621)*('Fixed assets'!$Q$2:$Q$1000=Costs!M$617))-SUMPRODUCT(('Fixed assets'!$Q$2:$Q$1000=Costs!M$617)*('Fixed assets'!$U$2:$U$1000=Costs!$A621)*('Fixed assets'!$S$2:$S$1000))+SUMPRODUCT(('Fixed assets'!$Q$2:$Q$1000=Costs!M$617)*('Fixed assets'!$P$2:$P$1000=Costs!$A621)*('Fixed assets'!$U$2:$U$1000=Costs!$A621)*('Fixed assets'!$R$2:$R$1000))","v":0},{"$f":"SUMPRODUCT(('Fixed assets'!$R$2:$R$1000)*('Fixed assets'!$P$2:$P$1000<$A621)*('Fixed assets'!$Q$2:$Q$1000=Costs!N$617))-SUMPRODUCT(('Fixed assets'!$S$2:$S$1000)*('Fixed assets'!$P$2:$P$1000<Costs!$A621)*('Fixed assets'!$Q$2:$Q$1000=Costs!N$617))-SUMPRODUCT(('Fixed assets'!$Q$2:$Q$1000=Costs!N$617)*('Fixed assets'!$U$2:$U$1000=Costs!$A621)*('Fixed assets'!$S$2:$S$1000))+SUMPRODUCT(('Fixed assets'!$Q$2:$Q$1000=Costs!N$617)*('Fixed assets'!$P$2:$P$1000=Costs!$A621)*('Fixed assets'!$U$2:$U$1000=Costs!$A621)*('Fixed assets'!$R$2:$R$1000))","v":0},{"$f":"SUMPRODUCT(('Fixed assets'!$R$2:$R$1000)*('Fixed assets'!$P$2:$P$1000<$A621)*('Fixed assets'!$Q$2:$Q$1000=Costs!O$617))-SUMPRODUCT(('Fixed assets'!$S$2:$S$1000)*('Fixed assets'!$P$2:$P$1000<Costs!$A621)*('Fixed assets'!$Q$2:$Q$1000=Costs!O$617))-SUMPRODUCT(('Fixed assets'!$Q$2:$Q$1000=Costs!O$617)*('Fixed assets'!$U$2:$U$1000=Costs!$A621)*('Fixed assets'!$S$2:$S$1000))+SUMPRODUCT(('Fixed assets'!$Q$2:$Q$1000=Costs!O$617)*('Fixed assets'!$P$2:$P$1000=Costs!$A621)*('Fixed assets'!$U$2:$U$1000=Costs!$A621)*('Fixed assets'!$R$2:$R$1000))","v":0},{"$f":"SUMPRODUCT(('Fixed assets'!$R$2:$R$1000)*('Fixed assets'!$P$2:$P$1000<$A621)*('Fixed assets'!$Q$2:$Q$1000=Costs!P$617))-SUMPRODUCT(('Fixed assets'!$S$2:$S$1000)*('Fixed assets'!$P$2:$P$1000<Costs!$A621)*('Fixed assets'!$Q$2:$Q$1000=Costs!P$617))-SUMPRODUCT(('Fixed assets'!$Q$2:$Q$1000=Costs!P$617)*('Fixed assets'!$U$2:$U$1000=Costs!$A621)*('Fixed assets'!$S$2:$S$1000))+SUMPRODUCT(('Fixed assets'!$Q$2:$Q$1000=Costs!P$617)*('Fixed assets'!$P$2:$P$1000=Costs!$A621)*('Fixed assets'!$U$2:$U$1000=Costs!$A621)*('Fixed assets'!$R$2:$R$1000))","v":0},{"$f":"SUMPRODUCT(('Fixed assets'!$R$2:$R$1000)*('Fixed assets'!$P$2:$P$1000<$A621)*('Fixed assets'!$Q$2:$Q$1000=Costs!Q$617))-SUMPRODUCT(('Fixed assets'!$S$2:$S$1000)*('Fixed assets'!$P$2:$P$1000<Costs!$A621)*('Fixed assets'!$Q$2:$Q$1000=Costs!Q$617))-SUMPRODUCT(('Fixed assets'!$Q$2:$Q$1000=Costs!Q$617)*('Fixed assets'!$U$2:$U$1000=Costs!$A621)*('Fixed assets'!$S$2:$S$1000))+SUMPRODUCT(('Fixed assets'!$Q$2:$Q$1000=Costs!Q$617)*('Fixed assets'!$P$2:$P$1000=Costs!$A621)*('Fixed assets'!$U$2:$U$1000=Costs!$A621)*('Fixed assets'!$R$2:$R$1000))","v":0},{"$f":"SUMPRODUCT(('Fixed assets'!$R$2:$R$1000)*('Fixed assets'!$P$2:$P$1000<$A621)*('Fixed assets'!$Q$2:$Q$1000=Costs!R$617))-SUMPRODUCT(('Fixed assets'!$S$2:$S$1000)*('Fixed assets'!$P$2:$P$1000<Costs!$A621)*('Fixed assets'!$Q$2:$Q$1000=Costs!R$617))-SUMPRODUCT(('Fixed assets'!$Q$2:$Q$1000=Costs!R$617)*('Fixed assets'!$U$2:$U$1000=Costs!$A621)*('Fixed assets'!$S$2:$S$1000))+SUMPRODUCT(('Fixed assets'!$Q$2:$Q$1000=Costs!R$617)*('Fixed assets'!$P$2:$P$1000=Costs!$A621)*('Fixed assets'!$U$2:$U$1000=Costs!$A621)*('Fixed assets'!$R$2:$R$1000))","v":0},{"$f":"SUMPRODUCT(('Fixed assets'!$R$2:$R$1000)*('Fixed assets'!$P$2:$P$1000<$A621)*('Fixed assets'!$Q$2:$Q$1000=Costs!S$617))-SUMPRODUCT(('Fixed assets'!$S$2:$S$1000)*('Fixed assets'!$P$2:$P$1000<Costs!$A621)*('Fixed assets'!$Q$2:$Q$1000=Costs!S$617))-SUMPRODUCT(('Fixed assets'!$Q$2:$Q$1000=Costs!S$617)*('Fixed assets'!$U$2:$U$1000=Costs!$A621)*('Fixed assets'!$S$2:$S$1000))+SUMPRODUCT(('Fixed assets'!$Q$2:$Q$1000=Costs!S$617)*('Fixed assets'!$P$2:$P$1000=Costs!$A621)*('Fixed assets'!$U$2:$U$1000=Costs!$A621)*('Fixed assets'!$R$2:$R$1000))","v":0},{"$f":"SUMPRODUCT(('Fixed assets'!$R$2:$R$1000)*('Fixed assets'!$P$2:$P$1000<$A621)*('Fixed assets'!$Q$2:$Q$1000=Costs!T$617))-SUMPRODUCT(('Fixed assets'!$S$2:$S$1000)*('Fixed assets'!$P$2:$P$1000<Costs!$A621)*('Fixed assets'!$Q$2:$Q$1000=Costs!T$617))-SUMPRODUCT(('Fixed assets'!$Q$2:$Q$1000=Costs!T$617)*('Fixed assets'!$U$2:$U$1000=Costs!$A621)*('Fixed assets'!$S$2:$S$1000))+SUMPRODUCT(('Fixed assets'!$Q$2:$Q$1000=Costs!T$617)*('Fixed assets'!$P$2:$P$1000=Costs!$A621)*('Fixed assets'!$U$2:$U$1000=Costs!$A621)*('Fixed assets'!$R$2:$R$1000))","v":0},{"$f":"SUMPRODUCT(('Fixed assets'!$R$2:$R$1000)*('Fixed assets'!$P$2:$P$1000<$A621)*('Fixed assets'!$Q$2:$Q$1000=Costs!U$617))-SUMPRODUCT(('Fixed assets'!$S$2:$S$1000)*('Fixed assets'!$P$2:$P$1000<Costs!$A621)*('Fixed assets'!$Q$2:$Q$1000=Costs!U$617))-SUMPRODUCT(('Fixed assets'!$Q$2:$Q$1000=Costs!U$617)*('Fixed assets'!$U$2:$U$1000=Costs!$A621)*('Fixed assets'!$S$2:$S$1000))+SUMPRODUCT(('Fixed assets'!$Q$2:$Q$1000=Costs!U$617)*('Fixed assets'!$P$2:$P$1000=Costs!$A621)*('Fixed assets'!$U$2:$U$1000=Costs!$A621)*('Fixed assets'!$R$2:$R$1000))","v":0},{"$f":"SUMPRODUCT(('Fixed assets'!$R$2:$R$1000)*('Fixed assets'!$P$2:$P$1000<$A621)*('Fixed assets'!$Q$2:$Q$1000=Costs!V$617))-SUMPRODUCT(('Fixed assets'!$S$2:$S$1000)*('Fixed assets'!$P$2:$P$1000<Costs!$A621)*('Fixed assets'!$Q$2:$Q$1000=Costs!V$617))-SUMPRODUCT(('Fixed assets'!$Q$2:$Q$1000=Costs!V$617)*('Fixed assets'!$U$2:$U$1000=Costs!$A621)*('Fixed assets'!$S$2:$S$1000))+SUMPRODUCT(('Fixed assets'!$Q$2:$Q$1000=Costs!V$617)*('Fixed assets'!$P$2:$P$1000=Costs!$A621)*('Fixed assets'!$U$2:$U$1000=Costs!$A621)*('Fixed assets'!$R$2:$R$1000))","v":0},{"$f":"SUMPRODUCT(('Fixed assets'!$R$2:$R$1000)*('Fixed assets'!$P$2:$P$1000<$A621)*('Fixed assets'!$Q$2:$Q$1000=Costs!W$617))-SUMPRODUCT(('Fixed assets'!$S$2:$S$1000)*('Fixed assets'!$P$2:$P$1000<Costs!$A621)*('Fixed assets'!$Q$2:$Q$1000=Costs!W$617))-SUMPRODUCT(('Fixed assets'!$Q$2:$Q$1000=Costs!W$617)*('Fixed assets'!$U$2:$U$1000=Costs!$A621)*('Fixed assets'!$S$2:$S$1000))+SUMPRODUCT(('Fixed assets'!$Q$2:$Q$1000=Costs!W$617)*('Fixed assets'!$P$2:$P$1000=Costs!$A621)*('Fixed assets'!$U$2:$U$1000=Costs!$A621)*('Fixed assets'!$R$2:$R$1000))","v":0},{"$f":"SUMPRODUCT(('Fixed assets'!$R$2:$R$1000)*('Fixed assets'!$P$2:$P$1000<$A621)*('Fixed assets'!$Q$2:$Q$1000=Costs!X$617))-SUMPRODUCT(('Fixed assets'!$S$2:$S$1000)*('Fixed assets'!$P$2:$P$1000<Costs!$A621)*('Fixed assets'!$Q$2:$Q$1000=Costs!X$617))-SUMPRODUCT(('Fixed assets'!$Q$2:$Q$1000=Costs!X$617)*('Fixed assets'!$U$2:$U$1000=Costs!$A621)*('Fixed assets'!$S$2:$S$1000))+SUMPRODUCT(('Fixed assets'!$Q$2:$Q$1000=Costs!X$617)*('Fixed assets'!$P$2:$P$1000=Costs!$A621)*('Fixed assets'!$U$2:$U$1000=Costs!$A621)*('Fixed assets'!$R$2:$R$1000))","v":0},{"$f":"SUMPRODUCT(('Fixed assets'!$R$2:$R$1000)*('Fixed assets'!$P$2:$P$1000<$A621)*('Fixed assets'!$Q$2:$Q$1000=Costs!Y$617))-SUMPRODUCT(('Fixed assets'!$S$2:$S$1000)*('Fixed assets'!$P$2:$P$1000<Costs!$A621)*('Fixed assets'!$Q$2:$Q$1000=Costs!Y$617))-SUMPRODUCT(('Fixed assets'!$Q$2:$Q$1000=Costs!Y$617)*('Fixed assets'!$U$2:$U$1000=Costs!$A621)*('Fixed assets'!$S$2:$S$1000))+SUMPRODUCT(('Fixed assets'!$Q$2:$Q$1000=Costs!Y$617)*('Fixed assets'!$P$2:$P$1000=Costs!$A621)*('Fixed assets'!$U$2:$U$1000=Costs!$A621)*('Fixed assets'!$R$2:$R$1000))","v":0},{"$f":"SUMPRODUCT(('Fixed assets'!$R$2:$R$1000)*('Fixed assets'!$P$2:$P$1000<$A621)*('Fixed assets'!$Q$2:$Q$1000=Costs!Z$617))-SUMPRODUCT(('Fixed assets'!$S$2:$S$1000)*('Fixed assets'!$P$2:$P$1000<Costs!$A621)*('Fixed assets'!$Q$2:$Q$1000=Costs!Z$617))-SUMPRODUCT(('Fixed assets'!$Q$2:$Q$1000=Costs!Z$617)*('Fixed assets'!$U$2:$U$1000=Costs!$A621)*('Fixed assets'!$S$2:$S$1000))+SUMPRODUCT(('Fixed assets'!$Q$2:$Q$1000=Costs!Z$617)*('Fixed assets'!$P$2:$P$1000=Costs!$A621)*('Fixed assets'!$U$2:$U$1000=Costs!$A621)*('Fixed assets'!$R$2:$R$1000))","v":0},{"$f":"SUMPRODUCT(('Fixed assets'!$R$2:$R$1000)*('Fixed assets'!$P$2:$P$1000<$A621)*('Fixed assets'!$Q$2:$Q$1000=Costs!AA$617))-SUMPRODUCT(('Fixed assets'!$S$2:$S$1000)*('Fixed assets'!$P$2:$P$1000<Costs!$A621)*('Fixed assets'!$Q$2:$Q$1000=Costs!AA$617))-SUMPRODUCT(('Fixed assets'!$Q$2:$Q$1000=Costs!AA$617)*('Fixed assets'!$U$2:$U$1000=Costs!$A621)*('Fixed assets'!$S$2:$S$1000))+SUMPRODUCT(('Fixed assets'!$Q$2:$Q$1000=Costs!AA$617)*('Fixed assets'!$P$2:$P$1000=Costs!$A621)*('Fixed assets'!$U$2:$U$1000=Costs!$A621)*('Fixed assets'!$R$2:$R$1000))","v":0},{"$f":"SUMPRODUCT(('Fixed assets'!$R$2:$R$1000)*('Fixed assets'!$P$2:$P$1000<$A621)*('Fixed assets'!$Q$2:$Q$1000=Costs!AB$617))-SUMPRODUCT(('Fixed assets'!$S$2:$S$1000)*('Fixed assets'!$P$2:$P$1000<Costs!$A621)*('Fixed assets'!$Q$2:$Q$1000=Costs!AB$617))-SUMPRODUCT(('Fixed assets'!$Q$2:$Q$1000=Costs!AB$617)*('Fixed assets'!$U$2:$U$1000=Costs!$A621)*('Fixed assets'!$S$2:$S$1000))+SUMPRODUCT(('Fixed assets'!$Q$2:$Q$1000=Costs!AB$617)*('Fixed assets'!$P$2:$P$1000=Costs!$A621)*('Fixed assets'!$U$2:$U$1000=Costs!$A621)*('Fixed assets'!$R$2:$R$1000))","v":0},{"$f":"SUMPRODUCT(('Fixed assets'!$R$2:$R$1000)*('Fixed assets'!$P$2:$P$1000<$A621)*('Fixed assets'!$Q$2:$Q$1000=Costs!AC$617))-SUMPRODUCT(('Fixed assets'!$S$2:$S$1000)*('Fixed assets'!$P$2:$P$1000<Costs!$A621)*('Fixed assets'!$Q$2:$Q$1000=Costs!AC$617))-SUMPRODUCT(('Fixed assets'!$Q$2:$Q$1000=Costs!AC$617)*('Fixed assets'!$U$2:$U$1000=Costs!$A621)*('Fixed assets'!$S$2:$S$1000))+SUMPRODUCT(('Fixed assets'!$Q$2:$Q$1000=Costs!AC$617)*('Fixed assets'!$P$2:$P$1000=Costs!$A621)*('Fixed assets'!$U$2:$U$1000=Costs!$A621)*('Fixed assets'!$R$2:$R$1000))","v":0},{"$f":"SUMPRODUCT(('Fixed assets'!$R$2:$R$1000)*('Fixed assets'!$P$2:$P$1000<$A621)*('Fixed assets'!$Q$2:$Q$1000=Costs!AD$617))-SUMPRODUCT(('Fixed assets'!$S$2:$S$1000)*('Fixed assets'!$P$2:$P$1000<Costs!$A621)*('Fixed assets'!$Q$2:$Q$1000=Costs!AD$617))-SUMPRODUCT(('Fixed assets'!$Q$2:$Q$1000=Costs!AD$617)*('Fixed assets'!$U$2:$U$1000=Costs!$A621)*('Fixed assets'!$S$2:$S$1000))+SUMPRODUCT(('Fixed assets'!$Q$2:$Q$1000=Costs!AD$617)*('Fixed assets'!$P$2:$P$1000=Costs!$A621)*('Fixed assets'!$U$2:$U$1000=Costs!$A621)*('Fixed assets'!$R$2:$R$1000))","v":0},{"$f":"SUMPRODUCT(('Fixed assets'!$R$2:$R$1000)*('Fixed assets'!$P$2:$P$1000<$A621)*('Fixed assets'!$Q$2:$Q$1000=Costs!AE$617))-SUMPRODUCT(('Fixed assets'!$S$2:$S$1000)*('Fixed assets'!$P$2:$P$1000<Costs!$A621)*('Fixed assets'!$Q$2:$Q$1000=Costs!AE$617))-SUMPRODUCT(('Fixed assets'!$Q$2:$Q$1000=Costs!AE$617)*('Fixed assets'!$U$2:$U$1000=Costs!$A621)*('Fixed assets'!$S$2:$S$1000))+SUMPRODUCT(('Fixed assets'!$Q$2:$Q$1000=Costs!AE$617)*('Fixed assets'!$P$2:$P$1000=Costs!$A621)*('Fixed assets'!$U$2:$U$1000=Costs!$A621)*('Fixed assets'!$R$2:$R$1000))","v":0},{"$f":"SUMPRODUCT(('Fixed assets'!$R$2:$R$1000)*('Fixed assets'!$P$2:$P$1000<$A621)*('Fixed assets'!$Q$2:$Q$1000=Costs!AF$617))-SUMPRODUCT(('Fixed assets'!$S$2:$S$1000)*('Fixed assets'!$P$2:$P$1000<Costs!$A621)*('Fixed assets'!$Q$2:$Q$1000=Costs!AF$617))-SUMPRODUCT(('Fixed assets'!$Q$2:$Q$1000=Costs!AF$617)*('Fixed assets'!$U$2:$U$1000=Costs!$A621)*('Fixed assets'!$S$2:$S$1000))+SUMPRODUCT(('Fixed assets'!$Q$2:$Q$1000=Costs!AF$617)*('Fixed assets'!$P$2:$P$1000=Costs!$A621)*('Fixed assets'!$U$2:$U$1000=Costs!$A621)*('Fixed assets'!$R$2:$R$1000))","v":0},{"$f":"SUMPRODUCT(('Fixed assets'!$R$2:$R$1000)*('Fixed assets'!$P$2:$P$1000<$A621)*('Fixed assets'!$Q$2:$Q$1000=Costs!AG$617))-SUMPRODUCT(('Fixed assets'!$S$2:$S$1000)*('Fixed assets'!$P$2:$P$1000<Costs!$A621)*('Fixed assets'!$Q$2:$Q$1000=Costs!AG$617))-SUMPRODUCT(('Fixed assets'!$Q$2:$Q$1000=Costs!AG$617)*('Fixed assets'!$U$2:$U$1000=Costs!$A621)*('Fixed assets'!$S$2:$S$1000))+SUMPRODUCT(('Fixed assets'!$Q$2:$Q$1000=Costs!AG$617)*('Fixed assets'!$P$2:$P$1000=Costs!$A621)*('Fixed assets'!$U$2:$U$1000=Costs!$A621)*('Fixed assets'!$R$2:$R$1000))","v":0},{"$f":"SUMPRODUCT(('Fixed assets'!$R$2:$R$1000)*('Fixed assets'!$P$2:$P$1000<$A621)*('Fixed assets'!$Q$2:$Q$1000=Costs!AH$617))-SUMPRODUCT(('Fixed assets'!$S$2:$S$1000)*('Fixed assets'!$P$2:$P$1000<Costs!$A621)*('Fixed assets'!$Q$2:$Q$1000=Costs!AH$617))-SUMPRODUCT(('Fixed assets'!$Q$2:$Q$1000=Costs!AH$617)*('Fixed assets'!$U$2:$U$1000=Costs!$A621)*('Fixed assets'!$S$2:$S$1000))+SUMPRODUCT(('Fixed assets'!$Q$2:$Q$1000=Costs!AH$617)*('Fixed assets'!$P$2:$P$1000=Costs!$A621)*('Fixed assets'!$U$2:$U$1000=Costs!$A621)*('Fixed assets'!$R$2:$R$1000))","v":0},{"$f":"SUMPRODUCT(('Fixed assets'!$R$2:$R$1000)*('Fixed assets'!$P$2:$P$1000<$A621)*('Fixed assets'!$Q$2:$Q$1000=Costs!AI$617))-SUMPRODUCT(('Fixed assets'!$S$2:$S$1000)*('Fixed assets'!$P$2:$P$1000<Costs!$A621)*('Fixed assets'!$Q$2:$Q$1000=Costs!AI$617))-SUMPRODUCT(('Fixed assets'!$Q$2:$Q$1000=Costs!AI$617)*('Fixed assets'!$U$2:$U$1000=Costs!$A621)*('Fixed assets'!$S$2:$S$1000))+SUMPRODUCT(('Fixed assets'!$Q$2:$Q$1000=Costs!AI$617)*('Fixed assets'!$P$2:$P$1000=Costs!$A621)*('Fixed assets'!$U$2:$U$1000=Costs!$A621)*('Fixed assets'!$R$2:$R$1000))","v":0},{"$f":"SUMPRODUCT(('Fixed assets'!$R$2:$R$1000)*('Fixed assets'!$P$2:$P$1000<$A621)*('Fixed assets'!$Q$2:$Q$1000=Costs!AJ$617))-SUMPRODUCT(('Fixed assets'!$S$2:$S$1000)*('Fixed assets'!$P$2:$P$1000<Costs!$A621)*('Fixed assets'!$Q$2:$Q$1000=Costs!AJ$617))-SUMPRODUCT(('Fixed assets'!$Q$2:$Q$1000=Costs!AJ$617)*('Fixed assets'!$U$2:$U$1000=Costs!$A621)*('Fixed assets'!$S$2:$S$1000))+SUMPRODUCT(('Fixed assets'!$Q$2:$Q$1000=Costs!AJ$617)*('Fixed assets'!$P$2:$P$1000=Costs!$A621)*('Fixed assets'!$U$2:$U$1000=Costs!$A621)*('Fixed assets'!$R$2:$R$1000))","v":0},{"$f":"SUMPRODUCT(('Fixed assets'!$R$2:$R$1000)*('Fixed assets'!$P$2:$P$1000<$A621)*('Fixed assets'!$Q$2:$Q$1000=Costs!AK$617))-SUMPRODUCT(('Fixed assets'!$S$2:$S$1000)*('Fixed assets'!$P$2:$P$1000<Costs!$A621)*('Fixed assets'!$Q$2:$Q$1000=Costs!AK$617))-SUMPRODUCT(('Fixed assets'!$Q$2:$Q$1000=Costs!AK$617)*('Fixed assets'!$U$2:$U$1000=Costs!$A621)*('Fixed assets'!$S$2:$S$1000))+SUMPRODUCT(('Fixed assets'!$Q$2:$Q$1000=Costs!AK$617)*('Fixed assets'!$P$2:$P$1000=Costs!$A621)*('Fixed assets'!$U$2:$U$1000=Costs!$A621)*('Fixed assets'!$R$2:$R$1000))","v":0},{"$f":"SUMPRODUCT(('Fixed assets'!$R$2:$R$1000)*('Fixed assets'!$P$2:$P$1000<$A621)*('Fixed assets'!$Q$2:$Q$1000=Costs!AL$617))-SUMPRODUCT(('Fixed assets'!$S$2:$S$1000)*('Fixed assets'!$P$2:$P$1000<Costs!$A621)*('Fixed assets'!$Q$2:$Q$1000=Costs!AL$617))-SUMPRODUCT(('Fixed assets'!$Q$2:$Q$1000=Costs!AL$617)*('Fixed assets'!$U$2:$U$1000=Costs!$A621)*('Fixed assets'!$S$2:$S$1000))+SUMPRODUCT(('Fixed assets'!$Q$2:$Q$1000=Costs!AL$617)*('Fixed assets'!$P$2:$P$1000=Costs!$A621)*('Fixed assets'!$U$2:$U$1000=Costs!$A621)*('Fixed assets'!$R$2:$R$1000))","v":0},{"$f":"SUMPRODUCT(('Fixed assets'!$R$2:$R$1000)*('Fixed assets'!$P$2:$P$1000<$A621)*('Fixed assets'!$Q$2:$Q$1000=Costs!AM$617))-SUMPRODUCT(('Fixed assets'!$S$2:$S$1000)*('Fixed assets'!$P$2:$P$1000<Costs!$A621)*('Fixed assets'!$Q$2:$Q$1000=Costs!AM$617))-SUMPRODUCT(('Fixed assets'!$Q$2:$Q$1000=Costs!AM$617)*('Fixed assets'!$U$2:$U$1000=Costs!$A621)*('Fixed assets'!$S$2:$S$1000))+SUMPRODUCT(('Fixed assets'!$Q$2:$Q$1000=Costs!AM$617)*('Fixed assets'!$P$2:$P$1000=Costs!$A621)*('Fixed assets'!$U$2:$U$1000=Costs!$A621)*('Fixed assets'!$R$2:$R$1000))","v":0},{"$f":"SUMPRODUCT(('Fixed assets'!$R$2:$R$1000)*('Fixed assets'!$P$2:$P$1000<$A621)*('Fixed assets'!$Q$2:$Q$1000=Costs!AN$617))-SUMPRODUCT(('Fixed assets'!$S$2:$S$1000)*('Fixed assets'!$P$2:$P$1000<Costs!$A621)*('Fixed assets'!$Q$2:$Q$1000=Costs!AN$617))-SUMPRODUCT(('Fixed assets'!$Q$2:$Q$1000=Costs!AN$617)*('Fixed assets'!$U$2:$U$1000=Costs!$A621)*('Fixed assets'!$S$2:$S$1000))+SUMPRODUCT(('Fixed assets'!$Q$2:$Q$1000=Costs!AN$617)*('Fixed assets'!$P$2:$P$1000=Costs!$A621)*('Fixed assets'!$U$2:$U$1000=Costs!$A621)*('Fixed assets'!$R$2:$R$1000))","v":0},{"$f":"SUMPRODUCT(('Fixed assets'!$R$2:$R$1000)*('Fixed assets'!$P$2:$P$1000<$A621)*('Fixed assets'!$Q$2:$Q$1000=Costs!AO$617))-SUMPRODUCT(('Fixed assets'!$S$2:$S$1000)*('Fixed assets'!$P$2:$P$1000<Costs!$A621)*('Fixed assets'!$Q$2:$Q$1000=Costs!AO$617))-SUMPRODUCT(('Fixed assets'!$Q$2:$Q$1000=Costs!AO$617)*('Fixed assets'!$U$2:$U$1000=Costs!$A621)*('Fixed assets'!$S$2:$S$1000))+SUMPRODUCT(('Fixed assets'!$Q$2:$Q$1000=Costs!AO$617)*('Fixed assets'!$P$2:$P$1000=Costs!$A621)*('Fixed assets'!$U$2:$U$1000=Costs!$A621)*('Fixed assets'!$R$2:$R$1000))","v":0},{"$f":"SUMPRODUCT(('Fixed assets'!$R$2:$R$1000)*('Fixed assets'!$P$2:$P$1000<$A621)*('Fixed assets'!$Q$2:$Q$1000=Costs!AP$617))-SUMPRODUCT(('Fixed assets'!$S$2:$S$1000)*('Fixed assets'!$P$2:$P$1000<Costs!$A621)*('Fixed assets'!$Q$2:$Q$1000=Costs!AP$617))-SUMPRODUCT(('Fixed assets'!$Q$2:$Q$1000=Costs!AP$617)*('Fixed assets'!$U$2:$U$1000=Costs!$A621)*('Fixed assets'!$S$2:$S$1000))+SUMPRODUCT(('Fixed assets'!$Q$2:$Q$1000=Costs!AP$617)*('Fixed assets'!$P$2:$P$1000=Costs!$A621)*('Fixed assets'!$U$2:$U$1000=Costs!$A621)*('Fixed assets'!$R$2:$R$1000))","v":0},{"$f":"SUMPRODUCT(('Fixed assets'!$R$2:$R$1000)*('Fixed assets'!$P$2:$P$1000<$A621)*('Fixed assets'!$Q$2:$Q$1000=Costs!AQ$617))-SUMPRODUCT(('Fixed assets'!$S$2:$S$1000)*('Fixed assets'!$P$2:$P$1000<Costs!$A621)*('Fixed assets'!$Q$2:$Q$1000=Costs!AQ$617))-SUMPRODUCT(('Fixed assets'!$Q$2:$Q$1000=Costs!AQ$617)*('Fixed assets'!$U$2:$U$1000=Costs!$A621)*('Fixed assets'!$S$2:$S$1000))+SUMPRODUCT(('Fixed assets'!$Q$2:$Q$1000=Costs!AQ$617)*('Fixed assets'!$P$2:$P$1000=Costs!$A621)*('Fixed assets'!$U$2:$U$1000=Costs!$A621)*('Fixed assets'!$R$2:$R$1000))","v":0}]
[2019,0,{"$f":"SUMPRODUCT(('Fixed assets'!$R$2:$R$1000)*('Fixed assets'!$P$2:$P$1000<$A622)*('Fixed assets'!$Q$2:$Q$1000=Costs!C$617))-SUMPRODUCT(('Fixed assets'!$S$2:$S$1000)*('Fixed assets'!$P$2:$P$1000<Costs!$A622)*('Fixed assets'!$Q$2:$Q$1000=Costs!C$617))-SUMPRODUCT(('Fixed assets'!$Q$2:$Q$1000=Costs!C$617)*('Fixed assets'!$U$2:$U$1000=Costs!$A622)*('Fixed assets'!$S$2:$S$1000))+SUMPRODUCT(('Fixed assets'!$Q$2:$Q$1000=Costs!C$617)*('Fixed assets'!$P$2:$P$1000=Costs!$A622)*('Fixed assets'!$U$2:$U$1000=Costs!$A622)*('Fixed assets'!$R$2:$R$1000))","v":0},{"$f":"SUMPRODUCT(('Fixed assets'!$R$2:$R$1000)*('Fixed assets'!$P$2:$P$1000<$A622)*('Fixed assets'!$Q$2:$Q$1000=Costs!D$617))-SUMPRODUCT(('Fixed assets'!$S$2:$S$1000)*('Fixed assets'!$P$2:$P$1000<Costs!$A622)*('Fixed assets'!$Q$2:$Q$1000=Costs!D$617))-SUMPRODUCT(('Fixed assets'!$Q$2:$Q$1000=Costs!D$617)*('Fixed assets'!$U$2:$U$1000=Costs!$A622)*('Fixed assets'!$S$2:$S$1000))+SUMPRODUCT(('Fixed assets'!$Q$2:$Q$1000=Costs!D$617)*('Fixed assets'!$P$2:$P$1000=Costs!$A622)*('Fixed assets'!$U$2:$U$1000=Costs!$A622)*('Fixed assets'!$R$2:$R$1000))","v":0},{"$f":"SUMPRODUCT(('Fixed assets'!$R$2:$R$1000)*('Fixed assets'!$P$2:$P$1000<$A622)*('Fixed assets'!$Q$2:$Q$1000=Costs!E$617))-SUMPRODUCT(('Fixed assets'!$S$2:$S$1000)*('Fixed assets'!$P$2:$P$1000<Costs!$A622)*('Fixed assets'!$Q$2:$Q$1000=Costs!E$617))-SUMPRODUCT(('Fixed assets'!$Q$2:$Q$1000=Costs!E$617)*('Fixed assets'!$U$2:$U$1000=Costs!$A622)*('Fixed assets'!$S$2:$S$1000))+SUMPRODUCT(('Fixed assets'!$Q$2:$Q$1000=Costs!E$617)*('Fixed assets'!$P$2:$P$1000=Costs!$A622)*('Fixed assets'!$U$2:$U$1000=Costs!$A622)*('Fixed assets'!$R$2:$R$1000))","v":0},{"$f":"SUMPRODUCT(('Fixed assets'!$R$2:$R$1000)*('Fixed assets'!$P$2:$P$1000<$A622)*('Fixed assets'!$Q$2:$Q$1000=Costs!F$617))-SUMPRODUCT(('Fixed assets'!$S$2:$S$1000)*('Fixed assets'!$P$2:$P$1000<Costs!$A622)*('Fixed assets'!$Q$2:$Q$1000=Costs!F$617))-SUMPRODUCT(('Fixed assets'!$Q$2:$Q$1000=Costs!F$617)*('Fixed assets'!$U$2:$U$1000=Costs!$A622)*('Fixed assets'!$S$2:$S$1000))+SUMPRODUCT(('Fixed assets'!$Q$2:$Q$1000=Costs!F$617)*('Fixed assets'!$P$2:$P$1000=Costs!$A622)*('Fixed assets'!$U$2:$U$1000=Costs!$A622)*('Fixed assets'!$R$2:$R$1000))","v":0},{"$f":"SUMPRODUCT(('Fixed assets'!$R$2:$R$1000)*('Fixed assets'!$P$2:$P$1000<$A622)*('Fixed assets'!$Q$2:$Q$1000=Costs!G$617))-SUMPRODUCT(('Fixed assets'!$S$2:$S$1000)*('Fixed assets'!$P$2:$P$1000<Costs!$A622)*('Fixed assets'!$Q$2:$Q$1000=Costs!G$617))-SUMPRODUCT(('Fixed assets'!$Q$2:$Q$1000=Costs!G$617)*('Fixed assets'!$U$2:$U$1000=Costs!$A622)*('Fixed assets'!$S$2:$S$1000))+SUMPRODUCT(('Fixed assets'!$Q$2:$Q$1000=Costs!G$617)*('Fixed assets'!$P$2:$P$1000=Costs!$A622)*('Fixed assets'!$U$2:$U$1000=Costs!$A622)*('Fixed assets'!$R$2:$R$1000))","v":0},{"$f":"SUMPRODUCT(('Fixed assets'!$R$2:$R$1000)*('Fixed assets'!$P$2:$P$1000<$A622)*('Fixed assets'!$Q$2:$Q$1000=Costs!H$617))-SUMPRODUCT(('Fixed assets'!$S$2:$S$1000)*('Fixed assets'!$P$2:$P$1000<Costs!$A622)*('Fixed assets'!$Q$2:$Q$1000=Costs!H$617))-SUMPRODUCT(('Fixed assets'!$Q$2:$Q$1000=Costs!H$617)*('Fixed assets'!$U$2:$U$1000=Costs!$A622)*('Fixed assets'!$S$2:$S$1000))+SUMPRODUCT(('Fixed assets'!$Q$2:$Q$1000=Costs!H$617)*('Fixed assets'!$P$2:$P$1000=Costs!$A622)*('Fixed assets'!$U$2:$U$1000=Costs!$A622)*('Fixed assets'!$R$2:$R$1000))","v":0},{"$f":"SUMPRODUCT(('Fixed assets'!$R$2:$R$1000)*('Fixed assets'!$P$2:$P$1000<$A622)*('Fixed assets'!$Q$2:$Q$1000=Costs!I$617))-SUMPRODUCT(('Fixed assets'!$S$2:$S$1000)*('Fixed assets'!$P$2:$P$1000<Costs!$A622)*('Fixed assets'!$Q$2:$Q$1000=Costs!I$617))-SUMPRODUCT(('Fixed assets'!$Q$2:$Q$1000=Costs!I$617)*('Fixed assets'!$U$2:$U$1000=Costs!$A622)*('Fixed assets'!$S$2:$S$1000))+SUMPRODUCT(('Fixed assets'!$Q$2:$Q$1000=Costs!I$617)*('Fixed assets'!$P$2:$P$1000=Costs!$A622)*('Fixed assets'!$U$2:$U$1000=Costs!$A622)*('Fixed assets'!$R$2:$R$1000))","v":0},{"$f":"SUMPRODUCT(('Fixed assets'!$R$2:$R$1000)*('Fixed assets'!$P$2:$P$1000<$A622)*('Fixed assets'!$Q$2:$Q$1000=Costs!J$617))-SUMPRODUCT(('Fixed assets'!$S$2:$S$1000)*('Fixed assets'!$P$2:$P$1000<Costs!$A622)*('Fixed assets'!$Q$2:$Q$1000=Costs!J$617))-SUMPRODUCT(('Fixed assets'!$Q$2:$Q$1000=Costs!J$617)*('Fixed assets'!$U$2:$U$1000=Costs!$A622)*('Fixed assets'!$S$2:$S$1000))+SUMPRODUCT(('Fixed assets'!$Q$2:$Q$1000=Costs!J$617)*('Fixed assets'!$P$2:$P$1000=Costs!$A622)*('Fixed assets'!$U$2:$U$1000=Costs!$A622)*('Fixed assets'!$R$2:$R$1000))","v":0},{"$f":"SUMPRODUCT(('Fixed assets'!$R$2:$R$1000)*('Fixed assets'!$P$2:$P$1000<$A622)*('Fixed assets'!$Q$2:$Q$1000=Costs!K$617))-SUMPRODUCT(('Fixed assets'!$S$2:$S$1000)*('Fixed assets'!$P$2:$P$1000<Costs!$A622)*('Fixed assets'!$Q$2:$Q$1000=Costs!K$617))-SUMPRODUCT(('Fixed assets'!$Q$2:$Q$1000=Costs!K$617)*('Fixed assets'!$U$2:$U$1000=Costs!$A622)*('Fixed assets'!$S$2:$S$1000))+SUMPRODUCT(('Fixed assets'!$Q$2:$Q$1000=Costs!K$617)*('Fixed assets'!$P$2:$P$1000=Costs!$A622)*('Fixed assets'!$U$2:$U$1000=Costs!$A622)*('Fixed assets'!$R$2:$R$1000))","v":0},{"$f":"SUMPRODUCT(('Fixed assets'!$R$2:$R$1000)*('Fixed assets'!$P$2:$P$1000<$A622)*('Fixed assets'!$Q$2:$Q$1000=Costs!L$617))-SUMPRODUCT(('Fixed assets'!$S$2:$S$1000)*('Fixed assets'!$P$2:$P$1000<Costs!$A622)*('Fixed assets'!$Q$2:$Q$1000=Costs!L$617))-SUMPRODUCT(('Fixed assets'!$Q$2:$Q$1000=Costs!L$617)*('Fixed assets'!$U$2:$U$1000=Costs!$A622)*('Fixed assets'!$S$2:$S$1000))+SUMPRODUCT(('Fixed assets'!$Q$2:$Q$1000=Costs!L$617)*('Fixed assets'!$P$2:$P$1000=Costs!$A622)*('Fixed assets'!$U$2:$U$1000=Costs!$A622)*('Fixed assets'!$R$2:$R$1000))","v":0},{"$f":"SUMPRODUCT(('Fixed assets'!$R$2:$R$1000)*('Fixed assets'!$P$2:$P$1000<$A622)*('Fixed assets'!$Q$2:$Q$1000=Costs!M$617))-SUMPRODUCT(('Fixed assets'!$S$2:$S$1000)*('Fixed assets'!$P$2:$P$1000<Costs!$A622)*('Fixed assets'!$Q$2:$Q$1000=Costs!M$617))-SUMPRODUCT(('Fixed assets'!$Q$2:$Q$1000=Costs!M$617)*('Fixed assets'!$U$2:$U$1000=Costs!$A622)*('Fixed assets'!$S$2:$S$1000))+SUMPRODUCT(('Fixed assets'!$Q$2:$Q$1000=Costs!M$617)*('Fixed assets'!$P$2:$P$1000=Costs!$A622)*('Fixed assets'!$U$2:$U$1000=Costs!$A622)*('Fixed assets'!$R$2:$R$1000))","v":0},{"$f":"SUMPRODUCT(('Fixed assets'!$R$2:$R$1000)*('Fixed assets'!$P$2:$P$1000<$A622)*('Fixed assets'!$Q$2:$Q$1000=Costs!N$617))-SUMPRODUCT(('Fixed assets'!$S$2:$S$1000)*('Fixed assets'!$P$2:$P$1000<Costs!$A622)*('Fixed assets'!$Q$2:$Q$1000=Costs!N$617))-SUMPRODUCT(('Fixed assets'!$Q$2:$Q$1000=Costs!N$617)*('Fixed assets'!$U$2:$U$1000=Costs!$A622)*('Fixed assets'!$S$2:$S$1000))+SUMPRODUCT(('Fixed assets'!$Q$2:$Q$1000=Costs!N$617)*('Fixed assets'!$P$2:$P$1000=Costs!$A622)*('Fixed assets'!$U$2:$U$1000=Costs!$A622)*('Fixed assets'!$R$2:$R$1000))","v":0},{"$f":"SUMPRODUCT(('Fixed assets'!$R$2:$R$1000)*('Fixed assets'!$P$2:$P$1000<$A622)*('Fixed assets'!$Q$2:$Q$1000=Costs!O$617))-SUMPRODUCT(('Fixed assets'!$S$2:$S$1000)*('Fixed assets'!$P$2:$P$1000<Costs!$A622)*('Fixed assets'!$Q$2:$Q$1000=Costs!O$617))-SUMPRODUCT(('Fixed assets'!$Q$2:$Q$1000=Costs!O$617)*('Fixed assets'!$U$2:$U$1000=Costs!$A622)*('Fixed assets'!$S$2:$S$1000))+SUMPRODUCT(('Fixed assets'!$Q$2:$Q$1000=Costs!O$617)*('Fixed assets'!$P$2:$P$1000=Costs!$A622)*('Fixed assets'!$U$2:$U$1000=Costs!$A622)*('Fixed assets'!$R$2:$R$1000))","v":0},{"$f":"SUMPRODUCT(('Fixed assets'!$R$2:$R$1000)*('Fixed assets'!$P$2:$P$1000<$A622)*('Fixed assets'!$Q$2:$Q$1000=Costs!P$617))-SUMPRODUCT(('Fixed assets'!$S$2:$S$1000)*('Fixed assets'!$P$2:$P$1000<Costs!$A622)*('Fixed assets'!$Q$2:$Q$1000=Costs!P$617))-SUMPRODUCT(('Fixed assets'!$Q$2:$Q$1000=Costs!P$617)*('Fixed assets'!$U$2:$U$1000=Costs!$A622)*('Fixed assets'!$S$2:$S$1000))+SUMPRODUCT(('Fixed assets'!$Q$2:$Q$1000=Costs!P$617)*('Fixed assets'!$P$2:$P$1000=Costs!$A622)*('Fixed assets'!$U$2:$U$1000=Costs!$A622)*('Fixed assets'!$R$2:$R$1000))","v":0},{"$f":"SUMPRODUCT(('Fixed assets'!$R$2:$R$1000)*('Fixed assets'!$P$2:$P$1000<$A622)*('Fixed assets'!$Q$2:$Q$1000=Costs!Q$617))-SUMPRODUCT(('Fixed assets'!$S$2:$S$1000)*('Fixed assets'!$P$2:$P$1000<Costs!$A622)*('Fixed assets'!$Q$2:$Q$1000=Costs!Q$617))-SUMPRODUCT(('Fixed assets'!$Q$2:$Q$1000=Costs!Q$617)*('Fixed assets'!$U$2:$U$1000=Costs!$A622)*('Fixed assets'!$S$2:$S$1000))+SUMPRODUCT(('Fixed assets'!$Q$2:$Q$1000=Costs!Q$617)*('Fixed assets'!$P$2:$P$1000=Costs!$A622)*('Fixed assets'!$U$2:$U$1000=Costs!$A622)*('Fixed assets'!$R$2:$R$1000))","v":0},{"$f":"SUMPRODUCT(('Fixed assets'!$R$2:$R$1000)*('Fixed assets'!$P$2:$P$1000<$A622)*('Fixed assets'!$Q$2:$Q$1000=Costs!R$617))-SUMPRODUCT(('Fixed assets'!$S$2:$S$1000)*('Fixed assets'!$P$2:$P$1000<Costs!$A622)*('Fixed assets'!$Q$2:$Q$1000=Costs!R$617))-SUMPRODUCT(('Fixed assets'!$Q$2:$Q$1000=Costs!R$617)*('Fixed assets'!$U$2:$U$1000=Costs!$A622)*('Fixed assets'!$S$2:$S$1000))+SUMPRODUCT(('Fixed assets'!$Q$2:$Q$1000=Costs!R$617)*('Fixed assets'!$P$2:$P$1000=Costs!$A622)*('Fixed assets'!$U$2:$U$1000=Costs!$A622)*('Fixed assets'!$R$2:$R$1000))","v":0},{"$f":"SUMPRODUCT(('Fixed assets'!$R$2:$R$1000)*('Fixed assets'!$P$2:$P$1000<$A622)*('Fixed assets'!$Q$2:$Q$1000=Costs!S$617))-SUMPRODUCT(('Fixed assets'!$S$2:$S$1000)*('Fixed assets'!$P$2:$P$1000<Costs!$A622)*('Fixed assets'!$Q$2:$Q$1000=Costs!S$617))-SUMPRODUCT(('Fixed assets'!$Q$2:$Q$1000=Costs!S$617)*('Fixed assets'!$U$2:$U$1000=Costs!$A622)*('Fixed assets'!$S$2:$S$1000))+SUMPRODUCT(('Fixed assets'!$Q$2:$Q$1000=Costs!S$617)*('Fixed assets'!$P$2:$P$1000=Costs!$A622)*('Fixed assets'!$U$2:$U$1000=Costs!$A622)*('Fixed assets'!$R$2:$R$1000))","v":0},{"$f":"SUMPRODUCT(('Fixed assets'!$R$2:$R$1000)*('Fixed assets'!$P$2:$P$1000<$A622)*('Fixed assets'!$Q$2:$Q$1000=Costs!T$617))-SUMPRODUCT(('Fixed assets'!$S$2:$S$1000)*('Fixed assets'!$P$2:$P$1000<Costs!$A622)*('Fixed assets'!$Q$2:$Q$1000=Costs!T$617))-SUMPRODUCT(('Fixed assets'!$Q$2:$Q$1000=Costs!T$617)*('Fixed assets'!$U$2:$U$1000=Costs!$A622)*('Fixed assets'!$S$2:$S$1000))+SUMPRODUCT(('Fixed assets'!$Q$2:$Q$1000=Costs!T$617)*('Fixed assets'!$P$2:$P$1000=Costs!$A622)*('Fixed assets'!$U$2:$U$1000=Costs!$A622)*('Fixed assets'!$R$2:$R$1000))","v":0},{"$f":"SUMPRODUCT(('Fixed assets'!$R$2:$R$1000)*('Fixed assets'!$P$2:$P$1000<$A622)*('Fixed assets'!$Q$2:$Q$1000=Costs!U$617))-SUMPRODUCT(('Fixed assets'!$S$2:$S$1000)*('Fixed assets'!$P$2:$P$1000<Costs!$A622)*('Fixed assets'!$Q$2:$Q$1000=Costs!U$617))-SUMPRODUCT(('Fixed assets'!$Q$2:$Q$1000=Costs!U$617)*('Fixed assets'!$U$2:$U$1000=Costs!$A622)*('Fixed assets'!$S$2:$S$1000))+SUMPRODUCT(('Fixed assets'!$Q$2:$Q$1000=Costs!U$617)*('Fixed assets'!$P$2:$P$1000=Costs!$A622)*('Fixed assets'!$U$2:$U$1000=Costs!$A622)*('Fixed assets'!$R$2:$R$1000))","v":0},{"$f":"SUMPRODUCT(('Fixed assets'!$R$2:$R$1000)*('Fixed assets'!$P$2:$P$1000<$A622)*('Fixed assets'!$Q$2:$Q$1000=Costs!V$617))-SUMPRODUCT(('Fixed assets'!$S$2:$S$1000)*('Fixed assets'!$P$2:$P$1000<Costs!$A622)*('Fixed assets'!$Q$2:$Q$1000=Costs!V$617))-SUMPRODUCT(('Fixed assets'!$Q$2:$Q$1000=Costs!V$617)*('Fixed assets'!$U$2:$U$1000=Costs!$A622)*('Fixed assets'!$S$2:$S$1000))+SUMPRODUCT(('Fixed assets'!$Q$2:$Q$1000=Costs!V$617)*('Fixed assets'!$P$2:$P$1000=Costs!$A622)*('Fixed assets'!$U$2:$U$1000=Costs!$A622)*('Fixed assets'!$R$2:$R$1000))","v":0},{"$f":"SUMPRODUCT(('Fixed assets'!$R$2:$R$1000)*('Fixed assets'!$P$2:$P$1000<$A622)*('Fixed assets'!$Q$2:$Q$1000=Costs!W$617))-SUMPRODUCT(('Fixed assets'!$S$2:$S$1000)*('Fixed assets'!$P$2:$P$1000<Costs!$A622)*('Fixed assets'!$Q$2:$Q$1000=Costs!W$617))-SUMPRODUCT(('Fixed assets'!$Q$2:$Q$1000=Costs!W$617)*('Fixed assets'!$U$2:$U$1000=Costs!$A622)*('Fixed assets'!$S$2:$S$1000))+SUMPRODUCT(('Fixed assets'!$Q$2:$Q$1000=Costs!W$617)*('Fixed assets'!$P$2:$P$1000=Costs!$A622)*('Fixed assets'!$U$2:$U$1000=Costs!$A622)*('Fixed assets'!$R$2:$R$1000))","v":0},{"$f":"SUMPRODUCT(('Fixed assets'!$R$2:$R$1000)*('Fixed assets'!$P$2:$P$1000<$A622)*('Fixed assets'!$Q$2:$Q$1000=Costs!X$617))-SUMPRODUCT(('Fixed assets'!$S$2:$S$1000)*('Fixed assets'!$P$2:$P$1000<Costs!$A622)*('Fixed assets'!$Q$2:$Q$1000=Costs!X$617))-SUMPRODUCT(('Fixed assets'!$Q$2:$Q$1000=Costs!X$617)*('Fixed assets'!$U$2:$U$1000=Costs!$A622)*('Fixed assets'!$S$2:$S$1000))+SUMPRODUCT(('Fixed assets'!$Q$2:$Q$1000=Costs!X$617)*('Fixed assets'!$P$2:$P$1000=Costs!$A622)*('Fixed assets'!$U$2:$U$1000=Costs!$A622)*('Fixed assets'!$R$2:$R$1000))","v":0},{"$f":"SUMPRODUCT(('Fixed assets'!$R$2:$R$1000)*('Fixed assets'!$P$2:$P$1000<$A622)*('Fixed assets'!$Q$2:$Q$1000=Costs!Y$617))-SUMPRODUCT(('Fixed assets'!$S$2:$S$1000)*('Fixed assets'!$P$2:$P$1000<Costs!$A622)*('Fixed assets'!$Q$2:$Q$1000=Costs!Y$617))-SUMPRODUCT(('Fixed assets'!$Q$2:$Q$1000=Costs!Y$617)*('Fixed assets'!$U$2:$U$1000=Costs!$A622)*('Fixed assets'!$S$2:$S$1000))+SUMPRODUCT(('Fixed assets'!$Q$2:$Q$1000=Costs!Y$617)*('Fixed assets'!$P$2:$P$1000=Costs!$A622)*('Fixed assets'!$U$2:$U$1000=Costs!$A622)*('Fixed assets'!$R$2:$R$1000))","v":0},{"$f":"SUMPRODUCT(('Fixed assets'!$R$2:$R$1000)*('Fixed assets'!$P$2:$P$1000<$A622)*('Fixed assets'!$Q$2:$Q$1000=Costs!Z$617))-SUMPRODUCT(('Fixed assets'!$S$2:$S$1000)*('Fixed assets'!$P$2:$P$1000<Costs!$A622)*('Fixed assets'!$Q$2:$Q$1000=Costs!Z$617))-SUMPRODUCT(('Fixed assets'!$Q$2:$Q$1000=Costs!Z$617)*('Fixed assets'!$U$2:$U$1000=Costs!$A622)*('Fixed assets'!$S$2:$S$1000))+SUMPRODUCT(('Fixed assets'!$Q$2:$Q$1000=Costs!Z$617)*('Fixed assets'!$P$2:$P$1000=Costs!$A622)*('Fixed assets'!$U$2:$U$1000=Costs!$A622)*('Fixed assets'!$R$2:$R$1000))","v":0},{"$f":"SUMPRODUCT(('Fixed assets'!$R$2:$R$1000)*('Fixed assets'!$P$2:$P$1000<$A622)*('Fixed assets'!$Q$2:$Q$1000=Costs!AA$617))-SUMPRODUCT(('Fixed assets'!$S$2:$S$1000)*('Fixed assets'!$P$2:$P$1000<Costs!$A622)*('Fixed assets'!$Q$2:$Q$1000=Costs!AA$617))-SUMPRODUCT(('Fixed assets'!$Q$2:$Q$1000=Costs!AA$617)*('Fixed assets'!$U$2:$U$1000=Costs!$A622)*('Fixed assets'!$S$2:$S$1000))+SUMPRODUCT(('Fixed assets'!$Q$2:$Q$1000=Costs!AA$617)*('Fixed assets'!$P$2:$P$1000=Costs!$A622)*('Fixed assets'!$U$2:$U$1000=Costs!$A622)*('Fixed assets'!$R$2:$R$1000))","v":0},{"$f":"SUMPRODUCT(('Fixed assets'!$R$2:$R$1000)*('Fixed assets'!$P$2:$P$1000<$A622)*('Fixed assets'!$Q$2:$Q$1000=Costs!AB$617))-SUMPRODUCT(('Fixed assets'!$S$2:$S$1000)*('Fixed assets'!$P$2:$P$1000<Costs!$A622)*('Fixed assets'!$Q$2:$Q$1000=Costs!AB$617))-SUMPRODUCT(('Fixed assets'!$Q$2:$Q$1000=Costs!AB$617)*('Fixed assets'!$U$2:$U$1000=Costs!$A622)*('Fixed assets'!$S$2:$S$1000))+SUMPRODUCT(('Fixed assets'!$Q$2:$Q$1000=Costs!AB$617)*('Fixed assets'!$P$2:$P$1000=Costs!$A622)*('Fixed assets'!$U$2:$U$1000=Costs!$A622)*('Fixed assets'!$R$2:$R$1000))","v":0},{"$f":"SUMPRODUCT(('Fixed assets'!$R$2:$R$1000)*('Fixed assets'!$P$2:$P$1000<$A622)*('Fixed assets'!$Q$2:$Q$1000=Costs!AC$617))-SUMPRODUCT(('Fixed assets'!$S$2:$S$1000)*('Fixed assets'!$P$2:$P$1000<Costs!$A622)*('Fixed assets'!$Q$2:$Q$1000=Costs!AC$617))-SUMPRODUCT(('Fixed assets'!$Q$2:$Q$1000=Costs!AC$617)*('Fixed assets'!$U$2:$U$1000=Costs!$A622)*('Fixed assets'!$S$2:$S$1000))+SUMPRODUCT(('Fixed assets'!$Q$2:$Q$1000=Costs!AC$617)*('Fixed assets'!$P$2:$P$1000=Costs!$A622)*('Fixed assets'!$U$2:$U$1000=Costs!$A622)*('Fixed assets'!$R$2:$R$1000))","v":0},{"$f":"SUMPRODUCT(('Fixed assets'!$R$2:$R$1000)*('Fixed assets'!$P$2:$P$1000<$A622)*('Fixed assets'!$Q$2:$Q$1000=Costs!AD$617))-SUMPRODUCT(('Fixed assets'!$S$2:$S$1000)*('Fixed assets'!$P$2:$P$1000<Costs!$A622)*('Fixed assets'!$Q$2:$Q$1000=Costs!AD$617))-SUMPRODUCT(('Fixed assets'!$Q$2:$Q$1000=Costs!AD$617)*('Fixed assets'!$U$2:$U$1000=Costs!$A622)*('Fixed assets'!$S$2:$S$1000))+SUMPRODUCT(('Fixed assets'!$Q$2:$Q$1000=Costs!AD$617)*('Fixed assets'!$P$2:$P$1000=Costs!$A622)*('Fixed assets'!$U$2:$U$1000=Costs!$A622)*('Fixed assets'!$R$2:$R$1000))","v":0},{"$f":"SUMPRODUCT(('Fixed assets'!$R$2:$R$1000)*('Fixed assets'!$P$2:$P$1000<$A622)*('Fixed assets'!$Q$2:$Q$1000=Costs!AE$617))-SUMPRODUCT(('Fixed assets'!$S$2:$S$1000)*('Fixed assets'!$P$2:$P$1000<Costs!$A622)*('Fixed assets'!$Q$2:$Q$1000=Costs!AE$617))-SUMPRODUCT(('Fixed assets'!$Q$2:$Q$1000=Costs!AE$617)*('Fixed assets'!$U$2:$U$1000=Costs!$A622)*('Fixed assets'!$S$2:$S$1000))+SUMPRODUCT(('Fixed assets'!$Q$2:$Q$1000=Costs!AE$617)*('Fixed assets'!$P$2:$P$1000=Costs!$A622)*('Fixed assets'!$U$2:$U$1000=Costs!$A622)*('Fixed assets'!$R$2:$R$1000))","v":0},{"$f":"SUMPRODUCT(('Fixed assets'!$R$2:$R$1000)*('Fixed assets'!$P$2:$P$1000<$A622)*('Fixed assets'!$Q$2:$Q$1000=Costs!AF$617))-SUMPRODUCT(('Fixed assets'!$S$2:$S$1000)*('Fixed assets'!$P$2:$P$1000<Costs!$A622)*('Fixed assets'!$Q$2:$Q$1000=Costs!AF$617))-SUMPRODUCT(('Fixed assets'!$Q$2:$Q$1000=Costs!AF$617)*('Fixed assets'!$U$2:$U$1000=Costs!$A622)*('Fixed assets'!$S$2:$S$1000))+SUMPRODUCT(('Fixed assets'!$Q$2:$Q$1000=Costs!AF$617)*('Fixed assets'!$P$2:$P$1000=Costs!$A622)*('Fixed assets'!$U$2:$U$1000=Costs!$A622)*('Fixed assets'!$R$2:$R$1000))","v":0},{"$f":"SUMPRODUCT(('Fixed assets'!$R$2:$R$1000)*('Fixed assets'!$P$2:$P$1000<$A622)*('Fixed assets'!$Q$2:$Q$1000=Costs!AG$617))-SUMPRODUCT(('Fixed assets'!$S$2:$S$1000)*('Fixed assets'!$P$2:$P$1000<Costs!$A622)*('Fixed assets'!$Q$2:$Q$1000=Costs!AG$617))-SUMPRODUCT(('Fixed assets'!$Q$2:$Q$1000=Costs!AG$617)*('Fixed assets'!$U$2:$U$1000=Costs!$A622)*('Fixed assets'!$S$2:$S$1000))+SUMPRODUCT(('Fixed assets'!$Q$2:$Q$1000=Costs!AG$617)*('Fixed assets'!$P$2:$P$1000=Costs!$A622)*('Fixed assets'!$U$2:$U$1000=Costs!$A622)*('Fixed assets'!$R$2:$R$1000))","v":0},{"$f":"SUMPRODUCT(('Fixed assets'!$R$2:$R$1000)*('Fixed assets'!$P$2:$P$1000<$A622)*('Fixed assets'!$Q$2:$Q$1000=Costs!AH$617))-SUMPRODUCT(('Fixed assets'!$S$2:$S$1000)*('Fixed assets'!$P$2:$P$1000<Costs!$A622)*('Fixed assets'!$Q$2:$Q$1000=Costs!AH$617))-SUMPRODUCT(('Fixed assets'!$Q$2:$Q$1000=Costs!AH$617)*('Fixed assets'!$U$2:$U$1000=Costs!$A622)*('Fixed assets'!$S$2:$S$1000))+SUMPRODUCT(('Fixed assets'!$Q$2:$Q$1000=Costs!AH$617)*('Fixed assets'!$P$2:$P$1000=Costs!$A622)*('Fixed assets'!$U$2:$U$1000=Costs!$A622)*('Fixed assets'!$R$2:$R$1000))","v":0},{"$f":"SUMPRODUCT(('Fixed assets'!$R$2:$R$1000)*('Fixed assets'!$P$2:$P$1000<$A622)*('Fixed assets'!$Q$2:$Q$1000=Costs!AI$617))-SUMPRODUCT(('Fixed assets'!$S$2:$S$1000)*('Fixed assets'!$P$2:$P$1000<Costs!$A622)*('Fixed assets'!$Q$2:$Q$1000=Costs!AI$617))-SUMPRODUCT(('Fixed assets'!$Q$2:$Q$1000=Costs!AI$617)*('Fixed assets'!$U$2:$U$1000=Costs!$A622)*('Fixed assets'!$S$2:$S$1000))+SUMPRODUCT(('Fixed assets'!$Q$2:$Q$1000=Costs!AI$617)*('Fixed assets'!$P$2:$P$1000=Costs!$A622)*('Fixed assets'!$U$2:$U$1000=Costs!$A622)*('Fixed assets'!$R$2:$R$1000))","v":0},{"$f":"SUMPRODUCT(('Fixed assets'!$R$2:$R$1000)*('Fixed assets'!$P$2:$P$1000<$A622)*('Fixed assets'!$Q$2:$Q$1000=Costs!AJ$617))-SUMPRODUCT(('Fixed assets'!$S$2:$S$1000)*('Fixed assets'!$P$2:$P$1000<Costs!$A622)*('Fixed assets'!$Q$2:$Q$1000=Costs!AJ$617))-SUMPRODUCT(('Fixed assets'!$Q$2:$Q$1000=Costs!AJ$617)*('Fixed assets'!$U$2:$U$1000=Costs!$A622)*('Fixed assets'!$S$2:$S$1000))+SUMPRODUCT(('Fixed assets'!$Q$2:$Q$1000=Costs!AJ$617)*('Fixed assets'!$P$2:$P$1000=Costs!$A622)*('Fixed assets'!$U$2:$U$1000=Costs!$A622)*('Fixed assets'!$R$2:$R$1000))","v":0},{"$f":"SUMPRODUCT(('Fixed assets'!$R$2:$R$1000)*('Fixed assets'!$P$2:$P$1000<$A622)*('Fixed assets'!$Q$2:$Q$1000=Costs!AK$617))-SUMPRODUCT(('Fixed assets'!$S$2:$S$1000)*('Fixed assets'!$P$2:$P$1000<Costs!$A622)*('Fixed assets'!$Q$2:$Q$1000=Costs!AK$617))-SUMPRODUCT(('Fixed assets'!$Q$2:$Q$1000=Costs!AK$617)*('Fixed assets'!$U$2:$U$1000=Costs!$A622)*('Fixed assets'!$S$2:$S$1000))+SUMPRODUCT(('Fixed assets'!$Q$2:$Q$1000=Costs!AK$617)*('Fixed assets'!$P$2:$P$1000=Costs!$A622)*('Fixed assets'!$U$2:$U$1000=Costs!$A622)*('Fixed assets'!$R$2:$R$1000))","v":0},{"$f":"SUMPRODUCT(('Fixed assets'!$R$2:$R$1000)*('Fixed assets'!$P$2:$P$1000<$A622)*('Fixed assets'!$Q$2:$Q$1000=Costs!AL$617))-SUMPRODUCT(('Fixed assets'!$S$2:$S$1000)*('Fixed assets'!$P$2:$P$1000<Costs!$A622)*('Fixed assets'!$Q$2:$Q$1000=Costs!AL$617))-SUMPRODUCT(('Fixed assets'!$Q$2:$Q$1000=Costs!AL$617)*('Fixed assets'!$U$2:$U$1000=Costs!$A622)*('Fixed assets'!$S$2:$S$1000))+SUMPRODUCT(('Fixed assets'!$Q$2:$Q$1000=Costs!AL$617)*('Fixed assets'!$P$2:$P$1000=Costs!$A622)*('Fixed assets'!$U$2:$U$1000=Costs!$A622)*('Fixed assets'!$R$2:$R$1000))","v":0},{"$f":"SUMPRODUCT(('Fixed assets'!$R$2:$R$1000)*('Fixed assets'!$P$2:$P$1000<$A622)*('Fixed assets'!$Q$2:$Q$1000=Costs!AM$617))-SUMPRODUCT(('Fixed assets'!$S$2:$S$1000)*('Fixed assets'!$P$2:$P$1000<Costs!$A622)*('Fixed assets'!$Q$2:$Q$1000=Costs!AM$617))-SUMPRODUCT(('Fixed assets'!$Q$2:$Q$1000=Costs!AM$617)*('Fixed assets'!$U$2:$U$1000=Costs!$A622)*('Fixed assets'!$S$2:$S$1000))+SUMPRODUCT(('Fixed assets'!$Q$2:$Q$1000=Costs!AM$617)*('Fixed assets'!$P$2:$P$1000=Costs!$A622)*('Fixed assets'!$U$2:$U$1000=Costs!$A622)*('Fixed assets'!$R$2:$R$1000))","v":0},{"$f":"SUMPRODUCT(('Fixed assets'!$R$2:$R$1000)*('Fixed assets'!$P$2:$P$1000<$A622)*('Fixed assets'!$Q$2:$Q$1000=Costs!AN$617))-SUMPRODUCT(('Fixed assets'!$S$2:$S$1000)*('Fixed assets'!$P$2:$P$1000<Costs!$A622)*('Fixed assets'!$Q$2:$Q$1000=Costs!AN$617))-SUMPRODUCT(('Fixed assets'!$Q$2:$Q$1000=Costs!AN$617)*('Fixed assets'!$U$2:$U$1000=Costs!$A622)*('Fixed assets'!$S$2:$S$1000))+SUMPRODUCT(('Fixed assets'!$Q$2:$Q$1000=Costs!AN$617)*('Fixed assets'!$P$2:$P$1000=Costs!$A622)*('Fixed assets'!$U$2:$U$1000=Costs!$A622)*('Fixed assets'!$R$2:$R$1000))","v":0},{"$f":"SUMPRODUCT(('Fixed assets'!$R$2:$R$1000)*('Fixed assets'!$P$2:$P$1000<$A622)*('Fixed assets'!$Q$2:$Q$1000=Costs!AO$617))-SUMPRODUCT(('Fixed assets'!$S$2:$S$1000)*('Fixed assets'!$P$2:$P$1000<Costs!$A622)*('Fixed assets'!$Q$2:$Q$1000=Costs!AO$617))-SUMPRODUCT(('Fixed assets'!$Q$2:$Q$1000=Costs!AO$617)*('Fixed assets'!$U$2:$U$1000=Costs!$A622)*('Fixed assets'!$S$2:$S$1000))+SUMPRODUCT(('Fixed assets'!$Q$2:$Q$1000=Costs!AO$617)*('Fixed assets'!$P$2:$P$1000=Costs!$A622)*('Fixed assets'!$U$2:$U$1000=Costs!$A622)*('Fixed assets'!$R$2:$R$1000))","v":0},{"$f":"SUMPRODUCT(('Fixed assets'!$R$2:$R$1000)*('Fixed assets'!$P$2:$P$1000<$A622)*('Fixed assets'!$Q$2:$Q$1000=Costs!AP$617))-SUMPRODUCT(('Fixed assets'!$S$2:$S$1000)*('Fixed assets'!$P$2:$P$1000<Costs!$A622)*('Fixed assets'!$Q$2:$Q$1000=Costs!AP$617))-SUMPRODUCT(('Fixed assets'!$Q$2:$Q$1000=Costs!AP$617)*('Fixed assets'!$U$2:$U$1000=Costs!$A622)*('Fixed assets'!$S$2:$S$1000))+SUMPRODUCT(('Fixed assets'!$Q$2:$Q$1000=Costs!AP$617)*('Fixed assets'!$P$2:$P$1000=Costs!$A622)*('Fixed assets'!$U$2:$U$1000=Costs!$A622)*('Fixed assets'!$R$2:$R$1000))","v":0},{"$f":"SUMPRODUCT(('Fixed assets'!$R$2:$R$1000)*('Fixed assets'!$P$2:$P$1000<$A622)*('Fixed assets'!$Q$2:$Q$1000=Costs!AQ$617))-SUMPRODUCT(('Fixed assets'!$S$2:$S$1000)*('Fixed assets'!$P$2:$P$1000<Costs!$A622)*('Fixed assets'!$Q$2:$Q$1000=Costs!AQ$617))-SUMPRODUCT(('Fixed assets'!$Q$2:$Q$1000=Costs!AQ$617)*('Fixed assets'!$U$2:$U$1000=Costs!$A622)*('Fixed assets'!$S$2:$S$1000))+SUMPRODUCT(('Fixed assets'!$Q$2:$Q$1000=Costs!AQ$617)*('Fixed assets'!$P$2:$P$1000=Costs!$A622)*('Fixed assets'!$U$2:$U$1000=Costs!$A622)*('Fixed assets'!$R$2:$R$1000))","v":0}]
[2020,0,{"$f":"SUMPRODUCT(('Fixed assets'!$R$2:$R$1000)*('Fixed assets'!$P$2:$P$1000<$A623)*('Fixed assets'!$Q$2:$Q$1000=Costs!C$617))-SUMPRODUCT(('Fixed assets'!$S$2:$S$1000)*('Fixed assets'!$P$2:$P$1000<Costs!$A623)*('Fixed assets'!$Q$2:$Q$1000=Costs!C$617))-SUMPRODUCT(('Fixed assets'!$Q$2:$Q$1000=Costs!C$617)*('Fixed assets'!$U$2:$U$1000=Costs!$A623)*('Fixed assets'!$S$2:$S$1000))+SUMPRODUCT(('Fixed assets'!$Q$2:$Q$1000=Costs!C$617)*('Fixed assets'!$P$2:$P$1000=Costs!$A623)*('Fixed assets'!$U$2:$U$1000=Costs!$A623)*('Fixed assets'!$R$2:$R$1000))","v":0},{"$f":"SUMPRODUCT(('Fixed assets'!$R$2:$R$1000)*('Fixed assets'!$P$2:$P$1000<$A623)*('Fixed assets'!$Q$2:$Q$1000=Costs!D$617))-SUMPRODUCT(('Fixed assets'!$S$2:$S$1000)*('Fixed assets'!$P$2:$P$1000<Costs!$A623)*('Fixed assets'!$Q$2:$Q$1000=Costs!D$617))-SUMPRODUCT(('Fixed assets'!$Q$2:$Q$1000=Costs!D$617)*('Fixed assets'!$U$2:$U$1000=Costs!$A623)*('Fixed assets'!$S$2:$S$1000))+SUMPRODUCT(('Fixed assets'!$Q$2:$Q$1000=Costs!D$617)*('Fixed assets'!$P$2:$P$1000=Costs!$A623)*('Fixed assets'!$U$2:$U$1000=Costs!$A623)*('Fixed assets'!$R$2:$R$1000))","v":0},{"$f":"SUMPRODUCT(('Fixed assets'!$R$2:$R$1000)*('Fixed assets'!$P$2:$P$1000<$A623)*('Fixed assets'!$Q$2:$Q$1000=Costs!E$617))-SUMPRODUCT(('Fixed assets'!$S$2:$S$1000)*('Fixed assets'!$P$2:$P$1000<Costs!$A623)*('Fixed assets'!$Q$2:$Q$1000=Costs!E$617))-SUMPRODUCT(('Fixed assets'!$Q$2:$Q$1000=Costs!E$617)*('Fixed assets'!$U$2:$U$1000=Costs!$A623)*('Fixed assets'!$S$2:$S$1000))+SUMPRODUCT(('Fixed assets'!$Q$2:$Q$1000=Costs!E$617)*('Fixed assets'!$P$2:$P$1000=Costs!$A623)*('Fixed assets'!$U$2:$U$1000=Costs!$A623)*('Fixed assets'!$R$2:$R$1000))","v":0},{"$f":"SUMPRODUCT(('Fixed assets'!$R$2:$R$1000)*('Fixed assets'!$P$2:$P$1000<$A623)*('Fixed assets'!$Q$2:$Q$1000=Costs!F$617))-SUMPRODUCT(('Fixed assets'!$S$2:$S$1000)*('Fixed assets'!$P$2:$P$1000<Costs!$A623)*('Fixed assets'!$Q$2:$Q$1000=Costs!F$617))-SUMPRODUCT(('Fixed assets'!$Q$2:$Q$1000=Costs!F$617)*('Fixed assets'!$U$2:$U$1000=Costs!$A623)*('Fixed assets'!$S$2:$S$1000))+SUMPRODUCT(('Fixed assets'!$Q$2:$Q$1000=Costs!F$617)*('Fixed assets'!$P$2:$P$1000=Costs!$A623)*('Fixed assets'!$U$2:$U$1000=Costs!$A623)*('Fixed assets'!$R$2:$R$1000))","v":0},{"$f":"SUMPRODUCT(('Fixed assets'!$R$2:$R$1000)*('Fixed assets'!$P$2:$P$1000<$A623)*('Fixed assets'!$Q$2:$Q$1000=Costs!G$617))-SUMPRODUCT(('Fixed assets'!$S$2:$S$1000)*('Fixed assets'!$P$2:$P$1000<Costs!$A623)*('Fixed assets'!$Q$2:$Q$1000=Costs!G$617))-SUMPRODUCT(('Fixed assets'!$Q$2:$Q$1000=Costs!G$617)*('Fixed assets'!$U$2:$U$1000=Costs!$A623)*('Fixed assets'!$S$2:$S$1000))+SUMPRODUCT(('Fixed assets'!$Q$2:$Q$1000=Costs!G$617)*('Fixed assets'!$P$2:$P$1000=Costs!$A623)*('Fixed assets'!$U$2:$U$1000=Costs!$A623)*('Fixed assets'!$R$2:$R$1000))","v":0},{"$f":"SUMPRODUCT(('Fixed assets'!$R$2:$R$1000)*('Fixed assets'!$P$2:$P$1000<$A623)*('Fixed assets'!$Q$2:$Q$1000=Costs!H$617))-SUMPRODUCT(('Fixed assets'!$S$2:$S$1000)*('Fixed assets'!$P$2:$P$1000<Costs!$A623)*('Fixed assets'!$Q$2:$Q$1000=Costs!H$617))-SUMPRODUCT(('Fixed assets'!$Q$2:$Q$1000=Costs!H$617)*('Fixed assets'!$U$2:$U$1000=Costs!$A623)*('Fixed assets'!$S$2:$S$1000))+SUMPRODUCT(('Fixed assets'!$Q$2:$Q$1000=Costs!H$617)*('Fixed assets'!$P$2:$P$1000=Costs!$A623)*('Fixed assets'!$U$2:$U$1000=Costs!$A623)*('Fixed assets'!$R$2:$R$1000))","v":0},{"$f":"SUMPRODUCT(('Fixed assets'!$R$2:$R$1000)*('Fixed assets'!$P$2:$P$1000<$A623)*('Fixed assets'!$Q$2:$Q$1000=Costs!I$617))-SUMPRODUCT(('Fixed assets'!$S$2:$S$1000)*('Fixed assets'!$P$2:$P$1000<Costs!$A623)*('Fixed assets'!$Q$2:$Q$1000=Costs!I$617))-SUMPRODUCT(('Fixed assets'!$Q$2:$Q$1000=Costs!I$617)*('Fixed assets'!$U$2:$U$1000=Costs!$A623)*('Fixed assets'!$S$2:$S$1000))+SUMPRODUCT(('Fixed assets'!$Q$2:$Q$1000=Costs!I$617)*('Fixed assets'!$P$2:$P$1000=Costs!$A623)*('Fixed assets'!$U$2:$U$1000=Costs!$A623)*('Fixed assets'!$R$2:$R$1000))","v":0},{"$f":"SUMPRODUCT(('Fixed assets'!$R$2:$R$1000)*('Fixed assets'!$P$2:$P$1000<$A623)*('Fixed assets'!$Q$2:$Q$1000=Costs!J$617))-SUMPRODUCT(('Fixed assets'!$S$2:$S$1000)*('Fixed assets'!$P$2:$P$1000<Costs!$A623)*('Fixed assets'!$Q$2:$Q$1000=Costs!J$617))-SUMPRODUCT(('Fixed assets'!$Q$2:$Q$1000=Costs!J$617)*('Fixed assets'!$U$2:$U$1000=Costs!$A623)*('Fixed assets'!$S$2:$S$1000))+SUMPRODUCT(('Fixed assets'!$Q$2:$Q$1000=Costs!J$617)*('Fixed assets'!$P$2:$P$1000=Costs!$A623)*('Fixed assets'!$U$2:$U$1000=Costs!$A623)*('Fixed assets'!$R$2:$R$1000))","v":0},{"$f":"SUMPRODUCT(('Fixed assets'!$R$2:$R$1000)*('Fixed assets'!$P$2:$P$1000<$A623)*('Fixed assets'!$Q$2:$Q$1000=Costs!K$617))-SUMPRODUCT(('Fixed assets'!$S$2:$S$1000)*('Fixed assets'!$P$2:$P$1000<Costs!$A623)*('Fixed assets'!$Q$2:$Q$1000=Costs!K$617))-SUMPRODUCT(('Fixed assets'!$Q$2:$Q$1000=Costs!K$617)*('Fixed assets'!$U$2:$U$1000=Costs!$A623)*('Fixed assets'!$S$2:$S$1000))+SUMPRODUCT(('Fixed assets'!$Q$2:$Q$1000=Costs!K$617)*('Fixed assets'!$P$2:$P$1000=Costs!$A623)*('Fixed assets'!$U$2:$U$1000=Costs!$A623)*('Fixed assets'!$R$2:$R$1000))","v":0},{"$f":"SUMPRODUCT(('Fixed assets'!$R$2:$R$1000)*('Fixed assets'!$P$2:$P$1000<$A623)*('Fixed assets'!$Q$2:$Q$1000=Costs!L$617))-SUMPRODUCT(('Fixed assets'!$S$2:$S$1000)*('Fixed assets'!$P$2:$P$1000<Costs!$A623)*('Fixed assets'!$Q$2:$Q$1000=Costs!L$617))-SUMPRODUCT(('Fixed assets'!$Q$2:$Q$1000=Costs!L$617)*('Fixed assets'!$U$2:$U$1000=Costs!$A623)*('Fixed assets'!$S$2:$S$1000))+SUMPRODUCT(('Fixed assets'!$Q$2:$Q$1000=Costs!L$617)*('Fixed assets'!$P$2:$P$1000=Costs!$A623)*('Fixed assets'!$U$2:$U$1000=Costs!$A623)*('Fixed assets'!$R$2:$R$1000))","v":0},{"$f":"SUMPRODUCT(('Fixed assets'!$R$2:$R$1000)*('Fixed assets'!$P$2:$P$1000<$A623)*('Fixed assets'!$Q$2:$Q$1000=Costs!M$617))-SUMPRODUCT(('Fixed assets'!$S$2:$S$1000)*('Fixed assets'!$P$2:$P$1000<Costs!$A623)*('Fixed assets'!$Q$2:$Q$1000=Costs!M$617))-SUMPRODUCT(('Fixed assets'!$Q$2:$Q$1000=Costs!M$617)*('Fixed assets'!$U$2:$U$1000=Costs!$A623)*('Fixed assets'!$S$2:$S$1000))+SUMPRODUCT(('Fixed assets'!$Q$2:$Q$1000=Costs!M$617)*('Fixed assets'!$P$2:$P$1000=Costs!$A623)*('Fixed assets'!$U$2:$U$1000=Costs!$A623)*('Fixed assets'!$R$2:$R$1000))","v":0},{"$f":"SUMPRODUCT(('Fixed assets'!$R$2:$R$1000)*('Fixed assets'!$P$2:$P$1000<$A623)*('Fixed assets'!$Q$2:$Q$1000=Costs!N$617))-SUMPRODUCT(('Fixed assets'!$S$2:$S$1000)*('Fixed assets'!$P$2:$P$1000<Costs!$A623)*('Fixed assets'!$Q$2:$Q$1000=Costs!N$617))-SUMPRODUCT(('Fixed assets'!$Q$2:$Q$1000=Costs!N$617)*('Fixed assets'!$U$2:$U$1000=Costs!$A623)*('Fixed assets'!$S$2:$S$1000))+SUMPRODUCT(('Fixed assets'!$Q$2:$Q$1000=Costs!N$617)*('Fixed assets'!$P$2:$P$1000=Costs!$A623)*('Fixed assets'!$U$2:$U$1000=Costs!$A623)*('Fixed assets'!$R$2:$R$1000))","v":0},{"$f":"SUMPRODUCT(('Fixed assets'!$R$2:$R$1000)*('Fixed assets'!$P$2:$P$1000<$A623)*('Fixed assets'!$Q$2:$Q$1000=Costs!O$617))-SUMPRODUCT(('Fixed assets'!$S$2:$S$1000)*('Fixed assets'!$P$2:$P$1000<Costs!$A623)*('Fixed assets'!$Q$2:$Q$1000=Costs!O$617))-SUMPRODUCT(('Fixed assets'!$Q$2:$Q$1000=Costs!O$617)*('Fixed assets'!$U$2:$U$1000=Costs!$A623)*('Fixed assets'!$S$2:$S$1000))+SUMPRODUCT(('Fixed assets'!$Q$2:$Q$1000=Costs!O$617)*('Fixed assets'!$P$2:$P$1000=Costs!$A623)*('Fixed assets'!$U$2:$U$1000=Costs!$A623)*('Fixed assets'!$R$2:$R$1000))","v":0},{"$f":"SUMPRODUCT(('Fixed assets'!$R$2:$R$1000)*('Fixed assets'!$P$2:$P$1000<$A623)*('Fixed assets'!$Q$2:$Q$1000=Costs!P$617))-SUMPRODUCT(('Fixed assets'!$S$2:$S$1000)*('Fixed assets'!$P$2:$P$1000<Costs!$A623)*('Fixed assets'!$Q$2:$Q$1000=Costs!P$617))-SUMPRODUCT(('Fixed assets'!$Q$2:$Q$1000=Costs!P$617)*('Fixed assets'!$U$2:$U$1000=Costs!$A623)*('Fixed assets'!$S$2:$S$1000))+SUMPRODUCT(('Fixed assets'!$Q$2:$Q$1000=Costs!P$617)*('Fixed assets'!$P$2:$P$1000=Costs!$A623)*('Fixed assets'!$U$2:$U$1000=Costs!$A623)*('Fixed assets'!$R$2:$R$1000))","v":0},{"$f":"SUMPRODUCT(('Fixed assets'!$R$2:$R$1000)*('Fixed assets'!$P$2:$P$1000<$A623)*('Fixed assets'!$Q$2:$Q$1000=Costs!Q$617))-SUMPRODUCT(('Fixed assets'!$S$2:$S$1000)*('Fixed assets'!$P$2:$P$1000<Costs!$A623)*('Fixed assets'!$Q$2:$Q$1000=Costs!Q$617))-SUMPRODUCT(('Fixed assets'!$Q$2:$Q$1000=Costs!Q$617)*('Fixed assets'!$U$2:$U$1000=Costs!$A623)*('Fixed assets'!$S$2:$S$1000))+SUMPRODUCT(('Fixed assets'!$Q$2:$Q$1000=Costs!Q$617)*('Fixed assets'!$P$2:$P$1000=Costs!$A623)*('Fixed assets'!$U$2:$U$1000=Costs!$A623)*('Fixed assets'!$R$2:$R$1000))","v":0},{"$f":"SUMPRODUCT(('Fixed assets'!$R$2:$R$1000)*('Fixed assets'!$P$2:$P$1000<$A623)*('Fixed assets'!$Q$2:$Q$1000=Costs!R$617))-SUMPRODUCT(('Fixed assets'!$S$2:$S$1000)*('Fixed assets'!$P$2:$P$1000<Costs!$A623)*('Fixed assets'!$Q$2:$Q$1000=Costs!R$617))-SUMPRODUCT(('Fixed assets'!$Q$2:$Q$1000=Costs!R$617)*('Fixed assets'!$U$2:$U$1000=Costs!$A623)*('Fixed assets'!$S$2:$S$1000))+SUMPRODUCT(('Fixed assets'!$Q$2:$Q$1000=Costs!R$617)*('Fixed assets'!$P$2:$P$1000=Costs!$A623)*('Fixed assets'!$U$2:$U$1000=Costs!$A623)*('Fixed assets'!$R$2:$R$1000))","v":0},{"$f":"SUMPRODUCT(('Fixed assets'!$R$2:$R$1000)*('Fixed assets'!$P$2:$P$1000<$A623)*('Fixed assets'!$Q$2:$Q$1000=Costs!S$617))-SUMPRODUCT(('Fixed assets'!$S$2:$S$1000)*('Fixed assets'!$P$2:$P$1000<Costs!$A623)*('Fixed assets'!$Q$2:$Q$1000=Costs!S$617))-SUMPRODUCT(('Fixed assets'!$Q$2:$Q$1000=Costs!S$617)*('Fixed assets'!$U$2:$U$1000=Costs!$A623)*('Fixed assets'!$S$2:$S$1000))+SUMPRODUCT(('Fixed assets'!$Q$2:$Q$1000=Costs!S$617)*('Fixed assets'!$P$2:$P$1000=Costs!$A623)*('Fixed assets'!$U$2:$U$1000=Costs!$A623)*('Fixed assets'!$R$2:$R$1000))","v":0},{"$f":"SUMPRODUCT(('Fixed assets'!$R$2:$R$1000)*('Fixed assets'!$P$2:$P$1000<$A623)*('Fixed assets'!$Q$2:$Q$1000=Costs!T$617))-SUMPRODUCT(('Fixed assets'!$S$2:$S$1000)*('Fixed assets'!$P$2:$P$1000<Costs!$A623)*('Fixed assets'!$Q$2:$Q$1000=Costs!T$617))-SUMPRODUCT(('Fixed assets'!$Q$2:$Q$1000=Costs!T$617)*('Fixed assets'!$U$2:$U$1000=Costs!$A623)*('Fixed assets'!$S$2:$S$1000))+SUMPRODUCT(('Fixed assets'!$Q$2:$Q$1000=Costs!T$617)*('Fixed assets'!$P$2:$P$1000=Costs!$A623)*('Fixed assets'!$U$2:$U$1000=Costs!$A623)*('Fixed assets'!$R$2:$R$1000))","v":0},{"$f":"SUMPRODUCT(('Fixed assets'!$R$2:$R$1000)*('Fixed assets'!$P$2:$P$1000<$A623)*('Fixed assets'!$Q$2:$Q$1000=Costs!U$617))-SUMPRODUCT(('Fixed assets'!$S$2:$S$1000)*('Fixed assets'!$P$2:$P$1000<Costs!$A623)*('Fixed assets'!$Q$2:$Q$1000=Costs!U$617))-SUMPRODUCT(('Fixed assets'!$Q$2:$Q$1000=Costs!U$617)*('Fixed assets'!$U$2:$U$1000=Costs!$A623)*('Fixed assets'!$S$2:$S$1000))+SUMPRODUCT(('Fixed assets'!$Q$2:$Q$1000=Costs!U$617)*('Fixed assets'!$P$2:$P$1000=Costs!$A623)*('Fixed assets'!$U$2:$U$1000=Costs!$A623)*('Fixed assets'!$R$2:$R$1000))","v":0},{"$f":"SUMPRODUCT(('Fixed assets'!$R$2:$R$1000)*('Fixed assets'!$P$2:$P$1000<$A623)*('Fixed assets'!$Q$2:$Q$1000=Costs!V$617))-SUMPRODUCT(('Fixed assets'!$S$2:$S$1000)*('Fixed assets'!$P$2:$P$1000<Costs!$A623)*('Fixed assets'!$Q$2:$Q$1000=Costs!V$617))-SUMPRODUCT(('Fixed assets'!$Q$2:$Q$1000=Costs!V$617)*('Fixed assets'!$U$2:$U$1000=Costs!$A623)*('Fixed assets'!$S$2:$S$1000))+SUMPRODUCT(('Fixed assets'!$Q$2:$Q$1000=Costs!V$617)*('Fixed assets'!$P$2:$P$1000=Costs!$A623)*('Fixed assets'!$U$2:$U$1000=Costs!$A623)*('Fixed assets'!$R$2:$R$1000))","v":0},{"$f":"SUMPRODUCT(('Fixed assets'!$R$2:$R$1000)*('Fixed assets'!$P$2:$P$1000<$A623)*('Fixed assets'!$Q$2:$Q$1000=Costs!W$617))-SUMPRODUCT(('Fixed assets'!$S$2:$S$1000)*('Fixed assets'!$P$2:$P$1000<Costs!$A623)*('Fixed assets'!$Q$2:$Q$1000=Costs!W$617))-SUMPRODUCT(('Fixed assets'!$Q$2:$Q$1000=Costs!W$617)*('Fixed assets'!$U$2:$U$1000=Costs!$A623)*('Fixed assets'!$S$2:$S$1000))+SUMPRODUCT(('Fixed assets'!$Q$2:$Q$1000=Costs!W$617)*('Fixed assets'!$P$2:$P$1000=Costs!$A623)*('Fixed assets'!$U$2:$U$1000=Costs!$A623)*('Fixed assets'!$R$2:$R$1000))","v":0},{"$f":"SUMPRODUCT(('Fixed assets'!$R$2:$R$1000)*('Fixed assets'!$P$2:$P$1000<$A623)*('Fixed assets'!$Q$2:$Q$1000=Costs!X$617))-SUMPRODUCT(('Fixed assets'!$S$2:$S$1000)*('Fixed assets'!$P$2:$P$1000<Costs!$A623)*('Fixed assets'!$Q$2:$Q$1000=Costs!X$617))-SUMPRODUCT(('Fixed assets'!$Q$2:$Q$1000=Costs!X$617)*('Fixed assets'!$U$2:$U$1000=Costs!$A623)*('Fixed assets'!$S$2:$S$1000))+SUMPRODUCT(('Fixed assets'!$Q$2:$Q$1000=Costs!X$617)*('Fixed assets'!$P$2:$P$1000=Costs!$A623)*('Fixed assets'!$U$2:$U$1000=Costs!$A623)*('Fixed assets'!$R$2:$R$1000))","v":0},{"$f":"SUMPRODUCT(('Fixed assets'!$R$2:$R$1000)*('Fixed assets'!$P$2:$P$1000<$A623)*('Fixed assets'!$Q$2:$Q$1000=Costs!Y$617))-SUMPRODUCT(('Fixed assets'!$S$2:$S$1000)*('Fixed assets'!$P$2:$P$1000<Costs!$A623)*('Fixed assets'!$Q$2:$Q$1000=Costs!Y$617))-SUMPRODUCT(('Fixed assets'!$Q$2:$Q$1000=Costs!Y$617)*('Fixed assets'!$U$2:$U$1000=Costs!$A623)*('Fixed assets'!$S$2:$S$1000))+SUMPRODUCT(('Fixed assets'!$Q$2:$Q$1000=Costs!Y$617)*('Fixed assets'!$P$2:$P$1000=Costs!$A623)*('Fixed assets'!$U$2:$U$1000=Costs!$A623)*('Fixed assets'!$R$2:$R$1000))","v":0},{"$f":"SUMPRODUCT(('Fixed assets'!$R$2:$R$1000)*('Fixed assets'!$P$2:$P$1000<$A623)*('Fixed assets'!$Q$2:$Q$1000=Costs!Z$617))-SUMPRODUCT(('Fixed assets'!$S$2:$S$1000)*('Fixed assets'!$P$2:$P$1000<Costs!$A623)*('Fixed assets'!$Q$2:$Q$1000=Costs!Z$617))-SUMPRODUCT(('Fixed assets'!$Q$2:$Q$1000=Costs!Z$617)*('Fixed assets'!$U$2:$U$1000=Costs!$A623)*('Fixed assets'!$S$2:$S$1000))+SUMPRODUCT(('Fixed assets'!$Q$2:$Q$1000=Costs!Z$617)*('Fixed assets'!$P$2:$P$1000=Costs!$A623)*('Fixed assets'!$U$2:$U$1000=Costs!$A623)*('Fixed assets'!$R$2:$R$1000))","v":0},{"$f":"SUMPRODUCT(('Fixed assets'!$R$2:$R$1000)*('Fixed assets'!$P$2:$P$1000<$A623)*('Fixed assets'!$Q$2:$Q$1000=Costs!AA$617))-SUMPRODUCT(('Fixed assets'!$S$2:$S$1000)*('Fixed assets'!$P$2:$P$1000<Costs!$A623)*('Fixed assets'!$Q$2:$Q$1000=Costs!AA$617))-SUMPRODUCT(('Fixed assets'!$Q$2:$Q$1000=Costs!AA$617)*('Fixed assets'!$U$2:$U$1000=Costs!$A623)*('Fixed assets'!$S$2:$S$1000))+SUMPRODUCT(('Fixed assets'!$Q$2:$Q$1000=Costs!AA$617)*('Fixed assets'!$P$2:$P$1000=Costs!$A623)*('Fixed assets'!$U$2:$U$1000=Costs!$A623)*('Fixed assets'!$R$2:$R$1000))","v":0},{"$f":"SUMPRODUCT(('Fixed assets'!$R$2:$R$1000)*('Fixed assets'!$P$2:$P$1000<$A623)*('Fixed assets'!$Q$2:$Q$1000=Costs!AB$617))-SUMPRODUCT(('Fixed assets'!$S$2:$S$1000)*('Fixed assets'!$P$2:$P$1000<Costs!$A623)*('Fixed assets'!$Q$2:$Q$1000=Costs!AB$617))-SUMPRODUCT(('Fixed assets'!$Q$2:$Q$1000=Costs!AB$617)*('Fixed assets'!$U$2:$U$1000=Costs!$A623)*('Fixed assets'!$S$2:$S$1000))+SUMPRODUCT(('Fixed assets'!$Q$2:$Q$1000=Costs!AB$617)*('Fixed assets'!$P$2:$P$1000=Costs!$A623)*('Fixed assets'!$U$2:$U$1000=Costs!$A623)*('Fixed assets'!$R$2:$R$1000))","v":0},{"$f":"SUMPRODUCT(('Fixed assets'!$R$2:$R$1000)*('Fixed assets'!$P$2:$P$1000<$A623)*('Fixed assets'!$Q$2:$Q$1000=Costs!AC$617))-SUMPRODUCT(('Fixed assets'!$S$2:$S$1000)*('Fixed assets'!$P$2:$P$1000<Costs!$A623)*('Fixed assets'!$Q$2:$Q$1000=Costs!AC$617))-SUMPRODUCT(('Fixed assets'!$Q$2:$Q$1000=Costs!AC$617)*('Fixed assets'!$U$2:$U$1000=Costs!$A623)*('Fixed assets'!$S$2:$S$1000))+SUMPRODUCT(('Fixed assets'!$Q$2:$Q$1000=Costs!AC$617)*('Fixed assets'!$P$2:$P$1000=Costs!$A623)*('Fixed assets'!$U$2:$U$1000=Costs!$A623)*('Fixed assets'!$R$2:$R$1000))","v":0},{"$f":"SUMPRODUCT(('Fixed assets'!$R$2:$R$1000)*('Fixed assets'!$P$2:$P$1000<$A623)*('Fixed assets'!$Q$2:$Q$1000=Costs!AD$617))-SUMPRODUCT(('Fixed assets'!$S$2:$S$1000)*('Fixed assets'!$P$2:$P$1000<Costs!$A623)*('Fixed assets'!$Q$2:$Q$1000=Costs!AD$617))-SUMPRODUCT(('Fixed assets'!$Q$2:$Q$1000=Costs!AD$617)*('Fixed assets'!$U$2:$U$1000=Costs!$A623)*('Fixed assets'!$S$2:$S$1000))+SUMPRODUCT(('Fixed assets'!$Q$2:$Q$1000=Costs!AD$617)*('Fixed assets'!$P$2:$P$1000=Costs!$A623)*('Fixed assets'!$U$2:$U$1000=Costs!$A623)*('Fixed assets'!$R$2:$R$1000))","v":0},{"$f":"SUMPRODUCT(('Fixed assets'!$R$2:$R$1000)*('Fixed assets'!$P$2:$P$1000<$A623)*('Fixed assets'!$Q$2:$Q$1000=Costs!AE$617))-SUMPRODUCT(('Fixed assets'!$S$2:$S$1000)*('Fixed assets'!$P$2:$P$1000<Costs!$A623)*('Fixed assets'!$Q$2:$Q$1000=Costs!AE$617))-SUMPRODUCT(('Fixed assets'!$Q$2:$Q$1000=Costs!AE$617)*('Fixed assets'!$U$2:$U$1000=Costs!$A623)*('Fixed assets'!$S$2:$S$1000))+SUMPRODUCT(('Fixed assets'!$Q$2:$Q$1000=Costs!AE$617)*('Fixed assets'!$P$2:$P$1000=Costs!$A623)*('Fixed assets'!$U$2:$U$1000=Costs!$A623)*('Fixed assets'!$R$2:$R$1000))","v":0},{"$f":"SUMPRODUCT(('Fixed assets'!$R$2:$R$1000)*('Fixed assets'!$P$2:$P$1000<$A623)*('Fixed assets'!$Q$2:$Q$1000=Costs!AF$617))-SUMPRODUCT(('Fixed assets'!$S$2:$S$1000)*('Fixed assets'!$P$2:$P$1000<Costs!$A623)*('Fixed assets'!$Q$2:$Q$1000=Costs!AF$617))-SUMPRODUCT(('Fixed assets'!$Q$2:$Q$1000=Costs!AF$617)*('Fixed assets'!$U$2:$U$1000=Costs!$A623)*('Fixed assets'!$S$2:$S$1000))+SUMPRODUCT(('Fixed assets'!$Q$2:$Q$1000=Costs!AF$617)*('Fixed assets'!$P$2:$P$1000=Costs!$A623)*('Fixed assets'!$U$2:$U$1000=Costs!$A623)*('Fixed assets'!$R$2:$R$1000))","v":0},{"$f":"SUMPRODUCT(('Fixed assets'!$R$2:$R$1000)*('Fixed assets'!$P$2:$P$1000<$A623)*('Fixed assets'!$Q$2:$Q$1000=Costs!AG$617))-SUMPRODUCT(('Fixed assets'!$S$2:$S$1000)*('Fixed assets'!$P$2:$P$1000<Costs!$A623)*('Fixed assets'!$Q$2:$Q$1000=Costs!AG$617))-SUMPRODUCT(('Fixed assets'!$Q$2:$Q$1000=Costs!AG$617)*('Fixed assets'!$U$2:$U$1000=Costs!$A623)*('Fixed assets'!$S$2:$S$1000))+SUMPRODUCT(('Fixed assets'!$Q$2:$Q$1000=Costs!AG$617)*('Fixed assets'!$P$2:$P$1000=Costs!$A623)*('Fixed assets'!$U$2:$U$1000=Costs!$A623)*('Fixed assets'!$R$2:$R$1000))","v":0},{"$f":"SUMPRODUCT(('Fixed assets'!$R$2:$R$1000)*('Fixed assets'!$P$2:$P$1000<$A623)*('Fixed assets'!$Q$2:$Q$1000=Costs!AH$617))-SUMPRODUCT(('Fixed assets'!$S$2:$S$1000)*('Fixed assets'!$P$2:$P$1000<Costs!$A623)*('Fixed assets'!$Q$2:$Q$1000=Costs!AH$617))-SUMPRODUCT(('Fixed assets'!$Q$2:$Q$1000=Costs!AH$617)*('Fixed assets'!$U$2:$U$1000=Costs!$A623)*('Fixed assets'!$S$2:$S$1000))+SUMPRODUCT(('Fixed assets'!$Q$2:$Q$1000=Costs!AH$617)*('Fixed assets'!$P$2:$P$1000=Costs!$A623)*('Fixed assets'!$U$2:$U$1000=Costs!$A623)*('Fixed assets'!$R$2:$R$1000))","v":0},{"$f":"SUMPRODUCT(('Fixed assets'!$R$2:$R$1000)*('Fixed assets'!$P$2:$P$1000<$A623)*('Fixed assets'!$Q$2:$Q$1000=Costs!AI$617))-SUMPRODUCT(('Fixed assets'!$S$2:$S$1000)*('Fixed assets'!$P$2:$P$1000<Costs!$A623)*('Fixed assets'!$Q$2:$Q$1000=Costs!AI$617))-SUMPRODUCT(('Fixed assets'!$Q$2:$Q$1000=Costs!AI$617)*('Fixed assets'!$U$2:$U$1000=Costs!$A623)*('Fixed assets'!$S$2:$S$1000))+SUMPRODUCT(('Fixed assets'!$Q$2:$Q$1000=Costs!AI$617)*('Fixed assets'!$P$2:$P$1000=Costs!$A623)*('Fixed assets'!$U$2:$U$1000=Costs!$A623)*('Fixed assets'!$R$2:$R$1000))","v":0},{"$f":"SUMPRODUCT(('Fixed assets'!$R$2:$R$1000)*('Fixed assets'!$P$2:$P$1000<$A623)*('Fixed assets'!$Q$2:$Q$1000=Costs!AJ$617))-SUMPRODUCT(('Fixed assets'!$S$2:$S$1000)*('Fixed assets'!$P$2:$P$1000<Costs!$A623)*('Fixed assets'!$Q$2:$Q$1000=Costs!AJ$617))-SUMPRODUCT(('Fixed assets'!$Q$2:$Q$1000=Costs!AJ$617)*('Fixed assets'!$U$2:$U$1000=Costs!$A623)*('Fixed assets'!$S$2:$S$1000))+SUMPRODUCT(('Fixed assets'!$Q$2:$Q$1000=Costs!AJ$617)*('Fixed assets'!$P$2:$P$1000=Costs!$A623)*('Fixed assets'!$U$2:$U$1000=Costs!$A623)*('Fixed assets'!$R$2:$R$1000))","v":0},{"$f":"SUMPRODUCT(('Fixed assets'!$R$2:$R$1000)*('Fixed assets'!$P$2:$P$1000<$A623)*('Fixed assets'!$Q$2:$Q$1000=Costs!AK$617))-SUMPRODUCT(('Fixed assets'!$S$2:$S$1000)*('Fixed assets'!$P$2:$P$1000<Costs!$A623)*('Fixed assets'!$Q$2:$Q$1000=Costs!AK$617))-SUMPRODUCT(('Fixed assets'!$Q$2:$Q$1000=Costs!AK$617)*('Fixed assets'!$U$2:$U$1000=Costs!$A623)*('Fixed assets'!$S$2:$S$1000))+SUMPRODUCT(('Fixed assets'!$Q$2:$Q$1000=Costs!AK$617)*('Fixed assets'!$P$2:$P$1000=Costs!$A623)*('Fixed assets'!$U$2:$U$1000=Costs!$A623)*('Fixed assets'!$R$2:$R$1000))","v":0},{"$f":"SUMPRODUCT(('Fixed assets'!$R$2:$R$1000)*('Fixed assets'!$P$2:$P$1000<$A623)*('Fixed assets'!$Q$2:$Q$1000=Costs!AL$617))-SUMPRODUCT(('Fixed assets'!$S$2:$S$1000)*('Fixed assets'!$P$2:$P$1000<Costs!$A623)*('Fixed assets'!$Q$2:$Q$1000=Costs!AL$617))-SUMPRODUCT(('Fixed assets'!$Q$2:$Q$1000=Costs!AL$617)*('Fixed assets'!$U$2:$U$1000=Costs!$A623)*('Fixed assets'!$S$2:$S$1000))+SUMPRODUCT(('Fixed assets'!$Q$2:$Q$1000=Costs!AL$617)*('Fixed assets'!$P$2:$P$1000=Costs!$A623)*('Fixed assets'!$U$2:$U$1000=Costs!$A623)*('Fixed assets'!$R$2:$R$1000))","v":0},{"$f":"SUMPRODUCT(('Fixed assets'!$R$2:$R$1000)*('Fixed assets'!$P$2:$P$1000<$A623)*('Fixed assets'!$Q$2:$Q$1000=Costs!AM$617))-SUMPRODUCT(('Fixed assets'!$S$2:$S$1000)*('Fixed assets'!$P$2:$P$1000<Costs!$A623)*('Fixed assets'!$Q$2:$Q$1000=Costs!AM$617))-SUMPRODUCT(('Fixed assets'!$Q$2:$Q$1000=Costs!AM$617)*('Fixed assets'!$U$2:$U$1000=Costs!$A623)*('Fixed assets'!$S$2:$S$1000))+SUMPRODUCT(('Fixed assets'!$Q$2:$Q$1000=Costs!AM$617)*('Fixed assets'!$P$2:$P$1000=Costs!$A623)*('Fixed assets'!$U$2:$U$1000=Costs!$A623)*('Fixed assets'!$R$2:$R$1000))","v":0},{"$f":"SUMPRODUCT(('Fixed assets'!$R$2:$R$1000)*('Fixed assets'!$P$2:$P$1000<$A623)*('Fixed assets'!$Q$2:$Q$1000=Costs!AN$617))-SUMPRODUCT(('Fixed assets'!$S$2:$S$1000)*('Fixed assets'!$P$2:$P$1000<Costs!$A623)*('Fixed assets'!$Q$2:$Q$1000=Costs!AN$617))-SUMPRODUCT(('Fixed assets'!$Q$2:$Q$1000=Costs!AN$617)*('Fixed assets'!$U$2:$U$1000=Costs!$A623)*('Fixed assets'!$S$2:$S$1000))+SUMPRODUCT(('Fixed assets'!$Q$2:$Q$1000=Costs!AN$617)*('Fixed assets'!$P$2:$P$1000=Costs!$A623)*('Fixed assets'!$U$2:$U$1000=Costs!$A623)*('Fixed assets'!$R$2:$R$1000))","v":0},{"$f":"SUMPRODUCT(('Fixed assets'!$R$2:$R$1000)*('Fixed assets'!$P$2:$P$1000<$A623)*('Fixed assets'!$Q$2:$Q$1000=Costs!AO$617))-SUMPRODUCT(('Fixed assets'!$S$2:$S$1000)*('Fixed assets'!$P$2:$P$1000<Costs!$A623)*('Fixed assets'!$Q$2:$Q$1000=Costs!AO$617))-SUMPRODUCT(('Fixed assets'!$Q$2:$Q$1000=Costs!AO$617)*('Fixed assets'!$U$2:$U$1000=Costs!$A623)*('Fixed assets'!$S$2:$S$1000))+SUMPRODUCT(('Fixed assets'!$Q$2:$Q$1000=Costs!AO$617)*('Fixed assets'!$P$2:$P$1000=Costs!$A623)*('Fixed assets'!$U$2:$U$1000=Costs!$A623)*('Fixed assets'!$R$2:$R$1000))","v":0},{"$f":"SUMPRODUCT(('Fixed assets'!$R$2:$R$1000)*('Fixed assets'!$P$2:$P$1000<$A623)*('Fixed assets'!$Q$2:$Q$1000=Costs!AP$617))-SUMPRODUCT(('Fixed assets'!$S$2:$S$1000)*('Fixed assets'!$P$2:$P$1000<Costs!$A623)*('Fixed assets'!$Q$2:$Q$1000=Costs!AP$617))-SUMPRODUCT(('Fixed assets'!$Q$2:$Q$1000=Costs!AP$617)*('Fixed assets'!$U$2:$U$1000=Costs!$A623)*('Fixed assets'!$S$2:$S$1000))+SUMPRODUCT(('Fixed assets'!$Q$2:$Q$1000=Costs!AP$617)*('Fixed assets'!$P$2:$P$1000=Costs!$A623)*('Fixed assets'!$U$2:$U$1000=Costs!$A623)*('Fixed assets'!$R$2:$R$1000))","v":0},{"$f":"SUMPRODUCT(('Fixed assets'!$R$2:$R$1000)*('Fixed assets'!$P$2:$P$1000<$A623)*('Fixed assets'!$Q$2:$Q$1000=Costs!AQ$617))-SUMPRODUCT(('Fixed assets'!$S$2:$S$1000)*('Fixed assets'!$P$2:$P$1000<Costs!$A623)*('Fixed assets'!$Q$2:$Q$1000=Costs!AQ$617))-SUMPRODUCT(('Fixed assets'!$Q$2:$Q$1000=Costs!AQ$617)*('Fixed assets'!$U$2:$U$1000=Costs!$A623)*('Fixed assets'!$S$2:$S$1000))+SUMPRODUCT(('Fixed assets'!$Q$2:$Q$1000=Costs!AQ$617)*('Fixed assets'!$P$2:$P$1000=Costs!$A623)*('Fixed assets'!$U$2:$U$1000=Costs!$A623)*('Fixed assets'!$R$2:$R$1000))","v":0}]
[2021,1500000,{"$f":"SUMPRODUCT(('Fixed assets'!$R$2:$R$1000)*('Fixed assets'!$P$2:$P$1000<$A624)*('Fixed assets'!$Q$2:$Q$1000=Costs!C$617))-SUMPRODUCT(('Fixed assets'!$S$2:$S$1000)*('Fixed assets'!$P$2:$P$1000<Costs!$A624)*('Fixed assets'!$Q$2:$Q$1000=Costs!C$617))-SUMPRODUCT(('Fixed assets'!$Q$2:$Q$1000=Costs!C$617)*('Fixed assets'!$U$2:$U$1000=Costs!$A624)*('Fixed assets'!$S$2:$S$1000))+SUMPRODUCT(('Fixed assets'!$Q$2:$Q$1000=Costs!C$617)*('Fixed assets'!$P$2:$P$1000=Costs!$A624)*('Fixed assets'!$U$2:$U$1000=Costs!$A624)*('Fixed assets'!$R$2:$R$1000))","v":0},{"$f":"SUMPRODUCT(('Fixed assets'!$R$2:$R$1000)*('Fixed assets'!$P$2:$P$1000<$A624)*('Fixed assets'!$Q$2:$Q$1000=Costs!D$617))-SUMPRODUCT(('Fixed assets'!$S$2:$S$1000)*('Fixed assets'!$P$2:$P$1000<Costs!$A624)*('Fixed assets'!$Q$2:$Q$1000=Costs!D$617))-SUMPRODUCT(('Fixed assets'!$Q$2:$Q$1000=Costs!D$617)*('Fixed assets'!$U$2:$U$1000=Costs!$A624)*('Fixed assets'!$S$2:$S$1000))+SUMPRODUCT(('Fixed assets'!$Q$2:$Q$1000=Costs!D$617)*('Fixed assets'!$P$2:$P$1000=Costs!$A624)*('Fixed assets'!$U$2:$U$1000=Costs!$A624)*('Fixed assets'!$R$2:$R$1000))","v":0},{"$f":"SUMPRODUCT(('Fixed assets'!$R$2:$R$1000)*('Fixed assets'!$P$2:$P$1000<$A624)*('Fixed assets'!$Q$2:$Q$1000=Costs!E$617))-SUMPRODUCT(('Fixed assets'!$S$2:$S$1000)*('Fixed assets'!$P$2:$P$1000<Costs!$A624)*('Fixed assets'!$Q$2:$Q$1000=Costs!E$617))-SUMPRODUCT(('Fixed assets'!$Q$2:$Q$1000=Costs!E$617)*('Fixed assets'!$U$2:$U$1000=Costs!$A624)*('Fixed assets'!$S$2:$S$1000))+SUMPRODUCT(('Fixed assets'!$Q$2:$Q$1000=Costs!E$617)*('Fixed assets'!$P$2:$P$1000=Costs!$A624)*('Fixed assets'!$U$2:$U$1000=Costs!$A624)*('Fixed assets'!$R$2:$R$1000))","v":0},{"$f":"SUMPRODUCT(('Fixed assets'!$R$2:$R$1000)*('Fixed assets'!$P$2:$P$1000<$A624)*('Fixed assets'!$Q$2:$Q$1000=Costs!F$617))-SUMPRODUCT(('Fixed assets'!$S$2:$S$1000)*('Fixed assets'!$P$2:$P$1000<Costs!$A624)*('Fixed assets'!$Q$2:$Q$1000=Costs!F$617))-SUMPRODUCT(('Fixed assets'!$Q$2:$Q$1000=Costs!F$617)*('Fixed assets'!$U$2:$U$1000=Costs!$A624)*('Fixed assets'!$S$2:$S$1000))+SUMPRODUCT(('Fixed assets'!$Q$2:$Q$1000=Costs!F$617)*('Fixed assets'!$P$2:$P$1000=Costs!$A624)*('Fixed assets'!$U$2:$U$1000=Costs!$A624)*('Fixed assets'!$R$2:$R$1000))","v":0},{"$f":"SUMPRODUCT(('Fixed assets'!$R$2:$R$1000)*('Fixed assets'!$P$2:$P$1000<$A624)*('Fixed assets'!$Q$2:$Q$1000=Costs!G$617))-SUMPRODUCT(('Fixed assets'!$S$2:$S$1000)*('Fixed assets'!$P$2:$P$1000<Costs!$A624)*('Fixed assets'!$Q$2:$Q$1000=Costs!G$617))-SUMPRODUCT(('Fixed assets'!$Q$2:$Q$1000=Costs!G$617)*('Fixed assets'!$U$2:$U$1000=Costs!$A624)*('Fixed assets'!$S$2:$S$1000))+SUMPRODUCT(('Fixed assets'!$Q$2:$Q$1000=Costs!G$617)*('Fixed assets'!$P$2:$P$1000=Costs!$A624)*('Fixed assets'!$U$2:$U$1000=Costs!$A624)*('Fixed assets'!$R$2:$R$1000))","v":0},{"$f":"SUMPRODUCT(('Fixed assets'!$R$2:$R$1000)*('Fixed assets'!$P$2:$P$1000<$A624)*('Fixed assets'!$Q$2:$Q$1000=Costs!H$617))-SUMPRODUCT(('Fixed assets'!$S$2:$S$1000)*('Fixed assets'!$P$2:$P$1000<Costs!$A624)*('Fixed assets'!$Q$2:$Q$1000=Costs!H$617))-SUMPRODUCT(('Fixed assets'!$Q$2:$Q$1000=Costs!H$617)*('Fixed assets'!$U$2:$U$1000=Costs!$A624)*('Fixed assets'!$S$2:$S$1000))+SUMPRODUCT(('Fixed assets'!$Q$2:$Q$1000=Costs!H$617)*('Fixed assets'!$P$2:$P$1000=Costs!$A624)*('Fixed assets'!$U$2:$U$1000=Costs!$A624)*('Fixed assets'!$R$2:$R$1000))","v":0},{"$f":"SUMPRODUCT(('Fixed assets'!$R$2:$R$1000)*('Fixed assets'!$P$2:$P$1000<$A624)*('Fixed assets'!$Q$2:$Q$1000=Costs!I$617))-SUMPRODUCT(('Fixed assets'!$S$2:$S$1000)*('Fixed assets'!$P$2:$P$1000<Costs!$A624)*('Fixed assets'!$Q$2:$Q$1000=Costs!I$617))-SUMPRODUCT(('Fixed assets'!$Q$2:$Q$1000=Costs!I$617)*('Fixed assets'!$U$2:$U$1000=Costs!$A624)*('Fixed assets'!$S$2:$S$1000))+SUMPRODUCT(('Fixed assets'!$Q$2:$Q$1000=Costs!I$617)*('Fixed assets'!$P$2:$P$1000=Costs!$A624)*('Fixed assets'!$U$2:$U$1000=Costs!$A624)*('Fixed assets'!$R$2:$R$1000))","v":0},{"$f":"SUMPRODUCT(('Fixed assets'!$R$2:$R$1000)*('Fixed assets'!$P$2:$P$1000<$A624)*('Fixed assets'!$Q$2:$Q$1000=Costs!J$617))-SUMPRODUCT(('Fixed assets'!$S$2:$S$1000)*('Fixed assets'!$P$2:$P$1000<Costs!$A624)*('Fixed assets'!$Q$2:$Q$1000=Costs!J$617))-SUMPRODUCT(('Fixed assets'!$Q$2:$Q$1000=Costs!J$617)*('Fixed assets'!$U$2:$U$1000=Costs!$A624)*('Fixed assets'!$S$2:$S$1000))+SUMPRODUCT(('Fixed assets'!$Q$2:$Q$1000=Costs!J$617)*('Fixed assets'!$P$2:$P$1000=Costs!$A624)*('Fixed assets'!$U$2:$U$1000=Costs!$A624)*('Fixed assets'!$R$2:$R$1000))","v":0},{"$f":"SUMPRODUCT(('Fixed assets'!$R$2:$R$1000)*('Fixed assets'!$P$2:$P$1000<$A624)*('Fixed assets'!$Q$2:$Q$1000=Costs!K$617))-SUMPRODUCT(('Fixed assets'!$S$2:$S$1000)*('Fixed assets'!$P$2:$P$1000<Costs!$A624)*('Fixed assets'!$Q$2:$Q$1000=Costs!K$617))-SUMPRODUCT(('Fixed assets'!$Q$2:$Q$1000=Costs!K$617)*('Fixed assets'!$U$2:$U$1000=Costs!$A624)*('Fixed assets'!$S$2:$S$1000))+SUMPRODUCT(('Fixed assets'!$Q$2:$Q$1000=Costs!K$617)*('Fixed assets'!$P$2:$P$1000=Costs!$A624)*('Fixed assets'!$U$2:$U$1000=Costs!$A624)*('Fixed assets'!$R$2:$R$1000))","v":0},{"$f":"SUMPRODUCT(('Fixed assets'!$R$2:$R$1000)*('Fixed assets'!$P$2:$P$1000<$A624)*('Fixed assets'!$Q$2:$Q$1000=Costs!L$617))-SUMPRODUCT(('Fixed assets'!$S$2:$S$1000)*('Fixed assets'!$P$2:$P$1000<Costs!$A624)*('Fixed assets'!$Q$2:$Q$1000=Costs!L$617))-SUMPRODUCT(('Fixed assets'!$Q$2:$Q$1000=Costs!L$617)*('Fixed assets'!$U$2:$U$1000=Costs!$A624)*('Fixed assets'!$S$2:$S$1000))+SUMPRODUCT(('Fixed assets'!$Q$2:$Q$1000=Costs!L$617)*('Fixed assets'!$P$2:$P$1000=Costs!$A624)*('Fixed assets'!$U$2:$U$1000=Costs!$A624)*('Fixed assets'!$R$2:$R$1000))","v":0},{"$f":"SUMPRODUCT(('Fixed assets'!$R$2:$R$1000)*('Fixed assets'!$P$2:$P$1000<$A624)*('Fixed assets'!$Q$2:$Q$1000=Costs!M$617))-SUMPRODUCT(('Fixed assets'!$S$2:$S$1000)*('Fixed assets'!$P$2:$P$1000<Costs!$A624)*('Fixed assets'!$Q$2:$Q$1000=Costs!M$617))-SUMPRODUCT(('Fixed assets'!$Q$2:$Q$1000=Costs!M$617)*('Fixed assets'!$U$2:$U$1000=Costs!$A624)*('Fixed assets'!$S$2:$S$1000))+SUMPRODUCT(('Fixed assets'!$Q$2:$Q$1000=Costs!M$617)*('Fixed assets'!$P$2:$P$1000=Costs!$A624)*('Fixed assets'!$U$2:$U$1000=Costs!$A624)*('Fixed assets'!$R$2:$R$1000))","v":0},{"$f":"SUMPRODUCT(('Fixed assets'!$R$2:$R$1000)*('Fixed assets'!$P$2:$P$1000<$A624)*('Fixed assets'!$Q$2:$Q$1000=Costs!N$617))-SUMPRODUCT(('Fixed assets'!$S$2:$S$1000)*('Fixed assets'!$P$2:$P$1000<Costs!$A624)*('Fixed assets'!$Q$2:$Q$1000=Costs!N$617))-SUMPRODUCT(('Fixed assets'!$Q$2:$Q$1000=Costs!N$617)*('Fixed assets'!$U$2:$U$1000=Costs!$A624)*('Fixed assets'!$S$2:$S$1000))+SUMPRODUCT(('Fixed assets'!$Q$2:$Q$1000=Costs!N$617)*('Fixed assets'!$P$2:$P$1000=Costs!$A624)*('Fixed assets'!$U$2:$U$1000=Costs!$A624)*('Fixed assets'!$R$2:$R$1000))","v":0},{"$f":"SUMPRODUCT(('Fixed assets'!$R$2:$R$1000)*('Fixed assets'!$P$2:$P$1000<$A624)*('Fixed assets'!$Q$2:$Q$1000=Costs!O$617))-SUMPRODUCT(('Fixed assets'!$S$2:$S$1000)*('Fixed assets'!$P$2:$P$1000<Costs!$A624)*('Fixed assets'!$Q$2:$Q$1000=Costs!O$617))-SUMPRODUCT(('Fixed assets'!$Q$2:$Q$1000=Costs!O$617)*('Fixed assets'!$U$2:$U$1000=Costs!$A624)*('Fixed assets'!$S$2:$S$1000))+SUMPRODUCT(('Fixed assets'!$Q$2:$Q$1000=Costs!O$617)*('Fixed assets'!$P$2:$P$1000=Costs!$A624)*('Fixed assets'!$U$2:$U$1000=Costs!$A624)*('Fixed assets'!$R$2:$R$1000))","v":0},{"$f":"SUMPRODUCT(('Fixed assets'!$R$2:$R$1000)*('Fixed assets'!$P$2:$P$1000<$A624)*('Fixed assets'!$Q$2:$Q$1000=Costs!P$617))-SUMPRODUCT(('Fixed assets'!$S$2:$S$1000)*('Fixed assets'!$P$2:$P$1000<Costs!$A624)*('Fixed assets'!$Q$2:$Q$1000=Costs!P$617))-SUMPRODUCT(('Fixed assets'!$Q$2:$Q$1000=Costs!P$617)*('Fixed assets'!$U$2:$U$1000=Costs!$A624)*('Fixed assets'!$S$2:$S$1000))+SUMPRODUCT(('Fixed assets'!$Q$2:$Q$1000=Costs!P$617)*('Fixed assets'!$P$2:$P$1000=Costs!$A624)*('Fixed assets'!$U$2:$U$1000=Costs!$A624)*('Fixed assets'!$R$2:$R$1000))","v":1500000},{"$f":"SUMPRODUCT(('Fixed assets'!$R$2:$R$1000)*('Fixed assets'!$P$2:$P$1000<$A624)*('Fixed assets'!$Q$2:$Q$1000=Costs!Q$617))-SUMPRODUCT(('Fixed assets'!$S$2:$S$1000)*('Fixed assets'!$P$2:$P$1000<Costs!$A624)*('Fixed assets'!$Q$2:$Q$1000=Costs!Q$617))-SUMPRODUCT(('Fixed assets'!$Q$2:$Q$1000=Costs!Q$617)*('Fixed assets'!$U$2:$U$1000=Costs!$A624)*('Fixed assets'!$S$2:$S$1000))+SUMPRODUCT(('Fixed assets'!$Q$2:$Q$1000=Costs!Q$617)*('Fixed assets'!$P$2:$P$1000=Costs!$A624)*('Fixed assets'!$U$2:$U$1000=Costs!$A624)*('Fixed assets'!$R$2:$R$1000))","v":0},{"$f":"SUMPRODUCT(('Fixed assets'!$R$2:$R$1000)*('Fixed assets'!$P$2:$P$1000<$A624)*('Fixed assets'!$Q$2:$Q$1000=Costs!R$617))-SUMPRODUCT(('Fixed assets'!$S$2:$S$1000)*('Fixed assets'!$P$2:$P$1000<Costs!$A624)*('Fixed assets'!$Q$2:$Q$1000=Costs!R$617))-SUMPRODUCT(('Fixed assets'!$Q$2:$Q$1000=Costs!R$617)*('Fixed assets'!$U$2:$U$1000=Costs!$A624)*('Fixed assets'!$S$2:$S$1000))+SUMPRODUCT(('Fixed assets'!$Q$2:$Q$1000=Costs!R$617)*('Fixed assets'!$P$2:$P$1000=Costs!$A624)*('Fixed assets'!$U$2:$U$1000=Costs!$A624)*('Fixed assets'!$R$2:$R$1000))","v":0},{"$f":"SUMPRODUCT(('Fixed assets'!$R$2:$R$1000)*('Fixed assets'!$P$2:$P$1000<$A624)*('Fixed assets'!$Q$2:$Q$1000=Costs!S$617))-SUMPRODUCT(('Fixed assets'!$S$2:$S$1000)*('Fixed assets'!$P$2:$P$1000<Costs!$A624)*('Fixed assets'!$Q$2:$Q$1000=Costs!S$617))-SUMPRODUCT(('Fixed assets'!$Q$2:$Q$1000=Costs!S$617)*('Fixed assets'!$U$2:$U$1000=Costs!$A624)*('Fixed assets'!$S$2:$S$1000))+SUMPRODUCT(('Fixed assets'!$Q$2:$Q$1000=Costs!S$617)*('Fixed assets'!$P$2:$P$1000=Costs!$A624)*('Fixed assets'!$U$2:$U$1000=Costs!$A624)*('Fixed assets'!$R$2:$R$1000))","v":0},{"$f":"SUMPRODUCT(('Fixed assets'!$R$2:$R$1000)*('Fixed assets'!$P$2:$P$1000<$A624)*('Fixed assets'!$Q$2:$Q$1000=Costs!T$617))-SUMPRODUCT(('Fixed assets'!$S$2:$S$1000)*('Fixed assets'!$P$2:$P$1000<Costs!$A624)*('Fixed assets'!$Q$2:$Q$1000=Costs!T$617))-SUMPRODUCT(('Fixed assets'!$Q$2:$Q$1000=Costs!T$617)*('Fixed assets'!$U$2:$U$1000=Costs!$A624)*('Fixed assets'!$S$2:$S$1000))+SUMPRODUCT(('Fixed assets'!$Q$2:$Q$1000=Costs!T$617)*('Fixed assets'!$P$2:$P$1000=Costs!$A624)*('Fixed assets'!$U$2:$U$1000=Costs!$A624)*('Fixed assets'!$R$2:$R$1000))","v":0},{"$f":"SUMPRODUCT(('Fixed assets'!$R$2:$R$1000)*('Fixed assets'!$P$2:$P$1000<$A624)*('Fixed assets'!$Q$2:$Q$1000=Costs!U$617))-SUMPRODUCT(('Fixed assets'!$S$2:$S$1000)*('Fixed assets'!$P$2:$P$1000<Costs!$A624)*('Fixed assets'!$Q$2:$Q$1000=Costs!U$617))-SUMPRODUCT(('Fixed assets'!$Q$2:$Q$1000=Costs!U$617)*('Fixed assets'!$U$2:$U$1000=Costs!$A624)*('Fixed assets'!$S$2:$S$1000))+SUMPRODUCT(('Fixed assets'!$Q$2:$Q$1000=Costs!U$617)*('Fixed assets'!$P$2:$P$1000=Costs!$A624)*('Fixed assets'!$U$2:$U$1000=Costs!$A624)*('Fixed assets'!$R$2:$R$1000))","v":0},{"$f":"SUMPRODUCT(('Fixed assets'!$R$2:$R$1000)*('Fixed assets'!$P$2:$P$1000<$A624)*('Fixed assets'!$Q$2:$Q$1000=Costs!V$617))-SUMPRODUCT(('Fixed assets'!$S$2:$S$1000)*('Fixed assets'!$P$2:$P$1000<Costs!$A624)*('Fixed assets'!$Q$2:$Q$1000=Costs!V$617))-SUMPRODUCT(('Fixed assets'!$Q$2:$Q$1000=Costs!V$617)*('Fixed assets'!$U$2:$U$1000=Costs!$A624)*('Fixed assets'!$S$2:$S$1000))+SUMPRODUCT(('Fixed assets'!$Q$2:$Q$1000=Costs!V$617)*('Fixed assets'!$P$2:$P$1000=Costs!$A624)*('Fixed assets'!$U$2:$U$1000=Costs!$A624)*('Fixed assets'!$R$2:$R$1000))","v":0},{"$f":"SUMPRODUCT(('Fixed assets'!$R$2:$R$1000)*('Fixed assets'!$P$2:$P$1000<$A624)*('Fixed assets'!$Q$2:$Q$1000=Costs!W$617))-SUMPRODUCT(('Fixed assets'!$S$2:$S$1000)*('Fixed assets'!$P$2:$P$1000<Costs!$A624)*('Fixed assets'!$Q$2:$Q$1000=Costs!W$617))-SUMPRODUCT(('Fixed assets'!$Q$2:$Q$1000=Costs!W$617)*('Fixed assets'!$U$2:$U$1000=Costs!$A624)*('Fixed assets'!$S$2:$S$1000))+SUMPRODUCT(('Fixed assets'!$Q$2:$Q$1000=Costs!W$617)*('Fixed assets'!$P$2:$P$1000=Costs!$A624)*('Fixed assets'!$U$2:$U$1000=Costs!$A624)*('Fixed assets'!$R$2:$R$1000))","v":0},{"$f":"SUMPRODUCT(('Fixed assets'!$R$2:$R$1000)*('Fixed assets'!$P$2:$P$1000<$A624)*('Fixed assets'!$Q$2:$Q$1000=Costs!X$617))-SUMPRODUCT(('Fixed assets'!$S$2:$S$1000)*('Fixed assets'!$P$2:$P$1000<Costs!$A624)*('Fixed assets'!$Q$2:$Q$1000=Costs!X$617))-SUMPRODUCT(('Fixed assets'!$Q$2:$Q$1000=Costs!X$617)*('Fixed assets'!$U$2:$U$1000=Costs!$A624)*('Fixed assets'!$S$2:$S$1000))+SUMPRODUCT(('Fixed assets'!$Q$2:$Q$1000=Costs!X$617)*('Fixed assets'!$P$2:$P$1000=Costs!$A624)*('Fixed assets'!$U$2:$U$1000=Costs!$A624)*('Fixed assets'!$R$2:$R$1000))","v":0},{"$f":"SUMPRODUCT(('Fixed assets'!$R$2:$R$1000)*('Fixed assets'!$P$2:$P$1000<$A624)*('Fixed assets'!$Q$2:$Q$1000=Costs!Y$617))-SUMPRODUCT(('Fixed assets'!$S$2:$S$1000)*('Fixed assets'!$P$2:$P$1000<Costs!$A624)*('Fixed assets'!$Q$2:$Q$1000=Costs!Y$617))-SUMPRODUCT(('Fixed assets'!$Q$2:$Q$1000=Costs!Y$617)*('Fixed assets'!$U$2:$U$1000=Costs!$A624)*('Fixed assets'!$S$2:$S$1000))+SUMPRODUCT(('Fixed assets'!$Q$2:$Q$1000=Costs!Y$617)*('Fixed assets'!$P$2:$P$1000=Costs!$A624)*('Fixed assets'!$U$2:$U$1000=Costs!$A624)*('Fixed assets'!$R$2:$R$1000))","v":0},{"$f":"SUMPRODUCT(('Fixed assets'!$R$2:$R$1000)*('Fixed assets'!$P$2:$P$1000<$A624)*('Fixed assets'!$Q$2:$Q$1000=Costs!Z$617))-SUMPRODUCT(('Fixed assets'!$S$2:$S$1000)*('Fixed assets'!$P$2:$P$1000<Costs!$A624)*('Fixed assets'!$Q$2:$Q$1000=Costs!Z$617))-SUMPRODUCT(('Fixed assets'!$Q$2:$Q$1000=Costs!Z$617)*('Fixed assets'!$U$2:$U$1000=Costs!$A624)*('Fixed assets'!$S$2:$S$1000))+SUMPRODUCT(('Fixed assets'!$Q$2:$Q$1000=Costs!Z$617)*('Fixed assets'!$P$2:$P$1000=Costs!$A624)*('Fixed assets'!$U$2:$U$1000=Costs!$A624)*('Fixed assets'!$R$2:$R$1000))","v":0},{"$f":"SUMPRODUCT(('Fixed assets'!$R$2:$R$1000)*('Fixed assets'!$P$2:$P$1000<$A624)*('Fixed assets'!$Q$2:$Q$1000=Costs!AA$617))-SUMPRODUCT(('Fixed assets'!$S$2:$S$1000)*('Fixed assets'!$P$2:$P$1000<Costs!$A624)*('Fixed assets'!$Q$2:$Q$1000=Costs!AA$617))-SUMPRODUCT(('Fixed assets'!$Q$2:$Q$1000=Costs!AA$617)*('Fixed assets'!$U$2:$U$1000=Costs!$A624)*('Fixed assets'!$S$2:$S$1000))+SUMPRODUCT(('Fixed assets'!$Q$2:$Q$1000=Costs!AA$617)*('Fixed assets'!$P$2:$P$1000=Costs!$A624)*('Fixed assets'!$U$2:$U$1000=Costs!$A624)*('Fixed assets'!$R$2:$R$1000))","v":0},{"$f":"SUMPRODUCT(('Fixed assets'!$R$2:$R$1000)*('Fixed assets'!$P$2:$P$1000<$A624)*('Fixed assets'!$Q$2:$Q$1000=Costs!AB$617))-SUMPRODUCT(('Fixed assets'!$S$2:$S$1000)*('Fixed assets'!$P$2:$P$1000<Costs!$A624)*('Fixed assets'!$Q$2:$Q$1000=Costs!AB$617))-SUMPRODUCT(('Fixed assets'!$Q$2:$Q$1000=Costs!AB$617)*('Fixed assets'!$U$2:$U$1000=Costs!$A624)*('Fixed assets'!$S$2:$S$1000))+SUMPRODUCT(('Fixed assets'!$Q$2:$Q$1000=Costs!AB$617)*('Fixed assets'!$P$2:$P$1000=Costs!$A624)*('Fixed assets'!$U$2:$U$1000=Costs!$A624)*('Fixed assets'!$R$2:$R$1000))","v":0},{"$f":"SUMPRODUCT(('Fixed assets'!$R$2:$R$1000)*('Fixed assets'!$P$2:$P$1000<$A624)*('Fixed assets'!$Q$2:$Q$1000=Costs!AC$617))-SUMPRODUCT(('Fixed assets'!$S$2:$S$1000)*('Fixed assets'!$P$2:$P$1000<Costs!$A624)*('Fixed assets'!$Q$2:$Q$1000=Costs!AC$617))-SUMPRODUCT(('Fixed assets'!$Q$2:$Q$1000=Costs!AC$617)*('Fixed assets'!$U$2:$U$1000=Costs!$A624)*('Fixed assets'!$S$2:$S$1000))+SUMPRODUCT(('Fixed assets'!$Q$2:$Q$1000=Costs!AC$617)*('Fixed assets'!$P$2:$P$1000=Costs!$A624)*('Fixed assets'!$U$2:$U$1000=Costs!$A624)*('Fixed assets'!$R$2:$R$1000))","v":0},{"$f":"SUMPRODUCT(('Fixed assets'!$R$2:$R$1000)*('Fixed assets'!$P$2:$P$1000<$A624)*('Fixed assets'!$Q$2:$Q$1000=Costs!AD$617))-SUMPRODUCT(('Fixed assets'!$S$2:$S$1000)*('Fixed assets'!$P$2:$P$1000<Costs!$A624)*('Fixed assets'!$Q$2:$Q$1000=Costs!AD$617))-SUMPRODUCT(('Fixed assets'!$Q$2:$Q$1000=Costs!AD$617)*('Fixed assets'!$U$2:$U$1000=Costs!$A624)*('Fixed assets'!$S$2:$S$1000))+SUMPRODUCT(('Fixed assets'!$Q$2:$Q$1000=Costs!AD$617)*('Fixed assets'!$P$2:$P$1000=Costs!$A624)*('Fixed assets'!$U$2:$U$1000=Costs!$A624)*('Fixed assets'!$R$2:$R$1000))","v":0},{"$f":"SUMPRODUCT(('Fixed assets'!$R$2:$R$1000)*('Fixed assets'!$P$2:$P$1000<$A624)*('Fixed assets'!$Q$2:$Q$1000=Costs!AE$617))-SUMPRODUCT(('Fixed assets'!$S$2:$S$1000)*('Fixed assets'!$P$2:$P$1000<Costs!$A624)*('Fixed assets'!$Q$2:$Q$1000=Costs!AE$617))-SUMPRODUCT(('Fixed assets'!$Q$2:$Q$1000=Costs!AE$617)*('Fixed assets'!$U$2:$U$1000=Costs!$A624)*('Fixed assets'!$S$2:$S$1000))+SUMPRODUCT(('Fixed assets'!$Q$2:$Q$1000=Costs!AE$617)*('Fixed assets'!$P$2:$P$1000=Costs!$A624)*('Fixed assets'!$U$2:$U$1000=Costs!$A624)*('Fixed assets'!$R$2:$R$1000))","v":0},{"$f":"SUMPRODUCT(('Fixed assets'!$R$2:$R$1000)*('Fixed assets'!$P$2:$P$1000<$A624)*('Fixed assets'!$Q$2:$Q$1000=Costs!AF$617))-SUMPRODUCT(('Fixed assets'!$S$2:$S$1000)*('Fixed assets'!$P$2:$P$1000<Costs!$A624)*('Fixed assets'!$Q$2:$Q$1000=Costs!AF$617))-SUMPRODUCT(('Fixed assets'!$Q$2:$Q$1000=Costs!AF$617)*('Fixed assets'!$U$2:$U$1000=Costs!$A624)*('Fixed assets'!$S$2:$S$1000))+SUMPRODUCT(('Fixed assets'!$Q$2:$Q$1000=Costs!AF$617)*('Fixed assets'!$P$2:$P$1000=Costs!$A624)*('Fixed assets'!$U$2:$U$1000=Costs!$A624)*('Fixed assets'!$R$2:$R$1000))","v":0},{"$f":"SUMPRODUCT(('Fixed assets'!$R$2:$R$1000)*('Fixed assets'!$P$2:$P$1000<$A624)*('Fixed assets'!$Q$2:$Q$1000=Costs!AG$617))-SUMPRODUCT(('Fixed assets'!$S$2:$S$1000)*('Fixed assets'!$P$2:$P$1000<Costs!$A624)*('Fixed assets'!$Q$2:$Q$1000=Costs!AG$617))-SUMPRODUCT(('Fixed assets'!$Q$2:$Q$1000=Costs!AG$617)*('Fixed assets'!$U$2:$U$1000=Costs!$A624)*('Fixed assets'!$S$2:$S$1000))+SUMPRODUCT(('Fixed assets'!$Q$2:$Q$1000=Costs!AG$617)*('Fixed assets'!$P$2:$P$1000=Costs!$A624)*('Fixed assets'!$U$2:$U$1000=Costs!$A624)*('Fixed assets'!$R$2:$R$1000))","v":0},{"$f":"SUMPRODUCT(('Fixed assets'!$R$2:$R$1000)*('Fixed assets'!$P$2:$P$1000<$A624)*('Fixed assets'!$Q$2:$Q$1000=Costs!AH$617))-SUMPRODUCT(('Fixed assets'!$S$2:$S$1000)*('Fixed assets'!$P$2:$P$1000<Costs!$A624)*('Fixed assets'!$Q$2:$Q$1000=Costs!AH$617))-SUMPRODUCT(('Fixed assets'!$Q$2:$Q$1000=Costs!AH$617)*('Fixed assets'!$U$2:$U$1000=Costs!$A624)*('Fixed assets'!$S$2:$S$1000))+SUMPRODUCT(('Fixed assets'!$Q$2:$Q$1000=Costs!AH$617)*('Fixed assets'!$P$2:$P$1000=Costs!$A624)*('Fixed assets'!$U$2:$U$1000=Costs!$A624)*('Fixed assets'!$R$2:$R$1000))","v":0},{"$f":"SUMPRODUCT(('Fixed assets'!$R$2:$R$1000)*('Fixed assets'!$P$2:$P$1000<$A624)*('Fixed assets'!$Q$2:$Q$1000=Costs!AI$617))-SUMPRODUCT(('Fixed assets'!$S$2:$S$1000)*('Fixed assets'!$P$2:$P$1000<Costs!$A624)*('Fixed assets'!$Q$2:$Q$1000=Costs!AI$617))-SUMPRODUCT(('Fixed assets'!$Q$2:$Q$1000=Costs!AI$617)*('Fixed assets'!$U$2:$U$1000=Costs!$A624)*('Fixed assets'!$S$2:$S$1000))+SUMPRODUCT(('Fixed assets'!$Q$2:$Q$1000=Costs!AI$617)*('Fixed assets'!$P$2:$P$1000=Costs!$A624)*('Fixed assets'!$U$2:$U$1000=Costs!$A624)*('Fixed assets'!$R$2:$R$1000))","v":0},{"$f":"SUMPRODUCT(('Fixed assets'!$R$2:$R$1000)*('Fixed assets'!$P$2:$P$1000<$A624)*('Fixed assets'!$Q$2:$Q$1000=Costs!AJ$617))-SUMPRODUCT(('Fixed assets'!$S$2:$S$1000)*('Fixed assets'!$P$2:$P$1000<Costs!$A624)*('Fixed assets'!$Q$2:$Q$1000=Costs!AJ$617))-SUMPRODUCT(('Fixed assets'!$Q$2:$Q$1000=Costs!AJ$617)*('Fixed assets'!$U$2:$U$1000=Costs!$A624)*('Fixed assets'!$S$2:$S$1000))+SUMPRODUCT(('Fixed assets'!$Q$2:$Q$1000=Costs!AJ$617)*('Fixed assets'!$P$2:$P$1000=Costs!$A624)*('Fixed assets'!$U$2:$U$1000=Costs!$A624)*('Fixed assets'!$R$2:$R$1000))","v":0},{"$f":"SUMPRODUCT(('Fixed assets'!$R$2:$R$1000)*('Fixed assets'!$P$2:$P$1000<$A624)*('Fixed assets'!$Q$2:$Q$1000=Costs!AK$617))-SUMPRODUCT(('Fixed assets'!$S$2:$S$1000)*('Fixed assets'!$P$2:$P$1000<Costs!$A624)*('Fixed assets'!$Q$2:$Q$1000=Costs!AK$617))-SUMPRODUCT(('Fixed assets'!$Q$2:$Q$1000=Costs!AK$617)*('Fixed assets'!$U$2:$U$1000=Costs!$A624)*('Fixed assets'!$S$2:$S$1000))+SUMPRODUCT(('Fixed assets'!$Q$2:$Q$1000=Costs!AK$617)*('Fixed assets'!$P$2:$P$1000=Costs!$A624)*('Fixed assets'!$U$2:$U$1000=Costs!$A624)*('Fixed assets'!$R$2:$R$1000))","v":0},{"$f":"SUMPRODUCT(('Fixed assets'!$R$2:$R$1000)*('Fixed assets'!$P$2:$P$1000<$A624)*('Fixed assets'!$Q$2:$Q$1000=Costs!AL$617))-SUMPRODUCT(('Fixed assets'!$S$2:$S$1000)*('Fixed assets'!$P$2:$P$1000<Costs!$A624)*('Fixed assets'!$Q$2:$Q$1000=Costs!AL$617))-SUMPRODUCT(('Fixed assets'!$Q$2:$Q$1000=Costs!AL$617)*('Fixed assets'!$U$2:$U$1000=Costs!$A624)*('Fixed assets'!$S$2:$S$1000))+SUMPRODUCT(('Fixed assets'!$Q$2:$Q$1000=Costs!AL$617)*('Fixed assets'!$P$2:$P$1000=Costs!$A624)*('Fixed assets'!$U$2:$U$1000=Costs!$A624)*('Fixed assets'!$R$2:$R$1000))","v":0},{"$f":"SUMPRODUCT(('Fixed assets'!$R$2:$R$1000)*('Fixed assets'!$P$2:$P$1000<$A624)*('Fixed assets'!$Q$2:$Q$1000=Costs!AM$617))-SUMPRODUCT(('Fixed assets'!$S$2:$S$1000)*('Fixed assets'!$P$2:$P$1000<Costs!$A624)*('Fixed assets'!$Q$2:$Q$1000=Costs!AM$617))-SUMPRODUCT(('Fixed assets'!$Q$2:$Q$1000=Costs!AM$617)*('Fixed assets'!$U$2:$U$1000=Costs!$A624)*('Fixed assets'!$S$2:$S$1000))+SUMPRODUCT(('Fixed assets'!$Q$2:$Q$1000=Costs!AM$617)*('Fixed assets'!$P$2:$P$1000=Costs!$A624)*('Fixed assets'!$U$2:$U$1000=Costs!$A624)*('Fixed assets'!$R$2:$R$1000))","v":0},{"$f":"SUMPRODUCT(('Fixed assets'!$R$2:$R$1000)*('Fixed assets'!$P$2:$P$1000<$A624)*('Fixed assets'!$Q$2:$Q$1000=Costs!AN$617))-SUMPRODUCT(('Fixed assets'!$S$2:$S$1000)*('Fixed assets'!$P$2:$P$1000<Costs!$A624)*('Fixed assets'!$Q$2:$Q$1000=Costs!AN$617))-SUMPRODUCT(('Fixed assets'!$Q$2:$Q$1000=Costs!AN$617)*('Fixed assets'!$U$2:$U$1000=Costs!$A624)*('Fixed assets'!$S$2:$S$1000))+SUMPRODUCT(('Fixed assets'!$Q$2:$Q$1000=Costs!AN$617)*('Fixed assets'!$P$2:$P$1000=Costs!$A624)*('Fixed assets'!$U$2:$U$1000=Costs!$A624)*('Fixed assets'!$R$2:$R$1000))","v":0},{"$f":"SUMPRODUCT(('Fixed assets'!$R$2:$R$1000)*('Fixed assets'!$P$2:$P$1000<$A624)*('Fixed assets'!$Q$2:$Q$1000=Costs!AO$617))-SUMPRODUCT(('Fixed assets'!$S$2:$S$1000)*('Fixed assets'!$P$2:$P$1000<Costs!$A624)*('Fixed assets'!$Q$2:$Q$1000=Costs!AO$617))-SUMPRODUCT(('Fixed assets'!$Q$2:$Q$1000=Costs!AO$617)*('Fixed assets'!$U$2:$U$1000=Costs!$A624)*('Fixed assets'!$S$2:$S$1000))+SUMPRODUCT(('Fixed assets'!$Q$2:$Q$1000=Costs!AO$617)*('Fixed assets'!$P$2:$P$1000=Costs!$A624)*('Fixed assets'!$U$2:$U$1000=Costs!$A624)*('Fixed assets'!$R$2:$R$1000))","v":0},{"$f":"SUMPRODUCT(('Fixed assets'!$R$2:$R$1000)*('Fixed assets'!$P$2:$P$1000<$A624)*('Fixed assets'!$Q$2:$Q$1000=Costs!AP$617))-SUMPRODUCT(('Fixed assets'!$S$2:$S$1000)*('Fixed assets'!$P$2:$P$1000<Costs!$A624)*('Fixed assets'!$Q$2:$Q$1000=Costs!AP$617))-SUMPRODUCT(('Fixed assets'!$Q$2:$Q$1000=Costs!AP$617)*('Fixed assets'!$U$2:$U$1000=Costs!$A624)*('Fixed assets'!$S$2:$S$1000))+SUMPRODUCT(('Fixed assets'!$Q$2:$Q$1000=Costs!AP$617)*('Fixed assets'!$P$2:$P$1000=Costs!$A624)*('Fixed assets'!$U$2:$U$1000=Costs!$A624)*('Fixed assets'!$R$2:$R$1000))","v":0},{"$f":"SUMPRODUCT(('Fixed assets'!$R$2:$R$1000)*('Fixed assets'!$P$2:$P$1000<$A624)*('Fixed assets'!$Q$2:$Q$1000=Costs!AQ$617))-SUMPRODUCT(('Fixed assets'!$S$2:$S$1000)*('Fixed assets'!$P$2:$P$1000<Costs!$A624)*('Fixed assets'!$Q$2:$Q$1000=Costs!AQ$617))-SUMPRODUCT(('Fixed assets'!$Q$2:$Q$1000=Costs!AQ$617)*('Fixed assets'!$U$2:$U$1000=Costs!$A624)*('Fixed assets'!$S$2:$S$1000))+SUMPRODUCT(('Fixed assets'!$Q$2:$Q$1000=Costs!AQ$617)*('Fixed assets'!$P$2:$P$1000=Costs!$A624)*('Fixed assets'!$U$2:$U$1000=Costs!$A624)*('Fixed assets'!$R$2:$R$1000))","v":0}]
[2022,9000000,{"$f":"SUMPRODUCT(('Fixed assets'!$R$2:$R$1000)*('Fixed assets'!$P$2:$P$1000<$A625)*('Fixed assets'!$Q$2:$Q$1000=Costs!C$617))-SUMPRODUCT(('Fixed assets'!$S$2:$S$1000)*('Fixed assets'!$P$2:$P$1000<Costs!$A625)*('Fixed assets'!$Q$2:$Q$1000=Costs!C$617))-SUMPRODUCT(('Fixed assets'!$Q$2:$Q$1000=Costs!C$617)*('Fixed assets'!$U$2:$U$1000=Costs!$A625)*('Fixed assets'!$S$2:$S$1000))+SUMPRODUCT(('Fixed assets'!$Q$2:$Q$1000=Costs!C$617)*('Fixed assets'!$P$2:$P$1000=Costs!$A625)*('Fixed assets'!$U$2:$U$1000=Costs!$A625)*('Fixed assets'!$R$2:$R$1000))","v":0},{"$f":"SUMPRODUCT(('Fixed assets'!$R$2:$R$1000)*('Fixed assets'!$P$2:$P$1000<$A625)*('Fixed assets'!$Q$2:$Q$1000=Costs!D$617))-SUMPRODUCT(('Fixed assets'!$S$2:$S$1000)*('Fixed assets'!$P$2:$P$1000<Costs!$A625)*('Fixed assets'!$Q$2:$Q$1000=Costs!D$617))-SUMPRODUCT(('Fixed assets'!$Q$2:$Q$1000=Costs!D$617)*('Fixed assets'!$U$2:$U$1000=Costs!$A625)*('Fixed assets'!$S$2:$S$1000))+SUMPRODUCT(('Fixed assets'!$Q$2:$Q$1000=Costs!D$617)*('Fixed assets'!$P$2:$P$1000=Costs!$A625)*('Fixed assets'!$U$2:$U$1000=Costs!$A625)*('Fixed assets'!$R$2:$R$1000))","v":0},{"$f":"SUMPRODUCT(('Fixed assets'!$R$2:$R$1000)*('Fixed assets'!$P$2:$P$1000<$A625)*('Fixed assets'!$Q$2:$Q$1000=Costs!E$617))-SUMPRODUCT(('Fixed assets'!$S$2:$S$1000)*('Fixed assets'!$P$2:$P$1000<Costs!$A625)*('Fixed assets'!$Q$2:$Q$1000=Costs!E$617))-SUMPRODUCT(('Fixed assets'!$Q$2:$Q$1000=Costs!E$617)*('Fixed assets'!$U$2:$U$1000=Costs!$A625)*('Fixed assets'!$S$2:$S$1000))+SUMPRODUCT(('Fixed assets'!$Q$2:$Q$1000=Costs!E$617)*('Fixed assets'!$P$2:$P$1000=Costs!$A625)*('Fixed assets'!$U$2:$U$1000=Costs!$A625)*('Fixed assets'!$R$2:$R$1000))","v":0},{"$f":"SUMPRODUCT(('Fixed assets'!$R$2:$R$1000)*('Fixed assets'!$P$2:$P$1000<$A625)*('Fixed assets'!$Q$2:$Q$1000=Costs!F$617))-SUMPRODUCT(('Fixed assets'!$S$2:$S$1000)*('Fixed assets'!$P$2:$P$1000<Costs!$A625)*('Fixed assets'!$Q$2:$Q$1000=Costs!F$617))-SUMPRODUCT(('Fixed assets'!$Q$2:$Q$1000=Costs!F$617)*('Fixed assets'!$U$2:$U$1000=Costs!$A625)*('Fixed assets'!$S$2:$S$1000))+SUMPRODUCT(('Fixed assets'!$Q$2:$Q$1000=Costs!F$617)*('Fixed assets'!$P$2:$P$1000=Costs!$A625)*('Fixed assets'!$U$2:$U$1000=Costs!$A625)*('Fixed assets'!$R$2:$R$1000))","v":0},{"$f":"SUMPRODUCT(('Fixed assets'!$R$2:$R$1000)*('Fixed assets'!$P$2:$P$1000<$A625)*('Fixed assets'!$Q$2:$Q$1000=Costs!G$617))-SUMPRODUCT(('Fixed assets'!$S$2:$S$1000)*('Fixed assets'!$P$2:$P$1000<Costs!$A625)*('Fixed assets'!$Q$2:$Q$1000=Costs!G$617))-SUMPRODUCT(('Fixed assets'!$Q$2:$Q$1000=Costs!G$617)*('Fixed assets'!$U$2:$U$1000=Costs!$A625)*('Fixed assets'!$S$2:$S$1000))+SUMPRODUCT(('Fixed assets'!$Q$2:$Q$1000=Costs!G$617)*('Fixed assets'!$P$2:$P$1000=Costs!$A625)*('Fixed assets'!$U$2:$U$1000=Costs!$A625)*('Fixed assets'!$R$2:$R$1000))","v":0},{"$f":"SUMPRODUCT(('Fixed assets'!$R$2:$R$1000)*('Fixed assets'!$P$2:$P$1000<$A625)*('Fixed assets'!$Q$2:$Q$1000=Costs!H$617))-SUMPRODUCT(('Fixed assets'!$S$2:$S$1000)*('Fixed assets'!$P$2:$P$1000<Costs!$A625)*('Fixed assets'!$Q$2:$Q$1000=Costs!H$617))-SUMPRODUCT(('Fixed assets'!$Q$2:$Q$1000=Costs!H$617)*('Fixed assets'!$U$2:$U$1000=Costs!$A625)*('Fixed assets'!$S$2:$S$1000))+SUMPRODUCT(('Fixed assets'!$Q$2:$Q$1000=Costs!H$617)*('Fixed assets'!$P$2:$P$1000=Costs!$A625)*('Fixed assets'!$U$2:$U$1000=Costs!$A625)*('Fixed assets'!$R$2:$R$1000))","v":0},{"$f":"SUMPRODUCT(('Fixed assets'!$R$2:$R$1000)*('Fixed assets'!$P$2:$P$1000<$A625)*('Fixed assets'!$Q$2:$Q$1000=Costs!I$617))-SUMPRODUCT(('Fixed assets'!$S$2:$S$1000)*('Fixed assets'!$P$2:$P$1000<Costs!$A625)*('Fixed assets'!$Q$2:$Q$1000=Costs!I$617))-SUMPRODUCT(('Fixed assets'!$Q$2:$Q$1000=Costs!I$617)*('Fixed assets'!$U$2:$U$1000=Costs!$A625)*('Fixed assets'!$S$2:$S$1000))+SUMPRODUCT(('Fixed assets'!$Q$2:$Q$1000=Costs!I$617)*('Fixed assets'!$P$2:$P$1000=Costs!$A625)*('Fixed assets'!$U$2:$U$1000=Costs!$A625)*('Fixed assets'!$R$2:$R$1000))","v":0},{"$f":"SUMPRODUCT(('Fixed assets'!$R$2:$R$1000)*('Fixed assets'!$P$2:$P$1000<$A625)*('Fixed assets'!$Q$2:$Q$1000=Costs!J$617))-SUMPRODUCT(('Fixed assets'!$S$2:$S$1000)*('Fixed assets'!$P$2:$P$1000<Costs!$A625)*('Fixed assets'!$Q$2:$Q$1000=Costs!J$617))-SUMPRODUCT(('Fixed assets'!$Q$2:$Q$1000=Costs!J$617)*('Fixed assets'!$U$2:$U$1000=Costs!$A625)*('Fixed assets'!$S$2:$S$1000))+SUMPRODUCT(('Fixed assets'!$Q$2:$Q$1000=Costs!J$617)*('Fixed assets'!$P$2:$P$1000=Costs!$A625)*('Fixed assets'!$U$2:$U$1000=Costs!$A625)*('Fixed assets'!$R$2:$R$1000))","v":0},{"$f":"SUMPRODUCT(('Fixed assets'!$R$2:$R$1000)*('Fixed assets'!$P$2:$P$1000<$A625)*('Fixed assets'!$Q$2:$Q$1000=Costs!K$617))-SUMPRODUCT(('Fixed assets'!$S$2:$S$1000)*('Fixed assets'!$P$2:$P$1000<Costs!$A625)*('Fixed assets'!$Q$2:$Q$1000=Costs!K$617))-SUMPRODUCT(('Fixed assets'!$Q$2:$Q$1000=Costs!K$617)*('Fixed assets'!$U$2:$U$1000=Costs!$A625)*('Fixed assets'!$S$2:$S$1000))+SUMPRODUCT(('Fixed assets'!$Q$2:$Q$1000=Costs!K$617)*('Fixed assets'!$P$2:$P$1000=Costs!$A625)*('Fixed assets'!$U$2:$U$1000=Costs!$A625)*('Fixed assets'!$R$2:$R$1000))","v":0},{"$f":"SUMPRODUCT(('Fixed assets'!$R$2:$R$1000)*('Fixed assets'!$P$2:$P$1000<$A625)*('Fixed assets'!$Q$2:$Q$1000=Costs!L$617))-SUMPRODUCT(('Fixed assets'!$S$2:$S$1000)*('Fixed assets'!$P$2:$P$1000<Costs!$A625)*('Fixed assets'!$Q$2:$Q$1000=Costs!L$617))-SUMPRODUCT(('Fixed assets'!$Q$2:$Q$1000=Costs!L$617)*('Fixed assets'!$U$2:$U$1000=Costs!$A625)*('Fixed assets'!$S$2:$S$1000))+SUMPRODUCT(('Fixed assets'!$Q$2:$Q$1000=Costs!L$617)*('Fixed assets'!$P$2:$P$1000=Costs!$A625)*('Fixed assets'!$U$2:$U$1000=Costs!$A625)*('Fixed assets'!$R$2:$R$1000))","v":0},{"$f":"SUMPRODUCT(('Fixed assets'!$R$2:$R$1000)*('Fixed assets'!$P$2:$P$1000<$A625)*('Fixed assets'!$Q$2:$Q$1000=Costs!M$617))-SUMPRODUCT(('Fixed assets'!$S$2:$S$1000)*('Fixed assets'!$P$2:$P$1000<Costs!$A625)*('Fixed assets'!$Q$2:$Q$1000=Costs!M$617))-SUMPRODUCT(('Fixed assets'!$Q$2:$Q$1000=Costs!M$617)*('Fixed assets'!$U$2:$U$1000=Costs!$A625)*('Fixed assets'!$S$2:$S$1000))+SUMPRODUCT(('Fixed assets'!$Q$2:$Q$1000=Costs!M$617)*('Fixed assets'!$P$2:$P$1000=Costs!$A625)*('Fixed assets'!$U$2:$U$1000=Costs!$A625)*('Fixed assets'!$R$2:$R$1000))","v":0},{"$f":"SUMPRODUCT(('Fixed assets'!$R$2:$R$1000)*('Fixed assets'!$P$2:$P$1000<$A625)*('Fixed assets'!$Q$2:$Q$1000=Costs!N$617))-SUMPRODUCT(('Fixed assets'!$S$2:$S$1000)*('Fixed assets'!$P$2:$P$1000<Costs!$A625)*('Fixed assets'!$Q$2:$Q$1000=Costs!N$617))-SUMPRODUCT(('Fixed assets'!$Q$2:$Q$1000=Costs!N$617)*('Fixed assets'!$U$2:$U$1000=Costs!$A625)*('Fixed assets'!$S$2:$S$1000))+SUMPRODUCT(('Fixed assets'!$Q$2:$Q$1000=Costs!N$617)*('Fixed assets'!$P$2:$P$1000=Costs!$A625)*('Fixed assets'!$U$2:$U$1000=Costs!$A625)*('Fixed assets'!$R$2:$R$1000))","v":0},{"$f":"SUMPRODUCT(('Fixed assets'!$R$2:$R$1000)*('Fixed assets'!$P$2:$P$1000<$A625)*('Fixed assets'!$Q$2:$Q$1000=Costs!O$617))-SUMPRODUCT(('Fixed assets'!$S$2:$S$1000)*('Fixed assets'!$P$2:$P$1000<Costs!$A625)*('Fixed assets'!$Q$2:$Q$1000=Costs!O$617))-SUMPRODUCT(('Fixed assets'!$Q$2:$Q$1000=Costs!O$617)*('Fixed assets'!$U$2:$U$1000=Costs!$A625)*('Fixed assets'!$S$2:$S$1000))+SUMPRODUCT(('Fixed assets'!$Q$2:$Q$1000=Costs!O$617)*('Fixed assets'!$P$2:$P$1000=Costs!$A625)*('Fixed assets'!$U$2:$U$1000=Costs!$A625)*('Fixed assets'!$R$2:$R$1000))","v":0},{"$f":"SUMPRODUCT(('Fixed assets'!$R$2:$R$1000)*('Fixed assets'!$P$2:$P$1000<$A625)*('Fixed assets'!$Q$2:$Q$1000=Costs!P$617))-SUMPRODUCT(('Fixed assets'!$S$2:$S$1000)*('Fixed assets'!$P$2:$P$1000<Costs!$A625)*('Fixed assets'!$Q$2:$Q$1000=Costs!P$617))-SUMPRODUCT(('Fixed assets'!$Q$2:$Q$1000=Costs!P$617)*('Fixed assets'!$U$2:$U$1000=Costs!$A625)*('Fixed assets'!$S$2:$S$1000))+SUMPRODUCT(('Fixed assets'!$Q$2:$Q$1000=Costs!P$617)*('Fixed assets'!$P$2:$P$1000=Costs!$A625)*('Fixed assets'!$U$2:$U$1000=Costs!$A625)*('Fixed assets'!$R$2:$R$1000))","v":9000000},{"$f":"SUMPRODUCT(('Fixed assets'!$R$2:$R$1000)*('Fixed assets'!$P$2:$P$1000<$A625)*('Fixed assets'!$Q$2:$Q$1000=Costs!Q$617))-SUMPRODUCT(('Fixed assets'!$S$2:$S$1000)*('Fixed assets'!$P$2:$P$1000<Costs!$A625)*('Fixed assets'!$Q$2:$Q$1000=Costs!Q$617))-SUMPRODUCT(('Fixed assets'!$Q$2:$Q$1000=Costs!Q$617)*('Fixed assets'!$U$2:$U$1000=Costs!$A625)*('Fixed assets'!$S$2:$S$1000))+SUMPRODUCT(('Fixed assets'!$Q$2:$Q$1000=Costs!Q$617)*('Fixed assets'!$P$2:$P$1000=Costs!$A625)*('Fixed assets'!$U$2:$U$1000=Costs!$A625)*('Fixed assets'!$R$2:$R$1000))","v":0},{"$f":"SUMPRODUCT(('Fixed assets'!$R$2:$R$1000)*('Fixed assets'!$P$2:$P$1000<$A625)*('Fixed assets'!$Q$2:$Q$1000=Costs!R$617))-SUMPRODUCT(('Fixed assets'!$S$2:$S$1000)*('Fixed assets'!$P$2:$P$1000<Costs!$A625)*('Fixed assets'!$Q$2:$Q$1000=Costs!R$617))-SUMPRODUCT(('Fixed assets'!$Q$2:$Q$1000=Costs!R$617)*('Fixed assets'!$U$2:$U$1000=Costs!$A625)*('Fixed assets'!$S$2:$S$1000))+SUMPRODUCT(('Fixed assets'!$Q$2:$Q$1000=Costs!R$617)*('Fixed assets'!$P$2:$P$1000=Costs!$A625)*('Fixed assets'!$U$2:$U$1000=Costs!$A625)*('Fixed assets'!$R$2:$R$1000))","v":0},{"$f":"SUMPRODUCT(('Fixed assets'!$R$2:$R$1000)*('Fixed assets'!$P$2:$P$1000<$A625)*('Fixed assets'!$Q$2:$Q$1000=Costs!S$617))-SUMPRODUCT(('Fixed assets'!$S$2:$S$1000)*('Fixed assets'!$P$2:$P$1000<Costs!$A625)*('Fixed assets'!$Q$2:$Q$1000=Costs!S$617))-SUMPRODUCT(('Fixed assets'!$Q$2:$Q$1000=Costs!S$617)*('Fixed assets'!$U$2:$U$1000=Costs!$A625)*('Fixed assets'!$S$2:$S$1000))+SUMPRODUCT(('Fixed assets'!$Q$2:$Q$1000=Costs!S$617)*('Fixed assets'!$P$2:$P$1000=Costs!$A625)*('Fixed assets'!$U$2:$U$1000=Costs!$A625)*('Fixed assets'!$R$2:$R$1000))","v":0},{"$f":"SUMPRODUCT(('Fixed assets'!$R$2:$R$1000)*('Fixed assets'!$P$2:$P$1000<$A625)*('Fixed assets'!$Q$2:$Q$1000=Costs!T$617))-SUMPRODUCT(('Fixed assets'!$S$2:$S$1000)*('Fixed assets'!$P$2:$P$1000<Costs!$A625)*('Fixed assets'!$Q$2:$Q$1000=Costs!T$617))-SUMPRODUCT(('Fixed assets'!$Q$2:$Q$1000=Costs!T$617)*('Fixed assets'!$U$2:$U$1000=Costs!$A625)*('Fixed assets'!$S$2:$S$1000))+SUMPRODUCT(('Fixed assets'!$Q$2:$Q$1000=Costs!T$617)*('Fixed assets'!$P$2:$P$1000=Costs!$A625)*('Fixed assets'!$U$2:$U$1000=Costs!$A625)*('Fixed assets'!$R$2:$R$1000))","v":0},{"$f":"SUMPRODUCT(('Fixed assets'!$R$2:$R$1000)*('Fixed assets'!$P$2:$P$1000<$A625)*('Fixed assets'!$Q$2:$Q$1000=Costs!U$617))-SUMPRODUCT(('Fixed assets'!$S$2:$S$1000)*('Fixed assets'!$P$2:$P$1000<Costs!$A625)*('Fixed assets'!$Q$2:$Q$1000=Costs!U$617))-SUMPRODUCT(('Fixed assets'!$Q$2:$Q$1000=Costs!U$617)*('Fixed assets'!$U$2:$U$1000=Costs!$A625)*('Fixed assets'!$S$2:$S$1000))+SUMPRODUCT(('Fixed assets'!$Q$2:$Q$1000=Costs!U$617)*('Fixed assets'!$P$2:$P$1000=Costs!$A625)*('Fixed assets'!$U$2:$U$1000=Costs!$A625)*('Fixed assets'!$R$2:$R$1000))","v":0},{"$f":"SUMPRODUCT(('Fixed assets'!$R$2:$R$1000)*('Fixed assets'!$P$2:$P$1000<$A625)*('Fixed assets'!$Q$2:$Q$1000=Costs!V$617))-SUMPRODUCT(('Fixed assets'!$S$2:$S$1000)*('Fixed assets'!$P$2:$P$1000<Costs!$A625)*('Fixed assets'!$Q$2:$Q$1000=Costs!V$617))-SUMPRODUCT(('Fixed assets'!$Q$2:$Q$1000=Costs!V$617)*('Fixed assets'!$U$2:$U$1000=Costs!$A625)*('Fixed assets'!$S$2:$S$1000))+SUMPRODUCT(('Fixed assets'!$Q$2:$Q$1000=Costs!V$617)*('Fixed assets'!$P$2:$P$1000=Costs!$A625)*('Fixed assets'!$U$2:$U$1000=Costs!$A625)*('Fixed assets'!$R$2:$R$1000))","v":0},{"$f":"SUMPRODUCT(('Fixed assets'!$R$2:$R$1000)*('Fixed assets'!$P$2:$P$1000<$A625)*('Fixed assets'!$Q$2:$Q$1000=Costs!W$617))-SUMPRODUCT(('Fixed assets'!$S$2:$S$1000)*('Fixed assets'!$P$2:$P$1000<Costs!$A625)*('Fixed assets'!$Q$2:$Q$1000=Costs!W$617))-SUMPRODUCT(('Fixed assets'!$Q$2:$Q$1000=Costs!W$617)*('Fixed assets'!$U$2:$U$1000=Costs!$A625)*('Fixed assets'!$S$2:$S$1000))+SUMPRODUCT(('Fixed assets'!$Q$2:$Q$1000=Costs!W$617)*('Fixed assets'!$P$2:$P$1000=Costs!$A625)*('Fixed assets'!$U$2:$U$1000=Costs!$A625)*('Fixed assets'!$R$2:$R$1000))","v":0},{"$f":"SUMPRODUCT(('Fixed assets'!$R$2:$R$1000)*('Fixed assets'!$P$2:$P$1000<$A625)*('Fixed assets'!$Q$2:$Q$1000=Costs!X$617))-SUMPRODUCT(('Fixed assets'!$S$2:$S$1000)*('Fixed assets'!$P$2:$P$1000<Costs!$A625)*('Fixed assets'!$Q$2:$Q$1000=Costs!X$617))-SUMPRODUCT(('Fixed assets'!$Q$2:$Q$1000=Costs!X$617)*('Fixed assets'!$U$2:$U$1000=Costs!$A625)*('Fixed assets'!$S$2:$S$1000))+SUMPRODUCT(('Fixed assets'!$Q$2:$Q$1000=Costs!X$617)*('Fixed assets'!$P$2:$P$1000=Costs!$A625)*('Fixed assets'!$U$2:$U$1000=Costs!$A625)*('Fixed assets'!$R$2:$R$1000))","v":0},{"$f":"SUMPRODUCT(('Fixed assets'!$R$2:$R$1000)*('Fixed assets'!$P$2:$P$1000<$A625)*('Fixed assets'!$Q$2:$Q$1000=Costs!Y$617))-SUMPRODUCT(('Fixed assets'!$S$2:$S$1000)*('Fixed assets'!$P$2:$P$1000<Costs!$A625)*('Fixed assets'!$Q$2:$Q$1000=Costs!Y$617))-SUMPRODUCT(('Fixed assets'!$Q$2:$Q$1000=Costs!Y$617)*('Fixed assets'!$U$2:$U$1000=Costs!$A625)*('Fixed assets'!$S$2:$S$1000))+SUMPRODUCT(('Fixed assets'!$Q$2:$Q$1000=Costs!Y$617)*('Fixed assets'!$P$2:$P$1000=Costs!$A625)*('Fixed assets'!$U$2:$U$1000=Costs!$A625)*('Fixed assets'!$R$2:$R$1000))","v":0},{"$f":"SUMPRODUCT(('Fixed assets'!$R$2:$R$1000)*('Fixed assets'!$P$2:$P$1000<$A625)*('Fixed assets'!$Q$2:$Q$1000=Costs!Z$617))-SUMPRODUCT(('Fixed assets'!$S$2:$S$1000)*('Fixed assets'!$P$2:$P$1000<Costs!$A625)*('Fixed assets'!$Q$2:$Q$1000=Costs!Z$617))-SUMPRODUCT(('Fixed assets'!$Q$2:$Q$1000=Costs!Z$617)*('Fixed assets'!$U$2:$U$1000=Costs!$A625)*('Fixed assets'!$S$2:$S$1000))+SUMPRODUCT(('Fixed assets'!$Q$2:$Q$1000=Costs!Z$617)*('Fixed assets'!$P$2:$P$1000=Costs!$A625)*('Fixed assets'!$U$2:$U$1000=Costs!$A625)*('Fixed assets'!$R$2:$R$1000))","v":0},{"$f":"SUMPRODUCT(('Fixed assets'!$R$2:$R$1000)*('Fixed assets'!$P$2:$P$1000<$A625)*('Fixed assets'!$Q$2:$Q$1000=Costs!AA$617))-SUMPRODUCT(('Fixed assets'!$S$2:$S$1000)*('Fixed assets'!$P$2:$P$1000<Costs!$A625)*('Fixed assets'!$Q$2:$Q$1000=Costs!AA$617))-SUMPRODUCT(('Fixed assets'!$Q$2:$Q$1000=Costs!AA$617)*('Fixed assets'!$U$2:$U$1000=Costs!$A625)*('Fixed assets'!$S$2:$S$1000))+SUMPRODUCT(('Fixed assets'!$Q$2:$Q$1000=Costs!AA$617)*('Fixed assets'!$P$2:$P$1000=Costs!$A625)*('Fixed assets'!$U$2:$U$1000=Costs!$A625)*('Fixed assets'!$R$2:$R$1000))","v":0},{"$f":"SUMPRODUCT(('Fixed assets'!$R$2:$R$1000)*('Fixed assets'!$P$2:$P$1000<$A625)*('Fixed assets'!$Q$2:$Q$1000=Costs!AB$617))-SUMPRODUCT(('Fixed assets'!$S$2:$S$1000)*('Fixed assets'!$P$2:$P$1000<Costs!$A625)*('Fixed assets'!$Q$2:$Q$1000=Costs!AB$617))-SUMPRODUCT(('Fixed assets'!$Q$2:$Q$1000=Costs!AB$617)*('Fixed assets'!$U$2:$U$1000=Costs!$A625)*('Fixed assets'!$S$2:$S$1000))+SUMPRODUCT(('Fixed assets'!$Q$2:$Q$1000=Costs!AB$617)*('Fixed assets'!$P$2:$P$1000=Costs!$A625)*('Fixed assets'!$U$2:$U$1000=Costs!$A625)*('Fixed assets'!$R$2:$R$1000))","v":0},{"$f":"SUMPRODUCT(('Fixed assets'!$R$2:$R$1000)*('Fixed assets'!$P$2:$P$1000<$A625)*('Fixed assets'!$Q$2:$Q$1000=Costs!AC$617))-SUMPRODUCT(('Fixed assets'!$S$2:$S$1000)*('Fixed assets'!$P$2:$P$1000<Costs!$A625)*('Fixed assets'!$Q$2:$Q$1000=Costs!AC$617))-SUMPRODUCT(('Fixed assets'!$Q$2:$Q$1000=Costs!AC$617)*('Fixed assets'!$U$2:$U$1000=Costs!$A625)*('Fixed assets'!$S$2:$S$1000))+SUMPRODUCT(('Fixed assets'!$Q$2:$Q$1000=Costs!AC$617)*('Fixed assets'!$P$2:$P$1000=Costs!$A625)*('Fixed assets'!$U$2:$U$1000=Costs!$A625)*('Fixed assets'!$R$2:$R$1000))","v":0},{"$f":"SUMPRODUCT(('Fixed assets'!$R$2:$R$1000)*('Fixed assets'!$P$2:$P$1000<$A625)*('Fixed assets'!$Q$2:$Q$1000=Costs!AD$617))-SUMPRODUCT(('Fixed assets'!$S$2:$S$1000)*('Fixed assets'!$P$2:$P$1000<Costs!$A625)*('Fixed assets'!$Q$2:$Q$1000=Costs!AD$617))-SUMPRODUCT(('Fixed assets'!$Q$2:$Q$1000=Costs!AD$617)*('Fixed assets'!$U$2:$U$1000=Costs!$A625)*('Fixed assets'!$S$2:$S$1000))+SUMPRODUCT(('Fixed assets'!$Q$2:$Q$1000=Costs!AD$617)*('Fixed assets'!$P$2:$P$1000=Costs!$A625)*('Fixed assets'!$U$2:$U$1000=Costs!$A625)*('Fixed assets'!$R$2:$R$1000))","v":0},{"$f":"SUMPRODUCT(('Fixed assets'!$R$2:$R$1000)*('Fixed assets'!$P$2:$P$1000<$A625)*('Fixed assets'!$Q$2:$Q$1000=Costs!AE$617))-SUMPRODUCT(('Fixed assets'!$S$2:$S$1000)*('Fixed assets'!$P$2:$P$1000<Costs!$A625)*('Fixed assets'!$Q$2:$Q$1000=Costs!AE$617))-SUMPRODUCT(('Fixed assets'!$Q$2:$Q$1000=Costs!AE$617)*('Fixed assets'!$U$2:$U$1000=Costs!$A625)*('Fixed assets'!$S$2:$S$1000))+SUMPRODUCT(('Fixed assets'!$Q$2:$Q$1000=Costs!AE$617)*('Fixed assets'!$P$2:$P$1000=Costs!$A625)*('Fixed assets'!$U$2:$U$1000=Costs!$A625)*('Fixed assets'!$R$2:$R$1000))","v":0},{"$f":"SUMPRODUCT(('Fixed assets'!$R$2:$R$1000)*('Fixed assets'!$P$2:$P$1000<$A625)*('Fixed assets'!$Q$2:$Q$1000=Costs!AF$617))-SUMPRODUCT(('Fixed assets'!$S$2:$S$1000)*('Fixed assets'!$P$2:$P$1000<Costs!$A625)*('Fixed assets'!$Q$2:$Q$1000=Costs!AF$617))-SUMPRODUCT(('Fixed assets'!$Q$2:$Q$1000=Costs!AF$617)*('Fixed assets'!$U$2:$U$1000=Costs!$A625)*('Fixed assets'!$S$2:$S$1000))+SUMPRODUCT(('Fixed assets'!$Q$2:$Q$1000=Costs!AF$617)*('Fixed assets'!$P$2:$P$1000=Costs!$A625)*('Fixed assets'!$U$2:$U$1000=Costs!$A625)*('Fixed assets'!$R$2:$R$1000))","v":0},{"$f":"SUMPRODUCT(('Fixed assets'!$R$2:$R$1000)*('Fixed assets'!$P$2:$P$1000<$A625)*('Fixed assets'!$Q$2:$Q$1000=Costs!AG$617))-SUMPRODUCT(('Fixed assets'!$S$2:$S$1000)*('Fixed assets'!$P$2:$P$1000<Costs!$A625)*('Fixed assets'!$Q$2:$Q$1000=Costs!AG$617))-SUMPRODUCT(('Fixed assets'!$Q$2:$Q$1000=Costs!AG$617)*('Fixed assets'!$U$2:$U$1000=Costs!$A625)*('Fixed assets'!$S$2:$S$1000))+SUMPRODUCT(('Fixed assets'!$Q$2:$Q$1000=Costs!AG$617)*('Fixed assets'!$P$2:$P$1000=Costs!$A625)*('Fixed assets'!$U$2:$U$1000=Costs!$A625)*('Fixed assets'!$R$2:$R$1000))","v":0},{"$f":"SUMPRODUCT(('Fixed assets'!$R$2:$R$1000)*('Fixed assets'!$P$2:$P$1000<$A625)*('Fixed assets'!$Q$2:$Q$1000=Costs!AH$617))-SUMPRODUCT(('Fixed assets'!$S$2:$S$1000)*('Fixed assets'!$P$2:$P$1000<Costs!$A625)*('Fixed assets'!$Q$2:$Q$1000=Costs!AH$617))-SUMPRODUCT(('Fixed assets'!$Q$2:$Q$1000=Costs!AH$617)*('Fixed assets'!$U$2:$U$1000=Costs!$A625)*('Fixed assets'!$S$2:$S$1000))+SUMPRODUCT(('Fixed assets'!$Q$2:$Q$1000=Costs!AH$617)*('Fixed assets'!$P$2:$P$1000=Costs!$A625)*('Fixed assets'!$U$2:$U$1000=Costs!$A625)*('Fixed assets'!$R$2:$R$1000))","v":0},{"$f":"SUMPRODUCT(('Fixed assets'!$R$2:$R$1000)*('Fixed assets'!$P$2:$P$1000<$A625)*('Fixed assets'!$Q$2:$Q$1000=Costs!AI$617))-SUMPRODUCT(('Fixed assets'!$S$2:$S$1000)*('Fixed assets'!$P$2:$P$1000<Costs!$A625)*('Fixed assets'!$Q$2:$Q$1000=Costs!AI$617))-SUMPRODUCT(('Fixed assets'!$Q$2:$Q$1000=Costs!AI$617)*('Fixed assets'!$U$2:$U$1000=Costs!$A625)*('Fixed assets'!$S$2:$S$1000))+SUMPRODUCT(('Fixed assets'!$Q$2:$Q$1000=Costs!AI$617)*('Fixed assets'!$P$2:$P$1000=Costs!$A625)*('Fixed assets'!$U$2:$U$1000=Costs!$A625)*('Fixed assets'!$R$2:$R$1000))","v":0},{"$f":"SUMPRODUCT(('Fixed assets'!$R$2:$R$1000)*('Fixed assets'!$P$2:$P$1000<$A625)*('Fixed assets'!$Q$2:$Q$1000=Costs!AJ$617))-SUMPRODUCT(('Fixed assets'!$S$2:$S$1000)*('Fixed assets'!$P$2:$P$1000<Costs!$A625)*('Fixed assets'!$Q$2:$Q$1000=Costs!AJ$617))-SUMPRODUCT(('Fixed assets'!$Q$2:$Q$1000=Costs!AJ$617)*('Fixed assets'!$U$2:$U$1000=Costs!$A625)*('Fixed assets'!$S$2:$S$1000))+SUMPRODUCT(('Fixed assets'!$Q$2:$Q$1000=Costs!AJ$617)*('Fixed assets'!$P$2:$P$1000=Costs!$A625)*('Fixed assets'!$U$2:$U$1000=Costs!$A625)*('Fixed assets'!$R$2:$R$1000))","v":0},{"$f":"SUMPRODUCT(('Fixed assets'!$R$2:$R$1000)*('Fixed assets'!$P$2:$P$1000<$A625)*('Fixed assets'!$Q$2:$Q$1000=Costs!AK$617))-SUMPRODUCT(('Fixed assets'!$S$2:$S$1000)*('Fixed assets'!$P$2:$P$1000<Costs!$A625)*('Fixed assets'!$Q$2:$Q$1000=Costs!AK$617))-SUMPRODUCT(('Fixed assets'!$Q$2:$Q$1000=Costs!AK$617)*('Fixed assets'!$U$2:$U$1000=Costs!$A625)*('Fixed assets'!$S$2:$S$1000))+SUMPRODUCT(('Fixed assets'!$Q$2:$Q$1000=Costs!AK$617)*('Fixed assets'!$P$2:$P$1000=Costs!$A625)*('Fixed assets'!$U$2:$U$1000=Costs!$A625)*('Fixed assets'!$R$2:$R$1000))","v":0},{"$f":"SUMPRODUCT(('Fixed assets'!$R$2:$R$1000)*('Fixed assets'!$P$2:$P$1000<$A625)*('Fixed assets'!$Q$2:$Q$1000=Costs!AL$617))-SUMPRODUCT(('Fixed assets'!$S$2:$S$1000)*('Fixed assets'!$P$2:$P$1000<Costs!$A625)*('Fixed assets'!$Q$2:$Q$1000=Costs!AL$617))-SUMPRODUCT(('Fixed assets'!$Q$2:$Q$1000=Costs!AL$617)*('Fixed assets'!$U$2:$U$1000=Costs!$A625)*('Fixed assets'!$S$2:$S$1000))+SUMPRODUCT(('Fixed assets'!$Q$2:$Q$1000=Costs!AL$617)*('Fixed assets'!$P$2:$P$1000=Costs!$A625)*('Fixed assets'!$U$2:$U$1000=Costs!$A625)*('Fixed assets'!$R$2:$R$1000))","v":0},{"$f":"SUMPRODUCT(('Fixed assets'!$R$2:$R$1000)*('Fixed assets'!$P$2:$P$1000<$A625)*('Fixed assets'!$Q$2:$Q$1000=Costs!AM$617))-SUMPRODUCT(('Fixed assets'!$S$2:$S$1000)*('Fixed assets'!$P$2:$P$1000<Costs!$A625)*('Fixed assets'!$Q$2:$Q$1000=Costs!AM$617))-SUMPRODUCT(('Fixed assets'!$Q$2:$Q$1000=Costs!AM$617)*('Fixed assets'!$U$2:$U$1000=Costs!$A625)*('Fixed assets'!$S$2:$S$1000))+SUMPRODUCT(('Fixed assets'!$Q$2:$Q$1000=Costs!AM$617)*('Fixed assets'!$P$2:$P$1000=Costs!$A625)*('Fixed assets'!$U$2:$U$1000=Costs!$A625)*('Fixed assets'!$R$2:$R$1000))","v":0},{"$f":"SUMPRODUCT(('Fixed assets'!$R$2:$R$1000)*('Fixed assets'!$P$2:$P$1000<$A625)*('Fixed assets'!$Q$2:$Q$1000=Costs!AN$617))-SUMPRODUCT(('Fixed assets'!$S$2:$S$1000)*('Fixed assets'!$P$2:$P$1000<Costs!$A625)*('Fixed assets'!$Q$2:$Q$1000=Costs!AN$617))-SUMPRODUCT(('Fixed assets'!$Q$2:$Q$1000=Costs!AN$617)*('Fixed assets'!$U$2:$U$1000=Costs!$A625)*('Fixed assets'!$S$2:$S$1000))+SUMPRODUCT(('Fixed assets'!$Q$2:$Q$1000=Costs!AN$617)*('Fixed assets'!$P$2:$P$1000=Costs!$A625)*('Fixed assets'!$U$2:$U$1000=Costs!$A625)*('Fixed assets'!$R$2:$R$1000))","v":0},{"$f":"SUMPRODUCT(('Fixed assets'!$R$2:$R$1000)*('Fixed assets'!$P$2:$P$1000<$A625)*('Fixed assets'!$Q$2:$Q$1000=Costs!AO$617))-SUMPRODUCT(('Fixed assets'!$S$2:$S$1000)*('Fixed assets'!$P$2:$P$1000<Costs!$A625)*('Fixed assets'!$Q$2:$Q$1000=Costs!AO$617))-SUMPRODUCT(('Fixed assets'!$Q$2:$Q$1000=Costs!AO$617)*('Fixed assets'!$U$2:$U$1000=Costs!$A625)*('Fixed assets'!$S$2:$S$1000))+SUMPRODUCT(('Fixed assets'!$Q$2:$Q$1000=Costs!AO$617)*('Fixed assets'!$P$2:$P$1000=Costs!$A625)*('Fixed assets'!$U$2:$U$1000=Costs!$A625)*('Fixed assets'!$R$2:$R$1000))","v":0},{"$f":"SUMPRODUCT(('Fixed assets'!$R$2:$R$1000)*('Fixed assets'!$P$2:$P$1000<$A625)*('Fixed assets'!$Q$2:$Q$1000=Costs!AP$617))-SUMPRODUCT(('Fixed assets'!$S$2:$S$1000)*('Fixed assets'!$P$2:$P$1000<Costs!$A625)*('Fixed assets'!$Q$2:$Q$1000=Costs!AP$617))-SUMPRODUCT(('Fixed assets'!$Q$2:$Q$1000=Costs!AP$617)*('Fixed assets'!$U$2:$U$1000=Costs!$A625)*('Fixed assets'!$S$2:$S$1000))+SUMPRODUCT(('Fixed assets'!$Q$2:$Q$1000=Costs!AP$617)*('Fixed assets'!$P$2:$P$1000=Costs!$A625)*('Fixed assets'!$U$2:$U$1000=Costs!$A625)*('Fixed assets'!$R$2:$R$1000))","v":0},{"$f":"SUMPRODUCT(('Fixed assets'!$R$2:$R$1000)*('Fixed assets'!$P$2:$P$1000<$A625)*('Fixed assets'!$Q$2:$Q$1000=Costs!AQ$617))-SUMPRODUCT(('Fixed assets'!$S$2:$S$1000)*('Fixed assets'!$P$2:$P$1000<Costs!$A625)*('Fixed assets'!$Q$2:$Q$1000=Costs!AQ$617))-SUMPRODUCT(('Fixed assets'!$Q$2:$Q$1000=Costs!AQ$617)*('Fixed assets'!$U$2:$U$1000=Costs!$A625)*('Fixed assets'!$S$2:$S$1000))+SUMPRODUCT(('Fixed assets'!$Q$2:$Q$1000=Costs!AQ$617)*('Fixed assets'!$P$2:$P$1000=Costs!$A625)*('Fixed assets'!$U$2:$U$1000=Costs!$A625)*('Fixed assets'!$R$2:$R$1000))","v":0}]
[2023,39000000,{"$f":"SUMPRODUCT(('Fixed assets'!$R$2:$R$1000)*('Fixed assets'!$P$2:$P$1000<$A626)*('Fixed assets'!$Q$2:$Q$1000=Costs!C$617))-SUMPRODUCT(('Fixed assets'!$S$2:$S$1000)*('Fixed assets'!$P$2:$P$1000<Costs!$A626)*('Fixed assets'!$Q$2:$Q$1000=Costs!C$617))-SUMPRODUCT(('Fixed assets'!$Q$2:$Q$1000=Costs!C$617)*('Fixed assets'!$U$2:$U$1000=Costs!$A626)*('Fixed assets'!$S$2:$S$1000))+SUMPRODUCT(('Fixed assets'!$Q$2:$Q$1000=Costs!C$617)*('Fixed assets'!$P$2:$P$1000=Costs!$A626)*('Fixed assets'!$U$2:$U$1000=Costs!$A626)*('Fixed assets'!$R$2:$R$1000))","v":0},{"$f":"SUMPRODUCT(('Fixed assets'!$R$2:$R$1000)*('Fixed assets'!$P$2:$P$1000<$A626)*('Fixed assets'!$Q$2:$Q$1000=Costs!D$617))-SUMPRODUCT(('Fixed assets'!$S$2:$S$1000)*('Fixed assets'!$P$2:$P$1000<Costs!$A626)*('Fixed assets'!$Q$2:$Q$1000=Costs!D$617))-SUMPRODUCT(('Fixed assets'!$Q$2:$Q$1000=Costs!D$617)*('Fixed assets'!$U$2:$U$1000=Costs!$A626)*('Fixed assets'!$S$2:$S$1000))+SUMPRODUCT(('Fixed assets'!$Q$2:$Q$1000=Costs!D$617)*('Fixed assets'!$P$2:$P$1000=Costs!$A626)*('Fixed assets'!$U$2:$U$1000=Costs!$A626)*('Fixed assets'!$R$2:$R$1000))","v":0},{"$f":"SUMPRODUCT(('Fixed assets'!$R$2:$R$1000)*('Fixed assets'!$P$2:$P$1000<$A626)*('Fixed assets'!$Q$2:$Q$1000=Costs!E$617))-SUMPRODUCT(('Fixed assets'!$S$2:$S$1000)*('Fixed assets'!$P$2:$P$1000<Costs!$A626)*('Fixed assets'!$Q$2:$Q$1000=Costs!E$617))-SUMPRODUCT(('Fixed assets'!$Q$2:$Q$1000=Costs!E$617)*('Fixed assets'!$U$2:$U$1000=Costs!$A626)*('Fixed assets'!$S$2:$S$1000))+SUMPRODUCT(('Fixed assets'!$Q$2:$Q$1000=Costs!E$617)*('Fixed assets'!$P$2:$P$1000=Costs!$A626)*('Fixed assets'!$U$2:$U$1000=Costs!$A626)*('Fixed assets'!$R$2:$R$1000))","v":0},{"$f":"SUMPRODUCT(('Fixed assets'!$R$2:$R$1000)*('Fixed assets'!$P$2:$P$1000<$A626)*('Fixed assets'!$Q$2:$Q$1000=Costs!F$617))-SUMPRODUCT(('Fixed assets'!$S$2:$S$1000)*('Fixed assets'!$P$2:$P$1000<Costs!$A626)*('Fixed assets'!$Q$2:$Q$1000=Costs!F$617))-SUMPRODUCT(('Fixed assets'!$Q$2:$Q$1000=Costs!F$617)*('Fixed assets'!$U$2:$U$1000=Costs!$A626)*('Fixed assets'!$S$2:$S$1000))+SUMPRODUCT(('Fixed assets'!$Q$2:$Q$1000=Costs!F$617)*('Fixed assets'!$P$2:$P$1000=Costs!$A626)*('Fixed assets'!$U$2:$U$1000=Costs!$A626)*('Fixed assets'!$R$2:$R$1000))","v":0},{"$f":"SUMPRODUCT(('Fixed assets'!$R$2:$R$1000)*('Fixed assets'!$P$2:$P$1000<$A626)*('Fixed assets'!$Q$2:$Q$1000=Costs!G$617))-SUMPRODUCT(('Fixed assets'!$S$2:$S$1000)*('Fixed assets'!$P$2:$P$1000<Costs!$A626)*('Fixed assets'!$Q$2:$Q$1000=Costs!G$617))-SUMPRODUCT(('Fixed assets'!$Q$2:$Q$1000=Costs!G$617)*('Fixed assets'!$U$2:$U$1000=Costs!$A626)*('Fixed assets'!$S$2:$S$1000))+SUMPRODUCT(('Fixed assets'!$Q$2:$Q$1000=Costs!G$617)*('Fixed assets'!$P$2:$P$1000=Costs!$A626)*('Fixed assets'!$U$2:$U$1000=Costs!$A626)*('Fixed assets'!$R$2:$R$1000))","v":0},{"$f":"SUMPRODUCT(('Fixed assets'!$R$2:$R$1000)*('Fixed assets'!$P$2:$P$1000<$A626)*('Fixed assets'!$Q$2:$Q$1000=Costs!H$617))-SUMPRODUCT(('Fixed assets'!$S$2:$S$1000)*('Fixed assets'!$P$2:$P$1000<Costs!$A626)*('Fixed assets'!$Q$2:$Q$1000=Costs!H$617))-SUMPRODUCT(('Fixed assets'!$Q$2:$Q$1000=Costs!H$617)*('Fixed assets'!$U$2:$U$1000=Costs!$A626)*('Fixed assets'!$S$2:$S$1000))+SUMPRODUCT(('Fixed assets'!$Q$2:$Q$1000=Costs!H$617)*('Fixed assets'!$P$2:$P$1000=Costs!$A626)*('Fixed assets'!$U$2:$U$1000=Costs!$A626)*('Fixed assets'!$R$2:$R$1000))","v":0},{"$f":"SUMPRODUCT(('Fixed assets'!$R$2:$R$1000)*('Fixed assets'!$P$2:$P$1000<$A626)*('Fixed assets'!$Q$2:$Q$1000=Costs!I$617))-SUMPRODUCT(('Fixed assets'!$S$2:$S$1000)*('Fixed assets'!$P$2:$P$1000<Costs!$A626)*('Fixed assets'!$Q$2:$Q$1000=Costs!I$617))-SUMPRODUCT(('Fixed assets'!$Q$2:$Q$1000=Costs!I$617)*('Fixed assets'!$U$2:$U$1000=Costs!$A626)*('Fixed assets'!$S$2:$S$1000))+SUMPRODUCT(('Fixed assets'!$Q$2:$Q$1000=Costs!I$617)*('Fixed assets'!$P$2:$P$1000=Costs!$A626)*('Fixed assets'!$U$2:$U$1000=Costs!$A626)*('Fixed assets'!$R$2:$R$1000))","v":0},{"$f":"SUMPRODUCT(('Fixed assets'!$R$2:$R$1000)*('Fixed assets'!$P$2:$P$1000<$A626)*('Fixed assets'!$Q$2:$Q$1000=Costs!J$617))-SUMPRODUCT(('Fixed assets'!$S$2:$S$1000)*('Fixed assets'!$P$2:$P$1000<Costs!$A626)*('Fixed assets'!$Q$2:$Q$1000=Costs!J$617))-SUMPRODUCT(('Fixed assets'!$Q$2:$Q$1000=Costs!J$617)*('Fixed assets'!$U$2:$U$1000=Costs!$A626)*('Fixed assets'!$S$2:$S$1000))+SUMPRODUCT(('Fixed assets'!$Q$2:$Q$1000=Costs!J$617)*('Fixed assets'!$P$2:$P$1000=Costs!$A626)*('Fixed assets'!$U$2:$U$1000=Costs!$A626)*('Fixed assets'!$R$2:$R$1000))","v":0},{"$f":"SUMPRODUCT(('Fixed assets'!$R$2:$R$1000)*('Fixed assets'!$P$2:$P$1000<$A626)*('Fixed assets'!$Q$2:$Q$1000=Costs!K$617))-SUMPRODUCT(('Fixed assets'!$S$2:$S$1000)*('Fixed assets'!$P$2:$P$1000<Costs!$A626)*('Fixed assets'!$Q$2:$Q$1000=Costs!K$617))-SUMPRODUCT(('Fixed assets'!$Q$2:$Q$1000=Costs!K$617)*('Fixed assets'!$U$2:$U$1000=Costs!$A626)*('Fixed assets'!$S$2:$S$1000))+SUMPRODUCT(('Fixed assets'!$Q$2:$Q$1000=Costs!K$617)*('Fixed assets'!$P$2:$P$1000=Costs!$A626)*('Fixed assets'!$U$2:$U$1000=Costs!$A626)*('Fixed assets'!$R$2:$R$1000))","v":0},{"$f":"SUMPRODUCT(('Fixed assets'!$R$2:$R$1000)*('Fixed assets'!$P$2:$P$1000<$A626)*('Fixed assets'!$Q$2:$Q$1000=Costs!L$617))-SUMPRODUCT(('Fixed assets'!$S$2:$S$1000)*('Fixed assets'!$P$2:$P$1000<Costs!$A626)*('Fixed assets'!$Q$2:$Q$1000=Costs!L$617))-SUMPRODUCT(('Fixed assets'!$Q$2:$Q$1000=Costs!L$617)*('Fixed assets'!$U$2:$U$1000=Costs!$A626)*('Fixed assets'!$S$2:$S$1000))+SUMPRODUCT(('Fixed assets'!$Q$2:$Q$1000=Costs!L$617)*('Fixed assets'!$P$2:$P$1000=Costs!$A626)*('Fixed assets'!$U$2:$U$1000=Costs!$A626)*('Fixed assets'!$R$2:$R$1000))","v":0},{"$f":"SUMPRODUCT(('Fixed assets'!$R$2:$R$1000)*('Fixed assets'!$P$2:$P$1000<$A626)*('Fixed assets'!$Q$2:$Q$1000=Costs!M$617))-SUMPRODUCT(('Fixed assets'!$S$2:$S$1000)*('Fixed assets'!$P$2:$P$1000<Costs!$A626)*('Fixed assets'!$Q$2:$Q$1000=Costs!M$617))-SUMPRODUCT(('Fixed assets'!$Q$2:$Q$1000=Costs!M$617)*('Fixed assets'!$U$2:$U$1000=Costs!$A626)*('Fixed assets'!$S$2:$S$1000))+SUMPRODUCT(('Fixed assets'!$Q$2:$Q$1000=Costs!M$617)*('Fixed assets'!$P$2:$P$1000=Costs!$A626)*('Fixed assets'!$U$2:$U$1000=Costs!$A626)*('Fixed assets'!$R$2:$R$1000))","v":0},{"$f":"SUMPRODUCT(('Fixed assets'!$R$2:$R$1000)*('Fixed assets'!$P$2:$P$1000<$A626)*('Fixed assets'!$Q$2:$Q$1000=Costs!N$617))-SUMPRODUCT(('Fixed assets'!$S$2:$S$1000)*('Fixed assets'!$P$2:$P$1000<Costs!$A626)*('Fixed assets'!$Q$2:$Q$1000=Costs!N$617))-SUMPRODUCT(('Fixed assets'!$Q$2:$Q$1000=Costs!N$617)*('Fixed assets'!$U$2:$U$1000=Costs!$A626)*('Fixed assets'!$S$2:$S$1000))+SUMPRODUCT(('Fixed assets'!$Q$2:$Q$1000=Costs!N$617)*('Fixed assets'!$P$2:$P$1000=Costs!$A626)*('Fixed assets'!$U$2:$U$1000=Costs!$A626)*('Fixed assets'!$R$2:$R$1000))","v":0},{"$f":"SUMPRODUCT(('Fixed assets'!$R$2:$R$1000)*('Fixed assets'!$P$2:$P$1000<$A626)*('Fixed assets'!$Q$2:$Q$1000=Costs!O$617))-SUMPRODUCT(('Fixed assets'!$S$2:$S$1000)*('Fixed assets'!$P$2:$P$1000<Costs!$A626)*('Fixed assets'!$Q$2:$Q$1000=Costs!O$617))-SUMPRODUCT(('Fixed assets'!$Q$2:$Q$1000=Costs!O$617)*('Fixed assets'!$U$2:$U$1000=Costs!$A626)*('Fixed assets'!$S$2:$S$1000))+SUMPRODUCT(('Fixed assets'!$Q$2:$Q$1000=Costs!O$617)*('Fixed assets'!$P$2:$P$1000=Costs!$A626)*('Fixed assets'!$U$2:$U$1000=Costs!$A626)*('Fixed assets'!$R$2:$R$1000))","v":0},{"$f":"SUMPRODUCT(('Fixed assets'!$R$2:$R$1000)*('Fixed assets'!$P$2:$P$1000<$A626)*('Fixed assets'!$Q$2:$Q$1000=Costs!P$617))-SUMPRODUCT(('Fixed assets'!$S$2:$S$1000)*('Fixed assets'!$P$2:$P$1000<Costs!$A626)*('Fixed assets'!$Q$2:$Q$1000=Costs!P$617))-SUMPRODUCT(('Fixed assets'!$Q$2:$Q$1000=Costs!P$617)*('Fixed assets'!$U$2:$U$1000=Costs!$A626)*('Fixed assets'!$S$2:$S$1000))+SUMPRODUCT(('Fixed assets'!$Q$2:$Q$1000=Costs!P$617)*('Fixed assets'!$P$2:$P$1000=Costs!$A626)*('Fixed assets'!$U$2:$U$1000=Costs!$A626)*('Fixed assets'!$R$2:$R$1000))","v":39000000},{"$f":"SUMPRODUCT(('Fixed assets'!$R$2:$R$1000)*('Fixed assets'!$P$2:$P$1000<$A626)*('Fixed assets'!$Q$2:$Q$1000=Costs!Q$617))-SUMPRODUCT(('Fixed assets'!$S$2:$S$1000)*('Fixed assets'!$P$2:$P$1000<Costs!$A626)*('Fixed assets'!$Q$2:$Q$1000=Costs!Q$617))-SUMPRODUCT(('Fixed assets'!$Q$2:$Q$1000=Costs!Q$617)*('Fixed assets'!$U$2:$U$1000=Costs!$A626)*('Fixed assets'!$S$2:$S$1000))+SUMPRODUCT(('Fixed assets'!$Q$2:$Q$1000=Costs!Q$617)*('Fixed assets'!$P$2:$P$1000=Costs!$A626)*('Fixed assets'!$U$2:$U$1000=Costs!$A626)*('Fixed assets'!$R$2:$R$1000))","v":0},{"$f":"SUMPRODUCT(('Fixed assets'!$R$2:$R$1000)*('Fixed assets'!$P$2:$P$1000<$A626)*('Fixed assets'!$Q$2:$Q$1000=Costs!R$617))-SUMPRODUCT(('Fixed assets'!$S$2:$S$1000)*('Fixed assets'!$P$2:$P$1000<Costs!$A626)*('Fixed assets'!$Q$2:$Q$1000=Costs!R$617))-SUMPRODUCT(('Fixed assets'!$Q$2:$Q$1000=Costs!R$617)*('Fixed assets'!$U$2:$U$1000=Costs!$A626)*('Fixed assets'!$S$2:$S$1000))+SUMPRODUCT(('Fixed assets'!$Q$2:$Q$1000=Costs!R$617)*('Fixed assets'!$P$2:$P$1000=Costs!$A626)*('Fixed assets'!$U$2:$U$1000=Costs!$A626)*('Fixed assets'!$R$2:$R$1000))","v":0},{"$f":"SUMPRODUCT(('Fixed assets'!$R$2:$R$1000)*('Fixed assets'!$P$2:$P$1000<$A626)*('Fixed assets'!$Q$2:$Q$1000=Costs!S$617))-SUMPRODUCT(('Fixed assets'!$S$2:$S$1000)*('Fixed assets'!$P$2:$P$1000<Costs!$A626)*('Fixed assets'!$Q$2:$Q$1000=Costs!S$617))-SUMPRODUCT(('Fixed assets'!$Q$2:$Q$1000=Costs!S$617)*('Fixed assets'!$U$2:$U$1000=Costs!$A626)*('Fixed assets'!$S$2:$S$1000))+SUMPRODUCT(('Fixed assets'!$Q$2:$Q$1000=Costs!S$617)*('Fixed assets'!$P$2:$P$1000=Costs!$A626)*('Fixed assets'!$U$2:$U$1000=Costs!$A626)*('Fixed assets'!$R$2:$R$1000))","v":0},{"$f":"SUMPRODUCT(('Fixed assets'!$R$2:$R$1000)*('Fixed assets'!$P$2:$P$1000<$A626)*('Fixed assets'!$Q$2:$Q$1000=Costs!T$617))-SUMPRODUCT(('Fixed assets'!$S$2:$S$1000)*('Fixed assets'!$P$2:$P$1000<Costs!$A626)*('Fixed assets'!$Q$2:$Q$1000=Costs!T$617))-SUMPRODUCT(('Fixed assets'!$Q$2:$Q$1000=Costs!T$617)*('Fixed assets'!$U$2:$U$1000=Costs!$A626)*('Fixed assets'!$S$2:$S$1000))+SUMPRODUCT(('Fixed assets'!$Q$2:$Q$1000=Costs!T$617)*('Fixed assets'!$P$2:$P$1000=Costs!$A626)*('Fixed assets'!$U$2:$U$1000=Costs!$A626)*('Fixed assets'!$R$2:$R$1000))","v":0},{"$f":"SUMPRODUCT(('Fixed assets'!$R$2:$R$1000)*('Fixed assets'!$P$2:$P$1000<$A626)*('Fixed assets'!$Q$2:$Q$1000=Costs!U$617))-SUMPRODUCT(('Fixed assets'!$S$2:$S$1000)*('Fixed assets'!$P$2:$P$1000<Costs!$A626)*('Fixed assets'!$Q$2:$Q$1000=Costs!U$617))-SUMPRODUCT(('Fixed assets'!$Q$2:$Q$1000=Costs!U$617)*('Fixed assets'!$U$2:$U$1000=Costs!$A626)*('Fixed assets'!$S$2:$S$1000))+SUMPRODUCT(('Fixed assets'!$Q$2:$Q$1000=Costs!U$617)*('Fixed assets'!$P$2:$P$1000=Costs!$A626)*('Fixed assets'!$U$2:$U$1000=Costs!$A626)*('Fixed assets'!$R$2:$R$1000))","v":0},{"$f":"SUMPRODUCT(('Fixed assets'!$R$2:$R$1000)*('Fixed assets'!$P$2:$P$1000<$A626)*('Fixed assets'!$Q$2:$Q$1000=Costs!V$617))-SUMPRODUCT(('Fixed assets'!$S$2:$S$1000)*('Fixed assets'!$P$2:$P$1000<Costs!$A626)*('Fixed assets'!$Q$2:$Q$1000=Costs!V$617))-SUMPRODUCT(('Fixed assets'!$Q$2:$Q$1000=Costs!V$617)*('Fixed assets'!$U$2:$U$1000=Costs!$A626)*('Fixed assets'!$S$2:$S$1000))+SUMPRODUCT(('Fixed assets'!$Q$2:$Q$1000=Costs!V$617)*('Fixed assets'!$P$2:$P$1000=Costs!$A626)*('Fixed assets'!$U$2:$U$1000=Costs!$A626)*('Fixed assets'!$R$2:$R$1000))","v":0},{"$f":"SUMPRODUCT(('Fixed assets'!$R$2:$R$1000)*('Fixed assets'!$P$2:$P$1000<$A626)*('Fixed assets'!$Q$2:$Q$1000=Costs!W$617))-SUMPRODUCT(('Fixed assets'!$S$2:$S$1000)*('Fixed assets'!$P$2:$P$1000<Costs!$A626)*('Fixed assets'!$Q$2:$Q$1000=Costs!W$617))-SUMPRODUCT(('Fixed assets'!$Q$2:$Q$1000=Costs!W$617)*('Fixed assets'!$U$2:$U$1000=Costs!$A626)*('Fixed assets'!$S$2:$S$1000))+SUMPRODUCT(('Fixed assets'!$Q$2:$Q$1000=Costs!W$617)*('Fixed assets'!$P$2:$P$1000=Costs!$A626)*('Fixed assets'!$U$2:$U$1000=Costs!$A626)*('Fixed assets'!$R$2:$R$1000))","v":0},{"$f":"SUMPRODUCT(('Fixed assets'!$R$2:$R$1000)*('Fixed assets'!$P$2:$P$1000<$A626)*('Fixed assets'!$Q$2:$Q$1000=Costs!X$617))-SUMPRODUCT(('Fixed assets'!$S$2:$S$1000)*('Fixed assets'!$P$2:$P$1000<Costs!$A626)*('Fixed assets'!$Q$2:$Q$1000=Costs!X$617))-SUMPRODUCT(('Fixed assets'!$Q$2:$Q$1000=Costs!X$617)*('Fixed assets'!$U$2:$U$1000=Costs!$A626)*('Fixed assets'!$S$2:$S$1000))+SUMPRODUCT(('Fixed assets'!$Q$2:$Q$1000=Costs!X$617)*('Fixed assets'!$P$2:$P$1000=Costs!$A626)*('Fixed assets'!$U$2:$U$1000=Costs!$A626)*('Fixed assets'!$R$2:$R$1000))","v":0},{"$f":"SUMPRODUCT(('Fixed assets'!$R$2:$R$1000)*('Fixed assets'!$P$2:$P$1000<$A626)*('Fixed assets'!$Q$2:$Q$1000=Costs!Y$617))-SUMPRODUCT(('Fixed assets'!$S$2:$S$1000)*('Fixed assets'!$P$2:$P$1000<Costs!$A626)*('Fixed assets'!$Q$2:$Q$1000=Costs!Y$617))-SUMPRODUCT(('Fixed assets'!$Q$2:$Q$1000=Costs!Y$617)*('Fixed assets'!$U$2:$U$1000=Costs!$A626)*('Fixed assets'!$S$2:$S$1000))+SUMPRODUCT(('Fixed assets'!$Q$2:$Q$1000=Costs!Y$617)*('Fixed assets'!$P$2:$P$1000=Costs!$A626)*('Fixed assets'!$U$2:$U$1000=Costs!$A626)*('Fixed assets'!$R$2:$R$1000))","v":0},{"$f":"SUMPRODUCT(('Fixed assets'!$R$2:$R$1000)*('Fixed assets'!$P$2:$P$1000<$A626)*('Fixed assets'!$Q$2:$Q$1000=Costs!Z$617))-SUMPRODUCT(('Fixed assets'!$S$2:$S$1000)*('Fixed assets'!$P$2:$P$1000<Costs!$A626)*('Fixed assets'!$Q$2:$Q$1000=Costs!Z$617))-SUMPRODUCT(('Fixed assets'!$Q$2:$Q$1000=Costs!Z$617)*('Fixed assets'!$U$2:$U$1000=Costs!$A626)*('Fixed assets'!$S$2:$S$1000))+SUMPRODUCT(('Fixed assets'!$Q$2:$Q$1000=Costs!Z$617)*('Fixed assets'!$P$2:$P$1000=Costs!$A626)*('Fixed assets'!$U$2:$U$1000=Costs!$A626)*('Fixed assets'!$R$2:$R$1000))","v":0},{"$f":"SUMPRODUCT(('Fixed assets'!$R$2:$R$1000)*('Fixed assets'!$P$2:$P$1000<$A626)*('Fixed assets'!$Q$2:$Q$1000=Costs!AA$617))-SUMPRODUCT(('Fixed assets'!$S$2:$S$1000)*('Fixed assets'!$P$2:$P$1000<Costs!$A626)*('Fixed assets'!$Q$2:$Q$1000=Costs!AA$617))-SUMPRODUCT(('Fixed assets'!$Q$2:$Q$1000=Costs!AA$617)*('Fixed assets'!$U$2:$U$1000=Costs!$A626)*('Fixed assets'!$S$2:$S$1000))+SUMPRODUCT(('Fixed assets'!$Q$2:$Q$1000=Costs!AA$617)*('Fixed assets'!$P$2:$P$1000=Costs!$A626)*('Fixed assets'!$U$2:$U$1000=Costs!$A626)*('Fixed assets'!$R$2:$R$1000))","v":0},{"$f":"SUMPRODUCT(('Fixed assets'!$R$2:$R$1000)*('Fixed assets'!$P$2:$P$1000<$A626)*('Fixed assets'!$Q$2:$Q$1000=Costs!AB$617))-SUMPRODUCT(('Fixed assets'!$S$2:$S$1000)*('Fixed assets'!$P$2:$P$1000<Costs!$A626)*('Fixed assets'!$Q$2:$Q$1000=Costs!AB$617))-SUMPRODUCT(('Fixed assets'!$Q$2:$Q$1000=Costs!AB$617)*('Fixed assets'!$U$2:$U$1000=Costs!$A626)*('Fixed assets'!$S$2:$S$1000))+SUMPRODUCT(('Fixed assets'!$Q$2:$Q$1000=Costs!AB$617)*('Fixed assets'!$P$2:$P$1000=Costs!$A626)*('Fixed assets'!$U$2:$U$1000=Costs!$A626)*('Fixed assets'!$R$2:$R$1000))","v":0},{"$f":"SUMPRODUCT(('Fixed assets'!$R$2:$R$1000)*('Fixed assets'!$P$2:$P$1000<$A626)*('Fixed assets'!$Q$2:$Q$1000=Costs!AC$617))-SUMPRODUCT(('Fixed assets'!$S$2:$S$1000)*('Fixed assets'!$P$2:$P$1000<Costs!$A626)*('Fixed assets'!$Q$2:$Q$1000=Costs!AC$617))-SUMPRODUCT(('Fixed assets'!$Q$2:$Q$1000=Costs!AC$617)*('Fixed assets'!$U$2:$U$1000=Costs!$A626)*('Fixed assets'!$S$2:$S$1000))+SUMPRODUCT(('Fixed assets'!$Q$2:$Q$1000=Costs!AC$617)*('Fixed assets'!$P$2:$P$1000=Costs!$A626)*('Fixed assets'!$U$2:$U$1000=Costs!$A626)*('Fixed assets'!$R$2:$R$1000))","v":0},{"$f":"SUMPRODUCT(('Fixed assets'!$R$2:$R$1000)*('Fixed assets'!$P$2:$P$1000<$A626)*('Fixed assets'!$Q$2:$Q$1000=Costs!AD$617))-SUMPRODUCT(('Fixed assets'!$S$2:$S$1000)*('Fixed assets'!$P$2:$P$1000<Costs!$A626)*('Fixed assets'!$Q$2:$Q$1000=Costs!AD$617))-SUMPRODUCT(('Fixed assets'!$Q$2:$Q$1000=Costs!AD$617)*('Fixed assets'!$U$2:$U$1000=Costs!$A626)*('Fixed assets'!$S$2:$S$1000))+SUMPRODUCT(('Fixed assets'!$Q$2:$Q$1000=Costs!AD$617)*('Fixed assets'!$P$2:$P$1000=Costs!$A626)*('Fixed assets'!$U$2:$U$1000=Costs!$A626)*('Fixed assets'!$R$2:$R$1000))","v":0},{"$f":"SUMPRODUCT(('Fixed assets'!$R$2:$R$1000)*('Fixed assets'!$P$2:$P$1000<$A626)*('Fixed assets'!$Q$2:$Q$1000=Costs!AE$617))-SUMPRODUCT(('Fixed assets'!$S$2:$S$1000)*('Fixed assets'!$P$2:$P$1000<Costs!$A626)*('Fixed assets'!$Q$2:$Q$1000=Costs!AE$617))-SUMPRODUCT(('Fixed assets'!$Q$2:$Q$1000=Costs!AE$617)*('Fixed assets'!$U$2:$U$1000=Costs!$A626)*('Fixed assets'!$S$2:$S$1000))+SUMPRODUCT(('Fixed assets'!$Q$2:$Q$1000=Costs!AE$617)*('Fixed assets'!$P$2:$P$1000=Costs!$A626)*('Fixed assets'!$U$2:$U$1000=Costs!$A626)*('Fixed assets'!$R$2:$R$1000))","v":0},{"$f":"SUMPRODUCT(('Fixed assets'!$R$2:$R$1000)*('Fixed assets'!$P$2:$P$1000<$A626)*('Fixed assets'!$Q$2:$Q$1000=Costs!AF$617))-SUMPRODUCT(('Fixed assets'!$S$2:$S$1000)*('Fixed assets'!$P$2:$P$1000<Costs!$A626)*('Fixed assets'!$Q$2:$Q$1000=Costs!AF$617))-SUMPRODUCT(('Fixed assets'!$Q$2:$Q$1000=Costs!AF$617)*('Fixed assets'!$U$2:$U$1000=Costs!$A626)*('Fixed assets'!$S$2:$S$1000))+SUMPRODUCT(('Fixed assets'!$Q$2:$Q$1000=Costs!AF$617)*('Fixed assets'!$P$2:$P$1000=Costs!$A626)*('Fixed assets'!$U$2:$U$1000=Costs!$A626)*('Fixed assets'!$R$2:$R$1000))","v":0},{"$f":"SUMPRODUCT(('Fixed assets'!$R$2:$R$1000)*('Fixed assets'!$P$2:$P$1000<$A626)*('Fixed assets'!$Q$2:$Q$1000=Costs!AG$617))-SUMPRODUCT(('Fixed assets'!$S$2:$S$1000)*('Fixed assets'!$P$2:$P$1000<Costs!$A626)*('Fixed assets'!$Q$2:$Q$1000=Costs!AG$617))-SUMPRODUCT(('Fixed assets'!$Q$2:$Q$1000=Costs!AG$617)*('Fixed assets'!$U$2:$U$1000=Costs!$A626)*('Fixed assets'!$S$2:$S$1000))+SUMPRODUCT(('Fixed assets'!$Q$2:$Q$1000=Costs!AG$617)*('Fixed assets'!$P$2:$P$1000=Costs!$A626)*('Fixed assets'!$U$2:$U$1000=Costs!$A626)*('Fixed assets'!$R$2:$R$1000))","v":0},{"$f":"SUMPRODUCT(('Fixed assets'!$R$2:$R$1000)*('Fixed assets'!$P$2:$P$1000<$A626)*('Fixed assets'!$Q$2:$Q$1000=Costs!AH$617))-SUMPRODUCT(('Fixed assets'!$S$2:$S$1000)*('Fixed assets'!$P$2:$P$1000<Costs!$A626)*('Fixed assets'!$Q$2:$Q$1000=Costs!AH$617))-SUMPRODUCT(('Fixed assets'!$Q$2:$Q$1000=Costs!AH$617)*('Fixed assets'!$U$2:$U$1000=Costs!$A626)*('Fixed assets'!$S$2:$S$1000))+SUMPRODUCT(('Fixed assets'!$Q$2:$Q$1000=Costs!AH$617)*('Fixed assets'!$P$2:$P$1000=Costs!$A626)*('Fixed assets'!$U$2:$U$1000=Costs!$A626)*('Fixed assets'!$R$2:$R$1000))","v":0},{"$f":"SUMPRODUCT(('Fixed assets'!$R$2:$R$1000)*('Fixed assets'!$P$2:$P$1000<$A626)*('Fixed assets'!$Q$2:$Q$1000=Costs!AI$617))-SUMPRODUCT(('Fixed assets'!$S$2:$S$1000)*('Fixed assets'!$P$2:$P$1000<Costs!$A626)*('Fixed assets'!$Q$2:$Q$1000=Costs!AI$617))-SUMPRODUCT(('Fixed assets'!$Q$2:$Q$1000=Costs!AI$617)*('Fixed assets'!$U$2:$U$1000=Costs!$A626)*('Fixed assets'!$S$2:$S$1000))+SUMPRODUCT(('Fixed assets'!$Q$2:$Q$1000=Costs!AI$617)*('Fixed assets'!$P$2:$P$1000=Costs!$A626)*('Fixed assets'!$U$2:$U$1000=Costs!$A626)*('Fixed assets'!$R$2:$R$1000))","v":0},{"$f":"SUMPRODUCT(('Fixed assets'!$R$2:$R$1000)*('Fixed assets'!$P$2:$P$1000<$A626)*('Fixed assets'!$Q$2:$Q$1000=Costs!AJ$617))-SUMPRODUCT(('Fixed assets'!$S$2:$S$1000)*('Fixed assets'!$P$2:$P$1000<Costs!$A626)*('Fixed assets'!$Q$2:$Q$1000=Costs!AJ$617))-SUMPRODUCT(('Fixed assets'!$Q$2:$Q$1000=Costs!AJ$617)*('Fixed assets'!$U$2:$U$1000=Costs!$A626)*('Fixed assets'!$S$2:$S$1000))+SUMPRODUCT(('Fixed assets'!$Q$2:$Q$1000=Costs!AJ$617)*('Fixed assets'!$P$2:$P$1000=Costs!$A626)*('Fixed assets'!$U$2:$U$1000=Costs!$A626)*('Fixed assets'!$R$2:$R$1000))","v":0},{"$f":"SUMPRODUCT(('Fixed assets'!$R$2:$R$1000)*('Fixed assets'!$P$2:$P$1000<$A626)*('Fixed assets'!$Q$2:$Q$1000=Costs!AK$617))-SUMPRODUCT(('Fixed assets'!$S$2:$S$1000)*('Fixed assets'!$P$2:$P$1000<Costs!$A626)*('Fixed assets'!$Q$2:$Q$1000=Costs!AK$617))-SUMPRODUCT(('Fixed assets'!$Q$2:$Q$1000=Costs!AK$617)*('Fixed assets'!$U$2:$U$1000=Costs!$A626)*('Fixed assets'!$S$2:$S$1000))+SUMPRODUCT(('Fixed assets'!$Q$2:$Q$1000=Costs!AK$617)*('Fixed assets'!$P$2:$P$1000=Costs!$A626)*('Fixed assets'!$U$2:$U$1000=Costs!$A626)*('Fixed assets'!$R$2:$R$1000))","v":0},{"$f":"SUMPRODUCT(('Fixed assets'!$R$2:$R$1000)*('Fixed assets'!$P$2:$P$1000<$A626)*('Fixed assets'!$Q$2:$Q$1000=Costs!AL$617))-SUMPRODUCT(('Fixed assets'!$S$2:$S$1000)*('Fixed assets'!$P$2:$P$1000<Costs!$A626)*('Fixed assets'!$Q$2:$Q$1000=Costs!AL$617))-SUMPRODUCT(('Fixed assets'!$Q$2:$Q$1000=Costs!AL$617)*('Fixed assets'!$U$2:$U$1000=Costs!$A626)*('Fixed assets'!$S$2:$S$1000))+SUMPRODUCT(('Fixed assets'!$Q$2:$Q$1000=Costs!AL$617)*('Fixed assets'!$P$2:$P$1000=Costs!$A626)*('Fixed assets'!$U$2:$U$1000=Costs!$A626)*('Fixed assets'!$R$2:$R$1000))","v":0},{"$f":"SUMPRODUCT(('Fixed assets'!$R$2:$R$1000)*('Fixed assets'!$P$2:$P$1000<$A626)*('Fixed assets'!$Q$2:$Q$1000=Costs!AM$617))-SUMPRODUCT(('Fixed assets'!$S$2:$S$1000)*('Fixed assets'!$P$2:$P$1000<Costs!$A626)*('Fixed assets'!$Q$2:$Q$1000=Costs!AM$617))-SUMPRODUCT(('Fixed assets'!$Q$2:$Q$1000=Costs!AM$617)*('Fixed assets'!$U$2:$U$1000=Costs!$A626)*('Fixed assets'!$S$2:$S$1000))+SUMPRODUCT(('Fixed assets'!$Q$2:$Q$1000=Costs!AM$617)*('Fixed assets'!$P$2:$P$1000=Costs!$A626)*('Fixed assets'!$U$2:$U$1000=Costs!$A626)*('Fixed assets'!$R$2:$R$1000))","v":0},{"$f":"SUMPRODUCT(('Fixed assets'!$R$2:$R$1000)*('Fixed assets'!$P$2:$P$1000<$A626)*('Fixed assets'!$Q$2:$Q$1000=Costs!AN$617))-SUMPRODUCT(('Fixed assets'!$S$2:$S$1000)*('Fixed assets'!$P$2:$P$1000<Costs!$A626)*('Fixed assets'!$Q$2:$Q$1000=Costs!AN$617))-SUMPRODUCT(('Fixed assets'!$Q$2:$Q$1000=Costs!AN$617)*('Fixed assets'!$U$2:$U$1000=Costs!$A626)*('Fixed assets'!$S$2:$S$1000))+SUMPRODUCT(('Fixed assets'!$Q$2:$Q$1000=Costs!AN$617)*('Fixed assets'!$P$2:$P$1000=Costs!$A626)*('Fixed assets'!$U$2:$U$1000=Costs!$A626)*('Fixed assets'!$R$2:$R$1000))","v":0},{"$f":"SUMPRODUCT(('Fixed assets'!$R$2:$R$1000)*('Fixed assets'!$P$2:$P$1000<$A626)*('Fixed assets'!$Q$2:$Q$1000=Costs!AO$617))-SUMPRODUCT(('Fixed assets'!$S$2:$S$1000)*('Fixed assets'!$P$2:$P$1000<Costs!$A626)*('Fixed assets'!$Q$2:$Q$1000=Costs!AO$617))-SUMPRODUCT(('Fixed assets'!$Q$2:$Q$1000=Costs!AO$617)*('Fixed assets'!$U$2:$U$1000=Costs!$A626)*('Fixed assets'!$S$2:$S$1000))+SUMPRODUCT(('Fixed assets'!$Q$2:$Q$1000=Costs!AO$617)*('Fixed assets'!$P$2:$P$1000=Costs!$A626)*('Fixed assets'!$U$2:$U$1000=Costs!$A626)*('Fixed assets'!$R$2:$R$1000))","v":0},{"$f":"SUMPRODUCT(('Fixed assets'!$R$2:$R$1000)*('Fixed assets'!$P$2:$P$1000<$A626)*('Fixed assets'!$Q$2:$Q$1000=Costs!AP$617))-SUMPRODUCT(('Fixed assets'!$S$2:$S$1000)*('Fixed assets'!$P$2:$P$1000<Costs!$A626)*('Fixed assets'!$Q$2:$Q$1000=Costs!AP$617))-SUMPRODUCT(('Fixed assets'!$Q$2:$Q$1000=Costs!AP$617)*('Fixed assets'!$U$2:$U$1000=Costs!$A626)*('Fixed assets'!$S$2:$S$1000))+SUMPRODUCT(('Fixed assets'!$Q$2:$Q$1000=Costs!AP$617)*('Fixed assets'!$P$2:$P$1000=Costs!$A626)*('Fixed assets'!$U$2:$U$1000=Costs!$A626)*('Fixed assets'!$R$2:$R$1000))","v":0},{"$f":"SUMPRODUCT(('Fixed assets'!$R$2:$R$1000)*('Fixed assets'!$P$2:$P$1000<$A626)*('Fixed assets'!$Q$2:$Q$1000=Costs!AQ$617))-SUMPRODUCT(('Fixed assets'!$S$2:$S$1000)*('Fixed assets'!$P$2:$P$1000<Costs!$A626)*('Fixed assets'!$Q$2:$Q$1000=Costs!AQ$617))-SUMPRODUCT(('Fixed assets'!$Q$2:$Q$1000=Costs!AQ$617)*('Fixed assets'!$U$2:$U$1000=Costs!$A626)*('Fixed assets'!$S$2:$S$1000))+SUMPRODUCT(('Fixed assets'!$Q$2:$Q$1000=Costs!AQ$617)*('Fixed assets'!$P$2:$P$1000=Costs!$A626)*('Fixed assets'!$U$2:$U$1000=Costs!$A626)*('Fixed assets'!$R$2:$R$1000))","v":0}]
[2024,90000000,{"$f":"SUMPRODUCT(('Fixed assets'!$R$2:$R$1000)*('Fixed assets'!$P$2:$P$1000<$A627)*('Fixed assets'!$Q$2:$Q$1000=Costs!C$617))-SUMPRODUCT(('Fixed assets'!$S$2:$S$1000)*('Fixed assets'!$P$2:$P$1000<Costs!$A627)*('Fixed assets'!$Q$2:$Q$1000=Costs!C$617))-SUMPRODUCT(('Fixed assets'!$Q$2:$Q$1000=Costs!C$617)*('Fixed assets'!$U$2:$U$1000=Costs!$A627)*('Fixed assets'!$S$2:$S$1000))+SUMPRODUCT(('Fixed assets'!$Q$2:$Q$1000=Costs!C$617)*('Fixed assets'!$P$2:$P$1000=Costs!$A627)*('Fixed assets'!$U$2:$U$1000=Costs!$A627)*('Fixed assets'!$R$2:$R$1000))","v":0},{"$f":"SUMPRODUCT(('Fixed assets'!$R$2:$R$1000)*('Fixed assets'!$P$2:$P$1000<$A627)*('Fixed assets'!$Q$2:$Q$1000=Costs!D$617))-SUMPRODUCT(('Fixed assets'!$S$2:$S$1000)*('Fixed assets'!$P$2:$P$1000<Costs!$A627)*('Fixed assets'!$Q$2:$Q$1000=Costs!D$617))-SUMPRODUCT(('Fixed assets'!$Q$2:$Q$1000=Costs!D$617)*('Fixed assets'!$U$2:$U$1000=Costs!$A627)*('Fixed assets'!$S$2:$S$1000))+SUMPRODUCT(('Fixed assets'!$Q$2:$Q$1000=Costs!D$617)*('Fixed assets'!$P$2:$P$1000=Costs!$A627)*('Fixed assets'!$U$2:$U$1000=Costs!$A627)*('Fixed assets'!$R$2:$R$1000))","v":0},{"$f":"SUMPRODUCT(('Fixed assets'!$R$2:$R$1000)*('Fixed assets'!$P$2:$P$1000<$A627)*('Fixed assets'!$Q$2:$Q$1000=Costs!E$617))-SUMPRODUCT(('Fixed assets'!$S$2:$S$1000)*('Fixed assets'!$P$2:$P$1000<Costs!$A627)*('Fixed assets'!$Q$2:$Q$1000=Costs!E$617))-SUMPRODUCT(('Fixed assets'!$Q$2:$Q$1000=Costs!E$617)*('Fixed assets'!$U$2:$U$1000=Costs!$A627)*('Fixed assets'!$S$2:$S$1000))+SUMPRODUCT(('Fixed assets'!$Q$2:$Q$1000=Costs!E$617)*('Fixed assets'!$P$2:$P$1000=Costs!$A627)*('Fixed assets'!$U$2:$U$1000=Costs!$A627)*('Fixed assets'!$R$2:$R$1000))","v":0},{"$f":"SUMPRODUCT(('Fixed assets'!$R$2:$R$1000)*('Fixed assets'!$P$2:$P$1000<$A627)*('Fixed assets'!$Q$2:$Q$1000=Costs!F$617))-SUMPRODUCT(('Fixed assets'!$S$2:$S$1000)*('Fixed assets'!$P$2:$P$1000<Costs!$A627)*('Fixed assets'!$Q$2:$Q$1000=Costs!F$617))-SUMPRODUCT(('Fixed assets'!$Q$2:$Q$1000=Costs!F$617)*('Fixed assets'!$U$2:$U$1000=Costs!$A627)*('Fixed assets'!$S$2:$S$1000))+SUMPRODUCT(('Fixed assets'!$Q$2:$Q$1000=Costs!F$617)*('Fixed assets'!$P$2:$P$1000=Costs!$A627)*('Fixed assets'!$U$2:$U$1000=Costs!$A627)*('Fixed assets'!$R$2:$R$1000))","v":0},{"$f":"SUMPRODUCT(('Fixed assets'!$R$2:$R$1000)*('Fixed assets'!$P$2:$P$1000<$A627)*('Fixed assets'!$Q$2:$Q$1000=Costs!G$617))-SUMPRODUCT(('Fixed assets'!$S$2:$S$1000)*('Fixed assets'!$P$2:$P$1000<Costs!$A627)*('Fixed assets'!$Q$2:$Q$1000=Costs!G$617))-SUMPRODUCT(('Fixed assets'!$Q$2:$Q$1000=Costs!G$617)*('Fixed assets'!$U$2:$U$1000=Costs!$A627)*('Fixed assets'!$S$2:$S$1000))+SUMPRODUCT(('Fixed assets'!$Q$2:$Q$1000=Costs!G$617)*('Fixed assets'!$P$2:$P$1000=Costs!$A627)*('Fixed assets'!$U$2:$U$1000=Costs!$A627)*('Fixed assets'!$R$2:$R$1000))","v":0},{"$f":"SUMPRODUCT(('Fixed assets'!$R$2:$R$1000)*('Fixed assets'!$P$2:$P$1000<$A627)*('Fixed assets'!$Q$2:$Q$1000=Costs!H$617))-SUMPRODUCT(('Fixed assets'!$S$2:$S$1000)*('Fixed assets'!$P$2:$P$1000<Costs!$A627)*('Fixed assets'!$Q$2:$Q$1000=Costs!H$617))-SUMPRODUCT(('Fixed assets'!$Q$2:$Q$1000=Costs!H$617)*('Fixed assets'!$U$2:$U$1000=Costs!$A627)*('Fixed assets'!$S$2:$S$1000))+SUMPRODUCT(('Fixed assets'!$Q$2:$Q$1000=Costs!H$617)*('Fixed assets'!$P$2:$P$1000=Costs!$A627)*('Fixed assets'!$U$2:$U$1000=Costs!$A627)*('Fixed assets'!$R$2:$R$1000))","v":0},{"$f":"SUMPRODUCT(('Fixed assets'!$R$2:$R$1000)*('Fixed assets'!$P$2:$P$1000<$A627)*('Fixed assets'!$Q$2:$Q$1000=Costs!I$617))-SUMPRODUCT(('Fixed assets'!$S$2:$S$1000)*('Fixed assets'!$P$2:$P$1000<Costs!$A627)*('Fixed assets'!$Q$2:$Q$1000=Costs!I$617))-SUMPRODUCT(('Fixed assets'!$Q$2:$Q$1000=Costs!I$617)*('Fixed assets'!$U$2:$U$1000=Costs!$A627)*('Fixed assets'!$S$2:$S$1000))+SUMPRODUCT(('Fixed assets'!$Q$2:$Q$1000=Costs!I$617)*('Fixed assets'!$P$2:$P$1000=Costs!$A627)*('Fixed assets'!$U$2:$U$1000=Costs!$A627)*('Fixed assets'!$R$2:$R$1000))","v":0},{"$f":"SUMPRODUCT(('Fixed assets'!$R$2:$R$1000)*('Fixed assets'!$P$2:$P$1000<$A627)*('Fixed assets'!$Q$2:$Q$1000=Costs!J$617))-SUMPRODUCT(('Fixed assets'!$S$2:$S$1000)*('Fixed assets'!$P$2:$P$1000<Costs!$A627)*('Fixed assets'!$Q$2:$Q$1000=Costs!J$617))-SUMPRODUCT(('Fixed assets'!$Q$2:$Q$1000=Costs!J$617)*('Fixed assets'!$U$2:$U$1000=Costs!$A627)*('Fixed assets'!$S$2:$S$1000))+SUMPRODUCT(('Fixed assets'!$Q$2:$Q$1000=Costs!J$617)*('Fixed assets'!$P$2:$P$1000=Costs!$A627)*('Fixed assets'!$U$2:$U$1000=Costs!$A627)*('Fixed assets'!$R$2:$R$1000))","v":0},{"$f":"SUMPRODUCT(('Fixed assets'!$R$2:$R$1000)*('Fixed assets'!$P$2:$P$1000<$A627)*('Fixed assets'!$Q$2:$Q$1000=Costs!K$617))-SUMPRODUCT(('Fixed assets'!$S$2:$S$1000)*('Fixed assets'!$P$2:$P$1000<Costs!$A627)*('Fixed assets'!$Q$2:$Q$1000=Costs!K$617))-SUMPRODUCT(('Fixed assets'!$Q$2:$Q$1000=Costs!K$617)*('Fixed assets'!$U$2:$U$1000=Costs!$A627)*('Fixed assets'!$S$2:$S$1000))+SUMPRODUCT(('Fixed assets'!$Q$2:$Q$1000=Costs!K$617)*('Fixed assets'!$P$2:$P$1000=Costs!$A627)*('Fixed assets'!$U$2:$U$1000=Costs!$A627)*('Fixed assets'!$R$2:$R$1000))","v":0},{"$f":"SUMPRODUCT(('Fixed assets'!$R$2:$R$1000)*('Fixed assets'!$P$2:$P$1000<$A627)*('Fixed assets'!$Q$2:$Q$1000=Costs!L$617))-SUMPRODUCT(('Fixed assets'!$S$2:$S$1000)*('Fixed assets'!$P$2:$P$1000<Costs!$A627)*('Fixed assets'!$Q$2:$Q$1000=Costs!L$617))-SUMPRODUCT(('Fixed assets'!$Q$2:$Q$1000=Costs!L$617)*('Fixed assets'!$U$2:$U$1000=Costs!$A627)*('Fixed assets'!$S$2:$S$1000))+SUMPRODUCT(('Fixed assets'!$Q$2:$Q$1000=Costs!L$617)*('Fixed assets'!$P$2:$P$1000=Costs!$A627)*('Fixed assets'!$U$2:$U$1000=Costs!$A627)*('Fixed assets'!$R$2:$R$1000))","v":0},{"$f":"SUMPRODUCT(('Fixed assets'!$R$2:$R$1000)*('Fixed assets'!$P$2:$P$1000<$A627)*('Fixed assets'!$Q$2:$Q$1000=Costs!M$617))-SUMPRODUCT(('Fixed assets'!$S$2:$S$1000)*('Fixed assets'!$P$2:$P$1000<Costs!$A627)*('Fixed assets'!$Q$2:$Q$1000=Costs!M$617))-SUMPRODUCT(('Fixed assets'!$Q$2:$Q$1000=Costs!M$617)*('Fixed assets'!$U$2:$U$1000=Costs!$A627)*('Fixed assets'!$S$2:$S$1000))+SUMPRODUCT(('Fixed assets'!$Q$2:$Q$1000=Costs!M$617)*('Fixed assets'!$P$2:$P$1000=Costs!$A627)*('Fixed assets'!$U$2:$U$1000=Costs!$A627)*('Fixed assets'!$R$2:$R$1000))","v":0},{"$f":"SUMPRODUCT(('Fixed assets'!$R$2:$R$1000)*('Fixed assets'!$P$2:$P$1000<$A627)*('Fixed assets'!$Q$2:$Q$1000=Costs!N$617))-SUMPRODUCT(('Fixed assets'!$S$2:$S$1000)*('Fixed assets'!$P$2:$P$1000<Costs!$A627)*('Fixed assets'!$Q$2:$Q$1000=Costs!N$617))-SUMPRODUCT(('Fixed assets'!$Q$2:$Q$1000=Costs!N$617)*('Fixed assets'!$U$2:$U$1000=Costs!$A627)*('Fixed assets'!$S$2:$S$1000))+SUMPRODUCT(('Fixed assets'!$Q$2:$Q$1000=Costs!N$617)*('Fixed assets'!$P$2:$P$1000=Costs!$A627)*('Fixed assets'!$U$2:$U$1000=Costs!$A627)*('Fixed assets'!$R$2:$R$1000))","v":0},{"$f":"SUMPRODUCT(('Fixed assets'!$R$2:$R$1000)*('Fixed assets'!$P$2:$P$1000<$A627)*('Fixed assets'!$Q$2:$Q$1000=Costs!O$617))-SUMPRODUCT(('Fixed assets'!$S$2:$S$1000)*('Fixed assets'!$P$2:$P$1000<Costs!$A627)*('Fixed assets'!$Q$2:$Q$1000=Costs!O$617))-SUMPRODUCT(('Fixed assets'!$Q$2:$Q$1000=Costs!O$617)*('Fixed assets'!$U$2:$U$1000=Costs!$A627)*('Fixed assets'!$S$2:$S$1000))+SUMPRODUCT(('Fixed assets'!$Q$2:$Q$1000=Costs!O$617)*('Fixed assets'!$P$2:$P$1000=Costs!$A627)*('Fixed assets'!$U$2:$U$1000=Costs!$A627)*('Fixed assets'!$R$2:$R$1000))","v":0},{"$f":"SUMPRODUCT(('Fixed assets'!$R$2:$R$1000)*('Fixed assets'!$P$2:$P$1000<$A627)*('Fixed assets'!$Q$2:$Q$1000=Costs!P$617))-SUMPRODUCT(('Fixed assets'!$S$2:$S$1000)*('Fixed assets'!$P$2:$P$1000<Costs!$A627)*('Fixed assets'!$Q$2:$Q$1000=Costs!P$617))-SUMPRODUCT(('Fixed assets'!$Q$2:$Q$1000=Costs!P$617)*('Fixed assets'!$U$2:$U$1000=Costs!$A627)*('Fixed assets'!$S$2:$S$1000))+SUMPRODUCT(('Fixed assets'!$Q$2:$Q$1000=Costs!P$617)*('Fixed assets'!$P$2:$P$1000=Costs!$A627)*('Fixed assets'!$U$2:$U$1000=Costs!$A627)*('Fixed assets'!$R$2:$R$1000))","v":90000000},{"$f":"SUMPRODUCT(('Fixed assets'!$R$2:$R$1000)*('Fixed assets'!$P$2:$P$1000<$A627)*('Fixed assets'!$Q$2:$Q$1000=Costs!Q$617))-SUMPRODUCT(('Fixed assets'!$S$2:$S$1000)*('Fixed assets'!$P$2:$P$1000<Costs!$A627)*('Fixed assets'!$Q$2:$Q$1000=Costs!Q$617))-SUMPRODUCT(('Fixed assets'!$Q$2:$Q$1000=Costs!Q$617)*('Fixed assets'!$U$2:$U$1000=Costs!$A627)*('Fixed assets'!$S$2:$S$1000))+SUMPRODUCT(('Fixed assets'!$Q$2:$Q$1000=Costs!Q$617)*('Fixed assets'!$P$2:$P$1000=Costs!$A627)*('Fixed assets'!$U$2:$U$1000=Costs!$A627)*('Fixed assets'!$R$2:$R$1000))","v":0},{"$f":"SUMPRODUCT(('Fixed assets'!$R$2:$R$1000)*('Fixed assets'!$P$2:$P$1000<$A627)*('Fixed assets'!$Q$2:$Q$1000=Costs!R$617))-SUMPRODUCT(('Fixed assets'!$S$2:$S$1000)*('Fixed assets'!$P$2:$P$1000<Costs!$A627)*('Fixed assets'!$Q$2:$Q$1000=Costs!R$617))-SUMPRODUCT(('Fixed assets'!$Q$2:$Q$1000=Costs!R$617)*('Fixed assets'!$U$2:$U$1000=Costs!$A627)*('Fixed assets'!$S$2:$S$1000))+SUMPRODUCT(('Fixed assets'!$Q$2:$Q$1000=Costs!R$617)*('Fixed assets'!$P$2:$P$1000=Costs!$A627)*('Fixed assets'!$U$2:$U$1000=Costs!$A627)*('Fixed assets'!$R$2:$R$1000))","v":0},{"$f":"SUMPRODUCT(('Fixed assets'!$R$2:$R$1000)*('Fixed assets'!$P$2:$P$1000<$A627)*('Fixed assets'!$Q$2:$Q$1000=Costs!S$617))-SUMPRODUCT(('Fixed assets'!$S$2:$S$1000)*('Fixed assets'!$P$2:$P$1000<Costs!$A627)*('Fixed assets'!$Q$2:$Q$1000=Costs!S$617))-SUMPRODUCT(('Fixed assets'!$Q$2:$Q$1000=Costs!S$617)*('Fixed assets'!$U$2:$U$1000=Costs!$A627)*('Fixed assets'!$S$2:$S$1000))+SUMPRODUCT(('Fixed assets'!$Q$2:$Q$1000=Costs!S$617)*('Fixed assets'!$P$2:$P$1000=Costs!$A627)*('Fixed assets'!$U$2:$U$1000=Costs!$A627)*('Fixed assets'!$R$2:$R$1000))","v":0},{"$f":"SUMPRODUCT(('Fixed assets'!$R$2:$R$1000)*('Fixed assets'!$P$2:$P$1000<$A627)*('Fixed assets'!$Q$2:$Q$1000=Costs!T$617))-SUMPRODUCT(('Fixed assets'!$S$2:$S$1000)*('Fixed assets'!$P$2:$P$1000<Costs!$A627)*('Fixed assets'!$Q$2:$Q$1000=Costs!T$617))-SUMPRODUCT(('Fixed assets'!$Q$2:$Q$1000=Costs!T$617)*('Fixed assets'!$U$2:$U$1000=Costs!$A627)*('Fixed assets'!$S$2:$S$1000))+SUMPRODUCT(('Fixed assets'!$Q$2:$Q$1000=Costs!T$617)*('Fixed assets'!$P$2:$P$1000=Costs!$A627)*('Fixed assets'!$U$2:$U$1000=Costs!$A627)*('Fixed assets'!$R$2:$R$1000))","v":0},{"$f":"SUMPRODUCT(('Fixed assets'!$R$2:$R$1000)*('Fixed assets'!$P$2:$P$1000<$A627)*('Fixed assets'!$Q$2:$Q$1000=Costs!U$617))-SUMPRODUCT(('Fixed assets'!$S$2:$S$1000)*('Fixed assets'!$P$2:$P$1000<Costs!$A627)*('Fixed assets'!$Q$2:$Q$1000=Costs!U$617))-SUMPRODUCT(('Fixed assets'!$Q$2:$Q$1000=Costs!U$617)*('Fixed assets'!$U$2:$U$1000=Costs!$A627)*('Fixed assets'!$S$2:$S$1000))+SUMPRODUCT(('Fixed assets'!$Q$2:$Q$1000=Costs!U$617)*('Fixed assets'!$P$2:$P$1000=Costs!$A627)*('Fixed assets'!$U$2:$U$1000=Costs!$A627)*('Fixed assets'!$R$2:$R$1000))","v":0},{"$f":"SUMPRODUCT(('Fixed assets'!$R$2:$R$1000)*('Fixed assets'!$P$2:$P$1000<$A627)*('Fixed assets'!$Q$2:$Q$1000=Costs!V$617))-SUMPRODUCT(('Fixed assets'!$S$2:$S$1000)*('Fixed assets'!$P$2:$P$1000<Costs!$A627)*('Fixed assets'!$Q$2:$Q$1000=Costs!V$617))-SUMPRODUCT(('Fixed assets'!$Q$2:$Q$1000=Costs!V$617)*('Fixed assets'!$U$2:$U$1000=Costs!$A627)*('Fixed assets'!$S$2:$S$1000))+SUMPRODUCT(('Fixed assets'!$Q$2:$Q$1000=Costs!V$617)*('Fixed assets'!$P$2:$P$1000=Costs!$A627)*('Fixed assets'!$U$2:$U$1000=Costs!$A627)*('Fixed assets'!$R$2:$R$1000))","v":0},{"$f":"SUMPRODUCT(('Fixed assets'!$R$2:$R$1000)*('Fixed assets'!$P$2:$P$1000<$A627)*('Fixed assets'!$Q$2:$Q$1000=Costs!W$617))-SUMPRODUCT(('Fixed assets'!$S$2:$S$1000)*('Fixed assets'!$P$2:$P$1000<Costs!$A627)*('Fixed assets'!$Q$2:$Q$1000=Costs!W$617))-SUMPRODUCT(('Fixed assets'!$Q$2:$Q$1000=Costs!W$617)*('Fixed assets'!$U$2:$U$1000=Costs!$A627)*('Fixed assets'!$S$2:$S$1000))+SUMPRODUCT(('Fixed assets'!$Q$2:$Q$1000=Costs!W$617)*('Fixed assets'!$P$2:$P$1000=Costs!$A627)*('Fixed assets'!$U$2:$U$1000=Costs!$A627)*('Fixed assets'!$R$2:$R$1000))","v":0},{"$f":"SUMPRODUCT(('Fixed assets'!$R$2:$R$1000)*('Fixed assets'!$P$2:$P$1000<$A627)*('Fixed assets'!$Q$2:$Q$1000=Costs!X$617))-SUMPRODUCT(('Fixed assets'!$S$2:$S$1000)*('Fixed assets'!$P$2:$P$1000<Costs!$A627)*('Fixed assets'!$Q$2:$Q$1000=Costs!X$617))-SUMPRODUCT(('Fixed assets'!$Q$2:$Q$1000=Costs!X$617)*('Fixed assets'!$U$2:$U$1000=Costs!$A627)*('Fixed assets'!$S$2:$S$1000))+SUMPRODUCT(('Fixed assets'!$Q$2:$Q$1000=Costs!X$617)*('Fixed assets'!$P$2:$P$1000=Costs!$A627)*('Fixed assets'!$U$2:$U$1000=Costs!$A627)*('Fixed assets'!$R$2:$R$1000))","v":0},{"$f":"SUMPRODUCT(('Fixed assets'!$R$2:$R$1000)*('Fixed assets'!$P$2:$P$1000<$A627)*('Fixed assets'!$Q$2:$Q$1000=Costs!Y$617))-SUMPRODUCT(('Fixed assets'!$S$2:$S$1000)*('Fixed assets'!$P$2:$P$1000<Costs!$A627)*('Fixed assets'!$Q$2:$Q$1000=Costs!Y$617))-SUMPRODUCT(('Fixed assets'!$Q$2:$Q$1000=Costs!Y$617)*('Fixed assets'!$U$2:$U$1000=Costs!$A627)*('Fixed assets'!$S$2:$S$1000))+SUMPRODUCT(('Fixed assets'!$Q$2:$Q$1000=Costs!Y$617)*('Fixed assets'!$P$2:$P$1000=Costs!$A627)*('Fixed assets'!$U$2:$U$1000=Costs!$A627)*('Fixed assets'!$R$2:$R$1000))","v":0},{"$f":"SUMPRODUCT(('Fixed assets'!$R$2:$R$1000)*('Fixed assets'!$P$2:$P$1000<$A627)*('Fixed assets'!$Q$2:$Q$1000=Costs!Z$617))-SUMPRODUCT(('Fixed assets'!$S$2:$S$1000)*('Fixed assets'!$P$2:$P$1000<Costs!$A627)*('Fixed assets'!$Q$2:$Q$1000=Costs!Z$617))-SUMPRODUCT(('Fixed assets'!$Q$2:$Q$1000=Costs!Z$617)*('Fixed assets'!$U$2:$U$1000=Costs!$A627)*('Fixed assets'!$S$2:$S$1000))+SUMPRODUCT(('Fixed assets'!$Q$2:$Q$1000=Costs!Z$617)*('Fixed assets'!$P$2:$P$1000=Costs!$A627)*('Fixed assets'!$U$2:$U$1000=Costs!$A627)*('Fixed assets'!$R$2:$R$1000))","v":0},{"$f":"SUMPRODUCT(('Fixed assets'!$R$2:$R$1000)*('Fixed assets'!$P$2:$P$1000<$A627)*('Fixed assets'!$Q$2:$Q$1000=Costs!AA$617))-SUMPRODUCT(('Fixed assets'!$S$2:$S$1000)*('Fixed assets'!$P$2:$P$1000<Costs!$A627)*('Fixed assets'!$Q$2:$Q$1000=Costs!AA$617))-SUMPRODUCT(('Fixed assets'!$Q$2:$Q$1000=Costs!AA$617)*('Fixed assets'!$U$2:$U$1000=Costs!$A627)*('Fixed assets'!$S$2:$S$1000))+SUMPRODUCT(('Fixed assets'!$Q$2:$Q$1000=Costs!AA$617)*('Fixed assets'!$P$2:$P$1000=Costs!$A627)*('Fixed assets'!$U$2:$U$1000=Costs!$A627)*('Fixed assets'!$R$2:$R$1000))","v":0},{"$f":"SUMPRODUCT(('Fixed assets'!$R$2:$R$1000)*('Fixed assets'!$P$2:$P$1000<$A627)*('Fixed assets'!$Q$2:$Q$1000=Costs!AB$617))-SUMPRODUCT(('Fixed assets'!$S$2:$S$1000)*('Fixed assets'!$P$2:$P$1000<Costs!$A627)*('Fixed assets'!$Q$2:$Q$1000=Costs!AB$617))-SUMPRODUCT(('Fixed assets'!$Q$2:$Q$1000=Costs!AB$617)*('Fixed assets'!$U$2:$U$1000=Costs!$A627)*('Fixed assets'!$S$2:$S$1000))+SUMPRODUCT(('Fixed assets'!$Q$2:$Q$1000=Costs!AB$617)*('Fixed assets'!$P$2:$P$1000=Costs!$A627)*('Fixed assets'!$U$2:$U$1000=Costs!$A627)*('Fixed assets'!$R$2:$R$1000))","v":0},{"$f":"SUMPRODUCT(('Fixed assets'!$R$2:$R$1000)*('Fixed assets'!$P$2:$P$1000<$A627)*('Fixed assets'!$Q$2:$Q$1000=Costs!AC$617))-SUMPRODUCT(('Fixed assets'!$S$2:$S$1000)*('Fixed assets'!$P$2:$P$1000<Costs!$A627)*('Fixed assets'!$Q$2:$Q$1000=Costs!AC$617))-SUMPRODUCT(('Fixed assets'!$Q$2:$Q$1000=Costs!AC$617)*('Fixed assets'!$U$2:$U$1000=Costs!$A627)*('Fixed assets'!$S$2:$S$1000))+SUMPRODUCT(('Fixed assets'!$Q$2:$Q$1000=Costs!AC$617)*('Fixed assets'!$P$2:$P$1000=Costs!$A627)*('Fixed assets'!$U$2:$U$1000=Costs!$A627)*('Fixed assets'!$R$2:$R$1000))","v":0},{"$f":"SUMPRODUCT(('Fixed assets'!$R$2:$R$1000)*('Fixed assets'!$P$2:$P$1000<$A627)*('Fixed assets'!$Q$2:$Q$1000=Costs!AD$617))-SUMPRODUCT(('Fixed assets'!$S$2:$S$1000)*('Fixed assets'!$P$2:$P$1000<Costs!$A627)*('Fixed assets'!$Q$2:$Q$1000=Costs!AD$617))-SUMPRODUCT(('Fixed assets'!$Q$2:$Q$1000=Costs!AD$617)*('Fixed assets'!$U$2:$U$1000=Costs!$A627)*('Fixed assets'!$S$2:$S$1000))+SUMPRODUCT(('Fixed assets'!$Q$2:$Q$1000=Costs!AD$617)*('Fixed assets'!$P$2:$P$1000=Costs!$A627)*('Fixed assets'!$U$2:$U$1000=Costs!$A627)*('Fixed assets'!$R$2:$R$1000))","v":0},{"$f":"SUMPRODUCT(('Fixed assets'!$R$2:$R$1000)*('Fixed assets'!$P$2:$P$1000<$A627)*('Fixed assets'!$Q$2:$Q$1000=Costs!AE$617))-SUMPRODUCT(('Fixed assets'!$S$2:$S$1000)*('Fixed assets'!$P$2:$P$1000<Costs!$A627)*('Fixed assets'!$Q$2:$Q$1000=Costs!AE$617))-SUMPRODUCT(('Fixed assets'!$Q$2:$Q$1000=Costs!AE$617)*('Fixed assets'!$U$2:$U$1000=Costs!$A627)*('Fixed assets'!$S$2:$S$1000))+SUMPRODUCT(('Fixed assets'!$Q$2:$Q$1000=Costs!AE$617)*('Fixed assets'!$P$2:$P$1000=Costs!$A627)*('Fixed assets'!$U$2:$U$1000=Costs!$A627)*('Fixed assets'!$R$2:$R$1000))","v":0},{"$f":"SUMPRODUCT(('Fixed assets'!$R$2:$R$1000)*('Fixed assets'!$P$2:$P$1000<$A627)*('Fixed assets'!$Q$2:$Q$1000=Costs!AF$617))-SUMPRODUCT(('Fixed assets'!$S$2:$S$1000)*('Fixed assets'!$P$2:$P$1000<Costs!$A627)*('Fixed assets'!$Q$2:$Q$1000=Costs!AF$617))-SUMPRODUCT(('Fixed assets'!$Q$2:$Q$1000=Costs!AF$617)*('Fixed assets'!$U$2:$U$1000=Costs!$A627)*('Fixed assets'!$S$2:$S$1000))+SUMPRODUCT(('Fixed assets'!$Q$2:$Q$1000=Costs!AF$617)*('Fixed assets'!$P$2:$P$1000=Costs!$A627)*('Fixed assets'!$U$2:$U$1000=Costs!$A627)*('Fixed assets'!$R$2:$R$1000))","v":0},{"$f":"SUMPRODUCT(('Fixed assets'!$R$2:$R$1000)*('Fixed assets'!$P$2:$P$1000<$A627)*('Fixed assets'!$Q$2:$Q$1000=Costs!AG$617))-SUMPRODUCT(('Fixed assets'!$S$2:$S$1000)*('Fixed assets'!$P$2:$P$1000<Costs!$A627)*('Fixed assets'!$Q$2:$Q$1000=Costs!AG$617))-SUMPRODUCT(('Fixed assets'!$Q$2:$Q$1000=Costs!AG$617)*('Fixed assets'!$U$2:$U$1000=Costs!$A627)*('Fixed assets'!$S$2:$S$1000))+SUMPRODUCT(('Fixed assets'!$Q$2:$Q$1000=Costs!AG$617)*('Fixed assets'!$P$2:$P$1000=Costs!$A627)*('Fixed assets'!$U$2:$U$1000=Costs!$A627)*('Fixed assets'!$R$2:$R$1000))","v":0},{"$f":"SUMPRODUCT(('Fixed assets'!$R$2:$R$1000)*('Fixed assets'!$P$2:$P$1000<$A627)*('Fixed assets'!$Q$2:$Q$1000=Costs!AH$617))-SUMPRODUCT(('Fixed assets'!$S$2:$S$1000)*('Fixed assets'!$P$2:$P$1000<Costs!$A627)*('Fixed assets'!$Q$2:$Q$1000=Costs!AH$617))-SUMPRODUCT(('Fixed assets'!$Q$2:$Q$1000=Costs!AH$617)*('Fixed assets'!$U$2:$U$1000=Costs!$A627)*('Fixed assets'!$S$2:$S$1000))+SUMPRODUCT(('Fixed assets'!$Q$2:$Q$1000=Costs!AH$617)*('Fixed assets'!$P$2:$P$1000=Costs!$A627)*('Fixed assets'!$U$2:$U$1000=Costs!$A627)*('Fixed assets'!$R$2:$R$1000))","v":0},{"$f":"SUMPRODUCT(('Fixed assets'!$R$2:$R$1000)*('Fixed assets'!$P$2:$P$1000<$A627)*('Fixed assets'!$Q$2:$Q$1000=Costs!AI$617))-SUMPRODUCT(('Fixed assets'!$S$2:$S$1000)*('Fixed assets'!$P$2:$P$1000<Costs!$A627)*('Fixed assets'!$Q$2:$Q$1000=Costs!AI$617))-SUMPRODUCT(('Fixed assets'!$Q$2:$Q$1000=Costs!AI$617)*('Fixed assets'!$U$2:$U$1000=Costs!$A627)*('Fixed assets'!$S$2:$S$1000))+SUMPRODUCT(('Fixed assets'!$Q$2:$Q$1000=Costs!AI$617)*('Fixed assets'!$P$2:$P$1000=Costs!$A627)*('Fixed assets'!$U$2:$U$1000=Costs!$A627)*('Fixed assets'!$R$2:$R$1000))","v":0},{"$f":"SUMPRODUCT(('Fixed assets'!$R$2:$R$1000)*('Fixed assets'!$P$2:$P$1000<$A627)*('Fixed assets'!$Q$2:$Q$1000=Costs!AJ$617))-SUMPRODUCT(('Fixed assets'!$S$2:$S$1000)*('Fixed assets'!$P$2:$P$1000<Costs!$A627)*('Fixed assets'!$Q$2:$Q$1000=Costs!AJ$617))-SUMPRODUCT(('Fixed assets'!$Q$2:$Q$1000=Costs!AJ$617)*('Fixed assets'!$U$2:$U$1000=Costs!$A627)*('Fixed assets'!$S$2:$S$1000))+SUMPRODUCT(('Fixed assets'!$Q$2:$Q$1000=Costs!AJ$617)*('Fixed assets'!$P$2:$P$1000=Costs!$A627)*('Fixed assets'!$U$2:$U$1000=Costs!$A627)*('Fixed assets'!$R$2:$R$1000))","v":0},{"$f":"SUMPRODUCT(('Fixed assets'!$R$2:$R$1000)*('Fixed assets'!$P$2:$P$1000<$A627)*('Fixed assets'!$Q$2:$Q$1000=Costs!AK$617))-SUMPRODUCT(('Fixed assets'!$S$2:$S$1000)*('Fixed assets'!$P$2:$P$1000<Costs!$A627)*('Fixed assets'!$Q$2:$Q$1000=Costs!AK$617))-SUMPRODUCT(('Fixed assets'!$Q$2:$Q$1000=Costs!AK$617)*('Fixed assets'!$U$2:$U$1000=Costs!$A627)*('Fixed assets'!$S$2:$S$1000))+SUMPRODUCT(('Fixed assets'!$Q$2:$Q$1000=Costs!AK$617)*('Fixed assets'!$P$2:$P$1000=Costs!$A627)*('Fixed assets'!$U$2:$U$1000=Costs!$A627)*('Fixed assets'!$R$2:$R$1000))","v":0},{"$f":"SUMPRODUCT(('Fixed assets'!$R$2:$R$1000)*('Fixed assets'!$P$2:$P$1000<$A627)*('Fixed assets'!$Q$2:$Q$1000=Costs!AL$617))-SUMPRODUCT(('Fixed assets'!$S$2:$S$1000)*('Fixed assets'!$P$2:$P$1000<Costs!$A627)*('Fixed assets'!$Q$2:$Q$1000=Costs!AL$617))-SUMPRODUCT(('Fixed assets'!$Q$2:$Q$1000=Costs!AL$617)*('Fixed assets'!$U$2:$U$1000=Costs!$A627)*('Fixed assets'!$S$2:$S$1000))+SUMPRODUCT(('Fixed assets'!$Q$2:$Q$1000=Costs!AL$617)*('Fixed assets'!$P$2:$P$1000=Costs!$A627)*('Fixed assets'!$U$2:$U$1000=Costs!$A627)*('Fixed assets'!$R$2:$R$1000))","v":0},{"$f":"SUMPRODUCT(('Fixed assets'!$R$2:$R$1000)*('Fixed assets'!$P$2:$P$1000<$A627)*('Fixed assets'!$Q$2:$Q$1000=Costs!AM$617))-SUMPRODUCT(('Fixed assets'!$S$2:$S$1000)*('Fixed assets'!$P$2:$P$1000<Costs!$A627)*('Fixed assets'!$Q$2:$Q$1000=Costs!AM$617))-SUMPRODUCT(('Fixed assets'!$Q$2:$Q$1000=Costs!AM$617)*('Fixed assets'!$U$2:$U$1000=Costs!$A627)*('Fixed assets'!$S$2:$S$1000))+SUMPRODUCT(('Fixed assets'!$Q$2:$Q$1000=Costs!AM$617)*('Fixed assets'!$P$2:$P$1000=Costs!$A627)*('Fixed assets'!$U$2:$U$1000=Costs!$A627)*('Fixed assets'!$R$2:$R$1000))","v":0},{"$f":"SUMPRODUCT(('Fixed assets'!$R$2:$R$1000)*('Fixed assets'!$P$2:$P$1000<$A627)*('Fixed assets'!$Q$2:$Q$1000=Costs!AN$617))-SUMPRODUCT(('Fixed assets'!$S$2:$S$1000)*('Fixed assets'!$P$2:$P$1000<Costs!$A627)*('Fixed assets'!$Q$2:$Q$1000=Costs!AN$617))-SUMPRODUCT(('Fixed assets'!$Q$2:$Q$1000=Costs!AN$617)*('Fixed assets'!$U$2:$U$1000=Costs!$A627)*('Fixed assets'!$S$2:$S$1000))+SUMPRODUCT(('Fixed assets'!$Q$2:$Q$1000=Costs!AN$617)*('Fixed assets'!$P$2:$P$1000=Costs!$A627)*('Fixed assets'!$U$2:$U$1000=Costs!$A627)*('Fixed assets'!$R$2:$R$1000))","v":0},{"$f":"SUMPRODUCT(('Fixed assets'!$R$2:$R$1000)*('Fixed assets'!$P$2:$P$1000<$A627)*('Fixed assets'!$Q$2:$Q$1000=Costs!AO$617))-SUMPRODUCT(('Fixed assets'!$S$2:$S$1000)*('Fixed assets'!$P$2:$P$1000<Costs!$A627)*('Fixed assets'!$Q$2:$Q$1000=Costs!AO$617))-SUMPRODUCT(('Fixed assets'!$Q$2:$Q$1000=Costs!AO$617)*('Fixed assets'!$U$2:$U$1000=Costs!$A627)*('Fixed assets'!$S$2:$S$1000))+SUMPRODUCT(('Fixed assets'!$Q$2:$Q$1000=Costs!AO$617)*('Fixed assets'!$P$2:$P$1000=Costs!$A627)*('Fixed assets'!$U$2:$U$1000=Costs!$A627)*('Fixed assets'!$R$2:$R$1000))","v":0},{"$f":"SUMPRODUCT(('Fixed assets'!$R$2:$R$1000)*('Fixed assets'!$P$2:$P$1000<$A627)*('Fixed assets'!$Q$2:$Q$1000=Costs!AP$617))-SUMPRODUCT(('Fixed assets'!$S$2:$S$1000)*('Fixed assets'!$P$2:$P$1000<Costs!$A627)*('Fixed assets'!$Q$2:$Q$1000=Costs!AP$617))-SUMPRODUCT(('Fixed assets'!$Q$2:$Q$1000=Costs!AP$617)*('Fixed assets'!$U$2:$U$1000=Costs!$A627)*('Fixed assets'!$S$2:$S$1000))+SUMPRODUCT(('Fixed assets'!$Q$2:$Q$1000=Costs!AP$617)*('Fixed assets'!$P$2:$P$1000=Costs!$A627)*('Fixed assets'!$U$2:$U$1000=Costs!$A627)*('Fixed assets'!$R$2:$R$1000))","v":0},{"$f":"SUMPRODUCT(('Fixed assets'!$R$2:$R$1000)*('Fixed assets'!$P$2:$P$1000<$A627)*('Fixed assets'!$Q$2:$Q$1000=Costs!AQ$617))-SUMPRODUCT(('Fixed assets'!$S$2:$S$1000)*('Fixed assets'!$P$2:$P$1000<Costs!$A627)*('Fixed assets'!$Q$2:$Q$1000=Costs!AQ$617))-SUMPRODUCT(('Fixed assets'!$Q$2:$Q$1000=Costs!AQ$617)*('Fixed assets'!$U$2:$U$1000=Costs!$A627)*('Fixed assets'!$S$2:$S$1000))+SUMPRODUCT(('Fixed assets'!$Q$2:$Q$1000=Costs!AQ$617)*('Fixed assets'!$P$2:$P$1000=Costs!$A627)*('Fixed assets'!$U$2:$U$1000=Costs!$A627)*('Fixed assets'!$R$2:$R$1000))","v":0}]
[2025,0,{"$f":"SUMPRODUCT(('Fixed assets'!$R$2:$R$1000)*('Fixed assets'!$P$2:$P$1000<$A628)*('Fixed assets'!$Q$2:$Q$1000=Costs!C$617))-SUMPRODUCT(('Fixed assets'!$S$2:$S$1000)*('Fixed assets'!$P$2:$P$1000<Costs!$A628)*('Fixed assets'!$Q$2:$Q$1000=Costs!C$617))-SUMPRODUCT(('Fixed assets'!$Q$2:$Q$1000=Costs!C$617)*('Fixed assets'!$U$2:$U$1000=Costs!$A628)*('Fixed assets'!$S$2:$S$1000))+SUMPRODUCT(('Fixed assets'!$Q$2:$Q$1000=Costs!C$617)*('Fixed assets'!$P$2:$P$1000=Costs!$A628)*('Fixed assets'!$U$2:$U$1000=Costs!$A628)*('Fixed assets'!$R$2:$R$1000))","v":0},{"$f":"SUMPRODUCT(('Fixed assets'!$R$2:$R$1000)*('Fixed assets'!$P$2:$P$1000<$A628)*('Fixed assets'!$Q$2:$Q$1000=Costs!D$617))-SUMPRODUCT(('Fixed assets'!$S$2:$S$1000)*('Fixed assets'!$P$2:$P$1000<Costs!$A628)*('Fixed assets'!$Q$2:$Q$1000=Costs!D$617))-SUMPRODUCT(('Fixed assets'!$Q$2:$Q$1000=Costs!D$617)*('Fixed assets'!$U$2:$U$1000=Costs!$A628)*('Fixed assets'!$S$2:$S$1000))+SUMPRODUCT(('Fixed assets'!$Q$2:$Q$1000=Costs!D$617)*('Fixed assets'!$P$2:$P$1000=Costs!$A628)*('Fixed assets'!$U$2:$U$1000=Costs!$A628)*('Fixed assets'!$R$2:$R$1000))","v":0},{"$f":"SUMPRODUCT(('Fixed assets'!$R$2:$R$1000)*('Fixed assets'!$P$2:$P$1000<$A628)*('Fixed assets'!$Q$2:$Q$1000=Costs!E$617))-SUMPRODUCT(('Fixed assets'!$S$2:$S$1000)*('Fixed assets'!$P$2:$P$1000<Costs!$A628)*('Fixed assets'!$Q$2:$Q$1000=Costs!E$617))-SUMPRODUCT(('Fixed assets'!$Q$2:$Q$1000=Costs!E$617)*('Fixed assets'!$U$2:$U$1000=Costs!$A628)*('Fixed assets'!$S$2:$S$1000))+SUMPRODUCT(('Fixed assets'!$Q$2:$Q$1000=Costs!E$617)*('Fixed assets'!$P$2:$P$1000=Costs!$A628)*('Fixed assets'!$U$2:$U$1000=Costs!$A628)*('Fixed assets'!$R$2:$R$1000))","v":0},{"$f":"SUMPRODUCT(('Fixed assets'!$R$2:$R$1000)*('Fixed assets'!$P$2:$P$1000<$A628)*('Fixed assets'!$Q$2:$Q$1000=Costs!F$617))-SUMPRODUCT(('Fixed assets'!$S$2:$S$1000)*('Fixed assets'!$P$2:$P$1000<Costs!$A628)*('Fixed assets'!$Q$2:$Q$1000=Costs!F$617))-SUMPRODUCT(('Fixed assets'!$Q$2:$Q$1000=Costs!F$617)*('Fixed assets'!$U$2:$U$1000=Costs!$A628)*('Fixed assets'!$S$2:$S$1000))+SUMPRODUCT(('Fixed assets'!$Q$2:$Q$1000=Costs!F$617)*('Fixed assets'!$P$2:$P$1000=Costs!$A628)*('Fixed assets'!$U$2:$U$1000=Costs!$A628)*('Fixed assets'!$R$2:$R$1000))","v":0},{"$f":"SUMPRODUCT(('Fixed assets'!$R$2:$R$1000)*('Fixed assets'!$P$2:$P$1000<$A628)*('Fixed assets'!$Q$2:$Q$1000=Costs!G$617))-SUMPRODUCT(('Fixed assets'!$S$2:$S$1000)*('Fixed assets'!$P$2:$P$1000<Costs!$A628)*('Fixed assets'!$Q$2:$Q$1000=Costs!G$617))-SUMPRODUCT(('Fixed assets'!$Q$2:$Q$1000=Costs!G$617)*('Fixed assets'!$U$2:$U$1000=Costs!$A628)*('Fixed assets'!$S$2:$S$1000))+SUMPRODUCT(('Fixed assets'!$Q$2:$Q$1000=Costs!G$617)*('Fixed assets'!$P$2:$P$1000=Costs!$A628)*('Fixed assets'!$U$2:$U$1000=Costs!$A628)*('Fixed assets'!$R$2:$R$1000))","v":0},{"$f":"SUMPRODUCT(('Fixed assets'!$R$2:$R$1000)*('Fixed assets'!$P$2:$P$1000<$A628)*('Fixed assets'!$Q$2:$Q$1000=Costs!H$617))-SUMPRODUCT(('Fixed assets'!$S$2:$S$1000)*('Fixed assets'!$P$2:$P$1000<Costs!$A628)*('Fixed assets'!$Q$2:$Q$1000=Costs!H$617))-SUMPRODUCT(('Fixed assets'!$Q$2:$Q$1000=Costs!H$617)*('Fixed assets'!$U$2:$U$1000=Costs!$A628)*('Fixed assets'!$S$2:$S$1000))+SUMPRODUCT(('Fixed assets'!$Q$2:$Q$1000=Costs!H$617)*('Fixed assets'!$P$2:$P$1000=Costs!$A628)*('Fixed assets'!$U$2:$U$1000=Costs!$A628)*('Fixed assets'!$R$2:$R$1000))","v":0},{"$f":"SUMPRODUCT(('Fixed assets'!$R$2:$R$1000)*('Fixed assets'!$P$2:$P$1000<$A628)*('Fixed assets'!$Q$2:$Q$1000=Costs!I$617))-SUMPRODUCT(('Fixed assets'!$S$2:$S$1000)*('Fixed assets'!$P$2:$P$1000<Costs!$A628)*('Fixed assets'!$Q$2:$Q$1000=Costs!I$617))-SUMPRODUCT(('Fixed assets'!$Q$2:$Q$1000=Costs!I$617)*('Fixed assets'!$U$2:$U$1000=Costs!$A628)*('Fixed assets'!$S$2:$S$1000))+SUMPRODUCT(('Fixed assets'!$Q$2:$Q$1000=Costs!I$617)*('Fixed assets'!$P$2:$P$1000=Costs!$A628)*('Fixed assets'!$U$2:$U$1000=Costs!$A628)*('Fixed assets'!$R$2:$R$1000))","v":0},{"$f":"SUMPRODUCT(('Fixed assets'!$R$2:$R$1000)*('Fixed assets'!$P$2:$P$1000<$A628)*('Fixed assets'!$Q$2:$Q$1000=Costs!J$617))-SUMPRODUCT(('Fixed assets'!$S$2:$S$1000)*('Fixed assets'!$P$2:$P$1000<Costs!$A628)*('Fixed assets'!$Q$2:$Q$1000=Costs!J$617))-SUMPRODUCT(('Fixed assets'!$Q$2:$Q$1000=Costs!J$617)*('Fixed assets'!$U$2:$U$1000=Costs!$A628)*('Fixed assets'!$S$2:$S$1000))+SUMPRODUCT(('Fixed assets'!$Q$2:$Q$1000=Costs!J$617)*('Fixed assets'!$P$2:$P$1000=Costs!$A628)*('Fixed assets'!$U$2:$U$1000=Costs!$A628)*('Fixed assets'!$R$2:$R$1000))","v":0},{"$f":"SUMPRODUCT(('Fixed assets'!$R$2:$R$1000)*('Fixed assets'!$P$2:$P$1000<$A628)*('Fixed assets'!$Q$2:$Q$1000=Costs!K$617))-SUMPRODUCT(('Fixed assets'!$S$2:$S$1000)*('Fixed assets'!$P$2:$P$1000<Costs!$A628)*('Fixed assets'!$Q$2:$Q$1000=Costs!K$617))-SUMPRODUCT(('Fixed assets'!$Q$2:$Q$1000=Costs!K$617)*('Fixed assets'!$U$2:$U$1000=Costs!$A628)*('Fixed assets'!$S$2:$S$1000))+SUMPRODUCT(('Fixed assets'!$Q$2:$Q$1000=Costs!K$617)*('Fixed assets'!$P$2:$P$1000=Costs!$A628)*('Fixed assets'!$U$2:$U$1000=Costs!$A628)*('Fixed assets'!$R$2:$R$1000))","v":0},{"$f":"SUMPRODUCT(('Fixed assets'!$R$2:$R$1000)*('Fixed assets'!$P$2:$P$1000<$A628)*('Fixed assets'!$Q$2:$Q$1000=Costs!L$617))-SUMPRODUCT(('Fixed assets'!$S$2:$S$1000)*('Fixed assets'!$P$2:$P$1000<Costs!$A628)*('Fixed assets'!$Q$2:$Q$1000=Costs!L$617))-SUMPRODUCT(('Fixed assets'!$Q$2:$Q$1000=Costs!L$617)*('Fixed assets'!$U$2:$U$1000=Costs!$A628)*('Fixed assets'!$S$2:$S$1000))+SUMPRODUCT(('Fixed assets'!$Q$2:$Q$1000=Costs!L$617)*('Fixed assets'!$P$2:$P$1000=Costs!$A628)*('Fixed assets'!$U$2:$U$1000=Costs!$A628)*('Fixed assets'!$R$2:$R$1000))","v":0},{"$f":"SUMPRODUCT(('Fixed assets'!$R$2:$R$1000)*('Fixed assets'!$P$2:$P$1000<$A628)*('Fixed assets'!$Q$2:$Q$1000=Costs!M$617))-SUMPRODUCT(('Fixed assets'!$S$2:$S$1000)*('Fixed assets'!$P$2:$P$1000<Costs!$A628)*('Fixed assets'!$Q$2:$Q$1000=Costs!M$617))-SUMPRODUCT(('Fixed assets'!$Q$2:$Q$1000=Costs!M$617)*('Fixed assets'!$U$2:$U$1000=Costs!$A628)*('Fixed assets'!$S$2:$S$1000))+SUMPRODUCT(('Fixed assets'!$Q$2:$Q$1000=Costs!M$617)*('Fixed assets'!$P$2:$P$1000=Costs!$A628)*('Fixed assets'!$U$2:$U$1000=Costs!$A628)*('Fixed assets'!$R$2:$R$1000))","v":0},{"$f":"SUMPRODUCT(('Fixed assets'!$R$2:$R$1000)*('Fixed assets'!$P$2:$P$1000<$A628)*('Fixed assets'!$Q$2:$Q$1000=Costs!N$617))-SUMPRODUCT(('Fixed assets'!$S$2:$S$1000)*('Fixed assets'!$P$2:$P$1000<Costs!$A628)*('Fixed assets'!$Q$2:$Q$1000=Costs!N$617))-SUMPRODUCT(('Fixed assets'!$Q$2:$Q$1000=Costs!N$617)*('Fixed assets'!$U$2:$U$1000=Costs!$A628)*('Fixed assets'!$S$2:$S$1000))+SUMPRODUCT(('Fixed assets'!$Q$2:$Q$1000=Costs!N$617)*('Fixed assets'!$P$2:$P$1000=Costs!$A628)*('Fixed assets'!$U$2:$U$1000=Costs!$A628)*('Fixed assets'!$R$2:$R$1000))","v":0},{"$f":"SUMPRODUCT(('Fixed assets'!$R$2:$R$1000)*('Fixed assets'!$P$2:$P$1000<$A628)*('Fixed assets'!$Q$2:$Q$1000=Costs!O$617))-SUMPRODUCT(('Fixed assets'!$S$2:$S$1000)*('Fixed assets'!$P$2:$P$1000<Costs!$A628)*('Fixed assets'!$Q$2:$Q$1000=Costs!O$617))-SUMPRODUCT(('Fixed assets'!$Q$2:$Q$1000=Costs!O$617)*('Fixed assets'!$U$2:$U$1000=Costs!$A628)*('Fixed assets'!$S$2:$S$1000))+SUMPRODUCT(('Fixed assets'!$Q$2:$Q$1000=Costs!O$617)*('Fixed assets'!$P$2:$P$1000=Costs!$A628)*('Fixed assets'!$U$2:$U$1000=Costs!$A628)*('Fixed assets'!$R$2:$R$1000))","v":0},{"$f":"SUMPRODUCT(('Fixed assets'!$R$2:$R$1000)*('Fixed assets'!$P$2:$P$1000<$A628)*('Fixed assets'!$Q$2:$Q$1000=Costs!P$617))-SUMPRODUCT(('Fixed assets'!$S$2:$S$1000)*('Fixed assets'!$P$2:$P$1000<Costs!$A628)*('Fixed assets'!$Q$2:$Q$1000=Costs!P$617))-SUMPRODUCT(('Fixed assets'!$Q$2:$Q$1000=Costs!P$617)*('Fixed assets'!$U$2:$U$1000=Costs!$A628)*('Fixed assets'!$S$2:$S$1000))+SUMPRODUCT(('Fixed assets'!$Q$2:$Q$1000=Costs!P$617)*('Fixed assets'!$P$2:$P$1000=Costs!$A628)*('Fixed assets'!$U$2:$U$1000=Costs!$A628)*('Fixed assets'!$R$2:$R$1000))","v":0},{"$f":"SUMPRODUCT(('Fixed assets'!$R$2:$R$1000)*('Fixed assets'!$P$2:$P$1000<$A628)*('Fixed assets'!$Q$2:$Q$1000=Costs!Q$617))-SUMPRODUCT(('Fixed assets'!$S$2:$S$1000)*('Fixed assets'!$P$2:$P$1000<Costs!$A628)*('Fixed assets'!$Q$2:$Q$1000=Costs!Q$617))-SUMPRODUCT(('Fixed assets'!$Q$2:$Q$1000=Costs!Q$617)*('Fixed assets'!$U$2:$U$1000=Costs!$A628)*('Fixed assets'!$S$2:$S$1000))+SUMPRODUCT(('Fixed assets'!$Q$2:$Q$1000=Costs!Q$617)*('Fixed assets'!$P$2:$P$1000=Costs!$A628)*('Fixed assets'!$U$2:$U$1000=Costs!$A628)*('Fixed assets'!$R$2:$R$1000))","v":0},{"$f":"SUMPRODUCT(('Fixed assets'!$R$2:$R$1000)*('Fixed assets'!$P$2:$P$1000<$A628)*('Fixed assets'!$Q$2:$Q$1000=Costs!R$617))-SUMPRODUCT(('Fixed assets'!$S$2:$S$1000)*('Fixed assets'!$P$2:$P$1000<Costs!$A628)*('Fixed assets'!$Q$2:$Q$1000=Costs!R$617))-SUMPRODUCT(('Fixed assets'!$Q$2:$Q$1000=Costs!R$617)*('Fixed assets'!$U$2:$U$1000=Costs!$A628)*('Fixed assets'!$S$2:$S$1000))+SUMPRODUCT(('Fixed assets'!$Q$2:$Q$1000=Costs!R$617)*('Fixed assets'!$P$2:$P$1000=Costs!$A628)*('Fixed assets'!$U$2:$U$1000=Costs!$A628)*('Fixed assets'!$R$2:$R$1000))","v":0},{"$f":"SUMPRODUCT(('Fixed assets'!$R$2:$R$1000)*('Fixed assets'!$P$2:$P$1000<$A628)*('Fixed assets'!$Q$2:$Q$1000=Costs!S$617))-SUMPRODUCT(('Fixed assets'!$S$2:$S$1000)*('Fixed assets'!$P$2:$P$1000<Costs!$A628)*('Fixed assets'!$Q$2:$Q$1000=Costs!S$617))-SUMPRODUCT(('Fixed assets'!$Q$2:$Q$1000=Costs!S$617)*('Fixed assets'!$U$2:$U$1000=Costs!$A628)*('Fixed assets'!$S$2:$S$1000))+SUMPRODUCT(('Fixed assets'!$Q$2:$Q$1000=Costs!S$617)*('Fixed assets'!$P$2:$P$1000=Costs!$A628)*('Fixed assets'!$U$2:$U$1000=Costs!$A628)*('Fixed assets'!$R$2:$R$1000))","v":0},{"$f":"SUMPRODUCT(('Fixed assets'!$R$2:$R$1000)*('Fixed assets'!$P$2:$P$1000<$A628)*('Fixed assets'!$Q$2:$Q$1000=Costs!T$617))-SUMPRODUCT(('Fixed assets'!$S$2:$S$1000)*('Fixed assets'!$P$2:$P$1000<Costs!$A628)*('Fixed assets'!$Q$2:$Q$1000=Costs!T$617))-SUMPRODUCT(('Fixed assets'!$Q$2:$Q$1000=Costs!T$617)*('Fixed assets'!$U$2:$U$1000=Costs!$A628)*('Fixed assets'!$S$2:$S$1000))+SUMPRODUCT(('Fixed assets'!$Q$2:$Q$1000=Costs!T$617)*('Fixed assets'!$P$2:$P$1000=Costs!$A628)*('Fixed assets'!$U$2:$U$1000=Costs!$A628)*('Fixed assets'!$R$2:$R$1000))","v":0},{"$f":"SUMPRODUCT(('Fixed assets'!$R$2:$R$1000)*('Fixed assets'!$P$2:$P$1000<$A628)*('Fixed assets'!$Q$2:$Q$1000=Costs!U$617))-SUMPRODUCT(('Fixed assets'!$S$2:$S$1000)*('Fixed assets'!$P$2:$P$1000<Costs!$A628)*('Fixed assets'!$Q$2:$Q$1000=Costs!U$617))-SUMPRODUCT(('Fixed assets'!$Q$2:$Q$1000=Costs!U$617)*('Fixed assets'!$U$2:$U$1000=Costs!$A628)*('Fixed assets'!$S$2:$S$1000))+SUMPRODUCT(('Fixed assets'!$Q$2:$Q$1000=Costs!U$617)*('Fixed assets'!$P$2:$P$1000=Costs!$A628)*('Fixed assets'!$U$2:$U$1000=Costs!$A628)*('Fixed assets'!$R$2:$R$1000))","v":0},{"$f":"SUMPRODUCT(('Fixed assets'!$R$2:$R$1000)*('Fixed assets'!$P$2:$P$1000<$A628)*('Fixed assets'!$Q$2:$Q$1000=Costs!V$617))-SUMPRODUCT(('Fixed assets'!$S$2:$S$1000)*('Fixed assets'!$P$2:$P$1000<Costs!$A628)*('Fixed assets'!$Q$2:$Q$1000=Costs!V$617))-SUMPRODUCT(('Fixed assets'!$Q$2:$Q$1000=Costs!V$617)*('Fixed assets'!$U$2:$U$1000=Costs!$A628)*('Fixed assets'!$S$2:$S$1000))+SUMPRODUCT(('Fixed assets'!$Q$2:$Q$1000=Costs!V$617)*('Fixed assets'!$P$2:$P$1000=Costs!$A628)*('Fixed assets'!$U$2:$U$1000=Costs!$A628)*('Fixed assets'!$R$2:$R$1000))","v":0},{"$f":"SUMPRODUCT(('Fixed assets'!$R$2:$R$1000)*('Fixed assets'!$P$2:$P$1000<$A628)*('Fixed assets'!$Q$2:$Q$1000=Costs!W$617))-SUMPRODUCT(('Fixed assets'!$S$2:$S$1000)*('Fixed assets'!$P$2:$P$1000<Costs!$A628)*('Fixed assets'!$Q$2:$Q$1000=Costs!W$617))-SUMPRODUCT(('Fixed assets'!$Q$2:$Q$1000=Costs!W$617)*('Fixed assets'!$U$2:$U$1000=Costs!$A628)*('Fixed assets'!$S$2:$S$1000))+SUMPRODUCT(('Fixed assets'!$Q$2:$Q$1000=Costs!W$617)*('Fixed assets'!$P$2:$P$1000=Costs!$A628)*('Fixed assets'!$U$2:$U$1000=Costs!$A628)*('Fixed assets'!$R$2:$R$1000))","v":0},{"$f":"SUMPRODUCT(('Fixed assets'!$R$2:$R$1000)*('Fixed assets'!$P$2:$P$1000<$A628)*('Fixed assets'!$Q$2:$Q$1000=Costs!X$617))-SUMPRODUCT(('Fixed assets'!$S$2:$S$1000)*('Fixed assets'!$P$2:$P$1000<Costs!$A628)*('Fixed assets'!$Q$2:$Q$1000=Costs!X$617))-SUMPRODUCT(('Fixed assets'!$Q$2:$Q$1000=Costs!X$617)*('Fixed assets'!$U$2:$U$1000=Costs!$A628)*('Fixed assets'!$S$2:$S$1000))+SUMPRODUCT(('Fixed assets'!$Q$2:$Q$1000=Costs!X$617)*('Fixed assets'!$P$2:$P$1000=Costs!$A628)*('Fixed assets'!$U$2:$U$1000=Costs!$A628)*('Fixed assets'!$R$2:$R$1000))","v":0},{"$f":"SUMPRODUCT(('Fixed assets'!$R$2:$R$1000)*('Fixed assets'!$P$2:$P$1000<$A628)*('Fixed assets'!$Q$2:$Q$1000=Costs!Y$617))-SUMPRODUCT(('Fixed assets'!$S$2:$S$1000)*('Fixed assets'!$P$2:$P$1000<Costs!$A628)*('Fixed assets'!$Q$2:$Q$1000=Costs!Y$617))-SUMPRODUCT(('Fixed assets'!$Q$2:$Q$1000=Costs!Y$617)*('Fixed assets'!$U$2:$U$1000=Costs!$A628)*('Fixed assets'!$S$2:$S$1000))+SUMPRODUCT(('Fixed assets'!$Q$2:$Q$1000=Costs!Y$617)*('Fixed assets'!$P$2:$P$1000=Costs!$A628)*('Fixed assets'!$U$2:$U$1000=Costs!$A628)*('Fixed assets'!$R$2:$R$1000))","v":0},{"$f":"SUMPRODUCT(('Fixed assets'!$R$2:$R$1000)*('Fixed assets'!$P$2:$P$1000<$A628)*('Fixed assets'!$Q$2:$Q$1000=Costs!Z$617))-SUMPRODUCT(('Fixed assets'!$S$2:$S$1000)*('Fixed assets'!$P$2:$P$1000<Costs!$A628)*('Fixed assets'!$Q$2:$Q$1000=Costs!Z$617))-SUMPRODUCT(('Fixed assets'!$Q$2:$Q$1000=Costs!Z$617)*('Fixed assets'!$U$2:$U$1000=Costs!$A628)*('Fixed assets'!$S$2:$S$1000))+SUMPRODUCT(('Fixed assets'!$Q$2:$Q$1000=Costs!Z$617)*('Fixed assets'!$P$2:$P$1000=Costs!$A628)*('Fixed assets'!$U$2:$U$1000=Costs!$A628)*('Fixed assets'!$R$2:$R$1000))","v":0},{"$f":"SUMPRODUCT(('Fixed assets'!$R$2:$R$1000)*('Fixed assets'!$P$2:$P$1000<$A628)*('Fixed assets'!$Q$2:$Q$1000=Costs!AA$617))-SUMPRODUCT(('Fixed assets'!$S$2:$S$1000)*('Fixed assets'!$P$2:$P$1000<Costs!$A628)*('Fixed assets'!$Q$2:$Q$1000=Costs!AA$617))-SUMPRODUCT(('Fixed assets'!$Q$2:$Q$1000=Costs!AA$617)*('Fixed assets'!$U$2:$U$1000=Costs!$A628)*('Fixed assets'!$S$2:$S$1000))+SUMPRODUCT(('Fixed assets'!$Q$2:$Q$1000=Costs!AA$617)*('Fixed assets'!$P$2:$P$1000=Costs!$A628)*('Fixed assets'!$U$2:$U$1000=Costs!$A628)*('Fixed assets'!$R$2:$R$1000))","v":0},{"$f":"SUMPRODUCT(('Fixed assets'!$R$2:$R$1000)*('Fixed assets'!$P$2:$P$1000<$A628)*('Fixed assets'!$Q$2:$Q$1000=Costs!AB$617))-SUMPRODUCT(('Fixed assets'!$S$2:$S$1000)*('Fixed assets'!$P$2:$P$1000<Costs!$A628)*('Fixed assets'!$Q$2:$Q$1000=Costs!AB$617))-SUMPRODUCT(('Fixed assets'!$Q$2:$Q$1000=Costs!AB$617)*('Fixed assets'!$U$2:$U$1000=Costs!$A628)*('Fixed assets'!$S$2:$S$1000))+SUMPRODUCT(('Fixed assets'!$Q$2:$Q$1000=Costs!AB$617)*('Fixed assets'!$P$2:$P$1000=Costs!$A628)*('Fixed assets'!$U$2:$U$1000=Costs!$A628)*('Fixed assets'!$R$2:$R$1000))","v":0},{"$f":"SUMPRODUCT(('Fixed assets'!$R$2:$R$1000)*('Fixed assets'!$P$2:$P$1000<$A628)*('Fixed assets'!$Q$2:$Q$1000=Costs!AC$617))-SUMPRODUCT(('Fixed assets'!$S$2:$S$1000)*('Fixed assets'!$P$2:$P$1000<Costs!$A628)*('Fixed assets'!$Q$2:$Q$1000=Costs!AC$617))-SUMPRODUCT(('Fixed assets'!$Q$2:$Q$1000=Costs!AC$617)*('Fixed assets'!$U$2:$U$1000=Costs!$A628)*('Fixed assets'!$S$2:$S$1000))+SUMPRODUCT(('Fixed assets'!$Q$2:$Q$1000=Costs!AC$617)*('Fixed assets'!$P$2:$P$1000=Costs!$A628)*('Fixed assets'!$U$2:$U$1000=Costs!$A628)*('Fixed assets'!$R$2:$R$1000))","v":0},{"$f":"SUMPRODUCT(('Fixed assets'!$R$2:$R$1000)*('Fixed assets'!$P$2:$P$1000<$A628)*('Fixed assets'!$Q$2:$Q$1000=Costs!AD$617))-SUMPRODUCT(('Fixed assets'!$S$2:$S$1000)*('Fixed assets'!$P$2:$P$1000<Costs!$A628)*('Fixed assets'!$Q$2:$Q$1000=Costs!AD$617))-SUMPRODUCT(('Fixed assets'!$Q$2:$Q$1000=Costs!AD$617)*('Fixed assets'!$U$2:$U$1000=Costs!$A628)*('Fixed assets'!$S$2:$S$1000))+SUMPRODUCT(('Fixed assets'!$Q$2:$Q$1000=Costs!AD$617)*('Fixed assets'!$P$2:$P$1000=Costs!$A628)*('Fixed assets'!$U$2:$U$1000=Costs!$A628)*('Fixed assets'!$R$2:$R$1000))","v":0},{"$f":"SUMPRODUCT(('Fixed assets'!$R$2:$R$1000)*('Fixed assets'!$P$2:$P$1000<$A628)*('Fixed assets'!$Q$2:$Q$1000=Costs!AE$617))-SUMPRODUCT(('Fixed assets'!$S$2:$S$1000)*('Fixed assets'!$P$2:$P$1000<Costs!$A628)*('Fixed assets'!$Q$2:$Q$1000=Costs!AE$617))-SUMPRODUCT(('Fixed assets'!$Q$2:$Q$1000=Costs!AE$617)*('Fixed assets'!$U$2:$U$1000=Costs!$A628)*('Fixed assets'!$S$2:$S$1000))+SUMPRODUCT(('Fixed assets'!$Q$2:$Q$1000=Costs!AE$617)*('Fixed assets'!$P$2:$P$1000=Costs!$A628)*('Fixed assets'!$U$2:$U$1000=Costs!$A628)*('Fixed assets'!$R$2:$R$1000))","v":0},{"$f":"SUMPRODUCT(('Fixed assets'!$R$2:$R$1000)*('Fixed assets'!$P$2:$P$1000<$A628)*('Fixed assets'!$Q$2:$Q$1000=Costs!AF$617))-SUMPRODUCT(('Fixed assets'!$S$2:$S$1000)*('Fixed assets'!$P$2:$P$1000<Costs!$A628)*('Fixed assets'!$Q$2:$Q$1000=Costs!AF$617))-SUMPRODUCT(('Fixed assets'!$Q$2:$Q$1000=Costs!AF$617)*('Fixed assets'!$U$2:$U$1000=Costs!$A628)*('Fixed assets'!$S$2:$S$1000))+SUMPRODUCT(('Fixed assets'!$Q$2:$Q$1000=Costs!AF$617)*('Fixed assets'!$P$2:$P$1000=Costs!$A628)*('Fixed assets'!$U$2:$U$1000=Costs!$A628)*('Fixed assets'!$R$2:$R$1000))","v":0},{"$f":"SUMPRODUCT(('Fixed assets'!$R$2:$R$1000)*('Fixed assets'!$P$2:$P$1000<$A628)*('Fixed assets'!$Q$2:$Q$1000=Costs!AG$617))-SUMPRODUCT(('Fixed assets'!$S$2:$S$1000)*('Fixed assets'!$P$2:$P$1000<Costs!$A628)*('Fixed assets'!$Q$2:$Q$1000=Costs!AG$617))-SUMPRODUCT(('Fixed assets'!$Q$2:$Q$1000=Costs!AG$617)*('Fixed assets'!$U$2:$U$1000=Costs!$A628)*('Fixed assets'!$S$2:$S$1000))+SUMPRODUCT(('Fixed assets'!$Q$2:$Q$1000=Costs!AG$617)*('Fixed assets'!$P$2:$P$1000=Costs!$A628)*('Fixed assets'!$U$2:$U$1000=Costs!$A628)*('Fixed assets'!$R$2:$R$1000))","v":0},{"$f":"SUMPRODUCT(('Fixed assets'!$R$2:$R$1000)*('Fixed assets'!$P$2:$P$1000<$A628)*('Fixed assets'!$Q$2:$Q$1000=Costs!AH$617))-SUMPRODUCT(('Fixed assets'!$S$2:$S$1000)*('Fixed assets'!$P$2:$P$1000<Costs!$A628)*('Fixed assets'!$Q$2:$Q$1000=Costs!AH$617))-SUMPRODUCT(('Fixed assets'!$Q$2:$Q$1000=Costs!AH$617)*('Fixed assets'!$U$2:$U$1000=Costs!$A628)*('Fixed assets'!$S$2:$S$1000))+SUMPRODUCT(('Fixed assets'!$Q$2:$Q$1000=Costs!AH$617)*('Fixed assets'!$P$2:$P$1000=Costs!$A628)*('Fixed assets'!$U$2:$U$1000=Costs!$A628)*('Fixed assets'!$R$2:$R$1000))","v":0},{"$f":"SUMPRODUCT(('Fixed assets'!$R$2:$R$1000)*('Fixed assets'!$P$2:$P$1000<$A628)*('Fixed assets'!$Q$2:$Q$1000=Costs!AI$617))-SUMPRODUCT(('Fixed assets'!$S$2:$S$1000)*('Fixed assets'!$P$2:$P$1000<Costs!$A628)*('Fixed assets'!$Q$2:$Q$1000=Costs!AI$617))-SUMPRODUCT(('Fixed assets'!$Q$2:$Q$1000=Costs!AI$617)*('Fixed assets'!$U$2:$U$1000=Costs!$A628)*('Fixed assets'!$S$2:$S$1000))+SUMPRODUCT(('Fixed assets'!$Q$2:$Q$1000=Costs!AI$617)*('Fixed assets'!$P$2:$P$1000=Costs!$A628)*('Fixed assets'!$U$2:$U$1000=Costs!$A628)*('Fixed assets'!$R$2:$R$1000))","v":0},{"$f":"SUMPRODUCT(('Fixed assets'!$R$2:$R$1000)*('Fixed assets'!$P$2:$P$1000<$A628)*('Fixed assets'!$Q$2:$Q$1000=Costs!AJ$617))-SUMPRODUCT(('Fixed assets'!$S$2:$S$1000)*('Fixed assets'!$P$2:$P$1000<Costs!$A628)*('Fixed assets'!$Q$2:$Q$1000=Costs!AJ$617))-SUMPRODUCT(('Fixed assets'!$Q$2:$Q$1000=Costs!AJ$617)*('Fixed assets'!$U$2:$U$1000=Costs!$A628)*('Fixed assets'!$S$2:$S$1000))+SUMPRODUCT(('Fixed assets'!$Q$2:$Q$1000=Costs!AJ$617)*('Fixed assets'!$P$2:$P$1000=Costs!$A628)*('Fixed assets'!$U$2:$U$1000=Costs!$A628)*('Fixed assets'!$R$2:$R$1000))","v":0},{"$f":"SUMPRODUCT(('Fixed assets'!$R$2:$R$1000)*('Fixed assets'!$P$2:$P$1000<$A628)*('Fixed assets'!$Q$2:$Q$1000=Costs!AK$617))-SUMPRODUCT(('Fixed assets'!$S$2:$S$1000)*('Fixed assets'!$P$2:$P$1000<Costs!$A628)*('Fixed assets'!$Q$2:$Q$1000=Costs!AK$617))-SUMPRODUCT(('Fixed assets'!$Q$2:$Q$1000=Costs!AK$617)*('Fixed assets'!$U$2:$U$1000=Costs!$A628)*('Fixed assets'!$S$2:$S$1000))+SUMPRODUCT(('Fixed assets'!$Q$2:$Q$1000=Costs!AK$617)*('Fixed assets'!$P$2:$P$1000=Costs!$A628)*('Fixed assets'!$U$2:$U$1000=Costs!$A628)*('Fixed assets'!$R$2:$R$1000))","v":0},{"$f":"SUMPRODUCT(('Fixed assets'!$R$2:$R$1000)*('Fixed assets'!$P$2:$P$1000<$A628)*('Fixed assets'!$Q$2:$Q$1000=Costs!AL$617))-SUMPRODUCT(('Fixed assets'!$S$2:$S$1000)*('Fixed assets'!$P$2:$P$1000<Costs!$A628)*('Fixed assets'!$Q$2:$Q$1000=Costs!AL$617))-SUMPRODUCT(('Fixed assets'!$Q$2:$Q$1000=Costs!AL$617)*('Fixed assets'!$U$2:$U$1000=Costs!$A628)*('Fixed assets'!$S$2:$S$1000))+SUMPRODUCT(('Fixed assets'!$Q$2:$Q$1000=Costs!AL$617)*('Fixed assets'!$P$2:$P$1000=Costs!$A628)*('Fixed assets'!$U$2:$U$1000=Costs!$A628)*('Fixed assets'!$R$2:$R$1000))","v":0},{"$f":"SUMPRODUCT(('Fixed assets'!$R$2:$R$1000)*('Fixed assets'!$P$2:$P$1000<$A628)*('Fixed assets'!$Q$2:$Q$1000=Costs!AM$617))-SUMPRODUCT(('Fixed assets'!$S$2:$S$1000)*('Fixed assets'!$P$2:$P$1000<Costs!$A628)*('Fixed assets'!$Q$2:$Q$1000=Costs!AM$617))-SUMPRODUCT(('Fixed assets'!$Q$2:$Q$1000=Costs!AM$617)*('Fixed assets'!$U$2:$U$1000=Costs!$A628)*('Fixed assets'!$S$2:$S$1000))+SUMPRODUCT(('Fixed assets'!$Q$2:$Q$1000=Costs!AM$617)*('Fixed assets'!$P$2:$P$1000=Costs!$A628)*('Fixed assets'!$U$2:$U$1000=Costs!$A628)*('Fixed assets'!$R$2:$R$1000))","v":0},{"$f":"SUMPRODUCT(('Fixed assets'!$R$2:$R$1000)*('Fixed assets'!$P$2:$P$1000<$A628)*('Fixed assets'!$Q$2:$Q$1000=Costs!AN$617))-SUMPRODUCT(('Fixed assets'!$S$2:$S$1000)*('Fixed assets'!$P$2:$P$1000<Costs!$A628)*('Fixed assets'!$Q$2:$Q$1000=Costs!AN$617))-SUMPRODUCT(('Fixed assets'!$Q$2:$Q$1000=Costs!AN$617)*('Fixed assets'!$U$2:$U$1000=Costs!$A628)*('Fixed assets'!$S$2:$S$1000))+SUMPRODUCT(('Fixed assets'!$Q$2:$Q$1000=Costs!AN$617)*('Fixed assets'!$P$2:$P$1000=Costs!$A628)*('Fixed assets'!$U$2:$U$1000=Costs!$A628)*('Fixed assets'!$R$2:$R$1000))","v":0},{"$f":"SUMPRODUCT(('Fixed assets'!$R$2:$R$1000)*('Fixed assets'!$P$2:$P$1000<$A628)*('Fixed assets'!$Q$2:$Q$1000=Costs!AO$617))-SUMPRODUCT(('Fixed assets'!$S$2:$S$1000)*('Fixed assets'!$P$2:$P$1000<Costs!$A628)*('Fixed assets'!$Q$2:$Q$1000=Costs!AO$617))-SUMPRODUCT(('Fixed assets'!$Q$2:$Q$1000=Costs!AO$617)*('Fixed assets'!$U$2:$U$1000=Costs!$A628)*('Fixed assets'!$S$2:$S$1000))+SUMPRODUCT(('Fixed assets'!$Q$2:$Q$1000=Costs!AO$617)*('Fixed assets'!$P$2:$P$1000=Costs!$A628)*('Fixed assets'!$U$2:$U$1000=Costs!$A628)*('Fixed assets'!$R$2:$R$1000))","v":0},{"$f":"SUMPRODUCT(('Fixed assets'!$R$2:$R$1000)*('Fixed assets'!$P$2:$P$1000<$A628)*('Fixed assets'!$Q$2:$Q$1000=Costs!AP$617))-SUMPRODUCT(('Fixed assets'!$S$2:$S$1000)*('Fixed assets'!$P$2:$P$1000<Costs!$A628)*('Fixed assets'!$Q$2:$Q$1000=Costs!AP$617))-SUMPRODUCT(('Fixed assets'!$Q$2:$Q$1000=Costs!AP$617)*('Fixed assets'!$U$2:$U$1000=Costs!$A628)*('Fixed assets'!$S$2:$S$1000))+SUMPRODUCT(('Fixed assets'!$Q$2:$Q$1000=Costs!AP$617)*('Fixed assets'!$P$2:$P$1000=Costs!$A628)*('Fixed assets'!$U$2:$U$1000=Costs!$A628)*('Fixed assets'!$R$2:$R$1000))","v":0},{"$f":"SUMPRODUCT(('Fixed assets'!$R$2:$R$1000)*('Fixed assets'!$P$2:$P$1000<$A628)*('Fixed assets'!$Q$2:$Q$1000=Costs!AQ$617))-SUMPRODUCT(('Fixed assets'!$S$2:$S$1000)*('Fixed assets'!$P$2:$P$1000<Costs!$A628)*('Fixed assets'!$Q$2:$Q$1000=Costs!AQ$617))-SUMPRODUCT(('Fixed assets'!$Q$2:$Q$1000=Costs!AQ$617)*('Fixed assets'!$U$2:$U$1000=Costs!$A628)*('Fixed assets'!$S$2:$S$1000))+SUMPRODUCT(('Fixed assets'!$Q$2:$Q$1000=Costs!AQ$617)*('Fixed assets'!$P$2:$P$1000=Costs!$A628)*('Fixed assets'!$U$2:$U$1000=Costs!$A628)*('Fixed assets'!$R$2:$R$1000))","v":0}]
[2026,0,{"$f":"SUMPRODUCT(('Fixed assets'!$R$2:$R$1000)*('Fixed assets'!$P$2:$P$1000<$A629)*('Fixed assets'!$Q$2:$Q$1000=Costs!C$617))-SUMPRODUCT(('Fixed assets'!$S$2:$S$1000)*('Fixed assets'!$P$2:$P$1000<Costs!$A629)*('Fixed assets'!$Q$2:$Q$1000=Costs!C$617))-SUMPRODUCT(('Fixed assets'!$Q$2:$Q$1000=Costs!C$617)*('Fixed assets'!$U$2:$U$1000=Costs!$A629)*('Fixed assets'!$S$2:$S$1000))+SUMPRODUCT(('Fixed assets'!$Q$2:$Q$1000=Costs!C$617)*('Fixed assets'!$P$2:$P$1000=Costs!$A629)*('Fixed assets'!$U$2:$U$1000=Costs!$A629)*('Fixed assets'!$R$2:$R$1000))","v":0},{"$f":"SUMPRODUCT(('Fixed assets'!$R$2:$R$1000)*('Fixed assets'!$P$2:$P$1000<$A629)*('Fixed assets'!$Q$2:$Q$1000=Costs!D$617))-SUMPRODUCT(('Fixed assets'!$S$2:$S$1000)*('Fixed assets'!$P$2:$P$1000<Costs!$A629)*('Fixed assets'!$Q$2:$Q$1000=Costs!D$617))-SUMPRODUCT(('Fixed assets'!$Q$2:$Q$1000=Costs!D$617)*('Fixed assets'!$U$2:$U$1000=Costs!$A629)*('Fixed assets'!$S$2:$S$1000))+SUMPRODUCT(('Fixed assets'!$Q$2:$Q$1000=Costs!D$617)*('Fixed assets'!$P$2:$P$1000=Costs!$A629)*('Fixed assets'!$U$2:$U$1000=Costs!$A629)*('Fixed assets'!$R$2:$R$1000))","v":0},{"$f":"SUMPRODUCT(('Fixed assets'!$R$2:$R$1000)*('Fixed assets'!$P$2:$P$1000<$A629)*('Fixed assets'!$Q$2:$Q$1000=Costs!E$617))-SUMPRODUCT(('Fixed assets'!$S$2:$S$1000)*('Fixed assets'!$P$2:$P$1000<Costs!$A629)*('Fixed assets'!$Q$2:$Q$1000=Costs!E$617))-SUMPRODUCT(('Fixed assets'!$Q$2:$Q$1000=Costs!E$617)*('Fixed assets'!$U$2:$U$1000=Costs!$A629)*('Fixed assets'!$S$2:$S$1000))+SUMPRODUCT(('Fixed assets'!$Q$2:$Q$1000=Costs!E$617)*('Fixed assets'!$P$2:$P$1000=Costs!$A629)*('Fixed assets'!$U$2:$U$1000=Costs!$A629)*('Fixed assets'!$R$2:$R$1000))","v":0},{"$f":"SUMPRODUCT(('Fixed assets'!$R$2:$R$1000)*('Fixed assets'!$P$2:$P$1000<$A629)*('Fixed assets'!$Q$2:$Q$1000=Costs!F$617))-SUMPRODUCT(('Fixed assets'!$S$2:$S$1000)*('Fixed assets'!$P$2:$P$1000<Costs!$A629)*('Fixed assets'!$Q$2:$Q$1000=Costs!F$617))-SUMPRODUCT(('Fixed assets'!$Q$2:$Q$1000=Costs!F$617)*('Fixed assets'!$U$2:$U$1000=Costs!$A629)*('Fixed assets'!$S$2:$S$1000))+SUMPRODUCT(('Fixed assets'!$Q$2:$Q$1000=Costs!F$617)*('Fixed assets'!$P$2:$P$1000=Costs!$A629)*('Fixed assets'!$U$2:$U$1000=Costs!$A629)*('Fixed assets'!$R$2:$R$1000))","v":0},{"$f":"SUMPRODUCT(('Fixed assets'!$R$2:$R$1000)*('Fixed assets'!$P$2:$P$1000<$A629)*('Fixed assets'!$Q$2:$Q$1000=Costs!G$617))-SUMPRODUCT(('Fixed assets'!$S$2:$S$1000)*('Fixed assets'!$P$2:$P$1000<Costs!$A629)*('Fixed assets'!$Q$2:$Q$1000=Costs!G$617))-SUMPRODUCT(('Fixed assets'!$Q$2:$Q$1000=Costs!G$617)*('Fixed assets'!$U$2:$U$1000=Costs!$A629)*('Fixed assets'!$S$2:$S$1000))+SUMPRODUCT(('Fixed assets'!$Q$2:$Q$1000=Costs!G$617)*('Fixed assets'!$P$2:$P$1000=Costs!$A629)*('Fixed assets'!$U$2:$U$1000=Costs!$A629)*('Fixed assets'!$R$2:$R$1000))","v":0},{"$f":"SUMPRODUCT(('Fixed assets'!$R$2:$R$1000)*('Fixed assets'!$P$2:$P$1000<$A629)*('Fixed assets'!$Q$2:$Q$1000=Costs!H$617))-SUMPRODUCT(('Fixed assets'!$S$2:$S$1000)*('Fixed assets'!$P$2:$P$1000<Costs!$A629)*('Fixed assets'!$Q$2:$Q$1000=Costs!H$617))-SUMPRODUCT(('Fixed assets'!$Q$2:$Q$1000=Costs!H$617)*('Fixed assets'!$U$2:$U$1000=Costs!$A629)*('Fixed assets'!$S$2:$S$1000))+SUMPRODUCT(('Fixed assets'!$Q$2:$Q$1000=Costs!H$617)*('Fixed assets'!$P$2:$P$1000=Costs!$A629)*('Fixed assets'!$U$2:$U$1000=Costs!$A629)*('Fixed assets'!$R$2:$R$1000))","v":0},{"$f":"SUMPRODUCT(('Fixed assets'!$R$2:$R$1000)*('Fixed assets'!$P$2:$P$1000<$A629)*('Fixed assets'!$Q$2:$Q$1000=Costs!I$617))-SUMPRODUCT(('Fixed assets'!$S$2:$S$1000)*('Fixed assets'!$P$2:$P$1000<Costs!$A629)*('Fixed assets'!$Q$2:$Q$1000=Costs!I$617))-SUMPRODUCT(('Fixed assets'!$Q$2:$Q$1000=Costs!I$617)*('Fixed assets'!$U$2:$U$1000=Costs!$A629)*('Fixed assets'!$S$2:$S$1000))+SUMPRODUCT(('Fixed assets'!$Q$2:$Q$1000=Costs!I$617)*('Fixed assets'!$P$2:$P$1000=Costs!$A629)*('Fixed assets'!$U$2:$U$1000=Costs!$A629)*('Fixed assets'!$R$2:$R$1000))","v":0},{"$f":"SUMPRODUCT(('Fixed assets'!$R$2:$R$1000)*('Fixed assets'!$P$2:$P$1000<$A629)*('Fixed assets'!$Q$2:$Q$1000=Costs!J$617))-SUMPRODUCT(('Fixed assets'!$S$2:$S$1000)*('Fixed assets'!$P$2:$P$1000<Costs!$A629)*('Fixed assets'!$Q$2:$Q$1000=Costs!J$617))-SUMPRODUCT(('Fixed assets'!$Q$2:$Q$1000=Costs!J$617)*('Fixed assets'!$U$2:$U$1000=Costs!$A629)*('Fixed assets'!$S$2:$S$1000))+SUMPRODUCT(('Fixed assets'!$Q$2:$Q$1000=Costs!J$617)*('Fixed assets'!$P$2:$P$1000=Costs!$A629)*('Fixed assets'!$U$2:$U$1000=Costs!$A629)*('Fixed assets'!$R$2:$R$1000))","v":0},{"$f":"SUMPRODUCT(('Fixed assets'!$R$2:$R$1000)*('Fixed assets'!$P$2:$P$1000<$A629)*('Fixed assets'!$Q$2:$Q$1000=Costs!K$617))-SUMPRODUCT(('Fixed assets'!$S$2:$S$1000)*('Fixed assets'!$P$2:$P$1000<Costs!$A629)*('Fixed assets'!$Q$2:$Q$1000=Costs!K$617))-SUMPRODUCT(('Fixed assets'!$Q$2:$Q$1000=Costs!K$617)*('Fixed assets'!$U$2:$U$1000=Costs!$A629)*('Fixed assets'!$S$2:$S$1000))+SUMPRODUCT(('Fixed assets'!$Q$2:$Q$1000=Costs!K$617)*('Fixed assets'!$P$2:$P$1000=Costs!$A629)*('Fixed assets'!$U$2:$U$1000=Costs!$A629)*('Fixed assets'!$R$2:$R$1000))","v":0},{"$f":"SUMPRODUCT(('Fixed assets'!$R$2:$R$1000)*('Fixed assets'!$P$2:$P$1000<$A629)*('Fixed assets'!$Q$2:$Q$1000=Costs!L$617))-SUMPRODUCT(('Fixed assets'!$S$2:$S$1000)*('Fixed assets'!$P$2:$P$1000<Costs!$A629)*('Fixed assets'!$Q$2:$Q$1000=Costs!L$617))-SUMPRODUCT(('Fixed assets'!$Q$2:$Q$1000=Costs!L$617)*('Fixed assets'!$U$2:$U$1000=Costs!$A629)*('Fixed assets'!$S$2:$S$1000))+SUMPRODUCT(('Fixed assets'!$Q$2:$Q$1000=Costs!L$617)*('Fixed assets'!$P$2:$P$1000=Costs!$A629)*('Fixed assets'!$U$2:$U$1000=Costs!$A629)*('Fixed assets'!$R$2:$R$1000))","v":0},{"$f":"SUMPRODUCT(('Fixed assets'!$R$2:$R$1000)*('Fixed assets'!$P$2:$P$1000<$A629)*('Fixed assets'!$Q$2:$Q$1000=Costs!M$617))-SUMPRODUCT(('Fixed assets'!$S$2:$S$1000)*('Fixed assets'!$P$2:$P$1000<Costs!$A629)*('Fixed assets'!$Q$2:$Q$1000=Costs!M$617))-SUMPRODUCT(('Fixed assets'!$Q$2:$Q$1000=Costs!M$617)*('Fixed assets'!$U$2:$U$1000=Costs!$A629)*('Fixed assets'!$S$2:$S$1000))+SUMPRODUCT(('Fixed assets'!$Q$2:$Q$1000=Costs!M$617)*('Fixed assets'!$P$2:$P$1000=Costs!$A629)*('Fixed assets'!$U$2:$U$1000=Costs!$A629)*('Fixed assets'!$R$2:$R$1000))","v":0},{"$f":"SUMPRODUCT(('Fixed assets'!$R$2:$R$1000)*('Fixed assets'!$P$2:$P$1000<$A629)*('Fixed assets'!$Q$2:$Q$1000=Costs!N$617))-SUMPRODUCT(('Fixed assets'!$S$2:$S$1000)*('Fixed assets'!$P$2:$P$1000<Costs!$A629)*('Fixed assets'!$Q$2:$Q$1000=Costs!N$617))-SUMPRODUCT(('Fixed assets'!$Q$2:$Q$1000=Costs!N$617)*('Fixed assets'!$U$2:$U$1000=Costs!$A629)*('Fixed assets'!$S$2:$S$1000))+SUMPRODUCT(('Fixed assets'!$Q$2:$Q$1000=Costs!N$617)*('Fixed assets'!$P$2:$P$1000=Costs!$A629)*('Fixed assets'!$U$2:$U$1000=Costs!$A629)*('Fixed assets'!$R$2:$R$1000))","v":0},{"$f":"SUMPRODUCT(('Fixed assets'!$R$2:$R$1000)*('Fixed assets'!$P$2:$P$1000<$A629)*('Fixed assets'!$Q$2:$Q$1000=Costs!O$617))-SUMPRODUCT(('Fixed assets'!$S$2:$S$1000)*('Fixed assets'!$P$2:$P$1000<Costs!$A629)*('Fixed assets'!$Q$2:$Q$1000=Costs!O$617))-SUMPRODUCT(('Fixed assets'!$Q$2:$Q$1000=Costs!O$617)*('Fixed assets'!$U$2:$U$1000=Costs!$A629)*('Fixed assets'!$S$2:$S$1000))+SUMPRODUCT(('Fixed assets'!$Q$2:$Q$1000=Costs!O$617)*('Fixed assets'!$P$2:$P$1000=Costs!$A629)*('Fixed assets'!$U$2:$U$1000=Costs!$A629)*('Fixed assets'!$R$2:$R$1000))","v":0},{"$f":"SUMPRODUCT(('Fixed assets'!$R$2:$R$1000)*('Fixed assets'!$P$2:$P$1000<$A629)*('Fixed assets'!$Q$2:$Q$1000=Costs!P$617))-SUMPRODUCT(('Fixed assets'!$S$2:$S$1000)*('Fixed assets'!$P$2:$P$1000<Costs!$A629)*('Fixed assets'!$Q$2:$Q$1000=Costs!P$617))-SUMPRODUCT(('Fixed assets'!$Q$2:$Q$1000=Costs!P$617)*('Fixed assets'!$U$2:$U$1000=Costs!$A629)*('Fixed assets'!$S$2:$S$1000))+SUMPRODUCT(('Fixed assets'!$Q$2:$Q$1000=Costs!P$617)*('Fixed assets'!$P$2:$P$1000=Costs!$A629)*('Fixed assets'!$U$2:$U$1000=Costs!$A629)*('Fixed assets'!$R$2:$R$1000))","v":0},{"$f":"SUMPRODUCT(('Fixed assets'!$R$2:$R$1000)*('Fixed assets'!$P$2:$P$1000<$A629)*('Fixed assets'!$Q$2:$Q$1000=Costs!Q$617))-SUMPRODUCT(('Fixed assets'!$S$2:$S$1000)*('Fixed assets'!$P$2:$P$1000<Costs!$A629)*('Fixed assets'!$Q$2:$Q$1000=Costs!Q$617))-SUMPRODUCT(('Fixed assets'!$Q$2:$Q$1000=Costs!Q$617)*('Fixed assets'!$U$2:$U$1000=Costs!$A629)*('Fixed assets'!$S$2:$S$1000))+SUMPRODUCT(('Fixed assets'!$Q$2:$Q$1000=Costs!Q$617)*('Fixed assets'!$P$2:$P$1000=Costs!$A629)*('Fixed assets'!$U$2:$U$1000=Costs!$A629)*('Fixed assets'!$R$2:$R$1000))","v":0},{"$f":"SUMPRODUCT(('Fixed assets'!$R$2:$R$1000)*('Fixed assets'!$P$2:$P$1000<$A629)*('Fixed assets'!$Q$2:$Q$1000=Costs!R$617))-SUMPRODUCT(('Fixed assets'!$S$2:$S$1000)*('Fixed assets'!$P$2:$P$1000<Costs!$A629)*('Fixed assets'!$Q$2:$Q$1000=Costs!R$617))-SUMPRODUCT(('Fixed assets'!$Q$2:$Q$1000=Costs!R$617)*('Fixed assets'!$U$2:$U$1000=Costs!$A629)*('Fixed assets'!$S$2:$S$1000))+SUMPRODUCT(('Fixed assets'!$Q$2:$Q$1000=Costs!R$617)*('Fixed assets'!$P$2:$P$1000=Costs!$A629)*('Fixed assets'!$U$2:$U$1000=Costs!$A629)*('Fixed assets'!$R$2:$R$1000))","v":0},{"$f":"SUMPRODUCT(('Fixed assets'!$R$2:$R$1000)*('Fixed assets'!$P$2:$P$1000<$A629)*('Fixed assets'!$Q$2:$Q$1000=Costs!S$617))-SUMPRODUCT(('Fixed assets'!$S$2:$S$1000)*('Fixed assets'!$P$2:$P$1000<Costs!$A629)*('Fixed assets'!$Q$2:$Q$1000=Costs!S$617))-SUMPRODUCT(('Fixed assets'!$Q$2:$Q$1000=Costs!S$617)*('Fixed assets'!$U$2:$U$1000=Costs!$A629)*('Fixed assets'!$S$2:$S$1000))+SUMPRODUCT(('Fixed assets'!$Q$2:$Q$1000=Costs!S$617)*('Fixed assets'!$P$2:$P$1000=Costs!$A629)*('Fixed assets'!$U$2:$U$1000=Costs!$A629)*('Fixed assets'!$R$2:$R$1000))","v":0},{"$f":"SUMPRODUCT(('Fixed assets'!$R$2:$R$1000)*('Fixed assets'!$P$2:$P$1000<$A629)*('Fixed assets'!$Q$2:$Q$1000=Costs!T$617))-SUMPRODUCT(('Fixed assets'!$S$2:$S$1000)*('Fixed assets'!$P$2:$P$1000<Costs!$A629)*('Fixed assets'!$Q$2:$Q$1000=Costs!T$617))-SUMPRODUCT(('Fixed assets'!$Q$2:$Q$1000=Costs!T$617)*('Fixed assets'!$U$2:$U$1000=Costs!$A629)*('Fixed assets'!$S$2:$S$1000))+SUMPRODUCT(('Fixed assets'!$Q$2:$Q$1000=Costs!T$617)*('Fixed assets'!$P$2:$P$1000=Costs!$A629)*('Fixed assets'!$U$2:$U$1000=Costs!$A629)*('Fixed assets'!$R$2:$R$1000))","v":0},{"$f":"SUMPRODUCT(('Fixed assets'!$R$2:$R$1000)*('Fixed assets'!$P$2:$P$1000<$A629)*('Fixed assets'!$Q$2:$Q$1000=Costs!U$617))-SUMPRODUCT(('Fixed assets'!$S$2:$S$1000)*('Fixed assets'!$P$2:$P$1000<Costs!$A629)*('Fixed assets'!$Q$2:$Q$1000=Costs!U$617))-SUMPRODUCT(('Fixed assets'!$Q$2:$Q$1000=Costs!U$617)*('Fixed assets'!$U$2:$U$1000=Costs!$A629)*('Fixed assets'!$S$2:$S$1000))+SUMPRODUCT(('Fixed assets'!$Q$2:$Q$1000=Costs!U$617)*('Fixed assets'!$P$2:$P$1000=Costs!$A629)*('Fixed assets'!$U$2:$U$1000=Costs!$A629)*('Fixed assets'!$R$2:$R$1000))","v":0},{"$f":"SUMPRODUCT(('Fixed assets'!$R$2:$R$1000)*('Fixed assets'!$P$2:$P$1000<$A629)*('Fixed assets'!$Q$2:$Q$1000=Costs!V$617))-SUMPRODUCT(('Fixed assets'!$S$2:$S$1000)*('Fixed assets'!$P$2:$P$1000<Costs!$A629)*('Fixed assets'!$Q$2:$Q$1000=Costs!V$617))-SUMPRODUCT(('Fixed assets'!$Q$2:$Q$1000=Costs!V$617)*('Fixed assets'!$U$2:$U$1000=Costs!$A629)*('Fixed assets'!$S$2:$S$1000))+SUMPRODUCT(('Fixed assets'!$Q$2:$Q$1000=Costs!V$617)*('Fixed assets'!$P$2:$P$1000=Costs!$A629)*('Fixed assets'!$U$2:$U$1000=Costs!$A629)*('Fixed assets'!$R$2:$R$1000))","v":0},{"$f":"SUMPRODUCT(('Fixed assets'!$R$2:$R$1000)*('Fixed assets'!$P$2:$P$1000<$A629)*('Fixed assets'!$Q$2:$Q$1000=Costs!W$617))-SUMPRODUCT(('Fixed assets'!$S$2:$S$1000)*('Fixed assets'!$P$2:$P$1000<Costs!$A629)*('Fixed assets'!$Q$2:$Q$1000=Costs!W$617))-SUMPRODUCT(('Fixed assets'!$Q$2:$Q$1000=Costs!W$617)*('Fixed assets'!$U$2:$U$1000=Costs!$A629)*('Fixed assets'!$S$2:$S$1000))+SUMPRODUCT(('Fixed assets'!$Q$2:$Q$1000=Costs!W$617)*('Fixed assets'!$P$2:$P$1000=Costs!$A629)*('Fixed assets'!$U$2:$U$1000=Costs!$A629)*('Fixed assets'!$R$2:$R$1000))","v":0},{"$f":"SUMPRODUCT(('Fixed assets'!$R$2:$R$1000)*('Fixed assets'!$P$2:$P$1000<$A629)*('Fixed assets'!$Q$2:$Q$1000=Costs!X$617))-SUMPRODUCT(('Fixed assets'!$S$2:$S$1000)*('Fixed assets'!$P$2:$P$1000<Costs!$A629)*('Fixed assets'!$Q$2:$Q$1000=Costs!X$617))-SUMPRODUCT(('Fixed assets'!$Q$2:$Q$1000=Costs!X$617)*('Fixed assets'!$U$2:$U$1000=Costs!$A629)*('Fixed assets'!$S$2:$S$1000))+SUMPRODUCT(('Fixed assets'!$Q$2:$Q$1000=Costs!X$617)*('Fixed assets'!$P$2:$P$1000=Costs!$A629)*('Fixed assets'!$U$2:$U$1000=Costs!$A629)*('Fixed assets'!$R$2:$R$1000))","v":0},{"$f":"SUMPRODUCT(('Fixed assets'!$R$2:$R$1000)*('Fixed assets'!$P$2:$P$1000<$A629)*('Fixed assets'!$Q$2:$Q$1000=Costs!Y$617))-SUMPRODUCT(('Fixed assets'!$S$2:$S$1000)*('Fixed assets'!$P$2:$P$1000<Costs!$A629)*('Fixed assets'!$Q$2:$Q$1000=Costs!Y$617))-SUMPRODUCT(('Fixed assets'!$Q$2:$Q$1000=Costs!Y$617)*('Fixed assets'!$U$2:$U$1000=Costs!$A629)*('Fixed assets'!$S$2:$S$1000))+SUMPRODUCT(('Fixed assets'!$Q$2:$Q$1000=Costs!Y$617)*('Fixed assets'!$P$2:$P$1000=Costs!$A629)*('Fixed assets'!$U$2:$U$1000=Costs!$A629)*('Fixed assets'!$R$2:$R$1000))","v":0},{"$f":"SUMPRODUCT(('Fixed assets'!$R$2:$R$1000)*('Fixed assets'!$P$2:$P$1000<$A629)*('Fixed assets'!$Q$2:$Q$1000=Costs!Z$617))-SUMPRODUCT(('Fixed assets'!$S$2:$S$1000)*('Fixed assets'!$P$2:$P$1000<Costs!$A629)*('Fixed assets'!$Q$2:$Q$1000=Costs!Z$617))-SUMPRODUCT(('Fixed assets'!$Q$2:$Q$1000=Costs!Z$617)*('Fixed assets'!$U$2:$U$1000=Costs!$A629)*('Fixed assets'!$S$2:$S$1000))+SUMPRODUCT(('Fixed assets'!$Q$2:$Q$1000=Costs!Z$617)*('Fixed assets'!$P$2:$P$1000=Costs!$A629)*('Fixed assets'!$U$2:$U$1000=Costs!$A629)*('Fixed assets'!$R$2:$R$1000))","v":0},{"$f":"SUMPRODUCT(('Fixed assets'!$R$2:$R$1000)*('Fixed assets'!$P$2:$P$1000<$A629)*('Fixed assets'!$Q$2:$Q$1000=Costs!AA$617))-SUMPRODUCT(('Fixed assets'!$S$2:$S$1000)*('Fixed assets'!$P$2:$P$1000<Costs!$A629)*('Fixed assets'!$Q$2:$Q$1000=Costs!AA$617))-SUMPRODUCT(('Fixed assets'!$Q$2:$Q$1000=Costs!AA$617)*('Fixed assets'!$U$2:$U$1000=Costs!$A629)*('Fixed assets'!$S$2:$S$1000))+SUMPRODUCT(('Fixed assets'!$Q$2:$Q$1000=Costs!AA$617)*('Fixed assets'!$P$2:$P$1000=Costs!$A629)*('Fixed assets'!$U$2:$U$1000=Costs!$A629)*('Fixed assets'!$R$2:$R$1000))","v":0},{"$f":"SUMPRODUCT(('Fixed assets'!$R$2:$R$1000)*('Fixed assets'!$P$2:$P$1000<$A629)*('Fixed assets'!$Q$2:$Q$1000=Costs!AB$617))-SUMPRODUCT(('Fixed assets'!$S$2:$S$1000)*('Fixed assets'!$P$2:$P$1000<Costs!$A629)*('Fixed assets'!$Q$2:$Q$1000=Costs!AB$617))-SUMPRODUCT(('Fixed assets'!$Q$2:$Q$1000=Costs!AB$617)*('Fixed assets'!$U$2:$U$1000=Costs!$A629)*('Fixed assets'!$S$2:$S$1000))+SUMPRODUCT(('Fixed assets'!$Q$2:$Q$1000=Costs!AB$617)*('Fixed assets'!$P$2:$P$1000=Costs!$A629)*('Fixed assets'!$U$2:$U$1000=Costs!$A629)*('Fixed assets'!$R$2:$R$1000))","v":0},{"$f":"SUMPRODUCT(('Fixed assets'!$R$2:$R$1000)*('Fixed assets'!$P$2:$P$1000<$A629)*('Fixed assets'!$Q$2:$Q$1000=Costs!AC$617))-SUMPRODUCT(('Fixed assets'!$S$2:$S$1000)*('Fixed assets'!$P$2:$P$1000<Costs!$A629)*('Fixed assets'!$Q$2:$Q$1000=Costs!AC$617))-SUMPRODUCT(('Fixed assets'!$Q$2:$Q$1000=Costs!AC$617)*('Fixed assets'!$U$2:$U$1000=Costs!$A629)*('Fixed assets'!$S$2:$S$1000))+SUMPRODUCT(('Fixed assets'!$Q$2:$Q$1000=Costs!AC$617)*('Fixed assets'!$P$2:$P$1000=Costs!$A629)*('Fixed assets'!$U$2:$U$1000=Costs!$A629)*('Fixed assets'!$R$2:$R$1000))","v":0},{"$f":"SUMPRODUCT(('Fixed assets'!$R$2:$R$1000)*('Fixed assets'!$P$2:$P$1000<$A629)*('Fixed assets'!$Q$2:$Q$1000=Costs!AD$617))-SUMPRODUCT(('Fixed assets'!$S$2:$S$1000)*('Fixed assets'!$P$2:$P$1000<Costs!$A629)*('Fixed assets'!$Q$2:$Q$1000=Costs!AD$617))-SUMPRODUCT(('Fixed assets'!$Q$2:$Q$1000=Costs!AD$617)*('Fixed assets'!$U$2:$U$1000=Costs!$A629)*('Fixed assets'!$S$2:$S$1000))+SUMPRODUCT(('Fixed assets'!$Q$2:$Q$1000=Costs!AD$617)*('Fixed assets'!$P$2:$P$1000=Costs!$A629)*('Fixed assets'!$U$2:$U$1000=Costs!$A629)*('Fixed assets'!$R$2:$R$1000))","v":0},{"$f":"SUMPRODUCT(('Fixed assets'!$R$2:$R$1000)*('Fixed assets'!$P$2:$P$1000<$A629)*('Fixed assets'!$Q$2:$Q$1000=Costs!AE$617))-SUMPRODUCT(('Fixed assets'!$S$2:$S$1000)*('Fixed assets'!$P$2:$P$1000<Costs!$A629)*('Fixed assets'!$Q$2:$Q$1000=Costs!AE$617))-SUMPRODUCT(('Fixed assets'!$Q$2:$Q$1000=Costs!AE$617)*('Fixed assets'!$U$2:$U$1000=Costs!$A629)*('Fixed assets'!$S$2:$S$1000))+SUMPRODUCT(('Fixed assets'!$Q$2:$Q$1000=Costs!AE$617)*('Fixed assets'!$P$2:$P$1000=Costs!$A629)*('Fixed assets'!$U$2:$U$1000=Costs!$A629)*('Fixed assets'!$R$2:$R$1000))","v":0},{"$f":"SUMPRODUCT(('Fixed assets'!$R$2:$R$1000)*('Fixed assets'!$P$2:$P$1000<$A629)*('Fixed assets'!$Q$2:$Q$1000=Costs!AF$617))-SUMPRODUCT(('Fixed assets'!$S$2:$S$1000)*('Fixed assets'!$P$2:$P$1000<Costs!$A629)*('Fixed assets'!$Q$2:$Q$1000=Costs!AF$617))-SUMPRODUCT(('Fixed assets'!$Q$2:$Q$1000=Costs!AF$617)*('Fixed assets'!$U$2:$U$1000=Costs!$A629)*('Fixed assets'!$S$2:$S$1000))+SUMPRODUCT(('Fixed assets'!$Q$2:$Q$1000=Costs!AF$617)*('Fixed assets'!$P$2:$P$1000=Costs!$A629)*('Fixed assets'!$U$2:$U$1000=Costs!$A629)*('Fixed assets'!$R$2:$R$1000))","v":0},{"$f":"SUMPRODUCT(('Fixed assets'!$R$2:$R$1000)*('Fixed assets'!$P$2:$P$1000<$A629)*('Fixed assets'!$Q$2:$Q$1000=Costs!AG$617))-SUMPRODUCT(('Fixed assets'!$S$2:$S$1000)*('Fixed assets'!$P$2:$P$1000<Costs!$A629)*('Fixed assets'!$Q$2:$Q$1000=Costs!AG$617))-SUMPRODUCT(('Fixed assets'!$Q$2:$Q$1000=Costs!AG$617)*('Fixed assets'!$U$2:$U$1000=Costs!$A629)*('Fixed assets'!$S$2:$S$1000))+SUMPRODUCT(('Fixed assets'!$Q$2:$Q$1000=Costs!AG$617)*('Fixed assets'!$P$2:$P$1000=Costs!$A629)*('Fixed assets'!$U$2:$U$1000=Costs!$A629)*('Fixed assets'!$R$2:$R$1000))","v":0},{"$f":"SUMPRODUCT(('Fixed assets'!$R$2:$R$1000)*('Fixed assets'!$P$2:$P$1000<$A629)*('Fixed assets'!$Q$2:$Q$1000=Costs!AH$617))-SUMPRODUCT(('Fixed assets'!$S$2:$S$1000)*('Fixed assets'!$P$2:$P$1000<Costs!$A629)*('Fixed assets'!$Q$2:$Q$1000=Costs!AH$617))-SUMPRODUCT(('Fixed assets'!$Q$2:$Q$1000=Costs!AH$617)*('Fixed assets'!$U$2:$U$1000=Costs!$A629)*('Fixed assets'!$S$2:$S$1000))+SUMPRODUCT(('Fixed assets'!$Q$2:$Q$1000=Costs!AH$617)*('Fixed assets'!$P$2:$P$1000=Costs!$A629)*('Fixed assets'!$U$2:$U$1000=Costs!$A629)*('Fixed assets'!$R$2:$R$1000))","v":0},{"$f":"SUMPRODUCT(('Fixed assets'!$R$2:$R$1000)*('Fixed assets'!$P$2:$P$1000<$A629)*('Fixed assets'!$Q$2:$Q$1000=Costs!AI$617))-SUMPRODUCT(('Fixed assets'!$S$2:$S$1000)*('Fixed assets'!$P$2:$P$1000<Costs!$A629)*('Fixed assets'!$Q$2:$Q$1000=Costs!AI$617))-SUMPRODUCT(('Fixed assets'!$Q$2:$Q$1000=Costs!AI$617)*('Fixed assets'!$U$2:$U$1000=Costs!$A629)*('Fixed assets'!$S$2:$S$1000))+SUMPRODUCT(('Fixed assets'!$Q$2:$Q$1000=Costs!AI$617)*('Fixed assets'!$P$2:$P$1000=Costs!$A629)*('Fixed assets'!$U$2:$U$1000=Costs!$A629)*('Fixed assets'!$R$2:$R$1000))","v":0},{"$f":"SUMPRODUCT(('Fixed assets'!$R$2:$R$1000)*('Fixed assets'!$P$2:$P$1000<$A629)*('Fixed assets'!$Q$2:$Q$1000=Costs!AJ$617))-SUMPRODUCT(('Fixed assets'!$S$2:$S$1000)*('Fixed assets'!$P$2:$P$1000<Costs!$A629)*('Fixed assets'!$Q$2:$Q$1000=Costs!AJ$617))-SUMPRODUCT(('Fixed assets'!$Q$2:$Q$1000=Costs!AJ$617)*('Fixed assets'!$U$2:$U$1000=Costs!$A629)*('Fixed assets'!$S$2:$S$1000))+SUMPRODUCT(('Fixed assets'!$Q$2:$Q$1000=Costs!AJ$617)*('Fixed assets'!$P$2:$P$1000=Costs!$A629)*('Fixed assets'!$U$2:$U$1000=Costs!$A629)*('Fixed assets'!$R$2:$R$1000))","v":0},{"$f":"SUMPRODUCT(('Fixed assets'!$R$2:$R$1000)*('Fixed assets'!$P$2:$P$1000<$A629)*('Fixed assets'!$Q$2:$Q$1000=Costs!AK$617))-SUMPRODUCT(('Fixed assets'!$S$2:$S$1000)*('Fixed assets'!$P$2:$P$1000<Costs!$A629)*('Fixed assets'!$Q$2:$Q$1000=Costs!AK$617))-SUMPRODUCT(('Fixed assets'!$Q$2:$Q$1000=Costs!AK$617)*('Fixed assets'!$U$2:$U$1000=Costs!$A629)*('Fixed assets'!$S$2:$S$1000))+SUMPRODUCT(('Fixed assets'!$Q$2:$Q$1000=Costs!AK$617)*('Fixed assets'!$P$2:$P$1000=Costs!$A629)*('Fixed assets'!$U$2:$U$1000=Costs!$A629)*('Fixed assets'!$R$2:$R$1000))","v":0},{"$f":"SUMPRODUCT(('Fixed assets'!$R$2:$R$1000)*('Fixed assets'!$P$2:$P$1000<$A629)*('Fixed assets'!$Q$2:$Q$1000=Costs!AL$617))-SUMPRODUCT(('Fixed assets'!$S$2:$S$1000)*('Fixed assets'!$P$2:$P$1000<Costs!$A629)*('Fixed assets'!$Q$2:$Q$1000=Costs!AL$617))-SUMPRODUCT(('Fixed assets'!$Q$2:$Q$1000=Costs!AL$617)*('Fixed assets'!$U$2:$U$1000=Costs!$A629)*('Fixed assets'!$S$2:$S$1000))+SUMPRODUCT(('Fixed assets'!$Q$2:$Q$1000=Costs!AL$617)*('Fixed assets'!$P$2:$P$1000=Costs!$A629)*('Fixed assets'!$U$2:$U$1000=Costs!$A629)*('Fixed assets'!$R$2:$R$1000))","v":0},{"$f":"SUMPRODUCT(('Fixed assets'!$R$2:$R$1000)*('Fixed assets'!$P$2:$P$1000<$A629)*('Fixed assets'!$Q$2:$Q$1000=Costs!AM$617))-SUMPRODUCT(('Fixed assets'!$S$2:$S$1000)*('Fixed assets'!$P$2:$P$1000<Costs!$A629)*('Fixed assets'!$Q$2:$Q$1000=Costs!AM$617))-SUMPRODUCT(('Fixed assets'!$Q$2:$Q$1000=Costs!AM$617)*('Fixed assets'!$U$2:$U$1000=Costs!$A629)*('Fixed assets'!$S$2:$S$1000))+SUMPRODUCT(('Fixed assets'!$Q$2:$Q$1000=Costs!AM$617)*('Fixed assets'!$P$2:$P$1000=Costs!$A629)*('Fixed assets'!$U$2:$U$1000=Costs!$A629)*('Fixed assets'!$R$2:$R$1000))","v":0},{"$f":"SUMPRODUCT(('Fixed assets'!$R$2:$R$1000)*('Fixed assets'!$P$2:$P$1000<$A629)*('Fixed assets'!$Q$2:$Q$1000=Costs!AN$617))-SUMPRODUCT(('Fixed assets'!$S$2:$S$1000)*('Fixed assets'!$P$2:$P$1000<Costs!$A629)*('Fixed assets'!$Q$2:$Q$1000=Costs!AN$617))-SUMPRODUCT(('Fixed assets'!$Q$2:$Q$1000=Costs!AN$617)*('Fixed assets'!$U$2:$U$1000=Costs!$A629)*('Fixed assets'!$S$2:$S$1000))+SUMPRODUCT(('Fixed assets'!$Q$2:$Q$1000=Costs!AN$617)*('Fixed assets'!$P$2:$P$1000=Costs!$A629)*('Fixed assets'!$U$2:$U$1000=Costs!$A629)*('Fixed assets'!$R$2:$R$1000))","v":0},{"$f":"SUMPRODUCT(('Fixed assets'!$R$2:$R$1000)*('Fixed assets'!$P$2:$P$1000<$A629)*('Fixed assets'!$Q$2:$Q$1000=Costs!AO$617))-SUMPRODUCT(('Fixed assets'!$S$2:$S$1000)*('Fixed assets'!$P$2:$P$1000<Costs!$A629)*('Fixed assets'!$Q$2:$Q$1000=Costs!AO$617))-SUMPRODUCT(('Fixed assets'!$Q$2:$Q$1000=Costs!AO$617)*('Fixed assets'!$U$2:$U$1000=Costs!$A629)*('Fixed assets'!$S$2:$S$1000))+SUMPRODUCT(('Fixed assets'!$Q$2:$Q$1000=Costs!AO$617)*('Fixed assets'!$P$2:$P$1000=Costs!$A629)*('Fixed assets'!$U$2:$U$1000=Costs!$A629)*('Fixed assets'!$R$2:$R$1000))","v":0},{"$f":"SUMPRODUCT(('Fixed assets'!$R$2:$R$1000)*('Fixed assets'!$P$2:$P$1000<$A629)*('Fixed assets'!$Q$2:$Q$1000=Costs!AP$617))-SUMPRODUCT(('Fixed assets'!$S$2:$S$1000)*('Fixed assets'!$P$2:$P$1000<Costs!$A629)*('Fixed assets'!$Q$2:$Q$1000=Costs!AP$617))-SUMPRODUCT(('Fixed assets'!$Q$2:$Q$1000=Costs!AP$617)*('Fixed assets'!$U$2:$U$1000=Costs!$A629)*('Fixed assets'!$S$2:$S$1000))+SUMPRODUCT(('Fixed assets'!$Q$2:$Q$1000=Costs!AP$617)*('Fixed assets'!$P$2:$P$1000=Costs!$A629)*('Fixed assets'!$U$2:$U$1000=Costs!$A629)*('Fixed assets'!$R$2:$R$1000))","v":0},{"$f":"SUMPRODUCT(('Fixed assets'!$R$2:$R$1000)*('Fixed assets'!$P$2:$P$1000<$A629)*('Fixed assets'!$Q$2:$Q$1000=Costs!AQ$617))-SUMPRODUCT(('Fixed assets'!$S$2:$S$1000)*('Fixed assets'!$P$2:$P$1000<Costs!$A629)*('Fixed assets'!$Q$2:$Q$1000=Costs!AQ$617))-SUMPRODUCT(('Fixed assets'!$Q$2:$Q$1000=Costs!AQ$617)*('Fixed assets'!$U$2:$U$1000=Costs!$A629)*('Fixed assets'!$S$2:$S$1000))+SUMPRODUCT(('Fixed assets'!$Q$2:$Q$1000=Costs!AQ$617)*('Fixed assets'!$P$2:$P$1000=Costs!$A629)*('Fixed assets'!$U$2:$U$1000=Costs!$A629)*('Fixed assets'!$R$2:$R$1000))","v":0}]
[2027,0,{"$f":"SUMPRODUCT(('Fixed assets'!$R$2:$R$1000)*('Fixed assets'!$P$2:$P$1000<$A630)*('Fixed assets'!$Q$2:$Q$1000=Costs!C$617))-SUMPRODUCT(('Fixed assets'!$S$2:$S$1000)*('Fixed assets'!$P$2:$P$1000<Costs!$A630)*('Fixed assets'!$Q$2:$Q$1000=Costs!C$617))-SUMPRODUCT(('Fixed assets'!$Q$2:$Q$1000=Costs!C$617)*('Fixed assets'!$U$2:$U$1000=Costs!$A630)*('Fixed assets'!$S$2:$S$1000))+SUMPRODUCT(('Fixed assets'!$Q$2:$Q$1000=Costs!C$617)*('Fixed assets'!$P$2:$P$1000=Costs!$A630)*('Fixed assets'!$U$2:$U$1000=Costs!$A630)*('Fixed assets'!$R$2:$R$1000))","v":0},{"$f":"SUMPRODUCT(('Fixed assets'!$R$2:$R$1000)*('Fixed assets'!$P$2:$P$1000<$A630)*('Fixed assets'!$Q$2:$Q$1000=Costs!D$617))-SUMPRODUCT(('Fixed assets'!$S$2:$S$1000)*('Fixed assets'!$P$2:$P$1000<Costs!$A630)*('Fixed assets'!$Q$2:$Q$1000=Costs!D$617))-SUMPRODUCT(('Fixed assets'!$Q$2:$Q$1000=Costs!D$617)*('Fixed assets'!$U$2:$U$1000=Costs!$A630)*('Fixed assets'!$S$2:$S$1000))+SUMPRODUCT(('Fixed assets'!$Q$2:$Q$1000=Costs!D$617)*('Fixed assets'!$P$2:$P$1000=Costs!$A630)*('Fixed assets'!$U$2:$U$1000=Costs!$A630)*('Fixed assets'!$R$2:$R$1000))","v":0},{"$f":"SUMPRODUCT(('Fixed assets'!$R$2:$R$1000)*('Fixed assets'!$P$2:$P$1000<$A630)*('Fixed assets'!$Q$2:$Q$1000=Costs!E$617))-SUMPRODUCT(('Fixed assets'!$S$2:$S$1000)*('Fixed assets'!$P$2:$P$1000<Costs!$A630)*('Fixed assets'!$Q$2:$Q$1000=Costs!E$617))-SUMPRODUCT(('Fixed assets'!$Q$2:$Q$1000=Costs!E$617)*('Fixed assets'!$U$2:$U$1000=Costs!$A630)*('Fixed assets'!$S$2:$S$1000))+SUMPRODUCT(('Fixed assets'!$Q$2:$Q$1000=Costs!E$617)*('Fixed assets'!$P$2:$P$1000=Costs!$A630)*('Fixed assets'!$U$2:$U$1000=Costs!$A630)*('Fixed assets'!$R$2:$R$1000))","v":0},{"$f":"SUMPRODUCT(('Fixed assets'!$R$2:$R$1000)*('Fixed assets'!$P$2:$P$1000<$A630)*('Fixed assets'!$Q$2:$Q$1000=Costs!F$617))-SUMPRODUCT(('Fixed assets'!$S$2:$S$1000)*('Fixed assets'!$P$2:$P$1000<Costs!$A630)*('Fixed assets'!$Q$2:$Q$1000=Costs!F$617))-SUMPRODUCT(('Fixed assets'!$Q$2:$Q$1000=Costs!F$617)*('Fixed assets'!$U$2:$U$1000=Costs!$A630)*('Fixed assets'!$S$2:$S$1000))+SUMPRODUCT(('Fixed assets'!$Q$2:$Q$1000=Costs!F$617)*('Fixed assets'!$P$2:$P$1000=Costs!$A630)*('Fixed assets'!$U$2:$U$1000=Costs!$A630)*('Fixed assets'!$R$2:$R$1000))","v":0},{"$f":"SUMPRODUCT(('Fixed assets'!$R$2:$R$1000)*('Fixed assets'!$P$2:$P$1000<$A630)*('Fixed assets'!$Q$2:$Q$1000=Costs!G$617))-SUMPRODUCT(('Fixed assets'!$S$2:$S$1000)*('Fixed assets'!$P$2:$P$1000<Costs!$A630)*('Fixed assets'!$Q$2:$Q$1000=Costs!G$617))-SUMPRODUCT(('Fixed assets'!$Q$2:$Q$1000=Costs!G$617)*('Fixed assets'!$U$2:$U$1000=Costs!$A630)*('Fixed assets'!$S$2:$S$1000))+SUMPRODUCT(('Fixed assets'!$Q$2:$Q$1000=Costs!G$617)*('Fixed assets'!$P$2:$P$1000=Costs!$A630)*('Fixed assets'!$U$2:$U$1000=Costs!$A630)*('Fixed assets'!$R$2:$R$1000))","v":0},{"$f":"SUMPRODUCT(('Fixed assets'!$R$2:$R$1000)*('Fixed assets'!$P$2:$P$1000<$A630)*('Fixed assets'!$Q$2:$Q$1000=Costs!H$617))-SUMPRODUCT(('Fixed assets'!$S$2:$S$1000)*('Fixed assets'!$P$2:$P$1000<Costs!$A630)*('Fixed assets'!$Q$2:$Q$1000=Costs!H$617))-SUMPRODUCT(('Fixed assets'!$Q$2:$Q$1000=Costs!H$617)*('Fixed assets'!$U$2:$U$1000=Costs!$A630)*('Fixed assets'!$S$2:$S$1000))+SUMPRODUCT(('Fixed assets'!$Q$2:$Q$1000=Costs!H$617)*('Fixed assets'!$P$2:$P$1000=Costs!$A630)*('Fixed assets'!$U$2:$U$1000=Costs!$A630)*('Fixed assets'!$R$2:$R$1000))","v":0},{"$f":"SUMPRODUCT(('Fixed assets'!$R$2:$R$1000)*('Fixed assets'!$P$2:$P$1000<$A630)*('Fixed assets'!$Q$2:$Q$1000=Costs!I$617))-SUMPRODUCT(('Fixed assets'!$S$2:$S$1000)*('Fixed assets'!$P$2:$P$1000<Costs!$A630)*('Fixed assets'!$Q$2:$Q$1000=Costs!I$617))-SUMPRODUCT(('Fixed assets'!$Q$2:$Q$1000=Costs!I$617)*('Fixed assets'!$U$2:$U$1000=Costs!$A630)*('Fixed assets'!$S$2:$S$1000))+SUMPRODUCT(('Fixed assets'!$Q$2:$Q$1000=Costs!I$617)*('Fixed assets'!$P$2:$P$1000=Costs!$A630)*('Fixed assets'!$U$2:$U$1000=Costs!$A630)*('Fixed assets'!$R$2:$R$1000))","v":0},{"$f":"SUMPRODUCT(('Fixed assets'!$R$2:$R$1000)*('Fixed assets'!$P$2:$P$1000<$A630)*('Fixed assets'!$Q$2:$Q$1000=Costs!J$617))-SUMPRODUCT(('Fixed assets'!$S$2:$S$1000)*('Fixed assets'!$P$2:$P$1000<Costs!$A630)*('Fixed assets'!$Q$2:$Q$1000=Costs!J$617))-SUMPRODUCT(('Fixed assets'!$Q$2:$Q$1000=Costs!J$617)*('Fixed assets'!$U$2:$U$1000=Costs!$A630)*('Fixed assets'!$S$2:$S$1000))+SUMPRODUCT(('Fixed assets'!$Q$2:$Q$1000=Costs!J$617)*('Fixed assets'!$P$2:$P$1000=Costs!$A630)*('Fixed assets'!$U$2:$U$1000=Costs!$A630)*('Fixed assets'!$R$2:$R$1000))","v":0},{"$f":"SUMPRODUCT(('Fixed assets'!$R$2:$R$1000)*('Fixed assets'!$P$2:$P$1000<$A630)*('Fixed assets'!$Q$2:$Q$1000=Costs!K$617))-SUMPRODUCT(('Fixed assets'!$S$2:$S$1000)*('Fixed assets'!$P$2:$P$1000<Costs!$A630)*('Fixed assets'!$Q$2:$Q$1000=Costs!K$617))-SUMPRODUCT(('Fixed assets'!$Q$2:$Q$1000=Costs!K$617)*('Fixed assets'!$U$2:$U$1000=Costs!$A630)*('Fixed assets'!$S$2:$S$1000))+SUMPRODUCT(('Fixed assets'!$Q$2:$Q$1000=Costs!K$617)*('Fixed assets'!$P$2:$P$1000=Costs!$A630)*('Fixed assets'!$U$2:$U$1000=Costs!$A630)*('Fixed assets'!$R$2:$R$1000))","v":0},{"$f":"SUMPRODUCT(('Fixed assets'!$R$2:$R$1000)*('Fixed assets'!$P$2:$P$1000<$A630)*('Fixed assets'!$Q$2:$Q$1000=Costs!L$617))-SUMPRODUCT(('Fixed assets'!$S$2:$S$1000)*('Fixed assets'!$P$2:$P$1000<Costs!$A630)*('Fixed assets'!$Q$2:$Q$1000=Costs!L$617))-SUMPRODUCT(('Fixed assets'!$Q$2:$Q$1000=Costs!L$617)*('Fixed assets'!$U$2:$U$1000=Costs!$A630)*('Fixed assets'!$S$2:$S$1000))+SUMPRODUCT(('Fixed assets'!$Q$2:$Q$1000=Costs!L$617)*('Fixed assets'!$P$2:$P$1000=Costs!$A630)*('Fixed assets'!$U$2:$U$1000=Costs!$A630)*('Fixed assets'!$R$2:$R$1000))","v":0},{"$f":"SUMPRODUCT(('Fixed assets'!$R$2:$R$1000)*('Fixed assets'!$P$2:$P$1000<$A630)*('Fixed assets'!$Q$2:$Q$1000=Costs!M$617))-SUMPRODUCT(('Fixed assets'!$S$2:$S$1000)*('Fixed assets'!$P$2:$P$1000<Costs!$A630)*('Fixed assets'!$Q$2:$Q$1000=Costs!M$617))-SUMPRODUCT(('Fixed assets'!$Q$2:$Q$1000=Costs!M$617)*('Fixed assets'!$U$2:$U$1000=Costs!$A630)*('Fixed assets'!$S$2:$S$1000))+SUMPRODUCT(('Fixed assets'!$Q$2:$Q$1000=Costs!M$617)*('Fixed assets'!$P$2:$P$1000=Costs!$A630)*('Fixed assets'!$U$2:$U$1000=Costs!$A630)*('Fixed assets'!$R$2:$R$1000))","v":0},{"$f":"SUMPRODUCT(('Fixed assets'!$R$2:$R$1000)*('Fixed assets'!$P$2:$P$1000<$A630)*('Fixed assets'!$Q$2:$Q$1000=Costs!N$617))-SUMPRODUCT(('Fixed assets'!$S$2:$S$1000)*('Fixed assets'!$P$2:$P$1000<Costs!$A630)*('Fixed assets'!$Q$2:$Q$1000=Costs!N$617))-SUMPRODUCT(('Fixed assets'!$Q$2:$Q$1000=Costs!N$617)*('Fixed assets'!$U$2:$U$1000=Costs!$A630)*('Fixed assets'!$S$2:$S$1000))+SUMPRODUCT(('Fixed assets'!$Q$2:$Q$1000=Costs!N$617)*('Fixed assets'!$P$2:$P$1000=Costs!$A630)*('Fixed assets'!$U$2:$U$1000=Costs!$A630)*('Fixed assets'!$R$2:$R$1000))","v":0},{"$f":"SUMPRODUCT(('Fixed assets'!$R$2:$R$1000)*('Fixed assets'!$P$2:$P$1000<$A630)*('Fixed assets'!$Q$2:$Q$1000=Costs!O$617))-SUMPRODUCT(('Fixed assets'!$S$2:$S$1000)*('Fixed assets'!$P$2:$P$1000<Costs!$A630)*('Fixed assets'!$Q$2:$Q$1000=Costs!O$617))-SUMPRODUCT(('Fixed assets'!$Q$2:$Q$1000=Costs!O$617)*('Fixed assets'!$U$2:$U$1000=Costs!$A630)*('Fixed assets'!$S$2:$S$1000))+SUMPRODUCT(('Fixed assets'!$Q$2:$Q$1000=Costs!O$617)*('Fixed assets'!$P$2:$P$1000=Costs!$A630)*('Fixed assets'!$U$2:$U$1000=Costs!$A630)*('Fixed assets'!$R$2:$R$1000))","v":0},{"$f":"SUMPRODUCT(('Fixed assets'!$R$2:$R$1000)*('Fixed assets'!$P$2:$P$1000<$A630)*('Fixed assets'!$Q$2:$Q$1000=Costs!P$617))-SUMPRODUCT(('Fixed assets'!$S$2:$S$1000)*('Fixed assets'!$P$2:$P$1000<Costs!$A630)*('Fixed assets'!$Q$2:$Q$1000=Costs!P$617))-SUMPRODUCT(('Fixed assets'!$Q$2:$Q$1000=Costs!P$617)*('Fixed assets'!$U$2:$U$1000=Costs!$A630)*('Fixed assets'!$S$2:$S$1000))+SUMPRODUCT(('Fixed assets'!$Q$2:$Q$1000=Costs!P$617)*('Fixed assets'!$P$2:$P$1000=Costs!$A630)*('Fixed assets'!$U$2:$U$1000=Costs!$A630)*('Fixed assets'!$R$2:$R$1000))","v":0},{"$f":"SUMPRODUCT(('Fixed assets'!$R$2:$R$1000)*('Fixed assets'!$P$2:$P$1000<$A630)*('Fixed assets'!$Q$2:$Q$1000=Costs!Q$617))-SUMPRODUCT(('Fixed assets'!$S$2:$S$1000)*('Fixed assets'!$P$2:$P$1000<Costs!$A630)*('Fixed assets'!$Q$2:$Q$1000=Costs!Q$617))-SUMPRODUCT(('Fixed assets'!$Q$2:$Q$1000=Costs!Q$617)*('Fixed assets'!$U$2:$U$1000=Costs!$A630)*('Fixed assets'!$S$2:$S$1000))+SUMPRODUCT(('Fixed assets'!$Q$2:$Q$1000=Costs!Q$617)*('Fixed assets'!$P$2:$P$1000=Costs!$A630)*('Fixed assets'!$U$2:$U$1000=Costs!$A630)*('Fixed assets'!$R$2:$R$1000))","v":0},{"$f":"SUMPRODUCT(('Fixed assets'!$R$2:$R$1000)*('Fixed assets'!$P$2:$P$1000<$A630)*('Fixed assets'!$Q$2:$Q$1000=Costs!R$617))-SUMPRODUCT(('Fixed assets'!$S$2:$S$1000)*('Fixed assets'!$P$2:$P$1000<Costs!$A630)*('Fixed assets'!$Q$2:$Q$1000=Costs!R$617))-SUMPRODUCT(('Fixed assets'!$Q$2:$Q$1000=Costs!R$617)*('Fixed assets'!$U$2:$U$1000=Costs!$A630)*('Fixed assets'!$S$2:$S$1000))+SUMPRODUCT(('Fixed assets'!$Q$2:$Q$1000=Costs!R$617)*('Fixed assets'!$P$2:$P$1000=Costs!$A630)*('Fixed assets'!$U$2:$U$1000=Costs!$A630)*('Fixed assets'!$R$2:$R$1000))","v":0},{"$f":"SUMPRODUCT(('Fixed assets'!$R$2:$R$1000)*('Fixed assets'!$P$2:$P$1000<$A630)*('Fixed assets'!$Q$2:$Q$1000=Costs!S$617))-SUMPRODUCT(('Fixed assets'!$S$2:$S$1000)*('Fixed assets'!$P$2:$P$1000<Costs!$A630)*('Fixed assets'!$Q$2:$Q$1000=Costs!S$617))-SUMPRODUCT(('Fixed assets'!$Q$2:$Q$1000=Costs!S$617)*('Fixed assets'!$U$2:$U$1000=Costs!$A630)*('Fixed assets'!$S$2:$S$1000))+SUMPRODUCT(('Fixed assets'!$Q$2:$Q$1000=Costs!S$617)*('Fixed assets'!$P$2:$P$1000=Costs!$A630)*('Fixed assets'!$U$2:$U$1000=Costs!$A630)*('Fixed assets'!$R$2:$R$1000))","v":0},{"$f":"SUMPRODUCT(('Fixed assets'!$R$2:$R$1000)*('Fixed assets'!$P$2:$P$1000<$A630)*('Fixed assets'!$Q$2:$Q$1000=Costs!T$617))-SUMPRODUCT(('Fixed assets'!$S$2:$S$1000)*('Fixed assets'!$P$2:$P$1000<Costs!$A630)*('Fixed assets'!$Q$2:$Q$1000=Costs!T$617))-SUMPRODUCT(('Fixed assets'!$Q$2:$Q$1000=Costs!T$617)*('Fixed assets'!$U$2:$U$1000=Costs!$A630)*('Fixed assets'!$S$2:$S$1000))+SUMPRODUCT(('Fixed assets'!$Q$2:$Q$1000=Costs!T$617)*('Fixed assets'!$P$2:$P$1000=Costs!$A630)*('Fixed assets'!$U$2:$U$1000=Costs!$A630)*('Fixed assets'!$R$2:$R$1000))","v":0},{"$f":"SUMPRODUCT(('Fixed assets'!$R$2:$R$1000)*('Fixed assets'!$P$2:$P$1000<$A630)*('Fixed assets'!$Q$2:$Q$1000=Costs!U$617))-SUMPRODUCT(('Fixed assets'!$S$2:$S$1000)*('Fixed assets'!$P$2:$P$1000<Costs!$A630)*('Fixed assets'!$Q$2:$Q$1000=Costs!U$617))-SUMPRODUCT(('Fixed assets'!$Q$2:$Q$1000=Costs!U$617)*('Fixed assets'!$U$2:$U$1000=Costs!$A630)*('Fixed assets'!$S$2:$S$1000))+SUMPRODUCT(('Fixed assets'!$Q$2:$Q$1000=Costs!U$617)*('Fixed assets'!$P$2:$P$1000=Costs!$A630)*('Fixed assets'!$U$2:$U$1000=Costs!$A630)*('Fixed assets'!$R$2:$R$1000))","v":0},{"$f":"SUMPRODUCT(('Fixed assets'!$R$2:$R$1000)*('Fixed assets'!$P$2:$P$1000<$A630)*('Fixed assets'!$Q$2:$Q$1000=Costs!V$617))-SUMPRODUCT(('Fixed assets'!$S$2:$S$1000)*('Fixed assets'!$P$2:$P$1000<Costs!$A630)*('Fixed assets'!$Q$2:$Q$1000=Costs!V$617))-SUMPRODUCT(('Fixed assets'!$Q$2:$Q$1000=Costs!V$617)*('Fixed assets'!$U$2:$U$1000=Costs!$A630)*('Fixed assets'!$S$2:$S$1000))+SUMPRODUCT(('Fixed assets'!$Q$2:$Q$1000=Costs!V$617)*('Fixed assets'!$P$2:$P$1000=Costs!$A630)*('Fixed assets'!$U$2:$U$1000=Costs!$A630)*('Fixed assets'!$R$2:$R$1000))","v":0},{"$f":"SUMPRODUCT(('Fixed assets'!$R$2:$R$1000)*('Fixed assets'!$P$2:$P$1000<$A630)*('Fixed assets'!$Q$2:$Q$1000=Costs!W$617))-SUMPRODUCT(('Fixed assets'!$S$2:$S$1000)*('Fixed assets'!$P$2:$P$1000<Costs!$A630)*('Fixed assets'!$Q$2:$Q$1000=Costs!W$617))-SUMPRODUCT(('Fixed assets'!$Q$2:$Q$1000=Costs!W$617)*('Fixed assets'!$U$2:$U$1000=Costs!$A630)*('Fixed assets'!$S$2:$S$1000))+SUMPRODUCT(('Fixed assets'!$Q$2:$Q$1000=Costs!W$617)*('Fixed assets'!$P$2:$P$1000=Costs!$A630)*('Fixed assets'!$U$2:$U$1000=Costs!$A630)*('Fixed assets'!$R$2:$R$1000))","v":0},{"$f":"SUMPRODUCT(('Fixed assets'!$R$2:$R$1000)*('Fixed assets'!$P$2:$P$1000<$A630)*('Fixed assets'!$Q$2:$Q$1000=Costs!X$617))-SUMPRODUCT(('Fixed assets'!$S$2:$S$1000)*('Fixed assets'!$P$2:$P$1000<Costs!$A630)*('Fixed assets'!$Q$2:$Q$1000=Costs!X$617))-SUMPRODUCT(('Fixed assets'!$Q$2:$Q$1000=Costs!X$617)*('Fixed assets'!$U$2:$U$1000=Costs!$A630)*('Fixed assets'!$S$2:$S$1000))+SUMPRODUCT(('Fixed assets'!$Q$2:$Q$1000=Costs!X$617)*('Fixed assets'!$P$2:$P$1000=Costs!$A630)*('Fixed assets'!$U$2:$U$1000=Costs!$A630)*('Fixed assets'!$R$2:$R$1000))","v":0},{"$f":"SUMPRODUCT(('Fixed assets'!$R$2:$R$1000)*('Fixed assets'!$P$2:$P$1000<$A630)*('Fixed assets'!$Q$2:$Q$1000=Costs!Y$617))-SUMPRODUCT(('Fixed assets'!$S$2:$S$1000)*('Fixed assets'!$P$2:$P$1000<Costs!$A630)*('Fixed assets'!$Q$2:$Q$1000=Costs!Y$617))-SUMPRODUCT(('Fixed assets'!$Q$2:$Q$1000=Costs!Y$617)*('Fixed assets'!$U$2:$U$1000=Costs!$A630)*('Fixed assets'!$S$2:$S$1000))+SUMPRODUCT(('Fixed assets'!$Q$2:$Q$1000=Costs!Y$617)*('Fixed assets'!$P$2:$P$1000=Costs!$A630)*('Fixed assets'!$U$2:$U$1000=Costs!$A630)*('Fixed assets'!$R$2:$R$1000))","v":0},{"$f":"SUMPRODUCT(('Fixed assets'!$R$2:$R$1000)*('Fixed assets'!$P$2:$P$1000<$A630)*('Fixed assets'!$Q$2:$Q$1000=Costs!Z$617))-SUMPRODUCT(('Fixed assets'!$S$2:$S$1000)*('Fixed assets'!$P$2:$P$1000<Costs!$A630)*('Fixed assets'!$Q$2:$Q$1000=Costs!Z$617))-SUMPRODUCT(('Fixed assets'!$Q$2:$Q$1000=Costs!Z$617)*('Fixed assets'!$U$2:$U$1000=Costs!$A630)*('Fixed assets'!$S$2:$S$1000))+SUMPRODUCT(('Fixed assets'!$Q$2:$Q$1000=Costs!Z$617)*('Fixed assets'!$P$2:$P$1000=Costs!$A630)*('Fixed assets'!$U$2:$U$1000=Costs!$A630)*('Fixed assets'!$R$2:$R$1000))","v":0},{"$f":"SUMPRODUCT(('Fixed assets'!$R$2:$R$1000)*('Fixed assets'!$P$2:$P$1000<$A630)*('Fixed assets'!$Q$2:$Q$1000=Costs!AA$617))-SUMPRODUCT(('Fixed assets'!$S$2:$S$1000)*('Fixed assets'!$P$2:$P$1000<Costs!$A630)*('Fixed assets'!$Q$2:$Q$1000=Costs!AA$617))-SUMPRODUCT(('Fixed assets'!$Q$2:$Q$1000=Costs!AA$617)*('Fixed assets'!$U$2:$U$1000=Costs!$A630)*('Fixed assets'!$S$2:$S$1000))+SUMPRODUCT(('Fixed assets'!$Q$2:$Q$1000=Costs!AA$617)*('Fixed assets'!$P$2:$P$1000=Costs!$A630)*('Fixed assets'!$U$2:$U$1000=Costs!$A630)*('Fixed assets'!$R$2:$R$1000))","v":0},{"$f":"SUMPRODUCT(('Fixed assets'!$R$2:$R$1000)*('Fixed assets'!$P$2:$P$1000<$A630)*('Fixed assets'!$Q$2:$Q$1000=Costs!AB$617))-SUMPRODUCT(('Fixed assets'!$S$2:$S$1000)*('Fixed assets'!$P$2:$P$1000<Costs!$A630)*('Fixed assets'!$Q$2:$Q$1000=Costs!AB$617))-SUMPRODUCT(('Fixed assets'!$Q$2:$Q$1000=Costs!AB$617)*('Fixed assets'!$U$2:$U$1000=Costs!$A630)*('Fixed assets'!$S$2:$S$1000))+SUMPRODUCT(('Fixed assets'!$Q$2:$Q$1000=Costs!AB$617)*('Fixed assets'!$P$2:$P$1000=Costs!$A630)*('Fixed assets'!$U$2:$U$1000=Costs!$A630)*('Fixed assets'!$R$2:$R$1000))","v":0},{"$f":"SUMPRODUCT(('Fixed assets'!$R$2:$R$1000)*('Fixed assets'!$P$2:$P$1000<$A630)*('Fixed assets'!$Q$2:$Q$1000=Costs!AC$617))-SUMPRODUCT(('Fixed assets'!$S$2:$S$1000)*('Fixed assets'!$P$2:$P$1000<Costs!$A630)*('Fixed assets'!$Q$2:$Q$1000=Costs!AC$617))-SUMPRODUCT(('Fixed assets'!$Q$2:$Q$1000=Costs!AC$617)*('Fixed assets'!$U$2:$U$1000=Costs!$A630)*('Fixed assets'!$S$2:$S$1000))+SUMPRODUCT(('Fixed assets'!$Q$2:$Q$1000=Costs!AC$617)*('Fixed assets'!$P$2:$P$1000=Costs!$A630)*('Fixed assets'!$U$2:$U$1000=Costs!$A630)*('Fixed assets'!$R$2:$R$1000))","v":0},{"$f":"SUMPRODUCT(('Fixed assets'!$R$2:$R$1000)*('Fixed assets'!$P$2:$P$1000<$A630)*('Fixed assets'!$Q$2:$Q$1000=Costs!AD$617))-SUMPRODUCT(('Fixed assets'!$S$2:$S$1000)*('Fixed assets'!$P$2:$P$1000<Costs!$A630)*('Fixed assets'!$Q$2:$Q$1000=Costs!AD$617))-SUMPRODUCT(('Fixed assets'!$Q$2:$Q$1000=Costs!AD$617)*('Fixed assets'!$U$2:$U$1000=Costs!$A630)*('Fixed assets'!$S$2:$S$1000))+SUMPRODUCT(('Fixed assets'!$Q$2:$Q$1000=Costs!AD$617)*('Fixed assets'!$P$2:$P$1000=Costs!$A630)*('Fixed assets'!$U$2:$U$1000=Costs!$A630)*('Fixed assets'!$R$2:$R$1000))","v":0},{"$f":"SUMPRODUCT(('Fixed assets'!$R$2:$R$1000)*('Fixed assets'!$P$2:$P$1000<$A630)*('Fixed assets'!$Q$2:$Q$1000=Costs!AE$617))-SUMPRODUCT(('Fixed assets'!$S$2:$S$1000)*('Fixed assets'!$P$2:$P$1000<Costs!$A630)*('Fixed assets'!$Q$2:$Q$1000=Costs!AE$617))-SUMPRODUCT(('Fixed assets'!$Q$2:$Q$1000=Costs!AE$617)*('Fixed assets'!$U$2:$U$1000=Costs!$A630)*('Fixed assets'!$S$2:$S$1000))+SUMPRODUCT(('Fixed assets'!$Q$2:$Q$1000=Costs!AE$617)*('Fixed assets'!$P$2:$P$1000=Costs!$A630)*('Fixed assets'!$U$2:$U$1000=Costs!$A630)*('Fixed assets'!$R$2:$R$1000))","v":0},{"$f":"SUMPRODUCT(('Fixed assets'!$R$2:$R$1000)*('Fixed assets'!$P$2:$P$1000<$A630)*('Fixed assets'!$Q$2:$Q$1000=Costs!AF$617))-SUMPRODUCT(('Fixed assets'!$S$2:$S$1000)*('Fixed assets'!$P$2:$P$1000<Costs!$A630)*('Fixed assets'!$Q$2:$Q$1000=Costs!AF$617))-SUMPRODUCT(('Fixed assets'!$Q$2:$Q$1000=Costs!AF$617)*('Fixed assets'!$U$2:$U$1000=Costs!$A630)*('Fixed assets'!$S$2:$S$1000))+SUMPRODUCT(('Fixed assets'!$Q$2:$Q$1000=Costs!AF$617)*('Fixed assets'!$P$2:$P$1000=Costs!$A630)*('Fixed assets'!$U$2:$U$1000=Costs!$A630)*('Fixed assets'!$R$2:$R$1000))","v":0},{"$f":"SUMPRODUCT(('Fixed assets'!$R$2:$R$1000)*('Fixed assets'!$P$2:$P$1000<$A630)*('Fixed assets'!$Q$2:$Q$1000=Costs!AG$617))-SUMPRODUCT(('Fixed assets'!$S$2:$S$1000)*('Fixed assets'!$P$2:$P$1000<Costs!$A630)*('Fixed assets'!$Q$2:$Q$1000=Costs!AG$617))-SUMPRODUCT(('Fixed assets'!$Q$2:$Q$1000=Costs!AG$617)*('Fixed assets'!$U$2:$U$1000=Costs!$A630)*('Fixed assets'!$S$2:$S$1000))+SUMPRODUCT(('Fixed assets'!$Q$2:$Q$1000=Costs!AG$617)*('Fixed assets'!$P$2:$P$1000=Costs!$A630)*('Fixed assets'!$U$2:$U$1000=Costs!$A630)*('Fixed assets'!$R$2:$R$1000))","v":0},{"$f":"SUMPRODUCT(('Fixed assets'!$R$2:$R$1000)*('Fixed assets'!$P$2:$P$1000<$A630)*('Fixed assets'!$Q$2:$Q$1000=Costs!AH$617))-SUMPRODUCT(('Fixed assets'!$S$2:$S$1000)*('Fixed assets'!$P$2:$P$1000<Costs!$A630)*('Fixed assets'!$Q$2:$Q$1000=Costs!AH$617))-SUMPRODUCT(('Fixed assets'!$Q$2:$Q$1000=Costs!AH$617)*('Fixed assets'!$U$2:$U$1000=Costs!$A630)*('Fixed assets'!$S$2:$S$1000))+SUMPRODUCT(('Fixed assets'!$Q$2:$Q$1000=Costs!AH$617)*('Fixed assets'!$P$2:$P$1000=Costs!$A630)*('Fixed assets'!$U$2:$U$1000=Costs!$A630)*('Fixed assets'!$R$2:$R$1000))","v":0},{"$f":"SUMPRODUCT(('Fixed assets'!$R$2:$R$1000)*('Fixed assets'!$P$2:$P$1000<$A630)*('Fixed assets'!$Q$2:$Q$1000=Costs!AI$617))-SUMPRODUCT(('Fixed assets'!$S$2:$S$1000)*('Fixed assets'!$P$2:$P$1000<Costs!$A630)*('Fixed assets'!$Q$2:$Q$1000=Costs!AI$617))-SUMPRODUCT(('Fixed assets'!$Q$2:$Q$1000=Costs!AI$617)*('Fixed assets'!$U$2:$U$1000=Costs!$A630)*('Fixed assets'!$S$2:$S$1000))+SUMPRODUCT(('Fixed assets'!$Q$2:$Q$1000=Costs!AI$617)*('Fixed assets'!$P$2:$P$1000=Costs!$A630)*('Fixed assets'!$U$2:$U$1000=Costs!$A630)*('Fixed assets'!$R$2:$R$1000))","v":0},{"$f":"SUMPRODUCT(('Fixed assets'!$R$2:$R$1000)*('Fixed assets'!$P$2:$P$1000<$A630)*('Fixed assets'!$Q$2:$Q$1000=Costs!AJ$617))-SUMPRODUCT(('Fixed assets'!$S$2:$S$1000)*('Fixed assets'!$P$2:$P$1000<Costs!$A630)*('Fixed assets'!$Q$2:$Q$1000=Costs!AJ$617))-SUMPRODUCT(('Fixed assets'!$Q$2:$Q$1000=Costs!AJ$617)*('Fixed assets'!$U$2:$U$1000=Costs!$A630)*('Fixed assets'!$S$2:$S$1000))+SUMPRODUCT(('Fixed assets'!$Q$2:$Q$1000=Costs!AJ$617)*('Fixed assets'!$P$2:$P$1000=Costs!$A630)*('Fixed assets'!$U$2:$U$1000=Costs!$A630)*('Fixed assets'!$R$2:$R$1000))","v":0},{"$f":"SUMPRODUCT(('Fixed assets'!$R$2:$R$1000)*('Fixed assets'!$P$2:$P$1000<$A630)*('Fixed assets'!$Q$2:$Q$1000=Costs!AK$617))-SUMPRODUCT(('Fixed assets'!$S$2:$S$1000)*('Fixed assets'!$P$2:$P$1000<Costs!$A630)*('Fixed assets'!$Q$2:$Q$1000=Costs!AK$617))-SUMPRODUCT(('Fixed assets'!$Q$2:$Q$1000=Costs!AK$617)*('Fixed assets'!$U$2:$U$1000=Costs!$A630)*('Fixed assets'!$S$2:$S$1000))+SUMPRODUCT(('Fixed assets'!$Q$2:$Q$1000=Costs!AK$617)*('Fixed assets'!$P$2:$P$1000=Costs!$A630)*('Fixed assets'!$U$2:$U$1000=Costs!$A630)*('Fixed assets'!$R$2:$R$1000))","v":0},{"$f":"SUMPRODUCT(('Fixed assets'!$R$2:$R$1000)*('Fixed assets'!$P$2:$P$1000<$A630)*('Fixed assets'!$Q$2:$Q$1000=Costs!AL$617))-SUMPRODUCT(('Fixed assets'!$S$2:$S$1000)*('Fixed assets'!$P$2:$P$1000<Costs!$A630)*('Fixed assets'!$Q$2:$Q$1000=Costs!AL$617))-SUMPRODUCT(('Fixed assets'!$Q$2:$Q$1000=Costs!AL$617)*('Fixed assets'!$U$2:$U$1000=Costs!$A630)*('Fixed assets'!$S$2:$S$1000))+SUMPRODUCT(('Fixed assets'!$Q$2:$Q$1000=Costs!AL$617)*('Fixed assets'!$P$2:$P$1000=Costs!$A630)*('Fixed assets'!$U$2:$U$1000=Costs!$A630)*('Fixed assets'!$R$2:$R$1000))","v":0},{"$f":"SUMPRODUCT(('Fixed assets'!$R$2:$R$1000)*('Fixed assets'!$P$2:$P$1000<$A630)*('Fixed assets'!$Q$2:$Q$1000=Costs!AM$617))-SUMPRODUCT(('Fixed assets'!$S$2:$S$1000)*('Fixed assets'!$P$2:$P$1000<Costs!$A630)*('Fixed assets'!$Q$2:$Q$1000=Costs!AM$617))-SUMPRODUCT(('Fixed assets'!$Q$2:$Q$1000=Costs!AM$617)*('Fixed assets'!$U$2:$U$1000=Costs!$A630)*('Fixed assets'!$S$2:$S$1000))+SUMPRODUCT(('Fixed assets'!$Q$2:$Q$1000=Costs!AM$617)*('Fixed assets'!$P$2:$P$1000=Costs!$A630)*('Fixed assets'!$U$2:$U$1000=Costs!$A630)*('Fixed assets'!$R$2:$R$1000))","v":0},{"$f":"SUMPRODUCT(('Fixed assets'!$R$2:$R$1000)*('Fixed assets'!$P$2:$P$1000<$A630)*('Fixed assets'!$Q$2:$Q$1000=Costs!AN$617))-SUMPRODUCT(('Fixed assets'!$S$2:$S$1000)*('Fixed assets'!$P$2:$P$1000<Costs!$A630)*('Fixed assets'!$Q$2:$Q$1000=Costs!AN$617))-SUMPRODUCT(('Fixed assets'!$Q$2:$Q$1000=Costs!AN$617)*('Fixed assets'!$U$2:$U$1000=Costs!$A630)*('Fixed assets'!$S$2:$S$1000))+SUMPRODUCT(('Fixed assets'!$Q$2:$Q$1000=Costs!AN$617)*('Fixed assets'!$P$2:$P$1000=Costs!$A630)*('Fixed assets'!$U$2:$U$1000=Costs!$A630)*('Fixed assets'!$R$2:$R$1000))","v":0},{"$f":"SUMPRODUCT(('Fixed assets'!$R$2:$R$1000)*('Fixed assets'!$P$2:$P$1000<$A630)*('Fixed assets'!$Q$2:$Q$1000=Costs!AO$617))-SUMPRODUCT(('Fixed assets'!$S$2:$S$1000)*('Fixed assets'!$P$2:$P$1000<Costs!$A630)*('Fixed assets'!$Q$2:$Q$1000=Costs!AO$617))-SUMPRODUCT(('Fixed assets'!$Q$2:$Q$1000=Costs!AO$617)*('Fixed assets'!$U$2:$U$1000=Costs!$A630)*('Fixed assets'!$S$2:$S$1000))+SUMPRODUCT(('Fixed assets'!$Q$2:$Q$1000=Costs!AO$617)*('Fixed assets'!$P$2:$P$1000=Costs!$A630)*('Fixed assets'!$U$2:$U$1000=Costs!$A630)*('Fixed assets'!$R$2:$R$1000))","v":0},{"$f":"SUMPRODUCT(('Fixed assets'!$R$2:$R$1000)*('Fixed assets'!$P$2:$P$1000<$A630)*('Fixed assets'!$Q$2:$Q$1000=Costs!AP$617))-SUMPRODUCT(('Fixed assets'!$S$2:$S$1000)*('Fixed assets'!$P$2:$P$1000<Costs!$A630)*('Fixed assets'!$Q$2:$Q$1000=Costs!AP$617))-SUMPRODUCT(('Fixed assets'!$Q$2:$Q$1000=Costs!AP$617)*('Fixed assets'!$U$2:$U$1000=Costs!$A630)*('Fixed assets'!$S$2:$S$1000))+SUMPRODUCT(('Fixed assets'!$Q$2:$Q$1000=Costs!AP$617)*('Fixed assets'!$P$2:$P$1000=Costs!$A630)*('Fixed assets'!$U$2:$U$1000=Costs!$A630)*('Fixed assets'!$R$2:$R$1000))","v":0},{"$f":"SUMPRODUCT(('Fixed assets'!$R$2:$R$1000)*('Fixed assets'!$P$2:$P$1000<$A630)*('Fixed assets'!$Q$2:$Q$1000=Costs!AQ$617))-SUMPRODUCT(('Fixed assets'!$S$2:$S$1000)*('Fixed assets'!$P$2:$P$1000<Costs!$A630)*('Fixed assets'!$Q$2:$Q$1000=Costs!AQ$617))-SUMPRODUCT(('Fixed assets'!$Q$2:$Q$1000=Costs!AQ$617)*('Fixed assets'!$U$2:$U$1000=Costs!$A630)*('Fixed assets'!$S$2:$S$1000))+SUMPRODUCT(('Fixed assets'!$Q$2:$Q$1000=Costs!AQ$617)*('Fixed assets'!$P$2:$P$1000=Costs!$A630)*('Fixed assets'!$U$2:$U$1000=Costs!$A630)*('Fixed assets'!$R$2:$R$1000))","v":0}]
[2028,0,{"$f":"SUMPRODUCT(('Fixed assets'!$R$2:$R$1000)*('Fixed assets'!$P$2:$P$1000<$A631)*('Fixed assets'!$Q$2:$Q$1000=Costs!C$617))-SUMPRODUCT(('Fixed assets'!$S$2:$S$1000)*('Fixed assets'!$P$2:$P$1000<Costs!$A631)*('Fixed assets'!$Q$2:$Q$1000=Costs!C$617))-SUMPRODUCT(('Fixed assets'!$Q$2:$Q$1000=Costs!C$617)*('Fixed assets'!$U$2:$U$1000=Costs!$A631)*('Fixed assets'!$S$2:$S$1000))+SUMPRODUCT(('Fixed assets'!$Q$2:$Q$1000=Costs!C$617)*('Fixed assets'!$P$2:$P$1000=Costs!$A631)*('Fixed assets'!$U$2:$U$1000=Costs!$A631)*('Fixed assets'!$R$2:$R$1000))","v":0},{"$f":"SUMPRODUCT(('Fixed assets'!$R$2:$R$1000)*('Fixed assets'!$P$2:$P$1000<$A631)*('Fixed assets'!$Q$2:$Q$1000=Costs!D$617))-SUMPRODUCT(('Fixed assets'!$S$2:$S$1000)*('Fixed assets'!$P$2:$P$1000<Costs!$A631)*('Fixed assets'!$Q$2:$Q$1000=Costs!D$617))-SUMPRODUCT(('Fixed assets'!$Q$2:$Q$1000=Costs!D$617)*('Fixed assets'!$U$2:$U$1000=Costs!$A631)*('Fixed assets'!$S$2:$S$1000))+SUMPRODUCT(('Fixed assets'!$Q$2:$Q$1000=Costs!D$617)*('Fixed assets'!$P$2:$P$1000=Costs!$A631)*('Fixed assets'!$U$2:$U$1000=Costs!$A631)*('Fixed assets'!$R$2:$R$1000))","v":0},{"$f":"SUMPRODUCT(('Fixed assets'!$R$2:$R$1000)*('Fixed assets'!$P$2:$P$1000<$A631)*('Fixed assets'!$Q$2:$Q$1000=Costs!E$617))-SUMPRODUCT(('Fixed assets'!$S$2:$S$1000)*('Fixed assets'!$P$2:$P$1000<Costs!$A631)*('Fixed assets'!$Q$2:$Q$1000=Costs!E$617))-SUMPRODUCT(('Fixed assets'!$Q$2:$Q$1000=Costs!E$617)*('Fixed assets'!$U$2:$U$1000=Costs!$A631)*('Fixed assets'!$S$2:$S$1000))+SUMPRODUCT(('Fixed assets'!$Q$2:$Q$1000=Costs!E$617)*('Fixed assets'!$P$2:$P$1000=Costs!$A631)*('Fixed assets'!$U$2:$U$1000=Costs!$A631)*('Fixed assets'!$R$2:$R$1000))","v":0},{"$f":"SUMPRODUCT(('Fixed assets'!$R$2:$R$1000)*('Fixed assets'!$P$2:$P$1000<$A631)*('Fixed assets'!$Q$2:$Q$1000=Costs!F$617))-SUMPRODUCT(('Fixed assets'!$S$2:$S$1000)*('Fixed assets'!$P$2:$P$1000<Costs!$A631)*('Fixed assets'!$Q$2:$Q$1000=Costs!F$617))-SUMPRODUCT(('Fixed assets'!$Q$2:$Q$1000=Costs!F$617)*('Fixed assets'!$U$2:$U$1000=Costs!$A631)*('Fixed assets'!$S$2:$S$1000))+SUMPRODUCT(('Fixed assets'!$Q$2:$Q$1000=Costs!F$617)*('Fixed assets'!$P$2:$P$1000=Costs!$A631)*('Fixed assets'!$U$2:$U$1000=Costs!$A631)*('Fixed assets'!$R$2:$R$1000))","v":0},{"$f":"SUMPRODUCT(('Fixed assets'!$R$2:$R$1000)*('Fixed assets'!$P$2:$P$1000<$A631)*('Fixed assets'!$Q$2:$Q$1000=Costs!G$617))-SUMPRODUCT(('Fixed assets'!$S$2:$S$1000)*('Fixed assets'!$P$2:$P$1000<Costs!$A631)*('Fixed assets'!$Q$2:$Q$1000=Costs!G$617))-SUMPRODUCT(('Fixed assets'!$Q$2:$Q$1000=Costs!G$617)*('Fixed assets'!$U$2:$U$1000=Costs!$A631)*('Fixed assets'!$S$2:$S$1000))+SUMPRODUCT(('Fixed assets'!$Q$2:$Q$1000=Costs!G$617)*('Fixed assets'!$P$2:$P$1000=Costs!$A631)*('Fixed assets'!$U$2:$U$1000=Costs!$A631)*('Fixed assets'!$R$2:$R$1000))","v":0},{"$f":"SUMPRODUCT(('Fixed assets'!$R$2:$R$1000)*('Fixed assets'!$P$2:$P$1000<$A631)*('Fixed assets'!$Q$2:$Q$1000=Costs!H$617))-SUMPRODUCT(('Fixed assets'!$S$2:$S$1000)*('Fixed assets'!$P$2:$P$1000<Costs!$A631)*('Fixed assets'!$Q$2:$Q$1000=Costs!H$617))-SUMPRODUCT(('Fixed assets'!$Q$2:$Q$1000=Costs!H$617)*('Fixed assets'!$U$2:$U$1000=Costs!$A631)*('Fixed assets'!$S$2:$S$1000))+SUMPRODUCT(('Fixed assets'!$Q$2:$Q$1000=Costs!H$617)*('Fixed assets'!$P$2:$P$1000=Costs!$A631)*('Fixed assets'!$U$2:$U$1000=Costs!$A631)*('Fixed assets'!$R$2:$R$1000))","v":0},{"$f":"SUMPRODUCT(('Fixed assets'!$R$2:$R$1000)*('Fixed assets'!$P$2:$P$1000<$A631)*('Fixed assets'!$Q$2:$Q$1000=Costs!I$617))-SUMPRODUCT(('Fixed assets'!$S$2:$S$1000)*('Fixed assets'!$P$2:$P$1000<Costs!$A631)*('Fixed assets'!$Q$2:$Q$1000=Costs!I$617))-SUMPRODUCT(('Fixed assets'!$Q$2:$Q$1000=Costs!I$617)*('Fixed assets'!$U$2:$U$1000=Costs!$A631)*('Fixed assets'!$S$2:$S$1000))+SUMPRODUCT(('Fixed assets'!$Q$2:$Q$1000=Costs!I$617)*('Fixed assets'!$P$2:$P$1000=Costs!$A631)*('Fixed assets'!$U$2:$U$1000=Costs!$A631)*('Fixed assets'!$R$2:$R$1000))","v":0},{"$f":"SUMPRODUCT(('Fixed assets'!$R$2:$R$1000)*('Fixed assets'!$P$2:$P$1000<$A631)*('Fixed assets'!$Q$2:$Q$1000=Costs!J$617))-SUMPRODUCT(('Fixed assets'!$S$2:$S$1000)*('Fixed assets'!$P$2:$P$1000<Costs!$A631)*('Fixed assets'!$Q$2:$Q$1000=Costs!J$617))-SUMPRODUCT(('Fixed assets'!$Q$2:$Q$1000=Costs!J$617)*('Fixed assets'!$U$2:$U$1000=Costs!$A631)*('Fixed assets'!$S$2:$S$1000))+SUMPRODUCT(('Fixed assets'!$Q$2:$Q$1000=Costs!J$617)*('Fixed assets'!$P$2:$P$1000=Costs!$A631)*('Fixed assets'!$U$2:$U$1000=Costs!$A631)*('Fixed assets'!$R$2:$R$1000))","v":0},{"$f":"SUMPRODUCT(('Fixed assets'!$R$2:$R$1000)*('Fixed assets'!$P$2:$P$1000<$A631)*('Fixed assets'!$Q$2:$Q$1000=Costs!K$617))-SUMPRODUCT(('Fixed assets'!$S$2:$S$1000)*('Fixed assets'!$P$2:$P$1000<Costs!$A631)*('Fixed assets'!$Q$2:$Q$1000=Costs!K$617))-SUMPRODUCT(('Fixed assets'!$Q$2:$Q$1000=Costs!K$617)*('Fixed assets'!$U$2:$U$1000=Costs!$A631)*('Fixed assets'!$S$2:$S$1000))+SUMPRODUCT(('Fixed assets'!$Q$2:$Q$1000=Costs!K$617)*('Fixed assets'!$P$2:$P$1000=Costs!$A631)*('Fixed assets'!$U$2:$U$1000=Costs!$A631)*('Fixed assets'!$R$2:$R$1000))","v":0},{"$f":"SUMPRODUCT(('Fixed assets'!$R$2:$R$1000)*('Fixed assets'!$P$2:$P$1000<$A631)*('Fixed assets'!$Q$2:$Q$1000=Costs!L$617))-SUMPRODUCT(('Fixed assets'!$S$2:$S$1000)*('Fixed assets'!$P$2:$P$1000<Costs!$A631)*('Fixed assets'!$Q$2:$Q$1000=Costs!L$617))-SUMPRODUCT(('Fixed assets'!$Q$2:$Q$1000=Costs!L$617)*('Fixed assets'!$U$2:$U$1000=Costs!$A631)*('Fixed assets'!$S$2:$S$1000))+SUMPRODUCT(('Fixed assets'!$Q$2:$Q$1000=Costs!L$617)*('Fixed assets'!$P$2:$P$1000=Costs!$A631)*('Fixed assets'!$U$2:$U$1000=Costs!$A631)*('Fixed assets'!$R$2:$R$1000))","v":0},{"$f":"SUMPRODUCT(('Fixed assets'!$R$2:$R$1000)*('Fixed assets'!$P$2:$P$1000<$A631)*('Fixed assets'!$Q$2:$Q$1000=Costs!M$617))-SUMPRODUCT(('Fixed assets'!$S$2:$S$1000)*('Fixed assets'!$P$2:$P$1000<Costs!$A631)*('Fixed assets'!$Q$2:$Q$1000=Costs!M$617))-SUMPRODUCT(('Fixed assets'!$Q$2:$Q$1000=Costs!M$617)*('Fixed assets'!$U$2:$U$1000=Costs!$A631)*('Fixed assets'!$S$2:$S$1000))+SUMPRODUCT(('Fixed assets'!$Q$2:$Q$1000=Costs!M$617)*('Fixed assets'!$P$2:$P$1000=Costs!$A631)*('Fixed assets'!$U$2:$U$1000=Costs!$A631)*('Fixed assets'!$R$2:$R$1000))","v":0},{"$f":"SUMPRODUCT(('Fixed assets'!$R$2:$R$1000)*('Fixed assets'!$P$2:$P$1000<$A631)*('Fixed assets'!$Q$2:$Q$1000=Costs!N$617))-SUMPRODUCT(('Fixed assets'!$S$2:$S$1000)*('Fixed assets'!$P$2:$P$1000<Costs!$A631)*('Fixed assets'!$Q$2:$Q$1000=Costs!N$617))-SUMPRODUCT(('Fixed assets'!$Q$2:$Q$1000=Costs!N$617)*('Fixed assets'!$U$2:$U$1000=Costs!$A631)*('Fixed assets'!$S$2:$S$1000))+SUMPRODUCT(('Fixed assets'!$Q$2:$Q$1000=Costs!N$617)*('Fixed assets'!$P$2:$P$1000=Costs!$A631)*('Fixed assets'!$U$2:$U$1000=Costs!$A631)*('Fixed assets'!$R$2:$R$1000))","v":0},{"$f":"SUMPRODUCT(('Fixed assets'!$R$2:$R$1000)*('Fixed assets'!$P$2:$P$1000<$A631)*('Fixed assets'!$Q$2:$Q$1000=Costs!O$617))-SUMPRODUCT(('Fixed assets'!$S$2:$S$1000)*('Fixed assets'!$P$2:$P$1000<Costs!$A631)*('Fixed assets'!$Q$2:$Q$1000=Costs!O$617))-SUMPRODUCT(('Fixed assets'!$Q$2:$Q$1000=Costs!O$617)*('Fixed assets'!$U$2:$U$1000=Costs!$A631)*('Fixed assets'!$S$2:$S$1000))+SUMPRODUCT(('Fixed assets'!$Q$2:$Q$1000=Costs!O$617)*('Fixed assets'!$P$2:$P$1000=Costs!$A631)*('Fixed assets'!$U$2:$U$1000=Costs!$A631)*('Fixed assets'!$R$2:$R$1000))","v":0},{"$f":"SUMPRODUCT(('Fixed assets'!$R$2:$R$1000)*('Fixed assets'!$P$2:$P$1000<$A631)*('Fixed assets'!$Q$2:$Q$1000=Costs!P$617))-SUMPRODUCT(('Fixed assets'!$S$2:$S$1000)*('Fixed assets'!$P$2:$P$1000<Costs!$A631)*('Fixed assets'!$Q$2:$Q$1000=Costs!P$617))-SUMPRODUCT(('Fixed assets'!$Q$2:$Q$1000=Costs!P$617)*('Fixed assets'!$U$2:$U$1000=Costs!$A631)*('Fixed assets'!$S$2:$S$1000))+SUMPRODUCT(('Fixed assets'!$Q$2:$Q$1000=Costs!P$617)*('Fixed assets'!$P$2:$P$1000=Costs!$A631)*('Fixed assets'!$U$2:$U$1000=Costs!$A631)*('Fixed assets'!$R$2:$R$1000))","v":0},{"$f":"SUMPRODUCT(('Fixed assets'!$R$2:$R$1000)*('Fixed assets'!$P$2:$P$1000<$A631)*('Fixed assets'!$Q$2:$Q$1000=Costs!Q$617))-SUMPRODUCT(('Fixed assets'!$S$2:$S$1000)*('Fixed assets'!$P$2:$P$1000<Costs!$A631)*('Fixed assets'!$Q$2:$Q$1000=Costs!Q$617))-SUMPRODUCT(('Fixed assets'!$Q$2:$Q$1000=Costs!Q$617)*('Fixed assets'!$U$2:$U$1000=Costs!$A631)*('Fixed assets'!$S$2:$S$1000))+SUMPRODUCT(('Fixed assets'!$Q$2:$Q$1000=Costs!Q$617)*('Fixed assets'!$P$2:$P$1000=Costs!$A631)*('Fixed assets'!$U$2:$U$1000=Costs!$A631)*('Fixed assets'!$R$2:$R$1000))","v":0},{"$f":"SUMPRODUCT(('Fixed assets'!$R$2:$R$1000)*('Fixed assets'!$P$2:$P$1000<$A631)*('Fixed assets'!$Q$2:$Q$1000=Costs!R$617))-SUMPRODUCT(('Fixed assets'!$S$2:$S$1000)*('Fixed assets'!$P$2:$P$1000<Costs!$A631)*('Fixed assets'!$Q$2:$Q$1000=Costs!R$617))-SUMPRODUCT(('Fixed assets'!$Q$2:$Q$1000=Costs!R$617)*('Fixed assets'!$U$2:$U$1000=Costs!$A631)*('Fixed assets'!$S$2:$S$1000))+SUMPRODUCT(('Fixed assets'!$Q$2:$Q$1000=Costs!R$617)*('Fixed assets'!$P$2:$P$1000=Costs!$A631)*('Fixed assets'!$U$2:$U$1000=Costs!$A631)*('Fixed assets'!$R$2:$R$1000))","v":0},{"$f":"SUMPRODUCT(('Fixed assets'!$R$2:$R$1000)*('Fixed assets'!$P$2:$P$1000<$A631)*('Fixed assets'!$Q$2:$Q$1000=Costs!S$617))-SUMPRODUCT(('Fixed assets'!$S$2:$S$1000)*('Fixed assets'!$P$2:$P$1000<Costs!$A631)*('Fixed assets'!$Q$2:$Q$1000=Costs!S$617))-SUMPRODUCT(('Fixed assets'!$Q$2:$Q$1000=Costs!S$617)*('Fixed assets'!$U$2:$U$1000=Costs!$A631)*('Fixed assets'!$S$2:$S$1000))+SUMPRODUCT(('Fixed assets'!$Q$2:$Q$1000=Costs!S$617)*('Fixed assets'!$P$2:$P$1000=Costs!$A631)*('Fixed assets'!$U$2:$U$1000=Costs!$A631)*('Fixed assets'!$R$2:$R$1000))","v":0},{"$f":"SUMPRODUCT(('Fixed assets'!$R$2:$R$1000)*('Fixed assets'!$P$2:$P$1000<$A631)*('Fixed assets'!$Q$2:$Q$1000=Costs!T$617))-SUMPRODUCT(('Fixed assets'!$S$2:$S$1000)*('Fixed assets'!$P$2:$P$1000<Costs!$A631)*('Fixed assets'!$Q$2:$Q$1000=Costs!T$617))-SUMPRODUCT(('Fixed assets'!$Q$2:$Q$1000=Costs!T$617)*('Fixed assets'!$U$2:$U$1000=Costs!$A631)*('Fixed assets'!$S$2:$S$1000))+SUMPRODUCT(('Fixed assets'!$Q$2:$Q$1000=Costs!T$617)*('Fixed assets'!$P$2:$P$1000=Costs!$A631)*('Fixed assets'!$U$2:$U$1000=Costs!$A631)*('Fixed assets'!$R$2:$R$1000))","v":0},{"$f":"SUMPRODUCT(('Fixed assets'!$R$2:$R$1000)*('Fixed assets'!$P$2:$P$1000<$A631)*('Fixed assets'!$Q$2:$Q$1000=Costs!U$617))-SUMPRODUCT(('Fixed assets'!$S$2:$S$1000)*('Fixed assets'!$P$2:$P$1000<Costs!$A631)*('Fixed assets'!$Q$2:$Q$1000=Costs!U$617))-SUMPRODUCT(('Fixed assets'!$Q$2:$Q$1000=Costs!U$617)*('Fixed assets'!$U$2:$U$1000=Costs!$A631)*('Fixed assets'!$S$2:$S$1000))+SUMPRODUCT(('Fixed assets'!$Q$2:$Q$1000=Costs!U$617)*('Fixed assets'!$P$2:$P$1000=Costs!$A631)*('Fixed assets'!$U$2:$U$1000=Costs!$A631)*('Fixed assets'!$R$2:$R$1000))","v":0},{"$f":"SUMPRODUCT(('Fixed assets'!$R$2:$R$1000)*('Fixed assets'!$P$2:$P$1000<$A631)*('Fixed assets'!$Q$2:$Q$1000=Costs!V$617))-SUMPRODUCT(('Fixed assets'!$S$2:$S$1000)*('Fixed assets'!$P$2:$P$1000<Costs!$A631)*('Fixed assets'!$Q$2:$Q$1000=Costs!V$617))-SUMPRODUCT(('Fixed assets'!$Q$2:$Q$1000=Costs!V$617)*('Fixed assets'!$U$2:$U$1000=Costs!$A631)*('Fixed assets'!$S$2:$S$1000))+SUMPRODUCT(('Fixed assets'!$Q$2:$Q$1000=Costs!V$617)*('Fixed assets'!$P$2:$P$1000=Costs!$A631)*('Fixed assets'!$U$2:$U$1000=Costs!$A631)*('Fixed assets'!$R$2:$R$1000))","v":0},{"$f":"SUMPRODUCT(('Fixed assets'!$R$2:$R$1000)*('Fixed assets'!$P$2:$P$1000<$A631)*('Fixed assets'!$Q$2:$Q$1000=Costs!W$617))-SUMPRODUCT(('Fixed assets'!$S$2:$S$1000)*('Fixed assets'!$P$2:$P$1000<Costs!$A631)*('Fixed assets'!$Q$2:$Q$1000=Costs!W$617))-SUMPRODUCT(('Fixed assets'!$Q$2:$Q$1000=Costs!W$617)*('Fixed assets'!$U$2:$U$1000=Costs!$A631)*('Fixed assets'!$S$2:$S$1000))+SUMPRODUCT(('Fixed assets'!$Q$2:$Q$1000=Costs!W$617)*('Fixed assets'!$P$2:$P$1000=Costs!$A631)*('Fixed assets'!$U$2:$U$1000=Costs!$A631)*('Fixed assets'!$R$2:$R$1000))","v":0},{"$f":"SUMPRODUCT(('Fixed assets'!$R$2:$R$1000)*('Fixed assets'!$P$2:$P$1000<$A631)*('Fixed assets'!$Q$2:$Q$1000=Costs!X$617))-SUMPRODUCT(('Fixed assets'!$S$2:$S$1000)*('Fixed assets'!$P$2:$P$1000<Costs!$A631)*('Fixed assets'!$Q$2:$Q$1000=Costs!X$617))-SUMPRODUCT(('Fixed assets'!$Q$2:$Q$1000=Costs!X$617)*('Fixed assets'!$U$2:$U$1000=Costs!$A631)*('Fixed assets'!$S$2:$S$1000))+SUMPRODUCT(('Fixed assets'!$Q$2:$Q$1000=Costs!X$617)*('Fixed assets'!$P$2:$P$1000=Costs!$A631)*('Fixed assets'!$U$2:$U$1000=Costs!$A631)*('Fixed assets'!$R$2:$R$1000))","v":0},{"$f":"SUMPRODUCT(('Fixed assets'!$R$2:$R$1000)*('Fixed assets'!$P$2:$P$1000<$A631)*('Fixed assets'!$Q$2:$Q$1000=Costs!Y$617))-SUMPRODUCT(('Fixed assets'!$S$2:$S$1000)*('Fixed assets'!$P$2:$P$1000<Costs!$A631)*('Fixed assets'!$Q$2:$Q$1000=Costs!Y$617))-SUMPRODUCT(('Fixed assets'!$Q$2:$Q$1000=Costs!Y$617)*('Fixed assets'!$U$2:$U$1000=Costs!$A631)*('Fixed assets'!$S$2:$S$1000))+SUMPRODUCT(('Fixed assets'!$Q$2:$Q$1000=Costs!Y$617)*('Fixed assets'!$P$2:$P$1000=Costs!$A631)*('Fixed assets'!$U$2:$U$1000=Costs!$A631)*('Fixed assets'!$R$2:$R$1000))","v":0},{"$f":"SUMPRODUCT(('Fixed assets'!$R$2:$R$1000)*('Fixed assets'!$P$2:$P$1000<$A631)*('Fixed assets'!$Q$2:$Q$1000=Costs!Z$617))-SUMPRODUCT(('Fixed assets'!$S$2:$S$1000)*('Fixed assets'!$P$2:$P$1000<Costs!$A631)*('Fixed assets'!$Q$2:$Q$1000=Costs!Z$617))-SUMPRODUCT(('Fixed assets'!$Q$2:$Q$1000=Costs!Z$617)*('Fixed assets'!$U$2:$U$1000=Costs!$A631)*('Fixed assets'!$S$2:$S$1000))+SUMPRODUCT(('Fixed assets'!$Q$2:$Q$1000=Costs!Z$617)*('Fixed assets'!$P$2:$P$1000=Costs!$A631)*('Fixed assets'!$U$2:$U$1000=Costs!$A631)*('Fixed assets'!$R$2:$R$1000))","v":0},{"$f":"SUMPRODUCT(('Fixed assets'!$R$2:$R$1000)*('Fixed assets'!$P$2:$P$1000<$A631)*('Fixed assets'!$Q$2:$Q$1000=Costs!AA$617))-SUMPRODUCT(('Fixed assets'!$S$2:$S$1000)*('Fixed assets'!$P$2:$P$1000<Costs!$A631)*('Fixed assets'!$Q$2:$Q$1000=Costs!AA$617))-SUMPRODUCT(('Fixed assets'!$Q$2:$Q$1000=Costs!AA$617)*('Fixed assets'!$U$2:$U$1000=Costs!$A631)*('Fixed assets'!$S$2:$S$1000))+SUMPRODUCT(('Fixed assets'!$Q$2:$Q$1000=Costs!AA$617)*('Fixed assets'!$P$2:$P$1000=Costs!$A631)*('Fixed assets'!$U$2:$U$1000=Costs!$A631)*('Fixed assets'!$R$2:$R$1000))","v":0},{"$f":"SUMPRODUCT(('Fixed assets'!$R$2:$R$1000)*('Fixed assets'!$P$2:$P$1000<$A631)*('Fixed assets'!$Q$2:$Q$1000=Costs!AB$617))-SUMPRODUCT(('Fixed assets'!$S$2:$S$1000)*('Fixed assets'!$P$2:$P$1000<Costs!$A631)*('Fixed assets'!$Q$2:$Q$1000=Costs!AB$617))-SUMPRODUCT(('Fixed assets'!$Q$2:$Q$1000=Costs!AB$617)*('Fixed assets'!$U$2:$U$1000=Costs!$A631)*('Fixed assets'!$S$2:$S$1000))+SUMPRODUCT(('Fixed assets'!$Q$2:$Q$1000=Costs!AB$617)*('Fixed assets'!$P$2:$P$1000=Costs!$A631)*('Fixed assets'!$U$2:$U$1000=Costs!$A631)*('Fixed assets'!$R$2:$R$1000))","v":0},{"$f":"SUMPRODUCT(('Fixed assets'!$R$2:$R$1000)*('Fixed assets'!$P$2:$P$1000<$A631)*('Fixed assets'!$Q$2:$Q$1000=Costs!AC$617))-SUMPRODUCT(('Fixed assets'!$S$2:$S$1000)*('Fixed assets'!$P$2:$P$1000<Costs!$A631)*('Fixed assets'!$Q$2:$Q$1000=Costs!AC$617))-SUMPRODUCT(('Fixed assets'!$Q$2:$Q$1000=Costs!AC$617)*('Fixed assets'!$U$2:$U$1000=Costs!$A631)*('Fixed assets'!$S$2:$S$1000))+SUMPRODUCT(('Fixed assets'!$Q$2:$Q$1000=Costs!AC$617)*('Fixed assets'!$P$2:$P$1000=Costs!$A631)*('Fixed assets'!$U$2:$U$1000=Costs!$A631)*('Fixed assets'!$R$2:$R$1000))","v":0},{"$f":"SUMPRODUCT(('Fixed assets'!$R$2:$R$1000)*('Fixed assets'!$P$2:$P$1000<$A631)*('Fixed assets'!$Q$2:$Q$1000=Costs!AD$617))-SUMPRODUCT(('Fixed assets'!$S$2:$S$1000)*('Fixed assets'!$P$2:$P$1000<Costs!$A631)*('Fixed assets'!$Q$2:$Q$1000=Costs!AD$617))-SUMPRODUCT(('Fixed assets'!$Q$2:$Q$1000=Costs!AD$617)*('Fixed assets'!$U$2:$U$1000=Costs!$A631)*('Fixed assets'!$S$2:$S$1000))+SUMPRODUCT(('Fixed assets'!$Q$2:$Q$1000=Costs!AD$617)*('Fixed assets'!$P$2:$P$1000=Costs!$A631)*('Fixed assets'!$U$2:$U$1000=Costs!$A631)*('Fixed assets'!$R$2:$R$1000))","v":0},{"$f":"SUMPRODUCT(('Fixed assets'!$R$2:$R$1000)*('Fixed assets'!$P$2:$P$1000<$A631)*('Fixed assets'!$Q$2:$Q$1000=Costs!AE$617))-SUMPRODUCT(('Fixed assets'!$S$2:$S$1000)*('Fixed assets'!$P$2:$P$1000<Costs!$A631)*('Fixed assets'!$Q$2:$Q$1000=Costs!AE$617))-SUMPRODUCT(('Fixed assets'!$Q$2:$Q$1000=Costs!AE$617)*('Fixed assets'!$U$2:$U$1000=Costs!$A631)*('Fixed assets'!$S$2:$S$1000))+SUMPRODUCT(('Fixed assets'!$Q$2:$Q$1000=Costs!AE$617)*('Fixed assets'!$P$2:$P$1000=Costs!$A631)*('Fixed assets'!$U$2:$U$1000=Costs!$A631)*('Fixed assets'!$R$2:$R$1000))","v":0},{"$f":"SUMPRODUCT(('Fixed assets'!$R$2:$R$1000)*('Fixed assets'!$P$2:$P$1000<$A631)*('Fixed assets'!$Q$2:$Q$1000=Costs!AF$617))-SUMPRODUCT(('Fixed assets'!$S$2:$S$1000)*('Fixed assets'!$P$2:$P$1000<Costs!$A631)*('Fixed assets'!$Q$2:$Q$1000=Costs!AF$617))-SUMPRODUCT(('Fixed assets'!$Q$2:$Q$1000=Costs!AF$617)*('Fixed assets'!$U$2:$U$1000=Costs!$A631)*('Fixed assets'!$S$2:$S$1000))+SUMPRODUCT(('Fixed assets'!$Q$2:$Q$1000=Costs!AF$617)*('Fixed assets'!$P$2:$P$1000=Costs!$A631)*('Fixed assets'!$U$2:$U$1000=Costs!$A631)*('Fixed assets'!$R$2:$R$1000))","v":0},{"$f":"SUMPRODUCT(('Fixed assets'!$R$2:$R$1000)*('Fixed assets'!$P$2:$P$1000<$A631)*('Fixed assets'!$Q$2:$Q$1000=Costs!AG$617))-SUMPRODUCT(('Fixed assets'!$S$2:$S$1000)*('Fixed assets'!$P$2:$P$1000<Costs!$A631)*('Fixed assets'!$Q$2:$Q$1000=Costs!AG$617))-SUMPRODUCT(('Fixed assets'!$Q$2:$Q$1000=Costs!AG$617)*('Fixed assets'!$U$2:$U$1000=Costs!$A631)*('Fixed assets'!$S$2:$S$1000))+SUMPRODUCT(('Fixed assets'!$Q$2:$Q$1000=Costs!AG$617)*('Fixed assets'!$P$2:$P$1000=Costs!$A631)*('Fixed assets'!$U$2:$U$1000=Costs!$A631)*('Fixed assets'!$R$2:$R$1000))","v":0},{"$f":"SUMPRODUCT(('Fixed assets'!$R$2:$R$1000)*('Fixed assets'!$P$2:$P$1000<$A631)*('Fixed assets'!$Q$2:$Q$1000=Costs!AH$617))-SUMPRODUCT(('Fixed assets'!$S$2:$S$1000)*('Fixed assets'!$P$2:$P$1000<Costs!$A631)*('Fixed assets'!$Q$2:$Q$1000=Costs!AH$617))-SUMPRODUCT(('Fixed assets'!$Q$2:$Q$1000=Costs!AH$617)*('Fixed assets'!$U$2:$U$1000=Costs!$A631)*('Fixed assets'!$S$2:$S$1000))+SUMPRODUCT(('Fixed assets'!$Q$2:$Q$1000=Costs!AH$617)*('Fixed assets'!$P$2:$P$1000=Costs!$A631)*('Fixed assets'!$U$2:$U$1000=Costs!$A631)*('Fixed assets'!$R$2:$R$1000))","v":0},{"$f":"SUMPRODUCT(('Fixed assets'!$R$2:$R$1000)*('Fixed assets'!$P$2:$P$1000<$A631)*('Fixed assets'!$Q$2:$Q$1000=Costs!AI$617))-SUMPRODUCT(('Fixed assets'!$S$2:$S$1000)*('Fixed assets'!$P$2:$P$1000<Costs!$A631)*('Fixed assets'!$Q$2:$Q$1000=Costs!AI$617))-SUMPRODUCT(('Fixed assets'!$Q$2:$Q$1000=Costs!AI$617)*('Fixed assets'!$U$2:$U$1000=Costs!$A631)*('Fixed assets'!$S$2:$S$1000))+SUMPRODUCT(('Fixed assets'!$Q$2:$Q$1000=Costs!AI$617)*('Fixed assets'!$P$2:$P$1000=Costs!$A631)*('Fixed assets'!$U$2:$U$1000=Costs!$A631)*('Fixed assets'!$R$2:$R$1000))","v":0},{"$f":"SUMPRODUCT(('Fixed assets'!$R$2:$R$1000)*('Fixed assets'!$P$2:$P$1000<$A631)*('Fixed assets'!$Q$2:$Q$1000=Costs!AJ$617))-SUMPRODUCT(('Fixed assets'!$S$2:$S$1000)*('Fixed assets'!$P$2:$P$1000<Costs!$A631)*('Fixed assets'!$Q$2:$Q$1000=Costs!AJ$617))-SUMPRODUCT(('Fixed assets'!$Q$2:$Q$1000=Costs!AJ$617)*('Fixed assets'!$U$2:$U$1000=Costs!$A631)*('Fixed assets'!$S$2:$S$1000))+SUMPRODUCT(('Fixed assets'!$Q$2:$Q$1000=Costs!AJ$617)*('Fixed assets'!$P$2:$P$1000=Costs!$A631)*('Fixed assets'!$U$2:$U$1000=Costs!$A631)*('Fixed assets'!$R$2:$R$1000))","v":0},{"$f":"SUMPRODUCT(('Fixed assets'!$R$2:$R$1000)*('Fixed assets'!$P$2:$P$1000<$A631)*('Fixed assets'!$Q$2:$Q$1000=Costs!AK$617))-SUMPRODUCT(('Fixed assets'!$S$2:$S$1000)*('Fixed assets'!$P$2:$P$1000<Costs!$A631)*('Fixed assets'!$Q$2:$Q$1000=Costs!AK$617))-SUMPRODUCT(('Fixed assets'!$Q$2:$Q$1000=Costs!AK$617)*('Fixed assets'!$U$2:$U$1000=Costs!$A631)*('Fixed assets'!$S$2:$S$1000))+SUMPRODUCT(('Fixed assets'!$Q$2:$Q$1000=Costs!AK$617)*('Fixed assets'!$P$2:$P$1000=Costs!$A631)*('Fixed assets'!$U$2:$U$1000=Costs!$A631)*('Fixed assets'!$R$2:$R$1000))","v":0},{"$f":"SUMPRODUCT(('Fixed assets'!$R$2:$R$1000)*('Fixed assets'!$P$2:$P$1000<$A631)*('Fixed assets'!$Q$2:$Q$1000=Costs!AL$617))-SUMPRODUCT(('Fixed assets'!$S$2:$S$1000)*('Fixed assets'!$P$2:$P$1000<Costs!$A631)*('Fixed assets'!$Q$2:$Q$1000=Costs!AL$617))-SUMPRODUCT(('Fixed assets'!$Q$2:$Q$1000=Costs!AL$617)*('Fixed assets'!$U$2:$U$1000=Costs!$A631)*('Fixed assets'!$S$2:$S$1000))+SUMPRODUCT(('Fixed assets'!$Q$2:$Q$1000=Costs!AL$617)*('Fixed assets'!$P$2:$P$1000=Costs!$A631)*('Fixed assets'!$U$2:$U$1000=Costs!$A631)*('Fixed assets'!$R$2:$R$1000))","v":0},{"$f":"SUMPRODUCT(('Fixed assets'!$R$2:$R$1000)*('Fixed assets'!$P$2:$P$1000<$A631)*('Fixed assets'!$Q$2:$Q$1000=Costs!AM$617))-SUMPRODUCT(('Fixed assets'!$S$2:$S$1000)*('Fixed assets'!$P$2:$P$1000<Costs!$A631)*('Fixed assets'!$Q$2:$Q$1000=Costs!AM$617))-SUMPRODUCT(('Fixed assets'!$Q$2:$Q$1000=Costs!AM$617)*('Fixed assets'!$U$2:$U$1000=Costs!$A631)*('Fixed assets'!$S$2:$S$1000))+SUMPRODUCT(('Fixed assets'!$Q$2:$Q$1000=Costs!AM$617)*('Fixed assets'!$P$2:$P$1000=Costs!$A631)*('Fixed assets'!$U$2:$U$1000=Costs!$A631)*('Fixed assets'!$R$2:$R$1000))","v":0},{"$f":"SUMPRODUCT(('Fixed assets'!$R$2:$R$1000)*('Fixed assets'!$P$2:$P$1000<$A631)*('Fixed assets'!$Q$2:$Q$1000=Costs!AN$617))-SUMPRODUCT(('Fixed assets'!$S$2:$S$1000)*('Fixed assets'!$P$2:$P$1000<Costs!$A631)*('Fixed assets'!$Q$2:$Q$1000=Costs!AN$617))-SUMPRODUCT(('Fixed assets'!$Q$2:$Q$1000=Costs!AN$617)*('Fixed assets'!$U$2:$U$1000=Costs!$A631)*('Fixed assets'!$S$2:$S$1000))+SUMPRODUCT(('Fixed assets'!$Q$2:$Q$1000=Costs!AN$617)*('Fixed assets'!$P$2:$P$1000=Costs!$A631)*('Fixed assets'!$U$2:$U$1000=Costs!$A631)*('Fixed assets'!$R$2:$R$1000))","v":0},{"$f":"SUMPRODUCT(('Fixed assets'!$R$2:$R$1000)*('Fixed assets'!$P$2:$P$1000<$A631)*('Fixed assets'!$Q$2:$Q$1000=Costs!AO$617))-SUMPRODUCT(('Fixed assets'!$S$2:$S$1000)*('Fixed assets'!$P$2:$P$1000<Costs!$A631)*('Fixed assets'!$Q$2:$Q$1000=Costs!AO$617))-SUMPRODUCT(('Fixed assets'!$Q$2:$Q$1000=Costs!AO$617)*('Fixed assets'!$U$2:$U$1000=Costs!$A631)*('Fixed assets'!$S$2:$S$1000))+SUMPRODUCT(('Fixed assets'!$Q$2:$Q$1000=Costs!AO$617)*('Fixed assets'!$P$2:$P$1000=Costs!$A631)*('Fixed assets'!$U$2:$U$1000=Costs!$A631)*('Fixed assets'!$R$2:$R$1000))","v":0},{"$f":"SUMPRODUCT(('Fixed assets'!$R$2:$R$1000)*('Fixed assets'!$P$2:$P$1000<$A631)*('Fixed assets'!$Q$2:$Q$1000=Costs!AP$617))-SUMPRODUCT(('Fixed assets'!$S$2:$S$1000)*('Fixed assets'!$P$2:$P$1000<Costs!$A631)*('Fixed assets'!$Q$2:$Q$1000=Costs!AP$617))-SUMPRODUCT(('Fixed assets'!$Q$2:$Q$1000=Costs!AP$617)*('Fixed assets'!$U$2:$U$1000=Costs!$A631)*('Fixed assets'!$S$2:$S$1000))+SUMPRODUCT(('Fixed assets'!$Q$2:$Q$1000=Costs!AP$617)*('Fixed assets'!$P$2:$P$1000=Costs!$A631)*('Fixed assets'!$U$2:$U$1000=Costs!$A631)*('Fixed assets'!$R$2:$R$1000))","v":0},{"$f":"SUMPRODUCT(('Fixed assets'!$R$2:$R$1000)*('Fixed assets'!$P$2:$P$1000<$A631)*('Fixed assets'!$Q$2:$Q$1000=Costs!AQ$617))-SUMPRODUCT(('Fixed assets'!$S$2:$S$1000)*('Fixed assets'!$P$2:$P$1000<Costs!$A631)*('Fixed assets'!$Q$2:$Q$1000=Costs!AQ$617))-SUMPRODUCT(('Fixed assets'!$Q$2:$Q$1000=Costs!AQ$617)*('Fixed assets'!$U$2:$U$1000=Costs!$A631)*('Fixed assets'!$S$2:$S$1000))+SUMPRODUCT(('Fixed assets'!$Q$2:$Q$1000=Costs!AQ$617)*('Fixed assets'!$P$2:$P$1000=Costs!$A631)*('Fixed assets'!$U$2:$U$1000=Costs!$A631)*('Fixed assets'!$R$2:$R$1000))","v":0}]
[2029,0,{"$f":"SUMPRODUCT(('Fixed assets'!$R$2:$R$1000)*('Fixed assets'!$P$2:$P$1000<$A632)*('Fixed assets'!$Q$2:$Q$1000=Costs!C$617))-SUMPRODUCT(('Fixed assets'!$S$2:$S$1000)*('Fixed assets'!$P$2:$P$1000<Costs!$A632)*('Fixed assets'!$Q$2:$Q$1000=Costs!C$617))-SUMPRODUCT(('Fixed assets'!$Q$2:$Q$1000=Costs!C$617)*('Fixed assets'!$U$2:$U$1000=Costs!$A632)*('Fixed assets'!$S$2:$S$1000))+SUMPRODUCT(('Fixed assets'!$Q$2:$Q$1000=Costs!C$617)*('Fixed assets'!$P$2:$P$1000=Costs!$A632)*('Fixed assets'!$U$2:$U$1000=Costs!$A632)*('Fixed assets'!$R$2:$R$1000))","v":0},{"$f":"SUMPRODUCT(('Fixed assets'!$R$2:$R$1000)*('Fixed assets'!$P$2:$P$1000<$A632)*('Fixed assets'!$Q$2:$Q$1000=Costs!D$617))-SUMPRODUCT(('Fixed assets'!$S$2:$S$1000)*('Fixed assets'!$P$2:$P$1000<Costs!$A632)*('Fixed assets'!$Q$2:$Q$1000=Costs!D$617))-SUMPRODUCT(('Fixed assets'!$Q$2:$Q$1000=Costs!D$617)*('Fixed assets'!$U$2:$U$1000=Costs!$A632)*('Fixed assets'!$S$2:$S$1000))+SUMPRODUCT(('Fixed assets'!$Q$2:$Q$1000=Costs!D$617)*('Fixed assets'!$P$2:$P$1000=Costs!$A632)*('Fixed assets'!$U$2:$U$1000=Costs!$A632)*('Fixed assets'!$R$2:$R$1000))","v":0},{"$f":"SUMPRODUCT(('Fixed assets'!$R$2:$R$1000)*('Fixed assets'!$P$2:$P$1000<$A632)*('Fixed assets'!$Q$2:$Q$1000=Costs!E$617))-SUMPRODUCT(('Fixed assets'!$S$2:$S$1000)*('Fixed assets'!$P$2:$P$1000<Costs!$A632)*('Fixed assets'!$Q$2:$Q$1000=Costs!E$617))-SUMPRODUCT(('Fixed assets'!$Q$2:$Q$1000=Costs!E$617)*('Fixed assets'!$U$2:$U$1000=Costs!$A632)*('Fixed assets'!$S$2:$S$1000))+SUMPRODUCT(('Fixed assets'!$Q$2:$Q$1000=Costs!E$617)*('Fixed assets'!$P$2:$P$1000=Costs!$A632)*('Fixed assets'!$U$2:$U$1000=Costs!$A632)*('Fixed assets'!$R$2:$R$1000))","v":0},{"$f":"SUMPRODUCT(('Fixed assets'!$R$2:$R$1000)*('Fixed assets'!$P$2:$P$1000<$A632)*('Fixed assets'!$Q$2:$Q$1000=Costs!F$617))-SUMPRODUCT(('Fixed assets'!$S$2:$S$1000)*('Fixed assets'!$P$2:$P$1000<Costs!$A632)*('Fixed assets'!$Q$2:$Q$1000=Costs!F$617))-SUMPRODUCT(('Fixed assets'!$Q$2:$Q$1000=Costs!F$617)*('Fixed assets'!$U$2:$U$1000=Costs!$A632)*('Fixed assets'!$S$2:$S$1000))+SUMPRODUCT(('Fixed assets'!$Q$2:$Q$1000=Costs!F$617)*('Fixed assets'!$P$2:$P$1000=Costs!$A632)*('Fixed assets'!$U$2:$U$1000=Costs!$A632)*('Fixed assets'!$R$2:$R$1000))","v":0},{"$f":"SUMPRODUCT(('Fixed assets'!$R$2:$R$1000)*('Fixed assets'!$P$2:$P$1000<$A632)*('Fixed assets'!$Q$2:$Q$1000=Costs!G$617))-SUMPRODUCT(('Fixed assets'!$S$2:$S$1000)*('Fixed assets'!$P$2:$P$1000<Costs!$A632)*('Fixed assets'!$Q$2:$Q$1000=Costs!G$617))-SUMPRODUCT(('Fixed assets'!$Q$2:$Q$1000=Costs!G$617)*('Fixed assets'!$U$2:$U$1000=Costs!$A632)*('Fixed assets'!$S$2:$S$1000))+SUMPRODUCT(('Fixed assets'!$Q$2:$Q$1000=Costs!G$617)*('Fixed assets'!$P$2:$P$1000=Costs!$A632)*('Fixed assets'!$U$2:$U$1000=Costs!$A632)*('Fixed assets'!$R$2:$R$1000))","v":0},{"$f":"SUMPRODUCT(('Fixed assets'!$R$2:$R$1000)*('Fixed assets'!$P$2:$P$1000<$A632)*('Fixed assets'!$Q$2:$Q$1000=Costs!H$617))-SUMPRODUCT(('Fixed assets'!$S$2:$S$1000)*('Fixed assets'!$P$2:$P$1000<Costs!$A632)*('Fixed assets'!$Q$2:$Q$1000=Costs!H$617))-SUMPRODUCT(('Fixed assets'!$Q$2:$Q$1000=Costs!H$617)*('Fixed assets'!$U$2:$U$1000=Costs!$A632)*('Fixed assets'!$S$2:$S$1000))+SUMPRODUCT(('Fixed assets'!$Q$2:$Q$1000=Costs!H$617)*('Fixed assets'!$P$2:$P$1000=Costs!$A632)*('Fixed assets'!$U$2:$U$1000=Costs!$A632)*('Fixed assets'!$R$2:$R$1000))","v":0},{"$f":"SUMPRODUCT(('Fixed assets'!$R$2:$R$1000)*('Fixed assets'!$P$2:$P$1000<$A632)*('Fixed assets'!$Q$2:$Q$1000=Costs!I$617))-SUMPRODUCT(('Fixed assets'!$S$2:$S$1000)*('Fixed assets'!$P$2:$P$1000<Costs!$A632)*('Fixed assets'!$Q$2:$Q$1000=Costs!I$617))-SUMPRODUCT(('Fixed assets'!$Q$2:$Q$1000=Costs!I$617)*('Fixed assets'!$U$2:$U$1000=Costs!$A632)*('Fixed assets'!$S$2:$S$1000))+SUMPRODUCT(('Fixed assets'!$Q$2:$Q$1000=Costs!I$617)*('Fixed assets'!$P$2:$P$1000=Costs!$A632)*('Fixed assets'!$U$2:$U$1000=Costs!$A632)*('Fixed assets'!$R$2:$R$1000))","v":0},{"$f":"SUMPRODUCT(('Fixed assets'!$R$2:$R$1000)*('Fixed assets'!$P$2:$P$1000<$A632)*('Fixed assets'!$Q$2:$Q$1000=Costs!J$617))-SUMPRODUCT(('Fixed assets'!$S$2:$S$1000)*('Fixed assets'!$P$2:$P$1000<Costs!$A632)*('Fixed assets'!$Q$2:$Q$1000=Costs!J$617))-SUMPRODUCT(('Fixed assets'!$Q$2:$Q$1000=Costs!J$617)*('Fixed assets'!$U$2:$U$1000=Costs!$A632)*('Fixed assets'!$S$2:$S$1000))+SUMPRODUCT(('Fixed assets'!$Q$2:$Q$1000=Costs!J$617)*('Fixed assets'!$P$2:$P$1000=Costs!$A632)*('Fixed assets'!$U$2:$U$1000=Costs!$A632)*('Fixed assets'!$R$2:$R$1000))","v":0},{"$f":"SUMPRODUCT(('Fixed assets'!$R$2:$R$1000)*('Fixed assets'!$P$2:$P$1000<$A632)*('Fixed assets'!$Q$2:$Q$1000=Costs!K$617))-SUMPRODUCT(('Fixed assets'!$S$2:$S$1000)*('Fixed assets'!$P$2:$P$1000<Costs!$A632)*('Fixed assets'!$Q$2:$Q$1000=Costs!K$617))-SUMPRODUCT(('Fixed assets'!$Q$2:$Q$1000=Costs!K$617)*('Fixed assets'!$U$2:$U$1000=Costs!$A632)*('Fixed assets'!$S$2:$S$1000))+SUMPRODUCT(('Fixed assets'!$Q$2:$Q$1000=Costs!K$617)*('Fixed assets'!$P$2:$P$1000=Costs!$A632)*('Fixed assets'!$U$2:$U$1000=Costs!$A632)*('Fixed assets'!$R$2:$R$1000))","v":0},{"$f":"SUMPRODUCT(('Fixed assets'!$R$2:$R$1000)*('Fixed assets'!$P$2:$P$1000<$A632)*('Fixed assets'!$Q$2:$Q$1000=Costs!L$617))-SUMPRODUCT(('Fixed assets'!$S$2:$S$1000)*('Fixed assets'!$P$2:$P$1000<Costs!$A632)*('Fixed assets'!$Q$2:$Q$1000=Costs!L$617))-SUMPRODUCT(('Fixed assets'!$Q$2:$Q$1000=Costs!L$617)*('Fixed assets'!$U$2:$U$1000=Costs!$A632)*('Fixed assets'!$S$2:$S$1000))+SUMPRODUCT(('Fixed assets'!$Q$2:$Q$1000=Costs!L$617)*('Fixed assets'!$P$2:$P$1000=Costs!$A632)*('Fixed assets'!$U$2:$U$1000=Costs!$A632)*('Fixed assets'!$R$2:$R$1000))","v":0},{"$f":"SUMPRODUCT(('Fixed assets'!$R$2:$R$1000)*('Fixed assets'!$P$2:$P$1000<$A632)*('Fixed assets'!$Q$2:$Q$1000=Costs!M$617))-SUMPRODUCT(('Fixed assets'!$S$2:$S$1000)*('Fixed assets'!$P$2:$P$1000<Costs!$A632)*('Fixed assets'!$Q$2:$Q$1000=Costs!M$617))-SUMPRODUCT(('Fixed assets'!$Q$2:$Q$1000=Costs!M$617)*('Fixed assets'!$U$2:$U$1000=Costs!$A632)*('Fixed assets'!$S$2:$S$1000))+SUMPRODUCT(('Fixed assets'!$Q$2:$Q$1000=Costs!M$617)*('Fixed assets'!$P$2:$P$1000=Costs!$A632)*('Fixed assets'!$U$2:$U$1000=Costs!$A632)*('Fixed assets'!$R$2:$R$1000))","v":0},{"$f":"SUMPRODUCT(('Fixed assets'!$R$2:$R$1000)*('Fixed assets'!$P$2:$P$1000<$A632)*('Fixed assets'!$Q$2:$Q$1000=Costs!N$617))-SUMPRODUCT(('Fixed assets'!$S$2:$S$1000)*('Fixed assets'!$P$2:$P$1000<Costs!$A632)*('Fixed assets'!$Q$2:$Q$1000=Costs!N$617))-SUMPRODUCT(('Fixed assets'!$Q$2:$Q$1000=Costs!N$617)*('Fixed assets'!$U$2:$U$1000=Costs!$A632)*('Fixed assets'!$S$2:$S$1000))+SUMPRODUCT(('Fixed assets'!$Q$2:$Q$1000=Costs!N$617)*('Fixed assets'!$P$2:$P$1000=Costs!$A632)*('Fixed assets'!$U$2:$U$1000=Costs!$A632)*('Fixed assets'!$R$2:$R$1000))","v":0},{"$f":"SUMPRODUCT(('Fixed assets'!$R$2:$R$1000)*('Fixed assets'!$P$2:$P$1000<$A632)*('Fixed assets'!$Q$2:$Q$1000=Costs!O$617))-SUMPRODUCT(('Fixed assets'!$S$2:$S$1000)*('Fixed assets'!$P$2:$P$1000<Costs!$A632)*('Fixed assets'!$Q$2:$Q$1000=Costs!O$617))-SUMPRODUCT(('Fixed assets'!$Q$2:$Q$1000=Costs!O$617)*('Fixed assets'!$U$2:$U$1000=Costs!$A632)*('Fixed assets'!$S$2:$S$1000))+SUMPRODUCT(('Fixed assets'!$Q$2:$Q$1000=Costs!O$617)*('Fixed assets'!$P$2:$P$1000=Costs!$A632)*('Fixed assets'!$U$2:$U$1000=Costs!$A632)*('Fixed assets'!$R$2:$R$1000))","v":0},{"$f":"SUMPRODUCT(('Fixed assets'!$R$2:$R$1000)*('Fixed assets'!$P$2:$P$1000<$A632)*('Fixed assets'!$Q$2:$Q$1000=Costs!P$617))-SUMPRODUCT(('Fixed assets'!$S$2:$S$1000)*('Fixed assets'!$P$2:$P$1000<Costs!$A632)*('Fixed assets'!$Q$2:$Q$1000=Costs!P$617))-SUMPRODUCT(('Fixed assets'!$Q$2:$Q$1000=Costs!P$617)*('Fixed assets'!$U$2:$U$1000=Costs!$A632)*('Fixed assets'!$S$2:$S$1000))+SUMPRODUCT(('Fixed assets'!$Q$2:$Q$1000=Costs!P$617)*('Fixed assets'!$P$2:$P$1000=Costs!$A632)*('Fixed assets'!$U$2:$U$1000=Costs!$A632)*('Fixed assets'!$R$2:$R$1000))","v":0},{"$f":"SUMPRODUCT(('Fixed assets'!$R$2:$R$1000)*('Fixed assets'!$P$2:$P$1000<$A632)*('Fixed assets'!$Q$2:$Q$1000=Costs!Q$617))-SUMPRODUCT(('Fixed assets'!$S$2:$S$1000)*('Fixed assets'!$P$2:$P$1000<Costs!$A632)*('Fixed assets'!$Q$2:$Q$1000=Costs!Q$617))-SUMPRODUCT(('Fixed assets'!$Q$2:$Q$1000=Costs!Q$617)*('Fixed assets'!$U$2:$U$1000=Costs!$A632)*('Fixed assets'!$S$2:$S$1000))+SUMPRODUCT(('Fixed assets'!$Q$2:$Q$1000=Costs!Q$617)*('Fixed assets'!$P$2:$P$1000=Costs!$A632)*('Fixed assets'!$U$2:$U$1000=Costs!$A632)*('Fixed assets'!$R$2:$R$1000))","v":0},{"$f":"SUMPRODUCT(('Fixed assets'!$R$2:$R$1000)*('Fixed assets'!$P$2:$P$1000<$A632)*('Fixed assets'!$Q$2:$Q$1000=Costs!R$617))-SUMPRODUCT(('Fixed assets'!$S$2:$S$1000)*('Fixed assets'!$P$2:$P$1000<Costs!$A632)*('Fixed assets'!$Q$2:$Q$1000=Costs!R$617))-SUMPRODUCT(('Fixed assets'!$Q$2:$Q$1000=Costs!R$617)*('Fixed assets'!$U$2:$U$1000=Costs!$A632)*('Fixed assets'!$S$2:$S$1000))+SUMPRODUCT(('Fixed assets'!$Q$2:$Q$1000=Costs!R$617)*('Fixed assets'!$P$2:$P$1000=Costs!$A632)*('Fixed assets'!$U$2:$U$1000=Costs!$A632)*('Fixed assets'!$R$2:$R$1000))","v":0},{"$f":"SUMPRODUCT(('Fixed assets'!$R$2:$R$1000)*('Fixed assets'!$P$2:$P$1000<$A632)*('Fixed assets'!$Q$2:$Q$1000=Costs!S$617))-SUMPRODUCT(('Fixed assets'!$S$2:$S$1000)*('Fixed assets'!$P$2:$P$1000<Costs!$A632)*('Fixed assets'!$Q$2:$Q$1000=Costs!S$617))-SUMPRODUCT(('Fixed assets'!$Q$2:$Q$1000=Costs!S$617)*('Fixed assets'!$U$2:$U$1000=Costs!$A632)*('Fixed assets'!$S$2:$S$1000))+SUMPRODUCT(('Fixed assets'!$Q$2:$Q$1000=Costs!S$617)*('Fixed assets'!$P$2:$P$1000=Costs!$A632)*('Fixed assets'!$U$2:$U$1000=Costs!$A632)*('Fixed assets'!$R$2:$R$1000))","v":0},{"$f":"SUMPRODUCT(('Fixed assets'!$R$2:$R$1000)*('Fixed assets'!$P$2:$P$1000<$A632)*('Fixed assets'!$Q$2:$Q$1000=Costs!T$617))-SUMPRODUCT(('Fixed assets'!$S$2:$S$1000)*('Fixed assets'!$P$2:$P$1000<Costs!$A632)*('Fixed assets'!$Q$2:$Q$1000=Costs!T$617))-SUMPRODUCT(('Fixed assets'!$Q$2:$Q$1000=Costs!T$617)*('Fixed assets'!$U$2:$U$1000=Costs!$A632)*('Fixed assets'!$S$2:$S$1000))+SUMPRODUCT(('Fixed assets'!$Q$2:$Q$1000=Costs!T$617)*('Fixed assets'!$P$2:$P$1000=Costs!$A632)*('Fixed assets'!$U$2:$U$1000=Costs!$A632)*('Fixed assets'!$R$2:$R$1000))","v":0},{"$f":"SUMPRODUCT(('Fixed assets'!$R$2:$R$1000)*('Fixed assets'!$P$2:$P$1000<$A632)*('Fixed assets'!$Q$2:$Q$1000=Costs!U$617))-SUMPRODUCT(('Fixed assets'!$S$2:$S$1000)*('Fixed assets'!$P$2:$P$1000<Costs!$A632)*('Fixed assets'!$Q$2:$Q$1000=Costs!U$617))-SUMPRODUCT(('Fixed assets'!$Q$2:$Q$1000=Costs!U$617)*('Fixed assets'!$U$2:$U$1000=Costs!$A632)*('Fixed assets'!$S$2:$S$1000))+SUMPRODUCT(('Fixed assets'!$Q$2:$Q$1000=Costs!U$617)*('Fixed assets'!$P$2:$P$1000=Costs!$A632)*('Fixed assets'!$U$2:$U$1000=Costs!$A632)*('Fixed assets'!$R$2:$R$1000))","v":0},{"$f":"SUMPRODUCT(('Fixed assets'!$R$2:$R$1000)*('Fixed assets'!$P$2:$P$1000<$A632)*('Fixed assets'!$Q$2:$Q$1000=Costs!V$617))-SUMPRODUCT(('Fixed assets'!$S$2:$S$1000)*('Fixed assets'!$P$2:$P$1000<Costs!$A632)*('Fixed assets'!$Q$2:$Q$1000=Costs!V$617))-SUMPRODUCT(('Fixed assets'!$Q$2:$Q$1000=Costs!V$617)*('Fixed assets'!$U$2:$U$1000=Costs!$A632)*('Fixed assets'!$S$2:$S$1000))+SUMPRODUCT(('Fixed assets'!$Q$2:$Q$1000=Costs!V$617)*('Fixed assets'!$P$2:$P$1000=Costs!$A632)*('Fixed assets'!$U$2:$U$1000=Costs!$A632)*('Fixed assets'!$R$2:$R$1000))","v":0},{"$f":"SUMPRODUCT(('Fixed assets'!$R$2:$R$1000)*('Fixed assets'!$P$2:$P$1000<$A632)*('Fixed assets'!$Q$2:$Q$1000=Costs!W$617))-SUMPRODUCT(('Fixed assets'!$S$2:$S$1000)*('Fixed assets'!$P$2:$P$1000<Costs!$A632)*('Fixed assets'!$Q$2:$Q$1000=Costs!W$617))-SUMPRODUCT(('Fixed assets'!$Q$2:$Q$1000=Costs!W$617)*('Fixed assets'!$U$2:$U$1000=Costs!$A632)*('Fixed assets'!$S$2:$S$1000))+SUMPRODUCT(('Fixed assets'!$Q$2:$Q$1000=Costs!W$617)*('Fixed assets'!$P$2:$P$1000=Costs!$A632)*('Fixed assets'!$U$2:$U$1000=Costs!$A632)*('Fixed assets'!$R$2:$R$1000))","v":0},{"$f":"SUMPRODUCT(('Fixed assets'!$R$2:$R$1000)*('Fixed assets'!$P$2:$P$1000<$A632)*('Fixed assets'!$Q$2:$Q$1000=Costs!X$617))-SUMPRODUCT(('Fixed assets'!$S$2:$S$1000)*('Fixed assets'!$P$2:$P$1000<Costs!$A632)*('Fixed assets'!$Q$2:$Q$1000=Costs!X$617))-SUMPRODUCT(('Fixed assets'!$Q$2:$Q$1000=Costs!X$617)*('Fixed assets'!$U$2:$U$1000=Costs!$A632)*('Fixed assets'!$S$2:$S$1000))+SUMPRODUCT(('Fixed assets'!$Q$2:$Q$1000=Costs!X$617)*('Fixed assets'!$P$2:$P$1000=Costs!$A632)*('Fixed assets'!$U$2:$U$1000=Costs!$A632)*('Fixed assets'!$R$2:$R$1000))","v":0},{"$f":"SUMPRODUCT(('Fixed assets'!$R$2:$R$1000)*('Fixed assets'!$P$2:$P$1000<$A632)*('Fixed assets'!$Q$2:$Q$1000=Costs!Y$617))-SUMPRODUCT(('Fixed assets'!$S$2:$S$1000)*('Fixed assets'!$P$2:$P$1000<Costs!$A632)*('Fixed assets'!$Q$2:$Q$1000=Costs!Y$617))-SUMPRODUCT(('Fixed assets'!$Q$2:$Q$1000=Costs!Y$617)*('Fixed assets'!$U$2:$U$1000=Costs!$A632)*('Fixed assets'!$S$2:$S$1000))+SUMPRODUCT(('Fixed assets'!$Q$2:$Q$1000=Costs!Y$617)*('Fixed assets'!$P$2:$P$1000=Costs!$A632)*('Fixed assets'!$U$2:$U$1000=Costs!$A632)*('Fixed assets'!$R$2:$R$1000))","v":0},{"$f":"SUMPRODUCT(('Fixed assets'!$R$2:$R$1000)*('Fixed assets'!$P$2:$P$1000<$A632)*('Fixed assets'!$Q$2:$Q$1000=Costs!Z$617))-SUMPRODUCT(('Fixed assets'!$S$2:$S$1000)*('Fixed assets'!$P$2:$P$1000<Costs!$A632)*('Fixed assets'!$Q$2:$Q$1000=Costs!Z$617))-SUMPRODUCT(('Fixed assets'!$Q$2:$Q$1000=Costs!Z$617)*('Fixed assets'!$U$2:$U$1000=Costs!$A632)*('Fixed assets'!$S$2:$S$1000))+SUMPRODUCT(('Fixed assets'!$Q$2:$Q$1000=Costs!Z$617)*('Fixed assets'!$P$2:$P$1000=Costs!$A632)*('Fixed assets'!$U$2:$U$1000=Costs!$A632)*('Fixed assets'!$R$2:$R$1000))","v":0},{"$f":"SUMPRODUCT(('Fixed assets'!$R$2:$R$1000)*('Fixed assets'!$P$2:$P$1000<$A632)*('Fixed assets'!$Q$2:$Q$1000=Costs!AA$617))-SUMPRODUCT(('Fixed assets'!$S$2:$S$1000)*('Fixed assets'!$P$2:$P$1000<Costs!$A632)*('Fixed assets'!$Q$2:$Q$1000=Costs!AA$617))-SUMPRODUCT(('Fixed assets'!$Q$2:$Q$1000=Costs!AA$617)*('Fixed assets'!$U$2:$U$1000=Costs!$A632)*('Fixed assets'!$S$2:$S$1000))+SUMPRODUCT(('Fixed assets'!$Q$2:$Q$1000=Costs!AA$617)*('Fixed assets'!$P$2:$P$1000=Costs!$A632)*('Fixed assets'!$U$2:$U$1000=Costs!$A632)*('Fixed assets'!$R$2:$R$1000))","v":0},{"$f":"SUMPRODUCT(('Fixed assets'!$R$2:$R$1000)*('Fixed assets'!$P$2:$P$1000<$A632)*('Fixed assets'!$Q$2:$Q$1000=Costs!AB$617))-SUMPRODUCT(('Fixed assets'!$S$2:$S$1000)*('Fixed assets'!$P$2:$P$1000<Costs!$A632)*('Fixed assets'!$Q$2:$Q$1000=Costs!AB$617))-SUMPRODUCT(('Fixed assets'!$Q$2:$Q$1000=Costs!AB$617)*('Fixed assets'!$U$2:$U$1000=Costs!$A632)*('Fixed assets'!$S$2:$S$1000))+SUMPRODUCT(('Fixed assets'!$Q$2:$Q$1000=Costs!AB$617)*('Fixed assets'!$P$2:$P$1000=Costs!$A632)*('Fixed assets'!$U$2:$U$1000=Costs!$A632)*('Fixed assets'!$R$2:$R$1000))","v":0},{"$f":"SUMPRODUCT(('Fixed assets'!$R$2:$R$1000)*('Fixed assets'!$P$2:$P$1000<$A632)*('Fixed assets'!$Q$2:$Q$1000=Costs!AC$617))-SUMPRODUCT(('Fixed assets'!$S$2:$S$1000)*('Fixed assets'!$P$2:$P$1000<Costs!$A632)*('Fixed assets'!$Q$2:$Q$1000=Costs!AC$617))-SUMPRODUCT(('Fixed assets'!$Q$2:$Q$1000=Costs!AC$617)*('Fixed assets'!$U$2:$U$1000=Costs!$A632)*('Fixed assets'!$S$2:$S$1000))+SUMPRODUCT(('Fixed assets'!$Q$2:$Q$1000=Costs!AC$617)*('Fixed assets'!$P$2:$P$1000=Costs!$A632)*('Fixed assets'!$U$2:$U$1000=Costs!$A632)*('Fixed assets'!$R$2:$R$1000))","v":0},{"$f":"SUMPRODUCT(('Fixed assets'!$R$2:$R$1000)*('Fixed assets'!$P$2:$P$1000<$A632)*('Fixed assets'!$Q$2:$Q$1000=Costs!AD$617))-SUMPRODUCT(('Fixed assets'!$S$2:$S$1000)*('Fixed assets'!$P$2:$P$1000<Costs!$A632)*('Fixed assets'!$Q$2:$Q$1000=Costs!AD$617))-SUMPRODUCT(('Fixed assets'!$Q$2:$Q$1000=Costs!AD$617)*('Fixed assets'!$U$2:$U$1000=Costs!$A632)*('Fixed assets'!$S$2:$S$1000))+SUMPRODUCT(('Fixed assets'!$Q$2:$Q$1000=Costs!AD$617)*('Fixed assets'!$P$2:$P$1000=Costs!$A632)*('Fixed assets'!$U$2:$U$1000=Costs!$A632)*('Fixed assets'!$R$2:$R$1000))","v":0},{"$f":"SUMPRODUCT(('Fixed assets'!$R$2:$R$1000)*('Fixed assets'!$P$2:$P$1000<$A632)*('Fixed assets'!$Q$2:$Q$1000=Costs!AE$617))-SUMPRODUCT(('Fixed assets'!$S$2:$S$1000)*('Fixed assets'!$P$2:$P$1000<Costs!$A632)*('Fixed assets'!$Q$2:$Q$1000=Costs!AE$617))-SUMPRODUCT(('Fixed assets'!$Q$2:$Q$1000=Costs!AE$617)*('Fixed assets'!$U$2:$U$1000=Costs!$A632)*('Fixed assets'!$S$2:$S$1000))+SUMPRODUCT(('Fixed assets'!$Q$2:$Q$1000=Costs!AE$617)*('Fixed assets'!$P$2:$P$1000=Costs!$A632)*('Fixed assets'!$U$2:$U$1000=Costs!$A632)*('Fixed assets'!$R$2:$R$1000))","v":0},{"$f":"SUMPRODUCT(('Fixed assets'!$R$2:$R$1000)*('Fixed assets'!$P$2:$P$1000<$A632)*('Fixed assets'!$Q$2:$Q$1000=Costs!AF$617))-SUMPRODUCT(('Fixed assets'!$S$2:$S$1000)*('Fixed assets'!$P$2:$P$1000<Costs!$A632)*('Fixed assets'!$Q$2:$Q$1000=Costs!AF$617))-SUMPRODUCT(('Fixed assets'!$Q$2:$Q$1000=Costs!AF$617)*('Fixed assets'!$U$2:$U$1000=Costs!$A632)*('Fixed assets'!$S$2:$S$1000))+SUMPRODUCT(('Fixed assets'!$Q$2:$Q$1000=Costs!AF$617)*('Fixed assets'!$P$2:$P$1000=Costs!$A632)*('Fixed assets'!$U$2:$U$1000=Costs!$A632)*('Fixed assets'!$R$2:$R$1000))","v":0},{"$f":"SUMPRODUCT(('Fixed assets'!$R$2:$R$1000)*('Fixed assets'!$P$2:$P$1000<$A632)*('Fixed assets'!$Q$2:$Q$1000=Costs!AG$617))-SUMPRODUCT(('Fixed assets'!$S$2:$S$1000)*('Fixed assets'!$P$2:$P$1000<Costs!$A632)*('Fixed assets'!$Q$2:$Q$1000=Costs!AG$617))-SUMPRODUCT(('Fixed assets'!$Q$2:$Q$1000=Costs!AG$617)*('Fixed assets'!$U$2:$U$1000=Costs!$A632)*('Fixed assets'!$S$2:$S$1000))+SUMPRODUCT(('Fixed assets'!$Q$2:$Q$1000=Costs!AG$617)*('Fixed assets'!$P$2:$P$1000=Costs!$A632)*('Fixed assets'!$U$2:$U$1000=Costs!$A632)*('Fixed assets'!$R$2:$R$1000))","v":0},{"$f":"SUMPRODUCT(('Fixed assets'!$R$2:$R$1000)*('Fixed assets'!$P$2:$P$1000<$A632)*('Fixed assets'!$Q$2:$Q$1000=Costs!AH$617))-SUMPRODUCT(('Fixed assets'!$S$2:$S$1000)*('Fixed assets'!$P$2:$P$1000<Costs!$A632)*('Fixed assets'!$Q$2:$Q$1000=Costs!AH$617))-SUMPRODUCT(('Fixed assets'!$Q$2:$Q$1000=Costs!AH$617)*('Fixed assets'!$U$2:$U$1000=Costs!$A632)*('Fixed assets'!$S$2:$S$1000))+SUMPRODUCT(('Fixed assets'!$Q$2:$Q$1000=Costs!AH$617)*('Fixed assets'!$P$2:$P$1000=Costs!$A632)*('Fixed assets'!$U$2:$U$1000=Costs!$A632)*('Fixed assets'!$R$2:$R$1000))","v":0},{"$f":"SUMPRODUCT(('Fixed assets'!$R$2:$R$1000)*('Fixed assets'!$P$2:$P$1000<$A632)*('Fixed assets'!$Q$2:$Q$1000=Costs!AI$617))-SUMPRODUCT(('Fixed assets'!$S$2:$S$1000)*('Fixed assets'!$P$2:$P$1000<Costs!$A632)*('Fixed assets'!$Q$2:$Q$1000=Costs!AI$617))-SUMPRODUCT(('Fixed assets'!$Q$2:$Q$1000=Costs!AI$617)*('Fixed assets'!$U$2:$U$1000=Costs!$A632)*('Fixed assets'!$S$2:$S$1000))+SUMPRODUCT(('Fixed assets'!$Q$2:$Q$1000=Costs!AI$617)*('Fixed assets'!$P$2:$P$1000=Costs!$A632)*('Fixed assets'!$U$2:$U$1000=Costs!$A632)*('Fixed assets'!$R$2:$R$1000))","v":0},{"$f":"SUMPRODUCT(('Fixed assets'!$R$2:$R$1000)*('Fixed assets'!$P$2:$P$1000<$A632)*('Fixed assets'!$Q$2:$Q$1000=Costs!AJ$617))-SUMPRODUCT(('Fixed assets'!$S$2:$S$1000)*('Fixed assets'!$P$2:$P$1000<Costs!$A632)*('Fixed assets'!$Q$2:$Q$1000=Costs!AJ$617))-SUMPRODUCT(('Fixed assets'!$Q$2:$Q$1000=Costs!AJ$617)*('Fixed assets'!$U$2:$U$1000=Costs!$A632)*('Fixed assets'!$S$2:$S$1000))+SUMPRODUCT(('Fixed assets'!$Q$2:$Q$1000=Costs!AJ$617)*('Fixed assets'!$P$2:$P$1000=Costs!$A632)*('Fixed assets'!$U$2:$U$1000=Costs!$A632)*('Fixed assets'!$R$2:$R$1000))","v":0},{"$f":"SUMPRODUCT(('Fixed assets'!$R$2:$R$1000)*('Fixed assets'!$P$2:$P$1000<$A632)*('Fixed assets'!$Q$2:$Q$1000=Costs!AK$617))-SUMPRODUCT(('Fixed assets'!$S$2:$S$1000)*('Fixed assets'!$P$2:$P$1000<Costs!$A632)*('Fixed assets'!$Q$2:$Q$1000=Costs!AK$617))-SUMPRODUCT(('Fixed assets'!$Q$2:$Q$1000=Costs!AK$617)*('Fixed assets'!$U$2:$U$1000=Costs!$A632)*('Fixed assets'!$S$2:$S$1000))+SUMPRODUCT(('Fixed assets'!$Q$2:$Q$1000=Costs!AK$617)*('Fixed assets'!$P$2:$P$1000=Costs!$A632)*('Fixed assets'!$U$2:$U$1000=Costs!$A632)*('Fixed assets'!$R$2:$R$1000))","v":0},{"$f":"SUMPRODUCT(('Fixed assets'!$R$2:$R$1000)*('Fixed assets'!$P$2:$P$1000<$A632)*('Fixed assets'!$Q$2:$Q$1000=Costs!AL$617))-SUMPRODUCT(('Fixed assets'!$S$2:$S$1000)*('Fixed assets'!$P$2:$P$1000<Costs!$A632)*('Fixed assets'!$Q$2:$Q$1000=Costs!AL$617))-SUMPRODUCT(('Fixed assets'!$Q$2:$Q$1000=Costs!AL$617)*('Fixed assets'!$U$2:$U$1000=Costs!$A632)*('Fixed assets'!$S$2:$S$1000))+SUMPRODUCT(('Fixed assets'!$Q$2:$Q$1000=Costs!AL$617)*('Fixed assets'!$P$2:$P$1000=Costs!$A632)*('Fixed assets'!$U$2:$U$1000=Costs!$A632)*('Fixed assets'!$R$2:$R$1000))","v":0},{"$f":"SUMPRODUCT(('Fixed assets'!$R$2:$R$1000)*('Fixed assets'!$P$2:$P$1000<$A632)*('Fixed assets'!$Q$2:$Q$1000=Costs!AM$617))-SUMPRODUCT(('Fixed assets'!$S$2:$S$1000)*('Fixed assets'!$P$2:$P$1000<Costs!$A632)*('Fixed assets'!$Q$2:$Q$1000=Costs!AM$617))-SUMPRODUCT(('Fixed assets'!$Q$2:$Q$1000=Costs!AM$617)*('Fixed assets'!$U$2:$U$1000=Costs!$A632)*('Fixed assets'!$S$2:$S$1000))+SUMPRODUCT(('Fixed assets'!$Q$2:$Q$1000=Costs!AM$617)*('Fixed assets'!$P$2:$P$1000=Costs!$A632)*('Fixed assets'!$U$2:$U$1000=Costs!$A632)*('Fixed assets'!$R$2:$R$1000))","v":0},{"$f":"SUMPRODUCT(('Fixed assets'!$R$2:$R$1000)*('Fixed assets'!$P$2:$P$1000<$A632)*('Fixed assets'!$Q$2:$Q$1000=Costs!AN$617))-SUMPRODUCT(('Fixed assets'!$S$2:$S$1000)*('Fixed assets'!$P$2:$P$1000<Costs!$A632)*('Fixed assets'!$Q$2:$Q$1000=Costs!AN$617))-SUMPRODUCT(('Fixed assets'!$Q$2:$Q$1000=Costs!AN$617)*('Fixed assets'!$U$2:$U$1000=Costs!$A632)*('Fixed assets'!$S$2:$S$1000))+SUMPRODUCT(('Fixed assets'!$Q$2:$Q$1000=Costs!AN$617)*('Fixed assets'!$P$2:$P$1000=Costs!$A632)*('Fixed assets'!$U$2:$U$1000=Costs!$A632)*('Fixed assets'!$R$2:$R$1000))","v":0},{"$f":"SUMPRODUCT(('Fixed assets'!$R$2:$R$1000)*('Fixed assets'!$P$2:$P$1000<$A632)*('Fixed assets'!$Q$2:$Q$1000=Costs!AO$617))-SUMPRODUCT(('Fixed assets'!$S$2:$S$1000)*('Fixed assets'!$P$2:$P$1000<Costs!$A632)*('Fixed assets'!$Q$2:$Q$1000=Costs!AO$617))-SUMPRODUCT(('Fixed assets'!$Q$2:$Q$1000=Costs!AO$617)*('Fixed assets'!$U$2:$U$1000=Costs!$A632)*('Fixed assets'!$S$2:$S$1000))+SUMPRODUCT(('Fixed assets'!$Q$2:$Q$1000=Costs!AO$617)*('Fixed assets'!$P$2:$P$1000=Costs!$A632)*('Fixed assets'!$U$2:$U$1000=Costs!$A632)*('Fixed assets'!$R$2:$R$1000))","v":0},{"$f":"SUMPRODUCT(('Fixed assets'!$R$2:$R$1000)*('Fixed assets'!$P$2:$P$1000<$A632)*('Fixed assets'!$Q$2:$Q$1000=Costs!AP$617))-SUMPRODUCT(('Fixed assets'!$S$2:$S$1000)*('Fixed assets'!$P$2:$P$1000<Costs!$A632)*('Fixed assets'!$Q$2:$Q$1000=Costs!AP$617))-SUMPRODUCT(('Fixed assets'!$Q$2:$Q$1000=Costs!AP$617)*('Fixed assets'!$U$2:$U$1000=Costs!$A632)*('Fixed assets'!$S$2:$S$1000))+SUMPRODUCT(('Fixed assets'!$Q$2:$Q$1000=Costs!AP$617)*('Fixed assets'!$P$2:$P$1000=Costs!$A632)*('Fixed assets'!$U$2:$U$1000=Costs!$A632)*('Fixed assets'!$R$2:$R$1000))","v":0},{"$f":"SUMPRODUCT(('Fixed assets'!$R$2:$R$1000)*('Fixed assets'!$P$2:$P$1000<$A632)*('Fixed assets'!$Q$2:$Q$1000=Costs!AQ$617))-SUMPRODUCT(('Fixed assets'!$S$2:$S$1000)*('Fixed assets'!$P$2:$P$1000<Costs!$A632)*('Fixed assets'!$Q$2:$Q$1000=Costs!AQ$617))-SUMPRODUCT(('Fixed assets'!$Q$2:$Q$1000=Costs!AQ$617)*('Fixed assets'!$U$2:$U$1000=Costs!$A632)*('Fixed assets'!$S$2:$S$1000))+SUMPRODUCT(('Fixed assets'!$Q$2:$Q$1000=Costs!AQ$617)*('Fixed assets'!$P$2:$P$1000=Costs!$A632)*('Fixed assets'!$U$2:$U$1000=Costs!$A632)*('Fixed assets'!$R$2:$R$1000))","v":0}]
[2030,0,{"$f":"SUMPRODUCT(('Fixed assets'!$R$2:$R$1000)*('Fixed assets'!$P$2:$P$1000<$A633)*('Fixed assets'!$Q$2:$Q$1000=Costs!C$617))-SUMPRODUCT(('Fixed assets'!$S$2:$S$1000)*('Fixed assets'!$P$2:$P$1000<Costs!$A633)*('Fixed assets'!$Q$2:$Q$1000=Costs!C$617))-SUMPRODUCT(('Fixed assets'!$Q$2:$Q$1000=Costs!C$617)*('Fixed assets'!$U$2:$U$1000=Costs!$A633)*('Fixed assets'!$S$2:$S$1000))+SUMPRODUCT(('Fixed assets'!$Q$2:$Q$1000=Costs!C$617)*('Fixed assets'!$P$2:$P$1000=Costs!$A633)*('Fixed assets'!$U$2:$U$1000=Costs!$A633)*('Fixed assets'!$R$2:$R$1000))","v":0},{"$f":"SUMPRODUCT(('Fixed assets'!$R$2:$R$1000)*('Fixed assets'!$P$2:$P$1000<$A633)*('Fixed assets'!$Q$2:$Q$1000=Costs!D$617))-SUMPRODUCT(('Fixed assets'!$S$2:$S$1000)*('Fixed assets'!$P$2:$P$1000<Costs!$A633)*('Fixed assets'!$Q$2:$Q$1000=Costs!D$617))-SUMPRODUCT(('Fixed assets'!$Q$2:$Q$1000=Costs!D$617)*('Fixed assets'!$U$2:$U$1000=Costs!$A633)*('Fixed assets'!$S$2:$S$1000))+SUMPRODUCT(('Fixed assets'!$Q$2:$Q$1000=Costs!D$617)*('Fixed assets'!$P$2:$P$1000=Costs!$A633)*('Fixed assets'!$U$2:$U$1000=Costs!$A633)*('Fixed assets'!$R$2:$R$1000))","v":0},{"$f":"SUMPRODUCT(('Fixed assets'!$R$2:$R$1000)*('Fixed assets'!$P$2:$P$1000<$A633)*('Fixed assets'!$Q$2:$Q$1000=Costs!E$617))-SUMPRODUCT(('Fixed assets'!$S$2:$S$1000)*('Fixed assets'!$P$2:$P$1000<Costs!$A633)*('Fixed assets'!$Q$2:$Q$1000=Costs!E$617))-SUMPRODUCT(('Fixed assets'!$Q$2:$Q$1000=Costs!E$617)*('Fixed assets'!$U$2:$U$1000=Costs!$A633)*('Fixed assets'!$S$2:$S$1000))+SUMPRODUCT(('Fixed assets'!$Q$2:$Q$1000=Costs!E$617)*('Fixed assets'!$P$2:$P$1000=Costs!$A633)*('Fixed assets'!$U$2:$U$1000=Costs!$A633)*('Fixed assets'!$R$2:$R$1000))","v":0},{"$f":"SUMPRODUCT(('Fixed assets'!$R$2:$R$1000)*('Fixed assets'!$P$2:$P$1000<$A633)*('Fixed assets'!$Q$2:$Q$1000=Costs!F$617))-SUMPRODUCT(('Fixed assets'!$S$2:$S$1000)*('Fixed assets'!$P$2:$P$1000<Costs!$A633)*('Fixed assets'!$Q$2:$Q$1000=Costs!F$617))-SUMPRODUCT(('Fixed assets'!$Q$2:$Q$1000=Costs!F$617)*('Fixed assets'!$U$2:$U$1000=Costs!$A633)*('Fixed assets'!$S$2:$S$1000))+SUMPRODUCT(('Fixed assets'!$Q$2:$Q$1000=Costs!F$617)*('Fixed assets'!$P$2:$P$1000=Costs!$A633)*('Fixed assets'!$U$2:$U$1000=Costs!$A633)*('Fixed assets'!$R$2:$R$1000))","v":0},{"$f":"SUMPRODUCT(('Fixed assets'!$R$2:$R$1000)*('Fixed assets'!$P$2:$P$1000<$A633)*('Fixed assets'!$Q$2:$Q$1000=Costs!G$617))-SUMPRODUCT(('Fixed assets'!$S$2:$S$1000)*('Fixed assets'!$P$2:$P$1000<Costs!$A633)*('Fixed assets'!$Q$2:$Q$1000=Costs!G$617))-SUMPRODUCT(('Fixed assets'!$Q$2:$Q$1000=Costs!G$617)*('Fixed assets'!$U$2:$U$1000=Costs!$A633)*('Fixed assets'!$S$2:$S$1000))+SUMPRODUCT(('Fixed assets'!$Q$2:$Q$1000=Costs!G$617)*('Fixed assets'!$P$2:$P$1000=Costs!$A633)*('Fixed assets'!$U$2:$U$1000=Costs!$A633)*('Fixed assets'!$R$2:$R$1000))","v":0},{"$f":"SUMPRODUCT(('Fixed assets'!$R$2:$R$1000)*('Fixed assets'!$P$2:$P$1000<$A633)*('Fixed assets'!$Q$2:$Q$1000=Costs!H$617))-SUMPRODUCT(('Fixed assets'!$S$2:$S$1000)*('Fixed assets'!$P$2:$P$1000<Costs!$A633)*('Fixed assets'!$Q$2:$Q$1000=Costs!H$617))-SUMPRODUCT(('Fixed assets'!$Q$2:$Q$1000=Costs!H$617)*('Fixed assets'!$U$2:$U$1000=Costs!$A633)*('Fixed assets'!$S$2:$S$1000))+SUMPRODUCT(('Fixed assets'!$Q$2:$Q$1000=Costs!H$617)*('Fixed assets'!$P$2:$P$1000=Costs!$A633)*('Fixed assets'!$U$2:$U$1000=Costs!$A633)*('Fixed assets'!$R$2:$R$1000))","v":0},{"$f":"SUMPRODUCT(('Fixed assets'!$R$2:$R$1000)*('Fixed assets'!$P$2:$P$1000<$A633)*('Fixed assets'!$Q$2:$Q$1000=Costs!I$617))-SUMPRODUCT(('Fixed assets'!$S$2:$S$1000)*('Fixed assets'!$P$2:$P$1000<Costs!$A633)*('Fixed assets'!$Q$2:$Q$1000=Costs!I$617))-SUMPRODUCT(('Fixed assets'!$Q$2:$Q$1000=Costs!I$617)*('Fixed assets'!$U$2:$U$1000=Costs!$A633)*('Fixed assets'!$S$2:$S$1000))+SUMPRODUCT(('Fixed assets'!$Q$2:$Q$1000=Costs!I$617)*('Fixed assets'!$P$2:$P$1000=Costs!$A633)*('Fixed assets'!$U$2:$U$1000=Costs!$A633)*('Fixed assets'!$R$2:$R$1000))","v":0},{"$f":"SUMPRODUCT(('Fixed assets'!$R$2:$R$1000)*('Fixed assets'!$P$2:$P$1000<$A633)*('Fixed assets'!$Q$2:$Q$1000=Costs!J$617))-SUMPRODUCT(('Fixed assets'!$S$2:$S$1000)*('Fixed assets'!$P$2:$P$1000<Costs!$A633)*('Fixed assets'!$Q$2:$Q$1000=Costs!J$617))-SUMPRODUCT(('Fixed assets'!$Q$2:$Q$1000=Costs!J$617)*('Fixed assets'!$U$2:$U$1000=Costs!$A633)*('Fixed assets'!$S$2:$S$1000))+SUMPRODUCT(('Fixed assets'!$Q$2:$Q$1000=Costs!J$617)*('Fixed assets'!$P$2:$P$1000=Costs!$A633)*('Fixed assets'!$U$2:$U$1000=Costs!$A633)*('Fixed assets'!$R$2:$R$1000))","v":0},{"$f":"SUMPRODUCT(('Fixed assets'!$R$2:$R$1000)*('Fixed assets'!$P$2:$P$1000<$A633)*('Fixed assets'!$Q$2:$Q$1000=Costs!K$617))-SUMPRODUCT(('Fixed assets'!$S$2:$S$1000)*('Fixed assets'!$P$2:$P$1000<Costs!$A633)*('Fixed assets'!$Q$2:$Q$1000=Costs!K$617))-SUMPRODUCT(('Fixed assets'!$Q$2:$Q$1000=Costs!K$617)*('Fixed assets'!$U$2:$U$1000=Costs!$A633)*('Fixed assets'!$S$2:$S$1000))+SUMPRODUCT(('Fixed assets'!$Q$2:$Q$1000=Costs!K$617)*('Fixed assets'!$P$2:$P$1000=Costs!$A633)*('Fixed assets'!$U$2:$U$1000=Costs!$A633)*('Fixed assets'!$R$2:$R$1000))","v":0},{"$f":"SUMPRODUCT(('Fixed assets'!$R$2:$R$1000)*('Fixed assets'!$P$2:$P$1000<$A633)*('Fixed assets'!$Q$2:$Q$1000=Costs!L$617))-SUMPRODUCT(('Fixed assets'!$S$2:$S$1000)*('Fixed assets'!$P$2:$P$1000<Costs!$A633)*('Fixed assets'!$Q$2:$Q$1000=Costs!L$617))-SUMPRODUCT(('Fixed assets'!$Q$2:$Q$1000=Costs!L$617)*('Fixed assets'!$U$2:$U$1000=Costs!$A633)*('Fixed assets'!$S$2:$S$1000))+SUMPRODUCT(('Fixed assets'!$Q$2:$Q$1000=Costs!L$617)*('Fixed assets'!$P$2:$P$1000=Costs!$A633)*('Fixed assets'!$U$2:$U$1000=Costs!$A633)*('Fixed assets'!$R$2:$R$1000))","v":0},{"$f":"SUMPRODUCT(('Fixed assets'!$R$2:$R$1000)*('Fixed assets'!$P$2:$P$1000<$A633)*('Fixed assets'!$Q$2:$Q$1000=Costs!M$617))-SUMPRODUCT(('Fixed assets'!$S$2:$S$1000)*('Fixed assets'!$P$2:$P$1000<Costs!$A633)*('Fixed assets'!$Q$2:$Q$1000=Costs!M$617))-SUMPRODUCT(('Fixed assets'!$Q$2:$Q$1000=Costs!M$617)*('Fixed assets'!$U$2:$U$1000=Costs!$A633)*('Fixed assets'!$S$2:$S$1000))+SUMPRODUCT(('Fixed assets'!$Q$2:$Q$1000=Costs!M$617)*('Fixed assets'!$P$2:$P$1000=Costs!$A633)*('Fixed assets'!$U$2:$U$1000=Costs!$A633)*('Fixed assets'!$R$2:$R$1000))","v":0},{"$f":"SUMPRODUCT(('Fixed assets'!$R$2:$R$1000)*('Fixed assets'!$P$2:$P$1000<$A633)*('Fixed assets'!$Q$2:$Q$1000=Costs!N$617))-SUMPRODUCT(('Fixed assets'!$S$2:$S$1000)*('Fixed assets'!$P$2:$P$1000<Costs!$A633)*('Fixed assets'!$Q$2:$Q$1000=Costs!N$617))-SUMPRODUCT(('Fixed assets'!$Q$2:$Q$1000=Costs!N$617)*('Fixed assets'!$U$2:$U$1000=Costs!$A633)*('Fixed assets'!$S$2:$S$1000))+SUMPRODUCT(('Fixed assets'!$Q$2:$Q$1000=Costs!N$617)*('Fixed assets'!$P$2:$P$1000=Costs!$A633)*('Fixed assets'!$U$2:$U$1000=Costs!$A633)*('Fixed assets'!$R$2:$R$1000))","v":0},{"$f":"SUMPRODUCT(('Fixed assets'!$R$2:$R$1000)*('Fixed assets'!$P$2:$P$1000<$A633)*('Fixed assets'!$Q$2:$Q$1000=Costs!O$617))-SUMPRODUCT(('Fixed assets'!$S$2:$S$1000)*('Fixed assets'!$P$2:$P$1000<Costs!$A633)*('Fixed assets'!$Q$2:$Q$1000=Costs!O$617))-SUMPRODUCT(('Fixed assets'!$Q$2:$Q$1000=Costs!O$617)*('Fixed assets'!$U$2:$U$1000=Costs!$A633)*('Fixed assets'!$S$2:$S$1000))+SUMPRODUCT(('Fixed assets'!$Q$2:$Q$1000=Costs!O$617)*('Fixed assets'!$P$2:$P$1000=Costs!$A633)*('Fixed assets'!$U$2:$U$1000=Costs!$A633)*('Fixed assets'!$R$2:$R$1000))","v":0},{"$f":"SUMPRODUCT(('Fixed assets'!$R$2:$R$1000)*('Fixed assets'!$P$2:$P$1000<$A633)*('Fixed assets'!$Q$2:$Q$1000=Costs!P$617))-SUMPRODUCT(('Fixed assets'!$S$2:$S$1000)*('Fixed assets'!$P$2:$P$1000<Costs!$A633)*('Fixed assets'!$Q$2:$Q$1000=Costs!P$617))-SUMPRODUCT(('Fixed assets'!$Q$2:$Q$1000=Costs!P$617)*('Fixed assets'!$U$2:$U$1000=Costs!$A633)*('Fixed assets'!$S$2:$S$1000))+SUMPRODUCT(('Fixed assets'!$Q$2:$Q$1000=Costs!P$617)*('Fixed assets'!$P$2:$P$1000=Costs!$A633)*('Fixed assets'!$U$2:$U$1000=Costs!$A633)*('Fixed assets'!$R$2:$R$1000))","v":0},{"$f":"SUMPRODUCT(('Fixed assets'!$R$2:$R$1000)*('Fixed assets'!$P$2:$P$1000<$A633)*('Fixed assets'!$Q$2:$Q$1000=Costs!Q$617))-SUMPRODUCT(('Fixed assets'!$S$2:$S$1000)*('Fixed assets'!$P$2:$P$1000<Costs!$A633)*('Fixed assets'!$Q$2:$Q$1000=Costs!Q$617))-SUMPRODUCT(('Fixed assets'!$Q$2:$Q$1000=Costs!Q$617)*('Fixed assets'!$U$2:$U$1000=Costs!$A633)*('Fixed assets'!$S$2:$S$1000))+SUMPRODUCT(('Fixed assets'!$Q$2:$Q$1000=Costs!Q$617)*('Fixed assets'!$P$2:$P$1000=Costs!$A633)*('Fixed assets'!$U$2:$U$1000=Costs!$A633)*('Fixed assets'!$R$2:$R$1000))","v":0},{"$f":"SUMPRODUCT(('Fixed assets'!$R$2:$R$1000)*('Fixed assets'!$P$2:$P$1000<$A633)*('Fixed assets'!$Q$2:$Q$1000=Costs!R$617))-SUMPRODUCT(('Fixed assets'!$S$2:$S$1000)*('Fixed assets'!$P$2:$P$1000<Costs!$A633)*('Fixed assets'!$Q$2:$Q$1000=Costs!R$617))-SUMPRODUCT(('Fixed assets'!$Q$2:$Q$1000=Costs!R$617)*('Fixed assets'!$U$2:$U$1000=Costs!$A633)*('Fixed assets'!$S$2:$S$1000))+SUMPRODUCT(('Fixed assets'!$Q$2:$Q$1000=Costs!R$617)*('Fixed assets'!$P$2:$P$1000=Costs!$A633)*('Fixed assets'!$U$2:$U$1000=Costs!$A633)*('Fixed assets'!$R$2:$R$1000))","v":0},{"$f":"SUMPRODUCT(('Fixed assets'!$R$2:$R$1000)*('Fixed assets'!$P$2:$P$1000<$A633)*('Fixed assets'!$Q$2:$Q$1000=Costs!S$617))-SUMPRODUCT(('Fixed assets'!$S$2:$S$1000)*('Fixed assets'!$P$2:$P$1000<Costs!$A633)*('Fixed assets'!$Q$2:$Q$1000=Costs!S$617))-SUMPRODUCT(('Fixed assets'!$Q$2:$Q$1000=Costs!S$617)*('Fixed assets'!$U$2:$U$1000=Costs!$A633)*('Fixed assets'!$S$2:$S$1000))+SUMPRODUCT(('Fixed assets'!$Q$2:$Q$1000=Costs!S$617)*('Fixed assets'!$P$2:$P$1000=Costs!$A633)*('Fixed assets'!$U$2:$U$1000=Costs!$A633)*('Fixed assets'!$R$2:$R$1000))","v":0},{"$f":"SUMPRODUCT(('Fixed assets'!$R$2:$R$1000)*('Fixed assets'!$P$2:$P$1000<$A633)*('Fixed assets'!$Q$2:$Q$1000=Costs!T$617))-SUMPRODUCT(('Fixed assets'!$S$2:$S$1000)*('Fixed assets'!$P$2:$P$1000<Costs!$A633)*('Fixed assets'!$Q$2:$Q$1000=Costs!T$617))-SUMPRODUCT(('Fixed assets'!$Q$2:$Q$1000=Costs!T$617)*('Fixed assets'!$U$2:$U$1000=Costs!$A633)*('Fixed assets'!$S$2:$S$1000))+SUMPRODUCT(('Fixed assets'!$Q$2:$Q$1000=Costs!T$617)*('Fixed assets'!$P$2:$P$1000=Costs!$A633)*('Fixed assets'!$U$2:$U$1000=Costs!$A633)*('Fixed assets'!$R$2:$R$1000))","v":0},{"$f":"SUMPRODUCT(('Fixed assets'!$R$2:$R$1000)*('Fixed assets'!$P$2:$P$1000<$A633)*('Fixed assets'!$Q$2:$Q$1000=Costs!U$617))-SUMPRODUCT(('Fixed assets'!$S$2:$S$1000)*('Fixed assets'!$P$2:$P$1000<Costs!$A633)*('Fixed assets'!$Q$2:$Q$1000=Costs!U$617))-SUMPRODUCT(('Fixed assets'!$Q$2:$Q$1000=Costs!U$617)*('Fixed assets'!$U$2:$U$1000=Costs!$A633)*('Fixed assets'!$S$2:$S$1000))+SUMPRODUCT(('Fixed assets'!$Q$2:$Q$1000=Costs!U$617)*('Fixed assets'!$P$2:$P$1000=Costs!$A633)*('Fixed assets'!$U$2:$U$1000=Costs!$A633)*('Fixed assets'!$R$2:$R$1000))","v":0},{"$f":"SUMPRODUCT(('Fixed assets'!$R$2:$R$1000)*('Fixed assets'!$P$2:$P$1000<$A633)*('Fixed assets'!$Q$2:$Q$1000=Costs!V$617))-SUMPRODUCT(('Fixed assets'!$S$2:$S$1000)*('Fixed assets'!$P$2:$P$1000<Costs!$A633)*('Fixed assets'!$Q$2:$Q$1000=Costs!V$617))-SUMPRODUCT(('Fixed assets'!$Q$2:$Q$1000=Costs!V$617)*('Fixed assets'!$U$2:$U$1000=Costs!$A633)*('Fixed assets'!$S$2:$S$1000))+SUMPRODUCT(('Fixed assets'!$Q$2:$Q$1000=Costs!V$617)*('Fixed assets'!$P$2:$P$1000=Costs!$A633)*('Fixed assets'!$U$2:$U$1000=Costs!$A633)*('Fixed assets'!$R$2:$R$1000))","v":0},{"$f":"SUMPRODUCT(('Fixed assets'!$R$2:$R$1000)*('Fixed assets'!$P$2:$P$1000<$A633)*('Fixed assets'!$Q$2:$Q$1000=Costs!W$617))-SUMPRODUCT(('Fixed assets'!$S$2:$S$1000)*('Fixed assets'!$P$2:$P$1000<Costs!$A633)*('Fixed assets'!$Q$2:$Q$1000=Costs!W$617))-SUMPRODUCT(('Fixed assets'!$Q$2:$Q$1000=Costs!W$617)*('Fixed assets'!$U$2:$U$1000=Costs!$A633)*('Fixed assets'!$S$2:$S$1000))+SUMPRODUCT(('Fixed assets'!$Q$2:$Q$1000=Costs!W$617)*('Fixed assets'!$P$2:$P$1000=Costs!$A633)*('Fixed assets'!$U$2:$U$1000=Costs!$A633)*('Fixed assets'!$R$2:$R$1000))","v":0},{"$f":"SUMPRODUCT(('Fixed assets'!$R$2:$R$1000)*('Fixed assets'!$P$2:$P$1000<$A633)*('Fixed assets'!$Q$2:$Q$1000=Costs!X$617))-SUMPRODUCT(('Fixed assets'!$S$2:$S$1000)*('Fixed assets'!$P$2:$P$1000<Costs!$A633)*('Fixed assets'!$Q$2:$Q$1000=Costs!X$617))-SUMPRODUCT(('Fixed assets'!$Q$2:$Q$1000=Costs!X$617)*('Fixed assets'!$U$2:$U$1000=Costs!$A633)*('Fixed assets'!$S$2:$S$1000))+SUMPRODUCT(('Fixed assets'!$Q$2:$Q$1000=Costs!X$617)*('Fixed assets'!$P$2:$P$1000=Costs!$A633)*('Fixed assets'!$U$2:$U$1000=Costs!$A633)*('Fixed assets'!$R$2:$R$1000))","v":0},{"$f":"SUMPRODUCT(('Fixed assets'!$R$2:$R$1000)*('Fixed assets'!$P$2:$P$1000<$A633)*('Fixed assets'!$Q$2:$Q$1000=Costs!Y$617))-SUMPRODUCT(('Fixed assets'!$S$2:$S$1000)*('Fixed assets'!$P$2:$P$1000<Costs!$A633)*('Fixed assets'!$Q$2:$Q$1000=Costs!Y$617))-SUMPRODUCT(('Fixed assets'!$Q$2:$Q$1000=Costs!Y$617)*('Fixed assets'!$U$2:$U$1000=Costs!$A633)*('Fixed assets'!$S$2:$S$1000))+SUMPRODUCT(('Fixed assets'!$Q$2:$Q$1000=Costs!Y$617)*('Fixed assets'!$P$2:$P$1000=Costs!$A633)*('Fixed assets'!$U$2:$U$1000=Costs!$A633)*('Fixed assets'!$R$2:$R$1000))","v":0},{"$f":"SUMPRODUCT(('Fixed assets'!$R$2:$R$1000)*('Fixed assets'!$P$2:$P$1000<$A633)*('Fixed assets'!$Q$2:$Q$1000=Costs!Z$617))-SUMPRODUCT(('Fixed assets'!$S$2:$S$1000)*('Fixed assets'!$P$2:$P$1000<Costs!$A633)*('Fixed assets'!$Q$2:$Q$1000=Costs!Z$617))-SUMPRODUCT(('Fixed assets'!$Q$2:$Q$1000=Costs!Z$617)*('Fixed assets'!$U$2:$U$1000=Costs!$A633)*('Fixed assets'!$S$2:$S$1000))+SUMPRODUCT(('Fixed assets'!$Q$2:$Q$1000=Costs!Z$617)*('Fixed assets'!$P$2:$P$1000=Costs!$A633)*('Fixed assets'!$U$2:$U$1000=Costs!$A633)*('Fixed assets'!$R$2:$R$1000))","v":0},{"$f":"SUMPRODUCT(('Fixed assets'!$R$2:$R$1000)*('Fixed assets'!$P$2:$P$1000<$A633)*('Fixed assets'!$Q$2:$Q$1000=Costs!AA$617))-SUMPRODUCT(('Fixed assets'!$S$2:$S$1000)*('Fixed assets'!$P$2:$P$1000<Costs!$A633)*('Fixed assets'!$Q$2:$Q$1000=Costs!AA$617))-SUMPRODUCT(('Fixed assets'!$Q$2:$Q$1000=Costs!AA$617)*('Fixed assets'!$U$2:$U$1000=Costs!$A633)*('Fixed assets'!$S$2:$S$1000))+SUMPRODUCT(('Fixed assets'!$Q$2:$Q$1000=Costs!AA$617)*('Fixed assets'!$P$2:$P$1000=Costs!$A633)*('Fixed assets'!$U$2:$U$1000=Costs!$A633)*('Fixed assets'!$R$2:$R$1000))","v":0},{"$f":"SUMPRODUCT(('Fixed assets'!$R$2:$R$1000)*('Fixed assets'!$P$2:$P$1000<$A633)*('Fixed assets'!$Q$2:$Q$1000=Costs!AB$617))-SUMPRODUCT(('Fixed assets'!$S$2:$S$1000)*('Fixed assets'!$P$2:$P$1000<Costs!$A633)*('Fixed assets'!$Q$2:$Q$1000=Costs!AB$617))-SUMPRODUCT(('Fixed assets'!$Q$2:$Q$1000=Costs!AB$617)*('Fixed assets'!$U$2:$U$1000=Costs!$A633)*('Fixed assets'!$S$2:$S$1000))+SUMPRODUCT(('Fixed assets'!$Q$2:$Q$1000=Costs!AB$617)*('Fixed assets'!$P$2:$P$1000=Costs!$A633)*('Fixed assets'!$U$2:$U$1000=Costs!$A633)*('Fixed assets'!$R$2:$R$1000))","v":0},{"$f":"SUMPRODUCT(('Fixed assets'!$R$2:$R$1000)*('Fixed assets'!$P$2:$P$1000<$A633)*('Fixed assets'!$Q$2:$Q$1000=Costs!AC$617))-SUMPRODUCT(('Fixed assets'!$S$2:$S$1000)*('Fixed assets'!$P$2:$P$1000<Costs!$A633)*('Fixed assets'!$Q$2:$Q$1000=Costs!AC$617))-SUMPRODUCT(('Fixed assets'!$Q$2:$Q$1000=Costs!AC$617)*('Fixed assets'!$U$2:$U$1000=Costs!$A633)*('Fixed assets'!$S$2:$S$1000))+SUMPRODUCT(('Fixed assets'!$Q$2:$Q$1000=Costs!AC$617)*('Fixed assets'!$P$2:$P$1000=Costs!$A633)*('Fixed assets'!$U$2:$U$1000=Costs!$A633)*('Fixed assets'!$R$2:$R$1000))","v":0},{"$f":"SUMPRODUCT(('Fixed assets'!$R$2:$R$1000)*('Fixed assets'!$P$2:$P$1000<$A633)*('Fixed assets'!$Q$2:$Q$1000=Costs!AD$617))-SUMPRODUCT(('Fixed assets'!$S$2:$S$1000)*('Fixed assets'!$P$2:$P$1000<Costs!$A633)*('Fixed assets'!$Q$2:$Q$1000=Costs!AD$617))-SUMPRODUCT(('Fixed assets'!$Q$2:$Q$1000=Costs!AD$617)*('Fixed assets'!$U$2:$U$1000=Costs!$A633)*('Fixed assets'!$S$2:$S$1000))+SUMPRODUCT(('Fixed assets'!$Q$2:$Q$1000=Costs!AD$617)*('Fixed assets'!$P$2:$P$1000=Costs!$A633)*('Fixed assets'!$U$2:$U$1000=Costs!$A633)*('Fixed assets'!$R$2:$R$1000))","v":0},{"$f":"SUMPRODUCT(('Fixed assets'!$R$2:$R$1000)*('Fixed assets'!$P$2:$P$1000<$A633)*('Fixed assets'!$Q$2:$Q$1000=Costs!AE$617))-SUMPRODUCT(('Fixed assets'!$S$2:$S$1000)*('Fixed assets'!$P$2:$P$1000<Costs!$A633)*('Fixed assets'!$Q$2:$Q$1000=Costs!AE$617))-SUMPRODUCT(('Fixed assets'!$Q$2:$Q$1000=Costs!AE$617)*('Fixed assets'!$U$2:$U$1000=Costs!$A633)*('Fixed assets'!$S$2:$S$1000))+SUMPRODUCT(('Fixed assets'!$Q$2:$Q$1000=Costs!AE$617)*('Fixed assets'!$P$2:$P$1000=Costs!$A633)*('Fixed assets'!$U$2:$U$1000=Costs!$A633)*('Fixed assets'!$R$2:$R$1000))","v":0},{"$f":"SUMPRODUCT(('Fixed assets'!$R$2:$R$1000)*('Fixed assets'!$P$2:$P$1000<$A633)*('Fixed assets'!$Q$2:$Q$1000=Costs!AF$617))-SUMPRODUCT(('Fixed assets'!$S$2:$S$1000)*('Fixed assets'!$P$2:$P$1000<Costs!$A633)*('Fixed assets'!$Q$2:$Q$1000=Costs!AF$617))-SUMPRODUCT(('Fixed assets'!$Q$2:$Q$1000=Costs!AF$617)*('Fixed assets'!$U$2:$U$1000=Costs!$A633)*('Fixed assets'!$S$2:$S$1000))+SUMPRODUCT(('Fixed assets'!$Q$2:$Q$1000=Costs!AF$617)*('Fixed assets'!$P$2:$P$1000=Costs!$A633)*('Fixed assets'!$U$2:$U$1000=Costs!$A633)*('Fixed assets'!$R$2:$R$1000))","v":0},{"$f":"SUMPRODUCT(('Fixed assets'!$R$2:$R$1000)*('Fixed assets'!$P$2:$P$1000<$A633)*('Fixed assets'!$Q$2:$Q$1000=Costs!AG$617))-SUMPRODUCT(('Fixed assets'!$S$2:$S$1000)*('Fixed assets'!$P$2:$P$1000<Costs!$A633)*('Fixed assets'!$Q$2:$Q$1000=Costs!AG$617))-SUMPRODUCT(('Fixed assets'!$Q$2:$Q$1000=Costs!AG$617)*('Fixed assets'!$U$2:$U$1000=Costs!$A633)*('Fixed assets'!$S$2:$S$1000))+SUMPRODUCT(('Fixed assets'!$Q$2:$Q$1000=Costs!AG$617)*('Fixed assets'!$P$2:$P$1000=Costs!$A633)*('Fixed assets'!$U$2:$U$1000=Costs!$A633)*('Fixed assets'!$R$2:$R$1000))","v":0},{"$f":"SUMPRODUCT(('Fixed assets'!$R$2:$R$1000)*('Fixed assets'!$P$2:$P$1000<$A633)*('Fixed assets'!$Q$2:$Q$1000=Costs!AH$617))-SUMPRODUCT(('Fixed assets'!$S$2:$S$1000)*('Fixed assets'!$P$2:$P$1000<Costs!$A633)*('Fixed assets'!$Q$2:$Q$1000=Costs!AH$617))-SUMPRODUCT(('Fixed assets'!$Q$2:$Q$1000=Costs!AH$617)*('Fixed assets'!$U$2:$U$1000=Costs!$A633)*('Fixed assets'!$S$2:$S$1000))+SUMPRODUCT(('Fixed assets'!$Q$2:$Q$1000=Costs!AH$617)*('Fixed assets'!$P$2:$P$1000=Costs!$A633)*('Fixed assets'!$U$2:$U$1000=Costs!$A633)*('Fixed assets'!$R$2:$R$1000))","v":0},{"$f":"SUMPRODUCT(('Fixed assets'!$R$2:$R$1000)*('Fixed assets'!$P$2:$P$1000<$A633)*('Fixed assets'!$Q$2:$Q$1000=Costs!AI$617))-SUMPRODUCT(('Fixed assets'!$S$2:$S$1000)*('Fixed assets'!$P$2:$P$1000<Costs!$A633)*('Fixed assets'!$Q$2:$Q$1000=Costs!AI$617))-SUMPRODUCT(('Fixed assets'!$Q$2:$Q$1000=Costs!AI$617)*('Fixed assets'!$U$2:$U$1000=Costs!$A633)*('Fixed assets'!$S$2:$S$1000))+SUMPRODUCT(('Fixed assets'!$Q$2:$Q$1000=Costs!AI$617)*('Fixed assets'!$P$2:$P$1000=Costs!$A633)*('Fixed assets'!$U$2:$U$1000=Costs!$A633)*('Fixed assets'!$R$2:$R$1000))","v":0},{"$f":"SUMPRODUCT(('Fixed assets'!$R$2:$R$1000)*('Fixed assets'!$P$2:$P$1000<$A633)*('Fixed assets'!$Q$2:$Q$1000=Costs!AJ$617))-SUMPRODUCT(('Fixed assets'!$S$2:$S$1000)*('Fixed assets'!$P$2:$P$1000<Costs!$A633)*('Fixed assets'!$Q$2:$Q$1000=Costs!AJ$617))-SUMPRODUCT(('Fixed assets'!$Q$2:$Q$1000=Costs!AJ$617)*('Fixed assets'!$U$2:$U$1000=Costs!$A633)*('Fixed assets'!$S$2:$S$1000))+SUMPRODUCT(('Fixed assets'!$Q$2:$Q$1000=Costs!AJ$617)*('Fixed assets'!$P$2:$P$1000=Costs!$A633)*('Fixed assets'!$U$2:$U$1000=Costs!$A633)*('Fixed assets'!$R$2:$R$1000))","v":0},{"$f":"SUMPRODUCT(('Fixed assets'!$R$2:$R$1000)*('Fixed assets'!$P$2:$P$1000<$A633)*('Fixed assets'!$Q$2:$Q$1000=Costs!AK$617))-SUMPRODUCT(('Fixed assets'!$S$2:$S$1000)*('Fixed assets'!$P$2:$P$1000<Costs!$A633)*('Fixed assets'!$Q$2:$Q$1000=Costs!AK$617))-SUMPRODUCT(('Fixed assets'!$Q$2:$Q$1000=Costs!AK$617)*('Fixed assets'!$U$2:$U$1000=Costs!$A633)*('Fixed assets'!$S$2:$S$1000))+SUMPRODUCT(('Fixed assets'!$Q$2:$Q$1000=Costs!AK$617)*('Fixed assets'!$P$2:$P$1000=Costs!$A633)*('Fixed assets'!$U$2:$U$1000=Costs!$A633)*('Fixed assets'!$R$2:$R$1000))","v":0},{"$f":"SUMPRODUCT(('Fixed assets'!$R$2:$R$1000)*('Fixed assets'!$P$2:$P$1000<$A633)*('Fixed assets'!$Q$2:$Q$1000=Costs!AL$617))-SUMPRODUCT(('Fixed assets'!$S$2:$S$1000)*('Fixed assets'!$P$2:$P$1000<Costs!$A633)*('Fixed assets'!$Q$2:$Q$1000=Costs!AL$617))-SUMPRODUCT(('Fixed assets'!$Q$2:$Q$1000=Costs!AL$617)*('Fixed assets'!$U$2:$U$1000=Costs!$A633)*('Fixed assets'!$S$2:$S$1000))+SUMPRODUCT(('Fixed assets'!$Q$2:$Q$1000=Costs!AL$617)*('Fixed assets'!$P$2:$P$1000=Costs!$A633)*('Fixed assets'!$U$2:$U$1000=Costs!$A633)*('Fixed assets'!$R$2:$R$1000))","v":0},{"$f":"SUMPRODUCT(('Fixed assets'!$R$2:$R$1000)*('Fixed assets'!$P$2:$P$1000<$A633)*('Fixed assets'!$Q$2:$Q$1000=Costs!AM$617))-SUMPRODUCT(('Fixed assets'!$S$2:$S$1000)*('Fixed assets'!$P$2:$P$1000<Costs!$A633)*('Fixed assets'!$Q$2:$Q$1000=Costs!AM$617))-SUMPRODUCT(('Fixed assets'!$Q$2:$Q$1000=Costs!AM$617)*('Fixed assets'!$U$2:$U$1000=Costs!$A633)*('Fixed assets'!$S$2:$S$1000))+SUMPRODUCT(('Fixed assets'!$Q$2:$Q$1000=Costs!AM$617)*('Fixed assets'!$P$2:$P$1000=Costs!$A633)*('Fixed assets'!$U$2:$U$1000=Costs!$A633)*('Fixed assets'!$R$2:$R$1000))","v":0},{"$f":"SUMPRODUCT(('Fixed assets'!$R$2:$R$1000)*('Fixed assets'!$P$2:$P$1000<$A633)*('Fixed assets'!$Q$2:$Q$1000=Costs!AN$617))-SUMPRODUCT(('Fixed assets'!$S$2:$S$1000)*('Fixed assets'!$P$2:$P$1000<Costs!$A633)*('Fixed assets'!$Q$2:$Q$1000=Costs!AN$617))-SUMPRODUCT(('Fixed assets'!$Q$2:$Q$1000=Costs!AN$617)*('Fixed assets'!$U$2:$U$1000=Costs!$A633)*('Fixed assets'!$S$2:$S$1000))+SUMPRODUCT(('Fixed assets'!$Q$2:$Q$1000=Costs!AN$617)*('Fixed assets'!$P$2:$P$1000=Costs!$A633)*('Fixed assets'!$U$2:$U$1000=Costs!$A633)*('Fixed assets'!$R$2:$R$1000))","v":0},{"$f":"SUMPRODUCT(('Fixed assets'!$R$2:$R$1000)*('Fixed assets'!$P$2:$P$1000<$A633)*('Fixed assets'!$Q$2:$Q$1000=Costs!AO$617))-SUMPRODUCT(('Fixed assets'!$S$2:$S$1000)*('Fixed assets'!$P$2:$P$1000<Costs!$A633)*('Fixed assets'!$Q$2:$Q$1000=Costs!AO$617))-SUMPRODUCT(('Fixed assets'!$Q$2:$Q$1000=Costs!AO$617)*('Fixed assets'!$U$2:$U$1000=Costs!$A633)*('Fixed assets'!$S$2:$S$1000))+SUMPRODUCT(('Fixed assets'!$Q$2:$Q$1000=Costs!AO$617)*('Fixed assets'!$P$2:$P$1000=Costs!$A633)*('Fixed assets'!$U$2:$U$1000=Costs!$A633)*('Fixed assets'!$R$2:$R$1000))","v":0},{"$f":"SUMPRODUCT(('Fixed assets'!$R$2:$R$1000)*('Fixed assets'!$P$2:$P$1000<$A633)*('Fixed assets'!$Q$2:$Q$1000=Costs!AP$617))-SUMPRODUCT(('Fixed assets'!$S$2:$S$1000)*('Fixed assets'!$P$2:$P$1000<Costs!$A633)*('Fixed assets'!$Q$2:$Q$1000=Costs!AP$617))-SUMPRODUCT(('Fixed assets'!$Q$2:$Q$1000=Costs!AP$617)*('Fixed assets'!$U$2:$U$1000=Costs!$A633)*('Fixed assets'!$S$2:$S$1000))+SUMPRODUCT(('Fixed assets'!$Q$2:$Q$1000=Costs!AP$617)*('Fixed assets'!$P$2:$P$1000=Costs!$A633)*('Fixed assets'!$U$2:$U$1000=Costs!$A633)*('Fixed assets'!$R$2:$R$1000))","v":0},{"$f":"SUMPRODUCT(('Fixed assets'!$R$2:$R$1000)*('Fixed assets'!$P$2:$P$1000<$A633)*('Fixed assets'!$Q$2:$Q$1000=Costs!AQ$617))-SUMPRODUCT(('Fixed assets'!$S$2:$S$1000)*('Fixed assets'!$P$2:$P$1000<Costs!$A633)*('Fixed assets'!$Q$2:$Q$1000=Costs!AQ$617))-SUMPRODUCT(('Fixed assets'!$Q$2:$Q$1000=Costs!AQ$617)*('Fixed assets'!$U$2:$U$1000=Costs!$A633)*('Fixed assets'!$S$2:$S$1000))+SUMPRODUCT(('Fixed assets'!$Q$2:$Q$1000=Costs!AQ$617)*('Fixed assets'!$P$2:$P$1000=Costs!$A633)*('Fixed assets'!$U$2:$U$1000=Costs!$A633)*('Fixed assets'!$R$2:$R$1000))","v":0}]
[2031,{"$f":"SUM(C634:AQ634)","v":0},{"$f":"SUMPRODUCT(('Fixed assets'!$R$2:$R$1000)*('Fixed assets'!$P$2:$P$1000<$A634)*('Fixed assets'!$Q$2:$Q$1000=Costs!C$617))-SUMPRODUCT(('Fixed assets'!$S$2:$S$1000)*('Fixed assets'!$P$2:$P$1000<Costs!$A634)*('Fixed assets'!$Q$2:$Q$1000=Costs!C$617))-SUMPRODUCT(('Fixed assets'!$Q$2:$Q$1000=Costs!C$617)*('Fixed assets'!$U$2:$U$1000=Costs!$A634)*('Fixed assets'!$S$2:$S$1000))+SUMPRODUCT(('Fixed assets'!$Q$2:$Q$1000=Costs!C$617)*('Fixed assets'!$P$2:$P$1000=Costs!$A634)*('Fixed assets'!$U$2:$U$1000=Costs!$A634)*('Fixed assets'!$R$2:$R$1000))","v":0},{"$f":"SUMPRODUCT(('Fixed assets'!$R$2:$R$1000)*('Fixed assets'!$P$2:$P$1000<$A634)*('Fixed assets'!$Q$2:$Q$1000=Costs!D$617))-SUMPRODUCT(('Fixed assets'!$S$2:$S$1000)*('Fixed assets'!$P$2:$P$1000<Costs!$A634)*('Fixed assets'!$Q$2:$Q$1000=Costs!D$617))-SUMPRODUCT(('Fixed assets'!$Q$2:$Q$1000=Costs!D$617)*('Fixed assets'!$U$2:$U$1000=Costs!$A634)*('Fixed assets'!$S$2:$S$1000))+SUMPRODUCT(('Fixed assets'!$Q$2:$Q$1000=Costs!D$617)*('Fixed assets'!$P$2:$P$1000=Costs!$A634)*('Fixed assets'!$U$2:$U$1000=Costs!$A634)*('Fixed assets'!$R$2:$R$1000))","v":0},{"$f":"SUMPRODUCT(('Fixed assets'!$R$2:$R$1000)*('Fixed assets'!$P$2:$P$1000<$A634)*('Fixed assets'!$Q$2:$Q$1000=Costs!E$617))-SUMPRODUCT(('Fixed assets'!$S$2:$S$1000)*('Fixed assets'!$P$2:$P$1000<Costs!$A634)*('Fixed assets'!$Q$2:$Q$1000=Costs!E$617))-SUMPRODUCT(('Fixed assets'!$Q$2:$Q$1000=Costs!E$617)*('Fixed assets'!$U$2:$U$1000=Costs!$A634)*('Fixed assets'!$S$2:$S$1000))+SUMPRODUCT(('Fixed assets'!$Q$2:$Q$1000=Costs!E$617)*('Fixed assets'!$P$2:$P$1000=Costs!$A634)*('Fixed assets'!$U$2:$U$1000=Costs!$A634)*('Fixed assets'!$R$2:$R$1000))","v":0},{"$f":"SUMPRODUCT(('Fixed assets'!$R$2:$R$1000)*('Fixed assets'!$P$2:$P$1000<$A634)*('Fixed assets'!$Q$2:$Q$1000=Costs!F$617))-SUMPRODUCT(('Fixed assets'!$S$2:$S$1000)*('Fixed assets'!$P$2:$P$1000<Costs!$A634)*('Fixed assets'!$Q$2:$Q$1000=Costs!F$617))-SUMPRODUCT(('Fixed assets'!$Q$2:$Q$1000=Costs!F$617)*('Fixed assets'!$U$2:$U$1000=Costs!$A634)*('Fixed assets'!$S$2:$S$1000))+SUMPRODUCT(('Fixed assets'!$Q$2:$Q$1000=Costs!F$617)*('Fixed assets'!$P$2:$P$1000=Costs!$A634)*('Fixed assets'!$U$2:$U$1000=Costs!$A634)*('Fixed assets'!$R$2:$R$1000))","v":0},{"$f":"SUMPRODUCT(('Fixed assets'!$R$2:$R$1000)*('Fixed assets'!$P$2:$P$1000<$A634)*('Fixed assets'!$Q$2:$Q$1000=Costs!G$617))-SUMPRODUCT(('Fixed assets'!$S$2:$S$1000)*('Fixed assets'!$P$2:$P$1000<Costs!$A634)*('Fixed assets'!$Q$2:$Q$1000=Costs!G$617))-SUMPRODUCT(('Fixed assets'!$Q$2:$Q$1000=Costs!G$617)*('Fixed assets'!$U$2:$U$1000=Costs!$A634)*('Fixed assets'!$S$2:$S$1000))+SUMPRODUCT(('Fixed assets'!$Q$2:$Q$1000=Costs!G$617)*('Fixed assets'!$P$2:$P$1000=Costs!$A634)*('Fixed assets'!$U$2:$U$1000=Costs!$A634)*('Fixed assets'!$R$2:$R$1000))","v":0},{"$f":"SUMPRODUCT(('Fixed assets'!$R$2:$R$1000)*('Fixed assets'!$P$2:$P$1000<$A634)*('Fixed assets'!$Q$2:$Q$1000=Costs!H$617))-SUMPRODUCT(('Fixed assets'!$S$2:$S$1000)*('Fixed assets'!$P$2:$P$1000<Costs!$A634)*('Fixed assets'!$Q$2:$Q$1000=Costs!H$617))-SUMPRODUCT(('Fixed assets'!$Q$2:$Q$1000=Costs!H$617)*('Fixed assets'!$U$2:$U$1000=Costs!$A634)*('Fixed assets'!$S$2:$S$1000))+SUMPRODUCT(('Fixed assets'!$Q$2:$Q$1000=Costs!H$617)*('Fixed assets'!$P$2:$P$1000=Costs!$A634)*('Fixed assets'!$U$2:$U$1000=Costs!$A634)*('Fixed assets'!$R$2:$R$1000))","v":0},{"$f":"SUMPRODUCT(('Fixed assets'!$R$2:$R$1000)*('Fixed assets'!$P$2:$P$1000<$A634)*('Fixed assets'!$Q$2:$Q$1000=Costs!I$617))-SUMPRODUCT(('Fixed assets'!$S$2:$S$1000)*('Fixed assets'!$P$2:$P$1000<Costs!$A634)*('Fixed assets'!$Q$2:$Q$1000=Costs!I$617))-SUMPRODUCT(('Fixed assets'!$Q$2:$Q$1000=Costs!I$617)*('Fixed assets'!$U$2:$U$1000=Costs!$A634)*('Fixed assets'!$S$2:$S$1000))+SUMPRODUCT(('Fixed assets'!$Q$2:$Q$1000=Costs!I$617)*('Fixed assets'!$P$2:$P$1000=Costs!$A634)*('Fixed assets'!$U$2:$U$1000=Costs!$A634)*('Fixed assets'!$R$2:$R$1000))","v":0},{"$f":"SUMPRODUCT(('Fixed assets'!$R$2:$R$1000)*('Fixed assets'!$P$2:$P$1000<$A634)*('Fixed assets'!$Q$2:$Q$1000=Costs!J$617))-SUMPRODUCT(('Fixed assets'!$S$2:$S$1000)*('Fixed assets'!$P$2:$P$1000<Costs!$A634)*('Fixed assets'!$Q$2:$Q$1000=Costs!J$617))-SUMPRODUCT(('Fixed assets'!$Q$2:$Q$1000=Costs!J$617)*('Fixed assets'!$U$2:$U$1000=Costs!$A634)*('Fixed assets'!$S$2:$S$1000))+SUMPRODUCT(('Fixed assets'!$Q$2:$Q$1000=Costs!J$617)*('Fixed assets'!$P$2:$P$1000=Costs!$A634)*('Fixed assets'!$U$2:$U$1000=Costs!$A634)*('Fixed assets'!$R$2:$R$1000))","v":0},{"$f":"SUMPRODUCT(('Fixed assets'!$R$2:$R$1000)*('Fixed assets'!$P$2:$P$1000<$A634)*('Fixed assets'!$Q$2:$Q$1000=Costs!K$617))-SUMPRODUCT(('Fixed assets'!$S$2:$S$1000)*('Fixed assets'!$P$2:$P$1000<Costs!$A634)*('Fixed assets'!$Q$2:$Q$1000=Costs!K$617))-SUMPRODUCT(('Fixed assets'!$Q$2:$Q$1000=Costs!K$617)*('Fixed assets'!$U$2:$U$1000=Costs!$A634)*('Fixed assets'!$S$2:$S$1000))+SUMPRODUCT(('Fixed assets'!$Q$2:$Q$1000=Costs!K$617)*('Fixed assets'!$P$2:$P$1000=Costs!$A634)*('Fixed assets'!$U$2:$U$1000=Costs!$A634)*('Fixed assets'!$R$2:$R$1000))","v":0},{"$f":"SUMPRODUCT(('Fixed assets'!$R$2:$R$1000)*('Fixed assets'!$P$2:$P$1000<$A634)*('Fixed assets'!$Q$2:$Q$1000=Costs!L$617))-SUMPRODUCT(('Fixed assets'!$S$2:$S$1000)*('Fixed assets'!$P$2:$P$1000<Costs!$A634)*('Fixed assets'!$Q$2:$Q$1000=Costs!L$617))-SUMPRODUCT(('Fixed assets'!$Q$2:$Q$1000=Costs!L$617)*('Fixed assets'!$U$2:$U$1000=Costs!$A634)*('Fixed assets'!$S$2:$S$1000))+SUMPRODUCT(('Fixed assets'!$Q$2:$Q$1000=Costs!L$617)*('Fixed assets'!$P$2:$P$1000=Costs!$A634)*('Fixed assets'!$U$2:$U$1000=Costs!$A634)*('Fixed assets'!$R$2:$R$1000))","v":0},{"$f":"SUMPRODUCT(('Fixed assets'!$R$2:$R$1000)*('Fixed assets'!$P$2:$P$1000<$A634)*('Fixed assets'!$Q$2:$Q$1000=Costs!M$617))-SUMPRODUCT(('Fixed assets'!$S$2:$S$1000)*('Fixed assets'!$P$2:$P$1000<Costs!$A634)*('Fixed assets'!$Q$2:$Q$1000=Costs!M$617))-SUMPRODUCT(('Fixed assets'!$Q$2:$Q$1000=Costs!M$617)*('Fixed assets'!$U$2:$U$1000=Costs!$A634)*('Fixed assets'!$S$2:$S$1000))+SUMPRODUCT(('Fixed assets'!$Q$2:$Q$1000=Costs!M$617)*('Fixed assets'!$P$2:$P$1000=Costs!$A634)*('Fixed assets'!$U$2:$U$1000=Costs!$A634)*('Fixed assets'!$R$2:$R$1000))","v":0},{"$f":"SUMPRODUCT(('Fixed assets'!$R$2:$R$1000)*('Fixed assets'!$P$2:$P$1000<$A634)*('Fixed assets'!$Q$2:$Q$1000=Costs!N$617))-SUMPRODUCT(('Fixed assets'!$S$2:$S$1000)*('Fixed assets'!$P$2:$P$1000<Costs!$A634)*('Fixed assets'!$Q$2:$Q$1000=Costs!N$617))-SUMPRODUCT(('Fixed assets'!$Q$2:$Q$1000=Costs!N$617)*('Fixed assets'!$U$2:$U$1000=Costs!$A634)*('Fixed assets'!$S$2:$S$1000))+SUMPRODUCT(('Fixed assets'!$Q$2:$Q$1000=Costs!N$617)*('Fixed assets'!$P$2:$P$1000=Costs!$A634)*('Fixed assets'!$U$2:$U$1000=Costs!$A634)*('Fixed assets'!$R$2:$R$1000))","v":0},{"$f":"SUMPRODUCT(('Fixed assets'!$R$2:$R$1000)*('Fixed assets'!$P$2:$P$1000<$A634)*('Fixed assets'!$Q$2:$Q$1000=Costs!O$617))-SUMPRODUCT(('Fixed assets'!$S$2:$S$1000)*('Fixed assets'!$P$2:$P$1000<Costs!$A634)*('Fixed assets'!$Q$2:$Q$1000=Costs!O$617))-SUMPRODUCT(('Fixed assets'!$Q$2:$Q$1000=Costs!O$617)*('Fixed assets'!$U$2:$U$1000=Costs!$A634)*('Fixed assets'!$S$2:$S$1000))+SUMPRODUCT(('Fixed assets'!$Q$2:$Q$1000=Costs!O$617)*('Fixed assets'!$P$2:$P$1000=Costs!$A634)*('Fixed assets'!$U$2:$U$1000=Costs!$A634)*('Fixed assets'!$R$2:$R$1000))","v":0},{"$f":"SUMPRODUCT(('Fixed assets'!$R$2:$R$1000)*('Fixed assets'!$P$2:$P$1000<$A634)*('Fixed assets'!$Q$2:$Q$1000=Costs!P$617))-SUMPRODUCT(('Fixed assets'!$S$2:$S$1000)*('Fixed assets'!$P$2:$P$1000<Costs!$A634)*('Fixed assets'!$Q$2:$Q$1000=Costs!P$617))-SUMPRODUCT(('Fixed assets'!$Q$2:$Q$1000=Costs!P$617)*('Fixed assets'!$U$2:$U$1000=Costs!$A634)*('Fixed assets'!$S$2:$S$1000))+SUMPRODUCT(('Fixed assets'!$Q$2:$Q$1000=Costs!P$617)*('Fixed assets'!$P$2:$P$1000=Costs!$A634)*('Fixed assets'!$U$2:$U$1000=Costs!$A634)*('Fixed assets'!$R$2:$R$1000))","v":0},{"$f":"SUMPRODUCT(('Fixed assets'!$R$2:$R$1000)*('Fixed assets'!$P$2:$P$1000<$A634)*('Fixed assets'!$Q$2:$Q$1000=Costs!Q$617))-SUMPRODUCT(('Fixed assets'!$S$2:$S$1000)*('Fixed assets'!$P$2:$P$1000<Costs!$A634)*('Fixed assets'!$Q$2:$Q$1000=Costs!Q$617))-SUMPRODUCT(('Fixed assets'!$Q$2:$Q$1000=Costs!Q$617)*('Fixed assets'!$U$2:$U$1000=Costs!$A634)*('Fixed assets'!$S$2:$S$1000))+SUMPRODUCT(('Fixed assets'!$Q$2:$Q$1000=Costs!Q$617)*('Fixed assets'!$P$2:$P$1000=Costs!$A634)*('Fixed assets'!$U$2:$U$1000=Costs!$A634)*('Fixed assets'!$R$2:$R$1000))","v":0},{"$f":"SUMPRODUCT(('Fixed assets'!$R$2:$R$1000)*('Fixed assets'!$P$2:$P$1000<$A634)*('Fixed assets'!$Q$2:$Q$1000=Costs!R$617))-SUMPRODUCT(('Fixed assets'!$S$2:$S$1000)*('Fixed assets'!$P$2:$P$1000<Costs!$A634)*('Fixed assets'!$Q$2:$Q$1000=Costs!R$617))-SUMPRODUCT(('Fixed assets'!$Q$2:$Q$1000=Costs!R$617)*('Fixed assets'!$U$2:$U$1000=Costs!$A634)*('Fixed assets'!$S$2:$S$1000))+SUMPRODUCT(('Fixed assets'!$Q$2:$Q$1000=Costs!R$617)*('Fixed assets'!$P$2:$P$1000=Costs!$A634)*('Fixed assets'!$U$2:$U$1000=Costs!$A634)*('Fixed assets'!$R$2:$R$1000))","v":0},{"$f":"SUMPRODUCT(('Fixed assets'!$R$2:$R$1000)*('Fixed assets'!$P$2:$P$1000<$A634)*('Fixed assets'!$Q$2:$Q$1000=Costs!S$617))-SUMPRODUCT(('Fixed assets'!$S$2:$S$1000)*('Fixed assets'!$P$2:$P$1000<Costs!$A634)*('Fixed assets'!$Q$2:$Q$1000=Costs!S$617))-SUMPRODUCT(('Fixed assets'!$Q$2:$Q$1000=Costs!S$617)*('Fixed assets'!$U$2:$U$1000=Costs!$A634)*('Fixed assets'!$S$2:$S$1000))+SUMPRODUCT(('Fixed assets'!$Q$2:$Q$1000=Costs!S$617)*('Fixed assets'!$P$2:$P$1000=Costs!$A634)*('Fixed assets'!$U$2:$U$1000=Costs!$A634)*('Fixed assets'!$R$2:$R$1000))","v":0},{"$f":"SUMPRODUCT(('Fixed assets'!$R$2:$R$1000)*('Fixed assets'!$P$2:$P$1000<$A634)*('Fixed assets'!$Q$2:$Q$1000=Costs!T$617))-SUMPRODUCT(('Fixed assets'!$S$2:$S$1000)*('Fixed assets'!$P$2:$P$1000<Costs!$A634)*('Fixed assets'!$Q$2:$Q$1000=Costs!T$617))-SUMPRODUCT(('Fixed assets'!$Q$2:$Q$1000=Costs!T$617)*('Fixed assets'!$U$2:$U$1000=Costs!$A634)*('Fixed assets'!$S$2:$S$1000))+SUMPRODUCT(('Fixed assets'!$Q$2:$Q$1000=Costs!T$617)*('Fixed assets'!$P$2:$P$1000=Costs!$A634)*('Fixed assets'!$U$2:$U$1000=Costs!$A634)*('Fixed assets'!$R$2:$R$1000))","v":0},{"$f":"SUMPRODUCT(('Fixed assets'!$R$2:$R$1000)*('Fixed assets'!$P$2:$P$1000<$A634)*('Fixed assets'!$Q$2:$Q$1000=Costs!U$617))-SUMPRODUCT(('Fixed assets'!$S$2:$S$1000)*('Fixed assets'!$P$2:$P$1000<Costs!$A634)*('Fixed assets'!$Q$2:$Q$1000=Costs!U$617))-SUMPRODUCT(('Fixed assets'!$Q$2:$Q$1000=Costs!U$617)*('Fixed assets'!$U$2:$U$1000=Costs!$A634)*('Fixed assets'!$S$2:$S$1000))+SUMPRODUCT(('Fixed assets'!$Q$2:$Q$1000=Costs!U$617)*('Fixed assets'!$P$2:$P$1000=Costs!$A634)*('Fixed assets'!$U$2:$U$1000=Costs!$A634)*('Fixed assets'!$R$2:$R$1000))","v":0},{"$f":"SUMPRODUCT(('Fixed assets'!$R$2:$R$1000)*('Fixed assets'!$P$2:$P$1000<$A634)*('Fixed assets'!$Q$2:$Q$1000=Costs!V$617))-SUMPRODUCT(('Fixed assets'!$S$2:$S$1000)*('Fixed assets'!$P$2:$P$1000<Costs!$A634)*('Fixed assets'!$Q$2:$Q$1000=Costs!V$617))-SUMPRODUCT(('Fixed assets'!$Q$2:$Q$1000=Costs!V$617)*('Fixed assets'!$U$2:$U$1000=Costs!$A634)*('Fixed assets'!$S$2:$S$1000))+SUMPRODUCT(('Fixed assets'!$Q$2:$Q$1000=Costs!V$617)*('Fixed assets'!$P$2:$P$1000=Costs!$A634)*('Fixed assets'!$U$2:$U$1000=Costs!$A634)*('Fixed assets'!$R$2:$R$1000))","v":0},{"$f":"SUMPRODUCT(('Fixed assets'!$R$2:$R$1000)*('Fixed assets'!$P$2:$P$1000<$A634)*('Fixed assets'!$Q$2:$Q$1000=Costs!W$617))-SUMPRODUCT(('Fixed assets'!$S$2:$S$1000)*('Fixed assets'!$P$2:$P$1000<Costs!$A634)*('Fixed assets'!$Q$2:$Q$1000=Costs!W$617))-SUMPRODUCT(('Fixed assets'!$Q$2:$Q$1000=Costs!W$617)*('Fixed assets'!$U$2:$U$1000=Costs!$A634)*('Fixed assets'!$S$2:$S$1000))+SUMPRODUCT(('Fixed assets'!$Q$2:$Q$1000=Costs!W$617)*('Fixed assets'!$P$2:$P$1000=Costs!$A634)*('Fixed assets'!$U$2:$U$1000=Costs!$A634)*('Fixed assets'!$R$2:$R$1000))","v":0},{"$f":"SUMPRODUCT(('Fixed assets'!$R$2:$R$1000)*('Fixed assets'!$P$2:$P$1000<$A634)*('Fixed assets'!$Q$2:$Q$1000=Costs!X$617))-SUMPRODUCT(('Fixed assets'!$S$2:$S$1000)*('Fixed assets'!$P$2:$P$1000<Costs!$A634)*('Fixed assets'!$Q$2:$Q$1000=Costs!X$617))-SUMPRODUCT(('Fixed assets'!$Q$2:$Q$1000=Costs!X$617)*('Fixed assets'!$U$2:$U$1000=Costs!$A634)*('Fixed assets'!$S$2:$S$1000))+SUMPRODUCT(('Fixed assets'!$Q$2:$Q$1000=Costs!X$617)*('Fixed assets'!$P$2:$P$1000=Costs!$A634)*('Fixed assets'!$U$2:$U$1000=Costs!$A634)*('Fixed assets'!$R$2:$R$1000))","v":0},{"$f":"SUMPRODUCT(('Fixed assets'!$R$2:$R$1000)*('Fixed assets'!$P$2:$P$1000<$A634)*('Fixed assets'!$Q$2:$Q$1000=Costs!Y$617))-SUMPRODUCT(('Fixed assets'!$S$2:$S$1000)*('Fixed assets'!$P$2:$P$1000<Costs!$A634)*('Fixed assets'!$Q$2:$Q$1000=Costs!Y$617))-SUMPRODUCT(('Fixed assets'!$Q$2:$Q$1000=Costs!Y$617)*('Fixed assets'!$U$2:$U$1000=Costs!$A634)*('Fixed assets'!$S$2:$S$1000))+SUMPRODUCT(('Fixed assets'!$Q$2:$Q$1000=Costs!Y$617)*('Fixed assets'!$P$2:$P$1000=Costs!$A634)*('Fixed assets'!$U$2:$U$1000=Costs!$A634)*('Fixed assets'!$R$2:$R$1000))","v":0},{"$f":"SUMPRODUCT(('Fixed assets'!$R$2:$R$1000)*('Fixed assets'!$P$2:$P$1000<$A634)*('Fixed assets'!$Q$2:$Q$1000=Costs!Z$617))-SUMPRODUCT(('Fixed assets'!$S$2:$S$1000)*('Fixed assets'!$P$2:$P$1000<Costs!$A634)*('Fixed assets'!$Q$2:$Q$1000=Costs!Z$617))-SUMPRODUCT(('Fixed assets'!$Q$2:$Q$1000=Costs!Z$617)*('Fixed assets'!$U$2:$U$1000=Costs!$A634)*('Fixed assets'!$S$2:$S$1000))+SUMPRODUCT(('Fixed assets'!$Q$2:$Q$1000=Costs!Z$617)*('Fixed assets'!$P$2:$P$1000=Costs!$A634)*('Fixed assets'!$U$2:$U$1000=Costs!$A634)*('Fixed assets'!$R$2:$R$1000))","v":0},{"$f":"SUMPRODUCT(('Fixed assets'!$R$2:$R$1000)*('Fixed assets'!$P$2:$P$1000<$A634)*('Fixed assets'!$Q$2:$Q$1000=Costs!AA$617))-SUMPRODUCT(('Fixed assets'!$S$2:$S$1000)*('Fixed assets'!$P$2:$P$1000<Costs!$A634)*('Fixed assets'!$Q$2:$Q$1000=Costs!AA$617))-SUMPRODUCT(('Fixed assets'!$Q$2:$Q$1000=Costs!AA$617)*('Fixed assets'!$U$2:$U$1000=Costs!$A634)*('Fixed assets'!$S$2:$S$1000))+SUMPRODUCT(('Fixed assets'!$Q$2:$Q$1000=Costs!AA$617)*('Fixed assets'!$P$2:$P$1000=Costs!$A634)*('Fixed assets'!$U$2:$U$1000=Costs!$A634)*('Fixed assets'!$R$2:$R$1000))","v":0},{"$f":"SUMPRODUCT(('Fixed assets'!$R$2:$R$1000)*('Fixed assets'!$P$2:$P$1000<$A634)*('Fixed assets'!$Q$2:$Q$1000=Costs!AB$617))-SUMPRODUCT(('Fixed assets'!$S$2:$S$1000)*('Fixed assets'!$P$2:$P$1000<Costs!$A634)*('Fixed assets'!$Q$2:$Q$1000=Costs!AB$617))-SUMPRODUCT(('Fixed assets'!$Q$2:$Q$1000=Costs!AB$617)*('Fixed assets'!$U$2:$U$1000=Costs!$A634)*('Fixed assets'!$S$2:$S$1000))+SUMPRODUCT(('Fixed assets'!$Q$2:$Q$1000=Costs!AB$617)*('Fixed assets'!$P$2:$P$1000=Costs!$A634)*('Fixed assets'!$U$2:$U$1000=Costs!$A634)*('Fixed assets'!$R$2:$R$1000))","v":0},{"$f":"SUMPRODUCT(('Fixed assets'!$R$2:$R$1000)*('Fixed assets'!$P$2:$P$1000<$A634)*('Fixed assets'!$Q$2:$Q$1000=Costs!AC$617))-SUMPRODUCT(('Fixed assets'!$S$2:$S$1000)*('Fixed assets'!$P$2:$P$1000<Costs!$A634)*('Fixed assets'!$Q$2:$Q$1000=Costs!AC$617))-SUMPRODUCT(('Fixed assets'!$Q$2:$Q$1000=Costs!AC$617)*('Fixed assets'!$U$2:$U$1000=Costs!$A634)*('Fixed assets'!$S$2:$S$1000))+SUMPRODUCT(('Fixed assets'!$Q$2:$Q$1000=Costs!AC$617)*('Fixed assets'!$P$2:$P$1000=Costs!$A634)*('Fixed assets'!$U$2:$U$1000=Costs!$A634)*('Fixed assets'!$R$2:$R$1000))","v":0},{"$f":"SUMPRODUCT(('Fixed assets'!$R$2:$R$1000)*('Fixed assets'!$P$2:$P$1000<$A634)*('Fixed assets'!$Q$2:$Q$1000=Costs!AD$617))-SUMPRODUCT(('Fixed assets'!$S$2:$S$1000)*('Fixed assets'!$P$2:$P$1000<Costs!$A634)*('Fixed assets'!$Q$2:$Q$1000=Costs!AD$617))-SUMPRODUCT(('Fixed assets'!$Q$2:$Q$1000=Costs!AD$617)*('Fixed assets'!$U$2:$U$1000=Costs!$A634)*('Fixed assets'!$S$2:$S$1000))+SUMPRODUCT(('Fixed assets'!$Q$2:$Q$1000=Costs!AD$617)*('Fixed assets'!$P$2:$P$1000=Costs!$A634)*('Fixed assets'!$U$2:$U$1000=Costs!$A634)*('Fixed assets'!$R$2:$R$1000))","v":0},{"$f":"SUMPRODUCT(('Fixed assets'!$R$2:$R$1000)*('Fixed assets'!$P$2:$P$1000<$A634)*('Fixed assets'!$Q$2:$Q$1000=Costs!AE$617))-SUMPRODUCT(('Fixed assets'!$S$2:$S$1000)*('Fixed assets'!$P$2:$P$1000<Costs!$A634)*('Fixed assets'!$Q$2:$Q$1000=Costs!AE$617))-SUMPRODUCT(('Fixed assets'!$Q$2:$Q$1000=Costs!AE$617)*('Fixed assets'!$U$2:$U$1000=Costs!$A634)*('Fixed assets'!$S$2:$S$1000))+SUMPRODUCT(('Fixed assets'!$Q$2:$Q$1000=Costs!AE$617)*('Fixed assets'!$P$2:$P$1000=Costs!$A634)*('Fixed assets'!$U$2:$U$1000=Costs!$A634)*('Fixed assets'!$R$2:$R$1000))","v":0},{"$f":"SUMPRODUCT(('Fixed assets'!$R$2:$R$1000)*('Fixed assets'!$P$2:$P$1000<$A634)*('Fixed assets'!$Q$2:$Q$1000=Costs!AF$617))-SUMPRODUCT(('Fixed assets'!$S$2:$S$1000)*('Fixed assets'!$P$2:$P$1000<Costs!$A634)*('Fixed assets'!$Q$2:$Q$1000=Costs!AF$617))-SUMPRODUCT(('Fixed assets'!$Q$2:$Q$1000=Costs!AF$617)*('Fixed assets'!$U$2:$U$1000=Costs!$A634)*('Fixed assets'!$S$2:$S$1000))+SUMPRODUCT(('Fixed assets'!$Q$2:$Q$1000=Costs!AF$617)*('Fixed assets'!$P$2:$P$1000=Costs!$A634)*('Fixed assets'!$U$2:$U$1000=Costs!$A634)*('Fixed assets'!$R$2:$R$1000))","v":0},{"$f":"SUMPRODUCT(('Fixed assets'!$R$2:$R$1000)*('Fixed assets'!$P$2:$P$1000<$A634)*('Fixed assets'!$Q$2:$Q$1000=Costs!AG$617))-SUMPRODUCT(('Fixed assets'!$S$2:$S$1000)*('Fixed assets'!$P$2:$P$1000<Costs!$A634)*('Fixed assets'!$Q$2:$Q$1000=Costs!AG$617))-SUMPRODUCT(('Fixed assets'!$Q$2:$Q$1000=Costs!AG$617)*('Fixed assets'!$U$2:$U$1000=Costs!$A634)*('Fixed assets'!$S$2:$S$1000))+SUMPRODUCT(('Fixed assets'!$Q$2:$Q$1000=Costs!AG$617)*('Fixed assets'!$P$2:$P$1000=Costs!$A634)*('Fixed assets'!$U$2:$U$1000=Costs!$A634)*('Fixed assets'!$R$2:$R$1000))","v":0},{"$f":"SUMPRODUCT(('Fixed assets'!$R$2:$R$1000)*('Fixed assets'!$P$2:$P$1000<$A634)*('Fixed assets'!$Q$2:$Q$1000=Costs!AH$617))-SUMPRODUCT(('Fixed assets'!$S$2:$S$1000)*('Fixed assets'!$P$2:$P$1000<Costs!$A634)*('Fixed assets'!$Q$2:$Q$1000=Costs!AH$617))-SUMPRODUCT(('Fixed assets'!$Q$2:$Q$1000=Costs!AH$617)*('Fixed assets'!$U$2:$U$1000=Costs!$A634)*('Fixed assets'!$S$2:$S$1000))+SUMPRODUCT(('Fixed assets'!$Q$2:$Q$1000=Costs!AH$617)*('Fixed assets'!$P$2:$P$1000=Costs!$A634)*('Fixed assets'!$U$2:$U$1000=Costs!$A634)*('Fixed assets'!$R$2:$R$1000))","v":0},{"$f":"SUMPRODUCT(('Fixed assets'!$R$2:$R$1000)*('Fixed assets'!$P$2:$P$1000<$A634)*('Fixed assets'!$Q$2:$Q$1000=Costs!AI$617))-SUMPRODUCT(('Fixed assets'!$S$2:$S$1000)*('Fixed assets'!$P$2:$P$1000<Costs!$A634)*('Fixed assets'!$Q$2:$Q$1000=Costs!AI$617))-SUMPRODUCT(('Fixed assets'!$Q$2:$Q$1000=Costs!AI$617)*('Fixed assets'!$U$2:$U$1000=Costs!$A634)*('Fixed assets'!$S$2:$S$1000))+SUMPRODUCT(('Fixed assets'!$Q$2:$Q$1000=Costs!AI$617)*('Fixed assets'!$P$2:$P$1000=Costs!$A634)*('Fixed assets'!$U$2:$U$1000=Costs!$A634)*('Fixed assets'!$R$2:$R$1000))","v":0},{"$f":"SUMPRODUCT(('Fixed assets'!$R$2:$R$1000)*('Fixed assets'!$P$2:$P$1000<$A634)*('Fixed assets'!$Q$2:$Q$1000=Costs!AJ$617))-SUMPRODUCT(('Fixed assets'!$S$2:$S$1000)*('Fixed assets'!$P$2:$P$1000<Costs!$A634)*('Fixed assets'!$Q$2:$Q$1000=Costs!AJ$617))-SUMPRODUCT(('Fixed assets'!$Q$2:$Q$1000=Costs!AJ$617)*('Fixed assets'!$U$2:$U$1000=Costs!$A634)*('Fixed assets'!$S$2:$S$1000))+SUMPRODUCT(('Fixed assets'!$Q$2:$Q$1000=Costs!AJ$617)*('Fixed assets'!$P$2:$P$1000=Costs!$A634)*('Fixed assets'!$U$2:$U$1000=Costs!$A634)*('Fixed assets'!$R$2:$R$1000))","v":0},{"$f":"SUMPRODUCT(('Fixed assets'!$R$2:$R$1000)*('Fixed assets'!$P$2:$P$1000<$A634)*('Fixed assets'!$Q$2:$Q$1000=Costs!AK$617))-SUMPRODUCT(('Fixed assets'!$S$2:$S$1000)*('Fixed assets'!$P$2:$P$1000<Costs!$A634)*('Fixed assets'!$Q$2:$Q$1000=Costs!AK$617))-SUMPRODUCT(('Fixed assets'!$Q$2:$Q$1000=Costs!AK$617)*('Fixed assets'!$U$2:$U$1000=Costs!$A634)*('Fixed assets'!$S$2:$S$1000))+SUMPRODUCT(('Fixed assets'!$Q$2:$Q$1000=Costs!AK$617)*('Fixed assets'!$P$2:$P$1000=Costs!$A634)*('Fixed assets'!$U$2:$U$1000=Costs!$A634)*('Fixed assets'!$R$2:$R$1000))","v":0},{"$f":"SUMPRODUCT(('Fixed assets'!$R$2:$R$1000)*('Fixed assets'!$P$2:$P$1000<$A634)*('Fixed assets'!$Q$2:$Q$1000=Costs!AL$617))-SUMPRODUCT(('Fixed assets'!$S$2:$S$1000)*('Fixed assets'!$P$2:$P$1000<Costs!$A634)*('Fixed assets'!$Q$2:$Q$1000=Costs!AL$617))-SUMPRODUCT(('Fixed assets'!$Q$2:$Q$1000=Costs!AL$617)*('Fixed assets'!$U$2:$U$1000=Costs!$A634)*('Fixed assets'!$S$2:$S$1000))+SUMPRODUCT(('Fixed assets'!$Q$2:$Q$1000=Costs!AL$617)*('Fixed assets'!$P$2:$P$1000=Costs!$A634)*('Fixed assets'!$U$2:$U$1000=Costs!$A634)*('Fixed assets'!$R$2:$R$1000))","v":0},{"$f":"SUMPRODUCT(('Fixed assets'!$R$2:$R$1000)*('Fixed assets'!$P$2:$P$1000<$A634)*('Fixed assets'!$Q$2:$Q$1000=Costs!AM$617))-SUMPRODUCT(('Fixed assets'!$S$2:$S$1000)*('Fixed assets'!$P$2:$P$1000<Costs!$A634)*('Fixed assets'!$Q$2:$Q$1000=Costs!AM$617))-SUMPRODUCT(('Fixed assets'!$Q$2:$Q$1000=Costs!AM$617)*('Fixed assets'!$U$2:$U$1000=Costs!$A634)*('Fixed assets'!$S$2:$S$1000))+SUMPRODUCT(('Fixed assets'!$Q$2:$Q$1000=Costs!AM$617)*('Fixed assets'!$P$2:$P$1000=Costs!$A634)*('Fixed assets'!$U$2:$U$1000=Costs!$A634)*('Fixed assets'!$R$2:$R$1000))","v":0},{"$f":"SUMPRODUCT(('Fixed assets'!$R$2:$R$1000)*('Fixed assets'!$P$2:$P$1000<$A634)*('Fixed assets'!$Q$2:$Q$1000=Costs!AN$617))-SUMPRODUCT(('Fixed assets'!$S$2:$S$1000)*('Fixed assets'!$P$2:$P$1000<Costs!$A634)*('Fixed assets'!$Q$2:$Q$1000=Costs!AN$617))-SUMPRODUCT(('Fixed assets'!$Q$2:$Q$1000=Costs!AN$617)*('Fixed assets'!$U$2:$U$1000=Costs!$A634)*('Fixed assets'!$S$2:$S$1000))+SUMPRODUCT(('Fixed assets'!$Q$2:$Q$1000=Costs!AN$617)*('Fixed assets'!$P$2:$P$1000=Costs!$A634)*('Fixed assets'!$U$2:$U$1000=Costs!$A634)*('Fixed assets'!$R$2:$R$1000))","v":0},{"$f":"SUMPRODUCT(('Fixed assets'!$R$2:$R$1000)*('Fixed assets'!$P$2:$P$1000<$A634)*('Fixed assets'!$Q$2:$Q$1000=Costs!AO$617))-SUMPRODUCT(('Fixed assets'!$S$2:$S$1000)*('Fixed assets'!$P$2:$P$1000<Costs!$A634)*('Fixed assets'!$Q$2:$Q$1000=Costs!AO$617))-SUMPRODUCT(('Fixed assets'!$Q$2:$Q$1000=Costs!AO$617)*('Fixed assets'!$U$2:$U$1000=Costs!$A634)*('Fixed assets'!$S$2:$S$1000))+SUMPRODUCT(('Fixed assets'!$Q$2:$Q$1000=Costs!AO$617)*('Fixed assets'!$P$2:$P$1000=Costs!$A634)*('Fixed assets'!$U$2:$U$1000=Costs!$A634)*('Fixed assets'!$R$2:$R$1000))","v":0},{"$f":"SUMPRODUCT(('Fixed assets'!$R$2:$R$1000)*('Fixed assets'!$P$2:$P$1000<$A634)*('Fixed assets'!$Q$2:$Q$1000=Costs!AP$617))-SUMPRODUCT(('Fixed assets'!$S$2:$S$1000)*('Fixed assets'!$P$2:$P$1000<Costs!$A634)*('Fixed assets'!$Q$2:$Q$1000=Costs!AP$617))-SUMPRODUCT(('Fixed assets'!$Q$2:$Q$1000=Costs!AP$617)*('Fixed assets'!$U$2:$U$1000=Costs!$A634)*('Fixed assets'!$S$2:$S$1000))+SUMPRODUCT(('Fixed assets'!$Q$2:$Q$1000=Costs!AP$617)*('Fixed assets'!$P$2:$P$1000=Costs!$A634)*('Fixed assets'!$U$2:$U$1000=Costs!$A634)*('Fixed assets'!$R$2:$R$1000))","v":0},{"$f":"SUMPRODUCT(('Fixed assets'!$R$2:$R$1000)*('Fixed assets'!$P$2:$P$1000<$A634)*('Fixed assets'!$Q$2:$Q$1000=Costs!AQ$617))-SUMPRODUCT(('Fixed assets'!$S$2:$S$1000)*('Fixed assets'!$P$2:$P$1000<Costs!$A634)*('Fixed assets'!$Q$2:$Q$1000=Costs!AQ$617))-SUMPRODUCT(('Fixed assets'!$Q$2:$Q$1000=Costs!AQ$617)*('Fixed assets'!$U$2:$U$1000=Costs!$A634)*('Fixed assets'!$S$2:$S$1000))+SUMPRODUCT(('Fixed assets'!$Q$2:$Q$1000=Costs!AQ$617)*('Fixed assets'!$P$2:$P$1000=Costs!$A634)*('Fixed assets'!$U$2:$U$1000=Costs!$A634)*('Fixed assets'!$R$2:$R$1000))","v":0}]
[2032,0,{"$f":"SUMPRODUCT(('Fixed assets'!$R$2:$R$1000)*('Fixed assets'!$P$2:$P$1000<$A635)*('Fixed assets'!$Q$2:$Q$1000=Costs!C$617))-SUMPRODUCT(('Fixed assets'!$S$2:$S$1000)*('Fixed assets'!$P$2:$P$1000<Costs!$A635)*('Fixed assets'!$Q$2:$Q$1000=Costs!C$617))-SUMPRODUCT(('Fixed assets'!$Q$2:$Q$1000=Costs!C$617)*('Fixed assets'!$U$2:$U$1000=Costs!$A635)*('Fixed assets'!$S$2:$S$1000))+SUMPRODUCT(('Fixed assets'!$Q$2:$Q$1000=Costs!C$617)*('Fixed assets'!$P$2:$P$1000=Costs!$A635)*('Fixed assets'!$U$2:$U$1000=Costs!$A635)*('Fixed assets'!$R$2:$R$1000))","v":0},{"$f":"SUMPRODUCT(('Fixed assets'!$R$2:$R$1000)*('Fixed assets'!$P$2:$P$1000<$A635)*('Fixed assets'!$Q$2:$Q$1000=Costs!D$617))-SUMPRODUCT(('Fixed assets'!$S$2:$S$1000)*('Fixed assets'!$P$2:$P$1000<Costs!$A635)*('Fixed assets'!$Q$2:$Q$1000=Costs!D$617))-SUMPRODUCT(('Fixed assets'!$Q$2:$Q$1000=Costs!D$617)*('Fixed assets'!$U$2:$U$1000=Costs!$A635)*('Fixed assets'!$S$2:$S$1000))+SUMPRODUCT(('Fixed assets'!$Q$2:$Q$1000=Costs!D$617)*('Fixed assets'!$P$2:$P$1000=Costs!$A635)*('Fixed assets'!$U$2:$U$1000=Costs!$A635)*('Fixed assets'!$R$2:$R$1000))","v":0},{"$f":"SUMPRODUCT(('Fixed assets'!$R$2:$R$1000)*('Fixed assets'!$P$2:$P$1000<$A635)*('Fixed assets'!$Q$2:$Q$1000=Costs!E$617))-SUMPRODUCT(('Fixed assets'!$S$2:$S$1000)*('Fixed assets'!$P$2:$P$1000<Costs!$A635)*('Fixed assets'!$Q$2:$Q$1000=Costs!E$617))-SUMPRODUCT(('Fixed assets'!$Q$2:$Q$1000=Costs!E$617)*('Fixed assets'!$U$2:$U$1000=Costs!$A635)*('Fixed assets'!$S$2:$S$1000))+SUMPRODUCT(('Fixed assets'!$Q$2:$Q$1000=Costs!E$617)*('Fixed assets'!$P$2:$P$1000=Costs!$A635)*('Fixed assets'!$U$2:$U$1000=Costs!$A635)*('Fixed assets'!$R$2:$R$1000))","v":0},{"$f":"SUMPRODUCT(('Fixed assets'!$R$2:$R$1000)*('Fixed assets'!$P$2:$P$1000<$A635)*('Fixed assets'!$Q$2:$Q$1000=Costs!F$617))-SUMPRODUCT(('Fixed assets'!$S$2:$S$1000)*('Fixed assets'!$P$2:$P$1000<Costs!$A635)*('Fixed assets'!$Q$2:$Q$1000=Costs!F$617))-SUMPRODUCT(('Fixed assets'!$Q$2:$Q$1000=Costs!F$617)*('Fixed assets'!$U$2:$U$1000=Costs!$A635)*('Fixed assets'!$S$2:$S$1000))+SUMPRODUCT(('Fixed assets'!$Q$2:$Q$1000=Costs!F$617)*('Fixed assets'!$P$2:$P$1000=Costs!$A635)*('Fixed assets'!$U$2:$U$1000=Costs!$A635)*('Fixed assets'!$R$2:$R$1000))","v":0},{"$f":"SUMPRODUCT(('Fixed assets'!$R$2:$R$1000)*('Fixed assets'!$P$2:$P$1000<$A635)*('Fixed assets'!$Q$2:$Q$1000=Costs!G$617))-SUMPRODUCT(('Fixed assets'!$S$2:$S$1000)*('Fixed assets'!$P$2:$P$1000<Costs!$A635)*('Fixed assets'!$Q$2:$Q$1000=Costs!G$617))-SUMPRODUCT(('Fixed assets'!$Q$2:$Q$1000=Costs!G$617)*('Fixed assets'!$U$2:$U$1000=Costs!$A635)*('Fixed assets'!$S$2:$S$1000))+SUMPRODUCT(('Fixed assets'!$Q$2:$Q$1000=Costs!G$617)*('Fixed assets'!$P$2:$P$1000=Costs!$A635)*('Fixed assets'!$U$2:$U$1000=Costs!$A635)*('Fixed assets'!$R$2:$R$1000))","v":0},{"$f":"SUMPRODUCT(('Fixed assets'!$R$2:$R$1000)*('Fixed assets'!$P$2:$P$1000<$A635)*('Fixed assets'!$Q$2:$Q$1000=Costs!H$617))-SUMPRODUCT(('Fixed assets'!$S$2:$S$1000)*('Fixed assets'!$P$2:$P$1000<Costs!$A635)*('Fixed assets'!$Q$2:$Q$1000=Costs!H$617))-SUMPRODUCT(('Fixed assets'!$Q$2:$Q$1000=Costs!H$617)*('Fixed assets'!$U$2:$U$1000=Costs!$A635)*('Fixed assets'!$S$2:$S$1000))+SUMPRODUCT(('Fixed assets'!$Q$2:$Q$1000=Costs!H$617)*('Fixed assets'!$P$2:$P$1000=Costs!$A635)*('Fixed assets'!$U$2:$U$1000=Costs!$A635)*('Fixed assets'!$R$2:$R$1000))","v":0},{"$f":"SUMPRODUCT(('Fixed assets'!$R$2:$R$1000)*('Fixed assets'!$P$2:$P$1000<$A635)*('Fixed assets'!$Q$2:$Q$1000=Costs!I$617))-SUMPRODUCT(('Fixed assets'!$S$2:$S$1000)*('Fixed assets'!$P$2:$P$1000<Costs!$A635)*('Fixed assets'!$Q$2:$Q$1000=Costs!I$617))-SUMPRODUCT(('Fixed assets'!$Q$2:$Q$1000=Costs!I$617)*('Fixed assets'!$U$2:$U$1000=Costs!$A635)*('Fixed assets'!$S$2:$S$1000))+SUMPRODUCT(('Fixed assets'!$Q$2:$Q$1000=Costs!I$617)*('Fixed assets'!$P$2:$P$1000=Costs!$A635)*('Fixed assets'!$U$2:$U$1000=Costs!$A635)*('Fixed assets'!$R$2:$R$1000))","v":0},{"$f":"SUMPRODUCT(('Fixed assets'!$R$2:$R$1000)*('Fixed assets'!$P$2:$P$1000<$A635)*('Fixed assets'!$Q$2:$Q$1000=Costs!J$617))-SUMPRODUCT(('Fixed assets'!$S$2:$S$1000)*('Fixed assets'!$P$2:$P$1000<Costs!$A635)*('Fixed assets'!$Q$2:$Q$1000=Costs!J$617))-SUMPRODUCT(('Fixed assets'!$Q$2:$Q$1000=Costs!J$617)*('Fixed assets'!$U$2:$U$1000=Costs!$A635)*('Fixed assets'!$S$2:$S$1000))+SUMPRODUCT(('Fixed assets'!$Q$2:$Q$1000=Costs!J$617)*('Fixed assets'!$P$2:$P$1000=Costs!$A635)*('Fixed assets'!$U$2:$U$1000=Costs!$A635)*('Fixed assets'!$R$2:$R$1000))","v":0},{"$f":"SUMPRODUCT(('Fixed assets'!$R$2:$R$1000)*('Fixed assets'!$P$2:$P$1000<$A635)*('Fixed assets'!$Q$2:$Q$1000=Costs!K$617))-SUMPRODUCT(('Fixed assets'!$S$2:$S$1000)*('Fixed assets'!$P$2:$P$1000<Costs!$A635)*('Fixed assets'!$Q$2:$Q$1000=Costs!K$617))-SUMPRODUCT(('Fixed assets'!$Q$2:$Q$1000=Costs!K$617)*('Fixed assets'!$U$2:$U$1000=Costs!$A635)*('Fixed assets'!$S$2:$S$1000))+SUMPRODUCT(('Fixed assets'!$Q$2:$Q$1000=Costs!K$617)*('Fixed assets'!$P$2:$P$1000=Costs!$A635)*('Fixed assets'!$U$2:$U$1000=Costs!$A635)*('Fixed assets'!$R$2:$R$1000))","v":0},{"$f":"SUMPRODUCT(('Fixed assets'!$R$2:$R$1000)*('Fixed assets'!$P$2:$P$1000<$A635)*('Fixed assets'!$Q$2:$Q$1000=Costs!L$617))-SUMPRODUCT(('Fixed assets'!$S$2:$S$1000)*('Fixed assets'!$P$2:$P$1000<Costs!$A635)*('Fixed assets'!$Q$2:$Q$1000=Costs!L$617))-SUMPRODUCT(('Fixed assets'!$Q$2:$Q$1000=Costs!L$617)*('Fixed assets'!$U$2:$U$1000=Costs!$A635)*('Fixed assets'!$S$2:$S$1000))+SUMPRODUCT(('Fixed assets'!$Q$2:$Q$1000=Costs!L$617)*('Fixed assets'!$P$2:$P$1000=Costs!$A635)*('Fixed assets'!$U$2:$U$1000=Costs!$A635)*('Fixed assets'!$R$2:$R$1000))","v":0},{"$f":"SUMPRODUCT(('Fixed assets'!$R$2:$R$1000)*('Fixed assets'!$P$2:$P$1000<$A635)*('Fixed assets'!$Q$2:$Q$1000=Costs!M$617))-SUMPRODUCT(('Fixed assets'!$S$2:$S$1000)*('Fixed assets'!$P$2:$P$1000<Costs!$A635)*('Fixed assets'!$Q$2:$Q$1000=Costs!M$617))-SUMPRODUCT(('Fixed assets'!$Q$2:$Q$1000=Costs!M$617)*('Fixed assets'!$U$2:$U$1000=Costs!$A635)*('Fixed assets'!$S$2:$S$1000))+SUMPRODUCT(('Fixed assets'!$Q$2:$Q$1000=Costs!M$617)*('Fixed assets'!$P$2:$P$1000=Costs!$A635)*('Fixed assets'!$U$2:$U$1000=Costs!$A635)*('Fixed assets'!$R$2:$R$1000))","v":0},{"$f":"SUMPRODUCT(('Fixed assets'!$R$2:$R$1000)*('Fixed assets'!$P$2:$P$1000<$A635)*('Fixed assets'!$Q$2:$Q$1000=Costs!N$617))-SUMPRODUCT(('Fixed assets'!$S$2:$S$1000)*('Fixed assets'!$P$2:$P$1000<Costs!$A635)*('Fixed assets'!$Q$2:$Q$1000=Costs!N$617))-SUMPRODUCT(('Fixed assets'!$Q$2:$Q$1000=Costs!N$617)*('Fixed assets'!$U$2:$U$1000=Costs!$A635)*('Fixed assets'!$S$2:$S$1000))+SUMPRODUCT(('Fixed assets'!$Q$2:$Q$1000=Costs!N$617)*('Fixed assets'!$P$2:$P$1000=Costs!$A635)*('Fixed assets'!$U$2:$U$1000=Costs!$A635)*('Fixed assets'!$R$2:$R$1000))","v":0},{"$f":"SUMPRODUCT(('Fixed assets'!$R$2:$R$1000)*('Fixed assets'!$P$2:$P$1000<$A635)*('Fixed assets'!$Q$2:$Q$1000=Costs!O$617))-SUMPRODUCT(('Fixed assets'!$S$2:$S$1000)*('Fixed assets'!$P$2:$P$1000<Costs!$A635)*('Fixed assets'!$Q$2:$Q$1000=Costs!O$617))-SUMPRODUCT(('Fixed assets'!$Q$2:$Q$1000=Costs!O$617)*('Fixed assets'!$U$2:$U$1000=Costs!$A635)*('Fixed assets'!$S$2:$S$1000))+SUMPRODUCT(('Fixed assets'!$Q$2:$Q$1000=Costs!O$617)*('Fixed assets'!$P$2:$P$1000=Costs!$A635)*('Fixed assets'!$U$2:$U$1000=Costs!$A635)*('Fixed assets'!$R$2:$R$1000))","v":0},{"$f":"SUMPRODUCT(('Fixed assets'!$R$2:$R$1000)*('Fixed assets'!$P$2:$P$1000<$A635)*('Fixed assets'!$Q$2:$Q$1000=Costs!P$617))-SUMPRODUCT(('Fixed assets'!$S$2:$S$1000)*('Fixed assets'!$P$2:$P$1000<Costs!$A635)*('Fixed assets'!$Q$2:$Q$1000=Costs!P$617))-SUMPRODUCT(('Fixed assets'!$Q$2:$Q$1000=Costs!P$617)*('Fixed assets'!$U$2:$U$1000=Costs!$A635)*('Fixed assets'!$S$2:$S$1000))+SUMPRODUCT(('Fixed assets'!$Q$2:$Q$1000=Costs!P$617)*('Fixed assets'!$P$2:$P$1000=Costs!$A635)*('Fixed assets'!$U$2:$U$1000=Costs!$A635)*('Fixed assets'!$R$2:$R$1000))","v":0},{"$f":"SUMPRODUCT(('Fixed assets'!$R$2:$R$1000)*('Fixed assets'!$P$2:$P$1000<$A635)*('Fixed assets'!$Q$2:$Q$1000=Costs!Q$617))-SUMPRODUCT(('Fixed assets'!$S$2:$S$1000)*('Fixed assets'!$P$2:$P$1000<Costs!$A635)*('Fixed assets'!$Q$2:$Q$1000=Costs!Q$617))-SUMPRODUCT(('Fixed assets'!$Q$2:$Q$1000=Costs!Q$617)*('Fixed assets'!$U$2:$U$1000=Costs!$A635)*('Fixed assets'!$S$2:$S$1000))+SUMPRODUCT(('Fixed assets'!$Q$2:$Q$1000=Costs!Q$617)*('Fixed assets'!$P$2:$P$1000=Costs!$A635)*('Fixed assets'!$U$2:$U$1000=Costs!$A635)*('Fixed assets'!$R$2:$R$1000))","v":0},{"$f":"SUMPRODUCT(('Fixed assets'!$R$2:$R$1000)*('Fixed assets'!$P$2:$P$1000<$A635)*('Fixed assets'!$Q$2:$Q$1000=Costs!R$617))-SUMPRODUCT(('Fixed assets'!$S$2:$S$1000)*('Fixed assets'!$P$2:$P$1000<Costs!$A635)*('Fixed assets'!$Q$2:$Q$1000=Costs!R$617))-SUMPRODUCT(('Fixed assets'!$Q$2:$Q$1000=Costs!R$617)*('Fixed assets'!$U$2:$U$1000=Costs!$A635)*('Fixed assets'!$S$2:$S$1000))+SUMPRODUCT(('Fixed assets'!$Q$2:$Q$1000=Costs!R$617)*('Fixed assets'!$P$2:$P$1000=Costs!$A635)*('Fixed assets'!$U$2:$U$1000=Costs!$A635)*('Fixed assets'!$R$2:$R$1000))","v":0},{"$f":"SUMPRODUCT(('Fixed assets'!$R$2:$R$1000)*('Fixed assets'!$P$2:$P$1000<$A635)*('Fixed assets'!$Q$2:$Q$1000=Costs!S$617))-SUMPRODUCT(('Fixed assets'!$S$2:$S$1000)*('Fixed assets'!$P$2:$P$1000<Costs!$A635)*('Fixed assets'!$Q$2:$Q$1000=Costs!S$617))-SUMPRODUCT(('Fixed assets'!$Q$2:$Q$1000=Costs!S$617)*('Fixed assets'!$U$2:$U$1000=Costs!$A635)*('Fixed assets'!$S$2:$S$1000))+SUMPRODUCT(('Fixed assets'!$Q$2:$Q$1000=Costs!S$617)*('Fixed assets'!$P$2:$P$1000=Costs!$A635)*('Fixed assets'!$U$2:$U$1000=Costs!$A635)*('Fixed assets'!$R$2:$R$1000))","v":0},{"$f":"SUMPRODUCT(('Fixed assets'!$R$2:$R$1000)*('Fixed assets'!$P$2:$P$1000<$A635)*('Fixed assets'!$Q$2:$Q$1000=Costs!T$617))-SUMPRODUCT(('Fixed assets'!$S$2:$S$1000)*('Fixed assets'!$P$2:$P$1000<Costs!$A635)*('Fixed assets'!$Q$2:$Q$1000=Costs!T$617))-SUMPRODUCT(('Fixed assets'!$Q$2:$Q$1000=Costs!T$617)*('Fixed assets'!$U$2:$U$1000=Costs!$A635)*('Fixed assets'!$S$2:$S$1000))+SUMPRODUCT(('Fixed assets'!$Q$2:$Q$1000=Costs!T$617)*('Fixed assets'!$P$2:$P$1000=Costs!$A635)*('Fixed assets'!$U$2:$U$1000=Costs!$A635)*('Fixed assets'!$R$2:$R$1000))","v":0},{"$f":"SUMPRODUCT(('Fixed assets'!$R$2:$R$1000)*('Fixed assets'!$P$2:$P$1000<$A635)*('Fixed assets'!$Q$2:$Q$1000=Costs!U$617))-SUMPRODUCT(('Fixed assets'!$S$2:$S$1000)*('Fixed assets'!$P$2:$P$1000<Costs!$A635)*('Fixed assets'!$Q$2:$Q$1000=Costs!U$617))-SUMPRODUCT(('Fixed assets'!$Q$2:$Q$1000=Costs!U$617)*('Fixed assets'!$U$2:$U$1000=Costs!$A635)*('Fixed assets'!$S$2:$S$1000))+SUMPRODUCT(('Fixed assets'!$Q$2:$Q$1000=Costs!U$617)*('Fixed assets'!$P$2:$P$1000=Costs!$A635)*('Fixed assets'!$U$2:$U$1000=Costs!$A635)*('Fixed assets'!$R$2:$R$1000))","v":0},{"$f":"SUMPRODUCT(('Fixed assets'!$R$2:$R$1000)*('Fixed assets'!$P$2:$P$1000<$A635)*('Fixed assets'!$Q$2:$Q$1000=Costs!V$617))-SUMPRODUCT(('Fixed assets'!$S$2:$S$1000)*('Fixed assets'!$P$2:$P$1000<Costs!$A635)*('Fixed assets'!$Q$2:$Q$1000=Costs!V$617))-SUMPRODUCT(('Fixed assets'!$Q$2:$Q$1000=Costs!V$617)*('Fixed assets'!$U$2:$U$1000=Costs!$A635)*('Fixed assets'!$S$2:$S$1000))+SUMPRODUCT(('Fixed assets'!$Q$2:$Q$1000=Costs!V$617)*('Fixed assets'!$P$2:$P$1000=Costs!$A635)*('Fixed assets'!$U$2:$U$1000=Costs!$A635)*('Fixed assets'!$R$2:$R$1000))","v":0},{"$f":"SUMPRODUCT(('Fixed assets'!$R$2:$R$1000)*('Fixed assets'!$P$2:$P$1000<$A635)*('Fixed assets'!$Q$2:$Q$1000=Costs!W$617))-SUMPRODUCT(('Fixed assets'!$S$2:$S$1000)*('Fixed assets'!$P$2:$P$1000<Costs!$A635)*('Fixed assets'!$Q$2:$Q$1000=Costs!W$617))-SUMPRODUCT(('Fixed assets'!$Q$2:$Q$1000=Costs!W$617)*('Fixed assets'!$U$2:$U$1000=Costs!$A635)*('Fixed assets'!$S$2:$S$1000))+SUMPRODUCT(('Fixed assets'!$Q$2:$Q$1000=Costs!W$617)*('Fixed assets'!$P$2:$P$1000=Costs!$A635)*('Fixed assets'!$U$2:$U$1000=Costs!$A635)*('Fixed assets'!$R$2:$R$1000))","v":0},{"$f":"SUMPRODUCT(('Fixed assets'!$R$2:$R$1000)*('Fixed assets'!$P$2:$P$1000<$A635)*('Fixed assets'!$Q$2:$Q$1000=Costs!X$617))-SUMPRODUCT(('Fixed assets'!$S$2:$S$1000)*('Fixed assets'!$P$2:$P$1000<Costs!$A635)*('Fixed assets'!$Q$2:$Q$1000=Costs!X$617))-SUMPRODUCT(('Fixed assets'!$Q$2:$Q$1000=Costs!X$617)*('Fixed assets'!$U$2:$U$1000=Costs!$A635)*('Fixed assets'!$S$2:$S$1000))+SUMPRODUCT(('Fixed assets'!$Q$2:$Q$1000=Costs!X$617)*('Fixed assets'!$P$2:$P$1000=Costs!$A635)*('Fixed assets'!$U$2:$U$1000=Costs!$A635)*('Fixed assets'!$R$2:$R$1000))","v":0},{"$f":"SUMPRODUCT(('Fixed assets'!$R$2:$R$1000)*('Fixed assets'!$P$2:$P$1000<$A635)*('Fixed assets'!$Q$2:$Q$1000=Costs!Y$617))-SUMPRODUCT(('Fixed assets'!$S$2:$S$1000)*('Fixed assets'!$P$2:$P$1000<Costs!$A635)*('Fixed assets'!$Q$2:$Q$1000=Costs!Y$617))-SUMPRODUCT(('Fixed assets'!$Q$2:$Q$1000=Costs!Y$617)*('Fixed assets'!$U$2:$U$1000=Costs!$A635)*('Fixed assets'!$S$2:$S$1000))+SUMPRODUCT(('Fixed assets'!$Q$2:$Q$1000=Costs!Y$617)*('Fixed assets'!$P$2:$P$1000=Costs!$A635)*('Fixed assets'!$U$2:$U$1000=Costs!$A635)*('Fixed assets'!$R$2:$R$1000))","v":0},{"$f":"SUMPRODUCT(('Fixed assets'!$R$2:$R$1000)*('Fixed assets'!$P$2:$P$1000<$A635)*('Fixed assets'!$Q$2:$Q$1000=Costs!Z$617))-SUMPRODUCT(('Fixed assets'!$S$2:$S$1000)*('Fixed assets'!$P$2:$P$1000<Costs!$A635)*('Fixed assets'!$Q$2:$Q$1000=Costs!Z$617))-SUMPRODUCT(('Fixed assets'!$Q$2:$Q$1000=Costs!Z$617)*('Fixed assets'!$U$2:$U$1000=Costs!$A635)*('Fixed assets'!$S$2:$S$1000))+SUMPRODUCT(('Fixed assets'!$Q$2:$Q$1000=Costs!Z$617)*('Fixed assets'!$P$2:$P$1000=Costs!$A635)*('Fixed assets'!$U$2:$U$1000=Costs!$A635)*('Fixed assets'!$R$2:$R$1000))","v":0},{"$f":"SUMPRODUCT(('Fixed assets'!$R$2:$R$1000)*('Fixed assets'!$P$2:$P$1000<$A635)*('Fixed assets'!$Q$2:$Q$1000=Costs!AA$617))-SUMPRODUCT(('Fixed assets'!$S$2:$S$1000)*('Fixed assets'!$P$2:$P$1000<Costs!$A635)*('Fixed assets'!$Q$2:$Q$1000=Costs!AA$617))-SUMPRODUCT(('Fixed assets'!$Q$2:$Q$1000=Costs!AA$617)*('Fixed assets'!$U$2:$U$1000=Costs!$A635)*('Fixed assets'!$S$2:$S$1000))+SUMPRODUCT(('Fixed assets'!$Q$2:$Q$1000=Costs!AA$617)*('Fixed assets'!$P$2:$P$1000=Costs!$A635)*('Fixed assets'!$U$2:$U$1000=Costs!$A635)*('Fixed assets'!$R$2:$R$1000))","v":0},{"$f":"SUMPRODUCT(('Fixed assets'!$R$2:$R$1000)*('Fixed assets'!$P$2:$P$1000<$A635)*('Fixed assets'!$Q$2:$Q$1000=Costs!AB$617))-SUMPRODUCT(('Fixed assets'!$S$2:$S$1000)*('Fixed assets'!$P$2:$P$1000<Costs!$A635)*('Fixed assets'!$Q$2:$Q$1000=Costs!AB$617))-SUMPRODUCT(('Fixed assets'!$Q$2:$Q$1000=Costs!AB$617)*('Fixed assets'!$U$2:$U$1000=Costs!$A635)*('Fixed assets'!$S$2:$S$1000))+SUMPRODUCT(('Fixed assets'!$Q$2:$Q$1000=Costs!AB$617)*('Fixed assets'!$P$2:$P$1000=Costs!$A635)*('Fixed assets'!$U$2:$U$1000=Costs!$A635)*('Fixed assets'!$R$2:$R$1000))","v":0},{"$f":"SUMPRODUCT(('Fixed assets'!$R$2:$R$1000)*('Fixed assets'!$P$2:$P$1000<$A635)*('Fixed assets'!$Q$2:$Q$1000=Costs!AC$617))-SUMPRODUCT(('Fixed assets'!$S$2:$S$1000)*('Fixed assets'!$P$2:$P$1000<Costs!$A635)*('Fixed assets'!$Q$2:$Q$1000=Costs!AC$617))-SUMPRODUCT(('Fixed assets'!$Q$2:$Q$1000=Costs!AC$617)*('Fixed assets'!$U$2:$U$1000=Costs!$A635)*('Fixed assets'!$S$2:$S$1000))+SUMPRODUCT(('Fixed assets'!$Q$2:$Q$1000=Costs!AC$617)*('Fixed assets'!$P$2:$P$1000=Costs!$A635)*('Fixed assets'!$U$2:$U$1000=Costs!$A635)*('Fixed assets'!$R$2:$R$1000))","v":0},{"$f":"SUMPRODUCT(('Fixed assets'!$R$2:$R$1000)*('Fixed assets'!$P$2:$P$1000<$A635)*('Fixed assets'!$Q$2:$Q$1000=Costs!AD$617))-SUMPRODUCT(('Fixed assets'!$S$2:$S$1000)*('Fixed assets'!$P$2:$P$1000<Costs!$A635)*('Fixed assets'!$Q$2:$Q$1000=Costs!AD$617))-SUMPRODUCT(('Fixed assets'!$Q$2:$Q$1000=Costs!AD$617)*('Fixed assets'!$U$2:$U$1000=Costs!$A635)*('Fixed assets'!$S$2:$S$1000))+SUMPRODUCT(('Fixed assets'!$Q$2:$Q$1000=Costs!AD$617)*('Fixed assets'!$P$2:$P$1000=Costs!$A635)*('Fixed assets'!$U$2:$U$1000=Costs!$A635)*('Fixed assets'!$R$2:$R$1000))","v":0},{"$f":"SUMPRODUCT(('Fixed assets'!$R$2:$R$1000)*('Fixed assets'!$P$2:$P$1000<$A635)*('Fixed assets'!$Q$2:$Q$1000=Costs!AE$617))-SUMPRODUCT(('Fixed assets'!$S$2:$S$1000)*('Fixed assets'!$P$2:$P$1000<Costs!$A635)*('Fixed assets'!$Q$2:$Q$1000=Costs!AE$617))-SUMPRODUCT(('Fixed assets'!$Q$2:$Q$1000=Costs!AE$617)*('Fixed assets'!$U$2:$U$1000=Costs!$A635)*('Fixed assets'!$S$2:$S$1000))+SUMPRODUCT(('Fixed assets'!$Q$2:$Q$1000=Costs!AE$617)*('Fixed assets'!$P$2:$P$1000=Costs!$A635)*('Fixed assets'!$U$2:$U$1000=Costs!$A635)*('Fixed assets'!$R$2:$R$1000))","v":0},{"$f":"SUMPRODUCT(('Fixed assets'!$R$2:$R$1000)*('Fixed assets'!$P$2:$P$1000<$A635)*('Fixed assets'!$Q$2:$Q$1000=Costs!AF$617))-SUMPRODUCT(('Fixed assets'!$S$2:$S$1000)*('Fixed assets'!$P$2:$P$1000<Costs!$A635)*('Fixed assets'!$Q$2:$Q$1000=Costs!AF$617))-SUMPRODUCT(('Fixed assets'!$Q$2:$Q$1000=Costs!AF$617)*('Fixed assets'!$U$2:$U$1000=Costs!$A635)*('Fixed assets'!$S$2:$S$1000))+SUMPRODUCT(('Fixed assets'!$Q$2:$Q$1000=Costs!AF$617)*('Fixed assets'!$P$2:$P$1000=Costs!$A635)*('Fixed assets'!$U$2:$U$1000=Costs!$A635)*('Fixed assets'!$R$2:$R$1000))","v":0},{"$f":"SUMPRODUCT(('Fixed assets'!$R$2:$R$1000)*('Fixed assets'!$P$2:$P$1000<$A635)*('Fixed assets'!$Q$2:$Q$1000=Costs!AG$617))-SUMPRODUCT(('Fixed assets'!$S$2:$S$1000)*('Fixed assets'!$P$2:$P$1000<Costs!$A635)*('Fixed assets'!$Q$2:$Q$1000=Costs!AG$617))-SUMPRODUCT(('Fixed assets'!$Q$2:$Q$1000=Costs!AG$617)*('Fixed assets'!$U$2:$U$1000=Costs!$A635)*('Fixed assets'!$S$2:$S$1000))+SUMPRODUCT(('Fixed assets'!$Q$2:$Q$1000=Costs!AG$617)*('Fixed assets'!$P$2:$P$1000=Costs!$A635)*('Fixed assets'!$U$2:$U$1000=Costs!$A635)*('Fixed assets'!$R$2:$R$1000))","v":0},{"$f":"SUMPRODUCT(('Fixed assets'!$R$2:$R$1000)*('Fixed assets'!$P$2:$P$1000<$A635)*('Fixed assets'!$Q$2:$Q$1000=Costs!AH$617))-SUMPRODUCT(('Fixed assets'!$S$2:$S$1000)*('Fixed assets'!$P$2:$P$1000<Costs!$A635)*('Fixed assets'!$Q$2:$Q$1000=Costs!AH$617))-SUMPRODUCT(('Fixed assets'!$Q$2:$Q$1000=Costs!AH$617)*('Fixed assets'!$U$2:$U$1000=Costs!$A635)*('Fixed assets'!$S$2:$S$1000))+SUMPRODUCT(('Fixed assets'!$Q$2:$Q$1000=Costs!AH$617)*('Fixed assets'!$P$2:$P$1000=Costs!$A635)*('Fixed assets'!$U$2:$U$1000=Costs!$A635)*('Fixed assets'!$R$2:$R$1000))","v":0},{"$f":"SUMPRODUCT(('Fixed assets'!$R$2:$R$1000)*('Fixed assets'!$P$2:$P$1000<$A635)*('Fixed assets'!$Q$2:$Q$1000=Costs!AI$617))-SUMPRODUCT(('Fixed assets'!$S$2:$S$1000)*('Fixed assets'!$P$2:$P$1000<Costs!$A635)*('Fixed assets'!$Q$2:$Q$1000=Costs!AI$617))-SUMPRODUCT(('Fixed assets'!$Q$2:$Q$1000=Costs!AI$617)*('Fixed assets'!$U$2:$U$1000=Costs!$A635)*('Fixed assets'!$S$2:$S$1000))+SUMPRODUCT(('Fixed assets'!$Q$2:$Q$1000=Costs!AI$617)*('Fixed assets'!$P$2:$P$1000=Costs!$A635)*('Fixed assets'!$U$2:$U$1000=Costs!$A635)*('Fixed assets'!$R$2:$R$1000))","v":0},{"$f":"SUMPRODUCT(('Fixed assets'!$R$2:$R$1000)*('Fixed assets'!$P$2:$P$1000<$A635)*('Fixed assets'!$Q$2:$Q$1000=Costs!AJ$617))-SUMPRODUCT(('Fixed assets'!$S$2:$S$1000)*('Fixed assets'!$P$2:$P$1000<Costs!$A635)*('Fixed assets'!$Q$2:$Q$1000=Costs!AJ$617))-SUMPRODUCT(('Fixed assets'!$Q$2:$Q$1000=Costs!AJ$617)*('Fixed assets'!$U$2:$U$1000=Costs!$A635)*('Fixed assets'!$S$2:$S$1000))+SUMPRODUCT(('Fixed assets'!$Q$2:$Q$1000=Costs!AJ$617)*('Fixed assets'!$P$2:$P$1000=Costs!$A635)*('Fixed assets'!$U$2:$U$1000=Costs!$A635)*('Fixed assets'!$R$2:$R$1000))","v":0},{"$f":"SUMPRODUCT(('Fixed assets'!$R$2:$R$1000)*('Fixed assets'!$P$2:$P$1000<$A635)*('Fixed assets'!$Q$2:$Q$1000=Costs!AK$617))-SUMPRODUCT(('Fixed assets'!$S$2:$S$1000)*('Fixed assets'!$P$2:$P$1000<Costs!$A635)*('Fixed assets'!$Q$2:$Q$1000=Costs!AK$617))-SUMPRODUCT(('Fixed assets'!$Q$2:$Q$1000=Costs!AK$617)*('Fixed assets'!$U$2:$U$1000=Costs!$A635)*('Fixed assets'!$S$2:$S$1000))+SUMPRODUCT(('Fixed assets'!$Q$2:$Q$1000=Costs!AK$617)*('Fixed assets'!$P$2:$P$1000=Costs!$A635)*('Fixed assets'!$U$2:$U$1000=Costs!$A635)*('Fixed assets'!$R$2:$R$1000))","v":0},{"$f":"SUMPRODUCT(('Fixed assets'!$R$2:$R$1000)*('Fixed assets'!$P$2:$P$1000<$A635)*('Fixed assets'!$Q$2:$Q$1000=Costs!AL$617))-SUMPRODUCT(('Fixed assets'!$S$2:$S$1000)*('Fixed assets'!$P$2:$P$1000<Costs!$A635)*('Fixed assets'!$Q$2:$Q$1000=Costs!AL$617))-SUMPRODUCT(('Fixed assets'!$Q$2:$Q$1000=Costs!AL$617)*('Fixed assets'!$U$2:$U$1000=Costs!$A635)*('Fixed assets'!$S$2:$S$1000))+SUMPRODUCT(('Fixed assets'!$Q$2:$Q$1000=Costs!AL$617)*('Fixed assets'!$P$2:$P$1000=Costs!$A635)*('Fixed assets'!$U$2:$U$1000=Costs!$A635)*('Fixed assets'!$R$2:$R$1000))","v":0},{"$f":"SUMPRODUCT(('Fixed assets'!$R$2:$R$1000)*('Fixed assets'!$P$2:$P$1000<$A635)*('Fixed assets'!$Q$2:$Q$1000=Costs!AM$617))-SUMPRODUCT(('Fixed assets'!$S$2:$S$1000)*('Fixed assets'!$P$2:$P$1000<Costs!$A635)*('Fixed assets'!$Q$2:$Q$1000=Costs!AM$617))-SUMPRODUCT(('Fixed assets'!$Q$2:$Q$1000=Costs!AM$617)*('Fixed assets'!$U$2:$U$1000=Costs!$A635)*('Fixed assets'!$S$2:$S$1000))+SUMPRODUCT(('Fixed assets'!$Q$2:$Q$1000=Costs!AM$617)*('Fixed assets'!$P$2:$P$1000=Costs!$A635)*('Fixed assets'!$U$2:$U$1000=Costs!$A635)*('Fixed assets'!$R$2:$R$1000))","v":0},{"$f":"SUMPRODUCT(('Fixed assets'!$R$2:$R$1000)*('Fixed assets'!$P$2:$P$1000<$A635)*('Fixed assets'!$Q$2:$Q$1000=Costs!AN$617))-SUMPRODUCT(('Fixed assets'!$S$2:$S$1000)*('Fixed assets'!$P$2:$P$1000<Costs!$A635)*('Fixed assets'!$Q$2:$Q$1000=Costs!AN$617))-SUMPRODUCT(('Fixed assets'!$Q$2:$Q$1000=Costs!AN$617)*('Fixed assets'!$U$2:$U$1000=Costs!$A635)*('Fixed assets'!$S$2:$S$1000))+SUMPRODUCT(('Fixed assets'!$Q$2:$Q$1000=Costs!AN$617)*('Fixed assets'!$P$2:$P$1000=Costs!$A635)*('Fixed assets'!$U$2:$U$1000=Costs!$A635)*('Fixed assets'!$R$2:$R$1000))","v":0},{"$f":"SUMPRODUCT(('Fixed assets'!$R$2:$R$1000)*('Fixed assets'!$P$2:$P$1000<$A635)*('Fixed assets'!$Q$2:$Q$1000=Costs!AO$617))-SUMPRODUCT(('Fixed assets'!$S$2:$S$1000)*('Fixed assets'!$P$2:$P$1000<Costs!$A635)*('Fixed assets'!$Q$2:$Q$1000=Costs!AO$617))-SUMPRODUCT(('Fixed assets'!$Q$2:$Q$1000=Costs!AO$617)*('Fixed assets'!$U$2:$U$1000=Costs!$A635)*('Fixed assets'!$S$2:$S$1000))+SUMPRODUCT(('Fixed assets'!$Q$2:$Q$1000=Costs!AO$617)*('Fixed assets'!$P$2:$P$1000=Costs!$A635)*('Fixed assets'!$U$2:$U$1000=Costs!$A635)*('Fixed assets'!$R$2:$R$1000))","v":0},{"$f":"SUMPRODUCT(('Fixed assets'!$R$2:$R$1000)*('Fixed assets'!$P$2:$P$1000<$A635)*('Fixed assets'!$Q$2:$Q$1000=Costs!AP$617))-SUMPRODUCT(('Fixed assets'!$S$2:$S$1000)*('Fixed assets'!$P$2:$P$1000<Costs!$A635)*('Fixed assets'!$Q$2:$Q$1000=Costs!AP$617))-SUMPRODUCT(('Fixed assets'!$Q$2:$Q$1000=Costs!AP$617)*('Fixed assets'!$U$2:$U$1000=Costs!$A635)*('Fixed assets'!$S$2:$S$1000))+SUMPRODUCT(('Fixed assets'!$Q$2:$Q$1000=Costs!AP$617)*('Fixed assets'!$P$2:$P$1000=Costs!$A635)*('Fixed assets'!$U$2:$U$1000=Costs!$A635)*('Fixed assets'!$R$2:$R$1000))","v":0},{"$f":"SUMPRODUCT(('Fixed assets'!$R$2:$R$1000)*('Fixed assets'!$P$2:$P$1000<$A635)*('Fixed assets'!$Q$2:$Q$1000=Costs!AQ$617))-SUMPRODUCT(('Fixed assets'!$S$2:$S$1000)*('Fixed assets'!$P$2:$P$1000<Costs!$A635)*('Fixed assets'!$Q$2:$Q$1000=Costs!AQ$617))-SUMPRODUCT(('Fixed assets'!$Q$2:$Q$1000=Costs!AQ$617)*('Fixed assets'!$U$2:$U$1000=Costs!$A635)*('Fixed assets'!$S$2:$S$1000))+SUMPRODUCT(('Fixed assets'!$Q$2:$Q$1000=Costs!AQ$617)*('Fixed assets'!$P$2:$P$1000=Costs!$A635)*('Fixed assets'!$U$2:$U$1000=Costs!$A635)*('Fixed assets'!$R$2:$R$1000))","v":0}]
[2033,0,{"$f":"SUMPRODUCT(('Fixed assets'!$R$2:$R$1000)*('Fixed assets'!$P$2:$P$1000<$A636)*('Fixed assets'!$Q$2:$Q$1000=Costs!C$617))-SUMPRODUCT(('Fixed assets'!$S$2:$S$1000)*('Fixed assets'!$P$2:$P$1000<Costs!$A636)*('Fixed assets'!$Q$2:$Q$1000=Costs!C$617))-SUMPRODUCT(('Fixed assets'!$Q$2:$Q$1000=Costs!C$617)*('Fixed assets'!$U$2:$U$1000=Costs!$A636)*('Fixed assets'!$S$2:$S$1000))+SUMPRODUCT(('Fixed assets'!$Q$2:$Q$1000=Costs!C$617)*('Fixed assets'!$P$2:$P$1000=Costs!$A636)*('Fixed assets'!$U$2:$U$1000=Costs!$A636)*('Fixed assets'!$R$2:$R$1000))","v":0},{"$f":"SUMPRODUCT(('Fixed assets'!$R$2:$R$1000)*('Fixed assets'!$P$2:$P$1000<$A636)*('Fixed assets'!$Q$2:$Q$1000=Costs!D$617))-SUMPRODUCT(('Fixed assets'!$S$2:$S$1000)*('Fixed assets'!$P$2:$P$1000<Costs!$A636)*('Fixed assets'!$Q$2:$Q$1000=Costs!D$617))-SUMPRODUCT(('Fixed assets'!$Q$2:$Q$1000=Costs!D$617)*('Fixed assets'!$U$2:$U$1000=Costs!$A636)*('Fixed assets'!$S$2:$S$1000))+SUMPRODUCT(('Fixed assets'!$Q$2:$Q$1000=Costs!D$617)*('Fixed assets'!$P$2:$P$1000=Costs!$A636)*('Fixed assets'!$U$2:$U$1000=Costs!$A636)*('Fixed assets'!$R$2:$R$1000))","v":0},{"$f":"SUMPRODUCT(('Fixed assets'!$R$2:$R$1000)*('Fixed assets'!$P$2:$P$1000<$A636)*('Fixed assets'!$Q$2:$Q$1000=Costs!E$617))-SUMPRODUCT(('Fixed assets'!$S$2:$S$1000)*('Fixed assets'!$P$2:$P$1000<Costs!$A636)*('Fixed assets'!$Q$2:$Q$1000=Costs!E$617))-SUMPRODUCT(('Fixed assets'!$Q$2:$Q$1000=Costs!E$617)*('Fixed assets'!$U$2:$U$1000=Costs!$A636)*('Fixed assets'!$S$2:$S$1000))+SUMPRODUCT(('Fixed assets'!$Q$2:$Q$1000=Costs!E$617)*('Fixed assets'!$P$2:$P$1000=Costs!$A636)*('Fixed assets'!$U$2:$U$1000=Costs!$A636)*('Fixed assets'!$R$2:$R$1000))","v":0},{"$f":"SUMPRODUCT(('Fixed assets'!$R$2:$R$1000)*('Fixed assets'!$P$2:$P$1000<$A636)*('Fixed assets'!$Q$2:$Q$1000=Costs!F$617))-SUMPRODUCT(('Fixed assets'!$S$2:$S$1000)*('Fixed assets'!$P$2:$P$1000<Costs!$A636)*('Fixed assets'!$Q$2:$Q$1000=Costs!F$617))-SUMPRODUCT(('Fixed assets'!$Q$2:$Q$1000=Costs!F$617)*('Fixed assets'!$U$2:$U$1000=Costs!$A636)*('Fixed assets'!$S$2:$S$1000))+SUMPRODUCT(('Fixed assets'!$Q$2:$Q$1000=Costs!F$617)*('Fixed assets'!$P$2:$P$1000=Costs!$A636)*('Fixed assets'!$U$2:$U$1000=Costs!$A636)*('Fixed assets'!$R$2:$R$1000))","v":0},{"$f":"SUMPRODUCT(('Fixed assets'!$R$2:$R$1000)*('Fixed assets'!$P$2:$P$1000<$A636)*('Fixed assets'!$Q$2:$Q$1000=Costs!G$617))-SUMPRODUCT(('Fixed assets'!$S$2:$S$1000)*('Fixed assets'!$P$2:$P$1000<Costs!$A636)*('Fixed assets'!$Q$2:$Q$1000=Costs!G$617))-SUMPRODUCT(('Fixed assets'!$Q$2:$Q$1000=Costs!G$617)*('Fixed assets'!$U$2:$U$1000=Costs!$A636)*('Fixed assets'!$S$2:$S$1000))+SUMPRODUCT(('Fixed assets'!$Q$2:$Q$1000=Costs!G$617)*('Fixed assets'!$P$2:$P$1000=Costs!$A636)*('Fixed assets'!$U$2:$U$1000=Costs!$A636)*('Fixed assets'!$R$2:$R$1000))","v":0},{"$f":"SUMPRODUCT(('Fixed assets'!$R$2:$R$1000)*('Fixed assets'!$P$2:$P$1000<$A636)*('Fixed assets'!$Q$2:$Q$1000=Costs!H$617))-SUMPRODUCT(('Fixed assets'!$S$2:$S$1000)*('Fixed assets'!$P$2:$P$1000<Costs!$A636)*('Fixed assets'!$Q$2:$Q$1000=Costs!H$617))-SUMPRODUCT(('Fixed assets'!$Q$2:$Q$1000=Costs!H$617)*('Fixed assets'!$U$2:$U$1000=Costs!$A636)*('Fixed assets'!$S$2:$S$1000))+SUMPRODUCT(('Fixed assets'!$Q$2:$Q$1000=Costs!H$617)*('Fixed assets'!$P$2:$P$1000=Costs!$A636)*('Fixed assets'!$U$2:$U$1000=Costs!$A636)*('Fixed assets'!$R$2:$R$1000))","v":0},{"$f":"SUMPRODUCT(('Fixed assets'!$R$2:$R$1000)*('Fixed assets'!$P$2:$P$1000<$A636)*('Fixed assets'!$Q$2:$Q$1000=Costs!I$617))-SUMPRODUCT(('Fixed assets'!$S$2:$S$1000)*('Fixed assets'!$P$2:$P$1000<Costs!$A636)*('Fixed assets'!$Q$2:$Q$1000=Costs!I$617))-SUMPRODUCT(('Fixed assets'!$Q$2:$Q$1000=Costs!I$617)*('Fixed assets'!$U$2:$U$1000=Costs!$A636)*('Fixed assets'!$S$2:$S$1000))+SUMPRODUCT(('Fixed assets'!$Q$2:$Q$1000=Costs!I$617)*('Fixed assets'!$P$2:$P$1000=Costs!$A636)*('Fixed assets'!$U$2:$U$1000=Costs!$A636)*('Fixed assets'!$R$2:$R$1000))","v":0},{"$f":"SUMPRODUCT(('Fixed assets'!$R$2:$R$1000)*('Fixed assets'!$P$2:$P$1000<$A636)*('Fixed assets'!$Q$2:$Q$1000=Costs!J$617))-SUMPRODUCT(('Fixed assets'!$S$2:$S$1000)*('Fixed assets'!$P$2:$P$1000<Costs!$A636)*('Fixed assets'!$Q$2:$Q$1000=Costs!J$617))-SUMPRODUCT(('Fixed assets'!$Q$2:$Q$1000=Costs!J$617)*('Fixed assets'!$U$2:$U$1000=Costs!$A636)*('Fixed assets'!$S$2:$S$1000))+SUMPRODUCT(('Fixed assets'!$Q$2:$Q$1000=Costs!J$617)*('Fixed assets'!$P$2:$P$1000=Costs!$A636)*('Fixed assets'!$U$2:$U$1000=Costs!$A636)*('Fixed assets'!$R$2:$R$1000))","v":0},{"$f":"SUMPRODUCT(('Fixed assets'!$R$2:$R$1000)*('Fixed assets'!$P$2:$P$1000<$A636)*('Fixed assets'!$Q$2:$Q$1000=Costs!K$617))-SUMPRODUCT(('Fixed assets'!$S$2:$S$1000)*('Fixed assets'!$P$2:$P$1000<Costs!$A636)*('Fixed assets'!$Q$2:$Q$1000=Costs!K$617))-SUMPRODUCT(('Fixed assets'!$Q$2:$Q$1000=Costs!K$617)*('Fixed assets'!$U$2:$U$1000=Costs!$A636)*('Fixed assets'!$S$2:$S$1000))+SUMPRODUCT(('Fixed assets'!$Q$2:$Q$1000=Costs!K$617)*('Fixed assets'!$P$2:$P$1000=Costs!$A636)*('Fixed assets'!$U$2:$U$1000=Costs!$A636)*('Fixed assets'!$R$2:$R$1000))","v":0},{"$f":"SUMPRODUCT(('Fixed assets'!$R$2:$R$1000)*('Fixed assets'!$P$2:$P$1000<$A636)*('Fixed assets'!$Q$2:$Q$1000=Costs!L$617))-SUMPRODUCT(('Fixed assets'!$S$2:$S$1000)*('Fixed assets'!$P$2:$P$1000<Costs!$A636)*('Fixed assets'!$Q$2:$Q$1000=Costs!L$617))-SUMPRODUCT(('Fixed assets'!$Q$2:$Q$1000=Costs!L$617)*('Fixed assets'!$U$2:$U$1000=Costs!$A636)*('Fixed assets'!$S$2:$S$1000))+SUMPRODUCT(('Fixed assets'!$Q$2:$Q$1000=Costs!L$617)*('Fixed assets'!$P$2:$P$1000=Costs!$A636)*('Fixed assets'!$U$2:$U$1000=Costs!$A636)*('Fixed assets'!$R$2:$R$1000))","v":0},{"$f":"SUMPRODUCT(('Fixed assets'!$R$2:$R$1000)*('Fixed assets'!$P$2:$P$1000<$A636)*('Fixed assets'!$Q$2:$Q$1000=Costs!M$617))-SUMPRODUCT(('Fixed assets'!$S$2:$S$1000)*('Fixed assets'!$P$2:$P$1000<Costs!$A636)*('Fixed assets'!$Q$2:$Q$1000=Costs!M$617))-SUMPRODUCT(('Fixed assets'!$Q$2:$Q$1000=Costs!M$617)*('Fixed assets'!$U$2:$U$1000=Costs!$A636)*('Fixed assets'!$S$2:$S$1000))+SUMPRODUCT(('Fixed assets'!$Q$2:$Q$1000=Costs!M$617)*('Fixed assets'!$P$2:$P$1000=Costs!$A636)*('Fixed assets'!$U$2:$U$1000=Costs!$A636)*('Fixed assets'!$R$2:$R$1000))","v":0},{"$f":"SUMPRODUCT(('Fixed assets'!$R$2:$R$1000)*('Fixed assets'!$P$2:$P$1000<$A636)*('Fixed assets'!$Q$2:$Q$1000=Costs!N$617))-SUMPRODUCT(('Fixed assets'!$S$2:$S$1000)*('Fixed assets'!$P$2:$P$1000<Costs!$A636)*('Fixed assets'!$Q$2:$Q$1000=Costs!N$617))-SUMPRODUCT(('Fixed assets'!$Q$2:$Q$1000=Costs!N$617)*('Fixed assets'!$U$2:$U$1000=Costs!$A636)*('Fixed assets'!$S$2:$S$1000))+SUMPRODUCT(('Fixed assets'!$Q$2:$Q$1000=Costs!N$617)*('Fixed assets'!$P$2:$P$1000=Costs!$A636)*('Fixed assets'!$U$2:$U$1000=Costs!$A636)*('Fixed assets'!$R$2:$R$1000))","v":0},{"$f":"SUMPRODUCT(('Fixed assets'!$R$2:$R$1000)*('Fixed assets'!$P$2:$P$1000<$A636)*('Fixed assets'!$Q$2:$Q$1000=Costs!O$617))-SUMPRODUCT(('Fixed assets'!$S$2:$S$1000)*('Fixed assets'!$P$2:$P$1000<Costs!$A636)*('Fixed assets'!$Q$2:$Q$1000=Costs!O$617))-SUMPRODUCT(('Fixed assets'!$Q$2:$Q$1000=Costs!O$617)*('Fixed assets'!$U$2:$U$1000=Costs!$A636)*('Fixed assets'!$S$2:$S$1000))+SUMPRODUCT(('Fixed assets'!$Q$2:$Q$1000=Costs!O$617)*('Fixed assets'!$P$2:$P$1000=Costs!$A636)*('Fixed assets'!$U$2:$U$1000=Costs!$A636)*('Fixed assets'!$R$2:$R$1000))","v":0},{"$f":"SUMPRODUCT(('Fixed assets'!$R$2:$R$1000)*('Fixed assets'!$P$2:$P$1000<$A636)*('Fixed assets'!$Q$2:$Q$1000=Costs!P$617))-SUMPRODUCT(('Fixed assets'!$S$2:$S$1000)*('Fixed assets'!$P$2:$P$1000<Costs!$A636)*('Fixed assets'!$Q$2:$Q$1000=Costs!P$617))-SUMPRODUCT(('Fixed assets'!$Q$2:$Q$1000=Costs!P$617)*('Fixed assets'!$U$2:$U$1000=Costs!$A636)*('Fixed assets'!$S$2:$S$1000))+SUMPRODUCT(('Fixed assets'!$Q$2:$Q$1000=Costs!P$617)*('Fixed assets'!$P$2:$P$1000=Costs!$A636)*('Fixed assets'!$U$2:$U$1000=Costs!$A636)*('Fixed assets'!$R$2:$R$1000))","v":0},{"$f":"SUMPRODUCT(('Fixed assets'!$R$2:$R$1000)*('Fixed assets'!$P$2:$P$1000<$A636)*('Fixed assets'!$Q$2:$Q$1000=Costs!Q$617))-SUMPRODUCT(('Fixed assets'!$S$2:$S$1000)*('Fixed assets'!$P$2:$P$1000<Costs!$A636)*('Fixed assets'!$Q$2:$Q$1000=Costs!Q$617))-SUMPRODUCT(('Fixed assets'!$Q$2:$Q$1000=Costs!Q$617)*('Fixed assets'!$U$2:$U$1000=Costs!$A636)*('Fixed assets'!$S$2:$S$1000))+SUMPRODUCT(('Fixed assets'!$Q$2:$Q$1000=Costs!Q$617)*('Fixed assets'!$P$2:$P$1000=Costs!$A636)*('Fixed assets'!$U$2:$U$1000=Costs!$A636)*('Fixed assets'!$R$2:$R$1000))","v":0},{"$f":"SUMPRODUCT(('Fixed assets'!$R$2:$R$1000)*('Fixed assets'!$P$2:$P$1000<$A636)*('Fixed assets'!$Q$2:$Q$1000=Costs!R$617))-SUMPRODUCT(('Fixed assets'!$S$2:$S$1000)*('Fixed assets'!$P$2:$P$1000<Costs!$A636)*('Fixed assets'!$Q$2:$Q$1000=Costs!R$617))-SUMPRODUCT(('Fixed assets'!$Q$2:$Q$1000=Costs!R$617)*('Fixed assets'!$U$2:$U$1000=Costs!$A636)*('Fixed assets'!$S$2:$S$1000))+SUMPRODUCT(('Fixed assets'!$Q$2:$Q$1000=Costs!R$617)*('Fixed assets'!$P$2:$P$1000=Costs!$A636)*('Fixed assets'!$U$2:$U$1000=Costs!$A636)*('Fixed assets'!$R$2:$R$1000))","v":0},{"$f":"SUMPRODUCT(('Fixed assets'!$R$2:$R$1000)*('Fixed assets'!$P$2:$P$1000<$A636)*('Fixed assets'!$Q$2:$Q$1000=Costs!S$617))-SUMPRODUCT(('Fixed assets'!$S$2:$S$1000)*('Fixed assets'!$P$2:$P$1000<Costs!$A636)*('Fixed assets'!$Q$2:$Q$1000=Costs!S$617))-SUMPRODUCT(('Fixed assets'!$Q$2:$Q$1000=Costs!S$617)*('Fixed assets'!$U$2:$U$1000=Costs!$A636)*('Fixed assets'!$S$2:$S$1000))+SUMPRODUCT(('Fixed assets'!$Q$2:$Q$1000=Costs!S$617)*('Fixed assets'!$P$2:$P$1000=Costs!$A636)*('Fixed assets'!$U$2:$U$1000=Costs!$A636)*('Fixed assets'!$R$2:$R$1000))","v":0},{"$f":"SUMPRODUCT(('Fixed assets'!$R$2:$R$1000)*('Fixed assets'!$P$2:$P$1000<$A636)*('Fixed assets'!$Q$2:$Q$1000=Costs!T$617))-SUMPRODUCT(('Fixed assets'!$S$2:$S$1000)*('Fixed assets'!$P$2:$P$1000<Costs!$A636)*('Fixed assets'!$Q$2:$Q$1000=Costs!T$617))-SUMPRODUCT(('Fixed assets'!$Q$2:$Q$1000=Costs!T$617)*('Fixed assets'!$U$2:$U$1000=Costs!$A636)*('Fixed assets'!$S$2:$S$1000))+SUMPRODUCT(('Fixed assets'!$Q$2:$Q$1000=Costs!T$617)*('Fixed assets'!$P$2:$P$1000=Costs!$A636)*('Fixed assets'!$U$2:$U$1000=Costs!$A636)*('Fixed assets'!$R$2:$R$1000))","v":0},{"$f":"SUMPRODUCT(('Fixed assets'!$R$2:$R$1000)*('Fixed assets'!$P$2:$P$1000<$A636)*('Fixed assets'!$Q$2:$Q$1000=Costs!U$617))-SUMPRODUCT(('Fixed assets'!$S$2:$S$1000)*('Fixed assets'!$P$2:$P$1000<Costs!$A636)*('Fixed assets'!$Q$2:$Q$1000=Costs!U$617))-SUMPRODUCT(('Fixed assets'!$Q$2:$Q$1000=Costs!U$617)*('Fixed assets'!$U$2:$U$1000=Costs!$A636)*('Fixed assets'!$S$2:$S$1000))+SUMPRODUCT(('Fixed assets'!$Q$2:$Q$1000=Costs!U$617)*('Fixed assets'!$P$2:$P$1000=Costs!$A636)*('Fixed assets'!$U$2:$U$1000=Costs!$A636)*('Fixed assets'!$R$2:$R$1000))","v":0},{"$f":"SUMPRODUCT(('Fixed assets'!$R$2:$R$1000)*('Fixed assets'!$P$2:$P$1000<$A636)*('Fixed assets'!$Q$2:$Q$1000=Costs!V$617))-SUMPRODUCT(('Fixed assets'!$S$2:$S$1000)*('Fixed assets'!$P$2:$P$1000<Costs!$A636)*('Fixed assets'!$Q$2:$Q$1000=Costs!V$617))-SUMPRODUCT(('Fixed assets'!$Q$2:$Q$1000=Costs!V$617)*('Fixed assets'!$U$2:$U$1000=Costs!$A636)*('Fixed assets'!$S$2:$S$1000))+SUMPRODUCT(('Fixed assets'!$Q$2:$Q$1000=Costs!V$617)*('Fixed assets'!$P$2:$P$1000=Costs!$A636)*('Fixed assets'!$U$2:$U$1000=Costs!$A636)*('Fixed assets'!$R$2:$R$1000))","v":0},{"$f":"SUMPRODUCT(('Fixed assets'!$R$2:$R$1000)*('Fixed assets'!$P$2:$P$1000<$A636)*('Fixed assets'!$Q$2:$Q$1000=Costs!W$617))-SUMPRODUCT(('Fixed assets'!$S$2:$S$1000)*('Fixed assets'!$P$2:$P$1000<Costs!$A636)*('Fixed assets'!$Q$2:$Q$1000=Costs!W$617))-SUMPRODUCT(('Fixed assets'!$Q$2:$Q$1000=Costs!W$617)*('Fixed assets'!$U$2:$U$1000=Costs!$A636)*('Fixed assets'!$S$2:$S$1000))+SUMPRODUCT(('Fixed assets'!$Q$2:$Q$1000=Costs!W$617)*('Fixed assets'!$P$2:$P$1000=Costs!$A636)*('Fixed assets'!$U$2:$U$1000=Costs!$A636)*('Fixed assets'!$R$2:$R$1000))","v":0},{"$f":"SUMPRODUCT(('Fixed assets'!$R$2:$R$1000)*('Fixed assets'!$P$2:$P$1000<$A636)*('Fixed assets'!$Q$2:$Q$1000=Costs!X$617))-SUMPRODUCT(('Fixed assets'!$S$2:$S$1000)*('Fixed assets'!$P$2:$P$1000<Costs!$A636)*('Fixed assets'!$Q$2:$Q$1000=Costs!X$617))-SUMPRODUCT(('Fixed assets'!$Q$2:$Q$1000=Costs!X$617)*('Fixed assets'!$U$2:$U$1000=Costs!$A636)*('Fixed assets'!$S$2:$S$1000))+SUMPRODUCT(('Fixed assets'!$Q$2:$Q$1000=Costs!X$617)*('Fixed assets'!$P$2:$P$1000=Costs!$A636)*('Fixed assets'!$U$2:$U$1000=Costs!$A636)*('Fixed assets'!$R$2:$R$1000))","v":0},{"$f":"SUMPRODUCT(('Fixed assets'!$R$2:$R$1000)*('Fixed assets'!$P$2:$P$1000<$A636)*('Fixed assets'!$Q$2:$Q$1000=Costs!Y$617))-SUMPRODUCT(('Fixed assets'!$S$2:$S$1000)*('Fixed assets'!$P$2:$P$1000<Costs!$A636)*('Fixed assets'!$Q$2:$Q$1000=Costs!Y$617))-SUMPRODUCT(('Fixed assets'!$Q$2:$Q$1000=Costs!Y$617)*('Fixed assets'!$U$2:$U$1000=Costs!$A636)*('Fixed assets'!$S$2:$S$1000))+SUMPRODUCT(('Fixed assets'!$Q$2:$Q$1000=Costs!Y$617)*('Fixed assets'!$P$2:$P$1000=Costs!$A636)*('Fixed assets'!$U$2:$U$1000=Costs!$A636)*('Fixed assets'!$R$2:$R$1000))","v":0},{"$f":"SUMPRODUCT(('Fixed assets'!$R$2:$R$1000)*('Fixed assets'!$P$2:$P$1000<$A636)*('Fixed assets'!$Q$2:$Q$1000=Costs!Z$617))-SUMPRODUCT(('Fixed assets'!$S$2:$S$1000)*('Fixed assets'!$P$2:$P$1000<Costs!$A636)*('Fixed assets'!$Q$2:$Q$1000=Costs!Z$617))-SUMPRODUCT(('Fixed assets'!$Q$2:$Q$1000=Costs!Z$617)*('Fixed assets'!$U$2:$U$1000=Costs!$A636)*('Fixed assets'!$S$2:$S$1000))+SUMPRODUCT(('Fixed assets'!$Q$2:$Q$1000=Costs!Z$617)*('Fixed assets'!$P$2:$P$1000=Costs!$A636)*('Fixed assets'!$U$2:$U$1000=Costs!$A636)*('Fixed assets'!$R$2:$R$1000))","v":0},{"$f":"SUMPRODUCT(('Fixed assets'!$R$2:$R$1000)*('Fixed assets'!$P$2:$P$1000<$A636)*('Fixed assets'!$Q$2:$Q$1000=Costs!AA$617))-SUMPRODUCT(('Fixed assets'!$S$2:$S$1000)*('Fixed assets'!$P$2:$P$1000<Costs!$A636)*('Fixed assets'!$Q$2:$Q$1000=Costs!AA$617))-SUMPRODUCT(('Fixed assets'!$Q$2:$Q$1000=Costs!AA$617)*('Fixed assets'!$U$2:$U$1000=Costs!$A636)*('Fixed assets'!$S$2:$S$1000))+SUMPRODUCT(('Fixed assets'!$Q$2:$Q$1000=Costs!AA$617)*('Fixed assets'!$P$2:$P$1000=Costs!$A636)*('Fixed assets'!$U$2:$U$1000=Costs!$A636)*('Fixed assets'!$R$2:$R$1000))","v":0},{"$f":"SUMPRODUCT(('Fixed assets'!$R$2:$R$1000)*('Fixed assets'!$P$2:$P$1000<$A636)*('Fixed assets'!$Q$2:$Q$1000=Costs!AB$617))-SUMPRODUCT(('Fixed assets'!$S$2:$S$1000)*('Fixed assets'!$P$2:$P$1000<Costs!$A636)*('Fixed assets'!$Q$2:$Q$1000=Costs!AB$617))-SUMPRODUCT(('Fixed assets'!$Q$2:$Q$1000=Costs!AB$617)*('Fixed assets'!$U$2:$U$1000=Costs!$A636)*('Fixed assets'!$S$2:$S$1000))+SUMPRODUCT(('Fixed assets'!$Q$2:$Q$1000=Costs!AB$617)*('Fixed assets'!$P$2:$P$1000=Costs!$A636)*('Fixed assets'!$U$2:$U$1000=Costs!$A636)*('Fixed assets'!$R$2:$R$1000))","v":0},{"$f":"SUMPRODUCT(('Fixed assets'!$R$2:$R$1000)*('Fixed assets'!$P$2:$P$1000<$A636)*('Fixed assets'!$Q$2:$Q$1000=Costs!AC$617))-SUMPRODUCT(('Fixed assets'!$S$2:$S$1000)*('Fixed assets'!$P$2:$P$1000<Costs!$A636)*('Fixed assets'!$Q$2:$Q$1000=Costs!AC$617))-SUMPRODUCT(('Fixed assets'!$Q$2:$Q$1000=Costs!AC$617)*('Fixed assets'!$U$2:$U$1000=Costs!$A636)*('Fixed assets'!$S$2:$S$1000))+SUMPRODUCT(('Fixed assets'!$Q$2:$Q$1000=Costs!AC$617)*('Fixed assets'!$P$2:$P$1000=Costs!$A636)*('Fixed assets'!$U$2:$U$1000=Costs!$A636)*('Fixed assets'!$R$2:$R$1000))","v":0},{"$f":"SUMPRODUCT(('Fixed assets'!$R$2:$R$1000)*('Fixed assets'!$P$2:$P$1000<$A636)*('Fixed assets'!$Q$2:$Q$1000=Costs!AD$617))-SUMPRODUCT(('Fixed assets'!$S$2:$S$1000)*('Fixed assets'!$P$2:$P$1000<Costs!$A636)*('Fixed assets'!$Q$2:$Q$1000=Costs!AD$617))-SUMPRODUCT(('Fixed assets'!$Q$2:$Q$1000=Costs!AD$617)*('Fixed assets'!$U$2:$U$1000=Costs!$A636)*('Fixed assets'!$S$2:$S$1000))+SUMPRODUCT(('Fixed assets'!$Q$2:$Q$1000=Costs!AD$617)*('Fixed assets'!$P$2:$P$1000=Costs!$A636)*('Fixed assets'!$U$2:$U$1000=Costs!$A636)*('Fixed assets'!$R$2:$R$1000))","v":0},{"$f":"SUMPRODUCT(('Fixed assets'!$R$2:$R$1000)*('Fixed assets'!$P$2:$P$1000<$A636)*('Fixed assets'!$Q$2:$Q$1000=Costs!AE$617))-SUMPRODUCT(('Fixed assets'!$S$2:$S$1000)*('Fixed assets'!$P$2:$P$1000<Costs!$A636)*('Fixed assets'!$Q$2:$Q$1000=Costs!AE$617))-SUMPRODUCT(('Fixed assets'!$Q$2:$Q$1000=Costs!AE$617)*('Fixed assets'!$U$2:$U$1000=Costs!$A636)*('Fixed assets'!$S$2:$S$1000))+SUMPRODUCT(('Fixed assets'!$Q$2:$Q$1000=Costs!AE$617)*('Fixed assets'!$P$2:$P$1000=Costs!$A636)*('Fixed assets'!$U$2:$U$1000=Costs!$A636)*('Fixed assets'!$R$2:$R$1000))","v":0},{"$f":"SUMPRODUCT(('Fixed assets'!$R$2:$R$1000)*('Fixed assets'!$P$2:$P$1000<$A636)*('Fixed assets'!$Q$2:$Q$1000=Costs!AF$617))-SUMPRODUCT(('Fixed assets'!$S$2:$S$1000)*('Fixed assets'!$P$2:$P$1000<Costs!$A636)*('Fixed assets'!$Q$2:$Q$1000=Costs!AF$617))-SUMPRODUCT(('Fixed assets'!$Q$2:$Q$1000=Costs!AF$617)*('Fixed assets'!$U$2:$U$1000=Costs!$A636)*('Fixed assets'!$S$2:$S$1000))+SUMPRODUCT(('Fixed assets'!$Q$2:$Q$1000=Costs!AF$617)*('Fixed assets'!$P$2:$P$1000=Costs!$A636)*('Fixed assets'!$U$2:$U$1000=Costs!$A636)*('Fixed assets'!$R$2:$R$1000))","v":0},{"$f":"SUMPRODUCT(('Fixed assets'!$R$2:$R$1000)*('Fixed assets'!$P$2:$P$1000<$A636)*('Fixed assets'!$Q$2:$Q$1000=Costs!AG$617))-SUMPRODUCT(('Fixed assets'!$S$2:$S$1000)*('Fixed assets'!$P$2:$P$1000<Costs!$A636)*('Fixed assets'!$Q$2:$Q$1000=Costs!AG$617))-SUMPRODUCT(('Fixed assets'!$Q$2:$Q$1000=Costs!AG$617)*('Fixed assets'!$U$2:$U$1000=Costs!$A636)*('Fixed assets'!$S$2:$S$1000))+SUMPRODUCT(('Fixed assets'!$Q$2:$Q$1000=Costs!AG$617)*('Fixed assets'!$P$2:$P$1000=Costs!$A636)*('Fixed assets'!$U$2:$U$1000=Costs!$A636)*('Fixed assets'!$R$2:$R$1000))","v":0},{"$f":"SUMPRODUCT(('Fixed assets'!$R$2:$R$1000)*('Fixed assets'!$P$2:$P$1000<$A636)*('Fixed assets'!$Q$2:$Q$1000=Costs!AH$617))-SUMPRODUCT(('Fixed assets'!$S$2:$S$1000)*('Fixed assets'!$P$2:$P$1000<Costs!$A636)*('Fixed assets'!$Q$2:$Q$1000=Costs!AH$617))-SUMPRODUCT(('Fixed assets'!$Q$2:$Q$1000=Costs!AH$617)*('Fixed assets'!$U$2:$U$1000=Costs!$A636)*('Fixed assets'!$S$2:$S$1000))+SUMPRODUCT(('Fixed assets'!$Q$2:$Q$1000=Costs!AH$617)*('Fixed assets'!$P$2:$P$1000=Costs!$A636)*('Fixed assets'!$U$2:$U$1000=Costs!$A636)*('Fixed assets'!$R$2:$R$1000))","v":0},{"$f":"SUMPRODUCT(('Fixed assets'!$R$2:$R$1000)*('Fixed assets'!$P$2:$P$1000<$A636)*('Fixed assets'!$Q$2:$Q$1000=Costs!AI$617))-SUMPRODUCT(('Fixed assets'!$S$2:$S$1000)*('Fixed assets'!$P$2:$P$1000<Costs!$A636)*('Fixed assets'!$Q$2:$Q$1000=Costs!AI$617))-SUMPRODUCT(('Fixed assets'!$Q$2:$Q$1000=Costs!AI$617)*('Fixed assets'!$U$2:$U$1000=Costs!$A636)*('Fixed assets'!$S$2:$S$1000))+SUMPRODUCT(('Fixed assets'!$Q$2:$Q$1000=Costs!AI$617)*('Fixed assets'!$P$2:$P$1000=Costs!$A636)*('Fixed assets'!$U$2:$U$1000=Costs!$A636)*('Fixed assets'!$R$2:$R$1000))","v":0},{"$f":"SUMPRODUCT(('Fixed assets'!$R$2:$R$1000)*('Fixed assets'!$P$2:$P$1000<$A636)*('Fixed assets'!$Q$2:$Q$1000=Costs!AJ$617))-SUMPRODUCT(('Fixed assets'!$S$2:$S$1000)*('Fixed assets'!$P$2:$P$1000<Costs!$A636)*('Fixed assets'!$Q$2:$Q$1000=Costs!AJ$617))-SUMPRODUCT(('Fixed assets'!$Q$2:$Q$1000=Costs!AJ$617)*('Fixed assets'!$U$2:$U$1000=Costs!$A636)*('Fixed assets'!$S$2:$S$1000))+SUMPRODUCT(('Fixed assets'!$Q$2:$Q$1000=Costs!AJ$617)*('Fixed assets'!$P$2:$P$1000=Costs!$A636)*('Fixed assets'!$U$2:$U$1000=Costs!$A636)*('Fixed assets'!$R$2:$R$1000))","v":0},{"$f":"SUMPRODUCT(('Fixed assets'!$R$2:$R$1000)*('Fixed assets'!$P$2:$P$1000<$A636)*('Fixed assets'!$Q$2:$Q$1000=Costs!AK$617))-SUMPRODUCT(('Fixed assets'!$S$2:$S$1000)*('Fixed assets'!$P$2:$P$1000<Costs!$A636)*('Fixed assets'!$Q$2:$Q$1000=Costs!AK$617))-SUMPRODUCT(('Fixed assets'!$Q$2:$Q$1000=Costs!AK$617)*('Fixed assets'!$U$2:$U$1000=Costs!$A636)*('Fixed assets'!$S$2:$S$1000))+SUMPRODUCT(('Fixed assets'!$Q$2:$Q$1000=Costs!AK$617)*('Fixed assets'!$P$2:$P$1000=Costs!$A636)*('Fixed assets'!$U$2:$U$1000=Costs!$A636)*('Fixed assets'!$R$2:$R$1000))","v":0},{"$f":"SUMPRODUCT(('Fixed assets'!$R$2:$R$1000)*('Fixed assets'!$P$2:$P$1000<$A636)*('Fixed assets'!$Q$2:$Q$1000=Costs!AL$617))-SUMPRODUCT(('Fixed assets'!$S$2:$S$1000)*('Fixed assets'!$P$2:$P$1000<Costs!$A636)*('Fixed assets'!$Q$2:$Q$1000=Costs!AL$617))-SUMPRODUCT(('Fixed assets'!$Q$2:$Q$1000=Costs!AL$617)*('Fixed assets'!$U$2:$U$1000=Costs!$A636)*('Fixed assets'!$S$2:$S$1000))+SUMPRODUCT(('Fixed assets'!$Q$2:$Q$1000=Costs!AL$617)*('Fixed assets'!$P$2:$P$1000=Costs!$A636)*('Fixed assets'!$U$2:$U$1000=Costs!$A636)*('Fixed assets'!$R$2:$R$1000))","v":0},{"$f":"SUMPRODUCT(('Fixed assets'!$R$2:$R$1000)*('Fixed assets'!$P$2:$P$1000<$A636)*('Fixed assets'!$Q$2:$Q$1000=Costs!AM$617))-SUMPRODUCT(('Fixed assets'!$S$2:$S$1000)*('Fixed assets'!$P$2:$P$1000<Costs!$A636)*('Fixed assets'!$Q$2:$Q$1000=Costs!AM$617))-SUMPRODUCT(('Fixed assets'!$Q$2:$Q$1000=Costs!AM$617)*('Fixed assets'!$U$2:$U$1000=Costs!$A636)*('Fixed assets'!$S$2:$S$1000))+SUMPRODUCT(('Fixed assets'!$Q$2:$Q$1000=Costs!AM$617)*('Fixed assets'!$P$2:$P$1000=Costs!$A636)*('Fixed assets'!$U$2:$U$1000=Costs!$A636)*('Fixed assets'!$R$2:$R$1000))","v":0},{"$f":"SUMPRODUCT(('Fixed assets'!$R$2:$R$1000)*('Fixed assets'!$P$2:$P$1000<$A636)*('Fixed assets'!$Q$2:$Q$1000=Costs!AN$617))-SUMPRODUCT(('Fixed assets'!$S$2:$S$1000)*('Fixed assets'!$P$2:$P$1000<Costs!$A636)*('Fixed assets'!$Q$2:$Q$1000=Costs!AN$617))-SUMPRODUCT(('Fixed assets'!$Q$2:$Q$1000=Costs!AN$617)*('Fixed assets'!$U$2:$U$1000=Costs!$A636)*('Fixed assets'!$S$2:$S$1000))+SUMPRODUCT(('Fixed assets'!$Q$2:$Q$1000=Costs!AN$617)*('Fixed assets'!$P$2:$P$1000=Costs!$A636)*('Fixed assets'!$U$2:$U$1000=Costs!$A636)*('Fixed assets'!$R$2:$R$1000))","v":0},{"$f":"SUMPRODUCT(('Fixed assets'!$R$2:$R$1000)*('Fixed assets'!$P$2:$P$1000<$A636)*('Fixed assets'!$Q$2:$Q$1000=Costs!AO$617))-SUMPRODUCT(('Fixed assets'!$S$2:$S$1000)*('Fixed assets'!$P$2:$P$1000<Costs!$A636)*('Fixed assets'!$Q$2:$Q$1000=Costs!AO$617))-SUMPRODUCT(('Fixed assets'!$Q$2:$Q$1000=Costs!AO$617)*('Fixed assets'!$U$2:$U$1000=Costs!$A636)*('Fixed assets'!$S$2:$S$1000))+SUMPRODUCT(('Fixed assets'!$Q$2:$Q$1000=Costs!AO$617)*('Fixed assets'!$P$2:$P$1000=Costs!$A636)*('Fixed assets'!$U$2:$U$1000=Costs!$A636)*('Fixed assets'!$R$2:$R$1000))","v":0},{"$f":"SUMPRODUCT(('Fixed assets'!$R$2:$R$1000)*('Fixed assets'!$P$2:$P$1000<$A636)*('Fixed assets'!$Q$2:$Q$1000=Costs!AP$617))-SUMPRODUCT(('Fixed assets'!$S$2:$S$1000)*('Fixed assets'!$P$2:$P$1000<Costs!$A636)*('Fixed assets'!$Q$2:$Q$1000=Costs!AP$617))-SUMPRODUCT(('Fixed assets'!$Q$2:$Q$1000=Costs!AP$617)*('Fixed assets'!$U$2:$U$1000=Costs!$A636)*('Fixed assets'!$S$2:$S$1000))+SUMPRODUCT(('Fixed assets'!$Q$2:$Q$1000=Costs!AP$617)*('Fixed assets'!$P$2:$P$1000=Costs!$A636)*('Fixed assets'!$U$2:$U$1000=Costs!$A636)*('Fixed assets'!$R$2:$R$1000))","v":0},{"$f":"SUMPRODUCT(('Fixed assets'!$R$2:$R$1000)*('Fixed assets'!$P$2:$P$1000<$A636)*('Fixed assets'!$Q$2:$Q$1000=Costs!AQ$617))-SUMPRODUCT(('Fixed assets'!$S$2:$S$1000)*('Fixed assets'!$P$2:$P$1000<Costs!$A636)*('Fixed assets'!$Q$2:$Q$1000=Costs!AQ$617))-SUMPRODUCT(('Fixed assets'!$Q$2:$Q$1000=Costs!AQ$617)*('Fixed assets'!$U$2:$U$1000=Costs!$A636)*('Fixed assets'!$S$2:$S$1000))+SUMPRODUCT(('Fixed assets'!$Q$2:$Q$1000=Costs!AQ$617)*('Fixed assets'!$P$2:$P$1000=Costs!$A636)*('Fixed assets'!$U$2:$U$1000=Costs!$A636)*('Fixed assets'!$R$2:$R$1000))","v":0}]
[2034,0,{"$f":"SUMPRODUCT(('Fixed assets'!$R$2:$R$1000)*('Fixed assets'!$P$2:$P$1000<$A637)*('Fixed assets'!$Q$2:$Q$1000=Costs!C$617))-SUMPRODUCT(('Fixed assets'!$S$2:$S$1000)*('Fixed assets'!$P$2:$P$1000<Costs!$A637)*('Fixed assets'!$Q$2:$Q$1000=Costs!C$617))-SUMPRODUCT(('Fixed assets'!$Q$2:$Q$1000=Costs!C$617)*('Fixed assets'!$U$2:$U$1000=Costs!$A637)*('Fixed assets'!$S$2:$S$1000))+SUMPRODUCT(('Fixed assets'!$Q$2:$Q$1000=Costs!C$617)*('Fixed assets'!$P$2:$P$1000=Costs!$A637)*('Fixed assets'!$U$2:$U$1000=Costs!$A637)*('Fixed assets'!$R$2:$R$1000))","v":0},{"$f":"SUMPRODUCT(('Fixed assets'!$R$2:$R$1000)*('Fixed assets'!$P$2:$P$1000<$A637)*('Fixed assets'!$Q$2:$Q$1000=Costs!D$617))-SUMPRODUCT(('Fixed assets'!$S$2:$S$1000)*('Fixed assets'!$P$2:$P$1000<Costs!$A637)*('Fixed assets'!$Q$2:$Q$1000=Costs!D$617))-SUMPRODUCT(('Fixed assets'!$Q$2:$Q$1000=Costs!D$617)*('Fixed assets'!$U$2:$U$1000=Costs!$A637)*('Fixed assets'!$S$2:$S$1000))+SUMPRODUCT(('Fixed assets'!$Q$2:$Q$1000=Costs!D$617)*('Fixed assets'!$P$2:$P$1000=Costs!$A637)*('Fixed assets'!$U$2:$U$1000=Costs!$A637)*('Fixed assets'!$R$2:$R$1000))","v":0},{"$f":"SUMPRODUCT(('Fixed assets'!$R$2:$R$1000)*('Fixed assets'!$P$2:$P$1000<$A637)*('Fixed assets'!$Q$2:$Q$1000=Costs!E$617))-SUMPRODUCT(('Fixed assets'!$S$2:$S$1000)*('Fixed assets'!$P$2:$P$1000<Costs!$A637)*('Fixed assets'!$Q$2:$Q$1000=Costs!E$617))-SUMPRODUCT(('Fixed assets'!$Q$2:$Q$1000=Costs!E$617)*('Fixed assets'!$U$2:$U$1000=Costs!$A637)*('Fixed assets'!$S$2:$S$1000))+SUMPRODUCT(('Fixed assets'!$Q$2:$Q$1000=Costs!E$617)*('Fixed assets'!$P$2:$P$1000=Costs!$A637)*('Fixed assets'!$U$2:$U$1000=Costs!$A637)*('Fixed assets'!$R$2:$R$1000))","v":0},{"$f":"SUMPRODUCT(('Fixed assets'!$R$2:$R$1000)*('Fixed assets'!$P$2:$P$1000<$A637)*('Fixed assets'!$Q$2:$Q$1000=Costs!F$617))-SUMPRODUCT(('Fixed assets'!$S$2:$S$1000)*('Fixed assets'!$P$2:$P$1000<Costs!$A637)*('Fixed assets'!$Q$2:$Q$1000=Costs!F$617))-SUMPRODUCT(('Fixed assets'!$Q$2:$Q$1000=Costs!F$617)*('Fixed assets'!$U$2:$U$1000=Costs!$A637)*('Fixed assets'!$S$2:$S$1000))+SUMPRODUCT(('Fixed assets'!$Q$2:$Q$1000=Costs!F$617)*('Fixed assets'!$P$2:$P$1000=Costs!$A637)*('Fixed assets'!$U$2:$U$1000=Costs!$A637)*('Fixed assets'!$R$2:$R$1000))","v":0},{"$f":"SUMPRODUCT(('Fixed assets'!$R$2:$R$1000)*('Fixed assets'!$P$2:$P$1000<$A637)*('Fixed assets'!$Q$2:$Q$1000=Costs!G$617))-SUMPRODUCT(('Fixed assets'!$S$2:$S$1000)*('Fixed assets'!$P$2:$P$1000<Costs!$A637)*('Fixed assets'!$Q$2:$Q$1000=Costs!G$617))-SUMPRODUCT(('Fixed assets'!$Q$2:$Q$1000=Costs!G$617)*('Fixed assets'!$U$2:$U$1000=Costs!$A637)*('Fixed assets'!$S$2:$S$1000))+SUMPRODUCT(('Fixed assets'!$Q$2:$Q$1000=Costs!G$617)*('Fixed assets'!$P$2:$P$1000=Costs!$A637)*('Fixed assets'!$U$2:$U$1000=Costs!$A637)*('Fixed assets'!$R$2:$R$1000))","v":0},{"$f":"SUMPRODUCT(('Fixed assets'!$R$2:$R$1000)*('Fixed assets'!$P$2:$P$1000<$A637)*('Fixed assets'!$Q$2:$Q$1000=Costs!H$617))-SUMPRODUCT(('Fixed assets'!$S$2:$S$1000)*('Fixed assets'!$P$2:$P$1000<Costs!$A637)*('Fixed assets'!$Q$2:$Q$1000=Costs!H$617))-SUMPRODUCT(('Fixed assets'!$Q$2:$Q$1000=Costs!H$617)*('Fixed assets'!$U$2:$U$1000=Costs!$A637)*('Fixed assets'!$S$2:$S$1000))+SUMPRODUCT(('Fixed assets'!$Q$2:$Q$1000=Costs!H$617)*('Fixed assets'!$P$2:$P$1000=Costs!$A637)*('Fixed assets'!$U$2:$U$1000=Costs!$A637)*('Fixed assets'!$R$2:$R$1000))","v":0},{"$f":"SUMPRODUCT(('Fixed assets'!$R$2:$R$1000)*('Fixed assets'!$P$2:$P$1000<$A637)*('Fixed assets'!$Q$2:$Q$1000=Costs!I$617))-SUMPRODUCT(('Fixed assets'!$S$2:$S$1000)*('Fixed assets'!$P$2:$P$1000<Costs!$A637)*('Fixed assets'!$Q$2:$Q$1000=Costs!I$617))-SUMPRODUCT(('Fixed assets'!$Q$2:$Q$1000=Costs!I$617)*('Fixed assets'!$U$2:$U$1000=Costs!$A637)*('Fixed assets'!$S$2:$S$1000))+SUMPRODUCT(('Fixed assets'!$Q$2:$Q$1000=Costs!I$617)*('Fixed assets'!$P$2:$P$1000=Costs!$A637)*('Fixed assets'!$U$2:$U$1000=Costs!$A637)*('Fixed assets'!$R$2:$R$1000))","v":0},{"$f":"SUMPRODUCT(('Fixed assets'!$R$2:$R$1000)*('Fixed assets'!$P$2:$P$1000<$A637)*('Fixed assets'!$Q$2:$Q$1000=Costs!J$617))-SUMPRODUCT(('Fixed assets'!$S$2:$S$1000)*('Fixed assets'!$P$2:$P$1000<Costs!$A637)*('Fixed assets'!$Q$2:$Q$1000=Costs!J$617))-SUMPRODUCT(('Fixed assets'!$Q$2:$Q$1000=Costs!J$617)*('Fixed assets'!$U$2:$U$1000=Costs!$A637)*('Fixed assets'!$S$2:$S$1000))+SUMPRODUCT(('Fixed assets'!$Q$2:$Q$1000=Costs!J$617)*('Fixed assets'!$P$2:$P$1000=Costs!$A637)*('Fixed assets'!$U$2:$U$1000=Costs!$A637)*('Fixed assets'!$R$2:$R$1000))","v":0},{"$f":"SUMPRODUCT(('Fixed assets'!$R$2:$R$1000)*('Fixed assets'!$P$2:$P$1000<$A637)*('Fixed assets'!$Q$2:$Q$1000=Costs!K$617))-SUMPRODUCT(('Fixed assets'!$S$2:$S$1000)*('Fixed assets'!$P$2:$P$1000<Costs!$A637)*('Fixed assets'!$Q$2:$Q$1000=Costs!K$617))-SUMPRODUCT(('Fixed assets'!$Q$2:$Q$1000=Costs!K$617)*('Fixed assets'!$U$2:$U$1000=Costs!$A637)*('Fixed assets'!$S$2:$S$1000))+SUMPRODUCT(('Fixed assets'!$Q$2:$Q$1000=Costs!K$617)*('Fixed assets'!$P$2:$P$1000=Costs!$A637)*('Fixed assets'!$U$2:$U$1000=Costs!$A637)*('Fixed assets'!$R$2:$R$1000))","v":0},{"$f":"SUMPRODUCT(('Fixed assets'!$R$2:$R$1000)*('Fixed assets'!$P$2:$P$1000<$A637)*('Fixed assets'!$Q$2:$Q$1000=Costs!L$617))-SUMPRODUCT(('Fixed assets'!$S$2:$S$1000)*('Fixed assets'!$P$2:$P$1000<Costs!$A637)*('Fixed assets'!$Q$2:$Q$1000=Costs!L$617))-SUMPRODUCT(('Fixed assets'!$Q$2:$Q$1000=Costs!L$617)*('Fixed assets'!$U$2:$U$1000=Costs!$A637)*('Fixed assets'!$S$2:$S$1000))+SUMPRODUCT(('Fixed assets'!$Q$2:$Q$1000=Costs!L$617)*('Fixed assets'!$P$2:$P$1000=Costs!$A637)*('Fixed assets'!$U$2:$U$1000=Costs!$A637)*('Fixed assets'!$R$2:$R$1000))","v":0},{"$f":"SUMPRODUCT(('Fixed assets'!$R$2:$R$1000)*('Fixed assets'!$P$2:$P$1000<$A637)*('Fixed assets'!$Q$2:$Q$1000=Costs!M$617))-SUMPRODUCT(('Fixed assets'!$S$2:$S$1000)*('Fixed assets'!$P$2:$P$1000<Costs!$A637)*('Fixed assets'!$Q$2:$Q$1000=Costs!M$617))-SUMPRODUCT(('Fixed assets'!$Q$2:$Q$1000=Costs!M$617)*('Fixed assets'!$U$2:$U$1000=Costs!$A637)*('Fixed assets'!$S$2:$S$1000))+SUMPRODUCT(('Fixed assets'!$Q$2:$Q$1000=Costs!M$617)*('Fixed assets'!$P$2:$P$1000=Costs!$A637)*('Fixed assets'!$U$2:$U$1000=Costs!$A637)*('Fixed assets'!$R$2:$R$1000))","v":0},{"$f":"SUMPRODUCT(('Fixed assets'!$R$2:$R$1000)*('Fixed assets'!$P$2:$P$1000<$A637)*('Fixed assets'!$Q$2:$Q$1000=Costs!N$617))-SUMPRODUCT(('Fixed assets'!$S$2:$S$1000)*('Fixed assets'!$P$2:$P$1000<Costs!$A637)*('Fixed assets'!$Q$2:$Q$1000=Costs!N$617))-SUMPRODUCT(('Fixed assets'!$Q$2:$Q$1000=Costs!N$617)*('Fixed assets'!$U$2:$U$1000=Costs!$A637)*('Fixed assets'!$S$2:$S$1000))+SUMPRODUCT(('Fixed assets'!$Q$2:$Q$1000=Costs!N$617)*('Fixed assets'!$P$2:$P$1000=Costs!$A637)*('Fixed assets'!$U$2:$U$1000=Costs!$A637)*('Fixed assets'!$R$2:$R$1000))","v":0},{"$f":"SUMPRODUCT(('Fixed assets'!$R$2:$R$1000)*('Fixed assets'!$P$2:$P$1000<$A637)*('Fixed assets'!$Q$2:$Q$1000=Costs!O$617))-SUMPRODUCT(('Fixed assets'!$S$2:$S$1000)*('Fixed assets'!$P$2:$P$1000<Costs!$A637)*('Fixed assets'!$Q$2:$Q$1000=Costs!O$617))-SUMPRODUCT(('Fixed assets'!$Q$2:$Q$1000=Costs!O$617)*('Fixed assets'!$U$2:$U$1000=Costs!$A637)*('Fixed assets'!$S$2:$S$1000))+SUMPRODUCT(('Fixed assets'!$Q$2:$Q$1000=Costs!O$617)*('Fixed assets'!$P$2:$P$1000=Costs!$A637)*('Fixed assets'!$U$2:$U$1000=Costs!$A637)*('Fixed assets'!$R$2:$R$1000))","v":0},{"$f":"SUMPRODUCT(('Fixed assets'!$R$2:$R$1000)*('Fixed assets'!$P$2:$P$1000<$A637)*('Fixed assets'!$Q$2:$Q$1000=Costs!P$617))-SUMPRODUCT(('Fixed assets'!$S$2:$S$1000)*('Fixed assets'!$P$2:$P$1000<Costs!$A637)*('Fixed assets'!$Q$2:$Q$1000=Costs!P$617))-SUMPRODUCT(('Fixed assets'!$Q$2:$Q$1000=Costs!P$617)*('Fixed assets'!$U$2:$U$1000=Costs!$A637)*('Fixed assets'!$S$2:$S$1000))+SUMPRODUCT(('Fixed assets'!$Q$2:$Q$1000=Costs!P$617)*('Fixed assets'!$P$2:$P$1000=Costs!$A637)*('Fixed assets'!$U$2:$U$1000=Costs!$A637)*('Fixed assets'!$R$2:$R$1000))","v":0},{"$f":"SUMPRODUCT(('Fixed assets'!$R$2:$R$1000)*('Fixed assets'!$P$2:$P$1000<$A637)*('Fixed assets'!$Q$2:$Q$1000=Costs!Q$617))-SUMPRODUCT(('Fixed assets'!$S$2:$S$1000)*('Fixed assets'!$P$2:$P$1000<Costs!$A637)*('Fixed assets'!$Q$2:$Q$1000=Costs!Q$617))-SUMPRODUCT(('Fixed assets'!$Q$2:$Q$1000=Costs!Q$617)*('Fixed assets'!$U$2:$U$1000=Costs!$A637)*('Fixed assets'!$S$2:$S$1000))+SUMPRODUCT(('Fixed assets'!$Q$2:$Q$1000=Costs!Q$617)*('Fixed assets'!$P$2:$P$1000=Costs!$A637)*('Fixed assets'!$U$2:$U$1000=Costs!$A637)*('Fixed assets'!$R$2:$R$1000))","v":0},{"$f":"SUMPRODUCT(('Fixed assets'!$R$2:$R$1000)*('Fixed assets'!$P$2:$P$1000<$A637)*('Fixed assets'!$Q$2:$Q$1000=Costs!R$617))-SUMPRODUCT(('Fixed assets'!$S$2:$S$1000)*('Fixed assets'!$P$2:$P$1000<Costs!$A637)*('Fixed assets'!$Q$2:$Q$1000=Costs!R$617))-SUMPRODUCT(('Fixed assets'!$Q$2:$Q$1000=Costs!R$617)*('Fixed assets'!$U$2:$U$1000=Costs!$A637)*('Fixed assets'!$S$2:$S$1000))+SUMPRODUCT(('Fixed assets'!$Q$2:$Q$1000=Costs!R$617)*('Fixed assets'!$P$2:$P$1000=Costs!$A637)*('Fixed assets'!$U$2:$U$1000=Costs!$A637)*('Fixed assets'!$R$2:$R$1000))","v":0},{"$f":"SUMPRODUCT(('Fixed assets'!$R$2:$R$1000)*('Fixed assets'!$P$2:$P$1000<$A637)*('Fixed assets'!$Q$2:$Q$1000=Costs!S$617))-SUMPRODUCT(('Fixed assets'!$S$2:$S$1000)*('Fixed assets'!$P$2:$P$1000<Costs!$A637)*('Fixed assets'!$Q$2:$Q$1000=Costs!S$617))-SUMPRODUCT(('Fixed assets'!$Q$2:$Q$1000=Costs!S$617)*('Fixed assets'!$U$2:$U$1000=Costs!$A637)*('Fixed assets'!$S$2:$S$1000))+SUMPRODUCT(('Fixed assets'!$Q$2:$Q$1000=Costs!S$617)*('Fixed assets'!$P$2:$P$1000=Costs!$A637)*('Fixed assets'!$U$2:$U$1000=Costs!$A637)*('Fixed assets'!$R$2:$R$1000))","v":0},{"$f":"SUMPRODUCT(('Fixed assets'!$R$2:$R$1000)*('Fixed assets'!$P$2:$P$1000<$A637)*('Fixed assets'!$Q$2:$Q$1000=Costs!T$617))-SUMPRODUCT(('Fixed assets'!$S$2:$S$1000)*('Fixed assets'!$P$2:$P$1000<Costs!$A637)*('Fixed assets'!$Q$2:$Q$1000=Costs!T$617))-SUMPRODUCT(('Fixed assets'!$Q$2:$Q$1000=Costs!T$617)*('Fixed assets'!$U$2:$U$1000=Costs!$A637)*('Fixed assets'!$S$2:$S$1000))+SUMPRODUCT(('Fixed assets'!$Q$2:$Q$1000=Costs!T$617)*('Fixed assets'!$P$2:$P$1000=Costs!$A637)*('Fixed assets'!$U$2:$U$1000=Costs!$A637)*('Fixed assets'!$R$2:$R$1000))","v":0},{"$f":"SUMPRODUCT(('Fixed assets'!$R$2:$R$1000)*('Fixed assets'!$P$2:$P$1000<$A637)*('Fixed assets'!$Q$2:$Q$1000=Costs!U$617))-SUMPRODUCT(('Fixed assets'!$S$2:$S$1000)*('Fixed assets'!$P$2:$P$1000<Costs!$A637)*('Fixed assets'!$Q$2:$Q$1000=Costs!U$617))-SUMPRODUCT(('Fixed assets'!$Q$2:$Q$1000=Costs!U$617)*('Fixed assets'!$U$2:$U$1000=Costs!$A637)*('Fixed assets'!$S$2:$S$1000))+SUMPRODUCT(('Fixed assets'!$Q$2:$Q$1000=Costs!U$617)*('Fixed assets'!$P$2:$P$1000=Costs!$A637)*('Fixed assets'!$U$2:$U$1000=Costs!$A637)*('Fixed assets'!$R$2:$R$1000))","v":0},{"$f":"SUMPRODUCT(('Fixed assets'!$R$2:$R$1000)*('Fixed assets'!$P$2:$P$1000<$A637)*('Fixed assets'!$Q$2:$Q$1000=Costs!V$617))-SUMPRODUCT(('Fixed assets'!$S$2:$S$1000)*('Fixed assets'!$P$2:$P$1000<Costs!$A637)*('Fixed assets'!$Q$2:$Q$1000=Costs!V$617))-SUMPRODUCT(('Fixed assets'!$Q$2:$Q$1000=Costs!V$617)*('Fixed assets'!$U$2:$U$1000=Costs!$A637)*('Fixed assets'!$S$2:$S$1000))+SUMPRODUCT(('Fixed assets'!$Q$2:$Q$1000=Costs!V$617)*('Fixed assets'!$P$2:$P$1000=Costs!$A637)*('Fixed assets'!$U$2:$U$1000=Costs!$A637)*('Fixed assets'!$R$2:$R$1000))","v":0},{"$f":"SUMPRODUCT(('Fixed assets'!$R$2:$R$1000)*('Fixed assets'!$P$2:$P$1000<$A637)*('Fixed assets'!$Q$2:$Q$1000=Costs!W$617))-SUMPRODUCT(('Fixed assets'!$S$2:$S$1000)*('Fixed assets'!$P$2:$P$1000<Costs!$A637)*('Fixed assets'!$Q$2:$Q$1000=Costs!W$617))-SUMPRODUCT(('Fixed assets'!$Q$2:$Q$1000=Costs!W$617)*('Fixed assets'!$U$2:$U$1000=Costs!$A637)*('Fixed assets'!$S$2:$S$1000))+SUMPRODUCT(('Fixed assets'!$Q$2:$Q$1000=Costs!W$617)*('Fixed assets'!$P$2:$P$1000=Costs!$A637)*('Fixed assets'!$U$2:$U$1000=Costs!$A637)*('Fixed assets'!$R$2:$R$1000))","v":0},{"$f":"SUMPRODUCT(('Fixed assets'!$R$2:$R$1000)*('Fixed assets'!$P$2:$P$1000<$A637)*('Fixed assets'!$Q$2:$Q$1000=Costs!X$617))-SUMPRODUCT(('Fixed assets'!$S$2:$S$1000)*('Fixed assets'!$P$2:$P$1000<Costs!$A637)*('Fixed assets'!$Q$2:$Q$1000=Costs!X$617))-SUMPRODUCT(('Fixed assets'!$Q$2:$Q$1000=Costs!X$617)*('Fixed assets'!$U$2:$U$1000=Costs!$A637)*('Fixed assets'!$S$2:$S$1000))+SUMPRODUCT(('Fixed assets'!$Q$2:$Q$1000=Costs!X$617)*('Fixed assets'!$P$2:$P$1000=Costs!$A637)*('Fixed assets'!$U$2:$U$1000=Costs!$A637)*('Fixed assets'!$R$2:$R$1000))","v":0},{"$f":"SUMPRODUCT(('Fixed assets'!$R$2:$R$1000)*('Fixed assets'!$P$2:$P$1000<$A637)*('Fixed assets'!$Q$2:$Q$1000=Costs!Y$617))-SUMPRODUCT(('Fixed assets'!$S$2:$S$1000)*('Fixed assets'!$P$2:$P$1000<Costs!$A637)*('Fixed assets'!$Q$2:$Q$1000=Costs!Y$617))-SUMPRODUCT(('Fixed assets'!$Q$2:$Q$1000=Costs!Y$617)*('Fixed assets'!$U$2:$U$1000=Costs!$A637)*('Fixed assets'!$S$2:$S$1000))+SUMPRODUCT(('Fixed assets'!$Q$2:$Q$1000=Costs!Y$617)*('Fixed assets'!$P$2:$P$1000=Costs!$A637)*('Fixed assets'!$U$2:$U$1000=Costs!$A637)*('Fixed assets'!$R$2:$R$1000))","v":0},{"$f":"SUMPRODUCT(('Fixed assets'!$R$2:$R$1000)*('Fixed assets'!$P$2:$P$1000<$A637)*('Fixed assets'!$Q$2:$Q$1000=Costs!Z$617))-SUMPRODUCT(('Fixed assets'!$S$2:$S$1000)*('Fixed assets'!$P$2:$P$1000<Costs!$A637)*('Fixed assets'!$Q$2:$Q$1000=Costs!Z$617))-SUMPRODUCT(('Fixed assets'!$Q$2:$Q$1000=Costs!Z$617)*('Fixed assets'!$U$2:$U$1000=Costs!$A637)*('Fixed assets'!$S$2:$S$1000))+SUMPRODUCT(('Fixed assets'!$Q$2:$Q$1000=Costs!Z$617)*('Fixed assets'!$P$2:$P$1000=Costs!$A637)*('Fixed assets'!$U$2:$U$1000=Costs!$A637)*('Fixed assets'!$R$2:$R$1000))","v":0},{"$f":"SUMPRODUCT(('Fixed assets'!$R$2:$R$1000)*('Fixed assets'!$P$2:$P$1000<$A637)*('Fixed assets'!$Q$2:$Q$1000=Costs!AA$617))-SUMPRODUCT(('Fixed assets'!$S$2:$S$1000)*('Fixed assets'!$P$2:$P$1000<Costs!$A637)*('Fixed assets'!$Q$2:$Q$1000=Costs!AA$617))-SUMPRODUCT(('Fixed assets'!$Q$2:$Q$1000=Costs!AA$617)*('Fixed assets'!$U$2:$U$1000=Costs!$A637)*('Fixed assets'!$S$2:$S$1000))+SUMPRODUCT(('Fixed assets'!$Q$2:$Q$1000=Costs!AA$617)*('Fixed assets'!$P$2:$P$1000=Costs!$A637)*('Fixed assets'!$U$2:$U$1000=Costs!$A637)*('Fixed assets'!$R$2:$R$1000))","v":0},{"$f":"SUMPRODUCT(('Fixed assets'!$R$2:$R$1000)*('Fixed assets'!$P$2:$P$1000<$A637)*('Fixed assets'!$Q$2:$Q$1000=Costs!AB$617))-SUMPRODUCT(('Fixed assets'!$S$2:$S$1000)*('Fixed assets'!$P$2:$P$1000<Costs!$A637)*('Fixed assets'!$Q$2:$Q$1000=Costs!AB$617))-SUMPRODUCT(('Fixed assets'!$Q$2:$Q$1000=Costs!AB$617)*('Fixed assets'!$U$2:$U$1000=Costs!$A637)*('Fixed assets'!$S$2:$S$1000))+SUMPRODUCT(('Fixed assets'!$Q$2:$Q$1000=Costs!AB$617)*('Fixed assets'!$P$2:$P$1000=Costs!$A637)*('Fixed assets'!$U$2:$U$1000=Costs!$A637)*('Fixed assets'!$R$2:$R$1000))","v":0},{"$f":"SUMPRODUCT(('Fixed assets'!$R$2:$R$1000)*('Fixed assets'!$P$2:$P$1000<$A637)*('Fixed assets'!$Q$2:$Q$1000=Costs!AC$617))-SUMPRODUCT(('Fixed assets'!$S$2:$S$1000)*('Fixed assets'!$P$2:$P$1000<Costs!$A637)*('Fixed assets'!$Q$2:$Q$1000=Costs!AC$617))-SUMPRODUCT(('Fixed assets'!$Q$2:$Q$1000=Costs!AC$617)*('Fixed assets'!$U$2:$U$1000=Costs!$A637)*('Fixed assets'!$S$2:$S$1000))+SUMPRODUCT(('Fixed assets'!$Q$2:$Q$1000=Costs!AC$617)*('Fixed assets'!$P$2:$P$1000=Costs!$A637)*('Fixed assets'!$U$2:$U$1000=Costs!$A637)*('Fixed assets'!$R$2:$R$1000))","v":0},{"$f":"SUMPRODUCT(('Fixed assets'!$R$2:$R$1000)*('Fixed assets'!$P$2:$P$1000<$A637)*('Fixed assets'!$Q$2:$Q$1000=Costs!AD$617))-SUMPRODUCT(('Fixed assets'!$S$2:$S$1000)*('Fixed assets'!$P$2:$P$1000<Costs!$A637)*('Fixed assets'!$Q$2:$Q$1000=Costs!AD$617))-SUMPRODUCT(('Fixed assets'!$Q$2:$Q$1000=Costs!AD$617)*('Fixed assets'!$U$2:$U$1000=Costs!$A637)*('Fixed assets'!$S$2:$S$1000))+SUMPRODUCT(('Fixed assets'!$Q$2:$Q$1000=Costs!AD$617)*('Fixed assets'!$P$2:$P$1000=Costs!$A637)*('Fixed assets'!$U$2:$U$1000=Costs!$A637)*('Fixed assets'!$R$2:$R$1000))","v":0},{"$f":"SUMPRODUCT(('Fixed assets'!$R$2:$R$1000)*('Fixed assets'!$P$2:$P$1000<$A637)*('Fixed assets'!$Q$2:$Q$1000=Costs!AE$617))-SUMPRODUCT(('Fixed assets'!$S$2:$S$1000)*('Fixed assets'!$P$2:$P$1000<Costs!$A637)*('Fixed assets'!$Q$2:$Q$1000=Costs!AE$617))-SUMPRODUCT(('Fixed assets'!$Q$2:$Q$1000=Costs!AE$617)*('Fixed assets'!$U$2:$U$1000=Costs!$A637)*('Fixed assets'!$S$2:$S$1000))+SUMPRODUCT(('Fixed assets'!$Q$2:$Q$1000=Costs!AE$617)*('Fixed assets'!$P$2:$P$1000=Costs!$A637)*('Fixed assets'!$U$2:$U$1000=Costs!$A637)*('Fixed assets'!$R$2:$R$1000))","v":0},{"$f":"SUMPRODUCT(('Fixed assets'!$R$2:$R$1000)*('Fixed assets'!$P$2:$P$1000<$A637)*('Fixed assets'!$Q$2:$Q$1000=Costs!AF$617))-SUMPRODUCT(('Fixed assets'!$S$2:$S$1000)*('Fixed assets'!$P$2:$P$1000<Costs!$A637)*('Fixed assets'!$Q$2:$Q$1000=Costs!AF$617))-SUMPRODUCT(('Fixed assets'!$Q$2:$Q$1000=Costs!AF$617)*('Fixed assets'!$U$2:$U$1000=Costs!$A637)*('Fixed assets'!$S$2:$S$1000))+SUMPRODUCT(('Fixed assets'!$Q$2:$Q$1000=Costs!AF$617)*('Fixed assets'!$P$2:$P$1000=Costs!$A637)*('Fixed assets'!$U$2:$U$1000=Costs!$A637)*('Fixed assets'!$R$2:$R$1000))","v":0},{"$f":"SUMPRODUCT(('Fixed assets'!$R$2:$R$1000)*('Fixed assets'!$P$2:$P$1000<$A637)*('Fixed assets'!$Q$2:$Q$1000=Costs!AG$617))-SUMPRODUCT(('Fixed assets'!$S$2:$S$1000)*('Fixed assets'!$P$2:$P$1000<Costs!$A637)*('Fixed assets'!$Q$2:$Q$1000=Costs!AG$617))-SUMPRODUCT(('Fixed assets'!$Q$2:$Q$1000=Costs!AG$617)*('Fixed assets'!$U$2:$U$1000=Costs!$A637)*('Fixed assets'!$S$2:$S$1000))+SUMPRODUCT(('Fixed assets'!$Q$2:$Q$1000=Costs!AG$617)*('Fixed assets'!$P$2:$P$1000=Costs!$A637)*('Fixed assets'!$U$2:$U$1000=Costs!$A637)*('Fixed assets'!$R$2:$R$1000))","v":0},{"$f":"SUMPRODUCT(('Fixed assets'!$R$2:$R$1000)*('Fixed assets'!$P$2:$P$1000<$A637)*('Fixed assets'!$Q$2:$Q$1000=Costs!AH$617))-SUMPRODUCT(('Fixed assets'!$S$2:$S$1000)*('Fixed assets'!$P$2:$P$1000<Costs!$A637)*('Fixed assets'!$Q$2:$Q$1000=Costs!AH$617))-SUMPRODUCT(('Fixed assets'!$Q$2:$Q$1000=Costs!AH$617)*('Fixed assets'!$U$2:$U$1000=Costs!$A637)*('Fixed assets'!$S$2:$S$1000))+SUMPRODUCT(('Fixed assets'!$Q$2:$Q$1000=Costs!AH$617)*('Fixed assets'!$P$2:$P$1000=Costs!$A637)*('Fixed assets'!$U$2:$U$1000=Costs!$A637)*('Fixed assets'!$R$2:$R$1000))","v":0},{"$f":"SUMPRODUCT(('Fixed assets'!$R$2:$R$1000)*('Fixed assets'!$P$2:$P$1000<$A637)*('Fixed assets'!$Q$2:$Q$1000=Costs!AI$617))-SUMPRODUCT(('Fixed assets'!$S$2:$S$1000)*('Fixed assets'!$P$2:$P$1000<Costs!$A637)*('Fixed assets'!$Q$2:$Q$1000=Costs!AI$617))-SUMPRODUCT(('Fixed assets'!$Q$2:$Q$1000=Costs!AI$617)*('Fixed assets'!$U$2:$U$1000=Costs!$A637)*('Fixed assets'!$S$2:$S$1000))+SUMPRODUCT(('Fixed assets'!$Q$2:$Q$1000=Costs!AI$617)*('Fixed assets'!$P$2:$P$1000=Costs!$A637)*('Fixed assets'!$U$2:$U$1000=Costs!$A637)*('Fixed assets'!$R$2:$R$1000))","v":0},{"$f":"SUMPRODUCT(('Fixed assets'!$R$2:$R$1000)*('Fixed assets'!$P$2:$P$1000<$A637)*('Fixed assets'!$Q$2:$Q$1000=Costs!AJ$617))-SUMPRODUCT(('Fixed assets'!$S$2:$S$1000)*('Fixed assets'!$P$2:$P$1000<Costs!$A637)*('Fixed assets'!$Q$2:$Q$1000=Costs!AJ$617))-SUMPRODUCT(('Fixed assets'!$Q$2:$Q$1000=Costs!AJ$617)*('Fixed assets'!$U$2:$U$1000=Costs!$A637)*('Fixed assets'!$S$2:$S$1000))+SUMPRODUCT(('Fixed assets'!$Q$2:$Q$1000=Costs!AJ$617)*('Fixed assets'!$P$2:$P$1000=Costs!$A637)*('Fixed assets'!$U$2:$U$1000=Costs!$A637)*('Fixed assets'!$R$2:$R$1000))","v":0},{"$f":"SUMPRODUCT(('Fixed assets'!$R$2:$R$1000)*('Fixed assets'!$P$2:$P$1000<$A637)*('Fixed assets'!$Q$2:$Q$1000=Costs!AK$617))-SUMPRODUCT(('Fixed assets'!$S$2:$S$1000)*('Fixed assets'!$P$2:$P$1000<Costs!$A637)*('Fixed assets'!$Q$2:$Q$1000=Costs!AK$617))-SUMPRODUCT(('Fixed assets'!$Q$2:$Q$1000=Costs!AK$617)*('Fixed assets'!$U$2:$U$1000=Costs!$A637)*('Fixed assets'!$S$2:$S$1000))+SUMPRODUCT(('Fixed assets'!$Q$2:$Q$1000=Costs!AK$617)*('Fixed assets'!$P$2:$P$1000=Costs!$A637)*('Fixed assets'!$U$2:$U$1000=Costs!$A637)*('Fixed assets'!$R$2:$R$1000))","v":0},{"$f":"SUMPRODUCT(('Fixed assets'!$R$2:$R$1000)*('Fixed assets'!$P$2:$P$1000<$A637)*('Fixed assets'!$Q$2:$Q$1000=Costs!AL$617))-SUMPRODUCT(('Fixed assets'!$S$2:$S$1000)*('Fixed assets'!$P$2:$P$1000<Costs!$A637)*('Fixed assets'!$Q$2:$Q$1000=Costs!AL$617))-SUMPRODUCT(('Fixed assets'!$Q$2:$Q$1000=Costs!AL$617)*('Fixed assets'!$U$2:$U$1000=Costs!$A637)*('Fixed assets'!$S$2:$S$1000))+SUMPRODUCT(('Fixed assets'!$Q$2:$Q$1000=Costs!AL$617)*('Fixed assets'!$P$2:$P$1000=Costs!$A637)*('Fixed assets'!$U$2:$U$1000=Costs!$A637)*('Fixed assets'!$R$2:$R$1000))","v":0},{"$f":"SUMPRODUCT(('Fixed assets'!$R$2:$R$1000)*('Fixed assets'!$P$2:$P$1000<$A637)*('Fixed assets'!$Q$2:$Q$1000=Costs!AM$617))-SUMPRODUCT(('Fixed assets'!$S$2:$S$1000)*('Fixed assets'!$P$2:$P$1000<Costs!$A637)*('Fixed assets'!$Q$2:$Q$1000=Costs!AM$617))-SUMPRODUCT(('Fixed assets'!$Q$2:$Q$1000=Costs!AM$617)*('Fixed assets'!$U$2:$U$1000=Costs!$A637)*('Fixed assets'!$S$2:$S$1000))+SUMPRODUCT(('Fixed assets'!$Q$2:$Q$1000=Costs!AM$617)*('Fixed assets'!$P$2:$P$1000=Costs!$A637)*('Fixed assets'!$U$2:$U$1000=Costs!$A637)*('Fixed assets'!$R$2:$R$1000))","v":0},{"$f":"SUMPRODUCT(('Fixed assets'!$R$2:$R$1000)*('Fixed assets'!$P$2:$P$1000<$A637)*('Fixed assets'!$Q$2:$Q$1000=Costs!AN$617))-SUMPRODUCT(('Fixed assets'!$S$2:$S$1000)*('Fixed assets'!$P$2:$P$1000<Costs!$A637)*('Fixed assets'!$Q$2:$Q$1000=Costs!AN$617))-SUMPRODUCT(('Fixed assets'!$Q$2:$Q$1000=Costs!AN$617)*('Fixed assets'!$U$2:$U$1000=Costs!$A637)*('Fixed assets'!$S$2:$S$1000))+SUMPRODUCT(('Fixed assets'!$Q$2:$Q$1000=Costs!AN$617)*('Fixed assets'!$P$2:$P$1000=Costs!$A637)*('Fixed assets'!$U$2:$U$1000=Costs!$A637)*('Fixed assets'!$R$2:$R$1000))","v":0},{"$f":"SUMPRODUCT(('Fixed assets'!$R$2:$R$1000)*('Fixed assets'!$P$2:$P$1000<$A637)*('Fixed assets'!$Q$2:$Q$1000=Costs!AO$617))-SUMPRODUCT(('Fixed assets'!$S$2:$S$1000)*('Fixed assets'!$P$2:$P$1000<Costs!$A637)*('Fixed assets'!$Q$2:$Q$1000=Costs!AO$617))-SUMPRODUCT(('Fixed assets'!$Q$2:$Q$1000=Costs!AO$617)*('Fixed assets'!$U$2:$U$1000=Costs!$A637)*('Fixed assets'!$S$2:$S$1000))+SUMPRODUCT(('Fixed assets'!$Q$2:$Q$1000=Costs!AO$617)*('Fixed assets'!$P$2:$P$1000=Costs!$A637)*('Fixed assets'!$U$2:$U$1000=Costs!$A637)*('Fixed assets'!$R$2:$R$1000))","v":0},{"$f":"SUMPRODUCT(('Fixed assets'!$R$2:$R$1000)*('Fixed assets'!$P$2:$P$1000<$A637)*('Fixed assets'!$Q$2:$Q$1000=Costs!AP$617))-SUMPRODUCT(('Fixed assets'!$S$2:$S$1000)*('Fixed assets'!$P$2:$P$1000<Costs!$A637)*('Fixed assets'!$Q$2:$Q$1000=Costs!AP$617))-SUMPRODUCT(('Fixed assets'!$Q$2:$Q$1000=Costs!AP$617)*('Fixed assets'!$U$2:$U$1000=Costs!$A637)*('Fixed assets'!$S$2:$S$1000))+SUMPRODUCT(('Fixed assets'!$Q$2:$Q$1000=Costs!AP$617)*('Fixed assets'!$P$2:$P$1000=Costs!$A637)*('Fixed assets'!$U$2:$U$1000=Costs!$A637)*('Fixed assets'!$R$2:$R$1000))","v":0},{"$f":"SUMPRODUCT(('Fixed assets'!$R$2:$R$1000)*('Fixed assets'!$P$2:$P$1000<$A637)*('Fixed assets'!$Q$2:$Q$1000=Costs!AQ$617))-SUMPRODUCT(('Fixed assets'!$S$2:$S$1000)*('Fixed assets'!$P$2:$P$1000<Costs!$A637)*('Fixed assets'!$Q$2:$Q$1000=Costs!AQ$617))-SUMPRODUCT(('Fixed assets'!$Q$2:$Q$1000=Costs!AQ$617)*('Fixed assets'!$U$2:$U$1000=Costs!$A637)*('Fixed assets'!$S$2:$S$1000))+SUMPRODUCT(('Fixed assets'!$Q$2:$Q$1000=Costs!AQ$617)*('Fixed assets'!$P$2:$P$1000=Costs!$A637)*('Fixed assets'!$U$2:$U$1000=Costs!$A637)*('Fixed assets'!$R$2:$R$1000))","v":0}]
[2035,0,{"$f":"SUMPRODUCT(('Fixed assets'!$R$2:$R$1000)*('Fixed assets'!$P$2:$P$1000<$A638)*('Fixed assets'!$Q$2:$Q$1000=Costs!C$617))-SUMPRODUCT(('Fixed assets'!$S$2:$S$1000)*('Fixed assets'!$P$2:$P$1000<Costs!$A638)*('Fixed assets'!$Q$2:$Q$1000=Costs!C$617))-SUMPRODUCT(('Fixed assets'!$Q$2:$Q$1000=Costs!C$617)*('Fixed assets'!$U$2:$U$1000=Costs!$A638)*('Fixed assets'!$S$2:$S$1000))+SUMPRODUCT(('Fixed assets'!$Q$2:$Q$1000=Costs!C$617)*('Fixed assets'!$P$2:$P$1000=Costs!$A638)*('Fixed assets'!$U$2:$U$1000=Costs!$A638)*('Fixed assets'!$R$2:$R$1000))","v":0},{"$f":"SUMPRODUCT(('Fixed assets'!$R$2:$R$1000)*('Fixed assets'!$P$2:$P$1000<$A638)*('Fixed assets'!$Q$2:$Q$1000=Costs!D$617))-SUMPRODUCT(('Fixed assets'!$S$2:$S$1000)*('Fixed assets'!$P$2:$P$1000<Costs!$A638)*('Fixed assets'!$Q$2:$Q$1000=Costs!D$617))-SUMPRODUCT(('Fixed assets'!$Q$2:$Q$1000=Costs!D$617)*('Fixed assets'!$U$2:$U$1000=Costs!$A638)*('Fixed assets'!$S$2:$S$1000))+SUMPRODUCT(('Fixed assets'!$Q$2:$Q$1000=Costs!D$617)*('Fixed assets'!$P$2:$P$1000=Costs!$A638)*('Fixed assets'!$U$2:$U$1000=Costs!$A638)*('Fixed assets'!$R$2:$R$1000))","v":0},{"$f":"SUMPRODUCT(('Fixed assets'!$R$2:$R$1000)*('Fixed assets'!$P$2:$P$1000<$A638)*('Fixed assets'!$Q$2:$Q$1000=Costs!E$617))-SUMPRODUCT(('Fixed assets'!$S$2:$S$1000)*('Fixed assets'!$P$2:$P$1000<Costs!$A638)*('Fixed assets'!$Q$2:$Q$1000=Costs!E$617))-SUMPRODUCT(('Fixed assets'!$Q$2:$Q$1000=Costs!E$617)*('Fixed assets'!$U$2:$U$1000=Costs!$A638)*('Fixed assets'!$S$2:$S$1000))+SUMPRODUCT(('Fixed assets'!$Q$2:$Q$1000=Costs!E$617)*('Fixed assets'!$P$2:$P$1000=Costs!$A638)*('Fixed assets'!$U$2:$U$1000=Costs!$A638)*('Fixed assets'!$R$2:$R$1000))","v":0},{"$f":"SUMPRODUCT(('Fixed assets'!$R$2:$R$1000)*('Fixed assets'!$P$2:$P$1000<$A638)*('Fixed assets'!$Q$2:$Q$1000=Costs!F$617))-SUMPRODUCT(('Fixed assets'!$S$2:$S$1000)*('Fixed assets'!$P$2:$P$1000<Costs!$A638)*('Fixed assets'!$Q$2:$Q$1000=Costs!F$617))-SUMPRODUCT(('Fixed assets'!$Q$2:$Q$1000=Costs!F$617)*('Fixed assets'!$U$2:$U$1000=Costs!$A638)*('Fixed assets'!$S$2:$S$1000))+SUMPRODUCT(('Fixed assets'!$Q$2:$Q$1000=Costs!F$617)*('Fixed assets'!$P$2:$P$1000=Costs!$A638)*('Fixed assets'!$U$2:$U$1000=Costs!$A638)*('Fixed assets'!$R$2:$R$1000))","v":0},{"$f":"SUMPRODUCT(('Fixed assets'!$R$2:$R$1000)*('Fixed assets'!$P$2:$P$1000<$A638)*('Fixed assets'!$Q$2:$Q$1000=Costs!G$617))-SUMPRODUCT(('Fixed assets'!$S$2:$S$1000)*('Fixed assets'!$P$2:$P$1000<Costs!$A638)*('Fixed assets'!$Q$2:$Q$1000=Costs!G$617))-SUMPRODUCT(('Fixed assets'!$Q$2:$Q$1000=Costs!G$617)*('Fixed assets'!$U$2:$U$1000=Costs!$A638)*('Fixed assets'!$S$2:$S$1000))+SUMPRODUCT(('Fixed assets'!$Q$2:$Q$1000=Costs!G$617)*('Fixed assets'!$P$2:$P$1000=Costs!$A638)*('Fixed assets'!$U$2:$U$1000=Costs!$A638)*('Fixed assets'!$R$2:$R$1000))","v":0},{"$f":"SUMPRODUCT(('Fixed assets'!$R$2:$R$1000)*('Fixed assets'!$P$2:$P$1000<$A638)*('Fixed assets'!$Q$2:$Q$1000=Costs!H$617))-SUMPRODUCT(('Fixed assets'!$S$2:$S$1000)*('Fixed assets'!$P$2:$P$1000<Costs!$A638)*('Fixed assets'!$Q$2:$Q$1000=Costs!H$617))-SUMPRODUCT(('Fixed assets'!$Q$2:$Q$1000=Costs!H$617)*('Fixed assets'!$U$2:$U$1000=Costs!$A638)*('Fixed assets'!$S$2:$S$1000))+SUMPRODUCT(('Fixed assets'!$Q$2:$Q$1000=Costs!H$617)*('Fixed assets'!$P$2:$P$1000=Costs!$A638)*('Fixed assets'!$U$2:$U$1000=Costs!$A638)*('Fixed assets'!$R$2:$R$1000))","v":0},{"$f":"SUMPRODUCT(('Fixed assets'!$R$2:$R$1000)*('Fixed assets'!$P$2:$P$1000<$A638)*('Fixed assets'!$Q$2:$Q$1000=Costs!I$617))-SUMPRODUCT(('Fixed assets'!$S$2:$S$1000)*('Fixed assets'!$P$2:$P$1000<Costs!$A638)*('Fixed assets'!$Q$2:$Q$1000=Costs!I$617))-SUMPRODUCT(('Fixed assets'!$Q$2:$Q$1000=Costs!I$617)*('Fixed assets'!$U$2:$U$1000=Costs!$A638)*('Fixed assets'!$S$2:$S$1000))+SUMPRODUCT(('Fixed assets'!$Q$2:$Q$1000=Costs!I$617)*('Fixed assets'!$P$2:$P$1000=Costs!$A638)*('Fixed assets'!$U$2:$U$1000=Costs!$A638)*('Fixed assets'!$R$2:$R$1000))","v":0},{"$f":"SUMPRODUCT(('Fixed assets'!$R$2:$R$1000)*('Fixed assets'!$P$2:$P$1000<$A638)*('Fixed assets'!$Q$2:$Q$1000=Costs!J$617))-SUMPRODUCT(('Fixed assets'!$S$2:$S$1000)*('Fixed assets'!$P$2:$P$1000<Costs!$A638)*('Fixed assets'!$Q$2:$Q$1000=Costs!J$617))-SUMPRODUCT(('Fixed assets'!$Q$2:$Q$1000=Costs!J$617)*('Fixed assets'!$U$2:$U$1000=Costs!$A638)*('Fixed assets'!$S$2:$S$1000))+SUMPRODUCT(('Fixed assets'!$Q$2:$Q$1000=Costs!J$617)*('Fixed assets'!$P$2:$P$1000=Costs!$A638)*('Fixed assets'!$U$2:$U$1000=Costs!$A638)*('Fixed assets'!$R$2:$R$1000))","v":0},{"$f":"SUMPRODUCT(('Fixed assets'!$R$2:$R$1000)*('Fixed assets'!$P$2:$P$1000<$A638)*('Fixed assets'!$Q$2:$Q$1000=Costs!K$617))-SUMPRODUCT(('Fixed assets'!$S$2:$S$1000)*('Fixed assets'!$P$2:$P$1000<Costs!$A638)*('Fixed assets'!$Q$2:$Q$1000=Costs!K$617))-SUMPRODUCT(('Fixed assets'!$Q$2:$Q$1000=Costs!K$617)*('Fixed assets'!$U$2:$U$1000=Costs!$A638)*('Fixed assets'!$S$2:$S$1000))+SUMPRODUCT(('Fixed assets'!$Q$2:$Q$1000=Costs!K$617)*('Fixed assets'!$P$2:$P$1000=Costs!$A638)*('Fixed assets'!$U$2:$U$1000=Costs!$A638)*('Fixed assets'!$R$2:$R$1000))","v":0},{"$f":"SUMPRODUCT(('Fixed assets'!$R$2:$R$1000)*('Fixed assets'!$P$2:$P$1000<$A638)*('Fixed assets'!$Q$2:$Q$1000=Costs!L$617))-SUMPRODUCT(('Fixed assets'!$S$2:$S$1000)*('Fixed assets'!$P$2:$P$1000<Costs!$A638)*('Fixed assets'!$Q$2:$Q$1000=Costs!L$617))-SUMPRODUCT(('Fixed assets'!$Q$2:$Q$1000=Costs!L$617)*('Fixed assets'!$U$2:$U$1000=Costs!$A638)*('Fixed assets'!$S$2:$S$1000))+SUMPRODUCT(('Fixed assets'!$Q$2:$Q$1000=Costs!L$617)*('Fixed assets'!$P$2:$P$1000=Costs!$A638)*('Fixed assets'!$U$2:$U$1000=Costs!$A638)*('Fixed assets'!$R$2:$R$1000))","v":0},{"$f":"SUMPRODUCT(('Fixed assets'!$R$2:$R$1000)*('Fixed assets'!$P$2:$P$1000<$A638)*('Fixed assets'!$Q$2:$Q$1000=Costs!M$617))-SUMPRODUCT(('Fixed assets'!$S$2:$S$1000)*('Fixed assets'!$P$2:$P$1000<Costs!$A638)*('Fixed assets'!$Q$2:$Q$1000=Costs!M$617))-SUMPRODUCT(('Fixed assets'!$Q$2:$Q$1000=Costs!M$617)*('Fixed assets'!$U$2:$U$1000=Costs!$A638)*('Fixed assets'!$S$2:$S$1000))+SUMPRODUCT(('Fixed assets'!$Q$2:$Q$1000=Costs!M$617)*('Fixed assets'!$P$2:$P$1000=Costs!$A638)*('Fixed assets'!$U$2:$U$1000=Costs!$A638)*('Fixed assets'!$R$2:$R$1000))","v":0},{"$f":"SUMPRODUCT(('Fixed assets'!$R$2:$R$1000)*('Fixed assets'!$P$2:$P$1000<$A638)*('Fixed assets'!$Q$2:$Q$1000=Costs!N$617))-SUMPRODUCT(('Fixed assets'!$S$2:$S$1000)*('Fixed assets'!$P$2:$P$1000<Costs!$A638)*('Fixed assets'!$Q$2:$Q$1000=Costs!N$617))-SUMPRODUCT(('Fixed assets'!$Q$2:$Q$1000=Costs!N$617)*('Fixed assets'!$U$2:$U$1000=Costs!$A638)*('Fixed assets'!$S$2:$S$1000))+SUMPRODUCT(('Fixed assets'!$Q$2:$Q$1000=Costs!N$617)*('Fixed assets'!$P$2:$P$1000=Costs!$A638)*('Fixed assets'!$U$2:$U$1000=Costs!$A638)*('Fixed assets'!$R$2:$R$1000))","v":0},{"$f":"SUMPRODUCT(('Fixed assets'!$R$2:$R$1000)*('Fixed assets'!$P$2:$P$1000<$A638)*('Fixed assets'!$Q$2:$Q$1000=Costs!O$617))-SUMPRODUCT(('Fixed assets'!$S$2:$S$1000)*('Fixed assets'!$P$2:$P$1000<Costs!$A638)*('Fixed assets'!$Q$2:$Q$1000=Costs!O$617))-SUMPRODUCT(('Fixed assets'!$Q$2:$Q$1000=Costs!O$617)*('Fixed assets'!$U$2:$U$1000=Costs!$A638)*('Fixed assets'!$S$2:$S$1000))+SUMPRODUCT(('Fixed assets'!$Q$2:$Q$1000=Costs!O$617)*('Fixed assets'!$P$2:$P$1000=Costs!$A638)*('Fixed assets'!$U$2:$U$1000=Costs!$A638)*('Fixed assets'!$R$2:$R$1000))","v":0},{"$f":"SUMPRODUCT(('Fixed assets'!$R$2:$R$1000)*('Fixed assets'!$P$2:$P$1000<$A638)*('Fixed assets'!$Q$2:$Q$1000=Costs!P$617))-SUMPRODUCT(('Fixed assets'!$S$2:$S$1000)*('Fixed assets'!$P$2:$P$1000<Costs!$A638)*('Fixed assets'!$Q$2:$Q$1000=Costs!P$617))-SUMPRODUCT(('Fixed assets'!$Q$2:$Q$1000=Costs!P$617)*('Fixed assets'!$U$2:$U$1000=Costs!$A638)*('Fixed assets'!$S$2:$S$1000))+SUMPRODUCT(('Fixed assets'!$Q$2:$Q$1000=Costs!P$617)*('Fixed assets'!$P$2:$P$1000=Costs!$A638)*('Fixed assets'!$U$2:$U$1000=Costs!$A638)*('Fixed assets'!$R$2:$R$1000))","v":0},{"$f":"SUMPRODUCT(('Fixed assets'!$R$2:$R$1000)*('Fixed assets'!$P$2:$P$1000<$A638)*('Fixed assets'!$Q$2:$Q$1000=Costs!Q$617))-SUMPRODUCT(('Fixed assets'!$S$2:$S$1000)*('Fixed assets'!$P$2:$P$1000<Costs!$A638)*('Fixed assets'!$Q$2:$Q$1000=Costs!Q$617))-SUMPRODUCT(('Fixed assets'!$Q$2:$Q$1000=Costs!Q$617)*('Fixed assets'!$U$2:$U$1000=Costs!$A638)*('Fixed assets'!$S$2:$S$1000))+SUMPRODUCT(('Fixed assets'!$Q$2:$Q$1000=Costs!Q$617)*('Fixed assets'!$P$2:$P$1000=Costs!$A638)*('Fixed assets'!$U$2:$U$1000=Costs!$A638)*('Fixed assets'!$R$2:$R$1000))","v":0},{"$f":"SUMPRODUCT(('Fixed assets'!$R$2:$R$1000)*('Fixed assets'!$P$2:$P$1000<$A638)*('Fixed assets'!$Q$2:$Q$1000=Costs!R$617))-SUMPRODUCT(('Fixed assets'!$S$2:$S$1000)*('Fixed assets'!$P$2:$P$1000<Costs!$A638)*('Fixed assets'!$Q$2:$Q$1000=Costs!R$617))-SUMPRODUCT(('Fixed assets'!$Q$2:$Q$1000=Costs!R$617)*('Fixed assets'!$U$2:$U$1000=Costs!$A638)*('Fixed assets'!$S$2:$S$1000))+SUMPRODUCT(('Fixed assets'!$Q$2:$Q$1000=Costs!R$617)*('Fixed assets'!$P$2:$P$1000=Costs!$A638)*('Fixed assets'!$U$2:$U$1000=Costs!$A638)*('Fixed assets'!$R$2:$R$1000))","v":0},{"$f":"SUMPRODUCT(('Fixed assets'!$R$2:$R$1000)*('Fixed assets'!$P$2:$P$1000<$A638)*('Fixed assets'!$Q$2:$Q$1000=Costs!S$617))-SUMPRODUCT(('Fixed assets'!$S$2:$S$1000)*('Fixed assets'!$P$2:$P$1000<Costs!$A638)*('Fixed assets'!$Q$2:$Q$1000=Costs!S$617))-SUMPRODUCT(('Fixed assets'!$Q$2:$Q$1000=Costs!S$617)*('Fixed assets'!$U$2:$U$1000=Costs!$A638)*('Fixed assets'!$S$2:$S$1000))+SUMPRODUCT(('Fixed assets'!$Q$2:$Q$1000=Costs!S$617)*('Fixed assets'!$P$2:$P$1000=Costs!$A638)*('Fixed assets'!$U$2:$U$1000=Costs!$A638)*('Fixed assets'!$R$2:$R$1000))","v":0},{"$f":"SUMPRODUCT(('Fixed assets'!$R$2:$R$1000)*('Fixed assets'!$P$2:$P$1000<$A638)*('Fixed assets'!$Q$2:$Q$1000=Costs!T$617))-SUMPRODUCT(('Fixed assets'!$S$2:$S$1000)*('Fixed assets'!$P$2:$P$1000<Costs!$A638)*('Fixed assets'!$Q$2:$Q$1000=Costs!T$617))-SUMPRODUCT(('Fixed assets'!$Q$2:$Q$1000=Costs!T$617)*('Fixed assets'!$U$2:$U$1000=Costs!$A638)*('Fixed assets'!$S$2:$S$1000))+SUMPRODUCT(('Fixed assets'!$Q$2:$Q$1000=Costs!T$617)*('Fixed assets'!$P$2:$P$1000=Costs!$A638)*('Fixed assets'!$U$2:$U$1000=Costs!$A638)*('Fixed assets'!$R$2:$R$1000))","v":0},{"$f":"SUMPRODUCT(('Fixed assets'!$R$2:$R$1000)*('Fixed assets'!$P$2:$P$1000<$A638)*('Fixed assets'!$Q$2:$Q$1000=Costs!U$617))-SUMPRODUCT(('Fixed assets'!$S$2:$S$1000)*('Fixed assets'!$P$2:$P$1000<Costs!$A638)*('Fixed assets'!$Q$2:$Q$1000=Costs!U$617))-SUMPRODUCT(('Fixed assets'!$Q$2:$Q$1000=Costs!U$617)*('Fixed assets'!$U$2:$U$1000=Costs!$A638)*('Fixed assets'!$S$2:$S$1000))+SUMPRODUCT(('Fixed assets'!$Q$2:$Q$1000=Costs!U$617)*('Fixed assets'!$P$2:$P$1000=Costs!$A638)*('Fixed assets'!$U$2:$U$1000=Costs!$A638)*('Fixed assets'!$R$2:$R$1000))","v":0},{"$f":"SUMPRODUCT(('Fixed assets'!$R$2:$R$1000)*('Fixed assets'!$P$2:$P$1000<$A638)*('Fixed assets'!$Q$2:$Q$1000=Costs!V$617))-SUMPRODUCT(('Fixed assets'!$S$2:$S$1000)*('Fixed assets'!$P$2:$P$1000<Costs!$A638)*('Fixed assets'!$Q$2:$Q$1000=Costs!V$617))-SUMPRODUCT(('Fixed assets'!$Q$2:$Q$1000=Costs!V$617)*('Fixed assets'!$U$2:$U$1000=Costs!$A638)*('Fixed assets'!$S$2:$S$1000))+SUMPRODUCT(('Fixed assets'!$Q$2:$Q$1000=Costs!V$617)*('Fixed assets'!$P$2:$P$1000=Costs!$A638)*('Fixed assets'!$U$2:$U$1000=Costs!$A638)*('Fixed assets'!$R$2:$R$1000))","v":0},{"$f":"SUMPRODUCT(('Fixed assets'!$R$2:$R$1000)*('Fixed assets'!$P$2:$P$1000<$A638)*('Fixed assets'!$Q$2:$Q$1000=Costs!W$617))-SUMPRODUCT(('Fixed assets'!$S$2:$S$1000)*('Fixed assets'!$P$2:$P$1000<Costs!$A638)*('Fixed assets'!$Q$2:$Q$1000=Costs!W$617))-SUMPRODUCT(('Fixed assets'!$Q$2:$Q$1000=Costs!W$617)*('Fixed assets'!$U$2:$U$1000=Costs!$A638)*('Fixed assets'!$S$2:$S$1000))+SUMPRODUCT(('Fixed assets'!$Q$2:$Q$1000=Costs!W$617)*('Fixed assets'!$P$2:$P$1000=Costs!$A638)*('Fixed assets'!$U$2:$U$1000=Costs!$A638)*('Fixed assets'!$R$2:$R$1000))","v":0},{"$f":"SUMPRODUCT(('Fixed assets'!$R$2:$R$1000)*('Fixed assets'!$P$2:$P$1000<$A638)*('Fixed assets'!$Q$2:$Q$1000=Costs!X$617))-SUMPRODUCT(('Fixed assets'!$S$2:$S$1000)*('Fixed assets'!$P$2:$P$1000<Costs!$A638)*('Fixed assets'!$Q$2:$Q$1000=Costs!X$617))-SUMPRODUCT(('Fixed assets'!$Q$2:$Q$1000=Costs!X$617)*('Fixed assets'!$U$2:$U$1000=Costs!$A638)*('Fixed assets'!$S$2:$S$1000))+SUMPRODUCT(('Fixed assets'!$Q$2:$Q$1000=Costs!X$617)*('Fixed assets'!$P$2:$P$1000=Costs!$A638)*('Fixed assets'!$U$2:$U$1000=Costs!$A638)*('Fixed assets'!$R$2:$R$1000))","v":0},{"$f":"SUMPRODUCT(('Fixed assets'!$R$2:$R$1000)*('Fixed assets'!$P$2:$P$1000<$A638)*('Fixed assets'!$Q$2:$Q$1000=Costs!Y$617))-SUMPRODUCT(('Fixed assets'!$S$2:$S$1000)*('Fixed assets'!$P$2:$P$1000<Costs!$A638)*('Fixed assets'!$Q$2:$Q$1000=Costs!Y$617))-SUMPRODUCT(('Fixed assets'!$Q$2:$Q$1000=Costs!Y$617)*('Fixed assets'!$U$2:$U$1000=Costs!$A638)*('Fixed assets'!$S$2:$S$1000))+SUMPRODUCT(('Fixed assets'!$Q$2:$Q$1000=Costs!Y$617)*('Fixed assets'!$P$2:$P$1000=Costs!$A638)*('Fixed assets'!$U$2:$U$1000=Costs!$A638)*('Fixed assets'!$R$2:$R$1000))","v":0},{"$f":"SUMPRODUCT(('Fixed assets'!$R$2:$R$1000)*('Fixed assets'!$P$2:$P$1000<$A638)*('Fixed assets'!$Q$2:$Q$1000=Costs!Z$617))-SUMPRODUCT(('Fixed assets'!$S$2:$S$1000)*('Fixed assets'!$P$2:$P$1000<Costs!$A638)*('Fixed assets'!$Q$2:$Q$1000=Costs!Z$617))-SUMPRODUCT(('Fixed assets'!$Q$2:$Q$1000=Costs!Z$617)*('Fixed assets'!$U$2:$U$1000=Costs!$A638)*('Fixed assets'!$S$2:$S$1000))+SUMPRODUCT(('Fixed assets'!$Q$2:$Q$1000=Costs!Z$617)*('Fixed assets'!$P$2:$P$1000=Costs!$A638)*('Fixed assets'!$U$2:$U$1000=Costs!$A638)*('Fixed assets'!$R$2:$R$1000))","v":0},{"$f":"SUMPRODUCT(('Fixed assets'!$R$2:$R$1000)*('Fixed assets'!$P$2:$P$1000<$A638)*('Fixed assets'!$Q$2:$Q$1000=Costs!AA$617))-SUMPRODUCT(('Fixed assets'!$S$2:$S$1000)*('Fixed assets'!$P$2:$P$1000<Costs!$A638)*('Fixed assets'!$Q$2:$Q$1000=Costs!AA$617))-SUMPRODUCT(('Fixed assets'!$Q$2:$Q$1000=Costs!AA$617)*('Fixed assets'!$U$2:$U$1000=Costs!$A638)*('Fixed assets'!$S$2:$S$1000))+SUMPRODUCT(('Fixed assets'!$Q$2:$Q$1000=Costs!AA$617)*('Fixed assets'!$P$2:$P$1000=Costs!$A638)*('Fixed assets'!$U$2:$U$1000=Costs!$A638)*('Fixed assets'!$R$2:$R$1000))","v":0},{"$f":"SUMPRODUCT(('Fixed assets'!$R$2:$R$1000)*('Fixed assets'!$P$2:$P$1000<$A638)*('Fixed assets'!$Q$2:$Q$1000=Costs!AB$617))-SUMPRODUCT(('Fixed assets'!$S$2:$S$1000)*('Fixed assets'!$P$2:$P$1000<Costs!$A638)*('Fixed assets'!$Q$2:$Q$1000=Costs!AB$617))-SUMPRODUCT(('Fixed assets'!$Q$2:$Q$1000=Costs!AB$617)*('Fixed assets'!$U$2:$U$1000=Costs!$A638)*('Fixed assets'!$S$2:$S$1000))+SUMPRODUCT(('Fixed assets'!$Q$2:$Q$1000=Costs!AB$617)*('Fixed assets'!$P$2:$P$1000=Costs!$A638)*('Fixed assets'!$U$2:$U$1000=Costs!$A638)*('Fixed assets'!$R$2:$R$1000))","v":0},{"$f":"SUMPRODUCT(('Fixed assets'!$R$2:$R$1000)*('Fixed assets'!$P$2:$P$1000<$A638)*('Fixed assets'!$Q$2:$Q$1000=Costs!AC$617))-SUMPRODUCT(('Fixed assets'!$S$2:$S$1000)*('Fixed assets'!$P$2:$P$1000<Costs!$A638)*('Fixed assets'!$Q$2:$Q$1000=Costs!AC$617))-SUMPRODUCT(('Fixed assets'!$Q$2:$Q$1000=Costs!AC$617)*('Fixed assets'!$U$2:$U$1000=Costs!$A638)*('Fixed assets'!$S$2:$S$1000))+SUMPRODUCT(('Fixed assets'!$Q$2:$Q$1000=Costs!AC$617)*('Fixed assets'!$P$2:$P$1000=Costs!$A638)*('Fixed assets'!$U$2:$U$1000=Costs!$A638)*('Fixed assets'!$R$2:$R$1000))","v":0},{"$f":"SUMPRODUCT(('Fixed assets'!$R$2:$R$1000)*('Fixed assets'!$P$2:$P$1000<$A638)*('Fixed assets'!$Q$2:$Q$1000=Costs!AD$617))-SUMPRODUCT(('Fixed assets'!$S$2:$S$1000)*('Fixed assets'!$P$2:$P$1000<Costs!$A638)*('Fixed assets'!$Q$2:$Q$1000=Costs!AD$617))-SUMPRODUCT(('Fixed assets'!$Q$2:$Q$1000=Costs!AD$617)*('Fixed assets'!$U$2:$U$1000=Costs!$A638)*('Fixed assets'!$S$2:$S$1000))+SUMPRODUCT(('Fixed assets'!$Q$2:$Q$1000=Costs!AD$617)*('Fixed assets'!$P$2:$P$1000=Costs!$A638)*('Fixed assets'!$U$2:$U$1000=Costs!$A638)*('Fixed assets'!$R$2:$R$1000))","v":0},{"$f":"SUMPRODUCT(('Fixed assets'!$R$2:$R$1000)*('Fixed assets'!$P$2:$P$1000<$A638)*('Fixed assets'!$Q$2:$Q$1000=Costs!AE$617))-SUMPRODUCT(('Fixed assets'!$S$2:$S$1000)*('Fixed assets'!$P$2:$P$1000<Costs!$A638)*('Fixed assets'!$Q$2:$Q$1000=Costs!AE$617))-SUMPRODUCT(('Fixed assets'!$Q$2:$Q$1000=Costs!AE$617)*('Fixed assets'!$U$2:$U$1000=Costs!$A638)*('Fixed assets'!$S$2:$S$1000))+SUMPRODUCT(('Fixed assets'!$Q$2:$Q$1000=Costs!AE$617)*('Fixed assets'!$P$2:$P$1000=Costs!$A638)*('Fixed assets'!$U$2:$U$1000=Costs!$A638)*('Fixed assets'!$R$2:$R$1000))","v":0},{"$f":"SUMPRODUCT(('Fixed assets'!$R$2:$R$1000)*('Fixed assets'!$P$2:$P$1000<$A638)*('Fixed assets'!$Q$2:$Q$1000=Costs!AF$617))-SUMPRODUCT(('Fixed assets'!$S$2:$S$1000)*('Fixed assets'!$P$2:$P$1000<Costs!$A638)*('Fixed assets'!$Q$2:$Q$1000=Costs!AF$617))-SUMPRODUCT(('Fixed assets'!$Q$2:$Q$1000=Costs!AF$617)*('Fixed assets'!$U$2:$U$1000=Costs!$A638)*('Fixed assets'!$S$2:$S$1000))+SUMPRODUCT(('Fixed assets'!$Q$2:$Q$1000=Costs!AF$617)*('Fixed assets'!$P$2:$P$1000=Costs!$A638)*('Fixed assets'!$U$2:$U$1000=Costs!$A638)*('Fixed assets'!$R$2:$R$1000))","v":0},{"$f":"SUMPRODUCT(('Fixed assets'!$R$2:$R$1000)*('Fixed assets'!$P$2:$P$1000<$A638)*('Fixed assets'!$Q$2:$Q$1000=Costs!AG$617))-SUMPRODUCT(('Fixed assets'!$S$2:$S$1000)*('Fixed assets'!$P$2:$P$1000<Costs!$A638)*('Fixed assets'!$Q$2:$Q$1000=Costs!AG$617))-SUMPRODUCT(('Fixed assets'!$Q$2:$Q$1000=Costs!AG$617)*('Fixed assets'!$U$2:$U$1000=Costs!$A638)*('Fixed assets'!$S$2:$S$1000))+SUMPRODUCT(('Fixed assets'!$Q$2:$Q$1000=Costs!AG$617)*('Fixed assets'!$P$2:$P$1000=Costs!$A638)*('Fixed assets'!$U$2:$U$1000=Costs!$A638)*('Fixed assets'!$R$2:$R$1000))","v":0},{"$f":"SUMPRODUCT(('Fixed assets'!$R$2:$R$1000)*('Fixed assets'!$P$2:$P$1000<$A638)*('Fixed assets'!$Q$2:$Q$1000=Costs!AH$617))-SUMPRODUCT(('Fixed assets'!$S$2:$S$1000)*('Fixed assets'!$P$2:$P$1000<Costs!$A638)*('Fixed assets'!$Q$2:$Q$1000=Costs!AH$617))-SUMPRODUCT(('Fixed assets'!$Q$2:$Q$1000=Costs!AH$617)*('Fixed assets'!$U$2:$U$1000=Costs!$A638)*('Fixed assets'!$S$2:$S$1000))+SUMPRODUCT(('Fixed assets'!$Q$2:$Q$1000=Costs!AH$617)*('Fixed assets'!$P$2:$P$1000=Costs!$A638)*('Fixed assets'!$U$2:$U$1000=Costs!$A638)*('Fixed assets'!$R$2:$R$1000))","v":0},{"$f":"SUMPRODUCT(('Fixed assets'!$R$2:$R$1000)*('Fixed assets'!$P$2:$P$1000<$A638)*('Fixed assets'!$Q$2:$Q$1000=Costs!AI$617))-SUMPRODUCT(('Fixed assets'!$S$2:$S$1000)*('Fixed assets'!$P$2:$P$1000<Costs!$A638)*('Fixed assets'!$Q$2:$Q$1000=Costs!AI$617))-SUMPRODUCT(('Fixed assets'!$Q$2:$Q$1000=Costs!AI$617)*('Fixed assets'!$U$2:$U$1000=Costs!$A638)*('Fixed assets'!$S$2:$S$1000))+SUMPRODUCT(('Fixed assets'!$Q$2:$Q$1000=Costs!AI$617)*('Fixed assets'!$P$2:$P$1000=Costs!$A638)*('Fixed assets'!$U$2:$U$1000=Costs!$A638)*('Fixed assets'!$R$2:$R$1000))","v":0},{"$f":"SUMPRODUCT(('Fixed assets'!$R$2:$R$1000)*('Fixed assets'!$P$2:$P$1000<$A638)*('Fixed assets'!$Q$2:$Q$1000=Costs!AJ$617))-SUMPRODUCT(('Fixed assets'!$S$2:$S$1000)*('Fixed assets'!$P$2:$P$1000<Costs!$A638)*('Fixed assets'!$Q$2:$Q$1000=Costs!AJ$617))-SUMPRODUCT(('Fixed assets'!$Q$2:$Q$1000=Costs!AJ$617)*('Fixed assets'!$U$2:$U$1000=Costs!$A638)*('Fixed assets'!$S$2:$S$1000))+SUMPRODUCT(('Fixed assets'!$Q$2:$Q$1000=Costs!AJ$617)*('Fixed assets'!$P$2:$P$1000=Costs!$A638)*('Fixed assets'!$U$2:$U$1000=Costs!$A638)*('Fixed assets'!$R$2:$R$1000))","v":0},{"$f":"SUMPRODUCT(('Fixed assets'!$R$2:$R$1000)*('Fixed assets'!$P$2:$P$1000<$A638)*('Fixed assets'!$Q$2:$Q$1000=Costs!AK$617))-SUMPRODUCT(('Fixed assets'!$S$2:$S$1000)*('Fixed assets'!$P$2:$P$1000<Costs!$A638)*('Fixed assets'!$Q$2:$Q$1000=Costs!AK$617))-SUMPRODUCT(('Fixed assets'!$Q$2:$Q$1000=Costs!AK$617)*('Fixed assets'!$U$2:$U$1000=Costs!$A638)*('Fixed assets'!$S$2:$S$1000))+SUMPRODUCT(('Fixed assets'!$Q$2:$Q$1000=Costs!AK$617)*('Fixed assets'!$P$2:$P$1000=Costs!$A638)*('Fixed assets'!$U$2:$U$1000=Costs!$A638)*('Fixed assets'!$R$2:$R$1000))","v":0},{"$f":"SUMPRODUCT(('Fixed assets'!$R$2:$R$1000)*('Fixed assets'!$P$2:$P$1000<$A638)*('Fixed assets'!$Q$2:$Q$1000=Costs!AL$617))-SUMPRODUCT(('Fixed assets'!$S$2:$S$1000)*('Fixed assets'!$P$2:$P$1000<Costs!$A638)*('Fixed assets'!$Q$2:$Q$1000=Costs!AL$617))-SUMPRODUCT(('Fixed assets'!$Q$2:$Q$1000=Costs!AL$617)*('Fixed assets'!$U$2:$U$1000=Costs!$A638)*('Fixed assets'!$S$2:$S$1000))+SUMPRODUCT(('Fixed assets'!$Q$2:$Q$1000=Costs!AL$617)*('Fixed assets'!$P$2:$P$1000=Costs!$A638)*('Fixed assets'!$U$2:$U$1000=Costs!$A638)*('Fixed assets'!$R$2:$R$1000))","v":0},{"$f":"SUMPRODUCT(('Fixed assets'!$R$2:$R$1000)*('Fixed assets'!$P$2:$P$1000<$A638)*('Fixed assets'!$Q$2:$Q$1000=Costs!AM$617))-SUMPRODUCT(('Fixed assets'!$S$2:$S$1000)*('Fixed assets'!$P$2:$P$1000<Costs!$A638)*('Fixed assets'!$Q$2:$Q$1000=Costs!AM$617))-SUMPRODUCT(('Fixed assets'!$Q$2:$Q$1000=Costs!AM$617)*('Fixed assets'!$U$2:$U$1000=Costs!$A638)*('Fixed assets'!$S$2:$S$1000))+SUMPRODUCT(('Fixed assets'!$Q$2:$Q$1000=Costs!AM$617)*('Fixed assets'!$P$2:$P$1000=Costs!$A638)*('Fixed assets'!$U$2:$U$1000=Costs!$A638)*('Fixed assets'!$R$2:$R$1000))","v":0},{"$f":"SUMPRODUCT(('Fixed assets'!$R$2:$R$1000)*('Fixed assets'!$P$2:$P$1000<$A638)*('Fixed assets'!$Q$2:$Q$1000=Costs!AN$617))-SUMPRODUCT(('Fixed assets'!$S$2:$S$1000)*('Fixed assets'!$P$2:$P$1000<Costs!$A638)*('Fixed assets'!$Q$2:$Q$1000=Costs!AN$617))-SUMPRODUCT(('Fixed assets'!$Q$2:$Q$1000=Costs!AN$617)*('Fixed assets'!$U$2:$U$1000=Costs!$A638)*('Fixed assets'!$S$2:$S$1000))+SUMPRODUCT(('Fixed assets'!$Q$2:$Q$1000=Costs!AN$617)*('Fixed assets'!$P$2:$P$1000=Costs!$A638)*('Fixed assets'!$U$2:$U$1000=Costs!$A638)*('Fixed assets'!$R$2:$R$1000))","v":0},{"$f":"SUMPRODUCT(('Fixed assets'!$R$2:$R$1000)*('Fixed assets'!$P$2:$P$1000<$A638)*('Fixed assets'!$Q$2:$Q$1000=Costs!AO$617))-SUMPRODUCT(('Fixed assets'!$S$2:$S$1000)*('Fixed assets'!$P$2:$P$1000<Costs!$A638)*('Fixed assets'!$Q$2:$Q$1000=Costs!AO$617))-SUMPRODUCT(('Fixed assets'!$Q$2:$Q$1000=Costs!AO$617)*('Fixed assets'!$U$2:$U$1000=Costs!$A638)*('Fixed assets'!$S$2:$S$1000))+SUMPRODUCT(('Fixed assets'!$Q$2:$Q$1000=Costs!AO$617)*('Fixed assets'!$P$2:$P$1000=Costs!$A638)*('Fixed assets'!$U$2:$U$1000=Costs!$A638)*('Fixed assets'!$R$2:$R$1000))","v":0},{"$f":"SUMPRODUCT(('Fixed assets'!$R$2:$R$1000)*('Fixed assets'!$P$2:$P$1000<$A638)*('Fixed assets'!$Q$2:$Q$1000=Costs!AP$617))-SUMPRODUCT(('Fixed assets'!$S$2:$S$1000)*('Fixed assets'!$P$2:$P$1000<Costs!$A638)*('Fixed assets'!$Q$2:$Q$1000=Costs!AP$617))-SUMPRODUCT(('Fixed assets'!$Q$2:$Q$1000=Costs!AP$617)*('Fixed assets'!$U$2:$U$1000=Costs!$A638)*('Fixed assets'!$S$2:$S$1000))+SUMPRODUCT(('Fixed assets'!$Q$2:$Q$1000=Costs!AP$617)*('Fixed assets'!$P$2:$P$1000=Costs!$A638)*('Fixed assets'!$U$2:$U$1000=Costs!$A638)*('Fixed assets'!$R$2:$R$1000))","v":0},{"$f":"SUMPRODUCT(('Fixed assets'!$R$2:$R$1000)*('Fixed assets'!$P$2:$P$1000<$A638)*('Fixed assets'!$Q$2:$Q$1000=Costs!AQ$617))-SUMPRODUCT(('Fixed assets'!$S$2:$S$1000)*('Fixed assets'!$P$2:$P$1000<Costs!$A638)*('Fixed assets'!$Q$2:$Q$1000=Costs!AQ$617))-SUMPRODUCT(('Fixed assets'!$Q$2:$Q$1000=Costs!AQ$617)*('Fixed assets'!$U$2:$U$1000=Costs!$A638)*('Fixed assets'!$S$2:$S$1000))+SUMPRODUCT(('Fixed assets'!$Q$2:$Q$1000=Costs!AQ$617)*('Fixed assets'!$P$2:$P$1000=Costs!$A638)*('Fixed assets'!$U$2:$U$1000=Costs!$A638)*('Fixed assets'!$R$2:$R$1000))","v":0}]
[2036,0,{"$f":"SUMPRODUCT(('Fixed assets'!$R$2:$R$1000)*('Fixed assets'!$P$2:$P$1000<$A639)*('Fixed assets'!$Q$2:$Q$1000=Costs!C$617))-SUMPRODUCT(('Fixed assets'!$S$2:$S$1000)*('Fixed assets'!$P$2:$P$1000<Costs!$A639)*('Fixed assets'!$Q$2:$Q$1000=Costs!C$617))-SUMPRODUCT(('Fixed assets'!$Q$2:$Q$1000=Costs!C$617)*('Fixed assets'!$U$2:$U$1000=Costs!$A639)*('Fixed assets'!$S$2:$S$1000))+SUMPRODUCT(('Fixed assets'!$Q$2:$Q$1000=Costs!C$617)*('Fixed assets'!$P$2:$P$1000=Costs!$A639)*('Fixed assets'!$U$2:$U$1000=Costs!$A639)*('Fixed assets'!$R$2:$R$1000))","v":0},{"$f":"SUMPRODUCT(('Fixed assets'!$R$2:$R$1000)*('Fixed assets'!$P$2:$P$1000<$A639)*('Fixed assets'!$Q$2:$Q$1000=Costs!D$617))-SUMPRODUCT(('Fixed assets'!$S$2:$S$1000)*('Fixed assets'!$P$2:$P$1000<Costs!$A639)*('Fixed assets'!$Q$2:$Q$1000=Costs!D$617))-SUMPRODUCT(('Fixed assets'!$Q$2:$Q$1000=Costs!D$617)*('Fixed assets'!$U$2:$U$1000=Costs!$A639)*('Fixed assets'!$S$2:$S$1000))+SUMPRODUCT(('Fixed assets'!$Q$2:$Q$1000=Costs!D$617)*('Fixed assets'!$P$2:$P$1000=Costs!$A639)*('Fixed assets'!$U$2:$U$1000=Costs!$A639)*('Fixed assets'!$R$2:$R$1000))","v":0},{"$f":"SUMPRODUCT(('Fixed assets'!$R$2:$R$1000)*('Fixed assets'!$P$2:$P$1000<$A639)*('Fixed assets'!$Q$2:$Q$1000=Costs!E$617))-SUMPRODUCT(('Fixed assets'!$S$2:$S$1000)*('Fixed assets'!$P$2:$P$1000<Costs!$A639)*('Fixed assets'!$Q$2:$Q$1000=Costs!E$617))-SUMPRODUCT(('Fixed assets'!$Q$2:$Q$1000=Costs!E$617)*('Fixed assets'!$U$2:$U$1000=Costs!$A639)*('Fixed assets'!$S$2:$S$1000))+SUMPRODUCT(('Fixed assets'!$Q$2:$Q$1000=Costs!E$617)*('Fixed assets'!$P$2:$P$1000=Costs!$A639)*('Fixed assets'!$U$2:$U$1000=Costs!$A639)*('Fixed assets'!$R$2:$R$1000))","v":0},{"$f":"SUMPRODUCT(('Fixed assets'!$R$2:$R$1000)*('Fixed assets'!$P$2:$P$1000<$A639)*('Fixed assets'!$Q$2:$Q$1000=Costs!F$617))-SUMPRODUCT(('Fixed assets'!$S$2:$S$1000)*('Fixed assets'!$P$2:$P$1000<Costs!$A639)*('Fixed assets'!$Q$2:$Q$1000=Costs!F$617))-SUMPRODUCT(('Fixed assets'!$Q$2:$Q$1000=Costs!F$617)*('Fixed assets'!$U$2:$U$1000=Costs!$A639)*('Fixed assets'!$S$2:$S$1000))+SUMPRODUCT(('Fixed assets'!$Q$2:$Q$1000=Costs!F$617)*('Fixed assets'!$P$2:$P$1000=Costs!$A639)*('Fixed assets'!$U$2:$U$1000=Costs!$A639)*('Fixed assets'!$R$2:$R$1000))","v":0},{"$f":"SUMPRODUCT(('Fixed assets'!$R$2:$R$1000)*('Fixed assets'!$P$2:$P$1000<$A639)*('Fixed assets'!$Q$2:$Q$1000=Costs!G$617))-SUMPRODUCT(('Fixed assets'!$S$2:$S$1000)*('Fixed assets'!$P$2:$P$1000<Costs!$A639)*('Fixed assets'!$Q$2:$Q$1000=Costs!G$617))-SUMPRODUCT(('Fixed assets'!$Q$2:$Q$1000=Costs!G$617)*('Fixed assets'!$U$2:$U$1000=Costs!$A639)*('Fixed assets'!$S$2:$S$1000))+SUMPRODUCT(('Fixed assets'!$Q$2:$Q$1000=Costs!G$617)*('Fixed assets'!$P$2:$P$1000=Costs!$A639)*('Fixed assets'!$U$2:$U$1000=Costs!$A639)*('Fixed assets'!$R$2:$R$1000))","v":0},{"$f":"SUMPRODUCT(('Fixed assets'!$R$2:$R$1000)*('Fixed assets'!$P$2:$P$1000<$A639)*('Fixed assets'!$Q$2:$Q$1000=Costs!H$617))-SUMPRODUCT(('Fixed assets'!$S$2:$S$1000)*('Fixed assets'!$P$2:$P$1000<Costs!$A639)*('Fixed assets'!$Q$2:$Q$1000=Costs!H$617))-SUMPRODUCT(('Fixed assets'!$Q$2:$Q$1000=Costs!H$617)*('Fixed assets'!$U$2:$U$1000=Costs!$A639)*('Fixed assets'!$S$2:$S$1000))+SUMPRODUCT(('Fixed assets'!$Q$2:$Q$1000=Costs!H$617)*('Fixed assets'!$P$2:$P$1000=Costs!$A639)*('Fixed assets'!$U$2:$U$1000=Costs!$A639)*('Fixed assets'!$R$2:$R$1000))","v":0},{"$f":"SUMPRODUCT(('Fixed assets'!$R$2:$R$1000)*('Fixed assets'!$P$2:$P$1000<$A639)*('Fixed assets'!$Q$2:$Q$1000=Costs!I$617))-SUMPRODUCT(('Fixed assets'!$S$2:$S$1000)*('Fixed assets'!$P$2:$P$1000<Costs!$A639)*('Fixed assets'!$Q$2:$Q$1000=Costs!I$617))-SUMPRODUCT(('Fixed assets'!$Q$2:$Q$1000=Costs!I$617)*('Fixed assets'!$U$2:$U$1000=Costs!$A639)*('Fixed assets'!$S$2:$S$1000))+SUMPRODUCT(('Fixed assets'!$Q$2:$Q$1000=Costs!I$617)*('Fixed assets'!$P$2:$P$1000=Costs!$A639)*('Fixed assets'!$U$2:$U$1000=Costs!$A639)*('Fixed assets'!$R$2:$R$1000))","v":0},{"$f":"SUMPRODUCT(('Fixed assets'!$R$2:$R$1000)*('Fixed assets'!$P$2:$P$1000<$A639)*('Fixed assets'!$Q$2:$Q$1000=Costs!J$617))-SUMPRODUCT(('Fixed assets'!$S$2:$S$1000)*('Fixed assets'!$P$2:$P$1000<Costs!$A639)*('Fixed assets'!$Q$2:$Q$1000=Costs!J$617))-SUMPRODUCT(('Fixed assets'!$Q$2:$Q$1000=Costs!J$617)*('Fixed assets'!$U$2:$U$1000=Costs!$A639)*('Fixed assets'!$S$2:$S$1000))+SUMPRODUCT(('Fixed assets'!$Q$2:$Q$1000=Costs!J$617)*('Fixed assets'!$P$2:$P$1000=Costs!$A639)*('Fixed assets'!$U$2:$U$1000=Costs!$A639)*('Fixed assets'!$R$2:$R$1000))","v":0},{"$f":"SUMPRODUCT(('Fixed assets'!$R$2:$R$1000)*('Fixed assets'!$P$2:$P$1000<$A639)*('Fixed assets'!$Q$2:$Q$1000=Costs!K$617))-SUMPRODUCT(('Fixed assets'!$S$2:$S$1000)*('Fixed assets'!$P$2:$P$1000<Costs!$A639)*('Fixed assets'!$Q$2:$Q$1000=Costs!K$617))-SUMPRODUCT(('Fixed assets'!$Q$2:$Q$1000=Costs!K$617)*('Fixed assets'!$U$2:$U$1000=Costs!$A639)*('Fixed assets'!$S$2:$S$1000))+SUMPRODUCT(('Fixed assets'!$Q$2:$Q$1000=Costs!K$617)*('Fixed assets'!$P$2:$P$1000=Costs!$A639)*('Fixed assets'!$U$2:$U$1000=Costs!$A639)*('Fixed assets'!$R$2:$R$1000))","v":0},{"$f":"SUMPRODUCT(('Fixed assets'!$R$2:$R$1000)*('Fixed assets'!$P$2:$P$1000<$A639)*('Fixed assets'!$Q$2:$Q$1000=Costs!L$617))-SUMPRODUCT(('Fixed assets'!$S$2:$S$1000)*('Fixed assets'!$P$2:$P$1000<Costs!$A639)*('Fixed assets'!$Q$2:$Q$1000=Costs!L$617))-SUMPRODUCT(('Fixed assets'!$Q$2:$Q$1000=Costs!L$617)*('Fixed assets'!$U$2:$U$1000=Costs!$A639)*('Fixed assets'!$S$2:$S$1000))+SUMPRODUCT(('Fixed assets'!$Q$2:$Q$1000=Costs!L$617)*('Fixed assets'!$P$2:$P$1000=Costs!$A639)*('Fixed assets'!$U$2:$U$1000=Costs!$A639)*('Fixed assets'!$R$2:$R$1000))","v":0},{"$f":"SUMPRODUCT(('Fixed assets'!$R$2:$R$1000)*('Fixed assets'!$P$2:$P$1000<$A639)*('Fixed assets'!$Q$2:$Q$1000=Costs!M$617))-SUMPRODUCT(('Fixed assets'!$S$2:$S$1000)*('Fixed assets'!$P$2:$P$1000<Costs!$A639)*('Fixed assets'!$Q$2:$Q$1000=Costs!M$617))-SUMPRODUCT(('Fixed assets'!$Q$2:$Q$1000=Costs!M$617)*('Fixed assets'!$U$2:$U$1000=Costs!$A639)*('Fixed assets'!$S$2:$S$1000))+SUMPRODUCT(('Fixed assets'!$Q$2:$Q$1000=Costs!M$617)*('Fixed assets'!$P$2:$P$1000=Costs!$A639)*('Fixed assets'!$U$2:$U$1000=Costs!$A639)*('Fixed assets'!$R$2:$R$1000))","v":0},{"$f":"SUMPRODUCT(('Fixed assets'!$R$2:$R$1000)*('Fixed assets'!$P$2:$P$1000<$A639)*('Fixed assets'!$Q$2:$Q$1000=Costs!N$617))-SUMPRODUCT(('Fixed assets'!$S$2:$S$1000)*('Fixed assets'!$P$2:$P$1000<Costs!$A639)*('Fixed assets'!$Q$2:$Q$1000=Costs!N$617))-SUMPRODUCT(('Fixed assets'!$Q$2:$Q$1000=Costs!N$617)*('Fixed assets'!$U$2:$U$1000=Costs!$A639)*('Fixed assets'!$S$2:$S$1000))+SUMPRODUCT(('Fixed assets'!$Q$2:$Q$1000=Costs!N$617)*('Fixed assets'!$P$2:$P$1000=Costs!$A639)*('Fixed assets'!$U$2:$U$1000=Costs!$A639)*('Fixed assets'!$R$2:$R$1000))","v":0},{"$f":"SUMPRODUCT(('Fixed assets'!$R$2:$R$1000)*('Fixed assets'!$P$2:$P$1000<$A639)*('Fixed assets'!$Q$2:$Q$1000=Costs!O$617))-SUMPRODUCT(('Fixed assets'!$S$2:$S$1000)*('Fixed assets'!$P$2:$P$1000<Costs!$A639)*('Fixed assets'!$Q$2:$Q$1000=Costs!O$617))-SUMPRODUCT(('Fixed assets'!$Q$2:$Q$1000=Costs!O$617)*('Fixed assets'!$U$2:$U$1000=Costs!$A639)*('Fixed assets'!$S$2:$S$1000))+SUMPRODUCT(('Fixed assets'!$Q$2:$Q$1000=Costs!O$617)*('Fixed assets'!$P$2:$P$1000=Costs!$A639)*('Fixed assets'!$U$2:$U$1000=Costs!$A639)*('Fixed assets'!$R$2:$R$1000))","v":0},{"$f":"SUMPRODUCT(('Fixed assets'!$R$2:$R$1000)*('Fixed assets'!$P$2:$P$1000<$A639)*('Fixed assets'!$Q$2:$Q$1000=Costs!P$617))-SUMPRODUCT(('Fixed assets'!$S$2:$S$1000)*('Fixed assets'!$P$2:$P$1000<Costs!$A639)*('Fixed assets'!$Q$2:$Q$1000=Costs!P$617))-SUMPRODUCT(('Fixed assets'!$Q$2:$Q$1000=Costs!P$617)*('Fixed assets'!$U$2:$U$1000=Costs!$A639)*('Fixed assets'!$S$2:$S$1000))+SUMPRODUCT(('Fixed assets'!$Q$2:$Q$1000=Costs!P$617)*('Fixed assets'!$P$2:$P$1000=Costs!$A639)*('Fixed assets'!$U$2:$U$1000=Costs!$A639)*('Fixed assets'!$R$2:$R$1000))","v":0},{"$f":"SUMPRODUCT(('Fixed assets'!$R$2:$R$1000)*('Fixed assets'!$P$2:$P$1000<$A639)*('Fixed assets'!$Q$2:$Q$1000=Costs!Q$617))-SUMPRODUCT(('Fixed assets'!$S$2:$S$1000)*('Fixed assets'!$P$2:$P$1000<Costs!$A639)*('Fixed assets'!$Q$2:$Q$1000=Costs!Q$617))-SUMPRODUCT(('Fixed assets'!$Q$2:$Q$1000=Costs!Q$617)*('Fixed assets'!$U$2:$U$1000=Costs!$A639)*('Fixed assets'!$S$2:$S$1000))+SUMPRODUCT(('Fixed assets'!$Q$2:$Q$1000=Costs!Q$617)*('Fixed assets'!$P$2:$P$1000=Costs!$A639)*('Fixed assets'!$U$2:$U$1000=Costs!$A639)*('Fixed assets'!$R$2:$R$1000))","v":0},{"$f":"SUMPRODUCT(('Fixed assets'!$R$2:$R$1000)*('Fixed assets'!$P$2:$P$1000<$A639)*('Fixed assets'!$Q$2:$Q$1000=Costs!R$617))-SUMPRODUCT(('Fixed assets'!$S$2:$S$1000)*('Fixed assets'!$P$2:$P$1000<Costs!$A639)*('Fixed assets'!$Q$2:$Q$1000=Costs!R$617))-SUMPRODUCT(('Fixed assets'!$Q$2:$Q$1000=Costs!R$617)*('Fixed assets'!$U$2:$U$1000=Costs!$A639)*('Fixed assets'!$S$2:$S$1000))+SUMPRODUCT(('Fixed assets'!$Q$2:$Q$1000=Costs!R$617)*('Fixed assets'!$P$2:$P$1000=Costs!$A639)*('Fixed assets'!$U$2:$U$1000=Costs!$A639)*('Fixed assets'!$R$2:$R$1000))","v":0},{"$f":"SUMPRODUCT(('Fixed assets'!$R$2:$R$1000)*('Fixed assets'!$P$2:$P$1000<$A639)*('Fixed assets'!$Q$2:$Q$1000=Costs!S$617))-SUMPRODUCT(('Fixed assets'!$S$2:$S$1000)*('Fixed assets'!$P$2:$P$1000<Costs!$A639)*('Fixed assets'!$Q$2:$Q$1000=Costs!S$617))-SUMPRODUCT(('Fixed assets'!$Q$2:$Q$1000=Costs!S$617)*('Fixed assets'!$U$2:$U$1000=Costs!$A639)*('Fixed assets'!$S$2:$S$1000))+SUMPRODUCT(('Fixed assets'!$Q$2:$Q$1000=Costs!S$617)*('Fixed assets'!$P$2:$P$1000=Costs!$A639)*('Fixed assets'!$U$2:$U$1000=Costs!$A639)*('Fixed assets'!$R$2:$R$1000))","v":0},{"$f":"SUMPRODUCT(('Fixed assets'!$R$2:$R$1000)*('Fixed assets'!$P$2:$P$1000<$A639)*('Fixed assets'!$Q$2:$Q$1000=Costs!T$617))-SUMPRODUCT(('Fixed assets'!$S$2:$S$1000)*('Fixed assets'!$P$2:$P$1000<Costs!$A639)*('Fixed assets'!$Q$2:$Q$1000=Costs!T$617))-SUMPRODUCT(('Fixed assets'!$Q$2:$Q$1000=Costs!T$617)*('Fixed assets'!$U$2:$U$1000=Costs!$A639)*('Fixed assets'!$S$2:$S$1000))+SUMPRODUCT(('Fixed assets'!$Q$2:$Q$1000=Costs!T$617)*('Fixed assets'!$P$2:$P$1000=Costs!$A639)*('Fixed assets'!$U$2:$U$1000=Costs!$A639)*('Fixed assets'!$R$2:$R$1000))","v":0},{"$f":"SUMPRODUCT(('Fixed assets'!$R$2:$R$1000)*('Fixed assets'!$P$2:$P$1000<$A639)*('Fixed assets'!$Q$2:$Q$1000=Costs!U$617))-SUMPRODUCT(('Fixed assets'!$S$2:$S$1000)*('Fixed assets'!$P$2:$P$1000<Costs!$A639)*('Fixed assets'!$Q$2:$Q$1000=Costs!U$617))-SUMPRODUCT(('Fixed assets'!$Q$2:$Q$1000=Costs!U$617)*('Fixed assets'!$U$2:$U$1000=Costs!$A639)*('Fixed assets'!$S$2:$S$1000))+SUMPRODUCT(('Fixed assets'!$Q$2:$Q$1000=Costs!U$617)*('Fixed assets'!$P$2:$P$1000=Costs!$A639)*('Fixed assets'!$U$2:$U$1000=Costs!$A639)*('Fixed assets'!$R$2:$R$1000))","v":0},{"$f":"SUMPRODUCT(('Fixed assets'!$R$2:$R$1000)*('Fixed assets'!$P$2:$P$1000<$A639)*('Fixed assets'!$Q$2:$Q$1000=Costs!V$617))-SUMPRODUCT(('Fixed assets'!$S$2:$S$1000)*('Fixed assets'!$P$2:$P$1000<Costs!$A639)*('Fixed assets'!$Q$2:$Q$1000=Costs!V$617))-SUMPRODUCT(('Fixed assets'!$Q$2:$Q$1000=Costs!V$617)*('Fixed assets'!$U$2:$U$1000=Costs!$A639)*('Fixed assets'!$S$2:$S$1000))+SUMPRODUCT(('Fixed assets'!$Q$2:$Q$1000=Costs!V$617)*('Fixed assets'!$P$2:$P$1000=Costs!$A639)*('Fixed assets'!$U$2:$U$1000=Costs!$A639)*('Fixed assets'!$R$2:$R$1000))","v":0},{"$f":"SUMPRODUCT(('Fixed assets'!$R$2:$R$1000)*('Fixed assets'!$P$2:$P$1000<$A639)*('Fixed assets'!$Q$2:$Q$1000=Costs!W$617))-SUMPRODUCT(('Fixed assets'!$S$2:$S$1000)*('Fixed assets'!$P$2:$P$1000<Costs!$A639)*('Fixed assets'!$Q$2:$Q$1000=Costs!W$617))-SUMPRODUCT(('Fixed assets'!$Q$2:$Q$1000=Costs!W$617)*('Fixed assets'!$U$2:$U$1000=Costs!$A639)*('Fixed assets'!$S$2:$S$1000))+SUMPRODUCT(('Fixed assets'!$Q$2:$Q$1000=Costs!W$617)*('Fixed assets'!$P$2:$P$1000=Costs!$A639)*('Fixed assets'!$U$2:$U$1000=Costs!$A639)*('Fixed assets'!$R$2:$R$1000))","v":0},{"$f":"SUMPRODUCT(('Fixed assets'!$R$2:$R$1000)*('Fixed assets'!$P$2:$P$1000<$A639)*('Fixed assets'!$Q$2:$Q$1000=Costs!X$617))-SUMPRODUCT(('Fixed assets'!$S$2:$S$1000)*('Fixed assets'!$P$2:$P$1000<Costs!$A639)*('Fixed assets'!$Q$2:$Q$1000=Costs!X$617))-SUMPRODUCT(('Fixed assets'!$Q$2:$Q$1000=Costs!X$617)*('Fixed assets'!$U$2:$U$1000=Costs!$A639)*('Fixed assets'!$S$2:$S$1000))+SUMPRODUCT(('Fixed assets'!$Q$2:$Q$1000=Costs!X$617)*('Fixed assets'!$P$2:$P$1000=Costs!$A639)*('Fixed assets'!$U$2:$U$1000=Costs!$A639)*('Fixed assets'!$R$2:$R$1000))","v":0},{"$f":"SUMPRODUCT(('Fixed assets'!$R$2:$R$1000)*('Fixed assets'!$P$2:$P$1000<$A639)*('Fixed assets'!$Q$2:$Q$1000=Costs!Y$617))-SUMPRODUCT(('Fixed assets'!$S$2:$S$1000)*('Fixed assets'!$P$2:$P$1000<Costs!$A639)*('Fixed assets'!$Q$2:$Q$1000=Costs!Y$617))-SUMPRODUCT(('Fixed assets'!$Q$2:$Q$1000=Costs!Y$617)*('Fixed assets'!$U$2:$U$1000=Costs!$A639)*('Fixed assets'!$S$2:$S$1000))+SUMPRODUCT(('Fixed assets'!$Q$2:$Q$1000=Costs!Y$617)*('Fixed assets'!$P$2:$P$1000=Costs!$A639)*('Fixed assets'!$U$2:$U$1000=Costs!$A639)*('Fixed assets'!$R$2:$R$1000))","v":0},{"$f":"SUMPRODUCT(('Fixed assets'!$R$2:$R$1000)*('Fixed assets'!$P$2:$P$1000<$A639)*('Fixed assets'!$Q$2:$Q$1000=Costs!Z$617))-SUMPRODUCT(('Fixed assets'!$S$2:$S$1000)*('Fixed assets'!$P$2:$P$1000<Costs!$A639)*('Fixed assets'!$Q$2:$Q$1000=Costs!Z$617))-SUMPRODUCT(('Fixed assets'!$Q$2:$Q$1000=Costs!Z$617)*('Fixed assets'!$U$2:$U$1000=Costs!$A639)*('Fixed assets'!$S$2:$S$1000))+SUMPRODUCT(('Fixed assets'!$Q$2:$Q$1000=Costs!Z$617)*('Fixed assets'!$P$2:$P$1000=Costs!$A639)*('Fixed assets'!$U$2:$U$1000=Costs!$A639)*('Fixed assets'!$R$2:$R$1000))","v":0},{"$f":"SUMPRODUCT(('Fixed assets'!$R$2:$R$1000)*('Fixed assets'!$P$2:$P$1000<$A639)*('Fixed assets'!$Q$2:$Q$1000=Costs!AA$617))-SUMPRODUCT(('Fixed assets'!$S$2:$S$1000)*('Fixed assets'!$P$2:$P$1000<Costs!$A639)*('Fixed assets'!$Q$2:$Q$1000=Costs!AA$617))-SUMPRODUCT(('Fixed assets'!$Q$2:$Q$1000=Costs!AA$617)*('Fixed assets'!$U$2:$U$1000=Costs!$A639)*('Fixed assets'!$S$2:$S$1000))+SUMPRODUCT(('Fixed assets'!$Q$2:$Q$1000=Costs!AA$617)*('Fixed assets'!$P$2:$P$1000=Costs!$A639)*('Fixed assets'!$U$2:$U$1000=Costs!$A639)*('Fixed assets'!$R$2:$R$1000))","v":0},{"$f":"SUMPRODUCT(('Fixed assets'!$R$2:$R$1000)*('Fixed assets'!$P$2:$P$1000<$A639)*('Fixed assets'!$Q$2:$Q$1000=Costs!AB$617))-SUMPRODUCT(('Fixed assets'!$S$2:$S$1000)*('Fixed assets'!$P$2:$P$1000<Costs!$A639)*('Fixed assets'!$Q$2:$Q$1000=Costs!AB$617))-SUMPRODUCT(('Fixed assets'!$Q$2:$Q$1000=Costs!AB$617)*('Fixed assets'!$U$2:$U$1000=Costs!$A639)*('Fixed assets'!$S$2:$S$1000))+SUMPRODUCT(('Fixed assets'!$Q$2:$Q$1000=Costs!AB$617)*('Fixed assets'!$P$2:$P$1000=Costs!$A639)*('Fixed assets'!$U$2:$U$1000=Costs!$A639)*('Fixed assets'!$R$2:$R$1000))","v":0},{"$f":"SUMPRODUCT(('Fixed assets'!$R$2:$R$1000)*('Fixed assets'!$P$2:$P$1000<$A639)*('Fixed assets'!$Q$2:$Q$1000=Costs!AC$617))-SUMPRODUCT(('Fixed assets'!$S$2:$S$1000)*('Fixed assets'!$P$2:$P$1000<Costs!$A639)*('Fixed assets'!$Q$2:$Q$1000=Costs!AC$617))-SUMPRODUCT(('Fixed assets'!$Q$2:$Q$1000=Costs!AC$617)*('Fixed assets'!$U$2:$U$1000=Costs!$A639)*('Fixed assets'!$S$2:$S$1000))+SUMPRODUCT(('Fixed assets'!$Q$2:$Q$1000=Costs!AC$617)*('Fixed assets'!$P$2:$P$1000=Costs!$A639)*('Fixed assets'!$U$2:$U$1000=Costs!$A639)*('Fixed assets'!$R$2:$R$1000))","v":0},{"$f":"SUMPRODUCT(('Fixed assets'!$R$2:$R$1000)*('Fixed assets'!$P$2:$P$1000<$A639)*('Fixed assets'!$Q$2:$Q$1000=Costs!AD$617))-SUMPRODUCT(('Fixed assets'!$S$2:$S$1000)*('Fixed assets'!$P$2:$P$1000<Costs!$A639)*('Fixed assets'!$Q$2:$Q$1000=Costs!AD$617))-SUMPRODUCT(('Fixed assets'!$Q$2:$Q$1000=Costs!AD$617)*('Fixed assets'!$U$2:$U$1000=Costs!$A639)*('Fixed assets'!$S$2:$S$1000))+SUMPRODUCT(('Fixed assets'!$Q$2:$Q$1000=Costs!AD$617)*('Fixed assets'!$P$2:$P$1000=Costs!$A639)*('Fixed assets'!$U$2:$U$1000=Costs!$A639)*('Fixed assets'!$R$2:$R$1000))","v":0},{"$f":"SUMPRODUCT(('Fixed assets'!$R$2:$R$1000)*('Fixed assets'!$P$2:$P$1000<$A639)*('Fixed assets'!$Q$2:$Q$1000=Costs!AE$617))-SUMPRODUCT(('Fixed assets'!$S$2:$S$1000)*('Fixed assets'!$P$2:$P$1000<Costs!$A639)*('Fixed assets'!$Q$2:$Q$1000=Costs!AE$617))-SUMPRODUCT(('Fixed assets'!$Q$2:$Q$1000=Costs!AE$617)*('Fixed assets'!$U$2:$U$1000=Costs!$A639)*('Fixed assets'!$S$2:$S$1000))+SUMPRODUCT(('Fixed assets'!$Q$2:$Q$1000=Costs!AE$617)*('Fixed assets'!$P$2:$P$1000=Costs!$A639)*('Fixed assets'!$U$2:$U$1000=Costs!$A639)*('Fixed assets'!$R$2:$R$1000))","v":0},{"$f":"SUMPRODUCT(('Fixed assets'!$R$2:$R$1000)*('Fixed assets'!$P$2:$P$1000<$A639)*('Fixed assets'!$Q$2:$Q$1000=Costs!AF$617))-SUMPRODUCT(('Fixed assets'!$S$2:$S$1000)*('Fixed assets'!$P$2:$P$1000<Costs!$A639)*('Fixed assets'!$Q$2:$Q$1000=Costs!AF$617))-SUMPRODUCT(('Fixed assets'!$Q$2:$Q$1000=Costs!AF$617)*('Fixed assets'!$U$2:$U$1000=Costs!$A639)*('Fixed assets'!$S$2:$S$1000))+SUMPRODUCT(('Fixed assets'!$Q$2:$Q$1000=Costs!AF$617)*('Fixed assets'!$P$2:$P$1000=Costs!$A639)*('Fixed assets'!$U$2:$U$1000=Costs!$A639)*('Fixed assets'!$R$2:$R$1000))","v":0},{"$f":"SUMPRODUCT(('Fixed assets'!$R$2:$R$1000)*('Fixed assets'!$P$2:$P$1000<$A639)*('Fixed assets'!$Q$2:$Q$1000=Costs!AG$617))-SUMPRODUCT(('Fixed assets'!$S$2:$S$1000)*('Fixed assets'!$P$2:$P$1000<Costs!$A639)*('Fixed assets'!$Q$2:$Q$1000=Costs!AG$617))-SUMPRODUCT(('Fixed assets'!$Q$2:$Q$1000=Costs!AG$617)*('Fixed assets'!$U$2:$U$1000=Costs!$A639)*('Fixed assets'!$S$2:$S$1000))+SUMPRODUCT(('Fixed assets'!$Q$2:$Q$1000=Costs!AG$617)*('Fixed assets'!$P$2:$P$1000=Costs!$A639)*('Fixed assets'!$U$2:$U$1000=Costs!$A639)*('Fixed assets'!$R$2:$R$1000))","v":0},{"$f":"SUMPRODUCT(('Fixed assets'!$R$2:$R$1000)*('Fixed assets'!$P$2:$P$1000<$A639)*('Fixed assets'!$Q$2:$Q$1000=Costs!AH$617))-SUMPRODUCT(('Fixed assets'!$S$2:$S$1000)*('Fixed assets'!$P$2:$P$1000<Costs!$A639)*('Fixed assets'!$Q$2:$Q$1000=Costs!AH$617))-SUMPRODUCT(('Fixed assets'!$Q$2:$Q$1000=Costs!AH$617)*('Fixed assets'!$U$2:$U$1000=Costs!$A639)*('Fixed assets'!$S$2:$S$1000))+SUMPRODUCT(('Fixed assets'!$Q$2:$Q$1000=Costs!AH$617)*('Fixed assets'!$P$2:$P$1000=Costs!$A639)*('Fixed assets'!$U$2:$U$1000=Costs!$A639)*('Fixed assets'!$R$2:$R$1000))","v":0},{"$f":"SUMPRODUCT(('Fixed assets'!$R$2:$R$1000)*('Fixed assets'!$P$2:$P$1000<$A639)*('Fixed assets'!$Q$2:$Q$1000=Costs!AI$617))-SUMPRODUCT(('Fixed assets'!$S$2:$S$1000)*('Fixed assets'!$P$2:$P$1000<Costs!$A639)*('Fixed assets'!$Q$2:$Q$1000=Costs!AI$617))-SUMPRODUCT(('Fixed assets'!$Q$2:$Q$1000=Costs!AI$617)*('Fixed assets'!$U$2:$U$1000=Costs!$A639)*('Fixed assets'!$S$2:$S$1000))+SUMPRODUCT(('Fixed assets'!$Q$2:$Q$1000=Costs!AI$617)*('Fixed assets'!$P$2:$P$1000=Costs!$A639)*('Fixed assets'!$U$2:$U$1000=Costs!$A639)*('Fixed assets'!$R$2:$R$1000))","v":0},{"$f":"SUMPRODUCT(('Fixed assets'!$R$2:$R$1000)*('Fixed assets'!$P$2:$P$1000<$A639)*('Fixed assets'!$Q$2:$Q$1000=Costs!AJ$617))-SUMPRODUCT(('Fixed assets'!$S$2:$S$1000)*('Fixed assets'!$P$2:$P$1000<Costs!$A639)*('Fixed assets'!$Q$2:$Q$1000=Costs!AJ$617))-SUMPRODUCT(('Fixed assets'!$Q$2:$Q$1000=Costs!AJ$617)*('Fixed assets'!$U$2:$U$1000=Costs!$A639)*('Fixed assets'!$S$2:$S$1000))+SUMPRODUCT(('Fixed assets'!$Q$2:$Q$1000=Costs!AJ$617)*('Fixed assets'!$P$2:$P$1000=Costs!$A639)*('Fixed assets'!$U$2:$U$1000=Costs!$A639)*('Fixed assets'!$R$2:$R$1000))","v":0},{"$f":"SUMPRODUCT(('Fixed assets'!$R$2:$R$1000)*('Fixed assets'!$P$2:$P$1000<$A639)*('Fixed assets'!$Q$2:$Q$1000=Costs!AK$617))-SUMPRODUCT(('Fixed assets'!$S$2:$S$1000)*('Fixed assets'!$P$2:$P$1000<Costs!$A639)*('Fixed assets'!$Q$2:$Q$1000=Costs!AK$617))-SUMPRODUCT(('Fixed assets'!$Q$2:$Q$1000=Costs!AK$617)*('Fixed assets'!$U$2:$U$1000=Costs!$A639)*('Fixed assets'!$S$2:$S$1000))+SUMPRODUCT(('Fixed assets'!$Q$2:$Q$1000=Costs!AK$617)*('Fixed assets'!$P$2:$P$1000=Costs!$A639)*('Fixed assets'!$U$2:$U$1000=Costs!$A639)*('Fixed assets'!$R$2:$R$1000))","v":0},{"$f":"SUMPRODUCT(('Fixed assets'!$R$2:$R$1000)*('Fixed assets'!$P$2:$P$1000<$A639)*('Fixed assets'!$Q$2:$Q$1000=Costs!AL$617))-SUMPRODUCT(('Fixed assets'!$S$2:$S$1000)*('Fixed assets'!$P$2:$P$1000<Costs!$A639)*('Fixed assets'!$Q$2:$Q$1000=Costs!AL$617))-SUMPRODUCT(('Fixed assets'!$Q$2:$Q$1000=Costs!AL$617)*('Fixed assets'!$U$2:$U$1000=Costs!$A639)*('Fixed assets'!$S$2:$S$1000))+SUMPRODUCT(('Fixed assets'!$Q$2:$Q$1000=Costs!AL$617)*('Fixed assets'!$P$2:$P$1000=Costs!$A639)*('Fixed assets'!$U$2:$U$1000=Costs!$A639)*('Fixed assets'!$R$2:$R$1000))","v":0},{"$f":"SUMPRODUCT(('Fixed assets'!$R$2:$R$1000)*('Fixed assets'!$P$2:$P$1000<$A639)*('Fixed assets'!$Q$2:$Q$1000=Costs!AM$617))-SUMPRODUCT(('Fixed assets'!$S$2:$S$1000)*('Fixed assets'!$P$2:$P$1000<Costs!$A639)*('Fixed assets'!$Q$2:$Q$1000=Costs!AM$617))-SUMPRODUCT(('Fixed assets'!$Q$2:$Q$1000=Costs!AM$617)*('Fixed assets'!$U$2:$U$1000=Costs!$A639)*('Fixed assets'!$S$2:$S$1000))+SUMPRODUCT(('Fixed assets'!$Q$2:$Q$1000=Costs!AM$617)*('Fixed assets'!$P$2:$P$1000=Costs!$A639)*('Fixed assets'!$U$2:$U$1000=Costs!$A639)*('Fixed assets'!$R$2:$R$1000))","v":0},{"$f":"SUMPRODUCT(('Fixed assets'!$R$2:$R$1000)*('Fixed assets'!$P$2:$P$1000<$A639)*('Fixed assets'!$Q$2:$Q$1000=Costs!AN$617))-SUMPRODUCT(('Fixed assets'!$S$2:$S$1000)*('Fixed assets'!$P$2:$P$1000<Costs!$A639)*('Fixed assets'!$Q$2:$Q$1000=Costs!AN$617))-SUMPRODUCT(('Fixed assets'!$Q$2:$Q$1000=Costs!AN$617)*('Fixed assets'!$U$2:$U$1000=Costs!$A639)*('Fixed assets'!$S$2:$S$1000))+SUMPRODUCT(('Fixed assets'!$Q$2:$Q$1000=Costs!AN$617)*('Fixed assets'!$P$2:$P$1000=Costs!$A639)*('Fixed assets'!$U$2:$U$1000=Costs!$A639)*('Fixed assets'!$R$2:$R$1000))","v":0},{"$f":"SUMPRODUCT(('Fixed assets'!$R$2:$R$1000)*('Fixed assets'!$P$2:$P$1000<$A639)*('Fixed assets'!$Q$2:$Q$1000=Costs!AO$617))-SUMPRODUCT(('Fixed assets'!$S$2:$S$1000)*('Fixed assets'!$P$2:$P$1000<Costs!$A639)*('Fixed assets'!$Q$2:$Q$1000=Costs!AO$617))-SUMPRODUCT(('Fixed assets'!$Q$2:$Q$1000=Costs!AO$617)*('Fixed assets'!$U$2:$U$1000=Costs!$A639)*('Fixed assets'!$S$2:$S$1000))+SUMPRODUCT(('Fixed assets'!$Q$2:$Q$1000=Costs!AO$617)*('Fixed assets'!$P$2:$P$1000=Costs!$A639)*('Fixed assets'!$U$2:$U$1000=Costs!$A639)*('Fixed assets'!$R$2:$R$1000))","v":0},{"$f":"SUMPRODUCT(('Fixed assets'!$R$2:$R$1000)*('Fixed assets'!$P$2:$P$1000<$A639)*('Fixed assets'!$Q$2:$Q$1000=Costs!AP$617))-SUMPRODUCT(('Fixed assets'!$S$2:$S$1000)*('Fixed assets'!$P$2:$P$1000<Costs!$A639)*('Fixed assets'!$Q$2:$Q$1000=Costs!AP$617))-SUMPRODUCT(('Fixed assets'!$Q$2:$Q$1000=Costs!AP$617)*('Fixed assets'!$U$2:$U$1000=Costs!$A639)*('Fixed assets'!$S$2:$S$1000))+SUMPRODUCT(('Fixed assets'!$Q$2:$Q$1000=Costs!AP$617)*('Fixed assets'!$P$2:$P$1000=Costs!$A639)*('Fixed assets'!$U$2:$U$1000=Costs!$A639)*('Fixed assets'!$R$2:$R$1000))","v":0},{"$f":"SUMPRODUCT(('Fixed assets'!$R$2:$R$1000)*('Fixed assets'!$P$2:$P$1000<$A639)*('Fixed assets'!$Q$2:$Q$1000=Costs!AQ$617))-SUMPRODUCT(('Fixed assets'!$S$2:$S$1000)*('Fixed assets'!$P$2:$P$1000<Costs!$A639)*('Fixed assets'!$Q$2:$Q$1000=Costs!AQ$617))-SUMPRODUCT(('Fixed assets'!$Q$2:$Q$1000=Costs!AQ$617)*('Fixed assets'!$U$2:$U$1000=Costs!$A639)*('Fixed assets'!$S$2:$S$1000))+SUMPRODUCT(('Fixed assets'!$Q$2:$Q$1000=Costs!AQ$617)*('Fixed assets'!$P$2:$P$1000=Costs!$A639)*('Fixed assets'!$U$2:$U$1000=Costs!$A639)*('Fixed assets'!$R$2:$R$1000))","v":0}]
[2037,0,{"$f":"SUMPRODUCT(('Fixed assets'!$R$2:$R$1000)*('Fixed assets'!$P$2:$P$1000<$A640)*('Fixed assets'!$Q$2:$Q$1000=Costs!C$617))-SUMPRODUCT(('Fixed assets'!$S$2:$S$1000)*('Fixed assets'!$P$2:$P$1000<Costs!$A640)*('Fixed assets'!$Q$2:$Q$1000=Costs!C$617))-SUMPRODUCT(('Fixed assets'!$Q$2:$Q$1000=Costs!C$617)*('Fixed assets'!$U$2:$U$1000=Costs!$A640)*('Fixed assets'!$S$2:$S$1000))+SUMPRODUCT(('Fixed assets'!$Q$2:$Q$1000=Costs!C$617)*('Fixed assets'!$P$2:$P$1000=Costs!$A640)*('Fixed assets'!$U$2:$U$1000=Costs!$A640)*('Fixed assets'!$R$2:$R$1000))","v":0},{"$f":"SUMPRODUCT(('Fixed assets'!$R$2:$R$1000)*('Fixed assets'!$P$2:$P$1000<$A640)*('Fixed assets'!$Q$2:$Q$1000=Costs!D$617))-SUMPRODUCT(('Fixed assets'!$S$2:$S$1000)*('Fixed assets'!$P$2:$P$1000<Costs!$A640)*('Fixed assets'!$Q$2:$Q$1000=Costs!D$617))-SUMPRODUCT(('Fixed assets'!$Q$2:$Q$1000=Costs!D$617)*('Fixed assets'!$U$2:$U$1000=Costs!$A640)*('Fixed assets'!$S$2:$S$1000))+SUMPRODUCT(('Fixed assets'!$Q$2:$Q$1000=Costs!D$617)*('Fixed assets'!$P$2:$P$1000=Costs!$A640)*('Fixed assets'!$U$2:$U$1000=Costs!$A640)*('Fixed assets'!$R$2:$R$1000))","v":0},{"$f":"SUMPRODUCT(('Fixed assets'!$R$2:$R$1000)*('Fixed assets'!$P$2:$P$1000<$A640)*('Fixed assets'!$Q$2:$Q$1000=Costs!E$617))-SUMPRODUCT(('Fixed assets'!$S$2:$S$1000)*('Fixed assets'!$P$2:$P$1000<Costs!$A640)*('Fixed assets'!$Q$2:$Q$1000=Costs!E$617))-SUMPRODUCT(('Fixed assets'!$Q$2:$Q$1000=Costs!E$617)*('Fixed assets'!$U$2:$U$1000=Costs!$A640)*('Fixed assets'!$S$2:$S$1000))+SUMPRODUCT(('Fixed assets'!$Q$2:$Q$1000=Costs!E$617)*('Fixed assets'!$P$2:$P$1000=Costs!$A640)*('Fixed assets'!$U$2:$U$1000=Costs!$A640)*('Fixed assets'!$R$2:$R$1000))","v":0},{"$f":"SUMPRODUCT(('Fixed assets'!$R$2:$R$1000)*('Fixed assets'!$P$2:$P$1000<$A640)*('Fixed assets'!$Q$2:$Q$1000=Costs!F$617))-SUMPRODUCT(('Fixed assets'!$S$2:$S$1000)*('Fixed assets'!$P$2:$P$1000<Costs!$A640)*('Fixed assets'!$Q$2:$Q$1000=Costs!F$617))-SUMPRODUCT(('Fixed assets'!$Q$2:$Q$1000=Costs!F$617)*('Fixed assets'!$U$2:$U$1000=Costs!$A640)*('Fixed assets'!$S$2:$S$1000))+SUMPRODUCT(('Fixed assets'!$Q$2:$Q$1000=Costs!F$617)*('Fixed assets'!$P$2:$P$1000=Costs!$A640)*('Fixed assets'!$U$2:$U$1000=Costs!$A640)*('Fixed assets'!$R$2:$R$1000))","v":0},{"$f":"SUMPRODUCT(('Fixed assets'!$R$2:$R$1000)*('Fixed assets'!$P$2:$P$1000<$A640)*('Fixed assets'!$Q$2:$Q$1000=Costs!G$617))-SUMPRODUCT(('Fixed assets'!$S$2:$S$1000)*('Fixed assets'!$P$2:$P$1000<Costs!$A640)*('Fixed assets'!$Q$2:$Q$1000=Costs!G$617))-SUMPRODUCT(('Fixed assets'!$Q$2:$Q$1000=Costs!G$617)*('Fixed assets'!$U$2:$U$1000=Costs!$A640)*('Fixed assets'!$S$2:$S$1000))+SUMPRODUCT(('Fixed assets'!$Q$2:$Q$1000=Costs!G$617)*('Fixed assets'!$P$2:$P$1000=Costs!$A640)*('Fixed assets'!$U$2:$U$1000=Costs!$A640)*('Fixed assets'!$R$2:$R$1000))","v":0},{"$f":"SUMPRODUCT(('Fixed assets'!$R$2:$R$1000)*('Fixed assets'!$P$2:$P$1000<$A640)*('Fixed assets'!$Q$2:$Q$1000=Costs!H$617))-SUMPRODUCT(('Fixed assets'!$S$2:$S$1000)*('Fixed assets'!$P$2:$P$1000<Costs!$A640)*('Fixed assets'!$Q$2:$Q$1000=Costs!H$617))-SUMPRODUCT(('Fixed assets'!$Q$2:$Q$1000=Costs!H$617)*('Fixed assets'!$U$2:$U$1000=Costs!$A640)*('Fixed assets'!$S$2:$S$1000))+SUMPRODUCT(('Fixed assets'!$Q$2:$Q$1000=Costs!H$617)*('Fixed assets'!$P$2:$P$1000=Costs!$A640)*('Fixed assets'!$U$2:$U$1000=Costs!$A640)*('Fixed assets'!$R$2:$R$1000))","v":0},{"$f":"SUMPRODUCT(('Fixed assets'!$R$2:$R$1000)*('Fixed assets'!$P$2:$P$1000<$A640)*('Fixed assets'!$Q$2:$Q$1000=Costs!I$617))-SUMPRODUCT(('Fixed assets'!$S$2:$S$1000)*('Fixed assets'!$P$2:$P$1000<Costs!$A640)*('Fixed assets'!$Q$2:$Q$1000=Costs!I$617))-SUMPRODUCT(('Fixed assets'!$Q$2:$Q$1000=Costs!I$617)*('Fixed assets'!$U$2:$U$1000=Costs!$A640)*('Fixed assets'!$S$2:$S$1000))+SUMPRODUCT(('Fixed assets'!$Q$2:$Q$1000=Costs!I$617)*('Fixed assets'!$P$2:$P$1000=Costs!$A640)*('Fixed assets'!$U$2:$U$1000=Costs!$A640)*('Fixed assets'!$R$2:$R$1000))","v":0},{"$f":"SUMPRODUCT(('Fixed assets'!$R$2:$R$1000)*('Fixed assets'!$P$2:$P$1000<$A640)*('Fixed assets'!$Q$2:$Q$1000=Costs!J$617))-SUMPRODUCT(('Fixed assets'!$S$2:$S$1000)*('Fixed assets'!$P$2:$P$1000<Costs!$A640)*('Fixed assets'!$Q$2:$Q$1000=Costs!J$617))-SUMPRODUCT(('Fixed assets'!$Q$2:$Q$1000=Costs!J$617)*('Fixed assets'!$U$2:$U$1000=Costs!$A640)*('Fixed assets'!$S$2:$S$1000))+SUMPRODUCT(('Fixed assets'!$Q$2:$Q$1000=Costs!J$617)*('Fixed assets'!$P$2:$P$1000=Costs!$A640)*('Fixed assets'!$U$2:$U$1000=Costs!$A640)*('Fixed assets'!$R$2:$R$1000))","v":0},{"$f":"SUMPRODUCT(('Fixed assets'!$R$2:$R$1000)*('Fixed assets'!$P$2:$P$1000<$A640)*('Fixed assets'!$Q$2:$Q$1000=Costs!K$617))-SUMPRODUCT(('Fixed assets'!$S$2:$S$1000)*('Fixed assets'!$P$2:$P$1000<Costs!$A640)*('Fixed assets'!$Q$2:$Q$1000=Costs!K$617))-SUMPRODUCT(('Fixed assets'!$Q$2:$Q$1000=Costs!K$617)*('Fixed assets'!$U$2:$U$1000=Costs!$A640)*('Fixed assets'!$S$2:$S$1000))+SUMPRODUCT(('Fixed assets'!$Q$2:$Q$1000=Costs!K$617)*('Fixed assets'!$P$2:$P$1000=Costs!$A640)*('Fixed assets'!$U$2:$U$1000=Costs!$A640)*('Fixed assets'!$R$2:$R$1000))","v":0},{"$f":"SUMPRODUCT(('Fixed assets'!$R$2:$R$1000)*('Fixed assets'!$P$2:$P$1000<$A640)*('Fixed assets'!$Q$2:$Q$1000=Costs!L$617))-SUMPRODUCT(('Fixed assets'!$S$2:$S$1000)*('Fixed assets'!$P$2:$P$1000<Costs!$A640)*('Fixed assets'!$Q$2:$Q$1000=Costs!L$617))-SUMPRODUCT(('Fixed assets'!$Q$2:$Q$1000=Costs!L$617)*('Fixed assets'!$U$2:$U$1000=Costs!$A640)*('Fixed assets'!$S$2:$S$1000))+SUMPRODUCT(('Fixed assets'!$Q$2:$Q$1000=Costs!L$617)*('Fixed assets'!$P$2:$P$1000=Costs!$A640)*('Fixed assets'!$U$2:$U$1000=Costs!$A640)*('Fixed assets'!$R$2:$R$1000))","v":0},{"$f":"SUMPRODUCT(('Fixed assets'!$R$2:$R$1000)*('Fixed assets'!$P$2:$P$1000<$A640)*('Fixed assets'!$Q$2:$Q$1000=Costs!M$617))-SUMPRODUCT(('Fixed assets'!$S$2:$S$1000)*('Fixed assets'!$P$2:$P$1000<Costs!$A640)*('Fixed assets'!$Q$2:$Q$1000=Costs!M$617))-SUMPRODUCT(('Fixed assets'!$Q$2:$Q$1000=Costs!M$617)*('Fixed assets'!$U$2:$U$1000=Costs!$A640)*('Fixed assets'!$S$2:$S$1000))+SUMPRODUCT(('Fixed assets'!$Q$2:$Q$1000=Costs!M$617)*('Fixed assets'!$P$2:$P$1000=Costs!$A640)*('Fixed assets'!$U$2:$U$1000=Costs!$A640)*('Fixed assets'!$R$2:$R$1000))","v":0},{"$f":"SUMPRODUCT(('Fixed assets'!$R$2:$R$1000)*('Fixed assets'!$P$2:$P$1000<$A640)*('Fixed assets'!$Q$2:$Q$1000=Costs!N$617))-SUMPRODUCT(('Fixed assets'!$S$2:$S$1000)*('Fixed assets'!$P$2:$P$1000<Costs!$A640)*('Fixed assets'!$Q$2:$Q$1000=Costs!N$617))-SUMPRODUCT(('Fixed assets'!$Q$2:$Q$1000=Costs!N$617)*('Fixed assets'!$U$2:$U$1000=Costs!$A640)*('Fixed assets'!$S$2:$S$1000))+SUMPRODUCT(('Fixed assets'!$Q$2:$Q$1000=Costs!N$617)*('Fixed assets'!$P$2:$P$1000=Costs!$A640)*('Fixed assets'!$U$2:$U$1000=Costs!$A640)*('Fixed assets'!$R$2:$R$1000))","v":0},{"$f":"SUMPRODUCT(('Fixed assets'!$R$2:$R$1000)*('Fixed assets'!$P$2:$P$1000<$A640)*('Fixed assets'!$Q$2:$Q$1000=Costs!O$617))-SUMPRODUCT(('Fixed assets'!$S$2:$S$1000)*('Fixed assets'!$P$2:$P$1000<Costs!$A640)*('Fixed assets'!$Q$2:$Q$1000=Costs!O$617))-SUMPRODUCT(('Fixed assets'!$Q$2:$Q$1000=Costs!O$617)*('Fixed assets'!$U$2:$U$1000=Costs!$A640)*('Fixed assets'!$S$2:$S$1000))+SUMPRODUCT(('Fixed assets'!$Q$2:$Q$1000=Costs!O$617)*('Fixed assets'!$P$2:$P$1000=Costs!$A640)*('Fixed assets'!$U$2:$U$1000=Costs!$A640)*('Fixed assets'!$R$2:$R$1000))","v":0},{"$f":"SUMPRODUCT(('Fixed assets'!$R$2:$R$1000)*('Fixed assets'!$P$2:$P$1000<$A640)*('Fixed assets'!$Q$2:$Q$1000=Costs!P$617))-SUMPRODUCT(('Fixed assets'!$S$2:$S$1000)*('Fixed assets'!$P$2:$P$1000<Costs!$A640)*('Fixed assets'!$Q$2:$Q$1000=Costs!P$617))-SUMPRODUCT(('Fixed assets'!$Q$2:$Q$1000=Costs!P$617)*('Fixed assets'!$U$2:$U$1000=Costs!$A640)*('Fixed assets'!$S$2:$S$1000))+SUMPRODUCT(('Fixed assets'!$Q$2:$Q$1000=Costs!P$617)*('Fixed assets'!$P$2:$P$1000=Costs!$A640)*('Fixed assets'!$U$2:$U$1000=Costs!$A640)*('Fixed assets'!$R$2:$R$1000))","v":0},{"$f":"SUMPRODUCT(('Fixed assets'!$R$2:$R$1000)*('Fixed assets'!$P$2:$P$1000<$A640)*('Fixed assets'!$Q$2:$Q$1000=Costs!Q$617))-SUMPRODUCT(('Fixed assets'!$S$2:$S$1000)*('Fixed assets'!$P$2:$P$1000<Costs!$A640)*('Fixed assets'!$Q$2:$Q$1000=Costs!Q$617))-SUMPRODUCT(('Fixed assets'!$Q$2:$Q$1000=Costs!Q$617)*('Fixed assets'!$U$2:$U$1000=Costs!$A640)*('Fixed assets'!$S$2:$S$1000))+SUMPRODUCT(('Fixed assets'!$Q$2:$Q$1000=Costs!Q$617)*('Fixed assets'!$P$2:$P$1000=Costs!$A640)*('Fixed assets'!$U$2:$U$1000=Costs!$A640)*('Fixed assets'!$R$2:$R$1000))","v":0},{"$f":"SUMPRODUCT(('Fixed assets'!$R$2:$R$1000)*('Fixed assets'!$P$2:$P$1000<$A640)*('Fixed assets'!$Q$2:$Q$1000=Costs!R$617))-SUMPRODUCT(('Fixed assets'!$S$2:$S$1000)*('Fixed assets'!$P$2:$P$1000<Costs!$A640)*('Fixed assets'!$Q$2:$Q$1000=Costs!R$617))-SUMPRODUCT(('Fixed assets'!$Q$2:$Q$1000=Costs!R$617)*('Fixed assets'!$U$2:$U$1000=Costs!$A640)*('Fixed assets'!$S$2:$S$1000))+SUMPRODUCT(('Fixed assets'!$Q$2:$Q$1000=Costs!R$617)*('Fixed assets'!$P$2:$P$1000=Costs!$A640)*('Fixed assets'!$U$2:$U$1000=Costs!$A640)*('Fixed assets'!$R$2:$R$1000))","v":0},{"$f":"SUMPRODUCT(('Fixed assets'!$R$2:$R$1000)*('Fixed assets'!$P$2:$P$1000<$A640)*('Fixed assets'!$Q$2:$Q$1000=Costs!S$617))-SUMPRODUCT(('Fixed assets'!$S$2:$S$1000)*('Fixed assets'!$P$2:$P$1000<Costs!$A640)*('Fixed assets'!$Q$2:$Q$1000=Costs!S$617))-SUMPRODUCT(('Fixed assets'!$Q$2:$Q$1000=Costs!S$617)*('Fixed assets'!$U$2:$U$1000=Costs!$A640)*('Fixed assets'!$S$2:$S$1000))+SUMPRODUCT(('Fixed assets'!$Q$2:$Q$1000=Costs!S$617)*('Fixed assets'!$P$2:$P$1000=Costs!$A640)*('Fixed assets'!$U$2:$U$1000=Costs!$A640)*('Fixed assets'!$R$2:$R$1000))","v":0},{"$f":"SUMPRODUCT(('Fixed assets'!$R$2:$R$1000)*('Fixed assets'!$P$2:$P$1000<$A640)*('Fixed assets'!$Q$2:$Q$1000=Costs!T$617))-SUMPRODUCT(('Fixed assets'!$S$2:$S$1000)*('Fixed assets'!$P$2:$P$1000<Costs!$A640)*('Fixed assets'!$Q$2:$Q$1000=Costs!T$617))-SUMPRODUCT(('Fixed assets'!$Q$2:$Q$1000=Costs!T$617)*('Fixed assets'!$U$2:$U$1000=Costs!$A640)*('Fixed assets'!$S$2:$S$1000))+SUMPRODUCT(('Fixed assets'!$Q$2:$Q$1000=Costs!T$617)*('Fixed assets'!$P$2:$P$1000=Costs!$A640)*('Fixed assets'!$U$2:$U$1000=Costs!$A640)*('Fixed assets'!$R$2:$R$1000))","v":0},{"$f":"SUMPRODUCT(('Fixed assets'!$R$2:$R$1000)*('Fixed assets'!$P$2:$P$1000<$A640)*('Fixed assets'!$Q$2:$Q$1000=Costs!U$617))-SUMPRODUCT(('Fixed assets'!$S$2:$S$1000)*('Fixed assets'!$P$2:$P$1000<Costs!$A640)*('Fixed assets'!$Q$2:$Q$1000=Costs!U$617))-SUMPRODUCT(('Fixed assets'!$Q$2:$Q$1000=Costs!U$617)*('Fixed assets'!$U$2:$U$1000=Costs!$A640)*('Fixed assets'!$S$2:$S$1000))+SUMPRODUCT(('Fixed assets'!$Q$2:$Q$1000=Costs!U$617)*('Fixed assets'!$P$2:$P$1000=Costs!$A640)*('Fixed assets'!$U$2:$U$1000=Costs!$A640)*('Fixed assets'!$R$2:$R$1000))","v":0},{"$f":"SUMPRODUCT(('Fixed assets'!$R$2:$R$1000)*('Fixed assets'!$P$2:$P$1000<$A640)*('Fixed assets'!$Q$2:$Q$1000=Costs!V$617))-SUMPRODUCT(('Fixed assets'!$S$2:$S$1000)*('Fixed assets'!$P$2:$P$1000<Costs!$A640)*('Fixed assets'!$Q$2:$Q$1000=Costs!V$617))-SUMPRODUCT(('Fixed assets'!$Q$2:$Q$1000=Costs!V$617)*('Fixed assets'!$U$2:$U$1000=Costs!$A640)*('Fixed assets'!$S$2:$S$1000))+SUMPRODUCT(('Fixed assets'!$Q$2:$Q$1000=Costs!V$617)*('Fixed assets'!$P$2:$P$1000=Costs!$A640)*('Fixed assets'!$U$2:$U$1000=Costs!$A640)*('Fixed assets'!$R$2:$R$1000))","v":0},{"$f":"SUMPRODUCT(('Fixed assets'!$R$2:$R$1000)*('Fixed assets'!$P$2:$P$1000<$A640)*('Fixed assets'!$Q$2:$Q$1000=Costs!W$617))-SUMPRODUCT(('Fixed assets'!$S$2:$S$1000)*('Fixed assets'!$P$2:$P$1000<Costs!$A640)*('Fixed assets'!$Q$2:$Q$1000=Costs!W$617))-SUMPRODUCT(('Fixed assets'!$Q$2:$Q$1000=Costs!W$617)*('Fixed assets'!$U$2:$U$1000=Costs!$A640)*('Fixed assets'!$S$2:$S$1000))+SUMPRODUCT(('Fixed assets'!$Q$2:$Q$1000=Costs!W$617)*('Fixed assets'!$P$2:$P$1000=Costs!$A640)*('Fixed assets'!$U$2:$U$1000=Costs!$A640)*('Fixed assets'!$R$2:$R$1000))","v":0},{"$f":"SUMPRODUCT(('Fixed assets'!$R$2:$R$1000)*('Fixed assets'!$P$2:$P$1000<$A640)*('Fixed assets'!$Q$2:$Q$1000=Costs!X$617))-SUMPRODUCT(('Fixed assets'!$S$2:$S$1000)*('Fixed assets'!$P$2:$P$1000<Costs!$A640)*('Fixed assets'!$Q$2:$Q$1000=Costs!X$617))-SUMPRODUCT(('Fixed assets'!$Q$2:$Q$1000=Costs!X$617)*('Fixed assets'!$U$2:$U$1000=Costs!$A640)*('Fixed assets'!$S$2:$S$1000))+SUMPRODUCT(('Fixed assets'!$Q$2:$Q$1000=Costs!X$617)*('Fixed assets'!$P$2:$P$1000=Costs!$A640)*('Fixed assets'!$U$2:$U$1000=Costs!$A640)*('Fixed assets'!$R$2:$R$1000))","v":0},{"$f":"SUMPRODUCT(('Fixed assets'!$R$2:$R$1000)*('Fixed assets'!$P$2:$P$1000<$A640)*('Fixed assets'!$Q$2:$Q$1000=Costs!Y$617))-SUMPRODUCT(('Fixed assets'!$S$2:$S$1000)*('Fixed assets'!$P$2:$P$1000<Costs!$A640)*('Fixed assets'!$Q$2:$Q$1000=Costs!Y$617))-SUMPRODUCT(('Fixed assets'!$Q$2:$Q$1000=Costs!Y$617)*('Fixed assets'!$U$2:$U$1000=Costs!$A640)*('Fixed assets'!$S$2:$S$1000))+SUMPRODUCT(('Fixed assets'!$Q$2:$Q$1000=Costs!Y$617)*('Fixed assets'!$P$2:$P$1000=Costs!$A640)*('Fixed assets'!$U$2:$U$1000=Costs!$A640)*('Fixed assets'!$R$2:$R$1000))","v":0},{"$f":"SUMPRODUCT(('Fixed assets'!$R$2:$R$1000)*('Fixed assets'!$P$2:$P$1000<$A640)*('Fixed assets'!$Q$2:$Q$1000=Costs!Z$617))-SUMPRODUCT(('Fixed assets'!$S$2:$S$1000)*('Fixed assets'!$P$2:$P$1000<Costs!$A640)*('Fixed assets'!$Q$2:$Q$1000=Costs!Z$617))-SUMPRODUCT(('Fixed assets'!$Q$2:$Q$1000=Costs!Z$617)*('Fixed assets'!$U$2:$U$1000=Costs!$A640)*('Fixed assets'!$S$2:$S$1000))+SUMPRODUCT(('Fixed assets'!$Q$2:$Q$1000=Costs!Z$617)*('Fixed assets'!$P$2:$P$1000=Costs!$A640)*('Fixed assets'!$U$2:$U$1000=Costs!$A640)*('Fixed assets'!$R$2:$R$1000))","v":0},{"$f":"SUMPRODUCT(('Fixed assets'!$R$2:$R$1000)*('Fixed assets'!$P$2:$P$1000<$A640)*('Fixed assets'!$Q$2:$Q$1000=Costs!AA$617))-SUMPRODUCT(('Fixed assets'!$S$2:$S$1000)*('Fixed assets'!$P$2:$P$1000<Costs!$A640)*('Fixed assets'!$Q$2:$Q$1000=Costs!AA$617))-SUMPRODUCT(('Fixed assets'!$Q$2:$Q$1000=Costs!AA$617)*('Fixed assets'!$U$2:$U$1000=Costs!$A640)*('Fixed assets'!$S$2:$S$1000))+SUMPRODUCT(('Fixed assets'!$Q$2:$Q$1000=Costs!AA$617)*('Fixed assets'!$P$2:$P$1000=Costs!$A640)*('Fixed assets'!$U$2:$U$1000=Costs!$A640)*('Fixed assets'!$R$2:$R$1000))","v":0},{"$f":"SUMPRODUCT(('Fixed assets'!$R$2:$R$1000)*('Fixed assets'!$P$2:$P$1000<$A640)*('Fixed assets'!$Q$2:$Q$1000=Costs!AB$617))-SUMPRODUCT(('Fixed assets'!$S$2:$S$1000)*('Fixed assets'!$P$2:$P$1000<Costs!$A640)*('Fixed assets'!$Q$2:$Q$1000=Costs!AB$617))-SUMPRODUCT(('Fixed assets'!$Q$2:$Q$1000=Costs!AB$617)*('Fixed assets'!$U$2:$U$1000=Costs!$A640)*('Fixed assets'!$S$2:$S$1000))+SUMPRODUCT(('Fixed assets'!$Q$2:$Q$1000=Costs!AB$617)*('Fixed assets'!$P$2:$P$1000=Costs!$A640)*('Fixed assets'!$U$2:$U$1000=Costs!$A640)*('Fixed assets'!$R$2:$R$1000))","v":0},{"$f":"SUMPRODUCT(('Fixed assets'!$R$2:$R$1000)*('Fixed assets'!$P$2:$P$1000<$A640)*('Fixed assets'!$Q$2:$Q$1000=Costs!AC$617))-SUMPRODUCT(('Fixed assets'!$S$2:$S$1000)*('Fixed assets'!$P$2:$P$1000<Costs!$A640)*('Fixed assets'!$Q$2:$Q$1000=Costs!AC$617))-SUMPRODUCT(('Fixed assets'!$Q$2:$Q$1000=Costs!AC$617)*('Fixed assets'!$U$2:$U$1000=Costs!$A640)*('Fixed assets'!$S$2:$S$1000))+SUMPRODUCT(('Fixed assets'!$Q$2:$Q$1000=Costs!AC$617)*('Fixed assets'!$P$2:$P$1000=Costs!$A640)*('Fixed assets'!$U$2:$U$1000=Costs!$A640)*('Fixed assets'!$R$2:$R$1000))","v":0},{"$f":"SUMPRODUCT(('Fixed assets'!$R$2:$R$1000)*('Fixed assets'!$P$2:$P$1000<$A640)*('Fixed assets'!$Q$2:$Q$1000=Costs!AD$617))-SUMPRODUCT(('Fixed assets'!$S$2:$S$1000)*('Fixed assets'!$P$2:$P$1000<Costs!$A640)*('Fixed assets'!$Q$2:$Q$1000=Costs!AD$617))-SUMPRODUCT(('Fixed assets'!$Q$2:$Q$1000=Costs!AD$617)*('Fixed assets'!$U$2:$U$1000=Costs!$A640)*('Fixed assets'!$S$2:$S$1000))+SUMPRODUCT(('Fixed assets'!$Q$2:$Q$1000=Costs!AD$617)*('Fixed assets'!$P$2:$P$1000=Costs!$A640)*('Fixed assets'!$U$2:$U$1000=Costs!$A640)*('Fixed assets'!$R$2:$R$1000))","v":0},{"$f":"SUMPRODUCT(('Fixed assets'!$R$2:$R$1000)*('Fixed assets'!$P$2:$P$1000<$A640)*('Fixed assets'!$Q$2:$Q$1000=Costs!AE$617))-SUMPRODUCT(('Fixed assets'!$S$2:$S$1000)*('Fixed assets'!$P$2:$P$1000<Costs!$A640)*('Fixed assets'!$Q$2:$Q$1000=Costs!AE$617))-SUMPRODUCT(('Fixed assets'!$Q$2:$Q$1000=Costs!AE$617)*('Fixed assets'!$U$2:$U$1000=Costs!$A640)*('Fixed assets'!$S$2:$S$1000))+SUMPRODUCT(('Fixed assets'!$Q$2:$Q$1000=Costs!AE$617)*('Fixed assets'!$P$2:$P$1000=Costs!$A640)*('Fixed assets'!$U$2:$U$1000=Costs!$A640)*('Fixed assets'!$R$2:$R$1000))","v":0},{"$f":"SUMPRODUCT(('Fixed assets'!$R$2:$R$1000)*('Fixed assets'!$P$2:$P$1000<$A640)*('Fixed assets'!$Q$2:$Q$1000=Costs!AF$617))-SUMPRODUCT(('Fixed assets'!$S$2:$S$1000)*('Fixed assets'!$P$2:$P$1000<Costs!$A640)*('Fixed assets'!$Q$2:$Q$1000=Costs!AF$617))-SUMPRODUCT(('Fixed assets'!$Q$2:$Q$1000=Costs!AF$617)*('Fixed assets'!$U$2:$U$1000=Costs!$A640)*('Fixed assets'!$S$2:$S$1000))+SUMPRODUCT(('Fixed assets'!$Q$2:$Q$1000=Costs!AF$617)*('Fixed assets'!$P$2:$P$1000=Costs!$A640)*('Fixed assets'!$U$2:$U$1000=Costs!$A640)*('Fixed assets'!$R$2:$R$1000))","v":0},{"$f":"SUMPRODUCT(('Fixed assets'!$R$2:$R$1000)*('Fixed assets'!$P$2:$P$1000<$A640)*('Fixed assets'!$Q$2:$Q$1000=Costs!AG$617))-SUMPRODUCT(('Fixed assets'!$S$2:$S$1000)*('Fixed assets'!$P$2:$P$1000<Costs!$A640)*('Fixed assets'!$Q$2:$Q$1000=Costs!AG$617))-SUMPRODUCT(('Fixed assets'!$Q$2:$Q$1000=Costs!AG$617)*('Fixed assets'!$U$2:$U$1000=Costs!$A640)*('Fixed assets'!$S$2:$S$1000))+SUMPRODUCT(('Fixed assets'!$Q$2:$Q$1000=Costs!AG$617)*('Fixed assets'!$P$2:$P$1000=Costs!$A640)*('Fixed assets'!$U$2:$U$1000=Costs!$A640)*('Fixed assets'!$R$2:$R$1000))","v":0},{"$f":"SUMPRODUCT(('Fixed assets'!$R$2:$R$1000)*('Fixed assets'!$P$2:$P$1000<$A640)*('Fixed assets'!$Q$2:$Q$1000=Costs!AH$617))-SUMPRODUCT(('Fixed assets'!$S$2:$S$1000)*('Fixed assets'!$P$2:$P$1000<Costs!$A640)*('Fixed assets'!$Q$2:$Q$1000=Costs!AH$617))-SUMPRODUCT(('Fixed assets'!$Q$2:$Q$1000=Costs!AH$617)*('Fixed assets'!$U$2:$U$1000=Costs!$A640)*('Fixed assets'!$S$2:$S$1000))+SUMPRODUCT(('Fixed assets'!$Q$2:$Q$1000=Costs!AH$617)*('Fixed assets'!$P$2:$P$1000=Costs!$A640)*('Fixed assets'!$U$2:$U$1000=Costs!$A640)*('Fixed assets'!$R$2:$R$1000))","v":0},{"$f":"SUMPRODUCT(('Fixed assets'!$R$2:$R$1000)*('Fixed assets'!$P$2:$P$1000<$A640)*('Fixed assets'!$Q$2:$Q$1000=Costs!AI$617))-SUMPRODUCT(('Fixed assets'!$S$2:$S$1000)*('Fixed assets'!$P$2:$P$1000<Costs!$A640)*('Fixed assets'!$Q$2:$Q$1000=Costs!AI$617))-SUMPRODUCT(('Fixed assets'!$Q$2:$Q$1000=Costs!AI$617)*('Fixed assets'!$U$2:$U$1000=Costs!$A640)*('Fixed assets'!$S$2:$S$1000))+SUMPRODUCT(('Fixed assets'!$Q$2:$Q$1000=Costs!AI$617)*('Fixed assets'!$P$2:$P$1000=Costs!$A640)*('Fixed assets'!$U$2:$U$1000=Costs!$A640)*('Fixed assets'!$R$2:$R$1000))","v":0},{"$f":"SUMPRODUCT(('Fixed assets'!$R$2:$R$1000)*('Fixed assets'!$P$2:$P$1000<$A640)*('Fixed assets'!$Q$2:$Q$1000=Costs!AJ$617))-SUMPRODUCT(('Fixed assets'!$S$2:$S$1000)*('Fixed assets'!$P$2:$P$1000<Costs!$A640)*('Fixed assets'!$Q$2:$Q$1000=Costs!AJ$617))-SUMPRODUCT(('Fixed assets'!$Q$2:$Q$1000=Costs!AJ$617)*('Fixed assets'!$U$2:$U$1000=Costs!$A640)*('Fixed assets'!$S$2:$S$1000))+SUMPRODUCT(('Fixed assets'!$Q$2:$Q$1000=Costs!AJ$617)*('Fixed assets'!$P$2:$P$1000=Costs!$A640)*('Fixed assets'!$U$2:$U$1000=Costs!$A640)*('Fixed assets'!$R$2:$R$1000))","v":0},{"$f":"SUMPRODUCT(('Fixed assets'!$R$2:$R$1000)*('Fixed assets'!$P$2:$P$1000<$A640)*('Fixed assets'!$Q$2:$Q$1000=Costs!AK$617))-SUMPRODUCT(('Fixed assets'!$S$2:$S$1000)*('Fixed assets'!$P$2:$P$1000<Costs!$A640)*('Fixed assets'!$Q$2:$Q$1000=Costs!AK$617))-SUMPRODUCT(('Fixed assets'!$Q$2:$Q$1000=Costs!AK$617)*('Fixed assets'!$U$2:$U$1000=Costs!$A640)*('Fixed assets'!$S$2:$S$1000))+SUMPRODUCT(('Fixed assets'!$Q$2:$Q$1000=Costs!AK$617)*('Fixed assets'!$P$2:$P$1000=Costs!$A640)*('Fixed assets'!$U$2:$U$1000=Costs!$A640)*('Fixed assets'!$R$2:$R$1000))","v":0},{"$f":"SUMPRODUCT(('Fixed assets'!$R$2:$R$1000)*('Fixed assets'!$P$2:$P$1000<$A640)*('Fixed assets'!$Q$2:$Q$1000=Costs!AL$617))-SUMPRODUCT(('Fixed assets'!$S$2:$S$1000)*('Fixed assets'!$P$2:$P$1000<Costs!$A640)*('Fixed assets'!$Q$2:$Q$1000=Costs!AL$617))-SUMPRODUCT(('Fixed assets'!$Q$2:$Q$1000=Costs!AL$617)*('Fixed assets'!$U$2:$U$1000=Costs!$A640)*('Fixed assets'!$S$2:$S$1000))+SUMPRODUCT(('Fixed assets'!$Q$2:$Q$1000=Costs!AL$617)*('Fixed assets'!$P$2:$P$1000=Costs!$A640)*('Fixed assets'!$U$2:$U$1000=Costs!$A640)*('Fixed assets'!$R$2:$R$1000))","v":0},{"$f":"SUMPRODUCT(('Fixed assets'!$R$2:$R$1000)*('Fixed assets'!$P$2:$P$1000<$A640)*('Fixed assets'!$Q$2:$Q$1000=Costs!AM$617))-SUMPRODUCT(('Fixed assets'!$S$2:$S$1000)*('Fixed assets'!$P$2:$P$1000<Costs!$A640)*('Fixed assets'!$Q$2:$Q$1000=Costs!AM$617))-SUMPRODUCT(('Fixed assets'!$Q$2:$Q$1000=Costs!AM$617)*('Fixed assets'!$U$2:$U$1000=Costs!$A640)*('Fixed assets'!$S$2:$S$1000))+SUMPRODUCT(('Fixed assets'!$Q$2:$Q$1000=Costs!AM$617)*('Fixed assets'!$P$2:$P$1000=Costs!$A640)*('Fixed assets'!$U$2:$U$1000=Costs!$A640)*('Fixed assets'!$R$2:$R$1000))","v":0},{"$f":"SUMPRODUCT(('Fixed assets'!$R$2:$R$1000)*('Fixed assets'!$P$2:$P$1000<$A640)*('Fixed assets'!$Q$2:$Q$1000=Costs!AN$617))-SUMPRODUCT(('Fixed assets'!$S$2:$S$1000)*('Fixed assets'!$P$2:$P$1000<Costs!$A640)*('Fixed assets'!$Q$2:$Q$1000=Costs!AN$617))-SUMPRODUCT(('Fixed assets'!$Q$2:$Q$1000=Costs!AN$617)*('Fixed assets'!$U$2:$U$1000=Costs!$A640)*('Fixed assets'!$S$2:$S$1000))+SUMPRODUCT(('Fixed assets'!$Q$2:$Q$1000=Costs!AN$617)*('Fixed assets'!$P$2:$P$1000=Costs!$A640)*('Fixed assets'!$U$2:$U$1000=Costs!$A640)*('Fixed assets'!$R$2:$R$1000))","v":0},{"$f":"SUMPRODUCT(('Fixed assets'!$R$2:$R$1000)*('Fixed assets'!$P$2:$P$1000<$A640)*('Fixed assets'!$Q$2:$Q$1000=Costs!AO$617))-SUMPRODUCT(('Fixed assets'!$S$2:$S$1000)*('Fixed assets'!$P$2:$P$1000<Costs!$A640)*('Fixed assets'!$Q$2:$Q$1000=Costs!AO$617))-SUMPRODUCT(('Fixed assets'!$Q$2:$Q$1000=Costs!AO$617)*('Fixed assets'!$U$2:$U$1000=Costs!$A640)*('Fixed assets'!$S$2:$S$1000))+SUMPRODUCT(('Fixed assets'!$Q$2:$Q$1000=Costs!AO$617)*('Fixed assets'!$P$2:$P$1000=Costs!$A640)*('Fixed assets'!$U$2:$U$1000=Costs!$A640)*('Fixed assets'!$R$2:$R$1000))","v":0},{"$f":"SUMPRODUCT(('Fixed assets'!$R$2:$R$1000)*('Fixed assets'!$P$2:$P$1000<$A640)*('Fixed assets'!$Q$2:$Q$1000=Costs!AP$617))-SUMPRODUCT(('Fixed assets'!$S$2:$S$1000)*('Fixed assets'!$P$2:$P$1000<Costs!$A640)*('Fixed assets'!$Q$2:$Q$1000=Costs!AP$617))-SUMPRODUCT(('Fixed assets'!$Q$2:$Q$1000=Costs!AP$617)*('Fixed assets'!$U$2:$U$1000=Costs!$A640)*('Fixed assets'!$S$2:$S$1000))+SUMPRODUCT(('Fixed assets'!$Q$2:$Q$1000=Costs!AP$617)*('Fixed assets'!$P$2:$P$1000=Costs!$A640)*('Fixed assets'!$U$2:$U$1000=Costs!$A640)*('Fixed assets'!$R$2:$R$1000))","v":0},{"$f":"SUMPRODUCT(('Fixed assets'!$R$2:$R$1000)*('Fixed assets'!$P$2:$P$1000<$A640)*('Fixed assets'!$Q$2:$Q$1000=Costs!AQ$617))-SUMPRODUCT(('Fixed assets'!$S$2:$S$1000)*('Fixed assets'!$P$2:$P$1000<Costs!$A640)*('Fixed assets'!$Q$2:$Q$1000=Costs!AQ$617))-SUMPRODUCT(('Fixed assets'!$Q$2:$Q$1000=Costs!AQ$617)*('Fixed assets'!$U$2:$U$1000=Costs!$A640)*('Fixed assets'!$S$2:$S$1000))+SUMPRODUCT(('Fixed assets'!$Q$2:$Q$1000=Costs!AQ$617)*('Fixed assets'!$P$2:$P$1000=Costs!$A640)*('Fixed assets'!$U$2:$U$1000=Costs!$A640)*('Fixed assets'!$R$2:$R$1000))","v":0}]
[2038,0,{"$f":"SUMPRODUCT(('Fixed assets'!$R$2:$R$1000)*('Fixed assets'!$P$2:$P$1000<$A641)*('Fixed assets'!$Q$2:$Q$1000=Costs!C$617))-SUMPRODUCT(('Fixed assets'!$S$2:$S$1000)*('Fixed assets'!$P$2:$P$1000<Costs!$A641)*('Fixed assets'!$Q$2:$Q$1000=Costs!C$617))-SUMPRODUCT(('Fixed assets'!$Q$2:$Q$1000=Costs!C$617)*('Fixed assets'!$U$2:$U$1000=Costs!$A641)*('Fixed assets'!$S$2:$S$1000))+SUMPRODUCT(('Fixed assets'!$Q$2:$Q$1000=Costs!C$617)*('Fixed assets'!$P$2:$P$1000=Costs!$A641)*('Fixed assets'!$U$2:$U$1000=Costs!$A641)*('Fixed assets'!$R$2:$R$1000))","v":0},{"$f":"SUMPRODUCT(('Fixed assets'!$R$2:$R$1000)*('Fixed assets'!$P$2:$P$1000<$A641)*('Fixed assets'!$Q$2:$Q$1000=Costs!D$617))-SUMPRODUCT(('Fixed assets'!$S$2:$S$1000)*('Fixed assets'!$P$2:$P$1000<Costs!$A641)*('Fixed assets'!$Q$2:$Q$1000=Costs!D$617))-SUMPRODUCT(('Fixed assets'!$Q$2:$Q$1000=Costs!D$617)*('Fixed assets'!$U$2:$U$1000=Costs!$A641)*('Fixed assets'!$S$2:$S$1000))+SUMPRODUCT(('Fixed assets'!$Q$2:$Q$1000=Costs!D$617)*('Fixed assets'!$P$2:$P$1000=Costs!$A641)*('Fixed assets'!$U$2:$U$1000=Costs!$A641)*('Fixed assets'!$R$2:$R$1000))","v":0},{"$f":"SUMPRODUCT(('Fixed assets'!$R$2:$R$1000)*('Fixed assets'!$P$2:$P$1000<$A641)*('Fixed assets'!$Q$2:$Q$1000=Costs!E$617))-SUMPRODUCT(('Fixed assets'!$S$2:$S$1000)*('Fixed assets'!$P$2:$P$1000<Costs!$A641)*('Fixed assets'!$Q$2:$Q$1000=Costs!E$617))-SUMPRODUCT(('Fixed assets'!$Q$2:$Q$1000=Costs!E$617)*('Fixed assets'!$U$2:$U$1000=Costs!$A641)*('Fixed assets'!$S$2:$S$1000))+SUMPRODUCT(('Fixed assets'!$Q$2:$Q$1000=Costs!E$617)*('Fixed assets'!$P$2:$P$1000=Costs!$A641)*('Fixed assets'!$U$2:$U$1000=Costs!$A641)*('Fixed assets'!$R$2:$R$1000))","v":0},{"$f":"SUMPRODUCT(('Fixed assets'!$R$2:$R$1000)*('Fixed assets'!$P$2:$P$1000<$A641)*('Fixed assets'!$Q$2:$Q$1000=Costs!F$617))-SUMPRODUCT(('Fixed assets'!$S$2:$S$1000)*('Fixed assets'!$P$2:$P$1000<Costs!$A641)*('Fixed assets'!$Q$2:$Q$1000=Costs!F$617))-SUMPRODUCT(('Fixed assets'!$Q$2:$Q$1000=Costs!F$617)*('Fixed assets'!$U$2:$U$1000=Costs!$A641)*('Fixed assets'!$S$2:$S$1000))+SUMPRODUCT(('Fixed assets'!$Q$2:$Q$1000=Costs!F$617)*('Fixed assets'!$P$2:$P$1000=Costs!$A641)*('Fixed assets'!$U$2:$U$1000=Costs!$A641)*('Fixed assets'!$R$2:$R$1000))","v":0},{"$f":"SUMPRODUCT(('Fixed assets'!$R$2:$R$1000)*('Fixed assets'!$P$2:$P$1000<$A641)*('Fixed assets'!$Q$2:$Q$1000=Costs!G$617))-SUMPRODUCT(('Fixed assets'!$S$2:$S$1000)*('Fixed assets'!$P$2:$P$1000<Costs!$A641)*('Fixed assets'!$Q$2:$Q$1000=Costs!G$617))-SUMPRODUCT(('Fixed assets'!$Q$2:$Q$1000=Costs!G$617)*('Fixed assets'!$U$2:$U$1000=Costs!$A641)*('Fixed assets'!$S$2:$S$1000))+SUMPRODUCT(('Fixed assets'!$Q$2:$Q$1000=Costs!G$617)*('Fixed assets'!$P$2:$P$1000=Costs!$A641)*('Fixed assets'!$U$2:$U$1000=Costs!$A641)*('Fixed assets'!$R$2:$R$1000))","v":0},{"$f":"SUMPRODUCT(('Fixed assets'!$R$2:$R$1000)*('Fixed assets'!$P$2:$P$1000<$A641)*('Fixed assets'!$Q$2:$Q$1000=Costs!H$617))-SUMPRODUCT(('Fixed assets'!$S$2:$S$1000)*('Fixed assets'!$P$2:$P$1000<Costs!$A641)*('Fixed assets'!$Q$2:$Q$1000=Costs!H$617))-SUMPRODUCT(('Fixed assets'!$Q$2:$Q$1000=Costs!H$617)*('Fixed assets'!$U$2:$U$1000=Costs!$A641)*('Fixed assets'!$S$2:$S$1000))+SUMPRODUCT(('Fixed assets'!$Q$2:$Q$1000=Costs!H$617)*('Fixed assets'!$P$2:$P$1000=Costs!$A641)*('Fixed assets'!$U$2:$U$1000=Costs!$A641)*('Fixed assets'!$R$2:$R$1000))","v":0},{"$f":"SUMPRODUCT(('Fixed assets'!$R$2:$R$1000)*('Fixed assets'!$P$2:$P$1000<$A641)*('Fixed assets'!$Q$2:$Q$1000=Costs!I$617))-SUMPRODUCT(('Fixed assets'!$S$2:$S$1000)*('Fixed assets'!$P$2:$P$1000<Costs!$A641)*('Fixed assets'!$Q$2:$Q$1000=Costs!I$617))-SUMPRODUCT(('Fixed assets'!$Q$2:$Q$1000=Costs!I$617)*('Fixed assets'!$U$2:$U$1000=Costs!$A641)*('Fixed assets'!$S$2:$S$1000))+SUMPRODUCT(('Fixed assets'!$Q$2:$Q$1000=Costs!I$617)*('Fixed assets'!$P$2:$P$1000=Costs!$A641)*('Fixed assets'!$U$2:$U$1000=Costs!$A641)*('Fixed assets'!$R$2:$R$1000))","v":0},{"$f":"SUMPRODUCT(('Fixed assets'!$R$2:$R$1000)*('Fixed assets'!$P$2:$P$1000<$A641)*('Fixed assets'!$Q$2:$Q$1000=Costs!J$617))-SUMPRODUCT(('Fixed assets'!$S$2:$S$1000)*('Fixed assets'!$P$2:$P$1000<Costs!$A641)*('Fixed assets'!$Q$2:$Q$1000=Costs!J$617))-SUMPRODUCT(('Fixed assets'!$Q$2:$Q$1000=Costs!J$617)*('Fixed assets'!$U$2:$U$1000=Costs!$A641)*('Fixed assets'!$S$2:$S$1000))+SUMPRODUCT(('Fixed assets'!$Q$2:$Q$1000=Costs!J$617)*('Fixed assets'!$P$2:$P$1000=Costs!$A641)*('Fixed assets'!$U$2:$U$1000=Costs!$A641)*('Fixed assets'!$R$2:$R$1000))","v":0},{"$f":"SUMPRODUCT(('Fixed assets'!$R$2:$R$1000)*('Fixed assets'!$P$2:$P$1000<$A641)*('Fixed assets'!$Q$2:$Q$1000=Costs!K$617))-SUMPRODUCT(('Fixed assets'!$S$2:$S$1000)*('Fixed assets'!$P$2:$P$1000<Costs!$A641)*('Fixed assets'!$Q$2:$Q$1000=Costs!K$617))-SUMPRODUCT(('Fixed assets'!$Q$2:$Q$1000=Costs!K$617)*('Fixed assets'!$U$2:$U$1000=Costs!$A641)*('Fixed assets'!$S$2:$S$1000))+SUMPRODUCT(('Fixed assets'!$Q$2:$Q$1000=Costs!K$617)*('Fixed assets'!$P$2:$P$1000=Costs!$A641)*('Fixed assets'!$U$2:$U$1000=Costs!$A641)*('Fixed assets'!$R$2:$R$1000))","v":0},{"$f":"SUMPRODUCT(('Fixed assets'!$R$2:$R$1000)*('Fixed assets'!$P$2:$P$1000<$A641)*('Fixed assets'!$Q$2:$Q$1000=Costs!L$617))-SUMPRODUCT(('Fixed assets'!$S$2:$S$1000)*('Fixed assets'!$P$2:$P$1000<Costs!$A641)*('Fixed assets'!$Q$2:$Q$1000=Costs!L$617))-SUMPRODUCT(('Fixed assets'!$Q$2:$Q$1000=Costs!L$617)*('Fixed assets'!$U$2:$U$1000=Costs!$A641)*('Fixed assets'!$S$2:$S$1000))+SUMPRODUCT(('Fixed assets'!$Q$2:$Q$1000=Costs!L$617)*('Fixed assets'!$P$2:$P$1000=Costs!$A641)*('Fixed assets'!$U$2:$U$1000=Costs!$A641)*('Fixed assets'!$R$2:$R$1000))","v":0},{"$f":"SUMPRODUCT(('Fixed assets'!$R$2:$R$1000)*('Fixed assets'!$P$2:$P$1000<$A641)*('Fixed assets'!$Q$2:$Q$1000=Costs!M$617))-SUMPRODUCT(('Fixed assets'!$S$2:$S$1000)*('Fixed assets'!$P$2:$P$1000<Costs!$A641)*('Fixed assets'!$Q$2:$Q$1000=Costs!M$617))-SUMPRODUCT(('Fixed assets'!$Q$2:$Q$1000=Costs!M$617)*('Fixed assets'!$U$2:$U$1000=Costs!$A641)*('Fixed assets'!$S$2:$S$1000))+SUMPRODUCT(('Fixed assets'!$Q$2:$Q$1000=Costs!M$617)*('Fixed assets'!$P$2:$P$1000=Costs!$A641)*('Fixed assets'!$U$2:$U$1000=Costs!$A641)*('Fixed assets'!$R$2:$R$1000))","v":0},{"$f":"SUMPRODUCT(('Fixed assets'!$R$2:$R$1000)*('Fixed assets'!$P$2:$P$1000<$A641)*('Fixed assets'!$Q$2:$Q$1000=Costs!N$617))-SUMPRODUCT(('Fixed assets'!$S$2:$S$1000)*('Fixed assets'!$P$2:$P$1000<Costs!$A641)*('Fixed assets'!$Q$2:$Q$1000=Costs!N$617))-SUMPRODUCT(('Fixed assets'!$Q$2:$Q$1000=Costs!N$617)*('Fixed assets'!$U$2:$U$1000=Costs!$A641)*('Fixed assets'!$S$2:$S$1000))+SUMPRODUCT(('Fixed assets'!$Q$2:$Q$1000=Costs!N$617)*('Fixed assets'!$P$2:$P$1000=Costs!$A641)*('Fixed assets'!$U$2:$U$1000=Costs!$A641)*('Fixed assets'!$R$2:$R$1000))","v":0},{"$f":"SUMPRODUCT(('Fixed assets'!$R$2:$R$1000)*('Fixed assets'!$P$2:$P$1000<$A641)*('Fixed assets'!$Q$2:$Q$1000=Costs!O$617))-SUMPRODUCT(('Fixed assets'!$S$2:$S$1000)*('Fixed assets'!$P$2:$P$1000<Costs!$A641)*('Fixed assets'!$Q$2:$Q$1000=Costs!O$617))-SUMPRODUCT(('Fixed assets'!$Q$2:$Q$1000=Costs!O$617)*('Fixed assets'!$U$2:$U$1000=Costs!$A641)*('Fixed assets'!$S$2:$S$1000))+SUMPRODUCT(('Fixed assets'!$Q$2:$Q$1000=Costs!O$617)*('Fixed assets'!$P$2:$P$1000=Costs!$A641)*('Fixed assets'!$U$2:$U$1000=Costs!$A641)*('Fixed assets'!$R$2:$R$1000))","v":0},{"$f":"SUMPRODUCT(('Fixed assets'!$R$2:$R$1000)*('Fixed assets'!$P$2:$P$1000<$A641)*('Fixed assets'!$Q$2:$Q$1000=Costs!P$617))-SUMPRODUCT(('Fixed assets'!$S$2:$S$1000)*('Fixed assets'!$P$2:$P$1000<Costs!$A641)*('Fixed assets'!$Q$2:$Q$1000=Costs!P$617))-SUMPRODUCT(('Fixed assets'!$Q$2:$Q$1000=Costs!P$617)*('Fixed assets'!$U$2:$U$1000=Costs!$A641)*('Fixed assets'!$S$2:$S$1000))+SUMPRODUCT(('Fixed assets'!$Q$2:$Q$1000=Costs!P$617)*('Fixed assets'!$P$2:$P$1000=Costs!$A641)*('Fixed assets'!$U$2:$U$1000=Costs!$A641)*('Fixed assets'!$R$2:$R$1000))","v":0},{"$f":"SUMPRODUCT(('Fixed assets'!$R$2:$R$1000)*('Fixed assets'!$P$2:$P$1000<$A641)*('Fixed assets'!$Q$2:$Q$1000=Costs!Q$617))-SUMPRODUCT(('Fixed assets'!$S$2:$S$1000)*('Fixed assets'!$P$2:$P$1000<Costs!$A641)*('Fixed assets'!$Q$2:$Q$1000=Costs!Q$617))-SUMPRODUCT(('Fixed assets'!$Q$2:$Q$1000=Costs!Q$617)*('Fixed assets'!$U$2:$U$1000=Costs!$A641)*('Fixed assets'!$S$2:$S$1000))+SUMPRODUCT(('Fixed assets'!$Q$2:$Q$1000=Costs!Q$617)*('Fixed assets'!$P$2:$P$1000=Costs!$A641)*('Fixed assets'!$U$2:$U$1000=Costs!$A641)*('Fixed assets'!$R$2:$R$1000))","v":0},{"$f":"SUMPRODUCT(('Fixed assets'!$R$2:$R$1000)*('Fixed assets'!$P$2:$P$1000<$A641)*('Fixed assets'!$Q$2:$Q$1000=Costs!R$617))-SUMPRODUCT(('Fixed assets'!$S$2:$S$1000)*('Fixed assets'!$P$2:$P$1000<Costs!$A641)*('Fixed assets'!$Q$2:$Q$1000=Costs!R$617))-SUMPRODUCT(('Fixed assets'!$Q$2:$Q$1000=Costs!R$617)*('Fixed assets'!$U$2:$U$1000=Costs!$A641)*('Fixed assets'!$S$2:$S$1000))+SUMPRODUCT(('Fixed assets'!$Q$2:$Q$1000=Costs!R$617)*('Fixed assets'!$P$2:$P$1000=Costs!$A641)*('Fixed assets'!$U$2:$U$1000=Costs!$A641)*('Fixed assets'!$R$2:$R$1000))","v":0},{"$f":"SUMPRODUCT(('Fixed assets'!$R$2:$R$1000)*('Fixed assets'!$P$2:$P$1000<$A641)*('Fixed assets'!$Q$2:$Q$1000=Costs!S$617))-SUMPRODUCT(('Fixed assets'!$S$2:$S$1000)*('Fixed assets'!$P$2:$P$1000<Costs!$A641)*('Fixed assets'!$Q$2:$Q$1000=Costs!S$617))-SUMPRODUCT(('Fixed assets'!$Q$2:$Q$1000=Costs!S$617)*('Fixed assets'!$U$2:$U$1000=Costs!$A641)*('Fixed assets'!$S$2:$S$1000))+SUMPRODUCT(('Fixed assets'!$Q$2:$Q$1000=Costs!S$617)*('Fixed assets'!$P$2:$P$1000=Costs!$A641)*('Fixed assets'!$U$2:$U$1000=Costs!$A641)*('Fixed assets'!$R$2:$R$1000))","v":0},{"$f":"SUMPRODUCT(('Fixed assets'!$R$2:$R$1000)*('Fixed assets'!$P$2:$P$1000<$A641)*('Fixed assets'!$Q$2:$Q$1000=Costs!T$617))-SUMPRODUCT(('Fixed assets'!$S$2:$S$1000)*('Fixed assets'!$P$2:$P$1000<Costs!$A641)*('Fixed assets'!$Q$2:$Q$1000=Costs!T$617))-SUMPRODUCT(('Fixed assets'!$Q$2:$Q$1000=Costs!T$617)*('Fixed assets'!$U$2:$U$1000=Costs!$A641)*('Fixed assets'!$S$2:$S$1000))+SUMPRODUCT(('Fixed assets'!$Q$2:$Q$1000=Costs!T$617)*('Fixed assets'!$P$2:$P$1000=Costs!$A641)*('Fixed assets'!$U$2:$U$1000=Costs!$A641)*('Fixed assets'!$R$2:$R$1000))","v":0},{"$f":"SUMPRODUCT(('Fixed assets'!$R$2:$R$1000)*('Fixed assets'!$P$2:$P$1000<$A641)*('Fixed assets'!$Q$2:$Q$1000=Costs!U$617))-SUMPRODUCT(('Fixed assets'!$S$2:$S$1000)*('Fixed assets'!$P$2:$P$1000<Costs!$A641)*('Fixed assets'!$Q$2:$Q$1000=Costs!U$617))-SUMPRODUCT(('Fixed assets'!$Q$2:$Q$1000=Costs!U$617)*('Fixed assets'!$U$2:$U$1000=Costs!$A641)*('Fixed assets'!$S$2:$S$1000))+SUMPRODUCT(('Fixed assets'!$Q$2:$Q$1000=Costs!U$617)*('Fixed assets'!$P$2:$P$1000=Costs!$A641)*('Fixed assets'!$U$2:$U$1000=Costs!$A641)*('Fixed assets'!$R$2:$R$1000))","v":0},{"$f":"SUMPRODUCT(('Fixed assets'!$R$2:$R$1000)*('Fixed assets'!$P$2:$P$1000<$A641)*('Fixed assets'!$Q$2:$Q$1000=Costs!V$617))-SUMPRODUCT(('Fixed assets'!$S$2:$S$1000)*('Fixed assets'!$P$2:$P$1000<Costs!$A641)*('Fixed assets'!$Q$2:$Q$1000=Costs!V$617))-SUMPRODUCT(('Fixed assets'!$Q$2:$Q$1000=Costs!V$617)*('Fixed assets'!$U$2:$U$1000=Costs!$A641)*('Fixed assets'!$S$2:$S$1000))+SUMPRODUCT(('Fixed assets'!$Q$2:$Q$1000=Costs!V$617)*('Fixed assets'!$P$2:$P$1000=Costs!$A641)*('Fixed assets'!$U$2:$U$1000=Costs!$A641)*('Fixed assets'!$R$2:$R$1000))","v":0},{"$f":"SUMPRODUCT(('Fixed assets'!$R$2:$R$1000)*('Fixed assets'!$P$2:$P$1000<$A641)*('Fixed assets'!$Q$2:$Q$1000=Costs!W$617))-SUMPRODUCT(('Fixed assets'!$S$2:$S$1000)*('Fixed assets'!$P$2:$P$1000<Costs!$A641)*('Fixed assets'!$Q$2:$Q$1000=Costs!W$617))-SUMPRODUCT(('Fixed assets'!$Q$2:$Q$1000=Costs!W$617)*('Fixed assets'!$U$2:$U$1000=Costs!$A641)*('Fixed assets'!$S$2:$S$1000))+SUMPRODUCT(('Fixed assets'!$Q$2:$Q$1000=Costs!W$617)*('Fixed assets'!$P$2:$P$1000=Costs!$A641)*('Fixed assets'!$U$2:$U$1000=Costs!$A641)*('Fixed assets'!$R$2:$R$1000))","v":0},{"$f":"SUMPRODUCT(('Fixed assets'!$R$2:$R$1000)*('Fixed assets'!$P$2:$P$1000<$A641)*('Fixed assets'!$Q$2:$Q$1000=Costs!X$617))-SUMPRODUCT(('Fixed assets'!$S$2:$S$1000)*('Fixed assets'!$P$2:$P$1000<Costs!$A641)*('Fixed assets'!$Q$2:$Q$1000=Costs!X$617))-SUMPRODUCT(('Fixed assets'!$Q$2:$Q$1000=Costs!X$617)*('Fixed assets'!$U$2:$U$1000=Costs!$A641)*('Fixed assets'!$S$2:$S$1000))+SUMPRODUCT(('Fixed assets'!$Q$2:$Q$1000=Costs!X$617)*('Fixed assets'!$P$2:$P$1000=Costs!$A641)*('Fixed assets'!$U$2:$U$1000=Costs!$A641)*('Fixed assets'!$R$2:$R$1000))","v":0},{"$f":"SUMPRODUCT(('Fixed assets'!$R$2:$R$1000)*('Fixed assets'!$P$2:$P$1000<$A641)*('Fixed assets'!$Q$2:$Q$1000=Costs!Y$617))-SUMPRODUCT(('Fixed assets'!$S$2:$S$1000)*('Fixed assets'!$P$2:$P$1000<Costs!$A641)*('Fixed assets'!$Q$2:$Q$1000=Costs!Y$617))-SUMPRODUCT(('Fixed assets'!$Q$2:$Q$1000=Costs!Y$617)*('Fixed assets'!$U$2:$U$1000=Costs!$A641)*('Fixed assets'!$S$2:$S$1000))+SUMPRODUCT(('Fixed assets'!$Q$2:$Q$1000=Costs!Y$617)*('Fixed assets'!$P$2:$P$1000=Costs!$A641)*('Fixed assets'!$U$2:$U$1000=Costs!$A641)*('Fixed assets'!$R$2:$R$1000))","v":0},{"$f":"SUMPRODUCT(('Fixed assets'!$R$2:$R$1000)*('Fixed assets'!$P$2:$P$1000<$A641)*('Fixed assets'!$Q$2:$Q$1000=Costs!Z$617))-SUMPRODUCT(('Fixed assets'!$S$2:$S$1000)*('Fixed assets'!$P$2:$P$1000<Costs!$A641)*('Fixed assets'!$Q$2:$Q$1000=Costs!Z$617))-SUMPRODUCT(('Fixed assets'!$Q$2:$Q$1000=Costs!Z$617)*('Fixed assets'!$U$2:$U$1000=Costs!$A641)*('Fixed assets'!$S$2:$S$1000))+SUMPRODUCT(('Fixed assets'!$Q$2:$Q$1000=Costs!Z$617)*('Fixed assets'!$P$2:$P$1000=Costs!$A641)*('Fixed assets'!$U$2:$U$1000=Costs!$A641)*('Fixed assets'!$R$2:$R$1000))","v":0},{"$f":"SUMPRODUCT(('Fixed assets'!$R$2:$R$1000)*('Fixed assets'!$P$2:$P$1000<$A641)*('Fixed assets'!$Q$2:$Q$1000=Costs!AA$617))-SUMPRODUCT(('Fixed assets'!$S$2:$S$1000)*('Fixed assets'!$P$2:$P$1000<Costs!$A641)*('Fixed assets'!$Q$2:$Q$1000=Costs!AA$617))-SUMPRODUCT(('Fixed assets'!$Q$2:$Q$1000=Costs!AA$617)*('Fixed assets'!$U$2:$U$1000=Costs!$A641)*('Fixed assets'!$S$2:$S$1000))+SUMPRODUCT(('Fixed assets'!$Q$2:$Q$1000=Costs!AA$617)*('Fixed assets'!$P$2:$P$1000=Costs!$A641)*('Fixed assets'!$U$2:$U$1000=Costs!$A641)*('Fixed assets'!$R$2:$R$1000))","v":0},{"$f":"SUMPRODUCT(('Fixed assets'!$R$2:$R$1000)*('Fixed assets'!$P$2:$P$1000<$A641)*('Fixed assets'!$Q$2:$Q$1000=Costs!AB$617))-SUMPRODUCT(('Fixed assets'!$S$2:$S$1000)*('Fixed assets'!$P$2:$P$1000<Costs!$A641)*('Fixed assets'!$Q$2:$Q$1000=Costs!AB$617))-SUMPRODUCT(('Fixed assets'!$Q$2:$Q$1000=Costs!AB$617)*('Fixed assets'!$U$2:$U$1000=Costs!$A641)*('Fixed assets'!$S$2:$S$1000))+SUMPRODUCT(('Fixed assets'!$Q$2:$Q$1000=Costs!AB$617)*('Fixed assets'!$P$2:$P$1000=Costs!$A641)*('Fixed assets'!$U$2:$U$1000=Costs!$A641)*('Fixed assets'!$R$2:$R$1000))","v":0},{"$f":"SUMPRODUCT(('Fixed assets'!$R$2:$R$1000)*('Fixed assets'!$P$2:$P$1000<$A641)*('Fixed assets'!$Q$2:$Q$1000=Costs!AC$617))-SUMPRODUCT(('Fixed assets'!$S$2:$S$1000)*('Fixed assets'!$P$2:$P$1000<Costs!$A641)*('Fixed assets'!$Q$2:$Q$1000=Costs!AC$617))-SUMPRODUCT(('Fixed assets'!$Q$2:$Q$1000=Costs!AC$617)*('Fixed assets'!$U$2:$U$1000=Costs!$A641)*('Fixed assets'!$S$2:$S$1000))+SUMPRODUCT(('Fixed assets'!$Q$2:$Q$1000=Costs!AC$617)*('Fixed assets'!$P$2:$P$1000=Costs!$A641)*('Fixed assets'!$U$2:$U$1000=Costs!$A641)*('Fixed assets'!$R$2:$R$1000))","v":0},{"$f":"SUMPRODUCT(('Fixed assets'!$R$2:$R$1000)*('Fixed assets'!$P$2:$P$1000<$A641)*('Fixed assets'!$Q$2:$Q$1000=Costs!AD$617))-SUMPRODUCT(('Fixed assets'!$S$2:$S$1000)*('Fixed assets'!$P$2:$P$1000<Costs!$A641)*('Fixed assets'!$Q$2:$Q$1000=Costs!AD$617))-SUMPRODUCT(('Fixed assets'!$Q$2:$Q$1000=Costs!AD$617)*('Fixed assets'!$U$2:$U$1000=Costs!$A641)*('Fixed assets'!$S$2:$S$1000))+SUMPRODUCT(('Fixed assets'!$Q$2:$Q$1000=Costs!AD$617)*('Fixed assets'!$P$2:$P$1000=Costs!$A641)*('Fixed assets'!$U$2:$U$1000=Costs!$A641)*('Fixed assets'!$R$2:$R$1000))","v":0},{"$f":"SUMPRODUCT(('Fixed assets'!$R$2:$R$1000)*('Fixed assets'!$P$2:$P$1000<$A641)*('Fixed assets'!$Q$2:$Q$1000=Costs!AE$617))-SUMPRODUCT(('Fixed assets'!$S$2:$S$1000)*('Fixed assets'!$P$2:$P$1000<Costs!$A641)*('Fixed assets'!$Q$2:$Q$1000=Costs!AE$617))-SUMPRODUCT(('Fixed assets'!$Q$2:$Q$1000=Costs!AE$617)*('Fixed assets'!$U$2:$U$1000=Costs!$A641)*('Fixed assets'!$S$2:$S$1000))+SUMPRODUCT(('Fixed assets'!$Q$2:$Q$1000=Costs!AE$617)*('Fixed assets'!$P$2:$P$1000=Costs!$A641)*('Fixed assets'!$U$2:$U$1000=Costs!$A641)*('Fixed assets'!$R$2:$R$1000))","v":0},{"$f":"SUMPRODUCT(('Fixed assets'!$R$2:$R$1000)*('Fixed assets'!$P$2:$P$1000<$A641)*('Fixed assets'!$Q$2:$Q$1000=Costs!AF$617))-SUMPRODUCT(('Fixed assets'!$S$2:$S$1000)*('Fixed assets'!$P$2:$P$1000<Costs!$A641)*('Fixed assets'!$Q$2:$Q$1000=Costs!AF$617))-SUMPRODUCT(('Fixed assets'!$Q$2:$Q$1000=Costs!AF$617)*('Fixed assets'!$U$2:$U$1000=Costs!$A641)*('Fixed assets'!$S$2:$S$1000))+SUMPRODUCT(('Fixed assets'!$Q$2:$Q$1000=Costs!AF$617)*('Fixed assets'!$P$2:$P$1000=Costs!$A641)*('Fixed assets'!$U$2:$U$1000=Costs!$A641)*('Fixed assets'!$R$2:$R$1000))","v":0},{"$f":"SUMPRODUCT(('Fixed assets'!$R$2:$R$1000)*('Fixed assets'!$P$2:$P$1000<$A641)*('Fixed assets'!$Q$2:$Q$1000=Costs!AG$617))-SUMPRODUCT(('Fixed assets'!$S$2:$S$1000)*('Fixed assets'!$P$2:$P$1000<Costs!$A641)*('Fixed assets'!$Q$2:$Q$1000=Costs!AG$617))-SUMPRODUCT(('Fixed assets'!$Q$2:$Q$1000=Costs!AG$617)*('Fixed assets'!$U$2:$U$1000=Costs!$A641)*('Fixed assets'!$S$2:$S$1000))+SUMPRODUCT(('Fixed assets'!$Q$2:$Q$1000=Costs!AG$617)*('Fixed assets'!$P$2:$P$1000=Costs!$A641)*('Fixed assets'!$U$2:$U$1000=Costs!$A641)*('Fixed assets'!$R$2:$R$1000))","v":0},{"$f":"SUMPRODUCT(('Fixed assets'!$R$2:$R$1000)*('Fixed assets'!$P$2:$P$1000<$A641)*('Fixed assets'!$Q$2:$Q$1000=Costs!AH$617))-SUMPRODUCT(('Fixed assets'!$S$2:$S$1000)*('Fixed assets'!$P$2:$P$1000<Costs!$A641)*('Fixed assets'!$Q$2:$Q$1000=Costs!AH$617))-SUMPRODUCT(('Fixed assets'!$Q$2:$Q$1000=Costs!AH$617)*('Fixed assets'!$U$2:$U$1000=Costs!$A641)*('Fixed assets'!$S$2:$S$1000))+SUMPRODUCT(('Fixed assets'!$Q$2:$Q$1000=Costs!AH$617)*('Fixed assets'!$P$2:$P$1000=Costs!$A641)*('Fixed assets'!$U$2:$U$1000=Costs!$A641)*('Fixed assets'!$R$2:$R$1000))","v":0},{"$f":"SUMPRODUCT(('Fixed assets'!$R$2:$R$1000)*('Fixed assets'!$P$2:$P$1000<$A641)*('Fixed assets'!$Q$2:$Q$1000=Costs!AI$617))-SUMPRODUCT(('Fixed assets'!$S$2:$S$1000)*('Fixed assets'!$P$2:$P$1000<Costs!$A641)*('Fixed assets'!$Q$2:$Q$1000=Costs!AI$617))-SUMPRODUCT(('Fixed assets'!$Q$2:$Q$1000=Costs!AI$617)*('Fixed assets'!$U$2:$U$1000=Costs!$A641)*('Fixed assets'!$S$2:$S$1000))+SUMPRODUCT(('Fixed assets'!$Q$2:$Q$1000=Costs!AI$617)*('Fixed assets'!$P$2:$P$1000=Costs!$A641)*('Fixed assets'!$U$2:$U$1000=Costs!$A641)*('Fixed assets'!$R$2:$R$1000))","v":0},{"$f":"SUMPRODUCT(('Fixed assets'!$R$2:$R$1000)*('Fixed assets'!$P$2:$P$1000<$A641)*('Fixed assets'!$Q$2:$Q$1000=Costs!AJ$617))-SUMPRODUCT(('Fixed assets'!$S$2:$S$1000)*('Fixed assets'!$P$2:$P$1000<Costs!$A641)*('Fixed assets'!$Q$2:$Q$1000=Costs!AJ$617))-SUMPRODUCT(('Fixed assets'!$Q$2:$Q$1000=Costs!AJ$617)*('Fixed assets'!$U$2:$U$1000=Costs!$A641)*('Fixed assets'!$S$2:$S$1000))+SUMPRODUCT(('Fixed assets'!$Q$2:$Q$1000=Costs!AJ$617)*('Fixed assets'!$P$2:$P$1000=Costs!$A641)*('Fixed assets'!$U$2:$U$1000=Costs!$A641)*('Fixed assets'!$R$2:$R$1000))","v":0},{"$f":"SUMPRODUCT(('Fixed assets'!$R$2:$R$1000)*('Fixed assets'!$P$2:$P$1000<$A641)*('Fixed assets'!$Q$2:$Q$1000=Costs!AK$617))-SUMPRODUCT(('Fixed assets'!$S$2:$S$1000)*('Fixed assets'!$P$2:$P$1000<Costs!$A641)*('Fixed assets'!$Q$2:$Q$1000=Costs!AK$617))-SUMPRODUCT(('Fixed assets'!$Q$2:$Q$1000=Costs!AK$617)*('Fixed assets'!$U$2:$U$1000=Costs!$A641)*('Fixed assets'!$S$2:$S$1000))+SUMPRODUCT(('Fixed assets'!$Q$2:$Q$1000=Costs!AK$617)*('Fixed assets'!$P$2:$P$1000=Costs!$A641)*('Fixed assets'!$U$2:$U$1000=Costs!$A641)*('Fixed assets'!$R$2:$R$1000))","v":0},{"$f":"SUMPRODUCT(('Fixed assets'!$R$2:$R$1000)*('Fixed assets'!$P$2:$P$1000<$A641)*('Fixed assets'!$Q$2:$Q$1000=Costs!AL$617))-SUMPRODUCT(('Fixed assets'!$S$2:$S$1000)*('Fixed assets'!$P$2:$P$1000<Costs!$A641)*('Fixed assets'!$Q$2:$Q$1000=Costs!AL$617))-SUMPRODUCT(('Fixed assets'!$Q$2:$Q$1000=Costs!AL$617)*('Fixed assets'!$U$2:$U$1000=Costs!$A641)*('Fixed assets'!$S$2:$S$1000))+SUMPRODUCT(('Fixed assets'!$Q$2:$Q$1000=Costs!AL$617)*('Fixed assets'!$P$2:$P$1000=Costs!$A641)*('Fixed assets'!$U$2:$U$1000=Costs!$A641)*('Fixed assets'!$R$2:$R$1000))","v":0},{"$f":"SUMPRODUCT(('Fixed assets'!$R$2:$R$1000)*('Fixed assets'!$P$2:$P$1000<$A641)*('Fixed assets'!$Q$2:$Q$1000=Costs!AM$617))-SUMPRODUCT(('Fixed assets'!$S$2:$S$1000)*('Fixed assets'!$P$2:$P$1000<Costs!$A641)*('Fixed assets'!$Q$2:$Q$1000=Costs!AM$617))-SUMPRODUCT(('Fixed assets'!$Q$2:$Q$1000=Costs!AM$617)*('Fixed assets'!$U$2:$U$1000=Costs!$A641)*('Fixed assets'!$S$2:$S$1000))+SUMPRODUCT(('Fixed assets'!$Q$2:$Q$1000=Costs!AM$617)*('Fixed assets'!$P$2:$P$1000=Costs!$A641)*('Fixed assets'!$U$2:$U$1000=Costs!$A641)*('Fixed assets'!$R$2:$R$1000))","v":0},{"$f":"SUMPRODUCT(('Fixed assets'!$R$2:$R$1000)*('Fixed assets'!$P$2:$P$1000<$A641)*('Fixed assets'!$Q$2:$Q$1000=Costs!AN$617))-SUMPRODUCT(('Fixed assets'!$S$2:$S$1000)*('Fixed assets'!$P$2:$P$1000<Costs!$A641)*('Fixed assets'!$Q$2:$Q$1000=Costs!AN$617))-SUMPRODUCT(('Fixed assets'!$Q$2:$Q$1000=Costs!AN$617)*('Fixed assets'!$U$2:$U$1000=Costs!$A641)*('Fixed assets'!$S$2:$S$1000))+SUMPRODUCT(('Fixed assets'!$Q$2:$Q$1000=Costs!AN$617)*('Fixed assets'!$P$2:$P$1000=Costs!$A641)*('Fixed assets'!$U$2:$U$1000=Costs!$A641)*('Fixed assets'!$R$2:$R$1000))","v":0},{"$f":"SUMPRODUCT(('Fixed assets'!$R$2:$R$1000)*('Fixed assets'!$P$2:$P$1000<$A641)*('Fixed assets'!$Q$2:$Q$1000=Costs!AO$617))-SUMPRODUCT(('Fixed assets'!$S$2:$S$1000)*('Fixed assets'!$P$2:$P$1000<Costs!$A641)*('Fixed assets'!$Q$2:$Q$1000=Costs!AO$617))-SUMPRODUCT(('Fixed assets'!$Q$2:$Q$1000=Costs!AO$617)*('Fixed assets'!$U$2:$U$1000=Costs!$A641)*('Fixed assets'!$S$2:$S$1000))+SUMPRODUCT(('Fixed assets'!$Q$2:$Q$1000=Costs!AO$617)*('Fixed assets'!$P$2:$P$1000=Costs!$A641)*('Fixed assets'!$U$2:$U$1000=Costs!$A641)*('Fixed assets'!$R$2:$R$1000))","v":0},{"$f":"SUMPRODUCT(('Fixed assets'!$R$2:$R$1000)*('Fixed assets'!$P$2:$P$1000<$A641)*('Fixed assets'!$Q$2:$Q$1000=Costs!AP$617))-SUMPRODUCT(('Fixed assets'!$S$2:$S$1000)*('Fixed assets'!$P$2:$P$1000<Costs!$A641)*('Fixed assets'!$Q$2:$Q$1000=Costs!AP$617))-SUMPRODUCT(('Fixed assets'!$Q$2:$Q$1000=Costs!AP$617)*('Fixed assets'!$U$2:$U$1000=Costs!$A641)*('Fixed assets'!$S$2:$S$1000))+SUMPRODUCT(('Fixed assets'!$Q$2:$Q$1000=Costs!AP$617)*('Fixed assets'!$P$2:$P$1000=Costs!$A641)*('Fixed assets'!$U$2:$U$1000=Costs!$A641)*('Fixed assets'!$R$2:$R$1000))","v":0},{"$f":"SUMPRODUCT(('Fixed assets'!$R$2:$R$1000)*('Fixed assets'!$P$2:$P$1000<$A641)*('Fixed assets'!$Q$2:$Q$1000=Costs!AQ$617))-SUMPRODUCT(('Fixed assets'!$S$2:$S$1000)*('Fixed assets'!$P$2:$P$1000<Costs!$A641)*('Fixed assets'!$Q$2:$Q$1000=Costs!AQ$617))-SUMPRODUCT(('Fixed assets'!$Q$2:$Q$1000=Costs!AQ$617)*('Fixed assets'!$U$2:$U$1000=Costs!$A641)*('Fixed assets'!$S$2:$S$1000))+SUMPRODUCT(('Fixed assets'!$Q$2:$Q$1000=Costs!AQ$617)*('Fixed assets'!$P$2:$P$1000=Costs!$A641)*('Fixed assets'!$U$2:$U$1000=Costs!$A641)*('Fixed assets'!$R$2:$R$1000))","v":0}]
[2039,0,{"$f":"SUMPRODUCT(('Fixed assets'!$R$2:$R$1000)*('Fixed assets'!$P$2:$P$1000<$A642)*('Fixed assets'!$Q$2:$Q$1000=Costs!C$617))-SUMPRODUCT(('Fixed assets'!$S$2:$S$1000)*('Fixed assets'!$P$2:$P$1000<Costs!$A642)*('Fixed assets'!$Q$2:$Q$1000=Costs!C$617))-SUMPRODUCT(('Fixed assets'!$Q$2:$Q$1000=Costs!C$617)*('Fixed assets'!$U$2:$U$1000=Costs!$A642)*('Fixed assets'!$S$2:$S$1000))+SUMPRODUCT(('Fixed assets'!$Q$2:$Q$1000=Costs!C$617)*('Fixed assets'!$P$2:$P$1000=Costs!$A642)*('Fixed assets'!$U$2:$U$1000=Costs!$A642)*('Fixed assets'!$R$2:$R$1000))","v":0},{"$f":"SUMPRODUCT(('Fixed assets'!$R$2:$R$1000)*('Fixed assets'!$P$2:$P$1000<$A642)*('Fixed assets'!$Q$2:$Q$1000=Costs!D$617))-SUMPRODUCT(('Fixed assets'!$S$2:$S$1000)*('Fixed assets'!$P$2:$P$1000<Costs!$A642)*('Fixed assets'!$Q$2:$Q$1000=Costs!D$617))-SUMPRODUCT(('Fixed assets'!$Q$2:$Q$1000=Costs!D$617)*('Fixed assets'!$U$2:$U$1000=Costs!$A642)*('Fixed assets'!$S$2:$S$1000))+SUMPRODUCT(('Fixed assets'!$Q$2:$Q$1000=Costs!D$617)*('Fixed assets'!$P$2:$P$1000=Costs!$A642)*('Fixed assets'!$U$2:$U$1000=Costs!$A642)*('Fixed assets'!$R$2:$R$1000))","v":0},{"$f":"SUMPRODUCT(('Fixed assets'!$R$2:$R$1000)*('Fixed assets'!$P$2:$P$1000<$A642)*('Fixed assets'!$Q$2:$Q$1000=Costs!E$617))-SUMPRODUCT(('Fixed assets'!$S$2:$S$1000)*('Fixed assets'!$P$2:$P$1000<Costs!$A642)*('Fixed assets'!$Q$2:$Q$1000=Costs!E$617))-SUMPRODUCT(('Fixed assets'!$Q$2:$Q$1000=Costs!E$617)*('Fixed assets'!$U$2:$U$1000=Costs!$A642)*('Fixed assets'!$S$2:$S$1000))+SUMPRODUCT(('Fixed assets'!$Q$2:$Q$1000=Costs!E$617)*('Fixed assets'!$P$2:$P$1000=Costs!$A642)*('Fixed assets'!$U$2:$U$1000=Costs!$A642)*('Fixed assets'!$R$2:$R$1000))","v":0},{"$f":"SUMPRODUCT(('Fixed assets'!$R$2:$R$1000)*('Fixed assets'!$P$2:$P$1000<$A642)*('Fixed assets'!$Q$2:$Q$1000=Costs!F$617))-SUMPRODUCT(('Fixed assets'!$S$2:$S$1000)*('Fixed assets'!$P$2:$P$1000<Costs!$A642)*('Fixed assets'!$Q$2:$Q$1000=Costs!F$617))-SUMPRODUCT(('Fixed assets'!$Q$2:$Q$1000=Costs!F$617)*('Fixed assets'!$U$2:$U$1000=Costs!$A642)*('Fixed assets'!$S$2:$S$1000))+SUMPRODUCT(('Fixed assets'!$Q$2:$Q$1000=Costs!F$617)*('Fixed assets'!$P$2:$P$1000=Costs!$A642)*('Fixed assets'!$U$2:$U$1000=Costs!$A642)*('Fixed assets'!$R$2:$R$1000))","v":0},{"$f":"SUMPRODUCT(('Fixed assets'!$R$2:$R$1000)*('Fixed assets'!$P$2:$P$1000<$A642)*('Fixed assets'!$Q$2:$Q$1000=Costs!G$617))-SUMPRODUCT(('Fixed assets'!$S$2:$S$1000)*('Fixed assets'!$P$2:$P$1000<Costs!$A642)*('Fixed assets'!$Q$2:$Q$1000=Costs!G$617))-SUMPRODUCT(('Fixed assets'!$Q$2:$Q$1000=Costs!G$617)*('Fixed assets'!$U$2:$U$1000=Costs!$A642)*('Fixed assets'!$S$2:$S$1000))+SUMPRODUCT(('Fixed assets'!$Q$2:$Q$1000=Costs!G$617)*('Fixed assets'!$P$2:$P$1000=Costs!$A642)*('Fixed assets'!$U$2:$U$1000=Costs!$A642)*('Fixed assets'!$R$2:$R$1000))","v":0},{"$f":"SUMPRODUCT(('Fixed assets'!$R$2:$R$1000)*('Fixed assets'!$P$2:$P$1000<$A642)*('Fixed assets'!$Q$2:$Q$1000=Costs!H$617))-SUMPRODUCT(('Fixed assets'!$S$2:$S$1000)*('Fixed assets'!$P$2:$P$1000<Costs!$A642)*('Fixed assets'!$Q$2:$Q$1000=Costs!H$617))-SUMPRODUCT(('Fixed assets'!$Q$2:$Q$1000=Costs!H$617)*('Fixed assets'!$U$2:$U$1000=Costs!$A642)*('Fixed assets'!$S$2:$S$1000))+SUMPRODUCT(('Fixed assets'!$Q$2:$Q$1000=Costs!H$617)*('Fixed assets'!$P$2:$P$1000=Costs!$A642)*('Fixed assets'!$U$2:$U$1000=Costs!$A642)*('Fixed assets'!$R$2:$R$1000))","v":0},{"$f":"SUMPRODUCT(('Fixed assets'!$R$2:$R$1000)*('Fixed assets'!$P$2:$P$1000<$A642)*('Fixed assets'!$Q$2:$Q$1000=Costs!I$617))-SUMPRODUCT(('Fixed assets'!$S$2:$S$1000)*('Fixed assets'!$P$2:$P$1000<Costs!$A642)*('Fixed assets'!$Q$2:$Q$1000=Costs!I$617))-SUMPRODUCT(('Fixed assets'!$Q$2:$Q$1000=Costs!I$617)*('Fixed assets'!$U$2:$U$1000=Costs!$A642)*('Fixed assets'!$S$2:$S$1000))+SUMPRODUCT(('Fixed assets'!$Q$2:$Q$1000=Costs!I$617)*('Fixed assets'!$P$2:$P$1000=Costs!$A642)*('Fixed assets'!$U$2:$U$1000=Costs!$A642)*('Fixed assets'!$R$2:$R$1000))","v":0},{"$f":"SUMPRODUCT(('Fixed assets'!$R$2:$R$1000)*('Fixed assets'!$P$2:$P$1000<$A642)*('Fixed assets'!$Q$2:$Q$1000=Costs!J$617))-SUMPRODUCT(('Fixed assets'!$S$2:$S$1000)*('Fixed assets'!$P$2:$P$1000<Costs!$A642)*('Fixed assets'!$Q$2:$Q$1000=Costs!J$617))-SUMPRODUCT(('Fixed assets'!$Q$2:$Q$1000=Costs!J$617)*('Fixed assets'!$U$2:$U$1000=Costs!$A642)*('Fixed assets'!$S$2:$S$1000))+SUMPRODUCT(('Fixed assets'!$Q$2:$Q$1000=Costs!J$617)*('Fixed assets'!$P$2:$P$1000=Costs!$A642)*('Fixed assets'!$U$2:$U$1000=Costs!$A642)*('Fixed assets'!$R$2:$R$1000))","v":0},{"$f":"SUMPRODUCT(('Fixed assets'!$R$2:$R$1000)*('Fixed assets'!$P$2:$P$1000<$A642)*('Fixed assets'!$Q$2:$Q$1000=Costs!K$617))-SUMPRODUCT(('Fixed assets'!$S$2:$S$1000)*('Fixed assets'!$P$2:$P$1000<Costs!$A642)*('Fixed assets'!$Q$2:$Q$1000=Costs!K$617))-SUMPRODUCT(('Fixed assets'!$Q$2:$Q$1000=Costs!K$617)*('Fixed assets'!$U$2:$U$1000=Costs!$A642)*('Fixed assets'!$S$2:$S$1000))+SUMPRODUCT(('Fixed assets'!$Q$2:$Q$1000=Costs!K$617)*('Fixed assets'!$P$2:$P$1000=Costs!$A642)*('Fixed assets'!$U$2:$U$1000=Costs!$A642)*('Fixed assets'!$R$2:$R$1000))","v":0},{"$f":"SUMPRODUCT(('Fixed assets'!$R$2:$R$1000)*('Fixed assets'!$P$2:$P$1000<$A642)*('Fixed assets'!$Q$2:$Q$1000=Costs!L$617))-SUMPRODUCT(('Fixed assets'!$S$2:$S$1000)*('Fixed assets'!$P$2:$P$1000<Costs!$A642)*('Fixed assets'!$Q$2:$Q$1000=Costs!L$617))-SUMPRODUCT(('Fixed assets'!$Q$2:$Q$1000=Costs!L$617)*('Fixed assets'!$U$2:$U$1000=Costs!$A642)*('Fixed assets'!$S$2:$S$1000))+SUMPRODUCT(('Fixed assets'!$Q$2:$Q$1000=Costs!L$617)*('Fixed assets'!$P$2:$P$1000=Costs!$A642)*('Fixed assets'!$U$2:$U$1000=Costs!$A642)*('Fixed assets'!$R$2:$R$1000))","v":0},{"$f":"SUMPRODUCT(('Fixed assets'!$R$2:$R$1000)*('Fixed assets'!$P$2:$P$1000<$A642)*('Fixed assets'!$Q$2:$Q$1000=Costs!M$617))-SUMPRODUCT(('Fixed assets'!$S$2:$S$1000)*('Fixed assets'!$P$2:$P$1000<Costs!$A642)*('Fixed assets'!$Q$2:$Q$1000=Costs!M$617))-SUMPRODUCT(('Fixed assets'!$Q$2:$Q$1000=Costs!M$617)*('Fixed assets'!$U$2:$U$1000=Costs!$A642)*('Fixed assets'!$S$2:$S$1000))+SUMPRODUCT(('Fixed assets'!$Q$2:$Q$1000=Costs!M$617)*('Fixed assets'!$P$2:$P$1000=Costs!$A642)*('Fixed assets'!$U$2:$U$1000=Costs!$A642)*('Fixed assets'!$R$2:$R$1000))","v":0},{"$f":"SUMPRODUCT(('Fixed assets'!$R$2:$R$1000)*('Fixed assets'!$P$2:$P$1000<$A642)*('Fixed assets'!$Q$2:$Q$1000=Costs!N$617))-SUMPRODUCT(('Fixed assets'!$S$2:$S$1000)*('Fixed assets'!$P$2:$P$1000<Costs!$A642)*('Fixed assets'!$Q$2:$Q$1000=Costs!N$617))-SUMPRODUCT(('Fixed assets'!$Q$2:$Q$1000=Costs!N$617)*('Fixed assets'!$U$2:$U$1000=Costs!$A642)*('Fixed assets'!$S$2:$S$1000))+SUMPRODUCT(('Fixed assets'!$Q$2:$Q$1000=Costs!N$617)*('Fixed assets'!$P$2:$P$1000=Costs!$A642)*('Fixed assets'!$U$2:$U$1000=Costs!$A642)*('Fixed assets'!$R$2:$R$1000))","v":0},{"$f":"SUMPRODUCT(('Fixed assets'!$R$2:$R$1000)*('Fixed assets'!$P$2:$P$1000<$A642)*('Fixed assets'!$Q$2:$Q$1000=Costs!O$617))-SUMPRODUCT(('Fixed assets'!$S$2:$S$1000)*('Fixed assets'!$P$2:$P$1000<Costs!$A642)*('Fixed assets'!$Q$2:$Q$1000=Costs!O$617))-SUMPRODUCT(('Fixed assets'!$Q$2:$Q$1000=Costs!O$617)*('Fixed assets'!$U$2:$U$1000=Costs!$A642)*('Fixed assets'!$S$2:$S$1000))+SUMPRODUCT(('Fixed assets'!$Q$2:$Q$1000=Costs!O$617)*('Fixed assets'!$P$2:$P$1000=Costs!$A642)*('Fixed assets'!$U$2:$U$1000=Costs!$A642)*('Fixed assets'!$R$2:$R$1000))","v":0},{"$f":"SUMPRODUCT(('Fixed assets'!$R$2:$R$1000)*('Fixed assets'!$P$2:$P$1000<$A642)*('Fixed assets'!$Q$2:$Q$1000=Costs!P$617))-SUMPRODUCT(('Fixed assets'!$S$2:$S$1000)*('Fixed assets'!$P$2:$P$1000<Costs!$A642)*('Fixed assets'!$Q$2:$Q$1000=Costs!P$617))-SUMPRODUCT(('Fixed assets'!$Q$2:$Q$1000=Costs!P$617)*('Fixed assets'!$U$2:$U$1000=Costs!$A642)*('Fixed assets'!$S$2:$S$1000))+SUMPRODUCT(('Fixed assets'!$Q$2:$Q$1000=Costs!P$617)*('Fixed assets'!$P$2:$P$1000=Costs!$A642)*('Fixed assets'!$U$2:$U$1000=Costs!$A642)*('Fixed assets'!$R$2:$R$1000))","v":0},{"$f":"SUMPRODUCT(('Fixed assets'!$R$2:$R$1000)*('Fixed assets'!$P$2:$P$1000<$A642)*('Fixed assets'!$Q$2:$Q$1000=Costs!Q$617))-SUMPRODUCT(('Fixed assets'!$S$2:$S$1000)*('Fixed assets'!$P$2:$P$1000<Costs!$A642)*('Fixed assets'!$Q$2:$Q$1000=Costs!Q$617))-SUMPRODUCT(('Fixed assets'!$Q$2:$Q$1000=Costs!Q$617)*('Fixed assets'!$U$2:$U$1000=Costs!$A642)*('Fixed assets'!$S$2:$S$1000))+SUMPRODUCT(('Fixed assets'!$Q$2:$Q$1000=Costs!Q$617)*('Fixed assets'!$P$2:$P$1000=Costs!$A642)*('Fixed assets'!$U$2:$U$1000=Costs!$A642)*('Fixed assets'!$R$2:$R$1000))","v":0},{"$f":"SUMPRODUCT(('Fixed assets'!$R$2:$R$1000)*('Fixed assets'!$P$2:$P$1000<$A642)*('Fixed assets'!$Q$2:$Q$1000=Costs!R$617))-SUMPRODUCT(('Fixed assets'!$S$2:$S$1000)*('Fixed assets'!$P$2:$P$1000<Costs!$A642)*('Fixed assets'!$Q$2:$Q$1000=Costs!R$617))-SUMPRODUCT(('Fixed assets'!$Q$2:$Q$1000=Costs!R$617)*('Fixed assets'!$U$2:$U$1000=Costs!$A642)*('Fixed assets'!$S$2:$S$1000))+SUMPRODUCT(('Fixed assets'!$Q$2:$Q$1000=Costs!R$617)*('Fixed assets'!$P$2:$P$1000=Costs!$A642)*('Fixed assets'!$U$2:$U$1000=Costs!$A642)*('Fixed assets'!$R$2:$R$1000))","v":0},{"$f":"SUMPRODUCT(('Fixed assets'!$R$2:$R$1000)*('Fixed assets'!$P$2:$P$1000<$A642)*('Fixed assets'!$Q$2:$Q$1000=Costs!S$617))-SUMPRODUCT(('Fixed assets'!$S$2:$S$1000)*('Fixed assets'!$P$2:$P$1000<Costs!$A642)*('Fixed assets'!$Q$2:$Q$1000=Costs!S$617))-SUMPRODUCT(('Fixed assets'!$Q$2:$Q$1000=Costs!S$617)*('Fixed assets'!$U$2:$U$1000=Costs!$A642)*('Fixed assets'!$S$2:$S$1000))+SUMPRODUCT(('Fixed assets'!$Q$2:$Q$1000=Costs!S$617)*('Fixed assets'!$P$2:$P$1000=Costs!$A642)*('Fixed assets'!$U$2:$U$1000=Costs!$A642)*('Fixed assets'!$R$2:$R$1000))","v":0},{"$f":"SUMPRODUCT(('Fixed assets'!$R$2:$R$1000)*('Fixed assets'!$P$2:$P$1000<$A642)*('Fixed assets'!$Q$2:$Q$1000=Costs!T$617))-SUMPRODUCT(('Fixed assets'!$S$2:$S$1000)*('Fixed assets'!$P$2:$P$1000<Costs!$A642)*('Fixed assets'!$Q$2:$Q$1000=Costs!T$617))-SUMPRODUCT(('Fixed assets'!$Q$2:$Q$1000=Costs!T$617)*('Fixed assets'!$U$2:$U$1000=Costs!$A642)*('Fixed assets'!$S$2:$S$1000))+SUMPRODUCT(('Fixed assets'!$Q$2:$Q$1000=Costs!T$617)*('Fixed assets'!$P$2:$P$1000=Costs!$A642)*('Fixed assets'!$U$2:$U$1000=Costs!$A642)*('Fixed assets'!$R$2:$R$1000))","v":0},{"$f":"SUMPRODUCT(('Fixed assets'!$R$2:$R$1000)*('Fixed assets'!$P$2:$P$1000<$A642)*('Fixed assets'!$Q$2:$Q$1000=Costs!U$617))-SUMPRODUCT(('Fixed assets'!$S$2:$S$1000)*('Fixed assets'!$P$2:$P$1000<Costs!$A642)*('Fixed assets'!$Q$2:$Q$1000=Costs!U$617))-SUMPRODUCT(('Fixed assets'!$Q$2:$Q$1000=Costs!U$617)*('Fixed assets'!$U$2:$U$1000=Costs!$A642)*('Fixed assets'!$S$2:$S$1000))+SUMPRODUCT(('Fixed assets'!$Q$2:$Q$1000=Costs!U$617)*('Fixed assets'!$P$2:$P$1000=Costs!$A642)*('Fixed assets'!$U$2:$U$1000=Costs!$A642)*('Fixed assets'!$R$2:$R$1000))","v":0},{"$f":"SUMPRODUCT(('Fixed assets'!$R$2:$R$1000)*('Fixed assets'!$P$2:$P$1000<$A642)*('Fixed assets'!$Q$2:$Q$1000=Costs!V$617))-SUMPRODUCT(('Fixed assets'!$S$2:$S$1000)*('Fixed assets'!$P$2:$P$1000<Costs!$A642)*('Fixed assets'!$Q$2:$Q$1000=Costs!V$617))-SUMPRODUCT(('Fixed assets'!$Q$2:$Q$1000=Costs!V$617)*('Fixed assets'!$U$2:$U$1000=Costs!$A642)*('Fixed assets'!$S$2:$S$1000))+SUMPRODUCT(('Fixed assets'!$Q$2:$Q$1000=Costs!V$617)*('Fixed assets'!$P$2:$P$1000=Costs!$A642)*('Fixed assets'!$U$2:$U$1000=Costs!$A642)*('Fixed assets'!$R$2:$R$1000))","v":0},{"$f":"SUMPRODUCT(('Fixed assets'!$R$2:$R$1000)*('Fixed assets'!$P$2:$P$1000<$A642)*('Fixed assets'!$Q$2:$Q$1000=Costs!W$617))-SUMPRODUCT(('Fixed assets'!$S$2:$S$1000)*('Fixed assets'!$P$2:$P$1000<Costs!$A642)*('Fixed assets'!$Q$2:$Q$1000=Costs!W$617))-SUMPRODUCT(('Fixed assets'!$Q$2:$Q$1000=Costs!W$617)*('Fixed assets'!$U$2:$U$1000=Costs!$A642)*('Fixed assets'!$S$2:$S$1000))+SUMPRODUCT(('Fixed assets'!$Q$2:$Q$1000=Costs!W$617)*('Fixed assets'!$P$2:$P$1000=Costs!$A642)*('Fixed assets'!$U$2:$U$1000=Costs!$A642)*('Fixed assets'!$R$2:$R$1000))","v":0},{"$f":"SUMPRODUCT(('Fixed assets'!$R$2:$R$1000)*('Fixed assets'!$P$2:$P$1000<$A642)*('Fixed assets'!$Q$2:$Q$1000=Costs!X$617))-SUMPRODUCT(('Fixed assets'!$S$2:$S$1000)*('Fixed assets'!$P$2:$P$1000<Costs!$A642)*('Fixed assets'!$Q$2:$Q$1000=Costs!X$617))-SUMPRODUCT(('Fixed assets'!$Q$2:$Q$1000=Costs!X$617)*('Fixed assets'!$U$2:$U$1000=Costs!$A642)*('Fixed assets'!$S$2:$S$1000))+SUMPRODUCT(('Fixed assets'!$Q$2:$Q$1000=Costs!X$617)*('Fixed assets'!$P$2:$P$1000=Costs!$A642)*('Fixed assets'!$U$2:$U$1000=Costs!$A642)*('Fixed assets'!$R$2:$R$1000))","v":0},{"$f":"SUMPRODUCT(('Fixed assets'!$R$2:$R$1000)*('Fixed assets'!$P$2:$P$1000<$A642)*('Fixed assets'!$Q$2:$Q$1000=Costs!Y$617))-SUMPRODUCT(('Fixed assets'!$S$2:$S$1000)*('Fixed assets'!$P$2:$P$1000<Costs!$A642)*('Fixed assets'!$Q$2:$Q$1000=Costs!Y$617))-SUMPRODUCT(('Fixed assets'!$Q$2:$Q$1000=Costs!Y$617)*('Fixed assets'!$U$2:$U$1000=Costs!$A642)*('Fixed assets'!$S$2:$S$1000))+SUMPRODUCT(('Fixed assets'!$Q$2:$Q$1000=Costs!Y$617)*('Fixed assets'!$P$2:$P$1000=Costs!$A642)*('Fixed assets'!$U$2:$U$1000=Costs!$A642)*('Fixed assets'!$R$2:$R$1000))","v":0},{"$f":"SUMPRODUCT(('Fixed assets'!$R$2:$R$1000)*('Fixed assets'!$P$2:$P$1000<$A642)*('Fixed assets'!$Q$2:$Q$1000=Costs!Z$617))-SUMPRODUCT(('Fixed assets'!$S$2:$S$1000)*('Fixed assets'!$P$2:$P$1000<Costs!$A642)*('Fixed assets'!$Q$2:$Q$1000=Costs!Z$617))-SUMPRODUCT(('Fixed assets'!$Q$2:$Q$1000=Costs!Z$617)*('Fixed assets'!$U$2:$U$1000=Costs!$A642)*('Fixed assets'!$S$2:$S$1000))+SUMPRODUCT(('Fixed assets'!$Q$2:$Q$1000=Costs!Z$617)*('Fixed assets'!$P$2:$P$1000=Costs!$A642)*('Fixed assets'!$U$2:$U$1000=Costs!$A642)*('Fixed assets'!$R$2:$R$1000))","v":0},{"$f":"SUMPRODUCT(('Fixed assets'!$R$2:$R$1000)*('Fixed assets'!$P$2:$P$1000<$A642)*('Fixed assets'!$Q$2:$Q$1000=Costs!AA$617))-SUMPRODUCT(('Fixed assets'!$S$2:$S$1000)*('Fixed assets'!$P$2:$P$1000<Costs!$A642)*('Fixed assets'!$Q$2:$Q$1000=Costs!AA$617))-SUMPRODUCT(('Fixed assets'!$Q$2:$Q$1000=Costs!AA$617)*('Fixed assets'!$U$2:$U$1000=Costs!$A642)*('Fixed assets'!$S$2:$S$1000))+SUMPRODUCT(('Fixed assets'!$Q$2:$Q$1000=Costs!AA$617)*('Fixed assets'!$P$2:$P$1000=Costs!$A642)*('Fixed assets'!$U$2:$U$1000=Costs!$A642)*('Fixed assets'!$R$2:$R$1000))","v":0},{"$f":"SUMPRODUCT(('Fixed assets'!$R$2:$R$1000)*('Fixed assets'!$P$2:$P$1000<$A642)*('Fixed assets'!$Q$2:$Q$1000=Costs!AB$617))-SUMPRODUCT(('Fixed assets'!$S$2:$S$1000)*('Fixed assets'!$P$2:$P$1000<Costs!$A642)*('Fixed assets'!$Q$2:$Q$1000=Costs!AB$617))-SUMPRODUCT(('Fixed assets'!$Q$2:$Q$1000=Costs!AB$617)*('Fixed assets'!$U$2:$U$1000=Costs!$A642)*('Fixed assets'!$S$2:$S$1000))+SUMPRODUCT(('Fixed assets'!$Q$2:$Q$1000=Costs!AB$617)*('Fixed assets'!$P$2:$P$1000=Costs!$A642)*('Fixed assets'!$U$2:$U$1000=Costs!$A642)*('Fixed assets'!$R$2:$R$1000))","v":0},{"$f":"SUMPRODUCT(('Fixed assets'!$R$2:$R$1000)*('Fixed assets'!$P$2:$P$1000<$A642)*('Fixed assets'!$Q$2:$Q$1000=Costs!AC$617))-SUMPRODUCT(('Fixed assets'!$S$2:$S$1000)*('Fixed assets'!$P$2:$P$1000<Costs!$A642)*('Fixed assets'!$Q$2:$Q$1000=Costs!AC$617))-SUMPRODUCT(('Fixed assets'!$Q$2:$Q$1000=Costs!AC$617)*('Fixed assets'!$U$2:$U$1000=Costs!$A642)*('Fixed assets'!$S$2:$S$1000))+SUMPRODUCT(('Fixed assets'!$Q$2:$Q$1000=Costs!AC$617)*('Fixed assets'!$P$2:$P$1000=Costs!$A642)*('Fixed assets'!$U$2:$U$1000=Costs!$A642)*('Fixed assets'!$R$2:$R$1000))","v":0},{"$f":"SUMPRODUCT(('Fixed assets'!$R$2:$R$1000)*('Fixed assets'!$P$2:$P$1000<$A642)*('Fixed assets'!$Q$2:$Q$1000=Costs!AD$617))-SUMPRODUCT(('Fixed assets'!$S$2:$S$1000)*('Fixed assets'!$P$2:$P$1000<Costs!$A642)*('Fixed assets'!$Q$2:$Q$1000=Costs!AD$617))-SUMPRODUCT(('Fixed assets'!$Q$2:$Q$1000=Costs!AD$617)*('Fixed assets'!$U$2:$U$1000=Costs!$A642)*('Fixed assets'!$S$2:$S$1000))+SUMPRODUCT(('Fixed assets'!$Q$2:$Q$1000=Costs!AD$617)*('Fixed assets'!$P$2:$P$1000=Costs!$A642)*('Fixed assets'!$U$2:$U$1000=Costs!$A642)*('Fixed assets'!$R$2:$R$1000))","v":0},{"$f":"SUMPRODUCT(('Fixed assets'!$R$2:$R$1000)*('Fixed assets'!$P$2:$P$1000<$A642)*('Fixed assets'!$Q$2:$Q$1000=Costs!AE$617))-SUMPRODUCT(('Fixed assets'!$S$2:$S$1000)*('Fixed assets'!$P$2:$P$1000<Costs!$A642)*('Fixed assets'!$Q$2:$Q$1000=Costs!AE$617))-SUMPRODUCT(('Fixed assets'!$Q$2:$Q$1000=Costs!AE$617)*('Fixed assets'!$U$2:$U$1000=Costs!$A642)*('Fixed assets'!$S$2:$S$1000))+SUMPRODUCT(('Fixed assets'!$Q$2:$Q$1000=Costs!AE$617)*('Fixed assets'!$P$2:$P$1000=Costs!$A642)*('Fixed assets'!$U$2:$U$1000=Costs!$A642)*('Fixed assets'!$R$2:$R$1000))","v":0},{"$f":"SUMPRODUCT(('Fixed assets'!$R$2:$R$1000)*('Fixed assets'!$P$2:$P$1000<$A642)*('Fixed assets'!$Q$2:$Q$1000=Costs!AF$617))-SUMPRODUCT(('Fixed assets'!$S$2:$S$1000)*('Fixed assets'!$P$2:$P$1000<Costs!$A642)*('Fixed assets'!$Q$2:$Q$1000=Costs!AF$617))-SUMPRODUCT(('Fixed assets'!$Q$2:$Q$1000=Costs!AF$617)*('Fixed assets'!$U$2:$U$1000=Costs!$A642)*('Fixed assets'!$S$2:$S$1000))+SUMPRODUCT(('Fixed assets'!$Q$2:$Q$1000=Costs!AF$617)*('Fixed assets'!$P$2:$P$1000=Costs!$A642)*('Fixed assets'!$U$2:$U$1000=Costs!$A642)*('Fixed assets'!$R$2:$R$1000))","v":0},{"$f":"SUMPRODUCT(('Fixed assets'!$R$2:$R$1000)*('Fixed assets'!$P$2:$P$1000<$A642)*('Fixed assets'!$Q$2:$Q$1000=Costs!AG$617))-SUMPRODUCT(('Fixed assets'!$S$2:$S$1000)*('Fixed assets'!$P$2:$P$1000<Costs!$A642)*('Fixed assets'!$Q$2:$Q$1000=Costs!AG$617))-SUMPRODUCT(('Fixed assets'!$Q$2:$Q$1000=Costs!AG$617)*('Fixed assets'!$U$2:$U$1000=Costs!$A642)*('Fixed assets'!$S$2:$S$1000))+SUMPRODUCT(('Fixed assets'!$Q$2:$Q$1000=Costs!AG$617)*('Fixed assets'!$P$2:$P$1000=Costs!$A642)*('Fixed assets'!$U$2:$U$1000=Costs!$A642)*('Fixed assets'!$R$2:$R$1000))","v":0},{"$f":"SUMPRODUCT(('Fixed assets'!$R$2:$R$1000)*('Fixed assets'!$P$2:$P$1000<$A642)*('Fixed assets'!$Q$2:$Q$1000=Costs!AH$617))-SUMPRODUCT(('Fixed assets'!$S$2:$S$1000)*('Fixed assets'!$P$2:$P$1000<Costs!$A642)*('Fixed assets'!$Q$2:$Q$1000=Costs!AH$617))-SUMPRODUCT(('Fixed assets'!$Q$2:$Q$1000=Costs!AH$617)*('Fixed assets'!$U$2:$U$1000=Costs!$A642)*('Fixed assets'!$S$2:$S$1000))+SUMPRODUCT(('Fixed assets'!$Q$2:$Q$1000=Costs!AH$617)*('Fixed assets'!$P$2:$P$1000=Costs!$A642)*('Fixed assets'!$U$2:$U$1000=Costs!$A642)*('Fixed assets'!$R$2:$R$1000))","v":0},{"$f":"SUMPRODUCT(('Fixed assets'!$R$2:$R$1000)*('Fixed assets'!$P$2:$P$1000<$A642)*('Fixed assets'!$Q$2:$Q$1000=Costs!AI$617))-SUMPRODUCT(('Fixed assets'!$S$2:$S$1000)*('Fixed assets'!$P$2:$P$1000<Costs!$A642)*('Fixed assets'!$Q$2:$Q$1000=Costs!AI$617))-SUMPRODUCT(('Fixed assets'!$Q$2:$Q$1000=Costs!AI$617)*('Fixed assets'!$U$2:$U$1000=Costs!$A642)*('Fixed assets'!$S$2:$S$1000))+SUMPRODUCT(('Fixed assets'!$Q$2:$Q$1000=Costs!AI$617)*('Fixed assets'!$P$2:$P$1000=Costs!$A642)*('Fixed assets'!$U$2:$U$1000=Costs!$A642)*('Fixed assets'!$R$2:$R$1000))","v":0},{"$f":"SUMPRODUCT(('Fixed assets'!$R$2:$R$1000)*('Fixed assets'!$P$2:$P$1000<$A642)*('Fixed assets'!$Q$2:$Q$1000=Costs!AJ$617))-SUMPRODUCT(('Fixed assets'!$S$2:$S$1000)*('Fixed assets'!$P$2:$P$1000<Costs!$A642)*('Fixed assets'!$Q$2:$Q$1000=Costs!AJ$617))-SUMPRODUCT(('Fixed assets'!$Q$2:$Q$1000=Costs!AJ$617)*('Fixed assets'!$U$2:$U$1000=Costs!$A642)*('Fixed assets'!$S$2:$S$1000))+SUMPRODUCT(('Fixed assets'!$Q$2:$Q$1000=Costs!AJ$617)*('Fixed assets'!$P$2:$P$1000=Costs!$A642)*('Fixed assets'!$U$2:$U$1000=Costs!$A642)*('Fixed assets'!$R$2:$R$1000))","v":0},{"$f":"SUMPRODUCT(('Fixed assets'!$R$2:$R$1000)*('Fixed assets'!$P$2:$P$1000<$A642)*('Fixed assets'!$Q$2:$Q$1000=Costs!AK$617))-SUMPRODUCT(('Fixed assets'!$S$2:$S$1000)*('Fixed assets'!$P$2:$P$1000<Costs!$A642)*('Fixed assets'!$Q$2:$Q$1000=Costs!AK$617))-SUMPRODUCT(('Fixed assets'!$Q$2:$Q$1000=Costs!AK$617)*('Fixed assets'!$U$2:$U$1000=Costs!$A642)*('Fixed assets'!$S$2:$S$1000))+SUMPRODUCT(('Fixed assets'!$Q$2:$Q$1000=Costs!AK$617)*('Fixed assets'!$P$2:$P$1000=Costs!$A642)*('Fixed assets'!$U$2:$U$1000=Costs!$A642)*('Fixed assets'!$R$2:$R$1000))","v":0},{"$f":"SUMPRODUCT(('Fixed assets'!$R$2:$R$1000)*('Fixed assets'!$P$2:$P$1000<$A642)*('Fixed assets'!$Q$2:$Q$1000=Costs!AL$617))-SUMPRODUCT(('Fixed assets'!$S$2:$S$1000)*('Fixed assets'!$P$2:$P$1000<Costs!$A642)*('Fixed assets'!$Q$2:$Q$1000=Costs!AL$617))-SUMPRODUCT(('Fixed assets'!$Q$2:$Q$1000=Costs!AL$617)*('Fixed assets'!$U$2:$U$1000=Costs!$A642)*('Fixed assets'!$S$2:$S$1000))+SUMPRODUCT(('Fixed assets'!$Q$2:$Q$1000=Costs!AL$617)*('Fixed assets'!$P$2:$P$1000=Costs!$A642)*('Fixed assets'!$U$2:$U$1000=Costs!$A642)*('Fixed assets'!$R$2:$R$1000))","v":0},{"$f":"SUMPRODUCT(('Fixed assets'!$R$2:$R$1000)*('Fixed assets'!$P$2:$P$1000<$A642)*('Fixed assets'!$Q$2:$Q$1000=Costs!AM$617))-SUMPRODUCT(('Fixed assets'!$S$2:$S$1000)*('Fixed assets'!$P$2:$P$1000<Costs!$A642)*('Fixed assets'!$Q$2:$Q$1000=Costs!AM$617))-SUMPRODUCT(('Fixed assets'!$Q$2:$Q$1000=Costs!AM$617)*('Fixed assets'!$U$2:$U$1000=Costs!$A642)*('Fixed assets'!$S$2:$S$1000))+SUMPRODUCT(('Fixed assets'!$Q$2:$Q$1000=Costs!AM$617)*('Fixed assets'!$P$2:$P$1000=Costs!$A642)*('Fixed assets'!$U$2:$U$1000=Costs!$A642)*('Fixed assets'!$R$2:$R$1000))","v":0},{"$f":"SUMPRODUCT(('Fixed assets'!$R$2:$R$1000)*('Fixed assets'!$P$2:$P$1000<$A642)*('Fixed assets'!$Q$2:$Q$1000=Costs!AN$617))-SUMPRODUCT(('Fixed assets'!$S$2:$S$1000)*('Fixed assets'!$P$2:$P$1000<Costs!$A642)*('Fixed assets'!$Q$2:$Q$1000=Costs!AN$617))-SUMPRODUCT(('Fixed assets'!$Q$2:$Q$1000=Costs!AN$617)*('Fixed assets'!$U$2:$U$1000=Costs!$A642)*('Fixed assets'!$S$2:$S$1000))+SUMPRODUCT(('Fixed assets'!$Q$2:$Q$1000=Costs!AN$617)*('Fixed assets'!$P$2:$P$1000=Costs!$A642)*('Fixed assets'!$U$2:$U$1000=Costs!$A642)*('Fixed assets'!$R$2:$R$1000))","v":0},{"$f":"SUMPRODUCT(('Fixed assets'!$R$2:$R$1000)*('Fixed assets'!$P$2:$P$1000<$A642)*('Fixed assets'!$Q$2:$Q$1000=Costs!AO$617))-SUMPRODUCT(('Fixed assets'!$S$2:$S$1000)*('Fixed assets'!$P$2:$P$1000<Costs!$A642)*('Fixed assets'!$Q$2:$Q$1000=Costs!AO$617))-SUMPRODUCT(('Fixed assets'!$Q$2:$Q$1000=Costs!AO$617)*('Fixed assets'!$U$2:$U$1000=Costs!$A642)*('Fixed assets'!$S$2:$S$1000))+SUMPRODUCT(('Fixed assets'!$Q$2:$Q$1000=Costs!AO$617)*('Fixed assets'!$P$2:$P$1000=Costs!$A642)*('Fixed assets'!$U$2:$U$1000=Costs!$A642)*('Fixed assets'!$R$2:$R$1000))","v":0},{"$f":"SUMPRODUCT(('Fixed assets'!$R$2:$R$1000)*('Fixed assets'!$P$2:$P$1000<$A642)*('Fixed assets'!$Q$2:$Q$1000=Costs!AP$617))-SUMPRODUCT(('Fixed assets'!$S$2:$S$1000)*('Fixed assets'!$P$2:$P$1000<Costs!$A642)*('Fixed assets'!$Q$2:$Q$1000=Costs!AP$617))-SUMPRODUCT(('Fixed assets'!$Q$2:$Q$1000=Costs!AP$617)*('Fixed assets'!$U$2:$U$1000=Costs!$A642)*('Fixed assets'!$S$2:$S$1000))+SUMPRODUCT(('Fixed assets'!$Q$2:$Q$1000=Costs!AP$617)*('Fixed assets'!$P$2:$P$1000=Costs!$A642)*('Fixed assets'!$U$2:$U$1000=Costs!$A642)*('Fixed assets'!$R$2:$R$1000))","v":0},{"$f":"SUMPRODUCT(('Fixed assets'!$R$2:$R$1000)*('Fixed assets'!$P$2:$P$1000<$A642)*('Fixed assets'!$Q$2:$Q$1000=Costs!AQ$617))-SUMPRODUCT(('Fixed assets'!$S$2:$S$1000)*('Fixed assets'!$P$2:$P$1000<Costs!$A642)*('Fixed assets'!$Q$2:$Q$1000=Costs!AQ$617))-SUMPRODUCT(('Fixed assets'!$Q$2:$Q$1000=Costs!AQ$617)*('Fixed assets'!$U$2:$U$1000=Costs!$A642)*('Fixed assets'!$S$2:$S$1000))+SUMPRODUCT(('Fixed assets'!$Q$2:$Q$1000=Costs!AQ$617)*('Fixed assets'!$P$2:$P$1000=Costs!$A642)*('Fixed assets'!$U$2:$U$1000=Costs!$A642)*('Fixed assets'!$R$2:$R$1000))","v":0}]
[2040,0,{"$f":"SUMPRODUCT(('Fixed assets'!$R$2:$R$1000)*('Fixed assets'!$P$2:$P$1000<$A643)*('Fixed assets'!$Q$2:$Q$1000=Costs!C$617))-SUMPRODUCT(('Fixed assets'!$S$2:$S$1000)*('Fixed assets'!$P$2:$P$1000<Costs!$A643)*('Fixed assets'!$Q$2:$Q$1000=Costs!C$617))-SUMPRODUCT(('Fixed assets'!$Q$2:$Q$1000=Costs!C$617)*('Fixed assets'!$U$2:$U$1000=Costs!$A643)*('Fixed assets'!$S$2:$S$1000))+SUMPRODUCT(('Fixed assets'!$Q$2:$Q$1000=Costs!C$617)*('Fixed assets'!$P$2:$P$1000=Costs!$A643)*('Fixed assets'!$U$2:$U$1000=Costs!$A643)*('Fixed assets'!$R$2:$R$1000))","v":0},{"$f":"SUMPRODUCT(('Fixed assets'!$R$2:$R$1000)*('Fixed assets'!$P$2:$P$1000<$A643)*('Fixed assets'!$Q$2:$Q$1000=Costs!D$617))-SUMPRODUCT(('Fixed assets'!$S$2:$S$1000)*('Fixed assets'!$P$2:$P$1000<Costs!$A643)*('Fixed assets'!$Q$2:$Q$1000=Costs!D$617))-SUMPRODUCT(('Fixed assets'!$Q$2:$Q$1000=Costs!D$617)*('Fixed assets'!$U$2:$U$1000=Costs!$A643)*('Fixed assets'!$S$2:$S$1000))+SUMPRODUCT(('Fixed assets'!$Q$2:$Q$1000=Costs!D$617)*('Fixed assets'!$P$2:$P$1000=Costs!$A643)*('Fixed assets'!$U$2:$U$1000=Costs!$A643)*('Fixed assets'!$R$2:$R$1000))","v":0},{"$f":"SUMPRODUCT(('Fixed assets'!$R$2:$R$1000)*('Fixed assets'!$P$2:$P$1000<$A643)*('Fixed assets'!$Q$2:$Q$1000=Costs!E$617))-SUMPRODUCT(('Fixed assets'!$S$2:$S$1000)*('Fixed assets'!$P$2:$P$1000<Costs!$A643)*('Fixed assets'!$Q$2:$Q$1000=Costs!E$617))-SUMPRODUCT(('Fixed assets'!$Q$2:$Q$1000=Costs!E$617)*('Fixed assets'!$U$2:$U$1000=Costs!$A643)*('Fixed assets'!$S$2:$S$1000))+SUMPRODUCT(('Fixed assets'!$Q$2:$Q$1000=Costs!E$617)*('Fixed assets'!$P$2:$P$1000=Costs!$A643)*('Fixed assets'!$U$2:$U$1000=Costs!$A643)*('Fixed assets'!$R$2:$R$1000))","v":0},{"$f":"SUMPRODUCT(('Fixed assets'!$R$2:$R$1000)*('Fixed assets'!$P$2:$P$1000<$A643)*('Fixed assets'!$Q$2:$Q$1000=Costs!F$617))-SUMPRODUCT(('Fixed assets'!$S$2:$S$1000)*('Fixed assets'!$P$2:$P$1000<Costs!$A643)*('Fixed assets'!$Q$2:$Q$1000=Costs!F$617))-SUMPRODUCT(('Fixed assets'!$Q$2:$Q$1000=Costs!F$617)*('Fixed assets'!$U$2:$U$1000=Costs!$A643)*('Fixed assets'!$S$2:$S$1000))+SUMPRODUCT(('Fixed assets'!$Q$2:$Q$1000=Costs!F$617)*('Fixed assets'!$P$2:$P$1000=Costs!$A643)*('Fixed assets'!$U$2:$U$1000=Costs!$A643)*('Fixed assets'!$R$2:$R$1000))","v":0},{"$f":"SUMPRODUCT(('Fixed assets'!$R$2:$R$1000)*('Fixed assets'!$P$2:$P$1000<$A643)*('Fixed assets'!$Q$2:$Q$1000=Costs!G$617))-SUMPRODUCT(('Fixed assets'!$S$2:$S$1000)*('Fixed assets'!$P$2:$P$1000<Costs!$A643)*('Fixed assets'!$Q$2:$Q$1000=Costs!G$617))-SUMPRODUCT(('Fixed assets'!$Q$2:$Q$1000=Costs!G$617)*('Fixed assets'!$U$2:$U$1000=Costs!$A643)*('Fixed assets'!$S$2:$S$1000))+SUMPRODUCT(('Fixed assets'!$Q$2:$Q$1000=Costs!G$617)*('Fixed assets'!$P$2:$P$1000=Costs!$A643)*('Fixed assets'!$U$2:$U$1000=Costs!$A643)*('Fixed assets'!$R$2:$R$1000))","v":0},{"$f":"SUMPRODUCT(('Fixed assets'!$R$2:$R$1000)*('Fixed assets'!$P$2:$P$1000<$A643)*('Fixed assets'!$Q$2:$Q$1000=Costs!H$617))-SUMPRODUCT(('Fixed assets'!$S$2:$S$1000)*('Fixed assets'!$P$2:$P$1000<Costs!$A643)*('Fixed assets'!$Q$2:$Q$1000=Costs!H$617))-SUMPRODUCT(('Fixed assets'!$Q$2:$Q$1000=Costs!H$617)*('Fixed assets'!$U$2:$U$1000=Costs!$A643)*('Fixed assets'!$S$2:$S$1000))+SUMPRODUCT(('Fixed assets'!$Q$2:$Q$1000=Costs!H$617)*('Fixed assets'!$P$2:$P$1000=Costs!$A643)*('Fixed assets'!$U$2:$U$1000=Costs!$A643)*('Fixed assets'!$R$2:$R$1000))","v":0},{"$f":"SUMPRODUCT(('Fixed assets'!$R$2:$R$1000)*('Fixed assets'!$P$2:$P$1000<$A643)*('Fixed assets'!$Q$2:$Q$1000=Costs!I$617))-SUMPRODUCT(('Fixed assets'!$S$2:$S$1000)*('Fixed assets'!$P$2:$P$1000<Costs!$A643)*('Fixed assets'!$Q$2:$Q$1000=Costs!I$617))-SUMPRODUCT(('Fixed assets'!$Q$2:$Q$1000=Costs!I$617)*('Fixed assets'!$U$2:$U$1000=Costs!$A643)*('Fixed assets'!$S$2:$S$1000))+SUMPRODUCT(('Fixed assets'!$Q$2:$Q$1000=Costs!I$617)*('Fixed assets'!$P$2:$P$1000=Costs!$A643)*('Fixed assets'!$U$2:$U$1000=Costs!$A643)*('Fixed assets'!$R$2:$R$1000))","v":0},{"$f":"SUMPRODUCT(('Fixed assets'!$R$2:$R$1000)*('Fixed assets'!$P$2:$P$1000<$A643)*('Fixed assets'!$Q$2:$Q$1000=Costs!J$617))-SUMPRODUCT(('Fixed assets'!$S$2:$S$1000)*('Fixed assets'!$P$2:$P$1000<Costs!$A643)*('Fixed assets'!$Q$2:$Q$1000=Costs!J$617))-SUMPRODUCT(('Fixed assets'!$Q$2:$Q$1000=Costs!J$617)*('Fixed assets'!$U$2:$U$1000=Costs!$A643)*('Fixed assets'!$S$2:$S$1000))+SUMPRODUCT(('Fixed assets'!$Q$2:$Q$1000=Costs!J$617)*('Fixed assets'!$P$2:$P$1000=Costs!$A643)*('Fixed assets'!$U$2:$U$1000=Costs!$A643)*('Fixed assets'!$R$2:$R$1000))","v":0},{"$f":"SUMPRODUCT(('Fixed assets'!$R$2:$R$1000)*('Fixed assets'!$P$2:$P$1000<$A643)*('Fixed assets'!$Q$2:$Q$1000=Costs!K$617))-SUMPRODUCT(('Fixed assets'!$S$2:$S$1000)*('Fixed assets'!$P$2:$P$1000<Costs!$A643)*('Fixed assets'!$Q$2:$Q$1000=Costs!K$617))-SUMPRODUCT(('Fixed assets'!$Q$2:$Q$1000=Costs!K$617)*('Fixed assets'!$U$2:$U$1000=Costs!$A643)*('Fixed assets'!$S$2:$S$1000))+SUMPRODUCT(('Fixed assets'!$Q$2:$Q$1000=Costs!K$617)*('Fixed assets'!$P$2:$P$1000=Costs!$A643)*('Fixed assets'!$U$2:$U$1000=Costs!$A643)*('Fixed assets'!$R$2:$R$1000))","v":0},{"$f":"SUMPRODUCT(('Fixed assets'!$R$2:$R$1000)*('Fixed assets'!$P$2:$P$1000<$A643)*('Fixed assets'!$Q$2:$Q$1000=Costs!L$617))-SUMPRODUCT(('Fixed assets'!$S$2:$S$1000)*('Fixed assets'!$P$2:$P$1000<Costs!$A643)*('Fixed assets'!$Q$2:$Q$1000=Costs!L$617))-SUMPRODUCT(('Fixed assets'!$Q$2:$Q$1000=Costs!L$617)*('Fixed assets'!$U$2:$U$1000=Costs!$A643)*('Fixed assets'!$S$2:$S$1000))+SUMPRODUCT(('Fixed assets'!$Q$2:$Q$1000=Costs!L$617)*('Fixed assets'!$P$2:$P$1000=Costs!$A643)*('Fixed assets'!$U$2:$U$1000=Costs!$A643)*('Fixed assets'!$R$2:$R$1000))","v":0},{"$f":"SUMPRODUCT(('Fixed assets'!$R$2:$R$1000)*('Fixed assets'!$P$2:$P$1000<$A643)*('Fixed assets'!$Q$2:$Q$1000=Costs!M$617))-SUMPRODUCT(('Fixed assets'!$S$2:$S$1000)*('Fixed assets'!$P$2:$P$1000<Costs!$A643)*('Fixed assets'!$Q$2:$Q$1000=Costs!M$617))-SUMPRODUCT(('Fixed assets'!$Q$2:$Q$1000=Costs!M$617)*('Fixed assets'!$U$2:$U$1000=Costs!$A643)*('Fixed assets'!$S$2:$S$1000))+SUMPRODUCT(('Fixed assets'!$Q$2:$Q$1000=Costs!M$617)*('Fixed assets'!$P$2:$P$1000=Costs!$A643)*('Fixed assets'!$U$2:$U$1000=Costs!$A643)*('Fixed assets'!$R$2:$R$1000))","v":0},{"$f":"SUMPRODUCT(('Fixed assets'!$R$2:$R$1000)*('Fixed assets'!$P$2:$P$1000<$A643)*('Fixed assets'!$Q$2:$Q$1000=Costs!N$617))-SUMPRODUCT(('Fixed assets'!$S$2:$S$1000)*('Fixed assets'!$P$2:$P$1000<Costs!$A643)*('Fixed assets'!$Q$2:$Q$1000=Costs!N$617))-SUMPRODUCT(('Fixed assets'!$Q$2:$Q$1000=Costs!N$617)*('Fixed assets'!$U$2:$U$1000=Costs!$A643)*('Fixed assets'!$S$2:$S$1000))+SUMPRODUCT(('Fixed assets'!$Q$2:$Q$1000=Costs!N$617)*('Fixed assets'!$P$2:$P$1000=Costs!$A643)*('Fixed assets'!$U$2:$U$1000=Costs!$A643)*('Fixed assets'!$R$2:$R$1000))","v":0},{"$f":"SUMPRODUCT(('Fixed assets'!$R$2:$R$1000)*('Fixed assets'!$P$2:$P$1000<$A643)*('Fixed assets'!$Q$2:$Q$1000=Costs!O$617))-SUMPRODUCT(('Fixed assets'!$S$2:$S$1000)*('Fixed assets'!$P$2:$P$1000<Costs!$A643)*('Fixed assets'!$Q$2:$Q$1000=Costs!O$617))-SUMPRODUCT(('Fixed assets'!$Q$2:$Q$1000=Costs!O$617)*('Fixed assets'!$U$2:$U$1000=Costs!$A643)*('Fixed assets'!$S$2:$S$1000))+SUMPRODUCT(('Fixed assets'!$Q$2:$Q$1000=Costs!O$617)*('Fixed assets'!$P$2:$P$1000=Costs!$A643)*('Fixed assets'!$U$2:$U$1000=Costs!$A643)*('Fixed assets'!$R$2:$R$1000))","v":0},{"$f":"SUMPRODUCT(('Fixed assets'!$R$2:$R$1000)*('Fixed assets'!$P$2:$P$1000<$A643)*('Fixed assets'!$Q$2:$Q$1000=Costs!P$617))-SUMPRODUCT(('Fixed assets'!$S$2:$S$1000)*('Fixed assets'!$P$2:$P$1000<Costs!$A643)*('Fixed assets'!$Q$2:$Q$1000=Costs!P$617))-SUMPRODUCT(('Fixed assets'!$Q$2:$Q$1000=Costs!P$617)*('Fixed assets'!$U$2:$U$1000=Costs!$A643)*('Fixed assets'!$S$2:$S$1000))+SUMPRODUCT(('Fixed assets'!$Q$2:$Q$1000=Costs!P$617)*('Fixed assets'!$P$2:$P$1000=Costs!$A643)*('Fixed assets'!$U$2:$U$1000=Costs!$A643)*('Fixed assets'!$R$2:$R$1000))","v":0},{"$f":"SUMPRODUCT(('Fixed assets'!$R$2:$R$1000)*('Fixed assets'!$P$2:$P$1000<$A643)*('Fixed assets'!$Q$2:$Q$1000=Costs!Q$617))-SUMPRODUCT(('Fixed assets'!$S$2:$S$1000)*('Fixed assets'!$P$2:$P$1000<Costs!$A643)*('Fixed assets'!$Q$2:$Q$1000=Costs!Q$617))-SUMPRODUCT(('Fixed assets'!$Q$2:$Q$1000=Costs!Q$617)*('Fixed assets'!$U$2:$U$1000=Costs!$A643)*('Fixed assets'!$S$2:$S$1000))+SUMPRODUCT(('Fixed assets'!$Q$2:$Q$1000=Costs!Q$617)*('Fixed assets'!$P$2:$P$1000=Costs!$A643)*('Fixed assets'!$U$2:$U$1000=Costs!$A643)*('Fixed assets'!$R$2:$R$1000))","v":0},{"$f":"SUMPRODUCT(('Fixed assets'!$R$2:$R$1000)*('Fixed assets'!$P$2:$P$1000<$A643)*('Fixed assets'!$Q$2:$Q$1000=Costs!R$617))-SUMPRODUCT(('Fixed assets'!$S$2:$S$1000)*('Fixed assets'!$P$2:$P$1000<Costs!$A643)*('Fixed assets'!$Q$2:$Q$1000=Costs!R$617))-SUMPRODUCT(('Fixed assets'!$Q$2:$Q$1000=Costs!R$617)*('Fixed assets'!$U$2:$U$1000=Costs!$A643)*('Fixed assets'!$S$2:$S$1000))+SUMPRODUCT(('Fixed assets'!$Q$2:$Q$1000=Costs!R$617)*('Fixed assets'!$P$2:$P$1000=Costs!$A643)*('Fixed assets'!$U$2:$U$1000=Costs!$A643)*('Fixed assets'!$R$2:$R$1000))","v":0},{"$f":"SUMPRODUCT(('Fixed assets'!$R$2:$R$1000)*('Fixed assets'!$P$2:$P$1000<$A643)*('Fixed assets'!$Q$2:$Q$1000=Costs!S$617))-SUMPRODUCT(('Fixed assets'!$S$2:$S$1000)*('Fixed assets'!$P$2:$P$1000<Costs!$A643)*('Fixed assets'!$Q$2:$Q$1000=Costs!S$617))-SUMPRODUCT(('Fixed assets'!$Q$2:$Q$1000=Costs!S$617)*('Fixed assets'!$U$2:$U$1000=Costs!$A643)*('Fixed assets'!$S$2:$S$1000))+SUMPRODUCT(('Fixed assets'!$Q$2:$Q$1000=Costs!S$617)*('Fixed assets'!$P$2:$P$1000=Costs!$A643)*('Fixed assets'!$U$2:$U$1000=Costs!$A643)*('Fixed assets'!$R$2:$R$1000))","v":0},{"$f":"SUMPRODUCT(('Fixed assets'!$R$2:$R$1000)*('Fixed assets'!$P$2:$P$1000<$A643)*('Fixed assets'!$Q$2:$Q$1000=Costs!T$617))-SUMPRODUCT(('Fixed assets'!$S$2:$S$1000)*('Fixed assets'!$P$2:$P$1000<Costs!$A643)*('Fixed assets'!$Q$2:$Q$1000=Costs!T$617))-SUMPRODUCT(('Fixed assets'!$Q$2:$Q$1000=Costs!T$617)*('Fixed assets'!$U$2:$U$1000=Costs!$A643)*('Fixed assets'!$S$2:$S$1000))+SUMPRODUCT(('Fixed assets'!$Q$2:$Q$1000=Costs!T$617)*('Fixed assets'!$P$2:$P$1000=Costs!$A643)*('Fixed assets'!$U$2:$U$1000=Costs!$A643)*('Fixed assets'!$R$2:$R$1000))","v":0},{"$f":"SUMPRODUCT(('Fixed assets'!$R$2:$R$1000)*('Fixed assets'!$P$2:$P$1000<$A643)*('Fixed assets'!$Q$2:$Q$1000=Costs!U$617))-SUMPRODUCT(('Fixed assets'!$S$2:$S$1000)*('Fixed assets'!$P$2:$P$1000<Costs!$A643)*('Fixed assets'!$Q$2:$Q$1000=Costs!U$617))-SUMPRODUCT(('Fixed assets'!$Q$2:$Q$1000=Costs!U$617)*('Fixed assets'!$U$2:$U$1000=Costs!$A643)*('Fixed assets'!$S$2:$S$1000))+SUMPRODUCT(('Fixed assets'!$Q$2:$Q$1000=Costs!U$617)*('Fixed assets'!$P$2:$P$1000=Costs!$A643)*('Fixed assets'!$U$2:$U$1000=Costs!$A643)*('Fixed assets'!$R$2:$R$1000))","v":0},{"$f":"SUMPRODUCT(('Fixed assets'!$R$2:$R$1000)*('Fixed assets'!$P$2:$P$1000<$A643)*('Fixed assets'!$Q$2:$Q$1000=Costs!V$617))-SUMPRODUCT(('Fixed assets'!$S$2:$S$1000)*('Fixed assets'!$P$2:$P$1000<Costs!$A643)*('Fixed assets'!$Q$2:$Q$1000=Costs!V$617))-SUMPRODUCT(('Fixed assets'!$Q$2:$Q$1000=Costs!V$617)*('Fixed assets'!$U$2:$U$1000=Costs!$A643)*('Fixed assets'!$S$2:$S$1000))+SUMPRODUCT(('Fixed assets'!$Q$2:$Q$1000=Costs!V$617)*('Fixed assets'!$P$2:$P$1000=Costs!$A643)*('Fixed assets'!$U$2:$U$1000=Costs!$A643)*('Fixed assets'!$R$2:$R$1000))","v":0},{"$f":"SUMPRODUCT(('Fixed assets'!$R$2:$R$1000)*('Fixed assets'!$P$2:$P$1000<$A643)*('Fixed assets'!$Q$2:$Q$1000=Costs!W$617))-SUMPRODUCT(('Fixed assets'!$S$2:$S$1000)*('Fixed assets'!$P$2:$P$1000<Costs!$A643)*('Fixed assets'!$Q$2:$Q$1000=Costs!W$617))-SUMPRODUCT(('Fixed assets'!$Q$2:$Q$1000=Costs!W$617)*('Fixed assets'!$U$2:$U$1000=Costs!$A643)*('Fixed assets'!$S$2:$S$1000))+SUMPRODUCT(('Fixed assets'!$Q$2:$Q$1000=Costs!W$617)*('Fixed assets'!$P$2:$P$1000=Costs!$A643)*('Fixed assets'!$U$2:$U$1000=Costs!$A643)*('Fixed assets'!$R$2:$R$1000))","v":0},{"$f":"SUMPRODUCT(('Fixed assets'!$R$2:$R$1000)*('Fixed assets'!$P$2:$P$1000<$A643)*('Fixed assets'!$Q$2:$Q$1000=Costs!X$617))-SUMPRODUCT(('Fixed assets'!$S$2:$S$1000)*('Fixed assets'!$P$2:$P$1000<Costs!$A643)*('Fixed assets'!$Q$2:$Q$1000=Costs!X$617))-SUMPRODUCT(('Fixed assets'!$Q$2:$Q$1000=Costs!X$617)*('Fixed assets'!$U$2:$U$1000=Costs!$A643)*('Fixed assets'!$S$2:$S$1000))+SUMPRODUCT(('Fixed assets'!$Q$2:$Q$1000=Costs!X$617)*('Fixed assets'!$P$2:$P$1000=Costs!$A643)*('Fixed assets'!$U$2:$U$1000=Costs!$A643)*('Fixed assets'!$R$2:$R$1000))","v":0},{"$f":"SUMPRODUCT(('Fixed assets'!$R$2:$R$1000)*('Fixed assets'!$P$2:$P$1000<$A643)*('Fixed assets'!$Q$2:$Q$1000=Costs!Y$617))-SUMPRODUCT(('Fixed assets'!$S$2:$S$1000)*('Fixed assets'!$P$2:$P$1000<Costs!$A643)*('Fixed assets'!$Q$2:$Q$1000=Costs!Y$617))-SUMPRODUCT(('Fixed assets'!$Q$2:$Q$1000=Costs!Y$617)*('Fixed assets'!$U$2:$U$1000=Costs!$A643)*('Fixed assets'!$S$2:$S$1000))+SUMPRODUCT(('Fixed assets'!$Q$2:$Q$1000=Costs!Y$617)*('Fixed assets'!$P$2:$P$1000=Costs!$A643)*('Fixed assets'!$U$2:$U$1000=Costs!$A643)*('Fixed assets'!$R$2:$R$1000))","v":0},{"$f":"SUMPRODUCT(('Fixed assets'!$R$2:$R$1000)*('Fixed assets'!$P$2:$P$1000<$A643)*('Fixed assets'!$Q$2:$Q$1000=Costs!Z$617))-SUMPRODUCT(('Fixed assets'!$S$2:$S$1000)*('Fixed assets'!$P$2:$P$1000<Costs!$A643)*('Fixed assets'!$Q$2:$Q$1000=Costs!Z$617))-SUMPRODUCT(('Fixed assets'!$Q$2:$Q$1000=Costs!Z$617)*('Fixed assets'!$U$2:$U$1000=Costs!$A643)*('Fixed assets'!$S$2:$S$1000))+SUMPRODUCT(('Fixed assets'!$Q$2:$Q$1000=Costs!Z$617)*('Fixed assets'!$P$2:$P$1000=Costs!$A643)*('Fixed assets'!$U$2:$U$1000=Costs!$A643)*('Fixed assets'!$R$2:$R$1000))","v":0},{"$f":"SUMPRODUCT(('Fixed assets'!$R$2:$R$1000)*('Fixed assets'!$P$2:$P$1000<$A643)*('Fixed assets'!$Q$2:$Q$1000=Costs!AA$617))-SUMPRODUCT(('Fixed assets'!$S$2:$S$1000)*('Fixed assets'!$P$2:$P$1000<Costs!$A643)*('Fixed assets'!$Q$2:$Q$1000=Costs!AA$617))-SUMPRODUCT(('Fixed assets'!$Q$2:$Q$1000=Costs!AA$617)*('Fixed assets'!$U$2:$U$1000=Costs!$A643)*('Fixed assets'!$S$2:$S$1000))+SUMPRODUCT(('Fixed assets'!$Q$2:$Q$1000=Costs!AA$617)*('Fixed assets'!$P$2:$P$1000=Costs!$A643)*('Fixed assets'!$U$2:$U$1000=Costs!$A643)*('Fixed assets'!$R$2:$R$1000))","v":0},{"$f":"SUMPRODUCT(('Fixed assets'!$R$2:$R$1000)*('Fixed assets'!$P$2:$P$1000<$A643)*('Fixed assets'!$Q$2:$Q$1000=Costs!AB$617))-SUMPRODUCT(('Fixed assets'!$S$2:$S$1000)*('Fixed assets'!$P$2:$P$1000<Costs!$A643)*('Fixed assets'!$Q$2:$Q$1000=Costs!AB$617))-SUMPRODUCT(('Fixed assets'!$Q$2:$Q$1000=Costs!AB$617)*('Fixed assets'!$U$2:$U$1000=Costs!$A643)*('Fixed assets'!$S$2:$S$1000))+SUMPRODUCT(('Fixed assets'!$Q$2:$Q$1000=Costs!AB$617)*('Fixed assets'!$P$2:$P$1000=Costs!$A643)*('Fixed assets'!$U$2:$U$1000=Costs!$A643)*('Fixed assets'!$R$2:$R$1000))","v":0},{"$f":"SUMPRODUCT(('Fixed assets'!$R$2:$R$1000)*('Fixed assets'!$P$2:$P$1000<$A643)*('Fixed assets'!$Q$2:$Q$1000=Costs!AC$617))-SUMPRODUCT(('Fixed assets'!$S$2:$S$1000)*('Fixed assets'!$P$2:$P$1000<Costs!$A643)*('Fixed assets'!$Q$2:$Q$1000=Costs!AC$617))-SUMPRODUCT(('Fixed assets'!$Q$2:$Q$1000=Costs!AC$617)*('Fixed assets'!$U$2:$U$1000=Costs!$A643)*('Fixed assets'!$S$2:$S$1000))+SUMPRODUCT(('Fixed assets'!$Q$2:$Q$1000=Costs!AC$617)*('Fixed assets'!$P$2:$P$1000=Costs!$A643)*('Fixed assets'!$U$2:$U$1000=Costs!$A643)*('Fixed assets'!$R$2:$R$1000))","v":0},{"$f":"SUMPRODUCT(('Fixed assets'!$R$2:$R$1000)*('Fixed assets'!$P$2:$P$1000<$A643)*('Fixed assets'!$Q$2:$Q$1000=Costs!AD$617))-SUMPRODUCT(('Fixed assets'!$S$2:$S$1000)*('Fixed assets'!$P$2:$P$1000<Costs!$A643)*('Fixed assets'!$Q$2:$Q$1000=Costs!AD$617))-SUMPRODUCT(('Fixed assets'!$Q$2:$Q$1000=Costs!AD$617)*('Fixed assets'!$U$2:$U$1000=Costs!$A643)*('Fixed assets'!$S$2:$S$1000))+SUMPRODUCT(('Fixed assets'!$Q$2:$Q$1000=Costs!AD$617)*('Fixed assets'!$P$2:$P$1000=Costs!$A643)*('Fixed assets'!$U$2:$U$1000=Costs!$A643)*('Fixed assets'!$R$2:$R$1000))","v":0},{"$f":"SUMPRODUCT(('Fixed assets'!$R$2:$R$1000)*('Fixed assets'!$P$2:$P$1000<$A643)*('Fixed assets'!$Q$2:$Q$1000=Costs!AE$617))-SUMPRODUCT(('Fixed assets'!$S$2:$S$1000)*('Fixed assets'!$P$2:$P$1000<Costs!$A643)*('Fixed assets'!$Q$2:$Q$1000=Costs!AE$617))-SUMPRODUCT(('Fixed assets'!$Q$2:$Q$1000=Costs!AE$617)*('Fixed assets'!$U$2:$U$1000=Costs!$A643)*('Fixed assets'!$S$2:$S$1000))+SUMPRODUCT(('Fixed assets'!$Q$2:$Q$1000=Costs!AE$617)*('Fixed assets'!$P$2:$P$1000=Costs!$A643)*('Fixed assets'!$U$2:$U$1000=Costs!$A643)*('Fixed assets'!$R$2:$R$1000))","v":0},{"$f":"SUMPRODUCT(('Fixed assets'!$R$2:$R$1000)*('Fixed assets'!$P$2:$P$1000<$A643)*('Fixed assets'!$Q$2:$Q$1000=Costs!AF$617))-SUMPRODUCT(('Fixed assets'!$S$2:$S$1000)*('Fixed assets'!$P$2:$P$1000<Costs!$A643)*('Fixed assets'!$Q$2:$Q$1000=Costs!AF$617))-SUMPRODUCT(('Fixed assets'!$Q$2:$Q$1000=Costs!AF$617)*('Fixed assets'!$U$2:$U$1000=Costs!$A643)*('Fixed assets'!$S$2:$S$1000))+SUMPRODUCT(('Fixed assets'!$Q$2:$Q$1000=Costs!AF$617)*('Fixed assets'!$P$2:$P$1000=Costs!$A643)*('Fixed assets'!$U$2:$U$1000=Costs!$A643)*('Fixed assets'!$R$2:$R$1000))","v":0},{"$f":"SUMPRODUCT(('Fixed assets'!$R$2:$R$1000)*('Fixed assets'!$P$2:$P$1000<$A643)*('Fixed assets'!$Q$2:$Q$1000=Costs!AG$617))-SUMPRODUCT(('Fixed assets'!$S$2:$S$1000)*('Fixed assets'!$P$2:$P$1000<Costs!$A643)*('Fixed assets'!$Q$2:$Q$1000=Costs!AG$617))-SUMPRODUCT(('Fixed assets'!$Q$2:$Q$1000=Costs!AG$617)*('Fixed assets'!$U$2:$U$1000=Costs!$A643)*('Fixed assets'!$S$2:$S$1000))+SUMPRODUCT(('Fixed assets'!$Q$2:$Q$1000=Costs!AG$617)*('Fixed assets'!$P$2:$P$1000=Costs!$A643)*('Fixed assets'!$U$2:$U$1000=Costs!$A643)*('Fixed assets'!$R$2:$R$1000))","v":0},{"$f":"SUMPRODUCT(('Fixed assets'!$R$2:$R$1000)*('Fixed assets'!$P$2:$P$1000<$A643)*('Fixed assets'!$Q$2:$Q$1000=Costs!AH$617))-SUMPRODUCT(('Fixed assets'!$S$2:$S$1000)*('Fixed assets'!$P$2:$P$1000<Costs!$A643)*('Fixed assets'!$Q$2:$Q$1000=Costs!AH$617))-SUMPRODUCT(('Fixed assets'!$Q$2:$Q$1000=Costs!AH$617)*('Fixed assets'!$U$2:$U$1000=Costs!$A643)*('Fixed assets'!$S$2:$S$1000))+SUMPRODUCT(('Fixed assets'!$Q$2:$Q$1000=Costs!AH$617)*('Fixed assets'!$P$2:$P$1000=Costs!$A643)*('Fixed assets'!$U$2:$U$1000=Costs!$A643)*('Fixed assets'!$R$2:$R$1000))","v":0},{"$f":"SUMPRODUCT(('Fixed assets'!$R$2:$R$1000)*('Fixed assets'!$P$2:$P$1000<$A643)*('Fixed assets'!$Q$2:$Q$1000=Costs!AI$617))-SUMPRODUCT(('Fixed assets'!$S$2:$S$1000)*('Fixed assets'!$P$2:$P$1000<Costs!$A643)*('Fixed assets'!$Q$2:$Q$1000=Costs!AI$617))-SUMPRODUCT(('Fixed assets'!$Q$2:$Q$1000=Costs!AI$617)*('Fixed assets'!$U$2:$U$1000=Costs!$A643)*('Fixed assets'!$S$2:$S$1000))+SUMPRODUCT(('Fixed assets'!$Q$2:$Q$1000=Costs!AI$617)*('Fixed assets'!$P$2:$P$1000=Costs!$A643)*('Fixed assets'!$U$2:$U$1000=Costs!$A643)*('Fixed assets'!$R$2:$R$1000))","v":0},{"$f":"SUMPRODUCT(('Fixed assets'!$R$2:$R$1000)*('Fixed assets'!$P$2:$P$1000<$A643)*('Fixed assets'!$Q$2:$Q$1000=Costs!AJ$617))-SUMPRODUCT(('Fixed assets'!$S$2:$S$1000)*('Fixed assets'!$P$2:$P$1000<Costs!$A643)*('Fixed assets'!$Q$2:$Q$1000=Costs!AJ$617))-SUMPRODUCT(('Fixed assets'!$Q$2:$Q$1000=Costs!AJ$617)*('Fixed assets'!$U$2:$U$1000=Costs!$A643)*('Fixed assets'!$S$2:$S$1000))+SUMPRODUCT(('Fixed assets'!$Q$2:$Q$1000=Costs!AJ$617)*('Fixed assets'!$P$2:$P$1000=Costs!$A643)*('Fixed assets'!$U$2:$U$1000=Costs!$A643)*('Fixed assets'!$R$2:$R$1000))","v":0},{"$f":"SUMPRODUCT(('Fixed assets'!$R$2:$R$1000)*('Fixed assets'!$P$2:$P$1000<$A643)*('Fixed assets'!$Q$2:$Q$1000=Costs!AK$617))-SUMPRODUCT(('Fixed assets'!$S$2:$S$1000)*('Fixed assets'!$P$2:$P$1000<Costs!$A643)*('Fixed assets'!$Q$2:$Q$1000=Costs!AK$617))-SUMPRODUCT(('Fixed assets'!$Q$2:$Q$1000=Costs!AK$617)*('Fixed assets'!$U$2:$U$1000=Costs!$A643)*('Fixed assets'!$S$2:$S$1000))+SUMPRODUCT(('Fixed assets'!$Q$2:$Q$1000=Costs!AK$617)*('Fixed assets'!$P$2:$P$1000=Costs!$A643)*('Fixed assets'!$U$2:$U$1000=Costs!$A643)*('Fixed assets'!$R$2:$R$1000))","v":0},{"$f":"SUMPRODUCT(('Fixed assets'!$R$2:$R$1000)*('Fixed assets'!$P$2:$P$1000<$A643)*('Fixed assets'!$Q$2:$Q$1000=Costs!AL$617))-SUMPRODUCT(('Fixed assets'!$S$2:$S$1000)*('Fixed assets'!$P$2:$P$1000<Costs!$A643)*('Fixed assets'!$Q$2:$Q$1000=Costs!AL$617))-SUMPRODUCT(('Fixed assets'!$Q$2:$Q$1000=Costs!AL$617)*('Fixed assets'!$U$2:$U$1000=Costs!$A643)*('Fixed assets'!$S$2:$S$1000))+SUMPRODUCT(('Fixed assets'!$Q$2:$Q$1000=Costs!AL$617)*('Fixed assets'!$P$2:$P$1000=Costs!$A643)*('Fixed assets'!$U$2:$U$1000=Costs!$A643)*('Fixed assets'!$R$2:$R$1000))","v":0},{"$f":"SUMPRODUCT(('Fixed assets'!$R$2:$R$1000)*('Fixed assets'!$P$2:$P$1000<$A643)*('Fixed assets'!$Q$2:$Q$1000=Costs!AM$617))-SUMPRODUCT(('Fixed assets'!$S$2:$S$1000)*('Fixed assets'!$P$2:$P$1000<Costs!$A643)*('Fixed assets'!$Q$2:$Q$1000=Costs!AM$617))-SUMPRODUCT(('Fixed assets'!$Q$2:$Q$1000=Costs!AM$617)*('Fixed assets'!$U$2:$U$1000=Costs!$A643)*('Fixed assets'!$S$2:$S$1000))+SUMPRODUCT(('Fixed assets'!$Q$2:$Q$1000=Costs!AM$617)*('Fixed assets'!$P$2:$P$1000=Costs!$A643)*('Fixed assets'!$U$2:$U$1000=Costs!$A643)*('Fixed assets'!$R$2:$R$1000))","v":0},{"$f":"SUMPRODUCT(('Fixed assets'!$R$2:$R$1000)*('Fixed assets'!$P$2:$P$1000<$A643)*('Fixed assets'!$Q$2:$Q$1000=Costs!AN$617))-SUMPRODUCT(('Fixed assets'!$S$2:$S$1000)*('Fixed assets'!$P$2:$P$1000<Costs!$A643)*('Fixed assets'!$Q$2:$Q$1000=Costs!AN$617))-SUMPRODUCT(('Fixed assets'!$Q$2:$Q$1000=Costs!AN$617)*('Fixed assets'!$U$2:$U$1000=Costs!$A643)*('Fixed assets'!$S$2:$S$1000))+SUMPRODUCT(('Fixed assets'!$Q$2:$Q$1000=Costs!AN$617)*('Fixed assets'!$P$2:$P$1000=Costs!$A643)*('Fixed assets'!$U$2:$U$1000=Costs!$A643)*('Fixed assets'!$R$2:$R$1000))","v":0},{"$f":"SUMPRODUCT(('Fixed assets'!$R$2:$R$1000)*('Fixed assets'!$P$2:$P$1000<$A643)*('Fixed assets'!$Q$2:$Q$1000=Costs!AO$617))-SUMPRODUCT(('Fixed assets'!$S$2:$S$1000)*('Fixed assets'!$P$2:$P$1000<Costs!$A643)*('Fixed assets'!$Q$2:$Q$1000=Costs!AO$617))-SUMPRODUCT(('Fixed assets'!$Q$2:$Q$1000=Costs!AO$617)*('Fixed assets'!$U$2:$U$1000=Costs!$A643)*('Fixed assets'!$S$2:$S$1000))+SUMPRODUCT(('Fixed assets'!$Q$2:$Q$1000=Costs!AO$617)*('Fixed assets'!$P$2:$P$1000=Costs!$A643)*('Fixed assets'!$U$2:$U$1000=Costs!$A643)*('Fixed assets'!$R$2:$R$1000))","v":0},{"$f":"SUMPRODUCT(('Fixed assets'!$R$2:$R$1000)*('Fixed assets'!$P$2:$P$1000<$A643)*('Fixed assets'!$Q$2:$Q$1000=Costs!AP$617))-SUMPRODUCT(('Fixed assets'!$S$2:$S$1000)*('Fixed assets'!$P$2:$P$1000<Costs!$A643)*('Fixed assets'!$Q$2:$Q$1000=Costs!AP$617))-SUMPRODUCT(('Fixed assets'!$Q$2:$Q$1000=Costs!AP$617)*('Fixed assets'!$U$2:$U$1000=Costs!$A643)*('Fixed assets'!$S$2:$S$1000))+SUMPRODUCT(('Fixed assets'!$Q$2:$Q$1000=Costs!AP$617)*('Fixed assets'!$P$2:$P$1000=Costs!$A643)*('Fixed assets'!$U$2:$U$1000=Costs!$A643)*('Fixed assets'!$R$2:$R$1000))","v":0},{"$f":"SUMPRODUCT(('Fixed assets'!$R$2:$R$1000)*('Fixed assets'!$P$2:$P$1000<$A643)*('Fixed assets'!$Q$2:$Q$1000=Costs!AQ$617))-SUMPRODUCT(('Fixed assets'!$S$2:$S$1000)*('Fixed assets'!$P$2:$P$1000<Costs!$A643)*('Fixed assets'!$Q$2:$Q$1000=Costs!AQ$617))-SUMPRODUCT(('Fixed assets'!$Q$2:$Q$1000=Costs!AQ$617)*('Fixed assets'!$U$2:$U$1000=Costs!$A643)*('Fixed assets'!$S$2:$S$1000))+SUMPRODUCT(('Fixed assets'!$Q$2:$Q$1000=Costs!AQ$617)*('Fixed assets'!$P$2:$P$1000=Costs!$A643)*('Fixed assets'!$U$2:$U$1000=Costs!$A643)*('Fixed assets'!$R$2:$R$1000))","v":0}]
[2041,0,{"$f":"SUMPRODUCT(('Fixed assets'!$R$2:$R$1000)*('Fixed assets'!$P$2:$P$1000<$A644)*('Fixed assets'!$Q$2:$Q$1000=Costs!C$617))-SUMPRODUCT(('Fixed assets'!$S$2:$S$1000)*('Fixed assets'!$P$2:$P$1000<Costs!$A644)*('Fixed assets'!$Q$2:$Q$1000=Costs!C$617))-SUMPRODUCT(('Fixed assets'!$Q$2:$Q$1000=Costs!C$617)*('Fixed assets'!$U$2:$U$1000=Costs!$A644)*('Fixed assets'!$S$2:$S$1000))+SUMPRODUCT(('Fixed assets'!$Q$2:$Q$1000=Costs!C$617)*('Fixed assets'!$P$2:$P$1000=Costs!$A644)*('Fixed assets'!$U$2:$U$1000=Costs!$A644)*('Fixed assets'!$R$2:$R$1000))","v":0},{"$f":"SUMPRODUCT(('Fixed assets'!$R$2:$R$1000)*('Fixed assets'!$P$2:$P$1000<$A644)*('Fixed assets'!$Q$2:$Q$1000=Costs!D$617))-SUMPRODUCT(('Fixed assets'!$S$2:$S$1000)*('Fixed assets'!$P$2:$P$1000<Costs!$A644)*('Fixed assets'!$Q$2:$Q$1000=Costs!D$617))-SUMPRODUCT(('Fixed assets'!$Q$2:$Q$1000=Costs!D$617)*('Fixed assets'!$U$2:$U$1000=Costs!$A644)*('Fixed assets'!$S$2:$S$1000))+SUMPRODUCT(('Fixed assets'!$Q$2:$Q$1000=Costs!D$617)*('Fixed assets'!$P$2:$P$1000=Costs!$A644)*('Fixed assets'!$U$2:$U$1000=Costs!$A644)*('Fixed assets'!$R$2:$R$1000))","v":0},{"$f":"SUMPRODUCT(('Fixed assets'!$R$2:$R$1000)*('Fixed assets'!$P$2:$P$1000<$A644)*('Fixed assets'!$Q$2:$Q$1000=Costs!E$617))-SUMPRODUCT(('Fixed assets'!$S$2:$S$1000)*('Fixed assets'!$P$2:$P$1000<Costs!$A644)*('Fixed assets'!$Q$2:$Q$1000=Costs!E$617))-SUMPRODUCT(('Fixed assets'!$Q$2:$Q$1000=Costs!E$617)*('Fixed assets'!$U$2:$U$1000=Costs!$A644)*('Fixed assets'!$S$2:$S$1000))+SUMPRODUCT(('Fixed assets'!$Q$2:$Q$1000=Costs!E$617)*('Fixed assets'!$P$2:$P$1000=Costs!$A644)*('Fixed assets'!$U$2:$U$1000=Costs!$A644)*('Fixed assets'!$R$2:$R$1000))","v":0},{"$f":"SUMPRODUCT(('Fixed assets'!$R$2:$R$1000)*('Fixed assets'!$P$2:$P$1000<$A644)*('Fixed assets'!$Q$2:$Q$1000=Costs!F$617))-SUMPRODUCT(('Fixed assets'!$S$2:$S$1000)*('Fixed assets'!$P$2:$P$1000<Costs!$A644)*('Fixed assets'!$Q$2:$Q$1000=Costs!F$617))-SUMPRODUCT(('Fixed assets'!$Q$2:$Q$1000=Costs!F$617)*('Fixed assets'!$U$2:$U$1000=Costs!$A644)*('Fixed assets'!$S$2:$S$1000))+SUMPRODUCT(('Fixed assets'!$Q$2:$Q$1000=Costs!F$617)*('Fixed assets'!$P$2:$P$1000=Costs!$A644)*('Fixed assets'!$U$2:$U$1000=Costs!$A644)*('Fixed assets'!$R$2:$R$1000))","v":0},{"$f":"SUMPRODUCT(('Fixed assets'!$R$2:$R$1000)*('Fixed assets'!$P$2:$P$1000<$A644)*('Fixed assets'!$Q$2:$Q$1000=Costs!G$617))-SUMPRODUCT(('Fixed assets'!$S$2:$S$1000)*('Fixed assets'!$P$2:$P$1000<Costs!$A644)*('Fixed assets'!$Q$2:$Q$1000=Costs!G$617))-SUMPRODUCT(('Fixed assets'!$Q$2:$Q$1000=Costs!G$617)*('Fixed assets'!$U$2:$U$1000=Costs!$A644)*('Fixed assets'!$S$2:$S$1000))+SUMPRODUCT(('Fixed assets'!$Q$2:$Q$1000=Costs!G$617)*('Fixed assets'!$P$2:$P$1000=Costs!$A644)*('Fixed assets'!$U$2:$U$1000=Costs!$A644)*('Fixed assets'!$R$2:$R$1000))","v":0},{"$f":"SUMPRODUCT(('Fixed assets'!$R$2:$R$1000)*('Fixed assets'!$P$2:$P$1000<$A644)*('Fixed assets'!$Q$2:$Q$1000=Costs!H$617))-SUMPRODUCT(('Fixed assets'!$S$2:$S$1000)*('Fixed assets'!$P$2:$P$1000<Costs!$A644)*('Fixed assets'!$Q$2:$Q$1000=Costs!H$617))-SUMPRODUCT(('Fixed assets'!$Q$2:$Q$1000=Costs!H$617)*('Fixed assets'!$U$2:$U$1000=Costs!$A644)*('Fixed assets'!$S$2:$S$1000))+SUMPRODUCT(('Fixed assets'!$Q$2:$Q$1000=Costs!H$617)*('Fixed assets'!$P$2:$P$1000=Costs!$A644)*('Fixed assets'!$U$2:$U$1000=Costs!$A644)*('Fixed assets'!$R$2:$R$1000))","v":0},{"$f":"SUMPRODUCT(('Fixed assets'!$R$2:$R$1000)*('Fixed assets'!$P$2:$P$1000<$A644)*('Fixed assets'!$Q$2:$Q$1000=Costs!I$617))-SUMPRODUCT(('Fixed assets'!$S$2:$S$1000)*('Fixed assets'!$P$2:$P$1000<Costs!$A644)*('Fixed assets'!$Q$2:$Q$1000=Costs!I$617))-SUMPRODUCT(('Fixed assets'!$Q$2:$Q$1000=Costs!I$617)*('Fixed assets'!$U$2:$U$1000=Costs!$A644)*('Fixed assets'!$S$2:$S$1000))+SUMPRODUCT(('Fixed assets'!$Q$2:$Q$1000=Costs!I$617)*('Fixed assets'!$P$2:$P$1000=Costs!$A644)*('Fixed assets'!$U$2:$U$1000=Costs!$A644)*('Fixed assets'!$R$2:$R$1000))","v":0},{"$f":"SUMPRODUCT(('Fixed assets'!$R$2:$R$1000)*('Fixed assets'!$P$2:$P$1000<$A644)*('Fixed assets'!$Q$2:$Q$1000=Costs!J$617))-SUMPRODUCT(('Fixed assets'!$S$2:$S$1000)*('Fixed assets'!$P$2:$P$1000<Costs!$A644)*('Fixed assets'!$Q$2:$Q$1000=Costs!J$617))-SUMPRODUCT(('Fixed assets'!$Q$2:$Q$1000=Costs!J$617)*('Fixed assets'!$U$2:$U$1000=Costs!$A644)*('Fixed assets'!$S$2:$S$1000))+SUMPRODUCT(('Fixed assets'!$Q$2:$Q$1000=Costs!J$617)*('Fixed assets'!$P$2:$P$1000=Costs!$A644)*('Fixed assets'!$U$2:$U$1000=Costs!$A644)*('Fixed assets'!$R$2:$R$1000))","v":0},{"$f":"SUMPRODUCT(('Fixed assets'!$R$2:$R$1000)*('Fixed assets'!$P$2:$P$1000<$A644)*('Fixed assets'!$Q$2:$Q$1000=Costs!K$617))-SUMPRODUCT(('Fixed assets'!$S$2:$S$1000)*('Fixed assets'!$P$2:$P$1000<Costs!$A644)*('Fixed assets'!$Q$2:$Q$1000=Costs!K$617))-SUMPRODUCT(('Fixed assets'!$Q$2:$Q$1000=Costs!K$617)*('Fixed assets'!$U$2:$U$1000=Costs!$A644)*('Fixed assets'!$S$2:$S$1000))+SUMPRODUCT(('Fixed assets'!$Q$2:$Q$1000=Costs!K$617)*('Fixed assets'!$P$2:$P$1000=Costs!$A644)*('Fixed assets'!$U$2:$U$1000=Costs!$A644)*('Fixed assets'!$R$2:$R$1000))","v":0},{"$f":"SUMPRODUCT(('Fixed assets'!$R$2:$R$1000)*('Fixed assets'!$P$2:$P$1000<$A644)*('Fixed assets'!$Q$2:$Q$1000=Costs!L$617))-SUMPRODUCT(('Fixed assets'!$S$2:$S$1000)*('Fixed assets'!$P$2:$P$1000<Costs!$A644)*('Fixed assets'!$Q$2:$Q$1000=Costs!L$617))-SUMPRODUCT(('Fixed assets'!$Q$2:$Q$1000=Costs!L$617)*('Fixed assets'!$U$2:$U$1000=Costs!$A644)*('Fixed assets'!$S$2:$S$1000))+SUMPRODUCT(('Fixed assets'!$Q$2:$Q$1000=Costs!L$617)*('Fixed assets'!$P$2:$P$1000=Costs!$A644)*('Fixed assets'!$U$2:$U$1000=Costs!$A644)*('Fixed assets'!$R$2:$R$1000))","v":0},{"$f":"SUMPRODUCT(('Fixed assets'!$R$2:$R$1000)*('Fixed assets'!$P$2:$P$1000<$A644)*('Fixed assets'!$Q$2:$Q$1000=Costs!M$617))-SUMPRODUCT(('Fixed assets'!$S$2:$S$1000)*('Fixed assets'!$P$2:$P$1000<Costs!$A644)*('Fixed assets'!$Q$2:$Q$1000=Costs!M$617))-SUMPRODUCT(('Fixed assets'!$Q$2:$Q$1000=Costs!M$617)*('Fixed assets'!$U$2:$U$1000=Costs!$A644)*('Fixed assets'!$S$2:$S$1000))+SUMPRODUCT(('Fixed assets'!$Q$2:$Q$1000=Costs!M$617)*('Fixed assets'!$P$2:$P$1000=Costs!$A644)*('Fixed assets'!$U$2:$U$1000=Costs!$A644)*('Fixed assets'!$R$2:$R$1000))","v":0},{"$f":"SUMPRODUCT(('Fixed assets'!$R$2:$R$1000)*('Fixed assets'!$P$2:$P$1000<$A644)*('Fixed assets'!$Q$2:$Q$1000=Costs!N$617))-SUMPRODUCT(('Fixed assets'!$S$2:$S$1000)*('Fixed assets'!$P$2:$P$1000<Costs!$A644)*('Fixed assets'!$Q$2:$Q$1000=Costs!N$617))-SUMPRODUCT(('Fixed assets'!$Q$2:$Q$1000=Costs!N$617)*('Fixed assets'!$U$2:$U$1000=Costs!$A644)*('Fixed assets'!$S$2:$S$1000))+SUMPRODUCT(('Fixed assets'!$Q$2:$Q$1000=Costs!N$617)*('Fixed assets'!$P$2:$P$1000=Costs!$A644)*('Fixed assets'!$U$2:$U$1000=Costs!$A644)*('Fixed assets'!$R$2:$R$1000))","v":0},{"$f":"SUMPRODUCT(('Fixed assets'!$R$2:$R$1000)*('Fixed assets'!$P$2:$P$1000<$A644)*('Fixed assets'!$Q$2:$Q$1000=Costs!O$617))-SUMPRODUCT(('Fixed assets'!$S$2:$S$1000)*('Fixed assets'!$P$2:$P$1000<Costs!$A644)*('Fixed assets'!$Q$2:$Q$1000=Costs!O$617))-SUMPRODUCT(('Fixed assets'!$Q$2:$Q$1000=Costs!O$617)*('Fixed assets'!$U$2:$U$1000=Costs!$A644)*('Fixed assets'!$S$2:$S$1000))+SUMPRODUCT(('Fixed assets'!$Q$2:$Q$1000=Costs!O$617)*('Fixed assets'!$P$2:$P$1000=Costs!$A644)*('Fixed assets'!$U$2:$U$1000=Costs!$A644)*('Fixed assets'!$R$2:$R$1000))","v":0},{"$f":"SUMPRODUCT(('Fixed assets'!$R$2:$R$1000)*('Fixed assets'!$P$2:$P$1000<$A644)*('Fixed assets'!$Q$2:$Q$1000=Costs!P$617))-SUMPRODUCT(('Fixed assets'!$S$2:$S$1000)*('Fixed assets'!$P$2:$P$1000<Costs!$A644)*('Fixed assets'!$Q$2:$Q$1000=Costs!P$617))-SUMPRODUCT(('Fixed assets'!$Q$2:$Q$1000=Costs!P$617)*('Fixed assets'!$U$2:$U$1000=Costs!$A644)*('Fixed assets'!$S$2:$S$1000))+SUMPRODUCT(('Fixed assets'!$Q$2:$Q$1000=Costs!P$617)*('Fixed assets'!$P$2:$P$1000=Costs!$A644)*('Fixed assets'!$U$2:$U$1000=Costs!$A644)*('Fixed assets'!$R$2:$R$1000))","v":0},{"$f":"SUMPRODUCT(('Fixed assets'!$R$2:$R$1000)*('Fixed assets'!$P$2:$P$1000<$A644)*('Fixed assets'!$Q$2:$Q$1000=Costs!Q$617))-SUMPRODUCT(('Fixed assets'!$S$2:$S$1000)*('Fixed assets'!$P$2:$P$1000<Costs!$A644)*('Fixed assets'!$Q$2:$Q$1000=Costs!Q$617))-SUMPRODUCT(('Fixed assets'!$Q$2:$Q$1000=Costs!Q$617)*('Fixed assets'!$U$2:$U$1000=Costs!$A644)*('Fixed assets'!$S$2:$S$1000))+SUMPRODUCT(('Fixed assets'!$Q$2:$Q$1000=Costs!Q$617)*('Fixed assets'!$P$2:$P$1000=Costs!$A644)*('Fixed assets'!$U$2:$U$1000=Costs!$A644)*('Fixed assets'!$R$2:$R$1000))","v":0},{"$f":"SUMPRODUCT(('Fixed assets'!$R$2:$R$1000)*('Fixed assets'!$P$2:$P$1000<$A644)*('Fixed assets'!$Q$2:$Q$1000=Costs!R$617))-SUMPRODUCT(('Fixed assets'!$S$2:$S$1000)*('Fixed assets'!$P$2:$P$1000<Costs!$A644)*('Fixed assets'!$Q$2:$Q$1000=Costs!R$617))-SUMPRODUCT(('Fixed assets'!$Q$2:$Q$1000=Costs!R$617)*('Fixed assets'!$U$2:$U$1000=Costs!$A644)*('Fixed assets'!$S$2:$S$1000))+SUMPRODUCT(('Fixed assets'!$Q$2:$Q$1000=Costs!R$617)*('Fixed assets'!$P$2:$P$1000=Costs!$A644)*('Fixed assets'!$U$2:$U$1000=Costs!$A644)*('Fixed assets'!$R$2:$R$1000))","v":0},{"$f":"SUMPRODUCT(('Fixed assets'!$R$2:$R$1000)*('Fixed assets'!$P$2:$P$1000<$A644)*('Fixed assets'!$Q$2:$Q$1000=Costs!S$617))-SUMPRODUCT(('Fixed assets'!$S$2:$S$1000)*('Fixed assets'!$P$2:$P$1000<Costs!$A644)*('Fixed assets'!$Q$2:$Q$1000=Costs!S$617))-SUMPRODUCT(('Fixed assets'!$Q$2:$Q$1000=Costs!S$617)*('Fixed assets'!$U$2:$U$1000=Costs!$A644)*('Fixed assets'!$S$2:$S$1000))+SUMPRODUCT(('Fixed assets'!$Q$2:$Q$1000=Costs!S$617)*('Fixed assets'!$P$2:$P$1000=Costs!$A644)*('Fixed assets'!$U$2:$U$1000=Costs!$A644)*('Fixed assets'!$R$2:$R$1000))","v":0},{"$f":"SUMPRODUCT(('Fixed assets'!$R$2:$R$1000)*('Fixed assets'!$P$2:$P$1000<$A644)*('Fixed assets'!$Q$2:$Q$1000=Costs!T$617))-SUMPRODUCT(('Fixed assets'!$S$2:$S$1000)*('Fixed assets'!$P$2:$P$1000<Costs!$A644)*('Fixed assets'!$Q$2:$Q$1000=Costs!T$617))-SUMPRODUCT(('Fixed assets'!$Q$2:$Q$1000=Costs!T$617)*('Fixed assets'!$U$2:$U$1000=Costs!$A644)*('Fixed assets'!$S$2:$S$1000))+SUMPRODUCT(('Fixed assets'!$Q$2:$Q$1000=Costs!T$617)*('Fixed assets'!$P$2:$P$1000=Costs!$A644)*('Fixed assets'!$U$2:$U$1000=Costs!$A644)*('Fixed assets'!$R$2:$R$1000))","v":0},{"$f":"SUMPRODUCT(('Fixed assets'!$R$2:$R$1000)*('Fixed assets'!$P$2:$P$1000<$A644)*('Fixed assets'!$Q$2:$Q$1000=Costs!U$617))-SUMPRODUCT(('Fixed assets'!$S$2:$S$1000)*('Fixed assets'!$P$2:$P$1000<Costs!$A644)*('Fixed assets'!$Q$2:$Q$1000=Costs!U$617))-SUMPRODUCT(('Fixed assets'!$Q$2:$Q$1000=Costs!U$617)*('Fixed assets'!$U$2:$U$1000=Costs!$A644)*('Fixed assets'!$S$2:$S$1000))+SUMPRODUCT(('Fixed assets'!$Q$2:$Q$1000=Costs!U$617)*('Fixed assets'!$P$2:$P$1000=Costs!$A644)*('Fixed assets'!$U$2:$U$1000=Costs!$A644)*('Fixed assets'!$R$2:$R$1000))","v":0},{"$f":"SUMPRODUCT(('Fixed assets'!$R$2:$R$1000)*('Fixed assets'!$P$2:$P$1000<$A644)*('Fixed assets'!$Q$2:$Q$1000=Costs!V$617))-SUMPRODUCT(('Fixed assets'!$S$2:$S$1000)*('Fixed assets'!$P$2:$P$1000<Costs!$A644)*('Fixed assets'!$Q$2:$Q$1000=Costs!V$617))-SUMPRODUCT(('Fixed assets'!$Q$2:$Q$1000=Costs!V$617)*('Fixed assets'!$U$2:$U$1000=Costs!$A644)*('Fixed assets'!$S$2:$S$1000))+SUMPRODUCT(('Fixed assets'!$Q$2:$Q$1000=Costs!V$617)*('Fixed assets'!$P$2:$P$1000=Costs!$A644)*('Fixed assets'!$U$2:$U$1000=Costs!$A644)*('Fixed assets'!$R$2:$R$1000))","v":0},{"$f":"SUMPRODUCT(('Fixed assets'!$R$2:$R$1000)*('Fixed assets'!$P$2:$P$1000<$A644)*('Fixed assets'!$Q$2:$Q$1000=Costs!W$617))-SUMPRODUCT(('Fixed assets'!$S$2:$S$1000)*('Fixed assets'!$P$2:$P$1000<Costs!$A644)*('Fixed assets'!$Q$2:$Q$1000=Costs!W$617))-SUMPRODUCT(('Fixed assets'!$Q$2:$Q$1000=Costs!W$617)*('Fixed assets'!$U$2:$U$1000=Costs!$A644)*('Fixed assets'!$S$2:$S$1000))+SUMPRODUCT(('Fixed assets'!$Q$2:$Q$1000=Costs!W$617)*('Fixed assets'!$P$2:$P$1000=Costs!$A644)*('Fixed assets'!$U$2:$U$1000=Costs!$A644)*('Fixed assets'!$R$2:$R$1000))","v":0},{"$f":"SUMPRODUCT(('Fixed assets'!$R$2:$R$1000)*('Fixed assets'!$P$2:$P$1000<$A644)*('Fixed assets'!$Q$2:$Q$1000=Costs!X$617))-SUMPRODUCT(('Fixed assets'!$S$2:$S$1000)*('Fixed assets'!$P$2:$P$1000<Costs!$A644)*('Fixed assets'!$Q$2:$Q$1000=Costs!X$617))-SUMPRODUCT(('Fixed assets'!$Q$2:$Q$1000=Costs!X$617)*('Fixed assets'!$U$2:$U$1000=Costs!$A644)*('Fixed assets'!$S$2:$S$1000))+SUMPRODUCT(('Fixed assets'!$Q$2:$Q$1000=Costs!X$617)*('Fixed assets'!$P$2:$P$1000=Costs!$A644)*('Fixed assets'!$U$2:$U$1000=Costs!$A644)*('Fixed assets'!$R$2:$R$1000))","v":0},{"$f":"SUMPRODUCT(('Fixed assets'!$R$2:$R$1000)*('Fixed assets'!$P$2:$P$1000<$A644)*('Fixed assets'!$Q$2:$Q$1000=Costs!Y$617))-SUMPRODUCT(('Fixed assets'!$S$2:$S$1000)*('Fixed assets'!$P$2:$P$1000<Costs!$A644)*('Fixed assets'!$Q$2:$Q$1000=Costs!Y$617))-SUMPRODUCT(('Fixed assets'!$Q$2:$Q$1000=Costs!Y$617)*('Fixed assets'!$U$2:$U$1000=Costs!$A644)*('Fixed assets'!$S$2:$S$1000))+SUMPRODUCT(('Fixed assets'!$Q$2:$Q$1000=Costs!Y$617)*('Fixed assets'!$P$2:$P$1000=Costs!$A644)*('Fixed assets'!$U$2:$U$1000=Costs!$A644)*('Fixed assets'!$R$2:$R$1000))","v":0},{"$f":"SUMPRODUCT(('Fixed assets'!$R$2:$R$1000)*('Fixed assets'!$P$2:$P$1000<$A644)*('Fixed assets'!$Q$2:$Q$1000=Costs!Z$617))-SUMPRODUCT(('Fixed assets'!$S$2:$S$1000)*('Fixed assets'!$P$2:$P$1000<Costs!$A644)*('Fixed assets'!$Q$2:$Q$1000=Costs!Z$617))-SUMPRODUCT(('Fixed assets'!$Q$2:$Q$1000=Costs!Z$617)*('Fixed assets'!$U$2:$U$1000=Costs!$A644)*('Fixed assets'!$S$2:$S$1000))+SUMPRODUCT(('Fixed assets'!$Q$2:$Q$1000=Costs!Z$617)*('Fixed assets'!$P$2:$P$1000=Costs!$A644)*('Fixed assets'!$U$2:$U$1000=Costs!$A644)*('Fixed assets'!$R$2:$R$1000))","v":0},{"$f":"SUMPRODUCT(('Fixed assets'!$R$2:$R$1000)*('Fixed assets'!$P$2:$P$1000<$A644)*('Fixed assets'!$Q$2:$Q$1000=Costs!AA$617))-SUMPRODUCT(('Fixed assets'!$S$2:$S$1000)*('Fixed assets'!$P$2:$P$1000<Costs!$A644)*('Fixed assets'!$Q$2:$Q$1000=Costs!AA$617))-SUMPRODUCT(('Fixed assets'!$Q$2:$Q$1000=Costs!AA$617)*('Fixed assets'!$U$2:$U$1000=Costs!$A644)*('Fixed assets'!$S$2:$S$1000))+SUMPRODUCT(('Fixed assets'!$Q$2:$Q$1000=Costs!AA$617)*('Fixed assets'!$P$2:$P$1000=Costs!$A644)*('Fixed assets'!$U$2:$U$1000=Costs!$A644)*('Fixed assets'!$R$2:$R$1000))","v":0},{"$f":"SUMPRODUCT(('Fixed assets'!$R$2:$R$1000)*('Fixed assets'!$P$2:$P$1000<$A644)*('Fixed assets'!$Q$2:$Q$1000=Costs!AB$617))-SUMPRODUCT(('Fixed assets'!$S$2:$S$1000)*('Fixed assets'!$P$2:$P$1000<Costs!$A644)*('Fixed assets'!$Q$2:$Q$1000=Costs!AB$617))-SUMPRODUCT(('Fixed assets'!$Q$2:$Q$1000=Costs!AB$617)*('Fixed assets'!$U$2:$U$1000=Costs!$A644)*('Fixed assets'!$S$2:$S$1000))+SUMPRODUCT(('Fixed assets'!$Q$2:$Q$1000=Costs!AB$617)*('Fixed assets'!$P$2:$P$1000=Costs!$A644)*('Fixed assets'!$U$2:$U$1000=Costs!$A644)*('Fixed assets'!$R$2:$R$1000))","v":0},{"$f":"SUMPRODUCT(('Fixed assets'!$R$2:$R$1000)*('Fixed assets'!$P$2:$P$1000<$A644)*('Fixed assets'!$Q$2:$Q$1000=Costs!AC$617))-SUMPRODUCT(('Fixed assets'!$S$2:$S$1000)*('Fixed assets'!$P$2:$P$1000<Costs!$A644)*('Fixed assets'!$Q$2:$Q$1000=Costs!AC$617))-SUMPRODUCT(('Fixed assets'!$Q$2:$Q$1000=Costs!AC$617)*('Fixed assets'!$U$2:$U$1000=Costs!$A644)*('Fixed assets'!$S$2:$S$1000))+SUMPRODUCT(('Fixed assets'!$Q$2:$Q$1000=Costs!AC$617)*('Fixed assets'!$P$2:$P$1000=Costs!$A644)*('Fixed assets'!$U$2:$U$1000=Costs!$A644)*('Fixed assets'!$R$2:$R$1000))","v":0},{"$f":"SUMPRODUCT(('Fixed assets'!$R$2:$R$1000)*('Fixed assets'!$P$2:$P$1000<$A644)*('Fixed assets'!$Q$2:$Q$1000=Costs!AD$617))-SUMPRODUCT(('Fixed assets'!$S$2:$S$1000)*('Fixed assets'!$P$2:$P$1000<Costs!$A644)*('Fixed assets'!$Q$2:$Q$1000=Costs!AD$617))-SUMPRODUCT(('Fixed assets'!$Q$2:$Q$1000=Costs!AD$617)*('Fixed assets'!$U$2:$U$1000=Costs!$A644)*('Fixed assets'!$S$2:$S$1000))+SUMPRODUCT(('Fixed assets'!$Q$2:$Q$1000=Costs!AD$617)*('Fixed assets'!$P$2:$P$1000=Costs!$A644)*('Fixed assets'!$U$2:$U$1000=Costs!$A644)*('Fixed assets'!$R$2:$R$1000))","v":0},{"$f":"SUMPRODUCT(('Fixed assets'!$R$2:$R$1000)*('Fixed assets'!$P$2:$P$1000<$A644)*('Fixed assets'!$Q$2:$Q$1000=Costs!AE$617))-SUMPRODUCT(('Fixed assets'!$S$2:$S$1000)*('Fixed assets'!$P$2:$P$1000<Costs!$A644)*('Fixed assets'!$Q$2:$Q$1000=Costs!AE$617))-SUMPRODUCT(('Fixed assets'!$Q$2:$Q$1000=Costs!AE$617)*('Fixed assets'!$U$2:$U$1000=Costs!$A644)*('Fixed assets'!$S$2:$S$1000))+SUMPRODUCT(('Fixed assets'!$Q$2:$Q$1000=Costs!AE$617)*('Fixed assets'!$P$2:$P$1000=Costs!$A644)*('Fixed assets'!$U$2:$U$1000=Costs!$A644)*('Fixed assets'!$R$2:$R$1000))","v":0},{"$f":"SUMPRODUCT(('Fixed assets'!$R$2:$R$1000)*('Fixed assets'!$P$2:$P$1000<$A644)*('Fixed assets'!$Q$2:$Q$1000=Costs!AF$617))-SUMPRODUCT(('Fixed assets'!$S$2:$S$1000)*('Fixed assets'!$P$2:$P$1000<Costs!$A644)*('Fixed assets'!$Q$2:$Q$1000=Costs!AF$617))-SUMPRODUCT(('Fixed assets'!$Q$2:$Q$1000=Costs!AF$617)*('Fixed assets'!$U$2:$U$1000=Costs!$A644)*('Fixed assets'!$S$2:$S$1000))+SUMPRODUCT(('Fixed assets'!$Q$2:$Q$1000=Costs!AF$617)*('Fixed assets'!$P$2:$P$1000=Costs!$A644)*('Fixed assets'!$U$2:$U$1000=Costs!$A644)*('Fixed assets'!$R$2:$R$1000))","v":0},{"$f":"SUMPRODUCT(('Fixed assets'!$R$2:$R$1000)*('Fixed assets'!$P$2:$P$1000<$A644)*('Fixed assets'!$Q$2:$Q$1000=Costs!AG$617))-SUMPRODUCT(('Fixed assets'!$S$2:$S$1000)*('Fixed assets'!$P$2:$P$1000<Costs!$A644)*('Fixed assets'!$Q$2:$Q$1000=Costs!AG$617))-SUMPRODUCT(('Fixed assets'!$Q$2:$Q$1000=Costs!AG$617)*('Fixed assets'!$U$2:$U$1000=Costs!$A644)*('Fixed assets'!$S$2:$S$1000))+SUMPRODUCT(('Fixed assets'!$Q$2:$Q$1000=Costs!AG$617)*('Fixed assets'!$P$2:$P$1000=Costs!$A644)*('Fixed assets'!$U$2:$U$1000=Costs!$A644)*('Fixed assets'!$R$2:$R$1000))","v":0},{"$f":"SUMPRODUCT(('Fixed assets'!$R$2:$R$1000)*('Fixed assets'!$P$2:$P$1000<$A644)*('Fixed assets'!$Q$2:$Q$1000=Costs!AH$617))-SUMPRODUCT(('Fixed assets'!$S$2:$S$1000)*('Fixed assets'!$P$2:$P$1000<Costs!$A644)*('Fixed assets'!$Q$2:$Q$1000=Costs!AH$617))-SUMPRODUCT(('Fixed assets'!$Q$2:$Q$1000=Costs!AH$617)*('Fixed assets'!$U$2:$U$1000=Costs!$A644)*('Fixed assets'!$S$2:$S$1000))+SUMPRODUCT(('Fixed assets'!$Q$2:$Q$1000=Costs!AH$617)*('Fixed assets'!$P$2:$P$1000=Costs!$A644)*('Fixed assets'!$U$2:$U$1000=Costs!$A644)*('Fixed assets'!$R$2:$R$1000))","v":0},{"$f":"SUMPRODUCT(('Fixed assets'!$R$2:$R$1000)*('Fixed assets'!$P$2:$P$1000<$A644)*('Fixed assets'!$Q$2:$Q$1000=Costs!AI$617))-SUMPRODUCT(('Fixed assets'!$S$2:$S$1000)*('Fixed assets'!$P$2:$P$1000<Costs!$A644)*('Fixed assets'!$Q$2:$Q$1000=Costs!AI$617))-SUMPRODUCT(('Fixed assets'!$Q$2:$Q$1000=Costs!AI$617)*('Fixed assets'!$U$2:$U$1000=Costs!$A644)*('Fixed assets'!$S$2:$S$1000))+SUMPRODUCT(('Fixed assets'!$Q$2:$Q$1000=Costs!AI$617)*('Fixed assets'!$P$2:$P$1000=Costs!$A644)*('Fixed assets'!$U$2:$U$1000=Costs!$A644)*('Fixed assets'!$R$2:$R$1000))","v":0},{"$f":"SUMPRODUCT(('Fixed assets'!$R$2:$R$1000)*('Fixed assets'!$P$2:$P$1000<$A644)*('Fixed assets'!$Q$2:$Q$1000=Costs!AJ$617))-SUMPRODUCT(('Fixed assets'!$S$2:$S$1000)*('Fixed assets'!$P$2:$P$1000<Costs!$A644)*('Fixed assets'!$Q$2:$Q$1000=Costs!AJ$617))-SUMPRODUCT(('Fixed assets'!$Q$2:$Q$1000=Costs!AJ$617)*('Fixed assets'!$U$2:$U$1000=Costs!$A644)*('Fixed assets'!$S$2:$S$1000))+SUMPRODUCT(('Fixed assets'!$Q$2:$Q$1000=Costs!AJ$617)*('Fixed assets'!$P$2:$P$1000=Costs!$A644)*('Fixed assets'!$U$2:$U$1000=Costs!$A644)*('Fixed assets'!$R$2:$R$1000))","v":0},{"$f":"SUMPRODUCT(('Fixed assets'!$R$2:$R$1000)*('Fixed assets'!$P$2:$P$1000<$A644)*('Fixed assets'!$Q$2:$Q$1000=Costs!AK$617))-SUMPRODUCT(('Fixed assets'!$S$2:$S$1000)*('Fixed assets'!$P$2:$P$1000<Costs!$A644)*('Fixed assets'!$Q$2:$Q$1000=Costs!AK$617))-SUMPRODUCT(('Fixed assets'!$Q$2:$Q$1000=Costs!AK$617)*('Fixed assets'!$U$2:$U$1000=Costs!$A644)*('Fixed assets'!$S$2:$S$1000))+SUMPRODUCT(('Fixed assets'!$Q$2:$Q$1000=Costs!AK$617)*('Fixed assets'!$P$2:$P$1000=Costs!$A644)*('Fixed assets'!$U$2:$U$1000=Costs!$A644)*('Fixed assets'!$R$2:$R$1000))","v":0},{"$f":"SUMPRODUCT(('Fixed assets'!$R$2:$R$1000)*('Fixed assets'!$P$2:$P$1000<$A644)*('Fixed assets'!$Q$2:$Q$1000=Costs!AL$617))-SUMPRODUCT(('Fixed assets'!$S$2:$S$1000)*('Fixed assets'!$P$2:$P$1000<Costs!$A644)*('Fixed assets'!$Q$2:$Q$1000=Costs!AL$617))-SUMPRODUCT(('Fixed assets'!$Q$2:$Q$1000=Costs!AL$617)*('Fixed assets'!$U$2:$U$1000=Costs!$A644)*('Fixed assets'!$S$2:$S$1000))+SUMPRODUCT(('Fixed assets'!$Q$2:$Q$1000=Costs!AL$617)*('Fixed assets'!$P$2:$P$1000=Costs!$A644)*('Fixed assets'!$U$2:$U$1000=Costs!$A644)*('Fixed assets'!$R$2:$R$1000))","v":0},{"$f":"SUMPRODUCT(('Fixed assets'!$R$2:$R$1000)*('Fixed assets'!$P$2:$P$1000<$A644)*('Fixed assets'!$Q$2:$Q$1000=Costs!AM$617))-SUMPRODUCT(('Fixed assets'!$S$2:$S$1000)*('Fixed assets'!$P$2:$P$1000<Costs!$A644)*('Fixed assets'!$Q$2:$Q$1000=Costs!AM$617))-SUMPRODUCT(('Fixed assets'!$Q$2:$Q$1000=Costs!AM$617)*('Fixed assets'!$U$2:$U$1000=Costs!$A644)*('Fixed assets'!$S$2:$S$1000))+SUMPRODUCT(('Fixed assets'!$Q$2:$Q$1000=Costs!AM$617)*('Fixed assets'!$P$2:$P$1000=Costs!$A644)*('Fixed assets'!$U$2:$U$1000=Costs!$A644)*('Fixed assets'!$R$2:$R$1000))","v":0},{"$f":"SUMPRODUCT(('Fixed assets'!$R$2:$R$1000)*('Fixed assets'!$P$2:$P$1000<$A644)*('Fixed assets'!$Q$2:$Q$1000=Costs!AN$617))-SUMPRODUCT(('Fixed assets'!$S$2:$S$1000)*('Fixed assets'!$P$2:$P$1000<Costs!$A644)*('Fixed assets'!$Q$2:$Q$1000=Costs!AN$617))-SUMPRODUCT(('Fixed assets'!$Q$2:$Q$1000=Costs!AN$617)*('Fixed assets'!$U$2:$U$1000=Costs!$A644)*('Fixed assets'!$S$2:$S$1000))+SUMPRODUCT(('Fixed assets'!$Q$2:$Q$1000=Costs!AN$617)*('Fixed assets'!$P$2:$P$1000=Costs!$A644)*('Fixed assets'!$U$2:$U$1000=Costs!$A644)*('Fixed assets'!$R$2:$R$1000))","v":0},{"$f":"SUMPRODUCT(('Fixed assets'!$R$2:$R$1000)*('Fixed assets'!$P$2:$P$1000<$A644)*('Fixed assets'!$Q$2:$Q$1000=Costs!AO$617))-SUMPRODUCT(('Fixed assets'!$S$2:$S$1000)*('Fixed assets'!$P$2:$P$1000<Costs!$A644)*('Fixed assets'!$Q$2:$Q$1000=Costs!AO$617))-SUMPRODUCT(('Fixed assets'!$Q$2:$Q$1000=Costs!AO$617)*('Fixed assets'!$U$2:$U$1000=Costs!$A644)*('Fixed assets'!$S$2:$S$1000))+SUMPRODUCT(('Fixed assets'!$Q$2:$Q$1000=Costs!AO$617)*('Fixed assets'!$P$2:$P$1000=Costs!$A644)*('Fixed assets'!$U$2:$U$1000=Costs!$A644)*('Fixed assets'!$R$2:$R$1000))","v":0},{"$f":"SUMPRODUCT(('Fixed assets'!$R$2:$R$1000)*('Fixed assets'!$P$2:$P$1000<$A644)*('Fixed assets'!$Q$2:$Q$1000=Costs!AP$617))-SUMPRODUCT(('Fixed assets'!$S$2:$S$1000)*('Fixed assets'!$P$2:$P$1000<Costs!$A644)*('Fixed assets'!$Q$2:$Q$1000=Costs!AP$617))-SUMPRODUCT(('Fixed assets'!$Q$2:$Q$1000=Costs!AP$617)*('Fixed assets'!$U$2:$U$1000=Costs!$A644)*('Fixed assets'!$S$2:$S$1000))+SUMPRODUCT(('Fixed assets'!$Q$2:$Q$1000=Costs!AP$617)*('Fixed assets'!$P$2:$P$1000=Costs!$A644)*('Fixed assets'!$U$2:$U$1000=Costs!$A644)*('Fixed assets'!$R$2:$R$1000))","v":0},{"$f":"SUMPRODUCT(('Fixed assets'!$R$2:$R$1000)*('Fixed assets'!$P$2:$P$1000<$A644)*('Fixed assets'!$Q$2:$Q$1000=Costs!AQ$617))-SUMPRODUCT(('Fixed assets'!$S$2:$S$1000)*('Fixed assets'!$P$2:$P$1000<Costs!$A644)*('Fixed assets'!$Q$2:$Q$1000=Costs!AQ$617))-SUMPRODUCT(('Fixed assets'!$Q$2:$Q$1000=Costs!AQ$617)*('Fixed assets'!$U$2:$U$1000=Costs!$A644)*('Fixed assets'!$S$2:$S$1000))+SUMPRODUCT(('Fixed assets'!$Q$2:$Q$1000=Costs!AQ$617)*('Fixed assets'!$P$2:$P$1000=Costs!$A644)*('Fixed assets'!$U$2:$U$1000=Costs!$A644)*('Fixed assets'!$R$2:$R$1000))","v":0}]
[2042,0,{"$f":"SUMPRODUCT(('Fixed assets'!$R$2:$R$1000)*('Fixed assets'!$P$2:$P$1000<$A645)*('Fixed assets'!$Q$2:$Q$1000=Costs!C$617))-SUMPRODUCT(('Fixed assets'!$S$2:$S$1000)*('Fixed assets'!$P$2:$P$1000<Costs!$A645)*('Fixed assets'!$Q$2:$Q$1000=Costs!C$617))-SUMPRODUCT(('Fixed assets'!$Q$2:$Q$1000=Costs!C$617)*('Fixed assets'!$U$2:$U$1000=Costs!$A645)*('Fixed assets'!$S$2:$S$1000))+SUMPRODUCT(('Fixed assets'!$Q$2:$Q$1000=Costs!C$617)*('Fixed assets'!$P$2:$P$1000=Costs!$A645)*('Fixed assets'!$U$2:$U$1000=Costs!$A645)*('Fixed assets'!$R$2:$R$1000))","v":0},{"$f":"SUMPRODUCT(('Fixed assets'!$R$2:$R$1000)*('Fixed assets'!$P$2:$P$1000<$A645)*('Fixed assets'!$Q$2:$Q$1000=Costs!D$617))-SUMPRODUCT(('Fixed assets'!$S$2:$S$1000)*('Fixed assets'!$P$2:$P$1000<Costs!$A645)*('Fixed assets'!$Q$2:$Q$1000=Costs!D$617))-SUMPRODUCT(('Fixed assets'!$Q$2:$Q$1000=Costs!D$617)*('Fixed assets'!$U$2:$U$1000=Costs!$A645)*('Fixed assets'!$S$2:$S$1000))+SUMPRODUCT(('Fixed assets'!$Q$2:$Q$1000=Costs!D$617)*('Fixed assets'!$P$2:$P$1000=Costs!$A645)*('Fixed assets'!$U$2:$U$1000=Costs!$A645)*('Fixed assets'!$R$2:$R$1000))","v":0},{"$f":"SUMPRODUCT(('Fixed assets'!$R$2:$R$1000)*('Fixed assets'!$P$2:$P$1000<$A645)*('Fixed assets'!$Q$2:$Q$1000=Costs!E$617))-SUMPRODUCT(('Fixed assets'!$S$2:$S$1000)*('Fixed assets'!$P$2:$P$1000<Costs!$A645)*('Fixed assets'!$Q$2:$Q$1000=Costs!E$617))-SUMPRODUCT(('Fixed assets'!$Q$2:$Q$1000=Costs!E$617)*('Fixed assets'!$U$2:$U$1000=Costs!$A645)*('Fixed assets'!$S$2:$S$1000))+SUMPRODUCT(('Fixed assets'!$Q$2:$Q$1000=Costs!E$617)*('Fixed assets'!$P$2:$P$1000=Costs!$A645)*('Fixed assets'!$U$2:$U$1000=Costs!$A645)*('Fixed assets'!$R$2:$R$1000))","v":0},{"$f":"SUMPRODUCT(('Fixed assets'!$R$2:$R$1000)*('Fixed assets'!$P$2:$P$1000<$A645)*('Fixed assets'!$Q$2:$Q$1000=Costs!F$617))-SUMPRODUCT(('Fixed assets'!$S$2:$S$1000)*('Fixed assets'!$P$2:$P$1000<Costs!$A645)*('Fixed assets'!$Q$2:$Q$1000=Costs!F$617))-SUMPRODUCT(('Fixed assets'!$Q$2:$Q$1000=Costs!F$617)*('Fixed assets'!$U$2:$U$1000=Costs!$A645)*('Fixed assets'!$S$2:$S$1000))+SUMPRODUCT(('Fixed assets'!$Q$2:$Q$1000=Costs!F$617)*('Fixed assets'!$P$2:$P$1000=Costs!$A645)*('Fixed assets'!$U$2:$U$1000=Costs!$A645)*('Fixed assets'!$R$2:$R$1000))","v":0},{"$f":"SUMPRODUCT(('Fixed assets'!$R$2:$R$1000)*('Fixed assets'!$P$2:$P$1000<$A645)*('Fixed assets'!$Q$2:$Q$1000=Costs!G$617))-SUMPRODUCT(('Fixed assets'!$S$2:$S$1000)*('Fixed assets'!$P$2:$P$1000<Costs!$A645)*('Fixed assets'!$Q$2:$Q$1000=Costs!G$617))-SUMPRODUCT(('Fixed assets'!$Q$2:$Q$1000=Costs!G$617)*('Fixed assets'!$U$2:$U$1000=Costs!$A645)*('Fixed assets'!$S$2:$S$1000))+SUMPRODUCT(('Fixed assets'!$Q$2:$Q$1000=Costs!G$617)*('Fixed assets'!$P$2:$P$1000=Costs!$A645)*('Fixed assets'!$U$2:$U$1000=Costs!$A645)*('Fixed assets'!$R$2:$R$1000))","v":0},{"$f":"SUMPRODUCT(('Fixed assets'!$R$2:$R$1000)*('Fixed assets'!$P$2:$P$1000<$A645)*('Fixed assets'!$Q$2:$Q$1000=Costs!H$617))-SUMPRODUCT(('Fixed assets'!$S$2:$S$1000)*('Fixed assets'!$P$2:$P$1000<Costs!$A645)*('Fixed assets'!$Q$2:$Q$1000=Costs!H$617))-SUMPRODUCT(('Fixed assets'!$Q$2:$Q$1000=Costs!H$617)*('Fixed assets'!$U$2:$U$1000=Costs!$A645)*('Fixed assets'!$S$2:$S$1000))+SUMPRODUCT(('Fixed assets'!$Q$2:$Q$1000=Costs!H$617)*('Fixed assets'!$P$2:$P$1000=Costs!$A645)*('Fixed assets'!$U$2:$U$1000=Costs!$A645)*('Fixed assets'!$R$2:$R$1000))","v":0},{"$f":"SUMPRODUCT(('Fixed assets'!$R$2:$R$1000)*('Fixed assets'!$P$2:$P$1000<$A645)*('Fixed assets'!$Q$2:$Q$1000=Costs!I$617))-SUMPRODUCT(('Fixed assets'!$S$2:$S$1000)*('Fixed assets'!$P$2:$P$1000<Costs!$A645)*('Fixed assets'!$Q$2:$Q$1000=Costs!I$617))-SUMPRODUCT(('Fixed assets'!$Q$2:$Q$1000=Costs!I$617)*('Fixed assets'!$U$2:$U$1000=Costs!$A645)*('Fixed assets'!$S$2:$S$1000))+SUMPRODUCT(('Fixed assets'!$Q$2:$Q$1000=Costs!I$617)*('Fixed assets'!$P$2:$P$1000=Costs!$A645)*('Fixed assets'!$U$2:$U$1000=Costs!$A645)*('Fixed assets'!$R$2:$R$1000))","v":0},{"$f":"SUMPRODUCT(('Fixed assets'!$R$2:$R$1000)*('Fixed assets'!$P$2:$P$1000<$A645)*('Fixed assets'!$Q$2:$Q$1000=Costs!J$617))-SUMPRODUCT(('Fixed assets'!$S$2:$S$1000)*('Fixed assets'!$P$2:$P$1000<Costs!$A645)*('Fixed assets'!$Q$2:$Q$1000=Costs!J$617))-SUMPRODUCT(('Fixed assets'!$Q$2:$Q$1000=Costs!J$617)*('Fixed assets'!$U$2:$U$1000=Costs!$A645)*('Fixed assets'!$S$2:$S$1000))+SUMPRODUCT(('Fixed assets'!$Q$2:$Q$1000=Costs!J$617)*('Fixed assets'!$P$2:$P$1000=Costs!$A645)*('Fixed assets'!$U$2:$U$1000=Costs!$A645)*('Fixed assets'!$R$2:$R$1000))","v":0},{"$f":"SUMPRODUCT(('Fixed assets'!$R$2:$R$1000)*('Fixed assets'!$P$2:$P$1000<$A645)*('Fixed assets'!$Q$2:$Q$1000=Costs!K$617))-SUMPRODUCT(('Fixed assets'!$S$2:$S$1000)*('Fixed assets'!$P$2:$P$1000<Costs!$A645)*('Fixed assets'!$Q$2:$Q$1000=Costs!K$617))-SUMPRODUCT(('Fixed assets'!$Q$2:$Q$1000=Costs!K$617)*('Fixed assets'!$U$2:$U$1000=Costs!$A645)*('Fixed assets'!$S$2:$S$1000))+SUMPRODUCT(('Fixed assets'!$Q$2:$Q$1000=Costs!K$617)*('Fixed assets'!$P$2:$P$1000=Costs!$A645)*('Fixed assets'!$U$2:$U$1000=Costs!$A645)*('Fixed assets'!$R$2:$R$1000))","v":0},{"$f":"SUMPRODUCT(('Fixed assets'!$R$2:$R$1000)*('Fixed assets'!$P$2:$P$1000<$A645)*('Fixed assets'!$Q$2:$Q$1000=Costs!L$617))-SUMPRODUCT(('Fixed assets'!$S$2:$S$1000)*('Fixed assets'!$P$2:$P$1000<Costs!$A645)*('Fixed assets'!$Q$2:$Q$1000=Costs!L$617))-SUMPRODUCT(('Fixed assets'!$Q$2:$Q$1000=Costs!L$617)*('Fixed assets'!$U$2:$U$1000=Costs!$A645)*('Fixed assets'!$S$2:$S$1000))+SUMPRODUCT(('Fixed assets'!$Q$2:$Q$1000=Costs!L$617)*('Fixed assets'!$P$2:$P$1000=Costs!$A645)*('Fixed assets'!$U$2:$U$1000=Costs!$A645)*('Fixed assets'!$R$2:$R$1000))","v":0},{"$f":"SUMPRODUCT(('Fixed assets'!$R$2:$R$1000)*('Fixed assets'!$P$2:$P$1000<$A645)*('Fixed assets'!$Q$2:$Q$1000=Costs!M$617))-SUMPRODUCT(('Fixed assets'!$S$2:$S$1000)*('Fixed assets'!$P$2:$P$1000<Costs!$A645)*('Fixed assets'!$Q$2:$Q$1000=Costs!M$617))-SUMPRODUCT(('Fixed assets'!$Q$2:$Q$1000=Costs!M$617)*('Fixed assets'!$U$2:$U$1000=Costs!$A645)*('Fixed assets'!$S$2:$S$1000))+SUMPRODUCT(('Fixed assets'!$Q$2:$Q$1000=Costs!M$617)*('Fixed assets'!$P$2:$P$1000=Costs!$A645)*('Fixed assets'!$U$2:$U$1000=Costs!$A645)*('Fixed assets'!$R$2:$R$1000))","v":0},{"$f":"SUMPRODUCT(('Fixed assets'!$R$2:$R$1000)*('Fixed assets'!$P$2:$P$1000<$A645)*('Fixed assets'!$Q$2:$Q$1000=Costs!N$617))-SUMPRODUCT(('Fixed assets'!$S$2:$S$1000)*('Fixed assets'!$P$2:$P$1000<Costs!$A645)*('Fixed assets'!$Q$2:$Q$1000=Costs!N$617))-SUMPRODUCT(('Fixed assets'!$Q$2:$Q$1000=Costs!N$617)*('Fixed assets'!$U$2:$U$1000=Costs!$A645)*('Fixed assets'!$S$2:$S$1000))+SUMPRODUCT(('Fixed assets'!$Q$2:$Q$1000=Costs!N$617)*('Fixed assets'!$P$2:$P$1000=Costs!$A645)*('Fixed assets'!$U$2:$U$1000=Costs!$A645)*('Fixed assets'!$R$2:$R$1000))","v":0},{"$f":"SUMPRODUCT(('Fixed assets'!$R$2:$R$1000)*('Fixed assets'!$P$2:$P$1000<$A645)*('Fixed assets'!$Q$2:$Q$1000=Costs!O$617))-SUMPRODUCT(('Fixed assets'!$S$2:$S$1000)*('Fixed assets'!$P$2:$P$1000<Costs!$A645)*('Fixed assets'!$Q$2:$Q$1000=Costs!O$617))-SUMPRODUCT(('Fixed assets'!$Q$2:$Q$1000=Costs!O$617)*('Fixed assets'!$U$2:$U$1000=Costs!$A645)*('Fixed assets'!$S$2:$S$1000))+SUMPRODUCT(('Fixed assets'!$Q$2:$Q$1000=Costs!O$617)*('Fixed assets'!$P$2:$P$1000=Costs!$A645)*('Fixed assets'!$U$2:$U$1000=Costs!$A645)*('Fixed assets'!$R$2:$R$1000))","v":0},{"$f":"SUMPRODUCT(('Fixed assets'!$R$2:$R$1000)*('Fixed assets'!$P$2:$P$1000<$A645)*('Fixed assets'!$Q$2:$Q$1000=Costs!P$617))-SUMPRODUCT(('Fixed assets'!$S$2:$S$1000)*('Fixed assets'!$P$2:$P$1000<Costs!$A645)*('Fixed assets'!$Q$2:$Q$1000=Costs!P$617))-SUMPRODUCT(('Fixed assets'!$Q$2:$Q$1000=Costs!P$617)*('Fixed assets'!$U$2:$U$1000=Costs!$A645)*('Fixed assets'!$S$2:$S$1000))+SUMPRODUCT(('Fixed assets'!$Q$2:$Q$1000=Costs!P$617)*('Fixed assets'!$P$2:$P$1000=Costs!$A645)*('Fixed assets'!$U$2:$U$1000=Costs!$A645)*('Fixed assets'!$R$2:$R$1000))","v":0},{"$f":"SUMPRODUCT(('Fixed assets'!$R$2:$R$1000)*('Fixed assets'!$P$2:$P$1000<$A645)*('Fixed assets'!$Q$2:$Q$1000=Costs!Q$617))-SUMPRODUCT(('Fixed assets'!$S$2:$S$1000)*('Fixed assets'!$P$2:$P$1000<Costs!$A645)*('Fixed assets'!$Q$2:$Q$1000=Costs!Q$617))-SUMPRODUCT(('Fixed assets'!$Q$2:$Q$1000=Costs!Q$617)*('Fixed assets'!$U$2:$U$1000=Costs!$A645)*('Fixed assets'!$S$2:$S$1000))+SUMPRODUCT(('Fixed assets'!$Q$2:$Q$1000=Costs!Q$617)*('Fixed assets'!$P$2:$P$1000=Costs!$A645)*('Fixed assets'!$U$2:$U$1000=Costs!$A645)*('Fixed assets'!$R$2:$R$1000))","v":0},{"$f":"SUMPRODUCT(('Fixed assets'!$R$2:$R$1000)*('Fixed assets'!$P$2:$P$1000<$A645)*('Fixed assets'!$Q$2:$Q$1000=Costs!R$617))-SUMPRODUCT(('Fixed assets'!$S$2:$S$1000)*('Fixed assets'!$P$2:$P$1000<Costs!$A645)*('Fixed assets'!$Q$2:$Q$1000=Costs!R$617))-SUMPRODUCT(('Fixed assets'!$Q$2:$Q$1000=Costs!R$617)*('Fixed assets'!$U$2:$U$1000=Costs!$A645)*('Fixed assets'!$S$2:$S$1000))+SUMPRODUCT(('Fixed assets'!$Q$2:$Q$1000=Costs!R$617)*('Fixed assets'!$P$2:$P$1000=Costs!$A645)*('Fixed assets'!$U$2:$U$1000=Costs!$A645)*('Fixed assets'!$R$2:$R$1000))","v":0},{"$f":"SUMPRODUCT(('Fixed assets'!$R$2:$R$1000)*('Fixed assets'!$P$2:$P$1000<$A645)*('Fixed assets'!$Q$2:$Q$1000=Costs!S$617))-SUMPRODUCT(('Fixed assets'!$S$2:$S$1000)*('Fixed assets'!$P$2:$P$1000<Costs!$A645)*('Fixed assets'!$Q$2:$Q$1000=Costs!S$617))-SUMPRODUCT(('Fixed assets'!$Q$2:$Q$1000=Costs!S$617)*('Fixed assets'!$U$2:$U$1000=Costs!$A645)*('Fixed assets'!$S$2:$S$1000))+SUMPRODUCT(('Fixed assets'!$Q$2:$Q$1000=Costs!S$617)*('Fixed assets'!$P$2:$P$1000=Costs!$A645)*('Fixed assets'!$U$2:$U$1000=Costs!$A645)*('Fixed assets'!$R$2:$R$1000))","v":0},{"$f":"SUMPRODUCT(('Fixed assets'!$R$2:$R$1000)*('Fixed assets'!$P$2:$P$1000<$A645)*('Fixed assets'!$Q$2:$Q$1000=Costs!T$617))-SUMPRODUCT(('Fixed assets'!$S$2:$S$1000)*('Fixed assets'!$P$2:$P$1000<Costs!$A645)*('Fixed assets'!$Q$2:$Q$1000=Costs!T$617))-SUMPRODUCT(('Fixed assets'!$Q$2:$Q$1000=Costs!T$617)*('Fixed assets'!$U$2:$U$1000=Costs!$A645)*('Fixed assets'!$S$2:$S$1000))+SUMPRODUCT(('Fixed assets'!$Q$2:$Q$1000=Costs!T$617)*('Fixed assets'!$P$2:$P$1000=Costs!$A645)*('Fixed assets'!$U$2:$U$1000=Costs!$A645)*('Fixed assets'!$R$2:$R$1000))","v":0},{"$f":"SUMPRODUCT(('Fixed assets'!$R$2:$R$1000)*('Fixed assets'!$P$2:$P$1000<$A645)*('Fixed assets'!$Q$2:$Q$1000=Costs!U$617))-SUMPRODUCT(('Fixed assets'!$S$2:$S$1000)*('Fixed assets'!$P$2:$P$1000<Costs!$A645)*('Fixed assets'!$Q$2:$Q$1000=Costs!U$617))-SUMPRODUCT(('Fixed assets'!$Q$2:$Q$1000=Costs!U$617)*('Fixed assets'!$U$2:$U$1000=Costs!$A645)*('Fixed assets'!$S$2:$S$1000))+SUMPRODUCT(('Fixed assets'!$Q$2:$Q$1000=Costs!U$617)*('Fixed assets'!$P$2:$P$1000=Costs!$A645)*('Fixed assets'!$U$2:$U$1000=Costs!$A645)*('Fixed assets'!$R$2:$R$1000))","v":0},{"$f":"SUMPRODUCT(('Fixed assets'!$R$2:$R$1000)*('Fixed assets'!$P$2:$P$1000<$A645)*('Fixed assets'!$Q$2:$Q$1000=Costs!V$617))-SUMPRODUCT(('Fixed assets'!$S$2:$S$1000)*('Fixed assets'!$P$2:$P$1000<Costs!$A645)*('Fixed assets'!$Q$2:$Q$1000=Costs!V$617))-SUMPRODUCT(('Fixed assets'!$Q$2:$Q$1000=Costs!V$617)*('Fixed assets'!$U$2:$U$1000=Costs!$A645)*('Fixed assets'!$S$2:$S$1000))+SUMPRODUCT(('Fixed assets'!$Q$2:$Q$1000=Costs!V$617)*('Fixed assets'!$P$2:$P$1000=Costs!$A645)*('Fixed assets'!$U$2:$U$1000=Costs!$A645)*('Fixed assets'!$R$2:$R$1000))","v":0},{"$f":"SUMPRODUCT(('Fixed assets'!$R$2:$R$1000)*('Fixed assets'!$P$2:$P$1000<$A645)*('Fixed assets'!$Q$2:$Q$1000=Costs!W$617))-SUMPRODUCT(('Fixed assets'!$S$2:$S$1000)*('Fixed assets'!$P$2:$P$1000<Costs!$A645)*('Fixed assets'!$Q$2:$Q$1000=Costs!W$617))-SUMPRODUCT(('Fixed assets'!$Q$2:$Q$1000=Costs!W$617)*('Fixed assets'!$U$2:$U$1000=Costs!$A645)*('Fixed assets'!$S$2:$S$1000))+SUMPRODUCT(('Fixed assets'!$Q$2:$Q$1000=Costs!W$617)*('Fixed assets'!$P$2:$P$1000=Costs!$A645)*('Fixed assets'!$U$2:$U$1000=Costs!$A645)*('Fixed assets'!$R$2:$R$1000))","v":0},{"$f":"SUMPRODUCT(('Fixed assets'!$R$2:$R$1000)*('Fixed assets'!$P$2:$P$1000<$A645)*('Fixed assets'!$Q$2:$Q$1000=Costs!X$617))-SUMPRODUCT(('Fixed assets'!$S$2:$S$1000)*('Fixed assets'!$P$2:$P$1000<Costs!$A645)*('Fixed assets'!$Q$2:$Q$1000=Costs!X$617))-SUMPRODUCT(('Fixed assets'!$Q$2:$Q$1000=Costs!X$617)*('Fixed assets'!$U$2:$U$1000=Costs!$A645)*('Fixed assets'!$S$2:$S$1000))+SUMPRODUCT(('Fixed assets'!$Q$2:$Q$1000=Costs!X$617)*('Fixed assets'!$P$2:$P$1000=Costs!$A645)*('Fixed assets'!$U$2:$U$1000=Costs!$A645)*('Fixed assets'!$R$2:$R$1000))","v":0},{"$f":"SUMPRODUCT(('Fixed assets'!$R$2:$R$1000)*('Fixed assets'!$P$2:$P$1000<$A645)*('Fixed assets'!$Q$2:$Q$1000=Costs!Y$617))-SUMPRODUCT(('Fixed assets'!$S$2:$S$1000)*('Fixed assets'!$P$2:$P$1000<Costs!$A645)*('Fixed assets'!$Q$2:$Q$1000=Costs!Y$617))-SUMPRODUCT(('Fixed assets'!$Q$2:$Q$1000=Costs!Y$617)*('Fixed assets'!$U$2:$U$1000=Costs!$A645)*('Fixed assets'!$S$2:$S$1000))+SUMPRODUCT(('Fixed assets'!$Q$2:$Q$1000=Costs!Y$617)*('Fixed assets'!$P$2:$P$1000=Costs!$A645)*('Fixed assets'!$U$2:$U$1000=Costs!$A645)*('Fixed assets'!$R$2:$R$1000))","v":0},{"$f":"SUMPRODUCT(('Fixed assets'!$R$2:$R$1000)*('Fixed assets'!$P$2:$P$1000<$A645)*('Fixed assets'!$Q$2:$Q$1000=Costs!Z$617))-SUMPRODUCT(('Fixed assets'!$S$2:$S$1000)*('Fixed assets'!$P$2:$P$1000<Costs!$A645)*('Fixed assets'!$Q$2:$Q$1000=Costs!Z$617))-SUMPRODUCT(('Fixed assets'!$Q$2:$Q$1000=Costs!Z$617)*('Fixed assets'!$U$2:$U$1000=Costs!$A645)*('Fixed assets'!$S$2:$S$1000))+SUMPRODUCT(('Fixed assets'!$Q$2:$Q$1000=Costs!Z$617)*('Fixed assets'!$P$2:$P$1000=Costs!$A645)*('Fixed assets'!$U$2:$U$1000=Costs!$A645)*('Fixed assets'!$R$2:$R$1000))","v":0},{"$f":"SUMPRODUCT(('Fixed assets'!$R$2:$R$1000)*('Fixed assets'!$P$2:$P$1000<$A645)*('Fixed assets'!$Q$2:$Q$1000=Costs!AA$617))-SUMPRODUCT(('Fixed assets'!$S$2:$S$1000)*('Fixed assets'!$P$2:$P$1000<Costs!$A645)*('Fixed assets'!$Q$2:$Q$1000=Costs!AA$617))-SUMPRODUCT(('Fixed assets'!$Q$2:$Q$1000=Costs!AA$617)*('Fixed assets'!$U$2:$U$1000=Costs!$A645)*('Fixed assets'!$S$2:$S$1000))+SUMPRODUCT(('Fixed assets'!$Q$2:$Q$1000=Costs!AA$617)*('Fixed assets'!$P$2:$P$1000=Costs!$A645)*('Fixed assets'!$U$2:$U$1000=Costs!$A645)*('Fixed assets'!$R$2:$R$1000))","v":0},{"$f":"SUMPRODUCT(('Fixed assets'!$R$2:$R$1000)*('Fixed assets'!$P$2:$P$1000<$A645)*('Fixed assets'!$Q$2:$Q$1000=Costs!AB$617))-SUMPRODUCT(('Fixed assets'!$S$2:$S$1000)*('Fixed assets'!$P$2:$P$1000<Costs!$A645)*('Fixed assets'!$Q$2:$Q$1000=Costs!AB$617))-SUMPRODUCT(('Fixed assets'!$Q$2:$Q$1000=Costs!AB$617)*('Fixed assets'!$U$2:$U$1000=Costs!$A645)*('Fixed assets'!$S$2:$S$1000))+SUMPRODUCT(('Fixed assets'!$Q$2:$Q$1000=Costs!AB$617)*('Fixed assets'!$P$2:$P$1000=Costs!$A645)*('Fixed assets'!$U$2:$U$1000=Costs!$A645)*('Fixed assets'!$R$2:$R$1000))","v":0},{"$f":"SUMPRODUCT(('Fixed assets'!$R$2:$R$1000)*('Fixed assets'!$P$2:$P$1000<$A645)*('Fixed assets'!$Q$2:$Q$1000=Costs!AC$617))-SUMPRODUCT(('Fixed assets'!$S$2:$S$1000)*('Fixed assets'!$P$2:$P$1000<Costs!$A645)*('Fixed assets'!$Q$2:$Q$1000=Costs!AC$617))-SUMPRODUCT(('Fixed assets'!$Q$2:$Q$1000=Costs!AC$617)*('Fixed assets'!$U$2:$U$1000=Costs!$A645)*('Fixed assets'!$S$2:$S$1000))+SUMPRODUCT(('Fixed assets'!$Q$2:$Q$1000=Costs!AC$617)*('Fixed assets'!$P$2:$P$1000=Costs!$A645)*('Fixed assets'!$U$2:$U$1000=Costs!$A645)*('Fixed assets'!$R$2:$R$1000))","v":0},{"$f":"SUMPRODUCT(('Fixed assets'!$R$2:$R$1000)*('Fixed assets'!$P$2:$P$1000<$A645)*('Fixed assets'!$Q$2:$Q$1000=Costs!AD$617))-SUMPRODUCT(('Fixed assets'!$S$2:$S$1000)*('Fixed assets'!$P$2:$P$1000<Costs!$A645)*('Fixed assets'!$Q$2:$Q$1000=Costs!AD$617))-SUMPRODUCT(('Fixed assets'!$Q$2:$Q$1000=Costs!AD$617)*('Fixed assets'!$U$2:$U$1000=Costs!$A645)*('Fixed assets'!$S$2:$S$1000))+SUMPRODUCT(('Fixed assets'!$Q$2:$Q$1000=Costs!AD$617)*('Fixed assets'!$P$2:$P$1000=Costs!$A645)*('Fixed assets'!$U$2:$U$1000=Costs!$A645)*('Fixed assets'!$R$2:$R$1000))","v":0},{"$f":"SUMPRODUCT(('Fixed assets'!$R$2:$R$1000)*('Fixed assets'!$P$2:$P$1000<$A645)*('Fixed assets'!$Q$2:$Q$1000=Costs!AE$617))-SUMPRODUCT(('Fixed assets'!$S$2:$S$1000)*('Fixed assets'!$P$2:$P$1000<Costs!$A645)*('Fixed assets'!$Q$2:$Q$1000=Costs!AE$617))-SUMPRODUCT(('Fixed assets'!$Q$2:$Q$1000=Costs!AE$617)*('Fixed assets'!$U$2:$U$1000=Costs!$A645)*('Fixed assets'!$S$2:$S$1000))+SUMPRODUCT(('Fixed assets'!$Q$2:$Q$1000=Costs!AE$617)*('Fixed assets'!$P$2:$P$1000=Costs!$A645)*('Fixed assets'!$U$2:$U$1000=Costs!$A645)*('Fixed assets'!$R$2:$R$1000))","v":0},{"$f":"SUMPRODUCT(('Fixed assets'!$R$2:$R$1000)*('Fixed assets'!$P$2:$P$1000<$A645)*('Fixed assets'!$Q$2:$Q$1000=Costs!AF$617))-SUMPRODUCT(('Fixed assets'!$S$2:$S$1000)*('Fixed assets'!$P$2:$P$1000<Costs!$A645)*('Fixed assets'!$Q$2:$Q$1000=Costs!AF$617))-SUMPRODUCT(('Fixed assets'!$Q$2:$Q$1000=Costs!AF$617)*('Fixed assets'!$U$2:$U$1000=Costs!$A645)*('Fixed assets'!$S$2:$S$1000))+SUMPRODUCT(('Fixed assets'!$Q$2:$Q$1000=Costs!AF$617)*('Fixed assets'!$P$2:$P$1000=Costs!$A645)*('Fixed assets'!$U$2:$U$1000=Costs!$A645)*('Fixed assets'!$R$2:$R$1000))","v":0},{"$f":"SUMPRODUCT(('Fixed assets'!$R$2:$R$1000)*('Fixed assets'!$P$2:$P$1000<$A645)*('Fixed assets'!$Q$2:$Q$1000=Costs!AG$617))-SUMPRODUCT(('Fixed assets'!$S$2:$S$1000)*('Fixed assets'!$P$2:$P$1000<Costs!$A645)*('Fixed assets'!$Q$2:$Q$1000=Costs!AG$617))-SUMPRODUCT(('Fixed assets'!$Q$2:$Q$1000=Costs!AG$617)*('Fixed assets'!$U$2:$U$1000=Costs!$A645)*('Fixed assets'!$S$2:$S$1000))+SUMPRODUCT(('Fixed assets'!$Q$2:$Q$1000=Costs!AG$617)*('Fixed assets'!$P$2:$P$1000=Costs!$A645)*('Fixed assets'!$U$2:$U$1000=Costs!$A645)*('Fixed assets'!$R$2:$R$1000))","v":0},{"$f":"SUMPRODUCT(('Fixed assets'!$R$2:$R$1000)*('Fixed assets'!$P$2:$P$1000<$A645)*('Fixed assets'!$Q$2:$Q$1000=Costs!AH$617))-SUMPRODUCT(('Fixed assets'!$S$2:$S$1000)*('Fixed assets'!$P$2:$P$1000<Costs!$A645)*('Fixed assets'!$Q$2:$Q$1000=Costs!AH$617))-SUMPRODUCT(('Fixed assets'!$Q$2:$Q$1000=Costs!AH$617)*('Fixed assets'!$U$2:$U$1000=Costs!$A645)*('Fixed assets'!$S$2:$S$1000))+SUMPRODUCT(('Fixed assets'!$Q$2:$Q$1000=Costs!AH$617)*('Fixed assets'!$P$2:$P$1000=Costs!$A645)*('Fixed assets'!$U$2:$U$1000=Costs!$A645)*('Fixed assets'!$R$2:$R$1000))","v":0},{"$f":"SUMPRODUCT(('Fixed assets'!$R$2:$R$1000)*('Fixed assets'!$P$2:$P$1000<$A645)*('Fixed assets'!$Q$2:$Q$1000=Costs!AI$617))-SUMPRODUCT(('Fixed assets'!$S$2:$S$1000)*('Fixed assets'!$P$2:$P$1000<Costs!$A645)*('Fixed assets'!$Q$2:$Q$1000=Costs!AI$617))-SUMPRODUCT(('Fixed assets'!$Q$2:$Q$1000=Costs!AI$617)*('Fixed assets'!$U$2:$U$1000=Costs!$A645)*('Fixed assets'!$S$2:$S$1000))+SUMPRODUCT(('Fixed assets'!$Q$2:$Q$1000=Costs!AI$617)*('Fixed assets'!$P$2:$P$1000=Costs!$A645)*('Fixed assets'!$U$2:$U$1000=Costs!$A645)*('Fixed assets'!$R$2:$R$1000))","v":0},{"$f":"SUMPRODUCT(('Fixed assets'!$R$2:$R$1000)*('Fixed assets'!$P$2:$P$1000<$A645)*('Fixed assets'!$Q$2:$Q$1000=Costs!AJ$617))-SUMPRODUCT(('Fixed assets'!$S$2:$S$1000)*('Fixed assets'!$P$2:$P$1000<Costs!$A645)*('Fixed assets'!$Q$2:$Q$1000=Costs!AJ$617))-SUMPRODUCT(('Fixed assets'!$Q$2:$Q$1000=Costs!AJ$617)*('Fixed assets'!$U$2:$U$1000=Costs!$A645)*('Fixed assets'!$S$2:$S$1000))+SUMPRODUCT(('Fixed assets'!$Q$2:$Q$1000=Costs!AJ$617)*('Fixed assets'!$P$2:$P$1000=Costs!$A645)*('Fixed assets'!$U$2:$U$1000=Costs!$A645)*('Fixed assets'!$R$2:$R$1000))","v":0},{"$f":"SUMPRODUCT(('Fixed assets'!$R$2:$R$1000)*('Fixed assets'!$P$2:$P$1000<$A645)*('Fixed assets'!$Q$2:$Q$1000=Costs!AK$617))-SUMPRODUCT(('Fixed assets'!$S$2:$S$1000)*('Fixed assets'!$P$2:$P$1000<Costs!$A645)*('Fixed assets'!$Q$2:$Q$1000=Costs!AK$617))-SUMPRODUCT(('Fixed assets'!$Q$2:$Q$1000=Costs!AK$617)*('Fixed assets'!$U$2:$U$1000=Costs!$A645)*('Fixed assets'!$S$2:$S$1000))+SUMPRODUCT(('Fixed assets'!$Q$2:$Q$1000=Costs!AK$617)*('Fixed assets'!$P$2:$P$1000=Costs!$A645)*('Fixed assets'!$U$2:$U$1000=Costs!$A645)*('Fixed assets'!$R$2:$R$1000))","v":0},{"$f":"SUMPRODUCT(('Fixed assets'!$R$2:$R$1000)*('Fixed assets'!$P$2:$P$1000<$A645)*('Fixed assets'!$Q$2:$Q$1000=Costs!AL$617))-SUMPRODUCT(('Fixed assets'!$S$2:$S$1000)*('Fixed assets'!$P$2:$P$1000<Costs!$A645)*('Fixed assets'!$Q$2:$Q$1000=Costs!AL$617))-SUMPRODUCT(('Fixed assets'!$Q$2:$Q$1000=Costs!AL$617)*('Fixed assets'!$U$2:$U$1000=Costs!$A645)*('Fixed assets'!$S$2:$S$1000))+SUMPRODUCT(('Fixed assets'!$Q$2:$Q$1000=Costs!AL$617)*('Fixed assets'!$P$2:$P$1000=Costs!$A645)*('Fixed assets'!$U$2:$U$1000=Costs!$A645)*('Fixed assets'!$R$2:$R$1000))","v":0},{"$f":"SUMPRODUCT(('Fixed assets'!$R$2:$R$1000)*('Fixed assets'!$P$2:$P$1000<$A645)*('Fixed assets'!$Q$2:$Q$1000=Costs!AM$617))-SUMPRODUCT(('Fixed assets'!$S$2:$S$1000)*('Fixed assets'!$P$2:$P$1000<Costs!$A645)*('Fixed assets'!$Q$2:$Q$1000=Costs!AM$617))-SUMPRODUCT(('Fixed assets'!$Q$2:$Q$1000=Costs!AM$617)*('Fixed assets'!$U$2:$U$1000=Costs!$A645)*('Fixed assets'!$S$2:$S$1000))+SUMPRODUCT(('Fixed assets'!$Q$2:$Q$1000=Costs!AM$617)*('Fixed assets'!$P$2:$P$1000=Costs!$A645)*('Fixed assets'!$U$2:$U$1000=Costs!$A645)*('Fixed assets'!$R$2:$R$1000))","v":0},{"$f":"SUMPRODUCT(('Fixed assets'!$R$2:$R$1000)*('Fixed assets'!$P$2:$P$1000<$A645)*('Fixed assets'!$Q$2:$Q$1000=Costs!AN$617))-SUMPRODUCT(('Fixed assets'!$S$2:$S$1000)*('Fixed assets'!$P$2:$P$1000<Costs!$A645)*('Fixed assets'!$Q$2:$Q$1000=Costs!AN$617))-SUMPRODUCT(('Fixed assets'!$Q$2:$Q$1000=Costs!AN$617)*('Fixed assets'!$U$2:$U$1000=Costs!$A645)*('Fixed assets'!$S$2:$S$1000))+SUMPRODUCT(('Fixed assets'!$Q$2:$Q$1000=Costs!AN$617)*('Fixed assets'!$P$2:$P$1000=Costs!$A645)*('Fixed assets'!$U$2:$U$1000=Costs!$A645)*('Fixed assets'!$R$2:$R$1000))","v":0},{"$f":"SUMPRODUCT(('Fixed assets'!$R$2:$R$1000)*('Fixed assets'!$P$2:$P$1000<$A645)*('Fixed assets'!$Q$2:$Q$1000=Costs!AO$617))-SUMPRODUCT(('Fixed assets'!$S$2:$S$1000)*('Fixed assets'!$P$2:$P$1000<Costs!$A645)*('Fixed assets'!$Q$2:$Q$1000=Costs!AO$617))-SUMPRODUCT(('Fixed assets'!$Q$2:$Q$1000=Costs!AO$617)*('Fixed assets'!$U$2:$U$1000=Costs!$A645)*('Fixed assets'!$S$2:$S$1000))+SUMPRODUCT(('Fixed assets'!$Q$2:$Q$1000=Costs!AO$617)*('Fixed assets'!$P$2:$P$1000=Costs!$A645)*('Fixed assets'!$U$2:$U$1000=Costs!$A645)*('Fixed assets'!$R$2:$R$1000))","v":0},{"$f":"SUMPRODUCT(('Fixed assets'!$R$2:$R$1000)*('Fixed assets'!$P$2:$P$1000<$A645)*('Fixed assets'!$Q$2:$Q$1000=Costs!AP$617))-SUMPRODUCT(('Fixed assets'!$S$2:$S$1000)*('Fixed assets'!$P$2:$P$1000<Costs!$A645)*('Fixed assets'!$Q$2:$Q$1000=Costs!AP$617))-SUMPRODUCT(('Fixed assets'!$Q$2:$Q$1000=Costs!AP$617)*('Fixed assets'!$U$2:$U$1000=Costs!$A645)*('Fixed assets'!$S$2:$S$1000))+SUMPRODUCT(('Fixed assets'!$Q$2:$Q$1000=Costs!AP$617)*('Fixed assets'!$P$2:$P$1000=Costs!$A645)*('Fixed assets'!$U$2:$U$1000=Costs!$A645)*('Fixed assets'!$R$2:$R$1000))","v":0},{"$f":"SUMPRODUCT(('Fixed assets'!$R$2:$R$1000)*('Fixed assets'!$P$2:$P$1000<$A645)*('Fixed assets'!$Q$2:$Q$1000=Costs!AQ$617))-SUMPRODUCT(('Fixed assets'!$S$2:$S$1000)*('Fixed assets'!$P$2:$P$1000<Costs!$A645)*('Fixed assets'!$Q$2:$Q$1000=Costs!AQ$617))-SUMPRODUCT(('Fixed assets'!$Q$2:$Q$1000=Costs!AQ$617)*('Fixed assets'!$U$2:$U$1000=Costs!$A645)*('Fixed assets'!$S$2:$S$1000))+SUMPRODUCT(('Fixed assets'!$Q$2:$Q$1000=Costs!AQ$617)*('Fixed assets'!$P$2:$P$1000=Costs!$A645)*('Fixed assets'!$U$2:$U$1000=Costs!$A645)*('Fixed assets'!$R$2:$R$1000))","v":0}]
[2043,0,{"$f":"SUMPRODUCT(('Fixed assets'!$R$2:$R$1000)*('Fixed assets'!$P$2:$P$1000<$A646)*('Fixed assets'!$Q$2:$Q$1000=Costs!C$617))-SUMPRODUCT(('Fixed assets'!$S$2:$S$1000)*('Fixed assets'!$P$2:$P$1000<Costs!$A646)*('Fixed assets'!$Q$2:$Q$1000=Costs!C$617))-SUMPRODUCT(('Fixed assets'!$Q$2:$Q$1000=Costs!C$617)*('Fixed assets'!$U$2:$U$1000=Costs!$A646)*('Fixed assets'!$S$2:$S$1000))+SUMPRODUCT(('Fixed assets'!$Q$2:$Q$1000=Costs!C$617)*('Fixed assets'!$P$2:$P$1000=Costs!$A646)*('Fixed assets'!$U$2:$U$1000=Costs!$A646)*('Fixed assets'!$R$2:$R$1000))","v":0},{"$f":"SUMPRODUCT(('Fixed assets'!$R$2:$R$1000)*('Fixed assets'!$P$2:$P$1000<$A646)*('Fixed assets'!$Q$2:$Q$1000=Costs!D$617))-SUMPRODUCT(('Fixed assets'!$S$2:$S$1000)*('Fixed assets'!$P$2:$P$1000<Costs!$A646)*('Fixed assets'!$Q$2:$Q$1000=Costs!D$617))-SUMPRODUCT(('Fixed assets'!$Q$2:$Q$1000=Costs!D$617)*('Fixed assets'!$U$2:$U$1000=Costs!$A646)*('Fixed assets'!$S$2:$S$1000))+SUMPRODUCT(('Fixed assets'!$Q$2:$Q$1000=Costs!D$617)*('Fixed assets'!$P$2:$P$1000=Costs!$A646)*('Fixed assets'!$U$2:$U$1000=Costs!$A646)*('Fixed assets'!$R$2:$R$1000))","v":0},{"$f":"SUMPRODUCT(('Fixed assets'!$R$2:$R$1000)*('Fixed assets'!$P$2:$P$1000<$A646)*('Fixed assets'!$Q$2:$Q$1000=Costs!E$617))-SUMPRODUCT(('Fixed assets'!$S$2:$S$1000)*('Fixed assets'!$P$2:$P$1000<Costs!$A646)*('Fixed assets'!$Q$2:$Q$1000=Costs!E$617))-SUMPRODUCT(('Fixed assets'!$Q$2:$Q$1000=Costs!E$617)*('Fixed assets'!$U$2:$U$1000=Costs!$A646)*('Fixed assets'!$S$2:$S$1000))+SUMPRODUCT(('Fixed assets'!$Q$2:$Q$1000=Costs!E$617)*('Fixed assets'!$P$2:$P$1000=Costs!$A646)*('Fixed assets'!$U$2:$U$1000=Costs!$A646)*('Fixed assets'!$R$2:$R$1000))","v":0},{"$f":"SUMPRODUCT(('Fixed assets'!$R$2:$R$1000)*('Fixed assets'!$P$2:$P$1000<$A646)*('Fixed assets'!$Q$2:$Q$1000=Costs!F$617))-SUMPRODUCT(('Fixed assets'!$S$2:$S$1000)*('Fixed assets'!$P$2:$P$1000<Costs!$A646)*('Fixed assets'!$Q$2:$Q$1000=Costs!F$617))-SUMPRODUCT(('Fixed assets'!$Q$2:$Q$1000=Costs!F$617)*('Fixed assets'!$U$2:$U$1000=Costs!$A646)*('Fixed assets'!$S$2:$S$1000))+SUMPRODUCT(('Fixed assets'!$Q$2:$Q$1000=Costs!F$617)*('Fixed assets'!$P$2:$P$1000=Costs!$A646)*('Fixed assets'!$U$2:$U$1000=Costs!$A646)*('Fixed assets'!$R$2:$R$1000))","v":0},{"$f":"SUMPRODUCT(('Fixed assets'!$R$2:$R$1000)*('Fixed assets'!$P$2:$P$1000<$A646)*('Fixed assets'!$Q$2:$Q$1000=Costs!G$617))-SUMPRODUCT(('Fixed assets'!$S$2:$S$1000)*('Fixed assets'!$P$2:$P$1000<Costs!$A646)*('Fixed assets'!$Q$2:$Q$1000=Costs!G$617))-SUMPRODUCT(('Fixed assets'!$Q$2:$Q$1000=Costs!G$617)*('Fixed assets'!$U$2:$U$1000=Costs!$A646)*('Fixed assets'!$S$2:$S$1000))+SUMPRODUCT(('Fixed assets'!$Q$2:$Q$1000=Costs!G$617)*('Fixed assets'!$P$2:$P$1000=Costs!$A646)*('Fixed assets'!$U$2:$U$1000=Costs!$A646)*('Fixed assets'!$R$2:$R$1000))","v":0},{"$f":"SUMPRODUCT(('Fixed assets'!$R$2:$R$1000)*('Fixed assets'!$P$2:$P$1000<$A646)*('Fixed assets'!$Q$2:$Q$1000=Costs!H$617))-SUMPRODUCT(('Fixed assets'!$S$2:$S$1000)*('Fixed assets'!$P$2:$P$1000<Costs!$A646)*('Fixed assets'!$Q$2:$Q$1000=Costs!H$617))-SUMPRODUCT(('Fixed assets'!$Q$2:$Q$1000=Costs!H$617)*('Fixed assets'!$U$2:$U$1000=Costs!$A646)*('Fixed assets'!$S$2:$S$1000))+SUMPRODUCT(('Fixed assets'!$Q$2:$Q$1000=Costs!H$617)*('Fixed assets'!$P$2:$P$1000=Costs!$A646)*('Fixed assets'!$U$2:$U$1000=Costs!$A646)*('Fixed assets'!$R$2:$R$1000))","v":0},{"$f":"SUMPRODUCT(('Fixed assets'!$R$2:$R$1000)*('Fixed assets'!$P$2:$P$1000<$A646)*('Fixed assets'!$Q$2:$Q$1000=Costs!I$617))-SUMPRODUCT(('Fixed assets'!$S$2:$S$1000)*('Fixed assets'!$P$2:$P$1000<Costs!$A646)*('Fixed assets'!$Q$2:$Q$1000=Costs!I$617))-SUMPRODUCT(('Fixed assets'!$Q$2:$Q$1000=Costs!I$617)*('Fixed assets'!$U$2:$U$1000=Costs!$A646)*('Fixed assets'!$S$2:$S$1000))+SUMPRODUCT(('Fixed assets'!$Q$2:$Q$1000=Costs!I$617)*('Fixed assets'!$P$2:$P$1000=Costs!$A646)*('Fixed assets'!$U$2:$U$1000=Costs!$A646)*('Fixed assets'!$R$2:$R$1000))","v":0},{"$f":"SUMPRODUCT(('Fixed assets'!$R$2:$R$1000)*('Fixed assets'!$P$2:$P$1000<$A646)*('Fixed assets'!$Q$2:$Q$1000=Costs!J$617))-SUMPRODUCT(('Fixed assets'!$S$2:$S$1000)*('Fixed assets'!$P$2:$P$1000<Costs!$A646)*('Fixed assets'!$Q$2:$Q$1000=Costs!J$617))-SUMPRODUCT(('Fixed assets'!$Q$2:$Q$1000=Costs!J$617)*('Fixed assets'!$U$2:$U$1000=Costs!$A646)*('Fixed assets'!$S$2:$S$1000))+SUMPRODUCT(('Fixed assets'!$Q$2:$Q$1000=Costs!J$617)*('Fixed assets'!$P$2:$P$1000=Costs!$A646)*('Fixed assets'!$U$2:$U$1000=Costs!$A646)*('Fixed assets'!$R$2:$R$1000))","v":0},{"$f":"SUMPRODUCT(('Fixed assets'!$R$2:$R$1000)*('Fixed assets'!$P$2:$P$1000<$A646)*('Fixed assets'!$Q$2:$Q$1000=Costs!K$617))-SUMPRODUCT(('Fixed assets'!$S$2:$S$1000)*('Fixed assets'!$P$2:$P$1000<Costs!$A646)*('Fixed assets'!$Q$2:$Q$1000=Costs!K$617))-SUMPRODUCT(('Fixed assets'!$Q$2:$Q$1000=Costs!K$617)*('Fixed assets'!$U$2:$U$1000=Costs!$A646)*('Fixed assets'!$S$2:$S$1000))+SUMPRODUCT(('Fixed assets'!$Q$2:$Q$1000=Costs!K$617)*('Fixed assets'!$P$2:$P$1000=Costs!$A646)*('Fixed assets'!$U$2:$U$1000=Costs!$A646)*('Fixed assets'!$R$2:$R$1000))","v":0},{"$f":"SUMPRODUCT(('Fixed assets'!$R$2:$R$1000)*('Fixed assets'!$P$2:$P$1000<$A646)*('Fixed assets'!$Q$2:$Q$1000=Costs!L$617))-SUMPRODUCT(('Fixed assets'!$S$2:$S$1000)*('Fixed assets'!$P$2:$P$1000<Costs!$A646)*('Fixed assets'!$Q$2:$Q$1000=Costs!L$617))-SUMPRODUCT(('Fixed assets'!$Q$2:$Q$1000=Costs!L$617)*('Fixed assets'!$U$2:$U$1000=Costs!$A646)*('Fixed assets'!$S$2:$S$1000))+SUMPRODUCT(('Fixed assets'!$Q$2:$Q$1000=Costs!L$617)*('Fixed assets'!$P$2:$P$1000=Costs!$A646)*('Fixed assets'!$U$2:$U$1000=Costs!$A646)*('Fixed assets'!$R$2:$R$1000))","v":0},{"$f":"SUMPRODUCT(('Fixed assets'!$R$2:$R$1000)*('Fixed assets'!$P$2:$P$1000<$A646)*('Fixed assets'!$Q$2:$Q$1000=Costs!M$617))-SUMPRODUCT(('Fixed assets'!$S$2:$S$1000)*('Fixed assets'!$P$2:$P$1000<Costs!$A646)*('Fixed assets'!$Q$2:$Q$1000=Costs!M$617))-SUMPRODUCT(('Fixed assets'!$Q$2:$Q$1000=Costs!M$617)*('Fixed assets'!$U$2:$U$1000=Costs!$A646)*('Fixed assets'!$S$2:$S$1000))+SUMPRODUCT(('Fixed assets'!$Q$2:$Q$1000=Costs!M$617)*('Fixed assets'!$P$2:$P$1000=Costs!$A646)*('Fixed assets'!$U$2:$U$1000=Costs!$A646)*('Fixed assets'!$R$2:$R$1000))","v":0},{"$f":"SUMPRODUCT(('Fixed assets'!$R$2:$R$1000)*('Fixed assets'!$P$2:$P$1000<$A646)*('Fixed assets'!$Q$2:$Q$1000=Costs!N$617))-SUMPRODUCT(('Fixed assets'!$S$2:$S$1000)*('Fixed assets'!$P$2:$P$1000<Costs!$A646)*('Fixed assets'!$Q$2:$Q$1000=Costs!N$617))-SUMPRODUCT(('Fixed assets'!$Q$2:$Q$1000=Costs!N$617)*('Fixed assets'!$U$2:$U$1000=Costs!$A646)*('Fixed assets'!$S$2:$S$1000))+SUMPRODUCT(('Fixed assets'!$Q$2:$Q$1000=Costs!N$617)*('Fixed assets'!$P$2:$P$1000=Costs!$A646)*('Fixed assets'!$U$2:$U$1000=Costs!$A646)*('Fixed assets'!$R$2:$R$1000))","v":0},{"$f":"SUMPRODUCT(('Fixed assets'!$R$2:$R$1000)*('Fixed assets'!$P$2:$P$1000<$A646)*('Fixed assets'!$Q$2:$Q$1000=Costs!O$617))-SUMPRODUCT(('Fixed assets'!$S$2:$S$1000)*('Fixed assets'!$P$2:$P$1000<Costs!$A646)*('Fixed assets'!$Q$2:$Q$1000=Costs!O$617))-SUMPRODUCT(('Fixed assets'!$Q$2:$Q$1000=Costs!O$617)*('Fixed assets'!$U$2:$U$1000=Costs!$A646)*('Fixed assets'!$S$2:$S$1000))+SUMPRODUCT(('Fixed assets'!$Q$2:$Q$1000=Costs!O$617)*('Fixed assets'!$P$2:$P$1000=Costs!$A646)*('Fixed assets'!$U$2:$U$1000=Costs!$A646)*('Fixed assets'!$R$2:$R$1000))","v":0},{"$f":"SUMPRODUCT(('Fixed assets'!$R$2:$R$1000)*('Fixed assets'!$P$2:$P$1000<$A646)*('Fixed assets'!$Q$2:$Q$1000=Costs!P$617))-SUMPRODUCT(('Fixed assets'!$S$2:$S$1000)*('Fixed assets'!$P$2:$P$1000<Costs!$A646)*('Fixed assets'!$Q$2:$Q$1000=Costs!P$617))-SUMPRODUCT(('Fixed assets'!$Q$2:$Q$1000=Costs!P$617)*('Fixed assets'!$U$2:$U$1000=Costs!$A646)*('Fixed assets'!$S$2:$S$1000))+SUMPRODUCT(('Fixed assets'!$Q$2:$Q$1000=Costs!P$617)*('Fixed assets'!$P$2:$P$1000=Costs!$A646)*('Fixed assets'!$U$2:$U$1000=Costs!$A646)*('Fixed assets'!$R$2:$R$1000))","v":0},{"$f":"SUMPRODUCT(('Fixed assets'!$R$2:$R$1000)*('Fixed assets'!$P$2:$P$1000<$A646)*('Fixed assets'!$Q$2:$Q$1000=Costs!Q$617))-SUMPRODUCT(('Fixed assets'!$S$2:$S$1000)*('Fixed assets'!$P$2:$P$1000<Costs!$A646)*('Fixed assets'!$Q$2:$Q$1000=Costs!Q$617))-SUMPRODUCT(('Fixed assets'!$Q$2:$Q$1000=Costs!Q$617)*('Fixed assets'!$U$2:$U$1000=Costs!$A646)*('Fixed assets'!$S$2:$S$1000))+SUMPRODUCT(('Fixed assets'!$Q$2:$Q$1000=Costs!Q$617)*('Fixed assets'!$P$2:$P$1000=Costs!$A646)*('Fixed assets'!$U$2:$U$1000=Costs!$A646)*('Fixed assets'!$R$2:$R$1000))","v":0},{"$f":"SUMPRODUCT(('Fixed assets'!$R$2:$R$1000)*('Fixed assets'!$P$2:$P$1000<$A646)*('Fixed assets'!$Q$2:$Q$1000=Costs!R$617))-SUMPRODUCT(('Fixed assets'!$S$2:$S$1000)*('Fixed assets'!$P$2:$P$1000<Costs!$A646)*('Fixed assets'!$Q$2:$Q$1000=Costs!R$617))-SUMPRODUCT(('Fixed assets'!$Q$2:$Q$1000=Costs!R$617)*('Fixed assets'!$U$2:$U$1000=Costs!$A646)*('Fixed assets'!$S$2:$S$1000))+SUMPRODUCT(('Fixed assets'!$Q$2:$Q$1000=Costs!R$617)*('Fixed assets'!$P$2:$P$1000=Costs!$A646)*('Fixed assets'!$U$2:$U$1000=Costs!$A646)*('Fixed assets'!$R$2:$R$1000))","v":0},{"$f":"SUMPRODUCT(('Fixed assets'!$R$2:$R$1000)*('Fixed assets'!$P$2:$P$1000<$A646)*('Fixed assets'!$Q$2:$Q$1000=Costs!S$617))-SUMPRODUCT(('Fixed assets'!$S$2:$S$1000)*('Fixed assets'!$P$2:$P$1000<Costs!$A646)*('Fixed assets'!$Q$2:$Q$1000=Costs!S$617))-SUMPRODUCT(('Fixed assets'!$Q$2:$Q$1000=Costs!S$617)*('Fixed assets'!$U$2:$U$1000=Costs!$A646)*('Fixed assets'!$S$2:$S$1000))+SUMPRODUCT(('Fixed assets'!$Q$2:$Q$1000=Costs!S$617)*('Fixed assets'!$P$2:$P$1000=Costs!$A646)*('Fixed assets'!$U$2:$U$1000=Costs!$A646)*('Fixed assets'!$R$2:$R$1000))","v":0},{"$f":"SUMPRODUCT(('Fixed assets'!$R$2:$R$1000)*('Fixed assets'!$P$2:$P$1000<$A646)*('Fixed assets'!$Q$2:$Q$1000=Costs!T$617))-SUMPRODUCT(('Fixed assets'!$S$2:$S$1000)*('Fixed assets'!$P$2:$P$1000<Costs!$A646)*('Fixed assets'!$Q$2:$Q$1000=Costs!T$617))-SUMPRODUCT(('Fixed assets'!$Q$2:$Q$1000=Costs!T$617)*('Fixed assets'!$U$2:$U$1000=Costs!$A646)*('Fixed assets'!$S$2:$S$1000))+SUMPRODUCT(('Fixed assets'!$Q$2:$Q$1000=Costs!T$617)*('Fixed assets'!$P$2:$P$1000=Costs!$A646)*('Fixed assets'!$U$2:$U$1000=Costs!$A646)*('Fixed assets'!$R$2:$R$1000))","v":0},{"$f":"SUMPRODUCT(('Fixed assets'!$R$2:$R$1000)*('Fixed assets'!$P$2:$P$1000<$A646)*('Fixed assets'!$Q$2:$Q$1000=Costs!U$617))-SUMPRODUCT(('Fixed assets'!$S$2:$S$1000)*('Fixed assets'!$P$2:$P$1000<Costs!$A646)*('Fixed assets'!$Q$2:$Q$1000=Costs!U$617))-SUMPRODUCT(('Fixed assets'!$Q$2:$Q$1000=Costs!U$617)*('Fixed assets'!$U$2:$U$1000=Costs!$A646)*('Fixed assets'!$S$2:$S$1000))+SUMPRODUCT(('Fixed assets'!$Q$2:$Q$1000=Costs!U$617)*('Fixed assets'!$P$2:$P$1000=Costs!$A646)*('Fixed assets'!$U$2:$U$1000=Costs!$A646)*('Fixed assets'!$R$2:$R$1000))","v":0},{"$f":"SUMPRODUCT(('Fixed assets'!$R$2:$R$1000)*('Fixed assets'!$P$2:$P$1000<$A646)*('Fixed assets'!$Q$2:$Q$1000=Costs!V$617))-SUMPRODUCT(('Fixed assets'!$S$2:$S$1000)*('Fixed assets'!$P$2:$P$1000<Costs!$A646)*('Fixed assets'!$Q$2:$Q$1000=Costs!V$617))-SUMPRODUCT(('Fixed assets'!$Q$2:$Q$1000=Costs!V$617)*('Fixed assets'!$U$2:$U$1000=Costs!$A646)*('Fixed assets'!$S$2:$S$1000))+SUMPRODUCT(('Fixed assets'!$Q$2:$Q$1000=Costs!V$617)*('Fixed assets'!$P$2:$P$1000=Costs!$A646)*('Fixed assets'!$U$2:$U$1000=Costs!$A646)*('Fixed assets'!$R$2:$R$1000))","v":0},{"$f":"SUMPRODUCT(('Fixed assets'!$R$2:$R$1000)*('Fixed assets'!$P$2:$P$1000<$A646)*('Fixed assets'!$Q$2:$Q$1000=Costs!W$617))-SUMPRODUCT(('Fixed assets'!$S$2:$S$1000)*('Fixed assets'!$P$2:$P$1000<Costs!$A646)*('Fixed assets'!$Q$2:$Q$1000=Costs!W$617))-SUMPRODUCT(('Fixed assets'!$Q$2:$Q$1000=Costs!W$617)*('Fixed assets'!$U$2:$U$1000=Costs!$A646)*('Fixed assets'!$S$2:$S$1000))+SUMPRODUCT(('Fixed assets'!$Q$2:$Q$1000=Costs!W$617)*('Fixed assets'!$P$2:$P$1000=Costs!$A646)*('Fixed assets'!$U$2:$U$1000=Costs!$A646)*('Fixed assets'!$R$2:$R$1000))","v":0},{"$f":"SUMPRODUCT(('Fixed assets'!$R$2:$R$1000)*('Fixed assets'!$P$2:$P$1000<$A646)*('Fixed assets'!$Q$2:$Q$1000=Costs!X$617))-SUMPRODUCT(('Fixed assets'!$S$2:$S$1000)*('Fixed assets'!$P$2:$P$1000<Costs!$A646)*('Fixed assets'!$Q$2:$Q$1000=Costs!X$617))-SUMPRODUCT(('Fixed assets'!$Q$2:$Q$1000=Costs!X$617)*('Fixed assets'!$U$2:$U$1000=Costs!$A646)*('Fixed assets'!$S$2:$S$1000))+SUMPRODUCT(('Fixed assets'!$Q$2:$Q$1000=Costs!X$617)*('Fixed assets'!$P$2:$P$1000=Costs!$A646)*('Fixed assets'!$U$2:$U$1000=Costs!$A646)*('Fixed assets'!$R$2:$R$1000))","v":0},{"$f":"SUMPRODUCT(('Fixed assets'!$R$2:$R$1000)*('Fixed assets'!$P$2:$P$1000<$A646)*('Fixed assets'!$Q$2:$Q$1000=Costs!Y$617))-SUMPRODUCT(('Fixed assets'!$S$2:$S$1000)*('Fixed assets'!$P$2:$P$1000<Costs!$A646)*('Fixed assets'!$Q$2:$Q$1000=Costs!Y$617))-SUMPRODUCT(('Fixed assets'!$Q$2:$Q$1000=Costs!Y$617)*('Fixed assets'!$U$2:$U$1000=Costs!$A646)*('Fixed assets'!$S$2:$S$1000))+SUMPRODUCT(('Fixed assets'!$Q$2:$Q$1000=Costs!Y$617)*('Fixed assets'!$P$2:$P$1000=Costs!$A646)*('Fixed assets'!$U$2:$U$1000=Costs!$A646)*('Fixed assets'!$R$2:$R$1000))","v":0},{"$f":"SUMPRODUCT(('Fixed assets'!$R$2:$R$1000)*('Fixed assets'!$P$2:$P$1000<$A646)*('Fixed assets'!$Q$2:$Q$1000=Costs!Z$617))-SUMPRODUCT(('Fixed assets'!$S$2:$S$1000)*('Fixed assets'!$P$2:$P$1000<Costs!$A646)*('Fixed assets'!$Q$2:$Q$1000=Costs!Z$617))-SUMPRODUCT(('Fixed assets'!$Q$2:$Q$1000=Costs!Z$617)*('Fixed assets'!$U$2:$U$1000=Costs!$A646)*('Fixed assets'!$S$2:$S$1000))+SUMPRODUCT(('Fixed assets'!$Q$2:$Q$1000=Costs!Z$617)*('Fixed assets'!$P$2:$P$1000=Costs!$A646)*('Fixed assets'!$U$2:$U$1000=Costs!$A646)*('Fixed assets'!$R$2:$R$1000))","v":0},{"$f":"SUMPRODUCT(('Fixed assets'!$R$2:$R$1000)*('Fixed assets'!$P$2:$P$1000<$A646)*('Fixed assets'!$Q$2:$Q$1000=Costs!AA$617))-SUMPRODUCT(('Fixed assets'!$S$2:$S$1000)*('Fixed assets'!$P$2:$P$1000<Costs!$A646)*('Fixed assets'!$Q$2:$Q$1000=Costs!AA$617))-SUMPRODUCT(('Fixed assets'!$Q$2:$Q$1000=Costs!AA$617)*('Fixed assets'!$U$2:$U$1000=Costs!$A646)*('Fixed assets'!$S$2:$S$1000))+SUMPRODUCT(('Fixed assets'!$Q$2:$Q$1000=Costs!AA$617)*('Fixed assets'!$P$2:$P$1000=Costs!$A646)*('Fixed assets'!$U$2:$U$1000=Costs!$A646)*('Fixed assets'!$R$2:$R$1000))","v":0},{"$f":"SUMPRODUCT(('Fixed assets'!$R$2:$R$1000)*('Fixed assets'!$P$2:$P$1000<$A646)*('Fixed assets'!$Q$2:$Q$1000=Costs!AB$617))-SUMPRODUCT(('Fixed assets'!$S$2:$S$1000)*('Fixed assets'!$P$2:$P$1000<Costs!$A646)*('Fixed assets'!$Q$2:$Q$1000=Costs!AB$617))-SUMPRODUCT(('Fixed assets'!$Q$2:$Q$1000=Costs!AB$617)*('Fixed assets'!$U$2:$U$1000=Costs!$A646)*('Fixed assets'!$S$2:$S$1000))+SUMPRODUCT(('Fixed assets'!$Q$2:$Q$1000=Costs!AB$617)*('Fixed assets'!$P$2:$P$1000=Costs!$A646)*('Fixed assets'!$U$2:$U$1000=Costs!$A646)*('Fixed assets'!$R$2:$R$1000))","v":0},{"$f":"SUMPRODUCT(('Fixed assets'!$R$2:$R$1000)*('Fixed assets'!$P$2:$P$1000<$A646)*('Fixed assets'!$Q$2:$Q$1000=Costs!AC$617))-SUMPRODUCT(('Fixed assets'!$S$2:$S$1000)*('Fixed assets'!$P$2:$P$1000<Costs!$A646)*('Fixed assets'!$Q$2:$Q$1000=Costs!AC$617))-SUMPRODUCT(('Fixed assets'!$Q$2:$Q$1000=Costs!AC$617)*('Fixed assets'!$U$2:$U$1000=Costs!$A646)*('Fixed assets'!$S$2:$S$1000))+SUMPRODUCT(('Fixed assets'!$Q$2:$Q$1000=Costs!AC$617)*('Fixed assets'!$P$2:$P$1000=Costs!$A646)*('Fixed assets'!$U$2:$U$1000=Costs!$A646)*('Fixed assets'!$R$2:$R$1000))","v":0},{"$f":"SUMPRODUCT(('Fixed assets'!$R$2:$R$1000)*('Fixed assets'!$P$2:$P$1000<$A646)*('Fixed assets'!$Q$2:$Q$1000=Costs!AD$617))-SUMPRODUCT(('Fixed assets'!$S$2:$S$1000)*('Fixed assets'!$P$2:$P$1000<Costs!$A646)*('Fixed assets'!$Q$2:$Q$1000=Costs!AD$617))-SUMPRODUCT(('Fixed assets'!$Q$2:$Q$1000=Costs!AD$617)*('Fixed assets'!$U$2:$U$1000=Costs!$A646)*('Fixed assets'!$S$2:$S$1000))+SUMPRODUCT(('Fixed assets'!$Q$2:$Q$1000=Costs!AD$617)*('Fixed assets'!$P$2:$P$1000=Costs!$A646)*('Fixed assets'!$U$2:$U$1000=Costs!$A646)*('Fixed assets'!$R$2:$R$1000))","v":0},{"$f":"SUMPRODUCT(('Fixed assets'!$R$2:$R$1000)*('Fixed assets'!$P$2:$P$1000<$A646)*('Fixed assets'!$Q$2:$Q$1000=Costs!AE$617))-SUMPRODUCT(('Fixed assets'!$S$2:$S$1000)*('Fixed assets'!$P$2:$P$1000<Costs!$A646)*('Fixed assets'!$Q$2:$Q$1000=Costs!AE$617))-SUMPRODUCT(('Fixed assets'!$Q$2:$Q$1000=Costs!AE$617)*('Fixed assets'!$U$2:$U$1000=Costs!$A646)*('Fixed assets'!$S$2:$S$1000))+SUMPRODUCT(('Fixed assets'!$Q$2:$Q$1000=Costs!AE$617)*('Fixed assets'!$P$2:$P$1000=Costs!$A646)*('Fixed assets'!$U$2:$U$1000=Costs!$A646)*('Fixed assets'!$R$2:$R$1000))","v":0},{"$f":"SUMPRODUCT(('Fixed assets'!$R$2:$R$1000)*('Fixed assets'!$P$2:$P$1000<$A646)*('Fixed assets'!$Q$2:$Q$1000=Costs!AF$617))-SUMPRODUCT(('Fixed assets'!$S$2:$S$1000)*('Fixed assets'!$P$2:$P$1000<Costs!$A646)*('Fixed assets'!$Q$2:$Q$1000=Costs!AF$617))-SUMPRODUCT(('Fixed assets'!$Q$2:$Q$1000=Costs!AF$617)*('Fixed assets'!$U$2:$U$1000=Costs!$A646)*('Fixed assets'!$S$2:$S$1000))+SUMPRODUCT(('Fixed assets'!$Q$2:$Q$1000=Costs!AF$617)*('Fixed assets'!$P$2:$P$1000=Costs!$A646)*('Fixed assets'!$U$2:$U$1000=Costs!$A646)*('Fixed assets'!$R$2:$R$1000))","v":0},{"$f":"SUMPRODUCT(('Fixed assets'!$R$2:$R$1000)*('Fixed assets'!$P$2:$P$1000<$A646)*('Fixed assets'!$Q$2:$Q$1000=Costs!AG$617))-SUMPRODUCT(('Fixed assets'!$S$2:$S$1000)*('Fixed assets'!$P$2:$P$1000<Costs!$A646)*('Fixed assets'!$Q$2:$Q$1000=Costs!AG$617))-SUMPRODUCT(('Fixed assets'!$Q$2:$Q$1000=Costs!AG$617)*('Fixed assets'!$U$2:$U$1000=Costs!$A646)*('Fixed assets'!$S$2:$S$1000))+SUMPRODUCT(('Fixed assets'!$Q$2:$Q$1000=Costs!AG$617)*('Fixed assets'!$P$2:$P$1000=Costs!$A646)*('Fixed assets'!$U$2:$U$1000=Costs!$A646)*('Fixed assets'!$R$2:$R$1000))","v":0},{"$f":"SUMPRODUCT(('Fixed assets'!$R$2:$R$1000)*('Fixed assets'!$P$2:$P$1000<$A646)*('Fixed assets'!$Q$2:$Q$1000=Costs!AH$617))-SUMPRODUCT(('Fixed assets'!$S$2:$S$1000)*('Fixed assets'!$P$2:$P$1000<Costs!$A646)*('Fixed assets'!$Q$2:$Q$1000=Costs!AH$617))-SUMPRODUCT(('Fixed assets'!$Q$2:$Q$1000=Costs!AH$617)*('Fixed assets'!$U$2:$U$1000=Costs!$A646)*('Fixed assets'!$S$2:$S$1000))+SUMPRODUCT(('Fixed assets'!$Q$2:$Q$1000=Costs!AH$617)*('Fixed assets'!$P$2:$P$1000=Costs!$A646)*('Fixed assets'!$U$2:$U$1000=Costs!$A646)*('Fixed assets'!$R$2:$R$1000))","v":0},{"$f":"SUMPRODUCT(('Fixed assets'!$R$2:$R$1000)*('Fixed assets'!$P$2:$P$1000<$A646)*('Fixed assets'!$Q$2:$Q$1000=Costs!AI$617))-SUMPRODUCT(('Fixed assets'!$S$2:$S$1000)*('Fixed assets'!$P$2:$P$1000<Costs!$A646)*('Fixed assets'!$Q$2:$Q$1000=Costs!AI$617))-SUMPRODUCT(('Fixed assets'!$Q$2:$Q$1000=Costs!AI$617)*('Fixed assets'!$U$2:$U$1000=Costs!$A646)*('Fixed assets'!$S$2:$S$1000))+SUMPRODUCT(('Fixed assets'!$Q$2:$Q$1000=Costs!AI$617)*('Fixed assets'!$P$2:$P$1000=Costs!$A646)*('Fixed assets'!$U$2:$U$1000=Costs!$A646)*('Fixed assets'!$R$2:$R$1000))","v":0},{"$f":"SUMPRODUCT(('Fixed assets'!$R$2:$R$1000)*('Fixed assets'!$P$2:$P$1000<$A646)*('Fixed assets'!$Q$2:$Q$1000=Costs!AJ$617))-SUMPRODUCT(('Fixed assets'!$S$2:$S$1000)*('Fixed assets'!$P$2:$P$1000<Costs!$A646)*('Fixed assets'!$Q$2:$Q$1000=Costs!AJ$617))-SUMPRODUCT(('Fixed assets'!$Q$2:$Q$1000=Costs!AJ$617)*('Fixed assets'!$U$2:$U$1000=Costs!$A646)*('Fixed assets'!$S$2:$S$1000))+SUMPRODUCT(('Fixed assets'!$Q$2:$Q$1000=Costs!AJ$617)*('Fixed assets'!$P$2:$P$1000=Costs!$A646)*('Fixed assets'!$U$2:$U$1000=Costs!$A646)*('Fixed assets'!$R$2:$R$1000))","v":0},{"$f":"SUMPRODUCT(('Fixed assets'!$R$2:$R$1000)*('Fixed assets'!$P$2:$P$1000<$A646)*('Fixed assets'!$Q$2:$Q$1000=Costs!AK$617))-SUMPRODUCT(('Fixed assets'!$S$2:$S$1000)*('Fixed assets'!$P$2:$P$1000<Costs!$A646)*('Fixed assets'!$Q$2:$Q$1000=Costs!AK$617))-SUMPRODUCT(('Fixed assets'!$Q$2:$Q$1000=Costs!AK$617)*('Fixed assets'!$U$2:$U$1000=Costs!$A646)*('Fixed assets'!$S$2:$S$1000))+SUMPRODUCT(('Fixed assets'!$Q$2:$Q$1000=Costs!AK$617)*('Fixed assets'!$P$2:$P$1000=Costs!$A646)*('Fixed assets'!$U$2:$U$1000=Costs!$A646)*('Fixed assets'!$R$2:$R$1000))","v":0},{"$f":"SUMPRODUCT(('Fixed assets'!$R$2:$R$1000)*('Fixed assets'!$P$2:$P$1000<$A646)*('Fixed assets'!$Q$2:$Q$1000=Costs!AL$617))-SUMPRODUCT(('Fixed assets'!$S$2:$S$1000)*('Fixed assets'!$P$2:$P$1000<Costs!$A646)*('Fixed assets'!$Q$2:$Q$1000=Costs!AL$617))-SUMPRODUCT(('Fixed assets'!$Q$2:$Q$1000=Costs!AL$617)*('Fixed assets'!$U$2:$U$1000=Costs!$A646)*('Fixed assets'!$S$2:$S$1000))+SUMPRODUCT(('Fixed assets'!$Q$2:$Q$1000=Costs!AL$617)*('Fixed assets'!$P$2:$P$1000=Costs!$A646)*('Fixed assets'!$U$2:$U$1000=Costs!$A646)*('Fixed assets'!$R$2:$R$1000))","v":0},{"$f":"SUMPRODUCT(('Fixed assets'!$R$2:$R$1000)*('Fixed assets'!$P$2:$P$1000<$A646)*('Fixed assets'!$Q$2:$Q$1000=Costs!AM$617))-SUMPRODUCT(('Fixed assets'!$S$2:$S$1000)*('Fixed assets'!$P$2:$P$1000<Costs!$A646)*('Fixed assets'!$Q$2:$Q$1000=Costs!AM$617))-SUMPRODUCT(('Fixed assets'!$Q$2:$Q$1000=Costs!AM$617)*('Fixed assets'!$U$2:$U$1000=Costs!$A646)*('Fixed assets'!$S$2:$S$1000))+SUMPRODUCT(('Fixed assets'!$Q$2:$Q$1000=Costs!AM$617)*('Fixed assets'!$P$2:$P$1000=Costs!$A646)*('Fixed assets'!$U$2:$U$1000=Costs!$A646)*('Fixed assets'!$R$2:$R$1000))","v":0},{"$f":"SUMPRODUCT(('Fixed assets'!$R$2:$R$1000)*('Fixed assets'!$P$2:$P$1000<$A646)*('Fixed assets'!$Q$2:$Q$1000=Costs!AN$617))-SUMPRODUCT(('Fixed assets'!$S$2:$S$1000)*('Fixed assets'!$P$2:$P$1000<Costs!$A646)*('Fixed assets'!$Q$2:$Q$1000=Costs!AN$617))-SUMPRODUCT(('Fixed assets'!$Q$2:$Q$1000=Costs!AN$617)*('Fixed assets'!$U$2:$U$1000=Costs!$A646)*('Fixed assets'!$S$2:$S$1000))+SUMPRODUCT(('Fixed assets'!$Q$2:$Q$1000=Costs!AN$617)*('Fixed assets'!$P$2:$P$1000=Costs!$A646)*('Fixed assets'!$U$2:$U$1000=Costs!$A646)*('Fixed assets'!$R$2:$R$1000))","v":0},{"$f":"SUMPRODUCT(('Fixed assets'!$R$2:$R$1000)*('Fixed assets'!$P$2:$P$1000<$A646)*('Fixed assets'!$Q$2:$Q$1000=Costs!AO$617))-SUMPRODUCT(('Fixed assets'!$S$2:$S$1000)*('Fixed assets'!$P$2:$P$1000<Costs!$A646)*('Fixed assets'!$Q$2:$Q$1000=Costs!AO$617))-SUMPRODUCT(('Fixed assets'!$Q$2:$Q$1000=Costs!AO$617)*('Fixed assets'!$U$2:$U$1000=Costs!$A646)*('Fixed assets'!$S$2:$S$1000))+SUMPRODUCT(('Fixed assets'!$Q$2:$Q$1000=Costs!AO$617)*('Fixed assets'!$P$2:$P$1000=Costs!$A646)*('Fixed assets'!$U$2:$U$1000=Costs!$A646)*('Fixed assets'!$R$2:$R$1000))","v":0},{"$f":"SUMPRODUCT(('Fixed assets'!$R$2:$R$1000)*('Fixed assets'!$P$2:$P$1000<$A646)*('Fixed assets'!$Q$2:$Q$1000=Costs!AP$617))-SUMPRODUCT(('Fixed assets'!$S$2:$S$1000)*('Fixed assets'!$P$2:$P$1000<Costs!$A646)*('Fixed assets'!$Q$2:$Q$1000=Costs!AP$617))-SUMPRODUCT(('Fixed assets'!$Q$2:$Q$1000=Costs!AP$617)*('Fixed assets'!$U$2:$U$1000=Costs!$A646)*('Fixed assets'!$S$2:$S$1000))+SUMPRODUCT(('Fixed assets'!$Q$2:$Q$1000=Costs!AP$617)*('Fixed assets'!$P$2:$P$1000=Costs!$A646)*('Fixed assets'!$U$2:$U$1000=Costs!$A646)*('Fixed assets'!$R$2:$R$1000))","v":0},{"$f":"SUMPRODUCT(('Fixed assets'!$R$2:$R$1000)*('Fixed assets'!$P$2:$P$1000<$A646)*('Fixed assets'!$Q$2:$Q$1000=Costs!AQ$617))-SUMPRODUCT(('Fixed assets'!$S$2:$S$1000)*('Fixed assets'!$P$2:$P$1000<Costs!$A646)*('Fixed assets'!$Q$2:$Q$1000=Costs!AQ$617))-SUMPRODUCT(('Fixed assets'!$Q$2:$Q$1000=Costs!AQ$617)*('Fixed assets'!$U$2:$U$1000=Costs!$A646)*('Fixed assets'!$S$2:$S$1000))+SUMPRODUCT(('Fixed assets'!$Q$2:$Q$1000=Costs!AQ$617)*('Fixed assets'!$P$2:$P$1000=Costs!$A646)*('Fixed assets'!$U$2:$U$1000=Costs!$A646)*('Fixed assets'!$R$2:$R$1000))","v":0}]
[2044,0,{"$f":"SUMPRODUCT(('Fixed assets'!$R$2:$R$1000)*('Fixed assets'!$P$2:$P$1000<$A647)*('Fixed assets'!$Q$2:$Q$1000=Costs!C$617))-SUMPRODUCT(('Fixed assets'!$S$2:$S$1000)*('Fixed assets'!$P$2:$P$1000<Costs!$A647)*('Fixed assets'!$Q$2:$Q$1000=Costs!C$617))-SUMPRODUCT(('Fixed assets'!$Q$2:$Q$1000=Costs!C$617)*('Fixed assets'!$U$2:$U$1000=Costs!$A647)*('Fixed assets'!$S$2:$S$1000))+SUMPRODUCT(('Fixed assets'!$Q$2:$Q$1000=Costs!C$617)*('Fixed assets'!$P$2:$P$1000=Costs!$A647)*('Fixed assets'!$U$2:$U$1000=Costs!$A647)*('Fixed assets'!$R$2:$R$1000))","v":0},{"$f":"SUMPRODUCT(('Fixed assets'!$R$2:$R$1000)*('Fixed assets'!$P$2:$P$1000<$A647)*('Fixed assets'!$Q$2:$Q$1000=Costs!D$617))-SUMPRODUCT(('Fixed assets'!$S$2:$S$1000)*('Fixed assets'!$P$2:$P$1000<Costs!$A647)*('Fixed assets'!$Q$2:$Q$1000=Costs!D$617))-SUMPRODUCT(('Fixed assets'!$Q$2:$Q$1000=Costs!D$617)*('Fixed assets'!$U$2:$U$1000=Costs!$A647)*('Fixed assets'!$S$2:$S$1000))+SUMPRODUCT(('Fixed assets'!$Q$2:$Q$1000=Costs!D$617)*('Fixed assets'!$P$2:$P$1000=Costs!$A647)*('Fixed assets'!$U$2:$U$1000=Costs!$A647)*('Fixed assets'!$R$2:$R$1000))","v":0},{"$f":"SUMPRODUCT(('Fixed assets'!$R$2:$R$1000)*('Fixed assets'!$P$2:$P$1000<$A647)*('Fixed assets'!$Q$2:$Q$1000=Costs!E$617))-SUMPRODUCT(('Fixed assets'!$S$2:$S$1000)*('Fixed assets'!$P$2:$P$1000<Costs!$A647)*('Fixed assets'!$Q$2:$Q$1000=Costs!E$617))-SUMPRODUCT(('Fixed assets'!$Q$2:$Q$1000=Costs!E$617)*('Fixed assets'!$U$2:$U$1000=Costs!$A647)*('Fixed assets'!$S$2:$S$1000))+SUMPRODUCT(('Fixed assets'!$Q$2:$Q$1000=Costs!E$617)*('Fixed assets'!$P$2:$P$1000=Costs!$A647)*('Fixed assets'!$U$2:$U$1000=Costs!$A647)*('Fixed assets'!$R$2:$R$1000))","v":0},{"$f":"SUMPRODUCT(('Fixed assets'!$R$2:$R$1000)*('Fixed assets'!$P$2:$P$1000<$A647)*('Fixed assets'!$Q$2:$Q$1000=Costs!F$617))-SUMPRODUCT(('Fixed assets'!$S$2:$S$1000)*('Fixed assets'!$P$2:$P$1000<Costs!$A647)*('Fixed assets'!$Q$2:$Q$1000=Costs!F$617))-SUMPRODUCT(('Fixed assets'!$Q$2:$Q$1000=Costs!F$617)*('Fixed assets'!$U$2:$U$1000=Costs!$A647)*('Fixed assets'!$S$2:$S$1000))+SUMPRODUCT(('Fixed assets'!$Q$2:$Q$1000=Costs!F$617)*('Fixed assets'!$P$2:$P$1000=Costs!$A647)*('Fixed assets'!$U$2:$U$1000=Costs!$A647)*('Fixed assets'!$R$2:$R$1000))","v":0},{"$f":"SUMPRODUCT(('Fixed assets'!$R$2:$R$1000)*('Fixed assets'!$P$2:$P$1000<$A647)*('Fixed assets'!$Q$2:$Q$1000=Costs!G$617))-SUMPRODUCT(('Fixed assets'!$S$2:$S$1000)*('Fixed assets'!$P$2:$P$1000<Costs!$A647)*('Fixed assets'!$Q$2:$Q$1000=Costs!G$617))-SUMPRODUCT(('Fixed assets'!$Q$2:$Q$1000=Costs!G$617)*('Fixed assets'!$U$2:$U$1000=Costs!$A647)*('Fixed assets'!$S$2:$S$1000))+SUMPRODUCT(('Fixed assets'!$Q$2:$Q$1000=Costs!G$617)*('Fixed assets'!$P$2:$P$1000=Costs!$A647)*('Fixed assets'!$U$2:$U$1000=Costs!$A647)*('Fixed assets'!$R$2:$R$1000))","v":0},{"$f":"SUMPRODUCT(('Fixed assets'!$R$2:$R$1000)*('Fixed assets'!$P$2:$P$1000<$A647)*('Fixed assets'!$Q$2:$Q$1000=Costs!H$617))-SUMPRODUCT(('Fixed assets'!$S$2:$S$1000)*('Fixed assets'!$P$2:$P$1000<Costs!$A647)*('Fixed assets'!$Q$2:$Q$1000=Costs!H$617))-SUMPRODUCT(('Fixed assets'!$Q$2:$Q$1000=Costs!H$617)*('Fixed assets'!$U$2:$U$1000=Costs!$A647)*('Fixed assets'!$S$2:$S$1000))+SUMPRODUCT(('Fixed assets'!$Q$2:$Q$1000=Costs!H$617)*('Fixed assets'!$P$2:$P$1000=Costs!$A647)*('Fixed assets'!$U$2:$U$1000=Costs!$A647)*('Fixed assets'!$R$2:$R$1000))","v":0},{"$f":"SUMPRODUCT(('Fixed assets'!$R$2:$R$1000)*('Fixed assets'!$P$2:$P$1000<$A647)*('Fixed assets'!$Q$2:$Q$1000=Costs!I$617))-SUMPRODUCT(('Fixed assets'!$S$2:$S$1000)*('Fixed assets'!$P$2:$P$1000<Costs!$A647)*('Fixed assets'!$Q$2:$Q$1000=Costs!I$617))-SUMPRODUCT(('Fixed assets'!$Q$2:$Q$1000=Costs!I$617)*('Fixed assets'!$U$2:$U$1000=Costs!$A647)*('Fixed assets'!$S$2:$S$1000))+SUMPRODUCT(('Fixed assets'!$Q$2:$Q$1000=Costs!I$617)*('Fixed assets'!$P$2:$P$1000=Costs!$A647)*('Fixed assets'!$U$2:$U$1000=Costs!$A647)*('Fixed assets'!$R$2:$R$1000))","v":0},{"$f":"SUMPRODUCT(('Fixed assets'!$R$2:$R$1000)*('Fixed assets'!$P$2:$P$1000<$A647)*('Fixed assets'!$Q$2:$Q$1000=Costs!J$617))-SUMPRODUCT(('Fixed assets'!$S$2:$S$1000)*('Fixed assets'!$P$2:$P$1000<Costs!$A647)*('Fixed assets'!$Q$2:$Q$1000=Costs!J$617))-SUMPRODUCT(('Fixed assets'!$Q$2:$Q$1000=Costs!J$617)*('Fixed assets'!$U$2:$U$1000=Costs!$A647)*('Fixed assets'!$S$2:$S$1000))+SUMPRODUCT(('Fixed assets'!$Q$2:$Q$1000=Costs!J$617)*('Fixed assets'!$P$2:$P$1000=Costs!$A647)*('Fixed assets'!$U$2:$U$1000=Costs!$A647)*('Fixed assets'!$R$2:$R$1000))","v":0},{"$f":"SUMPRODUCT(('Fixed assets'!$R$2:$R$1000)*('Fixed assets'!$P$2:$P$1000<$A647)*('Fixed assets'!$Q$2:$Q$1000=Costs!K$617))-SUMPRODUCT(('Fixed assets'!$S$2:$S$1000)*('Fixed assets'!$P$2:$P$1000<Costs!$A647)*('Fixed assets'!$Q$2:$Q$1000=Costs!K$617))-SUMPRODUCT(('Fixed assets'!$Q$2:$Q$1000=Costs!K$617)*('Fixed assets'!$U$2:$U$1000=Costs!$A647)*('Fixed assets'!$S$2:$S$1000))+SUMPRODUCT(('Fixed assets'!$Q$2:$Q$1000=Costs!K$617)*('Fixed assets'!$P$2:$P$1000=Costs!$A647)*('Fixed assets'!$U$2:$U$1000=Costs!$A647)*('Fixed assets'!$R$2:$R$1000))","v":0},{"$f":"SUMPRODUCT(('Fixed assets'!$R$2:$R$1000)*('Fixed assets'!$P$2:$P$1000<$A647)*('Fixed assets'!$Q$2:$Q$1000=Costs!L$617))-SUMPRODUCT(('Fixed assets'!$S$2:$S$1000)*('Fixed assets'!$P$2:$P$1000<Costs!$A647)*('Fixed assets'!$Q$2:$Q$1000=Costs!L$617))-SUMPRODUCT(('Fixed assets'!$Q$2:$Q$1000=Costs!L$617)*('Fixed assets'!$U$2:$U$1000=Costs!$A647)*('Fixed assets'!$S$2:$S$1000))+SUMPRODUCT(('Fixed assets'!$Q$2:$Q$1000=Costs!L$617)*('Fixed assets'!$P$2:$P$1000=Costs!$A647)*('Fixed assets'!$U$2:$U$1000=Costs!$A647)*('Fixed assets'!$R$2:$R$1000))","v":0},{"$f":"SUMPRODUCT(('Fixed assets'!$R$2:$R$1000)*('Fixed assets'!$P$2:$P$1000<$A647)*('Fixed assets'!$Q$2:$Q$1000=Costs!M$617))-SUMPRODUCT(('Fixed assets'!$S$2:$S$1000)*('Fixed assets'!$P$2:$P$1000<Costs!$A647)*('Fixed assets'!$Q$2:$Q$1000=Costs!M$617))-SUMPRODUCT(('Fixed assets'!$Q$2:$Q$1000=Costs!M$617)*('Fixed assets'!$U$2:$U$1000=Costs!$A647)*('Fixed assets'!$S$2:$S$1000))+SUMPRODUCT(('Fixed assets'!$Q$2:$Q$1000=Costs!M$617)*('Fixed assets'!$P$2:$P$1000=Costs!$A647)*('Fixed assets'!$U$2:$U$1000=Costs!$A647)*('Fixed assets'!$R$2:$R$1000))","v":0},{"$f":"SUMPRODUCT(('Fixed assets'!$R$2:$R$1000)*('Fixed assets'!$P$2:$P$1000<$A647)*('Fixed assets'!$Q$2:$Q$1000=Costs!N$617))-SUMPRODUCT(('Fixed assets'!$S$2:$S$1000)*('Fixed assets'!$P$2:$P$1000<Costs!$A647)*('Fixed assets'!$Q$2:$Q$1000=Costs!N$617))-SUMPRODUCT(('Fixed assets'!$Q$2:$Q$1000=Costs!N$617)*('Fixed assets'!$U$2:$U$1000=Costs!$A647)*('Fixed assets'!$S$2:$S$1000))+SUMPRODUCT(('Fixed assets'!$Q$2:$Q$1000=Costs!N$617)*('Fixed assets'!$P$2:$P$1000=Costs!$A647)*('Fixed assets'!$U$2:$U$1000=Costs!$A647)*('Fixed assets'!$R$2:$R$1000))","v":0},{"$f":"SUMPRODUCT(('Fixed assets'!$R$2:$R$1000)*('Fixed assets'!$P$2:$P$1000<$A647)*('Fixed assets'!$Q$2:$Q$1000=Costs!O$617))-SUMPRODUCT(('Fixed assets'!$S$2:$S$1000)*('Fixed assets'!$P$2:$P$1000<Costs!$A647)*('Fixed assets'!$Q$2:$Q$1000=Costs!O$617))-SUMPRODUCT(('Fixed assets'!$Q$2:$Q$1000=Costs!O$617)*('Fixed assets'!$U$2:$U$1000=Costs!$A647)*('Fixed assets'!$S$2:$S$1000))+SUMPRODUCT(('Fixed assets'!$Q$2:$Q$1000=Costs!O$617)*('Fixed assets'!$P$2:$P$1000=Costs!$A647)*('Fixed assets'!$U$2:$U$1000=Costs!$A647)*('Fixed assets'!$R$2:$R$1000))","v":0},{"$f":"SUMPRODUCT(('Fixed assets'!$R$2:$R$1000)*('Fixed assets'!$P$2:$P$1000<$A647)*('Fixed assets'!$Q$2:$Q$1000=Costs!P$617))-SUMPRODUCT(('Fixed assets'!$S$2:$S$1000)*('Fixed assets'!$P$2:$P$1000<Costs!$A647)*('Fixed assets'!$Q$2:$Q$1000=Costs!P$617))-SUMPRODUCT(('Fixed assets'!$Q$2:$Q$1000=Costs!P$617)*('Fixed assets'!$U$2:$U$1000=Costs!$A647)*('Fixed assets'!$S$2:$S$1000))+SUMPRODUCT(('Fixed assets'!$Q$2:$Q$1000=Costs!P$617)*('Fixed assets'!$P$2:$P$1000=Costs!$A647)*('Fixed assets'!$U$2:$U$1000=Costs!$A647)*('Fixed assets'!$R$2:$R$1000))","v":0},{"$f":"SUMPRODUCT(('Fixed assets'!$R$2:$R$1000)*('Fixed assets'!$P$2:$P$1000<$A647)*('Fixed assets'!$Q$2:$Q$1000=Costs!Q$617))-SUMPRODUCT(('Fixed assets'!$S$2:$S$1000)*('Fixed assets'!$P$2:$P$1000<Costs!$A647)*('Fixed assets'!$Q$2:$Q$1000=Costs!Q$617))-SUMPRODUCT(('Fixed assets'!$Q$2:$Q$1000=Costs!Q$617)*('Fixed assets'!$U$2:$U$1000=Costs!$A647)*('Fixed assets'!$S$2:$S$1000))+SUMPRODUCT(('Fixed assets'!$Q$2:$Q$1000=Costs!Q$617)*('Fixed assets'!$P$2:$P$1000=Costs!$A647)*('Fixed assets'!$U$2:$U$1000=Costs!$A647)*('Fixed assets'!$R$2:$R$1000))","v":0},{"$f":"SUMPRODUCT(('Fixed assets'!$R$2:$R$1000)*('Fixed assets'!$P$2:$P$1000<$A647)*('Fixed assets'!$Q$2:$Q$1000=Costs!R$617))-SUMPRODUCT(('Fixed assets'!$S$2:$S$1000)*('Fixed assets'!$P$2:$P$1000<Costs!$A647)*('Fixed assets'!$Q$2:$Q$1000=Costs!R$617))-SUMPRODUCT(('Fixed assets'!$Q$2:$Q$1000=Costs!R$617)*('Fixed assets'!$U$2:$U$1000=Costs!$A647)*('Fixed assets'!$S$2:$S$1000))+SUMPRODUCT(('Fixed assets'!$Q$2:$Q$1000=Costs!R$617)*('Fixed assets'!$P$2:$P$1000=Costs!$A647)*('Fixed assets'!$U$2:$U$1000=Costs!$A647)*('Fixed assets'!$R$2:$R$1000))","v":0},{"$f":"SUMPRODUCT(('Fixed assets'!$R$2:$R$1000)*('Fixed assets'!$P$2:$P$1000<$A647)*('Fixed assets'!$Q$2:$Q$1000=Costs!S$617))-SUMPRODUCT(('Fixed assets'!$S$2:$S$1000)*('Fixed assets'!$P$2:$P$1000<Costs!$A647)*('Fixed assets'!$Q$2:$Q$1000=Costs!S$617))-SUMPRODUCT(('Fixed assets'!$Q$2:$Q$1000=Costs!S$617)*('Fixed assets'!$U$2:$U$1000=Costs!$A647)*('Fixed assets'!$S$2:$S$1000))+SUMPRODUCT(('Fixed assets'!$Q$2:$Q$1000=Costs!S$617)*('Fixed assets'!$P$2:$P$1000=Costs!$A647)*('Fixed assets'!$U$2:$U$1000=Costs!$A647)*('Fixed assets'!$R$2:$R$1000))","v":0},{"$f":"SUMPRODUCT(('Fixed assets'!$R$2:$R$1000)*('Fixed assets'!$P$2:$P$1000<$A647)*('Fixed assets'!$Q$2:$Q$1000=Costs!T$617))-SUMPRODUCT(('Fixed assets'!$S$2:$S$1000)*('Fixed assets'!$P$2:$P$1000<Costs!$A647)*('Fixed assets'!$Q$2:$Q$1000=Costs!T$617))-SUMPRODUCT(('Fixed assets'!$Q$2:$Q$1000=Costs!T$617)*('Fixed assets'!$U$2:$U$1000=Costs!$A647)*('Fixed assets'!$S$2:$S$1000))+SUMPRODUCT(('Fixed assets'!$Q$2:$Q$1000=Costs!T$617)*('Fixed assets'!$P$2:$P$1000=Costs!$A647)*('Fixed assets'!$U$2:$U$1000=Costs!$A647)*('Fixed assets'!$R$2:$R$1000))","v":0},{"$f":"SUMPRODUCT(('Fixed assets'!$R$2:$R$1000)*('Fixed assets'!$P$2:$P$1000<$A647)*('Fixed assets'!$Q$2:$Q$1000=Costs!U$617))-SUMPRODUCT(('Fixed assets'!$S$2:$S$1000)*('Fixed assets'!$P$2:$P$1000<Costs!$A647)*('Fixed assets'!$Q$2:$Q$1000=Costs!U$617))-SUMPRODUCT(('Fixed assets'!$Q$2:$Q$1000=Costs!U$617)*('Fixed assets'!$U$2:$U$1000=Costs!$A647)*('Fixed assets'!$S$2:$S$1000))+SUMPRODUCT(('Fixed assets'!$Q$2:$Q$1000=Costs!U$617)*('Fixed assets'!$P$2:$P$1000=Costs!$A647)*('Fixed assets'!$U$2:$U$1000=Costs!$A647)*('Fixed assets'!$R$2:$R$1000))","v":0},{"$f":"SUMPRODUCT(('Fixed assets'!$R$2:$R$1000)*('Fixed assets'!$P$2:$P$1000<$A647)*('Fixed assets'!$Q$2:$Q$1000=Costs!V$617))-SUMPRODUCT(('Fixed assets'!$S$2:$S$1000)*('Fixed assets'!$P$2:$P$1000<Costs!$A647)*('Fixed assets'!$Q$2:$Q$1000=Costs!V$617))-SUMPRODUCT(('Fixed assets'!$Q$2:$Q$1000=Costs!V$617)*('Fixed assets'!$U$2:$U$1000=Costs!$A647)*('Fixed assets'!$S$2:$S$1000))+SUMPRODUCT(('Fixed assets'!$Q$2:$Q$1000=Costs!V$617)*('Fixed assets'!$P$2:$P$1000=Costs!$A647)*('Fixed assets'!$U$2:$U$1000=Costs!$A647)*('Fixed assets'!$R$2:$R$1000))","v":0},{"$f":"SUMPRODUCT(('Fixed assets'!$R$2:$R$1000)*('Fixed assets'!$P$2:$P$1000<$A647)*('Fixed assets'!$Q$2:$Q$1000=Costs!W$617))-SUMPRODUCT(('Fixed assets'!$S$2:$S$1000)*('Fixed assets'!$P$2:$P$1000<Costs!$A647)*('Fixed assets'!$Q$2:$Q$1000=Costs!W$617))-SUMPRODUCT(('Fixed assets'!$Q$2:$Q$1000=Costs!W$617)*('Fixed assets'!$U$2:$U$1000=Costs!$A647)*('Fixed assets'!$S$2:$S$1000))+SUMPRODUCT(('Fixed assets'!$Q$2:$Q$1000=Costs!W$617)*('Fixed assets'!$P$2:$P$1000=Costs!$A647)*('Fixed assets'!$U$2:$U$1000=Costs!$A647)*('Fixed assets'!$R$2:$R$1000))","v":0},{"$f":"SUMPRODUCT(('Fixed assets'!$R$2:$R$1000)*('Fixed assets'!$P$2:$P$1000<$A647)*('Fixed assets'!$Q$2:$Q$1000=Costs!X$617))-SUMPRODUCT(('Fixed assets'!$S$2:$S$1000)*('Fixed assets'!$P$2:$P$1000<Costs!$A647)*('Fixed assets'!$Q$2:$Q$1000=Costs!X$617))-SUMPRODUCT(('Fixed assets'!$Q$2:$Q$1000=Costs!X$617)*('Fixed assets'!$U$2:$U$1000=Costs!$A647)*('Fixed assets'!$S$2:$S$1000))+SUMPRODUCT(('Fixed assets'!$Q$2:$Q$1000=Costs!X$617)*('Fixed assets'!$P$2:$P$1000=Costs!$A647)*('Fixed assets'!$U$2:$U$1000=Costs!$A647)*('Fixed assets'!$R$2:$R$1000))","v":0},{"$f":"SUMPRODUCT(('Fixed assets'!$R$2:$R$1000)*('Fixed assets'!$P$2:$P$1000<$A647)*('Fixed assets'!$Q$2:$Q$1000=Costs!Y$617))-SUMPRODUCT(('Fixed assets'!$S$2:$S$1000)*('Fixed assets'!$P$2:$P$1000<Costs!$A647)*('Fixed assets'!$Q$2:$Q$1000=Costs!Y$617))-SUMPRODUCT(('Fixed assets'!$Q$2:$Q$1000=Costs!Y$617)*('Fixed assets'!$U$2:$U$1000=Costs!$A647)*('Fixed assets'!$S$2:$S$1000))+SUMPRODUCT(('Fixed assets'!$Q$2:$Q$1000=Costs!Y$617)*('Fixed assets'!$P$2:$P$1000=Costs!$A647)*('Fixed assets'!$U$2:$U$1000=Costs!$A647)*('Fixed assets'!$R$2:$R$1000))","v":0},{"$f":"SUMPRODUCT(('Fixed assets'!$R$2:$R$1000)*('Fixed assets'!$P$2:$P$1000<$A647)*('Fixed assets'!$Q$2:$Q$1000=Costs!Z$617))-SUMPRODUCT(('Fixed assets'!$S$2:$S$1000)*('Fixed assets'!$P$2:$P$1000<Costs!$A647)*('Fixed assets'!$Q$2:$Q$1000=Costs!Z$617))-SUMPRODUCT(('Fixed assets'!$Q$2:$Q$1000=Costs!Z$617)*('Fixed assets'!$U$2:$U$1000=Costs!$A647)*('Fixed assets'!$S$2:$S$1000))+SUMPRODUCT(('Fixed assets'!$Q$2:$Q$1000=Costs!Z$617)*('Fixed assets'!$P$2:$P$1000=Costs!$A647)*('Fixed assets'!$U$2:$U$1000=Costs!$A647)*('Fixed assets'!$R$2:$R$1000))","v":0},{"$f":"SUMPRODUCT(('Fixed assets'!$R$2:$R$1000)*('Fixed assets'!$P$2:$P$1000<$A647)*('Fixed assets'!$Q$2:$Q$1000=Costs!AA$617))-SUMPRODUCT(('Fixed assets'!$S$2:$S$1000)*('Fixed assets'!$P$2:$P$1000<Costs!$A647)*('Fixed assets'!$Q$2:$Q$1000=Costs!AA$617))-SUMPRODUCT(('Fixed assets'!$Q$2:$Q$1000=Costs!AA$617)*('Fixed assets'!$U$2:$U$1000=Costs!$A647)*('Fixed assets'!$S$2:$S$1000))+SUMPRODUCT(('Fixed assets'!$Q$2:$Q$1000=Costs!AA$617)*('Fixed assets'!$P$2:$P$1000=Costs!$A647)*('Fixed assets'!$U$2:$U$1000=Costs!$A647)*('Fixed assets'!$R$2:$R$1000))","v":0},{"$f":"SUMPRODUCT(('Fixed assets'!$R$2:$R$1000)*('Fixed assets'!$P$2:$P$1000<$A647)*('Fixed assets'!$Q$2:$Q$1000=Costs!AB$617))-SUMPRODUCT(('Fixed assets'!$S$2:$S$1000)*('Fixed assets'!$P$2:$P$1000<Costs!$A647)*('Fixed assets'!$Q$2:$Q$1000=Costs!AB$617))-SUMPRODUCT(('Fixed assets'!$Q$2:$Q$1000=Costs!AB$617)*('Fixed assets'!$U$2:$U$1000=Costs!$A647)*('Fixed assets'!$S$2:$S$1000))+SUMPRODUCT(('Fixed assets'!$Q$2:$Q$1000=Costs!AB$617)*('Fixed assets'!$P$2:$P$1000=Costs!$A647)*('Fixed assets'!$U$2:$U$1000=Costs!$A647)*('Fixed assets'!$R$2:$R$1000))","v":0},{"$f":"SUMPRODUCT(('Fixed assets'!$R$2:$R$1000)*('Fixed assets'!$P$2:$P$1000<$A647)*('Fixed assets'!$Q$2:$Q$1000=Costs!AC$617))-SUMPRODUCT(('Fixed assets'!$S$2:$S$1000)*('Fixed assets'!$P$2:$P$1000<Costs!$A647)*('Fixed assets'!$Q$2:$Q$1000=Costs!AC$617))-SUMPRODUCT(('Fixed assets'!$Q$2:$Q$1000=Costs!AC$617)*('Fixed assets'!$U$2:$U$1000=Costs!$A647)*('Fixed assets'!$S$2:$S$1000))+SUMPRODUCT(('Fixed assets'!$Q$2:$Q$1000=Costs!AC$617)*('Fixed assets'!$P$2:$P$1000=Costs!$A647)*('Fixed assets'!$U$2:$U$1000=Costs!$A647)*('Fixed assets'!$R$2:$R$1000))","v":0},{"$f":"SUMPRODUCT(('Fixed assets'!$R$2:$R$1000)*('Fixed assets'!$P$2:$P$1000<$A647)*('Fixed assets'!$Q$2:$Q$1000=Costs!AD$617))-SUMPRODUCT(('Fixed assets'!$S$2:$S$1000)*('Fixed assets'!$P$2:$P$1000<Costs!$A647)*('Fixed assets'!$Q$2:$Q$1000=Costs!AD$617))-SUMPRODUCT(('Fixed assets'!$Q$2:$Q$1000=Costs!AD$617)*('Fixed assets'!$U$2:$U$1000=Costs!$A647)*('Fixed assets'!$S$2:$S$1000))+SUMPRODUCT(('Fixed assets'!$Q$2:$Q$1000=Costs!AD$617)*('Fixed assets'!$P$2:$P$1000=Costs!$A647)*('Fixed assets'!$U$2:$U$1000=Costs!$A647)*('Fixed assets'!$R$2:$R$1000))","v":0},{"$f":"SUMPRODUCT(('Fixed assets'!$R$2:$R$1000)*('Fixed assets'!$P$2:$P$1000<$A647)*('Fixed assets'!$Q$2:$Q$1000=Costs!AE$617))-SUMPRODUCT(('Fixed assets'!$S$2:$S$1000)*('Fixed assets'!$P$2:$P$1000<Costs!$A647)*('Fixed assets'!$Q$2:$Q$1000=Costs!AE$617))-SUMPRODUCT(('Fixed assets'!$Q$2:$Q$1000=Costs!AE$617)*('Fixed assets'!$U$2:$U$1000=Costs!$A647)*('Fixed assets'!$S$2:$S$1000))+SUMPRODUCT(('Fixed assets'!$Q$2:$Q$1000=Costs!AE$617)*('Fixed assets'!$P$2:$P$1000=Costs!$A647)*('Fixed assets'!$U$2:$U$1000=Costs!$A647)*('Fixed assets'!$R$2:$R$1000))","v":0},{"$f":"SUMPRODUCT(('Fixed assets'!$R$2:$R$1000)*('Fixed assets'!$P$2:$P$1000<$A647)*('Fixed assets'!$Q$2:$Q$1000=Costs!AF$617))-SUMPRODUCT(('Fixed assets'!$S$2:$S$1000)*('Fixed assets'!$P$2:$P$1000<Costs!$A647)*('Fixed assets'!$Q$2:$Q$1000=Costs!AF$617))-SUMPRODUCT(('Fixed assets'!$Q$2:$Q$1000=Costs!AF$617)*('Fixed assets'!$U$2:$U$1000=Costs!$A647)*('Fixed assets'!$S$2:$S$1000))+SUMPRODUCT(('Fixed assets'!$Q$2:$Q$1000=Costs!AF$617)*('Fixed assets'!$P$2:$P$1000=Costs!$A647)*('Fixed assets'!$U$2:$U$1000=Costs!$A647)*('Fixed assets'!$R$2:$R$1000))","v":0},{"$f":"SUMPRODUCT(('Fixed assets'!$R$2:$R$1000)*('Fixed assets'!$P$2:$P$1000<$A647)*('Fixed assets'!$Q$2:$Q$1000=Costs!AG$617))-SUMPRODUCT(('Fixed assets'!$S$2:$S$1000)*('Fixed assets'!$P$2:$P$1000<Costs!$A647)*('Fixed assets'!$Q$2:$Q$1000=Costs!AG$617))-SUMPRODUCT(('Fixed assets'!$Q$2:$Q$1000=Costs!AG$617)*('Fixed assets'!$U$2:$U$1000=Costs!$A647)*('Fixed assets'!$S$2:$S$1000))+SUMPRODUCT(('Fixed assets'!$Q$2:$Q$1000=Costs!AG$617)*('Fixed assets'!$P$2:$P$1000=Costs!$A647)*('Fixed assets'!$U$2:$U$1000=Costs!$A647)*('Fixed assets'!$R$2:$R$1000))","v":0},{"$f":"SUMPRODUCT(('Fixed assets'!$R$2:$R$1000)*('Fixed assets'!$P$2:$P$1000<$A647)*('Fixed assets'!$Q$2:$Q$1000=Costs!AH$617))-SUMPRODUCT(('Fixed assets'!$S$2:$S$1000)*('Fixed assets'!$P$2:$P$1000<Costs!$A647)*('Fixed assets'!$Q$2:$Q$1000=Costs!AH$617))-SUMPRODUCT(('Fixed assets'!$Q$2:$Q$1000=Costs!AH$617)*('Fixed assets'!$U$2:$U$1000=Costs!$A647)*('Fixed assets'!$S$2:$S$1000))+SUMPRODUCT(('Fixed assets'!$Q$2:$Q$1000=Costs!AH$617)*('Fixed assets'!$P$2:$P$1000=Costs!$A647)*('Fixed assets'!$U$2:$U$1000=Costs!$A647)*('Fixed assets'!$R$2:$R$1000))","v":0},{"$f":"SUMPRODUCT(('Fixed assets'!$R$2:$R$1000)*('Fixed assets'!$P$2:$P$1000<$A647)*('Fixed assets'!$Q$2:$Q$1000=Costs!AI$617))-SUMPRODUCT(('Fixed assets'!$S$2:$S$1000)*('Fixed assets'!$P$2:$P$1000<Costs!$A647)*('Fixed assets'!$Q$2:$Q$1000=Costs!AI$617))-SUMPRODUCT(('Fixed assets'!$Q$2:$Q$1000=Costs!AI$617)*('Fixed assets'!$U$2:$U$1000=Costs!$A647)*('Fixed assets'!$S$2:$S$1000))+SUMPRODUCT(('Fixed assets'!$Q$2:$Q$1000=Costs!AI$617)*('Fixed assets'!$P$2:$P$1000=Costs!$A647)*('Fixed assets'!$U$2:$U$1000=Costs!$A647)*('Fixed assets'!$R$2:$R$1000))","v":0},{"$f":"SUMPRODUCT(('Fixed assets'!$R$2:$R$1000)*('Fixed assets'!$P$2:$P$1000<$A647)*('Fixed assets'!$Q$2:$Q$1000=Costs!AJ$617))-SUMPRODUCT(('Fixed assets'!$S$2:$S$1000)*('Fixed assets'!$P$2:$P$1000<Costs!$A647)*('Fixed assets'!$Q$2:$Q$1000=Costs!AJ$617))-SUMPRODUCT(('Fixed assets'!$Q$2:$Q$1000=Costs!AJ$617)*('Fixed assets'!$U$2:$U$1000=Costs!$A647)*('Fixed assets'!$S$2:$S$1000))+SUMPRODUCT(('Fixed assets'!$Q$2:$Q$1000=Costs!AJ$617)*('Fixed assets'!$P$2:$P$1000=Costs!$A647)*('Fixed assets'!$U$2:$U$1000=Costs!$A647)*('Fixed assets'!$R$2:$R$1000))","v":0},{"$f":"SUMPRODUCT(('Fixed assets'!$R$2:$R$1000)*('Fixed assets'!$P$2:$P$1000<$A647)*('Fixed assets'!$Q$2:$Q$1000=Costs!AK$617))-SUMPRODUCT(('Fixed assets'!$S$2:$S$1000)*('Fixed assets'!$P$2:$P$1000<Costs!$A647)*('Fixed assets'!$Q$2:$Q$1000=Costs!AK$617))-SUMPRODUCT(('Fixed assets'!$Q$2:$Q$1000=Costs!AK$617)*('Fixed assets'!$U$2:$U$1000=Costs!$A647)*('Fixed assets'!$S$2:$S$1000))+SUMPRODUCT(('Fixed assets'!$Q$2:$Q$1000=Costs!AK$617)*('Fixed assets'!$P$2:$P$1000=Costs!$A647)*('Fixed assets'!$U$2:$U$1000=Costs!$A647)*('Fixed assets'!$R$2:$R$1000))","v":0},{"$f":"SUMPRODUCT(('Fixed assets'!$R$2:$R$1000)*('Fixed assets'!$P$2:$P$1000<$A647)*('Fixed assets'!$Q$2:$Q$1000=Costs!AL$617))-SUMPRODUCT(('Fixed assets'!$S$2:$S$1000)*('Fixed assets'!$P$2:$P$1000<Costs!$A647)*('Fixed assets'!$Q$2:$Q$1000=Costs!AL$617))-SUMPRODUCT(('Fixed assets'!$Q$2:$Q$1000=Costs!AL$617)*('Fixed assets'!$U$2:$U$1000=Costs!$A647)*('Fixed assets'!$S$2:$S$1000))+SUMPRODUCT(('Fixed assets'!$Q$2:$Q$1000=Costs!AL$617)*('Fixed assets'!$P$2:$P$1000=Costs!$A647)*('Fixed assets'!$U$2:$U$1000=Costs!$A647)*('Fixed assets'!$R$2:$R$1000))","v":0},{"$f":"SUMPRODUCT(('Fixed assets'!$R$2:$R$1000)*('Fixed assets'!$P$2:$P$1000<$A647)*('Fixed assets'!$Q$2:$Q$1000=Costs!AM$617))-SUMPRODUCT(('Fixed assets'!$S$2:$S$1000)*('Fixed assets'!$P$2:$P$1000<Costs!$A647)*('Fixed assets'!$Q$2:$Q$1000=Costs!AM$617))-SUMPRODUCT(('Fixed assets'!$Q$2:$Q$1000=Costs!AM$617)*('Fixed assets'!$U$2:$U$1000=Costs!$A647)*('Fixed assets'!$S$2:$S$1000))+SUMPRODUCT(('Fixed assets'!$Q$2:$Q$1000=Costs!AM$617)*('Fixed assets'!$P$2:$P$1000=Costs!$A647)*('Fixed assets'!$U$2:$U$1000=Costs!$A647)*('Fixed assets'!$R$2:$R$1000))","v":0},{"$f":"SUMPRODUCT(('Fixed assets'!$R$2:$R$1000)*('Fixed assets'!$P$2:$P$1000<$A647)*('Fixed assets'!$Q$2:$Q$1000=Costs!AN$617))-SUMPRODUCT(('Fixed assets'!$S$2:$S$1000)*('Fixed assets'!$P$2:$P$1000<Costs!$A647)*('Fixed assets'!$Q$2:$Q$1000=Costs!AN$617))-SUMPRODUCT(('Fixed assets'!$Q$2:$Q$1000=Costs!AN$617)*('Fixed assets'!$U$2:$U$1000=Costs!$A647)*('Fixed assets'!$S$2:$S$1000))+SUMPRODUCT(('Fixed assets'!$Q$2:$Q$1000=Costs!AN$617)*('Fixed assets'!$P$2:$P$1000=Costs!$A647)*('Fixed assets'!$U$2:$U$1000=Costs!$A647)*('Fixed assets'!$R$2:$R$1000))","v":0},{"$f":"SUMPRODUCT(('Fixed assets'!$R$2:$R$1000)*('Fixed assets'!$P$2:$P$1000<$A647)*('Fixed assets'!$Q$2:$Q$1000=Costs!AO$617))-SUMPRODUCT(('Fixed assets'!$S$2:$S$1000)*('Fixed assets'!$P$2:$P$1000<Costs!$A647)*('Fixed assets'!$Q$2:$Q$1000=Costs!AO$617))-SUMPRODUCT(('Fixed assets'!$Q$2:$Q$1000=Costs!AO$617)*('Fixed assets'!$U$2:$U$1000=Costs!$A647)*('Fixed assets'!$S$2:$S$1000))+SUMPRODUCT(('Fixed assets'!$Q$2:$Q$1000=Costs!AO$617)*('Fixed assets'!$P$2:$P$1000=Costs!$A647)*('Fixed assets'!$U$2:$U$1000=Costs!$A647)*('Fixed assets'!$R$2:$R$1000))","v":0},{"$f":"SUMPRODUCT(('Fixed assets'!$R$2:$R$1000)*('Fixed assets'!$P$2:$P$1000<$A647)*('Fixed assets'!$Q$2:$Q$1000=Costs!AP$617))-SUMPRODUCT(('Fixed assets'!$S$2:$S$1000)*('Fixed assets'!$P$2:$P$1000<Costs!$A647)*('Fixed assets'!$Q$2:$Q$1000=Costs!AP$617))-SUMPRODUCT(('Fixed assets'!$Q$2:$Q$1000=Costs!AP$617)*('Fixed assets'!$U$2:$U$1000=Costs!$A647)*('Fixed assets'!$S$2:$S$1000))+SUMPRODUCT(('Fixed assets'!$Q$2:$Q$1000=Costs!AP$617)*('Fixed assets'!$P$2:$P$1000=Costs!$A647)*('Fixed assets'!$U$2:$U$1000=Costs!$A647)*('Fixed assets'!$R$2:$R$1000))","v":0},{"$f":"SUMPRODUCT(('Fixed assets'!$R$2:$R$1000)*('Fixed assets'!$P$2:$P$1000<$A647)*('Fixed assets'!$Q$2:$Q$1000=Costs!AQ$617))-SUMPRODUCT(('Fixed assets'!$S$2:$S$1000)*('Fixed assets'!$P$2:$P$1000<Costs!$A647)*('Fixed assets'!$Q$2:$Q$1000=Costs!AQ$617))-SUMPRODUCT(('Fixed assets'!$Q$2:$Q$1000=Costs!AQ$617)*('Fixed assets'!$U$2:$U$1000=Costs!$A647)*('Fixed assets'!$S$2:$S$1000))+SUMPRODUCT(('Fixed assets'!$Q$2:$Q$1000=Costs!AQ$617)*('Fixed assets'!$P$2:$P$1000=Costs!$A647)*('Fixed assets'!$U$2:$U$1000=Costs!$A647)*('Fixed assets'!$R$2:$R$1000))","v":0}]
[2045,0,{"$f":"SUMPRODUCT(('Fixed assets'!$R$2:$R$1000)*('Fixed assets'!$P$2:$P$1000<$A648)*('Fixed assets'!$Q$2:$Q$1000=Costs!C$617))-SUMPRODUCT(('Fixed assets'!$S$2:$S$1000)*('Fixed assets'!$P$2:$P$1000<Costs!$A648)*('Fixed assets'!$Q$2:$Q$1000=Costs!C$617))-SUMPRODUCT(('Fixed assets'!$Q$2:$Q$1000=Costs!C$617)*('Fixed assets'!$U$2:$U$1000=Costs!$A648)*('Fixed assets'!$S$2:$S$1000))+SUMPRODUCT(('Fixed assets'!$Q$2:$Q$1000=Costs!C$617)*('Fixed assets'!$P$2:$P$1000=Costs!$A648)*('Fixed assets'!$U$2:$U$1000=Costs!$A648)*('Fixed assets'!$R$2:$R$1000))","v":0},{"$f":"SUMPRODUCT(('Fixed assets'!$R$2:$R$1000)*('Fixed assets'!$P$2:$P$1000<$A648)*('Fixed assets'!$Q$2:$Q$1000=Costs!D$617))-SUMPRODUCT(('Fixed assets'!$S$2:$S$1000)*('Fixed assets'!$P$2:$P$1000<Costs!$A648)*('Fixed assets'!$Q$2:$Q$1000=Costs!D$617))-SUMPRODUCT(('Fixed assets'!$Q$2:$Q$1000=Costs!D$617)*('Fixed assets'!$U$2:$U$1000=Costs!$A648)*('Fixed assets'!$S$2:$S$1000))+SUMPRODUCT(('Fixed assets'!$Q$2:$Q$1000=Costs!D$617)*('Fixed assets'!$P$2:$P$1000=Costs!$A648)*('Fixed assets'!$U$2:$U$1000=Costs!$A648)*('Fixed assets'!$R$2:$R$1000))","v":0},{"$f":"SUMPRODUCT(('Fixed assets'!$R$2:$R$1000)*('Fixed assets'!$P$2:$P$1000<$A648)*('Fixed assets'!$Q$2:$Q$1000=Costs!E$617))-SUMPRODUCT(('Fixed assets'!$S$2:$S$1000)*('Fixed assets'!$P$2:$P$1000<Costs!$A648)*('Fixed assets'!$Q$2:$Q$1000=Costs!E$617))-SUMPRODUCT(('Fixed assets'!$Q$2:$Q$1000=Costs!E$617)*('Fixed assets'!$U$2:$U$1000=Costs!$A648)*('Fixed assets'!$S$2:$S$1000))+SUMPRODUCT(('Fixed assets'!$Q$2:$Q$1000=Costs!E$617)*('Fixed assets'!$P$2:$P$1000=Costs!$A648)*('Fixed assets'!$U$2:$U$1000=Costs!$A648)*('Fixed assets'!$R$2:$R$1000))","v":0},{"$f":"SUMPRODUCT(('Fixed assets'!$R$2:$R$1000)*('Fixed assets'!$P$2:$P$1000<$A648)*('Fixed assets'!$Q$2:$Q$1000=Costs!F$617))-SUMPRODUCT(('Fixed assets'!$S$2:$S$1000)*('Fixed assets'!$P$2:$P$1000<Costs!$A648)*('Fixed assets'!$Q$2:$Q$1000=Costs!F$617))-SUMPRODUCT(('Fixed assets'!$Q$2:$Q$1000=Costs!F$617)*('Fixed assets'!$U$2:$U$1000=Costs!$A648)*('Fixed assets'!$S$2:$S$1000))+SUMPRODUCT(('Fixed assets'!$Q$2:$Q$1000=Costs!F$617)*('Fixed assets'!$P$2:$P$1000=Costs!$A648)*('Fixed assets'!$U$2:$U$1000=Costs!$A648)*('Fixed assets'!$R$2:$R$1000))","v":0},{"$f":"SUMPRODUCT(('Fixed assets'!$R$2:$R$1000)*('Fixed assets'!$P$2:$P$1000<$A648)*('Fixed assets'!$Q$2:$Q$1000=Costs!G$617))-SUMPRODUCT(('Fixed assets'!$S$2:$S$1000)*('Fixed assets'!$P$2:$P$1000<Costs!$A648)*('Fixed assets'!$Q$2:$Q$1000=Costs!G$617))-SUMPRODUCT(('Fixed assets'!$Q$2:$Q$1000=Costs!G$617)*('Fixed assets'!$U$2:$U$1000=Costs!$A648)*('Fixed assets'!$S$2:$S$1000))+SUMPRODUCT(('Fixed assets'!$Q$2:$Q$1000=Costs!G$617)*('Fixed assets'!$P$2:$P$1000=Costs!$A648)*('Fixed assets'!$U$2:$U$1000=Costs!$A648)*('Fixed assets'!$R$2:$R$1000))","v":0},{"$f":"SUMPRODUCT(('Fixed assets'!$R$2:$R$1000)*('Fixed assets'!$P$2:$P$1000<$A648)*('Fixed assets'!$Q$2:$Q$1000=Costs!H$617))-SUMPRODUCT(('Fixed assets'!$S$2:$S$1000)*('Fixed assets'!$P$2:$P$1000<Costs!$A648)*('Fixed assets'!$Q$2:$Q$1000=Costs!H$617))-SUMPRODUCT(('Fixed assets'!$Q$2:$Q$1000=Costs!H$617)*('Fixed assets'!$U$2:$U$1000=Costs!$A648)*('Fixed assets'!$S$2:$S$1000))+SUMPRODUCT(('Fixed assets'!$Q$2:$Q$1000=Costs!H$617)*('Fixed assets'!$P$2:$P$1000=Costs!$A648)*('Fixed assets'!$U$2:$U$1000=Costs!$A648)*('Fixed assets'!$R$2:$R$1000))","v":0},{"$f":"SUMPRODUCT(('Fixed assets'!$R$2:$R$1000)*('Fixed assets'!$P$2:$P$1000<$A648)*('Fixed assets'!$Q$2:$Q$1000=Costs!I$617))-SUMPRODUCT(('Fixed assets'!$S$2:$S$1000)*('Fixed assets'!$P$2:$P$1000<Costs!$A648)*('Fixed assets'!$Q$2:$Q$1000=Costs!I$617))-SUMPRODUCT(('Fixed assets'!$Q$2:$Q$1000=Costs!I$617)*('Fixed assets'!$U$2:$U$1000=Costs!$A648)*('Fixed assets'!$S$2:$S$1000))+SUMPRODUCT(('Fixed assets'!$Q$2:$Q$1000=Costs!I$617)*('Fixed assets'!$P$2:$P$1000=Costs!$A648)*('Fixed assets'!$U$2:$U$1000=Costs!$A648)*('Fixed assets'!$R$2:$R$1000))","v":0},{"$f":"SUMPRODUCT(('Fixed assets'!$R$2:$R$1000)*('Fixed assets'!$P$2:$P$1000<$A648)*('Fixed assets'!$Q$2:$Q$1000=Costs!J$617))-SUMPRODUCT(('Fixed assets'!$S$2:$S$1000)*('Fixed assets'!$P$2:$P$1000<Costs!$A648)*('Fixed assets'!$Q$2:$Q$1000=Costs!J$617))-SUMPRODUCT(('Fixed assets'!$Q$2:$Q$1000=Costs!J$617)*('Fixed assets'!$U$2:$U$1000=Costs!$A648)*('Fixed assets'!$S$2:$S$1000))+SUMPRODUCT(('Fixed assets'!$Q$2:$Q$1000=Costs!J$617)*('Fixed assets'!$P$2:$P$1000=Costs!$A648)*('Fixed assets'!$U$2:$U$1000=Costs!$A648)*('Fixed assets'!$R$2:$R$1000))","v":0},{"$f":"SUMPRODUCT(('Fixed assets'!$R$2:$R$1000)*('Fixed assets'!$P$2:$P$1000<$A648)*('Fixed assets'!$Q$2:$Q$1000=Costs!K$617))-SUMPRODUCT(('Fixed assets'!$S$2:$S$1000)*('Fixed assets'!$P$2:$P$1000<Costs!$A648)*('Fixed assets'!$Q$2:$Q$1000=Costs!K$617))-SUMPRODUCT(('Fixed assets'!$Q$2:$Q$1000=Costs!K$617)*('Fixed assets'!$U$2:$U$1000=Costs!$A648)*('Fixed assets'!$S$2:$S$1000))+SUMPRODUCT(('Fixed assets'!$Q$2:$Q$1000=Costs!K$617)*('Fixed assets'!$P$2:$P$1000=Costs!$A648)*('Fixed assets'!$U$2:$U$1000=Costs!$A648)*('Fixed assets'!$R$2:$R$1000))","v":0},{"$f":"SUMPRODUCT(('Fixed assets'!$R$2:$R$1000)*('Fixed assets'!$P$2:$P$1000<$A648)*('Fixed assets'!$Q$2:$Q$1000=Costs!L$617))-SUMPRODUCT(('Fixed assets'!$S$2:$S$1000)*('Fixed assets'!$P$2:$P$1000<Costs!$A648)*('Fixed assets'!$Q$2:$Q$1000=Costs!L$617))-SUMPRODUCT(('Fixed assets'!$Q$2:$Q$1000=Costs!L$617)*('Fixed assets'!$U$2:$U$1000=Costs!$A648)*('Fixed assets'!$S$2:$S$1000))+SUMPRODUCT(('Fixed assets'!$Q$2:$Q$1000=Costs!L$617)*('Fixed assets'!$P$2:$P$1000=Costs!$A648)*('Fixed assets'!$U$2:$U$1000=Costs!$A648)*('Fixed assets'!$R$2:$R$1000))","v":0},{"$f":"SUMPRODUCT(('Fixed assets'!$R$2:$R$1000)*('Fixed assets'!$P$2:$P$1000<$A648)*('Fixed assets'!$Q$2:$Q$1000=Costs!M$617))-SUMPRODUCT(('Fixed assets'!$S$2:$S$1000)*('Fixed assets'!$P$2:$P$1000<Costs!$A648)*('Fixed assets'!$Q$2:$Q$1000=Costs!M$617))-SUMPRODUCT(('Fixed assets'!$Q$2:$Q$1000=Costs!M$617)*('Fixed assets'!$U$2:$U$1000=Costs!$A648)*('Fixed assets'!$S$2:$S$1000))+SUMPRODUCT(('Fixed assets'!$Q$2:$Q$1000=Costs!M$617)*('Fixed assets'!$P$2:$P$1000=Costs!$A648)*('Fixed assets'!$U$2:$U$1000=Costs!$A648)*('Fixed assets'!$R$2:$R$1000))","v":0},{"$f":"SUMPRODUCT(('Fixed assets'!$R$2:$R$1000)*('Fixed assets'!$P$2:$P$1000<$A648)*('Fixed assets'!$Q$2:$Q$1000=Costs!N$617))-SUMPRODUCT(('Fixed assets'!$S$2:$S$1000)*('Fixed assets'!$P$2:$P$1000<Costs!$A648)*('Fixed assets'!$Q$2:$Q$1000=Costs!N$617))-SUMPRODUCT(('Fixed assets'!$Q$2:$Q$1000=Costs!N$617)*('Fixed assets'!$U$2:$U$1000=Costs!$A648)*('Fixed assets'!$S$2:$S$1000))+SUMPRODUCT(('Fixed assets'!$Q$2:$Q$1000=Costs!N$617)*('Fixed assets'!$P$2:$P$1000=Costs!$A648)*('Fixed assets'!$U$2:$U$1000=Costs!$A648)*('Fixed assets'!$R$2:$R$1000))","v":0},{"$f":"SUMPRODUCT(('Fixed assets'!$R$2:$R$1000)*('Fixed assets'!$P$2:$P$1000<$A648)*('Fixed assets'!$Q$2:$Q$1000=Costs!O$617))-SUMPRODUCT(('Fixed assets'!$S$2:$S$1000)*('Fixed assets'!$P$2:$P$1000<Costs!$A648)*('Fixed assets'!$Q$2:$Q$1000=Costs!O$617))-SUMPRODUCT(('Fixed assets'!$Q$2:$Q$1000=Costs!O$617)*('Fixed assets'!$U$2:$U$1000=Costs!$A648)*('Fixed assets'!$S$2:$S$1000))+SUMPRODUCT(('Fixed assets'!$Q$2:$Q$1000=Costs!O$617)*('Fixed assets'!$P$2:$P$1000=Costs!$A648)*('Fixed assets'!$U$2:$U$1000=Costs!$A648)*('Fixed assets'!$R$2:$R$1000))","v":0},{"$f":"SUMPRODUCT(('Fixed assets'!$R$2:$R$1000)*('Fixed assets'!$P$2:$P$1000<$A648)*('Fixed assets'!$Q$2:$Q$1000=Costs!P$617))-SUMPRODUCT(('Fixed assets'!$S$2:$S$1000)*('Fixed assets'!$P$2:$P$1000<Costs!$A648)*('Fixed assets'!$Q$2:$Q$1000=Costs!P$617))-SUMPRODUCT(('Fixed assets'!$Q$2:$Q$1000=Costs!P$617)*('Fixed assets'!$U$2:$U$1000=Costs!$A648)*('Fixed assets'!$S$2:$S$1000))+SUMPRODUCT(('Fixed assets'!$Q$2:$Q$1000=Costs!P$617)*('Fixed assets'!$P$2:$P$1000=Costs!$A648)*('Fixed assets'!$U$2:$U$1000=Costs!$A648)*('Fixed assets'!$R$2:$R$1000))","v":0},{"$f":"SUMPRODUCT(('Fixed assets'!$R$2:$R$1000)*('Fixed assets'!$P$2:$P$1000<$A648)*('Fixed assets'!$Q$2:$Q$1000=Costs!Q$617))-SUMPRODUCT(('Fixed assets'!$S$2:$S$1000)*('Fixed assets'!$P$2:$P$1000<Costs!$A648)*('Fixed assets'!$Q$2:$Q$1000=Costs!Q$617))-SUMPRODUCT(('Fixed assets'!$Q$2:$Q$1000=Costs!Q$617)*('Fixed assets'!$U$2:$U$1000=Costs!$A648)*('Fixed assets'!$S$2:$S$1000))+SUMPRODUCT(('Fixed assets'!$Q$2:$Q$1000=Costs!Q$617)*('Fixed assets'!$P$2:$P$1000=Costs!$A648)*('Fixed assets'!$U$2:$U$1000=Costs!$A648)*('Fixed assets'!$R$2:$R$1000))","v":0},{"$f":"SUMPRODUCT(('Fixed assets'!$R$2:$R$1000)*('Fixed assets'!$P$2:$P$1000<$A648)*('Fixed assets'!$Q$2:$Q$1000=Costs!R$617))-SUMPRODUCT(('Fixed assets'!$S$2:$S$1000)*('Fixed assets'!$P$2:$P$1000<Costs!$A648)*('Fixed assets'!$Q$2:$Q$1000=Costs!R$617))-SUMPRODUCT(('Fixed assets'!$Q$2:$Q$1000=Costs!R$617)*('Fixed assets'!$U$2:$U$1000=Costs!$A648)*('Fixed assets'!$S$2:$S$1000))+SUMPRODUCT(('Fixed assets'!$Q$2:$Q$1000=Costs!R$617)*('Fixed assets'!$P$2:$P$1000=Costs!$A648)*('Fixed assets'!$U$2:$U$1000=Costs!$A648)*('Fixed assets'!$R$2:$R$1000))","v":0},{"$f":"SUMPRODUCT(('Fixed assets'!$R$2:$R$1000)*('Fixed assets'!$P$2:$P$1000<$A648)*('Fixed assets'!$Q$2:$Q$1000=Costs!S$617))-SUMPRODUCT(('Fixed assets'!$S$2:$S$1000)*('Fixed assets'!$P$2:$P$1000<Costs!$A648)*('Fixed assets'!$Q$2:$Q$1000=Costs!S$617))-SUMPRODUCT(('Fixed assets'!$Q$2:$Q$1000=Costs!S$617)*('Fixed assets'!$U$2:$U$1000=Costs!$A648)*('Fixed assets'!$S$2:$S$1000))+SUMPRODUCT(('Fixed assets'!$Q$2:$Q$1000=Costs!S$617)*('Fixed assets'!$P$2:$P$1000=Costs!$A648)*('Fixed assets'!$U$2:$U$1000=Costs!$A648)*('Fixed assets'!$R$2:$R$1000))","v":0},{"$f":"SUMPRODUCT(('Fixed assets'!$R$2:$R$1000)*('Fixed assets'!$P$2:$P$1000<$A648)*('Fixed assets'!$Q$2:$Q$1000=Costs!T$617))-SUMPRODUCT(('Fixed assets'!$S$2:$S$1000)*('Fixed assets'!$P$2:$P$1000<Costs!$A648)*('Fixed assets'!$Q$2:$Q$1000=Costs!T$617))-SUMPRODUCT(('Fixed assets'!$Q$2:$Q$1000=Costs!T$617)*('Fixed assets'!$U$2:$U$1000=Costs!$A648)*('Fixed assets'!$S$2:$S$1000))+SUMPRODUCT(('Fixed assets'!$Q$2:$Q$1000=Costs!T$617)*('Fixed assets'!$P$2:$P$1000=Costs!$A648)*('Fixed assets'!$U$2:$U$1000=Costs!$A648)*('Fixed assets'!$R$2:$R$1000))","v":0},{"$f":"SUMPRODUCT(('Fixed assets'!$R$2:$R$1000)*('Fixed assets'!$P$2:$P$1000<$A648)*('Fixed assets'!$Q$2:$Q$1000=Costs!U$617))-SUMPRODUCT(('Fixed assets'!$S$2:$S$1000)*('Fixed assets'!$P$2:$P$1000<Costs!$A648)*('Fixed assets'!$Q$2:$Q$1000=Costs!U$617))-SUMPRODUCT(('Fixed assets'!$Q$2:$Q$1000=Costs!U$617)*('Fixed assets'!$U$2:$U$1000=Costs!$A648)*('Fixed assets'!$S$2:$S$1000))+SUMPRODUCT(('Fixed assets'!$Q$2:$Q$1000=Costs!U$617)*('Fixed assets'!$P$2:$P$1000=Costs!$A648)*('Fixed assets'!$U$2:$U$1000=Costs!$A648)*('Fixed assets'!$R$2:$R$1000))","v":0},{"$f":"SUMPRODUCT(('Fixed assets'!$R$2:$R$1000)*('Fixed assets'!$P$2:$P$1000<$A648)*('Fixed assets'!$Q$2:$Q$1000=Costs!V$617))-SUMPRODUCT(('Fixed assets'!$S$2:$S$1000)*('Fixed assets'!$P$2:$P$1000<Costs!$A648)*('Fixed assets'!$Q$2:$Q$1000=Costs!V$617))-SUMPRODUCT(('Fixed assets'!$Q$2:$Q$1000=Costs!V$617)*('Fixed assets'!$U$2:$U$1000=Costs!$A648)*('Fixed assets'!$S$2:$S$1000))+SUMPRODUCT(('Fixed assets'!$Q$2:$Q$1000=Costs!V$617)*('Fixed assets'!$P$2:$P$1000=Costs!$A648)*('Fixed assets'!$U$2:$U$1000=Costs!$A648)*('Fixed assets'!$R$2:$R$1000))","v":0},{"$f":"SUMPRODUCT(('Fixed assets'!$R$2:$R$1000)*('Fixed assets'!$P$2:$P$1000<$A648)*('Fixed assets'!$Q$2:$Q$1000=Costs!W$617))-SUMPRODUCT(('Fixed assets'!$S$2:$S$1000)*('Fixed assets'!$P$2:$P$1000<Costs!$A648)*('Fixed assets'!$Q$2:$Q$1000=Costs!W$617))-SUMPRODUCT(('Fixed assets'!$Q$2:$Q$1000=Costs!W$617)*('Fixed assets'!$U$2:$U$1000=Costs!$A648)*('Fixed assets'!$S$2:$S$1000))+SUMPRODUCT(('Fixed assets'!$Q$2:$Q$1000=Costs!W$617)*('Fixed assets'!$P$2:$P$1000=Costs!$A648)*('Fixed assets'!$U$2:$U$1000=Costs!$A648)*('Fixed assets'!$R$2:$R$1000))","v":0},{"$f":"SUMPRODUCT(('Fixed assets'!$R$2:$R$1000)*('Fixed assets'!$P$2:$P$1000<$A648)*('Fixed assets'!$Q$2:$Q$1000=Costs!X$617))-SUMPRODUCT(('Fixed assets'!$S$2:$S$1000)*('Fixed assets'!$P$2:$P$1000<Costs!$A648)*('Fixed assets'!$Q$2:$Q$1000=Costs!X$617))-SUMPRODUCT(('Fixed assets'!$Q$2:$Q$1000=Costs!X$617)*('Fixed assets'!$U$2:$U$1000=Costs!$A648)*('Fixed assets'!$S$2:$S$1000))+SUMPRODUCT(('Fixed assets'!$Q$2:$Q$1000=Costs!X$617)*('Fixed assets'!$P$2:$P$1000=Costs!$A648)*('Fixed assets'!$U$2:$U$1000=Costs!$A648)*('Fixed assets'!$R$2:$R$1000))","v":0},{"$f":"SUMPRODUCT(('Fixed assets'!$R$2:$R$1000)*('Fixed assets'!$P$2:$P$1000<$A648)*('Fixed assets'!$Q$2:$Q$1000=Costs!Y$617))-SUMPRODUCT(('Fixed assets'!$S$2:$S$1000)*('Fixed assets'!$P$2:$P$1000<Costs!$A648)*('Fixed assets'!$Q$2:$Q$1000=Costs!Y$617))-SUMPRODUCT(('Fixed assets'!$Q$2:$Q$1000=Costs!Y$617)*('Fixed assets'!$U$2:$U$1000=Costs!$A648)*('Fixed assets'!$S$2:$S$1000))+SUMPRODUCT(('Fixed assets'!$Q$2:$Q$1000=Costs!Y$617)*('Fixed assets'!$P$2:$P$1000=Costs!$A648)*('Fixed assets'!$U$2:$U$1000=Costs!$A648)*('Fixed assets'!$R$2:$R$1000))","v":0},{"$f":"SUMPRODUCT(('Fixed assets'!$R$2:$R$1000)*('Fixed assets'!$P$2:$P$1000<$A648)*('Fixed assets'!$Q$2:$Q$1000=Costs!Z$617))-SUMPRODUCT(('Fixed assets'!$S$2:$S$1000)*('Fixed assets'!$P$2:$P$1000<Costs!$A648)*('Fixed assets'!$Q$2:$Q$1000=Costs!Z$617))-SUMPRODUCT(('Fixed assets'!$Q$2:$Q$1000=Costs!Z$617)*('Fixed assets'!$U$2:$U$1000=Costs!$A648)*('Fixed assets'!$S$2:$S$1000))+SUMPRODUCT(('Fixed assets'!$Q$2:$Q$1000=Costs!Z$617)*('Fixed assets'!$P$2:$P$1000=Costs!$A648)*('Fixed assets'!$U$2:$U$1000=Costs!$A648)*('Fixed assets'!$R$2:$R$1000))","v":0},{"$f":"SUMPRODUCT(('Fixed assets'!$R$2:$R$1000)*('Fixed assets'!$P$2:$P$1000<$A648)*('Fixed assets'!$Q$2:$Q$1000=Costs!AA$617))-SUMPRODUCT(('Fixed assets'!$S$2:$S$1000)*('Fixed assets'!$P$2:$P$1000<Costs!$A648)*('Fixed assets'!$Q$2:$Q$1000=Costs!AA$617))-SUMPRODUCT(('Fixed assets'!$Q$2:$Q$1000=Costs!AA$617)*('Fixed assets'!$U$2:$U$1000=Costs!$A648)*('Fixed assets'!$S$2:$S$1000))+SUMPRODUCT(('Fixed assets'!$Q$2:$Q$1000=Costs!AA$617)*('Fixed assets'!$P$2:$P$1000=Costs!$A648)*('Fixed assets'!$U$2:$U$1000=Costs!$A648)*('Fixed assets'!$R$2:$R$1000))","v":0},{"$f":"SUMPRODUCT(('Fixed assets'!$R$2:$R$1000)*('Fixed assets'!$P$2:$P$1000<$A648)*('Fixed assets'!$Q$2:$Q$1000=Costs!AB$617))-SUMPRODUCT(('Fixed assets'!$S$2:$S$1000)*('Fixed assets'!$P$2:$P$1000<Costs!$A648)*('Fixed assets'!$Q$2:$Q$1000=Costs!AB$617))-SUMPRODUCT(('Fixed assets'!$Q$2:$Q$1000=Costs!AB$617)*('Fixed assets'!$U$2:$U$1000=Costs!$A648)*('Fixed assets'!$S$2:$S$1000))+SUMPRODUCT(('Fixed assets'!$Q$2:$Q$1000=Costs!AB$617)*('Fixed assets'!$P$2:$P$1000=Costs!$A648)*('Fixed assets'!$U$2:$U$1000=Costs!$A648)*('Fixed assets'!$R$2:$R$1000))","v":0},{"$f":"SUMPRODUCT(('Fixed assets'!$R$2:$R$1000)*('Fixed assets'!$P$2:$P$1000<$A648)*('Fixed assets'!$Q$2:$Q$1000=Costs!AC$617))-SUMPRODUCT(('Fixed assets'!$S$2:$S$1000)*('Fixed assets'!$P$2:$P$1000<Costs!$A648)*('Fixed assets'!$Q$2:$Q$1000=Costs!AC$617))-SUMPRODUCT(('Fixed assets'!$Q$2:$Q$1000=Costs!AC$617)*('Fixed assets'!$U$2:$U$1000=Costs!$A648)*('Fixed assets'!$S$2:$S$1000))+SUMPRODUCT(('Fixed assets'!$Q$2:$Q$1000=Costs!AC$617)*('Fixed assets'!$P$2:$P$1000=Costs!$A648)*('Fixed assets'!$U$2:$U$1000=Costs!$A648)*('Fixed assets'!$R$2:$R$1000))","v":0},{"$f":"SUMPRODUCT(('Fixed assets'!$R$2:$R$1000)*('Fixed assets'!$P$2:$P$1000<$A648)*('Fixed assets'!$Q$2:$Q$1000=Costs!AD$617))-SUMPRODUCT(('Fixed assets'!$S$2:$S$1000)*('Fixed assets'!$P$2:$P$1000<Costs!$A648)*('Fixed assets'!$Q$2:$Q$1000=Costs!AD$617))-SUMPRODUCT(('Fixed assets'!$Q$2:$Q$1000=Costs!AD$617)*('Fixed assets'!$U$2:$U$1000=Costs!$A648)*('Fixed assets'!$S$2:$S$1000))+SUMPRODUCT(('Fixed assets'!$Q$2:$Q$1000=Costs!AD$617)*('Fixed assets'!$P$2:$P$1000=Costs!$A648)*('Fixed assets'!$U$2:$U$1000=Costs!$A648)*('Fixed assets'!$R$2:$R$1000))","v":0},{"$f":"SUMPRODUCT(('Fixed assets'!$R$2:$R$1000)*('Fixed assets'!$P$2:$P$1000<$A648)*('Fixed assets'!$Q$2:$Q$1000=Costs!AE$617))-SUMPRODUCT(('Fixed assets'!$S$2:$S$1000)*('Fixed assets'!$P$2:$P$1000<Costs!$A648)*('Fixed assets'!$Q$2:$Q$1000=Costs!AE$617))-SUMPRODUCT(('Fixed assets'!$Q$2:$Q$1000=Costs!AE$617)*('Fixed assets'!$U$2:$U$1000=Costs!$A648)*('Fixed assets'!$S$2:$S$1000))+SUMPRODUCT(('Fixed assets'!$Q$2:$Q$1000=Costs!AE$617)*('Fixed assets'!$P$2:$P$1000=Costs!$A648)*('Fixed assets'!$U$2:$U$1000=Costs!$A648)*('Fixed assets'!$R$2:$R$1000))","v":0},{"$f":"SUMPRODUCT(('Fixed assets'!$R$2:$R$1000)*('Fixed assets'!$P$2:$P$1000<$A648)*('Fixed assets'!$Q$2:$Q$1000=Costs!AF$617))-SUMPRODUCT(('Fixed assets'!$S$2:$S$1000)*('Fixed assets'!$P$2:$P$1000<Costs!$A648)*('Fixed assets'!$Q$2:$Q$1000=Costs!AF$617))-SUMPRODUCT(('Fixed assets'!$Q$2:$Q$1000=Costs!AF$617)*('Fixed assets'!$U$2:$U$1000=Costs!$A648)*('Fixed assets'!$S$2:$S$1000))+SUMPRODUCT(('Fixed assets'!$Q$2:$Q$1000=Costs!AF$617)*('Fixed assets'!$P$2:$P$1000=Costs!$A648)*('Fixed assets'!$U$2:$U$1000=Costs!$A648)*('Fixed assets'!$R$2:$R$1000))","v":0},{"$f":"SUMPRODUCT(('Fixed assets'!$R$2:$R$1000)*('Fixed assets'!$P$2:$P$1000<$A648)*('Fixed assets'!$Q$2:$Q$1000=Costs!AG$617))-SUMPRODUCT(('Fixed assets'!$S$2:$S$1000)*('Fixed assets'!$P$2:$P$1000<Costs!$A648)*('Fixed assets'!$Q$2:$Q$1000=Costs!AG$617))-SUMPRODUCT(('Fixed assets'!$Q$2:$Q$1000=Costs!AG$617)*('Fixed assets'!$U$2:$U$1000=Costs!$A648)*('Fixed assets'!$S$2:$S$1000))+SUMPRODUCT(('Fixed assets'!$Q$2:$Q$1000=Costs!AG$617)*('Fixed assets'!$P$2:$P$1000=Costs!$A648)*('Fixed assets'!$U$2:$U$1000=Costs!$A648)*('Fixed assets'!$R$2:$R$1000))","v":0},{"$f":"SUMPRODUCT(('Fixed assets'!$R$2:$R$1000)*('Fixed assets'!$P$2:$P$1000<$A648)*('Fixed assets'!$Q$2:$Q$1000=Costs!AH$617))-SUMPRODUCT(('Fixed assets'!$S$2:$S$1000)*('Fixed assets'!$P$2:$P$1000<Costs!$A648)*('Fixed assets'!$Q$2:$Q$1000=Costs!AH$617))-SUMPRODUCT(('Fixed assets'!$Q$2:$Q$1000=Costs!AH$617)*('Fixed assets'!$U$2:$U$1000=Costs!$A648)*('Fixed assets'!$S$2:$S$1000))+SUMPRODUCT(('Fixed assets'!$Q$2:$Q$1000=Costs!AH$617)*('Fixed assets'!$P$2:$P$1000=Costs!$A648)*('Fixed assets'!$U$2:$U$1000=Costs!$A648)*('Fixed assets'!$R$2:$R$1000))","v":0},{"$f":"SUMPRODUCT(('Fixed assets'!$R$2:$R$1000)*('Fixed assets'!$P$2:$P$1000<$A648)*('Fixed assets'!$Q$2:$Q$1000=Costs!AI$617))-SUMPRODUCT(('Fixed assets'!$S$2:$S$1000)*('Fixed assets'!$P$2:$P$1000<Costs!$A648)*('Fixed assets'!$Q$2:$Q$1000=Costs!AI$617))-SUMPRODUCT(('Fixed assets'!$Q$2:$Q$1000=Costs!AI$617)*('Fixed assets'!$U$2:$U$1000=Costs!$A648)*('Fixed assets'!$S$2:$S$1000))+SUMPRODUCT(('Fixed assets'!$Q$2:$Q$1000=Costs!AI$617)*('Fixed assets'!$P$2:$P$1000=Costs!$A648)*('Fixed assets'!$U$2:$U$1000=Costs!$A648)*('Fixed assets'!$R$2:$R$1000))","v":0},{"$f":"SUMPRODUCT(('Fixed assets'!$R$2:$R$1000)*('Fixed assets'!$P$2:$P$1000<$A648)*('Fixed assets'!$Q$2:$Q$1000=Costs!AJ$617))-SUMPRODUCT(('Fixed assets'!$S$2:$S$1000)*('Fixed assets'!$P$2:$P$1000<Costs!$A648)*('Fixed assets'!$Q$2:$Q$1000=Costs!AJ$617))-SUMPRODUCT(('Fixed assets'!$Q$2:$Q$1000=Costs!AJ$617)*('Fixed assets'!$U$2:$U$1000=Costs!$A648)*('Fixed assets'!$S$2:$S$1000))+SUMPRODUCT(('Fixed assets'!$Q$2:$Q$1000=Costs!AJ$617)*('Fixed assets'!$P$2:$P$1000=Costs!$A648)*('Fixed assets'!$U$2:$U$1000=Costs!$A648)*('Fixed assets'!$R$2:$R$1000))","v":0},{"$f":"SUMPRODUCT(('Fixed assets'!$R$2:$R$1000)*('Fixed assets'!$P$2:$P$1000<$A648)*('Fixed assets'!$Q$2:$Q$1000=Costs!AK$617))-SUMPRODUCT(('Fixed assets'!$S$2:$S$1000)*('Fixed assets'!$P$2:$P$1000<Costs!$A648)*('Fixed assets'!$Q$2:$Q$1000=Costs!AK$617))-SUMPRODUCT(('Fixed assets'!$Q$2:$Q$1000=Costs!AK$617)*('Fixed assets'!$U$2:$U$1000=Costs!$A648)*('Fixed assets'!$S$2:$S$1000))+SUMPRODUCT(('Fixed assets'!$Q$2:$Q$1000=Costs!AK$617)*('Fixed assets'!$P$2:$P$1000=Costs!$A648)*('Fixed assets'!$U$2:$U$1000=Costs!$A648)*('Fixed assets'!$R$2:$R$1000))","v":0},{"$f":"SUMPRODUCT(('Fixed assets'!$R$2:$R$1000)*('Fixed assets'!$P$2:$P$1000<$A648)*('Fixed assets'!$Q$2:$Q$1000=Costs!AL$617))-SUMPRODUCT(('Fixed assets'!$S$2:$S$1000)*('Fixed assets'!$P$2:$P$1000<Costs!$A648)*('Fixed assets'!$Q$2:$Q$1000=Costs!AL$617))-SUMPRODUCT(('Fixed assets'!$Q$2:$Q$1000=Costs!AL$617)*('Fixed assets'!$U$2:$U$1000=Costs!$A648)*('Fixed assets'!$S$2:$S$1000))+SUMPRODUCT(('Fixed assets'!$Q$2:$Q$1000=Costs!AL$617)*('Fixed assets'!$P$2:$P$1000=Costs!$A648)*('Fixed assets'!$U$2:$U$1000=Costs!$A648)*('Fixed assets'!$R$2:$R$1000))","v":0},{"$f":"SUMPRODUCT(('Fixed assets'!$R$2:$R$1000)*('Fixed assets'!$P$2:$P$1000<$A648)*('Fixed assets'!$Q$2:$Q$1000=Costs!AM$617))-SUMPRODUCT(('Fixed assets'!$S$2:$S$1000)*('Fixed assets'!$P$2:$P$1000<Costs!$A648)*('Fixed assets'!$Q$2:$Q$1000=Costs!AM$617))-SUMPRODUCT(('Fixed assets'!$Q$2:$Q$1000=Costs!AM$617)*('Fixed assets'!$U$2:$U$1000=Costs!$A648)*('Fixed assets'!$S$2:$S$1000))+SUMPRODUCT(('Fixed assets'!$Q$2:$Q$1000=Costs!AM$617)*('Fixed assets'!$P$2:$P$1000=Costs!$A648)*('Fixed assets'!$U$2:$U$1000=Costs!$A648)*('Fixed assets'!$R$2:$R$1000))","v":0},{"$f":"SUMPRODUCT(('Fixed assets'!$R$2:$R$1000)*('Fixed assets'!$P$2:$P$1000<$A648)*('Fixed assets'!$Q$2:$Q$1000=Costs!AN$617))-SUMPRODUCT(('Fixed assets'!$S$2:$S$1000)*('Fixed assets'!$P$2:$P$1000<Costs!$A648)*('Fixed assets'!$Q$2:$Q$1000=Costs!AN$617))-SUMPRODUCT(('Fixed assets'!$Q$2:$Q$1000=Costs!AN$617)*('Fixed assets'!$U$2:$U$1000=Costs!$A648)*('Fixed assets'!$S$2:$S$1000))+SUMPRODUCT(('Fixed assets'!$Q$2:$Q$1000=Costs!AN$617)*('Fixed assets'!$P$2:$P$1000=Costs!$A648)*('Fixed assets'!$U$2:$U$1000=Costs!$A648)*('Fixed assets'!$R$2:$R$1000))","v":0},{"$f":"SUMPRODUCT(('Fixed assets'!$R$2:$R$1000)*('Fixed assets'!$P$2:$P$1000<$A648)*('Fixed assets'!$Q$2:$Q$1000=Costs!AO$617))-SUMPRODUCT(('Fixed assets'!$S$2:$S$1000)*('Fixed assets'!$P$2:$P$1000<Costs!$A648)*('Fixed assets'!$Q$2:$Q$1000=Costs!AO$617))-SUMPRODUCT(('Fixed assets'!$Q$2:$Q$1000=Costs!AO$617)*('Fixed assets'!$U$2:$U$1000=Costs!$A648)*('Fixed assets'!$S$2:$S$1000))+SUMPRODUCT(('Fixed assets'!$Q$2:$Q$1000=Costs!AO$617)*('Fixed assets'!$P$2:$P$1000=Costs!$A648)*('Fixed assets'!$U$2:$U$1000=Costs!$A648)*('Fixed assets'!$R$2:$R$1000))","v":0},{"$f":"SUMPRODUCT(('Fixed assets'!$R$2:$R$1000)*('Fixed assets'!$P$2:$P$1000<$A648)*('Fixed assets'!$Q$2:$Q$1000=Costs!AP$617))-SUMPRODUCT(('Fixed assets'!$S$2:$S$1000)*('Fixed assets'!$P$2:$P$1000<Costs!$A648)*('Fixed assets'!$Q$2:$Q$1000=Costs!AP$617))-SUMPRODUCT(('Fixed assets'!$Q$2:$Q$1000=Costs!AP$617)*('Fixed assets'!$U$2:$U$1000=Costs!$A648)*('Fixed assets'!$S$2:$S$1000))+SUMPRODUCT(('Fixed assets'!$Q$2:$Q$1000=Costs!AP$617)*('Fixed assets'!$P$2:$P$1000=Costs!$A648)*('Fixed assets'!$U$2:$U$1000=Costs!$A648)*('Fixed assets'!$R$2:$R$1000))","v":0},{"$f":"SUMPRODUCT(('Fixed assets'!$R$2:$R$1000)*('Fixed assets'!$P$2:$P$1000<$A648)*('Fixed assets'!$Q$2:$Q$1000=Costs!AQ$617))-SUMPRODUCT(('Fixed assets'!$S$2:$S$1000)*('Fixed assets'!$P$2:$P$1000<Costs!$A648)*('Fixed assets'!$Q$2:$Q$1000=Costs!AQ$617))-SUMPRODUCT(('Fixed assets'!$Q$2:$Q$1000=Costs!AQ$617)*('Fixed assets'!$U$2:$U$1000=Costs!$A648)*('Fixed assets'!$S$2:$S$1000))+SUMPRODUCT(('Fixed assets'!$Q$2:$Q$1000=Costs!AQ$617)*('Fixed assets'!$P$2:$P$1000=Costs!$A648)*('Fixed assets'!$U$2:$U$1000=Costs!$A648)*('Fixed assets'!$R$2:$R$1000))","v":0}]
[2046,0,{"$f":"SUMPRODUCT(('Fixed assets'!$R$2:$R$1000)*('Fixed assets'!$P$2:$P$1000<$A649)*('Fixed assets'!$Q$2:$Q$1000=Costs!C$617))-SUMPRODUCT(('Fixed assets'!$S$2:$S$1000)*('Fixed assets'!$P$2:$P$1000<Costs!$A649)*('Fixed assets'!$Q$2:$Q$1000=Costs!C$617))-SUMPRODUCT(('Fixed assets'!$Q$2:$Q$1000=Costs!C$617)*('Fixed assets'!$U$2:$U$1000=Costs!$A649)*('Fixed assets'!$S$2:$S$1000))+SUMPRODUCT(('Fixed assets'!$Q$2:$Q$1000=Costs!C$617)*('Fixed assets'!$P$2:$P$1000=Costs!$A649)*('Fixed assets'!$U$2:$U$1000=Costs!$A649)*('Fixed assets'!$R$2:$R$1000))","v":0},{"$f":"SUMPRODUCT(('Fixed assets'!$R$2:$R$1000)*('Fixed assets'!$P$2:$P$1000<$A649)*('Fixed assets'!$Q$2:$Q$1000=Costs!D$617))-SUMPRODUCT(('Fixed assets'!$S$2:$S$1000)*('Fixed assets'!$P$2:$P$1000<Costs!$A649)*('Fixed assets'!$Q$2:$Q$1000=Costs!D$617))-SUMPRODUCT(('Fixed assets'!$Q$2:$Q$1000=Costs!D$617)*('Fixed assets'!$U$2:$U$1000=Costs!$A649)*('Fixed assets'!$S$2:$S$1000))+SUMPRODUCT(('Fixed assets'!$Q$2:$Q$1000=Costs!D$617)*('Fixed assets'!$P$2:$P$1000=Costs!$A649)*('Fixed assets'!$U$2:$U$1000=Costs!$A649)*('Fixed assets'!$R$2:$R$1000))","v":0},{"$f":"SUMPRODUCT(('Fixed assets'!$R$2:$R$1000)*('Fixed assets'!$P$2:$P$1000<$A649)*('Fixed assets'!$Q$2:$Q$1000=Costs!E$617))-SUMPRODUCT(('Fixed assets'!$S$2:$S$1000)*('Fixed assets'!$P$2:$P$1000<Costs!$A649)*('Fixed assets'!$Q$2:$Q$1000=Costs!E$617))-SUMPRODUCT(('Fixed assets'!$Q$2:$Q$1000=Costs!E$617)*('Fixed assets'!$U$2:$U$1000=Costs!$A649)*('Fixed assets'!$S$2:$S$1000))+SUMPRODUCT(('Fixed assets'!$Q$2:$Q$1000=Costs!E$617)*('Fixed assets'!$P$2:$P$1000=Costs!$A649)*('Fixed assets'!$U$2:$U$1000=Costs!$A649)*('Fixed assets'!$R$2:$R$1000))","v":0},{"$f":"SUMPRODUCT(('Fixed assets'!$R$2:$R$1000)*('Fixed assets'!$P$2:$P$1000<$A649)*('Fixed assets'!$Q$2:$Q$1000=Costs!F$617))-SUMPRODUCT(('Fixed assets'!$S$2:$S$1000)*('Fixed assets'!$P$2:$P$1000<Costs!$A649)*('Fixed assets'!$Q$2:$Q$1000=Costs!F$617))-SUMPRODUCT(('Fixed assets'!$Q$2:$Q$1000=Costs!F$617)*('Fixed assets'!$U$2:$U$1000=Costs!$A649)*('Fixed assets'!$S$2:$S$1000))+SUMPRODUCT(('Fixed assets'!$Q$2:$Q$1000=Costs!F$617)*('Fixed assets'!$P$2:$P$1000=Costs!$A649)*('Fixed assets'!$U$2:$U$1000=Costs!$A649)*('Fixed assets'!$R$2:$R$1000))","v":0},{"$f":"SUMPRODUCT(('Fixed assets'!$R$2:$R$1000)*('Fixed assets'!$P$2:$P$1000<$A649)*('Fixed assets'!$Q$2:$Q$1000=Costs!G$617))-SUMPRODUCT(('Fixed assets'!$S$2:$S$1000)*('Fixed assets'!$P$2:$P$1000<Costs!$A649)*('Fixed assets'!$Q$2:$Q$1000=Costs!G$617))-SUMPRODUCT(('Fixed assets'!$Q$2:$Q$1000=Costs!G$617)*('Fixed assets'!$U$2:$U$1000=Costs!$A649)*('Fixed assets'!$S$2:$S$1000))+SUMPRODUCT(('Fixed assets'!$Q$2:$Q$1000=Costs!G$617)*('Fixed assets'!$P$2:$P$1000=Costs!$A649)*('Fixed assets'!$U$2:$U$1000=Costs!$A649)*('Fixed assets'!$R$2:$R$1000))","v":0},{"$f":"SUMPRODUCT(('Fixed assets'!$R$2:$R$1000)*('Fixed assets'!$P$2:$P$1000<$A649)*('Fixed assets'!$Q$2:$Q$1000=Costs!H$617))-SUMPRODUCT(('Fixed assets'!$S$2:$S$1000)*('Fixed assets'!$P$2:$P$1000<Costs!$A649)*('Fixed assets'!$Q$2:$Q$1000=Costs!H$617))-SUMPRODUCT(('Fixed assets'!$Q$2:$Q$1000=Costs!H$617)*('Fixed assets'!$U$2:$U$1000=Costs!$A649)*('Fixed assets'!$S$2:$S$1000))+SUMPRODUCT(('Fixed assets'!$Q$2:$Q$1000=Costs!H$617)*('Fixed assets'!$P$2:$P$1000=Costs!$A649)*('Fixed assets'!$U$2:$U$1000=Costs!$A649)*('Fixed assets'!$R$2:$R$1000))","v":0},{"$f":"SUMPRODUCT(('Fixed assets'!$R$2:$R$1000)*('Fixed assets'!$P$2:$P$1000<$A649)*('Fixed assets'!$Q$2:$Q$1000=Costs!I$617))-SUMPRODUCT(('Fixed assets'!$S$2:$S$1000)*('Fixed assets'!$P$2:$P$1000<Costs!$A649)*('Fixed assets'!$Q$2:$Q$1000=Costs!I$617))-SUMPRODUCT(('Fixed assets'!$Q$2:$Q$1000=Costs!I$617)*('Fixed assets'!$U$2:$U$1000=Costs!$A649)*('Fixed assets'!$S$2:$S$1000))+SUMPRODUCT(('Fixed assets'!$Q$2:$Q$1000=Costs!I$617)*('Fixed assets'!$P$2:$P$1000=Costs!$A649)*('Fixed assets'!$U$2:$U$1000=Costs!$A649)*('Fixed assets'!$R$2:$R$1000))","v":0},{"$f":"SUMPRODUCT(('Fixed assets'!$R$2:$R$1000)*('Fixed assets'!$P$2:$P$1000<$A649)*('Fixed assets'!$Q$2:$Q$1000=Costs!J$617))-SUMPRODUCT(('Fixed assets'!$S$2:$S$1000)*('Fixed assets'!$P$2:$P$1000<Costs!$A649)*('Fixed assets'!$Q$2:$Q$1000=Costs!J$617))-SUMPRODUCT(('Fixed assets'!$Q$2:$Q$1000=Costs!J$617)*('Fixed assets'!$U$2:$U$1000=Costs!$A649)*('Fixed assets'!$S$2:$S$1000))+SUMPRODUCT(('Fixed assets'!$Q$2:$Q$1000=Costs!J$617)*('Fixed assets'!$P$2:$P$1000=Costs!$A649)*('Fixed assets'!$U$2:$U$1000=Costs!$A649)*('Fixed assets'!$R$2:$R$1000))","v":0},{"$f":"SUMPRODUCT(('Fixed assets'!$R$2:$R$1000)*('Fixed assets'!$P$2:$P$1000<$A649)*('Fixed assets'!$Q$2:$Q$1000=Costs!K$617))-SUMPRODUCT(('Fixed assets'!$S$2:$S$1000)*('Fixed assets'!$P$2:$P$1000<Costs!$A649)*('Fixed assets'!$Q$2:$Q$1000=Costs!K$617))-SUMPRODUCT(('Fixed assets'!$Q$2:$Q$1000=Costs!K$617)*('Fixed assets'!$U$2:$U$1000=Costs!$A649)*('Fixed assets'!$S$2:$S$1000))+SUMPRODUCT(('Fixed assets'!$Q$2:$Q$1000=Costs!K$617)*('Fixed assets'!$P$2:$P$1000=Costs!$A649)*('Fixed assets'!$U$2:$U$1000=Costs!$A649)*('Fixed assets'!$R$2:$R$1000))","v":0},{"$f":"SUMPRODUCT(('Fixed assets'!$R$2:$R$1000)*('Fixed assets'!$P$2:$P$1000<$A649)*('Fixed assets'!$Q$2:$Q$1000=Costs!L$617))-SUMPRODUCT(('Fixed assets'!$S$2:$S$1000)*('Fixed assets'!$P$2:$P$1000<Costs!$A649)*('Fixed assets'!$Q$2:$Q$1000=Costs!L$617))-SUMPRODUCT(('Fixed assets'!$Q$2:$Q$1000=Costs!L$617)*('Fixed assets'!$U$2:$U$1000=Costs!$A649)*('Fixed assets'!$S$2:$S$1000))+SUMPRODUCT(('Fixed assets'!$Q$2:$Q$1000=Costs!L$617)*('Fixed assets'!$P$2:$P$1000=Costs!$A649)*('Fixed assets'!$U$2:$U$1000=Costs!$A649)*('Fixed assets'!$R$2:$R$1000))","v":0},{"$f":"SUMPRODUCT(('Fixed assets'!$R$2:$R$1000)*('Fixed assets'!$P$2:$P$1000<$A649)*('Fixed assets'!$Q$2:$Q$1000=Costs!M$617))-SUMPRODUCT(('Fixed assets'!$S$2:$S$1000)*('Fixed assets'!$P$2:$P$1000<Costs!$A649)*('Fixed assets'!$Q$2:$Q$1000=Costs!M$617))-SUMPRODUCT(('Fixed assets'!$Q$2:$Q$1000=Costs!M$617)*('Fixed assets'!$U$2:$U$1000=Costs!$A649)*('Fixed assets'!$S$2:$S$1000))+SUMPRODUCT(('Fixed assets'!$Q$2:$Q$1000=Costs!M$617)*('Fixed assets'!$P$2:$P$1000=Costs!$A649)*('Fixed assets'!$U$2:$U$1000=Costs!$A649)*('Fixed assets'!$R$2:$R$1000))","v":0},{"$f":"SUMPRODUCT(('Fixed assets'!$R$2:$R$1000)*('Fixed assets'!$P$2:$P$1000<$A649)*('Fixed assets'!$Q$2:$Q$1000=Costs!N$617))-SUMPRODUCT(('Fixed assets'!$S$2:$S$1000)*('Fixed assets'!$P$2:$P$1000<Costs!$A649)*('Fixed assets'!$Q$2:$Q$1000=Costs!N$617))-SUMPRODUCT(('Fixed assets'!$Q$2:$Q$1000=Costs!N$617)*('Fixed assets'!$U$2:$U$1000=Costs!$A649)*('Fixed assets'!$S$2:$S$1000))+SUMPRODUCT(('Fixed assets'!$Q$2:$Q$1000=Costs!N$617)*('Fixed assets'!$P$2:$P$1000=Costs!$A649)*('Fixed assets'!$U$2:$U$1000=Costs!$A649)*('Fixed assets'!$R$2:$R$1000))","v":0},{"$f":"SUMPRODUCT(('Fixed assets'!$R$2:$R$1000)*('Fixed assets'!$P$2:$P$1000<$A649)*('Fixed assets'!$Q$2:$Q$1000=Costs!O$617))-SUMPRODUCT(('Fixed assets'!$S$2:$S$1000)*('Fixed assets'!$P$2:$P$1000<Costs!$A649)*('Fixed assets'!$Q$2:$Q$1000=Costs!O$617))-SUMPRODUCT(('Fixed assets'!$Q$2:$Q$1000=Costs!O$617)*('Fixed assets'!$U$2:$U$1000=Costs!$A649)*('Fixed assets'!$S$2:$S$1000))+SUMPRODUCT(('Fixed assets'!$Q$2:$Q$1000=Costs!O$617)*('Fixed assets'!$P$2:$P$1000=Costs!$A649)*('Fixed assets'!$U$2:$U$1000=Costs!$A649)*('Fixed assets'!$R$2:$R$1000))","v":0},{"$f":"SUMPRODUCT(('Fixed assets'!$R$2:$R$1000)*('Fixed assets'!$P$2:$P$1000<$A649)*('Fixed assets'!$Q$2:$Q$1000=Costs!P$617))-SUMPRODUCT(('Fixed assets'!$S$2:$S$1000)*('Fixed assets'!$P$2:$P$1000<Costs!$A649)*('Fixed assets'!$Q$2:$Q$1000=Costs!P$617))-SUMPRODUCT(('Fixed assets'!$Q$2:$Q$1000=Costs!P$617)*('Fixed assets'!$U$2:$U$1000=Costs!$A649)*('Fixed assets'!$S$2:$S$1000))+SUMPRODUCT(('Fixed assets'!$Q$2:$Q$1000=Costs!P$617)*('Fixed assets'!$P$2:$P$1000=Costs!$A649)*('Fixed assets'!$U$2:$U$1000=Costs!$A649)*('Fixed assets'!$R$2:$R$1000))","v":0},{"$f":"SUMPRODUCT(('Fixed assets'!$R$2:$R$1000)*('Fixed assets'!$P$2:$P$1000<$A649)*('Fixed assets'!$Q$2:$Q$1000=Costs!Q$617))-SUMPRODUCT(('Fixed assets'!$S$2:$S$1000)*('Fixed assets'!$P$2:$P$1000<Costs!$A649)*('Fixed assets'!$Q$2:$Q$1000=Costs!Q$617))-SUMPRODUCT(('Fixed assets'!$Q$2:$Q$1000=Costs!Q$617)*('Fixed assets'!$U$2:$U$1000=Costs!$A649)*('Fixed assets'!$S$2:$S$1000))+SUMPRODUCT(('Fixed assets'!$Q$2:$Q$1000=Costs!Q$617)*('Fixed assets'!$P$2:$P$1000=Costs!$A649)*('Fixed assets'!$U$2:$U$1000=Costs!$A649)*('Fixed assets'!$R$2:$R$1000))","v":0},{"$f":"SUMPRODUCT(('Fixed assets'!$R$2:$R$1000)*('Fixed assets'!$P$2:$P$1000<$A649)*('Fixed assets'!$Q$2:$Q$1000=Costs!R$617))-SUMPRODUCT(('Fixed assets'!$S$2:$S$1000)*('Fixed assets'!$P$2:$P$1000<Costs!$A649)*('Fixed assets'!$Q$2:$Q$1000=Costs!R$617))-SUMPRODUCT(('Fixed assets'!$Q$2:$Q$1000=Costs!R$617)*('Fixed assets'!$U$2:$U$1000=Costs!$A649)*('Fixed assets'!$S$2:$S$1000))+SUMPRODUCT(('Fixed assets'!$Q$2:$Q$1000=Costs!R$617)*('Fixed assets'!$P$2:$P$1000=Costs!$A649)*('Fixed assets'!$U$2:$U$1000=Costs!$A649)*('Fixed assets'!$R$2:$R$1000))","v":0},{"$f":"SUMPRODUCT(('Fixed assets'!$R$2:$R$1000)*('Fixed assets'!$P$2:$P$1000<$A649)*('Fixed assets'!$Q$2:$Q$1000=Costs!S$617))-SUMPRODUCT(('Fixed assets'!$S$2:$S$1000)*('Fixed assets'!$P$2:$P$1000<Costs!$A649)*('Fixed assets'!$Q$2:$Q$1000=Costs!S$617))-SUMPRODUCT(('Fixed assets'!$Q$2:$Q$1000=Costs!S$617)*('Fixed assets'!$U$2:$U$1000=Costs!$A649)*('Fixed assets'!$S$2:$S$1000))+SUMPRODUCT(('Fixed assets'!$Q$2:$Q$1000=Costs!S$617)*('Fixed assets'!$P$2:$P$1000=Costs!$A649)*('Fixed assets'!$U$2:$U$1000=Costs!$A649)*('Fixed assets'!$R$2:$R$1000))","v":0},{"$f":"SUMPRODUCT(('Fixed assets'!$R$2:$R$1000)*('Fixed assets'!$P$2:$P$1000<$A649)*('Fixed assets'!$Q$2:$Q$1000=Costs!T$617))-SUMPRODUCT(('Fixed assets'!$S$2:$S$1000)*('Fixed assets'!$P$2:$P$1000<Costs!$A649)*('Fixed assets'!$Q$2:$Q$1000=Costs!T$617))-SUMPRODUCT(('Fixed assets'!$Q$2:$Q$1000=Costs!T$617)*('Fixed assets'!$U$2:$U$1000=Costs!$A649)*('Fixed assets'!$S$2:$S$1000))+SUMPRODUCT(('Fixed assets'!$Q$2:$Q$1000=Costs!T$617)*('Fixed assets'!$P$2:$P$1000=Costs!$A649)*('Fixed assets'!$U$2:$U$1000=Costs!$A649)*('Fixed assets'!$R$2:$R$1000))","v":0},{"$f":"SUMPRODUCT(('Fixed assets'!$R$2:$R$1000)*('Fixed assets'!$P$2:$P$1000<$A649)*('Fixed assets'!$Q$2:$Q$1000=Costs!U$617))-SUMPRODUCT(('Fixed assets'!$S$2:$S$1000)*('Fixed assets'!$P$2:$P$1000<Costs!$A649)*('Fixed assets'!$Q$2:$Q$1000=Costs!U$617))-SUMPRODUCT(('Fixed assets'!$Q$2:$Q$1000=Costs!U$617)*('Fixed assets'!$U$2:$U$1000=Costs!$A649)*('Fixed assets'!$S$2:$S$1000))+SUMPRODUCT(('Fixed assets'!$Q$2:$Q$1000=Costs!U$617)*('Fixed assets'!$P$2:$P$1000=Costs!$A649)*('Fixed assets'!$U$2:$U$1000=Costs!$A649)*('Fixed assets'!$R$2:$R$1000))","v":0},{"$f":"SUMPRODUCT(('Fixed assets'!$R$2:$R$1000)*('Fixed assets'!$P$2:$P$1000<$A649)*('Fixed assets'!$Q$2:$Q$1000=Costs!V$617))-SUMPRODUCT(('Fixed assets'!$S$2:$S$1000)*('Fixed assets'!$P$2:$P$1000<Costs!$A649)*('Fixed assets'!$Q$2:$Q$1000=Costs!V$617))-SUMPRODUCT(('Fixed assets'!$Q$2:$Q$1000=Costs!V$617)*('Fixed assets'!$U$2:$U$1000=Costs!$A649)*('Fixed assets'!$S$2:$S$1000))+SUMPRODUCT(('Fixed assets'!$Q$2:$Q$1000=Costs!V$617)*('Fixed assets'!$P$2:$P$1000=Costs!$A649)*('Fixed assets'!$U$2:$U$1000=Costs!$A649)*('Fixed assets'!$R$2:$R$1000))","v":0},{"$f":"SUMPRODUCT(('Fixed assets'!$R$2:$R$1000)*('Fixed assets'!$P$2:$P$1000<$A649)*('Fixed assets'!$Q$2:$Q$1000=Costs!W$617))-SUMPRODUCT(('Fixed assets'!$S$2:$S$1000)*('Fixed assets'!$P$2:$P$1000<Costs!$A649)*('Fixed assets'!$Q$2:$Q$1000=Costs!W$617))-SUMPRODUCT(('Fixed assets'!$Q$2:$Q$1000=Costs!W$617)*('Fixed assets'!$U$2:$U$1000=Costs!$A649)*('Fixed assets'!$S$2:$S$1000))+SUMPRODUCT(('Fixed assets'!$Q$2:$Q$1000=Costs!W$617)*('Fixed assets'!$P$2:$P$1000=Costs!$A649)*('Fixed assets'!$U$2:$U$1000=Costs!$A649)*('Fixed assets'!$R$2:$R$1000))","v":0},{"$f":"SUMPRODUCT(('Fixed assets'!$R$2:$R$1000)*('Fixed assets'!$P$2:$P$1000<$A649)*('Fixed assets'!$Q$2:$Q$1000=Costs!X$617))-SUMPRODUCT(('Fixed assets'!$S$2:$S$1000)*('Fixed assets'!$P$2:$P$1000<Costs!$A649)*('Fixed assets'!$Q$2:$Q$1000=Costs!X$617))-SUMPRODUCT(('Fixed assets'!$Q$2:$Q$1000=Costs!X$617)*('Fixed assets'!$U$2:$U$1000=Costs!$A649)*('Fixed assets'!$S$2:$S$1000))+SUMPRODUCT(('Fixed assets'!$Q$2:$Q$1000=Costs!X$617)*('Fixed assets'!$P$2:$P$1000=Costs!$A649)*('Fixed assets'!$U$2:$U$1000=Costs!$A649)*('Fixed assets'!$R$2:$R$1000))","v":0},{"$f":"SUMPRODUCT(('Fixed assets'!$R$2:$R$1000)*('Fixed assets'!$P$2:$P$1000<$A649)*('Fixed assets'!$Q$2:$Q$1000=Costs!Y$617))-SUMPRODUCT(('Fixed assets'!$S$2:$S$1000)*('Fixed assets'!$P$2:$P$1000<Costs!$A649)*('Fixed assets'!$Q$2:$Q$1000=Costs!Y$617))-SUMPRODUCT(('Fixed assets'!$Q$2:$Q$1000=Costs!Y$617)*('Fixed assets'!$U$2:$U$1000=Costs!$A649)*('Fixed assets'!$S$2:$S$1000))+SUMPRODUCT(('Fixed assets'!$Q$2:$Q$1000=Costs!Y$617)*('Fixed assets'!$P$2:$P$1000=Costs!$A649)*('Fixed assets'!$U$2:$U$1000=Costs!$A649)*('Fixed assets'!$R$2:$R$1000))","v":0},{"$f":"SUMPRODUCT(('Fixed assets'!$R$2:$R$1000)*('Fixed assets'!$P$2:$P$1000<$A649)*('Fixed assets'!$Q$2:$Q$1000=Costs!Z$617))-SUMPRODUCT(('Fixed assets'!$S$2:$S$1000)*('Fixed assets'!$P$2:$P$1000<Costs!$A649)*('Fixed assets'!$Q$2:$Q$1000=Costs!Z$617))-SUMPRODUCT(('Fixed assets'!$Q$2:$Q$1000=Costs!Z$617)*('Fixed assets'!$U$2:$U$1000=Costs!$A649)*('Fixed assets'!$S$2:$S$1000))+SUMPRODUCT(('Fixed assets'!$Q$2:$Q$1000=Costs!Z$617)*('Fixed assets'!$P$2:$P$1000=Costs!$A649)*('Fixed assets'!$U$2:$U$1000=Costs!$A649)*('Fixed assets'!$R$2:$R$1000))","v":0},{"$f":"SUMPRODUCT(('Fixed assets'!$R$2:$R$1000)*('Fixed assets'!$P$2:$P$1000<$A649)*('Fixed assets'!$Q$2:$Q$1000=Costs!AA$617))-SUMPRODUCT(('Fixed assets'!$S$2:$S$1000)*('Fixed assets'!$P$2:$P$1000<Costs!$A649)*('Fixed assets'!$Q$2:$Q$1000=Costs!AA$617))-SUMPRODUCT(('Fixed assets'!$Q$2:$Q$1000=Costs!AA$617)*('Fixed assets'!$U$2:$U$1000=Costs!$A649)*('Fixed assets'!$S$2:$S$1000))+SUMPRODUCT(('Fixed assets'!$Q$2:$Q$1000=Costs!AA$617)*('Fixed assets'!$P$2:$P$1000=Costs!$A649)*('Fixed assets'!$U$2:$U$1000=Costs!$A649)*('Fixed assets'!$R$2:$R$1000))","v":0},{"$f":"SUMPRODUCT(('Fixed assets'!$R$2:$R$1000)*('Fixed assets'!$P$2:$P$1000<$A649)*('Fixed assets'!$Q$2:$Q$1000=Costs!AB$617))-SUMPRODUCT(('Fixed assets'!$S$2:$S$1000)*('Fixed assets'!$P$2:$P$1000<Costs!$A649)*('Fixed assets'!$Q$2:$Q$1000=Costs!AB$617))-SUMPRODUCT(('Fixed assets'!$Q$2:$Q$1000=Costs!AB$617)*('Fixed assets'!$U$2:$U$1000=Costs!$A649)*('Fixed assets'!$S$2:$S$1000))+SUMPRODUCT(('Fixed assets'!$Q$2:$Q$1000=Costs!AB$617)*('Fixed assets'!$P$2:$P$1000=Costs!$A649)*('Fixed assets'!$U$2:$U$1000=Costs!$A649)*('Fixed assets'!$R$2:$R$1000))","v":0},{"$f":"SUMPRODUCT(('Fixed assets'!$R$2:$R$1000)*('Fixed assets'!$P$2:$P$1000<$A649)*('Fixed assets'!$Q$2:$Q$1000=Costs!AC$617))-SUMPRODUCT(('Fixed assets'!$S$2:$S$1000)*('Fixed assets'!$P$2:$P$1000<Costs!$A649)*('Fixed assets'!$Q$2:$Q$1000=Costs!AC$617))-SUMPRODUCT(('Fixed assets'!$Q$2:$Q$1000=Costs!AC$617)*('Fixed assets'!$U$2:$U$1000=Costs!$A649)*('Fixed assets'!$S$2:$S$1000))+SUMPRODUCT(('Fixed assets'!$Q$2:$Q$1000=Costs!AC$617)*('Fixed assets'!$P$2:$P$1000=Costs!$A649)*('Fixed assets'!$U$2:$U$1000=Costs!$A649)*('Fixed assets'!$R$2:$R$1000))","v":0},{"$f":"SUMPRODUCT(('Fixed assets'!$R$2:$R$1000)*('Fixed assets'!$P$2:$P$1000<$A649)*('Fixed assets'!$Q$2:$Q$1000=Costs!AD$617))-SUMPRODUCT(('Fixed assets'!$S$2:$S$1000)*('Fixed assets'!$P$2:$P$1000<Costs!$A649)*('Fixed assets'!$Q$2:$Q$1000=Costs!AD$617))-SUMPRODUCT(('Fixed assets'!$Q$2:$Q$1000=Costs!AD$617)*('Fixed assets'!$U$2:$U$1000=Costs!$A649)*('Fixed assets'!$S$2:$S$1000))+SUMPRODUCT(('Fixed assets'!$Q$2:$Q$1000=Costs!AD$617)*('Fixed assets'!$P$2:$P$1000=Costs!$A649)*('Fixed assets'!$U$2:$U$1000=Costs!$A649)*('Fixed assets'!$R$2:$R$1000))","v":0},{"$f":"SUMPRODUCT(('Fixed assets'!$R$2:$R$1000)*('Fixed assets'!$P$2:$P$1000<$A649)*('Fixed assets'!$Q$2:$Q$1000=Costs!AE$617))-SUMPRODUCT(('Fixed assets'!$S$2:$S$1000)*('Fixed assets'!$P$2:$P$1000<Costs!$A649)*('Fixed assets'!$Q$2:$Q$1000=Costs!AE$617))-SUMPRODUCT(('Fixed assets'!$Q$2:$Q$1000=Costs!AE$617)*('Fixed assets'!$U$2:$U$1000=Costs!$A649)*('Fixed assets'!$S$2:$S$1000))+SUMPRODUCT(('Fixed assets'!$Q$2:$Q$1000=Costs!AE$617)*('Fixed assets'!$P$2:$P$1000=Costs!$A649)*('Fixed assets'!$U$2:$U$1000=Costs!$A649)*('Fixed assets'!$R$2:$R$1000))","v":0},{"$f":"SUMPRODUCT(('Fixed assets'!$R$2:$R$1000)*('Fixed assets'!$P$2:$P$1000<$A649)*('Fixed assets'!$Q$2:$Q$1000=Costs!AF$617))-SUMPRODUCT(('Fixed assets'!$S$2:$S$1000)*('Fixed assets'!$P$2:$P$1000<Costs!$A649)*('Fixed assets'!$Q$2:$Q$1000=Costs!AF$617))-SUMPRODUCT(('Fixed assets'!$Q$2:$Q$1000=Costs!AF$617)*('Fixed assets'!$U$2:$U$1000=Costs!$A649)*('Fixed assets'!$S$2:$S$1000))+SUMPRODUCT(('Fixed assets'!$Q$2:$Q$1000=Costs!AF$617)*('Fixed assets'!$P$2:$P$1000=Costs!$A649)*('Fixed assets'!$U$2:$U$1000=Costs!$A649)*('Fixed assets'!$R$2:$R$1000))","v":0},{"$f":"SUMPRODUCT(('Fixed assets'!$R$2:$R$1000)*('Fixed assets'!$P$2:$P$1000<$A649)*('Fixed assets'!$Q$2:$Q$1000=Costs!AG$617))-SUMPRODUCT(('Fixed assets'!$S$2:$S$1000)*('Fixed assets'!$P$2:$P$1000<Costs!$A649)*('Fixed assets'!$Q$2:$Q$1000=Costs!AG$617))-SUMPRODUCT(('Fixed assets'!$Q$2:$Q$1000=Costs!AG$617)*('Fixed assets'!$U$2:$U$1000=Costs!$A649)*('Fixed assets'!$S$2:$S$1000))+SUMPRODUCT(('Fixed assets'!$Q$2:$Q$1000=Costs!AG$617)*('Fixed assets'!$P$2:$P$1000=Costs!$A649)*('Fixed assets'!$U$2:$U$1000=Costs!$A649)*('Fixed assets'!$R$2:$R$1000))","v":0},{"$f":"SUMPRODUCT(('Fixed assets'!$R$2:$R$1000)*('Fixed assets'!$P$2:$P$1000<$A649)*('Fixed assets'!$Q$2:$Q$1000=Costs!AH$617))-SUMPRODUCT(('Fixed assets'!$S$2:$S$1000)*('Fixed assets'!$P$2:$P$1000<Costs!$A649)*('Fixed assets'!$Q$2:$Q$1000=Costs!AH$617))-SUMPRODUCT(('Fixed assets'!$Q$2:$Q$1000=Costs!AH$617)*('Fixed assets'!$U$2:$U$1000=Costs!$A649)*('Fixed assets'!$S$2:$S$1000))+SUMPRODUCT(('Fixed assets'!$Q$2:$Q$1000=Costs!AH$617)*('Fixed assets'!$P$2:$P$1000=Costs!$A649)*('Fixed assets'!$U$2:$U$1000=Costs!$A649)*('Fixed assets'!$R$2:$R$1000))","v":0},{"$f":"SUMPRODUCT(('Fixed assets'!$R$2:$R$1000)*('Fixed assets'!$P$2:$P$1000<$A649)*('Fixed assets'!$Q$2:$Q$1000=Costs!AI$617))-SUMPRODUCT(('Fixed assets'!$S$2:$S$1000)*('Fixed assets'!$P$2:$P$1000<Costs!$A649)*('Fixed assets'!$Q$2:$Q$1000=Costs!AI$617))-SUMPRODUCT(('Fixed assets'!$Q$2:$Q$1000=Costs!AI$617)*('Fixed assets'!$U$2:$U$1000=Costs!$A649)*('Fixed assets'!$S$2:$S$1000))+SUMPRODUCT(('Fixed assets'!$Q$2:$Q$1000=Costs!AI$617)*('Fixed assets'!$P$2:$P$1000=Costs!$A649)*('Fixed assets'!$U$2:$U$1000=Costs!$A649)*('Fixed assets'!$R$2:$R$1000))","v":0},{"$f":"SUMPRODUCT(('Fixed assets'!$R$2:$R$1000)*('Fixed assets'!$P$2:$P$1000<$A649)*('Fixed assets'!$Q$2:$Q$1000=Costs!AJ$617))-SUMPRODUCT(('Fixed assets'!$S$2:$S$1000)*('Fixed assets'!$P$2:$P$1000<Costs!$A649)*('Fixed assets'!$Q$2:$Q$1000=Costs!AJ$617))-SUMPRODUCT(('Fixed assets'!$Q$2:$Q$1000=Costs!AJ$617)*('Fixed assets'!$U$2:$U$1000=Costs!$A649)*('Fixed assets'!$S$2:$S$1000))+SUMPRODUCT(('Fixed assets'!$Q$2:$Q$1000=Costs!AJ$617)*('Fixed assets'!$P$2:$P$1000=Costs!$A649)*('Fixed assets'!$U$2:$U$1000=Costs!$A649)*('Fixed assets'!$R$2:$R$1000))","v":0},{"$f":"SUMPRODUCT(('Fixed assets'!$R$2:$R$1000)*('Fixed assets'!$P$2:$P$1000<$A649)*('Fixed assets'!$Q$2:$Q$1000=Costs!AK$617))-SUMPRODUCT(('Fixed assets'!$S$2:$S$1000)*('Fixed assets'!$P$2:$P$1000<Costs!$A649)*('Fixed assets'!$Q$2:$Q$1000=Costs!AK$617))-SUMPRODUCT(('Fixed assets'!$Q$2:$Q$1000=Costs!AK$617)*('Fixed assets'!$U$2:$U$1000=Costs!$A649)*('Fixed assets'!$S$2:$S$1000))+SUMPRODUCT(('Fixed assets'!$Q$2:$Q$1000=Costs!AK$617)*('Fixed assets'!$P$2:$P$1000=Costs!$A649)*('Fixed assets'!$U$2:$U$1000=Costs!$A649)*('Fixed assets'!$R$2:$R$1000))","v":0},{"$f":"SUMPRODUCT(('Fixed assets'!$R$2:$R$1000)*('Fixed assets'!$P$2:$P$1000<$A649)*('Fixed assets'!$Q$2:$Q$1000=Costs!AL$617))-SUMPRODUCT(('Fixed assets'!$S$2:$S$1000)*('Fixed assets'!$P$2:$P$1000<Costs!$A649)*('Fixed assets'!$Q$2:$Q$1000=Costs!AL$617))-SUMPRODUCT(('Fixed assets'!$Q$2:$Q$1000=Costs!AL$617)*('Fixed assets'!$U$2:$U$1000=Costs!$A649)*('Fixed assets'!$S$2:$S$1000))+SUMPRODUCT(('Fixed assets'!$Q$2:$Q$1000=Costs!AL$617)*('Fixed assets'!$P$2:$P$1000=Costs!$A649)*('Fixed assets'!$U$2:$U$1000=Costs!$A649)*('Fixed assets'!$R$2:$R$1000))","v":0},{"$f":"SUMPRODUCT(('Fixed assets'!$R$2:$R$1000)*('Fixed assets'!$P$2:$P$1000<$A649)*('Fixed assets'!$Q$2:$Q$1000=Costs!AM$617))-SUMPRODUCT(('Fixed assets'!$S$2:$S$1000)*('Fixed assets'!$P$2:$P$1000<Costs!$A649)*('Fixed assets'!$Q$2:$Q$1000=Costs!AM$617))-SUMPRODUCT(('Fixed assets'!$Q$2:$Q$1000=Costs!AM$617)*('Fixed assets'!$U$2:$U$1000=Costs!$A649)*('Fixed assets'!$S$2:$S$1000))+SUMPRODUCT(('Fixed assets'!$Q$2:$Q$1000=Costs!AM$617)*('Fixed assets'!$P$2:$P$1000=Costs!$A649)*('Fixed assets'!$U$2:$U$1000=Costs!$A649)*('Fixed assets'!$R$2:$R$1000))","v":0},{"$f":"SUMPRODUCT(('Fixed assets'!$R$2:$R$1000)*('Fixed assets'!$P$2:$P$1000<$A649)*('Fixed assets'!$Q$2:$Q$1000=Costs!AN$617))-SUMPRODUCT(('Fixed assets'!$S$2:$S$1000)*('Fixed assets'!$P$2:$P$1000<Costs!$A649)*('Fixed assets'!$Q$2:$Q$1000=Costs!AN$617))-SUMPRODUCT(('Fixed assets'!$Q$2:$Q$1000=Costs!AN$617)*('Fixed assets'!$U$2:$U$1000=Costs!$A649)*('Fixed assets'!$S$2:$S$1000))+SUMPRODUCT(('Fixed assets'!$Q$2:$Q$1000=Costs!AN$617)*('Fixed assets'!$P$2:$P$1000=Costs!$A649)*('Fixed assets'!$U$2:$U$1000=Costs!$A649)*('Fixed assets'!$R$2:$R$1000))","v":0},{"$f":"SUMPRODUCT(('Fixed assets'!$R$2:$R$1000)*('Fixed assets'!$P$2:$P$1000<$A649)*('Fixed assets'!$Q$2:$Q$1000=Costs!AO$617))-SUMPRODUCT(('Fixed assets'!$S$2:$S$1000)*('Fixed assets'!$P$2:$P$1000<Costs!$A649)*('Fixed assets'!$Q$2:$Q$1000=Costs!AO$617))-SUMPRODUCT(('Fixed assets'!$Q$2:$Q$1000=Costs!AO$617)*('Fixed assets'!$U$2:$U$1000=Costs!$A649)*('Fixed assets'!$S$2:$S$1000))+SUMPRODUCT(('Fixed assets'!$Q$2:$Q$1000=Costs!AO$617)*('Fixed assets'!$P$2:$P$1000=Costs!$A649)*('Fixed assets'!$U$2:$U$1000=Costs!$A649)*('Fixed assets'!$R$2:$R$1000))","v":0},{"$f":"SUMPRODUCT(('Fixed assets'!$R$2:$R$1000)*('Fixed assets'!$P$2:$P$1000<$A649)*('Fixed assets'!$Q$2:$Q$1000=Costs!AP$617))-SUMPRODUCT(('Fixed assets'!$S$2:$S$1000)*('Fixed assets'!$P$2:$P$1000<Costs!$A649)*('Fixed assets'!$Q$2:$Q$1000=Costs!AP$617))-SUMPRODUCT(('Fixed assets'!$Q$2:$Q$1000=Costs!AP$617)*('Fixed assets'!$U$2:$U$1000=Costs!$A649)*('Fixed assets'!$S$2:$S$1000))+SUMPRODUCT(('Fixed assets'!$Q$2:$Q$1000=Costs!AP$617)*('Fixed assets'!$P$2:$P$1000=Costs!$A649)*('Fixed assets'!$U$2:$U$1000=Costs!$A649)*('Fixed assets'!$R$2:$R$1000))","v":0},{"$f":"SUMPRODUCT(('Fixed assets'!$R$2:$R$1000)*('Fixed assets'!$P$2:$P$1000<$A649)*('Fixed assets'!$Q$2:$Q$1000=Costs!AQ$617))-SUMPRODUCT(('Fixed assets'!$S$2:$S$1000)*('Fixed assets'!$P$2:$P$1000<Costs!$A649)*('Fixed assets'!$Q$2:$Q$1000=Costs!AQ$617))-SUMPRODUCT(('Fixed assets'!$Q$2:$Q$1000=Costs!AQ$617)*('Fixed assets'!$U$2:$U$1000=Costs!$A649)*('Fixed assets'!$S$2:$S$1000))+SUMPRODUCT(('Fixed assets'!$Q$2:$Q$1000=Costs!AQ$617)*('Fixed assets'!$P$2:$P$1000=Costs!$A649)*('Fixed assets'!$U$2:$U$1000=Costs!$A649)*('Fixed assets'!$R$2:$R$1000))","v":0}]
[2047,0,{"$f":"SUMPRODUCT(('Fixed assets'!$R$2:$R$1000)*('Fixed assets'!$P$2:$P$1000<$A650)*('Fixed assets'!$Q$2:$Q$1000=Costs!C$617))-SUMPRODUCT(('Fixed assets'!$S$2:$S$1000)*('Fixed assets'!$P$2:$P$1000<Costs!$A650)*('Fixed assets'!$Q$2:$Q$1000=Costs!C$617))-SUMPRODUCT(('Fixed assets'!$Q$2:$Q$1000=Costs!C$617)*('Fixed assets'!$U$2:$U$1000=Costs!$A650)*('Fixed assets'!$S$2:$S$1000))+SUMPRODUCT(('Fixed assets'!$Q$2:$Q$1000=Costs!C$617)*('Fixed assets'!$P$2:$P$1000=Costs!$A650)*('Fixed assets'!$U$2:$U$1000=Costs!$A650)*('Fixed assets'!$R$2:$R$1000))","v":0},{"$f":"SUMPRODUCT(('Fixed assets'!$R$2:$R$1000)*('Fixed assets'!$P$2:$P$1000<$A650)*('Fixed assets'!$Q$2:$Q$1000=Costs!D$617))-SUMPRODUCT(('Fixed assets'!$S$2:$S$1000)*('Fixed assets'!$P$2:$P$1000<Costs!$A650)*('Fixed assets'!$Q$2:$Q$1000=Costs!D$617))-SUMPRODUCT(('Fixed assets'!$Q$2:$Q$1000=Costs!D$617)*('Fixed assets'!$U$2:$U$1000=Costs!$A650)*('Fixed assets'!$S$2:$S$1000))+SUMPRODUCT(('Fixed assets'!$Q$2:$Q$1000=Costs!D$617)*('Fixed assets'!$P$2:$P$1000=Costs!$A650)*('Fixed assets'!$U$2:$U$1000=Costs!$A650)*('Fixed assets'!$R$2:$R$1000))","v":0},{"$f":"SUMPRODUCT(('Fixed assets'!$R$2:$R$1000)*('Fixed assets'!$P$2:$P$1000<$A650)*('Fixed assets'!$Q$2:$Q$1000=Costs!E$617))-SUMPRODUCT(('Fixed assets'!$S$2:$S$1000)*('Fixed assets'!$P$2:$P$1000<Costs!$A650)*('Fixed assets'!$Q$2:$Q$1000=Costs!E$617))-SUMPRODUCT(('Fixed assets'!$Q$2:$Q$1000=Costs!E$617)*('Fixed assets'!$U$2:$U$1000=Costs!$A650)*('Fixed assets'!$S$2:$S$1000))+SUMPRODUCT(('Fixed assets'!$Q$2:$Q$1000=Costs!E$617)*('Fixed assets'!$P$2:$P$1000=Costs!$A650)*('Fixed assets'!$U$2:$U$1000=Costs!$A650)*('Fixed assets'!$R$2:$R$1000))","v":0},{"$f":"SUMPRODUCT(('Fixed assets'!$R$2:$R$1000)*('Fixed assets'!$P$2:$P$1000<$A650)*('Fixed assets'!$Q$2:$Q$1000=Costs!F$617))-SUMPRODUCT(('Fixed assets'!$S$2:$S$1000)*('Fixed assets'!$P$2:$P$1000<Costs!$A650)*('Fixed assets'!$Q$2:$Q$1000=Costs!F$617))-SUMPRODUCT(('Fixed assets'!$Q$2:$Q$1000=Costs!F$617)*('Fixed assets'!$U$2:$U$1000=Costs!$A650)*('Fixed assets'!$S$2:$S$1000))+SUMPRODUCT(('Fixed assets'!$Q$2:$Q$1000=Costs!F$617)*('Fixed assets'!$P$2:$P$1000=Costs!$A650)*('Fixed assets'!$U$2:$U$1000=Costs!$A650)*('Fixed assets'!$R$2:$R$1000))","v":0},{"$f":"SUMPRODUCT(('Fixed assets'!$R$2:$R$1000)*('Fixed assets'!$P$2:$P$1000<$A650)*('Fixed assets'!$Q$2:$Q$1000=Costs!G$617))-SUMPRODUCT(('Fixed assets'!$S$2:$S$1000)*('Fixed assets'!$P$2:$P$1000<Costs!$A650)*('Fixed assets'!$Q$2:$Q$1000=Costs!G$617))-SUMPRODUCT(('Fixed assets'!$Q$2:$Q$1000=Costs!G$617)*('Fixed assets'!$U$2:$U$1000=Costs!$A650)*('Fixed assets'!$S$2:$S$1000))+SUMPRODUCT(('Fixed assets'!$Q$2:$Q$1000=Costs!G$617)*('Fixed assets'!$P$2:$P$1000=Costs!$A650)*('Fixed assets'!$U$2:$U$1000=Costs!$A650)*('Fixed assets'!$R$2:$R$1000))","v":0},{"$f":"SUMPRODUCT(('Fixed assets'!$R$2:$R$1000)*('Fixed assets'!$P$2:$P$1000<$A650)*('Fixed assets'!$Q$2:$Q$1000=Costs!H$617))-SUMPRODUCT(('Fixed assets'!$S$2:$S$1000)*('Fixed assets'!$P$2:$P$1000<Costs!$A650)*('Fixed assets'!$Q$2:$Q$1000=Costs!H$617))-SUMPRODUCT(('Fixed assets'!$Q$2:$Q$1000=Costs!H$617)*('Fixed assets'!$U$2:$U$1000=Costs!$A650)*('Fixed assets'!$S$2:$S$1000))+SUMPRODUCT(('Fixed assets'!$Q$2:$Q$1000=Costs!H$617)*('Fixed assets'!$P$2:$P$1000=Costs!$A650)*('Fixed assets'!$U$2:$U$1000=Costs!$A650)*('Fixed assets'!$R$2:$R$1000))","v":0},{"$f":"SUMPRODUCT(('Fixed assets'!$R$2:$R$1000)*('Fixed assets'!$P$2:$P$1000<$A650)*('Fixed assets'!$Q$2:$Q$1000=Costs!I$617))-SUMPRODUCT(('Fixed assets'!$S$2:$S$1000)*('Fixed assets'!$P$2:$P$1000<Costs!$A650)*('Fixed assets'!$Q$2:$Q$1000=Costs!I$617))-SUMPRODUCT(('Fixed assets'!$Q$2:$Q$1000=Costs!I$617)*('Fixed assets'!$U$2:$U$1000=Costs!$A650)*('Fixed assets'!$S$2:$S$1000))+SUMPRODUCT(('Fixed assets'!$Q$2:$Q$1000=Costs!I$617)*('Fixed assets'!$P$2:$P$1000=Costs!$A650)*('Fixed assets'!$U$2:$U$1000=Costs!$A650)*('Fixed assets'!$R$2:$R$1000))","v":0},{"$f":"SUMPRODUCT(('Fixed assets'!$R$2:$R$1000)*('Fixed assets'!$P$2:$P$1000<$A650)*('Fixed assets'!$Q$2:$Q$1000=Costs!J$617))-SUMPRODUCT(('Fixed assets'!$S$2:$S$1000)*('Fixed assets'!$P$2:$P$1000<Costs!$A650)*('Fixed assets'!$Q$2:$Q$1000=Costs!J$617))-SUMPRODUCT(('Fixed assets'!$Q$2:$Q$1000=Costs!J$617)*('Fixed assets'!$U$2:$U$1000=Costs!$A650)*('Fixed assets'!$S$2:$S$1000))+SUMPRODUCT(('Fixed assets'!$Q$2:$Q$1000=Costs!J$617)*('Fixed assets'!$P$2:$P$1000=Costs!$A650)*('Fixed assets'!$U$2:$U$1000=Costs!$A650)*('Fixed assets'!$R$2:$R$1000))","v":0},{"$f":"SUMPRODUCT(('Fixed assets'!$R$2:$R$1000)*('Fixed assets'!$P$2:$P$1000<$A650)*('Fixed assets'!$Q$2:$Q$1000=Costs!K$617))-SUMPRODUCT(('Fixed assets'!$S$2:$S$1000)*('Fixed assets'!$P$2:$P$1000<Costs!$A650)*('Fixed assets'!$Q$2:$Q$1000=Costs!K$617))-SUMPRODUCT(('Fixed assets'!$Q$2:$Q$1000=Costs!K$617)*('Fixed assets'!$U$2:$U$1000=Costs!$A650)*('Fixed assets'!$S$2:$S$1000))+SUMPRODUCT(('Fixed assets'!$Q$2:$Q$1000=Costs!K$617)*('Fixed assets'!$P$2:$P$1000=Costs!$A650)*('Fixed assets'!$U$2:$U$1000=Costs!$A650)*('Fixed assets'!$R$2:$R$1000))","v":0},{"$f":"SUMPRODUCT(('Fixed assets'!$R$2:$R$1000)*('Fixed assets'!$P$2:$P$1000<$A650)*('Fixed assets'!$Q$2:$Q$1000=Costs!L$617))-SUMPRODUCT(('Fixed assets'!$S$2:$S$1000)*('Fixed assets'!$P$2:$P$1000<Costs!$A650)*('Fixed assets'!$Q$2:$Q$1000=Costs!L$617))-SUMPRODUCT(('Fixed assets'!$Q$2:$Q$1000=Costs!L$617)*('Fixed assets'!$U$2:$U$1000=Costs!$A650)*('Fixed assets'!$S$2:$S$1000))+SUMPRODUCT(('Fixed assets'!$Q$2:$Q$1000=Costs!L$617)*('Fixed assets'!$P$2:$P$1000=Costs!$A650)*('Fixed assets'!$U$2:$U$1000=Costs!$A650)*('Fixed assets'!$R$2:$R$1000))","v":0},{"$f":"SUMPRODUCT(('Fixed assets'!$R$2:$R$1000)*('Fixed assets'!$P$2:$P$1000<$A650)*('Fixed assets'!$Q$2:$Q$1000=Costs!M$617))-SUMPRODUCT(('Fixed assets'!$S$2:$S$1000)*('Fixed assets'!$P$2:$P$1000<Costs!$A650)*('Fixed assets'!$Q$2:$Q$1000=Costs!M$617))-SUMPRODUCT(('Fixed assets'!$Q$2:$Q$1000=Costs!M$617)*('Fixed assets'!$U$2:$U$1000=Costs!$A650)*('Fixed assets'!$S$2:$S$1000))+SUMPRODUCT(('Fixed assets'!$Q$2:$Q$1000=Costs!M$617)*('Fixed assets'!$P$2:$P$1000=Costs!$A650)*('Fixed assets'!$U$2:$U$1000=Costs!$A650)*('Fixed assets'!$R$2:$R$1000))","v":0},{"$f":"SUMPRODUCT(('Fixed assets'!$R$2:$R$1000)*('Fixed assets'!$P$2:$P$1000<$A650)*('Fixed assets'!$Q$2:$Q$1000=Costs!N$617))-SUMPRODUCT(('Fixed assets'!$S$2:$S$1000)*('Fixed assets'!$P$2:$P$1000<Costs!$A650)*('Fixed assets'!$Q$2:$Q$1000=Costs!N$617))-SUMPRODUCT(('Fixed assets'!$Q$2:$Q$1000=Costs!N$617)*('Fixed assets'!$U$2:$U$1000=Costs!$A650)*('Fixed assets'!$S$2:$S$1000))+SUMPRODUCT(('Fixed assets'!$Q$2:$Q$1000=Costs!N$617)*('Fixed assets'!$P$2:$P$1000=Costs!$A650)*('Fixed assets'!$U$2:$U$1000=Costs!$A650)*('Fixed assets'!$R$2:$R$1000))","v":0},{"$f":"SUMPRODUCT(('Fixed assets'!$R$2:$R$1000)*('Fixed assets'!$P$2:$P$1000<$A650)*('Fixed assets'!$Q$2:$Q$1000=Costs!O$617))-SUMPRODUCT(('Fixed assets'!$S$2:$S$1000)*('Fixed assets'!$P$2:$P$1000<Costs!$A650)*('Fixed assets'!$Q$2:$Q$1000=Costs!O$617))-SUMPRODUCT(('Fixed assets'!$Q$2:$Q$1000=Costs!O$617)*('Fixed assets'!$U$2:$U$1000=Costs!$A650)*('Fixed assets'!$S$2:$S$1000))+SUMPRODUCT(('Fixed assets'!$Q$2:$Q$1000=Costs!O$617)*('Fixed assets'!$P$2:$P$1000=Costs!$A650)*('Fixed assets'!$U$2:$U$1000=Costs!$A650)*('Fixed assets'!$R$2:$R$1000))","v":0},{"$f":"SUMPRODUCT(('Fixed assets'!$R$2:$R$1000)*('Fixed assets'!$P$2:$P$1000<$A650)*('Fixed assets'!$Q$2:$Q$1000=Costs!P$617))-SUMPRODUCT(('Fixed assets'!$S$2:$S$1000)*('Fixed assets'!$P$2:$P$1000<Costs!$A650)*('Fixed assets'!$Q$2:$Q$1000=Costs!P$617))-SUMPRODUCT(('Fixed assets'!$Q$2:$Q$1000=Costs!P$617)*('Fixed assets'!$U$2:$U$1000=Costs!$A650)*('Fixed assets'!$S$2:$S$1000))+SUMPRODUCT(('Fixed assets'!$Q$2:$Q$1000=Costs!P$617)*('Fixed assets'!$P$2:$P$1000=Costs!$A650)*('Fixed assets'!$U$2:$U$1000=Costs!$A650)*('Fixed assets'!$R$2:$R$1000))","v":0},{"$f":"SUMPRODUCT(('Fixed assets'!$R$2:$R$1000)*('Fixed assets'!$P$2:$P$1000<$A650)*('Fixed assets'!$Q$2:$Q$1000=Costs!Q$617))-SUMPRODUCT(('Fixed assets'!$S$2:$S$1000)*('Fixed assets'!$P$2:$P$1000<Costs!$A650)*('Fixed assets'!$Q$2:$Q$1000=Costs!Q$617))-SUMPRODUCT(('Fixed assets'!$Q$2:$Q$1000=Costs!Q$617)*('Fixed assets'!$U$2:$U$1000=Costs!$A650)*('Fixed assets'!$S$2:$S$1000))+SUMPRODUCT(('Fixed assets'!$Q$2:$Q$1000=Costs!Q$617)*('Fixed assets'!$P$2:$P$1000=Costs!$A650)*('Fixed assets'!$U$2:$U$1000=Costs!$A650)*('Fixed assets'!$R$2:$R$1000))","v":0},{"$f":"SUMPRODUCT(('Fixed assets'!$R$2:$R$1000)*('Fixed assets'!$P$2:$P$1000<$A650)*('Fixed assets'!$Q$2:$Q$1000=Costs!R$617))-SUMPRODUCT(('Fixed assets'!$S$2:$S$1000)*('Fixed assets'!$P$2:$P$1000<Costs!$A650)*('Fixed assets'!$Q$2:$Q$1000=Costs!R$617))-SUMPRODUCT(('Fixed assets'!$Q$2:$Q$1000=Costs!R$617)*('Fixed assets'!$U$2:$U$1000=Costs!$A650)*('Fixed assets'!$S$2:$S$1000))+SUMPRODUCT(('Fixed assets'!$Q$2:$Q$1000=Costs!R$617)*('Fixed assets'!$P$2:$P$1000=Costs!$A650)*('Fixed assets'!$U$2:$U$1000=Costs!$A650)*('Fixed assets'!$R$2:$R$1000))","v":0},{"$f":"SUMPRODUCT(('Fixed assets'!$R$2:$R$1000)*('Fixed assets'!$P$2:$P$1000<$A650)*('Fixed assets'!$Q$2:$Q$1000=Costs!S$617))-SUMPRODUCT(('Fixed assets'!$S$2:$S$1000)*('Fixed assets'!$P$2:$P$1000<Costs!$A650)*('Fixed assets'!$Q$2:$Q$1000=Costs!S$617))-SUMPRODUCT(('Fixed assets'!$Q$2:$Q$1000=Costs!S$617)*('Fixed assets'!$U$2:$U$1000=Costs!$A650)*('Fixed assets'!$S$2:$S$1000))+SUMPRODUCT(('Fixed assets'!$Q$2:$Q$1000=Costs!S$617)*('Fixed assets'!$P$2:$P$1000=Costs!$A650)*('Fixed assets'!$U$2:$U$1000=Costs!$A650)*('Fixed assets'!$R$2:$R$1000))","v":0},{"$f":"SUMPRODUCT(('Fixed assets'!$R$2:$R$1000)*('Fixed assets'!$P$2:$P$1000<$A650)*('Fixed assets'!$Q$2:$Q$1000=Costs!T$617))-SUMPRODUCT(('Fixed assets'!$S$2:$S$1000)*('Fixed assets'!$P$2:$P$1000<Costs!$A650)*('Fixed assets'!$Q$2:$Q$1000=Costs!T$617))-SUMPRODUCT(('Fixed assets'!$Q$2:$Q$1000=Costs!T$617)*('Fixed assets'!$U$2:$U$1000=Costs!$A650)*('Fixed assets'!$S$2:$S$1000))+SUMPRODUCT(('Fixed assets'!$Q$2:$Q$1000=Costs!T$617)*('Fixed assets'!$P$2:$P$1000=Costs!$A650)*('Fixed assets'!$U$2:$U$1000=Costs!$A650)*('Fixed assets'!$R$2:$R$1000))","v":0},{"$f":"SUMPRODUCT(('Fixed assets'!$R$2:$R$1000)*('Fixed assets'!$P$2:$P$1000<$A650)*('Fixed assets'!$Q$2:$Q$1000=Costs!U$617))-SUMPRODUCT(('Fixed assets'!$S$2:$S$1000)*('Fixed assets'!$P$2:$P$1000<Costs!$A650)*('Fixed assets'!$Q$2:$Q$1000=Costs!U$617))-SUMPRODUCT(('Fixed assets'!$Q$2:$Q$1000=Costs!U$617)*('Fixed assets'!$U$2:$U$1000=Costs!$A650)*('Fixed assets'!$S$2:$S$1000))+SUMPRODUCT(('Fixed assets'!$Q$2:$Q$1000=Costs!U$617)*('Fixed assets'!$P$2:$P$1000=Costs!$A650)*('Fixed assets'!$U$2:$U$1000=Costs!$A650)*('Fixed assets'!$R$2:$R$1000))","v":0},{"$f":"SUMPRODUCT(('Fixed assets'!$R$2:$R$1000)*('Fixed assets'!$P$2:$P$1000<$A650)*('Fixed assets'!$Q$2:$Q$1000=Costs!V$617))-SUMPRODUCT(('Fixed assets'!$S$2:$S$1000)*('Fixed assets'!$P$2:$P$1000<Costs!$A650)*('Fixed assets'!$Q$2:$Q$1000=Costs!V$617))-SUMPRODUCT(('Fixed assets'!$Q$2:$Q$1000=Costs!V$617)*('Fixed assets'!$U$2:$U$1000=Costs!$A650)*('Fixed assets'!$S$2:$S$1000))+SUMPRODUCT(('Fixed assets'!$Q$2:$Q$1000=Costs!V$617)*('Fixed assets'!$P$2:$P$1000=Costs!$A650)*('Fixed assets'!$U$2:$U$1000=Costs!$A650)*('Fixed assets'!$R$2:$R$1000))","v":0},{"$f":"SUMPRODUCT(('Fixed assets'!$R$2:$R$1000)*('Fixed assets'!$P$2:$P$1000<$A650)*('Fixed assets'!$Q$2:$Q$1000=Costs!W$617))-SUMPRODUCT(('Fixed assets'!$S$2:$S$1000)*('Fixed assets'!$P$2:$P$1000<Costs!$A650)*('Fixed assets'!$Q$2:$Q$1000=Costs!W$617))-SUMPRODUCT(('Fixed assets'!$Q$2:$Q$1000=Costs!W$617)*('Fixed assets'!$U$2:$U$1000=Costs!$A650)*('Fixed assets'!$S$2:$S$1000))+SUMPRODUCT(('Fixed assets'!$Q$2:$Q$1000=Costs!W$617)*('Fixed assets'!$P$2:$P$1000=Costs!$A650)*('Fixed assets'!$U$2:$U$1000=Costs!$A650)*('Fixed assets'!$R$2:$R$1000))","v":0},{"$f":"SUMPRODUCT(('Fixed assets'!$R$2:$R$1000)*('Fixed assets'!$P$2:$P$1000<$A650)*('Fixed assets'!$Q$2:$Q$1000=Costs!X$617))-SUMPRODUCT(('Fixed assets'!$S$2:$S$1000)*('Fixed assets'!$P$2:$P$1000<Costs!$A650)*('Fixed assets'!$Q$2:$Q$1000=Costs!X$617))-SUMPRODUCT(('Fixed assets'!$Q$2:$Q$1000=Costs!X$617)*('Fixed assets'!$U$2:$U$1000=Costs!$A650)*('Fixed assets'!$S$2:$S$1000))+SUMPRODUCT(('Fixed assets'!$Q$2:$Q$1000=Costs!X$617)*('Fixed assets'!$P$2:$P$1000=Costs!$A650)*('Fixed assets'!$U$2:$U$1000=Costs!$A650)*('Fixed assets'!$R$2:$R$1000))","v":0},{"$f":"SUMPRODUCT(('Fixed assets'!$R$2:$R$1000)*('Fixed assets'!$P$2:$P$1000<$A650)*('Fixed assets'!$Q$2:$Q$1000=Costs!Y$617))-SUMPRODUCT(('Fixed assets'!$S$2:$S$1000)*('Fixed assets'!$P$2:$P$1000<Costs!$A650)*('Fixed assets'!$Q$2:$Q$1000=Costs!Y$617))-SUMPRODUCT(('Fixed assets'!$Q$2:$Q$1000=Costs!Y$617)*('Fixed assets'!$U$2:$U$1000=Costs!$A650)*('Fixed assets'!$S$2:$S$1000))+SUMPRODUCT(('Fixed assets'!$Q$2:$Q$1000=Costs!Y$617)*('Fixed assets'!$P$2:$P$1000=Costs!$A650)*('Fixed assets'!$U$2:$U$1000=Costs!$A650)*('Fixed assets'!$R$2:$R$1000))","v":0},{"$f":"SUMPRODUCT(('Fixed assets'!$R$2:$R$1000)*('Fixed assets'!$P$2:$P$1000<$A650)*('Fixed assets'!$Q$2:$Q$1000=Costs!Z$617))-SUMPRODUCT(('Fixed assets'!$S$2:$S$1000)*('Fixed assets'!$P$2:$P$1000<Costs!$A650)*('Fixed assets'!$Q$2:$Q$1000=Costs!Z$617))-SUMPRODUCT(('Fixed assets'!$Q$2:$Q$1000=Costs!Z$617)*('Fixed assets'!$U$2:$U$1000=Costs!$A650)*('Fixed assets'!$S$2:$S$1000))+SUMPRODUCT(('Fixed assets'!$Q$2:$Q$1000=Costs!Z$617)*('Fixed assets'!$P$2:$P$1000=Costs!$A650)*('Fixed assets'!$U$2:$U$1000=Costs!$A650)*('Fixed assets'!$R$2:$R$1000))","v":0},{"$f":"SUMPRODUCT(('Fixed assets'!$R$2:$R$1000)*('Fixed assets'!$P$2:$P$1000<$A650)*('Fixed assets'!$Q$2:$Q$1000=Costs!AA$617))-SUMPRODUCT(('Fixed assets'!$S$2:$S$1000)*('Fixed assets'!$P$2:$P$1000<Costs!$A650)*('Fixed assets'!$Q$2:$Q$1000=Costs!AA$617))-SUMPRODUCT(('Fixed assets'!$Q$2:$Q$1000=Costs!AA$617)*('Fixed assets'!$U$2:$U$1000=Costs!$A650)*('Fixed assets'!$S$2:$S$1000))+SUMPRODUCT(('Fixed assets'!$Q$2:$Q$1000=Costs!AA$617)*('Fixed assets'!$P$2:$P$1000=Costs!$A650)*('Fixed assets'!$U$2:$U$1000=Costs!$A650)*('Fixed assets'!$R$2:$R$1000))","v":0},{"$f":"SUMPRODUCT(('Fixed assets'!$R$2:$R$1000)*('Fixed assets'!$P$2:$P$1000<$A650)*('Fixed assets'!$Q$2:$Q$1000=Costs!AB$617))-SUMPRODUCT(('Fixed assets'!$S$2:$S$1000)*('Fixed assets'!$P$2:$P$1000<Costs!$A650)*('Fixed assets'!$Q$2:$Q$1000=Costs!AB$617))-SUMPRODUCT(('Fixed assets'!$Q$2:$Q$1000=Costs!AB$617)*('Fixed assets'!$U$2:$U$1000=Costs!$A650)*('Fixed assets'!$S$2:$S$1000))+SUMPRODUCT(('Fixed assets'!$Q$2:$Q$1000=Costs!AB$617)*('Fixed assets'!$P$2:$P$1000=Costs!$A650)*('Fixed assets'!$U$2:$U$1000=Costs!$A650)*('Fixed assets'!$R$2:$R$1000))","v":0},{"$f":"SUMPRODUCT(('Fixed assets'!$R$2:$R$1000)*('Fixed assets'!$P$2:$P$1000<$A650)*('Fixed assets'!$Q$2:$Q$1000=Costs!AC$617))-SUMPRODUCT(('Fixed assets'!$S$2:$S$1000)*('Fixed assets'!$P$2:$P$1000<Costs!$A650)*('Fixed assets'!$Q$2:$Q$1000=Costs!AC$617))-SUMPRODUCT(('Fixed assets'!$Q$2:$Q$1000=Costs!AC$617)*('Fixed assets'!$U$2:$U$1000=Costs!$A650)*('Fixed assets'!$S$2:$S$1000))+SUMPRODUCT(('Fixed assets'!$Q$2:$Q$1000=Costs!AC$617)*('Fixed assets'!$P$2:$P$1000=Costs!$A650)*('Fixed assets'!$U$2:$U$1000=Costs!$A650)*('Fixed assets'!$R$2:$R$1000))","v":0},{"$f":"SUMPRODUCT(('Fixed assets'!$R$2:$R$1000)*('Fixed assets'!$P$2:$P$1000<$A650)*('Fixed assets'!$Q$2:$Q$1000=Costs!AD$617))-SUMPRODUCT(('Fixed assets'!$S$2:$S$1000)*('Fixed assets'!$P$2:$P$1000<Costs!$A650)*('Fixed assets'!$Q$2:$Q$1000=Costs!AD$617))-SUMPRODUCT(('Fixed assets'!$Q$2:$Q$1000=Costs!AD$617)*('Fixed assets'!$U$2:$U$1000=Costs!$A650)*('Fixed assets'!$S$2:$S$1000))+SUMPRODUCT(('Fixed assets'!$Q$2:$Q$1000=Costs!AD$617)*('Fixed assets'!$P$2:$P$1000=Costs!$A650)*('Fixed assets'!$U$2:$U$1000=Costs!$A650)*('Fixed assets'!$R$2:$R$1000))","v":0},{"$f":"SUMPRODUCT(('Fixed assets'!$R$2:$R$1000)*('Fixed assets'!$P$2:$P$1000<$A650)*('Fixed assets'!$Q$2:$Q$1000=Costs!AE$617))-SUMPRODUCT(('Fixed assets'!$S$2:$S$1000)*('Fixed assets'!$P$2:$P$1000<Costs!$A650)*('Fixed assets'!$Q$2:$Q$1000=Costs!AE$617))-SUMPRODUCT(('Fixed assets'!$Q$2:$Q$1000=Costs!AE$617)*('Fixed assets'!$U$2:$U$1000=Costs!$A650)*('Fixed assets'!$S$2:$S$1000))+SUMPRODUCT(('Fixed assets'!$Q$2:$Q$1000=Costs!AE$617)*('Fixed assets'!$P$2:$P$1000=Costs!$A650)*('Fixed assets'!$U$2:$U$1000=Costs!$A650)*('Fixed assets'!$R$2:$R$1000))","v":0},{"$f":"SUMPRODUCT(('Fixed assets'!$R$2:$R$1000)*('Fixed assets'!$P$2:$P$1000<$A650)*('Fixed assets'!$Q$2:$Q$1000=Costs!AF$617))-SUMPRODUCT(('Fixed assets'!$S$2:$S$1000)*('Fixed assets'!$P$2:$P$1000<Costs!$A650)*('Fixed assets'!$Q$2:$Q$1000=Costs!AF$617))-SUMPRODUCT(('Fixed assets'!$Q$2:$Q$1000=Costs!AF$617)*('Fixed assets'!$U$2:$U$1000=Costs!$A650)*('Fixed assets'!$S$2:$S$1000))+SUMPRODUCT(('Fixed assets'!$Q$2:$Q$1000=Costs!AF$617)*('Fixed assets'!$P$2:$P$1000=Costs!$A650)*('Fixed assets'!$U$2:$U$1000=Costs!$A650)*('Fixed assets'!$R$2:$R$1000))","v":0},{"$f":"SUMPRODUCT(('Fixed assets'!$R$2:$R$1000)*('Fixed assets'!$P$2:$P$1000<$A650)*('Fixed assets'!$Q$2:$Q$1000=Costs!AG$617))-SUMPRODUCT(('Fixed assets'!$S$2:$S$1000)*('Fixed assets'!$P$2:$P$1000<Costs!$A650)*('Fixed assets'!$Q$2:$Q$1000=Costs!AG$617))-SUMPRODUCT(('Fixed assets'!$Q$2:$Q$1000=Costs!AG$617)*('Fixed assets'!$U$2:$U$1000=Costs!$A650)*('Fixed assets'!$S$2:$S$1000))+SUMPRODUCT(('Fixed assets'!$Q$2:$Q$1000=Costs!AG$617)*('Fixed assets'!$P$2:$P$1000=Costs!$A650)*('Fixed assets'!$U$2:$U$1000=Costs!$A650)*('Fixed assets'!$R$2:$R$1000))","v":0},{"$f":"SUMPRODUCT(('Fixed assets'!$R$2:$R$1000)*('Fixed assets'!$P$2:$P$1000<$A650)*('Fixed assets'!$Q$2:$Q$1000=Costs!AH$617))-SUMPRODUCT(('Fixed assets'!$S$2:$S$1000)*('Fixed assets'!$P$2:$P$1000<Costs!$A650)*('Fixed assets'!$Q$2:$Q$1000=Costs!AH$617))-SUMPRODUCT(('Fixed assets'!$Q$2:$Q$1000=Costs!AH$617)*('Fixed assets'!$U$2:$U$1000=Costs!$A650)*('Fixed assets'!$S$2:$S$1000))+SUMPRODUCT(('Fixed assets'!$Q$2:$Q$1000=Costs!AH$617)*('Fixed assets'!$P$2:$P$1000=Costs!$A650)*('Fixed assets'!$U$2:$U$1000=Costs!$A650)*('Fixed assets'!$R$2:$R$1000))","v":0},{"$f":"SUMPRODUCT(('Fixed assets'!$R$2:$R$1000)*('Fixed assets'!$P$2:$P$1000<$A650)*('Fixed assets'!$Q$2:$Q$1000=Costs!AI$617))-SUMPRODUCT(('Fixed assets'!$S$2:$S$1000)*('Fixed assets'!$P$2:$P$1000<Costs!$A650)*('Fixed assets'!$Q$2:$Q$1000=Costs!AI$617))-SUMPRODUCT(('Fixed assets'!$Q$2:$Q$1000=Costs!AI$617)*('Fixed assets'!$U$2:$U$1000=Costs!$A650)*('Fixed assets'!$S$2:$S$1000))+SUMPRODUCT(('Fixed assets'!$Q$2:$Q$1000=Costs!AI$617)*('Fixed assets'!$P$2:$P$1000=Costs!$A650)*('Fixed assets'!$U$2:$U$1000=Costs!$A650)*('Fixed assets'!$R$2:$R$1000))","v":0},{"$f":"SUMPRODUCT(('Fixed assets'!$R$2:$R$1000)*('Fixed assets'!$P$2:$P$1000<$A650)*('Fixed assets'!$Q$2:$Q$1000=Costs!AJ$617))-SUMPRODUCT(('Fixed assets'!$S$2:$S$1000)*('Fixed assets'!$P$2:$P$1000<Costs!$A650)*('Fixed assets'!$Q$2:$Q$1000=Costs!AJ$617))-SUMPRODUCT(('Fixed assets'!$Q$2:$Q$1000=Costs!AJ$617)*('Fixed assets'!$U$2:$U$1000=Costs!$A650)*('Fixed assets'!$S$2:$S$1000))+SUMPRODUCT(('Fixed assets'!$Q$2:$Q$1000=Costs!AJ$617)*('Fixed assets'!$P$2:$P$1000=Costs!$A650)*('Fixed assets'!$U$2:$U$1000=Costs!$A650)*('Fixed assets'!$R$2:$R$1000))","v":0},{"$f":"SUMPRODUCT(('Fixed assets'!$R$2:$R$1000)*('Fixed assets'!$P$2:$P$1000<$A650)*('Fixed assets'!$Q$2:$Q$1000=Costs!AK$617))-SUMPRODUCT(('Fixed assets'!$S$2:$S$1000)*('Fixed assets'!$P$2:$P$1000<Costs!$A650)*('Fixed assets'!$Q$2:$Q$1000=Costs!AK$617))-SUMPRODUCT(('Fixed assets'!$Q$2:$Q$1000=Costs!AK$617)*('Fixed assets'!$U$2:$U$1000=Costs!$A650)*('Fixed assets'!$S$2:$S$1000))+SUMPRODUCT(('Fixed assets'!$Q$2:$Q$1000=Costs!AK$617)*('Fixed assets'!$P$2:$P$1000=Costs!$A650)*('Fixed assets'!$U$2:$U$1000=Costs!$A650)*('Fixed assets'!$R$2:$R$1000))","v":0},{"$f":"SUMPRODUCT(('Fixed assets'!$R$2:$R$1000)*('Fixed assets'!$P$2:$P$1000<$A650)*('Fixed assets'!$Q$2:$Q$1000=Costs!AL$617))-SUMPRODUCT(('Fixed assets'!$S$2:$S$1000)*('Fixed assets'!$P$2:$P$1000<Costs!$A650)*('Fixed assets'!$Q$2:$Q$1000=Costs!AL$617))-SUMPRODUCT(('Fixed assets'!$Q$2:$Q$1000=Costs!AL$617)*('Fixed assets'!$U$2:$U$1000=Costs!$A650)*('Fixed assets'!$S$2:$S$1000))+SUMPRODUCT(('Fixed assets'!$Q$2:$Q$1000=Costs!AL$617)*('Fixed assets'!$P$2:$P$1000=Costs!$A650)*('Fixed assets'!$U$2:$U$1000=Costs!$A650)*('Fixed assets'!$R$2:$R$1000))","v":0},{"$f":"SUMPRODUCT(('Fixed assets'!$R$2:$R$1000)*('Fixed assets'!$P$2:$P$1000<$A650)*('Fixed assets'!$Q$2:$Q$1000=Costs!AM$617))-SUMPRODUCT(('Fixed assets'!$S$2:$S$1000)*('Fixed assets'!$P$2:$P$1000<Costs!$A650)*('Fixed assets'!$Q$2:$Q$1000=Costs!AM$617))-SUMPRODUCT(('Fixed assets'!$Q$2:$Q$1000=Costs!AM$617)*('Fixed assets'!$U$2:$U$1000=Costs!$A650)*('Fixed assets'!$S$2:$S$1000))+SUMPRODUCT(('Fixed assets'!$Q$2:$Q$1000=Costs!AM$617)*('Fixed assets'!$P$2:$P$1000=Costs!$A650)*('Fixed assets'!$U$2:$U$1000=Costs!$A650)*('Fixed assets'!$R$2:$R$1000))","v":0},{"$f":"SUMPRODUCT(('Fixed assets'!$R$2:$R$1000)*('Fixed assets'!$P$2:$P$1000<$A650)*('Fixed assets'!$Q$2:$Q$1000=Costs!AN$617))-SUMPRODUCT(('Fixed assets'!$S$2:$S$1000)*('Fixed assets'!$P$2:$P$1000<Costs!$A650)*('Fixed assets'!$Q$2:$Q$1000=Costs!AN$617))-SUMPRODUCT(('Fixed assets'!$Q$2:$Q$1000=Costs!AN$617)*('Fixed assets'!$U$2:$U$1000=Costs!$A650)*('Fixed assets'!$S$2:$S$1000))+SUMPRODUCT(('Fixed assets'!$Q$2:$Q$1000=Costs!AN$617)*('Fixed assets'!$P$2:$P$1000=Costs!$A650)*('Fixed assets'!$U$2:$U$1000=Costs!$A650)*('Fixed assets'!$R$2:$R$1000))","v":0},{"$f":"SUMPRODUCT(('Fixed assets'!$R$2:$R$1000)*('Fixed assets'!$P$2:$P$1000<$A650)*('Fixed assets'!$Q$2:$Q$1000=Costs!AO$617))-SUMPRODUCT(('Fixed assets'!$S$2:$S$1000)*('Fixed assets'!$P$2:$P$1000<Costs!$A650)*('Fixed assets'!$Q$2:$Q$1000=Costs!AO$617))-SUMPRODUCT(('Fixed assets'!$Q$2:$Q$1000=Costs!AO$617)*('Fixed assets'!$U$2:$U$1000=Costs!$A650)*('Fixed assets'!$S$2:$S$1000))+SUMPRODUCT(('Fixed assets'!$Q$2:$Q$1000=Costs!AO$617)*('Fixed assets'!$P$2:$P$1000=Costs!$A650)*('Fixed assets'!$U$2:$U$1000=Costs!$A650)*('Fixed assets'!$R$2:$R$1000))","v":0},{"$f":"SUMPRODUCT(('Fixed assets'!$R$2:$R$1000)*('Fixed assets'!$P$2:$P$1000<$A650)*('Fixed assets'!$Q$2:$Q$1000=Costs!AP$617))-SUMPRODUCT(('Fixed assets'!$S$2:$S$1000)*('Fixed assets'!$P$2:$P$1000<Costs!$A650)*('Fixed assets'!$Q$2:$Q$1000=Costs!AP$617))-SUMPRODUCT(('Fixed assets'!$Q$2:$Q$1000=Costs!AP$617)*('Fixed assets'!$U$2:$U$1000=Costs!$A650)*('Fixed assets'!$S$2:$S$1000))+SUMPRODUCT(('Fixed assets'!$Q$2:$Q$1000=Costs!AP$617)*('Fixed assets'!$P$2:$P$1000=Costs!$A650)*('Fixed assets'!$U$2:$U$1000=Costs!$A650)*('Fixed assets'!$R$2:$R$1000))","v":0},{"$f":"SUMPRODUCT(('Fixed assets'!$R$2:$R$1000)*('Fixed assets'!$P$2:$P$1000<$A650)*('Fixed assets'!$Q$2:$Q$1000=Costs!AQ$617))-SUMPRODUCT(('Fixed assets'!$S$2:$S$1000)*('Fixed assets'!$P$2:$P$1000<Costs!$A650)*('Fixed assets'!$Q$2:$Q$1000=Costs!AQ$617))-SUMPRODUCT(('Fixed assets'!$Q$2:$Q$1000=Costs!AQ$617)*('Fixed assets'!$U$2:$U$1000=Costs!$A650)*('Fixed assets'!$S$2:$S$1000))+SUMPRODUCT(('Fixed assets'!$Q$2:$Q$1000=Costs!AQ$617)*('Fixed assets'!$P$2:$P$1000=Costs!$A650)*('Fixed assets'!$U$2:$U$1000=Costs!$A650)*('Fixed assets'!$R$2:$R$1000))","v":0}]
[2048,0,{"$f":"SUMPRODUCT(('Fixed assets'!$R$2:$R$1000)*('Fixed assets'!$P$2:$P$1000<$A651)*('Fixed assets'!$Q$2:$Q$1000=Costs!C$617))-SUMPRODUCT(('Fixed assets'!$S$2:$S$1000)*('Fixed assets'!$P$2:$P$1000<Costs!$A651)*('Fixed assets'!$Q$2:$Q$1000=Costs!C$617))-SUMPRODUCT(('Fixed assets'!$Q$2:$Q$1000=Costs!C$617)*('Fixed assets'!$U$2:$U$1000=Costs!$A651)*('Fixed assets'!$S$2:$S$1000))+SUMPRODUCT(('Fixed assets'!$Q$2:$Q$1000=Costs!C$617)*('Fixed assets'!$P$2:$P$1000=Costs!$A651)*('Fixed assets'!$U$2:$U$1000=Costs!$A651)*('Fixed assets'!$R$2:$R$1000))","v":0},{"$f":"SUMPRODUCT(('Fixed assets'!$R$2:$R$1000)*('Fixed assets'!$P$2:$P$1000<$A651)*('Fixed assets'!$Q$2:$Q$1000=Costs!D$617))-SUMPRODUCT(('Fixed assets'!$S$2:$S$1000)*('Fixed assets'!$P$2:$P$1000<Costs!$A651)*('Fixed assets'!$Q$2:$Q$1000=Costs!D$617))-SUMPRODUCT(('Fixed assets'!$Q$2:$Q$1000=Costs!D$617)*('Fixed assets'!$U$2:$U$1000=Costs!$A651)*('Fixed assets'!$S$2:$S$1000))+SUMPRODUCT(('Fixed assets'!$Q$2:$Q$1000=Costs!D$617)*('Fixed assets'!$P$2:$P$1000=Costs!$A651)*('Fixed assets'!$U$2:$U$1000=Costs!$A651)*('Fixed assets'!$R$2:$R$1000))","v":0},{"$f":"SUMPRODUCT(('Fixed assets'!$R$2:$R$1000)*('Fixed assets'!$P$2:$P$1000<$A651)*('Fixed assets'!$Q$2:$Q$1000=Costs!E$617))-SUMPRODUCT(('Fixed assets'!$S$2:$S$1000)*('Fixed assets'!$P$2:$P$1000<Costs!$A651)*('Fixed assets'!$Q$2:$Q$1000=Costs!E$617))-SUMPRODUCT(('Fixed assets'!$Q$2:$Q$1000=Costs!E$617)*('Fixed assets'!$U$2:$U$1000=Costs!$A651)*('Fixed assets'!$S$2:$S$1000))+SUMPRODUCT(('Fixed assets'!$Q$2:$Q$1000=Costs!E$617)*('Fixed assets'!$P$2:$P$1000=Costs!$A651)*('Fixed assets'!$U$2:$U$1000=Costs!$A651)*('Fixed assets'!$R$2:$R$1000))","v":0},{"$f":"SUMPRODUCT(('Fixed assets'!$R$2:$R$1000)*('Fixed assets'!$P$2:$P$1000<$A651)*('Fixed assets'!$Q$2:$Q$1000=Costs!F$617))-SUMPRODUCT(('Fixed assets'!$S$2:$S$1000)*('Fixed assets'!$P$2:$P$1000<Costs!$A651)*('Fixed assets'!$Q$2:$Q$1000=Costs!F$617))-SUMPRODUCT(('Fixed assets'!$Q$2:$Q$1000=Costs!F$617)*('Fixed assets'!$U$2:$U$1000=Costs!$A651)*('Fixed assets'!$S$2:$S$1000))+SUMPRODUCT(('Fixed assets'!$Q$2:$Q$1000=Costs!F$617)*('Fixed assets'!$P$2:$P$1000=Costs!$A651)*('Fixed assets'!$U$2:$U$1000=Costs!$A651)*('Fixed assets'!$R$2:$R$1000))","v":0},{"$f":"SUMPRODUCT(('Fixed assets'!$R$2:$R$1000)*('Fixed assets'!$P$2:$P$1000<$A651)*('Fixed assets'!$Q$2:$Q$1000=Costs!G$617))-SUMPRODUCT(('Fixed assets'!$S$2:$S$1000)*('Fixed assets'!$P$2:$P$1000<Costs!$A651)*('Fixed assets'!$Q$2:$Q$1000=Costs!G$617))-SUMPRODUCT(('Fixed assets'!$Q$2:$Q$1000=Costs!G$617)*('Fixed assets'!$U$2:$U$1000=Costs!$A651)*('Fixed assets'!$S$2:$S$1000))+SUMPRODUCT(('Fixed assets'!$Q$2:$Q$1000=Costs!G$617)*('Fixed assets'!$P$2:$P$1000=Costs!$A651)*('Fixed assets'!$U$2:$U$1000=Costs!$A651)*('Fixed assets'!$R$2:$R$1000))","v":0},{"$f":"SUMPRODUCT(('Fixed assets'!$R$2:$R$1000)*('Fixed assets'!$P$2:$P$1000<$A651)*('Fixed assets'!$Q$2:$Q$1000=Costs!H$617))-SUMPRODUCT(('Fixed assets'!$S$2:$S$1000)*('Fixed assets'!$P$2:$P$1000<Costs!$A651)*('Fixed assets'!$Q$2:$Q$1000=Costs!H$617))-SUMPRODUCT(('Fixed assets'!$Q$2:$Q$1000=Costs!H$617)*('Fixed assets'!$U$2:$U$1000=Costs!$A651)*('Fixed assets'!$S$2:$S$1000))+SUMPRODUCT(('Fixed assets'!$Q$2:$Q$1000=Costs!H$617)*('Fixed assets'!$P$2:$P$1000=Costs!$A651)*('Fixed assets'!$U$2:$U$1000=Costs!$A651)*('Fixed assets'!$R$2:$R$1000))","v":0},{"$f":"SUMPRODUCT(('Fixed assets'!$R$2:$R$1000)*('Fixed assets'!$P$2:$P$1000<$A651)*('Fixed assets'!$Q$2:$Q$1000=Costs!I$617))-SUMPRODUCT(('Fixed assets'!$S$2:$S$1000)*('Fixed assets'!$P$2:$P$1000<Costs!$A651)*('Fixed assets'!$Q$2:$Q$1000=Costs!I$617))-SUMPRODUCT(('Fixed assets'!$Q$2:$Q$1000=Costs!I$617)*('Fixed assets'!$U$2:$U$1000=Costs!$A651)*('Fixed assets'!$S$2:$S$1000))+SUMPRODUCT(('Fixed assets'!$Q$2:$Q$1000=Costs!I$617)*('Fixed assets'!$P$2:$P$1000=Costs!$A651)*('Fixed assets'!$U$2:$U$1000=Costs!$A651)*('Fixed assets'!$R$2:$R$1000))","v":0},{"$f":"SUMPRODUCT(('Fixed assets'!$R$2:$R$1000)*('Fixed assets'!$P$2:$P$1000<$A651)*('Fixed assets'!$Q$2:$Q$1000=Costs!J$617))-SUMPRODUCT(('Fixed assets'!$S$2:$S$1000)*('Fixed assets'!$P$2:$P$1000<Costs!$A651)*('Fixed assets'!$Q$2:$Q$1000=Costs!J$617))-SUMPRODUCT(('Fixed assets'!$Q$2:$Q$1000=Costs!J$617)*('Fixed assets'!$U$2:$U$1000=Costs!$A651)*('Fixed assets'!$S$2:$S$1000))+SUMPRODUCT(('Fixed assets'!$Q$2:$Q$1000=Costs!J$617)*('Fixed assets'!$P$2:$P$1000=Costs!$A651)*('Fixed assets'!$U$2:$U$1000=Costs!$A651)*('Fixed assets'!$R$2:$R$1000))","v":0},{"$f":"SUMPRODUCT(('Fixed assets'!$R$2:$R$1000)*('Fixed assets'!$P$2:$P$1000<$A651)*('Fixed assets'!$Q$2:$Q$1000=Costs!K$617))-SUMPRODUCT(('Fixed assets'!$S$2:$S$1000)*('Fixed assets'!$P$2:$P$1000<Costs!$A651)*('Fixed assets'!$Q$2:$Q$1000=Costs!K$617))-SUMPRODUCT(('Fixed assets'!$Q$2:$Q$1000=Costs!K$617)*('Fixed assets'!$U$2:$U$1000=Costs!$A651)*('Fixed assets'!$S$2:$S$1000))+SUMPRODUCT(('Fixed assets'!$Q$2:$Q$1000=Costs!K$617)*('Fixed assets'!$P$2:$P$1000=Costs!$A651)*('Fixed assets'!$U$2:$U$1000=Costs!$A651)*('Fixed assets'!$R$2:$R$1000))","v":0},{"$f":"SUMPRODUCT(('Fixed assets'!$R$2:$R$1000)*('Fixed assets'!$P$2:$P$1000<$A651)*('Fixed assets'!$Q$2:$Q$1000=Costs!L$617))-SUMPRODUCT(('Fixed assets'!$S$2:$S$1000)*('Fixed assets'!$P$2:$P$1000<Costs!$A651)*('Fixed assets'!$Q$2:$Q$1000=Costs!L$617))-SUMPRODUCT(('Fixed assets'!$Q$2:$Q$1000=Costs!L$617)*('Fixed assets'!$U$2:$U$1000=Costs!$A651)*('Fixed assets'!$S$2:$S$1000))+SUMPRODUCT(('Fixed assets'!$Q$2:$Q$1000=Costs!L$617)*('Fixed assets'!$P$2:$P$1000=Costs!$A651)*('Fixed assets'!$U$2:$U$1000=Costs!$A651)*('Fixed assets'!$R$2:$R$1000))","v":0},{"$f":"SUMPRODUCT(('Fixed assets'!$R$2:$R$1000)*('Fixed assets'!$P$2:$P$1000<$A651)*('Fixed assets'!$Q$2:$Q$1000=Costs!M$617))-SUMPRODUCT(('Fixed assets'!$S$2:$S$1000)*('Fixed assets'!$P$2:$P$1000<Costs!$A651)*('Fixed assets'!$Q$2:$Q$1000=Costs!M$617))-SUMPRODUCT(('Fixed assets'!$Q$2:$Q$1000=Costs!M$617)*('Fixed assets'!$U$2:$U$1000=Costs!$A651)*('Fixed assets'!$S$2:$S$1000))+SUMPRODUCT(('Fixed assets'!$Q$2:$Q$1000=Costs!M$617)*('Fixed assets'!$P$2:$P$1000=Costs!$A651)*('Fixed assets'!$U$2:$U$1000=Costs!$A651)*('Fixed assets'!$R$2:$R$1000))","v":0},{"$f":"SUMPRODUCT(('Fixed assets'!$R$2:$R$1000)*('Fixed assets'!$P$2:$P$1000<$A651)*('Fixed assets'!$Q$2:$Q$1000=Costs!N$617))-SUMPRODUCT(('Fixed assets'!$S$2:$S$1000)*('Fixed assets'!$P$2:$P$1000<Costs!$A651)*('Fixed assets'!$Q$2:$Q$1000=Costs!N$617))-SUMPRODUCT(('Fixed assets'!$Q$2:$Q$1000=Costs!N$617)*('Fixed assets'!$U$2:$U$1000=Costs!$A651)*('Fixed assets'!$S$2:$S$1000))+SUMPRODUCT(('Fixed assets'!$Q$2:$Q$1000=Costs!N$617)*('Fixed assets'!$P$2:$P$1000=Costs!$A651)*('Fixed assets'!$U$2:$U$1000=Costs!$A651)*('Fixed assets'!$R$2:$R$1000))","v":0},{"$f":"SUMPRODUCT(('Fixed assets'!$R$2:$R$1000)*('Fixed assets'!$P$2:$P$1000<$A651)*('Fixed assets'!$Q$2:$Q$1000=Costs!O$617))-SUMPRODUCT(('Fixed assets'!$S$2:$S$1000)*('Fixed assets'!$P$2:$P$1000<Costs!$A651)*('Fixed assets'!$Q$2:$Q$1000=Costs!O$617))-SUMPRODUCT(('Fixed assets'!$Q$2:$Q$1000=Costs!O$617)*('Fixed assets'!$U$2:$U$1000=Costs!$A651)*('Fixed assets'!$S$2:$S$1000))+SUMPRODUCT(('Fixed assets'!$Q$2:$Q$1000=Costs!O$617)*('Fixed assets'!$P$2:$P$1000=Costs!$A651)*('Fixed assets'!$U$2:$U$1000=Costs!$A651)*('Fixed assets'!$R$2:$R$1000))","v":0},{"$f":"SUMPRODUCT(('Fixed assets'!$R$2:$R$1000)*('Fixed assets'!$P$2:$P$1000<$A651)*('Fixed assets'!$Q$2:$Q$1000=Costs!P$617))-SUMPRODUCT(('Fixed assets'!$S$2:$S$1000)*('Fixed assets'!$P$2:$P$1000<Costs!$A651)*('Fixed assets'!$Q$2:$Q$1000=Costs!P$617))-SUMPRODUCT(('Fixed assets'!$Q$2:$Q$1000=Costs!P$617)*('Fixed assets'!$U$2:$U$1000=Costs!$A651)*('Fixed assets'!$S$2:$S$1000))+SUMPRODUCT(('Fixed assets'!$Q$2:$Q$1000=Costs!P$617)*('Fixed assets'!$P$2:$P$1000=Costs!$A651)*('Fixed assets'!$U$2:$U$1000=Costs!$A651)*('Fixed assets'!$R$2:$R$1000))","v":0},{"$f":"SUMPRODUCT(('Fixed assets'!$R$2:$R$1000)*('Fixed assets'!$P$2:$P$1000<$A651)*('Fixed assets'!$Q$2:$Q$1000=Costs!Q$617))-SUMPRODUCT(('Fixed assets'!$S$2:$S$1000)*('Fixed assets'!$P$2:$P$1000<Costs!$A651)*('Fixed assets'!$Q$2:$Q$1000=Costs!Q$617))-SUMPRODUCT(('Fixed assets'!$Q$2:$Q$1000=Costs!Q$617)*('Fixed assets'!$U$2:$U$1000=Costs!$A651)*('Fixed assets'!$S$2:$S$1000))+SUMPRODUCT(('Fixed assets'!$Q$2:$Q$1000=Costs!Q$617)*('Fixed assets'!$P$2:$P$1000=Costs!$A651)*('Fixed assets'!$U$2:$U$1000=Costs!$A651)*('Fixed assets'!$R$2:$R$1000))","v":0},{"$f":"SUMPRODUCT(('Fixed assets'!$R$2:$R$1000)*('Fixed assets'!$P$2:$P$1000<$A651)*('Fixed assets'!$Q$2:$Q$1000=Costs!R$617))-SUMPRODUCT(('Fixed assets'!$S$2:$S$1000)*('Fixed assets'!$P$2:$P$1000<Costs!$A651)*('Fixed assets'!$Q$2:$Q$1000=Costs!R$617))-SUMPRODUCT(('Fixed assets'!$Q$2:$Q$1000=Costs!R$617)*('Fixed assets'!$U$2:$U$1000=Costs!$A651)*('Fixed assets'!$S$2:$S$1000))+SUMPRODUCT(('Fixed assets'!$Q$2:$Q$1000=Costs!R$617)*('Fixed assets'!$P$2:$P$1000=Costs!$A651)*('Fixed assets'!$U$2:$U$1000=Costs!$A651)*('Fixed assets'!$R$2:$R$1000))","v":0},{"$f":"SUMPRODUCT(('Fixed assets'!$R$2:$R$1000)*('Fixed assets'!$P$2:$P$1000<$A651)*('Fixed assets'!$Q$2:$Q$1000=Costs!S$617))-SUMPRODUCT(('Fixed assets'!$S$2:$S$1000)*('Fixed assets'!$P$2:$P$1000<Costs!$A651)*('Fixed assets'!$Q$2:$Q$1000=Costs!S$617))-SUMPRODUCT(('Fixed assets'!$Q$2:$Q$1000=Costs!S$617)*('Fixed assets'!$U$2:$U$1000=Costs!$A651)*('Fixed assets'!$S$2:$S$1000))+SUMPRODUCT(('Fixed assets'!$Q$2:$Q$1000=Costs!S$617)*('Fixed assets'!$P$2:$P$1000=Costs!$A651)*('Fixed assets'!$U$2:$U$1000=Costs!$A651)*('Fixed assets'!$R$2:$R$1000))","v":0},{"$f":"SUMPRODUCT(('Fixed assets'!$R$2:$R$1000)*('Fixed assets'!$P$2:$P$1000<$A651)*('Fixed assets'!$Q$2:$Q$1000=Costs!T$617))-SUMPRODUCT(('Fixed assets'!$S$2:$S$1000)*('Fixed assets'!$P$2:$P$1000<Costs!$A651)*('Fixed assets'!$Q$2:$Q$1000=Costs!T$617))-SUMPRODUCT(('Fixed assets'!$Q$2:$Q$1000=Costs!T$617)*('Fixed assets'!$U$2:$U$1000=Costs!$A651)*('Fixed assets'!$S$2:$S$1000))+SUMPRODUCT(('Fixed assets'!$Q$2:$Q$1000=Costs!T$617)*('Fixed assets'!$P$2:$P$1000=Costs!$A651)*('Fixed assets'!$U$2:$U$1000=Costs!$A651)*('Fixed assets'!$R$2:$R$1000))","v":0},{"$f":"SUMPRODUCT(('Fixed assets'!$R$2:$R$1000)*('Fixed assets'!$P$2:$P$1000<$A651)*('Fixed assets'!$Q$2:$Q$1000=Costs!U$617))-SUMPRODUCT(('Fixed assets'!$S$2:$S$1000)*('Fixed assets'!$P$2:$P$1000<Costs!$A651)*('Fixed assets'!$Q$2:$Q$1000=Costs!U$617))-SUMPRODUCT(('Fixed assets'!$Q$2:$Q$1000=Costs!U$617)*('Fixed assets'!$U$2:$U$1000=Costs!$A651)*('Fixed assets'!$S$2:$S$1000))+SUMPRODUCT(('Fixed assets'!$Q$2:$Q$1000=Costs!U$617)*('Fixed assets'!$P$2:$P$1000=Costs!$A651)*('Fixed assets'!$U$2:$U$1000=Costs!$A651)*('Fixed assets'!$R$2:$R$1000))","v":0},{"$f":"SUMPRODUCT(('Fixed assets'!$R$2:$R$1000)*('Fixed assets'!$P$2:$P$1000<$A651)*('Fixed assets'!$Q$2:$Q$1000=Costs!V$617))-SUMPRODUCT(('Fixed assets'!$S$2:$S$1000)*('Fixed assets'!$P$2:$P$1000<Costs!$A651)*('Fixed assets'!$Q$2:$Q$1000=Costs!V$617))-SUMPRODUCT(('Fixed assets'!$Q$2:$Q$1000=Costs!V$617)*('Fixed assets'!$U$2:$U$1000=Costs!$A651)*('Fixed assets'!$S$2:$S$1000))+SUMPRODUCT(('Fixed assets'!$Q$2:$Q$1000=Costs!V$617)*('Fixed assets'!$P$2:$P$1000=Costs!$A651)*('Fixed assets'!$U$2:$U$1000=Costs!$A651)*('Fixed assets'!$R$2:$R$1000))","v":0},{"$f":"SUMPRODUCT(('Fixed assets'!$R$2:$R$1000)*('Fixed assets'!$P$2:$P$1000<$A651)*('Fixed assets'!$Q$2:$Q$1000=Costs!W$617))-SUMPRODUCT(('Fixed assets'!$S$2:$S$1000)*('Fixed assets'!$P$2:$P$1000<Costs!$A651)*('Fixed assets'!$Q$2:$Q$1000=Costs!W$617))-SUMPRODUCT(('Fixed assets'!$Q$2:$Q$1000=Costs!W$617)*('Fixed assets'!$U$2:$U$1000=Costs!$A651)*('Fixed assets'!$S$2:$S$1000))+SUMPRODUCT(('Fixed assets'!$Q$2:$Q$1000=Costs!W$617)*('Fixed assets'!$P$2:$P$1000=Costs!$A651)*('Fixed assets'!$U$2:$U$1000=Costs!$A651)*('Fixed assets'!$R$2:$R$1000))","v":0},{"$f":"SUMPRODUCT(('Fixed assets'!$R$2:$R$1000)*('Fixed assets'!$P$2:$P$1000<$A651)*('Fixed assets'!$Q$2:$Q$1000=Costs!X$617))-SUMPRODUCT(('Fixed assets'!$S$2:$S$1000)*('Fixed assets'!$P$2:$P$1000<Costs!$A651)*('Fixed assets'!$Q$2:$Q$1000=Costs!X$617))-SUMPRODUCT(('Fixed assets'!$Q$2:$Q$1000=Costs!X$617)*('Fixed assets'!$U$2:$U$1000=Costs!$A651)*('Fixed assets'!$S$2:$S$1000))+SUMPRODUCT(('Fixed assets'!$Q$2:$Q$1000=Costs!X$617)*('Fixed assets'!$P$2:$P$1000=Costs!$A651)*('Fixed assets'!$U$2:$U$1000=Costs!$A651)*('Fixed assets'!$R$2:$R$1000))","v":0},{"$f":"SUMPRODUCT(('Fixed assets'!$R$2:$R$1000)*('Fixed assets'!$P$2:$P$1000<$A651)*('Fixed assets'!$Q$2:$Q$1000=Costs!Y$617))-SUMPRODUCT(('Fixed assets'!$S$2:$S$1000)*('Fixed assets'!$P$2:$P$1000<Costs!$A651)*('Fixed assets'!$Q$2:$Q$1000=Costs!Y$617))-SUMPRODUCT(('Fixed assets'!$Q$2:$Q$1000=Costs!Y$617)*('Fixed assets'!$U$2:$U$1000=Costs!$A651)*('Fixed assets'!$S$2:$S$1000))+SUMPRODUCT(('Fixed assets'!$Q$2:$Q$1000=Costs!Y$617)*('Fixed assets'!$P$2:$P$1000=Costs!$A651)*('Fixed assets'!$U$2:$U$1000=Costs!$A651)*('Fixed assets'!$R$2:$R$1000))","v":0},{"$f":"SUMPRODUCT(('Fixed assets'!$R$2:$R$1000)*('Fixed assets'!$P$2:$P$1000<$A651)*('Fixed assets'!$Q$2:$Q$1000=Costs!Z$617))-SUMPRODUCT(('Fixed assets'!$S$2:$S$1000)*('Fixed assets'!$P$2:$P$1000<Costs!$A651)*('Fixed assets'!$Q$2:$Q$1000=Costs!Z$617))-SUMPRODUCT(('Fixed assets'!$Q$2:$Q$1000=Costs!Z$617)*('Fixed assets'!$U$2:$U$1000=Costs!$A651)*('Fixed assets'!$S$2:$S$1000))+SUMPRODUCT(('Fixed assets'!$Q$2:$Q$1000=Costs!Z$617)*('Fixed assets'!$P$2:$P$1000=Costs!$A651)*('Fixed assets'!$U$2:$U$1000=Costs!$A651)*('Fixed assets'!$R$2:$R$1000))","v":0},{"$f":"SUMPRODUCT(('Fixed assets'!$R$2:$R$1000)*('Fixed assets'!$P$2:$P$1000<$A651)*('Fixed assets'!$Q$2:$Q$1000=Costs!AA$617))-SUMPRODUCT(('Fixed assets'!$S$2:$S$1000)*('Fixed assets'!$P$2:$P$1000<Costs!$A651)*('Fixed assets'!$Q$2:$Q$1000=Costs!AA$617))-SUMPRODUCT(('Fixed assets'!$Q$2:$Q$1000=Costs!AA$617)*('Fixed assets'!$U$2:$U$1000=Costs!$A651)*('Fixed assets'!$S$2:$S$1000))+SUMPRODUCT(('Fixed assets'!$Q$2:$Q$1000=Costs!AA$617)*('Fixed assets'!$P$2:$P$1000=Costs!$A651)*('Fixed assets'!$U$2:$U$1000=Costs!$A651)*('Fixed assets'!$R$2:$R$1000))","v":0},{"$f":"SUMPRODUCT(('Fixed assets'!$R$2:$R$1000)*('Fixed assets'!$P$2:$P$1000<$A651)*('Fixed assets'!$Q$2:$Q$1000=Costs!AB$617))-SUMPRODUCT(('Fixed assets'!$S$2:$S$1000)*('Fixed assets'!$P$2:$P$1000<Costs!$A651)*('Fixed assets'!$Q$2:$Q$1000=Costs!AB$617))-SUMPRODUCT(('Fixed assets'!$Q$2:$Q$1000=Costs!AB$617)*('Fixed assets'!$U$2:$U$1000=Costs!$A651)*('Fixed assets'!$S$2:$S$1000))+SUMPRODUCT(('Fixed assets'!$Q$2:$Q$1000=Costs!AB$617)*('Fixed assets'!$P$2:$P$1000=Costs!$A651)*('Fixed assets'!$U$2:$U$1000=Costs!$A651)*('Fixed assets'!$R$2:$R$1000))","v":0},{"$f":"SUMPRODUCT(('Fixed assets'!$R$2:$R$1000)*('Fixed assets'!$P$2:$P$1000<$A651)*('Fixed assets'!$Q$2:$Q$1000=Costs!AC$617))-SUMPRODUCT(('Fixed assets'!$S$2:$S$1000)*('Fixed assets'!$P$2:$P$1000<Costs!$A651)*('Fixed assets'!$Q$2:$Q$1000=Costs!AC$617))-SUMPRODUCT(('Fixed assets'!$Q$2:$Q$1000=Costs!AC$617)*('Fixed assets'!$U$2:$U$1000=Costs!$A651)*('Fixed assets'!$S$2:$S$1000))+SUMPRODUCT(('Fixed assets'!$Q$2:$Q$1000=Costs!AC$617)*('Fixed assets'!$P$2:$P$1000=Costs!$A651)*('Fixed assets'!$U$2:$U$1000=Costs!$A651)*('Fixed assets'!$R$2:$R$1000))","v":0},{"$f":"SUMPRODUCT(('Fixed assets'!$R$2:$R$1000)*('Fixed assets'!$P$2:$P$1000<$A651)*('Fixed assets'!$Q$2:$Q$1000=Costs!AD$617))-SUMPRODUCT(('Fixed assets'!$S$2:$S$1000)*('Fixed assets'!$P$2:$P$1000<Costs!$A651)*('Fixed assets'!$Q$2:$Q$1000=Costs!AD$617))-SUMPRODUCT(('Fixed assets'!$Q$2:$Q$1000=Costs!AD$617)*('Fixed assets'!$U$2:$U$1000=Costs!$A651)*('Fixed assets'!$S$2:$S$1000))+SUMPRODUCT(('Fixed assets'!$Q$2:$Q$1000=Costs!AD$617)*('Fixed assets'!$P$2:$P$1000=Costs!$A651)*('Fixed assets'!$U$2:$U$1000=Costs!$A651)*('Fixed assets'!$R$2:$R$1000))","v":0},{"$f":"SUMPRODUCT(('Fixed assets'!$R$2:$R$1000)*('Fixed assets'!$P$2:$P$1000<$A651)*('Fixed assets'!$Q$2:$Q$1000=Costs!AE$617))-SUMPRODUCT(('Fixed assets'!$S$2:$S$1000)*('Fixed assets'!$P$2:$P$1000<Costs!$A651)*('Fixed assets'!$Q$2:$Q$1000=Costs!AE$617))-SUMPRODUCT(('Fixed assets'!$Q$2:$Q$1000=Costs!AE$617)*('Fixed assets'!$U$2:$U$1000=Costs!$A651)*('Fixed assets'!$S$2:$S$1000))+SUMPRODUCT(('Fixed assets'!$Q$2:$Q$1000=Costs!AE$617)*('Fixed assets'!$P$2:$P$1000=Costs!$A651)*('Fixed assets'!$U$2:$U$1000=Costs!$A651)*('Fixed assets'!$R$2:$R$1000))","v":0},{"$f":"SUMPRODUCT(('Fixed assets'!$R$2:$R$1000)*('Fixed assets'!$P$2:$P$1000<$A651)*('Fixed assets'!$Q$2:$Q$1000=Costs!AF$617))-SUMPRODUCT(('Fixed assets'!$S$2:$S$1000)*('Fixed assets'!$P$2:$P$1000<Costs!$A651)*('Fixed assets'!$Q$2:$Q$1000=Costs!AF$617))-SUMPRODUCT(('Fixed assets'!$Q$2:$Q$1000=Costs!AF$617)*('Fixed assets'!$U$2:$U$1000=Costs!$A651)*('Fixed assets'!$S$2:$S$1000))+SUMPRODUCT(('Fixed assets'!$Q$2:$Q$1000=Costs!AF$617)*('Fixed assets'!$P$2:$P$1000=Costs!$A651)*('Fixed assets'!$U$2:$U$1000=Costs!$A651)*('Fixed assets'!$R$2:$R$1000))","v":0},{"$f":"SUMPRODUCT(('Fixed assets'!$R$2:$R$1000)*('Fixed assets'!$P$2:$P$1000<$A651)*('Fixed assets'!$Q$2:$Q$1000=Costs!AG$617))-SUMPRODUCT(('Fixed assets'!$S$2:$S$1000)*('Fixed assets'!$P$2:$P$1000<Costs!$A651)*('Fixed assets'!$Q$2:$Q$1000=Costs!AG$617))-SUMPRODUCT(('Fixed assets'!$Q$2:$Q$1000=Costs!AG$617)*('Fixed assets'!$U$2:$U$1000=Costs!$A651)*('Fixed assets'!$S$2:$S$1000))+SUMPRODUCT(('Fixed assets'!$Q$2:$Q$1000=Costs!AG$617)*('Fixed assets'!$P$2:$P$1000=Costs!$A651)*('Fixed assets'!$U$2:$U$1000=Costs!$A651)*('Fixed assets'!$R$2:$R$1000))","v":0},{"$f":"SUMPRODUCT(('Fixed assets'!$R$2:$R$1000)*('Fixed assets'!$P$2:$P$1000<$A651)*('Fixed assets'!$Q$2:$Q$1000=Costs!AH$617))-SUMPRODUCT(('Fixed assets'!$S$2:$S$1000)*('Fixed assets'!$P$2:$P$1000<Costs!$A651)*('Fixed assets'!$Q$2:$Q$1000=Costs!AH$617))-SUMPRODUCT(('Fixed assets'!$Q$2:$Q$1000=Costs!AH$617)*('Fixed assets'!$U$2:$U$1000=Costs!$A651)*('Fixed assets'!$S$2:$S$1000))+SUMPRODUCT(('Fixed assets'!$Q$2:$Q$1000=Costs!AH$617)*('Fixed assets'!$P$2:$P$1000=Costs!$A651)*('Fixed assets'!$U$2:$U$1000=Costs!$A651)*('Fixed assets'!$R$2:$R$1000))","v":0},{"$f":"SUMPRODUCT(('Fixed assets'!$R$2:$R$1000)*('Fixed assets'!$P$2:$P$1000<$A651)*('Fixed assets'!$Q$2:$Q$1000=Costs!AI$617))-SUMPRODUCT(('Fixed assets'!$S$2:$S$1000)*('Fixed assets'!$P$2:$P$1000<Costs!$A651)*('Fixed assets'!$Q$2:$Q$1000=Costs!AI$617))-SUMPRODUCT(('Fixed assets'!$Q$2:$Q$1000=Costs!AI$617)*('Fixed assets'!$U$2:$U$1000=Costs!$A651)*('Fixed assets'!$S$2:$S$1000))+SUMPRODUCT(('Fixed assets'!$Q$2:$Q$1000=Costs!AI$617)*('Fixed assets'!$P$2:$P$1000=Costs!$A651)*('Fixed assets'!$U$2:$U$1000=Costs!$A651)*('Fixed assets'!$R$2:$R$1000))","v":0},{"$f":"SUMPRODUCT(('Fixed assets'!$R$2:$R$1000)*('Fixed assets'!$P$2:$P$1000<$A651)*('Fixed assets'!$Q$2:$Q$1000=Costs!AJ$617))-SUMPRODUCT(('Fixed assets'!$S$2:$S$1000)*('Fixed assets'!$P$2:$P$1000<Costs!$A651)*('Fixed assets'!$Q$2:$Q$1000=Costs!AJ$617))-SUMPRODUCT(('Fixed assets'!$Q$2:$Q$1000=Costs!AJ$617)*('Fixed assets'!$U$2:$U$1000=Costs!$A651)*('Fixed assets'!$S$2:$S$1000))+SUMPRODUCT(('Fixed assets'!$Q$2:$Q$1000=Costs!AJ$617)*('Fixed assets'!$P$2:$P$1000=Costs!$A651)*('Fixed assets'!$U$2:$U$1000=Costs!$A651)*('Fixed assets'!$R$2:$R$1000))","v":0},{"$f":"SUMPRODUCT(('Fixed assets'!$R$2:$R$1000)*('Fixed assets'!$P$2:$P$1000<$A651)*('Fixed assets'!$Q$2:$Q$1000=Costs!AK$617))-SUMPRODUCT(('Fixed assets'!$S$2:$S$1000)*('Fixed assets'!$P$2:$P$1000<Costs!$A651)*('Fixed assets'!$Q$2:$Q$1000=Costs!AK$617))-SUMPRODUCT(('Fixed assets'!$Q$2:$Q$1000=Costs!AK$617)*('Fixed assets'!$U$2:$U$1000=Costs!$A651)*('Fixed assets'!$S$2:$S$1000))+SUMPRODUCT(('Fixed assets'!$Q$2:$Q$1000=Costs!AK$617)*('Fixed assets'!$P$2:$P$1000=Costs!$A651)*('Fixed assets'!$U$2:$U$1000=Costs!$A651)*('Fixed assets'!$R$2:$R$1000))","v":0},{"$f":"SUMPRODUCT(('Fixed assets'!$R$2:$R$1000)*('Fixed assets'!$P$2:$P$1000<$A651)*('Fixed assets'!$Q$2:$Q$1000=Costs!AL$617))-SUMPRODUCT(('Fixed assets'!$S$2:$S$1000)*('Fixed assets'!$P$2:$P$1000<Costs!$A651)*('Fixed assets'!$Q$2:$Q$1000=Costs!AL$617))-SUMPRODUCT(('Fixed assets'!$Q$2:$Q$1000=Costs!AL$617)*('Fixed assets'!$U$2:$U$1000=Costs!$A651)*('Fixed assets'!$S$2:$S$1000))+SUMPRODUCT(('Fixed assets'!$Q$2:$Q$1000=Costs!AL$617)*('Fixed assets'!$P$2:$P$1000=Costs!$A651)*('Fixed assets'!$U$2:$U$1000=Costs!$A651)*('Fixed assets'!$R$2:$R$1000))","v":0},{"$f":"SUMPRODUCT(('Fixed assets'!$R$2:$R$1000)*('Fixed assets'!$P$2:$P$1000<$A651)*('Fixed assets'!$Q$2:$Q$1000=Costs!AM$617))-SUMPRODUCT(('Fixed assets'!$S$2:$S$1000)*('Fixed assets'!$P$2:$P$1000<Costs!$A651)*('Fixed assets'!$Q$2:$Q$1000=Costs!AM$617))-SUMPRODUCT(('Fixed assets'!$Q$2:$Q$1000=Costs!AM$617)*('Fixed assets'!$U$2:$U$1000=Costs!$A651)*('Fixed assets'!$S$2:$S$1000))+SUMPRODUCT(('Fixed assets'!$Q$2:$Q$1000=Costs!AM$617)*('Fixed assets'!$P$2:$P$1000=Costs!$A651)*('Fixed assets'!$U$2:$U$1000=Costs!$A651)*('Fixed assets'!$R$2:$R$1000))","v":0},{"$f":"SUMPRODUCT(('Fixed assets'!$R$2:$R$1000)*('Fixed assets'!$P$2:$P$1000<$A651)*('Fixed assets'!$Q$2:$Q$1000=Costs!AN$617))-SUMPRODUCT(('Fixed assets'!$S$2:$S$1000)*('Fixed assets'!$P$2:$P$1000<Costs!$A651)*('Fixed assets'!$Q$2:$Q$1000=Costs!AN$617))-SUMPRODUCT(('Fixed assets'!$Q$2:$Q$1000=Costs!AN$617)*('Fixed assets'!$U$2:$U$1000=Costs!$A651)*('Fixed assets'!$S$2:$S$1000))+SUMPRODUCT(('Fixed assets'!$Q$2:$Q$1000=Costs!AN$617)*('Fixed assets'!$P$2:$P$1000=Costs!$A651)*('Fixed assets'!$U$2:$U$1000=Costs!$A651)*('Fixed assets'!$R$2:$R$1000))","v":0},{"$f":"SUMPRODUCT(('Fixed assets'!$R$2:$R$1000)*('Fixed assets'!$P$2:$P$1000<$A651)*('Fixed assets'!$Q$2:$Q$1000=Costs!AO$617))-SUMPRODUCT(('Fixed assets'!$S$2:$S$1000)*('Fixed assets'!$P$2:$P$1000<Costs!$A651)*('Fixed assets'!$Q$2:$Q$1000=Costs!AO$617))-SUMPRODUCT(('Fixed assets'!$Q$2:$Q$1000=Costs!AO$617)*('Fixed assets'!$U$2:$U$1000=Costs!$A651)*('Fixed assets'!$S$2:$S$1000))+SUMPRODUCT(('Fixed assets'!$Q$2:$Q$1000=Costs!AO$617)*('Fixed assets'!$P$2:$P$1000=Costs!$A651)*('Fixed assets'!$U$2:$U$1000=Costs!$A651)*('Fixed assets'!$R$2:$R$1000))","v":0},{"$f":"SUMPRODUCT(('Fixed assets'!$R$2:$R$1000)*('Fixed assets'!$P$2:$P$1000<$A651)*('Fixed assets'!$Q$2:$Q$1000=Costs!AP$617))-SUMPRODUCT(('Fixed assets'!$S$2:$S$1000)*('Fixed assets'!$P$2:$P$1000<Costs!$A651)*('Fixed assets'!$Q$2:$Q$1000=Costs!AP$617))-SUMPRODUCT(('Fixed assets'!$Q$2:$Q$1000=Costs!AP$617)*('Fixed assets'!$U$2:$U$1000=Costs!$A651)*('Fixed assets'!$S$2:$S$1000))+SUMPRODUCT(('Fixed assets'!$Q$2:$Q$1000=Costs!AP$617)*('Fixed assets'!$P$2:$P$1000=Costs!$A651)*('Fixed assets'!$U$2:$U$1000=Costs!$A651)*('Fixed assets'!$R$2:$R$1000))","v":0},{"$f":"SUMPRODUCT(('Fixed assets'!$R$2:$R$1000)*('Fixed assets'!$P$2:$P$1000<$A651)*('Fixed assets'!$Q$2:$Q$1000=Costs!AQ$617))-SUMPRODUCT(('Fixed assets'!$S$2:$S$1000)*('Fixed assets'!$P$2:$P$1000<Costs!$A651)*('Fixed assets'!$Q$2:$Q$1000=Costs!AQ$617))-SUMPRODUCT(('Fixed assets'!$Q$2:$Q$1000=Costs!AQ$617)*('Fixed assets'!$U$2:$U$1000=Costs!$A651)*('Fixed assets'!$S$2:$S$1000))+SUMPRODUCT(('Fixed assets'!$Q$2:$Q$1000=Costs!AQ$617)*('Fixed assets'!$P$2:$P$1000=Costs!$A651)*('Fixed assets'!$U$2:$U$1000=Costs!$A651)*('Fixed assets'!$R$2:$R$1000))","v":0}]
[2049,0,{"$f":"SUMPRODUCT(('Fixed assets'!$R$2:$R$1000)*('Fixed assets'!$P$2:$P$1000<$A652)*('Fixed assets'!$Q$2:$Q$1000=Costs!C$617))-SUMPRODUCT(('Fixed assets'!$S$2:$S$1000)*('Fixed assets'!$P$2:$P$1000<Costs!$A652)*('Fixed assets'!$Q$2:$Q$1000=Costs!C$617))-SUMPRODUCT(('Fixed assets'!$Q$2:$Q$1000=Costs!C$617)*('Fixed assets'!$U$2:$U$1000=Costs!$A652)*('Fixed assets'!$S$2:$S$1000))+SUMPRODUCT(('Fixed assets'!$Q$2:$Q$1000=Costs!C$617)*('Fixed assets'!$P$2:$P$1000=Costs!$A652)*('Fixed assets'!$U$2:$U$1000=Costs!$A652)*('Fixed assets'!$R$2:$R$1000))","v":0},{"$f":"SUMPRODUCT(('Fixed assets'!$R$2:$R$1000)*('Fixed assets'!$P$2:$P$1000<$A652)*('Fixed assets'!$Q$2:$Q$1000=Costs!D$617))-SUMPRODUCT(('Fixed assets'!$S$2:$S$1000)*('Fixed assets'!$P$2:$P$1000<Costs!$A652)*('Fixed assets'!$Q$2:$Q$1000=Costs!D$617))-SUMPRODUCT(('Fixed assets'!$Q$2:$Q$1000=Costs!D$617)*('Fixed assets'!$U$2:$U$1000=Costs!$A652)*('Fixed assets'!$S$2:$S$1000))+SUMPRODUCT(('Fixed assets'!$Q$2:$Q$1000=Costs!D$617)*('Fixed assets'!$P$2:$P$1000=Costs!$A652)*('Fixed assets'!$U$2:$U$1000=Costs!$A652)*('Fixed assets'!$R$2:$R$1000))","v":0},{"$f":"SUMPRODUCT(('Fixed assets'!$R$2:$R$1000)*('Fixed assets'!$P$2:$P$1000<$A652)*('Fixed assets'!$Q$2:$Q$1000=Costs!E$617))-SUMPRODUCT(('Fixed assets'!$S$2:$S$1000)*('Fixed assets'!$P$2:$P$1000<Costs!$A652)*('Fixed assets'!$Q$2:$Q$1000=Costs!E$617))-SUMPRODUCT(('Fixed assets'!$Q$2:$Q$1000=Costs!E$617)*('Fixed assets'!$U$2:$U$1000=Costs!$A652)*('Fixed assets'!$S$2:$S$1000))+SUMPRODUCT(('Fixed assets'!$Q$2:$Q$1000=Costs!E$617)*('Fixed assets'!$P$2:$P$1000=Costs!$A652)*('Fixed assets'!$U$2:$U$1000=Costs!$A652)*('Fixed assets'!$R$2:$R$1000))","v":0},{"$f":"SUMPRODUCT(('Fixed assets'!$R$2:$R$1000)*('Fixed assets'!$P$2:$P$1000<$A652)*('Fixed assets'!$Q$2:$Q$1000=Costs!F$617))-SUMPRODUCT(('Fixed assets'!$S$2:$S$1000)*('Fixed assets'!$P$2:$P$1000<Costs!$A652)*('Fixed assets'!$Q$2:$Q$1000=Costs!F$617))-SUMPRODUCT(('Fixed assets'!$Q$2:$Q$1000=Costs!F$617)*('Fixed assets'!$U$2:$U$1000=Costs!$A652)*('Fixed assets'!$S$2:$S$1000))+SUMPRODUCT(('Fixed assets'!$Q$2:$Q$1000=Costs!F$617)*('Fixed assets'!$P$2:$P$1000=Costs!$A652)*('Fixed assets'!$U$2:$U$1000=Costs!$A652)*('Fixed assets'!$R$2:$R$1000))","v":0},{"$f":"SUMPRODUCT(('Fixed assets'!$R$2:$R$1000)*('Fixed assets'!$P$2:$P$1000<$A652)*('Fixed assets'!$Q$2:$Q$1000=Costs!G$617))-SUMPRODUCT(('Fixed assets'!$S$2:$S$1000)*('Fixed assets'!$P$2:$P$1000<Costs!$A652)*('Fixed assets'!$Q$2:$Q$1000=Costs!G$617))-SUMPRODUCT(('Fixed assets'!$Q$2:$Q$1000=Costs!G$617)*('Fixed assets'!$U$2:$U$1000=Costs!$A652)*('Fixed assets'!$S$2:$S$1000))+SUMPRODUCT(('Fixed assets'!$Q$2:$Q$1000=Costs!G$617)*('Fixed assets'!$P$2:$P$1000=Costs!$A652)*('Fixed assets'!$U$2:$U$1000=Costs!$A652)*('Fixed assets'!$R$2:$R$1000))","v":0},{"$f":"SUMPRODUCT(('Fixed assets'!$R$2:$R$1000)*('Fixed assets'!$P$2:$P$1000<$A652)*('Fixed assets'!$Q$2:$Q$1000=Costs!H$617))-SUMPRODUCT(('Fixed assets'!$S$2:$S$1000)*('Fixed assets'!$P$2:$P$1000<Costs!$A652)*('Fixed assets'!$Q$2:$Q$1000=Costs!H$617))-SUMPRODUCT(('Fixed assets'!$Q$2:$Q$1000=Costs!H$617)*('Fixed assets'!$U$2:$U$1000=Costs!$A652)*('Fixed assets'!$S$2:$S$1000))+SUMPRODUCT(('Fixed assets'!$Q$2:$Q$1000=Costs!H$617)*('Fixed assets'!$P$2:$P$1000=Costs!$A652)*('Fixed assets'!$U$2:$U$1000=Costs!$A652)*('Fixed assets'!$R$2:$R$1000))","v":0},{"$f":"SUMPRODUCT(('Fixed assets'!$R$2:$R$1000)*('Fixed assets'!$P$2:$P$1000<$A652)*('Fixed assets'!$Q$2:$Q$1000=Costs!I$617))-SUMPRODUCT(('Fixed assets'!$S$2:$S$1000)*('Fixed assets'!$P$2:$P$1000<Costs!$A652)*('Fixed assets'!$Q$2:$Q$1000=Costs!I$617))-SUMPRODUCT(('Fixed assets'!$Q$2:$Q$1000=Costs!I$617)*('Fixed assets'!$U$2:$U$1000=Costs!$A652)*('Fixed assets'!$S$2:$S$1000))+SUMPRODUCT(('Fixed assets'!$Q$2:$Q$1000=Costs!I$617)*('Fixed assets'!$P$2:$P$1000=Costs!$A652)*('Fixed assets'!$U$2:$U$1000=Costs!$A652)*('Fixed assets'!$R$2:$R$1000))","v":0},{"$f":"SUMPRODUCT(('Fixed assets'!$R$2:$R$1000)*('Fixed assets'!$P$2:$P$1000<$A652)*('Fixed assets'!$Q$2:$Q$1000=Costs!J$617))-SUMPRODUCT(('Fixed assets'!$S$2:$S$1000)*('Fixed assets'!$P$2:$P$1000<Costs!$A652)*('Fixed assets'!$Q$2:$Q$1000=Costs!J$617))-SUMPRODUCT(('Fixed assets'!$Q$2:$Q$1000=Costs!J$617)*('Fixed assets'!$U$2:$U$1000=Costs!$A652)*('Fixed assets'!$S$2:$S$1000))+SUMPRODUCT(('Fixed assets'!$Q$2:$Q$1000=Costs!J$617)*('Fixed assets'!$P$2:$P$1000=Costs!$A652)*('Fixed assets'!$U$2:$U$1000=Costs!$A652)*('Fixed assets'!$R$2:$R$1000))","v":0},{"$f":"SUMPRODUCT(('Fixed assets'!$R$2:$R$1000)*('Fixed assets'!$P$2:$P$1000<$A652)*('Fixed assets'!$Q$2:$Q$1000=Costs!K$617))-SUMPRODUCT(('Fixed assets'!$S$2:$S$1000)*('Fixed assets'!$P$2:$P$1000<Costs!$A652)*('Fixed assets'!$Q$2:$Q$1000=Costs!K$617))-SUMPRODUCT(('Fixed assets'!$Q$2:$Q$1000=Costs!K$617)*('Fixed assets'!$U$2:$U$1000=Costs!$A652)*('Fixed assets'!$S$2:$S$1000))+SUMPRODUCT(('Fixed assets'!$Q$2:$Q$1000=Costs!K$617)*('Fixed assets'!$P$2:$P$1000=Costs!$A652)*('Fixed assets'!$U$2:$U$1000=Costs!$A652)*('Fixed assets'!$R$2:$R$1000))","v":0},{"$f":"SUMPRODUCT(('Fixed assets'!$R$2:$R$1000)*('Fixed assets'!$P$2:$P$1000<$A652)*('Fixed assets'!$Q$2:$Q$1000=Costs!L$617))-SUMPRODUCT(('Fixed assets'!$S$2:$S$1000)*('Fixed assets'!$P$2:$P$1000<Costs!$A652)*('Fixed assets'!$Q$2:$Q$1000=Costs!L$617))-SUMPRODUCT(('Fixed assets'!$Q$2:$Q$1000=Costs!L$617)*('Fixed assets'!$U$2:$U$1000=Costs!$A652)*('Fixed assets'!$S$2:$S$1000))+SUMPRODUCT(('Fixed assets'!$Q$2:$Q$1000=Costs!L$617)*('Fixed assets'!$P$2:$P$1000=Costs!$A652)*('Fixed assets'!$U$2:$U$1000=Costs!$A652)*('Fixed assets'!$R$2:$R$1000))","v":0},{"$f":"SUMPRODUCT(('Fixed assets'!$R$2:$R$1000)*('Fixed assets'!$P$2:$P$1000<$A652)*('Fixed assets'!$Q$2:$Q$1000=Costs!M$617))-SUMPRODUCT(('Fixed assets'!$S$2:$S$1000)*('Fixed assets'!$P$2:$P$1000<Costs!$A652)*('Fixed assets'!$Q$2:$Q$1000=Costs!M$617))-SUMPRODUCT(('Fixed assets'!$Q$2:$Q$1000=Costs!M$617)*('Fixed assets'!$U$2:$U$1000=Costs!$A652)*('Fixed assets'!$S$2:$S$1000))+SUMPRODUCT(('Fixed assets'!$Q$2:$Q$1000=Costs!M$617)*('Fixed assets'!$P$2:$P$1000=Costs!$A652)*('Fixed assets'!$U$2:$U$1000=Costs!$A652)*('Fixed assets'!$R$2:$R$1000))","v":0},{"$f":"SUMPRODUCT(('Fixed assets'!$R$2:$R$1000)*('Fixed assets'!$P$2:$P$1000<$A652)*('Fixed assets'!$Q$2:$Q$1000=Costs!N$617))-SUMPRODUCT(('Fixed assets'!$S$2:$S$1000)*('Fixed assets'!$P$2:$P$1000<Costs!$A652)*('Fixed assets'!$Q$2:$Q$1000=Costs!N$617))-SUMPRODUCT(('Fixed assets'!$Q$2:$Q$1000=Costs!N$617)*('Fixed assets'!$U$2:$U$1000=Costs!$A652)*('Fixed assets'!$S$2:$S$1000))+SUMPRODUCT(('Fixed assets'!$Q$2:$Q$1000=Costs!N$617)*('Fixed assets'!$P$2:$P$1000=Costs!$A652)*('Fixed assets'!$U$2:$U$1000=Costs!$A652)*('Fixed assets'!$R$2:$R$1000))","v":0},{"$f":"SUMPRODUCT(('Fixed assets'!$R$2:$R$1000)*('Fixed assets'!$P$2:$P$1000<$A652)*('Fixed assets'!$Q$2:$Q$1000=Costs!O$617))-SUMPRODUCT(('Fixed assets'!$S$2:$S$1000)*('Fixed assets'!$P$2:$P$1000<Costs!$A652)*('Fixed assets'!$Q$2:$Q$1000=Costs!O$617))-SUMPRODUCT(('Fixed assets'!$Q$2:$Q$1000=Costs!O$617)*('Fixed assets'!$U$2:$U$1000=Costs!$A652)*('Fixed assets'!$S$2:$S$1000))+SUMPRODUCT(('Fixed assets'!$Q$2:$Q$1000=Costs!O$617)*('Fixed assets'!$P$2:$P$1000=Costs!$A652)*('Fixed assets'!$U$2:$U$1000=Costs!$A652)*('Fixed assets'!$R$2:$R$1000))","v":0},{"$f":"SUMPRODUCT(('Fixed assets'!$R$2:$R$1000)*('Fixed assets'!$P$2:$P$1000<$A652)*('Fixed assets'!$Q$2:$Q$1000=Costs!P$617))-SUMPRODUCT(('Fixed assets'!$S$2:$S$1000)*('Fixed assets'!$P$2:$P$1000<Costs!$A652)*('Fixed assets'!$Q$2:$Q$1000=Costs!P$617))-SUMPRODUCT(('Fixed assets'!$Q$2:$Q$1000=Costs!P$617)*('Fixed assets'!$U$2:$U$1000=Costs!$A652)*('Fixed assets'!$S$2:$S$1000))+SUMPRODUCT(('Fixed assets'!$Q$2:$Q$1000=Costs!P$617)*('Fixed assets'!$P$2:$P$1000=Costs!$A652)*('Fixed assets'!$U$2:$U$1000=Costs!$A652)*('Fixed assets'!$R$2:$R$1000))","v":0},{"$f":"SUMPRODUCT(('Fixed assets'!$R$2:$R$1000)*('Fixed assets'!$P$2:$P$1000<$A652)*('Fixed assets'!$Q$2:$Q$1000=Costs!Q$617))-SUMPRODUCT(('Fixed assets'!$S$2:$S$1000)*('Fixed assets'!$P$2:$P$1000<Costs!$A652)*('Fixed assets'!$Q$2:$Q$1000=Costs!Q$617))-SUMPRODUCT(('Fixed assets'!$Q$2:$Q$1000=Costs!Q$617)*('Fixed assets'!$U$2:$U$1000=Costs!$A652)*('Fixed assets'!$S$2:$S$1000))+SUMPRODUCT(('Fixed assets'!$Q$2:$Q$1000=Costs!Q$617)*('Fixed assets'!$P$2:$P$1000=Costs!$A652)*('Fixed assets'!$U$2:$U$1000=Costs!$A652)*('Fixed assets'!$R$2:$R$1000))","v":0},{"$f":"SUMPRODUCT(('Fixed assets'!$R$2:$R$1000)*('Fixed assets'!$P$2:$P$1000<$A652)*('Fixed assets'!$Q$2:$Q$1000=Costs!R$617))-SUMPRODUCT(('Fixed assets'!$S$2:$S$1000)*('Fixed assets'!$P$2:$P$1000<Costs!$A652)*('Fixed assets'!$Q$2:$Q$1000=Costs!R$617))-SUMPRODUCT(('Fixed assets'!$Q$2:$Q$1000=Costs!R$617)*('Fixed assets'!$U$2:$U$1000=Costs!$A652)*('Fixed assets'!$S$2:$S$1000))+SUMPRODUCT(('Fixed assets'!$Q$2:$Q$1000=Costs!R$617)*('Fixed assets'!$P$2:$P$1000=Costs!$A652)*('Fixed assets'!$U$2:$U$1000=Costs!$A652)*('Fixed assets'!$R$2:$R$1000))","v":0},{"$f":"SUMPRODUCT(('Fixed assets'!$R$2:$R$1000)*('Fixed assets'!$P$2:$P$1000<$A652)*('Fixed assets'!$Q$2:$Q$1000=Costs!S$617))-SUMPRODUCT(('Fixed assets'!$S$2:$S$1000)*('Fixed assets'!$P$2:$P$1000<Costs!$A652)*('Fixed assets'!$Q$2:$Q$1000=Costs!S$617))-SUMPRODUCT(('Fixed assets'!$Q$2:$Q$1000=Costs!S$617)*('Fixed assets'!$U$2:$U$1000=Costs!$A652)*('Fixed assets'!$S$2:$S$1000))+SUMPRODUCT(('Fixed assets'!$Q$2:$Q$1000=Costs!S$617)*('Fixed assets'!$P$2:$P$1000=Costs!$A652)*('Fixed assets'!$U$2:$U$1000=Costs!$A652)*('Fixed assets'!$R$2:$R$1000))","v":0},{"$f":"SUMPRODUCT(('Fixed assets'!$R$2:$R$1000)*('Fixed assets'!$P$2:$P$1000<$A652)*('Fixed assets'!$Q$2:$Q$1000=Costs!T$617))-SUMPRODUCT(('Fixed assets'!$S$2:$S$1000)*('Fixed assets'!$P$2:$P$1000<Costs!$A652)*('Fixed assets'!$Q$2:$Q$1000=Costs!T$617))-SUMPRODUCT(('Fixed assets'!$Q$2:$Q$1000=Costs!T$617)*('Fixed assets'!$U$2:$U$1000=Costs!$A652)*('Fixed assets'!$S$2:$S$1000))+SUMPRODUCT(('Fixed assets'!$Q$2:$Q$1000=Costs!T$617)*('Fixed assets'!$P$2:$P$1000=Costs!$A652)*('Fixed assets'!$U$2:$U$1000=Costs!$A652)*('Fixed assets'!$R$2:$R$1000))","v":0},{"$f":"SUMPRODUCT(('Fixed assets'!$R$2:$R$1000)*('Fixed assets'!$P$2:$P$1000<$A652)*('Fixed assets'!$Q$2:$Q$1000=Costs!U$617))-SUMPRODUCT(('Fixed assets'!$S$2:$S$1000)*('Fixed assets'!$P$2:$P$1000<Costs!$A652)*('Fixed assets'!$Q$2:$Q$1000=Costs!U$617))-SUMPRODUCT(('Fixed assets'!$Q$2:$Q$1000=Costs!U$617)*('Fixed assets'!$U$2:$U$1000=Costs!$A652)*('Fixed assets'!$S$2:$S$1000))+SUMPRODUCT(('Fixed assets'!$Q$2:$Q$1000=Costs!U$617)*('Fixed assets'!$P$2:$P$1000=Costs!$A652)*('Fixed assets'!$U$2:$U$1000=Costs!$A652)*('Fixed assets'!$R$2:$R$1000))","v":0},{"$f":"SUMPRODUCT(('Fixed assets'!$R$2:$R$1000)*('Fixed assets'!$P$2:$P$1000<$A652)*('Fixed assets'!$Q$2:$Q$1000=Costs!V$617))-SUMPRODUCT(('Fixed assets'!$S$2:$S$1000)*('Fixed assets'!$P$2:$P$1000<Costs!$A652)*('Fixed assets'!$Q$2:$Q$1000=Costs!V$617))-SUMPRODUCT(('Fixed assets'!$Q$2:$Q$1000=Costs!V$617)*('Fixed assets'!$U$2:$U$1000=Costs!$A652)*('Fixed assets'!$S$2:$S$1000))+SUMPRODUCT(('Fixed assets'!$Q$2:$Q$1000=Costs!V$617)*('Fixed assets'!$P$2:$P$1000=Costs!$A652)*('Fixed assets'!$U$2:$U$1000=Costs!$A652)*('Fixed assets'!$R$2:$R$1000))","v":0},{"$f":"SUMPRODUCT(('Fixed assets'!$R$2:$R$1000)*('Fixed assets'!$P$2:$P$1000<$A652)*('Fixed assets'!$Q$2:$Q$1000=Costs!W$617))-SUMPRODUCT(('Fixed assets'!$S$2:$S$1000)*('Fixed assets'!$P$2:$P$1000<Costs!$A652)*('Fixed assets'!$Q$2:$Q$1000=Costs!W$617))-SUMPRODUCT(('Fixed assets'!$Q$2:$Q$1000=Costs!W$617)*('Fixed assets'!$U$2:$U$1000=Costs!$A652)*('Fixed assets'!$S$2:$S$1000))+SUMPRODUCT(('Fixed assets'!$Q$2:$Q$1000=Costs!W$617)*('Fixed assets'!$P$2:$P$1000=Costs!$A652)*('Fixed assets'!$U$2:$U$1000=Costs!$A652)*('Fixed assets'!$R$2:$R$1000))","v":0},{"$f":"SUMPRODUCT(('Fixed assets'!$R$2:$R$1000)*('Fixed assets'!$P$2:$P$1000<$A652)*('Fixed assets'!$Q$2:$Q$1000=Costs!X$617))-SUMPRODUCT(('Fixed assets'!$S$2:$S$1000)*('Fixed assets'!$P$2:$P$1000<Costs!$A652)*('Fixed assets'!$Q$2:$Q$1000=Costs!X$617))-SUMPRODUCT(('Fixed assets'!$Q$2:$Q$1000=Costs!X$617)*('Fixed assets'!$U$2:$U$1000=Costs!$A652)*('Fixed assets'!$S$2:$S$1000))+SUMPRODUCT(('Fixed assets'!$Q$2:$Q$1000=Costs!X$617)*('Fixed assets'!$P$2:$P$1000=Costs!$A652)*('Fixed assets'!$U$2:$U$1000=Costs!$A652)*('Fixed assets'!$R$2:$R$1000))","v":0},{"$f":"SUMPRODUCT(('Fixed assets'!$R$2:$R$1000)*('Fixed assets'!$P$2:$P$1000<$A652)*('Fixed assets'!$Q$2:$Q$1000=Costs!Y$617))-SUMPRODUCT(('Fixed assets'!$S$2:$S$1000)*('Fixed assets'!$P$2:$P$1000<Costs!$A652)*('Fixed assets'!$Q$2:$Q$1000=Costs!Y$617))-SUMPRODUCT(('Fixed assets'!$Q$2:$Q$1000=Costs!Y$617)*('Fixed assets'!$U$2:$U$1000=Costs!$A652)*('Fixed assets'!$S$2:$S$1000))+SUMPRODUCT(('Fixed assets'!$Q$2:$Q$1000=Costs!Y$617)*('Fixed assets'!$P$2:$P$1000=Costs!$A652)*('Fixed assets'!$U$2:$U$1000=Costs!$A652)*('Fixed assets'!$R$2:$R$1000))","v":0},{"$f":"SUMPRODUCT(('Fixed assets'!$R$2:$R$1000)*('Fixed assets'!$P$2:$P$1000<$A652)*('Fixed assets'!$Q$2:$Q$1000=Costs!Z$617))-SUMPRODUCT(('Fixed assets'!$S$2:$S$1000)*('Fixed assets'!$P$2:$P$1000<Costs!$A652)*('Fixed assets'!$Q$2:$Q$1000=Costs!Z$617))-SUMPRODUCT(('Fixed assets'!$Q$2:$Q$1000=Costs!Z$617)*('Fixed assets'!$U$2:$U$1000=Costs!$A652)*('Fixed assets'!$S$2:$S$1000))+SUMPRODUCT(('Fixed assets'!$Q$2:$Q$1000=Costs!Z$617)*('Fixed assets'!$P$2:$P$1000=Costs!$A652)*('Fixed assets'!$U$2:$U$1000=Costs!$A652)*('Fixed assets'!$R$2:$R$1000))","v":0},{"$f":"SUMPRODUCT(('Fixed assets'!$R$2:$R$1000)*('Fixed assets'!$P$2:$P$1000<$A652)*('Fixed assets'!$Q$2:$Q$1000=Costs!AA$617))-SUMPRODUCT(('Fixed assets'!$S$2:$S$1000)*('Fixed assets'!$P$2:$P$1000<Costs!$A652)*('Fixed assets'!$Q$2:$Q$1000=Costs!AA$617))-SUMPRODUCT(('Fixed assets'!$Q$2:$Q$1000=Costs!AA$617)*('Fixed assets'!$U$2:$U$1000=Costs!$A652)*('Fixed assets'!$S$2:$S$1000))+SUMPRODUCT(('Fixed assets'!$Q$2:$Q$1000=Costs!AA$617)*('Fixed assets'!$P$2:$P$1000=Costs!$A652)*('Fixed assets'!$U$2:$U$1000=Costs!$A652)*('Fixed assets'!$R$2:$R$1000))","v":0},{"$f":"SUMPRODUCT(('Fixed assets'!$R$2:$R$1000)*('Fixed assets'!$P$2:$P$1000<$A652)*('Fixed assets'!$Q$2:$Q$1000=Costs!AB$617))-SUMPRODUCT(('Fixed assets'!$S$2:$S$1000)*('Fixed assets'!$P$2:$P$1000<Costs!$A652)*('Fixed assets'!$Q$2:$Q$1000=Costs!AB$617))-SUMPRODUCT(('Fixed assets'!$Q$2:$Q$1000=Costs!AB$617)*('Fixed assets'!$U$2:$U$1000=Costs!$A652)*('Fixed assets'!$S$2:$S$1000))+SUMPRODUCT(('Fixed assets'!$Q$2:$Q$1000=Costs!AB$617)*('Fixed assets'!$P$2:$P$1000=Costs!$A652)*('Fixed assets'!$U$2:$U$1000=Costs!$A652)*('Fixed assets'!$R$2:$R$1000))","v":0},{"$f":"SUMPRODUCT(('Fixed assets'!$R$2:$R$1000)*('Fixed assets'!$P$2:$P$1000<$A652)*('Fixed assets'!$Q$2:$Q$1000=Costs!AC$617))-SUMPRODUCT(('Fixed assets'!$S$2:$S$1000)*('Fixed assets'!$P$2:$P$1000<Costs!$A652)*('Fixed assets'!$Q$2:$Q$1000=Costs!AC$617))-SUMPRODUCT(('Fixed assets'!$Q$2:$Q$1000=Costs!AC$617)*('Fixed assets'!$U$2:$U$1000=Costs!$A652)*('Fixed assets'!$S$2:$S$1000))+SUMPRODUCT(('Fixed assets'!$Q$2:$Q$1000=Costs!AC$617)*('Fixed assets'!$P$2:$P$1000=Costs!$A652)*('Fixed assets'!$U$2:$U$1000=Costs!$A652)*('Fixed assets'!$R$2:$R$1000))","v":0},{"$f":"SUMPRODUCT(('Fixed assets'!$R$2:$R$1000)*('Fixed assets'!$P$2:$P$1000<$A652)*('Fixed assets'!$Q$2:$Q$1000=Costs!AD$617))-SUMPRODUCT(('Fixed assets'!$S$2:$S$1000)*('Fixed assets'!$P$2:$P$1000<Costs!$A652)*('Fixed assets'!$Q$2:$Q$1000=Costs!AD$617))-SUMPRODUCT(('Fixed assets'!$Q$2:$Q$1000=Costs!AD$617)*('Fixed assets'!$U$2:$U$1000=Costs!$A652)*('Fixed assets'!$S$2:$S$1000))+SUMPRODUCT(('Fixed assets'!$Q$2:$Q$1000=Costs!AD$617)*('Fixed assets'!$P$2:$P$1000=Costs!$A652)*('Fixed assets'!$U$2:$U$1000=Costs!$A652)*('Fixed assets'!$R$2:$R$1000))","v":0},{"$f":"SUMPRODUCT(('Fixed assets'!$R$2:$R$1000)*('Fixed assets'!$P$2:$P$1000<$A652)*('Fixed assets'!$Q$2:$Q$1000=Costs!AE$617))-SUMPRODUCT(('Fixed assets'!$S$2:$S$1000)*('Fixed assets'!$P$2:$P$1000<Costs!$A652)*('Fixed assets'!$Q$2:$Q$1000=Costs!AE$617))-SUMPRODUCT(('Fixed assets'!$Q$2:$Q$1000=Costs!AE$617)*('Fixed assets'!$U$2:$U$1000=Costs!$A652)*('Fixed assets'!$S$2:$S$1000))+SUMPRODUCT(('Fixed assets'!$Q$2:$Q$1000=Costs!AE$617)*('Fixed assets'!$P$2:$P$1000=Costs!$A652)*('Fixed assets'!$U$2:$U$1000=Costs!$A652)*('Fixed assets'!$R$2:$R$1000))","v":0},{"$f":"SUMPRODUCT(('Fixed assets'!$R$2:$R$1000)*('Fixed assets'!$P$2:$P$1000<$A652)*('Fixed assets'!$Q$2:$Q$1000=Costs!AF$617))-SUMPRODUCT(('Fixed assets'!$S$2:$S$1000)*('Fixed assets'!$P$2:$P$1000<Costs!$A652)*('Fixed assets'!$Q$2:$Q$1000=Costs!AF$617))-SUMPRODUCT(('Fixed assets'!$Q$2:$Q$1000=Costs!AF$617)*('Fixed assets'!$U$2:$U$1000=Costs!$A652)*('Fixed assets'!$S$2:$S$1000))+SUMPRODUCT(('Fixed assets'!$Q$2:$Q$1000=Costs!AF$617)*('Fixed assets'!$P$2:$P$1000=Costs!$A652)*('Fixed assets'!$U$2:$U$1000=Costs!$A652)*('Fixed assets'!$R$2:$R$1000))","v":0},{"$f":"SUMPRODUCT(('Fixed assets'!$R$2:$R$1000)*('Fixed assets'!$P$2:$P$1000<$A652)*('Fixed assets'!$Q$2:$Q$1000=Costs!AG$617))-SUMPRODUCT(('Fixed assets'!$S$2:$S$1000)*('Fixed assets'!$P$2:$P$1000<Costs!$A652)*('Fixed assets'!$Q$2:$Q$1000=Costs!AG$617))-SUMPRODUCT(('Fixed assets'!$Q$2:$Q$1000=Costs!AG$617)*('Fixed assets'!$U$2:$U$1000=Costs!$A652)*('Fixed assets'!$S$2:$S$1000))+SUMPRODUCT(('Fixed assets'!$Q$2:$Q$1000=Costs!AG$617)*('Fixed assets'!$P$2:$P$1000=Costs!$A652)*('Fixed assets'!$U$2:$U$1000=Costs!$A652)*('Fixed assets'!$R$2:$R$1000))","v":0},{"$f":"SUMPRODUCT(('Fixed assets'!$R$2:$R$1000)*('Fixed assets'!$P$2:$P$1000<$A652)*('Fixed assets'!$Q$2:$Q$1000=Costs!AH$617))-SUMPRODUCT(('Fixed assets'!$S$2:$S$1000)*('Fixed assets'!$P$2:$P$1000<Costs!$A652)*('Fixed assets'!$Q$2:$Q$1000=Costs!AH$617))-SUMPRODUCT(('Fixed assets'!$Q$2:$Q$1000=Costs!AH$617)*('Fixed assets'!$U$2:$U$1000=Costs!$A652)*('Fixed assets'!$S$2:$S$1000))+SUMPRODUCT(('Fixed assets'!$Q$2:$Q$1000=Costs!AH$617)*('Fixed assets'!$P$2:$P$1000=Costs!$A652)*('Fixed assets'!$U$2:$U$1000=Costs!$A652)*('Fixed assets'!$R$2:$R$1000))","v":0},{"$f":"SUMPRODUCT(('Fixed assets'!$R$2:$R$1000)*('Fixed assets'!$P$2:$P$1000<$A652)*('Fixed assets'!$Q$2:$Q$1000=Costs!AI$617))-SUMPRODUCT(('Fixed assets'!$S$2:$S$1000)*('Fixed assets'!$P$2:$P$1000<Costs!$A652)*('Fixed assets'!$Q$2:$Q$1000=Costs!AI$617))-SUMPRODUCT(('Fixed assets'!$Q$2:$Q$1000=Costs!AI$617)*('Fixed assets'!$U$2:$U$1000=Costs!$A652)*('Fixed assets'!$S$2:$S$1000))+SUMPRODUCT(('Fixed assets'!$Q$2:$Q$1000=Costs!AI$617)*('Fixed assets'!$P$2:$P$1000=Costs!$A652)*('Fixed assets'!$U$2:$U$1000=Costs!$A652)*('Fixed assets'!$R$2:$R$1000))","v":0},{"$f":"SUMPRODUCT(('Fixed assets'!$R$2:$R$1000)*('Fixed assets'!$P$2:$P$1000<$A652)*('Fixed assets'!$Q$2:$Q$1000=Costs!AJ$617))-SUMPRODUCT(('Fixed assets'!$S$2:$S$1000)*('Fixed assets'!$P$2:$P$1000<Costs!$A652)*('Fixed assets'!$Q$2:$Q$1000=Costs!AJ$617))-SUMPRODUCT(('Fixed assets'!$Q$2:$Q$1000=Costs!AJ$617)*('Fixed assets'!$U$2:$U$1000=Costs!$A652)*('Fixed assets'!$S$2:$S$1000))+SUMPRODUCT(('Fixed assets'!$Q$2:$Q$1000=Costs!AJ$617)*('Fixed assets'!$P$2:$P$1000=Costs!$A652)*('Fixed assets'!$U$2:$U$1000=Costs!$A652)*('Fixed assets'!$R$2:$R$1000))","v":0},{"$f":"SUMPRODUCT(('Fixed assets'!$R$2:$R$1000)*('Fixed assets'!$P$2:$P$1000<$A652)*('Fixed assets'!$Q$2:$Q$1000=Costs!AK$617))-SUMPRODUCT(('Fixed assets'!$S$2:$S$1000)*('Fixed assets'!$P$2:$P$1000<Costs!$A652)*('Fixed assets'!$Q$2:$Q$1000=Costs!AK$617))-SUMPRODUCT(('Fixed assets'!$Q$2:$Q$1000=Costs!AK$617)*('Fixed assets'!$U$2:$U$1000=Costs!$A652)*('Fixed assets'!$S$2:$S$1000))+SUMPRODUCT(('Fixed assets'!$Q$2:$Q$1000=Costs!AK$617)*('Fixed assets'!$P$2:$P$1000=Costs!$A652)*('Fixed assets'!$U$2:$U$1000=Costs!$A652)*('Fixed assets'!$R$2:$R$1000))","v":0},{"$f":"SUMPRODUCT(('Fixed assets'!$R$2:$R$1000)*('Fixed assets'!$P$2:$P$1000<$A652)*('Fixed assets'!$Q$2:$Q$1000=Costs!AL$617))-SUMPRODUCT(('Fixed assets'!$S$2:$S$1000)*('Fixed assets'!$P$2:$P$1000<Costs!$A652)*('Fixed assets'!$Q$2:$Q$1000=Costs!AL$617))-SUMPRODUCT(('Fixed assets'!$Q$2:$Q$1000=Costs!AL$617)*('Fixed assets'!$U$2:$U$1000=Costs!$A652)*('Fixed assets'!$S$2:$S$1000))+SUMPRODUCT(('Fixed assets'!$Q$2:$Q$1000=Costs!AL$617)*('Fixed assets'!$P$2:$P$1000=Costs!$A652)*('Fixed assets'!$U$2:$U$1000=Costs!$A652)*('Fixed assets'!$R$2:$R$1000))","v":0},{"$f":"SUMPRODUCT(('Fixed assets'!$R$2:$R$1000)*('Fixed assets'!$P$2:$P$1000<$A652)*('Fixed assets'!$Q$2:$Q$1000=Costs!AM$617))-SUMPRODUCT(('Fixed assets'!$S$2:$S$1000)*('Fixed assets'!$P$2:$P$1000<Costs!$A652)*('Fixed assets'!$Q$2:$Q$1000=Costs!AM$617))-SUMPRODUCT(('Fixed assets'!$Q$2:$Q$1000=Costs!AM$617)*('Fixed assets'!$U$2:$U$1000=Costs!$A652)*('Fixed assets'!$S$2:$S$1000))+SUMPRODUCT(('Fixed assets'!$Q$2:$Q$1000=Costs!AM$617)*('Fixed assets'!$P$2:$P$1000=Costs!$A652)*('Fixed assets'!$U$2:$U$1000=Costs!$A652)*('Fixed assets'!$R$2:$R$1000))","v":0},{"$f":"SUMPRODUCT(('Fixed assets'!$R$2:$R$1000)*('Fixed assets'!$P$2:$P$1000<$A652)*('Fixed assets'!$Q$2:$Q$1000=Costs!AN$617))-SUMPRODUCT(('Fixed assets'!$S$2:$S$1000)*('Fixed assets'!$P$2:$P$1000<Costs!$A652)*('Fixed assets'!$Q$2:$Q$1000=Costs!AN$617))-SUMPRODUCT(('Fixed assets'!$Q$2:$Q$1000=Costs!AN$617)*('Fixed assets'!$U$2:$U$1000=Costs!$A652)*('Fixed assets'!$S$2:$S$1000))+SUMPRODUCT(('Fixed assets'!$Q$2:$Q$1000=Costs!AN$617)*('Fixed assets'!$P$2:$P$1000=Costs!$A652)*('Fixed assets'!$U$2:$U$1000=Costs!$A652)*('Fixed assets'!$R$2:$R$1000))","v":0},{"$f":"SUMPRODUCT(('Fixed assets'!$R$2:$R$1000)*('Fixed assets'!$P$2:$P$1000<$A652)*('Fixed assets'!$Q$2:$Q$1000=Costs!AO$617))-SUMPRODUCT(('Fixed assets'!$S$2:$S$1000)*('Fixed assets'!$P$2:$P$1000<Costs!$A652)*('Fixed assets'!$Q$2:$Q$1000=Costs!AO$617))-SUMPRODUCT(('Fixed assets'!$Q$2:$Q$1000=Costs!AO$617)*('Fixed assets'!$U$2:$U$1000=Costs!$A652)*('Fixed assets'!$S$2:$S$1000))+SUMPRODUCT(('Fixed assets'!$Q$2:$Q$1000=Costs!AO$617)*('Fixed assets'!$P$2:$P$1000=Costs!$A652)*('Fixed assets'!$U$2:$U$1000=Costs!$A652)*('Fixed assets'!$R$2:$R$1000))","v":0},{"$f":"SUMPRODUCT(('Fixed assets'!$R$2:$R$1000)*('Fixed assets'!$P$2:$P$1000<$A652)*('Fixed assets'!$Q$2:$Q$1000=Costs!AP$617))-SUMPRODUCT(('Fixed assets'!$S$2:$S$1000)*('Fixed assets'!$P$2:$P$1000<Costs!$A652)*('Fixed assets'!$Q$2:$Q$1000=Costs!AP$617))-SUMPRODUCT(('Fixed assets'!$Q$2:$Q$1000=Costs!AP$617)*('Fixed assets'!$U$2:$U$1000=Costs!$A652)*('Fixed assets'!$S$2:$S$1000))+SUMPRODUCT(('Fixed assets'!$Q$2:$Q$1000=Costs!AP$617)*('Fixed assets'!$P$2:$P$1000=Costs!$A652)*('Fixed assets'!$U$2:$U$1000=Costs!$A652)*('Fixed assets'!$R$2:$R$1000))","v":0},{"$f":"SUMPRODUCT(('Fixed assets'!$R$2:$R$1000)*('Fixed assets'!$P$2:$P$1000<$A652)*('Fixed assets'!$Q$2:$Q$1000=Costs!AQ$617))-SUMPRODUCT(('Fixed assets'!$S$2:$S$1000)*('Fixed assets'!$P$2:$P$1000<Costs!$A652)*('Fixed assets'!$Q$2:$Q$1000=Costs!AQ$617))-SUMPRODUCT(('Fixed assets'!$Q$2:$Q$1000=Costs!AQ$617)*('Fixed assets'!$U$2:$U$1000=Costs!$A652)*('Fixed assets'!$S$2:$S$1000))+SUMPRODUCT(('Fixed assets'!$Q$2:$Q$1000=Costs!AQ$617)*('Fixed assets'!$P$2:$P$1000=Costs!$A652)*('Fixed assets'!$U$2:$U$1000=Costs!$A652)*('Fixed assets'!$R$2:$R$1000))","v":0}]
[2050,0,{"$f":"SUMPRODUCT(('Fixed assets'!$R$2:$R$1000)*('Fixed assets'!$P$2:$P$1000<$A653)*('Fixed assets'!$Q$2:$Q$1000=Costs!C$617))-SUMPRODUCT(('Fixed assets'!$S$2:$S$1000)*('Fixed assets'!$P$2:$P$1000<Costs!$A653)*('Fixed assets'!$Q$2:$Q$1000=Costs!C$617))-SUMPRODUCT(('Fixed assets'!$Q$2:$Q$1000=Costs!C$617)*('Fixed assets'!$U$2:$U$1000=Costs!$A653)*('Fixed assets'!$S$2:$S$1000))+SUMPRODUCT(('Fixed assets'!$Q$2:$Q$1000=Costs!C$617)*('Fixed assets'!$P$2:$P$1000=Costs!$A653)*('Fixed assets'!$U$2:$U$1000=Costs!$A653)*('Fixed assets'!$R$2:$R$1000))","v":0},{"$f":"SUMPRODUCT(('Fixed assets'!$R$2:$R$1000)*('Fixed assets'!$P$2:$P$1000<$A653)*('Fixed assets'!$Q$2:$Q$1000=Costs!D$617))-SUMPRODUCT(('Fixed assets'!$S$2:$S$1000)*('Fixed assets'!$P$2:$P$1000<Costs!$A653)*('Fixed assets'!$Q$2:$Q$1000=Costs!D$617))-SUMPRODUCT(('Fixed assets'!$Q$2:$Q$1000=Costs!D$617)*('Fixed assets'!$U$2:$U$1000=Costs!$A653)*('Fixed assets'!$S$2:$S$1000))+SUMPRODUCT(('Fixed assets'!$Q$2:$Q$1000=Costs!D$617)*('Fixed assets'!$P$2:$P$1000=Costs!$A653)*('Fixed assets'!$U$2:$U$1000=Costs!$A653)*('Fixed assets'!$R$2:$R$1000))","v":0},{"$f":"SUMPRODUCT(('Fixed assets'!$R$2:$R$1000)*('Fixed assets'!$P$2:$P$1000<$A653)*('Fixed assets'!$Q$2:$Q$1000=Costs!E$617))-SUMPRODUCT(('Fixed assets'!$S$2:$S$1000)*('Fixed assets'!$P$2:$P$1000<Costs!$A653)*('Fixed assets'!$Q$2:$Q$1000=Costs!E$617))-SUMPRODUCT(('Fixed assets'!$Q$2:$Q$1000=Costs!E$617)*('Fixed assets'!$U$2:$U$1000=Costs!$A653)*('Fixed assets'!$S$2:$S$1000))+SUMPRODUCT(('Fixed assets'!$Q$2:$Q$1000=Costs!E$617)*('Fixed assets'!$P$2:$P$1000=Costs!$A653)*('Fixed assets'!$U$2:$U$1000=Costs!$A653)*('Fixed assets'!$R$2:$R$1000))","v":0},{"$f":"SUMPRODUCT(('Fixed assets'!$R$2:$R$1000)*('Fixed assets'!$P$2:$P$1000<$A653)*('Fixed assets'!$Q$2:$Q$1000=Costs!F$617))-SUMPRODUCT(('Fixed assets'!$S$2:$S$1000)*('Fixed assets'!$P$2:$P$1000<Costs!$A653)*('Fixed assets'!$Q$2:$Q$1000=Costs!F$617))-SUMPRODUCT(('Fixed assets'!$Q$2:$Q$1000=Costs!F$617)*('Fixed assets'!$U$2:$U$1000=Costs!$A653)*('Fixed assets'!$S$2:$S$1000))+SUMPRODUCT(('Fixed assets'!$Q$2:$Q$1000=Costs!F$617)*('Fixed assets'!$P$2:$P$1000=Costs!$A653)*('Fixed assets'!$U$2:$U$1000=Costs!$A653)*('Fixed assets'!$R$2:$R$1000))","v":0},{"$f":"SUMPRODUCT(('Fixed assets'!$R$2:$R$1000)*('Fixed assets'!$P$2:$P$1000<$A653)*('Fixed assets'!$Q$2:$Q$1000=Costs!G$617))-SUMPRODUCT(('Fixed assets'!$S$2:$S$1000)*('Fixed assets'!$P$2:$P$1000<Costs!$A653)*('Fixed assets'!$Q$2:$Q$1000=Costs!G$617))-SUMPRODUCT(('Fixed assets'!$Q$2:$Q$1000=Costs!G$617)*('Fixed assets'!$U$2:$U$1000=Costs!$A653)*('Fixed assets'!$S$2:$S$1000))+SUMPRODUCT(('Fixed assets'!$Q$2:$Q$1000=Costs!G$617)*('Fixed assets'!$P$2:$P$1000=Costs!$A653)*('Fixed assets'!$U$2:$U$1000=Costs!$A653)*('Fixed assets'!$R$2:$R$1000))","v":0},{"$f":"SUMPRODUCT(('Fixed assets'!$R$2:$R$1000)*('Fixed assets'!$P$2:$P$1000<$A653)*('Fixed assets'!$Q$2:$Q$1000=Costs!H$617))-SUMPRODUCT(('Fixed assets'!$S$2:$S$1000)*('Fixed assets'!$P$2:$P$1000<Costs!$A653)*('Fixed assets'!$Q$2:$Q$1000=Costs!H$617))-SUMPRODUCT(('Fixed assets'!$Q$2:$Q$1000=Costs!H$617)*('Fixed assets'!$U$2:$U$1000=Costs!$A653)*('Fixed assets'!$S$2:$S$1000))+SUMPRODUCT(('Fixed assets'!$Q$2:$Q$1000=Costs!H$617)*('Fixed assets'!$P$2:$P$1000=Costs!$A653)*('Fixed assets'!$U$2:$U$1000=Costs!$A653)*('Fixed assets'!$R$2:$R$1000))","v":0},{"$f":"SUMPRODUCT(('Fixed assets'!$R$2:$R$1000)*('Fixed assets'!$P$2:$P$1000<$A653)*('Fixed assets'!$Q$2:$Q$1000=Costs!I$617))-SUMPRODUCT(('Fixed assets'!$S$2:$S$1000)*('Fixed assets'!$P$2:$P$1000<Costs!$A653)*('Fixed assets'!$Q$2:$Q$1000=Costs!I$617))-SUMPRODUCT(('Fixed assets'!$Q$2:$Q$1000=Costs!I$617)*('Fixed assets'!$U$2:$U$1000=Costs!$A653)*('Fixed assets'!$S$2:$S$1000))+SUMPRODUCT(('Fixed assets'!$Q$2:$Q$1000=Costs!I$617)*('Fixed assets'!$P$2:$P$1000=Costs!$A653)*('Fixed assets'!$U$2:$U$1000=Costs!$A653)*('Fixed assets'!$R$2:$R$1000))","v":0},{"$f":"SUMPRODUCT(('Fixed assets'!$R$2:$R$1000)*('Fixed assets'!$P$2:$P$1000<$A653)*('Fixed assets'!$Q$2:$Q$1000=Costs!J$617))-SUMPRODUCT(('Fixed assets'!$S$2:$S$1000)*('Fixed assets'!$P$2:$P$1000<Costs!$A653)*('Fixed assets'!$Q$2:$Q$1000=Costs!J$617))-SUMPRODUCT(('Fixed assets'!$Q$2:$Q$1000=Costs!J$617)*('Fixed assets'!$U$2:$U$1000=Costs!$A653)*('Fixed assets'!$S$2:$S$1000))+SUMPRODUCT(('Fixed assets'!$Q$2:$Q$1000=Costs!J$617)*('Fixed assets'!$P$2:$P$1000=Costs!$A653)*('Fixed assets'!$U$2:$U$1000=Costs!$A653)*('Fixed assets'!$R$2:$R$1000))","v":0},{"$f":"SUMPRODUCT(('Fixed assets'!$R$2:$R$1000)*('Fixed assets'!$P$2:$P$1000<$A653)*('Fixed assets'!$Q$2:$Q$1000=Costs!K$617))-SUMPRODUCT(('Fixed assets'!$S$2:$S$1000)*('Fixed assets'!$P$2:$P$1000<Costs!$A653)*('Fixed assets'!$Q$2:$Q$1000=Costs!K$617))-SUMPRODUCT(('Fixed assets'!$Q$2:$Q$1000=Costs!K$617)*('Fixed assets'!$U$2:$U$1000=Costs!$A653)*('Fixed assets'!$S$2:$S$1000))+SUMPRODUCT(('Fixed assets'!$Q$2:$Q$1000=Costs!K$617)*('Fixed assets'!$P$2:$P$1000=Costs!$A653)*('Fixed assets'!$U$2:$U$1000=Costs!$A653)*('Fixed assets'!$R$2:$R$1000))","v":0},{"$f":"SUMPRODUCT(('Fixed assets'!$R$2:$R$1000)*('Fixed assets'!$P$2:$P$1000<$A653)*('Fixed assets'!$Q$2:$Q$1000=Costs!L$617))-SUMPRODUCT(('Fixed assets'!$S$2:$S$1000)*('Fixed assets'!$P$2:$P$1000<Costs!$A653)*('Fixed assets'!$Q$2:$Q$1000=Costs!L$617))-SUMPRODUCT(('Fixed assets'!$Q$2:$Q$1000=Costs!L$617)*('Fixed assets'!$U$2:$U$1000=Costs!$A653)*('Fixed assets'!$S$2:$S$1000))+SUMPRODUCT(('Fixed assets'!$Q$2:$Q$1000=Costs!L$617)*('Fixed assets'!$P$2:$P$1000=Costs!$A653)*('Fixed assets'!$U$2:$U$1000=Costs!$A653)*('Fixed assets'!$R$2:$R$1000))","v":0},{"$f":"SUMPRODUCT(('Fixed assets'!$R$2:$R$1000)*('Fixed assets'!$P$2:$P$1000<$A653)*('Fixed assets'!$Q$2:$Q$1000=Costs!M$617))-SUMPRODUCT(('Fixed assets'!$S$2:$S$1000)*('Fixed assets'!$P$2:$P$1000<Costs!$A653)*('Fixed assets'!$Q$2:$Q$1000=Costs!M$617))-SUMPRODUCT(('Fixed assets'!$Q$2:$Q$1000=Costs!M$617)*('Fixed assets'!$U$2:$U$1000=Costs!$A653)*('Fixed assets'!$S$2:$S$1000))+SUMPRODUCT(('Fixed assets'!$Q$2:$Q$1000=Costs!M$617)*('Fixed assets'!$P$2:$P$1000=Costs!$A653)*('Fixed assets'!$U$2:$U$1000=Costs!$A653)*('Fixed assets'!$R$2:$R$1000))","v":0},{"$f":"SUMPRODUCT(('Fixed assets'!$R$2:$R$1000)*('Fixed assets'!$P$2:$P$1000<$A653)*('Fixed assets'!$Q$2:$Q$1000=Costs!N$617))-SUMPRODUCT(('Fixed assets'!$S$2:$S$1000)*('Fixed assets'!$P$2:$P$1000<Costs!$A653)*('Fixed assets'!$Q$2:$Q$1000=Costs!N$617))-SUMPRODUCT(('Fixed assets'!$Q$2:$Q$1000=Costs!N$617)*('Fixed assets'!$U$2:$U$1000=Costs!$A653)*('Fixed assets'!$S$2:$S$1000))+SUMPRODUCT(('Fixed assets'!$Q$2:$Q$1000=Costs!N$617)*('Fixed assets'!$P$2:$P$1000=Costs!$A653)*('Fixed assets'!$U$2:$U$1000=Costs!$A653)*('Fixed assets'!$R$2:$R$1000))","v":0},{"$f":"SUMPRODUCT(('Fixed assets'!$R$2:$R$1000)*('Fixed assets'!$P$2:$P$1000<$A653)*('Fixed assets'!$Q$2:$Q$1000=Costs!O$617))-SUMPRODUCT(('Fixed assets'!$S$2:$S$1000)*('Fixed assets'!$P$2:$P$1000<Costs!$A653)*('Fixed assets'!$Q$2:$Q$1000=Costs!O$617))-SUMPRODUCT(('Fixed assets'!$Q$2:$Q$1000=Costs!O$617)*('Fixed assets'!$U$2:$U$1000=Costs!$A653)*('Fixed assets'!$S$2:$S$1000))+SUMPRODUCT(('Fixed assets'!$Q$2:$Q$1000=Costs!O$617)*('Fixed assets'!$P$2:$P$1000=Costs!$A653)*('Fixed assets'!$U$2:$U$1000=Costs!$A653)*('Fixed assets'!$R$2:$R$1000))","v":0},{"$f":"SUMPRODUCT(('Fixed assets'!$R$2:$R$1000)*('Fixed assets'!$P$2:$P$1000<$A653)*('Fixed assets'!$Q$2:$Q$1000=Costs!P$617))-SUMPRODUCT(('Fixed assets'!$S$2:$S$1000)*('Fixed assets'!$P$2:$P$1000<Costs!$A653)*('Fixed assets'!$Q$2:$Q$1000=Costs!P$617))-SUMPRODUCT(('Fixed assets'!$Q$2:$Q$1000=Costs!P$617)*('Fixed assets'!$U$2:$U$1000=Costs!$A653)*('Fixed assets'!$S$2:$S$1000))+SUMPRODUCT(('Fixed assets'!$Q$2:$Q$1000=Costs!P$617)*('Fixed assets'!$P$2:$P$1000=Costs!$A653)*('Fixed assets'!$U$2:$U$1000=Costs!$A653)*('Fixed assets'!$R$2:$R$1000))","v":0},{"$f":"SUMPRODUCT(('Fixed assets'!$R$2:$R$1000)*('Fixed assets'!$P$2:$P$1000<$A653)*('Fixed assets'!$Q$2:$Q$1000=Costs!Q$617))-SUMPRODUCT(('Fixed assets'!$S$2:$S$1000)*('Fixed assets'!$P$2:$P$1000<Costs!$A653)*('Fixed assets'!$Q$2:$Q$1000=Costs!Q$617))-SUMPRODUCT(('Fixed assets'!$Q$2:$Q$1000=Costs!Q$617)*('Fixed assets'!$U$2:$U$1000=Costs!$A653)*('Fixed assets'!$S$2:$S$1000))+SUMPRODUCT(('Fixed assets'!$Q$2:$Q$1000=Costs!Q$617)*('Fixed assets'!$P$2:$P$1000=Costs!$A653)*('Fixed assets'!$U$2:$U$1000=Costs!$A653)*('Fixed assets'!$R$2:$R$1000))","v":0},{"$f":"SUMPRODUCT(('Fixed assets'!$R$2:$R$1000)*('Fixed assets'!$P$2:$P$1000<$A653)*('Fixed assets'!$Q$2:$Q$1000=Costs!R$617))-SUMPRODUCT(('Fixed assets'!$S$2:$S$1000)*('Fixed assets'!$P$2:$P$1000<Costs!$A653)*('Fixed assets'!$Q$2:$Q$1000=Costs!R$617))-SUMPRODUCT(('Fixed assets'!$Q$2:$Q$1000=Costs!R$617)*('Fixed assets'!$U$2:$U$1000=Costs!$A653)*('Fixed assets'!$S$2:$S$1000))+SUMPRODUCT(('Fixed assets'!$Q$2:$Q$1000=Costs!R$617)*('Fixed assets'!$P$2:$P$1000=Costs!$A653)*('Fixed assets'!$U$2:$U$1000=Costs!$A653)*('Fixed assets'!$R$2:$R$1000))","v":0},{"$f":"SUMPRODUCT(('Fixed assets'!$R$2:$R$1000)*('Fixed assets'!$P$2:$P$1000<$A653)*('Fixed assets'!$Q$2:$Q$1000=Costs!S$617))-SUMPRODUCT(('Fixed assets'!$S$2:$S$1000)*('Fixed assets'!$P$2:$P$1000<Costs!$A653)*('Fixed assets'!$Q$2:$Q$1000=Costs!S$617))-SUMPRODUCT(('Fixed assets'!$Q$2:$Q$1000=Costs!S$617)*('Fixed assets'!$U$2:$U$1000=Costs!$A653)*('Fixed assets'!$S$2:$S$1000))+SUMPRODUCT(('Fixed assets'!$Q$2:$Q$1000=Costs!S$617)*('Fixed assets'!$P$2:$P$1000=Costs!$A653)*('Fixed assets'!$U$2:$U$1000=Costs!$A653)*('Fixed assets'!$R$2:$R$1000))","v":0},{"$f":"SUMPRODUCT(('Fixed assets'!$R$2:$R$1000)*('Fixed assets'!$P$2:$P$1000<$A653)*('Fixed assets'!$Q$2:$Q$1000=Costs!T$617))-SUMPRODUCT(('Fixed assets'!$S$2:$S$1000)*('Fixed assets'!$P$2:$P$1000<Costs!$A653)*('Fixed assets'!$Q$2:$Q$1000=Costs!T$617))-SUMPRODUCT(('Fixed assets'!$Q$2:$Q$1000=Costs!T$617)*('Fixed assets'!$U$2:$U$1000=Costs!$A653)*('Fixed assets'!$S$2:$S$1000))+SUMPRODUCT(('Fixed assets'!$Q$2:$Q$1000=Costs!T$617)*('Fixed assets'!$P$2:$P$1000=Costs!$A653)*('Fixed assets'!$U$2:$U$1000=Costs!$A653)*('Fixed assets'!$R$2:$R$1000))","v":0},{"$f":"SUMPRODUCT(('Fixed assets'!$R$2:$R$1000)*('Fixed assets'!$P$2:$P$1000<$A653)*('Fixed assets'!$Q$2:$Q$1000=Costs!U$617))-SUMPRODUCT(('Fixed assets'!$S$2:$S$1000)*('Fixed assets'!$P$2:$P$1000<Costs!$A653)*('Fixed assets'!$Q$2:$Q$1000=Costs!U$617))-SUMPRODUCT(('Fixed assets'!$Q$2:$Q$1000=Costs!U$617)*('Fixed assets'!$U$2:$U$1000=Costs!$A653)*('Fixed assets'!$S$2:$S$1000))+SUMPRODUCT(('Fixed assets'!$Q$2:$Q$1000=Costs!U$617)*('Fixed assets'!$P$2:$P$1000=Costs!$A653)*('Fixed assets'!$U$2:$U$1000=Costs!$A653)*('Fixed assets'!$R$2:$R$1000))","v":0},{"$f":"SUMPRODUCT(('Fixed assets'!$R$2:$R$1000)*('Fixed assets'!$P$2:$P$1000<$A653)*('Fixed assets'!$Q$2:$Q$1000=Costs!V$617))-SUMPRODUCT(('Fixed assets'!$S$2:$S$1000)*('Fixed assets'!$P$2:$P$1000<Costs!$A653)*('Fixed assets'!$Q$2:$Q$1000=Costs!V$617))-SUMPRODUCT(('Fixed assets'!$Q$2:$Q$1000=Costs!V$617)*('Fixed assets'!$U$2:$U$1000=Costs!$A653)*('Fixed assets'!$S$2:$S$1000))+SUMPRODUCT(('Fixed assets'!$Q$2:$Q$1000=Costs!V$617)*('Fixed assets'!$P$2:$P$1000=Costs!$A653)*('Fixed assets'!$U$2:$U$1000=Costs!$A653)*('Fixed assets'!$R$2:$R$1000))","v":0},{"$f":"SUMPRODUCT(('Fixed assets'!$R$2:$R$1000)*('Fixed assets'!$P$2:$P$1000<$A653)*('Fixed assets'!$Q$2:$Q$1000=Costs!W$617))-SUMPRODUCT(('Fixed assets'!$S$2:$S$1000)*('Fixed assets'!$P$2:$P$1000<Costs!$A653)*('Fixed assets'!$Q$2:$Q$1000=Costs!W$617))-SUMPRODUCT(('Fixed assets'!$Q$2:$Q$1000=Costs!W$617)*('Fixed assets'!$U$2:$U$1000=Costs!$A653)*('Fixed assets'!$S$2:$S$1000))+SUMPRODUCT(('Fixed assets'!$Q$2:$Q$1000=Costs!W$617)*('Fixed assets'!$P$2:$P$1000=Costs!$A653)*('Fixed assets'!$U$2:$U$1000=Costs!$A653)*('Fixed assets'!$R$2:$R$1000))","v":0},{"$f":"SUMPRODUCT(('Fixed assets'!$R$2:$R$1000)*('Fixed assets'!$P$2:$P$1000<$A653)*('Fixed assets'!$Q$2:$Q$1000=Costs!X$617))-SUMPRODUCT(('Fixed assets'!$S$2:$S$1000)*('Fixed assets'!$P$2:$P$1000<Costs!$A653)*('Fixed assets'!$Q$2:$Q$1000=Costs!X$617))-SUMPRODUCT(('Fixed assets'!$Q$2:$Q$1000=Costs!X$617)*('Fixed assets'!$U$2:$U$1000=Costs!$A653)*('Fixed assets'!$S$2:$S$1000))+SUMPRODUCT(('Fixed assets'!$Q$2:$Q$1000=Costs!X$617)*('Fixed assets'!$P$2:$P$1000=Costs!$A653)*('Fixed assets'!$U$2:$U$1000=Costs!$A653)*('Fixed assets'!$R$2:$R$1000))","v":0},{"$f":"SUMPRODUCT(('Fixed assets'!$R$2:$R$1000)*('Fixed assets'!$P$2:$P$1000<$A653)*('Fixed assets'!$Q$2:$Q$1000=Costs!Y$617))-SUMPRODUCT(('Fixed assets'!$S$2:$S$1000)*('Fixed assets'!$P$2:$P$1000<Costs!$A653)*('Fixed assets'!$Q$2:$Q$1000=Costs!Y$617))-SUMPRODUCT(('Fixed assets'!$Q$2:$Q$1000=Costs!Y$617)*('Fixed assets'!$U$2:$U$1000=Costs!$A653)*('Fixed assets'!$S$2:$S$1000))+SUMPRODUCT(('Fixed assets'!$Q$2:$Q$1000=Costs!Y$617)*('Fixed assets'!$P$2:$P$1000=Costs!$A653)*('Fixed assets'!$U$2:$U$1000=Costs!$A653)*('Fixed assets'!$R$2:$R$1000))","v":0},{"$f":"SUMPRODUCT(('Fixed assets'!$R$2:$R$1000)*('Fixed assets'!$P$2:$P$1000<$A653)*('Fixed assets'!$Q$2:$Q$1000=Costs!Z$617))-SUMPRODUCT(('Fixed assets'!$S$2:$S$1000)*('Fixed assets'!$P$2:$P$1000<Costs!$A653)*('Fixed assets'!$Q$2:$Q$1000=Costs!Z$617))-SUMPRODUCT(('Fixed assets'!$Q$2:$Q$1000=Costs!Z$617)*('Fixed assets'!$U$2:$U$1000=Costs!$A653)*('Fixed assets'!$S$2:$S$1000))+SUMPRODUCT(('Fixed assets'!$Q$2:$Q$1000=Costs!Z$617)*('Fixed assets'!$P$2:$P$1000=Costs!$A653)*('Fixed assets'!$U$2:$U$1000=Costs!$A653)*('Fixed assets'!$R$2:$R$1000))","v":0},{"$f":"SUMPRODUCT(('Fixed assets'!$R$2:$R$1000)*('Fixed assets'!$P$2:$P$1000<$A653)*('Fixed assets'!$Q$2:$Q$1000=Costs!AA$617))-SUMPRODUCT(('Fixed assets'!$S$2:$S$1000)*('Fixed assets'!$P$2:$P$1000<Costs!$A653)*('Fixed assets'!$Q$2:$Q$1000=Costs!AA$617))-SUMPRODUCT(('Fixed assets'!$Q$2:$Q$1000=Costs!AA$617)*('Fixed assets'!$U$2:$U$1000=Costs!$A653)*('Fixed assets'!$S$2:$S$1000))+SUMPRODUCT(('Fixed assets'!$Q$2:$Q$1000=Costs!AA$617)*('Fixed assets'!$P$2:$P$1000=Costs!$A653)*('Fixed assets'!$U$2:$U$1000=Costs!$A653)*('Fixed assets'!$R$2:$R$1000))","v":0},{"$f":"SUMPRODUCT(('Fixed assets'!$R$2:$R$1000)*('Fixed assets'!$P$2:$P$1000<$A653)*('Fixed assets'!$Q$2:$Q$1000=Costs!AB$617))-SUMPRODUCT(('Fixed assets'!$S$2:$S$1000)*('Fixed assets'!$P$2:$P$1000<Costs!$A653)*('Fixed assets'!$Q$2:$Q$1000=Costs!AB$617))-SUMPRODUCT(('Fixed assets'!$Q$2:$Q$1000=Costs!AB$617)*('Fixed assets'!$U$2:$U$1000=Costs!$A653)*('Fixed assets'!$S$2:$S$1000))+SUMPRODUCT(('Fixed assets'!$Q$2:$Q$1000=Costs!AB$617)*('Fixed assets'!$P$2:$P$1000=Costs!$A653)*('Fixed assets'!$U$2:$U$1000=Costs!$A653)*('Fixed assets'!$R$2:$R$1000))","v":0},{"$f":"SUMPRODUCT(('Fixed assets'!$R$2:$R$1000)*('Fixed assets'!$P$2:$P$1000<$A653)*('Fixed assets'!$Q$2:$Q$1000=Costs!AC$617))-SUMPRODUCT(('Fixed assets'!$S$2:$S$1000)*('Fixed assets'!$P$2:$P$1000<Costs!$A653)*('Fixed assets'!$Q$2:$Q$1000=Costs!AC$617))-SUMPRODUCT(('Fixed assets'!$Q$2:$Q$1000=Costs!AC$617)*('Fixed assets'!$U$2:$U$1000=Costs!$A653)*('Fixed assets'!$S$2:$S$1000))+SUMPRODUCT(('Fixed assets'!$Q$2:$Q$1000=Costs!AC$617)*('Fixed assets'!$P$2:$P$1000=Costs!$A653)*('Fixed assets'!$U$2:$U$1000=Costs!$A653)*('Fixed assets'!$R$2:$R$1000))","v":0},{"$f":"SUMPRODUCT(('Fixed assets'!$R$2:$R$1000)*('Fixed assets'!$P$2:$P$1000<$A653)*('Fixed assets'!$Q$2:$Q$1000=Costs!AD$617))-SUMPRODUCT(('Fixed assets'!$S$2:$S$1000)*('Fixed assets'!$P$2:$P$1000<Costs!$A653)*('Fixed assets'!$Q$2:$Q$1000=Costs!AD$617))-SUMPRODUCT(('Fixed assets'!$Q$2:$Q$1000=Costs!AD$617)*('Fixed assets'!$U$2:$U$1000=Costs!$A653)*('Fixed assets'!$S$2:$S$1000))+SUMPRODUCT(('Fixed assets'!$Q$2:$Q$1000=Costs!AD$617)*('Fixed assets'!$P$2:$P$1000=Costs!$A653)*('Fixed assets'!$U$2:$U$1000=Costs!$A653)*('Fixed assets'!$R$2:$R$1000))","v":0},{"$f":"SUMPRODUCT(('Fixed assets'!$R$2:$R$1000)*('Fixed assets'!$P$2:$P$1000<$A653)*('Fixed assets'!$Q$2:$Q$1000=Costs!AE$617))-SUMPRODUCT(('Fixed assets'!$S$2:$S$1000)*('Fixed assets'!$P$2:$P$1000<Costs!$A653)*('Fixed assets'!$Q$2:$Q$1000=Costs!AE$617))-SUMPRODUCT(('Fixed assets'!$Q$2:$Q$1000=Costs!AE$617)*('Fixed assets'!$U$2:$U$1000=Costs!$A653)*('Fixed assets'!$S$2:$S$1000))+SUMPRODUCT(('Fixed assets'!$Q$2:$Q$1000=Costs!AE$617)*('Fixed assets'!$P$2:$P$1000=Costs!$A653)*('Fixed assets'!$U$2:$U$1000=Costs!$A653)*('Fixed assets'!$R$2:$R$1000))","v":0},{"$f":"SUMPRODUCT(('Fixed assets'!$R$2:$R$1000)*('Fixed assets'!$P$2:$P$1000<$A653)*('Fixed assets'!$Q$2:$Q$1000=Costs!AF$617))-SUMPRODUCT(('Fixed assets'!$S$2:$S$1000)*('Fixed assets'!$P$2:$P$1000<Costs!$A653)*('Fixed assets'!$Q$2:$Q$1000=Costs!AF$617))-SUMPRODUCT(('Fixed assets'!$Q$2:$Q$1000=Costs!AF$617)*('Fixed assets'!$U$2:$U$1000=Costs!$A653)*('Fixed assets'!$S$2:$S$1000))+SUMPRODUCT(('Fixed assets'!$Q$2:$Q$1000=Costs!AF$617)*('Fixed assets'!$P$2:$P$1000=Costs!$A653)*('Fixed assets'!$U$2:$U$1000=Costs!$A653)*('Fixed assets'!$R$2:$R$1000))","v":0},{"$f":"SUMPRODUCT(('Fixed assets'!$R$2:$R$1000)*('Fixed assets'!$P$2:$P$1000<$A653)*('Fixed assets'!$Q$2:$Q$1000=Costs!AG$617))-SUMPRODUCT(('Fixed assets'!$S$2:$S$1000)*('Fixed assets'!$P$2:$P$1000<Costs!$A653)*('Fixed assets'!$Q$2:$Q$1000=Costs!AG$617))-SUMPRODUCT(('Fixed assets'!$Q$2:$Q$1000=Costs!AG$617)*('Fixed assets'!$U$2:$U$1000=Costs!$A653)*('Fixed assets'!$S$2:$S$1000))+SUMPRODUCT(('Fixed assets'!$Q$2:$Q$1000=Costs!AG$617)*('Fixed assets'!$P$2:$P$1000=Costs!$A653)*('Fixed assets'!$U$2:$U$1000=Costs!$A653)*('Fixed assets'!$R$2:$R$1000))","v":0},{"$f":"SUMPRODUCT(('Fixed assets'!$R$2:$R$1000)*('Fixed assets'!$P$2:$P$1000<$A653)*('Fixed assets'!$Q$2:$Q$1000=Costs!AH$617))-SUMPRODUCT(('Fixed assets'!$S$2:$S$1000)*('Fixed assets'!$P$2:$P$1000<Costs!$A653)*('Fixed assets'!$Q$2:$Q$1000=Costs!AH$617))-SUMPRODUCT(('Fixed assets'!$Q$2:$Q$1000=Costs!AH$617)*('Fixed assets'!$U$2:$U$1000=Costs!$A653)*('Fixed assets'!$S$2:$S$1000))+SUMPRODUCT(('Fixed assets'!$Q$2:$Q$1000=Costs!AH$617)*('Fixed assets'!$P$2:$P$1000=Costs!$A653)*('Fixed assets'!$U$2:$U$1000=Costs!$A653)*('Fixed assets'!$R$2:$R$1000))","v":0},{"$f":"SUMPRODUCT(('Fixed assets'!$R$2:$R$1000)*('Fixed assets'!$P$2:$P$1000<$A653)*('Fixed assets'!$Q$2:$Q$1000=Costs!AI$617))-SUMPRODUCT(('Fixed assets'!$S$2:$S$1000)*('Fixed assets'!$P$2:$P$1000<Costs!$A653)*('Fixed assets'!$Q$2:$Q$1000=Costs!AI$617))-SUMPRODUCT(('Fixed assets'!$Q$2:$Q$1000=Costs!AI$617)*('Fixed assets'!$U$2:$U$1000=Costs!$A653)*('Fixed assets'!$S$2:$S$1000))+SUMPRODUCT(('Fixed assets'!$Q$2:$Q$1000=Costs!AI$617)*('Fixed assets'!$P$2:$P$1000=Costs!$A653)*('Fixed assets'!$U$2:$U$1000=Costs!$A653)*('Fixed assets'!$R$2:$R$1000))","v":0},{"$f":"SUMPRODUCT(('Fixed assets'!$R$2:$R$1000)*('Fixed assets'!$P$2:$P$1000<$A653)*('Fixed assets'!$Q$2:$Q$1000=Costs!AJ$617))-SUMPRODUCT(('Fixed assets'!$S$2:$S$1000)*('Fixed assets'!$P$2:$P$1000<Costs!$A653)*('Fixed assets'!$Q$2:$Q$1000=Costs!AJ$617))-SUMPRODUCT(('Fixed assets'!$Q$2:$Q$1000=Costs!AJ$617)*('Fixed assets'!$U$2:$U$1000=Costs!$A653)*('Fixed assets'!$S$2:$S$1000))+SUMPRODUCT(('Fixed assets'!$Q$2:$Q$1000=Costs!AJ$617)*('Fixed assets'!$P$2:$P$1000=Costs!$A653)*('Fixed assets'!$U$2:$U$1000=Costs!$A653)*('Fixed assets'!$R$2:$R$1000))","v":0},{"$f":"SUMPRODUCT(('Fixed assets'!$R$2:$R$1000)*('Fixed assets'!$P$2:$P$1000<$A653)*('Fixed assets'!$Q$2:$Q$1000=Costs!AK$617))-SUMPRODUCT(('Fixed assets'!$S$2:$S$1000)*('Fixed assets'!$P$2:$P$1000<Costs!$A653)*('Fixed assets'!$Q$2:$Q$1000=Costs!AK$617))-SUMPRODUCT(('Fixed assets'!$Q$2:$Q$1000=Costs!AK$617)*('Fixed assets'!$U$2:$U$1000=Costs!$A653)*('Fixed assets'!$S$2:$S$1000))+SUMPRODUCT(('Fixed assets'!$Q$2:$Q$1000=Costs!AK$617)*('Fixed assets'!$P$2:$P$1000=Costs!$A653)*('Fixed assets'!$U$2:$U$1000=Costs!$A653)*('Fixed assets'!$R$2:$R$1000))","v":0},{"$f":"SUMPRODUCT(('Fixed assets'!$R$2:$R$1000)*('Fixed assets'!$P$2:$P$1000<$A653)*('Fixed assets'!$Q$2:$Q$1000=Costs!AL$617))-SUMPRODUCT(('Fixed assets'!$S$2:$S$1000)*('Fixed assets'!$P$2:$P$1000<Costs!$A653)*('Fixed assets'!$Q$2:$Q$1000=Costs!AL$617))-SUMPRODUCT(('Fixed assets'!$Q$2:$Q$1000=Costs!AL$617)*('Fixed assets'!$U$2:$U$1000=Costs!$A653)*('Fixed assets'!$S$2:$S$1000))+SUMPRODUCT(('Fixed assets'!$Q$2:$Q$1000=Costs!AL$617)*('Fixed assets'!$P$2:$P$1000=Costs!$A653)*('Fixed assets'!$U$2:$U$1000=Costs!$A653)*('Fixed assets'!$R$2:$R$1000))","v":0},{"$f":"SUMPRODUCT(('Fixed assets'!$R$2:$R$1000)*('Fixed assets'!$P$2:$P$1000<$A653)*('Fixed assets'!$Q$2:$Q$1000=Costs!AM$617))-SUMPRODUCT(('Fixed assets'!$S$2:$S$1000)*('Fixed assets'!$P$2:$P$1000<Costs!$A653)*('Fixed assets'!$Q$2:$Q$1000=Costs!AM$617))-SUMPRODUCT(('Fixed assets'!$Q$2:$Q$1000=Costs!AM$617)*('Fixed assets'!$U$2:$U$1000=Costs!$A653)*('Fixed assets'!$S$2:$S$1000))+SUMPRODUCT(('Fixed assets'!$Q$2:$Q$1000=Costs!AM$617)*('Fixed assets'!$P$2:$P$1000=Costs!$A653)*('Fixed assets'!$U$2:$U$1000=Costs!$A653)*('Fixed assets'!$R$2:$R$1000))","v":0},{"$f":"SUMPRODUCT(('Fixed assets'!$R$2:$R$1000)*('Fixed assets'!$P$2:$P$1000<$A653)*('Fixed assets'!$Q$2:$Q$1000=Costs!AN$617))-SUMPRODUCT(('Fixed assets'!$S$2:$S$1000)*('Fixed assets'!$P$2:$P$1000<Costs!$A653)*('Fixed assets'!$Q$2:$Q$1000=Costs!AN$617))-SUMPRODUCT(('Fixed assets'!$Q$2:$Q$1000=Costs!AN$617)*('Fixed assets'!$U$2:$U$1000=Costs!$A653)*('Fixed assets'!$S$2:$S$1000))+SUMPRODUCT(('Fixed assets'!$Q$2:$Q$1000=Costs!AN$617)*('Fixed assets'!$P$2:$P$1000=Costs!$A653)*('Fixed assets'!$U$2:$U$1000=Costs!$A653)*('Fixed assets'!$R$2:$R$1000))","v":0},{"$f":"SUMPRODUCT(('Fixed assets'!$R$2:$R$1000)*('Fixed assets'!$P$2:$P$1000<$A653)*('Fixed assets'!$Q$2:$Q$1000=Costs!AO$617))-SUMPRODUCT(('Fixed assets'!$S$2:$S$1000)*('Fixed assets'!$P$2:$P$1000<Costs!$A653)*('Fixed assets'!$Q$2:$Q$1000=Costs!AO$617))-SUMPRODUCT(('Fixed assets'!$Q$2:$Q$1000=Costs!AO$617)*('Fixed assets'!$U$2:$U$1000=Costs!$A653)*('Fixed assets'!$S$2:$S$1000))+SUMPRODUCT(('Fixed assets'!$Q$2:$Q$1000=Costs!AO$617)*('Fixed assets'!$P$2:$P$1000=Costs!$A653)*('Fixed assets'!$U$2:$U$1000=Costs!$A653)*('Fixed assets'!$R$2:$R$1000))","v":0},{"$f":"SUMPRODUCT(('Fixed assets'!$R$2:$R$1000)*('Fixed assets'!$P$2:$P$1000<$A653)*('Fixed assets'!$Q$2:$Q$1000=Costs!AP$617))-SUMPRODUCT(('Fixed assets'!$S$2:$S$1000)*('Fixed assets'!$P$2:$P$1000<Costs!$A653)*('Fixed assets'!$Q$2:$Q$1000=Costs!AP$617))-SUMPRODUCT(('Fixed assets'!$Q$2:$Q$1000=Costs!AP$617)*('Fixed assets'!$U$2:$U$1000=Costs!$A653)*('Fixed assets'!$S$2:$S$1000))+SUMPRODUCT(('Fixed assets'!$Q$2:$Q$1000=Costs!AP$617)*('Fixed assets'!$P$2:$P$1000=Costs!$A653)*('Fixed assets'!$U$2:$U$1000=Costs!$A653)*('Fixed assets'!$R$2:$R$1000))","v":0},{"$f":"SUMPRODUCT(('Fixed assets'!$R$2:$R$1000)*('Fixed assets'!$P$2:$P$1000<$A653)*('Fixed assets'!$Q$2:$Q$1000=Costs!AQ$617))-SUMPRODUCT(('Fixed assets'!$S$2:$S$1000)*('Fixed assets'!$P$2:$P$1000<Costs!$A653)*('Fixed assets'!$Q$2:$Q$1000=Costs!AQ$617))-SUMPRODUCT(('Fixed assets'!$Q$2:$Q$1000=Costs!AQ$617)*('Fixed assets'!$U$2:$U$1000=Costs!$A653)*('Fixed assets'!$S$2:$S$1000))+SUMPRODUCT(('Fixed assets'!$Q$2:$Q$1000=Costs!AQ$617)*('Fixed assets'!$P$2:$P$1000=Costs!$A653)*('Fixed assets'!$U$2:$U$1000=Costs!$A653)*('Fixed assets'!$R$2:$R$1000))","v":0}]
[2051,0,{"$f":"SUMPRODUCT(('Fixed assets'!$R$2:$R$1000)*('Fixed assets'!$P$2:$P$1000<$A654)*('Fixed assets'!$Q$2:$Q$1000=Costs!C$617))-SUMPRODUCT(('Fixed assets'!$S$2:$S$1000)*('Fixed assets'!$P$2:$P$1000<Costs!$A654)*('Fixed assets'!$Q$2:$Q$1000=Costs!C$617))-SUMPRODUCT(('Fixed assets'!$Q$2:$Q$1000=Costs!C$617)*('Fixed assets'!$U$2:$U$1000=Costs!$A654)*('Fixed assets'!$S$2:$S$1000))+SUMPRODUCT(('Fixed assets'!$Q$2:$Q$1000=Costs!C$617)*('Fixed assets'!$P$2:$P$1000=Costs!$A654)*('Fixed assets'!$U$2:$U$1000=Costs!$A654)*('Fixed assets'!$R$2:$R$1000))","v":0},{"$f":"SUMPRODUCT(('Fixed assets'!$R$2:$R$1000)*('Fixed assets'!$P$2:$P$1000<$A654)*('Fixed assets'!$Q$2:$Q$1000=Costs!D$617))-SUMPRODUCT(('Fixed assets'!$S$2:$S$1000)*('Fixed assets'!$P$2:$P$1000<Costs!$A654)*('Fixed assets'!$Q$2:$Q$1000=Costs!D$617))-SUMPRODUCT(('Fixed assets'!$Q$2:$Q$1000=Costs!D$617)*('Fixed assets'!$U$2:$U$1000=Costs!$A654)*('Fixed assets'!$S$2:$S$1000))+SUMPRODUCT(('Fixed assets'!$Q$2:$Q$1000=Costs!D$617)*('Fixed assets'!$P$2:$P$1000=Costs!$A654)*('Fixed assets'!$U$2:$U$1000=Costs!$A654)*('Fixed assets'!$R$2:$R$1000))","v":0},{"$f":"SUMPRODUCT(('Fixed assets'!$R$2:$R$1000)*('Fixed assets'!$P$2:$P$1000<$A654)*('Fixed assets'!$Q$2:$Q$1000=Costs!E$617))-SUMPRODUCT(('Fixed assets'!$S$2:$S$1000)*('Fixed assets'!$P$2:$P$1000<Costs!$A654)*('Fixed assets'!$Q$2:$Q$1000=Costs!E$617))-SUMPRODUCT(('Fixed assets'!$Q$2:$Q$1000=Costs!E$617)*('Fixed assets'!$U$2:$U$1000=Costs!$A654)*('Fixed assets'!$S$2:$S$1000))+SUMPRODUCT(('Fixed assets'!$Q$2:$Q$1000=Costs!E$617)*('Fixed assets'!$P$2:$P$1000=Costs!$A654)*('Fixed assets'!$U$2:$U$1000=Costs!$A654)*('Fixed assets'!$R$2:$R$1000))","v":0},{"$f":"SUMPRODUCT(('Fixed assets'!$R$2:$R$1000)*('Fixed assets'!$P$2:$P$1000<$A654)*('Fixed assets'!$Q$2:$Q$1000=Costs!F$617))-SUMPRODUCT(('Fixed assets'!$S$2:$S$1000)*('Fixed assets'!$P$2:$P$1000<Costs!$A654)*('Fixed assets'!$Q$2:$Q$1000=Costs!F$617))-SUMPRODUCT(('Fixed assets'!$Q$2:$Q$1000=Costs!F$617)*('Fixed assets'!$U$2:$U$1000=Costs!$A654)*('Fixed assets'!$S$2:$S$1000))+SUMPRODUCT(('Fixed assets'!$Q$2:$Q$1000=Costs!F$617)*('Fixed assets'!$P$2:$P$1000=Costs!$A654)*('Fixed assets'!$U$2:$U$1000=Costs!$A654)*('Fixed assets'!$R$2:$R$1000))","v":0},{"$f":"SUMPRODUCT(('Fixed assets'!$R$2:$R$1000)*('Fixed assets'!$P$2:$P$1000<$A654)*('Fixed assets'!$Q$2:$Q$1000=Costs!G$617))-SUMPRODUCT(('Fixed assets'!$S$2:$S$1000)*('Fixed assets'!$P$2:$P$1000<Costs!$A654)*('Fixed assets'!$Q$2:$Q$1000=Costs!G$617))-SUMPRODUCT(('Fixed assets'!$Q$2:$Q$1000=Costs!G$617)*('Fixed assets'!$U$2:$U$1000=Costs!$A654)*('Fixed assets'!$S$2:$S$1000))+SUMPRODUCT(('Fixed assets'!$Q$2:$Q$1000=Costs!G$617)*('Fixed assets'!$P$2:$P$1000=Costs!$A654)*('Fixed assets'!$U$2:$U$1000=Costs!$A654)*('Fixed assets'!$R$2:$R$1000))","v":0},{"$f":"SUMPRODUCT(('Fixed assets'!$R$2:$R$1000)*('Fixed assets'!$P$2:$P$1000<$A654)*('Fixed assets'!$Q$2:$Q$1000=Costs!H$617))-SUMPRODUCT(('Fixed assets'!$S$2:$S$1000)*('Fixed assets'!$P$2:$P$1000<Costs!$A654)*('Fixed assets'!$Q$2:$Q$1000=Costs!H$617))-SUMPRODUCT(('Fixed assets'!$Q$2:$Q$1000=Costs!H$617)*('Fixed assets'!$U$2:$U$1000=Costs!$A654)*('Fixed assets'!$S$2:$S$1000))+SUMPRODUCT(('Fixed assets'!$Q$2:$Q$1000=Costs!H$617)*('Fixed assets'!$P$2:$P$1000=Costs!$A654)*('Fixed assets'!$U$2:$U$1000=Costs!$A654)*('Fixed assets'!$R$2:$R$1000))","v":0},{"$f":"SUMPRODUCT(('Fixed assets'!$R$2:$R$1000)*('Fixed assets'!$P$2:$P$1000<$A654)*('Fixed assets'!$Q$2:$Q$1000=Costs!I$617))-SUMPRODUCT(('Fixed assets'!$S$2:$S$1000)*('Fixed assets'!$P$2:$P$1000<Costs!$A654)*('Fixed assets'!$Q$2:$Q$1000=Costs!I$617))-SUMPRODUCT(('Fixed assets'!$Q$2:$Q$1000=Costs!I$617)*('Fixed assets'!$U$2:$U$1000=Costs!$A654)*('Fixed assets'!$S$2:$S$1000))+SUMPRODUCT(('Fixed assets'!$Q$2:$Q$1000=Costs!I$617)*('Fixed assets'!$P$2:$P$1000=Costs!$A654)*('Fixed assets'!$U$2:$U$1000=Costs!$A654)*('Fixed assets'!$R$2:$R$1000))","v":0},{"$f":"SUMPRODUCT(('Fixed assets'!$R$2:$R$1000)*('Fixed assets'!$P$2:$P$1000<$A654)*('Fixed assets'!$Q$2:$Q$1000=Costs!J$617))-SUMPRODUCT(('Fixed assets'!$S$2:$S$1000)*('Fixed assets'!$P$2:$P$1000<Costs!$A654)*('Fixed assets'!$Q$2:$Q$1000=Costs!J$617))-SUMPRODUCT(('Fixed assets'!$Q$2:$Q$1000=Costs!J$617)*('Fixed assets'!$U$2:$U$1000=Costs!$A654)*('Fixed assets'!$S$2:$S$1000))+SUMPRODUCT(('Fixed assets'!$Q$2:$Q$1000=Costs!J$617)*('Fixed assets'!$P$2:$P$1000=Costs!$A654)*('Fixed assets'!$U$2:$U$1000=Costs!$A654)*('Fixed assets'!$R$2:$R$1000))","v":0},{"$f":"SUMPRODUCT(('Fixed assets'!$R$2:$R$1000)*('Fixed assets'!$P$2:$P$1000<$A654)*('Fixed assets'!$Q$2:$Q$1000=Costs!K$617))-SUMPRODUCT(('Fixed assets'!$S$2:$S$1000)*('Fixed assets'!$P$2:$P$1000<Costs!$A654)*('Fixed assets'!$Q$2:$Q$1000=Costs!K$617))-SUMPRODUCT(('Fixed assets'!$Q$2:$Q$1000=Costs!K$617)*('Fixed assets'!$U$2:$U$1000=Costs!$A654)*('Fixed assets'!$S$2:$S$1000))+SUMPRODUCT(('Fixed assets'!$Q$2:$Q$1000=Costs!K$617)*('Fixed assets'!$P$2:$P$1000=Costs!$A654)*('Fixed assets'!$U$2:$U$1000=Costs!$A654)*('Fixed assets'!$R$2:$R$1000))","v":0},{"$f":"SUMPRODUCT(('Fixed assets'!$R$2:$R$1000)*('Fixed assets'!$P$2:$P$1000<$A654)*('Fixed assets'!$Q$2:$Q$1000=Costs!L$617))-SUMPRODUCT(('Fixed assets'!$S$2:$S$1000)*('Fixed assets'!$P$2:$P$1000<Costs!$A654)*('Fixed assets'!$Q$2:$Q$1000=Costs!L$617))-SUMPRODUCT(('Fixed assets'!$Q$2:$Q$1000=Costs!L$617)*('Fixed assets'!$U$2:$U$1000=Costs!$A654)*('Fixed assets'!$S$2:$S$1000))+SUMPRODUCT(('Fixed assets'!$Q$2:$Q$1000=Costs!L$617)*('Fixed assets'!$P$2:$P$1000=Costs!$A654)*('Fixed assets'!$U$2:$U$1000=Costs!$A654)*('Fixed assets'!$R$2:$R$1000))","v":0},{"$f":"SUMPRODUCT(('Fixed assets'!$R$2:$R$1000)*('Fixed assets'!$P$2:$P$1000<$A654)*('Fixed assets'!$Q$2:$Q$1000=Costs!M$617))-SUMPRODUCT(('Fixed assets'!$S$2:$S$1000)*('Fixed assets'!$P$2:$P$1000<Costs!$A654)*('Fixed assets'!$Q$2:$Q$1000=Costs!M$617))-SUMPRODUCT(('Fixed assets'!$Q$2:$Q$1000=Costs!M$617)*('Fixed assets'!$U$2:$U$1000=Costs!$A654)*('Fixed assets'!$S$2:$S$1000))+SUMPRODUCT(('Fixed assets'!$Q$2:$Q$1000=Costs!M$617)*('Fixed assets'!$P$2:$P$1000=Costs!$A654)*('Fixed assets'!$U$2:$U$1000=Costs!$A654)*('Fixed assets'!$R$2:$R$1000))","v":0},{"$f":"SUMPRODUCT(('Fixed assets'!$R$2:$R$1000)*('Fixed assets'!$P$2:$P$1000<$A654)*('Fixed assets'!$Q$2:$Q$1000=Costs!N$617))-SUMPRODUCT(('Fixed assets'!$S$2:$S$1000)*('Fixed assets'!$P$2:$P$1000<Costs!$A654)*('Fixed assets'!$Q$2:$Q$1000=Costs!N$617))-SUMPRODUCT(('Fixed assets'!$Q$2:$Q$1000=Costs!N$617)*('Fixed assets'!$U$2:$U$1000=Costs!$A654)*('Fixed assets'!$S$2:$S$1000))+SUMPRODUCT(('Fixed assets'!$Q$2:$Q$1000=Costs!N$617)*('Fixed assets'!$P$2:$P$1000=Costs!$A654)*('Fixed assets'!$U$2:$U$1000=Costs!$A654)*('Fixed assets'!$R$2:$R$1000))","v":0},{"$f":"SUMPRODUCT(('Fixed assets'!$R$2:$R$1000)*('Fixed assets'!$P$2:$P$1000<$A654)*('Fixed assets'!$Q$2:$Q$1000=Costs!O$617))-SUMPRODUCT(('Fixed assets'!$S$2:$S$1000)*('Fixed assets'!$P$2:$P$1000<Costs!$A654)*('Fixed assets'!$Q$2:$Q$1000=Costs!O$617))-SUMPRODUCT(('Fixed assets'!$Q$2:$Q$1000=Costs!O$617)*('Fixed assets'!$U$2:$U$1000=Costs!$A654)*('Fixed assets'!$S$2:$S$1000))+SUMPRODUCT(('Fixed assets'!$Q$2:$Q$1000=Costs!O$617)*('Fixed assets'!$P$2:$P$1000=Costs!$A654)*('Fixed assets'!$U$2:$U$1000=Costs!$A654)*('Fixed assets'!$R$2:$R$1000))","v":0},{"$f":"SUMPRODUCT(('Fixed assets'!$R$2:$R$1000)*('Fixed assets'!$P$2:$P$1000<$A654)*('Fixed assets'!$Q$2:$Q$1000=Costs!P$617))-SUMPRODUCT(('Fixed assets'!$S$2:$S$1000)*('Fixed assets'!$P$2:$P$1000<Costs!$A654)*('Fixed assets'!$Q$2:$Q$1000=Costs!P$617))-SUMPRODUCT(('Fixed assets'!$Q$2:$Q$1000=Costs!P$617)*('Fixed assets'!$U$2:$U$1000=Costs!$A654)*('Fixed assets'!$S$2:$S$1000))+SUMPRODUCT(('Fixed assets'!$Q$2:$Q$1000=Costs!P$617)*('Fixed assets'!$P$2:$P$1000=Costs!$A654)*('Fixed assets'!$U$2:$U$1000=Costs!$A654)*('Fixed assets'!$R$2:$R$1000))","v":0},{"$f":"SUMPRODUCT(('Fixed assets'!$R$2:$R$1000)*('Fixed assets'!$P$2:$P$1000<$A654)*('Fixed assets'!$Q$2:$Q$1000=Costs!Q$617))-SUMPRODUCT(('Fixed assets'!$S$2:$S$1000)*('Fixed assets'!$P$2:$P$1000<Costs!$A654)*('Fixed assets'!$Q$2:$Q$1000=Costs!Q$617))-SUMPRODUCT(('Fixed assets'!$Q$2:$Q$1000=Costs!Q$617)*('Fixed assets'!$U$2:$U$1000=Costs!$A654)*('Fixed assets'!$S$2:$S$1000))+SUMPRODUCT(('Fixed assets'!$Q$2:$Q$1000=Costs!Q$617)*('Fixed assets'!$P$2:$P$1000=Costs!$A654)*('Fixed assets'!$U$2:$U$1000=Costs!$A654)*('Fixed assets'!$R$2:$R$1000))","v":0},{"$f":"SUMPRODUCT(('Fixed assets'!$R$2:$R$1000)*('Fixed assets'!$P$2:$P$1000<$A654)*('Fixed assets'!$Q$2:$Q$1000=Costs!R$617))-SUMPRODUCT(('Fixed assets'!$S$2:$S$1000)*('Fixed assets'!$P$2:$P$1000<Costs!$A654)*('Fixed assets'!$Q$2:$Q$1000=Costs!R$617))-SUMPRODUCT(('Fixed assets'!$Q$2:$Q$1000=Costs!R$617)*('Fixed assets'!$U$2:$U$1000=Costs!$A654)*('Fixed assets'!$S$2:$S$1000))+SUMPRODUCT(('Fixed assets'!$Q$2:$Q$1000=Costs!R$617)*('Fixed assets'!$P$2:$P$1000=Costs!$A654)*('Fixed assets'!$U$2:$U$1000=Costs!$A654)*('Fixed assets'!$R$2:$R$1000))","v":0},{"$f":"SUMPRODUCT(('Fixed assets'!$R$2:$R$1000)*('Fixed assets'!$P$2:$P$1000<$A654)*('Fixed assets'!$Q$2:$Q$1000=Costs!S$617))-SUMPRODUCT(('Fixed assets'!$S$2:$S$1000)*('Fixed assets'!$P$2:$P$1000<Costs!$A654)*('Fixed assets'!$Q$2:$Q$1000=Costs!S$617))-SUMPRODUCT(('Fixed assets'!$Q$2:$Q$1000=Costs!S$617)*('Fixed assets'!$U$2:$U$1000=Costs!$A654)*('Fixed assets'!$S$2:$S$1000))+SUMPRODUCT(('Fixed assets'!$Q$2:$Q$1000=Costs!S$617)*('Fixed assets'!$P$2:$P$1000=Costs!$A654)*('Fixed assets'!$U$2:$U$1000=Costs!$A654)*('Fixed assets'!$R$2:$R$1000))","v":0},{"$f":"SUMPRODUCT(('Fixed assets'!$R$2:$R$1000)*('Fixed assets'!$P$2:$P$1000<$A654)*('Fixed assets'!$Q$2:$Q$1000=Costs!T$617))-SUMPRODUCT(('Fixed assets'!$S$2:$S$1000)*('Fixed assets'!$P$2:$P$1000<Costs!$A654)*('Fixed assets'!$Q$2:$Q$1000=Costs!T$617))-SUMPRODUCT(('Fixed assets'!$Q$2:$Q$1000=Costs!T$617)*('Fixed assets'!$U$2:$U$1000=Costs!$A654)*('Fixed assets'!$S$2:$S$1000))+SUMPRODUCT(('Fixed assets'!$Q$2:$Q$1000=Costs!T$617)*('Fixed assets'!$P$2:$P$1000=Costs!$A654)*('Fixed assets'!$U$2:$U$1000=Costs!$A654)*('Fixed assets'!$R$2:$R$1000))","v":0},{"$f":"SUMPRODUCT(('Fixed assets'!$R$2:$R$1000)*('Fixed assets'!$P$2:$P$1000<$A654)*('Fixed assets'!$Q$2:$Q$1000=Costs!U$617))-SUMPRODUCT(('Fixed assets'!$S$2:$S$1000)*('Fixed assets'!$P$2:$P$1000<Costs!$A654)*('Fixed assets'!$Q$2:$Q$1000=Costs!U$617))-SUMPRODUCT(('Fixed assets'!$Q$2:$Q$1000=Costs!U$617)*('Fixed assets'!$U$2:$U$1000=Costs!$A654)*('Fixed assets'!$S$2:$S$1000))+SUMPRODUCT(('Fixed assets'!$Q$2:$Q$1000=Costs!U$617)*('Fixed assets'!$P$2:$P$1000=Costs!$A654)*('Fixed assets'!$U$2:$U$1000=Costs!$A654)*('Fixed assets'!$R$2:$R$1000))","v":0},{"$f":"SUMPRODUCT(('Fixed assets'!$R$2:$R$1000)*('Fixed assets'!$P$2:$P$1000<$A654)*('Fixed assets'!$Q$2:$Q$1000=Costs!V$617))-SUMPRODUCT(('Fixed assets'!$S$2:$S$1000)*('Fixed assets'!$P$2:$P$1000<Costs!$A654)*('Fixed assets'!$Q$2:$Q$1000=Costs!V$617))-SUMPRODUCT(('Fixed assets'!$Q$2:$Q$1000=Costs!V$617)*('Fixed assets'!$U$2:$U$1000=Costs!$A654)*('Fixed assets'!$S$2:$S$1000))+SUMPRODUCT(('Fixed assets'!$Q$2:$Q$1000=Costs!V$617)*('Fixed assets'!$P$2:$P$1000=Costs!$A654)*('Fixed assets'!$U$2:$U$1000=Costs!$A654)*('Fixed assets'!$R$2:$R$1000))","v":0},{"$f":"SUMPRODUCT(('Fixed assets'!$R$2:$R$1000)*('Fixed assets'!$P$2:$P$1000<$A654)*('Fixed assets'!$Q$2:$Q$1000=Costs!W$617))-SUMPRODUCT(('Fixed assets'!$S$2:$S$1000)*('Fixed assets'!$P$2:$P$1000<Costs!$A654)*('Fixed assets'!$Q$2:$Q$1000=Costs!W$617))-SUMPRODUCT(('Fixed assets'!$Q$2:$Q$1000=Costs!W$617)*('Fixed assets'!$U$2:$U$1000=Costs!$A654)*('Fixed assets'!$S$2:$S$1000))+SUMPRODUCT(('Fixed assets'!$Q$2:$Q$1000=Costs!W$617)*('Fixed assets'!$P$2:$P$1000=Costs!$A654)*('Fixed assets'!$U$2:$U$1000=Costs!$A654)*('Fixed assets'!$R$2:$R$1000))","v":0},{"$f":"SUMPRODUCT(('Fixed assets'!$R$2:$R$1000)*('Fixed assets'!$P$2:$P$1000<$A654)*('Fixed assets'!$Q$2:$Q$1000=Costs!X$617))-SUMPRODUCT(('Fixed assets'!$S$2:$S$1000)*('Fixed assets'!$P$2:$P$1000<Costs!$A654)*('Fixed assets'!$Q$2:$Q$1000=Costs!X$617))-SUMPRODUCT(('Fixed assets'!$Q$2:$Q$1000=Costs!X$617)*('Fixed assets'!$U$2:$U$1000=Costs!$A654)*('Fixed assets'!$S$2:$S$1000))+SUMPRODUCT(('Fixed assets'!$Q$2:$Q$1000=Costs!X$617)*('Fixed assets'!$P$2:$P$1000=Costs!$A654)*('Fixed assets'!$U$2:$U$1000=Costs!$A654)*('Fixed assets'!$R$2:$R$1000))","v":0},{"$f":"SUMPRODUCT(('Fixed assets'!$R$2:$R$1000)*('Fixed assets'!$P$2:$P$1000<$A654)*('Fixed assets'!$Q$2:$Q$1000=Costs!Y$617))-SUMPRODUCT(('Fixed assets'!$S$2:$S$1000)*('Fixed assets'!$P$2:$P$1000<Costs!$A654)*('Fixed assets'!$Q$2:$Q$1000=Costs!Y$617))-SUMPRODUCT(('Fixed assets'!$Q$2:$Q$1000=Costs!Y$617)*('Fixed assets'!$U$2:$U$1000=Costs!$A654)*('Fixed assets'!$S$2:$S$1000))+SUMPRODUCT(('Fixed assets'!$Q$2:$Q$1000=Costs!Y$617)*('Fixed assets'!$P$2:$P$1000=Costs!$A654)*('Fixed assets'!$U$2:$U$1000=Costs!$A654)*('Fixed assets'!$R$2:$R$1000))","v":0},{"$f":"SUMPRODUCT(('Fixed assets'!$R$2:$R$1000)*('Fixed assets'!$P$2:$P$1000<$A654)*('Fixed assets'!$Q$2:$Q$1000=Costs!Z$617))-SUMPRODUCT(('Fixed assets'!$S$2:$S$1000)*('Fixed assets'!$P$2:$P$1000<Costs!$A654)*('Fixed assets'!$Q$2:$Q$1000=Costs!Z$617))-SUMPRODUCT(('Fixed assets'!$Q$2:$Q$1000=Costs!Z$617)*('Fixed assets'!$U$2:$U$1000=Costs!$A654)*('Fixed assets'!$S$2:$S$1000))+SUMPRODUCT(('Fixed assets'!$Q$2:$Q$1000=Costs!Z$617)*('Fixed assets'!$P$2:$P$1000=Costs!$A654)*('Fixed assets'!$U$2:$U$1000=Costs!$A654)*('Fixed assets'!$R$2:$R$1000))","v":0},{"$f":"SUMPRODUCT(('Fixed assets'!$R$2:$R$1000)*('Fixed assets'!$P$2:$P$1000<$A654)*('Fixed assets'!$Q$2:$Q$1000=Costs!AA$617))-SUMPRODUCT(('Fixed assets'!$S$2:$S$1000)*('Fixed assets'!$P$2:$P$1000<Costs!$A654)*('Fixed assets'!$Q$2:$Q$1000=Costs!AA$617))-SUMPRODUCT(('Fixed assets'!$Q$2:$Q$1000=Costs!AA$617)*('Fixed assets'!$U$2:$U$1000=Costs!$A654)*('Fixed assets'!$S$2:$S$1000))+SUMPRODUCT(('Fixed assets'!$Q$2:$Q$1000=Costs!AA$617)*('Fixed assets'!$P$2:$P$1000=Costs!$A654)*('Fixed assets'!$U$2:$U$1000=Costs!$A654)*('Fixed assets'!$R$2:$R$1000))","v":0},{"$f":"SUMPRODUCT(('Fixed assets'!$R$2:$R$1000)*('Fixed assets'!$P$2:$P$1000<$A654)*('Fixed assets'!$Q$2:$Q$1000=Costs!AB$617))-SUMPRODUCT(('Fixed assets'!$S$2:$S$1000)*('Fixed assets'!$P$2:$P$1000<Costs!$A654)*('Fixed assets'!$Q$2:$Q$1000=Costs!AB$617))-SUMPRODUCT(('Fixed assets'!$Q$2:$Q$1000=Costs!AB$617)*('Fixed assets'!$U$2:$U$1000=Costs!$A654)*('Fixed assets'!$S$2:$S$1000))+SUMPRODUCT(('Fixed assets'!$Q$2:$Q$1000=Costs!AB$617)*('Fixed assets'!$P$2:$P$1000=Costs!$A654)*('Fixed assets'!$U$2:$U$1000=Costs!$A654)*('Fixed assets'!$R$2:$R$1000))","v":0},{"$f":"SUMPRODUCT(('Fixed assets'!$R$2:$R$1000)*('Fixed assets'!$P$2:$P$1000<$A654)*('Fixed assets'!$Q$2:$Q$1000=Costs!AC$617))-SUMPRODUCT(('Fixed assets'!$S$2:$S$1000)*('Fixed assets'!$P$2:$P$1000<Costs!$A654)*('Fixed assets'!$Q$2:$Q$1000=Costs!AC$617))-SUMPRODUCT(('Fixed assets'!$Q$2:$Q$1000=Costs!AC$617)*('Fixed assets'!$U$2:$U$1000=Costs!$A654)*('Fixed assets'!$S$2:$S$1000))+SUMPRODUCT(('Fixed assets'!$Q$2:$Q$1000=Costs!AC$617)*('Fixed assets'!$P$2:$P$1000=Costs!$A654)*('Fixed assets'!$U$2:$U$1000=Costs!$A654)*('Fixed assets'!$R$2:$R$1000))","v":0},{"$f":"SUMPRODUCT(('Fixed assets'!$R$2:$R$1000)*('Fixed assets'!$P$2:$P$1000<$A654)*('Fixed assets'!$Q$2:$Q$1000=Costs!AD$617))-SUMPRODUCT(('Fixed assets'!$S$2:$S$1000)*('Fixed assets'!$P$2:$P$1000<Costs!$A654)*('Fixed assets'!$Q$2:$Q$1000=Costs!AD$617))-SUMPRODUCT(('Fixed assets'!$Q$2:$Q$1000=Costs!AD$617)*('Fixed assets'!$U$2:$U$1000=Costs!$A654)*('Fixed assets'!$S$2:$S$1000))+SUMPRODUCT(('Fixed assets'!$Q$2:$Q$1000=Costs!AD$617)*('Fixed assets'!$P$2:$P$1000=Costs!$A654)*('Fixed assets'!$U$2:$U$1000=Costs!$A654)*('Fixed assets'!$R$2:$R$1000))","v":0},{"$f":"SUMPRODUCT(('Fixed assets'!$R$2:$R$1000)*('Fixed assets'!$P$2:$P$1000<$A654)*('Fixed assets'!$Q$2:$Q$1000=Costs!AE$617))-SUMPRODUCT(('Fixed assets'!$S$2:$S$1000)*('Fixed assets'!$P$2:$P$1000<Costs!$A654)*('Fixed assets'!$Q$2:$Q$1000=Costs!AE$617))-SUMPRODUCT(('Fixed assets'!$Q$2:$Q$1000=Costs!AE$617)*('Fixed assets'!$U$2:$U$1000=Costs!$A654)*('Fixed assets'!$S$2:$S$1000))+SUMPRODUCT(('Fixed assets'!$Q$2:$Q$1000=Costs!AE$617)*('Fixed assets'!$P$2:$P$1000=Costs!$A654)*('Fixed assets'!$U$2:$U$1000=Costs!$A654)*('Fixed assets'!$R$2:$R$1000))","v":0},{"$f":"SUMPRODUCT(('Fixed assets'!$R$2:$R$1000)*('Fixed assets'!$P$2:$P$1000<$A654)*('Fixed assets'!$Q$2:$Q$1000=Costs!AF$617))-SUMPRODUCT(('Fixed assets'!$S$2:$S$1000)*('Fixed assets'!$P$2:$P$1000<Costs!$A654)*('Fixed assets'!$Q$2:$Q$1000=Costs!AF$617))-SUMPRODUCT(('Fixed assets'!$Q$2:$Q$1000=Costs!AF$617)*('Fixed assets'!$U$2:$U$1000=Costs!$A654)*('Fixed assets'!$S$2:$S$1000))+SUMPRODUCT(('Fixed assets'!$Q$2:$Q$1000=Costs!AF$617)*('Fixed assets'!$P$2:$P$1000=Costs!$A654)*('Fixed assets'!$U$2:$U$1000=Costs!$A654)*('Fixed assets'!$R$2:$R$1000))","v":0},{"$f":"SUMPRODUCT(('Fixed assets'!$R$2:$R$1000)*('Fixed assets'!$P$2:$P$1000<$A654)*('Fixed assets'!$Q$2:$Q$1000=Costs!AG$617))-SUMPRODUCT(('Fixed assets'!$S$2:$S$1000)*('Fixed assets'!$P$2:$P$1000<Costs!$A654)*('Fixed assets'!$Q$2:$Q$1000=Costs!AG$617))-SUMPRODUCT(('Fixed assets'!$Q$2:$Q$1000=Costs!AG$617)*('Fixed assets'!$U$2:$U$1000=Costs!$A654)*('Fixed assets'!$S$2:$S$1000))+SUMPRODUCT(('Fixed assets'!$Q$2:$Q$1000=Costs!AG$617)*('Fixed assets'!$P$2:$P$1000=Costs!$A654)*('Fixed assets'!$U$2:$U$1000=Costs!$A654)*('Fixed assets'!$R$2:$R$1000))","v":0},{"$f":"SUMPRODUCT(('Fixed assets'!$R$2:$R$1000)*('Fixed assets'!$P$2:$P$1000<$A654)*('Fixed assets'!$Q$2:$Q$1000=Costs!AH$617))-SUMPRODUCT(('Fixed assets'!$S$2:$S$1000)*('Fixed assets'!$P$2:$P$1000<Costs!$A654)*('Fixed assets'!$Q$2:$Q$1000=Costs!AH$617))-SUMPRODUCT(('Fixed assets'!$Q$2:$Q$1000=Costs!AH$617)*('Fixed assets'!$U$2:$U$1000=Costs!$A654)*('Fixed assets'!$S$2:$S$1000))+SUMPRODUCT(('Fixed assets'!$Q$2:$Q$1000=Costs!AH$617)*('Fixed assets'!$P$2:$P$1000=Costs!$A654)*('Fixed assets'!$U$2:$U$1000=Costs!$A654)*('Fixed assets'!$R$2:$R$1000))","v":0},{"$f":"SUMPRODUCT(('Fixed assets'!$R$2:$R$1000)*('Fixed assets'!$P$2:$P$1000<$A654)*('Fixed assets'!$Q$2:$Q$1000=Costs!AI$617))-SUMPRODUCT(('Fixed assets'!$S$2:$S$1000)*('Fixed assets'!$P$2:$P$1000<Costs!$A654)*('Fixed assets'!$Q$2:$Q$1000=Costs!AI$617))-SUMPRODUCT(('Fixed assets'!$Q$2:$Q$1000=Costs!AI$617)*('Fixed assets'!$U$2:$U$1000=Costs!$A654)*('Fixed assets'!$S$2:$S$1000))+SUMPRODUCT(('Fixed assets'!$Q$2:$Q$1000=Costs!AI$617)*('Fixed assets'!$P$2:$P$1000=Costs!$A654)*('Fixed assets'!$U$2:$U$1000=Costs!$A654)*('Fixed assets'!$R$2:$R$1000))","v":0},{"$f":"SUMPRODUCT(('Fixed assets'!$R$2:$R$1000)*('Fixed assets'!$P$2:$P$1000<$A654)*('Fixed assets'!$Q$2:$Q$1000=Costs!AJ$617))-SUMPRODUCT(('Fixed assets'!$S$2:$S$1000)*('Fixed assets'!$P$2:$P$1000<Costs!$A654)*('Fixed assets'!$Q$2:$Q$1000=Costs!AJ$617))-SUMPRODUCT(('Fixed assets'!$Q$2:$Q$1000=Costs!AJ$617)*('Fixed assets'!$U$2:$U$1000=Costs!$A654)*('Fixed assets'!$S$2:$S$1000))+SUMPRODUCT(('Fixed assets'!$Q$2:$Q$1000=Costs!AJ$617)*('Fixed assets'!$P$2:$P$1000=Costs!$A654)*('Fixed assets'!$U$2:$U$1000=Costs!$A654)*('Fixed assets'!$R$2:$R$1000))","v":0},{"$f":"SUMPRODUCT(('Fixed assets'!$R$2:$R$1000)*('Fixed assets'!$P$2:$P$1000<$A654)*('Fixed assets'!$Q$2:$Q$1000=Costs!AK$617))-SUMPRODUCT(('Fixed assets'!$S$2:$S$1000)*('Fixed assets'!$P$2:$P$1000<Costs!$A654)*('Fixed assets'!$Q$2:$Q$1000=Costs!AK$617))-SUMPRODUCT(('Fixed assets'!$Q$2:$Q$1000=Costs!AK$617)*('Fixed assets'!$U$2:$U$1000=Costs!$A654)*('Fixed assets'!$S$2:$S$1000))+SUMPRODUCT(('Fixed assets'!$Q$2:$Q$1000=Costs!AK$617)*('Fixed assets'!$P$2:$P$1000=Costs!$A654)*('Fixed assets'!$U$2:$U$1000=Costs!$A654)*('Fixed assets'!$R$2:$R$1000))","v":0},{"$f":"SUMPRODUCT(('Fixed assets'!$R$2:$R$1000)*('Fixed assets'!$P$2:$P$1000<$A654)*('Fixed assets'!$Q$2:$Q$1000=Costs!AL$617))-SUMPRODUCT(('Fixed assets'!$S$2:$S$1000)*('Fixed assets'!$P$2:$P$1000<Costs!$A654)*('Fixed assets'!$Q$2:$Q$1000=Costs!AL$617))-SUMPRODUCT(('Fixed assets'!$Q$2:$Q$1000=Costs!AL$617)*('Fixed assets'!$U$2:$U$1000=Costs!$A654)*('Fixed assets'!$S$2:$S$1000))+SUMPRODUCT(('Fixed assets'!$Q$2:$Q$1000=Costs!AL$617)*('Fixed assets'!$P$2:$P$1000=Costs!$A654)*('Fixed assets'!$U$2:$U$1000=Costs!$A654)*('Fixed assets'!$R$2:$R$1000))","v":0},{"$f":"SUMPRODUCT(('Fixed assets'!$R$2:$R$1000)*('Fixed assets'!$P$2:$P$1000<$A654)*('Fixed assets'!$Q$2:$Q$1000=Costs!AM$617))-SUMPRODUCT(('Fixed assets'!$S$2:$S$1000)*('Fixed assets'!$P$2:$P$1000<Costs!$A654)*('Fixed assets'!$Q$2:$Q$1000=Costs!AM$617))-SUMPRODUCT(('Fixed assets'!$Q$2:$Q$1000=Costs!AM$617)*('Fixed assets'!$U$2:$U$1000=Costs!$A654)*('Fixed assets'!$S$2:$S$1000))+SUMPRODUCT(('Fixed assets'!$Q$2:$Q$1000=Costs!AM$617)*('Fixed assets'!$P$2:$P$1000=Costs!$A654)*('Fixed assets'!$U$2:$U$1000=Costs!$A654)*('Fixed assets'!$R$2:$R$1000))","v":0},{"$f":"SUMPRODUCT(('Fixed assets'!$R$2:$R$1000)*('Fixed assets'!$P$2:$P$1000<$A654)*('Fixed assets'!$Q$2:$Q$1000=Costs!AN$617))-SUMPRODUCT(('Fixed assets'!$S$2:$S$1000)*('Fixed assets'!$P$2:$P$1000<Costs!$A654)*('Fixed assets'!$Q$2:$Q$1000=Costs!AN$617))-SUMPRODUCT(('Fixed assets'!$Q$2:$Q$1000=Costs!AN$617)*('Fixed assets'!$U$2:$U$1000=Costs!$A654)*('Fixed assets'!$S$2:$S$1000))+SUMPRODUCT(('Fixed assets'!$Q$2:$Q$1000=Costs!AN$617)*('Fixed assets'!$P$2:$P$1000=Costs!$A654)*('Fixed assets'!$U$2:$U$1000=Costs!$A654)*('Fixed assets'!$R$2:$R$1000))","v":0},{"$f":"SUMPRODUCT(('Fixed assets'!$R$2:$R$1000)*('Fixed assets'!$P$2:$P$1000<$A654)*('Fixed assets'!$Q$2:$Q$1000=Costs!AO$617))-SUMPRODUCT(('Fixed assets'!$S$2:$S$1000)*('Fixed assets'!$P$2:$P$1000<Costs!$A654)*('Fixed assets'!$Q$2:$Q$1000=Costs!AO$617))-SUMPRODUCT(('Fixed assets'!$Q$2:$Q$1000=Costs!AO$617)*('Fixed assets'!$U$2:$U$1000=Costs!$A654)*('Fixed assets'!$S$2:$S$1000))+SUMPRODUCT(('Fixed assets'!$Q$2:$Q$1000=Costs!AO$617)*('Fixed assets'!$P$2:$P$1000=Costs!$A654)*('Fixed assets'!$U$2:$U$1000=Costs!$A654)*('Fixed assets'!$R$2:$R$1000))","v":0},{"$f":"SUMPRODUCT(('Fixed assets'!$R$2:$R$1000)*('Fixed assets'!$P$2:$P$1000<$A654)*('Fixed assets'!$Q$2:$Q$1000=Costs!AP$617))-SUMPRODUCT(('Fixed assets'!$S$2:$S$1000)*('Fixed assets'!$P$2:$P$1000<Costs!$A654)*('Fixed assets'!$Q$2:$Q$1000=Costs!AP$617))-SUMPRODUCT(('Fixed assets'!$Q$2:$Q$1000=Costs!AP$617)*('Fixed assets'!$U$2:$U$1000=Costs!$A654)*('Fixed assets'!$S$2:$S$1000))+SUMPRODUCT(('Fixed assets'!$Q$2:$Q$1000=Costs!AP$617)*('Fixed assets'!$P$2:$P$1000=Costs!$A654)*('Fixed assets'!$U$2:$U$1000=Costs!$A654)*('Fixed assets'!$R$2:$R$1000))","v":0},{"$f":"SUMPRODUCT(('Fixed assets'!$R$2:$R$1000)*('Fixed assets'!$P$2:$P$1000<$A654)*('Fixed assets'!$Q$2:$Q$1000=Costs!AQ$617))-SUMPRODUCT(('Fixed assets'!$S$2:$S$1000)*('Fixed assets'!$P$2:$P$1000<Costs!$A654)*('Fixed assets'!$Q$2:$Q$1000=Costs!AQ$617))-SUMPRODUCT(('Fixed assets'!$Q$2:$Q$1000=Costs!AQ$617)*('Fixed assets'!$U$2:$U$1000=Costs!$A654)*('Fixed assets'!$S$2:$S$1000))+SUMPRODUCT(('Fixed assets'!$Q$2:$Q$1000=Costs!AQ$617)*('Fixed assets'!$P$2:$P$1000=Costs!$A654)*('Fixed assets'!$U$2:$U$1000=Costs!$A654)*('Fixed assets'!$R$2:$R$1000))","v":0}]
[2052,0,{"$f":"SUMPRODUCT(('Fixed assets'!$R$2:$R$1000)*('Fixed assets'!$P$2:$P$1000<$A655)*('Fixed assets'!$Q$2:$Q$1000=Costs!C$617))-SUMPRODUCT(('Fixed assets'!$S$2:$S$1000)*('Fixed assets'!$P$2:$P$1000<Costs!$A655)*('Fixed assets'!$Q$2:$Q$1000=Costs!C$617))-SUMPRODUCT(('Fixed assets'!$Q$2:$Q$1000=Costs!C$617)*('Fixed assets'!$U$2:$U$1000=Costs!$A655)*('Fixed assets'!$S$2:$S$1000))+SUMPRODUCT(('Fixed assets'!$Q$2:$Q$1000=Costs!C$617)*('Fixed assets'!$P$2:$P$1000=Costs!$A655)*('Fixed assets'!$U$2:$U$1000=Costs!$A655)*('Fixed assets'!$R$2:$R$1000))","v":0},{"$f":"SUMPRODUCT(('Fixed assets'!$R$2:$R$1000)*('Fixed assets'!$P$2:$P$1000<$A655)*('Fixed assets'!$Q$2:$Q$1000=Costs!D$617))-SUMPRODUCT(('Fixed assets'!$S$2:$S$1000)*('Fixed assets'!$P$2:$P$1000<Costs!$A655)*('Fixed assets'!$Q$2:$Q$1000=Costs!D$617))-SUMPRODUCT(('Fixed assets'!$Q$2:$Q$1000=Costs!D$617)*('Fixed assets'!$U$2:$U$1000=Costs!$A655)*('Fixed assets'!$S$2:$S$1000))+SUMPRODUCT(('Fixed assets'!$Q$2:$Q$1000=Costs!D$617)*('Fixed assets'!$P$2:$P$1000=Costs!$A655)*('Fixed assets'!$U$2:$U$1000=Costs!$A655)*('Fixed assets'!$R$2:$R$1000))","v":0},{"$f":"SUMPRODUCT(('Fixed assets'!$R$2:$R$1000)*('Fixed assets'!$P$2:$P$1000<$A655)*('Fixed assets'!$Q$2:$Q$1000=Costs!E$617))-SUMPRODUCT(('Fixed assets'!$S$2:$S$1000)*('Fixed assets'!$P$2:$P$1000<Costs!$A655)*('Fixed assets'!$Q$2:$Q$1000=Costs!E$617))-SUMPRODUCT(('Fixed assets'!$Q$2:$Q$1000=Costs!E$617)*('Fixed assets'!$U$2:$U$1000=Costs!$A655)*('Fixed assets'!$S$2:$S$1000))+SUMPRODUCT(('Fixed assets'!$Q$2:$Q$1000=Costs!E$617)*('Fixed assets'!$P$2:$P$1000=Costs!$A655)*('Fixed assets'!$U$2:$U$1000=Costs!$A655)*('Fixed assets'!$R$2:$R$1000))","v":0},{"$f":"SUMPRODUCT(('Fixed assets'!$R$2:$R$1000)*('Fixed assets'!$P$2:$P$1000<$A655)*('Fixed assets'!$Q$2:$Q$1000=Costs!F$617))-SUMPRODUCT(('Fixed assets'!$S$2:$S$1000)*('Fixed assets'!$P$2:$P$1000<Costs!$A655)*('Fixed assets'!$Q$2:$Q$1000=Costs!F$617))-SUMPRODUCT(('Fixed assets'!$Q$2:$Q$1000=Costs!F$617)*('Fixed assets'!$U$2:$U$1000=Costs!$A655)*('Fixed assets'!$S$2:$S$1000))+SUMPRODUCT(('Fixed assets'!$Q$2:$Q$1000=Costs!F$617)*('Fixed assets'!$P$2:$P$1000=Costs!$A655)*('Fixed assets'!$U$2:$U$1000=Costs!$A655)*('Fixed assets'!$R$2:$R$1000))","v":0},{"$f":"SUMPRODUCT(('Fixed assets'!$R$2:$R$1000)*('Fixed assets'!$P$2:$P$1000<$A655)*('Fixed assets'!$Q$2:$Q$1000=Costs!G$617))-SUMPRODUCT(('Fixed assets'!$S$2:$S$1000)*('Fixed assets'!$P$2:$P$1000<Costs!$A655)*('Fixed assets'!$Q$2:$Q$1000=Costs!G$617))-SUMPRODUCT(('Fixed assets'!$Q$2:$Q$1000=Costs!G$617)*('Fixed assets'!$U$2:$U$1000=Costs!$A655)*('Fixed assets'!$S$2:$S$1000))+SUMPRODUCT(('Fixed assets'!$Q$2:$Q$1000=Costs!G$617)*('Fixed assets'!$P$2:$P$1000=Costs!$A655)*('Fixed assets'!$U$2:$U$1000=Costs!$A655)*('Fixed assets'!$R$2:$R$1000))","v":0},{"$f":"SUMPRODUCT(('Fixed assets'!$R$2:$R$1000)*('Fixed assets'!$P$2:$P$1000<$A655)*('Fixed assets'!$Q$2:$Q$1000=Costs!H$617))-SUMPRODUCT(('Fixed assets'!$S$2:$S$1000)*('Fixed assets'!$P$2:$P$1000<Costs!$A655)*('Fixed assets'!$Q$2:$Q$1000=Costs!H$617))-SUMPRODUCT(('Fixed assets'!$Q$2:$Q$1000=Costs!H$617)*('Fixed assets'!$U$2:$U$1000=Costs!$A655)*('Fixed assets'!$S$2:$S$1000))+SUMPRODUCT(('Fixed assets'!$Q$2:$Q$1000=Costs!H$617)*('Fixed assets'!$P$2:$P$1000=Costs!$A655)*('Fixed assets'!$U$2:$U$1000=Costs!$A655)*('Fixed assets'!$R$2:$R$1000))","v":0},{"$f":"SUMPRODUCT(('Fixed assets'!$R$2:$R$1000)*('Fixed assets'!$P$2:$P$1000<$A655)*('Fixed assets'!$Q$2:$Q$1000=Costs!I$617))-SUMPRODUCT(('Fixed assets'!$S$2:$S$1000)*('Fixed assets'!$P$2:$P$1000<Costs!$A655)*('Fixed assets'!$Q$2:$Q$1000=Costs!I$617))-SUMPRODUCT(('Fixed assets'!$Q$2:$Q$1000=Costs!I$617)*('Fixed assets'!$U$2:$U$1000=Costs!$A655)*('Fixed assets'!$S$2:$S$1000))+SUMPRODUCT(('Fixed assets'!$Q$2:$Q$1000=Costs!I$617)*('Fixed assets'!$P$2:$P$1000=Costs!$A655)*('Fixed assets'!$U$2:$U$1000=Costs!$A655)*('Fixed assets'!$R$2:$R$1000))","v":0},{"$f":"SUMPRODUCT(('Fixed assets'!$R$2:$R$1000)*('Fixed assets'!$P$2:$P$1000<$A655)*('Fixed assets'!$Q$2:$Q$1000=Costs!J$617))-SUMPRODUCT(('Fixed assets'!$S$2:$S$1000)*('Fixed assets'!$P$2:$P$1000<Costs!$A655)*('Fixed assets'!$Q$2:$Q$1000=Costs!J$617))-SUMPRODUCT(('Fixed assets'!$Q$2:$Q$1000=Costs!J$617)*('Fixed assets'!$U$2:$U$1000=Costs!$A655)*('Fixed assets'!$S$2:$S$1000))+SUMPRODUCT(('Fixed assets'!$Q$2:$Q$1000=Costs!J$617)*('Fixed assets'!$P$2:$P$1000=Costs!$A655)*('Fixed assets'!$U$2:$U$1000=Costs!$A655)*('Fixed assets'!$R$2:$R$1000))","v":0},{"$f":"SUMPRODUCT(('Fixed assets'!$R$2:$R$1000)*('Fixed assets'!$P$2:$P$1000<$A655)*('Fixed assets'!$Q$2:$Q$1000=Costs!K$617))-SUMPRODUCT(('Fixed assets'!$S$2:$S$1000)*('Fixed assets'!$P$2:$P$1000<Costs!$A655)*('Fixed assets'!$Q$2:$Q$1000=Costs!K$617))-SUMPRODUCT(('Fixed assets'!$Q$2:$Q$1000=Costs!K$617)*('Fixed assets'!$U$2:$U$1000=Costs!$A655)*('Fixed assets'!$S$2:$S$1000))+SUMPRODUCT(('Fixed assets'!$Q$2:$Q$1000=Costs!K$617)*('Fixed assets'!$P$2:$P$1000=Costs!$A655)*('Fixed assets'!$U$2:$U$1000=Costs!$A655)*('Fixed assets'!$R$2:$R$1000))","v":0},{"$f":"SUMPRODUCT(('Fixed assets'!$R$2:$R$1000)*('Fixed assets'!$P$2:$P$1000<$A655)*('Fixed assets'!$Q$2:$Q$1000=Costs!L$617))-SUMPRODUCT(('Fixed assets'!$S$2:$S$1000)*('Fixed assets'!$P$2:$P$1000<Costs!$A655)*('Fixed assets'!$Q$2:$Q$1000=Costs!L$617))-SUMPRODUCT(('Fixed assets'!$Q$2:$Q$1000=Costs!L$617)*('Fixed assets'!$U$2:$U$1000=Costs!$A655)*('Fixed assets'!$S$2:$S$1000))+SUMPRODUCT(('Fixed assets'!$Q$2:$Q$1000=Costs!L$617)*('Fixed assets'!$P$2:$P$1000=Costs!$A655)*('Fixed assets'!$U$2:$U$1000=Costs!$A655)*('Fixed assets'!$R$2:$R$1000))","v":0},{"$f":"SUMPRODUCT(('Fixed assets'!$R$2:$R$1000)*('Fixed assets'!$P$2:$P$1000<$A655)*('Fixed assets'!$Q$2:$Q$1000=Costs!M$617))-SUMPRODUCT(('Fixed assets'!$S$2:$S$1000)*('Fixed assets'!$P$2:$P$1000<Costs!$A655)*('Fixed assets'!$Q$2:$Q$1000=Costs!M$617))-SUMPRODUCT(('Fixed assets'!$Q$2:$Q$1000=Costs!M$617)*('Fixed assets'!$U$2:$U$1000=Costs!$A655)*('Fixed assets'!$S$2:$S$1000))+SUMPRODUCT(('Fixed assets'!$Q$2:$Q$1000=Costs!M$617)*('Fixed assets'!$P$2:$P$1000=Costs!$A655)*('Fixed assets'!$U$2:$U$1000=Costs!$A655)*('Fixed assets'!$R$2:$R$1000))","v":0},{"$f":"SUMPRODUCT(('Fixed assets'!$R$2:$R$1000)*('Fixed assets'!$P$2:$P$1000<$A655)*('Fixed assets'!$Q$2:$Q$1000=Costs!N$617))-SUMPRODUCT(('Fixed assets'!$S$2:$S$1000)*('Fixed assets'!$P$2:$P$1000<Costs!$A655)*('Fixed assets'!$Q$2:$Q$1000=Costs!N$617))-SUMPRODUCT(('Fixed assets'!$Q$2:$Q$1000=Costs!N$617)*('Fixed assets'!$U$2:$U$1000=Costs!$A655)*('Fixed assets'!$S$2:$S$1000))+SUMPRODUCT(('Fixed assets'!$Q$2:$Q$1000=Costs!N$617)*('Fixed assets'!$P$2:$P$1000=Costs!$A655)*('Fixed assets'!$U$2:$U$1000=Costs!$A655)*('Fixed assets'!$R$2:$R$1000))","v":0},{"$f":"SUMPRODUCT(('Fixed assets'!$R$2:$R$1000)*('Fixed assets'!$P$2:$P$1000<$A655)*('Fixed assets'!$Q$2:$Q$1000=Costs!O$617))-SUMPRODUCT(('Fixed assets'!$S$2:$S$1000)*('Fixed assets'!$P$2:$P$1000<Costs!$A655)*('Fixed assets'!$Q$2:$Q$1000=Costs!O$617))-SUMPRODUCT(('Fixed assets'!$Q$2:$Q$1000=Costs!O$617)*('Fixed assets'!$U$2:$U$1000=Costs!$A655)*('Fixed assets'!$S$2:$S$1000))+SUMPRODUCT(('Fixed assets'!$Q$2:$Q$1000=Costs!O$617)*('Fixed assets'!$P$2:$P$1000=Costs!$A655)*('Fixed assets'!$U$2:$U$1000=Costs!$A655)*('Fixed assets'!$R$2:$R$1000))","v":0},{"$f":"SUMPRODUCT(('Fixed assets'!$R$2:$R$1000)*('Fixed assets'!$P$2:$P$1000<$A655)*('Fixed assets'!$Q$2:$Q$1000=Costs!P$617))-SUMPRODUCT(('Fixed assets'!$S$2:$S$1000)*('Fixed assets'!$P$2:$P$1000<Costs!$A655)*('Fixed assets'!$Q$2:$Q$1000=Costs!P$617))-SUMPRODUCT(('Fixed assets'!$Q$2:$Q$1000=Costs!P$617)*('Fixed assets'!$U$2:$U$1000=Costs!$A655)*('Fixed assets'!$S$2:$S$1000))+SUMPRODUCT(('Fixed assets'!$Q$2:$Q$1000=Costs!P$617)*('Fixed assets'!$P$2:$P$1000=Costs!$A655)*('Fixed assets'!$U$2:$U$1000=Costs!$A655)*('Fixed assets'!$R$2:$R$1000))","v":0},{"$f":"SUMPRODUCT(('Fixed assets'!$R$2:$R$1000)*('Fixed assets'!$P$2:$P$1000<$A655)*('Fixed assets'!$Q$2:$Q$1000=Costs!Q$617))-SUMPRODUCT(('Fixed assets'!$S$2:$S$1000)*('Fixed assets'!$P$2:$P$1000<Costs!$A655)*('Fixed assets'!$Q$2:$Q$1000=Costs!Q$617))-SUMPRODUCT(('Fixed assets'!$Q$2:$Q$1000=Costs!Q$617)*('Fixed assets'!$U$2:$U$1000=Costs!$A655)*('Fixed assets'!$S$2:$S$1000))+SUMPRODUCT(('Fixed assets'!$Q$2:$Q$1000=Costs!Q$617)*('Fixed assets'!$P$2:$P$1000=Costs!$A655)*('Fixed assets'!$U$2:$U$1000=Costs!$A655)*('Fixed assets'!$R$2:$R$1000))","v":0},{"$f":"SUMPRODUCT(('Fixed assets'!$R$2:$R$1000)*('Fixed assets'!$P$2:$P$1000<$A655)*('Fixed assets'!$Q$2:$Q$1000=Costs!R$617))-SUMPRODUCT(('Fixed assets'!$S$2:$S$1000)*('Fixed assets'!$P$2:$P$1000<Costs!$A655)*('Fixed assets'!$Q$2:$Q$1000=Costs!R$617))-SUMPRODUCT(('Fixed assets'!$Q$2:$Q$1000=Costs!R$617)*('Fixed assets'!$U$2:$U$1000=Costs!$A655)*('Fixed assets'!$S$2:$S$1000))+SUMPRODUCT(('Fixed assets'!$Q$2:$Q$1000=Costs!R$617)*('Fixed assets'!$P$2:$P$1000=Costs!$A655)*('Fixed assets'!$U$2:$U$1000=Costs!$A655)*('Fixed assets'!$R$2:$R$1000))","v":0},{"$f":"SUMPRODUCT(('Fixed assets'!$R$2:$R$1000)*('Fixed assets'!$P$2:$P$1000<$A655)*('Fixed assets'!$Q$2:$Q$1000=Costs!S$617))-SUMPRODUCT(('Fixed assets'!$S$2:$S$1000)*('Fixed assets'!$P$2:$P$1000<Costs!$A655)*('Fixed assets'!$Q$2:$Q$1000=Costs!S$617))-SUMPRODUCT(('Fixed assets'!$Q$2:$Q$1000=Costs!S$617)*('Fixed assets'!$U$2:$U$1000=Costs!$A655)*('Fixed assets'!$S$2:$S$1000))+SUMPRODUCT(('Fixed assets'!$Q$2:$Q$1000=Costs!S$617)*('Fixed assets'!$P$2:$P$1000=Costs!$A655)*('Fixed assets'!$U$2:$U$1000=Costs!$A655)*('Fixed assets'!$R$2:$R$1000))","v":0},{"$f":"SUMPRODUCT(('Fixed assets'!$R$2:$R$1000)*('Fixed assets'!$P$2:$P$1000<$A655)*('Fixed assets'!$Q$2:$Q$1000=Costs!T$617))-SUMPRODUCT(('Fixed assets'!$S$2:$S$1000)*('Fixed assets'!$P$2:$P$1000<Costs!$A655)*('Fixed assets'!$Q$2:$Q$1000=Costs!T$617))-SUMPRODUCT(('Fixed assets'!$Q$2:$Q$1000=Costs!T$617)*('Fixed assets'!$U$2:$U$1000=Costs!$A655)*('Fixed assets'!$S$2:$S$1000))+SUMPRODUCT(('Fixed assets'!$Q$2:$Q$1000=Costs!T$617)*('Fixed assets'!$P$2:$P$1000=Costs!$A655)*('Fixed assets'!$U$2:$U$1000=Costs!$A655)*('Fixed assets'!$R$2:$R$1000))","v":0},{"$f":"SUMPRODUCT(('Fixed assets'!$R$2:$R$1000)*('Fixed assets'!$P$2:$P$1000<$A655)*('Fixed assets'!$Q$2:$Q$1000=Costs!U$617))-SUMPRODUCT(('Fixed assets'!$S$2:$S$1000)*('Fixed assets'!$P$2:$P$1000<Costs!$A655)*('Fixed assets'!$Q$2:$Q$1000=Costs!U$617))-SUMPRODUCT(('Fixed assets'!$Q$2:$Q$1000=Costs!U$617)*('Fixed assets'!$U$2:$U$1000=Costs!$A655)*('Fixed assets'!$S$2:$S$1000))+SUMPRODUCT(('Fixed assets'!$Q$2:$Q$1000=Costs!U$617)*('Fixed assets'!$P$2:$P$1000=Costs!$A655)*('Fixed assets'!$U$2:$U$1000=Costs!$A655)*('Fixed assets'!$R$2:$R$1000))","v":0},{"$f":"SUMPRODUCT(('Fixed assets'!$R$2:$R$1000)*('Fixed assets'!$P$2:$P$1000<$A655)*('Fixed assets'!$Q$2:$Q$1000=Costs!V$617))-SUMPRODUCT(('Fixed assets'!$S$2:$S$1000)*('Fixed assets'!$P$2:$P$1000<Costs!$A655)*('Fixed assets'!$Q$2:$Q$1000=Costs!V$617))-SUMPRODUCT(('Fixed assets'!$Q$2:$Q$1000=Costs!V$617)*('Fixed assets'!$U$2:$U$1000=Costs!$A655)*('Fixed assets'!$S$2:$S$1000))+SUMPRODUCT(('Fixed assets'!$Q$2:$Q$1000=Costs!V$617)*('Fixed assets'!$P$2:$P$1000=Costs!$A655)*('Fixed assets'!$U$2:$U$1000=Costs!$A655)*('Fixed assets'!$R$2:$R$1000))","v":0},{"$f":"SUMPRODUCT(('Fixed assets'!$R$2:$R$1000)*('Fixed assets'!$P$2:$P$1000<$A655)*('Fixed assets'!$Q$2:$Q$1000=Costs!W$617))-SUMPRODUCT(('Fixed assets'!$S$2:$S$1000)*('Fixed assets'!$P$2:$P$1000<Costs!$A655)*('Fixed assets'!$Q$2:$Q$1000=Costs!W$617))-SUMPRODUCT(('Fixed assets'!$Q$2:$Q$1000=Costs!W$617)*('Fixed assets'!$U$2:$U$1000=Costs!$A655)*('Fixed assets'!$S$2:$S$1000))+SUMPRODUCT(('Fixed assets'!$Q$2:$Q$1000=Costs!W$617)*('Fixed assets'!$P$2:$P$1000=Costs!$A655)*('Fixed assets'!$U$2:$U$1000=Costs!$A655)*('Fixed assets'!$R$2:$R$1000))","v":0},{"$f":"SUMPRODUCT(('Fixed assets'!$R$2:$R$1000)*('Fixed assets'!$P$2:$P$1000<$A655)*('Fixed assets'!$Q$2:$Q$1000=Costs!X$617))-SUMPRODUCT(('Fixed assets'!$S$2:$S$1000)*('Fixed assets'!$P$2:$P$1000<Costs!$A655)*('Fixed assets'!$Q$2:$Q$1000=Costs!X$617))-SUMPRODUCT(('Fixed assets'!$Q$2:$Q$1000=Costs!X$617)*('Fixed assets'!$U$2:$U$1000=Costs!$A655)*('Fixed assets'!$S$2:$S$1000))+SUMPRODUCT(('Fixed assets'!$Q$2:$Q$1000=Costs!X$617)*('Fixed assets'!$P$2:$P$1000=Costs!$A655)*('Fixed assets'!$U$2:$U$1000=Costs!$A655)*('Fixed assets'!$R$2:$R$1000))","v":0},{"$f":"SUMPRODUCT(('Fixed assets'!$R$2:$R$1000)*('Fixed assets'!$P$2:$P$1000<$A655)*('Fixed assets'!$Q$2:$Q$1000=Costs!Y$617))-SUMPRODUCT(('Fixed assets'!$S$2:$S$1000)*('Fixed assets'!$P$2:$P$1000<Costs!$A655)*('Fixed assets'!$Q$2:$Q$1000=Costs!Y$617))-SUMPRODUCT(('Fixed assets'!$Q$2:$Q$1000=Costs!Y$617)*('Fixed assets'!$U$2:$U$1000=Costs!$A655)*('Fixed assets'!$S$2:$S$1000))+SUMPRODUCT(('Fixed assets'!$Q$2:$Q$1000=Costs!Y$617)*('Fixed assets'!$P$2:$P$1000=Costs!$A655)*('Fixed assets'!$U$2:$U$1000=Costs!$A655)*('Fixed assets'!$R$2:$R$1000))","v":0},{"$f":"SUMPRODUCT(('Fixed assets'!$R$2:$R$1000)*('Fixed assets'!$P$2:$P$1000<$A655)*('Fixed assets'!$Q$2:$Q$1000=Costs!Z$617))-SUMPRODUCT(('Fixed assets'!$S$2:$S$1000)*('Fixed assets'!$P$2:$P$1000<Costs!$A655)*('Fixed assets'!$Q$2:$Q$1000=Costs!Z$617))-SUMPRODUCT(('Fixed assets'!$Q$2:$Q$1000=Costs!Z$617)*('Fixed assets'!$U$2:$U$1000=Costs!$A655)*('Fixed assets'!$S$2:$S$1000))+SUMPRODUCT(('Fixed assets'!$Q$2:$Q$1000=Costs!Z$617)*('Fixed assets'!$P$2:$P$1000=Costs!$A655)*('Fixed assets'!$U$2:$U$1000=Costs!$A655)*('Fixed assets'!$R$2:$R$1000))","v":0},{"$f":"SUMPRODUCT(('Fixed assets'!$R$2:$R$1000)*('Fixed assets'!$P$2:$P$1000<$A655)*('Fixed assets'!$Q$2:$Q$1000=Costs!AA$617))-SUMPRODUCT(('Fixed assets'!$S$2:$S$1000)*('Fixed assets'!$P$2:$P$1000<Costs!$A655)*('Fixed assets'!$Q$2:$Q$1000=Costs!AA$617))-SUMPRODUCT(('Fixed assets'!$Q$2:$Q$1000=Costs!AA$617)*('Fixed assets'!$U$2:$U$1000=Costs!$A655)*('Fixed assets'!$S$2:$S$1000))+SUMPRODUCT(('Fixed assets'!$Q$2:$Q$1000=Costs!AA$617)*('Fixed assets'!$P$2:$P$1000=Costs!$A655)*('Fixed assets'!$U$2:$U$1000=Costs!$A655)*('Fixed assets'!$R$2:$R$1000))","v":0},{"$f":"SUMPRODUCT(('Fixed assets'!$R$2:$R$1000)*('Fixed assets'!$P$2:$P$1000<$A655)*('Fixed assets'!$Q$2:$Q$1000=Costs!AB$617))-SUMPRODUCT(('Fixed assets'!$S$2:$S$1000)*('Fixed assets'!$P$2:$P$1000<Costs!$A655)*('Fixed assets'!$Q$2:$Q$1000=Costs!AB$617))-SUMPRODUCT(('Fixed assets'!$Q$2:$Q$1000=Costs!AB$617)*('Fixed assets'!$U$2:$U$1000=Costs!$A655)*('Fixed assets'!$S$2:$S$1000))+SUMPRODUCT(('Fixed assets'!$Q$2:$Q$1000=Costs!AB$617)*('Fixed assets'!$P$2:$P$1000=Costs!$A655)*('Fixed assets'!$U$2:$U$1000=Costs!$A655)*('Fixed assets'!$R$2:$R$1000))","v":0},{"$f":"SUMPRODUCT(('Fixed assets'!$R$2:$R$1000)*('Fixed assets'!$P$2:$P$1000<$A655)*('Fixed assets'!$Q$2:$Q$1000=Costs!AC$617))-SUMPRODUCT(('Fixed assets'!$S$2:$S$1000)*('Fixed assets'!$P$2:$P$1000<Costs!$A655)*('Fixed assets'!$Q$2:$Q$1000=Costs!AC$617))-SUMPRODUCT(('Fixed assets'!$Q$2:$Q$1000=Costs!AC$617)*('Fixed assets'!$U$2:$U$1000=Costs!$A655)*('Fixed assets'!$S$2:$S$1000))+SUMPRODUCT(('Fixed assets'!$Q$2:$Q$1000=Costs!AC$617)*('Fixed assets'!$P$2:$P$1000=Costs!$A655)*('Fixed assets'!$U$2:$U$1000=Costs!$A655)*('Fixed assets'!$R$2:$R$1000))","v":0},{"$f":"SUMPRODUCT(('Fixed assets'!$R$2:$R$1000)*('Fixed assets'!$P$2:$P$1000<$A655)*('Fixed assets'!$Q$2:$Q$1000=Costs!AD$617))-SUMPRODUCT(('Fixed assets'!$S$2:$S$1000)*('Fixed assets'!$P$2:$P$1000<Costs!$A655)*('Fixed assets'!$Q$2:$Q$1000=Costs!AD$617))-SUMPRODUCT(('Fixed assets'!$Q$2:$Q$1000=Costs!AD$617)*('Fixed assets'!$U$2:$U$1000=Costs!$A655)*('Fixed assets'!$S$2:$S$1000))+SUMPRODUCT(('Fixed assets'!$Q$2:$Q$1000=Costs!AD$617)*('Fixed assets'!$P$2:$P$1000=Costs!$A655)*('Fixed assets'!$U$2:$U$1000=Costs!$A655)*('Fixed assets'!$R$2:$R$1000))","v":0},{"$f":"SUMPRODUCT(('Fixed assets'!$R$2:$R$1000)*('Fixed assets'!$P$2:$P$1000<$A655)*('Fixed assets'!$Q$2:$Q$1000=Costs!AE$617))-SUMPRODUCT(('Fixed assets'!$S$2:$S$1000)*('Fixed assets'!$P$2:$P$1000<Costs!$A655)*('Fixed assets'!$Q$2:$Q$1000=Costs!AE$617))-SUMPRODUCT(('Fixed assets'!$Q$2:$Q$1000=Costs!AE$617)*('Fixed assets'!$U$2:$U$1000=Costs!$A655)*('Fixed assets'!$S$2:$S$1000))+SUMPRODUCT(('Fixed assets'!$Q$2:$Q$1000=Costs!AE$617)*('Fixed assets'!$P$2:$P$1000=Costs!$A655)*('Fixed assets'!$U$2:$U$1000=Costs!$A655)*('Fixed assets'!$R$2:$R$1000))","v":0},{"$f":"SUMPRODUCT(('Fixed assets'!$R$2:$R$1000)*('Fixed assets'!$P$2:$P$1000<$A655)*('Fixed assets'!$Q$2:$Q$1000=Costs!AF$617))-SUMPRODUCT(('Fixed assets'!$S$2:$S$1000)*('Fixed assets'!$P$2:$P$1000<Costs!$A655)*('Fixed assets'!$Q$2:$Q$1000=Costs!AF$617))-SUMPRODUCT(('Fixed assets'!$Q$2:$Q$1000=Costs!AF$617)*('Fixed assets'!$U$2:$U$1000=Costs!$A655)*('Fixed assets'!$S$2:$S$1000))+SUMPRODUCT(('Fixed assets'!$Q$2:$Q$1000=Costs!AF$617)*('Fixed assets'!$P$2:$P$1000=Costs!$A655)*('Fixed assets'!$U$2:$U$1000=Costs!$A655)*('Fixed assets'!$R$2:$R$1000))","v":0},{"$f":"SUMPRODUCT(('Fixed assets'!$R$2:$R$1000)*('Fixed assets'!$P$2:$P$1000<$A655)*('Fixed assets'!$Q$2:$Q$1000=Costs!AG$617))-SUMPRODUCT(('Fixed assets'!$S$2:$S$1000)*('Fixed assets'!$P$2:$P$1000<Costs!$A655)*('Fixed assets'!$Q$2:$Q$1000=Costs!AG$617))-SUMPRODUCT(('Fixed assets'!$Q$2:$Q$1000=Costs!AG$617)*('Fixed assets'!$U$2:$U$1000=Costs!$A655)*('Fixed assets'!$S$2:$S$1000))+SUMPRODUCT(('Fixed assets'!$Q$2:$Q$1000=Costs!AG$617)*('Fixed assets'!$P$2:$P$1000=Costs!$A655)*('Fixed assets'!$U$2:$U$1000=Costs!$A655)*('Fixed assets'!$R$2:$R$1000))","v":0},{"$f":"SUMPRODUCT(('Fixed assets'!$R$2:$R$1000)*('Fixed assets'!$P$2:$P$1000<$A655)*('Fixed assets'!$Q$2:$Q$1000=Costs!AH$617))-SUMPRODUCT(('Fixed assets'!$S$2:$S$1000)*('Fixed assets'!$P$2:$P$1000<Costs!$A655)*('Fixed assets'!$Q$2:$Q$1000=Costs!AH$617))-SUMPRODUCT(('Fixed assets'!$Q$2:$Q$1000=Costs!AH$617)*('Fixed assets'!$U$2:$U$1000=Costs!$A655)*('Fixed assets'!$S$2:$S$1000))+SUMPRODUCT(('Fixed assets'!$Q$2:$Q$1000=Costs!AH$617)*('Fixed assets'!$P$2:$P$1000=Costs!$A655)*('Fixed assets'!$U$2:$U$1000=Costs!$A655)*('Fixed assets'!$R$2:$R$1000))","v":0},{"$f":"SUMPRODUCT(('Fixed assets'!$R$2:$R$1000)*('Fixed assets'!$P$2:$P$1000<$A655)*('Fixed assets'!$Q$2:$Q$1000=Costs!AI$617))-SUMPRODUCT(('Fixed assets'!$S$2:$S$1000)*('Fixed assets'!$P$2:$P$1000<Costs!$A655)*('Fixed assets'!$Q$2:$Q$1000=Costs!AI$617))-SUMPRODUCT(('Fixed assets'!$Q$2:$Q$1000=Costs!AI$617)*('Fixed assets'!$U$2:$U$1000=Costs!$A655)*('Fixed assets'!$S$2:$S$1000))+SUMPRODUCT(('Fixed assets'!$Q$2:$Q$1000=Costs!AI$617)*('Fixed assets'!$P$2:$P$1000=Costs!$A655)*('Fixed assets'!$U$2:$U$1000=Costs!$A655)*('Fixed assets'!$R$2:$R$1000))","v":0},{"$f":"SUMPRODUCT(('Fixed assets'!$R$2:$R$1000)*('Fixed assets'!$P$2:$P$1000<$A655)*('Fixed assets'!$Q$2:$Q$1000=Costs!AJ$617))-SUMPRODUCT(('Fixed assets'!$S$2:$S$1000)*('Fixed assets'!$P$2:$P$1000<Costs!$A655)*('Fixed assets'!$Q$2:$Q$1000=Costs!AJ$617))-SUMPRODUCT(('Fixed assets'!$Q$2:$Q$1000=Costs!AJ$617)*('Fixed assets'!$U$2:$U$1000=Costs!$A655)*('Fixed assets'!$S$2:$S$1000))+SUMPRODUCT(('Fixed assets'!$Q$2:$Q$1000=Costs!AJ$617)*('Fixed assets'!$P$2:$P$1000=Costs!$A655)*('Fixed assets'!$U$2:$U$1000=Costs!$A655)*('Fixed assets'!$R$2:$R$1000))","v":0},{"$f":"SUMPRODUCT(('Fixed assets'!$R$2:$R$1000)*('Fixed assets'!$P$2:$P$1000<$A655)*('Fixed assets'!$Q$2:$Q$1000=Costs!AK$617))-SUMPRODUCT(('Fixed assets'!$S$2:$S$1000)*('Fixed assets'!$P$2:$P$1000<Costs!$A655)*('Fixed assets'!$Q$2:$Q$1000=Costs!AK$617))-SUMPRODUCT(('Fixed assets'!$Q$2:$Q$1000=Costs!AK$617)*('Fixed assets'!$U$2:$U$1000=Costs!$A655)*('Fixed assets'!$S$2:$S$1000))+SUMPRODUCT(('Fixed assets'!$Q$2:$Q$1000=Costs!AK$617)*('Fixed assets'!$P$2:$P$1000=Costs!$A655)*('Fixed assets'!$U$2:$U$1000=Costs!$A655)*('Fixed assets'!$R$2:$R$1000))","v":0},{"$f":"SUMPRODUCT(('Fixed assets'!$R$2:$R$1000)*('Fixed assets'!$P$2:$P$1000<$A655)*('Fixed assets'!$Q$2:$Q$1000=Costs!AL$617))-SUMPRODUCT(('Fixed assets'!$S$2:$S$1000)*('Fixed assets'!$P$2:$P$1000<Costs!$A655)*('Fixed assets'!$Q$2:$Q$1000=Costs!AL$617))-SUMPRODUCT(('Fixed assets'!$Q$2:$Q$1000=Costs!AL$617)*('Fixed assets'!$U$2:$U$1000=Costs!$A655)*('Fixed assets'!$S$2:$S$1000))+SUMPRODUCT(('Fixed assets'!$Q$2:$Q$1000=Costs!AL$617)*('Fixed assets'!$P$2:$P$1000=Costs!$A655)*('Fixed assets'!$U$2:$U$1000=Costs!$A655)*('Fixed assets'!$R$2:$R$1000))","v":0},{"$f":"SUMPRODUCT(('Fixed assets'!$R$2:$R$1000)*('Fixed assets'!$P$2:$P$1000<$A655)*('Fixed assets'!$Q$2:$Q$1000=Costs!AM$617))-SUMPRODUCT(('Fixed assets'!$S$2:$S$1000)*('Fixed assets'!$P$2:$P$1000<Costs!$A655)*('Fixed assets'!$Q$2:$Q$1000=Costs!AM$617))-SUMPRODUCT(('Fixed assets'!$Q$2:$Q$1000=Costs!AM$617)*('Fixed assets'!$U$2:$U$1000=Costs!$A655)*('Fixed assets'!$S$2:$S$1000))+SUMPRODUCT(('Fixed assets'!$Q$2:$Q$1000=Costs!AM$617)*('Fixed assets'!$P$2:$P$1000=Costs!$A655)*('Fixed assets'!$U$2:$U$1000=Costs!$A655)*('Fixed assets'!$R$2:$R$1000))","v":0},{"$f":"SUMPRODUCT(('Fixed assets'!$R$2:$R$1000)*('Fixed assets'!$P$2:$P$1000<$A655)*('Fixed assets'!$Q$2:$Q$1000=Costs!AN$617))-SUMPRODUCT(('Fixed assets'!$S$2:$S$1000)*('Fixed assets'!$P$2:$P$1000<Costs!$A655)*('Fixed assets'!$Q$2:$Q$1000=Costs!AN$617))-SUMPRODUCT(('Fixed assets'!$Q$2:$Q$1000=Costs!AN$617)*('Fixed assets'!$U$2:$U$1000=Costs!$A655)*('Fixed assets'!$S$2:$S$1000))+SUMPRODUCT(('Fixed assets'!$Q$2:$Q$1000=Costs!AN$617)*('Fixed assets'!$P$2:$P$1000=Costs!$A655)*('Fixed assets'!$U$2:$U$1000=Costs!$A655)*('Fixed assets'!$R$2:$R$1000))","v":0},{"$f":"SUMPRODUCT(('Fixed assets'!$R$2:$R$1000)*('Fixed assets'!$P$2:$P$1000<$A655)*('Fixed assets'!$Q$2:$Q$1000=Costs!AO$617))-SUMPRODUCT(('Fixed assets'!$S$2:$S$1000)*('Fixed assets'!$P$2:$P$1000<Costs!$A655)*('Fixed assets'!$Q$2:$Q$1000=Costs!AO$617))-SUMPRODUCT(('Fixed assets'!$Q$2:$Q$1000=Costs!AO$617)*('Fixed assets'!$U$2:$U$1000=Costs!$A655)*('Fixed assets'!$S$2:$S$1000))+SUMPRODUCT(('Fixed assets'!$Q$2:$Q$1000=Costs!AO$617)*('Fixed assets'!$P$2:$P$1000=Costs!$A655)*('Fixed assets'!$U$2:$U$1000=Costs!$A655)*('Fixed assets'!$R$2:$R$1000))","v":0},{"$f":"SUMPRODUCT(('Fixed assets'!$R$2:$R$1000)*('Fixed assets'!$P$2:$P$1000<$A655)*('Fixed assets'!$Q$2:$Q$1000=Costs!AP$617))-SUMPRODUCT(('Fixed assets'!$S$2:$S$1000)*('Fixed assets'!$P$2:$P$1000<Costs!$A655)*('Fixed assets'!$Q$2:$Q$1000=Costs!AP$617))-SUMPRODUCT(('Fixed assets'!$Q$2:$Q$1000=Costs!AP$617)*('Fixed assets'!$U$2:$U$1000=Costs!$A655)*('Fixed assets'!$S$2:$S$1000))+SUMPRODUCT(('Fixed assets'!$Q$2:$Q$1000=Costs!AP$617)*('Fixed assets'!$P$2:$P$1000=Costs!$A655)*('Fixed assets'!$U$2:$U$1000=Costs!$A655)*('Fixed assets'!$R$2:$R$1000))","v":0},{"$f":"SUMPRODUCT(('Fixed assets'!$R$2:$R$1000)*('Fixed assets'!$P$2:$P$1000<$A655)*('Fixed assets'!$Q$2:$Q$1000=Costs!AQ$617))-SUMPRODUCT(('Fixed assets'!$S$2:$S$1000)*('Fixed assets'!$P$2:$P$1000<Costs!$A655)*('Fixed assets'!$Q$2:$Q$1000=Costs!AQ$617))-SUMPRODUCT(('Fixed assets'!$Q$2:$Q$1000=Costs!AQ$617)*('Fixed assets'!$U$2:$U$1000=Costs!$A655)*('Fixed assets'!$S$2:$S$1000))+SUMPRODUCT(('Fixed assets'!$Q$2:$Q$1000=Costs!AQ$617)*('Fixed assets'!$P$2:$P$1000=Costs!$A655)*('Fixed assets'!$U$2:$U$1000=Costs!$A655)*('Fixed assets'!$R$2:$R$1000))","v":0}]
[2053,0,{"$f":"SUMPRODUCT(('Fixed assets'!$R$2:$R$1000)*('Fixed assets'!$P$2:$P$1000<$A656)*('Fixed assets'!$Q$2:$Q$1000=Costs!C$617))-SUMPRODUCT(('Fixed assets'!$S$2:$S$1000)*('Fixed assets'!$P$2:$P$1000<Costs!$A656)*('Fixed assets'!$Q$2:$Q$1000=Costs!C$617))-SUMPRODUCT(('Fixed assets'!$Q$2:$Q$1000=Costs!C$617)*('Fixed assets'!$U$2:$U$1000=Costs!$A656)*('Fixed assets'!$S$2:$S$1000))+SUMPRODUCT(('Fixed assets'!$Q$2:$Q$1000=Costs!C$617)*('Fixed assets'!$P$2:$P$1000=Costs!$A656)*('Fixed assets'!$U$2:$U$1000=Costs!$A656)*('Fixed assets'!$R$2:$R$1000))","v":0},{"$f":"SUMPRODUCT(('Fixed assets'!$R$2:$R$1000)*('Fixed assets'!$P$2:$P$1000<$A656)*('Fixed assets'!$Q$2:$Q$1000=Costs!D$617))-SUMPRODUCT(('Fixed assets'!$S$2:$S$1000)*('Fixed assets'!$P$2:$P$1000<Costs!$A656)*('Fixed assets'!$Q$2:$Q$1000=Costs!D$617))-SUMPRODUCT(('Fixed assets'!$Q$2:$Q$1000=Costs!D$617)*('Fixed assets'!$U$2:$U$1000=Costs!$A656)*('Fixed assets'!$S$2:$S$1000))+SUMPRODUCT(('Fixed assets'!$Q$2:$Q$1000=Costs!D$617)*('Fixed assets'!$P$2:$P$1000=Costs!$A656)*('Fixed assets'!$U$2:$U$1000=Costs!$A656)*('Fixed assets'!$R$2:$R$1000))","v":0},{"$f":"SUMPRODUCT(('Fixed assets'!$R$2:$R$1000)*('Fixed assets'!$P$2:$P$1000<$A656)*('Fixed assets'!$Q$2:$Q$1000=Costs!E$617))-SUMPRODUCT(('Fixed assets'!$S$2:$S$1000)*('Fixed assets'!$P$2:$P$1000<Costs!$A656)*('Fixed assets'!$Q$2:$Q$1000=Costs!E$617))-SUMPRODUCT(('Fixed assets'!$Q$2:$Q$1000=Costs!E$617)*('Fixed assets'!$U$2:$U$1000=Costs!$A656)*('Fixed assets'!$S$2:$S$1000))+SUMPRODUCT(('Fixed assets'!$Q$2:$Q$1000=Costs!E$617)*('Fixed assets'!$P$2:$P$1000=Costs!$A656)*('Fixed assets'!$U$2:$U$1000=Costs!$A656)*('Fixed assets'!$R$2:$R$1000))","v":0},{"$f":"SUMPRODUCT(('Fixed assets'!$R$2:$R$1000)*('Fixed assets'!$P$2:$P$1000<$A656)*('Fixed assets'!$Q$2:$Q$1000=Costs!F$617))-SUMPRODUCT(('Fixed assets'!$S$2:$S$1000)*('Fixed assets'!$P$2:$P$1000<Costs!$A656)*('Fixed assets'!$Q$2:$Q$1000=Costs!F$617))-SUMPRODUCT(('Fixed assets'!$Q$2:$Q$1000=Costs!F$617)*('Fixed assets'!$U$2:$U$1000=Costs!$A656)*('Fixed assets'!$S$2:$S$1000))+SUMPRODUCT(('Fixed assets'!$Q$2:$Q$1000=Costs!F$617)*('Fixed assets'!$P$2:$P$1000=Costs!$A656)*('Fixed assets'!$U$2:$U$1000=Costs!$A656)*('Fixed assets'!$R$2:$R$1000))","v":0},{"$f":"SUMPRODUCT(('Fixed assets'!$R$2:$R$1000)*('Fixed assets'!$P$2:$P$1000<$A656)*('Fixed assets'!$Q$2:$Q$1000=Costs!G$617))-SUMPRODUCT(('Fixed assets'!$S$2:$S$1000)*('Fixed assets'!$P$2:$P$1000<Costs!$A656)*('Fixed assets'!$Q$2:$Q$1000=Costs!G$617))-SUMPRODUCT(('Fixed assets'!$Q$2:$Q$1000=Costs!G$617)*('Fixed assets'!$U$2:$U$1000=Costs!$A656)*('Fixed assets'!$S$2:$S$1000))+SUMPRODUCT(('Fixed assets'!$Q$2:$Q$1000=Costs!G$617)*('Fixed assets'!$P$2:$P$1000=Costs!$A656)*('Fixed assets'!$U$2:$U$1000=Costs!$A656)*('Fixed assets'!$R$2:$R$1000))","v":0},{"$f":"SUMPRODUCT(('Fixed assets'!$R$2:$R$1000)*('Fixed assets'!$P$2:$P$1000<$A656)*('Fixed assets'!$Q$2:$Q$1000=Costs!H$617))-SUMPRODUCT(('Fixed assets'!$S$2:$S$1000)*('Fixed assets'!$P$2:$P$1000<Costs!$A656)*('Fixed assets'!$Q$2:$Q$1000=Costs!H$617))-SUMPRODUCT(('Fixed assets'!$Q$2:$Q$1000=Costs!H$617)*('Fixed assets'!$U$2:$U$1000=Costs!$A656)*('Fixed assets'!$S$2:$S$1000))+SUMPRODUCT(('Fixed assets'!$Q$2:$Q$1000=Costs!H$617)*('Fixed assets'!$P$2:$P$1000=Costs!$A656)*('Fixed assets'!$U$2:$U$1000=Costs!$A656)*('Fixed assets'!$R$2:$R$1000))","v":0},{"$f":"SUMPRODUCT(('Fixed assets'!$R$2:$R$1000)*('Fixed assets'!$P$2:$P$1000<$A656)*('Fixed assets'!$Q$2:$Q$1000=Costs!I$617))-SUMPRODUCT(('Fixed assets'!$S$2:$S$1000)*('Fixed assets'!$P$2:$P$1000<Costs!$A656)*('Fixed assets'!$Q$2:$Q$1000=Costs!I$617))-SUMPRODUCT(('Fixed assets'!$Q$2:$Q$1000=Costs!I$617)*('Fixed assets'!$U$2:$U$1000=Costs!$A656)*('Fixed assets'!$S$2:$S$1000))+SUMPRODUCT(('Fixed assets'!$Q$2:$Q$1000=Costs!I$617)*('Fixed assets'!$P$2:$P$1000=Costs!$A656)*('Fixed assets'!$U$2:$U$1000=Costs!$A656)*('Fixed assets'!$R$2:$R$1000))","v":0},{"$f":"SUMPRODUCT(('Fixed assets'!$R$2:$R$1000)*('Fixed assets'!$P$2:$P$1000<$A656)*('Fixed assets'!$Q$2:$Q$1000=Costs!J$617))-SUMPRODUCT(('Fixed assets'!$S$2:$S$1000)*('Fixed assets'!$P$2:$P$1000<Costs!$A656)*('Fixed assets'!$Q$2:$Q$1000=Costs!J$617))-SUMPRODUCT(('Fixed assets'!$Q$2:$Q$1000=Costs!J$617)*('Fixed assets'!$U$2:$U$1000=Costs!$A656)*('Fixed assets'!$S$2:$S$1000))+SUMPRODUCT(('Fixed assets'!$Q$2:$Q$1000=Costs!J$617)*('Fixed assets'!$P$2:$P$1000=Costs!$A656)*('Fixed assets'!$U$2:$U$1000=Costs!$A656)*('Fixed assets'!$R$2:$R$1000))","v":0},{"$f":"SUMPRODUCT(('Fixed assets'!$R$2:$R$1000)*('Fixed assets'!$P$2:$P$1000<$A656)*('Fixed assets'!$Q$2:$Q$1000=Costs!K$617))-SUMPRODUCT(('Fixed assets'!$S$2:$S$1000)*('Fixed assets'!$P$2:$P$1000<Costs!$A656)*('Fixed assets'!$Q$2:$Q$1000=Costs!K$617))-SUMPRODUCT(('Fixed assets'!$Q$2:$Q$1000=Costs!K$617)*('Fixed assets'!$U$2:$U$1000=Costs!$A656)*('Fixed assets'!$S$2:$S$1000))+SUMPRODUCT(('Fixed assets'!$Q$2:$Q$1000=Costs!K$617)*('Fixed assets'!$P$2:$P$1000=Costs!$A656)*('Fixed assets'!$U$2:$U$1000=Costs!$A656)*('Fixed assets'!$R$2:$R$1000))","v":0},{"$f":"SUMPRODUCT(('Fixed assets'!$R$2:$R$1000)*('Fixed assets'!$P$2:$P$1000<$A656)*('Fixed assets'!$Q$2:$Q$1000=Costs!L$617))-SUMPRODUCT(('Fixed assets'!$S$2:$S$1000)*('Fixed assets'!$P$2:$P$1000<Costs!$A656)*('Fixed assets'!$Q$2:$Q$1000=Costs!L$617))-SUMPRODUCT(('Fixed assets'!$Q$2:$Q$1000=Costs!L$617)*('Fixed assets'!$U$2:$U$1000=Costs!$A656)*('Fixed assets'!$S$2:$S$1000))+SUMPRODUCT(('Fixed assets'!$Q$2:$Q$1000=Costs!L$617)*('Fixed assets'!$P$2:$P$1000=Costs!$A656)*('Fixed assets'!$U$2:$U$1000=Costs!$A656)*('Fixed assets'!$R$2:$R$1000))","v":0},{"$f":"SUMPRODUCT(('Fixed assets'!$R$2:$R$1000)*('Fixed assets'!$P$2:$P$1000<$A656)*('Fixed assets'!$Q$2:$Q$1000=Costs!M$617))-SUMPRODUCT(('Fixed assets'!$S$2:$S$1000)*('Fixed assets'!$P$2:$P$1000<Costs!$A656)*('Fixed assets'!$Q$2:$Q$1000=Costs!M$617))-SUMPRODUCT(('Fixed assets'!$Q$2:$Q$1000=Costs!M$617)*('Fixed assets'!$U$2:$U$1000=Costs!$A656)*('Fixed assets'!$S$2:$S$1000))+SUMPRODUCT(('Fixed assets'!$Q$2:$Q$1000=Costs!M$617)*('Fixed assets'!$P$2:$P$1000=Costs!$A656)*('Fixed assets'!$U$2:$U$1000=Costs!$A656)*('Fixed assets'!$R$2:$R$1000))","v":0},{"$f":"SUMPRODUCT(('Fixed assets'!$R$2:$R$1000)*('Fixed assets'!$P$2:$P$1000<$A656)*('Fixed assets'!$Q$2:$Q$1000=Costs!N$617))-SUMPRODUCT(('Fixed assets'!$S$2:$S$1000)*('Fixed assets'!$P$2:$P$1000<Costs!$A656)*('Fixed assets'!$Q$2:$Q$1000=Costs!N$617))-SUMPRODUCT(('Fixed assets'!$Q$2:$Q$1000=Costs!N$617)*('Fixed assets'!$U$2:$U$1000=Costs!$A656)*('Fixed assets'!$S$2:$S$1000))+SUMPRODUCT(('Fixed assets'!$Q$2:$Q$1000=Costs!N$617)*('Fixed assets'!$P$2:$P$1000=Costs!$A656)*('Fixed assets'!$U$2:$U$1000=Costs!$A656)*('Fixed assets'!$R$2:$R$1000))","v":0},{"$f":"SUMPRODUCT(('Fixed assets'!$R$2:$R$1000)*('Fixed assets'!$P$2:$P$1000<$A656)*('Fixed assets'!$Q$2:$Q$1000=Costs!O$617))-SUMPRODUCT(('Fixed assets'!$S$2:$S$1000)*('Fixed assets'!$P$2:$P$1000<Costs!$A656)*('Fixed assets'!$Q$2:$Q$1000=Costs!O$617))-SUMPRODUCT(('Fixed assets'!$Q$2:$Q$1000=Costs!O$617)*('Fixed assets'!$U$2:$U$1000=Costs!$A656)*('Fixed assets'!$S$2:$S$1000))+SUMPRODUCT(('Fixed assets'!$Q$2:$Q$1000=Costs!O$617)*('Fixed assets'!$P$2:$P$1000=Costs!$A656)*('Fixed assets'!$U$2:$U$1000=Costs!$A656)*('Fixed assets'!$R$2:$R$1000))","v":0},{"$f":"SUMPRODUCT(('Fixed assets'!$R$2:$R$1000)*('Fixed assets'!$P$2:$P$1000<$A656)*('Fixed assets'!$Q$2:$Q$1000=Costs!P$617))-SUMPRODUCT(('Fixed assets'!$S$2:$S$1000)*('Fixed assets'!$P$2:$P$1000<Costs!$A656)*('Fixed assets'!$Q$2:$Q$1000=Costs!P$617))-SUMPRODUCT(('Fixed assets'!$Q$2:$Q$1000=Costs!P$617)*('Fixed assets'!$U$2:$U$1000=Costs!$A656)*('Fixed assets'!$S$2:$S$1000))+SUMPRODUCT(('Fixed assets'!$Q$2:$Q$1000=Costs!P$617)*('Fixed assets'!$P$2:$P$1000=Costs!$A656)*('Fixed assets'!$U$2:$U$1000=Costs!$A656)*('Fixed assets'!$R$2:$R$1000))","v":0},{"$f":"SUMPRODUCT(('Fixed assets'!$R$2:$R$1000)*('Fixed assets'!$P$2:$P$1000<$A656)*('Fixed assets'!$Q$2:$Q$1000=Costs!Q$617))-SUMPRODUCT(('Fixed assets'!$S$2:$S$1000)*('Fixed assets'!$P$2:$P$1000<Costs!$A656)*('Fixed assets'!$Q$2:$Q$1000=Costs!Q$617))-SUMPRODUCT(('Fixed assets'!$Q$2:$Q$1000=Costs!Q$617)*('Fixed assets'!$U$2:$U$1000=Costs!$A656)*('Fixed assets'!$S$2:$S$1000))+SUMPRODUCT(('Fixed assets'!$Q$2:$Q$1000=Costs!Q$617)*('Fixed assets'!$P$2:$P$1000=Costs!$A656)*('Fixed assets'!$U$2:$U$1000=Costs!$A656)*('Fixed assets'!$R$2:$R$1000))","v":0},{"$f":"SUMPRODUCT(('Fixed assets'!$R$2:$R$1000)*('Fixed assets'!$P$2:$P$1000<$A656)*('Fixed assets'!$Q$2:$Q$1000=Costs!R$617))-SUMPRODUCT(('Fixed assets'!$S$2:$S$1000)*('Fixed assets'!$P$2:$P$1000<Costs!$A656)*('Fixed assets'!$Q$2:$Q$1000=Costs!R$617))-SUMPRODUCT(('Fixed assets'!$Q$2:$Q$1000=Costs!R$617)*('Fixed assets'!$U$2:$U$1000=Costs!$A656)*('Fixed assets'!$S$2:$S$1000))+SUMPRODUCT(('Fixed assets'!$Q$2:$Q$1000=Costs!R$617)*('Fixed assets'!$P$2:$P$1000=Costs!$A656)*('Fixed assets'!$U$2:$U$1000=Costs!$A656)*('Fixed assets'!$R$2:$R$1000))","v":0},{"$f":"SUMPRODUCT(('Fixed assets'!$R$2:$R$1000)*('Fixed assets'!$P$2:$P$1000<$A656)*('Fixed assets'!$Q$2:$Q$1000=Costs!S$617))-SUMPRODUCT(('Fixed assets'!$S$2:$S$1000)*('Fixed assets'!$P$2:$P$1000<Costs!$A656)*('Fixed assets'!$Q$2:$Q$1000=Costs!S$617))-SUMPRODUCT(('Fixed assets'!$Q$2:$Q$1000=Costs!S$617)*('Fixed assets'!$U$2:$U$1000=Costs!$A656)*('Fixed assets'!$S$2:$S$1000))+SUMPRODUCT(('Fixed assets'!$Q$2:$Q$1000=Costs!S$617)*('Fixed assets'!$P$2:$P$1000=Costs!$A656)*('Fixed assets'!$U$2:$U$1000=Costs!$A656)*('Fixed assets'!$R$2:$R$1000))","v":0},{"$f":"SUMPRODUCT(('Fixed assets'!$R$2:$R$1000)*('Fixed assets'!$P$2:$P$1000<$A656)*('Fixed assets'!$Q$2:$Q$1000=Costs!T$617))-SUMPRODUCT(('Fixed assets'!$S$2:$S$1000)*('Fixed assets'!$P$2:$P$1000<Costs!$A656)*('Fixed assets'!$Q$2:$Q$1000=Costs!T$617))-SUMPRODUCT(('Fixed assets'!$Q$2:$Q$1000=Costs!T$617)*('Fixed assets'!$U$2:$U$1000=Costs!$A656)*('Fixed assets'!$S$2:$S$1000))+SUMPRODUCT(('Fixed assets'!$Q$2:$Q$1000=Costs!T$617)*('Fixed assets'!$P$2:$P$1000=Costs!$A656)*('Fixed assets'!$U$2:$U$1000=Costs!$A656)*('Fixed assets'!$R$2:$R$1000))","v":0},{"$f":"SUMPRODUCT(('Fixed assets'!$R$2:$R$1000)*('Fixed assets'!$P$2:$P$1000<$A656)*('Fixed assets'!$Q$2:$Q$1000=Costs!U$617))-SUMPRODUCT(('Fixed assets'!$S$2:$S$1000)*('Fixed assets'!$P$2:$P$1000<Costs!$A656)*('Fixed assets'!$Q$2:$Q$1000=Costs!U$617))-SUMPRODUCT(('Fixed assets'!$Q$2:$Q$1000=Costs!U$617)*('Fixed assets'!$U$2:$U$1000=Costs!$A656)*('Fixed assets'!$S$2:$S$1000))+SUMPRODUCT(('Fixed assets'!$Q$2:$Q$1000=Costs!U$617)*('Fixed assets'!$P$2:$P$1000=Costs!$A656)*('Fixed assets'!$U$2:$U$1000=Costs!$A656)*('Fixed assets'!$R$2:$R$1000))","v":0},{"$f":"SUMPRODUCT(('Fixed assets'!$R$2:$R$1000)*('Fixed assets'!$P$2:$P$1000<$A656)*('Fixed assets'!$Q$2:$Q$1000=Costs!V$617))-SUMPRODUCT(('Fixed assets'!$S$2:$S$1000)*('Fixed assets'!$P$2:$P$1000<Costs!$A656)*('Fixed assets'!$Q$2:$Q$1000=Costs!V$617))-SUMPRODUCT(('Fixed assets'!$Q$2:$Q$1000=Costs!V$617)*('Fixed assets'!$U$2:$U$1000=Costs!$A656)*('Fixed assets'!$S$2:$S$1000))+SUMPRODUCT(('Fixed assets'!$Q$2:$Q$1000=Costs!V$617)*('Fixed assets'!$P$2:$P$1000=Costs!$A656)*('Fixed assets'!$U$2:$U$1000=Costs!$A656)*('Fixed assets'!$R$2:$R$1000))","v":0},{"$f":"SUMPRODUCT(('Fixed assets'!$R$2:$R$1000)*('Fixed assets'!$P$2:$P$1000<$A656)*('Fixed assets'!$Q$2:$Q$1000=Costs!W$617))-SUMPRODUCT(('Fixed assets'!$S$2:$S$1000)*('Fixed assets'!$P$2:$P$1000<Costs!$A656)*('Fixed assets'!$Q$2:$Q$1000=Costs!W$617))-SUMPRODUCT(('Fixed assets'!$Q$2:$Q$1000=Costs!W$617)*('Fixed assets'!$U$2:$U$1000=Costs!$A656)*('Fixed assets'!$S$2:$S$1000))+SUMPRODUCT(('Fixed assets'!$Q$2:$Q$1000=Costs!W$617)*('Fixed assets'!$P$2:$P$1000=Costs!$A656)*('Fixed assets'!$U$2:$U$1000=Costs!$A656)*('Fixed assets'!$R$2:$R$1000))","v":0},{"$f":"SUMPRODUCT(('Fixed assets'!$R$2:$R$1000)*('Fixed assets'!$P$2:$P$1000<$A656)*('Fixed assets'!$Q$2:$Q$1000=Costs!X$617))-SUMPRODUCT(('Fixed assets'!$S$2:$S$1000)*('Fixed assets'!$P$2:$P$1000<Costs!$A656)*('Fixed assets'!$Q$2:$Q$1000=Costs!X$617))-SUMPRODUCT(('Fixed assets'!$Q$2:$Q$1000=Costs!X$617)*('Fixed assets'!$U$2:$U$1000=Costs!$A656)*('Fixed assets'!$S$2:$S$1000))+SUMPRODUCT(('Fixed assets'!$Q$2:$Q$1000=Costs!X$617)*('Fixed assets'!$P$2:$P$1000=Costs!$A656)*('Fixed assets'!$U$2:$U$1000=Costs!$A656)*('Fixed assets'!$R$2:$R$1000))","v":0},{"$f":"SUMPRODUCT(('Fixed assets'!$R$2:$R$1000)*('Fixed assets'!$P$2:$P$1000<$A656)*('Fixed assets'!$Q$2:$Q$1000=Costs!Y$617))-SUMPRODUCT(('Fixed assets'!$S$2:$S$1000)*('Fixed assets'!$P$2:$P$1000<Costs!$A656)*('Fixed assets'!$Q$2:$Q$1000=Costs!Y$617))-SUMPRODUCT(('Fixed assets'!$Q$2:$Q$1000=Costs!Y$617)*('Fixed assets'!$U$2:$U$1000=Costs!$A656)*('Fixed assets'!$S$2:$S$1000))+SUMPRODUCT(('Fixed assets'!$Q$2:$Q$1000=Costs!Y$617)*('Fixed assets'!$P$2:$P$1000=Costs!$A656)*('Fixed assets'!$U$2:$U$1000=Costs!$A656)*('Fixed assets'!$R$2:$R$1000))","v":0},{"$f":"SUMPRODUCT(('Fixed assets'!$R$2:$R$1000)*('Fixed assets'!$P$2:$P$1000<$A656)*('Fixed assets'!$Q$2:$Q$1000=Costs!Z$617))-SUMPRODUCT(('Fixed assets'!$S$2:$S$1000)*('Fixed assets'!$P$2:$P$1000<Costs!$A656)*('Fixed assets'!$Q$2:$Q$1000=Costs!Z$617))-SUMPRODUCT(('Fixed assets'!$Q$2:$Q$1000=Costs!Z$617)*('Fixed assets'!$U$2:$U$1000=Costs!$A656)*('Fixed assets'!$S$2:$S$1000))+SUMPRODUCT(('Fixed assets'!$Q$2:$Q$1000=Costs!Z$617)*('Fixed assets'!$P$2:$P$1000=Costs!$A656)*('Fixed assets'!$U$2:$U$1000=Costs!$A656)*('Fixed assets'!$R$2:$R$1000))","v":0},{"$f":"SUMPRODUCT(('Fixed assets'!$R$2:$R$1000)*('Fixed assets'!$P$2:$P$1000<$A656)*('Fixed assets'!$Q$2:$Q$1000=Costs!AA$617))-SUMPRODUCT(('Fixed assets'!$S$2:$S$1000)*('Fixed assets'!$P$2:$P$1000<Costs!$A656)*('Fixed assets'!$Q$2:$Q$1000=Costs!AA$617))-SUMPRODUCT(('Fixed assets'!$Q$2:$Q$1000=Costs!AA$617)*('Fixed assets'!$U$2:$U$1000=Costs!$A656)*('Fixed assets'!$S$2:$S$1000))+SUMPRODUCT(('Fixed assets'!$Q$2:$Q$1000=Costs!AA$617)*('Fixed assets'!$P$2:$P$1000=Costs!$A656)*('Fixed assets'!$U$2:$U$1000=Costs!$A656)*('Fixed assets'!$R$2:$R$1000))","v":0},{"$f":"SUMPRODUCT(('Fixed assets'!$R$2:$R$1000)*('Fixed assets'!$P$2:$P$1000<$A656)*('Fixed assets'!$Q$2:$Q$1000=Costs!AB$617))-SUMPRODUCT(('Fixed assets'!$S$2:$S$1000)*('Fixed assets'!$P$2:$P$1000<Costs!$A656)*('Fixed assets'!$Q$2:$Q$1000=Costs!AB$617))-SUMPRODUCT(('Fixed assets'!$Q$2:$Q$1000=Costs!AB$617)*('Fixed assets'!$U$2:$U$1000=Costs!$A656)*('Fixed assets'!$S$2:$S$1000))+SUMPRODUCT(('Fixed assets'!$Q$2:$Q$1000=Costs!AB$617)*('Fixed assets'!$P$2:$P$1000=Costs!$A656)*('Fixed assets'!$U$2:$U$1000=Costs!$A656)*('Fixed assets'!$R$2:$R$1000))","v":0},{"$f":"SUMPRODUCT(('Fixed assets'!$R$2:$R$1000)*('Fixed assets'!$P$2:$P$1000<$A656)*('Fixed assets'!$Q$2:$Q$1000=Costs!AC$617))-SUMPRODUCT(('Fixed assets'!$S$2:$S$1000)*('Fixed assets'!$P$2:$P$1000<Costs!$A656)*('Fixed assets'!$Q$2:$Q$1000=Costs!AC$617))-SUMPRODUCT(('Fixed assets'!$Q$2:$Q$1000=Costs!AC$617)*('Fixed assets'!$U$2:$U$1000=Costs!$A656)*('Fixed assets'!$S$2:$S$1000))+SUMPRODUCT(('Fixed assets'!$Q$2:$Q$1000=Costs!AC$617)*('Fixed assets'!$P$2:$P$1000=Costs!$A656)*('Fixed assets'!$U$2:$U$1000=Costs!$A656)*('Fixed assets'!$R$2:$R$1000))","v":0},{"$f":"SUMPRODUCT(('Fixed assets'!$R$2:$R$1000)*('Fixed assets'!$P$2:$P$1000<$A656)*('Fixed assets'!$Q$2:$Q$1000=Costs!AD$617))-SUMPRODUCT(('Fixed assets'!$S$2:$S$1000)*('Fixed assets'!$P$2:$P$1000<Costs!$A656)*('Fixed assets'!$Q$2:$Q$1000=Costs!AD$617))-SUMPRODUCT(('Fixed assets'!$Q$2:$Q$1000=Costs!AD$617)*('Fixed assets'!$U$2:$U$1000=Costs!$A656)*('Fixed assets'!$S$2:$S$1000))+SUMPRODUCT(('Fixed assets'!$Q$2:$Q$1000=Costs!AD$617)*('Fixed assets'!$P$2:$P$1000=Costs!$A656)*('Fixed assets'!$U$2:$U$1000=Costs!$A656)*('Fixed assets'!$R$2:$R$1000))","v":0},{"$f":"SUMPRODUCT(('Fixed assets'!$R$2:$R$1000)*('Fixed assets'!$P$2:$P$1000<$A656)*('Fixed assets'!$Q$2:$Q$1000=Costs!AE$617))-SUMPRODUCT(('Fixed assets'!$S$2:$S$1000)*('Fixed assets'!$P$2:$P$1000<Costs!$A656)*('Fixed assets'!$Q$2:$Q$1000=Costs!AE$617))-SUMPRODUCT(('Fixed assets'!$Q$2:$Q$1000=Costs!AE$617)*('Fixed assets'!$U$2:$U$1000=Costs!$A656)*('Fixed assets'!$S$2:$S$1000))+SUMPRODUCT(('Fixed assets'!$Q$2:$Q$1000=Costs!AE$617)*('Fixed assets'!$P$2:$P$1000=Costs!$A656)*('Fixed assets'!$U$2:$U$1000=Costs!$A656)*('Fixed assets'!$R$2:$R$1000))","v":0},{"$f":"SUMPRODUCT(('Fixed assets'!$R$2:$R$1000)*('Fixed assets'!$P$2:$P$1000<$A656)*('Fixed assets'!$Q$2:$Q$1000=Costs!AF$617))-SUMPRODUCT(('Fixed assets'!$S$2:$S$1000)*('Fixed assets'!$P$2:$P$1000<Costs!$A656)*('Fixed assets'!$Q$2:$Q$1000=Costs!AF$617))-SUMPRODUCT(('Fixed assets'!$Q$2:$Q$1000=Costs!AF$617)*('Fixed assets'!$U$2:$U$1000=Costs!$A656)*('Fixed assets'!$S$2:$S$1000))+SUMPRODUCT(('Fixed assets'!$Q$2:$Q$1000=Costs!AF$617)*('Fixed assets'!$P$2:$P$1000=Costs!$A656)*('Fixed assets'!$U$2:$U$1000=Costs!$A656)*('Fixed assets'!$R$2:$R$1000))","v":0},{"$f":"SUMPRODUCT(('Fixed assets'!$R$2:$R$1000)*('Fixed assets'!$P$2:$P$1000<$A656)*('Fixed assets'!$Q$2:$Q$1000=Costs!AG$617))-SUMPRODUCT(('Fixed assets'!$S$2:$S$1000)*('Fixed assets'!$P$2:$P$1000<Costs!$A656)*('Fixed assets'!$Q$2:$Q$1000=Costs!AG$617))-SUMPRODUCT(('Fixed assets'!$Q$2:$Q$1000=Costs!AG$617)*('Fixed assets'!$U$2:$U$1000=Costs!$A656)*('Fixed assets'!$S$2:$S$1000))+SUMPRODUCT(('Fixed assets'!$Q$2:$Q$1000=Costs!AG$617)*('Fixed assets'!$P$2:$P$1000=Costs!$A656)*('Fixed assets'!$U$2:$U$1000=Costs!$A656)*('Fixed assets'!$R$2:$R$1000))","v":0},{"$f":"SUMPRODUCT(('Fixed assets'!$R$2:$R$1000)*('Fixed assets'!$P$2:$P$1000<$A656)*('Fixed assets'!$Q$2:$Q$1000=Costs!AH$617))-SUMPRODUCT(('Fixed assets'!$S$2:$S$1000)*('Fixed assets'!$P$2:$P$1000<Costs!$A656)*('Fixed assets'!$Q$2:$Q$1000=Costs!AH$617))-SUMPRODUCT(('Fixed assets'!$Q$2:$Q$1000=Costs!AH$617)*('Fixed assets'!$U$2:$U$1000=Costs!$A656)*('Fixed assets'!$S$2:$S$1000))+SUMPRODUCT(('Fixed assets'!$Q$2:$Q$1000=Costs!AH$617)*('Fixed assets'!$P$2:$P$1000=Costs!$A656)*('Fixed assets'!$U$2:$U$1000=Costs!$A656)*('Fixed assets'!$R$2:$R$1000))","v":0},{"$f":"SUMPRODUCT(('Fixed assets'!$R$2:$R$1000)*('Fixed assets'!$P$2:$P$1000<$A656)*('Fixed assets'!$Q$2:$Q$1000=Costs!AI$617))-SUMPRODUCT(('Fixed assets'!$S$2:$S$1000)*('Fixed assets'!$P$2:$P$1000<Costs!$A656)*('Fixed assets'!$Q$2:$Q$1000=Costs!AI$617))-SUMPRODUCT(('Fixed assets'!$Q$2:$Q$1000=Costs!AI$617)*('Fixed assets'!$U$2:$U$1000=Costs!$A656)*('Fixed assets'!$S$2:$S$1000))+SUMPRODUCT(('Fixed assets'!$Q$2:$Q$1000=Costs!AI$617)*('Fixed assets'!$P$2:$P$1000=Costs!$A656)*('Fixed assets'!$U$2:$U$1000=Costs!$A656)*('Fixed assets'!$R$2:$R$1000))","v":0},{"$f":"SUMPRODUCT(('Fixed assets'!$R$2:$R$1000)*('Fixed assets'!$P$2:$P$1000<$A656)*('Fixed assets'!$Q$2:$Q$1000=Costs!AJ$617))-SUMPRODUCT(('Fixed assets'!$S$2:$S$1000)*('Fixed assets'!$P$2:$P$1000<Costs!$A656)*('Fixed assets'!$Q$2:$Q$1000=Costs!AJ$617))-SUMPRODUCT(('Fixed assets'!$Q$2:$Q$1000=Costs!AJ$617)*('Fixed assets'!$U$2:$U$1000=Costs!$A656)*('Fixed assets'!$S$2:$S$1000))+SUMPRODUCT(('Fixed assets'!$Q$2:$Q$1000=Costs!AJ$617)*('Fixed assets'!$P$2:$P$1000=Costs!$A656)*('Fixed assets'!$U$2:$U$1000=Costs!$A656)*('Fixed assets'!$R$2:$R$1000))","v":0},{"$f":"SUMPRODUCT(('Fixed assets'!$R$2:$R$1000)*('Fixed assets'!$P$2:$P$1000<$A656)*('Fixed assets'!$Q$2:$Q$1000=Costs!AK$617))-SUMPRODUCT(('Fixed assets'!$S$2:$S$1000)*('Fixed assets'!$P$2:$P$1000<Costs!$A656)*('Fixed assets'!$Q$2:$Q$1000=Costs!AK$617))-SUMPRODUCT(('Fixed assets'!$Q$2:$Q$1000=Costs!AK$617)*('Fixed assets'!$U$2:$U$1000=Costs!$A656)*('Fixed assets'!$S$2:$S$1000))+SUMPRODUCT(('Fixed assets'!$Q$2:$Q$1000=Costs!AK$617)*('Fixed assets'!$P$2:$P$1000=Costs!$A656)*('Fixed assets'!$U$2:$U$1000=Costs!$A656)*('Fixed assets'!$R$2:$R$1000))","v":0},{"$f":"SUMPRODUCT(('Fixed assets'!$R$2:$R$1000)*('Fixed assets'!$P$2:$P$1000<$A656)*('Fixed assets'!$Q$2:$Q$1000=Costs!AL$617))-SUMPRODUCT(('Fixed assets'!$S$2:$S$1000)*('Fixed assets'!$P$2:$P$1000<Costs!$A656)*('Fixed assets'!$Q$2:$Q$1000=Costs!AL$617))-SUMPRODUCT(('Fixed assets'!$Q$2:$Q$1000=Costs!AL$617)*('Fixed assets'!$U$2:$U$1000=Costs!$A656)*('Fixed assets'!$S$2:$S$1000))+SUMPRODUCT(('Fixed assets'!$Q$2:$Q$1000=Costs!AL$617)*('Fixed assets'!$P$2:$P$1000=Costs!$A656)*('Fixed assets'!$U$2:$U$1000=Costs!$A656)*('Fixed assets'!$R$2:$R$1000))","v":0},{"$f":"SUMPRODUCT(('Fixed assets'!$R$2:$R$1000)*('Fixed assets'!$P$2:$P$1000<$A656)*('Fixed assets'!$Q$2:$Q$1000=Costs!AM$617))-SUMPRODUCT(('Fixed assets'!$S$2:$S$1000)*('Fixed assets'!$P$2:$P$1000<Costs!$A656)*('Fixed assets'!$Q$2:$Q$1000=Costs!AM$617))-SUMPRODUCT(('Fixed assets'!$Q$2:$Q$1000=Costs!AM$617)*('Fixed assets'!$U$2:$U$1000=Costs!$A656)*('Fixed assets'!$S$2:$S$1000))+SUMPRODUCT(('Fixed assets'!$Q$2:$Q$1000=Costs!AM$617)*('Fixed assets'!$P$2:$P$1000=Costs!$A656)*('Fixed assets'!$U$2:$U$1000=Costs!$A656)*('Fixed assets'!$R$2:$R$1000))","v":0},{"$f":"SUMPRODUCT(('Fixed assets'!$R$2:$R$1000)*('Fixed assets'!$P$2:$P$1000<$A656)*('Fixed assets'!$Q$2:$Q$1000=Costs!AN$617))-SUMPRODUCT(('Fixed assets'!$S$2:$S$1000)*('Fixed assets'!$P$2:$P$1000<Costs!$A656)*('Fixed assets'!$Q$2:$Q$1000=Costs!AN$617))-SUMPRODUCT(('Fixed assets'!$Q$2:$Q$1000=Costs!AN$617)*('Fixed assets'!$U$2:$U$1000=Costs!$A656)*('Fixed assets'!$S$2:$S$1000))+SUMPRODUCT(('Fixed assets'!$Q$2:$Q$1000=Costs!AN$617)*('Fixed assets'!$P$2:$P$1000=Costs!$A656)*('Fixed assets'!$U$2:$U$1000=Costs!$A656)*('Fixed assets'!$R$2:$R$1000))","v":0},{"$f":"SUMPRODUCT(('Fixed assets'!$R$2:$R$1000)*('Fixed assets'!$P$2:$P$1000<$A656)*('Fixed assets'!$Q$2:$Q$1000=Costs!AO$617))-SUMPRODUCT(('Fixed assets'!$S$2:$S$1000)*('Fixed assets'!$P$2:$P$1000<Costs!$A656)*('Fixed assets'!$Q$2:$Q$1000=Costs!AO$617))-SUMPRODUCT(('Fixed assets'!$Q$2:$Q$1000=Costs!AO$617)*('Fixed assets'!$U$2:$U$1000=Costs!$A656)*('Fixed assets'!$S$2:$S$1000))+SUMPRODUCT(('Fixed assets'!$Q$2:$Q$1000=Costs!AO$617)*('Fixed assets'!$P$2:$P$1000=Costs!$A656)*('Fixed assets'!$U$2:$U$1000=Costs!$A656)*('Fixed assets'!$R$2:$R$1000))","v":0},{"$f":"SUMPRODUCT(('Fixed assets'!$R$2:$R$1000)*('Fixed assets'!$P$2:$P$1000<$A656)*('Fixed assets'!$Q$2:$Q$1000=Costs!AP$617))-SUMPRODUCT(('Fixed assets'!$S$2:$S$1000)*('Fixed assets'!$P$2:$P$1000<Costs!$A656)*('Fixed assets'!$Q$2:$Q$1000=Costs!AP$617))-SUMPRODUCT(('Fixed assets'!$Q$2:$Q$1000=Costs!AP$617)*('Fixed assets'!$U$2:$U$1000=Costs!$A656)*('Fixed assets'!$S$2:$S$1000))+SUMPRODUCT(('Fixed assets'!$Q$2:$Q$1000=Costs!AP$617)*('Fixed assets'!$P$2:$P$1000=Costs!$A656)*('Fixed assets'!$U$2:$U$1000=Costs!$A656)*('Fixed assets'!$R$2:$R$1000))","v":0},{"$f":"SUMPRODUCT(('Fixed assets'!$R$2:$R$1000)*('Fixed assets'!$P$2:$P$1000<$A656)*('Fixed assets'!$Q$2:$Q$1000=Costs!AQ$617))-SUMPRODUCT(('Fixed assets'!$S$2:$S$1000)*('Fixed assets'!$P$2:$P$1000<Costs!$A656)*('Fixed assets'!$Q$2:$Q$1000=Costs!AQ$617))-SUMPRODUCT(('Fixed assets'!$Q$2:$Q$1000=Costs!AQ$617)*('Fixed assets'!$U$2:$U$1000=Costs!$A656)*('Fixed assets'!$S$2:$S$1000))+SUMPRODUCT(('Fixed assets'!$Q$2:$Q$1000=Costs!AQ$617)*('Fixed assets'!$P$2:$P$1000=Costs!$A656)*('Fixed assets'!$U$2:$U$1000=Costs!$A656)*('Fixed assets'!$R$2:$R$1000))","v":0}]
[2054,0,{"$f":"SUMPRODUCT(('Fixed assets'!$R$2:$R$1000)*('Fixed assets'!$P$2:$P$1000<$A657)*('Fixed assets'!$Q$2:$Q$1000=Costs!C$617))-SUMPRODUCT(('Fixed assets'!$S$2:$S$1000)*('Fixed assets'!$P$2:$P$1000<Costs!$A657)*('Fixed assets'!$Q$2:$Q$1000=Costs!C$617))-SUMPRODUCT(('Fixed assets'!$Q$2:$Q$1000=Costs!C$617)*('Fixed assets'!$U$2:$U$1000=Costs!$A657)*('Fixed assets'!$S$2:$S$1000))+SUMPRODUCT(('Fixed assets'!$Q$2:$Q$1000=Costs!C$617)*('Fixed assets'!$P$2:$P$1000=Costs!$A657)*('Fixed assets'!$U$2:$U$1000=Costs!$A657)*('Fixed assets'!$R$2:$R$1000))","v":0},{"$f":"SUMPRODUCT(('Fixed assets'!$R$2:$R$1000)*('Fixed assets'!$P$2:$P$1000<$A657)*('Fixed assets'!$Q$2:$Q$1000=Costs!D$617))-SUMPRODUCT(('Fixed assets'!$S$2:$S$1000)*('Fixed assets'!$P$2:$P$1000<Costs!$A657)*('Fixed assets'!$Q$2:$Q$1000=Costs!D$617))-SUMPRODUCT(('Fixed assets'!$Q$2:$Q$1000=Costs!D$617)*('Fixed assets'!$U$2:$U$1000=Costs!$A657)*('Fixed assets'!$S$2:$S$1000))+SUMPRODUCT(('Fixed assets'!$Q$2:$Q$1000=Costs!D$617)*('Fixed assets'!$P$2:$P$1000=Costs!$A657)*('Fixed assets'!$U$2:$U$1000=Costs!$A657)*('Fixed assets'!$R$2:$R$1000))","v":0},{"$f":"SUMPRODUCT(('Fixed assets'!$R$2:$R$1000)*('Fixed assets'!$P$2:$P$1000<$A657)*('Fixed assets'!$Q$2:$Q$1000=Costs!E$617))-SUMPRODUCT(('Fixed assets'!$S$2:$S$1000)*('Fixed assets'!$P$2:$P$1000<Costs!$A657)*('Fixed assets'!$Q$2:$Q$1000=Costs!E$617))-SUMPRODUCT(('Fixed assets'!$Q$2:$Q$1000=Costs!E$617)*('Fixed assets'!$U$2:$U$1000=Costs!$A657)*('Fixed assets'!$S$2:$S$1000))+SUMPRODUCT(('Fixed assets'!$Q$2:$Q$1000=Costs!E$617)*('Fixed assets'!$P$2:$P$1000=Costs!$A657)*('Fixed assets'!$U$2:$U$1000=Costs!$A657)*('Fixed assets'!$R$2:$R$1000))","v":0},{"$f":"SUMPRODUCT(('Fixed assets'!$R$2:$R$1000)*('Fixed assets'!$P$2:$P$1000<$A657)*('Fixed assets'!$Q$2:$Q$1000=Costs!F$617))-SUMPRODUCT(('Fixed assets'!$S$2:$S$1000)*('Fixed assets'!$P$2:$P$1000<Costs!$A657)*('Fixed assets'!$Q$2:$Q$1000=Costs!F$617))-SUMPRODUCT(('Fixed assets'!$Q$2:$Q$1000=Costs!F$617)*('Fixed assets'!$U$2:$U$1000=Costs!$A657)*('Fixed assets'!$S$2:$S$1000))+SUMPRODUCT(('Fixed assets'!$Q$2:$Q$1000=Costs!F$617)*('Fixed assets'!$P$2:$P$1000=Costs!$A657)*('Fixed assets'!$U$2:$U$1000=Costs!$A657)*('Fixed assets'!$R$2:$R$1000))","v":0},{"$f":"SUMPRODUCT(('Fixed assets'!$R$2:$R$1000)*('Fixed assets'!$P$2:$P$1000<$A657)*('Fixed assets'!$Q$2:$Q$1000=Costs!G$617))-SUMPRODUCT(('Fixed assets'!$S$2:$S$1000)*('Fixed assets'!$P$2:$P$1000<Costs!$A657)*('Fixed assets'!$Q$2:$Q$1000=Costs!G$617))-SUMPRODUCT(('Fixed assets'!$Q$2:$Q$1000=Costs!G$617)*('Fixed assets'!$U$2:$U$1000=Costs!$A657)*('Fixed assets'!$S$2:$S$1000))+SUMPRODUCT(('Fixed assets'!$Q$2:$Q$1000=Costs!G$617)*('Fixed assets'!$P$2:$P$1000=Costs!$A657)*('Fixed assets'!$U$2:$U$1000=Costs!$A657)*('Fixed assets'!$R$2:$R$1000))","v":0},{"$f":"SUMPRODUCT(('Fixed assets'!$R$2:$R$1000)*('Fixed assets'!$P$2:$P$1000<$A657)*('Fixed assets'!$Q$2:$Q$1000=Costs!H$617))-SUMPRODUCT(('Fixed assets'!$S$2:$S$1000)*('Fixed assets'!$P$2:$P$1000<Costs!$A657)*('Fixed assets'!$Q$2:$Q$1000=Costs!H$617))-SUMPRODUCT(('Fixed assets'!$Q$2:$Q$1000=Costs!H$617)*('Fixed assets'!$U$2:$U$1000=Costs!$A657)*('Fixed assets'!$S$2:$S$1000))+SUMPRODUCT(('Fixed assets'!$Q$2:$Q$1000=Costs!H$617)*('Fixed assets'!$P$2:$P$1000=Costs!$A657)*('Fixed assets'!$U$2:$U$1000=Costs!$A657)*('Fixed assets'!$R$2:$R$1000))","v":0},{"$f":"SUMPRODUCT(('Fixed assets'!$R$2:$R$1000)*('Fixed assets'!$P$2:$P$1000<$A657)*('Fixed assets'!$Q$2:$Q$1000=Costs!I$617))-SUMPRODUCT(('Fixed assets'!$S$2:$S$1000)*('Fixed assets'!$P$2:$P$1000<Costs!$A657)*('Fixed assets'!$Q$2:$Q$1000=Costs!I$617))-SUMPRODUCT(('Fixed assets'!$Q$2:$Q$1000=Costs!I$617)*('Fixed assets'!$U$2:$U$1000=Costs!$A657)*('Fixed assets'!$S$2:$S$1000))+SUMPRODUCT(('Fixed assets'!$Q$2:$Q$1000=Costs!I$617)*('Fixed assets'!$P$2:$P$1000=Costs!$A657)*('Fixed assets'!$U$2:$U$1000=Costs!$A657)*('Fixed assets'!$R$2:$R$1000))","v":0},{"$f":"SUMPRODUCT(('Fixed assets'!$R$2:$R$1000)*('Fixed assets'!$P$2:$P$1000<$A657)*('Fixed assets'!$Q$2:$Q$1000=Costs!J$617))-SUMPRODUCT(('Fixed assets'!$S$2:$S$1000)*('Fixed assets'!$P$2:$P$1000<Costs!$A657)*('Fixed assets'!$Q$2:$Q$1000=Costs!J$617))-SUMPRODUCT(('Fixed assets'!$Q$2:$Q$1000=Costs!J$617)*('Fixed assets'!$U$2:$U$1000=Costs!$A657)*('Fixed assets'!$S$2:$S$1000))+SUMPRODUCT(('Fixed assets'!$Q$2:$Q$1000=Costs!J$617)*('Fixed assets'!$P$2:$P$1000=Costs!$A657)*('Fixed assets'!$U$2:$U$1000=Costs!$A657)*('Fixed assets'!$R$2:$R$1000))","v":0},{"$f":"SUMPRODUCT(('Fixed assets'!$R$2:$R$1000)*('Fixed assets'!$P$2:$P$1000<$A657)*('Fixed assets'!$Q$2:$Q$1000=Costs!K$617))-SUMPRODUCT(('Fixed assets'!$S$2:$S$1000)*('Fixed assets'!$P$2:$P$1000<Costs!$A657)*('Fixed assets'!$Q$2:$Q$1000=Costs!K$617))-SUMPRODUCT(('Fixed assets'!$Q$2:$Q$1000=Costs!K$617)*('Fixed assets'!$U$2:$U$1000=Costs!$A657)*('Fixed assets'!$S$2:$S$1000))+SUMPRODUCT(('Fixed assets'!$Q$2:$Q$1000=Costs!K$617)*('Fixed assets'!$P$2:$P$1000=Costs!$A657)*('Fixed assets'!$U$2:$U$1000=Costs!$A657)*('Fixed assets'!$R$2:$R$1000))","v":0},{"$f":"SUMPRODUCT(('Fixed assets'!$R$2:$R$1000)*('Fixed assets'!$P$2:$P$1000<$A657)*('Fixed assets'!$Q$2:$Q$1000=Costs!L$617))-SUMPRODUCT(('Fixed assets'!$S$2:$S$1000)*('Fixed assets'!$P$2:$P$1000<Costs!$A657)*('Fixed assets'!$Q$2:$Q$1000=Costs!L$617))-SUMPRODUCT(('Fixed assets'!$Q$2:$Q$1000=Costs!L$617)*('Fixed assets'!$U$2:$U$1000=Costs!$A657)*('Fixed assets'!$S$2:$S$1000))+SUMPRODUCT(('Fixed assets'!$Q$2:$Q$1000=Costs!L$617)*('Fixed assets'!$P$2:$P$1000=Costs!$A657)*('Fixed assets'!$U$2:$U$1000=Costs!$A657)*('Fixed assets'!$R$2:$R$1000))","v":0},{"$f":"SUMPRODUCT(('Fixed assets'!$R$2:$R$1000)*('Fixed assets'!$P$2:$P$1000<$A657)*('Fixed assets'!$Q$2:$Q$1000=Costs!M$617))-SUMPRODUCT(('Fixed assets'!$S$2:$S$1000)*('Fixed assets'!$P$2:$P$1000<Costs!$A657)*('Fixed assets'!$Q$2:$Q$1000=Costs!M$617))-SUMPRODUCT(('Fixed assets'!$Q$2:$Q$1000=Costs!M$617)*('Fixed assets'!$U$2:$U$1000=Costs!$A657)*('Fixed assets'!$S$2:$S$1000))+SUMPRODUCT(('Fixed assets'!$Q$2:$Q$1000=Costs!M$617)*('Fixed assets'!$P$2:$P$1000=Costs!$A657)*('Fixed assets'!$U$2:$U$1000=Costs!$A657)*('Fixed assets'!$R$2:$R$1000))","v":0},{"$f":"SUMPRODUCT(('Fixed assets'!$R$2:$R$1000)*('Fixed assets'!$P$2:$P$1000<$A657)*('Fixed assets'!$Q$2:$Q$1000=Costs!N$617))-SUMPRODUCT(('Fixed assets'!$S$2:$S$1000)*('Fixed assets'!$P$2:$P$1000<Costs!$A657)*('Fixed assets'!$Q$2:$Q$1000=Costs!N$617))-SUMPRODUCT(('Fixed assets'!$Q$2:$Q$1000=Costs!N$617)*('Fixed assets'!$U$2:$U$1000=Costs!$A657)*('Fixed assets'!$S$2:$S$1000))+SUMPRODUCT(('Fixed assets'!$Q$2:$Q$1000=Costs!N$617)*('Fixed assets'!$P$2:$P$1000=Costs!$A657)*('Fixed assets'!$U$2:$U$1000=Costs!$A657)*('Fixed assets'!$R$2:$R$1000))","v":0},{"$f":"SUMPRODUCT(('Fixed assets'!$R$2:$R$1000)*('Fixed assets'!$P$2:$P$1000<$A657)*('Fixed assets'!$Q$2:$Q$1000=Costs!O$617))-SUMPRODUCT(('Fixed assets'!$S$2:$S$1000)*('Fixed assets'!$P$2:$P$1000<Costs!$A657)*('Fixed assets'!$Q$2:$Q$1000=Costs!O$617))-SUMPRODUCT(('Fixed assets'!$Q$2:$Q$1000=Costs!O$617)*('Fixed assets'!$U$2:$U$1000=Costs!$A657)*('Fixed assets'!$S$2:$S$1000))+SUMPRODUCT(('Fixed assets'!$Q$2:$Q$1000=Costs!O$617)*('Fixed assets'!$P$2:$P$1000=Costs!$A657)*('Fixed assets'!$U$2:$U$1000=Costs!$A657)*('Fixed assets'!$R$2:$R$1000))","v":0},{"$f":"SUMPRODUCT(('Fixed assets'!$R$2:$R$1000)*('Fixed assets'!$P$2:$P$1000<$A657)*('Fixed assets'!$Q$2:$Q$1000=Costs!P$617))-SUMPRODUCT(('Fixed assets'!$S$2:$S$1000)*('Fixed assets'!$P$2:$P$1000<Costs!$A657)*('Fixed assets'!$Q$2:$Q$1000=Costs!P$617))-SUMPRODUCT(('Fixed assets'!$Q$2:$Q$1000=Costs!P$617)*('Fixed assets'!$U$2:$U$1000=Costs!$A657)*('Fixed assets'!$S$2:$S$1000))+SUMPRODUCT(('Fixed assets'!$Q$2:$Q$1000=Costs!P$617)*('Fixed assets'!$P$2:$P$1000=Costs!$A657)*('Fixed assets'!$U$2:$U$1000=Costs!$A657)*('Fixed assets'!$R$2:$R$1000))","v":0},{"$f":"SUMPRODUCT(('Fixed assets'!$R$2:$R$1000)*('Fixed assets'!$P$2:$P$1000<$A657)*('Fixed assets'!$Q$2:$Q$1000=Costs!Q$617))-SUMPRODUCT(('Fixed assets'!$S$2:$S$1000)*('Fixed assets'!$P$2:$P$1000<Costs!$A657)*('Fixed assets'!$Q$2:$Q$1000=Costs!Q$617))-SUMPRODUCT(('Fixed assets'!$Q$2:$Q$1000=Costs!Q$617)*('Fixed assets'!$U$2:$U$1000=Costs!$A657)*('Fixed assets'!$S$2:$S$1000))+SUMPRODUCT(('Fixed assets'!$Q$2:$Q$1000=Costs!Q$617)*('Fixed assets'!$P$2:$P$1000=Costs!$A657)*('Fixed assets'!$U$2:$U$1000=Costs!$A657)*('Fixed assets'!$R$2:$R$1000))","v":0},{"$f":"SUMPRODUCT(('Fixed assets'!$R$2:$R$1000)*('Fixed assets'!$P$2:$P$1000<$A657)*('Fixed assets'!$Q$2:$Q$1000=Costs!R$617))-SUMPRODUCT(('Fixed assets'!$S$2:$S$1000)*('Fixed assets'!$P$2:$P$1000<Costs!$A657)*('Fixed assets'!$Q$2:$Q$1000=Costs!R$617))-SUMPRODUCT(('Fixed assets'!$Q$2:$Q$1000=Costs!R$617)*('Fixed assets'!$U$2:$U$1000=Costs!$A657)*('Fixed assets'!$S$2:$S$1000))+SUMPRODUCT(('Fixed assets'!$Q$2:$Q$1000=Costs!R$617)*('Fixed assets'!$P$2:$P$1000=Costs!$A657)*('Fixed assets'!$U$2:$U$1000=Costs!$A657)*('Fixed assets'!$R$2:$R$1000))","v":0},{"$f":"SUMPRODUCT(('Fixed assets'!$R$2:$R$1000)*('Fixed assets'!$P$2:$P$1000<$A657)*('Fixed assets'!$Q$2:$Q$1000=Costs!S$617))-SUMPRODUCT(('Fixed assets'!$S$2:$S$1000)*('Fixed assets'!$P$2:$P$1000<Costs!$A657)*('Fixed assets'!$Q$2:$Q$1000=Costs!S$617))-SUMPRODUCT(('Fixed assets'!$Q$2:$Q$1000=Costs!S$617)*('Fixed assets'!$U$2:$U$1000=Costs!$A657)*('Fixed assets'!$S$2:$S$1000))+SUMPRODUCT(('Fixed assets'!$Q$2:$Q$1000=Costs!S$617)*('Fixed assets'!$P$2:$P$1000=Costs!$A657)*('Fixed assets'!$U$2:$U$1000=Costs!$A657)*('Fixed assets'!$R$2:$R$1000))","v":0},{"$f":"SUMPRODUCT(('Fixed assets'!$R$2:$R$1000)*('Fixed assets'!$P$2:$P$1000<$A657)*('Fixed assets'!$Q$2:$Q$1000=Costs!T$617))-SUMPRODUCT(('Fixed assets'!$S$2:$S$1000)*('Fixed assets'!$P$2:$P$1000<Costs!$A657)*('Fixed assets'!$Q$2:$Q$1000=Costs!T$617))-SUMPRODUCT(('Fixed assets'!$Q$2:$Q$1000=Costs!T$617)*('Fixed assets'!$U$2:$U$1000=Costs!$A657)*('Fixed assets'!$S$2:$S$1000))+SUMPRODUCT(('Fixed assets'!$Q$2:$Q$1000=Costs!T$617)*('Fixed assets'!$P$2:$P$1000=Costs!$A657)*('Fixed assets'!$U$2:$U$1000=Costs!$A657)*('Fixed assets'!$R$2:$R$1000))","v":0},{"$f":"SUMPRODUCT(('Fixed assets'!$R$2:$R$1000)*('Fixed assets'!$P$2:$P$1000<$A657)*('Fixed assets'!$Q$2:$Q$1000=Costs!U$617))-SUMPRODUCT(('Fixed assets'!$S$2:$S$1000)*('Fixed assets'!$P$2:$P$1000<Costs!$A657)*('Fixed assets'!$Q$2:$Q$1000=Costs!U$617))-SUMPRODUCT(('Fixed assets'!$Q$2:$Q$1000=Costs!U$617)*('Fixed assets'!$U$2:$U$1000=Costs!$A657)*('Fixed assets'!$S$2:$S$1000))+SUMPRODUCT(('Fixed assets'!$Q$2:$Q$1000=Costs!U$617)*('Fixed assets'!$P$2:$P$1000=Costs!$A657)*('Fixed assets'!$U$2:$U$1000=Costs!$A657)*('Fixed assets'!$R$2:$R$1000))","v":0},{"$f":"SUMPRODUCT(('Fixed assets'!$R$2:$R$1000)*('Fixed assets'!$P$2:$P$1000<$A657)*('Fixed assets'!$Q$2:$Q$1000=Costs!V$617))-SUMPRODUCT(('Fixed assets'!$S$2:$S$1000)*('Fixed assets'!$P$2:$P$1000<Costs!$A657)*('Fixed assets'!$Q$2:$Q$1000=Costs!V$617))-SUMPRODUCT(('Fixed assets'!$Q$2:$Q$1000=Costs!V$617)*('Fixed assets'!$U$2:$U$1000=Costs!$A657)*('Fixed assets'!$S$2:$S$1000))+SUMPRODUCT(('Fixed assets'!$Q$2:$Q$1000=Costs!V$617)*('Fixed assets'!$P$2:$P$1000=Costs!$A657)*('Fixed assets'!$U$2:$U$1000=Costs!$A657)*('Fixed assets'!$R$2:$R$1000))","v":0},{"$f":"SUMPRODUCT(('Fixed assets'!$R$2:$R$1000)*('Fixed assets'!$P$2:$P$1000<$A657)*('Fixed assets'!$Q$2:$Q$1000=Costs!W$617))-SUMPRODUCT(('Fixed assets'!$S$2:$S$1000)*('Fixed assets'!$P$2:$P$1000<Costs!$A657)*('Fixed assets'!$Q$2:$Q$1000=Costs!W$617))-SUMPRODUCT(('Fixed assets'!$Q$2:$Q$1000=Costs!W$617)*('Fixed assets'!$U$2:$U$1000=Costs!$A657)*('Fixed assets'!$S$2:$S$1000))+SUMPRODUCT(('Fixed assets'!$Q$2:$Q$1000=Costs!W$617)*('Fixed assets'!$P$2:$P$1000=Costs!$A657)*('Fixed assets'!$U$2:$U$1000=Costs!$A657)*('Fixed assets'!$R$2:$R$1000))","v":0},{"$f":"SUMPRODUCT(('Fixed assets'!$R$2:$R$1000)*('Fixed assets'!$P$2:$P$1000<$A657)*('Fixed assets'!$Q$2:$Q$1000=Costs!X$617))-SUMPRODUCT(('Fixed assets'!$S$2:$S$1000)*('Fixed assets'!$P$2:$P$1000<Costs!$A657)*('Fixed assets'!$Q$2:$Q$1000=Costs!X$617))-SUMPRODUCT(('Fixed assets'!$Q$2:$Q$1000=Costs!X$617)*('Fixed assets'!$U$2:$U$1000=Costs!$A657)*('Fixed assets'!$S$2:$S$1000))+SUMPRODUCT(('Fixed assets'!$Q$2:$Q$1000=Costs!X$617)*('Fixed assets'!$P$2:$P$1000=Costs!$A657)*('Fixed assets'!$U$2:$U$1000=Costs!$A657)*('Fixed assets'!$R$2:$R$1000))","v":0},{"$f":"SUMPRODUCT(('Fixed assets'!$R$2:$R$1000)*('Fixed assets'!$P$2:$P$1000<$A657)*('Fixed assets'!$Q$2:$Q$1000=Costs!Y$617))-SUMPRODUCT(('Fixed assets'!$S$2:$S$1000)*('Fixed assets'!$P$2:$P$1000<Costs!$A657)*('Fixed assets'!$Q$2:$Q$1000=Costs!Y$617))-SUMPRODUCT(('Fixed assets'!$Q$2:$Q$1000=Costs!Y$617)*('Fixed assets'!$U$2:$U$1000=Costs!$A657)*('Fixed assets'!$S$2:$S$1000))+SUMPRODUCT(('Fixed assets'!$Q$2:$Q$1000=Costs!Y$617)*('Fixed assets'!$P$2:$P$1000=Costs!$A657)*('Fixed assets'!$U$2:$U$1000=Costs!$A657)*('Fixed assets'!$R$2:$R$1000))","v":0},{"$f":"SUMPRODUCT(('Fixed assets'!$R$2:$R$1000)*('Fixed assets'!$P$2:$P$1000<$A657)*('Fixed assets'!$Q$2:$Q$1000=Costs!Z$617))-SUMPRODUCT(('Fixed assets'!$S$2:$S$1000)*('Fixed assets'!$P$2:$P$1000<Costs!$A657)*('Fixed assets'!$Q$2:$Q$1000=Costs!Z$617))-SUMPRODUCT(('Fixed assets'!$Q$2:$Q$1000=Costs!Z$617)*('Fixed assets'!$U$2:$U$1000=Costs!$A657)*('Fixed assets'!$S$2:$S$1000))+SUMPRODUCT(('Fixed assets'!$Q$2:$Q$1000=Costs!Z$617)*('Fixed assets'!$P$2:$P$1000=Costs!$A657)*('Fixed assets'!$U$2:$U$1000=Costs!$A657)*('Fixed assets'!$R$2:$R$1000))","v":0},{"$f":"SUMPRODUCT(('Fixed assets'!$R$2:$R$1000)*('Fixed assets'!$P$2:$P$1000<$A657)*('Fixed assets'!$Q$2:$Q$1000=Costs!AA$617))-SUMPRODUCT(('Fixed assets'!$S$2:$S$1000)*('Fixed assets'!$P$2:$P$1000<Costs!$A657)*('Fixed assets'!$Q$2:$Q$1000=Costs!AA$617))-SUMPRODUCT(('Fixed assets'!$Q$2:$Q$1000=Costs!AA$617)*('Fixed assets'!$U$2:$U$1000=Costs!$A657)*('Fixed assets'!$S$2:$S$1000))+SUMPRODUCT(('Fixed assets'!$Q$2:$Q$1000=Costs!AA$617)*('Fixed assets'!$P$2:$P$1000=Costs!$A657)*('Fixed assets'!$U$2:$U$1000=Costs!$A657)*('Fixed assets'!$R$2:$R$1000))","v":0},{"$f":"SUMPRODUCT(('Fixed assets'!$R$2:$R$1000)*('Fixed assets'!$P$2:$P$1000<$A657)*('Fixed assets'!$Q$2:$Q$1000=Costs!AB$617))-SUMPRODUCT(('Fixed assets'!$S$2:$S$1000)*('Fixed assets'!$P$2:$P$1000<Costs!$A657)*('Fixed assets'!$Q$2:$Q$1000=Costs!AB$617))-SUMPRODUCT(('Fixed assets'!$Q$2:$Q$1000=Costs!AB$617)*('Fixed assets'!$U$2:$U$1000=Costs!$A657)*('Fixed assets'!$S$2:$S$1000))+SUMPRODUCT(('Fixed assets'!$Q$2:$Q$1000=Costs!AB$617)*('Fixed assets'!$P$2:$P$1000=Costs!$A657)*('Fixed assets'!$U$2:$U$1000=Costs!$A657)*('Fixed assets'!$R$2:$R$1000))","v":0},{"$f":"SUMPRODUCT(('Fixed assets'!$R$2:$R$1000)*('Fixed assets'!$P$2:$P$1000<$A657)*('Fixed assets'!$Q$2:$Q$1000=Costs!AC$617))-SUMPRODUCT(('Fixed assets'!$S$2:$S$1000)*('Fixed assets'!$P$2:$P$1000<Costs!$A657)*('Fixed assets'!$Q$2:$Q$1000=Costs!AC$617))-SUMPRODUCT(('Fixed assets'!$Q$2:$Q$1000=Costs!AC$617)*('Fixed assets'!$U$2:$U$1000=Costs!$A657)*('Fixed assets'!$S$2:$S$1000))+SUMPRODUCT(('Fixed assets'!$Q$2:$Q$1000=Costs!AC$617)*('Fixed assets'!$P$2:$P$1000=Costs!$A657)*('Fixed assets'!$U$2:$U$1000=Costs!$A657)*('Fixed assets'!$R$2:$R$1000))","v":0},{"$f":"SUMPRODUCT(('Fixed assets'!$R$2:$R$1000)*('Fixed assets'!$P$2:$P$1000<$A657)*('Fixed assets'!$Q$2:$Q$1000=Costs!AD$617))-SUMPRODUCT(('Fixed assets'!$S$2:$S$1000)*('Fixed assets'!$P$2:$P$1000<Costs!$A657)*('Fixed assets'!$Q$2:$Q$1000=Costs!AD$617))-SUMPRODUCT(('Fixed assets'!$Q$2:$Q$1000=Costs!AD$617)*('Fixed assets'!$U$2:$U$1000=Costs!$A657)*('Fixed assets'!$S$2:$S$1000))+SUMPRODUCT(('Fixed assets'!$Q$2:$Q$1000=Costs!AD$617)*('Fixed assets'!$P$2:$P$1000=Costs!$A657)*('Fixed assets'!$U$2:$U$1000=Costs!$A657)*('Fixed assets'!$R$2:$R$1000))","v":0},{"$f":"SUMPRODUCT(('Fixed assets'!$R$2:$R$1000)*('Fixed assets'!$P$2:$P$1000<$A657)*('Fixed assets'!$Q$2:$Q$1000=Costs!AE$617))-SUMPRODUCT(('Fixed assets'!$S$2:$S$1000)*('Fixed assets'!$P$2:$P$1000<Costs!$A657)*('Fixed assets'!$Q$2:$Q$1000=Costs!AE$617))-SUMPRODUCT(('Fixed assets'!$Q$2:$Q$1000=Costs!AE$617)*('Fixed assets'!$U$2:$U$1000=Costs!$A657)*('Fixed assets'!$S$2:$S$1000))+SUMPRODUCT(('Fixed assets'!$Q$2:$Q$1000=Costs!AE$617)*('Fixed assets'!$P$2:$P$1000=Costs!$A657)*('Fixed assets'!$U$2:$U$1000=Costs!$A657)*('Fixed assets'!$R$2:$R$1000))","v":0},{"$f":"SUMPRODUCT(('Fixed assets'!$R$2:$R$1000)*('Fixed assets'!$P$2:$P$1000<$A657)*('Fixed assets'!$Q$2:$Q$1000=Costs!AF$617))-SUMPRODUCT(('Fixed assets'!$S$2:$S$1000)*('Fixed assets'!$P$2:$P$1000<Costs!$A657)*('Fixed assets'!$Q$2:$Q$1000=Costs!AF$617))-SUMPRODUCT(('Fixed assets'!$Q$2:$Q$1000=Costs!AF$617)*('Fixed assets'!$U$2:$U$1000=Costs!$A657)*('Fixed assets'!$S$2:$S$1000))+SUMPRODUCT(('Fixed assets'!$Q$2:$Q$1000=Costs!AF$617)*('Fixed assets'!$P$2:$P$1000=Costs!$A657)*('Fixed assets'!$U$2:$U$1000=Costs!$A657)*('Fixed assets'!$R$2:$R$1000))","v":0},{"$f":"SUMPRODUCT(('Fixed assets'!$R$2:$R$1000)*('Fixed assets'!$P$2:$P$1000<$A657)*('Fixed assets'!$Q$2:$Q$1000=Costs!AG$617))-SUMPRODUCT(('Fixed assets'!$S$2:$S$1000)*('Fixed assets'!$P$2:$P$1000<Costs!$A657)*('Fixed assets'!$Q$2:$Q$1000=Costs!AG$617))-SUMPRODUCT(('Fixed assets'!$Q$2:$Q$1000=Costs!AG$617)*('Fixed assets'!$U$2:$U$1000=Costs!$A657)*('Fixed assets'!$S$2:$S$1000))+SUMPRODUCT(('Fixed assets'!$Q$2:$Q$1000=Costs!AG$617)*('Fixed assets'!$P$2:$P$1000=Costs!$A657)*('Fixed assets'!$U$2:$U$1000=Costs!$A657)*('Fixed assets'!$R$2:$R$1000))","v":0},{"$f":"SUMPRODUCT(('Fixed assets'!$R$2:$R$1000)*('Fixed assets'!$P$2:$P$1000<$A657)*('Fixed assets'!$Q$2:$Q$1000=Costs!AH$617))-SUMPRODUCT(('Fixed assets'!$S$2:$S$1000)*('Fixed assets'!$P$2:$P$1000<Costs!$A657)*('Fixed assets'!$Q$2:$Q$1000=Costs!AH$617))-SUMPRODUCT(('Fixed assets'!$Q$2:$Q$1000=Costs!AH$617)*('Fixed assets'!$U$2:$U$1000=Costs!$A657)*('Fixed assets'!$S$2:$S$1000))+SUMPRODUCT(('Fixed assets'!$Q$2:$Q$1000=Costs!AH$617)*('Fixed assets'!$P$2:$P$1000=Costs!$A657)*('Fixed assets'!$U$2:$U$1000=Costs!$A657)*('Fixed assets'!$R$2:$R$1000))","v":0},{"$f":"SUMPRODUCT(('Fixed assets'!$R$2:$R$1000)*('Fixed assets'!$P$2:$P$1000<$A657)*('Fixed assets'!$Q$2:$Q$1000=Costs!AI$617))-SUMPRODUCT(('Fixed assets'!$S$2:$S$1000)*('Fixed assets'!$P$2:$P$1000<Costs!$A657)*('Fixed assets'!$Q$2:$Q$1000=Costs!AI$617))-SUMPRODUCT(('Fixed assets'!$Q$2:$Q$1000=Costs!AI$617)*('Fixed assets'!$U$2:$U$1000=Costs!$A657)*('Fixed assets'!$S$2:$S$1000))+SUMPRODUCT(('Fixed assets'!$Q$2:$Q$1000=Costs!AI$617)*('Fixed assets'!$P$2:$P$1000=Costs!$A657)*('Fixed assets'!$U$2:$U$1000=Costs!$A657)*('Fixed assets'!$R$2:$R$1000))","v":0},{"$f":"SUMPRODUCT(('Fixed assets'!$R$2:$R$1000)*('Fixed assets'!$P$2:$P$1000<$A657)*('Fixed assets'!$Q$2:$Q$1000=Costs!AJ$617))-SUMPRODUCT(('Fixed assets'!$S$2:$S$1000)*('Fixed assets'!$P$2:$P$1000<Costs!$A657)*('Fixed assets'!$Q$2:$Q$1000=Costs!AJ$617))-SUMPRODUCT(('Fixed assets'!$Q$2:$Q$1000=Costs!AJ$617)*('Fixed assets'!$U$2:$U$1000=Costs!$A657)*('Fixed assets'!$S$2:$S$1000))+SUMPRODUCT(('Fixed assets'!$Q$2:$Q$1000=Costs!AJ$617)*('Fixed assets'!$P$2:$P$1000=Costs!$A657)*('Fixed assets'!$U$2:$U$1000=Costs!$A657)*('Fixed assets'!$R$2:$R$1000))","v":0},{"$f":"SUMPRODUCT(('Fixed assets'!$R$2:$R$1000)*('Fixed assets'!$P$2:$P$1000<$A657)*('Fixed assets'!$Q$2:$Q$1000=Costs!AK$617))-SUMPRODUCT(('Fixed assets'!$S$2:$S$1000)*('Fixed assets'!$P$2:$P$1000<Costs!$A657)*('Fixed assets'!$Q$2:$Q$1000=Costs!AK$617))-SUMPRODUCT(('Fixed assets'!$Q$2:$Q$1000=Costs!AK$617)*('Fixed assets'!$U$2:$U$1000=Costs!$A657)*('Fixed assets'!$S$2:$S$1000))+SUMPRODUCT(('Fixed assets'!$Q$2:$Q$1000=Costs!AK$617)*('Fixed assets'!$P$2:$P$1000=Costs!$A657)*('Fixed assets'!$U$2:$U$1000=Costs!$A657)*('Fixed assets'!$R$2:$R$1000))","v":0},{"$f":"SUMPRODUCT(('Fixed assets'!$R$2:$R$1000)*('Fixed assets'!$P$2:$P$1000<$A657)*('Fixed assets'!$Q$2:$Q$1000=Costs!AL$617))-SUMPRODUCT(('Fixed assets'!$S$2:$S$1000)*('Fixed assets'!$P$2:$P$1000<Costs!$A657)*('Fixed assets'!$Q$2:$Q$1000=Costs!AL$617))-SUMPRODUCT(('Fixed assets'!$Q$2:$Q$1000=Costs!AL$617)*('Fixed assets'!$U$2:$U$1000=Costs!$A657)*('Fixed assets'!$S$2:$S$1000))+SUMPRODUCT(('Fixed assets'!$Q$2:$Q$1000=Costs!AL$617)*('Fixed assets'!$P$2:$P$1000=Costs!$A657)*('Fixed assets'!$U$2:$U$1000=Costs!$A657)*('Fixed assets'!$R$2:$R$1000))","v":0},{"$f":"SUMPRODUCT(('Fixed assets'!$R$2:$R$1000)*('Fixed assets'!$P$2:$P$1000<$A657)*('Fixed assets'!$Q$2:$Q$1000=Costs!AM$617))-SUMPRODUCT(('Fixed assets'!$S$2:$S$1000)*('Fixed assets'!$P$2:$P$1000<Costs!$A657)*('Fixed assets'!$Q$2:$Q$1000=Costs!AM$617))-SUMPRODUCT(('Fixed assets'!$Q$2:$Q$1000=Costs!AM$617)*('Fixed assets'!$U$2:$U$1000=Costs!$A657)*('Fixed assets'!$S$2:$S$1000))+SUMPRODUCT(('Fixed assets'!$Q$2:$Q$1000=Costs!AM$617)*('Fixed assets'!$P$2:$P$1000=Costs!$A657)*('Fixed assets'!$U$2:$U$1000=Costs!$A657)*('Fixed assets'!$R$2:$R$1000))","v":0},{"$f":"SUMPRODUCT(('Fixed assets'!$R$2:$R$1000)*('Fixed assets'!$P$2:$P$1000<$A657)*('Fixed assets'!$Q$2:$Q$1000=Costs!AN$617))-SUMPRODUCT(('Fixed assets'!$S$2:$S$1000)*('Fixed assets'!$P$2:$P$1000<Costs!$A657)*('Fixed assets'!$Q$2:$Q$1000=Costs!AN$617))-SUMPRODUCT(('Fixed assets'!$Q$2:$Q$1000=Costs!AN$617)*('Fixed assets'!$U$2:$U$1000=Costs!$A657)*('Fixed assets'!$S$2:$S$1000))+SUMPRODUCT(('Fixed assets'!$Q$2:$Q$1000=Costs!AN$617)*('Fixed assets'!$P$2:$P$1000=Costs!$A657)*('Fixed assets'!$U$2:$U$1000=Costs!$A657)*('Fixed assets'!$R$2:$R$1000))","v":0},{"$f":"SUMPRODUCT(('Fixed assets'!$R$2:$R$1000)*('Fixed assets'!$P$2:$P$1000<$A657)*('Fixed assets'!$Q$2:$Q$1000=Costs!AO$617))-SUMPRODUCT(('Fixed assets'!$S$2:$S$1000)*('Fixed assets'!$P$2:$P$1000<Costs!$A657)*('Fixed assets'!$Q$2:$Q$1000=Costs!AO$617))-SUMPRODUCT(('Fixed assets'!$Q$2:$Q$1000=Costs!AO$617)*('Fixed assets'!$U$2:$U$1000=Costs!$A657)*('Fixed assets'!$S$2:$S$1000))+SUMPRODUCT(('Fixed assets'!$Q$2:$Q$1000=Costs!AO$617)*('Fixed assets'!$P$2:$P$1000=Costs!$A657)*('Fixed assets'!$U$2:$U$1000=Costs!$A657)*('Fixed assets'!$R$2:$R$1000))","v":0},{"$f":"SUMPRODUCT(('Fixed assets'!$R$2:$R$1000)*('Fixed assets'!$P$2:$P$1000<$A657)*('Fixed assets'!$Q$2:$Q$1000=Costs!AP$617))-SUMPRODUCT(('Fixed assets'!$S$2:$S$1000)*('Fixed assets'!$P$2:$P$1000<Costs!$A657)*('Fixed assets'!$Q$2:$Q$1000=Costs!AP$617))-SUMPRODUCT(('Fixed assets'!$Q$2:$Q$1000=Costs!AP$617)*('Fixed assets'!$U$2:$U$1000=Costs!$A657)*('Fixed assets'!$S$2:$S$1000))+SUMPRODUCT(('Fixed assets'!$Q$2:$Q$1000=Costs!AP$617)*('Fixed assets'!$P$2:$P$1000=Costs!$A657)*('Fixed assets'!$U$2:$U$1000=Costs!$A657)*('Fixed assets'!$R$2:$R$1000))","v":0},{"$f":"SUMPRODUCT(('Fixed assets'!$R$2:$R$1000)*('Fixed assets'!$P$2:$P$1000<$A657)*('Fixed assets'!$Q$2:$Q$1000=Costs!AQ$617))-SUMPRODUCT(('Fixed assets'!$S$2:$S$1000)*('Fixed assets'!$P$2:$P$1000<Costs!$A657)*('Fixed assets'!$Q$2:$Q$1000=Costs!AQ$617))-SUMPRODUCT(('Fixed assets'!$Q$2:$Q$1000=Costs!AQ$617)*('Fixed assets'!$U$2:$U$1000=Costs!$A657)*('Fixed assets'!$S$2:$S$1000))+SUMPRODUCT(('Fixed assets'!$Q$2:$Q$1000=Costs!AQ$617)*('Fixed assets'!$P$2:$P$1000=Costs!$A657)*('Fixed assets'!$U$2:$U$1000=Costs!$A657)*('Fixed assets'!$R$2:$R$1000))","v":0}]
[2055,0,{"$f":"SUMPRODUCT(('Fixed assets'!$R$2:$R$1000)*('Fixed assets'!$P$2:$P$1000<$A658)*('Fixed assets'!$Q$2:$Q$1000=Costs!C$617))-SUMPRODUCT(('Fixed assets'!$S$2:$S$1000)*('Fixed assets'!$P$2:$P$1000<Costs!$A658)*('Fixed assets'!$Q$2:$Q$1000=Costs!C$617))-SUMPRODUCT(('Fixed assets'!$Q$2:$Q$1000=Costs!C$617)*('Fixed assets'!$U$2:$U$1000=Costs!$A658)*('Fixed assets'!$S$2:$S$1000))+SUMPRODUCT(('Fixed assets'!$Q$2:$Q$1000=Costs!C$617)*('Fixed assets'!$P$2:$P$1000=Costs!$A658)*('Fixed assets'!$U$2:$U$1000=Costs!$A658)*('Fixed assets'!$R$2:$R$1000))","v":0},{"$f":"SUMPRODUCT(('Fixed assets'!$R$2:$R$1000)*('Fixed assets'!$P$2:$P$1000<$A658)*('Fixed assets'!$Q$2:$Q$1000=Costs!D$617))-SUMPRODUCT(('Fixed assets'!$S$2:$S$1000)*('Fixed assets'!$P$2:$P$1000<Costs!$A658)*('Fixed assets'!$Q$2:$Q$1000=Costs!D$617))-SUMPRODUCT(('Fixed assets'!$Q$2:$Q$1000=Costs!D$617)*('Fixed assets'!$U$2:$U$1000=Costs!$A658)*('Fixed assets'!$S$2:$S$1000))+SUMPRODUCT(('Fixed assets'!$Q$2:$Q$1000=Costs!D$617)*('Fixed assets'!$P$2:$P$1000=Costs!$A658)*('Fixed assets'!$U$2:$U$1000=Costs!$A658)*('Fixed assets'!$R$2:$R$1000))","v":0},{"$f":"SUMPRODUCT(('Fixed assets'!$R$2:$R$1000)*('Fixed assets'!$P$2:$P$1000<$A658)*('Fixed assets'!$Q$2:$Q$1000=Costs!E$617))-SUMPRODUCT(('Fixed assets'!$S$2:$S$1000)*('Fixed assets'!$P$2:$P$1000<Costs!$A658)*('Fixed assets'!$Q$2:$Q$1000=Costs!E$617))-SUMPRODUCT(('Fixed assets'!$Q$2:$Q$1000=Costs!E$617)*('Fixed assets'!$U$2:$U$1000=Costs!$A658)*('Fixed assets'!$S$2:$S$1000))+SUMPRODUCT(('Fixed assets'!$Q$2:$Q$1000=Costs!E$617)*('Fixed assets'!$P$2:$P$1000=Costs!$A658)*('Fixed assets'!$U$2:$U$1000=Costs!$A658)*('Fixed assets'!$R$2:$R$1000))","v":0},{"$f":"SUMPRODUCT(('Fixed assets'!$R$2:$R$1000)*('Fixed assets'!$P$2:$P$1000<$A658)*('Fixed assets'!$Q$2:$Q$1000=Costs!F$617))-SUMPRODUCT(('Fixed assets'!$S$2:$S$1000)*('Fixed assets'!$P$2:$P$1000<Costs!$A658)*('Fixed assets'!$Q$2:$Q$1000=Costs!F$617))-SUMPRODUCT(('Fixed assets'!$Q$2:$Q$1000=Costs!F$617)*('Fixed assets'!$U$2:$U$1000=Costs!$A658)*('Fixed assets'!$S$2:$S$1000))+SUMPRODUCT(('Fixed assets'!$Q$2:$Q$1000=Costs!F$617)*('Fixed assets'!$P$2:$P$1000=Costs!$A658)*('Fixed assets'!$U$2:$U$1000=Costs!$A658)*('Fixed assets'!$R$2:$R$1000))","v":0},{"$f":"SUMPRODUCT(('Fixed assets'!$R$2:$R$1000)*('Fixed assets'!$P$2:$P$1000<$A658)*('Fixed assets'!$Q$2:$Q$1000=Costs!G$617))-SUMPRODUCT(('Fixed assets'!$S$2:$S$1000)*('Fixed assets'!$P$2:$P$1000<Costs!$A658)*('Fixed assets'!$Q$2:$Q$1000=Costs!G$617))-SUMPRODUCT(('Fixed assets'!$Q$2:$Q$1000=Costs!G$617)*('Fixed assets'!$U$2:$U$1000=Costs!$A658)*('Fixed assets'!$S$2:$S$1000))+SUMPRODUCT(('Fixed assets'!$Q$2:$Q$1000=Costs!G$617)*('Fixed assets'!$P$2:$P$1000=Costs!$A658)*('Fixed assets'!$U$2:$U$1000=Costs!$A658)*('Fixed assets'!$R$2:$R$1000))","v":0},{"$f":"SUMPRODUCT(('Fixed assets'!$R$2:$R$1000)*('Fixed assets'!$P$2:$P$1000<$A658)*('Fixed assets'!$Q$2:$Q$1000=Costs!H$617))-SUMPRODUCT(('Fixed assets'!$S$2:$S$1000)*('Fixed assets'!$P$2:$P$1000<Costs!$A658)*('Fixed assets'!$Q$2:$Q$1000=Costs!H$617))-SUMPRODUCT(('Fixed assets'!$Q$2:$Q$1000=Costs!H$617)*('Fixed assets'!$U$2:$U$1000=Costs!$A658)*('Fixed assets'!$S$2:$S$1000))+SUMPRODUCT(('Fixed assets'!$Q$2:$Q$1000=Costs!H$617)*('Fixed assets'!$P$2:$P$1000=Costs!$A658)*('Fixed assets'!$U$2:$U$1000=Costs!$A658)*('Fixed assets'!$R$2:$R$1000))","v":0},{"$f":"SUMPRODUCT(('Fixed assets'!$R$2:$R$1000)*('Fixed assets'!$P$2:$P$1000<$A658)*('Fixed assets'!$Q$2:$Q$1000=Costs!I$617))-SUMPRODUCT(('Fixed assets'!$S$2:$S$1000)*('Fixed assets'!$P$2:$P$1000<Costs!$A658)*('Fixed assets'!$Q$2:$Q$1000=Costs!I$617))-SUMPRODUCT(('Fixed assets'!$Q$2:$Q$1000=Costs!I$617)*('Fixed assets'!$U$2:$U$1000=Costs!$A658)*('Fixed assets'!$S$2:$S$1000))+SUMPRODUCT(('Fixed assets'!$Q$2:$Q$1000=Costs!I$617)*('Fixed assets'!$P$2:$P$1000=Costs!$A658)*('Fixed assets'!$U$2:$U$1000=Costs!$A658)*('Fixed assets'!$R$2:$R$1000))","v":0},{"$f":"SUMPRODUCT(('Fixed assets'!$R$2:$R$1000)*('Fixed assets'!$P$2:$P$1000<$A658)*('Fixed assets'!$Q$2:$Q$1000=Costs!J$617))-SUMPRODUCT(('Fixed assets'!$S$2:$S$1000)*('Fixed assets'!$P$2:$P$1000<Costs!$A658)*('Fixed assets'!$Q$2:$Q$1000=Costs!J$617))-SUMPRODUCT(('Fixed assets'!$Q$2:$Q$1000=Costs!J$617)*('Fixed assets'!$U$2:$U$1000=Costs!$A658)*('Fixed assets'!$S$2:$S$1000))+SUMPRODUCT(('Fixed assets'!$Q$2:$Q$1000=Costs!J$617)*('Fixed assets'!$P$2:$P$1000=Costs!$A658)*('Fixed assets'!$U$2:$U$1000=Costs!$A658)*('Fixed assets'!$R$2:$R$1000))","v":0},{"$f":"SUMPRODUCT(('Fixed assets'!$R$2:$R$1000)*('Fixed assets'!$P$2:$P$1000<$A658)*('Fixed assets'!$Q$2:$Q$1000=Costs!K$617))-SUMPRODUCT(('Fixed assets'!$S$2:$S$1000)*('Fixed assets'!$P$2:$P$1000<Costs!$A658)*('Fixed assets'!$Q$2:$Q$1000=Costs!K$617))-SUMPRODUCT(('Fixed assets'!$Q$2:$Q$1000=Costs!K$617)*('Fixed assets'!$U$2:$U$1000=Costs!$A658)*('Fixed assets'!$S$2:$S$1000))+SUMPRODUCT(('Fixed assets'!$Q$2:$Q$1000=Costs!K$617)*('Fixed assets'!$P$2:$P$1000=Costs!$A658)*('Fixed assets'!$U$2:$U$1000=Costs!$A658)*('Fixed assets'!$R$2:$R$1000))","v":0},{"$f":"SUMPRODUCT(('Fixed assets'!$R$2:$R$1000)*('Fixed assets'!$P$2:$P$1000<$A658)*('Fixed assets'!$Q$2:$Q$1000=Costs!L$617))-SUMPRODUCT(('Fixed assets'!$S$2:$S$1000)*('Fixed assets'!$P$2:$P$1000<Costs!$A658)*('Fixed assets'!$Q$2:$Q$1000=Costs!L$617))-SUMPRODUCT(('Fixed assets'!$Q$2:$Q$1000=Costs!L$617)*('Fixed assets'!$U$2:$U$1000=Costs!$A658)*('Fixed assets'!$S$2:$S$1000))+SUMPRODUCT(('Fixed assets'!$Q$2:$Q$1000=Costs!L$617)*('Fixed assets'!$P$2:$P$1000=Costs!$A658)*('Fixed assets'!$U$2:$U$1000=Costs!$A658)*('Fixed assets'!$R$2:$R$1000))","v":0},{"$f":"SUMPRODUCT(('Fixed assets'!$R$2:$R$1000)*('Fixed assets'!$P$2:$P$1000<$A658)*('Fixed assets'!$Q$2:$Q$1000=Costs!M$617))-SUMPRODUCT(('Fixed assets'!$S$2:$S$1000)*('Fixed assets'!$P$2:$P$1000<Costs!$A658)*('Fixed assets'!$Q$2:$Q$1000=Costs!M$617))-SUMPRODUCT(('Fixed assets'!$Q$2:$Q$1000=Costs!M$617)*('Fixed assets'!$U$2:$U$1000=Costs!$A658)*('Fixed assets'!$S$2:$S$1000))+SUMPRODUCT(('Fixed assets'!$Q$2:$Q$1000=Costs!M$617)*('Fixed assets'!$P$2:$P$1000=Costs!$A658)*('Fixed assets'!$U$2:$U$1000=Costs!$A658)*('Fixed assets'!$R$2:$R$1000))","v":0},{"$f":"SUMPRODUCT(('Fixed assets'!$R$2:$R$1000)*('Fixed assets'!$P$2:$P$1000<$A658)*('Fixed assets'!$Q$2:$Q$1000=Costs!N$617))-SUMPRODUCT(('Fixed assets'!$S$2:$S$1000)*('Fixed assets'!$P$2:$P$1000<Costs!$A658)*('Fixed assets'!$Q$2:$Q$1000=Costs!N$617))-SUMPRODUCT(('Fixed assets'!$Q$2:$Q$1000=Costs!N$617)*('Fixed assets'!$U$2:$U$1000=Costs!$A658)*('Fixed assets'!$S$2:$S$1000))+SUMPRODUCT(('Fixed assets'!$Q$2:$Q$1000=Costs!N$617)*('Fixed assets'!$P$2:$P$1000=Costs!$A658)*('Fixed assets'!$U$2:$U$1000=Costs!$A658)*('Fixed assets'!$R$2:$R$1000))","v":0},{"$f":"SUMPRODUCT(('Fixed assets'!$R$2:$R$1000)*('Fixed assets'!$P$2:$P$1000<$A658)*('Fixed assets'!$Q$2:$Q$1000=Costs!O$617))-SUMPRODUCT(('Fixed assets'!$S$2:$S$1000)*('Fixed assets'!$P$2:$P$1000<Costs!$A658)*('Fixed assets'!$Q$2:$Q$1000=Costs!O$617))-SUMPRODUCT(('Fixed assets'!$Q$2:$Q$1000=Costs!O$617)*('Fixed assets'!$U$2:$U$1000=Costs!$A658)*('Fixed assets'!$S$2:$S$1000))+SUMPRODUCT(('Fixed assets'!$Q$2:$Q$1000=Costs!O$617)*('Fixed assets'!$P$2:$P$1000=Costs!$A658)*('Fixed assets'!$U$2:$U$1000=Costs!$A658)*('Fixed assets'!$R$2:$R$1000))","v":0},{"$f":"SUMPRODUCT(('Fixed assets'!$R$2:$R$1000)*('Fixed assets'!$P$2:$P$1000<$A658)*('Fixed assets'!$Q$2:$Q$1000=Costs!P$617))-SUMPRODUCT(('Fixed assets'!$S$2:$S$1000)*('Fixed assets'!$P$2:$P$1000<Costs!$A658)*('Fixed assets'!$Q$2:$Q$1000=Costs!P$617))-SUMPRODUCT(('Fixed assets'!$Q$2:$Q$1000=Costs!P$617)*('Fixed assets'!$U$2:$U$1000=Costs!$A658)*('Fixed assets'!$S$2:$S$1000))+SUMPRODUCT(('Fixed assets'!$Q$2:$Q$1000=Costs!P$617)*('Fixed assets'!$P$2:$P$1000=Costs!$A658)*('Fixed assets'!$U$2:$U$1000=Costs!$A658)*('Fixed assets'!$R$2:$R$1000))","v":0},{"$f":"SUMPRODUCT(('Fixed assets'!$R$2:$R$1000)*('Fixed assets'!$P$2:$P$1000<$A658)*('Fixed assets'!$Q$2:$Q$1000=Costs!Q$617))-SUMPRODUCT(('Fixed assets'!$S$2:$S$1000)*('Fixed assets'!$P$2:$P$1000<Costs!$A658)*('Fixed assets'!$Q$2:$Q$1000=Costs!Q$617))-SUMPRODUCT(('Fixed assets'!$Q$2:$Q$1000=Costs!Q$617)*('Fixed assets'!$U$2:$U$1000=Costs!$A658)*('Fixed assets'!$S$2:$S$1000))+SUMPRODUCT(('Fixed assets'!$Q$2:$Q$1000=Costs!Q$617)*('Fixed assets'!$P$2:$P$1000=Costs!$A658)*('Fixed assets'!$U$2:$U$1000=Costs!$A658)*('Fixed assets'!$R$2:$R$1000))","v":0},{"$f":"SUMPRODUCT(('Fixed assets'!$R$2:$R$1000)*('Fixed assets'!$P$2:$P$1000<$A658)*('Fixed assets'!$Q$2:$Q$1000=Costs!R$617))-SUMPRODUCT(('Fixed assets'!$S$2:$S$1000)*('Fixed assets'!$P$2:$P$1000<Costs!$A658)*('Fixed assets'!$Q$2:$Q$1000=Costs!R$617))-SUMPRODUCT(('Fixed assets'!$Q$2:$Q$1000=Costs!R$617)*('Fixed assets'!$U$2:$U$1000=Costs!$A658)*('Fixed assets'!$S$2:$S$1000))+SUMPRODUCT(('Fixed assets'!$Q$2:$Q$1000=Costs!R$617)*('Fixed assets'!$P$2:$P$1000=Costs!$A658)*('Fixed assets'!$U$2:$U$1000=Costs!$A658)*('Fixed assets'!$R$2:$R$1000))","v":0},{"$f":"SUMPRODUCT(('Fixed assets'!$R$2:$R$1000)*('Fixed assets'!$P$2:$P$1000<$A658)*('Fixed assets'!$Q$2:$Q$1000=Costs!S$617))-SUMPRODUCT(('Fixed assets'!$S$2:$S$1000)*('Fixed assets'!$P$2:$P$1000<Costs!$A658)*('Fixed assets'!$Q$2:$Q$1000=Costs!S$617))-SUMPRODUCT(('Fixed assets'!$Q$2:$Q$1000=Costs!S$617)*('Fixed assets'!$U$2:$U$1000=Costs!$A658)*('Fixed assets'!$S$2:$S$1000))+SUMPRODUCT(('Fixed assets'!$Q$2:$Q$1000=Costs!S$617)*('Fixed assets'!$P$2:$P$1000=Costs!$A658)*('Fixed assets'!$U$2:$U$1000=Costs!$A658)*('Fixed assets'!$R$2:$R$1000))","v":0},{"$f":"SUMPRODUCT(('Fixed assets'!$R$2:$R$1000)*('Fixed assets'!$P$2:$P$1000<$A658)*('Fixed assets'!$Q$2:$Q$1000=Costs!T$617))-SUMPRODUCT(('Fixed assets'!$S$2:$S$1000)*('Fixed assets'!$P$2:$P$1000<Costs!$A658)*('Fixed assets'!$Q$2:$Q$1000=Costs!T$617))-SUMPRODUCT(('Fixed assets'!$Q$2:$Q$1000=Costs!T$617)*('Fixed assets'!$U$2:$U$1000=Costs!$A658)*('Fixed assets'!$S$2:$S$1000))+SUMPRODUCT(('Fixed assets'!$Q$2:$Q$1000=Costs!T$617)*('Fixed assets'!$P$2:$P$1000=Costs!$A658)*('Fixed assets'!$U$2:$U$1000=Costs!$A658)*('Fixed assets'!$R$2:$R$1000))","v":0},{"$f":"SUMPRODUCT(('Fixed assets'!$R$2:$R$1000)*('Fixed assets'!$P$2:$P$1000<$A658)*('Fixed assets'!$Q$2:$Q$1000=Costs!U$617))-SUMPRODUCT(('Fixed assets'!$S$2:$S$1000)*('Fixed assets'!$P$2:$P$1000<Costs!$A658)*('Fixed assets'!$Q$2:$Q$1000=Costs!U$617))-SUMPRODUCT(('Fixed assets'!$Q$2:$Q$1000=Costs!U$617)*('Fixed assets'!$U$2:$U$1000=Costs!$A658)*('Fixed assets'!$S$2:$S$1000))+SUMPRODUCT(('Fixed assets'!$Q$2:$Q$1000=Costs!U$617)*('Fixed assets'!$P$2:$P$1000=Costs!$A658)*('Fixed assets'!$U$2:$U$1000=Costs!$A658)*('Fixed assets'!$R$2:$R$1000))","v":0},{"$f":"SUMPRODUCT(('Fixed assets'!$R$2:$R$1000)*('Fixed assets'!$P$2:$P$1000<$A658)*('Fixed assets'!$Q$2:$Q$1000=Costs!V$617))-SUMPRODUCT(('Fixed assets'!$S$2:$S$1000)*('Fixed assets'!$P$2:$P$1000<Costs!$A658)*('Fixed assets'!$Q$2:$Q$1000=Costs!V$617))-SUMPRODUCT(('Fixed assets'!$Q$2:$Q$1000=Costs!V$617)*('Fixed assets'!$U$2:$U$1000=Costs!$A658)*('Fixed assets'!$S$2:$S$1000))+SUMPRODUCT(('Fixed assets'!$Q$2:$Q$1000=Costs!V$617)*('Fixed assets'!$P$2:$P$1000=Costs!$A658)*('Fixed assets'!$U$2:$U$1000=Costs!$A658)*('Fixed assets'!$R$2:$R$1000))","v":0},{"$f":"SUMPRODUCT(('Fixed assets'!$R$2:$R$1000)*('Fixed assets'!$P$2:$P$1000<$A658)*('Fixed assets'!$Q$2:$Q$1000=Costs!W$617))-SUMPRODUCT(('Fixed assets'!$S$2:$S$1000)*('Fixed assets'!$P$2:$P$1000<Costs!$A658)*('Fixed assets'!$Q$2:$Q$1000=Costs!W$617))-SUMPRODUCT(('Fixed assets'!$Q$2:$Q$1000=Costs!W$617)*('Fixed assets'!$U$2:$U$1000=Costs!$A658)*('Fixed assets'!$S$2:$S$1000))+SUMPRODUCT(('Fixed assets'!$Q$2:$Q$1000=Costs!W$617)*('Fixed assets'!$P$2:$P$1000=Costs!$A658)*('Fixed assets'!$U$2:$U$1000=Costs!$A658)*('Fixed assets'!$R$2:$R$1000))","v":0},{"$f":"SUMPRODUCT(('Fixed assets'!$R$2:$R$1000)*('Fixed assets'!$P$2:$P$1000<$A658)*('Fixed assets'!$Q$2:$Q$1000=Costs!X$617))-SUMPRODUCT(('Fixed assets'!$S$2:$S$1000)*('Fixed assets'!$P$2:$P$1000<Costs!$A658)*('Fixed assets'!$Q$2:$Q$1000=Costs!X$617))-SUMPRODUCT(('Fixed assets'!$Q$2:$Q$1000=Costs!X$617)*('Fixed assets'!$U$2:$U$1000=Costs!$A658)*('Fixed assets'!$S$2:$S$1000))+SUMPRODUCT(('Fixed assets'!$Q$2:$Q$1000=Costs!X$617)*('Fixed assets'!$P$2:$P$1000=Costs!$A658)*('Fixed assets'!$U$2:$U$1000=Costs!$A658)*('Fixed assets'!$R$2:$R$1000))","v":0},{"$f":"SUMPRODUCT(('Fixed assets'!$R$2:$R$1000)*('Fixed assets'!$P$2:$P$1000<$A658)*('Fixed assets'!$Q$2:$Q$1000=Costs!Y$617))-SUMPRODUCT(('Fixed assets'!$S$2:$S$1000)*('Fixed assets'!$P$2:$P$1000<Costs!$A658)*('Fixed assets'!$Q$2:$Q$1000=Costs!Y$617))-SUMPRODUCT(('Fixed assets'!$Q$2:$Q$1000=Costs!Y$617)*('Fixed assets'!$U$2:$U$1000=Costs!$A658)*('Fixed assets'!$S$2:$S$1000))+SUMPRODUCT(('Fixed assets'!$Q$2:$Q$1000=Costs!Y$617)*('Fixed assets'!$P$2:$P$1000=Costs!$A658)*('Fixed assets'!$U$2:$U$1000=Costs!$A658)*('Fixed assets'!$R$2:$R$1000))","v":0},{"$f":"SUMPRODUCT(('Fixed assets'!$R$2:$R$1000)*('Fixed assets'!$P$2:$P$1000<$A658)*('Fixed assets'!$Q$2:$Q$1000=Costs!Z$617))-SUMPRODUCT(('Fixed assets'!$S$2:$S$1000)*('Fixed assets'!$P$2:$P$1000<Costs!$A658)*('Fixed assets'!$Q$2:$Q$1000=Costs!Z$617))-SUMPRODUCT(('Fixed assets'!$Q$2:$Q$1000=Costs!Z$617)*('Fixed assets'!$U$2:$U$1000=Costs!$A658)*('Fixed assets'!$S$2:$S$1000))+SUMPRODUCT(('Fixed assets'!$Q$2:$Q$1000=Costs!Z$617)*('Fixed assets'!$P$2:$P$1000=Costs!$A658)*('Fixed assets'!$U$2:$U$1000=Costs!$A658)*('Fixed assets'!$R$2:$R$1000))","v":0},{"$f":"SUMPRODUCT(('Fixed assets'!$R$2:$R$1000)*('Fixed assets'!$P$2:$P$1000<$A658)*('Fixed assets'!$Q$2:$Q$1000=Costs!AA$617))-SUMPRODUCT(('Fixed assets'!$S$2:$S$1000)*('Fixed assets'!$P$2:$P$1000<Costs!$A658)*('Fixed assets'!$Q$2:$Q$1000=Costs!AA$617))-SUMPRODUCT(('Fixed assets'!$Q$2:$Q$1000=Costs!AA$617)*('Fixed assets'!$U$2:$U$1000=Costs!$A658)*('Fixed assets'!$S$2:$S$1000))+SUMPRODUCT(('Fixed assets'!$Q$2:$Q$1000=Costs!AA$617)*('Fixed assets'!$P$2:$P$1000=Costs!$A658)*('Fixed assets'!$U$2:$U$1000=Costs!$A658)*('Fixed assets'!$R$2:$R$1000))","v":0},{"$f":"SUMPRODUCT(('Fixed assets'!$R$2:$R$1000)*('Fixed assets'!$P$2:$P$1000<$A658)*('Fixed assets'!$Q$2:$Q$1000=Costs!AB$617))-SUMPRODUCT(('Fixed assets'!$S$2:$S$1000)*('Fixed assets'!$P$2:$P$1000<Costs!$A658)*('Fixed assets'!$Q$2:$Q$1000=Costs!AB$617))-SUMPRODUCT(('Fixed assets'!$Q$2:$Q$1000=Costs!AB$617)*('Fixed assets'!$U$2:$U$1000=Costs!$A658)*('Fixed assets'!$S$2:$S$1000))+SUMPRODUCT(('Fixed assets'!$Q$2:$Q$1000=Costs!AB$617)*('Fixed assets'!$P$2:$P$1000=Costs!$A658)*('Fixed assets'!$U$2:$U$1000=Costs!$A658)*('Fixed assets'!$R$2:$R$1000))","v":0},{"$f":"SUMPRODUCT(('Fixed assets'!$R$2:$R$1000)*('Fixed assets'!$P$2:$P$1000<$A658)*('Fixed assets'!$Q$2:$Q$1000=Costs!AC$617))-SUMPRODUCT(('Fixed assets'!$S$2:$S$1000)*('Fixed assets'!$P$2:$P$1000<Costs!$A658)*('Fixed assets'!$Q$2:$Q$1000=Costs!AC$617))-SUMPRODUCT(('Fixed assets'!$Q$2:$Q$1000=Costs!AC$617)*('Fixed assets'!$U$2:$U$1000=Costs!$A658)*('Fixed assets'!$S$2:$S$1000))+SUMPRODUCT(('Fixed assets'!$Q$2:$Q$1000=Costs!AC$617)*('Fixed assets'!$P$2:$P$1000=Costs!$A658)*('Fixed assets'!$U$2:$U$1000=Costs!$A658)*('Fixed assets'!$R$2:$R$1000))","v":0},{"$f":"SUMPRODUCT(('Fixed assets'!$R$2:$R$1000)*('Fixed assets'!$P$2:$P$1000<$A658)*('Fixed assets'!$Q$2:$Q$1000=Costs!AD$617))-SUMPRODUCT(('Fixed assets'!$S$2:$S$1000)*('Fixed assets'!$P$2:$P$1000<Costs!$A658)*('Fixed assets'!$Q$2:$Q$1000=Costs!AD$617))-SUMPRODUCT(('Fixed assets'!$Q$2:$Q$1000=Costs!AD$617)*('Fixed assets'!$U$2:$U$1000=Costs!$A658)*('Fixed assets'!$S$2:$S$1000))+SUMPRODUCT(('Fixed assets'!$Q$2:$Q$1000=Costs!AD$617)*('Fixed assets'!$P$2:$P$1000=Costs!$A658)*('Fixed assets'!$U$2:$U$1000=Costs!$A658)*('Fixed assets'!$R$2:$R$1000))","v":0},{"$f":"SUMPRODUCT(('Fixed assets'!$R$2:$R$1000)*('Fixed assets'!$P$2:$P$1000<$A658)*('Fixed assets'!$Q$2:$Q$1000=Costs!AE$617))-SUMPRODUCT(('Fixed assets'!$S$2:$S$1000)*('Fixed assets'!$P$2:$P$1000<Costs!$A658)*('Fixed assets'!$Q$2:$Q$1000=Costs!AE$617))-SUMPRODUCT(('Fixed assets'!$Q$2:$Q$1000=Costs!AE$617)*('Fixed assets'!$U$2:$U$1000=Costs!$A658)*('Fixed assets'!$S$2:$S$1000))+SUMPRODUCT(('Fixed assets'!$Q$2:$Q$1000=Costs!AE$617)*('Fixed assets'!$P$2:$P$1000=Costs!$A658)*('Fixed assets'!$U$2:$U$1000=Costs!$A658)*('Fixed assets'!$R$2:$R$1000))","v":0},{"$f":"SUMPRODUCT(('Fixed assets'!$R$2:$R$1000)*('Fixed assets'!$P$2:$P$1000<$A658)*('Fixed assets'!$Q$2:$Q$1000=Costs!AF$617))-SUMPRODUCT(('Fixed assets'!$S$2:$S$1000)*('Fixed assets'!$P$2:$P$1000<Costs!$A658)*('Fixed assets'!$Q$2:$Q$1000=Costs!AF$617))-SUMPRODUCT(('Fixed assets'!$Q$2:$Q$1000=Costs!AF$617)*('Fixed assets'!$U$2:$U$1000=Costs!$A658)*('Fixed assets'!$S$2:$S$1000))+SUMPRODUCT(('Fixed assets'!$Q$2:$Q$1000=Costs!AF$617)*('Fixed assets'!$P$2:$P$1000=Costs!$A658)*('Fixed assets'!$U$2:$U$1000=Costs!$A658)*('Fixed assets'!$R$2:$R$1000))","v":0},{"$f":"SUMPRODUCT(('Fixed assets'!$R$2:$R$1000)*('Fixed assets'!$P$2:$P$1000<$A658)*('Fixed assets'!$Q$2:$Q$1000=Costs!AG$617))-SUMPRODUCT(('Fixed assets'!$S$2:$S$1000)*('Fixed assets'!$P$2:$P$1000<Costs!$A658)*('Fixed assets'!$Q$2:$Q$1000=Costs!AG$617))-SUMPRODUCT(('Fixed assets'!$Q$2:$Q$1000=Costs!AG$617)*('Fixed assets'!$U$2:$U$1000=Costs!$A658)*('Fixed assets'!$S$2:$S$1000))+SUMPRODUCT(('Fixed assets'!$Q$2:$Q$1000=Costs!AG$617)*('Fixed assets'!$P$2:$P$1000=Costs!$A658)*('Fixed assets'!$U$2:$U$1000=Costs!$A658)*('Fixed assets'!$R$2:$R$1000))","v":0},{"$f":"SUMPRODUCT(('Fixed assets'!$R$2:$R$1000)*('Fixed assets'!$P$2:$P$1000<$A658)*('Fixed assets'!$Q$2:$Q$1000=Costs!AH$617))-SUMPRODUCT(('Fixed assets'!$S$2:$S$1000)*('Fixed assets'!$P$2:$P$1000<Costs!$A658)*('Fixed assets'!$Q$2:$Q$1000=Costs!AH$617))-SUMPRODUCT(('Fixed assets'!$Q$2:$Q$1000=Costs!AH$617)*('Fixed assets'!$U$2:$U$1000=Costs!$A658)*('Fixed assets'!$S$2:$S$1000))+SUMPRODUCT(('Fixed assets'!$Q$2:$Q$1000=Costs!AH$617)*('Fixed assets'!$P$2:$P$1000=Costs!$A658)*('Fixed assets'!$U$2:$U$1000=Costs!$A658)*('Fixed assets'!$R$2:$R$1000))","v":0},{"$f":"SUMPRODUCT(('Fixed assets'!$R$2:$R$1000)*('Fixed assets'!$P$2:$P$1000<$A658)*('Fixed assets'!$Q$2:$Q$1000=Costs!AI$617))-SUMPRODUCT(('Fixed assets'!$S$2:$S$1000)*('Fixed assets'!$P$2:$P$1000<Costs!$A658)*('Fixed assets'!$Q$2:$Q$1000=Costs!AI$617))-SUMPRODUCT(('Fixed assets'!$Q$2:$Q$1000=Costs!AI$617)*('Fixed assets'!$U$2:$U$1000=Costs!$A658)*('Fixed assets'!$S$2:$S$1000))+SUMPRODUCT(('Fixed assets'!$Q$2:$Q$1000=Costs!AI$617)*('Fixed assets'!$P$2:$P$1000=Costs!$A658)*('Fixed assets'!$U$2:$U$1000=Costs!$A658)*('Fixed assets'!$R$2:$R$1000))","v":0},{"$f":"SUMPRODUCT(('Fixed assets'!$R$2:$R$1000)*('Fixed assets'!$P$2:$P$1000<$A658)*('Fixed assets'!$Q$2:$Q$1000=Costs!AJ$617))-SUMPRODUCT(('Fixed assets'!$S$2:$S$1000)*('Fixed assets'!$P$2:$P$1000<Costs!$A658)*('Fixed assets'!$Q$2:$Q$1000=Costs!AJ$617))-SUMPRODUCT(('Fixed assets'!$Q$2:$Q$1000=Costs!AJ$617)*('Fixed assets'!$U$2:$U$1000=Costs!$A658)*('Fixed assets'!$S$2:$S$1000))+SUMPRODUCT(('Fixed assets'!$Q$2:$Q$1000=Costs!AJ$617)*('Fixed assets'!$P$2:$P$1000=Costs!$A658)*('Fixed assets'!$U$2:$U$1000=Costs!$A658)*('Fixed assets'!$R$2:$R$1000))","v":0},{"$f":"SUMPRODUCT(('Fixed assets'!$R$2:$R$1000)*('Fixed assets'!$P$2:$P$1000<$A658)*('Fixed assets'!$Q$2:$Q$1000=Costs!AK$617))-SUMPRODUCT(('Fixed assets'!$S$2:$S$1000)*('Fixed assets'!$P$2:$P$1000<Costs!$A658)*('Fixed assets'!$Q$2:$Q$1000=Costs!AK$617))-SUMPRODUCT(('Fixed assets'!$Q$2:$Q$1000=Costs!AK$617)*('Fixed assets'!$U$2:$U$1000=Costs!$A658)*('Fixed assets'!$S$2:$S$1000))+SUMPRODUCT(('Fixed assets'!$Q$2:$Q$1000=Costs!AK$617)*('Fixed assets'!$P$2:$P$1000=Costs!$A658)*('Fixed assets'!$U$2:$U$1000=Costs!$A658)*('Fixed assets'!$R$2:$R$1000))","v":0},{"$f":"SUMPRODUCT(('Fixed assets'!$R$2:$R$1000)*('Fixed assets'!$P$2:$P$1000<$A658)*('Fixed assets'!$Q$2:$Q$1000=Costs!AL$617))-SUMPRODUCT(('Fixed assets'!$S$2:$S$1000)*('Fixed assets'!$P$2:$P$1000<Costs!$A658)*('Fixed assets'!$Q$2:$Q$1000=Costs!AL$617))-SUMPRODUCT(('Fixed assets'!$Q$2:$Q$1000=Costs!AL$617)*('Fixed assets'!$U$2:$U$1000=Costs!$A658)*('Fixed assets'!$S$2:$S$1000))+SUMPRODUCT(('Fixed assets'!$Q$2:$Q$1000=Costs!AL$617)*('Fixed assets'!$P$2:$P$1000=Costs!$A658)*('Fixed assets'!$U$2:$U$1000=Costs!$A658)*('Fixed assets'!$R$2:$R$1000))","v":0},{"$f":"SUMPRODUCT(('Fixed assets'!$R$2:$R$1000)*('Fixed assets'!$P$2:$P$1000<$A658)*('Fixed assets'!$Q$2:$Q$1000=Costs!AM$617))-SUMPRODUCT(('Fixed assets'!$S$2:$S$1000)*('Fixed assets'!$P$2:$P$1000<Costs!$A658)*('Fixed assets'!$Q$2:$Q$1000=Costs!AM$617))-SUMPRODUCT(('Fixed assets'!$Q$2:$Q$1000=Costs!AM$617)*('Fixed assets'!$U$2:$U$1000=Costs!$A658)*('Fixed assets'!$S$2:$S$1000))+SUMPRODUCT(('Fixed assets'!$Q$2:$Q$1000=Costs!AM$617)*('Fixed assets'!$P$2:$P$1000=Costs!$A658)*('Fixed assets'!$U$2:$U$1000=Costs!$A658)*('Fixed assets'!$R$2:$R$1000))","v":0},{"$f":"SUMPRODUCT(('Fixed assets'!$R$2:$R$1000)*('Fixed assets'!$P$2:$P$1000<$A658)*('Fixed assets'!$Q$2:$Q$1000=Costs!AN$617))-SUMPRODUCT(('Fixed assets'!$S$2:$S$1000)*('Fixed assets'!$P$2:$P$1000<Costs!$A658)*('Fixed assets'!$Q$2:$Q$1000=Costs!AN$617))-SUMPRODUCT(('Fixed assets'!$Q$2:$Q$1000=Costs!AN$617)*('Fixed assets'!$U$2:$U$1000=Costs!$A658)*('Fixed assets'!$S$2:$S$1000))+SUMPRODUCT(('Fixed assets'!$Q$2:$Q$1000=Costs!AN$617)*('Fixed assets'!$P$2:$P$1000=Costs!$A658)*('Fixed assets'!$U$2:$U$1000=Costs!$A658)*('Fixed assets'!$R$2:$R$1000))","v":0},{"$f":"SUMPRODUCT(('Fixed assets'!$R$2:$R$1000)*('Fixed assets'!$P$2:$P$1000<$A658)*('Fixed assets'!$Q$2:$Q$1000=Costs!AO$617))-SUMPRODUCT(('Fixed assets'!$S$2:$S$1000)*('Fixed assets'!$P$2:$P$1000<Costs!$A658)*('Fixed assets'!$Q$2:$Q$1000=Costs!AO$617))-SUMPRODUCT(('Fixed assets'!$Q$2:$Q$1000=Costs!AO$617)*('Fixed assets'!$U$2:$U$1000=Costs!$A658)*('Fixed assets'!$S$2:$S$1000))+SUMPRODUCT(('Fixed assets'!$Q$2:$Q$1000=Costs!AO$617)*('Fixed assets'!$P$2:$P$1000=Costs!$A658)*('Fixed assets'!$U$2:$U$1000=Costs!$A658)*('Fixed assets'!$R$2:$R$1000))","v":0},{"$f":"SUMPRODUCT(('Fixed assets'!$R$2:$R$1000)*('Fixed assets'!$P$2:$P$1000<$A658)*('Fixed assets'!$Q$2:$Q$1000=Costs!AP$617))-SUMPRODUCT(('Fixed assets'!$S$2:$S$1000)*('Fixed assets'!$P$2:$P$1000<Costs!$A658)*('Fixed assets'!$Q$2:$Q$1000=Costs!AP$617))-SUMPRODUCT(('Fixed assets'!$Q$2:$Q$1000=Costs!AP$617)*('Fixed assets'!$U$2:$U$1000=Costs!$A658)*('Fixed assets'!$S$2:$S$1000))+SUMPRODUCT(('Fixed assets'!$Q$2:$Q$1000=Costs!AP$617)*('Fixed assets'!$P$2:$P$1000=Costs!$A658)*('Fixed assets'!$U$2:$U$1000=Costs!$A658)*('Fixed assets'!$R$2:$R$1000))","v":0},{"$f":"SUMPRODUCT(('Fixed assets'!$R$2:$R$1000)*('Fixed assets'!$P$2:$P$1000<$A658)*('Fixed assets'!$Q$2:$Q$1000=Costs!AQ$617))-SUMPRODUCT(('Fixed assets'!$S$2:$S$1000)*('Fixed assets'!$P$2:$P$1000<Costs!$A658)*('Fixed assets'!$Q$2:$Q$1000=Costs!AQ$617))-SUMPRODUCT(('Fixed assets'!$Q$2:$Q$1000=Costs!AQ$617)*('Fixed assets'!$U$2:$U$1000=Costs!$A658)*('Fixed assets'!$S$2:$S$1000))+SUMPRODUCT(('Fixed assets'!$Q$2:$Q$1000=Costs!AQ$617)*('Fixed assets'!$P$2:$P$1000=Costs!$A658)*('Fixed assets'!$U$2:$U$1000=Costs!$A658)*('Fixed assets'!$R$2:$R$1000))","v":0}]
[2056,0,{"$f":"SUMPRODUCT(('Fixed assets'!$R$2:$R$1000)*('Fixed assets'!$P$2:$P$1000<$A659)*('Fixed assets'!$Q$2:$Q$1000=Costs!C$617))-SUMPRODUCT(('Fixed assets'!$S$2:$S$1000)*('Fixed assets'!$P$2:$P$1000<Costs!$A659)*('Fixed assets'!$Q$2:$Q$1000=Costs!C$617))-SUMPRODUCT(('Fixed assets'!$Q$2:$Q$1000=Costs!C$617)*('Fixed assets'!$U$2:$U$1000=Costs!$A659)*('Fixed assets'!$S$2:$S$1000))+SUMPRODUCT(('Fixed assets'!$Q$2:$Q$1000=Costs!C$617)*('Fixed assets'!$P$2:$P$1000=Costs!$A659)*('Fixed assets'!$U$2:$U$1000=Costs!$A659)*('Fixed assets'!$R$2:$R$1000))","v":0},{"$f":"SUMPRODUCT(('Fixed assets'!$R$2:$R$1000)*('Fixed assets'!$P$2:$P$1000<$A659)*('Fixed assets'!$Q$2:$Q$1000=Costs!D$617))-SUMPRODUCT(('Fixed assets'!$S$2:$S$1000)*('Fixed assets'!$P$2:$P$1000<Costs!$A659)*('Fixed assets'!$Q$2:$Q$1000=Costs!D$617))-SUMPRODUCT(('Fixed assets'!$Q$2:$Q$1000=Costs!D$617)*('Fixed assets'!$U$2:$U$1000=Costs!$A659)*('Fixed assets'!$S$2:$S$1000))+SUMPRODUCT(('Fixed assets'!$Q$2:$Q$1000=Costs!D$617)*('Fixed assets'!$P$2:$P$1000=Costs!$A659)*('Fixed assets'!$U$2:$U$1000=Costs!$A659)*('Fixed assets'!$R$2:$R$1000))","v":0},{"$f":"SUMPRODUCT(('Fixed assets'!$R$2:$R$1000)*('Fixed assets'!$P$2:$P$1000<$A659)*('Fixed assets'!$Q$2:$Q$1000=Costs!E$617))-SUMPRODUCT(('Fixed assets'!$S$2:$S$1000)*('Fixed assets'!$P$2:$P$1000<Costs!$A659)*('Fixed assets'!$Q$2:$Q$1000=Costs!E$617))-SUMPRODUCT(('Fixed assets'!$Q$2:$Q$1000=Costs!E$617)*('Fixed assets'!$U$2:$U$1000=Costs!$A659)*('Fixed assets'!$S$2:$S$1000))+SUMPRODUCT(('Fixed assets'!$Q$2:$Q$1000=Costs!E$617)*('Fixed assets'!$P$2:$P$1000=Costs!$A659)*('Fixed assets'!$U$2:$U$1000=Costs!$A659)*('Fixed assets'!$R$2:$R$1000))","v":0},{"$f":"SUMPRODUCT(('Fixed assets'!$R$2:$R$1000)*('Fixed assets'!$P$2:$P$1000<$A659)*('Fixed assets'!$Q$2:$Q$1000=Costs!F$617))-SUMPRODUCT(('Fixed assets'!$S$2:$S$1000)*('Fixed assets'!$P$2:$P$1000<Costs!$A659)*('Fixed assets'!$Q$2:$Q$1000=Costs!F$617))-SUMPRODUCT(('Fixed assets'!$Q$2:$Q$1000=Costs!F$617)*('Fixed assets'!$U$2:$U$1000=Costs!$A659)*('Fixed assets'!$S$2:$S$1000))+SUMPRODUCT(('Fixed assets'!$Q$2:$Q$1000=Costs!F$617)*('Fixed assets'!$P$2:$P$1000=Costs!$A659)*('Fixed assets'!$U$2:$U$1000=Costs!$A659)*('Fixed assets'!$R$2:$R$1000))","v":0},{"$f":"SUMPRODUCT(('Fixed assets'!$R$2:$R$1000)*('Fixed assets'!$P$2:$P$1000<$A659)*('Fixed assets'!$Q$2:$Q$1000=Costs!G$617))-SUMPRODUCT(('Fixed assets'!$S$2:$S$1000)*('Fixed assets'!$P$2:$P$1000<Costs!$A659)*('Fixed assets'!$Q$2:$Q$1000=Costs!G$617))-SUMPRODUCT(('Fixed assets'!$Q$2:$Q$1000=Costs!G$617)*('Fixed assets'!$U$2:$U$1000=Costs!$A659)*('Fixed assets'!$S$2:$S$1000))+SUMPRODUCT(('Fixed assets'!$Q$2:$Q$1000=Costs!G$617)*('Fixed assets'!$P$2:$P$1000=Costs!$A659)*('Fixed assets'!$U$2:$U$1000=Costs!$A659)*('Fixed assets'!$R$2:$R$1000))","v":0},{"$f":"SUMPRODUCT(('Fixed assets'!$R$2:$R$1000)*('Fixed assets'!$P$2:$P$1000<$A659)*('Fixed assets'!$Q$2:$Q$1000=Costs!H$617))-SUMPRODUCT(('Fixed assets'!$S$2:$S$1000)*('Fixed assets'!$P$2:$P$1000<Costs!$A659)*('Fixed assets'!$Q$2:$Q$1000=Costs!H$617))-SUMPRODUCT(('Fixed assets'!$Q$2:$Q$1000=Costs!H$617)*('Fixed assets'!$U$2:$U$1000=Costs!$A659)*('Fixed assets'!$S$2:$S$1000))+SUMPRODUCT(('Fixed assets'!$Q$2:$Q$1000=Costs!H$617)*('Fixed assets'!$P$2:$P$1000=Costs!$A659)*('Fixed assets'!$U$2:$U$1000=Costs!$A659)*('Fixed assets'!$R$2:$R$1000))","v":0},{"$f":"SUMPRODUCT(('Fixed assets'!$R$2:$R$1000)*('Fixed assets'!$P$2:$P$1000<$A659)*('Fixed assets'!$Q$2:$Q$1000=Costs!I$617))-SUMPRODUCT(('Fixed assets'!$S$2:$S$1000)*('Fixed assets'!$P$2:$P$1000<Costs!$A659)*('Fixed assets'!$Q$2:$Q$1000=Costs!I$617))-SUMPRODUCT(('Fixed assets'!$Q$2:$Q$1000=Costs!I$617)*('Fixed assets'!$U$2:$U$1000=Costs!$A659)*('Fixed assets'!$S$2:$S$1000))+SUMPRODUCT(('Fixed assets'!$Q$2:$Q$1000=Costs!I$617)*('Fixed assets'!$P$2:$P$1000=Costs!$A659)*('Fixed assets'!$U$2:$U$1000=Costs!$A659)*('Fixed assets'!$R$2:$R$1000))","v":0},{"$f":"SUMPRODUCT(('Fixed assets'!$R$2:$R$1000)*('Fixed assets'!$P$2:$P$1000<$A659)*('Fixed assets'!$Q$2:$Q$1000=Costs!J$617))-SUMPRODUCT(('Fixed assets'!$S$2:$S$1000)*('Fixed assets'!$P$2:$P$1000<Costs!$A659)*('Fixed assets'!$Q$2:$Q$1000=Costs!J$617))-SUMPRODUCT(('Fixed assets'!$Q$2:$Q$1000=Costs!J$617)*('Fixed assets'!$U$2:$U$1000=Costs!$A659)*('Fixed assets'!$S$2:$S$1000))+SUMPRODUCT(('Fixed assets'!$Q$2:$Q$1000=Costs!J$617)*('Fixed assets'!$P$2:$P$1000=Costs!$A659)*('Fixed assets'!$U$2:$U$1000=Costs!$A659)*('Fixed assets'!$R$2:$R$1000))","v":0},{"$f":"SUMPRODUCT(('Fixed assets'!$R$2:$R$1000)*('Fixed assets'!$P$2:$P$1000<$A659)*('Fixed assets'!$Q$2:$Q$1000=Costs!K$617))-SUMPRODUCT(('Fixed assets'!$S$2:$S$1000)*('Fixed assets'!$P$2:$P$1000<Costs!$A659)*('Fixed assets'!$Q$2:$Q$1000=Costs!K$617))-SUMPRODUCT(('Fixed assets'!$Q$2:$Q$1000=Costs!K$617)*('Fixed assets'!$U$2:$U$1000=Costs!$A659)*('Fixed assets'!$S$2:$S$1000))+SUMPRODUCT(('Fixed assets'!$Q$2:$Q$1000=Costs!K$617)*('Fixed assets'!$P$2:$P$1000=Costs!$A659)*('Fixed assets'!$U$2:$U$1000=Costs!$A659)*('Fixed assets'!$R$2:$R$1000))","v":0},{"$f":"SUMPRODUCT(('Fixed assets'!$R$2:$R$1000)*('Fixed assets'!$P$2:$P$1000<$A659)*('Fixed assets'!$Q$2:$Q$1000=Costs!L$617))-SUMPRODUCT(('Fixed assets'!$S$2:$S$1000)*('Fixed assets'!$P$2:$P$1000<Costs!$A659)*('Fixed assets'!$Q$2:$Q$1000=Costs!L$617))-SUMPRODUCT(('Fixed assets'!$Q$2:$Q$1000=Costs!L$617)*('Fixed assets'!$U$2:$U$1000=Costs!$A659)*('Fixed assets'!$S$2:$S$1000))+SUMPRODUCT(('Fixed assets'!$Q$2:$Q$1000=Costs!L$617)*('Fixed assets'!$P$2:$P$1000=Costs!$A659)*('Fixed assets'!$U$2:$U$1000=Costs!$A659)*('Fixed assets'!$R$2:$R$1000))","v":0},{"$f":"SUMPRODUCT(('Fixed assets'!$R$2:$R$1000)*('Fixed assets'!$P$2:$P$1000<$A659)*('Fixed assets'!$Q$2:$Q$1000=Costs!M$617))-SUMPRODUCT(('Fixed assets'!$S$2:$S$1000)*('Fixed assets'!$P$2:$P$1000<Costs!$A659)*('Fixed assets'!$Q$2:$Q$1000=Costs!M$617))-SUMPRODUCT(('Fixed assets'!$Q$2:$Q$1000=Costs!M$617)*('Fixed assets'!$U$2:$U$1000=Costs!$A659)*('Fixed assets'!$S$2:$S$1000))+SUMPRODUCT(('Fixed assets'!$Q$2:$Q$1000=Costs!M$617)*('Fixed assets'!$P$2:$P$1000=Costs!$A659)*('Fixed assets'!$U$2:$U$1000=Costs!$A659)*('Fixed assets'!$R$2:$R$1000))","v":0},{"$f":"SUMPRODUCT(('Fixed assets'!$R$2:$R$1000)*('Fixed assets'!$P$2:$P$1000<$A659)*('Fixed assets'!$Q$2:$Q$1000=Costs!N$617))-SUMPRODUCT(('Fixed assets'!$S$2:$S$1000)*('Fixed assets'!$P$2:$P$1000<Costs!$A659)*('Fixed assets'!$Q$2:$Q$1000=Costs!N$617))-SUMPRODUCT(('Fixed assets'!$Q$2:$Q$1000=Costs!N$617)*('Fixed assets'!$U$2:$U$1000=Costs!$A659)*('Fixed assets'!$S$2:$S$1000))+SUMPRODUCT(('Fixed assets'!$Q$2:$Q$1000=Costs!N$617)*('Fixed assets'!$P$2:$P$1000=Costs!$A659)*('Fixed assets'!$U$2:$U$1000=Costs!$A659)*('Fixed assets'!$R$2:$R$1000))","v":0},{"$f":"SUMPRODUCT(('Fixed assets'!$R$2:$R$1000)*('Fixed assets'!$P$2:$P$1000<$A659)*('Fixed assets'!$Q$2:$Q$1000=Costs!O$617))-SUMPRODUCT(('Fixed assets'!$S$2:$S$1000)*('Fixed assets'!$P$2:$P$1000<Costs!$A659)*('Fixed assets'!$Q$2:$Q$1000=Costs!O$617))-SUMPRODUCT(('Fixed assets'!$Q$2:$Q$1000=Costs!O$617)*('Fixed assets'!$U$2:$U$1000=Costs!$A659)*('Fixed assets'!$S$2:$S$1000))+SUMPRODUCT(('Fixed assets'!$Q$2:$Q$1000=Costs!O$617)*('Fixed assets'!$P$2:$P$1000=Costs!$A659)*('Fixed assets'!$U$2:$U$1000=Costs!$A659)*('Fixed assets'!$R$2:$R$1000))","v":0},{"$f":"SUMPRODUCT(('Fixed assets'!$R$2:$R$1000)*('Fixed assets'!$P$2:$P$1000<$A659)*('Fixed assets'!$Q$2:$Q$1000=Costs!P$617))-SUMPRODUCT(('Fixed assets'!$S$2:$S$1000)*('Fixed assets'!$P$2:$P$1000<Costs!$A659)*('Fixed assets'!$Q$2:$Q$1000=Costs!P$617))-SUMPRODUCT(('Fixed assets'!$Q$2:$Q$1000=Costs!P$617)*('Fixed assets'!$U$2:$U$1000=Costs!$A659)*('Fixed assets'!$S$2:$S$1000))+SUMPRODUCT(('Fixed assets'!$Q$2:$Q$1000=Costs!P$617)*('Fixed assets'!$P$2:$P$1000=Costs!$A659)*('Fixed assets'!$U$2:$U$1000=Costs!$A659)*('Fixed assets'!$R$2:$R$1000))","v":0},{"$f":"SUMPRODUCT(('Fixed assets'!$R$2:$R$1000)*('Fixed assets'!$P$2:$P$1000<$A659)*('Fixed assets'!$Q$2:$Q$1000=Costs!Q$617))-SUMPRODUCT(('Fixed assets'!$S$2:$S$1000)*('Fixed assets'!$P$2:$P$1000<Costs!$A659)*('Fixed assets'!$Q$2:$Q$1000=Costs!Q$617))-SUMPRODUCT(('Fixed assets'!$Q$2:$Q$1000=Costs!Q$617)*('Fixed assets'!$U$2:$U$1000=Costs!$A659)*('Fixed assets'!$S$2:$S$1000))+SUMPRODUCT(('Fixed assets'!$Q$2:$Q$1000=Costs!Q$617)*('Fixed assets'!$P$2:$P$1000=Costs!$A659)*('Fixed assets'!$U$2:$U$1000=Costs!$A659)*('Fixed assets'!$R$2:$R$1000))","v":0},{"$f":"SUMPRODUCT(('Fixed assets'!$R$2:$R$1000)*('Fixed assets'!$P$2:$P$1000<$A659)*('Fixed assets'!$Q$2:$Q$1000=Costs!R$617))-SUMPRODUCT(('Fixed assets'!$S$2:$S$1000)*('Fixed assets'!$P$2:$P$1000<Costs!$A659)*('Fixed assets'!$Q$2:$Q$1000=Costs!R$617))-SUMPRODUCT(('Fixed assets'!$Q$2:$Q$1000=Costs!R$617)*('Fixed assets'!$U$2:$U$1000=Costs!$A659)*('Fixed assets'!$S$2:$S$1000))+SUMPRODUCT(('Fixed assets'!$Q$2:$Q$1000=Costs!R$617)*('Fixed assets'!$P$2:$P$1000=Costs!$A659)*('Fixed assets'!$U$2:$U$1000=Costs!$A659)*('Fixed assets'!$R$2:$R$1000))","v":0},{"$f":"SUMPRODUCT(('Fixed assets'!$R$2:$R$1000)*('Fixed assets'!$P$2:$P$1000<$A659)*('Fixed assets'!$Q$2:$Q$1000=Costs!S$617))-SUMPRODUCT(('Fixed assets'!$S$2:$S$1000)*('Fixed assets'!$P$2:$P$1000<Costs!$A659)*('Fixed assets'!$Q$2:$Q$1000=Costs!S$617))-SUMPRODUCT(('Fixed assets'!$Q$2:$Q$1000=Costs!S$617)*('Fixed assets'!$U$2:$U$1000=Costs!$A659)*('Fixed assets'!$S$2:$S$1000))+SUMPRODUCT(('Fixed assets'!$Q$2:$Q$1000=Costs!S$617)*('Fixed assets'!$P$2:$P$1000=Costs!$A659)*('Fixed assets'!$U$2:$U$1000=Costs!$A659)*('Fixed assets'!$R$2:$R$1000))","v":0},{"$f":"SUMPRODUCT(('Fixed assets'!$R$2:$R$1000)*('Fixed assets'!$P$2:$P$1000<$A659)*('Fixed assets'!$Q$2:$Q$1000=Costs!T$617))-SUMPRODUCT(('Fixed assets'!$S$2:$S$1000)*('Fixed assets'!$P$2:$P$1000<Costs!$A659)*('Fixed assets'!$Q$2:$Q$1000=Costs!T$617))-SUMPRODUCT(('Fixed assets'!$Q$2:$Q$1000=Costs!T$617)*('Fixed assets'!$U$2:$U$1000=Costs!$A659)*('Fixed assets'!$S$2:$S$1000))+SUMPRODUCT(('Fixed assets'!$Q$2:$Q$1000=Costs!T$617)*('Fixed assets'!$P$2:$P$1000=Costs!$A659)*('Fixed assets'!$U$2:$U$1000=Costs!$A659)*('Fixed assets'!$R$2:$R$1000))","v":0},{"$f":"SUMPRODUCT(('Fixed assets'!$R$2:$R$1000)*('Fixed assets'!$P$2:$P$1000<$A659)*('Fixed assets'!$Q$2:$Q$1000=Costs!U$617))-SUMPRODUCT(('Fixed assets'!$S$2:$S$1000)*('Fixed assets'!$P$2:$P$1000<Costs!$A659)*('Fixed assets'!$Q$2:$Q$1000=Costs!U$617))-SUMPRODUCT(('Fixed assets'!$Q$2:$Q$1000=Costs!U$617)*('Fixed assets'!$U$2:$U$1000=Costs!$A659)*('Fixed assets'!$S$2:$S$1000))+SUMPRODUCT(('Fixed assets'!$Q$2:$Q$1000=Costs!U$617)*('Fixed assets'!$P$2:$P$1000=Costs!$A659)*('Fixed assets'!$U$2:$U$1000=Costs!$A659)*('Fixed assets'!$R$2:$R$1000))","v":0},{"$f":"SUMPRODUCT(('Fixed assets'!$R$2:$R$1000)*('Fixed assets'!$P$2:$P$1000<$A659)*('Fixed assets'!$Q$2:$Q$1000=Costs!V$617))-SUMPRODUCT(('Fixed assets'!$S$2:$S$1000)*('Fixed assets'!$P$2:$P$1000<Costs!$A659)*('Fixed assets'!$Q$2:$Q$1000=Costs!V$617))-SUMPRODUCT(('Fixed assets'!$Q$2:$Q$1000=Costs!V$617)*('Fixed assets'!$U$2:$U$1000=Costs!$A659)*('Fixed assets'!$S$2:$S$1000))+SUMPRODUCT(('Fixed assets'!$Q$2:$Q$1000=Costs!V$617)*('Fixed assets'!$P$2:$P$1000=Costs!$A659)*('Fixed assets'!$U$2:$U$1000=Costs!$A659)*('Fixed assets'!$R$2:$R$1000))","v":0},{"$f":"SUMPRODUCT(('Fixed assets'!$R$2:$R$1000)*('Fixed assets'!$P$2:$P$1000<$A659)*('Fixed assets'!$Q$2:$Q$1000=Costs!W$617))-SUMPRODUCT(('Fixed assets'!$S$2:$S$1000)*('Fixed assets'!$P$2:$P$1000<Costs!$A659)*('Fixed assets'!$Q$2:$Q$1000=Costs!W$617))-SUMPRODUCT(('Fixed assets'!$Q$2:$Q$1000=Costs!W$617)*('Fixed assets'!$U$2:$U$1000=Costs!$A659)*('Fixed assets'!$S$2:$S$1000))+SUMPRODUCT(('Fixed assets'!$Q$2:$Q$1000=Costs!W$617)*('Fixed assets'!$P$2:$P$1000=Costs!$A659)*('Fixed assets'!$U$2:$U$1000=Costs!$A659)*('Fixed assets'!$R$2:$R$1000))","v":0},{"$f":"SUMPRODUCT(('Fixed assets'!$R$2:$R$1000)*('Fixed assets'!$P$2:$P$1000<$A659)*('Fixed assets'!$Q$2:$Q$1000=Costs!X$617))-SUMPRODUCT(('Fixed assets'!$S$2:$S$1000)*('Fixed assets'!$P$2:$P$1000<Costs!$A659)*('Fixed assets'!$Q$2:$Q$1000=Costs!X$617))-SUMPRODUCT(('Fixed assets'!$Q$2:$Q$1000=Costs!X$617)*('Fixed assets'!$U$2:$U$1000=Costs!$A659)*('Fixed assets'!$S$2:$S$1000))+SUMPRODUCT(('Fixed assets'!$Q$2:$Q$1000=Costs!X$617)*('Fixed assets'!$P$2:$P$1000=Costs!$A659)*('Fixed assets'!$U$2:$U$1000=Costs!$A659)*('Fixed assets'!$R$2:$R$1000))","v":0},{"$f":"SUMPRODUCT(('Fixed assets'!$R$2:$R$1000)*('Fixed assets'!$P$2:$P$1000<$A659)*('Fixed assets'!$Q$2:$Q$1000=Costs!Y$617))-SUMPRODUCT(('Fixed assets'!$S$2:$S$1000)*('Fixed assets'!$P$2:$P$1000<Costs!$A659)*('Fixed assets'!$Q$2:$Q$1000=Costs!Y$617))-SUMPRODUCT(('Fixed assets'!$Q$2:$Q$1000=Costs!Y$617)*('Fixed assets'!$U$2:$U$1000=Costs!$A659)*('Fixed assets'!$S$2:$S$1000))+SUMPRODUCT(('Fixed assets'!$Q$2:$Q$1000=Costs!Y$617)*('Fixed assets'!$P$2:$P$1000=Costs!$A659)*('Fixed assets'!$U$2:$U$1000=Costs!$A659)*('Fixed assets'!$R$2:$R$1000))","v":0},{"$f":"SUMPRODUCT(('Fixed assets'!$R$2:$R$1000)*('Fixed assets'!$P$2:$P$1000<$A659)*('Fixed assets'!$Q$2:$Q$1000=Costs!Z$617))-SUMPRODUCT(('Fixed assets'!$S$2:$S$1000)*('Fixed assets'!$P$2:$P$1000<Costs!$A659)*('Fixed assets'!$Q$2:$Q$1000=Costs!Z$617))-SUMPRODUCT(('Fixed assets'!$Q$2:$Q$1000=Costs!Z$617)*('Fixed assets'!$U$2:$U$1000=Costs!$A659)*('Fixed assets'!$S$2:$S$1000))+SUMPRODUCT(('Fixed assets'!$Q$2:$Q$1000=Costs!Z$617)*('Fixed assets'!$P$2:$P$1000=Costs!$A659)*('Fixed assets'!$U$2:$U$1000=Costs!$A659)*('Fixed assets'!$R$2:$R$1000))","v":0},{"$f":"SUMPRODUCT(('Fixed assets'!$R$2:$R$1000)*('Fixed assets'!$P$2:$P$1000<$A659)*('Fixed assets'!$Q$2:$Q$1000=Costs!AA$617))-SUMPRODUCT(('Fixed assets'!$S$2:$S$1000)*('Fixed assets'!$P$2:$P$1000<Costs!$A659)*('Fixed assets'!$Q$2:$Q$1000=Costs!AA$617))-SUMPRODUCT(('Fixed assets'!$Q$2:$Q$1000=Costs!AA$617)*('Fixed assets'!$U$2:$U$1000=Costs!$A659)*('Fixed assets'!$S$2:$S$1000))+SUMPRODUCT(('Fixed assets'!$Q$2:$Q$1000=Costs!AA$617)*('Fixed assets'!$P$2:$P$1000=Costs!$A659)*('Fixed assets'!$U$2:$U$1000=Costs!$A659)*('Fixed assets'!$R$2:$R$1000))","v":0},{"$f":"SUMPRODUCT(('Fixed assets'!$R$2:$R$1000)*('Fixed assets'!$P$2:$P$1000<$A659)*('Fixed assets'!$Q$2:$Q$1000=Costs!AB$617))-SUMPRODUCT(('Fixed assets'!$S$2:$S$1000)*('Fixed assets'!$P$2:$P$1000<Costs!$A659)*('Fixed assets'!$Q$2:$Q$1000=Costs!AB$617))-SUMPRODUCT(('Fixed assets'!$Q$2:$Q$1000=Costs!AB$617)*('Fixed assets'!$U$2:$U$1000=Costs!$A659)*('Fixed assets'!$S$2:$S$1000))+SUMPRODUCT(('Fixed assets'!$Q$2:$Q$1000=Costs!AB$617)*('Fixed assets'!$P$2:$P$1000=Costs!$A659)*('Fixed assets'!$U$2:$U$1000=Costs!$A659)*('Fixed assets'!$R$2:$R$1000))","v":0},{"$f":"SUMPRODUCT(('Fixed assets'!$R$2:$R$1000)*('Fixed assets'!$P$2:$P$1000<$A659)*('Fixed assets'!$Q$2:$Q$1000=Costs!AC$617))-SUMPRODUCT(('Fixed assets'!$S$2:$S$1000)*('Fixed assets'!$P$2:$P$1000<Costs!$A659)*('Fixed assets'!$Q$2:$Q$1000=Costs!AC$617))-SUMPRODUCT(('Fixed assets'!$Q$2:$Q$1000=Costs!AC$617)*('Fixed assets'!$U$2:$U$1000=Costs!$A659)*('Fixed assets'!$S$2:$S$1000))+SUMPRODUCT(('Fixed assets'!$Q$2:$Q$1000=Costs!AC$617)*('Fixed assets'!$P$2:$P$1000=Costs!$A659)*('Fixed assets'!$U$2:$U$1000=Costs!$A659)*('Fixed assets'!$R$2:$R$1000))","v":0},{"$f":"SUMPRODUCT(('Fixed assets'!$R$2:$R$1000)*('Fixed assets'!$P$2:$P$1000<$A659)*('Fixed assets'!$Q$2:$Q$1000=Costs!AD$617))-SUMPRODUCT(('Fixed assets'!$S$2:$S$1000)*('Fixed assets'!$P$2:$P$1000<Costs!$A659)*('Fixed assets'!$Q$2:$Q$1000=Costs!AD$617))-SUMPRODUCT(('Fixed assets'!$Q$2:$Q$1000=Costs!AD$617)*('Fixed assets'!$U$2:$U$1000=Costs!$A659)*('Fixed assets'!$S$2:$S$1000))+SUMPRODUCT(('Fixed assets'!$Q$2:$Q$1000=Costs!AD$617)*('Fixed assets'!$P$2:$P$1000=Costs!$A659)*('Fixed assets'!$U$2:$U$1000=Costs!$A659)*('Fixed assets'!$R$2:$R$1000))","v":0},{"$f":"SUMPRODUCT(('Fixed assets'!$R$2:$R$1000)*('Fixed assets'!$P$2:$P$1000<$A659)*('Fixed assets'!$Q$2:$Q$1000=Costs!AE$617))-SUMPRODUCT(('Fixed assets'!$S$2:$S$1000)*('Fixed assets'!$P$2:$P$1000<Costs!$A659)*('Fixed assets'!$Q$2:$Q$1000=Costs!AE$617))-SUMPRODUCT(('Fixed assets'!$Q$2:$Q$1000=Costs!AE$617)*('Fixed assets'!$U$2:$U$1000=Costs!$A659)*('Fixed assets'!$S$2:$S$1000))+SUMPRODUCT(('Fixed assets'!$Q$2:$Q$1000=Costs!AE$617)*('Fixed assets'!$P$2:$P$1000=Costs!$A659)*('Fixed assets'!$U$2:$U$1000=Costs!$A659)*('Fixed assets'!$R$2:$R$1000))","v":0},{"$f":"SUMPRODUCT(('Fixed assets'!$R$2:$R$1000)*('Fixed assets'!$P$2:$P$1000<$A659)*('Fixed assets'!$Q$2:$Q$1000=Costs!AF$617))-SUMPRODUCT(('Fixed assets'!$S$2:$S$1000)*('Fixed assets'!$P$2:$P$1000<Costs!$A659)*('Fixed assets'!$Q$2:$Q$1000=Costs!AF$617))-SUMPRODUCT(('Fixed assets'!$Q$2:$Q$1000=Costs!AF$617)*('Fixed assets'!$U$2:$U$1000=Costs!$A659)*('Fixed assets'!$S$2:$S$1000))+SUMPRODUCT(('Fixed assets'!$Q$2:$Q$1000=Costs!AF$617)*('Fixed assets'!$P$2:$P$1000=Costs!$A659)*('Fixed assets'!$U$2:$U$1000=Costs!$A659)*('Fixed assets'!$R$2:$R$1000))","v":0},{"$f":"SUMPRODUCT(('Fixed assets'!$R$2:$R$1000)*('Fixed assets'!$P$2:$P$1000<$A659)*('Fixed assets'!$Q$2:$Q$1000=Costs!AG$617))-SUMPRODUCT(('Fixed assets'!$S$2:$S$1000)*('Fixed assets'!$P$2:$P$1000<Costs!$A659)*('Fixed assets'!$Q$2:$Q$1000=Costs!AG$617))-SUMPRODUCT(('Fixed assets'!$Q$2:$Q$1000=Costs!AG$617)*('Fixed assets'!$U$2:$U$1000=Costs!$A659)*('Fixed assets'!$S$2:$S$1000))+SUMPRODUCT(('Fixed assets'!$Q$2:$Q$1000=Costs!AG$617)*('Fixed assets'!$P$2:$P$1000=Costs!$A659)*('Fixed assets'!$U$2:$U$1000=Costs!$A659)*('Fixed assets'!$R$2:$R$1000))","v":0},{"$f":"SUMPRODUCT(('Fixed assets'!$R$2:$R$1000)*('Fixed assets'!$P$2:$P$1000<$A659)*('Fixed assets'!$Q$2:$Q$1000=Costs!AH$617))-SUMPRODUCT(('Fixed assets'!$S$2:$S$1000)*('Fixed assets'!$P$2:$P$1000<Costs!$A659)*('Fixed assets'!$Q$2:$Q$1000=Costs!AH$617))-SUMPRODUCT(('Fixed assets'!$Q$2:$Q$1000=Costs!AH$617)*('Fixed assets'!$U$2:$U$1000=Costs!$A659)*('Fixed assets'!$S$2:$S$1000))+SUMPRODUCT(('Fixed assets'!$Q$2:$Q$1000=Costs!AH$617)*('Fixed assets'!$P$2:$P$1000=Costs!$A659)*('Fixed assets'!$U$2:$U$1000=Costs!$A659)*('Fixed assets'!$R$2:$R$1000))","v":0},{"$f":"SUMPRODUCT(('Fixed assets'!$R$2:$R$1000)*('Fixed assets'!$P$2:$P$1000<$A659)*('Fixed assets'!$Q$2:$Q$1000=Costs!AI$617))-SUMPRODUCT(('Fixed assets'!$S$2:$S$1000)*('Fixed assets'!$P$2:$P$1000<Costs!$A659)*('Fixed assets'!$Q$2:$Q$1000=Costs!AI$617))-SUMPRODUCT(('Fixed assets'!$Q$2:$Q$1000=Costs!AI$617)*('Fixed assets'!$U$2:$U$1000=Costs!$A659)*('Fixed assets'!$S$2:$S$1000))+SUMPRODUCT(('Fixed assets'!$Q$2:$Q$1000=Costs!AI$617)*('Fixed assets'!$P$2:$P$1000=Costs!$A659)*('Fixed assets'!$U$2:$U$1000=Costs!$A659)*('Fixed assets'!$R$2:$R$1000))","v":0},{"$f":"SUMPRODUCT(('Fixed assets'!$R$2:$R$1000)*('Fixed assets'!$P$2:$P$1000<$A659)*('Fixed assets'!$Q$2:$Q$1000=Costs!AJ$617))-SUMPRODUCT(('Fixed assets'!$S$2:$S$1000)*('Fixed assets'!$P$2:$P$1000<Costs!$A659)*('Fixed assets'!$Q$2:$Q$1000=Costs!AJ$617))-SUMPRODUCT(('Fixed assets'!$Q$2:$Q$1000=Costs!AJ$617)*('Fixed assets'!$U$2:$U$1000=Costs!$A659)*('Fixed assets'!$S$2:$S$1000))+SUMPRODUCT(('Fixed assets'!$Q$2:$Q$1000=Costs!AJ$617)*('Fixed assets'!$P$2:$P$1000=Costs!$A659)*('Fixed assets'!$U$2:$U$1000=Costs!$A659)*('Fixed assets'!$R$2:$R$1000))","v":0},{"$f":"SUMPRODUCT(('Fixed assets'!$R$2:$R$1000)*('Fixed assets'!$P$2:$P$1000<$A659)*('Fixed assets'!$Q$2:$Q$1000=Costs!AK$617))-SUMPRODUCT(('Fixed assets'!$S$2:$S$1000)*('Fixed assets'!$P$2:$P$1000<Costs!$A659)*('Fixed assets'!$Q$2:$Q$1000=Costs!AK$617))-SUMPRODUCT(('Fixed assets'!$Q$2:$Q$1000=Costs!AK$617)*('Fixed assets'!$U$2:$U$1000=Costs!$A659)*('Fixed assets'!$S$2:$S$1000))+SUMPRODUCT(('Fixed assets'!$Q$2:$Q$1000=Costs!AK$617)*('Fixed assets'!$P$2:$P$1000=Costs!$A659)*('Fixed assets'!$U$2:$U$1000=Costs!$A659)*('Fixed assets'!$R$2:$R$1000))","v":0},{"$f":"SUMPRODUCT(('Fixed assets'!$R$2:$R$1000)*('Fixed assets'!$P$2:$P$1000<$A659)*('Fixed assets'!$Q$2:$Q$1000=Costs!AL$617))-SUMPRODUCT(('Fixed assets'!$S$2:$S$1000)*('Fixed assets'!$P$2:$P$1000<Costs!$A659)*('Fixed assets'!$Q$2:$Q$1000=Costs!AL$617))-SUMPRODUCT(('Fixed assets'!$Q$2:$Q$1000=Costs!AL$617)*('Fixed assets'!$U$2:$U$1000=Costs!$A659)*('Fixed assets'!$S$2:$S$1000))+SUMPRODUCT(('Fixed assets'!$Q$2:$Q$1000=Costs!AL$617)*('Fixed assets'!$P$2:$P$1000=Costs!$A659)*('Fixed assets'!$U$2:$U$1000=Costs!$A659)*('Fixed assets'!$R$2:$R$1000))","v":0},{"$f":"SUMPRODUCT(('Fixed assets'!$R$2:$R$1000)*('Fixed assets'!$P$2:$P$1000<$A659)*('Fixed assets'!$Q$2:$Q$1000=Costs!AM$617))-SUMPRODUCT(('Fixed assets'!$S$2:$S$1000)*('Fixed assets'!$P$2:$P$1000<Costs!$A659)*('Fixed assets'!$Q$2:$Q$1000=Costs!AM$617))-SUMPRODUCT(('Fixed assets'!$Q$2:$Q$1000=Costs!AM$617)*('Fixed assets'!$U$2:$U$1000=Costs!$A659)*('Fixed assets'!$S$2:$S$1000))+SUMPRODUCT(('Fixed assets'!$Q$2:$Q$1000=Costs!AM$617)*('Fixed assets'!$P$2:$P$1000=Costs!$A659)*('Fixed assets'!$U$2:$U$1000=Costs!$A659)*('Fixed assets'!$R$2:$R$1000))","v":0},{"$f":"SUMPRODUCT(('Fixed assets'!$R$2:$R$1000)*('Fixed assets'!$P$2:$P$1000<$A659)*('Fixed assets'!$Q$2:$Q$1000=Costs!AN$617))-SUMPRODUCT(('Fixed assets'!$S$2:$S$1000)*('Fixed assets'!$P$2:$P$1000<Costs!$A659)*('Fixed assets'!$Q$2:$Q$1000=Costs!AN$617))-SUMPRODUCT(('Fixed assets'!$Q$2:$Q$1000=Costs!AN$617)*('Fixed assets'!$U$2:$U$1000=Costs!$A659)*('Fixed assets'!$S$2:$S$1000))+SUMPRODUCT(('Fixed assets'!$Q$2:$Q$1000=Costs!AN$617)*('Fixed assets'!$P$2:$P$1000=Costs!$A659)*('Fixed assets'!$U$2:$U$1000=Costs!$A659)*('Fixed assets'!$R$2:$R$1000))","v":0},{"$f":"SUMPRODUCT(('Fixed assets'!$R$2:$R$1000)*('Fixed assets'!$P$2:$P$1000<$A659)*('Fixed assets'!$Q$2:$Q$1000=Costs!AO$617))-SUMPRODUCT(('Fixed assets'!$S$2:$S$1000)*('Fixed assets'!$P$2:$P$1000<Costs!$A659)*('Fixed assets'!$Q$2:$Q$1000=Costs!AO$617))-SUMPRODUCT(('Fixed assets'!$Q$2:$Q$1000=Costs!AO$617)*('Fixed assets'!$U$2:$U$1000=Costs!$A659)*('Fixed assets'!$S$2:$S$1000))+SUMPRODUCT(('Fixed assets'!$Q$2:$Q$1000=Costs!AO$617)*('Fixed assets'!$P$2:$P$1000=Costs!$A659)*('Fixed assets'!$U$2:$U$1000=Costs!$A659)*('Fixed assets'!$R$2:$R$1000))","v":0},{"$f":"SUMPRODUCT(('Fixed assets'!$R$2:$R$1000)*('Fixed assets'!$P$2:$P$1000<$A659)*('Fixed assets'!$Q$2:$Q$1000=Costs!AP$617))-SUMPRODUCT(('Fixed assets'!$S$2:$S$1000)*('Fixed assets'!$P$2:$P$1000<Costs!$A659)*('Fixed assets'!$Q$2:$Q$1000=Costs!AP$617))-SUMPRODUCT(('Fixed assets'!$Q$2:$Q$1000=Costs!AP$617)*('Fixed assets'!$U$2:$U$1000=Costs!$A659)*('Fixed assets'!$S$2:$S$1000))+SUMPRODUCT(('Fixed assets'!$Q$2:$Q$1000=Costs!AP$617)*('Fixed assets'!$P$2:$P$1000=Costs!$A659)*('Fixed assets'!$U$2:$U$1000=Costs!$A659)*('Fixed assets'!$R$2:$R$1000))","v":0},{"$f":"SUMPRODUCT(('Fixed assets'!$R$2:$R$1000)*('Fixed assets'!$P$2:$P$1000<$A659)*('Fixed assets'!$Q$2:$Q$1000=Costs!AQ$617))-SUMPRODUCT(('Fixed assets'!$S$2:$S$1000)*('Fixed assets'!$P$2:$P$1000<Costs!$A659)*('Fixed assets'!$Q$2:$Q$1000=Costs!AQ$617))-SUMPRODUCT(('Fixed assets'!$Q$2:$Q$1000=Costs!AQ$617)*('Fixed assets'!$U$2:$U$1000=Costs!$A659)*('Fixed assets'!$S$2:$S$1000))+SUMPRODUCT(('Fixed assets'!$Q$2:$Q$1000=Costs!AQ$617)*('Fixed assets'!$P$2:$P$1000=Costs!$A659)*('Fixed assets'!$U$2:$U$1000=Costs!$A659)*('Fixed assets'!$R$2:$R$1000))","v":0}]
[2057,0,{"$f":"SUMPRODUCT(('Fixed assets'!$R$2:$R$1000)*('Fixed assets'!$P$2:$P$1000<$A660)*('Fixed assets'!$Q$2:$Q$1000=Costs!C$617))-SUMPRODUCT(('Fixed assets'!$S$2:$S$1000)*('Fixed assets'!$P$2:$P$1000<Costs!$A660)*('Fixed assets'!$Q$2:$Q$1000=Costs!C$617))-SUMPRODUCT(('Fixed assets'!$Q$2:$Q$1000=Costs!C$617)*('Fixed assets'!$U$2:$U$1000=Costs!$A660)*('Fixed assets'!$S$2:$S$1000))+SUMPRODUCT(('Fixed assets'!$Q$2:$Q$1000=Costs!C$617)*('Fixed assets'!$P$2:$P$1000=Costs!$A660)*('Fixed assets'!$U$2:$U$1000=Costs!$A660)*('Fixed assets'!$R$2:$R$1000))","v":0},{"$f":"SUMPRODUCT(('Fixed assets'!$R$2:$R$1000)*('Fixed assets'!$P$2:$P$1000<$A660)*('Fixed assets'!$Q$2:$Q$1000=Costs!D$617))-SUMPRODUCT(('Fixed assets'!$S$2:$S$1000)*('Fixed assets'!$P$2:$P$1000<Costs!$A660)*('Fixed assets'!$Q$2:$Q$1000=Costs!D$617))-SUMPRODUCT(('Fixed assets'!$Q$2:$Q$1000=Costs!D$617)*('Fixed assets'!$U$2:$U$1000=Costs!$A660)*('Fixed assets'!$S$2:$S$1000))+SUMPRODUCT(('Fixed assets'!$Q$2:$Q$1000=Costs!D$617)*('Fixed assets'!$P$2:$P$1000=Costs!$A660)*('Fixed assets'!$U$2:$U$1000=Costs!$A660)*('Fixed assets'!$R$2:$R$1000))","v":0},{"$f":"SUMPRODUCT(('Fixed assets'!$R$2:$R$1000)*('Fixed assets'!$P$2:$P$1000<$A660)*('Fixed assets'!$Q$2:$Q$1000=Costs!E$617))-SUMPRODUCT(('Fixed assets'!$S$2:$S$1000)*('Fixed assets'!$P$2:$P$1000<Costs!$A660)*('Fixed assets'!$Q$2:$Q$1000=Costs!E$617))-SUMPRODUCT(('Fixed assets'!$Q$2:$Q$1000=Costs!E$617)*('Fixed assets'!$U$2:$U$1000=Costs!$A660)*('Fixed assets'!$S$2:$S$1000))+SUMPRODUCT(('Fixed assets'!$Q$2:$Q$1000=Costs!E$617)*('Fixed assets'!$P$2:$P$1000=Costs!$A660)*('Fixed assets'!$U$2:$U$1000=Costs!$A660)*('Fixed assets'!$R$2:$R$1000))","v":0},{"$f":"SUMPRODUCT(('Fixed assets'!$R$2:$R$1000)*('Fixed assets'!$P$2:$P$1000<$A660)*('Fixed assets'!$Q$2:$Q$1000=Costs!F$617))-SUMPRODUCT(('Fixed assets'!$S$2:$S$1000)*('Fixed assets'!$P$2:$P$1000<Costs!$A660)*('Fixed assets'!$Q$2:$Q$1000=Costs!F$617))-SUMPRODUCT(('Fixed assets'!$Q$2:$Q$1000=Costs!F$617)*('Fixed assets'!$U$2:$U$1000=Costs!$A660)*('Fixed assets'!$S$2:$S$1000))+SUMPRODUCT(('Fixed assets'!$Q$2:$Q$1000=Costs!F$617)*('Fixed assets'!$P$2:$P$1000=Costs!$A660)*('Fixed assets'!$U$2:$U$1000=Costs!$A660)*('Fixed assets'!$R$2:$R$1000))","v":0},{"$f":"SUMPRODUCT(('Fixed assets'!$R$2:$R$1000)*('Fixed assets'!$P$2:$P$1000<$A660)*('Fixed assets'!$Q$2:$Q$1000=Costs!G$617))-SUMPRODUCT(('Fixed assets'!$S$2:$S$1000)*('Fixed assets'!$P$2:$P$1000<Costs!$A660)*('Fixed assets'!$Q$2:$Q$1000=Costs!G$617))-SUMPRODUCT(('Fixed assets'!$Q$2:$Q$1000=Costs!G$617)*('Fixed assets'!$U$2:$U$1000=Costs!$A660)*('Fixed assets'!$S$2:$S$1000))+SUMPRODUCT(('Fixed assets'!$Q$2:$Q$1000=Costs!G$617)*('Fixed assets'!$P$2:$P$1000=Costs!$A660)*('Fixed assets'!$U$2:$U$1000=Costs!$A660)*('Fixed assets'!$R$2:$R$1000))","v":0},{"$f":"SUMPRODUCT(('Fixed assets'!$R$2:$R$1000)*('Fixed assets'!$P$2:$P$1000<$A660)*('Fixed assets'!$Q$2:$Q$1000=Costs!H$617))-SUMPRODUCT(('Fixed assets'!$S$2:$S$1000)*('Fixed assets'!$P$2:$P$1000<Costs!$A660)*('Fixed assets'!$Q$2:$Q$1000=Costs!H$617))-SUMPRODUCT(('Fixed assets'!$Q$2:$Q$1000=Costs!H$617)*('Fixed assets'!$U$2:$U$1000=Costs!$A660)*('Fixed assets'!$S$2:$S$1000))+SUMPRODUCT(('Fixed assets'!$Q$2:$Q$1000=Costs!H$617)*('Fixed assets'!$P$2:$P$1000=Costs!$A660)*('Fixed assets'!$U$2:$U$1000=Costs!$A660)*('Fixed assets'!$R$2:$R$1000))","v":0},{"$f":"SUMPRODUCT(('Fixed assets'!$R$2:$R$1000)*('Fixed assets'!$P$2:$P$1000<$A660)*('Fixed assets'!$Q$2:$Q$1000=Costs!I$617))-SUMPRODUCT(('Fixed assets'!$S$2:$S$1000)*('Fixed assets'!$P$2:$P$1000<Costs!$A660)*('Fixed assets'!$Q$2:$Q$1000=Costs!I$617))-SUMPRODUCT(('Fixed assets'!$Q$2:$Q$1000=Costs!I$617)*('Fixed assets'!$U$2:$U$1000=Costs!$A660)*('Fixed assets'!$S$2:$S$1000))+SUMPRODUCT(('Fixed assets'!$Q$2:$Q$1000=Costs!I$617)*('Fixed assets'!$P$2:$P$1000=Costs!$A660)*('Fixed assets'!$U$2:$U$1000=Costs!$A660)*('Fixed assets'!$R$2:$R$1000))","v":0},{"$f":"SUMPRODUCT(('Fixed assets'!$R$2:$R$1000)*('Fixed assets'!$P$2:$P$1000<$A660)*('Fixed assets'!$Q$2:$Q$1000=Costs!J$617))-SUMPRODUCT(('Fixed assets'!$S$2:$S$1000)*('Fixed assets'!$P$2:$P$1000<Costs!$A660)*('Fixed assets'!$Q$2:$Q$1000=Costs!J$617))-SUMPRODUCT(('Fixed assets'!$Q$2:$Q$1000=Costs!J$617)*('Fixed assets'!$U$2:$U$1000=Costs!$A660)*('Fixed assets'!$S$2:$S$1000))+SUMPRODUCT(('Fixed assets'!$Q$2:$Q$1000=Costs!J$617)*('Fixed assets'!$P$2:$P$1000=Costs!$A660)*('Fixed assets'!$U$2:$U$1000=Costs!$A660)*('Fixed assets'!$R$2:$R$1000))","v":0},{"$f":"SUMPRODUCT(('Fixed assets'!$R$2:$R$1000)*('Fixed assets'!$P$2:$P$1000<$A660)*('Fixed assets'!$Q$2:$Q$1000=Costs!K$617))-SUMPRODUCT(('Fixed assets'!$S$2:$S$1000)*('Fixed assets'!$P$2:$P$1000<Costs!$A660)*('Fixed assets'!$Q$2:$Q$1000=Costs!K$617))-SUMPRODUCT(('Fixed assets'!$Q$2:$Q$1000=Costs!K$617)*('Fixed assets'!$U$2:$U$1000=Costs!$A660)*('Fixed assets'!$S$2:$S$1000))+SUMPRODUCT(('Fixed assets'!$Q$2:$Q$1000=Costs!K$617)*('Fixed assets'!$P$2:$P$1000=Costs!$A660)*('Fixed assets'!$U$2:$U$1000=Costs!$A660)*('Fixed assets'!$R$2:$R$1000))","v":0},{"$f":"SUMPRODUCT(('Fixed assets'!$R$2:$R$1000)*('Fixed assets'!$P$2:$P$1000<$A660)*('Fixed assets'!$Q$2:$Q$1000=Costs!L$617))-SUMPRODUCT(('Fixed assets'!$S$2:$S$1000)*('Fixed assets'!$P$2:$P$1000<Costs!$A660)*('Fixed assets'!$Q$2:$Q$1000=Costs!L$617))-SUMPRODUCT(('Fixed assets'!$Q$2:$Q$1000=Costs!L$617)*('Fixed assets'!$U$2:$U$1000=Costs!$A660)*('Fixed assets'!$S$2:$S$1000))+SUMPRODUCT(('Fixed assets'!$Q$2:$Q$1000=Costs!L$617)*('Fixed assets'!$P$2:$P$1000=Costs!$A660)*('Fixed assets'!$U$2:$U$1000=Costs!$A660)*('Fixed assets'!$R$2:$R$1000))","v":0},{"$f":"SUMPRODUCT(('Fixed assets'!$R$2:$R$1000)*('Fixed assets'!$P$2:$P$1000<$A660)*('Fixed assets'!$Q$2:$Q$1000=Costs!M$617))-SUMPRODUCT(('Fixed assets'!$S$2:$S$1000)*('Fixed assets'!$P$2:$P$1000<Costs!$A660)*('Fixed assets'!$Q$2:$Q$1000=Costs!M$617))-SUMPRODUCT(('Fixed assets'!$Q$2:$Q$1000=Costs!M$617)*('Fixed assets'!$U$2:$U$1000=Costs!$A660)*('Fixed assets'!$S$2:$S$1000))+SUMPRODUCT(('Fixed assets'!$Q$2:$Q$1000=Costs!M$617)*('Fixed assets'!$P$2:$P$1000=Costs!$A660)*('Fixed assets'!$U$2:$U$1000=Costs!$A660)*('Fixed assets'!$R$2:$R$1000))","v":0},{"$f":"SUMPRODUCT(('Fixed assets'!$R$2:$R$1000)*('Fixed assets'!$P$2:$P$1000<$A660)*('Fixed assets'!$Q$2:$Q$1000=Costs!N$617))-SUMPRODUCT(('Fixed assets'!$S$2:$S$1000)*('Fixed assets'!$P$2:$P$1000<Costs!$A660)*('Fixed assets'!$Q$2:$Q$1000=Costs!N$617))-SUMPRODUCT(('Fixed assets'!$Q$2:$Q$1000=Costs!N$617)*('Fixed assets'!$U$2:$U$1000=Costs!$A660)*('Fixed assets'!$S$2:$S$1000))+SUMPRODUCT(('Fixed assets'!$Q$2:$Q$1000=Costs!N$617)*('Fixed assets'!$P$2:$P$1000=Costs!$A660)*('Fixed assets'!$U$2:$U$1000=Costs!$A660)*('Fixed assets'!$R$2:$R$1000))","v":0},{"$f":"SUMPRODUCT(('Fixed assets'!$R$2:$R$1000)*('Fixed assets'!$P$2:$P$1000<$A660)*('Fixed assets'!$Q$2:$Q$1000=Costs!O$617))-SUMPRODUCT(('Fixed assets'!$S$2:$S$1000)*('Fixed assets'!$P$2:$P$1000<Costs!$A660)*('Fixed assets'!$Q$2:$Q$1000=Costs!O$617))-SUMPRODUCT(('Fixed assets'!$Q$2:$Q$1000=Costs!O$617)*('Fixed assets'!$U$2:$U$1000=Costs!$A660)*('Fixed assets'!$S$2:$S$1000))+SUMPRODUCT(('Fixed assets'!$Q$2:$Q$1000=Costs!O$617)*('Fixed assets'!$P$2:$P$1000=Costs!$A660)*('Fixed assets'!$U$2:$U$1000=Costs!$A660)*('Fixed assets'!$R$2:$R$1000))","v":0},{"$f":"SUMPRODUCT(('Fixed assets'!$R$2:$R$1000)*('Fixed assets'!$P$2:$P$1000<$A660)*('Fixed assets'!$Q$2:$Q$1000=Costs!P$617))-SUMPRODUCT(('Fixed assets'!$S$2:$S$1000)*('Fixed assets'!$P$2:$P$1000<Costs!$A660)*('Fixed assets'!$Q$2:$Q$1000=Costs!P$617))-SUMPRODUCT(('Fixed assets'!$Q$2:$Q$1000=Costs!P$617)*('Fixed assets'!$U$2:$U$1000=Costs!$A660)*('Fixed assets'!$S$2:$S$1000))+SUMPRODUCT(('Fixed assets'!$Q$2:$Q$1000=Costs!P$617)*('Fixed assets'!$P$2:$P$1000=Costs!$A660)*('Fixed assets'!$U$2:$U$1000=Costs!$A660)*('Fixed assets'!$R$2:$R$1000))","v":0},{"$f":"SUMPRODUCT(('Fixed assets'!$R$2:$R$1000)*('Fixed assets'!$P$2:$P$1000<$A660)*('Fixed assets'!$Q$2:$Q$1000=Costs!Q$617))-SUMPRODUCT(('Fixed assets'!$S$2:$S$1000)*('Fixed assets'!$P$2:$P$1000<Costs!$A660)*('Fixed assets'!$Q$2:$Q$1000=Costs!Q$617))-SUMPRODUCT(('Fixed assets'!$Q$2:$Q$1000=Costs!Q$617)*('Fixed assets'!$U$2:$U$1000=Costs!$A660)*('Fixed assets'!$S$2:$S$1000))+SUMPRODUCT(('Fixed assets'!$Q$2:$Q$1000=Costs!Q$617)*('Fixed assets'!$P$2:$P$1000=Costs!$A660)*('Fixed assets'!$U$2:$U$1000=Costs!$A660)*('Fixed assets'!$R$2:$R$1000))","v":0},{"$f":"SUMPRODUCT(('Fixed assets'!$R$2:$R$1000)*('Fixed assets'!$P$2:$P$1000<$A660)*('Fixed assets'!$Q$2:$Q$1000=Costs!R$617))-SUMPRODUCT(('Fixed assets'!$S$2:$S$1000)*('Fixed assets'!$P$2:$P$1000<Costs!$A660)*('Fixed assets'!$Q$2:$Q$1000=Costs!R$617))-SUMPRODUCT(('Fixed assets'!$Q$2:$Q$1000=Costs!R$617)*('Fixed assets'!$U$2:$U$1000=Costs!$A660)*('Fixed assets'!$S$2:$S$1000))+SUMPRODUCT(('Fixed assets'!$Q$2:$Q$1000=Costs!R$617)*('Fixed assets'!$P$2:$P$1000=Costs!$A660)*('Fixed assets'!$U$2:$U$1000=Costs!$A660)*('Fixed assets'!$R$2:$R$1000))","v":0},{"$f":"SUMPRODUCT(('Fixed assets'!$R$2:$R$1000)*('Fixed assets'!$P$2:$P$1000<$A660)*('Fixed assets'!$Q$2:$Q$1000=Costs!S$617))-SUMPRODUCT(('Fixed assets'!$S$2:$S$1000)*('Fixed assets'!$P$2:$P$1000<Costs!$A660)*('Fixed assets'!$Q$2:$Q$1000=Costs!S$617))-SUMPRODUCT(('Fixed assets'!$Q$2:$Q$1000=Costs!S$617)*('Fixed assets'!$U$2:$U$1000=Costs!$A660)*('Fixed assets'!$S$2:$S$1000))+SUMPRODUCT(('Fixed assets'!$Q$2:$Q$1000=Costs!S$617)*('Fixed assets'!$P$2:$P$1000=Costs!$A660)*('Fixed assets'!$U$2:$U$1000=Costs!$A660)*('Fixed assets'!$R$2:$R$1000))","v":0},{"$f":"SUMPRODUCT(('Fixed assets'!$R$2:$R$1000)*('Fixed assets'!$P$2:$P$1000<$A660)*('Fixed assets'!$Q$2:$Q$1000=Costs!T$617))-SUMPRODUCT(('Fixed assets'!$S$2:$S$1000)*('Fixed assets'!$P$2:$P$1000<Costs!$A660)*('Fixed assets'!$Q$2:$Q$1000=Costs!T$617))-SUMPRODUCT(('Fixed assets'!$Q$2:$Q$1000=Costs!T$617)*('Fixed assets'!$U$2:$U$1000=Costs!$A660)*('Fixed assets'!$S$2:$S$1000))+SUMPRODUCT(('Fixed assets'!$Q$2:$Q$1000=Costs!T$617)*('Fixed assets'!$P$2:$P$1000=Costs!$A660)*('Fixed assets'!$U$2:$U$1000=Costs!$A660)*('Fixed assets'!$R$2:$R$1000))","v":0},{"$f":"SUMPRODUCT(('Fixed assets'!$R$2:$R$1000)*('Fixed assets'!$P$2:$P$1000<$A660)*('Fixed assets'!$Q$2:$Q$1000=Costs!U$617))-SUMPRODUCT(('Fixed assets'!$S$2:$S$1000)*('Fixed assets'!$P$2:$P$1000<Costs!$A660)*('Fixed assets'!$Q$2:$Q$1000=Costs!U$617))-SUMPRODUCT(('Fixed assets'!$Q$2:$Q$1000=Costs!U$617)*('Fixed assets'!$U$2:$U$1000=Costs!$A660)*('Fixed assets'!$S$2:$S$1000))+SUMPRODUCT(('Fixed assets'!$Q$2:$Q$1000=Costs!U$617)*('Fixed assets'!$P$2:$P$1000=Costs!$A660)*('Fixed assets'!$U$2:$U$1000=Costs!$A660)*('Fixed assets'!$R$2:$R$1000))","v":0},{"$f":"SUMPRODUCT(('Fixed assets'!$R$2:$R$1000)*('Fixed assets'!$P$2:$P$1000<$A660)*('Fixed assets'!$Q$2:$Q$1000=Costs!V$617))-SUMPRODUCT(('Fixed assets'!$S$2:$S$1000)*('Fixed assets'!$P$2:$P$1000<Costs!$A660)*('Fixed assets'!$Q$2:$Q$1000=Costs!V$617))-SUMPRODUCT(('Fixed assets'!$Q$2:$Q$1000=Costs!V$617)*('Fixed assets'!$U$2:$U$1000=Costs!$A660)*('Fixed assets'!$S$2:$S$1000))+SUMPRODUCT(('Fixed assets'!$Q$2:$Q$1000=Costs!V$617)*('Fixed assets'!$P$2:$P$1000=Costs!$A660)*('Fixed assets'!$U$2:$U$1000=Costs!$A660)*('Fixed assets'!$R$2:$R$1000))","v":0},{"$f":"SUMPRODUCT(('Fixed assets'!$R$2:$R$1000)*('Fixed assets'!$P$2:$P$1000<$A660)*('Fixed assets'!$Q$2:$Q$1000=Costs!W$617))-SUMPRODUCT(('Fixed assets'!$S$2:$S$1000)*('Fixed assets'!$P$2:$P$1000<Costs!$A660)*('Fixed assets'!$Q$2:$Q$1000=Costs!W$617))-SUMPRODUCT(('Fixed assets'!$Q$2:$Q$1000=Costs!W$617)*('Fixed assets'!$U$2:$U$1000=Costs!$A660)*('Fixed assets'!$S$2:$S$1000))+SUMPRODUCT(('Fixed assets'!$Q$2:$Q$1000=Costs!W$617)*('Fixed assets'!$P$2:$P$1000=Costs!$A660)*('Fixed assets'!$U$2:$U$1000=Costs!$A660)*('Fixed assets'!$R$2:$R$1000))","v":0},{"$f":"SUMPRODUCT(('Fixed assets'!$R$2:$R$1000)*('Fixed assets'!$P$2:$P$1000<$A660)*('Fixed assets'!$Q$2:$Q$1000=Costs!X$617))-SUMPRODUCT(('Fixed assets'!$S$2:$S$1000)*('Fixed assets'!$P$2:$P$1000<Costs!$A660)*('Fixed assets'!$Q$2:$Q$1000=Costs!X$617))-SUMPRODUCT(('Fixed assets'!$Q$2:$Q$1000=Costs!X$617)*('Fixed assets'!$U$2:$U$1000=Costs!$A660)*('Fixed assets'!$S$2:$S$1000))+SUMPRODUCT(('Fixed assets'!$Q$2:$Q$1000=Costs!X$617)*('Fixed assets'!$P$2:$P$1000=Costs!$A660)*('Fixed assets'!$U$2:$U$1000=Costs!$A660)*('Fixed assets'!$R$2:$R$1000))","v":0},{"$f":"SUMPRODUCT(('Fixed assets'!$R$2:$R$1000)*('Fixed assets'!$P$2:$P$1000<$A660)*('Fixed assets'!$Q$2:$Q$1000=Costs!Y$617))-SUMPRODUCT(('Fixed assets'!$S$2:$S$1000)*('Fixed assets'!$P$2:$P$1000<Costs!$A660)*('Fixed assets'!$Q$2:$Q$1000=Costs!Y$617))-SUMPRODUCT(('Fixed assets'!$Q$2:$Q$1000=Costs!Y$617)*('Fixed assets'!$U$2:$U$1000=Costs!$A660)*('Fixed assets'!$S$2:$S$1000))+SUMPRODUCT(('Fixed assets'!$Q$2:$Q$1000=Costs!Y$617)*('Fixed assets'!$P$2:$P$1000=Costs!$A660)*('Fixed assets'!$U$2:$U$1000=Costs!$A660)*('Fixed assets'!$R$2:$R$1000))","v":0},{"$f":"SUMPRODUCT(('Fixed assets'!$R$2:$R$1000)*('Fixed assets'!$P$2:$P$1000<$A660)*('Fixed assets'!$Q$2:$Q$1000=Costs!Z$617))-SUMPRODUCT(('Fixed assets'!$S$2:$S$1000)*('Fixed assets'!$P$2:$P$1000<Costs!$A660)*('Fixed assets'!$Q$2:$Q$1000=Costs!Z$617))-SUMPRODUCT(('Fixed assets'!$Q$2:$Q$1000=Costs!Z$617)*('Fixed assets'!$U$2:$U$1000=Costs!$A660)*('Fixed assets'!$S$2:$S$1000))+SUMPRODUCT(('Fixed assets'!$Q$2:$Q$1000=Costs!Z$617)*('Fixed assets'!$P$2:$P$1000=Costs!$A660)*('Fixed assets'!$U$2:$U$1000=Costs!$A660)*('Fixed assets'!$R$2:$R$1000))","v":0},{"$f":"SUMPRODUCT(('Fixed assets'!$R$2:$R$1000)*('Fixed assets'!$P$2:$P$1000<$A660)*('Fixed assets'!$Q$2:$Q$1000=Costs!AA$617))-SUMPRODUCT(('Fixed assets'!$S$2:$S$1000)*('Fixed assets'!$P$2:$P$1000<Costs!$A660)*('Fixed assets'!$Q$2:$Q$1000=Costs!AA$617))-SUMPRODUCT(('Fixed assets'!$Q$2:$Q$1000=Costs!AA$617)*('Fixed assets'!$U$2:$U$1000=Costs!$A660)*('Fixed assets'!$S$2:$S$1000))+SUMPRODUCT(('Fixed assets'!$Q$2:$Q$1000=Costs!AA$617)*('Fixed assets'!$P$2:$P$1000=Costs!$A660)*('Fixed assets'!$U$2:$U$1000=Costs!$A660)*('Fixed assets'!$R$2:$R$1000))","v":0},{"$f":"SUMPRODUCT(('Fixed assets'!$R$2:$R$1000)*('Fixed assets'!$P$2:$P$1000<$A660)*('Fixed assets'!$Q$2:$Q$1000=Costs!AB$617))-SUMPRODUCT(('Fixed assets'!$S$2:$S$1000)*('Fixed assets'!$P$2:$P$1000<Costs!$A660)*('Fixed assets'!$Q$2:$Q$1000=Costs!AB$617))-SUMPRODUCT(('Fixed assets'!$Q$2:$Q$1000=Costs!AB$617)*('Fixed assets'!$U$2:$U$1000=Costs!$A660)*('Fixed assets'!$S$2:$S$1000))+SUMPRODUCT(('Fixed assets'!$Q$2:$Q$1000=Costs!AB$617)*('Fixed assets'!$P$2:$P$1000=Costs!$A660)*('Fixed assets'!$U$2:$U$1000=Costs!$A660)*('Fixed assets'!$R$2:$R$1000))","v":0},{"$f":"SUMPRODUCT(('Fixed assets'!$R$2:$R$1000)*('Fixed assets'!$P$2:$P$1000<$A660)*('Fixed assets'!$Q$2:$Q$1000=Costs!AC$617))-SUMPRODUCT(('Fixed assets'!$S$2:$S$1000)*('Fixed assets'!$P$2:$P$1000<Costs!$A660)*('Fixed assets'!$Q$2:$Q$1000=Costs!AC$617))-SUMPRODUCT(('Fixed assets'!$Q$2:$Q$1000=Costs!AC$617)*('Fixed assets'!$U$2:$U$1000=Costs!$A660)*('Fixed assets'!$S$2:$S$1000))+SUMPRODUCT(('Fixed assets'!$Q$2:$Q$1000=Costs!AC$617)*('Fixed assets'!$P$2:$P$1000=Costs!$A660)*('Fixed assets'!$U$2:$U$1000=Costs!$A660)*('Fixed assets'!$R$2:$R$1000))","v":0},{"$f":"SUMPRODUCT(('Fixed assets'!$R$2:$R$1000)*('Fixed assets'!$P$2:$P$1000<$A660)*('Fixed assets'!$Q$2:$Q$1000=Costs!AD$617))-SUMPRODUCT(('Fixed assets'!$S$2:$S$1000)*('Fixed assets'!$P$2:$P$1000<Costs!$A660)*('Fixed assets'!$Q$2:$Q$1000=Costs!AD$617))-SUMPRODUCT(('Fixed assets'!$Q$2:$Q$1000=Costs!AD$617)*('Fixed assets'!$U$2:$U$1000=Costs!$A660)*('Fixed assets'!$S$2:$S$1000))+SUMPRODUCT(('Fixed assets'!$Q$2:$Q$1000=Costs!AD$617)*('Fixed assets'!$P$2:$P$1000=Costs!$A660)*('Fixed assets'!$U$2:$U$1000=Costs!$A660)*('Fixed assets'!$R$2:$R$1000))","v":0},{"$f":"SUMPRODUCT(('Fixed assets'!$R$2:$R$1000)*('Fixed assets'!$P$2:$P$1000<$A660)*('Fixed assets'!$Q$2:$Q$1000=Costs!AE$617))-SUMPRODUCT(('Fixed assets'!$S$2:$S$1000)*('Fixed assets'!$P$2:$P$1000<Costs!$A660)*('Fixed assets'!$Q$2:$Q$1000=Costs!AE$617))-SUMPRODUCT(('Fixed assets'!$Q$2:$Q$1000=Costs!AE$617)*('Fixed assets'!$U$2:$U$1000=Costs!$A660)*('Fixed assets'!$S$2:$S$1000))+SUMPRODUCT(('Fixed assets'!$Q$2:$Q$1000=Costs!AE$617)*('Fixed assets'!$P$2:$P$1000=Costs!$A660)*('Fixed assets'!$U$2:$U$1000=Costs!$A660)*('Fixed assets'!$R$2:$R$1000))","v":0},{"$f":"SUMPRODUCT(('Fixed assets'!$R$2:$R$1000)*('Fixed assets'!$P$2:$P$1000<$A660)*('Fixed assets'!$Q$2:$Q$1000=Costs!AF$617))-SUMPRODUCT(('Fixed assets'!$S$2:$S$1000)*('Fixed assets'!$P$2:$P$1000<Costs!$A660)*('Fixed assets'!$Q$2:$Q$1000=Costs!AF$617))-SUMPRODUCT(('Fixed assets'!$Q$2:$Q$1000=Costs!AF$617)*('Fixed assets'!$U$2:$U$1000=Costs!$A660)*('Fixed assets'!$S$2:$S$1000))+SUMPRODUCT(('Fixed assets'!$Q$2:$Q$1000=Costs!AF$617)*('Fixed assets'!$P$2:$P$1000=Costs!$A660)*('Fixed assets'!$U$2:$U$1000=Costs!$A660)*('Fixed assets'!$R$2:$R$1000))","v":0},{"$f":"SUMPRODUCT(('Fixed assets'!$R$2:$R$1000)*('Fixed assets'!$P$2:$P$1000<$A660)*('Fixed assets'!$Q$2:$Q$1000=Costs!AG$617))-SUMPRODUCT(('Fixed assets'!$S$2:$S$1000)*('Fixed assets'!$P$2:$P$1000<Costs!$A660)*('Fixed assets'!$Q$2:$Q$1000=Costs!AG$617))-SUMPRODUCT(('Fixed assets'!$Q$2:$Q$1000=Costs!AG$617)*('Fixed assets'!$U$2:$U$1000=Costs!$A660)*('Fixed assets'!$S$2:$S$1000))+SUMPRODUCT(('Fixed assets'!$Q$2:$Q$1000=Costs!AG$617)*('Fixed assets'!$P$2:$P$1000=Costs!$A660)*('Fixed assets'!$U$2:$U$1000=Costs!$A660)*('Fixed assets'!$R$2:$R$1000))","v":0},{"$f":"SUMPRODUCT(('Fixed assets'!$R$2:$R$1000)*('Fixed assets'!$P$2:$P$1000<$A660)*('Fixed assets'!$Q$2:$Q$1000=Costs!AH$617))-SUMPRODUCT(('Fixed assets'!$S$2:$S$1000)*('Fixed assets'!$P$2:$P$1000<Costs!$A660)*('Fixed assets'!$Q$2:$Q$1000=Costs!AH$617))-SUMPRODUCT(('Fixed assets'!$Q$2:$Q$1000=Costs!AH$617)*('Fixed assets'!$U$2:$U$1000=Costs!$A660)*('Fixed assets'!$S$2:$S$1000))+SUMPRODUCT(('Fixed assets'!$Q$2:$Q$1000=Costs!AH$617)*('Fixed assets'!$P$2:$P$1000=Costs!$A660)*('Fixed assets'!$U$2:$U$1000=Costs!$A660)*('Fixed assets'!$R$2:$R$1000))","v":0},{"$f":"SUMPRODUCT(('Fixed assets'!$R$2:$R$1000)*('Fixed assets'!$P$2:$P$1000<$A660)*('Fixed assets'!$Q$2:$Q$1000=Costs!AI$617))-SUMPRODUCT(('Fixed assets'!$S$2:$S$1000)*('Fixed assets'!$P$2:$P$1000<Costs!$A660)*('Fixed assets'!$Q$2:$Q$1000=Costs!AI$617))-SUMPRODUCT(('Fixed assets'!$Q$2:$Q$1000=Costs!AI$617)*('Fixed assets'!$U$2:$U$1000=Costs!$A660)*('Fixed assets'!$S$2:$S$1000))+SUMPRODUCT(('Fixed assets'!$Q$2:$Q$1000=Costs!AI$617)*('Fixed assets'!$P$2:$P$1000=Costs!$A660)*('Fixed assets'!$U$2:$U$1000=Costs!$A660)*('Fixed assets'!$R$2:$R$1000))","v":0},{"$f":"SUMPRODUCT(('Fixed assets'!$R$2:$R$1000)*('Fixed assets'!$P$2:$P$1000<$A660)*('Fixed assets'!$Q$2:$Q$1000=Costs!AJ$617))-SUMPRODUCT(('Fixed assets'!$S$2:$S$1000)*('Fixed assets'!$P$2:$P$1000<Costs!$A660)*('Fixed assets'!$Q$2:$Q$1000=Costs!AJ$617))-SUMPRODUCT(('Fixed assets'!$Q$2:$Q$1000=Costs!AJ$617)*('Fixed assets'!$U$2:$U$1000=Costs!$A660)*('Fixed assets'!$S$2:$S$1000))+SUMPRODUCT(('Fixed assets'!$Q$2:$Q$1000=Costs!AJ$617)*('Fixed assets'!$P$2:$P$1000=Costs!$A660)*('Fixed assets'!$U$2:$U$1000=Costs!$A660)*('Fixed assets'!$R$2:$R$1000))","v":0},{"$f":"SUMPRODUCT(('Fixed assets'!$R$2:$R$1000)*('Fixed assets'!$P$2:$P$1000<$A660)*('Fixed assets'!$Q$2:$Q$1000=Costs!AK$617))-SUMPRODUCT(('Fixed assets'!$S$2:$S$1000)*('Fixed assets'!$P$2:$P$1000<Costs!$A660)*('Fixed assets'!$Q$2:$Q$1000=Costs!AK$617))-SUMPRODUCT(('Fixed assets'!$Q$2:$Q$1000=Costs!AK$617)*('Fixed assets'!$U$2:$U$1000=Costs!$A660)*('Fixed assets'!$S$2:$S$1000))+SUMPRODUCT(('Fixed assets'!$Q$2:$Q$1000=Costs!AK$617)*('Fixed assets'!$P$2:$P$1000=Costs!$A660)*('Fixed assets'!$U$2:$U$1000=Costs!$A660)*('Fixed assets'!$R$2:$R$1000))","v":0},{"$f":"SUMPRODUCT(('Fixed assets'!$R$2:$R$1000)*('Fixed assets'!$P$2:$P$1000<$A660)*('Fixed assets'!$Q$2:$Q$1000=Costs!AL$617))-SUMPRODUCT(('Fixed assets'!$S$2:$S$1000)*('Fixed assets'!$P$2:$P$1000<Costs!$A660)*('Fixed assets'!$Q$2:$Q$1000=Costs!AL$617))-SUMPRODUCT(('Fixed assets'!$Q$2:$Q$1000=Costs!AL$617)*('Fixed assets'!$U$2:$U$1000=Costs!$A660)*('Fixed assets'!$S$2:$S$1000))+SUMPRODUCT(('Fixed assets'!$Q$2:$Q$1000=Costs!AL$617)*('Fixed assets'!$P$2:$P$1000=Costs!$A660)*('Fixed assets'!$U$2:$U$1000=Costs!$A660)*('Fixed assets'!$R$2:$R$1000))","v":0},{"$f":"SUMPRODUCT(('Fixed assets'!$R$2:$R$1000)*('Fixed assets'!$P$2:$P$1000<$A660)*('Fixed assets'!$Q$2:$Q$1000=Costs!AM$617))-SUMPRODUCT(('Fixed assets'!$S$2:$S$1000)*('Fixed assets'!$P$2:$P$1000<Costs!$A660)*('Fixed assets'!$Q$2:$Q$1000=Costs!AM$617))-SUMPRODUCT(('Fixed assets'!$Q$2:$Q$1000=Costs!AM$617)*('Fixed assets'!$U$2:$U$1000=Costs!$A660)*('Fixed assets'!$S$2:$S$1000))+SUMPRODUCT(('Fixed assets'!$Q$2:$Q$1000=Costs!AM$617)*('Fixed assets'!$P$2:$P$1000=Costs!$A660)*('Fixed assets'!$U$2:$U$1000=Costs!$A660)*('Fixed assets'!$R$2:$R$1000))","v":0},{"$f":"SUMPRODUCT(('Fixed assets'!$R$2:$R$1000)*('Fixed assets'!$P$2:$P$1000<$A660)*('Fixed assets'!$Q$2:$Q$1000=Costs!AN$617))-SUMPRODUCT(('Fixed assets'!$S$2:$S$1000)*('Fixed assets'!$P$2:$P$1000<Costs!$A660)*('Fixed assets'!$Q$2:$Q$1000=Costs!AN$617))-SUMPRODUCT(('Fixed assets'!$Q$2:$Q$1000=Costs!AN$617)*('Fixed assets'!$U$2:$U$1000=Costs!$A660)*('Fixed assets'!$S$2:$S$1000))+SUMPRODUCT(('Fixed assets'!$Q$2:$Q$1000=Costs!AN$617)*('Fixed assets'!$P$2:$P$1000=Costs!$A660)*('Fixed assets'!$U$2:$U$1000=Costs!$A660)*('Fixed assets'!$R$2:$R$1000))","v":0},{"$f":"SUMPRODUCT(('Fixed assets'!$R$2:$R$1000)*('Fixed assets'!$P$2:$P$1000<$A660)*('Fixed assets'!$Q$2:$Q$1000=Costs!AO$617))-SUMPRODUCT(('Fixed assets'!$S$2:$S$1000)*('Fixed assets'!$P$2:$P$1000<Costs!$A660)*('Fixed assets'!$Q$2:$Q$1000=Costs!AO$617))-SUMPRODUCT(('Fixed assets'!$Q$2:$Q$1000=Costs!AO$617)*('Fixed assets'!$U$2:$U$1000=Costs!$A660)*('Fixed assets'!$S$2:$S$1000))+SUMPRODUCT(('Fixed assets'!$Q$2:$Q$1000=Costs!AO$617)*('Fixed assets'!$P$2:$P$1000=Costs!$A660)*('Fixed assets'!$U$2:$U$1000=Costs!$A660)*('Fixed assets'!$R$2:$R$1000))","v":0},{"$f":"SUMPRODUCT(('Fixed assets'!$R$2:$R$1000)*('Fixed assets'!$P$2:$P$1000<$A660)*('Fixed assets'!$Q$2:$Q$1000=Costs!AP$617))-SUMPRODUCT(('Fixed assets'!$S$2:$S$1000)*('Fixed assets'!$P$2:$P$1000<Costs!$A660)*('Fixed assets'!$Q$2:$Q$1000=Costs!AP$617))-SUMPRODUCT(('Fixed assets'!$Q$2:$Q$1000=Costs!AP$617)*('Fixed assets'!$U$2:$U$1000=Costs!$A660)*('Fixed assets'!$S$2:$S$1000))+SUMPRODUCT(('Fixed assets'!$Q$2:$Q$1000=Costs!AP$617)*('Fixed assets'!$P$2:$P$1000=Costs!$A660)*('Fixed assets'!$U$2:$U$1000=Costs!$A660)*('Fixed assets'!$R$2:$R$1000))","v":0},{"$f":"SUMPRODUCT(('Fixed assets'!$R$2:$R$1000)*('Fixed assets'!$P$2:$P$1000<$A660)*('Fixed assets'!$Q$2:$Q$1000=Costs!AQ$617))-SUMPRODUCT(('Fixed assets'!$S$2:$S$1000)*('Fixed assets'!$P$2:$P$1000<Costs!$A660)*('Fixed assets'!$Q$2:$Q$1000=Costs!AQ$617))-SUMPRODUCT(('Fixed assets'!$Q$2:$Q$1000=Costs!AQ$617)*('Fixed assets'!$U$2:$U$1000=Costs!$A660)*('Fixed assets'!$S$2:$S$1000))+SUMPRODUCT(('Fixed assets'!$Q$2:$Q$1000=Costs!AQ$617)*('Fixed assets'!$P$2:$P$1000=Costs!$A660)*('Fixed assets'!$U$2:$U$1000=Costs!$A660)*('Fixed assets'!$R$2:$R$1000))","v":0}]
[2058,0,{"$f":"SUMPRODUCT(('Fixed assets'!$R$2:$R$1000)*('Fixed assets'!$P$2:$P$1000<$A661)*('Fixed assets'!$Q$2:$Q$1000=Costs!C$617))-SUMPRODUCT(('Fixed assets'!$S$2:$S$1000)*('Fixed assets'!$P$2:$P$1000<Costs!$A661)*('Fixed assets'!$Q$2:$Q$1000=Costs!C$617))-SUMPRODUCT(('Fixed assets'!$Q$2:$Q$1000=Costs!C$617)*('Fixed assets'!$U$2:$U$1000=Costs!$A661)*('Fixed assets'!$S$2:$S$1000))+SUMPRODUCT(('Fixed assets'!$Q$2:$Q$1000=Costs!C$617)*('Fixed assets'!$P$2:$P$1000=Costs!$A661)*('Fixed assets'!$U$2:$U$1000=Costs!$A661)*('Fixed assets'!$R$2:$R$1000))","v":0},{"$f":"SUMPRODUCT(('Fixed assets'!$R$2:$R$1000)*('Fixed assets'!$P$2:$P$1000<$A661)*('Fixed assets'!$Q$2:$Q$1000=Costs!D$617))-SUMPRODUCT(('Fixed assets'!$S$2:$S$1000)*('Fixed assets'!$P$2:$P$1000<Costs!$A661)*('Fixed assets'!$Q$2:$Q$1000=Costs!D$617))-SUMPRODUCT(('Fixed assets'!$Q$2:$Q$1000=Costs!D$617)*('Fixed assets'!$U$2:$U$1000=Costs!$A661)*('Fixed assets'!$S$2:$S$1000))+SUMPRODUCT(('Fixed assets'!$Q$2:$Q$1000=Costs!D$617)*('Fixed assets'!$P$2:$P$1000=Costs!$A661)*('Fixed assets'!$U$2:$U$1000=Costs!$A661)*('Fixed assets'!$R$2:$R$1000))","v":0},{"$f":"SUMPRODUCT(('Fixed assets'!$R$2:$R$1000)*('Fixed assets'!$P$2:$P$1000<$A661)*('Fixed assets'!$Q$2:$Q$1000=Costs!E$617))-SUMPRODUCT(('Fixed assets'!$S$2:$S$1000)*('Fixed assets'!$P$2:$P$1000<Costs!$A661)*('Fixed assets'!$Q$2:$Q$1000=Costs!E$617))-SUMPRODUCT(('Fixed assets'!$Q$2:$Q$1000=Costs!E$617)*('Fixed assets'!$U$2:$U$1000=Costs!$A661)*('Fixed assets'!$S$2:$S$1000))+SUMPRODUCT(('Fixed assets'!$Q$2:$Q$1000=Costs!E$617)*('Fixed assets'!$P$2:$P$1000=Costs!$A661)*('Fixed assets'!$U$2:$U$1000=Costs!$A661)*('Fixed assets'!$R$2:$R$1000))","v":0},{"$f":"SUMPRODUCT(('Fixed assets'!$R$2:$R$1000)*('Fixed assets'!$P$2:$P$1000<$A661)*('Fixed assets'!$Q$2:$Q$1000=Costs!F$617))-SUMPRODUCT(('Fixed assets'!$S$2:$S$1000)*('Fixed assets'!$P$2:$P$1000<Costs!$A661)*('Fixed assets'!$Q$2:$Q$1000=Costs!F$617))-SUMPRODUCT(('Fixed assets'!$Q$2:$Q$1000=Costs!F$617)*('Fixed assets'!$U$2:$U$1000=Costs!$A661)*('Fixed assets'!$S$2:$S$1000))+SUMPRODUCT(('Fixed assets'!$Q$2:$Q$1000=Costs!F$617)*('Fixed assets'!$P$2:$P$1000=Costs!$A661)*('Fixed assets'!$U$2:$U$1000=Costs!$A661)*('Fixed assets'!$R$2:$R$1000))","v":0},{"$f":"SUMPRODUCT(('Fixed assets'!$R$2:$R$1000)*('Fixed assets'!$P$2:$P$1000<$A661)*('Fixed assets'!$Q$2:$Q$1000=Costs!G$617))-SUMPRODUCT(('Fixed assets'!$S$2:$S$1000)*('Fixed assets'!$P$2:$P$1000<Costs!$A661)*('Fixed assets'!$Q$2:$Q$1000=Costs!G$617))-SUMPRODUCT(('Fixed assets'!$Q$2:$Q$1000=Costs!G$617)*('Fixed assets'!$U$2:$U$1000=Costs!$A661)*('Fixed assets'!$S$2:$S$1000))+SUMPRODUCT(('Fixed assets'!$Q$2:$Q$1000=Costs!G$617)*('Fixed assets'!$P$2:$P$1000=Costs!$A661)*('Fixed assets'!$U$2:$U$1000=Costs!$A661)*('Fixed assets'!$R$2:$R$1000))","v":0},{"$f":"SUMPRODUCT(('Fixed assets'!$R$2:$R$1000)*('Fixed assets'!$P$2:$P$1000<$A661)*('Fixed assets'!$Q$2:$Q$1000=Costs!H$617))-SUMPRODUCT(('Fixed assets'!$S$2:$S$1000)*('Fixed assets'!$P$2:$P$1000<Costs!$A661)*('Fixed assets'!$Q$2:$Q$1000=Costs!H$617))-SUMPRODUCT(('Fixed assets'!$Q$2:$Q$1000=Costs!H$617)*('Fixed assets'!$U$2:$U$1000=Costs!$A661)*('Fixed assets'!$S$2:$S$1000))+SUMPRODUCT(('Fixed assets'!$Q$2:$Q$1000=Costs!H$617)*('Fixed assets'!$P$2:$P$1000=Costs!$A661)*('Fixed assets'!$U$2:$U$1000=Costs!$A661)*('Fixed assets'!$R$2:$R$1000))","v":0},{"$f":"SUMPRODUCT(('Fixed assets'!$R$2:$R$1000)*('Fixed assets'!$P$2:$P$1000<$A661)*('Fixed assets'!$Q$2:$Q$1000=Costs!I$617))-SUMPRODUCT(('Fixed assets'!$S$2:$S$1000)*('Fixed assets'!$P$2:$P$1000<Costs!$A661)*('Fixed assets'!$Q$2:$Q$1000=Costs!I$617))-SUMPRODUCT(('Fixed assets'!$Q$2:$Q$1000=Costs!I$617)*('Fixed assets'!$U$2:$U$1000=Costs!$A661)*('Fixed assets'!$S$2:$S$1000))+SUMPRODUCT(('Fixed assets'!$Q$2:$Q$1000=Costs!I$617)*('Fixed assets'!$P$2:$P$1000=Costs!$A661)*('Fixed assets'!$U$2:$U$1000=Costs!$A661)*('Fixed assets'!$R$2:$R$1000))","v":0},{"$f":"SUMPRODUCT(('Fixed assets'!$R$2:$R$1000)*('Fixed assets'!$P$2:$P$1000<$A661)*('Fixed assets'!$Q$2:$Q$1000=Costs!J$617))-SUMPRODUCT(('Fixed assets'!$S$2:$S$1000)*('Fixed assets'!$P$2:$P$1000<Costs!$A661)*('Fixed assets'!$Q$2:$Q$1000=Costs!J$617))-SUMPRODUCT(('Fixed assets'!$Q$2:$Q$1000=Costs!J$617)*('Fixed assets'!$U$2:$U$1000=Costs!$A661)*('Fixed assets'!$S$2:$S$1000))+SUMPRODUCT(('Fixed assets'!$Q$2:$Q$1000=Costs!J$617)*('Fixed assets'!$P$2:$P$1000=Costs!$A661)*('Fixed assets'!$U$2:$U$1000=Costs!$A661)*('Fixed assets'!$R$2:$R$1000))","v":0},{"$f":"SUMPRODUCT(('Fixed assets'!$R$2:$R$1000)*('Fixed assets'!$P$2:$P$1000<$A661)*('Fixed assets'!$Q$2:$Q$1000=Costs!K$617))-SUMPRODUCT(('Fixed assets'!$S$2:$S$1000)*('Fixed assets'!$P$2:$P$1000<Costs!$A661)*('Fixed assets'!$Q$2:$Q$1000=Costs!K$617))-SUMPRODUCT(('Fixed assets'!$Q$2:$Q$1000=Costs!K$617)*('Fixed assets'!$U$2:$U$1000=Costs!$A661)*('Fixed assets'!$S$2:$S$1000))+SUMPRODUCT(('Fixed assets'!$Q$2:$Q$1000=Costs!K$617)*('Fixed assets'!$P$2:$P$1000=Costs!$A661)*('Fixed assets'!$U$2:$U$1000=Costs!$A661)*('Fixed assets'!$R$2:$R$1000))","v":0},{"$f":"SUMPRODUCT(('Fixed assets'!$R$2:$R$1000)*('Fixed assets'!$P$2:$P$1000<$A661)*('Fixed assets'!$Q$2:$Q$1000=Costs!L$617))-SUMPRODUCT(('Fixed assets'!$S$2:$S$1000)*('Fixed assets'!$P$2:$P$1000<Costs!$A661)*('Fixed assets'!$Q$2:$Q$1000=Costs!L$617))-SUMPRODUCT(('Fixed assets'!$Q$2:$Q$1000=Costs!L$617)*('Fixed assets'!$U$2:$U$1000=Costs!$A661)*('Fixed assets'!$S$2:$S$1000))+SUMPRODUCT(('Fixed assets'!$Q$2:$Q$1000=Costs!L$617)*('Fixed assets'!$P$2:$P$1000=Costs!$A661)*('Fixed assets'!$U$2:$U$1000=Costs!$A661)*('Fixed assets'!$R$2:$R$1000))","v":0},{"$f":"SUMPRODUCT(('Fixed assets'!$R$2:$R$1000)*('Fixed assets'!$P$2:$P$1000<$A661)*('Fixed assets'!$Q$2:$Q$1000=Costs!M$617))-SUMPRODUCT(('Fixed assets'!$S$2:$S$1000)*('Fixed assets'!$P$2:$P$1000<Costs!$A661)*('Fixed assets'!$Q$2:$Q$1000=Costs!M$617))-SUMPRODUCT(('Fixed assets'!$Q$2:$Q$1000=Costs!M$617)*('Fixed assets'!$U$2:$U$1000=Costs!$A661)*('Fixed assets'!$S$2:$S$1000))+SUMPRODUCT(('Fixed assets'!$Q$2:$Q$1000=Costs!M$617)*('Fixed assets'!$P$2:$P$1000=Costs!$A661)*('Fixed assets'!$U$2:$U$1000=Costs!$A661)*('Fixed assets'!$R$2:$R$1000))","v":0},{"$f":"SUMPRODUCT(('Fixed assets'!$R$2:$R$1000)*('Fixed assets'!$P$2:$P$1000<$A661)*('Fixed assets'!$Q$2:$Q$1000=Costs!N$617))-SUMPRODUCT(('Fixed assets'!$S$2:$S$1000)*('Fixed assets'!$P$2:$P$1000<Costs!$A661)*('Fixed assets'!$Q$2:$Q$1000=Costs!N$617))-SUMPRODUCT(('Fixed assets'!$Q$2:$Q$1000=Costs!N$617)*('Fixed assets'!$U$2:$U$1000=Costs!$A661)*('Fixed assets'!$S$2:$S$1000))+SUMPRODUCT(('Fixed assets'!$Q$2:$Q$1000=Costs!N$617)*('Fixed assets'!$P$2:$P$1000=Costs!$A661)*('Fixed assets'!$U$2:$U$1000=Costs!$A661)*('Fixed assets'!$R$2:$R$1000))","v":0},{"$f":"SUMPRODUCT(('Fixed assets'!$R$2:$R$1000)*('Fixed assets'!$P$2:$P$1000<$A661)*('Fixed assets'!$Q$2:$Q$1000=Costs!O$617))-SUMPRODUCT(('Fixed assets'!$S$2:$S$1000)*('Fixed assets'!$P$2:$P$1000<Costs!$A661)*('Fixed assets'!$Q$2:$Q$1000=Costs!O$617))-SUMPRODUCT(('Fixed assets'!$Q$2:$Q$1000=Costs!O$617)*('Fixed assets'!$U$2:$U$1000=Costs!$A661)*('Fixed assets'!$S$2:$S$1000))+SUMPRODUCT(('Fixed assets'!$Q$2:$Q$1000=Costs!O$617)*('Fixed assets'!$P$2:$P$1000=Costs!$A661)*('Fixed assets'!$U$2:$U$1000=Costs!$A661)*('Fixed assets'!$R$2:$R$1000))","v":0},{"$f":"SUMPRODUCT(('Fixed assets'!$R$2:$R$1000)*('Fixed assets'!$P$2:$P$1000<$A661)*('Fixed assets'!$Q$2:$Q$1000=Costs!P$617))-SUMPRODUCT(('Fixed assets'!$S$2:$S$1000)*('Fixed assets'!$P$2:$P$1000<Costs!$A661)*('Fixed assets'!$Q$2:$Q$1000=Costs!P$617))-SUMPRODUCT(('Fixed assets'!$Q$2:$Q$1000=Costs!P$617)*('Fixed assets'!$U$2:$U$1000=Costs!$A661)*('Fixed assets'!$S$2:$S$1000))+SUMPRODUCT(('Fixed assets'!$Q$2:$Q$1000=Costs!P$617)*('Fixed assets'!$P$2:$P$1000=Costs!$A661)*('Fixed assets'!$U$2:$U$1000=Costs!$A661)*('Fixed assets'!$R$2:$R$1000))","v":0},{"$f":"SUMPRODUCT(('Fixed assets'!$R$2:$R$1000)*('Fixed assets'!$P$2:$P$1000<$A661)*('Fixed assets'!$Q$2:$Q$1000=Costs!Q$617))-SUMPRODUCT(('Fixed assets'!$S$2:$S$1000)*('Fixed assets'!$P$2:$P$1000<Costs!$A661)*('Fixed assets'!$Q$2:$Q$1000=Costs!Q$617))-SUMPRODUCT(('Fixed assets'!$Q$2:$Q$1000=Costs!Q$617)*('Fixed assets'!$U$2:$U$1000=Costs!$A661)*('Fixed assets'!$S$2:$S$1000))+SUMPRODUCT(('Fixed assets'!$Q$2:$Q$1000=Costs!Q$617)*('Fixed assets'!$P$2:$P$1000=Costs!$A661)*('Fixed assets'!$U$2:$U$1000=Costs!$A661)*('Fixed assets'!$R$2:$R$1000))","v":0},{"$f":"SUMPRODUCT(('Fixed assets'!$R$2:$R$1000)*('Fixed assets'!$P$2:$P$1000<$A661)*('Fixed assets'!$Q$2:$Q$1000=Costs!R$617))-SUMPRODUCT(('Fixed assets'!$S$2:$S$1000)*('Fixed assets'!$P$2:$P$1000<Costs!$A661)*('Fixed assets'!$Q$2:$Q$1000=Costs!R$617))-SUMPRODUCT(('Fixed assets'!$Q$2:$Q$1000=Costs!R$617)*('Fixed assets'!$U$2:$U$1000=Costs!$A661)*('Fixed assets'!$S$2:$S$1000))+SUMPRODUCT(('Fixed assets'!$Q$2:$Q$1000=Costs!R$617)*('Fixed assets'!$P$2:$P$1000=Costs!$A661)*('Fixed assets'!$U$2:$U$1000=Costs!$A661)*('Fixed assets'!$R$2:$R$1000))","v":0},{"$f":"SUMPRODUCT(('Fixed assets'!$R$2:$R$1000)*('Fixed assets'!$P$2:$P$1000<$A661)*('Fixed assets'!$Q$2:$Q$1000=Costs!S$617))-SUMPRODUCT(('Fixed assets'!$S$2:$S$1000)*('Fixed assets'!$P$2:$P$1000<Costs!$A661)*('Fixed assets'!$Q$2:$Q$1000=Costs!S$617))-SUMPRODUCT(('Fixed assets'!$Q$2:$Q$1000=Costs!S$617)*('Fixed assets'!$U$2:$U$1000=Costs!$A661)*('Fixed assets'!$S$2:$S$1000))+SUMPRODUCT(('Fixed assets'!$Q$2:$Q$1000=Costs!S$617)*('Fixed assets'!$P$2:$P$1000=Costs!$A661)*('Fixed assets'!$U$2:$U$1000=Costs!$A661)*('Fixed assets'!$R$2:$R$1000))","v":0},{"$f":"SUMPRODUCT(('Fixed assets'!$R$2:$R$1000)*('Fixed assets'!$P$2:$P$1000<$A661)*('Fixed assets'!$Q$2:$Q$1000=Costs!T$617))-SUMPRODUCT(('Fixed assets'!$S$2:$S$1000)*('Fixed assets'!$P$2:$P$1000<Costs!$A661)*('Fixed assets'!$Q$2:$Q$1000=Costs!T$617))-SUMPRODUCT(('Fixed assets'!$Q$2:$Q$1000=Costs!T$617)*('Fixed assets'!$U$2:$U$1000=Costs!$A661)*('Fixed assets'!$S$2:$S$1000))+SUMPRODUCT(('Fixed assets'!$Q$2:$Q$1000=Costs!T$617)*('Fixed assets'!$P$2:$P$1000=Costs!$A661)*('Fixed assets'!$U$2:$U$1000=Costs!$A661)*('Fixed assets'!$R$2:$R$1000))","v":0},{"$f":"SUMPRODUCT(('Fixed assets'!$R$2:$R$1000)*('Fixed assets'!$P$2:$P$1000<$A661)*('Fixed assets'!$Q$2:$Q$1000=Costs!U$617))-SUMPRODUCT(('Fixed assets'!$S$2:$S$1000)*('Fixed assets'!$P$2:$P$1000<Costs!$A661)*('Fixed assets'!$Q$2:$Q$1000=Costs!U$617))-SUMPRODUCT(('Fixed assets'!$Q$2:$Q$1000=Costs!U$617)*('Fixed assets'!$U$2:$U$1000=Costs!$A661)*('Fixed assets'!$S$2:$S$1000))+SUMPRODUCT(('Fixed assets'!$Q$2:$Q$1000=Costs!U$617)*('Fixed assets'!$P$2:$P$1000=Costs!$A661)*('Fixed assets'!$U$2:$U$1000=Costs!$A661)*('Fixed assets'!$R$2:$R$1000))","v":0},{"$f":"SUMPRODUCT(('Fixed assets'!$R$2:$R$1000)*('Fixed assets'!$P$2:$P$1000<$A661)*('Fixed assets'!$Q$2:$Q$1000=Costs!V$617))-SUMPRODUCT(('Fixed assets'!$S$2:$S$1000)*('Fixed assets'!$P$2:$P$1000<Costs!$A661)*('Fixed assets'!$Q$2:$Q$1000=Costs!V$617))-SUMPRODUCT(('Fixed assets'!$Q$2:$Q$1000=Costs!V$617)*('Fixed assets'!$U$2:$U$1000=Costs!$A661)*('Fixed assets'!$S$2:$S$1000))+SUMPRODUCT(('Fixed assets'!$Q$2:$Q$1000=Costs!V$617)*('Fixed assets'!$P$2:$P$1000=Costs!$A661)*('Fixed assets'!$U$2:$U$1000=Costs!$A661)*('Fixed assets'!$R$2:$R$1000))","v":0},{"$f":"SUMPRODUCT(('Fixed assets'!$R$2:$R$1000)*('Fixed assets'!$P$2:$P$1000<$A661)*('Fixed assets'!$Q$2:$Q$1000=Costs!W$617))-SUMPRODUCT(('Fixed assets'!$S$2:$S$1000)*('Fixed assets'!$P$2:$P$1000<Costs!$A661)*('Fixed assets'!$Q$2:$Q$1000=Costs!W$617))-SUMPRODUCT(('Fixed assets'!$Q$2:$Q$1000=Costs!W$617)*('Fixed assets'!$U$2:$U$1000=Costs!$A661)*('Fixed assets'!$S$2:$S$1000))+SUMPRODUCT(('Fixed assets'!$Q$2:$Q$1000=Costs!W$617)*('Fixed assets'!$P$2:$P$1000=Costs!$A661)*('Fixed assets'!$U$2:$U$1000=Costs!$A661)*('Fixed assets'!$R$2:$R$1000))","v":0},{"$f":"SUMPRODUCT(('Fixed assets'!$R$2:$R$1000)*('Fixed assets'!$P$2:$P$1000<$A661)*('Fixed assets'!$Q$2:$Q$1000=Costs!X$617))-SUMPRODUCT(('Fixed assets'!$S$2:$S$1000)*('Fixed assets'!$P$2:$P$1000<Costs!$A661)*('Fixed assets'!$Q$2:$Q$1000=Costs!X$617))-SUMPRODUCT(('Fixed assets'!$Q$2:$Q$1000=Costs!X$617)*('Fixed assets'!$U$2:$U$1000=Costs!$A661)*('Fixed assets'!$S$2:$S$1000))+SUMPRODUCT(('Fixed assets'!$Q$2:$Q$1000=Costs!X$617)*('Fixed assets'!$P$2:$P$1000=Costs!$A661)*('Fixed assets'!$U$2:$U$1000=Costs!$A661)*('Fixed assets'!$R$2:$R$1000))","v":0},{"$f":"SUMPRODUCT(('Fixed assets'!$R$2:$R$1000)*('Fixed assets'!$P$2:$P$1000<$A661)*('Fixed assets'!$Q$2:$Q$1000=Costs!Y$617))-SUMPRODUCT(('Fixed assets'!$S$2:$S$1000)*('Fixed assets'!$P$2:$P$1000<Costs!$A661)*('Fixed assets'!$Q$2:$Q$1000=Costs!Y$617))-SUMPRODUCT(('Fixed assets'!$Q$2:$Q$1000=Costs!Y$617)*('Fixed assets'!$U$2:$U$1000=Costs!$A661)*('Fixed assets'!$S$2:$S$1000))+SUMPRODUCT(('Fixed assets'!$Q$2:$Q$1000=Costs!Y$617)*('Fixed assets'!$P$2:$P$1000=Costs!$A661)*('Fixed assets'!$U$2:$U$1000=Costs!$A661)*('Fixed assets'!$R$2:$R$1000))","v":0},{"$f":"SUMPRODUCT(('Fixed assets'!$R$2:$R$1000)*('Fixed assets'!$P$2:$P$1000<$A661)*('Fixed assets'!$Q$2:$Q$1000=Costs!Z$617))-SUMPRODUCT(('Fixed assets'!$S$2:$S$1000)*('Fixed assets'!$P$2:$P$1000<Costs!$A661)*('Fixed assets'!$Q$2:$Q$1000=Costs!Z$617))-SUMPRODUCT(('Fixed assets'!$Q$2:$Q$1000=Costs!Z$617)*('Fixed assets'!$U$2:$U$1000=Costs!$A661)*('Fixed assets'!$S$2:$S$1000))+SUMPRODUCT(('Fixed assets'!$Q$2:$Q$1000=Costs!Z$617)*('Fixed assets'!$P$2:$P$1000=Costs!$A661)*('Fixed assets'!$U$2:$U$1000=Costs!$A661)*('Fixed assets'!$R$2:$R$1000))","v":0},{"$f":"SUMPRODUCT(('Fixed assets'!$R$2:$R$1000)*('Fixed assets'!$P$2:$P$1000<$A661)*('Fixed assets'!$Q$2:$Q$1000=Costs!AA$617))-SUMPRODUCT(('Fixed assets'!$S$2:$S$1000)*('Fixed assets'!$P$2:$P$1000<Costs!$A661)*('Fixed assets'!$Q$2:$Q$1000=Costs!AA$617))-SUMPRODUCT(('Fixed assets'!$Q$2:$Q$1000=Costs!AA$617)*('Fixed assets'!$U$2:$U$1000=Costs!$A661)*('Fixed assets'!$S$2:$S$1000))+SUMPRODUCT(('Fixed assets'!$Q$2:$Q$1000=Costs!AA$617)*('Fixed assets'!$P$2:$P$1000=Costs!$A661)*('Fixed assets'!$U$2:$U$1000=Costs!$A661)*('Fixed assets'!$R$2:$R$1000))","v":0},{"$f":"SUMPRODUCT(('Fixed assets'!$R$2:$R$1000)*('Fixed assets'!$P$2:$P$1000<$A661)*('Fixed assets'!$Q$2:$Q$1000=Costs!AB$617))-SUMPRODUCT(('Fixed assets'!$S$2:$S$1000)*('Fixed assets'!$P$2:$P$1000<Costs!$A661)*('Fixed assets'!$Q$2:$Q$1000=Costs!AB$617))-SUMPRODUCT(('Fixed assets'!$Q$2:$Q$1000=Costs!AB$617)*('Fixed assets'!$U$2:$U$1000=Costs!$A661)*('Fixed assets'!$S$2:$S$1000))+SUMPRODUCT(('Fixed assets'!$Q$2:$Q$1000=Costs!AB$617)*('Fixed assets'!$P$2:$P$1000=Costs!$A661)*('Fixed assets'!$U$2:$U$1000=Costs!$A661)*('Fixed assets'!$R$2:$R$1000))","v":0},{"$f":"SUMPRODUCT(('Fixed assets'!$R$2:$R$1000)*('Fixed assets'!$P$2:$P$1000<$A661)*('Fixed assets'!$Q$2:$Q$1000=Costs!AC$617))-SUMPRODUCT(('Fixed assets'!$S$2:$S$1000)*('Fixed assets'!$P$2:$P$1000<Costs!$A661)*('Fixed assets'!$Q$2:$Q$1000=Costs!AC$617))-SUMPRODUCT(('Fixed assets'!$Q$2:$Q$1000=Costs!AC$617)*('Fixed assets'!$U$2:$U$1000=Costs!$A661)*('Fixed assets'!$S$2:$S$1000))+SUMPRODUCT(('Fixed assets'!$Q$2:$Q$1000=Costs!AC$617)*('Fixed assets'!$P$2:$P$1000=Costs!$A661)*('Fixed assets'!$U$2:$U$1000=Costs!$A661)*('Fixed assets'!$R$2:$R$1000))","v":0},{"$f":"SUMPRODUCT(('Fixed assets'!$R$2:$R$1000)*('Fixed assets'!$P$2:$P$1000<$A661)*('Fixed assets'!$Q$2:$Q$1000=Costs!AD$617))-SUMPRODUCT(('Fixed assets'!$S$2:$S$1000)*('Fixed assets'!$P$2:$P$1000<Costs!$A661)*('Fixed assets'!$Q$2:$Q$1000=Costs!AD$617))-SUMPRODUCT(('Fixed assets'!$Q$2:$Q$1000=Costs!AD$617)*('Fixed assets'!$U$2:$U$1000=Costs!$A661)*('Fixed assets'!$S$2:$S$1000))+SUMPRODUCT(('Fixed assets'!$Q$2:$Q$1000=Costs!AD$617)*('Fixed assets'!$P$2:$P$1000=Costs!$A661)*('Fixed assets'!$U$2:$U$1000=Costs!$A661)*('Fixed assets'!$R$2:$R$1000))","v":0},{"$f":"SUMPRODUCT(('Fixed assets'!$R$2:$R$1000)*('Fixed assets'!$P$2:$P$1000<$A661)*('Fixed assets'!$Q$2:$Q$1000=Costs!AE$617))-SUMPRODUCT(('Fixed assets'!$S$2:$S$1000)*('Fixed assets'!$P$2:$P$1000<Costs!$A661)*('Fixed assets'!$Q$2:$Q$1000=Costs!AE$617))-SUMPRODUCT(('Fixed assets'!$Q$2:$Q$1000=Costs!AE$617)*('Fixed assets'!$U$2:$U$1000=Costs!$A661)*('Fixed assets'!$S$2:$S$1000))+SUMPRODUCT(('Fixed assets'!$Q$2:$Q$1000=Costs!AE$617)*('Fixed assets'!$P$2:$P$1000=Costs!$A661)*('Fixed assets'!$U$2:$U$1000=Costs!$A661)*('Fixed assets'!$R$2:$R$1000))","v":0},{"$f":"SUMPRODUCT(('Fixed assets'!$R$2:$R$1000)*('Fixed assets'!$P$2:$P$1000<$A661)*('Fixed assets'!$Q$2:$Q$1000=Costs!AF$617))-SUMPRODUCT(('Fixed assets'!$S$2:$S$1000)*('Fixed assets'!$P$2:$P$1000<Costs!$A661)*('Fixed assets'!$Q$2:$Q$1000=Costs!AF$617))-SUMPRODUCT(('Fixed assets'!$Q$2:$Q$1000=Costs!AF$617)*('Fixed assets'!$U$2:$U$1000=Costs!$A661)*('Fixed assets'!$S$2:$S$1000))+SUMPRODUCT(('Fixed assets'!$Q$2:$Q$1000=Costs!AF$617)*('Fixed assets'!$P$2:$P$1000=Costs!$A661)*('Fixed assets'!$U$2:$U$1000=Costs!$A661)*('Fixed assets'!$R$2:$R$1000))","v":0},{"$f":"SUMPRODUCT(('Fixed assets'!$R$2:$R$1000)*('Fixed assets'!$P$2:$P$1000<$A661)*('Fixed assets'!$Q$2:$Q$1000=Costs!AG$617))-SUMPRODUCT(('Fixed assets'!$S$2:$S$1000)*('Fixed assets'!$P$2:$P$1000<Costs!$A661)*('Fixed assets'!$Q$2:$Q$1000=Costs!AG$617))-SUMPRODUCT(('Fixed assets'!$Q$2:$Q$1000=Costs!AG$617)*('Fixed assets'!$U$2:$U$1000=Costs!$A661)*('Fixed assets'!$S$2:$S$1000))+SUMPRODUCT(('Fixed assets'!$Q$2:$Q$1000=Costs!AG$617)*('Fixed assets'!$P$2:$P$1000=Costs!$A661)*('Fixed assets'!$U$2:$U$1000=Costs!$A661)*('Fixed assets'!$R$2:$R$1000))","v":0},{"$f":"SUMPRODUCT(('Fixed assets'!$R$2:$R$1000)*('Fixed assets'!$P$2:$P$1000<$A661)*('Fixed assets'!$Q$2:$Q$1000=Costs!AH$617))-SUMPRODUCT(('Fixed assets'!$S$2:$S$1000)*('Fixed assets'!$P$2:$P$1000<Costs!$A661)*('Fixed assets'!$Q$2:$Q$1000=Costs!AH$617))-SUMPRODUCT(('Fixed assets'!$Q$2:$Q$1000=Costs!AH$617)*('Fixed assets'!$U$2:$U$1000=Costs!$A661)*('Fixed assets'!$S$2:$S$1000))+SUMPRODUCT(('Fixed assets'!$Q$2:$Q$1000=Costs!AH$617)*('Fixed assets'!$P$2:$P$1000=Costs!$A661)*('Fixed assets'!$U$2:$U$1000=Costs!$A661)*('Fixed assets'!$R$2:$R$1000))","v":0},{"$f":"SUMPRODUCT(('Fixed assets'!$R$2:$R$1000)*('Fixed assets'!$P$2:$P$1000<$A661)*('Fixed assets'!$Q$2:$Q$1000=Costs!AI$617))-SUMPRODUCT(('Fixed assets'!$S$2:$S$1000)*('Fixed assets'!$P$2:$P$1000<Costs!$A661)*('Fixed assets'!$Q$2:$Q$1000=Costs!AI$617))-SUMPRODUCT(('Fixed assets'!$Q$2:$Q$1000=Costs!AI$617)*('Fixed assets'!$U$2:$U$1000=Costs!$A661)*('Fixed assets'!$S$2:$S$1000))+SUMPRODUCT(('Fixed assets'!$Q$2:$Q$1000=Costs!AI$617)*('Fixed assets'!$P$2:$P$1000=Costs!$A661)*('Fixed assets'!$U$2:$U$1000=Costs!$A661)*('Fixed assets'!$R$2:$R$1000))","v":0},{"$f":"SUMPRODUCT(('Fixed assets'!$R$2:$R$1000)*('Fixed assets'!$P$2:$P$1000<$A661)*('Fixed assets'!$Q$2:$Q$1000=Costs!AJ$617))-SUMPRODUCT(('Fixed assets'!$S$2:$S$1000)*('Fixed assets'!$P$2:$P$1000<Costs!$A661)*('Fixed assets'!$Q$2:$Q$1000=Costs!AJ$617))-SUMPRODUCT(('Fixed assets'!$Q$2:$Q$1000=Costs!AJ$617)*('Fixed assets'!$U$2:$U$1000=Costs!$A661)*('Fixed assets'!$S$2:$S$1000))+SUMPRODUCT(('Fixed assets'!$Q$2:$Q$1000=Costs!AJ$617)*('Fixed assets'!$P$2:$P$1000=Costs!$A661)*('Fixed assets'!$U$2:$U$1000=Costs!$A661)*('Fixed assets'!$R$2:$R$1000))","v":0},{"$f":"SUMPRODUCT(('Fixed assets'!$R$2:$R$1000)*('Fixed assets'!$P$2:$P$1000<$A661)*('Fixed assets'!$Q$2:$Q$1000=Costs!AK$617))-SUMPRODUCT(('Fixed assets'!$S$2:$S$1000)*('Fixed assets'!$P$2:$P$1000<Costs!$A661)*('Fixed assets'!$Q$2:$Q$1000=Costs!AK$617))-SUMPRODUCT(('Fixed assets'!$Q$2:$Q$1000=Costs!AK$617)*('Fixed assets'!$U$2:$U$1000=Costs!$A661)*('Fixed assets'!$S$2:$S$1000))+SUMPRODUCT(('Fixed assets'!$Q$2:$Q$1000=Costs!AK$617)*('Fixed assets'!$P$2:$P$1000=Costs!$A661)*('Fixed assets'!$U$2:$U$1000=Costs!$A661)*('Fixed assets'!$R$2:$R$1000))","v":0},{"$f":"SUMPRODUCT(('Fixed assets'!$R$2:$R$1000)*('Fixed assets'!$P$2:$P$1000<$A661)*('Fixed assets'!$Q$2:$Q$1000=Costs!AL$617))-SUMPRODUCT(('Fixed assets'!$S$2:$S$1000)*('Fixed assets'!$P$2:$P$1000<Costs!$A661)*('Fixed assets'!$Q$2:$Q$1000=Costs!AL$617))-SUMPRODUCT(('Fixed assets'!$Q$2:$Q$1000=Costs!AL$617)*('Fixed assets'!$U$2:$U$1000=Costs!$A661)*('Fixed assets'!$S$2:$S$1000))+SUMPRODUCT(('Fixed assets'!$Q$2:$Q$1000=Costs!AL$617)*('Fixed assets'!$P$2:$P$1000=Costs!$A661)*('Fixed assets'!$U$2:$U$1000=Costs!$A661)*('Fixed assets'!$R$2:$R$1000))","v":0},{"$f":"SUMPRODUCT(('Fixed assets'!$R$2:$R$1000)*('Fixed assets'!$P$2:$P$1000<$A661)*('Fixed assets'!$Q$2:$Q$1000=Costs!AM$617))-SUMPRODUCT(('Fixed assets'!$S$2:$S$1000)*('Fixed assets'!$P$2:$P$1000<Costs!$A661)*('Fixed assets'!$Q$2:$Q$1000=Costs!AM$617))-SUMPRODUCT(('Fixed assets'!$Q$2:$Q$1000=Costs!AM$617)*('Fixed assets'!$U$2:$U$1000=Costs!$A661)*('Fixed assets'!$S$2:$S$1000))+SUMPRODUCT(('Fixed assets'!$Q$2:$Q$1000=Costs!AM$617)*('Fixed assets'!$P$2:$P$1000=Costs!$A661)*('Fixed assets'!$U$2:$U$1000=Costs!$A661)*('Fixed assets'!$R$2:$R$1000))","v":0},{"$f":"SUMPRODUCT(('Fixed assets'!$R$2:$R$1000)*('Fixed assets'!$P$2:$P$1000<$A661)*('Fixed assets'!$Q$2:$Q$1000=Costs!AN$617))-SUMPRODUCT(('Fixed assets'!$S$2:$S$1000)*('Fixed assets'!$P$2:$P$1000<Costs!$A661)*('Fixed assets'!$Q$2:$Q$1000=Costs!AN$617))-SUMPRODUCT(('Fixed assets'!$Q$2:$Q$1000=Costs!AN$617)*('Fixed assets'!$U$2:$U$1000=Costs!$A661)*('Fixed assets'!$S$2:$S$1000))+SUMPRODUCT(('Fixed assets'!$Q$2:$Q$1000=Costs!AN$617)*('Fixed assets'!$P$2:$P$1000=Costs!$A661)*('Fixed assets'!$U$2:$U$1000=Costs!$A661)*('Fixed assets'!$R$2:$R$1000))","v":0},{"$f":"SUMPRODUCT(('Fixed assets'!$R$2:$R$1000)*('Fixed assets'!$P$2:$P$1000<$A661)*('Fixed assets'!$Q$2:$Q$1000=Costs!AO$617))-SUMPRODUCT(('Fixed assets'!$S$2:$S$1000)*('Fixed assets'!$P$2:$P$1000<Costs!$A661)*('Fixed assets'!$Q$2:$Q$1000=Costs!AO$617))-SUMPRODUCT(('Fixed assets'!$Q$2:$Q$1000=Costs!AO$617)*('Fixed assets'!$U$2:$U$1000=Costs!$A661)*('Fixed assets'!$S$2:$S$1000))+SUMPRODUCT(('Fixed assets'!$Q$2:$Q$1000=Costs!AO$617)*('Fixed assets'!$P$2:$P$1000=Costs!$A661)*('Fixed assets'!$U$2:$U$1000=Costs!$A661)*('Fixed assets'!$R$2:$R$1000))","v":0},{"$f":"SUMPRODUCT(('Fixed assets'!$R$2:$R$1000)*('Fixed assets'!$P$2:$P$1000<$A661)*('Fixed assets'!$Q$2:$Q$1000=Costs!AP$617))-SUMPRODUCT(('Fixed assets'!$S$2:$S$1000)*('Fixed assets'!$P$2:$P$1000<Costs!$A661)*('Fixed assets'!$Q$2:$Q$1000=Costs!AP$617))-SUMPRODUCT(('Fixed assets'!$Q$2:$Q$1000=Costs!AP$617)*('Fixed assets'!$U$2:$U$1000=Costs!$A661)*('Fixed assets'!$S$2:$S$1000))+SUMPRODUCT(('Fixed assets'!$Q$2:$Q$1000=Costs!AP$617)*('Fixed assets'!$P$2:$P$1000=Costs!$A661)*('Fixed assets'!$U$2:$U$1000=Costs!$A661)*('Fixed assets'!$R$2:$R$1000))","v":0},{"$f":"SUMPRODUCT(('Fixed assets'!$R$2:$R$1000)*('Fixed assets'!$P$2:$P$1000<$A661)*('Fixed assets'!$Q$2:$Q$1000=Costs!AQ$617))-SUMPRODUCT(('Fixed assets'!$S$2:$S$1000)*('Fixed assets'!$P$2:$P$1000<Costs!$A661)*('Fixed assets'!$Q$2:$Q$1000=Costs!AQ$617))-SUMPRODUCT(('Fixed assets'!$Q$2:$Q$1000=Costs!AQ$617)*('Fixed assets'!$U$2:$U$1000=Costs!$A661)*('Fixed assets'!$S$2:$S$1000))+SUMPRODUCT(('Fixed assets'!$Q$2:$Q$1000=Costs!AQ$617)*('Fixed assets'!$P$2:$P$1000=Costs!$A661)*('Fixed assets'!$U$2:$U$1000=Costs!$A661)*('Fixed assets'!$R$2:$R$1000))","v":0}]
[2059,0,{"$f":"SUMPRODUCT(('Fixed assets'!$R$2:$R$1000)*('Fixed assets'!$P$2:$P$1000<$A662)*('Fixed assets'!$Q$2:$Q$1000=Costs!C$617))-SUMPRODUCT(('Fixed assets'!$S$2:$S$1000)*('Fixed assets'!$P$2:$P$1000<Costs!$A662)*('Fixed assets'!$Q$2:$Q$1000=Costs!C$617))-SUMPRODUCT(('Fixed assets'!$Q$2:$Q$1000=Costs!C$617)*('Fixed assets'!$U$2:$U$1000=Costs!$A662)*('Fixed assets'!$S$2:$S$1000))+SUMPRODUCT(('Fixed assets'!$Q$2:$Q$1000=Costs!C$617)*('Fixed assets'!$P$2:$P$1000=Costs!$A662)*('Fixed assets'!$U$2:$U$1000=Costs!$A662)*('Fixed assets'!$R$2:$R$1000))","v":0},{"$f":"SUMPRODUCT(('Fixed assets'!$R$2:$R$1000)*('Fixed assets'!$P$2:$P$1000<$A662)*('Fixed assets'!$Q$2:$Q$1000=Costs!D$617))-SUMPRODUCT(('Fixed assets'!$S$2:$S$1000)*('Fixed assets'!$P$2:$P$1000<Costs!$A662)*('Fixed assets'!$Q$2:$Q$1000=Costs!D$617))-SUMPRODUCT(('Fixed assets'!$Q$2:$Q$1000=Costs!D$617)*('Fixed assets'!$U$2:$U$1000=Costs!$A662)*('Fixed assets'!$S$2:$S$1000))+SUMPRODUCT(('Fixed assets'!$Q$2:$Q$1000=Costs!D$617)*('Fixed assets'!$P$2:$P$1000=Costs!$A662)*('Fixed assets'!$U$2:$U$1000=Costs!$A662)*('Fixed assets'!$R$2:$R$1000))","v":0},{"$f":"SUMPRODUCT(('Fixed assets'!$R$2:$R$1000)*('Fixed assets'!$P$2:$P$1000<$A662)*('Fixed assets'!$Q$2:$Q$1000=Costs!E$617))-SUMPRODUCT(('Fixed assets'!$S$2:$S$1000)*('Fixed assets'!$P$2:$P$1000<Costs!$A662)*('Fixed assets'!$Q$2:$Q$1000=Costs!E$617))-SUMPRODUCT(('Fixed assets'!$Q$2:$Q$1000=Costs!E$617)*('Fixed assets'!$U$2:$U$1000=Costs!$A662)*('Fixed assets'!$S$2:$S$1000))+SUMPRODUCT(('Fixed assets'!$Q$2:$Q$1000=Costs!E$617)*('Fixed assets'!$P$2:$P$1000=Costs!$A662)*('Fixed assets'!$U$2:$U$1000=Costs!$A662)*('Fixed assets'!$R$2:$R$1000))","v":0},{"$f":"SUMPRODUCT(('Fixed assets'!$R$2:$R$1000)*('Fixed assets'!$P$2:$P$1000<$A662)*('Fixed assets'!$Q$2:$Q$1000=Costs!F$617))-SUMPRODUCT(('Fixed assets'!$S$2:$S$1000)*('Fixed assets'!$P$2:$P$1000<Costs!$A662)*('Fixed assets'!$Q$2:$Q$1000=Costs!F$617))-SUMPRODUCT(('Fixed assets'!$Q$2:$Q$1000=Costs!F$617)*('Fixed assets'!$U$2:$U$1000=Costs!$A662)*('Fixed assets'!$S$2:$S$1000))+SUMPRODUCT(('Fixed assets'!$Q$2:$Q$1000=Costs!F$617)*('Fixed assets'!$P$2:$P$1000=Costs!$A662)*('Fixed assets'!$U$2:$U$1000=Costs!$A662)*('Fixed assets'!$R$2:$R$1000))","v":0},{"$f":"SUMPRODUCT(('Fixed assets'!$R$2:$R$1000)*('Fixed assets'!$P$2:$P$1000<$A662)*('Fixed assets'!$Q$2:$Q$1000=Costs!G$617))-SUMPRODUCT(('Fixed assets'!$S$2:$S$1000)*('Fixed assets'!$P$2:$P$1000<Costs!$A662)*('Fixed assets'!$Q$2:$Q$1000=Costs!G$617))-SUMPRODUCT(('Fixed assets'!$Q$2:$Q$1000=Costs!G$617)*('Fixed assets'!$U$2:$U$1000=Costs!$A662)*('Fixed assets'!$S$2:$S$1000))+SUMPRODUCT(('Fixed assets'!$Q$2:$Q$1000=Costs!G$617)*('Fixed assets'!$P$2:$P$1000=Costs!$A662)*('Fixed assets'!$U$2:$U$1000=Costs!$A662)*('Fixed assets'!$R$2:$R$1000))","v":0},{"$f":"SUMPRODUCT(('Fixed assets'!$R$2:$R$1000)*('Fixed assets'!$P$2:$P$1000<$A662)*('Fixed assets'!$Q$2:$Q$1000=Costs!H$617))-SUMPRODUCT(('Fixed assets'!$S$2:$S$1000)*('Fixed assets'!$P$2:$P$1000<Costs!$A662)*('Fixed assets'!$Q$2:$Q$1000=Costs!H$617))-SUMPRODUCT(('Fixed assets'!$Q$2:$Q$1000=Costs!H$617)*('Fixed assets'!$U$2:$U$1000=Costs!$A662)*('Fixed assets'!$S$2:$S$1000))+SUMPRODUCT(('Fixed assets'!$Q$2:$Q$1000=Costs!H$617)*('Fixed assets'!$P$2:$P$1000=Costs!$A662)*('Fixed assets'!$U$2:$U$1000=Costs!$A662)*('Fixed assets'!$R$2:$R$1000))","v":0},{"$f":"SUMPRODUCT(('Fixed assets'!$R$2:$R$1000)*('Fixed assets'!$P$2:$P$1000<$A662)*('Fixed assets'!$Q$2:$Q$1000=Costs!I$617))-SUMPRODUCT(('Fixed assets'!$S$2:$S$1000)*('Fixed assets'!$P$2:$P$1000<Costs!$A662)*('Fixed assets'!$Q$2:$Q$1000=Costs!I$617))-SUMPRODUCT(('Fixed assets'!$Q$2:$Q$1000=Costs!I$617)*('Fixed assets'!$U$2:$U$1000=Costs!$A662)*('Fixed assets'!$S$2:$S$1000))+SUMPRODUCT(('Fixed assets'!$Q$2:$Q$1000=Costs!I$617)*('Fixed assets'!$P$2:$P$1000=Costs!$A662)*('Fixed assets'!$U$2:$U$1000=Costs!$A662)*('Fixed assets'!$R$2:$R$1000))","v":0},{"$f":"SUMPRODUCT(('Fixed assets'!$R$2:$R$1000)*('Fixed assets'!$P$2:$P$1000<$A662)*('Fixed assets'!$Q$2:$Q$1000=Costs!J$617))-SUMPRODUCT(('Fixed assets'!$S$2:$S$1000)*('Fixed assets'!$P$2:$P$1000<Costs!$A662)*('Fixed assets'!$Q$2:$Q$1000=Costs!J$617))-SUMPRODUCT(('Fixed assets'!$Q$2:$Q$1000=Costs!J$617)*('Fixed assets'!$U$2:$U$1000=Costs!$A662)*('Fixed assets'!$S$2:$S$1000))+SUMPRODUCT(('Fixed assets'!$Q$2:$Q$1000=Costs!J$617)*('Fixed assets'!$P$2:$P$1000=Costs!$A662)*('Fixed assets'!$U$2:$U$1000=Costs!$A662)*('Fixed assets'!$R$2:$R$1000))","v":0},{"$f":"SUMPRODUCT(('Fixed assets'!$R$2:$R$1000)*('Fixed assets'!$P$2:$P$1000<$A662)*('Fixed assets'!$Q$2:$Q$1000=Costs!K$617))-SUMPRODUCT(('Fixed assets'!$S$2:$S$1000)*('Fixed assets'!$P$2:$P$1000<Costs!$A662)*('Fixed assets'!$Q$2:$Q$1000=Costs!K$617))-SUMPRODUCT(('Fixed assets'!$Q$2:$Q$1000=Costs!K$617)*('Fixed assets'!$U$2:$U$1000=Costs!$A662)*('Fixed assets'!$S$2:$S$1000))+SUMPRODUCT(('Fixed assets'!$Q$2:$Q$1000=Costs!K$617)*('Fixed assets'!$P$2:$P$1000=Costs!$A662)*('Fixed assets'!$U$2:$U$1000=Costs!$A662)*('Fixed assets'!$R$2:$R$1000))","v":0},{"$f":"SUMPRODUCT(('Fixed assets'!$R$2:$R$1000)*('Fixed assets'!$P$2:$P$1000<$A662)*('Fixed assets'!$Q$2:$Q$1000=Costs!L$617))-SUMPRODUCT(('Fixed assets'!$S$2:$S$1000)*('Fixed assets'!$P$2:$P$1000<Costs!$A662)*('Fixed assets'!$Q$2:$Q$1000=Costs!L$617))-SUMPRODUCT(('Fixed assets'!$Q$2:$Q$1000=Costs!L$617)*('Fixed assets'!$U$2:$U$1000=Costs!$A662)*('Fixed assets'!$S$2:$S$1000))+SUMPRODUCT(('Fixed assets'!$Q$2:$Q$1000=Costs!L$617)*('Fixed assets'!$P$2:$P$1000=Costs!$A662)*('Fixed assets'!$U$2:$U$1000=Costs!$A662)*('Fixed assets'!$R$2:$R$1000))","v":0},{"$f":"SUMPRODUCT(('Fixed assets'!$R$2:$R$1000)*('Fixed assets'!$P$2:$P$1000<$A662)*('Fixed assets'!$Q$2:$Q$1000=Costs!M$617))-SUMPRODUCT(('Fixed assets'!$S$2:$S$1000)*('Fixed assets'!$P$2:$P$1000<Costs!$A662)*('Fixed assets'!$Q$2:$Q$1000=Costs!M$617))-SUMPRODUCT(('Fixed assets'!$Q$2:$Q$1000=Costs!M$617)*('Fixed assets'!$U$2:$U$1000=Costs!$A662)*('Fixed assets'!$S$2:$S$1000))+SUMPRODUCT(('Fixed assets'!$Q$2:$Q$1000=Costs!M$617)*('Fixed assets'!$P$2:$P$1000=Costs!$A662)*('Fixed assets'!$U$2:$U$1000=Costs!$A662)*('Fixed assets'!$R$2:$R$1000))","v":0},{"$f":"SUMPRODUCT(('Fixed assets'!$R$2:$R$1000)*('Fixed assets'!$P$2:$P$1000<$A662)*('Fixed assets'!$Q$2:$Q$1000=Costs!N$617))-SUMPRODUCT(('Fixed assets'!$S$2:$S$1000)*('Fixed assets'!$P$2:$P$1000<Costs!$A662)*('Fixed assets'!$Q$2:$Q$1000=Costs!N$617))-SUMPRODUCT(('Fixed assets'!$Q$2:$Q$1000=Costs!N$617)*('Fixed assets'!$U$2:$U$1000=Costs!$A662)*('Fixed assets'!$S$2:$S$1000))+SUMPRODUCT(('Fixed assets'!$Q$2:$Q$1000=Costs!N$617)*('Fixed assets'!$P$2:$P$1000=Costs!$A662)*('Fixed assets'!$U$2:$U$1000=Costs!$A662)*('Fixed assets'!$R$2:$R$1000))","v":0},{"$f":"SUMPRODUCT(('Fixed assets'!$R$2:$R$1000)*('Fixed assets'!$P$2:$P$1000<$A662)*('Fixed assets'!$Q$2:$Q$1000=Costs!O$617))-SUMPRODUCT(('Fixed assets'!$S$2:$S$1000)*('Fixed assets'!$P$2:$P$1000<Costs!$A662)*('Fixed assets'!$Q$2:$Q$1000=Costs!O$617))-SUMPRODUCT(('Fixed assets'!$Q$2:$Q$1000=Costs!O$617)*('Fixed assets'!$U$2:$U$1000=Costs!$A662)*('Fixed assets'!$S$2:$S$1000))+SUMPRODUCT(('Fixed assets'!$Q$2:$Q$1000=Costs!O$617)*('Fixed assets'!$P$2:$P$1000=Costs!$A662)*('Fixed assets'!$U$2:$U$1000=Costs!$A662)*('Fixed assets'!$R$2:$R$1000))","v":0},{"$f":"SUMPRODUCT(('Fixed assets'!$R$2:$R$1000)*('Fixed assets'!$P$2:$P$1000<$A662)*('Fixed assets'!$Q$2:$Q$1000=Costs!P$617))-SUMPRODUCT(('Fixed assets'!$S$2:$S$1000)*('Fixed assets'!$P$2:$P$1000<Costs!$A662)*('Fixed assets'!$Q$2:$Q$1000=Costs!P$617))-SUMPRODUCT(('Fixed assets'!$Q$2:$Q$1000=Costs!P$617)*('Fixed assets'!$U$2:$U$1000=Costs!$A662)*('Fixed assets'!$S$2:$S$1000))+SUMPRODUCT(('Fixed assets'!$Q$2:$Q$1000=Costs!P$617)*('Fixed assets'!$P$2:$P$1000=Costs!$A662)*('Fixed assets'!$U$2:$U$1000=Costs!$A662)*('Fixed assets'!$R$2:$R$1000))","v":0},{"$f":"SUMPRODUCT(('Fixed assets'!$R$2:$R$1000)*('Fixed assets'!$P$2:$P$1000<$A662)*('Fixed assets'!$Q$2:$Q$1000=Costs!Q$617))-SUMPRODUCT(('Fixed assets'!$S$2:$S$1000)*('Fixed assets'!$P$2:$P$1000<Costs!$A662)*('Fixed assets'!$Q$2:$Q$1000=Costs!Q$617))-SUMPRODUCT(('Fixed assets'!$Q$2:$Q$1000=Costs!Q$617)*('Fixed assets'!$U$2:$U$1000=Costs!$A662)*('Fixed assets'!$S$2:$S$1000))+SUMPRODUCT(('Fixed assets'!$Q$2:$Q$1000=Costs!Q$617)*('Fixed assets'!$P$2:$P$1000=Costs!$A662)*('Fixed assets'!$U$2:$U$1000=Costs!$A662)*('Fixed assets'!$R$2:$R$1000))","v":0},{"$f":"SUMPRODUCT(('Fixed assets'!$R$2:$R$1000)*('Fixed assets'!$P$2:$P$1000<$A662)*('Fixed assets'!$Q$2:$Q$1000=Costs!R$617))-SUMPRODUCT(('Fixed assets'!$S$2:$S$1000)*('Fixed assets'!$P$2:$P$1000<Costs!$A662)*('Fixed assets'!$Q$2:$Q$1000=Costs!R$617))-SUMPRODUCT(('Fixed assets'!$Q$2:$Q$1000=Costs!R$617)*('Fixed assets'!$U$2:$U$1000=Costs!$A662)*('Fixed assets'!$S$2:$S$1000))+SUMPRODUCT(('Fixed assets'!$Q$2:$Q$1000=Costs!R$617)*('Fixed assets'!$P$2:$P$1000=Costs!$A662)*('Fixed assets'!$U$2:$U$1000=Costs!$A662)*('Fixed assets'!$R$2:$R$1000))","v":0},{"$f":"SUMPRODUCT(('Fixed assets'!$R$2:$R$1000)*('Fixed assets'!$P$2:$P$1000<$A662)*('Fixed assets'!$Q$2:$Q$1000=Costs!S$617))-SUMPRODUCT(('Fixed assets'!$S$2:$S$1000)*('Fixed assets'!$P$2:$P$1000<Costs!$A662)*('Fixed assets'!$Q$2:$Q$1000=Costs!S$617))-SUMPRODUCT(('Fixed assets'!$Q$2:$Q$1000=Costs!S$617)*('Fixed assets'!$U$2:$U$1000=Costs!$A662)*('Fixed assets'!$S$2:$S$1000))+SUMPRODUCT(('Fixed assets'!$Q$2:$Q$1000=Costs!S$617)*('Fixed assets'!$P$2:$P$1000=Costs!$A662)*('Fixed assets'!$U$2:$U$1000=Costs!$A662)*('Fixed assets'!$R$2:$R$1000))","v":0},{"$f":"SUMPRODUCT(('Fixed assets'!$R$2:$R$1000)*('Fixed assets'!$P$2:$P$1000<$A662)*('Fixed assets'!$Q$2:$Q$1000=Costs!T$617))-SUMPRODUCT(('Fixed assets'!$S$2:$S$1000)*('Fixed assets'!$P$2:$P$1000<Costs!$A662)*('Fixed assets'!$Q$2:$Q$1000=Costs!T$617))-SUMPRODUCT(('Fixed assets'!$Q$2:$Q$1000=Costs!T$617)*('Fixed assets'!$U$2:$U$1000=Costs!$A662)*('Fixed assets'!$S$2:$S$1000))+SUMPRODUCT(('Fixed assets'!$Q$2:$Q$1000=Costs!T$617)*('Fixed assets'!$P$2:$P$1000=Costs!$A662)*('Fixed assets'!$U$2:$U$1000=Costs!$A662)*('Fixed assets'!$R$2:$R$1000))","v":0},{"$f":"SUMPRODUCT(('Fixed assets'!$R$2:$R$1000)*('Fixed assets'!$P$2:$P$1000<$A662)*('Fixed assets'!$Q$2:$Q$1000=Costs!U$617))-SUMPRODUCT(('Fixed assets'!$S$2:$S$1000)*('Fixed assets'!$P$2:$P$1000<Costs!$A662)*('Fixed assets'!$Q$2:$Q$1000=Costs!U$617))-SUMPRODUCT(('Fixed assets'!$Q$2:$Q$1000=Costs!U$617)*('Fixed assets'!$U$2:$U$1000=Costs!$A662)*('Fixed assets'!$S$2:$S$1000))+SUMPRODUCT(('Fixed assets'!$Q$2:$Q$1000=Costs!U$617)*('Fixed assets'!$P$2:$P$1000=Costs!$A662)*('Fixed assets'!$U$2:$U$1000=Costs!$A662)*('Fixed assets'!$R$2:$R$1000))","v":0},{"$f":"SUMPRODUCT(('Fixed assets'!$R$2:$R$1000)*('Fixed assets'!$P$2:$P$1000<$A662)*('Fixed assets'!$Q$2:$Q$1000=Costs!V$617))-SUMPRODUCT(('Fixed assets'!$S$2:$S$1000)*('Fixed assets'!$P$2:$P$1000<Costs!$A662)*('Fixed assets'!$Q$2:$Q$1000=Costs!V$617))-SUMPRODUCT(('Fixed assets'!$Q$2:$Q$1000=Costs!V$617)*('Fixed assets'!$U$2:$U$1000=Costs!$A662)*('Fixed assets'!$S$2:$S$1000))+SUMPRODUCT(('Fixed assets'!$Q$2:$Q$1000=Costs!V$617)*('Fixed assets'!$P$2:$P$1000=Costs!$A662)*('Fixed assets'!$U$2:$U$1000=Costs!$A662)*('Fixed assets'!$R$2:$R$1000))","v":0},{"$f":"SUMPRODUCT(('Fixed assets'!$R$2:$R$1000)*('Fixed assets'!$P$2:$P$1000<$A662)*('Fixed assets'!$Q$2:$Q$1000=Costs!W$617))-SUMPRODUCT(('Fixed assets'!$S$2:$S$1000)*('Fixed assets'!$P$2:$P$1000<Costs!$A662)*('Fixed assets'!$Q$2:$Q$1000=Costs!W$617))-SUMPRODUCT(('Fixed assets'!$Q$2:$Q$1000=Costs!W$617)*('Fixed assets'!$U$2:$U$1000=Costs!$A662)*('Fixed assets'!$S$2:$S$1000))+SUMPRODUCT(('Fixed assets'!$Q$2:$Q$1000=Costs!W$617)*('Fixed assets'!$P$2:$P$1000=Costs!$A662)*('Fixed assets'!$U$2:$U$1000=Costs!$A662)*('Fixed assets'!$R$2:$R$1000))","v":0},{"$f":"SUMPRODUCT(('Fixed assets'!$R$2:$R$1000)*('Fixed assets'!$P$2:$P$1000<$A662)*('Fixed assets'!$Q$2:$Q$1000=Costs!X$617))-SUMPRODUCT(('Fixed assets'!$S$2:$S$1000)*('Fixed assets'!$P$2:$P$1000<Costs!$A662)*('Fixed assets'!$Q$2:$Q$1000=Costs!X$617))-SUMPRODUCT(('Fixed assets'!$Q$2:$Q$1000=Costs!X$617)*('Fixed assets'!$U$2:$U$1000=Costs!$A662)*('Fixed assets'!$S$2:$S$1000))+SUMPRODUCT(('Fixed assets'!$Q$2:$Q$1000=Costs!X$617)*('Fixed assets'!$P$2:$P$1000=Costs!$A662)*('Fixed assets'!$U$2:$U$1000=Costs!$A662)*('Fixed assets'!$R$2:$R$1000))","v":0},{"$f":"SUMPRODUCT(('Fixed assets'!$R$2:$R$1000)*('Fixed assets'!$P$2:$P$1000<$A662)*('Fixed assets'!$Q$2:$Q$1000=Costs!Y$617))-SUMPRODUCT(('Fixed assets'!$S$2:$S$1000)*('Fixed assets'!$P$2:$P$1000<Costs!$A662)*('Fixed assets'!$Q$2:$Q$1000=Costs!Y$617))-SUMPRODUCT(('Fixed assets'!$Q$2:$Q$1000=Costs!Y$617)*('Fixed assets'!$U$2:$U$1000=Costs!$A662)*('Fixed assets'!$S$2:$S$1000))+SUMPRODUCT(('Fixed assets'!$Q$2:$Q$1000=Costs!Y$617)*('Fixed assets'!$P$2:$P$1000=Costs!$A662)*('Fixed assets'!$U$2:$U$1000=Costs!$A662)*('Fixed assets'!$R$2:$R$1000))","v":0},{"$f":"SUMPRODUCT(('Fixed assets'!$R$2:$R$1000)*('Fixed assets'!$P$2:$P$1000<$A662)*('Fixed assets'!$Q$2:$Q$1000=Costs!Z$617))-SUMPRODUCT(('Fixed assets'!$S$2:$S$1000)*('Fixed assets'!$P$2:$P$1000<Costs!$A662)*('Fixed assets'!$Q$2:$Q$1000=Costs!Z$617))-SUMPRODUCT(('Fixed assets'!$Q$2:$Q$1000=Costs!Z$617)*('Fixed assets'!$U$2:$U$1000=Costs!$A662)*('Fixed assets'!$S$2:$S$1000))+SUMPRODUCT(('Fixed assets'!$Q$2:$Q$1000=Costs!Z$617)*('Fixed assets'!$P$2:$P$1000=Costs!$A662)*('Fixed assets'!$U$2:$U$1000=Costs!$A662)*('Fixed assets'!$R$2:$R$1000))","v":0},{"$f":"SUMPRODUCT(('Fixed assets'!$R$2:$R$1000)*('Fixed assets'!$P$2:$P$1000<$A662)*('Fixed assets'!$Q$2:$Q$1000=Costs!AA$617))-SUMPRODUCT(('Fixed assets'!$S$2:$S$1000)*('Fixed assets'!$P$2:$P$1000<Costs!$A662)*('Fixed assets'!$Q$2:$Q$1000=Costs!AA$617))-SUMPRODUCT(('Fixed assets'!$Q$2:$Q$1000=Costs!AA$617)*('Fixed assets'!$U$2:$U$1000=Costs!$A662)*('Fixed assets'!$S$2:$S$1000))+SUMPRODUCT(('Fixed assets'!$Q$2:$Q$1000=Costs!AA$617)*('Fixed assets'!$P$2:$P$1000=Costs!$A662)*('Fixed assets'!$U$2:$U$1000=Costs!$A662)*('Fixed assets'!$R$2:$R$1000))","v":0},{"$f":"SUMPRODUCT(('Fixed assets'!$R$2:$R$1000)*('Fixed assets'!$P$2:$P$1000<$A662)*('Fixed assets'!$Q$2:$Q$1000=Costs!AB$617))-SUMPRODUCT(('Fixed assets'!$S$2:$S$1000)*('Fixed assets'!$P$2:$P$1000<Costs!$A662)*('Fixed assets'!$Q$2:$Q$1000=Costs!AB$617))-SUMPRODUCT(('Fixed assets'!$Q$2:$Q$1000=Costs!AB$617)*('Fixed assets'!$U$2:$U$1000=Costs!$A662)*('Fixed assets'!$S$2:$S$1000))+SUMPRODUCT(('Fixed assets'!$Q$2:$Q$1000=Costs!AB$617)*('Fixed assets'!$P$2:$P$1000=Costs!$A662)*('Fixed assets'!$U$2:$U$1000=Costs!$A662)*('Fixed assets'!$R$2:$R$1000))","v":0},{"$f":"SUMPRODUCT(('Fixed assets'!$R$2:$R$1000)*('Fixed assets'!$P$2:$P$1000<$A662)*('Fixed assets'!$Q$2:$Q$1000=Costs!AC$617))-SUMPRODUCT(('Fixed assets'!$S$2:$S$1000)*('Fixed assets'!$P$2:$P$1000<Costs!$A662)*('Fixed assets'!$Q$2:$Q$1000=Costs!AC$617))-SUMPRODUCT(('Fixed assets'!$Q$2:$Q$1000=Costs!AC$617)*('Fixed assets'!$U$2:$U$1000=Costs!$A662)*('Fixed assets'!$S$2:$S$1000))+SUMPRODUCT(('Fixed assets'!$Q$2:$Q$1000=Costs!AC$617)*('Fixed assets'!$P$2:$P$1000=Costs!$A662)*('Fixed assets'!$U$2:$U$1000=Costs!$A662)*('Fixed assets'!$R$2:$R$1000))","v":0},{"$f":"SUMPRODUCT(('Fixed assets'!$R$2:$R$1000)*('Fixed assets'!$P$2:$P$1000<$A662)*('Fixed assets'!$Q$2:$Q$1000=Costs!AD$617))-SUMPRODUCT(('Fixed assets'!$S$2:$S$1000)*('Fixed assets'!$P$2:$P$1000<Costs!$A662)*('Fixed assets'!$Q$2:$Q$1000=Costs!AD$617))-SUMPRODUCT(('Fixed assets'!$Q$2:$Q$1000=Costs!AD$617)*('Fixed assets'!$U$2:$U$1000=Costs!$A662)*('Fixed assets'!$S$2:$S$1000))+SUMPRODUCT(('Fixed assets'!$Q$2:$Q$1000=Costs!AD$617)*('Fixed assets'!$P$2:$P$1000=Costs!$A662)*('Fixed assets'!$U$2:$U$1000=Costs!$A662)*('Fixed assets'!$R$2:$R$1000))","v":0},{"$f":"SUMPRODUCT(('Fixed assets'!$R$2:$R$1000)*('Fixed assets'!$P$2:$P$1000<$A662)*('Fixed assets'!$Q$2:$Q$1000=Costs!AE$617))-SUMPRODUCT(('Fixed assets'!$S$2:$S$1000)*('Fixed assets'!$P$2:$P$1000<Costs!$A662)*('Fixed assets'!$Q$2:$Q$1000=Costs!AE$617))-SUMPRODUCT(('Fixed assets'!$Q$2:$Q$1000=Costs!AE$617)*('Fixed assets'!$U$2:$U$1000=Costs!$A662)*('Fixed assets'!$S$2:$S$1000))+SUMPRODUCT(('Fixed assets'!$Q$2:$Q$1000=Costs!AE$617)*('Fixed assets'!$P$2:$P$1000=Costs!$A662)*('Fixed assets'!$U$2:$U$1000=Costs!$A662)*('Fixed assets'!$R$2:$R$1000))","v":0},{"$f":"SUMPRODUCT(('Fixed assets'!$R$2:$R$1000)*('Fixed assets'!$P$2:$P$1000<$A662)*('Fixed assets'!$Q$2:$Q$1000=Costs!AF$617))-SUMPRODUCT(('Fixed assets'!$S$2:$S$1000)*('Fixed assets'!$P$2:$P$1000<Costs!$A662)*('Fixed assets'!$Q$2:$Q$1000=Costs!AF$617))-SUMPRODUCT(('Fixed assets'!$Q$2:$Q$1000=Costs!AF$617)*('Fixed assets'!$U$2:$U$1000=Costs!$A662)*('Fixed assets'!$S$2:$S$1000))+SUMPRODUCT(('Fixed assets'!$Q$2:$Q$1000=Costs!AF$617)*('Fixed assets'!$P$2:$P$1000=Costs!$A662)*('Fixed assets'!$U$2:$U$1000=Costs!$A662)*('Fixed assets'!$R$2:$R$1000))","v":0},{"$f":"SUMPRODUCT(('Fixed assets'!$R$2:$R$1000)*('Fixed assets'!$P$2:$P$1000<$A662)*('Fixed assets'!$Q$2:$Q$1000=Costs!AG$617))-SUMPRODUCT(('Fixed assets'!$S$2:$S$1000)*('Fixed assets'!$P$2:$P$1000<Costs!$A662)*('Fixed assets'!$Q$2:$Q$1000=Costs!AG$617))-SUMPRODUCT(('Fixed assets'!$Q$2:$Q$1000=Costs!AG$617)*('Fixed assets'!$U$2:$U$1000=Costs!$A662)*('Fixed assets'!$S$2:$S$1000))+SUMPRODUCT(('Fixed assets'!$Q$2:$Q$1000=Costs!AG$617)*('Fixed assets'!$P$2:$P$1000=Costs!$A662)*('Fixed assets'!$U$2:$U$1000=Costs!$A662)*('Fixed assets'!$R$2:$R$1000))","v":0},{"$f":"SUMPRODUCT(('Fixed assets'!$R$2:$R$1000)*('Fixed assets'!$P$2:$P$1000<$A662)*('Fixed assets'!$Q$2:$Q$1000=Costs!AH$617))-SUMPRODUCT(('Fixed assets'!$S$2:$S$1000)*('Fixed assets'!$P$2:$P$1000<Costs!$A662)*('Fixed assets'!$Q$2:$Q$1000=Costs!AH$617))-SUMPRODUCT(('Fixed assets'!$Q$2:$Q$1000=Costs!AH$617)*('Fixed assets'!$U$2:$U$1000=Costs!$A662)*('Fixed assets'!$S$2:$S$1000))+SUMPRODUCT(('Fixed assets'!$Q$2:$Q$1000=Costs!AH$617)*('Fixed assets'!$P$2:$P$1000=Costs!$A662)*('Fixed assets'!$U$2:$U$1000=Costs!$A662)*('Fixed assets'!$R$2:$R$1000))","v":0},{"$f":"SUMPRODUCT(('Fixed assets'!$R$2:$R$1000)*('Fixed assets'!$P$2:$P$1000<$A662)*('Fixed assets'!$Q$2:$Q$1000=Costs!AI$617))-SUMPRODUCT(('Fixed assets'!$S$2:$S$1000)*('Fixed assets'!$P$2:$P$1000<Costs!$A662)*('Fixed assets'!$Q$2:$Q$1000=Costs!AI$617))-SUMPRODUCT(('Fixed assets'!$Q$2:$Q$1000=Costs!AI$617)*('Fixed assets'!$U$2:$U$1000=Costs!$A662)*('Fixed assets'!$S$2:$S$1000))+SUMPRODUCT(('Fixed assets'!$Q$2:$Q$1000=Costs!AI$617)*('Fixed assets'!$P$2:$P$1000=Costs!$A662)*('Fixed assets'!$U$2:$U$1000=Costs!$A662)*('Fixed assets'!$R$2:$R$1000))","v":0},{"$f":"SUMPRODUCT(('Fixed assets'!$R$2:$R$1000)*('Fixed assets'!$P$2:$P$1000<$A662)*('Fixed assets'!$Q$2:$Q$1000=Costs!AJ$617))-SUMPRODUCT(('Fixed assets'!$S$2:$S$1000)*('Fixed assets'!$P$2:$P$1000<Costs!$A662)*('Fixed assets'!$Q$2:$Q$1000=Costs!AJ$617))-SUMPRODUCT(('Fixed assets'!$Q$2:$Q$1000=Costs!AJ$617)*('Fixed assets'!$U$2:$U$1000=Costs!$A662)*('Fixed assets'!$S$2:$S$1000))+SUMPRODUCT(('Fixed assets'!$Q$2:$Q$1000=Costs!AJ$617)*('Fixed assets'!$P$2:$P$1000=Costs!$A662)*('Fixed assets'!$U$2:$U$1000=Costs!$A662)*('Fixed assets'!$R$2:$R$1000))","v":0},{"$f":"SUMPRODUCT(('Fixed assets'!$R$2:$R$1000)*('Fixed assets'!$P$2:$P$1000<$A662)*('Fixed assets'!$Q$2:$Q$1000=Costs!AK$617))-SUMPRODUCT(('Fixed assets'!$S$2:$S$1000)*('Fixed assets'!$P$2:$P$1000<Costs!$A662)*('Fixed assets'!$Q$2:$Q$1000=Costs!AK$617))-SUMPRODUCT(('Fixed assets'!$Q$2:$Q$1000=Costs!AK$617)*('Fixed assets'!$U$2:$U$1000=Costs!$A662)*('Fixed assets'!$S$2:$S$1000))+SUMPRODUCT(('Fixed assets'!$Q$2:$Q$1000=Costs!AK$617)*('Fixed assets'!$P$2:$P$1000=Costs!$A662)*('Fixed assets'!$U$2:$U$1000=Costs!$A662)*('Fixed assets'!$R$2:$R$1000))","v":0},{"$f":"SUMPRODUCT(('Fixed assets'!$R$2:$R$1000)*('Fixed assets'!$P$2:$P$1000<$A662)*('Fixed assets'!$Q$2:$Q$1000=Costs!AL$617))-SUMPRODUCT(('Fixed assets'!$S$2:$S$1000)*('Fixed assets'!$P$2:$P$1000<Costs!$A662)*('Fixed assets'!$Q$2:$Q$1000=Costs!AL$617))-SUMPRODUCT(('Fixed assets'!$Q$2:$Q$1000=Costs!AL$617)*('Fixed assets'!$U$2:$U$1000=Costs!$A662)*('Fixed assets'!$S$2:$S$1000))+SUMPRODUCT(('Fixed assets'!$Q$2:$Q$1000=Costs!AL$617)*('Fixed assets'!$P$2:$P$1000=Costs!$A662)*('Fixed assets'!$U$2:$U$1000=Costs!$A662)*('Fixed assets'!$R$2:$R$1000))","v":0},{"$f":"SUMPRODUCT(('Fixed assets'!$R$2:$R$1000)*('Fixed assets'!$P$2:$P$1000<$A662)*('Fixed assets'!$Q$2:$Q$1000=Costs!AM$617))-SUMPRODUCT(('Fixed assets'!$S$2:$S$1000)*('Fixed assets'!$P$2:$P$1000<Costs!$A662)*('Fixed assets'!$Q$2:$Q$1000=Costs!AM$617))-SUMPRODUCT(('Fixed assets'!$Q$2:$Q$1000=Costs!AM$617)*('Fixed assets'!$U$2:$U$1000=Costs!$A662)*('Fixed assets'!$S$2:$S$1000))+SUMPRODUCT(('Fixed assets'!$Q$2:$Q$1000=Costs!AM$617)*('Fixed assets'!$P$2:$P$1000=Costs!$A662)*('Fixed assets'!$U$2:$U$1000=Costs!$A662)*('Fixed assets'!$R$2:$R$1000))","v":0},{"$f":"SUMPRODUCT(('Fixed assets'!$R$2:$R$1000)*('Fixed assets'!$P$2:$P$1000<$A662)*('Fixed assets'!$Q$2:$Q$1000=Costs!AN$617))-SUMPRODUCT(('Fixed assets'!$S$2:$S$1000)*('Fixed assets'!$P$2:$P$1000<Costs!$A662)*('Fixed assets'!$Q$2:$Q$1000=Costs!AN$617))-SUMPRODUCT(('Fixed assets'!$Q$2:$Q$1000=Costs!AN$617)*('Fixed assets'!$U$2:$U$1000=Costs!$A662)*('Fixed assets'!$S$2:$S$1000))+SUMPRODUCT(('Fixed assets'!$Q$2:$Q$1000=Costs!AN$617)*('Fixed assets'!$P$2:$P$1000=Costs!$A662)*('Fixed assets'!$U$2:$U$1000=Costs!$A662)*('Fixed assets'!$R$2:$R$1000))","v":0},{"$f":"SUMPRODUCT(('Fixed assets'!$R$2:$R$1000)*('Fixed assets'!$P$2:$P$1000<$A662)*('Fixed assets'!$Q$2:$Q$1000=Costs!AO$617))-SUMPRODUCT(('Fixed assets'!$S$2:$S$1000)*('Fixed assets'!$P$2:$P$1000<Costs!$A662)*('Fixed assets'!$Q$2:$Q$1000=Costs!AO$617))-SUMPRODUCT(('Fixed assets'!$Q$2:$Q$1000=Costs!AO$617)*('Fixed assets'!$U$2:$U$1000=Costs!$A662)*('Fixed assets'!$S$2:$S$1000))+SUMPRODUCT(('Fixed assets'!$Q$2:$Q$1000=Costs!AO$617)*('Fixed assets'!$P$2:$P$1000=Costs!$A662)*('Fixed assets'!$U$2:$U$1000=Costs!$A662)*('Fixed assets'!$R$2:$R$1000))","v":0},{"$f":"SUMPRODUCT(('Fixed assets'!$R$2:$R$1000)*('Fixed assets'!$P$2:$P$1000<$A662)*('Fixed assets'!$Q$2:$Q$1000=Costs!AP$617))-SUMPRODUCT(('Fixed assets'!$S$2:$S$1000)*('Fixed assets'!$P$2:$P$1000<Costs!$A662)*('Fixed assets'!$Q$2:$Q$1000=Costs!AP$617))-SUMPRODUCT(('Fixed assets'!$Q$2:$Q$1000=Costs!AP$617)*('Fixed assets'!$U$2:$U$1000=Costs!$A662)*('Fixed assets'!$S$2:$S$1000))+SUMPRODUCT(('Fixed assets'!$Q$2:$Q$1000=Costs!AP$617)*('Fixed assets'!$P$2:$P$1000=Costs!$A662)*('Fixed assets'!$U$2:$U$1000=Costs!$A662)*('Fixed assets'!$R$2:$R$1000))","v":0},{"$f":"SUMPRODUCT(('Fixed assets'!$R$2:$R$1000)*('Fixed assets'!$P$2:$P$1000<$A662)*('Fixed assets'!$Q$2:$Q$1000=Costs!AQ$617))-SUMPRODUCT(('Fixed assets'!$S$2:$S$1000)*('Fixed assets'!$P$2:$P$1000<Costs!$A662)*('Fixed assets'!$Q$2:$Q$1000=Costs!AQ$617))-SUMPRODUCT(('Fixed assets'!$Q$2:$Q$1000=Costs!AQ$617)*('Fixed assets'!$U$2:$U$1000=Costs!$A662)*('Fixed assets'!$S$2:$S$1000))+SUMPRODUCT(('Fixed assets'!$Q$2:$Q$1000=Costs!AQ$617)*('Fixed assets'!$P$2:$P$1000=Costs!$A662)*('Fixed assets'!$U$2:$U$1000=Costs!$A662)*('Fixed assets'!$R$2:$R$1000))","v":0}]
[2060,0,{"$f":"SUMPRODUCT(('Fixed assets'!$R$2:$R$1000)*('Fixed assets'!$P$2:$P$1000<$A663)*('Fixed assets'!$Q$2:$Q$1000=Costs!C$617))-SUMPRODUCT(('Fixed assets'!$S$2:$S$1000)*('Fixed assets'!$P$2:$P$1000<Costs!$A663)*('Fixed assets'!$Q$2:$Q$1000=Costs!C$617))-SUMPRODUCT(('Fixed assets'!$Q$2:$Q$1000=Costs!C$617)*('Fixed assets'!$U$2:$U$1000=Costs!$A663)*('Fixed assets'!$S$2:$S$1000))+SUMPRODUCT(('Fixed assets'!$Q$2:$Q$1000=Costs!C$617)*('Fixed assets'!$P$2:$P$1000=Costs!$A663)*('Fixed assets'!$U$2:$U$1000=Costs!$A663)*('Fixed assets'!$R$2:$R$1000))","v":0},{"$f":"SUMPRODUCT(('Fixed assets'!$R$2:$R$1000)*('Fixed assets'!$P$2:$P$1000<$A663)*('Fixed assets'!$Q$2:$Q$1000=Costs!D$617))-SUMPRODUCT(('Fixed assets'!$S$2:$S$1000)*('Fixed assets'!$P$2:$P$1000<Costs!$A663)*('Fixed assets'!$Q$2:$Q$1000=Costs!D$617))-SUMPRODUCT(('Fixed assets'!$Q$2:$Q$1000=Costs!D$617)*('Fixed assets'!$U$2:$U$1000=Costs!$A663)*('Fixed assets'!$S$2:$S$1000))+SUMPRODUCT(('Fixed assets'!$Q$2:$Q$1000=Costs!D$617)*('Fixed assets'!$P$2:$P$1000=Costs!$A663)*('Fixed assets'!$U$2:$U$1000=Costs!$A663)*('Fixed assets'!$R$2:$R$1000))","v":0},{"$f":"SUMPRODUCT(('Fixed assets'!$R$2:$R$1000)*('Fixed assets'!$P$2:$P$1000<$A663)*('Fixed assets'!$Q$2:$Q$1000=Costs!E$617))-SUMPRODUCT(('Fixed assets'!$S$2:$S$1000)*('Fixed assets'!$P$2:$P$1000<Costs!$A663)*('Fixed assets'!$Q$2:$Q$1000=Costs!E$617))-SUMPRODUCT(('Fixed assets'!$Q$2:$Q$1000=Costs!E$617)*('Fixed assets'!$U$2:$U$1000=Costs!$A663)*('Fixed assets'!$S$2:$S$1000))+SUMPRODUCT(('Fixed assets'!$Q$2:$Q$1000=Costs!E$617)*('Fixed assets'!$P$2:$P$1000=Costs!$A663)*('Fixed assets'!$U$2:$U$1000=Costs!$A663)*('Fixed assets'!$R$2:$R$1000))","v":0},{"$f":"SUMPRODUCT(('Fixed assets'!$R$2:$R$1000)*('Fixed assets'!$P$2:$P$1000<$A663)*('Fixed assets'!$Q$2:$Q$1000=Costs!F$617))-SUMPRODUCT(('Fixed assets'!$S$2:$S$1000)*('Fixed assets'!$P$2:$P$1000<Costs!$A663)*('Fixed assets'!$Q$2:$Q$1000=Costs!F$617))-SUMPRODUCT(('Fixed assets'!$Q$2:$Q$1000=Costs!F$617)*('Fixed assets'!$U$2:$U$1000=Costs!$A663)*('Fixed assets'!$S$2:$S$1000))+SUMPRODUCT(('Fixed assets'!$Q$2:$Q$1000=Costs!F$617)*('Fixed assets'!$P$2:$P$1000=Costs!$A663)*('Fixed assets'!$U$2:$U$1000=Costs!$A663)*('Fixed assets'!$R$2:$R$1000))","v":0},{"$f":"SUMPRODUCT(('Fixed assets'!$R$2:$R$1000)*('Fixed assets'!$P$2:$P$1000<$A663)*('Fixed assets'!$Q$2:$Q$1000=Costs!G$617))-SUMPRODUCT(('Fixed assets'!$S$2:$S$1000)*('Fixed assets'!$P$2:$P$1000<Costs!$A663)*('Fixed assets'!$Q$2:$Q$1000=Costs!G$617))-SUMPRODUCT(('Fixed assets'!$Q$2:$Q$1000=Costs!G$617)*('Fixed assets'!$U$2:$U$1000=Costs!$A663)*('Fixed assets'!$S$2:$S$1000))+SUMPRODUCT(('Fixed assets'!$Q$2:$Q$1000=Costs!G$617)*('Fixed assets'!$P$2:$P$1000=Costs!$A663)*('Fixed assets'!$U$2:$U$1000=Costs!$A663)*('Fixed assets'!$R$2:$R$1000))","v":0},{"$f":"SUMPRODUCT(('Fixed assets'!$R$2:$R$1000)*('Fixed assets'!$P$2:$P$1000<$A663)*('Fixed assets'!$Q$2:$Q$1000=Costs!H$617))-SUMPRODUCT(('Fixed assets'!$S$2:$S$1000)*('Fixed assets'!$P$2:$P$1000<Costs!$A663)*('Fixed assets'!$Q$2:$Q$1000=Costs!H$617))-SUMPRODUCT(('Fixed assets'!$Q$2:$Q$1000=Costs!H$617)*('Fixed assets'!$U$2:$U$1000=Costs!$A663)*('Fixed assets'!$S$2:$S$1000))+SUMPRODUCT(('Fixed assets'!$Q$2:$Q$1000=Costs!H$617)*('Fixed assets'!$P$2:$P$1000=Costs!$A663)*('Fixed assets'!$U$2:$U$1000=Costs!$A663)*('Fixed assets'!$R$2:$R$1000))","v":0},{"$f":"SUMPRODUCT(('Fixed assets'!$R$2:$R$1000)*('Fixed assets'!$P$2:$P$1000<$A663)*('Fixed assets'!$Q$2:$Q$1000=Costs!I$617))-SUMPRODUCT(('Fixed assets'!$S$2:$S$1000)*('Fixed assets'!$P$2:$P$1000<Costs!$A663)*('Fixed assets'!$Q$2:$Q$1000=Costs!I$617))-SUMPRODUCT(('Fixed assets'!$Q$2:$Q$1000=Costs!I$617)*('Fixed assets'!$U$2:$U$1000=Costs!$A663)*('Fixed assets'!$S$2:$S$1000))+SUMPRODUCT(('Fixed assets'!$Q$2:$Q$1000=Costs!I$617)*('Fixed assets'!$P$2:$P$1000=Costs!$A663)*('Fixed assets'!$U$2:$U$1000=Costs!$A663)*('Fixed assets'!$R$2:$R$1000))","v":0},{"$f":"SUMPRODUCT(('Fixed assets'!$R$2:$R$1000)*('Fixed assets'!$P$2:$P$1000<$A663)*('Fixed assets'!$Q$2:$Q$1000=Costs!J$617))-SUMPRODUCT(('Fixed assets'!$S$2:$S$1000)*('Fixed assets'!$P$2:$P$1000<Costs!$A663)*('Fixed assets'!$Q$2:$Q$1000=Costs!J$617))-SUMPRODUCT(('Fixed assets'!$Q$2:$Q$1000=Costs!J$617)*('Fixed assets'!$U$2:$U$1000=Costs!$A663)*('Fixed assets'!$S$2:$S$1000))+SUMPRODUCT(('Fixed assets'!$Q$2:$Q$1000=Costs!J$617)*('Fixed assets'!$P$2:$P$1000=Costs!$A663)*('Fixed assets'!$U$2:$U$1000=Costs!$A663)*('Fixed assets'!$R$2:$R$1000))","v":0},{"$f":"SUMPRODUCT(('Fixed assets'!$R$2:$R$1000)*('Fixed assets'!$P$2:$P$1000<$A663)*('Fixed assets'!$Q$2:$Q$1000=Costs!K$617))-SUMPRODUCT(('Fixed assets'!$S$2:$S$1000)*('Fixed assets'!$P$2:$P$1000<Costs!$A663)*('Fixed assets'!$Q$2:$Q$1000=Costs!K$617))-SUMPRODUCT(('Fixed assets'!$Q$2:$Q$1000=Costs!K$617)*('Fixed assets'!$U$2:$U$1000=Costs!$A663)*('Fixed assets'!$S$2:$S$1000))+SUMPRODUCT(('Fixed assets'!$Q$2:$Q$1000=Costs!K$617)*('Fixed assets'!$P$2:$P$1000=Costs!$A663)*('Fixed assets'!$U$2:$U$1000=Costs!$A663)*('Fixed assets'!$R$2:$R$1000))","v":0},{"$f":"SUMPRODUCT(('Fixed assets'!$R$2:$R$1000)*('Fixed assets'!$P$2:$P$1000<$A663)*('Fixed assets'!$Q$2:$Q$1000=Costs!L$617))-SUMPRODUCT(('Fixed assets'!$S$2:$S$1000)*('Fixed assets'!$P$2:$P$1000<Costs!$A663)*('Fixed assets'!$Q$2:$Q$1000=Costs!L$617))-SUMPRODUCT(('Fixed assets'!$Q$2:$Q$1000=Costs!L$617)*('Fixed assets'!$U$2:$U$1000=Costs!$A663)*('Fixed assets'!$S$2:$S$1000))+SUMPRODUCT(('Fixed assets'!$Q$2:$Q$1000=Costs!L$617)*('Fixed assets'!$P$2:$P$1000=Costs!$A663)*('Fixed assets'!$U$2:$U$1000=Costs!$A663)*('Fixed assets'!$R$2:$R$1000))","v":0},{"$f":"SUMPRODUCT(('Fixed assets'!$R$2:$R$1000)*('Fixed assets'!$P$2:$P$1000<$A663)*('Fixed assets'!$Q$2:$Q$1000=Costs!M$617))-SUMPRODUCT(('Fixed assets'!$S$2:$S$1000)*('Fixed assets'!$P$2:$P$1000<Costs!$A663)*('Fixed assets'!$Q$2:$Q$1000=Costs!M$617))-SUMPRODUCT(('Fixed assets'!$Q$2:$Q$1000=Costs!M$617)*('Fixed assets'!$U$2:$U$1000=Costs!$A663)*('Fixed assets'!$S$2:$S$1000))+SUMPRODUCT(('Fixed assets'!$Q$2:$Q$1000=Costs!M$617)*('Fixed assets'!$P$2:$P$1000=Costs!$A663)*('Fixed assets'!$U$2:$U$1000=Costs!$A663)*('Fixed assets'!$R$2:$R$1000))","v":0},{"$f":"SUMPRODUCT(('Fixed assets'!$R$2:$R$1000)*('Fixed assets'!$P$2:$P$1000<$A663)*('Fixed assets'!$Q$2:$Q$1000=Costs!N$617))-SUMPRODUCT(('Fixed assets'!$S$2:$S$1000)*('Fixed assets'!$P$2:$P$1000<Costs!$A663)*('Fixed assets'!$Q$2:$Q$1000=Costs!N$617))-SUMPRODUCT(('Fixed assets'!$Q$2:$Q$1000=Costs!N$617)*('Fixed assets'!$U$2:$U$1000=Costs!$A663)*('Fixed assets'!$S$2:$S$1000))+SUMPRODUCT(('Fixed assets'!$Q$2:$Q$1000=Costs!N$617)*('Fixed assets'!$P$2:$P$1000=Costs!$A663)*('Fixed assets'!$U$2:$U$1000=Costs!$A663)*('Fixed assets'!$R$2:$R$1000))","v":0},{"$f":"SUMPRODUCT(('Fixed assets'!$R$2:$R$1000)*('Fixed assets'!$P$2:$P$1000<$A663)*('Fixed assets'!$Q$2:$Q$1000=Costs!O$617))-SUMPRODUCT(('Fixed assets'!$S$2:$S$1000)*('Fixed assets'!$P$2:$P$1000<Costs!$A663)*('Fixed assets'!$Q$2:$Q$1000=Costs!O$617))-SUMPRODUCT(('Fixed assets'!$Q$2:$Q$1000=Costs!O$617)*('Fixed assets'!$U$2:$U$1000=Costs!$A663)*('Fixed assets'!$S$2:$S$1000))+SUMPRODUCT(('Fixed assets'!$Q$2:$Q$1000=Costs!O$617)*('Fixed assets'!$P$2:$P$1000=Costs!$A663)*('Fixed assets'!$U$2:$U$1000=Costs!$A663)*('Fixed assets'!$R$2:$R$1000))","v":0},{"$f":"SUMPRODUCT(('Fixed assets'!$R$2:$R$1000)*('Fixed assets'!$P$2:$P$1000<$A663)*('Fixed assets'!$Q$2:$Q$1000=Costs!P$617))-SUMPRODUCT(('Fixed assets'!$S$2:$S$1000)*('Fixed assets'!$P$2:$P$1000<Costs!$A663)*('Fixed assets'!$Q$2:$Q$1000=Costs!P$617))-SUMPRODUCT(('Fixed assets'!$Q$2:$Q$1000=Costs!P$617)*('Fixed assets'!$U$2:$U$1000=Costs!$A663)*('Fixed assets'!$S$2:$S$1000))+SUMPRODUCT(('Fixed assets'!$Q$2:$Q$1000=Costs!P$617)*('Fixed assets'!$P$2:$P$1000=Costs!$A663)*('Fixed assets'!$U$2:$U$1000=Costs!$A663)*('Fixed assets'!$R$2:$R$1000))","v":0},{"$f":"SUMPRODUCT(('Fixed assets'!$R$2:$R$1000)*('Fixed assets'!$P$2:$P$1000<$A663)*('Fixed assets'!$Q$2:$Q$1000=Costs!Q$617))-SUMPRODUCT(('Fixed assets'!$S$2:$S$1000)*('Fixed assets'!$P$2:$P$1000<Costs!$A663)*('Fixed assets'!$Q$2:$Q$1000=Costs!Q$617))-SUMPRODUCT(('Fixed assets'!$Q$2:$Q$1000=Costs!Q$617)*('Fixed assets'!$U$2:$U$1000=Costs!$A663)*('Fixed assets'!$S$2:$S$1000))+SUMPRODUCT(('Fixed assets'!$Q$2:$Q$1000=Costs!Q$617)*('Fixed assets'!$P$2:$P$1000=Costs!$A663)*('Fixed assets'!$U$2:$U$1000=Costs!$A663)*('Fixed assets'!$R$2:$R$1000))","v":0},{"$f":"SUMPRODUCT(('Fixed assets'!$R$2:$R$1000)*('Fixed assets'!$P$2:$P$1000<$A663)*('Fixed assets'!$Q$2:$Q$1000=Costs!R$617))-SUMPRODUCT(('Fixed assets'!$S$2:$S$1000)*('Fixed assets'!$P$2:$P$1000<Costs!$A663)*('Fixed assets'!$Q$2:$Q$1000=Costs!R$617))-SUMPRODUCT(('Fixed assets'!$Q$2:$Q$1000=Costs!R$617)*('Fixed assets'!$U$2:$U$1000=Costs!$A663)*('Fixed assets'!$S$2:$S$1000))+SUMPRODUCT(('Fixed assets'!$Q$2:$Q$1000=Costs!R$617)*('Fixed assets'!$P$2:$P$1000=Costs!$A663)*('Fixed assets'!$U$2:$U$1000=Costs!$A663)*('Fixed assets'!$R$2:$R$1000))","v":0},{"$f":"SUMPRODUCT(('Fixed assets'!$R$2:$R$1000)*('Fixed assets'!$P$2:$P$1000<$A663)*('Fixed assets'!$Q$2:$Q$1000=Costs!S$617))-SUMPRODUCT(('Fixed assets'!$S$2:$S$1000)*('Fixed assets'!$P$2:$P$1000<Costs!$A663)*('Fixed assets'!$Q$2:$Q$1000=Costs!S$617))-SUMPRODUCT(('Fixed assets'!$Q$2:$Q$1000=Costs!S$617)*('Fixed assets'!$U$2:$U$1000=Costs!$A663)*('Fixed assets'!$S$2:$S$1000))+SUMPRODUCT(('Fixed assets'!$Q$2:$Q$1000=Costs!S$617)*('Fixed assets'!$P$2:$P$1000=Costs!$A663)*('Fixed assets'!$U$2:$U$1000=Costs!$A663)*('Fixed assets'!$R$2:$R$1000))","v":0},{"$f":"SUMPRODUCT(('Fixed assets'!$R$2:$R$1000)*('Fixed assets'!$P$2:$P$1000<$A663)*('Fixed assets'!$Q$2:$Q$1000=Costs!T$617))-SUMPRODUCT(('Fixed assets'!$S$2:$S$1000)*('Fixed assets'!$P$2:$P$1000<Costs!$A663)*('Fixed assets'!$Q$2:$Q$1000=Costs!T$617))-SUMPRODUCT(('Fixed assets'!$Q$2:$Q$1000=Costs!T$617)*('Fixed assets'!$U$2:$U$1000=Costs!$A663)*('Fixed assets'!$S$2:$S$1000))+SUMPRODUCT(('Fixed assets'!$Q$2:$Q$1000=Costs!T$617)*('Fixed assets'!$P$2:$P$1000=Costs!$A663)*('Fixed assets'!$U$2:$U$1000=Costs!$A663)*('Fixed assets'!$R$2:$R$1000))","v":0},{"$f":"SUMPRODUCT(('Fixed assets'!$R$2:$R$1000)*('Fixed assets'!$P$2:$P$1000<$A663)*('Fixed assets'!$Q$2:$Q$1000=Costs!U$617))-SUMPRODUCT(('Fixed assets'!$S$2:$S$1000)*('Fixed assets'!$P$2:$P$1000<Costs!$A663)*('Fixed assets'!$Q$2:$Q$1000=Costs!U$617))-SUMPRODUCT(('Fixed assets'!$Q$2:$Q$1000=Costs!U$617)*('Fixed assets'!$U$2:$U$1000=Costs!$A663)*('Fixed assets'!$S$2:$S$1000))+SUMPRODUCT(('Fixed assets'!$Q$2:$Q$1000=Costs!U$617)*('Fixed assets'!$P$2:$P$1000=Costs!$A663)*('Fixed assets'!$U$2:$U$1000=Costs!$A663)*('Fixed assets'!$R$2:$R$1000))","v":0},{"$f":"SUMPRODUCT(('Fixed assets'!$R$2:$R$1000)*('Fixed assets'!$P$2:$P$1000<$A663)*('Fixed assets'!$Q$2:$Q$1000=Costs!V$617))-SUMPRODUCT(('Fixed assets'!$S$2:$S$1000)*('Fixed assets'!$P$2:$P$1000<Costs!$A663)*('Fixed assets'!$Q$2:$Q$1000=Costs!V$617))-SUMPRODUCT(('Fixed assets'!$Q$2:$Q$1000=Costs!V$617)*('Fixed assets'!$U$2:$U$1000=Costs!$A663)*('Fixed assets'!$S$2:$S$1000))+SUMPRODUCT(('Fixed assets'!$Q$2:$Q$1000=Costs!V$617)*('Fixed assets'!$P$2:$P$1000=Costs!$A663)*('Fixed assets'!$U$2:$U$1000=Costs!$A663)*('Fixed assets'!$R$2:$R$1000))","v":0},{"$f":"SUMPRODUCT(('Fixed assets'!$R$2:$R$1000)*('Fixed assets'!$P$2:$P$1000<$A663)*('Fixed assets'!$Q$2:$Q$1000=Costs!W$617))-SUMPRODUCT(('Fixed assets'!$S$2:$S$1000)*('Fixed assets'!$P$2:$P$1000<Costs!$A663)*('Fixed assets'!$Q$2:$Q$1000=Costs!W$617))-SUMPRODUCT(('Fixed assets'!$Q$2:$Q$1000=Costs!W$617)*('Fixed assets'!$U$2:$U$1000=Costs!$A663)*('Fixed assets'!$S$2:$S$1000))+SUMPRODUCT(('Fixed assets'!$Q$2:$Q$1000=Costs!W$617)*('Fixed assets'!$P$2:$P$1000=Costs!$A663)*('Fixed assets'!$U$2:$U$1000=Costs!$A663)*('Fixed assets'!$R$2:$R$1000))","v":0},{"$f":"SUMPRODUCT(('Fixed assets'!$R$2:$R$1000)*('Fixed assets'!$P$2:$P$1000<$A663)*('Fixed assets'!$Q$2:$Q$1000=Costs!X$617))-SUMPRODUCT(('Fixed assets'!$S$2:$S$1000)*('Fixed assets'!$P$2:$P$1000<Costs!$A663)*('Fixed assets'!$Q$2:$Q$1000=Costs!X$617))-SUMPRODUCT(('Fixed assets'!$Q$2:$Q$1000=Costs!X$617)*('Fixed assets'!$U$2:$U$1000=Costs!$A663)*('Fixed assets'!$S$2:$S$1000))+SUMPRODUCT(('Fixed assets'!$Q$2:$Q$1000=Costs!X$617)*('Fixed assets'!$P$2:$P$1000=Costs!$A663)*('Fixed assets'!$U$2:$U$1000=Costs!$A663)*('Fixed assets'!$R$2:$R$1000))","v":0},{"$f":"SUMPRODUCT(('Fixed assets'!$R$2:$R$1000)*('Fixed assets'!$P$2:$P$1000<$A663)*('Fixed assets'!$Q$2:$Q$1000=Costs!Y$617))-SUMPRODUCT(('Fixed assets'!$S$2:$S$1000)*('Fixed assets'!$P$2:$P$1000<Costs!$A663)*('Fixed assets'!$Q$2:$Q$1000=Costs!Y$617))-SUMPRODUCT(('Fixed assets'!$Q$2:$Q$1000=Costs!Y$617)*('Fixed assets'!$U$2:$U$1000=Costs!$A663)*('Fixed assets'!$S$2:$S$1000))+SUMPRODUCT(('Fixed assets'!$Q$2:$Q$1000=Costs!Y$617)*('Fixed assets'!$P$2:$P$1000=Costs!$A663)*('Fixed assets'!$U$2:$U$1000=Costs!$A663)*('Fixed assets'!$R$2:$R$1000))","v":0},{"$f":"SUMPRODUCT(('Fixed assets'!$R$2:$R$1000)*('Fixed assets'!$P$2:$P$1000<$A663)*('Fixed assets'!$Q$2:$Q$1000=Costs!Z$617))-SUMPRODUCT(('Fixed assets'!$S$2:$S$1000)*('Fixed assets'!$P$2:$P$1000<Costs!$A663)*('Fixed assets'!$Q$2:$Q$1000=Costs!Z$617))-SUMPRODUCT(('Fixed assets'!$Q$2:$Q$1000=Costs!Z$617)*('Fixed assets'!$U$2:$U$1000=Costs!$A663)*('Fixed assets'!$S$2:$S$1000))+SUMPRODUCT(('Fixed assets'!$Q$2:$Q$1000=Costs!Z$617)*('Fixed assets'!$P$2:$P$1000=Costs!$A663)*('Fixed assets'!$U$2:$U$1000=Costs!$A663)*('Fixed assets'!$R$2:$R$1000))","v":0},{"$f":"SUMPRODUCT(('Fixed assets'!$R$2:$R$1000)*('Fixed assets'!$P$2:$P$1000<$A663)*('Fixed assets'!$Q$2:$Q$1000=Costs!AA$617))-SUMPRODUCT(('Fixed assets'!$S$2:$S$1000)*('Fixed assets'!$P$2:$P$1000<Costs!$A663)*('Fixed assets'!$Q$2:$Q$1000=Costs!AA$617))-SUMPRODUCT(('Fixed assets'!$Q$2:$Q$1000=Costs!AA$617)*('Fixed assets'!$U$2:$U$1000=Costs!$A663)*('Fixed assets'!$S$2:$S$1000))+SUMPRODUCT(('Fixed assets'!$Q$2:$Q$1000=Costs!AA$617)*('Fixed assets'!$P$2:$P$1000=Costs!$A663)*('Fixed assets'!$U$2:$U$1000=Costs!$A663)*('Fixed assets'!$R$2:$R$1000))","v":0},{"$f":"SUMPRODUCT(('Fixed assets'!$R$2:$R$1000)*('Fixed assets'!$P$2:$P$1000<$A663)*('Fixed assets'!$Q$2:$Q$1000=Costs!AB$617))-SUMPRODUCT(('Fixed assets'!$S$2:$S$1000)*('Fixed assets'!$P$2:$P$1000<Costs!$A663)*('Fixed assets'!$Q$2:$Q$1000=Costs!AB$617))-SUMPRODUCT(('Fixed assets'!$Q$2:$Q$1000=Costs!AB$617)*('Fixed assets'!$U$2:$U$1000=Costs!$A663)*('Fixed assets'!$S$2:$S$1000))+SUMPRODUCT(('Fixed assets'!$Q$2:$Q$1000=Costs!AB$617)*('Fixed assets'!$P$2:$P$1000=Costs!$A663)*('Fixed assets'!$U$2:$U$1000=Costs!$A663)*('Fixed assets'!$R$2:$R$1000))","v":0},{"$f":"SUMPRODUCT(('Fixed assets'!$R$2:$R$1000)*('Fixed assets'!$P$2:$P$1000<$A663)*('Fixed assets'!$Q$2:$Q$1000=Costs!AC$617))-SUMPRODUCT(('Fixed assets'!$S$2:$S$1000)*('Fixed assets'!$P$2:$P$1000<Costs!$A663)*('Fixed assets'!$Q$2:$Q$1000=Costs!AC$617))-SUMPRODUCT(('Fixed assets'!$Q$2:$Q$1000=Costs!AC$617)*('Fixed assets'!$U$2:$U$1000=Costs!$A663)*('Fixed assets'!$S$2:$S$1000))+SUMPRODUCT(('Fixed assets'!$Q$2:$Q$1000=Costs!AC$617)*('Fixed assets'!$P$2:$P$1000=Costs!$A663)*('Fixed assets'!$U$2:$U$1000=Costs!$A663)*('Fixed assets'!$R$2:$R$1000))","v":0},{"$f":"SUMPRODUCT(('Fixed assets'!$R$2:$R$1000)*('Fixed assets'!$P$2:$P$1000<$A663)*('Fixed assets'!$Q$2:$Q$1000=Costs!AD$617))-SUMPRODUCT(('Fixed assets'!$S$2:$S$1000)*('Fixed assets'!$P$2:$P$1000<Costs!$A663)*('Fixed assets'!$Q$2:$Q$1000=Costs!AD$617))-SUMPRODUCT(('Fixed assets'!$Q$2:$Q$1000=Costs!AD$617)*('Fixed assets'!$U$2:$U$1000=Costs!$A663)*('Fixed assets'!$S$2:$S$1000))+SUMPRODUCT(('Fixed assets'!$Q$2:$Q$1000=Costs!AD$617)*('Fixed assets'!$P$2:$P$1000=Costs!$A663)*('Fixed assets'!$U$2:$U$1000=Costs!$A663)*('Fixed assets'!$R$2:$R$1000))","v":0},{"$f":"SUMPRODUCT(('Fixed assets'!$R$2:$R$1000)*('Fixed assets'!$P$2:$P$1000<$A663)*('Fixed assets'!$Q$2:$Q$1000=Costs!AE$617))-SUMPRODUCT(('Fixed assets'!$S$2:$S$1000)*('Fixed assets'!$P$2:$P$1000<Costs!$A663)*('Fixed assets'!$Q$2:$Q$1000=Costs!AE$617))-SUMPRODUCT(('Fixed assets'!$Q$2:$Q$1000=Costs!AE$617)*('Fixed assets'!$U$2:$U$1000=Costs!$A663)*('Fixed assets'!$S$2:$S$1000))+SUMPRODUCT(('Fixed assets'!$Q$2:$Q$1000=Costs!AE$617)*('Fixed assets'!$P$2:$P$1000=Costs!$A663)*('Fixed assets'!$U$2:$U$1000=Costs!$A663)*('Fixed assets'!$R$2:$R$1000))","v":0},{"$f":"SUMPRODUCT(('Fixed assets'!$R$2:$R$1000)*('Fixed assets'!$P$2:$P$1000<$A663)*('Fixed assets'!$Q$2:$Q$1000=Costs!AF$617))-SUMPRODUCT(('Fixed assets'!$S$2:$S$1000)*('Fixed assets'!$P$2:$P$1000<Costs!$A663)*('Fixed assets'!$Q$2:$Q$1000=Costs!AF$617))-SUMPRODUCT(('Fixed assets'!$Q$2:$Q$1000=Costs!AF$617)*('Fixed assets'!$U$2:$U$1000=Costs!$A663)*('Fixed assets'!$S$2:$S$1000))+SUMPRODUCT(('Fixed assets'!$Q$2:$Q$1000=Costs!AF$617)*('Fixed assets'!$P$2:$P$1000=Costs!$A663)*('Fixed assets'!$U$2:$U$1000=Costs!$A663)*('Fixed assets'!$R$2:$R$1000))","v":0},{"$f":"SUMPRODUCT(('Fixed assets'!$R$2:$R$1000)*('Fixed assets'!$P$2:$P$1000<$A663)*('Fixed assets'!$Q$2:$Q$1000=Costs!AG$617))-SUMPRODUCT(('Fixed assets'!$S$2:$S$1000)*('Fixed assets'!$P$2:$P$1000<Costs!$A663)*('Fixed assets'!$Q$2:$Q$1000=Costs!AG$617))-SUMPRODUCT(('Fixed assets'!$Q$2:$Q$1000=Costs!AG$617)*('Fixed assets'!$U$2:$U$1000=Costs!$A663)*('Fixed assets'!$S$2:$S$1000))+SUMPRODUCT(('Fixed assets'!$Q$2:$Q$1000=Costs!AG$617)*('Fixed assets'!$P$2:$P$1000=Costs!$A663)*('Fixed assets'!$U$2:$U$1000=Costs!$A663)*('Fixed assets'!$R$2:$R$1000))","v":0},{"$f":"SUMPRODUCT(('Fixed assets'!$R$2:$R$1000)*('Fixed assets'!$P$2:$P$1000<$A663)*('Fixed assets'!$Q$2:$Q$1000=Costs!AH$617))-SUMPRODUCT(('Fixed assets'!$S$2:$S$1000)*('Fixed assets'!$P$2:$P$1000<Costs!$A663)*('Fixed assets'!$Q$2:$Q$1000=Costs!AH$617))-SUMPRODUCT(('Fixed assets'!$Q$2:$Q$1000=Costs!AH$617)*('Fixed assets'!$U$2:$U$1000=Costs!$A663)*('Fixed assets'!$S$2:$S$1000))+SUMPRODUCT(('Fixed assets'!$Q$2:$Q$1000=Costs!AH$617)*('Fixed assets'!$P$2:$P$1000=Costs!$A663)*('Fixed assets'!$U$2:$U$1000=Costs!$A663)*('Fixed assets'!$R$2:$R$1000))","v":0},{"$f":"SUMPRODUCT(('Fixed assets'!$R$2:$R$1000)*('Fixed assets'!$P$2:$P$1000<$A663)*('Fixed assets'!$Q$2:$Q$1000=Costs!AI$617))-SUMPRODUCT(('Fixed assets'!$S$2:$S$1000)*('Fixed assets'!$P$2:$P$1000<Costs!$A663)*('Fixed assets'!$Q$2:$Q$1000=Costs!AI$617))-SUMPRODUCT(('Fixed assets'!$Q$2:$Q$1000=Costs!AI$617)*('Fixed assets'!$U$2:$U$1000=Costs!$A663)*('Fixed assets'!$S$2:$S$1000))+SUMPRODUCT(('Fixed assets'!$Q$2:$Q$1000=Costs!AI$617)*('Fixed assets'!$P$2:$P$1000=Costs!$A663)*('Fixed assets'!$U$2:$U$1000=Costs!$A663)*('Fixed assets'!$R$2:$R$1000))","v":0},{"$f":"SUMPRODUCT(('Fixed assets'!$R$2:$R$1000)*('Fixed assets'!$P$2:$P$1000<$A663)*('Fixed assets'!$Q$2:$Q$1000=Costs!AJ$617))-SUMPRODUCT(('Fixed assets'!$S$2:$S$1000)*('Fixed assets'!$P$2:$P$1000<Costs!$A663)*('Fixed assets'!$Q$2:$Q$1000=Costs!AJ$617))-SUMPRODUCT(('Fixed assets'!$Q$2:$Q$1000=Costs!AJ$617)*('Fixed assets'!$U$2:$U$1000=Costs!$A663)*('Fixed assets'!$S$2:$S$1000))+SUMPRODUCT(('Fixed assets'!$Q$2:$Q$1000=Costs!AJ$617)*('Fixed assets'!$P$2:$P$1000=Costs!$A663)*('Fixed assets'!$U$2:$U$1000=Costs!$A663)*('Fixed assets'!$R$2:$R$1000))","v":0},{"$f":"SUMPRODUCT(('Fixed assets'!$R$2:$R$1000)*('Fixed assets'!$P$2:$P$1000<$A663)*('Fixed assets'!$Q$2:$Q$1000=Costs!AK$617))-SUMPRODUCT(('Fixed assets'!$S$2:$S$1000)*('Fixed assets'!$P$2:$P$1000<Costs!$A663)*('Fixed assets'!$Q$2:$Q$1000=Costs!AK$617))-SUMPRODUCT(('Fixed assets'!$Q$2:$Q$1000=Costs!AK$617)*('Fixed assets'!$U$2:$U$1000=Costs!$A663)*('Fixed assets'!$S$2:$S$1000))+SUMPRODUCT(('Fixed assets'!$Q$2:$Q$1000=Costs!AK$617)*('Fixed assets'!$P$2:$P$1000=Costs!$A663)*('Fixed assets'!$U$2:$U$1000=Costs!$A663)*('Fixed assets'!$R$2:$R$1000))","v":0},{"$f":"SUMPRODUCT(('Fixed assets'!$R$2:$R$1000)*('Fixed assets'!$P$2:$P$1000<$A663)*('Fixed assets'!$Q$2:$Q$1000=Costs!AL$617))-SUMPRODUCT(('Fixed assets'!$S$2:$S$1000)*('Fixed assets'!$P$2:$P$1000<Costs!$A663)*('Fixed assets'!$Q$2:$Q$1000=Costs!AL$617))-SUMPRODUCT(('Fixed assets'!$Q$2:$Q$1000=Costs!AL$617)*('Fixed assets'!$U$2:$U$1000=Costs!$A663)*('Fixed assets'!$S$2:$S$1000))+SUMPRODUCT(('Fixed assets'!$Q$2:$Q$1000=Costs!AL$617)*('Fixed assets'!$P$2:$P$1000=Costs!$A663)*('Fixed assets'!$U$2:$U$1000=Costs!$A663)*('Fixed assets'!$R$2:$R$1000))","v":0},{"$f":"SUMPRODUCT(('Fixed assets'!$R$2:$R$1000)*('Fixed assets'!$P$2:$P$1000<$A663)*('Fixed assets'!$Q$2:$Q$1000=Costs!AM$617))-SUMPRODUCT(('Fixed assets'!$S$2:$S$1000)*('Fixed assets'!$P$2:$P$1000<Costs!$A663)*('Fixed assets'!$Q$2:$Q$1000=Costs!AM$617))-SUMPRODUCT(('Fixed assets'!$Q$2:$Q$1000=Costs!AM$617)*('Fixed assets'!$U$2:$U$1000=Costs!$A663)*('Fixed assets'!$S$2:$S$1000))+SUMPRODUCT(('Fixed assets'!$Q$2:$Q$1000=Costs!AM$617)*('Fixed assets'!$P$2:$P$1000=Costs!$A663)*('Fixed assets'!$U$2:$U$1000=Costs!$A663)*('Fixed assets'!$R$2:$R$1000))","v":0},{"$f":"SUMPRODUCT(('Fixed assets'!$R$2:$R$1000)*('Fixed assets'!$P$2:$P$1000<$A663)*('Fixed assets'!$Q$2:$Q$1000=Costs!AN$617))-SUMPRODUCT(('Fixed assets'!$S$2:$S$1000)*('Fixed assets'!$P$2:$P$1000<Costs!$A663)*('Fixed assets'!$Q$2:$Q$1000=Costs!AN$617))-SUMPRODUCT(('Fixed assets'!$Q$2:$Q$1000=Costs!AN$617)*('Fixed assets'!$U$2:$U$1000=Costs!$A663)*('Fixed assets'!$S$2:$S$1000))+SUMPRODUCT(('Fixed assets'!$Q$2:$Q$1000=Costs!AN$617)*('Fixed assets'!$P$2:$P$1000=Costs!$A663)*('Fixed assets'!$U$2:$U$1000=Costs!$A663)*('Fixed assets'!$R$2:$R$1000))","v":0},{"$f":"SUMPRODUCT(('Fixed assets'!$R$2:$R$1000)*('Fixed assets'!$P$2:$P$1000<$A663)*('Fixed assets'!$Q$2:$Q$1000=Costs!AO$617))-SUMPRODUCT(('Fixed assets'!$S$2:$S$1000)*('Fixed assets'!$P$2:$P$1000<Costs!$A663)*('Fixed assets'!$Q$2:$Q$1000=Costs!AO$617))-SUMPRODUCT(('Fixed assets'!$Q$2:$Q$1000=Costs!AO$617)*('Fixed assets'!$U$2:$U$1000=Costs!$A663)*('Fixed assets'!$S$2:$S$1000))+SUMPRODUCT(('Fixed assets'!$Q$2:$Q$1000=Costs!AO$617)*('Fixed assets'!$P$2:$P$1000=Costs!$A663)*('Fixed assets'!$U$2:$U$1000=Costs!$A663)*('Fixed assets'!$R$2:$R$1000))","v":0},{"$f":"SUMPRODUCT(('Fixed assets'!$R$2:$R$1000)*('Fixed assets'!$P$2:$P$1000<$A663)*('Fixed assets'!$Q$2:$Q$1000=Costs!AP$617))-SUMPRODUCT(('Fixed assets'!$S$2:$S$1000)*('Fixed assets'!$P$2:$P$1000<Costs!$A663)*('Fixed assets'!$Q$2:$Q$1000=Costs!AP$617))-SUMPRODUCT(('Fixed assets'!$Q$2:$Q$1000=Costs!AP$617)*('Fixed assets'!$U$2:$U$1000=Costs!$A663)*('Fixed assets'!$S$2:$S$1000))+SUMPRODUCT(('Fixed assets'!$Q$2:$Q$1000=Costs!AP$617)*('Fixed assets'!$P$2:$P$1000=Costs!$A663)*('Fixed assets'!$U$2:$U$1000=Costs!$A663)*('Fixed assets'!$R$2:$R$1000))","v":0},{"$f":"SUMPRODUCT(('Fixed assets'!$R$2:$R$1000)*('Fixed assets'!$P$2:$P$1000<$A663)*('Fixed assets'!$Q$2:$Q$1000=Costs!AQ$617))-SUMPRODUCT(('Fixed assets'!$S$2:$S$1000)*('Fixed assets'!$P$2:$P$1000<Costs!$A663)*('Fixed assets'!$Q$2:$Q$1000=Costs!AQ$617))-SUMPRODUCT(('Fixed assets'!$Q$2:$Q$1000=Costs!AQ$617)*('Fixed assets'!$U$2:$U$1000=Costs!$A663)*('Fixed assets'!$S$2:$S$1000))+SUMPRODUCT(('Fixed assets'!$Q$2:$Q$1000=Costs!AQ$617)*('Fixed assets'!$P$2:$P$1000=Costs!$A663)*('Fixed assets'!$U$2:$U$1000=Costs!$A663)*('Fixed assets'!$R$2:$R$1000))","v":0}]
[2061,0,{"$f":"SUMPRODUCT(('Fixed assets'!$R$2:$R$1000)*('Fixed assets'!$P$2:$P$1000<$A664)*('Fixed assets'!$Q$2:$Q$1000=Costs!C$617))-SUMPRODUCT(('Fixed assets'!$S$2:$S$1000)*('Fixed assets'!$P$2:$P$1000<Costs!$A664)*('Fixed assets'!$Q$2:$Q$1000=Costs!C$617))-SUMPRODUCT(('Fixed assets'!$Q$2:$Q$1000=Costs!C$617)*('Fixed assets'!$U$2:$U$1000=Costs!$A664)*('Fixed assets'!$S$2:$S$1000))+SUMPRODUCT(('Fixed assets'!$Q$2:$Q$1000=Costs!C$617)*('Fixed assets'!$P$2:$P$1000=Costs!$A664)*('Fixed assets'!$U$2:$U$1000=Costs!$A664)*('Fixed assets'!$R$2:$R$1000))","v":0},{"$f":"SUMPRODUCT(('Fixed assets'!$R$2:$R$1000)*('Fixed assets'!$P$2:$P$1000<$A664)*('Fixed assets'!$Q$2:$Q$1000=Costs!D$617))-SUMPRODUCT(('Fixed assets'!$S$2:$S$1000)*('Fixed assets'!$P$2:$P$1000<Costs!$A664)*('Fixed assets'!$Q$2:$Q$1000=Costs!D$617))-SUMPRODUCT(('Fixed assets'!$Q$2:$Q$1000=Costs!D$617)*('Fixed assets'!$U$2:$U$1000=Costs!$A664)*('Fixed assets'!$S$2:$S$1000))+SUMPRODUCT(('Fixed assets'!$Q$2:$Q$1000=Costs!D$617)*('Fixed assets'!$P$2:$P$1000=Costs!$A664)*('Fixed assets'!$U$2:$U$1000=Costs!$A664)*('Fixed assets'!$R$2:$R$1000))","v":0},{"$f":"SUMPRODUCT(('Fixed assets'!$R$2:$R$1000)*('Fixed assets'!$P$2:$P$1000<$A664)*('Fixed assets'!$Q$2:$Q$1000=Costs!E$617))-SUMPRODUCT(('Fixed assets'!$S$2:$S$1000)*('Fixed assets'!$P$2:$P$1000<Costs!$A664)*('Fixed assets'!$Q$2:$Q$1000=Costs!E$617))-SUMPRODUCT(('Fixed assets'!$Q$2:$Q$1000=Costs!E$617)*('Fixed assets'!$U$2:$U$1000=Costs!$A664)*('Fixed assets'!$S$2:$S$1000))+SUMPRODUCT(('Fixed assets'!$Q$2:$Q$1000=Costs!E$617)*('Fixed assets'!$P$2:$P$1000=Costs!$A664)*('Fixed assets'!$U$2:$U$1000=Costs!$A664)*('Fixed assets'!$R$2:$R$1000))","v":0},{"$f":"SUMPRODUCT(('Fixed assets'!$R$2:$R$1000)*('Fixed assets'!$P$2:$P$1000<$A664)*('Fixed assets'!$Q$2:$Q$1000=Costs!F$617))-SUMPRODUCT(('Fixed assets'!$S$2:$S$1000)*('Fixed assets'!$P$2:$P$1000<Costs!$A664)*('Fixed assets'!$Q$2:$Q$1000=Costs!F$617))-SUMPRODUCT(('Fixed assets'!$Q$2:$Q$1000=Costs!F$617)*('Fixed assets'!$U$2:$U$1000=Costs!$A664)*('Fixed assets'!$S$2:$S$1000))+SUMPRODUCT(('Fixed assets'!$Q$2:$Q$1000=Costs!F$617)*('Fixed assets'!$P$2:$P$1000=Costs!$A664)*('Fixed assets'!$U$2:$U$1000=Costs!$A664)*('Fixed assets'!$R$2:$R$1000))","v":0},{"$f":"SUMPRODUCT(('Fixed assets'!$R$2:$R$1000)*('Fixed assets'!$P$2:$P$1000<$A664)*('Fixed assets'!$Q$2:$Q$1000=Costs!G$617))-SUMPRODUCT(('Fixed assets'!$S$2:$S$1000)*('Fixed assets'!$P$2:$P$1000<Costs!$A664)*('Fixed assets'!$Q$2:$Q$1000=Costs!G$617))-SUMPRODUCT(('Fixed assets'!$Q$2:$Q$1000=Costs!G$617)*('Fixed assets'!$U$2:$U$1000=Costs!$A664)*('Fixed assets'!$S$2:$S$1000))+SUMPRODUCT(('Fixed assets'!$Q$2:$Q$1000=Costs!G$617)*('Fixed assets'!$P$2:$P$1000=Costs!$A664)*('Fixed assets'!$U$2:$U$1000=Costs!$A664)*('Fixed assets'!$R$2:$R$1000))","v":0},{"$f":"SUMPRODUCT(('Fixed assets'!$R$2:$R$1000)*('Fixed assets'!$P$2:$P$1000<$A664)*('Fixed assets'!$Q$2:$Q$1000=Costs!H$617))-SUMPRODUCT(('Fixed assets'!$S$2:$S$1000)*('Fixed assets'!$P$2:$P$1000<Costs!$A664)*('Fixed assets'!$Q$2:$Q$1000=Costs!H$617))-SUMPRODUCT(('Fixed assets'!$Q$2:$Q$1000=Costs!H$617)*('Fixed assets'!$U$2:$U$1000=Costs!$A664)*('Fixed assets'!$S$2:$S$1000))+SUMPRODUCT(('Fixed assets'!$Q$2:$Q$1000=Costs!H$617)*('Fixed assets'!$P$2:$P$1000=Costs!$A664)*('Fixed assets'!$U$2:$U$1000=Costs!$A664)*('Fixed assets'!$R$2:$R$1000))","v":0},{"$f":"SUMPRODUCT(('Fixed assets'!$R$2:$R$1000)*('Fixed assets'!$P$2:$P$1000<$A664)*('Fixed assets'!$Q$2:$Q$1000=Costs!I$617))-SUMPRODUCT(('Fixed assets'!$S$2:$S$1000)*('Fixed assets'!$P$2:$P$1000<Costs!$A664)*('Fixed assets'!$Q$2:$Q$1000=Costs!I$617))-SUMPRODUCT(('Fixed assets'!$Q$2:$Q$1000=Costs!I$617)*('Fixed assets'!$U$2:$U$1000=Costs!$A664)*('Fixed assets'!$S$2:$S$1000))+SUMPRODUCT(('Fixed assets'!$Q$2:$Q$1000=Costs!I$617)*('Fixed assets'!$P$2:$P$1000=Costs!$A664)*('Fixed assets'!$U$2:$U$1000=Costs!$A664)*('Fixed assets'!$R$2:$R$1000))","v":0},{"$f":"SUMPRODUCT(('Fixed assets'!$R$2:$R$1000)*('Fixed assets'!$P$2:$P$1000<$A664)*('Fixed assets'!$Q$2:$Q$1000=Costs!J$617))-SUMPRODUCT(('Fixed assets'!$S$2:$S$1000)*('Fixed assets'!$P$2:$P$1000<Costs!$A664)*('Fixed assets'!$Q$2:$Q$1000=Costs!J$617))-SUMPRODUCT(('Fixed assets'!$Q$2:$Q$1000=Costs!J$617)*('Fixed assets'!$U$2:$U$1000=Costs!$A664)*('Fixed assets'!$S$2:$S$1000))+SUMPRODUCT(('Fixed assets'!$Q$2:$Q$1000=Costs!J$617)*('Fixed assets'!$P$2:$P$1000=Costs!$A664)*('Fixed assets'!$U$2:$U$1000=Costs!$A664)*('Fixed assets'!$R$2:$R$1000))","v":0},{"$f":"SUMPRODUCT(('Fixed assets'!$R$2:$R$1000)*('Fixed assets'!$P$2:$P$1000<$A664)*('Fixed assets'!$Q$2:$Q$1000=Costs!K$617))-SUMPRODUCT(('Fixed assets'!$S$2:$S$1000)*('Fixed assets'!$P$2:$P$1000<Costs!$A664)*('Fixed assets'!$Q$2:$Q$1000=Costs!K$617))-SUMPRODUCT(('Fixed assets'!$Q$2:$Q$1000=Costs!K$617)*('Fixed assets'!$U$2:$U$1000=Costs!$A664)*('Fixed assets'!$S$2:$S$1000))+SUMPRODUCT(('Fixed assets'!$Q$2:$Q$1000=Costs!K$617)*('Fixed assets'!$P$2:$P$1000=Costs!$A664)*('Fixed assets'!$U$2:$U$1000=Costs!$A664)*('Fixed assets'!$R$2:$R$1000))","v":0},{"$f":"SUMPRODUCT(('Fixed assets'!$R$2:$R$1000)*('Fixed assets'!$P$2:$P$1000<$A664)*('Fixed assets'!$Q$2:$Q$1000=Costs!L$617))-SUMPRODUCT(('Fixed assets'!$S$2:$S$1000)*('Fixed assets'!$P$2:$P$1000<Costs!$A664)*('Fixed assets'!$Q$2:$Q$1000=Costs!L$617))-SUMPRODUCT(('Fixed assets'!$Q$2:$Q$1000=Costs!L$617)*('Fixed assets'!$U$2:$U$1000=Costs!$A664)*('Fixed assets'!$S$2:$S$1000))+SUMPRODUCT(('Fixed assets'!$Q$2:$Q$1000=Costs!L$617)*('Fixed assets'!$P$2:$P$1000=Costs!$A664)*('Fixed assets'!$U$2:$U$1000=Costs!$A664)*('Fixed assets'!$R$2:$R$1000))","v":0},{"$f":"SUMPRODUCT(('Fixed assets'!$R$2:$R$1000)*('Fixed assets'!$P$2:$P$1000<$A664)*('Fixed assets'!$Q$2:$Q$1000=Costs!M$617))-SUMPRODUCT(('Fixed assets'!$S$2:$S$1000)*('Fixed assets'!$P$2:$P$1000<Costs!$A664)*('Fixed assets'!$Q$2:$Q$1000=Costs!M$617))-SUMPRODUCT(('Fixed assets'!$Q$2:$Q$1000=Costs!M$617)*('Fixed assets'!$U$2:$U$1000=Costs!$A664)*('Fixed assets'!$S$2:$S$1000))+SUMPRODUCT(('Fixed assets'!$Q$2:$Q$1000=Costs!M$617)*('Fixed assets'!$P$2:$P$1000=Costs!$A664)*('Fixed assets'!$U$2:$U$1000=Costs!$A664)*('Fixed assets'!$R$2:$R$1000))","v":0},{"$f":"SUMPRODUCT(('Fixed assets'!$R$2:$R$1000)*('Fixed assets'!$P$2:$P$1000<$A664)*('Fixed assets'!$Q$2:$Q$1000=Costs!N$617))-SUMPRODUCT(('Fixed assets'!$S$2:$S$1000)*('Fixed assets'!$P$2:$P$1000<Costs!$A664)*('Fixed assets'!$Q$2:$Q$1000=Costs!N$617))-SUMPRODUCT(('Fixed assets'!$Q$2:$Q$1000=Costs!N$617)*('Fixed assets'!$U$2:$U$1000=Costs!$A664)*('Fixed assets'!$S$2:$S$1000))+SUMPRODUCT(('Fixed assets'!$Q$2:$Q$1000=Costs!N$617)*('Fixed assets'!$P$2:$P$1000=Costs!$A664)*('Fixed assets'!$U$2:$U$1000=Costs!$A664)*('Fixed assets'!$R$2:$R$1000))","v":0},{"$f":"SUMPRODUCT(('Fixed assets'!$R$2:$R$1000)*('Fixed assets'!$P$2:$P$1000<$A664)*('Fixed assets'!$Q$2:$Q$1000=Costs!O$617))-SUMPRODUCT(('Fixed assets'!$S$2:$S$1000)*('Fixed assets'!$P$2:$P$1000<Costs!$A664)*('Fixed assets'!$Q$2:$Q$1000=Costs!O$617))-SUMPRODUCT(('Fixed assets'!$Q$2:$Q$1000=Costs!O$617)*('Fixed assets'!$U$2:$U$1000=Costs!$A664)*('Fixed assets'!$S$2:$S$1000))+SUMPRODUCT(('Fixed assets'!$Q$2:$Q$1000=Costs!O$617)*('Fixed assets'!$P$2:$P$1000=Costs!$A664)*('Fixed assets'!$U$2:$U$1000=Costs!$A664)*('Fixed assets'!$R$2:$R$1000))","v":0},{"$f":"SUMPRODUCT(('Fixed assets'!$R$2:$R$1000)*('Fixed assets'!$P$2:$P$1000<$A664)*('Fixed assets'!$Q$2:$Q$1000=Costs!P$617))-SUMPRODUCT(('Fixed assets'!$S$2:$S$1000)*('Fixed assets'!$P$2:$P$1000<Costs!$A664)*('Fixed assets'!$Q$2:$Q$1000=Costs!P$617))-SUMPRODUCT(('Fixed assets'!$Q$2:$Q$1000=Costs!P$617)*('Fixed assets'!$U$2:$U$1000=Costs!$A664)*('Fixed assets'!$S$2:$S$1000))+SUMPRODUCT(('Fixed assets'!$Q$2:$Q$1000=Costs!P$617)*('Fixed assets'!$P$2:$P$1000=Costs!$A664)*('Fixed assets'!$U$2:$U$1000=Costs!$A664)*('Fixed assets'!$R$2:$R$1000))","v":0},{"$f":"SUMPRODUCT(('Fixed assets'!$R$2:$R$1000)*('Fixed assets'!$P$2:$P$1000<$A664)*('Fixed assets'!$Q$2:$Q$1000=Costs!Q$617))-SUMPRODUCT(('Fixed assets'!$S$2:$S$1000)*('Fixed assets'!$P$2:$P$1000<Costs!$A664)*('Fixed assets'!$Q$2:$Q$1000=Costs!Q$617))-SUMPRODUCT(('Fixed assets'!$Q$2:$Q$1000=Costs!Q$617)*('Fixed assets'!$U$2:$U$1000=Costs!$A664)*('Fixed assets'!$S$2:$S$1000))+SUMPRODUCT(('Fixed assets'!$Q$2:$Q$1000=Costs!Q$617)*('Fixed assets'!$P$2:$P$1000=Costs!$A664)*('Fixed assets'!$U$2:$U$1000=Costs!$A664)*('Fixed assets'!$R$2:$R$1000))","v":0},{"$f":"SUMPRODUCT(('Fixed assets'!$R$2:$R$1000)*('Fixed assets'!$P$2:$P$1000<$A664)*('Fixed assets'!$Q$2:$Q$1000=Costs!R$617))-SUMPRODUCT(('Fixed assets'!$S$2:$S$1000)*('Fixed assets'!$P$2:$P$1000<Costs!$A664)*('Fixed assets'!$Q$2:$Q$1000=Costs!R$617))-SUMPRODUCT(('Fixed assets'!$Q$2:$Q$1000=Costs!R$617)*('Fixed assets'!$U$2:$U$1000=Costs!$A664)*('Fixed assets'!$S$2:$S$1000))+SUMPRODUCT(('Fixed assets'!$Q$2:$Q$1000=Costs!R$617)*('Fixed assets'!$P$2:$P$1000=Costs!$A664)*('Fixed assets'!$U$2:$U$1000=Costs!$A664)*('Fixed assets'!$R$2:$R$1000))","v":0},{"$f":"SUMPRODUCT(('Fixed assets'!$R$2:$R$1000)*('Fixed assets'!$P$2:$P$1000<$A664)*('Fixed assets'!$Q$2:$Q$1000=Costs!S$617))-SUMPRODUCT(('Fixed assets'!$S$2:$S$1000)*('Fixed assets'!$P$2:$P$1000<Costs!$A664)*('Fixed assets'!$Q$2:$Q$1000=Costs!S$617))-SUMPRODUCT(('Fixed assets'!$Q$2:$Q$1000=Costs!S$617)*('Fixed assets'!$U$2:$U$1000=Costs!$A664)*('Fixed assets'!$S$2:$S$1000))+SUMPRODUCT(('Fixed assets'!$Q$2:$Q$1000=Costs!S$617)*('Fixed assets'!$P$2:$P$1000=Costs!$A664)*('Fixed assets'!$U$2:$U$1000=Costs!$A664)*('Fixed assets'!$R$2:$R$1000))","v":0},{"$f":"SUMPRODUCT(('Fixed assets'!$R$2:$R$1000)*('Fixed assets'!$P$2:$P$1000<$A664)*('Fixed assets'!$Q$2:$Q$1000=Costs!T$617))-SUMPRODUCT(('Fixed assets'!$S$2:$S$1000)*('Fixed assets'!$P$2:$P$1000<Costs!$A664)*('Fixed assets'!$Q$2:$Q$1000=Costs!T$617))-SUMPRODUCT(('Fixed assets'!$Q$2:$Q$1000=Costs!T$617)*('Fixed assets'!$U$2:$U$1000=Costs!$A664)*('Fixed assets'!$S$2:$S$1000))+SUMPRODUCT(('Fixed assets'!$Q$2:$Q$1000=Costs!T$617)*('Fixed assets'!$P$2:$P$1000=Costs!$A664)*('Fixed assets'!$U$2:$U$1000=Costs!$A664)*('Fixed assets'!$R$2:$R$1000))","v":0},{"$f":"SUMPRODUCT(('Fixed assets'!$R$2:$R$1000)*('Fixed assets'!$P$2:$P$1000<$A664)*('Fixed assets'!$Q$2:$Q$1000=Costs!U$617))-SUMPRODUCT(('Fixed assets'!$S$2:$S$1000)*('Fixed assets'!$P$2:$P$1000<Costs!$A664)*('Fixed assets'!$Q$2:$Q$1000=Costs!U$617))-SUMPRODUCT(('Fixed assets'!$Q$2:$Q$1000=Costs!U$617)*('Fixed assets'!$U$2:$U$1000=Costs!$A664)*('Fixed assets'!$S$2:$S$1000))+SUMPRODUCT(('Fixed assets'!$Q$2:$Q$1000=Costs!U$617)*('Fixed assets'!$P$2:$P$1000=Costs!$A664)*('Fixed assets'!$U$2:$U$1000=Costs!$A664)*('Fixed assets'!$R$2:$R$1000))","v":0},{"$f":"SUMPRODUCT(('Fixed assets'!$R$2:$R$1000)*('Fixed assets'!$P$2:$P$1000<$A664)*('Fixed assets'!$Q$2:$Q$1000=Costs!V$617))-SUMPRODUCT(('Fixed assets'!$S$2:$S$1000)*('Fixed assets'!$P$2:$P$1000<Costs!$A664)*('Fixed assets'!$Q$2:$Q$1000=Costs!V$617))-SUMPRODUCT(('Fixed assets'!$Q$2:$Q$1000=Costs!V$617)*('Fixed assets'!$U$2:$U$1000=Costs!$A664)*('Fixed assets'!$S$2:$S$1000))+SUMPRODUCT(('Fixed assets'!$Q$2:$Q$1000=Costs!V$617)*('Fixed assets'!$P$2:$P$1000=Costs!$A664)*('Fixed assets'!$U$2:$U$1000=Costs!$A664)*('Fixed assets'!$R$2:$R$1000))","v":0},{"$f":"SUMPRODUCT(('Fixed assets'!$R$2:$R$1000)*('Fixed assets'!$P$2:$P$1000<$A664)*('Fixed assets'!$Q$2:$Q$1000=Costs!W$617))-SUMPRODUCT(('Fixed assets'!$S$2:$S$1000)*('Fixed assets'!$P$2:$P$1000<Costs!$A664)*('Fixed assets'!$Q$2:$Q$1000=Costs!W$617))-SUMPRODUCT(('Fixed assets'!$Q$2:$Q$1000=Costs!W$617)*('Fixed assets'!$U$2:$U$1000=Costs!$A664)*('Fixed assets'!$S$2:$S$1000))+SUMPRODUCT(('Fixed assets'!$Q$2:$Q$1000=Costs!W$617)*('Fixed assets'!$P$2:$P$1000=Costs!$A664)*('Fixed assets'!$U$2:$U$1000=Costs!$A664)*('Fixed assets'!$R$2:$R$1000))","v":0},{"$f":"SUMPRODUCT(('Fixed assets'!$R$2:$R$1000)*('Fixed assets'!$P$2:$P$1000<$A664)*('Fixed assets'!$Q$2:$Q$1000=Costs!X$617))-SUMPRODUCT(('Fixed assets'!$S$2:$S$1000)*('Fixed assets'!$P$2:$P$1000<Costs!$A664)*('Fixed assets'!$Q$2:$Q$1000=Costs!X$617))-SUMPRODUCT(('Fixed assets'!$Q$2:$Q$1000=Costs!X$617)*('Fixed assets'!$U$2:$U$1000=Costs!$A664)*('Fixed assets'!$S$2:$S$1000))+SUMPRODUCT(('Fixed assets'!$Q$2:$Q$1000=Costs!X$617)*('Fixed assets'!$P$2:$P$1000=Costs!$A664)*('Fixed assets'!$U$2:$U$1000=Costs!$A664)*('Fixed assets'!$R$2:$R$1000))","v":0},{"$f":"SUMPRODUCT(('Fixed assets'!$R$2:$R$1000)*('Fixed assets'!$P$2:$P$1000<$A664)*('Fixed assets'!$Q$2:$Q$1000=Costs!Y$617))-SUMPRODUCT(('Fixed assets'!$S$2:$S$1000)*('Fixed assets'!$P$2:$P$1000<Costs!$A664)*('Fixed assets'!$Q$2:$Q$1000=Costs!Y$617))-SUMPRODUCT(('Fixed assets'!$Q$2:$Q$1000=Costs!Y$617)*('Fixed assets'!$U$2:$U$1000=Costs!$A664)*('Fixed assets'!$S$2:$S$1000))+SUMPRODUCT(('Fixed assets'!$Q$2:$Q$1000=Costs!Y$617)*('Fixed assets'!$P$2:$P$1000=Costs!$A664)*('Fixed assets'!$U$2:$U$1000=Costs!$A664)*('Fixed assets'!$R$2:$R$1000))","v":0},{"$f":"SUMPRODUCT(('Fixed assets'!$R$2:$R$1000)*('Fixed assets'!$P$2:$P$1000<$A664)*('Fixed assets'!$Q$2:$Q$1000=Costs!Z$617))-SUMPRODUCT(('Fixed assets'!$S$2:$S$1000)*('Fixed assets'!$P$2:$P$1000<Costs!$A664)*('Fixed assets'!$Q$2:$Q$1000=Costs!Z$617))-SUMPRODUCT(('Fixed assets'!$Q$2:$Q$1000=Costs!Z$617)*('Fixed assets'!$U$2:$U$1000=Costs!$A664)*('Fixed assets'!$S$2:$S$1000))+SUMPRODUCT(('Fixed assets'!$Q$2:$Q$1000=Costs!Z$617)*('Fixed assets'!$P$2:$P$1000=Costs!$A664)*('Fixed assets'!$U$2:$U$1000=Costs!$A664)*('Fixed assets'!$R$2:$R$1000))","v":0},{"$f":"SUMPRODUCT(('Fixed assets'!$R$2:$R$1000)*('Fixed assets'!$P$2:$P$1000<$A664)*('Fixed assets'!$Q$2:$Q$1000=Costs!AA$617))-SUMPRODUCT(('Fixed assets'!$S$2:$S$1000)*('Fixed assets'!$P$2:$P$1000<Costs!$A664)*('Fixed assets'!$Q$2:$Q$1000=Costs!AA$617))-SUMPRODUCT(('Fixed assets'!$Q$2:$Q$1000=Costs!AA$617)*('Fixed assets'!$U$2:$U$1000=Costs!$A664)*('Fixed assets'!$S$2:$S$1000))+SUMPRODUCT(('Fixed assets'!$Q$2:$Q$1000=Costs!AA$617)*('Fixed assets'!$P$2:$P$1000=Costs!$A664)*('Fixed assets'!$U$2:$U$1000=Costs!$A664)*('Fixed assets'!$R$2:$R$1000))","v":0},{"$f":"SUMPRODUCT(('Fixed assets'!$R$2:$R$1000)*('Fixed assets'!$P$2:$P$1000<$A664)*('Fixed assets'!$Q$2:$Q$1000=Costs!AB$617))-SUMPRODUCT(('Fixed assets'!$S$2:$S$1000)*('Fixed assets'!$P$2:$P$1000<Costs!$A664)*('Fixed assets'!$Q$2:$Q$1000=Costs!AB$617))-SUMPRODUCT(('Fixed assets'!$Q$2:$Q$1000=Costs!AB$617)*('Fixed assets'!$U$2:$U$1000=Costs!$A664)*('Fixed assets'!$S$2:$S$1000))+SUMPRODUCT(('Fixed assets'!$Q$2:$Q$1000=Costs!AB$617)*('Fixed assets'!$P$2:$P$1000=Costs!$A664)*('Fixed assets'!$U$2:$U$1000=Costs!$A664)*('Fixed assets'!$R$2:$R$1000))","v":0},{"$f":"SUMPRODUCT(('Fixed assets'!$R$2:$R$1000)*('Fixed assets'!$P$2:$P$1000<$A664)*('Fixed assets'!$Q$2:$Q$1000=Costs!AC$617))-SUMPRODUCT(('Fixed assets'!$S$2:$S$1000)*('Fixed assets'!$P$2:$P$1000<Costs!$A664)*('Fixed assets'!$Q$2:$Q$1000=Costs!AC$617))-SUMPRODUCT(('Fixed assets'!$Q$2:$Q$1000=Costs!AC$617)*('Fixed assets'!$U$2:$U$1000=Costs!$A664)*('Fixed assets'!$S$2:$S$1000))+SUMPRODUCT(('Fixed assets'!$Q$2:$Q$1000=Costs!AC$617)*('Fixed assets'!$P$2:$P$1000=Costs!$A664)*('Fixed assets'!$U$2:$U$1000=Costs!$A664)*('Fixed assets'!$R$2:$R$1000))","v":0},{"$f":"SUMPRODUCT(('Fixed assets'!$R$2:$R$1000)*('Fixed assets'!$P$2:$P$1000<$A664)*('Fixed assets'!$Q$2:$Q$1000=Costs!AD$617))-SUMPRODUCT(('Fixed assets'!$S$2:$S$1000)*('Fixed assets'!$P$2:$P$1000<Costs!$A664)*('Fixed assets'!$Q$2:$Q$1000=Costs!AD$617))-SUMPRODUCT(('Fixed assets'!$Q$2:$Q$1000=Costs!AD$617)*('Fixed assets'!$U$2:$U$1000=Costs!$A664)*('Fixed assets'!$S$2:$S$1000))+SUMPRODUCT(('Fixed assets'!$Q$2:$Q$1000=Costs!AD$617)*('Fixed assets'!$P$2:$P$1000=Costs!$A664)*('Fixed assets'!$U$2:$U$1000=Costs!$A664)*('Fixed assets'!$R$2:$R$1000))","v":0},{"$f":"SUMPRODUCT(('Fixed assets'!$R$2:$R$1000)*('Fixed assets'!$P$2:$P$1000<$A664)*('Fixed assets'!$Q$2:$Q$1000=Costs!AE$617))-SUMPRODUCT(('Fixed assets'!$S$2:$S$1000)*('Fixed assets'!$P$2:$P$1000<Costs!$A664)*('Fixed assets'!$Q$2:$Q$1000=Costs!AE$617))-SUMPRODUCT(('Fixed assets'!$Q$2:$Q$1000=Costs!AE$617)*('Fixed assets'!$U$2:$U$1000=Costs!$A664)*('Fixed assets'!$S$2:$S$1000))+SUMPRODUCT(('Fixed assets'!$Q$2:$Q$1000=Costs!AE$617)*('Fixed assets'!$P$2:$P$1000=Costs!$A664)*('Fixed assets'!$U$2:$U$1000=Costs!$A664)*('Fixed assets'!$R$2:$R$1000))","v":0},{"$f":"SUMPRODUCT(('Fixed assets'!$R$2:$R$1000)*('Fixed assets'!$P$2:$P$1000<$A664)*('Fixed assets'!$Q$2:$Q$1000=Costs!AF$617))-SUMPRODUCT(('Fixed assets'!$S$2:$S$1000)*('Fixed assets'!$P$2:$P$1000<Costs!$A664)*('Fixed assets'!$Q$2:$Q$1000=Costs!AF$617))-SUMPRODUCT(('Fixed assets'!$Q$2:$Q$1000=Costs!AF$617)*('Fixed assets'!$U$2:$U$1000=Costs!$A664)*('Fixed assets'!$S$2:$S$1000))+SUMPRODUCT(('Fixed assets'!$Q$2:$Q$1000=Costs!AF$617)*('Fixed assets'!$P$2:$P$1000=Costs!$A664)*('Fixed assets'!$U$2:$U$1000=Costs!$A664)*('Fixed assets'!$R$2:$R$1000))","v":0},{"$f":"SUMPRODUCT(('Fixed assets'!$R$2:$R$1000)*('Fixed assets'!$P$2:$P$1000<$A664)*('Fixed assets'!$Q$2:$Q$1000=Costs!AG$617))-SUMPRODUCT(('Fixed assets'!$S$2:$S$1000)*('Fixed assets'!$P$2:$P$1000<Costs!$A664)*('Fixed assets'!$Q$2:$Q$1000=Costs!AG$617))-SUMPRODUCT(('Fixed assets'!$Q$2:$Q$1000=Costs!AG$617)*('Fixed assets'!$U$2:$U$1000=Costs!$A664)*('Fixed assets'!$S$2:$S$1000))+SUMPRODUCT(('Fixed assets'!$Q$2:$Q$1000=Costs!AG$617)*('Fixed assets'!$P$2:$P$1000=Costs!$A664)*('Fixed assets'!$U$2:$U$1000=Costs!$A664)*('Fixed assets'!$R$2:$R$1000))","v":0},{"$f":"SUMPRODUCT(('Fixed assets'!$R$2:$R$1000)*('Fixed assets'!$P$2:$P$1000<$A664)*('Fixed assets'!$Q$2:$Q$1000=Costs!AH$617))-SUMPRODUCT(('Fixed assets'!$S$2:$S$1000)*('Fixed assets'!$P$2:$P$1000<Costs!$A664)*('Fixed assets'!$Q$2:$Q$1000=Costs!AH$617))-SUMPRODUCT(('Fixed assets'!$Q$2:$Q$1000=Costs!AH$617)*('Fixed assets'!$U$2:$U$1000=Costs!$A664)*('Fixed assets'!$S$2:$S$1000))+SUMPRODUCT(('Fixed assets'!$Q$2:$Q$1000=Costs!AH$617)*('Fixed assets'!$P$2:$P$1000=Costs!$A664)*('Fixed assets'!$U$2:$U$1000=Costs!$A664)*('Fixed assets'!$R$2:$R$1000))","v":0},{"$f":"SUMPRODUCT(('Fixed assets'!$R$2:$R$1000)*('Fixed assets'!$P$2:$P$1000<$A664)*('Fixed assets'!$Q$2:$Q$1000=Costs!AI$617))-SUMPRODUCT(('Fixed assets'!$S$2:$S$1000)*('Fixed assets'!$P$2:$P$1000<Costs!$A664)*('Fixed assets'!$Q$2:$Q$1000=Costs!AI$617))-SUMPRODUCT(('Fixed assets'!$Q$2:$Q$1000=Costs!AI$617)*('Fixed assets'!$U$2:$U$1000=Costs!$A664)*('Fixed assets'!$S$2:$S$1000))+SUMPRODUCT(('Fixed assets'!$Q$2:$Q$1000=Costs!AI$617)*('Fixed assets'!$P$2:$P$1000=Costs!$A664)*('Fixed assets'!$U$2:$U$1000=Costs!$A664)*('Fixed assets'!$R$2:$R$1000))","v":0},{"$f":"SUMPRODUCT(('Fixed assets'!$R$2:$R$1000)*('Fixed assets'!$P$2:$P$1000<$A664)*('Fixed assets'!$Q$2:$Q$1000=Costs!AJ$617))-SUMPRODUCT(('Fixed assets'!$S$2:$S$1000)*('Fixed assets'!$P$2:$P$1000<Costs!$A664)*('Fixed assets'!$Q$2:$Q$1000=Costs!AJ$617))-SUMPRODUCT(('Fixed assets'!$Q$2:$Q$1000=Costs!AJ$617)*('Fixed assets'!$U$2:$U$1000=Costs!$A664)*('Fixed assets'!$S$2:$S$1000))+SUMPRODUCT(('Fixed assets'!$Q$2:$Q$1000=Costs!AJ$617)*('Fixed assets'!$P$2:$P$1000=Costs!$A664)*('Fixed assets'!$U$2:$U$1000=Costs!$A664)*('Fixed assets'!$R$2:$R$1000))","v":0},{"$f":"SUMPRODUCT(('Fixed assets'!$R$2:$R$1000)*('Fixed assets'!$P$2:$P$1000<$A664)*('Fixed assets'!$Q$2:$Q$1000=Costs!AK$617))-SUMPRODUCT(('Fixed assets'!$S$2:$S$1000)*('Fixed assets'!$P$2:$P$1000<Costs!$A664)*('Fixed assets'!$Q$2:$Q$1000=Costs!AK$617))-SUMPRODUCT(('Fixed assets'!$Q$2:$Q$1000=Costs!AK$617)*('Fixed assets'!$U$2:$U$1000=Costs!$A664)*('Fixed assets'!$S$2:$S$1000))+SUMPRODUCT(('Fixed assets'!$Q$2:$Q$1000=Costs!AK$617)*('Fixed assets'!$P$2:$P$1000=Costs!$A664)*('Fixed assets'!$U$2:$U$1000=Costs!$A664)*('Fixed assets'!$R$2:$R$1000))","v":0},{"$f":"SUMPRODUCT(('Fixed assets'!$R$2:$R$1000)*('Fixed assets'!$P$2:$P$1000<$A664)*('Fixed assets'!$Q$2:$Q$1000=Costs!AL$617))-SUMPRODUCT(('Fixed assets'!$S$2:$S$1000)*('Fixed assets'!$P$2:$P$1000<Costs!$A664)*('Fixed assets'!$Q$2:$Q$1000=Costs!AL$617))-SUMPRODUCT(('Fixed assets'!$Q$2:$Q$1000=Costs!AL$617)*('Fixed assets'!$U$2:$U$1000=Costs!$A664)*('Fixed assets'!$S$2:$S$1000))+SUMPRODUCT(('Fixed assets'!$Q$2:$Q$1000=Costs!AL$617)*('Fixed assets'!$P$2:$P$1000=Costs!$A664)*('Fixed assets'!$U$2:$U$1000=Costs!$A664)*('Fixed assets'!$R$2:$R$1000))","v":0},{"$f":"SUMPRODUCT(('Fixed assets'!$R$2:$R$1000)*('Fixed assets'!$P$2:$P$1000<$A664)*('Fixed assets'!$Q$2:$Q$1000=Costs!AM$617))-SUMPRODUCT(('Fixed assets'!$S$2:$S$1000)*('Fixed assets'!$P$2:$P$1000<Costs!$A664)*('Fixed assets'!$Q$2:$Q$1000=Costs!AM$617))-SUMPRODUCT(('Fixed assets'!$Q$2:$Q$1000=Costs!AM$617)*('Fixed assets'!$U$2:$U$1000=Costs!$A664)*('Fixed assets'!$S$2:$S$1000))+SUMPRODUCT(('Fixed assets'!$Q$2:$Q$1000=Costs!AM$617)*('Fixed assets'!$P$2:$P$1000=Costs!$A664)*('Fixed assets'!$U$2:$U$1000=Costs!$A664)*('Fixed assets'!$R$2:$R$1000))","v":0},{"$f":"SUMPRODUCT(('Fixed assets'!$R$2:$R$1000)*('Fixed assets'!$P$2:$P$1000<$A664)*('Fixed assets'!$Q$2:$Q$1000=Costs!AN$617))-SUMPRODUCT(('Fixed assets'!$S$2:$S$1000)*('Fixed assets'!$P$2:$P$1000<Costs!$A664)*('Fixed assets'!$Q$2:$Q$1000=Costs!AN$617))-SUMPRODUCT(('Fixed assets'!$Q$2:$Q$1000=Costs!AN$617)*('Fixed assets'!$U$2:$U$1000=Costs!$A664)*('Fixed assets'!$S$2:$S$1000))+SUMPRODUCT(('Fixed assets'!$Q$2:$Q$1000=Costs!AN$617)*('Fixed assets'!$P$2:$P$1000=Costs!$A664)*('Fixed assets'!$U$2:$U$1000=Costs!$A664)*('Fixed assets'!$R$2:$R$1000))","v":0},{"$f":"SUMPRODUCT(('Fixed assets'!$R$2:$R$1000)*('Fixed assets'!$P$2:$P$1000<$A664)*('Fixed assets'!$Q$2:$Q$1000=Costs!AO$617))-SUMPRODUCT(('Fixed assets'!$S$2:$S$1000)*('Fixed assets'!$P$2:$P$1000<Costs!$A664)*('Fixed assets'!$Q$2:$Q$1000=Costs!AO$617))-SUMPRODUCT(('Fixed assets'!$Q$2:$Q$1000=Costs!AO$617)*('Fixed assets'!$U$2:$U$1000=Costs!$A664)*('Fixed assets'!$S$2:$S$1000))+SUMPRODUCT(('Fixed assets'!$Q$2:$Q$1000=Costs!AO$617)*('Fixed assets'!$P$2:$P$1000=Costs!$A664)*('Fixed assets'!$U$2:$U$1000=Costs!$A664)*('Fixed assets'!$R$2:$R$1000))","v":0},{"$f":"SUMPRODUCT(('Fixed assets'!$R$2:$R$1000)*('Fixed assets'!$P$2:$P$1000<$A664)*('Fixed assets'!$Q$2:$Q$1000=Costs!AP$617))-SUMPRODUCT(('Fixed assets'!$S$2:$S$1000)*('Fixed assets'!$P$2:$P$1000<Costs!$A664)*('Fixed assets'!$Q$2:$Q$1000=Costs!AP$617))-SUMPRODUCT(('Fixed assets'!$Q$2:$Q$1000=Costs!AP$617)*('Fixed assets'!$U$2:$U$1000=Costs!$A664)*('Fixed assets'!$S$2:$S$1000))+SUMPRODUCT(('Fixed assets'!$Q$2:$Q$1000=Costs!AP$617)*('Fixed assets'!$P$2:$P$1000=Costs!$A664)*('Fixed assets'!$U$2:$U$1000=Costs!$A664)*('Fixed assets'!$R$2:$R$1000))","v":0},{"$f":"SUMPRODUCT(('Fixed assets'!$R$2:$R$1000)*('Fixed assets'!$P$2:$P$1000<$A664)*('Fixed assets'!$Q$2:$Q$1000=Costs!AQ$617))-SUMPRODUCT(('Fixed assets'!$S$2:$S$1000)*('Fixed assets'!$P$2:$P$1000<Costs!$A664)*('Fixed assets'!$Q$2:$Q$1000=Costs!AQ$617))-SUMPRODUCT(('Fixed assets'!$Q$2:$Q$1000=Costs!AQ$617)*('Fixed assets'!$U$2:$U$1000=Costs!$A664)*('Fixed assets'!$S$2:$S$1000))+SUMPRODUCT(('Fixed assets'!$Q$2:$Q$1000=Costs!AQ$617)*('Fixed assets'!$P$2:$P$1000=Costs!$A664)*('Fixed assets'!$U$2:$U$1000=Costs!$A664)*('Fixed assets'!$R$2:$R$1000))","v":0}]
[2062,0,{"$f":"SUMPRODUCT(('Fixed assets'!$R$2:$R$1000)*('Fixed assets'!$P$2:$P$1000<$A665)*('Fixed assets'!$Q$2:$Q$1000=Costs!C$617))-SUMPRODUCT(('Fixed assets'!$S$2:$S$1000)*('Fixed assets'!$P$2:$P$1000<Costs!$A665)*('Fixed assets'!$Q$2:$Q$1000=Costs!C$617))-SUMPRODUCT(('Fixed assets'!$Q$2:$Q$1000=Costs!C$617)*('Fixed assets'!$U$2:$U$1000=Costs!$A665)*('Fixed assets'!$S$2:$S$1000))+SUMPRODUCT(('Fixed assets'!$Q$2:$Q$1000=Costs!C$617)*('Fixed assets'!$P$2:$P$1000=Costs!$A665)*('Fixed assets'!$U$2:$U$1000=Costs!$A665)*('Fixed assets'!$R$2:$R$1000))","v":0},{"$f":"SUMPRODUCT(('Fixed assets'!$R$2:$R$1000)*('Fixed assets'!$P$2:$P$1000<$A665)*('Fixed assets'!$Q$2:$Q$1000=Costs!D$617))-SUMPRODUCT(('Fixed assets'!$S$2:$S$1000)*('Fixed assets'!$P$2:$P$1000<Costs!$A665)*('Fixed assets'!$Q$2:$Q$1000=Costs!D$617))-SUMPRODUCT(('Fixed assets'!$Q$2:$Q$1000=Costs!D$617)*('Fixed assets'!$U$2:$U$1000=Costs!$A665)*('Fixed assets'!$S$2:$S$1000))+SUMPRODUCT(('Fixed assets'!$Q$2:$Q$1000=Costs!D$617)*('Fixed assets'!$P$2:$P$1000=Costs!$A665)*('Fixed assets'!$U$2:$U$1000=Costs!$A665)*('Fixed assets'!$R$2:$R$1000))","v":0},{"$f":"SUMPRODUCT(('Fixed assets'!$R$2:$R$1000)*('Fixed assets'!$P$2:$P$1000<$A665)*('Fixed assets'!$Q$2:$Q$1000=Costs!E$617))-SUMPRODUCT(('Fixed assets'!$S$2:$S$1000)*('Fixed assets'!$P$2:$P$1000<Costs!$A665)*('Fixed assets'!$Q$2:$Q$1000=Costs!E$617))-SUMPRODUCT(('Fixed assets'!$Q$2:$Q$1000=Costs!E$617)*('Fixed assets'!$U$2:$U$1000=Costs!$A665)*('Fixed assets'!$S$2:$S$1000))+SUMPRODUCT(('Fixed assets'!$Q$2:$Q$1000=Costs!E$617)*('Fixed assets'!$P$2:$P$1000=Costs!$A665)*('Fixed assets'!$U$2:$U$1000=Costs!$A665)*('Fixed assets'!$R$2:$R$1000))","v":0},{"$f":"SUMPRODUCT(('Fixed assets'!$R$2:$R$1000)*('Fixed assets'!$P$2:$P$1000<$A665)*('Fixed assets'!$Q$2:$Q$1000=Costs!F$617))-SUMPRODUCT(('Fixed assets'!$S$2:$S$1000)*('Fixed assets'!$P$2:$P$1000<Costs!$A665)*('Fixed assets'!$Q$2:$Q$1000=Costs!F$617))-SUMPRODUCT(('Fixed assets'!$Q$2:$Q$1000=Costs!F$617)*('Fixed assets'!$U$2:$U$1000=Costs!$A665)*('Fixed assets'!$S$2:$S$1000))+SUMPRODUCT(('Fixed assets'!$Q$2:$Q$1000=Costs!F$617)*('Fixed assets'!$P$2:$P$1000=Costs!$A665)*('Fixed assets'!$U$2:$U$1000=Costs!$A665)*('Fixed assets'!$R$2:$R$1000))","v":0},{"$f":"SUMPRODUCT(('Fixed assets'!$R$2:$R$1000)*('Fixed assets'!$P$2:$P$1000<$A665)*('Fixed assets'!$Q$2:$Q$1000=Costs!G$617))-SUMPRODUCT(('Fixed assets'!$S$2:$S$1000)*('Fixed assets'!$P$2:$P$1000<Costs!$A665)*('Fixed assets'!$Q$2:$Q$1000=Costs!G$617))-SUMPRODUCT(('Fixed assets'!$Q$2:$Q$1000=Costs!G$617)*('Fixed assets'!$U$2:$U$1000=Costs!$A665)*('Fixed assets'!$S$2:$S$1000))+SUMPRODUCT(('Fixed assets'!$Q$2:$Q$1000=Costs!G$617)*('Fixed assets'!$P$2:$P$1000=Costs!$A665)*('Fixed assets'!$U$2:$U$1000=Costs!$A665)*('Fixed assets'!$R$2:$R$1000))","v":0},{"$f":"SUMPRODUCT(('Fixed assets'!$R$2:$R$1000)*('Fixed assets'!$P$2:$P$1000<$A665)*('Fixed assets'!$Q$2:$Q$1000=Costs!H$617))-SUMPRODUCT(('Fixed assets'!$S$2:$S$1000)*('Fixed assets'!$P$2:$P$1000<Costs!$A665)*('Fixed assets'!$Q$2:$Q$1000=Costs!H$617))-SUMPRODUCT(('Fixed assets'!$Q$2:$Q$1000=Costs!H$617)*('Fixed assets'!$U$2:$U$1000=Costs!$A665)*('Fixed assets'!$S$2:$S$1000))+SUMPRODUCT(('Fixed assets'!$Q$2:$Q$1000=Costs!H$617)*('Fixed assets'!$P$2:$P$1000=Costs!$A665)*('Fixed assets'!$U$2:$U$1000=Costs!$A665)*('Fixed assets'!$R$2:$R$1000))","v":0},{"$f":"SUMPRODUCT(('Fixed assets'!$R$2:$R$1000)*('Fixed assets'!$P$2:$P$1000<$A665)*('Fixed assets'!$Q$2:$Q$1000=Costs!I$617))-SUMPRODUCT(('Fixed assets'!$S$2:$S$1000)*('Fixed assets'!$P$2:$P$1000<Costs!$A665)*('Fixed assets'!$Q$2:$Q$1000=Costs!I$617))-SUMPRODUCT(('Fixed assets'!$Q$2:$Q$1000=Costs!I$617)*('Fixed assets'!$U$2:$U$1000=Costs!$A665)*('Fixed assets'!$S$2:$S$1000))+SUMPRODUCT(('Fixed assets'!$Q$2:$Q$1000=Costs!I$617)*('Fixed assets'!$P$2:$P$1000=Costs!$A665)*('Fixed assets'!$U$2:$U$1000=Costs!$A665)*('Fixed assets'!$R$2:$R$1000))","v":0},{"$f":"SUMPRODUCT(('Fixed assets'!$R$2:$R$1000)*('Fixed assets'!$P$2:$P$1000<$A665)*('Fixed assets'!$Q$2:$Q$1000=Costs!J$617))-SUMPRODUCT(('Fixed assets'!$S$2:$S$1000)*('Fixed assets'!$P$2:$P$1000<Costs!$A665)*('Fixed assets'!$Q$2:$Q$1000=Costs!J$617))-SUMPRODUCT(('Fixed assets'!$Q$2:$Q$1000=Costs!J$617)*('Fixed assets'!$U$2:$U$1000=Costs!$A665)*('Fixed assets'!$S$2:$S$1000))+SUMPRODUCT(('Fixed assets'!$Q$2:$Q$1000=Costs!J$617)*('Fixed assets'!$P$2:$P$1000=Costs!$A665)*('Fixed assets'!$U$2:$U$1000=Costs!$A665)*('Fixed assets'!$R$2:$R$1000))","v":0},{"$f":"SUMPRODUCT(('Fixed assets'!$R$2:$R$1000)*('Fixed assets'!$P$2:$P$1000<$A665)*('Fixed assets'!$Q$2:$Q$1000=Costs!K$617))-SUMPRODUCT(('Fixed assets'!$S$2:$S$1000)*('Fixed assets'!$P$2:$P$1000<Costs!$A665)*('Fixed assets'!$Q$2:$Q$1000=Costs!K$617))-SUMPRODUCT(('Fixed assets'!$Q$2:$Q$1000=Costs!K$617)*('Fixed assets'!$U$2:$U$1000=Costs!$A665)*('Fixed assets'!$S$2:$S$1000))+SUMPRODUCT(('Fixed assets'!$Q$2:$Q$1000=Costs!K$617)*('Fixed assets'!$P$2:$P$1000=Costs!$A665)*('Fixed assets'!$U$2:$U$1000=Costs!$A665)*('Fixed assets'!$R$2:$R$1000))","v":0},{"$f":"SUMPRODUCT(('Fixed assets'!$R$2:$R$1000)*('Fixed assets'!$P$2:$P$1000<$A665)*('Fixed assets'!$Q$2:$Q$1000=Costs!L$617))-SUMPRODUCT(('Fixed assets'!$S$2:$S$1000)*('Fixed assets'!$P$2:$P$1000<Costs!$A665)*('Fixed assets'!$Q$2:$Q$1000=Costs!L$617))-SUMPRODUCT(('Fixed assets'!$Q$2:$Q$1000=Costs!L$617)*('Fixed assets'!$U$2:$U$1000=Costs!$A665)*('Fixed assets'!$S$2:$S$1000))+SUMPRODUCT(('Fixed assets'!$Q$2:$Q$1000=Costs!L$617)*('Fixed assets'!$P$2:$P$1000=Costs!$A665)*('Fixed assets'!$U$2:$U$1000=Costs!$A665)*('Fixed assets'!$R$2:$R$1000))","v":0},{"$f":"SUMPRODUCT(('Fixed assets'!$R$2:$R$1000)*('Fixed assets'!$P$2:$P$1000<$A665)*('Fixed assets'!$Q$2:$Q$1000=Costs!M$617))-SUMPRODUCT(('Fixed assets'!$S$2:$S$1000)*('Fixed assets'!$P$2:$P$1000<Costs!$A665)*('Fixed assets'!$Q$2:$Q$1000=Costs!M$617))-SUMPRODUCT(('Fixed assets'!$Q$2:$Q$1000=Costs!M$617)*('Fixed assets'!$U$2:$U$1000=Costs!$A665)*('Fixed assets'!$S$2:$S$1000))+SUMPRODUCT(('Fixed assets'!$Q$2:$Q$1000=Costs!M$617)*('Fixed assets'!$P$2:$P$1000=Costs!$A665)*('Fixed assets'!$U$2:$U$1000=Costs!$A665)*('Fixed assets'!$R$2:$R$1000))","v":0},{"$f":"SUMPRODUCT(('Fixed assets'!$R$2:$R$1000)*('Fixed assets'!$P$2:$P$1000<$A665)*('Fixed assets'!$Q$2:$Q$1000=Costs!N$617))-SUMPRODUCT(('Fixed assets'!$S$2:$S$1000)*('Fixed assets'!$P$2:$P$1000<Costs!$A665)*('Fixed assets'!$Q$2:$Q$1000=Costs!N$617))-SUMPRODUCT(('Fixed assets'!$Q$2:$Q$1000=Costs!N$617)*('Fixed assets'!$U$2:$U$1000=Costs!$A665)*('Fixed assets'!$S$2:$S$1000))+SUMPRODUCT(('Fixed assets'!$Q$2:$Q$1000=Costs!N$617)*('Fixed assets'!$P$2:$P$1000=Costs!$A665)*('Fixed assets'!$U$2:$U$1000=Costs!$A665)*('Fixed assets'!$R$2:$R$1000))","v":0},{"$f":"SUMPRODUCT(('Fixed assets'!$R$2:$R$1000)*('Fixed assets'!$P$2:$P$1000<$A665)*('Fixed assets'!$Q$2:$Q$1000=Costs!O$617))-SUMPRODUCT(('Fixed assets'!$S$2:$S$1000)*('Fixed assets'!$P$2:$P$1000<Costs!$A665)*('Fixed assets'!$Q$2:$Q$1000=Costs!O$617))-SUMPRODUCT(('Fixed assets'!$Q$2:$Q$1000=Costs!O$617)*('Fixed assets'!$U$2:$U$1000=Costs!$A665)*('Fixed assets'!$S$2:$S$1000))+SUMPRODUCT(('Fixed assets'!$Q$2:$Q$1000=Costs!O$617)*('Fixed assets'!$P$2:$P$1000=Costs!$A665)*('Fixed assets'!$U$2:$U$1000=Costs!$A665)*('Fixed assets'!$R$2:$R$1000))","v":0},{"$f":"SUMPRODUCT(('Fixed assets'!$R$2:$R$1000)*('Fixed assets'!$P$2:$P$1000<$A665)*('Fixed assets'!$Q$2:$Q$1000=Costs!P$617))-SUMPRODUCT(('Fixed assets'!$S$2:$S$1000)*('Fixed assets'!$P$2:$P$1000<Costs!$A665)*('Fixed assets'!$Q$2:$Q$1000=Costs!P$617))-SUMPRODUCT(('Fixed assets'!$Q$2:$Q$1000=Costs!P$617)*('Fixed assets'!$U$2:$U$1000=Costs!$A665)*('Fixed assets'!$S$2:$S$1000))+SUMPRODUCT(('Fixed assets'!$Q$2:$Q$1000=Costs!P$617)*('Fixed assets'!$P$2:$P$1000=Costs!$A665)*('Fixed assets'!$U$2:$U$1000=Costs!$A665)*('Fixed assets'!$R$2:$R$1000))","v":0},{"$f":"SUMPRODUCT(('Fixed assets'!$R$2:$R$1000)*('Fixed assets'!$P$2:$P$1000<$A665)*('Fixed assets'!$Q$2:$Q$1000=Costs!Q$617))-SUMPRODUCT(('Fixed assets'!$S$2:$S$1000)*('Fixed assets'!$P$2:$P$1000<Costs!$A665)*('Fixed assets'!$Q$2:$Q$1000=Costs!Q$617))-SUMPRODUCT(('Fixed assets'!$Q$2:$Q$1000=Costs!Q$617)*('Fixed assets'!$U$2:$U$1000=Costs!$A665)*('Fixed assets'!$S$2:$S$1000))+SUMPRODUCT(('Fixed assets'!$Q$2:$Q$1000=Costs!Q$617)*('Fixed assets'!$P$2:$P$1000=Costs!$A665)*('Fixed assets'!$U$2:$U$1000=Costs!$A665)*('Fixed assets'!$R$2:$R$1000))","v":0},{"$f":"SUMPRODUCT(('Fixed assets'!$R$2:$R$1000)*('Fixed assets'!$P$2:$P$1000<$A665)*('Fixed assets'!$Q$2:$Q$1000=Costs!R$617))-SUMPRODUCT(('Fixed assets'!$S$2:$S$1000)*('Fixed assets'!$P$2:$P$1000<Costs!$A665)*('Fixed assets'!$Q$2:$Q$1000=Costs!R$617))-SUMPRODUCT(('Fixed assets'!$Q$2:$Q$1000=Costs!R$617)*('Fixed assets'!$U$2:$U$1000=Costs!$A665)*('Fixed assets'!$S$2:$S$1000))+SUMPRODUCT(('Fixed assets'!$Q$2:$Q$1000=Costs!R$617)*('Fixed assets'!$P$2:$P$1000=Costs!$A665)*('Fixed assets'!$U$2:$U$1000=Costs!$A665)*('Fixed assets'!$R$2:$R$1000))","v":0},{"$f":"SUMPRODUCT(('Fixed assets'!$R$2:$R$1000)*('Fixed assets'!$P$2:$P$1000<$A665)*('Fixed assets'!$Q$2:$Q$1000=Costs!S$617))-SUMPRODUCT(('Fixed assets'!$S$2:$S$1000)*('Fixed assets'!$P$2:$P$1000<Costs!$A665)*('Fixed assets'!$Q$2:$Q$1000=Costs!S$617))-SUMPRODUCT(('Fixed assets'!$Q$2:$Q$1000=Costs!S$617)*('Fixed assets'!$U$2:$U$1000=Costs!$A665)*('Fixed assets'!$S$2:$S$1000))+SUMPRODUCT(('Fixed assets'!$Q$2:$Q$1000=Costs!S$617)*('Fixed assets'!$P$2:$P$1000=Costs!$A665)*('Fixed assets'!$U$2:$U$1000=Costs!$A665)*('Fixed assets'!$R$2:$R$1000))","v":0},{"$f":"SUMPRODUCT(('Fixed assets'!$R$2:$R$1000)*('Fixed assets'!$P$2:$P$1000<$A665)*('Fixed assets'!$Q$2:$Q$1000=Costs!T$617))-SUMPRODUCT(('Fixed assets'!$S$2:$S$1000)*('Fixed assets'!$P$2:$P$1000<Costs!$A665)*('Fixed assets'!$Q$2:$Q$1000=Costs!T$617))-SUMPRODUCT(('Fixed assets'!$Q$2:$Q$1000=Costs!T$617)*('Fixed assets'!$U$2:$U$1000=Costs!$A665)*('Fixed assets'!$S$2:$S$1000))+SUMPRODUCT(('Fixed assets'!$Q$2:$Q$1000=Costs!T$617)*('Fixed assets'!$P$2:$P$1000=Costs!$A665)*('Fixed assets'!$U$2:$U$1000=Costs!$A665)*('Fixed assets'!$R$2:$R$1000))","v":0},{"$f":"SUMPRODUCT(('Fixed assets'!$R$2:$R$1000)*('Fixed assets'!$P$2:$P$1000<$A665)*('Fixed assets'!$Q$2:$Q$1000=Costs!U$617))-SUMPRODUCT(('Fixed assets'!$S$2:$S$1000)*('Fixed assets'!$P$2:$P$1000<Costs!$A665)*('Fixed assets'!$Q$2:$Q$1000=Costs!U$617))-SUMPRODUCT(('Fixed assets'!$Q$2:$Q$1000=Costs!U$617)*('Fixed assets'!$U$2:$U$1000=Costs!$A665)*('Fixed assets'!$S$2:$S$1000))+SUMPRODUCT(('Fixed assets'!$Q$2:$Q$1000=Costs!U$617)*('Fixed assets'!$P$2:$P$1000=Costs!$A665)*('Fixed assets'!$U$2:$U$1000=Costs!$A665)*('Fixed assets'!$R$2:$R$1000))","v":0},{"$f":"SUMPRODUCT(('Fixed assets'!$R$2:$R$1000)*('Fixed assets'!$P$2:$P$1000<$A665)*('Fixed assets'!$Q$2:$Q$1000=Costs!V$617))-SUMPRODUCT(('Fixed assets'!$S$2:$S$1000)*('Fixed assets'!$P$2:$P$1000<Costs!$A665)*('Fixed assets'!$Q$2:$Q$1000=Costs!V$617))-SUMPRODUCT(('Fixed assets'!$Q$2:$Q$1000=Costs!V$617)*('Fixed assets'!$U$2:$U$1000=Costs!$A665)*('Fixed assets'!$S$2:$S$1000))+SUMPRODUCT(('Fixed assets'!$Q$2:$Q$1000=Costs!V$617)*('Fixed assets'!$P$2:$P$1000=Costs!$A665)*('Fixed assets'!$U$2:$U$1000=Costs!$A665)*('Fixed assets'!$R$2:$R$1000))","v":0},{"$f":"SUMPRODUCT(('Fixed assets'!$R$2:$R$1000)*('Fixed assets'!$P$2:$P$1000<$A665)*('Fixed assets'!$Q$2:$Q$1000=Costs!W$617))-SUMPRODUCT(('Fixed assets'!$S$2:$S$1000)*('Fixed assets'!$P$2:$P$1000<Costs!$A665)*('Fixed assets'!$Q$2:$Q$1000=Costs!W$617))-SUMPRODUCT(('Fixed assets'!$Q$2:$Q$1000=Costs!W$617)*('Fixed assets'!$U$2:$U$1000=Costs!$A665)*('Fixed assets'!$S$2:$S$1000))+SUMPRODUCT(('Fixed assets'!$Q$2:$Q$1000=Costs!W$617)*('Fixed assets'!$P$2:$P$1000=Costs!$A665)*('Fixed assets'!$U$2:$U$1000=Costs!$A665)*('Fixed assets'!$R$2:$R$1000))","v":0},{"$f":"SUMPRODUCT(('Fixed assets'!$R$2:$R$1000)*('Fixed assets'!$P$2:$P$1000<$A665)*('Fixed assets'!$Q$2:$Q$1000=Costs!X$617))-SUMPRODUCT(('Fixed assets'!$S$2:$S$1000)*('Fixed assets'!$P$2:$P$1000<Costs!$A665)*('Fixed assets'!$Q$2:$Q$1000=Costs!X$617))-SUMPRODUCT(('Fixed assets'!$Q$2:$Q$1000=Costs!X$617)*('Fixed assets'!$U$2:$U$1000=Costs!$A665)*('Fixed assets'!$S$2:$S$1000))+SUMPRODUCT(('Fixed assets'!$Q$2:$Q$1000=Costs!X$617)*('Fixed assets'!$P$2:$P$1000=Costs!$A665)*('Fixed assets'!$U$2:$U$1000=Costs!$A665)*('Fixed assets'!$R$2:$R$1000))","v":0},{"$f":"SUMPRODUCT(('Fixed assets'!$R$2:$R$1000)*('Fixed assets'!$P$2:$P$1000<$A665)*('Fixed assets'!$Q$2:$Q$1000=Costs!Y$617))-SUMPRODUCT(('Fixed assets'!$S$2:$S$1000)*('Fixed assets'!$P$2:$P$1000<Costs!$A665)*('Fixed assets'!$Q$2:$Q$1000=Costs!Y$617))-SUMPRODUCT(('Fixed assets'!$Q$2:$Q$1000=Costs!Y$617)*('Fixed assets'!$U$2:$U$1000=Costs!$A665)*('Fixed assets'!$S$2:$S$1000))+SUMPRODUCT(('Fixed assets'!$Q$2:$Q$1000=Costs!Y$617)*('Fixed assets'!$P$2:$P$1000=Costs!$A665)*('Fixed assets'!$U$2:$U$1000=Costs!$A665)*('Fixed assets'!$R$2:$R$1000))","v":0},{"$f":"SUMPRODUCT(('Fixed assets'!$R$2:$R$1000)*('Fixed assets'!$P$2:$P$1000<$A665)*('Fixed assets'!$Q$2:$Q$1000=Costs!Z$617))-SUMPRODUCT(('Fixed assets'!$S$2:$S$1000)*('Fixed assets'!$P$2:$P$1000<Costs!$A665)*('Fixed assets'!$Q$2:$Q$1000=Costs!Z$617))-SUMPRODUCT(('Fixed assets'!$Q$2:$Q$1000=Costs!Z$617)*('Fixed assets'!$U$2:$U$1000=Costs!$A665)*('Fixed assets'!$S$2:$S$1000))+SUMPRODUCT(('Fixed assets'!$Q$2:$Q$1000=Costs!Z$617)*('Fixed assets'!$P$2:$P$1000=Costs!$A665)*('Fixed assets'!$U$2:$U$1000=Costs!$A665)*('Fixed assets'!$R$2:$R$1000))","v":0},{"$f":"SUMPRODUCT(('Fixed assets'!$R$2:$R$1000)*('Fixed assets'!$P$2:$P$1000<$A665)*('Fixed assets'!$Q$2:$Q$1000=Costs!AA$617))-SUMPRODUCT(('Fixed assets'!$S$2:$S$1000)*('Fixed assets'!$P$2:$P$1000<Costs!$A665)*('Fixed assets'!$Q$2:$Q$1000=Costs!AA$617))-SUMPRODUCT(('Fixed assets'!$Q$2:$Q$1000=Costs!AA$617)*('Fixed assets'!$U$2:$U$1000=Costs!$A665)*('Fixed assets'!$S$2:$S$1000))+SUMPRODUCT(('Fixed assets'!$Q$2:$Q$1000=Costs!AA$617)*('Fixed assets'!$P$2:$P$1000=Costs!$A665)*('Fixed assets'!$U$2:$U$1000=Costs!$A665)*('Fixed assets'!$R$2:$R$1000))","v":0},{"$f":"SUMPRODUCT(('Fixed assets'!$R$2:$R$1000)*('Fixed assets'!$P$2:$P$1000<$A665)*('Fixed assets'!$Q$2:$Q$1000=Costs!AB$617))-SUMPRODUCT(('Fixed assets'!$S$2:$S$1000)*('Fixed assets'!$P$2:$P$1000<Costs!$A665)*('Fixed assets'!$Q$2:$Q$1000=Costs!AB$617))-SUMPRODUCT(('Fixed assets'!$Q$2:$Q$1000=Costs!AB$617)*('Fixed assets'!$U$2:$U$1000=Costs!$A665)*('Fixed assets'!$S$2:$S$1000))+SUMPRODUCT(('Fixed assets'!$Q$2:$Q$1000=Costs!AB$617)*('Fixed assets'!$P$2:$P$1000=Costs!$A665)*('Fixed assets'!$U$2:$U$1000=Costs!$A665)*('Fixed assets'!$R$2:$R$1000))","v":0},{"$f":"SUMPRODUCT(('Fixed assets'!$R$2:$R$1000)*('Fixed assets'!$P$2:$P$1000<$A665)*('Fixed assets'!$Q$2:$Q$1000=Costs!AC$617))-SUMPRODUCT(('Fixed assets'!$S$2:$S$1000)*('Fixed assets'!$P$2:$P$1000<Costs!$A665)*('Fixed assets'!$Q$2:$Q$1000=Costs!AC$617))-SUMPRODUCT(('Fixed assets'!$Q$2:$Q$1000=Costs!AC$617)*('Fixed assets'!$U$2:$U$1000=Costs!$A665)*('Fixed assets'!$S$2:$S$1000))+SUMPRODUCT(('Fixed assets'!$Q$2:$Q$1000=Costs!AC$617)*('Fixed assets'!$P$2:$P$1000=Costs!$A665)*('Fixed assets'!$U$2:$U$1000=Costs!$A665)*('Fixed assets'!$R$2:$R$1000))","v":0},{"$f":"SUMPRODUCT(('Fixed assets'!$R$2:$R$1000)*('Fixed assets'!$P$2:$P$1000<$A665)*('Fixed assets'!$Q$2:$Q$1000=Costs!AD$617))-SUMPRODUCT(('Fixed assets'!$S$2:$S$1000)*('Fixed assets'!$P$2:$P$1000<Costs!$A665)*('Fixed assets'!$Q$2:$Q$1000=Costs!AD$617))-SUMPRODUCT(('Fixed assets'!$Q$2:$Q$1000=Costs!AD$617)*('Fixed assets'!$U$2:$U$1000=Costs!$A665)*('Fixed assets'!$S$2:$S$1000))+SUMPRODUCT(('Fixed assets'!$Q$2:$Q$1000=Costs!AD$617)*('Fixed assets'!$P$2:$P$1000=Costs!$A665)*('Fixed assets'!$U$2:$U$1000=Costs!$A665)*('Fixed assets'!$R$2:$R$1000))","v":0},{"$f":"SUMPRODUCT(('Fixed assets'!$R$2:$R$1000)*('Fixed assets'!$P$2:$P$1000<$A665)*('Fixed assets'!$Q$2:$Q$1000=Costs!AE$617))-SUMPRODUCT(('Fixed assets'!$S$2:$S$1000)*('Fixed assets'!$P$2:$P$1000<Costs!$A665)*('Fixed assets'!$Q$2:$Q$1000=Costs!AE$617))-SUMPRODUCT(('Fixed assets'!$Q$2:$Q$1000=Costs!AE$617)*('Fixed assets'!$U$2:$U$1000=Costs!$A665)*('Fixed assets'!$S$2:$S$1000))+SUMPRODUCT(('Fixed assets'!$Q$2:$Q$1000=Costs!AE$617)*('Fixed assets'!$P$2:$P$1000=Costs!$A665)*('Fixed assets'!$U$2:$U$1000=Costs!$A665)*('Fixed assets'!$R$2:$R$1000))","v":0},{"$f":"SUMPRODUCT(('Fixed assets'!$R$2:$R$1000)*('Fixed assets'!$P$2:$P$1000<$A665)*('Fixed assets'!$Q$2:$Q$1000=Costs!AF$617))-SUMPRODUCT(('Fixed assets'!$S$2:$S$1000)*('Fixed assets'!$P$2:$P$1000<Costs!$A665)*('Fixed assets'!$Q$2:$Q$1000=Costs!AF$617))-SUMPRODUCT(('Fixed assets'!$Q$2:$Q$1000=Costs!AF$617)*('Fixed assets'!$U$2:$U$1000=Costs!$A665)*('Fixed assets'!$S$2:$S$1000))+SUMPRODUCT(('Fixed assets'!$Q$2:$Q$1000=Costs!AF$617)*('Fixed assets'!$P$2:$P$1000=Costs!$A665)*('Fixed assets'!$U$2:$U$1000=Costs!$A665)*('Fixed assets'!$R$2:$R$1000))","v":0},{"$f":"SUMPRODUCT(('Fixed assets'!$R$2:$R$1000)*('Fixed assets'!$P$2:$P$1000<$A665)*('Fixed assets'!$Q$2:$Q$1000=Costs!AG$617))-SUMPRODUCT(('Fixed assets'!$S$2:$S$1000)*('Fixed assets'!$P$2:$P$1000<Costs!$A665)*('Fixed assets'!$Q$2:$Q$1000=Costs!AG$617))-SUMPRODUCT(('Fixed assets'!$Q$2:$Q$1000=Costs!AG$617)*('Fixed assets'!$U$2:$U$1000=Costs!$A665)*('Fixed assets'!$S$2:$S$1000))+SUMPRODUCT(('Fixed assets'!$Q$2:$Q$1000=Costs!AG$617)*('Fixed assets'!$P$2:$P$1000=Costs!$A665)*('Fixed assets'!$U$2:$U$1000=Costs!$A665)*('Fixed assets'!$R$2:$R$1000))","v":0},{"$f":"SUMPRODUCT(('Fixed assets'!$R$2:$R$1000)*('Fixed assets'!$P$2:$P$1000<$A665)*('Fixed assets'!$Q$2:$Q$1000=Costs!AH$617))-SUMPRODUCT(('Fixed assets'!$S$2:$S$1000)*('Fixed assets'!$P$2:$P$1000<Costs!$A665)*('Fixed assets'!$Q$2:$Q$1000=Costs!AH$617))-SUMPRODUCT(('Fixed assets'!$Q$2:$Q$1000=Costs!AH$617)*('Fixed assets'!$U$2:$U$1000=Costs!$A665)*('Fixed assets'!$S$2:$S$1000))+SUMPRODUCT(('Fixed assets'!$Q$2:$Q$1000=Costs!AH$617)*('Fixed assets'!$P$2:$P$1000=Costs!$A665)*('Fixed assets'!$U$2:$U$1000=Costs!$A665)*('Fixed assets'!$R$2:$R$1000))","v":0},{"$f":"SUMPRODUCT(('Fixed assets'!$R$2:$R$1000)*('Fixed assets'!$P$2:$P$1000<$A665)*('Fixed assets'!$Q$2:$Q$1000=Costs!AI$617))-SUMPRODUCT(('Fixed assets'!$S$2:$S$1000)*('Fixed assets'!$P$2:$P$1000<Costs!$A665)*('Fixed assets'!$Q$2:$Q$1000=Costs!AI$617))-SUMPRODUCT(('Fixed assets'!$Q$2:$Q$1000=Costs!AI$617)*('Fixed assets'!$U$2:$U$1000=Costs!$A665)*('Fixed assets'!$S$2:$S$1000))+SUMPRODUCT(('Fixed assets'!$Q$2:$Q$1000=Costs!AI$617)*('Fixed assets'!$P$2:$P$1000=Costs!$A665)*('Fixed assets'!$U$2:$U$1000=Costs!$A665)*('Fixed assets'!$R$2:$R$1000))","v":0},{"$f":"SUMPRODUCT(('Fixed assets'!$R$2:$R$1000)*('Fixed assets'!$P$2:$P$1000<$A665)*('Fixed assets'!$Q$2:$Q$1000=Costs!AJ$617))-SUMPRODUCT(('Fixed assets'!$S$2:$S$1000)*('Fixed assets'!$P$2:$P$1000<Costs!$A665)*('Fixed assets'!$Q$2:$Q$1000=Costs!AJ$617))-SUMPRODUCT(('Fixed assets'!$Q$2:$Q$1000=Costs!AJ$617)*('Fixed assets'!$U$2:$U$1000=Costs!$A665)*('Fixed assets'!$S$2:$S$1000))+SUMPRODUCT(('Fixed assets'!$Q$2:$Q$1000=Costs!AJ$617)*('Fixed assets'!$P$2:$P$1000=Costs!$A665)*('Fixed assets'!$U$2:$U$1000=Costs!$A665)*('Fixed assets'!$R$2:$R$1000))","v":0},{"$f":"SUMPRODUCT(('Fixed assets'!$R$2:$R$1000)*('Fixed assets'!$P$2:$P$1000<$A665)*('Fixed assets'!$Q$2:$Q$1000=Costs!AK$617))-SUMPRODUCT(('Fixed assets'!$S$2:$S$1000)*('Fixed assets'!$P$2:$P$1000<Costs!$A665)*('Fixed assets'!$Q$2:$Q$1000=Costs!AK$617))-SUMPRODUCT(('Fixed assets'!$Q$2:$Q$1000=Costs!AK$617)*('Fixed assets'!$U$2:$U$1000=Costs!$A665)*('Fixed assets'!$S$2:$S$1000))+SUMPRODUCT(('Fixed assets'!$Q$2:$Q$1000=Costs!AK$617)*('Fixed assets'!$P$2:$P$1000=Costs!$A665)*('Fixed assets'!$U$2:$U$1000=Costs!$A665)*('Fixed assets'!$R$2:$R$1000))","v":0},{"$f":"SUMPRODUCT(('Fixed assets'!$R$2:$R$1000)*('Fixed assets'!$P$2:$P$1000<$A665)*('Fixed assets'!$Q$2:$Q$1000=Costs!AL$617))-SUMPRODUCT(('Fixed assets'!$S$2:$S$1000)*('Fixed assets'!$P$2:$P$1000<Costs!$A665)*('Fixed assets'!$Q$2:$Q$1000=Costs!AL$617))-SUMPRODUCT(('Fixed assets'!$Q$2:$Q$1000=Costs!AL$617)*('Fixed assets'!$U$2:$U$1000=Costs!$A665)*('Fixed assets'!$S$2:$S$1000))+SUMPRODUCT(('Fixed assets'!$Q$2:$Q$1000=Costs!AL$617)*('Fixed assets'!$P$2:$P$1000=Costs!$A665)*('Fixed assets'!$U$2:$U$1000=Costs!$A665)*('Fixed assets'!$R$2:$R$1000))","v":0},{"$f":"SUMPRODUCT(('Fixed assets'!$R$2:$R$1000)*('Fixed assets'!$P$2:$P$1000<$A665)*('Fixed assets'!$Q$2:$Q$1000=Costs!AM$617))-SUMPRODUCT(('Fixed assets'!$S$2:$S$1000)*('Fixed assets'!$P$2:$P$1000<Costs!$A665)*('Fixed assets'!$Q$2:$Q$1000=Costs!AM$617))-SUMPRODUCT(('Fixed assets'!$Q$2:$Q$1000=Costs!AM$617)*('Fixed assets'!$U$2:$U$1000=Costs!$A665)*('Fixed assets'!$S$2:$S$1000))+SUMPRODUCT(('Fixed assets'!$Q$2:$Q$1000=Costs!AM$617)*('Fixed assets'!$P$2:$P$1000=Costs!$A665)*('Fixed assets'!$U$2:$U$1000=Costs!$A665)*('Fixed assets'!$R$2:$R$1000))","v":0},{"$f":"SUMPRODUCT(('Fixed assets'!$R$2:$R$1000)*('Fixed assets'!$P$2:$P$1000<$A665)*('Fixed assets'!$Q$2:$Q$1000=Costs!AN$617))-SUMPRODUCT(('Fixed assets'!$S$2:$S$1000)*('Fixed assets'!$P$2:$P$1000<Costs!$A665)*('Fixed assets'!$Q$2:$Q$1000=Costs!AN$617))-SUMPRODUCT(('Fixed assets'!$Q$2:$Q$1000=Costs!AN$617)*('Fixed assets'!$U$2:$U$1000=Costs!$A665)*('Fixed assets'!$S$2:$S$1000))+SUMPRODUCT(('Fixed assets'!$Q$2:$Q$1000=Costs!AN$617)*('Fixed assets'!$P$2:$P$1000=Costs!$A665)*('Fixed assets'!$U$2:$U$1000=Costs!$A665)*('Fixed assets'!$R$2:$R$1000))","v":0},{"$f":"SUMPRODUCT(('Fixed assets'!$R$2:$R$1000)*('Fixed assets'!$P$2:$P$1000<$A665)*('Fixed assets'!$Q$2:$Q$1000=Costs!AO$617))-SUMPRODUCT(('Fixed assets'!$S$2:$S$1000)*('Fixed assets'!$P$2:$P$1000<Costs!$A665)*('Fixed assets'!$Q$2:$Q$1000=Costs!AO$617))-SUMPRODUCT(('Fixed assets'!$Q$2:$Q$1000=Costs!AO$617)*('Fixed assets'!$U$2:$U$1000=Costs!$A665)*('Fixed assets'!$S$2:$S$1000))+SUMPRODUCT(('Fixed assets'!$Q$2:$Q$1000=Costs!AO$617)*('Fixed assets'!$P$2:$P$1000=Costs!$A665)*('Fixed assets'!$U$2:$U$1000=Costs!$A665)*('Fixed assets'!$R$2:$R$1000))","v":0},{"$f":"SUMPRODUCT(('Fixed assets'!$R$2:$R$1000)*('Fixed assets'!$P$2:$P$1000<$A665)*('Fixed assets'!$Q$2:$Q$1000=Costs!AP$617))-SUMPRODUCT(('Fixed assets'!$S$2:$S$1000)*('Fixed assets'!$P$2:$P$1000<Costs!$A665)*('Fixed assets'!$Q$2:$Q$1000=Costs!AP$617))-SUMPRODUCT(('Fixed assets'!$Q$2:$Q$1000=Costs!AP$617)*('Fixed assets'!$U$2:$U$1000=Costs!$A665)*('Fixed assets'!$S$2:$S$1000))+SUMPRODUCT(('Fixed assets'!$Q$2:$Q$1000=Costs!AP$617)*('Fixed assets'!$P$2:$P$1000=Costs!$A665)*('Fixed assets'!$U$2:$U$1000=Costs!$A665)*('Fixed assets'!$R$2:$R$1000))","v":0},{"$f":"SUMPRODUCT(('Fixed assets'!$R$2:$R$1000)*('Fixed assets'!$P$2:$P$1000<$A665)*('Fixed assets'!$Q$2:$Q$1000=Costs!AQ$617))-SUMPRODUCT(('Fixed assets'!$S$2:$S$1000)*('Fixed assets'!$P$2:$P$1000<Costs!$A665)*('Fixed assets'!$Q$2:$Q$1000=Costs!AQ$617))-SUMPRODUCT(('Fixed assets'!$Q$2:$Q$1000=Costs!AQ$617)*('Fixed assets'!$U$2:$U$1000=Costs!$A665)*('Fixed assets'!$S$2:$S$1000))+SUMPRODUCT(('Fixed assets'!$Q$2:$Q$1000=Costs!AQ$617)*('Fixed assets'!$P$2:$P$1000=Costs!$A665)*('Fixed assets'!$U$2:$U$1000=Costs!$A665)*('Fixed assets'!$R$2:$R$1000))","v":0}]
[2063,0,{"$f":"SUMPRODUCT(('Fixed assets'!$R$2:$R$1000)*('Fixed assets'!$P$2:$P$1000<$A666)*('Fixed assets'!$Q$2:$Q$1000=Costs!C$617))-SUMPRODUCT(('Fixed assets'!$S$2:$S$1000)*('Fixed assets'!$P$2:$P$1000<Costs!$A666)*('Fixed assets'!$Q$2:$Q$1000=Costs!C$617))-SUMPRODUCT(('Fixed assets'!$Q$2:$Q$1000=Costs!C$617)*('Fixed assets'!$U$2:$U$1000=Costs!$A666)*('Fixed assets'!$S$2:$S$1000))+SUMPRODUCT(('Fixed assets'!$Q$2:$Q$1000=Costs!C$617)*('Fixed assets'!$P$2:$P$1000=Costs!$A666)*('Fixed assets'!$U$2:$U$1000=Costs!$A666)*('Fixed assets'!$R$2:$R$1000))","v":0},{"$f":"SUMPRODUCT(('Fixed assets'!$R$2:$R$1000)*('Fixed assets'!$P$2:$P$1000<$A666)*('Fixed assets'!$Q$2:$Q$1000=Costs!D$617))-SUMPRODUCT(('Fixed assets'!$S$2:$S$1000)*('Fixed assets'!$P$2:$P$1000<Costs!$A666)*('Fixed assets'!$Q$2:$Q$1000=Costs!D$617))-SUMPRODUCT(('Fixed assets'!$Q$2:$Q$1000=Costs!D$617)*('Fixed assets'!$U$2:$U$1000=Costs!$A666)*('Fixed assets'!$S$2:$S$1000))+SUMPRODUCT(('Fixed assets'!$Q$2:$Q$1000=Costs!D$617)*('Fixed assets'!$P$2:$P$1000=Costs!$A666)*('Fixed assets'!$U$2:$U$1000=Costs!$A666)*('Fixed assets'!$R$2:$R$1000))","v":0},{"$f":"SUMPRODUCT(('Fixed assets'!$R$2:$R$1000)*('Fixed assets'!$P$2:$P$1000<$A666)*('Fixed assets'!$Q$2:$Q$1000=Costs!E$617))-SUMPRODUCT(('Fixed assets'!$S$2:$S$1000)*('Fixed assets'!$P$2:$P$1000<Costs!$A666)*('Fixed assets'!$Q$2:$Q$1000=Costs!E$617))-SUMPRODUCT(('Fixed assets'!$Q$2:$Q$1000=Costs!E$617)*('Fixed assets'!$U$2:$U$1000=Costs!$A666)*('Fixed assets'!$S$2:$S$1000))+SUMPRODUCT(('Fixed assets'!$Q$2:$Q$1000=Costs!E$617)*('Fixed assets'!$P$2:$P$1000=Costs!$A666)*('Fixed assets'!$U$2:$U$1000=Costs!$A666)*('Fixed assets'!$R$2:$R$1000))","v":0},{"$f":"SUMPRODUCT(('Fixed assets'!$R$2:$R$1000)*('Fixed assets'!$P$2:$P$1000<$A666)*('Fixed assets'!$Q$2:$Q$1000=Costs!F$617))-SUMPRODUCT(('Fixed assets'!$S$2:$S$1000)*('Fixed assets'!$P$2:$P$1000<Costs!$A666)*('Fixed assets'!$Q$2:$Q$1000=Costs!F$617))-SUMPRODUCT(('Fixed assets'!$Q$2:$Q$1000=Costs!F$617)*('Fixed assets'!$U$2:$U$1000=Costs!$A666)*('Fixed assets'!$S$2:$S$1000))+SUMPRODUCT(('Fixed assets'!$Q$2:$Q$1000=Costs!F$617)*('Fixed assets'!$P$2:$P$1000=Costs!$A666)*('Fixed assets'!$U$2:$U$1000=Costs!$A666)*('Fixed assets'!$R$2:$R$1000))","v":0},{"$f":"SUMPRODUCT(('Fixed assets'!$R$2:$R$1000)*('Fixed assets'!$P$2:$P$1000<$A666)*('Fixed assets'!$Q$2:$Q$1000=Costs!G$617))-SUMPRODUCT(('Fixed assets'!$S$2:$S$1000)*('Fixed assets'!$P$2:$P$1000<Costs!$A666)*('Fixed assets'!$Q$2:$Q$1000=Costs!G$617))-SUMPRODUCT(('Fixed assets'!$Q$2:$Q$1000=Costs!G$617)*('Fixed assets'!$U$2:$U$1000=Costs!$A666)*('Fixed assets'!$S$2:$S$1000))+SUMPRODUCT(('Fixed assets'!$Q$2:$Q$1000=Costs!G$617)*('Fixed assets'!$P$2:$P$1000=Costs!$A666)*('Fixed assets'!$U$2:$U$1000=Costs!$A666)*('Fixed assets'!$R$2:$R$1000))","v":0},{"$f":"SUMPRODUCT(('Fixed assets'!$R$2:$R$1000)*('Fixed assets'!$P$2:$P$1000<$A666)*('Fixed assets'!$Q$2:$Q$1000=Costs!H$617))-SUMPRODUCT(('Fixed assets'!$S$2:$S$1000)*('Fixed assets'!$P$2:$P$1000<Costs!$A666)*('Fixed assets'!$Q$2:$Q$1000=Costs!H$617))-SUMPRODUCT(('Fixed assets'!$Q$2:$Q$1000=Costs!H$617)*('Fixed assets'!$U$2:$U$1000=Costs!$A666)*('Fixed assets'!$S$2:$S$1000))+SUMPRODUCT(('Fixed assets'!$Q$2:$Q$1000=Costs!H$617)*('Fixed assets'!$P$2:$P$1000=Costs!$A666)*('Fixed assets'!$U$2:$U$1000=Costs!$A666)*('Fixed assets'!$R$2:$R$1000))","v":0},{"$f":"SUMPRODUCT(('Fixed assets'!$R$2:$R$1000)*('Fixed assets'!$P$2:$P$1000<$A666)*('Fixed assets'!$Q$2:$Q$1000=Costs!I$617))-SUMPRODUCT(('Fixed assets'!$S$2:$S$1000)*('Fixed assets'!$P$2:$P$1000<Costs!$A666)*('Fixed assets'!$Q$2:$Q$1000=Costs!I$617))-SUMPRODUCT(('Fixed assets'!$Q$2:$Q$1000=Costs!I$617)*('Fixed assets'!$U$2:$U$1000=Costs!$A666)*('Fixed assets'!$S$2:$S$1000))+SUMPRODUCT(('Fixed assets'!$Q$2:$Q$1000=Costs!I$617)*('Fixed assets'!$P$2:$P$1000=Costs!$A666)*('Fixed assets'!$U$2:$U$1000=Costs!$A666)*('Fixed assets'!$R$2:$R$1000))","v":0},{"$f":"SUMPRODUCT(('Fixed assets'!$R$2:$R$1000)*('Fixed assets'!$P$2:$P$1000<$A666)*('Fixed assets'!$Q$2:$Q$1000=Costs!J$617))-SUMPRODUCT(('Fixed assets'!$S$2:$S$1000)*('Fixed assets'!$P$2:$P$1000<Costs!$A666)*('Fixed assets'!$Q$2:$Q$1000=Costs!J$617))-SUMPRODUCT(('Fixed assets'!$Q$2:$Q$1000=Costs!J$617)*('Fixed assets'!$U$2:$U$1000=Costs!$A666)*('Fixed assets'!$S$2:$S$1000))+SUMPRODUCT(('Fixed assets'!$Q$2:$Q$1000=Costs!J$617)*('Fixed assets'!$P$2:$P$1000=Costs!$A666)*('Fixed assets'!$U$2:$U$1000=Costs!$A666)*('Fixed assets'!$R$2:$R$1000))","v":0},{"$f":"SUMPRODUCT(('Fixed assets'!$R$2:$R$1000)*('Fixed assets'!$P$2:$P$1000<$A666)*('Fixed assets'!$Q$2:$Q$1000=Costs!K$617))-SUMPRODUCT(('Fixed assets'!$S$2:$S$1000)*('Fixed assets'!$P$2:$P$1000<Costs!$A666)*('Fixed assets'!$Q$2:$Q$1000=Costs!K$617))-SUMPRODUCT(('Fixed assets'!$Q$2:$Q$1000=Costs!K$617)*('Fixed assets'!$U$2:$U$1000=Costs!$A666)*('Fixed assets'!$S$2:$S$1000))+SUMPRODUCT(('Fixed assets'!$Q$2:$Q$1000=Costs!K$617)*('Fixed assets'!$P$2:$P$1000=Costs!$A666)*('Fixed assets'!$U$2:$U$1000=Costs!$A666)*('Fixed assets'!$R$2:$R$1000))","v":0},{"$f":"SUMPRODUCT(('Fixed assets'!$R$2:$R$1000)*('Fixed assets'!$P$2:$P$1000<$A666)*('Fixed assets'!$Q$2:$Q$1000=Costs!L$617))-SUMPRODUCT(('Fixed assets'!$S$2:$S$1000)*('Fixed assets'!$P$2:$P$1000<Costs!$A666)*('Fixed assets'!$Q$2:$Q$1000=Costs!L$617))-SUMPRODUCT(('Fixed assets'!$Q$2:$Q$1000=Costs!L$617)*('Fixed assets'!$U$2:$U$1000=Costs!$A666)*('Fixed assets'!$S$2:$S$1000))+SUMPRODUCT(('Fixed assets'!$Q$2:$Q$1000=Costs!L$617)*('Fixed assets'!$P$2:$P$1000=Costs!$A666)*('Fixed assets'!$U$2:$U$1000=Costs!$A666)*('Fixed assets'!$R$2:$R$1000))","v":0},{"$f":"SUMPRODUCT(('Fixed assets'!$R$2:$R$1000)*('Fixed assets'!$P$2:$P$1000<$A666)*('Fixed assets'!$Q$2:$Q$1000=Costs!M$617))-SUMPRODUCT(('Fixed assets'!$S$2:$S$1000)*('Fixed assets'!$P$2:$P$1000<Costs!$A666)*('Fixed assets'!$Q$2:$Q$1000=Costs!M$617))-SUMPRODUCT(('Fixed assets'!$Q$2:$Q$1000=Costs!M$617)*('Fixed assets'!$U$2:$U$1000=Costs!$A666)*('Fixed assets'!$S$2:$S$1000))+SUMPRODUCT(('Fixed assets'!$Q$2:$Q$1000=Costs!M$617)*('Fixed assets'!$P$2:$P$1000=Costs!$A666)*('Fixed assets'!$U$2:$U$1000=Costs!$A666)*('Fixed assets'!$R$2:$R$1000))","v":0},{"$f":"SUMPRODUCT(('Fixed assets'!$R$2:$R$1000)*('Fixed assets'!$P$2:$P$1000<$A666)*('Fixed assets'!$Q$2:$Q$1000=Costs!N$617))-SUMPRODUCT(('Fixed assets'!$S$2:$S$1000)*('Fixed assets'!$P$2:$P$1000<Costs!$A666)*('Fixed assets'!$Q$2:$Q$1000=Costs!N$617))-SUMPRODUCT(('Fixed assets'!$Q$2:$Q$1000=Costs!N$617)*('Fixed assets'!$U$2:$U$1000=Costs!$A666)*('Fixed assets'!$S$2:$S$1000))+SUMPRODUCT(('Fixed assets'!$Q$2:$Q$1000=Costs!N$617)*('Fixed assets'!$P$2:$P$1000=Costs!$A666)*('Fixed assets'!$U$2:$U$1000=Costs!$A666)*('Fixed assets'!$R$2:$R$1000))","v":0},{"$f":"SUMPRODUCT(('Fixed assets'!$R$2:$R$1000)*('Fixed assets'!$P$2:$P$1000<$A666)*('Fixed assets'!$Q$2:$Q$1000=Costs!O$617))-SUMPRODUCT(('Fixed assets'!$S$2:$S$1000)*('Fixed assets'!$P$2:$P$1000<Costs!$A666)*('Fixed assets'!$Q$2:$Q$1000=Costs!O$617))-SUMPRODUCT(('Fixed assets'!$Q$2:$Q$1000=Costs!O$617)*('Fixed assets'!$U$2:$U$1000=Costs!$A666)*('Fixed assets'!$S$2:$S$1000))+SUMPRODUCT(('Fixed assets'!$Q$2:$Q$1000=Costs!O$617)*('Fixed assets'!$P$2:$P$1000=Costs!$A666)*('Fixed assets'!$U$2:$U$1000=Costs!$A666)*('Fixed assets'!$R$2:$R$1000))","v":0},{"$f":"SUMPRODUCT(('Fixed assets'!$R$2:$R$1000)*('Fixed assets'!$P$2:$P$1000<$A666)*('Fixed assets'!$Q$2:$Q$1000=Costs!P$617))-SUMPRODUCT(('Fixed assets'!$S$2:$S$1000)*('Fixed assets'!$P$2:$P$1000<Costs!$A666)*('Fixed assets'!$Q$2:$Q$1000=Costs!P$617))-SUMPRODUCT(('Fixed assets'!$Q$2:$Q$1000=Costs!P$617)*('Fixed assets'!$U$2:$U$1000=Costs!$A666)*('Fixed assets'!$S$2:$S$1000))+SUMPRODUCT(('Fixed assets'!$Q$2:$Q$1000=Costs!P$617)*('Fixed assets'!$P$2:$P$1000=Costs!$A666)*('Fixed assets'!$U$2:$U$1000=Costs!$A666)*('Fixed assets'!$R$2:$R$1000))","v":0},{"$f":"SUMPRODUCT(('Fixed assets'!$R$2:$R$1000)*('Fixed assets'!$P$2:$P$1000<$A666)*('Fixed assets'!$Q$2:$Q$1000=Costs!Q$617))-SUMPRODUCT(('Fixed assets'!$S$2:$S$1000)*('Fixed assets'!$P$2:$P$1000<Costs!$A666)*('Fixed assets'!$Q$2:$Q$1000=Costs!Q$617))-SUMPRODUCT(('Fixed assets'!$Q$2:$Q$1000=Costs!Q$617)*('Fixed assets'!$U$2:$U$1000=Costs!$A666)*('Fixed assets'!$S$2:$S$1000))+SUMPRODUCT(('Fixed assets'!$Q$2:$Q$1000=Costs!Q$617)*('Fixed assets'!$P$2:$P$1000=Costs!$A666)*('Fixed assets'!$U$2:$U$1000=Costs!$A666)*('Fixed assets'!$R$2:$R$1000))","v":0},{"$f":"SUMPRODUCT(('Fixed assets'!$R$2:$R$1000)*('Fixed assets'!$P$2:$P$1000<$A666)*('Fixed assets'!$Q$2:$Q$1000=Costs!R$617))-SUMPRODUCT(('Fixed assets'!$S$2:$S$1000)*('Fixed assets'!$P$2:$P$1000<Costs!$A666)*('Fixed assets'!$Q$2:$Q$1000=Costs!R$617))-SUMPRODUCT(('Fixed assets'!$Q$2:$Q$1000=Costs!R$617)*('Fixed assets'!$U$2:$U$1000=Costs!$A666)*('Fixed assets'!$S$2:$S$1000))+SUMPRODUCT(('Fixed assets'!$Q$2:$Q$1000=Costs!R$617)*('Fixed assets'!$P$2:$P$1000=Costs!$A666)*('Fixed assets'!$U$2:$U$1000=Costs!$A666)*('Fixed assets'!$R$2:$R$1000))","v":0},{"$f":"SUMPRODUCT(('Fixed assets'!$R$2:$R$1000)*('Fixed assets'!$P$2:$P$1000<$A666)*('Fixed assets'!$Q$2:$Q$1000=Costs!S$617))-SUMPRODUCT(('Fixed assets'!$S$2:$S$1000)*('Fixed assets'!$P$2:$P$1000<Costs!$A666)*('Fixed assets'!$Q$2:$Q$1000=Costs!S$617))-SUMPRODUCT(('Fixed assets'!$Q$2:$Q$1000=Costs!S$617)*('Fixed assets'!$U$2:$U$1000=Costs!$A666)*('Fixed assets'!$S$2:$S$1000))+SUMPRODUCT(('Fixed assets'!$Q$2:$Q$1000=Costs!S$617)*('Fixed assets'!$P$2:$P$1000=Costs!$A666)*('Fixed assets'!$U$2:$U$1000=Costs!$A666)*('Fixed assets'!$R$2:$R$1000))","v":0},{"$f":"SUMPRODUCT(('Fixed assets'!$R$2:$R$1000)*('Fixed assets'!$P$2:$P$1000<$A666)*('Fixed assets'!$Q$2:$Q$1000=Costs!T$617))-SUMPRODUCT(('Fixed assets'!$S$2:$S$1000)*('Fixed assets'!$P$2:$P$1000<Costs!$A666)*('Fixed assets'!$Q$2:$Q$1000=Costs!T$617))-SUMPRODUCT(('Fixed assets'!$Q$2:$Q$1000=Costs!T$617)*('Fixed assets'!$U$2:$U$1000=Costs!$A666)*('Fixed assets'!$S$2:$S$1000))+SUMPRODUCT(('Fixed assets'!$Q$2:$Q$1000=Costs!T$617)*('Fixed assets'!$P$2:$P$1000=Costs!$A666)*('Fixed assets'!$U$2:$U$1000=Costs!$A666)*('Fixed assets'!$R$2:$R$1000))","v":0},{"$f":"SUMPRODUCT(('Fixed assets'!$R$2:$R$1000)*('Fixed assets'!$P$2:$P$1000<$A666)*('Fixed assets'!$Q$2:$Q$1000=Costs!U$617))-SUMPRODUCT(('Fixed assets'!$S$2:$S$1000)*('Fixed assets'!$P$2:$P$1000<Costs!$A666)*('Fixed assets'!$Q$2:$Q$1000=Costs!U$617))-SUMPRODUCT(('Fixed assets'!$Q$2:$Q$1000=Costs!U$617)*('Fixed assets'!$U$2:$U$1000=Costs!$A666)*('Fixed assets'!$S$2:$S$1000))+SUMPRODUCT(('Fixed assets'!$Q$2:$Q$1000=Costs!U$617)*('Fixed assets'!$P$2:$P$1000=Costs!$A666)*('Fixed assets'!$U$2:$U$1000=Costs!$A666)*('Fixed assets'!$R$2:$R$1000))","v":0},{"$f":"SUMPRODUCT(('Fixed assets'!$R$2:$R$1000)*('Fixed assets'!$P$2:$P$1000<$A666)*('Fixed assets'!$Q$2:$Q$1000=Costs!V$617))-SUMPRODUCT(('Fixed assets'!$S$2:$S$1000)*('Fixed assets'!$P$2:$P$1000<Costs!$A666)*('Fixed assets'!$Q$2:$Q$1000=Costs!V$617))-SUMPRODUCT(('Fixed assets'!$Q$2:$Q$1000=Costs!V$617)*('Fixed assets'!$U$2:$U$1000=Costs!$A666)*('Fixed assets'!$S$2:$S$1000))+SUMPRODUCT(('Fixed assets'!$Q$2:$Q$1000=Costs!V$617)*('Fixed assets'!$P$2:$P$1000=Costs!$A666)*('Fixed assets'!$U$2:$U$1000=Costs!$A666)*('Fixed assets'!$R$2:$R$1000))","v":0},{"$f":"SUMPRODUCT(('Fixed assets'!$R$2:$R$1000)*('Fixed assets'!$P$2:$P$1000<$A666)*('Fixed assets'!$Q$2:$Q$1000=Costs!W$617))-SUMPRODUCT(('Fixed assets'!$S$2:$S$1000)*('Fixed assets'!$P$2:$P$1000<Costs!$A666)*('Fixed assets'!$Q$2:$Q$1000=Costs!W$617))-SUMPRODUCT(('Fixed assets'!$Q$2:$Q$1000=Costs!W$617)*('Fixed assets'!$U$2:$U$1000=Costs!$A666)*('Fixed assets'!$S$2:$S$1000))+SUMPRODUCT(('Fixed assets'!$Q$2:$Q$1000=Costs!W$617)*('Fixed assets'!$P$2:$P$1000=Costs!$A666)*('Fixed assets'!$U$2:$U$1000=Costs!$A666)*('Fixed assets'!$R$2:$R$1000))","v":0},{"$f":"SUMPRODUCT(('Fixed assets'!$R$2:$R$1000)*('Fixed assets'!$P$2:$P$1000<$A666)*('Fixed assets'!$Q$2:$Q$1000=Costs!X$617))-SUMPRODUCT(('Fixed assets'!$S$2:$S$1000)*('Fixed assets'!$P$2:$P$1000<Costs!$A666)*('Fixed assets'!$Q$2:$Q$1000=Costs!X$617))-SUMPRODUCT(('Fixed assets'!$Q$2:$Q$1000=Costs!X$617)*('Fixed assets'!$U$2:$U$1000=Costs!$A666)*('Fixed assets'!$S$2:$S$1000))+SUMPRODUCT(('Fixed assets'!$Q$2:$Q$1000=Costs!X$617)*('Fixed assets'!$P$2:$P$1000=Costs!$A666)*('Fixed assets'!$U$2:$U$1000=Costs!$A666)*('Fixed assets'!$R$2:$R$1000))","v":0},{"$f":"SUMPRODUCT(('Fixed assets'!$R$2:$R$1000)*('Fixed assets'!$P$2:$P$1000<$A666)*('Fixed assets'!$Q$2:$Q$1000=Costs!Y$617))-SUMPRODUCT(('Fixed assets'!$S$2:$S$1000)*('Fixed assets'!$P$2:$P$1000<Costs!$A666)*('Fixed assets'!$Q$2:$Q$1000=Costs!Y$617))-SUMPRODUCT(('Fixed assets'!$Q$2:$Q$1000=Costs!Y$617)*('Fixed assets'!$U$2:$U$1000=Costs!$A666)*('Fixed assets'!$S$2:$S$1000))+SUMPRODUCT(('Fixed assets'!$Q$2:$Q$1000=Costs!Y$617)*('Fixed assets'!$P$2:$P$1000=Costs!$A666)*('Fixed assets'!$U$2:$U$1000=Costs!$A666)*('Fixed assets'!$R$2:$R$1000))","v":0},{"$f":"SUMPRODUCT(('Fixed assets'!$R$2:$R$1000)*('Fixed assets'!$P$2:$P$1000<$A666)*('Fixed assets'!$Q$2:$Q$1000=Costs!Z$617))-SUMPRODUCT(('Fixed assets'!$S$2:$S$1000)*('Fixed assets'!$P$2:$P$1000<Costs!$A666)*('Fixed assets'!$Q$2:$Q$1000=Costs!Z$617))-SUMPRODUCT(('Fixed assets'!$Q$2:$Q$1000=Costs!Z$617)*('Fixed assets'!$U$2:$U$1000=Costs!$A666)*('Fixed assets'!$S$2:$S$1000))+SUMPRODUCT(('Fixed assets'!$Q$2:$Q$1000=Costs!Z$617)*('Fixed assets'!$P$2:$P$1000=Costs!$A666)*('Fixed assets'!$U$2:$U$1000=Costs!$A666)*('Fixed assets'!$R$2:$R$1000))","v":0},{"$f":"SUMPRODUCT(('Fixed assets'!$R$2:$R$1000)*('Fixed assets'!$P$2:$P$1000<$A666)*('Fixed assets'!$Q$2:$Q$1000=Costs!AA$617))-SUMPRODUCT(('Fixed assets'!$S$2:$S$1000)*('Fixed assets'!$P$2:$P$1000<Costs!$A666)*('Fixed assets'!$Q$2:$Q$1000=Costs!AA$617))-SUMPRODUCT(('Fixed assets'!$Q$2:$Q$1000=Costs!AA$617)*('Fixed assets'!$U$2:$U$1000=Costs!$A666)*('Fixed assets'!$S$2:$S$1000))+SUMPRODUCT(('Fixed assets'!$Q$2:$Q$1000=Costs!AA$617)*('Fixed assets'!$P$2:$P$1000=Costs!$A666)*('Fixed assets'!$U$2:$U$1000=Costs!$A666)*('Fixed assets'!$R$2:$R$1000))","v":0},{"$f":"SUMPRODUCT(('Fixed assets'!$R$2:$R$1000)*('Fixed assets'!$P$2:$P$1000<$A666)*('Fixed assets'!$Q$2:$Q$1000=Costs!AB$617))-SUMPRODUCT(('Fixed assets'!$S$2:$S$1000)*('Fixed assets'!$P$2:$P$1000<Costs!$A666)*('Fixed assets'!$Q$2:$Q$1000=Costs!AB$617))-SUMPRODUCT(('Fixed assets'!$Q$2:$Q$1000=Costs!AB$617)*('Fixed assets'!$U$2:$U$1000=Costs!$A666)*('Fixed assets'!$S$2:$S$1000))+SUMPRODUCT(('Fixed assets'!$Q$2:$Q$1000=Costs!AB$617)*('Fixed assets'!$P$2:$P$1000=Costs!$A666)*('Fixed assets'!$U$2:$U$1000=Costs!$A666)*('Fixed assets'!$R$2:$R$1000))","v":0},{"$f":"SUMPRODUCT(('Fixed assets'!$R$2:$R$1000)*('Fixed assets'!$P$2:$P$1000<$A666)*('Fixed assets'!$Q$2:$Q$1000=Costs!AC$617))-SUMPRODUCT(('Fixed assets'!$S$2:$S$1000)*('Fixed assets'!$P$2:$P$1000<Costs!$A666)*('Fixed assets'!$Q$2:$Q$1000=Costs!AC$617))-SUMPRODUCT(('Fixed assets'!$Q$2:$Q$1000=Costs!AC$617)*('Fixed assets'!$U$2:$U$1000=Costs!$A666)*('Fixed assets'!$S$2:$S$1000))+SUMPRODUCT(('Fixed assets'!$Q$2:$Q$1000=Costs!AC$617)*('Fixed assets'!$P$2:$P$1000=Costs!$A666)*('Fixed assets'!$U$2:$U$1000=Costs!$A666)*('Fixed assets'!$R$2:$R$1000))","v":0},{"$f":"SUMPRODUCT(('Fixed assets'!$R$2:$R$1000)*('Fixed assets'!$P$2:$P$1000<$A666)*('Fixed assets'!$Q$2:$Q$1000=Costs!AD$617))-SUMPRODUCT(('Fixed assets'!$S$2:$S$1000)*('Fixed assets'!$P$2:$P$1000<Costs!$A666)*('Fixed assets'!$Q$2:$Q$1000=Costs!AD$617))-SUMPRODUCT(('Fixed assets'!$Q$2:$Q$1000=Costs!AD$617)*('Fixed assets'!$U$2:$U$1000=Costs!$A666)*('Fixed assets'!$S$2:$S$1000))+SUMPRODUCT(('Fixed assets'!$Q$2:$Q$1000=Costs!AD$617)*('Fixed assets'!$P$2:$P$1000=Costs!$A666)*('Fixed assets'!$U$2:$U$1000=Costs!$A666)*('Fixed assets'!$R$2:$R$1000))","v":0},{"$f":"SUMPRODUCT(('Fixed assets'!$R$2:$R$1000)*('Fixed assets'!$P$2:$P$1000<$A666)*('Fixed assets'!$Q$2:$Q$1000=Costs!AE$617))-SUMPRODUCT(('Fixed assets'!$S$2:$S$1000)*('Fixed assets'!$P$2:$P$1000<Costs!$A666)*('Fixed assets'!$Q$2:$Q$1000=Costs!AE$617))-SUMPRODUCT(('Fixed assets'!$Q$2:$Q$1000=Costs!AE$617)*('Fixed assets'!$U$2:$U$1000=Costs!$A666)*('Fixed assets'!$S$2:$S$1000))+SUMPRODUCT(('Fixed assets'!$Q$2:$Q$1000=Costs!AE$617)*('Fixed assets'!$P$2:$P$1000=Costs!$A666)*('Fixed assets'!$U$2:$U$1000=Costs!$A666)*('Fixed assets'!$R$2:$R$1000))","v":0},{"$f":"SUMPRODUCT(('Fixed assets'!$R$2:$R$1000)*('Fixed assets'!$P$2:$P$1000<$A666)*('Fixed assets'!$Q$2:$Q$1000=Costs!AF$617))-SUMPRODUCT(('Fixed assets'!$S$2:$S$1000)*('Fixed assets'!$P$2:$P$1000<Costs!$A666)*('Fixed assets'!$Q$2:$Q$1000=Costs!AF$617))-SUMPRODUCT(('Fixed assets'!$Q$2:$Q$1000=Costs!AF$617)*('Fixed assets'!$U$2:$U$1000=Costs!$A666)*('Fixed assets'!$S$2:$S$1000))+SUMPRODUCT(('Fixed assets'!$Q$2:$Q$1000=Costs!AF$617)*('Fixed assets'!$P$2:$P$1000=Costs!$A666)*('Fixed assets'!$U$2:$U$1000=Costs!$A666)*('Fixed assets'!$R$2:$R$1000))","v":0},{"$f":"SUMPRODUCT(('Fixed assets'!$R$2:$R$1000)*('Fixed assets'!$P$2:$P$1000<$A666)*('Fixed assets'!$Q$2:$Q$1000=Costs!AG$617))-SUMPRODUCT(('Fixed assets'!$S$2:$S$1000)*('Fixed assets'!$P$2:$P$1000<Costs!$A666)*('Fixed assets'!$Q$2:$Q$1000=Costs!AG$617))-SUMPRODUCT(('Fixed assets'!$Q$2:$Q$1000=Costs!AG$617)*('Fixed assets'!$U$2:$U$1000=Costs!$A666)*('Fixed assets'!$S$2:$S$1000))+SUMPRODUCT(('Fixed assets'!$Q$2:$Q$1000=Costs!AG$617)*('Fixed assets'!$P$2:$P$1000=Costs!$A666)*('Fixed assets'!$U$2:$U$1000=Costs!$A666)*('Fixed assets'!$R$2:$R$1000))","v":0},{"$f":"SUMPRODUCT(('Fixed assets'!$R$2:$R$1000)*('Fixed assets'!$P$2:$P$1000<$A666)*('Fixed assets'!$Q$2:$Q$1000=Costs!AH$617))-SUMPRODUCT(('Fixed assets'!$S$2:$S$1000)*('Fixed assets'!$P$2:$P$1000<Costs!$A666)*('Fixed assets'!$Q$2:$Q$1000=Costs!AH$617))-SUMPRODUCT(('Fixed assets'!$Q$2:$Q$1000=Costs!AH$617)*('Fixed assets'!$U$2:$U$1000=Costs!$A666)*('Fixed assets'!$S$2:$S$1000))+SUMPRODUCT(('Fixed assets'!$Q$2:$Q$1000=Costs!AH$617)*('Fixed assets'!$P$2:$P$1000=Costs!$A666)*('Fixed assets'!$U$2:$U$1000=Costs!$A666)*('Fixed assets'!$R$2:$R$1000))","v":0},{"$f":"SUMPRODUCT(('Fixed assets'!$R$2:$R$1000)*('Fixed assets'!$P$2:$P$1000<$A666)*('Fixed assets'!$Q$2:$Q$1000=Costs!AI$617))-SUMPRODUCT(('Fixed assets'!$S$2:$S$1000)*('Fixed assets'!$P$2:$P$1000<Costs!$A666)*('Fixed assets'!$Q$2:$Q$1000=Costs!AI$617))-SUMPRODUCT(('Fixed assets'!$Q$2:$Q$1000=Costs!AI$617)*('Fixed assets'!$U$2:$U$1000=Costs!$A666)*('Fixed assets'!$S$2:$S$1000))+SUMPRODUCT(('Fixed assets'!$Q$2:$Q$1000=Costs!AI$617)*('Fixed assets'!$P$2:$P$1000=Costs!$A666)*('Fixed assets'!$U$2:$U$1000=Costs!$A666)*('Fixed assets'!$R$2:$R$1000))","v":0},{"$f":"SUMPRODUCT(('Fixed assets'!$R$2:$R$1000)*('Fixed assets'!$P$2:$P$1000<$A666)*('Fixed assets'!$Q$2:$Q$1000=Costs!AJ$617))-SUMPRODUCT(('Fixed assets'!$S$2:$S$1000)*('Fixed assets'!$P$2:$P$1000<Costs!$A666)*('Fixed assets'!$Q$2:$Q$1000=Costs!AJ$617))-SUMPRODUCT(('Fixed assets'!$Q$2:$Q$1000=Costs!AJ$617)*('Fixed assets'!$U$2:$U$1000=Costs!$A666)*('Fixed assets'!$S$2:$S$1000))+SUMPRODUCT(('Fixed assets'!$Q$2:$Q$1000=Costs!AJ$617)*('Fixed assets'!$P$2:$P$1000=Costs!$A666)*('Fixed assets'!$U$2:$U$1000=Costs!$A666)*('Fixed assets'!$R$2:$R$1000))","v":0},{"$f":"SUMPRODUCT(('Fixed assets'!$R$2:$R$1000)*('Fixed assets'!$P$2:$P$1000<$A666)*('Fixed assets'!$Q$2:$Q$1000=Costs!AK$617))-SUMPRODUCT(('Fixed assets'!$S$2:$S$1000)*('Fixed assets'!$P$2:$P$1000<Costs!$A666)*('Fixed assets'!$Q$2:$Q$1000=Costs!AK$617))-SUMPRODUCT(('Fixed assets'!$Q$2:$Q$1000=Costs!AK$617)*('Fixed assets'!$U$2:$U$1000=Costs!$A666)*('Fixed assets'!$S$2:$S$1000))+SUMPRODUCT(('Fixed assets'!$Q$2:$Q$1000=Costs!AK$617)*('Fixed assets'!$P$2:$P$1000=Costs!$A666)*('Fixed assets'!$U$2:$U$1000=Costs!$A666)*('Fixed assets'!$R$2:$R$1000))","v":0},{"$f":"SUMPRODUCT(('Fixed assets'!$R$2:$R$1000)*('Fixed assets'!$P$2:$P$1000<$A666)*('Fixed assets'!$Q$2:$Q$1000=Costs!AL$617))-SUMPRODUCT(('Fixed assets'!$S$2:$S$1000)*('Fixed assets'!$P$2:$P$1000<Costs!$A666)*('Fixed assets'!$Q$2:$Q$1000=Costs!AL$617))-SUMPRODUCT(('Fixed assets'!$Q$2:$Q$1000=Costs!AL$617)*('Fixed assets'!$U$2:$U$1000=Costs!$A666)*('Fixed assets'!$S$2:$S$1000))+SUMPRODUCT(('Fixed assets'!$Q$2:$Q$1000=Costs!AL$617)*('Fixed assets'!$P$2:$P$1000=Costs!$A666)*('Fixed assets'!$U$2:$U$1000=Costs!$A666)*('Fixed assets'!$R$2:$R$1000))","v":0},{"$f":"SUMPRODUCT(('Fixed assets'!$R$2:$R$1000)*('Fixed assets'!$P$2:$P$1000<$A666)*('Fixed assets'!$Q$2:$Q$1000=Costs!AM$617))-SUMPRODUCT(('Fixed assets'!$S$2:$S$1000)*('Fixed assets'!$P$2:$P$1000<Costs!$A666)*('Fixed assets'!$Q$2:$Q$1000=Costs!AM$617))-SUMPRODUCT(('Fixed assets'!$Q$2:$Q$1000=Costs!AM$617)*('Fixed assets'!$U$2:$U$1000=Costs!$A666)*('Fixed assets'!$S$2:$S$1000))+SUMPRODUCT(('Fixed assets'!$Q$2:$Q$1000=Costs!AM$617)*('Fixed assets'!$P$2:$P$1000=Costs!$A666)*('Fixed assets'!$U$2:$U$1000=Costs!$A666)*('Fixed assets'!$R$2:$R$1000))","v":0},{"$f":"SUMPRODUCT(('Fixed assets'!$R$2:$R$1000)*('Fixed assets'!$P$2:$P$1000<$A666)*('Fixed assets'!$Q$2:$Q$1000=Costs!AN$617))-SUMPRODUCT(('Fixed assets'!$S$2:$S$1000)*('Fixed assets'!$P$2:$P$1000<Costs!$A666)*('Fixed assets'!$Q$2:$Q$1000=Costs!AN$617))-SUMPRODUCT(('Fixed assets'!$Q$2:$Q$1000=Costs!AN$617)*('Fixed assets'!$U$2:$U$1000=Costs!$A666)*('Fixed assets'!$S$2:$S$1000))+SUMPRODUCT(('Fixed assets'!$Q$2:$Q$1000=Costs!AN$617)*('Fixed assets'!$P$2:$P$1000=Costs!$A666)*('Fixed assets'!$U$2:$U$1000=Costs!$A666)*('Fixed assets'!$R$2:$R$1000))","v":0},{"$f":"SUMPRODUCT(('Fixed assets'!$R$2:$R$1000)*('Fixed assets'!$P$2:$P$1000<$A666)*('Fixed assets'!$Q$2:$Q$1000=Costs!AO$617))-SUMPRODUCT(('Fixed assets'!$S$2:$S$1000)*('Fixed assets'!$P$2:$P$1000<Costs!$A666)*('Fixed assets'!$Q$2:$Q$1000=Costs!AO$617))-SUMPRODUCT(('Fixed assets'!$Q$2:$Q$1000=Costs!AO$617)*('Fixed assets'!$U$2:$U$1000=Costs!$A666)*('Fixed assets'!$S$2:$S$1000))+SUMPRODUCT(('Fixed assets'!$Q$2:$Q$1000=Costs!AO$617)*('Fixed assets'!$P$2:$P$1000=Costs!$A666)*('Fixed assets'!$U$2:$U$1000=Costs!$A666)*('Fixed assets'!$R$2:$R$1000))","v":0},{"$f":"SUMPRODUCT(('Fixed assets'!$R$2:$R$1000)*('Fixed assets'!$P$2:$P$1000<$A666)*('Fixed assets'!$Q$2:$Q$1000=Costs!AP$617))-SUMPRODUCT(('Fixed assets'!$S$2:$S$1000)*('Fixed assets'!$P$2:$P$1000<Costs!$A666)*('Fixed assets'!$Q$2:$Q$1000=Costs!AP$617))-SUMPRODUCT(('Fixed assets'!$Q$2:$Q$1000=Costs!AP$617)*('Fixed assets'!$U$2:$U$1000=Costs!$A666)*('Fixed assets'!$S$2:$S$1000))+SUMPRODUCT(('Fixed assets'!$Q$2:$Q$1000=Costs!AP$617)*('Fixed assets'!$P$2:$P$1000=Costs!$A666)*('Fixed assets'!$U$2:$U$1000=Costs!$A666)*('Fixed assets'!$R$2:$R$1000))","v":0},{"$f":"SUMPRODUCT(('Fixed assets'!$R$2:$R$1000)*('Fixed assets'!$P$2:$P$1000<$A666)*('Fixed assets'!$Q$2:$Q$1000=Costs!AQ$617))-SUMPRODUCT(('Fixed assets'!$S$2:$S$1000)*('Fixed assets'!$P$2:$P$1000<Costs!$A666)*('Fixed assets'!$Q$2:$Q$1000=Costs!AQ$617))-SUMPRODUCT(('Fixed assets'!$Q$2:$Q$1000=Costs!AQ$617)*('Fixed assets'!$U$2:$U$1000=Costs!$A666)*('Fixed assets'!$S$2:$S$1000))+SUMPRODUCT(('Fixed assets'!$Q$2:$Q$1000=Costs!AQ$617)*('Fixed assets'!$P$2:$P$1000=Costs!$A666)*('Fixed assets'!$U$2:$U$1000=Costs!$A666)*('Fixed assets'!$R$2:$R$1000))","v":0}]
[2064,0,{"$f":"SUMPRODUCT(('Fixed assets'!$R$2:$R$1000)*('Fixed assets'!$P$2:$P$1000<$A667)*('Fixed assets'!$Q$2:$Q$1000=Costs!C$617))-SUMPRODUCT(('Fixed assets'!$S$2:$S$1000)*('Fixed assets'!$P$2:$P$1000<Costs!$A667)*('Fixed assets'!$Q$2:$Q$1000=Costs!C$617))-SUMPRODUCT(('Fixed assets'!$Q$2:$Q$1000=Costs!C$617)*('Fixed assets'!$U$2:$U$1000=Costs!$A667)*('Fixed assets'!$S$2:$S$1000))+SUMPRODUCT(('Fixed assets'!$Q$2:$Q$1000=Costs!C$617)*('Fixed assets'!$P$2:$P$1000=Costs!$A667)*('Fixed assets'!$U$2:$U$1000=Costs!$A667)*('Fixed assets'!$R$2:$R$1000))","v":0},{"$f":"SUMPRODUCT(('Fixed assets'!$R$2:$R$1000)*('Fixed assets'!$P$2:$P$1000<$A667)*('Fixed assets'!$Q$2:$Q$1000=Costs!D$617))-SUMPRODUCT(('Fixed assets'!$S$2:$S$1000)*('Fixed assets'!$P$2:$P$1000<Costs!$A667)*('Fixed assets'!$Q$2:$Q$1000=Costs!D$617))-SUMPRODUCT(('Fixed assets'!$Q$2:$Q$1000=Costs!D$617)*('Fixed assets'!$U$2:$U$1000=Costs!$A667)*('Fixed assets'!$S$2:$S$1000))+SUMPRODUCT(('Fixed assets'!$Q$2:$Q$1000=Costs!D$617)*('Fixed assets'!$P$2:$P$1000=Costs!$A667)*('Fixed assets'!$U$2:$U$1000=Costs!$A667)*('Fixed assets'!$R$2:$R$1000))","v":0},{"$f":"SUMPRODUCT(('Fixed assets'!$R$2:$R$1000)*('Fixed assets'!$P$2:$P$1000<$A667)*('Fixed assets'!$Q$2:$Q$1000=Costs!E$617))-SUMPRODUCT(('Fixed assets'!$S$2:$S$1000)*('Fixed assets'!$P$2:$P$1000<Costs!$A667)*('Fixed assets'!$Q$2:$Q$1000=Costs!E$617))-SUMPRODUCT(('Fixed assets'!$Q$2:$Q$1000=Costs!E$617)*('Fixed assets'!$U$2:$U$1000=Costs!$A667)*('Fixed assets'!$S$2:$S$1000))+SUMPRODUCT(('Fixed assets'!$Q$2:$Q$1000=Costs!E$617)*('Fixed assets'!$P$2:$P$1000=Costs!$A667)*('Fixed assets'!$U$2:$U$1000=Costs!$A667)*('Fixed assets'!$R$2:$R$1000))","v":0},{"$f":"SUMPRODUCT(('Fixed assets'!$R$2:$R$1000)*('Fixed assets'!$P$2:$P$1000<$A667)*('Fixed assets'!$Q$2:$Q$1000=Costs!F$617))-SUMPRODUCT(('Fixed assets'!$S$2:$S$1000)*('Fixed assets'!$P$2:$P$1000<Costs!$A667)*('Fixed assets'!$Q$2:$Q$1000=Costs!F$617))-SUMPRODUCT(('Fixed assets'!$Q$2:$Q$1000=Costs!F$617)*('Fixed assets'!$U$2:$U$1000=Costs!$A667)*('Fixed assets'!$S$2:$S$1000))+SUMPRODUCT(('Fixed assets'!$Q$2:$Q$1000=Costs!F$617)*('Fixed assets'!$P$2:$P$1000=Costs!$A667)*('Fixed assets'!$U$2:$U$1000=Costs!$A667)*('Fixed assets'!$R$2:$R$1000))","v":0},{"$f":"SUMPRODUCT(('Fixed assets'!$R$2:$R$1000)*('Fixed assets'!$P$2:$P$1000<$A667)*('Fixed assets'!$Q$2:$Q$1000=Costs!G$617))-SUMPRODUCT(('Fixed assets'!$S$2:$S$1000)*('Fixed assets'!$P$2:$P$1000<Costs!$A667)*('Fixed assets'!$Q$2:$Q$1000=Costs!G$617))-SUMPRODUCT(('Fixed assets'!$Q$2:$Q$1000=Costs!G$617)*('Fixed assets'!$U$2:$U$1000=Costs!$A667)*('Fixed assets'!$S$2:$S$1000))+SUMPRODUCT(('Fixed assets'!$Q$2:$Q$1000=Costs!G$617)*('Fixed assets'!$P$2:$P$1000=Costs!$A667)*('Fixed assets'!$U$2:$U$1000=Costs!$A667)*('Fixed assets'!$R$2:$R$1000))","v":0},{"$f":"SUMPRODUCT(('Fixed assets'!$R$2:$R$1000)*('Fixed assets'!$P$2:$P$1000<$A667)*('Fixed assets'!$Q$2:$Q$1000=Costs!H$617))-SUMPRODUCT(('Fixed assets'!$S$2:$S$1000)*('Fixed assets'!$P$2:$P$1000<Costs!$A667)*('Fixed assets'!$Q$2:$Q$1000=Costs!H$617))-SUMPRODUCT(('Fixed assets'!$Q$2:$Q$1000=Costs!H$617)*('Fixed assets'!$U$2:$U$1000=Costs!$A667)*('Fixed assets'!$S$2:$S$1000))+SUMPRODUCT(('Fixed assets'!$Q$2:$Q$1000=Costs!H$617)*('Fixed assets'!$P$2:$P$1000=Costs!$A667)*('Fixed assets'!$U$2:$U$1000=Costs!$A667)*('Fixed assets'!$R$2:$R$1000))","v":0},{"$f":"SUMPRODUCT(('Fixed assets'!$R$2:$R$1000)*('Fixed assets'!$P$2:$P$1000<$A667)*('Fixed assets'!$Q$2:$Q$1000=Costs!I$617))-SUMPRODUCT(('Fixed assets'!$S$2:$S$1000)*('Fixed assets'!$P$2:$P$1000<Costs!$A667)*('Fixed assets'!$Q$2:$Q$1000=Costs!I$617))-SUMPRODUCT(('Fixed assets'!$Q$2:$Q$1000=Costs!I$617)*('Fixed assets'!$U$2:$U$1000=Costs!$A667)*('Fixed assets'!$S$2:$S$1000))+SUMPRODUCT(('Fixed assets'!$Q$2:$Q$1000=Costs!I$617)*('Fixed assets'!$P$2:$P$1000=Costs!$A667)*('Fixed assets'!$U$2:$U$1000=Costs!$A667)*('Fixed assets'!$R$2:$R$1000))","v":0},{"$f":"SUMPRODUCT(('Fixed assets'!$R$2:$R$1000)*('Fixed assets'!$P$2:$P$1000<$A667)*('Fixed assets'!$Q$2:$Q$1000=Costs!J$617))-SUMPRODUCT(('Fixed assets'!$S$2:$S$1000)*('Fixed assets'!$P$2:$P$1000<Costs!$A667)*('Fixed assets'!$Q$2:$Q$1000=Costs!J$617))-SUMPRODUCT(('Fixed assets'!$Q$2:$Q$1000=Costs!J$617)*('Fixed assets'!$U$2:$U$1000=Costs!$A667)*('Fixed assets'!$S$2:$S$1000))+SUMPRODUCT(('Fixed assets'!$Q$2:$Q$1000=Costs!J$617)*('Fixed assets'!$P$2:$P$1000=Costs!$A667)*('Fixed assets'!$U$2:$U$1000=Costs!$A667)*('Fixed assets'!$R$2:$R$1000))","v":0},{"$f":"SUMPRODUCT(('Fixed assets'!$R$2:$R$1000)*('Fixed assets'!$P$2:$P$1000<$A667)*('Fixed assets'!$Q$2:$Q$1000=Costs!K$617))-SUMPRODUCT(('Fixed assets'!$S$2:$S$1000)*('Fixed assets'!$P$2:$P$1000<Costs!$A667)*('Fixed assets'!$Q$2:$Q$1000=Costs!K$617))-SUMPRODUCT(('Fixed assets'!$Q$2:$Q$1000=Costs!K$617)*('Fixed assets'!$U$2:$U$1000=Costs!$A667)*('Fixed assets'!$S$2:$S$1000))+SUMPRODUCT(('Fixed assets'!$Q$2:$Q$1000=Costs!K$617)*('Fixed assets'!$P$2:$P$1000=Costs!$A667)*('Fixed assets'!$U$2:$U$1000=Costs!$A667)*('Fixed assets'!$R$2:$R$1000))","v":0},{"$f":"SUMPRODUCT(('Fixed assets'!$R$2:$R$1000)*('Fixed assets'!$P$2:$P$1000<$A667)*('Fixed assets'!$Q$2:$Q$1000=Costs!L$617))-SUMPRODUCT(('Fixed assets'!$S$2:$S$1000)*('Fixed assets'!$P$2:$P$1000<Costs!$A667)*('Fixed assets'!$Q$2:$Q$1000=Costs!L$617))-SUMPRODUCT(('Fixed assets'!$Q$2:$Q$1000=Costs!L$617)*('Fixed assets'!$U$2:$U$1000=Costs!$A667)*('Fixed assets'!$S$2:$S$1000))+SUMPRODUCT(('Fixed assets'!$Q$2:$Q$1000=Costs!L$617)*('Fixed assets'!$P$2:$P$1000=Costs!$A667)*('Fixed assets'!$U$2:$U$1000=Costs!$A667)*('Fixed assets'!$R$2:$R$1000))","v":0},{"$f":"SUMPRODUCT(('Fixed assets'!$R$2:$R$1000)*('Fixed assets'!$P$2:$P$1000<$A667)*('Fixed assets'!$Q$2:$Q$1000=Costs!M$617))-SUMPRODUCT(('Fixed assets'!$S$2:$S$1000)*('Fixed assets'!$P$2:$P$1000<Costs!$A667)*('Fixed assets'!$Q$2:$Q$1000=Costs!M$617))-SUMPRODUCT(('Fixed assets'!$Q$2:$Q$1000=Costs!M$617)*('Fixed assets'!$U$2:$U$1000=Costs!$A667)*('Fixed assets'!$S$2:$S$1000))+SUMPRODUCT(('Fixed assets'!$Q$2:$Q$1000=Costs!M$617)*('Fixed assets'!$P$2:$P$1000=Costs!$A667)*('Fixed assets'!$U$2:$U$1000=Costs!$A667)*('Fixed assets'!$R$2:$R$1000))","v":0},{"$f":"SUMPRODUCT(('Fixed assets'!$R$2:$R$1000)*('Fixed assets'!$P$2:$P$1000<$A667)*('Fixed assets'!$Q$2:$Q$1000=Costs!N$617))-SUMPRODUCT(('Fixed assets'!$S$2:$S$1000)*('Fixed assets'!$P$2:$P$1000<Costs!$A667)*('Fixed assets'!$Q$2:$Q$1000=Costs!N$617))-SUMPRODUCT(('Fixed assets'!$Q$2:$Q$1000=Costs!N$617)*('Fixed assets'!$U$2:$U$1000=Costs!$A667)*('Fixed assets'!$S$2:$S$1000))+SUMPRODUCT(('Fixed assets'!$Q$2:$Q$1000=Costs!N$617)*('Fixed assets'!$P$2:$P$1000=Costs!$A667)*('Fixed assets'!$U$2:$U$1000=Costs!$A667)*('Fixed assets'!$R$2:$R$1000))","v":0},{"$f":"SUMPRODUCT(('Fixed assets'!$R$2:$R$1000)*('Fixed assets'!$P$2:$P$1000<$A667)*('Fixed assets'!$Q$2:$Q$1000=Costs!O$617))-SUMPRODUCT(('Fixed assets'!$S$2:$S$1000)*('Fixed assets'!$P$2:$P$1000<Costs!$A667)*('Fixed assets'!$Q$2:$Q$1000=Costs!O$617))-SUMPRODUCT(('Fixed assets'!$Q$2:$Q$1000=Costs!O$617)*('Fixed assets'!$U$2:$U$1000=Costs!$A667)*('Fixed assets'!$S$2:$S$1000))+SUMPRODUCT(('Fixed assets'!$Q$2:$Q$1000=Costs!O$617)*('Fixed assets'!$P$2:$P$1000=Costs!$A667)*('Fixed assets'!$U$2:$U$1000=Costs!$A667)*('Fixed assets'!$R$2:$R$1000))","v":0},{"$f":"SUMPRODUCT(('Fixed assets'!$R$2:$R$1000)*('Fixed assets'!$P$2:$P$1000<$A667)*('Fixed assets'!$Q$2:$Q$1000=Costs!P$617))-SUMPRODUCT(('Fixed assets'!$S$2:$S$1000)*('Fixed assets'!$P$2:$P$1000<Costs!$A667)*('Fixed assets'!$Q$2:$Q$1000=Costs!P$617))-SUMPRODUCT(('Fixed assets'!$Q$2:$Q$1000=Costs!P$617)*('Fixed assets'!$U$2:$U$1000=Costs!$A667)*('Fixed assets'!$S$2:$S$1000))+SUMPRODUCT(('Fixed assets'!$Q$2:$Q$1000=Costs!P$617)*('Fixed assets'!$P$2:$P$1000=Costs!$A667)*('Fixed assets'!$U$2:$U$1000=Costs!$A667)*('Fixed assets'!$R$2:$R$1000))","v":0},{"$f":"SUMPRODUCT(('Fixed assets'!$R$2:$R$1000)*('Fixed assets'!$P$2:$P$1000<$A667)*('Fixed assets'!$Q$2:$Q$1000=Costs!Q$617))-SUMPRODUCT(('Fixed assets'!$S$2:$S$1000)*('Fixed assets'!$P$2:$P$1000<Costs!$A667)*('Fixed assets'!$Q$2:$Q$1000=Costs!Q$617))-SUMPRODUCT(('Fixed assets'!$Q$2:$Q$1000=Costs!Q$617)*('Fixed assets'!$U$2:$U$1000=Costs!$A667)*('Fixed assets'!$S$2:$S$1000))+SUMPRODUCT(('Fixed assets'!$Q$2:$Q$1000=Costs!Q$617)*('Fixed assets'!$P$2:$P$1000=Costs!$A667)*('Fixed assets'!$U$2:$U$1000=Costs!$A667)*('Fixed assets'!$R$2:$R$1000))","v":0},{"$f":"SUMPRODUCT(('Fixed assets'!$R$2:$R$1000)*('Fixed assets'!$P$2:$P$1000<$A667)*('Fixed assets'!$Q$2:$Q$1000=Costs!R$617))-SUMPRODUCT(('Fixed assets'!$S$2:$S$1000)*('Fixed assets'!$P$2:$P$1000<Costs!$A667)*('Fixed assets'!$Q$2:$Q$1000=Costs!R$617))-SUMPRODUCT(('Fixed assets'!$Q$2:$Q$1000=Costs!R$617)*('Fixed assets'!$U$2:$U$1000=Costs!$A667)*('Fixed assets'!$S$2:$S$1000))+SUMPRODUCT(('Fixed assets'!$Q$2:$Q$1000=Costs!R$617)*('Fixed assets'!$P$2:$P$1000=Costs!$A667)*('Fixed assets'!$U$2:$U$1000=Costs!$A667)*('Fixed assets'!$R$2:$R$1000))","v":0},{"$f":"SUMPRODUCT(('Fixed assets'!$R$2:$R$1000)*('Fixed assets'!$P$2:$P$1000<$A667)*('Fixed assets'!$Q$2:$Q$1000=Costs!S$617))-SUMPRODUCT(('Fixed assets'!$S$2:$S$1000)*('Fixed assets'!$P$2:$P$1000<Costs!$A667)*('Fixed assets'!$Q$2:$Q$1000=Costs!S$617))-SUMPRODUCT(('Fixed assets'!$Q$2:$Q$1000=Costs!S$617)*('Fixed assets'!$U$2:$U$1000=Costs!$A667)*('Fixed assets'!$S$2:$S$1000))+SUMPRODUCT(('Fixed assets'!$Q$2:$Q$1000=Costs!S$617)*('Fixed assets'!$P$2:$P$1000=Costs!$A667)*('Fixed assets'!$U$2:$U$1000=Costs!$A667)*('Fixed assets'!$R$2:$R$1000))","v":0},{"$f":"SUMPRODUCT(('Fixed assets'!$R$2:$R$1000)*('Fixed assets'!$P$2:$P$1000<$A667)*('Fixed assets'!$Q$2:$Q$1000=Costs!T$617))-SUMPRODUCT(('Fixed assets'!$S$2:$S$1000)*('Fixed assets'!$P$2:$P$1000<Costs!$A667)*('Fixed assets'!$Q$2:$Q$1000=Costs!T$617))-SUMPRODUCT(('Fixed assets'!$Q$2:$Q$1000=Costs!T$617)*('Fixed assets'!$U$2:$U$1000=Costs!$A667)*('Fixed assets'!$S$2:$S$1000))+SUMPRODUCT(('Fixed assets'!$Q$2:$Q$1000=Costs!T$617)*('Fixed assets'!$P$2:$P$1000=Costs!$A667)*('Fixed assets'!$U$2:$U$1000=Costs!$A667)*('Fixed assets'!$R$2:$R$1000))","v":0},{"$f":"SUMPRODUCT(('Fixed assets'!$R$2:$R$1000)*('Fixed assets'!$P$2:$P$1000<$A667)*('Fixed assets'!$Q$2:$Q$1000=Costs!U$617))-SUMPRODUCT(('Fixed assets'!$S$2:$S$1000)*('Fixed assets'!$P$2:$P$1000<Costs!$A667)*('Fixed assets'!$Q$2:$Q$1000=Costs!U$617))-SUMPRODUCT(('Fixed assets'!$Q$2:$Q$1000=Costs!U$617)*('Fixed assets'!$U$2:$U$1000=Costs!$A667)*('Fixed assets'!$S$2:$S$1000))+SUMPRODUCT(('Fixed assets'!$Q$2:$Q$1000=Costs!U$617)*('Fixed assets'!$P$2:$P$1000=Costs!$A667)*('Fixed assets'!$U$2:$U$1000=Costs!$A667)*('Fixed assets'!$R$2:$R$1000))","v":0},{"$f":"SUMPRODUCT(('Fixed assets'!$R$2:$R$1000)*('Fixed assets'!$P$2:$P$1000<$A667)*('Fixed assets'!$Q$2:$Q$1000=Costs!V$617))-SUMPRODUCT(('Fixed assets'!$S$2:$S$1000)*('Fixed assets'!$P$2:$P$1000<Costs!$A667)*('Fixed assets'!$Q$2:$Q$1000=Costs!V$617))-SUMPRODUCT(('Fixed assets'!$Q$2:$Q$1000=Costs!V$617)*('Fixed assets'!$U$2:$U$1000=Costs!$A667)*('Fixed assets'!$S$2:$S$1000))+SUMPRODUCT(('Fixed assets'!$Q$2:$Q$1000=Costs!V$617)*('Fixed assets'!$P$2:$P$1000=Costs!$A667)*('Fixed assets'!$U$2:$U$1000=Costs!$A667)*('Fixed assets'!$R$2:$R$1000))","v":0},{"$f":"SUMPRODUCT(('Fixed assets'!$R$2:$R$1000)*('Fixed assets'!$P$2:$P$1000<$A667)*('Fixed assets'!$Q$2:$Q$1000=Costs!W$617))-SUMPRODUCT(('Fixed assets'!$S$2:$S$1000)*('Fixed assets'!$P$2:$P$1000<Costs!$A667)*('Fixed assets'!$Q$2:$Q$1000=Costs!W$617))-SUMPRODUCT(('Fixed assets'!$Q$2:$Q$1000=Costs!W$617)*('Fixed assets'!$U$2:$U$1000=Costs!$A667)*('Fixed assets'!$S$2:$S$1000))+SUMPRODUCT(('Fixed assets'!$Q$2:$Q$1000=Costs!W$617)*('Fixed assets'!$P$2:$P$1000=Costs!$A667)*('Fixed assets'!$U$2:$U$1000=Costs!$A667)*('Fixed assets'!$R$2:$R$1000))","v":0},{"$f":"SUMPRODUCT(('Fixed assets'!$R$2:$R$1000)*('Fixed assets'!$P$2:$P$1000<$A667)*('Fixed assets'!$Q$2:$Q$1000=Costs!X$617))-SUMPRODUCT(('Fixed assets'!$S$2:$S$1000)*('Fixed assets'!$P$2:$P$1000<Costs!$A667)*('Fixed assets'!$Q$2:$Q$1000=Costs!X$617))-SUMPRODUCT(('Fixed assets'!$Q$2:$Q$1000=Costs!X$617)*('Fixed assets'!$U$2:$U$1000=Costs!$A667)*('Fixed assets'!$S$2:$S$1000))+SUMPRODUCT(('Fixed assets'!$Q$2:$Q$1000=Costs!X$617)*('Fixed assets'!$P$2:$P$1000=Costs!$A667)*('Fixed assets'!$U$2:$U$1000=Costs!$A667)*('Fixed assets'!$R$2:$R$1000))","v":0},{"$f":"SUMPRODUCT(('Fixed assets'!$R$2:$R$1000)*('Fixed assets'!$P$2:$P$1000<$A667)*('Fixed assets'!$Q$2:$Q$1000=Costs!Y$617))-SUMPRODUCT(('Fixed assets'!$S$2:$S$1000)*('Fixed assets'!$P$2:$P$1000<Costs!$A667)*('Fixed assets'!$Q$2:$Q$1000=Costs!Y$617))-SUMPRODUCT(('Fixed assets'!$Q$2:$Q$1000=Costs!Y$617)*('Fixed assets'!$U$2:$U$1000=Costs!$A667)*('Fixed assets'!$S$2:$S$1000))+SUMPRODUCT(('Fixed assets'!$Q$2:$Q$1000=Costs!Y$617)*('Fixed assets'!$P$2:$P$1000=Costs!$A667)*('Fixed assets'!$U$2:$U$1000=Costs!$A667)*('Fixed assets'!$R$2:$R$1000))","v":0},{"$f":"SUMPRODUCT(('Fixed assets'!$R$2:$R$1000)*('Fixed assets'!$P$2:$P$1000<$A667)*('Fixed assets'!$Q$2:$Q$1000=Costs!Z$617))-SUMPRODUCT(('Fixed assets'!$S$2:$S$1000)*('Fixed assets'!$P$2:$P$1000<Costs!$A667)*('Fixed assets'!$Q$2:$Q$1000=Costs!Z$617))-SUMPRODUCT(('Fixed assets'!$Q$2:$Q$1000=Costs!Z$617)*('Fixed assets'!$U$2:$U$1000=Costs!$A667)*('Fixed assets'!$S$2:$S$1000))+SUMPRODUCT(('Fixed assets'!$Q$2:$Q$1000=Costs!Z$617)*('Fixed assets'!$P$2:$P$1000=Costs!$A667)*('Fixed assets'!$U$2:$U$1000=Costs!$A667)*('Fixed assets'!$R$2:$R$1000))","v":0},{"$f":"SUMPRODUCT(('Fixed assets'!$R$2:$R$1000)*('Fixed assets'!$P$2:$P$1000<$A667)*('Fixed assets'!$Q$2:$Q$1000=Costs!AA$617))-SUMPRODUCT(('Fixed assets'!$S$2:$S$1000)*('Fixed assets'!$P$2:$P$1000<Costs!$A667)*('Fixed assets'!$Q$2:$Q$1000=Costs!AA$617))-SUMPRODUCT(('Fixed assets'!$Q$2:$Q$1000=Costs!AA$617)*('Fixed assets'!$U$2:$U$1000=Costs!$A667)*('Fixed assets'!$S$2:$S$1000))+SUMPRODUCT(('Fixed assets'!$Q$2:$Q$1000=Costs!AA$617)*('Fixed assets'!$P$2:$P$1000=Costs!$A667)*('Fixed assets'!$U$2:$U$1000=Costs!$A667)*('Fixed assets'!$R$2:$R$1000))","v":0},{"$f":"SUMPRODUCT(('Fixed assets'!$R$2:$R$1000)*('Fixed assets'!$P$2:$P$1000<$A667)*('Fixed assets'!$Q$2:$Q$1000=Costs!AB$617))-SUMPRODUCT(('Fixed assets'!$S$2:$S$1000)*('Fixed assets'!$P$2:$P$1000<Costs!$A667)*('Fixed assets'!$Q$2:$Q$1000=Costs!AB$617))-SUMPRODUCT(('Fixed assets'!$Q$2:$Q$1000=Costs!AB$617)*('Fixed assets'!$U$2:$U$1000=Costs!$A667)*('Fixed assets'!$S$2:$S$1000))+SUMPRODUCT(('Fixed assets'!$Q$2:$Q$1000=Costs!AB$617)*('Fixed assets'!$P$2:$P$1000=Costs!$A667)*('Fixed assets'!$U$2:$U$1000=Costs!$A667)*('Fixed assets'!$R$2:$R$1000))","v":0},{"$f":"SUMPRODUCT(('Fixed assets'!$R$2:$R$1000)*('Fixed assets'!$P$2:$P$1000<$A667)*('Fixed assets'!$Q$2:$Q$1000=Costs!AC$617))-SUMPRODUCT(('Fixed assets'!$S$2:$S$1000)*('Fixed assets'!$P$2:$P$1000<Costs!$A667)*('Fixed assets'!$Q$2:$Q$1000=Costs!AC$617))-SUMPRODUCT(('Fixed assets'!$Q$2:$Q$1000=Costs!AC$617)*('Fixed assets'!$U$2:$U$1000=Costs!$A667)*('Fixed assets'!$S$2:$S$1000))+SUMPRODUCT(('Fixed assets'!$Q$2:$Q$1000=Costs!AC$617)*('Fixed assets'!$P$2:$P$1000=Costs!$A667)*('Fixed assets'!$U$2:$U$1000=Costs!$A667)*('Fixed assets'!$R$2:$R$1000))","v":0},{"$f":"SUMPRODUCT(('Fixed assets'!$R$2:$R$1000)*('Fixed assets'!$P$2:$P$1000<$A667)*('Fixed assets'!$Q$2:$Q$1000=Costs!AD$617))-SUMPRODUCT(('Fixed assets'!$S$2:$S$1000)*('Fixed assets'!$P$2:$P$1000<Costs!$A667)*('Fixed assets'!$Q$2:$Q$1000=Costs!AD$617))-SUMPRODUCT(('Fixed assets'!$Q$2:$Q$1000=Costs!AD$617)*('Fixed assets'!$U$2:$U$1000=Costs!$A667)*('Fixed assets'!$S$2:$S$1000))+SUMPRODUCT(('Fixed assets'!$Q$2:$Q$1000=Costs!AD$617)*('Fixed assets'!$P$2:$P$1000=Costs!$A667)*('Fixed assets'!$U$2:$U$1000=Costs!$A667)*('Fixed assets'!$R$2:$R$1000))","v":0},{"$f":"SUMPRODUCT(('Fixed assets'!$R$2:$R$1000)*('Fixed assets'!$P$2:$P$1000<$A667)*('Fixed assets'!$Q$2:$Q$1000=Costs!AE$617))-SUMPRODUCT(('Fixed assets'!$S$2:$S$1000)*('Fixed assets'!$P$2:$P$1000<Costs!$A667)*('Fixed assets'!$Q$2:$Q$1000=Costs!AE$617))-SUMPRODUCT(('Fixed assets'!$Q$2:$Q$1000=Costs!AE$617)*('Fixed assets'!$U$2:$U$1000=Costs!$A667)*('Fixed assets'!$S$2:$S$1000))+SUMPRODUCT(('Fixed assets'!$Q$2:$Q$1000=Costs!AE$617)*('Fixed assets'!$P$2:$P$1000=Costs!$A667)*('Fixed assets'!$U$2:$U$1000=Costs!$A667)*('Fixed assets'!$R$2:$R$1000))","v":0},{"$f":"SUMPRODUCT(('Fixed assets'!$R$2:$R$1000)*('Fixed assets'!$P$2:$P$1000<$A667)*('Fixed assets'!$Q$2:$Q$1000=Costs!AF$617))-SUMPRODUCT(('Fixed assets'!$S$2:$S$1000)*('Fixed assets'!$P$2:$P$1000<Costs!$A667)*('Fixed assets'!$Q$2:$Q$1000=Costs!AF$617))-SUMPRODUCT(('Fixed assets'!$Q$2:$Q$1000=Costs!AF$617)*('Fixed assets'!$U$2:$U$1000=Costs!$A667)*('Fixed assets'!$S$2:$S$1000))+SUMPRODUCT(('Fixed assets'!$Q$2:$Q$1000=Costs!AF$617)*('Fixed assets'!$P$2:$P$1000=Costs!$A667)*('Fixed assets'!$U$2:$U$1000=Costs!$A667)*('Fixed assets'!$R$2:$R$1000))","v":0},{"$f":"SUMPRODUCT(('Fixed assets'!$R$2:$R$1000)*('Fixed assets'!$P$2:$P$1000<$A667)*('Fixed assets'!$Q$2:$Q$1000=Costs!AG$617))-SUMPRODUCT(('Fixed assets'!$S$2:$S$1000)*('Fixed assets'!$P$2:$P$1000<Costs!$A667)*('Fixed assets'!$Q$2:$Q$1000=Costs!AG$617))-SUMPRODUCT(('Fixed assets'!$Q$2:$Q$1000=Costs!AG$617)*('Fixed assets'!$U$2:$U$1000=Costs!$A667)*('Fixed assets'!$S$2:$S$1000))+SUMPRODUCT(('Fixed assets'!$Q$2:$Q$1000=Costs!AG$617)*('Fixed assets'!$P$2:$P$1000=Costs!$A667)*('Fixed assets'!$U$2:$U$1000=Costs!$A667)*('Fixed assets'!$R$2:$R$1000))","v":0},{"$f":"SUMPRODUCT(('Fixed assets'!$R$2:$R$1000)*('Fixed assets'!$P$2:$P$1000<$A667)*('Fixed assets'!$Q$2:$Q$1000=Costs!AH$617))-SUMPRODUCT(('Fixed assets'!$S$2:$S$1000)*('Fixed assets'!$P$2:$P$1000<Costs!$A667)*('Fixed assets'!$Q$2:$Q$1000=Costs!AH$617))-SUMPRODUCT(('Fixed assets'!$Q$2:$Q$1000=Costs!AH$617)*('Fixed assets'!$U$2:$U$1000=Costs!$A667)*('Fixed assets'!$S$2:$S$1000))+SUMPRODUCT(('Fixed assets'!$Q$2:$Q$1000=Costs!AH$617)*('Fixed assets'!$P$2:$P$1000=Costs!$A667)*('Fixed assets'!$U$2:$U$1000=Costs!$A667)*('Fixed assets'!$R$2:$R$1000))","v":0},{"$f":"SUMPRODUCT(('Fixed assets'!$R$2:$R$1000)*('Fixed assets'!$P$2:$P$1000<$A667)*('Fixed assets'!$Q$2:$Q$1000=Costs!AI$617))-SUMPRODUCT(('Fixed assets'!$S$2:$S$1000)*('Fixed assets'!$P$2:$P$1000<Costs!$A667)*('Fixed assets'!$Q$2:$Q$1000=Costs!AI$617))-SUMPRODUCT(('Fixed assets'!$Q$2:$Q$1000=Costs!AI$617)*('Fixed assets'!$U$2:$U$1000=Costs!$A667)*('Fixed assets'!$S$2:$S$1000))+SUMPRODUCT(('Fixed assets'!$Q$2:$Q$1000=Costs!AI$617)*('Fixed assets'!$P$2:$P$1000=Costs!$A667)*('Fixed assets'!$U$2:$U$1000=Costs!$A667)*('Fixed assets'!$R$2:$R$1000))","v":0},{"$f":"SUMPRODUCT(('Fixed assets'!$R$2:$R$1000)*('Fixed assets'!$P$2:$P$1000<$A667)*('Fixed assets'!$Q$2:$Q$1000=Costs!AJ$617))-SUMPRODUCT(('Fixed assets'!$S$2:$S$1000)*('Fixed assets'!$P$2:$P$1000<Costs!$A667)*('Fixed assets'!$Q$2:$Q$1000=Costs!AJ$617))-SUMPRODUCT(('Fixed assets'!$Q$2:$Q$1000=Costs!AJ$617)*('Fixed assets'!$U$2:$U$1000=Costs!$A667)*('Fixed assets'!$S$2:$S$1000))+SUMPRODUCT(('Fixed assets'!$Q$2:$Q$1000=Costs!AJ$617)*('Fixed assets'!$P$2:$P$1000=Costs!$A667)*('Fixed assets'!$U$2:$U$1000=Costs!$A667)*('Fixed assets'!$R$2:$R$1000))","v":0},{"$f":"SUMPRODUCT(('Fixed assets'!$R$2:$R$1000)*('Fixed assets'!$P$2:$P$1000<$A667)*('Fixed assets'!$Q$2:$Q$1000=Costs!AK$617))-SUMPRODUCT(('Fixed assets'!$S$2:$S$1000)*('Fixed assets'!$P$2:$P$1000<Costs!$A667)*('Fixed assets'!$Q$2:$Q$1000=Costs!AK$617))-SUMPRODUCT(('Fixed assets'!$Q$2:$Q$1000=Costs!AK$617)*('Fixed assets'!$U$2:$U$1000=Costs!$A667)*('Fixed assets'!$S$2:$S$1000))+SUMPRODUCT(('Fixed assets'!$Q$2:$Q$1000=Costs!AK$617)*('Fixed assets'!$P$2:$P$1000=Costs!$A667)*('Fixed assets'!$U$2:$U$1000=Costs!$A667)*('Fixed assets'!$R$2:$R$1000))","v":0},{"$f":"SUMPRODUCT(('Fixed assets'!$R$2:$R$1000)*('Fixed assets'!$P$2:$P$1000<$A667)*('Fixed assets'!$Q$2:$Q$1000=Costs!AL$617))-SUMPRODUCT(('Fixed assets'!$S$2:$S$1000)*('Fixed assets'!$P$2:$P$1000<Costs!$A667)*('Fixed assets'!$Q$2:$Q$1000=Costs!AL$617))-SUMPRODUCT(('Fixed assets'!$Q$2:$Q$1000=Costs!AL$617)*('Fixed assets'!$U$2:$U$1000=Costs!$A667)*('Fixed assets'!$S$2:$S$1000))+SUMPRODUCT(('Fixed assets'!$Q$2:$Q$1000=Costs!AL$617)*('Fixed assets'!$P$2:$P$1000=Costs!$A667)*('Fixed assets'!$U$2:$U$1000=Costs!$A667)*('Fixed assets'!$R$2:$R$1000))","v":0},{"$f":"SUMPRODUCT(('Fixed assets'!$R$2:$R$1000)*('Fixed assets'!$P$2:$P$1000<$A667)*('Fixed assets'!$Q$2:$Q$1000=Costs!AM$617))-SUMPRODUCT(('Fixed assets'!$S$2:$S$1000)*('Fixed assets'!$P$2:$P$1000<Costs!$A667)*('Fixed assets'!$Q$2:$Q$1000=Costs!AM$617))-SUMPRODUCT(('Fixed assets'!$Q$2:$Q$1000=Costs!AM$617)*('Fixed assets'!$U$2:$U$1000=Costs!$A667)*('Fixed assets'!$S$2:$S$1000))+SUMPRODUCT(('Fixed assets'!$Q$2:$Q$1000=Costs!AM$617)*('Fixed assets'!$P$2:$P$1000=Costs!$A667)*('Fixed assets'!$U$2:$U$1000=Costs!$A667)*('Fixed assets'!$R$2:$R$1000))","v":0},{"$f":"SUMPRODUCT(('Fixed assets'!$R$2:$R$1000)*('Fixed assets'!$P$2:$P$1000<$A667)*('Fixed assets'!$Q$2:$Q$1000=Costs!AN$617))-SUMPRODUCT(('Fixed assets'!$S$2:$S$1000)*('Fixed assets'!$P$2:$P$1000<Costs!$A667)*('Fixed assets'!$Q$2:$Q$1000=Costs!AN$617))-SUMPRODUCT(('Fixed assets'!$Q$2:$Q$1000=Costs!AN$617)*('Fixed assets'!$U$2:$U$1000=Costs!$A667)*('Fixed assets'!$S$2:$S$1000))+SUMPRODUCT(('Fixed assets'!$Q$2:$Q$1000=Costs!AN$617)*('Fixed assets'!$P$2:$P$1000=Costs!$A667)*('Fixed assets'!$U$2:$U$1000=Costs!$A667)*('Fixed assets'!$R$2:$R$1000))","v":0},{"$f":"SUMPRODUCT(('Fixed assets'!$R$2:$R$1000)*('Fixed assets'!$P$2:$P$1000<$A667)*('Fixed assets'!$Q$2:$Q$1000=Costs!AO$617))-SUMPRODUCT(('Fixed assets'!$S$2:$S$1000)*('Fixed assets'!$P$2:$P$1000<Costs!$A667)*('Fixed assets'!$Q$2:$Q$1000=Costs!AO$617))-SUMPRODUCT(('Fixed assets'!$Q$2:$Q$1000=Costs!AO$617)*('Fixed assets'!$U$2:$U$1000=Costs!$A667)*('Fixed assets'!$S$2:$S$1000))+SUMPRODUCT(('Fixed assets'!$Q$2:$Q$1000=Costs!AO$617)*('Fixed assets'!$P$2:$P$1000=Costs!$A667)*('Fixed assets'!$U$2:$U$1000=Costs!$A667)*('Fixed assets'!$R$2:$R$1000))","v":0},{"$f":"SUMPRODUCT(('Fixed assets'!$R$2:$R$1000)*('Fixed assets'!$P$2:$P$1000<$A667)*('Fixed assets'!$Q$2:$Q$1000=Costs!AP$617))-SUMPRODUCT(('Fixed assets'!$S$2:$S$1000)*('Fixed assets'!$P$2:$P$1000<Costs!$A667)*('Fixed assets'!$Q$2:$Q$1000=Costs!AP$617))-SUMPRODUCT(('Fixed assets'!$Q$2:$Q$1000=Costs!AP$617)*('Fixed assets'!$U$2:$U$1000=Costs!$A667)*('Fixed assets'!$S$2:$S$1000))+SUMPRODUCT(('Fixed assets'!$Q$2:$Q$1000=Costs!AP$617)*('Fixed assets'!$P$2:$P$1000=Costs!$A667)*('Fixed assets'!$U$2:$U$1000=Costs!$A667)*('Fixed assets'!$R$2:$R$1000))","v":0},{"$f":"SUMPRODUCT(('Fixed assets'!$R$2:$R$1000)*('Fixed assets'!$P$2:$P$1000<$A667)*('Fixed assets'!$Q$2:$Q$1000=Costs!AQ$617))-SUMPRODUCT(('Fixed assets'!$S$2:$S$1000)*('Fixed assets'!$P$2:$P$1000<Costs!$A667)*('Fixed assets'!$Q$2:$Q$1000=Costs!AQ$617))-SUMPRODUCT(('Fixed assets'!$Q$2:$Q$1000=Costs!AQ$617)*('Fixed assets'!$U$2:$U$1000=Costs!$A667)*('Fixed assets'!$S$2:$S$1000))+SUMPRODUCT(('Fixed assets'!$Q$2:$Q$1000=Costs!AQ$617)*('Fixed assets'!$P$2:$P$1000=Costs!$A667)*('Fixed assets'!$U$2:$U$1000=Costs!$A667)*('Fixed assets'!$R$2:$R$1000))","v":0}]
[2065,0,{"$f":"SUMPRODUCT(('Fixed assets'!$R$2:$R$1000)*('Fixed assets'!$P$2:$P$1000<$A668)*('Fixed assets'!$Q$2:$Q$1000=Costs!C$617))-SUMPRODUCT(('Fixed assets'!$S$2:$S$1000)*('Fixed assets'!$P$2:$P$1000<Costs!$A668)*('Fixed assets'!$Q$2:$Q$1000=Costs!C$617))-SUMPRODUCT(('Fixed assets'!$Q$2:$Q$1000=Costs!C$617)*('Fixed assets'!$U$2:$U$1000=Costs!$A668)*('Fixed assets'!$S$2:$S$1000))+SUMPRODUCT(('Fixed assets'!$Q$2:$Q$1000=Costs!C$617)*('Fixed assets'!$P$2:$P$1000=Costs!$A668)*('Fixed assets'!$U$2:$U$1000=Costs!$A668)*('Fixed assets'!$R$2:$R$1000))","v":0},{"$f":"SUMPRODUCT(('Fixed assets'!$R$2:$R$1000)*('Fixed assets'!$P$2:$P$1000<$A668)*('Fixed assets'!$Q$2:$Q$1000=Costs!D$617))-SUMPRODUCT(('Fixed assets'!$S$2:$S$1000)*('Fixed assets'!$P$2:$P$1000<Costs!$A668)*('Fixed assets'!$Q$2:$Q$1000=Costs!D$617))-SUMPRODUCT(('Fixed assets'!$Q$2:$Q$1000=Costs!D$617)*('Fixed assets'!$U$2:$U$1000=Costs!$A668)*('Fixed assets'!$S$2:$S$1000))+SUMPRODUCT(('Fixed assets'!$Q$2:$Q$1000=Costs!D$617)*('Fixed assets'!$P$2:$P$1000=Costs!$A668)*('Fixed assets'!$U$2:$U$1000=Costs!$A668)*('Fixed assets'!$R$2:$R$1000))","v":0},{"$f":"SUMPRODUCT(('Fixed assets'!$R$2:$R$1000)*('Fixed assets'!$P$2:$P$1000<$A668)*('Fixed assets'!$Q$2:$Q$1000=Costs!E$617))-SUMPRODUCT(('Fixed assets'!$S$2:$S$1000)*('Fixed assets'!$P$2:$P$1000<Costs!$A668)*('Fixed assets'!$Q$2:$Q$1000=Costs!E$617))-SUMPRODUCT(('Fixed assets'!$Q$2:$Q$1000=Costs!E$617)*('Fixed assets'!$U$2:$U$1000=Costs!$A668)*('Fixed assets'!$S$2:$S$1000))+SUMPRODUCT(('Fixed assets'!$Q$2:$Q$1000=Costs!E$617)*('Fixed assets'!$P$2:$P$1000=Costs!$A668)*('Fixed assets'!$U$2:$U$1000=Costs!$A668)*('Fixed assets'!$R$2:$R$1000))","v":0},{"$f":"SUMPRODUCT(('Fixed assets'!$R$2:$R$1000)*('Fixed assets'!$P$2:$P$1000<$A668)*('Fixed assets'!$Q$2:$Q$1000=Costs!F$617))-SUMPRODUCT(('Fixed assets'!$S$2:$S$1000)*('Fixed assets'!$P$2:$P$1000<Costs!$A668)*('Fixed assets'!$Q$2:$Q$1000=Costs!F$617))-SUMPRODUCT(('Fixed assets'!$Q$2:$Q$1000=Costs!F$617)*('Fixed assets'!$U$2:$U$1000=Costs!$A668)*('Fixed assets'!$S$2:$S$1000))+SUMPRODUCT(('Fixed assets'!$Q$2:$Q$1000=Costs!F$617)*('Fixed assets'!$P$2:$P$1000=Costs!$A668)*('Fixed assets'!$U$2:$U$1000=Costs!$A668)*('Fixed assets'!$R$2:$R$1000))","v":0},{"$f":"SUMPRODUCT(('Fixed assets'!$R$2:$R$1000)*('Fixed assets'!$P$2:$P$1000<$A668)*('Fixed assets'!$Q$2:$Q$1000=Costs!G$617))-SUMPRODUCT(('Fixed assets'!$S$2:$S$1000)*('Fixed assets'!$P$2:$P$1000<Costs!$A668)*('Fixed assets'!$Q$2:$Q$1000=Costs!G$617))-SUMPRODUCT(('Fixed assets'!$Q$2:$Q$1000=Costs!G$617)*('Fixed assets'!$U$2:$U$1000=Costs!$A668)*('Fixed assets'!$S$2:$S$1000))+SUMPRODUCT(('Fixed assets'!$Q$2:$Q$1000=Costs!G$617)*('Fixed assets'!$P$2:$P$1000=Costs!$A668)*('Fixed assets'!$U$2:$U$1000=Costs!$A668)*('Fixed assets'!$R$2:$R$1000))","v":0},{"$f":"SUMPRODUCT(('Fixed assets'!$R$2:$R$1000)*('Fixed assets'!$P$2:$P$1000<$A668)*('Fixed assets'!$Q$2:$Q$1000=Costs!H$617))-SUMPRODUCT(('Fixed assets'!$S$2:$S$1000)*('Fixed assets'!$P$2:$P$1000<Costs!$A668)*('Fixed assets'!$Q$2:$Q$1000=Costs!H$617))-SUMPRODUCT(('Fixed assets'!$Q$2:$Q$1000=Costs!H$617)*('Fixed assets'!$U$2:$U$1000=Costs!$A668)*('Fixed assets'!$S$2:$S$1000))+SUMPRODUCT(('Fixed assets'!$Q$2:$Q$1000=Costs!H$617)*('Fixed assets'!$P$2:$P$1000=Costs!$A668)*('Fixed assets'!$U$2:$U$1000=Costs!$A668)*('Fixed assets'!$R$2:$R$1000))","v":0},{"$f":"SUMPRODUCT(('Fixed assets'!$R$2:$R$1000)*('Fixed assets'!$P$2:$P$1000<$A668)*('Fixed assets'!$Q$2:$Q$1000=Costs!I$617))-SUMPRODUCT(('Fixed assets'!$S$2:$S$1000)*('Fixed assets'!$P$2:$P$1000<Costs!$A668)*('Fixed assets'!$Q$2:$Q$1000=Costs!I$617))-SUMPRODUCT(('Fixed assets'!$Q$2:$Q$1000=Costs!I$617)*('Fixed assets'!$U$2:$U$1000=Costs!$A668)*('Fixed assets'!$S$2:$S$1000))+SUMPRODUCT(('Fixed assets'!$Q$2:$Q$1000=Costs!I$617)*('Fixed assets'!$P$2:$P$1000=Costs!$A668)*('Fixed assets'!$U$2:$U$1000=Costs!$A668)*('Fixed assets'!$R$2:$R$1000))","v":0},{"$f":"SUMPRODUCT(('Fixed assets'!$R$2:$R$1000)*('Fixed assets'!$P$2:$P$1000<$A668)*('Fixed assets'!$Q$2:$Q$1000=Costs!J$617))-SUMPRODUCT(('Fixed assets'!$S$2:$S$1000)*('Fixed assets'!$P$2:$P$1000<Costs!$A668)*('Fixed assets'!$Q$2:$Q$1000=Costs!J$617))-SUMPRODUCT(('Fixed assets'!$Q$2:$Q$1000=Costs!J$617)*('Fixed assets'!$U$2:$U$1000=Costs!$A668)*('Fixed assets'!$S$2:$S$1000))+SUMPRODUCT(('Fixed assets'!$Q$2:$Q$1000=Costs!J$617)*('Fixed assets'!$P$2:$P$1000=Costs!$A668)*('Fixed assets'!$U$2:$U$1000=Costs!$A668)*('Fixed assets'!$R$2:$R$1000))","v":0},{"$f":"SUMPRODUCT(('Fixed assets'!$R$2:$R$1000)*('Fixed assets'!$P$2:$P$1000<$A668)*('Fixed assets'!$Q$2:$Q$1000=Costs!K$617))-SUMPRODUCT(('Fixed assets'!$S$2:$S$1000)*('Fixed assets'!$P$2:$P$1000<Costs!$A668)*('Fixed assets'!$Q$2:$Q$1000=Costs!K$617))-SUMPRODUCT(('Fixed assets'!$Q$2:$Q$1000=Costs!K$617)*('Fixed assets'!$U$2:$U$1000=Costs!$A668)*('Fixed assets'!$S$2:$S$1000))+SUMPRODUCT(('Fixed assets'!$Q$2:$Q$1000=Costs!K$617)*('Fixed assets'!$P$2:$P$1000=Costs!$A668)*('Fixed assets'!$U$2:$U$1000=Costs!$A668)*('Fixed assets'!$R$2:$R$1000))","v":0},{"$f":"SUMPRODUCT(('Fixed assets'!$R$2:$R$1000)*('Fixed assets'!$P$2:$P$1000<$A668)*('Fixed assets'!$Q$2:$Q$1000=Costs!L$617))-SUMPRODUCT(('Fixed assets'!$S$2:$S$1000)*('Fixed assets'!$P$2:$P$1000<Costs!$A668)*('Fixed assets'!$Q$2:$Q$1000=Costs!L$617))-SUMPRODUCT(('Fixed assets'!$Q$2:$Q$1000=Costs!L$617)*('Fixed assets'!$U$2:$U$1000=Costs!$A668)*('Fixed assets'!$S$2:$S$1000))+SUMPRODUCT(('Fixed assets'!$Q$2:$Q$1000=Costs!L$617)*('Fixed assets'!$P$2:$P$1000=Costs!$A668)*('Fixed assets'!$U$2:$U$1000=Costs!$A668)*('Fixed assets'!$R$2:$R$1000))","v":0},{"$f":"SUMPRODUCT(('Fixed assets'!$R$2:$R$1000)*('Fixed assets'!$P$2:$P$1000<$A668)*('Fixed assets'!$Q$2:$Q$1000=Costs!M$617))-SUMPRODUCT(('Fixed assets'!$S$2:$S$1000)*('Fixed assets'!$P$2:$P$1000<Costs!$A668)*('Fixed assets'!$Q$2:$Q$1000=Costs!M$617))-SUMPRODUCT(('Fixed assets'!$Q$2:$Q$1000=Costs!M$617)*('Fixed assets'!$U$2:$U$1000=Costs!$A668)*('Fixed assets'!$S$2:$S$1000))+SUMPRODUCT(('Fixed assets'!$Q$2:$Q$1000=Costs!M$617)*('Fixed assets'!$P$2:$P$1000=Costs!$A668)*('Fixed assets'!$U$2:$U$1000=Costs!$A668)*('Fixed assets'!$R$2:$R$1000))","v":0},{"$f":"SUMPRODUCT(('Fixed assets'!$R$2:$R$1000)*('Fixed assets'!$P$2:$P$1000<$A668)*('Fixed assets'!$Q$2:$Q$1000=Costs!N$617))-SUMPRODUCT(('Fixed assets'!$S$2:$S$1000)*('Fixed assets'!$P$2:$P$1000<Costs!$A668)*('Fixed assets'!$Q$2:$Q$1000=Costs!N$617))-SUMPRODUCT(('Fixed assets'!$Q$2:$Q$1000=Costs!N$617)*('Fixed assets'!$U$2:$U$1000=Costs!$A668)*('Fixed assets'!$S$2:$S$1000))+SUMPRODUCT(('Fixed assets'!$Q$2:$Q$1000=Costs!N$617)*('Fixed assets'!$P$2:$P$1000=Costs!$A668)*('Fixed assets'!$U$2:$U$1000=Costs!$A668)*('Fixed assets'!$R$2:$R$1000))","v":0},{"$f":"SUMPRODUCT(('Fixed assets'!$R$2:$R$1000)*('Fixed assets'!$P$2:$P$1000<$A668)*('Fixed assets'!$Q$2:$Q$1000=Costs!O$617))-SUMPRODUCT(('Fixed assets'!$S$2:$S$1000)*('Fixed assets'!$P$2:$P$1000<Costs!$A668)*('Fixed assets'!$Q$2:$Q$1000=Costs!O$617))-SUMPRODUCT(('Fixed assets'!$Q$2:$Q$1000=Costs!O$617)*('Fixed assets'!$U$2:$U$1000=Costs!$A668)*('Fixed assets'!$S$2:$S$1000))+SUMPRODUCT(('Fixed assets'!$Q$2:$Q$1000=Costs!O$617)*('Fixed assets'!$P$2:$P$1000=Costs!$A668)*('Fixed assets'!$U$2:$U$1000=Costs!$A668)*('Fixed assets'!$R$2:$R$1000))","v":0},{"$f":"SUMPRODUCT(('Fixed assets'!$R$2:$R$1000)*('Fixed assets'!$P$2:$P$1000<$A668)*('Fixed assets'!$Q$2:$Q$1000=Costs!P$617))-SUMPRODUCT(('Fixed assets'!$S$2:$S$1000)*('Fixed assets'!$P$2:$P$1000<Costs!$A668)*('Fixed assets'!$Q$2:$Q$1000=Costs!P$617))-SUMPRODUCT(('Fixed assets'!$Q$2:$Q$1000=Costs!P$617)*('Fixed assets'!$U$2:$U$1000=Costs!$A668)*('Fixed assets'!$S$2:$S$1000))+SUMPRODUCT(('Fixed assets'!$Q$2:$Q$1000=Costs!P$617)*('Fixed assets'!$P$2:$P$1000=Costs!$A668)*('Fixed assets'!$U$2:$U$1000=Costs!$A668)*('Fixed assets'!$R$2:$R$1000))","v":0},{"$f":"SUMPRODUCT(('Fixed assets'!$R$2:$R$1000)*('Fixed assets'!$P$2:$P$1000<$A668)*('Fixed assets'!$Q$2:$Q$1000=Costs!Q$617))-SUMPRODUCT(('Fixed assets'!$S$2:$S$1000)*('Fixed assets'!$P$2:$P$1000<Costs!$A668)*('Fixed assets'!$Q$2:$Q$1000=Costs!Q$617))-SUMPRODUCT(('Fixed assets'!$Q$2:$Q$1000=Costs!Q$617)*('Fixed assets'!$U$2:$U$1000=Costs!$A668)*('Fixed assets'!$S$2:$S$1000))+SUMPRODUCT(('Fixed assets'!$Q$2:$Q$1000=Costs!Q$617)*('Fixed assets'!$P$2:$P$1000=Costs!$A668)*('Fixed assets'!$U$2:$U$1000=Costs!$A668)*('Fixed assets'!$R$2:$R$1000))","v":0},{"$f":"SUMPRODUCT(('Fixed assets'!$R$2:$R$1000)*('Fixed assets'!$P$2:$P$1000<$A668)*('Fixed assets'!$Q$2:$Q$1000=Costs!R$617))-SUMPRODUCT(('Fixed assets'!$S$2:$S$1000)*('Fixed assets'!$P$2:$P$1000<Costs!$A668)*('Fixed assets'!$Q$2:$Q$1000=Costs!R$617))-SUMPRODUCT(('Fixed assets'!$Q$2:$Q$1000=Costs!R$617)*('Fixed assets'!$U$2:$U$1000=Costs!$A668)*('Fixed assets'!$S$2:$S$1000))+SUMPRODUCT(('Fixed assets'!$Q$2:$Q$1000=Costs!R$617)*('Fixed assets'!$P$2:$P$1000=Costs!$A668)*('Fixed assets'!$U$2:$U$1000=Costs!$A668)*('Fixed assets'!$R$2:$R$1000))","v":0},{"$f":"SUMPRODUCT(('Fixed assets'!$R$2:$R$1000)*('Fixed assets'!$P$2:$P$1000<$A668)*('Fixed assets'!$Q$2:$Q$1000=Costs!S$617))-SUMPRODUCT(('Fixed assets'!$S$2:$S$1000)*('Fixed assets'!$P$2:$P$1000<Costs!$A668)*('Fixed assets'!$Q$2:$Q$1000=Costs!S$617))-SUMPRODUCT(('Fixed assets'!$Q$2:$Q$1000=Costs!S$617)*('Fixed assets'!$U$2:$U$1000=Costs!$A668)*('Fixed assets'!$S$2:$S$1000))+SUMPRODUCT(('Fixed assets'!$Q$2:$Q$1000=Costs!S$617)*('Fixed assets'!$P$2:$P$1000=Costs!$A668)*('Fixed assets'!$U$2:$U$1000=Costs!$A668)*('Fixed assets'!$R$2:$R$1000))","v":0},{"$f":"SUMPRODUCT(('Fixed assets'!$R$2:$R$1000)*('Fixed assets'!$P$2:$P$1000<$A668)*('Fixed assets'!$Q$2:$Q$1000=Costs!T$617))-SUMPRODUCT(('Fixed assets'!$S$2:$S$1000)*('Fixed assets'!$P$2:$P$1000<Costs!$A668)*('Fixed assets'!$Q$2:$Q$1000=Costs!T$617))-SUMPRODUCT(('Fixed assets'!$Q$2:$Q$1000=Costs!T$617)*('Fixed assets'!$U$2:$U$1000=Costs!$A668)*('Fixed assets'!$S$2:$S$1000))+SUMPRODUCT(('Fixed assets'!$Q$2:$Q$1000=Costs!T$617)*('Fixed assets'!$P$2:$P$1000=Costs!$A668)*('Fixed assets'!$U$2:$U$1000=Costs!$A668)*('Fixed assets'!$R$2:$R$1000))","v":0},{"$f":"SUMPRODUCT(('Fixed assets'!$R$2:$R$1000)*('Fixed assets'!$P$2:$P$1000<$A668)*('Fixed assets'!$Q$2:$Q$1000=Costs!U$617))-SUMPRODUCT(('Fixed assets'!$S$2:$S$1000)*('Fixed assets'!$P$2:$P$1000<Costs!$A668)*('Fixed assets'!$Q$2:$Q$1000=Costs!U$617))-SUMPRODUCT(('Fixed assets'!$Q$2:$Q$1000=Costs!U$617)*('Fixed assets'!$U$2:$U$1000=Costs!$A668)*('Fixed assets'!$S$2:$S$1000))+SUMPRODUCT(('Fixed assets'!$Q$2:$Q$1000=Costs!U$617)*('Fixed assets'!$P$2:$P$1000=Costs!$A668)*('Fixed assets'!$U$2:$U$1000=Costs!$A668)*('Fixed assets'!$R$2:$R$1000))","v":0},{"$f":"SUMPRODUCT(('Fixed assets'!$R$2:$R$1000)*('Fixed assets'!$P$2:$P$1000<$A668)*('Fixed assets'!$Q$2:$Q$1000=Costs!V$617))-SUMPRODUCT(('Fixed assets'!$S$2:$S$1000)*('Fixed assets'!$P$2:$P$1000<Costs!$A668)*('Fixed assets'!$Q$2:$Q$1000=Costs!V$617))-SUMPRODUCT(('Fixed assets'!$Q$2:$Q$1000=Costs!V$617)*('Fixed assets'!$U$2:$U$1000=Costs!$A668)*('Fixed assets'!$S$2:$S$1000))+SUMPRODUCT(('Fixed assets'!$Q$2:$Q$1000=Costs!V$617)*('Fixed assets'!$P$2:$P$1000=Costs!$A668)*('Fixed assets'!$U$2:$U$1000=Costs!$A668)*('Fixed assets'!$R$2:$R$1000))","v":0},{"$f":"SUMPRODUCT(('Fixed assets'!$R$2:$R$1000)*('Fixed assets'!$P$2:$P$1000<$A668)*('Fixed assets'!$Q$2:$Q$1000=Costs!W$617))-SUMPRODUCT(('Fixed assets'!$S$2:$S$1000)*('Fixed assets'!$P$2:$P$1000<Costs!$A668)*('Fixed assets'!$Q$2:$Q$1000=Costs!W$617))-SUMPRODUCT(('Fixed assets'!$Q$2:$Q$1000=Costs!W$617)*('Fixed assets'!$U$2:$U$1000=Costs!$A668)*('Fixed assets'!$S$2:$S$1000))+SUMPRODUCT(('Fixed assets'!$Q$2:$Q$1000=Costs!W$617)*('Fixed assets'!$P$2:$P$1000=Costs!$A668)*('Fixed assets'!$U$2:$U$1000=Costs!$A668)*('Fixed assets'!$R$2:$R$1000))","v":0},{"$f":"SUMPRODUCT(('Fixed assets'!$R$2:$R$1000)*('Fixed assets'!$P$2:$P$1000<$A668)*('Fixed assets'!$Q$2:$Q$1000=Costs!X$617))-SUMPRODUCT(('Fixed assets'!$S$2:$S$1000)*('Fixed assets'!$P$2:$P$1000<Costs!$A668)*('Fixed assets'!$Q$2:$Q$1000=Costs!X$617))-SUMPRODUCT(('Fixed assets'!$Q$2:$Q$1000=Costs!X$617)*('Fixed assets'!$U$2:$U$1000=Costs!$A668)*('Fixed assets'!$S$2:$S$1000))+SUMPRODUCT(('Fixed assets'!$Q$2:$Q$1000=Costs!X$617)*('Fixed assets'!$P$2:$P$1000=Costs!$A668)*('Fixed assets'!$U$2:$U$1000=Costs!$A668)*('Fixed assets'!$R$2:$R$1000))","v":0},{"$f":"SUMPRODUCT(('Fixed assets'!$R$2:$R$1000)*('Fixed assets'!$P$2:$P$1000<$A668)*('Fixed assets'!$Q$2:$Q$1000=Costs!Y$617))-SUMPRODUCT(('Fixed assets'!$S$2:$S$1000)*('Fixed assets'!$P$2:$P$1000<Costs!$A668)*('Fixed assets'!$Q$2:$Q$1000=Costs!Y$617))-SUMPRODUCT(('Fixed assets'!$Q$2:$Q$1000=Costs!Y$617)*('Fixed assets'!$U$2:$U$1000=Costs!$A668)*('Fixed assets'!$S$2:$S$1000))+SUMPRODUCT(('Fixed assets'!$Q$2:$Q$1000=Costs!Y$617)*('Fixed assets'!$P$2:$P$1000=Costs!$A668)*('Fixed assets'!$U$2:$U$1000=Costs!$A668)*('Fixed assets'!$R$2:$R$1000))","v":0},{"$f":"SUMPRODUCT(('Fixed assets'!$R$2:$R$1000)*('Fixed assets'!$P$2:$P$1000<$A668)*('Fixed assets'!$Q$2:$Q$1000=Costs!Z$617))-SUMPRODUCT(('Fixed assets'!$S$2:$S$1000)*('Fixed assets'!$P$2:$P$1000<Costs!$A668)*('Fixed assets'!$Q$2:$Q$1000=Costs!Z$617))-SUMPRODUCT(('Fixed assets'!$Q$2:$Q$1000=Costs!Z$617)*('Fixed assets'!$U$2:$U$1000=Costs!$A668)*('Fixed assets'!$S$2:$S$1000))+SUMPRODUCT(('Fixed assets'!$Q$2:$Q$1000=Costs!Z$617)*('Fixed assets'!$P$2:$P$1000=Costs!$A668)*('Fixed assets'!$U$2:$U$1000=Costs!$A668)*('Fixed assets'!$R$2:$R$1000))","v":0},{"$f":"SUMPRODUCT(('Fixed assets'!$R$2:$R$1000)*('Fixed assets'!$P$2:$P$1000<$A668)*('Fixed assets'!$Q$2:$Q$1000=Costs!AA$617))-SUMPRODUCT(('Fixed assets'!$S$2:$S$1000)*('Fixed assets'!$P$2:$P$1000<Costs!$A668)*('Fixed assets'!$Q$2:$Q$1000=Costs!AA$617))-SUMPRODUCT(('Fixed assets'!$Q$2:$Q$1000=Costs!AA$617)*('Fixed assets'!$U$2:$U$1000=Costs!$A668)*('Fixed assets'!$S$2:$S$1000))+SUMPRODUCT(('Fixed assets'!$Q$2:$Q$1000=Costs!AA$617)*('Fixed assets'!$P$2:$P$1000=Costs!$A668)*('Fixed assets'!$U$2:$U$1000=Costs!$A668)*('Fixed assets'!$R$2:$R$1000))","v":0},{"$f":"SUMPRODUCT(('Fixed assets'!$R$2:$R$1000)*('Fixed assets'!$P$2:$P$1000<$A668)*('Fixed assets'!$Q$2:$Q$1000=Costs!AB$617))-SUMPRODUCT(('Fixed assets'!$S$2:$S$1000)*('Fixed assets'!$P$2:$P$1000<Costs!$A668)*('Fixed assets'!$Q$2:$Q$1000=Costs!AB$617))-SUMPRODUCT(('Fixed assets'!$Q$2:$Q$1000=Costs!AB$617)*('Fixed assets'!$U$2:$U$1000=Costs!$A668)*('Fixed assets'!$S$2:$S$1000))+SUMPRODUCT(('Fixed assets'!$Q$2:$Q$1000=Costs!AB$617)*('Fixed assets'!$P$2:$P$1000=Costs!$A668)*('Fixed assets'!$U$2:$U$1000=Costs!$A668)*('Fixed assets'!$R$2:$R$1000))","v":0},{"$f":"SUMPRODUCT(('Fixed assets'!$R$2:$R$1000)*('Fixed assets'!$P$2:$P$1000<$A668)*('Fixed assets'!$Q$2:$Q$1000=Costs!AC$617))-SUMPRODUCT(('Fixed assets'!$S$2:$S$1000)*('Fixed assets'!$P$2:$P$1000<Costs!$A668)*('Fixed assets'!$Q$2:$Q$1000=Costs!AC$617))-SUMPRODUCT(('Fixed assets'!$Q$2:$Q$1000=Costs!AC$617)*('Fixed assets'!$U$2:$U$1000=Costs!$A668)*('Fixed assets'!$S$2:$S$1000))+SUMPRODUCT(('Fixed assets'!$Q$2:$Q$1000=Costs!AC$617)*('Fixed assets'!$P$2:$P$1000=Costs!$A668)*('Fixed assets'!$U$2:$U$1000=Costs!$A668)*('Fixed assets'!$R$2:$R$1000))","v":0},{"$f":"SUMPRODUCT(('Fixed assets'!$R$2:$R$1000)*('Fixed assets'!$P$2:$P$1000<$A668)*('Fixed assets'!$Q$2:$Q$1000=Costs!AD$617))-SUMPRODUCT(('Fixed assets'!$S$2:$S$1000)*('Fixed assets'!$P$2:$P$1000<Costs!$A668)*('Fixed assets'!$Q$2:$Q$1000=Costs!AD$617))-SUMPRODUCT(('Fixed assets'!$Q$2:$Q$1000=Costs!AD$617)*('Fixed assets'!$U$2:$U$1000=Costs!$A668)*('Fixed assets'!$S$2:$S$1000))+SUMPRODUCT(('Fixed assets'!$Q$2:$Q$1000=Costs!AD$617)*('Fixed assets'!$P$2:$P$1000=Costs!$A668)*('Fixed assets'!$U$2:$U$1000=Costs!$A668)*('Fixed assets'!$R$2:$R$1000))","v":0},{"$f":"SUMPRODUCT(('Fixed assets'!$R$2:$R$1000)*('Fixed assets'!$P$2:$P$1000<$A668)*('Fixed assets'!$Q$2:$Q$1000=Costs!AE$617))-SUMPRODUCT(('Fixed assets'!$S$2:$S$1000)*('Fixed assets'!$P$2:$P$1000<Costs!$A668)*('Fixed assets'!$Q$2:$Q$1000=Costs!AE$617))-SUMPRODUCT(('Fixed assets'!$Q$2:$Q$1000=Costs!AE$617)*('Fixed assets'!$U$2:$U$1000=Costs!$A668)*('Fixed assets'!$S$2:$S$1000))+SUMPRODUCT(('Fixed assets'!$Q$2:$Q$1000=Costs!AE$617)*('Fixed assets'!$P$2:$P$1000=Costs!$A668)*('Fixed assets'!$U$2:$U$1000=Costs!$A668)*('Fixed assets'!$R$2:$R$1000))","v":0},{"$f":"SUMPRODUCT(('Fixed assets'!$R$2:$R$1000)*('Fixed assets'!$P$2:$P$1000<$A668)*('Fixed assets'!$Q$2:$Q$1000=Costs!AF$617))-SUMPRODUCT(('Fixed assets'!$S$2:$S$1000)*('Fixed assets'!$P$2:$P$1000<Costs!$A668)*('Fixed assets'!$Q$2:$Q$1000=Costs!AF$617))-SUMPRODUCT(('Fixed assets'!$Q$2:$Q$1000=Costs!AF$617)*('Fixed assets'!$U$2:$U$1000=Costs!$A668)*('Fixed assets'!$S$2:$S$1000))+SUMPRODUCT(('Fixed assets'!$Q$2:$Q$1000=Costs!AF$617)*('Fixed assets'!$P$2:$P$1000=Costs!$A668)*('Fixed assets'!$U$2:$U$1000=Costs!$A668)*('Fixed assets'!$R$2:$R$1000))","v":0},{"$f":"SUMPRODUCT(('Fixed assets'!$R$2:$R$1000)*('Fixed assets'!$P$2:$P$1000<$A668)*('Fixed assets'!$Q$2:$Q$1000=Costs!AG$617))-SUMPRODUCT(('Fixed assets'!$S$2:$S$1000)*('Fixed assets'!$P$2:$P$1000<Costs!$A668)*('Fixed assets'!$Q$2:$Q$1000=Costs!AG$617))-SUMPRODUCT(('Fixed assets'!$Q$2:$Q$1000=Costs!AG$617)*('Fixed assets'!$U$2:$U$1000=Costs!$A668)*('Fixed assets'!$S$2:$S$1000))+SUMPRODUCT(('Fixed assets'!$Q$2:$Q$1000=Costs!AG$617)*('Fixed assets'!$P$2:$P$1000=Costs!$A668)*('Fixed assets'!$U$2:$U$1000=Costs!$A668)*('Fixed assets'!$R$2:$R$1000))","v":0},{"$f":"SUMPRODUCT(('Fixed assets'!$R$2:$R$1000)*('Fixed assets'!$P$2:$P$1000<$A668)*('Fixed assets'!$Q$2:$Q$1000=Costs!AH$617))-SUMPRODUCT(('Fixed assets'!$S$2:$S$1000)*('Fixed assets'!$P$2:$P$1000<Costs!$A668)*('Fixed assets'!$Q$2:$Q$1000=Costs!AH$617))-SUMPRODUCT(('Fixed assets'!$Q$2:$Q$1000=Costs!AH$617)*('Fixed assets'!$U$2:$U$1000=Costs!$A668)*('Fixed assets'!$S$2:$S$1000))+SUMPRODUCT(('Fixed assets'!$Q$2:$Q$1000=Costs!AH$617)*('Fixed assets'!$P$2:$P$1000=Costs!$A668)*('Fixed assets'!$U$2:$U$1000=Costs!$A668)*('Fixed assets'!$R$2:$R$1000))","v":0},{"$f":"SUMPRODUCT(('Fixed assets'!$R$2:$R$1000)*('Fixed assets'!$P$2:$P$1000<$A668)*('Fixed assets'!$Q$2:$Q$1000=Costs!AI$617))-SUMPRODUCT(('Fixed assets'!$S$2:$S$1000)*('Fixed assets'!$P$2:$P$1000<Costs!$A668)*('Fixed assets'!$Q$2:$Q$1000=Costs!AI$617))-SUMPRODUCT(('Fixed assets'!$Q$2:$Q$1000=Costs!AI$617)*('Fixed assets'!$U$2:$U$1000=Costs!$A668)*('Fixed assets'!$S$2:$S$1000))+SUMPRODUCT(('Fixed assets'!$Q$2:$Q$1000=Costs!AI$617)*('Fixed assets'!$P$2:$P$1000=Costs!$A668)*('Fixed assets'!$U$2:$U$1000=Costs!$A668)*('Fixed assets'!$R$2:$R$1000))","v":0},{"$f":"SUMPRODUCT(('Fixed assets'!$R$2:$R$1000)*('Fixed assets'!$P$2:$P$1000<$A668)*('Fixed assets'!$Q$2:$Q$1000=Costs!AJ$617))-SUMPRODUCT(('Fixed assets'!$S$2:$S$1000)*('Fixed assets'!$P$2:$P$1000<Costs!$A668)*('Fixed assets'!$Q$2:$Q$1000=Costs!AJ$617))-SUMPRODUCT(('Fixed assets'!$Q$2:$Q$1000=Costs!AJ$617)*('Fixed assets'!$U$2:$U$1000=Costs!$A668)*('Fixed assets'!$S$2:$S$1000))+SUMPRODUCT(('Fixed assets'!$Q$2:$Q$1000=Costs!AJ$617)*('Fixed assets'!$P$2:$P$1000=Costs!$A668)*('Fixed assets'!$U$2:$U$1000=Costs!$A668)*('Fixed assets'!$R$2:$R$1000))","v":0},{"$f":"SUMPRODUCT(('Fixed assets'!$R$2:$R$1000)*('Fixed assets'!$P$2:$P$1000<$A668)*('Fixed assets'!$Q$2:$Q$1000=Costs!AK$617))-SUMPRODUCT(('Fixed assets'!$S$2:$S$1000)*('Fixed assets'!$P$2:$P$1000<Costs!$A668)*('Fixed assets'!$Q$2:$Q$1000=Costs!AK$617))-SUMPRODUCT(('Fixed assets'!$Q$2:$Q$1000=Costs!AK$617)*('Fixed assets'!$U$2:$U$1000=Costs!$A668)*('Fixed assets'!$S$2:$S$1000))+SUMPRODUCT(('Fixed assets'!$Q$2:$Q$1000=Costs!AK$617)*('Fixed assets'!$P$2:$P$1000=Costs!$A668)*('Fixed assets'!$U$2:$U$1000=Costs!$A668)*('Fixed assets'!$R$2:$R$1000))","v":0},{"$f":"SUMPRODUCT(('Fixed assets'!$R$2:$R$1000)*('Fixed assets'!$P$2:$P$1000<$A668)*('Fixed assets'!$Q$2:$Q$1000=Costs!AL$617))-SUMPRODUCT(('Fixed assets'!$S$2:$S$1000)*('Fixed assets'!$P$2:$P$1000<Costs!$A668)*('Fixed assets'!$Q$2:$Q$1000=Costs!AL$617))-SUMPRODUCT(('Fixed assets'!$Q$2:$Q$1000=Costs!AL$617)*('Fixed assets'!$U$2:$U$1000=Costs!$A668)*('Fixed assets'!$S$2:$S$1000))+SUMPRODUCT(('Fixed assets'!$Q$2:$Q$1000=Costs!AL$617)*('Fixed assets'!$P$2:$P$1000=Costs!$A668)*('Fixed assets'!$U$2:$U$1000=Costs!$A668)*('Fixed assets'!$R$2:$R$1000))","v":0},{"$f":"SUMPRODUCT(('Fixed assets'!$R$2:$R$1000)*('Fixed assets'!$P$2:$P$1000<$A668)*('Fixed assets'!$Q$2:$Q$1000=Costs!AM$617))-SUMPRODUCT(('Fixed assets'!$S$2:$S$1000)*('Fixed assets'!$P$2:$P$1000<Costs!$A668)*('Fixed assets'!$Q$2:$Q$1000=Costs!AM$617))-SUMPRODUCT(('Fixed assets'!$Q$2:$Q$1000=Costs!AM$617)*('Fixed assets'!$U$2:$U$1000=Costs!$A668)*('Fixed assets'!$S$2:$S$1000))+SUMPRODUCT(('Fixed assets'!$Q$2:$Q$1000=Costs!AM$617)*('Fixed assets'!$P$2:$P$1000=Costs!$A668)*('Fixed assets'!$U$2:$U$1000=Costs!$A668)*('Fixed assets'!$R$2:$R$1000))","v":0},{"$f":"SUMPRODUCT(('Fixed assets'!$R$2:$R$1000)*('Fixed assets'!$P$2:$P$1000<$A668)*('Fixed assets'!$Q$2:$Q$1000=Costs!AN$617))-SUMPRODUCT(('Fixed assets'!$S$2:$S$1000)*('Fixed assets'!$P$2:$P$1000<Costs!$A668)*('Fixed assets'!$Q$2:$Q$1000=Costs!AN$617))-SUMPRODUCT(('Fixed assets'!$Q$2:$Q$1000=Costs!AN$617)*('Fixed assets'!$U$2:$U$1000=Costs!$A668)*('Fixed assets'!$S$2:$S$1000))+SUMPRODUCT(('Fixed assets'!$Q$2:$Q$1000=Costs!AN$617)*('Fixed assets'!$P$2:$P$1000=Costs!$A668)*('Fixed assets'!$U$2:$U$1000=Costs!$A668)*('Fixed assets'!$R$2:$R$1000))","v":0},{"$f":"SUMPRODUCT(('Fixed assets'!$R$2:$R$1000)*('Fixed assets'!$P$2:$P$1000<$A668)*('Fixed assets'!$Q$2:$Q$1000=Costs!AO$617))-SUMPRODUCT(('Fixed assets'!$S$2:$S$1000)*('Fixed assets'!$P$2:$P$1000<Costs!$A668)*('Fixed assets'!$Q$2:$Q$1000=Costs!AO$617))-SUMPRODUCT(('Fixed assets'!$Q$2:$Q$1000=Costs!AO$617)*('Fixed assets'!$U$2:$U$1000=Costs!$A668)*('Fixed assets'!$S$2:$S$1000))+SUMPRODUCT(('Fixed assets'!$Q$2:$Q$1000=Costs!AO$617)*('Fixed assets'!$P$2:$P$1000=Costs!$A668)*('Fixed assets'!$U$2:$U$1000=Costs!$A668)*('Fixed assets'!$R$2:$R$1000))","v":0},{"$f":"SUMPRODUCT(('Fixed assets'!$R$2:$R$1000)*('Fixed assets'!$P$2:$P$1000<$A668)*('Fixed assets'!$Q$2:$Q$1000=Costs!AP$617))-SUMPRODUCT(('Fixed assets'!$S$2:$S$1000)*('Fixed assets'!$P$2:$P$1000<Costs!$A668)*('Fixed assets'!$Q$2:$Q$1000=Costs!AP$617))-SUMPRODUCT(('Fixed assets'!$Q$2:$Q$1000=Costs!AP$617)*('Fixed assets'!$U$2:$U$1000=Costs!$A668)*('Fixed assets'!$S$2:$S$1000))+SUMPRODUCT(('Fixed assets'!$Q$2:$Q$1000=Costs!AP$617)*('Fixed assets'!$P$2:$P$1000=Costs!$A668)*('Fixed assets'!$U$2:$U$1000=Costs!$A668)*('Fixed assets'!$R$2:$R$1000))","v":0},{"$f":"SUMPRODUCT(('Fixed assets'!$R$2:$R$1000)*('Fixed assets'!$P$2:$P$1000<$A668)*('Fixed assets'!$Q$2:$Q$1000=Costs!AQ$617))-SUMPRODUCT(('Fixed assets'!$S$2:$S$1000)*('Fixed assets'!$P$2:$P$1000<Costs!$A668)*('Fixed assets'!$Q$2:$Q$1000=Costs!AQ$617))-SUMPRODUCT(('Fixed assets'!$Q$2:$Q$1000=Costs!AQ$617)*('Fixed assets'!$U$2:$U$1000=Costs!$A668)*('Fixed assets'!$S$2:$S$1000))+SUMPRODUCT(('Fixed assets'!$Q$2:$Q$1000=Costs!AQ$617)*('Fixed assets'!$P$2:$P$1000=Costs!$A668)*('Fixed assets'!$U$2:$U$1000=Costs!$A668)*('Fixed assets'!$R$2:$R$1000))","v":0}]
[2066,0,{"$f":"SUMPRODUCT(('Fixed assets'!$R$2:$R$1000)*('Fixed assets'!$P$2:$P$1000<$A669)*('Fixed assets'!$Q$2:$Q$1000=Costs!C$617))-SUMPRODUCT(('Fixed assets'!$S$2:$S$1000)*('Fixed assets'!$P$2:$P$1000<Costs!$A669)*('Fixed assets'!$Q$2:$Q$1000=Costs!C$617))-SUMPRODUCT(('Fixed assets'!$Q$2:$Q$1000=Costs!C$617)*('Fixed assets'!$U$2:$U$1000=Costs!$A669)*('Fixed assets'!$S$2:$S$1000))+SUMPRODUCT(('Fixed assets'!$Q$2:$Q$1000=Costs!C$617)*('Fixed assets'!$P$2:$P$1000=Costs!$A669)*('Fixed assets'!$U$2:$U$1000=Costs!$A669)*('Fixed assets'!$R$2:$R$1000))","v":0},{"$f":"SUMPRODUCT(('Fixed assets'!$R$2:$R$1000)*('Fixed assets'!$P$2:$P$1000<$A669)*('Fixed assets'!$Q$2:$Q$1000=Costs!D$617))-SUMPRODUCT(('Fixed assets'!$S$2:$S$1000)*('Fixed assets'!$P$2:$P$1000<Costs!$A669)*('Fixed assets'!$Q$2:$Q$1000=Costs!D$617))-SUMPRODUCT(('Fixed assets'!$Q$2:$Q$1000=Costs!D$617)*('Fixed assets'!$U$2:$U$1000=Costs!$A669)*('Fixed assets'!$S$2:$S$1000))+SUMPRODUCT(('Fixed assets'!$Q$2:$Q$1000=Costs!D$617)*('Fixed assets'!$P$2:$P$1000=Costs!$A669)*('Fixed assets'!$U$2:$U$1000=Costs!$A669)*('Fixed assets'!$R$2:$R$1000))","v":0},{"$f":"SUMPRODUCT(('Fixed assets'!$R$2:$R$1000)*('Fixed assets'!$P$2:$P$1000<$A669)*('Fixed assets'!$Q$2:$Q$1000=Costs!E$617))-SUMPRODUCT(('Fixed assets'!$S$2:$S$1000)*('Fixed assets'!$P$2:$P$1000<Costs!$A669)*('Fixed assets'!$Q$2:$Q$1000=Costs!E$617))-SUMPRODUCT(('Fixed assets'!$Q$2:$Q$1000=Costs!E$617)*('Fixed assets'!$U$2:$U$1000=Costs!$A669)*('Fixed assets'!$S$2:$S$1000))+SUMPRODUCT(('Fixed assets'!$Q$2:$Q$1000=Costs!E$617)*('Fixed assets'!$P$2:$P$1000=Costs!$A669)*('Fixed assets'!$U$2:$U$1000=Costs!$A669)*('Fixed assets'!$R$2:$R$1000))","v":0},{"$f":"SUMPRODUCT(('Fixed assets'!$R$2:$R$1000)*('Fixed assets'!$P$2:$P$1000<$A669)*('Fixed assets'!$Q$2:$Q$1000=Costs!F$617))-SUMPRODUCT(('Fixed assets'!$S$2:$S$1000)*('Fixed assets'!$P$2:$P$1000<Costs!$A669)*('Fixed assets'!$Q$2:$Q$1000=Costs!F$617))-SUMPRODUCT(('Fixed assets'!$Q$2:$Q$1000=Costs!F$617)*('Fixed assets'!$U$2:$U$1000=Costs!$A669)*('Fixed assets'!$S$2:$S$1000))+SUMPRODUCT(('Fixed assets'!$Q$2:$Q$1000=Costs!F$617)*('Fixed assets'!$P$2:$P$1000=Costs!$A669)*('Fixed assets'!$U$2:$U$1000=Costs!$A669)*('Fixed assets'!$R$2:$R$1000))","v":0},{"$f":"SUMPRODUCT(('Fixed assets'!$R$2:$R$1000)*('Fixed assets'!$P$2:$P$1000<$A669)*('Fixed assets'!$Q$2:$Q$1000=Costs!G$617))-SUMPRODUCT(('Fixed assets'!$S$2:$S$1000)*('Fixed assets'!$P$2:$P$1000<Costs!$A669)*('Fixed assets'!$Q$2:$Q$1000=Costs!G$617))-SUMPRODUCT(('Fixed assets'!$Q$2:$Q$1000=Costs!G$617)*('Fixed assets'!$U$2:$U$1000=Costs!$A669)*('Fixed assets'!$S$2:$S$1000))+SUMPRODUCT(('Fixed assets'!$Q$2:$Q$1000=Costs!G$617)*('Fixed assets'!$P$2:$P$1000=Costs!$A669)*('Fixed assets'!$U$2:$U$1000=Costs!$A669)*('Fixed assets'!$R$2:$R$1000))","v":0},{"$f":"SUMPRODUCT(('Fixed assets'!$R$2:$R$1000)*('Fixed assets'!$P$2:$P$1000<$A669)*('Fixed assets'!$Q$2:$Q$1000=Costs!H$617))-SUMPRODUCT(('Fixed assets'!$S$2:$S$1000)*('Fixed assets'!$P$2:$P$1000<Costs!$A669)*('Fixed assets'!$Q$2:$Q$1000=Costs!H$617))-SUMPRODUCT(('Fixed assets'!$Q$2:$Q$1000=Costs!H$617)*('Fixed assets'!$U$2:$U$1000=Costs!$A669)*('Fixed assets'!$S$2:$S$1000))+SUMPRODUCT(('Fixed assets'!$Q$2:$Q$1000=Costs!H$617)*('Fixed assets'!$P$2:$P$1000=Costs!$A669)*('Fixed assets'!$U$2:$U$1000=Costs!$A669)*('Fixed assets'!$R$2:$R$1000))","v":0},{"$f":"SUMPRODUCT(('Fixed assets'!$R$2:$R$1000)*('Fixed assets'!$P$2:$P$1000<$A669)*('Fixed assets'!$Q$2:$Q$1000=Costs!I$617))-SUMPRODUCT(('Fixed assets'!$S$2:$S$1000)*('Fixed assets'!$P$2:$P$1000<Costs!$A669)*('Fixed assets'!$Q$2:$Q$1000=Costs!I$617))-SUMPRODUCT(('Fixed assets'!$Q$2:$Q$1000=Costs!I$617)*('Fixed assets'!$U$2:$U$1000=Costs!$A669)*('Fixed assets'!$S$2:$S$1000))+SUMPRODUCT(('Fixed assets'!$Q$2:$Q$1000=Costs!I$617)*('Fixed assets'!$P$2:$P$1000=Costs!$A669)*('Fixed assets'!$U$2:$U$1000=Costs!$A669)*('Fixed assets'!$R$2:$R$1000))","v":0},{"$f":"SUMPRODUCT(('Fixed assets'!$R$2:$R$1000)*('Fixed assets'!$P$2:$P$1000<$A669)*('Fixed assets'!$Q$2:$Q$1000=Costs!J$617))-SUMPRODUCT(('Fixed assets'!$S$2:$S$1000)*('Fixed assets'!$P$2:$P$1000<Costs!$A669)*('Fixed assets'!$Q$2:$Q$1000=Costs!J$617))-SUMPRODUCT(('Fixed assets'!$Q$2:$Q$1000=Costs!J$617)*('Fixed assets'!$U$2:$U$1000=Costs!$A669)*('Fixed assets'!$S$2:$S$1000))+SUMPRODUCT(('Fixed assets'!$Q$2:$Q$1000=Costs!J$617)*('Fixed assets'!$P$2:$P$1000=Costs!$A669)*('Fixed assets'!$U$2:$U$1000=Costs!$A669)*('Fixed assets'!$R$2:$R$1000))","v":0},{"$f":"SUMPRODUCT(('Fixed assets'!$R$2:$R$1000)*('Fixed assets'!$P$2:$P$1000<$A669)*('Fixed assets'!$Q$2:$Q$1000=Costs!K$617))-SUMPRODUCT(('Fixed assets'!$S$2:$S$1000)*('Fixed assets'!$P$2:$P$1000<Costs!$A669)*('Fixed assets'!$Q$2:$Q$1000=Costs!K$617))-SUMPRODUCT(('Fixed assets'!$Q$2:$Q$1000=Costs!K$617)*('Fixed assets'!$U$2:$U$1000=Costs!$A669)*('Fixed assets'!$S$2:$S$1000))+SUMPRODUCT(('Fixed assets'!$Q$2:$Q$1000=Costs!K$617)*('Fixed assets'!$P$2:$P$1000=Costs!$A669)*('Fixed assets'!$U$2:$U$1000=Costs!$A669)*('Fixed assets'!$R$2:$R$1000))","v":0},{"$f":"SUMPRODUCT(('Fixed assets'!$R$2:$R$1000)*('Fixed assets'!$P$2:$P$1000<$A669)*('Fixed assets'!$Q$2:$Q$1000=Costs!L$617))-SUMPRODUCT(('Fixed assets'!$S$2:$S$1000)*('Fixed assets'!$P$2:$P$1000<Costs!$A669)*('Fixed assets'!$Q$2:$Q$1000=Costs!L$617))-SUMPRODUCT(('Fixed assets'!$Q$2:$Q$1000=Costs!L$617)*('Fixed assets'!$U$2:$U$1000=Costs!$A669)*('Fixed assets'!$S$2:$S$1000))+SUMPRODUCT(('Fixed assets'!$Q$2:$Q$1000=Costs!L$617)*('Fixed assets'!$P$2:$P$1000=Costs!$A669)*('Fixed assets'!$U$2:$U$1000=Costs!$A669)*('Fixed assets'!$R$2:$R$1000))","v":0},{"$f":"SUMPRODUCT(('Fixed assets'!$R$2:$R$1000)*('Fixed assets'!$P$2:$P$1000<$A669)*('Fixed assets'!$Q$2:$Q$1000=Costs!M$617))-SUMPRODUCT(('Fixed assets'!$S$2:$S$1000)*('Fixed assets'!$P$2:$P$1000<Costs!$A669)*('Fixed assets'!$Q$2:$Q$1000=Costs!M$617))-SUMPRODUCT(('Fixed assets'!$Q$2:$Q$1000=Costs!M$617)*('Fixed assets'!$U$2:$U$1000=Costs!$A669)*('Fixed assets'!$S$2:$S$1000))+SUMPRODUCT(('Fixed assets'!$Q$2:$Q$1000=Costs!M$617)*('Fixed assets'!$P$2:$P$1000=Costs!$A669)*('Fixed assets'!$U$2:$U$1000=Costs!$A669)*('Fixed assets'!$R$2:$R$1000))","v":0},{"$f":"SUMPRODUCT(('Fixed assets'!$R$2:$R$1000)*('Fixed assets'!$P$2:$P$1000<$A669)*('Fixed assets'!$Q$2:$Q$1000=Costs!N$617))-SUMPRODUCT(('Fixed assets'!$S$2:$S$1000)*('Fixed assets'!$P$2:$P$1000<Costs!$A669)*('Fixed assets'!$Q$2:$Q$1000=Costs!N$617))-SUMPRODUCT(('Fixed assets'!$Q$2:$Q$1000=Costs!N$617)*('Fixed assets'!$U$2:$U$1000=Costs!$A669)*('Fixed assets'!$S$2:$S$1000))+SUMPRODUCT(('Fixed assets'!$Q$2:$Q$1000=Costs!N$617)*('Fixed assets'!$P$2:$P$1000=Costs!$A669)*('Fixed assets'!$U$2:$U$1000=Costs!$A669)*('Fixed assets'!$R$2:$R$1000))","v":0},{"$f":"SUMPRODUCT(('Fixed assets'!$R$2:$R$1000)*('Fixed assets'!$P$2:$P$1000<$A669)*('Fixed assets'!$Q$2:$Q$1000=Costs!O$617))-SUMPRODUCT(('Fixed assets'!$S$2:$S$1000)*('Fixed assets'!$P$2:$P$1000<Costs!$A669)*('Fixed assets'!$Q$2:$Q$1000=Costs!O$617))-SUMPRODUCT(('Fixed assets'!$Q$2:$Q$1000=Costs!O$617)*('Fixed assets'!$U$2:$U$1000=Costs!$A669)*('Fixed assets'!$S$2:$S$1000))+SUMPRODUCT(('Fixed assets'!$Q$2:$Q$1000=Costs!O$617)*('Fixed assets'!$P$2:$P$1000=Costs!$A669)*('Fixed assets'!$U$2:$U$1000=Costs!$A669)*('Fixed assets'!$R$2:$R$1000))","v":0},{"$f":"SUMPRODUCT(('Fixed assets'!$R$2:$R$1000)*('Fixed assets'!$P$2:$P$1000<$A669)*('Fixed assets'!$Q$2:$Q$1000=Costs!P$617))-SUMPRODUCT(('Fixed assets'!$S$2:$S$1000)*('Fixed assets'!$P$2:$P$1000<Costs!$A669)*('Fixed assets'!$Q$2:$Q$1000=Costs!P$617))-SUMPRODUCT(('Fixed assets'!$Q$2:$Q$1000=Costs!P$617)*('Fixed assets'!$U$2:$U$1000=Costs!$A669)*('Fixed assets'!$S$2:$S$1000))+SUMPRODUCT(('Fixed assets'!$Q$2:$Q$1000=Costs!P$617)*('Fixed assets'!$P$2:$P$1000=Costs!$A669)*('Fixed assets'!$U$2:$U$1000=Costs!$A669)*('Fixed assets'!$R$2:$R$1000))","v":0},{"$f":"SUMPRODUCT(('Fixed assets'!$R$2:$R$1000)*('Fixed assets'!$P$2:$P$1000<$A669)*('Fixed assets'!$Q$2:$Q$1000=Costs!Q$617))-SUMPRODUCT(('Fixed assets'!$S$2:$S$1000)*('Fixed assets'!$P$2:$P$1000<Costs!$A669)*('Fixed assets'!$Q$2:$Q$1000=Costs!Q$617))-SUMPRODUCT(('Fixed assets'!$Q$2:$Q$1000=Costs!Q$617)*('Fixed assets'!$U$2:$U$1000=Costs!$A669)*('Fixed assets'!$S$2:$S$1000))+SUMPRODUCT(('Fixed assets'!$Q$2:$Q$1000=Costs!Q$617)*('Fixed assets'!$P$2:$P$1000=Costs!$A669)*('Fixed assets'!$U$2:$U$1000=Costs!$A669)*('Fixed assets'!$R$2:$R$1000))","v":0},{"$f":"SUMPRODUCT(('Fixed assets'!$R$2:$R$1000)*('Fixed assets'!$P$2:$P$1000<$A669)*('Fixed assets'!$Q$2:$Q$1000=Costs!R$617))-SUMPRODUCT(('Fixed assets'!$S$2:$S$1000)*('Fixed assets'!$P$2:$P$1000<Costs!$A669)*('Fixed assets'!$Q$2:$Q$1000=Costs!R$617))-SUMPRODUCT(('Fixed assets'!$Q$2:$Q$1000=Costs!R$617)*('Fixed assets'!$U$2:$U$1000=Costs!$A669)*('Fixed assets'!$S$2:$S$1000))+SUMPRODUCT(('Fixed assets'!$Q$2:$Q$1000=Costs!R$617)*('Fixed assets'!$P$2:$P$1000=Costs!$A669)*('Fixed assets'!$U$2:$U$1000=Costs!$A669)*('Fixed assets'!$R$2:$R$1000))","v":0},{"$f":"SUMPRODUCT(('Fixed assets'!$R$2:$R$1000)*('Fixed assets'!$P$2:$P$1000<$A669)*('Fixed assets'!$Q$2:$Q$1000=Costs!S$617))-SUMPRODUCT(('Fixed assets'!$S$2:$S$1000)*('Fixed assets'!$P$2:$P$1000<Costs!$A669)*('Fixed assets'!$Q$2:$Q$1000=Costs!S$617))-SUMPRODUCT(('Fixed assets'!$Q$2:$Q$1000=Costs!S$617)*('Fixed assets'!$U$2:$U$1000=Costs!$A669)*('Fixed assets'!$S$2:$S$1000))+SUMPRODUCT(('Fixed assets'!$Q$2:$Q$1000=Costs!S$617)*('Fixed assets'!$P$2:$P$1000=Costs!$A669)*('Fixed assets'!$U$2:$U$1000=Costs!$A669)*('Fixed assets'!$R$2:$R$1000))","v":0},{"$f":"SUMPRODUCT(('Fixed assets'!$R$2:$R$1000)*('Fixed assets'!$P$2:$P$1000<$A669)*('Fixed assets'!$Q$2:$Q$1000=Costs!T$617))-SUMPRODUCT(('Fixed assets'!$S$2:$S$1000)*('Fixed assets'!$P$2:$P$1000<Costs!$A669)*('Fixed assets'!$Q$2:$Q$1000=Costs!T$617))-SUMPRODUCT(('Fixed assets'!$Q$2:$Q$1000=Costs!T$617)*('Fixed assets'!$U$2:$U$1000=Costs!$A669)*('Fixed assets'!$S$2:$S$1000))+SUMPRODUCT(('Fixed assets'!$Q$2:$Q$1000=Costs!T$617)*('Fixed assets'!$P$2:$P$1000=Costs!$A669)*('Fixed assets'!$U$2:$U$1000=Costs!$A669)*('Fixed assets'!$R$2:$R$1000))","v":0},{"$f":"SUMPRODUCT(('Fixed assets'!$R$2:$R$1000)*('Fixed assets'!$P$2:$P$1000<$A669)*('Fixed assets'!$Q$2:$Q$1000=Costs!U$617))-SUMPRODUCT(('Fixed assets'!$S$2:$S$1000)*('Fixed assets'!$P$2:$P$1000<Costs!$A669)*('Fixed assets'!$Q$2:$Q$1000=Costs!U$617))-SUMPRODUCT(('Fixed assets'!$Q$2:$Q$1000=Costs!U$617)*('Fixed assets'!$U$2:$U$1000=Costs!$A669)*('Fixed assets'!$S$2:$S$1000))+SUMPRODUCT(('Fixed assets'!$Q$2:$Q$1000=Costs!U$617)*('Fixed assets'!$P$2:$P$1000=Costs!$A669)*('Fixed assets'!$U$2:$U$1000=Costs!$A669)*('Fixed assets'!$R$2:$R$1000))","v":0},{"$f":"SUMPRODUCT(('Fixed assets'!$R$2:$R$1000)*('Fixed assets'!$P$2:$P$1000<$A669)*('Fixed assets'!$Q$2:$Q$1000=Costs!V$617))-SUMPRODUCT(('Fixed assets'!$S$2:$S$1000)*('Fixed assets'!$P$2:$P$1000<Costs!$A669)*('Fixed assets'!$Q$2:$Q$1000=Costs!V$617))-SUMPRODUCT(('Fixed assets'!$Q$2:$Q$1000=Costs!V$617)*('Fixed assets'!$U$2:$U$1000=Costs!$A669)*('Fixed assets'!$S$2:$S$1000))+SUMPRODUCT(('Fixed assets'!$Q$2:$Q$1000=Costs!V$617)*('Fixed assets'!$P$2:$P$1000=Costs!$A669)*('Fixed assets'!$U$2:$U$1000=Costs!$A669)*('Fixed assets'!$R$2:$R$1000))","v":0},{"$f":"SUMPRODUCT(('Fixed assets'!$R$2:$R$1000)*('Fixed assets'!$P$2:$P$1000<$A669)*('Fixed assets'!$Q$2:$Q$1000=Costs!W$617))-SUMPRODUCT(('Fixed assets'!$S$2:$S$1000)*('Fixed assets'!$P$2:$P$1000<Costs!$A669)*('Fixed assets'!$Q$2:$Q$1000=Costs!W$617))-SUMPRODUCT(('Fixed assets'!$Q$2:$Q$1000=Costs!W$617)*('Fixed assets'!$U$2:$U$1000=Costs!$A669)*('Fixed assets'!$S$2:$S$1000))+SUMPRODUCT(('Fixed assets'!$Q$2:$Q$1000=Costs!W$617)*('Fixed assets'!$P$2:$P$1000=Costs!$A669)*('Fixed assets'!$U$2:$U$1000=Costs!$A669)*('Fixed assets'!$R$2:$R$1000))","v":0},{"$f":"SUMPRODUCT(('Fixed assets'!$R$2:$R$1000)*('Fixed assets'!$P$2:$P$1000<$A669)*('Fixed assets'!$Q$2:$Q$1000=Costs!X$617))-SUMPRODUCT(('Fixed assets'!$S$2:$S$1000)*('Fixed assets'!$P$2:$P$1000<Costs!$A669)*('Fixed assets'!$Q$2:$Q$1000=Costs!X$617))-SUMPRODUCT(('Fixed assets'!$Q$2:$Q$1000=Costs!X$617)*('Fixed assets'!$U$2:$U$1000=Costs!$A669)*('Fixed assets'!$S$2:$S$1000))+SUMPRODUCT(('Fixed assets'!$Q$2:$Q$1000=Costs!X$617)*('Fixed assets'!$P$2:$P$1000=Costs!$A669)*('Fixed assets'!$U$2:$U$1000=Costs!$A669)*('Fixed assets'!$R$2:$R$1000))","v":0},{"$f":"SUMPRODUCT(('Fixed assets'!$R$2:$R$1000)*('Fixed assets'!$P$2:$P$1000<$A669)*('Fixed assets'!$Q$2:$Q$1000=Costs!Y$617))-SUMPRODUCT(('Fixed assets'!$S$2:$S$1000)*('Fixed assets'!$P$2:$P$1000<Costs!$A669)*('Fixed assets'!$Q$2:$Q$1000=Costs!Y$617))-SUMPRODUCT(('Fixed assets'!$Q$2:$Q$1000=Costs!Y$617)*('Fixed assets'!$U$2:$U$1000=Costs!$A669)*('Fixed assets'!$S$2:$S$1000))+SUMPRODUCT(('Fixed assets'!$Q$2:$Q$1000=Costs!Y$617)*('Fixed assets'!$P$2:$P$1000=Costs!$A669)*('Fixed assets'!$U$2:$U$1000=Costs!$A669)*('Fixed assets'!$R$2:$R$1000))","v":0},{"$f":"SUMPRODUCT(('Fixed assets'!$R$2:$R$1000)*('Fixed assets'!$P$2:$P$1000<$A669)*('Fixed assets'!$Q$2:$Q$1000=Costs!Z$617))-SUMPRODUCT(('Fixed assets'!$S$2:$S$1000)*('Fixed assets'!$P$2:$P$1000<Costs!$A669)*('Fixed assets'!$Q$2:$Q$1000=Costs!Z$617))-SUMPRODUCT(('Fixed assets'!$Q$2:$Q$1000=Costs!Z$617)*('Fixed assets'!$U$2:$U$1000=Costs!$A669)*('Fixed assets'!$S$2:$S$1000))+SUMPRODUCT(('Fixed assets'!$Q$2:$Q$1000=Costs!Z$617)*('Fixed assets'!$P$2:$P$1000=Costs!$A669)*('Fixed assets'!$U$2:$U$1000=Costs!$A669)*('Fixed assets'!$R$2:$R$1000))","v":0},{"$f":"SUMPRODUCT(('Fixed assets'!$R$2:$R$1000)*('Fixed assets'!$P$2:$P$1000<$A669)*('Fixed assets'!$Q$2:$Q$1000=Costs!AA$617))-SUMPRODUCT(('Fixed assets'!$S$2:$S$1000)*('Fixed assets'!$P$2:$P$1000<Costs!$A669)*('Fixed assets'!$Q$2:$Q$1000=Costs!AA$617))-SUMPRODUCT(('Fixed assets'!$Q$2:$Q$1000=Costs!AA$617)*('Fixed assets'!$U$2:$U$1000=Costs!$A669)*('Fixed assets'!$S$2:$S$1000))+SUMPRODUCT(('Fixed assets'!$Q$2:$Q$1000=Costs!AA$617)*('Fixed assets'!$P$2:$P$1000=Costs!$A669)*('Fixed assets'!$U$2:$U$1000=Costs!$A669)*('Fixed assets'!$R$2:$R$1000))","v":0},{"$f":"SUMPRODUCT(('Fixed assets'!$R$2:$R$1000)*('Fixed assets'!$P$2:$P$1000<$A669)*('Fixed assets'!$Q$2:$Q$1000=Costs!AB$617))-SUMPRODUCT(('Fixed assets'!$S$2:$S$1000)*('Fixed assets'!$P$2:$P$1000<Costs!$A669)*('Fixed assets'!$Q$2:$Q$1000=Costs!AB$617))-SUMPRODUCT(('Fixed assets'!$Q$2:$Q$1000=Costs!AB$617)*('Fixed assets'!$U$2:$U$1000=Costs!$A669)*('Fixed assets'!$S$2:$S$1000))+SUMPRODUCT(('Fixed assets'!$Q$2:$Q$1000=Costs!AB$617)*('Fixed assets'!$P$2:$P$1000=Costs!$A669)*('Fixed assets'!$U$2:$U$1000=Costs!$A669)*('Fixed assets'!$R$2:$R$1000))","v":0},{"$f":"SUMPRODUCT(('Fixed assets'!$R$2:$R$1000)*('Fixed assets'!$P$2:$P$1000<$A669)*('Fixed assets'!$Q$2:$Q$1000=Costs!AC$617))-SUMPRODUCT(('Fixed assets'!$S$2:$S$1000)*('Fixed assets'!$P$2:$P$1000<Costs!$A669)*('Fixed assets'!$Q$2:$Q$1000=Costs!AC$617))-SUMPRODUCT(('Fixed assets'!$Q$2:$Q$1000=Costs!AC$617)*('Fixed assets'!$U$2:$U$1000=Costs!$A669)*('Fixed assets'!$S$2:$S$1000))+SUMPRODUCT(('Fixed assets'!$Q$2:$Q$1000=Costs!AC$617)*('Fixed assets'!$P$2:$P$1000=Costs!$A669)*('Fixed assets'!$U$2:$U$1000=Costs!$A669)*('Fixed assets'!$R$2:$R$1000))","v":0},{"$f":"SUMPRODUCT(('Fixed assets'!$R$2:$R$1000)*('Fixed assets'!$P$2:$P$1000<$A669)*('Fixed assets'!$Q$2:$Q$1000=Costs!AD$617))-SUMPRODUCT(('Fixed assets'!$S$2:$S$1000)*('Fixed assets'!$P$2:$P$1000<Costs!$A669)*('Fixed assets'!$Q$2:$Q$1000=Costs!AD$617))-SUMPRODUCT(('Fixed assets'!$Q$2:$Q$1000=Costs!AD$617)*('Fixed assets'!$U$2:$U$1000=Costs!$A669)*('Fixed assets'!$S$2:$S$1000))+SUMPRODUCT(('Fixed assets'!$Q$2:$Q$1000=Costs!AD$617)*('Fixed assets'!$P$2:$P$1000=Costs!$A669)*('Fixed assets'!$U$2:$U$1000=Costs!$A669)*('Fixed assets'!$R$2:$R$1000))","v":0},{"$f":"SUMPRODUCT(('Fixed assets'!$R$2:$R$1000)*('Fixed assets'!$P$2:$P$1000<$A669)*('Fixed assets'!$Q$2:$Q$1000=Costs!AE$617))-SUMPRODUCT(('Fixed assets'!$S$2:$S$1000)*('Fixed assets'!$P$2:$P$1000<Costs!$A669)*('Fixed assets'!$Q$2:$Q$1000=Costs!AE$617))-SUMPRODUCT(('Fixed assets'!$Q$2:$Q$1000=Costs!AE$617)*('Fixed assets'!$U$2:$U$1000=Costs!$A669)*('Fixed assets'!$S$2:$S$1000))+SUMPRODUCT(('Fixed assets'!$Q$2:$Q$1000=Costs!AE$617)*('Fixed assets'!$P$2:$P$1000=Costs!$A669)*('Fixed assets'!$U$2:$U$1000=Costs!$A669)*('Fixed assets'!$R$2:$R$1000))","v":0},{"$f":"SUMPRODUCT(('Fixed assets'!$R$2:$R$1000)*('Fixed assets'!$P$2:$P$1000<$A669)*('Fixed assets'!$Q$2:$Q$1000=Costs!AF$617))-SUMPRODUCT(('Fixed assets'!$S$2:$S$1000)*('Fixed assets'!$P$2:$P$1000<Costs!$A669)*('Fixed assets'!$Q$2:$Q$1000=Costs!AF$617))-SUMPRODUCT(('Fixed assets'!$Q$2:$Q$1000=Costs!AF$617)*('Fixed assets'!$U$2:$U$1000=Costs!$A669)*('Fixed assets'!$S$2:$S$1000))+SUMPRODUCT(('Fixed assets'!$Q$2:$Q$1000=Costs!AF$617)*('Fixed assets'!$P$2:$P$1000=Costs!$A669)*('Fixed assets'!$U$2:$U$1000=Costs!$A669)*('Fixed assets'!$R$2:$R$1000))","v":0},{"$f":"SUMPRODUCT(('Fixed assets'!$R$2:$R$1000)*('Fixed assets'!$P$2:$P$1000<$A669)*('Fixed assets'!$Q$2:$Q$1000=Costs!AG$617))-SUMPRODUCT(('Fixed assets'!$S$2:$S$1000)*('Fixed assets'!$P$2:$P$1000<Costs!$A669)*('Fixed assets'!$Q$2:$Q$1000=Costs!AG$617))-SUMPRODUCT(('Fixed assets'!$Q$2:$Q$1000=Costs!AG$617)*('Fixed assets'!$U$2:$U$1000=Costs!$A669)*('Fixed assets'!$S$2:$S$1000))+SUMPRODUCT(('Fixed assets'!$Q$2:$Q$1000=Costs!AG$617)*('Fixed assets'!$P$2:$P$1000=Costs!$A669)*('Fixed assets'!$U$2:$U$1000=Costs!$A669)*('Fixed assets'!$R$2:$R$1000))","v":0},{"$f":"SUMPRODUCT(('Fixed assets'!$R$2:$R$1000)*('Fixed assets'!$P$2:$P$1000<$A669)*('Fixed assets'!$Q$2:$Q$1000=Costs!AH$617))-SUMPRODUCT(('Fixed assets'!$S$2:$S$1000)*('Fixed assets'!$P$2:$P$1000<Costs!$A669)*('Fixed assets'!$Q$2:$Q$1000=Costs!AH$617))-SUMPRODUCT(('Fixed assets'!$Q$2:$Q$1000=Costs!AH$617)*('Fixed assets'!$U$2:$U$1000=Costs!$A669)*('Fixed assets'!$S$2:$S$1000))+SUMPRODUCT(('Fixed assets'!$Q$2:$Q$1000=Costs!AH$617)*('Fixed assets'!$P$2:$P$1000=Costs!$A669)*('Fixed assets'!$U$2:$U$1000=Costs!$A669)*('Fixed assets'!$R$2:$R$1000))","v":0},{"$f":"SUMPRODUCT(('Fixed assets'!$R$2:$R$1000)*('Fixed assets'!$P$2:$P$1000<$A669)*('Fixed assets'!$Q$2:$Q$1000=Costs!AI$617))-SUMPRODUCT(('Fixed assets'!$S$2:$S$1000)*('Fixed assets'!$P$2:$P$1000<Costs!$A669)*('Fixed assets'!$Q$2:$Q$1000=Costs!AI$617))-SUMPRODUCT(('Fixed assets'!$Q$2:$Q$1000=Costs!AI$617)*('Fixed assets'!$U$2:$U$1000=Costs!$A669)*('Fixed assets'!$S$2:$S$1000))+SUMPRODUCT(('Fixed assets'!$Q$2:$Q$1000=Costs!AI$617)*('Fixed assets'!$P$2:$P$1000=Costs!$A669)*('Fixed assets'!$U$2:$U$1000=Costs!$A669)*('Fixed assets'!$R$2:$R$1000))","v":0},{"$f":"SUMPRODUCT(('Fixed assets'!$R$2:$R$1000)*('Fixed assets'!$P$2:$P$1000<$A669)*('Fixed assets'!$Q$2:$Q$1000=Costs!AJ$617))-SUMPRODUCT(('Fixed assets'!$S$2:$S$1000)*('Fixed assets'!$P$2:$P$1000<Costs!$A669)*('Fixed assets'!$Q$2:$Q$1000=Costs!AJ$617))-SUMPRODUCT(('Fixed assets'!$Q$2:$Q$1000=Costs!AJ$617)*('Fixed assets'!$U$2:$U$1000=Costs!$A669)*('Fixed assets'!$S$2:$S$1000))+SUMPRODUCT(('Fixed assets'!$Q$2:$Q$1000=Costs!AJ$617)*('Fixed assets'!$P$2:$P$1000=Costs!$A669)*('Fixed assets'!$U$2:$U$1000=Costs!$A669)*('Fixed assets'!$R$2:$R$1000))","v":0},{"$f":"SUMPRODUCT(('Fixed assets'!$R$2:$R$1000)*('Fixed assets'!$P$2:$P$1000<$A669)*('Fixed assets'!$Q$2:$Q$1000=Costs!AK$617))-SUMPRODUCT(('Fixed assets'!$S$2:$S$1000)*('Fixed assets'!$P$2:$P$1000<Costs!$A669)*('Fixed assets'!$Q$2:$Q$1000=Costs!AK$617))-SUMPRODUCT(('Fixed assets'!$Q$2:$Q$1000=Costs!AK$617)*('Fixed assets'!$U$2:$U$1000=Costs!$A669)*('Fixed assets'!$S$2:$S$1000))+SUMPRODUCT(('Fixed assets'!$Q$2:$Q$1000=Costs!AK$617)*('Fixed assets'!$P$2:$P$1000=Costs!$A669)*('Fixed assets'!$U$2:$U$1000=Costs!$A669)*('Fixed assets'!$R$2:$R$1000))","v":0},{"$f":"SUMPRODUCT(('Fixed assets'!$R$2:$R$1000)*('Fixed assets'!$P$2:$P$1000<$A669)*('Fixed assets'!$Q$2:$Q$1000=Costs!AL$617))-SUMPRODUCT(('Fixed assets'!$S$2:$S$1000)*('Fixed assets'!$P$2:$P$1000<Costs!$A669)*('Fixed assets'!$Q$2:$Q$1000=Costs!AL$617))-SUMPRODUCT(('Fixed assets'!$Q$2:$Q$1000=Costs!AL$617)*('Fixed assets'!$U$2:$U$1000=Costs!$A669)*('Fixed assets'!$S$2:$S$1000))+SUMPRODUCT(('Fixed assets'!$Q$2:$Q$1000=Costs!AL$617)*('Fixed assets'!$P$2:$P$1000=Costs!$A669)*('Fixed assets'!$U$2:$U$1000=Costs!$A669)*('Fixed assets'!$R$2:$R$1000))","v":0},{"$f":"SUMPRODUCT(('Fixed assets'!$R$2:$R$1000)*('Fixed assets'!$P$2:$P$1000<$A669)*('Fixed assets'!$Q$2:$Q$1000=Costs!AM$617))-SUMPRODUCT(('Fixed assets'!$S$2:$S$1000)*('Fixed assets'!$P$2:$P$1000<Costs!$A669)*('Fixed assets'!$Q$2:$Q$1000=Costs!AM$617))-SUMPRODUCT(('Fixed assets'!$Q$2:$Q$1000=Costs!AM$617)*('Fixed assets'!$U$2:$U$1000=Costs!$A669)*('Fixed assets'!$S$2:$S$1000))+SUMPRODUCT(('Fixed assets'!$Q$2:$Q$1000=Costs!AM$617)*('Fixed assets'!$P$2:$P$1000=Costs!$A669)*('Fixed assets'!$U$2:$U$1000=Costs!$A669)*('Fixed assets'!$R$2:$R$1000))","v":0},{"$f":"SUMPRODUCT(('Fixed assets'!$R$2:$R$1000)*('Fixed assets'!$P$2:$P$1000<$A669)*('Fixed assets'!$Q$2:$Q$1000=Costs!AN$617))-SUMPRODUCT(('Fixed assets'!$S$2:$S$1000)*('Fixed assets'!$P$2:$P$1000<Costs!$A669)*('Fixed assets'!$Q$2:$Q$1000=Costs!AN$617))-SUMPRODUCT(('Fixed assets'!$Q$2:$Q$1000=Costs!AN$617)*('Fixed assets'!$U$2:$U$1000=Costs!$A669)*('Fixed assets'!$S$2:$S$1000))+SUMPRODUCT(('Fixed assets'!$Q$2:$Q$1000=Costs!AN$617)*('Fixed assets'!$P$2:$P$1000=Costs!$A669)*('Fixed assets'!$U$2:$U$1000=Costs!$A669)*('Fixed assets'!$R$2:$R$1000))","v":0},{"$f":"SUMPRODUCT(('Fixed assets'!$R$2:$R$1000)*('Fixed assets'!$P$2:$P$1000<$A669)*('Fixed assets'!$Q$2:$Q$1000=Costs!AO$617))-SUMPRODUCT(('Fixed assets'!$S$2:$S$1000)*('Fixed assets'!$P$2:$P$1000<Costs!$A669)*('Fixed assets'!$Q$2:$Q$1000=Costs!AO$617))-SUMPRODUCT(('Fixed assets'!$Q$2:$Q$1000=Costs!AO$617)*('Fixed assets'!$U$2:$U$1000=Costs!$A669)*('Fixed assets'!$S$2:$S$1000))+SUMPRODUCT(('Fixed assets'!$Q$2:$Q$1000=Costs!AO$617)*('Fixed assets'!$P$2:$P$1000=Costs!$A669)*('Fixed assets'!$U$2:$U$1000=Costs!$A669)*('Fixed assets'!$R$2:$R$1000))","v":0},{"$f":"SUMPRODUCT(('Fixed assets'!$R$2:$R$1000)*('Fixed assets'!$P$2:$P$1000<$A669)*('Fixed assets'!$Q$2:$Q$1000=Costs!AP$617))-SUMPRODUCT(('Fixed assets'!$S$2:$S$1000)*('Fixed assets'!$P$2:$P$1000<Costs!$A669)*('Fixed assets'!$Q$2:$Q$1000=Costs!AP$617))-SUMPRODUCT(('Fixed assets'!$Q$2:$Q$1000=Costs!AP$617)*('Fixed assets'!$U$2:$U$1000=Costs!$A669)*('Fixed assets'!$S$2:$S$1000))+SUMPRODUCT(('Fixed assets'!$Q$2:$Q$1000=Costs!AP$617)*('Fixed assets'!$P$2:$P$1000=Costs!$A669)*('Fixed assets'!$U$2:$U$1000=Costs!$A669)*('Fixed assets'!$R$2:$R$1000))","v":0},{"$f":"SUMPRODUCT(('Fixed assets'!$R$2:$R$1000)*('Fixed assets'!$P$2:$P$1000<$A669)*('Fixed assets'!$Q$2:$Q$1000=Costs!AQ$617))-SUMPRODUCT(('Fixed assets'!$S$2:$S$1000)*('Fixed assets'!$P$2:$P$1000<Costs!$A669)*('Fixed assets'!$Q$2:$Q$1000=Costs!AQ$617))-SUMPRODUCT(('Fixed assets'!$Q$2:$Q$1000=Costs!AQ$617)*('Fixed assets'!$U$2:$U$1000=Costs!$A669)*('Fixed assets'!$S$2:$S$1000))+SUMPRODUCT(('Fixed assets'!$Q$2:$Q$1000=Costs!AQ$617)*('Fixed assets'!$P$2:$P$1000=Costs!$A669)*('Fixed assets'!$U$2:$U$1000=Costs!$A669)*('Fixed assets'!$R$2:$R$1000))","v":0}]
[2067,0,{"$f":"SUMPRODUCT(('Fixed assets'!$R$2:$R$1000)*('Fixed assets'!$P$2:$P$1000<$A670)*('Fixed assets'!$Q$2:$Q$1000=Costs!C$617))-SUMPRODUCT(('Fixed assets'!$S$2:$S$1000)*('Fixed assets'!$P$2:$P$1000<Costs!$A670)*('Fixed assets'!$Q$2:$Q$1000=Costs!C$617))-SUMPRODUCT(('Fixed assets'!$Q$2:$Q$1000=Costs!C$617)*('Fixed assets'!$U$2:$U$1000=Costs!$A670)*('Fixed assets'!$S$2:$S$1000))+SUMPRODUCT(('Fixed assets'!$Q$2:$Q$1000=Costs!C$617)*('Fixed assets'!$P$2:$P$1000=Costs!$A670)*('Fixed assets'!$U$2:$U$1000=Costs!$A670)*('Fixed assets'!$R$2:$R$1000))","v":0},{"$f":"SUMPRODUCT(('Fixed assets'!$R$2:$R$1000)*('Fixed assets'!$P$2:$P$1000<$A670)*('Fixed assets'!$Q$2:$Q$1000=Costs!D$617))-SUMPRODUCT(('Fixed assets'!$S$2:$S$1000)*('Fixed assets'!$P$2:$P$1000<Costs!$A670)*('Fixed assets'!$Q$2:$Q$1000=Costs!D$617))-SUMPRODUCT(('Fixed assets'!$Q$2:$Q$1000=Costs!D$617)*('Fixed assets'!$U$2:$U$1000=Costs!$A670)*('Fixed assets'!$S$2:$S$1000))+SUMPRODUCT(('Fixed assets'!$Q$2:$Q$1000=Costs!D$617)*('Fixed assets'!$P$2:$P$1000=Costs!$A670)*('Fixed assets'!$U$2:$U$1000=Costs!$A670)*('Fixed assets'!$R$2:$R$1000))","v":0},{"$f":"SUMPRODUCT(('Fixed assets'!$R$2:$R$1000)*('Fixed assets'!$P$2:$P$1000<$A670)*('Fixed assets'!$Q$2:$Q$1000=Costs!E$617))-SUMPRODUCT(('Fixed assets'!$S$2:$S$1000)*('Fixed assets'!$P$2:$P$1000<Costs!$A670)*('Fixed assets'!$Q$2:$Q$1000=Costs!E$617))-SUMPRODUCT(('Fixed assets'!$Q$2:$Q$1000=Costs!E$617)*('Fixed assets'!$U$2:$U$1000=Costs!$A670)*('Fixed assets'!$S$2:$S$1000))+SUMPRODUCT(('Fixed assets'!$Q$2:$Q$1000=Costs!E$617)*('Fixed assets'!$P$2:$P$1000=Costs!$A670)*('Fixed assets'!$U$2:$U$1000=Costs!$A670)*('Fixed assets'!$R$2:$R$1000))","v":0},{"$f":"SUMPRODUCT(('Fixed assets'!$R$2:$R$1000)*('Fixed assets'!$P$2:$P$1000<$A670)*('Fixed assets'!$Q$2:$Q$1000=Costs!F$617))-SUMPRODUCT(('Fixed assets'!$S$2:$S$1000)*('Fixed assets'!$P$2:$P$1000<Costs!$A670)*('Fixed assets'!$Q$2:$Q$1000=Costs!F$617))-SUMPRODUCT(('Fixed assets'!$Q$2:$Q$1000=Costs!F$617)*('Fixed assets'!$U$2:$U$1000=Costs!$A670)*('Fixed assets'!$S$2:$S$1000))+SUMPRODUCT(('Fixed assets'!$Q$2:$Q$1000=Costs!F$617)*('Fixed assets'!$P$2:$P$1000=Costs!$A670)*('Fixed assets'!$U$2:$U$1000=Costs!$A670)*('Fixed assets'!$R$2:$R$1000))","v":0},{"$f":"SUMPRODUCT(('Fixed assets'!$R$2:$R$1000)*('Fixed assets'!$P$2:$P$1000<$A670)*('Fixed assets'!$Q$2:$Q$1000=Costs!G$617))-SUMPRODUCT(('Fixed assets'!$S$2:$S$1000)*('Fixed assets'!$P$2:$P$1000<Costs!$A670)*('Fixed assets'!$Q$2:$Q$1000=Costs!G$617))-SUMPRODUCT(('Fixed assets'!$Q$2:$Q$1000=Costs!G$617)*('Fixed assets'!$U$2:$U$1000=Costs!$A670)*('Fixed assets'!$S$2:$S$1000))+SUMPRODUCT(('Fixed assets'!$Q$2:$Q$1000=Costs!G$617)*('Fixed assets'!$P$2:$P$1000=Costs!$A670)*('Fixed assets'!$U$2:$U$1000=Costs!$A670)*('Fixed assets'!$R$2:$R$1000))","v":0},{"$f":"SUMPRODUCT(('Fixed assets'!$R$2:$R$1000)*('Fixed assets'!$P$2:$P$1000<$A670)*('Fixed assets'!$Q$2:$Q$1000=Costs!H$617))-SUMPRODUCT(('Fixed assets'!$S$2:$S$1000)*('Fixed assets'!$P$2:$P$1000<Costs!$A670)*('Fixed assets'!$Q$2:$Q$1000=Costs!H$617))-SUMPRODUCT(('Fixed assets'!$Q$2:$Q$1000=Costs!H$617)*('Fixed assets'!$U$2:$U$1000=Costs!$A670)*('Fixed assets'!$S$2:$S$1000))+SUMPRODUCT(('Fixed assets'!$Q$2:$Q$1000=Costs!H$617)*('Fixed assets'!$P$2:$P$1000=Costs!$A670)*('Fixed assets'!$U$2:$U$1000=Costs!$A670)*('Fixed assets'!$R$2:$R$1000))","v":0},{"$f":"SUMPRODUCT(('Fixed assets'!$R$2:$R$1000)*('Fixed assets'!$P$2:$P$1000<$A670)*('Fixed assets'!$Q$2:$Q$1000=Costs!I$617))-SUMPRODUCT(('Fixed assets'!$S$2:$S$1000)*('Fixed assets'!$P$2:$P$1000<Costs!$A670)*('Fixed assets'!$Q$2:$Q$1000=Costs!I$617))-SUMPRODUCT(('Fixed assets'!$Q$2:$Q$1000=Costs!I$617)*('Fixed assets'!$U$2:$U$1000=Costs!$A670)*('Fixed assets'!$S$2:$S$1000))+SUMPRODUCT(('Fixed assets'!$Q$2:$Q$1000=Costs!I$617)*('Fixed assets'!$P$2:$P$1000=Costs!$A670)*('Fixed assets'!$U$2:$U$1000=Costs!$A670)*('Fixed assets'!$R$2:$R$1000))","v":0},{"$f":"SUMPRODUCT(('Fixed assets'!$R$2:$R$1000)*('Fixed assets'!$P$2:$P$1000<$A670)*('Fixed assets'!$Q$2:$Q$1000=Costs!J$617))-SUMPRODUCT(('Fixed assets'!$S$2:$S$1000)*('Fixed assets'!$P$2:$P$1000<Costs!$A670)*('Fixed assets'!$Q$2:$Q$1000=Costs!J$617))-SUMPRODUCT(('Fixed assets'!$Q$2:$Q$1000=Costs!J$617)*('Fixed assets'!$U$2:$U$1000=Costs!$A670)*('Fixed assets'!$S$2:$S$1000))+SUMPRODUCT(('Fixed assets'!$Q$2:$Q$1000=Costs!J$617)*('Fixed assets'!$P$2:$P$1000=Costs!$A670)*('Fixed assets'!$U$2:$U$1000=Costs!$A670)*('Fixed assets'!$R$2:$R$1000))","v":0},{"$f":"SUMPRODUCT(('Fixed assets'!$R$2:$R$1000)*('Fixed assets'!$P$2:$P$1000<$A670)*('Fixed assets'!$Q$2:$Q$1000=Costs!K$617))-SUMPRODUCT(('Fixed assets'!$S$2:$S$1000)*('Fixed assets'!$P$2:$P$1000<Costs!$A670)*('Fixed assets'!$Q$2:$Q$1000=Costs!K$617))-SUMPRODUCT(('Fixed assets'!$Q$2:$Q$1000=Costs!K$617)*('Fixed assets'!$U$2:$U$1000=Costs!$A670)*('Fixed assets'!$S$2:$S$1000))+SUMPRODUCT(('Fixed assets'!$Q$2:$Q$1000=Costs!K$617)*('Fixed assets'!$P$2:$P$1000=Costs!$A670)*('Fixed assets'!$U$2:$U$1000=Costs!$A670)*('Fixed assets'!$R$2:$R$1000))","v":0},{"$f":"SUMPRODUCT(('Fixed assets'!$R$2:$R$1000)*('Fixed assets'!$P$2:$P$1000<$A670)*('Fixed assets'!$Q$2:$Q$1000=Costs!L$617))-SUMPRODUCT(('Fixed assets'!$S$2:$S$1000)*('Fixed assets'!$P$2:$P$1000<Costs!$A670)*('Fixed assets'!$Q$2:$Q$1000=Costs!L$617))-SUMPRODUCT(('Fixed assets'!$Q$2:$Q$1000=Costs!L$617)*('Fixed assets'!$U$2:$U$1000=Costs!$A670)*('Fixed assets'!$S$2:$S$1000))+SUMPRODUCT(('Fixed assets'!$Q$2:$Q$1000=Costs!L$617)*('Fixed assets'!$P$2:$P$1000=Costs!$A670)*('Fixed assets'!$U$2:$U$1000=Costs!$A670)*('Fixed assets'!$R$2:$R$1000))","v":0},{"$f":"SUMPRODUCT(('Fixed assets'!$R$2:$R$1000)*('Fixed assets'!$P$2:$P$1000<$A670)*('Fixed assets'!$Q$2:$Q$1000=Costs!M$617))-SUMPRODUCT(('Fixed assets'!$S$2:$S$1000)*('Fixed assets'!$P$2:$P$1000<Costs!$A670)*('Fixed assets'!$Q$2:$Q$1000=Costs!M$617))-SUMPRODUCT(('Fixed assets'!$Q$2:$Q$1000=Costs!M$617)*('Fixed assets'!$U$2:$U$1000=Costs!$A670)*('Fixed assets'!$S$2:$S$1000))+SUMPRODUCT(('Fixed assets'!$Q$2:$Q$1000=Costs!M$617)*('Fixed assets'!$P$2:$P$1000=Costs!$A670)*('Fixed assets'!$U$2:$U$1000=Costs!$A670)*('Fixed assets'!$R$2:$R$1000))","v":0},{"$f":"SUMPRODUCT(('Fixed assets'!$R$2:$R$1000)*('Fixed assets'!$P$2:$P$1000<$A670)*('Fixed assets'!$Q$2:$Q$1000=Costs!N$617))-SUMPRODUCT(('Fixed assets'!$S$2:$S$1000)*('Fixed assets'!$P$2:$P$1000<Costs!$A670)*('Fixed assets'!$Q$2:$Q$1000=Costs!N$617))-SUMPRODUCT(('Fixed assets'!$Q$2:$Q$1000=Costs!N$617)*('Fixed assets'!$U$2:$U$1000=Costs!$A670)*('Fixed assets'!$S$2:$S$1000))+SUMPRODUCT(('Fixed assets'!$Q$2:$Q$1000=Costs!N$617)*('Fixed assets'!$P$2:$P$1000=Costs!$A670)*('Fixed assets'!$U$2:$U$1000=Costs!$A670)*('Fixed assets'!$R$2:$R$1000))","v":0},{"$f":"SUMPRODUCT(('Fixed assets'!$R$2:$R$1000)*('Fixed assets'!$P$2:$P$1000<$A670)*('Fixed assets'!$Q$2:$Q$1000=Costs!O$617))-SUMPRODUCT(('Fixed assets'!$S$2:$S$1000)*('Fixed assets'!$P$2:$P$1000<Costs!$A670)*('Fixed assets'!$Q$2:$Q$1000=Costs!O$617))-SUMPRODUCT(('Fixed assets'!$Q$2:$Q$1000=Costs!O$617)*('Fixed assets'!$U$2:$U$1000=Costs!$A670)*('Fixed assets'!$S$2:$S$1000))+SUMPRODUCT(('Fixed assets'!$Q$2:$Q$1000=Costs!O$617)*('Fixed assets'!$P$2:$P$1000=Costs!$A670)*('Fixed assets'!$U$2:$U$1000=Costs!$A670)*('Fixed assets'!$R$2:$R$1000))","v":0},{"$f":"SUMPRODUCT(('Fixed assets'!$R$2:$R$1000)*('Fixed assets'!$P$2:$P$1000<$A670)*('Fixed assets'!$Q$2:$Q$1000=Costs!P$617))-SUMPRODUCT(('Fixed assets'!$S$2:$S$1000)*('Fixed assets'!$P$2:$P$1000<Costs!$A670)*('Fixed assets'!$Q$2:$Q$1000=Costs!P$617))-SUMPRODUCT(('Fixed assets'!$Q$2:$Q$1000=Costs!P$617)*('Fixed assets'!$U$2:$U$1000=Costs!$A670)*('Fixed assets'!$S$2:$S$1000))+SUMPRODUCT(('Fixed assets'!$Q$2:$Q$1000=Costs!P$617)*('Fixed assets'!$P$2:$P$1000=Costs!$A670)*('Fixed assets'!$U$2:$U$1000=Costs!$A670)*('Fixed assets'!$R$2:$R$1000))","v":0},{"$f":"SUMPRODUCT(('Fixed assets'!$R$2:$R$1000)*('Fixed assets'!$P$2:$P$1000<$A670)*('Fixed assets'!$Q$2:$Q$1000=Costs!Q$617))-SUMPRODUCT(('Fixed assets'!$S$2:$S$1000)*('Fixed assets'!$P$2:$P$1000<Costs!$A670)*('Fixed assets'!$Q$2:$Q$1000=Costs!Q$617))-SUMPRODUCT(('Fixed assets'!$Q$2:$Q$1000=Costs!Q$617)*('Fixed assets'!$U$2:$U$1000=Costs!$A670)*('Fixed assets'!$S$2:$S$1000))+SUMPRODUCT(('Fixed assets'!$Q$2:$Q$1000=Costs!Q$617)*('Fixed assets'!$P$2:$P$1000=Costs!$A670)*('Fixed assets'!$U$2:$U$1000=Costs!$A670)*('Fixed assets'!$R$2:$R$1000))","v":0},{"$f":"SUMPRODUCT(('Fixed assets'!$R$2:$R$1000)*('Fixed assets'!$P$2:$P$1000<$A670)*('Fixed assets'!$Q$2:$Q$1000=Costs!R$617))-SUMPRODUCT(('Fixed assets'!$S$2:$S$1000)*('Fixed assets'!$P$2:$P$1000<Costs!$A670)*('Fixed assets'!$Q$2:$Q$1000=Costs!R$617))-SUMPRODUCT(('Fixed assets'!$Q$2:$Q$1000=Costs!R$617)*('Fixed assets'!$U$2:$U$1000=Costs!$A670)*('Fixed assets'!$S$2:$S$1000))+SUMPRODUCT(('Fixed assets'!$Q$2:$Q$1000=Costs!R$617)*('Fixed assets'!$P$2:$P$1000=Costs!$A670)*('Fixed assets'!$U$2:$U$1000=Costs!$A670)*('Fixed assets'!$R$2:$R$1000))","v":0},{"$f":"SUMPRODUCT(('Fixed assets'!$R$2:$R$1000)*('Fixed assets'!$P$2:$P$1000<$A670)*('Fixed assets'!$Q$2:$Q$1000=Costs!S$617))-SUMPRODUCT(('Fixed assets'!$S$2:$S$1000)*('Fixed assets'!$P$2:$P$1000<Costs!$A670)*('Fixed assets'!$Q$2:$Q$1000=Costs!S$617))-SUMPRODUCT(('Fixed assets'!$Q$2:$Q$1000=Costs!S$617)*('Fixed assets'!$U$2:$U$1000=Costs!$A670)*('Fixed assets'!$S$2:$S$1000))+SUMPRODUCT(('Fixed assets'!$Q$2:$Q$1000=Costs!S$617)*('Fixed assets'!$P$2:$P$1000=Costs!$A670)*('Fixed assets'!$U$2:$U$1000=Costs!$A670)*('Fixed assets'!$R$2:$R$1000))","v":0},{"$f":"SUMPRODUCT(('Fixed assets'!$R$2:$R$1000)*('Fixed assets'!$P$2:$P$1000<$A670)*('Fixed assets'!$Q$2:$Q$1000=Costs!T$617))-SUMPRODUCT(('Fixed assets'!$S$2:$S$1000)*('Fixed assets'!$P$2:$P$1000<Costs!$A670)*('Fixed assets'!$Q$2:$Q$1000=Costs!T$617))-SUMPRODUCT(('Fixed assets'!$Q$2:$Q$1000=Costs!T$617)*('Fixed assets'!$U$2:$U$1000=Costs!$A670)*('Fixed assets'!$S$2:$S$1000))+SUMPRODUCT(('Fixed assets'!$Q$2:$Q$1000=Costs!T$617)*('Fixed assets'!$P$2:$P$1000=Costs!$A670)*('Fixed assets'!$U$2:$U$1000=Costs!$A670)*('Fixed assets'!$R$2:$R$1000))","v":0},{"$f":"SUMPRODUCT(('Fixed assets'!$R$2:$R$1000)*('Fixed assets'!$P$2:$P$1000<$A670)*('Fixed assets'!$Q$2:$Q$1000=Costs!U$617))-SUMPRODUCT(('Fixed assets'!$S$2:$S$1000)*('Fixed assets'!$P$2:$P$1000<Costs!$A670)*('Fixed assets'!$Q$2:$Q$1000=Costs!U$617))-SUMPRODUCT(('Fixed assets'!$Q$2:$Q$1000=Costs!U$617)*('Fixed assets'!$U$2:$U$1000=Costs!$A670)*('Fixed assets'!$S$2:$S$1000))+SUMPRODUCT(('Fixed assets'!$Q$2:$Q$1000=Costs!U$617)*('Fixed assets'!$P$2:$P$1000=Costs!$A670)*('Fixed assets'!$U$2:$U$1000=Costs!$A670)*('Fixed assets'!$R$2:$R$1000))","v":0},{"$f":"SUMPRODUCT(('Fixed assets'!$R$2:$R$1000)*('Fixed assets'!$P$2:$P$1000<$A670)*('Fixed assets'!$Q$2:$Q$1000=Costs!V$617))-SUMPRODUCT(('Fixed assets'!$S$2:$S$1000)*('Fixed assets'!$P$2:$P$1000<Costs!$A670)*('Fixed assets'!$Q$2:$Q$1000=Costs!V$617))-SUMPRODUCT(('Fixed assets'!$Q$2:$Q$1000=Costs!V$617)*('Fixed assets'!$U$2:$U$1000=Costs!$A670)*('Fixed assets'!$S$2:$S$1000))+SUMPRODUCT(('Fixed assets'!$Q$2:$Q$1000=Costs!V$617)*('Fixed assets'!$P$2:$P$1000=Costs!$A670)*('Fixed assets'!$U$2:$U$1000=Costs!$A670)*('Fixed assets'!$R$2:$R$1000))","v":0},{"$f":"SUMPRODUCT(('Fixed assets'!$R$2:$R$1000)*('Fixed assets'!$P$2:$P$1000<$A670)*('Fixed assets'!$Q$2:$Q$1000=Costs!W$617))-SUMPRODUCT(('Fixed assets'!$S$2:$S$1000)*('Fixed assets'!$P$2:$P$1000<Costs!$A670)*('Fixed assets'!$Q$2:$Q$1000=Costs!W$617))-SUMPRODUCT(('Fixed assets'!$Q$2:$Q$1000=Costs!W$617)*('Fixed assets'!$U$2:$U$1000=Costs!$A670)*('Fixed assets'!$S$2:$S$1000))+SUMPRODUCT(('Fixed assets'!$Q$2:$Q$1000=Costs!W$617)*('Fixed assets'!$P$2:$P$1000=Costs!$A670)*('Fixed assets'!$U$2:$U$1000=Costs!$A670)*('Fixed assets'!$R$2:$R$1000))","v":0},{"$f":"SUMPRODUCT(('Fixed assets'!$R$2:$R$1000)*('Fixed assets'!$P$2:$P$1000<$A670)*('Fixed assets'!$Q$2:$Q$1000=Costs!X$617))-SUMPRODUCT(('Fixed assets'!$S$2:$S$1000)*('Fixed assets'!$P$2:$P$1000<Costs!$A670)*('Fixed assets'!$Q$2:$Q$1000=Costs!X$617))-SUMPRODUCT(('Fixed assets'!$Q$2:$Q$1000=Costs!X$617)*('Fixed assets'!$U$2:$U$1000=Costs!$A670)*('Fixed assets'!$S$2:$S$1000))+SUMPRODUCT(('Fixed assets'!$Q$2:$Q$1000=Costs!X$617)*('Fixed assets'!$P$2:$P$1000=Costs!$A670)*('Fixed assets'!$U$2:$U$1000=Costs!$A670)*('Fixed assets'!$R$2:$R$1000))","v":0},{"$f":"SUMPRODUCT(('Fixed assets'!$R$2:$R$1000)*('Fixed assets'!$P$2:$P$1000<$A670)*('Fixed assets'!$Q$2:$Q$1000=Costs!Y$617))-SUMPRODUCT(('Fixed assets'!$S$2:$S$1000)*('Fixed assets'!$P$2:$P$1000<Costs!$A670)*('Fixed assets'!$Q$2:$Q$1000=Costs!Y$617))-SUMPRODUCT(('Fixed assets'!$Q$2:$Q$1000=Costs!Y$617)*('Fixed assets'!$U$2:$U$1000=Costs!$A670)*('Fixed assets'!$S$2:$S$1000))+SUMPRODUCT(('Fixed assets'!$Q$2:$Q$1000=Costs!Y$617)*('Fixed assets'!$P$2:$P$1000=Costs!$A670)*('Fixed assets'!$U$2:$U$1000=Costs!$A670)*('Fixed assets'!$R$2:$R$1000))","v":0},{"$f":"SUMPRODUCT(('Fixed assets'!$R$2:$R$1000)*('Fixed assets'!$P$2:$P$1000<$A670)*('Fixed assets'!$Q$2:$Q$1000=Costs!Z$617))-SUMPRODUCT(('Fixed assets'!$S$2:$S$1000)*('Fixed assets'!$P$2:$P$1000<Costs!$A670)*('Fixed assets'!$Q$2:$Q$1000=Costs!Z$617))-SUMPRODUCT(('Fixed assets'!$Q$2:$Q$1000=Costs!Z$617)*('Fixed assets'!$U$2:$U$1000=Costs!$A670)*('Fixed assets'!$S$2:$S$1000))+SUMPRODUCT(('Fixed assets'!$Q$2:$Q$1000=Costs!Z$617)*('Fixed assets'!$P$2:$P$1000=Costs!$A670)*('Fixed assets'!$U$2:$U$1000=Costs!$A670)*('Fixed assets'!$R$2:$R$1000))","v":0},{"$f":"SUMPRODUCT(('Fixed assets'!$R$2:$R$1000)*('Fixed assets'!$P$2:$P$1000<$A670)*('Fixed assets'!$Q$2:$Q$1000=Costs!AA$617))-SUMPRODUCT(('Fixed assets'!$S$2:$S$1000)*('Fixed assets'!$P$2:$P$1000<Costs!$A670)*('Fixed assets'!$Q$2:$Q$1000=Costs!AA$617))-SUMPRODUCT(('Fixed assets'!$Q$2:$Q$1000=Costs!AA$617)*('Fixed assets'!$U$2:$U$1000=Costs!$A670)*('Fixed assets'!$S$2:$S$1000))+SUMPRODUCT(('Fixed assets'!$Q$2:$Q$1000=Costs!AA$617)*('Fixed assets'!$P$2:$P$1000=Costs!$A670)*('Fixed assets'!$U$2:$U$1000=Costs!$A670)*('Fixed assets'!$R$2:$R$1000))","v":0},{"$f":"SUMPRODUCT(('Fixed assets'!$R$2:$R$1000)*('Fixed assets'!$P$2:$P$1000<$A670)*('Fixed assets'!$Q$2:$Q$1000=Costs!AB$617))-SUMPRODUCT(('Fixed assets'!$S$2:$S$1000)*('Fixed assets'!$P$2:$P$1000<Costs!$A670)*('Fixed assets'!$Q$2:$Q$1000=Costs!AB$617))-SUMPRODUCT(('Fixed assets'!$Q$2:$Q$1000=Costs!AB$617)*('Fixed assets'!$U$2:$U$1000=Costs!$A670)*('Fixed assets'!$S$2:$S$1000))+SUMPRODUCT(('Fixed assets'!$Q$2:$Q$1000=Costs!AB$617)*('Fixed assets'!$P$2:$P$1000=Costs!$A670)*('Fixed assets'!$U$2:$U$1000=Costs!$A670)*('Fixed assets'!$R$2:$R$1000))","v":0},{"$f":"SUMPRODUCT(('Fixed assets'!$R$2:$R$1000)*('Fixed assets'!$P$2:$P$1000<$A670)*('Fixed assets'!$Q$2:$Q$1000=Costs!AC$617))-SUMPRODUCT(('Fixed assets'!$S$2:$S$1000)*('Fixed assets'!$P$2:$P$1000<Costs!$A670)*('Fixed assets'!$Q$2:$Q$1000=Costs!AC$617))-SUMPRODUCT(('Fixed assets'!$Q$2:$Q$1000=Costs!AC$617)*('Fixed assets'!$U$2:$U$1000=Costs!$A670)*('Fixed assets'!$S$2:$S$1000))+SUMPRODUCT(('Fixed assets'!$Q$2:$Q$1000=Costs!AC$617)*('Fixed assets'!$P$2:$P$1000=Costs!$A670)*('Fixed assets'!$U$2:$U$1000=Costs!$A670)*('Fixed assets'!$R$2:$R$1000))","v":0},{"$f":"SUMPRODUCT(('Fixed assets'!$R$2:$R$1000)*('Fixed assets'!$P$2:$P$1000<$A670)*('Fixed assets'!$Q$2:$Q$1000=Costs!AD$617))-SUMPRODUCT(('Fixed assets'!$S$2:$S$1000)*('Fixed assets'!$P$2:$P$1000<Costs!$A670)*('Fixed assets'!$Q$2:$Q$1000=Costs!AD$617))-SUMPRODUCT(('Fixed assets'!$Q$2:$Q$1000=Costs!AD$617)*('Fixed assets'!$U$2:$U$1000=Costs!$A670)*('Fixed assets'!$S$2:$S$1000))+SUMPRODUCT(('Fixed assets'!$Q$2:$Q$1000=Costs!AD$617)*('Fixed assets'!$P$2:$P$1000=Costs!$A670)*('Fixed assets'!$U$2:$U$1000=Costs!$A670)*('Fixed assets'!$R$2:$R$1000))","v":0},{"$f":"SUMPRODUCT(('Fixed assets'!$R$2:$R$1000)*('Fixed assets'!$P$2:$P$1000<$A670)*('Fixed assets'!$Q$2:$Q$1000=Costs!AE$617))-SUMPRODUCT(('Fixed assets'!$S$2:$S$1000)*('Fixed assets'!$P$2:$P$1000<Costs!$A670)*('Fixed assets'!$Q$2:$Q$1000=Costs!AE$617))-SUMPRODUCT(('Fixed assets'!$Q$2:$Q$1000=Costs!AE$617)*('Fixed assets'!$U$2:$U$1000=Costs!$A670)*('Fixed assets'!$S$2:$S$1000))+SUMPRODUCT(('Fixed assets'!$Q$2:$Q$1000=Costs!AE$617)*('Fixed assets'!$P$2:$P$1000=Costs!$A670)*('Fixed assets'!$U$2:$U$1000=Costs!$A670)*('Fixed assets'!$R$2:$R$1000))","v":0},{"$f":"SUMPRODUCT(('Fixed assets'!$R$2:$R$1000)*('Fixed assets'!$P$2:$P$1000<$A670)*('Fixed assets'!$Q$2:$Q$1000=Costs!AF$617))-SUMPRODUCT(('Fixed assets'!$S$2:$S$1000)*('Fixed assets'!$P$2:$P$1000<Costs!$A670)*('Fixed assets'!$Q$2:$Q$1000=Costs!AF$617))-SUMPRODUCT(('Fixed assets'!$Q$2:$Q$1000=Costs!AF$617)*('Fixed assets'!$U$2:$U$1000=Costs!$A670)*('Fixed assets'!$S$2:$S$1000))+SUMPRODUCT(('Fixed assets'!$Q$2:$Q$1000=Costs!AF$617)*('Fixed assets'!$P$2:$P$1000=Costs!$A670)*('Fixed assets'!$U$2:$U$1000=Costs!$A670)*('Fixed assets'!$R$2:$R$1000))","v":0},{"$f":"SUMPRODUCT(('Fixed assets'!$R$2:$R$1000)*('Fixed assets'!$P$2:$P$1000<$A670)*('Fixed assets'!$Q$2:$Q$1000=Costs!AG$617))-SUMPRODUCT(('Fixed assets'!$S$2:$S$1000)*('Fixed assets'!$P$2:$P$1000<Costs!$A670)*('Fixed assets'!$Q$2:$Q$1000=Costs!AG$617))-SUMPRODUCT(('Fixed assets'!$Q$2:$Q$1000=Costs!AG$617)*('Fixed assets'!$U$2:$U$1000=Costs!$A670)*('Fixed assets'!$S$2:$S$1000))+SUMPRODUCT(('Fixed assets'!$Q$2:$Q$1000=Costs!AG$617)*('Fixed assets'!$P$2:$P$1000=Costs!$A670)*('Fixed assets'!$U$2:$U$1000=Costs!$A670)*('Fixed assets'!$R$2:$R$1000))","v":0},{"$f":"SUMPRODUCT(('Fixed assets'!$R$2:$R$1000)*('Fixed assets'!$P$2:$P$1000<$A670)*('Fixed assets'!$Q$2:$Q$1000=Costs!AH$617))-SUMPRODUCT(('Fixed assets'!$S$2:$S$1000)*('Fixed assets'!$P$2:$P$1000<Costs!$A670)*('Fixed assets'!$Q$2:$Q$1000=Costs!AH$617))-SUMPRODUCT(('Fixed assets'!$Q$2:$Q$1000=Costs!AH$617)*('Fixed assets'!$U$2:$U$1000=Costs!$A670)*('Fixed assets'!$S$2:$S$1000))+SUMPRODUCT(('Fixed assets'!$Q$2:$Q$1000=Costs!AH$617)*('Fixed assets'!$P$2:$P$1000=Costs!$A670)*('Fixed assets'!$U$2:$U$1000=Costs!$A670)*('Fixed assets'!$R$2:$R$1000))","v":0},{"$f":"SUMPRODUCT(('Fixed assets'!$R$2:$R$1000)*('Fixed assets'!$P$2:$P$1000<$A670)*('Fixed assets'!$Q$2:$Q$1000=Costs!AI$617))-SUMPRODUCT(('Fixed assets'!$S$2:$S$1000)*('Fixed assets'!$P$2:$P$1000<Costs!$A670)*('Fixed assets'!$Q$2:$Q$1000=Costs!AI$617))-SUMPRODUCT(('Fixed assets'!$Q$2:$Q$1000=Costs!AI$617)*('Fixed assets'!$U$2:$U$1000=Costs!$A670)*('Fixed assets'!$S$2:$S$1000))+SUMPRODUCT(('Fixed assets'!$Q$2:$Q$1000=Costs!AI$617)*('Fixed assets'!$P$2:$P$1000=Costs!$A670)*('Fixed assets'!$U$2:$U$1000=Costs!$A670)*('Fixed assets'!$R$2:$R$1000))","v":0},{"$f":"SUMPRODUCT(('Fixed assets'!$R$2:$R$1000)*('Fixed assets'!$P$2:$P$1000<$A670)*('Fixed assets'!$Q$2:$Q$1000=Costs!AJ$617))-SUMPRODUCT(('Fixed assets'!$S$2:$S$1000)*('Fixed assets'!$P$2:$P$1000<Costs!$A670)*('Fixed assets'!$Q$2:$Q$1000=Costs!AJ$617))-SUMPRODUCT(('Fixed assets'!$Q$2:$Q$1000=Costs!AJ$617)*('Fixed assets'!$U$2:$U$1000=Costs!$A670)*('Fixed assets'!$S$2:$S$1000))+SUMPRODUCT(('Fixed assets'!$Q$2:$Q$1000=Costs!AJ$617)*('Fixed assets'!$P$2:$P$1000=Costs!$A670)*('Fixed assets'!$U$2:$U$1000=Costs!$A670)*('Fixed assets'!$R$2:$R$1000))","v":0},{"$f":"SUMPRODUCT(('Fixed assets'!$R$2:$R$1000)*('Fixed assets'!$P$2:$P$1000<$A670)*('Fixed assets'!$Q$2:$Q$1000=Costs!AK$617))-SUMPRODUCT(('Fixed assets'!$S$2:$S$1000)*('Fixed assets'!$P$2:$P$1000<Costs!$A670)*('Fixed assets'!$Q$2:$Q$1000=Costs!AK$617))-SUMPRODUCT(('Fixed assets'!$Q$2:$Q$1000=Costs!AK$617)*('Fixed assets'!$U$2:$U$1000=Costs!$A670)*('Fixed assets'!$S$2:$S$1000))+SUMPRODUCT(('Fixed assets'!$Q$2:$Q$1000=Costs!AK$617)*('Fixed assets'!$P$2:$P$1000=Costs!$A670)*('Fixed assets'!$U$2:$U$1000=Costs!$A670)*('Fixed assets'!$R$2:$R$1000))","v":0},{"$f":"SUMPRODUCT(('Fixed assets'!$R$2:$R$1000)*('Fixed assets'!$P$2:$P$1000<$A670)*('Fixed assets'!$Q$2:$Q$1000=Costs!AL$617))-SUMPRODUCT(('Fixed assets'!$S$2:$S$1000)*('Fixed assets'!$P$2:$P$1000<Costs!$A670)*('Fixed assets'!$Q$2:$Q$1000=Costs!AL$617))-SUMPRODUCT(('Fixed assets'!$Q$2:$Q$1000=Costs!AL$617)*('Fixed assets'!$U$2:$U$1000=Costs!$A670)*('Fixed assets'!$S$2:$S$1000))+SUMPRODUCT(('Fixed assets'!$Q$2:$Q$1000=Costs!AL$617)*('Fixed assets'!$P$2:$P$1000=Costs!$A670)*('Fixed assets'!$U$2:$U$1000=Costs!$A670)*('Fixed assets'!$R$2:$R$1000))","v":0},{"$f":"SUMPRODUCT(('Fixed assets'!$R$2:$R$1000)*('Fixed assets'!$P$2:$P$1000<$A670)*('Fixed assets'!$Q$2:$Q$1000=Costs!AM$617))-SUMPRODUCT(('Fixed assets'!$S$2:$S$1000)*('Fixed assets'!$P$2:$P$1000<Costs!$A670)*('Fixed assets'!$Q$2:$Q$1000=Costs!AM$617))-SUMPRODUCT(('Fixed assets'!$Q$2:$Q$1000=Costs!AM$617)*('Fixed assets'!$U$2:$U$1000=Costs!$A670)*('Fixed assets'!$S$2:$S$1000))+SUMPRODUCT(('Fixed assets'!$Q$2:$Q$1000=Costs!AM$617)*('Fixed assets'!$P$2:$P$1000=Costs!$A670)*('Fixed assets'!$U$2:$U$1000=Costs!$A670)*('Fixed assets'!$R$2:$R$1000))","v":0},{"$f":"SUMPRODUCT(('Fixed assets'!$R$2:$R$1000)*('Fixed assets'!$P$2:$P$1000<$A670)*('Fixed assets'!$Q$2:$Q$1000=Costs!AN$617))-SUMPRODUCT(('Fixed assets'!$S$2:$S$1000)*('Fixed assets'!$P$2:$P$1000<Costs!$A670)*('Fixed assets'!$Q$2:$Q$1000=Costs!AN$617))-SUMPRODUCT(('Fixed assets'!$Q$2:$Q$1000=Costs!AN$617)*('Fixed assets'!$U$2:$U$1000=Costs!$A670)*('Fixed assets'!$S$2:$S$1000))+SUMPRODUCT(('Fixed assets'!$Q$2:$Q$1000=Costs!AN$617)*('Fixed assets'!$P$2:$P$1000=Costs!$A670)*('Fixed assets'!$U$2:$U$1000=Costs!$A670)*('Fixed assets'!$R$2:$R$1000))","v":0},{"$f":"SUMPRODUCT(('Fixed assets'!$R$2:$R$1000)*('Fixed assets'!$P$2:$P$1000<$A670)*('Fixed assets'!$Q$2:$Q$1000=Costs!AO$617))-SUMPRODUCT(('Fixed assets'!$S$2:$S$1000)*('Fixed assets'!$P$2:$P$1000<Costs!$A670)*('Fixed assets'!$Q$2:$Q$1000=Costs!AO$617))-SUMPRODUCT(('Fixed assets'!$Q$2:$Q$1000=Costs!AO$617)*('Fixed assets'!$U$2:$U$1000=Costs!$A670)*('Fixed assets'!$S$2:$S$1000))+SUMPRODUCT(('Fixed assets'!$Q$2:$Q$1000=Costs!AO$617)*('Fixed assets'!$P$2:$P$1000=Costs!$A670)*('Fixed assets'!$U$2:$U$1000=Costs!$A670)*('Fixed assets'!$R$2:$R$1000))","v":0},{"$f":"SUMPRODUCT(('Fixed assets'!$R$2:$R$1000)*('Fixed assets'!$P$2:$P$1000<$A670)*('Fixed assets'!$Q$2:$Q$1000=Costs!AP$617))-SUMPRODUCT(('Fixed assets'!$S$2:$S$1000)*('Fixed assets'!$P$2:$P$1000<Costs!$A670)*('Fixed assets'!$Q$2:$Q$1000=Costs!AP$617))-SUMPRODUCT(('Fixed assets'!$Q$2:$Q$1000=Costs!AP$617)*('Fixed assets'!$U$2:$U$1000=Costs!$A670)*('Fixed assets'!$S$2:$S$1000))+SUMPRODUCT(('Fixed assets'!$Q$2:$Q$1000=Costs!AP$617)*('Fixed assets'!$P$2:$P$1000=Costs!$A670)*('Fixed assets'!$U$2:$U$1000=Costs!$A670)*('Fixed assets'!$R$2:$R$1000))","v":0},{"$f":"SUMPRODUCT(('Fixed assets'!$R$2:$R$1000)*('Fixed assets'!$P$2:$P$1000<$A670)*('Fixed assets'!$Q$2:$Q$1000=Costs!AQ$617))-SUMPRODUCT(('Fixed assets'!$S$2:$S$1000)*('Fixed assets'!$P$2:$P$1000<Costs!$A670)*('Fixed assets'!$Q$2:$Q$1000=Costs!AQ$617))-SUMPRODUCT(('Fixed assets'!$Q$2:$Q$1000=Costs!AQ$617)*('Fixed assets'!$U$2:$U$1000=Costs!$A670)*('Fixed assets'!$S$2:$S$1000))+SUMPRODUCT(('Fixed assets'!$Q$2:$Q$1000=Costs!AQ$617)*('Fixed assets'!$P$2:$P$1000=Costs!$A670)*('Fixed assets'!$U$2:$U$1000=Costs!$A670)*('Fixed assets'!$R$2:$R$1000))","v":0}]
[2068,0,{"$f":"SUMPRODUCT(('Fixed assets'!$R$2:$R$1000)*('Fixed assets'!$P$2:$P$1000<$A671)*('Fixed assets'!$Q$2:$Q$1000=Costs!C$617))-SUMPRODUCT(('Fixed assets'!$S$2:$S$1000)*('Fixed assets'!$P$2:$P$1000<Costs!$A671)*('Fixed assets'!$Q$2:$Q$1000=Costs!C$617))-SUMPRODUCT(('Fixed assets'!$Q$2:$Q$1000=Costs!C$617)*('Fixed assets'!$U$2:$U$1000=Costs!$A671)*('Fixed assets'!$S$2:$S$1000))+SUMPRODUCT(('Fixed assets'!$Q$2:$Q$1000=Costs!C$617)*('Fixed assets'!$P$2:$P$1000=Costs!$A671)*('Fixed assets'!$U$2:$U$1000=Costs!$A671)*('Fixed assets'!$R$2:$R$1000))","v":0},{"$f":"SUMPRODUCT(('Fixed assets'!$R$2:$R$1000)*('Fixed assets'!$P$2:$P$1000<$A671)*('Fixed assets'!$Q$2:$Q$1000=Costs!D$617))-SUMPRODUCT(('Fixed assets'!$S$2:$S$1000)*('Fixed assets'!$P$2:$P$1000<Costs!$A671)*('Fixed assets'!$Q$2:$Q$1000=Costs!D$617))-SUMPRODUCT(('Fixed assets'!$Q$2:$Q$1000=Costs!D$617)*('Fixed assets'!$U$2:$U$1000=Costs!$A671)*('Fixed assets'!$S$2:$S$1000))+SUMPRODUCT(('Fixed assets'!$Q$2:$Q$1000=Costs!D$617)*('Fixed assets'!$P$2:$P$1000=Costs!$A671)*('Fixed assets'!$U$2:$U$1000=Costs!$A671)*('Fixed assets'!$R$2:$R$1000))","v":0},{"$f":"SUMPRODUCT(('Fixed assets'!$R$2:$R$1000)*('Fixed assets'!$P$2:$P$1000<$A671)*('Fixed assets'!$Q$2:$Q$1000=Costs!E$617))-SUMPRODUCT(('Fixed assets'!$S$2:$S$1000)*('Fixed assets'!$P$2:$P$1000<Costs!$A671)*('Fixed assets'!$Q$2:$Q$1000=Costs!E$617))-SUMPRODUCT(('Fixed assets'!$Q$2:$Q$1000=Costs!E$617)*('Fixed assets'!$U$2:$U$1000=Costs!$A671)*('Fixed assets'!$S$2:$S$1000))+SUMPRODUCT(('Fixed assets'!$Q$2:$Q$1000=Costs!E$617)*('Fixed assets'!$P$2:$P$1000=Costs!$A671)*('Fixed assets'!$U$2:$U$1000=Costs!$A671)*('Fixed assets'!$R$2:$R$1000))","v":0},{"$f":"SUMPRODUCT(('Fixed assets'!$R$2:$R$1000)*('Fixed assets'!$P$2:$P$1000<$A671)*('Fixed assets'!$Q$2:$Q$1000=Costs!F$617))-SUMPRODUCT(('Fixed assets'!$S$2:$S$1000)*('Fixed assets'!$P$2:$P$1000<Costs!$A671)*('Fixed assets'!$Q$2:$Q$1000=Costs!F$617))-SUMPRODUCT(('Fixed assets'!$Q$2:$Q$1000=Costs!F$617)*('Fixed assets'!$U$2:$U$1000=Costs!$A671)*('Fixed assets'!$S$2:$S$1000))+SUMPRODUCT(('Fixed assets'!$Q$2:$Q$1000=Costs!F$617)*('Fixed assets'!$P$2:$P$1000=Costs!$A671)*('Fixed assets'!$U$2:$U$1000=Costs!$A671)*('Fixed assets'!$R$2:$R$1000))","v":0},{"$f":"SUMPRODUCT(('Fixed assets'!$R$2:$R$1000)*('Fixed assets'!$P$2:$P$1000<$A671)*('Fixed assets'!$Q$2:$Q$1000=Costs!G$617))-SUMPRODUCT(('Fixed assets'!$S$2:$S$1000)*('Fixed assets'!$P$2:$P$1000<Costs!$A671)*('Fixed assets'!$Q$2:$Q$1000=Costs!G$617))-SUMPRODUCT(('Fixed assets'!$Q$2:$Q$1000=Costs!G$617)*('Fixed assets'!$U$2:$U$1000=Costs!$A671)*('Fixed assets'!$S$2:$S$1000))+SUMPRODUCT(('Fixed assets'!$Q$2:$Q$1000=Costs!G$617)*('Fixed assets'!$P$2:$P$1000=Costs!$A671)*('Fixed assets'!$U$2:$U$1000=Costs!$A671)*('Fixed assets'!$R$2:$R$1000))","v":0},{"$f":"SUMPRODUCT(('Fixed assets'!$R$2:$R$1000)*('Fixed assets'!$P$2:$P$1000<$A671)*('Fixed assets'!$Q$2:$Q$1000=Costs!H$617))-SUMPRODUCT(('Fixed assets'!$S$2:$S$1000)*('Fixed assets'!$P$2:$P$1000<Costs!$A671)*('Fixed assets'!$Q$2:$Q$1000=Costs!H$617))-SUMPRODUCT(('Fixed assets'!$Q$2:$Q$1000=Costs!H$617)*('Fixed assets'!$U$2:$U$1000=Costs!$A671)*('Fixed assets'!$S$2:$S$1000))+SUMPRODUCT(('Fixed assets'!$Q$2:$Q$1000=Costs!H$617)*('Fixed assets'!$P$2:$P$1000=Costs!$A671)*('Fixed assets'!$U$2:$U$1000=Costs!$A671)*('Fixed assets'!$R$2:$R$1000))","v":0},{"$f":"SUMPRODUCT(('Fixed assets'!$R$2:$R$1000)*('Fixed assets'!$P$2:$P$1000<$A671)*('Fixed assets'!$Q$2:$Q$1000=Costs!I$617))-SUMPRODUCT(('Fixed assets'!$S$2:$S$1000)*('Fixed assets'!$P$2:$P$1000<Costs!$A671)*('Fixed assets'!$Q$2:$Q$1000=Costs!I$617))-SUMPRODUCT(('Fixed assets'!$Q$2:$Q$1000=Costs!I$617)*('Fixed assets'!$U$2:$U$1000=Costs!$A671)*('Fixed assets'!$S$2:$S$1000))+SUMPRODUCT(('Fixed assets'!$Q$2:$Q$1000=Costs!I$617)*('Fixed assets'!$P$2:$P$1000=Costs!$A671)*('Fixed assets'!$U$2:$U$1000=Costs!$A671)*('Fixed assets'!$R$2:$R$1000))","v":0},{"$f":"SUMPRODUCT(('Fixed assets'!$R$2:$R$1000)*('Fixed assets'!$P$2:$P$1000<$A671)*('Fixed assets'!$Q$2:$Q$1000=Costs!J$617))-SUMPRODUCT(('Fixed assets'!$S$2:$S$1000)*('Fixed assets'!$P$2:$P$1000<Costs!$A671)*('Fixed assets'!$Q$2:$Q$1000=Costs!J$617))-SUMPRODUCT(('Fixed assets'!$Q$2:$Q$1000=Costs!J$617)*('Fixed assets'!$U$2:$U$1000=Costs!$A671)*('Fixed assets'!$S$2:$S$1000))+SUMPRODUCT(('Fixed assets'!$Q$2:$Q$1000=Costs!J$617)*('Fixed assets'!$P$2:$P$1000=Costs!$A671)*('Fixed assets'!$U$2:$U$1000=Costs!$A671)*('Fixed assets'!$R$2:$R$1000))","v":0},{"$f":"SUMPRODUCT(('Fixed assets'!$R$2:$R$1000)*('Fixed assets'!$P$2:$P$1000<$A671)*('Fixed assets'!$Q$2:$Q$1000=Costs!K$617))-SUMPRODUCT(('Fixed assets'!$S$2:$S$1000)*('Fixed assets'!$P$2:$P$1000<Costs!$A671)*('Fixed assets'!$Q$2:$Q$1000=Costs!K$617))-SUMPRODUCT(('Fixed assets'!$Q$2:$Q$1000=Costs!K$617)*('Fixed assets'!$U$2:$U$1000=Costs!$A671)*('Fixed assets'!$S$2:$S$1000))+SUMPRODUCT(('Fixed assets'!$Q$2:$Q$1000=Costs!K$617)*('Fixed assets'!$P$2:$P$1000=Costs!$A671)*('Fixed assets'!$U$2:$U$1000=Costs!$A671)*('Fixed assets'!$R$2:$R$1000))","v":0},{"$f":"SUMPRODUCT(('Fixed assets'!$R$2:$R$1000)*('Fixed assets'!$P$2:$P$1000<$A671)*('Fixed assets'!$Q$2:$Q$1000=Costs!L$617))-SUMPRODUCT(('Fixed assets'!$S$2:$S$1000)*('Fixed assets'!$P$2:$P$1000<Costs!$A671)*('Fixed assets'!$Q$2:$Q$1000=Costs!L$617))-SUMPRODUCT(('Fixed assets'!$Q$2:$Q$1000=Costs!L$617)*('Fixed assets'!$U$2:$U$1000=Costs!$A671)*('Fixed assets'!$S$2:$S$1000))+SUMPRODUCT(('Fixed assets'!$Q$2:$Q$1000=Costs!L$617)*('Fixed assets'!$P$2:$P$1000=Costs!$A671)*('Fixed assets'!$U$2:$U$1000=Costs!$A671)*('Fixed assets'!$R$2:$R$1000))","v":0},{"$f":"SUMPRODUCT(('Fixed assets'!$R$2:$R$1000)*('Fixed assets'!$P$2:$P$1000<$A671)*('Fixed assets'!$Q$2:$Q$1000=Costs!M$617))-SUMPRODUCT(('Fixed assets'!$S$2:$S$1000)*('Fixed assets'!$P$2:$P$1000<Costs!$A671)*('Fixed assets'!$Q$2:$Q$1000=Costs!M$617))-SUMPRODUCT(('Fixed assets'!$Q$2:$Q$1000=Costs!M$617)*('Fixed assets'!$U$2:$U$1000=Costs!$A671)*('Fixed assets'!$S$2:$S$1000))+SUMPRODUCT(('Fixed assets'!$Q$2:$Q$1000=Costs!M$617)*('Fixed assets'!$P$2:$P$1000=Costs!$A671)*('Fixed assets'!$U$2:$U$1000=Costs!$A671)*('Fixed assets'!$R$2:$R$1000))","v":0},{"$f":"SUMPRODUCT(('Fixed assets'!$R$2:$R$1000)*('Fixed assets'!$P$2:$P$1000<$A671)*('Fixed assets'!$Q$2:$Q$1000=Costs!N$617))-SUMPRODUCT(('Fixed assets'!$S$2:$S$1000)*('Fixed assets'!$P$2:$P$1000<Costs!$A671)*('Fixed assets'!$Q$2:$Q$1000=Costs!N$617))-SUMPRODUCT(('Fixed assets'!$Q$2:$Q$1000=Costs!N$617)*('Fixed assets'!$U$2:$U$1000=Costs!$A671)*('Fixed assets'!$S$2:$S$1000))+SUMPRODUCT(('Fixed assets'!$Q$2:$Q$1000=Costs!N$617)*('Fixed assets'!$P$2:$P$1000=Costs!$A671)*('Fixed assets'!$U$2:$U$1000=Costs!$A671)*('Fixed assets'!$R$2:$R$1000))","v":0},{"$f":"SUMPRODUCT(('Fixed assets'!$R$2:$R$1000)*('Fixed assets'!$P$2:$P$1000<$A671)*('Fixed assets'!$Q$2:$Q$1000=Costs!O$617))-SUMPRODUCT(('Fixed assets'!$S$2:$S$1000)*('Fixed assets'!$P$2:$P$1000<Costs!$A671)*('Fixed assets'!$Q$2:$Q$1000=Costs!O$617))-SUMPRODUCT(('Fixed assets'!$Q$2:$Q$1000=Costs!O$617)*('Fixed assets'!$U$2:$U$1000=Costs!$A671)*('Fixed assets'!$S$2:$S$1000))+SUMPRODUCT(('Fixed assets'!$Q$2:$Q$1000=Costs!O$617)*('Fixed assets'!$P$2:$P$1000=Costs!$A671)*('Fixed assets'!$U$2:$U$1000=Costs!$A671)*('Fixed assets'!$R$2:$R$1000))","v":0},{"$f":"SUMPRODUCT(('Fixed assets'!$R$2:$R$1000)*('Fixed assets'!$P$2:$P$1000<$A671)*('Fixed assets'!$Q$2:$Q$1000=Costs!P$617))-SUMPRODUCT(('Fixed assets'!$S$2:$S$1000)*('Fixed assets'!$P$2:$P$1000<Costs!$A671)*('Fixed assets'!$Q$2:$Q$1000=Costs!P$617))-SUMPRODUCT(('Fixed assets'!$Q$2:$Q$1000=Costs!P$617)*('Fixed assets'!$U$2:$U$1000=Costs!$A671)*('Fixed assets'!$S$2:$S$1000))+SUMPRODUCT(('Fixed assets'!$Q$2:$Q$1000=Costs!P$617)*('Fixed assets'!$P$2:$P$1000=Costs!$A671)*('Fixed assets'!$U$2:$U$1000=Costs!$A671)*('Fixed assets'!$R$2:$R$1000))","v":0},{"$f":"SUMPRODUCT(('Fixed assets'!$R$2:$R$1000)*('Fixed assets'!$P$2:$P$1000<$A671)*('Fixed assets'!$Q$2:$Q$1000=Costs!Q$617))-SUMPRODUCT(('Fixed assets'!$S$2:$S$1000)*('Fixed assets'!$P$2:$P$1000<Costs!$A671)*('Fixed assets'!$Q$2:$Q$1000=Costs!Q$617))-SUMPRODUCT(('Fixed assets'!$Q$2:$Q$1000=Costs!Q$617)*('Fixed assets'!$U$2:$U$1000=Costs!$A671)*('Fixed assets'!$S$2:$S$1000))+SUMPRODUCT(('Fixed assets'!$Q$2:$Q$1000=Costs!Q$617)*('Fixed assets'!$P$2:$P$1000=Costs!$A671)*('Fixed assets'!$U$2:$U$1000=Costs!$A671)*('Fixed assets'!$R$2:$R$1000))","v":0},{"$f":"SUMPRODUCT(('Fixed assets'!$R$2:$R$1000)*('Fixed assets'!$P$2:$P$1000<$A671)*('Fixed assets'!$Q$2:$Q$1000=Costs!R$617))-SUMPRODUCT(('Fixed assets'!$S$2:$S$1000)*('Fixed assets'!$P$2:$P$1000<Costs!$A671)*('Fixed assets'!$Q$2:$Q$1000=Costs!R$617))-SUMPRODUCT(('Fixed assets'!$Q$2:$Q$1000=Costs!R$617)*('Fixed assets'!$U$2:$U$1000=Costs!$A671)*('Fixed assets'!$S$2:$S$1000))+SUMPRODUCT(('Fixed assets'!$Q$2:$Q$1000=Costs!R$617)*('Fixed assets'!$P$2:$P$1000=Costs!$A671)*('Fixed assets'!$U$2:$U$1000=Costs!$A671)*('Fixed assets'!$R$2:$R$1000))","v":0},{"$f":"SUMPRODUCT(('Fixed assets'!$R$2:$R$1000)*('Fixed assets'!$P$2:$P$1000<$A671)*('Fixed assets'!$Q$2:$Q$1000=Costs!S$617))-SUMPRODUCT(('Fixed assets'!$S$2:$S$1000)*('Fixed assets'!$P$2:$P$1000<Costs!$A671)*('Fixed assets'!$Q$2:$Q$1000=Costs!S$617))-SUMPRODUCT(('Fixed assets'!$Q$2:$Q$1000=Costs!S$617)*('Fixed assets'!$U$2:$U$1000=Costs!$A671)*('Fixed assets'!$S$2:$S$1000))+SUMPRODUCT(('Fixed assets'!$Q$2:$Q$1000=Costs!S$617)*('Fixed assets'!$P$2:$P$1000=Costs!$A671)*('Fixed assets'!$U$2:$U$1000=Costs!$A671)*('Fixed assets'!$R$2:$R$1000))","v":0},{"$f":"SUMPRODUCT(('Fixed assets'!$R$2:$R$1000)*('Fixed assets'!$P$2:$P$1000<$A671)*('Fixed assets'!$Q$2:$Q$1000=Costs!T$617))-SUMPRODUCT(('Fixed assets'!$S$2:$S$1000)*('Fixed assets'!$P$2:$P$1000<Costs!$A671)*('Fixed assets'!$Q$2:$Q$1000=Costs!T$617))-SUMPRODUCT(('Fixed assets'!$Q$2:$Q$1000=Costs!T$617)*('Fixed assets'!$U$2:$U$1000=Costs!$A671)*('Fixed assets'!$S$2:$S$1000))+SUMPRODUCT(('Fixed assets'!$Q$2:$Q$1000=Costs!T$617)*('Fixed assets'!$P$2:$P$1000=Costs!$A671)*('Fixed assets'!$U$2:$U$1000=Costs!$A671)*('Fixed assets'!$R$2:$R$1000))","v":0},{"$f":"SUMPRODUCT(('Fixed assets'!$R$2:$R$1000)*('Fixed assets'!$P$2:$P$1000<$A671)*('Fixed assets'!$Q$2:$Q$1000=Costs!U$617))-SUMPRODUCT(('Fixed assets'!$S$2:$S$1000)*('Fixed assets'!$P$2:$P$1000<Costs!$A671)*('Fixed assets'!$Q$2:$Q$1000=Costs!U$617))-SUMPRODUCT(('Fixed assets'!$Q$2:$Q$1000=Costs!U$617)*('Fixed assets'!$U$2:$U$1000=Costs!$A671)*('Fixed assets'!$S$2:$S$1000))+SUMPRODUCT(('Fixed assets'!$Q$2:$Q$1000=Costs!U$617)*('Fixed assets'!$P$2:$P$1000=Costs!$A671)*('Fixed assets'!$U$2:$U$1000=Costs!$A671)*('Fixed assets'!$R$2:$R$1000))","v":0},{"$f":"SUMPRODUCT(('Fixed assets'!$R$2:$R$1000)*('Fixed assets'!$P$2:$P$1000<$A671)*('Fixed assets'!$Q$2:$Q$1000=Costs!V$617))-SUMPRODUCT(('Fixed assets'!$S$2:$S$1000)*('Fixed assets'!$P$2:$P$1000<Costs!$A671)*('Fixed assets'!$Q$2:$Q$1000=Costs!V$617))-SUMPRODUCT(('Fixed assets'!$Q$2:$Q$1000=Costs!V$617)*('Fixed assets'!$U$2:$U$1000=Costs!$A671)*('Fixed assets'!$S$2:$S$1000))+SUMPRODUCT(('Fixed assets'!$Q$2:$Q$1000=Costs!V$617)*('Fixed assets'!$P$2:$P$1000=Costs!$A671)*('Fixed assets'!$U$2:$U$1000=Costs!$A671)*('Fixed assets'!$R$2:$R$1000))","v":0},{"$f":"SUMPRODUCT(('Fixed assets'!$R$2:$R$1000)*('Fixed assets'!$P$2:$P$1000<$A671)*('Fixed assets'!$Q$2:$Q$1000=Costs!W$617))-SUMPRODUCT(('Fixed assets'!$S$2:$S$1000)*('Fixed assets'!$P$2:$P$1000<Costs!$A671)*('Fixed assets'!$Q$2:$Q$1000=Costs!W$617))-SUMPRODUCT(('Fixed assets'!$Q$2:$Q$1000=Costs!W$617)*('Fixed assets'!$U$2:$U$1000=Costs!$A671)*('Fixed assets'!$S$2:$S$1000))+SUMPRODUCT(('Fixed assets'!$Q$2:$Q$1000=Costs!W$617)*('Fixed assets'!$P$2:$P$1000=Costs!$A671)*('Fixed assets'!$U$2:$U$1000=Costs!$A671)*('Fixed assets'!$R$2:$R$1000))","v":0},{"$f":"SUMPRODUCT(('Fixed assets'!$R$2:$R$1000)*('Fixed assets'!$P$2:$P$1000<$A671)*('Fixed assets'!$Q$2:$Q$1000=Costs!X$617))-SUMPRODUCT(('Fixed assets'!$S$2:$S$1000)*('Fixed assets'!$P$2:$P$1000<Costs!$A671)*('Fixed assets'!$Q$2:$Q$1000=Costs!X$617))-SUMPRODUCT(('Fixed assets'!$Q$2:$Q$1000=Costs!X$617)*('Fixed assets'!$U$2:$U$1000=Costs!$A671)*('Fixed assets'!$S$2:$S$1000))+SUMPRODUCT(('Fixed assets'!$Q$2:$Q$1000=Costs!X$617)*('Fixed assets'!$P$2:$P$1000=Costs!$A671)*('Fixed assets'!$U$2:$U$1000=Costs!$A671)*('Fixed assets'!$R$2:$R$1000))","v":0},{"$f":"SUMPRODUCT(('Fixed assets'!$R$2:$R$1000)*('Fixed assets'!$P$2:$P$1000<$A671)*('Fixed assets'!$Q$2:$Q$1000=Costs!Y$617))-SUMPRODUCT(('Fixed assets'!$S$2:$S$1000)*('Fixed assets'!$P$2:$P$1000<Costs!$A671)*('Fixed assets'!$Q$2:$Q$1000=Costs!Y$617))-SUMPRODUCT(('Fixed assets'!$Q$2:$Q$1000=Costs!Y$617)*('Fixed assets'!$U$2:$U$1000=Costs!$A671)*('Fixed assets'!$S$2:$S$1000))+SUMPRODUCT(('Fixed assets'!$Q$2:$Q$1000=Costs!Y$617)*('Fixed assets'!$P$2:$P$1000=Costs!$A671)*('Fixed assets'!$U$2:$U$1000=Costs!$A671)*('Fixed assets'!$R$2:$R$1000))","v":0},{"$f":"SUMPRODUCT(('Fixed assets'!$R$2:$R$1000)*('Fixed assets'!$P$2:$P$1000<$A671)*('Fixed assets'!$Q$2:$Q$1000=Costs!Z$617))-SUMPRODUCT(('Fixed assets'!$S$2:$S$1000)*('Fixed assets'!$P$2:$P$1000<Costs!$A671)*('Fixed assets'!$Q$2:$Q$1000=Costs!Z$617))-SUMPRODUCT(('Fixed assets'!$Q$2:$Q$1000=Costs!Z$617)*('Fixed assets'!$U$2:$U$1000=Costs!$A671)*('Fixed assets'!$S$2:$S$1000))+SUMPRODUCT(('Fixed assets'!$Q$2:$Q$1000=Costs!Z$617)*('Fixed assets'!$P$2:$P$1000=Costs!$A671)*('Fixed assets'!$U$2:$U$1000=Costs!$A671)*('Fixed assets'!$R$2:$R$1000))","v":0},{"$f":"SUMPRODUCT(('Fixed assets'!$R$2:$R$1000)*('Fixed assets'!$P$2:$P$1000<$A671)*('Fixed assets'!$Q$2:$Q$1000=Costs!AA$617))-SUMPRODUCT(('Fixed assets'!$S$2:$S$1000)*('Fixed assets'!$P$2:$P$1000<Costs!$A671)*('Fixed assets'!$Q$2:$Q$1000=Costs!AA$617))-SUMPRODUCT(('Fixed assets'!$Q$2:$Q$1000=Costs!AA$617)*('Fixed assets'!$U$2:$U$1000=Costs!$A671)*('Fixed assets'!$S$2:$S$1000))+SUMPRODUCT(('Fixed assets'!$Q$2:$Q$1000=Costs!AA$617)*('Fixed assets'!$P$2:$P$1000=Costs!$A671)*('Fixed assets'!$U$2:$U$1000=Costs!$A671)*('Fixed assets'!$R$2:$R$1000))","v":0},{"$f":"SUMPRODUCT(('Fixed assets'!$R$2:$R$1000)*('Fixed assets'!$P$2:$P$1000<$A671)*('Fixed assets'!$Q$2:$Q$1000=Costs!AB$617))-SUMPRODUCT(('Fixed assets'!$S$2:$S$1000)*('Fixed assets'!$P$2:$P$1000<Costs!$A671)*('Fixed assets'!$Q$2:$Q$1000=Costs!AB$617))-SUMPRODUCT(('Fixed assets'!$Q$2:$Q$1000=Costs!AB$617)*('Fixed assets'!$U$2:$U$1000=Costs!$A671)*('Fixed assets'!$S$2:$S$1000))+SUMPRODUCT(('Fixed assets'!$Q$2:$Q$1000=Costs!AB$617)*('Fixed assets'!$P$2:$P$1000=Costs!$A671)*('Fixed assets'!$U$2:$U$1000=Costs!$A671)*('Fixed assets'!$R$2:$R$1000))","v":0},{"$f":"SUMPRODUCT(('Fixed assets'!$R$2:$R$1000)*('Fixed assets'!$P$2:$P$1000<$A671)*('Fixed assets'!$Q$2:$Q$1000=Costs!AC$617))-SUMPRODUCT(('Fixed assets'!$S$2:$S$1000)*('Fixed assets'!$P$2:$P$1000<Costs!$A671)*('Fixed assets'!$Q$2:$Q$1000=Costs!AC$617))-SUMPRODUCT(('Fixed assets'!$Q$2:$Q$1000=Costs!AC$617)*('Fixed assets'!$U$2:$U$1000=Costs!$A671)*('Fixed assets'!$S$2:$S$1000))+SUMPRODUCT(('Fixed assets'!$Q$2:$Q$1000=Costs!AC$617)*('Fixed assets'!$P$2:$P$1000=Costs!$A671)*('Fixed assets'!$U$2:$U$1000=Costs!$A671)*('Fixed assets'!$R$2:$R$1000))","v":0},{"$f":"SUMPRODUCT(('Fixed assets'!$R$2:$R$1000)*('Fixed assets'!$P$2:$P$1000<$A671)*('Fixed assets'!$Q$2:$Q$1000=Costs!AD$617))-SUMPRODUCT(('Fixed assets'!$S$2:$S$1000)*('Fixed assets'!$P$2:$P$1000<Costs!$A671)*('Fixed assets'!$Q$2:$Q$1000=Costs!AD$617))-SUMPRODUCT(('Fixed assets'!$Q$2:$Q$1000=Costs!AD$617)*('Fixed assets'!$U$2:$U$1000=Costs!$A671)*('Fixed assets'!$S$2:$S$1000))+SUMPRODUCT(('Fixed assets'!$Q$2:$Q$1000=Costs!AD$617)*('Fixed assets'!$P$2:$P$1000=Costs!$A671)*('Fixed assets'!$U$2:$U$1000=Costs!$A671)*('Fixed assets'!$R$2:$R$1000))","v":0},{"$f":"SUMPRODUCT(('Fixed assets'!$R$2:$R$1000)*('Fixed assets'!$P$2:$P$1000<$A671)*('Fixed assets'!$Q$2:$Q$1000=Costs!AE$617))-SUMPRODUCT(('Fixed assets'!$S$2:$S$1000)*('Fixed assets'!$P$2:$P$1000<Costs!$A671)*('Fixed assets'!$Q$2:$Q$1000=Costs!AE$617))-SUMPRODUCT(('Fixed assets'!$Q$2:$Q$1000=Costs!AE$617)*('Fixed assets'!$U$2:$U$1000=Costs!$A671)*('Fixed assets'!$S$2:$S$1000))+SUMPRODUCT(('Fixed assets'!$Q$2:$Q$1000=Costs!AE$617)*('Fixed assets'!$P$2:$P$1000=Costs!$A671)*('Fixed assets'!$U$2:$U$1000=Costs!$A671)*('Fixed assets'!$R$2:$R$1000))","v":0},{"$f":"SUMPRODUCT(('Fixed assets'!$R$2:$R$1000)*('Fixed assets'!$P$2:$P$1000<$A671)*('Fixed assets'!$Q$2:$Q$1000=Costs!AF$617))-SUMPRODUCT(('Fixed assets'!$S$2:$S$1000)*('Fixed assets'!$P$2:$P$1000<Costs!$A671)*('Fixed assets'!$Q$2:$Q$1000=Costs!AF$617))-SUMPRODUCT(('Fixed assets'!$Q$2:$Q$1000=Costs!AF$617)*('Fixed assets'!$U$2:$U$1000=Costs!$A671)*('Fixed assets'!$S$2:$S$1000))+SUMPRODUCT(('Fixed assets'!$Q$2:$Q$1000=Costs!AF$617)*('Fixed assets'!$P$2:$P$1000=Costs!$A671)*('Fixed assets'!$U$2:$U$1000=Costs!$A671)*('Fixed assets'!$R$2:$R$1000))","v":0},{"$f":"SUMPRODUCT(('Fixed assets'!$R$2:$R$1000)*('Fixed assets'!$P$2:$P$1000<$A671)*('Fixed assets'!$Q$2:$Q$1000=Costs!AG$617))-SUMPRODUCT(('Fixed assets'!$S$2:$S$1000)*('Fixed assets'!$P$2:$P$1000<Costs!$A671)*('Fixed assets'!$Q$2:$Q$1000=Costs!AG$617))-SUMPRODUCT(('Fixed assets'!$Q$2:$Q$1000=Costs!AG$617)*('Fixed assets'!$U$2:$U$1000=Costs!$A671)*('Fixed assets'!$S$2:$S$1000))+SUMPRODUCT(('Fixed assets'!$Q$2:$Q$1000=Costs!AG$617)*('Fixed assets'!$P$2:$P$1000=Costs!$A671)*('Fixed assets'!$U$2:$U$1000=Costs!$A671)*('Fixed assets'!$R$2:$R$1000))","v":0},{"$f":"SUMPRODUCT(('Fixed assets'!$R$2:$R$1000)*('Fixed assets'!$P$2:$P$1000<$A671)*('Fixed assets'!$Q$2:$Q$1000=Costs!AH$617))-SUMPRODUCT(('Fixed assets'!$S$2:$S$1000)*('Fixed assets'!$P$2:$P$1000<Costs!$A671)*('Fixed assets'!$Q$2:$Q$1000=Costs!AH$617))-SUMPRODUCT(('Fixed assets'!$Q$2:$Q$1000=Costs!AH$617)*('Fixed assets'!$U$2:$U$1000=Costs!$A671)*('Fixed assets'!$S$2:$S$1000))+SUMPRODUCT(('Fixed assets'!$Q$2:$Q$1000=Costs!AH$617)*('Fixed assets'!$P$2:$P$1000=Costs!$A671)*('Fixed assets'!$U$2:$U$1000=Costs!$A671)*('Fixed assets'!$R$2:$R$1000))","v":0},{"$f":"SUMPRODUCT(('Fixed assets'!$R$2:$R$1000)*('Fixed assets'!$P$2:$P$1000<$A671)*('Fixed assets'!$Q$2:$Q$1000=Costs!AI$617))-SUMPRODUCT(('Fixed assets'!$S$2:$S$1000)*('Fixed assets'!$P$2:$P$1000<Costs!$A671)*('Fixed assets'!$Q$2:$Q$1000=Costs!AI$617))-SUMPRODUCT(('Fixed assets'!$Q$2:$Q$1000=Costs!AI$617)*('Fixed assets'!$U$2:$U$1000=Costs!$A671)*('Fixed assets'!$S$2:$S$1000))+SUMPRODUCT(('Fixed assets'!$Q$2:$Q$1000=Costs!AI$617)*('Fixed assets'!$P$2:$P$1000=Costs!$A671)*('Fixed assets'!$U$2:$U$1000=Costs!$A671)*('Fixed assets'!$R$2:$R$1000))","v":0},{"$f":"SUMPRODUCT(('Fixed assets'!$R$2:$R$1000)*('Fixed assets'!$P$2:$P$1000<$A671)*('Fixed assets'!$Q$2:$Q$1000=Costs!AJ$617))-SUMPRODUCT(('Fixed assets'!$S$2:$S$1000)*('Fixed assets'!$P$2:$P$1000<Costs!$A671)*('Fixed assets'!$Q$2:$Q$1000=Costs!AJ$617))-SUMPRODUCT(('Fixed assets'!$Q$2:$Q$1000=Costs!AJ$617)*('Fixed assets'!$U$2:$U$1000=Costs!$A671)*('Fixed assets'!$S$2:$S$1000))+SUMPRODUCT(('Fixed assets'!$Q$2:$Q$1000=Costs!AJ$617)*('Fixed assets'!$P$2:$P$1000=Costs!$A671)*('Fixed assets'!$U$2:$U$1000=Costs!$A671)*('Fixed assets'!$R$2:$R$1000))","v":0},{"$f":"SUMPRODUCT(('Fixed assets'!$R$2:$R$1000)*('Fixed assets'!$P$2:$P$1000<$A671)*('Fixed assets'!$Q$2:$Q$1000=Costs!AK$617))-SUMPRODUCT(('Fixed assets'!$S$2:$S$1000)*('Fixed assets'!$P$2:$P$1000<Costs!$A671)*('Fixed assets'!$Q$2:$Q$1000=Costs!AK$617))-SUMPRODUCT(('Fixed assets'!$Q$2:$Q$1000=Costs!AK$617)*('Fixed assets'!$U$2:$U$1000=Costs!$A671)*('Fixed assets'!$S$2:$S$1000))+SUMPRODUCT(('Fixed assets'!$Q$2:$Q$1000=Costs!AK$617)*('Fixed assets'!$P$2:$P$1000=Costs!$A671)*('Fixed assets'!$U$2:$U$1000=Costs!$A671)*('Fixed assets'!$R$2:$R$1000))","v":0},{"$f":"SUMPRODUCT(('Fixed assets'!$R$2:$R$1000)*('Fixed assets'!$P$2:$P$1000<$A671)*('Fixed assets'!$Q$2:$Q$1000=Costs!AL$617))-SUMPRODUCT(('Fixed assets'!$S$2:$S$1000)*('Fixed assets'!$P$2:$P$1000<Costs!$A671)*('Fixed assets'!$Q$2:$Q$1000=Costs!AL$617))-SUMPRODUCT(('Fixed assets'!$Q$2:$Q$1000=Costs!AL$617)*('Fixed assets'!$U$2:$U$1000=Costs!$A671)*('Fixed assets'!$S$2:$S$1000))+SUMPRODUCT(('Fixed assets'!$Q$2:$Q$1000=Costs!AL$617)*('Fixed assets'!$P$2:$P$1000=Costs!$A671)*('Fixed assets'!$U$2:$U$1000=Costs!$A671)*('Fixed assets'!$R$2:$R$1000))","v":0},{"$f":"SUMPRODUCT(('Fixed assets'!$R$2:$R$1000)*('Fixed assets'!$P$2:$P$1000<$A671)*('Fixed assets'!$Q$2:$Q$1000=Costs!AM$617))-SUMPRODUCT(('Fixed assets'!$S$2:$S$1000)*('Fixed assets'!$P$2:$P$1000<Costs!$A671)*('Fixed assets'!$Q$2:$Q$1000=Costs!AM$617))-SUMPRODUCT(('Fixed assets'!$Q$2:$Q$1000=Costs!AM$617)*('Fixed assets'!$U$2:$U$1000=Costs!$A671)*('Fixed assets'!$S$2:$S$1000))+SUMPRODUCT(('Fixed assets'!$Q$2:$Q$1000=Costs!AM$617)*('Fixed assets'!$P$2:$P$1000=Costs!$A671)*('Fixed assets'!$U$2:$U$1000=Costs!$A671)*('Fixed assets'!$R$2:$R$1000))","v":0},{"$f":"SUMPRODUCT(('Fixed assets'!$R$2:$R$1000)*('Fixed assets'!$P$2:$P$1000<$A671)*('Fixed assets'!$Q$2:$Q$1000=Costs!AN$617))-SUMPRODUCT(('Fixed assets'!$S$2:$S$1000)*('Fixed assets'!$P$2:$P$1000<Costs!$A671)*('Fixed assets'!$Q$2:$Q$1000=Costs!AN$617))-SUMPRODUCT(('Fixed assets'!$Q$2:$Q$1000=Costs!AN$617)*('Fixed assets'!$U$2:$U$1000=Costs!$A671)*('Fixed assets'!$S$2:$S$1000))+SUMPRODUCT(('Fixed assets'!$Q$2:$Q$1000=Costs!AN$617)*('Fixed assets'!$P$2:$P$1000=Costs!$A671)*('Fixed assets'!$U$2:$U$1000=Costs!$A671)*('Fixed assets'!$R$2:$R$1000))","v":0},{"$f":"SUMPRODUCT(('Fixed assets'!$R$2:$R$1000)*('Fixed assets'!$P$2:$P$1000<$A671)*('Fixed assets'!$Q$2:$Q$1000=Costs!AO$617))-SUMPRODUCT(('Fixed assets'!$S$2:$S$1000)*('Fixed assets'!$P$2:$P$1000<Costs!$A671)*('Fixed assets'!$Q$2:$Q$1000=Costs!AO$617))-SUMPRODUCT(('Fixed assets'!$Q$2:$Q$1000=Costs!AO$617)*('Fixed assets'!$U$2:$U$1000=Costs!$A671)*('Fixed assets'!$S$2:$S$1000))+SUMPRODUCT(('Fixed assets'!$Q$2:$Q$1000=Costs!AO$617)*('Fixed assets'!$P$2:$P$1000=Costs!$A671)*('Fixed assets'!$U$2:$U$1000=Costs!$A671)*('Fixed assets'!$R$2:$R$1000))","v":0},{"$f":"SUMPRODUCT(('Fixed assets'!$R$2:$R$1000)*('Fixed assets'!$P$2:$P$1000<$A671)*('Fixed assets'!$Q$2:$Q$1000=Costs!AP$617))-SUMPRODUCT(('Fixed assets'!$S$2:$S$1000)*('Fixed assets'!$P$2:$P$1000<Costs!$A671)*('Fixed assets'!$Q$2:$Q$1000=Costs!AP$617))-SUMPRODUCT(('Fixed assets'!$Q$2:$Q$1000=Costs!AP$617)*('Fixed assets'!$U$2:$U$1000=Costs!$A671)*('Fixed assets'!$S$2:$S$1000))+SUMPRODUCT(('Fixed assets'!$Q$2:$Q$1000=Costs!AP$617)*('Fixed assets'!$P$2:$P$1000=Costs!$A671)*('Fixed assets'!$U$2:$U$1000=Costs!$A671)*('Fixed assets'!$R$2:$R$1000))","v":0},{"$f":"SUMPRODUCT(('Fixed assets'!$R$2:$R$1000)*('Fixed assets'!$P$2:$P$1000<$A671)*('Fixed assets'!$Q$2:$Q$1000=Costs!AQ$617))-SUMPRODUCT(('Fixed assets'!$S$2:$S$1000)*('Fixed assets'!$P$2:$P$1000<Costs!$A671)*('Fixed assets'!$Q$2:$Q$1000=Costs!AQ$617))-SUMPRODUCT(('Fixed assets'!$Q$2:$Q$1000=Costs!AQ$617)*('Fixed assets'!$U$2:$U$1000=Costs!$A671)*('Fixed assets'!$S$2:$S$1000))+SUMPRODUCT(('Fixed assets'!$Q$2:$Q$1000=Costs!AQ$617)*('Fixed assets'!$P$2:$P$1000=Costs!$A671)*('Fixed assets'!$U$2:$U$1000=Costs!$A671)*('Fixed assets'!$R$2:$R$1000))","v":0}]
[2069,0,{"$f":"SUMPRODUCT(('Fixed assets'!$R$2:$R$1000)*('Fixed assets'!$P$2:$P$1000<$A672)*('Fixed assets'!$Q$2:$Q$1000=Costs!C$617))-SUMPRODUCT(('Fixed assets'!$S$2:$S$1000)*('Fixed assets'!$P$2:$P$1000<Costs!$A672)*('Fixed assets'!$Q$2:$Q$1000=Costs!C$617))-SUMPRODUCT(('Fixed assets'!$Q$2:$Q$1000=Costs!C$617)*('Fixed assets'!$U$2:$U$1000=Costs!$A672)*('Fixed assets'!$S$2:$S$1000))+SUMPRODUCT(('Fixed assets'!$Q$2:$Q$1000=Costs!C$617)*('Fixed assets'!$P$2:$P$1000=Costs!$A672)*('Fixed assets'!$U$2:$U$1000=Costs!$A672)*('Fixed assets'!$R$2:$R$1000))","v":0},{"$f":"SUMPRODUCT(('Fixed assets'!$R$2:$R$1000)*('Fixed assets'!$P$2:$P$1000<$A672)*('Fixed assets'!$Q$2:$Q$1000=Costs!D$617))-SUMPRODUCT(('Fixed assets'!$S$2:$S$1000)*('Fixed assets'!$P$2:$P$1000<Costs!$A672)*('Fixed assets'!$Q$2:$Q$1000=Costs!D$617))-SUMPRODUCT(('Fixed assets'!$Q$2:$Q$1000=Costs!D$617)*('Fixed assets'!$U$2:$U$1000=Costs!$A672)*('Fixed assets'!$S$2:$S$1000))+SUMPRODUCT(('Fixed assets'!$Q$2:$Q$1000=Costs!D$617)*('Fixed assets'!$P$2:$P$1000=Costs!$A672)*('Fixed assets'!$U$2:$U$1000=Costs!$A672)*('Fixed assets'!$R$2:$R$1000))","v":0},{"$f":"SUMPRODUCT(('Fixed assets'!$R$2:$R$1000)*('Fixed assets'!$P$2:$P$1000<$A672)*('Fixed assets'!$Q$2:$Q$1000=Costs!E$617))-SUMPRODUCT(('Fixed assets'!$S$2:$S$1000)*('Fixed assets'!$P$2:$P$1000<Costs!$A672)*('Fixed assets'!$Q$2:$Q$1000=Costs!E$617))-SUMPRODUCT(('Fixed assets'!$Q$2:$Q$1000=Costs!E$617)*('Fixed assets'!$U$2:$U$1000=Costs!$A672)*('Fixed assets'!$S$2:$S$1000))+SUMPRODUCT(('Fixed assets'!$Q$2:$Q$1000=Costs!E$617)*('Fixed assets'!$P$2:$P$1000=Costs!$A672)*('Fixed assets'!$U$2:$U$1000=Costs!$A672)*('Fixed assets'!$R$2:$R$1000))","v":0},{"$f":"SUMPRODUCT(('Fixed assets'!$R$2:$R$1000)*('Fixed assets'!$P$2:$P$1000<$A672)*('Fixed assets'!$Q$2:$Q$1000=Costs!F$617))-SUMPRODUCT(('Fixed assets'!$S$2:$S$1000)*('Fixed assets'!$P$2:$P$1000<Costs!$A672)*('Fixed assets'!$Q$2:$Q$1000=Costs!F$617))-SUMPRODUCT(('Fixed assets'!$Q$2:$Q$1000=Costs!F$617)*('Fixed assets'!$U$2:$U$1000=Costs!$A672)*('Fixed assets'!$S$2:$S$1000))+SUMPRODUCT(('Fixed assets'!$Q$2:$Q$1000=Costs!F$617)*('Fixed assets'!$P$2:$P$1000=Costs!$A672)*('Fixed assets'!$U$2:$U$1000=Costs!$A672)*('Fixed assets'!$R$2:$R$1000))","v":0},{"$f":"SUMPRODUCT(('Fixed assets'!$R$2:$R$1000)*('Fixed assets'!$P$2:$P$1000<$A672)*('Fixed assets'!$Q$2:$Q$1000=Costs!G$617))-SUMPRODUCT(('Fixed assets'!$S$2:$S$1000)*('Fixed assets'!$P$2:$P$1000<Costs!$A672)*('Fixed assets'!$Q$2:$Q$1000=Costs!G$617))-SUMPRODUCT(('Fixed assets'!$Q$2:$Q$1000=Costs!G$617)*('Fixed assets'!$U$2:$U$1000=Costs!$A672)*('Fixed assets'!$S$2:$S$1000))+SUMPRODUCT(('Fixed assets'!$Q$2:$Q$1000=Costs!G$617)*('Fixed assets'!$P$2:$P$1000=Costs!$A672)*('Fixed assets'!$U$2:$U$1000=Costs!$A672)*('Fixed assets'!$R$2:$R$1000))","v":0},{"$f":"SUMPRODUCT(('Fixed assets'!$R$2:$R$1000)*('Fixed assets'!$P$2:$P$1000<$A672)*('Fixed assets'!$Q$2:$Q$1000=Costs!H$617))-SUMPRODUCT(('Fixed assets'!$S$2:$S$1000)*('Fixed assets'!$P$2:$P$1000<Costs!$A672)*('Fixed assets'!$Q$2:$Q$1000=Costs!H$617))-SUMPRODUCT(('Fixed assets'!$Q$2:$Q$1000=Costs!H$617)*('Fixed assets'!$U$2:$U$1000=Costs!$A672)*('Fixed assets'!$S$2:$S$1000))+SUMPRODUCT(('Fixed assets'!$Q$2:$Q$1000=Costs!H$617)*('Fixed assets'!$P$2:$P$1000=Costs!$A672)*('Fixed assets'!$U$2:$U$1000=Costs!$A672)*('Fixed assets'!$R$2:$R$1000))","v":0},{"$f":"SUMPRODUCT(('Fixed assets'!$R$2:$R$1000)*('Fixed assets'!$P$2:$P$1000<$A672)*('Fixed assets'!$Q$2:$Q$1000=Costs!I$617))-SUMPRODUCT(('Fixed assets'!$S$2:$S$1000)*('Fixed assets'!$P$2:$P$1000<Costs!$A672)*('Fixed assets'!$Q$2:$Q$1000=Costs!I$617))-SUMPRODUCT(('Fixed assets'!$Q$2:$Q$1000=Costs!I$617)*('Fixed assets'!$U$2:$U$1000=Costs!$A672)*('Fixed assets'!$S$2:$S$1000))+SUMPRODUCT(('Fixed assets'!$Q$2:$Q$1000=Costs!I$617)*('Fixed assets'!$P$2:$P$1000=Costs!$A672)*('Fixed assets'!$U$2:$U$1000=Costs!$A672)*('Fixed assets'!$R$2:$R$1000))","v":0},{"$f":"SUMPRODUCT(('Fixed assets'!$R$2:$R$1000)*('Fixed assets'!$P$2:$P$1000<$A672)*('Fixed assets'!$Q$2:$Q$1000=Costs!J$617))-SUMPRODUCT(('Fixed assets'!$S$2:$S$1000)*('Fixed assets'!$P$2:$P$1000<Costs!$A672)*('Fixed assets'!$Q$2:$Q$1000=Costs!J$617))-SUMPRODUCT(('Fixed assets'!$Q$2:$Q$1000=Costs!J$617)*('Fixed assets'!$U$2:$U$1000=Costs!$A672)*('Fixed assets'!$S$2:$S$1000))+SUMPRODUCT(('Fixed assets'!$Q$2:$Q$1000=Costs!J$617)*('Fixed assets'!$P$2:$P$1000=Costs!$A672)*('Fixed assets'!$U$2:$U$1000=Costs!$A672)*('Fixed assets'!$R$2:$R$1000))","v":0},{"$f":"SUMPRODUCT(('Fixed assets'!$R$2:$R$1000)*('Fixed assets'!$P$2:$P$1000<$A672)*('Fixed assets'!$Q$2:$Q$1000=Costs!K$617))-SUMPRODUCT(('Fixed assets'!$S$2:$S$1000)*('Fixed assets'!$P$2:$P$1000<Costs!$A672)*('Fixed assets'!$Q$2:$Q$1000=Costs!K$617))-SUMPRODUCT(('Fixed assets'!$Q$2:$Q$1000=Costs!K$617)*('Fixed assets'!$U$2:$U$1000=Costs!$A672)*('Fixed assets'!$S$2:$S$1000))+SUMPRODUCT(('Fixed assets'!$Q$2:$Q$1000=Costs!K$617)*('Fixed assets'!$P$2:$P$1000=Costs!$A672)*('Fixed assets'!$U$2:$U$1000=Costs!$A672)*('Fixed assets'!$R$2:$R$1000))","v":0},{"$f":"SUMPRODUCT(('Fixed assets'!$R$2:$R$1000)*('Fixed assets'!$P$2:$P$1000<$A672)*('Fixed assets'!$Q$2:$Q$1000=Costs!L$617))-SUMPRODUCT(('Fixed assets'!$S$2:$S$1000)*('Fixed assets'!$P$2:$P$1000<Costs!$A672)*('Fixed assets'!$Q$2:$Q$1000=Costs!L$617))-SUMPRODUCT(('Fixed assets'!$Q$2:$Q$1000=Costs!L$617)*('Fixed assets'!$U$2:$U$1000=Costs!$A672)*('Fixed assets'!$S$2:$S$1000))+SUMPRODUCT(('Fixed assets'!$Q$2:$Q$1000=Costs!L$617)*('Fixed assets'!$P$2:$P$1000=Costs!$A672)*('Fixed assets'!$U$2:$U$1000=Costs!$A672)*('Fixed assets'!$R$2:$R$1000))","v":0},{"$f":"SUMPRODUCT(('Fixed assets'!$R$2:$R$1000)*('Fixed assets'!$P$2:$P$1000<$A672)*('Fixed assets'!$Q$2:$Q$1000=Costs!M$617))-SUMPRODUCT(('Fixed assets'!$S$2:$S$1000)*('Fixed assets'!$P$2:$P$1000<Costs!$A672)*('Fixed assets'!$Q$2:$Q$1000=Costs!M$617))-SUMPRODUCT(('Fixed assets'!$Q$2:$Q$1000=Costs!M$617)*('Fixed assets'!$U$2:$U$1000=Costs!$A672)*('Fixed assets'!$S$2:$S$1000))+SUMPRODUCT(('Fixed assets'!$Q$2:$Q$1000=Costs!M$617)*('Fixed assets'!$P$2:$P$1000=Costs!$A672)*('Fixed assets'!$U$2:$U$1000=Costs!$A672)*('Fixed assets'!$R$2:$R$1000))","v":0},{"$f":"SUMPRODUCT(('Fixed assets'!$R$2:$R$1000)*('Fixed assets'!$P$2:$P$1000<$A672)*('Fixed assets'!$Q$2:$Q$1000=Costs!N$617))-SUMPRODUCT(('Fixed assets'!$S$2:$S$1000)*('Fixed assets'!$P$2:$P$1000<Costs!$A672)*('Fixed assets'!$Q$2:$Q$1000=Costs!N$617))-SUMPRODUCT(('Fixed assets'!$Q$2:$Q$1000=Costs!N$617)*('Fixed assets'!$U$2:$U$1000=Costs!$A672)*('Fixed assets'!$S$2:$S$1000))+SUMPRODUCT(('Fixed assets'!$Q$2:$Q$1000=Costs!N$617)*('Fixed assets'!$P$2:$P$1000=Costs!$A672)*('Fixed assets'!$U$2:$U$1000=Costs!$A672)*('Fixed assets'!$R$2:$R$1000))","v":0},{"$f":"SUMPRODUCT(('Fixed assets'!$R$2:$R$1000)*('Fixed assets'!$P$2:$P$1000<$A672)*('Fixed assets'!$Q$2:$Q$1000=Costs!O$617))-SUMPRODUCT(('Fixed assets'!$S$2:$S$1000)*('Fixed assets'!$P$2:$P$1000<Costs!$A672)*('Fixed assets'!$Q$2:$Q$1000=Costs!O$617))-SUMPRODUCT(('Fixed assets'!$Q$2:$Q$1000=Costs!O$617)*('Fixed assets'!$U$2:$U$1000=Costs!$A672)*('Fixed assets'!$S$2:$S$1000))+SUMPRODUCT(('Fixed assets'!$Q$2:$Q$1000=Costs!O$617)*('Fixed assets'!$P$2:$P$1000=Costs!$A672)*('Fixed assets'!$U$2:$U$1000=Costs!$A672)*('Fixed assets'!$R$2:$R$1000))","v":0},{"$f":"SUMPRODUCT(('Fixed assets'!$R$2:$R$1000)*('Fixed assets'!$P$2:$P$1000<$A672)*('Fixed assets'!$Q$2:$Q$1000=Costs!P$617))-SUMPRODUCT(('Fixed assets'!$S$2:$S$1000)*('Fixed assets'!$P$2:$P$1000<Costs!$A672)*('Fixed assets'!$Q$2:$Q$1000=Costs!P$617))-SUMPRODUCT(('Fixed assets'!$Q$2:$Q$1000=Costs!P$617)*('Fixed assets'!$U$2:$U$1000=Costs!$A672)*('Fixed assets'!$S$2:$S$1000))+SUMPRODUCT(('Fixed assets'!$Q$2:$Q$1000=Costs!P$617)*('Fixed assets'!$P$2:$P$1000=Costs!$A672)*('Fixed assets'!$U$2:$U$1000=Costs!$A672)*('Fixed assets'!$R$2:$R$1000))","v":0},{"$f":"SUMPRODUCT(('Fixed assets'!$R$2:$R$1000)*('Fixed assets'!$P$2:$P$1000<$A672)*('Fixed assets'!$Q$2:$Q$1000=Costs!Q$617))-SUMPRODUCT(('Fixed assets'!$S$2:$S$1000)*('Fixed assets'!$P$2:$P$1000<Costs!$A672)*('Fixed assets'!$Q$2:$Q$1000=Costs!Q$617))-SUMPRODUCT(('Fixed assets'!$Q$2:$Q$1000=Costs!Q$617)*('Fixed assets'!$U$2:$U$1000=Costs!$A672)*('Fixed assets'!$S$2:$S$1000))+SUMPRODUCT(('Fixed assets'!$Q$2:$Q$1000=Costs!Q$617)*('Fixed assets'!$P$2:$P$1000=Costs!$A672)*('Fixed assets'!$U$2:$U$1000=Costs!$A672)*('Fixed assets'!$R$2:$R$1000))","v":0},{"$f":"SUMPRODUCT(('Fixed assets'!$R$2:$R$1000)*('Fixed assets'!$P$2:$P$1000<$A672)*('Fixed assets'!$Q$2:$Q$1000=Costs!R$617))-SUMPRODUCT(('Fixed assets'!$S$2:$S$1000)*('Fixed assets'!$P$2:$P$1000<Costs!$A672)*('Fixed assets'!$Q$2:$Q$1000=Costs!R$617))-SUMPRODUCT(('Fixed assets'!$Q$2:$Q$1000=Costs!R$617)*('Fixed assets'!$U$2:$U$1000=Costs!$A672)*('Fixed assets'!$S$2:$S$1000))+SUMPRODUCT(('Fixed assets'!$Q$2:$Q$1000=Costs!R$617)*('Fixed assets'!$P$2:$P$1000=Costs!$A672)*('Fixed assets'!$U$2:$U$1000=Costs!$A672)*('Fixed assets'!$R$2:$R$1000))","v":0},{"$f":"SUMPRODUCT(('Fixed assets'!$R$2:$R$1000)*('Fixed assets'!$P$2:$P$1000<$A672)*('Fixed assets'!$Q$2:$Q$1000=Costs!S$617))-SUMPRODUCT(('Fixed assets'!$S$2:$S$1000)*('Fixed assets'!$P$2:$P$1000<Costs!$A672)*('Fixed assets'!$Q$2:$Q$1000=Costs!S$617))-SUMPRODUCT(('Fixed assets'!$Q$2:$Q$1000=Costs!S$617)*('Fixed assets'!$U$2:$U$1000=Costs!$A672)*('Fixed assets'!$S$2:$S$1000))+SUMPRODUCT(('Fixed assets'!$Q$2:$Q$1000=Costs!S$617)*('Fixed assets'!$P$2:$P$1000=Costs!$A672)*('Fixed assets'!$U$2:$U$1000=Costs!$A672)*('Fixed assets'!$R$2:$R$1000))","v":0},{"$f":"SUMPRODUCT(('Fixed assets'!$R$2:$R$1000)*('Fixed assets'!$P$2:$P$1000<$A672)*('Fixed assets'!$Q$2:$Q$1000=Costs!T$617))-SUMPRODUCT(('Fixed assets'!$S$2:$S$1000)*('Fixed assets'!$P$2:$P$1000<Costs!$A672)*('Fixed assets'!$Q$2:$Q$1000=Costs!T$617))-SUMPRODUCT(('Fixed assets'!$Q$2:$Q$1000=Costs!T$617)*('Fixed assets'!$U$2:$U$1000=Costs!$A672)*('Fixed assets'!$S$2:$S$1000))+SUMPRODUCT(('Fixed assets'!$Q$2:$Q$1000=Costs!T$617)*('Fixed assets'!$P$2:$P$1000=Costs!$A672)*('Fixed assets'!$U$2:$U$1000=Costs!$A672)*('Fixed assets'!$R$2:$R$1000))","v":0},{"$f":"SUMPRODUCT(('Fixed assets'!$R$2:$R$1000)*('Fixed assets'!$P$2:$P$1000<$A672)*('Fixed assets'!$Q$2:$Q$1000=Costs!U$617))-SUMPRODUCT(('Fixed assets'!$S$2:$S$1000)*('Fixed assets'!$P$2:$P$1000<Costs!$A672)*('Fixed assets'!$Q$2:$Q$1000=Costs!U$617))-SUMPRODUCT(('Fixed assets'!$Q$2:$Q$1000=Costs!U$617)*('Fixed assets'!$U$2:$U$1000=Costs!$A672)*('Fixed assets'!$S$2:$S$1000))+SUMPRODUCT(('Fixed assets'!$Q$2:$Q$1000=Costs!U$617)*('Fixed assets'!$P$2:$P$1000=Costs!$A672)*('Fixed assets'!$U$2:$U$1000=Costs!$A672)*('Fixed assets'!$R$2:$R$1000))","v":0},{"$f":"SUMPRODUCT(('Fixed assets'!$R$2:$R$1000)*('Fixed assets'!$P$2:$P$1000<$A672)*('Fixed assets'!$Q$2:$Q$1000=Costs!V$617))-SUMPRODUCT(('Fixed assets'!$S$2:$S$1000)*('Fixed assets'!$P$2:$P$1000<Costs!$A672)*('Fixed assets'!$Q$2:$Q$1000=Costs!V$617))-SUMPRODUCT(('Fixed assets'!$Q$2:$Q$1000=Costs!V$617)*('Fixed assets'!$U$2:$U$1000=Costs!$A672)*('Fixed assets'!$S$2:$S$1000))+SUMPRODUCT(('Fixed assets'!$Q$2:$Q$1000=Costs!V$617)*('Fixed assets'!$P$2:$P$1000=Costs!$A672)*('Fixed assets'!$U$2:$U$1000=Costs!$A672)*('Fixed assets'!$R$2:$R$1000))","v":0},{"$f":"SUMPRODUCT(('Fixed assets'!$R$2:$R$1000)*('Fixed assets'!$P$2:$P$1000<$A672)*('Fixed assets'!$Q$2:$Q$1000=Costs!W$617))-SUMPRODUCT(('Fixed assets'!$S$2:$S$1000)*('Fixed assets'!$P$2:$P$1000<Costs!$A672)*('Fixed assets'!$Q$2:$Q$1000=Costs!W$617))-SUMPRODUCT(('Fixed assets'!$Q$2:$Q$1000=Costs!W$617)*('Fixed assets'!$U$2:$U$1000=Costs!$A672)*('Fixed assets'!$S$2:$S$1000))+SUMPRODUCT(('Fixed assets'!$Q$2:$Q$1000=Costs!W$617)*('Fixed assets'!$P$2:$P$1000=Costs!$A672)*('Fixed assets'!$U$2:$U$1000=Costs!$A672)*('Fixed assets'!$R$2:$R$1000))","v":0},{"$f":"SUMPRODUCT(('Fixed assets'!$R$2:$R$1000)*('Fixed assets'!$P$2:$P$1000<$A672)*('Fixed assets'!$Q$2:$Q$1000=Costs!X$617))-SUMPRODUCT(('Fixed assets'!$S$2:$S$1000)*('Fixed assets'!$P$2:$P$1000<Costs!$A672)*('Fixed assets'!$Q$2:$Q$1000=Costs!X$617))-SUMPRODUCT(('Fixed assets'!$Q$2:$Q$1000=Costs!X$617)*('Fixed assets'!$U$2:$U$1000=Costs!$A672)*('Fixed assets'!$S$2:$S$1000))+SUMPRODUCT(('Fixed assets'!$Q$2:$Q$1000=Costs!X$617)*('Fixed assets'!$P$2:$P$1000=Costs!$A672)*('Fixed assets'!$U$2:$U$1000=Costs!$A672)*('Fixed assets'!$R$2:$R$1000))","v":0},{"$f":"SUMPRODUCT(('Fixed assets'!$R$2:$R$1000)*('Fixed assets'!$P$2:$P$1000<$A672)*('Fixed assets'!$Q$2:$Q$1000=Costs!Y$617))-SUMPRODUCT(('Fixed assets'!$S$2:$S$1000)*('Fixed assets'!$P$2:$P$1000<Costs!$A672)*('Fixed assets'!$Q$2:$Q$1000=Costs!Y$617))-SUMPRODUCT(('Fixed assets'!$Q$2:$Q$1000=Costs!Y$617)*('Fixed assets'!$U$2:$U$1000=Costs!$A672)*('Fixed assets'!$S$2:$S$1000))+SUMPRODUCT(('Fixed assets'!$Q$2:$Q$1000=Costs!Y$617)*('Fixed assets'!$P$2:$P$1000=Costs!$A672)*('Fixed assets'!$U$2:$U$1000=Costs!$A672)*('Fixed assets'!$R$2:$R$1000))","v":0},{"$f":"SUMPRODUCT(('Fixed assets'!$R$2:$R$1000)*('Fixed assets'!$P$2:$P$1000<$A672)*('Fixed assets'!$Q$2:$Q$1000=Costs!Z$617))-SUMPRODUCT(('Fixed assets'!$S$2:$S$1000)*('Fixed assets'!$P$2:$P$1000<Costs!$A672)*('Fixed assets'!$Q$2:$Q$1000=Costs!Z$617))-SUMPRODUCT(('Fixed assets'!$Q$2:$Q$1000=Costs!Z$617)*('Fixed assets'!$U$2:$U$1000=Costs!$A672)*('Fixed assets'!$S$2:$S$1000))+SUMPRODUCT(('Fixed assets'!$Q$2:$Q$1000=Costs!Z$617)*('Fixed assets'!$P$2:$P$1000=Costs!$A672)*('Fixed assets'!$U$2:$U$1000=Costs!$A672)*('Fixed assets'!$R$2:$R$1000))","v":0},{"$f":"SUMPRODUCT(('Fixed assets'!$R$2:$R$1000)*('Fixed assets'!$P$2:$P$1000<$A672)*('Fixed assets'!$Q$2:$Q$1000=Costs!AA$617))-SUMPRODUCT(('Fixed assets'!$S$2:$S$1000)*('Fixed assets'!$P$2:$P$1000<Costs!$A672)*('Fixed assets'!$Q$2:$Q$1000=Costs!AA$617))-SUMPRODUCT(('Fixed assets'!$Q$2:$Q$1000=Costs!AA$617)*('Fixed assets'!$U$2:$U$1000=Costs!$A672)*('Fixed assets'!$S$2:$S$1000))+SUMPRODUCT(('Fixed assets'!$Q$2:$Q$1000=Costs!AA$617)*('Fixed assets'!$P$2:$P$1000=Costs!$A672)*('Fixed assets'!$U$2:$U$1000=Costs!$A672)*('Fixed assets'!$R$2:$R$1000))","v":0},{"$f":"SUMPRODUCT(('Fixed assets'!$R$2:$R$1000)*('Fixed assets'!$P$2:$P$1000<$A672)*('Fixed assets'!$Q$2:$Q$1000=Costs!AB$617))-SUMPRODUCT(('Fixed assets'!$S$2:$S$1000)*('Fixed assets'!$P$2:$P$1000<Costs!$A672)*('Fixed assets'!$Q$2:$Q$1000=Costs!AB$617))-SUMPRODUCT(('Fixed assets'!$Q$2:$Q$1000=Costs!AB$617)*('Fixed assets'!$U$2:$U$1000=Costs!$A672)*('Fixed assets'!$S$2:$S$1000))+SUMPRODUCT(('Fixed assets'!$Q$2:$Q$1000=Costs!AB$617)*('Fixed assets'!$P$2:$P$1000=Costs!$A672)*('Fixed assets'!$U$2:$U$1000=Costs!$A672)*('Fixed assets'!$R$2:$R$1000))","v":0},{"$f":"SUMPRODUCT(('Fixed assets'!$R$2:$R$1000)*('Fixed assets'!$P$2:$P$1000<$A672)*('Fixed assets'!$Q$2:$Q$1000=Costs!AC$617))-SUMPRODUCT(('Fixed assets'!$S$2:$S$1000)*('Fixed assets'!$P$2:$P$1000<Costs!$A672)*('Fixed assets'!$Q$2:$Q$1000=Costs!AC$617))-SUMPRODUCT(('Fixed assets'!$Q$2:$Q$1000=Costs!AC$617)*('Fixed assets'!$U$2:$U$1000=Costs!$A672)*('Fixed assets'!$S$2:$S$1000))+SUMPRODUCT(('Fixed assets'!$Q$2:$Q$1000=Costs!AC$617)*('Fixed assets'!$P$2:$P$1000=Costs!$A672)*('Fixed assets'!$U$2:$U$1000=Costs!$A672)*('Fixed assets'!$R$2:$R$1000))","v":0},{"$f":"SUMPRODUCT(('Fixed assets'!$R$2:$R$1000)*('Fixed assets'!$P$2:$P$1000<$A672)*('Fixed assets'!$Q$2:$Q$1000=Costs!AD$617))-SUMPRODUCT(('Fixed assets'!$S$2:$S$1000)*('Fixed assets'!$P$2:$P$1000<Costs!$A672)*('Fixed assets'!$Q$2:$Q$1000=Costs!AD$617))-SUMPRODUCT(('Fixed assets'!$Q$2:$Q$1000=Costs!AD$617)*('Fixed assets'!$U$2:$U$1000=Costs!$A672)*('Fixed assets'!$S$2:$S$1000))+SUMPRODUCT(('Fixed assets'!$Q$2:$Q$1000=Costs!AD$617)*('Fixed assets'!$P$2:$P$1000=Costs!$A672)*('Fixed assets'!$U$2:$U$1000=Costs!$A672)*('Fixed assets'!$R$2:$R$1000))","v":0},{"$f":"SUMPRODUCT(('Fixed assets'!$R$2:$R$1000)*('Fixed assets'!$P$2:$P$1000<$A672)*('Fixed assets'!$Q$2:$Q$1000=Costs!AE$617))-SUMPRODUCT(('Fixed assets'!$S$2:$S$1000)*('Fixed assets'!$P$2:$P$1000<Costs!$A672)*('Fixed assets'!$Q$2:$Q$1000=Costs!AE$617))-SUMPRODUCT(('Fixed assets'!$Q$2:$Q$1000=Costs!AE$617)*('Fixed assets'!$U$2:$U$1000=Costs!$A672)*('Fixed assets'!$S$2:$S$1000))+SUMPRODUCT(('Fixed assets'!$Q$2:$Q$1000=Costs!AE$617)*('Fixed assets'!$P$2:$P$1000=Costs!$A672)*('Fixed assets'!$U$2:$U$1000=Costs!$A672)*('Fixed assets'!$R$2:$R$1000))","v":0},{"$f":"SUMPRODUCT(('Fixed assets'!$R$2:$R$1000)*('Fixed assets'!$P$2:$P$1000<$A672)*('Fixed assets'!$Q$2:$Q$1000=Costs!AF$617))-SUMPRODUCT(('Fixed assets'!$S$2:$S$1000)*('Fixed assets'!$P$2:$P$1000<Costs!$A672)*('Fixed assets'!$Q$2:$Q$1000=Costs!AF$617))-SUMPRODUCT(('Fixed assets'!$Q$2:$Q$1000=Costs!AF$617)*('Fixed assets'!$U$2:$U$1000=Costs!$A672)*('Fixed assets'!$S$2:$S$1000))+SUMPRODUCT(('Fixed assets'!$Q$2:$Q$1000=Costs!AF$617)*('Fixed assets'!$P$2:$P$1000=Costs!$A672)*('Fixed assets'!$U$2:$U$1000=Costs!$A672)*('Fixed assets'!$R$2:$R$1000))","v":0},{"$f":"SUMPRODUCT(('Fixed assets'!$R$2:$R$1000)*('Fixed assets'!$P$2:$P$1000<$A672)*('Fixed assets'!$Q$2:$Q$1000=Costs!AG$617))-SUMPRODUCT(('Fixed assets'!$S$2:$S$1000)*('Fixed assets'!$P$2:$P$1000<Costs!$A672)*('Fixed assets'!$Q$2:$Q$1000=Costs!AG$617))-SUMPRODUCT(('Fixed assets'!$Q$2:$Q$1000=Costs!AG$617)*('Fixed assets'!$U$2:$U$1000=Costs!$A672)*('Fixed assets'!$S$2:$S$1000))+SUMPRODUCT(('Fixed assets'!$Q$2:$Q$1000=Costs!AG$617)*('Fixed assets'!$P$2:$P$1000=Costs!$A672)*('Fixed assets'!$U$2:$U$1000=Costs!$A672)*('Fixed assets'!$R$2:$R$1000))","v":0},{"$f":"SUMPRODUCT(('Fixed assets'!$R$2:$R$1000)*('Fixed assets'!$P$2:$P$1000<$A672)*('Fixed assets'!$Q$2:$Q$1000=Costs!AH$617))-SUMPRODUCT(('Fixed assets'!$S$2:$S$1000)*('Fixed assets'!$P$2:$P$1000<Costs!$A672)*('Fixed assets'!$Q$2:$Q$1000=Costs!AH$617))-SUMPRODUCT(('Fixed assets'!$Q$2:$Q$1000=Costs!AH$617)*('Fixed assets'!$U$2:$U$1000=Costs!$A672)*('Fixed assets'!$S$2:$S$1000))+SUMPRODUCT(('Fixed assets'!$Q$2:$Q$1000=Costs!AH$617)*('Fixed assets'!$P$2:$P$1000=Costs!$A672)*('Fixed assets'!$U$2:$U$1000=Costs!$A672)*('Fixed assets'!$R$2:$R$1000))","v":0},{"$f":"SUMPRODUCT(('Fixed assets'!$R$2:$R$1000)*('Fixed assets'!$P$2:$P$1000<$A672)*('Fixed assets'!$Q$2:$Q$1000=Costs!AI$617))-SUMPRODUCT(('Fixed assets'!$S$2:$S$1000)*('Fixed assets'!$P$2:$P$1000<Costs!$A672)*('Fixed assets'!$Q$2:$Q$1000=Costs!AI$617))-SUMPRODUCT(('Fixed assets'!$Q$2:$Q$1000=Costs!AI$617)*('Fixed assets'!$U$2:$U$1000=Costs!$A672)*('Fixed assets'!$S$2:$S$1000))+SUMPRODUCT(('Fixed assets'!$Q$2:$Q$1000=Costs!AI$617)*('Fixed assets'!$P$2:$P$1000=Costs!$A672)*('Fixed assets'!$U$2:$U$1000=Costs!$A672)*('Fixed assets'!$R$2:$R$1000))","v":0},{"$f":"SUMPRODUCT(('Fixed assets'!$R$2:$R$1000)*('Fixed assets'!$P$2:$P$1000<$A672)*('Fixed assets'!$Q$2:$Q$1000=Costs!AJ$617))-SUMPRODUCT(('Fixed assets'!$S$2:$S$1000)*('Fixed assets'!$P$2:$P$1000<Costs!$A672)*('Fixed assets'!$Q$2:$Q$1000=Costs!AJ$617))-SUMPRODUCT(('Fixed assets'!$Q$2:$Q$1000=Costs!AJ$617)*('Fixed assets'!$U$2:$U$1000=Costs!$A672)*('Fixed assets'!$S$2:$S$1000))+SUMPRODUCT(('Fixed assets'!$Q$2:$Q$1000=Costs!AJ$617)*('Fixed assets'!$P$2:$P$1000=Costs!$A672)*('Fixed assets'!$U$2:$U$1000=Costs!$A672)*('Fixed assets'!$R$2:$R$1000))","v":0},{"$f":"SUMPRODUCT(('Fixed assets'!$R$2:$R$1000)*('Fixed assets'!$P$2:$P$1000<$A672)*('Fixed assets'!$Q$2:$Q$1000=Costs!AK$617))-SUMPRODUCT(('Fixed assets'!$S$2:$S$1000)*('Fixed assets'!$P$2:$P$1000<Costs!$A672)*('Fixed assets'!$Q$2:$Q$1000=Costs!AK$617))-SUMPRODUCT(('Fixed assets'!$Q$2:$Q$1000=Costs!AK$617)*('Fixed assets'!$U$2:$U$1000=Costs!$A672)*('Fixed assets'!$S$2:$S$1000))+SUMPRODUCT(('Fixed assets'!$Q$2:$Q$1000=Costs!AK$617)*('Fixed assets'!$P$2:$P$1000=Costs!$A672)*('Fixed assets'!$U$2:$U$1000=Costs!$A672)*('Fixed assets'!$R$2:$R$1000))","v":0},{"$f":"SUMPRODUCT(('Fixed assets'!$R$2:$R$1000)*('Fixed assets'!$P$2:$P$1000<$A672)*('Fixed assets'!$Q$2:$Q$1000=Costs!AL$617))-SUMPRODUCT(('Fixed assets'!$S$2:$S$1000)*('Fixed assets'!$P$2:$P$1000<Costs!$A672)*('Fixed assets'!$Q$2:$Q$1000=Costs!AL$617))-SUMPRODUCT(('Fixed assets'!$Q$2:$Q$1000=Costs!AL$617)*('Fixed assets'!$U$2:$U$1000=Costs!$A672)*('Fixed assets'!$S$2:$S$1000))+SUMPRODUCT(('Fixed assets'!$Q$2:$Q$1000=Costs!AL$617)*('Fixed assets'!$P$2:$P$1000=Costs!$A672)*('Fixed assets'!$U$2:$U$1000=Costs!$A672)*('Fixed assets'!$R$2:$R$1000))","v":0},{"$f":"SUMPRODUCT(('Fixed assets'!$R$2:$R$1000)*('Fixed assets'!$P$2:$P$1000<$A672)*('Fixed assets'!$Q$2:$Q$1000=Costs!AM$617))-SUMPRODUCT(('Fixed assets'!$S$2:$S$1000)*('Fixed assets'!$P$2:$P$1000<Costs!$A672)*('Fixed assets'!$Q$2:$Q$1000=Costs!AM$617))-SUMPRODUCT(('Fixed assets'!$Q$2:$Q$1000=Costs!AM$617)*('Fixed assets'!$U$2:$U$1000=Costs!$A672)*('Fixed assets'!$S$2:$S$1000))+SUMPRODUCT(('Fixed assets'!$Q$2:$Q$1000=Costs!AM$617)*('Fixed assets'!$P$2:$P$1000=Costs!$A672)*('Fixed assets'!$U$2:$U$1000=Costs!$A672)*('Fixed assets'!$R$2:$R$1000))","v":0},{"$f":"SUMPRODUCT(('Fixed assets'!$R$2:$R$1000)*('Fixed assets'!$P$2:$P$1000<$A672)*('Fixed assets'!$Q$2:$Q$1000=Costs!AN$617))-SUMPRODUCT(('Fixed assets'!$S$2:$S$1000)*('Fixed assets'!$P$2:$P$1000<Costs!$A672)*('Fixed assets'!$Q$2:$Q$1000=Costs!AN$617))-SUMPRODUCT(('Fixed assets'!$Q$2:$Q$1000=Costs!AN$617)*('Fixed assets'!$U$2:$U$1000=Costs!$A672)*('Fixed assets'!$S$2:$S$1000))+SUMPRODUCT(('Fixed assets'!$Q$2:$Q$1000=Costs!AN$617)*('Fixed assets'!$P$2:$P$1000=Costs!$A672)*('Fixed assets'!$U$2:$U$1000=Costs!$A672)*('Fixed assets'!$R$2:$R$1000))","v":0},{"$f":"SUMPRODUCT(('Fixed assets'!$R$2:$R$1000)*('Fixed assets'!$P$2:$P$1000<$A672)*('Fixed assets'!$Q$2:$Q$1000=Costs!AO$617))-SUMPRODUCT(('Fixed assets'!$S$2:$S$1000)*('Fixed assets'!$P$2:$P$1000<Costs!$A672)*('Fixed assets'!$Q$2:$Q$1000=Costs!AO$617))-SUMPRODUCT(('Fixed assets'!$Q$2:$Q$1000=Costs!AO$617)*('Fixed assets'!$U$2:$U$1000=Costs!$A672)*('Fixed assets'!$S$2:$S$1000))+SUMPRODUCT(('Fixed assets'!$Q$2:$Q$1000=Costs!AO$617)*('Fixed assets'!$P$2:$P$1000=Costs!$A672)*('Fixed assets'!$U$2:$U$1000=Costs!$A672)*('Fixed assets'!$R$2:$R$1000))","v":0},{"$f":"SUMPRODUCT(('Fixed assets'!$R$2:$R$1000)*('Fixed assets'!$P$2:$P$1000<$A672)*('Fixed assets'!$Q$2:$Q$1000=Costs!AP$617))-SUMPRODUCT(('Fixed assets'!$S$2:$S$1000)*('Fixed assets'!$P$2:$P$1000<Costs!$A672)*('Fixed assets'!$Q$2:$Q$1000=Costs!AP$617))-SUMPRODUCT(('Fixed assets'!$Q$2:$Q$1000=Costs!AP$617)*('Fixed assets'!$U$2:$U$1000=Costs!$A672)*('Fixed assets'!$S$2:$S$1000))+SUMPRODUCT(('Fixed assets'!$Q$2:$Q$1000=Costs!AP$617)*('Fixed assets'!$P$2:$P$1000=Costs!$A672)*('Fixed assets'!$U$2:$U$1000=Costs!$A672)*('Fixed assets'!$R$2:$R$1000))","v":0},{"$f":"SUMPRODUCT(('Fixed assets'!$R$2:$R$1000)*('Fixed assets'!$P$2:$P$1000<$A672)*('Fixed assets'!$Q$2:$Q$1000=Costs!AQ$617))-SUMPRODUCT(('Fixed assets'!$S$2:$S$1000)*('Fixed assets'!$P$2:$P$1000<Costs!$A672)*('Fixed assets'!$Q$2:$Q$1000=Costs!AQ$617))-SUMPRODUCT(('Fixed assets'!$Q$2:$Q$1000=Costs!AQ$617)*('Fixed assets'!$U$2:$U$1000=Costs!$A672)*('Fixed assets'!$S$2:$S$1000))+SUMPRODUCT(('Fixed assets'!$Q$2:$Q$1000=Costs!AQ$617)*('Fixed assets'!$P$2:$P$1000=Costs!$A672)*('Fixed assets'!$U$2:$U$1000=Costs!$A672)*('Fixed assets'!$R$2:$R$1000))","v":0}]
[2070,0,{"$f":"SUMPRODUCT(('Fixed assets'!$R$2:$R$1000)*('Fixed assets'!$P$2:$P$1000<$A673)*('Fixed assets'!$Q$2:$Q$1000=Costs!C$617))-SUMPRODUCT(('Fixed assets'!$S$2:$S$1000)*('Fixed assets'!$P$2:$P$1000<Costs!$A673)*('Fixed assets'!$Q$2:$Q$1000=Costs!C$617))-SUMPRODUCT(('Fixed assets'!$Q$2:$Q$1000=Costs!C$617)*('Fixed assets'!$U$2:$U$1000=Costs!$A673)*('Fixed assets'!$S$2:$S$1000))+SUMPRODUCT(('Fixed assets'!$Q$2:$Q$1000=Costs!C$617)*('Fixed assets'!$P$2:$P$1000=Costs!$A673)*('Fixed assets'!$U$2:$U$1000=Costs!$A673)*('Fixed assets'!$R$2:$R$1000))","v":0},{"$f":"SUMPRODUCT(('Fixed assets'!$R$2:$R$1000)*('Fixed assets'!$P$2:$P$1000<$A673)*('Fixed assets'!$Q$2:$Q$1000=Costs!D$617))-SUMPRODUCT(('Fixed assets'!$S$2:$S$1000)*('Fixed assets'!$P$2:$P$1000<Costs!$A673)*('Fixed assets'!$Q$2:$Q$1000=Costs!D$617))-SUMPRODUCT(('Fixed assets'!$Q$2:$Q$1000=Costs!D$617)*('Fixed assets'!$U$2:$U$1000=Costs!$A673)*('Fixed assets'!$S$2:$S$1000))+SUMPRODUCT(('Fixed assets'!$Q$2:$Q$1000=Costs!D$617)*('Fixed assets'!$P$2:$P$1000=Costs!$A673)*('Fixed assets'!$U$2:$U$1000=Costs!$A673)*('Fixed assets'!$R$2:$R$1000))","v":0},{"$f":"SUMPRODUCT(('Fixed assets'!$R$2:$R$1000)*('Fixed assets'!$P$2:$P$1000<$A673)*('Fixed assets'!$Q$2:$Q$1000=Costs!E$617))-SUMPRODUCT(('Fixed assets'!$S$2:$S$1000)*('Fixed assets'!$P$2:$P$1000<Costs!$A673)*('Fixed assets'!$Q$2:$Q$1000=Costs!E$617))-SUMPRODUCT(('Fixed assets'!$Q$2:$Q$1000=Costs!E$617)*('Fixed assets'!$U$2:$U$1000=Costs!$A673)*('Fixed assets'!$S$2:$S$1000))+SUMPRODUCT(('Fixed assets'!$Q$2:$Q$1000=Costs!E$617)*('Fixed assets'!$P$2:$P$1000=Costs!$A673)*('Fixed assets'!$U$2:$U$1000=Costs!$A673)*('Fixed assets'!$R$2:$R$1000))","v":0},{"$f":"SUMPRODUCT(('Fixed assets'!$R$2:$R$1000)*('Fixed assets'!$P$2:$P$1000<$A673)*('Fixed assets'!$Q$2:$Q$1000=Costs!F$617))-SUMPRODUCT(('Fixed assets'!$S$2:$S$1000)*('Fixed assets'!$P$2:$P$1000<Costs!$A673)*('Fixed assets'!$Q$2:$Q$1000=Costs!F$617))-SUMPRODUCT(('Fixed assets'!$Q$2:$Q$1000=Costs!F$617)*('Fixed assets'!$U$2:$U$1000=Costs!$A673)*('Fixed assets'!$S$2:$S$1000))+SUMPRODUCT(('Fixed assets'!$Q$2:$Q$1000=Costs!F$617)*('Fixed assets'!$P$2:$P$1000=Costs!$A673)*('Fixed assets'!$U$2:$U$1000=Costs!$A673)*('Fixed assets'!$R$2:$R$1000))","v":0},{"$f":"SUMPRODUCT(('Fixed assets'!$R$2:$R$1000)*('Fixed assets'!$P$2:$P$1000<$A673)*('Fixed assets'!$Q$2:$Q$1000=Costs!G$617))-SUMPRODUCT(('Fixed assets'!$S$2:$S$1000)*('Fixed assets'!$P$2:$P$1000<Costs!$A673)*('Fixed assets'!$Q$2:$Q$1000=Costs!G$617))-SUMPRODUCT(('Fixed assets'!$Q$2:$Q$1000=Costs!G$617)*('Fixed assets'!$U$2:$U$1000=Costs!$A673)*('Fixed assets'!$S$2:$S$1000))+SUMPRODUCT(('Fixed assets'!$Q$2:$Q$1000=Costs!G$617)*('Fixed assets'!$P$2:$P$1000=Costs!$A673)*('Fixed assets'!$U$2:$U$1000=Costs!$A673)*('Fixed assets'!$R$2:$R$1000))","v":0},{"$f":"SUMPRODUCT(('Fixed assets'!$R$2:$R$1000)*('Fixed assets'!$P$2:$P$1000<$A673)*('Fixed assets'!$Q$2:$Q$1000=Costs!H$617))-SUMPRODUCT(('Fixed assets'!$S$2:$S$1000)*('Fixed assets'!$P$2:$P$1000<Costs!$A673)*('Fixed assets'!$Q$2:$Q$1000=Costs!H$617))-SUMPRODUCT(('Fixed assets'!$Q$2:$Q$1000=Costs!H$617)*('Fixed assets'!$U$2:$U$1000=Costs!$A673)*('Fixed assets'!$S$2:$S$1000))+SUMPRODUCT(('Fixed assets'!$Q$2:$Q$1000=Costs!H$617)*('Fixed assets'!$P$2:$P$1000=Costs!$A673)*('Fixed assets'!$U$2:$U$1000=Costs!$A673)*('Fixed assets'!$R$2:$R$1000))","v":0},{"$f":"SUMPRODUCT(('Fixed assets'!$R$2:$R$1000)*('Fixed assets'!$P$2:$P$1000<$A673)*('Fixed assets'!$Q$2:$Q$1000=Costs!I$617))-SUMPRODUCT(('Fixed assets'!$S$2:$S$1000)*('Fixed assets'!$P$2:$P$1000<Costs!$A673)*('Fixed assets'!$Q$2:$Q$1000=Costs!I$617))-SUMPRODUCT(('Fixed assets'!$Q$2:$Q$1000=Costs!I$617)*('Fixed assets'!$U$2:$U$1000=Costs!$A673)*('Fixed assets'!$S$2:$S$1000))+SUMPRODUCT(('Fixed assets'!$Q$2:$Q$1000=Costs!I$617)*('Fixed assets'!$P$2:$P$1000=Costs!$A673)*('Fixed assets'!$U$2:$U$1000=Costs!$A673)*('Fixed assets'!$R$2:$R$1000))","v":0},{"$f":"SUMPRODUCT(('Fixed assets'!$R$2:$R$1000)*('Fixed assets'!$P$2:$P$1000<$A673)*('Fixed assets'!$Q$2:$Q$1000=Costs!J$617))-SUMPRODUCT(('Fixed assets'!$S$2:$S$1000)*('Fixed assets'!$P$2:$P$1000<Costs!$A673)*('Fixed assets'!$Q$2:$Q$1000=Costs!J$617))-SUMPRODUCT(('Fixed assets'!$Q$2:$Q$1000=Costs!J$617)*('Fixed assets'!$U$2:$U$1000=Costs!$A673)*('Fixed assets'!$S$2:$S$1000))+SUMPRODUCT(('Fixed assets'!$Q$2:$Q$1000=Costs!J$617)*('Fixed assets'!$P$2:$P$1000=Costs!$A673)*('Fixed assets'!$U$2:$U$1000=Costs!$A673)*('Fixed assets'!$R$2:$R$1000))","v":0},{"$f":"SUMPRODUCT(('Fixed assets'!$R$2:$R$1000)*('Fixed assets'!$P$2:$P$1000<$A673)*('Fixed assets'!$Q$2:$Q$1000=Costs!K$617))-SUMPRODUCT(('Fixed assets'!$S$2:$S$1000)*('Fixed assets'!$P$2:$P$1000<Costs!$A673)*('Fixed assets'!$Q$2:$Q$1000=Costs!K$617))-SUMPRODUCT(('Fixed assets'!$Q$2:$Q$1000=Costs!K$617)*('Fixed assets'!$U$2:$U$1000=Costs!$A673)*('Fixed assets'!$S$2:$S$1000))+SUMPRODUCT(('Fixed assets'!$Q$2:$Q$1000=Costs!K$617)*('Fixed assets'!$P$2:$P$1000=Costs!$A673)*('Fixed assets'!$U$2:$U$1000=Costs!$A673)*('Fixed assets'!$R$2:$R$1000))","v":0},{"$f":"SUMPRODUCT(('Fixed assets'!$R$2:$R$1000)*('Fixed assets'!$P$2:$P$1000<$A673)*('Fixed assets'!$Q$2:$Q$1000=Costs!L$617))-SUMPRODUCT(('Fixed assets'!$S$2:$S$1000)*('Fixed assets'!$P$2:$P$1000<Costs!$A673)*('Fixed assets'!$Q$2:$Q$1000=Costs!L$617))-SUMPRODUCT(('Fixed assets'!$Q$2:$Q$1000=Costs!L$617)*('Fixed assets'!$U$2:$U$1000=Costs!$A673)*('Fixed assets'!$S$2:$S$1000))+SUMPRODUCT(('Fixed assets'!$Q$2:$Q$1000=Costs!L$617)*('Fixed assets'!$P$2:$P$1000=Costs!$A673)*('Fixed assets'!$U$2:$U$1000=Costs!$A673)*('Fixed assets'!$R$2:$R$1000))","v":0},{"$f":"SUMPRODUCT(('Fixed assets'!$R$2:$R$1000)*('Fixed assets'!$P$2:$P$1000<$A673)*('Fixed assets'!$Q$2:$Q$1000=Costs!M$617))-SUMPRODUCT(('Fixed assets'!$S$2:$S$1000)*('Fixed assets'!$P$2:$P$1000<Costs!$A673)*('Fixed assets'!$Q$2:$Q$1000=Costs!M$617))-SUMPRODUCT(('Fixed assets'!$Q$2:$Q$1000=Costs!M$617)*('Fixed assets'!$U$2:$U$1000=Costs!$A673)*('Fixed assets'!$S$2:$S$1000))+SUMPRODUCT(('Fixed assets'!$Q$2:$Q$1000=Costs!M$617)*('Fixed assets'!$P$2:$P$1000=Costs!$A673)*('Fixed assets'!$U$2:$U$1000=Costs!$A673)*('Fixed assets'!$R$2:$R$1000))","v":0},{"$f":"SUMPRODUCT(('Fixed assets'!$R$2:$R$1000)*('Fixed assets'!$P$2:$P$1000<$A673)*('Fixed assets'!$Q$2:$Q$1000=Costs!N$617))-SUMPRODUCT(('Fixed assets'!$S$2:$S$1000)*('Fixed assets'!$P$2:$P$1000<Costs!$A673)*('Fixed assets'!$Q$2:$Q$1000=Costs!N$617))-SUMPRODUCT(('Fixed assets'!$Q$2:$Q$1000=Costs!N$617)*('Fixed assets'!$U$2:$U$1000=Costs!$A673)*('Fixed assets'!$S$2:$S$1000))+SUMPRODUCT(('Fixed assets'!$Q$2:$Q$1000=Costs!N$617)*('Fixed assets'!$P$2:$P$1000=Costs!$A673)*('Fixed assets'!$U$2:$U$1000=Costs!$A673)*('Fixed assets'!$R$2:$R$1000))","v":0},{"$f":"SUMPRODUCT(('Fixed assets'!$R$2:$R$1000)*('Fixed assets'!$P$2:$P$1000<$A673)*('Fixed assets'!$Q$2:$Q$1000=Costs!O$617))-SUMPRODUCT(('Fixed assets'!$S$2:$S$1000)*('Fixed assets'!$P$2:$P$1000<Costs!$A673)*('Fixed assets'!$Q$2:$Q$1000=Costs!O$617))-SUMPRODUCT(('Fixed assets'!$Q$2:$Q$1000=Costs!O$617)*('Fixed assets'!$U$2:$U$1000=Costs!$A673)*('Fixed assets'!$S$2:$S$1000))+SUMPRODUCT(('Fixed assets'!$Q$2:$Q$1000=Costs!O$617)*('Fixed assets'!$P$2:$P$1000=Costs!$A673)*('Fixed assets'!$U$2:$U$1000=Costs!$A673)*('Fixed assets'!$R$2:$R$1000))","v":0},{"$f":"SUMPRODUCT(('Fixed assets'!$R$2:$R$1000)*('Fixed assets'!$P$2:$P$1000<$A673)*('Fixed assets'!$Q$2:$Q$1000=Costs!P$617))-SUMPRODUCT(('Fixed assets'!$S$2:$S$1000)*('Fixed assets'!$P$2:$P$1000<Costs!$A673)*('Fixed assets'!$Q$2:$Q$1000=Costs!P$617))-SUMPRODUCT(('Fixed assets'!$Q$2:$Q$1000=Costs!P$617)*('Fixed assets'!$U$2:$U$1000=Costs!$A673)*('Fixed assets'!$S$2:$S$1000))+SUMPRODUCT(('Fixed assets'!$Q$2:$Q$1000=Costs!P$617)*('Fixed assets'!$P$2:$P$1000=Costs!$A673)*('Fixed assets'!$U$2:$U$1000=Costs!$A673)*('Fixed assets'!$R$2:$R$1000))","v":0},{"$f":"SUMPRODUCT(('Fixed assets'!$R$2:$R$1000)*('Fixed assets'!$P$2:$P$1000<$A673)*('Fixed assets'!$Q$2:$Q$1000=Costs!Q$617))-SUMPRODUCT(('Fixed assets'!$S$2:$S$1000)*('Fixed assets'!$P$2:$P$1000<Costs!$A673)*('Fixed assets'!$Q$2:$Q$1000=Costs!Q$617))-SUMPRODUCT(('Fixed assets'!$Q$2:$Q$1000=Costs!Q$617)*('Fixed assets'!$U$2:$U$1000=Costs!$A673)*('Fixed assets'!$S$2:$S$1000))+SUMPRODUCT(('Fixed assets'!$Q$2:$Q$1000=Costs!Q$617)*('Fixed assets'!$P$2:$P$1000=Costs!$A673)*('Fixed assets'!$U$2:$U$1000=Costs!$A673)*('Fixed assets'!$R$2:$R$1000))","v":0},{"$f":"SUMPRODUCT(('Fixed assets'!$R$2:$R$1000)*('Fixed assets'!$P$2:$P$1000<$A673)*('Fixed assets'!$Q$2:$Q$1000=Costs!R$617))-SUMPRODUCT(('Fixed assets'!$S$2:$S$1000)*('Fixed assets'!$P$2:$P$1000<Costs!$A673)*('Fixed assets'!$Q$2:$Q$1000=Costs!R$617))-SUMPRODUCT(('Fixed assets'!$Q$2:$Q$1000=Costs!R$617)*('Fixed assets'!$U$2:$U$1000=Costs!$A673)*('Fixed assets'!$S$2:$S$1000))+SUMPRODUCT(('Fixed assets'!$Q$2:$Q$1000=Costs!R$617)*('Fixed assets'!$P$2:$P$1000=Costs!$A673)*('Fixed assets'!$U$2:$U$1000=Costs!$A673)*('Fixed assets'!$R$2:$R$1000))","v":0},{"$f":"SUMPRODUCT(('Fixed assets'!$R$2:$R$1000)*('Fixed assets'!$P$2:$P$1000<$A673)*('Fixed assets'!$Q$2:$Q$1000=Costs!S$617))-SUMPRODUCT(('Fixed assets'!$S$2:$S$1000)*('Fixed assets'!$P$2:$P$1000<Costs!$A673)*('Fixed assets'!$Q$2:$Q$1000=Costs!S$617))-SUMPRODUCT(('Fixed assets'!$Q$2:$Q$1000=Costs!S$617)*('Fixed assets'!$U$2:$U$1000=Costs!$A673)*('Fixed assets'!$S$2:$S$1000))+SUMPRODUCT(('Fixed assets'!$Q$2:$Q$1000=Costs!S$617)*('Fixed assets'!$P$2:$P$1000=Costs!$A673)*('Fixed assets'!$U$2:$U$1000=Costs!$A673)*('Fixed assets'!$R$2:$R$1000))","v":0},{"$f":"SUMPRODUCT(('Fixed assets'!$R$2:$R$1000)*('Fixed assets'!$P$2:$P$1000<$A673)*('Fixed assets'!$Q$2:$Q$1000=Costs!T$617))-SUMPRODUCT(('Fixed assets'!$S$2:$S$1000)*('Fixed assets'!$P$2:$P$1000<Costs!$A673)*('Fixed assets'!$Q$2:$Q$1000=Costs!T$617))-SUMPRODUCT(('Fixed assets'!$Q$2:$Q$1000=Costs!T$617)*('Fixed assets'!$U$2:$U$1000=Costs!$A673)*('Fixed assets'!$S$2:$S$1000))+SUMPRODUCT(('Fixed assets'!$Q$2:$Q$1000=Costs!T$617)*('Fixed assets'!$P$2:$P$1000=Costs!$A673)*('Fixed assets'!$U$2:$U$1000=Costs!$A673)*('Fixed assets'!$R$2:$R$1000))","v":0},{"$f":"SUMPRODUCT(('Fixed assets'!$R$2:$R$1000)*('Fixed assets'!$P$2:$P$1000<$A673)*('Fixed assets'!$Q$2:$Q$1000=Costs!U$617))-SUMPRODUCT(('Fixed assets'!$S$2:$S$1000)*('Fixed assets'!$P$2:$P$1000<Costs!$A673)*('Fixed assets'!$Q$2:$Q$1000=Costs!U$617))-SUMPRODUCT(('Fixed assets'!$Q$2:$Q$1000=Costs!U$617)*('Fixed assets'!$U$2:$U$1000=Costs!$A673)*('Fixed assets'!$S$2:$S$1000))+SUMPRODUCT(('Fixed assets'!$Q$2:$Q$1000=Costs!U$617)*('Fixed assets'!$P$2:$P$1000=Costs!$A673)*('Fixed assets'!$U$2:$U$1000=Costs!$A673)*('Fixed assets'!$R$2:$R$1000))","v":0},{"$f":"SUMPRODUCT(('Fixed assets'!$R$2:$R$1000)*('Fixed assets'!$P$2:$P$1000<$A673)*('Fixed assets'!$Q$2:$Q$1000=Costs!V$617))-SUMPRODUCT(('Fixed assets'!$S$2:$S$1000)*('Fixed assets'!$P$2:$P$1000<Costs!$A673)*('Fixed assets'!$Q$2:$Q$1000=Costs!V$617))-SUMPRODUCT(('Fixed assets'!$Q$2:$Q$1000=Costs!V$617)*('Fixed assets'!$U$2:$U$1000=Costs!$A673)*('Fixed assets'!$S$2:$S$1000))+SUMPRODUCT(('Fixed assets'!$Q$2:$Q$1000=Costs!V$617)*('Fixed assets'!$P$2:$P$1000=Costs!$A673)*('Fixed assets'!$U$2:$U$1000=Costs!$A673)*('Fixed assets'!$R$2:$R$1000))","v":0},{"$f":"SUMPRODUCT(('Fixed assets'!$R$2:$R$1000)*('Fixed assets'!$P$2:$P$1000<$A673)*('Fixed assets'!$Q$2:$Q$1000=Costs!W$617))-SUMPRODUCT(('Fixed assets'!$S$2:$S$1000)*('Fixed assets'!$P$2:$P$1000<Costs!$A673)*('Fixed assets'!$Q$2:$Q$1000=Costs!W$617))-SUMPRODUCT(('Fixed assets'!$Q$2:$Q$1000=Costs!W$617)*('Fixed assets'!$U$2:$U$1000=Costs!$A673)*('Fixed assets'!$S$2:$S$1000))+SUMPRODUCT(('Fixed assets'!$Q$2:$Q$1000=Costs!W$617)*('Fixed assets'!$P$2:$P$1000=Costs!$A673)*('Fixed assets'!$U$2:$U$1000=Costs!$A673)*('Fixed assets'!$R$2:$R$1000))","v":0},{"$f":"SUMPRODUCT(('Fixed assets'!$R$2:$R$1000)*('Fixed assets'!$P$2:$P$1000<$A673)*('Fixed assets'!$Q$2:$Q$1000=Costs!X$617))-SUMPRODUCT(('Fixed assets'!$S$2:$S$1000)*('Fixed assets'!$P$2:$P$1000<Costs!$A673)*('Fixed assets'!$Q$2:$Q$1000=Costs!X$617))-SUMPRODUCT(('Fixed assets'!$Q$2:$Q$1000=Costs!X$617)*('Fixed assets'!$U$2:$U$1000=Costs!$A673)*('Fixed assets'!$S$2:$S$1000))+SUMPRODUCT(('Fixed assets'!$Q$2:$Q$1000=Costs!X$617)*('Fixed assets'!$P$2:$P$1000=Costs!$A673)*('Fixed assets'!$U$2:$U$1000=Costs!$A673)*('Fixed assets'!$R$2:$R$1000))","v":0},{"$f":"SUMPRODUCT(('Fixed assets'!$R$2:$R$1000)*('Fixed assets'!$P$2:$P$1000<$A673)*('Fixed assets'!$Q$2:$Q$1000=Costs!Y$617))-SUMPRODUCT(('Fixed assets'!$S$2:$S$1000)*('Fixed assets'!$P$2:$P$1000<Costs!$A673)*('Fixed assets'!$Q$2:$Q$1000=Costs!Y$617))-SUMPRODUCT(('Fixed assets'!$Q$2:$Q$1000=Costs!Y$617)*('Fixed assets'!$U$2:$U$1000=Costs!$A673)*('Fixed assets'!$S$2:$S$1000))+SUMPRODUCT(('Fixed assets'!$Q$2:$Q$1000=Costs!Y$617)*('Fixed assets'!$P$2:$P$1000=Costs!$A673)*('Fixed assets'!$U$2:$U$1000=Costs!$A673)*('Fixed assets'!$R$2:$R$1000))","v":0},{"$f":"SUMPRODUCT(('Fixed assets'!$R$2:$R$1000)*('Fixed assets'!$P$2:$P$1000<$A673)*('Fixed assets'!$Q$2:$Q$1000=Costs!Z$617))-SUMPRODUCT(('Fixed assets'!$S$2:$S$1000)*('Fixed assets'!$P$2:$P$1000<Costs!$A673)*('Fixed assets'!$Q$2:$Q$1000=Costs!Z$617))-SUMPRODUCT(('Fixed assets'!$Q$2:$Q$1000=Costs!Z$617)*('Fixed assets'!$U$2:$U$1000=Costs!$A673)*('Fixed assets'!$S$2:$S$1000))+SUMPRODUCT(('Fixed assets'!$Q$2:$Q$1000=Costs!Z$617)*('Fixed assets'!$P$2:$P$1000=Costs!$A673)*('Fixed assets'!$U$2:$U$1000=Costs!$A673)*('Fixed assets'!$R$2:$R$1000))","v":0},{"$f":"SUMPRODUCT(('Fixed assets'!$R$2:$R$1000)*('Fixed assets'!$P$2:$P$1000<$A673)*('Fixed assets'!$Q$2:$Q$1000=Costs!AA$617))-SUMPRODUCT(('Fixed assets'!$S$2:$S$1000)*('Fixed assets'!$P$2:$P$1000<Costs!$A673)*('Fixed assets'!$Q$2:$Q$1000=Costs!AA$617))-SUMPRODUCT(('Fixed assets'!$Q$2:$Q$1000=Costs!AA$617)*('Fixed assets'!$U$2:$U$1000=Costs!$A673)*('Fixed assets'!$S$2:$S$1000))+SUMPRODUCT(('Fixed assets'!$Q$2:$Q$1000=Costs!AA$617)*('Fixed assets'!$P$2:$P$1000=Costs!$A673)*('Fixed assets'!$U$2:$U$1000=Costs!$A673)*('Fixed assets'!$R$2:$R$1000))","v":0},{"$f":"SUMPRODUCT(('Fixed assets'!$R$2:$R$1000)*('Fixed assets'!$P$2:$P$1000<$A673)*('Fixed assets'!$Q$2:$Q$1000=Costs!AB$617))-SUMPRODUCT(('Fixed assets'!$S$2:$S$1000)*('Fixed assets'!$P$2:$P$1000<Costs!$A673)*('Fixed assets'!$Q$2:$Q$1000=Costs!AB$617))-SUMPRODUCT(('Fixed assets'!$Q$2:$Q$1000=Costs!AB$617)*('Fixed assets'!$U$2:$U$1000=Costs!$A673)*('Fixed assets'!$S$2:$S$1000))+SUMPRODUCT(('Fixed assets'!$Q$2:$Q$1000=Costs!AB$617)*('Fixed assets'!$P$2:$P$1000=Costs!$A673)*('Fixed assets'!$U$2:$U$1000=Costs!$A673)*('Fixed assets'!$R$2:$R$1000))","v":0},{"$f":"SUMPRODUCT(('Fixed assets'!$R$2:$R$1000)*('Fixed assets'!$P$2:$P$1000<$A673)*('Fixed assets'!$Q$2:$Q$1000=Costs!AC$617))-SUMPRODUCT(('Fixed assets'!$S$2:$S$1000)*('Fixed assets'!$P$2:$P$1000<Costs!$A673)*('Fixed assets'!$Q$2:$Q$1000=Costs!AC$617))-SUMPRODUCT(('Fixed assets'!$Q$2:$Q$1000=Costs!AC$617)*('Fixed assets'!$U$2:$U$1000=Costs!$A673)*('Fixed assets'!$S$2:$S$1000))+SUMPRODUCT(('Fixed assets'!$Q$2:$Q$1000=Costs!AC$617)*('Fixed assets'!$P$2:$P$1000=Costs!$A673)*('Fixed assets'!$U$2:$U$1000=Costs!$A673)*('Fixed assets'!$R$2:$R$1000))","v":0},{"$f":"SUMPRODUCT(('Fixed assets'!$R$2:$R$1000)*('Fixed assets'!$P$2:$P$1000<$A673)*('Fixed assets'!$Q$2:$Q$1000=Costs!AD$617))-SUMPRODUCT(('Fixed assets'!$S$2:$S$1000)*('Fixed assets'!$P$2:$P$1000<Costs!$A673)*('Fixed assets'!$Q$2:$Q$1000=Costs!AD$617))-SUMPRODUCT(('Fixed assets'!$Q$2:$Q$1000=Costs!AD$617)*('Fixed assets'!$U$2:$U$1000=Costs!$A673)*('Fixed assets'!$S$2:$S$1000))+SUMPRODUCT(('Fixed assets'!$Q$2:$Q$1000=Costs!AD$617)*('Fixed assets'!$P$2:$P$1000=Costs!$A673)*('Fixed assets'!$U$2:$U$1000=Costs!$A673)*('Fixed assets'!$R$2:$R$1000))","v":0},{"$f":"SUMPRODUCT(('Fixed assets'!$R$2:$R$1000)*('Fixed assets'!$P$2:$P$1000<$A673)*('Fixed assets'!$Q$2:$Q$1000=Costs!AE$617))-SUMPRODUCT(('Fixed assets'!$S$2:$S$1000)*('Fixed assets'!$P$2:$P$1000<Costs!$A673)*('Fixed assets'!$Q$2:$Q$1000=Costs!AE$617))-SUMPRODUCT(('Fixed assets'!$Q$2:$Q$1000=Costs!AE$617)*('Fixed assets'!$U$2:$U$1000=Costs!$A673)*('Fixed assets'!$S$2:$S$1000))+SUMPRODUCT(('Fixed assets'!$Q$2:$Q$1000=Costs!AE$617)*('Fixed assets'!$P$2:$P$1000=Costs!$A673)*('Fixed assets'!$U$2:$U$1000=Costs!$A673)*('Fixed assets'!$R$2:$R$1000))","v":0},{"$f":"SUMPRODUCT(('Fixed assets'!$R$2:$R$1000)*('Fixed assets'!$P$2:$P$1000<$A673)*('Fixed assets'!$Q$2:$Q$1000=Costs!AF$617))-SUMPRODUCT(('Fixed assets'!$S$2:$S$1000)*('Fixed assets'!$P$2:$P$1000<Costs!$A673)*('Fixed assets'!$Q$2:$Q$1000=Costs!AF$617))-SUMPRODUCT(('Fixed assets'!$Q$2:$Q$1000=Costs!AF$617)*('Fixed assets'!$U$2:$U$1000=Costs!$A673)*('Fixed assets'!$S$2:$S$1000))+SUMPRODUCT(('Fixed assets'!$Q$2:$Q$1000=Costs!AF$617)*('Fixed assets'!$P$2:$P$1000=Costs!$A673)*('Fixed assets'!$U$2:$U$1000=Costs!$A673)*('Fixed assets'!$R$2:$R$1000))","v":0},{"$f":"SUMPRODUCT(('Fixed assets'!$R$2:$R$1000)*('Fixed assets'!$P$2:$P$1000<$A673)*('Fixed assets'!$Q$2:$Q$1000=Costs!AG$617))-SUMPRODUCT(('Fixed assets'!$S$2:$S$1000)*('Fixed assets'!$P$2:$P$1000<Costs!$A673)*('Fixed assets'!$Q$2:$Q$1000=Costs!AG$617))-SUMPRODUCT(('Fixed assets'!$Q$2:$Q$1000=Costs!AG$617)*('Fixed assets'!$U$2:$U$1000=Costs!$A673)*('Fixed assets'!$S$2:$S$1000))+SUMPRODUCT(('Fixed assets'!$Q$2:$Q$1000=Costs!AG$617)*('Fixed assets'!$P$2:$P$1000=Costs!$A673)*('Fixed assets'!$U$2:$U$1000=Costs!$A673)*('Fixed assets'!$R$2:$R$1000))","v":0},{"$f":"SUMPRODUCT(('Fixed assets'!$R$2:$R$1000)*('Fixed assets'!$P$2:$P$1000<$A673)*('Fixed assets'!$Q$2:$Q$1000=Costs!AH$617))-SUMPRODUCT(('Fixed assets'!$S$2:$S$1000)*('Fixed assets'!$P$2:$P$1000<Costs!$A673)*('Fixed assets'!$Q$2:$Q$1000=Costs!AH$617))-SUMPRODUCT(('Fixed assets'!$Q$2:$Q$1000=Costs!AH$617)*('Fixed assets'!$U$2:$U$1000=Costs!$A673)*('Fixed assets'!$S$2:$S$1000))+SUMPRODUCT(('Fixed assets'!$Q$2:$Q$1000=Costs!AH$617)*('Fixed assets'!$P$2:$P$1000=Costs!$A673)*('Fixed assets'!$U$2:$U$1000=Costs!$A673)*('Fixed assets'!$R$2:$R$1000))","v":0},{"$f":"SUMPRODUCT(('Fixed assets'!$R$2:$R$1000)*('Fixed assets'!$P$2:$P$1000<$A673)*('Fixed assets'!$Q$2:$Q$1000=Costs!AI$617))-SUMPRODUCT(('Fixed assets'!$S$2:$S$1000)*('Fixed assets'!$P$2:$P$1000<Costs!$A673)*('Fixed assets'!$Q$2:$Q$1000=Costs!AI$617))-SUMPRODUCT(('Fixed assets'!$Q$2:$Q$1000=Costs!AI$617)*('Fixed assets'!$U$2:$U$1000=Costs!$A673)*('Fixed assets'!$S$2:$S$1000))+SUMPRODUCT(('Fixed assets'!$Q$2:$Q$1000=Costs!AI$617)*('Fixed assets'!$P$2:$P$1000=Costs!$A673)*('Fixed assets'!$U$2:$U$1000=Costs!$A673)*('Fixed assets'!$R$2:$R$1000))","v":0},{"$f":"SUMPRODUCT(('Fixed assets'!$R$2:$R$1000)*('Fixed assets'!$P$2:$P$1000<$A673)*('Fixed assets'!$Q$2:$Q$1000=Costs!AJ$617))-SUMPRODUCT(('Fixed assets'!$S$2:$S$1000)*('Fixed assets'!$P$2:$P$1000<Costs!$A673)*('Fixed assets'!$Q$2:$Q$1000=Costs!AJ$617))-SUMPRODUCT(('Fixed assets'!$Q$2:$Q$1000=Costs!AJ$617)*('Fixed assets'!$U$2:$U$1000=Costs!$A673)*('Fixed assets'!$S$2:$S$1000))+SUMPRODUCT(('Fixed assets'!$Q$2:$Q$1000=Costs!AJ$617)*('Fixed assets'!$P$2:$P$1000=Costs!$A673)*('Fixed assets'!$U$2:$U$1000=Costs!$A673)*('Fixed assets'!$R$2:$R$1000))","v":0},{"$f":"SUMPRODUCT(('Fixed assets'!$R$2:$R$1000)*('Fixed assets'!$P$2:$P$1000<$A673)*('Fixed assets'!$Q$2:$Q$1000=Costs!AK$617))-SUMPRODUCT(('Fixed assets'!$S$2:$S$1000)*('Fixed assets'!$P$2:$P$1000<Costs!$A673)*('Fixed assets'!$Q$2:$Q$1000=Costs!AK$617))-SUMPRODUCT(('Fixed assets'!$Q$2:$Q$1000=Costs!AK$617)*('Fixed assets'!$U$2:$U$1000=Costs!$A673)*('Fixed assets'!$S$2:$S$1000))+SUMPRODUCT(('Fixed assets'!$Q$2:$Q$1000=Costs!AK$617)*('Fixed assets'!$P$2:$P$1000=Costs!$A673)*('Fixed assets'!$U$2:$U$1000=Costs!$A673)*('Fixed assets'!$R$2:$R$1000))","v":0},{"$f":"SUMPRODUCT(('Fixed assets'!$R$2:$R$1000)*('Fixed assets'!$P$2:$P$1000<$A673)*('Fixed assets'!$Q$2:$Q$1000=Costs!AL$617))-SUMPRODUCT(('Fixed assets'!$S$2:$S$1000)*('Fixed assets'!$P$2:$P$1000<Costs!$A673)*('Fixed assets'!$Q$2:$Q$1000=Costs!AL$617))-SUMPRODUCT(('Fixed assets'!$Q$2:$Q$1000=Costs!AL$617)*('Fixed assets'!$U$2:$U$1000=Costs!$A673)*('Fixed assets'!$S$2:$S$1000))+SUMPRODUCT(('Fixed assets'!$Q$2:$Q$1000=Costs!AL$617)*('Fixed assets'!$P$2:$P$1000=Costs!$A673)*('Fixed assets'!$U$2:$U$1000=Costs!$A673)*('Fixed assets'!$R$2:$R$1000))","v":0},{"$f":"SUMPRODUCT(('Fixed assets'!$R$2:$R$1000)*('Fixed assets'!$P$2:$P$1000<$A673)*('Fixed assets'!$Q$2:$Q$1000=Costs!AM$617))-SUMPRODUCT(('Fixed assets'!$S$2:$S$1000)*('Fixed assets'!$P$2:$P$1000<Costs!$A673)*('Fixed assets'!$Q$2:$Q$1000=Costs!AM$617))-SUMPRODUCT(('Fixed assets'!$Q$2:$Q$1000=Costs!AM$617)*('Fixed assets'!$U$2:$U$1000=Costs!$A673)*('Fixed assets'!$S$2:$S$1000))+SUMPRODUCT(('Fixed assets'!$Q$2:$Q$1000=Costs!AM$617)*('Fixed assets'!$P$2:$P$1000=Costs!$A673)*('Fixed assets'!$U$2:$U$1000=Costs!$A673)*('Fixed assets'!$R$2:$R$1000))","v":0},{"$f":"SUMPRODUCT(('Fixed assets'!$R$2:$R$1000)*('Fixed assets'!$P$2:$P$1000<$A673)*('Fixed assets'!$Q$2:$Q$1000=Costs!AN$617))-SUMPRODUCT(('Fixed assets'!$S$2:$S$1000)*('Fixed assets'!$P$2:$P$1000<Costs!$A673)*('Fixed assets'!$Q$2:$Q$1000=Costs!AN$617))-SUMPRODUCT(('Fixed assets'!$Q$2:$Q$1000=Costs!AN$617)*('Fixed assets'!$U$2:$U$1000=Costs!$A673)*('Fixed assets'!$S$2:$S$1000))+SUMPRODUCT(('Fixed assets'!$Q$2:$Q$1000=Costs!AN$617)*('Fixed assets'!$P$2:$P$1000=Costs!$A673)*('Fixed assets'!$U$2:$U$1000=Costs!$A673)*('Fixed assets'!$R$2:$R$1000))","v":0},{"$f":"SUMPRODUCT(('Fixed assets'!$R$2:$R$1000)*('Fixed assets'!$P$2:$P$1000<$A673)*('Fixed assets'!$Q$2:$Q$1000=Costs!AO$617))-SUMPRODUCT(('Fixed assets'!$S$2:$S$1000)*('Fixed assets'!$P$2:$P$1000<Costs!$A673)*('Fixed assets'!$Q$2:$Q$1000=Costs!AO$617))-SUMPRODUCT(('Fixed assets'!$Q$2:$Q$1000=Costs!AO$617)*('Fixed assets'!$U$2:$U$1000=Costs!$A673)*('Fixed assets'!$S$2:$S$1000))+SUMPRODUCT(('Fixed assets'!$Q$2:$Q$1000=Costs!AO$617)*('Fixed assets'!$P$2:$P$1000=Costs!$A673)*('Fixed assets'!$U$2:$U$1000=Costs!$A673)*('Fixed assets'!$R$2:$R$1000))","v":0},{"$f":"SUMPRODUCT(('Fixed assets'!$R$2:$R$1000)*('Fixed assets'!$P$2:$P$1000<$A673)*('Fixed assets'!$Q$2:$Q$1000=Costs!AP$617))-SUMPRODUCT(('Fixed assets'!$S$2:$S$1000)*('Fixed assets'!$P$2:$P$1000<Costs!$A673)*('Fixed assets'!$Q$2:$Q$1000=Costs!AP$617))-SUMPRODUCT(('Fixed assets'!$Q$2:$Q$1000=Costs!AP$617)*('Fixed assets'!$U$2:$U$1000=Costs!$A673)*('Fixed assets'!$S$2:$S$1000))+SUMPRODUCT(('Fixed assets'!$Q$2:$Q$1000=Costs!AP$617)*('Fixed assets'!$P$2:$P$1000=Costs!$A673)*('Fixed assets'!$U$2:$U$1000=Costs!$A673)*('Fixed assets'!$R$2:$R$1000))","v":0},{"$f":"SUMPRODUCT(('Fixed assets'!$R$2:$R$1000)*('Fixed assets'!$P$2:$P$1000<$A673)*('Fixed assets'!$Q$2:$Q$1000=Costs!AQ$617))-SUMPRODUCT(('Fixed assets'!$S$2:$S$1000)*('Fixed assets'!$P$2:$P$1000<Costs!$A673)*('Fixed assets'!$Q$2:$Q$1000=Costs!AQ$617))-SUMPRODUCT(('Fixed assets'!$Q$2:$Q$1000=Costs!AQ$617)*('Fixed assets'!$U$2:$U$1000=Costs!$A673)*('Fixed assets'!$S$2:$S$1000))+SUMPRODUCT(('Fixed assets'!$Q$2:$Q$1000=Costs!AQ$617)*('Fixed assets'!$P$2:$P$1000=Costs!$A673)*('Fixed assets'!$U$2:$U$1000=Costs!$A673)*('Fixed assets'!$R$2:$R$1000))","v":0}]
[2071,0,{"$f":"SUMPRODUCT(('Fixed assets'!$R$2:$R$1000)*('Fixed assets'!$P$2:$P$1000<$A674)*('Fixed assets'!$Q$2:$Q$1000=Costs!C$617))-SUMPRODUCT(('Fixed assets'!$S$2:$S$1000)*('Fixed assets'!$P$2:$P$1000<Costs!$A674)*('Fixed assets'!$Q$2:$Q$1000=Costs!C$617))-SUMPRODUCT(('Fixed assets'!$Q$2:$Q$1000=Costs!C$617)*('Fixed assets'!$U$2:$U$1000=Costs!$A674)*('Fixed assets'!$S$2:$S$1000))+SUMPRODUCT(('Fixed assets'!$Q$2:$Q$1000=Costs!C$617)*('Fixed assets'!$P$2:$P$1000=Costs!$A674)*('Fixed assets'!$U$2:$U$1000=Costs!$A674)*('Fixed assets'!$R$2:$R$1000))","v":0},{"$f":"SUMPRODUCT(('Fixed assets'!$R$2:$R$1000)*('Fixed assets'!$P$2:$P$1000<$A674)*('Fixed assets'!$Q$2:$Q$1000=Costs!D$617))-SUMPRODUCT(('Fixed assets'!$S$2:$S$1000)*('Fixed assets'!$P$2:$P$1000<Costs!$A674)*('Fixed assets'!$Q$2:$Q$1000=Costs!D$617))-SUMPRODUCT(('Fixed assets'!$Q$2:$Q$1000=Costs!D$617)*('Fixed assets'!$U$2:$U$1000=Costs!$A674)*('Fixed assets'!$S$2:$S$1000))+SUMPRODUCT(('Fixed assets'!$Q$2:$Q$1000=Costs!D$617)*('Fixed assets'!$P$2:$P$1000=Costs!$A674)*('Fixed assets'!$U$2:$U$1000=Costs!$A674)*('Fixed assets'!$R$2:$R$1000))","v":0},{"$f":"SUMPRODUCT(('Fixed assets'!$R$2:$R$1000)*('Fixed assets'!$P$2:$P$1000<$A674)*('Fixed assets'!$Q$2:$Q$1000=Costs!E$617))-SUMPRODUCT(('Fixed assets'!$S$2:$S$1000)*('Fixed assets'!$P$2:$P$1000<Costs!$A674)*('Fixed assets'!$Q$2:$Q$1000=Costs!E$617))-SUMPRODUCT(('Fixed assets'!$Q$2:$Q$1000=Costs!E$617)*('Fixed assets'!$U$2:$U$1000=Costs!$A674)*('Fixed assets'!$S$2:$S$1000))+SUMPRODUCT(('Fixed assets'!$Q$2:$Q$1000=Costs!E$617)*('Fixed assets'!$P$2:$P$1000=Costs!$A674)*('Fixed assets'!$U$2:$U$1000=Costs!$A674)*('Fixed assets'!$R$2:$R$1000))","v":0},{"$f":"SUMPRODUCT(('Fixed assets'!$R$2:$R$1000)*('Fixed assets'!$P$2:$P$1000<$A674)*('Fixed assets'!$Q$2:$Q$1000=Costs!F$617))-SUMPRODUCT(('Fixed assets'!$S$2:$S$1000)*('Fixed assets'!$P$2:$P$1000<Costs!$A674)*('Fixed assets'!$Q$2:$Q$1000=Costs!F$617))-SUMPRODUCT(('Fixed assets'!$Q$2:$Q$1000=Costs!F$617)*('Fixed assets'!$U$2:$U$1000=Costs!$A674)*('Fixed assets'!$S$2:$S$1000))+SUMPRODUCT(('Fixed assets'!$Q$2:$Q$1000=Costs!F$617)*('Fixed assets'!$P$2:$P$1000=Costs!$A674)*('Fixed assets'!$U$2:$U$1000=Costs!$A674)*('Fixed assets'!$R$2:$R$1000))","v":0},{"$f":"SUMPRODUCT(('Fixed assets'!$R$2:$R$1000)*('Fixed assets'!$P$2:$P$1000<$A674)*('Fixed assets'!$Q$2:$Q$1000=Costs!G$617))-SUMPRODUCT(('Fixed assets'!$S$2:$S$1000)*('Fixed assets'!$P$2:$P$1000<Costs!$A674)*('Fixed assets'!$Q$2:$Q$1000=Costs!G$617))-SUMPRODUCT(('Fixed assets'!$Q$2:$Q$1000=Costs!G$617)*('Fixed assets'!$U$2:$U$1000=Costs!$A674)*('Fixed assets'!$S$2:$S$1000))+SUMPRODUCT(('Fixed assets'!$Q$2:$Q$1000=Costs!G$617)*('Fixed assets'!$P$2:$P$1000=Costs!$A674)*('Fixed assets'!$U$2:$U$1000=Costs!$A674)*('Fixed assets'!$R$2:$R$1000))","v":0},{"$f":"SUMPRODUCT(('Fixed assets'!$R$2:$R$1000)*('Fixed assets'!$P$2:$P$1000<$A674)*('Fixed assets'!$Q$2:$Q$1000=Costs!H$617))-SUMPRODUCT(('Fixed assets'!$S$2:$S$1000)*('Fixed assets'!$P$2:$P$1000<Costs!$A674)*('Fixed assets'!$Q$2:$Q$1000=Costs!H$617))-SUMPRODUCT(('Fixed assets'!$Q$2:$Q$1000=Costs!H$617)*('Fixed assets'!$U$2:$U$1000=Costs!$A674)*('Fixed assets'!$S$2:$S$1000))+SUMPRODUCT(('Fixed assets'!$Q$2:$Q$1000=Costs!H$617)*('Fixed assets'!$P$2:$P$1000=Costs!$A674)*('Fixed assets'!$U$2:$U$1000=Costs!$A674)*('Fixed assets'!$R$2:$R$1000))","v":0},{"$f":"SUMPRODUCT(('Fixed assets'!$R$2:$R$1000)*('Fixed assets'!$P$2:$P$1000<$A674)*('Fixed assets'!$Q$2:$Q$1000=Costs!I$617))-SUMPRODUCT(('Fixed assets'!$S$2:$S$1000)*('Fixed assets'!$P$2:$P$1000<Costs!$A674)*('Fixed assets'!$Q$2:$Q$1000=Costs!I$617))-SUMPRODUCT(('Fixed assets'!$Q$2:$Q$1000=Costs!I$617)*('Fixed assets'!$U$2:$U$1000=Costs!$A674)*('Fixed assets'!$S$2:$S$1000))+SUMPRODUCT(('Fixed assets'!$Q$2:$Q$1000=Costs!I$617)*('Fixed assets'!$P$2:$P$1000=Costs!$A674)*('Fixed assets'!$U$2:$U$1000=Costs!$A674)*('Fixed assets'!$R$2:$R$1000))","v":0},{"$f":"SUMPRODUCT(('Fixed assets'!$R$2:$R$1000)*('Fixed assets'!$P$2:$P$1000<$A674)*('Fixed assets'!$Q$2:$Q$1000=Costs!J$617))-SUMPRODUCT(('Fixed assets'!$S$2:$S$1000)*('Fixed assets'!$P$2:$P$1000<Costs!$A674)*('Fixed assets'!$Q$2:$Q$1000=Costs!J$617))-SUMPRODUCT(('Fixed assets'!$Q$2:$Q$1000=Costs!J$617)*('Fixed assets'!$U$2:$U$1000=Costs!$A674)*('Fixed assets'!$S$2:$S$1000))+SUMPRODUCT(('Fixed assets'!$Q$2:$Q$1000=Costs!J$617)*('Fixed assets'!$P$2:$P$1000=Costs!$A674)*('Fixed assets'!$U$2:$U$1000=Costs!$A674)*('Fixed assets'!$R$2:$R$1000))","v":0},{"$f":"SUMPRODUCT(('Fixed assets'!$R$2:$R$1000)*('Fixed assets'!$P$2:$P$1000<$A674)*('Fixed assets'!$Q$2:$Q$1000=Costs!K$617))-SUMPRODUCT(('Fixed assets'!$S$2:$S$1000)*('Fixed assets'!$P$2:$P$1000<Costs!$A674)*('Fixed assets'!$Q$2:$Q$1000=Costs!K$617))-SUMPRODUCT(('Fixed assets'!$Q$2:$Q$1000=Costs!K$617)*('Fixed assets'!$U$2:$U$1000=Costs!$A674)*('Fixed assets'!$S$2:$S$1000))+SUMPRODUCT(('Fixed assets'!$Q$2:$Q$1000=Costs!K$617)*('Fixed assets'!$P$2:$P$1000=Costs!$A674)*('Fixed assets'!$U$2:$U$1000=Costs!$A674)*('Fixed assets'!$R$2:$R$1000))","v":0},{"$f":"SUMPRODUCT(('Fixed assets'!$R$2:$R$1000)*('Fixed assets'!$P$2:$P$1000<$A674)*('Fixed assets'!$Q$2:$Q$1000=Costs!L$617))-SUMPRODUCT(('Fixed assets'!$S$2:$S$1000)*('Fixed assets'!$P$2:$P$1000<Costs!$A674)*('Fixed assets'!$Q$2:$Q$1000=Costs!L$617))-SUMPRODUCT(('Fixed assets'!$Q$2:$Q$1000=Costs!L$617)*('Fixed assets'!$U$2:$U$1000=Costs!$A674)*('Fixed assets'!$S$2:$S$1000))+SUMPRODUCT(('Fixed assets'!$Q$2:$Q$1000=Costs!L$617)*('Fixed assets'!$P$2:$P$1000=Costs!$A674)*('Fixed assets'!$U$2:$U$1000=Costs!$A674)*('Fixed assets'!$R$2:$R$1000))","v":0},{"$f":"SUMPRODUCT(('Fixed assets'!$R$2:$R$1000)*('Fixed assets'!$P$2:$P$1000<$A674)*('Fixed assets'!$Q$2:$Q$1000=Costs!M$617))-SUMPRODUCT(('Fixed assets'!$S$2:$S$1000)*('Fixed assets'!$P$2:$P$1000<Costs!$A674)*('Fixed assets'!$Q$2:$Q$1000=Costs!M$617))-SUMPRODUCT(('Fixed assets'!$Q$2:$Q$1000=Costs!M$617)*('Fixed assets'!$U$2:$U$1000=Costs!$A674)*('Fixed assets'!$S$2:$S$1000))+SUMPRODUCT(('Fixed assets'!$Q$2:$Q$1000=Costs!M$617)*('Fixed assets'!$P$2:$P$1000=Costs!$A674)*('Fixed assets'!$U$2:$U$1000=Costs!$A674)*('Fixed assets'!$R$2:$R$1000))","v":0},{"$f":"SUMPRODUCT(('Fixed assets'!$R$2:$R$1000)*('Fixed assets'!$P$2:$P$1000<$A674)*('Fixed assets'!$Q$2:$Q$1000=Costs!N$617))-SUMPRODUCT(('Fixed assets'!$S$2:$S$1000)*('Fixed assets'!$P$2:$P$1000<Costs!$A674)*('Fixed assets'!$Q$2:$Q$1000=Costs!N$617))-SUMPRODUCT(('Fixed assets'!$Q$2:$Q$1000=Costs!N$617)*('Fixed assets'!$U$2:$U$1000=Costs!$A674)*('Fixed assets'!$S$2:$S$1000))+SUMPRODUCT(('Fixed assets'!$Q$2:$Q$1000=Costs!N$617)*('Fixed assets'!$P$2:$P$1000=Costs!$A674)*('Fixed assets'!$U$2:$U$1000=Costs!$A674)*('Fixed assets'!$R$2:$R$1000))","v":0},{"$f":"SUMPRODUCT(('Fixed assets'!$R$2:$R$1000)*('Fixed assets'!$P$2:$P$1000<$A674)*('Fixed assets'!$Q$2:$Q$1000=Costs!O$617))-SUMPRODUCT(('Fixed assets'!$S$2:$S$1000)*('Fixed assets'!$P$2:$P$1000<Costs!$A674)*('Fixed assets'!$Q$2:$Q$1000=Costs!O$617))-SUMPRODUCT(('Fixed assets'!$Q$2:$Q$1000=Costs!O$617)*('Fixed assets'!$U$2:$U$1000=Costs!$A674)*('Fixed assets'!$S$2:$S$1000))+SUMPRODUCT(('Fixed assets'!$Q$2:$Q$1000=Costs!O$617)*('Fixed assets'!$P$2:$P$1000=Costs!$A674)*('Fixed assets'!$U$2:$U$1000=Costs!$A674)*('Fixed assets'!$R$2:$R$1000))","v":0},{"$f":"SUMPRODUCT(('Fixed assets'!$R$2:$R$1000)*('Fixed assets'!$P$2:$P$1000<$A674)*('Fixed assets'!$Q$2:$Q$1000=Costs!P$617))-SUMPRODUCT(('Fixed assets'!$S$2:$S$1000)*('Fixed assets'!$P$2:$P$1000<Costs!$A674)*('Fixed assets'!$Q$2:$Q$1000=Costs!P$617))-SUMPRODUCT(('Fixed assets'!$Q$2:$Q$1000=Costs!P$617)*('Fixed assets'!$U$2:$U$1000=Costs!$A674)*('Fixed assets'!$S$2:$S$1000))+SUMPRODUCT(('Fixed assets'!$Q$2:$Q$1000=Costs!P$617)*('Fixed assets'!$P$2:$P$1000=Costs!$A674)*('Fixed assets'!$U$2:$U$1000=Costs!$A674)*('Fixed assets'!$R$2:$R$1000))","v":0},{"$f":"SUMPRODUCT(('Fixed assets'!$R$2:$R$1000)*('Fixed assets'!$P$2:$P$1000<$A674)*('Fixed assets'!$Q$2:$Q$1000=Costs!Q$617))-SUMPRODUCT(('Fixed assets'!$S$2:$S$1000)*('Fixed assets'!$P$2:$P$1000<Costs!$A674)*('Fixed assets'!$Q$2:$Q$1000=Costs!Q$617))-SUMPRODUCT(('Fixed assets'!$Q$2:$Q$1000=Costs!Q$617)*('Fixed assets'!$U$2:$U$1000=Costs!$A674)*('Fixed assets'!$S$2:$S$1000))+SUMPRODUCT(('Fixed assets'!$Q$2:$Q$1000=Costs!Q$617)*('Fixed assets'!$P$2:$P$1000=Costs!$A674)*('Fixed assets'!$U$2:$U$1000=Costs!$A674)*('Fixed assets'!$R$2:$R$1000))","v":0},{"$f":"SUMPRODUCT(('Fixed assets'!$R$2:$R$1000)*('Fixed assets'!$P$2:$P$1000<$A674)*('Fixed assets'!$Q$2:$Q$1000=Costs!R$617))-SUMPRODUCT(('Fixed assets'!$S$2:$S$1000)*('Fixed assets'!$P$2:$P$1000<Costs!$A674)*('Fixed assets'!$Q$2:$Q$1000=Costs!R$617))-SUMPRODUCT(('Fixed assets'!$Q$2:$Q$1000=Costs!R$617)*('Fixed assets'!$U$2:$U$1000=Costs!$A674)*('Fixed assets'!$S$2:$S$1000))+SUMPRODUCT(('Fixed assets'!$Q$2:$Q$1000=Costs!R$617)*('Fixed assets'!$P$2:$P$1000=Costs!$A674)*('Fixed assets'!$U$2:$U$1000=Costs!$A674)*('Fixed assets'!$R$2:$R$1000))","v":0},{"$f":"SUMPRODUCT(('Fixed assets'!$R$2:$R$1000)*('Fixed assets'!$P$2:$P$1000<$A674)*('Fixed assets'!$Q$2:$Q$1000=Costs!S$617))-SUMPRODUCT(('Fixed assets'!$S$2:$S$1000)*('Fixed assets'!$P$2:$P$1000<Costs!$A674)*('Fixed assets'!$Q$2:$Q$1000=Costs!S$617))-SUMPRODUCT(('Fixed assets'!$Q$2:$Q$1000=Costs!S$617)*('Fixed assets'!$U$2:$U$1000=Costs!$A674)*('Fixed assets'!$S$2:$S$1000))+SUMPRODUCT(('Fixed assets'!$Q$2:$Q$1000=Costs!S$617)*('Fixed assets'!$P$2:$P$1000=Costs!$A674)*('Fixed assets'!$U$2:$U$1000=Costs!$A674)*('Fixed assets'!$R$2:$R$1000))","v":0},{"$f":"SUMPRODUCT(('Fixed assets'!$R$2:$R$1000)*('Fixed assets'!$P$2:$P$1000<$A674)*('Fixed assets'!$Q$2:$Q$1000=Costs!T$617))-SUMPRODUCT(('Fixed assets'!$S$2:$S$1000)*('Fixed assets'!$P$2:$P$1000<Costs!$A674)*('Fixed assets'!$Q$2:$Q$1000=Costs!T$617))-SUMPRODUCT(('Fixed assets'!$Q$2:$Q$1000=Costs!T$617)*('Fixed assets'!$U$2:$U$1000=Costs!$A674)*('Fixed assets'!$S$2:$S$1000))+SUMPRODUCT(('Fixed assets'!$Q$2:$Q$1000=Costs!T$617)*('Fixed assets'!$P$2:$P$1000=Costs!$A674)*('Fixed assets'!$U$2:$U$1000=Costs!$A674)*('Fixed assets'!$R$2:$R$1000))","v":0},{"$f":"SUMPRODUCT(('Fixed assets'!$R$2:$R$1000)*('Fixed assets'!$P$2:$P$1000<$A674)*('Fixed assets'!$Q$2:$Q$1000=Costs!U$617))-SUMPRODUCT(('Fixed assets'!$S$2:$S$1000)*('Fixed assets'!$P$2:$P$1000<Costs!$A674)*('Fixed assets'!$Q$2:$Q$1000=Costs!U$617))-SUMPRODUCT(('Fixed assets'!$Q$2:$Q$1000=Costs!U$617)*('Fixed assets'!$U$2:$U$1000=Costs!$A674)*('Fixed assets'!$S$2:$S$1000))+SUMPRODUCT(('Fixed assets'!$Q$2:$Q$1000=Costs!U$617)*('Fixed assets'!$P$2:$P$1000=Costs!$A674)*('Fixed assets'!$U$2:$U$1000=Costs!$A674)*('Fixed assets'!$R$2:$R$1000))","v":0},{"$f":"SUMPRODUCT(('Fixed assets'!$R$2:$R$1000)*('Fixed assets'!$P$2:$P$1000<$A674)*('Fixed assets'!$Q$2:$Q$1000=Costs!V$617))-SUMPRODUCT(('Fixed assets'!$S$2:$S$1000)*('Fixed assets'!$P$2:$P$1000<Costs!$A674)*('Fixed assets'!$Q$2:$Q$1000=Costs!V$617))-SUMPRODUCT(('Fixed assets'!$Q$2:$Q$1000=Costs!V$617)*('Fixed assets'!$U$2:$U$1000=Costs!$A674)*('Fixed assets'!$S$2:$S$1000))+SUMPRODUCT(('Fixed assets'!$Q$2:$Q$1000=Costs!V$617)*('Fixed assets'!$P$2:$P$1000=Costs!$A674)*('Fixed assets'!$U$2:$U$1000=Costs!$A674)*('Fixed assets'!$R$2:$R$1000))","v":0},{"$f":"SUMPRODUCT(('Fixed assets'!$R$2:$R$1000)*('Fixed assets'!$P$2:$P$1000<$A674)*('Fixed assets'!$Q$2:$Q$1000=Costs!W$617))-SUMPRODUCT(('Fixed assets'!$S$2:$S$1000)*('Fixed assets'!$P$2:$P$1000<Costs!$A674)*('Fixed assets'!$Q$2:$Q$1000=Costs!W$617))-SUMPRODUCT(('Fixed assets'!$Q$2:$Q$1000=Costs!W$617)*('Fixed assets'!$U$2:$U$1000=Costs!$A674)*('Fixed assets'!$S$2:$S$1000))+SUMPRODUCT(('Fixed assets'!$Q$2:$Q$1000=Costs!W$617)*('Fixed assets'!$P$2:$P$1000=Costs!$A674)*('Fixed assets'!$U$2:$U$1000=Costs!$A674)*('Fixed assets'!$R$2:$R$1000))","v":0},{"$f":"SUMPRODUCT(('Fixed assets'!$R$2:$R$1000)*('Fixed assets'!$P$2:$P$1000<$A674)*('Fixed assets'!$Q$2:$Q$1000=Costs!X$617))-SUMPRODUCT(('Fixed assets'!$S$2:$S$1000)*('Fixed assets'!$P$2:$P$1000<Costs!$A674)*('Fixed assets'!$Q$2:$Q$1000=Costs!X$617))-SUMPRODUCT(('Fixed assets'!$Q$2:$Q$1000=Costs!X$617)*('Fixed assets'!$U$2:$U$1000=Costs!$A674)*('Fixed assets'!$S$2:$S$1000))+SUMPRODUCT(('Fixed assets'!$Q$2:$Q$1000=Costs!X$617)*('Fixed assets'!$P$2:$P$1000=Costs!$A674)*('Fixed assets'!$U$2:$U$1000=Costs!$A674)*('Fixed assets'!$R$2:$R$1000))","v":0},{"$f":"SUMPRODUCT(('Fixed assets'!$R$2:$R$1000)*('Fixed assets'!$P$2:$P$1000<$A674)*('Fixed assets'!$Q$2:$Q$1000=Costs!Y$617))-SUMPRODUCT(('Fixed assets'!$S$2:$S$1000)*('Fixed assets'!$P$2:$P$1000<Costs!$A674)*('Fixed assets'!$Q$2:$Q$1000=Costs!Y$617))-SUMPRODUCT(('Fixed assets'!$Q$2:$Q$1000=Costs!Y$617)*('Fixed assets'!$U$2:$U$1000=Costs!$A674)*('Fixed assets'!$S$2:$S$1000))+SUMPRODUCT(('Fixed assets'!$Q$2:$Q$1000=Costs!Y$617)*('Fixed assets'!$P$2:$P$1000=Costs!$A674)*('Fixed assets'!$U$2:$U$1000=Costs!$A674)*('Fixed assets'!$R$2:$R$1000))","v":0},{"$f":"SUMPRODUCT(('Fixed assets'!$R$2:$R$1000)*('Fixed assets'!$P$2:$P$1000<$A674)*('Fixed assets'!$Q$2:$Q$1000=Costs!Z$617))-SUMPRODUCT(('Fixed assets'!$S$2:$S$1000)*('Fixed assets'!$P$2:$P$1000<Costs!$A674)*('Fixed assets'!$Q$2:$Q$1000=Costs!Z$617))-SUMPRODUCT(('Fixed assets'!$Q$2:$Q$1000=Costs!Z$617)*('Fixed assets'!$U$2:$U$1000=Costs!$A674)*('Fixed assets'!$S$2:$S$1000))+SUMPRODUCT(('Fixed assets'!$Q$2:$Q$1000=Costs!Z$617)*('Fixed assets'!$P$2:$P$1000=Costs!$A674)*('Fixed assets'!$U$2:$U$1000=Costs!$A674)*('Fixed assets'!$R$2:$R$1000))","v":0},{"$f":"SUMPRODUCT(('Fixed assets'!$R$2:$R$1000)*('Fixed assets'!$P$2:$P$1000<$A674)*('Fixed assets'!$Q$2:$Q$1000=Costs!AA$617))-SUMPRODUCT(('Fixed assets'!$S$2:$S$1000)*('Fixed assets'!$P$2:$P$1000<Costs!$A674)*('Fixed assets'!$Q$2:$Q$1000=Costs!AA$617))-SUMPRODUCT(('Fixed assets'!$Q$2:$Q$1000=Costs!AA$617)*('Fixed assets'!$U$2:$U$1000=Costs!$A674)*('Fixed assets'!$S$2:$S$1000))+SUMPRODUCT(('Fixed assets'!$Q$2:$Q$1000=Costs!AA$617)*('Fixed assets'!$P$2:$P$1000=Costs!$A674)*('Fixed assets'!$U$2:$U$1000=Costs!$A674)*('Fixed assets'!$R$2:$R$1000))","v":0},{"$f":"SUMPRODUCT(('Fixed assets'!$R$2:$R$1000)*('Fixed assets'!$P$2:$P$1000<$A674)*('Fixed assets'!$Q$2:$Q$1000=Costs!AB$617))-SUMPRODUCT(('Fixed assets'!$S$2:$S$1000)*('Fixed assets'!$P$2:$P$1000<Costs!$A674)*('Fixed assets'!$Q$2:$Q$1000=Costs!AB$617))-SUMPRODUCT(('Fixed assets'!$Q$2:$Q$1000=Costs!AB$617)*('Fixed assets'!$U$2:$U$1000=Costs!$A674)*('Fixed assets'!$S$2:$S$1000))+SUMPRODUCT(('Fixed assets'!$Q$2:$Q$1000=Costs!AB$617)*('Fixed assets'!$P$2:$P$1000=Costs!$A674)*('Fixed assets'!$U$2:$U$1000=Costs!$A674)*('Fixed assets'!$R$2:$R$1000))","v":0},{"$f":"SUMPRODUCT(('Fixed assets'!$R$2:$R$1000)*('Fixed assets'!$P$2:$P$1000<$A674)*('Fixed assets'!$Q$2:$Q$1000=Costs!AC$617))-SUMPRODUCT(('Fixed assets'!$S$2:$S$1000)*('Fixed assets'!$P$2:$P$1000<Costs!$A674)*('Fixed assets'!$Q$2:$Q$1000=Costs!AC$617))-SUMPRODUCT(('Fixed assets'!$Q$2:$Q$1000=Costs!AC$617)*('Fixed assets'!$U$2:$U$1000=Costs!$A674)*('Fixed assets'!$S$2:$S$1000))+SUMPRODUCT(('Fixed assets'!$Q$2:$Q$1000=Costs!AC$617)*('Fixed assets'!$P$2:$P$1000=Costs!$A674)*('Fixed assets'!$U$2:$U$1000=Costs!$A674)*('Fixed assets'!$R$2:$R$1000))","v":0},{"$f":"SUMPRODUCT(('Fixed assets'!$R$2:$R$1000)*('Fixed assets'!$P$2:$P$1000<$A674)*('Fixed assets'!$Q$2:$Q$1000=Costs!AD$617))-SUMPRODUCT(('Fixed assets'!$S$2:$S$1000)*('Fixed assets'!$P$2:$P$1000<Costs!$A674)*('Fixed assets'!$Q$2:$Q$1000=Costs!AD$617))-SUMPRODUCT(('Fixed assets'!$Q$2:$Q$1000=Costs!AD$617)*('Fixed assets'!$U$2:$U$1000=Costs!$A674)*('Fixed assets'!$S$2:$S$1000))+SUMPRODUCT(('Fixed assets'!$Q$2:$Q$1000=Costs!AD$617)*('Fixed assets'!$P$2:$P$1000=Costs!$A674)*('Fixed assets'!$U$2:$U$1000=Costs!$A674)*('Fixed assets'!$R$2:$R$1000))","v":0},{"$f":"SUMPRODUCT(('Fixed assets'!$R$2:$R$1000)*('Fixed assets'!$P$2:$P$1000<$A674)*('Fixed assets'!$Q$2:$Q$1000=Costs!AE$617))-SUMPRODUCT(('Fixed assets'!$S$2:$S$1000)*('Fixed assets'!$P$2:$P$1000<Costs!$A674)*('Fixed assets'!$Q$2:$Q$1000=Costs!AE$617))-SUMPRODUCT(('Fixed assets'!$Q$2:$Q$1000=Costs!AE$617)*('Fixed assets'!$U$2:$U$1000=Costs!$A674)*('Fixed assets'!$S$2:$S$1000))+SUMPRODUCT(('Fixed assets'!$Q$2:$Q$1000=Costs!AE$617)*('Fixed assets'!$P$2:$P$1000=Costs!$A674)*('Fixed assets'!$U$2:$U$1000=Costs!$A674)*('Fixed assets'!$R$2:$R$1000))","v":0},{"$f":"SUMPRODUCT(('Fixed assets'!$R$2:$R$1000)*('Fixed assets'!$P$2:$P$1000<$A674)*('Fixed assets'!$Q$2:$Q$1000=Costs!AF$617))-SUMPRODUCT(('Fixed assets'!$S$2:$S$1000)*('Fixed assets'!$P$2:$P$1000<Costs!$A674)*('Fixed assets'!$Q$2:$Q$1000=Costs!AF$617))-SUMPRODUCT(('Fixed assets'!$Q$2:$Q$1000=Costs!AF$617)*('Fixed assets'!$U$2:$U$1000=Costs!$A674)*('Fixed assets'!$S$2:$S$1000))+SUMPRODUCT(('Fixed assets'!$Q$2:$Q$1000=Costs!AF$617)*('Fixed assets'!$P$2:$P$1000=Costs!$A674)*('Fixed assets'!$U$2:$U$1000=Costs!$A674)*('Fixed assets'!$R$2:$R$1000))","v":0},{"$f":"SUMPRODUCT(('Fixed assets'!$R$2:$R$1000)*('Fixed assets'!$P$2:$P$1000<$A674)*('Fixed assets'!$Q$2:$Q$1000=Costs!AG$617))-SUMPRODUCT(('Fixed assets'!$S$2:$S$1000)*('Fixed assets'!$P$2:$P$1000<Costs!$A674)*('Fixed assets'!$Q$2:$Q$1000=Costs!AG$617))-SUMPRODUCT(('Fixed assets'!$Q$2:$Q$1000=Costs!AG$617)*('Fixed assets'!$U$2:$U$1000=Costs!$A674)*('Fixed assets'!$S$2:$S$1000))+SUMPRODUCT(('Fixed assets'!$Q$2:$Q$1000=Costs!AG$617)*('Fixed assets'!$P$2:$P$1000=Costs!$A674)*('Fixed assets'!$U$2:$U$1000=Costs!$A674)*('Fixed assets'!$R$2:$R$1000))","v":0},{"$f":"SUMPRODUCT(('Fixed assets'!$R$2:$R$1000)*('Fixed assets'!$P$2:$P$1000<$A674)*('Fixed assets'!$Q$2:$Q$1000=Costs!AH$617))-SUMPRODUCT(('Fixed assets'!$S$2:$S$1000)*('Fixed assets'!$P$2:$P$1000<Costs!$A674)*('Fixed assets'!$Q$2:$Q$1000=Costs!AH$617))-SUMPRODUCT(('Fixed assets'!$Q$2:$Q$1000=Costs!AH$617)*('Fixed assets'!$U$2:$U$1000=Costs!$A674)*('Fixed assets'!$S$2:$S$1000))+SUMPRODUCT(('Fixed assets'!$Q$2:$Q$1000=Costs!AH$617)*('Fixed assets'!$P$2:$P$1000=Costs!$A674)*('Fixed assets'!$U$2:$U$1000=Costs!$A674)*('Fixed assets'!$R$2:$R$1000))","v":0},{"$f":"SUMPRODUCT(('Fixed assets'!$R$2:$R$1000)*('Fixed assets'!$P$2:$P$1000<$A674)*('Fixed assets'!$Q$2:$Q$1000=Costs!AI$617))-SUMPRODUCT(('Fixed assets'!$S$2:$S$1000)*('Fixed assets'!$P$2:$P$1000<Costs!$A674)*('Fixed assets'!$Q$2:$Q$1000=Costs!AI$617))-SUMPRODUCT(('Fixed assets'!$Q$2:$Q$1000=Costs!AI$617)*('Fixed assets'!$U$2:$U$1000=Costs!$A674)*('Fixed assets'!$S$2:$S$1000))+SUMPRODUCT(('Fixed assets'!$Q$2:$Q$1000=Costs!AI$617)*('Fixed assets'!$P$2:$P$1000=Costs!$A674)*('Fixed assets'!$U$2:$U$1000=Costs!$A674)*('Fixed assets'!$R$2:$R$1000))","v":0},{"$f":"SUMPRODUCT(('Fixed assets'!$R$2:$R$1000)*('Fixed assets'!$P$2:$P$1000<$A674)*('Fixed assets'!$Q$2:$Q$1000=Costs!AJ$617))-SUMPRODUCT(('Fixed assets'!$S$2:$S$1000)*('Fixed assets'!$P$2:$P$1000<Costs!$A674)*('Fixed assets'!$Q$2:$Q$1000=Costs!AJ$617))-SUMPRODUCT(('Fixed assets'!$Q$2:$Q$1000=Costs!AJ$617)*('Fixed assets'!$U$2:$U$1000=Costs!$A674)*('Fixed assets'!$S$2:$S$1000))+SUMPRODUCT(('Fixed assets'!$Q$2:$Q$1000=Costs!AJ$617)*('Fixed assets'!$P$2:$P$1000=Costs!$A674)*('Fixed assets'!$U$2:$U$1000=Costs!$A674)*('Fixed assets'!$R$2:$R$1000))","v":0},{"$f":"SUMPRODUCT(('Fixed assets'!$R$2:$R$1000)*('Fixed assets'!$P$2:$P$1000<$A674)*('Fixed assets'!$Q$2:$Q$1000=Costs!AK$617))-SUMPRODUCT(('Fixed assets'!$S$2:$S$1000)*('Fixed assets'!$P$2:$P$1000<Costs!$A674)*('Fixed assets'!$Q$2:$Q$1000=Costs!AK$617))-SUMPRODUCT(('Fixed assets'!$Q$2:$Q$1000=Costs!AK$617)*('Fixed assets'!$U$2:$U$1000=Costs!$A674)*('Fixed assets'!$S$2:$S$1000))+SUMPRODUCT(('Fixed assets'!$Q$2:$Q$1000=Costs!AK$617)*('Fixed assets'!$P$2:$P$1000=Costs!$A674)*('Fixed assets'!$U$2:$U$1000=Costs!$A674)*('Fixed assets'!$R$2:$R$1000))","v":0},{"$f":"SUMPRODUCT(('Fixed assets'!$R$2:$R$1000)*('Fixed assets'!$P$2:$P$1000<$A674)*('Fixed assets'!$Q$2:$Q$1000=Costs!AL$617))-SUMPRODUCT(('Fixed assets'!$S$2:$S$1000)*('Fixed assets'!$P$2:$P$1000<Costs!$A674)*('Fixed assets'!$Q$2:$Q$1000=Costs!AL$617))-SUMPRODUCT(('Fixed assets'!$Q$2:$Q$1000=Costs!AL$617)*('Fixed assets'!$U$2:$U$1000=Costs!$A674)*('Fixed assets'!$S$2:$S$1000))+SUMPRODUCT(('Fixed assets'!$Q$2:$Q$1000=Costs!AL$617)*('Fixed assets'!$P$2:$P$1000=Costs!$A674)*('Fixed assets'!$U$2:$U$1000=Costs!$A674)*('Fixed assets'!$R$2:$R$1000))","v":0},{"$f":"SUMPRODUCT(('Fixed assets'!$R$2:$R$1000)*('Fixed assets'!$P$2:$P$1000<$A674)*('Fixed assets'!$Q$2:$Q$1000=Costs!AM$617))-SUMPRODUCT(('Fixed assets'!$S$2:$S$1000)*('Fixed assets'!$P$2:$P$1000<Costs!$A674)*('Fixed assets'!$Q$2:$Q$1000=Costs!AM$617))-SUMPRODUCT(('Fixed assets'!$Q$2:$Q$1000=Costs!AM$617)*('Fixed assets'!$U$2:$U$1000=Costs!$A674)*('Fixed assets'!$S$2:$S$1000))+SUMPRODUCT(('Fixed assets'!$Q$2:$Q$1000=Costs!AM$617)*('Fixed assets'!$P$2:$P$1000=Costs!$A674)*('Fixed assets'!$U$2:$U$1000=Costs!$A674)*('Fixed assets'!$R$2:$R$1000))","v":0},{"$f":"SUMPRODUCT(('Fixed assets'!$R$2:$R$1000)*('Fixed assets'!$P$2:$P$1000<$A674)*('Fixed assets'!$Q$2:$Q$1000=Costs!AN$617))-SUMPRODUCT(('Fixed assets'!$S$2:$S$1000)*('Fixed assets'!$P$2:$P$1000<Costs!$A674)*('Fixed assets'!$Q$2:$Q$1000=Costs!AN$617))-SUMPRODUCT(('Fixed assets'!$Q$2:$Q$1000=Costs!AN$617)*('Fixed assets'!$U$2:$U$1000=Costs!$A674)*('Fixed assets'!$S$2:$S$1000))+SUMPRODUCT(('Fixed assets'!$Q$2:$Q$1000=Costs!AN$617)*('Fixed assets'!$P$2:$P$1000=Costs!$A674)*('Fixed assets'!$U$2:$U$1000=Costs!$A674)*('Fixed assets'!$R$2:$R$1000))","v":0},{"$f":"SUMPRODUCT(('Fixed assets'!$R$2:$R$1000)*('Fixed assets'!$P$2:$P$1000<$A674)*('Fixed assets'!$Q$2:$Q$1000=Costs!AO$617))-SUMPRODUCT(('Fixed assets'!$S$2:$S$1000)*('Fixed assets'!$P$2:$P$1000<Costs!$A674)*('Fixed assets'!$Q$2:$Q$1000=Costs!AO$617))-SUMPRODUCT(('Fixed assets'!$Q$2:$Q$1000=Costs!AO$617)*('Fixed assets'!$U$2:$U$1000=Costs!$A674)*('Fixed assets'!$S$2:$S$1000))+SUMPRODUCT(('Fixed assets'!$Q$2:$Q$1000=Costs!AO$617)*('Fixed assets'!$P$2:$P$1000=Costs!$A674)*('Fixed assets'!$U$2:$U$1000=Costs!$A674)*('Fixed assets'!$R$2:$R$1000))","v":0},{"$f":"SUMPRODUCT(('Fixed assets'!$R$2:$R$1000)*('Fixed assets'!$P$2:$P$1000<$A674)*('Fixed assets'!$Q$2:$Q$1000=Costs!AP$617))-SUMPRODUCT(('Fixed assets'!$S$2:$S$1000)*('Fixed assets'!$P$2:$P$1000<Costs!$A674)*('Fixed assets'!$Q$2:$Q$1000=Costs!AP$617))-SUMPRODUCT(('Fixed assets'!$Q$2:$Q$1000=Costs!AP$617)*('Fixed assets'!$U$2:$U$1000=Costs!$A674)*('Fixed assets'!$S$2:$S$1000))+SUMPRODUCT(('Fixed assets'!$Q$2:$Q$1000=Costs!AP$617)*('Fixed assets'!$P$2:$P$1000=Costs!$A674)*('Fixed assets'!$U$2:$U$1000=Costs!$A674)*('Fixed assets'!$R$2:$R$1000))","v":0},{"$f":"SUMPRODUCT(('Fixed assets'!$R$2:$R$1000)*('Fixed assets'!$P$2:$P$1000<$A674)*('Fixed assets'!$Q$2:$Q$1000=Costs!AQ$617))-SUMPRODUCT(('Fixed assets'!$S$2:$S$1000)*('Fixed assets'!$P$2:$P$1000<Costs!$A674)*('Fixed assets'!$Q$2:$Q$1000=Costs!AQ$617))-SUMPRODUCT(('Fixed assets'!$Q$2:$Q$1000=Costs!AQ$617)*('Fixed assets'!$U$2:$U$1000=Costs!$A674)*('Fixed assets'!$S$2:$S$1000))+SUMPRODUCT(('Fixed assets'!$Q$2:$Q$1000=Costs!AQ$617)*('Fixed assets'!$P$2:$P$1000=Costs!$A674)*('Fixed assets'!$U$2:$U$1000=Costs!$A674)*('Fixed assets'!$R$2:$R$1000))","v":0}]
[2072,0,{"$f":"SUMPRODUCT(('Fixed assets'!$R$2:$R$1000)*('Fixed assets'!$P$2:$P$1000<$A675)*('Fixed assets'!$Q$2:$Q$1000=Costs!C$617))-SUMPRODUCT(('Fixed assets'!$S$2:$S$1000)*('Fixed assets'!$P$2:$P$1000<Costs!$A675)*('Fixed assets'!$Q$2:$Q$1000=Costs!C$617))-SUMPRODUCT(('Fixed assets'!$Q$2:$Q$1000=Costs!C$617)*('Fixed assets'!$U$2:$U$1000=Costs!$A675)*('Fixed assets'!$S$2:$S$1000))+SUMPRODUCT(('Fixed assets'!$Q$2:$Q$1000=Costs!C$617)*('Fixed assets'!$P$2:$P$1000=Costs!$A675)*('Fixed assets'!$U$2:$U$1000=Costs!$A675)*('Fixed assets'!$R$2:$R$1000))","v":0},{"$f":"SUMPRODUCT(('Fixed assets'!$R$2:$R$1000)*('Fixed assets'!$P$2:$P$1000<$A675)*('Fixed assets'!$Q$2:$Q$1000=Costs!D$617))-SUMPRODUCT(('Fixed assets'!$S$2:$S$1000)*('Fixed assets'!$P$2:$P$1000<Costs!$A675)*('Fixed assets'!$Q$2:$Q$1000=Costs!D$617))-SUMPRODUCT(('Fixed assets'!$Q$2:$Q$1000=Costs!D$617)*('Fixed assets'!$U$2:$U$1000=Costs!$A675)*('Fixed assets'!$S$2:$S$1000))+SUMPRODUCT(('Fixed assets'!$Q$2:$Q$1000=Costs!D$617)*('Fixed assets'!$P$2:$P$1000=Costs!$A675)*('Fixed assets'!$U$2:$U$1000=Costs!$A675)*('Fixed assets'!$R$2:$R$1000))","v":0},{"$f":"SUMPRODUCT(('Fixed assets'!$R$2:$R$1000)*('Fixed assets'!$P$2:$P$1000<$A675)*('Fixed assets'!$Q$2:$Q$1000=Costs!E$617))-SUMPRODUCT(('Fixed assets'!$S$2:$S$1000)*('Fixed assets'!$P$2:$P$1000<Costs!$A675)*('Fixed assets'!$Q$2:$Q$1000=Costs!E$617))-SUMPRODUCT(('Fixed assets'!$Q$2:$Q$1000=Costs!E$617)*('Fixed assets'!$U$2:$U$1000=Costs!$A675)*('Fixed assets'!$S$2:$S$1000))+SUMPRODUCT(('Fixed assets'!$Q$2:$Q$1000=Costs!E$617)*('Fixed assets'!$P$2:$P$1000=Costs!$A675)*('Fixed assets'!$U$2:$U$1000=Costs!$A675)*('Fixed assets'!$R$2:$R$1000))","v":0},{"$f":"SUMPRODUCT(('Fixed assets'!$R$2:$R$1000)*('Fixed assets'!$P$2:$P$1000<$A675)*('Fixed assets'!$Q$2:$Q$1000=Costs!F$617))-SUMPRODUCT(('Fixed assets'!$S$2:$S$1000)*('Fixed assets'!$P$2:$P$1000<Costs!$A675)*('Fixed assets'!$Q$2:$Q$1000=Costs!F$617))-SUMPRODUCT(('Fixed assets'!$Q$2:$Q$1000=Costs!F$617)*('Fixed assets'!$U$2:$U$1000=Costs!$A675)*('Fixed assets'!$S$2:$S$1000))+SUMPRODUCT(('Fixed assets'!$Q$2:$Q$1000=Costs!F$617)*('Fixed assets'!$P$2:$P$1000=Costs!$A675)*('Fixed assets'!$U$2:$U$1000=Costs!$A675)*('Fixed assets'!$R$2:$R$1000))","v":0},{"$f":"SUMPRODUCT(('Fixed assets'!$R$2:$R$1000)*('Fixed assets'!$P$2:$P$1000<$A675)*('Fixed assets'!$Q$2:$Q$1000=Costs!G$617))-SUMPRODUCT(('Fixed assets'!$S$2:$S$1000)*('Fixed assets'!$P$2:$P$1000<Costs!$A675)*('Fixed assets'!$Q$2:$Q$1000=Costs!G$617))-SUMPRODUCT(('Fixed assets'!$Q$2:$Q$1000=Costs!G$617)*('Fixed assets'!$U$2:$U$1000=Costs!$A675)*('Fixed assets'!$S$2:$S$1000))+SUMPRODUCT(('Fixed assets'!$Q$2:$Q$1000=Costs!G$617)*('Fixed assets'!$P$2:$P$1000=Costs!$A675)*('Fixed assets'!$U$2:$U$1000=Costs!$A675)*('Fixed assets'!$R$2:$R$1000))","v":0},{"$f":"SUMPRODUCT(('Fixed assets'!$R$2:$R$1000)*('Fixed assets'!$P$2:$P$1000<$A675)*('Fixed assets'!$Q$2:$Q$1000=Costs!H$617))-SUMPRODUCT(('Fixed assets'!$S$2:$S$1000)*('Fixed assets'!$P$2:$P$1000<Costs!$A675)*('Fixed assets'!$Q$2:$Q$1000=Costs!H$617))-SUMPRODUCT(('Fixed assets'!$Q$2:$Q$1000=Costs!H$617)*('Fixed assets'!$U$2:$U$1000=Costs!$A675)*('Fixed assets'!$S$2:$S$1000))+SUMPRODUCT(('Fixed assets'!$Q$2:$Q$1000=Costs!H$617)*('Fixed assets'!$P$2:$P$1000=Costs!$A675)*('Fixed assets'!$U$2:$U$1000=Costs!$A675)*('Fixed assets'!$R$2:$R$1000))","v":0},{"$f":"SUMPRODUCT(('Fixed assets'!$R$2:$R$1000)*('Fixed assets'!$P$2:$P$1000<$A675)*('Fixed assets'!$Q$2:$Q$1000=Costs!I$617))-SUMPRODUCT(('Fixed assets'!$S$2:$S$1000)*('Fixed assets'!$P$2:$P$1000<Costs!$A675)*('Fixed assets'!$Q$2:$Q$1000=Costs!I$617))-SUMPRODUCT(('Fixed assets'!$Q$2:$Q$1000=Costs!I$617)*('Fixed assets'!$U$2:$U$1000=Costs!$A675)*('Fixed assets'!$S$2:$S$1000))+SUMPRODUCT(('Fixed assets'!$Q$2:$Q$1000=Costs!I$617)*('Fixed assets'!$P$2:$P$1000=Costs!$A675)*('Fixed assets'!$U$2:$U$1000=Costs!$A675)*('Fixed assets'!$R$2:$R$1000))","v":0},{"$f":"SUMPRODUCT(('Fixed assets'!$R$2:$R$1000)*('Fixed assets'!$P$2:$P$1000<$A675)*('Fixed assets'!$Q$2:$Q$1000=Costs!J$617))-SUMPRODUCT(('Fixed assets'!$S$2:$S$1000)*('Fixed assets'!$P$2:$P$1000<Costs!$A675)*('Fixed assets'!$Q$2:$Q$1000=Costs!J$617))-SUMPRODUCT(('Fixed assets'!$Q$2:$Q$1000=Costs!J$617)*('Fixed assets'!$U$2:$U$1000=Costs!$A675)*('Fixed assets'!$S$2:$S$1000))+SUMPRODUCT(('Fixed assets'!$Q$2:$Q$1000=Costs!J$617)*('Fixed assets'!$P$2:$P$1000=Costs!$A675)*('Fixed assets'!$U$2:$U$1000=Costs!$A675)*('Fixed assets'!$R$2:$R$1000))","v":0},{"$f":"SUMPRODUCT(('Fixed assets'!$R$2:$R$1000)*('Fixed assets'!$P$2:$P$1000<$A675)*('Fixed assets'!$Q$2:$Q$1000=Costs!K$617))-SUMPRODUCT(('Fixed assets'!$S$2:$S$1000)*('Fixed assets'!$P$2:$P$1000<Costs!$A675)*('Fixed assets'!$Q$2:$Q$1000=Costs!K$617))-SUMPRODUCT(('Fixed assets'!$Q$2:$Q$1000=Costs!K$617)*('Fixed assets'!$U$2:$U$1000=Costs!$A675)*('Fixed assets'!$S$2:$S$1000))+SUMPRODUCT(('Fixed assets'!$Q$2:$Q$1000=Costs!K$617)*('Fixed assets'!$P$2:$P$1000=Costs!$A675)*('Fixed assets'!$U$2:$U$1000=Costs!$A675)*('Fixed assets'!$R$2:$R$1000))","v":0},{"$f":"SUMPRODUCT(('Fixed assets'!$R$2:$R$1000)*('Fixed assets'!$P$2:$P$1000<$A675)*('Fixed assets'!$Q$2:$Q$1000=Costs!L$617))-SUMPRODUCT(('Fixed assets'!$S$2:$S$1000)*('Fixed assets'!$P$2:$P$1000<Costs!$A675)*('Fixed assets'!$Q$2:$Q$1000=Costs!L$617))-SUMPRODUCT(('Fixed assets'!$Q$2:$Q$1000=Costs!L$617)*('Fixed assets'!$U$2:$U$1000=Costs!$A675)*('Fixed assets'!$S$2:$S$1000))+SUMPRODUCT(('Fixed assets'!$Q$2:$Q$1000=Costs!L$617)*('Fixed assets'!$P$2:$P$1000=Costs!$A675)*('Fixed assets'!$U$2:$U$1000=Costs!$A675)*('Fixed assets'!$R$2:$R$1000))","v":0},{"$f":"SUMPRODUCT(('Fixed assets'!$R$2:$R$1000)*('Fixed assets'!$P$2:$P$1000<$A675)*('Fixed assets'!$Q$2:$Q$1000=Costs!M$617))-SUMPRODUCT(('Fixed assets'!$S$2:$S$1000)*('Fixed assets'!$P$2:$P$1000<Costs!$A675)*('Fixed assets'!$Q$2:$Q$1000=Costs!M$617))-SUMPRODUCT(('Fixed assets'!$Q$2:$Q$1000=Costs!M$617)*('Fixed assets'!$U$2:$U$1000=Costs!$A675)*('Fixed assets'!$S$2:$S$1000))+SUMPRODUCT(('Fixed assets'!$Q$2:$Q$1000=Costs!M$617)*('Fixed assets'!$P$2:$P$1000=Costs!$A675)*('Fixed assets'!$U$2:$U$1000=Costs!$A675)*('Fixed assets'!$R$2:$R$1000))","v":0},{"$f":"SUMPRODUCT(('Fixed assets'!$R$2:$R$1000)*('Fixed assets'!$P$2:$P$1000<$A675)*('Fixed assets'!$Q$2:$Q$1000=Costs!N$617))-SUMPRODUCT(('Fixed assets'!$S$2:$S$1000)*('Fixed assets'!$P$2:$P$1000<Costs!$A675)*('Fixed assets'!$Q$2:$Q$1000=Costs!N$617))-SUMPRODUCT(('Fixed assets'!$Q$2:$Q$1000=Costs!N$617)*('Fixed assets'!$U$2:$U$1000=Costs!$A675)*('Fixed assets'!$S$2:$S$1000))+SUMPRODUCT(('Fixed assets'!$Q$2:$Q$1000=Costs!N$617)*('Fixed assets'!$P$2:$P$1000=Costs!$A675)*('Fixed assets'!$U$2:$U$1000=Costs!$A675)*('Fixed assets'!$R$2:$R$1000))","v":0},{"$f":"SUMPRODUCT(('Fixed assets'!$R$2:$R$1000)*('Fixed assets'!$P$2:$P$1000<$A675)*('Fixed assets'!$Q$2:$Q$1000=Costs!O$617))-SUMPRODUCT(('Fixed assets'!$S$2:$S$1000)*('Fixed assets'!$P$2:$P$1000<Costs!$A675)*('Fixed assets'!$Q$2:$Q$1000=Costs!O$617))-SUMPRODUCT(('Fixed assets'!$Q$2:$Q$1000=Costs!O$617)*('Fixed assets'!$U$2:$U$1000=Costs!$A675)*('Fixed assets'!$S$2:$S$1000))+SUMPRODUCT(('Fixed assets'!$Q$2:$Q$1000=Costs!O$617)*('Fixed assets'!$P$2:$P$1000=Costs!$A675)*('Fixed assets'!$U$2:$U$1000=Costs!$A675)*('Fixed assets'!$R$2:$R$1000))","v":0},{"$f":"SUMPRODUCT(('Fixed assets'!$R$2:$R$1000)*('Fixed assets'!$P$2:$P$1000<$A675)*('Fixed assets'!$Q$2:$Q$1000=Costs!P$617))-SUMPRODUCT(('Fixed assets'!$S$2:$S$1000)*('Fixed assets'!$P$2:$P$1000<Costs!$A675)*('Fixed assets'!$Q$2:$Q$1000=Costs!P$617))-SUMPRODUCT(('Fixed assets'!$Q$2:$Q$1000=Costs!P$617)*('Fixed assets'!$U$2:$U$1000=Costs!$A675)*('Fixed assets'!$S$2:$S$1000))+SUMPRODUCT(('Fixed assets'!$Q$2:$Q$1000=Costs!P$617)*('Fixed assets'!$P$2:$P$1000=Costs!$A675)*('Fixed assets'!$U$2:$U$1000=Costs!$A675)*('Fixed assets'!$R$2:$R$1000))","v":0},{"$f":"SUMPRODUCT(('Fixed assets'!$R$2:$R$1000)*('Fixed assets'!$P$2:$P$1000<$A675)*('Fixed assets'!$Q$2:$Q$1000=Costs!Q$617))-SUMPRODUCT(('Fixed assets'!$S$2:$S$1000)*('Fixed assets'!$P$2:$P$1000<Costs!$A675)*('Fixed assets'!$Q$2:$Q$1000=Costs!Q$617))-SUMPRODUCT(('Fixed assets'!$Q$2:$Q$1000=Costs!Q$617)*('Fixed assets'!$U$2:$U$1000=Costs!$A675)*('Fixed assets'!$S$2:$S$1000))+SUMPRODUCT(('Fixed assets'!$Q$2:$Q$1000=Costs!Q$617)*('Fixed assets'!$P$2:$P$1000=Costs!$A675)*('Fixed assets'!$U$2:$U$1000=Costs!$A675)*('Fixed assets'!$R$2:$R$1000))","v":0},{"$f":"SUMPRODUCT(('Fixed assets'!$R$2:$R$1000)*('Fixed assets'!$P$2:$P$1000<$A675)*('Fixed assets'!$Q$2:$Q$1000=Costs!R$617))-SUMPRODUCT(('Fixed assets'!$S$2:$S$1000)*('Fixed assets'!$P$2:$P$1000<Costs!$A675)*('Fixed assets'!$Q$2:$Q$1000=Costs!R$617))-SUMPRODUCT(('Fixed assets'!$Q$2:$Q$1000=Costs!R$617)*('Fixed assets'!$U$2:$U$1000=Costs!$A675)*('Fixed assets'!$S$2:$S$1000))+SUMPRODUCT(('Fixed assets'!$Q$2:$Q$1000=Costs!R$617)*('Fixed assets'!$P$2:$P$1000=Costs!$A675)*('Fixed assets'!$U$2:$U$1000=Costs!$A675)*('Fixed assets'!$R$2:$R$1000))","v":0},{"$f":"SUMPRODUCT(('Fixed assets'!$R$2:$R$1000)*('Fixed assets'!$P$2:$P$1000<$A675)*('Fixed assets'!$Q$2:$Q$1000=Costs!S$617))-SUMPRODUCT(('Fixed assets'!$S$2:$S$1000)*('Fixed assets'!$P$2:$P$1000<Costs!$A675)*('Fixed assets'!$Q$2:$Q$1000=Costs!S$617))-SUMPRODUCT(('Fixed assets'!$Q$2:$Q$1000=Costs!S$617)*('Fixed assets'!$U$2:$U$1000=Costs!$A675)*('Fixed assets'!$S$2:$S$1000))+SUMPRODUCT(('Fixed assets'!$Q$2:$Q$1000=Costs!S$617)*('Fixed assets'!$P$2:$P$1000=Costs!$A675)*('Fixed assets'!$U$2:$U$1000=Costs!$A675)*('Fixed assets'!$R$2:$R$1000))","v":0},{"$f":"SUMPRODUCT(('Fixed assets'!$R$2:$R$1000)*('Fixed assets'!$P$2:$P$1000<$A675)*('Fixed assets'!$Q$2:$Q$1000=Costs!T$617))-SUMPRODUCT(('Fixed assets'!$S$2:$S$1000)*('Fixed assets'!$P$2:$P$1000<Costs!$A675)*('Fixed assets'!$Q$2:$Q$1000=Costs!T$617))-SUMPRODUCT(('Fixed assets'!$Q$2:$Q$1000=Costs!T$617)*('Fixed assets'!$U$2:$U$1000=Costs!$A675)*('Fixed assets'!$S$2:$S$1000))+SUMPRODUCT(('Fixed assets'!$Q$2:$Q$1000=Costs!T$617)*('Fixed assets'!$P$2:$P$1000=Costs!$A675)*('Fixed assets'!$U$2:$U$1000=Costs!$A675)*('Fixed assets'!$R$2:$R$1000))","v":0},{"$f":"SUMPRODUCT(('Fixed assets'!$R$2:$R$1000)*('Fixed assets'!$P$2:$P$1000<$A675)*('Fixed assets'!$Q$2:$Q$1000=Costs!U$617))-SUMPRODUCT(('Fixed assets'!$S$2:$S$1000)*('Fixed assets'!$P$2:$P$1000<Costs!$A675)*('Fixed assets'!$Q$2:$Q$1000=Costs!U$617))-SUMPRODUCT(('Fixed assets'!$Q$2:$Q$1000=Costs!U$617)*('Fixed assets'!$U$2:$U$1000=Costs!$A675)*('Fixed assets'!$S$2:$S$1000))+SUMPRODUCT(('Fixed assets'!$Q$2:$Q$1000=Costs!U$617)*('Fixed assets'!$P$2:$P$1000=Costs!$A675)*('Fixed assets'!$U$2:$U$1000=Costs!$A675)*('Fixed assets'!$R$2:$R$1000))","v":0},{"$f":"SUMPRODUCT(('Fixed assets'!$R$2:$R$1000)*('Fixed assets'!$P$2:$P$1000<$A675)*('Fixed assets'!$Q$2:$Q$1000=Costs!V$617))-SUMPRODUCT(('Fixed assets'!$S$2:$S$1000)*('Fixed assets'!$P$2:$P$1000<Costs!$A675)*('Fixed assets'!$Q$2:$Q$1000=Costs!V$617))-SUMPRODUCT(('Fixed assets'!$Q$2:$Q$1000=Costs!V$617)*('Fixed assets'!$U$2:$U$1000=Costs!$A675)*('Fixed assets'!$S$2:$S$1000))+SUMPRODUCT(('Fixed assets'!$Q$2:$Q$1000=Costs!V$617)*('Fixed assets'!$P$2:$P$1000=Costs!$A675)*('Fixed assets'!$U$2:$U$1000=Costs!$A675)*('Fixed assets'!$R$2:$R$1000))","v":0},{"$f":"SUMPRODUCT(('Fixed assets'!$R$2:$R$1000)*('Fixed assets'!$P$2:$P$1000<$A675)*('Fixed assets'!$Q$2:$Q$1000=Costs!W$617))-SUMPRODUCT(('Fixed assets'!$S$2:$S$1000)*('Fixed assets'!$P$2:$P$1000<Costs!$A675)*('Fixed assets'!$Q$2:$Q$1000=Costs!W$617))-SUMPRODUCT(('Fixed assets'!$Q$2:$Q$1000=Costs!W$617)*('Fixed assets'!$U$2:$U$1000=Costs!$A675)*('Fixed assets'!$S$2:$S$1000))+SUMPRODUCT(('Fixed assets'!$Q$2:$Q$1000=Costs!W$617)*('Fixed assets'!$P$2:$P$1000=Costs!$A675)*('Fixed assets'!$U$2:$U$1000=Costs!$A675)*('Fixed assets'!$R$2:$R$1000))","v":0},{"$f":"SUMPRODUCT(('Fixed assets'!$R$2:$R$1000)*('Fixed assets'!$P$2:$P$1000<$A675)*('Fixed assets'!$Q$2:$Q$1000=Costs!X$617))-SUMPRODUCT(('Fixed assets'!$S$2:$S$1000)*('Fixed assets'!$P$2:$P$1000<Costs!$A675)*('Fixed assets'!$Q$2:$Q$1000=Costs!X$617))-SUMPRODUCT(('Fixed assets'!$Q$2:$Q$1000=Costs!X$617)*('Fixed assets'!$U$2:$U$1000=Costs!$A675)*('Fixed assets'!$S$2:$S$1000))+SUMPRODUCT(('Fixed assets'!$Q$2:$Q$1000=Costs!X$617)*('Fixed assets'!$P$2:$P$1000=Costs!$A675)*('Fixed assets'!$U$2:$U$1000=Costs!$A675)*('Fixed assets'!$R$2:$R$1000))","v":0},{"$f":"SUMPRODUCT(('Fixed assets'!$R$2:$R$1000)*('Fixed assets'!$P$2:$P$1000<$A675)*('Fixed assets'!$Q$2:$Q$1000=Costs!Y$617))-SUMPRODUCT(('Fixed assets'!$S$2:$S$1000)*('Fixed assets'!$P$2:$P$1000<Costs!$A675)*('Fixed assets'!$Q$2:$Q$1000=Costs!Y$617))-SUMPRODUCT(('Fixed assets'!$Q$2:$Q$1000=Costs!Y$617)*('Fixed assets'!$U$2:$U$1000=Costs!$A675)*('Fixed assets'!$S$2:$S$1000))+SUMPRODUCT(('Fixed assets'!$Q$2:$Q$1000=Costs!Y$617)*('Fixed assets'!$P$2:$P$1000=Costs!$A675)*('Fixed assets'!$U$2:$U$1000=Costs!$A675)*('Fixed assets'!$R$2:$R$1000))","v":0},{"$f":"SUMPRODUCT(('Fixed assets'!$R$2:$R$1000)*('Fixed assets'!$P$2:$P$1000<$A675)*('Fixed assets'!$Q$2:$Q$1000=Costs!Z$617))-SUMPRODUCT(('Fixed assets'!$S$2:$S$1000)*('Fixed assets'!$P$2:$P$1000<Costs!$A675)*('Fixed assets'!$Q$2:$Q$1000=Costs!Z$617))-SUMPRODUCT(('Fixed assets'!$Q$2:$Q$1000=Costs!Z$617)*('Fixed assets'!$U$2:$U$1000=Costs!$A675)*('Fixed assets'!$S$2:$S$1000))+SUMPRODUCT(('Fixed assets'!$Q$2:$Q$1000=Costs!Z$617)*('Fixed assets'!$P$2:$P$1000=Costs!$A675)*('Fixed assets'!$U$2:$U$1000=Costs!$A675)*('Fixed assets'!$R$2:$R$1000))","v":0},{"$f":"SUMPRODUCT(('Fixed assets'!$R$2:$R$1000)*('Fixed assets'!$P$2:$P$1000<$A675)*('Fixed assets'!$Q$2:$Q$1000=Costs!AA$617))-SUMPRODUCT(('Fixed assets'!$S$2:$S$1000)*('Fixed assets'!$P$2:$P$1000<Costs!$A675)*('Fixed assets'!$Q$2:$Q$1000=Costs!AA$617))-SUMPRODUCT(('Fixed assets'!$Q$2:$Q$1000=Costs!AA$617)*('Fixed assets'!$U$2:$U$1000=Costs!$A675)*('Fixed assets'!$S$2:$S$1000))+SUMPRODUCT(('Fixed assets'!$Q$2:$Q$1000=Costs!AA$617)*('Fixed assets'!$P$2:$P$1000=Costs!$A675)*('Fixed assets'!$U$2:$U$1000=Costs!$A675)*('Fixed assets'!$R$2:$R$1000))","v":0},{"$f":"SUMPRODUCT(('Fixed assets'!$R$2:$R$1000)*('Fixed assets'!$P$2:$P$1000<$A675)*('Fixed assets'!$Q$2:$Q$1000=Costs!AB$617))-SUMPRODUCT(('Fixed assets'!$S$2:$S$1000)*('Fixed assets'!$P$2:$P$1000<Costs!$A675)*('Fixed assets'!$Q$2:$Q$1000=Costs!AB$617))-SUMPRODUCT(('Fixed assets'!$Q$2:$Q$1000=Costs!AB$617)*('Fixed assets'!$U$2:$U$1000=Costs!$A675)*('Fixed assets'!$S$2:$S$1000))+SUMPRODUCT(('Fixed assets'!$Q$2:$Q$1000=Costs!AB$617)*('Fixed assets'!$P$2:$P$1000=Costs!$A675)*('Fixed assets'!$U$2:$U$1000=Costs!$A675)*('Fixed assets'!$R$2:$R$1000))","v":0},{"$f":"SUMPRODUCT(('Fixed assets'!$R$2:$R$1000)*('Fixed assets'!$P$2:$P$1000<$A675)*('Fixed assets'!$Q$2:$Q$1000=Costs!AC$617))-SUMPRODUCT(('Fixed assets'!$S$2:$S$1000)*('Fixed assets'!$P$2:$P$1000<Costs!$A675)*('Fixed assets'!$Q$2:$Q$1000=Costs!AC$617))-SUMPRODUCT(('Fixed assets'!$Q$2:$Q$1000=Costs!AC$617)*('Fixed assets'!$U$2:$U$1000=Costs!$A675)*('Fixed assets'!$S$2:$S$1000))+SUMPRODUCT(('Fixed assets'!$Q$2:$Q$1000=Costs!AC$617)*('Fixed assets'!$P$2:$P$1000=Costs!$A675)*('Fixed assets'!$U$2:$U$1000=Costs!$A675)*('Fixed assets'!$R$2:$R$1000))","v":0},{"$f":"SUMPRODUCT(('Fixed assets'!$R$2:$R$1000)*('Fixed assets'!$P$2:$P$1000<$A675)*('Fixed assets'!$Q$2:$Q$1000=Costs!AD$617))-SUMPRODUCT(('Fixed assets'!$S$2:$S$1000)*('Fixed assets'!$P$2:$P$1000<Costs!$A675)*('Fixed assets'!$Q$2:$Q$1000=Costs!AD$617))-SUMPRODUCT(('Fixed assets'!$Q$2:$Q$1000=Costs!AD$617)*('Fixed assets'!$U$2:$U$1000=Costs!$A675)*('Fixed assets'!$S$2:$S$1000))+SUMPRODUCT(('Fixed assets'!$Q$2:$Q$1000=Costs!AD$617)*('Fixed assets'!$P$2:$P$1000=Costs!$A675)*('Fixed assets'!$U$2:$U$1000=Costs!$A675)*('Fixed assets'!$R$2:$R$1000))","v":0},{"$f":"SUMPRODUCT(('Fixed assets'!$R$2:$R$1000)*('Fixed assets'!$P$2:$P$1000<$A675)*('Fixed assets'!$Q$2:$Q$1000=Costs!AE$617))-SUMPRODUCT(('Fixed assets'!$S$2:$S$1000)*('Fixed assets'!$P$2:$P$1000<Costs!$A675)*('Fixed assets'!$Q$2:$Q$1000=Costs!AE$617))-SUMPRODUCT(('Fixed assets'!$Q$2:$Q$1000=Costs!AE$617)*('Fixed assets'!$U$2:$U$1000=Costs!$A675)*('Fixed assets'!$S$2:$S$1000))+SUMPRODUCT(('Fixed assets'!$Q$2:$Q$1000=Costs!AE$617)*('Fixed assets'!$P$2:$P$1000=Costs!$A675)*('Fixed assets'!$U$2:$U$1000=Costs!$A675)*('Fixed assets'!$R$2:$R$1000))","v":0},{"$f":"SUMPRODUCT(('Fixed assets'!$R$2:$R$1000)*('Fixed assets'!$P$2:$P$1000<$A675)*('Fixed assets'!$Q$2:$Q$1000=Costs!AF$617))-SUMPRODUCT(('Fixed assets'!$S$2:$S$1000)*('Fixed assets'!$P$2:$P$1000<Costs!$A675)*('Fixed assets'!$Q$2:$Q$1000=Costs!AF$617))-SUMPRODUCT(('Fixed assets'!$Q$2:$Q$1000=Costs!AF$617)*('Fixed assets'!$U$2:$U$1000=Costs!$A675)*('Fixed assets'!$S$2:$S$1000))+SUMPRODUCT(('Fixed assets'!$Q$2:$Q$1000=Costs!AF$617)*('Fixed assets'!$P$2:$P$1000=Costs!$A675)*('Fixed assets'!$U$2:$U$1000=Costs!$A675)*('Fixed assets'!$R$2:$R$1000))","v":0},{"$f":"SUMPRODUCT(('Fixed assets'!$R$2:$R$1000)*('Fixed assets'!$P$2:$P$1000<$A675)*('Fixed assets'!$Q$2:$Q$1000=Costs!AG$617))-SUMPRODUCT(('Fixed assets'!$S$2:$S$1000)*('Fixed assets'!$P$2:$P$1000<Costs!$A675)*('Fixed assets'!$Q$2:$Q$1000=Costs!AG$617))-SUMPRODUCT(('Fixed assets'!$Q$2:$Q$1000=Costs!AG$617)*('Fixed assets'!$U$2:$U$1000=Costs!$A675)*('Fixed assets'!$S$2:$S$1000))+SUMPRODUCT(('Fixed assets'!$Q$2:$Q$1000=Costs!AG$617)*('Fixed assets'!$P$2:$P$1000=Costs!$A675)*('Fixed assets'!$U$2:$U$1000=Costs!$A675)*('Fixed assets'!$R$2:$R$1000))","v":0},{"$f":"SUMPRODUCT(('Fixed assets'!$R$2:$R$1000)*('Fixed assets'!$P$2:$P$1000<$A675)*('Fixed assets'!$Q$2:$Q$1000=Costs!AH$617))-SUMPRODUCT(('Fixed assets'!$S$2:$S$1000)*('Fixed assets'!$P$2:$P$1000<Costs!$A675)*('Fixed assets'!$Q$2:$Q$1000=Costs!AH$617))-SUMPRODUCT(('Fixed assets'!$Q$2:$Q$1000=Costs!AH$617)*('Fixed assets'!$U$2:$U$1000=Costs!$A675)*('Fixed assets'!$S$2:$S$1000))+SUMPRODUCT(('Fixed assets'!$Q$2:$Q$1000=Costs!AH$617)*('Fixed assets'!$P$2:$P$1000=Costs!$A675)*('Fixed assets'!$U$2:$U$1000=Costs!$A675)*('Fixed assets'!$R$2:$R$1000))","v":0},{"$f":"SUMPRODUCT(('Fixed assets'!$R$2:$R$1000)*('Fixed assets'!$P$2:$P$1000<$A675)*('Fixed assets'!$Q$2:$Q$1000=Costs!AI$617))-SUMPRODUCT(('Fixed assets'!$S$2:$S$1000)*('Fixed assets'!$P$2:$P$1000<Costs!$A675)*('Fixed assets'!$Q$2:$Q$1000=Costs!AI$617))-SUMPRODUCT(('Fixed assets'!$Q$2:$Q$1000=Costs!AI$617)*('Fixed assets'!$U$2:$U$1000=Costs!$A675)*('Fixed assets'!$S$2:$S$1000))+SUMPRODUCT(('Fixed assets'!$Q$2:$Q$1000=Costs!AI$617)*('Fixed assets'!$P$2:$P$1000=Costs!$A675)*('Fixed assets'!$U$2:$U$1000=Costs!$A675)*('Fixed assets'!$R$2:$R$1000))","v":0},{"$f":"SUMPRODUCT(('Fixed assets'!$R$2:$R$1000)*('Fixed assets'!$P$2:$P$1000<$A675)*('Fixed assets'!$Q$2:$Q$1000=Costs!AJ$617))-SUMPRODUCT(('Fixed assets'!$S$2:$S$1000)*('Fixed assets'!$P$2:$P$1000<Costs!$A675)*('Fixed assets'!$Q$2:$Q$1000=Costs!AJ$617))-SUMPRODUCT(('Fixed assets'!$Q$2:$Q$1000=Costs!AJ$617)*('Fixed assets'!$U$2:$U$1000=Costs!$A675)*('Fixed assets'!$S$2:$S$1000))+SUMPRODUCT(('Fixed assets'!$Q$2:$Q$1000=Costs!AJ$617)*('Fixed assets'!$P$2:$P$1000=Costs!$A675)*('Fixed assets'!$U$2:$U$1000=Costs!$A675)*('Fixed assets'!$R$2:$R$1000))","v":0},{"$f":"SUMPRODUCT(('Fixed assets'!$R$2:$R$1000)*('Fixed assets'!$P$2:$P$1000<$A675)*('Fixed assets'!$Q$2:$Q$1000=Costs!AK$617))-SUMPRODUCT(('Fixed assets'!$S$2:$S$1000)*('Fixed assets'!$P$2:$P$1000<Costs!$A675)*('Fixed assets'!$Q$2:$Q$1000=Costs!AK$617))-SUMPRODUCT(('Fixed assets'!$Q$2:$Q$1000=Costs!AK$617)*('Fixed assets'!$U$2:$U$1000=Costs!$A675)*('Fixed assets'!$S$2:$S$1000))+SUMPRODUCT(('Fixed assets'!$Q$2:$Q$1000=Costs!AK$617)*('Fixed assets'!$P$2:$P$1000=Costs!$A675)*('Fixed assets'!$U$2:$U$1000=Costs!$A675)*('Fixed assets'!$R$2:$R$1000))","v":0},{"$f":"SUMPRODUCT(('Fixed assets'!$R$2:$R$1000)*('Fixed assets'!$P$2:$P$1000<$A675)*('Fixed assets'!$Q$2:$Q$1000=Costs!AL$617))-SUMPRODUCT(('Fixed assets'!$S$2:$S$1000)*('Fixed assets'!$P$2:$P$1000<Costs!$A675)*('Fixed assets'!$Q$2:$Q$1000=Costs!AL$617))-SUMPRODUCT(('Fixed assets'!$Q$2:$Q$1000=Costs!AL$617)*('Fixed assets'!$U$2:$U$1000=Costs!$A675)*('Fixed assets'!$S$2:$S$1000))+SUMPRODUCT(('Fixed assets'!$Q$2:$Q$1000=Costs!AL$617)*('Fixed assets'!$P$2:$P$1000=Costs!$A675)*('Fixed assets'!$U$2:$U$1000=Costs!$A675)*('Fixed assets'!$R$2:$R$1000))","v":0},{"$f":"SUMPRODUCT(('Fixed assets'!$R$2:$R$1000)*('Fixed assets'!$P$2:$P$1000<$A675)*('Fixed assets'!$Q$2:$Q$1000=Costs!AM$617))-SUMPRODUCT(('Fixed assets'!$S$2:$S$1000)*('Fixed assets'!$P$2:$P$1000<Costs!$A675)*('Fixed assets'!$Q$2:$Q$1000=Costs!AM$617))-SUMPRODUCT(('Fixed assets'!$Q$2:$Q$1000=Costs!AM$617)*('Fixed assets'!$U$2:$U$1000=Costs!$A675)*('Fixed assets'!$S$2:$S$1000))+SUMPRODUCT(('Fixed assets'!$Q$2:$Q$1000=Costs!AM$617)*('Fixed assets'!$P$2:$P$1000=Costs!$A675)*('Fixed assets'!$U$2:$U$1000=Costs!$A675)*('Fixed assets'!$R$2:$R$1000))","v":0},{"$f":"SUMPRODUCT(('Fixed assets'!$R$2:$R$1000)*('Fixed assets'!$P$2:$P$1000<$A675)*('Fixed assets'!$Q$2:$Q$1000=Costs!AN$617))-SUMPRODUCT(('Fixed assets'!$S$2:$S$1000)*('Fixed assets'!$P$2:$P$1000<Costs!$A675)*('Fixed assets'!$Q$2:$Q$1000=Costs!AN$617))-SUMPRODUCT(('Fixed assets'!$Q$2:$Q$1000=Costs!AN$617)*('Fixed assets'!$U$2:$U$1000=Costs!$A675)*('Fixed assets'!$S$2:$S$1000))+SUMPRODUCT(('Fixed assets'!$Q$2:$Q$1000=Costs!AN$617)*('Fixed assets'!$P$2:$P$1000=Costs!$A675)*('Fixed assets'!$U$2:$U$1000=Costs!$A675)*('Fixed assets'!$R$2:$R$1000))","v":0},{"$f":"SUMPRODUCT(('Fixed assets'!$R$2:$R$1000)*('Fixed assets'!$P$2:$P$1000<$A675)*('Fixed assets'!$Q$2:$Q$1000=Costs!AO$617))-SUMPRODUCT(('Fixed assets'!$S$2:$S$1000)*('Fixed assets'!$P$2:$P$1000<Costs!$A675)*('Fixed assets'!$Q$2:$Q$1000=Costs!AO$617))-SUMPRODUCT(('Fixed assets'!$Q$2:$Q$1000=Costs!AO$617)*('Fixed assets'!$U$2:$U$1000=Costs!$A675)*('Fixed assets'!$S$2:$S$1000))+SUMPRODUCT(('Fixed assets'!$Q$2:$Q$1000=Costs!AO$617)*('Fixed assets'!$P$2:$P$1000=Costs!$A675)*('Fixed assets'!$U$2:$U$1000=Costs!$A675)*('Fixed assets'!$R$2:$R$1000))","v":0},{"$f":"SUMPRODUCT(('Fixed assets'!$R$2:$R$1000)*('Fixed assets'!$P$2:$P$1000<$A675)*('Fixed assets'!$Q$2:$Q$1000=Costs!AP$617))-SUMPRODUCT(('Fixed assets'!$S$2:$S$1000)*('Fixed assets'!$P$2:$P$1000<Costs!$A675)*('Fixed assets'!$Q$2:$Q$1000=Costs!AP$617))-SUMPRODUCT(('Fixed assets'!$Q$2:$Q$1000=Costs!AP$617)*('Fixed assets'!$U$2:$U$1000=Costs!$A675)*('Fixed assets'!$S$2:$S$1000))+SUMPRODUCT(('Fixed assets'!$Q$2:$Q$1000=Costs!AP$617)*('Fixed assets'!$P$2:$P$1000=Costs!$A675)*('Fixed assets'!$U$2:$U$1000=Costs!$A675)*('Fixed assets'!$R$2:$R$1000))","v":0},{"$f":"SUMPRODUCT(('Fixed assets'!$R$2:$R$1000)*('Fixed assets'!$P$2:$P$1000<$A675)*('Fixed assets'!$Q$2:$Q$1000=Costs!AQ$617))-SUMPRODUCT(('Fixed assets'!$S$2:$S$1000)*('Fixed assets'!$P$2:$P$1000<Costs!$A675)*('Fixed assets'!$Q$2:$Q$1000=Costs!AQ$617))-SUMPRODUCT(('Fixed assets'!$Q$2:$Q$1000=Costs!AQ$617)*('Fixed assets'!$U$2:$U$1000=Costs!$A675)*('Fixed assets'!$S$2:$S$1000))+SUMPRODUCT(('Fixed assets'!$Q$2:$Q$1000=Costs!AQ$617)*('Fixed assets'!$P$2:$P$1000=Costs!$A675)*('Fixed assets'!$U$2:$U$1000=Costs!$A675)*('Fixed assets'!$R$2:$R$1000))","v":0}]
[2073,0,{"$f":"SUMPRODUCT(('Fixed assets'!$R$2:$R$1000)*('Fixed assets'!$P$2:$P$1000<$A676)*('Fixed assets'!$Q$2:$Q$1000=Costs!C$617))-SUMPRODUCT(('Fixed assets'!$S$2:$S$1000)*('Fixed assets'!$P$2:$P$1000<Costs!$A676)*('Fixed assets'!$Q$2:$Q$1000=Costs!C$617))-SUMPRODUCT(('Fixed assets'!$Q$2:$Q$1000=Costs!C$617)*('Fixed assets'!$U$2:$U$1000=Costs!$A676)*('Fixed assets'!$S$2:$S$1000))+SUMPRODUCT(('Fixed assets'!$Q$2:$Q$1000=Costs!C$617)*('Fixed assets'!$P$2:$P$1000=Costs!$A676)*('Fixed assets'!$U$2:$U$1000=Costs!$A676)*('Fixed assets'!$R$2:$R$1000))","v":0},{"$f":"SUMPRODUCT(('Fixed assets'!$R$2:$R$1000)*('Fixed assets'!$P$2:$P$1000<$A676)*('Fixed assets'!$Q$2:$Q$1000=Costs!D$617))-SUMPRODUCT(('Fixed assets'!$S$2:$S$1000)*('Fixed assets'!$P$2:$P$1000<Costs!$A676)*('Fixed assets'!$Q$2:$Q$1000=Costs!D$617))-SUMPRODUCT(('Fixed assets'!$Q$2:$Q$1000=Costs!D$617)*('Fixed assets'!$U$2:$U$1000=Costs!$A676)*('Fixed assets'!$S$2:$S$1000))+SUMPRODUCT(('Fixed assets'!$Q$2:$Q$1000=Costs!D$617)*('Fixed assets'!$P$2:$P$1000=Costs!$A676)*('Fixed assets'!$U$2:$U$1000=Costs!$A676)*('Fixed assets'!$R$2:$R$1000))","v":0},{"$f":"SUMPRODUCT(('Fixed assets'!$R$2:$R$1000)*('Fixed assets'!$P$2:$P$1000<$A676)*('Fixed assets'!$Q$2:$Q$1000=Costs!E$617))-SUMPRODUCT(('Fixed assets'!$S$2:$S$1000)*('Fixed assets'!$P$2:$P$1000<Costs!$A676)*('Fixed assets'!$Q$2:$Q$1000=Costs!E$617))-SUMPRODUCT(('Fixed assets'!$Q$2:$Q$1000=Costs!E$617)*('Fixed assets'!$U$2:$U$1000=Costs!$A676)*('Fixed assets'!$S$2:$S$1000))+SUMPRODUCT(('Fixed assets'!$Q$2:$Q$1000=Costs!E$617)*('Fixed assets'!$P$2:$P$1000=Costs!$A676)*('Fixed assets'!$U$2:$U$1000=Costs!$A676)*('Fixed assets'!$R$2:$R$1000))","v":0},{"$f":"SUMPRODUCT(('Fixed assets'!$R$2:$R$1000)*('Fixed assets'!$P$2:$P$1000<$A676)*('Fixed assets'!$Q$2:$Q$1000=Costs!F$617))-SUMPRODUCT(('Fixed assets'!$S$2:$S$1000)*('Fixed assets'!$P$2:$P$1000<Costs!$A676)*('Fixed assets'!$Q$2:$Q$1000=Costs!F$617))-SUMPRODUCT(('Fixed assets'!$Q$2:$Q$1000=Costs!F$617)*('Fixed assets'!$U$2:$U$1000=Costs!$A676)*('Fixed assets'!$S$2:$S$1000))+SUMPRODUCT(('Fixed assets'!$Q$2:$Q$1000=Costs!F$617)*('Fixed assets'!$P$2:$P$1000=Costs!$A676)*('Fixed assets'!$U$2:$U$1000=Costs!$A676)*('Fixed assets'!$R$2:$R$1000))","v":0},{"$f":"SUMPRODUCT(('Fixed assets'!$R$2:$R$1000)*('Fixed assets'!$P$2:$P$1000<$A676)*('Fixed assets'!$Q$2:$Q$1000=Costs!G$617))-SUMPRODUCT(('Fixed assets'!$S$2:$S$1000)*('Fixed assets'!$P$2:$P$1000<Costs!$A676)*('Fixed assets'!$Q$2:$Q$1000=Costs!G$617))-SUMPRODUCT(('Fixed assets'!$Q$2:$Q$1000=Costs!G$617)*('Fixed assets'!$U$2:$U$1000=Costs!$A676)*('Fixed assets'!$S$2:$S$1000))+SUMPRODUCT(('Fixed assets'!$Q$2:$Q$1000=Costs!G$617)*('Fixed assets'!$P$2:$P$1000=Costs!$A676)*('Fixed assets'!$U$2:$U$1000=Costs!$A676)*('Fixed assets'!$R$2:$R$1000))","v":0},{"$f":"SUMPRODUCT(('Fixed assets'!$R$2:$R$1000)*('Fixed assets'!$P$2:$P$1000<$A676)*('Fixed assets'!$Q$2:$Q$1000=Costs!H$617))-SUMPRODUCT(('Fixed assets'!$S$2:$S$1000)*('Fixed assets'!$P$2:$P$1000<Costs!$A676)*('Fixed assets'!$Q$2:$Q$1000=Costs!H$617))-SUMPRODUCT(('Fixed assets'!$Q$2:$Q$1000=Costs!H$617)*('Fixed assets'!$U$2:$U$1000=Costs!$A676)*('Fixed assets'!$S$2:$S$1000))+SUMPRODUCT(('Fixed assets'!$Q$2:$Q$1000=Costs!H$617)*('Fixed assets'!$P$2:$P$1000=Costs!$A676)*('Fixed assets'!$U$2:$U$1000=Costs!$A676)*('Fixed assets'!$R$2:$R$1000))","v":0},{"$f":"SUMPRODUCT(('Fixed assets'!$R$2:$R$1000)*('Fixed assets'!$P$2:$P$1000<$A676)*('Fixed assets'!$Q$2:$Q$1000=Costs!I$617))-SUMPRODUCT(('Fixed assets'!$S$2:$S$1000)*('Fixed assets'!$P$2:$P$1000<Costs!$A676)*('Fixed assets'!$Q$2:$Q$1000=Costs!I$617))-SUMPRODUCT(('Fixed assets'!$Q$2:$Q$1000=Costs!I$617)*('Fixed assets'!$U$2:$U$1000=Costs!$A676)*('Fixed assets'!$S$2:$S$1000))+SUMPRODUCT(('Fixed assets'!$Q$2:$Q$1000=Costs!I$617)*('Fixed assets'!$P$2:$P$1000=Costs!$A676)*('Fixed assets'!$U$2:$U$1000=Costs!$A676)*('Fixed assets'!$R$2:$R$1000))","v":0},{"$f":"SUMPRODUCT(('Fixed assets'!$R$2:$R$1000)*('Fixed assets'!$P$2:$P$1000<$A676)*('Fixed assets'!$Q$2:$Q$1000=Costs!J$617))-SUMPRODUCT(('Fixed assets'!$S$2:$S$1000)*('Fixed assets'!$P$2:$P$1000<Costs!$A676)*('Fixed assets'!$Q$2:$Q$1000=Costs!J$617))-SUMPRODUCT(('Fixed assets'!$Q$2:$Q$1000=Costs!J$617)*('Fixed assets'!$U$2:$U$1000=Costs!$A676)*('Fixed assets'!$S$2:$S$1000))+SUMPRODUCT(('Fixed assets'!$Q$2:$Q$1000=Costs!J$617)*('Fixed assets'!$P$2:$P$1000=Costs!$A676)*('Fixed assets'!$U$2:$U$1000=Costs!$A676)*('Fixed assets'!$R$2:$R$1000))","v":0},{"$f":"SUMPRODUCT(('Fixed assets'!$R$2:$R$1000)*('Fixed assets'!$P$2:$P$1000<$A676)*('Fixed assets'!$Q$2:$Q$1000=Costs!K$617))-SUMPRODUCT(('Fixed assets'!$S$2:$S$1000)*('Fixed assets'!$P$2:$P$1000<Costs!$A676)*('Fixed assets'!$Q$2:$Q$1000=Costs!K$617))-SUMPRODUCT(('Fixed assets'!$Q$2:$Q$1000=Costs!K$617)*('Fixed assets'!$U$2:$U$1000=Costs!$A676)*('Fixed assets'!$S$2:$S$1000))+SUMPRODUCT(('Fixed assets'!$Q$2:$Q$1000=Costs!K$617)*('Fixed assets'!$P$2:$P$1000=Costs!$A676)*('Fixed assets'!$U$2:$U$1000=Costs!$A676)*('Fixed assets'!$R$2:$R$1000))","v":0},{"$f":"SUMPRODUCT(('Fixed assets'!$R$2:$R$1000)*('Fixed assets'!$P$2:$P$1000<$A676)*('Fixed assets'!$Q$2:$Q$1000=Costs!L$617))-SUMPRODUCT(('Fixed assets'!$S$2:$S$1000)*('Fixed assets'!$P$2:$P$1000<Costs!$A676)*('Fixed assets'!$Q$2:$Q$1000=Costs!L$617))-SUMPRODUCT(('Fixed assets'!$Q$2:$Q$1000=Costs!L$617)*('Fixed assets'!$U$2:$U$1000=Costs!$A676)*('Fixed assets'!$S$2:$S$1000))+SUMPRODUCT(('Fixed assets'!$Q$2:$Q$1000=Costs!L$617)*('Fixed assets'!$P$2:$P$1000=Costs!$A676)*('Fixed assets'!$U$2:$U$1000=Costs!$A676)*('Fixed assets'!$R$2:$R$1000))","v":0},{"$f":"SUMPRODUCT(('Fixed assets'!$R$2:$R$1000)*('Fixed assets'!$P$2:$P$1000<$A676)*('Fixed assets'!$Q$2:$Q$1000=Costs!M$617))-SUMPRODUCT(('Fixed assets'!$S$2:$S$1000)*('Fixed assets'!$P$2:$P$1000<Costs!$A676)*('Fixed assets'!$Q$2:$Q$1000=Costs!M$617))-SUMPRODUCT(('Fixed assets'!$Q$2:$Q$1000=Costs!M$617)*('Fixed assets'!$U$2:$U$1000=Costs!$A676)*('Fixed assets'!$S$2:$S$1000))+SUMPRODUCT(('Fixed assets'!$Q$2:$Q$1000=Costs!M$617)*('Fixed assets'!$P$2:$P$1000=Costs!$A676)*('Fixed assets'!$U$2:$U$1000=Costs!$A676)*('Fixed assets'!$R$2:$R$1000))","v":0},{"$f":"SUMPRODUCT(('Fixed assets'!$R$2:$R$1000)*('Fixed assets'!$P$2:$P$1000<$A676)*('Fixed assets'!$Q$2:$Q$1000=Costs!N$617))-SUMPRODUCT(('Fixed assets'!$S$2:$S$1000)*('Fixed assets'!$P$2:$P$1000<Costs!$A676)*('Fixed assets'!$Q$2:$Q$1000=Costs!N$617))-SUMPRODUCT(('Fixed assets'!$Q$2:$Q$1000=Costs!N$617)*('Fixed assets'!$U$2:$U$1000=Costs!$A676)*('Fixed assets'!$S$2:$S$1000))+SUMPRODUCT(('Fixed assets'!$Q$2:$Q$1000=Costs!N$617)*('Fixed assets'!$P$2:$P$1000=Costs!$A676)*('Fixed assets'!$U$2:$U$1000=Costs!$A676)*('Fixed assets'!$R$2:$R$1000))","v":0},{"$f":"SUMPRODUCT(('Fixed assets'!$R$2:$R$1000)*('Fixed assets'!$P$2:$P$1000<$A676)*('Fixed assets'!$Q$2:$Q$1000=Costs!O$617))-SUMPRODUCT(('Fixed assets'!$S$2:$S$1000)*('Fixed assets'!$P$2:$P$1000<Costs!$A676)*('Fixed assets'!$Q$2:$Q$1000=Costs!O$617))-SUMPRODUCT(('Fixed assets'!$Q$2:$Q$1000=Costs!O$617)*('Fixed assets'!$U$2:$U$1000=Costs!$A676)*('Fixed assets'!$S$2:$S$1000))+SUMPRODUCT(('Fixed assets'!$Q$2:$Q$1000=Costs!O$617)*('Fixed assets'!$P$2:$P$1000=Costs!$A676)*('Fixed assets'!$U$2:$U$1000=Costs!$A676)*('Fixed assets'!$R$2:$R$1000))","v":0},{"$f":"SUMPRODUCT(('Fixed assets'!$R$2:$R$1000)*('Fixed assets'!$P$2:$P$1000<$A676)*('Fixed assets'!$Q$2:$Q$1000=Costs!P$617))-SUMPRODUCT(('Fixed assets'!$S$2:$S$1000)*('Fixed assets'!$P$2:$P$1000<Costs!$A676)*('Fixed assets'!$Q$2:$Q$1000=Costs!P$617))-SUMPRODUCT(('Fixed assets'!$Q$2:$Q$1000=Costs!P$617)*('Fixed assets'!$U$2:$U$1000=Costs!$A676)*('Fixed assets'!$S$2:$S$1000))+SUMPRODUCT(('Fixed assets'!$Q$2:$Q$1000=Costs!P$617)*('Fixed assets'!$P$2:$P$1000=Costs!$A676)*('Fixed assets'!$U$2:$U$1000=Costs!$A676)*('Fixed assets'!$R$2:$R$1000))","v":0},{"$f":"SUMPRODUCT(('Fixed assets'!$R$2:$R$1000)*('Fixed assets'!$P$2:$P$1000<$A676)*('Fixed assets'!$Q$2:$Q$1000=Costs!Q$617))-SUMPRODUCT(('Fixed assets'!$S$2:$S$1000)*('Fixed assets'!$P$2:$P$1000<Costs!$A676)*('Fixed assets'!$Q$2:$Q$1000=Costs!Q$617))-SUMPRODUCT(('Fixed assets'!$Q$2:$Q$1000=Costs!Q$617)*('Fixed assets'!$U$2:$U$1000=Costs!$A676)*('Fixed assets'!$S$2:$S$1000))+SUMPRODUCT(('Fixed assets'!$Q$2:$Q$1000=Costs!Q$617)*('Fixed assets'!$P$2:$P$1000=Costs!$A676)*('Fixed assets'!$U$2:$U$1000=Costs!$A676)*('Fixed assets'!$R$2:$R$1000))","v":0},{"$f":"SUMPRODUCT(('Fixed assets'!$R$2:$R$1000)*('Fixed assets'!$P$2:$P$1000<$A676)*('Fixed assets'!$Q$2:$Q$1000=Costs!R$617))-SUMPRODUCT(('Fixed assets'!$S$2:$S$1000)*('Fixed assets'!$P$2:$P$1000<Costs!$A676)*('Fixed assets'!$Q$2:$Q$1000=Costs!R$617))-SUMPRODUCT(('Fixed assets'!$Q$2:$Q$1000=Costs!R$617)*('Fixed assets'!$U$2:$U$1000=Costs!$A676)*('Fixed assets'!$S$2:$S$1000))+SUMPRODUCT(('Fixed assets'!$Q$2:$Q$1000=Costs!R$617)*('Fixed assets'!$P$2:$P$1000=Costs!$A676)*('Fixed assets'!$U$2:$U$1000=Costs!$A676)*('Fixed assets'!$R$2:$R$1000))","v":0},{"$f":"SUMPRODUCT(('Fixed assets'!$R$2:$R$1000)*('Fixed assets'!$P$2:$P$1000<$A676)*('Fixed assets'!$Q$2:$Q$1000=Costs!S$617))-SUMPRODUCT(('Fixed assets'!$S$2:$S$1000)*('Fixed assets'!$P$2:$P$1000<Costs!$A676)*('Fixed assets'!$Q$2:$Q$1000=Costs!S$617))-SUMPRODUCT(('Fixed assets'!$Q$2:$Q$1000=Costs!S$617)*('Fixed assets'!$U$2:$U$1000=Costs!$A676)*('Fixed assets'!$S$2:$S$1000))+SUMPRODUCT(('Fixed assets'!$Q$2:$Q$1000=Costs!S$617)*('Fixed assets'!$P$2:$P$1000=Costs!$A676)*('Fixed assets'!$U$2:$U$1000=Costs!$A676)*('Fixed assets'!$R$2:$R$1000))","v":0},{"$f":"SUMPRODUCT(('Fixed assets'!$R$2:$R$1000)*('Fixed assets'!$P$2:$P$1000<$A676)*('Fixed assets'!$Q$2:$Q$1000=Costs!T$617))-SUMPRODUCT(('Fixed assets'!$S$2:$S$1000)*('Fixed assets'!$P$2:$P$1000<Costs!$A676)*('Fixed assets'!$Q$2:$Q$1000=Costs!T$617))-SUMPRODUCT(('Fixed assets'!$Q$2:$Q$1000=Costs!T$617)*('Fixed assets'!$U$2:$U$1000=Costs!$A676)*('Fixed assets'!$S$2:$S$1000))+SUMPRODUCT(('Fixed assets'!$Q$2:$Q$1000=Costs!T$617)*('Fixed assets'!$P$2:$P$1000=Costs!$A676)*('Fixed assets'!$U$2:$U$1000=Costs!$A676)*('Fixed assets'!$R$2:$R$1000))","v":0},{"$f":"SUMPRODUCT(('Fixed assets'!$R$2:$R$1000)*('Fixed assets'!$P$2:$P$1000<$A676)*('Fixed assets'!$Q$2:$Q$1000=Costs!U$617))-SUMPRODUCT(('Fixed assets'!$S$2:$S$1000)*('Fixed assets'!$P$2:$P$1000<Costs!$A676)*('Fixed assets'!$Q$2:$Q$1000=Costs!U$617))-SUMPRODUCT(('Fixed assets'!$Q$2:$Q$1000=Costs!U$617)*('Fixed assets'!$U$2:$U$1000=Costs!$A676)*('Fixed assets'!$S$2:$S$1000))+SUMPRODUCT(('Fixed assets'!$Q$2:$Q$1000=Costs!U$617)*('Fixed assets'!$P$2:$P$1000=Costs!$A676)*('Fixed assets'!$U$2:$U$1000=Costs!$A676)*('Fixed assets'!$R$2:$R$1000))","v":0},{"$f":"SUMPRODUCT(('Fixed assets'!$R$2:$R$1000)*('Fixed assets'!$P$2:$P$1000<$A676)*('Fixed assets'!$Q$2:$Q$1000=Costs!V$617))-SUMPRODUCT(('Fixed assets'!$S$2:$S$1000)*('Fixed assets'!$P$2:$P$1000<Costs!$A676)*('Fixed assets'!$Q$2:$Q$1000=Costs!V$617))-SUMPRODUCT(('Fixed assets'!$Q$2:$Q$1000=Costs!V$617)*('Fixed assets'!$U$2:$U$1000=Costs!$A676)*('Fixed assets'!$S$2:$S$1000))+SUMPRODUCT(('Fixed assets'!$Q$2:$Q$1000=Costs!V$617)*('Fixed assets'!$P$2:$P$1000=Costs!$A676)*('Fixed assets'!$U$2:$U$1000=Costs!$A676)*('Fixed assets'!$R$2:$R$1000))","v":0},{"$f":"SUMPRODUCT(('Fixed assets'!$R$2:$R$1000)*('Fixed assets'!$P$2:$P$1000<$A676)*('Fixed assets'!$Q$2:$Q$1000=Costs!W$617))-SUMPRODUCT(('Fixed assets'!$S$2:$S$1000)*('Fixed assets'!$P$2:$P$1000<Costs!$A676)*('Fixed assets'!$Q$2:$Q$1000=Costs!W$617))-SUMPRODUCT(('Fixed assets'!$Q$2:$Q$1000=Costs!W$617)*('Fixed assets'!$U$2:$U$1000=Costs!$A676)*('Fixed assets'!$S$2:$S$1000))+SUMPRODUCT(('Fixed assets'!$Q$2:$Q$1000=Costs!W$617)*('Fixed assets'!$P$2:$P$1000=Costs!$A676)*('Fixed assets'!$U$2:$U$1000=Costs!$A676)*('Fixed assets'!$R$2:$R$1000))","v":0},{"$f":"SUMPRODUCT(('Fixed assets'!$R$2:$R$1000)*('Fixed assets'!$P$2:$P$1000<$A676)*('Fixed assets'!$Q$2:$Q$1000=Costs!X$617))-SUMPRODUCT(('Fixed assets'!$S$2:$S$1000)*('Fixed assets'!$P$2:$P$1000<Costs!$A676)*('Fixed assets'!$Q$2:$Q$1000=Costs!X$617))-SUMPRODUCT(('Fixed assets'!$Q$2:$Q$1000=Costs!X$617)*('Fixed assets'!$U$2:$U$1000=Costs!$A676)*('Fixed assets'!$S$2:$S$1000))+SUMPRODUCT(('Fixed assets'!$Q$2:$Q$1000=Costs!X$617)*('Fixed assets'!$P$2:$P$1000=Costs!$A676)*('Fixed assets'!$U$2:$U$1000=Costs!$A676)*('Fixed assets'!$R$2:$R$1000))","v":0},{"$f":"SUMPRODUCT(('Fixed assets'!$R$2:$R$1000)*('Fixed assets'!$P$2:$P$1000<$A676)*('Fixed assets'!$Q$2:$Q$1000=Costs!Y$617))-SUMPRODUCT(('Fixed assets'!$S$2:$S$1000)*('Fixed assets'!$P$2:$P$1000<Costs!$A676)*('Fixed assets'!$Q$2:$Q$1000=Costs!Y$617))-SUMPRODUCT(('Fixed assets'!$Q$2:$Q$1000=Costs!Y$617)*('Fixed assets'!$U$2:$U$1000=Costs!$A676)*('Fixed assets'!$S$2:$S$1000))+SUMPRODUCT(('Fixed assets'!$Q$2:$Q$1000=Costs!Y$617)*('Fixed assets'!$P$2:$P$1000=Costs!$A676)*('Fixed assets'!$U$2:$U$1000=Costs!$A676)*('Fixed assets'!$R$2:$R$1000))","v":0},{"$f":"SUMPRODUCT(('Fixed assets'!$R$2:$R$1000)*('Fixed assets'!$P$2:$P$1000<$A676)*('Fixed assets'!$Q$2:$Q$1000=Costs!Z$617))-SUMPRODUCT(('Fixed assets'!$S$2:$S$1000)*('Fixed assets'!$P$2:$P$1000<Costs!$A676)*('Fixed assets'!$Q$2:$Q$1000=Costs!Z$617))-SUMPRODUCT(('Fixed assets'!$Q$2:$Q$1000=Costs!Z$617)*('Fixed assets'!$U$2:$U$1000=Costs!$A676)*('Fixed assets'!$S$2:$S$1000))+SUMPRODUCT(('Fixed assets'!$Q$2:$Q$1000=Costs!Z$617)*('Fixed assets'!$P$2:$P$1000=Costs!$A676)*('Fixed assets'!$U$2:$U$1000=Costs!$A676)*('Fixed assets'!$R$2:$R$1000))","v":0},{"$f":"SUMPRODUCT(('Fixed assets'!$R$2:$R$1000)*('Fixed assets'!$P$2:$P$1000<$A676)*('Fixed assets'!$Q$2:$Q$1000=Costs!AA$617))-SUMPRODUCT(('Fixed assets'!$S$2:$S$1000)*('Fixed assets'!$P$2:$P$1000<Costs!$A676)*('Fixed assets'!$Q$2:$Q$1000=Costs!AA$617))-SUMPRODUCT(('Fixed assets'!$Q$2:$Q$1000=Costs!AA$617)*('Fixed assets'!$U$2:$U$1000=Costs!$A676)*('Fixed assets'!$S$2:$S$1000))+SUMPRODUCT(('Fixed assets'!$Q$2:$Q$1000=Costs!AA$617)*('Fixed assets'!$P$2:$P$1000=Costs!$A676)*('Fixed assets'!$U$2:$U$1000=Costs!$A676)*('Fixed assets'!$R$2:$R$1000))","v":0},{"$f":"SUMPRODUCT(('Fixed assets'!$R$2:$R$1000)*('Fixed assets'!$P$2:$P$1000<$A676)*('Fixed assets'!$Q$2:$Q$1000=Costs!AB$617))-SUMPRODUCT(('Fixed assets'!$S$2:$S$1000)*('Fixed assets'!$P$2:$P$1000<Costs!$A676)*('Fixed assets'!$Q$2:$Q$1000=Costs!AB$617))-SUMPRODUCT(('Fixed assets'!$Q$2:$Q$1000=Costs!AB$617)*('Fixed assets'!$U$2:$U$1000=Costs!$A676)*('Fixed assets'!$S$2:$S$1000))+SUMPRODUCT(('Fixed assets'!$Q$2:$Q$1000=Costs!AB$617)*('Fixed assets'!$P$2:$P$1000=Costs!$A676)*('Fixed assets'!$U$2:$U$1000=Costs!$A676)*('Fixed assets'!$R$2:$R$1000))","v":0},{"$f":"SUMPRODUCT(('Fixed assets'!$R$2:$R$1000)*('Fixed assets'!$P$2:$P$1000<$A676)*('Fixed assets'!$Q$2:$Q$1000=Costs!AC$617))-SUMPRODUCT(('Fixed assets'!$S$2:$S$1000)*('Fixed assets'!$P$2:$P$1000<Costs!$A676)*('Fixed assets'!$Q$2:$Q$1000=Costs!AC$617))-SUMPRODUCT(('Fixed assets'!$Q$2:$Q$1000=Costs!AC$617)*('Fixed assets'!$U$2:$U$1000=Costs!$A676)*('Fixed assets'!$S$2:$S$1000))+SUMPRODUCT(('Fixed assets'!$Q$2:$Q$1000=Costs!AC$617)*('Fixed assets'!$P$2:$P$1000=Costs!$A676)*('Fixed assets'!$U$2:$U$1000=Costs!$A676)*('Fixed assets'!$R$2:$R$1000))","v":0},{"$f":"SUMPRODUCT(('Fixed assets'!$R$2:$R$1000)*('Fixed assets'!$P$2:$P$1000<$A676)*('Fixed assets'!$Q$2:$Q$1000=Costs!AD$617))-SUMPRODUCT(('Fixed assets'!$S$2:$S$1000)*('Fixed assets'!$P$2:$P$1000<Costs!$A676)*('Fixed assets'!$Q$2:$Q$1000=Costs!AD$617))-SUMPRODUCT(('Fixed assets'!$Q$2:$Q$1000=Costs!AD$617)*('Fixed assets'!$U$2:$U$1000=Costs!$A676)*('Fixed assets'!$S$2:$S$1000))+SUMPRODUCT(('Fixed assets'!$Q$2:$Q$1000=Costs!AD$617)*('Fixed assets'!$P$2:$P$1000=Costs!$A676)*('Fixed assets'!$U$2:$U$1000=Costs!$A676)*('Fixed assets'!$R$2:$R$1000))","v":0},{"$f":"SUMPRODUCT(('Fixed assets'!$R$2:$R$1000)*('Fixed assets'!$P$2:$P$1000<$A676)*('Fixed assets'!$Q$2:$Q$1000=Costs!AE$617))-SUMPRODUCT(('Fixed assets'!$S$2:$S$1000)*('Fixed assets'!$P$2:$P$1000<Costs!$A676)*('Fixed assets'!$Q$2:$Q$1000=Costs!AE$617))-SUMPRODUCT(('Fixed assets'!$Q$2:$Q$1000=Costs!AE$617)*('Fixed assets'!$U$2:$U$1000=Costs!$A676)*('Fixed assets'!$S$2:$S$1000))+SUMPRODUCT(('Fixed assets'!$Q$2:$Q$1000=Costs!AE$617)*('Fixed assets'!$P$2:$P$1000=Costs!$A676)*('Fixed assets'!$U$2:$U$1000=Costs!$A676)*('Fixed assets'!$R$2:$R$1000))","v":0},{"$f":"SUMPRODUCT(('Fixed assets'!$R$2:$R$1000)*('Fixed assets'!$P$2:$P$1000<$A676)*('Fixed assets'!$Q$2:$Q$1000=Costs!AF$617))-SUMPRODUCT(('Fixed assets'!$S$2:$S$1000)*('Fixed assets'!$P$2:$P$1000<Costs!$A676)*('Fixed assets'!$Q$2:$Q$1000=Costs!AF$617))-SUMPRODUCT(('Fixed assets'!$Q$2:$Q$1000=Costs!AF$617)*('Fixed assets'!$U$2:$U$1000=Costs!$A676)*('Fixed assets'!$S$2:$S$1000))+SUMPRODUCT(('Fixed assets'!$Q$2:$Q$1000=Costs!AF$617)*('Fixed assets'!$P$2:$P$1000=Costs!$A676)*('Fixed assets'!$U$2:$U$1000=Costs!$A676)*('Fixed assets'!$R$2:$R$1000))","v":0},{"$f":"SUMPRODUCT(('Fixed assets'!$R$2:$R$1000)*('Fixed assets'!$P$2:$P$1000<$A676)*('Fixed assets'!$Q$2:$Q$1000=Costs!AG$617))-SUMPRODUCT(('Fixed assets'!$S$2:$S$1000)*('Fixed assets'!$P$2:$P$1000<Costs!$A676)*('Fixed assets'!$Q$2:$Q$1000=Costs!AG$617))-SUMPRODUCT(('Fixed assets'!$Q$2:$Q$1000=Costs!AG$617)*('Fixed assets'!$U$2:$U$1000=Costs!$A676)*('Fixed assets'!$S$2:$S$1000))+SUMPRODUCT(('Fixed assets'!$Q$2:$Q$1000=Costs!AG$617)*('Fixed assets'!$P$2:$P$1000=Costs!$A676)*('Fixed assets'!$U$2:$U$1000=Costs!$A676)*('Fixed assets'!$R$2:$R$1000))","v":0},{"$f":"SUMPRODUCT(('Fixed assets'!$R$2:$R$1000)*('Fixed assets'!$P$2:$P$1000<$A676)*('Fixed assets'!$Q$2:$Q$1000=Costs!AH$617))-SUMPRODUCT(('Fixed assets'!$S$2:$S$1000)*('Fixed assets'!$P$2:$P$1000<Costs!$A676)*('Fixed assets'!$Q$2:$Q$1000=Costs!AH$617))-SUMPRODUCT(('Fixed assets'!$Q$2:$Q$1000=Costs!AH$617)*('Fixed assets'!$U$2:$U$1000=Costs!$A676)*('Fixed assets'!$S$2:$S$1000))+SUMPRODUCT(('Fixed assets'!$Q$2:$Q$1000=Costs!AH$617)*('Fixed assets'!$P$2:$P$1000=Costs!$A676)*('Fixed assets'!$U$2:$U$1000=Costs!$A676)*('Fixed assets'!$R$2:$R$1000))","v":0},{"$f":"SUMPRODUCT(('Fixed assets'!$R$2:$R$1000)*('Fixed assets'!$P$2:$P$1000<$A676)*('Fixed assets'!$Q$2:$Q$1000=Costs!AI$617))-SUMPRODUCT(('Fixed assets'!$S$2:$S$1000)*('Fixed assets'!$P$2:$P$1000<Costs!$A676)*('Fixed assets'!$Q$2:$Q$1000=Costs!AI$617))-SUMPRODUCT(('Fixed assets'!$Q$2:$Q$1000=Costs!AI$617)*('Fixed assets'!$U$2:$U$1000=Costs!$A676)*('Fixed assets'!$S$2:$S$1000))+SUMPRODUCT(('Fixed assets'!$Q$2:$Q$1000=Costs!AI$617)*('Fixed assets'!$P$2:$P$1000=Costs!$A676)*('Fixed assets'!$U$2:$U$1000=Costs!$A676)*('Fixed assets'!$R$2:$R$1000))","v":0},{"$f":"SUMPRODUCT(('Fixed assets'!$R$2:$R$1000)*('Fixed assets'!$P$2:$P$1000<$A676)*('Fixed assets'!$Q$2:$Q$1000=Costs!AJ$617))-SUMPRODUCT(('Fixed assets'!$S$2:$S$1000)*('Fixed assets'!$P$2:$P$1000<Costs!$A676)*('Fixed assets'!$Q$2:$Q$1000=Costs!AJ$617))-SUMPRODUCT(('Fixed assets'!$Q$2:$Q$1000=Costs!AJ$617)*('Fixed assets'!$U$2:$U$1000=Costs!$A676)*('Fixed assets'!$S$2:$S$1000))+SUMPRODUCT(('Fixed assets'!$Q$2:$Q$1000=Costs!AJ$617)*('Fixed assets'!$P$2:$P$1000=Costs!$A676)*('Fixed assets'!$U$2:$U$1000=Costs!$A676)*('Fixed assets'!$R$2:$R$1000))","v":0},{"$f":"SUMPRODUCT(('Fixed assets'!$R$2:$R$1000)*('Fixed assets'!$P$2:$P$1000<$A676)*('Fixed assets'!$Q$2:$Q$1000=Costs!AK$617))-SUMPRODUCT(('Fixed assets'!$S$2:$S$1000)*('Fixed assets'!$P$2:$P$1000<Costs!$A676)*('Fixed assets'!$Q$2:$Q$1000=Costs!AK$617))-SUMPRODUCT(('Fixed assets'!$Q$2:$Q$1000=Costs!AK$617)*('Fixed assets'!$U$2:$U$1000=Costs!$A676)*('Fixed assets'!$S$2:$S$1000))+SUMPRODUCT(('Fixed assets'!$Q$2:$Q$1000=Costs!AK$617)*('Fixed assets'!$P$2:$P$1000=Costs!$A676)*('Fixed assets'!$U$2:$U$1000=Costs!$A676)*('Fixed assets'!$R$2:$R$1000))","v":0},{"$f":"SUMPRODUCT(('Fixed assets'!$R$2:$R$1000)*('Fixed assets'!$P$2:$P$1000<$A676)*('Fixed assets'!$Q$2:$Q$1000=Costs!AL$617))-SUMPRODUCT(('Fixed assets'!$S$2:$S$1000)*('Fixed assets'!$P$2:$P$1000<Costs!$A676)*('Fixed assets'!$Q$2:$Q$1000=Costs!AL$617))-SUMPRODUCT(('Fixed assets'!$Q$2:$Q$1000=Costs!AL$617)*('Fixed assets'!$U$2:$U$1000=Costs!$A676)*('Fixed assets'!$S$2:$S$1000))+SUMPRODUCT(('Fixed assets'!$Q$2:$Q$1000=Costs!AL$617)*('Fixed assets'!$P$2:$P$1000=Costs!$A676)*('Fixed assets'!$U$2:$U$1000=Costs!$A676)*('Fixed assets'!$R$2:$R$1000))","v":0},{"$f":"SUMPRODUCT(('Fixed assets'!$R$2:$R$1000)*('Fixed assets'!$P$2:$P$1000<$A676)*('Fixed assets'!$Q$2:$Q$1000=Costs!AM$617))-SUMPRODUCT(('Fixed assets'!$S$2:$S$1000)*('Fixed assets'!$P$2:$P$1000<Costs!$A676)*('Fixed assets'!$Q$2:$Q$1000=Costs!AM$617))-SUMPRODUCT(('Fixed assets'!$Q$2:$Q$1000=Costs!AM$617)*('Fixed assets'!$U$2:$U$1000=Costs!$A676)*('Fixed assets'!$S$2:$S$1000))+SUMPRODUCT(('Fixed assets'!$Q$2:$Q$1000=Costs!AM$617)*('Fixed assets'!$P$2:$P$1000=Costs!$A676)*('Fixed assets'!$U$2:$U$1000=Costs!$A676)*('Fixed assets'!$R$2:$R$1000))","v":0},{"$f":"SUMPRODUCT(('Fixed assets'!$R$2:$R$1000)*('Fixed assets'!$P$2:$P$1000<$A676)*('Fixed assets'!$Q$2:$Q$1000=Costs!AN$617))-SUMPRODUCT(('Fixed assets'!$S$2:$S$1000)*('Fixed assets'!$P$2:$P$1000<Costs!$A676)*('Fixed assets'!$Q$2:$Q$1000=Costs!AN$617))-SUMPRODUCT(('Fixed assets'!$Q$2:$Q$1000=Costs!AN$617)*('Fixed assets'!$U$2:$U$1000=Costs!$A676)*('Fixed assets'!$S$2:$S$1000))+SUMPRODUCT(('Fixed assets'!$Q$2:$Q$1000=Costs!AN$617)*('Fixed assets'!$P$2:$P$1000=Costs!$A676)*('Fixed assets'!$U$2:$U$1000=Costs!$A676)*('Fixed assets'!$R$2:$R$1000))","v":0},{"$f":"SUMPRODUCT(('Fixed assets'!$R$2:$R$1000)*('Fixed assets'!$P$2:$P$1000<$A676)*('Fixed assets'!$Q$2:$Q$1000=Costs!AO$617))-SUMPRODUCT(('Fixed assets'!$S$2:$S$1000)*('Fixed assets'!$P$2:$P$1000<Costs!$A676)*('Fixed assets'!$Q$2:$Q$1000=Costs!AO$617))-SUMPRODUCT(('Fixed assets'!$Q$2:$Q$1000=Costs!AO$617)*('Fixed assets'!$U$2:$U$1000=Costs!$A676)*('Fixed assets'!$S$2:$S$1000))+SUMPRODUCT(('Fixed assets'!$Q$2:$Q$1000=Costs!AO$617)*('Fixed assets'!$P$2:$P$1000=Costs!$A676)*('Fixed assets'!$U$2:$U$1000=Costs!$A676)*('Fixed assets'!$R$2:$R$1000))","v":0},{"$f":"SUMPRODUCT(('Fixed assets'!$R$2:$R$1000)*('Fixed assets'!$P$2:$P$1000<$A676)*('Fixed assets'!$Q$2:$Q$1000=Costs!AP$617))-SUMPRODUCT(('Fixed assets'!$S$2:$S$1000)*('Fixed assets'!$P$2:$P$1000<Costs!$A676)*('Fixed assets'!$Q$2:$Q$1000=Costs!AP$617))-SUMPRODUCT(('Fixed assets'!$Q$2:$Q$1000=Costs!AP$617)*('Fixed assets'!$U$2:$U$1000=Costs!$A676)*('Fixed assets'!$S$2:$S$1000))+SUMPRODUCT(('Fixed assets'!$Q$2:$Q$1000=Costs!AP$617)*('Fixed assets'!$P$2:$P$1000=Costs!$A676)*('Fixed assets'!$U$2:$U$1000=Costs!$A676)*('Fixed assets'!$R$2:$R$1000))","v":0},{"$f":"SUMPRODUCT(('Fixed assets'!$R$2:$R$1000)*('Fixed assets'!$P$2:$P$1000<$A676)*('Fixed assets'!$Q$2:$Q$1000=Costs!AQ$617))-SUMPRODUCT(('Fixed assets'!$S$2:$S$1000)*('Fixed assets'!$P$2:$P$1000<Costs!$A676)*('Fixed assets'!$Q$2:$Q$1000=Costs!AQ$617))-SUMPRODUCT(('Fixed assets'!$Q$2:$Q$1000=Costs!AQ$617)*('Fixed assets'!$U$2:$U$1000=Costs!$A676)*('Fixed assets'!$S$2:$S$1000))+SUMPRODUCT(('Fixed assets'!$Q$2:$Q$1000=Costs!AQ$617)*('Fixed assets'!$P$2:$P$1000=Costs!$A676)*('Fixed assets'!$U$2:$U$1000=Costs!$A676)*('Fixed assets'!$R$2:$R$1000))","v":0}]
[2074,0,{"$f":"SUMPRODUCT(('Fixed assets'!$R$2:$R$1000)*('Fixed assets'!$P$2:$P$1000<$A677)*('Fixed assets'!$Q$2:$Q$1000=Costs!C$617))-SUMPRODUCT(('Fixed assets'!$S$2:$S$1000)*('Fixed assets'!$P$2:$P$1000<Costs!$A677)*('Fixed assets'!$Q$2:$Q$1000=Costs!C$617))-SUMPRODUCT(('Fixed assets'!$Q$2:$Q$1000=Costs!C$617)*('Fixed assets'!$U$2:$U$1000=Costs!$A677)*('Fixed assets'!$S$2:$S$1000))+SUMPRODUCT(('Fixed assets'!$Q$2:$Q$1000=Costs!C$617)*('Fixed assets'!$P$2:$P$1000=Costs!$A677)*('Fixed assets'!$U$2:$U$1000=Costs!$A677)*('Fixed assets'!$R$2:$R$1000))","v":0},{"$f":"SUMPRODUCT(('Fixed assets'!$R$2:$R$1000)*('Fixed assets'!$P$2:$P$1000<$A677)*('Fixed assets'!$Q$2:$Q$1000=Costs!D$617))-SUMPRODUCT(('Fixed assets'!$S$2:$S$1000)*('Fixed assets'!$P$2:$P$1000<Costs!$A677)*('Fixed assets'!$Q$2:$Q$1000=Costs!D$617))-SUMPRODUCT(('Fixed assets'!$Q$2:$Q$1000=Costs!D$617)*('Fixed assets'!$U$2:$U$1000=Costs!$A677)*('Fixed assets'!$S$2:$S$1000))+SUMPRODUCT(('Fixed assets'!$Q$2:$Q$1000=Costs!D$617)*('Fixed assets'!$P$2:$P$1000=Costs!$A677)*('Fixed assets'!$U$2:$U$1000=Costs!$A677)*('Fixed assets'!$R$2:$R$1000))","v":0},{"$f":"SUMPRODUCT(('Fixed assets'!$R$2:$R$1000)*('Fixed assets'!$P$2:$P$1000<$A677)*('Fixed assets'!$Q$2:$Q$1000=Costs!E$617))-SUMPRODUCT(('Fixed assets'!$S$2:$S$1000)*('Fixed assets'!$P$2:$P$1000<Costs!$A677)*('Fixed assets'!$Q$2:$Q$1000=Costs!E$617))-SUMPRODUCT(('Fixed assets'!$Q$2:$Q$1000=Costs!E$617)*('Fixed assets'!$U$2:$U$1000=Costs!$A677)*('Fixed assets'!$S$2:$S$1000))+SUMPRODUCT(('Fixed assets'!$Q$2:$Q$1000=Costs!E$617)*('Fixed assets'!$P$2:$P$1000=Costs!$A677)*('Fixed assets'!$U$2:$U$1000=Costs!$A677)*('Fixed assets'!$R$2:$R$1000))","v":0},{"$f":"SUMPRODUCT(('Fixed assets'!$R$2:$R$1000)*('Fixed assets'!$P$2:$P$1000<$A677)*('Fixed assets'!$Q$2:$Q$1000=Costs!F$617))-SUMPRODUCT(('Fixed assets'!$S$2:$S$1000)*('Fixed assets'!$P$2:$P$1000<Costs!$A677)*('Fixed assets'!$Q$2:$Q$1000=Costs!F$617))-SUMPRODUCT(('Fixed assets'!$Q$2:$Q$1000=Costs!F$617)*('Fixed assets'!$U$2:$U$1000=Costs!$A677)*('Fixed assets'!$S$2:$S$1000))+SUMPRODUCT(('Fixed assets'!$Q$2:$Q$1000=Costs!F$617)*('Fixed assets'!$P$2:$P$1000=Costs!$A677)*('Fixed assets'!$U$2:$U$1000=Costs!$A677)*('Fixed assets'!$R$2:$R$1000))","v":0},{"$f":"SUMPRODUCT(('Fixed assets'!$R$2:$R$1000)*('Fixed assets'!$P$2:$P$1000<$A677)*('Fixed assets'!$Q$2:$Q$1000=Costs!G$617))-SUMPRODUCT(('Fixed assets'!$S$2:$S$1000)*('Fixed assets'!$P$2:$P$1000<Costs!$A677)*('Fixed assets'!$Q$2:$Q$1000=Costs!G$617))-SUMPRODUCT(('Fixed assets'!$Q$2:$Q$1000=Costs!G$617)*('Fixed assets'!$U$2:$U$1000=Costs!$A677)*('Fixed assets'!$S$2:$S$1000))+SUMPRODUCT(('Fixed assets'!$Q$2:$Q$1000=Costs!G$617)*('Fixed assets'!$P$2:$P$1000=Costs!$A677)*('Fixed assets'!$U$2:$U$1000=Costs!$A677)*('Fixed assets'!$R$2:$R$1000))","v":0},{"$f":"SUMPRODUCT(('Fixed assets'!$R$2:$R$1000)*('Fixed assets'!$P$2:$P$1000<$A677)*('Fixed assets'!$Q$2:$Q$1000=Costs!H$617))-SUMPRODUCT(('Fixed assets'!$S$2:$S$1000)*('Fixed assets'!$P$2:$P$1000<Costs!$A677)*('Fixed assets'!$Q$2:$Q$1000=Costs!H$617))-SUMPRODUCT(('Fixed assets'!$Q$2:$Q$1000=Costs!H$617)*('Fixed assets'!$U$2:$U$1000=Costs!$A677)*('Fixed assets'!$S$2:$S$1000))+SUMPRODUCT(('Fixed assets'!$Q$2:$Q$1000=Costs!H$617)*('Fixed assets'!$P$2:$P$1000=Costs!$A677)*('Fixed assets'!$U$2:$U$1000=Costs!$A677)*('Fixed assets'!$R$2:$R$1000))","v":0},{"$f":"SUMPRODUCT(('Fixed assets'!$R$2:$R$1000)*('Fixed assets'!$P$2:$P$1000<$A677)*('Fixed assets'!$Q$2:$Q$1000=Costs!I$617))-SUMPRODUCT(('Fixed assets'!$S$2:$S$1000)*('Fixed assets'!$P$2:$P$1000<Costs!$A677)*('Fixed assets'!$Q$2:$Q$1000=Costs!I$617))-SUMPRODUCT(('Fixed assets'!$Q$2:$Q$1000=Costs!I$617)*('Fixed assets'!$U$2:$U$1000=Costs!$A677)*('Fixed assets'!$S$2:$S$1000))+SUMPRODUCT(('Fixed assets'!$Q$2:$Q$1000=Costs!I$617)*('Fixed assets'!$P$2:$P$1000=Costs!$A677)*('Fixed assets'!$U$2:$U$1000=Costs!$A677)*('Fixed assets'!$R$2:$R$1000))","v":0},{"$f":"SUMPRODUCT(('Fixed assets'!$R$2:$R$1000)*('Fixed assets'!$P$2:$P$1000<$A677)*('Fixed assets'!$Q$2:$Q$1000=Costs!J$617))-SUMPRODUCT(('Fixed assets'!$S$2:$S$1000)*('Fixed assets'!$P$2:$P$1000<Costs!$A677)*('Fixed assets'!$Q$2:$Q$1000=Costs!J$617))-SUMPRODUCT(('Fixed assets'!$Q$2:$Q$1000=Costs!J$617)*('Fixed assets'!$U$2:$U$1000=Costs!$A677)*('Fixed assets'!$S$2:$S$1000))+SUMPRODUCT(('Fixed assets'!$Q$2:$Q$1000=Costs!J$617)*('Fixed assets'!$P$2:$P$1000=Costs!$A677)*('Fixed assets'!$U$2:$U$1000=Costs!$A677)*('Fixed assets'!$R$2:$R$1000))","v":0},{"$f":"SUMPRODUCT(('Fixed assets'!$R$2:$R$1000)*('Fixed assets'!$P$2:$P$1000<$A677)*('Fixed assets'!$Q$2:$Q$1000=Costs!K$617))-SUMPRODUCT(('Fixed assets'!$S$2:$S$1000)*('Fixed assets'!$P$2:$P$1000<Costs!$A677)*('Fixed assets'!$Q$2:$Q$1000=Costs!K$617))-SUMPRODUCT(('Fixed assets'!$Q$2:$Q$1000=Costs!K$617)*('Fixed assets'!$U$2:$U$1000=Costs!$A677)*('Fixed assets'!$S$2:$S$1000))+SUMPRODUCT(('Fixed assets'!$Q$2:$Q$1000=Costs!K$617)*('Fixed assets'!$P$2:$P$1000=Costs!$A677)*('Fixed assets'!$U$2:$U$1000=Costs!$A677)*('Fixed assets'!$R$2:$R$1000))","v":0},{"$f":"SUMPRODUCT(('Fixed assets'!$R$2:$R$1000)*('Fixed assets'!$P$2:$P$1000<$A677)*('Fixed assets'!$Q$2:$Q$1000=Costs!L$617))-SUMPRODUCT(('Fixed assets'!$S$2:$S$1000)*('Fixed assets'!$P$2:$P$1000<Costs!$A677)*('Fixed assets'!$Q$2:$Q$1000=Costs!L$617))-SUMPRODUCT(('Fixed assets'!$Q$2:$Q$1000=Costs!L$617)*('Fixed assets'!$U$2:$U$1000=Costs!$A677)*('Fixed assets'!$S$2:$S$1000))+SUMPRODUCT(('Fixed assets'!$Q$2:$Q$1000=Costs!L$617)*('Fixed assets'!$P$2:$P$1000=Costs!$A677)*('Fixed assets'!$U$2:$U$1000=Costs!$A677)*('Fixed assets'!$R$2:$R$1000))","v":0},{"$f":"SUMPRODUCT(('Fixed assets'!$R$2:$R$1000)*('Fixed assets'!$P$2:$P$1000<$A677)*('Fixed assets'!$Q$2:$Q$1000=Costs!M$617))-SUMPRODUCT(('Fixed assets'!$S$2:$S$1000)*('Fixed assets'!$P$2:$P$1000<Costs!$A677)*('Fixed assets'!$Q$2:$Q$1000=Costs!M$617))-SUMPRODUCT(('Fixed assets'!$Q$2:$Q$1000=Costs!M$617)*('Fixed assets'!$U$2:$U$1000=Costs!$A677)*('Fixed assets'!$S$2:$S$1000))+SUMPRODUCT(('Fixed assets'!$Q$2:$Q$1000=Costs!M$617)*('Fixed assets'!$P$2:$P$1000=Costs!$A677)*('Fixed assets'!$U$2:$U$1000=Costs!$A677)*('Fixed assets'!$R$2:$R$1000))","v":0},{"$f":"SUMPRODUCT(('Fixed assets'!$R$2:$R$1000)*('Fixed assets'!$P$2:$P$1000<$A677)*('Fixed assets'!$Q$2:$Q$1000=Costs!N$617))-SUMPRODUCT(('Fixed assets'!$S$2:$S$1000)*('Fixed assets'!$P$2:$P$1000<Costs!$A677)*('Fixed assets'!$Q$2:$Q$1000=Costs!N$617))-SUMPRODUCT(('Fixed assets'!$Q$2:$Q$1000=Costs!N$617)*('Fixed assets'!$U$2:$U$1000=Costs!$A677)*('Fixed assets'!$S$2:$S$1000))+SUMPRODUCT(('Fixed assets'!$Q$2:$Q$1000=Costs!N$617)*('Fixed assets'!$P$2:$P$1000=Costs!$A677)*('Fixed assets'!$U$2:$U$1000=Costs!$A677)*('Fixed assets'!$R$2:$R$1000))","v":0},{"$f":"SUMPRODUCT(('Fixed assets'!$R$2:$R$1000)*('Fixed assets'!$P$2:$P$1000<$A677)*('Fixed assets'!$Q$2:$Q$1000=Costs!O$617))-SUMPRODUCT(('Fixed assets'!$S$2:$S$1000)*('Fixed assets'!$P$2:$P$1000<Costs!$A677)*('Fixed assets'!$Q$2:$Q$1000=Costs!O$617))-SUMPRODUCT(('Fixed assets'!$Q$2:$Q$1000=Costs!O$617)*('Fixed assets'!$U$2:$U$1000=Costs!$A677)*('Fixed assets'!$S$2:$S$1000))+SUMPRODUCT(('Fixed assets'!$Q$2:$Q$1000=Costs!O$617)*('Fixed assets'!$P$2:$P$1000=Costs!$A677)*('Fixed assets'!$U$2:$U$1000=Costs!$A677)*('Fixed assets'!$R$2:$R$1000))","v":0},{"$f":"SUMPRODUCT(('Fixed assets'!$R$2:$R$1000)*('Fixed assets'!$P$2:$P$1000<$A677)*('Fixed assets'!$Q$2:$Q$1000=Costs!P$617))-SUMPRODUCT(('Fixed assets'!$S$2:$S$1000)*('Fixed assets'!$P$2:$P$1000<Costs!$A677)*('Fixed assets'!$Q$2:$Q$1000=Costs!P$617))-SUMPRODUCT(('Fixed assets'!$Q$2:$Q$1000=Costs!P$617)*('Fixed assets'!$U$2:$U$1000=Costs!$A677)*('Fixed assets'!$S$2:$S$1000))+SUMPRODUCT(('Fixed assets'!$Q$2:$Q$1000=Costs!P$617)*('Fixed assets'!$P$2:$P$1000=Costs!$A677)*('Fixed assets'!$U$2:$U$1000=Costs!$A677)*('Fixed assets'!$R$2:$R$1000))","v":0},{"$f":"SUMPRODUCT(('Fixed assets'!$R$2:$R$1000)*('Fixed assets'!$P$2:$P$1000<$A677)*('Fixed assets'!$Q$2:$Q$1000=Costs!Q$617))-SUMPRODUCT(('Fixed assets'!$S$2:$S$1000)*('Fixed assets'!$P$2:$P$1000<Costs!$A677)*('Fixed assets'!$Q$2:$Q$1000=Costs!Q$617))-SUMPRODUCT(('Fixed assets'!$Q$2:$Q$1000=Costs!Q$617)*('Fixed assets'!$U$2:$U$1000=Costs!$A677)*('Fixed assets'!$S$2:$S$1000))+SUMPRODUCT(('Fixed assets'!$Q$2:$Q$1000=Costs!Q$617)*('Fixed assets'!$P$2:$P$1000=Costs!$A677)*('Fixed assets'!$U$2:$U$1000=Costs!$A677)*('Fixed assets'!$R$2:$R$1000))","v":0},{"$f":"SUMPRODUCT(('Fixed assets'!$R$2:$R$1000)*('Fixed assets'!$P$2:$P$1000<$A677)*('Fixed assets'!$Q$2:$Q$1000=Costs!R$617))-SUMPRODUCT(('Fixed assets'!$S$2:$S$1000)*('Fixed assets'!$P$2:$P$1000<Costs!$A677)*('Fixed assets'!$Q$2:$Q$1000=Costs!R$617))-SUMPRODUCT(('Fixed assets'!$Q$2:$Q$1000=Costs!R$617)*('Fixed assets'!$U$2:$U$1000=Costs!$A677)*('Fixed assets'!$S$2:$S$1000))+SUMPRODUCT(('Fixed assets'!$Q$2:$Q$1000=Costs!R$617)*('Fixed assets'!$P$2:$P$1000=Costs!$A677)*('Fixed assets'!$U$2:$U$1000=Costs!$A677)*('Fixed assets'!$R$2:$R$1000))","v":0},{"$f":"SUMPRODUCT(('Fixed assets'!$R$2:$R$1000)*('Fixed assets'!$P$2:$P$1000<$A677)*('Fixed assets'!$Q$2:$Q$1000=Costs!S$617))-SUMPRODUCT(('Fixed assets'!$S$2:$S$1000)*('Fixed assets'!$P$2:$P$1000<Costs!$A677)*('Fixed assets'!$Q$2:$Q$1000=Costs!S$617))-SUMPRODUCT(('Fixed assets'!$Q$2:$Q$1000=Costs!S$617)*('Fixed assets'!$U$2:$U$1000=Costs!$A677)*('Fixed assets'!$S$2:$S$1000))+SUMPRODUCT(('Fixed assets'!$Q$2:$Q$1000=Costs!S$617)*('Fixed assets'!$P$2:$P$1000=Costs!$A677)*('Fixed assets'!$U$2:$U$1000=Costs!$A677)*('Fixed assets'!$R$2:$R$1000))","v":0},{"$f":"SUMPRODUCT(('Fixed assets'!$R$2:$R$1000)*('Fixed assets'!$P$2:$P$1000<$A677)*('Fixed assets'!$Q$2:$Q$1000=Costs!T$617))-SUMPRODUCT(('Fixed assets'!$S$2:$S$1000)*('Fixed assets'!$P$2:$P$1000<Costs!$A677)*('Fixed assets'!$Q$2:$Q$1000=Costs!T$617))-SUMPRODUCT(('Fixed assets'!$Q$2:$Q$1000=Costs!T$617)*('Fixed assets'!$U$2:$U$1000=Costs!$A677)*('Fixed assets'!$S$2:$S$1000))+SUMPRODUCT(('Fixed assets'!$Q$2:$Q$1000=Costs!T$617)*('Fixed assets'!$P$2:$P$1000=Costs!$A677)*('Fixed assets'!$U$2:$U$1000=Costs!$A677)*('Fixed assets'!$R$2:$R$1000))","v":0},{"$f":"SUMPRODUCT(('Fixed assets'!$R$2:$R$1000)*('Fixed assets'!$P$2:$P$1000<$A677)*('Fixed assets'!$Q$2:$Q$1000=Costs!U$617))-SUMPRODUCT(('Fixed assets'!$S$2:$S$1000)*('Fixed assets'!$P$2:$P$1000<Costs!$A677)*('Fixed assets'!$Q$2:$Q$1000=Costs!U$617))-SUMPRODUCT(('Fixed assets'!$Q$2:$Q$1000=Costs!U$617)*('Fixed assets'!$U$2:$U$1000=Costs!$A677)*('Fixed assets'!$S$2:$S$1000))+SUMPRODUCT(('Fixed assets'!$Q$2:$Q$1000=Costs!U$617)*('Fixed assets'!$P$2:$P$1000=Costs!$A677)*('Fixed assets'!$U$2:$U$1000=Costs!$A677)*('Fixed assets'!$R$2:$R$1000))","v":0},{"$f":"SUMPRODUCT(('Fixed assets'!$R$2:$R$1000)*('Fixed assets'!$P$2:$P$1000<$A677)*('Fixed assets'!$Q$2:$Q$1000=Costs!V$617))-SUMPRODUCT(('Fixed assets'!$S$2:$S$1000)*('Fixed assets'!$P$2:$P$1000<Costs!$A677)*('Fixed assets'!$Q$2:$Q$1000=Costs!V$617))-SUMPRODUCT(('Fixed assets'!$Q$2:$Q$1000=Costs!V$617)*('Fixed assets'!$U$2:$U$1000=Costs!$A677)*('Fixed assets'!$S$2:$S$1000))+SUMPRODUCT(('Fixed assets'!$Q$2:$Q$1000=Costs!V$617)*('Fixed assets'!$P$2:$P$1000=Costs!$A677)*('Fixed assets'!$U$2:$U$1000=Costs!$A677)*('Fixed assets'!$R$2:$R$1000))","v":0},{"$f":"SUMPRODUCT(('Fixed assets'!$R$2:$R$1000)*('Fixed assets'!$P$2:$P$1000<$A677)*('Fixed assets'!$Q$2:$Q$1000=Costs!W$617))-SUMPRODUCT(('Fixed assets'!$S$2:$S$1000)*('Fixed assets'!$P$2:$P$1000<Costs!$A677)*('Fixed assets'!$Q$2:$Q$1000=Costs!W$617))-SUMPRODUCT(('Fixed assets'!$Q$2:$Q$1000=Costs!W$617)*('Fixed assets'!$U$2:$U$1000=Costs!$A677)*('Fixed assets'!$S$2:$S$1000))+SUMPRODUCT(('Fixed assets'!$Q$2:$Q$1000=Costs!W$617)*('Fixed assets'!$P$2:$P$1000=Costs!$A677)*('Fixed assets'!$U$2:$U$1000=Costs!$A677)*('Fixed assets'!$R$2:$R$1000))","v":0},{"$f":"SUMPRODUCT(('Fixed assets'!$R$2:$R$1000)*('Fixed assets'!$P$2:$P$1000<$A677)*('Fixed assets'!$Q$2:$Q$1000=Costs!X$617))-SUMPRODUCT(('Fixed assets'!$S$2:$S$1000)*('Fixed assets'!$P$2:$P$1000<Costs!$A677)*('Fixed assets'!$Q$2:$Q$1000=Costs!X$617))-SUMPRODUCT(('Fixed assets'!$Q$2:$Q$1000=Costs!X$617)*('Fixed assets'!$U$2:$U$1000=Costs!$A677)*('Fixed assets'!$S$2:$S$1000))+SUMPRODUCT(('Fixed assets'!$Q$2:$Q$1000=Costs!X$617)*('Fixed assets'!$P$2:$P$1000=Costs!$A677)*('Fixed assets'!$U$2:$U$1000=Costs!$A677)*('Fixed assets'!$R$2:$R$1000))","v":0},{"$f":"SUMPRODUCT(('Fixed assets'!$R$2:$R$1000)*('Fixed assets'!$P$2:$P$1000<$A677)*('Fixed assets'!$Q$2:$Q$1000=Costs!Y$617))-SUMPRODUCT(('Fixed assets'!$S$2:$S$1000)*('Fixed assets'!$P$2:$P$1000<Costs!$A677)*('Fixed assets'!$Q$2:$Q$1000=Costs!Y$617))-SUMPRODUCT(('Fixed assets'!$Q$2:$Q$1000=Costs!Y$617)*('Fixed assets'!$U$2:$U$1000=Costs!$A677)*('Fixed assets'!$S$2:$S$1000))+SUMPRODUCT(('Fixed assets'!$Q$2:$Q$1000=Costs!Y$617)*('Fixed assets'!$P$2:$P$1000=Costs!$A677)*('Fixed assets'!$U$2:$U$1000=Costs!$A677)*('Fixed assets'!$R$2:$R$1000))","v":0},{"$f":"SUMPRODUCT(('Fixed assets'!$R$2:$R$1000)*('Fixed assets'!$P$2:$P$1000<$A677)*('Fixed assets'!$Q$2:$Q$1000=Costs!Z$617))-SUMPRODUCT(('Fixed assets'!$S$2:$S$1000)*('Fixed assets'!$P$2:$P$1000<Costs!$A677)*('Fixed assets'!$Q$2:$Q$1000=Costs!Z$617))-SUMPRODUCT(('Fixed assets'!$Q$2:$Q$1000=Costs!Z$617)*('Fixed assets'!$U$2:$U$1000=Costs!$A677)*('Fixed assets'!$S$2:$S$1000))+SUMPRODUCT(('Fixed assets'!$Q$2:$Q$1000=Costs!Z$617)*('Fixed assets'!$P$2:$P$1000=Costs!$A677)*('Fixed assets'!$U$2:$U$1000=Costs!$A677)*('Fixed assets'!$R$2:$R$1000))","v":0},{"$f":"SUMPRODUCT(('Fixed assets'!$R$2:$R$1000)*('Fixed assets'!$P$2:$P$1000<$A677)*('Fixed assets'!$Q$2:$Q$1000=Costs!AA$617))-SUMPRODUCT(('Fixed assets'!$S$2:$S$1000)*('Fixed assets'!$P$2:$P$1000<Costs!$A677)*('Fixed assets'!$Q$2:$Q$1000=Costs!AA$617))-SUMPRODUCT(('Fixed assets'!$Q$2:$Q$1000=Costs!AA$617)*('Fixed assets'!$U$2:$U$1000=Costs!$A677)*('Fixed assets'!$S$2:$S$1000))+SUMPRODUCT(('Fixed assets'!$Q$2:$Q$1000=Costs!AA$617)*('Fixed assets'!$P$2:$P$1000=Costs!$A677)*('Fixed assets'!$U$2:$U$1000=Costs!$A677)*('Fixed assets'!$R$2:$R$1000))","v":0},{"$f":"SUMPRODUCT(('Fixed assets'!$R$2:$R$1000)*('Fixed assets'!$P$2:$P$1000<$A677)*('Fixed assets'!$Q$2:$Q$1000=Costs!AB$617))-SUMPRODUCT(('Fixed assets'!$S$2:$S$1000)*('Fixed assets'!$P$2:$P$1000<Costs!$A677)*('Fixed assets'!$Q$2:$Q$1000=Costs!AB$617))-SUMPRODUCT(('Fixed assets'!$Q$2:$Q$1000=Costs!AB$617)*('Fixed assets'!$U$2:$U$1000=Costs!$A677)*('Fixed assets'!$S$2:$S$1000))+SUMPRODUCT(('Fixed assets'!$Q$2:$Q$1000=Costs!AB$617)*('Fixed assets'!$P$2:$P$1000=Costs!$A677)*('Fixed assets'!$U$2:$U$1000=Costs!$A677)*('Fixed assets'!$R$2:$R$1000))","v":0},{"$f":"SUMPRODUCT(('Fixed assets'!$R$2:$R$1000)*('Fixed assets'!$P$2:$P$1000<$A677)*('Fixed assets'!$Q$2:$Q$1000=Costs!AC$617))-SUMPRODUCT(('Fixed assets'!$S$2:$S$1000)*('Fixed assets'!$P$2:$P$1000<Costs!$A677)*('Fixed assets'!$Q$2:$Q$1000=Costs!AC$617))-SUMPRODUCT(('Fixed assets'!$Q$2:$Q$1000=Costs!AC$617)*('Fixed assets'!$U$2:$U$1000=Costs!$A677)*('Fixed assets'!$S$2:$S$1000))+SUMPRODUCT(('Fixed assets'!$Q$2:$Q$1000=Costs!AC$617)*('Fixed assets'!$P$2:$P$1000=Costs!$A677)*('Fixed assets'!$U$2:$U$1000=Costs!$A677)*('Fixed assets'!$R$2:$R$1000))","v":0},{"$f":"SUMPRODUCT(('Fixed assets'!$R$2:$R$1000)*('Fixed assets'!$P$2:$P$1000<$A677)*('Fixed assets'!$Q$2:$Q$1000=Costs!AD$617))-SUMPRODUCT(('Fixed assets'!$S$2:$S$1000)*('Fixed assets'!$P$2:$P$1000<Costs!$A677)*('Fixed assets'!$Q$2:$Q$1000=Costs!AD$617))-SUMPRODUCT(('Fixed assets'!$Q$2:$Q$1000=Costs!AD$617)*('Fixed assets'!$U$2:$U$1000=Costs!$A677)*('Fixed assets'!$S$2:$S$1000))+SUMPRODUCT(('Fixed assets'!$Q$2:$Q$1000=Costs!AD$617)*('Fixed assets'!$P$2:$P$1000=Costs!$A677)*('Fixed assets'!$U$2:$U$1000=Costs!$A677)*('Fixed assets'!$R$2:$R$1000))","v":0},{"$f":"SUMPRODUCT(('Fixed assets'!$R$2:$R$1000)*('Fixed assets'!$P$2:$P$1000<$A677)*('Fixed assets'!$Q$2:$Q$1000=Costs!AE$617))-SUMPRODUCT(('Fixed assets'!$S$2:$S$1000)*('Fixed assets'!$P$2:$P$1000<Costs!$A677)*('Fixed assets'!$Q$2:$Q$1000=Costs!AE$617))-SUMPRODUCT(('Fixed assets'!$Q$2:$Q$1000=Costs!AE$617)*('Fixed assets'!$U$2:$U$1000=Costs!$A677)*('Fixed assets'!$S$2:$S$1000))+SUMPRODUCT(('Fixed assets'!$Q$2:$Q$1000=Costs!AE$617)*('Fixed assets'!$P$2:$P$1000=Costs!$A677)*('Fixed assets'!$U$2:$U$1000=Costs!$A677)*('Fixed assets'!$R$2:$R$1000))","v":0},{"$f":"SUMPRODUCT(('Fixed assets'!$R$2:$R$1000)*('Fixed assets'!$P$2:$P$1000<$A677)*('Fixed assets'!$Q$2:$Q$1000=Costs!AF$617))-SUMPRODUCT(('Fixed assets'!$S$2:$S$1000)*('Fixed assets'!$P$2:$P$1000<Costs!$A677)*('Fixed assets'!$Q$2:$Q$1000=Costs!AF$617))-SUMPRODUCT(('Fixed assets'!$Q$2:$Q$1000=Costs!AF$617)*('Fixed assets'!$U$2:$U$1000=Costs!$A677)*('Fixed assets'!$S$2:$S$1000))+SUMPRODUCT(('Fixed assets'!$Q$2:$Q$1000=Costs!AF$617)*('Fixed assets'!$P$2:$P$1000=Costs!$A677)*('Fixed assets'!$U$2:$U$1000=Costs!$A677)*('Fixed assets'!$R$2:$R$1000))","v":0},{"$f":"SUMPRODUCT(('Fixed assets'!$R$2:$R$1000)*('Fixed assets'!$P$2:$P$1000<$A677)*('Fixed assets'!$Q$2:$Q$1000=Costs!AG$617))-SUMPRODUCT(('Fixed assets'!$S$2:$S$1000)*('Fixed assets'!$P$2:$P$1000<Costs!$A677)*('Fixed assets'!$Q$2:$Q$1000=Costs!AG$617))-SUMPRODUCT(('Fixed assets'!$Q$2:$Q$1000=Costs!AG$617)*('Fixed assets'!$U$2:$U$1000=Costs!$A677)*('Fixed assets'!$S$2:$S$1000))+SUMPRODUCT(('Fixed assets'!$Q$2:$Q$1000=Costs!AG$617)*('Fixed assets'!$P$2:$P$1000=Costs!$A677)*('Fixed assets'!$U$2:$U$1000=Costs!$A677)*('Fixed assets'!$R$2:$R$1000))","v":0},{"$f":"SUMPRODUCT(('Fixed assets'!$R$2:$R$1000)*('Fixed assets'!$P$2:$P$1000<$A677)*('Fixed assets'!$Q$2:$Q$1000=Costs!AH$617))-SUMPRODUCT(('Fixed assets'!$S$2:$S$1000)*('Fixed assets'!$P$2:$P$1000<Costs!$A677)*('Fixed assets'!$Q$2:$Q$1000=Costs!AH$617))-SUMPRODUCT(('Fixed assets'!$Q$2:$Q$1000=Costs!AH$617)*('Fixed assets'!$U$2:$U$1000=Costs!$A677)*('Fixed assets'!$S$2:$S$1000))+SUMPRODUCT(('Fixed assets'!$Q$2:$Q$1000=Costs!AH$617)*('Fixed assets'!$P$2:$P$1000=Costs!$A677)*('Fixed assets'!$U$2:$U$1000=Costs!$A677)*('Fixed assets'!$R$2:$R$1000))","v":0},{"$f":"SUMPRODUCT(('Fixed assets'!$R$2:$R$1000)*('Fixed assets'!$P$2:$P$1000<$A677)*('Fixed assets'!$Q$2:$Q$1000=Costs!AI$617))-SUMPRODUCT(('Fixed assets'!$S$2:$S$1000)*('Fixed assets'!$P$2:$P$1000<Costs!$A677)*('Fixed assets'!$Q$2:$Q$1000=Costs!AI$617))-SUMPRODUCT(('Fixed assets'!$Q$2:$Q$1000=Costs!AI$617)*('Fixed assets'!$U$2:$U$1000=Costs!$A677)*('Fixed assets'!$S$2:$S$1000))+SUMPRODUCT(('Fixed assets'!$Q$2:$Q$1000=Costs!AI$617)*('Fixed assets'!$P$2:$P$1000=Costs!$A677)*('Fixed assets'!$U$2:$U$1000=Costs!$A677)*('Fixed assets'!$R$2:$R$1000))","v":0},{"$f":"SUMPRODUCT(('Fixed assets'!$R$2:$R$1000)*('Fixed assets'!$P$2:$P$1000<$A677)*('Fixed assets'!$Q$2:$Q$1000=Costs!AJ$617))-SUMPRODUCT(('Fixed assets'!$S$2:$S$1000)*('Fixed assets'!$P$2:$P$1000<Costs!$A677)*('Fixed assets'!$Q$2:$Q$1000=Costs!AJ$617))-SUMPRODUCT(('Fixed assets'!$Q$2:$Q$1000=Costs!AJ$617)*('Fixed assets'!$U$2:$U$1000=Costs!$A677)*('Fixed assets'!$S$2:$S$1000))+SUMPRODUCT(('Fixed assets'!$Q$2:$Q$1000=Costs!AJ$617)*('Fixed assets'!$P$2:$P$1000=Costs!$A677)*('Fixed assets'!$U$2:$U$1000=Costs!$A677)*('Fixed assets'!$R$2:$R$1000))","v":0},{"$f":"SUMPRODUCT(('Fixed assets'!$R$2:$R$1000)*('Fixed assets'!$P$2:$P$1000<$A677)*('Fixed assets'!$Q$2:$Q$1000=Costs!AK$617))-SUMPRODUCT(('Fixed assets'!$S$2:$S$1000)*('Fixed assets'!$P$2:$P$1000<Costs!$A677)*('Fixed assets'!$Q$2:$Q$1000=Costs!AK$617))-SUMPRODUCT(('Fixed assets'!$Q$2:$Q$1000=Costs!AK$617)*('Fixed assets'!$U$2:$U$1000=Costs!$A677)*('Fixed assets'!$S$2:$S$1000))+SUMPRODUCT(('Fixed assets'!$Q$2:$Q$1000=Costs!AK$617)*('Fixed assets'!$P$2:$P$1000=Costs!$A677)*('Fixed assets'!$U$2:$U$1000=Costs!$A677)*('Fixed assets'!$R$2:$R$1000))","v":0},{"$f":"SUMPRODUCT(('Fixed assets'!$R$2:$R$1000)*('Fixed assets'!$P$2:$P$1000<$A677)*('Fixed assets'!$Q$2:$Q$1000=Costs!AL$617))-SUMPRODUCT(('Fixed assets'!$S$2:$S$1000)*('Fixed assets'!$P$2:$P$1000<Costs!$A677)*('Fixed assets'!$Q$2:$Q$1000=Costs!AL$617))-SUMPRODUCT(('Fixed assets'!$Q$2:$Q$1000=Costs!AL$617)*('Fixed assets'!$U$2:$U$1000=Costs!$A677)*('Fixed assets'!$S$2:$S$1000))+SUMPRODUCT(('Fixed assets'!$Q$2:$Q$1000=Costs!AL$617)*('Fixed assets'!$P$2:$P$1000=Costs!$A677)*('Fixed assets'!$U$2:$U$1000=Costs!$A677)*('Fixed assets'!$R$2:$R$1000))","v":0},{"$f":"SUMPRODUCT(('Fixed assets'!$R$2:$R$1000)*('Fixed assets'!$P$2:$P$1000<$A677)*('Fixed assets'!$Q$2:$Q$1000=Costs!AM$617))-SUMPRODUCT(('Fixed assets'!$S$2:$S$1000)*('Fixed assets'!$P$2:$P$1000<Costs!$A677)*('Fixed assets'!$Q$2:$Q$1000=Costs!AM$617))-SUMPRODUCT(('Fixed assets'!$Q$2:$Q$1000=Costs!AM$617)*('Fixed assets'!$U$2:$U$1000=Costs!$A677)*('Fixed assets'!$S$2:$S$1000))+SUMPRODUCT(('Fixed assets'!$Q$2:$Q$1000=Costs!AM$617)*('Fixed assets'!$P$2:$P$1000=Costs!$A677)*('Fixed assets'!$U$2:$U$1000=Costs!$A677)*('Fixed assets'!$R$2:$R$1000))","v":0},{"$f":"SUMPRODUCT(('Fixed assets'!$R$2:$R$1000)*('Fixed assets'!$P$2:$P$1000<$A677)*('Fixed assets'!$Q$2:$Q$1000=Costs!AN$617))-SUMPRODUCT(('Fixed assets'!$S$2:$S$1000)*('Fixed assets'!$P$2:$P$1000<Costs!$A677)*('Fixed assets'!$Q$2:$Q$1000=Costs!AN$617))-SUMPRODUCT(('Fixed assets'!$Q$2:$Q$1000=Costs!AN$617)*('Fixed assets'!$U$2:$U$1000=Costs!$A677)*('Fixed assets'!$S$2:$S$1000))+SUMPRODUCT(('Fixed assets'!$Q$2:$Q$1000=Costs!AN$617)*('Fixed assets'!$P$2:$P$1000=Costs!$A677)*('Fixed assets'!$U$2:$U$1000=Costs!$A677)*('Fixed assets'!$R$2:$R$1000))","v":0},{"$f":"SUMPRODUCT(('Fixed assets'!$R$2:$R$1000)*('Fixed assets'!$P$2:$P$1000<$A677)*('Fixed assets'!$Q$2:$Q$1000=Costs!AO$617))-SUMPRODUCT(('Fixed assets'!$S$2:$S$1000)*('Fixed assets'!$P$2:$P$1000<Costs!$A677)*('Fixed assets'!$Q$2:$Q$1000=Costs!AO$617))-SUMPRODUCT(('Fixed assets'!$Q$2:$Q$1000=Costs!AO$617)*('Fixed assets'!$U$2:$U$1000=Costs!$A677)*('Fixed assets'!$S$2:$S$1000))+SUMPRODUCT(('Fixed assets'!$Q$2:$Q$1000=Costs!AO$617)*('Fixed assets'!$P$2:$P$1000=Costs!$A677)*('Fixed assets'!$U$2:$U$1000=Costs!$A677)*('Fixed assets'!$R$2:$R$1000))","v":0},{"$f":"SUMPRODUCT(('Fixed assets'!$R$2:$R$1000)*('Fixed assets'!$P$2:$P$1000<$A677)*('Fixed assets'!$Q$2:$Q$1000=Costs!AP$617))-SUMPRODUCT(('Fixed assets'!$S$2:$S$1000)*('Fixed assets'!$P$2:$P$1000<Costs!$A677)*('Fixed assets'!$Q$2:$Q$1000=Costs!AP$617))-SUMPRODUCT(('Fixed assets'!$Q$2:$Q$1000=Costs!AP$617)*('Fixed assets'!$U$2:$U$1000=Costs!$A677)*('Fixed assets'!$S$2:$S$1000))+SUMPRODUCT(('Fixed assets'!$Q$2:$Q$1000=Costs!AP$617)*('Fixed assets'!$P$2:$P$1000=Costs!$A677)*('Fixed assets'!$U$2:$U$1000=Costs!$A677)*('Fixed assets'!$R$2:$R$1000))","v":0},{"$f":"SUMPRODUCT(('Fixed assets'!$R$2:$R$1000)*('Fixed assets'!$P$2:$P$1000<$A677)*('Fixed assets'!$Q$2:$Q$1000=Costs!AQ$617))-SUMPRODUCT(('Fixed assets'!$S$2:$S$1000)*('Fixed assets'!$P$2:$P$1000<Costs!$A677)*('Fixed assets'!$Q$2:$Q$1000=Costs!AQ$617))-SUMPRODUCT(('Fixed assets'!$Q$2:$Q$1000=Costs!AQ$617)*('Fixed assets'!$U$2:$U$1000=Costs!$A677)*('Fixed assets'!$S$2:$S$1000))+SUMPRODUCT(('Fixed assets'!$Q$2:$Q$1000=Costs!AQ$617)*('Fixed assets'!$P$2:$P$1000=Costs!$A677)*('Fixed assets'!$U$2:$U$1000=Costs!$A677)*('Fixed assets'!$R$2:$R$1000))","v":0}]
[2075,0,{"$f":"SUMPRODUCT(('Fixed assets'!$R$2:$R$1000)*('Fixed assets'!$P$2:$P$1000<$A678)*('Fixed assets'!$Q$2:$Q$1000=Costs!C$617))-SUMPRODUCT(('Fixed assets'!$S$2:$S$1000)*('Fixed assets'!$P$2:$P$1000<Costs!$A678)*('Fixed assets'!$Q$2:$Q$1000=Costs!C$617))-SUMPRODUCT(('Fixed assets'!$Q$2:$Q$1000=Costs!C$617)*('Fixed assets'!$U$2:$U$1000=Costs!$A678)*('Fixed assets'!$S$2:$S$1000))+SUMPRODUCT(('Fixed assets'!$Q$2:$Q$1000=Costs!C$617)*('Fixed assets'!$P$2:$P$1000=Costs!$A678)*('Fixed assets'!$U$2:$U$1000=Costs!$A678)*('Fixed assets'!$R$2:$R$1000))","v":0},{"$f":"SUMPRODUCT(('Fixed assets'!$R$2:$R$1000)*('Fixed assets'!$P$2:$P$1000<$A678)*('Fixed assets'!$Q$2:$Q$1000=Costs!D$617))-SUMPRODUCT(('Fixed assets'!$S$2:$S$1000)*('Fixed assets'!$P$2:$P$1000<Costs!$A678)*('Fixed assets'!$Q$2:$Q$1000=Costs!D$617))-SUMPRODUCT(('Fixed assets'!$Q$2:$Q$1000=Costs!D$617)*('Fixed assets'!$U$2:$U$1000=Costs!$A678)*('Fixed assets'!$S$2:$S$1000))+SUMPRODUCT(('Fixed assets'!$Q$2:$Q$1000=Costs!D$617)*('Fixed assets'!$P$2:$P$1000=Costs!$A678)*('Fixed assets'!$U$2:$U$1000=Costs!$A678)*('Fixed assets'!$R$2:$R$1000))","v":0},{"$f":"SUMPRODUCT(('Fixed assets'!$R$2:$R$1000)*('Fixed assets'!$P$2:$P$1000<$A678)*('Fixed assets'!$Q$2:$Q$1000=Costs!E$617))-SUMPRODUCT(('Fixed assets'!$S$2:$S$1000)*('Fixed assets'!$P$2:$P$1000<Costs!$A678)*('Fixed assets'!$Q$2:$Q$1000=Costs!E$617))-SUMPRODUCT(('Fixed assets'!$Q$2:$Q$1000=Costs!E$617)*('Fixed assets'!$U$2:$U$1000=Costs!$A678)*('Fixed assets'!$S$2:$S$1000))+SUMPRODUCT(('Fixed assets'!$Q$2:$Q$1000=Costs!E$617)*('Fixed assets'!$P$2:$P$1000=Costs!$A678)*('Fixed assets'!$U$2:$U$1000=Costs!$A678)*('Fixed assets'!$R$2:$R$1000))","v":0},{"$f":"SUMPRODUCT(('Fixed assets'!$R$2:$R$1000)*('Fixed assets'!$P$2:$P$1000<$A678)*('Fixed assets'!$Q$2:$Q$1000=Costs!F$617))-SUMPRODUCT(('Fixed assets'!$S$2:$S$1000)*('Fixed assets'!$P$2:$P$1000<Costs!$A678)*('Fixed assets'!$Q$2:$Q$1000=Costs!F$617))-SUMPRODUCT(('Fixed assets'!$Q$2:$Q$1000=Costs!F$617)*('Fixed assets'!$U$2:$U$1000=Costs!$A678)*('Fixed assets'!$S$2:$S$1000))+SUMPRODUCT(('Fixed assets'!$Q$2:$Q$1000=Costs!F$617)*('Fixed assets'!$P$2:$P$1000=Costs!$A678)*('Fixed assets'!$U$2:$U$1000=Costs!$A678)*('Fixed assets'!$R$2:$R$1000))","v":0},{"$f":"SUMPRODUCT(('Fixed assets'!$R$2:$R$1000)*('Fixed assets'!$P$2:$P$1000<$A678)*('Fixed assets'!$Q$2:$Q$1000=Costs!G$617))-SUMPRODUCT(('Fixed assets'!$S$2:$S$1000)*('Fixed assets'!$P$2:$P$1000<Costs!$A678)*('Fixed assets'!$Q$2:$Q$1000=Costs!G$617))-SUMPRODUCT(('Fixed assets'!$Q$2:$Q$1000=Costs!G$617)*('Fixed assets'!$U$2:$U$1000=Costs!$A678)*('Fixed assets'!$S$2:$S$1000))+SUMPRODUCT(('Fixed assets'!$Q$2:$Q$1000=Costs!G$617)*('Fixed assets'!$P$2:$P$1000=Costs!$A678)*('Fixed assets'!$U$2:$U$1000=Costs!$A678)*('Fixed assets'!$R$2:$R$1000))","v":0},{"$f":"SUMPRODUCT(('Fixed assets'!$R$2:$R$1000)*('Fixed assets'!$P$2:$P$1000<$A678)*('Fixed assets'!$Q$2:$Q$1000=Costs!H$617))-SUMPRODUCT(('Fixed assets'!$S$2:$S$1000)*('Fixed assets'!$P$2:$P$1000<Costs!$A678)*('Fixed assets'!$Q$2:$Q$1000=Costs!H$617))-SUMPRODUCT(('Fixed assets'!$Q$2:$Q$1000=Costs!H$617)*('Fixed assets'!$U$2:$U$1000=Costs!$A678)*('Fixed assets'!$S$2:$S$1000))+SUMPRODUCT(('Fixed assets'!$Q$2:$Q$1000=Costs!H$617)*('Fixed assets'!$P$2:$P$1000=Costs!$A678)*('Fixed assets'!$U$2:$U$1000=Costs!$A678)*('Fixed assets'!$R$2:$R$1000))","v":0},{"$f":"SUMPRODUCT(('Fixed assets'!$R$2:$R$1000)*('Fixed assets'!$P$2:$P$1000<$A678)*('Fixed assets'!$Q$2:$Q$1000=Costs!I$617))-SUMPRODUCT(('Fixed assets'!$S$2:$S$1000)*('Fixed assets'!$P$2:$P$1000<Costs!$A678)*('Fixed assets'!$Q$2:$Q$1000=Costs!I$617))-SUMPRODUCT(('Fixed assets'!$Q$2:$Q$1000=Costs!I$617)*('Fixed assets'!$U$2:$U$1000=Costs!$A678)*('Fixed assets'!$S$2:$S$1000))+SUMPRODUCT(('Fixed assets'!$Q$2:$Q$1000=Costs!I$617)*('Fixed assets'!$P$2:$P$1000=Costs!$A678)*('Fixed assets'!$U$2:$U$1000=Costs!$A678)*('Fixed assets'!$R$2:$R$1000))","v":0},{"$f":"SUMPRODUCT(('Fixed assets'!$R$2:$R$1000)*('Fixed assets'!$P$2:$P$1000<$A678)*('Fixed assets'!$Q$2:$Q$1000=Costs!J$617))-SUMPRODUCT(('Fixed assets'!$S$2:$S$1000)*('Fixed assets'!$P$2:$P$1000<Costs!$A678)*('Fixed assets'!$Q$2:$Q$1000=Costs!J$617))-SUMPRODUCT(('Fixed assets'!$Q$2:$Q$1000=Costs!J$617)*('Fixed assets'!$U$2:$U$1000=Costs!$A678)*('Fixed assets'!$S$2:$S$1000))+SUMPRODUCT(('Fixed assets'!$Q$2:$Q$1000=Costs!J$617)*('Fixed assets'!$P$2:$P$1000=Costs!$A678)*('Fixed assets'!$U$2:$U$1000=Costs!$A678)*('Fixed assets'!$R$2:$R$1000))","v":0},{"$f":"SUMPRODUCT(('Fixed assets'!$R$2:$R$1000)*('Fixed assets'!$P$2:$P$1000<$A678)*('Fixed assets'!$Q$2:$Q$1000=Costs!K$617))-SUMPRODUCT(('Fixed assets'!$S$2:$S$1000)*('Fixed assets'!$P$2:$P$1000<Costs!$A678)*('Fixed assets'!$Q$2:$Q$1000=Costs!K$617))-SUMPRODUCT(('Fixed assets'!$Q$2:$Q$1000=Costs!K$617)*('Fixed assets'!$U$2:$U$1000=Costs!$A678)*('Fixed assets'!$S$2:$S$1000))+SUMPRODUCT(('Fixed assets'!$Q$2:$Q$1000=Costs!K$617)*('Fixed assets'!$P$2:$P$1000=Costs!$A678)*('Fixed assets'!$U$2:$U$1000=Costs!$A678)*('Fixed assets'!$R$2:$R$1000))","v":0},{"$f":"SUMPRODUCT(('Fixed assets'!$R$2:$R$1000)*('Fixed assets'!$P$2:$P$1000<$A678)*('Fixed assets'!$Q$2:$Q$1000=Costs!L$617))-SUMPRODUCT(('Fixed assets'!$S$2:$S$1000)*('Fixed assets'!$P$2:$P$1000<Costs!$A678)*('Fixed assets'!$Q$2:$Q$1000=Costs!L$617))-SUMPRODUCT(('Fixed assets'!$Q$2:$Q$1000=Costs!L$617)*('Fixed assets'!$U$2:$U$1000=Costs!$A678)*('Fixed assets'!$S$2:$S$1000))+SUMPRODUCT(('Fixed assets'!$Q$2:$Q$1000=Costs!L$617)*('Fixed assets'!$P$2:$P$1000=Costs!$A678)*('Fixed assets'!$U$2:$U$1000=Costs!$A678)*('Fixed assets'!$R$2:$R$1000))","v":0},{"$f":"SUMPRODUCT(('Fixed assets'!$R$2:$R$1000)*('Fixed assets'!$P$2:$P$1000<$A678)*('Fixed assets'!$Q$2:$Q$1000=Costs!M$617))-SUMPRODUCT(('Fixed assets'!$S$2:$S$1000)*('Fixed assets'!$P$2:$P$1000<Costs!$A678)*('Fixed assets'!$Q$2:$Q$1000=Costs!M$617))-SUMPRODUCT(('Fixed assets'!$Q$2:$Q$1000=Costs!M$617)*('Fixed assets'!$U$2:$U$1000=Costs!$A678)*('Fixed assets'!$S$2:$S$1000))+SUMPRODUCT(('Fixed assets'!$Q$2:$Q$1000=Costs!M$617)*('Fixed assets'!$P$2:$P$1000=Costs!$A678)*('Fixed assets'!$U$2:$U$1000=Costs!$A678)*('Fixed assets'!$R$2:$R$1000))","v":0},{"$f":"SUMPRODUCT(('Fixed assets'!$R$2:$R$1000)*('Fixed assets'!$P$2:$P$1000<$A678)*('Fixed assets'!$Q$2:$Q$1000=Costs!N$617))-SUMPRODUCT(('Fixed assets'!$S$2:$S$1000)*('Fixed assets'!$P$2:$P$1000<Costs!$A678)*('Fixed assets'!$Q$2:$Q$1000=Costs!N$617))-SUMPRODUCT(('Fixed assets'!$Q$2:$Q$1000=Costs!N$617)*('Fixed assets'!$U$2:$U$1000=Costs!$A678)*('Fixed assets'!$S$2:$S$1000))+SUMPRODUCT(('Fixed assets'!$Q$2:$Q$1000=Costs!N$617)*('Fixed assets'!$P$2:$P$1000=Costs!$A678)*('Fixed assets'!$U$2:$U$1000=Costs!$A678)*('Fixed assets'!$R$2:$R$1000))","v":0},{"$f":"SUMPRODUCT(('Fixed assets'!$R$2:$R$1000)*('Fixed assets'!$P$2:$P$1000<$A678)*('Fixed assets'!$Q$2:$Q$1000=Costs!O$617))-SUMPRODUCT(('Fixed assets'!$S$2:$S$1000)*('Fixed assets'!$P$2:$P$1000<Costs!$A678)*('Fixed assets'!$Q$2:$Q$1000=Costs!O$617))-SUMPRODUCT(('Fixed assets'!$Q$2:$Q$1000=Costs!O$617)*('Fixed assets'!$U$2:$U$1000=Costs!$A678)*('Fixed assets'!$S$2:$S$1000))+SUMPRODUCT(('Fixed assets'!$Q$2:$Q$1000=Costs!O$617)*('Fixed assets'!$P$2:$P$1000=Costs!$A678)*('Fixed assets'!$U$2:$U$1000=Costs!$A678)*('Fixed assets'!$R$2:$R$1000))","v":0},{"$f":"SUMPRODUCT(('Fixed assets'!$R$2:$R$1000)*('Fixed assets'!$P$2:$P$1000<$A678)*('Fixed assets'!$Q$2:$Q$1000=Costs!P$617))-SUMPRODUCT(('Fixed assets'!$S$2:$S$1000)*('Fixed assets'!$P$2:$P$1000<Costs!$A678)*('Fixed assets'!$Q$2:$Q$1000=Costs!P$617))-SUMPRODUCT(('Fixed assets'!$Q$2:$Q$1000=Costs!P$617)*('Fixed assets'!$U$2:$U$1000=Costs!$A678)*('Fixed assets'!$S$2:$S$1000))+SUMPRODUCT(('Fixed assets'!$Q$2:$Q$1000=Costs!P$617)*('Fixed assets'!$P$2:$P$1000=Costs!$A678)*('Fixed assets'!$U$2:$U$1000=Costs!$A678)*('Fixed assets'!$R$2:$R$1000))","v":0},{"$f":"SUMPRODUCT(('Fixed assets'!$R$2:$R$1000)*('Fixed assets'!$P$2:$P$1000<$A678)*('Fixed assets'!$Q$2:$Q$1000=Costs!Q$617))-SUMPRODUCT(('Fixed assets'!$S$2:$S$1000)*('Fixed assets'!$P$2:$P$1000<Costs!$A678)*('Fixed assets'!$Q$2:$Q$1000=Costs!Q$617))-SUMPRODUCT(('Fixed assets'!$Q$2:$Q$1000=Costs!Q$617)*('Fixed assets'!$U$2:$U$1000=Costs!$A678)*('Fixed assets'!$S$2:$S$1000))+SUMPRODUCT(('Fixed assets'!$Q$2:$Q$1000=Costs!Q$617)*('Fixed assets'!$P$2:$P$1000=Costs!$A678)*('Fixed assets'!$U$2:$U$1000=Costs!$A678)*('Fixed assets'!$R$2:$R$1000))","v":0},{"$f":"SUMPRODUCT(('Fixed assets'!$R$2:$R$1000)*('Fixed assets'!$P$2:$P$1000<$A678)*('Fixed assets'!$Q$2:$Q$1000=Costs!R$617))-SUMPRODUCT(('Fixed assets'!$S$2:$S$1000)*('Fixed assets'!$P$2:$P$1000<Costs!$A678)*('Fixed assets'!$Q$2:$Q$1000=Costs!R$617))-SUMPRODUCT(('Fixed assets'!$Q$2:$Q$1000=Costs!R$617)*('Fixed assets'!$U$2:$U$1000=Costs!$A678)*('Fixed assets'!$S$2:$S$1000))+SUMPRODUCT(('Fixed assets'!$Q$2:$Q$1000=Costs!R$617)*('Fixed assets'!$P$2:$P$1000=Costs!$A678)*('Fixed assets'!$U$2:$U$1000=Costs!$A678)*('Fixed assets'!$R$2:$R$1000))","v":0},{"$f":"SUMPRODUCT(('Fixed assets'!$R$2:$R$1000)*('Fixed assets'!$P$2:$P$1000<$A678)*('Fixed assets'!$Q$2:$Q$1000=Costs!S$617))-SUMPRODUCT(('Fixed assets'!$S$2:$S$1000)*('Fixed assets'!$P$2:$P$1000<Costs!$A678)*('Fixed assets'!$Q$2:$Q$1000=Costs!S$617))-SUMPRODUCT(('Fixed assets'!$Q$2:$Q$1000=Costs!S$617)*('Fixed assets'!$U$2:$U$1000=Costs!$A678)*('Fixed assets'!$S$2:$S$1000))+SUMPRODUCT(('Fixed assets'!$Q$2:$Q$1000=Costs!S$617)*('Fixed assets'!$P$2:$P$1000=Costs!$A678)*('Fixed assets'!$U$2:$U$1000=Costs!$A678)*('Fixed assets'!$R$2:$R$1000))","v":0},{"$f":"SUMPRODUCT(('Fixed assets'!$R$2:$R$1000)*('Fixed assets'!$P$2:$P$1000<$A678)*('Fixed assets'!$Q$2:$Q$1000=Costs!T$617))-SUMPRODUCT(('Fixed assets'!$S$2:$S$1000)*('Fixed assets'!$P$2:$P$1000<Costs!$A678)*('Fixed assets'!$Q$2:$Q$1000=Costs!T$617))-SUMPRODUCT(('Fixed assets'!$Q$2:$Q$1000=Costs!T$617)*('Fixed assets'!$U$2:$U$1000=Costs!$A678)*('Fixed assets'!$S$2:$S$1000))+SUMPRODUCT(('Fixed assets'!$Q$2:$Q$1000=Costs!T$617)*('Fixed assets'!$P$2:$P$1000=Costs!$A678)*('Fixed assets'!$U$2:$U$1000=Costs!$A678)*('Fixed assets'!$R$2:$R$1000))","v":0},{"$f":"SUMPRODUCT(('Fixed assets'!$R$2:$R$1000)*('Fixed assets'!$P$2:$P$1000<$A678)*('Fixed assets'!$Q$2:$Q$1000=Costs!U$617))-SUMPRODUCT(('Fixed assets'!$S$2:$S$1000)*('Fixed assets'!$P$2:$P$1000<Costs!$A678)*('Fixed assets'!$Q$2:$Q$1000=Costs!U$617))-SUMPRODUCT(('Fixed assets'!$Q$2:$Q$1000=Costs!U$617)*('Fixed assets'!$U$2:$U$1000=Costs!$A678)*('Fixed assets'!$S$2:$S$1000))+SUMPRODUCT(('Fixed assets'!$Q$2:$Q$1000=Costs!U$617)*('Fixed assets'!$P$2:$P$1000=Costs!$A678)*('Fixed assets'!$U$2:$U$1000=Costs!$A678)*('Fixed assets'!$R$2:$R$1000))","v":0},{"$f":"SUMPRODUCT(('Fixed assets'!$R$2:$R$1000)*('Fixed assets'!$P$2:$P$1000<$A678)*('Fixed assets'!$Q$2:$Q$1000=Costs!V$617))-SUMPRODUCT(('Fixed assets'!$S$2:$S$1000)*('Fixed assets'!$P$2:$P$1000<Costs!$A678)*('Fixed assets'!$Q$2:$Q$1000=Costs!V$617))-SUMPRODUCT(('Fixed assets'!$Q$2:$Q$1000=Costs!V$617)*('Fixed assets'!$U$2:$U$1000=Costs!$A678)*('Fixed assets'!$S$2:$S$1000))+SUMPRODUCT(('Fixed assets'!$Q$2:$Q$1000=Costs!V$617)*('Fixed assets'!$P$2:$P$1000=Costs!$A678)*('Fixed assets'!$U$2:$U$1000=Costs!$A678)*('Fixed assets'!$R$2:$R$1000))","v":0},{"$f":"SUMPRODUCT(('Fixed assets'!$R$2:$R$1000)*('Fixed assets'!$P$2:$P$1000<$A678)*('Fixed assets'!$Q$2:$Q$1000=Costs!W$617))-SUMPRODUCT(('Fixed assets'!$S$2:$S$1000)*('Fixed assets'!$P$2:$P$1000<Costs!$A678)*('Fixed assets'!$Q$2:$Q$1000=Costs!W$617))-SUMPRODUCT(('Fixed assets'!$Q$2:$Q$1000=Costs!W$617)*('Fixed assets'!$U$2:$U$1000=Costs!$A678)*('Fixed assets'!$S$2:$S$1000))+SUMPRODUCT(('Fixed assets'!$Q$2:$Q$1000=Costs!W$617)*('Fixed assets'!$P$2:$P$1000=Costs!$A678)*('Fixed assets'!$U$2:$U$1000=Costs!$A678)*('Fixed assets'!$R$2:$R$1000))","v":0},{"$f":"SUMPRODUCT(('Fixed assets'!$R$2:$R$1000)*('Fixed assets'!$P$2:$P$1000<$A678)*('Fixed assets'!$Q$2:$Q$1000=Costs!X$617))-SUMPRODUCT(('Fixed assets'!$S$2:$S$1000)*('Fixed assets'!$P$2:$P$1000<Costs!$A678)*('Fixed assets'!$Q$2:$Q$1000=Costs!X$617))-SUMPRODUCT(('Fixed assets'!$Q$2:$Q$1000=Costs!X$617)*('Fixed assets'!$U$2:$U$1000=Costs!$A678)*('Fixed assets'!$S$2:$S$1000))+SUMPRODUCT(('Fixed assets'!$Q$2:$Q$1000=Costs!X$617)*('Fixed assets'!$P$2:$P$1000=Costs!$A678)*('Fixed assets'!$U$2:$U$1000=Costs!$A678)*('Fixed assets'!$R$2:$R$1000))","v":0},{"$f":"SUMPRODUCT(('Fixed assets'!$R$2:$R$1000)*('Fixed assets'!$P$2:$P$1000<$A678)*('Fixed assets'!$Q$2:$Q$1000=Costs!Y$617))-SUMPRODUCT(('Fixed assets'!$S$2:$S$1000)*('Fixed assets'!$P$2:$P$1000<Costs!$A678)*('Fixed assets'!$Q$2:$Q$1000=Costs!Y$617))-SUMPRODUCT(('Fixed assets'!$Q$2:$Q$1000=Costs!Y$617)*('Fixed assets'!$U$2:$U$1000=Costs!$A678)*('Fixed assets'!$S$2:$S$1000))+SUMPRODUCT(('Fixed assets'!$Q$2:$Q$1000=Costs!Y$617)*('Fixed assets'!$P$2:$P$1000=Costs!$A678)*('Fixed assets'!$U$2:$U$1000=Costs!$A678)*('Fixed assets'!$R$2:$R$1000))","v":0},{"$f":"SUMPRODUCT(('Fixed assets'!$R$2:$R$1000)*('Fixed assets'!$P$2:$P$1000<$A678)*('Fixed assets'!$Q$2:$Q$1000=Costs!Z$617))-SUMPRODUCT(('Fixed assets'!$S$2:$S$1000)*('Fixed assets'!$P$2:$P$1000<Costs!$A678)*('Fixed assets'!$Q$2:$Q$1000=Costs!Z$617))-SUMPRODUCT(('Fixed assets'!$Q$2:$Q$1000=Costs!Z$617)*('Fixed assets'!$U$2:$U$1000=Costs!$A678)*('Fixed assets'!$S$2:$S$1000))+SUMPRODUCT(('Fixed assets'!$Q$2:$Q$1000=Costs!Z$617)*('Fixed assets'!$P$2:$P$1000=Costs!$A678)*('Fixed assets'!$U$2:$U$1000=Costs!$A678)*('Fixed assets'!$R$2:$R$1000))","v":0},{"$f":"SUMPRODUCT(('Fixed assets'!$R$2:$R$1000)*('Fixed assets'!$P$2:$P$1000<$A678)*('Fixed assets'!$Q$2:$Q$1000=Costs!AA$617))-SUMPRODUCT(('Fixed assets'!$S$2:$S$1000)*('Fixed assets'!$P$2:$P$1000<Costs!$A678)*('Fixed assets'!$Q$2:$Q$1000=Costs!AA$617))-SUMPRODUCT(('Fixed assets'!$Q$2:$Q$1000=Costs!AA$617)*('Fixed assets'!$U$2:$U$1000=Costs!$A678)*('Fixed assets'!$S$2:$S$1000))+SUMPRODUCT(('Fixed assets'!$Q$2:$Q$1000=Costs!AA$617)*('Fixed assets'!$P$2:$P$1000=Costs!$A678)*('Fixed assets'!$U$2:$U$1000=Costs!$A678)*('Fixed assets'!$R$2:$R$1000))","v":0},{"$f":"SUMPRODUCT(('Fixed assets'!$R$2:$R$1000)*('Fixed assets'!$P$2:$P$1000<$A678)*('Fixed assets'!$Q$2:$Q$1000=Costs!AB$617))-SUMPRODUCT(('Fixed assets'!$S$2:$S$1000)*('Fixed assets'!$P$2:$P$1000<Costs!$A678)*('Fixed assets'!$Q$2:$Q$1000=Costs!AB$617))-SUMPRODUCT(('Fixed assets'!$Q$2:$Q$1000=Costs!AB$617)*('Fixed assets'!$U$2:$U$1000=Costs!$A678)*('Fixed assets'!$S$2:$S$1000))+SUMPRODUCT(('Fixed assets'!$Q$2:$Q$1000=Costs!AB$617)*('Fixed assets'!$P$2:$P$1000=Costs!$A678)*('Fixed assets'!$U$2:$U$1000=Costs!$A678)*('Fixed assets'!$R$2:$R$1000))","v":0},{"$f":"SUMPRODUCT(('Fixed assets'!$R$2:$R$1000)*('Fixed assets'!$P$2:$P$1000<$A678)*('Fixed assets'!$Q$2:$Q$1000=Costs!AC$617))-SUMPRODUCT(('Fixed assets'!$S$2:$S$1000)*('Fixed assets'!$P$2:$P$1000<Costs!$A678)*('Fixed assets'!$Q$2:$Q$1000=Costs!AC$617))-SUMPRODUCT(('Fixed assets'!$Q$2:$Q$1000=Costs!AC$617)*('Fixed assets'!$U$2:$U$1000=Costs!$A678)*('Fixed assets'!$S$2:$S$1000))+SUMPRODUCT(('Fixed assets'!$Q$2:$Q$1000=Costs!AC$617)*('Fixed assets'!$P$2:$P$1000=Costs!$A678)*('Fixed assets'!$U$2:$U$1000=Costs!$A678)*('Fixed assets'!$R$2:$R$1000))","v":0},{"$f":"SUMPRODUCT(('Fixed assets'!$R$2:$R$1000)*('Fixed assets'!$P$2:$P$1000<$A678)*('Fixed assets'!$Q$2:$Q$1000=Costs!AD$617))-SUMPRODUCT(('Fixed assets'!$S$2:$S$1000)*('Fixed assets'!$P$2:$P$1000<Costs!$A678)*('Fixed assets'!$Q$2:$Q$1000=Costs!AD$617))-SUMPRODUCT(('Fixed assets'!$Q$2:$Q$1000=Costs!AD$617)*('Fixed assets'!$U$2:$U$1000=Costs!$A678)*('Fixed assets'!$S$2:$S$1000))+SUMPRODUCT(('Fixed assets'!$Q$2:$Q$1000=Costs!AD$617)*('Fixed assets'!$P$2:$P$1000=Costs!$A678)*('Fixed assets'!$U$2:$U$1000=Costs!$A678)*('Fixed assets'!$R$2:$R$1000))","v":0},{"$f":"SUMPRODUCT(('Fixed assets'!$R$2:$R$1000)*('Fixed assets'!$P$2:$P$1000<$A678)*('Fixed assets'!$Q$2:$Q$1000=Costs!AE$617))-SUMPRODUCT(('Fixed assets'!$S$2:$S$1000)*('Fixed assets'!$P$2:$P$1000<Costs!$A678)*('Fixed assets'!$Q$2:$Q$1000=Costs!AE$617))-SUMPRODUCT(('Fixed assets'!$Q$2:$Q$1000=Costs!AE$617)*('Fixed assets'!$U$2:$U$1000=Costs!$A678)*('Fixed assets'!$S$2:$S$1000))+SUMPRODUCT(('Fixed assets'!$Q$2:$Q$1000=Costs!AE$617)*('Fixed assets'!$P$2:$P$1000=Costs!$A678)*('Fixed assets'!$U$2:$U$1000=Costs!$A678)*('Fixed assets'!$R$2:$R$1000))","v":0},{"$f":"SUMPRODUCT(('Fixed assets'!$R$2:$R$1000)*('Fixed assets'!$P$2:$P$1000<$A678)*('Fixed assets'!$Q$2:$Q$1000=Costs!AF$617))-SUMPRODUCT(('Fixed assets'!$S$2:$S$1000)*('Fixed assets'!$P$2:$P$1000<Costs!$A678)*('Fixed assets'!$Q$2:$Q$1000=Costs!AF$617))-SUMPRODUCT(('Fixed assets'!$Q$2:$Q$1000=Costs!AF$617)*('Fixed assets'!$U$2:$U$1000=Costs!$A678)*('Fixed assets'!$S$2:$S$1000))+SUMPRODUCT(('Fixed assets'!$Q$2:$Q$1000=Costs!AF$617)*('Fixed assets'!$P$2:$P$1000=Costs!$A678)*('Fixed assets'!$U$2:$U$1000=Costs!$A678)*('Fixed assets'!$R$2:$R$1000))","v":0},{"$f":"SUMPRODUCT(('Fixed assets'!$R$2:$R$1000)*('Fixed assets'!$P$2:$P$1000<$A678)*('Fixed assets'!$Q$2:$Q$1000=Costs!AG$617))-SUMPRODUCT(('Fixed assets'!$S$2:$S$1000)*('Fixed assets'!$P$2:$P$1000<Costs!$A678)*('Fixed assets'!$Q$2:$Q$1000=Costs!AG$617))-SUMPRODUCT(('Fixed assets'!$Q$2:$Q$1000=Costs!AG$617)*('Fixed assets'!$U$2:$U$1000=Costs!$A678)*('Fixed assets'!$S$2:$S$1000))+SUMPRODUCT(('Fixed assets'!$Q$2:$Q$1000=Costs!AG$617)*('Fixed assets'!$P$2:$P$1000=Costs!$A678)*('Fixed assets'!$U$2:$U$1000=Costs!$A678)*('Fixed assets'!$R$2:$R$1000))","v":0},{"$f":"SUMPRODUCT(('Fixed assets'!$R$2:$R$1000)*('Fixed assets'!$P$2:$P$1000<$A678)*('Fixed assets'!$Q$2:$Q$1000=Costs!AH$617))-SUMPRODUCT(('Fixed assets'!$S$2:$S$1000)*('Fixed assets'!$P$2:$P$1000<Costs!$A678)*('Fixed assets'!$Q$2:$Q$1000=Costs!AH$617))-SUMPRODUCT(('Fixed assets'!$Q$2:$Q$1000=Costs!AH$617)*('Fixed assets'!$U$2:$U$1000=Costs!$A678)*('Fixed assets'!$S$2:$S$1000))+SUMPRODUCT(('Fixed assets'!$Q$2:$Q$1000=Costs!AH$617)*('Fixed assets'!$P$2:$P$1000=Costs!$A678)*('Fixed assets'!$U$2:$U$1000=Costs!$A678)*('Fixed assets'!$R$2:$R$1000))","v":0},{"$f":"SUMPRODUCT(('Fixed assets'!$R$2:$R$1000)*('Fixed assets'!$P$2:$P$1000<$A678)*('Fixed assets'!$Q$2:$Q$1000=Costs!AI$617))-SUMPRODUCT(('Fixed assets'!$S$2:$S$1000)*('Fixed assets'!$P$2:$P$1000<Costs!$A678)*('Fixed assets'!$Q$2:$Q$1000=Costs!AI$617))-SUMPRODUCT(('Fixed assets'!$Q$2:$Q$1000=Costs!AI$617)*('Fixed assets'!$U$2:$U$1000=Costs!$A678)*('Fixed assets'!$S$2:$S$1000))+SUMPRODUCT(('Fixed assets'!$Q$2:$Q$1000=Costs!AI$617)*('Fixed assets'!$P$2:$P$1000=Costs!$A678)*('Fixed assets'!$U$2:$U$1000=Costs!$A678)*('Fixed assets'!$R$2:$R$1000))","v":0},{"$f":"SUMPRODUCT(('Fixed assets'!$R$2:$R$1000)*('Fixed assets'!$P$2:$P$1000<$A678)*('Fixed assets'!$Q$2:$Q$1000=Costs!AJ$617))-SUMPRODUCT(('Fixed assets'!$S$2:$S$1000)*('Fixed assets'!$P$2:$P$1000<Costs!$A678)*('Fixed assets'!$Q$2:$Q$1000=Costs!AJ$617))-SUMPRODUCT(('Fixed assets'!$Q$2:$Q$1000=Costs!AJ$617)*('Fixed assets'!$U$2:$U$1000=Costs!$A678)*('Fixed assets'!$S$2:$S$1000))+SUMPRODUCT(('Fixed assets'!$Q$2:$Q$1000=Costs!AJ$617)*('Fixed assets'!$P$2:$P$1000=Costs!$A678)*('Fixed assets'!$U$2:$U$1000=Costs!$A678)*('Fixed assets'!$R$2:$R$1000))","v":0},{"$f":"SUMPRODUCT(('Fixed assets'!$R$2:$R$1000)*('Fixed assets'!$P$2:$P$1000<$A678)*('Fixed assets'!$Q$2:$Q$1000=Costs!AK$617))-SUMPRODUCT(('Fixed assets'!$S$2:$S$1000)*('Fixed assets'!$P$2:$P$1000<Costs!$A678)*('Fixed assets'!$Q$2:$Q$1000=Costs!AK$617))-SUMPRODUCT(('Fixed assets'!$Q$2:$Q$1000=Costs!AK$617)*('Fixed assets'!$U$2:$U$1000=Costs!$A678)*('Fixed assets'!$S$2:$S$1000))+SUMPRODUCT(('Fixed assets'!$Q$2:$Q$1000=Costs!AK$617)*('Fixed assets'!$P$2:$P$1000=Costs!$A678)*('Fixed assets'!$U$2:$U$1000=Costs!$A678)*('Fixed assets'!$R$2:$R$1000))","v":0},{"$f":"SUMPRODUCT(('Fixed assets'!$R$2:$R$1000)*('Fixed assets'!$P$2:$P$1000<$A678)*('Fixed assets'!$Q$2:$Q$1000=Costs!AL$617))-SUMPRODUCT(('Fixed assets'!$S$2:$S$1000)*('Fixed assets'!$P$2:$P$1000<Costs!$A678)*('Fixed assets'!$Q$2:$Q$1000=Costs!AL$617))-SUMPRODUCT(('Fixed assets'!$Q$2:$Q$1000=Costs!AL$617)*('Fixed assets'!$U$2:$U$1000=Costs!$A678)*('Fixed assets'!$S$2:$S$1000))+SUMPRODUCT(('Fixed assets'!$Q$2:$Q$1000=Costs!AL$617)*('Fixed assets'!$P$2:$P$1000=Costs!$A678)*('Fixed assets'!$U$2:$U$1000=Costs!$A678)*('Fixed assets'!$R$2:$R$1000))","v":0},{"$f":"SUMPRODUCT(('Fixed assets'!$R$2:$R$1000)*('Fixed assets'!$P$2:$P$1000<$A678)*('Fixed assets'!$Q$2:$Q$1000=Costs!AM$617))-SUMPRODUCT(('Fixed assets'!$S$2:$S$1000)*('Fixed assets'!$P$2:$P$1000<Costs!$A678)*('Fixed assets'!$Q$2:$Q$1000=Costs!AM$617))-SUMPRODUCT(('Fixed assets'!$Q$2:$Q$1000=Costs!AM$617)*('Fixed assets'!$U$2:$U$1000=Costs!$A678)*('Fixed assets'!$S$2:$S$1000))+SUMPRODUCT(('Fixed assets'!$Q$2:$Q$1000=Costs!AM$617)*('Fixed assets'!$P$2:$P$1000=Costs!$A678)*('Fixed assets'!$U$2:$U$1000=Costs!$A678)*('Fixed assets'!$R$2:$R$1000))","v":0},{"$f":"SUMPRODUCT(('Fixed assets'!$R$2:$R$1000)*('Fixed assets'!$P$2:$P$1000<$A678)*('Fixed assets'!$Q$2:$Q$1000=Costs!AN$617))-SUMPRODUCT(('Fixed assets'!$S$2:$S$1000)*('Fixed assets'!$P$2:$P$1000<Costs!$A678)*('Fixed assets'!$Q$2:$Q$1000=Costs!AN$617))-SUMPRODUCT(('Fixed assets'!$Q$2:$Q$1000=Costs!AN$617)*('Fixed assets'!$U$2:$U$1000=Costs!$A678)*('Fixed assets'!$S$2:$S$1000))+SUMPRODUCT(('Fixed assets'!$Q$2:$Q$1000=Costs!AN$617)*('Fixed assets'!$P$2:$P$1000=Costs!$A678)*('Fixed assets'!$U$2:$U$1000=Costs!$A678)*('Fixed assets'!$R$2:$R$1000))","v":0},{"$f":"SUMPRODUCT(('Fixed assets'!$R$2:$R$1000)*('Fixed assets'!$P$2:$P$1000<$A678)*('Fixed assets'!$Q$2:$Q$1000=Costs!AO$617))-SUMPRODUCT(('Fixed assets'!$S$2:$S$1000)*('Fixed assets'!$P$2:$P$1000<Costs!$A678)*('Fixed assets'!$Q$2:$Q$1000=Costs!AO$617))-SUMPRODUCT(('Fixed assets'!$Q$2:$Q$1000=Costs!AO$617)*('Fixed assets'!$U$2:$U$1000=Costs!$A678)*('Fixed assets'!$S$2:$S$1000))+SUMPRODUCT(('Fixed assets'!$Q$2:$Q$1000=Costs!AO$617)*('Fixed assets'!$P$2:$P$1000=Costs!$A678)*('Fixed assets'!$U$2:$U$1000=Costs!$A678)*('Fixed assets'!$R$2:$R$1000))","v":0},{"$f":"SUMPRODUCT(('Fixed assets'!$R$2:$R$1000)*('Fixed assets'!$P$2:$P$1000<$A678)*('Fixed assets'!$Q$2:$Q$1000=Costs!AP$617))-SUMPRODUCT(('Fixed assets'!$S$2:$S$1000)*('Fixed assets'!$P$2:$P$1000<Costs!$A678)*('Fixed assets'!$Q$2:$Q$1000=Costs!AP$617))-SUMPRODUCT(('Fixed assets'!$Q$2:$Q$1000=Costs!AP$617)*('Fixed assets'!$U$2:$U$1000=Costs!$A678)*('Fixed assets'!$S$2:$S$1000))+SUMPRODUCT(('Fixed assets'!$Q$2:$Q$1000=Costs!AP$617)*('Fixed assets'!$P$2:$P$1000=Costs!$A678)*('Fixed assets'!$U$2:$U$1000=Costs!$A678)*('Fixed assets'!$R$2:$R$1000))","v":0},{"$f":"SUMPRODUCT(('Fixed assets'!$R$2:$R$1000)*('Fixed assets'!$P$2:$P$1000<$A678)*('Fixed assets'!$Q$2:$Q$1000=Costs!AQ$617))-SUMPRODUCT(('Fixed assets'!$S$2:$S$1000)*('Fixed assets'!$P$2:$P$1000<Costs!$A678)*('Fixed assets'!$Q$2:$Q$1000=Costs!AQ$617))-SUMPRODUCT(('Fixed assets'!$Q$2:$Q$1000=Costs!AQ$617)*('Fixed assets'!$U$2:$U$1000=Costs!$A678)*('Fixed assets'!$S$2:$S$1000))+SUMPRODUCT(('Fixed assets'!$Q$2:$Q$1000=Costs!AQ$617)*('Fixed assets'!$P$2:$P$1000=Costs!$A678)*('Fixed assets'!$U$2:$U$1000=Costs!$A678)*('Fixed assets'!$R$2:$R$1000))","v":0}]
[2076,0,{"$f":"SUMPRODUCT(('Fixed assets'!$R$2:$R$1000)*('Fixed assets'!$P$2:$P$1000<$A679)*('Fixed assets'!$Q$2:$Q$1000=Costs!C$617))-SUMPRODUCT(('Fixed assets'!$S$2:$S$1000)*('Fixed assets'!$P$2:$P$1000<Costs!$A679)*('Fixed assets'!$Q$2:$Q$1000=Costs!C$617))-SUMPRODUCT(('Fixed assets'!$Q$2:$Q$1000=Costs!C$617)*('Fixed assets'!$U$2:$U$1000=Costs!$A679)*('Fixed assets'!$S$2:$S$1000))+SUMPRODUCT(('Fixed assets'!$Q$2:$Q$1000=Costs!C$617)*('Fixed assets'!$P$2:$P$1000=Costs!$A679)*('Fixed assets'!$U$2:$U$1000=Costs!$A679)*('Fixed assets'!$R$2:$R$1000))","v":0},{"$f":"SUMPRODUCT(('Fixed assets'!$R$2:$R$1000)*('Fixed assets'!$P$2:$P$1000<$A679)*('Fixed assets'!$Q$2:$Q$1000=Costs!D$617))-SUMPRODUCT(('Fixed assets'!$S$2:$S$1000)*('Fixed assets'!$P$2:$P$1000<Costs!$A679)*('Fixed assets'!$Q$2:$Q$1000=Costs!D$617))-SUMPRODUCT(('Fixed assets'!$Q$2:$Q$1000=Costs!D$617)*('Fixed assets'!$U$2:$U$1000=Costs!$A679)*('Fixed assets'!$S$2:$S$1000))+SUMPRODUCT(('Fixed assets'!$Q$2:$Q$1000=Costs!D$617)*('Fixed assets'!$P$2:$P$1000=Costs!$A679)*('Fixed assets'!$U$2:$U$1000=Costs!$A679)*('Fixed assets'!$R$2:$R$1000))","v":0},{"$f":"SUMPRODUCT(('Fixed assets'!$R$2:$R$1000)*('Fixed assets'!$P$2:$P$1000<$A679)*('Fixed assets'!$Q$2:$Q$1000=Costs!E$617))-SUMPRODUCT(('Fixed assets'!$S$2:$S$1000)*('Fixed assets'!$P$2:$P$1000<Costs!$A679)*('Fixed assets'!$Q$2:$Q$1000=Costs!E$617))-SUMPRODUCT(('Fixed assets'!$Q$2:$Q$1000=Costs!E$617)*('Fixed assets'!$U$2:$U$1000=Costs!$A679)*('Fixed assets'!$S$2:$S$1000))+SUMPRODUCT(('Fixed assets'!$Q$2:$Q$1000=Costs!E$617)*('Fixed assets'!$P$2:$P$1000=Costs!$A679)*('Fixed assets'!$U$2:$U$1000=Costs!$A679)*('Fixed assets'!$R$2:$R$1000))","v":0},{"$f":"SUMPRODUCT(('Fixed assets'!$R$2:$R$1000)*('Fixed assets'!$P$2:$P$1000<$A679)*('Fixed assets'!$Q$2:$Q$1000=Costs!F$617))-SUMPRODUCT(('Fixed assets'!$S$2:$S$1000)*('Fixed assets'!$P$2:$P$1000<Costs!$A679)*('Fixed assets'!$Q$2:$Q$1000=Costs!F$617))-SUMPRODUCT(('Fixed assets'!$Q$2:$Q$1000=Costs!F$617)*('Fixed assets'!$U$2:$U$1000=Costs!$A679)*('Fixed assets'!$S$2:$S$1000))+SUMPRODUCT(('Fixed assets'!$Q$2:$Q$1000=Costs!F$617)*('Fixed assets'!$P$2:$P$1000=Costs!$A679)*('Fixed assets'!$U$2:$U$1000=Costs!$A679)*('Fixed assets'!$R$2:$R$1000))","v":0},{"$f":"SUMPRODUCT(('Fixed assets'!$R$2:$R$1000)*('Fixed assets'!$P$2:$P$1000<$A679)*('Fixed assets'!$Q$2:$Q$1000=Costs!G$617))-SUMPRODUCT(('Fixed assets'!$S$2:$S$1000)*('Fixed assets'!$P$2:$P$1000<Costs!$A679)*('Fixed assets'!$Q$2:$Q$1000=Costs!G$617))-SUMPRODUCT(('Fixed assets'!$Q$2:$Q$1000=Costs!G$617)*('Fixed assets'!$U$2:$U$1000=Costs!$A679)*('Fixed assets'!$S$2:$S$1000))+SUMPRODUCT(('Fixed assets'!$Q$2:$Q$1000=Costs!G$617)*('Fixed assets'!$P$2:$P$1000=Costs!$A679)*('Fixed assets'!$U$2:$U$1000=Costs!$A679)*('Fixed assets'!$R$2:$R$1000))","v":0},{"$f":"SUMPRODUCT(('Fixed assets'!$R$2:$R$1000)*('Fixed assets'!$P$2:$P$1000<$A679)*('Fixed assets'!$Q$2:$Q$1000=Costs!H$617))-SUMPRODUCT(('Fixed assets'!$S$2:$S$1000)*('Fixed assets'!$P$2:$P$1000<Costs!$A679)*('Fixed assets'!$Q$2:$Q$1000=Costs!H$617))-SUMPRODUCT(('Fixed assets'!$Q$2:$Q$1000=Costs!H$617)*('Fixed assets'!$U$2:$U$1000=Costs!$A679)*('Fixed assets'!$S$2:$S$1000))+SUMPRODUCT(('Fixed assets'!$Q$2:$Q$1000=Costs!H$617)*('Fixed assets'!$P$2:$P$1000=Costs!$A679)*('Fixed assets'!$U$2:$U$1000=Costs!$A679)*('Fixed assets'!$R$2:$R$1000))","v":0},{"$f":"SUMPRODUCT(('Fixed assets'!$R$2:$R$1000)*('Fixed assets'!$P$2:$P$1000<$A679)*('Fixed assets'!$Q$2:$Q$1000=Costs!I$617))-SUMPRODUCT(('Fixed assets'!$S$2:$S$1000)*('Fixed assets'!$P$2:$P$1000<Costs!$A679)*('Fixed assets'!$Q$2:$Q$1000=Costs!I$617))-SUMPRODUCT(('Fixed assets'!$Q$2:$Q$1000=Costs!I$617)*('Fixed assets'!$U$2:$U$1000=Costs!$A679)*('Fixed assets'!$S$2:$S$1000))+SUMPRODUCT(('Fixed assets'!$Q$2:$Q$1000=Costs!I$617)*('Fixed assets'!$P$2:$P$1000=Costs!$A679)*('Fixed assets'!$U$2:$U$1000=Costs!$A679)*('Fixed assets'!$R$2:$R$1000))","v":0},{"$f":"SUMPRODUCT(('Fixed assets'!$R$2:$R$1000)*('Fixed assets'!$P$2:$P$1000<$A679)*('Fixed assets'!$Q$2:$Q$1000=Costs!J$617))-SUMPRODUCT(('Fixed assets'!$S$2:$S$1000)*('Fixed assets'!$P$2:$P$1000<Costs!$A679)*('Fixed assets'!$Q$2:$Q$1000=Costs!J$617))-SUMPRODUCT(('Fixed assets'!$Q$2:$Q$1000=Costs!J$617)*('Fixed assets'!$U$2:$U$1000=Costs!$A679)*('Fixed assets'!$S$2:$S$1000))+SUMPRODUCT(('Fixed assets'!$Q$2:$Q$1000=Costs!J$617)*('Fixed assets'!$P$2:$P$1000=Costs!$A679)*('Fixed assets'!$U$2:$U$1000=Costs!$A679)*('Fixed assets'!$R$2:$R$1000))","v":0},{"$f":"SUMPRODUCT(('Fixed assets'!$R$2:$R$1000)*('Fixed assets'!$P$2:$P$1000<$A679)*('Fixed assets'!$Q$2:$Q$1000=Costs!K$617))-SUMPRODUCT(('Fixed assets'!$S$2:$S$1000)*('Fixed assets'!$P$2:$P$1000<Costs!$A679)*('Fixed assets'!$Q$2:$Q$1000=Costs!K$617))-SUMPRODUCT(('Fixed assets'!$Q$2:$Q$1000=Costs!K$617)*('Fixed assets'!$U$2:$U$1000=Costs!$A679)*('Fixed assets'!$S$2:$S$1000))+SUMPRODUCT(('Fixed assets'!$Q$2:$Q$1000=Costs!K$617)*('Fixed assets'!$P$2:$P$1000=Costs!$A679)*('Fixed assets'!$U$2:$U$1000=Costs!$A679)*('Fixed assets'!$R$2:$R$1000))","v":0},{"$f":"SUMPRODUCT(('Fixed assets'!$R$2:$R$1000)*('Fixed assets'!$P$2:$P$1000<$A679)*('Fixed assets'!$Q$2:$Q$1000=Costs!L$617))-SUMPRODUCT(('Fixed assets'!$S$2:$S$1000)*('Fixed assets'!$P$2:$P$1000<Costs!$A679)*('Fixed assets'!$Q$2:$Q$1000=Costs!L$617))-SUMPRODUCT(('Fixed assets'!$Q$2:$Q$1000=Costs!L$617)*('Fixed assets'!$U$2:$U$1000=Costs!$A679)*('Fixed assets'!$S$2:$S$1000))+SUMPRODUCT(('Fixed assets'!$Q$2:$Q$1000=Costs!L$617)*('Fixed assets'!$P$2:$P$1000=Costs!$A679)*('Fixed assets'!$U$2:$U$1000=Costs!$A679)*('Fixed assets'!$R$2:$R$1000))","v":0},{"$f":"SUMPRODUCT(('Fixed assets'!$R$2:$R$1000)*('Fixed assets'!$P$2:$P$1000<$A679)*('Fixed assets'!$Q$2:$Q$1000=Costs!M$617))-SUMPRODUCT(('Fixed assets'!$S$2:$S$1000)*('Fixed assets'!$P$2:$P$1000<Costs!$A679)*('Fixed assets'!$Q$2:$Q$1000=Costs!M$617))-SUMPRODUCT(('Fixed assets'!$Q$2:$Q$1000=Costs!M$617)*('Fixed assets'!$U$2:$U$1000=Costs!$A679)*('Fixed assets'!$S$2:$S$1000))+SUMPRODUCT(('Fixed assets'!$Q$2:$Q$1000=Costs!M$617)*('Fixed assets'!$P$2:$P$1000=Costs!$A679)*('Fixed assets'!$U$2:$U$1000=Costs!$A679)*('Fixed assets'!$R$2:$R$1000))","v":0},{"$f":"SUMPRODUCT(('Fixed assets'!$R$2:$R$1000)*('Fixed assets'!$P$2:$P$1000<$A679)*('Fixed assets'!$Q$2:$Q$1000=Costs!N$617))-SUMPRODUCT(('Fixed assets'!$S$2:$S$1000)*('Fixed assets'!$P$2:$P$1000<Costs!$A679)*('Fixed assets'!$Q$2:$Q$1000=Costs!N$617))-SUMPRODUCT(('Fixed assets'!$Q$2:$Q$1000=Costs!N$617)*('Fixed assets'!$U$2:$U$1000=Costs!$A679)*('Fixed assets'!$S$2:$S$1000))+SUMPRODUCT(('Fixed assets'!$Q$2:$Q$1000=Costs!N$617)*('Fixed assets'!$P$2:$P$1000=Costs!$A679)*('Fixed assets'!$U$2:$U$1000=Costs!$A679)*('Fixed assets'!$R$2:$R$1000))","v":0},{"$f":"SUMPRODUCT(('Fixed assets'!$R$2:$R$1000)*('Fixed assets'!$P$2:$P$1000<$A679)*('Fixed assets'!$Q$2:$Q$1000=Costs!O$617))-SUMPRODUCT(('Fixed assets'!$S$2:$S$1000)*('Fixed assets'!$P$2:$P$1000<Costs!$A679)*('Fixed assets'!$Q$2:$Q$1000=Costs!O$617))-SUMPRODUCT(('Fixed assets'!$Q$2:$Q$1000=Costs!O$617)*('Fixed assets'!$U$2:$U$1000=Costs!$A679)*('Fixed assets'!$S$2:$S$1000))+SUMPRODUCT(('Fixed assets'!$Q$2:$Q$1000=Costs!O$617)*('Fixed assets'!$P$2:$P$1000=Costs!$A679)*('Fixed assets'!$U$2:$U$1000=Costs!$A679)*('Fixed assets'!$R$2:$R$1000))","v":0},{"$f":"SUMPRODUCT(('Fixed assets'!$R$2:$R$1000)*('Fixed assets'!$P$2:$P$1000<$A679)*('Fixed assets'!$Q$2:$Q$1000=Costs!P$617))-SUMPRODUCT(('Fixed assets'!$S$2:$S$1000)*('Fixed assets'!$P$2:$P$1000<Costs!$A679)*('Fixed assets'!$Q$2:$Q$1000=Costs!P$617))-SUMPRODUCT(('Fixed assets'!$Q$2:$Q$1000=Costs!P$617)*('Fixed assets'!$U$2:$U$1000=Costs!$A679)*('Fixed assets'!$S$2:$S$1000))+SUMPRODUCT(('Fixed assets'!$Q$2:$Q$1000=Costs!P$617)*('Fixed assets'!$P$2:$P$1000=Costs!$A679)*('Fixed assets'!$U$2:$U$1000=Costs!$A679)*('Fixed assets'!$R$2:$R$1000))","v":0},{"$f":"SUMPRODUCT(('Fixed assets'!$R$2:$R$1000)*('Fixed assets'!$P$2:$P$1000<$A679)*('Fixed assets'!$Q$2:$Q$1000=Costs!Q$617))-SUMPRODUCT(('Fixed assets'!$S$2:$S$1000)*('Fixed assets'!$P$2:$P$1000<Costs!$A679)*('Fixed assets'!$Q$2:$Q$1000=Costs!Q$617))-SUMPRODUCT(('Fixed assets'!$Q$2:$Q$1000=Costs!Q$617)*('Fixed assets'!$U$2:$U$1000=Costs!$A679)*('Fixed assets'!$S$2:$S$1000))+SUMPRODUCT(('Fixed assets'!$Q$2:$Q$1000=Costs!Q$617)*('Fixed assets'!$P$2:$P$1000=Costs!$A679)*('Fixed assets'!$U$2:$U$1000=Costs!$A679)*('Fixed assets'!$R$2:$R$1000))","v":0},{"$f":"SUMPRODUCT(('Fixed assets'!$R$2:$R$1000)*('Fixed assets'!$P$2:$P$1000<$A679)*('Fixed assets'!$Q$2:$Q$1000=Costs!R$617))-SUMPRODUCT(('Fixed assets'!$S$2:$S$1000)*('Fixed assets'!$P$2:$P$1000<Costs!$A679)*('Fixed assets'!$Q$2:$Q$1000=Costs!R$617))-SUMPRODUCT(('Fixed assets'!$Q$2:$Q$1000=Costs!R$617)*('Fixed assets'!$U$2:$U$1000=Costs!$A679)*('Fixed assets'!$S$2:$S$1000))+SUMPRODUCT(('Fixed assets'!$Q$2:$Q$1000=Costs!R$617)*('Fixed assets'!$P$2:$P$1000=Costs!$A679)*('Fixed assets'!$U$2:$U$1000=Costs!$A679)*('Fixed assets'!$R$2:$R$1000))","v":0},{"$f":"SUMPRODUCT(('Fixed assets'!$R$2:$R$1000)*('Fixed assets'!$P$2:$P$1000<$A679)*('Fixed assets'!$Q$2:$Q$1000=Costs!S$617))-SUMPRODUCT(('Fixed assets'!$S$2:$S$1000)*('Fixed assets'!$P$2:$P$1000<Costs!$A679)*('Fixed assets'!$Q$2:$Q$1000=Costs!S$617))-SUMPRODUCT(('Fixed assets'!$Q$2:$Q$1000=Costs!S$617)*('Fixed assets'!$U$2:$U$1000=Costs!$A679)*('Fixed assets'!$S$2:$S$1000))+SUMPRODUCT(('Fixed assets'!$Q$2:$Q$1000=Costs!S$617)*('Fixed assets'!$P$2:$P$1000=Costs!$A679)*('Fixed assets'!$U$2:$U$1000=Costs!$A679)*('Fixed assets'!$R$2:$R$1000))","v":0},{"$f":"SUMPRODUCT(('Fixed assets'!$R$2:$R$1000)*('Fixed assets'!$P$2:$P$1000<$A679)*('Fixed assets'!$Q$2:$Q$1000=Costs!T$617))-SUMPRODUCT(('Fixed assets'!$S$2:$S$1000)*('Fixed assets'!$P$2:$P$1000<Costs!$A679)*('Fixed assets'!$Q$2:$Q$1000=Costs!T$617))-SUMPRODUCT(('Fixed assets'!$Q$2:$Q$1000=Costs!T$617)*('Fixed assets'!$U$2:$U$1000=Costs!$A679)*('Fixed assets'!$S$2:$S$1000))+SUMPRODUCT(('Fixed assets'!$Q$2:$Q$1000=Costs!T$617)*('Fixed assets'!$P$2:$P$1000=Costs!$A679)*('Fixed assets'!$U$2:$U$1000=Costs!$A679)*('Fixed assets'!$R$2:$R$1000))","v":0},{"$f":"SUMPRODUCT(('Fixed assets'!$R$2:$R$1000)*('Fixed assets'!$P$2:$P$1000<$A679)*('Fixed assets'!$Q$2:$Q$1000=Costs!U$617))-SUMPRODUCT(('Fixed assets'!$S$2:$S$1000)*('Fixed assets'!$P$2:$P$1000<Costs!$A679)*('Fixed assets'!$Q$2:$Q$1000=Costs!U$617))-SUMPRODUCT(('Fixed assets'!$Q$2:$Q$1000=Costs!U$617)*('Fixed assets'!$U$2:$U$1000=Costs!$A679)*('Fixed assets'!$S$2:$S$1000))+SUMPRODUCT(('Fixed assets'!$Q$2:$Q$1000=Costs!U$617)*('Fixed assets'!$P$2:$P$1000=Costs!$A679)*('Fixed assets'!$U$2:$U$1000=Costs!$A679)*('Fixed assets'!$R$2:$R$1000))","v":0},{"$f":"SUMPRODUCT(('Fixed assets'!$R$2:$R$1000)*('Fixed assets'!$P$2:$P$1000<$A679)*('Fixed assets'!$Q$2:$Q$1000=Costs!V$617))-SUMPRODUCT(('Fixed assets'!$S$2:$S$1000)*('Fixed assets'!$P$2:$P$1000<Costs!$A679)*('Fixed assets'!$Q$2:$Q$1000=Costs!V$617))-SUMPRODUCT(('Fixed assets'!$Q$2:$Q$1000=Costs!V$617)*('Fixed assets'!$U$2:$U$1000=Costs!$A679)*('Fixed assets'!$S$2:$S$1000))+SUMPRODUCT(('Fixed assets'!$Q$2:$Q$1000=Costs!V$617)*('Fixed assets'!$P$2:$P$1000=Costs!$A679)*('Fixed assets'!$U$2:$U$1000=Costs!$A679)*('Fixed assets'!$R$2:$R$1000))","v":0},{"$f":"SUMPRODUCT(('Fixed assets'!$R$2:$R$1000)*('Fixed assets'!$P$2:$P$1000<$A679)*('Fixed assets'!$Q$2:$Q$1000=Costs!W$617))-SUMPRODUCT(('Fixed assets'!$S$2:$S$1000)*('Fixed assets'!$P$2:$P$1000<Costs!$A679)*('Fixed assets'!$Q$2:$Q$1000=Costs!W$617))-SUMPRODUCT(('Fixed assets'!$Q$2:$Q$1000=Costs!W$617)*('Fixed assets'!$U$2:$U$1000=Costs!$A679)*('Fixed assets'!$S$2:$S$1000))+SUMPRODUCT(('Fixed assets'!$Q$2:$Q$1000=Costs!W$617)*('Fixed assets'!$P$2:$P$1000=Costs!$A679)*('Fixed assets'!$U$2:$U$1000=Costs!$A679)*('Fixed assets'!$R$2:$R$1000))","v":0},{"$f":"SUMPRODUCT(('Fixed assets'!$R$2:$R$1000)*('Fixed assets'!$P$2:$P$1000<$A679)*('Fixed assets'!$Q$2:$Q$1000=Costs!X$617))-SUMPRODUCT(('Fixed assets'!$S$2:$S$1000)*('Fixed assets'!$P$2:$P$1000<Costs!$A679)*('Fixed assets'!$Q$2:$Q$1000=Costs!X$617))-SUMPRODUCT(('Fixed assets'!$Q$2:$Q$1000=Costs!X$617)*('Fixed assets'!$U$2:$U$1000=Costs!$A679)*('Fixed assets'!$S$2:$S$1000))+SUMPRODUCT(('Fixed assets'!$Q$2:$Q$1000=Costs!X$617)*('Fixed assets'!$P$2:$P$1000=Costs!$A679)*('Fixed assets'!$U$2:$U$1000=Costs!$A679)*('Fixed assets'!$R$2:$R$1000))","v":0},{"$f":"SUMPRODUCT(('Fixed assets'!$R$2:$R$1000)*('Fixed assets'!$P$2:$P$1000<$A679)*('Fixed assets'!$Q$2:$Q$1000=Costs!Y$617))-SUMPRODUCT(('Fixed assets'!$S$2:$S$1000)*('Fixed assets'!$P$2:$P$1000<Costs!$A679)*('Fixed assets'!$Q$2:$Q$1000=Costs!Y$617))-SUMPRODUCT(('Fixed assets'!$Q$2:$Q$1000=Costs!Y$617)*('Fixed assets'!$U$2:$U$1000=Costs!$A679)*('Fixed assets'!$S$2:$S$1000))+SUMPRODUCT(('Fixed assets'!$Q$2:$Q$1000=Costs!Y$617)*('Fixed assets'!$P$2:$P$1000=Costs!$A679)*('Fixed assets'!$U$2:$U$1000=Costs!$A679)*('Fixed assets'!$R$2:$R$1000))","v":0},{"$f":"SUMPRODUCT(('Fixed assets'!$R$2:$R$1000)*('Fixed assets'!$P$2:$P$1000<$A679)*('Fixed assets'!$Q$2:$Q$1000=Costs!Z$617))-SUMPRODUCT(('Fixed assets'!$S$2:$S$1000)*('Fixed assets'!$P$2:$P$1000<Costs!$A679)*('Fixed assets'!$Q$2:$Q$1000=Costs!Z$617))-SUMPRODUCT(('Fixed assets'!$Q$2:$Q$1000=Costs!Z$617)*('Fixed assets'!$U$2:$U$1000=Costs!$A679)*('Fixed assets'!$S$2:$S$1000))+SUMPRODUCT(('Fixed assets'!$Q$2:$Q$1000=Costs!Z$617)*('Fixed assets'!$P$2:$P$1000=Costs!$A679)*('Fixed assets'!$U$2:$U$1000=Costs!$A679)*('Fixed assets'!$R$2:$R$1000))","v":0},{"$f":"SUMPRODUCT(('Fixed assets'!$R$2:$R$1000)*('Fixed assets'!$P$2:$P$1000<$A679)*('Fixed assets'!$Q$2:$Q$1000=Costs!AA$617))-SUMPRODUCT(('Fixed assets'!$S$2:$S$1000)*('Fixed assets'!$P$2:$P$1000<Costs!$A679)*('Fixed assets'!$Q$2:$Q$1000=Costs!AA$617))-SUMPRODUCT(('Fixed assets'!$Q$2:$Q$1000=Costs!AA$617)*('Fixed assets'!$U$2:$U$1000=Costs!$A679)*('Fixed assets'!$S$2:$S$1000))+SUMPRODUCT(('Fixed assets'!$Q$2:$Q$1000=Costs!AA$617)*('Fixed assets'!$P$2:$P$1000=Costs!$A679)*('Fixed assets'!$U$2:$U$1000=Costs!$A679)*('Fixed assets'!$R$2:$R$1000))","v":0},{"$f":"SUMPRODUCT(('Fixed assets'!$R$2:$R$1000)*('Fixed assets'!$P$2:$P$1000<$A679)*('Fixed assets'!$Q$2:$Q$1000=Costs!AB$617))-SUMPRODUCT(('Fixed assets'!$S$2:$S$1000)*('Fixed assets'!$P$2:$P$1000<Costs!$A679)*('Fixed assets'!$Q$2:$Q$1000=Costs!AB$617))-SUMPRODUCT(('Fixed assets'!$Q$2:$Q$1000=Costs!AB$617)*('Fixed assets'!$U$2:$U$1000=Costs!$A679)*('Fixed assets'!$S$2:$S$1000))+SUMPRODUCT(('Fixed assets'!$Q$2:$Q$1000=Costs!AB$617)*('Fixed assets'!$P$2:$P$1000=Costs!$A679)*('Fixed assets'!$U$2:$U$1000=Costs!$A679)*('Fixed assets'!$R$2:$R$1000))","v":0},{"$f":"SUMPRODUCT(('Fixed assets'!$R$2:$R$1000)*('Fixed assets'!$P$2:$P$1000<$A679)*('Fixed assets'!$Q$2:$Q$1000=Costs!AC$617))-SUMPRODUCT(('Fixed assets'!$S$2:$S$1000)*('Fixed assets'!$P$2:$P$1000<Costs!$A679)*('Fixed assets'!$Q$2:$Q$1000=Costs!AC$617))-SUMPRODUCT(('Fixed assets'!$Q$2:$Q$1000=Costs!AC$617)*('Fixed assets'!$U$2:$U$1000=Costs!$A679)*('Fixed assets'!$S$2:$S$1000))+SUMPRODUCT(('Fixed assets'!$Q$2:$Q$1000=Costs!AC$617)*('Fixed assets'!$P$2:$P$1000=Costs!$A679)*('Fixed assets'!$U$2:$U$1000=Costs!$A679)*('Fixed assets'!$R$2:$R$1000))","v":0},{"$f":"SUMPRODUCT(('Fixed assets'!$R$2:$R$1000)*('Fixed assets'!$P$2:$P$1000<$A679)*('Fixed assets'!$Q$2:$Q$1000=Costs!AD$617))-SUMPRODUCT(('Fixed assets'!$S$2:$S$1000)*('Fixed assets'!$P$2:$P$1000<Costs!$A679)*('Fixed assets'!$Q$2:$Q$1000=Costs!AD$617))-SUMPRODUCT(('Fixed assets'!$Q$2:$Q$1000=Costs!AD$617)*('Fixed assets'!$U$2:$U$1000=Costs!$A679)*('Fixed assets'!$S$2:$S$1000))+SUMPRODUCT(('Fixed assets'!$Q$2:$Q$1000=Costs!AD$617)*('Fixed assets'!$P$2:$P$1000=Costs!$A679)*('Fixed assets'!$U$2:$U$1000=Costs!$A679)*('Fixed assets'!$R$2:$R$1000))","v":0},{"$f":"SUMPRODUCT(('Fixed assets'!$R$2:$R$1000)*('Fixed assets'!$P$2:$P$1000<$A679)*('Fixed assets'!$Q$2:$Q$1000=Costs!AE$617))-SUMPRODUCT(('Fixed assets'!$S$2:$S$1000)*('Fixed assets'!$P$2:$P$1000<Costs!$A679)*('Fixed assets'!$Q$2:$Q$1000=Costs!AE$617))-SUMPRODUCT(('Fixed assets'!$Q$2:$Q$1000=Costs!AE$617)*('Fixed assets'!$U$2:$U$1000=Costs!$A679)*('Fixed assets'!$S$2:$S$1000))+SUMPRODUCT(('Fixed assets'!$Q$2:$Q$1000=Costs!AE$617)*('Fixed assets'!$P$2:$P$1000=Costs!$A679)*('Fixed assets'!$U$2:$U$1000=Costs!$A679)*('Fixed assets'!$R$2:$R$1000))","v":0},{"$f":"SUMPRODUCT(('Fixed assets'!$R$2:$R$1000)*('Fixed assets'!$P$2:$P$1000<$A679)*('Fixed assets'!$Q$2:$Q$1000=Costs!AF$617))-SUMPRODUCT(('Fixed assets'!$S$2:$S$1000)*('Fixed assets'!$P$2:$P$1000<Costs!$A679)*('Fixed assets'!$Q$2:$Q$1000=Costs!AF$617))-SUMPRODUCT(('Fixed assets'!$Q$2:$Q$1000=Costs!AF$617)*('Fixed assets'!$U$2:$U$1000=Costs!$A679)*('Fixed assets'!$S$2:$S$1000))+SUMPRODUCT(('Fixed assets'!$Q$2:$Q$1000=Costs!AF$617)*('Fixed assets'!$P$2:$P$1000=Costs!$A679)*('Fixed assets'!$U$2:$U$1000=Costs!$A679)*('Fixed assets'!$R$2:$R$1000))","v":0},{"$f":"SUMPRODUCT(('Fixed assets'!$R$2:$R$1000)*('Fixed assets'!$P$2:$P$1000<$A679)*('Fixed assets'!$Q$2:$Q$1000=Costs!AG$617))-SUMPRODUCT(('Fixed assets'!$S$2:$S$1000)*('Fixed assets'!$P$2:$P$1000<Costs!$A679)*('Fixed assets'!$Q$2:$Q$1000=Costs!AG$617))-SUMPRODUCT(('Fixed assets'!$Q$2:$Q$1000=Costs!AG$617)*('Fixed assets'!$U$2:$U$1000=Costs!$A679)*('Fixed assets'!$S$2:$S$1000))+SUMPRODUCT(('Fixed assets'!$Q$2:$Q$1000=Costs!AG$617)*('Fixed assets'!$P$2:$P$1000=Costs!$A679)*('Fixed assets'!$U$2:$U$1000=Costs!$A679)*('Fixed assets'!$R$2:$R$1000))","v":0},{"$f":"SUMPRODUCT(('Fixed assets'!$R$2:$R$1000)*('Fixed assets'!$P$2:$P$1000<$A679)*('Fixed assets'!$Q$2:$Q$1000=Costs!AH$617))-SUMPRODUCT(('Fixed assets'!$S$2:$S$1000)*('Fixed assets'!$P$2:$P$1000<Costs!$A679)*('Fixed assets'!$Q$2:$Q$1000=Costs!AH$617))-SUMPRODUCT(('Fixed assets'!$Q$2:$Q$1000=Costs!AH$617)*('Fixed assets'!$U$2:$U$1000=Costs!$A679)*('Fixed assets'!$S$2:$S$1000))+SUMPRODUCT(('Fixed assets'!$Q$2:$Q$1000=Costs!AH$617)*('Fixed assets'!$P$2:$P$1000=Costs!$A679)*('Fixed assets'!$U$2:$U$1000=Costs!$A679)*('Fixed assets'!$R$2:$R$1000))","v":0},{"$f":"SUMPRODUCT(('Fixed assets'!$R$2:$R$1000)*('Fixed assets'!$P$2:$P$1000<$A679)*('Fixed assets'!$Q$2:$Q$1000=Costs!AI$617))-SUMPRODUCT(('Fixed assets'!$S$2:$S$1000)*('Fixed assets'!$P$2:$P$1000<Costs!$A679)*('Fixed assets'!$Q$2:$Q$1000=Costs!AI$617))-SUMPRODUCT(('Fixed assets'!$Q$2:$Q$1000=Costs!AI$617)*('Fixed assets'!$U$2:$U$1000=Costs!$A679)*('Fixed assets'!$S$2:$S$1000))+SUMPRODUCT(('Fixed assets'!$Q$2:$Q$1000=Costs!AI$617)*('Fixed assets'!$P$2:$P$1000=Costs!$A679)*('Fixed assets'!$U$2:$U$1000=Costs!$A679)*('Fixed assets'!$R$2:$R$1000))","v":0},{"$f":"SUMPRODUCT(('Fixed assets'!$R$2:$R$1000)*('Fixed assets'!$P$2:$P$1000<$A679)*('Fixed assets'!$Q$2:$Q$1000=Costs!AJ$617))-SUMPRODUCT(('Fixed assets'!$S$2:$S$1000)*('Fixed assets'!$P$2:$P$1000<Costs!$A679)*('Fixed assets'!$Q$2:$Q$1000=Costs!AJ$617))-SUMPRODUCT(('Fixed assets'!$Q$2:$Q$1000=Costs!AJ$617)*('Fixed assets'!$U$2:$U$1000=Costs!$A679)*('Fixed assets'!$S$2:$S$1000))+SUMPRODUCT(('Fixed assets'!$Q$2:$Q$1000=Costs!AJ$617)*('Fixed assets'!$P$2:$P$1000=Costs!$A679)*('Fixed assets'!$U$2:$U$1000=Costs!$A679)*('Fixed assets'!$R$2:$R$1000))","v":0},{"$f":"SUMPRODUCT(('Fixed assets'!$R$2:$R$1000)*('Fixed assets'!$P$2:$P$1000<$A679)*('Fixed assets'!$Q$2:$Q$1000=Costs!AK$617))-SUMPRODUCT(('Fixed assets'!$S$2:$S$1000)*('Fixed assets'!$P$2:$P$1000<Costs!$A679)*('Fixed assets'!$Q$2:$Q$1000=Costs!AK$617))-SUMPRODUCT(('Fixed assets'!$Q$2:$Q$1000=Costs!AK$617)*('Fixed assets'!$U$2:$U$1000=Costs!$A679)*('Fixed assets'!$S$2:$S$1000))+SUMPRODUCT(('Fixed assets'!$Q$2:$Q$1000=Costs!AK$617)*('Fixed assets'!$P$2:$P$1000=Costs!$A679)*('Fixed assets'!$U$2:$U$1000=Costs!$A679)*('Fixed assets'!$R$2:$R$1000))","v":0},{"$f":"SUMPRODUCT(('Fixed assets'!$R$2:$R$1000)*('Fixed assets'!$P$2:$P$1000<$A679)*('Fixed assets'!$Q$2:$Q$1000=Costs!AL$617))-SUMPRODUCT(('Fixed assets'!$S$2:$S$1000)*('Fixed assets'!$P$2:$P$1000<Costs!$A679)*('Fixed assets'!$Q$2:$Q$1000=Costs!AL$617))-SUMPRODUCT(('Fixed assets'!$Q$2:$Q$1000=Costs!AL$617)*('Fixed assets'!$U$2:$U$1000=Costs!$A679)*('Fixed assets'!$S$2:$S$1000))+SUMPRODUCT(('Fixed assets'!$Q$2:$Q$1000=Costs!AL$617)*('Fixed assets'!$P$2:$P$1000=Costs!$A679)*('Fixed assets'!$U$2:$U$1000=Costs!$A679)*('Fixed assets'!$R$2:$R$1000))","v":0},{"$f":"SUMPRODUCT(('Fixed assets'!$R$2:$R$1000)*('Fixed assets'!$P$2:$P$1000<$A679)*('Fixed assets'!$Q$2:$Q$1000=Costs!AM$617))-SUMPRODUCT(('Fixed assets'!$S$2:$S$1000)*('Fixed assets'!$P$2:$P$1000<Costs!$A679)*('Fixed assets'!$Q$2:$Q$1000=Costs!AM$617))-SUMPRODUCT(('Fixed assets'!$Q$2:$Q$1000=Costs!AM$617)*('Fixed assets'!$U$2:$U$1000=Costs!$A679)*('Fixed assets'!$S$2:$S$1000))+SUMPRODUCT(('Fixed assets'!$Q$2:$Q$1000=Costs!AM$617)*('Fixed assets'!$P$2:$P$1000=Costs!$A679)*('Fixed assets'!$U$2:$U$1000=Costs!$A679)*('Fixed assets'!$R$2:$R$1000))","v":0},{"$f":"SUMPRODUCT(('Fixed assets'!$R$2:$R$1000)*('Fixed assets'!$P$2:$P$1000<$A679)*('Fixed assets'!$Q$2:$Q$1000=Costs!AN$617))-SUMPRODUCT(('Fixed assets'!$S$2:$S$1000)*('Fixed assets'!$P$2:$P$1000<Costs!$A679)*('Fixed assets'!$Q$2:$Q$1000=Costs!AN$617))-SUMPRODUCT(('Fixed assets'!$Q$2:$Q$1000=Costs!AN$617)*('Fixed assets'!$U$2:$U$1000=Costs!$A679)*('Fixed assets'!$S$2:$S$1000))+SUMPRODUCT(('Fixed assets'!$Q$2:$Q$1000=Costs!AN$617)*('Fixed assets'!$P$2:$P$1000=Costs!$A679)*('Fixed assets'!$U$2:$U$1000=Costs!$A679)*('Fixed assets'!$R$2:$R$1000))","v":0},{"$f":"SUMPRODUCT(('Fixed assets'!$R$2:$R$1000)*('Fixed assets'!$P$2:$P$1000<$A679)*('Fixed assets'!$Q$2:$Q$1000=Costs!AO$617))-SUMPRODUCT(('Fixed assets'!$S$2:$S$1000)*('Fixed assets'!$P$2:$P$1000<Costs!$A679)*('Fixed assets'!$Q$2:$Q$1000=Costs!AO$617))-SUMPRODUCT(('Fixed assets'!$Q$2:$Q$1000=Costs!AO$617)*('Fixed assets'!$U$2:$U$1000=Costs!$A679)*('Fixed assets'!$S$2:$S$1000))+SUMPRODUCT(('Fixed assets'!$Q$2:$Q$1000=Costs!AO$617)*('Fixed assets'!$P$2:$P$1000=Costs!$A679)*('Fixed assets'!$U$2:$U$1000=Costs!$A679)*('Fixed assets'!$R$2:$R$1000))","v":0},{"$f":"SUMPRODUCT(('Fixed assets'!$R$2:$R$1000)*('Fixed assets'!$P$2:$P$1000<$A679)*('Fixed assets'!$Q$2:$Q$1000=Costs!AP$617))-SUMPRODUCT(('Fixed assets'!$S$2:$S$1000)*('Fixed assets'!$P$2:$P$1000<Costs!$A679)*('Fixed assets'!$Q$2:$Q$1000=Costs!AP$617))-SUMPRODUCT(('Fixed assets'!$Q$2:$Q$1000=Costs!AP$617)*('Fixed assets'!$U$2:$U$1000=Costs!$A679)*('Fixed assets'!$S$2:$S$1000))+SUMPRODUCT(('Fixed assets'!$Q$2:$Q$1000=Costs!AP$617)*('Fixed assets'!$P$2:$P$1000=Costs!$A679)*('Fixed assets'!$U$2:$U$1000=Costs!$A679)*('Fixed assets'!$R$2:$R$1000))","v":0},{"$f":"SUMPRODUCT(('Fixed assets'!$R$2:$R$1000)*('Fixed assets'!$P$2:$P$1000<$A679)*('Fixed assets'!$Q$2:$Q$1000=Costs!AQ$617))-SUMPRODUCT(('Fixed assets'!$S$2:$S$1000)*('Fixed assets'!$P$2:$P$1000<Costs!$A679)*('Fixed assets'!$Q$2:$Q$1000=Costs!AQ$617))-SUMPRODUCT(('Fixed assets'!$Q$2:$Q$1000=Costs!AQ$617)*('Fixed assets'!$U$2:$U$1000=Costs!$A679)*('Fixed assets'!$S$2:$S$1000))+SUMPRODUCT(('Fixed assets'!$Q$2:$Q$1000=Costs!AQ$617)*('Fixed assets'!$P$2:$P$1000=Costs!$A679)*('Fixed assets'!$U$2:$U$1000=Costs!$A679)*('Fixed assets'!$R$2:$R$1000))","v":0}]
[2077,0,{"$f":"SUMPRODUCT(('Fixed assets'!$R$2:$R$1000)*('Fixed assets'!$P$2:$P$1000<$A680)*('Fixed assets'!$Q$2:$Q$1000=Costs!C$617))-SUMPRODUCT(('Fixed assets'!$S$2:$S$1000)*('Fixed assets'!$P$2:$P$1000<Costs!$A680)*('Fixed assets'!$Q$2:$Q$1000=Costs!C$617))-SUMPRODUCT(('Fixed assets'!$Q$2:$Q$1000=Costs!C$617)*('Fixed assets'!$U$2:$U$1000=Costs!$A680)*('Fixed assets'!$S$2:$S$1000))+SUMPRODUCT(('Fixed assets'!$Q$2:$Q$1000=Costs!C$617)*('Fixed assets'!$P$2:$P$1000=Costs!$A680)*('Fixed assets'!$U$2:$U$1000=Costs!$A680)*('Fixed assets'!$R$2:$R$1000))","v":0},{"$f":"SUMPRODUCT(('Fixed assets'!$R$2:$R$1000)*('Fixed assets'!$P$2:$P$1000<$A680)*('Fixed assets'!$Q$2:$Q$1000=Costs!D$617))-SUMPRODUCT(('Fixed assets'!$S$2:$S$1000)*('Fixed assets'!$P$2:$P$1000<Costs!$A680)*('Fixed assets'!$Q$2:$Q$1000=Costs!D$617))-SUMPRODUCT(('Fixed assets'!$Q$2:$Q$1000=Costs!D$617)*('Fixed assets'!$U$2:$U$1000=Costs!$A680)*('Fixed assets'!$S$2:$S$1000))+SUMPRODUCT(('Fixed assets'!$Q$2:$Q$1000=Costs!D$617)*('Fixed assets'!$P$2:$P$1000=Costs!$A680)*('Fixed assets'!$U$2:$U$1000=Costs!$A680)*('Fixed assets'!$R$2:$R$1000))","v":0},{"$f":"SUMPRODUCT(('Fixed assets'!$R$2:$R$1000)*('Fixed assets'!$P$2:$P$1000<$A680)*('Fixed assets'!$Q$2:$Q$1000=Costs!E$617))-SUMPRODUCT(('Fixed assets'!$S$2:$S$1000)*('Fixed assets'!$P$2:$P$1000<Costs!$A680)*('Fixed assets'!$Q$2:$Q$1000=Costs!E$617))-SUMPRODUCT(('Fixed assets'!$Q$2:$Q$1000=Costs!E$617)*('Fixed assets'!$U$2:$U$1000=Costs!$A680)*('Fixed assets'!$S$2:$S$1000))+SUMPRODUCT(('Fixed assets'!$Q$2:$Q$1000=Costs!E$617)*('Fixed assets'!$P$2:$P$1000=Costs!$A680)*('Fixed assets'!$U$2:$U$1000=Costs!$A680)*('Fixed assets'!$R$2:$R$1000))","v":0},{"$f":"SUMPRODUCT(('Fixed assets'!$R$2:$R$1000)*('Fixed assets'!$P$2:$P$1000<$A680)*('Fixed assets'!$Q$2:$Q$1000=Costs!F$617))-SUMPRODUCT(('Fixed assets'!$S$2:$S$1000)*('Fixed assets'!$P$2:$P$1000<Costs!$A680)*('Fixed assets'!$Q$2:$Q$1000=Costs!F$617))-SUMPRODUCT(('Fixed assets'!$Q$2:$Q$1000=Costs!F$617)*('Fixed assets'!$U$2:$U$1000=Costs!$A680)*('Fixed assets'!$S$2:$S$1000))+SUMPRODUCT(('Fixed assets'!$Q$2:$Q$1000=Costs!F$617)*('Fixed assets'!$P$2:$P$1000=Costs!$A680)*('Fixed assets'!$U$2:$U$1000=Costs!$A680)*('Fixed assets'!$R$2:$R$1000))","v":0},{"$f":"SUMPRODUCT(('Fixed assets'!$R$2:$R$1000)*('Fixed assets'!$P$2:$P$1000<$A680)*('Fixed assets'!$Q$2:$Q$1000=Costs!G$617))-SUMPRODUCT(('Fixed assets'!$S$2:$S$1000)*('Fixed assets'!$P$2:$P$1000<Costs!$A680)*('Fixed assets'!$Q$2:$Q$1000=Costs!G$617))-SUMPRODUCT(('Fixed assets'!$Q$2:$Q$1000=Costs!G$617)*('Fixed assets'!$U$2:$U$1000=Costs!$A680)*('Fixed assets'!$S$2:$S$1000))+SUMPRODUCT(('Fixed assets'!$Q$2:$Q$1000=Costs!G$617)*('Fixed assets'!$P$2:$P$1000=Costs!$A680)*('Fixed assets'!$U$2:$U$1000=Costs!$A680)*('Fixed assets'!$R$2:$R$1000))","v":0},{"$f":"SUMPRODUCT(('Fixed assets'!$R$2:$R$1000)*('Fixed assets'!$P$2:$P$1000<$A680)*('Fixed assets'!$Q$2:$Q$1000=Costs!H$617))-SUMPRODUCT(('Fixed assets'!$S$2:$S$1000)*('Fixed assets'!$P$2:$P$1000<Costs!$A680)*('Fixed assets'!$Q$2:$Q$1000=Costs!H$617))-SUMPRODUCT(('Fixed assets'!$Q$2:$Q$1000=Costs!H$617)*('Fixed assets'!$U$2:$U$1000=Costs!$A680)*('Fixed assets'!$S$2:$S$1000))+SUMPRODUCT(('Fixed assets'!$Q$2:$Q$1000=Costs!H$617)*('Fixed assets'!$P$2:$P$1000=Costs!$A680)*('Fixed assets'!$U$2:$U$1000=Costs!$A680)*('Fixed assets'!$R$2:$R$1000))","v":0},{"$f":"SUMPRODUCT(('Fixed assets'!$R$2:$R$1000)*('Fixed assets'!$P$2:$P$1000<$A680)*('Fixed assets'!$Q$2:$Q$1000=Costs!I$617))-SUMPRODUCT(('Fixed assets'!$S$2:$S$1000)*('Fixed assets'!$P$2:$P$1000<Costs!$A680)*('Fixed assets'!$Q$2:$Q$1000=Costs!I$617))-SUMPRODUCT(('Fixed assets'!$Q$2:$Q$1000=Costs!I$617)*('Fixed assets'!$U$2:$U$1000=Costs!$A680)*('Fixed assets'!$S$2:$S$1000))+SUMPRODUCT(('Fixed assets'!$Q$2:$Q$1000=Costs!I$617)*('Fixed assets'!$P$2:$P$1000=Costs!$A680)*('Fixed assets'!$U$2:$U$1000=Costs!$A680)*('Fixed assets'!$R$2:$R$1000))","v":0},{"$f":"SUMPRODUCT(('Fixed assets'!$R$2:$R$1000)*('Fixed assets'!$P$2:$P$1000<$A680)*('Fixed assets'!$Q$2:$Q$1000=Costs!J$617))-SUMPRODUCT(('Fixed assets'!$S$2:$S$1000)*('Fixed assets'!$P$2:$P$1000<Costs!$A680)*('Fixed assets'!$Q$2:$Q$1000=Costs!J$617))-SUMPRODUCT(('Fixed assets'!$Q$2:$Q$1000=Costs!J$617)*('Fixed assets'!$U$2:$U$1000=Costs!$A680)*('Fixed assets'!$S$2:$S$1000))+SUMPRODUCT(('Fixed assets'!$Q$2:$Q$1000=Costs!J$617)*('Fixed assets'!$P$2:$P$1000=Costs!$A680)*('Fixed assets'!$U$2:$U$1000=Costs!$A680)*('Fixed assets'!$R$2:$R$1000))","v":0},{"$f":"SUMPRODUCT(('Fixed assets'!$R$2:$R$1000)*('Fixed assets'!$P$2:$P$1000<$A680)*('Fixed assets'!$Q$2:$Q$1000=Costs!K$617))-SUMPRODUCT(('Fixed assets'!$S$2:$S$1000)*('Fixed assets'!$P$2:$P$1000<Costs!$A680)*('Fixed assets'!$Q$2:$Q$1000=Costs!K$617))-SUMPRODUCT(('Fixed assets'!$Q$2:$Q$1000=Costs!K$617)*('Fixed assets'!$U$2:$U$1000=Costs!$A680)*('Fixed assets'!$S$2:$S$1000))+SUMPRODUCT(('Fixed assets'!$Q$2:$Q$1000=Costs!K$617)*('Fixed assets'!$P$2:$P$1000=Costs!$A680)*('Fixed assets'!$U$2:$U$1000=Costs!$A680)*('Fixed assets'!$R$2:$R$1000))","v":0},{"$f":"SUMPRODUCT(('Fixed assets'!$R$2:$R$1000)*('Fixed assets'!$P$2:$P$1000<$A680)*('Fixed assets'!$Q$2:$Q$1000=Costs!L$617))-SUMPRODUCT(('Fixed assets'!$S$2:$S$1000)*('Fixed assets'!$P$2:$P$1000<Costs!$A680)*('Fixed assets'!$Q$2:$Q$1000=Costs!L$617))-SUMPRODUCT(('Fixed assets'!$Q$2:$Q$1000=Costs!L$617)*('Fixed assets'!$U$2:$U$1000=Costs!$A680)*('Fixed assets'!$S$2:$S$1000))+SUMPRODUCT(('Fixed assets'!$Q$2:$Q$1000=Costs!L$617)*('Fixed assets'!$P$2:$P$1000=Costs!$A680)*('Fixed assets'!$U$2:$U$1000=Costs!$A680)*('Fixed assets'!$R$2:$R$1000))","v":0},{"$f":"SUMPRODUCT(('Fixed assets'!$R$2:$R$1000)*('Fixed assets'!$P$2:$P$1000<$A680)*('Fixed assets'!$Q$2:$Q$1000=Costs!M$617))-SUMPRODUCT(('Fixed assets'!$S$2:$S$1000)*('Fixed assets'!$P$2:$P$1000<Costs!$A680)*('Fixed assets'!$Q$2:$Q$1000=Costs!M$617))-SUMPRODUCT(('Fixed assets'!$Q$2:$Q$1000=Costs!M$617)*('Fixed assets'!$U$2:$U$1000=Costs!$A680)*('Fixed assets'!$S$2:$S$1000))+SUMPRODUCT(('Fixed assets'!$Q$2:$Q$1000=Costs!M$617)*('Fixed assets'!$P$2:$P$1000=Costs!$A680)*('Fixed assets'!$U$2:$U$1000=Costs!$A680)*('Fixed assets'!$R$2:$R$1000))","v":0},{"$f":"SUMPRODUCT(('Fixed assets'!$R$2:$R$1000)*('Fixed assets'!$P$2:$P$1000<$A680)*('Fixed assets'!$Q$2:$Q$1000=Costs!N$617))-SUMPRODUCT(('Fixed assets'!$S$2:$S$1000)*('Fixed assets'!$P$2:$P$1000<Costs!$A680)*('Fixed assets'!$Q$2:$Q$1000=Costs!N$617))-SUMPRODUCT(('Fixed assets'!$Q$2:$Q$1000=Costs!N$617)*('Fixed assets'!$U$2:$U$1000=Costs!$A680)*('Fixed assets'!$S$2:$S$1000))+SUMPRODUCT(('Fixed assets'!$Q$2:$Q$1000=Costs!N$617)*('Fixed assets'!$P$2:$P$1000=Costs!$A680)*('Fixed assets'!$U$2:$U$1000=Costs!$A680)*('Fixed assets'!$R$2:$R$1000))","v":0},{"$f":"SUMPRODUCT(('Fixed assets'!$R$2:$R$1000)*('Fixed assets'!$P$2:$P$1000<$A680)*('Fixed assets'!$Q$2:$Q$1000=Costs!O$617))-SUMPRODUCT(('Fixed assets'!$S$2:$S$1000)*('Fixed assets'!$P$2:$P$1000<Costs!$A680)*('Fixed assets'!$Q$2:$Q$1000=Costs!O$617))-SUMPRODUCT(('Fixed assets'!$Q$2:$Q$1000=Costs!O$617)*('Fixed assets'!$U$2:$U$1000=Costs!$A680)*('Fixed assets'!$S$2:$S$1000))+SUMPRODUCT(('Fixed assets'!$Q$2:$Q$1000=Costs!O$617)*('Fixed assets'!$P$2:$P$1000=Costs!$A680)*('Fixed assets'!$U$2:$U$1000=Costs!$A680)*('Fixed assets'!$R$2:$R$1000))","v":0},{"$f":"SUMPRODUCT(('Fixed assets'!$R$2:$R$1000)*('Fixed assets'!$P$2:$P$1000<$A680)*('Fixed assets'!$Q$2:$Q$1000=Costs!P$617))-SUMPRODUCT(('Fixed assets'!$S$2:$S$1000)*('Fixed assets'!$P$2:$P$1000<Costs!$A680)*('Fixed assets'!$Q$2:$Q$1000=Costs!P$617))-SUMPRODUCT(('Fixed assets'!$Q$2:$Q$1000=Costs!P$617)*('Fixed assets'!$U$2:$U$1000=Costs!$A680)*('Fixed assets'!$S$2:$S$1000))+SUMPRODUCT(('Fixed assets'!$Q$2:$Q$1000=Costs!P$617)*('Fixed assets'!$P$2:$P$1000=Costs!$A680)*('Fixed assets'!$U$2:$U$1000=Costs!$A680)*('Fixed assets'!$R$2:$R$1000))","v":0},{"$f":"SUMPRODUCT(('Fixed assets'!$R$2:$R$1000)*('Fixed assets'!$P$2:$P$1000<$A680)*('Fixed assets'!$Q$2:$Q$1000=Costs!Q$617))-SUMPRODUCT(('Fixed assets'!$S$2:$S$1000)*('Fixed assets'!$P$2:$P$1000<Costs!$A680)*('Fixed assets'!$Q$2:$Q$1000=Costs!Q$617))-SUMPRODUCT(('Fixed assets'!$Q$2:$Q$1000=Costs!Q$617)*('Fixed assets'!$U$2:$U$1000=Costs!$A680)*('Fixed assets'!$S$2:$S$1000))+SUMPRODUCT(('Fixed assets'!$Q$2:$Q$1000=Costs!Q$617)*('Fixed assets'!$P$2:$P$1000=Costs!$A680)*('Fixed assets'!$U$2:$U$1000=Costs!$A680)*('Fixed assets'!$R$2:$R$1000))","v":0},{"$f":"SUMPRODUCT(('Fixed assets'!$R$2:$R$1000)*('Fixed assets'!$P$2:$P$1000<$A680)*('Fixed assets'!$Q$2:$Q$1000=Costs!R$617))-SUMPRODUCT(('Fixed assets'!$S$2:$S$1000)*('Fixed assets'!$P$2:$P$1000<Costs!$A680)*('Fixed assets'!$Q$2:$Q$1000=Costs!R$617))-SUMPRODUCT(('Fixed assets'!$Q$2:$Q$1000=Costs!R$617)*('Fixed assets'!$U$2:$U$1000=Costs!$A680)*('Fixed assets'!$S$2:$S$1000))+SUMPRODUCT(('Fixed assets'!$Q$2:$Q$1000=Costs!R$617)*('Fixed assets'!$P$2:$P$1000=Costs!$A680)*('Fixed assets'!$U$2:$U$1000=Costs!$A680)*('Fixed assets'!$R$2:$R$1000))","v":0},{"$f":"SUMPRODUCT(('Fixed assets'!$R$2:$R$1000)*('Fixed assets'!$P$2:$P$1000<$A680)*('Fixed assets'!$Q$2:$Q$1000=Costs!S$617))-SUMPRODUCT(('Fixed assets'!$S$2:$S$1000)*('Fixed assets'!$P$2:$P$1000<Costs!$A680)*('Fixed assets'!$Q$2:$Q$1000=Costs!S$617))-SUMPRODUCT(('Fixed assets'!$Q$2:$Q$1000=Costs!S$617)*('Fixed assets'!$U$2:$U$1000=Costs!$A680)*('Fixed assets'!$S$2:$S$1000))+SUMPRODUCT(('Fixed assets'!$Q$2:$Q$1000=Costs!S$617)*('Fixed assets'!$P$2:$P$1000=Costs!$A680)*('Fixed assets'!$U$2:$U$1000=Costs!$A680)*('Fixed assets'!$R$2:$R$1000))","v":0},{"$f":"SUMPRODUCT(('Fixed assets'!$R$2:$R$1000)*('Fixed assets'!$P$2:$P$1000<$A680)*('Fixed assets'!$Q$2:$Q$1000=Costs!T$617))-SUMPRODUCT(('Fixed assets'!$S$2:$S$1000)*('Fixed assets'!$P$2:$P$1000<Costs!$A680)*('Fixed assets'!$Q$2:$Q$1000=Costs!T$617))-SUMPRODUCT(('Fixed assets'!$Q$2:$Q$1000=Costs!T$617)*('Fixed assets'!$U$2:$U$1000=Costs!$A680)*('Fixed assets'!$S$2:$S$1000))+SUMPRODUCT(('Fixed assets'!$Q$2:$Q$1000=Costs!T$617)*('Fixed assets'!$P$2:$P$1000=Costs!$A680)*('Fixed assets'!$U$2:$U$1000=Costs!$A680)*('Fixed assets'!$R$2:$R$1000))","v":0},{"$f":"SUMPRODUCT(('Fixed assets'!$R$2:$R$1000)*('Fixed assets'!$P$2:$P$1000<$A680)*('Fixed assets'!$Q$2:$Q$1000=Costs!U$617))-SUMPRODUCT(('Fixed assets'!$S$2:$S$1000)*('Fixed assets'!$P$2:$P$1000<Costs!$A680)*('Fixed assets'!$Q$2:$Q$1000=Costs!U$617))-SUMPRODUCT(('Fixed assets'!$Q$2:$Q$1000=Costs!U$617)*('Fixed assets'!$U$2:$U$1000=Costs!$A680)*('Fixed assets'!$S$2:$S$1000))+SUMPRODUCT(('Fixed assets'!$Q$2:$Q$1000=Costs!U$617)*('Fixed assets'!$P$2:$P$1000=Costs!$A680)*('Fixed assets'!$U$2:$U$1000=Costs!$A680)*('Fixed assets'!$R$2:$R$1000))","v":0},{"$f":"SUMPRODUCT(('Fixed assets'!$R$2:$R$1000)*('Fixed assets'!$P$2:$P$1000<$A680)*('Fixed assets'!$Q$2:$Q$1000=Costs!V$617))-SUMPRODUCT(('Fixed assets'!$S$2:$S$1000)*('Fixed assets'!$P$2:$P$1000<Costs!$A680)*('Fixed assets'!$Q$2:$Q$1000=Costs!V$617))-SUMPRODUCT(('Fixed assets'!$Q$2:$Q$1000=Costs!V$617)*('Fixed assets'!$U$2:$U$1000=Costs!$A680)*('Fixed assets'!$S$2:$S$1000))+SUMPRODUCT(('Fixed assets'!$Q$2:$Q$1000=Costs!V$617)*('Fixed assets'!$P$2:$P$1000=Costs!$A680)*('Fixed assets'!$U$2:$U$1000=Costs!$A680)*('Fixed assets'!$R$2:$R$1000))","v":0},{"$f":"SUMPRODUCT(('Fixed assets'!$R$2:$R$1000)*('Fixed assets'!$P$2:$P$1000<$A680)*('Fixed assets'!$Q$2:$Q$1000=Costs!W$617))-SUMPRODUCT(('Fixed assets'!$S$2:$S$1000)*('Fixed assets'!$P$2:$P$1000<Costs!$A680)*('Fixed assets'!$Q$2:$Q$1000=Costs!W$617))-SUMPRODUCT(('Fixed assets'!$Q$2:$Q$1000=Costs!W$617)*('Fixed assets'!$U$2:$U$1000=Costs!$A680)*('Fixed assets'!$S$2:$S$1000))+SUMPRODUCT(('Fixed assets'!$Q$2:$Q$1000=Costs!W$617)*('Fixed assets'!$P$2:$P$1000=Costs!$A680)*('Fixed assets'!$U$2:$U$1000=Costs!$A680)*('Fixed assets'!$R$2:$R$1000))","v":0},{"$f":"SUMPRODUCT(('Fixed assets'!$R$2:$R$1000)*('Fixed assets'!$P$2:$P$1000<$A680)*('Fixed assets'!$Q$2:$Q$1000=Costs!X$617))-SUMPRODUCT(('Fixed assets'!$S$2:$S$1000)*('Fixed assets'!$P$2:$P$1000<Costs!$A680)*('Fixed assets'!$Q$2:$Q$1000=Costs!X$617))-SUMPRODUCT(('Fixed assets'!$Q$2:$Q$1000=Costs!X$617)*('Fixed assets'!$U$2:$U$1000=Costs!$A680)*('Fixed assets'!$S$2:$S$1000))+SUMPRODUCT(('Fixed assets'!$Q$2:$Q$1000=Costs!X$617)*('Fixed assets'!$P$2:$P$1000=Costs!$A680)*('Fixed assets'!$U$2:$U$1000=Costs!$A680)*('Fixed assets'!$R$2:$R$1000))","v":0},{"$f":"SUMPRODUCT(('Fixed assets'!$R$2:$R$1000)*('Fixed assets'!$P$2:$P$1000<$A680)*('Fixed assets'!$Q$2:$Q$1000=Costs!Y$617))-SUMPRODUCT(('Fixed assets'!$S$2:$S$1000)*('Fixed assets'!$P$2:$P$1000<Costs!$A680)*('Fixed assets'!$Q$2:$Q$1000=Costs!Y$617))-SUMPRODUCT(('Fixed assets'!$Q$2:$Q$1000=Costs!Y$617)*('Fixed assets'!$U$2:$U$1000=Costs!$A680)*('Fixed assets'!$S$2:$S$1000))+SUMPRODUCT(('Fixed assets'!$Q$2:$Q$1000=Costs!Y$617)*('Fixed assets'!$P$2:$P$1000=Costs!$A680)*('Fixed assets'!$U$2:$U$1000=Costs!$A680)*('Fixed assets'!$R$2:$R$1000))","v":0},{"$f":"SUMPRODUCT(('Fixed assets'!$R$2:$R$1000)*('Fixed assets'!$P$2:$P$1000<$A680)*('Fixed assets'!$Q$2:$Q$1000=Costs!Z$617))-SUMPRODUCT(('Fixed assets'!$S$2:$S$1000)*('Fixed assets'!$P$2:$P$1000<Costs!$A680)*('Fixed assets'!$Q$2:$Q$1000=Costs!Z$617))-SUMPRODUCT(('Fixed assets'!$Q$2:$Q$1000=Costs!Z$617)*('Fixed assets'!$U$2:$U$1000=Costs!$A680)*('Fixed assets'!$S$2:$S$1000))+SUMPRODUCT(('Fixed assets'!$Q$2:$Q$1000=Costs!Z$617)*('Fixed assets'!$P$2:$P$1000=Costs!$A680)*('Fixed assets'!$U$2:$U$1000=Costs!$A680)*('Fixed assets'!$R$2:$R$1000))","v":0},{"$f":"SUMPRODUCT(('Fixed assets'!$R$2:$R$1000)*('Fixed assets'!$P$2:$P$1000<$A680)*('Fixed assets'!$Q$2:$Q$1000=Costs!AA$617))-SUMPRODUCT(('Fixed assets'!$S$2:$S$1000)*('Fixed assets'!$P$2:$P$1000<Costs!$A680)*('Fixed assets'!$Q$2:$Q$1000=Costs!AA$617))-SUMPRODUCT(('Fixed assets'!$Q$2:$Q$1000=Costs!AA$617)*('Fixed assets'!$U$2:$U$1000=Costs!$A680)*('Fixed assets'!$S$2:$S$1000))+SUMPRODUCT(('Fixed assets'!$Q$2:$Q$1000=Costs!AA$617)*('Fixed assets'!$P$2:$P$1000=Costs!$A680)*('Fixed assets'!$U$2:$U$1000=Costs!$A680)*('Fixed assets'!$R$2:$R$1000))","v":0},{"$f":"SUMPRODUCT(('Fixed assets'!$R$2:$R$1000)*('Fixed assets'!$P$2:$P$1000<$A680)*('Fixed assets'!$Q$2:$Q$1000=Costs!AB$617))-SUMPRODUCT(('Fixed assets'!$S$2:$S$1000)*('Fixed assets'!$P$2:$P$1000<Costs!$A680)*('Fixed assets'!$Q$2:$Q$1000=Costs!AB$617))-SUMPRODUCT(('Fixed assets'!$Q$2:$Q$1000=Costs!AB$617)*('Fixed assets'!$U$2:$U$1000=Costs!$A680)*('Fixed assets'!$S$2:$S$1000))+SUMPRODUCT(('Fixed assets'!$Q$2:$Q$1000=Costs!AB$617)*('Fixed assets'!$P$2:$P$1000=Costs!$A680)*('Fixed assets'!$U$2:$U$1000=Costs!$A680)*('Fixed assets'!$R$2:$R$1000))","v":0},{"$f":"SUMPRODUCT(('Fixed assets'!$R$2:$R$1000)*('Fixed assets'!$P$2:$P$1000<$A680)*('Fixed assets'!$Q$2:$Q$1000=Costs!AC$617))-SUMPRODUCT(('Fixed assets'!$S$2:$S$1000)*('Fixed assets'!$P$2:$P$1000<Costs!$A680)*('Fixed assets'!$Q$2:$Q$1000=Costs!AC$617))-SUMPRODUCT(('Fixed assets'!$Q$2:$Q$1000=Costs!AC$617)*('Fixed assets'!$U$2:$U$1000=Costs!$A680)*('Fixed assets'!$S$2:$S$1000))+SUMPRODUCT(('Fixed assets'!$Q$2:$Q$1000=Costs!AC$617)*('Fixed assets'!$P$2:$P$1000=Costs!$A680)*('Fixed assets'!$U$2:$U$1000=Costs!$A680)*('Fixed assets'!$R$2:$R$1000))","v":0},{"$f":"SUMPRODUCT(('Fixed assets'!$R$2:$R$1000)*('Fixed assets'!$P$2:$P$1000<$A680)*('Fixed assets'!$Q$2:$Q$1000=Costs!AD$617))-SUMPRODUCT(('Fixed assets'!$S$2:$S$1000)*('Fixed assets'!$P$2:$P$1000<Costs!$A680)*('Fixed assets'!$Q$2:$Q$1000=Costs!AD$617))-SUMPRODUCT(('Fixed assets'!$Q$2:$Q$1000=Costs!AD$617)*('Fixed assets'!$U$2:$U$1000=Costs!$A680)*('Fixed assets'!$S$2:$S$1000))+SUMPRODUCT(('Fixed assets'!$Q$2:$Q$1000=Costs!AD$617)*('Fixed assets'!$P$2:$P$1000=Costs!$A680)*('Fixed assets'!$U$2:$U$1000=Costs!$A680)*('Fixed assets'!$R$2:$R$1000))","v":0},{"$f":"SUMPRODUCT(('Fixed assets'!$R$2:$R$1000)*('Fixed assets'!$P$2:$P$1000<$A680)*('Fixed assets'!$Q$2:$Q$1000=Costs!AE$617))-SUMPRODUCT(('Fixed assets'!$S$2:$S$1000)*('Fixed assets'!$P$2:$P$1000<Costs!$A680)*('Fixed assets'!$Q$2:$Q$1000=Costs!AE$617))-SUMPRODUCT(('Fixed assets'!$Q$2:$Q$1000=Costs!AE$617)*('Fixed assets'!$U$2:$U$1000=Costs!$A680)*('Fixed assets'!$S$2:$S$1000))+SUMPRODUCT(('Fixed assets'!$Q$2:$Q$1000=Costs!AE$617)*('Fixed assets'!$P$2:$P$1000=Costs!$A680)*('Fixed assets'!$U$2:$U$1000=Costs!$A680)*('Fixed assets'!$R$2:$R$1000))","v":0},{"$f":"SUMPRODUCT(('Fixed assets'!$R$2:$R$1000)*('Fixed assets'!$P$2:$P$1000<$A680)*('Fixed assets'!$Q$2:$Q$1000=Costs!AF$617))-SUMPRODUCT(('Fixed assets'!$S$2:$S$1000)*('Fixed assets'!$P$2:$P$1000<Costs!$A680)*('Fixed assets'!$Q$2:$Q$1000=Costs!AF$617))-SUMPRODUCT(('Fixed assets'!$Q$2:$Q$1000=Costs!AF$617)*('Fixed assets'!$U$2:$U$1000=Costs!$A680)*('Fixed assets'!$S$2:$S$1000))+SUMPRODUCT(('Fixed assets'!$Q$2:$Q$1000=Costs!AF$617)*('Fixed assets'!$P$2:$P$1000=Costs!$A680)*('Fixed assets'!$U$2:$U$1000=Costs!$A680)*('Fixed assets'!$R$2:$R$1000))","v":0},{"$f":"SUMPRODUCT(('Fixed assets'!$R$2:$R$1000)*('Fixed assets'!$P$2:$P$1000<$A680)*('Fixed assets'!$Q$2:$Q$1000=Costs!AG$617))-SUMPRODUCT(('Fixed assets'!$S$2:$S$1000)*('Fixed assets'!$P$2:$P$1000<Costs!$A680)*('Fixed assets'!$Q$2:$Q$1000=Costs!AG$617))-SUMPRODUCT(('Fixed assets'!$Q$2:$Q$1000=Costs!AG$617)*('Fixed assets'!$U$2:$U$1000=Costs!$A680)*('Fixed assets'!$S$2:$S$1000))+SUMPRODUCT(('Fixed assets'!$Q$2:$Q$1000=Costs!AG$617)*('Fixed assets'!$P$2:$P$1000=Costs!$A680)*('Fixed assets'!$U$2:$U$1000=Costs!$A680)*('Fixed assets'!$R$2:$R$1000))","v":0},{"$f":"SUMPRODUCT(('Fixed assets'!$R$2:$R$1000)*('Fixed assets'!$P$2:$P$1000<$A680)*('Fixed assets'!$Q$2:$Q$1000=Costs!AH$617))-SUMPRODUCT(('Fixed assets'!$S$2:$S$1000)*('Fixed assets'!$P$2:$P$1000<Costs!$A680)*('Fixed assets'!$Q$2:$Q$1000=Costs!AH$617))-SUMPRODUCT(('Fixed assets'!$Q$2:$Q$1000=Costs!AH$617)*('Fixed assets'!$U$2:$U$1000=Costs!$A680)*('Fixed assets'!$S$2:$S$1000))+SUMPRODUCT(('Fixed assets'!$Q$2:$Q$1000=Costs!AH$617)*('Fixed assets'!$P$2:$P$1000=Costs!$A680)*('Fixed assets'!$U$2:$U$1000=Costs!$A680)*('Fixed assets'!$R$2:$R$1000))","v":0},{"$f":"SUMPRODUCT(('Fixed assets'!$R$2:$R$1000)*('Fixed assets'!$P$2:$P$1000<$A680)*('Fixed assets'!$Q$2:$Q$1000=Costs!AI$617))-SUMPRODUCT(('Fixed assets'!$S$2:$S$1000)*('Fixed assets'!$P$2:$P$1000<Costs!$A680)*('Fixed assets'!$Q$2:$Q$1000=Costs!AI$617))-SUMPRODUCT(('Fixed assets'!$Q$2:$Q$1000=Costs!AI$617)*('Fixed assets'!$U$2:$U$1000=Costs!$A680)*('Fixed assets'!$S$2:$S$1000))+SUMPRODUCT(('Fixed assets'!$Q$2:$Q$1000=Costs!AI$617)*('Fixed assets'!$P$2:$P$1000=Costs!$A680)*('Fixed assets'!$U$2:$U$1000=Costs!$A680)*('Fixed assets'!$R$2:$R$1000))","v":0},{"$f":"SUMPRODUCT(('Fixed assets'!$R$2:$R$1000)*('Fixed assets'!$P$2:$P$1000<$A680)*('Fixed assets'!$Q$2:$Q$1000=Costs!AJ$617))-SUMPRODUCT(('Fixed assets'!$S$2:$S$1000)*('Fixed assets'!$P$2:$P$1000<Costs!$A680)*('Fixed assets'!$Q$2:$Q$1000=Costs!AJ$617))-SUMPRODUCT(('Fixed assets'!$Q$2:$Q$1000=Costs!AJ$617)*('Fixed assets'!$U$2:$U$1000=Costs!$A680)*('Fixed assets'!$S$2:$S$1000))+SUMPRODUCT(('Fixed assets'!$Q$2:$Q$1000=Costs!AJ$617)*('Fixed assets'!$P$2:$P$1000=Costs!$A680)*('Fixed assets'!$U$2:$U$1000=Costs!$A680)*('Fixed assets'!$R$2:$R$1000))","v":0},{"$f":"SUMPRODUCT(('Fixed assets'!$R$2:$R$1000)*('Fixed assets'!$P$2:$P$1000<$A680)*('Fixed assets'!$Q$2:$Q$1000=Costs!AK$617))-SUMPRODUCT(('Fixed assets'!$S$2:$S$1000)*('Fixed assets'!$P$2:$P$1000<Costs!$A680)*('Fixed assets'!$Q$2:$Q$1000=Costs!AK$617))-SUMPRODUCT(('Fixed assets'!$Q$2:$Q$1000=Costs!AK$617)*('Fixed assets'!$U$2:$U$1000=Costs!$A680)*('Fixed assets'!$S$2:$S$1000))+SUMPRODUCT(('Fixed assets'!$Q$2:$Q$1000=Costs!AK$617)*('Fixed assets'!$P$2:$P$1000=Costs!$A680)*('Fixed assets'!$U$2:$U$1000=Costs!$A680)*('Fixed assets'!$R$2:$R$1000))","v":0},{"$f":"SUMPRODUCT(('Fixed assets'!$R$2:$R$1000)*('Fixed assets'!$P$2:$P$1000<$A680)*('Fixed assets'!$Q$2:$Q$1000=Costs!AL$617))-SUMPRODUCT(('Fixed assets'!$S$2:$S$1000)*('Fixed assets'!$P$2:$P$1000<Costs!$A680)*('Fixed assets'!$Q$2:$Q$1000=Costs!AL$617))-SUMPRODUCT(('Fixed assets'!$Q$2:$Q$1000=Costs!AL$617)*('Fixed assets'!$U$2:$U$1000=Costs!$A680)*('Fixed assets'!$S$2:$S$1000))+SUMPRODUCT(('Fixed assets'!$Q$2:$Q$1000=Costs!AL$617)*('Fixed assets'!$P$2:$P$1000=Costs!$A680)*('Fixed assets'!$U$2:$U$1000=Costs!$A680)*('Fixed assets'!$R$2:$R$1000))","v":0},{"$f":"SUMPRODUCT(('Fixed assets'!$R$2:$R$1000)*('Fixed assets'!$P$2:$P$1000<$A680)*('Fixed assets'!$Q$2:$Q$1000=Costs!AM$617))-SUMPRODUCT(('Fixed assets'!$S$2:$S$1000)*('Fixed assets'!$P$2:$P$1000<Costs!$A680)*('Fixed assets'!$Q$2:$Q$1000=Costs!AM$617))-SUMPRODUCT(('Fixed assets'!$Q$2:$Q$1000=Costs!AM$617)*('Fixed assets'!$U$2:$U$1000=Costs!$A680)*('Fixed assets'!$S$2:$S$1000))+SUMPRODUCT(('Fixed assets'!$Q$2:$Q$1000=Costs!AM$617)*('Fixed assets'!$P$2:$P$1000=Costs!$A680)*('Fixed assets'!$U$2:$U$1000=Costs!$A680)*('Fixed assets'!$R$2:$R$1000))","v":0},{"$f":"SUMPRODUCT(('Fixed assets'!$R$2:$R$1000)*('Fixed assets'!$P$2:$P$1000<$A680)*('Fixed assets'!$Q$2:$Q$1000=Costs!AN$617))-SUMPRODUCT(('Fixed assets'!$S$2:$S$1000)*('Fixed assets'!$P$2:$P$1000<Costs!$A680)*('Fixed assets'!$Q$2:$Q$1000=Costs!AN$617))-SUMPRODUCT(('Fixed assets'!$Q$2:$Q$1000=Costs!AN$617)*('Fixed assets'!$U$2:$U$1000=Costs!$A680)*('Fixed assets'!$S$2:$S$1000))+SUMPRODUCT(('Fixed assets'!$Q$2:$Q$1000=Costs!AN$617)*('Fixed assets'!$P$2:$P$1000=Costs!$A680)*('Fixed assets'!$U$2:$U$1000=Costs!$A680)*('Fixed assets'!$R$2:$R$1000))","v":0},{"$f":"SUMPRODUCT(('Fixed assets'!$R$2:$R$1000)*('Fixed assets'!$P$2:$P$1000<$A680)*('Fixed assets'!$Q$2:$Q$1000=Costs!AO$617))-SUMPRODUCT(('Fixed assets'!$S$2:$S$1000)*('Fixed assets'!$P$2:$P$1000<Costs!$A680)*('Fixed assets'!$Q$2:$Q$1000=Costs!AO$617))-SUMPRODUCT(('Fixed assets'!$Q$2:$Q$1000=Costs!AO$617)*('Fixed assets'!$U$2:$U$1000=Costs!$A680)*('Fixed assets'!$S$2:$S$1000))+SUMPRODUCT(('Fixed assets'!$Q$2:$Q$1000=Costs!AO$617)*('Fixed assets'!$P$2:$P$1000=Costs!$A680)*('Fixed assets'!$U$2:$U$1000=Costs!$A680)*('Fixed assets'!$R$2:$R$1000))","v":0},{"$f":"SUMPRODUCT(('Fixed assets'!$R$2:$R$1000)*('Fixed assets'!$P$2:$P$1000<$A680)*('Fixed assets'!$Q$2:$Q$1000=Costs!AP$617))-SUMPRODUCT(('Fixed assets'!$S$2:$S$1000)*('Fixed assets'!$P$2:$P$1000<Costs!$A680)*('Fixed assets'!$Q$2:$Q$1000=Costs!AP$617))-SUMPRODUCT(('Fixed assets'!$Q$2:$Q$1000=Costs!AP$617)*('Fixed assets'!$U$2:$U$1000=Costs!$A680)*('Fixed assets'!$S$2:$S$1000))+SUMPRODUCT(('Fixed assets'!$Q$2:$Q$1000=Costs!AP$617)*('Fixed assets'!$P$2:$P$1000=Costs!$A680)*('Fixed assets'!$U$2:$U$1000=Costs!$A680)*('Fixed assets'!$R$2:$R$1000))","v":0},{"$f":"SUMPRODUCT(('Fixed assets'!$R$2:$R$1000)*('Fixed assets'!$P$2:$P$1000<$A680)*('Fixed assets'!$Q$2:$Q$1000=Costs!AQ$617))-SUMPRODUCT(('Fixed assets'!$S$2:$S$1000)*('Fixed assets'!$P$2:$P$1000<Costs!$A680)*('Fixed assets'!$Q$2:$Q$1000=Costs!AQ$617))-SUMPRODUCT(('Fixed assets'!$Q$2:$Q$1000=Costs!AQ$617)*('Fixed assets'!$U$2:$U$1000=Costs!$A680)*('Fixed assets'!$S$2:$S$1000))+SUMPRODUCT(('Fixed assets'!$Q$2:$Q$1000=Costs!AQ$617)*('Fixed assets'!$P$2:$P$1000=Costs!$A680)*('Fixed assets'!$U$2:$U$1000=Costs!$A680)*('Fixed assets'!$R$2:$R$1000))","v":0}]
[2078,0,{"$f":"SUMPRODUCT(('Fixed assets'!$R$2:$R$1000)*('Fixed assets'!$P$2:$P$1000<$A681)*('Fixed assets'!$Q$2:$Q$1000=Costs!C$617))-SUMPRODUCT(('Fixed assets'!$S$2:$S$1000)*('Fixed assets'!$P$2:$P$1000<Costs!$A681)*('Fixed assets'!$Q$2:$Q$1000=Costs!C$617))-SUMPRODUCT(('Fixed assets'!$Q$2:$Q$1000=Costs!C$617)*('Fixed assets'!$U$2:$U$1000=Costs!$A681)*('Fixed assets'!$S$2:$S$1000))+SUMPRODUCT(('Fixed assets'!$Q$2:$Q$1000=Costs!C$617)*('Fixed assets'!$P$2:$P$1000=Costs!$A681)*('Fixed assets'!$U$2:$U$1000=Costs!$A681)*('Fixed assets'!$R$2:$R$1000))","v":0},{"$f":"SUMPRODUCT(('Fixed assets'!$R$2:$R$1000)*('Fixed assets'!$P$2:$P$1000<$A681)*('Fixed assets'!$Q$2:$Q$1000=Costs!D$617))-SUMPRODUCT(('Fixed assets'!$S$2:$S$1000)*('Fixed assets'!$P$2:$P$1000<Costs!$A681)*('Fixed assets'!$Q$2:$Q$1000=Costs!D$617))-SUMPRODUCT(('Fixed assets'!$Q$2:$Q$1000=Costs!D$617)*('Fixed assets'!$U$2:$U$1000=Costs!$A681)*('Fixed assets'!$S$2:$S$1000))+SUMPRODUCT(('Fixed assets'!$Q$2:$Q$1000=Costs!D$617)*('Fixed assets'!$P$2:$P$1000=Costs!$A681)*('Fixed assets'!$U$2:$U$1000=Costs!$A681)*('Fixed assets'!$R$2:$R$1000))","v":0},{"$f":"SUMPRODUCT(('Fixed assets'!$R$2:$R$1000)*('Fixed assets'!$P$2:$P$1000<$A681)*('Fixed assets'!$Q$2:$Q$1000=Costs!E$617))-SUMPRODUCT(('Fixed assets'!$S$2:$S$1000)*('Fixed assets'!$P$2:$P$1000<Costs!$A681)*('Fixed assets'!$Q$2:$Q$1000=Costs!E$617))-SUMPRODUCT(('Fixed assets'!$Q$2:$Q$1000=Costs!E$617)*('Fixed assets'!$U$2:$U$1000=Costs!$A681)*('Fixed assets'!$S$2:$S$1000))+SUMPRODUCT(('Fixed assets'!$Q$2:$Q$1000=Costs!E$617)*('Fixed assets'!$P$2:$P$1000=Costs!$A681)*('Fixed assets'!$U$2:$U$1000=Costs!$A681)*('Fixed assets'!$R$2:$R$1000))","v":0},{"$f":"SUMPRODUCT(('Fixed assets'!$R$2:$R$1000)*('Fixed assets'!$P$2:$P$1000<$A681)*('Fixed assets'!$Q$2:$Q$1000=Costs!F$617))-SUMPRODUCT(('Fixed assets'!$S$2:$S$1000)*('Fixed assets'!$P$2:$P$1000<Costs!$A681)*('Fixed assets'!$Q$2:$Q$1000=Costs!F$617))-SUMPRODUCT(('Fixed assets'!$Q$2:$Q$1000=Costs!F$617)*('Fixed assets'!$U$2:$U$1000=Costs!$A681)*('Fixed assets'!$S$2:$S$1000))+SUMPRODUCT(('Fixed assets'!$Q$2:$Q$1000=Costs!F$617)*('Fixed assets'!$P$2:$P$1000=Costs!$A681)*('Fixed assets'!$U$2:$U$1000=Costs!$A681)*('Fixed assets'!$R$2:$R$1000))","v":0},{"$f":"SUMPRODUCT(('Fixed assets'!$R$2:$R$1000)*('Fixed assets'!$P$2:$P$1000<$A681)*('Fixed assets'!$Q$2:$Q$1000=Costs!G$617))-SUMPRODUCT(('Fixed assets'!$S$2:$S$1000)*('Fixed assets'!$P$2:$P$1000<Costs!$A681)*('Fixed assets'!$Q$2:$Q$1000=Costs!G$617))-SUMPRODUCT(('Fixed assets'!$Q$2:$Q$1000=Costs!G$617)*('Fixed assets'!$U$2:$U$1000=Costs!$A681)*('Fixed assets'!$S$2:$S$1000))+SUMPRODUCT(('Fixed assets'!$Q$2:$Q$1000=Costs!G$617)*('Fixed assets'!$P$2:$P$1000=Costs!$A681)*('Fixed assets'!$U$2:$U$1000=Costs!$A681)*('Fixed assets'!$R$2:$R$1000))","v":0},{"$f":"SUMPRODUCT(('Fixed assets'!$R$2:$R$1000)*('Fixed assets'!$P$2:$P$1000<$A681)*('Fixed assets'!$Q$2:$Q$1000=Costs!H$617))-SUMPRODUCT(('Fixed assets'!$S$2:$S$1000)*('Fixed assets'!$P$2:$P$1000<Costs!$A681)*('Fixed assets'!$Q$2:$Q$1000=Costs!H$617))-SUMPRODUCT(('Fixed assets'!$Q$2:$Q$1000=Costs!H$617)*('Fixed assets'!$U$2:$U$1000=Costs!$A681)*('Fixed assets'!$S$2:$S$1000))+SUMPRODUCT(('Fixed assets'!$Q$2:$Q$1000=Costs!H$617)*('Fixed assets'!$P$2:$P$1000=Costs!$A681)*('Fixed assets'!$U$2:$U$1000=Costs!$A681)*('Fixed assets'!$R$2:$R$1000))","v":0},{"$f":"SUMPRODUCT(('Fixed assets'!$R$2:$R$1000)*('Fixed assets'!$P$2:$P$1000<$A681)*('Fixed assets'!$Q$2:$Q$1000=Costs!I$617))-SUMPRODUCT(('Fixed assets'!$S$2:$S$1000)*('Fixed assets'!$P$2:$P$1000<Costs!$A681)*('Fixed assets'!$Q$2:$Q$1000=Costs!I$617))-SUMPRODUCT(('Fixed assets'!$Q$2:$Q$1000=Costs!I$617)*('Fixed assets'!$U$2:$U$1000=Costs!$A681)*('Fixed assets'!$S$2:$S$1000))+SUMPRODUCT(('Fixed assets'!$Q$2:$Q$1000=Costs!I$617)*('Fixed assets'!$P$2:$P$1000=Costs!$A681)*('Fixed assets'!$U$2:$U$1000=Costs!$A681)*('Fixed assets'!$R$2:$R$1000))","v":0},{"$f":"SUMPRODUCT(('Fixed assets'!$R$2:$R$1000)*('Fixed assets'!$P$2:$P$1000<$A681)*('Fixed assets'!$Q$2:$Q$1000=Costs!J$617))-SUMPRODUCT(('Fixed assets'!$S$2:$S$1000)*('Fixed assets'!$P$2:$P$1000<Costs!$A681)*('Fixed assets'!$Q$2:$Q$1000=Costs!J$617))-SUMPRODUCT(('Fixed assets'!$Q$2:$Q$1000=Costs!J$617)*('Fixed assets'!$U$2:$U$1000=Costs!$A681)*('Fixed assets'!$S$2:$S$1000))+SUMPRODUCT(('Fixed assets'!$Q$2:$Q$1000=Costs!J$617)*('Fixed assets'!$P$2:$P$1000=Costs!$A681)*('Fixed assets'!$U$2:$U$1000=Costs!$A681)*('Fixed assets'!$R$2:$R$1000))","v":0},{"$f":"SUMPRODUCT(('Fixed assets'!$R$2:$R$1000)*('Fixed assets'!$P$2:$P$1000<$A681)*('Fixed assets'!$Q$2:$Q$1000=Costs!K$617))-SUMPRODUCT(('Fixed assets'!$S$2:$S$1000)*('Fixed assets'!$P$2:$P$1000<Costs!$A681)*('Fixed assets'!$Q$2:$Q$1000=Costs!K$617))-SUMPRODUCT(('Fixed assets'!$Q$2:$Q$1000=Costs!K$617)*('Fixed assets'!$U$2:$U$1000=Costs!$A681)*('Fixed assets'!$S$2:$S$1000))+SUMPRODUCT(('Fixed assets'!$Q$2:$Q$1000=Costs!K$617)*('Fixed assets'!$P$2:$P$1000=Costs!$A681)*('Fixed assets'!$U$2:$U$1000=Costs!$A681)*('Fixed assets'!$R$2:$R$1000))","v":0},{"$f":"SUMPRODUCT(('Fixed assets'!$R$2:$R$1000)*('Fixed assets'!$P$2:$P$1000<$A681)*('Fixed assets'!$Q$2:$Q$1000=Costs!L$617))-SUMPRODUCT(('Fixed assets'!$S$2:$S$1000)*('Fixed assets'!$P$2:$P$1000<Costs!$A681)*('Fixed assets'!$Q$2:$Q$1000=Costs!L$617))-SUMPRODUCT(('Fixed assets'!$Q$2:$Q$1000=Costs!L$617)*('Fixed assets'!$U$2:$U$1000=Costs!$A681)*('Fixed assets'!$S$2:$S$1000))+SUMPRODUCT(('Fixed assets'!$Q$2:$Q$1000=Costs!L$617)*('Fixed assets'!$P$2:$P$1000=Costs!$A681)*('Fixed assets'!$U$2:$U$1000=Costs!$A681)*('Fixed assets'!$R$2:$R$1000))","v":0},{"$f":"SUMPRODUCT(('Fixed assets'!$R$2:$R$1000)*('Fixed assets'!$P$2:$P$1000<$A681)*('Fixed assets'!$Q$2:$Q$1000=Costs!M$617))-SUMPRODUCT(('Fixed assets'!$S$2:$S$1000)*('Fixed assets'!$P$2:$P$1000<Costs!$A681)*('Fixed assets'!$Q$2:$Q$1000=Costs!M$617))-SUMPRODUCT(('Fixed assets'!$Q$2:$Q$1000=Costs!M$617)*('Fixed assets'!$U$2:$U$1000=Costs!$A681)*('Fixed assets'!$S$2:$S$1000))+SUMPRODUCT(('Fixed assets'!$Q$2:$Q$1000=Costs!M$617)*('Fixed assets'!$P$2:$P$1000=Costs!$A681)*('Fixed assets'!$U$2:$U$1000=Costs!$A681)*('Fixed assets'!$R$2:$R$1000))","v":0},{"$f":"SUMPRODUCT(('Fixed assets'!$R$2:$R$1000)*('Fixed assets'!$P$2:$P$1000<$A681)*('Fixed assets'!$Q$2:$Q$1000=Costs!N$617))-SUMPRODUCT(('Fixed assets'!$S$2:$S$1000)*('Fixed assets'!$P$2:$P$1000<Costs!$A681)*('Fixed assets'!$Q$2:$Q$1000=Costs!N$617))-SUMPRODUCT(('Fixed assets'!$Q$2:$Q$1000=Costs!N$617)*('Fixed assets'!$U$2:$U$1000=Costs!$A681)*('Fixed assets'!$S$2:$S$1000))+SUMPRODUCT(('Fixed assets'!$Q$2:$Q$1000=Costs!N$617)*('Fixed assets'!$P$2:$P$1000=Costs!$A681)*('Fixed assets'!$U$2:$U$1000=Costs!$A681)*('Fixed assets'!$R$2:$R$1000))","v":0},{"$f":"SUMPRODUCT(('Fixed assets'!$R$2:$R$1000)*('Fixed assets'!$P$2:$P$1000<$A681)*('Fixed assets'!$Q$2:$Q$1000=Costs!O$617))-SUMPRODUCT(('Fixed assets'!$S$2:$S$1000)*('Fixed assets'!$P$2:$P$1000<Costs!$A681)*('Fixed assets'!$Q$2:$Q$1000=Costs!O$617))-SUMPRODUCT(('Fixed assets'!$Q$2:$Q$1000=Costs!O$617)*('Fixed assets'!$U$2:$U$1000=Costs!$A681)*('Fixed assets'!$S$2:$S$1000))+SUMPRODUCT(('Fixed assets'!$Q$2:$Q$1000=Costs!O$617)*('Fixed assets'!$P$2:$P$1000=Costs!$A681)*('Fixed assets'!$U$2:$U$1000=Costs!$A681)*('Fixed assets'!$R$2:$R$1000))","v":0},{"$f":"SUMPRODUCT(('Fixed assets'!$R$2:$R$1000)*('Fixed assets'!$P$2:$P$1000<$A681)*('Fixed assets'!$Q$2:$Q$1000=Costs!P$617))-SUMPRODUCT(('Fixed assets'!$S$2:$S$1000)*('Fixed assets'!$P$2:$P$1000<Costs!$A681)*('Fixed assets'!$Q$2:$Q$1000=Costs!P$617))-SUMPRODUCT(('Fixed assets'!$Q$2:$Q$1000=Costs!P$617)*('Fixed assets'!$U$2:$U$1000=Costs!$A681)*('Fixed assets'!$S$2:$S$1000))+SUMPRODUCT(('Fixed assets'!$Q$2:$Q$1000=Costs!P$617)*('Fixed assets'!$P$2:$P$1000=Costs!$A681)*('Fixed assets'!$U$2:$U$1000=Costs!$A681)*('Fixed assets'!$R$2:$R$1000))","v":0},{"$f":"SUMPRODUCT(('Fixed assets'!$R$2:$R$1000)*('Fixed assets'!$P$2:$P$1000<$A681)*('Fixed assets'!$Q$2:$Q$1000=Costs!Q$617))-SUMPRODUCT(('Fixed assets'!$S$2:$S$1000)*('Fixed assets'!$P$2:$P$1000<Costs!$A681)*('Fixed assets'!$Q$2:$Q$1000=Costs!Q$617))-SUMPRODUCT(('Fixed assets'!$Q$2:$Q$1000=Costs!Q$617)*('Fixed assets'!$U$2:$U$1000=Costs!$A681)*('Fixed assets'!$S$2:$S$1000))+SUMPRODUCT(('Fixed assets'!$Q$2:$Q$1000=Costs!Q$617)*('Fixed assets'!$P$2:$P$1000=Costs!$A681)*('Fixed assets'!$U$2:$U$1000=Costs!$A681)*('Fixed assets'!$R$2:$R$1000))","v":0},{"$f":"SUMPRODUCT(('Fixed assets'!$R$2:$R$1000)*('Fixed assets'!$P$2:$P$1000<$A681)*('Fixed assets'!$Q$2:$Q$1000=Costs!R$617))-SUMPRODUCT(('Fixed assets'!$S$2:$S$1000)*('Fixed assets'!$P$2:$P$1000<Costs!$A681)*('Fixed assets'!$Q$2:$Q$1000=Costs!R$617))-SUMPRODUCT(('Fixed assets'!$Q$2:$Q$1000=Costs!R$617)*('Fixed assets'!$U$2:$U$1000=Costs!$A681)*('Fixed assets'!$S$2:$S$1000))+SUMPRODUCT(('Fixed assets'!$Q$2:$Q$1000=Costs!R$617)*('Fixed assets'!$P$2:$P$1000=Costs!$A681)*('Fixed assets'!$U$2:$U$1000=Costs!$A681)*('Fixed assets'!$R$2:$R$1000))","v":0},{"$f":"SUMPRODUCT(('Fixed assets'!$R$2:$R$1000)*('Fixed assets'!$P$2:$P$1000<$A681)*('Fixed assets'!$Q$2:$Q$1000=Costs!S$617))-SUMPRODUCT(('Fixed assets'!$S$2:$S$1000)*('Fixed assets'!$P$2:$P$1000<Costs!$A681)*('Fixed assets'!$Q$2:$Q$1000=Costs!S$617))-SUMPRODUCT(('Fixed assets'!$Q$2:$Q$1000=Costs!S$617)*('Fixed assets'!$U$2:$U$1000=Costs!$A681)*('Fixed assets'!$S$2:$S$1000))+SUMPRODUCT(('Fixed assets'!$Q$2:$Q$1000=Costs!S$617)*('Fixed assets'!$P$2:$P$1000=Costs!$A681)*('Fixed assets'!$U$2:$U$1000=Costs!$A681)*('Fixed assets'!$R$2:$R$1000))","v":0},{"$f":"SUMPRODUCT(('Fixed assets'!$R$2:$R$1000)*('Fixed assets'!$P$2:$P$1000<$A681)*('Fixed assets'!$Q$2:$Q$1000=Costs!T$617))-SUMPRODUCT(('Fixed assets'!$S$2:$S$1000)*('Fixed assets'!$P$2:$P$1000<Costs!$A681)*('Fixed assets'!$Q$2:$Q$1000=Costs!T$617))-SUMPRODUCT(('Fixed assets'!$Q$2:$Q$1000=Costs!T$617)*('Fixed assets'!$U$2:$U$1000=Costs!$A681)*('Fixed assets'!$S$2:$S$1000))+SUMPRODUCT(('Fixed assets'!$Q$2:$Q$1000=Costs!T$617)*('Fixed assets'!$P$2:$P$1000=Costs!$A681)*('Fixed assets'!$U$2:$U$1000=Costs!$A681)*('Fixed assets'!$R$2:$R$1000))","v":0},{"$f":"SUMPRODUCT(('Fixed assets'!$R$2:$R$1000)*('Fixed assets'!$P$2:$P$1000<$A681)*('Fixed assets'!$Q$2:$Q$1000=Costs!U$617))-SUMPRODUCT(('Fixed assets'!$S$2:$S$1000)*('Fixed assets'!$P$2:$P$1000<Costs!$A681)*('Fixed assets'!$Q$2:$Q$1000=Costs!U$617))-SUMPRODUCT(('Fixed assets'!$Q$2:$Q$1000=Costs!U$617)*('Fixed assets'!$U$2:$U$1000=Costs!$A681)*('Fixed assets'!$S$2:$S$1000))+SUMPRODUCT(('Fixed assets'!$Q$2:$Q$1000=Costs!U$617)*('Fixed assets'!$P$2:$P$1000=Costs!$A681)*('Fixed assets'!$U$2:$U$1000=Costs!$A681)*('Fixed assets'!$R$2:$R$1000))","v":0},{"$f":"SUMPRODUCT(('Fixed assets'!$R$2:$R$1000)*('Fixed assets'!$P$2:$P$1000<$A681)*('Fixed assets'!$Q$2:$Q$1000=Costs!V$617))-SUMPRODUCT(('Fixed assets'!$S$2:$S$1000)*('Fixed assets'!$P$2:$P$1000<Costs!$A681)*('Fixed assets'!$Q$2:$Q$1000=Costs!V$617))-SUMPRODUCT(('Fixed assets'!$Q$2:$Q$1000=Costs!V$617)*('Fixed assets'!$U$2:$U$1000=Costs!$A681)*('Fixed assets'!$S$2:$S$1000))+SUMPRODUCT(('Fixed assets'!$Q$2:$Q$1000=Costs!V$617)*('Fixed assets'!$P$2:$P$1000=Costs!$A681)*('Fixed assets'!$U$2:$U$1000=Costs!$A681)*('Fixed assets'!$R$2:$R$1000))","v":0},{"$f":"SUMPRODUCT(('Fixed assets'!$R$2:$R$1000)*('Fixed assets'!$P$2:$P$1000<$A681)*('Fixed assets'!$Q$2:$Q$1000=Costs!W$617))-SUMPRODUCT(('Fixed assets'!$S$2:$S$1000)*('Fixed assets'!$P$2:$P$1000<Costs!$A681)*('Fixed assets'!$Q$2:$Q$1000=Costs!W$617))-SUMPRODUCT(('Fixed assets'!$Q$2:$Q$1000=Costs!W$617)*('Fixed assets'!$U$2:$U$1000=Costs!$A681)*('Fixed assets'!$S$2:$S$1000))+SUMPRODUCT(('Fixed assets'!$Q$2:$Q$1000=Costs!W$617)*('Fixed assets'!$P$2:$P$1000=Costs!$A681)*('Fixed assets'!$U$2:$U$1000=Costs!$A681)*('Fixed assets'!$R$2:$R$1000))","v":0},{"$f":"SUMPRODUCT(('Fixed assets'!$R$2:$R$1000)*('Fixed assets'!$P$2:$P$1000<$A681)*('Fixed assets'!$Q$2:$Q$1000=Costs!X$617))-SUMPRODUCT(('Fixed assets'!$S$2:$S$1000)*('Fixed assets'!$P$2:$P$1000<Costs!$A681)*('Fixed assets'!$Q$2:$Q$1000=Costs!X$617))-SUMPRODUCT(('Fixed assets'!$Q$2:$Q$1000=Costs!X$617)*('Fixed assets'!$U$2:$U$1000=Costs!$A681)*('Fixed assets'!$S$2:$S$1000))+SUMPRODUCT(('Fixed assets'!$Q$2:$Q$1000=Costs!X$617)*('Fixed assets'!$P$2:$P$1000=Costs!$A681)*('Fixed assets'!$U$2:$U$1000=Costs!$A681)*('Fixed assets'!$R$2:$R$1000))","v":0},{"$f":"SUMPRODUCT(('Fixed assets'!$R$2:$R$1000)*('Fixed assets'!$P$2:$P$1000<$A681)*('Fixed assets'!$Q$2:$Q$1000=Costs!Y$617))-SUMPRODUCT(('Fixed assets'!$S$2:$S$1000)*('Fixed assets'!$P$2:$P$1000<Costs!$A681)*('Fixed assets'!$Q$2:$Q$1000=Costs!Y$617))-SUMPRODUCT(('Fixed assets'!$Q$2:$Q$1000=Costs!Y$617)*('Fixed assets'!$U$2:$U$1000=Costs!$A681)*('Fixed assets'!$S$2:$S$1000))+SUMPRODUCT(('Fixed assets'!$Q$2:$Q$1000=Costs!Y$617)*('Fixed assets'!$P$2:$P$1000=Costs!$A681)*('Fixed assets'!$U$2:$U$1000=Costs!$A681)*('Fixed assets'!$R$2:$R$1000))","v":0},{"$f":"SUMPRODUCT(('Fixed assets'!$R$2:$R$1000)*('Fixed assets'!$P$2:$P$1000<$A681)*('Fixed assets'!$Q$2:$Q$1000=Costs!Z$617))-SUMPRODUCT(('Fixed assets'!$S$2:$S$1000)*('Fixed assets'!$P$2:$P$1000<Costs!$A681)*('Fixed assets'!$Q$2:$Q$1000=Costs!Z$617))-SUMPRODUCT(('Fixed assets'!$Q$2:$Q$1000=Costs!Z$617)*('Fixed assets'!$U$2:$U$1000=Costs!$A681)*('Fixed assets'!$S$2:$S$1000))+SUMPRODUCT(('Fixed assets'!$Q$2:$Q$1000=Costs!Z$617)*('Fixed assets'!$P$2:$P$1000=Costs!$A681)*('Fixed assets'!$U$2:$U$1000=Costs!$A681)*('Fixed assets'!$R$2:$R$1000))","v":0},{"$f":"SUMPRODUCT(('Fixed assets'!$R$2:$R$1000)*('Fixed assets'!$P$2:$P$1000<$A681)*('Fixed assets'!$Q$2:$Q$1000=Costs!AA$617))-SUMPRODUCT(('Fixed assets'!$S$2:$S$1000)*('Fixed assets'!$P$2:$P$1000<Costs!$A681)*('Fixed assets'!$Q$2:$Q$1000=Costs!AA$617))-SUMPRODUCT(('Fixed assets'!$Q$2:$Q$1000=Costs!AA$617)*('Fixed assets'!$U$2:$U$1000=Costs!$A681)*('Fixed assets'!$S$2:$S$1000))+SUMPRODUCT(('Fixed assets'!$Q$2:$Q$1000=Costs!AA$617)*('Fixed assets'!$P$2:$P$1000=Costs!$A681)*('Fixed assets'!$U$2:$U$1000=Costs!$A681)*('Fixed assets'!$R$2:$R$1000))","v":0},{"$f":"SUMPRODUCT(('Fixed assets'!$R$2:$R$1000)*('Fixed assets'!$P$2:$P$1000<$A681)*('Fixed assets'!$Q$2:$Q$1000=Costs!AB$617))-SUMPRODUCT(('Fixed assets'!$S$2:$S$1000)*('Fixed assets'!$P$2:$P$1000<Costs!$A681)*('Fixed assets'!$Q$2:$Q$1000=Costs!AB$617))-SUMPRODUCT(('Fixed assets'!$Q$2:$Q$1000=Costs!AB$617)*('Fixed assets'!$U$2:$U$1000=Costs!$A681)*('Fixed assets'!$S$2:$S$1000))+SUMPRODUCT(('Fixed assets'!$Q$2:$Q$1000=Costs!AB$617)*('Fixed assets'!$P$2:$P$1000=Costs!$A681)*('Fixed assets'!$U$2:$U$1000=Costs!$A681)*('Fixed assets'!$R$2:$R$1000))","v":0},{"$f":"SUMPRODUCT(('Fixed assets'!$R$2:$R$1000)*('Fixed assets'!$P$2:$P$1000<$A681)*('Fixed assets'!$Q$2:$Q$1000=Costs!AC$617))-SUMPRODUCT(('Fixed assets'!$S$2:$S$1000)*('Fixed assets'!$P$2:$P$1000<Costs!$A681)*('Fixed assets'!$Q$2:$Q$1000=Costs!AC$617))-SUMPRODUCT(('Fixed assets'!$Q$2:$Q$1000=Costs!AC$617)*('Fixed assets'!$U$2:$U$1000=Costs!$A681)*('Fixed assets'!$S$2:$S$1000))+SUMPRODUCT(('Fixed assets'!$Q$2:$Q$1000=Costs!AC$617)*('Fixed assets'!$P$2:$P$1000=Costs!$A681)*('Fixed assets'!$U$2:$U$1000=Costs!$A681)*('Fixed assets'!$R$2:$R$1000))","v":0},{"$f":"SUMPRODUCT(('Fixed assets'!$R$2:$R$1000)*('Fixed assets'!$P$2:$P$1000<$A681)*('Fixed assets'!$Q$2:$Q$1000=Costs!AD$617))-SUMPRODUCT(('Fixed assets'!$S$2:$S$1000)*('Fixed assets'!$P$2:$P$1000<Costs!$A681)*('Fixed assets'!$Q$2:$Q$1000=Costs!AD$617))-SUMPRODUCT(('Fixed assets'!$Q$2:$Q$1000=Costs!AD$617)*('Fixed assets'!$U$2:$U$1000=Costs!$A681)*('Fixed assets'!$S$2:$S$1000))+SUMPRODUCT(('Fixed assets'!$Q$2:$Q$1000=Costs!AD$617)*('Fixed assets'!$P$2:$P$1000=Costs!$A681)*('Fixed assets'!$U$2:$U$1000=Costs!$A681)*('Fixed assets'!$R$2:$R$1000))","v":0},{"$f":"SUMPRODUCT(('Fixed assets'!$R$2:$R$1000)*('Fixed assets'!$P$2:$P$1000<$A681)*('Fixed assets'!$Q$2:$Q$1000=Costs!AE$617))-SUMPRODUCT(('Fixed assets'!$S$2:$S$1000)*('Fixed assets'!$P$2:$P$1000<Costs!$A681)*('Fixed assets'!$Q$2:$Q$1000=Costs!AE$617))-SUMPRODUCT(('Fixed assets'!$Q$2:$Q$1000=Costs!AE$617)*('Fixed assets'!$U$2:$U$1000=Costs!$A681)*('Fixed assets'!$S$2:$S$1000))+SUMPRODUCT(('Fixed assets'!$Q$2:$Q$1000=Costs!AE$617)*('Fixed assets'!$P$2:$P$1000=Costs!$A681)*('Fixed assets'!$U$2:$U$1000=Costs!$A681)*('Fixed assets'!$R$2:$R$1000))","v":0},{"$f":"SUMPRODUCT(('Fixed assets'!$R$2:$R$1000)*('Fixed assets'!$P$2:$P$1000<$A681)*('Fixed assets'!$Q$2:$Q$1000=Costs!AF$617))-SUMPRODUCT(('Fixed assets'!$S$2:$S$1000)*('Fixed assets'!$P$2:$P$1000<Costs!$A681)*('Fixed assets'!$Q$2:$Q$1000=Costs!AF$617))-SUMPRODUCT(('Fixed assets'!$Q$2:$Q$1000=Costs!AF$617)*('Fixed assets'!$U$2:$U$1000=Costs!$A681)*('Fixed assets'!$S$2:$S$1000))+SUMPRODUCT(('Fixed assets'!$Q$2:$Q$1000=Costs!AF$617)*('Fixed assets'!$P$2:$P$1000=Costs!$A681)*('Fixed assets'!$U$2:$U$1000=Costs!$A681)*('Fixed assets'!$R$2:$R$1000))","v":0},{"$f":"SUMPRODUCT(('Fixed assets'!$R$2:$R$1000)*('Fixed assets'!$P$2:$P$1000<$A681)*('Fixed assets'!$Q$2:$Q$1000=Costs!AG$617))-SUMPRODUCT(('Fixed assets'!$S$2:$S$1000)*('Fixed assets'!$P$2:$P$1000<Costs!$A681)*('Fixed assets'!$Q$2:$Q$1000=Costs!AG$617))-SUMPRODUCT(('Fixed assets'!$Q$2:$Q$1000=Costs!AG$617)*('Fixed assets'!$U$2:$U$1000=Costs!$A681)*('Fixed assets'!$S$2:$S$1000))+SUMPRODUCT(('Fixed assets'!$Q$2:$Q$1000=Costs!AG$617)*('Fixed assets'!$P$2:$P$1000=Costs!$A681)*('Fixed assets'!$U$2:$U$1000=Costs!$A681)*('Fixed assets'!$R$2:$R$1000))","v":0},{"$f":"SUMPRODUCT(('Fixed assets'!$R$2:$R$1000)*('Fixed assets'!$P$2:$P$1000<$A681)*('Fixed assets'!$Q$2:$Q$1000=Costs!AH$617))-SUMPRODUCT(('Fixed assets'!$S$2:$S$1000)*('Fixed assets'!$P$2:$P$1000<Costs!$A681)*('Fixed assets'!$Q$2:$Q$1000=Costs!AH$617))-SUMPRODUCT(('Fixed assets'!$Q$2:$Q$1000=Costs!AH$617)*('Fixed assets'!$U$2:$U$1000=Costs!$A681)*('Fixed assets'!$S$2:$S$1000))+SUMPRODUCT(('Fixed assets'!$Q$2:$Q$1000=Costs!AH$617)*('Fixed assets'!$P$2:$P$1000=Costs!$A681)*('Fixed assets'!$U$2:$U$1000=Costs!$A681)*('Fixed assets'!$R$2:$R$1000))","v":0},{"$f":"SUMPRODUCT(('Fixed assets'!$R$2:$R$1000)*('Fixed assets'!$P$2:$P$1000<$A681)*('Fixed assets'!$Q$2:$Q$1000=Costs!AI$617))-SUMPRODUCT(('Fixed assets'!$S$2:$S$1000)*('Fixed assets'!$P$2:$P$1000<Costs!$A681)*('Fixed assets'!$Q$2:$Q$1000=Costs!AI$617))-SUMPRODUCT(('Fixed assets'!$Q$2:$Q$1000=Costs!AI$617)*('Fixed assets'!$U$2:$U$1000=Costs!$A681)*('Fixed assets'!$S$2:$S$1000))+SUMPRODUCT(('Fixed assets'!$Q$2:$Q$1000=Costs!AI$617)*('Fixed assets'!$P$2:$P$1000=Costs!$A681)*('Fixed assets'!$U$2:$U$1000=Costs!$A681)*('Fixed assets'!$R$2:$R$1000))","v":0},{"$f":"SUMPRODUCT(('Fixed assets'!$R$2:$R$1000)*('Fixed assets'!$P$2:$P$1000<$A681)*('Fixed assets'!$Q$2:$Q$1000=Costs!AJ$617))-SUMPRODUCT(('Fixed assets'!$S$2:$S$1000)*('Fixed assets'!$P$2:$P$1000<Costs!$A681)*('Fixed assets'!$Q$2:$Q$1000=Costs!AJ$617))-SUMPRODUCT(('Fixed assets'!$Q$2:$Q$1000=Costs!AJ$617)*('Fixed assets'!$U$2:$U$1000=Costs!$A681)*('Fixed assets'!$S$2:$S$1000))+SUMPRODUCT(('Fixed assets'!$Q$2:$Q$1000=Costs!AJ$617)*('Fixed assets'!$P$2:$P$1000=Costs!$A681)*('Fixed assets'!$U$2:$U$1000=Costs!$A681)*('Fixed assets'!$R$2:$R$1000))","v":0},{"$f":"SUMPRODUCT(('Fixed assets'!$R$2:$R$1000)*('Fixed assets'!$P$2:$P$1000<$A681)*('Fixed assets'!$Q$2:$Q$1000=Costs!AK$617))-SUMPRODUCT(('Fixed assets'!$S$2:$S$1000)*('Fixed assets'!$P$2:$P$1000<Costs!$A681)*('Fixed assets'!$Q$2:$Q$1000=Costs!AK$617))-SUMPRODUCT(('Fixed assets'!$Q$2:$Q$1000=Costs!AK$617)*('Fixed assets'!$U$2:$U$1000=Costs!$A681)*('Fixed assets'!$S$2:$S$1000))+SUMPRODUCT(('Fixed assets'!$Q$2:$Q$1000=Costs!AK$617)*('Fixed assets'!$P$2:$P$1000=Costs!$A681)*('Fixed assets'!$U$2:$U$1000=Costs!$A681)*('Fixed assets'!$R$2:$R$1000))","v":0},{"$f":"SUMPRODUCT(('Fixed assets'!$R$2:$R$1000)*('Fixed assets'!$P$2:$P$1000<$A681)*('Fixed assets'!$Q$2:$Q$1000=Costs!AL$617))-SUMPRODUCT(('Fixed assets'!$S$2:$S$1000)*('Fixed assets'!$P$2:$P$1000<Costs!$A681)*('Fixed assets'!$Q$2:$Q$1000=Costs!AL$617))-SUMPRODUCT(('Fixed assets'!$Q$2:$Q$1000=Costs!AL$617)*('Fixed assets'!$U$2:$U$1000=Costs!$A681)*('Fixed assets'!$S$2:$S$1000))+SUMPRODUCT(('Fixed assets'!$Q$2:$Q$1000=Costs!AL$617)*('Fixed assets'!$P$2:$P$1000=Costs!$A681)*('Fixed assets'!$U$2:$U$1000=Costs!$A681)*('Fixed assets'!$R$2:$R$1000))","v":0},{"$f":"SUMPRODUCT(('Fixed assets'!$R$2:$R$1000)*('Fixed assets'!$P$2:$P$1000<$A681)*('Fixed assets'!$Q$2:$Q$1000=Costs!AM$617))-SUMPRODUCT(('Fixed assets'!$S$2:$S$1000)*('Fixed assets'!$P$2:$P$1000<Costs!$A681)*('Fixed assets'!$Q$2:$Q$1000=Costs!AM$617))-SUMPRODUCT(('Fixed assets'!$Q$2:$Q$1000=Costs!AM$617)*('Fixed assets'!$U$2:$U$1000=Costs!$A681)*('Fixed assets'!$S$2:$S$1000))+SUMPRODUCT(('Fixed assets'!$Q$2:$Q$1000=Costs!AM$617)*('Fixed assets'!$P$2:$P$1000=Costs!$A681)*('Fixed assets'!$U$2:$U$1000=Costs!$A681)*('Fixed assets'!$R$2:$R$1000))","v":0},{"$f":"SUMPRODUCT(('Fixed assets'!$R$2:$R$1000)*('Fixed assets'!$P$2:$P$1000<$A681)*('Fixed assets'!$Q$2:$Q$1000=Costs!AN$617))-SUMPRODUCT(('Fixed assets'!$S$2:$S$1000)*('Fixed assets'!$P$2:$P$1000<Costs!$A681)*('Fixed assets'!$Q$2:$Q$1000=Costs!AN$617))-SUMPRODUCT(('Fixed assets'!$Q$2:$Q$1000=Costs!AN$617)*('Fixed assets'!$U$2:$U$1000=Costs!$A681)*('Fixed assets'!$S$2:$S$1000))+SUMPRODUCT(('Fixed assets'!$Q$2:$Q$1000=Costs!AN$617)*('Fixed assets'!$P$2:$P$1000=Costs!$A681)*('Fixed assets'!$U$2:$U$1000=Costs!$A681)*('Fixed assets'!$R$2:$R$1000))","v":0},{"$f":"SUMPRODUCT(('Fixed assets'!$R$2:$R$1000)*('Fixed assets'!$P$2:$P$1000<$A681)*('Fixed assets'!$Q$2:$Q$1000=Costs!AO$617))-SUMPRODUCT(('Fixed assets'!$S$2:$S$1000)*('Fixed assets'!$P$2:$P$1000<Costs!$A681)*('Fixed assets'!$Q$2:$Q$1000=Costs!AO$617))-SUMPRODUCT(('Fixed assets'!$Q$2:$Q$1000=Costs!AO$617)*('Fixed assets'!$U$2:$U$1000=Costs!$A681)*('Fixed assets'!$S$2:$S$1000))+SUMPRODUCT(('Fixed assets'!$Q$2:$Q$1000=Costs!AO$617)*('Fixed assets'!$P$2:$P$1000=Costs!$A681)*('Fixed assets'!$U$2:$U$1000=Costs!$A681)*('Fixed assets'!$R$2:$R$1000))","v":0},{"$f":"SUMPRODUCT(('Fixed assets'!$R$2:$R$1000)*('Fixed assets'!$P$2:$P$1000<$A681)*('Fixed assets'!$Q$2:$Q$1000=Costs!AP$617))-SUMPRODUCT(('Fixed assets'!$S$2:$S$1000)*('Fixed assets'!$P$2:$P$1000<Costs!$A681)*('Fixed assets'!$Q$2:$Q$1000=Costs!AP$617))-SUMPRODUCT(('Fixed assets'!$Q$2:$Q$1000=Costs!AP$617)*('Fixed assets'!$U$2:$U$1000=Costs!$A681)*('Fixed assets'!$S$2:$S$1000))+SUMPRODUCT(('Fixed assets'!$Q$2:$Q$1000=Costs!AP$617)*('Fixed assets'!$P$2:$P$1000=Costs!$A681)*('Fixed assets'!$U$2:$U$1000=Costs!$A681)*('Fixed assets'!$R$2:$R$1000))","v":0},{"$f":"SUMPRODUCT(('Fixed assets'!$R$2:$R$1000)*('Fixed assets'!$P$2:$P$1000<$A681)*('Fixed assets'!$Q$2:$Q$1000=Costs!AQ$617))-SUMPRODUCT(('Fixed assets'!$S$2:$S$1000)*('Fixed assets'!$P$2:$P$1000<Costs!$A681)*('Fixed assets'!$Q$2:$Q$1000=Costs!AQ$617))-SUMPRODUCT(('Fixed assets'!$Q$2:$Q$1000=Costs!AQ$617)*('Fixed assets'!$U$2:$U$1000=Costs!$A681)*('Fixed assets'!$S$2:$S$1000))+SUMPRODUCT(('Fixed assets'!$Q$2:$Q$1000=Costs!AQ$617)*('Fixed assets'!$P$2:$P$1000=Costs!$A681)*('Fixed assets'!$U$2:$U$1000=Costs!$A681)*('Fixed assets'!$R$2:$R$1000))","v":0}]
[2079,0,{"$f":"SUMPRODUCT(('Fixed assets'!$R$2:$R$1000)*('Fixed assets'!$P$2:$P$1000<$A682)*('Fixed assets'!$Q$2:$Q$1000=Costs!C$617))-SUMPRODUCT(('Fixed assets'!$S$2:$S$1000)*('Fixed assets'!$P$2:$P$1000<Costs!$A682)*('Fixed assets'!$Q$2:$Q$1000=Costs!C$617))-SUMPRODUCT(('Fixed assets'!$Q$2:$Q$1000=Costs!C$617)*('Fixed assets'!$U$2:$U$1000=Costs!$A682)*('Fixed assets'!$S$2:$S$1000))+SUMPRODUCT(('Fixed assets'!$Q$2:$Q$1000=Costs!C$617)*('Fixed assets'!$P$2:$P$1000=Costs!$A682)*('Fixed assets'!$U$2:$U$1000=Costs!$A682)*('Fixed assets'!$R$2:$R$1000))","v":0},{"$f":"SUMPRODUCT(('Fixed assets'!$R$2:$R$1000)*('Fixed assets'!$P$2:$P$1000<$A682)*('Fixed assets'!$Q$2:$Q$1000=Costs!D$617))-SUMPRODUCT(('Fixed assets'!$S$2:$S$1000)*('Fixed assets'!$P$2:$P$1000<Costs!$A682)*('Fixed assets'!$Q$2:$Q$1000=Costs!D$617))-SUMPRODUCT(('Fixed assets'!$Q$2:$Q$1000=Costs!D$617)*('Fixed assets'!$U$2:$U$1000=Costs!$A682)*('Fixed assets'!$S$2:$S$1000))+SUMPRODUCT(('Fixed assets'!$Q$2:$Q$1000=Costs!D$617)*('Fixed assets'!$P$2:$P$1000=Costs!$A682)*('Fixed assets'!$U$2:$U$1000=Costs!$A682)*('Fixed assets'!$R$2:$R$1000))","v":0},{"$f":"SUMPRODUCT(('Fixed assets'!$R$2:$R$1000)*('Fixed assets'!$P$2:$P$1000<$A682)*('Fixed assets'!$Q$2:$Q$1000=Costs!E$617))-SUMPRODUCT(('Fixed assets'!$S$2:$S$1000)*('Fixed assets'!$P$2:$P$1000<Costs!$A682)*('Fixed assets'!$Q$2:$Q$1000=Costs!E$617))-SUMPRODUCT(('Fixed assets'!$Q$2:$Q$1000=Costs!E$617)*('Fixed assets'!$U$2:$U$1000=Costs!$A682)*('Fixed assets'!$S$2:$S$1000))+SUMPRODUCT(('Fixed assets'!$Q$2:$Q$1000=Costs!E$617)*('Fixed assets'!$P$2:$P$1000=Costs!$A682)*('Fixed assets'!$U$2:$U$1000=Costs!$A682)*('Fixed assets'!$R$2:$R$1000))","v":0},{"$f":"SUMPRODUCT(('Fixed assets'!$R$2:$R$1000)*('Fixed assets'!$P$2:$P$1000<$A682)*('Fixed assets'!$Q$2:$Q$1000=Costs!F$617))-SUMPRODUCT(('Fixed assets'!$S$2:$S$1000)*('Fixed assets'!$P$2:$P$1000<Costs!$A682)*('Fixed assets'!$Q$2:$Q$1000=Costs!F$617))-SUMPRODUCT(('Fixed assets'!$Q$2:$Q$1000=Costs!F$617)*('Fixed assets'!$U$2:$U$1000=Costs!$A682)*('Fixed assets'!$S$2:$S$1000))+SUMPRODUCT(('Fixed assets'!$Q$2:$Q$1000=Costs!F$617)*('Fixed assets'!$P$2:$P$1000=Costs!$A682)*('Fixed assets'!$U$2:$U$1000=Costs!$A682)*('Fixed assets'!$R$2:$R$1000))","v":0},{"$f":"SUMPRODUCT(('Fixed assets'!$R$2:$R$1000)*('Fixed assets'!$P$2:$P$1000<$A682)*('Fixed assets'!$Q$2:$Q$1000=Costs!G$617))-SUMPRODUCT(('Fixed assets'!$S$2:$S$1000)*('Fixed assets'!$P$2:$P$1000<Costs!$A682)*('Fixed assets'!$Q$2:$Q$1000=Costs!G$617))-SUMPRODUCT(('Fixed assets'!$Q$2:$Q$1000=Costs!G$617)*('Fixed assets'!$U$2:$U$1000=Costs!$A682)*('Fixed assets'!$S$2:$S$1000))+SUMPRODUCT(('Fixed assets'!$Q$2:$Q$1000=Costs!G$617)*('Fixed assets'!$P$2:$P$1000=Costs!$A682)*('Fixed assets'!$U$2:$U$1000=Costs!$A682)*('Fixed assets'!$R$2:$R$1000))","v":0},{"$f":"SUMPRODUCT(('Fixed assets'!$R$2:$R$1000)*('Fixed assets'!$P$2:$P$1000<$A682)*('Fixed assets'!$Q$2:$Q$1000=Costs!H$617))-SUMPRODUCT(('Fixed assets'!$S$2:$S$1000)*('Fixed assets'!$P$2:$P$1000<Costs!$A682)*('Fixed assets'!$Q$2:$Q$1000=Costs!H$617))-SUMPRODUCT(('Fixed assets'!$Q$2:$Q$1000=Costs!H$617)*('Fixed assets'!$U$2:$U$1000=Costs!$A682)*('Fixed assets'!$S$2:$S$1000))+SUMPRODUCT(('Fixed assets'!$Q$2:$Q$1000=Costs!H$617)*('Fixed assets'!$P$2:$P$1000=Costs!$A682)*('Fixed assets'!$U$2:$U$1000=Costs!$A682)*('Fixed assets'!$R$2:$R$1000))","v":0},{"$f":"SUMPRODUCT(('Fixed assets'!$R$2:$R$1000)*('Fixed assets'!$P$2:$P$1000<$A682)*('Fixed assets'!$Q$2:$Q$1000=Costs!I$617))-SUMPRODUCT(('Fixed assets'!$S$2:$S$1000)*('Fixed assets'!$P$2:$P$1000<Costs!$A682)*('Fixed assets'!$Q$2:$Q$1000=Costs!I$617))-SUMPRODUCT(('Fixed assets'!$Q$2:$Q$1000=Costs!I$617)*('Fixed assets'!$U$2:$U$1000=Costs!$A682)*('Fixed assets'!$S$2:$S$1000))+SUMPRODUCT(('Fixed assets'!$Q$2:$Q$1000=Costs!I$617)*('Fixed assets'!$P$2:$P$1000=Costs!$A682)*('Fixed assets'!$U$2:$U$1000=Costs!$A682)*('Fixed assets'!$R$2:$R$1000))","v":0},{"$f":"SUMPRODUCT(('Fixed assets'!$R$2:$R$1000)*('Fixed assets'!$P$2:$P$1000<$A682)*('Fixed assets'!$Q$2:$Q$1000=Costs!J$617))-SUMPRODUCT(('Fixed assets'!$S$2:$S$1000)*('Fixed assets'!$P$2:$P$1000<Costs!$A682)*('Fixed assets'!$Q$2:$Q$1000=Costs!J$617))-SUMPRODUCT(('Fixed assets'!$Q$2:$Q$1000=Costs!J$617)*('Fixed assets'!$U$2:$U$1000=Costs!$A682)*('Fixed assets'!$S$2:$S$1000))+SUMPRODUCT(('Fixed assets'!$Q$2:$Q$1000=Costs!J$617)*('Fixed assets'!$P$2:$P$1000=Costs!$A682)*('Fixed assets'!$U$2:$U$1000=Costs!$A682)*('Fixed assets'!$R$2:$R$1000))","v":0},{"$f":"SUMPRODUCT(('Fixed assets'!$R$2:$R$1000)*('Fixed assets'!$P$2:$P$1000<$A682)*('Fixed assets'!$Q$2:$Q$1000=Costs!K$617))-SUMPRODUCT(('Fixed assets'!$S$2:$S$1000)*('Fixed assets'!$P$2:$P$1000<Costs!$A682)*('Fixed assets'!$Q$2:$Q$1000=Costs!K$617))-SUMPRODUCT(('Fixed assets'!$Q$2:$Q$1000=Costs!K$617)*('Fixed assets'!$U$2:$U$1000=Costs!$A682)*('Fixed assets'!$S$2:$S$1000))+SUMPRODUCT(('Fixed assets'!$Q$2:$Q$1000=Costs!K$617)*('Fixed assets'!$P$2:$P$1000=Costs!$A682)*('Fixed assets'!$U$2:$U$1000=Costs!$A682)*('Fixed assets'!$R$2:$R$1000))","v":0},{"$f":"SUMPRODUCT(('Fixed assets'!$R$2:$R$1000)*('Fixed assets'!$P$2:$P$1000<$A682)*('Fixed assets'!$Q$2:$Q$1000=Costs!L$617))-SUMPRODUCT(('Fixed assets'!$S$2:$S$1000)*('Fixed assets'!$P$2:$P$1000<Costs!$A682)*('Fixed assets'!$Q$2:$Q$1000=Costs!L$617))-SUMPRODUCT(('Fixed assets'!$Q$2:$Q$1000=Costs!L$617)*('Fixed assets'!$U$2:$U$1000=Costs!$A682)*('Fixed assets'!$S$2:$S$1000))+SUMPRODUCT(('Fixed assets'!$Q$2:$Q$1000=Costs!L$617)*('Fixed assets'!$P$2:$P$1000=Costs!$A682)*('Fixed assets'!$U$2:$U$1000=Costs!$A682)*('Fixed assets'!$R$2:$R$1000))","v":0},{"$f":"SUMPRODUCT(('Fixed assets'!$R$2:$R$1000)*('Fixed assets'!$P$2:$P$1000<$A682)*('Fixed assets'!$Q$2:$Q$1000=Costs!M$617))-SUMPRODUCT(('Fixed assets'!$S$2:$S$1000)*('Fixed assets'!$P$2:$P$1000<Costs!$A682)*('Fixed assets'!$Q$2:$Q$1000=Costs!M$617))-SUMPRODUCT(('Fixed assets'!$Q$2:$Q$1000=Costs!M$617)*('Fixed assets'!$U$2:$U$1000=Costs!$A682)*('Fixed assets'!$S$2:$S$1000))+SUMPRODUCT(('Fixed assets'!$Q$2:$Q$1000=Costs!M$617)*('Fixed assets'!$P$2:$P$1000=Costs!$A682)*('Fixed assets'!$U$2:$U$1000=Costs!$A682)*('Fixed assets'!$R$2:$R$1000))","v":0},{"$f":"SUMPRODUCT(('Fixed assets'!$R$2:$R$1000)*('Fixed assets'!$P$2:$P$1000<$A682)*('Fixed assets'!$Q$2:$Q$1000=Costs!N$617))-SUMPRODUCT(('Fixed assets'!$S$2:$S$1000)*('Fixed assets'!$P$2:$P$1000<Costs!$A682)*('Fixed assets'!$Q$2:$Q$1000=Costs!N$617))-SUMPRODUCT(('Fixed assets'!$Q$2:$Q$1000=Costs!N$617)*('Fixed assets'!$U$2:$U$1000=Costs!$A682)*('Fixed assets'!$S$2:$S$1000))+SUMPRODUCT(('Fixed assets'!$Q$2:$Q$1000=Costs!N$617)*('Fixed assets'!$P$2:$P$1000=Costs!$A682)*('Fixed assets'!$U$2:$U$1000=Costs!$A682)*('Fixed assets'!$R$2:$R$1000))","v":0},{"$f":"SUMPRODUCT(('Fixed assets'!$R$2:$R$1000)*('Fixed assets'!$P$2:$P$1000<$A682)*('Fixed assets'!$Q$2:$Q$1000=Costs!O$617))-SUMPRODUCT(('Fixed assets'!$S$2:$S$1000)*('Fixed assets'!$P$2:$P$1000<Costs!$A682)*('Fixed assets'!$Q$2:$Q$1000=Costs!O$617))-SUMPRODUCT(('Fixed assets'!$Q$2:$Q$1000=Costs!O$617)*('Fixed assets'!$U$2:$U$1000=Costs!$A682)*('Fixed assets'!$S$2:$S$1000))+SUMPRODUCT(('Fixed assets'!$Q$2:$Q$1000=Costs!O$617)*('Fixed assets'!$P$2:$P$1000=Costs!$A682)*('Fixed assets'!$U$2:$U$1000=Costs!$A682)*('Fixed assets'!$R$2:$R$1000))","v":0},{"$f":"SUMPRODUCT(('Fixed assets'!$R$2:$R$1000)*('Fixed assets'!$P$2:$P$1000<$A682)*('Fixed assets'!$Q$2:$Q$1000=Costs!P$617))-SUMPRODUCT(('Fixed assets'!$S$2:$S$1000)*('Fixed assets'!$P$2:$P$1000<Costs!$A682)*('Fixed assets'!$Q$2:$Q$1000=Costs!P$617))-SUMPRODUCT(('Fixed assets'!$Q$2:$Q$1000=Costs!P$617)*('Fixed assets'!$U$2:$U$1000=Costs!$A682)*('Fixed assets'!$S$2:$S$1000))+SUMPRODUCT(('Fixed assets'!$Q$2:$Q$1000=Costs!P$617)*('Fixed assets'!$P$2:$P$1000=Costs!$A682)*('Fixed assets'!$U$2:$U$1000=Costs!$A682)*('Fixed assets'!$R$2:$R$1000))","v":0},{"$f":"SUMPRODUCT(('Fixed assets'!$R$2:$R$1000)*('Fixed assets'!$P$2:$P$1000<$A682)*('Fixed assets'!$Q$2:$Q$1000=Costs!Q$617))-SUMPRODUCT(('Fixed assets'!$S$2:$S$1000)*('Fixed assets'!$P$2:$P$1000<Costs!$A682)*('Fixed assets'!$Q$2:$Q$1000=Costs!Q$617))-SUMPRODUCT(('Fixed assets'!$Q$2:$Q$1000=Costs!Q$617)*('Fixed assets'!$U$2:$U$1000=Costs!$A682)*('Fixed assets'!$S$2:$S$1000))+SUMPRODUCT(('Fixed assets'!$Q$2:$Q$1000=Costs!Q$617)*('Fixed assets'!$P$2:$P$1000=Costs!$A682)*('Fixed assets'!$U$2:$U$1000=Costs!$A682)*('Fixed assets'!$R$2:$R$1000))","v":0},{"$f":"SUMPRODUCT(('Fixed assets'!$R$2:$R$1000)*('Fixed assets'!$P$2:$P$1000<$A682)*('Fixed assets'!$Q$2:$Q$1000=Costs!R$617))-SUMPRODUCT(('Fixed assets'!$S$2:$S$1000)*('Fixed assets'!$P$2:$P$1000<Costs!$A682)*('Fixed assets'!$Q$2:$Q$1000=Costs!R$617))-SUMPRODUCT(('Fixed assets'!$Q$2:$Q$1000=Costs!R$617)*('Fixed assets'!$U$2:$U$1000=Costs!$A682)*('Fixed assets'!$S$2:$S$1000))+SUMPRODUCT(('Fixed assets'!$Q$2:$Q$1000=Costs!R$617)*('Fixed assets'!$P$2:$P$1000=Costs!$A682)*('Fixed assets'!$U$2:$U$1000=Costs!$A682)*('Fixed assets'!$R$2:$R$1000))","v":0},{"$f":"SUMPRODUCT(('Fixed assets'!$R$2:$R$1000)*('Fixed assets'!$P$2:$P$1000<$A682)*('Fixed assets'!$Q$2:$Q$1000=Costs!S$617))-SUMPRODUCT(('Fixed assets'!$S$2:$S$1000)*('Fixed assets'!$P$2:$P$1000<Costs!$A682)*('Fixed assets'!$Q$2:$Q$1000=Costs!S$617))-SUMPRODUCT(('Fixed assets'!$Q$2:$Q$1000=Costs!S$617)*('Fixed assets'!$U$2:$U$1000=Costs!$A682)*('Fixed assets'!$S$2:$S$1000))+SUMPRODUCT(('Fixed assets'!$Q$2:$Q$1000=Costs!S$617)*('Fixed assets'!$P$2:$P$1000=Costs!$A682)*('Fixed assets'!$U$2:$U$1000=Costs!$A682)*('Fixed assets'!$R$2:$R$1000))","v":0},{"$f":"SUMPRODUCT(('Fixed assets'!$R$2:$R$1000)*('Fixed assets'!$P$2:$P$1000<$A682)*('Fixed assets'!$Q$2:$Q$1000=Costs!T$617))-SUMPRODUCT(('Fixed assets'!$S$2:$S$1000)*('Fixed assets'!$P$2:$P$1000<Costs!$A682)*('Fixed assets'!$Q$2:$Q$1000=Costs!T$617))-SUMPRODUCT(('Fixed assets'!$Q$2:$Q$1000=Costs!T$617)*('Fixed assets'!$U$2:$U$1000=Costs!$A682)*('Fixed assets'!$S$2:$S$1000))+SUMPRODUCT(('Fixed assets'!$Q$2:$Q$1000=Costs!T$617)*('Fixed assets'!$P$2:$P$1000=Costs!$A682)*('Fixed assets'!$U$2:$U$1000=Costs!$A682)*('Fixed assets'!$R$2:$R$1000))","v":0},{"$f":"SUMPRODUCT(('Fixed assets'!$R$2:$R$1000)*('Fixed assets'!$P$2:$P$1000<$A682)*('Fixed assets'!$Q$2:$Q$1000=Costs!U$617))-SUMPRODUCT(('Fixed assets'!$S$2:$S$1000)*('Fixed assets'!$P$2:$P$1000<Costs!$A682)*('Fixed assets'!$Q$2:$Q$1000=Costs!U$617))-SUMPRODUCT(('Fixed assets'!$Q$2:$Q$1000=Costs!U$617)*('Fixed assets'!$U$2:$U$1000=Costs!$A682)*('Fixed assets'!$S$2:$S$1000))+SUMPRODUCT(('Fixed assets'!$Q$2:$Q$1000=Costs!U$617)*('Fixed assets'!$P$2:$P$1000=Costs!$A682)*('Fixed assets'!$U$2:$U$1000=Costs!$A682)*('Fixed assets'!$R$2:$R$1000))","v":0},{"$f":"SUMPRODUCT(('Fixed assets'!$R$2:$R$1000)*('Fixed assets'!$P$2:$P$1000<$A682)*('Fixed assets'!$Q$2:$Q$1000=Costs!V$617))-SUMPRODUCT(('Fixed assets'!$S$2:$S$1000)*('Fixed assets'!$P$2:$P$1000<Costs!$A682)*('Fixed assets'!$Q$2:$Q$1000=Costs!V$617))-SUMPRODUCT(('Fixed assets'!$Q$2:$Q$1000=Costs!V$617)*('Fixed assets'!$U$2:$U$1000=Costs!$A682)*('Fixed assets'!$S$2:$S$1000))+SUMPRODUCT(('Fixed assets'!$Q$2:$Q$1000=Costs!V$617)*('Fixed assets'!$P$2:$P$1000=Costs!$A682)*('Fixed assets'!$U$2:$U$1000=Costs!$A682)*('Fixed assets'!$R$2:$R$1000))","v":0},{"$f":"SUMPRODUCT(('Fixed assets'!$R$2:$R$1000)*('Fixed assets'!$P$2:$P$1000<$A682)*('Fixed assets'!$Q$2:$Q$1000=Costs!W$617))-SUMPRODUCT(('Fixed assets'!$S$2:$S$1000)*('Fixed assets'!$P$2:$P$1000<Costs!$A682)*('Fixed assets'!$Q$2:$Q$1000=Costs!W$617))-SUMPRODUCT(('Fixed assets'!$Q$2:$Q$1000=Costs!W$617)*('Fixed assets'!$U$2:$U$1000=Costs!$A682)*('Fixed assets'!$S$2:$S$1000))+SUMPRODUCT(('Fixed assets'!$Q$2:$Q$1000=Costs!W$617)*('Fixed assets'!$P$2:$P$1000=Costs!$A682)*('Fixed assets'!$U$2:$U$1000=Costs!$A682)*('Fixed assets'!$R$2:$R$1000))","v":0},{"$f":"SUMPRODUCT(('Fixed assets'!$R$2:$R$1000)*('Fixed assets'!$P$2:$P$1000<$A682)*('Fixed assets'!$Q$2:$Q$1000=Costs!X$617))-SUMPRODUCT(('Fixed assets'!$S$2:$S$1000)*('Fixed assets'!$P$2:$P$1000<Costs!$A682)*('Fixed assets'!$Q$2:$Q$1000=Costs!X$617))-SUMPRODUCT(('Fixed assets'!$Q$2:$Q$1000=Costs!X$617)*('Fixed assets'!$U$2:$U$1000=Costs!$A682)*('Fixed assets'!$S$2:$S$1000))+SUMPRODUCT(('Fixed assets'!$Q$2:$Q$1000=Costs!X$617)*('Fixed assets'!$P$2:$P$1000=Costs!$A682)*('Fixed assets'!$U$2:$U$1000=Costs!$A682)*('Fixed assets'!$R$2:$R$1000))","v":0},{"$f":"SUMPRODUCT(('Fixed assets'!$R$2:$R$1000)*('Fixed assets'!$P$2:$P$1000<$A682)*('Fixed assets'!$Q$2:$Q$1000=Costs!Y$617))-SUMPRODUCT(('Fixed assets'!$S$2:$S$1000)*('Fixed assets'!$P$2:$P$1000<Costs!$A682)*('Fixed assets'!$Q$2:$Q$1000=Costs!Y$617))-SUMPRODUCT(('Fixed assets'!$Q$2:$Q$1000=Costs!Y$617)*('Fixed assets'!$U$2:$U$1000=Costs!$A682)*('Fixed assets'!$S$2:$S$1000))+SUMPRODUCT(('Fixed assets'!$Q$2:$Q$1000=Costs!Y$617)*('Fixed assets'!$P$2:$P$1000=Costs!$A682)*('Fixed assets'!$U$2:$U$1000=Costs!$A682)*('Fixed assets'!$R$2:$R$1000))","v":0},{"$f":"SUMPRODUCT(('Fixed assets'!$R$2:$R$1000)*('Fixed assets'!$P$2:$P$1000<$A682)*('Fixed assets'!$Q$2:$Q$1000=Costs!Z$617))-SUMPRODUCT(('Fixed assets'!$S$2:$S$1000)*('Fixed assets'!$P$2:$P$1000<Costs!$A682)*('Fixed assets'!$Q$2:$Q$1000=Costs!Z$617))-SUMPRODUCT(('Fixed assets'!$Q$2:$Q$1000=Costs!Z$617)*('Fixed assets'!$U$2:$U$1000=Costs!$A682)*('Fixed assets'!$S$2:$S$1000))+SUMPRODUCT(('Fixed assets'!$Q$2:$Q$1000=Costs!Z$617)*('Fixed assets'!$P$2:$P$1000=Costs!$A682)*('Fixed assets'!$U$2:$U$1000=Costs!$A682)*('Fixed assets'!$R$2:$R$1000))","v":0},{"$f":"SUMPRODUCT(('Fixed assets'!$R$2:$R$1000)*('Fixed assets'!$P$2:$P$1000<$A682)*('Fixed assets'!$Q$2:$Q$1000=Costs!AA$617))-SUMPRODUCT(('Fixed assets'!$S$2:$S$1000)*('Fixed assets'!$P$2:$P$1000<Costs!$A682)*('Fixed assets'!$Q$2:$Q$1000=Costs!AA$617))-SUMPRODUCT(('Fixed assets'!$Q$2:$Q$1000=Costs!AA$617)*('Fixed assets'!$U$2:$U$1000=Costs!$A682)*('Fixed assets'!$S$2:$S$1000))+SUMPRODUCT(('Fixed assets'!$Q$2:$Q$1000=Costs!AA$617)*('Fixed assets'!$P$2:$P$1000=Costs!$A682)*('Fixed assets'!$U$2:$U$1000=Costs!$A682)*('Fixed assets'!$R$2:$R$1000))","v":0},{"$f":"SUMPRODUCT(('Fixed assets'!$R$2:$R$1000)*('Fixed assets'!$P$2:$P$1000<$A682)*('Fixed assets'!$Q$2:$Q$1000=Costs!AB$617))-SUMPRODUCT(('Fixed assets'!$S$2:$S$1000)*('Fixed assets'!$P$2:$P$1000<Costs!$A682)*('Fixed assets'!$Q$2:$Q$1000=Costs!AB$617))-SUMPRODUCT(('Fixed assets'!$Q$2:$Q$1000=Costs!AB$617)*('Fixed assets'!$U$2:$U$1000=Costs!$A682)*('Fixed assets'!$S$2:$S$1000))+SUMPRODUCT(('Fixed assets'!$Q$2:$Q$1000=Costs!AB$617)*('Fixed assets'!$P$2:$P$1000=Costs!$A682)*('Fixed assets'!$U$2:$U$1000=Costs!$A682)*('Fixed assets'!$R$2:$R$1000))","v":0},{"$f":"SUMPRODUCT(('Fixed assets'!$R$2:$R$1000)*('Fixed assets'!$P$2:$P$1000<$A682)*('Fixed assets'!$Q$2:$Q$1000=Costs!AC$617))-SUMPRODUCT(('Fixed assets'!$S$2:$S$1000)*('Fixed assets'!$P$2:$P$1000<Costs!$A682)*('Fixed assets'!$Q$2:$Q$1000=Costs!AC$617))-SUMPRODUCT(('Fixed assets'!$Q$2:$Q$1000=Costs!AC$617)*('Fixed assets'!$U$2:$U$1000=Costs!$A682)*('Fixed assets'!$S$2:$S$1000))+SUMPRODUCT(('Fixed assets'!$Q$2:$Q$1000=Costs!AC$617)*('Fixed assets'!$P$2:$P$1000=Costs!$A682)*('Fixed assets'!$U$2:$U$1000=Costs!$A682)*('Fixed assets'!$R$2:$R$1000))","v":0},{"$f":"SUMPRODUCT(('Fixed assets'!$R$2:$R$1000)*('Fixed assets'!$P$2:$P$1000<$A682)*('Fixed assets'!$Q$2:$Q$1000=Costs!AD$617))-SUMPRODUCT(('Fixed assets'!$S$2:$S$1000)*('Fixed assets'!$P$2:$P$1000<Costs!$A682)*('Fixed assets'!$Q$2:$Q$1000=Costs!AD$617))-SUMPRODUCT(('Fixed assets'!$Q$2:$Q$1000=Costs!AD$617)*('Fixed assets'!$U$2:$U$1000=Costs!$A682)*('Fixed assets'!$S$2:$S$1000))+SUMPRODUCT(('Fixed assets'!$Q$2:$Q$1000=Costs!AD$617)*('Fixed assets'!$P$2:$P$1000=Costs!$A682)*('Fixed assets'!$U$2:$U$1000=Costs!$A682)*('Fixed assets'!$R$2:$R$1000))","v":0},{"$f":"SUMPRODUCT(('Fixed assets'!$R$2:$R$1000)*('Fixed assets'!$P$2:$P$1000<$A682)*('Fixed assets'!$Q$2:$Q$1000=Costs!AE$617))-SUMPRODUCT(('Fixed assets'!$S$2:$S$1000)*('Fixed assets'!$P$2:$P$1000<Costs!$A682)*('Fixed assets'!$Q$2:$Q$1000=Costs!AE$617))-SUMPRODUCT(('Fixed assets'!$Q$2:$Q$1000=Costs!AE$617)*('Fixed assets'!$U$2:$U$1000=Costs!$A682)*('Fixed assets'!$S$2:$S$1000))+SUMPRODUCT(('Fixed assets'!$Q$2:$Q$1000=Costs!AE$617)*('Fixed assets'!$P$2:$P$1000=Costs!$A682)*('Fixed assets'!$U$2:$U$1000=Costs!$A682)*('Fixed assets'!$R$2:$R$1000))","v":0},{"$f":"SUMPRODUCT(('Fixed assets'!$R$2:$R$1000)*('Fixed assets'!$P$2:$P$1000<$A682)*('Fixed assets'!$Q$2:$Q$1000=Costs!AF$617))-SUMPRODUCT(('Fixed assets'!$S$2:$S$1000)*('Fixed assets'!$P$2:$P$1000<Costs!$A682)*('Fixed assets'!$Q$2:$Q$1000=Costs!AF$617))-SUMPRODUCT(('Fixed assets'!$Q$2:$Q$1000=Costs!AF$617)*('Fixed assets'!$U$2:$U$1000=Costs!$A682)*('Fixed assets'!$S$2:$S$1000))+SUMPRODUCT(('Fixed assets'!$Q$2:$Q$1000=Costs!AF$617)*('Fixed assets'!$P$2:$P$1000=Costs!$A682)*('Fixed assets'!$U$2:$U$1000=Costs!$A682)*('Fixed assets'!$R$2:$R$1000))","v":0},{"$f":"SUMPRODUCT(('Fixed assets'!$R$2:$R$1000)*('Fixed assets'!$P$2:$P$1000<$A682)*('Fixed assets'!$Q$2:$Q$1000=Costs!AG$617))-SUMPRODUCT(('Fixed assets'!$S$2:$S$1000)*('Fixed assets'!$P$2:$P$1000<Costs!$A682)*('Fixed assets'!$Q$2:$Q$1000=Costs!AG$617))-SUMPRODUCT(('Fixed assets'!$Q$2:$Q$1000=Costs!AG$617)*('Fixed assets'!$U$2:$U$1000=Costs!$A682)*('Fixed assets'!$S$2:$S$1000))+SUMPRODUCT(('Fixed assets'!$Q$2:$Q$1000=Costs!AG$617)*('Fixed assets'!$P$2:$P$1000=Costs!$A682)*('Fixed assets'!$U$2:$U$1000=Costs!$A682)*('Fixed assets'!$R$2:$R$1000))","v":0},{"$f":"SUMPRODUCT(('Fixed assets'!$R$2:$R$1000)*('Fixed assets'!$P$2:$P$1000<$A682)*('Fixed assets'!$Q$2:$Q$1000=Costs!AH$617))-SUMPRODUCT(('Fixed assets'!$S$2:$S$1000)*('Fixed assets'!$P$2:$P$1000<Costs!$A682)*('Fixed assets'!$Q$2:$Q$1000=Costs!AH$617))-SUMPRODUCT(('Fixed assets'!$Q$2:$Q$1000=Costs!AH$617)*('Fixed assets'!$U$2:$U$1000=Costs!$A682)*('Fixed assets'!$S$2:$S$1000))+SUMPRODUCT(('Fixed assets'!$Q$2:$Q$1000=Costs!AH$617)*('Fixed assets'!$P$2:$P$1000=Costs!$A682)*('Fixed assets'!$U$2:$U$1000=Costs!$A682)*('Fixed assets'!$R$2:$R$1000))","v":0},{"$f":"SUMPRODUCT(('Fixed assets'!$R$2:$R$1000)*('Fixed assets'!$P$2:$P$1000<$A682)*('Fixed assets'!$Q$2:$Q$1000=Costs!AI$617))-SUMPRODUCT(('Fixed assets'!$S$2:$S$1000)*('Fixed assets'!$P$2:$P$1000<Costs!$A682)*('Fixed assets'!$Q$2:$Q$1000=Costs!AI$617))-SUMPRODUCT(('Fixed assets'!$Q$2:$Q$1000=Costs!AI$617)*('Fixed assets'!$U$2:$U$1000=Costs!$A682)*('Fixed assets'!$S$2:$S$1000))+SUMPRODUCT(('Fixed assets'!$Q$2:$Q$1000=Costs!AI$617)*('Fixed assets'!$P$2:$P$1000=Costs!$A682)*('Fixed assets'!$U$2:$U$1000=Costs!$A682)*('Fixed assets'!$R$2:$R$1000))","v":0},{"$f":"SUMPRODUCT(('Fixed assets'!$R$2:$R$1000)*('Fixed assets'!$P$2:$P$1000<$A682)*('Fixed assets'!$Q$2:$Q$1000=Costs!AJ$617))-SUMPRODUCT(('Fixed assets'!$S$2:$S$1000)*('Fixed assets'!$P$2:$P$1000<Costs!$A682)*('Fixed assets'!$Q$2:$Q$1000=Costs!AJ$617))-SUMPRODUCT(('Fixed assets'!$Q$2:$Q$1000=Costs!AJ$617)*('Fixed assets'!$U$2:$U$1000=Costs!$A682)*('Fixed assets'!$S$2:$S$1000))+SUMPRODUCT(('Fixed assets'!$Q$2:$Q$1000=Costs!AJ$617)*('Fixed assets'!$P$2:$P$1000=Costs!$A682)*('Fixed assets'!$U$2:$U$1000=Costs!$A682)*('Fixed assets'!$R$2:$R$1000))","v":0},{"$f":"SUMPRODUCT(('Fixed assets'!$R$2:$R$1000)*('Fixed assets'!$P$2:$P$1000<$A682)*('Fixed assets'!$Q$2:$Q$1000=Costs!AK$617))-SUMPRODUCT(('Fixed assets'!$S$2:$S$1000)*('Fixed assets'!$P$2:$P$1000<Costs!$A682)*('Fixed assets'!$Q$2:$Q$1000=Costs!AK$617))-SUMPRODUCT(('Fixed assets'!$Q$2:$Q$1000=Costs!AK$617)*('Fixed assets'!$U$2:$U$1000=Costs!$A682)*('Fixed assets'!$S$2:$S$1000))+SUMPRODUCT(('Fixed assets'!$Q$2:$Q$1000=Costs!AK$617)*('Fixed assets'!$P$2:$P$1000=Costs!$A682)*('Fixed assets'!$U$2:$U$1000=Costs!$A682)*('Fixed assets'!$R$2:$R$1000))","v":0},{"$f":"SUMPRODUCT(('Fixed assets'!$R$2:$R$1000)*('Fixed assets'!$P$2:$P$1000<$A682)*('Fixed assets'!$Q$2:$Q$1000=Costs!AL$617))-SUMPRODUCT(('Fixed assets'!$S$2:$S$1000)*('Fixed assets'!$P$2:$P$1000<Costs!$A682)*('Fixed assets'!$Q$2:$Q$1000=Costs!AL$617))-SUMPRODUCT(('Fixed assets'!$Q$2:$Q$1000=Costs!AL$617)*('Fixed assets'!$U$2:$U$1000=Costs!$A682)*('Fixed assets'!$S$2:$S$1000))+SUMPRODUCT(('Fixed assets'!$Q$2:$Q$1000=Costs!AL$617)*('Fixed assets'!$P$2:$P$1000=Costs!$A682)*('Fixed assets'!$U$2:$U$1000=Costs!$A682)*('Fixed assets'!$R$2:$R$1000))","v":0},{"$f":"SUMPRODUCT(('Fixed assets'!$R$2:$R$1000)*('Fixed assets'!$P$2:$P$1000<$A682)*('Fixed assets'!$Q$2:$Q$1000=Costs!AM$617))-SUMPRODUCT(('Fixed assets'!$S$2:$S$1000)*('Fixed assets'!$P$2:$P$1000<Costs!$A682)*('Fixed assets'!$Q$2:$Q$1000=Costs!AM$617))-SUMPRODUCT(('Fixed assets'!$Q$2:$Q$1000=Costs!AM$617)*('Fixed assets'!$U$2:$U$1000=Costs!$A682)*('Fixed assets'!$S$2:$S$1000))+SUMPRODUCT(('Fixed assets'!$Q$2:$Q$1000=Costs!AM$617)*('Fixed assets'!$P$2:$P$1000=Costs!$A682)*('Fixed assets'!$U$2:$U$1000=Costs!$A682)*('Fixed assets'!$R$2:$R$1000))","v":0},{"$f":"SUMPRODUCT(('Fixed assets'!$R$2:$R$1000)*('Fixed assets'!$P$2:$P$1000<$A682)*('Fixed assets'!$Q$2:$Q$1000=Costs!AN$617))-SUMPRODUCT(('Fixed assets'!$S$2:$S$1000)*('Fixed assets'!$P$2:$P$1000<Costs!$A682)*('Fixed assets'!$Q$2:$Q$1000=Costs!AN$617))-SUMPRODUCT(('Fixed assets'!$Q$2:$Q$1000=Costs!AN$617)*('Fixed assets'!$U$2:$U$1000=Costs!$A682)*('Fixed assets'!$S$2:$S$1000))+SUMPRODUCT(('Fixed assets'!$Q$2:$Q$1000=Costs!AN$617)*('Fixed assets'!$P$2:$P$1000=Costs!$A682)*('Fixed assets'!$U$2:$U$1000=Costs!$A682)*('Fixed assets'!$R$2:$R$1000))","v":0},{"$f":"SUMPRODUCT(('Fixed assets'!$R$2:$R$1000)*('Fixed assets'!$P$2:$P$1000<$A682)*('Fixed assets'!$Q$2:$Q$1000=Costs!AO$617))-SUMPRODUCT(('Fixed assets'!$S$2:$S$1000)*('Fixed assets'!$P$2:$P$1000<Costs!$A682)*('Fixed assets'!$Q$2:$Q$1000=Costs!AO$617))-SUMPRODUCT(('Fixed assets'!$Q$2:$Q$1000=Costs!AO$617)*('Fixed assets'!$U$2:$U$1000=Costs!$A682)*('Fixed assets'!$S$2:$S$1000))+SUMPRODUCT(('Fixed assets'!$Q$2:$Q$1000=Costs!AO$617)*('Fixed assets'!$P$2:$P$1000=Costs!$A682)*('Fixed assets'!$U$2:$U$1000=Costs!$A682)*('Fixed assets'!$R$2:$R$1000))","v":0},{"$f":"SUMPRODUCT(('Fixed assets'!$R$2:$R$1000)*('Fixed assets'!$P$2:$P$1000<$A682)*('Fixed assets'!$Q$2:$Q$1000=Costs!AP$617))-SUMPRODUCT(('Fixed assets'!$S$2:$S$1000)*('Fixed assets'!$P$2:$P$1000<Costs!$A682)*('Fixed assets'!$Q$2:$Q$1000=Costs!AP$617))-SUMPRODUCT(('Fixed assets'!$Q$2:$Q$1000=Costs!AP$617)*('Fixed assets'!$U$2:$U$1000=Costs!$A682)*('Fixed assets'!$S$2:$S$1000))+SUMPRODUCT(('Fixed assets'!$Q$2:$Q$1000=Costs!AP$617)*('Fixed assets'!$P$2:$P$1000=Costs!$A682)*('Fixed assets'!$U$2:$U$1000=Costs!$A682)*('Fixed assets'!$R$2:$R$1000))","v":0},{"$f":"SUMPRODUCT(('Fixed assets'!$R$2:$R$1000)*('Fixed assets'!$P$2:$P$1000<$A682)*('Fixed assets'!$Q$2:$Q$1000=Costs!AQ$617))-SUMPRODUCT(('Fixed assets'!$S$2:$S$1000)*('Fixed assets'!$P$2:$P$1000<Costs!$A682)*('Fixed assets'!$Q$2:$Q$1000=Costs!AQ$617))-SUMPRODUCT(('Fixed assets'!$Q$2:$Q$1000=Costs!AQ$617)*('Fixed assets'!$U$2:$U$1000=Costs!$A682)*('Fixed assets'!$S$2:$S$1000))+SUMPRODUCT(('Fixed assets'!$Q$2:$Q$1000=Costs!AQ$617)*('Fixed assets'!$P$2:$P$1000=Costs!$A682)*('Fixed assets'!$U$2:$U$1000=Costs!$A682)*('Fixed assets'!$R$2:$R$1000))","v":0}]
[2080,0,{"$f":"SUMPRODUCT(('Fixed assets'!$R$2:$R$1000)*('Fixed assets'!$P$2:$P$1000<$A683)*('Fixed assets'!$Q$2:$Q$1000=Costs!C$617))-SUMPRODUCT(('Fixed assets'!$S$2:$S$1000)*('Fixed assets'!$P$2:$P$1000<Costs!$A683)*('Fixed assets'!$Q$2:$Q$1000=Costs!C$617))-SUMPRODUCT(('Fixed assets'!$Q$2:$Q$1000=Costs!C$617)*('Fixed assets'!$U$2:$U$1000=Costs!$A683)*('Fixed assets'!$S$2:$S$1000))+SUMPRODUCT(('Fixed assets'!$Q$2:$Q$1000=Costs!C$617)*('Fixed assets'!$P$2:$P$1000=Costs!$A683)*('Fixed assets'!$U$2:$U$1000=Costs!$A683)*('Fixed assets'!$R$2:$R$1000))","v":0},{"$f":"SUMPRODUCT(('Fixed assets'!$R$2:$R$1000)*('Fixed assets'!$P$2:$P$1000<$A683)*('Fixed assets'!$Q$2:$Q$1000=Costs!D$617))-SUMPRODUCT(('Fixed assets'!$S$2:$S$1000)*('Fixed assets'!$P$2:$P$1000<Costs!$A683)*('Fixed assets'!$Q$2:$Q$1000=Costs!D$617))-SUMPRODUCT(('Fixed assets'!$Q$2:$Q$1000=Costs!D$617)*('Fixed assets'!$U$2:$U$1000=Costs!$A683)*('Fixed assets'!$S$2:$S$1000))+SUMPRODUCT(('Fixed assets'!$Q$2:$Q$1000=Costs!D$617)*('Fixed assets'!$P$2:$P$1000=Costs!$A683)*('Fixed assets'!$U$2:$U$1000=Costs!$A683)*('Fixed assets'!$R$2:$R$1000))","v":0},{"$f":"SUMPRODUCT(('Fixed assets'!$R$2:$R$1000)*('Fixed assets'!$P$2:$P$1000<$A683)*('Fixed assets'!$Q$2:$Q$1000=Costs!E$617))-SUMPRODUCT(('Fixed assets'!$S$2:$S$1000)*('Fixed assets'!$P$2:$P$1000<Costs!$A683)*('Fixed assets'!$Q$2:$Q$1000=Costs!E$617))-SUMPRODUCT(('Fixed assets'!$Q$2:$Q$1000=Costs!E$617)*('Fixed assets'!$U$2:$U$1000=Costs!$A683)*('Fixed assets'!$S$2:$S$1000))+SUMPRODUCT(('Fixed assets'!$Q$2:$Q$1000=Costs!E$617)*('Fixed assets'!$P$2:$P$1000=Costs!$A683)*('Fixed assets'!$U$2:$U$1000=Costs!$A683)*('Fixed assets'!$R$2:$R$1000))","v":0},{"$f":"SUMPRODUCT(('Fixed assets'!$R$2:$R$1000)*('Fixed assets'!$P$2:$P$1000<$A683)*('Fixed assets'!$Q$2:$Q$1000=Costs!F$617))-SUMPRODUCT(('Fixed assets'!$S$2:$S$1000)*('Fixed assets'!$P$2:$P$1000<Costs!$A683)*('Fixed assets'!$Q$2:$Q$1000=Costs!F$617))-SUMPRODUCT(('Fixed assets'!$Q$2:$Q$1000=Costs!F$617)*('Fixed assets'!$U$2:$U$1000=Costs!$A683)*('Fixed assets'!$S$2:$S$1000))+SUMPRODUCT(('Fixed assets'!$Q$2:$Q$1000=Costs!F$617)*('Fixed assets'!$P$2:$P$1000=Costs!$A683)*('Fixed assets'!$U$2:$U$1000=Costs!$A683)*('Fixed assets'!$R$2:$R$1000))","v":0},{"$f":"SUMPRODUCT(('Fixed assets'!$R$2:$R$1000)*('Fixed assets'!$P$2:$P$1000<$A683)*('Fixed assets'!$Q$2:$Q$1000=Costs!G$617))-SUMPRODUCT(('Fixed assets'!$S$2:$S$1000)*('Fixed assets'!$P$2:$P$1000<Costs!$A683)*('Fixed assets'!$Q$2:$Q$1000=Costs!G$617))-SUMPRODUCT(('Fixed assets'!$Q$2:$Q$1000=Costs!G$617)*('Fixed assets'!$U$2:$U$1000=Costs!$A683)*('Fixed assets'!$S$2:$S$1000))+SUMPRODUCT(('Fixed assets'!$Q$2:$Q$1000=Costs!G$617)*('Fixed assets'!$P$2:$P$1000=Costs!$A683)*('Fixed assets'!$U$2:$U$1000=Costs!$A683)*('Fixed assets'!$R$2:$R$1000))","v":0},{"$f":"SUMPRODUCT(('Fixed assets'!$R$2:$R$1000)*('Fixed assets'!$P$2:$P$1000<$A683)*('Fixed assets'!$Q$2:$Q$1000=Costs!H$617))-SUMPRODUCT(('Fixed assets'!$S$2:$S$1000)*('Fixed assets'!$P$2:$P$1000<Costs!$A683)*('Fixed assets'!$Q$2:$Q$1000=Costs!H$617))-SUMPRODUCT(('Fixed assets'!$Q$2:$Q$1000=Costs!H$617)*('Fixed assets'!$U$2:$U$1000=Costs!$A683)*('Fixed assets'!$S$2:$S$1000))+SUMPRODUCT(('Fixed assets'!$Q$2:$Q$1000=Costs!H$617)*('Fixed assets'!$P$2:$P$1000=Costs!$A683)*('Fixed assets'!$U$2:$U$1000=Costs!$A683)*('Fixed assets'!$R$2:$R$1000))","v":0},{"$f":"SUMPRODUCT(('Fixed assets'!$R$2:$R$1000)*('Fixed assets'!$P$2:$P$1000<$A683)*('Fixed assets'!$Q$2:$Q$1000=Costs!I$617))-SUMPRODUCT(('Fixed assets'!$S$2:$S$1000)*('Fixed assets'!$P$2:$P$1000<Costs!$A683)*('Fixed assets'!$Q$2:$Q$1000=Costs!I$617))-SUMPRODUCT(('Fixed assets'!$Q$2:$Q$1000=Costs!I$617)*('Fixed assets'!$U$2:$U$1000=Costs!$A683)*('Fixed assets'!$S$2:$S$1000))+SUMPRODUCT(('Fixed assets'!$Q$2:$Q$1000=Costs!I$617)*('Fixed assets'!$P$2:$P$1000=Costs!$A683)*('Fixed assets'!$U$2:$U$1000=Costs!$A683)*('Fixed assets'!$R$2:$R$1000))","v":0},{"$f":"SUMPRODUCT(('Fixed assets'!$R$2:$R$1000)*('Fixed assets'!$P$2:$P$1000<$A683)*('Fixed assets'!$Q$2:$Q$1000=Costs!J$617))-SUMPRODUCT(('Fixed assets'!$S$2:$S$1000)*('Fixed assets'!$P$2:$P$1000<Costs!$A683)*('Fixed assets'!$Q$2:$Q$1000=Costs!J$617))-SUMPRODUCT(('Fixed assets'!$Q$2:$Q$1000=Costs!J$617)*('Fixed assets'!$U$2:$U$1000=Costs!$A683)*('Fixed assets'!$S$2:$S$1000))+SUMPRODUCT(('Fixed assets'!$Q$2:$Q$1000=Costs!J$617)*('Fixed assets'!$P$2:$P$1000=Costs!$A683)*('Fixed assets'!$U$2:$U$1000=Costs!$A683)*('Fixed assets'!$R$2:$R$1000))","v":0},{"$f":"SUMPRODUCT(('Fixed assets'!$R$2:$R$1000)*('Fixed assets'!$P$2:$P$1000<$A683)*('Fixed assets'!$Q$2:$Q$1000=Costs!K$617))-SUMPRODUCT(('Fixed assets'!$S$2:$S$1000)*('Fixed assets'!$P$2:$P$1000<Costs!$A683)*('Fixed assets'!$Q$2:$Q$1000=Costs!K$617))-SUMPRODUCT(('Fixed assets'!$Q$2:$Q$1000=Costs!K$617)*('Fixed assets'!$U$2:$U$1000=Costs!$A683)*('Fixed assets'!$S$2:$S$1000))+SUMPRODUCT(('Fixed assets'!$Q$2:$Q$1000=Costs!K$617)*('Fixed assets'!$P$2:$P$1000=Costs!$A683)*('Fixed assets'!$U$2:$U$1000=Costs!$A683)*('Fixed assets'!$R$2:$R$1000))","v":0},{"$f":"SUMPRODUCT(('Fixed assets'!$R$2:$R$1000)*('Fixed assets'!$P$2:$P$1000<$A683)*('Fixed assets'!$Q$2:$Q$1000=Costs!L$617))-SUMPRODUCT(('Fixed assets'!$S$2:$S$1000)*('Fixed assets'!$P$2:$P$1000<Costs!$A683)*('Fixed assets'!$Q$2:$Q$1000=Costs!L$617))-SUMPRODUCT(('Fixed assets'!$Q$2:$Q$1000=Costs!L$617)*('Fixed assets'!$U$2:$U$1000=Costs!$A683)*('Fixed assets'!$S$2:$S$1000))+SUMPRODUCT(('Fixed assets'!$Q$2:$Q$1000=Costs!L$617)*('Fixed assets'!$P$2:$P$1000=Costs!$A683)*('Fixed assets'!$U$2:$U$1000=Costs!$A683)*('Fixed assets'!$R$2:$R$1000))","v":0},{"$f":"SUMPRODUCT(('Fixed assets'!$R$2:$R$1000)*('Fixed assets'!$P$2:$P$1000<$A683)*('Fixed assets'!$Q$2:$Q$1000=Costs!M$617))-SUMPRODUCT(('Fixed assets'!$S$2:$S$1000)*('Fixed assets'!$P$2:$P$1000<Costs!$A683)*('Fixed assets'!$Q$2:$Q$1000=Costs!M$617))-SUMPRODUCT(('Fixed assets'!$Q$2:$Q$1000=Costs!M$617)*('Fixed assets'!$U$2:$U$1000=Costs!$A683)*('Fixed assets'!$S$2:$S$1000))+SUMPRODUCT(('Fixed assets'!$Q$2:$Q$1000=Costs!M$617)*('Fixed assets'!$P$2:$P$1000=Costs!$A683)*('Fixed assets'!$U$2:$U$1000=Costs!$A683)*('Fixed assets'!$R$2:$R$1000))","v":0},{"$f":"SUMPRODUCT(('Fixed assets'!$R$2:$R$1000)*('Fixed assets'!$P$2:$P$1000<$A683)*('Fixed assets'!$Q$2:$Q$1000=Costs!N$617))-SUMPRODUCT(('Fixed assets'!$S$2:$S$1000)*('Fixed assets'!$P$2:$P$1000<Costs!$A683)*('Fixed assets'!$Q$2:$Q$1000=Costs!N$617))-SUMPRODUCT(('Fixed assets'!$Q$2:$Q$1000=Costs!N$617)*('Fixed assets'!$U$2:$U$1000=Costs!$A683)*('Fixed assets'!$S$2:$S$1000))+SUMPRODUCT(('Fixed assets'!$Q$2:$Q$1000=Costs!N$617)*('Fixed assets'!$P$2:$P$1000=Costs!$A683)*('Fixed assets'!$U$2:$U$1000=Costs!$A683)*('Fixed assets'!$R$2:$R$1000))","v":0},{"$f":"SUMPRODUCT(('Fixed assets'!$R$2:$R$1000)*('Fixed assets'!$P$2:$P$1000<$A683)*('Fixed assets'!$Q$2:$Q$1000=Costs!O$617))-SUMPRODUCT(('Fixed assets'!$S$2:$S$1000)*('Fixed assets'!$P$2:$P$1000<Costs!$A683)*('Fixed assets'!$Q$2:$Q$1000=Costs!O$617))-SUMPRODUCT(('Fixed assets'!$Q$2:$Q$1000=Costs!O$617)*('Fixed assets'!$U$2:$U$1000=Costs!$A683)*('Fixed assets'!$S$2:$S$1000))+SUMPRODUCT(('Fixed assets'!$Q$2:$Q$1000=Costs!O$617)*('Fixed assets'!$P$2:$P$1000=Costs!$A683)*('Fixed assets'!$U$2:$U$1000=Costs!$A683)*('Fixed assets'!$R$2:$R$1000))","v":0},{"$f":"SUMPRODUCT(('Fixed assets'!$R$2:$R$1000)*('Fixed assets'!$P$2:$P$1000<$A683)*('Fixed assets'!$Q$2:$Q$1000=Costs!P$617))-SUMPRODUCT(('Fixed assets'!$S$2:$S$1000)*('Fixed assets'!$P$2:$P$1000<Costs!$A683)*('Fixed assets'!$Q$2:$Q$1000=Costs!P$617))-SUMPRODUCT(('Fixed assets'!$Q$2:$Q$1000=Costs!P$617)*('Fixed assets'!$U$2:$U$1000=Costs!$A683)*('Fixed assets'!$S$2:$S$1000))+SUMPRODUCT(('Fixed assets'!$Q$2:$Q$1000=Costs!P$617)*('Fixed assets'!$P$2:$P$1000=Costs!$A683)*('Fixed assets'!$U$2:$U$1000=Costs!$A683)*('Fixed assets'!$R$2:$R$1000))","v":0},{"$f":"SUMPRODUCT(('Fixed assets'!$R$2:$R$1000)*('Fixed assets'!$P$2:$P$1000<$A683)*('Fixed assets'!$Q$2:$Q$1000=Costs!Q$617))-SUMPRODUCT(('Fixed assets'!$S$2:$S$1000)*('Fixed assets'!$P$2:$P$1000<Costs!$A683)*('Fixed assets'!$Q$2:$Q$1000=Costs!Q$617))-SUMPRODUCT(('Fixed assets'!$Q$2:$Q$1000=Costs!Q$617)*('Fixed assets'!$U$2:$U$1000=Costs!$A683)*('Fixed assets'!$S$2:$S$1000))+SUMPRODUCT(('Fixed assets'!$Q$2:$Q$1000=Costs!Q$617)*('Fixed assets'!$P$2:$P$1000=Costs!$A683)*('Fixed assets'!$U$2:$U$1000=Costs!$A683)*('Fixed assets'!$R$2:$R$1000))","v":0},{"$f":"SUMPRODUCT(('Fixed assets'!$R$2:$R$1000)*('Fixed assets'!$P$2:$P$1000<$A683)*('Fixed assets'!$Q$2:$Q$1000=Costs!R$617))-SUMPRODUCT(('Fixed assets'!$S$2:$S$1000)*('Fixed assets'!$P$2:$P$1000<Costs!$A683)*('Fixed assets'!$Q$2:$Q$1000=Costs!R$617))-SUMPRODUCT(('Fixed assets'!$Q$2:$Q$1000=Costs!R$617)*('Fixed assets'!$U$2:$U$1000=Costs!$A683)*('Fixed assets'!$S$2:$S$1000))+SUMPRODUCT(('Fixed assets'!$Q$2:$Q$1000=Costs!R$617)*('Fixed assets'!$P$2:$P$1000=Costs!$A683)*('Fixed assets'!$U$2:$U$1000=Costs!$A683)*('Fixed assets'!$R$2:$R$1000))","v":0},{"$f":"SUMPRODUCT(('Fixed assets'!$R$2:$R$1000)*('Fixed assets'!$P$2:$P$1000<$A683)*('Fixed assets'!$Q$2:$Q$1000=Costs!S$617))-SUMPRODUCT(('Fixed assets'!$S$2:$S$1000)*('Fixed assets'!$P$2:$P$1000<Costs!$A683)*('Fixed assets'!$Q$2:$Q$1000=Costs!S$617))-SUMPRODUCT(('Fixed assets'!$Q$2:$Q$1000=Costs!S$617)*('Fixed assets'!$U$2:$U$1000=Costs!$A683)*('Fixed assets'!$S$2:$S$1000))+SUMPRODUCT(('Fixed assets'!$Q$2:$Q$1000=Costs!S$617)*('Fixed assets'!$P$2:$P$1000=Costs!$A683)*('Fixed assets'!$U$2:$U$1000=Costs!$A683)*('Fixed assets'!$R$2:$R$1000))","v":0},{"$f":"SUMPRODUCT(('Fixed assets'!$R$2:$R$1000)*('Fixed assets'!$P$2:$P$1000<$A683)*('Fixed assets'!$Q$2:$Q$1000=Costs!T$617))-SUMPRODUCT(('Fixed assets'!$S$2:$S$1000)*('Fixed assets'!$P$2:$P$1000<Costs!$A683)*('Fixed assets'!$Q$2:$Q$1000=Costs!T$617))-SUMPRODUCT(('Fixed assets'!$Q$2:$Q$1000=Costs!T$617)*('Fixed assets'!$U$2:$U$1000=Costs!$A683)*('Fixed assets'!$S$2:$S$1000))+SUMPRODUCT(('Fixed assets'!$Q$2:$Q$1000=Costs!T$617)*('Fixed assets'!$P$2:$P$1000=Costs!$A683)*('Fixed assets'!$U$2:$U$1000=Costs!$A683)*('Fixed assets'!$R$2:$R$1000))","v":0},{"$f":"SUMPRODUCT(('Fixed assets'!$R$2:$R$1000)*('Fixed assets'!$P$2:$P$1000<$A683)*('Fixed assets'!$Q$2:$Q$1000=Costs!U$617))-SUMPRODUCT(('Fixed assets'!$S$2:$S$1000)*('Fixed assets'!$P$2:$P$1000<Costs!$A683)*('Fixed assets'!$Q$2:$Q$1000=Costs!U$617))-SUMPRODUCT(('Fixed assets'!$Q$2:$Q$1000=Costs!U$617)*('Fixed assets'!$U$2:$U$1000=Costs!$A683)*('Fixed assets'!$S$2:$S$1000))+SUMPRODUCT(('Fixed assets'!$Q$2:$Q$1000=Costs!U$617)*('Fixed assets'!$P$2:$P$1000=Costs!$A683)*('Fixed assets'!$U$2:$U$1000=Costs!$A683)*('Fixed assets'!$R$2:$R$1000))","v":0},{"$f":"SUMPRODUCT(('Fixed assets'!$R$2:$R$1000)*('Fixed assets'!$P$2:$P$1000<$A683)*('Fixed assets'!$Q$2:$Q$1000=Costs!V$617))-SUMPRODUCT(('Fixed assets'!$S$2:$S$1000)*('Fixed assets'!$P$2:$P$1000<Costs!$A683)*('Fixed assets'!$Q$2:$Q$1000=Costs!V$617))-SUMPRODUCT(('Fixed assets'!$Q$2:$Q$1000=Costs!V$617)*('Fixed assets'!$U$2:$U$1000=Costs!$A683)*('Fixed assets'!$S$2:$S$1000))+SUMPRODUCT(('Fixed assets'!$Q$2:$Q$1000=Costs!V$617)*('Fixed assets'!$P$2:$P$1000=Costs!$A683)*('Fixed assets'!$U$2:$U$1000=Costs!$A683)*('Fixed assets'!$R$2:$R$1000))","v":0},{"$f":"SUMPRODUCT(('Fixed assets'!$R$2:$R$1000)*('Fixed assets'!$P$2:$P$1000<$A683)*('Fixed assets'!$Q$2:$Q$1000=Costs!W$617))-SUMPRODUCT(('Fixed assets'!$S$2:$S$1000)*('Fixed assets'!$P$2:$P$1000<Costs!$A683)*('Fixed assets'!$Q$2:$Q$1000=Costs!W$617))-SUMPRODUCT(('Fixed assets'!$Q$2:$Q$1000=Costs!W$617)*('Fixed assets'!$U$2:$U$1000=Costs!$A683)*('Fixed assets'!$S$2:$S$1000))+SUMPRODUCT(('Fixed assets'!$Q$2:$Q$1000=Costs!W$617)*('Fixed assets'!$P$2:$P$1000=Costs!$A683)*('Fixed assets'!$U$2:$U$1000=Costs!$A683)*('Fixed assets'!$R$2:$R$1000))","v":0},{"$f":"SUMPRODUCT(('Fixed assets'!$R$2:$R$1000)*('Fixed assets'!$P$2:$P$1000<$A683)*('Fixed assets'!$Q$2:$Q$1000=Costs!X$617))-SUMPRODUCT(('Fixed assets'!$S$2:$S$1000)*('Fixed assets'!$P$2:$P$1000<Costs!$A683)*('Fixed assets'!$Q$2:$Q$1000=Costs!X$617))-SUMPRODUCT(('Fixed assets'!$Q$2:$Q$1000=Costs!X$617)*('Fixed assets'!$U$2:$U$1000=Costs!$A683)*('Fixed assets'!$S$2:$S$1000))+SUMPRODUCT(('Fixed assets'!$Q$2:$Q$1000=Costs!X$617)*('Fixed assets'!$P$2:$P$1000=Costs!$A683)*('Fixed assets'!$U$2:$U$1000=Costs!$A683)*('Fixed assets'!$R$2:$R$1000))","v":0},{"$f":"SUMPRODUCT(('Fixed assets'!$R$2:$R$1000)*('Fixed assets'!$P$2:$P$1000<$A683)*('Fixed assets'!$Q$2:$Q$1000=Costs!Y$617))-SUMPRODUCT(('Fixed assets'!$S$2:$S$1000)*('Fixed assets'!$P$2:$P$1000<Costs!$A683)*('Fixed assets'!$Q$2:$Q$1000=Costs!Y$617))-SUMPRODUCT(('Fixed assets'!$Q$2:$Q$1000=Costs!Y$617)*('Fixed assets'!$U$2:$U$1000=Costs!$A683)*('Fixed assets'!$S$2:$S$1000))+SUMPRODUCT(('Fixed assets'!$Q$2:$Q$1000=Costs!Y$617)*('Fixed assets'!$P$2:$P$1000=Costs!$A683)*('Fixed assets'!$U$2:$U$1000=Costs!$A683)*('Fixed assets'!$R$2:$R$1000))","v":0},{"$f":"SUMPRODUCT(('Fixed assets'!$R$2:$R$1000)*('Fixed assets'!$P$2:$P$1000<$A683)*('Fixed assets'!$Q$2:$Q$1000=Costs!Z$617))-SUMPRODUCT(('Fixed assets'!$S$2:$S$1000)*('Fixed assets'!$P$2:$P$1000<Costs!$A683)*('Fixed assets'!$Q$2:$Q$1000=Costs!Z$617))-SUMPRODUCT(('Fixed assets'!$Q$2:$Q$1000=Costs!Z$617)*('Fixed assets'!$U$2:$U$1000=Costs!$A683)*('Fixed assets'!$S$2:$S$1000))+SUMPRODUCT(('Fixed assets'!$Q$2:$Q$1000=Costs!Z$617)*('Fixed assets'!$P$2:$P$1000=Costs!$A683)*('Fixed assets'!$U$2:$U$1000=Costs!$A683)*('Fixed assets'!$R$2:$R$1000))","v":0},{"$f":"SUMPRODUCT(('Fixed assets'!$R$2:$R$1000)*('Fixed assets'!$P$2:$P$1000<$A683)*('Fixed assets'!$Q$2:$Q$1000=Costs!AA$617))-SUMPRODUCT(('Fixed assets'!$S$2:$S$1000)*('Fixed assets'!$P$2:$P$1000<Costs!$A683)*('Fixed assets'!$Q$2:$Q$1000=Costs!AA$617))-SUMPRODUCT(('Fixed assets'!$Q$2:$Q$1000=Costs!AA$617)*('Fixed assets'!$U$2:$U$1000=Costs!$A683)*('Fixed assets'!$S$2:$S$1000))+SUMPRODUCT(('Fixed assets'!$Q$2:$Q$1000=Costs!AA$617)*('Fixed assets'!$P$2:$P$1000=Costs!$A683)*('Fixed assets'!$U$2:$U$1000=Costs!$A683)*('Fixed assets'!$R$2:$R$1000))","v":0},{"$f":"SUMPRODUCT(('Fixed assets'!$R$2:$R$1000)*('Fixed assets'!$P$2:$P$1000<$A683)*('Fixed assets'!$Q$2:$Q$1000=Costs!AB$617))-SUMPRODUCT(('Fixed assets'!$S$2:$S$1000)*('Fixed assets'!$P$2:$P$1000<Costs!$A683)*('Fixed assets'!$Q$2:$Q$1000=Costs!AB$617))-SUMPRODUCT(('Fixed assets'!$Q$2:$Q$1000=Costs!AB$617)*('Fixed assets'!$U$2:$U$1000=Costs!$A683)*('Fixed assets'!$S$2:$S$1000))+SUMPRODUCT(('Fixed assets'!$Q$2:$Q$1000=Costs!AB$617)*('Fixed assets'!$P$2:$P$1000=Costs!$A683)*('Fixed assets'!$U$2:$U$1000=Costs!$A683)*('Fixed assets'!$R$2:$R$1000))","v":0},{"$f":"SUMPRODUCT(('Fixed assets'!$R$2:$R$1000)*('Fixed assets'!$P$2:$P$1000<$A683)*('Fixed assets'!$Q$2:$Q$1000=Costs!AC$617))-SUMPRODUCT(('Fixed assets'!$S$2:$S$1000)*('Fixed assets'!$P$2:$P$1000<Costs!$A683)*('Fixed assets'!$Q$2:$Q$1000=Costs!AC$617))-SUMPRODUCT(('Fixed assets'!$Q$2:$Q$1000=Costs!AC$617)*('Fixed assets'!$U$2:$U$1000=Costs!$A683)*('Fixed assets'!$S$2:$S$1000))+SUMPRODUCT(('Fixed assets'!$Q$2:$Q$1000=Costs!AC$617)*('Fixed assets'!$P$2:$P$1000=Costs!$A683)*('Fixed assets'!$U$2:$U$1000=Costs!$A683)*('Fixed assets'!$R$2:$R$1000))","v":0},{"$f":"SUMPRODUCT(('Fixed assets'!$R$2:$R$1000)*('Fixed assets'!$P$2:$P$1000<$A683)*('Fixed assets'!$Q$2:$Q$1000=Costs!AD$617))-SUMPRODUCT(('Fixed assets'!$S$2:$S$1000)*('Fixed assets'!$P$2:$P$1000<Costs!$A683)*('Fixed assets'!$Q$2:$Q$1000=Costs!AD$617))-SUMPRODUCT(('Fixed assets'!$Q$2:$Q$1000=Costs!AD$617)*('Fixed assets'!$U$2:$U$1000=Costs!$A683)*('Fixed assets'!$S$2:$S$1000))+SUMPRODUCT(('Fixed assets'!$Q$2:$Q$1000=Costs!AD$617)*('Fixed assets'!$P$2:$P$1000=Costs!$A683)*('Fixed assets'!$U$2:$U$1000=Costs!$A683)*('Fixed assets'!$R$2:$R$1000))","v":0},{"$f":"SUMPRODUCT(('Fixed assets'!$R$2:$R$1000)*('Fixed assets'!$P$2:$P$1000<$A683)*('Fixed assets'!$Q$2:$Q$1000=Costs!AE$617))-SUMPRODUCT(('Fixed assets'!$S$2:$S$1000)*('Fixed assets'!$P$2:$P$1000<Costs!$A683)*('Fixed assets'!$Q$2:$Q$1000=Costs!AE$617))-SUMPRODUCT(('Fixed assets'!$Q$2:$Q$1000=Costs!AE$617)*('Fixed assets'!$U$2:$U$1000=Costs!$A683)*('Fixed assets'!$S$2:$S$1000))+SUMPRODUCT(('Fixed assets'!$Q$2:$Q$1000=Costs!AE$617)*('Fixed assets'!$P$2:$P$1000=Costs!$A683)*('Fixed assets'!$U$2:$U$1000=Costs!$A683)*('Fixed assets'!$R$2:$R$1000))","v":0},{"$f":"SUMPRODUCT(('Fixed assets'!$R$2:$R$1000)*('Fixed assets'!$P$2:$P$1000<$A683)*('Fixed assets'!$Q$2:$Q$1000=Costs!AF$617))-SUMPRODUCT(('Fixed assets'!$S$2:$S$1000)*('Fixed assets'!$P$2:$P$1000<Costs!$A683)*('Fixed assets'!$Q$2:$Q$1000=Costs!AF$617))-SUMPRODUCT(('Fixed assets'!$Q$2:$Q$1000=Costs!AF$617)*('Fixed assets'!$U$2:$U$1000=Costs!$A683)*('Fixed assets'!$S$2:$S$1000))+SUMPRODUCT(('Fixed assets'!$Q$2:$Q$1000=Costs!AF$617)*('Fixed assets'!$P$2:$P$1000=Costs!$A683)*('Fixed assets'!$U$2:$U$1000=Costs!$A683)*('Fixed assets'!$R$2:$R$1000))","v":0},{"$f":"SUMPRODUCT(('Fixed assets'!$R$2:$R$1000)*('Fixed assets'!$P$2:$P$1000<$A683)*('Fixed assets'!$Q$2:$Q$1000=Costs!AG$617))-SUMPRODUCT(('Fixed assets'!$S$2:$S$1000)*('Fixed assets'!$P$2:$P$1000<Costs!$A683)*('Fixed assets'!$Q$2:$Q$1000=Costs!AG$617))-SUMPRODUCT(('Fixed assets'!$Q$2:$Q$1000=Costs!AG$617)*('Fixed assets'!$U$2:$U$1000=Costs!$A683)*('Fixed assets'!$S$2:$S$1000))+SUMPRODUCT(('Fixed assets'!$Q$2:$Q$1000=Costs!AG$617)*('Fixed assets'!$P$2:$P$1000=Costs!$A683)*('Fixed assets'!$U$2:$U$1000=Costs!$A683)*('Fixed assets'!$R$2:$R$1000))","v":0},{"$f":"SUMPRODUCT(('Fixed assets'!$R$2:$R$1000)*('Fixed assets'!$P$2:$P$1000<$A683)*('Fixed assets'!$Q$2:$Q$1000=Costs!AH$617))-SUMPRODUCT(('Fixed assets'!$S$2:$S$1000)*('Fixed assets'!$P$2:$P$1000<Costs!$A683)*('Fixed assets'!$Q$2:$Q$1000=Costs!AH$617))-SUMPRODUCT(('Fixed assets'!$Q$2:$Q$1000=Costs!AH$617)*('Fixed assets'!$U$2:$U$1000=Costs!$A683)*('Fixed assets'!$S$2:$S$1000))+SUMPRODUCT(('Fixed assets'!$Q$2:$Q$1000=Costs!AH$617)*('Fixed assets'!$P$2:$P$1000=Costs!$A683)*('Fixed assets'!$U$2:$U$1000=Costs!$A683)*('Fixed assets'!$R$2:$R$1000))","v":0},{"$f":"SUMPRODUCT(('Fixed assets'!$R$2:$R$1000)*('Fixed assets'!$P$2:$P$1000<$A683)*('Fixed assets'!$Q$2:$Q$1000=Costs!AI$617))-SUMPRODUCT(('Fixed assets'!$S$2:$S$1000)*('Fixed assets'!$P$2:$P$1000<Costs!$A683)*('Fixed assets'!$Q$2:$Q$1000=Costs!AI$617))-SUMPRODUCT(('Fixed assets'!$Q$2:$Q$1000=Costs!AI$617)*('Fixed assets'!$U$2:$U$1000=Costs!$A683)*('Fixed assets'!$S$2:$S$1000))+SUMPRODUCT(('Fixed assets'!$Q$2:$Q$1000=Costs!AI$617)*('Fixed assets'!$P$2:$P$1000=Costs!$A683)*('Fixed assets'!$U$2:$U$1000=Costs!$A683)*('Fixed assets'!$R$2:$R$1000))","v":0},{"$f":"SUMPRODUCT(('Fixed assets'!$R$2:$R$1000)*('Fixed assets'!$P$2:$P$1000<$A683)*('Fixed assets'!$Q$2:$Q$1000=Costs!AJ$617))-SUMPRODUCT(('Fixed assets'!$S$2:$S$1000)*('Fixed assets'!$P$2:$P$1000<Costs!$A683)*('Fixed assets'!$Q$2:$Q$1000=Costs!AJ$617))-SUMPRODUCT(('Fixed assets'!$Q$2:$Q$1000=Costs!AJ$617)*('Fixed assets'!$U$2:$U$1000=Costs!$A683)*('Fixed assets'!$S$2:$S$1000))+SUMPRODUCT(('Fixed assets'!$Q$2:$Q$1000=Costs!AJ$617)*('Fixed assets'!$P$2:$P$1000=Costs!$A683)*('Fixed assets'!$U$2:$U$1000=Costs!$A683)*('Fixed assets'!$R$2:$R$1000))","v":0},{"$f":"SUMPRODUCT(('Fixed assets'!$R$2:$R$1000)*('Fixed assets'!$P$2:$P$1000<$A683)*('Fixed assets'!$Q$2:$Q$1000=Costs!AK$617))-SUMPRODUCT(('Fixed assets'!$S$2:$S$1000)*('Fixed assets'!$P$2:$P$1000<Costs!$A683)*('Fixed assets'!$Q$2:$Q$1000=Costs!AK$617))-SUMPRODUCT(('Fixed assets'!$Q$2:$Q$1000=Costs!AK$617)*('Fixed assets'!$U$2:$U$1000=Costs!$A683)*('Fixed assets'!$S$2:$S$1000))+SUMPRODUCT(('Fixed assets'!$Q$2:$Q$1000=Costs!AK$617)*('Fixed assets'!$P$2:$P$1000=Costs!$A683)*('Fixed assets'!$U$2:$U$1000=Costs!$A683)*('Fixed assets'!$R$2:$R$1000))","v":0},{"$f":"SUMPRODUCT(('Fixed assets'!$R$2:$R$1000)*('Fixed assets'!$P$2:$P$1000<$A683)*('Fixed assets'!$Q$2:$Q$1000=Costs!AL$617))-SUMPRODUCT(('Fixed assets'!$S$2:$S$1000)*('Fixed assets'!$P$2:$P$1000<Costs!$A683)*('Fixed assets'!$Q$2:$Q$1000=Costs!AL$617))-SUMPRODUCT(('Fixed assets'!$Q$2:$Q$1000=Costs!AL$617)*('Fixed assets'!$U$2:$U$1000=Costs!$A683)*('Fixed assets'!$S$2:$S$1000))+SUMPRODUCT(('Fixed assets'!$Q$2:$Q$1000=Costs!AL$617)*('Fixed assets'!$P$2:$P$1000=Costs!$A683)*('Fixed assets'!$U$2:$U$1000=Costs!$A683)*('Fixed assets'!$R$2:$R$1000))","v":0},{"$f":"SUMPRODUCT(('Fixed assets'!$R$2:$R$1000)*('Fixed assets'!$P$2:$P$1000<$A683)*('Fixed assets'!$Q$2:$Q$1000=Costs!AM$617))-SUMPRODUCT(('Fixed assets'!$S$2:$S$1000)*('Fixed assets'!$P$2:$P$1000<Costs!$A683)*('Fixed assets'!$Q$2:$Q$1000=Costs!AM$617))-SUMPRODUCT(('Fixed assets'!$Q$2:$Q$1000=Costs!AM$617)*('Fixed assets'!$U$2:$U$1000=Costs!$A683)*('Fixed assets'!$S$2:$S$1000))+SUMPRODUCT(('Fixed assets'!$Q$2:$Q$1000=Costs!AM$617)*('Fixed assets'!$P$2:$P$1000=Costs!$A683)*('Fixed assets'!$U$2:$U$1000=Costs!$A683)*('Fixed assets'!$R$2:$R$1000))","v":0},{"$f":"SUMPRODUCT(('Fixed assets'!$R$2:$R$1000)*('Fixed assets'!$P$2:$P$1000<$A683)*('Fixed assets'!$Q$2:$Q$1000=Costs!AN$617))-SUMPRODUCT(('Fixed assets'!$S$2:$S$1000)*('Fixed assets'!$P$2:$P$1000<Costs!$A683)*('Fixed assets'!$Q$2:$Q$1000=Costs!AN$617))-SUMPRODUCT(('Fixed assets'!$Q$2:$Q$1000=Costs!AN$617)*('Fixed assets'!$U$2:$U$1000=Costs!$A683)*('Fixed assets'!$S$2:$S$1000))+SUMPRODUCT(('Fixed assets'!$Q$2:$Q$1000=Costs!AN$617)*('Fixed assets'!$P$2:$P$1000=Costs!$A683)*('Fixed assets'!$U$2:$U$1000=Costs!$A683)*('Fixed assets'!$R$2:$R$1000))","v":0},{"$f":"SUMPRODUCT(('Fixed assets'!$R$2:$R$1000)*('Fixed assets'!$P$2:$P$1000<$A683)*('Fixed assets'!$Q$2:$Q$1000=Costs!AO$617))-SUMPRODUCT(('Fixed assets'!$S$2:$S$1000)*('Fixed assets'!$P$2:$P$1000<Costs!$A683)*('Fixed assets'!$Q$2:$Q$1000=Costs!AO$617))-SUMPRODUCT(('Fixed assets'!$Q$2:$Q$1000=Costs!AO$617)*('Fixed assets'!$U$2:$U$1000=Costs!$A683)*('Fixed assets'!$S$2:$S$1000))+SUMPRODUCT(('Fixed assets'!$Q$2:$Q$1000=Costs!AO$617)*('Fixed assets'!$P$2:$P$1000=Costs!$A683)*('Fixed assets'!$U$2:$U$1000=Costs!$A683)*('Fixed assets'!$R$2:$R$1000))","v":0},{"$f":"SUMPRODUCT(('Fixed assets'!$R$2:$R$1000)*('Fixed assets'!$P$2:$P$1000<$A683)*('Fixed assets'!$Q$2:$Q$1000=Costs!AP$617))-SUMPRODUCT(('Fixed assets'!$S$2:$S$1000)*('Fixed assets'!$P$2:$P$1000<Costs!$A683)*('Fixed assets'!$Q$2:$Q$1000=Costs!AP$617))-SUMPRODUCT(('Fixed assets'!$Q$2:$Q$1000=Costs!AP$617)*('Fixed assets'!$U$2:$U$1000=Costs!$A683)*('Fixed assets'!$S$2:$S$1000))+SUMPRODUCT(('Fixed assets'!$Q$2:$Q$1000=Costs!AP$617)*('Fixed assets'!$P$2:$P$1000=Costs!$A683)*('Fixed assets'!$U$2:$U$1000=Costs!$A683)*('Fixed assets'!$R$2:$R$1000))","v":0},{"$f":"SUMPRODUCT(('Fixed assets'!$R$2:$R$1000)*('Fixed assets'!$P$2:$P$1000<$A683)*('Fixed assets'!$Q$2:$Q$1000=Costs!AQ$617))-SUMPRODUCT(('Fixed assets'!$S$2:$S$1000)*('Fixed assets'!$P$2:$P$1000<Costs!$A683)*('Fixed assets'!$Q$2:$Q$1000=Costs!AQ$617))-SUMPRODUCT(('Fixed assets'!$Q$2:$Q$1000=Costs!AQ$617)*('Fixed assets'!$U$2:$U$1000=Costs!$A683)*('Fixed assets'!$S$2:$S$1000))+SUMPRODUCT(('Fixed assets'!$Q$2:$Q$1000=Costs!AQ$617)*('Fixed assets'!$P$2:$P$1000=Costs!$A683)*('Fixed assets'!$U$2:$U$1000=Costs!$A683)*('Fixed assets'!$R$2:$R$1000))","v":0}]
[2081,0,{"$f":"SUMPRODUCT(('Fixed assets'!$R$2:$R$1000)*('Fixed assets'!$P$2:$P$1000<$A684)*('Fixed assets'!$Q$2:$Q$1000=Costs!C$617))-SUMPRODUCT(('Fixed assets'!$S$2:$S$1000)*('Fixed assets'!$P$2:$P$1000<Costs!$A684)*('Fixed assets'!$Q$2:$Q$1000=Costs!C$617))-SUMPRODUCT(('Fixed assets'!$Q$2:$Q$1000=Costs!C$617)*('Fixed assets'!$U$2:$U$1000=Costs!$A684)*('Fixed assets'!$S$2:$S$1000))+SUMPRODUCT(('Fixed assets'!$Q$2:$Q$1000=Costs!C$617)*('Fixed assets'!$P$2:$P$1000=Costs!$A684)*('Fixed assets'!$U$2:$U$1000=Costs!$A684)*('Fixed assets'!$R$2:$R$1000))","v":0},{"$f":"SUMPRODUCT(('Fixed assets'!$R$2:$R$1000)*('Fixed assets'!$P$2:$P$1000<$A684)*('Fixed assets'!$Q$2:$Q$1000=Costs!D$617))-SUMPRODUCT(('Fixed assets'!$S$2:$S$1000)*('Fixed assets'!$P$2:$P$1000<Costs!$A684)*('Fixed assets'!$Q$2:$Q$1000=Costs!D$617))-SUMPRODUCT(('Fixed assets'!$Q$2:$Q$1000=Costs!D$617)*('Fixed assets'!$U$2:$U$1000=Costs!$A684)*('Fixed assets'!$S$2:$S$1000))+SUMPRODUCT(('Fixed assets'!$Q$2:$Q$1000=Costs!D$617)*('Fixed assets'!$P$2:$P$1000=Costs!$A684)*('Fixed assets'!$U$2:$U$1000=Costs!$A684)*('Fixed assets'!$R$2:$R$1000))","v":0},{"$f":"SUMPRODUCT(('Fixed assets'!$R$2:$R$1000)*('Fixed assets'!$P$2:$P$1000<$A684)*('Fixed assets'!$Q$2:$Q$1000=Costs!E$617))-SUMPRODUCT(('Fixed assets'!$S$2:$S$1000)*('Fixed assets'!$P$2:$P$1000<Costs!$A684)*('Fixed assets'!$Q$2:$Q$1000=Costs!E$617))-SUMPRODUCT(('Fixed assets'!$Q$2:$Q$1000=Costs!E$617)*('Fixed assets'!$U$2:$U$1000=Costs!$A684)*('Fixed assets'!$S$2:$S$1000))+SUMPRODUCT(('Fixed assets'!$Q$2:$Q$1000=Costs!E$617)*('Fixed assets'!$P$2:$P$1000=Costs!$A684)*('Fixed assets'!$U$2:$U$1000=Costs!$A684)*('Fixed assets'!$R$2:$R$1000))","v":0},{"$f":"SUMPRODUCT(('Fixed assets'!$R$2:$R$1000)*('Fixed assets'!$P$2:$P$1000<$A684)*('Fixed assets'!$Q$2:$Q$1000=Costs!F$617))-SUMPRODUCT(('Fixed assets'!$S$2:$S$1000)*('Fixed assets'!$P$2:$P$1000<Costs!$A684)*('Fixed assets'!$Q$2:$Q$1000=Costs!F$617))-SUMPRODUCT(('Fixed assets'!$Q$2:$Q$1000=Costs!F$617)*('Fixed assets'!$U$2:$U$1000=Costs!$A684)*('Fixed assets'!$S$2:$S$1000))+SUMPRODUCT(('Fixed assets'!$Q$2:$Q$1000=Costs!F$617)*('Fixed assets'!$P$2:$P$1000=Costs!$A684)*('Fixed assets'!$U$2:$U$1000=Costs!$A684)*('Fixed assets'!$R$2:$R$1000))","v":0},{"$f":"SUMPRODUCT(('Fixed assets'!$R$2:$R$1000)*('Fixed assets'!$P$2:$P$1000<$A684)*('Fixed assets'!$Q$2:$Q$1000=Costs!G$617))-SUMPRODUCT(('Fixed assets'!$S$2:$S$1000)*('Fixed assets'!$P$2:$P$1000<Costs!$A684)*('Fixed assets'!$Q$2:$Q$1000=Costs!G$617))-SUMPRODUCT(('Fixed assets'!$Q$2:$Q$1000=Costs!G$617)*('Fixed assets'!$U$2:$U$1000=Costs!$A684)*('Fixed assets'!$S$2:$S$1000))+SUMPRODUCT(('Fixed assets'!$Q$2:$Q$1000=Costs!G$617)*('Fixed assets'!$P$2:$P$1000=Costs!$A684)*('Fixed assets'!$U$2:$U$1000=Costs!$A684)*('Fixed assets'!$R$2:$R$1000))","v":0},{"$f":"SUMPRODUCT(('Fixed assets'!$R$2:$R$1000)*('Fixed assets'!$P$2:$P$1000<$A684)*('Fixed assets'!$Q$2:$Q$1000=Costs!H$617))-SUMPRODUCT(('Fixed assets'!$S$2:$S$1000)*('Fixed assets'!$P$2:$P$1000<Costs!$A684)*('Fixed assets'!$Q$2:$Q$1000=Costs!H$617))-SUMPRODUCT(('Fixed assets'!$Q$2:$Q$1000=Costs!H$617)*('Fixed assets'!$U$2:$U$1000=Costs!$A684)*('Fixed assets'!$S$2:$S$1000))+SUMPRODUCT(('Fixed assets'!$Q$2:$Q$1000=Costs!H$617)*('Fixed assets'!$P$2:$P$1000=Costs!$A684)*('Fixed assets'!$U$2:$U$1000=Costs!$A684)*('Fixed assets'!$R$2:$R$1000))","v":0},{"$f":"SUMPRODUCT(('Fixed assets'!$R$2:$R$1000)*('Fixed assets'!$P$2:$P$1000<$A684)*('Fixed assets'!$Q$2:$Q$1000=Costs!I$617))-SUMPRODUCT(('Fixed assets'!$S$2:$S$1000)*('Fixed assets'!$P$2:$P$1000<Costs!$A684)*('Fixed assets'!$Q$2:$Q$1000=Costs!I$617))-SUMPRODUCT(('Fixed assets'!$Q$2:$Q$1000=Costs!I$617)*('Fixed assets'!$U$2:$U$1000=Costs!$A684)*('Fixed assets'!$S$2:$S$1000))+SUMPRODUCT(('Fixed assets'!$Q$2:$Q$1000=Costs!I$617)*('Fixed assets'!$P$2:$P$1000=Costs!$A684)*('Fixed assets'!$U$2:$U$1000=Costs!$A684)*('Fixed assets'!$R$2:$R$1000))","v":0},{"$f":"SUMPRODUCT(('Fixed assets'!$R$2:$R$1000)*('Fixed assets'!$P$2:$P$1000<$A684)*('Fixed assets'!$Q$2:$Q$1000=Costs!J$617))-SUMPRODUCT(('Fixed assets'!$S$2:$S$1000)*('Fixed assets'!$P$2:$P$1000<Costs!$A684)*('Fixed assets'!$Q$2:$Q$1000=Costs!J$617))-SUMPRODUCT(('Fixed assets'!$Q$2:$Q$1000=Costs!J$617)*('Fixed assets'!$U$2:$U$1000=Costs!$A684)*('Fixed assets'!$S$2:$S$1000))+SUMPRODUCT(('Fixed assets'!$Q$2:$Q$1000=Costs!J$617)*('Fixed assets'!$P$2:$P$1000=Costs!$A684)*('Fixed assets'!$U$2:$U$1000=Costs!$A684)*('Fixed assets'!$R$2:$R$1000))","v":0},{"$f":"SUMPRODUCT(('Fixed assets'!$R$2:$R$1000)*('Fixed assets'!$P$2:$P$1000<$A684)*('Fixed assets'!$Q$2:$Q$1000=Costs!K$617))-SUMPRODUCT(('Fixed assets'!$S$2:$S$1000)*('Fixed assets'!$P$2:$P$1000<Costs!$A684)*('Fixed assets'!$Q$2:$Q$1000=Costs!K$617))-SUMPRODUCT(('Fixed assets'!$Q$2:$Q$1000=Costs!K$617)*('Fixed assets'!$U$2:$U$1000=Costs!$A684)*('Fixed assets'!$S$2:$S$1000))+SUMPRODUCT(('Fixed assets'!$Q$2:$Q$1000=Costs!K$617)*('Fixed assets'!$P$2:$P$1000=Costs!$A684)*('Fixed assets'!$U$2:$U$1000=Costs!$A684)*('Fixed assets'!$R$2:$R$1000))","v":0},{"$f":"SUMPRODUCT(('Fixed assets'!$R$2:$R$1000)*('Fixed assets'!$P$2:$P$1000<$A684)*('Fixed assets'!$Q$2:$Q$1000=Costs!L$617))-SUMPRODUCT(('Fixed assets'!$S$2:$S$1000)*('Fixed assets'!$P$2:$P$1000<Costs!$A684)*('Fixed assets'!$Q$2:$Q$1000=Costs!L$617))-SUMPRODUCT(('Fixed assets'!$Q$2:$Q$1000=Costs!L$617)*('Fixed assets'!$U$2:$U$1000=Costs!$A684)*('Fixed assets'!$S$2:$S$1000))+SUMPRODUCT(('Fixed assets'!$Q$2:$Q$1000=Costs!L$617)*('Fixed assets'!$P$2:$P$1000=Costs!$A684)*('Fixed assets'!$U$2:$U$1000=Costs!$A684)*('Fixed assets'!$R$2:$R$1000))","v":0},{"$f":"SUMPRODUCT(('Fixed assets'!$R$2:$R$1000)*('Fixed assets'!$P$2:$P$1000<$A684)*('Fixed assets'!$Q$2:$Q$1000=Costs!M$617))-SUMPRODUCT(('Fixed assets'!$S$2:$S$1000)*('Fixed assets'!$P$2:$P$1000<Costs!$A684)*('Fixed assets'!$Q$2:$Q$1000=Costs!M$617))-SUMPRODUCT(('Fixed assets'!$Q$2:$Q$1000=Costs!M$617)*('Fixed assets'!$U$2:$U$1000=Costs!$A684)*('Fixed assets'!$S$2:$S$1000))+SUMPRODUCT(('Fixed assets'!$Q$2:$Q$1000=Costs!M$617)*('Fixed assets'!$P$2:$P$1000=Costs!$A684)*('Fixed assets'!$U$2:$U$1000=Costs!$A684)*('Fixed assets'!$R$2:$R$1000))","v":0},{"$f":"SUMPRODUCT(('Fixed assets'!$R$2:$R$1000)*('Fixed assets'!$P$2:$P$1000<$A684)*('Fixed assets'!$Q$2:$Q$1000=Costs!N$617))-SUMPRODUCT(('Fixed assets'!$S$2:$S$1000)*('Fixed assets'!$P$2:$P$1000<Costs!$A684)*('Fixed assets'!$Q$2:$Q$1000=Costs!N$617))-SUMPRODUCT(('Fixed assets'!$Q$2:$Q$1000=Costs!N$617)*('Fixed assets'!$U$2:$U$1000=Costs!$A684)*('Fixed assets'!$S$2:$S$1000))+SUMPRODUCT(('Fixed assets'!$Q$2:$Q$1000=Costs!N$617)*('Fixed assets'!$P$2:$P$1000=Costs!$A684)*('Fixed assets'!$U$2:$U$1000=Costs!$A684)*('Fixed assets'!$R$2:$R$1000))","v":0},{"$f":"SUMPRODUCT(('Fixed assets'!$R$2:$R$1000)*('Fixed assets'!$P$2:$P$1000<$A684)*('Fixed assets'!$Q$2:$Q$1000=Costs!O$617))-SUMPRODUCT(('Fixed assets'!$S$2:$S$1000)*('Fixed assets'!$P$2:$P$1000<Costs!$A684)*('Fixed assets'!$Q$2:$Q$1000=Costs!O$617))-SUMPRODUCT(('Fixed assets'!$Q$2:$Q$1000=Costs!O$617)*('Fixed assets'!$U$2:$U$1000=Costs!$A684)*('Fixed assets'!$S$2:$S$1000))+SUMPRODUCT(('Fixed assets'!$Q$2:$Q$1000=Costs!O$617)*('Fixed assets'!$P$2:$P$1000=Costs!$A684)*('Fixed assets'!$U$2:$U$1000=Costs!$A684)*('Fixed assets'!$R$2:$R$1000))","v":0},{"$f":"SUMPRODUCT(('Fixed assets'!$R$2:$R$1000)*('Fixed assets'!$P$2:$P$1000<$A684)*('Fixed assets'!$Q$2:$Q$1000=Costs!P$617))-SUMPRODUCT(('Fixed assets'!$S$2:$S$1000)*('Fixed assets'!$P$2:$P$1000<Costs!$A684)*('Fixed assets'!$Q$2:$Q$1000=Costs!P$617))-SUMPRODUCT(('Fixed assets'!$Q$2:$Q$1000=Costs!P$617)*('Fixed assets'!$U$2:$U$1000=Costs!$A684)*('Fixed assets'!$S$2:$S$1000))+SUMPRODUCT(('Fixed assets'!$Q$2:$Q$1000=Costs!P$617)*('Fixed assets'!$P$2:$P$1000=Costs!$A684)*('Fixed assets'!$U$2:$U$1000=Costs!$A684)*('Fixed assets'!$R$2:$R$1000))","v":0},{"$f":"SUMPRODUCT(('Fixed assets'!$R$2:$R$1000)*('Fixed assets'!$P$2:$P$1000<$A684)*('Fixed assets'!$Q$2:$Q$1000=Costs!Q$617))-SUMPRODUCT(('Fixed assets'!$S$2:$S$1000)*('Fixed assets'!$P$2:$P$1000<Costs!$A684)*('Fixed assets'!$Q$2:$Q$1000=Costs!Q$617))-SUMPRODUCT(('Fixed assets'!$Q$2:$Q$1000=Costs!Q$617)*('Fixed assets'!$U$2:$U$1000=Costs!$A684)*('Fixed assets'!$S$2:$S$1000))+SUMPRODUCT(('Fixed assets'!$Q$2:$Q$1000=Costs!Q$617)*('Fixed assets'!$P$2:$P$1000=Costs!$A684)*('Fixed assets'!$U$2:$U$1000=Costs!$A684)*('Fixed assets'!$R$2:$R$1000))","v":0},{"$f":"SUMPRODUCT(('Fixed assets'!$R$2:$R$1000)*('Fixed assets'!$P$2:$P$1000<$A684)*('Fixed assets'!$Q$2:$Q$1000=Costs!R$617))-SUMPRODUCT(('Fixed assets'!$S$2:$S$1000)*('Fixed assets'!$P$2:$P$1000<Costs!$A684)*('Fixed assets'!$Q$2:$Q$1000=Costs!R$617))-SUMPRODUCT(('Fixed assets'!$Q$2:$Q$1000=Costs!R$617)*('Fixed assets'!$U$2:$U$1000=Costs!$A684)*('Fixed assets'!$S$2:$S$1000))+SUMPRODUCT(('Fixed assets'!$Q$2:$Q$1000=Costs!R$617)*('Fixed assets'!$P$2:$P$1000=Costs!$A684)*('Fixed assets'!$U$2:$U$1000=Costs!$A684)*('Fixed assets'!$R$2:$R$1000))","v":0},{"$f":"SUMPRODUCT(('Fixed assets'!$R$2:$R$1000)*('Fixed assets'!$P$2:$P$1000<$A684)*('Fixed assets'!$Q$2:$Q$1000=Costs!S$617))-SUMPRODUCT(('Fixed assets'!$S$2:$S$1000)*('Fixed assets'!$P$2:$P$1000<Costs!$A684)*('Fixed assets'!$Q$2:$Q$1000=Costs!S$617))-SUMPRODUCT(('Fixed assets'!$Q$2:$Q$1000=Costs!S$617)*('Fixed assets'!$U$2:$U$1000=Costs!$A684)*('Fixed assets'!$S$2:$S$1000))+SUMPRODUCT(('Fixed assets'!$Q$2:$Q$1000=Costs!S$617)*('Fixed assets'!$P$2:$P$1000=Costs!$A684)*('Fixed assets'!$U$2:$U$1000=Costs!$A684)*('Fixed assets'!$R$2:$R$1000))","v":0},{"$f":"SUMPRODUCT(('Fixed assets'!$R$2:$R$1000)*('Fixed assets'!$P$2:$P$1000<$A684)*('Fixed assets'!$Q$2:$Q$1000=Costs!T$617))-SUMPRODUCT(('Fixed assets'!$S$2:$S$1000)*('Fixed assets'!$P$2:$P$1000<Costs!$A684)*('Fixed assets'!$Q$2:$Q$1000=Costs!T$617))-SUMPRODUCT(('Fixed assets'!$Q$2:$Q$1000=Costs!T$617)*('Fixed assets'!$U$2:$U$1000=Costs!$A684)*('Fixed assets'!$S$2:$S$1000))+SUMPRODUCT(('Fixed assets'!$Q$2:$Q$1000=Costs!T$617)*('Fixed assets'!$P$2:$P$1000=Costs!$A684)*('Fixed assets'!$U$2:$U$1000=Costs!$A684)*('Fixed assets'!$R$2:$R$1000))","v":0},{"$f":"SUMPRODUCT(('Fixed assets'!$R$2:$R$1000)*('Fixed assets'!$P$2:$P$1000<$A684)*('Fixed assets'!$Q$2:$Q$1000=Costs!U$617))-SUMPRODUCT(('Fixed assets'!$S$2:$S$1000)*('Fixed assets'!$P$2:$P$1000<Costs!$A684)*('Fixed assets'!$Q$2:$Q$1000=Costs!U$617))-SUMPRODUCT(('Fixed assets'!$Q$2:$Q$1000=Costs!U$617)*('Fixed assets'!$U$2:$U$1000=Costs!$A684)*('Fixed assets'!$S$2:$S$1000))+SUMPRODUCT(('Fixed assets'!$Q$2:$Q$1000=Costs!U$617)*('Fixed assets'!$P$2:$P$1000=Costs!$A684)*('Fixed assets'!$U$2:$U$1000=Costs!$A684)*('Fixed assets'!$R$2:$R$1000))","v":0},{"$f":"SUMPRODUCT(('Fixed assets'!$R$2:$R$1000)*('Fixed assets'!$P$2:$P$1000<$A684)*('Fixed assets'!$Q$2:$Q$1000=Costs!V$617))-SUMPRODUCT(('Fixed assets'!$S$2:$S$1000)*('Fixed assets'!$P$2:$P$1000<Costs!$A684)*('Fixed assets'!$Q$2:$Q$1000=Costs!V$617))-SUMPRODUCT(('Fixed assets'!$Q$2:$Q$1000=Costs!V$617)*('Fixed assets'!$U$2:$U$1000=Costs!$A684)*('Fixed assets'!$S$2:$S$1000))+SUMPRODUCT(('Fixed assets'!$Q$2:$Q$1000=Costs!V$617)*('Fixed assets'!$P$2:$P$1000=Costs!$A684)*('Fixed assets'!$U$2:$U$1000=Costs!$A684)*('Fixed assets'!$R$2:$R$1000))","v":0},{"$f":"SUMPRODUCT(('Fixed assets'!$R$2:$R$1000)*('Fixed assets'!$P$2:$P$1000<$A684)*('Fixed assets'!$Q$2:$Q$1000=Costs!W$617))-SUMPRODUCT(('Fixed assets'!$S$2:$S$1000)*('Fixed assets'!$P$2:$P$1000<Costs!$A684)*('Fixed assets'!$Q$2:$Q$1000=Costs!W$617))-SUMPRODUCT(('Fixed assets'!$Q$2:$Q$1000=Costs!W$617)*('Fixed assets'!$U$2:$U$1000=Costs!$A684)*('Fixed assets'!$S$2:$S$1000))+SUMPRODUCT(('Fixed assets'!$Q$2:$Q$1000=Costs!W$617)*('Fixed assets'!$P$2:$P$1000=Costs!$A684)*('Fixed assets'!$U$2:$U$1000=Costs!$A684)*('Fixed assets'!$R$2:$R$1000))","v":0},{"$f":"SUMPRODUCT(('Fixed assets'!$R$2:$R$1000)*('Fixed assets'!$P$2:$P$1000<$A684)*('Fixed assets'!$Q$2:$Q$1000=Costs!X$617))-SUMPRODUCT(('Fixed assets'!$S$2:$S$1000)*('Fixed assets'!$P$2:$P$1000<Costs!$A684)*('Fixed assets'!$Q$2:$Q$1000=Costs!X$617))-SUMPRODUCT(('Fixed assets'!$Q$2:$Q$1000=Costs!X$617)*('Fixed assets'!$U$2:$U$1000=Costs!$A684)*('Fixed assets'!$S$2:$S$1000))+SUMPRODUCT(('Fixed assets'!$Q$2:$Q$1000=Costs!X$617)*('Fixed assets'!$P$2:$P$1000=Costs!$A684)*('Fixed assets'!$U$2:$U$1000=Costs!$A684)*('Fixed assets'!$R$2:$R$1000))","v":0},{"$f":"SUMPRODUCT(('Fixed assets'!$R$2:$R$1000)*('Fixed assets'!$P$2:$P$1000<$A684)*('Fixed assets'!$Q$2:$Q$1000=Costs!Y$617))-SUMPRODUCT(('Fixed assets'!$S$2:$S$1000)*('Fixed assets'!$P$2:$P$1000<Costs!$A684)*('Fixed assets'!$Q$2:$Q$1000=Costs!Y$617))-SUMPRODUCT(('Fixed assets'!$Q$2:$Q$1000=Costs!Y$617)*('Fixed assets'!$U$2:$U$1000=Costs!$A684)*('Fixed assets'!$S$2:$S$1000))+SUMPRODUCT(('Fixed assets'!$Q$2:$Q$1000=Costs!Y$617)*('Fixed assets'!$P$2:$P$1000=Costs!$A684)*('Fixed assets'!$U$2:$U$1000=Costs!$A684)*('Fixed assets'!$R$2:$R$1000))","v":0},{"$f":"SUMPRODUCT(('Fixed assets'!$R$2:$R$1000)*('Fixed assets'!$P$2:$P$1000<$A684)*('Fixed assets'!$Q$2:$Q$1000=Costs!Z$617))-SUMPRODUCT(('Fixed assets'!$S$2:$S$1000)*('Fixed assets'!$P$2:$P$1000<Costs!$A684)*('Fixed assets'!$Q$2:$Q$1000=Costs!Z$617))-SUMPRODUCT(('Fixed assets'!$Q$2:$Q$1000=Costs!Z$617)*('Fixed assets'!$U$2:$U$1000=Costs!$A684)*('Fixed assets'!$S$2:$S$1000))+SUMPRODUCT(('Fixed assets'!$Q$2:$Q$1000=Costs!Z$617)*('Fixed assets'!$P$2:$P$1000=Costs!$A684)*('Fixed assets'!$U$2:$U$1000=Costs!$A684)*('Fixed assets'!$R$2:$R$1000))","v":0},{"$f":"SUMPRODUCT(('Fixed assets'!$R$2:$R$1000)*('Fixed assets'!$P$2:$P$1000<$A684)*('Fixed assets'!$Q$2:$Q$1000=Costs!AA$617))-SUMPRODUCT(('Fixed assets'!$S$2:$S$1000)*('Fixed assets'!$P$2:$P$1000<Costs!$A684)*('Fixed assets'!$Q$2:$Q$1000=Costs!AA$617))-SUMPRODUCT(('Fixed assets'!$Q$2:$Q$1000=Costs!AA$617)*('Fixed assets'!$U$2:$U$1000=Costs!$A684)*('Fixed assets'!$S$2:$S$1000))+SUMPRODUCT(('Fixed assets'!$Q$2:$Q$1000=Costs!AA$617)*('Fixed assets'!$P$2:$P$1000=Costs!$A684)*('Fixed assets'!$U$2:$U$1000=Costs!$A684)*('Fixed assets'!$R$2:$R$1000))","v":0},{"$f":"SUMPRODUCT(('Fixed assets'!$R$2:$R$1000)*('Fixed assets'!$P$2:$P$1000<$A684)*('Fixed assets'!$Q$2:$Q$1000=Costs!AB$617))-SUMPRODUCT(('Fixed assets'!$S$2:$S$1000)*('Fixed assets'!$P$2:$P$1000<Costs!$A684)*('Fixed assets'!$Q$2:$Q$1000=Costs!AB$617))-SUMPRODUCT(('Fixed assets'!$Q$2:$Q$1000=Costs!AB$617)*('Fixed assets'!$U$2:$U$1000=Costs!$A684)*('Fixed assets'!$S$2:$S$1000))+SUMPRODUCT(('Fixed assets'!$Q$2:$Q$1000=Costs!AB$617)*('Fixed assets'!$P$2:$P$1000=Costs!$A684)*('Fixed assets'!$U$2:$U$1000=Costs!$A684)*('Fixed assets'!$R$2:$R$1000))","v":0},{"$f":"SUMPRODUCT(('Fixed assets'!$R$2:$R$1000)*('Fixed assets'!$P$2:$P$1000<$A684)*('Fixed assets'!$Q$2:$Q$1000=Costs!AC$617))-SUMPRODUCT(('Fixed assets'!$S$2:$S$1000)*('Fixed assets'!$P$2:$P$1000<Costs!$A684)*('Fixed assets'!$Q$2:$Q$1000=Costs!AC$617))-SUMPRODUCT(('Fixed assets'!$Q$2:$Q$1000=Costs!AC$617)*('Fixed assets'!$U$2:$U$1000=Costs!$A684)*('Fixed assets'!$S$2:$S$1000))+SUMPRODUCT(('Fixed assets'!$Q$2:$Q$1000=Costs!AC$617)*('Fixed assets'!$P$2:$P$1000=Costs!$A684)*('Fixed assets'!$U$2:$U$1000=Costs!$A684)*('Fixed assets'!$R$2:$R$1000))","v":0},{"$f":"SUMPRODUCT(('Fixed assets'!$R$2:$R$1000)*('Fixed assets'!$P$2:$P$1000<$A684)*('Fixed assets'!$Q$2:$Q$1000=Costs!AD$617))-SUMPRODUCT(('Fixed assets'!$S$2:$S$1000)*('Fixed assets'!$P$2:$P$1000<Costs!$A684)*('Fixed assets'!$Q$2:$Q$1000=Costs!AD$617))-SUMPRODUCT(('Fixed assets'!$Q$2:$Q$1000=Costs!AD$617)*('Fixed assets'!$U$2:$U$1000=Costs!$A684)*('Fixed assets'!$S$2:$S$1000))+SUMPRODUCT(('Fixed assets'!$Q$2:$Q$1000=Costs!AD$617)*('Fixed assets'!$P$2:$P$1000=Costs!$A684)*('Fixed assets'!$U$2:$U$1000=Costs!$A684)*('Fixed assets'!$R$2:$R$1000))","v":0},{"$f":"SUMPRODUCT(('Fixed assets'!$R$2:$R$1000)*('Fixed assets'!$P$2:$P$1000<$A684)*('Fixed assets'!$Q$2:$Q$1000=Costs!AE$617))-SUMPRODUCT(('Fixed assets'!$S$2:$S$1000)*('Fixed assets'!$P$2:$P$1000<Costs!$A684)*('Fixed assets'!$Q$2:$Q$1000=Costs!AE$617))-SUMPRODUCT(('Fixed assets'!$Q$2:$Q$1000=Costs!AE$617)*('Fixed assets'!$U$2:$U$1000=Costs!$A684)*('Fixed assets'!$S$2:$S$1000))+SUMPRODUCT(('Fixed assets'!$Q$2:$Q$1000=Costs!AE$617)*('Fixed assets'!$P$2:$P$1000=Costs!$A684)*('Fixed assets'!$U$2:$U$1000=Costs!$A684)*('Fixed assets'!$R$2:$R$1000))","v":0},{"$f":"SUMPRODUCT(('Fixed assets'!$R$2:$R$1000)*('Fixed assets'!$P$2:$P$1000<$A684)*('Fixed assets'!$Q$2:$Q$1000=Costs!AF$617))-SUMPRODUCT(('Fixed assets'!$S$2:$S$1000)*('Fixed assets'!$P$2:$P$1000<Costs!$A684)*('Fixed assets'!$Q$2:$Q$1000=Costs!AF$617))-SUMPRODUCT(('Fixed assets'!$Q$2:$Q$1000=Costs!AF$617)*('Fixed assets'!$U$2:$U$1000=Costs!$A684)*('Fixed assets'!$S$2:$S$1000))+SUMPRODUCT(('Fixed assets'!$Q$2:$Q$1000=Costs!AF$617)*('Fixed assets'!$P$2:$P$1000=Costs!$A684)*('Fixed assets'!$U$2:$U$1000=Costs!$A684)*('Fixed assets'!$R$2:$R$1000))","v":0},{"$f":"SUMPRODUCT(('Fixed assets'!$R$2:$R$1000)*('Fixed assets'!$P$2:$P$1000<$A684)*('Fixed assets'!$Q$2:$Q$1000=Costs!AG$617))-SUMPRODUCT(('Fixed assets'!$S$2:$S$1000)*('Fixed assets'!$P$2:$P$1000<Costs!$A684)*('Fixed assets'!$Q$2:$Q$1000=Costs!AG$617))-SUMPRODUCT(('Fixed assets'!$Q$2:$Q$1000=Costs!AG$617)*('Fixed assets'!$U$2:$U$1000=Costs!$A684)*('Fixed assets'!$S$2:$S$1000))+SUMPRODUCT(('Fixed assets'!$Q$2:$Q$1000=Costs!AG$617)*('Fixed assets'!$P$2:$P$1000=Costs!$A684)*('Fixed assets'!$U$2:$U$1000=Costs!$A684)*('Fixed assets'!$R$2:$R$1000))","v":0},{"$f":"SUMPRODUCT(('Fixed assets'!$R$2:$R$1000)*('Fixed assets'!$P$2:$P$1000<$A684)*('Fixed assets'!$Q$2:$Q$1000=Costs!AH$617))-SUMPRODUCT(('Fixed assets'!$S$2:$S$1000)*('Fixed assets'!$P$2:$P$1000<Costs!$A684)*('Fixed assets'!$Q$2:$Q$1000=Costs!AH$617))-SUMPRODUCT(('Fixed assets'!$Q$2:$Q$1000=Costs!AH$617)*('Fixed assets'!$U$2:$U$1000=Costs!$A684)*('Fixed assets'!$S$2:$S$1000))+SUMPRODUCT(('Fixed assets'!$Q$2:$Q$1000=Costs!AH$617)*('Fixed assets'!$P$2:$P$1000=Costs!$A684)*('Fixed assets'!$U$2:$U$1000=Costs!$A684)*('Fixed assets'!$R$2:$R$1000))","v":0},{"$f":"SUMPRODUCT(('Fixed assets'!$R$2:$R$1000)*('Fixed assets'!$P$2:$P$1000<$A684)*('Fixed assets'!$Q$2:$Q$1000=Costs!AI$617))-SUMPRODUCT(('Fixed assets'!$S$2:$S$1000)*('Fixed assets'!$P$2:$P$1000<Costs!$A684)*('Fixed assets'!$Q$2:$Q$1000=Costs!AI$617))-SUMPRODUCT(('Fixed assets'!$Q$2:$Q$1000=Costs!AI$617)*('Fixed assets'!$U$2:$U$1000=Costs!$A684)*('Fixed assets'!$S$2:$S$1000))+SUMPRODUCT(('Fixed assets'!$Q$2:$Q$1000=Costs!AI$617)*('Fixed assets'!$P$2:$P$1000=Costs!$A684)*('Fixed assets'!$U$2:$U$1000=Costs!$A684)*('Fixed assets'!$R$2:$R$1000))","v":0},{"$f":"SUMPRODUCT(('Fixed assets'!$R$2:$R$1000)*('Fixed assets'!$P$2:$P$1000<$A684)*('Fixed assets'!$Q$2:$Q$1000=Costs!AJ$617))-SUMPRODUCT(('Fixed assets'!$S$2:$S$1000)*('Fixed assets'!$P$2:$P$1000<Costs!$A684)*('Fixed assets'!$Q$2:$Q$1000=Costs!AJ$617))-SUMPRODUCT(('Fixed assets'!$Q$2:$Q$1000=Costs!AJ$617)*('Fixed assets'!$U$2:$U$1000=Costs!$A684)*('Fixed assets'!$S$2:$S$1000))+SUMPRODUCT(('Fixed assets'!$Q$2:$Q$1000=Costs!AJ$617)*('Fixed assets'!$P$2:$P$1000=Costs!$A684)*('Fixed assets'!$U$2:$U$1000=Costs!$A684)*('Fixed assets'!$R$2:$R$1000))","v":0},{"$f":"SUMPRODUCT(('Fixed assets'!$R$2:$R$1000)*('Fixed assets'!$P$2:$P$1000<$A684)*('Fixed assets'!$Q$2:$Q$1000=Costs!AK$617))-SUMPRODUCT(('Fixed assets'!$S$2:$S$1000)*('Fixed assets'!$P$2:$P$1000<Costs!$A684)*('Fixed assets'!$Q$2:$Q$1000=Costs!AK$617))-SUMPRODUCT(('Fixed assets'!$Q$2:$Q$1000=Costs!AK$617)*('Fixed assets'!$U$2:$U$1000=Costs!$A684)*('Fixed assets'!$S$2:$S$1000))+SUMPRODUCT(('Fixed assets'!$Q$2:$Q$1000=Costs!AK$617)*('Fixed assets'!$P$2:$P$1000=Costs!$A684)*('Fixed assets'!$U$2:$U$1000=Costs!$A684)*('Fixed assets'!$R$2:$R$1000))","v":0},{"$f":"SUMPRODUCT(('Fixed assets'!$R$2:$R$1000)*('Fixed assets'!$P$2:$P$1000<$A684)*('Fixed assets'!$Q$2:$Q$1000=Costs!AL$617))-SUMPRODUCT(('Fixed assets'!$S$2:$S$1000)*('Fixed assets'!$P$2:$P$1000<Costs!$A684)*('Fixed assets'!$Q$2:$Q$1000=Costs!AL$617))-SUMPRODUCT(('Fixed assets'!$Q$2:$Q$1000=Costs!AL$617)*('Fixed assets'!$U$2:$U$1000=Costs!$A684)*('Fixed assets'!$S$2:$S$1000))+SUMPRODUCT(('Fixed assets'!$Q$2:$Q$1000=Costs!AL$617)*('Fixed assets'!$P$2:$P$1000=Costs!$A684)*('Fixed assets'!$U$2:$U$1000=Costs!$A684)*('Fixed assets'!$R$2:$R$1000))","v":0},{"$f":"SUMPRODUCT(('Fixed assets'!$R$2:$R$1000)*('Fixed assets'!$P$2:$P$1000<$A684)*('Fixed assets'!$Q$2:$Q$1000=Costs!AM$617))-SUMPRODUCT(('Fixed assets'!$S$2:$S$1000)*('Fixed assets'!$P$2:$P$1000<Costs!$A684)*('Fixed assets'!$Q$2:$Q$1000=Costs!AM$617))-SUMPRODUCT(('Fixed assets'!$Q$2:$Q$1000=Costs!AM$617)*('Fixed assets'!$U$2:$U$1000=Costs!$A684)*('Fixed assets'!$S$2:$S$1000))+SUMPRODUCT(('Fixed assets'!$Q$2:$Q$1000=Costs!AM$617)*('Fixed assets'!$P$2:$P$1000=Costs!$A684)*('Fixed assets'!$U$2:$U$1000=Costs!$A684)*('Fixed assets'!$R$2:$R$1000))","v":0},{"$f":"SUMPRODUCT(('Fixed assets'!$R$2:$R$1000)*('Fixed assets'!$P$2:$P$1000<$A684)*('Fixed assets'!$Q$2:$Q$1000=Costs!AN$617))-SUMPRODUCT(('Fixed assets'!$S$2:$S$1000)*('Fixed assets'!$P$2:$P$1000<Costs!$A684)*('Fixed assets'!$Q$2:$Q$1000=Costs!AN$617))-SUMPRODUCT(('Fixed assets'!$Q$2:$Q$1000=Costs!AN$617)*('Fixed assets'!$U$2:$U$1000=Costs!$A684)*('Fixed assets'!$S$2:$S$1000))+SUMPRODUCT(('Fixed assets'!$Q$2:$Q$1000=Costs!AN$617)*('Fixed assets'!$P$2:$P$1000=Costs!$A684)*('Fixed assets'!$U$2:$U$1000=Costs!$A684)*('Fixed assets'!$R$2:$R$1000))","v":0},{"$f":"SUMPRODUCT(('Fixed assets'!$R$2:$R$1000)*('Fixed assets'!$P$2:$P$1000<$A684)*('Fixed assets'!$Q$2:$Q$1000=Costs!AO$617))-SUMPRODUCT(('Fixed assets'!$S$2:$S$1000)*('Fixed assets'!$P$2:$P$1000<Costs!$A684)*('Fixed assets'!$Q$2:$Q$1000=Costs!AO$617))-SUMPRODUCT(('Fixed assets'!$Q$2:$Q$1000=Costs!AO$617)*('Fixed assets'!$U$2:$U$1000=Costs!$A684)*('Fixed assets'!$S$2:$S$1000))+SUMPRODUCT(('Fixed assets'!$Q$2:$Q$1000=Costs!AO$617)*('Fixed assets'!$P$2:$P$1000=Costs!$A684)*('Fixed assets'!$U$2:$U$1000=Costs!$A684)*('Fixed assets'!$R$2:$R$1000))","v":0},{"$f":"SUMPRODUCT(('Fixed assets'!$R$2:$R$1000)*('Fixed assets'!$P$2:$P$1000<$A684)*('Fixed assets'!$Q$2:$Q$1000=Costs!AP$617))-SUMPRODUCT(('Fixed assets'!$S$2:$S$1000)*('Fixed assets'!$P$2:$P$1000<Costs!$A684)*('Fixed assets'!$Q$2:$Q$1000=Costs!AP$617))-SUMPRODUCT(('Fixed assets'!$Q$2:$Q$1000=Costs!AP$617)*('Fixed assets'!$U$2:$U$1000=Costs!$A684)*('Fixed assets'!$S$2:$S$1000))+SUMPRODUCT(('Fixed assets'!$Q$2:$Q$1000=Costs!AP$617)*('Fixed assets'!$P$2:$P$1000=Costs!$A684)*('Fixed assets'!$U$2:$U$1000=Costs!$A684)*('Fixed assets'!$R$2:$R$1000))","v":0},{"$f":"SUMPRODUCT(('Fixed assets'!$R$2:$R$1000)*('Fixed assets'!$P$2:$P$1000<$A684)*('Fixed assets'!$Q$2:$Q$1000=Costs!AQ$617))-SUMPRODUCT(('Fixed assets'!$S$2:$S$1000)*('Fixed assets'!$P$2:$P$1000<Costs!$A684)*('Fixed assets'!$Q$2:$Q$1000=Costs!AQ$617))-SUMPRODUCT(('Fixed assets'!$Q$2:$Q$1000=Costs!AQ$617)*('Fixed assets'!$U$2:$U$1000=Costs!$A684)*('Fixed assets'!$S$2:$S$1000))+SUMPRODUCT(('Fixed assets'!$Q$2:$Q$1000=Costs!AQ$617)*('Fixed assets'!$P$2:$P$1000=Costs!$A684)*('Fixed assets'!$U$2:$U$1000=Costs!$A684)*('Fixed assets'!$R$2:$R$1000))","v":0}]
[2082,0,{"$f":"SUMPRODUCT(('Fixed assets'!$R$2:$R$1000)*('Fixed assets'!$P$2:$P$1000<$A685)*('Fixed assets'!$Q$2:$Q$1000=Costs!C$617))-SUMPRODUCT(('Fixed assets'!$S$2:$S$1000)*('Fixed assets'!$P$2:$P$1000<Costs!$A685)*('Fixed assets'!$Q$2:$Q$1000=Costs!C$617))-SUMPRODUCT(('Fixed assets'!$Q$2:$Q$1000=Costs!C$617)*('Fixed assets'!$U$2:$U$1000=Costs!$A685)*('Fixed assets'!$S$2:$S$1000))+SUMPRODUCT(('Fixed assets'!$Q$2:$Q$1000=Costs!C$617)*('Fixed assets'!$P$2:$P$1000=Costs!$A685)*('Fixed assets'!$U$2:$U$1000=Costs!$A685)*('Fixed assets'!$R$2:$R$1000))","v":0},{"$f":"SUMPRODUCT(('Fixed assets'!$R$2:$R$1000)*('Fixed assets'!$P$2:$P$1000<$A685)*('Fixed assets'!$Q$2:$Q$1000=Costs!D$617))-SUMPRODUCT(('Fixed assets'!$S$2:$S$1000)*('Fixed assets'!$P$2:$P$1000<Costs!$A685)*('Fixed assets'!$Q$2:$Q$1000=Costs!D$617))-SUMPRODUCT(('Fixed assets'!$Q$2:$Q$1000=Costs!D$617)*('Fixed assets'!$U$2:$U$1000=Costs!$A685)*('Fixed assets'!$S$2:$S$1000))+SUMPRODUCT(('Fixed assets'!$Q$2:$Q$1000=Costs!D$617)*('Fixed assets'!$P$2:$P$1000=Costs!$A685)*('Fixed assets'!$U$2:$U$1000=Costs!$A685)*('Fixed assets'!$R$2:$R$1000))","v":0},{"$f":"SUMPRODUCT(('Fixed assets'!$R$2:$R$1000)*('Fixed assets'!$P$2:$P$1000<$A685)*('Fixed assets'!$Q$2:$Q$1000=Costs!E$617))-SUMPRODUCT(('Fixed assets'!$S$2:$S$1000)*('Fixed assets'!$P$2:$P$1000<Costs!$A685)*('Fixed assets'!$Q$2:$Q$1000=Costs!E$617))-SUMPRODUCT(('Fixed assets'!$Q$2:$Q$1000=Costs!E$617)*('Fixed assets'!$U$2:$U$1000=Costs!$A685)*('Fixed assets'!$S$2:$S$1000))+SUMPRODUCT(('Fixed assets'!$Q$2:$Q$1000=Costs!E$617)*('Fixed assets'!$P$2:$P$1000=Costs!$A685)*('Fixed assets'!$U$2:$U$1000=Costs!$A685)*('Fixed assets'!$R$2:$R$1000))","v":0},{"$f":"SUMPRODUCT(('Fixed assets'!$R$2:$R$1000)*('Fixed assets'!$P$2:$P$1000<$A685)*('Fixed assets'!$Q$2:$Q$1000=Costs!F$617))-SUMPRODUCT(('Fixed assets'!$S$2:$S$1000)*('Fixed assets'!$P$2:$P$1000<Costs!$A685)*('Fixed assets'!$Q$2:$Q$1000=Costs!F$617))-SUMPRODUCT(('Fixed assets'!$Q$2:$Q$1000=Costs!F$617)*('Fixed assets'!$U$2:$U$1000=Costs!$A685)*('Fixed assets'!$S$2:$S$1000))+SUMPRODUCT(('Fixed assets'!$Q$2:$Q$1000=Costs!F$617)*('Fixed assets'!$P$2:$P$1000=Costs!$A685)*('Fixed assets'!$U$2:$U$1000=Costs!$A685)*('Fixed assets'!$R$2:$R$1000))","v":0},{"$f":"SUMPRODUCT(('Fixed assets'!$R$2:$R$1000)*('Fixed assets'!$P$2:$P$1000<$A685)*('Fixed assets'!$Q$2:$Q$1000=Costs!G$617))-SUMPRODUCT(('Fixed assets'!$S$2:$S$1000)*('Fixed assets'!$P$2:$P$1000<Costs!$A685)*('Fixed assets'!$Q$2:$Q$1000=Costs!G$617))-SUMPRODUCT(('Fixed assets'!$Q$2:$Q$1000=Costs!G$617)*('Fixed assets'!$U$2:$U$1000=Costs!$A685)*('Fixed assets'!$S$2:$S$1000))+SUMPRODUCT(('Fixed assets'!$Q$2:$Q$1000=Costs!G$617)*('Fixed assets'!$P$2:$P$1000=Costs!$A685)*('Fixed assets'!$U$2:$U$1000=Costs!$A685)*('Fixed assets'!$R$2:$R$1000))","v":0},{"$f":"SUMPRODUCT(('Fixed assets'!$R$2:$R$1000)*('Fixed assets'!$P$2:$P$1000<$A685)*('Fixed assets'!$Q$2:$Q$1000=Costs!H$617))-SUMPRODUCT(('Fixed assets'!$S$2:$S$1000)*('Fixed assets'!$P$2:$P$1000<Costs!$A685)*('Fixed assets'!$Q$2:$Q$1000=Costs!H$617))-SUMPRODUCT(('Fixed assets'!$Q$2:$Q$1000=Costs!H$617)*('Fixed assets'!$U$2:$U$1000=Costs!$A685)*('Fixed assets'!$S$2:$S$1000))+SUMPRODUCT(('Fixed assets'!$Q$2:$Q$1000=Costs!H$617)*('Fixed assets'!$P$2:$P$1000=Costs!$A685)*('Fixed assets'!$U$2:$U$1000=Costs!$A685)*('Fixed assets'!$R$2:$R$1000))","v":0},{"$f":"SUMPRODUCT(('Fixed assets'!$R$2:$R$1000)*('Fixed assets'!$P$2:$P$1000<$A685)*('Fixed assets'!$Q$2:$Q$1000=Costs!I$617))-SUMPRODUCT(('Fixed assets'!$S$2:$S$1000)*('Fixed assets'!$P$2:$P$1000<Costs!$A685)*('Fixed assets'!$Q$2:$Q$1000=Costs!I$617))-SUMPRODUCT(('Fixed assets'!$Q$2:$Q$1000=Costs!I$617)*('Fixed assets'!$U$2:$U$1000=Costs!$A685)*('Fixed assets'!$S$2:$S$1000))+SUMPRODUCT(('Fixed assets'!$Q$2:$Q$1000=Costs!I$617)*('Fixed assets'!$P$2:$P$1000=Costs!$A685)*('Fixed assets'!$U$2:$U$1000=Costs!$A685)*('Fixed assets'!$R$2:$R$1000))","v":0},{"$f":"SUMPRODUCT(('Fixed assets'!$R$2:$R$1000)*('Fixed assets'!$P$2:$P$1000<$A685)*('Fixed assets'!$Q$2:$Q$1000=Costs!J$617))-SUMPRODUCT(('Fixed assets'!$S$2:$S$1000)*('Fixed assets'!$P$2:$P$1000<Costs!$A685)*('Fixed assets'!$Q$2:$Q$1000=Costs!J$617))-SUMPRODUCT(('Fixed assets'!$Q$2:$Q$1000=Costs!J$617)*('Fixed assets'!$U$2:$U$1000=Costs!$A685)*('Fixed assets'!$S$2:$S$1000))+SUMPRODUCT(('Fixed assets'!$Q$2:$Q$1000=Costs!J$617)*('Fixed assets'!$P$2:$P$1000=Costs!$A685)*('Fixed assets'!$U$2:$U$1000=Costs!$A685)*('Fixed assets'!$R$2:$R$1000))","v":0},{"$f":"SUMPRODUCT(('Fixed assets'!$R$2:$R$1000)*('Fixed assets'!$P$2:$P$1000<$A685)*('Fixed assets'!$Q$2:$Q$1000=Costs!K$617))-SUMPRODUCT(('Fixed assets'!$S$2:$S$1000)*('Fixed assets'!$P$2:$P$1000<Costs!$A685)*('Fixed assets'!$Q$2:$Q$1000=Costs!K$617))-SUMPRODUCT(('Fixed assets'!$Q$2:$Q$1000=Costs!K$617)*('Fixed assets'!$U$2:$U$1000=Costs!$A685)*('Fixed assets'!$S$2:$S$1000))+SUMPRODUCT(('Fixed assets'!$Q$2:$Q$1000=Costs!K$617)*('Fixed assets'!$P$2:$P$1000=Costs!$A685)*('Fixed assets'!$U$2:$U$1000=Costs!$A685)*('Fixed assets'!$R$2:$R$1000))","v":0},{"$f":"SUMPRODUCT(('Fixed assets'!$R$2:$R$1000)*('Fixed assets'!$P$2:$P$1000<$A685)*('Fixed assets'!$Q$2:$Q$1000=Costs!L$617))-SUMPRODUCT(('Fixed assets'!$S$2:$S$1000)*('Fixed assets'!$P$2:$P$1000<Costs!$A685)*('Fixed assets'!$Q$2:$Q$1000=Costs!L$617))-SUMPRODUCT(('Fixed assets'!$Q$2:$Q$1000=Costs!L$617)*('Fixed assets'!$U$2:$U$1000=Costs!$A685)*('Fixed assets'!$S$2:$S$1000))+SUMPRODUCT(('Fixed assets'!$Q$2:$Q$1000=Costs!L$617)*('Fixed assets'!$P$2:$P$1000=Costs!$A685)*('Fixed assets'!$U$2:$U$1000=Costs!$A685)*('Fixed assets'!$R$2:$R$1000))","v":0},{"$f":"SUMPRODUCT(('Fixed assets'!$R$2:$R$1000)*('Fixed assets'!$P$2:$P$1000<$A685)*('Fixed assets'!$Q$2:$Q$1000=Costs!M$617))-SUMPRODUCT(('Fixed assets'!$S$2:$S$1000)*('Fixed assets'!$P$2:$P$1000<Costs!$A685)*('Fixed assets'!$Q$2:$Q$1000=Costs!M$617))-SUMPRODUCT(('Fixed assets'!$Q$2:$Q$1000=Costs!M$617)*('Fixed assets'!$U$2:$U$1000=Costs!$A685)*('Fixed assets'!$S$2:$S$1000))+SUMPRODUCT(('Fixed assets'!$Q$2:$Q$1000=Costs!M$617)*('Fixed assets'!$P$2:$P$1000=Costs!$A685)*('Fixed assets'!$U$2:$U$1000=Costs!$A685)*('Fixed assets'!$R$2:$R$1000))","v":0},{"$f":"SUMPRODUCT(('Fixed assets'!$R$2:$R$1000)*('Fixed assets'!$P$2:$P$1000<$A685)*('Fixed assets'!$Q$2:$Q$1000=Costs!N$617))-SUMPRODUCT(('Fixed assets'!$S$2:$S$1000)*('Fixed assets'!$P$2:$P$1000<Costs!$A685)*('Fixed assets'!$Q$2:$Q$1000=Costs!N$617))-SUMPRODUCT(('Fixed assets'!$Q$2:$Q$1000=Costs!N$617)*('Fixed assets'!$U$2:$U$1000=Costs!$A685)*('Fixed assets'!$S$2:$S$1000))+SUMPRODUCT(('Fixed assets'!$Q$2:$Q$1000=Costs!N$617)*('Fixed assets'!$P$2:$P$1000=Costs!$A685)*('Fixed assets'!$U$2:$U$1000=Costs!$A685)*('Fixed assets'!$R$2:$R$1000))","v":0},{"$f":"SUMPRODUCT(('Fixed assets'!$R$2:$R$1000)*('Fixed assets'!$P$2:$P$1000<$A685)*('Fixed assets'!$Q$2:$Q$1000=Costs!O$617))-SUMPRODUCT(('Fixed assets'!$S$2:$S$1000)*('Fixed assets'!$P$2:$P$1000<Costs!$A685)*('Fixed assets'!$Q$2:$Q$1000=Costs!O$617))-SUMPRODUCT(('Fixed assets'!$Q$2:$Q$1000=Costs!O$617)*('Fixed assets'!$U$2:$U$1000=Costs!$A685)*('Fixed assets'!$S$2:$S$1000))+SUMPRODUCT(('Fixed assets'!$Q$2:$Q$1000=Costs!O$617)*('Fixed assets'!$P$2:$P$1000=Costs!$A685)*('Fixed assets'!$U$2:$U$1000=Costs!$A685)*('Fixed assets'!$R$2:$R$1000))","v":0},{"$f":"SUMPRODUCT(('Fixed assets'!$R$2:$R$1000)*('Fixed assets'!$P$2:$P$1000<$A685)*('Fixed assets'!$Q$2:$Q$1000=Costs!P$617))-SUMPRODUCT(('Fixed assets'!$S$2:$S$1000)*('Fixed assets'!$P$2:$P$1000<Costs!$A685)*('Fixed assets'!$Q$2:$Q$1000=Costs!P$617))-SUMPRODUCT(('Fixed assets'!$Q$2:$Q$1000=Costs!P$617)*('Fixed assets'!$U$2:$U$1000=Costs!$A685)*('Fixed assets'!$S$2:$S$1000))+SUMPRODUCT(('Fixed assets'!$Q$2:$Q$1000=Costs!P$617)*('Fixed assets'!$P$2:$P$1000=Costs!$A685)*('Fixed assets'!$U$2:$U$1000=Costs!$A685)*('Fixed assets'!$R$2:$R$1000))","v":0},{"$f":"SUMPRODUCT(('Fixed assets'!$R$2:$R$1000)*('Fixed assets'!$P$2:$P$1000<$A685)*('Fixed assets'!$Q$2:$Q$1000=Costs!Q$617))-SUMPRODUCT(('Fixed assets'!$S$2:$S$1000)*('Fixed assets'!$P$2:$P$1000<Costs!$A685)*('Fixed assets'!$Q$2:$Q$1000=Costs!Q$617))-SUMPRODUCT(('Fixed assets'!$Q$2:$Q$1000=Costs!Q$617)*('Fixed assets'!$U$2:$U$1000=Costs!$A685)*('Fixed assets'!$S$2:$S$1000))+SUMPRODUCT(('Fixed assets'!$Q$2:$Q$1000=Costs!Q$617)*('Fixed assets'!$P$2:$P$1000=Costs!$A685)*('Fixed assets'!$U$2:$U$1000=Costs!$A685)*('Fixed assets'!$R$2:$R$1000))","v":0},{"$f":"SUMPRODUCT(('Fixed assets'!$R$2:$R$1000)*('Fixed assets'!$P$2:$P$1000<$A685)*('Fixed assets'!$Q$2:$Q$1000=Costs!R$617))-SUMPRODUCT(('Fixed assets'!$S$2:$S$1000)*('Fixed assets'!$P$2:$P$1000<Costs!$A685)*('Fixed assets'!$Q$2:$Q$1000=Costs!R$617))-SUMPRODUCT(('Fixed assets'!$Q$2:$Q$1000=Costs!R$617)*('Fixed assets'!$U$2:$U$1000=Costs!$A685)*('Fixed assets'!$S$2:$S$1000))+SUMPRODUCT(('Fixed assets'!$Q$2:$Q$1000=Costs!R$617)*('Fixed assets'!$P$2:$P$1000=Costs!$A685)*('Fixed assets'!$U$2:$U$1000=Costs!$A685)*('Fixed assets'!$R$2:$R$1000))","v":0},{"$f":"SUMPRODUCT(('Fixed assets'!$R$2:$R$1000)*('Fixed assets'!$P$2:$P$1000<$A685)*('Fixed assets'!$Q$2:$Q$1000=Costs!S$617))-SUMPRODUCT(('Fixed assets'!$S$2:$S$1000)*('Fixed assets'!$P$2:$P$1000<Costs!$A685)*('Fixed assets'!$Q$2:$Q$1000=Costs!S$617))-SUMPRODUCT(('Fixed assets'!$Q$2:$Q$1000=Costs!S$617)*('Fixed assets'!$U$2:$U$1000=Costs!$A685)*('Fixed assets'!$S$2:$S$1000))+SUMPRODUCT(('Fixed assets'!$Q$2:$Q$1000=Costs!S$617)*('Fixed assets'!$P$2:$P$1000=Costs!$A685)*('Fixed assets'!$U$2:$U$1000=Costs!$A685)*('Fixed assets'!$R$2:$R$1000))","v":0},{"$f":"SUMPRODUCT(('Fixed assets'!$R$2:$R$1000)*('Fixed assets'!$P$2:$P$1000<$A685)*('Fixed assets'!$Q$2:$Q$1000=Costs!T$617))-SUMPRODUCT(('Fixed assets'!$S$2:$S$1000)*('Fixed assets'!$P$2:$P$1000<Costs!$A685)*('Fixed assets'!$Q$2:$Q$1000=Costs!T$617))-SUMPRODUCT(('Fixed assets'!$Q$2:$Q$1000=Costs!T$617)*('Fixed assets'!$U$2:$U$1000=Costs!$A685)*('Fixed assets'!$S$2:$S$1000))+SUMPRODUCT(('Fixed assets'!$Q$2:$Q$1000=Costs!T$617)*('Fixed assets'!$P$2:$P$1000=Costs!$A685)*('Fixed assets'!$U$2:$U$1000=Costs!$A685)*('Fixed assets'!$R$2:$R$1000))","v":0},{"$f":"SUMPRODUCT(('Fixed assets'!$R$2:$R$1000)*('Fixed assets'!$P$2:$P$1000<$A685)*('Fixed assets'!$Q$2:$Q$1000=Costs!U$617))-SUMPRODUCT(('Fixed assets'!$S$2:$S$1000)*('Fixed assets'!$P$2:$P$1000<Costs!$A685)*('Fixed assets'!$Q$2:$Q$1000=Costs!U$617))-SUMPRODUCT(('Fixed assets'!$Q$2:$Q$1000=Costs!U$617)*('Fixed assets'!$U$2:$U$1000=Costs!$A685)*('Fixed assets'!$S$2:$S$1000))+SUMPRODUCT(('Fixed assets'!$Q$2:$Q$1000=Costs!U$617)*('Fixed assets'!$P$2:$P$1000=Costs!$A685)*('Fixed assets'!$U$2:$U$1000=Costs!$A685)*('Fixed assets'!$R$2:$R$1000))","v":0},{"$f":"SUMPRODUCT(('Fixed assets'!$R$2:$R$1000)*('Fixed assets'!$P$2:$P$1000<$A685)*('Fixed assets'!$Q$2:$Q$1000=Costs!V$617))-SUMPRODUCT(('Fixed assets'!$S$2:$S$1000)*('Fixed assets'!$P$2:$P$1000<Costs!$A685)*('Fixed assets'!$Q$2:$Q$1000=Costs!V$617))-SUMPRODUCT(('Fixed assets'!$Q$2:$Q$1000=Costs!V$617)*('Fixed assets'!$U$2:$U$1000=Costs!$A685)*('Fixed assets'!$S$2:$S$1000))+SUMPRODUCT(('Fixed assets'!$Q$2:$Q$1000=Costs!V$617)*('Fixed assets'!$P$2:$P$1000=Costs!$A685)*('Fixed assets'!$U$2:$U$1000=Costs!$A685)*('Fixed assets'!$R$2:$R$1000))","v":0},{"$f":"SUMPRODUCT(('Fixed assets'!$R$2:$R$1000)*('Fixed assets'!$P$2:$P$1000<$A685)*('Fixed assets'!$Q$2:$Q$1000=Costs!W$617))-SUMPRODUCT(('Fixed assets'!$S$2:$S$1000)*('Fixed assets'!$P$2:$P$1000<Costs!$A685)*('Fixed assets'!$Q$2:$Q$1000=Costs!W$617))-SUMPRODUCT(('Fixed assets'!$Q$2:$Q$1000=Costs!W$617)*('Fixed assets'!$U$2:$U$1000=Costs!$A685)*('Fixed assets'!$S$2:$S$1000))+SUMPRODUCT(('Fixed assets'!$Q$2:$Q$1000=Costs!W$617)*('Fixed assets'!$P$2:$P$1000=Costs!$A685)*('Fixed assets'!$U$2:$U$1000=Costs!$A685)*('Fixed assets'!$R$2:$R$1000))","v":0},{"$f":"SUMPRODUCT(('Fixed assets'!$R$2:$R$1000)*('Fixed assets'!$P$2:$P$1000<$A685)*('Fixed assets'!$Q$2:$Q$1000=Costs!X$617))-SUMPRODUCT(('Fixed assets'!$S$2:$S$1000)*('Fixed assets'!$P$2:$P$1000<Costs!$A685)*('Fixed assets'!$Q$2:$Q$1000=Costs!X$617))-SUMPRODUCT(('Fixed assets'!$Q$2:$Q$1000=Costs!X$617)*('Fixed assets'!$U$2:$U$1000=Costs!$A685)*('Fixed assets'!$S$2:$S$1000))+SUMPRODUCT(('Fixed assets'!$Q$2:$Q$1000=Costs!X$617)*('Fixed assets'!$P$2:$P$1000=Costs!$A685)*('Fixed assets'!$U$2:$U$1000=Costs!$A685)*('Fixed assets'!$R$2:$R$1000))","v":0},{"$f":"SUMPRODUCT(('Fixed assets'!$R$2:$R$1000)*('Fixed assets'!$P$2:$P$1000<$A685)*('Fixed assets'!$Q$2:$Q$1000=Costs!Y$617))-SUMPRODUCT(('Fixed assets'!$S$2:$S$1000)*('Fixed assets'!$P$2:$P$1000<Costs!$A685)*('Fixed assets'!$Q$2:$Q$1000=Costs!Y$617))-SUMPRODUCT(('Fixed assets'!$Q$2:$Q$1000=Costs!Y$617)*('Fixed assets'!$U$2:$U$1000=Costs!$A685)*('Fixed assets'!$S$2:$S$1000))+SUMPRODUCT(('Fixed assets'!$Q$2:$Q$1000=Costs!Y$617)*('Fixed assets'!$P$2:$P$1000=Costs!$A685)*('Fixed assets'!$U$2:$U$1000=Costs!$A685)*('Fixed assets'!$R$2:$R$1000))","v":0},{"$f":"SUMPRODUCT(('Fixed assets'!$R$2:$R$1000)*('Fixed assets'!$P$2:$P$1000<$A685)*('Fixed assets'!$Q$2:$Q$1000=Costs!Z$617))-SUMPRODUCT(('Fixed assets'!$S$2:$S$1000)*('Fixed assets'!$P$2:$P$1000<Costs!$A685)*('Fixed assets'!$Q$2:$Q$1000=Costs!Z$617))-SUMPRODUCT(('Fixed assets'!$Q$2:$Q$1000=Costs!Z$617)*('Fixed assets'!$U$2:$U$1000=Costs!$A685)*('Fixed assets'!$S$2:$S$1000))+SUMPRODUCT(('Fixed assets'!$Q$2:$Q$1000=Costs!Z$617)*('Fixed assets'!$P$2:$P$1000=Costs!$A685)*('Fixed assets'!$U$2:$U$1000=Costs!$A685)*('Fixed assets'!$R$2:$R$1000))","v":0},{"$f":"SUMPRODUCT(('Fixed assets'!$R$2:$R$1000)*('Fixed assets'!$P$2:$P$1000<$A685)*('Fixed assets'!$Q$2:$Q$1000=Costs!AA$617))-SUMPRODUCT(('Fixed assets'!$S$2:$S$1000)*('Fixed assets'!$P$2:$P$1000<Costs!$A685)*('Fixed assets'!$Q$2:$Q$1000=Costs!AA$617))-SUMPRODUCT(('Fixed assets'!$Q$2:$Q$1000=Costs!AA$617)*('Fixed assets'!$U$2:$U$1000=Costs!$A685)*('Fixed assets'!$S$2:$S$1000))+SUMPRODUCT(('Fixed assets'!$Q$2:$Q$1000=Costs!AA$617)*('Fixed assets'!$P$2:$P$1000=Costs!$A685)*('Fixed assets'!$U$2:$U$1000=Costs!$A685)*('Fixed assets'!$R$2:$R$1000))","v":0},{"$f":"SUMPRODUCT(('Fixed assets'!$R$2:$R$1000)*('Fixed assets'!$P$2:$P$1000<$A685)*('Fixed assets'!$Q$2:$Q$1000=Costs!AB$617))-SUMPRODUCT(('Fixed assets'!$S$2:$S$1000)*('Fixed assets'!$P$2:$P$1000<Costs!$A685)*('Fixed assets'!$Q$2:$Q$1000=Costs!AB$617))-SUMPRODUCT(('Fixed assets'!$Q$2:$Q$1000=Costs!AB$617)*('Fixed assets'!$U$2:$U$1000=Costs!$A685)*('Fixed assets'!$S$2:$S$1000))+SUMPRODUCT(('Fixed assets'!$Q$2:$Q$1000=Costs!AB$617)*('Fixed assets'!$P$2:$P$1000=Costs!$A685)*('Fixed assets'!$U$2:$U$1000=Costs!$A685)*('Fixed assets'!$R$2:$R$1000))","v":0},{"$f":"SUMPRODUCT(('Fixed assets'!$R$2:$R$1000)*('Fixed assets'!$P$2:$P$1000<$A685)*('Fixed assets'!$Q$2:$Q$1000=Costs!AC$617))-SUMPRODUCT(('Fixed assets'!$S$2:$S$1000)*('Fixed assets'!$P$2:$P$1000<Costs!$A685)*('Fixed assets'!$Q$2:$Q$1000=Costs!AC$617))-SUMPRODUCT(('Fixed assets'!$Q$2:$Q$1000=Costs!AC$617)*('Fixed assets'!$U$2:$U$1000=Costs!$A685)*('Fixed assets'!$S$2:$S$1000))+SUMPRODUCT(('Fixed assets'!$Q$2:$Q$1000=Costs!AC$617)*('Fixed assets'!$P$2:$P$1000=Costs!$A685)*('Fixed assets'!$U$2:$U$1000=Costs!$A685)*('Fixed assets'!$R$2:$R$1000))","v":0},{"$f":"SUMPRODUCT(('Fixed assets'!$R$2:$R$1000)*('Fixed assets'!$P$2:$P$1000<$A685)*('Fixed assets'!$Q$2:$Q$1000=Costs!AD$617))-SUMPRODUCT(('Fixed assets'!$S$2:$S$1000)*('Fixed assets'!$P$2:$P$1000<Costs!$A685)*('Fixed assets'!$Q$2:$Q$1000=Costs!AD$617))-SUMPRODUCT(('Fixed assets'!$Q$2:$Q$1000=Costs!AD$617)*('Fixed assets'!$U$2:$U$1000=Costs!$A685)*('Fixed assets'!$S$2:$S$1000))+SUMPRODUCT(('Fixed assets'!$Q$2:$Q$1000=Costs!AD$617)*('Fixed assets'!$P$2:$P$1000=Costs!$A685)*('Fixed assets'!$U$2:$U$1000=Costs!$A685)*('Fixed assets'!$R$2:$R$1000))","v":0},{"$f":"SUMPRODUCT(('Fixed assets'!$R$2:$R$1000)*('Fixed assets'!$P$2:$P$1000<$A685)*('Fixed assets'!$Q$2:$Q$1000=Costs!AE$617))-SUMPRODUCT(('Fixed assets'!$S$2:$S$1000)*('Fixed assets'!$P$2:$P$1000<Costs!$A685)*('Fixed assets'!$Q$2:$Q$1000=Costs!AE$617))-SUMPRODUCT(('Fixed assets'!$Q$2:$Q$1000=Costs!AE$617)*('Fixed assets'!$U$2:$U$1000=Costs!$A685)*('Fixed assets'!$S$2:$S$1000))+SUMPRODUCT(('Fixed assets'!$Q$2:$Q$1000=Costs!AE$617)*('Fixed assets'!$P$2:$P$1000=Costs!$A685)*('Fixed assets'!$U$2:$U$1000=Costs!$A685)*('Fixed assets'!$R$2:$R$1000))","v":0},{"$f":"SUMPRODUCT(('Fixed assets'!$R$2:$R$1000)*('Fixed assets'!$P$2:$P$1000<$A685)*('Fixed assets'!$Q$2:$Q$1000=Costs!AF$617))-SUMPRODUCT(('Fixed assets'!$S$2:$S$1000)*('Fixed assets'!$P$2:$P$1000<Costs!$A685)*('Fixed assets'!$Q$2:$Q$1000=Costs!AF$617))-SUMPRODUCT(('Fixed assets'!$Q$2:$Q$1000=Costs!AF$617)*('Fixed assets'!$U$2:$U$1000=Costs!$A685)*('Fixed assets'!$S$2:$S$1000))+SUMPRODUCT(('Fixed assets'!$Q$2:$Q$1000=Costs!AF$617)*('Fixed assets'!$P$2:$P$1000=Costs!$A685)*('Fixed assets'!$U$2:$U$1000=Costs!$A685)*('Fixed assets'!$R$2:$R$1000))","v":0},{"$f":"SUMPRODUCT(('Fixed assets'!$R$2:$R$1000)*('Fixed assets'!$P$2:$P$1000<$A685)*('Fixed assets'!$Q$2:$Q$1000=Costs!AG$617))-SUMPRODUCT(('Fixed assets'!$S$2:$S$1000)*('Fixed assets'!$P$2:$P$1000<Costs!$A685)*('Fixed assets'!$Q$2:$Q$1000=Costs!AG$617))-SUMPRODUCT(('Fixed assets'!$Q$2:$Q$1000=Costs!AG$617)*('Fixed assets'!$U$2:$U$1000=Costs!$A685)*('Fixed assets'!$S$2:$S$1000))+SUMPRODUCT(('Fixed assets'!$Q$2:$Q$1000=Costs!AG$617)*('Fixed assets'!$P$2:$P$1000=Costs!$A685)*('Fixed assets'!$U$2:$U$1000=Costs!$A685)*('Fixed assets'!$R$2:$R$1000))","v":0},{"$f":"SUMPRODUCT(('Fixed assets'!$R$2:$R$1000)*('Fixed assets'!$P$2:$P$1000<$A685)*('Fixed assets'!$Q$2:$Q$1000=Costs!AH$617))-SUMPRODUCT(('Fixed assets'!$S$2:$S$1000)*('Fixed assets'!$P$2:$P$1000<Costs!$A685)*('Fixed assets'!$Q$2:$Q$1000=Costs!AH$617))-SUMPRODUCT(('Fixed assets'!$Q$2:$Q$1000=Costs!AH$617)*('Fixed assets'!$U$2:$U$1000=Costs!$A685)*('Fixed assets'!$S$2:$S$1000))+SUMPRODUCT(('Fixed assets'!$Q$2:$Q$1000=Costs!AH$617)*('Fixed assets'!$P$2:$P$1000=Costs!$A685)*('Fixed assets'!$U$2:$U$1000=Costs!$A685)*('Fixed assets'!$R$2:$R$1000))","v":0},{"$f":"SUMPRODUCT(('Fixed assets'!$R$2:$R$1000)*('Fixed assets'!$P$2:$P$1000<$A685)*('Fixed assets'!$Q$2:$Q$1000=Costs!AI$617))-SUMPRODUCT(('Fixed assets'!$S$2:$S$1000)*('Fixed assets'!$P$2:$P$1000<Costs!$A685)*('Fixed assets'!$Q$2:$Q$1000=Costs!AI$617))-SUMPRODUCT(('Fixed assets'!$Q$2:$Q$1000=Costs!AI$617)*('Fixed assets'!$U$2:$U$1000=Costs!$A685)*('Fixed assets'!$S$2:$S$1000))+SUMPRODUCT(('Fixed assets'!$Q$2:$Q$1000=Costs!AI$617)*('Fixed assets'!$P$2:$P$1000=Costs!$A685)*('Fixed assets'!$U$2:$U$1000=Costs!$A685)*('Fixed assets'!$R$2:$R$1000))","v":0},{"$f":"SUMPRODUCT(('Fixed assets'!$R$2:$R$1000)*('Fixed assets'!$P$2:$P$1000<$A685)*('Fixed assets'!$Q$2:$Q$1000=Costs!AJ$617))-SUMPRODUCT(('Fixed assets'!$S$2:$S$1000)*('Fixed assets'!$P$2:$P$1000<Costs!$A685)*('Fixed assets'!$Q$2:$Q$1000=Costs!AJ$617))-SUMPRODUCT(('Fixed assets'!$Q$2:$Q$1000=Costs!AJ$617)*('Fixed assets'!$U$2:$U$1000=Costs!$A685)*('Fixed assets'!$S$2:$S$1000))+SUMPRODUCT(('Fixed assets'!$Q$2:$Q$1000=Costs!AJ$617)*('Fixed assets'!$P$2:$P$1000=Costs!$A685)*('Fixed assets'!$U$2:$U$1000=Costs!$A685)*('Fixed assets'!$R$2:$R$1000))","v":0},{"$f":"SUMPRODUCT(('Fixed assets'!$R$2:$R$1000)*('Fixed assets'!$P$2:$P$1000<$A685)*('Fixed assets'!$Q$2:$Q$1000=Costs!AK$617))-SUMPRODUCT(('Fixed assets'!$S$2:$S$1000)*('Fixed assets'!$P$2:$P$1000<Costs!$A685)*('Fixed assets'!$Q$2:$Q$1000=Costs!AK$617))-SUMPRODUCT(('Fixed assets'!$Q$2:$Q$1000=Costs!AK$617)*('Fixed assets'!$U$2:$U$1000=Costs!$A685)*('Fixed assets'!$S$2:$S$1000))+SUMPRODUCT(('Fixed assets'!$Q$2:$Q$1000=Costs!AK$617)*('Fixed assets'!$P$2:$P$1000=Costs!$A685)*('Fixed assets'!$U$2:$U$1000=Costs!$A685)*('Fixed assets'!$R$2:$R$1000))","v":0},{"$f":"SUMPRODUCT(('Fixed assets'!$R$2:$R$1000)*('Fixed assets'!$P$2:$P$1000<$A685)*('Fixed assets'!$Q$2:$Q$1000=Costs!AL$617))-SUMPRODUCT(('Fixed assets'!$S$2:$S$1000)*('Fixed assets'!$P$2:$P$1000<Costs!$A685)*('Fixed assets'!$Q$2:$Q$1000=Costs!AL$617))-SUMPRODUCT(('Fixed assets'!$Q$2:$Q$1000=Costs!AL$617)*('Fixed assets'!$U$2:$U$1000=Costs!$A685)*('Fixed assets'!$S$2:$S$1000))+SUMPRODUCT(('Fixed assets'!$Q$2:$Q$1000=Costs!AL$617)*('Fixed assets'!$P$2:$P$1000=Costs!$A685)*('Fixed assets'!$U$2:$U$1000=Costs!$A685)*('Fixed assets'!$R$2:$R$1000))","v":0},{"$f":"SUMPRODUCT(('Fixed assets'!$R$2:$R$1000)*('Fixed assets'!$P$2:$P$1000<$A685)*('Fixed assets'!$Q$2:$Q$1000=Costs!AM$617))-SUMPRODUCT(('Fixed assets'!$S$2:$S$1000)*('Fixed assets'!$P$2:$P$1000<Costs!$A685)*('Fixed assets'!$Q$2:$Q$1000=Costs!AM$617))-SUMPRODUCT(('Fixed assets'!$Q$2:$Q$1000=Costs!AM$617)*('Fixed assets'!$U$2:$U$1000=Costs!$A685)*('Fixed assets'!$S$2:$S$1000))+SUMPRODUCT(('Fixed assets'!$Q$2:$Q$1000=Costs!AM$617)*('Fixed assets'!$P$2:$P$1000=Costs!$A685)*('Fixed assets'!$U$2:$U$1000=Costs!$A685)*('Fixed assets'!$R$2:$R$1000))","v":0},{"$f":"SUMPRODUCT(('Fixed assets'!$R$2:$R$1000)*('Fixed assets'!$P$2:$P$1000<$A685)*('Fixed assets'!$Q$2:$Q$1000=Costs!AN$617))-SUMPRODUCT(('Fixed assets'!$S$2:$S$1000)*('Fixed assets'!$P$2:$P$1000<Costs!$A685)*('Fixed assets'!$Q$2:$Q$1000=Costs!AN$617))-SUMPRODUCT(('Fixed assets'!$Q$2:$Q$1000=Costs!AN$617)*('Fixed assets'!$U$2:$U$1000=Costs!$A685)*('Fixed assets'!$S$2:$S$1000))+SUMPRODUCT(('Fixed assets'!$Q$2:$Q$1000=Costs!AN$617)*('Fixed assets'!$P$2:$P$1000=Costs!$A685)*('Fixed assets'!$U$2:$U$1000=Costs!$A685)*('Fixed assets'!$R$2:$R$1000))","v":0},{"$f":"SUMPRODUCT(('Fixed assets'!$R$2:$R$1000)*('Fixed assets'!$P$2:$P$1000<$A685)*('Fixed assets'!$Q$2:$Q$1000=Costs!AO$617))-SUMPRODUCT(('Fixed assets'!$S$2:$S$1000)*('Fixed assets'!$P$2:$P$1000<Costs!$A685)*('Fixed assets'!$Q$2:$Q$1000=Costs!AO$617))-SUMPRODUCT(('Fixed assets'!$Q$2:$Q$1000=Costs!AO$617)*('Fixed assets'!$U$2:$U$1000=Costs!$A685)*('Fixed assets'!$S$2:$S$1000))+SUMPRODUCT(('Fixed assets'!$Q$2:$Q$1000=Costs!AO$617)*('Fixed assets'!$P$2:$P$1000=Costs!$A685)*('Fixed assets'!$U$2:$U$1000=Costs!$A685)*('Fixed assets'!$R$2:$R$1000))","v":0},{"$f":"SUMPRODUCT(('Fixed assets'!$R$2:$R$1000)*('Fixed assets'!$P$2:$P$1000<$A685)*('Fixed assets'!$Q$2:$Q$1000=Costs!AP$617))-SUMPRODUCT(('Fixed assets'!$S$2:$S$1000)*('Fixed assets'!$P$2:$P$1000<Costs!$A685)*('Fixed assets'!$Q$2:$Q$1000=Costs!AP$617))-SUMPRODUCT(('Fixed assets'!$Q$2:$Q$1000=Costs!AP$617)*('Fixed assets'!$U$2:$U$1000=Costs!$A685)*('Fixed assets'!$S$2:$S$1000))+SUMPRODUCT(('Fixed assets'!$Q$2:$Q$1000=Costs!AP$617)*('Fixed assets'!$P$2:$P$1000=Costs!$A685)*('Fixed assets'!$U$2:$U$1000=Costs!$A685)*('Fixed assets'!$R$2:$R$1000))","v":0},{"$f":"SUMPRODUCT(('Fixed assets'!$R$2:$R$1000)*('Fixed assets'!$P$2:$P$1000<$A685)*('Fixed assets'!$Q$2:$Q$1000=Costs!AQ$617))-SUMPRODUCT(('Fixed assets'!$S$2:$S$1000)*('Fixed assets'!$P$2:$P$1000<Costs!$A685)*('Fixed assets'!$Q$2:$Q$1000=Costs!AQ$617))-SUMPRODUCT(('Fixed assets'!$Q$2:$Q$1000=Costs!AQ$617)*('Fixed assets'!$U$2:$U$1000=Costs!$A685)*('Fixed assets'!$S$2:$S$1000))+SUMPRODUCT(('Fixed assets'!$Q$2:$Q$1000=Costs!AQ$617)*('Fixed assets'!$P$2:$P$1000=Costs!$A685)*('Fixed assets'!$U$2:$U$1000=Costs!$A685)*('Fixed assets'!$R$2:$R$1000))","v":0}]
[2083,0,{"$f":"SUMPRODUCT(('Fixed assets'!$R$2:$R$1000)*('Fixed assets'!$P$2:$P$1000<$A686)*('Fixed assets'!$Q$2:$Q$1000=Costs!C$617))-SUMPRODUCT(('Fixed assets'!$S$2:$S$1000)*('Fixed assets'!$P$2:$P$1000<Costs!$A686)*('Fixed assets'!$Q$2:$Q$1000=Costs!C$617))-SUMPRODUCT(('Fixed assets'!$Q$2:$Q$1000=Costs!C$617)*('Fixed assets'!$U$2:$U$1000=Costs!$A686)*('Fixed assets'!$S$2:$S$1000))+SUMPRODUCT(('Fixed assets'!$Q$2:$Q$1000=Costs!C$617)*('Fixed assets'!$P$2:$P$1000=Costs!$A686)*('Fixed assets'!$U$2:$U$1000=Costs!$A686)*('Fixed assets'!$R$2:$R$1000))","v":0},{"$f":"SUMPRODUCT(('Fixed assets'!$R$2:$R$1000)*('Fixed assets'!$P$2:$P$1000<$A686)*('Fixed assets'!$Q$2:$Q$1000=Costs!D$617))-SUMPRODUCT(('Fixed assets'!$S$2:$S$1000)*('Fixed assets'!$P$2:$P$1000<Costs!$A686)*('Fixed assets'!$Q$2:$Q$1000=Costs!D$617))-SUMPRODUCT(('Fixed assets'!$Q$2:$Q$1000=Costs!D$617)*('Fixed assets'!$U$2:$U$1000=Costs!$A686)*('Fixed assets'!$S$2:$S$1000))+SUMPRODUCT(('Fixed assets'!$Q$2:$Q$1000=Costs!D$617)*('Fixed assets'!$P$2:$P$1000=Costs!$A686)*('Fixed assets'!$U$2:$U$1000=Costs!$A686)*('Fixed assets'!$R$2:$R$1000))","v":0},{"$f":"SUMPRODUCT(('Fixed assets'!$R$2:$R$1000)*('Fixed assets'!$P$2:$P$1000<$A686)*('Fixed assets'!$Q$2:$Q$1000=Costs!E$617))-SUMPRODUCT(('Fixed assets'!$S$2:$S$1000)*('Fixed assets'!$P$2:$P$1000<Costs!$A686)*('Fixed assets'!$Q$2:$Q$1000=Costs!E$617))-SUMPRODUCT(('Fixed assets'!$Q$2:$Q$1000=Costs!E$617)*('Fixed assets'!$U$2:$U$1000=Costs!$A686)*('Fixed assets'!$S$2:$S$1000))+SUMPRODUCT(('Fixed assets'!$Q$2:$Q$1000=Costs!E$617)*('Fixed assets'!$P$2:$P$1000=Costs!$A686)*('Fixed assets'!$U$2:$U$1000=Costs!$A686)*('Fixed assets'!$R$2:$R$1000))","v":0},{"$f":"SUMPRODUCT(('Fixed assets'!$R$2:$R$1000)*('Fixed assets'!$P$2:$P$1000<$A686)*('Fixed assets'!$Q$2:$Q$1000=Costs!F$617))-SUMPRODUCT(('Fixed assets'!$S$2:$S$1000)*('Fixed assets'!$P$2:$P$1000<Costs!$A686)*('Fixed assets'!$Q$2:$Q$1000=Costs!F$617))-SUMPRODUCT(('Fixed assets'!$Q$2:$Q$1000=Costs!F$617)*('Fixed assets'!$U$2:$U$1000=Costs!$A686)*('Fixed assets'!$S$2:$S$1000))+SUMPRODUCT(('Fixed assets'!$Q$2:$Q$1000=Costs!F$617)*('Fixed assets'!$P$2:$P$1000=Costs!$A686)*('Fixed assets'!$U$2:$U$1000=Costs!$A686)*('Fixed assets'!$R$2:$R$1000))","v":0},{"$f":"SUMPRODUCT(('Fixed assets'!$R$2:$R$1000)*('Fixed assets'!$P$2:$P$1000<$A686)*('Fixed assets'!$Q$2:$Q$1000=Costs!G$617))-SUMPRODUCT(('Fixed assets'!$S$2:$S$1000)*('Fixed assets'!$P$2:$P$1000<Costs!$A686)*('Fixed assets'!$Q$2:$Q$1000=Costs!G$617))-SUMPRODUCT(('Fixed assets'!$Q$2:$Q$1000=Costs!G$617)*('Fixed assets'!$U$2:$U$1000=Costs!$A686)*('Fixed assets'!$S$2:$S$1000))+SUMPRODUCT(('Fixed assets'!$Q$2:$Q$1000=Costs!G$617)*('Fixed assets'!$P$2:$P$1000=Costs!$A686)*('Fixed assets'!$U$2:$U$1000=Costs!$A686)*('Fixed assets'!$R$2:$R$1000))","v":0},{"$f":"SUMPRODUCT(('Fixed assets'!$R$2:$R$1000)*('Fixed assets'!$P$2:$P$1000<$A686)*('Fixed assets'!$Q$2:$Q$1000=Costs!H$617))-SUMPRODUCT(('Fixed assets'!$S$2:$S$1000)*('Fixed assets'!$P$2:$P$1000<Costs!$A686)*('Fixed assets'!$Q$2:$Q$1000=Costs!H$617))-SUMPRODUCT(('Fixed assets'!$Q$2:$Q$1000=Costs!H$617)*('Fixed assets'!$U$2:$U$1000=Costs!$A686)*('Fixed assets'!$S$2:$S$1000))+SUMPRODUCT(('Fixed assets'!$Q$2:$Q$1000=Costs!H$617)*('Fixed assets'!$P$2:$P$1000=Costs!$A686)*('Fixed assets'!$U$2:$U$1000=Costs!$A686)*('Fixed assets'!$R$2:$R$1000))","v":0},{"$f":"SUMPRODUCT(('Fixed assets'!$R$2:$R$1000)*('Fixed assets'!$P$2:$P$1000<$A686)*('Fixed assets'!$Q$2:$Q$1000=Costs!I$617))-SUMPRODUCT(('Fixed assets'!$S$2:$S$1000)*('Fixed assets'!$P$2:$P$1000<Costs!$A686)*('Fixed assets'!$Q$2:$Q$1000=Costs!I$617))-SUMPRODUCT(('Fixed assets'!$Q$2:$Q$1000=Costs!I$617)*('Fixed assets'!$U$2:$U$1000=Costs!$A686)*('Fixed assets'!$S$2:$S$1000))+SUMPRODUCT(('Fixed assets'!$Q$2:$Q$1000=Costs!I$617)*('Fixed assets'!$P$2:$P$1000=Costs!$A686)*('Fixed assets'!$U$2:$U$1000=Costs!$A686)*('Fixed assets'!$R$2:$R$1000))","v":0},{"$f":"SUMPRODUCT(('Fixed assets'!$R$2:$R$1000)*('Fixed assets'!$P$2:$P$1000<$A686)*('Fixed assets'!$Q$2:$Q$1000=Costs!J$617))-SUMPRODUCT(('Fixed assets'!$S$2:$S$1000)*('Fixed assets'!$P$2:$P$1000<Costs!$A686)*('Fixed assets'!$Q$2:$Q$1000=Costs!J$617))-SUMPRODUCT(('Fixed assets'!$Q$2:$Q$1000=Costs!J$617)*('Fixed assets'!$U$2:$U$1000=Costs!$A686)*('Fixed assets'!$S$2:$S$1000))+SUMPRODUCT(('Fixed assets'!$Q$2:$Q$1000=Costs!J$617)*('Fixed assets'!$P$2:$P$1000=Costs!$A686)*('Fixed assets'!$U$2:$U$1000=Costs!$A686)*('Fixed assets'!$R$2:$R$1000))","v":0},{"$f":"SUMPRODUCT(('Fixed assets'!$R$2:$R$1000)*('Fixed assets'!$P$2:$P$1000<$A686)*('Fixed assets'!$Q$2:$Q$1000=Costs!K$617))-SUMPRODUCT(('Fixed assets'!$S$2:$S$1000)*('Fixed assets'!$P$2:$P$1000<Costs!$A686)*('Fixed assets'!$Q$2:$Q$1000=Costs!K$617))-SUMPRODUCT(('Fixed assets'!$Q$2:$Q$1000=Costs!K$617)*('Fixed assets'!$U$2:$U$1000=Costs!$A686)*('Fixed assets'!$S$2:$S$1000))+SUMPRODUCT(('Fixed assets'!$Q$2:$Q$1000=Costs!K$617)*('Fixed assets'!$P$2:$P$1000=Costs!$A686)*('Fixed assets'!$U$2:$U$1000=Costs!$A686)*('Fixed assets'!$R$2:$R$1000))","v":0},{"$f":"SUMPRODUCT(('Fixed assets'!$R$2:$R$1000)*('Fixed assets'!$P$2:$P$1000<$A686)*('Fixed assets'!$Q$2:$Q$1000=Costs!L$617))-SUMPRODUCT(('Fixed assets'!$S$2:$S$1000)*('Fixed assets'!$P$2:$P$1000<Costs!$A686)*('Fixed assets'!$Q$2:$Q$1000=Costs!L$617))-SUMPRODUCT(('Fixed assets'!$Q$2:$Q$1000=Costs!L$617)*('Fixed assets'!$U$2:$U$1000=Costs!$A686)*('Fixed assets'!$S$2:$S$1000))+SUMPRODUCT(('Fixed assets'!$Q$2:$Q$1000=Costs!L$617)*('Fixed assets'!$P$2:$P$1000=Costs!$A686)*('Fixed assets'!$U$2:$U$1000=Costs!$A686)*('Fixed assets'!$R$2:$R$1000))","v":0},{"$f":"SUMPRODUCT(('Fixed assets'!$R$2:$R$1000)*('Fixed assets'!$P$2:$P$1000<$A686)*('Fixed assets'!$Q$2:$Q$1000=Costs!M$617))-SUMPRODUCT(('Fixed assets'!$S$2:$S$1000)*('Fixed assets'!$P$2:$P$1000<Costs!$A686)*('Fixed assets'!$Q$2:$Q$1000=Costs!M$617))-SUMPRODUCT(('Fixed assets'!$Q$2:$Q$1000=Costs!M$617)*('Fixed assets'!$U$2:$U$1000=Costs!$A686)*('Fixed assets'!$S$2:$S$1000))+SUMPRODUCT(('Fixed assets'!$Q$2:$Q$1000=Costs!M$617)*('Fixed assets'!$P$2:$P$1000=Costs!$A686)*('Fixed assets'!$U$2:$U$1000=Costs!$A686)*('Fixed assets'!$R$2:$R$1000))","v":0},{"$f":"SUMPRODUCT(('Fixed assets'!$R$2:$R$1000)*('Fixed assets'!$P$2:$P$1000<$A686)*('Fixed assets'!$Q$2:$Q$1000=Costs!N$617))-SUMPRODUCT(('Fixed assets'!$S$2:$S$1000)*('Fixed assets'!$P$2:$P$1000<Costs!$A686)*('Fixed assets'!$Q$2:$Q$1000=Costs!N$617))-SUMPRODUCT(('Fixed assets'!$Q$2:$Q$1000=Costs!N$617)*('Fixed assets'!$U$2:$U$1000=Costs!$A686)*('Fixed assets'!$S$2:$S$1000))+SUMPRODUCT(('Fixed assets'!$Q$2:$Q$1000=Costs!N$617)*('Fixed assets'!$P$2:$P$1000=Costs!$A686)*('Fixed assets'!$U$2:$U$1000=Costs!$A686)*('Fixed assets'!$R$2:$R$1000))","v":0},{"$f":"SUMPRODUCT(('Fixed assets'!$R$2:$R$1000)*('Fixed assets'!$P$2:$P$1000<$A686)*('Fixed assets'!$Q$2:$Q$1000=Costs!O$617))-SUMPRODUCT(('Fixed assets'!$S$2:$S$1000)*('Fixed assets'!$P$2:$P$1000<Costs!$A686)*('Fixed assets'!$Q$2:$Q$1000=Costs!O$617))-SUMPRODUCT(('Fixed assets'!$Q$2:$Q$1000=Costs!O$617)*('Fixed assets'!$U$2:$U$1000=Costs!$A686)*('Fixed assets'!$S$2:$S$1000))+SUMPRODUCT(('Fixed assets'!$Q$2:$Q$1000=Costs!O$617)*('Fixed assets'!$P$2:$P$1000=Costs!$A686)*('Fixed assets'!$U$2:$U$1000=Costs!$A686)*('Fixed assets'!$R$2:$R$1000))","v":0},{"$f":"SUMPRODUCT(('Fixed assets'!$R$2:$R$1000)*('Fixed assets'!$P$2:$P$1000<$A686)*('Fixed assets'!$Q$2:$Q$1000=Costs!P$617))-SUMPRODUCT(('Fixed assets'!$S$2:$S$1000)*('Fixed assets'!$P$2:$P$1000<Costs!$A686)*('Fixed assets'!$Q$2:$Q$1000=Costs!P$617))-SUMPRODUCT(('Fixed assets'!$Q$2:$Q$1000=Costs!P$617)*('Fixed assets'!$U$2:$U$1000=Costs!$A686)*('Fixed assets'!$S$2:$S$1000))+SUMPRODUCT(('Fixed assets'!$Q$2:$Q$1000=Costs!P$617)*('Fixed assets'!$P$2:$P$1000=Costs!$A686)*('Fixed assets'!$U$2:$U$1000=Costs!$A686)*('Fixed assets'!$R$2:$R$1000))","v":0},{"$f":"SUMPRODUCT(('Fixed assets'!$R$2:$R$1000)*('Fixed assets'!$P$2:$P$1000<$A686)*('Fixed assets'!$Q$2:$Q$1000=Costs!Q$617))-SUMPRODUCT(('Fixed assets'!$S$2:$S$1000)*('Fixed assets'!$P$2:$P$1000<Costs!$A686)*('Fixed assets'!$Q$2:$Q$1000=Costs!Q$617))-SUMPRODUCT(('Fixed assets'!$Q$2:$Q$1000=Costs!Q$617)*('Fixed assets'!$U$2:$U$1000=Costs!$A686)*('Fixed assets'!$S$2:$S$1000))+SUMPRODUCT(('Fixed assets'!$Q$2:$Q$1000=Costs!Q$617)*('Fixed assets'!$P$2:$P$1000=Costs!$A686)*('Fixed assets'!$U$2:$U$1000=Costs!$A686)*('Fixed assets'!$R$2:$R$1000))","v":0},{"$f":"SUMPRODUCT(('Fixed assets'!$R$2:$R$1000)*('Fixed assets'!$P$2:$P$1000<$A686)*('Fixed assets'!$Q$2:$Q$1000=Costs!R$617))-SUMPRODUCT(('Fixed assets'!$S$2:$S$1000)*('Fixed assets'!$P$2:$P$1000<Costs!$A686)*('Fixed assets'!$Q$2:$Q$1000=Costs!R$617))-SUMPRODUCT(('Fixed assets'!$Q$2:$Q$1000=Costs!R$617)*('Fixed assets'!$U$2:$U$1000=Costs!$A686)*('Fixed assets'!$S$2:$S$1000))+SUMPRODUCT(('Fixed assets'!$Q$2:$Q$1000=Costs!R$617)*('Fixed assets'!$P$2:$P$1000=Costs!$A686)*('Fixed assets'!$U$2:$U$1000=Costs!$A686)*('Fixed assets'!$R$2:$R$1000))","v":0},{"$f":"SUMPRODUCT(('Fixed assets'!$R$2:$R$1000)*('Fixed assets'!$P$2:$P$1000<$A686)*('Fixed assets'!$Q$2:$Q$1000=Costs!S$617))-SUMPRODUCT(('Fixed assets'!$S$2:$S$1000)*('Fixed assets'!$P$2:$P$1000<Costs!$A686)*('Fixed assets'!$Q$2:$Q$1000=Costs!S$617))-SUMPRODUCT(('Fixed assets'!$Q$2:$Q$1000=Costs!S$617)*('Fixed assets'!$U$2:$U$1000=Costs!$A686)*('Fixed assets'!$S$2:$S$1000))+SUMPRODUCT(('Fixed assets'!$Q$2:$Q$1000=Costs!S$617)*('Fixed assets'!$P$2:$P$1000=Costs!$A686)*('Fixed assets'!$U$2:$U$1000=Costs!$A686)*('Fixed assets'!$R$2:$R$1000))","v":0},{"$f":"SUMPRODUCT(('Fixed assets'!$R$2:$R$1000)*('Fixed assets'!$P$2:$P$1000<$A686)*('Fixed assets'!$Q$2:$Q$1000=Costs!T$617))-SUMPRODUCT(('Fixed assets'!$S$2:$S$1000)*('Fixed assets'!$P$2:$P$1000<Costs!$A686)*('Fixed assets'!$Q$2:$Q$1000=Costs!T$617))-SUMPRODUCT(('Fixed assets'!$Q$2:$Q$1000=Costs!T$617)*('Fixed assets'!$U$2:$U$1000=Costs!$A686)*('Fixed assets'!$S$2:$S$1000))+SUMPRODUCT(('Fixed assets'!$Q$2:$Q$1000=Costs!T$617)*('Fixed assets'!$P$2:$P$1000=Costs!$A686)*('Fixed assets'!$U$2:$U$1000=Costs!$A686)*('Fixed assets'!$R$2:$R$1000))","v":0},{"$f":"SUMPRODUCT(('Fixed assets'!$R$2:$R$1000)*('Fixed assets'!$P$2:$P$1000<$A686)*('Fixed assets'!$Q$2:$Q$1000=Costs!U$617))-SUMPRODUCT(('Fixed assets'!$S$2:$S$1000)*('Fixed assets'!$P$2:$P$1000<Costs!$A686)*('Fixed assets'!$Q$2:$Q$1000=Costs!U$617))-SUMPRODUCT(('Fixed assets'!$Q$2:$Q$1000=Costs!U$617)*('Fixed assets'!$U$2:$U$1000=Costs!$A686)*('Fixed assets'!$S$2:$S$1000))+SUMPRODUCT(('Fixed assets'!$Q$2:$Q$1000=Costs!U$617)*('Fixed assets'!$P$2:$P$1000=Costs!$A686)*('Fixed assets'!$U$2:$U$1000=Costs!$A686)*('Fixed assets'!$R$2:$R$1000))","v":0},{"$f":"SUMPRODUCT(('Fixed assets'!$R$2:$R$1000)*('Fixed assets'!$P$2:$P$1000<$A686)*('Fixed assets'!$Q$2:$Q$1000=Costs!V$617))-SUMPRODUCT(('Fixed assets'!$S$2:$S$1000)*('Fixed assets'!$P$2:$P$1000<Costs!$A686)*('Fixed assets'!$Q$2:$Q$1000=Costs!V$617))-SUMPRODUCT(('Fixed assets'!$Q$2:$Q$1000=Costs!V$617)*('Fixed assets'!$U$2:$U$1000=Costs!$A686)*('Fixed assets'!$S$2:$S$1000))+SUMPRODUCT(('Fixed assets'!$Q$2:$Q$1000=Costs!V$617)*('Fixed assets'!$P$2:$P$1000=Costs!$A686)*('Fixed assets'!$U$2:$U$1000=Costs!$A686)*('Fixed assets'!$R$2:$R$1000))","v":0},{"$f":"SUMPRODUCT(('Fixed assets'!$R$2:$R$1000)*('Fixed assets'!$P$2:$P$1000<$A686)*('Fixed assets'!$Q$2:$Q$1000=Costs!W$617))-SUMPRODUCT(('Fixed assets'!$S$2:$S$1000)*('Fixed assets'!$P$2:$P$1000<Costs!$A686)*('Fixed assets'!$Q$2:$Q$1000=Costs!W$617))-SUMPRODUCT(('Fixed assets'!$Q$2:$Q$1000=Costs!W$617)*('Fixed assets'!$U$2:$U$1000=Costs!$A686)*('Fixed assets'!$S$2:$S$1000))+SUMPRODUCT(('Fixed assets'!$Q$2:$Q$1000=Costs!W$617)*('Fixed assets'!$P$2:$P$1000=Costs!$A686)*('Fixed assets'!$U$2:$U$1000=Costs!$A686)*('Fixed assets'!$R$2:$R$1000))","v":0},{"$f":"SUMPRODUCT(('Fixed assets'!$R$2:$R$1000)*('Fixed assets'!$P$2:$P$1000<$A686)*('Fixed assets'!$Q$2:$Q$1000=Costs!X$617))-SUMPRODUCT(('Fixed assets'!$S$2:$S$1000)*('Fixed assets'!$P$2:$P$1000<Costs!$A686)*('Fixed assets'!$Q$2:$Q$1000=Costs!X$617))-SUMPRODUCT(('Fixed assets'!$Q$2:$Q$1000=Costs!X$617)*('Fixed assets'!$U$2:$U$1000=Costs!$A686)*('Fixed assets'!$S$2:$S$1000))+SUMPRODUCT(('Fixed assets'!$Q$2:$Q$1000=Costs!X$617)*('Fixed assets'!$P$2:$P$1000=Costs!$A686)*('Fixed assets'!$U$2:$U$1000=Costs!$A686)*('Fixed assets'!$R$2:$R$1000))","v":0},{"$f":"SUMPRODUCT(('Fixed assets'!$R$2:$R$1000)*('Fixed assets'!$P$2:$P$1000<$A686)*('Fixed assets'!$Q$2:$Q$1000=Costs!Y$617))-SUMPRODUCT(('Fixed assets'!$S$2:$S$1000)*('Fixed assets'!$P$2:$P$1000<Costs!$A686)*('Fixed assets'!$Q$2:$Q$1000=Costs!Y$617))-SUMPRODUCT(('Fixed assets'!$Q$2:$Q$1000=Costs!Y$617)*('Fixed assets'!$U$2:$U$1000=Costs!$A686)*('Fixed assets'!$S$2:$S$1000))+SUMPRODUCT(('Fixed assets'!$Q$2:$Q$1000=Costs!Y$617)*('Fixed assets'!$P$2:$P$1000=Costs!$A686)*('Fixed assets'!$U$2:$U$1000=Costs!$A686)*('Fixed assets'!$R$2:$R$1000))","v":0},{"$f":"SUMPRODUCT(('Fixed assets'!$R$2:$R$1000)*('Fixed assets'!$P$2:$P$1000<$A686)*('Fixed assets'!$Q$2:$Q$1000=Costs!Z$617))-SUMPRODUCT(('Fixed assets'!$S$2:$S$1000)*('Fixed assets'!$P$2:$P$1000<Costs!$A686)*('Fixed assets'!$Q$2:$Q$1000=Costs!Z$617))-SUMPRODUCT(('Fixed assets'!$Q$2:$Q$1000=Costs!Z$617)*('Fixed assets'!$U$2:$U$1000=Costs!$A686)*('Fixed assets'!$S$2:$S$1000))+SUMPRODUCT(('Fixed assets'!$Q$2:$Q$1000=Costs!Z$617)*('Fixed assets'!$P$2:$P$1000=Costs!$A686)*('Fixed assets'!$U$2:$U$1000=Costs!$A686)*('Fixed assets'!$R$2:$R$1000))","v":0},{"$f":"SUMPRODUCT(('Fixed assets'!$R$2:$R$1000)*('Fixed assets'!$P$2:$P$1000<$A686)*('Fixed assets'!$Q$2:$Q$1000=Costs!AA$617))-SUMPRODUCT(('Fixed assets'!$S$2:$S$1000)*('Fixed assets'!$P$2:$P$1000<Costs!$A686)*('Fixed assets'!$Q$2:$Q$1000=Costs!AA$617))-SUMPRODUCT(('Fixed assets'!$Q$2:$Q$1000=Costs!AA$617)*('Fixed assets'!$U$2:$U$1000=Costs!$A686)*('Fixed assets'!$S$2:$S$1000))+SUMPRODUCT(('Fixed assets'!$Q$2:$Q$1000=Costs!AA$617)*('Fixed assets'!$P$2:$P$1000=Costs!$A686)*('Fixed assets'!$U$2:$U$1000=Costs!$A686)*('Fixed assets'!$R$2:$R$1000))","v":0},{"$f":"SUMPRODUCT(('Fixed assets'!$R$2:$R$1000)*('Fixed assets'!$P$2:$P$1000<$A686)*('Fixed assets'!$Q$2:$Q$1000=Costs!AB$617))-SUMPRODUCT(('Fixed assets'!$S$2:$S$1000)*('Fixed assets'!$P$2:$P$1000<Costs!$A686)*('Fixed assets'!$Q$2:$Q$1000=Costs!AB$617))-SUMPRODUCT(('Fixed assets'!$Q$2:$Q$1000=Costs!AB$617)*('Fixed assets'!$U$2:$U$1000=Costs!$A686)*('Fixed assets'!$S$2:$S$1000))+SUMPRODUCT(('Fixed assets'!$Q$2:$Q$1000=Costs!AB$617)*('Fixed assets'!$P$2:$P$1000=Costs!$A686)*('Fixed assets'!$U$2:$U$1000=Costs!$A686)*('Fixed assets'!$R$2:$R$1000))","v":0},{"$f":"SUMPRODUCT(('Fixed assets'!$R$2:$R$1000)*('Fixed assets'!$P$2:$P$1000<$A686)*('Fixed assets'!$Q$2:$Q$1000=Costs!AC$617))-SUMPRODUCT(('Fixed assets'!$S$2:$S$1000)*('Fixed assets'!$P$2:$P$1000<Costs!$A686)*('Fixed assets'!$Q$2:$Q$1000=Costs!AC$617))-SUMPRODUCT(('Fixed assets'!$Q$2:$Q$1000=Costs!AC$617)*('Fixed assets'!$U$2:$U$1000=Costs!$A686)*('Fixed assets'!$S$2:$S$1000))+SUMPRODUCT(('Fixed assets'!$Q$2:$Q$1000=Costs!AC$617)*('Fixed assets'!$P$2:$P$1000=Costs!$A686)*('Fixed assets'!$U$2:$U$1000=Costs!$A686)*('Fixed assets'!$R$2:$R$1000))","v":0},{"$f":"SUMPRODUCT(('Fixed assets'!$R$2:$R$1000)*('Fixed assets'!$P$2:$P$1000<$A686)*('Fixed assets'!$Q$2:$Q$1000=Costs!AD$617))-SUMPRODUCT(('Fixed assets'!$S$2:$S$1000)*('Fixed assets'!$P$2:$P$1000<Costs!$A686)*('Fixed assets'!$Q$2:$Q$1000=Costs!AD$617))-SUMPRODUCT(('Fixed assets'!$Q$2:$Q$1000=Costs!AD$617)*('Fixed assets'!$U$2:$U$1000=Costs!$A686)*('Fixed assets'!$S$2:$S$1000))+SUMPRODUCT(('Fixed assets'!$Q$2:$Q$1000=Costs!AD$617)*('Fixed assets'!$P$2:$P$1000=Costs!$A686)*('Fixed assets'!$U$2:$U$1000=Costs!$A686)*('Fixed assets'!$R$2:$R$1000))","v":0},{"$f":"SUMPRODUCT(('Fixed assets'!$R$2:$R$1000)*('Fixed assets'!$P$2:$P$1000<$A686)*('Fixed assets'!$Q$2:$Q$1000=Costs!AE$617))-SUMPRODUCT(('Fixed assets'!$S$2:$S$1000)*('Fixed assets'!$P$2:$P$1000<Costs!$A686)*('Fixed assets'!$Q$2:$Q$1000=Costs!AE$617))-SUMPRODUCT(('Fixed assets'!$Q$2:$Q$1000=Costs!AE$617)*('Fixed assets'!$U$2:$U$1000=Costs!$A686)*('Fixed assets'!$S$2:$S$1000))+SUMPRODUCT(('Fixed assets'!$Q$2:$Q$1000=Costs!AE$617)*('Fixed assets'!$P$2:$P$1000=Costs!$A686)*('Fixed assets'!$U$2:$U$1000=Costs!$A686)*('Fixed assets'!$R$2:$R$1000))","v":0},{"$f":"SUMPRODUCT(('Fixed assets'!$R$2:$R$1000)*('Fixed assets'!$P$2:$P$1000<$A686)*('Fixed assets'!$Q$2:$Q$1000=Costs!AF$617))-SUMPRODUCT(('Fixed assets'!$S$2:$S$1000)*('Fixed assets'!$P$2:$P$1000<Costs!$A686)*('Fixed assets'!$Q$2:$Q$1000=Costs!AF$617))-SUMPRODUCT(('Fixed assets'!$Q$2:$Q$1000=Costs!AF$617)*('Fixed assets'!$U$2:$U$1000=Costs!$A686)*('Fixed assets'!$S$2:$S$1000))+SUMPRODUCT(('Fixed assets'!$Q$2:$Q$1000=Costs!AF$617)*('Fixed assets'!$P$2:$P$1000=Costs!$A686)*('Fixed assets'!$U$2:$U$1000=Costs!$A686)*('Fixed assets'!$R$2:$R$1000))","v":0},{"$f":"SUMPRODUCT(('Fixed assets'!$R$2:$R$1000)*('Fixed assets'!$P$2:$P$1000<$A686)*('Fixed assets'!$Q$2:$Q$1000=Costs!AG$617))-SUMPRODUCT(('Fixed assets'!$S$2:$S$1000)*('Fixed assets'!$P$2:$P$1000<Costs!$A686)*('Fixed assets'!$Q$2:$Q$1000=Costs!AG$617))-SUMPRODUCT(('Fixed assets'!$Q$2:$Q$1000=Costs!AG$617)*('Fixed assets'!$U$2:$U$1000=Costs!$A686)*('Fixed assets'!$S$2:$S$1000))+SUMPRODUCT(('Fixed assets'!$Q$2:$Q$1000=Costs!AG$617)*('Fixed assets'!$P$2:$P$1000=Costs!$A686)*('Fixed assets'!$U$2:$U$1000=Costs!$A686)*('Fixed assets'!$R$2:$R$1000))","v":0},{"$f":"SUMPRODUCT(('Fixed assets'!$R$2:$R$1000)*('Fixed assets'!$P$2:$P$1000<$A686)*('Fixed assets'!$Q$2:$Q$1000=Costs!AH$617))-SUMPRODUCT(('Fixed assets'!$S$2:$S$1000)*('Fixed assets'!$P$2:$P$1000<Costs!$A686)*('Fixed assets'!$Q$2:$Q$1000=Costs!AH$617))-SUMPRODUCT(('Fixed assets'!$Q$2:$Q$1000=Costs!AH$617)*('Fixed assets'!$U$2:$U$1000=Costs!$A686)*('Fixed assets'!$S$2:$S$1000))+SUMPRODUCT(('Fixed assets'!$Q$2:$Q$1000=Costs!AH$617)*('Fixed assets'!$P$2:$P$1000=Costs!$A686)*('Fixed assets'!$U$2:$U$1000=Costs!$A686)*('Fixed assets'!$R$2:$R$1000))","v":0},{"$f":"SUMPRODUCT(('Fixed assets'!$R$2:$R$1000)*('Fixed assets'!$P$2:$P$1000<$A686)*('Fixed assets'!$Q$2:$Q$1000=Costs!AI$617))-SUMPRODUCT(('Fixed assets'!$S$2:$S$1000)*('Fixed assets'!$P$2:$P$1000<Costs!$A686)*('Fixed assets'!$Q$2:$Q$1000=Costs!AI$617))-SUMPRODUCT(('Fixed assets'!$Q$2:$Q$1000=Costs!AI$617)*('Fixed assets'!$U$2:$U$1000=Costs!$A686)*('Fixed assets'!$S$2:$S$1000))+SUMPRODUCT(('Fixed assets'!$Q$2:$Q$1000=Costs!AI$617)*('Fixed assets'!$P$2:$P$1000=Costs!$A686)*('Fixed assets'!$U$2:$U$1000=Costs!$A686)*('Fixed assets'!$R$2:$R$1000))","v":0},{"$f":"SUMPRODUCT(('Fixed assets'!$R$2:$R$1000)*('Fixed assets'!$P$2:$P$1000<$A686)*('Fixed assets'!$Q$2:$Q$1000=Costs!AJ$617))-SUMPRODUCT(('Fixed assets'!$S$2:$S$1000)*('Fixed assets'!$P$2:$P$1000<Costs!$A686)*('Fixed assets'!$Q$2:$Q$1000=Costs!AJ$617))-SUMPRODUCT(('Fixed assets'!$Q$2:$Q$1000=Costs!AJ$617)*('Fixed assets'!$U$2:$U$1000=Costs!$A686)*('Fixed assets'!$S$2:$S$1000))+SUMPRODUCT(('Fixed assets'!$Q$2:$Q$1000=Costs!AJ$617)*('Fixed assets'!$P$2:$P$1000=Costs!$A686)*('Fixed assets'!$U$2:$U$1000=Costs!$A686)*('Fixed assets'!$R$2:$R$1000))","v":0},{"$f":"SUMPRODUCT(('Fixed assets'!$R$2:$R$1000)*('Fixed assets'!$P$2:$P$1000<$A686)*('Fixed assets'!$Q$2:$Q$1000=Costs!AK$617))-SUMPRODUCT(('Fixed assets'!$S$2:$S$1000)*('Fixed assets'!$P$2:$P$1000<Costs!$A686)*('Fixed assets'!$Q$2:$Q$1000=Costs!AK$617))-SUMPRODUCT(('Fixed assets'!$Q$2:$Q$1000=Costs!AK$617)*('Fixed assets'!$U$2:$U$1000=Costs!$A686)*('Fixed assets'!$S$2:$S$1000))+SUMPRODUCT(('Fixed assets'!$Q$2:$Q$1000=Costs!AK$617)*('Fixed assets'!$P$2:$P$1000=Costs!$A686)*('Fixed assets'!$U$2:$U$1000=Costs!$A686)*('Fixed assets'!$R$2:$R$1000))","v":0},{"$f":"SUMPRODUCT(('Fixed assets'!$R$2:$R$1000)*('Fixed assets'!$P$2:$P$1000<$A686)*('Fixed assets'!$Q$2:$Q$1000=Costs!AL$617))-SUMPRODUCT(('Fixed assets'!$S$2:$S$1000)*('Fixed assets'!$P$2:$P$1000<Costs!$A686)*('Fixed assets'!$Q$2:$Q$1000=Costs!AL$617))-SUMPRODUCT(('Fixed assets'!$Q$2:$Q$1000=Costs!AL$617)*('Fixed assets'!$U$2:$U$1000=Costs!$A686)*('Fixed assets'!$S$2:$S$1000))+SUMPRODUCT(('Fixed assets'!$Q$2:$Q$1000=Costs!AL$617)*('Fixed assets'!$P$2:$P$1000=Costs!$A686)*('Fixed assets'!$U$2:$U$1000=Costs!$A686)*('Fixed assets'!$R$2:$R$1000))","v":0},{"$f":"SUMPRODUCT(('Fixed assets'!$R$2:$R$1000)*('Fixed assets'!$P$2:$P$1000<$A686)*('Fixed assets'!$Q$2:$Q$1000=Costs!AM$617))-SUMPRODUCT(('Fixed assets'!$S$2:$S$1000)*('Fixed assets'!$P$2:$P$1000<Costs!$A686)*('Fixed assets'!$Q$2:$Q$1000=Costs!AM$617))-SUMPRODUCT(('Fixed assets'!$Q$2:$Q$1000=Costs!AM$617)*('Fixed assets'!$U$2:$U$1000=Costs!$A686)*('Fixed assets'!$S$2:$S$1000))+SUMPRODUCT(('Fixed assets'!$Q$2:$Q$1000=Costs!AM$617)*('Fixed assets'!$P$2:$P$1000=Costs!$A686)*('Fixed assets'!$U$2:$U$1000=Costs!$A686)*('Fixed assets'!$R$2:$R$1000))","v":0},{"$f":"SUMPRODUCT(('Fixed assets'!$R$2:$R$1000)*('Fixed assets'!$P$2:$P$1000<$A686)*('Fixed assets'!$Q$2:$Q$1000=Costs!AN$617))-SUMPRODUCT(('Fixed assets'!$S$2:$S$1000)*('Fixed assets'!$P$2:$P$1000<Costs!$A686)*('Fixed assets'!$Q$2:$Q$1000=Costs!AN$617))-SUMPRODUCT(('Fixed assets'!$Q$2:$Q$1000=Costs!AN$617)*('Fixed assets'!$U$2:$U$1000=Costs!$A686)*('Fixed assets'!$S$2:$S$1000))+SUMPRODUCT(('Fixed assets'!$Q$2:$Q$1000=Costs!AN$617)*('Fixed assets'!$P$2:$P$1000=Costs!$A686)*('Fixed assets'!$U$2:$U$1000=Costs!$A686)*('Fixed assets'!$R$2:$R$1000))","v":0},{"$f":"SUMPRODUCT(('Fixed assets'!$R$2:$R$1000)*('Fixed assets'!$P$2:$P$1000<$A686)*('Fixed assets'!$Q$2:$Q$1000=Costs!AO$617))-SUMPRODUCT(('Fixed assets'!$S$2:$S$1000)*('Fixed assets'!$P$2:$P$1000<Costs!$A686)*('Fixed assets'!$Q$2:$Q$1000=Costs!AO$617))-SUMPRODUCT(('Fixed assets'!$Q$2:$Q$1000=Costs!AO$617)*('Fixed assets'!$U$2:$U$1000=Costs!$A686)*('Fixed assets'!$S$2:$S$1000))+SUMPRODUCT(('Fixed assets'!$Q$2:$Q$1000=Costs!AO$617)*('Fixed assets'!$P$2:$P$1000=Costs!$A686)*('Fixed assets'!$U$2:$U$1000=Costs!$A686)*('Fixed assets'!$R$2:$R$1000))","v":0},{"$f":"SUMPRODUCT(('Fixed assets'!$R$2:$R$1000)*('Fixed assets'!$P$2:$P$1000<$A686)*('Fixed assets'!$Q$2:$Q$1000=Costs!AP$617))-SUMPRODUCT(('Fixed assets'!$S$2:$S$1000)*('Fixed assets'!$P$2:$P$1000<Costs!$A686)*('Fixed assets'!$Q$2:$Q$1000=Costs!AP$617))-SUMPRODUCT(('Fixed assets'!$Q$2:$Q$1000=Costs!AP$617)*('Fixed assets'!$U$2:$U$1000=Costs!$A686)*('Fixed assets'!$S$2:$S$1000))+SUMPRODUCT(('Fixed assets'!$Q$2:$Q$1000=Costs!AP$617)*('Fixed assets'!$P$2:$P$1000=Costs!$A686)*('Fixed assets'!$U$2:$U$1000=Costs!$A686)*('Fixed assets'!$R$2:$R$1000))","v":0},{"$f":"SUMPRODUCT(('Fixed assets'!$R$2:$R$1000)*('Fixed assets'!$P$2:$P$1000<$A686)*('Fixed assets'!$Q$2:$Q$1000=Costs!AQ$617))-SUMPRODUCT(('Fixed assets'!$S$2:$S$1000)*('Fixed assets'!$P$2:$P$1000<Costs!$A686)*('Fixed assets'!$Q$2:$Q$1000=Costs!AQ$617))-SUMPRODUCT(('Fixed assets'!$Q$2:$Q$1000=Costs!AQ$617)*('Fixed assets'!$U$2:$U$1000=Costs!$A686)*('Fixed assets'!$S$2:$S$1000))+SUMPRODUCT(('Fixed assets'!$Q$2:$Q$1000=Costs!AQ$617)*('Fixed assets'!$P$2:$P$1000=Costs!$A686)*('Fixed assets'!$U$2:$U$1000=Costs!$A686)*('Fixed assets'!$R$2:$R$1000))","v":0}]
[2084,0,{"$f":"SUMPRODUCT(('Fixed assets'!$R$2:$R$1000)*('Fixed assets'!$P$2:$P$1000<$A687)*('Fixed assets'!$Q$2:$Q$1000=Costs!C$617))-SUMPRODUCT(('Fixed assets'!$S$2:$S$1000)*('Fixed assets'!$P$2:$P$1000<Costs!$A687)*('Fixed assets'!$Q$2:$Q$1000=Costs!C$617))-SUMPRODUCT(('Fixed assets'!$Q$2:$Q$1000=Costs!C$617)*('Fixed assets'!$U$2:$U$1000=Costs!$A687)*('Fixed assets'!$S$2:$S$1000))+SUMPRODUCT(('Fixed assets'!$Q$2:$Q$1000=Costs!C$617)*('Fixed assets'!$P$2:$P$1000=Costs!$A687)*('Fixed assets'!$U$2:$U$1000=Costs!$A687)*('Fixed assets'!$R$2:$R$1000))","v":0},{"$f":"SUMPRODUCT(('Fixed assets'!$R$2:$R$1000)*('Fixed assets'!$P$2:$P$1000<$A687)*('Fixed assets'!$Q$2:$Q$1000=Costs!D$617))-SUMPRODUCT(('Fixed assets'!$S$2:$S$1000)*('Fixed assets'!$P$2:$P$1000<Costs!$A687)*('Fixed assets'!$Q$2:$Q$1000=Costs!D$617))-SUMPRODUCT(('Fixed assets'!$Q$2:$Q$1000=Costs!D$617)*('Fixed assets'!$U$2:$U$1000=Costs!$A687)*('Fixed assets'!$S$2:$S$1000))+SUMPRODUCT(('Fixed assets'!$Q$2:$Q$1000=Costs!D$617)*('Fixed assets'!$P$2:$P$1000=Costs!$A687)*('Fixed assets'!$U$2:$U$1000=Costs!$A687)*('Fixed assets'!$R$2:$R$1000))","v":0},{"$f":"SUMPRODUCT(('Fixed assets'!$R$2:$R$1000)*('Fixed assets'!$P$2:$P$1000<$A687)*('Fixed assets'!$Q$2:$Q$1000=Costs!E$617))-SUMPRODUCT(('Fixed assets'!$S$2:$S$1000)*('Fixed assets'!$P$2:$P$1000<Costs!$A687)*('Fixed assets'!$Q$2:$Q$1000=Costs!E$617))-SUMPRODUCT(('Fixed assets'!$Q$2:$Q$1000=Costs!E$617)*('Fixed assets'!$U$2:$U$1000=Costs!$A687)*('Fixed assets'!$S$2:$S$1000))+SUMPRODUCT(('Fixed assets'!$Q$2:$Q$1000=Costs!E$617)*('Fixed assets'!$P$2:$P$1000=Costs!$A687)*('Fixed assets'!$U$2:$U$1000=Costs!$A687)*('Fixed assets'!$R$2:$R$1000))","v":0},{"$f":"SUMPRODUCT(('Fixed assets'!$R$2:$R$1000)*('Fixed assets'!$P$2:$P$1000<$A687)*('Fixed assets'!$Q$2:$Q$1000=Costs!F$617))-SUMPRODUCT(('Fixed assets'!$S$2:$S$1000)*('Fixed assets'!$P$2:$P$1000<Costs!$A687)*('Fixed assets'!$Q$2:$Q$1000=Costs!F$617))-SUMPRODUCT(('Fixed assets'!$Q$2:$Q$1000=Costs!F$617)*('Fixed assets'!$U$2:$U$1000=Costs!$A687)*('Fixed assets'!$S$2:$S$1000))+SUMPRODUCT(('Fixed assets'!$Q$2:$Q$1000=Costs!F$617)*('Fixed assets'!$P$2:$P$1000=Costs!$A687)*('Fixed assets'!$U$2:$U$1000=Costs!$A687)*('Fixed assets'!$R$2:$R$1000))","v":0},{"$f":"SUMPRODUCT(('Fixed assets'!$R$2:$R$1000)*('Fixed assets'!$P$2:$P$1000<$A687)*('Fixed assets'!$Q$2:$Q$1000=Costs!G$617))-SUMPRODUCT(('Fixed assets'!$S$2:$S$1000)*('Fixed assets'!$P$2:$P$1000<Costs!$A687)*('Fixed assets'!$Q$2:$Q$1000=Costs!G$617))-SUMPRODUCT(('Fixed assets'!$Q$2:$Q$1000=Costs!G$617)*('Fixed assets'!$U$2:$U$1000=Costs!$A687)*('Fixed assets'!$S$2:$S$1000))+SUMPRODUCT(('Fixed assets'!$Q$2:$Q$1000=Costs!G$617)*('Fixed assets'!$P$2:$P$1000=Costs!$A687)*('Fixed assets'!$U$2:$U$1000=Costs!$A687)*('Fixed assets'!$R$2:$R$1000))","v":0},{"$f":"SUMPRODUCT(('Fixed assets'!$R$2:$R$1000)*('Fixed assets'!$P$2:$P$1000<$A687)*('Fixed assets'!$Q$2:$Q$1000=Costs!H$617))-SUMPRODUCT(('Fixed assets'!$S$2:$S$1000)*('Fixed assets'!$P$2:$P$1000<Costs!$A687)*('Fixed assets'!$Q$2:$Q$1000=Costs!H$617))-SUMPRODUCT(('Fixed assets'!$Q$2:$Q$1000=Costs!H$617)*('Fixed assets'!$U$2:$U$1000=Costs!$A687)*('Fixed assets'!$S$2:$S$1000))+SUMPRODUCT(('Fixed assets'!$Q$2:$Q$1000=Costs!H$617)*('Fixed assets'!$P$2:$P$1000=Costs!$A687)*('Fixed assets'!$U$2:$U$1000=Costs!$A687)*('Fixed assets'!$R$2:$R$1000))","v":0},{"$f":"SUMPRODUCT(('Fixed assets'!$R$2:$R$1000)*('Fixed assets'!$P$2:$P$1000<$A687)*('Fixed assets'!$Q$2:$Q$1000=Costs!I$617))-SUMPRODUCT(('Fixed assets'!$S$2:$S$1000)*('Fixed assets'!$P$2:$P$1000<Costs!$A687)*('Fixed assets'!$Q$2:$Q$1000=Costs!I$617))-SUMPRODUCT(('Fixed assets'!$Q$2:$Q$1000=Costs!I$617)*('Fixed assets'!$U$2:$U$1000=Costs!$A687)*('Fixed assets'!$S$2:$S$1000))+SUMPRODUCT(('Fixed assets'!$Q$2:$Q$1000=Costs!I$617)*('Fixed assets'!$P$2:$P$1000=Costs!$A687)*('Fixed assets'!$U$2:$U$1000=Costs!$A687)*('Fixed assets'!$R$2:$R$1000))","v":0},{"$f":"SUMPRODUCT(('Fixed assets'!$R$2:$R$1000)*('Fixed assets'!$P$2:$P$1000<$A687)*('Fixed assets'!$Q$2:$Q$1000=Costs!J$617))-SUMPRODUCT(('Fixed assets'!$S$2:$S$1000)*('Fixed assets'!$P$2:$P$1000<Costs!$A687)*('Fixed assets'!$Q$2:$Q$1000=Costs!J$617))-SUMPRODUCT(('Fixed assets'!$Q$2:$Q$1000=Costs!J$617)*('Fixed assets'!$U$2:$U$1000=Costs!$A687)*('Fixed assets'!$S$2:$S$1000))+SUMPRODUCT(('Fixed assets'!$Q$2:$Q$1000=Costs!J$617)*('Fixed assets'!$P$2:$P$1000=Costs!$A687)*('Fixed assets'!$U$2:$U$1000=Costs!$A687)*('Fixed assets'!$R$2:$R$1000))","v":0},{"$f":"SUMPRODUCT(('Fixed assets'!$R$2:$R$1000)*('Fixed assets'!$P$2:$P$1000<$A687)*('Fixed assets'!$Q$2:$Q$1000=Costs!K$617))-SUMPRODUCT(('Fixed assets'!$S$2:$S$1000)*('Fixed assets'!$P$2:$P$1000<Costs!$A687)*('Fixed assets'!$Q$2:$Q$1000=Costs!K$617))-SUMPRODUCT(('Fixed assets'!$Q$2:$Q$1000=Costs!K$617)*('Fixed assets'!$U$2:$U$1000=Costs!$A687)*('Fixed assets'!$S$2:$S$1000))+SUMPRODUCT(('Fixed assets'!$Q$2:$Q$1000=Costs!K$617)*('Fixed assets'!$P$2:$P$1000=Costs!$A687)*('Fixed assets'!$U$2:$U$1000=Costs!$A687)*('Fixed assets'!$R$2:$R$1000))","v":0},{"$f":"SUMPRODUCT(('Fixed assets'!$R$2:$R$1000)*('Fixed assets'!$P$2:$P$1000<$A687)*('Fixed assets'!$Q$2:$Q$1000=Costs!L$617))-SUMPRODUCT(('Fixed assets'!$S$2:$S$1000)*('Fixed assets'!$P$2:$P$1000<Costs!$A687)*('Fixed assets'!$Q$2:$Q$1000=Costs!L$617))-SUMPRODUCT(('Fixed assets'!$Q$2:$Q$1000=Costs!L$617)*('Fixed assets'!$U$2:$U$1000=Costs!$A687)*('Fixed assets'!$S$2:$S$1000))+SUMPRODUCT(('Fixed assets'!$Q$2:$Q$1000=Costs!L$617)*('Fixed assets'!$P$2:$P$1000=Costs!$A687)*('Fixed assets'!$U$2:$U$1000=Costs!$A687)*('Fixed assets'!$R$2:$R$1000))","v":0},{"$f":"SUMPRODUCT(('Fixed assets'!$R$2:$R$1000)*('Fixed assets'!$P$2:$P$1000<$A687)*('Fixed assets'!$Q$2:$Q$1000=Costs!M$617))-SUMPRODUCT(('Fixed assets'!$S$2:$S$1000)*('Fixed assets'!$P$2:$P$1000<Costs!$A687)*('Fixed assets'!$Q$2:$Q$1000=Costs!M$617))-SUMPRODUCT(('Fixed assets'!$Q$2:$Q$1000=Costs!M$617)*('Fixed assets'!$U$2:$U$1000=Costs!$A687)*('Fixed assets'!$S$2:$S$1000))+SUMPRODUCT(('Fixed assets'!$Q$2:$Q$1000=Costs!M$617)*('Fixed assets'!$P$2:$P$1000=Costs!$A687)*('Fixed assets'!$U$2:$U$1000=Costs!$A687)*('Fixed assets'!$R$2:$R$1000))","v":0},{"$f":"SUMPRODUCT(('Fixed assets'!$R$2:$R$1000)*('Fixed assets'!$P$2:$P$1000<$A687)*('Fixed assets'!$Q$2:$Q$1000=Costs!N$617))-SUMPRODUCT(('Fixed assets'!$S$2:$S$1000)*('Fixed assets'!$P$2:$P$1000<Costs!$A687)*('Fixed assets'!$Q$2:$Q$1000=Costs!N$617))-SUMPRODUCT(('Fixed assets'!$Q$2:$Q$1000=Costs!N$617)*('Fixed assets'!$U$2:$U$1000=Costs!$A687)*('Fixed assets'!$S$2:$S$1000))+SUMPRODUCT(('Fixed assets'!$Q$2:$Q$1000=Costs!N$617)*('Fixed assets'!$P$2:$P$1000=Costs!$A687)*('Fixed assets'!$U$2:$U$1000=Costs!$A687)*('Fixed assets'!$R$2:$R$1000))","v":0},{"$f":"SUMPRODUCT(('Fixed assets'!$R$2:$R$1000)*('Fixed assets'!$P$2:$P$1000<$A687)*('Fixed assets'!$Q$2:$Q$1000=Costs!O$617))-SUMPRODUCT(('Fixed assets'!$S$2:$S$1000)*('Fixed assets'!$P$2:$P$1000<Costs!$A687)*('Fixed assets'!$Q$2:$Q$1000=Costs!O$617))-SUMPRODUCT(('Fixed assets'!$Q$2:$Q$1000=Costs!O$617)*('Fixed assets'!$U$2:$U$1000=Costs!$A687)*('Fixed assets'!$S$2:$S$1000))+SUMPRODUCT(('Fixed assets'!$Q$2:$Q$1000=Costs!O$617)*('Fixed assets'!$P$2:$P$1000=Costs!$A687)*('Fixed assets'!$U$2:$U$1000=Costs!$A687)*('Fixed assets'!$R$2:$R$1000))","v":0},{"$f":"SUMPRODUCT(('Fixed assets'!$R$2:$R$1000)*('Fixed assets'!$P$2:$P$1000<$A687)*('Fixed assets'!$Q$2:$Q$1000=Costs!P$617))-SUMPRODUCT(('Fixed assets'!$S$2:$S$1000)*('Fixed assets'!$P$2:$P$1000<Costs!$A687)*('Fixed assets'!$Q$2:$Q$1000=Costs!P$617))-SUMPRODUCT(('Fixed assets'!$Q$2:$Q$1000=Costs!P$617)*('Fixed assets'!$U$2:$U$1000=Costs!$A687)*('Fixed assets'!$S$2:$S$1000))+SUMPRODUCT(('Fixed assets'!$Q$2:$Q$1000=Costs!P$617)*('Fixed assets'!$P$2:$P$1000=Costs!$A687)*('Fixed assets'!$U$2:$U$1000=Costs!$A687)*('Fixed assets'!$R$2:$R$1000))","v":0},{"$f":"SUMPRODUCT(('Fixed assets'!$R$2:$R$1000)*('Fixed assets'!$P$2:$P$1000<$A687)*('Fixed assets'!$Q$2:$Q$1000=Costs!Q$617))-SUMPRODUCT(('Fixed assets'!$S$2:$S$1000)*('Fixed assets'!$P$2:$P$1000<Costs!$A687)*('Fixed assets'!$Q$2:$Q$1000=Costs!Q$617))-SUMPRODUCT(('Fixed assets'!$Q$2:$Q$1000=Costs!Q$617)*('Fixed assets'!$U$2:$U$1000=Costs!$A687)*('Fixed assets'!$S$2:$S$1000))+SUMPRODUCT(('Fixed assets'!$Q$2:$Q$1000=Costs!Q$617)*('Fixed assets'!$P$2:$P$1000=Costs!$A687)*('Fixed assets'!$U$2:$U$1000=Costs!$A687)*('Fixed assets'!$R$2:$R$1000))","v":0},{"$f":"SUMPRODUCT(('Fixed assets'!$R$2:$R$1000)*('Fixed assets'!$P$2:$P$1000<$A687)*('Fixed assets'!$Q$2:$Q$1000=Costs!R$617))-SUMPRODUCT(('Fixed assets'!$S$2:$S$1000)*('Fixed assets'!$P$2:$P$1000<Costs!$A687)*('Fixed assets'!$Q$2:$Q$1000=Costs!R$617))-SUMPRODUCT(('Fixed assets'!$Q$2:$Q$1000=Costs!R$617)*('Fixed assets'!$U$2:$U$1000=Costs!$A687)*('Fixed assets'!$S$2:$S$1000))+SUMPRODUCT(('Fixed assets'!$Q$2:$Q$1000=Costs!R$617)*('Fixed assets'!$P$2:$P$1000=Costs!$A687)*('Fixed assets'!$U$2:$U$1000=Costs!$A687)*('Fixed assets'!$R$2:$R$1000))","v":0},{"$f":"SUMPRODUCT(('Fixed assets'!$R$2:$R$1000)*('Fixed assets'!$P$2:$P$1000<$A687)*('Fixed assets'!$Q$2:$Q$1000=Costs!S$617))-SUMPRODUCT(('Fixed assets'!$S$2:$S$1000)*('Fixed assets'!$P$2:$P$1000<Costs!$A687)*('Fixed assets'!$Q$2:$Q$1000=Costs!S$617))-SUMPRODUCT(('Fixed assets'!$Q$2:$Q$1000=Costs!S$617)*('Fixed assets'!$U$2:$U$1000=Costs!$A687)*('Fixed assets'!$S$2:$S$1000))+SUMPRODUCT(('Fixed assets'!$Q$2:$Q$1000=Costs!S$617)*('Fixed assets'!$P$2:$P$1000=Costs!$A687)*('Fixed assets'!$U$2:$U$1000=Costs!$A687)*('Fixed assets'!$R$2:$R$1000))","v":0},{"$f":"SUMPRODUCT(('Fixed assets'!$R$2:$R$1000)*('Fixed assets'!$P$2:$P$1000<$A687)*('Fixed assets'!$Q$2:$Q$1000=Costs!T$617))-SUMPRODUCT(('Fixed assets'!$S$2:$S$1000)*('Fixed assets'!$P$2:$P$1000<Costs!$A687)*('Fixed assets'!$Q$2:$Q$1000=Costs!T$617))-SUMPRODUCT(('Fixed assets'!$Q$2:$Q$1000=Costs!T$617)*('Fixed assets'!$U$2:$U$1000=Costs!$A687)*('Fixed assets'!$S$2:$S$1000))+SUMPRODUCT(('Fixed assets'!$Q$2:$Q$1000=Costs!T$617)*('Fixed assets'!$P$2:$P$1000=Costs!$A687)*('Fixed assets'!$U$2:$U$1000=Costs!$A687)*('Fixed assets'!$R$2:$R$1000))","v":0},{"$f":"SUMPRODUCT(('Fixed assets'!$R$2:$R$1000)*('Fixed assets'!$P$2:$P$1000<$A687)*('Fixed assets'!$Q$2:$Q$1000=Costs!U$617))-SUMPRODUCT(('Fixed assets'!$S$2:$S$1000)*('Fixed assets'!$P$2:$P$1000<Costs!$A687)*('Fixed assets'!$Q$2:$Q$1000=Costs!U$617))-SUMPRODUCT(('Fixed assets'!$Q$2:$Q$1000=Costs!U$617)*('Fixed assets'!$U$2:$U$1000=Costs!$A687)*('Fixed assets'!$S$2:$S$1000))+SUMPRODUCT(('Fixed assets'!$Q$2:$Q$1000=Costs!U$617)*('Fixed assets'!$P$2:$P$1000=Costs!$A687)*('Fixed assets'!$U$2:$U$1000=Costs!$A687)*('Fixed assets'!$R$2:$R$1000))","v":0},{"$f":"SUMPRODUCT(('Fixed assets'!$R$2:$R$1000)*('Fixed assets'!$P$2:$P$1000<$A687)*('Fixed assets'!$Q$2:$Q$1000=Costs!V$617))-SUMPRODUCT(('Fixed assets'!$S$2:$S$1000)*('Fixed assets'!$P$2:$P$1000<Costs!$A687)*('Fixed assets'!$Q$2:$Q$1000=Costs!V$617))-SUMPRODUCT(('Fixed assets'!$Q$2:$Q$1000=Costs!V$617)*('Fixed assets'!$U$2:$U$1000=Costs!$A687)*('Fixed assets'!$S$2:$S$1000))+SUMPRODUCT(('Fixed assets'!$Q$2:$Q$1000=Costs!V$617)*('Fixed assets'!$P$2:$P$1000=Costs!$A687)*('Fixed assets'!$U$2:$U$1000=Costs!$A687)*('Fixed assets'!$R$2:$R$1000))","v":0},{"$f":"SUMPRODUCT(('Fixed assets'!$R$2:$R$1000)*('Fixed assets'!$P$2:$P$1000<$A687)*('Fixed assets'!$Q$2:$Q$1000=Costs!W$617))-SUMPRODUCT(('Fixed assets'!$S$2:$S$1000)*('Fixed assets'!$P$2:$P$1000<Costs!$A687)*('Fixed assets'!$Q$2:$Q$1000=Costs!W$617))-SUMPRODUCT(('Fixed assets'!$Q$2:$Q$1000=Costs!W$617)*('Fixed assets'!$U$2:$U$1000=Costs!$A687)*('Fixed assets'!$S$2:$S$1000))+SUMPRODUCT(('Fixed assets'!$Q$2:$Q$1000=Costs!W$617)*('Fixed assets'!$P$2:$P$1000=Costs!$A687)*('Fixed assets'!$U$2:$U$1000=Costs!$A687)*('Fixed assets'!$R$2:$R$1000))","v":0},{"$f":"SUMPRODUCT(('Fixed assets'!$R$2:$R$1000)*('Fixed assets'!$P$2:$P$1000<$A687)*('Fixed assets'!$Q$2:$Q$1000=Costs!X$617))-SUMPRODUCT(('Fixed assets'!$S$2:$S$1000)*('Fixed assets'!$P$2:$P$1000<Costs!$A687)*('Fixed assets'!$Q$2:$Q$1000=Costs!X$617))-SUMPRODUCT(('Fixed assets'!$Q$2:$Q$1000=Costs!X$617)*('Fixed assets'!$U$2:$U$1000=Costs!$A687)*('Fixed assets'!$S$2:$S$1000))+SUMPRODUCT(('Fixed assets'!$Q$2:$Q$1000=Costs!X$617)*('Fixed assets'!$P$2:$P$1000=Costs!$A687)*('Fixed assets'!$U$2:$U$1000=Costs!$A687)*('Fixed assets'!$R$2:$R$1000))","v":0},{"$f":"SUMPRODUCT(('Fixed assets'!$R$2:$R$1000)*('Fixed assets'!$P$2:$P$1000<$A687)*('Fixed assets'!$Q$2:$Q$1000=Costs!Y$617))-SUMPRODUCT(('Fixed assets'!$S$2:$S$1000)*('Fixed assets'!$P$2:$P$1000<Costs!$A687)*('Fixed assets'!$Q$2:$Q$1000=Costs!Y$617))-SUMPRODUCT(('Fixed assets'!$Q$2:$Q$1000=Costs!Y$617)*('Fixed assets'!$U$2:$U$1000=Costs!$A687)*('Fixed assets'!$S$2:$S$1000))+SUMPRODUCT(('Fixed assets'!$Q$2:$Q$1000=Costs!Y$617)*('Fixed assets'!$P$2:$P$1000=Costs!$A687)*('Fixed assets'!$U$2:$U$1000=Costs!$A687)*('Fixed assets'!$R$2:$R$1000))","v":0},{"$f":"SUMPRODUCT(('Fixed assets'!$R$2:$R$1000)*('Fixed assets'!$P$2:$P$1000<$A687)*('Fixed assets'!$Q$2:$Q$1000=Costs!Z$617))-SUMPRODUCT(('Fixed assets'!$S$2:$S$1000)*('Fixed assets'!$P$2:$P$1000<Costs!$A687)*('Fixed assets'!$Q$2:$Q$1000=Costs!Z$617))-SUMPRODUCT(('Fixed assets'!$Q$2:$Q$1000=Costs!Z$617)*('Fixed assets'!$U$2:$U$1000=Costs!$A687)*('Fixed assets'!$S$2:$S$1000))+SUMPRODUCT(('Fixed assets'!$Q$2:$Q$1000=Costs!Z$617)*('Fixed assets'!$P$2:$P$1000=Costs!$A687)*('Fixed assets'!$U$2:$U$1000=Costs!$A687)*('Fixed assets'!$R$2:$R$1000))","v":0},{"$f":"SUMPRODUCT(('Fixed assets'!$R$2:$R$1000)*('Fixed assets'!$P$2:$P$1000<$A687)*('Fixed assets'!$Q$2:$Q$1000=Costs!AA$617))-SUMPRODUCT(('Fixed assets'!$S$2:$S$1000)*('Fixed assets'!$P$2:$P$1000<Costs!$A687)*('Fixed assets'!$Q$2:$Q$1000=Costs!AA$617))-SUMPRODUCT(('Fixed assets'!$Q$2:$Q$1000=Costs!AA$617)*('Fixed assets'!$U$2:$U$1000=Costs!$A687)*('Fixed assets'!$S$2:$S$1000))+SUMPRODUCT(('Fixed assets'!$Q$2:$Q$1000=Costs!AA$617)*('Fixed assets'!$P$2:$P$1000=Costs!$A687)*('Fixed assets'!$U$2:$U$1000=Costs!$A687)*('Fixed assets'!$R$2:$R$1000))","v":0},{"$f":"SUMPRODUCT(('Fixed assets'!$R$2:$R$1000)*('Fixed assets'!$P$2:$P$1000<$A687)*('Fixed assets'!$Q$2:$Q$1000=Costs!AB$617))-SUMPRODUCT(('Fixed assets'!$S$2:$S$1000)*('Fixed assets'!$P$2:$P$1000<Costs!$A687)*('Fixed assets'!$Q$2:$Q$1000=Costs!AB$617))-SUMPRODUCT(('Fixed assets'!$Q$2:$Q$1000=Costs!AB$617)*('Fixed assets'!$U$2:$U$1000=Costs!$A687)*('Fixed assets'!$S$2:$S$1000))+SUMPRODUCT(('Fixed assets'!$Q$2:$Q$1000=Costs!AB$617)*('Fixed assets'!$P$2:$P$1000=Costs!$A687)*('Fixed assets'!$U$2:$U$1000=Costs!$A687)*('Fixed assets'!$R$2:$R$1000))","v":0},{"$f":"SUMPRODUCT(('Fixed assets'!$R$2:$R$1000)*('Fixed assets'!$P$2:$P$1000<$A687)*('Fixed assets'!$Q$2:$Q$1000=Costs!AC$617))-SUMPRODUCT(('Fixed assets'!$S$2:$S$1000)*('Fixed assets'!$P$2:$P$1000<Costs!$A687)*('Fixed assets'!$Q$2:$Q$1000=Costs!AC$617))-SUMPRODUCT(('Fixed assets'!$Q$2:$Q$1000=Costs!AC$617)*('Fixed assets'!$U$2:$U$1000=Costs!$A687)*('Fixed assets'!$S$2:$S$1000))+SUMPRODUCT(('Fixed assets'!$Q$2:$Q$1000=Costs!AC$617)*('Fixed assets'!$P$2:$P$1000=Costs!$A687)*('Fixed assets'!$U$2:$U$1000=Costs!$A687)*('Fixed assets'!$R$2:$R$1000))","v":0},{"$f":"SUMPRODUCT(('Fixed assets'!$R$2:$R$1000)*('Fixed assets'!$P$2:$P$1000<$A687)*('Fixed assets'!$Q$2:$Q$1000=Costs!AD$617))-SUMPRODUCT(('Fixed assets'!$S$2:$S$1000)*('Fixed assets'!$P$2:$P$1000<Costs!$A687)*('Fixed assets'!$Q$2:$Q$1000=Costs!AD$617))-SUMPRODUCT(('Fixed assets'!$Q$2:$Q$1000=Costs!AD$617)*('Fixed assets'!$U$2:$U$1000=Costs!$A687)*('Fixed assets'!$S$2:$S$1000))+SUMPRODUCT(('Fixed assets'!$Q$2:$Q$1000=Costs!AD$617)*('Fixed assets'!$P$2:$P$1000=Costs!$A687)*('Fixed assets'!$U$2:$U$1000=Costs!$A687)*('Fixed assets'!$R$2:$R$1000))","v":0},{"$f":"SUMPRODUCT(('Fixed assets'!$R$2:$R$1000)*('Fixed assets'!$P$2:$P$1000<$A687)*('Fixed assets'!$Q$2:$Q$1000=Costs!AE$617))-SUMPRODUCT(('Fixed assets'!$S$2:$S$1000)*('Fixed assets'!$P$2:$P$1000<Costs!$A687)*('Fixed assets'!$Q$2:$Q$1000=Costs!AE$617))-SUMPRODUCT(('Fixed assets'!$Q$2:$Q$1000=Costs!AE$617)*('Fixed assets'!$U$2:$U$1000=Costs!$A687)*('Fixed assets'!$S$2:$S$1000))+SUMPRODUCT(('Fixed assets'!$Q$2:$Q$1000=Costs!AE$617)*('Fixed assets'!$P$2:$P$1000=Costs!$A687)*('Fixed assets'!$U$2:$U$1000=Costs!$A687)*('Fixed assets'!$R$2:$R$1000))","v":0},{"$f":"SUMPRODUCT(('Fixed assets'!$R$2:$R$1000)*('Fixed assets'!$P$2:$P$1000<$A687)*('Fixed assets'!$Q$2:$Q$1000=Costs!AF$617))-SUMPRODUCT(('Fixed assets'!$S$2:$S$1000)*('Fixed assets'!$P$2:$P$1000<Costs!$A687)*('Fixed assets'!$Q$2:$Q$1000=Costs!AF$617))-SUMPRODUCT(('Fixed assets'!$Q$2:$Q$1000=Costs!AF$617)*('Fixed assets'!$U$2:$U$1000=Costs!$A687)*('Fixed assets'!$S$2:$S$1000))+SUMPRODUCT(('Fixed assets'!$Q$2:$Q$1000=Costs!AF$617)*('Fixed assets'!$P$2:$P$1000=Costs!$A687)*('Fixed assets'!$U$2:$U$1000=Costs!$A687)*('Fixed assets'!$R$2:$R$1000))","v":0},{"$f":"SUMPRODUCT(('Fixed assets'!$R$2:$R$1000)*('Fixed assets'!$P$2:$P$1000<$A687)*('Fixed assets'!$Q$2:$Q$1000=Costs!AG$617))-SUMPRODUCT(('Fixed assets'!$S$2:$S$1000)*('Fixed assets'!$P$2:$P$1000<Costs!$A687)*('Fixed assets'!$Q$2:$Q$1000=Costs!AG$617))-SUMPRODUCT(('Fixed assets'!$Q$2:$Q$1000=Costs!AG$617)*('Fixed assets'!$U$2:$U$1000=Costs!$A687)*('Fixed assets'!$S$2:$S$1000))+SUMPRODUCT(('Fixed assets'!$Q$2:$Q$1000=Costs!AG$617)*('Fixed assets'!$P$2:$P$1000=Costs!$A687)*('Fixed assets'!$U$2:$U$1000=Costs!$A687)*('Fixed assets'!$R$2:$R$1000))","v":0},{"$f":"SUMPRODUCT(('Fixed assets'!$R$2:$R$1000)*('Fixed assets'!$P$2:$P$1000<$A687)*('Fixed assets'!$Q$2:$Q$1000=Costs!AH$617))-SUMPRODUCT(('Fixed assets'!$S$2:$S$1000)*('Fixed assets'!$P$2:$P$1000<Costs!$A687)*('Fixed assets'!$Q$2:$Q$1000=Costs!AH$617))-SUMPRODUCT(('Fixed assets'!$Q$2:$Q$1000=Costs!AH$617)*('Fixed assets'!$U$2:$U$1000=Costs!$A687)*('Fixed assets'!$S$2:$S$1000))+SUMPRODUCT(('Fixed assets'!$Q$2:$Q$1000=Costs!AH$617)*('Fixed assets'!$P$2:$P$1000=Costs!$A687)*('Fixed assets'!$U$2:$U$1000=Costs!$A687)*('Fixed assets'!$R$2:$R$1000))","v":0},{"$f":"SUMPRODUCT(('Fixed assets'!$R$2:$R$1000)*('Fixed assets'!$P$2:$P$1000<$A687)*('Fixed assets'!$Q$2:$Q$1000=Costs!AI$617))-SUMPRODUCT(('Fixed assets'!$S$2:$S$1000)*('Fixed assets'!$P$2:$P$1000<Costs!$A687)*('Fixed assets'!$Q$2:$Q$1000=Costs!AI$617))-SUMPRODUCT(('Fixed assets'!$Q$2:$Q$1000=Costs!AI$617)*('Fixed assets'!$U$2:$U$1000=Costs!$A687)*('Fixed assets'!$S$2:$S$1000))+SUMPRODUCT(('Fixed assets'!$Q$2:$Q$1000=Costs!AI$617)*('Fixed assets'!$P$2:$P$1000=Costs!$A687)*('Fixed assets'!$U$2:$U$1000=Costs!$A687)*('Fixed assets'!$R$2:$R$1000))","v":0},{"$f":"SUMPRODUCT(('Fixed assets'!$R$2:$R$1000)*('Fixed assets'!$P$2:$P$1000<$A687)*('Fixed assets'!$Q$2:$Q$1000=Costs!AJ$617))-SUMPRODUCT(('Fixed assets'!$S$2:$S$1000)*('Fixed assets'!$P$2:$P$1000<Costs!$A687)*('Fixed assets'!$Q$2:$Q$1000=Costs!AJ$617))-SUMPRODUCT(('Fixed assets'!$Q$2:$Q$1000=Costs!AJ$617)*('Fixed assets'!$U$2:$U$1000=Costs!$A687)*('Fixed assets'!$S$2:$S$1000))+SUMPRODUCT(('Fixed assets'!$Q$2:$Q$1000=Costs!AJ$617)*('Fixed assets'!$P$2:$P$1000=Costs!$A687)*('Fixed assets'!$U$2:$U$1000=Costs!$A687)*('Fixed assets'!$R$2:$R$1000))","v":0},{"$f":"SUMPRODUCT(('Fixed assets'!$R$2:$R$1000)*('Fixed assets'!$P$2:$P$1000<$A687)*('Fixed assets'!$Q$2:$Q$1000=Costs!AK$617))-SUMPRODUCT(('Fixed assets'!$S$2:$S$1000)*('Fixed assets'!$P$2:$P$1000<Costs!$A687)*('Fixed assets'!$Q$2:$Q$1000=Costs!AK$617))-SUMPRODUCT(('Fixed assets'!$Q$2:$Q$1000=Costs!AK$617)*('Fixed assets'!$U$2:$U$1000=Costs!$A687)*('Fixed assets'!$S$2:$S$1000))+SUMPRODUCT(('Fixed assets'!$Q$2:$Q$1000=Costs!AK$617)*('Fixed assets'!$P$2:$P$1000=Costs!$A687)*('Fixed assets'!$U$2:$U$1000=Costs!$A687)*('Fixed assets'!$R$2:$R$1000))","v":0},{"$f":"SUMPRODUCT(('Fixed assets'!$R$2:$R$1000)*('Fixed assets'!$P$2:$P$1000<$A687)*('Fixed assets'!$Q$2:$Q$1000=Costs!AL$617))-SUMPRODUCT(('Fixed assets'!$S$2:$S$1000)*('Fixed assets'!$P$2:$P$1000<Costs!$A687)*('Fixed assets'!$Q$2:$Q$1000=Costs!AL$617))-SUMPRODUCT(('Fixed assets'!$Q$2:$Q$1000=Costs!AL$617)*('Fixed assets'!$U$2:$U$1000=Costs!$A687)*('Fixed assets'!$S$2:$S$1000))+SUMPRODUCT(('Fixed assets'!$Q$2:$Q$1000=Costs!AL$617)*('Fixed assets'!$P$2:$P$1000=Costs!$A687)*('Fixed assets'!$U$2:$U$1000=Costs!$A687)*('Fixed assets'!$R$2:$R$1000))","v":0},{"$f":"SUMPRODUCT(('Fixed assets'!$R$2:$R$1000)*('Fixed assets'!$P$2:$P$1000<$A687)*('Fixed assets'!$Q$2:$Q$1000=Costs!AM$617))-SUMPRODUCT(('Fixed assets'!$S$2:$S$1000)*('Fixed assets'!$P$2:$P$1000<Costs!$A687)*('Fixed assets'!$Q$2:$Q$1000=Costs!AM$617))-SUMPRODUCT(('Fixed assets'!$Q$2:$Q$1000=Costs!AM$617)*('Fixed assets'!$U$2:$U$1000=Costs!$A687)*('Fixed assets'!$S$2:$S$1000))+SUMPRODUCT(('Fixed assets'!$Q$2:$Q$1000=Costs!AM$617)*('Fixed assets'!$P$2:$P$1000=Costs!$A687)*('Fixed assets'!$U$2:$U$1000=Costs!$A687)*('Fixed assets'!$R$2:$R$1000))","v":0},{"$f":"SUMPRODUCT(('Fixed assets'!$R$2:$R$1000)*('Fixed assets'!$P$2:$P$1000<$A687)*('Fixed assets'!$Q$2:$Q$1000=Costs!AN$617))-SUMPRODUCT(('Fixed assets'!$S$2:$S$1000)*('Fixed assets'!$P$2:$P$1000<Costs!$A687)*('Fixed assets'!$Q$2:$Q$1000=Costs!AN$617))-SUMPRODUCT(('Fixed assets'!$Q$2:$Q$1000=Costs!AN$617)*('Fixed assets'!$U$2:$U$1000=Costs!$A687)*('Fixed assets'!$S$2:$S$1000))+SUMPRODUCT(('Fixed assets'!$Q$2:$Q$1000=Costs!AN$617)*('Fixed assets'!$P$2:$P$1000=Costs!$A687)*('Fixed assets'!$U$2:$U$1000=Costs!$A687)*('Fixed assets'!$R$2:$R$1000))","v":0},{"$f":"SUMPRODUCT(('Fixed assets'!$R$2:$R$1000)*('Fixed assets'!$P$2:$P$1000<$A687)*('Fixed assets'!$Q$2:$Q$1000=Costs!AO$617))-SUMPRODUCT(('Fixed assets'!$S$2:$S$1000)*('Fixed assets'!$P$2:$P$1000<Costs!$A687)*('Fixed assets'!$Q$2:$Q$1000=Costs!AO$617))-SUMPRODUCT(('Fixed assets'!$Q$2:$Q$1000=Costs!AO$617)*('Fixed assets'!$U$2:$U$1000=Costs!$A687)*('Fixed assets'!$S$2:$S$1000))+SUMPRODUCT(('Fixed assets'!$Q$2:$Q$1000=Costs!AO$617)*('Fixed assets'!$P$2:$P$1000=Costs!$A687)*('Fixed assets'!$U$2:$U$1000=Costs!$A687)*('Fixed assets'!$R$2:$R$1000))","v":0},{"$f":"SUMPRODUCT(('Fixed assets'!$R$2:$R$1000)*('Fixed assets'!$P$2:$P$1000<$A687)*('Fixed assets'!$Q$2:$Q$1000=Costs!AP$617))-SUMPRODUCT(('Fixed assets'!$S$2:$S$1000)*('Fixed assets'!$P$2:$P$1000<Costs!$A687)*('Fixed assets'!$Q$2:$Q$1000=Costs!AP$617))-SUMPRODUCT(('Fixed assets'!$Q$2:$Q$1000=Costs!AP$617)*('Fixed assets'!$U$2:$U$1000=Costs!$A687)*('Fixed assets'!$S$2:$S$1000))+SUMPRODUCT(('Fixed assets'!$Q$2:$Q$1000=Costs!AP$617)*('Fixed assets'!$P$2:$P$1000=Costs!$A687)*('Fixed assets'!$U$2:$U$1000=Costs!$A687)*('Fixed assets'!$R$2:$R$1000))","v":0},{"$f":"SUMPRODUCT(('Fixed assets'!$R$2:$R$1000)*('Fixed assets'!$P$2:$P$1000<$A687)*('Fixed assets'!$Q$2:$Q$1000=Costs!AQ$617))-SUMPRODUCT(('Fixed assets'!$S$2:$S$1000)*('Fixed assets'!$P$2:$P$1000<Costs!$A687)*('Fixed assets'!$Q$2:$Q$1000=Costs!AQ$617))-SUMPRODUCT(('Fixed assets'!$Q$2:$Q$1000=Costs!AQ$617)*('Fixed assets'!$U$2:$U$1000=Costs!$A687)*('Fixed assets'!$S$2:$S$1000))+SUMPRODUCT(('Fixed assets'!$Q$2:$Q$1000=Costs!AQ$617)*('Fixed assets'!$P$2:$P$1000=Costs!$A687)*('Fixed assets'!$U$2:$U$1000=Costs!$A687)*('Fixed assets'!$R$2:$R$1000))","v":0}]
[2085,0,{"$f":"SUMPRODUCT(('Fixed assets'!$R$2:$R$1000)*('Fixed assets'!$P$2:$P$1000<$A688)*('Fixed assets'!$Q$2:$Q$1000=Costs!C$617))-SUMPRODUCT(('Fixed assets'!$S$2:$S$1000)*('Fixed assets'!$P$2:$P$1000<Costs!$A688)*('Fixed assets'!$Q$2:$Q$1000=Costs!C$617))-SUMPRODUCT(('Fixed assets'!$Q$2:$Q$1000=Costs!C$617)*('Fixed assets'!$U$2:$U$1000=Costs!$A688)*('Fixed assets'!$S$2:$S$1000))+SUMPRODUCT(('Fixed assets'!$Q$2:$Q$1000=Costs!C$617)*('Fixed assets'!$P$2:$P$1000=Costs!$A688)*('Fixed assets'!$U$2:$U$1000=Costs!$A688)*('Fixed assets'!$R$2:$R$1000))","v":0},{"$f":"SUMPRODUCT(('Fixed assets'!$R$2:$R$1000)*('Fixed assets'!$P$2:$P$1000<$A688)*('Fixed assets'!$Q$2:$Q$1000=Costs!D$617))-SUMPRODUCT(('Fixed assets'!$S$2:$S$1000)*('Fixed assets'!$P$2:$P$1000<Costs!$A688)*('Fixed assets'!$Q$2:$Q$1000=Costs!D$617))-SUMPRODUCT(('Fixed assets'!$Q$2:$Q$1000=Costs!D$617)*('Fixed assets'!$U$2:$U$1000=Costs!$A688)*('Fixed assets'!$S$2:$S$1000))+SUMPRODUCT(('Fixed assets'!$Q$2:$Q$1000=Costs!D$617)*('Fixed assets'!$P$2:$P$1000=Costs!$A688)*('Fixed assets'!$U$2:$U$1000=Costs!$A688)*('Fixed assets'!$R$2:$R$1000))","v":0},{"$f":"SUMPRODUCT(('Fixed assets'!$R$2:$R$1000)*('Fixed assets'!$P$2:$P$1000<$A688)*('Fixed assets'!$Q$2:$Q$1000=Costs!E$617))-SUMPRODUCT(('Fixed assets'!$S$2:$S$1000)*('Fixed assets'!$P$2:$P$1000<Costs!$A688)*('Fixed assets'!$Q$2:$Q$1000=Costs!E$617))-SUMPRODUCT(('Fixed assets'!$Q$2:$Q$1000=Costs!E$617)*('Fixed assets'!$U$2:$U$1000=Costs!$A688)*('Fixed assets'!$S$2:$S$1000))+SUMPRODUCT(('Fixed assets'!$Q$2:$Q$1000=Costs!E$617)*('Fixed assets'!$P$2:$P$1000=Costs!$A688)*('Fixed assets'!$U$2:$U$1000=Costs!$A688)*('Fixed assets'!$R$2:$R$1000))","v":0},{"$f":"SUMPRODUCT(('Fixed assets'!$R$2:$R$1000)*('Fixed assets'!$P$2:$P$1000<$A688)*('Fixed assets'!$Q$2:$Q$1000=Costs!F$617))-SUMPRODUCT(('Fixed assets'!$S$2:$S$1000)*('Fixed assets'!$P$2:$P$1000<Costs!$A688)*('Fixed assets'!$Q$2:$Q$1000=Costs!F$617))-SUMPRODUCT(('Fixed assets'!$Q$2:$Q$1000=Costs!F$617)*('Fixed assets'!$U$2:$U$1000=Costs!$A688)*('Fixed assets'!$S$2:$S$1000))+SUMPRODUCT(('Fixed assets'!$Q$2:$Q$1000=Costs!F$617)*('Fixed assets'!$P$2:$P$1000=Costs!$A688)*('Fixed assets'!$U$2:$U$1000=Costs!$A688)*('Fixed assets'!$R$2:$R$1000))","v":0},{"$f":"SUMPRODUCT(('Fixed assets'!$R$2:$R$1000)*('Fixed assets'!$P$2:$P$1000<$A688)*('Fixed assets'!$Q$2:$Q$1000=Costs!G$617))-SUMPRODUCT(('Fixed assets'!$S$2:$S$1000)*('Fixed assets'!$P$2:$P$1000<Costs!$A688)*('Fixed assets'!$Q$2:$Q$1000=Costs!G$617))-SUMPRODUCT(('Fixed assets'!$Q$2:$Q$1000=Costs!G$617)*('Fixed assets'!$U$2:$U$1000=Costs!$A688)*('Fixed assets'!$S$2:$S$1000))+SUMPRODUCT(('Fixed assets'!$Q$2:$Q$1000=Costs!G$617)*('Fixed assets'!$P$2:$P$1000=Costs!$A688)*('Fixed assets'!$U$2:$U$1000=Costs!$A688)*('Fixed assets'!$R$2:$R$1000))","v":0},{"$f":"SUMPRODUCT(('Fixed assets'!$R$2:$R$1000)*('Fixed assets'!$P$2:$P$1000<$A688)*('Fixed assets'!$Q$2:$Q$1000=Costs!H$617))-SUMPRODUCT(('Fixed assets'!$S$2:$S$1000)*('Fixed assets'!$P$2:$P$1000<Costs!$A688)*('Fixed assets'!$Q$2:$Q$1000=Costs!H$617))-SUMPRODUCT(('Fixed assets'!$Q$2:$Q$1000=Costs!H$617)*('Fixed assets'!$U$2:$U$1000=Costs!$A688)*('Fixed assets'!$S$2:$S$1000))+SUMPRODUCT(('Fixed assets'!$Q$2:$Q$1000=Costs!H$617)*('Fixed assets'!$P$2:$P$1000=Costs!$A688)*('Fixed assets'!$U$2:$U$1000=Costs!$A688)*('Fixed assets'!$R$2:$R$1000))","v":0},{"$f":"SUMPRODUCT(('Fixed assets'!$R$2:$R$1000)*('Fixed assets'!$P$2:$P$1000<$A688)*('Fixed assets'!$Q$2:$Q$1000=Costs!I$617))-SUMPRODUCT(('Fixed assets'!$S$2:$S$1000)*('Fixed assets'!$P$2:$P$1000<Costs!$A688)*('Fixed assets'!$Q$2:$Q$1000=Costs!I$617))-SUMPRODUCT(('Fixed assets'!$Q$2:$Q$1000=Costs!I$617)*('Fixed assets'!$U$2:$U$1000=Costs!$A688)*('Fixed assets'!$S$2:$S$1000))+SUMPRODUCT(('Fixed assets'!$Q$2:$Q$1000=Costs!I$617)*('Fixed assets'!$P$2:$P$1000=Costs!$A688)*('Fixed assets'!$U$2:$U$1000=Costs!$A688)*('Fixed assets'!$R$2:$R$1000))","v":0},{"$f":"SUMPRODUCT(('Fixed assets'!$R$2:$R$1000)*('Fixed assets'!$P$2:$P$1000<$A688)*('Fixed assets'!$Q$2:$Q$1000=Costs!J$617))-SUMPRODUCT(('Fixed assets'!$S$2:$S$1000)*('Fixed assets'!$P$2:$P$1000<Costs!$A688)*('Fixed assets'!$Q$2:$Q$1000=Costs!J$617))-SUMPRODUCT(('Fixed assets'!$Q$2:$Q$1000=Costs!J$617)*('Fixed assets'!$U$2:$U$1000=Costs!$A688)*('Fixed assets'!$S$2:$S$1000))+SUMPRODUCT(('Fixed assets'!$Q$2:$Q$1000=Costs!J$617)*('Fixed assets'!$P$2:$P$1000=Costs!$A688)*('Fixed assets'!$U$2:$U$1000=Costs!$A688)*('Fixed assets'!$R$2:$R$1000))","v":0},{"$f":"SUMPRODUCT(('Fixed assets'!$R$2:$R$1000)*('Fixed assets'!$P$2:$P$1000<$A688)*('Fixed assets'!$Q$2:$Q$1000=Costs!K$617))-SUMPRODUCT(('Fixed assets'!$S$2:$S$1000)*('Fixed assets'!$P$2:$P$1000<Costs!$A688)*('Fixed assets'!$Q$2:$Q$1000=Costs!K$617))-SUMPRODUCT(('Fixed assets'!$Q$2:$Q$1000=Costs!K$617)*('Fixed assets'!$U$2:$U$1000=Costs!$A688)*('Fixed assets'!$S$2:$S$1000))+SUMPRODUCT(('Fixed assets'!$Q$2:$Q$1000=Costs!K$617)*('Fixed assets'!$P$2:$P$1000=Costs!$A688)*('Fixed assets'!$U$2:$U$1000=Costs!$A688)*('Fixed assets'!$R$2:$R$1000))","v":0},{"$f":"SUMPRODUCT(('Fixed assets'!$R$2:$R$1000)*('Fixed assets'!$P$2:$P$1000<$A688)*('Fixed assets'!$Q$2:$Q$1000=Costs!L$617))-SUMPRODUCT(('Fixed assets'!$S$2:$S$1000)*('Fixed assets'!$P$2:$P$1000<Costs!$A688)*('Fixed assets'!$Q$2:$Q$1000=Costs!L$617))-SUMPRODUCT(('Fixed assets'!$Q$2:$Q$1000=Costs!L$617)*('Fixed assets'!$U$2:$U$1000=Costs!$A688)*('Fixed assets'!$S$2:$S$1000))+SUMPRODUCT(('Fixed assets'!$Q$2:$Q$1000=Costs!L$617)*('Fixed assets'!$P$2:$P$1000=Costs!$A688)*('Fixed assets'!$U$2:$U$1000=Costs!$A688)*('Fixed assets'!$R$2:$R$1000))","v":0},{"$f":"SUMPRODUCT(('Fixed assets'!$R$2:$R$1000)*('Fixed assets'!$P$2:$P$1000<$A688)*('Fixed assets'!$Q$2:$Q$1000=Costs!M$617))-SUMPRODUCT(('Fixed assets'!$S$2:$S$1000)*('Fixed assets'!$P$2:$P$1000<Costs!$A688)*('Fixed assets'!$Q$2:$Q$1000=Costs!M$617))-SUMPRODUCT(('Fixed assets'!$Q$2:$Q$1000=Costs!M$617)*('Fixed assets'!$U$2:$U$1000=Costs!$A688)*('Fixed assets'!$S$2:$S$1000))+SUMPRODUCT(('Fixed assets'!$Q$2:$Q$1000=Costs!M$617)*('Fixed assets'!$P$2:$P$1000=Costs!$A688)*('Fixed assets'!$U$2:$U$1000=Costs!$A688)*('Fixed assets'!$R$2:$R$1000))","v":0},{"$f":"SUMPRODUCT(('Fixed assets'!$R$2:$R$1000)*('Fixed assets'!$P$2:$P$1000<$A688)*('Fixed assets'!$Q$2:$Q$1000=Costs!N$617))-SUMPRODUCT(('Fixed assets'!$S$2:$S$1000)*('Fixed assets'!$P$2:$P$1000<Costs!$A688)*('Fixed assets'!$Q$2:$Q$1000=Costs!N$617))-SUMPRODUCT(('Fixed assets'!$Q$2:$Q$1000=Costs!N$617)*('Fixed assets'!$U$2:$U$1000=Costs!$A688)*('Fixed assets'!$S$2:$S$1000))+SUMPRODUCT(('Fixed assets'!$Q$2:$Q$1000=Costs!N$617)*('Fixed assets'!$P$2:$P$1000=Costs!$A688)*('Fixed assets'!$U$2:$U$1000=Costs!$A688)*('Fixed assets'!$R$2:$R$1000))","v":0},{"$f":"SUMPRODUCT(('Fixed assets'!$R$2:$R$1000)*('Fixed assets'!$P$2:$P$1000<$A688)*('Fixed assets'!$Q$2:$Q$1000=Costs!O$617))-SUMPRODUCT(('Fixed assets'!$S$2:$S$1000)*('Fixed assets'!$P$2:$P$1000<Costs!$A688)*('Fixed assets'!$Q$2:$Q$1000=Costs!O$617))-SUMPRODUCT(('Fixed assets'!$Q$2:$Q$1000=Costs!O$617)*('Fixed assets'!$U$2:$U$1000=Costs!$A688)*('Fixed assets'!$S$2:$S$1000))+SUMPRODUCT(('Fixed assets'!$Q$2:$Q$1000=Costs!O$617)*('Fixed assets'!$P$2:$P$1000=Costs!$A688)*('Fixed assets'!$U$2:$U$1000=Costs!$A688)*('Fixed assets'!$R$2:$R$1000))","v":0},{"$f":"SUMPRODUCT(('Fixed assets'!$R$2:$R$1000)*('Fixed assets'!$P$2:$P$1000<$A688)*('Fixed assets'!$Q$2:$Q$1000=Costs!P$617))-SUMPRODUCT(('Fixed assets'!$S$2:$S$1000)*('Fixed assets'!$P$2:$P$1000<Costs!$A688)*('Fixed assets'!$Q$2:$Q$1000=Costs!P$617))-SUMPRODUCT(('Fixed assets'!$Q$2:$Q$1000=Costs!P$617)*('Fixed assets'!$U$2:$U$1000=Costs!$A688)*('Fixed assets'!$S$2:$S$1000))+SUMPRODUCT(('Fixed assets'!$Q$2:$Q$1000=Costs!P$617)*('Fixed assets'!$P$2:$P$1000=Costs!$A688)*('Fixed assets'!$U$2:$U$1000=Costs!$A688)*('Fixed assets'!$R$2:$R$1000))","v":0},{"$f":"SUMPRODUCT(('Fixed assets'!$R$2:$R$1000)*('Fixed assets'!$P$2:$P$1000<$A688)*('Fixed assets'!$Q$2:$Q$1000=Costs!Q$617))-SUMPRODUCT(('Fixed assets'!$S$2:$S$1000)*('Fixed assets'!$P$2:$P$1000<Costs!$A688)*('Fixed assets'!$Q$2:$Q$1000=Costs!Q$617))-SUMPRODUCT(('Fixed assets'!$Q$2:$Q$1000=Costs!Q$617)*('Fixed assets'!$U$2:$U$1000=Costs!$A688)*('Fixed assets'!$S$2:$S$1000))+SUMPRODUCT(('Fixed assets'!$Q$2:$Q$1000=Costs!Q$617)*('Fixed assets'!$P$2:$P$1000=Costs!$A688)*('Fixed assets'!$U$2:$U$1000=Costs!$A688)*('Fixed assets'!$R$2:$R$1000))","v":0},{"$f":"SUMPRODUCT(('Fixed assets'!$R$2:$R$1000)*('Fixed assets'!$P$2:$P$1000<$A688)*('Fixed assets'!$Q$2:$Q$1000=Costs!R$617))-SUMPRODUCT(('Fixed assets'!$S$2:$S$1000)*('Fixed assets'!$P$2:$P$1000<Costs!$A688)*('Fixed assets'!$Q$2:$Q$1000=Costs!R$617))-SUMPRODUCT(('Fixed assets'!$Q$2:$Q$1000=Costs!R$617)*('Fixed assets'!$U$2:$U$1000=Costs!$A688)*('Fixed assets'!$S$2:$S$1000))+SUMPRODUCT(('Fixed assets'!$Q$2:$Q$1000=Costs!R$617)*('Fixed assets'!$P$2:$P$1000=Costs!$A688)*('Fixed assets'!$U$2:$U$1000=Costs!$A688)*('Fixed assets'!$R$2:$R$1000))","v":0},{"$f":"SUMPRODUCT(('Fixed assets'!$R$2:$R$1000)*('Fixed assets'!$P$2:$P$1000<$A688)*('Fixed assets'!$Q$2:$Q$1000=Costs!S$617))-SUMPRODUCT(('Fixed assets'!$S$2:$S$1000)*('Fixed assets'!$P$2:$P$1000<Costs!$A688)*('Fixed assets'!$Q$2:$Q$1000=Costs!S$617))-SUMPRODUCT(('Fixed assets'!$Q$2:$Q$1000=Costs!S$617)*('Fixed assets'!$U$2:$U$1000=Costs!$A688)*('Fixed assets'!$S$2:$S$1000))+SUMPRODUCT(('Fixed assets'!$Q$2:$Q$1000=Costs!S$617)*('Fixed assets'!$P$2:$P$1000=Costs!$A688)*('Fixed assets'!$U$2:$U$1000=Costs!$A688)*('Fixed assets'!$R$2:$R$1000))","v":0},{"$f":"SUMPRODUCT(('Fixed assets'!$R$2:$R$1000)*('Fixed assets'!$P$2:$P$1000<$A688)*('Fixed assets'!$Q$2:$Q$1000=Costs!T$617))-SUMPRODUCT(('Fixed assets'!$S$2:$S$1000)*('Fixed assets'!$P$2:$P$1000<Costs!$A688)*('Fixed assets'!$Q$2:$Q$1000=Costs!T$617))-SUMPRODUCT(('Fixed assets'!$Q$2:$Q$1000=Costs!T$617)*('Fixed assets'!$U$2:$U$1000=Costs!$A688)*('Fixed assets'!$S$2:$S$1000))+SUMPRODUCT(('Fixed assets'!$Q$2:$Q$1000=Costs!T$617)*('Fixed assets'!$P$2:$P$1000=Costs!$A688)*('Fixed assets'!$U$2:$U$1000=Costs!$A688)*('Fixed assets'!$R$2:$R$1000))","v":0},{"$f":"SUMPRODUCT(('Fixed assets'!$R$2:$R$1000)*('Fixed assets'!$P$2:$P$1000<$A688)*('Fixed assets'!$Q$2:$Q$1000=Costs!U$617))-SUMPRODUCT(('Fixed assets'!$S$2:$S$1000)*('Fixed assets'!$P$2:$P$1000<Costs!$A688)*('Fixed assets'!$Q$2:$Q$1000=Costs!U$617))-SUMPRODUCT(('Fixed assets'!$Q$2:$Q$1000=Costs!U$617)*('Fixed assets'!$U$2:$U$1000=Costs!$A688)*('Fixed assets'!$S$2:$S$1000))+SUMPRODUCT(('Fixed assets'!$Q$2:$Q$1000=Costs!U$617)*('Fixed assets'!$P$2:$P$1000=Costs!$A688)*('Fixed assets'!$U$2:$U$1000=Costs!$A688)*('Fixed assets'!$R$2:$R$1000))","v":0},{"$f":"SUMPRODUCT(('Fixed assets'!$R$2:$R$1000)*('Fixed assets'!$P$2:$P$1000<$A688)*('Fixed assets'!$Q$2:$Q$1000=Costs!V$617))-SUMPRODUCT(('Fixed assets'!$S$2:$S$1000)*('Fixed assets'!$P$2:$P$1000<Costs!$A688)*('Fixed assets'!$Q$2:$Q$1000=Costs!V$617))-SUMPRODUCT(('Fixed assets'!$Q$2:$Q$1000=Costs!V$617)*('Fixed assets'!$U$2:$U$1000=Costs!$A688)*('Fixed assets'!$S$2:$S$1000))+SUMPRODUCT(('Fixed assets'!$Q$2:$Q$1000=Costs!V$617)*('Fixed assets'!$P$2:$P$1000=Costs!$A688)*('Fixed assets'!$U$2:$U$1000=Costs!$A688)*('Fixed assets'!$R$2:$R$1000))","v":0},{"$f":"SUMPRODUCT(('Fixed assets'!$R$2:$R$1000)*('Fixed assets'!$P$2:$P$1000<$A688)*('Fixed assets'!$Q$2:$Q$1000=Costs!W$617))-SUMPRODUCT(('Fixed assets'!$S$2:$S$1000)*('Fixed assets'!$P$2:$P$1000<Costs!$A688)*('Fixed assets'!$Q$2:$Q$1000=Costs!W$617))-SUMPRODUCT(('Fixed assets'!$Q$2:$Q$1000=Costs!W$617)*('Fixed assets'!$U$2:$U$1000=Costs!$A688)*('Fixed assets'!$S$2:$S$1000))+SUMPRODUCT(('Fixed assets'!$Q$2:$Q$1000=Costs!W$617)*('Fixed assets'!$P$2:$P$1000=Costs!$A688)*('Fixed assets'!$U$2:$U$1000=Costs!$A688)*('Fixed assets'!$R$2:$R$1000))","v":0},{"$f":"SUMPRODUCT(('Fixed assets'!$R$2:$R$1000)*('Fixed assets'!$P$2:$P$1000<$A688)*('Fixed assets'!$Q$2:$Q$1000=Costs!X$617))-SUMPRODUCT(('Fixed assets'!$S$2:$S$1000)*('Fixed assets'!$P$2:$P$1000<Costs!$A688)*('Fixed assets'!$Q$2:$Q$1000=Costs!X$617))-SUMPRODUCT(('Fixed assets'!$Q$2:$Q$1000=Costs!X$617)*('Fixed assets'!$U$2:$U$1000=Costs!$A688)*('Fixed assets'!$S$2:$S$1000))+SUMPRODUCT(('Fixed assets'!$Q$2:$Q$1000=Costs!X$617)*('Fixed assets'!$P$2:$P$1000=Costs!$A688)*('Fixed assets'!$U$2:$U$1000=Costs!$A688)*('Fixed assets'!$R$2:$R$1000))","v":0},{"$f":"SUMPRODUCT(('Fixed assets'!$R$2:$R$1000)*('Fixed assets'!$P$2:$P$1000<$A688)*('Fixed assets'!$Q$2:$Q$1000=Costs!Y$617))-SUMPRODUCT(('Fixed assets'!$S$2:$S$1000)*('Fixed assets'!$P$2:$P$1000<Costs!$A688)*('Fixed assets'!$Q$2:$Q$1000=Costs!Y$617))-SUMPRODUCT(('Fixed assets'!$Q$2:$Q$1000=Costs!Y$617)*('Fixed assets'!$U$2:$U$1000=Costs!$A688)*('Fixed assets'!$S$2:$S$1000))+SUMPRODUCT(('Fixed assets'!$Q$2:$Q$1000=Costs!Y$617)*('Fixed assets'!$P$2:$P$1000=Costs!$A688)*('Fixed assets'!$U$2:$U$1000=Costs!$A688)*('Fixed assets'!$R$2:$R$1000))","v":0},{"$f":"SUMPRODUCT(('Fixed assets'!$R$2:$R$1000)*('Fixed assets'!$P$2:$P$1000<$A688)*('Fixed assets'!$Q$2:$Q$1000=Costs!Z$617))-SUMPRODUCT(('Fixed assets'!$S$2:$S$1000)*('Fixed assets'!$P$2:$P$1000<Costs!$A688)*('Fixed assets'!$Q$2:$Q$1000=Costs!Z$617))-SUMPRODUCT(('Fixed assets'!$Q$2:$Q$1000=Costs!Z$617)*('Fixed assets'!$U$2:$U$1000=Costs!$A688)*('Fixed assets'!$S$2:$S$1000))+SUMPRODUCT(('Fixed assets'!$Q$2:$Q$1000=Costs!Z$617)*('Fixed assets'!$P$2:$P$1000=Costs!$A688)*('Fixed assets'!$U$2:$U$1000=Costs!$A688)*('Fixed assets'!$R$2:$R$1000))","v":0},{"$f":"SUMPRODUCT(('Fixed assets'!$R$2:$R$1000)*('Fixed assets'!$P$2:$P$1000<$A688)*('Fixed assets'!$Q$2:$Q$1000=Costs!AA$617))-SUMPRODUCT(('Fixed assets'!$S$2:$S$1000)*('Fixed assets'!$P$2:$P$1000<Costs!$A688)*('Fixed assets'!$Q$2:$Q$1000=Costs!AA$617))-SUMPRODUCT(('Fixed assets'!$Q$2:$Q$1000=Costs!AA$617)*('Fixed assets'!$U$2:$U$1000=Costs!$A688)*('Fixed assets'!$S$2:$S$1000))+SUMPRODUCT(('Fixed assets'!$Q$2:$Q$1000=Costs!AA$617)*('Fixed assets'!$P$2:$P$1000=Costs!$A688)*('Fixed assets'!$U$2:$U$1000=Costs!$A688)*('Fixed assets'!$R$2:$R$1000))","v":0},{"$f":"SUMPRODUCT(('Fixed assets'!$R$2:$R$1000)*('Fixed assets'!$P$2:$P$1000<$A688)*('Fixed assets'!$Q$2:$Q$1000=Costs!AB$617))-SUMPRODUCT(('Fixed assets'!$S$2:$S$1000)*('Fixed assets'!$P$2:$P$1000<Costs!$A688)*('Fixed assets'!$Q$2:$Q$1000=Costs!AB$617))-SUMPRODUCT(('Fixed assets'!$Q$2:$Q$1000=Costs!AB$617)*('Fixed assets'!$U$2:$U$1000=Costs!$A688)*('Fixed assets'!$S$2:$S$1000))+SUMPRODUCT(('Fixed assets'!$Q$2:$Q$1000=Costs!AB$617)*('Fixed assets'!$P$2:$P$1000=Costs!$A688)*('Fixed assets'!$U$2:$U$1000=Costs!$A688)*('Fixed assets'!$R$2:$R$1000))","v":0},{"$f":"SUMPRODUCT(('Fixed assets'!$R$2:$R$1000)*('Fixed assets'!$P$2:$P$1000<$A688)*('Fixed assets'!$Q$2:$Q$1000=Costs!AC$617))-SUMPRODUCT(('Fixed assets'!$S$2:$S$1000)*('Fixed assets'!$P$2:$P$1000<Costs!$A688)*('Fixed assets'!$Q$2:$Q$1000=Costs!AC$617))-SUMPRODUCT(('Fixed assets'!$Q$2:$Q$1000=Costs!AC$617)*('Fixed assets'!$U$2:$U$1000=Costs!$A688)*('Fixed assets'!$S$2:$S$1000))+SUMPRODUCT(('Fixed assets'!$Q$2:$Q$1000=Costs!AC$617)*('Fixed assets'!$P$2:$P$1000=Costs!$A688)*('Fixed assets'!$U$2:$U$1000=Costs!$A688)*('Fixed assets'!$R$2:$R$1000))","v":0},{"$f":"SUMPRODUCT(('Fixed assets'!$R$2:$R$1000)*('Fixed assets'!$P$2:$P$1000<$A688)*('Fixed assets'!$Q$2:$Q$1000=Costs!AD$617))-SUMPRODUCT(('Fixed assets'!$S$2:$S$1000)*('Fixed assets'!$P$2:$P$1000<Costs!$A688)*('Fixed assets'!$Q$2:$Q$1000=Costs!AD$617))-SUMPRODUCT(('Fixed assets'!$Q$2:$Q$1000=Costs!AD$617)*('Fixed assets'!$U$2:$U$1000=Costs!$A688)*('Fixed assets'!$S$2:$S$1000))+SUMPRODUCT(('Fixed assets'!$Q$2:$Q$1000=Costs!AD$617)*('Fixed assets'!$P$2:$P$1000=Costs!$A688)*('Fixed assets'!$U$2:$U$1000=Costs!$A688)*('Fixed assets'!$R$2:$R$1000))","v":0},{"$f":"SUMPRODUCT(('Fixed assets'!$R$2:$R$1000)*('Fixed assets'!$P$2:$P$1000<$A688)*('Fixed assets'!$Q$2:$Q$1000=Costs!AE$617))-SUMPRODUCT(('Fixed assets'!$S$2:$S$1000)*('Fixed assets'!$P$2:$P$1000<Costs!$A688)*('Fixed assets'!$Q$2:$Q$1000=Costs!AE$617))-SUMPRODUCT(('Fixed assets'!$Q$2:$Q$1000=Costs!AE$617)*('Fixed assets'!$U$2:$U$1000=Costs!$A688)*('Fixed assets'!$S$2:$S$1000))+SUMPRODUCT(('Fixed assets'!$Q$2:$Q$1000=Costs!AE$617)*('Fixed assets'!$P$2:$P$1000=Costs!$A688)*('Fixed assets'!$U$2:$U$1000=Costs!$A688)*('Fixed assets'!$R$2:$R$1000))","v":0},{"$f":"SUMPRODUCT(('Fixed assets'!$R$2:$R$1000)*('Fixed assets'!$P$2:$P$1000<$A688)*('Fixed assets'!$Q$2:$Q$1000=Costs!AF$617))-SUMPRODUCT(('Fixed assets'!$S$2:$S$1000)*('Fixed assets'!$P$2:$P$1000<Costs!$A688)*('Fixed assets'!$Q$2:$Q$1000=Costs!AF$617))-SUMPRODUCT(('Fixed assets'!$Q$2:$Q$1000=Costs!AF$617)*('Fixed assets'!$U$2:$U$1000=Costs!$A688)*('Fixed assets'!$S$2:$S$1000))+SUMPRODUCT(('Fixed assets'!$Q$2:$Q$1000=Costs!AF$617)*('Fixed assets'!$P$2:$P$1000=Costs!$A688)*('Fixed assets'!$U$2:$U$1000=Costs!$A688)*('Fixed assets'!$R$2:$R$1000))","v":0},{"$f":"SUMPRODUCT(('Fixed assets'!$R$2:$R$1000)*('Fixed assets'!$P$2:$P$1000<$A688)*('Fixed assets'!$Q$2:$Q$1000=Costs!AG$617))-SUMPRODUCT(('Fixed assets'!$S$2:$S$1000)*('Fixed assets'!$P$2:$P$1000<Costs!$A688)*('Fixed assets'!$Q$2:$Q$1000=Costs!AG$617))-SUMPRODUCT(('Fixed assets'!$Q$2:$Q$1000=Costs!AG$617)*('Fixed assets'!$U$2:$U$1000=Costs!$A688)*('Fixed assets'!$S$2:$S$1000))+SUMPRODUCT(('Fixed assets'!$Q$2:$Q$1000=Costs!AG$617)*('Fixed assets'!$P$2:$P$1000=Costs!$A688)*('Fixed assets'!$U$2:$U$1000=Costs!$A688)*('Fixed assets'!$R$2:$R$1000))","v":0},{"$f":"SUMPRODUCT(('Fixed assets'!$R$2:$R$1000)*('Fixed assets'!$P$2:$P$1000<$A688)*('Fixed assets'!$Q$2:$Q$1000=Costs!AH$617))-SUMPRODUCT(('Fixed assets'!$S$2:$S$1000)*('Fixed assets'!$P$2:$P$1000<Costs!$A688)*('Fixed assets'!$Q$2:$Q$1000=Costs!AH$617))-SUMPRODUCT(('Fixed assets'!$Q$2:$Q$1000=Costs!AH$617)*('Fixed assets'!$U$2:$U$1000=Costs!$A688)*('Fixed assets'!$S$2:$S$1000))+SUMPRODUCT(('Fixed assets'!$Q$2:$Q$1000=Costs!AH$617)*('Fixed assets'!$P$2:$P$1000=Costs!$A688)*('Fixed assets'!$U$2:$U$1000=Costs!$A688)*('Fixed assets'!$R$2:$R$1000))","v":0},{"$f":"SUMPRODUCT(('Fixed assets'!$R$2:$R$1000)*('Fixed assets'!$P$2:$P$1000<$A688)*('Fixed assets'!$Q$2:$Q$1000=Costs!AI$617))-SUMPRODUCT(('Fixed assets'!$S$2:$S$1000)*('Fixed assets'!$P$2:$P$1000<Costs!$A688)*('Fixed assets'!$Q$2:$Q$1000=Costs!AI$617))-SUMPRODUCT(('Fixed assets'!$Q$2:$Q$1000=Costs!AI$617)*('Fixed assets'!$U$2:$U$1000=Costs!$A688)*('Fixed assets'!$S$2:$S$1000))+SUMPRODUCT(('Fixed assets'!$Q$2:$Q$1000=Costs!AI$617)*('Fixed assets'!$P$2:$P$1000=Costs!$A688)*('Fixed assets'!$U$2:$U$1000=Costs!$A688)*('Fixed assets'!$R$2:$R$1000))","v":0},{"$f":"SUMPRODUCT(('Fixed assets'!$R$2:$R$1000)*('Fixed assets'!$P$2:$P$1000<$A688)*('Fixed assets'!$Q$2:$Q$1000=Costs!AJ$617))-SUMPRODUCT(('Fixed assets'!$S$2:$S$1000)*('Fixed assets'!$P$2:$P$1000<Costs!$A688)*('Fixed assets'!$Q$2:$Q$1000=Costs!AJ$617))-SUMPRODUCT(('Fixed assets'!$Q$2:$Q$1000=Costs!AJ$617)*('Fixed assets'!$U$2:$U$1000=Costs!$A688)*('Fixed assets'!$S$2:$S$1000))+SUMPRODUCT(('Fixed assets'!$Q$2:$Q$1000=Costs!AJ$617)*('Fixed assets'!$P$2:$P$1000=Costs!$A688)*('Fixed assets'!$U$2:$U$1000=Costs!$A688)*('Fixed assets'!$R$2:$R$1000))","v":0},{"$f":"SUMPRODUCT(('Fixed assets'!$R$2:$R$1000)*('Fixed assets'!$P$2:$P$1000<$A688)*('Fixed assets'!$Q$2:$Q$1000=Costs!AK$617))-SUMPRODUCT(('Fixed assets'!$S$2:$S$1000)*('Fixed assets'!$P$2:$P$1000<Costs!$A688)*('Fixed assets'!$Q$2:$Q$1000=Costs!AK$617))-SUMPRODUCT(('Fixed assets'!$Q$2:$Q$1000=Costs!AK$617)*('Fixed assets'!$U$2:$U$1000=Costs!$A688)*('Fixed assets'!$S$2:$S$1000))+SUMPRODUCT(('Fixed assets'!$Q$2:$Q$1000=Costs!AK$617)*('Fixed assets'!$P$2:$P$1000=Costs!$A688)*('Fixed assets'!$U$2:$U$1000=Costs!$A688)*('Fixed assets'!$R$2:$R$1000))","v":0},{"$f":"SUMPRODUCT(('Fixed assets'!$R$2:$R$1000)*('Fixed assets'!$P$2:$P$1000<$A688)*('Fixed assets'!$Q$2:$Q$1000=Costs!AL$617))-SUMPRODUCT(('Fixed assets'!$S$2:$S$1000)*('Fixed assets'!$P$2:$P$1000<Costs!$A688)*('Fixed assets'!$Q$2:$Q$1000=Costs!AL$617))-SUMPRODUCT(('Fixed assets'!$Q$2:$Q$1000=Costs!AL$617)*('Fixed assets'!$U$2:$U$1000=Costs!$A688)*('Fixed assets'!$S$2:$S$1000))+SUMPRODUCT(('Fixed assets'!$Q$2:$Q$1000=Costs!AL$617)*('Fixed assets'!$P$2:$P$1000=Costs!$A688)*('Fixed assets'!$U$2:$U$1000=Costs!$A688)*('Fixed assets'!$R$2:$R$1000))","v":0},{"$f":"SUMPRODUCT(('Fixed assets'!$R$2:$R$1000)*('Fixed assets'!$P$2:$P$1000<$A688)*('Fixed assets'!$Q$2:$Q$1000=Costs!AM$617))-SUMPRODUCT(('Fixed assets'!$S$2:$S$1000)*('Fixed assets'!$P$2:$P$1000<Costs!$A688)*('Fixed assets'!$Q$2:$Q$1000=Costs!AM$617))-SUMPRODUCT(('Fixed assets'!$Q$2:$Q$1000=Costs!AM$617)*('Fixed assets'!$U$2:$U$1000=Costs!$A688)*('Fixed assets'!$S$2:$S$1000))+SUMPRODUCT(('Fixed assets'!$Q$2:$Q$1000=Costs!AM$617)*('Fixed assets'!$P$2:$P$1000=Costs!$A688)*('Fixed assets'!$U$2:$U$1000=Costs!$A688)*('Fixed assets'!$R$2:$R$1000))","v":0},{"$f":"SUMPRODUCT(('Fixed assets'!$R$2:$R$1000)*('Fixed assets'!$P$2:$P$1000<$A688)*('Fixed assets'!$Q$2:$Q$1000=Costs!AN$617))-SUMPRODUCT(('Fixed assets'!$S$2:$S$1000)*('Fixed assets'!$P$2:$P$1000<Costs!$A688)*('Fixed assets'!$Q$2:$Q$1000=Costs!AN$617))-SUMPRODUCT(('Fixed assets'!$Q$2:$Q$1000=Costs!AN$617)*('Fixed assets'!$U$2:$U$1000=Costs!$A688)*('Fixed assets'!$S$2:$S$1000))+SUMPRODUCT(('Fixed assets'!$Q$2:$Q$1000=Costs!AN$617)*('Fixed assets'!$P$2:$P$1000=Costs!$A688)*('Fixed assets'!$U$2:$U$1000=Costs!$A688)*('Fixed assets'!$R$2:$R$1000))","v":0},{"$f":"SUMPRODUCT(('Fixed assets'!$R$2:$R$1000)*('Fixed assets'!$P$2:$P$1000<$A688)*('Fixed assets'!$Q$2:$Q$1000=Costs!AO$617))-SUMPRODUCT(('Fixed assets'!$S$2:$S$1000)*('Fixed assets'!$P$2:$P$1000<Costs!$A688)*('Fixed assets'!$Q$2:$Q$1000=Costs!AO$617))-SUMPRODUCT(('Fixed assets'!$Q$2:$Q$1000=Costs!AO$617)*('Fixed assets'!$U$2:$U$1000=Costs!$A688)*('Fixed assets'!$S$2:$S$1000))+SUMPRODUCT(('Fixed assets'!$Q$2:$Q$1000=Costs!AO$617)*('Fixed assets'!$P$2:$P$1000=Costs!$A688)*('Fixed assets'!$U$2:$U$1000=Costs!$A688)*('Fixed assets'!$R$2:$R$1000))","v":0},{"$f":"SUMPRODUCT(('Fixed assets'!$R$2:$R$1000)*('Fixed assets'!$P$2:$P$1000<$A688)*('Fixed assets'!$Q$2:$Q$1000=Costs!AP$617))-SUMPRODUCT(('Fixed assets'!$S$2:$S$1000)*('Fixed assets'!$P$2:$P$1000<Costs!$A688)*('Fixed assets'!$Q$2:$Q$1000=Costs!AP$617))-SUMPRODUCT(('Fixed assets'!$Q$2:$Q$1000=Costs!AP$617)*('Fixed assets'!$U$2:$U$1000=Costs!$A688)*('Fixed assets'!$S$2:$S$1000))+SUMPRODUCT(('Fixed assets'!$Q$2:$Q$1000=Costs!AP$617)*('Fixed assets'!$P$2:$P$1000=Costs!$A688)*('Fixed assets'!$U$2:$U$1000=Costs!$A688)*('Fixed assets'!$R$2:$R$1000))","v":0},{"$f":"SUMPRODUCT(('Fixed assets'!$R$2:$R$1000)*('Fixed assets'!$P$2:$P$1000<$A688)*('Fixed assets'!$Q$2:$Q$1000=Costs!AQ$617))-SUMPRODUCT(('Fixed assets'!$S$2:$S$1000)*('Fixed assets'!$P$2:$P$1000<Costs!$A688)*('Fixed assets'!$Q$2:$Q$1000=Costs!AQ$617))-SUMPRODUCT(('Fixed assets'!$Q$2:$Q$1000=Costs!AQ$617)*('Fixed assets'!$U$2:$U$1000=Costs!$A688)*('Fixed assets'!$S$2:$S$1000))+SUMPRODUCT(('Fixed assets'!$Q$2:$Q$1000=Costs!AQ$617)*('Fixed assets'!$P$2:$P$1000=Costs!$A688)*('Fixed assets'!$U$2:$U$1000=Costs!$A688)*('Fixed assets'!$R$2:$R$1000))","v":0}]
[2086,0,{"$f":"SUMPRODUCT(('Fixed assets'!$R$2:$R$1000)*('Fixed assets'!$P$2:$P$1000<$A689)*('Fixed assets'!$Q$2:$Q$1000=Costs!C$617))-SUMPRODUCT(('Fixed assets'!$S$2:$S$1000)*('Fixed assets'!$P$2:$P$1000<Costs!$A689)*('Fixed assets'!$Q$2:$Q$1000=Costs!C$617))-SUMPRODUCT(('Fixed assets'!$Q$2:$Q$1000=Costs!C$617)*('Fixed assets'!$U$2:$U$1000=Costs!$A689)*('Fixed assets'!$S$2:$S$1000))+SUMPRODUCT(('Fixed assets'!$Q$2:$Q$1000=Costs!C$617)*('Fixed assets'!$P$2:$P$1000=Costs!$A689)*('Fixed assets'!$U$2:$U$1000=Costs!$A689)*('Fixed assets'!$R$2:$R$1000))","v":0},{"$f":"SUMPRODUCT(('Fixed assets'!$R$2:$R$1000)*('Fixed assets'!$P$2:$P$1000<$A689)*('Fixed assets'!$Q$2:$Q$1000=Costs!D$617))-SUMPRODUCT(('Fixed assets'!$S$2:$S$1000)*('Fixed assets'!$P$2:$P$1000<Costs!$A689)*('Fixed assets'!$Q$2:$Q$1000=Costs!D$617))-SUMPRODUCT(('Fixed assets'!$Q$2:$Q$1000=Costs!D$617)*('Fixed assets'!$U$2:$U$1000=Costs!$A689)*('Fixed assets'!$S$2:$S$1000))+SUMPRODUCT(('Fixed assets'!$Q$2:$Q$1000=Costs!D$617)*('Fixed assets'!$P$2:$P$1000=Costs!$A689)*('Fixed assets'!$U$2:$U$1000=Costs!$A689)*('Fixed assets'!$R$2:$R$1000))","v":0},{"$f":"SUMPRODUCT(('Fixed assets'!$R$2:$R$1000)*('Fixed assets'!$P$2:$P$1000<$A689)*('Fixed assets'!$Q$2:$Q$1000=Costs!E$617))-SUMPRODUCT(('Fixed assets'!$S$2:$S$1000)*('Fixed assets'!$P$2:$P$1000<Costs!$A689)*('Fixed assets'!$Q$2:$Q$1000=Costs!E$617))-SUMPRODUCT(('Fixed assets'!$Q$2:$Q$1000=Costs!E$617)*('Fixed assets'!$U$2:$U$1000=Costs!$A689)*('Fixed assets'!$S$2:$S$1000))+SUMPRODUCT(('Fixed assets'!$Q$2:$Q$1000=Costs!E$617)*('Fixed assets'!$P$2:$P$1000=Costs!$A689)*('Fixed assets'!$U$2:$U$1000=Costs!$A689)*('Fixed assets'!$R$2:$R$1000))","v":0},{"$f":"SUMPRODUCT(('Fixed assets'!$R$2:$R$1000)*('Fixed assets'!$P$2:$P$1000<$A689)*('Fixed assets'!$Q$2:$Q$1000=Costs!F$617))-SUMPRODUCT(('Fixed assets'!$S$2:$S$1000)*('Fixed assets'!$P$2:$P$1000<Costs!$A689)*('Fixed assets'!$Q$2:$Q$1000=Costs!F$617))-SUMPRODUCT(('Fixed assets'!$Q$2:$Q$1000=Costs!F$617)*('Fixed assets'!$U$2:$U$1000=Costs!$A689)*('Fixed assets'!$S$2:$S$1000))+SUMPRODUCT(('Fixed assets'!$Q$2:$Q$1000=Costs!F$617)*('Fixed assets'!$P$2:$P$1000=Costs!$A689)*('Fixed assets'!$U$2:$U$1000=Costs!$A689)*('Fixed assets'!$R$2:$R$1000))","v":0},{"$f":"SUMPRODUCT(('Fixed assets'!$R$2:$R$1000)*('Fixed assets'!$P$2:$P$1000<$A689)*('Fixed assets'!$Q$2:$Q$1000=Costs!G$617))-SUMPRODUCT(('Fixed assets'!$S$2:$S$1000)*('Fixed assets'!$P$2:$P$1000<Costs!$A689)*('Fixed assets'!$Q$2:$Q$1000=Costs!G$617))-SUMPRODUCT(('Fixed assets'!$Q$2:$Q$1000=Costs!G$617)*('Fixed assets'!$U$2:$U$1000=Costs!$A689)*('Fixed assets'!$S$2:$S$1000))+SUMPRODUCT(('Fixed assets'!$Q$2:$Q$1000=Costs!G$617)*('Fixed assets'!$P$2:$P$1000=Costs!$A689)*('Fixed assets'!$U$2:$U$1000=Costs!$A689)*('Fixed assets'!$R$2:$R$1000))","v":0},{"$f":"SUMPRODUCT(('Fixed assets'!$R$2:$R$1000)*('Fixed assets'!$P$2:$P$1000<$A689)*('Fixed assets'!$Q$2:$Q$1000=Costs!H$617))-SUMPRODUCT(('Fixed assets'!$S$2:$S$1000)*('Fixed assets'!$P$2:$P$1000<Costs!$A689)*('Fixed assets'!$Q$2:$Q$1000=Costs!H$617))-SUMPRODUCT(('Fixed assets'!$Q$2:$Q$1000=Costs!H$617)*('Fixed assets'!$U$2:$U$1000=Costs!$A689)*('Fixed assets'!$S$2:$S$1000))+SUMPRODUCT(('Fixed assets'!$Q$2:$Q$1000=Costs!H$617)*('Fixed assets'!$P$2:$P$1000=Costs!$A689)*('Fixed assets'!$U$2:$U$1000=Costs!$A689)*('Fixed assets'!$R$2:$R$1000))","v":0},{"$f":"SUMPRODUCT(('Fixed assets'!$R$2:$R$1000)*('Fixed assets'!$P$2:$P$1000<$A689)*('Fixed assets'!$Q$2:$Q$1000=Costs!I$617))-SUMPRODUCT(('Fixed assets'!$S$2:$S$1000)*('Fixed assets'!$P$2:$P$1000<Costs!$A689)*('Fixed assets'!$Q$2:$Q$1000=Costs!I$617))-SUMPRODUCT(('Fixed assets'!$Q$2:$Q$1000=Costs!I$617)*('Fixed assets'!$U$2:$U$1000=Costs!$A689)*('Fixed assets'!$S$2:$S$1000))+SUMPRODUCT(('Fixed assets'!$Q$2:$Q$1000=Costs!I$617)*('Fixed assets'!$P$2:$P$1000=Costs!$A689)*('Fixed assets'!$U$2:$U$1000=Costs!$A689)*('Fixed assets'!$R$2:$R$1000))","v":0},{"$f":"SUMPRODUCT(('Fixed assets'!$R$2:$R$1000)*('Fixed assets'!$P$2:$P$1000<$A689)*('Fixed assets'!$Q$2:$Q$1000=Costs!J$617))-SUMPRODUCT(('Fixed assets'!$S$2:$S$1000)*('Fixed assets'!$P$2:$P$1000<Costs!$A689)*('Fixed assets'!$Q$2:$Q$1000=Costs!J$617))-SUMPRODUCT(('Fixed assets'!$Q$2:$Q$1000=Costs!J$617)*('Fixed assets'!$U$2:$U$1000=Costs!$A689)*('Fixed assets'!$S$2:$S$1000))+SUMPRODUCT(('Fixed assets'!$Q$2:$Q$1000=Costs!J$617)*('Fixed assets'!$P$2:$P$1000=Costs!$A689)*('Fixed assets'!$U$2:$U$1000=Costs!$A689)*('Fixed assets'!$R$2:$R$1000))","v":0},{"$f":"SUMPRODUCT(('Fixed assets'!$R$2:$R$1000)*('Fixed assets'!$P$2:$P$1000<$A689)*('Fixed assets'!$Q$2:$Q$1000=Costs!K$617))-SUMPRODUCT(('Fixed assets'!$S$2:$S$1000)*('Fixed assets'!$P$2:$P$1000<Costs!$A689)*('Fixed assets'!$Q$2:$Q$1000=Costs!K$617))-SUMPRODUCT(('Fixed assets'!$Q$2:$Q$1000=Costs!K$617)*('Fixed assets'!$U$2:$U$1000=Costs!$A689)*('Fixed assets'!$S$2:$S$1000))+SUMPRODUCT(('Fixed assets'!$Q$2:$Q$1000=Costs!K$617)*('Fixed assets'!$P$2:$P$1000=Costs!$A689)*('Fixed assets'!$U$2:$U$1000=Costs!$A689)*('Fixed assets'!$R$2:$R$1000))","v":0},{"$f":"SUMPRODUCT(('Fixed assets'!$R$2:$R$1000)*('Fixed assets'!$P$2:$P$1000<$A689)*('Fixed assets'!$Q$2:$Q$1000=Costs!L$617))-SUMPRODUCT(('Fixed assets'!$S$2:$S$1000)*('Fixed assets'!$P$2:$P$1000<Costs!$A689)*('Fixed assets'!$Q$2:$Q$1000=Costs!L$617))-SUMPRODUCT(('Fixed assets'!$Q$2:$Q$1000=Costs!L$617)*('Fixed assets'!$U$2:$U$1000=Costs!$A689)*('Fixed assets'!$S$2:$S$1000))+SUMPRODUCT(('Fixed assets'!$Q$2:$Q$1000=Costs!L$617)*('Fixed assets'!$P$2:$P$1000=Costs!$A689)*('Fixed assets'!$U$2:$U$1000=Costs!$A689)*('Fixed assets'!$R$2:$R$1000))","v":0},{"$f":"SUMPRODUCT(('Fixed assets'!$R$2:$R$1000)*('Fixed assets'!$P$2:$P$1000<$A689)*('Fixed assets'!$Q$2:$Q$1000=Costs!M$617))-SUMPRODUCT(('Fixed assets'!$S$2:$S$1000)*('Fixed assets'!$P$2:$P$1000<Costs!$A689)*('Fixed assets'!$Q$2:$Q$1000=Costs!M$617))-SUMPRODUCT(('Fixed assets'!$Q$2:$Q$1000=Costs!M$617)*('Fixed assets'!$U$2:$U$1000=Costs!$A689)*('Fixed assets'!$S$2:$S$1000))+SUMPRODUCT(('Fixed assets'!$Q$2:$Q$1000=Costs!M$617)*('Fixed assets'!$P$2:$P$1000=Costs!$A689)*('Fixed assets'!$U$2:$U$1000=Costs!$A689)*('Fixed assets'!$R$2:$R$1000))","v":0},{"$f":"SUMPRODUCT(('Fixed assets'!$R$2:$R$1000)*('Fixed assets'!$P$2:$P$1000<$A689)*('Fixed assets'!$Q$2:$Q$1000=Costs!N$617))-SUMPRODUCT(('Fixed assets'!$S$2:$S$1000)*('Fixed assets'!$P$2:$P$1000<Costs!$A689)*('Fixed assets'!$Q$2:$Q$1000=Costs!N$617))-SUMPRODUCT(('Fixed assets'!$Q$2:$Q$1000=Costs!N$617)*('Fixed assets'!$U$2:$U$1000=Costs!$A689)*('Fixed assets'!$S$2:$S$1000))+SUMPRODUCT(('Fixed assets'!$Q$2:$Q$1000=Costs!N$617)*('Fixed assets'!$P$2:$P$1000=Costs!$A689)*('Fixed assets'!$U$2:$U$1000=Costs!$A689)*('Fixed assets'!$R$2:$R$1000))","v":0},{"$f":"SUMPRODUCT(('Fixed assets'!$R$2:$R$1000)*('Fixed assets'!$P$2:$P$1000<$A689)*('Fixed assets'!$Q$2:$Q$1000=Costs!O$617))-SUMPRODUCT(('Fixed assets'!$S$2:$S$1000)*('Fixed assets'!$P$2:$P$1000<Costs!$A689)*('Fixed assets'!$Q$2:$Q$1000=Costs!O$617))-SUMPRODUCT(('Fixed assets'!$Q$2:$Q$1000=Costs!O$617)*('Fixed assets'!$U$2:$U$1000=Costs!$A689)*('Fixed assets'!$S$2:$S$1000))+SUMPRODUCT(('Fixed assets'!$Q$2:$Q$1000=Costs!O$617)*('Fixed assets'!$P$2:$P$1000=Costs!$A689)*('Fixed assets'!$U$2:$U$1000=Costs!$A689)*('Fixed assets'!$R$2:$R$1000))","v":0},{"$f":"SUMPRODUCT(('Fixed assets'!$R$2:$R$1000)*('Fixed assets'!$P$2:$P$1000<$A689)*('Fixed assets'!$Q$2:$Q$1000=Costs!P$617))-SUMPRODUCT(('Fixed assets'!$S$2:$S$1000)*('Fixed assets'!$P$2:$P$1000<Costs!$A689)*('Fixed assets'!$Q$2:$Q$1000=Costs!P$617))-SUMPRODUCT(('Fixed assets'!$Q$2:$Q$1000=Costs!P$617)*('Fixed assets'!$U$2:$U$1000=Costs!$A689)*('Fixed assets'!$S$2:$S$1000))+SUMPRODUCT(('Fixed assets'!$Q$2:$Q$1000=Costs!P$617)*('Fixed assets'!$P$2:$P$1000=Costs!$A689)*('Fixed assets'!$U$2:$U$1000=Costs!$A689)*('Fixed assets'!$R$2:$R$1000))","v":0},{"$f":"SUMPRODUCT(('Fixed assets'!$R$2:$R$1000)*('Fixed assets'!$P$2:$P$1000<$A689)*('Fixed assets'!$Q$2:$Q$1000=Costs!Q$617))-SUMPRODUCT(('Fixed assets'!$S$2:$S$1000)*('Fixed assets'!$P$2:$P$1000<Costs!$A689)*('Fixed assets'!$Q$2:$Q$1000=Costs!Q$617))-SUMPRODUCT(('Fixed assets'!$Q$2:$Q$1000=Costs!Q$617)*('Fixed assets'!$U$2:$U$1000=Costs!$A689)*('Fixed assets'!$S$2:$S$1000))+SUMPRODUCT(('Fixed assets'!$Q$2:$Q$1000=Costs!Q$617)*('Fixed assets'!$P$2:$P$1000=Costs!$A689)*('Fixed assets'!$U$2:$U$1000=Costs!$A689)*('Fixed assets'!$R$2:$R$1000))","v":0},{"$f":"SUMPRODUCT(('Fixed assets'!$R$2:$R$1000)*('Fixed assets'!$P$2:$P$1000<$A689)*('Fixed assets'!$Q$2:$Q$1000=Costs!R$617))-SUMPRODUCT(('Fixed assets'!$S$2:$S$1000)*('Fixed assets'!$P$2:$P$1000<Costs!$A689)*('Fixed assets'!$Q$2:$Q$1000=Costs!R$617))-SUMPRODUCT(('Fixed assets'!$Q$2:$Q$1000=Costs!R$617)*('Fixed assets'!$U$2:$U$1000=Costs!$A689)*('Fixed assets'!$S$2:$S$1000))+SUMPRODUCT(('Fixed assets'!$Q$2:$Q$1000=Costs!R$617)*('Fixed assets'!$P$2:$P$1000=Costs!$A689)*('Fixed assets'!$U$2:$U$1000=Costs!$A689)*('Fixed assets'!$R$2:$R$1000))","v":0},{"$f":"SUMPRODUCT(('Fixed assets'!$R$2:$R$1000)*('Fixed assets'!$P$2:$P$1000<$A689)*('Fixed assets'!$Q$2:$Q$1000=Costs!S$617))-SUMPRODUCT(('Fixed assets'!$S$2:$S$1000)*('Fixed assets'!$P$2:$P$1000<Costs!$A689)*('Fixed assets'!$Q$2:$Q$1000=Costs!S$617))-SUMPRODUCT(('Fixed assets'!$Q$2:$Q$1000=Costs!S$617)*('Fixed assets'!$U$2:$U$1000=Costs!$A689)*('Fixed assets'!$S$2:$S$1000))+SUMPRODUCT(('Fixed assets'!$Q$2:$Q$1000=Costs!S$617)*('Fixed assets'!$P$2:$P$1000=Costs!$A689)*('Fixed assets'!$U$2:$U$1000=Costs!$A689)*('Fixed assets'!$R$2:$R$1000))","v":0},{"$f":"SUMPRODUCT(('Fixed assets'!$R$2:$R$1000)*('Fixed assets'!$P$2:$P$1000<$A689)*('Fixed assets'!$Q$2:$Q$1000=Costs!T$617))-SUMPRODUCT(('Fixed assets'!$S$2:$S$1000)*('Fixed assets'!$P$2:$P$1000<Costs!$A689)*('Fixed assets'!$Q$2:$Q$1000=Costs!T$617))-SUMPRODUCT(('Fixed assets'!$Q$2:$Q$1000=Costs!T$617)*('Fixed assets'!$U$2:$U$1000=Costs!$A689)*('Fixed assets'!$S$2:$S$1000))+SUMPRODUCT(('Fixed assets'!$Q$2:$Q$1000=Costs!T$617)*('Fixed assets'!$P$2:$P$1000=Costs!$A689)*('Fixed assets'!$U$2:$U$1000=Costs!$A689)*('Fixed assets'!$R$2:$R$1000))","v":0},{"$f":"SUMPRODUCT(('Fixed assets'!$R$2:$R$1000)*('Fixed assets'!$P$2:$P$1000<$A689)*('Fixed assets'!$Q$2:$Q$1000=Costs!U$617))-SUMPRODUCT(('Fixed assets'!$S$2:$S$1000)*('Fixed assets'!$P$2:$P$1000<Costs!$A689)*('Fixed assets'!$Q$2:$Q$1000=Costs!U$617))-SUMPRODUCT(('Fixed assets'!$Q$2:$Q$1000=Costs!U$617)*('Fixed assets'!$U$2:$U$1000=Costs!$A689)*('Fixed assets'!$S$2:$S$1000))+SUMPRODUCT(('Fixed assets'!$Q$2:$Q$1000=Costs!U$617)*('Fixed assets'!$P$2:$P$1000=Costs!$A689)*('Fixed assets'!$U$2:$U$1000=Costs!$A689)*('Fixed assets'!$R$2:$R$1000))","v":0},{"$f":"SUMPRODUCT(('Fixed assets'!$R$2:$R$1000)*('Fixed assets'!$P$2:$P$1000<$A689)*('Fixed assets'!$Q$2:$Q$1000=Costs!V$617))-SUMPRODUCT(('Fixed assets'!$S$2:$S$1000)*('Fixed assets'!$P$2:$P$1000<Costs!$A689)*('Fixed assets'!$Q$2:$Q$1000=Costs!V$617))-SUMPRODUCT(('Fixed assets'!$Q$2:$Q$1000=Costs!V$617)*('Fixed assets'!$U$2:$U$1000=Costs!$A689)*('Fixed assets'!$S$2:$S$1000))+SUMPRODUCT(('Fixed assets'!$Q$2:$Q$1000=Costs!V$617)*('Fixed assets'!$P$2:$P$1000=Costs!$A689)*('Fixed assets'!$U$2:$U$1000=Costs!$A689)*('Fixed assets'!$R$2:$R$1000))","v":0},{"$f":"SUMPRODUCT(('Fixed assets'!$R$2:$R$1000)*('Fixed assets'!$P$2:$P$1000<$A689)*('Fixed assets'!$Q$2:$Q$1000=Costs!W$617))-SUMPRODUCT(('Fixed assets'!$S$2:$S$1000)*('Fixed assets'!$P$2:$P$1000<Costs!$A689)*('Fixed assets'!$Q$2:$Q$1000=Costs!W$617))-SUMPRODUCT(('Fixed assets'!$Q$2:$Q$1000=Costs!W$617)*('Fixed assets'!$U$2:$U$1000=Costs!$A689)*('Fixed assets'!$S$2:$S$1000))+SUMPRODUCT(('Fixed assets'!$Q$2:$Q$1000=Costs!W$617)*('Fixed assets'!$P$2:$P$1000=Costs!$A689)*('Fixed assets'!$U$2:$U$1000=Costs!$A689)*('Fixed assets'!$R$2:$R$1000))","v":0},{"$f":"SUMPRODUCT(('Fixed assets'!$R$2:$R$1000)*('Fixed assets'!$P$2:$P$1000<$A689)*('Fixed assets'!$Q$2:$Q$1000=Costs!X$617))-SUMPRODUCT(('Fixed assets'!$S$2:$S$1000)*('Fixed assets'!$P$2:$P$1000<Costs!$A689)*('Fixed assets'!$Q$2:$Q$1000=Costs!X$617))-SUMPRODUCT(('Fixed assets'!$Q$2:$Q$1000=Costs!X$617)*('Fixed assets'!$U$2:$U$1000=Costs!$A689)*('Fixed assets'!$S$2:$S$1000))+SUMPRODUCT(('Fixed assets'!$Q$2:$Q$1000=Costs!X$617)*('Fixed assets'!$P$2:$P$1000=Costs!$A689)*('Fixed assets'!$U$2:$U$1000=Costs!$A689)*('Fixed assets'!$R$2:$R$1000))","v":0},{"$f":"SUMPRODUCT(('Fixed assets'!$R$2:$R$1000)*('Fixed assets'!$P$2:$P$1000<$A689)*('Fixed assets'!$Q$2:$Q$1000=Costs!Y$617))-SUMPRODUCT(('Fixed assets'!$S$2:$S$1000)*('Fixed assets'!$P$2:$P$1000<Costs!$A689)*('Fixed assets'!$Q$2:$Q$1000=Costs!Y$617))-SUMPRODUCT(('Fixed assets'!$Q$2:$Q$1000=Costs!Y$617)*('Fixed assets'!$U$2:$U$1000=Costs!$A689)*('Fixed assets'!$S$2:$S$1000))+SUMPRODUCT(('Fixed assets'!$Q$2:$Q$1000=Costs!Y$617)*('Fixed assets'!$P$2:$P$1000=Costs!$A689)*('Fixed assets'!$U$2:$U$1000=Costs!$A689)*('Fixed assets'!$R$2:$R$1000))","v":0},{"$f":"SUMPRODUCT(('Fixed assets'!$R$2:$R$1000)*('Fixed assets'!$P$2:$P$1000<$A689)*('Fixed assets'!$Q$2:$Q$1000=Costs!Z$617))-SUMPRODUCT(('Fixed assets'!$S$2:$S$1000)*('Fixed assets'!$P$2:$P$1000<Costs!$A689)*('Fixed assets'!$Q$2:$Q$1000=Costs!Z$617))-SUMPRODUCT(('Fixed assets'!$Q$2:$Q$1000=Costs!Z$617)*('Fixed assets'!$U$2:$U$1000=Costs!$A689)*('Fixed assets'!$S$2:$S$1000))+SUMPRODUCT(('Fixed assets'!$Q$2:$Q$1000=Costs!Z$617)*('Fixed assets'!$P$2:$P$1000=Costs!$A689)*('Fixed assets'!$U$2:$U$1000=Costs!$A689)*('Fixed assets'!$R$2:$R$1000))","v":0},{"$f":"SUMPRODUCT(('Fixed assets'!$R$2:$R$1000)*('Fixed assets'!$P$2:$P$1000<$A689)*('Fixed assets'!$Q$2:$Q$1000=Costs!AA$617))-SUMPRODUCT(('Fixed assets'!$S$2:$S$1000)*('Fixed assets'!$P$2:$P$1000<Costs!$A689)*('Fixed assets'!$Q$2:$Q$1000=Costs!AA$617))-SUMPRODUCT(('Fixed assets'!$Q$2:$Q$1000=Costs!AA$617)*('Fixed assets'!$U$2:$U$1000=Costs!$A689)*('Fixed assets'!$S$2:$S$1000))+SUMPRODUCT(('Fixed assets'!$Q$2:$Q$1000=Costs!AA$617)*('Fixed assets'!$P$2:$P$1000=Costs!$A689)*('Fixed assets'!$U$2:$U$1000=Costs!$A689)*('Fixed assets'!$R$2:$R$1000))","v":0},{"$f":"SUMPRODUCT(('Fixed assets'!$R$2:$R$1000)*('Fixed assets'!$P$2:$P$1000<$A689)*('Fixed assets'!$Q$2:$Q$1000=Costs!AB$617))-SUMPRODUCT(('Fixed assets'!$S$2:$S$1000)*('Fixed assets'!$P$2:$P$1000<Costs!$A689)*('Fixed assets'!$Q$2:$Q$1000=Costs!AB$617))-SUMPRODUCT(('Fixed assets'!$Q$2:$Q$1000=Costs!AB$617)*('Fixed assets'!$U$2:$U$1000=Costs!$A689)*('Fixed assets'!$S$2:$S$1000))+SUMPRODUCT(('Fixed assets'!$Q$2:$Q$1000=Costs!AB$617)*('Fixed assets'!$P$2:$P$1000=Costs!$A689)*('Fixed assets'!$U$2:$U$1000=Costs!$A689)*('Fixed assets'!$R$2:$R$1000))","v":0},{"$f":"SUMPRODUCT(('Fixed assets'!$R$2:$R$1000)*('Fixed assets'!$P$2:$P$1000<$A689)*('Fixed assets'!$Q$2:$Q$1000=Costs!AC$617))-SUMPRODUCT(('Fixed assets'!$S$2:$S$1000)*('Fixed assets'!$P$2:$P$1000<Costs!$A689)*('Fixed assets'!$Q$2:$Q$1000=Costs!AC$617))-SUMPRODUCT(('Fixed assets'!$Q$2:$Q$1000=Costs!AC$617)*('Fixed assets'!$U$2:$U$1000=Costs!$A689)*('Fixed assets'!$S$2:$S$1000))+SUMPRODUCT(('Fixed assets'!$Q$2:$Q$1000=Costs!AC$617)*('Fixed assets'!$P$2:$P$1000=Costs!$A689)*('Fixed assets'!$U$2:$U$1000=Costs!$A689)*('Fixed assets'!$R$2:$R$1000))","v":0},{"$f":"SUMPRODUCT(('Fixed assets'!$R$2:$R$1000)*('Fixed assets'!$P$2:$P$1000<$A689)*('Fixed assets'!$Q$2:$Q$1000=Costs!AD$617))-SUMPRODUCT(('Fixed assets'!$S$2:$S$1000)*('Fixed assets'!$P$2:$P$1000<Costs!$A689)*('Fixed assets'!$Q$2:$Q$1000=Costs!AD$617))-SUMPRODUCT(('Fixed assets'!$Q$2:$Q$1000=Costs!AD$617)*('Fixed assets'!$U$2:$U$1000=Costs!$A689)*('Fixed assets'!$S$2:$S$1000))+SUMPRODUCT(('Fixed assets'!$Q$2:$Q$1000=Costs!AD$617)*('Fixed assets'!$P$2:$P$1000=Costs!$A689)*('Fixed assets'!$U$2:$U$1000=Costs!$A689)*('Fixed assets'!$R$2:$R$1000))","v":0},{"$f":"SUMPRODUCT(('Fixed assets'!$R$2:$R$1000)*('Fixed assets'!$P$2:$P$1000<$A689)*('Fixed assets'!$Q$2:$Q$1000=Costs!AE$617))-SUMPRODUCT(('Fixed assets'!$S$2:$S$1000)*('Fixed assets'!$P$2:$P$1000<Costs!$A689)*('Fixed assets'!$Q$2:$Q$1000=Costs!AE$617))-SUMPRODUCT(('Fixed assets'!$Q$2:$Q$1000=Costs!AE$617)*('Fixed assets'!$U$2:$U$1000=Costs!$A689)*('Fixed assets'!$S$2:$S$1000))+SUMPRODUCT(('Fixed assets'!$Q$2:$Q$1000=Costs!AE$617)*('Fixed assets'!$P$2:$P$1000=Costs!$A689)*('Fixed assets'!$U$2:$U$1000=Costs!$A689)*('Fixed assets'!$R$2:$R$1000))","v":0},{"$f":"SUMPRODUCT(('Fixed assets'!$R$2:$R$1000)*('Fixed assets'!$P$2:$P$1000<$A689)*('Fixed assets'!$Q$2:$Q$1000=Costs!AF$617))-SUMPRODUCT(('Fixed assets'!$S$2:$S$1000)*('Fixed assets'!$P$2:$P$1000<Costs!$A689)*('Fixed assets'!$Q$2:$Q$1000=Costs!AF$617))-SUMPRODUCT(('Fixed assets'!$Q$2:$Q$1000=Costs!AF$617)*('Fixed assets'!$U$2:$U$1000=Costs!$A689)*('Fixed assets'!$S$2:$S$1000))+SUMPRODUCT(('Fixed assets'!$Q$2:$Q$1000=Costs!AF$617)*('Fixed assets'!$P$2:$P$1000=Costs!$A689)*('Fixed assets'!$U$2:$U$1000=Costs!$A689)*('Fixed assets'!$R$2:$R$1000))","v":0},{"$f":"SUMPRODUCT(('Fixed assets'!$R$2:$R$1000)*('Fixed assets'!$P$2:$P$1000<$A689)*('Fixed assets'!$Q$2:$Q$1000=Costs!AG$617))-SUMPRODUCT(('Fixed assets'!$S$2:$S$1000)*('Fixed assets'!$P$2:$P$1000<Costs!$A689)*('Fixed assets'!$Q$2:$Q$1000=Costs!AG$617))-SUMPRODUCT(('Fixed assets'!$Q$2:$Q$1000=Costs!AG$617)*('Fixed assets'!$U$2:$U$1000=Costs!$A689)*('Fixed assets'!$S$2:$S$1000))+SUMPRODUCT(('Fixed assets'!$Q$2:$Q$1000=Costs!AG$617)*('Fixed assets'!$P$2:$P$1000=Costs!$A689)*('Fixed assets'!$U$2:$U$1000=Costs!$A689)*('Fixed assets'!$R$2:$R$1000))","v":0},{"$f":"SUMPRODUCT(('Fixed assets'!$R$2:$R$1000)*('Fixed assets'!$P$2:$P$1000<$A689)*('Fixed assets'!$Q$2:$Q$1000=Costs!AH$617))-SUMPRODUCT(('Fixed assets'!$S$2:$S$1000)*('Fixed assets'!$P$2:$P$1000<Costs!$A689)*('Fixed assets'!$Q$2:$Q$1000=Costs!AH$617))-SUMPRODUCT(('Fixed assets'!$Q$2:$Q$1000=Costs!AH$617)*('Fixed assets'!$U$2:$U$1000=Costs!$A689)*('Fixed assets'!$S$2:$S$1000))+SUMPRODUCT(('Fixed assets'!$Q$2:$Q$1000=Costs!AH$617)*('Fixed assets'!$P$2:$P$1000=Costs!$A689)*('Fixed assets'!$U$2:$U$1000=Costs!$A689)*('Fixed assets'!$R$2:$R$1000))","v":0},{"$f":"SUMPRODUCT(('Fixed assets'!$R$2:$R$1000)*('Fixed assets'!$P$2:$P$1000<$A689)*('Fixed assets'!$Q$2:$Q$1000=Costs!AI$617))-SUMPRODUCT(('Fixed assets'!$S$2:$S$1000)*('Fixed assets'!$P$2:$P$1000<Costs!$A689)*('Fixed assets'!$Q$2:$Q$1000=Costs!AI$617))-SUMPRODUCT(('Fixed assets'!$Q$2:$Q$1000=Costs!AI$617)*('Fixed assets'!$U$2:$U$1000=Costs!$A689)*('Fixed assets'!$S$2:$S$1000))+SUMPRODUCT(('Fixed assets'!$Q$2:$Q$1000=Costs!AI$617)*('Fixed assets'!$P$2:$P$1000=Costs!$A689)*('Fixed assets'!$U$2:$U$1000=Costs!$A689)*('Fixed assets'!$R$2:$R$1000))","v":0},{"$f":"SUMPRODUCT(('Fixed assets'!$R$2:$R$1000)*('Fixed assets'!$P$2:$P$1000<$A689)*('Fixed assets'!$Q$2:$Q$1000=Costs!AJ$617))-SUMPRODUCT(('Fixed assets'!$S$2:$S$1000)*('Fixed assets'!$P$2:$P$1000<Costs!$A689)*('Fixed assets'!$Q$2:$Q$1000=Costs!AJ$617))-SUMPRODUCT(('Fixed assets'!$Q$2:$Q$1000=Costs!AJ$617)*('Fixed assets'!$U$2:$U$1000=Costs!$A689)*('Fixed assets'!$S$2:$S$1000))+SUMPRODUCT(('Fixed assets'!$Q$2:$Q$1000=Costs!AJ$617)*('Fixed assets'!$P$2:$P$1000=Costs!$A689)*('Fixed assets'!$U$2:$U$1000=Costs!$A689)*('Fixed assets'!$R$2:$R$1000))","v":0},{"$f":"SUMPRODUCT(('Fixed assets'!$R$2:$R$1000)*('Fixed assets'!$P$2:$P$1000<$A689)*('Fixed assets'!$Q$2:$Q$1000=Costs!AK$617))-SUMPRODUCT(('Fixed assets'!$S$2:$S$1000)*('Fixed assets'!$P$2:$P$1000<Costs!$A689)*('Fixed assets'!$Q$2:$Q$1000=Costs!AK$617))-SUMPRODUCT(('Fixed assets'!$Q$2:$Q$1000=Costs!AK$617)*('Fixed assets'!$U$2:$U$1000=Costs!$A689)*('Fixed assets'!$S$2:$S$1000))+SUMPRODUCT(('Fixed assets'!$Q$2:$Q$1000=Costs!AK$617)*('Fixed assets'!$P$2:$P$1000=Costs!$A689)*('Fixed assets'!$U$2:$U$1000=Costs!$A689)*('Fixed assets'!$R$2:$R$1000))","v":0},{"$f":"SUMPRODUCT(('Fixed assets'!$R$2:$R$1000)*('Fixed assets'!$P$2:$P$1000<$A689)*('Fixed assets'!$Q$2:$Q$1000=Costs!AL$617))-SUMPRODUCT(('Fixed assets'!$S$2:$S$1000)*('Fixed assets'!$P$2:$P$1000<Costs!$A689)*('Fixed assets'!$Q$2:$Q$1000=Costs!AL$617))-SUMPRODUCT(('Fixed assets'!$Q$2:$Q$1000=Costs!AL$617)*('Fixed assets'!$U$2:$U$1000=Costs!$A689)*('Fixed assets'!$S$2:$S$1000))+SUMPRODUCT(('Fixed assets'!$Q$2:$Q$1000=Costs!AL$617)*('Fixed assets'!$P$2:$P$1000=Costs!$A689)*('Fixed assets'!$U$2:$U$1000=Costs!$A689)*('Fixed assets'!$R$2:$R$1000))","v":0},{"$f":"SUMPRODUCT(('Fixed assets'!$R$2:$R$1000)*('Fixed assets'!$P$2:$P$1000<$A689)*('Fixed assets'!$Q$2:$Q$1000=Costs!AM$617))-SUMPRODUCT(('Fixed assets'!$S$2:$S$1000)*('Fixed assets'!$P$2:$P$1000<Costs!$A689)*('Fixed assets'!$Q$2:$Q$1000=Costs!AM$617))-SUMPRODUCT(('Fixed assets'!$Q$2:$Q$1000=Costs!AM$617)*('Fixed assets'!$U$2:$U$1000=Costs!$A689)*('Fixed assets'!$S$2:$S$1000))+SUMPRODUCT(('Fixed assets'!$Q$2:$Q$1000=Costs!AM$617)*('Fixed assets'!$P$2:$P$1000=Costs!$A689)*('Fixed assets'!$U$2:$U$1000=Costs!$A689)*('Fixed assets'!$R$2:$R$1000))","v":0},{"$f":"SUMPRODUCT(('Fixed assets'!$R$2:$R$1000)*('Fixed assets'!$P$2:$P$1000<$A689)*('Fixed assets'!$Q$2:$Q$1000=Costs!AN$617))-SUMPRODUCT(('Fixed assets'!$S$2:$S$1000)*('Fixed assets'!$P$2:$P$1000<Costs!$A689)*('Fixed assets'!$Q$2:$Q$1000=Costs!AN$617))-SUMPRODUCT(('Fixed assets'!$Q$2:$Q$1000=Costs!AN$617)*('Fixed assets'!$U$2:$U$1000=Costs!$A689)*('Fixed assets'!$S$2:$S$1000))+SUMPRODUCT(('Fixed assets'!$Q$2:$Q$1000=Costs!AN$617)*('Fixed assets'!$P$2:$P$1000=Costs!$A689)*('Fixed assets'!$U$2:$U$1000=Costs!$A689)*('Fixed assets'!$R$2:$R$1000))","v":0},{"$f":"SUMPRODUCT(('Fixed assets'!$R$2:$R$1000)*('Fixed assets'!$P$2:$P$1000<$A689)*('Fixed assets'!$Q$2:$Q$1000=Costs!AO$617))-SUMPRODUCT(('Fixed assets'!$S$2:$S$1000)*('Fixed assets'!$P$2:$P$1000<Costs!$A689)*('Fixed assets'!$Q$2:$Q$1000=Costs!AO$617))-SUMPRODUCT(('Fixed assets'!$Q$2:$Q$1000=Costs!AO$617)*('Fixed assets'!$U$2:$U$1000=Costs!$A689)*('Fixed assets'!$S$2:$S$1000))+SUMPRODUCT(('Fixed assets'!$Q$2:$Q$1000=Costs!AO$617)*('Fixed assets'!$P$2:$P$1000=Costs!$A689)*('Fixed assets'!$U$2:$U$1000=Costs!$A689)*('Fixed assets'!$R$2:$R$1000))","v":0},{"$f":"SUMPRODUCT(('Fixed assets'!$R$2:$R$1000)*('Fixed assets'!$P$2:$P$1000<$A689)*('Fixed assets'!$Q$2:$Q$1000=Costs!AP$617))-SUMPRODUCT(('Fixed assets'!$S$2:$S$1000)*('Fixed assets'!$P$2:$P$1000<Costs!$A689)*('Fixed assets'!$Q$2:$Q$1000=Costs!AP$617))-SUMPRODUCT(('Fixed assets'!$Q$2:$Q$1000=Costs!AP$617)*('Fixed assets'!$U$2:$U$1000=Costs!$A689)*('Fixed assets'!$S$2:$S$1000))+SUMPRODUCT(('Fixed assets'!$Q$2:$Q$1000=Costs!AP$617)*('Fixed assets'!$P$2:$P$1000=Costs!$A689)*('Fixed assets'!$U$2:$U$1000=Costs!$A689)*('Fixed assets'!$R$2:$R$1000))","v":0},{"$f":"SUMPRODUCT(('Fixed assets'!$R$2:$R$1000)*('Fixed assets'!$P$2:$P$1000<$A689)*('Fixed assets'!$Q$2:$Q$1000=Costs!AQ$617))-SUMPRODUCT(('Fixed assets'!$S$2:$S$1000)*('Fixed assets'!$P$2:$P$1000<Costs!$A689)*('Fixed assets'!$Q$2:$Q$1000=Costs!AQ$617))-SUMPRODUCT(('Fixed assets'!$Q$2:$Q$1000=Costs!AQ$617)*('Fixed assets'!$U$2:$U$1000=Costs!$A689)*('Fixed assets'!$S$2:$S$1000))+SUMPRODUCT(('Fixed assets'!$Q$2:$Q$1000=Costs!AQ$617)*('Fixed assets'!$P$2:$P$1000=Costs!$A689)*('Fixed assets'!$U$2:$U$1000=Costs!$A689)*('Fixed assets'!$R$2:$R$1000))","v":0}]
[2087,0,{"$f":"SUMPRODUCT(('Fixed assets'!$R$2:$R$1000)*('Fixed assets'!$P$2:$P$1000<$A690)*('Fixed assets'!$Q$2:$Q$1000=Costs!C$617))-SUMPRODUCT(('Fixed assets'!$S$2:$S$1000)*('Fixed assets'!$P$2:$P$1000<Costs!$A690)*('Fixed assets'!$Q$2:$Q$1000=Costs!C$617))-SUMPRODUCT(('Fixed assets'!$Q$2:$Q$1000=Costs!C$617)*('Fixed assets'!$U$2:$U$1000=Costs!$A690)*('Fixed assets'!$S$2:$S$1000))+SUMPRODUCT(('Fixed assets'!$Q$2:$Q$1000=Costs!C$617)*('Fixed assets'!$P$2:$P$1000=Costs!$A690)*('Fixed assets'!$U$2:$U$1000=Costs!$A690)*('Fixed assets'!$R$2:$R$1000))","v":0},{"$f":"SUMPRODUCT(('Fixed assets'!$R$2:$R$1000)*('Fixed assets'!$P$2:$P$1000<$A690)*('Fixed assets'!$Q$2:$Q$1000=Costs!D$617))-SUMPRODUCT(('Fixed assets'!$S$2:$S$1000)*('Fixed assets'!$P$2:$P$1000<Costs!$A690)*('Fixed assets'!$Q$2:$Q$1000=Costs!D$617))-SUMPRODUCT(('Fixed assets'!$Q$2:$Q$1000=Costs!D$617)*('Fixed assets'!$U$2:$U$1000=Costs!$A690)*('Fixed assets'!$S$2:$S$1000))+SUMPRODUCT(('Fixed assets'!$Q$2:$Q$1000=Costs!D$617)*('Fixed assets'!$P$2:$P$1000=Costs!$A690)*('Fixed assets'!$U$2:$U$1000=Costs!$A690)*('Fixed assets'!$R$2:$R$1000))","v":0},{"$f":"SUMPRODUCT(('Fixed assets'!$R$2:$R$1000)*('Fixed assets'!$P$2:$P$1000<$A690)*('Fixed assets'!$Q$2:$Q$1000=Costs!E$617))-SUMPRODUCT(('Fixed assets'!$S$2:$S$1000)*('Fixed assets'!$P$2:$P$1000<Costs!$A690)*('Fixed assets'!$Q$2:$Q$1000=Costs!E$617))-SUMPRODUCT(('Fixed assets'!$Q$2:$Q$1000=Costs!E$617)*('Fixed assets'!$U$2:$U$1000=Costs!$A690)*('Fixed assets'!$S$2:$S$1000))+SUMPRODUCT(('Fixed assets'!$Q$2:$Q$1000=Costs!E$617)*('Fixed assets'!$P$2:$P$1000=Costs!$A690)*('Fixed assets'!$U$2:$U$1000=Costs!$A690)*('Fixed assets'!$R$2:$R$1000))","v":0},{"$f":"SUMPRODUCT(('Fixed assets'!$R$2:$R$1000)*('Fixed assets'!$P$2:$P$1000<$A690)*('Fixed assets'!$Q$2:$Q$1000=Costs!F$617))-SUMPRODUCT(('Fixed assets'!$S$2:$S$1000)*('Fixed assets'!$P$2:$P$1000<Costs!$A690)*('Fixed assets'!$Q$2:$Q$1000=Costs!F$617))-SUMPRODUCT(('Fixed assets'!$Q$2:$Q$1000=Costs!F$617)*('Fixed assets'!$U$2:$U$1000=Costs!$A690)*('Fixed assets'!$S$2:$S$1000))+SUMPRODUCT(('Fixed assets'!$Q$2:$Q$1000=Costs!F$617)*('Fixed assets'!$P$2:$P$1000=Costs!$A690)*('Fixed assets'!$U$2:$U$1000=Costs!$A690)*('Fixed assets'!$R$2:$R$1000))","v":0},{"$f":"SUMPRODUCT(('Fixed assets'!$R$2:$R$1000)*('Fixed assets'!$P$2:$P$1000<$A690)*('Fixed assets'!$Q$2:$Q$1000=Costs!G$617))-SUMPRODUCT(('Fixed assets'!$S$2:$S$1000)*('Fixed assets'!$P$2:$P$1000<Costs!$A690)*('Fixed assets'!$Q$2:$Q$1000=Costs!G$617))-SUMPRODUCT(('Fixed assets'!$Q$2:$Q$1000=Costs!G$617)*('Fixed assets'!$U$2:$U$1000=Costs!$A690)*('Fixed assets'!$S$2:$S$1000))+SUMPRODUCT(('Fixed assets'!$Q$2:$Q$1000=Costs!G$617)*('Fixed assets'!$P$2:$P$1000=Costs!$A690)*('Fixed assets'!$U$2:$U$1000=Costs!$A690)*('Fixed assets'!$R$2:$R$1000))","v":0},{"$f":"SUMPRODUCT(('Fixed assets'!$R$2:$R$1000)*('Fixed assets'!$P$2:$P$1000<$A690)*('Fixed assets'!$Q$2:$Q$1000=Costs!H$617))-SUMPRODUCT(('Fixed assets'!$S$2:$S$1000)*('Fixed assets'!$P$2:$P$1000<Costs!$A690)*('Fixed assets'!$Q$2:$Q$1000=Costs!H$617))-SUMPRODUCT(('Fixed assets'!$Q$2:$Q$1000=Costs!H$617)*('Fixed assets'!$U$2:$U$1000=Costs!$A690)*('Fixed assets'!$S$2:$S$1000))+SUMPRODUCT(('Fixed assets'!$Q$2:$Q$1000=Costs!H$617)*('Fixed assets'!$P$2:$P$1000=Costs!$A690)*('Fixed assets'!$U$2:$U$1000=Costs!$A690)*('Fixed assets'!$R$2:$R$1000))","v":0},{"$f":"SUMPRODUCT(('Fixed assets'!$R$2:$R$1000)*('Fixed assets'!$P$2:$P$1000<$A690)*('Fixed assets'!$Q$2:$Q$1000=Costs!I$617))-SUMPRODUCT(('Fixed assets'!$S$2:$S$1000)*('Fixed assets'!$P$2:$P$1000<Costs!$A690)*('Fixed assets'!$Q$2:$Q$1000=Costs!I$617))-SUMPRODUCT(('Fixed assets'!$Q$2:$Q$1000=Costs!I$617)*('Fixed assets'!$U$2:$U$1000=Costs!$A690)*('Fixed assets'!$S$2:$S$1000))+SUMPRODUCT(('Fixed assets'!$Q$2:$Q$1000=Costs!I$617)*('Fixed assets'!$P$2:$P$1000=Costs!$A690)*('Fixed assets'!$U$2:$U$1000=Costs!$A690)*('Fixed assets'!$R$2:$R$1000))","v":0},{"$f":"SUMPRODUCT(('Fixed assets'!$R$2:$R$1000)*('Fixed assets'!$P$2:$P$1000<$A690)*('Fixed assets'!$Q$2:$Q$1000=Costs!J$617))-SUMPRODUCT(('Fixed assets'!$S$2:$S$1000)*('Fixed assets'!$P$2:$P$1000<Costs!$A690)*('Fixed assets'!$Q$2:$Q$1000=Costs!J$617))-SUMPRODUCT(('Fixed assets'!$Q$2:$Q$1000=Costs!J$617)*('Fixed assets'!$U$2:$U$1000=Costs!$A690)*('Fixed assets'!$S$2:$S$1000))+SUMPRODUCT(('Fixed assets'!$Q$2:$Q$1000=Costs!J$617)*('Fixed assets'!$P$2:$P$1000=Costs!$A690)*('Fixed assets'!$U$2:$U$1000=Costs!$A690)*('Fixed assets'!$R$2:$R$1000))","v":0},{"$f":"SUMPRODUCT(('Fixed assets'!$R$2:$R$1000)*('Fixed assets'!$P$2:$P$1000<$A690)*('Fixed assets'!$Q$2:$Q$1000=Costs!K$617))-SUMPRODUCT(('Fixed assets'!$S$2:$S$1000)*('Fixed assets'!$P$2:$P$1000<Costs!$A690)*('Fixed assets'!$Q$2:$Q$1000=Costs!K$617))-SUMPRODUCT(('Fixed assets'!$Q$2:$Q$1000=Costs!K$617)*('Fixed assets'!$U$2:$U$1000=Costs!$A690)*('Fixed assets'!$S$2:$S$1000))+SUMPRODUCT(('Fixed assets'!$Q$2:$Q$1000=Costs!K$617)*('Fixed assets'!$P$2:$P$1000=Costs!$A690)*('Fixed assets'!$U$2:$U$1000=Costs!$A690)*('Fixed assets'!$R$2:$R$1000))","v":0},{"$f":"SUMPRODUCT(('Fixed assets'!$R$2:$R$1000)*('Fixed assets'!$P$2:$P$1000<$A690)*('Fixed assets'!$Q$2:$Q$1000=Costs!L$617))-SUMPRODUCT(('Fixed assets'!$S$2:$S$1000)*('Fixed assets'!$P$2:$P$1000<Costs!$A690)*('Fixed assets'!$Q$2:$Q$1000=Costs!L$617))-SUMPRODUCT(('Fixed assets'!$Q$2:$Q$1000=Costs!L$617)*('Fixed assets'!$U$2:$U$1000=Costs!$A690)*('Fixed assets'!$S$2:$S$1000))+SUMPRODUCT(('Fixed assets'!$Q$2:$Q$1000=Costs!L$617)*('Fixed assets'!$P$2:$P$1000=Costs!$A690)*('Fixed assets'!$U$2:$U$1000=Costs!$A690)*('Fixed assets'!$R$2:$R$1000))","v":0},{"$f":"SUMPRODUCT(('Fixed assets'!$R$2:$R$1000)*('Fixed assets'!$P$2:$P$1000<$A690)*('Fixed assets'!$Q$2:$Q$1000=Costs!M$617))-SUMPRODUCT(('Fixed assets'!$S$2:$S$1000)*('Fixed assets'!$P$2:$P$1000<Costs!$A690)*('Fixed assets'!$Q$2:$Q$1000=Costs!M$617))-SUMPRODUCT(('Fixed assets'!$Q$2:$Q$1000=Costs!M$617)*('Fixed assets'!$U$2:$U$1000=Costs!$A690)*('Fixed assets'!$S$2:$S$1000))+SUMPRODUCT(('Fixed assets'!$Q$2:$Q$1000=Costs!M$617)*('Fixed assets'!$P$2:$P$1000=Costs!$A690)*('Fixed assets'!$U$2:$U$1000=Costs!$A690)*('Fixed assets'!$R$2:$R$1000))","v":0},{"$f":"SUMPRODUCT(('Fixed assets'!$R$2:$R$1000)*('Fixed assets'!$P$2:$P$1000<$A690)*('Fixed assets'!$Q$2:$Q$1000=Costs!N$617))-SUMPRODUCT(('Fixed assets'!$S$2:$S$1000)*('Fixed assets'!$P$2:$P$1000<Costs!$A690)*('Fixed assets'!$Q$2:$Q$1000=Costs!N$617))-SUMPRODUCT(('Fixed assets'!$Q$2:$Q$1000=Costs!N$617)*('Fixed assets'!$U$2:$U$1000=Costs!$A690)*('Fixed assets'!$S$2:$S$1000))+SUMPRODUCT(('Fixed assets'!$Q$2:$Q$1000=Costs!N$617)*('Fixed assets'!$P$2:$P$1000=Costs!$A690)*('Fixed assets'!$U$2:$U$1000=Costs!$A690)*('Fixed assets'!$R$2:$R$1000))","v":0},{"$f":"SUMPRODUCT(('Fixed assets'!$R$2:$R$1000)*('Fixed assets'!$P$2:$P$1000<$A690)*('Fixed assets'!$Q$2:$Q$1000=Costs!O$617))-SUMPRODUCT(('Fixed assets'!$S$2:$S$1000)*('Fixed assets'!$P$2:$P$1000<Costs!$A690)*('Fixed assets'!$Q$2:$Q$1000=Costs!O$617))-SUMPRODUCT(('Fixed assets'!$Q$2:$Q$1000=Costs!O$617)*('Fixed assets'!$U$2:$U$1000=Costs!$A690)*('Fixed assets'!$S$2:$S$1000))+SUMPRODUCT(('Fixed assets'!$Q$2:$Q$1000=Costs!O$617)*('Fixed assets'!$P$2:$P$1000=Costs!$A690)*('Fixed assets'!$U$2:$U$1000=Costs!$A690)*('Fixed assets'!$R$2:$R$1000))","v":0},{"$f":"SUMPRODUCT(('Fixed assets'!$R$2:$R$1000)*('Fixed assets'!$P$2:$P$1000<$A690)*('Fixed assets'!$Q$2:$Q$1000=Costs!P$617))-SUMPRODUCT(('Fixed assets'!$S$2:$S$1000)*('Fixed assets'!$P$2:$P$1000<Costs!$A690)*('Fixed assets'!$Q$2:$Q$1000=Costs!P$617))-SUMPRODUCT(('Fixed assets'!$Q$2:$Q$1000=Costs!P$617)*('Fixed assets'!$U$2:$U$1000=Costs!$A690)*('Fixed assets'!$S$2:$S$1000))+SUMPRODUCT(('Fixed assets'!$Q$2:$Q$1000=Costs!P$617)*('Fixed assets'!$P$2:$P$1000=Costs!$A690)*('Fixed assets'!$U$2:$U$1000=Costs!$A690)*('Fixed assets'!$R$2:$R$1000))","v":0},{"$f":"SUMPRODUCT(('Fixed assets'!$R$2:$R$1000)*('Fixed assets'!$P$2:$P$1000<$A690)*('Fixed assets'!$Q$2:$Q$1000=Costs!Q$617))-SUMPRODUCT(('Fixed assets'!$S$2:$S$1000)*('Fixed assets'!$P$2:$P$1000<Costs!$A690)*('Fixed assets'!$Q$2:$Q$1000=Costs!Q$617))-SUMPRODUCT(('Fixed assets'!$Q$2:$Q$1000=Costs!Q$617)*('Fixed assets'!$U$2:$U$1000=Costs!$A690)*('Fixed assets'!$S$2:$S$1000))+SUMPRODUCT(('Fixed assets'!$Q$2:$Q$1000=Costs!Q$617)*('Fixed assets'!$P$2:$P$1000=Costs!$A690)*('Fixed assets'!$U$2:$U$1000=Costs!$A690)*('Fixed assets'!$R$2:$R$1000))","v":0},{"$f":"SUMPRODUCT(('Fixed assets'!$R$2:$R$1000)*('Fixed assets'!$P$2:$P$1000<$A690)*('Fixed assets'!$Q$2:$Q$1000=Costs!R$617))-SUMPRODUCT(('Fixed assets'!$S$2:$S$1000)*('Fixed assets'!$P$2:$P$1000<Costs!$A690)*('Fixed assets'!$Q$2:$Q$1000=Costs!R$617))-SUMPRODUCT(('Fixed assets'!$Q$2:$Q$1000=Costs!R$617)*('Fixed assets'!$U$2:$U$1000=Costs!$A690)*('Fixed assets'!$S$2:$S$1000))+SUMPRODUCT(('Fixed assets'!$Q$2:$Q$1000=Costs!R$617)*('Fixed assets'!$P$2:$P$1000=Costs!$A690)*('Fixed assets'!$U$2:$U$1000=Costs!$A690)*('Fixed assets'!$R$2:$R$1000))","v":0},{"$f":"SUMPRODUCT(('Fixed assets'!$R$2:$R$1000)*('Fixed assets'!$P$2:$P$1000<$A690)*('Fixed assets'!$Q$2:$Q$1000=Costs!S$617))-SUMPRODUCT(('Fixed assets'!$S$2:$S$1000)*('Fixed assets'!$P$2:$P$1000<Costs!$A690)*('Fixed assets'!$Q$2:$Q$1000=Costs!S$617))-SUMPRODUCT(('Fixed assets'!$Q$2:$Q$1000=Costs!S$617)*('Fixed assets'!$U$2:$U$1000=Costs!$A690)*('Fixed assets'!$S$2:$S$1000))+SUMPRODUCT(('Fixed assets'!$Q$2:$Q$1000=Costs!S$617)*('Fixed assets'!$P$2:$P$1000=Costs!$A690)*('Fixed assets'!$U$2:$U$1000=Costs!$A690)*('Fixed assets'!$R$2:$R$1000))","v":0},{"$f":"SUMPRODUCT(('Fixed assets'!$R$2:$R$1000)*('Fixed assets'!$P$2:$P$1000<$A690)*('Fixed assets'!$Q$2:$Q$1000=Costs!T$617))-SUMPRODUCT(('Fixed assets'!$S$2:$S$1000)*('Fixed assets'!$P$2:$P$1000<Costs!$A690)*('Fixed assets'!$Q$2:$Q$1000=Costs!T$617))-SUMPRODUCT(('Fixed assets'!$Q$2:$Q$1000=Costs!T$617)*('Fixed assets'!$U$2:$U$1000=Costs!$A690)*('Fixed assets'!$S$2:$S$1000))+SUMPRODUCT(('Fixed assets'!$Q$2:$Q$1000=Costs!T$617)*('Fixed assets'!$P$2:$P$1000=Costs!$A690)*('Fixed assets'!$U$2:$U$1000=Costs!$A690)*('Fixed assets'!$R$2:$R$1000))","v":0},{"$f":"SUMPRODUCT(('Fixed assets'!$R$2:$R$1000)*('Fixed assets'!$P$2:$P$1000<$A690)*('Fixed assets'!$Q$2:$Q$1000=Costs!U$617))-SUMPRODUCT(('Fixed assets'!$S$2:$S$1000)*('Fixed assets'!$P$2:$P$1000<Costs!$A690)*('Fixed assets'!$Q$2:$Q$1000=Costs!U$617))-SUMPRODUCT(('Fixed assets'!$Q$2:$Q$1000=Costs!U$617)*('Fixed assets'!$U$2:$U$1000=Costs!$A690)*('Fixed assets'!$S$2:$S$1000))+SUMPRODUCT(('Fixed assets'!$Q$2:$Q$1000=Costs!U$617)*('Fixed assets'!$P$2:$P$1000=Costs!$A690)*('Fixed assets'!$U$2:$U$1000=Costs!$A690)*('Fixed assets'!$R$2:$R$1000))","v":0},{"$f":"SUMPRODUCT(('Fixed assets'!$R$2:$R$1000)*('Fixed assets'!$P$2:$P$1000<$A690)*('Fixed assets'!$Q$2:$Q$1000=Costs!V$617))-SUMPRODUCT(('Fixed assets'!$S$2:$S$1000)*('Fixed assets'!$P$2:$P$1000<Costs!$A690)*('Fixed assets'!$Q$2:$Q$1000=Costs!V$617))-SUMPRODUCT(('Fixed assets'!$Q$2:$Q$1000=Costs!V$617)*('Fixed assets'!$U$2:$U$1000=Costs!$A690)*('Fixed assets'!$S$2:$S$1000))+SUMPRODUCT(('Fixed assets'!$Q$2:$Q$1000=Costs!V$617)*('Fixed assets'!$P$2:$P$1000=Costs!$A690)*('Fixed assets'!$U$2:$U$1000=Costs!$A690)*('Fixed assets'!$R$2:$R$1000))","v":0},{"$f":"SUMPRODUCT(('Fixed assets'!$R$2:$R$1000)*('Fixed assets'!$P$2:$P$1000<$A690)*('Fixed assets'!$Q$2:$Q$1000=Costs!W$617))-SUMPRODUCT(('Fixed assets'!$S$2:$S$1000)*('Fixed assets'!$P$2:$P$1000<Costs!$A690)*('Fixed assets'!$Q$2:$Q$1000=Costs!W$617))-SUMPRODUCT(('Fixed assets'!$Q$2:$Q$1000=Costs!W$617)*('Fixed assets'!$U$2:$U$1000=Costs!$A690)*('Fixed assets'!$S$2:$S$1000))+SUMPRODUCT(('Fixed assets'!$Q$2:$Q$1000=Costs!W$617)*('Fixed assets'!$P$2:$P$1000=Costs!$A690)*('Fixed assets'!$U$2:$U$1000=Costs!$A690)*('Fixed assets'!$R$2:$R$1000))","v":0},{"$f":"SUMPRODUCT(('Fixed assets'!$R$2:$R$1000)*('Fixed assets'!$P$2:$P$1000<$A690)*('Fixed assets'!$Q$2:$Q$1000=Costs!X$617))-SUMPRODUCT(('Fixed assets'!$S$2:$S$1000)*('Fixed assets'!$P$2:$P$1000<Costs!$A690)*('Fixed assets'!$Q$2:$Q$1000=Costs!X$617))-SUMPRODUCT(('Fixed assets'!$Q$2:$Q$1000=Costs!X$617)*('Fixed assets'!$U$2:$U$1000=Costs!$A690)*('Fixed assets'!$S$2:$S$1000))+SUMPRODUCT(('Fixed assets'!$Q$2:$Q$1000=Costs!X$617)*('Fixed assets'!$P$2:$P$1000=Costs!$A690)*('Fixed assets'!$U$2:$U$1000=Costs!$A690)*('Fixed assets'!$R$2:$R$1000))","v":0},{"$f":"SUMPRODUCT(('Fixed assets'!$R$2:$R$1000)*('Fixed assets'!$P$2:$P$1000<$A690)*('Fixed assets'!$Q$2:$Q$1000=Costs!Y$617))-SUMPRODUCT(('Fixed assets'!$S$2:$S$1000)*('Fixed assets'!$P$2:$P$1000<Costs!$A690)*('Fixed assets'!$Q$2:$Q$1000=Costs!Y$617))-SUMPRODUCT(('Fixed assets'!$Q$2:$Q$1000=Costs!Y$617)*('Fixed assets'!$U$2:$U$1000=Costs!$A690)*('Fixed assets'!$S$2:$S$1000))+SUMPRODUCT(('Fixed assets'!$Q$2:$Q$1000=Costs!Y$617)*('Fixed assets'!$P$2:$P$1000=Costs!$A690)*('Fixed assets'!$U$2:$U$1000=Costs!$A690)*('Fixed assets'!$R$2:$R$1000))","v":0},{"$f":"SUMPRODUCT(('Fixed assets'!$R$2:$R$1000)*('Fixed assets'!$P$2:$P$1000<$A690)*('Fixed assets'!$Q$2:$Q$1000=Costs!Z$617))-SUMPRODUCT(('Fixed assets'!$S$2:$S$1000)*('Fixed assets'!$P$2:$P$1000<Costs!$A690)*('Fixed assets'!$Q$2:$Q$1000=Costs!Z$617))-SUMPRODUCT(('Fixed assets'!$Q$2:$Q$1000=Costs!Z$617)*('Fixed assets'!$U$2:$U$1000=Costs!$A690)*('Fixed assets'!$S$2:$S$1000))+SUMPRODUCT(('Fixed assets'!$Q$2:$Q$1000=Costs!Z$617)*('Fixed assets'!$P$2:$P$1000=Costs!$A690)*('Fixed assets'!$U$2:$U$1000=Costs!$A690)*('Fixed assets'!$R$2:$R$1000))","v":0},{"$f":"SUMPRODUCT(('Fixed assets'!$R$2:$R$1000)*('Fixed assets'!$P$2:$P$1000<$A690)*('Fixed assets'!$Q$2:$Q$1000=Costs!AA$617))-SUMPRODUCT(('Fixed assets'!$S$2:$S$1000)*('Fixed assets'!$P$2:$P$1000<Costs!$A690)*('Fixed assets'!$Q$2:$Q$1000=Costs!AA$617))-SUMPRODUCT(('Fixed assets'!$Q$2:$Q$1000=Costs!AA$617)*('Fixed assets'!$U$2:$U$1000=Costs!$A690)*('Fixed assets'!$S$2:$S$1000))+SUMPRODUCT(('Fixed assets'!$Q$2:$Q$1000=Costs!AA$617)*('Fixed assets'!$P$2:$P$1000=Costs!$A690)*('Fixed assets'!$U$2:$U$1000=Costs!$A690)*('Fixed assets'!$R$2:$R$1000))","v":0},{"$f":"SUMPRODUCT(('Fixed assets'!$R$2:$R$1000)*('Fixed assets'!$P$2:$P$1000<$A690)*('Fixed assets'!$Q$2:$Q$1000=Costs!AB$617))-SUMPRODUCT(('Fixed assets'!$S$2:$S$1000)*('Fixed assets'!$P$2:$P$1000<Costs!$A690)*('Fixed assets'!$Q$2:$Q$1000=Costs!AB$617))-SUMPRODUCT(('Fixed assets'!$Q$2:$Q$1000=Costs!AB$617)*('Fixed assets'!$U$2:$U$1000=Costs!$A690)*('Fixed assets'!$S$2:$S$1000))+SUMPRODUCT(('Fixed assets'!$Q$2:$Q$1000=Costs!AB$617)*('Fixed assets'!$P$2:$P$1000=Costs!$A690)*('Fixed assets'!$U$2:$U$1000=Costs!$A690)*('Fixed assets'!$R$2:$R$1000))","v":0},{"$f":"SUMPRODUCT(('Fixed assets'!$R$2:$R$1000)*('Fixed assets'!$P$2:$P$1000<$A690)*('Fixed assets'!$Q$2:$Q$1000=Costs!AC$617))-SUMPRODUCT(('Fixed assets'!$S$2:$S$1000)*('Fixed assets'!$P$2:$P$1000<Costs!$A690)*('Fixed assets'!$Q$2:$Q$1000=Costs!AC$617))-SUMPRODUCT(('Fixed assets'!$Q$2:$Q$1000=Costs!AC$617)*('Fixed assets'!$U$2:$U$1000=Costs!$A690)*('Fixed assets'!$S$2:$S$1000))+SUMPRODUCT(('Fixed assets'!$Q$2:$Q$1000=Costs!AC$617)*('Fixed assets'!$P$2:$P$1000=Costs!$A690)*('Fixed assets'!$U$2:$U$1000=Costs!$A690)*('Fixed assets'!$R$2:$R$1000))","v":0},{"$f":"SUMPRODUCT(('Fixed assets'!$R$2:$R$1000)*('Fixed assets'!$P$2:$P$1000<$A690)*('Fixed assets'!$Q$2:$Q$1000=Costs!AD$617))-SUMPRODUCT(('Fixed assets'!$S$2:$S$1000)*('Fixed assets'!$P$2:$P$1000<Costs!$A690)*('Fixed assets'!$Q$2:$Q$1000=Costs!AD$617))-SUMPRODUCT(('Fixed assets'!$Q$2:$Q$1000=Costs!AD$617)*('Fixed assets'!$U$2:$U$1000=Costs!$A690)*('Fixed assets'!$S$2:$S$1000))+SUMPRODUCT(('Fixed assets'!$Q$2:$Q$1000=Costs!AD$617)*('Fixed assets'!$P$2:$P$1000=Costs!$A690)*('Fixed assets'!$U$2:$U$1000=Costs!$A690)*('Fixed assets'!$R$2:$R$1000))","v":0},{"$f":"SUMPRODUCT(('Fixed assets'!$R$2:$R$1000)*('Fixed assets'!$P$2:$P$1000<$A690)*('Fixed assets'!$Q$2:$Q$1000=Costs!AE$617))-SUMPRODUCT(('Fixed assets'!$S$2:$S$1000)*('Fixed assets'!$P$2:$P$1000<Costs!$A690)*('Fixed assets'!$Q$2:$Q$1000=Costs!AE$617))-SUMPRODUCT(('Fixed assets'!$Q$2:$Q$1000=Costs!AE$617)*('Fixed assets'!$U$2:$U$1000=Costs!$A690)*('Fixed assets'!$S$2:$S$1000))+SUMPRODUCT(('Fixed assets'!$Q$2:$Q$1000=Costs!AE$617)*('Fixed assets'!$P$2:$P$1000=Costs!$A690)*('Fixed assets'!$U$2:$U$1000=Costs!$A690)*('Fixed assets'!$R$2:$R$1000))","v":0},{"$f":"SUMPRODUCT(('Fixed assets'!$R$2:$R$1000)*('Fixed assets'!$P$2:$P$1000<$A690)*('Fixed assets'!$Q$2:$Q$1000=Costs!AF$617))-SUMPRODUCT(('Fixed assets'!$S$2:$S$1000)*('Fixed assets'!$P$2:$P$1000<Costs!$A690)*('Fixed assets'!$Q$2:$Q$1000=Costs!AF$617))-SUMPRODUCT(('Fixed assets'!$Q$2:$Q$1000=Costs!AF$617)*('Fixed assets'!$U$2:$U$1000=Costs!$A690)*('Fixed assets'!$S$2:$S$1000))+SUMPRODUCT(('Fixed assets'!$Q$2:$Q$1000=Costs!AF$617)*('Fixed assets'!$P$2:$P$1000=Costs!$A690)*('Fixed assets'!$U$2:$U$1000=Costs!$A690)*('Fixed assets'!$R$2:$R$1000))","v":0},{"$f":"SUMPRODUCT(('Fixed assets'!$R$2:$R$1000)*('Fixed assets'!$P$2:$P$1000<$A690)*('Fixed assets'!$Q$2:$Q$1000=Costs!AG$617))-SUMPRODUCT(('Fixed assets'!$S$2:$S$1000)*('Fixed assets'!$P$2:$P$1000<Costs!$A690)*('Fixed assets'!$Q$2:$Q$1000=Costs!AG$617))-SUMPRODUCT(('Fixed assets'!$Q$2:$Q$1000=Costs!AG$617)*('Fixed assets'!$U$2:$U$1000=Costs!$A690)*('Fixed assets'!$S$2:$S$1000))+SUMPRODUCT(('Fixed assets'!$Q$2:$Q$1000=Costs!AG$617)*('Fixed assets'!$P$2:$P$1000=Costs!$A690)*('Fixed assets'!$U$2:$U$1000=Costs!$A690)*('Fixed assets'!$R$2:$R$1000))","v":0},{"$f":"SUMPRODUCT(('Fixed assets'!$R$2:$R$1000)*('Fixed assets'!$P$2:$P$1000<$A690)*('Fixed assets'!$Q$2:$Q$1000=Costs!AH$617))-SUMPRODUCT(('Fixed assets'!$S$2:$S$1000)*('Fixed assets'!$P$2:$P$1000<Costs!$A690)*('Fixed assets'!$Q$2:$Q$1000=Costs!AH$617))-SUMPRODUCT(('Fixed assets'!$Q$2:$Q$1000=Costs!AH$617)*('Fixed assets'!$U$2:$U$1000=Costs!$A690)*('Fixed assets'!$S$2:$S$1000))+SUMPRODUCT(('Fixed assets'!$Q$2:$Q$1000=Costs!AH$617)*('Fixed assets'!$P$2:$P$1000=Costs!$A690)*('Fixed assets'!$U$2:$U$1000=Costs!$A690)*('Fixed assets'!$R$2:$R$1000))","v":0},{"$f":"SUMPRODUCT(('Fixed assets'!$R$2:$R$1000)*('Fixed assets'!$P$2:$P$1000<$A690)*('Fixed assets'!$Q$2:$Q$1000=Costs!AI$617))-SUMPRODUCT(('Fixed assets'!$S$2:$S$1000)*('Fixed assets'!$P$2:$P$1000<Costs!$A690)*('Fixed assets'!$Q$2:$Q$1000=Costs!AI$617))-SUMPRODUCT(('Fixed assets'!$Q$2:$Q$1000=Costs!AI$617)*('Fixed assets'!$U$2:$U$1000=Costs!$A690)*('Fixed assets'!$S$2:$S$1000))+SUMPRODUCT(('Fixed assets'!$Q$2:$Q$1000=Costs!AI$617)*('Fixed assets'!$P$2:$P$1000=Costs!$A690)*('Fixed assets'!$U$2:$U$1000=Costs!$A690)*('Fixed assets'!$R$2:$R$1000))","v":0},{"$f":"SUMPRODUCT(('Fixed assets'!$R$2:$R$1000)*('Fixed assets'!$P$2:$P$1000<$A690)*('Fixed assets'!$Q$2:$Q$1000=Costs!AJ$617))-SUMPRODUCT(('Fixed assets'!$S$2:$S$1000)*('Fixed assets'!$P$2:$P$1000<Costs!$A690)*('Fixed assets'!$Q$2:$Q$1000=Costs!AJ$617))-SUMPRODUCT(('Fixed assets'!$Q$2:$Q$1000=Costs!AJ$617)*('Fixed assets'!$U$2:$U$1000=Costs!$A690)*('Fixed assets'!$S$2:$S$1000))+SUMPRODUCT(('Fixed assets'!$Q$2:$Q$1000=Costs!AJ$617)*('Fixed assets'!$P$2:$P$1000=Costs!$A690)*('Fixed assets'!$U$2:$U$1000=Costs!$A690)*('Fixed assets'!$R$2:$R$1000))","v":0},{"$f":"SUMPRODUCT(('Fixed assets'!$R$2:$R$1000)*('Fixed assets'!$P$2:$P$1000<$A690)*('Fixed assets'!$Q$2:$Q$1000=Costs!AK$617))-SUMPRODUCT(('Fixed assets'!$S$2:$S$1000)*('Fixed assets'!$P$2:$P$1000<Costs!$A690)*('Fixed assets'!$Q$2:$Q$1000=Costs!AK$617))-SUMPRODUCT(('Fixed assets'!$Q$2:$Q$1000=Costs!AK$617)*('Fixed assets'!$U$2:$U$1000=Costs!$A690)*('Fixed assets'!$S$2:$S$1000))+SUMPRODUCT(('Fixed assets'!$Q$2:$Q$1000=Costs!AK$617)*('Fixed assets'!$P$2:$P$1000=Costs!$A690)*('Fixed assets'!$U$2:$U$1000=Costs!$A690)*('Fixed assets'!$R$2:$R$1000))","v":0},{"$f":"SUMPRODUCT(('Fixed assets'!$R$2:$R$1000)*('Fixed assets'!$P$2:$P$1000<$A690)*('Fixed assets'!$Q$2:$Q$1000=Costs!AL$617))-SUMPRODUCT(('Fixed assets'!$S$2:$S$1000)*('Fixed assets'!$P$2:$P$1000<Costs!$A690)*('Fixed assets'!$Q$2:$Q$1000=Costs!AL$617))-SUMPRODUCT(('Fixed assets'!$Q$2:$Q$1000=Costs!AL$617)*('Fixed assets'!$U$2:$U$1000=Costs!$A690)*('Fixed assets'!$S$2:$S$1000))+SUMPRODUCT(('Fixed assets'!$Q$2:$Q$1000=Costs!AL$617)*('Fixed assets'!$P$2:$P$1000=Costs!$A690)*('Fixed assets'!$U$2:$U$1000=Costs!$A690)*('Fixed assets'!$R$2:$R$1000))","v":0},{"$f":"SUMPRODUCT(('Fixed assets'!$R$2:$R$1000)*('Fixed assets'!$P$2:$P$1000<$A690)*('Fixed assets'!$Q$2:$Q$1000=Costs!AM$617))-SUMPRODUCT(('Fixed assets'!$S$2:$S$1000)*('Fixed assets'!$P$2:$P$1000<Costs!$A690)*('Fixed assets'!$Q$2:$Q$1000=Costs!AM$617))-SUMPRODUCT(('Fixed assets'!$Q$2:$Q$1000=Costs!AM$617)*('Fixed assets'!$U$2:$U$1000=Costs!$A690)*('Fixed assets'!$S$2:$S$1000))+SUMPRODUCT(('Fixed assets'!$Q$2:$Q$1000=Costs!AM$617)*('Fixed assets'!$P$2:$P$1000=Costs!$A690)*('Fixed assets'!$U$2:$U$1000=Costs!$A690)*('Fixed assets'!$R$2:$R$1000))","v":0},{"$f":"SUMPRODUCT(('Fixed assets'!$R$2:$R$1000)*('Fixed assets'!$P$2:$P$1000<$A690)*('Fixed assets'!$Q$2:$Q$1000=Costs!AN$617))-SUMPRODUCT(('Fixed assets'!$S$2:$S$1000)*('Fixed assets'!$P$2:$P$1000<Costs!$A690)*('Fixed assets'!$Q$2:$Q$1000=Costs!AN$617))-SUMPRODUCT(('Fixed assets'!$Q$2:$Q$1000=Costs!AN$617)*('Fixed assets'!$U$2:$U$1000=Costs!$A690)*('Fixed assets'!$S$2:$S$1000))+SUMPRODUCT(('Fixed assets'!$Q$2:$Q$1000=Costs!AN$617)*('Fixed assets'!$P$2:$P$1000=Costs!$A690)*('Fixed assets'!$U$2:$U$1000=Costs!$A690)*('Fixed assets'!$R$2:$R$1000))","v":0},{"$f":"SUMPRODUCT(('Fixed assets'!$R$2:$R$1000)*('Fixed assets'!$P$2:$P$1000<$A690)*('Fixed assets'!$Q$2:$Q$1000=Costs!AO$617))-SUMPRODUCT(('Fixed assets'!$S$2:$S$1000)*('Fixed assets'!$P$2:$P$1000<Costs!$A690)*('Fixed assets'!$Q$2:$Q$1000=Costs!AO$617))-SUMPRODUCT(('Fixed assets'!$Q$2:$Q$1000=Costs!AO$617)*('Fixed assets'!$U$2:$U$1000=Costs!$A690)*('Fixed assets'!$S$2:$S$1000))+SUMPRODUCT(('Fixed assets'!$Q$2:$Q$1000=Costs!AO$617)*('Fixed assets'!$P$2:$P$1000=Costs!$A690)*('Fixed assets'!$U$2:$U$1000=Costs!$A690)*('Fixed assets'!$R$2:$R$1000))","v":0},{"$f":"SUMPRODUCT(('Fixed assets'!$R$2:$R$1000)*('Fixed assets'!$P$2:$P$1000<$A690)*('Fixed assets'!$Q$2:$Q$1000=Costs!AP$617))-SUMPRODUCT(('Fixed assets'!$S$2:$S$1000)*('Fixed assets'!$P$2:$P$1000<Costs!$A690)*('Fixed assets'!$Q$2:$Q$1000=Costs!AP$617))-SUMPRODUCT(('Fixed assets'!$Q$2:$Q$1000=Costs!AP$617)*('Fixed assets'!$U$2:$U$1000=Costs!$A690)*('Fixed assets'!$S$2:$S$1000))+SUMPRODUCT(('Fixed assets'!$Q$2:$Q$1000=Costs!AP$617)*('Fixed assets'!$P$2:$P$1000=Costs!$A690)*('Fixed assets'!$U$2:$U$1000=Costs!$A690)*('Fixed assets'!$R$2:$R$1000))","v":0},{"$f":"SUMPRODUCT(('Fixed assets'!$R$2:$R$1000)*('Fixed assets'!$P$2:$P$1000<$A690)*('Fixed assets'!$Q$2:$Q$1000=Costs!AQ$617))-SUMPRODUCT(('Fixed assets'!$S$2:$S$1000)*('Fixed assets'!$P$2:$P$1000<Costs!$A690)*('Fixed assets'!$Q$2:$Q$1000=Costs!AQ$617))-SUMPRODUCT(('Fixed assets'!$Q$2:$Q$1000=Costs!AQ$617)*('Fixed assets'!$U$2:$U$1000=Costs!$A690)*('Fixed assets'!$S$2:$S$1000))+SUMPRODUCT(('Fixed assets'!$Q$2:$Q$1000=Costs!AQ$617)*('Fixed assets'!$P$2:$P$1000=Costs!$A690)*('Fixed assets'!$U$2:$U$1000=Costs!$A690)*('Fixed assets'!$R$2:$R$1000))","v":0}]
[2088,0,{"$f":"SUMPRODUCT(('Fixed assets'!$R$2:$R$1000)*('Fixed assets'!$P$2:$P$1000<$A691)*('Fixed assets'!$Q$2:$Q$1000=Costs!C$617))-SUMPRODUCT(('Fixed assets'!$S$2:$S$1000)*('Fixed assets'!$P$2:$P$1000<Costs!$A691)*('Fixed assets'!$Q$2:$Q$1000=Costs!C$617))-SUMPRODUCT(('Fixed assets'!$Q$2:$Q$1000=Costs!C$617)*('Fixed assets'!$U$2:$U$1000=Costs!$A691)*('Fixed assets'!$S$2:$S$1000))+SUMPRODUCT(('Fixed assets'!$Q$2:$Q$1000=Costs!C$617)*('Fixed assets'!$P$2:$P$1000=Costs!$A691)*('Fixed assets'!$U$2:$U$1000=Costs!$A691)*('Fixed assets'!$R$2:$R$1000))","v":0},{"$f":"SUMPRODUCT(('Fixed assets'!$R$2:$R$1000)*('Fixed assets'!$P$2:$P$1000<$A691)*('Fixed assets'!$Q$2:$Q$1000=Costs!D$617))-SUMPRODUCT(('Fixed assets'!$S$2:$S$1000)*('Fixed assets'!$P$2:$P$1000<Costs!$A691)*('Fixed assets'!$Q$2:$Q$1000=Costs!D$617))-SUMPRODUCT(('Fixed assets'!$Q$2:$Q$1000=Costs!D$617)*('Fixed assets'!$U$2:$U$1000=Costs!$A691)*('Fixed assets'!$S$2:$S$1000))+SUMPRODUCT(('Fixed assets'!$Q$2:$Q$1000=Costs!D$617)*('Fixed assets'!$P$2:$P$1000=Costs!$A691)*('Fixed assets'!$U$2:$U$1000=Costs!$A691)*('Fixed assets'!$R$2:$R$1000))","v":0},{"$f":"SUMPRODUCT(('Fixed assets'!$R$2:$R$1000)*('Fixed assets'!$P$2:$P$1000<$A691)*('Fixed assets'!$Q$2:$Q$1000=Costs!E$617))-SUMPRODUCT(('Fixed assets'!$S$2:$S$1000)*('Fixed assets'!$P$2:$P$1000<Costs!$A691)*('Fixed assets'!$Q$2:$Q$1000=Costs!E$617))-SUMPRODUCT(('Fixed assets'!$Q$2:$Q$1000=Costs!E$617)*('Fixed assets'!$U$2:$U$1000=Costs!$A691)*('Fixed assets'!$S$2:$S$1000))+SUMPRODUCT(('Fixed assets'!$Q$2:$Q$1000=Costs!E$617)*('Fixed assets'!$P$2:$P$1000=Costs!$A691)*('Fixed assets'!$U$2:$U$1000=Costs!$A691)*('Fixed assets'!$R$2:$R$1000))","v":0},{"$f":"SUMPRODUCT(('Fixed assets'!$R$2:$R$1000)*('Fixed assets'!$P$2:$P$1000<$A691)*('Fixed assets'!$Q$2:$Q$1000=Costs!F$617))-SUMPRODUCT(('Fixed assets'!$S$2:$S$1000)*('Fixed assets'!$P$2:$P$1000<Costs!$A691)*('Fixed assets'!$Q$2:$Q$1000=Costs!F$617))-SUMPRODUCT(('Fixed assets'!$Q$2:$Q$1000=Costs!F$617)*('Fixed assets'!$U$2:$U$1000=Costs!$A691)*('Fixed assets'!$S$2:$S$1000))+SUMPRODUCT(('Fixed assets'!$Q$2:$Q$1000=Costs!F$617)*('Fixed assets'!$P$2:$P$1000=Costs!$A691)*('Fixed assets'!$U$2:$U$1000=Costs!$A691)*('Fixed assets'!$R$2:$R$1000))","v":0},{"$f":"SUMPRODUCT(('Fixed assets'!$R$2:$R$1000)*('Fixed assets'!$P$2:$P$1000<$A691)*('Fixed assets'!$Q$2:$Q$1000=Costs!G$617))-SUMPRODUCT(('Fixed assets'!$S$2:$S$1000)*('Fixed assets'!$P$2:$P$1000<Costs!$A691)*('Fixed assets'!$Q$2:$Q$1000=Costs!G$617))-SUMPRODUCT(('Fixed assets'!$Q$2:$Q$1000=Costs!G$617)*('Fixed assets'!$U$2:$U$1000=Costs!$A691)*('Fixed assets'!$S$2:$S$1000))+SUMPRODUCT(('Fixed assets'!$Q$2:$Q$1000=Costs!G$617)*('Fixed assets'!$P$2:$P$1000=Costs!$A691)*('Fixed assets'!$U$2:$U$1000=Costs!$A691)*('Fixed assets'!$R$2:$R$1000))","v":0},{"$f":"SUMPRODUCT(('Fixed assets'!$R$2:$R$1000)*('Fixed assets'!$P$2:$P$1000<$A691)*('Fixed assets'!$Q$2:$Q$1000=Costs!H$617))-SUMPRODUCT(('Fixed assets'!$S$2:$S$1000)*('Fixed assets'!$P$2:$P$1000<Costs!$A691)*('Fixed assets'!$Q$2:$Q$1000=Costs!H$617))-SUMPRODUCT(('Fixed assets'!$Q$2:$Q$1000=Costs!H$617)*('Fixed assets'!$U$2:$U$1000=Costs!$A691)*('Fixed assets'!$S$2:$S$1000))+SUMPRODUCT(('Fixed assets'!$Q$2:$Q$1000=Costs!H$617)*('Fixed assets'!$P$2:$P$1000=Costs!$A691)*('Fixed assets'!$U$2:$U$1000=Costs!$A691)*('Fixed assets'!$R$2:$R$1000))","v":0},{"$f":"SUMPRODUCT(('Fixed assets'!$R$2:$R$1000)*('Fixed assets'!$P$2:$P$1000<$A691)*('Fixed assets'!$Q$2:$Q$1000=Costs!I$617))-SUMPRODUCT(('Fixed assets'!$S$2:$S$1000)*('Fixed assets'!$P$2:$P$1000<Costs!$A691)*('Fixed assets'!$Q$2:$Q$1000=Costs!I$617))-SUMPRODUCT(('Fixed assets'!$Q$2:$Q$1000=Costs!I$617)*('Fixed assets'!$U$2:$U$1000=Costs!$A691)*('Fixed assets'!$S$2:$S$1000))+SUMPRODUCT(('Fixed assets'!$Q$2:$Q$1000=Costs!I$617)*('Fixed assets'!$P$2:$P$1000=Costs!$A691)*('Fixed assets'!$U$2:$U$1000=Costs!$A691)*('Fixed assets'!$R$2:$R$1000))","v":0},{"$f":"SUMPRODUCT(('Fixed assets'!$R$2:$R$1000)*('Fixed assets'!$P$2:$P$1000<$A691)*('Fixed assets'!$Q$2:$Q$1000=Costs!J$617))-SUMPRODUCT(('Fixed assets'!$S$2:$S$1000)*('Fixed assets'!$P$2:$P$1000<Costs!$A691)*('Fixed assets'!$Q$2:$Q$1000=Costs!J$617))-SUMPRODUCT(('Fixed assets'!$Q$2:$Q$1000=Costs!J$617)*('Fixed assets'!$U$2:$U$1000=Costs!$A691)*('Fixed assets'!$S$2:$S$1000))+SUMPRODUCT(('Fixed assets'!$Q$2:$Q$1000=Costs!J$617)*('Fixed assets'!$P$2:$P$1000=Costs!$A691)*('Fixed assets'!$U$2:$U$1000=Costs!$A691)*('Fixed assets'!$R$2:$R$1000))","v":0},{"$f":"SUMPRODUCT(('Fixed assets'!$R$2:$R$1000)*('Fixed assets'!$P$2:$P$1000<$A691)*('Fixed assets'!$Q$2:$Q$1000=Costs!K$617))-SUMPRODUCT(('Fixed assets'!$S$2:$S$1000)*('Fixed assets'!$P$2:$P$1000<Costs!$A691)*('Fixed assets'!$Q$2:$Q$1000=Costs!K$617))-SUMPRODUCT(('Fixed assets'!$Q$2:$Q$1000=Costs!K$617)*('Fixed assets'!$U$2:$U$1000=Costs!$A691)*('Fixed assets'!$S$2:$S$1000))+SUMPRODUCT(('Fixed assets'!$Q$2:$Q$1000=Costs!K$617)*('Fixed assets'!$P$2:$P$1000=Costs!$A691)*('Fixed assets'!$U$2:$U$1000=Costs!$A691)*('Fixed assets'!$R$2:$R$1000))","v":0},{"$f":"SUMPRODUCT(('Fixed assets'!$R$2:$R$1000)*('Fixed assets'!$P$2:$P$1000<$A691)*('Fixed assets'!$Q$2:$Q$1000=Costs!L$617))-SUMPRODUCT(('Fixed assets'!$S$2:$S$1000)*('Fixed assets'!$P$2:$P$1000<Costs!$A691)*('Fixed assets'!$Q$2:$Q$1000=Costs!L$617))-SUMPRODUCT(('Fixed assets'!$Q$2:$Q$1000=Costs!L$617)*('Fixed assets'!$U$2:$U$1000=Costs!$A691)*('Fixed assets'!$S$2:$S$1000))+SUMPRODUCT(('Fixed assets'!$Q$2:$Q$1000=Costs!L$617)*('Fixed assets'!$P$2:$P$1000=Costs!$A691)*('Fixed assets'!$U$2:$U$1000=Costs!$A691)*('Fixed assets'!$R$2:$R$1000))","v":0},{"$f":"SUMPRODUCT(('Fixed assets'!$R$2:$R$1000)*('Fixed assets'!$P$2:$P$1000<$A691)*('Fixed assets'!$Q$2:$Q$1000=Costs!M$617))-SUMPRODUCT(('Fixed assets'!$S$2:$S$1000)*('Fixed assets'!$P$2:$P$1000<Costs!$A691)*('Fixed assets'!$Q$2:$Q$1000=Costs!M$617))-SUMPRODUCT(('Fixed assets'!$Q$2:$Q$1000=Costs!M$617)*('Fixed assets'!$U$2:$U$1000=Costs!$A691)*('Fixed assets'!$S$2:$S$1000))+SUMPRODUCT(('Fixed assets'!$Q$2:$Q$1000=Costs!M$617)*('Fixed assets'!$P$2:$P$1000=Costs!$A691)*('Fixed assets'!$U$2:$U$1000=Costs!$A691)*('Fixed assets'!$R$2:$R$1000))","v":0},{"$f":"SUMPRODUCT(('Fixed assets'!$R$2:$R$1000)*('Fixed assets'!$P$2:$P$1000<$A691)*('Fixed assets'!$Q$2:$Q$1000=Costs!N$617))-SUMPRODUCT(('Fixed assets'!$S$2:$S$1000)*('Fixed assets'!$P$2:$P$1000<Costs!$A691)*('Fixed assets'!$Q$2:$Q$1000=Costs!N$617))-SUMPRODUCT(('Fixed assets'!$Q$2:$Q$1000=Costs!N$617)*('Fixed assets'!$U$2:$U$1000=Costs!$A691)*('Fixed assets'!$S$2:$S$1000))+SUMPRODUCT(('Fixed assets'!$Q$2:$Q$1000=Costs!N$617)*('Fixed assets'!$P$2:$P$1000=Costs!$A691)*('Fixed assets'!$U$2:$U$1000=Costs!$A691)*('Fixed assets'!$R$2:$R$1000))","v":0},{"$f":"SUMPRODUCT(('Fixed assets'!$R$2:$R$1000)*('Fixed assets'!$P$2:$P$1000<$A691)*('Fixed assets'!$Q$2:$Q$1000=Costs!O$617))-SUMPRODUCT(('Fixed assets'!$S$2:$S$1000)*('Fixed assets'!$P$2:$P$1000<Costs!$A691)*('Fixed assets'!$Q$2:$Q$1000=Costs!O$617))-SUMPRODUCT(('Fixed assets'!$Q$2:$Q$1000=Costs!O$617)*('Fixed assets'!$U$2:$U$1000=Costs!$A691)*('Fixed assets'!$S$2:$S$1000))+SUMPRODUCT(('Fixed assets'!$Q$2:$Q$1000=Costs!O$617)*('Fixed assets'!$P$2:$P$1000=Costs!$A691)*('Fixed assets'!$U$2:$U$1000=Costs!$A691)*('Fixed assets'!$R$2:$R$1000))","v":0},{"$f":"SUMPRODUCT(('Fixed assets'!$R$2:$R$1000)*('Fixed assets'!$P$2:$P$1000<$A691)*('Fixed assets'!$Q$2:$Q$1000=Costs!P$617))-SUMPRODUCT(('Fixed assets'!$S$2:$S$1000)*('Fixed assets'!$P$2:$P$1000<Costs!$A691)*('Fixed assets'!$Q$2:$Q$1000=Costs!P$617))-SUMPRODUCT(('Fixed assets'!$Q$2:$Q$1000=Costs!P$617)*('Fixed assets'!$U$2:$U$1000=Costs!$A691)*('Fixed assets'!$S$2:$S$1000))+SUMPRODUCT(('Fixed assets'!$Q$2:$Q$1000=Costs!P$617)*('Fixed assets'!$P$2:$P$1000=Costs!$A691)*('Fixed assets'!$U$2:$U$1000=Costs!$A691)*('Fixed assets'!$R$2:$R$1000))","v":0},{"$f":"SUMPRODUCT(('Fixed assets'!$R$2:$R$1000)*('Fixed assets'!$P$2:$P$1000<$A691)*('Fixed assets'!$Q$2:$Q$1000=Costs!Q$617))-SUMPRODUCT(('Fixed assets'!$S$2:$S$1000)*('Fixed assets'!$P$2:$P$1000<Costs!$A691)*('Fixed assets'!$Q$2:$Q$1000=Costs!Q$617))-SUMPRODUCT(('Fixed assets'!$Q$2:$Q$1000=Costs!Q$617)*('Fixed assets'!$U$2:$U$1000=Costs!$A691)*('Fixed assets'!$S$2:$S$1000))+SUMPRODUCT(('Fixed assets'!$Q$2:$Q$1000=Costs!Q$617)*('Fixed assets'!$P$2:$P$1000=Costs!$A691)*('Fixed assets'!$U$2:$U$1000=Costs!$A691)*('Fixed assets'!$R$2:$R$1000))","v":0},{"$f":"SUMPRODUCT(('Fixed assets'!$R$2:$R$1000)*('Fixed assets'!$P$2:$P$1000<$A691)*('Fixed assets'!$Q$2:$Q$1000=Costs!R$617))-SUMPRODUCT(('Fixed assets'!$S$2:$S$1000)*('Fixed assets'!$P$2:$P$1000<Costs!$A691)*('Fixed assets'!$Q$2:$Q$1000=Costs!R$617))-SUMPRODUCT(('Fixed assets'!$Q$2:$Q$1000=Costs!R$617)*('Fixed assets'!$U$2:$U$1000=Costs!$A691)*('Fixed assets'!$S$2:$S$1000))+SUMPRODUCT(('Fixed assets'!$Q$2:$Q$1000=Costs!R$617)*('Fixed assets'!$P$2:$P$1000=Costs!$A691)*('Fixed assets'!$U$2:$U$1000=Costs!$A691)*('Fixed assets'!$R$2:$R$1000))","v":0},{"$f":"SUMPRODUCT(('Fixed assets'!$R$2:$R$1000)*('Fixed assets'!$P$2:$P$1000<$A691)*('Fixed assets'!$Q$2:$Q$1000=Costs!S$617))-SUMPRODUCT(('Fixed assets'!$S$2:$S$1000)*('Fixed assets'!$P$2:$P$1000<Costs!$A691)*('Fixed assets'!$Q$2:$Q$1000=Costs!S$617))-SUMPRODUCT(('Fixed assets'!$Q$2:$Q$1000=Costs!S$617)*('Fixed assets'!$U$2:$U$1000=Costs!$A691)*('Fixed assets'!$S$2:$S$1000))+SUMPRODUCT(('Fixed assets'!$Q$2:$Q$1000=Costs!S$617)*('Fixed assets'!$P$2:$P$1000=Costs!$A691)*('Fixed assets'!$U$2:$U$1000=Costs!$A691)*('Fixed assets'!$R$2:$R$1000))","v":0},{"$f":"SUMPRODUCT(('Fixed assets'!$R$2:$R$1000)*('Fixed assets'!$P$2:$P$1000<$A691)*('Fixed assets'!$Q$2:$Q$1000=Costs!T$617))-SUMPRODUCT(('Fixed assets'!$S$2:$S$1000)*('Fixed assets'!$P$2:$P$1000<Costs!$A691)*('Fixed assets'!$Q$2:$Q$1000=Costs!T$617))-SUMPRODUCT(('Fixed assets'!$Q$2:$Q$1000=Costs!T$617)*('Fixed assets'!$U$2:$U$1000=Costs!$A691)*('Fixed assets'!$S$2:$S$1000))+SUMPRODUCT(('Fixed assets'!$Q$2:$Q$1000=Costs!T$617)*('Fixed assets'!$P$2:$P$1000=Costs!$A691)*('Fixed assets'!$U$2:$U$1000=Costs!$A691)*('Fixed assets'!$R$2:$R$1000))","v":0},{"$f":"SUMPRODUCT(('Fixed assets'!$R$2:$R$1000)*('Fixed assets'!$P$2:$P$1000<$A691)*('Fixed assets'!$Q$2:$Q$1000=Costs!U$617))-SUMPRODUCT(('Fixed assets'!$S$2:$S$1000)*('Fixed assets'!$P$2:$P$1000<Costs!$A691)*('Fixed assets'!$Q$2:$Q$1000=Costs!U$617))-SUMPRODUCT(('Fixed assets'!$Q$2:$Q$1000=Costs!U$617)*('Fixed assets'!$U$2:$U$1000=Costs!$A691)*('Fixed assets'!$S$2:$S$1000))+SUMPRODUCT(('Fixed assets'!$Q$2:$Q$1000=Costs!U$617)*('Fixed assets'!$P$2:$P$1000=Costs!$A691)*('Fixed assets'!$U$2:$U$1000=Costs!$A691)*('Fixed assets'!$R$2:$R$1000))","v":0},{"$f":"SUMPRODUCT(('Fixed assets'!$R$2:$R$1000)*('Fixed assets'!$P$2:$P$1000<$A691)*('Fixed assets'!$Q$2:$Q$1000=Costs!V$617))-SUMPRODUCT(('Fixed assets'!$S$2:$S$1000)*('Fixed assets'!$P$2:$P$1000<Costs!$A691)*('Fixed assets'!$Q$2:$Q$1000=Costs!V$617))-SUMPRODUCT(('Fixed assets'!$Q$2:$Q$1000=Costs!V$617)*('Fixed assets'!$U$2:$U$1000=Costs!$A691)*('Fixed assets'!$S$2:$S$1000))+SUMPRODUCT(('Fixed assets'!$Q$2:$Q$1000=Costs!V$617)*('Fixed assets'!$P$2:$P$1000=Costs!$A691)*('Fixed assets'!$U$2:$U$1000=Costs!$A691)*('Fixed assets'!$R$2:$R$1000))","v":0},{"$f":"SUMPRODUCT(('Fixed assets'!$R$2:$R$1000)*('Fixed assets'!$P$2:$P$1000<$A691)*('Fixed assets'!$Q$2:$Q$1000=Costs!W$617))-SUMPRODUCT(('Fixed assets'!$S$2:$S$1000)*('Fixed assets'!$P$2:$P$1000<Costs!$A691)*('Fixed assets'!$Q$2:$Q$1000=Costs!W$617))-SUMPRODUCT(('Fixed assets'!$Q$2:$Q$1000=Costs!W$617)*('Fixed assets'!$U$2:$U$1000=Costs!$A691)*('Fixed assets'!$S$2:$S$1000))+SUMPRODUCT(('Fixed assets'!$Q$2:$Q$1000=Costs!W$617)*('Fixed assets'!$P$2:$P$1000=Costs!$A691)*('Fixed assets'!$U$2:$U$1000=Costs!$A691)*('Fixed assets'!$R$2:$R$1000))","v":0},{"$f":"SUMPRODUCT(('Fixed assets'!$R$2:$R$1000)*('Fixed assets'!$P$2:$P$1000<$A691)*('Fixed assets'!$Q$2:$Q$1000=Costs!X$617))-SUMPRODUCT(('Fixed assets'!$S$2:$S$1000)*('Fixed assets'!$P$2:$P$1000<Costs!$A691)*('Fixed assets'!$Q$2:$Q$1000=Costs!X$617))-SUMPRODUCT(('Fixed assets'!$Q$2:$Q$1000=Costs!X$617)*('Fixed assets'!$U$2:$U$1000=Costs!$A691)*('Fixed assets'!$S$2:$S$1000))+SUMPRODUCT(('Fixed assets'!$Q$2:$Q$1000=Costs!X$617)*('Fixed assets'!$P$2:$P$1000=Costs!$A691)*('Fixed assets'!$U$2:$U$1000=Costs!$A691)*('Fixed assets'!$R$2:$R$1000))","v":0},{"$f":"SUMPRODUCT(('Fixed assets'!$R$2:$R$1000)*('Fixed assets'!$P$2:$P$1000<$A691)*('Fixed assets'!$Q$2:$Q$1000=Costs!Y$617))-SUMPRODUCT(('Fixed assets'!$S$2:$S$1000)*('Fixed assets'!$P$2:$P$1000<Costs!$A691)*('Fixed assets'!$Q$2:$Q$1000=Costs!Y$617))-SUMPRODUCT(('Fixed assets'!$Q$2:$Q$1000=Costs!Y$617)*('Fixed assets'!$U$2:$U$1000=Costs!$A691)*('Fixed assets'!$S$2:$S$1000))+SUMPRODUCT(('Fixed assets'!$Q$2:$Q$1000=Costs!Y$617)*('Fixed assets'!$P$2:$P$1000=Costs!$A691)*('Fixed assets'!$U$2:$U$1000=Costs!$A691)*('Fixed assets'!$R$2:$R$1000))","v":0},{"$f":"SUMPRODUCT(('Fixed assets'!$R$2:$R$1000)*('Fixed assets'!$P$2:$P$1000<$A691)*('Fixed assets'!$Q$2:$Q$1000=Costs!Z$617))-SUMPRODUCT(('Fixed assets'!$S$2:$S$1000)*('Fixed assets'!$P$2:$P$1000<Costs!$A691)*('Fixed assets'!$Q$2:$Q$1000=Costs!Z$617))-SUMPRODUCT(('Fixed assets'!$Q$2:$Q$1000=Costs!Z$617)*('Fixed assets'!$U$2:$U$1000=Costs!$A691)*('Fixed assets'!$S$2:$S$1000))+SUMPRODUCT(('Fixed assets'!$Q$2:$Q$1000=Costs!Z$617)*('Fixed assets'!$P$2:$P$1000=Costs!$A691)*('Fixed assets'!$U$2:$U$1000=Costs!$A691)*('Fixed assets'!$R$2:$R$1000))","v":0},{"$f":"SUMPRODUCT(('Fixed assets'!$R$2:$R$1000)*('Fixed assets'!$P$2:$P$1000<$A691)*('Fixed assets'!$Q$2:$Q$1000=Costs!AA$617))-SUMPRODUCT(('Fixed assets'!$S$2:$S$1000)*('Fixed assets'!$P$2:$P$1000<Costs!$A691)*('Fixed assets'!$Q$2:$Q$1000=Costs!AA$617))-SUMPRODUCT(('Fixed assets'!$Q$2:$Q$1000=Costs!AA$617)*('Fixed assets'!$U$2:$U$1000=Costs!$A691)*('Fixed assets'!$S$2:$S$1000))+SUMPRODUCT(('Fixed assets'!$Q$2:$Q$1000=Costs!AA$617)*('Fixed assets'!$P$2:$P$1000=Costs!$A691)*('Fixed assets'!$U$2:$U$1000=Costs!$A691)*('Fixed assets'!$R$2:$R$1000))","v":0},{"$f":"SUMPRODUCT(('Fixed assets'!$R$2:$R$1000)*('Fixed assets'!$P$2:$P$1000<$A691)*('Fixed assets'!$Q$2:$Q$1000=Costs!AB$617))-SUMPRODUCT(('Fixed assets'!$S$2:$S$1000)*('Fixed assets'!$P$2:$P$1000<Costs!$A691)*('Fixed assets'!$Q$2:$Q$1000=Costs!AB$617))-SUMPRODUCT(('Fixed assets'!$Q$2:$Q$1000=Costs!AB$617)*('Fixed assets'!$U$2:$U$1000=Costs!$A691)*('Fixed assets'!$S$2:$S$1000))+SUMPRODUCT(('Fixed assets'!$Q$2:$Q$1000=Costs!AB$617)*('Fixed assets'!$P$2:$P$1000=Costs!$A691)*('Fixed assets'!$U$2:$U$1000=Costs!$A691)*('Fixed assets'!$R$2:$R$1000))","v":0},{"$f":"SUMPRODUCT(('Fixed assets'!$R$2:$R$1000)*('Fixed assets'!$P$2:$P$1000<$A691)*('Fixed assets'!$Q$2:$Q$1000=Costs!AC$617))-SUMPRODUCT(('Fixed assets'!$S$2:$S$1000)*('Fixed assets'!$P$2:$P$1000<Costs!$A691)*('Fixed assets'!$Q$2:$Q$1000=Costs!AC$617))-SUMPRODUCT(('Fixed assets'!$Q$2:$Q$1000=Costs!AC$617)*('Fixed assets'!$U$2:$U$1000=Costs!$A691)*('Fixed assets'!$S$2:$S$1000))+SUMPRODUCT(('Fixed assets'!$Q$2:$Q$1000=Costs!AC$617)*('Fixed assets'!$P$2:$P$1000=Costs!$A691)*('Fixed assets'!$U$2:$U$1000=Costs!$A691)*('Fixed assets'!$R$2:$R$1000))","v":0},{"$f":"SUMPRODUCT(('Fixed assets'!$R$2:$R$1000)*('Fixed assets'!$P$2:$P$1000<$A691)*('Fixed assets'!$Q$2:$Q$1000=Costs!AD$617))-SUMPRODUCT(('Fixed assets'!$S$2:$S$1000)*('Fixed assets'!$P$2:$P$1000<Costs!$A691)*('Fixed assets'!$Q$2:$Q$1000=Costs!AD$617))-SUMPRODUCT(('Fixed assets'!$Q$2:$Q$1000=Costs!AD$617)*('Fixed assets'!$U$2:$U$1000=Costs!$A691)*('Fixed assets'!$S$2:$S$1000))+SUMPRODUCT(('Fixed assets'!$Q$2:$Q$1000=Costs!AD$617)*('Fixed assets'!$P$2:$P$1000=Costs!$A691)*('Fixed assets'!$U$2:$U$1000=Costs!$A691)*('Fixed assets'!$R$2:$R$1000))","v":0},{"$f":"SUMPRODUCT(('Fixed assets'!$R$2:$R$1000)*('Fixed assets'!$P$2:$P$1000<$A691)*('Fixed assets'!$Q$2:$Q$1000=Costs!AE$617))-SUMPRODUCT(('Fixed assets'!$S$2:$S$1000)*('Fixed assets'!$P$2:$P$1000<Costs!$A691)*('Fixed assets'!$Q$2:$Q$1000=Costs!AE$617))-SUMPRODUCT(('Fixed assets'!$Q$2:$Q$1000=Costs!AE$617)*('Fixed assets'!$U$2:$U$1000=Costs!$A691)*('Fixed assets'!$S$2:$S$1000))+SUMPRODUCT(('Fixed assets'!$Q$2:$Q$1000=Costs!AE$617)*('Fixed assets'!$P$2:$P$1000=Costs!$A691)*('Fixed assets'!$U$2:$U$1000=Costs!$A691)*('Fixed assets'!$R$2:$R$1000))","v":0},{"$f":"SUMPRODUCT(('Fixed assets'!$R$2:$R$1000)*('Fixed assets'!$P$2:$P$1000<$A691)*('Fixed assets'!$Q$2:$Q$1000=Costs!AF$617))-SUMPRODUCT(('Fixed assets'!$S$2:$S$1000)*('Fixed assets'!$P$2:$P$1000<Costs!$A691)*('Fixed assets'!$Q$2:$Q$1000=Costs!AF$617))-SUMPRODUCT(('Fixed assets'!$Q$2:$Q$1000=Costs!AF$617)*('Fixed assets'!$U$2:$U$1000=Costs!$A691)*('Fixed assets'!$S$2:$S$1000))+SUMPRODUCT(('Fixed assets'!$Q$2:$Q$1000=Costs!AF$617)*('Fixed assets'!$P$2:$P$1000=Costs!$A691)*('Fixed assets'!$U$2:$U$1000=Costs!$A691)*('Fixed assets'!$R$2:$R$1000))","v":0},{"$f":"SUMPRODUCT(('Fixed assets'!$R$2:$R$1000)*('Fixed assets'!$P$2:$P$1000<$A691)*('Fixed assets'!$Q$2:$Q$1000=Costs!AG$617))-SUMPRODUCT(('Fixed assets'!$S$2:$S$1000)*('Fixed assets'!$P$2:$P$1000<Costs!$A691)*('Fixed assets'!$Q$2:$Q$1000=Costs!AG$617))-SUMPRODUCT(('Fixed assets'!$Q$2:$Q$1000=Costs!AG$617)*('Fixed assets'!$U$2:$U$1000=Costs!$A691)*('Fixed assets'!$S$2:$S$1000))+SUMPRODUCT(('Fixed assets'!$Q$2:$Q$1000=Costs!AG$617)*('Fixed assets'!$P$2:$P$1000=Costs!$A691)*('Fixed assets'!$U$2:$U$1000=Costs!$A691)*('Fixed assets'!$R$2:$R$1000))","v":0},{"$f":"SUMPRODUCT(('Fixed assets'!$R$2:$R$1000)*('Fixed assets'!$P$2:$P$1000<$A691)*('Fixed assets'!$Q$2:$Q$1000=Costs!AH$617))-SUMPRODUCT(('Fixed assets'!$S$2:$S$1000)*('Fixed assets'!$P$2:$P$1000<Costs!$A691)*('Fixed assets'!$Q$2:$Q$1000=Costs!AH$617))-SUMPRODUCT(('Fixed assets'!$Q$2:$Q$1000=Costs!AH$617)*('Fixed assets'!$U$2:$U$1000=Costs!$A691)*('Fixed assets'!$S$2:$S$1000))+SUMPRODUCT(('Fixed assets'!$Q$2:$Q$1000=Costs!AH$617)*('Fixed assets'!$P$2:$P$1000=Costs!$A691)*('Fixed assets'!$U$2:$U$1000=Costs!$A691)*('Fixed assets'!$R$2:$R$1000))","v":0},{"$f":"SUMPRODUCT(('Fixed assets'!$R$2:$R$1000)*('Fixed assets'!$P$2:$P$1000<$A691)*('Fixed assets'!$Q$2:$Q$1000=Costs!AI$617))-SUMPRODUCT(('Fixed assets'!$S$2:$S$1000)*('Fixed assets'!$P$2:$P$1000<Costs!$A691)*('Fixed assets'!$Q$2:$Q$1000=Costs!AI$617))-SUMPRODUCT(('Fixed assets'!$Q$2:$Q$1000=Costs!AI$617)*('Fixed assets'!$U$2:$U$1000=Costs!$A691)*('Fixed assets'!$S$2:$S$1000))+SUMPRODUCT(('Fixed assets'!$Q$2:$Q$1000=Costs!AI$617)*('Fixed assets'!$P$2:$P$1000=Costs!$A691)*('Fixed assets'!$U$2:$U$1000=Costs!$A691)*('Fixed assets'!$R$2:$R$1000))","v":0},{"$f":"SUMPRODUCT(('Fixed assets'!$R$2:$R$1000)*('Fixed assets'!$P$2:$P$1000<$A691)*('Fixed assets'!$Q$2:$Q$1000=Costs!AJ$617))-SUMPRODUCT(('Fixed assets'!$S$2:$S$1000)*('Fixed assets'!$P$2:$P$1000<Costs!$A691)*('Fixed assets'!$Q$2:$Q$1000=Costs!AJ$617))-SUMPRODUCT(('Fixed assets'!$Q$2:$Q$1000=Costs!AJ$617)*('Fixed assets'!$U$2:$U$1000=Costs!$A691)*('Fixed assets'!$S$2:$S$1000))+SUMPRODUCT(('Fixed assets'!$Q$2:$Q$1000=Costs!AJ$617)*('Fixed assets'!$P$2:$P$1000=Costs!$A691)*('Fixed assets'!$U$2:$U$1000=Costs!$A691)*('Fixed assets'!$R$2:$R$1000))","v":0},{"$f":"SUMPRODUCT(('Fixed assets'!$R$2:$R$1000)*('Fixed assets'!$P$2:$P$1000<$A691)*('Fixed assets'!$Q$2:$Q$1000=Costs!AK$617))-SUMPRODUCT(('Fixed assets'!$S$2:$S$1000)*('Fixed assets'!$P$2:$P$1000<Costs!$A691)*('Fixed assets'!$Q$2:$Q$1000=Costs!AK$617))-SUMPRODUCT(('Fixed assets'!$Q$2:$Q$1000=Costs!AK$617)*('Fixed assets'!$U$2:$U$1000=Costs!$A691)*('Fixed assets'!$S$2:$S$1000))+SUMPRODUCT(('Fixed assets'!$Q$2:$Q$1000=Costs!AK$617)*('Fixed assets'!$P$2:$P$1000=Costs!$A691)*('Fixed assets'!$U$2:$U$1000=Costs!$A691)*('Fixed assets'!$R$2:$R$1000))","v":0},{"$f":"SUMPRODUCT(('Fixed assets'!$R$2:$R$1000)*('Fixed assets'!$P$2:$P$1000<$A691)*('Fixed assets'!$Q$2:$Q$1000=Costs!AL$617))-SUMPRODUCT(('Fixed assets'!$S$2:$S$1000)*('Fixed assets'!$P$2:$P$1000<Costs!$A691)*('Fixed assets'!$Q$2:$Q$1000=Costs!AL$617))-SUMPRODUCT(('Fixed assets'!$Q$2:$Q$1000=Costs!AL$617)*('Fixed assets'!$U$2:$U$1000=Costs!$A691)*('Fixed assets'!$S$2:$S$1000))+SUMPRODUCT(('Fixed assets'!$Q$2:$Q$1000=Costs!AL$617)*('Fixed assets'!$P$2:$P$1000=Costs!$A691)*('Fixed assets'!$U$2:$U$1000=Costs!$A691)*('Fixed assets'!$R$2:$R$1000))","v":0},{"$f":"SUMPRODUCT(('Fixed assets'!$R$2:$R$1000)*('Fixed assets'!$P$2:$P$1000<$A691)*('Fixed assets'!$Q$2:$Q$1000=Costs!AM$617))-SUMPRODUCT(('Fixed assets'!$S$2:$S$1000)*('Fixed assets'!$P$2:$P$1000<Costs!$A691)*('Fixed assets'!$Q$2:$Q$1000=Costs!AM$617))-SUMPRODUCT(('Fixed assets'!$Q$2:$Q$1000=Costs!AM$617)*('Fixed assets'!$U$2:$U$1000=Costs!$A691)*('Fixed assets'!$S$2:$S$1000))+SUMPRODUCT(('Fixed assets'!$Q$2:$Q$1000=Costs!AM$617)*('Fixed assets'!$P$2:$P$1000=Costs!$A691)*('Fixed assets'!$U$2:$U$1000=Costs!$A691)*('Fixed assets'!$R$2:$R$1000))","v":0},{"$f":"SUMPRODUCT(('Fixed assets'!$R$2:$R$1000)*('Fixed assets'!$P$2:$P$1000<$A691)*('Fixed assets'!$Q$2:$Q$1000=Costs!AN$617))-SUMPRODUCT(('Fixed assets'!$S$2:$S$1000)*('Fixed assets'!$P$2:$P$1000<Costs!$A691)*('Fixed assets'!$Q$2:$Q$1000=Costs!AN$617))-SUMPRODUCT(('Fixed assets'!$Q$2:$Q$1000=Costs!AN$617)*('Fixed assets'!$U$2:$U$1000=Costs!$A691)*('Fixed assets'!$S$2:$S$1000))+SUMPRODUCT(('Fixed assets'!$Q$2:$Q$1000=Costs!AN$617)*('Fixed assets'!$P$2:$P$1000=Costs!$A691)*('Fixed assets'!$U$2:$U$1000=Costs!$A691)*('Fixed assets'!$R$2:$R$1000))","v":0},{"$f":"SUMPRODUCT(('Fixed assets'!$R$2:$R$1000)*('Fixed assets'!$P$2:$P$1000<$A691)*('Fixed assets'!$Q$2:$Q$1000=Costs!AO$617))-SUMPRODUCT(('Fixed assets'!$S$2:$S$1000)*('Fixed assets'!$P$2:$P$1000<Costs!$A691)*('Fixed assets'!$Q$2:$Q$1000=Costs!AO$617))-SUMPRODUCT(('Fixed assets'!$Q$2:$Q$1000=Costs!AO$617)*('Fixed assets'!$U$2:$U$1000=Costs!$A691)*('Fixed assets'!$S$2:$S$1000))+SUMPRODUCT(('Fixed assets'!$Q$2:$Q$1000=Costs!AO$617)*('Fixed assets'!$P$2:$P$1000=Costs!$A691)*('Fixed assets'!$U$2:$U$1000=Costs!$A691)*('Fixed assets'!$R$2:$R$1000))","v":0},{"$f":"SUMPRODUCT(('Fixed assets'!$R$2:$R$1000)*('Fixed assets'!$P$2:$P$1000<$A691)*('Fixed assets'!$Q$2:$Q$1000=Costs!AP$617))-SUMPRODUCT(('Fixed assets'!$S$2:$S$1000)*('Fixed assets'!$P$2:$P$1000<Costs!$A691)*('Fixed assets'!$Q$2:$Q$1000=Costs!AP$617))-SUMPRODUCT(('Fixed assets'!$Q$2:$Q$1000=Costs!AP$617)*('Fixed assets'!$U$2:$U$1000=Costs!$A691)*('Fixed assets'!$S$2:$S$1000))+SUMPRODUCT(('Fixed assets'!$Q$2:$Q$1000=Costs!AP$617)*('Fixed assets'!$P$2:$P$1000=Costs!$A691)*('Fixed assets'!$U$2:$U$1000=Costs!$A691)*('Fixed assets'!$R$2:$R$1000))","v":0},{"$f":"SUMPRODUCT(('Fixed assets'!$R$2:$R$1000)*('Fixed assets'!$P$2:$P$1000<$A691)*('Fixed assets'!$Q$2:$Q$1000=Costs!AQ$617))-SUMPRODUCT(('Fixed assets'!$S$2:$S$1000)*('Fixed assets'!$P$2:$P$1000<Costs!$A691)*('Fixed assets'!$Q$2:$Q$1000=Costs!AQ$617))-SUMPRODUCT(('Fixed assets'!$Q$2:$Q$1000=Costs!AQ$617)*('Fixed assets'!$U$2:$U$1000=Costs!$A691)*('Fixed assets'!$S$2:$S$1000))+SUMPRODUCT(('Fixed assets'!$Q$2:$Q$1000=Costs!AQ$617)*('Fixed assets'!$P$2:$P$1000=Costs!$A691)*('Fixed assets'!$U$2:$U$1000=Costs!$A691)*('Fixed assets'!$R$2:$R$1000))","v":0}]
[2089,0,{"$f":"SUMPRODUCT(('Fixed assets'!$R$2:$R$1000)*('Fixed assets'!$P$2:$P$1000<$A692)*('Fixed assets'!$Q$2:$Q$1000=Costs!C$617))-SUMPRODUCT(('Fixed assets'!$S$2:$S$1000)*('Fixed assets'!$P$2:$P$1000<Costs!$A692)*('Fixed assets'!$Q$2:$Q$1000=Costs!C$617))-SUMPRODUCT(('Fixed assets'!$Q$2:$Q$1000=Costs!C$617)*('Fixed assets'!$U$2:$U$1000=Costs!$A692)*('Fixed assets'!$S$2:$S$1000))+SUMPRODUCT(('Fixed assets'!$Q$2:$Q$1000=Costs!C$617)*('Fixed assets'!$P$2:$P$1000=Costs!$A692)*('Fixed assets'!$U$2:$U$1000=Costs!$A692)*('Fixed assets'!$R$2:$R$1000))","v":0},{"$f":"SUMPRODUCT(('Fixed assets'!$R$2:$R$1000)*('Fixed assets'!$P$2:$P$1000<$A692)*('Fixed assets'!$Q$2:$Q$1000=Costs!D$617))-SUMPRODUCT(('Fixed assets'!$S$2:$S$1000)*('Fixed assets'!$P$2:$P$1000<Costs!$A692)*('Fixed assets'!$Q$2:$Q$1000=Costs!D$617))-SUMPRODUCT(('Fixed assets'!$Q$2:$Q$1000=Costs!D$617)*('Fixed assets'!$U$2:$U$1000=Costs!$A692)*('Fixed assets'!$S$2:$S$1000))+SUMPRODUCT(('Fixed assets'!$Q$2:$Q$1000=Costs!D$617)*('Fixed assets'!$P$2:$P$1000=Costs!$A692)*('Fixed assets'!$U$2:$U$1000=Costs!$A692)*('Fixed assets'!$R$2:$R$1000))","v":0},{"$f":"SUMPRODUCT(('Fixed assets'!$R$2:$R$1000)*('Fixed assets'!$P$2:$P$1000<$A692)*('Fixed assets'!$Q$2:$Q$1000=Costs!E$617))-SUMPRODUCT(('Fixed assets'!$S$2:$S$1000)*('Fixed assets'!$P$2:$P$1000<Costs!$A692)*('Fixed assets'!$Q$2:$Q$1000=Costs!E$617))-SUMPRODUCT(('Fixed assets'!$Q$2:$Q$1000=Costs!E$617)*('Fixed assets'!$U$2:$U$1000=Costs!$A692)*('Fixed assets'!$S$2:$S$1000))+SUMPRODUCT(('Fixed assets'!$Q$2:$Q$1000=Costs!E$617)*('Fixed assets'!$P$2:$P$1000=Costs!$A692)*('Fixed assets'!$U$2:$U$1000=Costs!$A692)*('Fixed assets'!$R$2:$R$1000))","v":0},{"$f":"SUMPRODUCT(('Fixed assets'!$R$2:$R$1000)*('Fixed assets'!$P$2:$P$1000<$A692)*('Fixed assets'!$Q$2:$Q$1000=Costs!F$617))-SUMPRODUCT(('Fixed assets'!$S$2:$S$1000)*('Fixed assets'!$P$2:$P$1000<Costs!$A692)*('Fixed assets'!$Q$2:$Q$1000=Costs!F$617))-SUMPRODUCT(('Fixed assets'!$Q$2:$Q$1000=Costs!F$617)*('Fixed assets'!$U$2:$U$1000=Costs!$A692)*('Fixed assets'!$S$2:$S$1000))+SUMPRODUCT(('Fixed assets'!$Q$2:$Q$1000=Costs!F$617)*('Fixed assets'!$P$2:$P$1000=Costs!$A692)*('Fixed assets'!$U$2:$U$1000=Costs!$A692)*('Fixed assets'!$R$2:$R$1000))","v":0},{"$f":"SUMPRODUCT(('Fixed assets'!$R$2:$R$1000)*('Fixed assets'!$P$2:$P$1000<$A692)*('Fixed assets'!$Q$2:$Q$1000=Costs!G$617))-SUMPRODUCT(('Fixed assets'!$S$2:$S$1000)*('Fixed assets'!$P$2:$P$1000<Costs!$A692)*('Fixed assets'!$Q$2:$Q$1000=Costs!G$617))-SUMPRODUCT(('Fixed assets'!$Q$2:$Q$1000=Costs!G$617)*('Fixed assets'!$U$2:$U$1000=Costs!$A692)*('Fixed assets'!$S$2:$S$1000))+SUMPRODUCT(('Fixed assets'!$Q$2:$Q$1000=Costs!G$617)*('Fixed assets'!$P$2:$P$1000=Costs!$A692)*('Fixed assets'!$U$2:$U$1000=Costs!$A692)*('Fixed assets'!$R$2:$R$1000))","v":0},{"$f":"SUMPRODUCT(('Fixed assets'!$R$2:$R$1000)*('Fixed assets'!$P$2:$P$1000<$A692)*('Fixed assets'!$Q$2:$Q$1000=Costs!H$617))-SUMPRODUCT(('Fixed assets'!$S$2:$S$1000)*('Fixed assets'!$P$2:$P$1000<Costs!$A692)*('Fixed assets'!$Q$2:$Q$1000=Costs!H$617))-SUMPRODUCT(('Fixed assets'!$Q$2:$Q$1000=Costs!H$617)*('Fixed assets'!$U$2:$U$1000=Costs!$A692)*('Fixed assets'!$S$2:$S$1000))+SUMPRODUCT(('Fixed assets'!$Q$2:$Q$1000=Costs!H$617)*('Fixed assets'!$P$2:$P$1000=Costs!$A692)*('Fixed assets'!$U$2:$U$1000=Costs!$A692)*('Fixed assets'!$R$2:$R$1000))","v":0},{"$f":"SUMPRODUCT(('Fixed assets'!$R$2:$R$1000)*('Fixed assets'!$P$2:$P$1000<$A692)*('Fixed assets'!$Q$2:$Q$1000=Costs!I$617))-SUMPRODUCT(('Fixed assets'!$S$2:$S$1000)*('Fixed assets'!$P$2:$P$1000<Costs!$A692)*('Fixed assets'!$Q$2:$Q$1000=Costs!I$617))-SUMPRODUCT(('Fixed assets'!$Q$2:$Q$1000=Costs!I$617)*('Fixed assets'!$U$2:$U$1000=Costs!$A692)*('Fixed assets'!$S$2:$S$1000))+SUMPRODUCT(('Fixed assets'!$Q$2:$Q$1000=Costs!I$617)*('Fixed assets'!$P$2:$P$1000=Costs!$A692)*('Fixed assets'!$U$2:$U$1000=Costs!$A692)*('Fixed assets'!$R$2:$R$1000))","v":0},{"$f":"SUMPRODUCT(('Fixed assets'!$R$2:$R$1000)*('Fixed assets'!$P$2:$P$1000<$A692)*('Fixed assets'!$Q$2:$Q$1000=Costs!J$617))-SUMPRODUCT(('Fixed assets'!$S$2:$S$1000)*('Fixed assets'!$P$2:$P$1000<Costs!$A692)*('Fixed assets'!$Q$2:$Q$1000=Costs!J$617))-SUMPRODUCT(('Fixed assets'!$Q$2:$Q$1000=Costs!J$617)*('Fixed assets'!$U$2:$U$1000=Costs!$A692)*('Fixed assets'!$S$2:$S$1000))+SUMPRODUCT(('Fixed assets'!$Q$2:$Q$1000=Costs!J$617)*('Fixed assets'!$P$2:$P$1000=Costs!$A692)*('Fixed assets'!$U$2:$U$1000=Costs!$A692)*('Fixed assets'!$R$2:$R$1000))","v":0},{"$f":"SUMPRODUCT(('Fixed assets'!$R$2:$R$1000)*('Fixed assets'!$P$2:$P$1000<$A692)*('Fixed assets'!$Q$2:$Q$1000=Costs!K$617))-SUMPRODUCT(('Fixed assets'!$S$2:$S$1000)*('Fixed assets'!$P$2:$P$1000<Costs!$A692)*('Fixed assets'!$Q$2:$Q$1000=Costs!K$617))-SUMPRODUCT(('Fixed assets'!$Q$2:$Q$1000=Costs!K$617)*('Fixed assets'!$U$2:$U$1000=Costs!$A692)*('Fixed assets'!$S$2:$S$1000))+SUMPRODUCT(('Fixed assets'!$Q$2:$Q$1000=Costs!K$617)*('Fixed assets'!$P$2:$P$1000=Costs!$A692)*('Fixed assets'!$U$2:$U$1000=Costs!$A692)*('Fixed assets'!$R$2:$R$1000))","v":0},{"$f":"SUMPRODUCT(('Fixed assets'!$R$2:$R$1000)*('Fixed assets'!$P$2:$P$1000<$A692)*('Fixed assets'!$Q$2:$Q$1000=Costs!L$617))-SUMPRODUCT(('Fixed assets'!$S$2:$S$1000)*('Fixed assets'!$P$2:$P$1000<Costs!$A692)*('Fixed assets'!$Q$2:$Q$1000=Costs!L$617))-SUMPRODUCT(('Fixed assets'!$Q$2:$Q$1000=Costs!L$617)*('Fixed assets'!$U$2:$U$1000=Costs!$A692)*('Fixed assets'!$S$2:$S$1000))+SUMPRODUCT(('Fixed assets'!$Q$2:$Q$1000=Costs!L$617)*('Fixed assets'!$P$2:$P$1000=Costs!$A692)*('Fixed assets'!$U$2:$U$1000=Costs!$A692)*('Fixed assets'!$R$2:$R$1000))","v":0},{"$f":"SUMPRODUCT(('Fixed assets'!$R$2:$R$1000)*('Fixed assets'!$P$2:$P$1000<$A692)*('Fixed assets'!$Q$2:$Q$1000=Costs!M$617))-SUMPRODUCT(('Fixed assets'!$S$2:$S$1000)*('Fixed assets'!$P$2:$P$1000<Costs!$A692)*('Fixed assets'!$Q$2:$Q$1000=Costs!M$617))-SUMPRODUCT(('Fixed assets'!$Q$2:$Q$1000=Costs!M$617)*('Fixed assets'!$U$2:$U$1000=Costs!$A692)*('Fixed assets'!$S$2:$S$1000))+SUMPRODUCT(('Fixed assets'!$Q$2:$Q$1000=Costs!M$617)*('Fixed assets'!$P$2:$P$1000=Costs!$A692)*('Fixed assets'!$U$2:$U$1000=Costs!$A692)*('Fixed assets'!$R$2:$R$1000))","v":0},{"$f":"SUMPRODUCT(('Fixed assets'!$R$2:$R$1000)*('Fixed assets'!$P$2:$P$1000<$A692)*('Fixed assets'!$Q$2:$Q$1000=Costs!N$617))-SUMPRODUCT(('Fixed assets'!$S$2:$S$1000)*('Fixed assets'!$P$2:$P$1000<Costs!$A692)*('Fixed assets'!$Q$2:$Q$1000=Costs!N$617))-SUMPRODUCT(('Fixed assets'!$Q$2:$Q$1000=Costs!N$617)*('Fixed assets'!$U$2:$U$1000=Costs!$A692)*('Fixed assets'!$S$2:$S$1000))+SUMPRODUCT(('Fixed assets'!$Q$2:$Q$1000=Costs!N$617)*('Fixed assets'!$P$2:$P$1000=Costs!$A692)*('Fixed assets'!$U$2:$U$1000=Costs!$A692)*('Fixed assets'!$R$2:$R$1000))","v":0},{"$f":"SUMPRODUCT(('Fixed assets'!$R$2:$R$1000)*('Fixed assets'!$P$2:$P$1000<$A692)*('Fixed assets'!$Q$2:$Q$1000=Costs!O$617))-SUMPRODUCT(('Fixed assets'!$S$2:$S$1000)*('Fixed assets'!$P$2:$P$1000<Costs!$A692)*('Fixed assets'!$Q$2:$Q$1000=Costs!O$617))-SUMPRODUCT(('Fixed assets'!$Q$2:$Q$1000=Costs!O$617)*('Fixed assets'!$U$2:$U$1000=Costs!$A692)*('Fixed assets'!$S$2:$S$1000))+SUMPRODUCT(('Fixed assets'!$Q$2:$Q$1000=Costs!O$617)*('Fixed assets'!$P$2:$P$1000=Costs!$A692)*('Fixed assets'!$U$2:$U$1000=Costs!$A692)*('Fixed assets'!$R$2:$R$1000))","v":0},{"$f":"SUMPRODUCT(('Fixed assets'!$R$2:$R$1000)*('Fixed assets'!$P$2:$P$1000<$A692)*('Fixed assets'!$Q$2:$Q$1000=Costs!P$617))-SUMPRODUCT(('Fixed assets'!$S$2:$S$1000)*('Fixed assets'!$P$2:$P$1000<Costs!$A692)*('Fixed assets'!$Q$2:$Q$1000=Costs!P$617))-SUMPRODUCT(('Fixed assets'!$Q$2:$Q$1000=Costs!P$617)*('Fixed assets'!$U$2:$U$1000=Costs!$A692)*('Fixed assets'!$S$2:$S$1000))+SUMPRODUCT(('Fixed assets'!$Q$2:$Q$1000=Costs!P$617)*('Fixed assets'!$P$2:$P$1000=Costs!$A692)*('Fixed assets'!$U$2:$U$1000=Costs!$A692)*('Fixed assets'!$R$2:$R$1000))","v":0},{"$f":"SUMPRODUCT(('Fixed assets'!$R$2:$R$1000)*('Fixed assets'!$P$2:$P$1000<$A692)*('Fixed assets'!$Q$2:$Q$1000=Costs!Q$617))-SUMPRODUCT(('Fixed assets'!$S$2:$S$1000)*('Fixed assets'!$P$2:$P$1000<Costs!$A692)*('Fixed assets'!$Q$2:$Q$1000=Costs!Q$617))-SUMPRODUCT(('Fixed assets'!$Q$2:$Q$1000=Costs!Q$617)*('Fixed assets'!$U$2:$U$1000=Costs!$A692)*('Fixed assets'!$S$2:$S$1000))+SUMPRODUCT(('Fixed assets'!$Q$2:$Q$1000=Costs!Q$617)*('Fixed assets'!$P$2:$P$1000=Costs!$A692)*('Fixed assets'!$U$2:$U$1000=Costs!$A692)*('Fixed assets'!$R$2:$R$1000))","v":0},{"$f":"SUMPRODUCT(('Fixed assets'!$R$2:$R$1000)*('Fixed assets'!$P$2:$P$1000<$A692)*('Fixed assets'!$Q$2:$Q$1000=Costs!R$617))-SUMPRODUCT(('Fixed assets'!$S$2:$S$1000)*('Fixed assets'!$P$2:$P$1000<Costs!$A692)*('Fixed assets'!$Q$2:$Q$1000=Costs!R$617))-SUMPRODUCT(('Fixed assets'!$Q$2:$Q$1000=Costs!R$617)*('Fixed assets'!$U$2:$U$1000=Costs!$A692)*('Fixed assets'!$S$2:$S$1000))+SUMPRODUCT(('Fixed assets'!$Q$2:$Q$1000=Costs!R$617)*('Fixed assets'!$P$2:$P$1000=Costs!$A692)*('Fixed assets'!$U$2:$U$1000=Costs!$A692)*('Fixed assets'!$R$2:$R$1000))","v":0},{"$f":"SUMPRODUCT(('Fixed assets'!$R$2:$R$1000)*('Fixed assets'!$P$2:$P$1000<$A692)*('Fixed assets'!$Q$2:$Q$1000=Costs!S$617))-SUMPRODUCT(('Fixed assets'!$S$2:$S$1000)*('Fixed assets'!$P$2:$P$1000<Costs!$A692)*('Fixed assets'!$Q$2:$Q$1000=Costs!S$617))-SUMPRODUCT(('Fixed assets'!$Q$2:$Q$1000=Costs!S$617)*('Fixed assets'!$U$2:$U$1000=Costs!$A692)*('Fixed assets'!$S$2:$S$1000))+SUMPRODUCT(('Fixed assets'!$Q$2:$Q$1000=Costs!S$617)*('Fixed assets'!$P$2:$P$1000=Costs!$A692)*('Fixed assets'!$U$2:$U$1000=Costs!$A692)*('Fixed assets'!$R$2:$R$1000))","v":0},{"$f":"SUMPRODUCT(('Fixed assets'!$R$2:$R$1000)*('Fixed assets'!$P$2:$P$1000<$A692)*('Fixed assets'!$Q$2:$Q$1000=Costs!T$617))-SUMPRODUCT(('Fixed assets'!$S$2:$S$1000)*('Fixed assets'!$P$2:$P$1000<Costs!$A692)*('Fixed assets'!$Q$2:$Q$1000=Costs!T$617))-SUMPRODUCT(('Fixed assets'!$Q$2:$Q$1000=Costs!T$617)*('Fixed assets'!$U$2:$U$1000=Costs!$A692)*('Fixed assets'!$S$2:$S$1000))+SUMPRODUCT(('Fixed assets'!$Q$2:$Q$1000=Costs!T$617)*('Fixed assets'!$P$2:$P$1000=Costs!$A692)*('Fixed assets'!$U$2:$U$1000=Costs!$A692)*('Fixed assets'!$R$2:$R$1000))","v":0},{"$f":"SUMPRODUCT(('Fixed assets'!$R$2:$R$1000)*('Fixed assets'!$P$2:$P$1000<$A692)*('Fixed assets'!$Q$2:$Q$1000=Costs!U$617))-SUMPRODUCT(('Fixed assets'!$S$2:$S$1000)*('Fixed assets'!$P$2:$P$1000<Costs!$A692)*('Fixed assets'!$Q$2:$Q$1000=Costs!U$617))-SUMPRODUCT(('Fixed assets'!$Q$2:$Q$1000=Costs!U$617)*('Fixed assets'!$U$2:$U$1000=Costs!$A692)*('Fixed assets'!$S$2:$S$1000))+SUMPRODUCT(('Fixed assets'!$Q$2:$Q$1000=Costs!U$617)*('Fixed assets'!$P$2:$P$1000=Costs!$A692)*('Fixed assets'!$U$2:$U$1000=Costs!$A692)*('Fixed assets'!$R$2:$R$1000))","v":0},{"$f":"SUMPRODUCT(('Fixed assets'!$R$2:$R$1000)*('Fixed assets'!$P$2:$P$1000<$A692)*('Fixed assets'!$Q$2:$Q$1000=Costs!V$617))-SUMPRODUCT(('Fixed assets'!$S$2:$S$1000)*('Fixed assets'!$P$2:$P$1000<Costs!$A692)*('Fixed assets'!$Q$2:$Q$1000=Costs!V$617))-SUMPRODUCT(('Fixed assets'!$Q$2:$Q$1000=Costs!V$617)*('Fixed assets'!$U$2:$U$1000=Costs!$A692)*('Fixed assets'!$S$2:$S$1000))+SUMPRODUCT(('Fixed assets'!$Q$2:$Q$1000=Costs!V$617)*('Fixed assets'!$P$2:$P$1000=Costs!$A692)*('Fixed assets'!$U$2:$U$1000=Costs!$A692)*('Fixed assets'!$R$2:$R$1000))","v":0},{"$f":"SUMPRODUCT(('Fixed assets'!$R$2:$R$1000)*('Fixed assets'!$P$2:$P$1000<$A692)*('Fixed assets'!$Q$2:$Q$1000=Costs!W$617))-SUMPRODUCT(('Fixed assets'!$S$2:$S$1000)*('Fixed assets'!$P$2:$P$1000<Costs!$A692)*('Fixed assets'!$Q$2:$Q$1000=Costs!W$617))-SUMPRODUCT(('Fixed assets'!$Q$2:$Q$1000=Costs!W$617)*('Fixed assets'!$U$2:$U$1000=Costs!$A692)*('Fixed assets'!$S$2:$S$1000))+SUMPRODUCT(('Fixed assets'!$Q$2:$Q$1000=Costs!W$617)*('Fixed assets'!$P$2:$P$1000=Costs!$A692)*('Fixed assets'!$U$2:$U$1000=Costs!$A692)*('Fixed assets'!$R$2:$R$1000))","v":0},{"$f":"SUMPRODUCT(('Fixed assets'!$R$2:$R$1000)*('Fixed assets'!$P$2:$P$1000<$A692)*('Fixed assets'!$Q$2:$Q$1000=Costs!X$617))-SUMPRODUCT(('Fixed assets'!$S$2:$S$1000)*('Fixed assets'!$P$2:$P$1000<Costs!$A692)*('Fixed assets'!$Q$2:$Q$1000=Costs!X$617))-SUMPRODUCT(('Fixed assets'!$Q$2:$Q$1000=Costs!X$617)*('Fixed assets'!$U$2:$U$1000=Costs!$A692)*('Fixed assets'!$S$2:$S$1000))+SUMPRODUCT(('Fixed assets'!$Q$2:$Q$1000=Costs!X$617)*('Fixed assets'!$P$2:$P$1000=Costs!$A692)*('Fixed assets'!$U$2:$U$1000=Costs!$A692)*('Fixed assets'!$R$2:$R$1000))","v":0},{"$f":"SUMPRODUCT(('Fixed assets'!$R$2:$R$1000)*('Fixed assets'!$P$2:$P$1000<$A692)*('Fixed assets'!$Q$2:$Q$1000=Costs!Y$617))-SUMPRODUCT(('Fixed assets'!$S$2:$S$1000)*('Fixed assets'!$P$2:$P$1000<Costs!$A692)*('Fixed assets'!$Q$2:$Q$1000=Costs!Y$617))-SUMPRODUCT(('Fixed assets'!$Q$2:$Q$1000=Costs!Y$617)*('Fixed assets'!$U$2:$U$1000=Costs!$A692)*('Fixed assets'!$S$2:$S$1000))+SUMPRODUCT(('Fixed assets'!$Q$2:$Q$1000=Costs!Y$617)*('Fixed assets'!$P$2:$P$1000=Costs!$A692)*('Fixed assets'!$U$2:$U$1000=Costs!$A692)*('Fixed assets'!$R$2:$R$1000))","v":0},{"$f":"SUMPRODUCT(('Fixed assets'!$R$2:$R$1000)*('Fixed assets'!$P$2:$P$1000<$A692)*('Fixed assets'!$Q$2:$Q$1000=Costs!Z$617))-SUMPRODUCT(('Fixed assets'!$S$2:$S$1000)*('Fixed assets'!$P$2:$P$1000<Costs!$A692)*('Fixed assets'!$Q$2:$Q$1000=Costs!Z$617))-SUMPRODUCT(('Fixed assets'!$Q$2:$Q$1000=Costs!Z$617)*('Fixed assets'!$U$2:$U$1000=Costs!$A692)*('Fixed assets'!$S$2:$S$1000))+SUMPRODUCT(('Fixed assets'!$Q$2:$Q$1000=Costs!Z$617)*('Fixed assets'!$P$2:$P$1000=Costs!$A692)*('Fixed assets'!$U$2:$U$1000=Costs!$A692)*('Fixed assets'!$R$2:$R$1000))","v":0},{"$f":"SUMPRODUCT(('Fixed assets'!$R$2:$R$1000)*('Fixed assets'!$P$2:$P$1000<$A692)*('Fixed assets'!$Q$2:$Q$1000=Costs!AA$617))-SUMPRODUCT(('Fixed assets'!$S$2:$S$1000)*('Fixed assets'!$P$2:$P$1000<Costs!$A692)*('Fixed assets'!$Q$2:$Q$1000=Costs!AA$617))-SUMPRODUCT(('Fixed assets'!$Q$2:$Q$1000=Costs!AA$617)*('Fixed assets'!$U$2:$U$1000=Costs!$A692)*('Fixed assets'!$S$2:$S$1000))+SUMPRODUCT(('Fixed assets'!$Q$2:$Q$1000=Costs!AA$617)*('Fixed assets'!$P$2:$P$1000=Costs!$A692)*('Fixed assets'!$U$2:$U$1000=Costs!$A692)*('Fixed assets'!$R$2:$R$1000))","v":0},{"$f":"SUMPRODUCT(('Fixed assets'!$R$2:$R$1000)*('Fixed assets'!$P$2:$P$1000<$A692)*('Fixed assets'!$Q$2:$Q$1000=Costs!AB$617))-SUMPRODUCT(('Fixed assets'!$S$2:$S$1000)*('Fixed assets'!$P$2:$P$1000<Costs!$A692)*('Fixed assets'!$Q$2:$Q$1000=Costs!AB$617))-SUMPRODUCT(('Fixed assets'!$Q$2:$Q$1000=Costs!AB$617)*('Fixed assets'!$U$2:$U$1000=Costs!$A692)*('Fixed assets'!$S$2:$S$1000))+SUMPRODUCT(('Fixed assets'!$Q$2:$Q$1000=Costs!AB$617)*('Fixed assets'!$P$2:$P$1000=Costs!$A692)*('Fixed assets'!$U$2:$U$1000=Costs!$A692)*('Fixed assets'!$R$2:$R$1000))","v":0},{"$f":"SUMPRODUCT(('Fixed assets'!$R$2:$R$1000)*('Fixed assets'!$P$2:$P$1000<$A692)*('Fixed assets'!$Q$2:$Q$1000=Costs!AC$617))-SUMPRODUCT(('Fixed assets'!$S$2:$S$1000)*('Fixed assets'!$P$2:$P$1000<Costs!$A692)*('Fixed assets'!$Q$2:$Q$1000=Costs!AC$617))-SUMPRODUCT(('Fixed assets'!$Q$2:$Q$1000=Costs!AC$617)*('Fixed assets'!$U$2:$U$1000=Costs!$A692)*('Fixed assets'!$S$2:$S$1000))+SUMPRODUCT(('Fixed assets'!$Q$2:$Q$1000=Costs!AC$617)*('Fixed assets'!$P$2:$P$1000=Costs!$A692)*('Fixed assets'!$U$2:$U$1000=Costs!$A692)*('Fixed assets'!$R$2:$R$1000))","v":0},{"$f":"SUMPRODUCT(('Fixed assets'!$R$2:$R$1000)*('Fixed assets'!$P$2:$P$1000<$A692)*('Fixed assets'!$Q$2:$Q$1000=Costs!AD$617))-SUMPRODUCT(('Fixed assets'!$S$2:$S$1000)*('Fixed assets'!$P$2:$P$1000<Costs!$A692)*('Fixed assets'!$Q$2:$Q$1000=Costs!AD$617))-SUMPRODUCT(('Fixed assets'!$Q$2:$Q$1000=Costs!AD$617)*('Fixed assets'!$U$2:$U$1000=Costs!$A692)*('Fixed assets'!$S$2:$S$1000))+SUMPRODUCT(('Fixed assets'!$Q$2:$Q$1000=Costs!AD$617)*('Fixed assets'!$P$2:$P$1000=Costs!$A692)*('Fixed assets'!$U$2:$U$1000=Costs!$A692)*('Fixed assets'!$R$2:$R$1000))","v":0},{"$f":"SUMPRODUCT(('Fixed assets'!$R$2:$R$1000)*('Fixed assets'!$P$2:$P$1000<$A692)*('Fixed assets'!$Q$2:$Q$1000=Costs!AE$617))-SUMPRODUCT(('Fixed assets'!$S$2:$S$1000)*('Fixed assets'!$P$2:$P$1000<Costs!$A692)*('Fixed assets'!$Q$2:$Q$1000=Costs!AE$617))-SUMPRODUCT(('Fixed assets'!$Q$2:$Q$1000=Costs!AE$617)*('Fixed assets'!$U$2:$U$1000=Costs!$A692)*('Fixed assets'!$S$2:$S$1000))+SUMPRODUCT(('Fixed assets'!$Q$2:$Q$1000=Costs!AE$617)*('Fixed assets'!$P$2:$P$1000=Costs!$A692)*('Fixed assets'!$U$2:$U$1000=Costs!$A692)*('Fixed assets'!$R$2:$R$1000))","v":0},{"$f":"SUMPRODUCT(('Fixed assets'!$R$2:$R$1000)*('Fixed assets'!$P$2:$P$1000<$A692)*('Fixed assets'!$Q$2:$Q$1000=Costs!AF$617))-SUMPRODUCT(('Fixed assets'!$S$2:$S$1000)*('Fixed assets'!$P$2:$P$1000<Costs!$A692)*('Fixed assets'!$Q$2:$Q$1000=Costs!AF$617))-SUMPRODUCT(('Fixed assets'!$Q$2:$Q$1000=Costs!AF$617)*('Fixed assets'!$U$2:$U$1000=Costs!$A692)*('Fixed assets'!$S$2:$S$1000))+SUMPRODUCT(('Fixed assets'!$Q$2:$Q$1000=Costs!AF$617)*('Fixed assets'!$P$2:$P$1000=Costs!$A692)*('Fixed assets'!$U$2:$U$1000=Costs!$A692)*('Fixed assets'!$R$2:$R$1000))","v":0},{"$f":"SUMPRODUCT(('Fixed assets'!$R$2:$R$1000)*('Fixed assets'!$P$2:$P$1000<$A692)*('Fixed assets'!$Q$2:$Q$1000=Costs!AG$617))-SUMPRODUCT(('Fixed assets'!$S$2:$S$1000)*('Fixed assets'!$P$2:$P$1000<Costs!$A692)*('Fixed assets'!$Q$2:$Q$1000=Costs!AG$617))-SUMPRODUCT(('Fixed assets'!$Q$2:$Q$1000=Costs!AG$617)*('Fixed assets'!$U$2:$U$1000=Costs!$A692)*('Fixed assets'!$S$2:$S$1000))+SUMPRODUCT(('Fixed assets'!$Q$2:$Q$1000=Costs!AG$617)*('Fixed assets'!$P$2:$P$1000=Costs!$A692)*('Fixed assets'!$U$2:$U$1000=Costs!$A692)*('Fixed assets'!$R$2:$R$1000))","v":0},{"$f":"SUMPRODUCT(('Fixed assets'!$R$2:$R$1000)*('Fixed assets'!$P$2:$P$1000<$A692)*('Fixed assets'!$Q$2:$Q$1000=Costs!AH$617))-SUMPRODUCT(('Fixed assets'!$S$2:$S$1000)*('Fixed assets'!$P$2:$P$1000<Costs!$A692)*('Fixed assets'!$Q$2:$Q$1000=Costs!AH$617))-SUMPRODUCT(('Fixed assets'!$Q$2:$Q$1000=Costs!AH$617)*('Fixed assets'!$U$2:$U$1000=Costs!$A692)*('Fixed assets'!$S$2:$S$1000))+SUMPRODUCT(('Fixed assets'!$Q$2:$Q$1000=Costs!AH$617)*('Fixed assets'!$P$2:$P$1000=Costs!$A692)*('Fixed assets'!$U$2:$U$1000=Costs!$A692)*('Fixed assets'!$R$2:$R$1000))","v":0},{"$f":"SUMPRODUCT(('Fixed assets'!$R$2:$R$1000)*('Fixed assets'!$P$2:$P$1000<$A692)*('Fixed assets'!$Q$2:$Q$1000=Costs!AI$617))-SUMPRODUCT(('Fixed assets'!$S$2:$S$1000)*('Fixed assets'!$P$2:$P$1000<Costs!$A692)*('Fixed assets'!$Q$2:$Q$1000=Costs!AI$617))-SUMPRODUCT(('Fixed assets'!$Q$2:$Q$1000=Costs!AI$617)*('Fixed assets'!$U$2:$U$1000=Costs!$A692)*('Fixed assets'!$S$2:$S$1000))+SUMPRODUCT(('Fixed assets'!$Q$2:$Q$1000=Costs!AI$617)*('Fixed assets'!$P$2:$P$1000=Costs!$A692)*('Fixed assets'!$U$2:$U$1000=Costs!$A692)*('Fixed assets'!$R$2:$R$1000))","v":0},{"$f":"SUMPRODUCT(('Fixed assets'!$R$2:$R$1000)*('Fixed assets'!$P$2:$P$1000<$A692)*('Fixed assets'!$Q$2:$Q$1000=Costs!AJ$617))-SUMPRODUCT(('Fixed assets'!$S$2:$S$1000)*('Fixed assets'!$P$2:$P$1000<Costs!$A692)*('Fixed assets'!$Q$2:$Q$1000=Costs!AJ$617))-SUMPRODUCT(('Fixed assets'!$Q$2:$Q$1000=Costs!AJ$617)*('Fixed assets'!$U$2:$U$1000=Costs!$A692)*('Fixed assets'!$S$2:$S$1000))+SUMPRODUCT(('Fixed assets'!$Q$2:$Q$1000=Costs!AJ$617)*('Fixed assets'!$P$2:$P$1000=Costs!$A692)*('Fixed assets'!$U$2:$U$1000=Costs!$A692)*('Fixed assets'!$R$2:$R$1000))","v":0},{"$f":"SUMPRODUCT(('Fixed assets'!$R$2:$R$1000)*('Fixed assets'!$P$2:$P$1000<$A692)*('Fixed assets'!$Q$2:$Q$1000=Costs!AK$617))-SUMPRODUCT(('Fixed assets'!$S$2:$S$1000)*('Fixed assets'!$P$2:$P$1000<Costs!$A692)*('Fixed assets'!$Q$2:$Q$1000=Costs!AK$617))-SUMPRODUCT(('Fixed assets'!$Q$2:$Q$1000=Costs!AK$617)*('Fixed assets'!$U$2:$U$1000=Costs!$A692)*('Fixed assets'!$S$2:$S$1000))+SUMPRODUCT(('Fixed assets'!$Q$2:$Q$1000=Costs!AK$617)*('Fixed assets'!$P$2:$P$1000=Costs!$A692)*('Fixed assets'!$U$2:$U$1000=Costs!$A692)*('Fixed assets'!$R$2:$R$1000))","v":0},{"$f":"SUMPRODUCT(('Fixed assets'!$R$2:$R$1000)*('Fixed assets'!$P$2:$P$1000<$A692)*('Fixed assets'!$Q$2:$Q$1000=Costs!AL$617))-SUMPRODUCT(('Fixed assets'!$S$2:$S$1000)*('Fixed assets'!$P$2:$P$1000<Costs!$A692)*('Fixed assets'!$Q$2:$Q$1000=Costs!AL$617))-SUMPRODUCT(('Fixed assets'!$Q$2:$Q$1000=Costs!AL$617)*('Fixed assets'!$U$2:$U$1000=Costs!$A692)*('Fixed assets'!$S$2:$S$1000))+SUMPRODUCT(('Fixed assets'!$Q$2:$Q$1000=Costs!AL$617)*('Fixed assets'!$P$2:$P$1000=Costs!$A692)*('Fixed assets'!$U$2:$U$1000=Costs!$A692)*('Fixed assets'!$R$2:$R$1000))","v":0},{"$f":"SUMPRODUCT(('Fixed assets'!$R$2:$R$1000)*('Fixed assets'!$P$2:$P$1000<$A692)*('Fixed assets'!$Q$2:$Q$1000=Costs!AM$617))-SUMPRODUCT(('Fixed assets'!$S$2:$S$1000)*('Fixed assets'!$P$2:$P$1000<Costs!$A692)*('Fixed assets'!$Q$2:$Q$1000=Costs!AM$617))-SUMPRODUCT(('Fixed assets'!$Q$2:$Q$1000=Costs!AM$617)*('Fixed assets'!$U$2:$U$1000=Costs!$A692)*('Fixed assets'!$S$2:$S$1000))+SUMPRODUCT(('Fixed assets'!$Q$2:$Q$1000=Costs!AM$617)*('Fixed assets'!$P$2:$P$1000=Costs!$A692)*('Fixed assets'!$U$2:$U$1000=Costs!$A692)*('Fixed assets'!$R$2:$R$1000))","v":0},{"$f":"SUMPRODUCT(('Fixed assets'!$R$2:$R$1000)*('Fixed assets'!$P$2:$P$1000<$A692)*('Fixed assets'!$Q$2:$Q$1000=Costs!AN$617))-SUMPRODUCT(('Fixed assets'!$S$2:$S$1000)*('Fixed assets'!$P$2:$P$1000<Costs!$A692)*('Fixed assets'!$Q$2:$Q$1000=Costs!AN$617))-SUMPRODUCT(('Fixed assets'!$Q$2:$Q$1000=Costs!AN$617)*('Fixed assets'!$U$2:$U$1000=Costs!$A692)*('Fixed assets'!$S$2:$S$1000))+SUMPRODUCT(('Fixed assets'!$Q$2:$Q$1000=Costs!AN$617)*('Fixed assets'!$P$2:$P$1000=Costs!$A692)*('Fixed assets'!$U$2:$U$1000=Costs!$A692)*('Fixed assets'!$R$2:$R$1000))","v":0},{"$f":"SUMPRODUCT(('Fixed assets'!$R$2:$R$1000)*('Fixed assets'!$P$2:$P$1000<$A692)*('Fixed assets'!$Q$2:$Q$1000=Costs!AO$617))-SUMPRODUCT(('Fixed assets'!$S$2:$S$1000)*('Fixed assets'!$P$2:$P$1000<Costs!$A692)*('Fixed assets'!$Q$2:$Q$1000=Costs!AO$617))-SUMPRODUCT(('Fixed assets'!$Q$2:$Q$1000=Costs!AO$617)*('Fixed assets'!$U$2:$U$1000=Costs!$A692)*('Fixed assets'!$S$2:$S$1000))+SUMPRODUCT(('Fixed assets'!$Q$2:$Q$1000=Costs!AO$617)*('Fixed assets'!$P$2:$P$1000=Costs!$A692)*('Fixed assets'!$U$2:$U$1000=Costs!$A692)*('Fixed assets'!$R$2:$R$1000))","v":0},{"$f":"SUMPRODUCT(('Fixed assets'!$R$2:$R$1000)*('Fixed assets'!$P$2:$P$1000<$A692)*('Fixed assets'!$Q$2:$Q$1000=Costs!AP$617))-SUMPRODUCT(('Fixed assets'!$S$2:$S$1000)*('Fixed assets'!$P$2:$P$1000<Costs!$A692)*('Fixed assets'!$Q$2:$Q$1000=Costs!AP$617))-SUMPRODUCT(('Fixed assets'!$Q$2:$Q$1000=Costs!AP$617)*('Fixed assets'!$U$2:$U$1000=Costs!$A692)*('Fixed assets'!$S$2:$S$1000))+SUMPRODUCT(('Fixed assets'!$Q$2:$Q$1000=Costs!AP$617)*('Fixed assets'!$P$2:$P$1000=Costs!$A692)*('Fixed assets'!$U$2:$U$1000=Costs!$A692)*('Fixed assets'!$R$2:$R$1000))","v":0},{"$f":"SUMPRODUCT(('Fixed assets'!$R$2:$R$1000)*('Fixed assets'!$P$2:$P$1000<$A692)*('Fixed assets'!$Q$2:$Q$1000=Costs!AQ$617))-SUMPRODUCT(('Fixed assets'!$S$2:$S$1000)*('Fixed assets'!$P$2:$P$1000<Costs!$A692)*('Fixed assets'!$Q$2:$Q$1000=Costs!AQ$617))-SUMPRODUCT(('Fixed assets'!$Q$2:$Q$1000=Costs!AQ$617)*('Fixed assets'!$U$2:$U$1000=Costs!$A692)*('Fixed assets'!$S$2:$S$1000))+SUMPRODUCT(('Fixed assets'!$Q$2:$Q$1000=Costs!AQ$617)*('Fixed assets'!$P$2:$P$1000=Costs!$A692)*('Fixed assets'!$U$2:$U$1000=Costs!$A692)*('Fixed assets'!$R$2:$R$1000))","v":0}]
[2090,0,{"$f":"SUMPRODUCT(('Fixed assets'!$R$2:$R$1000)*('Fixed assets'!$P$2:$P$1000<$A693)*('Fixed assets'!$Q$2:$Q$1000=Costs!C$617))-SUMPRODUCT(('Fixed assets'!$S$2:$S$1000)*('Fixed assets'!$P$2:$P$1000<Costs!$A693)*('Fixed assets'!$Q$2:$Q$1000=Costs!C$617))-SUMPRODUCT(('Fixed assets'!$Q$2:$Q$1000=Costs!C$617)*('Fixed assets'!$U$2:$U$1000=Costs!$A693)*('Fixed assets'!$S$2:$S$1000))+SUMPRODUCT(('Fixed assets'!$Q$2:$Q$1000=Costs!C$617)*('Fixed assets'!$P$2:$P$1000=Costs!$A693)*('Fixed assets'!$U$2:$U$1000=Costs!$A693)*('Fixed assets'!$R$2:$R$1000))","v":0},{"$f":"SUMPRODUCT(('Fixed assets'!$R$2:$R$1000)*('Fixed assets'!$P$2:$P$1000<$A693)*('Fixed assets'!$Q$2:$Q$1000=Costs!D$617))-SUMPRODUCT(('Fixed assets'!$S$2:$S$1000)*('Fixed assets'!$P$2:$P$1000<Costs!$A693)*('Fixed assets'!$Q$2:$Q$1000=Costs!D$617))-SUMPRODUCT(('Fixed assets'!$Q$2:$Q$1000=Costs!D$617)*('Fixed assets'!$U$2:$U$1000=Costs!$A693)*('Fixed assets'!$S$2:$S$1000))+SUMPRODUCT(('Fixed assets'!$Q$2:$Q$1000=Costs!D$617)*('Fixed assets'!$P$2:$P$1000=Costs!$A693)*('Fixed assets'!$U$2:$U$1000=Costs!$A693)*('Fixed assets'!$R$2:$R$1000))","v":0},{"$f":"SUMPRODUCT(('Fixed assets'!$R$2:$R$1000)*('Fixed assets'!$P$2:$P$1000<$A693)*('Fixed assets'!$Q$2:$Q$1000=Costs!E$617))-SUMPRODUCT(('Fixed assets'!$S$2:$S$1000)*('Fixed assets'!$P$2:$P$1000<Costs!$A693)*('Fixed assets'!$Q$2:$Q$1000=Costs!E$617))-SUMPRODUCT(('Fixed assets'!$Q$2:$Q$1000=Costs!E$617)*('Fixed assets'!$U$2:$U$1000=Costs!$A693)*('Fixed assets'!$S$2:$S$1000))+SUMPRODUCT(('Fixed assets'!$Q$2:$Q$1000=Costs!E$617)*('Fixed assets'!$P$2:$P$1000=Costs!$A693)*('Fixed assets'!$U$2:$U$1000=Costs!$A693)*('Fixed assets'!$R$2:$R$1000))","v":0},{"$f":"SUMPRODUCT(('Fixed assets'!$R$2:$R$1000)*('Fixed assets'!$P$2:$P$1000<$A693)*('Fixed assets'!$Q$2:$Q$1000=Costs!F$617))-SUMPRODUCT(('Fixed assets'!$S$2:$S$1000)*('Fixed assets'!$P$2:$P$1000<Costs!$A693)*('Fixed assets'!$Q$2:$Q$1000=Costs!F$617))-SUMPRODUCT(('Fixed assets'!$Q$2:$Q$1000=Costs!F$617)*('Fixed assets'!$U$2:$U$1000=Costs!$A693)*('Fixed assets'!$S$2:$S$1000))+SUMPRODUCT(('Fixed assets'!$Q$2:$Q$1000=Costs!F$617)*('Fixed assets'!$P$2:$P$1000=Costs!$A693)*('Fixed assets'!$U$2:$U$1000=Costs!$A693)*('Fixed assets'!$R$2:$R$1000))","v":0},{"$f":"SUMPRODUCT(('Fixed assets'!$R$2:$R$1000)*('Fixed assets'!$P$2:$P$1000<$A693)*('Fixed assets'!$Q$2:$Q$1000=Costs!G$617))-SUMPRODUCT(('Fixed assets'!$S$2:$S$1000)*('Fixed assets'!$P$2:$P$1000<Costs!$A693)*('Fixed assets'!$Q$2:$Q$1000=Costs!G$617))-SUMPRODUCT(('Fixed assets'!$Q$2:$Q$1000=Costs!G$617)*('Fixed assets'!$U$2:$U$1000=Costs!$A693)*('Fixed assets'!$S$2:$S$1000))+SUMPRODUCT(('Fixed assets'!$Q$2:$Q$1000=Costs!G$617)*('Fixed assets'!$P$2:$P$1000=Costs!$A693)*('Fixed assets'!$U$2:$U$1000=Costs!$A693)*('Fixed assets'!$R$2:$R$1000))","v":0},{"$f":"SUMPRODUCT(('Fixed assets'!$R$2:$R$1000)*('Fixed assets'!$P$2:$P$1000<$A693)*('Fixed assets'!$Q$2:$Q$1000=Costs!H$617))-SUMPRODUCT(('Fixed assets'!$S$2:$S$1000)*('Fixed assets'!$P$2:$P$1000<Costs!$A693)*('Fixed assets'!$Q$2:$Q$1000=Costs!H$617))-SUMPRODUCT(('Fixed assets'!$Q$2:$Q$1000=Costs!H$617)*('Fixed assets'!$U$2:$U$1000=Costs!$A693)*('Fixed assets'!$S$2:$S$1000))+SUMPRODUCT(('Fixed assets'!$Q$2:$Q$1000=Costs!H$617)*('Fixed assets'!$P$2:$P$1000=Costs!$A693)*('Fixed assets'!$U$2:$U$1000=Costs!$A693)*('Fixed assets'!$R$2:$R$1000))","v":0},{"$f":"SUMPRODUCT(('Fixed assets'!$R$2:$R$1000)*('Fixed assets'!$P$2:$P$1000<$A693)*('Fixed assets'!$Q$2:$Q$1000=Costs!I$617))-SUMPRODUCT(('Fixed assets'!$S$2:$S$1000)*('Fixed assets'!$P$2:$P$1000<Costs!$A693)*('Fixed assets'!$Q$2:$Q$1000=Costs!I$617))-SUMPRODUCT(('Fixed assets'!$Q$2:$Q$1000=Costs!I$617)*('Fixed assets'!$U$2:$U$1000=Costs!$A693)*('Fixed assets'!$S$2:$S$1000))+SUMPRODUCT(('Fixed assets'!$Q$2:$Q$1000=Costs!I$617)*('Fixed assets'!$P$2:$P$1000=Costs!$A693)*('Fixed assets'!$U$2:$U$1000=Costs!$A693)*('Fixed assets'!$R$2:$R$1000))","v":0},{"$f":"SUMPRODUCT(('Fixed assets'!$R$2:$R$1000)*('Fixed assets'!$P$2:$P$1000<$A693)*('Fixed assets'!$Q$2:$Q$1000=Costs!J$617))-SUMPRODUCT(('Fixed assets'!$S$2:$S$1000)*('Fixed assets'!$P$2:$P$1000<Costs!$A693)*('Fixed assets'!$Q$2:$Q$1000=Costs!J$617))-SUMPRODUCT(('Fixed assets'!$Q$2:$Q$1000=Costs!J$617)*('Fixed assets'!$U$2:$U$1000=Costs!$A693)*('Fixed assets'!$S$2:$S$1000))+SUMPRODUCT(('Fixed assets'!$Q$2:$Q$1000=Costs!J$617)*('Fixed assets'!$P$2:$P$1000=Costs!$A693)*('Fixed assets'!$U$2:$U$1000=Costs!$A693)*('Fixed assets'!$R$2:$R$1000))","v":0},{"$f":"SUMPRODUCT(('Fixed assets'!$R$2:$R$1000)*('Fixed assets'!$P$2:$P$1000<$A693)*('Fixed assets'!$Q$2:$Q$1000=Costs!K$617))-SUMPRODUCT(('Fixed assets'!$S$2:$S$1000)*('Fixed assets'!$P$2:$P$1000<Costs!$A693)*('Fixed assets'!$Q$2:$Q$1000=Costs!K$617))-SUMPRODUCT(('Fixed assets'!$Q$2:$Q$1000=Costs!K$617)*('Fixed assets'!$U$2:$U$1000=Costs!$A693)*('Fixed assets'!$S$2:$S$1000))+SUMPRODUCT(('Fixed assets'!$Q$2:$Q$1000=Costs!K$617)*('Fixed assets'!$P$2:$P$1000=Costs!$A693)*('Fixed assets'!$U$2:$U$1000=Costs!$A693)*('Fixed assets'!$R$2:$R$1000))","v":0},{"$f":"SUMPRODUCT(('Fixed assets'!$R$2:$R$1000)*('Fixed assets'!$P$2:$P$1000<$A693)*('Fixed assets'!$Q$2:$Q$1000=Costs!L$617))-SUMPRODUCT(('Fixed assets'!$S$2:$S$1000)*('Fixed assets'!$P$2:$P$1000<Costs!$A693)*('Fixed assets'!$Q$2:$Q$1000=Costs!L$617))-SUMPRODUCT(('Fixed assets'!$Q$2:$Q$1000=Costs!L$617)*('Fixed assets'!$U$2:$U$1000=Costs!$A693)*('Fixed assets'!$S$2:$S$1000))+SUMPRODUCT(('Fixed assets'!$Q$2:$Q$1000=Costs!L$617)*('Fixed assets'!$P$2:$P$1000=Costs!$A693)*('Fixed assets'!$U$2:$U$1000=Costs!$A693)*('Fixed assets'!$R$2:$R$1000))","v":0},{"$f":"SUMPRODUCT(('Fixed assets'!$R$2:$R$1000)*('Fixed assets'!$P$2:$P$1000<$A693)*('Fixed assets'!$Q$2:$Q$1000=Costs!M$617))-SUMPRODUCT(('Fixed assets'!$S$2:$S$1000)*('Fixed assets'!$P$2:$P$1000<Costs!$A693)*('Fixed assets'!$Q$2:$Q$1000=Costs!M$617))-SUMPRODUCT(('Fixed assets'!$Q$2:$Q$1000=Costs!M$617)*('Fixed assets'!$U$2:$U$1000=Costs!$A693)*('Fixed assets'!$S$2:$S$1000))+SUMPRODUCT(('Fixed assets'!$Q$2:$Q$1000=Costs!M$617)*('Fixed assets'!$P$2:$P$1000=Costs!$A693)*('Fixed assets'!$U$2:$U$1000=Costs!$A693)*('Fixed assets'!$R$2:$R$1000))","v":0},{"$f":"SUMPRODUCT(('Fixed assets'!$R$2:$R$1000)*('Fixed assets'!$P$2:$P$1000<$A693)*('Fixed assets'!$Q$2:$Q$1000=Costs!N$617))-SUMPRODUCT(('Fixed assets'!$S$2:$S$1000)*('Fixed assets'!$P$2:$P$1000<Costs!$A693)*('Fixed assets'!$Q$2:$Q$1000=Costs!N$617))-SUMPRODUCT(('Fixed assets'!$Q$2:$Q$1000=Costs!N$617)*('Fixed assets'!$U$2:$U$1000=Costs!$A693)*('Fixed assets'!$S$2:$S$1000))+SUMPRODUCT(('Fixed assets'!$Q$2:$Q$1000=Costs!N$617)*('Fixed assets'!$P$2:$P$1000=Costs!$A693)*('Fixed assets'!$U$2:$U$1000=Costs!$A693)*('Fixed assets'!$R$2:$R$1000))","v":0},{"$f":"SUMPRODUCT(('Fixed assets'!$R$2:$R$1000)*('Fixed assets'!$P$2:$P$1000<$A693)*('Fixed assets'!$Q$2:$Q$1000=Costs!O$617))-SUMPRODUCT(('Fixed assets'!$S$2:$S$1000)*('Fixed assets'!$P$2:$P$1000<Costs!$A693)*('Fixed assets'!$Q$2:$Q$1000=Costs!O$617))-SUMPRODUCT(('Fixed assets'!$Q$2:$Q$1000=Costs!O$617)*('Fixed assets'!$U$2:$U$1000=Costs!$A693)*('Fixed assets'!$S$2:$S$1000))+SUMPRODUCT(('Fixed assets'!$Q$2:$Q$1000=Costs!O$617)*('Fixed assets'!$P$2:$P$1000=Costs!$A693)*('Fixed assets'!$U$2:$U$1000=Costs!$A693)*('Fixed assets'!$R$2:$R$1000))","v":0},{"$f":"SUMPRODUCT(('Fixed assets'!$R$2:$R$1000)*('Fixed assets'!$P$2:$P$1000<$A693)*('Fixed assets'!$Q$2:$Q$1000=Costs!P$617))-SUMPRODUCT(('Fixed assets'!$S$2:$S$1000)*('Fixed assets'!$P$2:$P$1000<Costs!$A693)*('Fixed assets'!$Q$2:$Q$1000=Costs!P$617))-SUMPRODUCT(('Fixed assets'!$Q$2:$Q$1000=Costs!P$617)*('Fixed assets'!$U$2:$U$1000=Costs!$A693)*('Fixed assets'!$S$2:$S$1000))+SUMPRODUCT(('Fixed assets'!$Q$2:$Q$1000=Costs!P$617)*('Fixed assets'!$P$2:$P$1000=Costs!$A693)*('Fixed assets'!$U$2:$U$1000=Costs!$A693)*('Fixed assets'!$R$2:$R$1000))","v":0},{"$f":"SUMPRODUCT(('Fixed assets'!$R$2:$R$1000)*('Fixed assets'!$P$2:$P$1000<$A693)*('Fixed assets'!$Q$2:$Q$1000=Costs!Q$617))-SUMPRODUCT(('Fixed assets'!$S$2:$S$1000)*('Fixed assets'!$P$2:$P$1000<Costs!$A693)*('Fixed assets'!$Q$2:$Q$1000=Costs!Q$617))-SUMPRODUCT(('Fixed assets'!$Q$2:$Q$1000=Costs!Q$617)*('Fixed assets'!$U$2:$U$1000=Costs!$A693)*('Fixed assets'!$S$2:$S$1000))+SUMPRODUCT(('Fixed assets'!$Q$2:$Q$1000=Costs!Q$617)*('Fixed assets'!$P$2:$P$1000=Costs!$A693)*('Fixed assets'!$U$2:$U$1000=Costs!$A693)*('Fixed assets'!$R$2:$R$1000))","v":0},{"$f":"SUMPRODUCT(('Fixed assets'!$R$2:$R$1000)*('Fixed assets'!$P$2:$P$1000<$A693)*('Fixed assets'!$Q$2:$Q$1000=Costs!R$617))-SUMPRODUCT(('Fixed assets'!$S$2:$S$1000)*('Fixed assets'!$P$2:$P$1000<Costs!$A693)*('Fixed assets'!$Q$2:$Q$1000=Costs!R$617))-SUMPRODUCT(('Fixed assets'!$Q$2:$Q$1000=Costs!R$617)*('Fixed assets'!$U$2:$U$1000=Costs!$A693)*('Fixed assets'!$S$2:$S$1000))+SUMPRODUCT(('Fixed assets'!$Q$2:$Q$1000=Costs!R$617)*('Fixed assets'!$P$2:$P$1000=Costs!$A693)*('Fixed assets'!$U$2:$U$1000=Costs!$A693)*('Fixed assets'!$R$2:$R$1000))","v":0},{"$f":"SUMPRODUCT(('Fixed assets'!$R$2:$R$1000)*('Fixed assets'!$P$2:$P$1000<$A693)*('Fixed assets'!$Q$2:$Q$1000=Costs!S$617))-SUMPRODUCT(('Fixed assets'!$S$2:$S$1000)*('Fixed assets'!$P$2:$P$1000<Costs!$A693)*('Fixed assets'!$Q$2:$Q$1000=Costs!S$617))-SUMPRODUCT(('Fixed assets'!$Q$2:$Q$1000=Costs!S$617)*('Fixed assets'!$U$2:$U$1000=Costs!$A693)*('Fixed assets'!$S$2:$S$1000))+SUMPRODUCT(('Fixed assets'!$Q$2:$Q$1000=Costs!S$617)*('Fixed assets'!$P$2:$P$1000=Costs!$A693)*('Fixed assets'!$U$2:$U$1000=Costs!$A693)*('Fixed assets'!$R$2:$R$1000))","v":0},{"$f":"SUMPRODUCT(('Fixed assets'!$R$2:$R$1000)*('Fixed assets'!$P$2:$P$1000<$A693)*('Fixed assets'!$Q$2:$Q$1000=Costs!T$617))-SUMPRODUCT(('Fixed assets'!$S$2:$S$1000)*('Fixed assets'!$P$2:$P$1000<Costs!$A693)*('Fixed assets'!$Q$2:$Q$1000=Costs!T$617))-SUMPRODUCT(('Fixed assets'!$Q$2:$Q$1000=Costs!T$617)*('Fixed assets'!$U$2:$U$1000=Costs!$A693)*('Fixed assets'!$S$2:$S$1000))+SUMPRODUCT(('Fixed assets'!$Q$2:$Q$1000=Costs!T$617)*('Fixed assets'!$P$2:$P$1000=Costs!$A693)*('Fixed assets'!$U$2:$U$1000=Costs!$A693)*('Fixed assets'!$R$2:$R$1000))","v":0},{"$f":"SUMPRODUCT(('Fixed assets'!$R$2:$R$1000)*('Fixed assets'!$P$2:$P$1000<$A693)*('Fixed assets'!$Q$2:$Q$1000=Costs!U$617))-SUMPRODUCT(('Fixed assets'!$S$2:$S$1000)*('Fixed assets'!$P$2:$P$1000<Costs!$A693)*('Fixed assets'!$Q$2:$Q$1000=Costs!U$617))-SUMPRODUCT(('Fixed assets'!$Q$2:$Q$1000=Costs!U$617)*('Fixed assets'!$U$2:$U$1000=Costs!$A693)*('Fixed assets'!$S$2:$S$1000))+SUMPRODUCT(('Fixed assets'!$Q$2:$Q$1000=Costs!U$617)*('Fixed assets'!$P$2:$P$1000=Costs!$A693)*('Fixed assets'!$U$2:$U$1000=Costs!$A693)*('Fixed assets'!$R$2:$R$1000))","v":0},{"$f":"SUMPRODUCT(('Fixed assets'!$R$2:$R$1000)*('Fixed assets'!$P$2:$P$1000<$A693)*('Fixed assets'!$Q$2:$Q$1000=Costs!V$617))-SUMPRODUCT(('Fixed assets'!$S$2:$S$1000)*('Fixed assets'!$P$2:$P$1000<Costs!$A693)*('Fixed assets'!$Q$2:$Q$1000=Costs!V$617))-SUMPRODUCT(('Fixed assets'!$Q$2:$Q$1000=Costs!V$617)*('Fixed assets'!$U$2:$U$1000=Costs!$A693)*('Fixed assets'!$S$2:$S$1000))+SUMPRODUCT(('Fixed assets'!$Q$2:$Q$1000=Costs!V$617)*('Fixed assets'!$P$2:$P$1000=Costs!$A693)*('Fixed assets'!$U$2:$U$1000=Costs!$A693)*('Fixed assets'!$R$2:$R$1000))","v":0},{"$f":"SUMPRODUCT(('Fixed assets'!$R$2:$R$1000)*('Fixed assets'!$P$2:$P$1000<$A693)*('Fixed assets'!$Q$2:$Q$1000=Costs!W$617))-SUMPRODUCT(('Fixed assets'!$S$2:$S$1000)*('Fixed assets'!$P$2:$P$1000<Costs!$A693)*('Fixed assets'!$Q$2:$Q$1000=Costs!W$617))-SUMPRODUCT(('Fixed assets'!$Q$2:$Q$1000=Costs!W$617)*('Fixed assets'!$U$2:$U$1000=Costs!$A693)*('Fixed assets'!$S$2:$S$1000))+SUMPRODUCT(('Fixed assets'!$Q$2:$Q$1000=Costs!W$617)*('Fixed assets'!$P$2:$P$1000=Costs!$A693)*('Fixed assets'!$U$2:$U$1000=Costs!$A693)*('Fixed assets'!$R$2:$R$1000))","v":0},{"$f":"SUMPRODUCT(('Fixed assets'!$R$2:$R$1000)*('Fixed assets'!$P$2:$P$1000<$A693)*('Fixed assets'!$Q$2:$Q$1000=Costs!X$617))-SUMPRODUCT(('Fixed assets'!$S$2:$S$1000)*('Fixed assets'!$P$2:$P$1000<Costs!$A693)*('Fixed assets'!$Q$2:$Q$1000=Costs!X$617))-SUMPRODUCT(('Fixed assets'!$Q$2:$Q$1000=Costs!X$617)*('Fixed assets'!$U$2:$U$1000=Costs!$A693)*('Fixed assets'!$S$2:$S$1000))+SUMPRODUCT(('Fixed assets'!$Q$2:$Q$1000=Costs!X$617)*('Fixed assets'!$P$2:$P$1000=Costs!$A693)*('Fixed assets'!$U$2:$U$1000=Costs!$A693)*('Fixed assets'!$R$2:$R$1000))","v":0},{"$f":"SUMPRODUCT(('Fixed assets'!$R$2:$R$1000)*('Fixed assets'!$P$2:$P$1000<$A693)*('Fixed assets'!$Q$2:$Q$1000=Costs!Y$617))-SUMPRODUCT(('Fixed assets'!$S$2:$S$1000)*('Fixed assets'!$P$2:$P$1000<Costs!$A693)*('Fixed assets'!$Q$2:$Q$1000=Costs!Y$617))-SUMPRODUCT(('Fixed assets'!$Q$2:$Q$1000=Costs!Y$617)*('Fixed assets'!$U$2:$U$1000=Costs!$A693)*('Fixed assets'!$S$2:$S$1000))+SUMPRODUCT(('Fixed assets'!$Q$2:$Q$1000=Costs!Y$617)*('Fixed assets'!$P$2:$P$1000=Costs!$A693)*('Fixed assets'!$U$2:$U$1000=Costs!$A693)*('Fixed assets'!$R$2:$R$1000))","v":0},{"$f":"SUMPRODUCT(('Fixed assets'!$R$2:$R$1000)*('Fixed assets'!$P$2:$P$1000<$A693)*('Fixed assets'!$Q$2:$Q$1000=Costs!Z$617))-SUMPRODUCT(('Fixed assets'!$S$2:$S$1000)*('Fixed assets'!$P$2:$P$1000<Costs!$A693)*('Fixed assets'!$Q$2:$Q$1000=Costs!Z$617))-SUMPRODUCT(('Fixed assets'!$Q$2:$Q$1000=Costs!Z$617)*('Fixed assets'!$U$2:$U$1000=Costs!$A693)*('Fixed assets'!$S$2:$S$1000))+SUMPRODUCT(('Fixed assets'!$Q$2:$Q$1000=Costs!Z$617)*('Fixed assets'!$P$2:$P$1000=Costs!$A693)*('Fixed assets'!$U$2:$U$1000=Costs!$A693)*('Fixed assets'!$R$2:$R$1000))","v":0},{"$f":"SUMPRODUCT(('Fixed assets'!$R$2:$R$1000)*('Fixed assets'!$P$2:$P$1000<$A693)*('Fixed assets'!$Q$2:$Q$1000=Costs!AA$617))-SUMPRODUCT(('Fixed assets'!$S$2:$S$1000)*('Fixed assets'!$P$2:$P$1000<Costs!$A693)*('Fixed assets'!$Q$2:$Q$1000=Costs!AA$617))-SUMPRODUCT(('Fixed assets'!$Q$2:$Q$1000=Costs!AA$617)*('Fixed assets'!$U$2:$U$1000=Costs!$A693)*('Fixed assets'!$S$2:$S$1000))+SUMPRODUCT(('Fixed assets'!$Q$2:$Q$1000=Costs!AA$617)*('Fixed assets'!$P$2:$P$1000=Costs!$A693)*('Fixed assets'!$U$2:$U$1000=Costs!$A693)*('Fixed assets'!$R$2:$R$1000))","v":0},{"$f":"SUMPRODUCT(('Fixed assets'!$R$2:$R$1000)*('Fixed assets'!$P$2:$P$1000<$A693)*('Fixed assets'!$Q$2:$Q$1000=Costs!AB$617))-SUMPRODUCT(('Fixed assets'!$S$2:$S$1000)*('Fixed assets'!$P$2:$P$1000<Costs!$A693)*('Fixed assets'!$Q$2:$Q$1000=Costs!AB$617))-SUMPRODUCT(('Fixed assets'!$Q$2:$Q$1000=Costs!AB$617)*('Fixed assets'!$U$2:$U$1000=Costs!$A693)*('Fixed assets'!$S$2:$S$1000))+SUMPRODUCT(('Fixed assets'!$Q$2:$Q$1000=Costs!AB$617)*('Fixed assets'!$P$2:$P$1000=Costs!$A693)*('Fixed assets'!$U$2:$U$1000=Costs!$A693)*('Fixed assets'!$R$2:$R$1000))","v":0},{"$f":"SUMPRODUCT(('Fixed assets'!$R$2:$R$1000)*('Fixed assets'!$P$2:$P$1000<$A693)*('Fixed assets'!$Q$2:$Q$1000=Costs!AC$617))-SUMPRODUCT(('Fixed assets'!$S$2:$S$1000)*('Fixed assets'!$P$2:$P$1000<Costs!$A693)*('Fixed assets'!$Q$2:$Q$1000=Costs!AC$617))-SUMPRODUCT(('Fixed assets'!$Q$2:$Q$1000=Costs!AC$617)*('Fixed assets'!$U$2:$U$1000=Costs!$A693)*('Fixed assets'!$S$2:$S$1000))+SUMPRODUCT(('Fixed assets'!$Q$2:$Q$1000=Costs!AC$617)*('Fixed assets'!$P$2:$P$1000=Costs!$A693)*('Fixed assets'!$U$2:$U$1000=Costs!$A693)*('Fixed assets'!$R$2:$R$1000))","v":0},{"$f":"SUMPRODUCT(('Fixed assets'!$R$2:$R$1000)*('Fixed assets'!$P$2:$P$1000<$A693)*('Fixed assets'!$Q$2:$Q$1000=Costs!AD$617))-SUMPRODUCT(('Fixed assets'!$S$2:$S$1000)*('Fixed assets'!$P$2:$P$1000<Costs!$A693)*('Fixed assets'!$Q$2:$Q$1000=Costs!AD$617))-SUMPRODUCT(('Fixed assets'!$Q$2:$Q$1000=Costs!AD$617)*('Fixed assets'!$U$2:$U$1000=Costs!$A693)*('Fixed assets'!$S$2:$S$1000))+SUMPRODUCT(('Fixed assets'!$Q$2:$Q$1000=Costs!AD$617)*('Fixed assets'!$P$2:$P$1000=Costs!$A693)*('Fixed assets'!$U$2:$U$1000=Costs!$A693)*('Fixed assets'!$R$2:$R$1000))","v":0},{"$f":"SUMPRODUCT(('Fixed assets'!$R$2:$R$1000)*('Fixed assets'!$P$2:$P$1000<$A693)*('Fixed assets'!$Q$2:$Q$1000=Costs!AE$617))-SUMPRODUCT(('Fixed assets'!$S$2:$S$1000)*('Fixed assets'!$P$2:$P$1000<Costs!$A693)*('Fixed assets'!$Q$2:$Q$1000=Costs!AE$617))-SUMPRODUCT(('Fixed assets'!$Q$2:$Q$1000=Costs!AE$617)*('Fixed assets'!$U$2:$U$1000=Costs!$A693)*('Fixed assets'!$S$2:$S$1000))+SUMPRODUCT(('Fixed assets'!$Q$2:$Q$1000=Costs!AE$617)*('Fixed assets'!$P$2:$P$1000=Costs!$A693)*('Fixed assets'!$U$2:$U$1000=Costs!$A693)*('Fixed assets'!$R$2:$R$1000))","v":0},{"$f":"SUMPRODUCT(('Fixed assets'!$R$2:$R$1000)*('Fixed assets'!$P$2:$P$1000<$A693)*('Fixed assets'!$Q$2:$Q$1000=Costs!AF$617))-SUMPRODUCT(('Fixed assets'!$S$2:$S$1000)*('Fixed assets'!$P$2:$P$1000<Costs!$A693)*('Fixed assets'!$Q$2:$Q$1000=Costs!AF$617))-SUMPRODUCT(('Fixed assets'!$Q$2:$Q$1000=Costs!AF$617)*('Fixed assets'!$U$2:$U$1000=Costs!$A693)*('Fixed assets'!$S$2:$S$1000))+SUMPRODUCT(('Fixed assets'!$Q$2:$Q$1000=Costs!AF$617)*('Fixed assets'!$P$2:$P$1000=Costs!$A693)*('Fixed assets'!$U$2:$U$1000=Costs!$A693)*('Fixed assets'!$R$2:$R$1000))","v":0},{"$f":"SUMPRODUCT(('Fixed assets'!$R$2:$R$1000)*('Fixed assets'!$P$2:$P$1000<$A693)*('Fixed assets'!$Q$2:$Q$1000=Costs!AG$617))-SUMPRODUCT(('Fixed assets'!$S$2:$S$1000)*('Fixed assets'!$P$2:$P$1000<Costs!$A693)*('Fixed assets'!$Q$2:$Q$1000=Costs!AG$617))-SUMPRODUCT(('Fixed assets'!$Q$2:$Q$1000=Costs!AG$617)*('Fixed assets'!$U$2:$U$1000=Costs!$A693)*('Fixed assets'!$S$2:$S$1000))+SUMPRODUCT(('Fixed assets'!$Q$2:$Q$1000=Costs!AG$617)*('Fixed assets'!$P$2:$P$1000=Costs!$A693)*('Fixed assets'!$U$2:$U$1000=Costs!$A693)*('Fixed assets'!$R$2:$R$1000))","v":0},{"$f":"SUMPRODUCT(('Fixed assets'!$R$2:$R$1000)*('Fixed assets'!$P$2:$P$1000<$A693)*('Fixed assets'!$Q$2:$Q$1000=Costs!AH$617))-SUMPRODUCT(('Fixed assets'!$S$2:$S$1000)*('Fixed assets'!$P$2:$P$1000<Costs!$A693)*('Fixed assets'!$Q$2:$Q$1000=Costs!AH$617))-SUMPRODUCT(('Fixed assets'!$Q$2:$Q$1000=Costs!AH$617)*('Fixed assets'!$U$2:$U$1000=Costs!$A693)*('Fixed assets'!$S$2:$S$1000))+SUMPRODUCT(('Fixed assets'!$Q$2:$Q$1000=Costs!AH$617)*('Fixed assets'!$P$2:$P$1000=Costs!$A693)*('Fixed assets'!$U$2:$U$1000=Costs!$A693)*('Fixed assets'!$R$2:$R$1000))","v":0},{"$f":"SUMPRODUCT(('Fixed assets'!$R$2:$R$1000)*('Fixed assets'!$P$2:$P$1000<$A693)*('Fixed assets'!$Q$2:$Q$1000=Costs!AI$617))-SUMPRODUCT(('Fixed assets'!$S$2:$S$1000)*('Fixed assets'!$P$2:$P$1000<Costs!$A693)*('Fixed assets'!$Q$2:$Q$1000=Costs!AI$617))-SUMPRODUCT(('Fixed assets'!$Q$2:$Q$1000=Costs!AI$617)*('Fixed assets'!$U$2:$U$1000=Costs!$A693)*('Fixed assets'!$S$2:$S$1000))+SUMPRODUCT(('Fixed assets'!$Q$2:$Q$1000=Costs!AI$617)*('Fixed assets'!$P$2:$P$1000=Costs!$A693)*('Fixed assets'!$U$2:$U$1000=Costs!$A693)*('Fixed assets'!$R$2:$R$1000))","v":0},{"$f":"SUMPRODUCT(('Fixed assets'!$R$2:$R$1000)*('Fixed assets'!$P$2:$P$1000<$A693)*('Fixed assets'!$Q$2:$Q$1000=Costs!AJ$617))-SUMPRODUCT(('Fixed assets'!$S$2:$S$1000)*('Fixed assets'!$P$2:$P$1000<Costs!$A693)*('Fixed assets'!$Q$2:$Q$1000=Costs!AJ$617))-SUMPRODUCT(('Fixed assets'!$Q$2:$Q$1000=Costs!AJ$617)*('Fixed assets'!$U$2:$U$1000=Costs!$A693)*('Fixed assets'!$S$2:$S$1000))+SUMPRODUCT(('Fixed assets'!$Q$2:$Q$1000=Costs!AJ$617)*('Fixed assets'!$P$2:$P$1000=Costs!$A693)*('Fixed assets'!$U$2:$U$1000=Costs!$A693)*('Fixed assets'!$R$2:$R$1000))","v":0},{"$f":"SUMPRODUCT(('Fixed assets'!$R$2:$R$1000)*('Fixed assets'!$P$2:$P$1000<$A693)*('Fixed assets'!$Q$2:$Q$1000=Costs!AK$617))-SUMPRODUCT(('Fixed assets'!$S$2:$S$1000)*('Fixed assets'!$P$2:$P$1000<Costs!$A693)*('Fixed assets'!$Q$2:$Q$1000=Costs!AK$617))-SUMPRODUCT(('Fixed assets'!$Q$2:$Q$1000=Costs!AK$617)*('Fixed assets'!$U$2:$U$1000=Costs!$A693)*('Fixed assets'!$S$2:$S$1000))+SUMPRODUCT(('Fixed assets'!$Q$2:$Q$1000=Costs!AK$617)*('Fixed assets'!$P$2:$P$1000=Costs!$A693)*('Fixed assets'!$U$2:$U$1000=Costs!$A693)*('Fixed assets'!$R$2:$R$1000))","v":0},{"$f":"SUMPRODUCT(('Fixed assets'!$R$2:$R$1000)*('Fixed assets'!$P$2:$P$1000<$A693)*('Fixed assets'!$Q$2:$Q$1000=Costs!AL$617))-SUMPRODUCT(('Fixed assets'!$S$2:$S$1000)*('Fixed assets'!$P$2:$P$1000<Costs!$A693)*('Fixed assets'!$Q$2:$Q$1000=Costs!AL$617))-SUMPRODUCT(('Fixed assets'!$Q$2:$Q$1000=Costs!AL$617)*('Fixed assets'!$U$2:$U$1000=Costs!$A693)*('Fixed assets'!$S$2:$S$1000))+SUMPRODUCT(('Fixed assets'!$Q$2:$Q$1000=Costs!AL$617)*('Fixed assets'!$P$2:$P$1000=Costs!$A693)*('Fixed assets'!$U$2:$U$1000=Costs!$A693)*('Fixed assets'!$R$2:$R$1000))","v":0},{"$f":"SUMPRODUCT(('Fixed assets'!$R$2:$R$1000)*('Fixed assets'!$P$2:$P$1000<$A693)*('Fixed assets'!$Q$2:$Q$1000=Costs!AM$617))-SUMPRODUCT(('Fixed assets'!$S$2:$S$1000)*('Fixed assets'!$P$2:$P$1000<Costs!$A693)*('Fixed assets'!$Q$2:$Q$1000=Costs!AM$617))-SUMPRODUCT(('Fixed assets'!$Q$2:$Q$1000=Costs!AM$617)*('Fixed assets'!$U$2:$U$1000=Costs!$A693)*('Fixed assets'!$S$2:$S$1000))+SUMPRODUCT(('Fixed assets'!$Q$2:$Q$1000=Costs!AM$617)*('Fixed assets'!$P$2:$P$1000=Costs!$A693)*('Fixed assets'!$U$2:$U$1000=Costs!$A693)*('Fixed assets'!$R$2:$R$1000))","v":0},{"$f":"SUMPRODUCT(('Fixed assets'!$R$2:$R$1000)*('Fixed assets'!$P$2:$P$1000<$A693)*('Fixed assets'!$Q$2:$Q$1000=Costs!AN$617))-SUMPRODUCT(('Fixed assets'!$S$2:$S$1000)*('Fixed assets'!$P$2:$P$1000<Costs!$A693)*('Fixed assets'!$Q$2:$Q$1000=Costs!AN$617))-SUMPRODUCT(('Fixed assets'!$Q$2:$Q$1000=Costs!AN$617)*('Fixed assets'!$U$2:$U$1000=Costs!$A693)*('Fixed assets'!$S$2:$S$1000))+SUMPRODUCT(('Fixed assets'!$Q$2:$Q$1000=Costs!AN$617)*('Fixed assets'!$P$2:$P$1000=Costs!$A693)*('Fixed assets'!$U$2:$U$1000=Costs!$A693)*('Fixed assets'!$R$2:$R$1000))","v":0},{"$f":"SUMPRODUCT(('Fixed assets'!$R$2:$R$1000)*('Fixed assets'!$P$2:$P$1000<$A693)*('Fixed assets'!$Q$2:$Q$1000=Costs!AO$617))-SUMPRODUCT(('Fixed assets'!$S$2:$S$1000)*('Fixed assets'!$P$2:$P$1000<Costs!$A693)*('Fixed assets'!$Q$2:$Q$1000=Costs!AO$617))-SUMPRODUCT(('Fixed assets'!$Q$2:$Q$1000=Costs!AO$617)*('Fixed assets'!$U$2:$U$1000=Costs!$A693)*('Fixed assets'!$S$2:$S$1000))+SUMPRODUCT(('Fixed assets'!$Q$2:$Q$1000=Costs!AO$617)*('Fixed assets'!$P$2:$P$1000=Costs!$A693)*('Fixed assets'!$U$2:$U$1000=Costs!$A693)*('Fixed assets'!$R$2:$R$1000))","v":0},{"$f":"SUMPRODUCT(('Fixed assets'!$R$2:$R$1000)*('Fixed assets'!$P$2:$P$1000<$A693)*('Fixed assets'!$Q$2:$Q$1000=Costs!AP$617))-SUMPRODUCT(('Fixed assets'!$S$2:$S$1000)*('Fixed assets'!$P$2:$P$1000<Costs!$A693)*('Fixed assets'!$Q$2:$Q$1000=Costs!AP$617))-SUMPRODUCT(('Fixed assets'!$Q$2:$Q$1000=Costs!AP$617)*('Fixed assets'!$U$2:$U$1000=Costs!$A693)*('Fixed assets'!$S$2:$S$1000))+SUMPRODUCT(('Fixed assets'!$Q$2:$Q$1000=Costs!AP$617)*('Fixed assets'!$P$2:$P$1000=Costs!$A693)*('Fixed assets'!$U$2:$U$1000=Costs!$A693)*('Fixed assets'!$R$2:$R$1000))","v":0},{"$f":"SUMPRODUCT(('Fixed assets'!$R$2:$R$1000)*('Fixed assets'!$P$2:$P$1000<$A693)*('Fixed assets'!$Q$2:$Q$1000=Costs!AQ$617))-SUMPRODUCT(('Fixed assets'!$S$2:$S$1000)*('Fixed assets'!$P$2:$P$1000<Costs!$A693)*('Fixed assets'!$Q$2:$Q$1000=Costs!AQ$617))-SUMPRODUCT(('Fixed assets'!$Q$2:$Q$1000=Costs!AQ$617)*('Fixed assets'!$U$2:$U$1000=Costs!$A693)*('Fixed assets'!$S$2:$S$1000))+SUMPRODUCT(('Fixed assets'!$Q$2:$Q$1000=Costs!AQ$617)*('Fixed assets'!$P$2:$P$1000=Costs!$A693)*('Fixed assets'!$U$2:$U$1000=Costs!$A693)*('Fixed assets'!$R$2:$R$1000))","v":0}]
[2091,0,{"$f":"SUMPRODUCT(('Fixed assets'!$R$2:$R$1000)*('Fixed assets'!$P$2:$P$1000<$A694)*('Fixed assets'!$Q$2:$Q$1000=Costs!C$617))-SUMPRODUCT(('Fixed assets'!$S$2:$S$1000)*('Fixed assets'!$P$2:$P$1000<Costs!$A694)*('Fixed assets'!$Q$2:$Q$1000=Costs!C$617))-SUMPRODUCT(('Fixed assets'!$Q$2:$Q$1000=Costs!C$617)*('Fixed assets'!$U$2:$U$1000=Costs!$A694)*('Fixed assets'!$S$2:$S$1000))+SUMPRODUCT(('Fixed assets'!$Q$2:$Q$1000=Costs!C$617)*('Fixed assets'!$P$2:$P$1000=Costs!$A694)*('Fixed assets'!$U$2:$U$1000=Costs!$A694)*('Fixed assets'!$R$2:$R$1000))","v":0},{"$f":"SUMPRODUCT(('Fixed assets'!$R$2:$R$1000)*('Fixed assets'!$P$2:$P$1000<$A694)*('Fixed assets'!$Q$2:$Q$1000=Costs!D$617))-SUMPRODUCT(('Fixed assets'!$S$2:$S$1000)*('Fixed assets'!$P$2:$P$1000<Costs!$A694)*('Fixed assets'!$Q$2:$Q$1000=Costs!D$617))-SUMPRODUCT(('Fixed assets'!$Q$2:$Q$1000=Costs!D$617)*('Fixed assets'!$U$2:$U$1000=Costs!$A694)*('Fixed assets'!$S$2:$S$1000))+SUMPRODUCT(('Fixed assets'!$Q$2:$Q$1000=Costs!D$617)*('Fixed assets'!$P$2:$P$1000=Costs!$A694)*('Fixed assets'!$U$2:$U$1000=Costs!$A694)*('Fixed assets'!$R$2:$R$1000))","v":0},{"$f":"SUMPRODUCT(('Fixed assets'!$R$2:$R$1000)*('Fixed assets'!$P$2:$P$1000<$A694)*('Fixed assets'!$Q$2:$Q$1000=Costs!E$617))-SUMPRODUCT(('Fixed assets'!$S$2:$S$1000)*('Fixed assets'!$P$2:$P$1000<Costs!$A694)*('Fixed assets'!$Q$2:$Q$1000=Costs!E$617))-SUMPRODUCT(('Fixed assets'!$Q$2:$Q$1000=Costs!E$617)*('Fixed assets'!$U$2:$U$1000=Costs!$A694)*('Fixed assets'!$S$2:$S$1000))+SUMPRODUCT(('Fixed assets'!$Q$2:$Q$1000=Costs!E$617)*('Fixed assets'!$P$2:$P$1000=Costs!$A694)*('Fixed assets'!$U$2:$U$1000=Costs!$A694)*('Fixed assets'!$R$2:$R$1000))","v":0},{"$f":"SUMPRODUCT(('Fixed assets'!$R$2:$R$1000)*('Fixed assets'!$P$2:$P$1000<$A694)*('Fixed assets'!$Q$2:$Q$1000=Costs!F$617))-SUMPRODUCT(('Fixed assets'!$S$2:$S$1000)*('Fixed assets'!$P$2:$P$1000<Costs!$A694)*('Fixed assets'!$Q$2:$Q$1000=Costs!F$617))-SUMPRODUCT(('Fixed assets'!$Q$2:$Q$1000=Costs!F$617)*('Fixed assets'!$U$2:$U$1000=Costs!$A694)*('Fixed assets'!$S$2:$S$1000))+SUMPRODUCT(('Fixed assets'!$Q$2:$Q$1000=Costs!F$617)*('Fixed assets'!$P$2:$P$1000=Costs!$A694)*('Fixed assets'!$U$2:$U$1000=Costs!$A694)*('Fixed assets'!$R$2:$R$1000))","v":0},{"$f":"SUMPRODUCT(('Fixed assets'!$R$2:$R$1000)*('Fixed assets'!$P$2:$P$1000<$A694)*('Fixed assets'!$Q$2:$Q$1000=Costs!G$617))-SUMPRODUCT(('Fixed assets'!$S$2:$S$1000)*('Fixed assets'!$P$2:$P$1000<Costs!$A694)*('Fixed assets'!$Q$2:$Q$1000=Costs!G$617))-SUMPRODUCT(('Fixed assets'!$Q$2:$Q$1000=Costs!G$617)*('Fixed assets'!$U$2:$U$1000=Costs!$A694)*('Fixed assets'!$S$2:$S$1000))+SUMPRODUCT(('Fixed assets'!$Q$2:$Q$1000=Costs!G$617)*('Fixed assets'!$P$2:$P$1000=Costs!$A694)*('Fixed assets'!$U$2:$U$1000=Costs!$A694)*('Fixed assets'!$R$2:$R$1000))","v":0},{"$f":"SUMPRODUCT(('Fixed assets'!$R$2:$R$1000)*('Fixed assets'!$P$2:$P$1000<$A694)*('Fixed assets'!$Q$2:$Q$1000=Costs!H$617))-SUMPRODUCT(('Fixed assets'!$S$2:$S$1000)*('Fixed assets'!$P$2:$P$1000<Costs!$A694)*('Fixed assets'!$Q$2:$Q$1000=Costs!H$617))-SUMPRODUCT(('Fixed assets'!$Q$2:$Q$1000=Costs!H$617)*('Fixed assets'!$U$2:$U$1000=Costs!$A694)*('Fixed assets'!$S$2:$S$1000))+SUMPRODUCT(('Fixed assets'!$Q$2:$Q$1000=Costs!H$617)*('Fixed assets'!$P$2:$P$1000=Costs!$A694)*('Fixed assets'!$U$2:$U$1000=Costs!$A694)*('Fixed assets'!$R$2:$R$1000))","v":0},{"$f":"SUMPRODUCT(('Fixed assets'!$R$2:$R$1000)*('Fixed assets'!$P$2:$P$1000<$A694)*('Fixed assets'!$Q$2:$Q$1000=Costs!I$617))-SUMPRODUCT(('Fixed assets'!$S$2:$S$1000)*('Fixed assets'!$P$2:$P$1000<Costs!$A694)*('Fixed assets'!$Q$2:$Q$1000=Costs!I$617))-SUMPRODUCT(('Fixed assets'!$Q$2:$Q$1000=Costs!I$617)*('Fixed assets'!$U$2:$U$1000=Costs!$A694)*('Fixed assets'!$S$2:$S$1000))+SUMPRODUCT(('Fixed assets'!$Q$2:$Q$1000=Costs!I$617)*('Fixed assets'!$P$2:$P$1000=Costs!$A694)*('Fixed assets'!$U$2:$U$1000=Costs!$A694)*('Fixed assets'!$R$2:$R$1000))","v":0},{"$f":"SUMPRODUCT(('Fixed assets'!$R$2:$R$1000)*('Fixed assets'!$P$2:$P$1000<$A694)*('Fixed assets'!$Q$2:$Q$1000=Costs!J$617))-SUMPRODUCT(('Fixed assets'!$S$2:$S$1000)*('Fixed assets'!$P$2:$P$1000<Costs!$A694)*('Fixed assets'!$Q$2:$Q$1000=Costs!J$617))-SUMPRODUCT(('Fixed assets'!$Q$2:$Q$1000=Costs!J$617)*('Fixed assets'!$U$2:$U$1000=Costs!$A694)*('Fixed assets'!$S$2:$S$1000))+SUMPRODUCT(('Fixed assets'!$Q$2:$Q$1000=Costs!J$617)*('Fixed assets'!$P$2:$P$1000=Costs!$A694)*('Fixed assets'!$U$2:$U$1000=Costs!$A694)*('Fixed assets'!$R$2:$R$1000))","v":0},{"$f":"SUMPRODUCT(('Fixed assets'!$R$2:$R$1000)*('Fixed assets'!$P$2:$P$1000<$A694)*('Fixed assets'!$Q$2:$Q$1000=Costs!K$617))-SUMPRODUCT(('Fixed assets'!$S$2:$S$1000)*('Fixed assets'!$P$2:$P$1000<Costs!$A694)*('Fixed assets'!$Q$2:$Q$1000=Costs!K$617))-SUMPRODUCT(('Fixed assets'!$Q$2:$Q$1000=Costs!K$617)*('Fixed assets'!$U$2:$U$1000=Costs!$A694)*('Fixed assets'!$S$2:$S$1000))+SUMPRODUCT(('Fixed assets'!$Q$2:$Q$1000=Costs!K$617)*('Fixed assets'!$P$2:$P$1000=Costs!$A694)*('Fixed assets'!$U$2:$U$1000=Costs!$A694)*('Fixed assets'!$R$2:$R$1000))","v":0},{"$f":"SUMPRODUCT(('Fixed assets'!$R$2:$R$1000)*('Fixed assets'!$P$2:$P$1000<$A694)*('Fixed assets'!$Q$2:$Q$1000=Costs!L$617))-SUMPRODUCT(('Fixed assets'!$S$2:$S$1000)*('Fixed assets'!$P$2:$P$1000<Costs!$A694)*('Fixed assets'!$Q$2:$Q$1000=Costs!L$617))-SUMPRODUCT(('Fixed assets'!$Q$2:$Q$1000=Costs!L$617)*('Fixed assets'!$U$2:$U$1000=Costs!$A694)*('Fixed assets'!$S$2:$S$1000))+SUMPRODUCT(('Fixed assets'!$Q$2:$Q$1000=Costs!L$617)*('Fixed assets'!$P$2:$P$1000=Costs!$A694)*('Fixed assets'!$U$2:$U$1000=Costs!$A694)*('Fixed assets'!$R$2:$R$1000))","v":0},{"$f":"SUMPRODUCT(('Fixed assets'!$R$2:$R$1000)*('Fixed assets'!$P$2:$P$1000<$A694)*('Fixed assets'!$Q$2:$Q$1000=Costs!M$617))-SUMPRODUCT(('Fixed assets'!$S$2:$S$1000)*('Fixed assets'!$P$2:$P$1000<Costs!$A694)*('Fixed assets'!$Q$2:$Q$1000=Costs!M$617))-SUMPRODUCT(('Fixed assets'!$Q$2:$Q$1000=Costs!M$617)*('Fixed assets'!$U$2:$U$1000=Costs!$A694)*('Fixed assets'!$S$2:$S$1000))+SUMPRODUCT(('Fixed assets'!$Q$2:$Q$1000=Costs!M$617)*('Fixed assets'!$P$2:$P$1000=Costs!$A694)*('Fixed assets'!$U$2:$U$1000=Costs!$A694)*('Fixed assets'!$R$2:$R$1000))","v":0},{"$f":"SUMPRODUCT(('Fixed assets'!$R$2:$R$1000)*('Fixed assets'!$P$2:$P$1000<$A694)*('Fixed assets'!$Q$2:$Q$1000=Costs!N$617))-SUMPRODUCT(('Fixed assets'!$S$2:$S$1000)*('Fixed assets'!$P$2:$P$1000<Costs!$A694)*('Fixed assets'!$Q$2:$Q$1000=Costs!N$617))-SUMPRODUCT(('Fixed assets'!$Q$2:$Q$1000=Costs!N$617)*('Fixed assets'!$U$2:$U$1000=Costs!$A694)*('Fixed assets'!$S$2:$S$1000))+SUMPRODUCT(('Fixed assets'!$Q$2:$Q$1000=Costs!N$617)*('Fixed assets'!$P$2:$P$1000=Costs!$A694)*('Fixed assets'!$U$2:$U$1000=Costs!$A694)*('Fixed assets'!$R$2:$R$1000))","v":0},{"$f":"SUMPRODUCT(('Fixed assets'!$R$2:$R$1000)*('Fixed assets'!$P$2:$P$1000<$A694)*('Fixed assets'!$Q$2:$Q$1000=Costs!O$617))-SUMPRODUCT(('Fixed assets'!$S$2:$S$1000)*('Fixed assets'!$P$2:$P$1000<Costs!$A694)*('Fixed assets'!$Q$2:$Q$1000=Costs!O$617))-SUMPRODUCT(('Fixed assets'!$Q$2:$Q$1000=Costs!O$617)*('Fixed assets'!$U$2:$U$1000=Costs!$A694)*('Fixed assets'!$S$2:$S$1000))+SUMPRODUCT(('Fixed assets'!$Q$2:$Q$1000=Costs!O$617)*('Fixed assets'!$P$2:$P$1000=Costs!$A694)*('Fixed assets'!$U$2:$U$1000=Costs!$A694)*('Fixed assets'!$R$2:$R$1000))","v":0},{"$f":"SUMPRODUCT(('Fixed assets'!$R$2:$R$1000)*('Fixed assets'!$P$2:$P$1000<$A694)*('Fixed assets'!$Q$2:$Q$1000=Costs!P$617))-SUMPRODUCT(('Fixed assets'!$S$2:$S$1000)*('Fixed assets'!$P$2:$P$1000<Costs!$A694)*('Fixed assets'!$Q$2:$Q$1000=Costs!P$617))-SUMPRODUCT(('Fixed assets'!$Q$2:$Q$1000=Costs!P$617)*('Fixed assets'!$U$2:$U$1000=Costs!$A694)*('Fixed assets'!$S$2:$S$1000))+SUMPRODUCT(('Fixed assets'!$Q$2:$Q$1000=Costs!P$617)*('Fixed assets'!$P$2:$P$1000=Costs!$A694)*('Fixed assets'!$U$2:$U$1000=Costs!$A694)*('Fixed assets'!$R$2:$R$1000))","v":0},{"$f":"SUMPRODUCT(('Fixed assets'!$R$2:$R$1000)*('Fixed assets'!$P$2:$P$1000<$A694)*('Fixed assets'!$Q$2:$Q$1000=Costs!Q$617))-SUMPRODUCT(('Fixed assets'!$S$2:$S$1000)*('Fixed assets'!$P$2:$P$1000<Costs!$A694)*('Fixed assets'!$Q$2:$Q$1000=Costs!Q$617))-SUMPRODUCT(('Fixed assets'!$Q$2:$Q$1000=Costs!Q$617)*('Fixed assets'!$U$2:$U$1000=Costs!$A694)*('Fixed assets'!$S$2:$S$1000))+SUMPRODUCT(('Fixed assets'!$Q$2:$Q$1000=Costs!Q$617)*('Fixed assets'!$P$2:$P$1000=Costs!$A694)*('Fixed assets'!$U$2:$U$1000=Costs!$A694)*('Fixed assets'!$R$2:$R$1000))","v":0},{"$f":"SUMPRODUCT(('Fixed assets'!$R$2:$R$1000)*('Fixed assets'!$P$2:$P$1000<$A694)*('Fixed assets'!$Q$2:$Q$1000=Costs!R$617))-SUMPRODUCT(('Fixed assets'!$S$2:$S$1000)*('Fixed assets'!$P$2:$P$1000<Costs!$A694)*('Fixed assets'!$Q$2:$Q$1000=Costs!R$617))-SUMPRODUCT(('Fixed assets'!$Q$2:$Q$1000=Costs!R$617)*('Fixed assets'!$U$2:$U$1000=Costs!$A694)*('Fixed assets'!$S$2:$S$1000))+SUMPRODUCT(('Fixed assets'!$Q$2:$Q$1000=Costs!R$617)*('Fixed assets'!$P$2:$P$1000=Costs!$A694)*('Fixed assets'!$U$2:$U$1000=Costs!$A694)*('Fixed assets'!$R$2:$R$1000))","v":0},{"$f":"SUMPRODUCT(('Fixed assets'!$R$2:$R$1000)*('Fixed assets'!$P$2:$P$1000<$A694)*('Fixed assets'!$Q$2:$Q$1000=Costs!S$617))-SUMPRODUCT(('Fixed assets'!$S$2:$S$1000)*('Fixed assets'!$P$2:$P$1000<Costs!$A694)*('Fixed assets'!$Q$2:$Q$1000=Costs!S$617))-SUMPRODUCT(('Fixed assets'!$Q$2:$Q$1000=Costs!S$617)*('Fixed assets'!$U$2:$U$1000=Costs!$A694)*('Fixed assets'!$S$2:$S$1000))+SUMPRODUCT(('Fixed assets'!$Q$2:$Q$1000=Costs!S$617)*('Fixed assets'!$P$2:$P$1000=Costs!$A694)*('Fixed assets'!$U$2:$U$1000=Costs!$A694)*('Fixed assets'!$R$2:$R$1000))","v":0},{"$f":"SUMPRODUCT(('Fixed assets'!$R$2:$R$1000)*('Fixed assets'!$P$2:$P$1000<$A694)*('Fixed assets'!$Q$2:$Q$1000=Costs!T$617))-SUMPRODUCT(('Fixed assets'!$S$2:$S$1000)*('Fixed assets'!$P$2:$P$1000<Costs!$A694)*('Fixed assets'!$Q$2:$Q$1000=Costs!T$617))-SUMPRODUCT(('Fixed assets'!$Q$2:$Q$1000=Costs!T$617)*('Fixed assets'!$U$2:$U$1000=Costs!$A694)*('Fixed assets'!$S$2:$S$1000))+SUMPRODUCT(('Fixed assets'!$Q$2:$Q$1000=Costs!T$617)*('Fixed assets'!$P$2:$P$1000=Costs!$A694)*('Fixed assets'!$U$2:$U$1000=Costs!$A694)*('Fixed assets'!$R$2:$R$1000))","v":0},{"$f":"SUMPRODUCT(('Fixed assets'!$R$2:$R$1000)*('Fixed assets'!$P$2:$P$1000<$A694)*('Fixed assets'!$Q$2:$Q$1000=Costs!U$617))-SUMPRODUCT(('Fixed assets'!$S$2:$S$1000)*('Fixed assets'!$P$2:$P$1000<Costs!$A694)*('Fixed assets'!$Q$2:$Q$1000=Costs!U$617))-SUMPRODUCT(('Fixed assets'!$Q$2:$Q$1000=Costs!U$617)*('Fixed assets'!$U$2:$U$1000=Costs!$A694)*('Fixed assets'!$S$2:$S$1000))+SUMPRODUCT(('Fixed assets'!$Q$2:$Q$1000=Costs!U$617)*('Fixed assets'!$P$2:$P$1000=Costs!$A694)*('Fixed assets'!$U$2:$U$1000=Costs!$A694)*('Fixed assets'!$R$2:$R$1000))","v":0},{"$f":"SUMPRODUCT(('Fixed assets'!$R$2:$R$1000)*('Fixed assets'!$P$2:$P$1000<$A694)*('Fixed assets'!$Q$2:$Q$1000=Costs!V$617))-SUMPRODUCT(('Fixed assets'!$S$2:$S$1000)*('Fixed assets'!$P$2:$P$1000<Costs!$A694)*('Fixed assets'!$Q$2:$Q$1000=Costs!V$617))-SUMPRODUCT(('Fixed assets'!$Q$2:$Q$1000=Costs!V$617)*('Fixed assets'!$U$2:$U$1000=Costs!$A694)*('Fixed assets'!$S$2:$S$1000))+SUMPRODUCT(('Fixed assets'!$Q$2:$Q$1000=Costs!V$617)*('Fixed assets'!$P$2:$P$1000=Costs!$A694)*('Fixed assets'!$U$2:$U$1000=Costs!$A694)*('Fixed assets'!$R$2:$R$1000))","v":0},{"$f":"SUMPRODUCT(('Fixed assets'!$R$2:$R$1000)*('Fixed assets'!$P$2:$P$1000<$A694)*('Fixed assets'!$Q$2:$Q$1000=Costs!W$617))-SUMPRODUCT(('Fixed assets'!$S$2:$S$1000)*('Fixed assets'!$P$2:$P$1000<Costs!$A694)*('Fixed assets'!$Q$2:$Q$1000=Costs!W$617))-SUMPRODUCT(('Fixed assets'!$Q$2:$Q$1000=Costs!W$617)*('Fixed assets'!$U$2:$U$1000=Costs!$A694)*('Fixed assets'!$S$2:$S$1000))+SUMPRODUCT(('Fixed assets'!$Q$2:$Q$1000=Costs!W$617)*('Fixed assets'!$P$2:$P$1000=Costs!$A694)*('Fixed assets'!$U$2:$U$1000=Costs!$A694)*('Fixed assets'!$R$2:$R$1000))","v":0},{"$f":"SUMPRODUCT(('Fixed assets'!$R$2:$R$1000)*('Fixed assets'!$P$2:$P$1000<$A694)*('Fixed assets'!$Q$2:$Q$1000=Costs!X$617))-SUMPRODUCT(('Fixed assets'!$S$2:$S$1000)*('Fixed assets'!$P$2:$P$1000<Costs!$A694)*('Fixed assets'!$Q$2:$Q$1000=Costs!X$617))-SUMPRODUCT(('Fixed assets'!$Q$2:$Q$1000=Costs!X$617)*('Fixed assets'!$U$2:$U$1000=Costs!$A694)*('Fixed assets'!$S$2:$S$1000))+SUMPRODUCT(('Fixed assets'!$Q$2:$Q$1000=Costs!X$617)*('Fixed assets'!$P$2:$P$1000=Costs!$A694)*('Fixed assets'!$U$2:$U$1000=Costs!$A694)*('Fixed assets'!$R$2:$R$1000))","v":0},{"$f":"SUMPRODUCT(('Fixed assets'!$R$2:$R$1000)*('Fixed assets'!$P$2:$P$1000<$A694)*('Fixed assets'!$Q$2:$Q$1000=Costs!Y$617))-SUMPRODUCT(('Fixed assets'!$S$2:$S$1000)*('Fixed assets'!$P$2:$P$1000<Costs!$A694)*('Fixed assets'!$Q$2:$Q$1000=Costs!Y$617))-SUMPRODUCT(('Fixed assets'!$Q$2:$Q$1000=Costs!Y$617)*('Fixed assets'!$U$2:$U$1000=Costs!$A694)*('Fixed assets'!$S$2:$S$1000))+SUMPRODUCT(('Fixed assets'!$Q$2:$Q$1000=Costs!Y$617)*('Fixed assets'!$P$2:$P$1000=Costs!$A694)*('Fixed assets'!$U$2:$U$1000=Costs!$A694)*('Fixed assets'!$R$2:$R$1000))","v":0},{"$f":"SUMPRODUCT(('Fixed assets'!$R$2:$R$1000)*('Fixed assets'!$P$2:$P$1000<$A694)*('Fixed assets'!$Q$2:$Q$1000=Costs!Z$617))-SUMPRODUCT(('Fixed assets'!$S$2:$S$1000)*('Fixed assets'!$P$2:$P$1000<Costs!$A694)*('Fixed assets'!$Q$2:$Q$1000=Costs!Z$617))-SUMPRODUCT(('Fixed assets'!$Q$2:$Q$1000=Costs!Z$617)*('Fixed assets'!$U$2:$U$1000=Costs!$A694)*('Fixed assets'!$S$2:$S$1000))+SUMPRODUCT(('Fixed assets'!$Q$2:$Q$1000=Costs!Z$617)*('Fixed assets'!$P$2:$P$1000=Costs!$A694)*('Fixed assets'!$U$2:$U$1000=Costs!$A694)*('Fixed assets'!$R$2:$R$1000))","v":0},{"$f":"SUMPRODUCT(('Fixed assets'!$R$2:$R$1000)*('Fixed assets'!$P$2:$P$1000<$A694)*('Fixed assets'!$Q$2:$Q$1000=Costs!AA$617))-SUMPRODUCT(('Fixed assets'!$S$2:$S$1000)*('Fixed assets'!$P$2:$P$1000<Costs!$A694)*('Fixed assets'!$Q$2:$Q$1000=Costs!AA$617))-SUMPRODUCT(('Fixed assets'!$Q$2:$Q$1000=Costs!AA$617)*('Fixed assets'!$U$2:$U$1000=Costs!$A694)*('Fixed assets'!$S$2:$S$1000))+SUMPRODUCT(('Fixed assets'!$Q$2:$Q$1000=Costs!AA$617)*('Fixed assets'!$P$2:$P$1000=Costs!$A694)*('Fixed assets'!$U$2:$U$1000=Costs!$A694)*('Fixed assets'!$R$2:$R$1000))","v":0},{"$f":"SUMPRODUCT(('Fixed assets'!$R$2:$R$1000)*('Fixed assets'!$P$2:$P$1000<$A694)*('Fixed assets'!$Q$2:$Q$1000=Costs!AB$617))-SUMPRODUCT(('Fixed assets'!$S$2:$S$1000)*('Fixed assets'!$P$2:$P$1000<Costs!$A694)*('Fixed assets'!$Q$2:$Q$1000=Costs!AB$617))-SUMPRODUCT(('Fixed assets'!$Q$2:$Q$1000=Costs!AB$617)*('Fixed assets'!$U$2:$U$1000=Costs!$A694)*('Fixed assets'!$S$2:$S$1000))+SUMPRODUCT(('Fixed assets'!$Q$2:$Q$1000=Costs!AB$617)*('Fixed assets'!$P$2:$P$1000=Costs!$A694)*('Fixed assets'!$U$2:$U$1000=Costs!$A694)*('Fixed assets'!$R$2:$R$1000))","v":0},{"$f":"SUMPRODUCT(('Fixed assets'!$R$2:$R$1000)*('Fixed assets'!$P$2:$P$1000<$A694)*('Fixed assets'!$Q$2:$Q$1000=Costs!AC$617))-SUMPRODUCT(('Fixed assets'!$S$2:$S$1000)*('Fixed assets'!$P$2:$P$1000<Costs!$A694)*('Fixed assets'!$Q$2:$Q$1000=Costs!AC$617))-SUMPRODUCT(('Fixed assets'!$Q$2:$Q$1000=Costs!AC$617)*('Fixed assets'!$U$2:$U$1000=Costs!$A694)*('Fixed assets'!$S$2:$S$1000))+SUMPRODUCT(('Fixed assets'!$Q$2:$Q$1000=Costs!AC$617)*('Fixed assets'!$P$2:$P$1000=Costs!$A694)*('Fixed assets'!$U$2:$U$1000=Costs!$A694)*('Fixed assets'!$R$2:$R$1000))","v":0},{"$f":"SUMPRODUCT(('Fixed assets'!$R$2:$R$1000)*('Fixed assets'!$P$2:$P$1000<$A694)*('Fixed assets'!$Q$2:$Q$1000=Costs!AD$617))-SUMPRODUCT(('Fixed assets'!$S$2:$S$1000)*('Fixed assets'!$P$2:$P$1000<Costs!$A694)*('Fixed assets'!$Q$2:$Q$1000=Costs!AD$617))-SUMPRODUCT(('Fixed assets'!$Q$2:$Q$1000=Costs!AD$617)*('Fixed assets'!$U$2:$U$1000=Costs!$A694)*('Fixed assets'!$S$2:$S$1000))+SUMPRODUCT(('Fixed assets'!$Q$2:$Q$1000=Costs!AD$617)*('Fixed assets'!$P$2:$P$1000=Costs!$A694)*('Fixed assets'!$U$2:$U$1000=Costs!$A694)*('Fixed assets'!$R$2:$R$1000))","v":0},{"$f":"SUMPRODUCT(('Fixed assets'!$R$2:$R$1000)*('Fixed assets'!$P$2:$P$1000<$A694)*('Fixed assets'!$Q$2:$Q$1000=Costs!AE$617))-SUMPRODUCT(('Fixed assets'!$S$2:$S$1000)*('Fixed assets'!$P$2:$P$1000<Costs!$A694)*('Fixed assets'!$Q$2:$Q$1000=Costs!AE$617))-SUMPRODUCT(('Fixed assets'!$Q$2:$Q$1000=Costs!AE$617)*('Fixed assets'!$U$2:$U$1000=Costs!$A694)*('Fixed assets'!$S$2:$S$1000))+SUMPRODUCT(('Fixed assets'!$Q$2:$Q$1000=Costs!AE$617)*('Fixed assets'!$P$2:$P$1000=Costs!$A694)*('Fixed assets'!$U$2:$U$1000=Costs!$A694)*('Fixed assets'!$R$2:$R$1000))","v":0},{"$f":"SUMPRODUCT(('Fixed assets'!$R$2:$R$1000)*('Fixed assets'!$P$2:$P$1000<$A694)*('Fixed assets'!$Q$2:$Q$1000=Costs!AF$617))-SUMPRODUCT(('Fixed assets'!$S$2:$S$1000)*('Fixed assets'!$P$2:$P$1000<Costs!$A694)*('Fixed assets'!$Q$2:$Q$1000=Costs!AF$617))-SUMPRODUCT(('Fixed assets'!$Q$2:$Q$1000=Costs!AF$617)*('Fixed assets'!$U$2:$U$1000=Costs!$A694)*('Fixed assets'!$S$2:$S$1000))+SUMPRODUCT(('Fixed assets'!$Q$2:$Q$1000=Costs!AF$617)*('Fixed assets'!$P$2:$P$1000=Costs!$A694)*('Fixed assets'!$U$2:$U$1000=Costs!$A694)*('Fixed assets'!$R$2:$R$1000))","v":0},{"$f":"SUMPRODUCT(('Fixed assets'!$R$2:$R$1000)*('Fixed assets'!$P$2:$P$1000<$A694)*('Fixed assets'!$Q$2:$Q$1000=Costs!AG$617))-SUMPRODUCT(('Fixed assets'!$S$2:$S$1000)*('Fixed assets'!$P$2:$P$1000<Costs!$A694)*('Fixed assets'!$Q$2:$Q$1000=Costs!AG$617))-SUMPRODUCT(('Fixed assets'!$Q$2:$Q$1000=Costs!AG$617)*('Fixed assets'!$U$2:$U$1000=Costs!$A694)*('Fixed assets'!$S$2:$S$1000))+SUMPRODUCT(('Fixed assets'!$Q$2:$Q$1000=Costs!AG$617)*('Fixed assets'!$P$2:$P$1000=Costs!$A694)*('Fixed assets'!$U$2:$U$1000=Costs!$A694)*('Fixed assets'!$R$2:$R$1000))","v":0},{"$f":"SUMPRODUCT(('Fixed assets'!$R$2:$R$1000)*('Fixed assets'!$P$2:$P$1000<$A694)*('Fixed assets'!$Q$2:$Q$1000=Costs!AH$617))-SUMPRODUCT(('Fixed assets'!$S$2:$S$1000)*('Fixed assets'!$P$2:$P$1000<Costs!$A694)*('Fixed assets'!$Q$2:$Q$1000=Costs!AH$617))-SUMPRODUCT(('Fixed assets'!$Q$2:$Q$1000=Costs!AH$617)*('Fixed assets'!$U$2:$U$1000=Costs!$A694)*('Fixed assets'!$S$2:$S$1000))+SUMPRODUCT(('Fixed assets'!$Q$2:$Q$1000=Costs!AH$617)*('Fixed assets'!$P$2:$P$1000=Costs!$A694)*('Fixed assets'!$U$2:$U$1000=Costs!$A694)*('Fixed assets'!$R$2:$R$1000))","v":0},{"$f":"SUMPRODUCT(('Fixed assets'!$R$2:$R$1000)*('Fixed assets'!$P$2:$P$1000<$A694)*('Fixed assets'!$Q$2:$Q$1000=Costs!AI$617))-SUMPRODUCT(('Fixed assets'!$S$2:$S$1000)*('Fixed assets'!$P$2:$P$1000<Costs!$A694)*('Fixed assets'!$Q$2:$Q$1000=Costs!AI$617))-SUMPRODUCT(('Fixed assets'!$Q$2:$Q$1000=Costs!AI$617)*('Fixed assets'!$U$2:$U$1000=Costs!$A694)*('Fixed assets'!$S$2:$S$1000))+SUMPRODUCT(('Fixed assets'!$Q$2:$Q$1000=Costs!AI$617)*('Fixed assets'!$P$2:$P$1000=Costs!$A694)*('Fixed assets'!$U$2:$U$1000=Costs!$A694)*('Fixed assets'!$R$2:$R$1000))","v":0},{"$f":"SUMPRODUCT(('Fixed assets'!$R$2:$R$1000)*('Fixed assets'!$P$2:$P$1000<$A694)*('Fixed assets'!$Q$2:$Q$1000=Costs!AJ$617))-SUMPRODUCT(('Fixed assets'!$S$2:$S$1000)*('Fixed assets'!$P$2:$P$1000<Costs!$A694)*('Fixed assets'!$Q$2:$Q$1000=Costs!AJ$617))-SUMPRODUCT(('Fixed assets'!$Q$2:$Q$1000=Costs!AJ$617)*('Fixed assets'!$U$2:$U$1000=Costs!$A694)*('Fixed assets'!$S$2:$S$1000))+SUMPRODUCT(('Fixed assets'!$Q$2:$Q$1000=Costs!AJ$617)*('Fixed assets'!$P$2:$P$1000=Costs!$A694)*('Fixed assets'!$U$2:$U$1000=Costs!$A694)*('Fixed assets'!$R$2:$R$1000))","v":0},{"$f":"SUMPRODUCT(('Fixed assets'!$R$2:$R$1000)*('Fixed assets'!$P$2:$P$1000<$A694)*('Fixed assets'!$Q$2:$Q$1000=Costs!AK$617))-SUMPRODUCT(('Fixed assets'!$S$2:$S$1000)*('Fixed assets'!$P$2:$P$1000<Costs!$A694)*('Fixed assets'!$Q$2:$Q$1000=Costs!AK$617))-SUMPRODUCT(('Fixed assets'!$Q$2:$Q$1000=Costs!AK$617)*('Fixed assets'!$U$2:$U$1000=Costs!$A694)*('Fixed assets'!$S$2:$S$1000))+SUMPRODUCT(('Fixed assets'!$Q$2:$Q$1000=Costs!AK$617)*('Fixed assets'!$P$2:$P$1000=Costs!$A694)*('Fixed assets'!$U$2:$U$1000=Costs!$A694)*('Fixed assets'!$R$2:$R$1000))","v":0},{"$f":"SUMPRODUCT(('Fixed assets'!$R$2:$R$1000)*('Fixed assets'!$P$2:$P$1000<$A694)*('Fixed assets'!$Q$2:$Q$1000=Costs!AL$617))-SUMPRODUCT(('Fixed assets'!$S$2:$S$1000)*('Fixed assets'!$P$2:$P$1000<Costs!$A694)*('Fixed assets'!$Q$2:$Q$1000=Costs!AL$617))-SUMPRODUCT(('Fixed assets'!$Q$2:$Q$1000=Costs!AL$617)*('Fixed assets'!$U$2:$U$1000=Costs!$A694)*('Fixed assets'!$S$2:$S$1000))+SUMPRODUCT(('Fixed assets'!$Q$2:$Q$1000=Costs!AL$617)*('Fixed assets'!$P$2:$P$1000=Costs!$A694)*('Fixed assets'!$U$2:$U$1000=Costs!$A694)*('Fixed assets'!$R$2:$R$1000))","v":0},{"$f":"SUMPRODUCT(('Fixed assets'!$R$2:$R$1000)*('Fixed assets'!$P$2:$P$1000<$A694)*('Fixed assets'!$Q$2:$Q$1000=Costs!AM$617))-SUMPRODUCT(('Fixed assets'!$S$2:$S$1000)*('Fixed assets'!$P$2:$P$1000<Costs!$A694)*('Fixed assets'!$Q$2:$Q$1000=Costs!AM$617))-SUMPRODUCT(('Fixed assets'!$Q$2:$Q$1000=Costs!AM$617)*('Fixed assets'!$U$2:$U$1000=Costs!$A694)*('Fixed assets'!$S$2:$S$1000))+SUMPRODUCT(('Fixed assets'!$Q$2:$Q$1000=Costs!AM$617)*('Fixed assets'!$P$2:$P$1000=Costs!$A694)*('Fixed assets'!$U$2:$U$1000=Costs!$A694)*('Fixed assets'!$R$2:$R$1000))","v":0},{"$f":"SUMPRODUCT(('Fixed assets'!$R$2:$R$1000)*('Fixed assets'!$P$2:$P$1000<$A694)*('Fixed assets'!$Q$2:$Q$1000=Costs!AN$617))-SUMPRODUCT(('Fixed assets'!$S$2:$S$1000)*('Fixed assets'!$P$2:$P$1000<Costs!$A694)*('Fixed assets'!$Q$2:$Q$1000=Costs!AN$617))-SUMPRODUCT(('Fixed assets'!$Q$2:$Q$1000=Costs!AN$617)*('Fixed assets'!$U$2:$U$1000=Costs!$A694)*('Fixed assets'!$S$2:$S$1000))+SUMPRODUCT(('Fixed assets'!$Q$2:$Q$1000=Costs!AN$617)*('Fixed assets'!$P$2:$P$1000=Costs!$A694)*('Fixed assets'!$U$2:$U$1000=Costs!$A694)*('Fixed assets'!$R$2:$R$1000))","v":0},{"$f":"SUMPRODUCT(('Fixed assets'!$R$2:$R$1000)*('Fixed assets'!$P$2:$P$1000<$A694)*('Fixed assets'!$Q$2:$Q$1000=Costs!AO$617))-SUMPRODUCT(('Fixed assets'!$S$2:$S$1000)*('Fixed assets'!$P$2:$P$1000<Costs!$A694)*('Fixed assets'!$Q$2:$Q$1000=Costs!AO$617))-SUMPRODUCT(('Fixed assets'!$Q$2:$Q$1000=Costs!AO$617)*('Fixed assets'!$U$2:$U$1000=Costs!$A694)*('Fixed assets'!$S$2:$S$1000))+SUMPRODUCT(('Fixed assets'!$Q$2:$Q$1000=Costs!AO$617)*('Fixed assets'!$P$2:$P$1000=Costs!$A694)*('Fixed assets'!$U$2:$U$1000=Costs!$A694)*('Fixed assets'!$R$2:$R$1000))","v":0},{"$f":"SUMPRODUCT(('Fixed assets'!$R$2:$R$1000)*('Fixed assets'!$P$2:$P$1000<$A694)*('Fixed assets'!$Q$2:$Q$1000=Costs!AP$617))-SUMPRODUCT(('Fixed assets'!$S$2:$S$1000)*('Fixed assets'!$P$2:$P$1000<Costs!$A694)*('Fixed assets'!$Q$2:$Q$1000=Costs!AP$617))-SUMPRODUCT(('Fixed assets'!$Q$2:$Q$1000=Costs!AP$617)*('Fixed assets'!$U$2:$U$1000=Costs!$A694)*('Fixed assets'!$S$2:$S$1000))+SUMPRODUCT(('Fixed assets'!$Q$2:$Q$1000=Costs!AP$617)*('Fixed assets'!$P$2:$P$1000=Costs!$A694)*('Fixed assets'!$U$2:$U$1000=Costs!$A694)*('Fixed assets'!$R$2:$R$1000))","v":0},{"$f":"SUMPRODUCT(('Fixed assets'!$R$2:$R$1000)*('Fixed assets'!$P$2:$P$1000<$A694)*('Fixed assets'!$Q$2:$Q$1000=Costs!AQ$617))-SUMPRODUCT(('Fixed assets'!$S$2:$S$1000)*('Fixed assets'!$P$2:$P$1000<Costs!$A694)*('Fixed assets'!$Q$2:$Q$1000=Costs!AQ$617))-SUMPRODUCT(('Fixed assets'!$Q$2:$Q$1000=Costs!AQ$617)*('Fixed assets'!$U$2:$U$1000=Costs!$A694)*('Fixed assets'!$S$2:$S$1000))+SUMPRODUCT(('Fixed assets'!$Q$2:$Q$1000=Costs!AQ$617)*('Fixed assets'!$P$2:$P$1000=Costs!$A694)*('Fixed assets'!$U$2:$U$1000=Costs!$A694)*('Fixed assets'!$R$2:$R$1000))","v":0}]
[2092,0,{"$f":"SUMPRODUCT(('Fixed assets'!$R$2:$R$1000)*('Fixed assets'!$P$2:$P$1000<$A695)*('Fixed assets'!$Q$2:$Q$1000=Costs!C$617))-SUMPRODUCT(('Fixed assets'!$S$2:$S$1000)*('Fixed assets'!$P$2:$P$1000<Costs!$A695)*('Fixed assets'!$Q$2:$Q$1000=Costs!C$617))-SUMPRODUCT(('Fixed assets'!$Q$2:$Q$1000=Costs!C$617)*('Fixed assets'!$U$2:$U$1000=Costs!$A695)*('Fixed assets'!$S$2:$S$1000))+SUMPRODUCT(('Fixed assets'!$Q$2:$Q$1000=Costs!C$617)*('Fixed assets'!$P$2:$P$1000=Costs!$A695)*('Fixed assets'!$U$2:$U$1000=Costs!$A695)*('Fixed assets'!$R$2:$R$1000))","v":0},{"$f":"SUMPRODUCT(('Fixed assets'!$R$2:$R$1000)*('Fixed assets'!$P$2:$P$1000<$A695)*('Fixed assets'!$Q$2:$Q$1000=Costs!D$617))-SUMPRODUCT(('Fixed assets'!$S$2:$S$1000)*('Fixed assets'!$P$2:$P$1000<Costs!$A695)*('Fixed assets'!$Q$2:$Q$1000=Costs!D$617))-SUMPRODUCT(('Fixed assets'!$Q$2:$Q$1000=Costs!D$617)*('Fixed assets'!$U$2:$U$1000=Costs!$A695)*('Fixed assets'!$S$2:$S$1000))+SUMPRODUCT(('Fixed assets'!$Q$2:$Q$1000=Costs!D$617)*('Fixed assets'!$P$2:$P$1000=Costs!$A695)*('Fixed assets'!$U$2:$U$1000=Costs!$A695)*('Fixed assets'!$R$2:$R$1000))","v":0},{"$f":"SUMPRODUCT(('Fixed assets'!$R$2:$R$1000)*('Fixed assets'!$P$2:$P$1000<$A695)*('Fixed assets'!$Q$2:$Q$1000=Costs!E$617))-SUMPRODUCT(('Fixed assets'!$S$2:$S$1000)*('Fixed assets'!$P$2:$P$1000<Costs!$A695)*('Fixed assets'!$Q$2:$Q$1000=Costs!E$617))-SUMPRODUCT(('Fixed assets'!$Q$2:$Q$1000=Costs!E$617)*('Fixed assets'!$U$2:$U$1000=Costs!$A695)*('Fixed assets'!$S$2:$S$1000))+SUMPRODUCT(('Fixed assets'!$Q$2:$Q$1000=Costs!E$617)*('Fixed assets'!$P$2:$P$1000=Costs!$A695)*('Fixed assets'!$U$2:$U$1000=Costs!$A695)*('Fixed assets'!$R$2:$R$1000))","v":0},{"$f":"SUMPRODUCT(('Fixed assets'!$R$2:$R$1000)*('Fixed assets'!$P$2:$P$1000<$A695)*('Fixed assets'!$Q$2:$Q$1000=Costs!F$617))-SUMPRODUCT(('Fixed assets'!$S$2:$S$1000)*('Fixed assets'!$P$2:$P$1000<Costs!$A695)*('Fixed assets'!$Q$2:$Q$1000=Costs!F$617))-SUMPRODUCT(('Fixed assets'!$Q$2:$Q$1000=Costs!F$617)*('Fixed assets'!$U$2:$U$1000=Costs!$A695)*('Fixed assets'!$S$2:$S$1000))+SUMPRODUCT(('Fixed assets'!$Q$2:$Q$1000=Costs!F$617)*('Fixed assets'!$P$2:$P$1000=Costs!$A695)*('Fixed assets'!$U$2:$U$1000=Costs!$A695)*('Fixed assets'!$R$2:$R$1000))","v":0},{"$f":"SUMPRODUCT(('Fixed assets'!$R$2:$R$1000)*('Fixed assets'!$P$2:$P$1000<$A695)*('Fixed assets'!$Q$2:$Q$1000=Costs!G$617))-SUMPRODUCT(('Fixed assets'!$S$2:$S$1000)*('Fixed assets'!$P$2:$P$1000<Costs!$A695)*('Fixed assets'!$Q$2:$Q$1000=Costs!G$617))-SUMPRODUCT(('Fixed assets'!$Q$2:$Q$1000=Costs!G$617)*('Fixed assets'!$U$2:$U$1000=Costs!$A695)*('Fixed assets'!$S$2:$S$1000))+SUMPRODUCT(('Fixed assets'!$Q$2:$Q$1000=Costs!G$617)*('Fixed assets'!$P$2:$P$1000=Costs!$A695)*('Fixed assets'!$U$2:$U$1000=Costs!$A695)*('Fixed assets'!$R$2:$R$1000))","v":0},{"$f":"SUMPRODUCT(('Fixed assets'!$R$2:$R$1000)*('Fixed assets'!$P$2:$P$1000<$A695)*('Fixed assets'!$Q$2:$Q$1000=Costs!H$617))-SUMPRODUCT(('Fixed assets'!$S$2:$S$1000)*('Fixed assets'!$P$2:$P$1000<Costs!$A695)*('Fixed assets'!$Q$2:$Q$1000=Costs!H$617))-SUMPRODUCT(('Fixed assets'!$Q$2:$Q$1000=Costs!H$617)*('Fixed assets'!$U$2:$U$1000=Costs!$A695)*('Fixed assets'!$S$2:$S$1000))+SUMPRODUCT(('Fixed assets'!$Q$2:$Q$1000=Costs!H$617)*('Fixed assets'!$P$2:$P$1000=Costs!$A695)*('Fixed assets'!$U$2:$U$1000=Costs!$A695)*('Fixed assets'!$R$2:$R$1000))","v":0},{"$f":"SUMPRODUCT(('Fixed assets'!$R$2:$R$1000)*('Fixed assets'!$P$2:$P$1000<$A695)*('Fixed assets'!$Q$2:$Q$1000=Costs!I$617))-SUMPRODUCT(('Fixed assets'!$S$2:$S$1000)*('Fixed assets'!$P$2:$P$1000<Costs!$A695)*('Fixed assets'!$Q$2:$Q$1000=Costs!I$617))-SUMPRODUCT(('Fixed assets'!$Q$2:$Q$1000=Costs!I$617)*('Fixed assets'!$U$2:$U$1000=Costs!$A695)*('Fixed assets'!$S$2:$S$1000))+SUMPRODUCT(('Fixed assets'!$Q$2:$Q$1000=Costs!I$617)*('Fixed assets'!$P$2:$P$1000=Costs!$A695)*('Fixed assets'!$U$2:$U$1000=Costs!$A695)*('Fixed assets'!$R$2:$R$1000))","v":0},{"$f":"SUMPRODUCT(('Fixed assets'!$R$2:$R$1000)*('Fixed assets'!$P$2:$P$1000<$A695)*('Fixed assets'!$Q$2:$Q$1000=Costs!J$617))-SUMPRODUCT(('Fixed assets'!$S$2:$S$1000)*('Fixed assets'!$P$2:$P$1000<Costs!$A695)*('Fixed assets'!$Q$2:$Q$1000=Costs!J$617))-SUMPRODUCT(('Fixed assets'!$Q$2:$Q$1000=Costs!J$617)*('Fixed assets'!$U$2:$U$1000=Costs!$A695)*('Fixed assets'!$S$2:$S$1000))+SUMPRODUCT(('Fixed assets'!$Q$2:$Q$1000=Costs!J$617)*('Fixed assets'!$P$2:$P$1000=Costs!$A695)*('Fixed assets'!$U$2:$U$1000=Costs!$A695)*('Fixed assets'!$R$2:$R$1000))","v":0},{"$f":"SUMPRODUCT(('Fixed assets'!$R$2:$R$1000)*('Fixed assets'!$P$2:$P$1000<$A695)*('Fixed assets'!$Q$2:$Q$1000=Costs!K$617))-SUMPRODUCT(('Fixed assets'!$S$2:$S$1000)*('Fixed assets'!$P$2:$P$1000<Costs!$A695)*('Fixed assets'!$Q$2:$Q$1000=Costs!K$617))-SUMPRODUCT(('Fixed assets'!$Q$2:$Q$1000=Costs!K$617)*('Fixed assets'!$U$2:$U$1000=Costs!$A695)*('Fixed assets'!$S$2:$S$1000))+SUMPRODUCT(('Fixed assets'!$Q$2:$Q$1000=Costs!K$617)*('Fixed assets'!$P$2:$P$1000=Costs!$A695)*('Fixed assets'!$U$2:$U$1000=Costs!$A695)*('Fixed assets'!$R$2:$R$1000))","v":0},{"$f":"SUMPRODUCT(('Fixed assets'!$R$2:$R$1000)*('Fixed assets'!$P$2:$P$1000<$A695)*('Fixed assets'!$Q$2:$Q$1000=Costs!L$617))-SUMPRODUCT(('Fixed assets'!$S$2:$S$1000)*('Fixed assets'!$P$2:$P$1000<Costs!$A695)*('Fixed assets'!$Q$2:$Q$1000=Costs!L$617))-SUMPRODUCT(('Fixed assets'!$Q$2:$Q$1000=Costs!L$617)*('Fixed assets'!$U$2:$U$1000=Costs!$A695)*('Fixed assets'!$S$2:$S$1000))+SUMPRODUCT(('Fixed assets'!$Q$2:$Q$1000=Costs!L$617)*('Fixed assets'!$P$2:$P$1000=Costs!$A695)*('Fixed assets'!$U$2:$U$1000=Costs!$A695)*('Fixed assets'!$R$2:$R$1000))","v":0},{"$f":"SUMPRODUCT(('Fixed assets'!$R$2:$R$1000)*('Fixed assets'!$P$2:$P$1000<$A695)*('Fixed assets'!$Q$2:$Q$1000=Costs!M$617))-SUMPRODUCT(('Fixed assets'!$S$2:$S$1000)*('Fixed assets'!$P$2:$P$1000<Costs!$A695)*('Fixed assets'!$Q$2:$Q$1000=Costs!M$617))-SUMPRODUCT(('Fixed assets'!$Q$2:$Q$1000=Costs!M$617)*('Fixed assets'!$U$2:$U$1000=Costs!$A695)*('Fixed assets'!$S$2:$S$1000))+SUMPRODUCT(('Fixed assets'!$Q$2:$Q$1000=Costs!M$617)*('Fixed assets'!$P$2:$P$1000=Costs!$A695)*('Fixed assets'!$U$2:$U$1000=Costs!$A695)*('Fixed assets'!$R$2:$R$1000))","v":0},{"$f":"SUMPRODUCT(('Fixed assets'!$R$2:$R$1000)*('Fixed assets'!$P$2:$P$1000<$A695)*('Fixed assets'!$Q$2:$Q$1000=Costs!N$617))-SUMPRODUCT(('Fixed assets'!$S$2:$S$1000)*('Fixed assets'!$P$2:$P$1000<Costs!$A695)*('Fixed assets'!$Q$2:$Q$1000=Costs!N$617))-SUMPRODUCT(('Fixed assets'!$Q$2:$Q$1000=Costs!N$617)*('Fixed assets'!$U$2:$U$1000=Costs!$A695)*('Fixed assets'!$S$2:$S$1000))+SUMPRODUCT(('Fixed assets'!$Q$2:$Q$1000=Costs!N$617)*('Fixed assets'!$P$2:$P$1000=Costs!$A695)*('Fixed assets'!$U$2:$U$1000=Costs!$A695)*('Fixed assets'!$R$2:$R$1000))","v":0},{"$f":"SUMPRODUCT(('Fixed assets'!$R$2:$R$1000)*('Fixed assets'!$P$2:$P$1000<$A695)*('Fixed assets'!$Q$2:$Q$1000=Costs!O$617))-SUMPRODUCT(('Fixed assets'!$S$2:$S$1000)*('Fixed assets'!$P$2:$P$1000<Costs!$A695)*('Fixed assets'!$Q$2:$Q$1000=Costs!O$617))-SUMPRODUCT(('Fixed assets'!$Q$2:$Q$1000=Costs!O$617)*('Fixed assets'!$U$2:$U$1000=Costs!$A695)*('Fixed assets'!$S$2:$S$1000))+SUMPRODUCT(('Fixed assets'!$Q$2:$Q$1000=Costs!O$617)*('Fixed assets'!$P$2:$P$1000=Costs!$A695)*('Fixed assets'!$U$2:$U$1000=Costs!$A695)*('Fixed assets'!$R$2:$R$1000))","v":0},{"$f":"SUMPRODUCT(('Fixed assets'!$R$2:$R$1000)*('Fixed assets'!$P$2:$P$1000<$A695)*('Fixed assets'!$Q$2:$Q$1000=Costs!P$617))-SUMPRODUCT(('Fixed assets'!$S$2:$S$1000)*('Fixed assets'!$P$2:$P$1000<Costs!$A695)*('Fixed assets'!$Q$2:$Q$1000=Costs!P$617))-SUMPRODUCT(('Fixed assets'!$Q$2:$Q$1000=Costs!P$617)*('Fixed assets'!$U$2:$U$1000=Costs!$A695)*('Fixed assets'!$S$2:$S$1000))+SUMPRODUCT(('Fixed assets'!$Q$2:$Q$1000=Costs!P$617)*('Fixed assets'!$P$2:$P$1000=Costs!$A695)*('Fixed assets'!$U$2:$U$1000=Costs!$A695)*('Fixed assets'!$R$2:$R$1000))","v":0},{"$f":"SUMPRODUCT(('Fixed assets'!$R$2:$R$1000)*('Fixed assets'!$P$2:$P$1000<$A695)*('Fixed assets'!$Q$2:$Q$1000=Costs!Q$617))-SUMPRODUCT(('Fixed assets'!$S$2:$S$1000)*('Fixed assets'!$P$2:$P$1000<Costs!$A695)*('Fixed assets'!$Q$2:$Q$1000=Costs!Q$617))-SUMPRODUCT(('Fixed assets'!$Q$2:$Q$1000=Costs!Q$617)*('Fixed assets'!$U$2:$U$1000=Costs!$A695)*('Fixed assets'!$S$2:$S$1000))+SUMPRODUCT(('Fixed assets'!$Q$2:$Q$1000=Costs!Q$617)*('Fixed assets'!$P$2:$P$1000=Costs!$A695)*('Fixed assets'!$U$2:$U$1000=Costs!$A695)*('Fixed assets'!$R$2:$R$1000))","v":0},{"$f":"SUMPRODUCT(('Fixed assets'!$R$2:$R$1000)*('Fixed assets'!$P$2:$P$1000<$A695)*('Fixed assets'!$Q$2:$Q$1000=Costs!R$617))-SUMPRODUCT(('Fixed assets'!$S$2:$S$1000)*('Fixed assets'!$P$2:$P$1000<Costs!$A695)*('Fixed assets'!$Q$2:$Q$1000=Costs!R$617))-SUMPRODUCT(('Fixed assets'!$Q$2:$Q$1000=Costs!R$617)*('Fixed assets'!$U$2:$U$1000=Costs!$A695)*('Fixed assets'!$S$2:$S$1000))+SUMPRODUCT(('Fixed assets'!$Q$2:$Q$1000=Costs!R$617)*('Fixed assets'!$P$2:$P$1000=Costs!$A695)*('Fixed assets'!$U$2:$U$1000=Costs!$A695)*('Fixed assets'!$R$2:$R$1000))","v":0},{"$f":"SUMPRODUCT(('Fixed assets'!$R$2:$R$1000)*('Fixed assets'!$P$2:$P$1000<$A695)*('Fixed assets'!$Q$2:$Q$1000=Costs!S$617))-SUMPRODUCT(('Fixed assets'!$S$2:$S$1000)*('Fixed assets'!$P$2:$P$1000<Costs!$A695)*('Fixed assets'!$Q$2:$Q$1000=Costs!S$617))-SUMPRODUCT(('Fixed assets'!$Q$2:$Q$1000=Costs!S$617)*('Fixed assets'!$U$2:$U$1000=Costs!$A695)*('Fixed assets'!$S$2:$S$1000))+SUMPRODUCT(('Fixed assets'!$Q$2:$Q$1000=Costs!S$617)*('Fixed assets'!$P$2:$P$1000=Costs!$A695)*('Fixed assets'!$U$2:$U$1000=Costs!$A695)*('Fixed assets'!$R$2:$R$1000))","v":0},{"$f":"SUMPRODUCT(('Fixed assets'!$R$2:$R$1000)*('Fixed assets'!$P$2:$P$1000<$A695)*('Fixed assets'!$Q$2:$Q$1000=Costs!T$617))-SUMPRODUCT(('Fixed assets'!$S$2:$S$1000)*('Fixed assets'!$P$2:$P$1000<Costs!$A695)*('Fixed assets'!$Q$2:$Q$1000=Costs!T$617))-SUMPRODUCT(('Fixed assets'!$Q$2:$Q$1000=Costs!T$617)*('Fixed assets'!$U$2:$U$1000=Costs!$A695)*('Fixed assets'!$S$2:$S$1000))+SUMPRODUCT(('Fixed assets'!$Q$2:$Q$1000=Costs!T$617)*('Fixed assets'!$P$2:$P$1000=Costs!$A695)*('Fixed assets'!$U$2:$U$1000=Costs!$A695)*('Fixed assets'!$R$2:$R$1000))","v":0},{"$f":"SUMPRODUCT(('Fixed assets'!$R$2:$R$1000)*('Fixed assets'!$P$2:$P$1000<$A695)*('Fixed assets'!$Q$2:$Q$1000=Costs!U$617))-SUMPRODUCT(('Fixed assets'!$S$2:$S$1000)*('Fixed assets'!$P$2:$P$1000<Costs!$A695)*('Fixed assets'!$Q$2:$Q$1000=Costs!U$617))-SUMPRODUCT(('Fixed assets'!$Q$2:$Q$1000=Costs!U$617)*('Fixed assets'!$U$2:$U$1000=Costs!$A695)*('Fixed assets'!$S$2:$S$1000))+SUMPRODUCT(('Fixed assets'!$Q$2:$Q$1000=Costs!U$617)*('Fixed assets'!$P$2:$P$1000=Costs!$A695)*('Fixed assets'!$U$2:$U$1000=Costs!$A695)*('Fixed assets'!$R$2:$R$1000))","v":0},{"$f":"SUMPRODUCT(('Fixed assets'!$R$2:$R$1000)*('Fixed assets'!$P$2:$P$1000<$A695)*('Fixed assets'!$Q$2:$Q$1000=Costs!V$617))-SUMPRODUCT(('Fixed assets'!$S$2:$S$1000)*('Fixed assets'!$P$2:$P$1000<Costs!$A695)*('Fixed assets'!$Q$2:$Q$1000=Costs!V$617))-SUMPRODUCT(('Fixed assets'!$Q$2:$Q$1000=Costs!V$617)*('Fixed assets'!$U$2:$U$1000=Costs!$A695)*('Fixed assets'!$S$2:$S$1000))+SUMPRODUCT(('Fixed assets'!$Q$2:$Q$1000=Costs!V$617)*('Fixed assets'!$P$2:$P$1000=Costs!$A695)*('Fixed assets'!$U$2:$U$1000=Costs!$A695)*('Fixed assets'!$R$2:$R$1000))","v":0},{"$f":"SUMPRODUCT(('Fixed assets'!$R$2:$R$1000)*('Fixed assets'!$P$2:$P$1000<$A695)*('Fixed assets'!$Q$2:$Q$1000=Costs!W$617))-SUMPRODUCT(('Fixed assets'!$S$2:$S$1000)*('Fixed assets'!$P$2:$P$1000<Costs!$A695)*('Fixed assets'!$Q$2:$Q$1000=Costs!W$617))-SUMPRODUCT(('Fixed assets'!$Q$2:$Q$1000=Costs!W$617)*('Fixed assets'!$U$2:$U$1000=Costs!$A695)*('Fixed assets'!$S$2:$S$1000))+SUMPRODUCT(('Fixed assets'!$Q$2:$Q$1000=Costs!W$617)*('Fixed assets'!$P$2:$P$1000=Costs!$A695)*('Fixed assets'!$U$2:$U$1000=Costs!$A695)*('Fixed assets'!$R$2:$R$1000))","v":0},{"$f":"SUMPRODUCT(('Fixed assets'!$R$2:$R$1000)*('Fixed assets'!$P$2:$P$1000<$A695)*('Fixed assets'!$Q$2:$Q$1000=Costs!X$617))-SUMPRODUCT(('Fixed assets'!$S$2:$S$1000)*('Fixed assets'!$P$2:$P$1000<Costs!$A695)*('Fixed assets'!$Q$2:$Q$1000=Costs!X$617))-SUMPRODUCT(('Fixed assets'!$Q$2:$Q$1000=Costs!X$617)*('Fixed assets'!$U$2:$U$1000=Costs!$A695)*('Fixed assets'!$S$2:$S$1000))+SUMPRODUCT(('Fixed assets'!$Q$2:$Q$1000=Costs!X$617)*('Fixed assets'!$P$2:$P$1000=Costs!$A695)*('Fixed assets'!$U$2:$U$1000=Costs!$A695)*('Fixed assets'!$R$2:$R$1000))","v":0},{"$f":"SUMPRODUCT(('Fixed assets'!$R$2:$R$1000)*('Fixed assets'!$P$2:$P$1000<$A695)*('Fixed assets'!$Q$2:$Q$1000=Costs!Y$617))-SUMPRODUCT(('Fixed assets'!$S$2:$S$1000)*('Fixed assets'!$P$2:$P$1000<Costs!$A695)*('Fixed assets'!$Q$2:$Q$1000=Costs!Y$617))-SUMPRODUCT(('Fixed assets'!$Q$2:$Q$1000=Costs!Y$617)*('Fixed assets'!$U$2:$U$1000=Costs!$A695)*('Fixed assets'!$S$2:$S$1000))+SUMPRODUCT(('Fixed assets'!$Q$2:$Q$1000=Costs!Y$617)*('Fixed assets'!$P$2:$P$1000=Costs!$A695)*('Fixed assets'!$U$2:$U$1000=Costs!$A695)*('Fixed assets'!$R$2:$R$1000))","v":0},{"$f":"SUMPRODUCT(('Fixed assets'!$R$2:$R$1000)*('Fixed assets'!$P$2:$P$1000<$A695)*('Fixed assets'!$Q$2:$Q$1000=Costs!Z$617))-SUMPRODUCT(('Fixed assets'!$S$2:$S$1000)*('Fixed assets'!$P$2:$P$1000<Costs!$A695)*('Fixed assets'!$Q$2:$Q$1000=Costs!Z$617))-SUMPRODUCT(('Fixed assets'!$Q$2:$Q$1000=Costs!Z$617)*('Fixed assets'!$U$2:$U$1000=Costs!$A695)*('Fixed assets'!$S$2:$S$1000))+SUMPRODUCT(('Fixed assets'!$Q$2:$Q$1000=Costs!Z$617)*('Fixed assets'!$P$2:$P$1000=Costs!$A695)*('Fixed assets'!$U$2:$U$1000=Costs!$A695)*('Fixed assets'!$R$2:$R$1000))","v":0},{"$f":"SUMPRODUCT(('Fixed assets'!$R$2:$R$1000)*('Fixed assets'!$P$2:$P$1000<$A695)*('Fixed assets'!$Q$2:$Q$1000=Costs!AA$617))-SUMPRODUCT(('Fixed assets'!$S$2:$S$1000)*('Fixed assets'!$P$2:$P$1000<Costs!$A695)*('Fixed assets'!$Q$2:$Q$1000=Costs!AA$617))-SUMPRODUCT(('Fixed assets'!$Q$2:$Q$1000=Costs!AA$617)*('Fixed assets'!$U$2:$U$1000=Costs!$A695)*('Fixed assets'!$S$2:$S$1000))+SUMPRODUCT(('Fixed assets'!$Q$2:$Q$1000=Costs!AA$617)*('Fixed assets'!$P$2:$P$1000=Costs!$A695)*('Fixed assets'!$U$2:$U$1000=Costs!$A695)*('Fixed assets'!$R$2:$R$1000))","v":0},{"$f":"SUMPRODUCT(('Fixed assets'!$R$2:$R$1000)*('Fixed assets'!$P$2:$P$1000<$A695)*('Fixed assets'!$Q$2:$Q$1000=Costs!AB$617))-SUMPRODUCT(('Fixed assets'!$S$2:$S$1000)*('Fixed assets'!$P$2:$P$1000<Costs!$A695)*('Fixed assets'!$Q$2:$Q$1000=Costs!AB$617))-SUMPRODUCT(('Fixed assets'!$Q$2:$Q$1000=Costs!AB$617)*('Fixed assets'!$U$2:$U$1000=Costs!$A695)*('Fixed assets'!$S$2:$S$1000))+SUMPRODUCT(('Fixed assets'!$Q$2:$Q$1000=Costs!AB$617)*('Fixed assets'!$P$2:$P$1000=Costs!$A695)*('Fixed assets'!$U$2:$U$1000=Costs!$A695)*('Fixed assets'!$R$2:$R$1000))","v":0},{"$f":"SUMPRODUCT(('Fixed assets'!$R$2:$R$1000)*('Fixed assets'!$P$2:$P$1000<$A695)*('Fixed assets'!$Q$2:$Q$1000=Costs!AC$617))-SUMPRODUCT(('Fixed assets'!$S$2:$S$1000)*('Fixed assets'!$P$2:$P$1000<Costs!$A695)*('Fixed assets'!$Q$2:$Q$1000=Costs!AC$617))-SUMPRODUCT(('Fixed assets'!$Q$2:$Q$1000=Costs!AC$617)*('Fixed assets'!$U$2:$U$1000=Costs!$A695)*('Fixed assets'!$S$2:$S$1000))+SUMPRODUCT(('Fixed assets'!$Q$2:$Q$1000=Costs!AC$617)*('Fixed assets'!$P$2:$P$1000=Costs!$A695)*('Fixed assets'!$U$2:$U$1000=Costs!$A695)*('Fixed assets'!$R$2:$R$1000))","v":0},{"$f":"SUMPRODUCT(('Fixed assets'!$R$2:$R$1000)*('Fixed assets'!$P$2:$P$1000<$A695)*('Fixed assets'!$Q$2:$Q$1000=Costs!AD$617))-SUMPRODUCT(('Fixed assets'!$S$2:$S$1000)*('Fixed assets'!$P$2:$P$1000<Costs!$A695)*('Fixed assets'!$Q$2:$Q$1000=Costs!AD$617))-SUMPRODUCT(('Fixed assets'!$Q$2:$Q$1000=Costs!AD$617)*('Fixed assets'!$U$2:$U$1000=Costs!$A695)*('Fixed assets'!$S$2:$S$1000))+SUMPRODUCT(('Fixed assets'!$Q$2:$Q$1000=Costs!AD$617)*('Fixed assets'!$P$2:$P$1000=Costs!$A695)*('Fixed assets'!$U$2:$U$1000=Costs!$A695)*('Fixed assets'!$R$2:$R$1000))","v":0},{"$f":"SUMPRODUCT(('Fixed assets'!$R$2:$R$1000)*('Fixed assets'!$P$2:$P$1000<$A695)*('Fixed assets'!$Q$2:$Q$1000=Costs!AE$617))-SUMPRODUCT(('Fixed assets'!$S$2:$S$1000)*('Fixed assets'!$P$2:$P$1000<Costs!$A695)*('Fixed assets'!$Q$2:$Q$1000=Costs!AE$617))-SUMPRODUCT(('Fixed assets'!$Q$2:$Q$1000=Costs!AE$617)*('Fixed assets'!$U$2:$U$1000=Costs!$A695)*('Fixed assets'!$S$2:$S$1000))+SUMPRODUCT(('Fixed assets'!$Q$2:$Q$1000=Costs!AE$617)*('Fixed assets'!$P$2:$P$1000=Costs!$A695)*('Fixed assets'!$U$2:$U$1000=Costs!$A695)*('Fixed assets'!$R$2:$R$1000))","v":0},{"$f":"SUMPRODUCT(('Fixed assets'!$R$2:$R$1000)*('Fixed assets'!$P$2:$P$1000<$A695)*('Fixed assets'!$Q$2:$Q$1000=Costs!AF$617))-SUMPRODUCT(('Fixed assets'!$S$2:$S$1000)*('Fixed assets'!$P$2:$P$1000<Costs!$A695)*('Fixed assets'!$Q$2:$Q$1000=Costs!AF$617))-SUMPRODUCT(('Fixed assets'!$Q$2:$Q$1000=Costs!AF$617)*('Fixed assets'!$U$2:$U$1000=Costs!$A695)*('Fixed assets'!$S$2:$S$1000))+SUMPRODUCT(('Fixed assets'!$Q$2:$Q$1000=Costs!AF$617)*('Fixed assets'!$P$2:$P$1000=Costs!$A695)*('Fixed assets'!$U$2:$U$1000=Costs!$A695)*('Fixed assets'!$R$2:$R$1000))","v":0},{"$f":"SUMPRODUCT(('Fixed assets'!$R$2:$R$1000)*('Fixed assets'!$P$2:$P$1000<$A695)*('Fixed assets'!$Q$2:$Q$1000=Costs!AG$617))-SUMPRODUCT(('Fixed assets'!$S$2:$S$1000)*('Fixed assets'!$P$2:$P$1000<Costs!$A695)*('Fixed assets'!$Q$2:$Q$1000=Costs!AG$617))-SUMPRODUCT(('Fixed assets'!$Q$2:$Q$1000=Costs!AG$617)*('Fixed assets'!$U$2:$U$1000=Costs!$A695)*('Fixed assets'!$S$2:$S$1000))+SUMPRODUCT(('Fixed assets'!$Q$2:$Q$1000=Costs!AG$617)*('Fixed assets'!$P$2:$P$1000=Costs!$A695)*('Fixed assets'!$U$2:$U$1000=Costs!$A695)*('Fixed assets'!$R$2:$R$1000))","v":0},{"$f":"SUMPRODUCT(('Fixed assets'!$R$2:$R$1000)*('Fixed assets'!$P$2:$P$1000<$A695)*('Fixed assets'!$Q$2:$Q$1000=Costs!AH$617))-SUMPRODUCT(('Fixed assets'!$S$2:$S$1000)*('Fixed assets'!$P$2:$P$1000<Costs!$A695)*('Fixed assets'!$Q$2:$Q$1000=Costs!AH$617))-SUMPRODUCT(('Fixed assets'!$Q$2:$Q$1000=Costs!AH$617)*('Fixed assets'!$U$2:$U$1000=Costs!$A695)*('Fixed assets'!$S$2:$S$1000))+SUMPRODUCT(('Fixed assets'!$Q$2:$Q$1000=Costs!AH$617)*('Fixed assets'!$P$2:$P$1000=Costs!$A695)*('Fixed assets'!$U$2:$U$1000=Costs!$A695)*('Fixed assets'!$R$2:$R$1000))","v":0},{"$f":"SUMPRODUCT(('Fixed assets'!$R$2:$R$1000)*('Fixed assets'!$P$2:$P$1000<$A695)*('Fixed assets'!$Q$2:$Q$1000=Costs!AI$617))-SUMPRODUCT(('Fixed assets'!$S$2:$S$1000)*('Fixed assets'!$P$2:$P$1000<Costs!$A695)*('Fixed assets'!$Q$2:$Q$1000=Costs!AI$617))-SUMPRODUCT(('Fixed assets'!$Q$2:$Q$1000=Costs!AI$617)*('Fixed assets'!$U$2:$U$1000=Costs!$A695)*('Fixed assets'!$S$2:$S$1000))+SUMPRODUCT(('Fixed assets'!$Q$2:$Q$1000=Costs!AI$617)*('Fixed assets'!$P$2:$P$1000=Costs!$A695)*('Fixed assets'!$U$2:$U$1000=Costs!$A695)*('Fixed assets'!$R$2:$R$1000))","v":0},{"$f":"SUMPRODUCT(('Fixed assets'!$R$2:$R$1000)*('Fixed assets'!$P$2:$P$1000<$A695)*('Fixed assets'!$Q$2:$Q$1000=Costs!AJ$617))-SUMPRODUCT(('Fixed assets'!$S$2:$S$1000)*('Fixed assets'!$P$2:$P$1000<Costs!$A695)*('Fixed assets'!$Q$2:$Q$1000=Costs!AJ$617))-SUMPRODUCT(('Fixed assets'!$Q$2:$Q$1000=Costs!AJ$617)*('Fixed assets'!$U$2:$U$1000=Costs!$A695)*('Fixed assets'!$S$2:$S$1000))+SUMPRODUCT(('Fixed assets'!$Q$2:$Q$1000=Costs!AJ$617)*('Fixed assets'!$P$2:$P$1000=Costs!$A695)*('Fixed assets'!$U$2:$U$1000=Costs!$A695)*('Fixed assets'!$R$2:$R$1000))","v":0},{"$f":"SUMPRODUCT(('Fixed assets'!$R$2:$R$1000)*('Fixed assets'!$P$2:$P$1000<$A695)*('Fixed assets'!$Q$2:$Q$1000=Costs!AK$617))-SUMPRODUCT(('Fixed assets'!$S$2:$S$1000)*('Fixed assets'!$P$2:$P$1000<Costs!$A695)*('Fixed assets'!$Q$2:$Q$1000=Costs!AK$617))-SUMPRODUCT(('Fixed assets'!$Q$2:$Q$1000=Costs!AK$617)*('Fixed assets'!$U$2:$U$1000=Costs!$A695)*('Fixed assets'!$S$2:$S$1000))+SUMPRODUCT(('Fixed assets'!$Q$2:$Q$1000=Costs!AK$617)*('Fixed assets'!$P$2:$P$1000=Costs!$A695)*('Fixed assets'!$U$2:$U$1000=Costs!$A695)*('Fixed assets'!$R$2:$R$1000))","v":0},{"$f":"SUMPRODUCT(('Fixed assets'!$R$2:$R$1000)*('Fixed assets'!$P$2:$P$1000<$A695)*('Fixed assets'!$Q$2:$Q$1000=Costs!AL$617))-SUMPRODUCT(('Fixed assets'!$S$2:$S$1000)*('Fixed assets'!$P$2:$P$1000<Costs!$A695)*('Fixed assets'!$Q$2:$Q$1000=Costs!AL$617))-SUMPRODUCT(('Fixed assets'!$Q$2:$Q$1000=Costs!AL$617)*('Fixed assets'!$U$2:$U$1000=Costs!$A695)*('Fixed assets'!$S$2:$S$1000))+SUMPRODUCT(('Fixed assets'!$Q$2:$Q$1000=Costs!AL$617)*('Fixed assets'!$P$2:$P$1000=Costs!$A695)*('Fixed assets'!$U$2:$U$1000=Costs!$A695)*('Fixed assets'!$R$2:$R$1000))","v":0},{"$f":"SUMPRODUCT(('Fixed assets'!$R$2:$R$1000)*('Fixed assets'!$P$2:$P$1000<$A695)*('Fixed assets'!$Q$2:$Q$1000=Costs!AM$617))-SUMPRODUCT(('Fixed assets'!$S$2:$S$1000)*('Fixed assets'!$P$2:$P$1000<Costs!$A695)*('Fixed assets'!$Q$2:$Q$1000=Costs!AM$617))-SUMPRODUCT(('Fixed assets'!$Q$2:$Q$1000=Costs!AM$617)*('Fixed assets'!$U$2:$U$1000=Costs!$A695)*('Fixed assets'!$S$2:$S$1000))+SUMPRODUCT(('Fixed assets'!$Q$2:$Q$1000=Costs!AM$617)*('Fixed assets'!$P$2:$P$1000=Costs!$A695)*('Fixed assets'!$U$2:$U$1000=Costs!$A695)*('Fixed assets'!$R$2:$R$1000))","v":0},{"$f":"SUMPRODUCT(('Fixed assets'!$R$2:$R$1000)*('Fixed assets'!$P$2:$P$1000<$A695)*('Fixed assets'!$Q$2:$Q$1000=Costs!AN$617))-SUMPRODUCT(('Fixed assets'!$S$2:$S$1000)*('Fixed assets'!$P$2:$P$1000<Costs!$A695)*('Fixed assets'!$Q$2:$Q$1000=Costs!AN$617))-SUMPRODUCT(('Fixed assets'!$Q$2:$Q$1000=Costs!AN$617)*('Fixed assets'!$U$2:$U$1000=Costs!$A695)*('Fixed assets'!$S$2:$S$1000))+SUMPRODUCT(('Fixed assets'!$Q$2:$Q$1000=Costs!AN$617)*('Fixed assets'!$P$2:$P$1000=Costs!$A695)*('Fixed assets'!$U$2:$U$1000=Costs!$A695)*('Fixed assets'!$R$2:$R$1000))","v":0},{"$f":"SUMPRODUCT(('Fixed assets'!$R$2:$R$1000)*('Fixed assets'!$P$2:$P$1000<$A695)*('Fixed assets'!$Q$2:$Q$1000=Costs!AO$617))-SUMPRODUCT(('Fixed assets'!$S$2:$S$1000)*('Fixed assets'!$P$2:$P$1000<Costs!$A695)*('Fixed assets'!$Q$2:$Q$1000=Costs!AO$617))-SUMPRODUCT(('Fixed assets'!$Q$2:$Q$1000=Costs!AO$617)*('Fixed assets'!$U$2:$U$1000=Costs!$A695)*('Fixed assets'!$S$2:$S$1000))+SUMPRODUCT(('Fixed assets'!$Q$2:$Q$1000=Costs!AO$617)*('Fixed assets'!$P$2:$P$1000=Costs!$A695)*('Fixed assets'!$U$2:$U$1000=Costs!$A695)*('Fixed assets'!$R$2:$R$1000))","v":0},{"$f":"SUMPRODUCT(('Fixed assets'!$R$2:$R$1000)*('Fixed assets'!$P$2:$P$1000<$A695)*('Fixed assets'!$Q$2:$Q$1000=Costs!AP$617))-SUMPRODUCT(('Fixed assets'!$S$2:$S$1000)*('Fixed assets'!$P$2:$P$1000<Costs!$A695)*('Fixed assets'!$Q$2:$Q$1000=Costs!AP$617))-SUMPRODUCT(('Fixed assets'!$Q$2:$Q$1000=Costs!AP$617)*('Fixed assets'!$U$2:$U$1000=Costs!$A695)*('Fixed assets'!$S$2:$S$1000))+SUMPRODUCT(('Fixed assets'!$Q$2:$Q$1000=Costs!AP$617)*('Fixed assets'!$P$2:$P$1000=Costs!$A695)*('Fixed assets'!$U$2:$U$1000=Costs!$A695)*('Fixed assets'!$R$2:$R$1000))","v":0},{"$f":"SUMPRODUCT(('Fixed assets'!$R$2:$R$1000)*('Fixed assets'!$P$2:$P$1000<$A695)*('Fixed assets'!$Q$2:$Q$1000=Costs!AQ$617))-SUMPRODUCT(('Fixed assets'!$S$2:$S$1000)*('Fixed assets'!$P$2:$P$1000<Costs!$A695)*('Fixed assets'!$Q$2:$Q$1000=Costs!AQ$617))-SUMPRODUCT(('Fixed assets'!$Q$2:$Q$1000=Costs!AQ$617)*('Fixed assets'!$U$2:$U$1000=Costs!$A695)*('Fixed assets'!$S$2:$S$1000))+SUMPRODUCT(('Fixed assets'!$Q$2:$Q$1000=Costs!AQ$617)*('Fixed assets'!$P$2:$P$1000=Costs!$A695)*('Fixed assets'!$U$2:$U$1000=Costs!$A695)*('Fixed assets'!$R$2:$R$1000))","v":0}]
[2093,0,{"$f":"SUMPRODUCT(('Fixed assets'!$R$2:$R$1000)*('Fixed assets'!$P$2:$P$1000<$A696)*('Fixed assets'!$Q$2:$Q$1000=Costs!C$617))-SUMPRODUCT(('Fixed assets'!$S$2:$S$1000)*('Fixed assets'!$P$2:$P$1000<Costs!$A696)*('Fixed assets'!$Q$2:$Q$1000=Costs!C$617))-SUMPRODUCT(('Fixed assets'!$Q$2:$Q$1000=Costs!C$617)*('Fixed assets'!$U$2:$U$1000=Costs!$A696)*('Fixed assets'!$S$2:$S$1000))+SUMPRODUCT(('Fixed assets'!$Q$2:$Q$1000=Costs!C$617)*('Fixed assets'!$P$2:$P$1000=Costs!$A696)*('Fixed assets'!$U$2:$U$1000=Costs!$A696)*('Fixed assets'!$R$2:$R$1000))","v":0},{"$f":"SUMPRODUCT(('Fixed assets'!$R$2:$R$1000)*('Fixed assets'!$P$2:$P$1000<$A696)*('Fixed assets'!$Q$2:$Q$1000=Costs!D$617))-SUMPRODUCT(('Fixed assets'!$S$2:$S$1000)*('Fixed assets'!$P$2:$P$1000<Costs!$A696)*('Fixed assets'!$Q$2:$Q$1000=Costs!D$617))-SUMPRODUCT(('Fixed assets'!$Q$2:$Q$1000=Costs!D$617)*('Fixed assets'!$U$2:$U$1000=Costs!$A696)*('Fixed assets'!$S$2:$S$1000))+SUMPRODUCT(('Fixed assets'!$Q$2:$Q$1000=Costs!D$617)*('Fixed assets'!$P$2:$P$1000=Costs!$A696)*('Fixed assets'!$U$2:$U$1000=Costs!$A696)*('Fixed assets'!$R$2:$R$1000))","v":0},{"$f":"SUMPRODUCT(('Fixed assets'!$R$2:$R$1000)*('Fixed assets'!$P$2:$P$1000<$A696)*('Fixed assets'!$Q$2:$Q$1000=Costs!E$617))-SUMPRODUCT(('Fixed assets'!$S$2:$S$1000)*('Fixed assets'!$P$2:$P$1000<Costs!$A696)*('Fixed assets'!$Q$2:$Q$1000=Costs!E$617))-SUMPRODUCT(('Fixed assets'!$Q$2:$Q$1000=Costs!E$617)*('Fixed assets'!$U$2:$U$1000=Costs!$A696)*('Fixed assets'!$S$2:$S$1000))+SUMPRODUCT(('Fixed assets'!$Q$2:$Q$1000=Costs!E$617)*('Fixed assets'!$P$2:$P$1000=Costs!$A696)*('Fixed assets'!$U$2:$U$1000=Costs!$A696)*('Fixed assets'!$R$2:$R$1000))","v":0},{"$f":"SUMPRODUCT(('Fixed assets'!$R$2:$R$1000)*('Fixed assets'!$P$2:$P$1000<$A696)*('Fixed assets'!$Q$2:$Q$1000=Costs!F$617))-SUMPRODUCT(('Fixed assets'!$S$2:$S$1000)*('Fixed assets'!$P$2:$P$1000<Costs!$A696)*('Fixed assets'!$Q$2:$Q$1000=Costs!F$617))-SUMPRODUCT(('Fixed assets'!$Q$2:$Q$1000=Costs!F$617)*('Fixed assets'!$U$2:$U$1000=Costs!$A696)*('Fixed assets'!$S$2:$S$1000))+SUMPRODUCT(('Fixed assets'!$Q$2:$Q$1000=Costs!F$617)*('Fixed assets'!$P$2:$P$1000=Costs!$A696)*('Fixed assets'!$U$2:$U$1000=Costs!$A696)*('Fixed assets'!$R$2:$R$1000))","v":0},{"$f":"SUMPRODUCT(('Fixed assets'!$R$2:$R$1000)*('Fixed assets'!$P$2:$P$1000<$A696)*('Fixed assets'!$Q$2:$Q$1000=Costs!G$617))-SUMPRODUCT(('Fixed assets'!$S$2:$S$1000)*('Fixed assets'!$P$2:$P$1000<Costs!$A696)*('Fixed assets'!$Q$2:$Q$1000=Costs!G$617))-SUMPRODUCT(('Fixed assets'!$Q$2:$Q$1000=Costs!G$617)*('Fixed assets'!$U$2:$U$1000=Costs!$A696)*('Fixed assets'!$S$2:$S$1000))+SUMPRODUCT(('Fixed assets'!$Q$2:$Q$1000=Costs!G$617)*('Fixed assets'!$P$2:$P$1000=Costs!$A696)*('Fixed assets'!$U$2:$U$1000=Costs!$A696)*('Fixed assets'!$R$2:$R$1000))","v":0},{"$f":"SUMPRODUCT(('Fixed assets'!$R$2:$R$1000)*('Fixed assets'!$P$2:$P$1000<$A696)*('Fixed assets'!$Q$2:$Q$1000=Costs!H$617))-SUMPRODUCT(('Fixed assets'!$S$2:$S$1000)*('Fixed assets'!$P$2:$P$1000<Costs!$A696)*('Fixed assets'!$Q$2:$Q$1000=Costs!H$617))-SUMPRODUCT(('Fixed assets'!$Q$2:$Q$1000=Costs!H$617)*('Fixed assets'!$U$2:$U$1000=Costs!$A696)*('Fixed assets'!$S$2:$S$1000))+SUMPRODUCT(('Fixed assets'!$Q$2:$Q$1000=Costs!H$617)*('Fixed assets'!$P$2:$P$1000=Costs!$A696)*('Fixed assets'!$U$2:$U$1000=Costs!$A696)*('Fixed assets'!$R$2:$R$1000))","v":0},{"$f":"SUMPRODUCT(('Fixed assets'!$R$2:$R$1000)*('Fixed assets'!$P$2:$P$1000<$A696)*('Fixed assets'!$Q$2:$Q$1000=Costs!I$617))-SUMPRODUCT(('Fixed assets'!$S$2:$S$1000)*('Fixed assets'!$P$2:$P$1000<Costs!$A696)*('Fixed assets'!$Q$2:$Q$1000=Costs!I$617))-SUMPRODUCT(('Fixed assets'!$Q$2:$Q$1000=Costs!I$617)*('Fixed assets'!$U$2:$U$1000=Costs!$A696)*('Fixed assets'!$S$2:$S$1000))+SUMPRODUCT(('Fixed assets'!$Q$2:$Q$1000=Costs!I$617)*('Fixed assets'!$P$2:$P$1000=Costs!$A696)*('Fixed assets'!$U$2:$U$1000=Costs!$A696)*('Fixed assets'!$R$2:$R$1000))","v":0},{"$f":"SUMPRODUCT(('Fixed assets'!$R$2:$R$1000)*('Fixed assets'!$P$2:$P$1000<$A696)*('Fixed assets'!$Q$2:$Q$1000=Costs!J$617))-SUMPRODUCT(('Fixed assets'!$S$2:$S$1000)*('Fixed assets'!$P$2:$P$1000<Costs!$A696)*('Fixed assets'!$Q$2:$Q$1000=Costs!J$617))-SUMPRODUCT(('Fixed assets'!$Q$2:$Q$1000=Costs!J$617)*('Fixed assets'!$U$2:$U$1000=Costs!$A696)*('Fixed assets'!$S$2:$S$1000))+SUMPRODUCT(('Fixed assets'!$Q$2:$Q$1000=Costs!J$617)*('Fixed assets'!$P$2:$P$1000=Costs!$A696)*('Fixed assets'!$U$2:$U$1000=Costs!$A696)*('Fixed assets'!$R$2:$R$1000))","v":0},{"$f":"SUMPRODUCT(('Fixed assets'!$R$2:$R$1000)*('Fixed assets'!$P$2:$P$1000<$A696)*('Fixed assets'!$Q$2:$Q$1000=Costs!K$617))-SUMPRODUCT(('Fixed assets'!$S$2:$S$1000)*('Fixed assets'!$P$2:$P$1000<Costs!$A696)*('Fixed assets'!$Q$2:$Q$1000=Costs!K$617))-SUMPRODUCT(('Fixed assets'!$Q$2:$Q$1000=Costs!K$617)*('Fixed assets'!$U$2:$U$1000=Costs!$A696)*('Fixed assets'!$S$2:$S$1000))+SUMPRODUCT(('Fixed assets'!$Q$2:$Q$1000=Costs!K$617)*('Fixed assets'!$P$2:$P$1000=Costs!$A696)*('Fixed assets'!$U$2:$U$1000=Costs!$A696)*('Fixed assets'!$R$2:$R$1000))","v":0},{"$f":"SUMPRODUCT(('Fixed assets'!$R$2:$R$1000)*('Fixed assets'!$P$2:$P$1000<$A696)*('Fixed assets'!$Q$2:$Q$1000=Costs!L$617))-SUMPRODUCT(('Fixed assets'!$S$2:$S$1000)*('Fixed assets'!$P$2:$P$1000<Costs!$A696)*('Fixed assets'!$Q$2:$Q$1000=Costs!L$617))-SUMPRODUCT(('Fixed assets'!$Q$2:$Q$1000=Costs!L$617)*('Fixed assets'!$U$2:$U$1000=Costs!$A696)*('Fixed assets'!$S$2:$S$1000))+SUMPRODUCT(('Fixed assets'!$Q$2:$Q$1000=Costs!L$617)*('Fixed assets'!$P$2:$P$1000=Costs!$A696)*('Fixed assets'!$U$2:$U$1000=Costs!$A696)*('Fixed assets'!$R$2:$R$1000))","v":0},{"$f":"SUMPRODUCT(('Fixed assets'!$R$2:$R$1000)*('Fixed assets'!$P$2:$P$1000<$A696)*('Fixed assets'!$Q$2:$Q$1000=Costs!M$617))-SUMPRODUCT(('Fixed assets'!$S$2:$S$1000)*('Fixed assets'!$P$2:$P$1000<Costs!$A696)*('Fixed assets'!$Q$2:$Q$1000=Costs!M$617))-SUMPRODUCT(('Fixed assets'!$Q$2:$Q$1000=Costs!M$617)*('Fixed assets'!$U$2:$U$1000=Costs!$A696)*('Fixed assets'!$S$2:$S$1000))+SUMPRODUCT(('Fixed assets'!$Q$2:$Q$1000=Costs!M$617)*('Fixed assets'!$P$2:$P$1000=Costs!$A696)*('Fixed assets'!$U$2:$U$1000=Costs!$A696)*('Fixed assets'!$R$2:$R$1000))","v":0},{"$f":"SUMPRODUCT(('Fixed assets'!$R$2:$R$1000)*('Fixed assets'!$P$2:$P$1000<$A696)*('Fixed assets'!$Q$2:$Q$1000=Costs!N$617))-SUMPRODUCT(('Fixed assets'!$S$2:$S$1000)*('Fixed assets'!$P$2:$P$1000<Costs!$A696)*('Fixed assets'!$Q$2:$Q$1000=Costs!N$617))-SUMPRODUCT(('Fixed assets'!$Q$2:$Q$1000=Costs!N$617)*('Fixed assets'!$U$2:$U$1000=Costs!$A696)*('Fixed assets'!$S$2:$S$1000))+SUMPRODUCT(('Fixed assets'!$Q$2:$Q$1000=Costs!N$617)*('Fixed assets'!$P$2:$P$1000=Costs!$A696)*('Fixed assets'!$U$2:$U$1000=Costs!$A696)*('Fixed assets'!$R$2:$R$1000))","v":0},{"$f":"SUMPRODUCT(('Fixed assets'!$R$2:$R$1000)*('Fixed assets'!$P$2:$P$1000<$A696)*('Fixed assets'!$Q$2:$Q$1000=Costs!O$617))-SUMPRODUCT(('Fixed assets'!$S$2:$S$1000)*('Fixed assets'!$P$2:$P$1000<Costs!$A696)*('Fixed assets'!$Q$2:$Q$1000=Costs!O$617))-SUMPRODUCT(('Fixed assets'!$Q$2:$Q$1000=Costs!O$617)*('Fixed assets'!$U$2:$U$1000=Costs!$A696)*('Fixed assets'!$S$2:$S$1000))+SUMPRODUCT(('Fixed assets'!$Q$2:$Q$1000=Costs!O$617)*('Fixed assets'!$P$2:$P$1000=Costs!$A696)*('Fixed assets'!$U$2:$U$1000=Costs!$A696)*('Fixed assets'!$R$2:$R$1000))","v":0},{"$f":"SUMPRODUCT(('Fixed assets'!$R$2:$R$1000)*('Fixed assets'!$P$2:$P$1000<$A696)*('Fixed assets'!$Q$2:$Q$1000=Costs!P$617))-SUMPRODUCT(('Fixed assets'!$S$2:$S$1000)*('Fixed assets'!$P$2:$P$1000<Costs!$A696)*('Fixed assets'!$Q$2:$Q$1000=Costs!P$617))-SUMPRODUCT(('Fixed assets'!$Q$2:$Q$1000=Costs!P$617)*('Fixed assets'!$U$2:$U$1000=Costs!$A696)*('Fixed assets'!$S$2:$S$1000))+SUMPRODUCT(('Fixed assets'!$Q$2:$Q$1000=Costs!P$617)*('Fixed assets'!$P$2:$P$1000=Costs!$A696)*('Fixed assets'!$U$2:$U$1000=Costs!$A696)*('Fixed assets'!$R$2:$R$1000))","v":0},{"$f":"SUMPRODUCT(('Fixed assets'!$R$2:$R$1000)*('Fixed assets'!$P$2:$P$1000<$A696)*('Fixed assets'!$Q$2:$Q$1000=Costs!Q$617))-SUMPRODUCT(('Fixed assets'!$S$2:$S$1000)*('Fixed assets'!$P$2:$P$1000<Costs!$A696)*('Fixed assets'!$Q$2:$Q$1000=Costs!Q$617))-SUMPRODUCT(('Fixed assets'!$Q$2:$Q$1000=Costs!Q$617)*('Fixed assets'!$U$2:$U$1000=Costs!$A696)*('Fixed assets'!$S$2:$S$1000))+SUMPRODUCT(('Fixed assets'!$Q$2:$Q$1000=Costs!Q$617)*('Fixed assets'!$P$2:$P$1000=Costs!$A696)*('Fixed assets'!$U$2:$U$1000=Costs!$A696)*('Fixed assets'!$R$2:$R$1000))","v":0},{"$f":"SUMPRODUCT(('Fixed assets'!$R$2:$R$1000)*('Fixed assets'!$P$2:$P$1000<$A696)*('Fixed assets'!$Q$2:$Q$1000=Costs!R$617))-SUMPRODUCT(('Fixed assets'!$S$2:$S$1000)*('Fixed assets'!$P$2:$P$1000<Costs!$A696)*('Fixed assets'!$Q$2:$Q$1000=Costs!R$617))-SUMPRODUCT(('Fixed assets'!$Q$2:$Q$1000=Costs!R$617)*('Fixed assets'!$U$2:$U$1000=Costs!$A696)*('Fixed assets'!$S$2:$S$1000))+SUMPRODUCT(('Fixed assets'!$Q$2:$Q$1000=Costs!R$617)*('Fixed assets'!$P$2:$P$1000=Costs!$A696)*('Fixed assets'!$U$2:$U$1000=Costs!$A696)*('Fixed assets'!$R$2:$R$1000))","v":0},{"$f":"SUMPRODUCT(('Fixed assets'!$R$2:$R$1000)*('Fixed assets'!$P$2:$P$1000<$A696)*('Fixed assets'!$Q$2:$Q$1000=Costs!S$617))-SUMPRODUCT(('Fixed assets'!$S$2:$S$1000)*('Fixed assets'!$P$2:$P$1000<Costs!$A696)*('Fixed assets'!$Q$2:$Q$1000=Costs!S$617))-SUMPRODUCT(('Fixed assets'!$Q$2:$Q$1000=Costs!S$617)*('Fixed assets'!$U$2:$U$1000=Costs!$A696)*('Fixed assets'!$S$2:$S$1000))+SUMPRODUCT(('Fixed assets'!$Q$2:$Q$1000=Costs!S$617)*('Fixed assets'!$P$2:$P$1000=Costs!$A696)*('Fixed assets'!$U$2:$U$1000=Costs!$A696)*('Fixed assets'!$R$2:$R$1000))","v":0},{"$f":"SUMPRODUCT(('Fixed assets'!$R$2:$R$1000)*('Fixed assets'!$P$2:$P$1000<$A696)*('Fixed assets'!$Q$2:$Q$1000=Costs!T$617))-SUMPRODUCT(('Fixed assets'!$S$2:$S$1000)*('Fixed assets'!$P$2:$P$1000<Costs!$A696)*('Fixed assets'!$Q$2:$Q$1000=Costs!T$617))-SUMPRODUCT(('Fixed assets'!$Q$2:$Q$1000=Costs!T$617)*('Fixed assets'!$U$2:$U$1000=Costs!$A696)*('Fixed assets'!$S$2:$S$1000))+SUMPRODUCT(('Fixed assets'!$Q$2:$Q$1000=Costs!T$617)*('Fixed assets'!$P$2:$P$1000=Costs!$A696)*('Fixed assets'!$U$2:$U$1000=Costs!$A696)*('Fixed assets'!$R$2:$R$1000))","v":0},{"$f":"SUMPRODUCT(('Fixed assets'!$R$2:$R$1000)*('Fixed assets'!$P$2:$P$1000<$A696)*('Fixed assets'!$Q$2:$Q$1000=Costs!U$617))-SUMPRODUCT(('Fixed assets'!$S$2:$S$1000)*('Fixed assets'!$P$2:$P$1000<Costs!$A696)*('Fixed assets'!$Q$2:$Q$1000=Costs!U$617))-SUMPRODUCT(('Fixed assets'!$Q$2:$Q$1000=Costs!U$617)*('Fixed assets'!$U$2:$U$1000=Costs!$A696)*('Fixed assets'!$S$2:$S$1000))+SUMPRODUCT(('Fixed assets'!$Q$2:$Q$1000=Costs!U$617)*('Fixed assets'!$P$2:$P$1000=Costs!$A696)*('Fixed assets'!$U$2:$U$1000=Costs!$A696)*('Fixed assets'!$R$2:$R$1000))","v":0},{"$f":"SUMPRODUCT(('Fixed assets'!$R$2:$R$1000)*('Fixed assets'!$P$2:$P$1000<$A696)*('Fixed assets'!$Q$2:$Q$1000=Costs!V$617))-SUMPRODUCT(('Fixed assets'!$S$2:$S$1000)*('Fixed assets'!$P$2:$P$1000<Costs!$A696)*('Fixed assets'!$Q$2:$Q$1000=Costs!V$617))-SUMPRODUCT(('Fixed assets'!$Q$2:$Q$1000=Costs!V$617)*('Fixed assets'!$U$2:$U$1000=Costs!$A696)*('Fixed assets'!$S$2:$S$1000))+SUMPRODUCT(('Fixed assets'!$Q$2:$Q$1000=Costs!V$617)*('Fixed assets'!$P$2:$P$1000=Costs!$A696)*('Fixed assets'!$U$2:$U$1000=Costs!$A696)*('Fixed assets'!$R$2:$R$1000))","v":0},{"$f":"SUMPRODUCT(('Fixed assets'!$R$2:$R$1000)*('Fixed assets'!$P$2:$P$1000<$A696)*('Fixed assets'!$Q$2:$Q$1000=Costs!W$617))-SUMPRODUCT(('Fixed assets'!$S$2:$S$1000)*('Fixed assets'!$P$2:$P$1000<Costs!$A696)*('Fixed assets'!$Q$2:$Q$1000=Costs!W$617))-SUMPRODUCT(('Fixed assets'!$Q$2:$Q$1000=Costs!W$617)*('Fixed assets'!$U$2:$U$1000=Costs!$A696)*('Fixed assets'!$S$2:$S$1000))+SUMPRODUCT(('Fixed assets'!$Q$2:$Q$1000=Costs!W$617)*('Fixed assets'!$P$2:$P$1000=Costs!$A696)*('Fixed assets'!$U$2:$U$1000=Costs!$A696)*('Fixed assets'!$R$2:$R$1000))","v":0},{"$f":"SUMPRODUCT(('Fixed assets'!$R$2:$R$1000)*('Fixed assets'!$P$2:$P$1000<$A696)*('Fixed assets'!$Q$2:$Q$1000=Costs!X$617))-SUMPRODUCT(('Fixed assets'!$S$2:$S$1000)*('Fixed assets'!$P$2:$P$1000<Costs!$A696)*('Fixed assets'!$Q$2:$Q$1000=Costs!X$617))-SUMPRODUCT(('Fixed assets'!$Q$2:$Q$1000=Costs!X$617)*('Fixed assets'!$U$2:$U$1000=Costs!$A696)*('Fixed assets'!$S$2:$S$1000))+SUMPRODUCT(('Fixed assets'!$Q$2:$Q$1000=Costs!X$617)*('Fixed assets'!$P$2:$P$1000=Costs!$A696)*('Fixed assets'!$U$2:$U$1000=Costs!$A696)*('Fixed assets'!$R$2:$R$1000))","v":0},{"$f":"SUMPRODUCT(('Fixed assets'!$R$2:$R$1000)*('Fixed assets'!$P$2:$P$1000<$A696)*('Fixed assets'!$Q$2:$Q$1000=Costs!Y$617))-SUMPRODUCT(('Fixed assets'!$S$2:$S$1000)*('Fixed assets'!$P$2:$P$1000<Costs!$A696)*('Fixed assets'!$Q$2:$Q$1000=Costs!Y$617))-SUMPRODUCT(('Fixed assets'!$Q$2:$Q$1000=Costs!Y$617)*('Fixed assets'!$U$2:$U$1000=Costs!$A696)*('Fixed assets'!$S$2:$S$1000))+SUMPRODUCT(('Fixed assets'!$Q$2:$Q$1000=Costs!Y$617)*('Fixed assets'!$P$2:$P$1000=Costs!$A696)*('Fixed assets'!$U$2:$U$1000=Costs!$A696)*('Fixed assets'!$R$2:$R$1000))","v":0},{"$f":"SUMPRODUCT(('Fixed assets'!$R$2:$R$1000)*('Fixed assets'!$P$2:$P$1000<$A696)*('Fixed assets'!$Q$2:$Q$1000=Costs!Z$617))-SUMPRODUCT(('Fixed assets'!$S$2:$S$1000)*('Fixed assets'!$P$2:$P$1000<Costs!$A696)*('Fixed assets'!$Q$2:$Q$1000=Costs!Z$617))-SUMPRODUCT(('Fixed assets'!$Q$2:$Q$1000=Costs!Z$617)*('Fixed assets'!$U$2:$U$1000=Costs!$A696)*('Fixed assets'!$S$2:$S$1000))+SUMPRODUCT(('Fixed assets'!$Q$2:$Q$1000=Costs!Z$617)*('Fixed assets'!$P$2:$P$1000=Costs!$A696)*('Fixed assets'!$U$2:$U$1000=Costs!$A696)*('Fixed assets'!$R$2:$R$1000))","v":0},{"$f":"SUMPRODUCT(('Fixed assets'!$R$2:$R$1000)*('Fixed assets'!$P$2:$P$1000<$A696)*('Fixed assets'!$Q$2:$Q$1000=Costs!AA$617))-SUMPRODUCT(('Fixed assets'!$S$2:$S$1000)*('Fixed assets'!$P$2:$P$1000<Costs!$A696)*('Fixed assets'!$Q$2:$Q$1000=Costs!AA$617))-SUMPRODUCT(('Fixed assets'!$Q$2:$Q$1000=Costs!AA$617)*('Fixed assets'!$U$2:$U$1000=Costs!$A696)*('Fixed assets'!$S$2:$S$1000))+SUMPRODUCT(('Fixed assets'!$Q$2:$Q$1000=Costs!AA$617)*('Fixed assets'!$P$2:$P$1000=Costs!$A696)*('Fixed assets'!$U$2:$U$1000=Costs!$A696)*('Fixed assets'!$R$2:$R$1000))","v":0},{"$f":"SUMPRODUCT(('Fixed assets'!$R$2:$R$1000)*('Fixed assets'!$P$2:$P$1000<$A696)*('Fixed assets'!$Q$2:$Q$1000=Costs!AB$617))-SUMPRODUCT(('Fixed assets'!$S$2:$S$1000)*('Fixed assets'!$P$2:$P$1000<Costs!$A696)*('Fixed assets'!$Q$2:$Q$1000=Costs!AB$617))-SUMPRODUCT(('Fixed assets'!$Q$2:$Q$1000=Costs!AB$617)*('Fixed assets'!$U$2:$U$1000=Costs!$A696)*('Fixed assets'!$S$2:$S$1000))+SUMPRODUCT(('Fixed assets'!$Q$2:$Q$1000=Costs!AB$617)*('Fixed assets'!$P$2:$P$1000=Costs!$A696)*('Fixed assets'!$U$2:$U$1000=Costs!$A696)*('Fixed assets'!$R$2:$R$1000))","v":0},{"$f":"SUMPRODUCT(('Fixed assets'!$R$2:$R$1000)*('Fixed assets'!$P$2:$P$1000<$A696)*('Fixed assets'!$Q$2:$Q$1000=Costs!AC$617))-SUMPRODUCT(('Fixed assets'!$S$2:$S$1000)*('Fixed assets'!$P$2:$P$1000<Costs!$A696)*('Fixed assets'!$Q$2:$Q$1000=Costs!AC$617))-SUMPRODUCT(('Fixed assets'!$Q$2:$Q$1000=Costs!AC$617)*('Fixed assets'!$U$2:$U$1000=Costs!$A696)*('Fixed assets'!$S$2:$S$1000))+SUMPRODUCT(('Fixed assets'!$Q$2:$Q$1000=Costs!AC$617)*('Fixed assets'!$P$2:$P$1000=Costs!$A696)*('Fixed assets'!$U$2:$U$1000=Costs!$A696)*('Fixed assets'!$R$2:$R$1000))","v":0},{"$f":"SUMPRODUCT(('Fixed assets'!$R$2:$R$1000)*('Fixed assets'!$P$2:$P$1000<$A696)*('Fixed assets'!$Q$2:$Q$1000=Costs!AD$617))-SUMPRODUCT(('Fixed assets'!$S$2:$S$1000)*('Fixed assets'!$P$2:$P$1000<Costs!$A696)*('Fixed assets'!$Q$2:$Q$1000=Costs!AD$617))-SUMPRODUCT(('Fixed assets'!$Q$2:$Q$1000=Costs!AD$617)*('Fixed assets'!$U$2:$U$1000=Costs!$A696)*('Fixed assets'!$S$2:$S$1000))+SUMPRODUCT(('Fixed assets'!$Q$2:$Q$1000=Costs!AD$617)*('Fixed assets'!$P$2:$P$1000=Costs!$A696)*('Fixed assets'!$U$2:$U$1000=Costs!$A696)*('Fixed assets'!$R$2:$R$1000))","v":0},{"$f":"SUMPRODUCT(('Fixed assets'!$R$2:$R$1000)*('Fixed assets'!$P$2:$P$1000<$A696)*('Fixed assets'!$Q$2:$Q$1000=Costs!AE$617))-SUMPRODUCT(('Fixed assets'!$S$2:$S$1000)*('Fixed assets'!$P$2:$P$1000<Costs!$A696)*('Fixed assets'!$Q$2:$Q$1000=Costs!AE$617))-SUMPRODUCT(('Fixed assets'!$Q$2:$Q$1000=Costs!AE$617)*('Fixed assets'!$U$2:$U$1000=Costs!$A696)*('Fixed assets'!$S$2:$S$1000))+SUMPRODUCT(('Fixed assets'!$Q$2:$Q$1000=Costs!AE$617)*('Fixed assets'!$P$2:$P$1000=Costs!$A696)*('Fixed assets'!$U$2:$U$1000=Costs!$A696)*('Fixed assets'!$R$2:$R$1000))","v":0},{"$f":"SUMPRODUCT(('Fixed assets'!$R$2:$R$1000)*('Fixed assets'!$P$2:$P$1000<$A696)*('Fixed assets'!$Q$2:$Q$1000=Costs!AF$617))-SUMPRODUCT(('Fixed assets'!$S$2:$S$1000)*('Fixed assets'!$P$2:$P$1000<Costs!$A696)*('Fixed assets'!$Q$2:$Q$1000=Costs!AF$617))-SUMPRODUCT(('Fixed assets'!$Q$2:$Q$1000=Costs!AF$617)*('Fixed assets'!$U$2:$U$1000=Costs!$A696)*('Fixed assets'!$S$2:$S$1000))+SUMPRODUCT(('Fixed assets'!$Q$2:$Q$1000=Costs!AF$617)*('Fixed assets'!$P$2:$P$1000=Costs!$A696)*('Fixed assets'!$U$2:$U$1000=Costs!$A696)*('Fixed assets'!$R$2:$R$1000))","v":0},{"$f":"SUMPRODUCT(('Fixed assets'!$R$2:$R$1000)*('Fixed assets'!$P$2:$P$1000<$A696)*('Fixed assets'!$Q$2:$Q$1000=Costs!AG$617))-SUMPRODUCT(('Fixed assets'!$S$2:$S$1000)*('Fixed assets'!$P$2:$P$1000<Costs!$A696)*('Fixed assets'!$Q$2:$Q$1000=Costs!AG$617))-SUMPRODUCT(('Fixed assets'!$Q$2:$Q$1000=Costs!AG$617)*('Fixed assets'!$U$2:$U$1000=Costs!$A696)*('Fixed assets'!$S$2:$S$1000))+SUMPRODUCT(('Fixed assets'!$Q$2:$Q$1000=Costs!AG$617)*('Fixed assets'!$P$2:$P$1000=Costs!$A696)*('Fixed assets'!$U$2:$U$1000=Costs!$A696)*('Fixed assets'!$R$2:$R$1000))","v":0},{"$f":"SUMPRODUCT(('Fixed assets'!$R$2:$R$1000)*('Fixed assets'!$P$2:$P$1000<$A696)*('Fixed assets'!$Q$2:$Q$1000=Costs!AH$617))-SUMPRODUCT(('Fixed assets'!$S$2:$S$1000)*('Fixed assets'!$P$2:$P$1000<Costs!$A696)*('Fixed assets'!$Q$2:$Q$1000=Costs!AH$617))-SUMPRODUCT(('Fixed assets'!$Q$2:$Q$1000=Costs!AH$617)*('Fixed assets'!$U$2:$U$1000=Costs!$A696)*('Fixed assets'!$S$2:$S$1000))+SUMPRODUCT(('Fixed assets'!$Q$2:$Q$1000=Costs!AH$617)*('Fixed assets'!$P$2:$P$1000=Costs!$A696)*('Fixed assets'!$U$2:$U$1000=Costs!$A696)*('Fixed assets'!$R$2:$R$1000))","v":0},{"$f":"SUMPRODUCT(('Fixed assets'!$R$2:$R$1000)*('Fixed assets'!$P$2:$P$1000<$A696)*('Fixed assets'!$Q$2:$Q$1000=Costs!AI$617))-SUMPRODUCT(('Fixed assets'!$S$2:$S$1000)*('Fixed assets'!$P$2:$P$1000<Costs!$A696)*('Fixed assets'!$Q$2:$Q$1000=Costs!AI$617))-SUMPRODUCT(('Fixed assets'!$Q$2:$Q$1000=Costs!AI$617)*('Fixed assets'!$U$2:$U$1000=Costs!$A696)*('Fixed assets'!$S$2:$S$1000))+SUMPRODUCT(('Fixed assets'!$Q$2:$Q$1000=Costs!AI$617)*('Fixed assets'!$P$2:$P$1000=Costs!$A696)*('Fixed assets'!$U$2:$U$1000=Costs!$A696)*('Fixed assets'!$R$2:$R$1000))","v":0},{"$f":"SUMPRODUCT(('Fixed assets'!$R$2:$R$1000)*('Fixed assets'!$P$2:$P$1000<$A696)*('Fixed assets'!$Q$2:$Q$1000=Costs!AJ$617))-SUMPRODUCT(('Fixed assets'!$S$2:$S$1000)*('Fixed assets'!$P$2:$P$1000<Costs!$A696)*('Fixed assets'!$Q$2:$Q$1000=Costs!AJ$617))-SUMPRODUCT(('Fixed assets'!$Q$2:$Q$1000=Costs!AJ$617)*('Fixed assets'!$U$2:$U$1000=Costs!$A696)*('Fixed assets'!$S$2:$S$1000))+SUMPRODUCT(('Fixed assets'!$Q$2:$Q$1000=Costs!AJ$617)*('Fixed assets'!$P$2:$P$1000=Costs!$A696)*('Fixed assets'!$U$2:$U$1000=Costs!$A696)*('Fixed assets'!$R$2:$R$1000))","v":0},{"$f":"SUMPRODUCT(('Fixed assets'!$R$2:$R$1000)*('Fixed assets'!$P$2:$P$1000<$A696)*('Fixed assets'!$Q$2:$Q$1000=Costs!AK$617))-SUMPRODUCT(('Fixed assets'!$S$2:$S$1000)*('Fixed assets'!$P$2:$P$1000<Costs!$A696)*('Fixed assets'!$Q$2:$Q$1000=Costs!AK$617))-SUMPRODUCT(('Fixed assets'!$Q$2:$Q$1000=Costs!AK$617)*('Fixed assets'!$U$2:$U$1000=Costs!$A696)*('Fixed assets'!$S$2:$S$1000))+SUMPRODUCT(('Fixed assets'!$Q$2:$Q$1000=Costs!AK$617)*('Fixed assets'!$P$2:$P$1000=Costs!$A696)*('Fixed assets'!$U$2:$U$1000=Costs!$A696)*('Fixed assets'!$R$2:$R$1000))","v":0},{"$f":"SUMPRODUCT(('Fixed assets'!$R$2:$R$1000)*('Fixed assets'!$P$2:$P$1000<$A696)*('Fixed assets'!$Q$2:$Q$1000=Costs!AL$617))-SUMPRODUCT(('Fixed assets'!$S$2:$S$1000)*('Fixed assets'!$P$2:$P$1000<Costs!$A696)*('Fixed assets'!$Q$2:$Q$1000=Costs!AL$617))-SUMPRODUCT(('Fixed assets'!$Q$2:$Q$1000=Costs!AL$617)*('Fixed assets'!$U$2:$U$1000=Costs!$A696)*('Fixed assets'!$S$2:$S$1000))+SUMPRODUCT(('Fixed assets'!$Q$2:$Q$1000=Costs!AL$617)*('Fixed assets'!$P$2:$P$1000=Costs!$A696)*('Fixed assets'!$U$2:$U$1000=Costs!$A696)*('Fixed assets'!$R$2:$R$1000))","v":0},{"$f":"SUMPRODUCT(('Fixed assets'!$R$2:$R$1000)*('Fixed assets'!$P$2:$P$1000<$A696)*('Fixed assets'!$Q$2:$Q$1000=Costs!AM$617))-SUMPRODUCT(('Fixed assets'!$S$2:$S$1000)*('Fixed assets'!$P$2:$P$1000<Costs!$A696)*('Fixed assets'!$Q$2:$Q$1000=Costs!AM$617))-SUMPRODUCT(('Fixed assets'!$Q$2:$Q$1000=Costs!AM$617)*('Fixed assets'!$U$2:$U$1000=Costs!$A696)*('Fixed assets'!$S$2:$S$1000))+SUMPRODUCT(('Fixed assets'!$Q$2:$Q$1000=Costs!AM$617)*('Fixed assets'!$P$2:$P$1000=Costs!$A696)*('Fixed assets'!$U$2:$U$1000=Costs!$A696)*('Fixed assets'!$R$2:$R$1000))","v":0},{"$f":"SUMPRODUCT(('Fixed assets'!$R$2:$R$1000)*('Fixed assets'!$P$2:$P$1000<$A696)*('Fixed assets'!$Q$2:$Q$1000=Costs!AN$617))-SUMPRODUCT(('Fixed assets'!$S$2:$S$1000)*('Fixed assets'!$P$2:$P$1000<Costs!$A696)*('Fixed assets'!$Q$2:$Q$1000=Costs!AN$617))-SUMPRODUCT(('Fixed assets'!$Q$2:$Q$1000=Costs!AN$617)*('Fixed assets'!$U$2:$U$1000=Costs!$A696)*('Fixed assets'!$S$2:$S$1000))+SUMPRODUCT(('Fixed assets'!$Q$2:$Q$1000=Costs!AN$617)*('Fixed assets'!$P$2:$P$1000=Costs!$A696)*('Fixed assets'!$U$2:$U$1000=Costs!$A696)*('Fixed assets'!$R$2:$R$1000))","v":0},{"$f":"SUMPRODUCT(('Fixed assets'!$R$2:$R$1000)*('Fixed assets'!$P$2:$P$1000<$A696)*('Fixed assets'!$Q$2:$Q$1000=Costs!AO$617))-SUMPRODUCT(('Fixed assets'!$S$2:$S$1000)*('Fixed assets'!$P$2:$P$1000<Costs!$A696)*('Fixed assets'!$Q$2:$Q$1000=Costs!AO$617))-SUMPRODUCT(('Fixed assets'!$Q$2:$Q$1000=Costs!AO$617)*('Fixed assets'!$U$2:$U$1000=Costs!$A696)*('Fixed assets'!$S$2:$S$1000))+SUMPRODUCT(('Fixed assets'!$Q$2:$Q$1000=Costs!AO$617)*('Fixed assets'!$P$2:$P$1000=Costs!$A696)*('Fixed assets'!$U$2:$U$1000=Costs!$A696)*('Fixed assets'!$R$2:$R$1000))","v":0},{"$f":"SUMPRODUCT(('Fixed assets'!$R$2:$R$1000)*('Fixed assets'!$P$2:$P$1000<$A696)*('Fixed assets'!$Q$2:$Q$1000=Costs!AP$617))-SUMPRODUCT(('Fixed assets'!$S$2:$S$1000)*('Fixed assets'!$P$2:$P$1000<Costs!$A696)*('Fixed assets'!$Q$2:$Q$1000=Costs!AP$617))-SUMPRODUCT(('Fixed assets'!$Q$2:$Q$1000=Costs!AP$617)*('Fixed assets'!$U$2:$U$1000=Costs!$A696)*('Fixed assets'!$S$2:$S$1000))+SUMPRODUCT(('Fixed assets'!$Q$2:$Q$1000=Costs!AP$617)*('Fixed assets'!$P$2:$P$1000=Costs!$A696)*('Fixed assets'!$U$2:$U$1000=Costs!$A696)*('Fixed assets'!$R$2:$R$1000))","v":0},{"$f":"SUMPRODUCT(('Fixed assets'!$R$2:$R$1000)*('Fixed assets'!$P$2:$P$1000<$A696)*('Fixed assets'!$Q$2:$Q$1000=Costs!AQ$617))-SUMPRODUCT(('Fixed assets'!$S$2:$S$1000)*('Fixed assets'!$P$2:$P$1000<Costs!$A696)*('Fixed assets'!$Q$2:$Q$1000=Costs!AQ$617))-SUMPRODUCT(('Fixed assets'!$Q$2:$Q$1000=Costs!AQ$617)*('Fixed assets'!$U$2:$U$1000=Costs!$A696)*('Fixed assets'!$S$2:$S$1000))+SUMPRODUCT(('Fixed assets'!$Q$2:$Q$1000=Costs!AQ$617)*('Fixed assets'!$P$2:$P$1000=Costs!$A696)*('Fixed assets'!$U$2:$U$1000=Costs!$A696)*('Fixed assets'!$R$2:$R$1000))","v":0}]
[2094,0,{"$f":"SUMPRODUCT(('Fixed assets'!$R$2:$R$1000)*('Fixed assets'!$P$2:$P$1000<$A697)*('Fixed assets'!$Q$2:$Q$1000=Costs!C$617))-SUMPRODUCT(('Fixed assets'!$S$2:$S$1000)*('Fixed assets'!$P$2:$P$1000<Costs!$A697)*('Fixed assets'!$Q$2:$Q$1000=Costs!C$617))-SUMPRODUCT(('Fixed assets'!$Q$2:$Q$1000=Costs!C$617)*('Fixed assets'!$U$2:$U$1000=Costs!$A697)*('Fixed assets'!$S$2:$S$1000))+SUMPRODUCT(('Fixed assets'!$Q$2:$Q$1000=Costs!C$617)*('Fixed assets'!$P$2:$P$1000=Costs!$A697)*('Fixed assets'!$U$2:$U$1000=Costs!$A697)*('Fixed assets'!$R$2:$R$1000))","v":0},{"$f":"SUMPRODUCT(('Fixed assets'!$R$2:$R$1000)*('Fixed assets'!$P$2:$P$1000<$A697)*('Fixed assets'!$Q$2:$Q$1000=Costs!D$617))-SUMPRODUCT(('Fixed assets'!$S$2:$S$1000)*('Fixed assets'!$P$2:$P$1000<Costs!$A697)*('Fixed assets'!$Q$2:$Q$1000=Costs!D$617))-SUMPRODUCT(('Fixed assets'!$Q$2:$Q$1000=Costs!D$617)*('Fixed assets'!$U$2:$U$1000=Costs!$A697)*('Fixed assets'!$S$2:$S$1000))+SUMPRODUCT(('Fixed assets'!$Q$2:$Q$1000=Costs!D$617)*('Fixed assets'!$P$2:$P$1000=Costs!$A697)*('Fixed assets'!$U$2:$U$1000=Costs!$A697)*('Fixed assets'!$R$2:$R$1000))","v":0},{"$f":"SUMPRODUCT(('Fixed assets'!$R$2:$R$1000)*('Fixed assets'!$P$2:$P$1000<$A697)*('Fixed assets'!$Q$2:$Q$1000=Costs!E$617))-SUMPRODUCT(('Fixed assets'!$S$2:$S$1000)*('Fixed assets'!$P$2:$P$1000<Costs!$A697)*('Fixed assets'!$Q$2:$Q$1000=Costs!E$617))-SUMPRODUCT(('Fixed assets'!$Q$2:$Q$1000=Costs!E$617)*('Fixed assets'!$U$2:$U$1000=Costs!$A697)*('Fixed assets'!$S$2:$S$1000))+SUMPRODUCT(('Fixed assets'!$Q$2:$Q$1000=Costs!E$617)*('Fixed assets'!$P$2:$P$1000=Costs!$A697)*('Fixed assets'!$U$2:$U$1000=Costs!$A697)*('Fixed assets'!$R$2:$R$1000))","v":0},{"$f":"SUMPRODUCT(('Fixed assets'!$R$2:$R$1000)*('Fixed assets'!$P$2:$P$1000<$A697)*('Fixed assets'!$Q$2:$Q$1000=Costs!F$617))-SUMPRODUCT(('Fixed assets'!$S$2:$S$1000)*('Fixed assets'!$P$2:$P$1000<Costs!$A697)*('Fixed assets'!$Q$2:$Q$1000=Costs!F$617))-SUMPRODUCT(('Fixed assets'!$Q$2:$Q$1000=Costs!F$617)*('Fixed assets'!$U$2:$U$1000=Costs!$A697)*('Fixed assets'!$S$2:$S$1000))+SUMPRODUCT(('Fixed assets'!$Q$2:$Q$1000=Costs!F$617)*('Fixed assets'!$P$2:$P$1000=Costs!$A697)*('Fixed assets'!$U$2:$U$1000=Costs!$A697)*('Fixed assets'!$R$2:$R$1000))","v":0},{"$f":"SUMPRODUCT(('Fixed assets'!$R$2:$R$1000)*('Fixed assets'!$P$2:$P$1000<$A697)*('Fixed assets'!$Q$2:$Q$1000=Costs!G$617))-SUMPRODUCT(('Fixed assets'!$S$2:$S$1000)*('Fixed assets'!$P$2:$P$1000<Costs!$A697)*('Fixed assets'!$Q$2:$Q$1000=Costs!G$617))-SUMPRODUCT(('Fixed assets'!$Q$2:$Q$1000=Costs!G$617)*('Fixed assets'!$U$2:$U$1000=Costs!$A697)*('Fixed assets'!$S$2:$S$1000))+SUMPRODUCT(('Fixed assets'!$Q$2:$Q$1000=Costs!G$617)*('Fixed assets'!$P$2:$P$1000=Costs!$A697)*('Fixed assets'!$U$2:$U$1000=Costs!$A697)*('Fixed assets'!$R$2:$R$1000))","v":0},{"$f":"SUMPRODUCT(('Fixed assets'!$R$2:$R$1000)*('Fixed assets'!$P$2:$P$1000<$A697)*('Fixed assets'!$Q$2:$Q$1000=Costs!H$617))-SUMPRODUCT(('Fixed assets'!$S$2:$S$1000)*('Fixed assets'!$P$2:$P$1000<Costs!$A697)*('Fixed assets'!$Q$2:$Q$1000=Costs!H$617))-SUMPRODUCT(('Fixed assets'!$Q$2:$Q$1000=Costs!H$617)*('Fixed assets'!$U$2:$U$1000=Costs!$A697)*('Fixed assets'!$S$2:$S$1000))+SUMPRODUCT(('Fixed assets'!$Q$2:$Q$1000=Costs!H$617)*('Fixed assets'!$P$2:$P$1000=Costs!$A697)*('Fixed assets'!$U$2:$U$1000=Costs!$A697)*('Fixed assets'!$R$2:$R$1000))","v":0},{"$f":"SUMPRODUCT(('Fixed assets'!$R$2:$R$1000)*('Fixed assets'!$P$2:$P$1000<$A697)*('Fixed assets'!$Q$2:$Q$1000=Costs!I$617))-SUMPRODUCT(('Fixed assets'!$S$2:$S$1000)*('Fixed assets'!$P$2:$P$1000<Costs!$A697)*('Fixed assets'!$Q$2:$Q$1000=Costs!I$617))-SUMPRODUCT(('Fixed assets'!$Q$2:$Q$1000=Costs!I$617)*('Fixed assets'!$U$2:$U$1000=Costs!$A697)*('Fixed assets'!$S$2:$S$1000))+SUMPRODUCT(('Fixed assets'!$Q$2:$Q$1000=Costs!I$617)*('Fixed assets'!$P$2:$P$1000=Costs!$A697)*('Fixed assets'!$U$2:$U$1000=Costs!$A697)*('Fixed assets'!$R$2:$R$1000))","v":0},{"$f":"SUMPRODUCT(('Fixed assets'!$R$2:$R$1000)*('Fixed assets'!$P$2:$P$1000<$A697)*('Fixed assets'!$Q$2:$Q$1000=Costs!J$617))-SUMPRODUCT(('Fixed assets'!$S$2:$S$1000)*('Fixed assets'!$P$2:$P$1000<Costs!$A697)*('Fixed assets'!$Q$2:$Q$1000=Costs!J$617))-SUMPRODUCT(('Fixed assets'!$Q$2:$Q$1000=Costs!J$617)*('Fixed assets'!$U$2:$U$1000=Costs!$A697)*('Fixed assets'!$S$2:$S$1000))+SUMPRODUCT(('Fixed assets'!$Q$2:$Q$1000=Costs!J$617)*('Fixed assets'!$P$2:$P$1000=Costs!$A697)*('Fixed assets'!$U$2:$U$1000=Costs!$A697)*('Fixed assets'!$R$2:$R$1000))","v":0},{"$f":"SUMPRODUCT(('Fixed assets'!$R$2:$R$1000)*('Fixed assets'!$P$2:$P$1000<$A697)*('Fixed assets'!$Q$2:$Q$1000=Costs!K$617))-SUMPRODUCT(('Fixed assets'!$S$2:$S$1000)*('Fixed assets'!$P$2:$P$1000<Costs!$A697)*('Fixed assets'!$Q$2:$Q$1000=Costs!K$617))-SUMPRODUCT(('Fixed assets'!$Q$2:$Q$1000=Costs!K$617)*('Fixed assets'!$U$2:$U$1000=Costs!$A697)*('Fixed assets'!$S$2:$S$1000))+SUMPRODUCT(('Fixed assets'!$Q$2:$Q$1000=Costs!K$617)*('Fixed assets'!$P$2:$P$1000=Costs!$A697)*('Fixed assets'!$U$2:$U$1000=Costs!$A697)*('Fixed assets'!$R$2:$R$1000))","v":0},{"$f":"SUMPRODUCT(('Fixed assets'!$R$2:$R$1000)*('Fixed assets'!$P$2:$P$1000<$A697)*('Fixed assets'!$Q$2:$Q$1000=Costs!L$617))-SUMPRODUCT(('Fixed assets'!$S$2:$S$1000)*('Fixed assets'!$P$2:$P$1000<Costs!$A697)*('Fixed assets'!$Q$2:$Q$1000=Costs!L$617))-SUMPRODUCT(('Fixed assets'!$Q$2:$Q$1000=Costs!L$617)*('Fixed assets'!$U$2:$U$1000=Costs!$A697)*('Fixed assets'!$S$2:$S$1000))+SUMPRODUCT(('Fixed assets'!$Q$2:$Q$1000=Costs!L$617)*('Fixed assets'!$P$2:$P$1000=Costs!$A697)*('Fixed assets'!$U$2:$U$1000=Costs!$A697)*('Fixed assets'!$R$2:$R$1000))","v":0},{"$f":"SUMPRODUCT(('Fixed assets'!$R$2:$R$1000)*('Fixed assets'!$P$2:$P$1000<$A697)*('Fixed assets'!$Q$2:$Q$1000=Costs!M$617))-SUMPRODUCT(('Fixed assets'!$S$2:$S$1000)*('Fixed assets'!$P$2:$P$1000<Costs!$A697)*('Fixed assets'!$Q$2:$Q$1000=Costs!M$617))-SUMPRODUCT(('Fixed assets'!$Q$2:$Q$1000=Costs!M$617)*('Fixed assets'!$U$2:$U$1000=Costs!$A697)*('Fixed assets'!$S$2:$S$1000))+SUMPRODUCT(('Fixed assets'!$Q$2:$Q$1000=Costs!M$617)*('Fixed assets'!$P$2:$P$1000=Costs!$A697)*('Fixed assets'!$U$2:$U$1000=Costs!$A697)*('Fixed assets'!$R$2:$R$1000))","v":0},{"$f":"SUMPRODUCT(('Fixed assets'!$R$2:$R$1000)*('Fixed assets'!$P$2:$P$1000<$A697)*('Fixed assets'!$Q$2:$Q$1000=Costs!N$617))-SUMPRODUCT(('Fixed assets'!$S$2:$S$1000)*('Fixed assets'!$P$2:$P$1000<Costs!$A697)*('Fixed assets'!$Q$2:$Q$1000=Costs!N$617))-SUMPRODUCT(('Fixed assets'!$Q$2:$Q$1000=Costs!N$617)*('Fixed assets'!$U$2:$U$1000=Costs!$A697)*('Fixed assets'!$S$2:$S$1000))+SUMPRODUCT(('Fixed assets'!$Q$2:$Q$1000=Costs!N$617)*('Fixed assets'!$P$2:$P$1000=Costs!$A697)*('Fixed assets'!$U$2:$U$1000=Costs!$A697)*('Fixed assets'!$R$2:$R$1000))","v":0},{"$f":"SUMPRODUCT(('Fixed assets'!$R$2:$R$1000)*('Fixed assets'!$P$2:$P$1000<$A697)*('Fixed assets'!$Q$2:$Q$1000=Costs!O$617))-SUMPRODUCT(('Fixed assets'!$S$2:$S$1000)*('Fixed assets'!$P$2:$P$1000<Costs!$A697)*('Fixed assets'!$Q$2:$Q$1000=Costs!O$617))-SUMPRODUCT(('Fixed assets'!$Q$2:$Q$1000=Costs!O$617)*('Fixed assets'!$U$2:$U$1000=Costs!$A697)*('Fixed assets'!$S$2:$S$1000))+SUMPRODUCT(('Fixed assets'!$Q$2:$Q$1000=Costs!O$617)*('Fixed assets'!$P$2:$P$1000=Costs!$A697)*('Fixed assets'!$U$2:$U$1000=Costs!$A697)*('Fixed assets'!$R$2:$R$1000))","v":0},{"$f":"SUMPRODUCT(('Fixed assets'!$R$2:$R$1000)*('Fixed assets'!$P$2:$P$1000<$A697)*('Fixed assets'!$Q$2:$Q$1000=Costs!P$617))-SUMPRODUCT(('Fixed assets'!$S$2:$S$1000)*('Fixed assets'!$P$2:$P$1000<Costs!$A697)*('Fixed assets'!$Q$2:$Q$1000=Costs!P$617))-SUMPRODUCT(('Fixed assets'!$Q$2:$Q$1000=Costs!P$617)*('Fixed assets'!$U$2:$U$1000=Costs!$A697)*('Fixed assets'!$S$2:$S$1000))+SUMPRODUCT(('Fixed assets'!$Q$2:$Q$1000=Costs!P$617)*('Fixed assets'!$P$2:$P$1000=Costs!$A697)*('Fixed assets'!$U$2:$U$1000=Costs!$A697)*('Fixed assets'!$R$2:$R$1000))","v":0},{"$f":"SUMPRODUCT(('Fixed assets'!$R$2:$R$1000)*('Fixed assets'!$P$2:$P$1000<$A697)*('Fixed assets'!$Q$2:$Q$1000=Costs!Q$617))-SUMPRODUCT(('Fixed assets'!$S$2:$S$1000)*('Fixed assets'!$P$2:$P$1000<Costs!$A697)*('Fixed assets'!$Q$2:$Q$1000=Costs!Q$617))-SUMPRODUCT(('Fixed assets'!$Q$2:$Q$1000=Costs!Q$617)*('Fixed assets'!$U$2:$U$1000=Costs!$A697)*('Fixed assets'!$S$2:$S$1000))+SUMPRODUCT(('Fixed assets'!$Q$2:$Q$1000=Costs!Q$617)*('Fixed assets'!$P$2:$P$1000=Costs!$A697)*('Fixed assets'!$U$2:$U$1000=Costs!$A697)*('Fixed assets'!$R$2:$R$1000))","v":0},{"$f":"SUMPRODUCT(('Fixed assets'!$R$2:$R$1000)*('Fixed assets'!$P$2:$P$1000<$A697)*('Fixed assets'!$Q$2:$Q$1000=Costs!R$617))-SUMPRODUCT(('Fixed assets'!$S$2:$S$1000)*('Fixed assets'!$P$2:$P$1000<Costs!$A697)*('Fixed assets'!$Q$2:$Q$1000=Costs!R$617))-SUMPRODUCT(('Fixed assets'!$Q$2:$Q$1000=Costs!R$617)*('Fixed assets'!$U$2:$U$1000=Costs!$A697)*('Fixed assets'!$S$2:$S$1000))+SUMPRODUCT(('Fixed assets'!$Q$2:$Q$1000=Costs!R$617)*('Fixed assets'!$P$2:$P$1000=Costs!$A697)*('Fixed assets'!$U$2:$U$1000=Costs!$A697)*('Fixed assets'!$R$2:$R$1000))","v":0},{"$f":"SUMPRODUCT(('Fixed assets'!$R$2:$R$1000)*('Fixed assets'!$P$2:$P$1000<$A697)*('Fixed assets'!$Q$2:$Q$1000=Costs!S$617))-SUMPRODUCT(('Fixed assets'!$S$2:$S$1000)*('Fixed assets'!$P$2:$P$1000<Costs!$A697)*('Fixed assets'!$Q$2:$Q$1000=Costs!S$617))-SUMPRODUCT(('Fixed assets'!$Q$2:$Q$1000=Costs!S$617)*('Fixed assets'!$U$2:$U$1000=Costs!$A697)*('Fixed assets'!$S$2:$S$1000))+SUMPRODUCT(('Fixed assets'!$Q$2:$Q$1000=Costs!S$617)*('Fixed assets'!$P$2:$P$1000=Costs!$A697)*('Fixed assets'!$U$2:$U$1000=Costs!$A697)*('Fixed assets'!$R$2:$R$1000))","v":0},{"$f":"SUMPRODUCT(('Fixed assets'!$R$2:$R$1000)*('Fixed assets'!$P$2:$P$1000<$A697)*('Fixed assets'!$Q$2:$Q$1000=Costs!T$617))-SUMPRODUCT(('Fixed assets'!$S$2:$S$1000)*('Fixed assets'!$P$2:$P$1000<Costs!$A697)*('Fixed assets'!$Q$2:$Q$1000=Costs!T$617))-SUMPRODUCT(('Fixed assets'!$Q$2:$Q$1000=Costs!T$617)*('Fixed assets'!$U$2:$U$1000=Costs!$A697)*('Fixed assets'!$S$2:$S$1000))+SUMPRODUCT(('Fixed assets'!$Q$2:$Q$1000=Costs!T$617)*('Fixed assets'!$P$2:$P$1000=Costs!$A697)*('Fixed assets'!$U$2:$U$1000=Costs!$A697)*('Fixed assets'!$R$2:$R$1000))","v":0},{"$f":"SUMPRODUCT(('Fixed assets'!$R$2:$R$1000)*('Fixed assets'!$P$2:$P$1000<$A697)*('Fixed assets'!$Q$2:$Q$1000=Costs!U$617))-SUMPRODUCT(('Fixed assets'!$S$2:$S$1000)*('Fixed assets'!$P$2:$P$1000<Costs!$A697)*('Fixed assets'!$Q$2:$Q$1000=Costs!U$617))-SUMPRODUCT(('Fixed assets'!$Q$2:$Q$1000=Costs!U$617)*('Fixed assets'!$U$2:$U$1000=Costs!$A697)*('Fixed assets'!$S$2:$S$1000))+SUMPRODUCT(('Fixed assets'!$Q$2:$Q$1000=Costs!U$617)*('Fixed assets'!$P$2:$P$1000=Costs!$A697)*('Fixed assets'!$U$2:$U$1000=Costs!$A697)*('Fixed assets'!$R$2:$R$1000))","v":0},{"$f":"SUMPRODUCT(('Fixed assets'!$R$2:$R$1000)*('Fixed assets'!$P$2:$P$1000<$A697)*('Fixed assets'!$Q$2:$Q$1000=Costs!V$617))-SUMPRODUCT(('Fixed assets'!$S$2:$S$1000)*('Fixed assets'!$P$2:$P$1000<Costs!$A697)*('Fixed assets'!$Q$2:$Q$1000=Costs!V$617))-SUMPRODUCT(('Fixed assets'!$Q$2:$Q$1000=Costs!V$617)*('Fixed assets'!$U$2:$U$1000=Costs!$A697)*('Fixed assets'!$S$2:$S$1000))+SUMPRODUCT(('Fixed assets'!$Q$2:$Q$1000=Costs!V$617)*('Fixed assets'!$P$2:$P$1000=Costs!$A697)*('Fixed assets'!$U$2:$U$1000=Costs!$A697)*('Fixed assets'!$R$2:$R$1000))","v":0},{"$f":"SUMPRODUCT(('Fixed assets'!$R$2:$R$1000)*('Fixed assets'!$P$2:$P$1000<$A697)*('Fixed assets'!$Q$2:$Q$1000=Costs!W$617))-SUMPRODUCT(('Fixed assets'!$S$2:$S$1000)*('Fixed assets'!$P$2:$P$1000<Costs!$A697)*('Fixed assets'!$Q$2:$Q$1000=Costs!W$617))-SUMPRODUCT(('Fixed assets'!$Q$2:$Q$1000=Costs!W$617)*('Fixed assets'!$U$2:$U$1000=Costs!$A697)*('Fixed assets'!$S$2:$S$1000))+SUMPRODUCT(('Fixed assets'!$Q$2:$Q$1000=Costs!W$617)*('Fixed assets'!$P$2:$P$1000=Costs!$A697)*('Fixed assets'!$U$2:$U$1000=Costs!$A697)*('Fixed assets'!$R$2:$R$1000))","v":0},{"$f":"SUMPRODUCT(('Fixed assets'!$R$2:$R$1000)*('Fixed assets'!$P$2:$P$1000<$A697)*('Fixed assets'!$Q$2:$Q$1000=Costs!X$617))-SUMPRODUCT(('Fixed assets'!$S$2:$S$1000)*('Fixed assets'!$P$2:$P$1000<Costs!$A697)*('Fixed assets'!$Q$2:$Q$1000=Costs!X$617))-SUMPRODUCT(('Fixed assets'!$Q$2:$Q$1000=Costs!X$617)*('Fixed assets'!$U$2:$U$1000=Costs!$A697)*('Fixed assets'!$S$2:$S$1000))+SUMPRODUCT(('Fixed assets'!$Q$2:$Q$1000=Costs!X$617)*('Fixed assets'!$P$2:$P$1000=Costs!$A697)*('Fixed assets'!$U$2:$U$1000=Costs!$A697)*('Fixed assets'!$R$2:$R$1000))","v":0},{"$f":"SUMPRODUCT(('Fixed assets'!$R$2:$R$1000)*('Fixed assets'!$P$2:$P$1000<$A697)*('Fixed assets'!$Q$2:$Q$1000=Costs!Y$617))-SUMPRODUCT(('Fixed assets'!$S$2:$S$1000)*('Fixed assets'!$P$2:$P$1000<Costs!$A697)*('Fixed assets'!$Q$2:$Q$1000=Costs!Y$617))-SUMPRODUCT(('Fixed assets'!$Q$2:$Q$1000=Costs!Y$617)*('Fixed assets'!$U$2:$U$1000=Costs!$A697)*('Fixed assets'!$S$2:$S$1000))+SUMPRODUCT(('Fixed assets'!$Q$2:$Q$1000=Costs!Y$617)*('Fixed assets'!$P$2:$P$1000=Costs!$A697)*('Fixed assets'!$U$2:$U$1000=Costs!$A697)*('Fixed assets'!$R$2:$R$1000))","v":0},{"$f":"SUMPRODUCT(('Fixed assets'!$R$2:$R$1000)*('Fixed assets'!$P$2:$P$1000<$A697)*('Fixed assets'!$Q$2:$Q$1000=Costs!Z$617))-SUMPRODUCT(('Fixed assets'!$S$2:$S$1000)*('Fixed assets'!$P$2:$P$1000<Costs!$A697)*('Fixed assets'!$Q$2:$Q$1000=Costs!Z$617))-SUMPRODUCT(('Fixed assets'!$Q$2:$Q$1000=Costs!Z$617)*('Fixed assets'!$U$2:$U$1000=Costs!$A697)*('Fixed assets'!$S$2:$S$1000))+SUMPRODUCT(('Fixed assets'!$Q$2:$Q$1000=Costs!Z$617)*('Fixed assets'!$P$2:$P$1000=Costs!$A697)*('Fixed assets'!$U$2:$U$1000=Costs!$A697)*('Fixed assets'!$R$2:$R$1000))","v":0},{"$f":"SUMPRODUCT(('Fixed assets'!$R$2:$R$1000)*('Fixed assets'!$P$2:$P$1000<$A697)*('Fixed assets'!$Q$2:$Q$1000=Costs!AA$617))-SUMPRODUCT(('Fixed assets'!$S$2:$S$1000)*('Fixed assets'!$P$2:$P$1000<Costs!$A697)*('Fixed assets'!$Q$2:$Q$1000=Costs!AA$617))-SUMPRODUCT(('Fixed assets'!$Q$2:$Q$1000=Costs!AA$617)*('Fixed assets'!$U$2:$U$1000=Costs!$A697)*('Fixed assets'!$S$2:$S$1000))+SUMPRODUCT(('Fixed assets'!$Q$2:$Q$1000=Costs!AA$617)*('Fixed assets'!$P$2:$P$1000=Costs!$A697)*('Fixed assets'!$U$2:$U$1000=Costs!$A697)*('Fixed assets'!$R$2:$R$1000))","v":0},{"$f":"SUMPRODUCT(('Fixed assets'!$R$2:$R$1000)*('Fixed assets'!$P$2:$P$1000<$A697)*('Fixed assets'!$Q$2:$Q$1000=Costs!AB$617))-SUMPRODUCT(('Fixed assets'!$S$2:$S$1000)*('Fixed assets'!$P$2:$P$1000<Costs!$A697)*('Fixed assets'!$Q$2:$Q$1000=Costs!AB$617))-SUMPRODUCT(('Fixed assets'!$Q$2:$Q$1000=Costs!AB$617)*('Fixed assets'!$U$2:$U$1000=Costs!$A697)*('Fixed assets'!$S$2:$S$1000))+SUMPRODUCT(('Fixed assets'!$Q$2:$Q$1000=Costs!AB$617)*('Fixed assets'!$P$2:$P$1000=Costs!$A697)*('Fixed assets'!$U$2:$U$1000=Costs!$A697)*('Fixed assets'!$R$2:$R$1000))","v":0},{"$f":"SUMPRODUCT(('Fixed assets'!$R$2:$R$1000)*('Fixed assets'!$P$2:$P$1000<$A697)*('Fixed assets'!$Q$2:$Q$1000=Costs!AC$617))-SUMPRODUCT(('Fixed assets'!$S$2:$S$1000)*('Fixed assets'!$P$2:$P$1000<Costs!$A697)*('Fixed assets'!$Q$2:$Q$1000=Costs!AC$617))-SUMPRODUCT(('Fixed assets'!$Q$2:$Q$1000=Costs!AC$617)*('Fixed assets'!$U$2:$U$1000=Costs!$A697)*('Fixed assets'!$S$2:$S$1000))+SUMPRODUCT(('Fixed assets'!$Q$2:$Q$1000=Costs!AC$617)*('Fixed assets'!$P$2:$P$1000=Costs!$A697)*('Fixed assets'!$U$2:$U$1000=Costs!$A697)*('Fixed assets'!$R$2:$R$1000))","v":0},{"$f":"SUMPRODUCT(('Fixed assets'!$R$2:$R$1000)*('Fixed assets'!$P$2:$P$1000<$A697)*('Fixed assets'!$Q$2:$Q$1000=Costs!AD$617))-SUMPRODUCT(('Fixed assets'!$S$2:$S$1000)*('Fixed assets'!$P$2:$P$1000<Costs!$A697)*('Fixed assets'!$Q$2:$Q$1000=Costs!AD$617))-SUMPRODUCT(('Fixed assets'!$Q$2:$Q$1000=Costs!AD$617)*('Fixed assets'!$U$2:$U$1000=Costs!$A697)*('Fixed assets'!$S$2:$S$1000))+SUMPRODUCT(('Fixed assets'!$Q$2:$Q$1000=Costs!AD$617)*('Fixed assets'!$P$2:$P$1000=Costs!$A697)*('Fixed assets'!$U$2:$U$1000=Costs!$A697)*('Fixed assets'!$R$2:$R$1000))","v":0},{"$f":"SUMPRODUCT(('Fixed assets'!$R$2:$R$1000)*('Fixed assets'!$P$2:$P$1000<$A697)*('Fixed assets'!$Q$2:$Q$1000=Costs!AE$617))-SUMPRODUCT(('Fixed assets'!$S$2:$S$1000)*('Fixed assets'!$P$2:$P$1000<Costs!$A697)*('Fixed assets'!$Q$2:$Q$1000=Costs!AE$617))-SUMPRODUCT(('Fixed assets'!$Q$2:$Q$1000=Costs!AE$617)*('Fixed assets'!$U$2:$U$1000=Costs!$A697)*('Fixed assets'!$S$2:$S$1000))+SUMPRODUCT(('Fixed assets'!$Q$2:$Q$1000=Costs!AE$617)*('Fixed assets'!$P$2:$P$1000=Costs!$A697)*('Fixed assets'!$U$2:$U$1000=Costs!$A697)*('Fixed assets'!$R$2:$R$1000))","v":0},{"$f":"SUMPRODUCT(('Fixed assets'!$R$2:$R$1000)*('Fixed assets'!$P$2:$P$1000<$A697)*('Fixed assets'!$Q$2:$Q$1000=Costs!AF$617))-SUMPRODUCT(('Fixed assets'!$S$2:$S$1000)*('Fixed assets'!$P$2:$P$1000<Costs!$A697)*('Fixed assets'!$Q$2:$Q$1000=Costs!AF$617))-SUMPRODUCT(('Fixed assets'!$Q$2:$Q$1000=Costs!AF$617)*('Fixed assets'!$U$2:$U$1000=Costs!$A697)*('Fixed assets'!$S$2:$S$1000))+SUMPRODUCT(('Fixed assets'!$Q$2:$Q$1000=Costs!AF$617)*('Fixed assets'!$P$2:$P$1000=Costs!$A697)*('Fixed assets'!$U$2:$U$1000=Costs!$A697)*('Fixed assets'!$R$2:$R$1000))","v":0},{"$f":"SUMPRODUCT(('Fixed assets'!$R$2:$R$1000)*('Fixed assets'!$P$2:$P$1000<$A697)*('Fixed assets'!$Q$2:$Q$1000=Costs!AG$617))-SUMPRODUCT(('Fixed assets'!$S$2:$S$1000)*('Fixed assets'!$P$2:$P$1000<Costs!$A697)*('Fixed assets'!$Q$2:$Q$1000=Costs!AG$617))-SUMPRODUCT(('Fixed assets'!$Q$2:$Q$1000=Costs!AG$617)*('Fixed assets'!$U$2:$U$1000=Costs!$A697)*('Fixed assets'!$S$2:$S$1000))+SUMPRODUCT(('Fixed assets'!$Q$2:$Q$1000=Costs!AG$617)*('Fixed assets'!$P$2:$P$1000=Costs!$A697)*('Fixed assets'!$U$2:$U$1000=Costs!$A697)*('Fixed assets'!$R$2:$R$1000))","v":0},{"$f":"SUMPRODUCT(('Fixed assets'!$R$2:$R$1000)*('Fixed assets'!$P$2:$P$1000<$A697)*('Fixed assets'!$Q$2:$Q$1000=Costs!AH$617))-SUMPRODUCT(('Fixed assets'!$S$2:$S$1000)*('Fixed assets'!$P$2:$P$1000<Costs!$A697)*('Fixed assets'!$Q$2:$Q$1000=Costs!AH$617))-SUMPRODUCT(('Fixed assets'!$Q$2:$Q$1000=Costs!AH$617)*('Fixed assets'!$U$2:$U$1000=Costs!$A697)*('Fixed assets'!$S$2:$S$1000))+SUMPRODUCT(('Fixed assets'!$Q$2:$Q$1000=Costs!AH$617)*('Fixed assets'!$P$2:$P$1000=Costs!$A697)*('Fixed assets'!$U$2:$U$1000=Costs!$A697)*('Fixed assets'!$R$2:$R$1000))","v":0},{"$f":"SUMPRODUCT(('Fixed assets'!$R$2:$R$1000)*('Fixed assets'!$P$2:$P$1000<$A697)*('Fixed assets'!$Q$2:$Q$1000=Costs!AI$617))-SUMPRODUCT(('Fixed assets'!$S$2:$S$1000)*('Fixed assets'!$P$2:$P$1000<Costs!$A697)*('Fixed assets'!$Q$2:$Q$1000=Costs!AI$617))-SUMPRODUCT(('Fixed assets'!$Q$2:$Q$1000=Costs!AI$617)*('Fixed assets'!$U$2:$U$1000=Costs!$A697)*('Fixed assets'!$S$2:$S$1000))+SUMPRODUCT(('Fixed assets'!$Q$2:$Q$1000=Costs!AI$617)*('Fixed assets'!$P$2:$P$1000=Costs!$A697)*('Fixed assets'!$U$2:$U$1000=Costs!$A697)*('Fixed assets'!$R$2:$R$1000))","v":0},{"$f":"SUMPRODUCT(('Fixed assets'!$R$2:$R$1000)*('Fixed assets'!$P$2:$P$1000<$A697)*('Fixed assets'!$Q$2:$Q$1000=Costs!AJ$617))-SUMPRODUCT(('Fixed assets'!$S$2:$S$1000)*('Fixed assets'!$P$2:$P$1000<Costs!$A697)*('Fixed assets'!$Q$2:$Q$1000=Costs!AJ$617))-SUMPRODUCT(('Fixed assets'!$Q$2:$Q$1000=Costs!AJ$617)*('Fixed assets'!$U$2:$U$1000=Costs!$A697)*('Fixed assets'!$S$2:$S$1000))+SUMPRODUCT(('Fixed assets'!$Q$2:$Q$1000=Costs!AJ$617)*('Fixed assets'!$P$2:$P$1000=Costs!$A697)*('Fixed assets'!$U$2:$U$1000=Costs!$A697)*('Fixed assets'!$R$2:$R$1000))","v":0},{"$f":"SUMPRODUCT(('Fixed assets'!$R$2:$R$1000)*('Fixed assets'!$P$2:$P$1000<$A697)*('Fixed assets'!$Q$2:$Q$1000=Costs!AK$617))-SUMPRODUCT(('Fixed assets'!$S$2:$S$1000)*('Fixed assets'!$P$2:$P$1000<Costs!$A697)*('Fixed assets'!$Q$2:$Q$1000=Costs!AK$617))-SUMPRODUCT(('Fixed assets'!$Q$2:$Q$1000=Costs!AK$617)*('Fixed assets'!$U$2:$U$1000=Costs!$A697)*('Fixed assets'!$S$2:$S$1000))+SUMPRODUCT(('Fixed assets'!$Q$2:$Q$1000=Costs!AK$617)*('Fixed assets'!$P$2:$P$1000=Costs!$A697)*('Fixed assets'!$U$2:$U$1000=Costs!$A697)*('Fixed assets'!$R$2:$R$1000))","v":0},{"$f":"SUMPRODUCT(('Fixed assets'!$R$2:$R$1000)*('Fixed assets'!$P$2:$P$1000<$A697)*('Fixed assets'!$Q$2:$Q$1000=Costs!AL$617))-SUMPRODUCT(('Fixed assets'!$S$2:$S$1000)*('Fixed assets'!$P$2:$P$1000<Costs!$A697)*('Fixed assets'!$Q$2:$Q$1000=Costs!AL$617))-SUMPRODUCT(('Fixed assets'!$Q$2:$Q$1000=Costs!AL$617)*('Fixed assets'!$U$2:$U$1000=Costs!$A697)*('Fixed assets'!$S$2:$S$1000))+SUMPRODUCT(('Fixed assets'!$Q$2:$Q$1000=Costs!AL$617)*('Fixed assets'!$P$2:$P$1000=Costs!$A697)*('Fixed assets'!$U$2:$U$1000=Costs!$A697)*('Fixed assets'!$R$2:$R$1000))","v":0},{"$f":"SUMPRODUCT(('Fixed assets'!$R$2:$R$1000)*('Fixed assets'!$P$2:$P$1000<$A697)*('Fixed assets'!$Q$2:$Q$1000=Costs!AM$617))-SUMPRODUCT(('Fixed assets'!$S$2:$S$1000)*('Fixed assets'!$P$2:$P$1000<Costs!$A697)*('Fixed assets'!$Q$2:$Q$1000=Costs!AM$617))-SUMPRODUCT(('Fixed assets'!$Q$2:$Q$1000=Costs!AM$617)*('Fixed assets'!$U$2:$U$1000=Costs!$A697)*('Fixed assets'!$S$2:$S$1000))+SUMPRODUCT(('Fixed assets'!$Q$2:$Q$1000=Costs!AM$617)*('Fixed assets'!$P$2:$P$1000=Costs!$A697)*('Fixed assets'!$U$2:$U$1000=Costs!$A697)*('Fixed assets'!$R$2:$R$1000))","v":0},{"$f":"SUMPRODUCT(('Fixed assets'!$R$2:$R$1000)*('Fixed assets'!$P$2:$P$1000<$A697)*('Fixed assets'!$Q$2:$Q$1000=Costs!AN$617))-SUMPRODUCT(('Fixed assets'!$S$2:$S$1000)*('Fixed assets'!$P$2:$P$1000<Costs!$A697)*('Fixed assets'!$Q$2:$Q$1000=Costs!AN$617))-SUMPRODUCT(('Fixed assets'!$Q$2:$Q$1000=Costs!AN$617)*('Fixed assets'!$U$2:$U$1000=Costs!$A697)*('Fixed assets'!$S$2:$S$1000))+SUMPRODUCT(('Fixed assets'!$Q$2:$Q$1000=Costs!AN$617)*('Fixed assets'!$P$2:$P$1000=Costs!$A697)*('Fixed assets'!$U$2:$U$1000=Costs!$A697)*('Fixed assets'!$R$2:$R$1000))","v":0},{"$f":"SUMPRODUCT(('Fixed assets'!$R$2:$R$1000)*('Fixed assets'!$P$2:$P$1000<$A697)*('Fixed assets'!$Q$2:$Q$1000=Costs!AO$617))-SUMPRODUCT(('Fixed assets'!$S$2:$S$1000)*('Fixed assets'!$P$2:$P$1000<Costs!$A697)*('Fixed assets'!$Q$2:$Q$1000=Costs!AO$617))-SUMPRODUCT(('Fixed assets'!$Q$2:$Q$1000=Costs!AO$617)*('Fixed assets'!$U$2:$U$1000=Costs!$A697)*('Fixed assets'!$S$2:$S$1000))+SUMPRODUCT(('Fixed assets'!$Q$2:$Q$1000=Costs!AO$617)*('Fixed assets'!$P$2:$P$1000=Costs!$A697)*('Fixed assets'!$U$2:$U$1000=Costs!$A697)*('Fixed assets'!$R$2:$R$1000))","v":0},{"$f":"SUMPRODUCT(('Fixed assets'!$R$2:$R$1000)*('Fixed assets'!$P$2:$P$1000<$A697)*('Fixed assets'!$Q$2:$Q$1000=Costs!AP$617))-SUMPRODUCT(('Fixed assets'!$S$2:$S$1000)*('Fixed assets'!$P$2:$P$1000<Costs!$A697)*('Fixed assets'!$Q$2:$Q$1000=Costs!AP$617))-SUMPRODUCT(('Fixed assets'!$Q$2:$Q$1000=Costs!AP$617)*('Fixed assets'!$U$2:$U$1000=Costs!$A697)*('Fixed assets'!$S$2:$S$1000))+SUMPRODUCT(('Fixed assets'!$Q$2:$Q$1000=Costs!AP$617)*('Fixed assets'!$P$2:$P$1000=Costs!$A697)*('Fixed assets'!$U$2:$U$1000=Costs!$A697)*('Fixed assets'!$R$2:$R$1000))","v":0},{"$f":"SUMPRODUCT(('Fixed assets'!$R$2:$R$1000)*('Fixed assets'!$P$2:$P$1000<$A697)*('Fixed assets'!$Q$2:$Q$1000=Costs!AQ$617))-SUMPRODUCT(('Fixed assets'!$S$2:$S$1000)*('Fixed assets'!$P$2:$P$1000<Costs!$A697)*('Fixed assets'!$Q$2:$Q$1000=Costs!AQ$617))-SUMPRODUCT(('Fixed assets'!$Q$2:$Q$1000=Costs!AQ$617)*('Fixed assets'!$U$2:$U$1000=Costs!$A697)*('Fixed assets'!$S$2:$S$1000))+SUMPRODUCT(('Fixed assets'!$Q$2:$Q$1000=Costs!AQ$617)*('Fixed assets'!$P$2:$P$1000=Costs!$A697)*('Fixed assets'!$U$2:$U$1000=Costs!$A697)*('Fixed assets'!$R$2:$R$1000))","v":0}]
[2095,{"$f":"SUM(C698:AQ698)","v":0},{"$f":"SUMPRODUCT(('Fixed assets'!$R$2:$R$1000)*('Fixed assets'!$P$2:$P$1000<$A698)*('Fixed assets'!$Q$2:$Q$1000=Costs!C$617))-SUMPRODUCT(('Fixed assets'!$S$2:$S$1000)*('Fixed assets'!$P$2:$P$1000<Costs!$A698)*('Fixed assets'!$Q$2:$Q$1000=Costs!C$617))-SUMPRODUCT(('Fixed assets'!$Q$2:$Q$1000=Costs!C$617)*('Fixed assets'!$U$2:$U$1000=Costs!$A698)*('Fixed assets'!$S$2:$S$1000))+SUMPRODUCT(('Fixed assets'!$Q$2:$Q$1000=Costs!C$617)*('Fixed assets'!$P$2:$P$1000=Costs!$A698)*('Fixed assets'!$U$2:$U$1000=Costs!$A698)*('Fixed assets'!$R$2:$R$1000))","v":0},{"$f":"SUMPRODUCT(('Fixed assets'!$R$2:$R$1000)*('Fixed assets'!$P$2:$P$1000<$A698)*('Fixed assets'!$Q$2:$Q$1000=Costs!D$617))-SUMPRODUCT(('Fixed assets'!$S$2:$S$1000)*('Fixed assets'!$P$2:$P$1000<Costs!$A698)*('Fixed assets'!$Q$2:$Q$1000=Costs!D$617))-SUMPRODUCT(('Fixed assets'!$Q$2:$Q$1000=Costs!D$617)*('Fixed assets'!$U$2:$U$1000=Costs!$A698)*('Fixed assets'!$S$2:$S$1000))+SUMPRODUCT(('Fixed assets'!$Q$2:$Q$1000=Costs!D$617)*('Fixed assets'!$P$2:$P$1000=Costs!$A698)*('Fixed assets'!$U$2:$U$1000=Costs!$A698)*('Fixed assets'!$R$2:$R$1000))","v":0},{"$f":"SUMPRODUCT(('Fixed assets'!$R$2:$R$1000)*('Fixed assets'!$P$2:$P$1000<$A698)*('Fixed assets'!$Q$2:$Q$1000=Costs!E$617))-SUMPRODUCT(('Fixed assets'!$S$2:$S$1000)*('Fixed assets'!$P$2:$P$1000<Costs!$A698)*('Fixed assets'!$Q$2:$Q$1000=Costs!E$617))-SUMPRODUCT(('Fixed assets'!$Q$2:$Q$1000=Costs!E$617)*('Fixed assets'!$U$2:$U$1000=Costs!$A698)*('Fixed assets'!$S$2:$S$1000))+SUMPRODUCT(('Fixed assets'!$Q$2:$Q$1000=Costs!E$617)*('Fixed assets'!$P$2:$P$1000=Costs!$A698)*('Fixed assets'!$U$2:$U$1000=Costs!$A698)*('Fixed assets'!$R$2:$R$1000))","v":0},{"$f":"SUMPRODUCT(('Fixed assets'!$R$2:$R$1000)*('Fixed assets'!$P$2:$P$1000<$A698)*('Fixed assets'!$Q$2:$Q$1000=Costs!F$617))-SUMPRODUCT(('Fixed assets'!$S$2:$S$1000)*('Fixed assets'!$P$2:$P$1000<Costs!$A698)*('Fixed assets'!$Q$2:$Q$1000=Costs!F$617))-SUMPRODUCT(('Fixed assets'!$Q$2:$Q$1000=Costs!F$617)*('Fixed assets'!$U$2:$U$1000=Costs!$A698)*('Fixed assets'!$S$2:$S$1000))+SUMPRODUCT(('Fixed assets'!$Q$2:$Q$1000=Costs!F$617)*('Fixed assets'!$P$2:$P$1000=Costs!$A698)*('Fixed assets'!$U$2:$U$1000=Costs!$A698)*('Fixed assets'!$R$2:$R$1000))","v":0},{"$f":"SUMPRODUCT(('Fixed assets'!$R$2:$R$1000)*('Fixed assets'!$P$2:$P$1000<$A698)*('Fixed assets'!$Q$2:$Q$1000=Costs!G$617))-SUMPRODUCT(('Fixed assets'!$S$2:$S$1000)*('Fixed assets'!$P$2:$P$1000<Costs!$A698)*('Fixed assets'!$Q$2:$Q$1000=Costs!G$617))-SUMPRODUCT(('Fixed assets'!$Q$2:$Q$1000=Costs!G$617)*('Fixed assets'!$U$2:$U$1000=Costs!$A698)*('Fixed assets'!$S$2:$S$1000))+SUMPRODUCT(('Fixed assets'!$Q$2:$Q$1000=Costs!G$617)*('Fixed assets'!$P$2:$P$1000=Costs!$A698)*('Fixed assets'!$U$2:$U$1000=Costs!$A698)*('Fixed assets'!$R$2:$R$1000))","v":0},{"$f":"SUMPRODUCT(('Fixed assets'!$R$2:$R$1000)*('Fixed assets'!$P$2:$P$1000<$A698)*('Fixed assets'!$Q$2:$Q$1000=Costs!H$617))-SUMPRODUCT(('Fixed assets'!$S$2:$S$1000)*('Fixed assets'!$P$2:$P$1000<Costs!$A698)*('Fixed assets'!$Q$2:$Q$1000=Costs!H$617))-SUMPRODUCT(('Fixed assets'!$Q$2:$Q$1000=Costs!H$617)*('Fixed assets'!$U$2:$U$1000=Costs!$A698)*('Fixed assets'!$S$2:$S$1000))+SUMPRODUCT(('Fixed assets'!$Q$2:$Q$1000=Costs!H$617)*('Fixed assets'!$P$2:$P$1000=Costs!$A698)*('Fixed assets'!$U$2:$U$1000=Costs!$A698)*('Fixed assets'!$R$2:$R$1000))","v":0},{"$f":"SUMPRODUCT(('Fixed assets'!$R$2:$R$1000)*('Fixed assets'!$P$2:$P$1000<$A698)*('Fixed assets'!$Q$2:$Q$1000=Costs!I$617))-SUMPRODUCT(('Fixed assets'!$S$2:$S$1000)*('Fixed assets'!$P$2:$P$1000<Costs!$A698)*('Fixed assets'!$Q$2:$Q$1000=Costs!I$617))-SUMPRODUCT(('Fixed assets'!$Q$2:$Q$1000=Costs!I$617)*('Fixed assets'!$U$2:$U$1000=Costs!$A698)*('Fixed assets'!$S$2:$S$1000))+SUMPRODUCT(('Fixed assets'!$Q$2:$Q$1000=Costs!I$617)*('Fixed assets'!$P$2:$P$1000=Costs!$A698)*('Fixed assets'!$U$2:$U$1000=Costs!$A698)*('Fixed assets'!$R$2:$R$1000))","v":0},{"$f":"SUMPRODUCT(('Fixed assets'!$R$2:$R$1000)*('Fixed assets'!$P$2:$P$1000<$A698)*('Fixed assets'!$Q$2:$Q$1000=Costs!J$617))-SUMPRODUCT(('Fixed assets'!$S$2:$S$1000)*('Fixed assets'!$P$2:$P$1000<Costs!$A698)*('Fixed assets'!$Q$2:$Q$1000=Costs!J$617))-SUMPRODUCT(('Fixed assets'!$Q$2:$Q$1000=Costs!J$617)*('Fixed assets'!$U$2:$U$1000=Costs!$A698)*('Fixed assets'!$S$2:$S$1000))+SUMPRODUCT(('Fixed assets'!$Q$2:$Q$1000=Costs!J$617)*('Fixed assets'!$P$2:$P$1000=Costs!$A698)*('Fixed assets'!$U$2:$U$1000=Costs!$A698)*('Fixed assets'!$R$2:$R$1000))","v":0},{"$f":"SUMPRODUCT(('Fixed assets'!$R$2:$R$1000)*('Fixed assets'!$P$2:$P$1000<$A698)*('Fixed assets'!$Q$2:$Q$1000=Costs!K$617))-SUMPRODUCT(('Fixed assets'!$S$2:$S$1000)*('Fixed assets'!$P$2:$P$1000<Costs!$A698)*('Fixed assets'!$Q$2:$Q$1000=Costs!K$617))-SUMPRODUCT(('Fixed assets'!$Q$2:$Q$1000=Costs!K$617)*('Fixed assets'!$U$2:$U$1000=Costs!$A698)*('Fixed assets'!$S$2:$S$1000))+SUMPRODUCT(('Fixed assets'!$Q$2:$Q$1000=Costs!K$617)*('Fixed assets'!$P$2:$P$1000=Costs!$A698)*('Fixed assets'!$U$2:$U$1000=Costs!$A698)*('Fixed assets'!$R$2:$R$1000))","v":0},{"$f":"SUMPRODUCT(('Fixed assets'!$R$2:$R$1000)*('Fixed assets'!$P$2:$P$1000<$A698)*('Fixed assets'!$Q$2:$Q$1000=Costs!L$617))-SUMPRODUCT(('Fixed assets'!$S$2:$S$1000)*('Fixed assets'!$P$2:$P$1000<Costs!$A698)*('Fixed assets'!$Q$2:$Q$1000=Costs!L$617))-SUMPRODUCT(('Fixed assets'!$Q$2:$Q$1000=Costs!L$617)*('Fixed assets'!$U$2:$U$1000=Costs!$A698)*('Fixed assets'!$S$2:$S$1000))+SUMPRODUCT(('Fixed assets'!$Q$2:$Q$1000=Costs!L$617)*('Fixed assets'!$P$2:$P$1000=Costs!$A698)*('Fixed assets'!$U$2:$U$1000=Costs!$A698)*('Fixed assets'!$R$2:$R$1000))","v":0},{"$f":"SUMPRODUCT(('Fixed assets'!$R$2:$R$1000)*('Fixed assets'!$P$2:$P$1000<$A698)*('Fixed assets'!$Q$2:$Q$1000=Costs!M$617))-SUMPRODUCT(('Fixed assets'!$S$2:$S$1000)*('Fixed assets'!$P$2:$P$1000<Costs!$A698)*('Fixed assets'!$Q$2:$Q$1000=Costs!M$617))-SUMPRODUCT(('Fixed assets'!$Q$2:$Q$1000=Costs!M$617)*('Fixed assets'!$U$2:$U$1000=Costs!$A698)*('Fixed assets'!$S$2:$S$1000))+SUMPRODUCT(('Fixed assets'!$Q$2:$Q$1000=Costs!M$617)*('Fixed assets'!$P$2:$P$1000=Costs!$A698)*('Fixed assets'!$U$2:$U$1000=Costs!$A698)*('Fixed assets'!$R$2:$R$1000))","v":0},{"$f":"SUMPRODUCT(('Fixed assets'!$R$2:$R$1000)*('Fixed assets'!$P$2:$P$1000<$A698)*('Fixed assets'!$Q$2:$Q$1000=Costs!N$617))-SUMPRODUCT(('Fixed assets'!$S$2:$S$1000)*('Fixed assets'!$P$2:$P$1000<Costs!$A698)*('Fixed assets'!$Q$2:$Q$1000=Costs!N$617))-SUMPRODUCT(('Fixed assets'!$Q$2:$Q$1000=Costs!N$617)*('Fixed assets'!$U$2:$U$1000=Costs!$A698)*('Fixed assets'!$S$2:$S$1000))+SUMPRODUCT(('Fixed assets'!$Q$2:$Q$1000=Costs!N$617)*('Fixed assets'!$P$2:$P$1000=Costs!$A698)*('Fixed assets'!$U$2:$U$1000=Costs!$A698)*('Fixed assets'!$R$2:$R$1000))","v":0},{"$f":"SUMPRODUCT(('Fixed assets'!$R$2:$R$1000)*('Fixed assets'!$P$2:$P$1000<$A698)*('Fixed assets'!$Q$2:$Q$1000=Costs!O$617))-SUMPRODUCT(('Fixed assets'!$S$2:$S$1000)*('Fixed assets'!$P$2:$P$1000<Costs!$A698)*('Fixed assets'!$Q$2:$Q$1000=Costs!O$617))-SUMPRODUCT(('Fixed assets'!$Q$2:$Q$1000=Costs!O$617)*('Fixed assets'!$U$2:$U$1000=Costs!$A698)*('Fixed assets'!$S$2:$S$1000))+SUMPRODUCT(('Fixed assets'!$Q$2:$Q$1000=Costs!O$617)*('Fixed assets'!$P$2:$P$1000=Costs!$A698)*('Fixed assets'!$U$2:$U$1000=Costs!$A698)*('Fixed assets'!$R$2:$R$1000))","v":0},{"$f":"SUMPRODUCT(('Fixed assets'!$R$2:$R$1000)*('Fixed assets'!$P$2:$P$1000<$A698)*('Fixed assets'!$Q$2:$Q$1000=Costs!P$617))-SUMPRODUCT(('Fixed assets'!$S$2:$S$1000)*('Fixed assets'!$P$2:$P$1000<Costs!$A698)*('Fixed assets'!$Q$2:$Q$1000=Costs!P$617))-SUMPRODUCT(('Fixed assets'!$Q$2:$Q$1000=Costs!P$617)*('Fixed assets'!$U$2:$U$1000=Costs!$A698)*('Fixed assets'!$S$2:$S$1000))+SUMPRODUCT(('Fixed assets'!$Q$2:$Q$1000=Costs!P$617)*('Fixed assets'!$P$2:$P$1000=Costs!$A698)*('Fixed assets'!$U$2:$U$1000=Costs!$A698)*('Fixed assets'!$R$2:$R$1000))","v":0},{"$f":"SUMPRODUCT(('Fixed assets'!$R$2:$R$1000)*('Fixed assets'!$P$2:$P$1000<$A698)*('Fixed assets'!$Q$2:$Q$1000=Costs!Q$617))-SUMPRODUCT(('Fixed assets'!$S$2:$S$1000)*('Fixed assets'!$P$2:$P$1000<Costs!$A698)*('Fixed assets'!$Q$2:$Q$1000=Costs!Q$617))-SUMPRODUCT(('Fixed assets'!$Q$2:$Q$1000=Costs!Q$617)*('Fixed assets'!$U$2:$U$1000=Costs!$A698)*('Fixed assets'!$S$2:$S$1000))+SUMPRODUCT(('Fixed assets'!$Q$2:$Q$1000=Costs!Q$617)*('Fixed assets'!$P$2:$P$1000=Costs!$A698)*('Fixed assets'!$U$2:$U$1000=Costs!$A698)*('Fixed assets'!$R$2:$R$1000))","v":0},{"$f":"SUMPRODUCT(('Fixed assets'!$R$2:$R$1000)*('Fixed assets'!$P$2:$P$1000<$A698)*('Fixed assets'!$Q$2:$Q$1000=Costs!R$617))-SUMPRODUCT(('Fixed assets'!$S$2:$S$1000)*('Fixed assets'!$P$2:$P$1000<Costs!$A698)*('Fixed assets'!$Q$2:$Q$1000=Costs!R$617))-SUMPRODUCT(('Fixed assets'!$Q$2:$Q$1000=Costs!R$617)*('Fixed assets'!$U$2:$U$1000=Costs!$A698)*('Fixed assets'!$S$2:$S$1000))+SUMPRODUCT(('Fixed assets'!$Q$2:$Q$1000=Costs!R$617)*('Fixed assets'!$P$2:$P$1000=Costs!$A698)*('Fixed assets'!$U$2:$U$1000=Costs!$A698)*('Fixed assets'!$R$2:$R$1000))","v":0},{"$f":"SUMPRODUCT(('Fixed assets'!$R$2:$R$1000)*('Fixed assets'!$P$2:$P$1000<$A698)*('Fixed assets'!$Q$2:$Q$1000=Costs!S$617))-SUMPRODUCT(('Fixed assets'!$S$2:$S$1000)*('Fixed assets'!$P$2:$P$1000<Costs!$A698)*('Fixed assets'!$Q$2:$Q$1000=Costs!S$617))-SUMPRODUCT(('Fixed assets'!$Q$2:$Q$1000=Costs!S$617)*('Fixed assets'!$U$2:$U$1000=Costs!$A698)*('Fixed assets'!$S$2:$S$1000))+SUMPRODUCT(('Fixed assets'!$Q$2:$Q$1000=Costs!S$617)*('Fixed assets'!$P$2:$P$1000=Costs!$A698)*('Fixed assets'!$U$2:$U$1000=Costs!$A698)*('Fixed assets'!$R$2:$R$1000))","v":0},{"$f":"SUMPRODUCT(('Fixed assets'!$R$2:$R$1000)*('Fixed assets'!$P$2:$P$1000<$A698)*('Fixed assets'!$Q$2:$Q$1000=Costs!T$617))-SUMPRODUCT(('Fixed assets'!$S$2:$S$1000)*('Fixed assets'!$P$2:$P$1000<Costs!$A698)*('Fixed assets'!$Q$2:$Q$1000=Costs!T$617))-SUMPRODUCT(('Fixed assets'!$Q$2:$Q$1000=Costs!T$617)*('Fixed assets'!$U$2:$U$1000=Costs!$A698)*('Fixed assets'!$S$2:$S$1000))+SUMPRODUCT(('Fixed assets'!$Q$2:$Q$1000=Costs!T$617)*('Fixed assets'!$P$2:$P$1000=Costs!$A698)*('Fixed assets'!$U$2:$U$1000=Costs!$A698)*('Fixed assets'!$R$2:$R$1000))","v":0},{"$f":"SUMPRODUCT(('Fixed assets'!$R$2:$R$1000)*('Fixed assets'!$P$2:$P$1000<$A698)*('Fixed assets'!$Q$2:$Q$1000=Costs!U$617))-SUMPRODUCT(('Fixed assets'!$S$2:$S$1000)*('Fixed assets'!$P$2:$P$1000<Costs!$A698)*('Fixed assets'!$Q$2:$Q$1000=Costs!U$617))-SUMPRODUCT(('Fixed assets'!$Q$2:$Q$1000=Costs!U$617)*('Fixed assets'!$U$2:$U$1000=Costs!$A698)*('Fixed assets'!$S$2:$S$1000))+SUMPRODUCT(('Fixed assets'!$Q$2:$Q$1000=Costs!U$617)*('Fixed assets'!$P$2:$P$1000=Costs!$A698)*('Fixed assets'!$U$2:$U$1000=Costs!$A698)*('Fixed assets'!$R$2:$R$1000))","v":0},{"$f":"SUMPRODUCT(('Fixed assets'!$R$2:$R$1000)*('Fixed assets'!$P$2:$P$1000<$A698)*('Fixed assets'!$Q$2:$Q$1000=Costs!V$617))-SUMPRODUCT(('Fixed assets'!$S$2:$S$1000)*('Fixed assets'!$P$2:$P$1000<Costs!$A698)*('Fixed assets'!$Q$2:$Q$1000=Costs!V$617))-SUMPRODUCT(('Fixed assets'!$Q$2:$Q$1000=Costs!V$617)*('Fixed assets'!$U$2:$U$1000=Costs!$A698)*('Fixed assets'!$S$2:$S$1000))+SUMPRODUCT(('Fixed assets'!$Q$2:$Q$1000=Costs!V$617)*('Fixed assets'!$P$2:$P$1000=Costs!$A698)*('Fixed assets'!$U$2:$U$1000=Costs!$A698)*('Fixed assets'!$R$2:$R$1000))","v":0},{"$f":"SUMPRODUCT(('Fixed assets'!$R$2:$R$1000)*('Fixed assets'!$P$2:$P$1000<$A698)*('Fixed assets'!$Q$2:$Q$1000=Costs!W$617))-SUMPRODUCT(('Fixed assets'!$S$2:$S$1000)*('Fixed assets'!$P$2:$P$1000<Costs!$A698)*('Fixed assets'!$Q$2:$Q$1000=Costs!W$617))-SUMPRODUCT(('Fixed assets'!$Q$2:$Q$1000=Costs!W$617)*('Fixed assets'!$U$2:$U$1000=Costs!$A698)*('Fixed assets'!$S$2:$S$1000))+SUMPRODUCT(('Fixed assets'!$Q$2:$Q$1000=Costs!W$617)*('Fixed assets'!$P$2:$P$1000=Costs!$A698)*('Fixed assets'!$U$2:$U$1000=Costs!$A698)*('Fixed assets'!$R$2:$R$1000))","v":0},{"$f":"SUMPRODUCT(('Fixed assets'!$R$2:$R$1000)*('Fixed assets'!$P$2:$P$1000<$A698)*('Fixed assets'!$Q$2:$Q$1000=Costs!X$617))-SUMPRODUCT(('Fixed assets'!$S$2:$S$1000)*('Fixed assets'!$P$2:$P$1000<Costs!$A698)*('Fixed assets'!$Q$2:$Q$1000=Costs!X$617))-SUMPRODUCT(('Fixed assets'!$Q$2:$Q$1000=Costs!X$617)*('Fixed assets'!$U$2:$U$1000=Costs!$A698)*('Fixed assets'!$S$2:$S$1000))+SUMPRODUCT(('Fixed assets'!$Q$2:$Q$1000=Costs!X$617)*('Fixed assets'!$P$2:$P$1000=Costs!$A698)*('Fixed assets'!$U$2:$U$1000=Costs!$A698)*('Fixed assets'!$R$2:$R$1000))","v":0},{"$f":"SUMPRODUCT(('Fixed assets'!$R$2:$R$1000)*('Fixed assets'!$P$2:$P$1000<$A698)*('Fixed assets'!$Q$2:$Q$1000=Costs!Y$617))-SUMPRODUCT(('Fixed assets'!$S$2:$S$1000)*('Fixed assets'!$P$2:$P$1000<Costs!$A698)*('Fixed assets'!$Q$2:$Q$1000=Costs!Y$617))-SUMPRODUCT(('Fixed assets'!$Q$2:$Q$1000=Costs!Y$617)*('Fixed assets'!$U$2:$U$1000=Costs!$A698)*('Fixed assets'!$S$2:$S$1000))+SUMPRODUCT(('Fixed assets'!$Q$2:$Q$1000=Costs!Y$617)*('Fixed assets'!$P$2:$P$1000=Costs!$A698)*('Fixed assets'!$U$2:$U$1000=Costs!$A698)*('Fixed assets'!$R$2:$R$1000))","v":0},{"$f":"SUMPRODUCT(('Fixed assets'!$R$2:$R$1000)*('Fixed assets'!$P$2:$P$1000<$A698)*('Fixed assets'!$Q$2:$Q$1000=Costs!Z$617))-SUMPRODUCT(('Fixed assets'!$S$2:$S$1000)*('Fixed assets'!$P$2:$P$1000<Costs!$A698)*('Fixed assets'!$Q$2:$Q$1000=Costs!Z$617))-SUMPRODUCT(('Fixed assets'!$Q$2:$Q$1000=Costs!Z$617)*('Fixed assets'!$U$2:$U$1000=Costs!$A698)*('Fixed assets'!$S$2:$S$1000))+SUMPRODUCT(('Fixed assets'!$Q$2:$Q$1000=Costs!Z$617)*('Fixed assets'!$P$2:$P$1000=Costs!$A698)*('Fixed assets'!$U$2:$U$1000=Costs!$A698)*('Fixed assets'!$R$2:$R$1000))","v":0},{"$f":"SUMPRODUCT(('Fixed assets'!$R$2:$R$1000)*('Fixed assets'!$P$2:$P$1000<$A698)*('Fixed assets'!$Q$2:$Q$1000=Costs!AA$617))-SUMPRODUCT(('Fixed assets'!$S$2:$S$1000)*('Fixed assets'!$P$2:$P$1000<Costs!$A698)*('Fixed assets'!$Q$2:$Q$1000=Costs!AA$617))-SUMPRODUCT(('Fixed assets'!$Q$2:$Q$1000=Costs!AA$617)*('Fixed assets'!$U$2:$U$1000=Costs!$A698)*('Fixed assets'!$S$2:$S$1000))+SUMPRODUCT(('Fixed assets'!$Q$2:$Q$1000=Costs!AA$617)*('Fixed assets'!$P$2:$P$1000=Costs!$A698)*('Fixed assets'!$U$2:$U$1000=Costs!$A698)*('Fixed assets'!$R$2:$R$1000))","v":0},{"$f":"SUMPRODUCT(('Fixed assets'!$R$2:$R$1000)*('Fixed assets'!$P$2:$P$1000<$A698)*('Fixed assets'!$Q$2:$Q$1000=Costs!AB$617))-SUMPRODUCT(('Fixed assets'!$S$2:$S$1000)*('Fixed assets'!$P$2:$P$1000<Costs!$A698)*('Fixed assets'!$Q$2:$Q$1000=Costs!AB$617))-SUMPRODUCT(('Fixed assets'!$Q$2:$Q$1000=Costs!AB$617)*('Fixed assets'!$U$2:$U$1000=Costs!$A698)*('Fixed assets'!$S$2:$S$1000))+SUMPRODUCT(('Fixed assets'!$Q$2:$Q$1000=Costs!AB$617)*('Fixed assets'!$P$2:$P$1000=Costs!$A698)*('Fixed assets'!$U$2:$U$1000=Costs!$A698)*('Fixed assets'!$R$2:$R$1000))","v":0},{"$f":"SUMPRODUCT(('Fixed assets'!$R$2:$R$1000)*('Fixed assets'!$P$2:$P$1000<$A698)*('Fixed assets'!$Q$2:$Q$1000=Costs!AC$617))-SUMPRODUCT(('Fixed assets'!$S$2:$S$1000)*('Fixed assets'!$P$2:$P$1000<Costs!$A698)*('Fixed assets'!$Q$2:$Q$1000=Costs!AC$617))-SUMPRODUCT(('Fixed assets'!$Q$2:$Q$1000=Costs!AC$617)*('Fixed assets'!$U$2:$U$1000=Costs!$A698)*('Fixed assets'!$S$2:$S$1000))+SUMPRODUCT(('Fixed assets'!$Q$2:$Q$1000=Costs!AC$617)*('Fixed assets'!$P$2:$P$1000=Costs!$A698)*('Fixed assets'!$U$2:$U$1000=Costs!$A698)*('Fixed assets'!$R$2:$R$1000))","v":0},{"$f":"SUMPRODUCT(('Fixed assets'!$R$2:$R$1000)*('Fixed assets'!$P$2:$P$1000<$A698)*('Fixed assets'!$Q$2:$Q$1000=Costs!AD$617))-SUMPRODUCT(('Fixed assets'!$S$2:$S$1000)*('Fixed assets'!$P$2:$P$1000<Costs!$A698)*('Fixed assets'!$Q$2:$Q$1000=Costs!AD$617))-SUMPRODUCT(('Fixed assets'!$Q$2:$Q$1000=Costs!AD$617)*('Fixed assets'!$U$2:$U$1000=Costs!$A698)*('Fixed assets'!$S$2:$S$1000))+SUMPRODUCT(('Fixed assets'!$Q$2:$Q$1000=Costs!AD$617)*('Fixed assets'!$P$2:$P$1000=Costs!$A698)*('Fixed assets'!$U$2:$U$1000=Costs!$A698)*('Fixed assets'!$R$2:$R$1000))","v":0},{"$f":"SUMPRODUCT(('Fixed assets'!$R$2:$R$1000)*('Fixed assets'!$P$2:$P$1000<$A698)*('Fixed assets'!$Q$2:$Q$1000=Costs!AE$617))-SUMPRODUCT(('Fixed assets'!$S$2:$S$1000)*('Fixed assets'!$P$2:$P$1000<Costs!$A698)*('Fixed assets'!$Q$2:$Q$1000=Costs!AE$617))-SUMPRODUCT(('Fixed assets'!$Q$2:$Q$1000=Costs!AE$617)*('Fixed assets'!$U$2:$U$1000=Costs!$A698)*('Fixed assets'!$S$2:$S$1000))+SUMPRODUCT(('Fixed assets'!$Q$2:$Q$1000=Costs!AE$617)*('Fixed assets'!$P$2:$P$1000=Costs!$A698)*('Fixed assets'!$U$2:$U$1000=Costs!$A698)*('Fixed assets'!$R$2:$R$1000))","v":0},{"$f":"SUMPRODUCT(('Fixed assets'!$R$2:$R$1000)*('Fixed assets'!$P$2:$P$1000<$A698)*('Fixed assets'!$Q$2:$Q$1000=Costs!AF$617))-SUMPRODUCT(('Fixed assets'!$S$2:$S$1000)*('Fixed assets'!$P$2:$P$1000<Costs!$A698)*('Fixed assets'!$Q$2:$Q$1000=Costs!AF$617))-SUMPRODUCT(('Fixed assets'!$Q$2:$Q$1000=Costs!AF$617)*('Fixed assets'!$U$2:$U$1000=Costs!$A698)*('Fixed assets'!$S$2:$S$1000))+SUMPRODUCT(('Fixed assets'!$Q$2:$Q$1000=Costs!AF$617)*('Fixed assets'!$P$2:$P$1000=Costs!$A698)*('Fixed assets'!$U$2:$U$1000=Costs!$A698)*('Fixed assets'!$R$2:$R$1000))","v":0},{"$f":"SUMPRODUCT(('Fixed assets'!$R$2:$R$1000)*('Fixed assets'!$P$2:$P$1000<$A698)*('Fixed assets'!$Q$2:$Q$1000=Costs!AG$617))-SUMPRODUCT(('Fixed assets'!$S$2:$S$1000)*('Fixed assets'!$P$2:$P$1000<Costs!$A698)*('Fixed assets'!$Q$2:$Q$1000=Costs!AG$617))-SUMPRODUCT(('Fixed assets'!$Q$2:$Q$1000=Costs!AG$617)*('Fixed assets'!$U$2:$U$1000=Costs!$A698)*('Fixed assets'!$S$2:$S$1000))+SUMPRODUCT(('Fixed assets'!$Q$2:$Q$1000=Costs!AG$617)*('Fixed assets'!$P$2:$P$1000=Costs!$A698)*('Fixed assets'!$U$2:$U$1000=Costs!$A698)*('Fixed assets'!$R$2:$R$1000))","v":0},{"$f":"SUMPRODUCT(('Fixed assets'!$R$2:$R$1000)*('Fixed assets'!$P$2:$P$1000<$A698)*('Fixed assets'!$Q$2:$Q$1000=Costs!AH$617))-SUMPRODUCT(('Fixed assets'!$S$2:$S$1000)*('Fixed assets'!$P$2:$P$1000<Costs!$A698)*('Fixed assets'!$Q$2:$Q$1000=Costs!AH$617))-SUMPRODUCT(('Fixed assets'!$Q$2:$Q$1000=Costs!AH$617)*('Fixed assets'!$U$2:$U$1000=Costs!$A698)*('Fixed assets'!$S$2:$S$1000))+SUMPRODUCT(('Fixed assets'!$Q$2:$Q$1000=Costs!AH$617)*('Fixed assets'!$P$2:$P$1000=Costs!$A698)*('Fixed assets'!$U$2:$U$1000=Costs!$A698)*('Fixed assets'!$R$2:$R$1000))","v":0},{"$f":"SUMPRODUCT(('Fixed assets'!$R$2:$R$1000)*('Fixed assets'!$P$2:$P$1000<$A698)*('Fixed assets'!$Q$2:$Q$1000=Costs!AI$617))-SUMPRODUCT(('Fixed assets'!$S$2:$S$1000)*('Fixed assets'!$P$2:$P$1000<Costs!$A698)*('Fixed assets'!$Q$2:$Q$1000=Costs!AI$617))-SUMPRODUCT(('Fixed assets'!$Q$2:$Q$1000=Costs!AI$617)*('Fixed assets'!$U$2:$U$1000=Costs!$A698)*('Fixed assets'!$S$2:$S$1000))+SUMPRODUCT(('Fixed assets'!$Q$2:$Q$1000=Costs!AI$617)*('Fixed assets'!$P$2:$P$1000=Costs!$A698)*('Fixed assets'!$U$2:$U$1000=Costs!$A698)*('Fixed assets'!$R$2:$R$1000))","v":0},{"$f":"SUMPRODUCT(('Fixed assets'!$R$2:$R$1000)*('Fixed assets'!$P$2:$P$1000<$A698)*('Fixed assets'!$Q$2:$Q$1000=Costs!AJ$617))-SUMPRODUCT(('Fixed assets'!$S$2:$S$1000)*('Fixed assets'!$P$2:$P$1000<Costs!$A698)*('Fixed assets'!$Q$2:$Q$1000=Costs!AJ$617))-SUMPRODUCT(('Fixed assets'!$Q$2:$Q$1000=Costs!AJ$617)*('Fixed assets'!$U$2:$U$1000=Costs!$A698)*('Fixed assets'!$S$2:$S$1000))+SUMPRODUCT(('Fixed assets'!$Q$2:$Q$1000=Costs!AJ$617)*('Fixed assets'!$P$2:$P$1000=Costs!$A698)*('Fixed assets'!$U$2:$U$1000=Costs!$A698)*('Fixed assets'!$R$2:$R$1000))","v":0},{"$f":"SUMPRODUCT(('Fixed assets'!$R$2:$R$1000)*('Fixed assets'!$P$2:$P$1000<$A698)*('Fixed assets'!$Q$2:$Q$1000=Costs!AK$617))-SUMPRODUCT(('Fixed assets'!$S$2:$S$1000)*('Fixed assets'!$P$2:$P$1000<Costs!$A698)*('Fixed assets'!$Q$2:$Q$1000=Costs!AK$617))-SUMPRODUCT(('Fixed assets'!$Q$2:$Q$1000=Costs!AK$617)*('Fixed assets'!$U$2:$U$1000=Costs!$A698)*('Fixed assets'!$S$2:$S$1000))+SUMPRODUCT(('Fixed assets'!$Q$2:$Q$1000=Costs!AK$617)*('Fixed assets'!$P$2:$P$1000=Costs!$A698)*('Fixed assets'!$U$2:$U$1000=Costs!$A698)*('Fixed assets'!$R$2:$R$1000))","v":0},{"$f":"SUMPRODUCT(('Fixed assets'!$R$2:$R$1000)*('Fixed assets'!$P$2:$P$1000<$A698)*('Fixed assets'!$Q$2:$Q$1000=Costs!AL$617))-SUMPRODUCT(('Fixed assets'!$S$2:$S$1000)*('Fixed assets'!$P$2:$P$1000<Costs!$A698)*('Fixed assets'!$Q$2:$Q$1000=Costs!AL$617))-SUMPRODUCT(('Fixed assets'!$Q$2:$Q$1000=Costs!AL$617)*('Fixed assets'!$U$2:$U$1000=Costs!$A698)*('Fixed assets'!$S$2:$S$1000))+SUMPRODUCT(('Fixed assets'!$Q$2:$Q$1000=Costs!AL$617)*('Fixed assets'!$P$2:$P$1000=Costs!$A698)*('Fixed assets'!$U$2:$U$1000=Costs!$A698)*('Fixed assets'!$R$2:$R$1000))","v":0},{"$f":"SUMPRODUCT(('Fixed assets'!$R$2:$R$1000)*('Fixed assets'!$P$2:$P$1000<$A698)*('Fixed assets'!$Q$2:$Q$1000=Costs!AM$617))-SUMPRODUCT(('Fixed assets'!$S$2:$S$1000)*('Fixed assets'!$P$2:$P$1000<Costs!$A698)*('Fixed assets'!$Q$2:$Q$1000=Costs!AM$617))-SUMPRODUCT(('Fixed assets'!$Q$2:$Q$1000=Costs!AM$617)*('Fixed assets'!$U$2:$U$1000=Costs!$A698)*('Fixed assets'!$S$2:$S$1000))+SUMPRODUCT(('Fixed assets'!$Q$2:$Q$1000=Costs!AM$617)*('Fixed assets'!$P$2:$P$1000=Costs!$A698)*('Fixed assets'!$U$2:$U$1000=Costs!$A698)*('Fixed assets'!$R$2:$R$1000))","v":0},{"$f":"SUMPRODUCT(('Fixed assets'!$R$2:$R$1000)*('Fixed assets'!$P$2:$P$1000<$A698)*('Fixed assets'!$Q$2:$Q$1000=Costs!AN$617))-SUMPRODUCT(('Fixed assets'!$S$2:$S$1000)*('Fixed assets'!$P$2:$P$1000<Costs!$A698)*('Fixed assets'!$Q$2:$Q$1000=Costs!AN$617))-SUMPRODUCT(('Fixed assets'!$Q$2:$Q$1000=Costs!AN$617)*('Fixed assets'!$U$2:$U$1000=Costs!$A698)*('Fixed assets'!$S$2:$S$1000))+SUMPRODUCT(('Fixed assets'!$Q$2:$Q$1000=Costs!AN$617)*('Fixed assets'!$P$2:$P$1000=Costs!$A698)*('Fixed assets'!$U$2:$U$1000=Costs!$A698)*('Fixed assets'!$R$2:$R$1000))","v":0},{"$f":"SUMPRODUCT(('Fixed assets'!$R$2:$R$1000)*('Fixed assets'!$P$2:$P$1000<$A698)*('Fixed assets'!$Q$2:$Q$1000=Costs!AO$617))-SUMPRODUCT(('Fixed assets'!$S$2:$S$1000)*('Fixed assets'!$P$2:$P$1000<Costs!$A698)*('Fixed assets'!$Q$2:$Q$1000=Costs!AO$617))-SUMPRODUCT(('Fixed assets'!$Q$2:$Q$1000=Costs!AO$617)*('Fixed assets'!$U$2:$U$1000=Costs!$A698)*('Fixed assets'!$S$2:$S$1000))+SUMPRODUCT(('Fixed assets'!$Q$2:$Q$1000=Costs!AO$617)*('Fixed assets'!$P$2:$P$1000=Costs!$A698)*('Fixed assets'!$U$2:$U$1000=Costs!$A698)*('Fixed assets'!$R$2:$R$1000))","v":0},{"$f":"SUMPRODUCT(('Fixed assets'!$R$2:$R$1000)*('Fixed assets'!$P$2:$P$1000<$A698)*('Fixed assets'!$Q$2:$Q$1000=Costs!AP$617))-SUMPRODUCT(('Fixed assets'!$S$2:$S$1000)*('Fixed assets'!$P$2:$P$1000<Costs!$A698)*('Fixed assets'!$Q$2:$Q$1000=Costs!AP$617))-SUMPRODUCT(('Fixed assets'!$Q$2:$Q$1000=Costs!AP$617)*('Fixed assets'!$U$2:$U$1000=Costs!$A698)*('Fixed assets'!$S$2:$S$1000))+SUMPRODUCT(('Fixed assets'!$Q$2:$Q$1000=Costs!AP$617)*('Fixed assets'!$P$2:$P$1000=Costs!$A698)*('Fixed assets'!$U$2:$U$1000=Costs!$A698)*('Fixed assets'!$R$2:$R$1000))","v":0},{"$f":"SUMPRODUCT(('Fixed assets'!$R$2:$R$1000)*('Fixed assets'!$P$2:$P$1000<$A698)*('Fixed assets'!$Q$2:$Q$1000=Costs!AQ$617))-SUMPRODUCT(('Fixed assets'!$S$2:$S$1000)*('Fixed assets'!$P$2:$P$1000<Costs!$A698)*('Fixed assets'!$Q$2:$Q$1000=Costs!AQ$617))-SUMPRODUCT(('Fixed assets'!$Q$2:$Q$1000=Costs!AQ$617)*('Fixed assets'!$U$2:$U$1000=Costs!$A698)*('Fixed assets'!$S$2:$S$1000))+SUMPRODUCT(('Fixed assets'!$Q$2:$Q$1000=Costs!AQ$617)*('Fixed assets'!$P$2:$P$1000=Costs!$A698)*('Fixed assets'!$U$2:$U$1000=Costs!$A698)*('Fixed assets'!$R$2:$R$1000))","v":0}]
[2096,0,{"$f":"SUMPRODUCT(('Fixed assets'!$R$2:$R$1000)*('Fixed assets'!$P$2:$P$1000<$A699)*('Fixed assets'!$Q$2:$Q$1000=Costs!C$617))-SUMPRODUCT(('Fixed assets'!$S$2:$S$1000)*('Fixed assets'!$P$2:$P$1000<Costs!$A699)*('Fixed assets'!$Q$2:$Q$1000=Costs!C$617))-SUMPRODUCT(('Fixed assets'!$Q$2:$Q$1000=Costs!C$617)*('Fixed assets'!$U$2:$U$1000=Costs!$A699)*('Fixed assets'!$S$2:$S$1000))+SUMPRODUCT(('Fixed assets'!$Q$2:$Q$1000=Costs!C$617)*('Fixed assets'!$P$2:$P$1000=Costs!$A699)*('Fixed assets'!$U$2:$U$1000=Costs!$A699)*('Fixed assets'!$R$2:$R$1000))","v":0},{"$f":"SUMPRODUCT(('Fixed assets'!$R$2:$R$1000)*('Fixed assets'!$P$2:$P$1000<$A699)*('Fixed assets'!$Q$2:$Q$1000=Costs!D$617))-SUMPRODUCT(('Fixed assets'!$S$2:$S$1000)*('Fixed assets'!$P$2:$P$1000<Costs!$A699)*('Fixed assets'!$Q$2:$Q$1000=Costs!D$617))-SUMPRODUCT(('Fixed assets'!$Q$2:$Q$1000=Costs!D$617)*('Fixed assets'!$U$2:$U$1000=Costs!$A699)*('Fixed assets'!$S$2:$S$1000))+SUMPRODUCT(('Fixed assets'!$Q$2:$Q$1000=Costs!D$617)*('Fixed assets'!$P$2:$P$1000=Costs!$A699)*('Fixed assets'!$U$2:$U$1000=Costs!$A699)*('Fixed assets'!$R$2:$R$1000))","v":0},{"$f":"SUMPRODUCT(('Fixed assets'!$R$2:$R$1000)*('Fixed assets'!$P$2:$P$1000<$A699)*('Fixed assets'!$Q$2:$Q$1000=Costs!E$617))-SUMPRODUCT(('Fixed assets'!$S$2:$S$1000)*('Fixed assets'!$P$2:$P$1000<Costs!$A699)*('Fixed assets'!$Q$2:$Q$1000=Costs!E$617))-SUMPRODUCT(('Fixed assets'!$Q$2:$Q$1000=Costs!E$617)*('Fixed assets'!$U$2:$U$1000=Costs!$A699)*('Fixed assets'!$S$2:$S$1000))+SUMPRODUCT(('Fixed assets'!$Q$2:$Q$1000=Costs!E$617)*('Fixed assets'!$P$2:$P$1000=Costs!$A699)*('Fixed assets'!$U$2:$U$1000=Costs!$A699)*('Fixed assets'!$R$2:$R$1000))","v":0},{"$f":"SUMPRODUCT(('Fixed assets'!$R$2:$R$1000)*('Fixed assets'!$P$2:$P$1000<$A699)*('Fixed assets'!$Q$2:$Q$1000=Costs!F$617))-SUMPRODUCT(('Fixed assets'!$S$2:$S$1000)*('Fixed assets'!$P$2:$P$1000<Costs!$A699)*('Fixed assets'!$Q$2:$Q$1000=Costs!F$617))-SUMPRODUCT(('Fixed assets'!$Q$2:$Q$1000=Costs!F$617)*('Fixed assets'!$U$2:$U$1000=Costs!$A699)*('Fixed assets'!$S$2:$S$1000))+SUMPRODUCT(('Fixed assets'!$Q$2:$Q$1000=Costs!F$617)*('Fixed assets'!$P$2:$P$1000=Costs!$A699)*('Fixed assets'!$U$2:$U$1000=Costs!$A699)*('Fixed assets'!$R$2:$R$1000))","v":0},{"$f":"SUMPRODUCT(('Fixed assets'!$R$2:$R$1000)*('Fixed assets'!$P$2:$P$1000<$A699)*('Fixed assets'!$Q$2:$Q$1000=Costs!G$617))-SUMPRODUCT(('Fixed assets'!$S$2:$S$1000)*('Fixed assets'!$P$2:$P$1000<Costs!$A699)*('Fixed assets'!$Q$2:$Q$1000=Costs!G$617))-SUMPRODUCT(('Fixed assets'!$Q$2:$Q$1000=Costs!G$617)*('Fixed assets'!$U$2:$U$1000=Costs!$A699)*('Fixed assets'!$S$2:$S$1000))+SUMPRODUCT(('Fixed assets'!$Q$2:$Q$1000=Costs!G$617)*('Fixed assets'!$P$2:$P$1000=Costs!$A699)*('Fixed assets'!$U$2:$U$1000=Costs!$A699)*('Fixed assets'!$R$2:$R$1000))","v":0},{"$f":"SUMPRODUCT(('Fixed assets'!$R$2:$R$1000)*('Fixed assets'!$P$2:$P$1000<$A699)*('Fixed assets'!$Q$2:$Q$1000=Costs!H$617))-SUMPRODUCT(('Fixed assets'!$S$2:$S$1000)*('Fixed assets'!$P$2:$P$1000<Costs!$A699)*('Fixed assets'!$Q$2:$Q$1000=Costs!H$617))-SUMPRODUCT(('Fixed assets'!$Q$2:$Q$1000=Costs!H$617)*('Fixed assets'!$U$2:$U$1000=Costs!$A699)*('Fixed assets'!$S$2:$S$1000))+SUMPRODUCT(('Fixed assets'!$Q$2:$Q$1000=Costs!H$617)*('Fixed assets'!$P$2:$P$1000=Costs!$A699)*('Fixed assets'!$U$2:$U$1000=Costs!$A699)*('Fixed assets'!$R$2:$R$1000))","v":0},{"$f":"SUMPRODUCT(('Fixed assets'!$R$2:$R$1000)*('Fixed assets'!$P$2:$P$1000<$A699)*('Fixed assets'!$Q$2:$Q$1000=Costs!I$617))-SUMPRODUCT(('Fixed assets'!$S$2:$S$1000)*('Fixed assets'!$P$2:$P$1000<Costs!$A699)*('Fixed assets'!$Q$2:$Q$1000=Costs!I$617))-SUMPRODUCT(('Fixed assets'!$Q$2:$Q$1000=Costs!I$617)*('Fixed assets'!$U$2:$U$1000=Costs!$A699)*('Fixed assets'!$S$2:$S$1000))+SUMPRODUCT(('Fixed assets'!$Q$2:$Q$1000=Costs!I$617)*('Fixed assets'!$P$2:$P$1000=Costs!$A699)*('Fixed assets'!$U$2:$U$1000=Costs!$A699)*('Fixed assets'!$R$2:$R$1000))","v":0},{"$f":"SUMPRODUCT(('Fixed assets'!$R$2:$R$1000)*('Fixed assets'!$P$2:$P$1000<$A699)*('Fixed assets'!$Q$2:$Q$1000=Costs!J$617))-SUMPRODUCT(('Fixed assets'!$S$2:$S$1000)*('Fixed assets'!$P$2:$P$1000<Costs!$A699)*('Fixed assets'!$Q$2:$Q$1000=Costs!J$617))-SUMPRODUCT(('Fixed assets'!$Q$2:$Q$1000=Costs!J$617)*('Fixed assets'!$U$2:$U$1000=Costs!$A699)*('Fixed assets'!$S$2:$S$1000))+SUMPRODUCT(('Fixed assets'!$Q$2:$Q$1000=Costs!J$617)*('Fixed assets'!$P$2:$P$1000=Costs!$A699)*('Fixed assets'!$U$2:$U$1000=Costs!$A699)*('Fixed assets'!$R$2:$R$1000))","v":0},{"$f":"SUMPRODUCT(('Fixed assets'!$R$2:$R$1000)*('Fixed assets'!$P$2:$P$1000<$A699)*('Fixed assets'!$Q$2:$Q$1000=Costs!K$617))-SUMPRODUCT(('Fixed assets'!$S$2:$S$1000)*('Fixed assets'!$P$2:$P$1000<Costs!$A699)*('Fixed assets'!$Q$2:$Q$1000=Costs!K$617))-SUMPRODUCT(('Fixed assets'!$Q$2:$Q$1000=Costs!K$617)*('Fixed assets'!$U$2:$U$1000=Costs!$A699)*('Fixed assets'!$S$2:$S$1000))+SUMPRODUCT(('Fixed assets'!$Q$2:$Q$1000=Costs!K$617)*('Fixed assets'!$P$2:$P$1000=Costs!$A699)*('Fixed assets'!$U$2:$U$1000=Costs!$A699)*('Fixed assets'!$R$2:$R$1000))","v":0},{"$f":"SUMPRODUCT(('Fixed assets'!$R$2:$R$1000)*('Fixed assets'!$P$2:$P$1000<$A699)*('Fixed assets'!$Q$2:$Q$1000=Costs!L$617))-SUMPRODUCT(('Fixed assets'!$S$2:$S$1000)*('Fixed assets'!$P$2:$P$1000<Costs!$A699)*('Fixed assets'!$Q$2:$Q$1000=Costs!L$617))-SUMPRODUCT(('Fixed assets'!$Q$2:$Q$1000=Costs!L$617)*('Fixed assets'!$U$2:$U$1000=Costs!$A699)*('Fixed assets'!$S$2:$S$1000))+SUMPRODUCT(('Fixed assets'!$Q$2:$Q$1000=Costs!L$617)*('Fixed assets'!$P$2:$P$1000=Costs!$A699)*('Fixed assets'!$U$2:$U$1000=Costs!$A699)*('Fixed assets'!$R$2:$R$1000))","v":0},{"$f":"SUMPRODUCT(('Fixed assets'!$R$2:$R$1000)*('Fixed assets'!$P$2:$P$1000<$A699)*('Fixed assets'!$Q$2:$Q$1000=Costs!M$617))-SUMPRODUCT(('Fixed assets'!$S$2:$S$1000)*('Fixed assets'!$P$2:$P$1000<Costs!$A699)*('Fixed assets'!$Q$2:$Q$1000=Costs!M$617))-SUMPRODUCT(('Fixed assets'!$Q$2:$Q$1000=Costs!M$617)*('Fixed assets'!$U$2:$U$1000=Costs!$A699)*('Fixed assets'!$S$2:$S$1000))+SUMPRODUCT(('Fixed assets'!$Q$2:$Q$1000=Costs!M$617)*('Fixed assets'!$P$2:$P$1000=Costs!$A699)*('Fixed assets'!$U$2:$U$1000=Costs!$A699)*('Fixed assets'!$R$2:$R$1000))","v":0},{"$f":"SUMPRODUCT(('Fixed assets'!$R$2:$R$1000)*('Fixed assets'!$P$2:$P$1000<$A699)*('Fixed assets'!$Q$2:$Q$1000=Costs!N$617))-SUMPRODUCT(('Fixed assets'!$S$2:$S$1000)*('Fixed assets'!$P$2:$P$1000<Costs!$A699)*('Fixed assets'!$Q$2:$Q$1000=Costs!N$617))-SUMPRODUCT(('Fixed assets'!$Q$2:$Q$1000=Costs!N$617)*('Fixed assets'!$U$2:$U$1000=Costs!$A699)*('Fixed assets'!$S$2:$S$1000))+SUMPRODUCT(('Fixed assets'!$Q$2:$Q$1000=Costs!N$617)*('Fixed assets'!$P$2:$P$1000=Costs!$A699)*('Fixed assets'!$U$2:$U$1000=Costs!$A699)*('Fixed assets'!$R$2:$R$1000))","v":0},{"$f":"SUMPRODUCT(('Fixed assets'!$R$2:$R$1000)*('Fixed assets'!$P$2:$P$1000<$A699)*('Fixed assets'!$Q$2:$Q$1000=Costs!O$617))-SUMPRODUCT(('Fixed assets'!$S$2:$S$1000)*('Fixed assets'!$P$2:$P$1000<Costs!$A699)*('Fixed assets'!$Q$2:$Q$1000=Costs!O$617))-SUMPRODUCT(('Fixed assets'!$Q$2:$Q$1000=Costs!O$617)*('Fixed assets'!$U$2:$U$1000=Costs!$A699)*('Fixed assets'!$S$2:$S$1000))+SUMPRODUCT(('Fixed assets'!$Q$2:$Q$1000=Costs!O$617)*('Fixed assets'!$P$2:$P$1000=Costs!$A699)*('Fixed assets'!$U$2:$U$1000=Costs!$A699)*('Fixed assets'!$R$2:$R$1000))","v":0},{"$f":"SUMPRODUCT(('Fixed assets'!$R$2:$R$1000)*('Fixed assets'!$P$2:$P$1000<$A699)*('Fixed assets'!$Q$2:$Q$1000=Costs!P$617))-SUMPRODUCT(('Fixed assets'!$S$2:$S$1000)*('Fixed assets'!$P$2:$P$1000<Costs!$A699)*('Fixed assets'!$Q$2:$Q$1000=Costs!P$617))-SUMPRODUCT(('Fixed assets'!$Q$2:$Q$1000=Costs!P$617)*('Fixed assets'!$U$2:$U$1000=Costs!$A699)*('Fixed assets'!$S$2:$S$1000))+SUMPRODUCT(('Fixed assets'!$Q$2:$Q$1000=Costs!P$617)*('Fixed assets'!$P$2:$P$1000=Costs!$A699)*('Fixed assets'!$U$2:$U$1000=Costs!$A699)*('Fixed assets'!$R$2:$R$1000))","v":0},{"$f":"SUMPRODUCT(('Fixed assets'!$R$2:$R$1000)*('Fixed assets'!$P$2:$P$1000<$A699)*('Fixed assets'!$Q$2:$Q$1000=Costs!Q$617))-SUMPRODUCT(('Fixed assets'!$S$2:$S$1000)*('Fixed assets'!$P$2:$P$1000<Costs!$A699)*('Fixed assets'!$Q$2:$Q$1000=Costs!Q$617))-SUMPRODUCT(('Fixed assets'!$Q$2:$Q$1000=Costs!Q$617)*('Fixed assets'!$U$2:$U$1000=Costs!$A699)*('Fixed assets'!$S$2:$S$1000))+SUMPRODUCT(('Fixed assets'!$Q$2:$Q$1000=Costs!Q$617)*('Fixed assets'!$P$2:$P$1000=Costs!$A699)*('Fixed assets'!$U$2:$U$1000=Costs!$A699)*('Fixed assets'!$R$2:$R$1000))","v":0},{"$f":"SUMPRODUCT(('Fixed assets'!$R$2:$R$1000)*('Fixed assets'!$P$2:$P$1000<$A699)*('Fixed assets'!$Q$2:$Q$1000=Costs!R$617))-SUMPRODUCT(('Fixed assets'!$S$2:$S$1000)*('Fixed assets'!$P$2:$P$1000<Costs!$A699)*('Fixed assets'!$Q$2:$Q$1000=Costs!R$617))-SUMPRODUCT(('Fixed assets'!$Q$2:$Q$1000=Costs!R$617)*('Fixed assets'!$U$2:$U$1000=Costs!$A699)*('Fixed assets'!$S$2:$S$1000))+SUMPRODUCT(('Fixed assets'!$Q$2:$Q$1000=Costs!R$617)*('Fixed assets'!$P$2:$P$1000=Costs!$A699)*('Fixed assets'!$U$2:$U$1000=Costs!$A699)*('Fixed assets'!$R$2:$R$1000))","v":0},{"$f":"SUMPRODUCT(('Fixed assets'!$R$2:$R$1000)*('Fixed assets'!$P$2:$P$1000<$A699)*('Fixed assets'!$Q$2:$Q$1000=Costs!S$617))-SUMPRODUCT(('Fixed assets'!$S$2:$S$1000)*('Fixed assets'!$P$2:$P$1000<Costs!$A699)*('Fixed assets'!$Q$2:$Q$1000=Costs!S$617))-SUMPRODUCT(('Fixed assets'!$Q$2:$Q$1000=Costs!S$617)*('Fixed assets'!$U$2:$U$1000=Costs!$A699)*('Fixed assets'!$S$2:$S$1000))+SUMPRODUCT(('Fixed assets'!$Q$2:$Q$1000=Costs!S$617)*('Fixed assets'!$P$2:$P$1000=Costs!$A699)*('Fixed assets'!$U$2:$U$1000=Costs!$A699)*('Fixed assets'!$R$2:$R$1000))","v":0},{"$f":"SUMPRODUCT(('Fixed assets'!$R$2:$R$1000)*('Fixed assets'!$P$2:$P$1000<$A699)*('Fixed assets'!$Q$2:$Q$1000=Costs!T$617))-SUMPRODUCT(('Fixed assets'!$S$2:$S$1000)*('Fixed assets'!$P$2:$P$1000<Costs!$A699)*('Fixed assets'!$Q$2:$Q$1000=Costs!T$617))-SUMPRODUCT(('Fixed assets'!$Q$2:$Q$1000=Costs!T$617)*('Fixed assets'!$U$2:$U$1000=Costs!$A699)*('Fixed assets'!$S$2:$S$1000))+SUMPRODUCT(('Fixed assets'!$Q$2:$Q$1000=Costs!T$617)*('Fixed assets'!$P$2:$P$1000=Costs!$A699)*('Fixed assets'!$U$2:$U$1000=Costs!$A699)*('Fixed assets'!$R$2:$R$1000))","v":0},{"$f":"SUMPRODUCT(('Fixed assets'!$R$2:$R$1000)*('Fixed assets'!$P$2:$P$1000<$A699)*('Fixed assets'!$Q$2:$Q$1000=Costs!U$617))-SUMPRODUCT(('Fixed assets'!$S$2:$S$1000)*('Fixed assets'!$P$2:$P$1000<Costs!$A699)*('Fixed assets'!$Q$2:$Q$1000=Costs!U$617))-SUMPRODUCT(('Fixed assets'!$Q$2:$Q$1000=Costs!U$617)*('Fixed assets'!$U$2:$U$1000=Costs!$A699)*('Fixed assets'!$S$2:$S$1000))+SUMPRODUCT(('Fixed assets'!$Q$2:$Q$1000=Costs!U$617)*('Fixed assets'!$P$2:$P$1000=Costs!$A699)*('Fixed assets'!$U$2:$U$1000=Costs!$A699)*('Fixed assets'!$R$2:$R$1000))","v":0},{"$f":"SUMPRODUCT(('Fixed assets'!$R$2:$R$1000)*('Fixed assets'!$P$2:$P$1000<$A699)*('Fixed assets'!$Q$2:$Q$1000=Costs!V$617))-SUMPRODUCT(('Fixed assets'!$S$2:$S$1000)*('Fixed assets'!$P$2:$P$1000<Costs!$A699)*('Fixed assets'!$Q$2:$Q$1000=Costs!V$617))-SUMPRODUCT(('Fixed assets'!$Q$2:$Q$1000=Costs!V$617)*('Fixed assets'!$U$2:$U$1000=Costs!$A699)*('Fixed assets'!$S$2:$S$1000))+SUMPRODUCT(('Fixed assets'!$Q$2:$Q$1000=Costs!V$617)*('Fixed assets'!$P$2:$P$1000=Costs!$A699)*('Fixed assets'!$U$2:$U$1000=Costs!$A699)*('Fixed assets'!$R$2:$R$1000))","v":0},{"$f":"SUMPRODUCT(('Fixed assets'!$R$2:$R$1000)*('Fixed assets'!$P$2:$P$1000<$A699)*('Fixed assets'!$Q$2:$Q$1000=Costs!W$617))-SUMPRODUCT(('Fixed assets'!$S$2:$S$1000)*('Fixed assets'!$P$2:$P$1000<Costs!$A699)*('Fixed assets'!$Q$2:$Q$1000=Costs!W$617))-SUMPRODUCT(('Fixed assets'!$Q$2:$Q$1000=Costs!W$617)*('Fixed assets'!$U$2:$U$1000=Costs!$A699)*('Fixed assets'!$S$2:$S$1000))+SUMPRODUCT(('Fixed assets'!$Q$2:$Q$1000=Costs!W$617)*('Fixed assets'!$P$2:$P$1000=Costs!$A699)*('Fixed assets'!$U$2:$U$1000=Costs!$A699)*('Fixed assets'!$R$2:$R$1000))","v":0},{"$f":"SUMPRODUCT(('Fixed assets'!$R$2:$R$1000)*('Fixed assets'!$P$2:$P$1000<$A699)*('Fixed assets'!$Q$2:$Q$1000=Costs!X$617))-SUMPRODUCT(('Fixed assets'!$S$2:$S$1000)*('Fixed assets'!$P$2:$P$1000<Costs!$A699)*('Fixed assets'!$Q$2:$Q$1000=Costs!X$617))-SUMPRODUCT(('Fixed assets'!$Q$2:$Q$1000=Costs!X$617)*('Fixed assets'!$U$2:$U$1000=Costs!$A699)*('Fixed assets'!$S$2:$S$1000))+SUMPRODUCT(('Fixed assets'!$Q$2:$Q$1000=Costs!X$617)*('Fixed assets'!$P$2:$P$1000=Costs!$A699)*('Fixed assets'!$U$2:$U$1000=Costs!$A699)*('Fixed assets'!$R$2:$R$1000))","v":0},{"$f":"SUMPRODUCT(('Fixed assets'!$R$2:$R$1000)*('Fixed assets'!$P$2:$P$1000<$A699)*('Fixed assets'!$Q$2:$Q$1000=Costs!Y$617))-SUMPRODUCT(('Fixed assets'!$S$2:$S$1000)*('Fixed assets'!$P$2:$P$1000<Costs!$A699)*('Fixed assets'!$Q$2:$Q$1000=Costs!Y$617))-SUMPRODUCT(('Fixed assets'!$Q$2:$Q$1000=Costs!Y$617)*('Fixed assets'!$U$2:$U$1000=Costs!$A699)*('Fixed assets'!$S$2:$S$1000))+SUMPRODUCT(('Fixed assets'!$Q$2:$Q$1000=Costs!Y$617)*('Fixed assets'!$P$2:$P$1000=Costs!$A699)*('Fixed assets'!$U$2:$U$1000=Costs!$A699)*('Fixed assets'!$R$2:$R$1000))","v":0},{"$f":"SUMPRODUCT(('Fixed assets'!$R$2:$R$1000)*('Fixed assets'!$P$2:$P$1000<$A699)*('Fixed assets'!$Q$2:$Q$1000=Costs!Z$617))-SUMPRODUCT(('Fixed assets'!$S$2:$S$1000)*('Fixed assets'!$P$2:$P$1000<Costs!$A699)*('Fixed assets'!$Q$2:$Q$1000=Costs!Z$617))-SUMPRODUCT(('Fixed assets'!$Q$2:$Q$1000=Costs!Z$617)*('Fixed assets'!$U$2:$U$1000=Costs!$A699)*('Fixed assets'!$S$2:$S$1000))+SUMPRODUCT(('Fixed assets'!$Q$2:$Q$1000=Costs!Z$617)*('Fixed assets'!$P$2:$P$1000=Costs!$A699)*('Fixed assets'!$U$2:$U$1000=Costs!$A699)*('Fixed assets'!$R$2:$R$1000))","v":0},{"$f":"SUMPRODUCT(('Fixed assets'!$R$2:$R$1000)*('Fixed assets'!$P$2:$P$1000<$A699)*('Fixed assets'!$Q$2:$Q$1000=Costs!AA$617))-SUMPRODUCT(('Fixed assets'!$S$2:$S$1000)*('Fixed assets'!$P$2:$P$1000<Costs!$A699)*('Fixed assets'!$Q$2:$Q$1000=Costs!AA$617))-SUMPRODUCT(('Fixed assets'!$Q$2:$Q$1000=Costs!AA$617)*('Fixed assets'!$U$2:$U$1000=Costs!$A699)*('Fixed assets'!$S$2:$S$1000))+SUMPRODUCT(('Fixed assets'!$Q$2:$Q$1000=Costs!AA$617)*('Fixed assets'!$P$2:$P$1000=Costs!$A699)*('Fixed assets'!$U$2:$U$1000=Costs!$A699)*('Fixed assets'!$R$2:$R$1000))","v":0},{"$f":"SUMPRODUCT(('Fixed assets'!$R$2:$R$1000)*('Fixed assets'!$P$2:$P$1000<$A699)*('Fixed assets'!$Q$2:$Q$1000=Costs!AB$617))-SUMPRODUCT(('Fixed assets'!$S$2:$S$1000)*('Fixed assets'!$P$2:$P$1000<Costs!$A699)*('Fixed assets'!$Q$2:$Q$1000=Costs!AB$617))-SUMPRODUCT(('Fixed assets'!$Q$2:$Q$1000=Costs!AB$617)*('Fixed assets'!$U$2:$U$1000=Costs!$A699)*('Fixed assets'!$S$2:$S$1000))+SUMPRODUCT(('Fixed assets'!$Q$2:$Q$1000=Costs!AB$617)*('Fixed assets'!$P$2:$P$1000=Costs!$A699)*('Fixed assets'!$U$2:$U$1000=Costs!$A699)*('Fixed assets'!$R$2:$R$1000))","v":0},{"$f":"SUMPRODUCT(('Fixed assets'!$R$2:$R$1000)*('Fixed assets'!$P$2:$P$1000<$A699)*('Fixed assets'!$Q$2:$Q$1000=Costs!AC$617))-SUMPRODUCT(('Fixed assets'!$S$2:$S$1000)*('Fixed assets'!$P$2:$P$1000<Costs!$A699)*('Fixed assets'!$Q$2:$Q$1000=Costs!AC$617))-SUMPRODUCT(('Fixed assets'!$Q$2:$Q$1000=Costs!AC$617)*('Fixed assets'!$U$2:$U$1000=Costs!$A699)*('Fixed assets'!$S$2:$S$1000))+SUMPRODUCT(('Fixed assets'!$Q$2:$Q$1000=Costs!AC$617)*('Fixed assets'!$P$2:$P$1000=Costs!$A699)*('Fixed assets'!$U$2:$U$1000=Costs!$A699)*('Fixed assets'!$R$2:$R$1000))","v":0},{"$f":"SUMPRODUCT(('Fixed assets'!$R$2:$R$1000)*('Fixed assets'!$P$2:$P$1000<$A699)*('Fixed assets'!$Q$2:$Q$1000=Costs!AD$617))-SUMPRODUCT(('Fixed assets'!$S$2:$S$1000)*('Fixed assets'!$P$2:$P$1000<Costs!$A699)*('Fixed assets'!$Q$2:$Q$1000=Costs!AD$617))-SUMPRODUCT(('Fixed assets'!$Q$2:$Q$1000=Costs!AD$617)*('Fixed assets'!$U$2:$U$1000=Costs!$A699)*('Fixed assets'!$S$2:$S$1000))+SUMPRODUCT(('Fixed assets'!$Q$2:$Q$1000=Costs!AD$617)*('Fixed assets'!$P$2:$P$1000=Costs!$A699)*('Fixed assets'!$U$2:$U$1000=Costs!$A699)*('Fixed assets'!$R$2:$R$1000))","v":0},{"$f":"SUMPRODUCT(('Fixed assets'!$R$2:$R$1000)*('Fixed assets'!$P$2:$P$1000<$A699)*('Fixed assets'!$Q$2:$Q$1000=Costs!AE$617))-SUMPRODUCT(('Fixed assets'!$S$2:$S$1000)*('Fixed assets'!$P$2:$P$1000<Costs!$A699)*('Fixed assets'!$Q$2:$Q$1000=Costs!AE$617))-SUMPRODUCT(('Fixed assets'!$Q$2:$Q$1000=Costs!AE$617)*('Fixed assets'!$U$2:$U$1000=Costs!$A699)*('Fixed assets'!$S$2:$S$1000))+SUMPRODUCT(('Fixed assets'!$Q$2:$Q$1000=Costs!AE$617)*('Fixed assets'!$P$2:$P$1000=Costs!$A699)*('Fixed assets'!$U$2:$U$1000=Costs!$A699)*('Fixed assets'!$R$2:$R$1000))","v":0},{"$f":"SUMPRODUCT(('Fixed assets'!$R$2:$R$1000)*('Fixed assets'!$P$2:$P$1000<$A699)*('Fixed assets'!$Q$2:$Q$1000=Costs!AF$617))-SUMPRODUCT(('Fixed assets'!$S$2:$S$1000)*('Fixed assets'!$P$2:$P$1000<Costs!$A699)*('Fixed assets'!$Q$2:$Q$1000=Costs!AF$617))-SUMPRODUCT(('Fixed assets'!$Q$2:$Q$1000=Costs!AF$617)*('Fixed assets'!$U$2:$U$1000=Costs!$A699)*('Fixed assets'!$S$2:$S$1000))+SUMPRODUCT(('Fixed assets'!$Q$2:$Q$1000=Costs!AF$617)*('Fixed assets'!$P$2:$P$1000=Costs!$A699)*('Fixed assets'!$U$2:$U$1000=Costs!$A699)*('Fixed assets'!$R$2:$R$1000))","v":0},{"$f":"SUMPRODUCT(('Fixed assets'!$R$2:$R$1000)*('Fixed assets'!$P$2:$P$1000<$A699)*('Fixed assets'!$Q$2:$Q$1000=Costs!AG$617))-SUMPRODUCT(('Fixed assets'!$S$2:$S$1000)*('Fixed assets'!$P$2:$P$1000<Costs!$A699)*('Fixed assets'!$Q$2:$Q$1000=Costs!AG$617))-SUMPRODUCT(('Fixed assets'!$Q$2:$Q$1000=Costs!AG$617)*('Fixed assets'!$U$2:$U$1000=Costs!$A699)*('Fixed assets'!$S$2:$S$1000))+SUMPRODUCT(('Fixed assets'!$Q$2:$Q$1000=Costs!AG$617)*('Fixed assets'!$P$2:$P$1000=Costs!$A699)*('Fixed assets'!$U$2:$U$1000=Costs!$A699)*('Fixed assets'!$R$2:$R$1000))","v":0},{"$f":"SUMPRODUCT(('Fixed assets'!$R$2:$R$1000)*('Fixed assets'!$P$2:$P$1000<$A699)*('Fixed assets'!$Q$2:$Q$1000=Costs!AH$617))-SUMPRODUCT(('Fixed assets'!$S$2:$S$1000)*('Fixed assets'!$P$2:$P$1000<Costs!$A699)*('Fixed assets'!$Q$2:$Q$1000=Costs!AH$617))-SUMPRODUCT(('Fixed assets'!$Q$2:$Q$1000=Costs!AH$617)*('Fixed assets'!$U$2:$U$1000=Costs!$A699)*('Fixed assets'!$S$2:$S$1000))+SUMPRODUCT(('Fixed assets'!$Q$2:$Q$1000=Costs!AH$617)*('Fixed assets'!$P$2:$P$1000=Costs!$A699)*('Fixed assets'!$U$2:$U$1000=Costs!$A699)*('Fixed assets'!$R$2:$R$1000))","v":0},{"$f":"SUMPRODUCT(('Fixed assets'!$R$2:$R$1000)*('Fixed assets'!$P$2:$P$1000<$A699)*('Fixed assets'!$Q$2:$Q$1000=Costs!AI$617))-SUMPRODUCT(('Fixed assets'!$S$2:$S$1000)*('Fixed assets'!$P$2:$P$1000<Costs!$A699)*('Fixed assets'!$Q$2:$Q$1000=Costs!AI$617))-SUMPRODUCT(('Fixed assets'!$Q$2:$Q$1000=Costs!AI$617)*('Fixed assets'!$U$2:$U$1000=Costs!$A699)*('Fixed assets'!$S$2:$S$1000))+SUMPRODUCT(('Fixed assets'!$Q$2:$Q$1000=Costs!AI$617)*('Fixed assets'!$P$2:$P$1000=Costs!$A699)*('Fixed assets'!$U$2:$U$1000=Costs!$A699)*('Fixed assets'!$R$2:$R$1000))","v":0},{"$f":"SUMPRODUCT(('Fixed assets'!$R$2:$R$1000)*('Fixed assets'!$P$2:$P$1000<$A699)*('Fixed assets'!$Q$2:$Q$1000=Costs!AJ$617))-SUMPRODUCT(('Fixed assets'!$S$2:$S$1000)*('Fixed assets'!$P$2:$P$1000<Costs!$A699)*('Fixed assets'!$Q$2:$Q$1000=Costs!AJ$617))-SUMPRODUCT(('Fixed assets'!$Q$2:$Q$1000=Costs!AJ$617)*('Fixed assets'!$U$2:$U$1000=Costs!$A699)*('Fixed assets'!$S$2:$S$1000))+SUMPRODUCT(('Fixed assets'!$Q$2:$Q$1000=Costs!AJ$617)*('Fixed assets'!$P$2:$P$1000=Costs!$A699)*('Fixed assets'!$U$2:$U$1000=Costs!$A699)*('Fixed assets'!$R$2:$R$1000))","v":0},{"$f":"SUMPRODUCT(('Fixed assets'!$R$2:$R$1000)*('Fixed assets'!$P$2:$P$1000<$A699)*('Fixed assets'!$Q$2:$Q$1000=Costs!AK$617))-SUMPRODUCT(('Fixed assets'!$S$2:$S$1000)*('Fixed assets'!$P$2:$P$1000<Costs!$A699)*('Fixed assets'!$Q$2:$Q$1000=Costs!AK$617))-SUMPRODUCT(('Fixed assets'!$Q$2:$Q$1000=Costs!AK$617)*('Fixed assets'!$U$2:$U$1000=Costs!$A699)*('Fixed assets'!$S$2:$S$1000))+SUMPRODUCT(('Fixed assets'!$Q$2:$Q$1000=Costs!AK$617)*('Fixed assets'!$P$2:$P$1000=Costs!$A699)*('Fixed assets'!$U$2:$U$1000=Costs!$A699)*('Fixed assets'!$R$2:$R$1000))","v":0},{"$f":"SUMPRODUCT(('Fixed assets'!$R$2:$R$1000)*('Fixed assets'!$P$2:$P$1000<$A699)*('Fixed assets'!$Q$2:$Q$1000=Costs!AL$617))-SUMPRODUCT(('Fixed assets'!$S$2:$S$1000)*('Fixed assets'!$P$2:$P$1000<Costs!$A699)*('Fixed assets'!$Q$2:$Q$1000=Costs!AL$617))-SUMPRODUCT(('Fixed assets'!$Q$2:$Q$1000=Costs!AL$617)*('Fixed assets'!$U$2:$U$1000=Costs!$A699)*('Fixed assets'!$S$2:$S$1000))+SUMPRODUCT(('Fixed assets'!$Q$2:$Q$1000=Costs!AL$617)*('Fixed assets'!$P$2:$P$1000=Costs!$A699)*('Fixed assets'!$U$2:$U$1000=Costs!$A699)*('Fixed assets'!$R$2:$R$1000))","v":0},{"$f":"SUMPRODUCT(('Fixed assets'!$R$2:$R$1000)*('Fixed assets'!$P$2:$P$1000<$A699)*('Fixed assets'!$Q$2:$Q$1000=Costs!AM$617))-SUMPRODUCT(('Fixed assets'!$S$2:$S$1000)*('Fixed assets'!$P$2:$P$1000<Costs!$A699)*('Fixed assets'!$Q$2:$Q$1000=Costs!AM$617))-SUMPRODUCT(('Fixed assets'!$Q$2:$Q$1000=Costs!AM$617)*('Fixed assets'!$U$2:$U$1000=Costs!$A699)*('Fixed assets'!$S$2:$S$1000))+SUMPRODUCT(('Fixed assets'!$Q$2:$Q$1000=Costs!AM$617)*('Fixed assets'!$P$2:$P$1000=Costs!$A699)*('Fixed assets'!$U$2:$U$1000=Costs!$A699)*('Fixed assets'!$R$2:$R$1000))","v":0},{"$f":"SUMPRODUCT(('Fixed assets'!$R$2:$R$1000)*('Fixed assets'!$P$2:$P$1000<$A699)*('Fixed assets'!$Q$2:$Q$1000=Costs!AN$617))-SUMPRODUCT(('Fixed assets'!$S$2:$S$1000)*('Fixed assets'!$P$2:$P$1000<Costs!$A699)*('Fixed assets'!$Q$2:$Q$1000=Costs!AN$617))-SUMPRODUCT(('Fixed assets'!$Q$2:$Q$1000=Costs!AN$617)*('Fixed assets'!$U$2:$U$1000=Costs!$A699)*('Fixed assets'!$S$2:$S$1000))+SUMPRODUCT(('Fixed assets'!$Q$2:$Q$1000=Costs!AN$617)*('Fixed assets'!$P$2:$P$1000=Costs!$A699)*('Fixed assets'!$U$2:$U$1000=Costs!$A699)*('Fixed assets'!$R$2:$R$1000))","v":0},{"$f":"SUMPRODUCT(('Fixed assets'!$R$2:$R$1000)*('Fixed assets'!$P$2:$P$1000<$A699)*('Fixed assets'!$Q$2:$Q$1000=Costs!AO$617))-SUMPRODUCT(('Fixed assets'!$S$2:$S$1000)*('Fixed assets'!$P$2:$P$1000<Costs!$A699)*('Fixed assets'!$Q$2:$Q$1000=Costs!AO$617))-SUMPRODUCT(('Fixed assets'!$Q$2:$Q$1000=Costs!AO$617)*('Fixed assets'!$U$2:$U$1000=Costs!$A699)*('Fixed assets'!$S$2:$S$1000))+SUMPRODUCT(('Fixed assets'!$Q$2:$Q$1000=Costs!AO$617)*('Fixed assets'!$P$2:$P$1000=Costs!$A699)*('Fixed assets'!$U$2:$U$1000=Costs!$A699)*('Fixed assets'!$R$2:$R$1000))","v":0},{"$f":"SUMPRODUCT(('Fixed assets'!$R$2:$R$1000)*('Fixed assets'!$P$2:$P$1000<$A699)*('Fixed assets'!$Q$2:$Q$1000=Costs!AP$617))-SUMPRODUCT(('Fixed assets'!$S$2:$S$1000)*('Fixed assets'!$P$2:$P$1000<Costs!$A699)*('Fixed assets'!$Q$2:$Q$1000=Costs!AP$617))-SUMPRODUCT(('Fixed assets'!$Q$2:$Q$1000=Costs!AP$617)*('Fixed assets'!$U$2:$U$1000=Costs!$A699)*('Fixed assets'!$S$2:$S$1000))+SUMPRODUCT(('Fixed assets'!$Q$2:$Q$1000=Costs!AP$617)*('Fixed assets'!$P$2:$P$1000=Costs!$A699)*('Fixed assets'!$U$2:$U$1000=Costs!$A699)*('Fixed assets'!$R$2:$R$1000))","v":0},{"$f":"SUMPRODUCT(('Fixed assets'!$R$2:$R$1000)*('Fixed assets'!$P$2:$P$1000<$A699)*('Fixed assets'!$Q$2:$Q$1000=Costs!AQ$617))-SUMPRODUCT(('Fixed assets'!$S$2:$S$1000)*('Fixed assets'!$P$2:$P$1000<Costs!$A699)*('Fixed assets'!$Q$2:$Q$1000=Costs!AQ$617))-SUMPRODUCT(('Fixed assets'!$Q$2:$Q$1000=Costs!AQ$617)*('Fixed assets'!$U$2:$U$1000=Costs!$A699)*('Fixed assets'!$S$2:$S$1000))+SUMPRODUCT(('Fixed assets'!$Q$2:$Q$1000=Costs!AQ$617)*('Fixed assets'!$P$2:$P$1000=Costs!$A699)*('Fixed assets'!$U$2:$U$1000=Costs!$A699)*('Fixed assets'!$R$2:$R$1000))","v":0}]
[2097,0,{"$f":"SUMPRODUCT(('Fixed assets'!$R$2:$R$1000)*('Fixed assets'!$P$2:$P$1000<$A700)*('Fixed assets'!$Q$2:$Q$1000=Costs!C$617))-SUMPRODUCT(('Fixed assets'!$S$2:$S$1000)*('Fixed assets'!$P$2:$P$1000<Costs!$A700)*('Fixed assets'!$Q$2:$Q$1000=Costs!C$617))-SUMPRODUCT(('Fixed assets'!$Q$2:$Q$1000=Costs!C$617)*('Fixed assets'!$U$2:$U$1000=Costs!$A700)*('Fixed assets'!$S$2:$S$1000))+SUMPRODUCT(('Fixed assets'!$Q$2:$Q$1000=Costs!C$617)*('Fixed assets'!$P$2:$P$1000=Costs!$A700)*('Fixed assets'!$U$2:$U$1000=Costs!$A700)*('Fixed assets'!$R$2:$R$1000))","v":0},{"$f":"SUMPRODUCT(('Fixed assets'!$R$2:$R$1000)*('Fixed assets'!$P$2:$P$1000<$A700)*('Fixed assets'!$Q$2:$Q$1000=Costs!D$617))-SUMPRODUCT(('Fixed assets'!$S$2:$S$1000)*('Fixed assets'!$P$2:$P$1000<Costs!$A700)*('Fixed assets'!$Q$2:$Q$1000=Costs!D$617))-SUMPRODUCT(('Fixed assets'!$Q$2:$Q$1000=Costs!D$617)*('Fixed assets'!$U$2:$U$1000=Costs!$A700)*('Fixed assets'!$S$2:$S$1000))+SUMPRODUCT(('Fixed assets'!$Q$2:$Q$1000=Costs!D$617)*('Fixed assets'!$P$2:$P$1000=Costs!$A700)*('Fixed assets'!$U$2:$U$1000=Costs!$A700)*('Fixed assets'!$R$2:$R$1000))","v":0},{"$f":"SUMPRODUCT(('Fixed assets'!$R$2:$R$1000)*('Fixed assets'!$P$2:$P$1000<$A700)*('Fixed assets'!$Q$2:$Q$1000=Costs!E$617))-SUMPRODUCT(('Fixed assets'!$S$2:$S$1000)*('Fixed assets'!$P$2:$P$1000<Costs!$A700)*('Fixed assets'!$Q$2:$Q$1000=Costs!E$617))-SUMPRODUCT(('Fixed assets'!$Q$2:$Q$1000=Costs!E$617)*('Fixed assets'!$U$2:$U$1000=Costs!$A700)*('Fixed assets'!$S$2:$S$1000))+SUMPRODUCT(('Fixed assets'!$Q$2:$Q$1000=Costs!E$617)*('Fixed assets'!$P$2:$P$1000=Costs!$A700)*('Fixed assets'!$U$2:$U$1000=Costs!$A700)*('Fixed assets'!$R$2:$R$1000))","v":0},{"$f":"SUMPRODUCT(('Fixed assets'!$R$2:$R$1000)*('Fixed assets'!$P$2:$P$1000<$A700)*('Fixed assets'!$Q$2:$Q$1000=Costs!F$617))-SUMPRODUCT(('Fixed assets'!$S$2:$S$1000)*('Fixed assets'!$P$2:$P$1000<Costs!$A700)*('Fixed assets'!$Q$2:$Q$1000=Costs!F$617))-SUMPRODUCT(('Fixed assets'!$Q$2:$Q$1000=Costs!F$617)*('Fixed assets'!$U$2:$U$1000=Costs!$A700)*('Fixed assets'!$S$2:$S$1000))+SUMPRODUCT(('Fixed assets'!$Q$2:$Q$1000=Costs!F$617)*('Fixed assets'!$P$2:$P$1000=Costs!$A700)*('Fixed assets'!$U$2:$U$1000=Costs!$A700)*('Fixed assets'!$R$2:$R$1000))","v":0},{"$f":"SUMPRODUCT(('Fixed assets'!$R$2:$R$1000)*('Fixed assets'!$P$2:$P$1000<$A700)*('Fixed assets'!$Q$2:$Q$1000=Costs!G$617))-SUMPRODUCT(('Fixed assets'!$S$2:$S$1000)*('Fixed assets'!$P$2:$P$1000<Costs!$A700)*('Fixed assets'!$Q$2:$Q$1000=Costs!G$617))-SUMPRODUCT(('Fixed assets'!$Q$2:$Q$1000=Costs!G$617)*('Fixed assets'!$U$2:$U$1000=Costs!$A700)*('Fixed assets'!$S$2:$S$1000))+SUMPRODUCT(('Fixed assets'!$Q$2:$Q$1000=Costs!G$617)*('Fixed assets'!$P$2:$P$1000=Costs!$A700)*('Fixed assets'!$U$2:$U$1000=Costs!$A700)*('Fixed assets'!$R$2:$R$1000))","v":0},{"$f":"SUMPRODUCT(('Fixed assets'!$R$2:$R$1000)*('Fixed assets'!$P$2:$P$1000<$A700)*('Fixed assets'!$Q$2:$Q$1000=Costs!H$617))-SUMPRODUCT(('Fixed assets'!$S$2:$S$1000)*('Fixed assets'!$P$2:$P$1000<Costs!$A700)*('Fixed assets'!$Q$2:$Q$1000=Costs!H$617))-SUMPRODUCT(('Fixed assets'!$Q$2:$Q$1000=Costs!H$617)*('Fixed assets'!$U$2:$U$1000=Costs!$A700)*('Fixed assets'!$S$2:$S$1000))+SUMPRODUCT(('Fixed assets'!$Q$2:$Q$1000=Costs!H$617)*('Fixed assets'!$P$2:$P$1000=Costs!$A700)*('Fixed assets'!$U$2:$U$1000=Costs!$A700)*('Fixed assets'!$R$2:$R$1000))","v":0},{"$f":"SUMPRODUCT(('Fixed assets'!$R$2:$R$1000)*('Fixed assets'!$P$2:$P$1000<$A700)*('Fixed assets'!$Q$2:$Q$1000=Costs!I$617))-SUMPRODUCT(('Fixed assets'!$S$2:$S$1000)*('Fixed assets'!$P$2:$P$1000<Costs!$A700)*('Fixed assets'!$Q$2:$Q$1000=Costs!I$617))-SUMPRODUCT(('Fixed assets'!$Q$2:$Q$1000=Costs!I$617)*('Fixed assets'!$U$2:$U$1000=Costs!$A700)*('Fixed assets'!$S$2:$S$1000))+SUMPRODUCT(('Fixed assets'!$Q$2:$Q$1000=Costs!I$617)*('Fixed assets'!$P$2:$P$1000=Costs!$A700)*('Fixed assets'!$U$2:$U$1000=Costs!$A700)*('Fixed assets'!$R$2:$R$1000))","v":0},{"$f":"SUMPRODUCT(('Fixed assets'!$R$2:$R$1000)*('Fixed assets'!$P$2:$P$1000<$A700)*('Fixed assets'!$Q$2:$Q$1000=Costs!J$617))-SUMPRODUCT(('Fixed assets'!$S$2:$S$1000)*('Fixed assets'!$P$2:$P$1000<Costs!$A700)*('Fixed assets'!$Q$2:$Q$1000=Costs!J$617))-SUMPRODUCT(('Fixed assets'!$Q$2:$Q$1000=Costs!J$617)*('Fixed assets'!$U$2:$U$1000=Costs!$A700)*('Fixed assets'!$S$2:$S$1000))+SUMPRODUCT(('Fixed assets'!$Q$2:$Q$1000=Costs!J$617)*('Fixed assets'!$P$2:$P$1000=Costs!$A700)*('Fixed assets'!$U$2:$U$1000=Costs!$A700)*('Fixed assets'!$R$2:$R$1000))","v":0},{"$f":"SUMPRODUCT(('Fixed assets'!$R$2:$R$1000)*('Fixed assets'!$P$2:$P$1000<$A700)*('Fixed assets'!$Q$2:$Q$1000=Costs!K$617))-SUMPRODUCT(('Fixed assets'!$S$2:$S$1000)*('Fixed assets'!$P$2:$P$1000<Costs!$A700)*('Fixed assets'!$Q$2:$Q$1000=Costs!K$617))-SUMPRODUCT(('Fixed assets'!$Q$2:$Q$1000=Costs!K$617)*('Fixed assets'!$U$2:$U$1000=Costs!$A700)*('Fixed assets'!$S$2:$S$1000))+SUMPRODUCT(('Fixed assets'!$Q$2:$Q$1000=Costs!K$617)*('Fixed assets'!$P$2:$P$1000=Costs!$A700)*('Fixed assets'!$U$2:$U$1000=Costs!$A700)*('Fixed assets'!$R$2:$R$1000))","v":0},{"$f":"SUMPRODUCT(('Fixed assets'!$R$2:$R$1000)*('Fixed assets'!$P$2:$P$1000<$A700)*('Fixed assets'!$Q$2:$Q$1000=Costs!L$617))-SUMPRODUCT(('Fixed assets'!$S$2:$S$1000)*('Fixed assets'!$P$2:$P$1000<Costs!$A700)*('Fixed assets'!$Q$2:$Q$1000=Costs!L$617))-SUMPRODUCT(('Fixed assets'!$Q$2:$Q$1000=Costs!L$617)*('Fixed assets'!$U$2:$U$1000=Costs!$A700)*('Fixed assets'!$S$2:$S$1000))+SUMPRODUCT(('Fixed assets'!$Q$2:$Q$1000=Costs!L$617)*('Fixed assets'!$P$2:$P$1000=Costs!$A700)*('Fixed assets'!$U$2:$U$1000=Costs!$A700)*('Fixed assets'!$R$2:$R$1000))","v":0},{"$f":"SUMPRODUCT(('Fixed assets'!$R$2:$R$1000)*('Fixed assets'!$P$2:$P$1000<$A700)*('Fixed assets'!$Q$2:$Q$1000=Costs!M$617))-SUMPRODUCT(('Fixed assets'!$S$2:$S$1000)*('Fixed assets'!$P$2:$P$1000<Costs!$A700)*('Fixed assets'!$Q$2:$Q$1000=Costs!M$617))-SUMPRODUCT(('Fixed assets'!$Q$2:$Q$1000=Costs!M$617)*('Fixed assets'!$U$2:$U$1000=Costs!$A700)*('Fixed assets'!$S$2:$S$1000))+SUMPRODUCT(('Fixed assets'!$Q$2:$Q$1000=Costs!M$617)*('Fixed assets'!$P$2:$P$1000=Costs!$A700)*('Fixed assets'!$U$2:$U$1000=Costs!$A700)*('Fixed assets'!$R$2:$R$1000))","v":0},{"$f":"SUMPRODUCT(('Fixed assets'!$R$2:$R$1000)*('Fixed assets'!$P$2:$P$1000<$A700)*('Fixed assets'!$Q$2:$Q$1000=Costs!N$617))-SUMPRODUCT(('Fixed assets'!$S$2:$S$1000)*('Fixed assets'!$P$2:$P$1000<Costs!$A700)*('Fixed assets'!$Q$2:$Q$1000=Costs!N$617))-SUMPRODUCT(('Fixed assets'!$Q$2:$Q$1000=Costs!N$617)*('Fixed assets'!$U$2:$U$1000=Costs!$A700)*('Fixed assets'!$S$2:$S$1000))+SUMPRODUCT(('Fixed assets'!$Q$2:$Q$1000=Costs!N$617)*('Fixed assets'!$P$2:$P$1000=Costs!$A700)*('Fixed assets'!$U$2:$U$1000=Costs!$A700)*('Fixed assets'!$R$2:$R$1000))","v":0},{"$f":"SUMPRODUCT(('Fixed assets'!$R$2:$R$1000)*('Fixed assets'!$P$2:$P$1000<$A700)*('Fixed assets'!$Q$2:$Q$1000=Costs!O$617))-SUMPRODUCT(('Fixed assets'!$S$2:$S$1000)*('Fixed assets'!$P$2:$P$1000<Costs!$A700)*('Fixed assets'!$Q$2:$Q$1000=Costs!O$617))-SUMPRODUCT(('Fixed assets'!$Q$2:$Q$1000=Costs!O$617)*('Fixed assets'!$U$2:$U$1000=Costs!$A700)*('Fixed assets'!$S$2:$S$1000))+SUMPRODUCT(('Fixed assets'!$Q$2:$Q$1000=Costs!O$617)*('Fixed assets'!$P$2:$P$1000=Costs!$A700)*('Fixed assets'!$U$2:$U$1000=Costs!$A700)*('Fixed assets'!$R$2:$R$1000))","v":0},{"$f":"SUMPRODUCT(('Fixed assets'!$R$2:$R$1000)*('Fixed assets'!$P$2:$P$1000<$A700)*('Fixed assets'!$Q$2:$Q$1000=Costs!P$617))-SUMPRODUCT(('Fixed assets'!$S$2:$S$1000)*('Fixed assets'!$P$2:$P$1000<Costs!$A700)*('Fixed assets'!$Q$2:$Q$1000=Costs!P$617))-SUMPRODUCT(('Fixed assets'!$Q$2:$Q$1000=Costs!P$617)*('Fixed assets'!$U$2:$U$1000=Costs!$A700)*('Fixed assets'!$S$2:$S$1000))+SUMPRODUCT(('Fixed assets'!$Q$2:$Q$1000=Costs!P$617)*('Fixed assets'!$P$2:$P$1000=Costs!$A700)*('Fixed assets'!$U$2:$U$1000=Costs!$A700)*('Fixed assets'!$R$2:$R$1000))","v":0},{"$f":"SUMPRODUCT(('Fixed assets'!$R$2:$R$1000)*('Fixed assets'!$P$2:$P$1000<$A700)*('Fixed assets'!$Q$2:$Q$1000=Costs!Q$617))-SUMPRODUCT(('Fixed assets'!$S$2:$S$1000)*('Fixed assets'!$P$2:$P$1000<Costs!$A700)*('Fixed assets'!$Q$2:$Q$1000=Costs!Q$617))-SUMPRODUCT(('Fixed assets'!$Q$2:$Q$1000=Costs!Q$617)*('Fixed assets'!$U$2:$U$1000=Costs!$A700)*('Fixed assets'!$S$2:$S$1000))+SUMPRODUCT(('Fixed assets'!$Q$2:$Q$1000=Costs!Q$617)*('Fixed assets'!$P$2:$P$1000=Costs!$A700)*('Fixed assets'!$U$2:$U$1000=Costs!$A700)*('Fixed assets'!$R$2:$R$1000))","v":0},{"$f":"SUMPRODUCT(('Fixed assets'!$R$2:$R$1000)*('Fixed assets'!$P$2:$P$1000<$A700)*('Fixed assets'!$Q$2:$Q$1000=Costs!R$617))-SUMPRODUCT(('Fixed assets'!$S$2:$S$1000)*('Fixed assets'!$P$2:$P$1000<Costs!$A700)*('Fixed assets'!$Q$2:$Q$1000=Costs!R$617))-SUMPRODUCT(('Fixed assets'!$Q$2:$Q$1000=Costs!R$617)*('Fixed assets'!$U$2:$U$1000=Costs!$A700)*('Fixed assets'!$S$2:$S$1000))+SUMPRODUCT(('Fixed assets'!$Q$2:$Q$1000=Costs!R$617)*('Fixed assets'!$P$2:$P$1000=Costs!$A700)*('Fixed assets'!$U$2:$U$1000=Costs!$A700)*('Fixed assets'!$R$2:$R$1000))","v":0},{"$f":"SUMPRODUCT(('Fixed assets'!$R$2:$R$1000)*('Fixed assets'!$P$2:$P$1000<$A700)*('Fixed assets'!$Q$2:$Q$1000=Costs!S$617))-SUMPRODUCT(('Fixed assets'!$S$2:$S$1000)*('Fixed assets'!$P$2:$P$1000<Costs!$A700)*('Fixed assets'!$Q$2:$Q$1000=Costs!S$617))-SUMPRODUCT(('Fixed assets'!$Q$2:$Q$1000=Costs!S$617)*('Fixed assets'!$U$2:$U$1000=Costs!$A700)*('Fixed assets'!$S$2:$S$1000))+SUMPRODUCT(('Fixed assets'!$Q$2:$Q$1000=Costs!S$617)*('Fixed assets'!$P$2:$P$1000=Costs!$A700)*('Fixed assets'!$U$2:$U$1000=Costs!$A700)*('Fixed assets'!$R$2:$R$1000))","v":0},{"$f":"SUMPRODUCT(('Fixed assets'!$R$2:$R$1000)*('Fixed assets'!$P$2:$P$1000<$A700)*('Fixed assets'!$Q$2:$Q$1000=Costs!T$617))-SUMPRODUCT(('Fixed assets'!$S$2:$S$1000)*('Fixed assets'!$P$2:$P$1000<Costs!$A700)*('Fixed assets'!$Q$2:$Q$1000=Costs!T$617))-SUMPRODUCT(('Fixed assets'!$Q$2:$Q$1000=Costs!T$617)*('Fixed assets'!$U$2:$U$1000=Costs!$A700)*('Fixed assets'!$S$2:$S$1000))+SUMPRODUCT(('Fixed assets'!$Q$2:$Q$1000=Costs!T$617)*('Fixed assets'!$P$2:$P$1000=Costs!$A700)*('Fixed assets'!$U$2:$U$1000=Costs!$A700)*('Fixed assets'!$R$2:$R$1000))","v":0},{"$f":"SUMPRODUCT(('Fixed assets'!$R$2:$R$1000)*('Fixed assets'!$P$2:$P$1000<$A700)*('Fixed assets'!$Q$2:$Q$1000=Costs!U$617))-SUMPRODUCT(('Fixed assets'!$S$2:$S$1000)*('Fixed assets'!$P$2:$P$1000<Costs!$A700)*('Fixed assets'!$Q$2:$Q$1000=Costs!U$617))-SUMPRODUCT(('Fixed assets'!$Q$2:$Q$1000=Costs!U$617)*('Fixed assets'!$U$2:$U$1000=Costs!$A700)*('Fixed assets'!$S$2:$S$1000))+SUMPRODUCT(('Fixed assets'!$Q$2:$Q$1000=Costs!U$617)*('Fixed assets'!$P$2:$P$1000=Costs!$A700)*('Fixed assets'!$U$2:$U$1000=Costs!$A700)*('Fixed assets'!$R$2:$R$1000))","v":0},{"$f":"SUMPRODUCT(('Fixed assets'!$R$2:$R$1000)*('Fixed assets'!$P$2:$P$1000<$A700)*('Fixed assets'!$Q$2:$Q$1000=Costs!V$617))-SUMPRODUCT(('Fixed assets'!$S$2:$S$1000)*('Fixed assets'!$P$2:$P$1000<Costs!$A700)*('Fixed assets'!$Q$2:$Q$1000=Costs!V$617))-SUMPRODUCT(('Fixed assets'!$Q$2:$Q$1000=Costs!V$617)*('Fixed assets'!$U$2:$U$1000=Costs!$A700)*('Fixed assets'!$S$2:$S$1000))+SUMPRODUCT(('Fixed assets'!$Q$2:$Q$1000=Costs!V$617)*('Fixed assets'!$P$2:$P$1000=Costs!$A700)*('Fixed assets'!$U$2:$U$1000=Costs!$A700)*('Fixed assets'!$R$2:$R$1000))","v":0},{"$f":"SUMPRODUCT(('Fixed assets'!$R$2:$R$1000)*('Fixed assets'!$P$2:$P$1000<$A700)*('Fixed assets'!$Q$2:$Q$1000=Costs!W$617))-SUMPRODUCT(('Fixed assets'!$S$2:$S$1000)*('Fixed assets'!$P$2:$P$1000<Costs!$A700)*('Fixed assets'!$Q$2:$Q$1000=Costs!W$617))-SUMPRODUCT(('Fixed assets'!$Q$2:$Q$1000=Costs!W$617)*('Fixed assets'!$U$2:$U$1000=Costs!$A700)*('Fixed assets'!$S$2:$S$1000))+SUMPRODUCT(('Fixed assets'!$Q$2:$Q$1000=Costs!W$617)*('Fixed assets'!$P$2:$P$1000=Costs!$A700)*('Fixed assets'!$U$2:$U$1000=Costs!$A700)*('Fixed assets'!$R$2:$R$1000))","v":0},{"$f":"SUMPRODUCT(('Fixed assets'!$R$2:$R$1000)*('Fixed assets'!$P$2:$P$1000<$A700)*('Fixed assets'!$Q$2:$Q$1000=Costs!X$617))-SUMPRODUCT(('Fixed assets'!$S$2:$S$1000)*('Fixed assets'!$P$2:$P$1000<Costs!$A700)*('Fixed assets'!$Q$2:$Q$1000=Costs!X$617))-SUMPRODUCT(('Fixed assets'!$Q$2:$Q$1000=Costs!X$617)*('Fixed assets'!$U$2:$U$1000=Costs!$A700)*('Fixed assets'!$S$2:$S$1000))+SUMPRODUCT(('Fixed assets'!$Q$2:$Q$1000=Costs!X$617)*('Fixed assets'!$P$2:$P$1000=Costs!$A700)*('Fixed assets'!$U$2:$U$1000=Costs!$A700)*('Fixed assets'!$R$2:$R$1000))","v":0},{"$f":"SUMPRODUCT(('Fixed assets'!$R$2:$R$1000)*('Fixed assets'!$P$2:$P$1000<$A700)*('Fixed assets'!$Q$2:$Q$1000=Costs!Y$617))-SUMPRODUCT(('Fixed assets'!$S$2:$S$1000)*('Fixed assets'!$P$2:$P$1000<Costs!$A700)*('Fixed assets'!$Q$2:$Q$1000=Costs!Y$617))-SUMPRODUCT(('Fixed assets'!$Q$2:$Q$1000=Costs!Y$617)*('Fixed assets'!$U$2:$U$1000=Costs!$A700)*('Fixed assets'!$S$2:$S$1000))+SUMPRODUCT(('Fixed assets'!$Q$2:$Q$1000=Costs!Y$617)*('Fixed assets'!$P$2:$P$1000=Costs!$A700)*('Fixed assets'!$U$2:$U$1000=Costs!$A700)*('Fixed assets'!$R$2:$R$1000))","v":0},{"$f":"SUMPRODUCT(('Fixed assets'!$R$2:$R$1000)*('Fixed assets'!$P$2:$P$1000<$A700)*('Fixed assets'!$Q$2:$Q$1000=Costs!Z$617))-SUMPRODUCT(('Fixed assets'!$S$2:$S$1000)*('Fixed assets'!$P$2:$P$1000<Costs!$A700)*('Fixed assets'!$Q$2:$Q$1000=Costs!Z$617))-SUMPRODUCT(('Fixed assets'!$Q$2:$Q$1000=Costs!Z$617)*('Fixed assets'!$U$2:$U$1000=Costs!$A700)*('Fixed assets'!$S$2:$S$1000))+SUMPRODUCT(('Fixed assets'!$Q$2:$Q$1000=Costs!Z$617)*('Fixed assets'!$P$2:$P$1000=Costs!$A700)*('Fixed assets'!$U$2:$U$1000=Costs!$A700)*('Fixed assets'!$R$2:$R$1000))","v":0},{"$f":"SUMPRODUCT(('Fixed assets'!$R$2:$R$1000)*('Fixed assets'!$P$2:$P$1000<$A700)*('Fixed assets'!$Q$2:$Q$1000=Costs!AA$617))-SUMPRODUCT(('Fixed assets'!$S$2:$S$1000)*('Fixed assets'!$P$2:$P$1000<Costs!$A700)*('Fixed assets'!$Q$2:$Q$1000=Costs!AA$617))-SUMPRODUCT(('Fixed assets'!$Q$2:$Q$1000=Costs!AA$617)*('Fixed assets'!$U$2:$U$1000=Costs!$A700)*('Fixed assets'!$S$2:$S$1000))+SUMPRODUCT(('Fixed assets'!$Q$2:$Q$1000=Costs!AA$617)*('Fixed assets'!$P$2:$P$1000=Costs!$A700)*('Fixed assets'!$U$2:$U$1000=Costs!$A700)*('Fixed assets'!$R$2:$R$1000))","v":0},{"$f":"SUMPRODUCT(('Fixed assets'!$R$2:$R$1000)*('Fixed assets'!$P$2:$P$1000<$A700)*('Fixed assets'!$Q$2:$Q$1000=Costs!AB$617))-SUMPRODUCT(('Fixed assets'!$S$2:$S$1000)*('Fixed assets'!$P$2:$P$1000<Costs!$A700)*('Fixed assets'!$Q$2:$Q$1000=Costs!AB$617))-SUMPRODUCT(('Fixed assets'!$Q$2:$Q$1000=Costs!AB$617)*('Fixed assets'!$U$2:$U$1000=Costs!$A700)*('Fixed assets'!$S$2:$S$1000))+SUMPRODUCT(('Fixed assets'!$Q$2:$Q$1000=Costs!AB$617)*('Fixed assets'!$P$2:$P$1000=Costs!$A700)*('Fixed assets'!$U$2:$U$1000=Costs!$A700)*('Fixed assets'!$R$2:$R$1000))","v":0},{"$f":"SUMPRODUCT(('Fixed assets'!$R$2:$R$1000)*('Fixed assets'!$P$2:$P$1000<$A700)*('Fixed assets'!$Q$2:$Q$1000=Costs!AC$617))-SUMPRODUCT(('Fixed assets'!$S$2:$S$1000)*('Fixed assets'!$P$2:$P$1000<Costs!$A700)*('Fixed assets'!$Q$2:$Q$1000=Costs!AC$617))-SUMPRODUCT(('Fixed assets'!$Q$2:$Q$1000=Costs!AC$617)*('Fixed assets'!$U$2:$U$1000=Costs!$A700)*('Fixed assets'!$S$2:$S$1000))+SUMPRODUCT(('Fixed assets'!$Q$2:$Q$1000=Costs!AC$617)*('Fixed assets'!$P$2:$P$1000=Costs!$A700)*('Fixed assets'!$U$2:$U$1000=Costs!$A700)*('Fixed assets'!$R$2:$R$1000))","v":0},{"$f":"SUMPRODUCT(('Fixed assets'!$R$2:$R$1000)*('Fixed assets'!$P$2:$P$1000<$A700)*('Fixed assets'!$Q$2:$Q$1000=Costs!AD$617))-SUMPRODUCT(('Fixed assets'!$S$2:$S$1000)*('Fixed assets'!$P$2:$P$1000<Costs!$A700)*('Fixed assets'!$Q$2:$Q$1000=Costs!AD$617))-SUMPRODUCT(('Fixed assets'!$Q$2:$Q$1000=Costs!AD$617)*('Fixed assets'!$U$2:$U$1000=Costs!$A700)*('Fixed assets'!$S$2:$S$1000))+SUMPRODUCT(('Fixed assets'!$Q$2:$Q$1000=Costs!AD$617)*('Fixed assets'!$P$2:$P$1000=Costs!$A700)*('Fixed assets'!$U$2:$U$1000=Costs!$A700)*('Fixed assets'!$R$2:$R$1000))","v":0},{"$f":"SUMPRODUCT(('Fixed assets'!$R$2:$R$1000)*('Fixed assets'!$P$2:$P$1000<$A700)*('Fixed assets'!$Q$2:$Q$1000=Costs!AE$617))-SUMPRODUCT(('Fixed assets'!$S$2:$S$1000)*('Fixed assets'!$P$2:$P$1000<Costs!$A700)*('Fixed assets'!$Q$2:$Q$1000=Costs!AE$617))-SUMPRODUCT(('Fixed assets'!$Q$2:$Q$1000=Costs!AE$617)*('Fixed assets'!$U$2:$U$1000=Costs!$A700)*('Fixed assets'!$S$2:$S$1000))+SUMPRODUCT(('Fixed assets'!$Q$2:$Q$1000=Costs!AE$617)*('Fixed assets'!$P$2:$P$1000=Costs!$A700)*('Fixed assets'!$U$2:$U$1000=Costs!$A700)*('Fixed assets'!$R$2:$R$1000))","v":0},{"$f":"SUMPRODUCT(('Fixed assets'!$R$2:$R$1000)*('Fixed assets'!$P$2:$P$1000<$A700)*('Fixed assets'!$Q$2:$Q$1000=Costs!AF$617))-SUMPRODUCT(('Fixed assets'!$S$2:$S$1000)*('Fixed assets'!$P$2:$P$1000<Costs!$A700)*('Fixed assets'!$Q$2:$Q$1000=Costs!AF$617))-SUMPRODUCT(('Fixed assets'!$Q$2:$Q$1000=Costs!AF$617)*('Fixed assets'!$U$2:$U$1000=Costs!$A700)*('Fixed assets'!$S$2:$S$1000))+SUMPRODUCT(('Fixed assets'!$Q$2:$Q$1000=Costs!AF$617)*('Fixed assets'!$P$2:$P$1000=Costs!$A700)*('Fixed assets'!$U$2:$U$1000=Costs!$A700)*('Fixed assets'!$R$2:$R$1000))","v":0},{"$f":"SUMPRODUCT(('Fixed assets'!$R$2:$R$1000)*('Fixed assets'!$P$2:$P$1000<$A700)*('Fixed assets'!$Q$2:$Q$1000=Costs!AG$617))-SUMPRODUCT(('Fixed assets'!$S$2:$S$1000)*('Fixed assets'!$P$2:$P$1000<Costs!$A700)*('Fixed assets'!$Q$2:$Q$1000=Costs!AG$617))-SUMPRODUCT(('Fixed assets'!$Q$2:$Q$1000=Costs!AG$617)*('Fixed assets'!$U$2:$U$1000=Costs!$A700)*('Fixed assets'!$S$2:$S$1000))+SUMPRODUCT(('Fixed assets'!$Q$2:$Q$1000=Costs!AG$617)*('Fixed assets'!$P$2:$P$1000=Costs!$A700)*('Fixed assets'!$U$2:$U$1000=Costs!$A700)*('Fixed assets'!$R$2:$R$1000))","v":0},{"$f":"SUMPRODUCT(('Fixed assets'!$R$2:$R$1000)*('Fixed assets'!$P$2:$P$1000<$A700)*('Fixed assets'!$Q$2:$Q$1000=Costs!AH$617))-SUMPRODUCT(('Fixed assets'!$S$2:$S$1000)*('Fixed assets'!$P$2:$P$1000<Costs!$A700)*('Fixed assets'!$Q$2:$Q$1000=Costs!AH$617))-SUMPRODUCT(('Fixed assets'!$Q$2:$Q$1000=Costs!AH$617)*('Fixed assets'!$U$2:$U$1000=Costs!$A700)*('Fixed assets'!$S$2:$S$1000))+SUMPRODUCT(('Fixed assets'!$Q$2:$Q$1000=Costs!AH$617)*('Fixed assets'!$P$2:$P$1000=Costs!$A700)*('Fixed assets'!$U$2:$U$1000=Costs!$A700)*('Fixed assets'!$R$2:$R$1000))","v":0},{"$f":"SUMPRODUCT(('Fixed assets'!$R$2:$R$1000)*('Fixed assets'!$P$2:$P$1000<$A700)*('Fixed assets'!$Q$2:$Q$1000=Costs!AI$617))-SUMPRODUCT(('Fixed assets'!$S$2:$S$1000)*('Fixed assets'!$P$2:$P$1000<Costs!$A700)*('Fixed assets'!$Q$2:$Q$1000=Costs!AI$617))-SUMPRODUCT(('Fixed assets'!$Q$2:$Q$1000=Costs!AI$617)*('Fixed assets'!$U$2:$U$1000=Costs!$A700)*('Fixed assets'!$S$2:$S$1000))+SUMPRODUCT(('Fixed assets'!$Q$2:$Q$1000=Costs!AI$617)*('Fixed assets'!$P$2:$P$1000=Costs!$A700)*('Fixed assets'!$U$2:$U$1000=Costs!$A700)*('Fixed assets'!$R$2:$R$1000))","v":0},{"$f":"SUMPRODUCT(('Fixed assets'!$R$2:$R$1000)*('Fixed assets'!$P$2:$P$1000<$A700)*('Fixed assets'!$Q$2:$Q$1000=Costs!AJ$617))-SUMPRODUCT(('Fixed assets'!$S$2:$S$1000)*('Fixed assets'!$P$2:$P$1000<Costs!$A700)*('Fixed assets'!$Q$2:$Q$1000=Costs!AJ$617))-SUMPRODUCT(('Fixed assets'!$Q$2:$Q$1000=Costs!AJ$617)*('Fixed assets'!$U$2:$U$1000=Costs!$A700)*('Fixed assets'!$S$2:$S$1000))+SUMPRODUCT(('Fixed assets'!$Q$2:$Q$1000=Costs!AJ$617)*('Fixed assets'!$P$2:$P$1000=Costs!$A700)*('Fixed assets'!$U$2:$U$1000=Costs!$A700)*('Fixed assets'!$R$2:$R$1000))","v":0},{"$f":"SUMPRODUCT(('Fixed assets'!$R$2:$R$1000)*('Fixed assets'!$P$2:$P$1000<$A700)*('Fixed assets'!$Q$2:$Q$1000=Costs!AK$617))-SUMPRODUCT(('Fixed assets'!$S$2:$S$1000)*('Fixed assets'!$P$2:$P$1000<Costs!$A700)*('Fixed assets'!$Q$2:$Q$1000=Costs!AK$617))-SUMPRODUCT(('Fixed assets'!$Q$2:$Q$1000=Costs!AK$617)*('Fixed assets'!$U$2:$U$1000=Costs!$A700)*('Fixed assets'!$S$2:$S$1000))+SUMPRODUCT(('Fixed assets'!$Q$2:$Q$1000=Costs!AK$617)*('Fixed assets'!$P$2:$P$1000=Costs!$A700)*('Fixed assets'!$U$2:$U$1000=Costs!$A700)*('Fixed assets'!$R$2:$R$1000))","v":0},{"$f":"SUMPRODUCT(('Fixed assets'!$R$2:$R$1000)*('Fixed assets'!$P$2:$P$1000<$A700)*('Fixed assets'!$Q$2:$Q$1000=Costs!AL$617))-SUMPRODUCT(('Fixed assets'!$S$2:$S$1000)*('Fixed assets'!$P$2:$P$1000<Costs!$A700)*('Fixed assets'!$Q$2:$Q$1000=Costs!AL$617))-SUMPRODUCT(('Fixed assets'!$Q$2:$Q$1000=Costs!AL$617)*('Fixed assets'!$U$2:$U$1000=Costs!$A700)*('Fixed assets'!$S$2:$S$1000))+SUMPRODUCT(('Fixed assets'!$Q$2:$Q$1000=Costs!AL$617)*('Fixed assets'!$P$2:$P$1000=Costs!$A700)*('Fixed assets'!$U$2:$U$1000=Costs!$A700)*('Fixed assets'!$R$2:$R$1000))","v":0},{"$f":"SUMPRODUCT(('Fixed assets'!$R$2:$R$1000)*('Fixed assets'!$P$2:$P$1000<$A700)*('Fixed assets'!$Q$2:$Q$1000=Costs!AM$617))-SUMPRODUCT(('Fixed assets'!$S$2:$S$1000)*('Fixed assets'!$P$2:$P$1000<Costs!$A700)*('Fixed assets'!$Q$2:$Q$1000=Costs!AM$617))-SUMPRODUCT(('Fixed assets'!$Q$2:$Q$1000=Costs!AM$617)*('Fixed assets'!$U$2:$U$1000=Costs!$A700)*('Fixed assets'!$S$2:$S$1000))+SUMPRODUCT(('Fixed assets'!$Q$2:$Q$1000=Costs!AM$617)*('Fixed assets'!$P$2:$P$1000=Costs!$A700)*('Fixed assets'!$U$2:$U$1000=Costs!$A700)*('Fixed assets'!$R$2:$R$1000))","v":0},{"$f":"SUMPRODUCT(('Fixed assets'!$R$2:$R$1000)*('Fixed assets'!$P$2:$P$1000<$A700)*('Fixed assets'!$Q$2:$Q$1000=Costs!AN$617))-SUMPRODUCT(('Fixed assets'!$S$2:$S$1000)*('Fixed assets'!$P$2:$P$1000<Costs!$A700)*('Fixed assets'!$Q$2:$Q$1000=Costs!AN$617))-SUMPRODUCT(('Fixed assets'!$Q$2:$Q$1000=Costs!AN$617)*('Fixed assets'!$U$2:$U$1000=Costs!$A700)*('Fixed assets'!$S$2:$S$1000))+SUMPRODUCT(('Fixed assets'!$Q$2:$Q$1000=Costs!AN$617)*('Fixed assets'!$P$2:$P$1000=Costs!$A700)*('Fixed assets'!$U$2:$U$1000=Costs!$A700)*('Fixed assets'!$R$2:$R$1000))","v":0},{"$f":"SUMPRODUCT(('Fixed assets'!$R$2:$R$1000)*('Fixed assets'!$P$2:$P$1000<$A700)*('Fixed assets'!$Q$2:$Q$1000=Costs!AO$617))-SUMPRODUCT(('Fixed assets'!$S$2:$S$1000)*('Fixed assets'!$P$2:$P$1000<Costs!$A700)*('Fixed assets'!$Q$2:$Q$1000=Costs!AO$617))-SUMPRODUCT(('Fixed assets'!$Q$2:$Q$1000=Costs!AO$617)*('Fixed assets'!$U$2:$U$1000=Costs!$A700)*('Fixed assets'!$S$2:$S$1000))+SUMPRODUCT(('Fixed assets'!$Q$2:$Q$1000=Costs!AO$617)*('Fixed assets'!$P$2:$P$1000=Costs!$A700)*('Fixed assets'!$U$2:$U$1000=Costs!$A700)*('Fixed assets'!$R$2:$R$1000))","v":0},{"$f":"SUMPRODUCT(('Fixed assets'!$R$2:$R$1000)*('Fixed assets'!$P$2:$P$1000<$A700)*('Fixed assets'!$Q$2:$Q$1000=Costs!AP$617))-SUMPRODUCT(('Fixed assets'!$S$2:$S$1000)*('Fixed assets'!$P$2:$P$1000<Costs!$A700)*('Fixed assets'!$Q$2:$Q$1000=Costs!AP$617))-SUMPRODUCT(('Fixed assets'!$Q$2:$Q$1000=Costs!AP$617)*('Fixed assets'!$U$2:$U$1000=Costs!$A700)*('Fixed assets'!$S$2:$S$1000))+SUMPRODUCT(('Fixed assets'!$Q$2:$Q$1000=Costs!AP$617)*('Fixed assets'!$P$2:$P$1000=Costs!$A700)*('Fixed assets'!$U$2:$U$1000=Costs!$A700)*('Fixed assets'!$R$2:$R$1000))","v":0},{"$f":"SUMPRODUCT(('Fixed assets'!$R$2:$R$1000)*('Fixed assets'!$P$2:$P$1000<$A700)*('Fixed assets'!$Q$2:$Q$1000=Costs!AQ$617))-SUMPRODUCT(('Fixed assets'!$S$2:$S$1000)*('Fixed assets'!$P$2:$P$1000<Costs!$A700)*('Fixed assets'!$Q$2:$Q$1000=Costs!AQ$617))-SUMPRODUCT(('Fixed assets'!$Q$2:$Q$1000=Costs!AQ$617)*('Fixed assets'!$U$2:$U$1000=Costs!$A700)*('Fixed assets'!$S$2:$S$1000))+SUMPRODUCT(('Fixed assets'!$Q$2:$Q$1000=Costs!AQ$617)*('Fixed assets'!$P$2:$P$1000=Costs!$A700)*('Fixed assets'!$U$2:$U$1000=Costs!$A700)*('Fixed assets'!$R$2:$R$1000))","v":0}]
[2098,0,{"$f":"SUMPRODUCT(('Fixed assets'!$R$2:$R$1000)*('Fixed assets'!$P$2:$P$1000<$A701)*('Fixed assets'!$Q$2:$Q$1000=Costs!C$617))-SUMPRODUCT(('Fixed assets'!$S$2:$S$1000)*('Fixed assets'!$P$2:$P$1000<Costs!$A701)*('Fixed assets'!$Q$2:$Q$1000=Costs!C$617))-SUMPRODUCT(('Fixed assets'!$Q$2:$Q$1000=Costs!C$617)*('Fixed assets'!$U$2:$U$1000=Costs!$A701)*('Fixed assets'!$S$2:$S$1000))+SUMPRODUCT(('Fixed assets'!$Q$2:$Q$1000=Costs!C$617)*('Fixed assets'!$P$2:$P$1000=Costs!$A701)*('Fixed assets'!$U$2:$U$1000=Costs!$A701)*('Fixed assets'!$R$2:$R$1000))","v":0},{"$f":"SUMPRODUCT(('Fixed assets'!$R$2:$R$1000)*('Fixed assets'!$P$2:$P$1000<$A701)*('Fixed assets'!$Q$2:$Q$1000=Costs!D$617))-SUMPRODUCT(('Fixed assets'!$S$2:$S$1000)*('Fixed assets'!$P$2:$P$1000<Costs!$A701)*('Fixed assets'!$Q$2:$Q$1000=Costs!D$617))-SUMPRODUCT(('Fixed assets'!$Q$2:$Q$1000=Costs!D$617)*('Fixed assets'!$U$2:$U$1000=Costs!$A701)*('Fixed assets'!$S$2:$S$1000))+SUMPRODUCT(('Fixed assets'!$Q$2:$Q$1000=Costs!D$617)*('Fixed assets'!$P$2:$P$1000=Costs!$A701)*('Fixed assets'!$U$2:$U$1000=Costs!$A701)*('Fixed assets'!$R$2:$R$1000))","v":0},{"$f":"SUMPRODUCT(('Fixed assets'!$R$2:$R$1000)*('Fixed assets'!$P$2:$P$1000<$A701)*('Fixed assets'!$Q$2:$Q$1000=Costs!E$617))-SUMPRODUCT(('Fixed assets'!$S$2:$S$1000)*('Fixed assets'!$P$2:$P$1000<Costs!$A701)*('Fixed assets'!$Q$2:$Q$1000=Costs!E$617))-SUMPRODUCT(('Fixed assets'!$Q$2:$Q$1000=Costs!E$617)*('Fixed assets'!$U$2:$U$1000=Costs!$A701)*('Fixed assets'!$S$2:$S$1000))+SUMPRODUCT(('Fixed assets'!$Q$2:$Q$1000=Costs!E$617)*('Fixed assets'!$P$2:$P$1000=Costs!$A701)*('Fixed assets'!$U$2:$U$1000=Costs!$A701)*('Fixed assets'!$R$2:$R$1000))","v":0},{"$f":"SUMPRODUCT(('Fixed assets'!$R$2:$R$1000)*('Fixed assets'!$P$2:$P$1000<$A701)*('Fixed assets'!$Q$2:$Q$1000=Costs!F$617))-SUMPRODUCT(('Fixed assets'!$S$2:$S$1000)*('Fixed assets'!$P$2:$P$1000<Costs!$A701)*('Fixed assets'!$Q$2:$Q$1000=Costs!F$617))-SUMPRODUCT(('Fixed assets'!$Q$2:$Q$1000=Costs!F$617)*('Fixed assets'!$U$2:$U$1000=Costs!$A701)*('Fixed assets'!$S$2:$S$1000))+SUMPRODUCT(('Fixed assets'!$Q$2:$Q$1000=Costs!F$617)*('Fixed assets'!$P$2:$P$1000=Costs!$A701)*('Fixed assets'!$U$2:$U$1000=Costs!$A701)*('Fixed assets'!$R$2:$R$1000))","v":0},{"$f":"SUMPRODUCT(('Fixed assets'!$R$2:$R$1000)*('Fixed assets'!$P$2:$P$1000<$A701)*('Fixed assets'!$Q$2:$Q$1000=Costs!G$617))-SUMPRODUCT(('Fixed assets'!$S$2:$S$1000)*('Fixed assets'!$P$2:$P$1000<Costs!$A701)*('Fixed assets'!$Q$2:$Q$1000=Costs!G$617))-SUMPRODUCT(('Fixed assets'!$Q$2:$Q$1000=Costs!G$617)*('Fixed assets'!$U$2:$U$1000=Costs!$A701)*('Fixed assets'!$S$2:$S$1000))+SUMPRODUCT(('Fixed assets'!$Q$2:$Q$1000=Costs!G$617)*('Fixed assets'!$P$2:$P$1000=Costs!$A701)*('Fixed assets'!$U$2:$U$1000=Costs!$A701)*('Fixed assets'!$R$2:$R$1000))","v":0},{"$f":"SUMPRODUCT(('Fixed assets'!$R$2:$R$1000)*('Fixed assets'!$P$2:$P$1000<$A701)*('Fixed assets'!$Q$2:$Q$1000=Costs!H$617))-SUMPRODUCT(('Fixed assets'!$S$2:$S$1000)*('Fixed assets'!$P$2:$P$1000<Costs!$A701)*('Fixed assets'!$Q$2:$Q$1000=Costs!H$617))-SUMPRODUCT(('Fixed assets'!$Q$2:$Q$1000=Costs!H$617)*('Fixed assets'!$U$2:$U$1000=Costs!$A701)*('Fixed assets'!$S$2:$S$1000))+SUMPRODUCT(('Fixed assets'!$Q$2:$Q$1000=Costs!H$617)*('Fixed assets'!$P$2:$P$1000=Costs!$A701)*('Fixed assets'!$U$2:$U$1000=Costs!$A701)*('Fixed assets'!$R$2:$R$1000))","v":0},{"$f":"SUMPRODUCT(('Fixed assets'!$R$2:$R$1000)*('Fixed assets'!$P$2:$P$1000<$A701)*('Fixed assets'!$Q$2:$Q$1000=Costs!I$617))-SUMPRODUCT(('Fixed assets'!$S$2:$S$1000)*('Fixed assets'!$P$2:$P$1000<Costs!$A701)*('Fixed assets'!$Q$2:$Q$1000=Costs!I$617))-SUMPRODUCT(('Fixed assets'!$Q$2:$Q$1000=Costs!I$617)*('Fixed assets'!$U$2:$U$1000=Costs!$A701)*('Fixed assets'!$S$2:$S$1000))+SUMPRODUCT(('Fixed assets'!$Q$2:$Q$1000=Costs!I$617)*('Fixed assets'!$P$2:$P$1000=Costs!$A701)*('Fixed assets'!$U$2:$U$1000=Costs!$A701)*('Fixed assets'!$R$2:$R$1000))","v":0},{"$f":"SUMPRODUCT(('Fixed assets'!$R$2:$R$1000)*('Fixed assets'!$P$2:$P$1000<$A701)*('Fixed assets'!$Q$2:$Q$1000=Costs!J$617))-SUMPRODUCT(('Fixed assets'!$S$2:$S$1000)*('Fixed assets'!$P$2:$P$1000<Costs!$A701)*('Fixed assets'!$Q$2:$Q$1000=Costs!J$617))-SUMPRODUCT(('Fixed assets'!$Q$2:$Q$1000=Costs!J$617)*('Fixed assets'!$U$2:$U$1000=Costs!$A701)*('Fixed assets'!$S$2:$S$1000))+SUMPRODUCT(('Fixed assets'!$Q$2:$Q$1000=Costs!J$617)*('Fixed assets'!$P$2:$P$1000=Costs!$A701)*('Fixed assets'!$U$2:$U$1000=Costs!$A701)*('Fixed assets'!$R$2:$R$1000))","v":0},{"$f":"SUMPRODUCT(('Fixed assets'!$R$2:$R$1000)*('Fixed assets'!$P$2:$P$1000<$A701)*('Fixed assets'!$Q$2:$Q$1000=Costs!K$617))-SUMPRODUCT(('Fixed assets'!$S$2:$S$1000)*('Fixed assets'!$P$2:$P$1000<Costs!$A701)*('Fixed assets'!$Q$2:$Q$1000=Costs!K$617))-SUMPRODUCT(('Fixed assets'!$Q$2:$Q$1000=Costs!K$617)*('Fixed assets'!$U$2:$U$1000=Costs!$A701)*('Fixed assets'!$S$2:$S$1000))+SUMPRODUCT(('Fixed assets'!$Q$2:$Q$1000=Costs!K$617)*('Fixed assets'!$P$2:$P$1000=Costs!$A701)*('Fixed assets'!$U$2:$U$1000=Costs!$A701)*('Fixed assets'!$R$2:$R$1000))","v":0},{"$f":"SUMPRODUCT(('Fixed assets'!$R$2:$R$1000)*('Fixed assets'!$P$2:$P$1000<$A701)*('Fixed assets'!$Q$2:$Q$1000=Costs!L$617))-SUMPRODUCT(('Fixed assets'!$S$2:$S$1000)*('Fixed assets'!$P$2:$P$1000<Costs!$A701)*('Fixed assets'!$Q$2:$Q$1000=Costs!L$617))-SUMPRODUCT(('Fixed assets'!$Q$2:$Q$1000=Costs!L$617)*('Fixed assets'!$U$2:$U$1000=Costs!$A701)*('Fixed assets'!$S$2:$S$1000))+SUMPRODUCT(('Fixed assets'!$Q$2:$Q$1000=Costs!L$617)*('Fixed assets'!$P$2:$P$1000=Costs!$A701)*('Fixed assets'!$U$2:$U$1000=Costs!$A701)*('Fixed assets'!$R$2:$R$1000))","v":0},{"$f":"SUMPRODUCT(('Fixed assets'!$R$2:$R$1000)*('Fixed assets'!$P$2:$P$1000<$A701)*('Fixed assets'!$Q$2:$Q$1000=Costs!M$617))-SUMPRODUCT(('Fixed assets'!$S$2:$S$1000)*('Fixed assets'!$P$2:$P$1000<Costs!$A701)*('Fixed assets'!$Q$2:$Q$1000=Costs!M$617))-SUMPRODUCT(('Fixed assets'!$Q$2:$Q$1000=Costs!M$617)*('Fixed assets'!$U$2:$U$1000=Costs!$A701)*('Fixed assets'!$S$2:$S$1000))+SUMPRODUCT(('Fixed assets'!$Q$2:$Q$1000=Costs!M$617)*('Fixed assets'!$P$2:$P$1000=Costs!$A701)*('Fixed assets'!$U$2:$U$1000=Costs!$A701)*('Fixed assets'!$R$2:$R$1000))","v":0},{"$f":"SUMPRODUCT(('Fixed assets'!$R$2:$R$1000)*('Fixed assets'!$P$2:$P$1000<$A701)*('Fixed assets'!$Q$2:$Q$1000=Costs!N$617))-SUMPRODUCT(('Fixed assets'!$S$2:$S$1000)*('Fixed assets'!$P$2:$P$1000<Costs!$A701)*('Fixed assets'!$Q$2:$Q$1000=Costs!N$617))-SUMPRODUCT(('Fixed assets'!$Q$2:$Q$1000=Costs!N$617)*('Fixed assets'!$U$2:$U$1000=Costs!$A701)*('Fixed assets'!$S$2:$S$1000))+SUMPRODUCT(('Fixed assets'!$Q$2:$Q$1000=Costs!N$617)*('Fixed assets'!$P$2:$P$1000=Costs!$A701)*('Fixed assets'!$U$2:$U$1000=Costs!$A701)*('Fixed assets'!$R$2:$R$1000))","v":0},{"$f":"SUMPRODUCT(('Fixed assets'!$R$2:$R$1000)*('Fixed assets'!$P$2:$P$1000<$A701)*('Fixed assets'!$Q$2:$Q$1000=Costs!O$617))-SUMPRODUCT(('Fixed assets'!$S$2:$S$1000)*('Fixed assets'!$P$2:$P$1000<Costs!$A701)*('Fixed assets'!$Q$2:$Q$1000=Costs!O$617))-SUMPRODUCT(('Fixed assets'!$Q$2:$Q$1000=Costs!O$617)*('Fixed assets'!$U$2:$U$1000=Costs!$A701)*('Fixed assets'!$S$2:$S$1000))+SUMPRODUCT(('Fixed assets'!$Q$2:$Q$1000=Costs!O$617)*('Fixed assets'!$P$2:$P$1000=Costs!$A701)*('Fixed assets'!$U$2:$U$1000=Costs!$A701)*('Fixed assets'!$R$2:$R$1000))","v":0},{"$f":"SUMPRODUCT(('Fixed assets'!$R$2:$R$1000)*('Fixed assets'!$P$2:$P$1000<$A701)*('Fixed assets'!$Q$2:$Q$1000=Costs!P$617))-SUMPRODUCT(('Fixed assets'!$S$2:$S$1000)*('Fixed assets'!$P$2:$P$1000<Costs!$A701)*('Fixed assets'!$Q$2:$Q$1000=Costs!P$617))-SUMPRODUCT(('Fixed assets'!$Q$2:$Q$1000=Costs!P$617)*('Fixed assets'!$U$2:$U$1000=Costs!$A701)*('Fixed assets'!$S$2:$S$1000))+SUMPRODUCT(('Fixed assets'!$Q$2:$Q$1000=Costs!P$617)*('Fixed assets'!$P$2:$P$1000=Costs!$A701)*('Fixed assets'!$U$2:$U$1000=Costs!$A701)*('Fixed assets'!$R$2:$R$1000))","v":0},{"$f":"SUMPRODUCT(('Fixed assets'!$R$2:$R$1000)*('Fixed assets'!$P$2:$P$1000<$A701)*('Fixed assets'!$Q$2:$Q$1000=Costs!Q$617))-SUMPRODUCT(('Fixed assets'!$S$2:$S$1000)*('Fixed assets'!$P$2:$P$1000<Costs!$A701)*('Fixed assets'!$Q$2:$Q$1000=Costs!Q$617))-SUMPRODUCT(('Fixed assets'!$Q$2:$Q$1000=Costs!Q$617)*('Fixed assets'!$U$2:$U$1000=Costs!$A701)*('Fixed assets'!$S$2:$S$1000))+SUMPRODUCT(('Fixed assets'!$Q$2:$Q$1000=Costs!Q$617)*('Fixed assets'!$P$2:$P$1000=Costs!$A701)*('Fixed assets'!$U$2:$U$1000=Costs!$A701)*('Fixed assets'!$R$2:$R$1000))","v":0},{"$f":"SUMPRODUCT(('Fixed assets'!$R$2:$R$1000)*('Fixed assets'!$P$2:$P$1000<$A701)*('Fixed assets'!$Q$2:$Q$1000=Costs!R$617))-SUMPRODUCT(('Fixed assets'!$S$2:$S$1000)*('Fixed assets'!$P$2:$P$1000<Costs!$A701)*('Fixed assets'!$Q$2:$Q$1000=Costs!R$617))-SUMPRODUCT(('Fixed assets'!$Q$2:$Q$1000=Costs!R$617)*('Fixed assets'!$U$2:$U$1000=Costs!$A701)*('Fixed assets'!$S$2:$S$1000))+SUMPRODUCT(('Fixed assets'!$Q$2:$Q$1000=Costs!R$617)*('Fixed assets'!$P$2:$P$1000=Costs!$A701)*('Fixed assets'!$U$2:$U$1000=Costs!$A701)*('Fixed assets'!$R$2:$R$1000))","v":0},{"$f":"SUMPRODUCT(('Fixed assets'!$R$2:$R$1000)*('Fixed assets'!$P$2:$P$1000<$A701)*('Fixed assets'!$Q$2:$Q$1000=Costs!S$617))-SUMPRODUCT(('Fixed assets'!$S$2:$S$1000)*('Fixed assets'!$P$2:$P$1000<Costs!$A701)*('Fixed assets'!$Q$2:$Q$1000=Costs!S$617))-SUMPRODUCT(('Fixed assets'!$Q$2:$Q$1000=Costs!S$617)*('Fixed assets'!$U$2:$U$1000=Costs!$A701)*('Fixed assets'!$S$2:$S$1000))+SUMPRODUCT(('Fixed assets'!$Q$2:$Q$1000=Costs!S$617)*('Fixed assets'!$P$2:$P$1000=Costs!$A701)*('Fixed assets'!$U$2:$U$1000=Costs!$A701)*('Fixed assets'!$R$2:$R$1000))","v":0},{"$f":"SUMPRODUCT(('Fixed assets'!$R$2:$R$1000)*('Fixed assets'!$P$2:$P$1000<$A701)*('Fixed assets'!$Q$2:$Q$1000=Costs!T$617))-SUMPRODUCT(('Fixed assets'!$S$2:$S$1000)*('Fixed assets'!$P$2:$P$1000<Costs!$A701)*('Fixed assets'!$Q$2:$Q$1000=Costs!T$617))-SUMPRODUCT(('Fixed assets'!$Q$2:$Q$1000=Costs!T$617)*('Fixed assets'!$U$2:$U$1000=Costs!$A701)*('Fixed assets'!$S$2:$S$1000))+SUMPRODUCT(('Fixed assets'!$Q$2:$Q$1000=Costs!T$617)*('Fixed assets'!$P$2:$P$1000=Costs!$A701)*('Fixed assets'!$U$2:$U$1000=Costs!$A701)*('Fixed assets'!$R$2:$R$1000))","v":0},{"$f":"SUMPRODUCT(('Fixed assets'!$R$2:$R$1000)*('Fixed assets'!$P$2:$P$1000<$A701)*('Fixed assets'!$Q$2:$Q$1000=Costs!U$617))-SUMPRODUCT(('Fixed assets'!$S$2:$S$1000)*('Fixed assets'!$P$2:$P$1000<Costs!$A701)*('Fixed assets'!$Q$2:$Q$1000=Costs!U$617))-SUMPRODUCT(('Fixed assets'!$Q$2:$Q$1000=Costs!U$617)*('Fixed assets'!$U$2:$U$1000=Costs!$A701)*('Fixed assets'!$S$2:$S$1000))+SUMPRODUCT(('Fixed assets'!$Q$2:$Q$1000=Costs!U$617)*('Fixed assets'!$P$2:$P$1000=Costs!$A701)*('Fixed assets'!$U$2:$U$1000=Costs!$A701)*('Fixed assets'!$R$2:$R$1000))","v":0},{"$f":"SUMPRODUCT(('Fixed assets'!$R$2:$R$1000)*('Fixed assets'!$P$2:$P$1000<$A701)*('Fixed assets'!$Q$2:$Q$1000=Costs!V$617))-SUMPRODUCT(('Fixed assets'!$S$2:$S$1000)*('Fixed assets'!$P$2:$P$1000<Costs!$A701)*('Fixed assets'!$Q$2:$Q$1000=Costs!V$617))-SUMPRODUCT(('Fixed assets'!$Q$2:$Q$1000=Costs!V$617)*('Fixed assets'!$U$2:$U$1000=Costs!$A701)*('Fixed assets'!$S$2:$S$1000))+SUMPRODUCT(('Fixed assets'!$Q$2:$Q$1000=Costs!V$617)*('Fixed assets'!$P$2:$P$1000=Costs!$A701)*('Fixed assets'!$U$2:$U$1000=Costs!$A701)*('Fixed assets'!$R$2:$R$1000))","v":0},{"$f":"SUMPRODUCT(('Fixed assets'!$R$2:$R$1000)*('Fixed assets'!$P$2:$P$1000<$A701)*('Fixed assets'!$Q$2:$Q$1000=Costs!W$617))-SUMPRODUCT(('Fixed assets'!$S$2:$S$1000)*('Fixed assets'!$P$2:$P$1000<Costs!$A701)*('Fixed assets'!$Q$2:$Q$1000=Costs!W$617))-SUMPRODUCT(('Fixed assets'!$Q$2:$Q$1000=Costs!W$617)*('Fixed assets'!$U$2:$U$1000=Costs!$A701)*('Fixed assets'!$S$2:$S$1000))+SUMPRODUCT(('Fixed assets'!$Q$2:$Q$1000=Costs!W$617)*('Fixed assets'!$P$2:$P$1000=Costs!$A701)*('Fixed assets'!$U$2:$U$1000=Costs!$A701)*('Fixed assets'!$R$2:$R$1000))","v":0},{"$f":"SUMPRODUCT(('Fixed assets'!$R$2:$R$1000)*('Fixed assets'!$P$2:$P$1000<$A701)*('Fixed assets'!$Q$2:$Q$1000=Costs!X$617))-SUMPRODUCT(('Fixed assets'!$S$2:$S$1000)*('Fixed assets'!$P$2:$P$1000<Costs!$A701)*('Fixed assets'!$Q$2:$Q$1000=Costs!X$617))-SUMPRODUCT(('Fixed assets'!$Q$2:$Q$1000=Costs!X$617)*('Fixed assets'!$U$2:$U$1000=Costs!$A701)*('Fixed assets'!$S$2:$S$1000))+SUMPRODUCT(('Fixed assets'!$Q$2:$Q$1000=Costs!X$617)*('Fixed assets'!$P$2:$P$1000=Costs!$A701)*('Fixed assets'!$U$2:$U$1000=Costs!$A701)*('Fixed assets'!$R$2:$R$1000))","v":0},{"$f":"SUMPRODUCT(('Fixed assets'!$R$2:$R$1000)*('Fixed assets'!$P$2:$P$1000<$A701)*('Fixed assets'!$Q$2:$Q$1000=Costs!Y$617))-SUMPRODUCT(('Fixed assets'!$S$2:$S$1000)*('Fixed assets'!$P$2:$P$1000<Costs!$A701)*('Fixed assets'!$Q$2:$Q$1000=Costs!Y$617))-SUMPRODUCT(('Fixed assets'!$Q$2:$Q$1000=Costs!Y$617)*('Fixed assets'!$U$2:$U$1000=Costs!$A701)*('Fixed assets'!$S$2:$S$1000))+SUMPRODUCT(('Fixed assets'!$Q$2:$Q$1000=Costs!Y$617)*('Fixed assets'!$P$2:$P$1000=Costs!$A701)*('Fixed assets'!$U$2:$U$1000=Costs!$A701)*('Fixed assets'!$R$2:$R$1000))","v":0},{"$f":"SUMPRODUCT(('Fixed assets'!$R$2:$R$1000)*('Fixed assets'!$P$2:$P$1000<$A701)*('Fixed assets'!$Q$2:$Q$1000=Costs!Z$617))-SUMPRODUCT(('Fixed assets'!$S$2:$S$1000)*('Fixed assets'!$P$2:$P$1000<Costs!$A701)*('Fixed assets'!$Q$2:$Q$1000=Costs!Z$617))-SUMPRODUCT(('Fixed assets'!$Q$2:$Q$1000=Costs!Z$617)*('Fixed assets'!$U$2:$U$1000=Costs!$A701)*('Fixed assets'!$S$2:$S$1000))+SUMPRODUCT(('Fixed assets'!$Q$2:$Q$1000=Costs!Z$617)*('Fixed assets'!$P$2:$P$1000=Costs!$A701)*('Fixed assets'!$U$2:$U$1000=Costs!$A701)*('Fixed assets'!$R$2:$R$1000))","v":0},{"$f":"SUMPRODUCT(('Fixed assets'!$R$2:$R$1000)*('Fixed assets'!$P$2:$P$1000<$A701)*('Fixed assets'!$Q$2:$Q$1000=Costs!AA$617))-SUMPRODUCT(('Fixed assets'!$S$2:$S$1000)*('Fixed assets'!$P$2:$P$1000<Costs!$A701)*('Fixed assets'!$Q$2:$Q$1000=Costs!AA$617))-SUMPRODUCT(('Fixed assets'!$Q$2:$Q$1000=Costs!AA$617)*('Fixed assets'!$U$2:$U$1000=Costs!$A701)*('Fixed assets'!$S$2:$S$1000))+SUMPRODUCT(('Fixed assets'!$Q$2:$Q$1000=Costs!AA$617)*('Fixed assets'!$P$2:$P$1000=Costs!$A701)*('Fixed assets'!$U$2:$U$1000=Costs!$A701)*('Fixed assets'!$R$2:$R$1000))","v":0},{"$f":"SUMPRODUCT(('Fixed assets'!$R$2:$R$1000)*('Fixed assets'!$P$2:$P$1000<$A701)*('Fixed assets'!$Q$2:$Q$1000=Costs!AB$617))-SUMPRODUCT(('Fixed assets'!$S$2:$S$1000)*('Fixed assets'!$P$2:$P$1000<Costs!$A701)*('Fixed assets'!$Q$2:$Q$1000=Costs!AB$617))-SUMPRODUCT(('Fixed assets'!$Q$2:$Q$1000=Costs!AB$617)*('Fixed assets'!$U$2:$U$1000=Costs!$A701)*('Fixed assets'!$S$2:$S$1000))+SUMPRODUCT(('Fixed assets'!$Q$2:$Q$1000=Costs!AB$617)*('Fixed assets'!$P$2:$P$1000=Costs!$A701)*('Fixed assets'!$U$2:$U$1000=Costs!$A701)*('Fixed assets'!$R$2:$R$1000))","v":0},{"$f":"SUMPRODUCT(('Fixed assets'!$R$2:$R$1000)*('Fixed assets'!$P$2:$P$1000<$A701)*('Fixed assets'!$Q$2:$Q$1000=Costs!AC$617))-SUMPRODUCT(('Fixed assets'!$S$2:$S$1000)*('Fixed assets'!$P$2:$P$1000<Costs!$A701)*('Fixed assets'!$Q$2:$Q$1000=Costs!AC$617))-SUMPRODUCT(('Fixed assets'!$Q$2:$Q$1000=Costs!AC$617)*('Fixed assets'!$U$2:$U$1000=Costs!$A701)*('Fixed assets'!$S$2:$S$1000))+SUMPRODUCT(('Fixed assets'!$Q$2:$Q$1000=Costs!AC$617)*('Fixed assets'!$P$2:$P$1000=Costs!$A701)*('Fixed assets'!$U$2:$U$1000=Costs!$A701)*('Fixed assets'!$R$2:$R$1000))","v":0},{"$f":"SUMPRODUCT(('Fixed assets'!$R$2:$R$1000)*('Fixed assets'!$P$2:$P$1000<$A701)*('Fixed assets'!$Q$2:$Q$1000=Costs!AD$617))-SUMPRODUCT(('Fixed assets'!$S$2:$S$1000)*('Fixed assets'!$P$2:$P$1000<Costs!$A701)*('Fixed assets'!$Q$2:$Q$1000=Costs!AD$617))-SUMPRODUCT(('Fixed assets'!$Q$2:$Q$1000=Costs!AD$617)*('Fixed assets'!$U$2:$U$1000=Costs!$A701)*('Fixed assets'!$S$2:$S$1000))+SUMPRODUCT(('Fixed assets'!$Q$2:$Q$1000=Costs!AD$617)*('Fixed assets'!$P$2:$P$1000=Costs!$A701)*('Fixed assets'!$U$2:$U$1000=Costs!$A701)*('Fixed assets'!$R$2:$R$1000))","v":0},{"$f":"SUMPRODUCT(('Fixed assets'!$R$2:$R$1000)*('Fixed assets'!$P$2:$P$1000<$A701)*('Fixed assets'!$Q$2:$Q$1000=Costs!AE$617))-SUMPRODUCT(('Fixed assets'!$S$2:$S$1000)*('Fixed assets'!$P$2:$P$1000<Costs!$A701)*('Fixed assets'!$Q$2:$Q$1000=Costs!AE$617))-SUMPRODUCT(('Fixed assets'!$Q$2:$Q$1000=Costs!AE$617)*('Fixed assets'!$U$2:$U$1000=Costs!$A701)*('Fixed assets'!$S$2:$S$1000))+SUMPRODUCT(('Fixed assets'!$Q$2:$Q$1000=Costs!AE$617)*('Fixed assets'!$P$2:$P$1000=Costs!$A701)*('Fixed assets'!$U$2:$U$1000=Costs!$A701)*('Fixed assets'!$R$2:$R$1000))","v":0},{"$f":"SUMPRODUCT(('Fixed assets'!$R$2:$R$1000)*('Fixed assets'!$P$2:$P$1000<$A701)*('Fixed assets'!$Q$2:$Q$1000=Costs!AF$617))-SUMPRODUCT(('Fixed assets'!$S$2:$S$1000)*('Fixed assets'!$P$2:$P$1000<Costs!$A701)*('Fixed assets'!$Q$2:$Q$1000=Costs!AF$617))-SUMPRODUCT(('Fixed assets'!$Q$2:$Q$1000=Costs!AF$617)*('Fixed assets'!$U$2:$U$1000=Costs!$A701)*('Fixed assets'!$S$2:$S$1000))+SUMPRODUCT(('Fixed assets'!$Q$2:$Q$1000=Costs!AF$617)*('Fixed assets'!$P$2:$P$1000=Costs!$A701)*('Fixed assets'!$U$2:$U$1000=Costs!$A701)*('Fixed assets'!$R$2:$R$1000))","v":0},{"$f":"SUMPRODUCT(('Fixed assets'!$R$2:$R$1000)*('Fixed assets'!$P$2:$P$1000<$A701)*('Fixed assets'!$Q$2:$Q$1000=Costs!AG$617))-SUMPRODUCT(('Fixed assets'!$S$2:$S$1000)*('Fixed assets'!$P$2:$P$1000<Costs!$A701)*('Fixed assets'!$Q$2:$Q$1000=Costs!AG$617))-SUMPRODUCT(('Fixed assets'!$Q$2:$Q$1000=Costs!AG$617)*('Fixed assets'!$U$2:$U$1000=Costs!$A701)*('Fixed assets'!$S$2:$S$1000))+SUMPRODUCT(('Fixed assets'!$Q$2:$Q$1000=Costs!AG$617)*('Fixed assets'!$P$2:$P$1000=Costs!$A701)*('Fixed assets'!$U$2:$U$1000=Costs!$A701)*('Fixed assets'!$R$2:$R$1000))","v":0},{"$f":"SUMPRODUCT(('Fixed assets'!$R$2:$R$1000)*('Fixed assets'!$P$2:$P$1000<$A701)*('Fixed assets'!$Q$2:$Q$1000=Costs!AH$617))-SUMPRODUCT(('Fixed assets'!$S$2:$S$1000)*('Fixed assets'!$P$2:$P$1000<Costs!$A701)*('Fixed assets'!$Q$2:$Q$1000=Costs!AH$617))-SUMPRODUCT(('Fixed assets'!$Q$2:$Q$1000=Costs!AH$617)*('Fixed assets'!$U$2:$U$1000=Costs!$A701)*('Fixed assets'!$S$2:$S$1000))+SUMPRODUCT(('Fixed assets'!$Q$2:$Q$1000=Costs!AH$617)*('Fixed assets'!$P$2:$P$1000=Costs!$A701)*('Fixed assets'!$U$2:$U$1000=Costs!$A701)*('Fixed assets'!$R$2:$R$1000))","v":0},{"$f":"SUMPRODUCT(('Fixed assets'!$R$2:$R$1000)*('Fixed assets'!$P$2:$P$1000<$A701)*('Fixed assets'!$Q$2:$Q$1000=Costs!AI$617))-SUMPRODUCT(('Fixed assets'!$S$2:$S$1000)*('Fixed assets'!$P$2:$P$1000<Costs!$A701)*('Fixed assets'!$Q$2:$Q$1000=Costs!AI$617))-SUMPRODUCT(('Fixed assets'!$Q$2:$Q$1000=Costs!AI$617)*('Fixed assets'!$U$2:$U$1000=Costs!$A701)*('Fixed assets'!$S$2:$S$1000))+SUMPRODUCT(('Fixed assets'!$Q$2:$Q$1000=Costs!AI$617)*('Fixed assets'!$P$2:$P$1000=Costs!$A701)*('Fixed assets'!$U$2:$U$1000=Costs!$A701)*('Fixed assets'!$R$2:$R$1000))","v":0},{"$f":"SUMPRODUCT(('Fixed assets'!$R$2:$R$1000)*('Fixed assets'!$P$2:$P$1000<$A701)*('Fixed assets'!$Q$2:$Q$1000=Costs!AJ$617))-SUMPRODUCT(('Fixed assets'!$S$2:$S$1000)*('Fixed assets'!$P$2:$P$1000<Costs!$A701)*('Fixed assets'!$Q$2:$Q$1000=Costs!AJ$617))-SUMPRODUCT(('Fixed assets'!$Q$2:$Q$1000=Costs!AJ$617)*('Fixed assets'!$U$2:$U$1000=Costs!$A701)*('Fixed assets'!$S$2:$S$1000))+SUMPRODUCT(('Fixed assets'!$Q$2:$Q$1000=Costs!AJ$617)*('Fixed assets'!$P$2:$P$1000=Costs!$A701)*('Fixed assets'!$U$2:$U$1000=Costs!$A701)*('Fixed assets'!$R$2:$R$1000))","v":0},{"$f":"SUMPRODUCT(('Fixed assets'!$R$2:$R$1000)*('Fixed assets'!$P$2:$P$1000<$A701)*('Fixed assets'!$Q$2:$Q$1000=Costs!AK$617))-SUMPRODUCT(('Fixed assets'!$S$2:$S$1000)*('Fixed assets'!$P$2:$P$1000<Costs!$A701)*('Fixed assets'!$Q$2:$Q$1000=Costs!AK$617))-SUMPRODUCT(('Fixed assets'!$Q$2:$Q$1000=Costs!AK$617)*('Fixed assets'!$U$2:$U$1000=Costs!$A701)*('Fixed assets'!$S$2:$S$1000))+SUMPRODUCT(('Fixed assets'!$Q$2:$Q$1000=Costs!AK$617)*('Fixed assets'!$P$2:$P$1000=Costs!$A701)*('Fixed assets'!$U$2:$U$1000=Costs!$A701)*('Fixed assets'!$R$2:$R$1000))","v":0},{"$f":"SUMPRODUCT(('Fixed assets'!$R$2:$R$1000)*('Fixed assets'!$P$2:$P$1000<$A701)*('Fixed assets'!$Q$2:$Q$1000=Costs!AL$617))-SUMPRODUCT(('Fixed assets'!$S$2:$S$1000)*('Fixed assets'!$P$2:$P$1000<Costs!$A701)*('Fixed assets'!$Q$2:$Q$1000=Costs!AL$617))-SUMPRODUCT(('Fixed assets'!$Q$2:$Q$1000=Costs!AL$617)*('Fixed assets'!$U$2:$U$1000=Costs!$A701)*('Fixed assets'!$S$2:$S$1000))+SUMPRODUCT(('Fixed assets'!$Q$2:$Q$1000=Costs!AL$617)*('Fixed assets'!$P$2:$P$1000=Costs!$A701)*('Fixed assets'!$U$2:$U$1000=Costs!$A701)*('Fixed assets'!$R$2:$R$1000))","v":0},{"$f":"SUMPRODUCT(('Fixed assets'!$R$2:$R$1000)*('Fixed assets'!$P$2:$P$1000<$A701)*('Fixed assets'!$Q$2:$Q$1000=Costs!AM$617))-SUMPRODUCT(('Fixed assets'!$S$2:$S$1000)*('Fixed assets'!$P$2:$P$1000<Costs!$A701)*('Fixed assets'!$Q$2:$Q$1000=Costs!AM$617))-SUMPRODUCT(('Fixed assets'!$Q$2:$Q$1000=Costs!AM$617)*('Fixed assets'!$U$2:$U$1000=Costs!$A701)*('Fixed assets'!$S$2:$S$1000))+SUMPRODUCT(('Fixed assets'!$Q$2:$Q$1000=Costs!AM$617)*('Fixed assets'!$P$2:$P$1000=Costs!$A701)*('Fixed assets'!$U$2:$U$1000=Costs!$A701)*('Fixed assets'!$R$2:$R$1000))","v":0},{"$f":"SUMPRODUCT(('Fixed assets'!$R$2:$R$1000)*('Fixed assets'!$P$2:$P$1000<$A701)*('Fixed assets'!$Q$2:$Q$1000=Costs!AN$617))-SUMPRODUCT(('Fixed assets'!$S$2:$S$1000)*('Fixed assets'!$P$2:$P$1000<Costs!$A701)*('Fixed assets'!$Q$2:$Q$1000=Costs!AN$617))-SUMPRODUCT(('Fixed assets'!$Q$2:$Q$1000=Costs!AN$617)*('Fixed assets'!$U$2:$U$1000=Costs!$A701)*('Fixed assets'!$S$2:$S$1000))+SUMPRODUCT(('Fixed assets'!$Q$2:$Q$1000=Costs!AN$617)*('Fixed assets'!$P$2:$P$1000=Costs!$A701)*('Fixed assets'!$U$2:$U$1000=Costs!$A701)*('Fixed assets'!$R$2:$R$1000))","v":0},{"$f":"SUMPRODUCT(('Fixed assets'!$R$2:$R$1000)*('Fixed assets'!$P$2:$P$1000<$A701)*('Fixed assets'!$Q$2:$Q$1000=Costs!AO$617))-SUMPRODUCT(('Fixed assets'!$S$2:$S$1000)*('Fixed assets'!$P$2:$P$1000<Costs!$A701)*('Fixed assets'!$Q$2:$Q$1000=Costs!AO$617))-SUMPRODUCT(('Fixed assets'!$Q$2:$Q$1000=Costs!AO$617)*('Fixed assets'!$U$2:$U$1000=Costs!$A701)*('Fixed assets'!$S$2:$S$1000))+SUMPRODUCT(('Fixed assets'!$Q$2:$Q$1000=Costs!AO$617)*('Fixed assets'!$P$2:$P$1000=Costs!$A701)*('Fixed assets'!$U$2:$U$1000=Costs!$A701)*('Fixed assets'!$R$2:$R$1000))","v":0},{"$f":"SUMPRODUCT(('Fixed assets'!$R$2:$R$1000)*('Fixed assets'!$P$2:$P$1000<$A701)*('Fixed assets'!$Q$2:$Q$1000=Costs!AP$617))-SUMPRODUCT(('Fixed assets'!$S$2:$S$1000)*('Fixed assets'!$P$2:$P$1000<Costs!$A701)*('Fixed assets'!$Q$2:$Q$1000=Costs!AP$617))-SUMPRODUCT(('Fixed assets'!$Q$2:$Q$1000=Costs!AP$617)*('Fixed assets'!$U$2:$U$1000=Costs!$A701)*('Fixed assets'!$S$2:$S$1000))+SUMPRODUCT(('Fixed assets'!$Q$2:$Q$1000=Costs!AP$617)*('Fixed assets'!$P$2:$P$1000=Costs!$A701)*('Fixed assets'!$U$2:$U$1000=Costs!$A701)*('Fixed assets'!$R$2:$R$1000))","v":0},{"$f":"SUMPRODUCT(('Fixed assets'!$R$2:$R$1000)*('Fixed assets'!$P$2:$P$1000<$A701)*('Fixed assets'!$Q$2:$Q$1000=Costs!AQ$617))-SUMPRODUCT(('Fixed assets'!$S$2:$S$1000)*('Fixed assets'!$P$2:$P$1000<Costs!$A701)*('Fixed assets'!$Q$2:$Q$1000=Costs!AQ$617))-SUMPRODUCT(('Fixed assets'!$Q$2:$Q$1000=Costs!AQ$617)*('Fixed assets'!$U$2:$U$1000=Costs!$A701)*('Fixed assets'!$S$2:$S$1000))+SUMPRODUCT(('Fixed assets'!$Q$2:$Q$1000=Costs!AQ$617)*('Fixed assets'!$P$2:$P$1000=Costs!$A701)*('Fixed assets'!$U$2:$U$1000=Costs!$A701)*('Fixed assets'!$R$2:$R$1000))","v":0}]
[2099,0,{"$f":"SUMPRODUCT(('Fixed assets'!$R$2:$R$1000)*('Fixed assets'!$P$2:$P$1000<$A702)*('Fixed assets'!$Q$2:$Q$1000=Costs!C$617))-SUMPRODUCT(('Fixed assets'!$S$2:$S$1000)*('Fixed assets'!$P$2:$P$1000<Costs!$A702)*('Fixed assets'!$Q$2:$Q$1000=Costs!C$617))-SUMPRODUCT(('Fixed assets'!$Q$2:$Q$1000=Costs!C$617)*('Fixed assets'!$U$2:$U$1000=Costs!$A702)*('Fixed assets'!$S$2:$S$1000))+SUMPRODUCT(('Fixed assets'!$Q$2:$Q$1000=Costs!C$617)*('Fixed assets'!$P$2:$P$1000=Costs!$A702)*('Fixed assets'!$U$2:$U$1000=Costs!$A702)*('Fixed assets'!$R$2:$R$1000))","v":0},{"$f":"SUMPRODUCT(('Fixed assets'!$R$2:$R$1000)*('Fixed assets'!$P$2:$P$1000<$A702)*('Fixed assets'!$Q$2:$Q$1000=Costs!D$617))-SUMPRODUCT(('Fixed assets'!$S$2:$S$1000)*('Fixed assets'!$P$2:$P$1000<Costs!$A702)*('Fixed assets'!$Q$2:$Q$1000=Costs!D$617))-SUMPRODUCT(('Fixed assets'!$Q$2:$Q$1000=Costs!D$617)*('Fixed assets'!$U$2:$U$1000=Costs!$A702)*('Fixed assets'!$S$2:$S$1000))+SUMPRODUCT(('Fixed assets'!$Q$2:$Q$1000=Costs!D$617)*('Fixed assets'!$P$2:$P$1000=Costs!$A702)*('Fixed assets'!$U$2:$U$1000=Costs!$A702)*('Fixed assets'!$R$2:$R$1000))","v":0},{"$f":"SUMPRODUCT(('Fixed assets'!$R$2:$R$1000)*('Fixed assets'!$P$2:$P$1000<$A702)*('Fixed assets'!$Q$2:$Q$1000=Costs!E$617))-SUMPRODUCT(('Fixed assets'!$S$2:$S$1000)*('Fixed assets'!$P$2:$P$1000<Costs!$A702)*('Fixed assets'!$Q$2:$Q$1000=Costs!E$617))-SUMPRODUCT(('Fixed assets'!$Q$2:$Q$1000=Costs!E$617)*('Fixed assets'!$U$2:$U$1000=Costs!$A702)*('Fixed assets'!$S$2:$S$1000))+SUMPRODUCT(('Fixed assets'!$Q$2:$Q$1000=Costs!E$617)*('Fixed assets'!$P$2:$P$1000=Costs!$A702)*('Fixed assets'!$U$2:$U$1000=Costs!$A702)*('Fixed assets'!$R$2:$R$1000))","v":0},{"$f":"SUMPRODUCT(('Fixed assets'!$R$2:$R$1000)*('Fixed assets'!$P$2:$P$1000<$A702)*('Fixed assets'!$Q$2:$Q$1000=Costs!F$617))-SUMPRODUCT(('Fixed assets'!$S$2:$S$1000)*('Fixed assets'!$P$2:$P$1000<Costs!$A702)*('Fixed assets'!$Q$2:$Q$1000=Costs!F$617))-SUMPRODUCT(('Fixed assets'!$Q$2:$Q$1000=Costs!F$617)*('Fixed assets'!$U$2:$U$1000=Costs!$A702)*('Fixed assets'!$S$2:$S$1000))+SUMPRODUCT(('Fixed assets'!$Q$2:$Q$1000=Costs!F$617)*('Fixed assets'!$P$2:$P$1000=Costs!$A702)*('Fixed assets'!$U$2:$U$1000=Costs!$A702)*('Fixed assets'!$R$2:$R$1000))","v":0},{"$f":"SUMPRODUCT(('Fixed assets'!$R$2:$R$1000)*('Fixed assets'!$P$2:$P$1000<$A702)*('Fixed assets'!$Q$2:$Q$1000=Costs!G$617))-SUMPRODUCT(('Fixed assets'!$S$2:$S$1000)*('Fixed assets'!$P$2:$P$1000<Costs!$A702)*('Fixed assets'!$Q$2:$Q$1000=Costs!G$617))-SUMPRODUCT(('Fixed assets'!$Q$2:$Q$1000=Costs!G$617)*('Fixed assets'!$U$2:$U$1000=Costs!$A702)*('Fixed assets'!$S$2:$S$1000))+SUMPRODUCT(('Fixed assets'!$Q$2:$Q$1000=Costs!G$617)*('Fixed assets'!$P$2:$P$1000=Costs!$A702)*('Fixed assets'!$U$2:$U$1000=Costs!$A702)*('Fixed assets'!$R$2:$R$1000))","v":0},{"$f":"SUMPRODUCT(('Fixed assets'!$R$2:$R$1000)*('Fixed assets'!$P$2:$P$1000<$A702)*('Fixed assets'!$Q$2:$Q$1000=Costs!H$617))-SUMPRODUCT(('Fixed assets'!$S$2:$S$1000)*('Fixed assets'!$P$2:$P$1000<Costs!$A702)*('Fixed assets'!$Q$2:$Q$1000=Costs!H$617))-SUMPRODUCT(('Fixed assets'!$Q$2:$Q$1000=Costs!H$617)*('Fixed assets'!$U$2:$U$1000=Costs!$A702)*('Fixed assets'!$S$2:$S$1000))+SUMPRODUCT(('Fixed assets'!$Q$2:$Q$1000=Costs!H$617)*('Fixed assets'!$P$2:$P$1000=Costs!$A702)*('Fixed assets'!$U$2:$U$1000=Costs!$A702)*('Fixed assets'!$R$2:$R$1000))","v":0},{"$f":"SUMPRODUCT(('Fixed assets'!$R$2:$R$1000)*('Fixed assets'!$P$2:$P$1000<$A702)*('Fixed assets'!$Q$2:$Q$1000=Costs!I$617))-SUMPRODUCT(('Fixed assets'!$S$2:$S$1000)*('Fixed assets'!$P$2:$P$1000<Costs!$A702)*('Fixed assets'!$Q$2:$Q$1000=Costs!I$617))-SUMPRODUCT(('Fixed assets'!$Q$2:$Q$1000=Costs!I$617)*('Fixed assets'!$U$2:$U$1000=Costs!$A702)*('Fixed assets'!$S$2:$S$1000))+SUMPRODUCT(('Fixed assets'!$Q$2:$Q$1000=Costs!I$617)*('Fixed assets'!$P$2:$P$1000=Costs!$A702)*('Fixed assets'!$U$2:$U$1000=Costs!$A702)*('Fixed assets'!$R$2:$R$1000))","v":0},{"$f":"SUMPRODUCT(('Fixed assets'!$R$2:$R$1000)*('Fixed assets'!$P$2:$P$1000<$A702)*('Fixed assets'!$Q$2:$Q$1000=Costs!J$617))-SUMPRODUCT(('Fixed assets'!$S$2:$S$1000)*('Fixed assets'!$P$2:$P$1000<Costs!$A702)*('Fixed assets'!$Q$2:$Q$1000=Costs!J$617))-SUMPRODUCT(('Fixed assets'!$Q$2:$Q$1000=Costs!J$617)*('Fixed assets'!$U$2:$U$1000=Costs!$A702)*('Fixed assets'!$S$2:$S$1000))+SUMPRODUCT(('Fixed assets'!$Q$2:$Q$1000=Costs!J$617)*('Fixed assets'!$P$2:$P$1000=Costs!$A702)*('Fixed assets'!$U$2:$U$1000=Costs!$A702)*('Fixed assets'!$R$2:$R$1000))","v":0},{"$f":"SUMPRODUCT(('Fixed assets'!$R$2:$R$1000)*('Fixed assets'!$P$2:$P$1000<$A702)*('Fixed assets'!$Q$2:$Q$1000=Costs!K$617))-SUMPRODUCT(('Fixed assets'!$S$2:$S$1000)*('Fixed assets'!$P$2:$P$1000<Costs!$A702)*('Fixed assets'!$Q$2:$Q$1000=Costs!K$617))-SUMPRODUCT(('Fixed assets'!$Q$2:$Q$1000=Costs!K$617)*('Fixed assets'!$U$2:$U$1000=Costs!$A702)*('Fixed assets'!$S$2:$S$1000))+SUMPRODUCT(('Fixed assets'!$Q$2:$Q$1000=Costs!K$617)*('Fixed assets'!$P$2:$P$1000=Costs!$A702)*('Fixed assets'!$U$2:$U$1000=Costs!$A702)*('Fixed assets'!$R$2:$R$1000))","v":0},{"$f":"SUMPRODUCT(('Fixed assets'!$R$2:$R$1000)*('Fixed assets'!$P$2:$P$1000<$A702)*('Fixed assets'!$Q$2:$Q$1000=Costs!L$617))-SUMPRODUCT(('Fixed assets'!$S$2:$S$1000)*('Fixed assets'!$P$2:$P$1000<Costs!$A702)*('Fixed assets'!$Q$2:$Q$1000=Costs!L$617))-SUMPRODUCT(('Fixed assets'!$Q$2:$Q$1000=Costs!L$617)*('Fixed assets'!$U$2:$U$1000=Costs!$A702)*('Fixed assets'!$S$2:$S$1000))+SUMPRODUCT(('Fixed assets'!$Q$2:$Q$1000=Costs!L$617)*('Fixed assets'!$P$2:$P$1000=Costs!$A702)*('Fixed assets'!$U$2:$U$1000=Costs!$A702)*('Fixed assets'!$R$2:$R$1000))","v":0},{"$f":"SUMPRODUCT(('Fixed assets'!$R$2:$R$1000)*('Fixed assets'!$P$2:$P$1000<$A702)*('Fixed assets'!$Q$2:$Q$1000=Costs!M$617))-SUMPRODUCT(('Fixed assets'!$S$2:$S$1000)*('Fixed assets'!$P$2:$P$1000<Costs!$A702)*('Fixed assets'!$Q$2:$Q$1000=Costs!M$617))-SUMPRODUCT(('Fixed assets'!$Q$2:$Q$1000=Costs!M$617)*('Fixed assets'!$U$2:$U$1000=Costs!$A702)*('Fixed assets'!$S$2:$S$1000))+SUMPRODUCT(('Fixed assets'!$Q$2:$Q$1000=Costs!M$617)*('Fixed assets'!$P$2:$P$1000=Costs!$A702)*('Fixed assets'!$U$2:$U$1000=Costs!$A702)*('Fixed assets'!$R$2:$R$1000))","v":0},{"$f":"SUMPRODUCT(('Fixed assets'!$R$2:$R$1000)*('Fixed assets'!$P$2:$P$1000<$A702)*('Fixed assets'!$Q$2:$Q$1000=Costs!N$617))-SUMPRODUCT(('Fixed assets'!$S$2:$S$1000)*('Fixed assets'!$P$2:$P$1000<Costs!$A702)*('Fixed assets'!$Q$2:$Q$1000=Costs!N$617))-SUMPRODUCT(('Fixed assets'!$Q$2:$Q$1000=Costs!N$617)*('Fixed assets'!$U$2:$U$1000=Costs!$A702)*('Fixed assets'!$S$2:$S$1000))+SUMPRODUCT(('Fixed assets'!$Q$2:$Q$1000=Costs!N$617)*('Fixed assets'!$P$2:$P$1000=Costs!$A702)*('Fixed assets'!$U$2:$U$1000=Costs!$A702)*('Fixed assets'!$R$2:$R$1000))","v":0},{"$f":"SUMPRODUCT(('Fixed assets'!$R$2:$R$1000)*('Fixed assets'!$P$2:$P$1000<$A702)*('Fixed assets'!$Q$2:$Q$1000=Costs!O$617))-SUMPRODUCT(('Fixed assets'!$S$2:$S$1000)*('Fixed assets'!$P$2:$P$1000<Costs!$A702)*('Fixed assets'!$Q$2:$Q$1000=Costs!O$617))-SUMPRODUCT(('Fixed assets'!$Q$2:$Q$1000=Costs!O$617)*('Fixed assets'!$U$2:$U$1000=Costs!$A702)*('Fixed assets'!$S$2:$S$1000))+SUMPRODUCT(('Fixed assets'!$Q$2:$Q$1000=Costs!O$617)*('Fixed assets'!$P$2:$P$1000=Costs!$A702)*('Fixed assets'!$U$2:$U$1000=Costs!$A702)*('Fixed assets'!$R$2:$R$1000))","v":0},{"$f":"SUMPRODUCT(('Fixed assets'!$R$2:$R$1000)*('Fixed assets'!$P$2:$P$1000<$A702)*('Fixed assets'!$Q$2:$Q$1000=Costs!P$617))-SUMPRODUCT(('Fixed assets'!$S$2:$S$1000)*('Fixed assets'!$P$2:$P$1000<Costs!$A702)*('Fixed assets'!$Q$2:$Q$1000=Costs!P$617))-SUMPRODUCT(('Fixed assets'!$Q$2:$Q$1000=Costs!P$617)*('Fixed assets'!$U$2:$U$1000=Costs!$A702)*('Fixed assets'!$S$2:$S$1000))+SUMPRODUCT(('Fixed assets'!$Q$2:$Q$1000=Costs!P$617)*('Fixed assets'!$P$2:$P$1000=Costs!$A702)*('Fixed assets'!$U$2:$U$1000=Costs!$A702)*('Fixed assets'!$R$2:$R$1000))","v":0},{"$f":"SUMPRODUCT(('Fixed assets'!$R$2:$R$1000)*('Fixed assets'!$P$2:$P$1000<$A702)*('Fixed assets'!$Q$2:$Q$1000=Costs!Q$617))-SUMPRODUCT(('Fixed assets'!$S$2:$S$1000)*('Fixed assets'!$P$2:$P$1000<Costs!$A702)*('Fixed assets'!$Q$2:$Q$1000=Costs!Q$617))-SUMPRODUCT(('Fixed assets'!$Q$2:$Q$1000=Costs!Q$617)*('Fixed assets'!$U$2:$U$1000=Costs!$A702)*('Fixed assets'!$S$2:$S$1000))+SUMPRODUCT(('Fixed assets'!$Q$2:$Q$1000=Costs!Q$617)*('Fixed assets'!$P$2:$P$1000=Costs!$A702)*('Fixed assets'!$U$2:$U$1000=Costs!$A702)*('Fixed assets'!$R$2:$R$1000))","v":0},{"$f":"SUMPRODUCT(('Fixed assets'!$R$2:$R$1000)*('Fixed assets'!$P$2:$P$1000<$A702)*('Fixed assets'!$Q$2:$Q$1000=Costs!R$617))-SUMPRODUCT(('Fixed assets'!$S$2:$S$1000)*('Fixed assets'!$P$2:$P$1000<Costs!$A702)*('Fixed assets'!$Q$2:$Q$1000=Costs!R$617))-SUMPRODUCT(('Fixed assets'!$Q$2:$Q$1000=Costs!R$617)*('Fixed assets'!$U$2:$U$1000=Costs!$A702)*('Fixed assets'!$S$2:$S$1000))+SUMPRODUCT(('Fixed assets'!$Q$2:$Q$1000=Costs!R$617)*('Fixed assets'!$P$2:$P$1000=Costs!$A702)*('Fixed assets'!$U$2:$U$1000=Costs!$A702)*('Fixed assets'!$R$2:$R$1000))","v":0},{"$f":"SUMPRODUCT(('Fixed assets'!$R$2:$R$1000)*('Fixed assets'!$P$2:$P$1000<$A702)*('Fixed assets'!$Q$2:$Q$1000=Costs!S$617))-SUMPRODUCT(('Fixed assets'!$S$2:$S$1000)*('Fixed assets'!$P$2:$P$1000<Costs!$A702)*('Fixed assets'!$Q$2:$Q$1000=Costs!S$617))-SUMPRODUCT(('Fixed assets'!$Q$2:$Q$1000=Costs!S$617)*('Fixed assets'!$U$2:$U$1000=Costs!$A702)*('Fixed assets'!$S$2:$S$1000))+SUMPRODUCT(('Fixed assets'!$Q$2:$Q$1000=Costs!S$617)*('Fixed assets'!$P$2:$P$1000=Costs!$A702)*('Fixed assets'!$U$2:$U$1000=Costs!$A702)*('Fixed assets'!$R$2:$R$1000))","v":0},{"$f":"SUMPRODUCT(('Fixed assets'!$R$2:$R$1000)*('Fixed assets'!$P$2:$P$1000<$A702)*('Fixed assets'!$Q$2:$Q$1000=Costs!T$617))-SUMPRODUCT(('Fixed assets'!$S$2:$S$1000)*('Fixed assets'!$P$2:$P$1000<Costs!$A702)*('Fixed assets'!$Q$2:$Q$1000=Costs!T$617))-SUMPRODUCT(('Fixed assets'!$Q$2:$Q$1000=Costs!T$617)*('Fixed assets'!$U$2:$U$1000=Costs!$A702)*('Fixed assets'!$S$2:$S$1000))+SUMPRODUCT(('Fixed assets'!$Q$2:$Q$1000=Costs!T$617)*('Fixed assets'!$P$2:$P$1000=Costs!$A702)*('Fixed assets'!$U$2:$U$1000=Costs!$A702)*('Fixed assets'!$R$2:$R$1000))","v":0},{"$f":"SUMPRODUCT(('Fixed assets'!$R$2:$R$1000)*('Fixed assets'!$P$2:$P$1000<$A702)*('Fixed assets'!$Q$2:$Q$1000=Costs!U$617))-SUMPRODUCT(('Fixed assets'!$S$2:$S$1000)*('Fixed assets'!$P$2:$P$1000<Costs!$A702)*('Fixed assets'!$Q$2:$Q$1000=Costs!U$617))-SUMPRODUCT(('Fixed assets'!$Q$2:$Q$1000=Costs!U$617)*('Fixed assets'!$U$2:$U$1000=Costs!$A702)*('Fixed assets'!$S$2:$S$1000))+SUMPRODUCT(('Fixed assets'!$Q$2:$Q$1000=Costs!U$617)*('Fixed assets'!$P$2:$P$1000=Costs!$A702)*('Fixed assets'!$U$2:$U$1000=Costs!$A702)*('Fixed assets'!$R$2:$R$1000))","v":0},{"$f":"SUMPRODUCT(('Fixed assets'!$R$2:$R$1000)*('Fixed assets'!$P$2:$P$1000<$A702)*('Fixed assets'!$Q$2:$Q$1000=Costs!V$617))-SUMPRODUCT(('Fixed assets'!$S$2:$S$1000)*('Fixed assets'!$P$2:$P$1000<Costs!$A702)*('Fixed assets'!$Q$2:$Q$1000=Costs!V$617))-SUMPRODUCT(('Fixed assets'!$Q$2:$Q$1000=Costs!V$617)*('Fixed assets'!$U$2:$U$1000=Costs!$A702)*('Fixed assets'!$S$2:$S$1000))+SUMPRODUCT(('Fixed assets'!$Q$2:$Q$1000=Costs!V$617)*('Fixed assets'!$P$2:$P$1000=Costs!$A702)*('Fixed assets'!$U$2:$U$1000=Costs!$A702)*('Fixed assets'!$R$2:$R$1000))","v":0},{"$f":"SUMPRODUCT(('Fixed assets'!$R$2:$R$1000)*('Fixed assets'!$P$2:$P$1000<$A702)*('Fixed assets'!$Q$2:$Q$1000=Costs!W$617))-SUMPRODUCT(('Fixed assets'!$S$2:$S$1000)*('Fixed assets'!$P$2:$P$1000<Costs!$A702)*('Fixed assets'!$Q$2:$Q$1000=Costs!W$617))-SUMPRODUCT(('Fixed assets'!$Q$2:$Q$1000=Costs!W$617)*('Fixed assets'!$U$2:$U$1000=Costs!$A702)*('Fixed assets'!$S$2:$S$1000))+SUMPRODUCT(('Fixed assets'!$Q$2:$Q$1000=Costs!W$617)*('Fixed assets'!$P$2:$P$1000=Costs!$A702)*('Fixed assets'!$U$2:$U$1000=Costs!$A702)*('Fixed assets'!$R$2:$R$1000))","v":0},{"$f":"SUMPRODUCT(('Fixed assets'!$R$2:$R$1000)*('Fixed assets'!$P$2:$P$1000<$A702)*('Fixed assets'!$Q$2:$Q$1000=Costs!X$617))-SUMPRODUCT(('Fixed assets'!$S$2:$S$1000)*('Fixed assets'!$P$2:$P$1000<Costs!$A702)*('Fixed assets'!$Q$2:$Q$1000=Costs!X$617))-SUMPRODUCT(('Fixed assets'!$Q$2:$Q$1000=Costs!X$617)*('Fixed assets'!$U$2:$U$1000=Costs!$A702)*('Fixed assets'!$S$2:$S$1000))+SUMPRODUCT(('Fixed assets'!$Q$2:$Q$1000=Costs!X$617)*('Fixed assets'!$P$2:$P$1000=Costs!$A702)*('Fixed assets'!$U$2:$U$1000=Costs!$A702)*('Fixed assets'!$R$2:$R$1000))","v":0},{"$f":"SUMPRODUCT(('Fixed assets'!$R$2:$R$1000)*('Fixed assets'!$P$2:$P$1000<$A702)*('Fixed assets'!$Q$2:$Q$1000=Costs!Y$617))-SUMPRODUCT(('Fixed assets'!$S$2:$S$1000)*('Fixed assets'!$P$2:$P$1000<Costs!$A702)*('Fixed assets'!$Q$2:$Q$1000=Costs!Y$617))-SUMPRODUCT(('Fixed assets'!$Q$2:$Q$1000=Costs!Y$617)*('Fixed assets'!$U$2:$U$1000=Costs!$A702)*('Fixed assets'!$S$2:$S$1000))+SUMPRODUCT(('Fixed assets'!$Q$2:$Q$1000=Costs!Y$617)*('Fixed assets'!$P$2:$P$1000=Costs!$A702)*('Fixed assets'!$U$2:$U$1000=Costs!$A702)*('Fixed assets'!$R$2:$R$1000))","v":0},{"$f":"SUMPRODUCT(('Fixed assets'!$R$2:$R$1000)*('Fixed assets'!$P$2:$P$1000<$A702)*('Fixed assets'!$Q$2:$Q$1000=Costs!Z$617))-SUMPRODUCT(('Fixed assets'!$S$2:$S$1000)*('Fixed assets'!$P$2:$P$1000<Costs!$A702)*('Fixed assets'!$Q$2:$Q$1000=Costs!Z$617))-SUMPRODUCT(('Fixed assets'!$Q$2:$Q$1000=Costs!Z$617)*('Fixed assets'!$U$2:$U$1000=Costs!$A702)*('Fixed assets'!$S$2:$S$1000))+SUMPRODUCT(('Fixed assets'!$Q$2:$Q$1000=Costs!Z$617)*('Fixed assets'!$P$2:$P$1000=Costs!$A702)*('Fixed assets'!$U$2:$U$1000=Costs!$A702)*('Fixed assets'!$R$2:$R$1000))","v":0},{"$f":"SUMPRODUCT(('Fixed assets'!$R$2:$R$1000)*('Fixed assets'!$P$2:$P$1000<$A702)*('Fixed assets'!$Q$2:$Q$1000=Costs!AA$617))-SUMPRODUCT(('Fixed assets'!$S$2:$S$1000)*('Fixed assets'!$P$2:$P$1000<Costs!$A702)*('Fixed assets'!$Q$2:$Q$1000=Costs!AA$617))-SUMPRODUCT(('Fixed assets'!$Q$2:$Q$1000=Costs!AA$617)*('Fixed assets'!$U$2:$U$1000=Costs!$A702)*('Fixed assets'!$S$2:$S$1000))+SUMPRODUCT(('Fixed assets'!$Q$2:$Q$1000=Costs!AA$617)*('Fixed assets'!$P$2:$P$1000=Costs!$A702)*('Fixed assets'!$U$2:$U$1000=Costs!$A702)*('Fixed assets'!$R$2:$R$1000))","v":0},{"$f":"SUMPRODUCT(('Fixed assets'!$R$2:$R$1000)*('Fixed assets'!$P$2:$P$1000<$A702)*('Fixed assets'!$Q$2:$Q$1000=Costs!AB$617))-SUMPRODUCT(('Fixed assets'!$S$2:$S$1000)*('Fixed assets'!$P$2:$P$1000<Costs!$A702)*('Fixed assets'!$Q$2:$Q$1000=Costs!AB$617))-SUMPRODUCT(('Fixed assets'!$Q$2:$Q$1000=Costs!AB$617)*('Fixed assets'!$U$2:$U$1000=Costs!$A702)*('Fixed assets'!$S$2:$S$1000))+SUMPRODUCT(('Fixed assets'!$Q$2:$Q$1000=Costs!AB$617)*('Fixed assets'!$P$2:$P$1000=Costs!$A702)*('Fixed assets'!$U$2:$U$1000=Costs!$A702)*('Fixed assets'!$R$2:$R$1000))","v":0},{"$f":"SUMPRODUCT(('Fixed assets'!$R$2:$R$1000)*('Fixed assets'!$P$2:$P$1000<$A702)*('Fixed assets'!$Q$2:$Q$1000=Costs!AC$617))-SUMPRODUCT(('Fixed assets'!$S$2:$S$1000)*('Fixed assets'!$P$2:$P$1000<Costs!$A702)*('Fixed assets'!$Q$2:$Q$1000=Costs!AC$617))-SUMPRODUCT(('Fixed assets'!$Q$2:$Q$1000=Costs!AC$617)*('Fixed assets'!$U$2:$U$1000=Costs!$A702)*('Fixed assets'!$S$2:$S$1000))+SUMPRODUCT(('Fixed assets'!$Q$2:$Q$1000=Costs!AC$617)*('Fixed assets'!$P$2:$P$1000=Costs!$A702)*('Fixed assets'!$U$2:$U$1000=Costs!$A702)*('Fixed assets'!$R$2:$R$1000))","v":0},{"$f":"SUMPRODUCT(('Fixed assets'!$R$2:$R$1000)*('Fixed assets'!$P$2:$P$1000<$A702)*('Fixed assets'!$Q$2:$Q$1000=Costs!AD$617))-SUMPRODUCT(('Fixed assets'!$S$2:$S$1000)*('Fixed assets'!$P$2:$P$1000<Costs!$A702)*('Fixed assets'!$Q$2:$Q$1000=Costs!AD$617))-SUMPRODUCT(('Fixed assets'!$Q$2:$Q$1000=Costs!AD$617)*('Fixed assets'!$U$2:$U$1000=Costs!$A702)*('Fixed assets'!$S$2:$S$1000))+SUMPRODUCT(('Fixed assets'!$Q$2:$Q$1000=Costs!AD$617)*('Fixed assets'!$P$2:$P$1000=Costs!$A702)*('Fixed assets'!$U$2:$U$1000=Costs!$A702)*('Fixed assets'!$R$2:$R$1000))","v":0},{"$f":"SUMPRODUCT(('Fixed assets'!$R$2:$R$1000)*('Fixed assets'!$P$2:$P$1000<$A702)*('Fixed assets'!$Q$2:$Q$1000=Costs!AE$617))-SUMPRODUCT(('Fixed assets'!$S$2:$S$1000)*('Fixed assets'!$P$2:$P$1000<Costs!$A702)*('Fixed assets'!$Q$2:$Q$1000=Costs!AE$617))-SUMPRODUCT(('Fixed assets'!$Q$2:$Q$1000=Costs!AE$617)*('Fixed assets'!$U$2:$U$1000=Costs!$A702)*('Fixed assets'!$S$2:$S$1000))+SUMPRODUCT(('Fixed assets'!$Q$2:$Q$1000=Costs!AE$617)*('Fixed assets'!$P$2:$P$1000=Costs!$A702)*('Fixed assets'!$U$2:$U$1000=Costs!$A702)*('Fixed assets'!$R$2:$R$1000))","v":0},{"$f":"SUMPRODUCT(('Fixed assets'!$R$2:$R$1000)*('Fixed assets'!$P$2:$P$1000<$A702)*('Fixed assets'!$Q$2:$Q$1000=Costs!AF$617))-SUMPRODUCT(('Fixed assets'!$S$2:$S$1000)*('Fixed assets'!$P$2:$P$1000<Costs!$A702)*('Fixed assets'!$Q$2:$Q$1000=Costs!AF$617))-SUMPRODUCT(('Fixed assets'!$Q$2:$Q$1000=Costs!AF$617)*('Fixed assets'!$U$2:$U$1000=Costs!$A702)*('Fixed assets'!$S$2:$S$1000))+SUMPRODUCT(('Fixed assets'!$Q$2:$Q$1000=Costs!AF$617)*('Fixed assets'!$P$2:$P$1000=Costs!$A702)*('Fixed assets'!$U$2:$U$1000=Costs!$A702)*('Fixed assets'!$R$2:$R$1000))","v":0},{"$f":"SUMPRODUCT(('Fixed assets'!$R$2:$R$1000)*('Fixed assets'!$P$2:$P$1000<$A702)*('Fixed assets'!$Q$2:$Q$1000=Costs!AG$617))-SUMPRODUCT(('Fixed assets'!$S$2:$S$1000)*('Fixed assets'!$P$2:$P$1000<Costs!$A702)*('Fixed assets'!$Q$2:$Q$1000=Costs!AG$617))-SUMPRODUCT(('Fixed assets'!$Q$2:$Q$1000=Costs!AG$617)*('Fixed assets'!$U$2:$U$1000=Costs!$A702)*('Fixed assets'!$S$2:$S$1000))+SUMPRODUCT(('Fixed assets'!$Q$2:$Q$1000=Costs!AG$617)*('Fixed assets'!$P$2:$P$1000=Costs!$A702)*('Fixed assets'!$U$2:$U$1000=Costs!$A702)*('Fixed assets'!$R$2:$R$1000))","v":0},{"$f":"SUMPRODUCT(('Fixed assets'!$R$2:$R$1000)*('Fixed assets'!$P$2:$P$1000<$A702)*('Fixed assets'!$Q$2:$Q$1000=Costs!AH$617))-SUMPRODUCT(('Fixed assets'!$S$2:$S$1000)*('Fixed assets'!$P$2:$P$1000<Costs!$A702)*('Fixed assets'!$Q$2:$Q$1000=Costs!AH$617))-SUMPRODUCT(('Fixed assets'!$Q$2:$Q$1000=Costs!AH$617)*('Fixed assets'!$U$2:$U$1000=Costs!$A702)*('Fixed assets'!$S$2:$S$1000))+SUMPRODUCT(('Fixed assets'!$Q$2:$Q$1000=Costs!AH$617)*('Fixed assets'!$P$2:$P$1000=Costs!$A702)*('Fixed assets'!$U$2:$U$1000=Costs!$A702)*('Fixed assets'!$R$2:$R$1000))","v":0},{"$f":"SUMPRODUCT(('Fixed assets'!$R$2:$R$1000)*('Fixed assets'!$P$2:$P$1000<$A702)*('Fixed assets'!$Q$2:$Q$1000=Costs!AI$617))-SUMPRODUCT(('Fixed assets'!$S$2:$S$1000)*('Fixed assets'!$P$2:$P$1000<Costs!$A702)*('Fixed assets'!$Q$2:$Q$1000=Costs!AI$617))-SUMPRODUCT(('Fixed assets'!$Q$2:$Q$1000=Costs!AI$617)*('Fixed assets'!$U$2:$U$1000=Costs!$A702)*('Fixed assets'!$S$2:$S$1000))+SUMPRODUCT(('Fixed assets'!$Q$2:$Q$1000=Costs!AI$617)*('Fixed assets'!$P$2:$P$1000=Costs!$A702)*('Fixed assets'!$U$2:$U$1000=Costs!$A702)*('Fixed assets'!$R$2:$R$1000))","v":0},{"$f":"SUMPRODUCT(('Fixed assets'!$R$2:$R$1000)*('Fixed assets'!$P$2:$P$1000<$A702)*('Fixed assets'!$Q$2:$Q$1000=Costs!AJ$617))-SUMPRODUCT(('Fixed assets'!$S$2:$S$1000)*('Fixed assets'!$P$2:$P$1000<Costs!$A702)*('Fixed assets'!$Q$2:$Q$1000=Costs!AJ$617))-SUMPRODUCT(('Fixed assets'!$Q$2:$Q$1000=Costs!AJ$617)*('Fixed assets'!$U$2:$U$1000=Costs!$A702)*('Fixed assets'!$S$2:$S$1000))+SUMPRODUCT(('Fixed assets'!$Q$2:$Q$1000=Costs!AJ$617)*('Fixed assets'!$P$2:$P$1000=Costs!$A702)*('Fixed assets'!$U$2:$U$1000=Costs!$A702)*('Fixed assets'!$R$2:$R$1000))","v":0},{"$f":"SUMPRODUCT(('Fixed assets'!$R$2:$R$1000)*('Fixed assets'!$P$2:$P$1000<$A702)*('Fixed assets'!$Q$2:$Q$1000=Costs!AK$617))-SUMPRODUCT(('Fixed assets'!$S$2:$S$1000)*('Fixed assets'!$P$2:$P$1000<Costs!$A702)*('Fixed assets'!$Q$2:$Q$1000=Costs!AK$617))-SUMPRODUCT(('Fixed assets'!$Q$2:$Q$1000=Costs!AK$617)*('Fixed assets'!$U$2:$U$1000=Costs!$A702)*('Fixed assets'!$S$2:$S$1000))+SUMPRODUCT(('Fixed assets'!$Q$2:$Q$1000=Costs!AK$617)*('Fixed assets'!$P$2:$P$1000=Costs!$A702)*('Fixed assets'!$U$2:$U$1000=Costs!$A702)*('Fixed assets'!$R$2:$R$1000))","v":0},{"$f":"SUMPRODUCT(('Fixed assets'!$R$2:$R$1000)*('Fixed assets'!$P$2:$P$1000<$A702)*('Fixed assets'!$Q$2:$Q$1000=Costs!AL$617))-SUMPRODUCT(('Fixed assets'!$S$2:$S$1000)*('Fixed assets'!$P$2:$P$1000<Costs!$A702)*('Fixed assets'!$Q$2:$Q$1000=Costs!AL$617))-SUMPRODUCT(('Fixed assets'!$Q$2:$Q$1000=Costs!AL$617)*('Fixed assets'!$U$2:$U$1000=Costs!$A702)*('Fixed assets'!$S$2:$S$1000))+SUMPRODUCT(('Fixed assets'!$Q$2:$Q$1000=Costs!AL$617)*('Fixed assets'!$P$2:$P$1000=Costs!$A702)*('Fixed assets'!$U$2:$U$1000=Costs!$A702)*('Fixed assets'!$R$2:$R$1000))","v":0},{"$f":"SUMPRODUCT(('Fixed assets'!$R$2:$R$1000)*('Fixed assets'!$P$2:$P$1000<$A702)*('Fixed assets'!$Q$2:$Q$1000=Costs!AM$617))-SUMPRODUCT(('Fixed assets'!$S$2:$S$1000)*('Fixed assets'!$P$2:$P$1000<Costs!$A702)*('Fixed assets'!$Q$2:$Q$1000=Costs!AM$617))-SUMPRODUCT(('Fixed assets'!$Q$2:$Q$1000=Costs!AM$617)*('Fixed assets'!$U$2:$U$1000=Costs!$A702)*('Fixed assets'!$S$2:$S$1000))+SUMPRODUCT(('Fixed assets'!$Q$2:$Q$1000=Costs!AM$617)*('Fixed assets'!$P$2:$P$1000=Costs!$A702)*('Fixed assets'!$U$2:$U$1000=Costs!$A702)*('Fixed assets'!$R$2:$R$1000))","v":0},{"$f":"SUMPRODUCT(('Fixed assets'!$R$2:$R$1000)*('Fixed assets'!$P$2:$P$1000<$A702)*('Fixed assets'!$Q$2:$Q$1000=Costs!AN$617))-SUMPRODUCT(('Fixed assets'!$S$2:$S$1000)*('Fixed assets'!$P$2:$P$1000<Costs!$A702)*('Fixed assets'!$Q$2:$Q$1000=Costs!AN$617))-SUMPRODUCT(('Fixed assets'!$Q$2:$Q$1000=Costs!AN$617)*('Fixed assets'!$U$2:$U$1000=Costs!$A702)*('Fixed assets'!$S$2:$S$1000))+SUMPRODUCT(('Fixed assets'!$Q$2:$Q$1000=Costs!AN$617)*('Fixed assets'!$P$2:$P$1000=Costs!$A702)*('Fixed assets'!$U$2:$U$1000=Costs!$A702)*('Fixed assets'!$R$2:$R$1000))","v":0},{"$f":"SUMPRODUCT(('Fixed assets'!$R$2:$R$1000)*('Fixed assets'!$P$2:$P$1000<$A702)*('Fixed assets'!$Q$2:$Q$1000=Costs!AO$617))-SUMPRODUCT(('Fixed assets'!$S$2:$S$1000)*('Fixed assets'!$P$2:$P$1000<Costs!$A702)*('Fixed assets'!$Q$2:$Q$1000=Costs!AO$617))-SUMPRODUCT(('Fixed assets'!$Q$2:$Q$1000=Costs!AO$617)*('Fixed assets'!$U$2:$U$1000=Costs!$A702)*('Fixed assets'!$S$2:$S$1000))+SUMPRODUCT(('Fixed assets'!$Q$2:$Q$1000=Costs!AO$617)*('Fixed assets'!$P$2:$P$1000=Costs!$A702)*('Fixed assets'!$U$2:$U$1000=Costs!$A702)*('Fixed assets'!$R$2:$R$1000))","v":0},{"$f":"SUMPRODUCT(('Fixed assets'!$R$2:$R$1000)*('Fixed assets'!$P$2:$P$1000<$A702)*('Fixed assets'!$Q$2:$Q$1000=Costs!AP$617))-SUMPRODUCT(('Fixed assets'!$S$2:$S$1000)*('Fixed assets'!$P$2:$P$1000<Costs!$A702)*('Fixed assets'!$Q$2:$Q$1000=Costs!AP$617))-SUMPRODUCT(('Fixed assets'!$Q$2:$Q$1000=Costs!AP$617)*('Fixed assets'!$U$2:$U$1000=Costs!$A702)*('Fixed assets'!$S$2:$S$1000))+SUMPRODUCT(('Fixed assets'!$Q$2:$Q$1000=Costs!AP$617)*('Fixed assets'!$P$2:$P$1000=Costs!$A702)*('Fixed assets'!$U$2:$U$1000=Costs!$A702)*('Fixed assets'!$R$2:$R$1000))","v":0},{"$f":"SUMPRODUCT(('Fixed assets'!$R$2:$R$1000)*('Fixed assets'!$P$2:$P$1000<$A702)*('Fixed assets'!$Q$2:$Q$1000=Costs!AQ$617))-SUMPRODUCT(('Fixed assets'!$S$2:$S$1000)*('Fixed assets'!$P$2:$P$1000<Costs!$A702)*('Fixed assets'!$Q$2:$Q$1000=Costs!AQ$617))-SUMPRODUCT(('Fixed assets'!$Q$2:$Q$1000=Costs!AQ$617)*('Fixed assets'!$U$2:$U$1000=Costs!$A702)*('Fixed assets'!$S$2:$S$1000))+SUMPRODUCT(('Fixed assets'!$Q$2:$Q$1000=Costs!AQ$617)*('Fixed assets'!$P$2:$P$1000=Costs!$A702)*('Fixed assets'!$U$2:$U$1000=Costs!$A702)*('Fixed assets'!$R$2:$R$1000))","v":0}]
[2100,0,{"$f":"SUMPRODUCT(('Fixed assets'!$R$2:$R$1000)*('Fixed assets'!$P$2:$P$1000<$A703)*('Fixed assets'!$Q$2:$Q$1000=Costs!C$617))-SUMPRODUCT(('Fixed assets'!$S$2:$S$1000)*('Fixed assets'!$P$2:$P$1000<Costs!$A703)*('Fixed assets'!$Q$2:$Q$1000=Costs!C$617))-SUMPRODUCT(('Fixed assets'!$Q$2:$Q$1000=Costs!C$617)*('Fixed assets'!$U$2:$U$1000=Costs!$A703)*('Fixed assets'!$S$2:$S$1000))+SUMPRODUCT(('Fixed assets'!$Q$2:$Q$1000=Costs!C$617)*('Fixed assets'!$P$2:$P$1000=Costs!$A703)*('Fixed assets'!$U$2:$U$1000=Costs!$A703)*('Fixed assets'!$R$2:$R$1000))","v":0},{"$f":"SUMPRODUCT(('Fixed assets'!$R$2:$R$1000)*('Fixed assets'!$P$2:$P$1000<$A703)*('Fixed assets'!$Q$2:$Q$1000=Costs!D$617))-SUMPRODUCT(('Fixed assets'!$S$2:$S$1000)*('Fixed assets'!$P$2:$P$1000<Costs!$A703)*('Fixed assets'!$Q$2:$Q$1000=Costs!D$617))-SUMPRODUCT(('Fixed assets'!$Q$2:$Q$1000=Costs!D$617)*('Fixed assets'!$U$2:$U$1000=Costs!$A703)*('Fixed assets'!$S$2:$S$1000))+SUMPRODUCT(('Fixed assets'!$Q$2:$Q$1000=Costs!D$617)*('Fixed assets'!$P$2:$P$1000=Costs!$A703)*('Fixed assets'!$U$2:$U$1000=Costs!$A703)*('Fixed assets'!$R$2:$R$1000))","v":0},{"$f":"SUMPRODUCT(('Fixed assets'!$R$2:$R$1000)*('Fixed assets'!$P$2:$P$1000<$A703)*('Fixed assets'!$Q$2:$Q$1000=Costs!E$617))-SUMPRODUCT(('Fixed assets'!$S$2:$S$1000)*('Fixed assets'!$P$2:$P$1000<Costs!$A703)*('Fixed assets'!$Q$2:$Q$1000=Costs!E$617))-SUMPRODUCT(('Fixed assets'!$Q$2:$Q$1000=Costs!E$617)*('Fixed assets'!$U$2:$U$1000=Costs!$A703)*('Fixed assets'!$S$2:$S$1000))+SUMPRODUCT(('Fixed assets'!$Q$2:$Q$1000=Costs!E$617)*('Fixed assets'!$P$2:$P$1000=Costs!$A703)*('Fixed assets'!$U$2:$U$1000=Costs!$A703)*('Fixed assets'!$R$2:$R$1000))","v":0},{"$f":"SUMPRODUCT(('Fixed assets'!$R$2:$R$1000)*('Fixed assets'!$P$2:$P$1000<$A703)*('Fixed assets'!$Q$2:$Q$1000=Costs!F$617))-SUMPRODUCT(('Fixed assets'!$S$2:$S$1000)*('Fixed assets'!$P$2:$P$1000<Costs!$A703)*('Fixed assets'!$Q$2:$Q$1000=Costs!F$617))-SUMPRODUCT(('Fixed assets'!$Q$2:$Q$1000=Costs!F$617)*('Fixed assets'!$U$2:$U$1000=Costs!$A703)*('Fixed assets'!$S$2:$S$1000))+SUMPRODUCT(('Fixed assets'!$Q$2:$Q$1000=Costs!F$617)*('Fixed assets'!$P$2:$P$1000=Costs!$A703)*('Fixed assets'!$U$2:$U$1000=Costs!$A703)*('Fixed assets'!$R$2:$R$1000))","v":0},{"$f":"SUMPRODUCT(('Fixed assets'!$R$2:$R$1000)*('Fixed assets'!$P$2:$P$1000<$A703)*('Fixed assets'!$Q$2:$Q$1000=Costs!G$617))-SUMPRODUCT(('Fixed assets'!$S$2:$S$1000)*('Fixed assets'!$P$2:$P$1000<Costs!$A703)*('Fixed assets'!$Q$2:$Q$1000=Costs!G$617))-SUMPRODUCT(('Fixed assets'!$Q$2:$Q$1000=Costs!G$617)*('Fixed assets'!$U$2:$U$1000=Costs!$A703)*('Fixed assets'!$S$2:$S$1000))+SUMPRODUCT(('Fixed assets'!$Q$2:$Q$1000=Costs!G$617)*('Fixed assets'!$P$2:$P$1000=Costs!$A703)*('Fixed assets'!$U$2:$U$1000=Costs!$A703)*('Fixed assets'!$R$2:$R$1000))","v":0},{"$f":"SUMPRODUCT(('Fixed assets'!$R$2:$R$1000)*('Fixed assets'!$P$2:$P$1000<$A703)*('Fixed assets'!$Q$2:$Q$1000=Costs!H$617))-SUMPRODUCT(('Fixed assets'!$S$2:$S$1000)*('Fixed assets'!$P$2:$P$1000<Costs!$A703)*('Fixed assets'!$Q$2:$Q$1000=Costs!H$617))-SUMPRODUCT(('Fixed assets'!$Q$2:$Q$1000=Costs!H$617)*('Fixed assets'!$U$2:$U$1000=Costs!$A703)*('Fixed assets'!$S$2:$S$1000))+SUMPRODUCT(('Fixed assets'!$Q$2:$Q$1000=Costs!H$617)*('Fixed assets'!$P$2:$P$1000=Costs!$A703)*('Fixed assets'!$U$2:$U$1000=Costs!$A703)*('Fixed assets'!$R$2:$R$1000))","v":0},{"$f":"SUMPRODUCT(('Fixed assets'!$R$2:$R$1000)*('Fixed assets'!$P$2:$P$1000<$A703)*('Fixed assets'!$Q$2:$Q$1000=Costs!I$617))-SUMPRODUCT(('Fixed assets'!$S$2:$S$1000)*('Fixed assets'!$P$2:$P$1000<Costs!$A703)*('Fixed assets'!$Q$2:$Q$1000=Costs!I$617))-SUMPRODUCT(('Fixed assets'!$Q$2:$Q$1000=Costs!I$617)*('Fixed assets'!$U$2:$U$1000=Costs!$A703)*('Fixed assets'!$S$2:$S$1000))+SUMPRODUCT(('Fixed assets'!$Q$2:$Q$1000=Costs!I$617)*('Fixed assets'!$P$2:$P$1000=Costs!$A703)*('Fixed assets'!$U$2:$U$1000=Costs!$A703)*('Fixed assets'!$R$2:$R$1000))","v":0},{"$f":"SUMPRODUCT(('Fixed assets'!$R$2:$R$1000)*('Fixed assets'!$P$2:$P$1000<$A703)*('Fixed assets'!$Q$2:$Q$1000=Costs!J$617))-SUMPRODUCT(('Fixed assets'!$S$2:$S$1000)*('Fixed assets'!$P$2:$P$1000<Costs!$A703)*('Fixed assets'!$Q$2:$Q$1000=Costs!J$617))-SUMPRODUCT(('Fixed assets'!$Q$2:$Q$1000=Costs!J$617)*('Fixed assets'!$U$2:$U$1000=Costs!$A703)*('Fixed assets'!$S$2:$S$1000))+SUMPRODUCT(('Fixed assets'!$Q$2:$Q$1000=Costs!J$617)*('Fixed assets'!$P$2:$P$1000=Costs!$A703)*('Fixed assets'!$U$2:$U$1000=Costs!$A703)*('Fixed assets'!$R$2:$R$1000))","v":0},{"$f":"SUMPRODUCT(('Fixed assets'!$R$2:$R$1000)*('Fixed assets'!$P$2:$P$1000<$A703)*('Fixed assets'!$Q$2:$Q$1000=Costs!K$617))-SUMPRODUCT(('Fixed assets'!$S$2:$S$1000)*('Fixed assets'!$P$2:$P$1000<Costs!$A703)*('Fixed assets'!$Q$2:$Q$1000=Costs!K$617))-SUMPRODUCT(('Fixed assets'!$Q$2:$Q$1000=Costs!K$617)*('Fixed assets'!$U$2:$U$1000=Costs!$A703)*('Fixed assets'!$S$2:$S$1000))+SUMPRODUCT(('Fixed assets'!$Q$2:$Q$1000=Costs!K$617)*('Fixed assets'!$P$2:$P$1000=Costs!$A703)*('Fixed assets'!$U$2:$U$1000=Costs!$A703)*('Fixed assets'!$R$2:$R$1000))","v":0},{"$f":"SUMPRODUCT(('Fixed assets'!$R$2:$R$1000)*('Fixed assets'!$P$2:$P$1000<$A703)*('Fixed assets'!$Q$2:$Q$1000=Costs!L$617))-SUMPRODUCT(('Fixed assets'!$S$2:$S$1000)*('Fixed assets'!$P$2:$P$1000<Costs!$A703)*('Fixed assets'!$Q$2:$Q$1000=Costs!L$617))-SUMPRODUCT(('Fixed assets'!$Q$2:$Q$1000=Costs!L$617)*('Fixed assets'!$U$2:$U$1000=Costs!$A703)*('Fixed assets'!$S$2:$S$1000))+SUMPRODUCT(('Fixed assets'!$Q$2:$Q$1000=Costs!L$617)*('Fixed assets'!$P$2:$P$1000=Costs!$A703)*('Fixed assets'!$U$2:$U$1000=Costs!$A703)*('Fixed assets'!$R$2:$R$1000))","v":0},{"$f":"SUMPRODUCT(('Fixed assets'!$R$2:$R$1000)*('Fixed assets'!$P$2:$P$1000<$A703)*('Fixed assets'!$Q$2:$Q$1000=Costs!M$617))-SUMPRODUCT(('Fixed assets'!$S$2:$S$1000)*('Fixed assets'!$P$2:$P$1000<Costs!$A703)*('Fixed assets'!$Q$2:$Q$1000=Costs!M$617))-SUMPRODUCT(('Fixed assets'!$Q$2:$Q$1000=Costs!M$617)*('Fixed assets'!$U$2:$U$1000=Costs!$A703)*('Fixed assets'!$S$2:$S$1000))+SUMPRODUCT(('Fixed assets'!$Q$2:$Q$1000=Costs!M$617)*('Fixed assets'!$P$2:$P$1000=Costs!$A703)*('Fixed assets'!$U$2:$U$1000=Costs!$A703)*('Fixed assets'!$R$2:$R$1000))","v":0},{"$f":"SUMPRODUCT(('Fixed assets'!$R$2:$R$1000)*('Fixed assets'!$P$2:$P$1000<$A703)*('Fixed assets'!$Q$2:$Q$1000=Costs!N$617))-SUMPRODUCT(('Fixed assets'!$S$2:$S$1000)*('Fixed assets'!$P$2:$P$1000<Costs!$A703)*('Fixed assets'!$Q$2:$Q$1000=Costs!N$617))-SUMPRODUCT(('Fixed assets'!$Q$2:$Q$1000=Costs!N$617)*('Fixed assets'!$U$2:$U$1000=Costs!$A703)*('Fixed assets'!$S$2:$S$1000))+SUMPRODUCT(('Fixed assets'!$Q$2:$Q$1000=Costs!N$617)*('Fixed assets'!$P$2:$P$1000=Costs!$A703)*('Fixed assets'!$U$2:$U$1000=Costs!$A703)*('Fixed assets'!$R$2:$R$1000))","v":0},{"$f":"SUMPRODUCT(('Fixed assets'!$R$2:$R$1000)*('Fixed assets'!$P$2:$P$1000<$A703)*('Fixed assets'!$Q$2:$Q$1000=Costs!O$617))-SUMPRODUCT(('Fixed assets'!$S$2:$S$1000)*('Fixed assets'!$P$2:$P$1000<Costs!$A703)*('Fixed assets'!$Q$2:$Q$1000=Costs!O$617))-SUMPRODUCT(('Fixed assets'!$Q$2:$Q$1000=Costs!O$617)*('Fixed assets'!$U$2:$U$1000=Costs!$A703)*('Fixed assets'!$S$2:$S$1000))+SUMPRODUCT(('Fixed assets'!$Q$2:$Q$1000=Costs!O$617)*('Fixed assets'!$P$2:$P$1000=Costs!$A703)*('Fixed assets'!$U$2:$U$1000=Costs!$A703)*('Fixed assets'!$R$2:$R$1000))","v":0},{"$f":"SUMPRODUCT(('Fixed assets'!$R$2:$R$1000)*('Fixed assets'!$P$2:$P$1000<$A703)*('Fixed assets'!$Q$2:$Q$1000=Costs!P$617))-SUMPRODUCT(('Fixed assets'!$S$2:$S$1000)*('Fixed assets'!$P$2:$P$1000<Costs!$A703)*('Fixed assets'!$Q$2:$Q$1000=Costs!P$617))-SUMPRODUCT(('Fixed assets'!$Q$2:$Q$1000=Costs!P$617)*('Fixed assets'!$U$2:$U$1000=Costs!$A703)*('Fixed assets'!$S$2:$S$1000))+SUMPRODUCT(('Fixed assets'!$Q$2:$Q$1000=Costs!P$617)*('Fixed assets'!$P$2:$P$1000=Costs!$A703)*('Fixed assets'!$U$2:$U$1000=Costs!$A703)*('Fixed assets'!$R$2:$R$1000))","v":0},{"$f":"SUMPRODUCT(('Fixed assets'!$R$2:$R$1000)*('Fixed assets'!$P$2:$P$1000<$A703)*('Fixed assets'!$Q$2:$Q$1000=Costs!Q$617))-SUMPRODUCT(('Fixed assets'!$S$2:$S$1000)*('Fixed assets'!$P$2:$P$1000<Costs!$A703)*('Fixed assets'!$Q$2:$Q$1000=Costs!Q$617))-SUMPRODUCT(('Fixed assets'!$Q$2:$Q$1000=Costs!Q$617)*('Fixed assets'!$U$2:$U$1000=Costs!$A703)*('Fixed assets'!$S$2:$S$1000))+SUMPRODUCT(('Fixed assets'!$Q$2:$Q$1000=Costs!Q$617)*('Fixed assets'!$P$2:$P$1000=Costs!$A703)*('Fixed assets'!$U$2:$U$1000=Costs!$A703)*('Fixed assets'!$R$2:$R$1000))","v":0},{"$f":"SUMPRODUCT(('Fixed assets'!$R$2:$R$1000)*('Fixed assets'!$P$2:$P$1000<$A703)*('Fixed assets'!$Q$2:$Q$1000=Costs!R$617))-SUMPRODUCT(('Fixed assets'!$S$2:$S$1000)*('Fixed assets'!$P$2:$P$1000<Costs!$A703)*('Fixed assets'!$Q$2:$Q$1000=Costs!R$617))-SUMPRODUCT(('Fixed assets'!$Q$2:$Q$1000=Costs!R$617)*('Fixed assets'!$U$2:$U$1000=Costs!$A703)*('Fixed assets'!$S$2:$S$1000))+SUMPRODUCT(('Fixed assets'!$Q$2:$Q$1000=Costs!R$617)*('Fixed assets'!$P$2:$P$1000=Costs!$A703)*('Fixed assets'!$U$2:$U$1000=Costs!$A703)*('Fixed assets'!$R$2:$R$1000))","v":0},{"$f":"SUMPRODUCT(('Fixed assets'!$R$2:$R$1000)*('Fixed assets'!$P$2:$P$1000<$A703)*('Fixed assets'!$Q$2:$Q$1000=Costs!S$617))-SUMPRODUCT(('Fixed assets'!$S$2:$S$1000)*('Fixed assets'!$P$2:$P$1000<Costs!$A703)*('Fixed assets'!$Q$2:$Q$1000=Costs!S$617))-SUMPRODUCT(('Fixed assets'!$Q$2:$Q$1000=Costs!S$617)*('Fixed assets'!$U$2:$U$1000=Costs!$A703)*('Fixed assets'!$S$2:$S$1000))+SUMPRODUCT(('Fixed assets'!$Q$2:$Q$1000=Costs!S$617)*('Fixed assets'!$P$2:$P$1000=Costs!$A703)*('Fixed assets'!$U$2:$U$1000=Costs!$A703)*('Fixed assets'!$R$2:$R$1000))","v":0},{"$f":"SUMPRODUCT(('Fixed assets'!$R$2:$R$1000)*('Fixed assets'!$P$2:$P$1000<$A703)*('Fixed assets'!$Q$2:$Q$1000=Costs!T$617))-SUMPRODUCT(('Fixed assets'!$S$2:$S$1000)*('Fixed assets'!$P$2:$P$1000<Costs!$A703)*('Fixed assets'!$Q$2:$Q$1000=Costs!T$617))-SUMPRODUCT(('Fixed assets'!$Q$2:$Q$1000=Costs!T$617)*('Fixed assets'!$U$2:$U$1000=Costs!$A703)*('Fixed assets'!$S$2:$S$1000))+SUMPRODUCT(('Fixed assets'!$Q$2:$Q$1000=Costs!T$617)*('Fixed assets'!$P$2:$P$1000=Costs!$A703)*('Fixed assets'!$U$2:$U$1000=Costs!$A703)*('Fixed assets'!$R$2:$R$1000))","v":0},{"$f":"SUMPRODUCT(('Fixed assets'!$R$2:$R$1000)*('Fixed assets'!$P$2:$P$1000<$A703)*('Fixed assets'!$Q$2:$Q$1000=Costs!U$617))-SUMPRODUCT(('Fixed assets'!$S$2:$S$1000)*('Fixed assets'!$P$2:$P$1000<Costs!$A703)*('Fixed assets'!$Q$2:$Q$1000=Costs!U$617))-SUMPRODUCT(('Fixed assets'!$Q$2:$Q$1000=Costs!U$617)*('Fixed assets'!$U$2:$U$1000=Costs!$A703)*('Fixed assets'!$S$2:$S$1000))+SUMPRODUCT(('Fixed assets'!$Q$2:$Q$1000=Costs!U$617)*('Fixed assets'!$P$2:$P$1000=Costs!$A703)*('Fixed assets'!$U$2:$U$1000=Costs!$A703)*('Fixed assets'!$R$2:$R$1000))","v":0},{"$f":"SUMPRODUCT(('Fixed assets'!$R$2:$R$1000)*('Fixed assets'!$P$2:$P$1000<$A703)*('Fixed assets'!$Q$2:$Q$1000=Costs!V$617))-SUMPRODUCT(('Fixed assets'!$S$2:$S$1000)*('Fixed assets'!$P$2:$P$1000<Costs!$A703)*('Fixed assets'!$Q$2:$Q$1000=Costs!V$617))-SUMPRODUCT(('Fixed assets'!$Q$2:$Q$1000=Costs!V$617)*('Fixed assets'!$U$2:$U$1000=Costs!$A703)*('Fixed assets'!$S$2:$S$1000))+SUMPRODUCT(('Fixed assets'!$Q$2:$Q$1000=Costs!V$617)*('Fixed assets'!$P$2:$P$1000=Costs!$A703)*('Fixed assets'!$U$2:$U$1000=Costs!$A703)*('Fixed assets'!$R$2:$R$1000))","v":0},{"$f":"SUMPRODUCT(('Fixed assets'!$R$2:$R$1000)*('Fixed assets'!$P$2:$P$1000<$A703)*('Fixed assets'!$Q$2:$Q$1000=Costs!W$617))-SUMPRODUCT(('Fixed assets'!$S$2:$S$1000)*('Fixed assets'!$P$2:$P$1000<Costs!$A703)*('Fixed assets'!$Q$2:$Q$1000=Costs!W$617))-SUMPRODUCT(('Fixed assets'!$Q$2:$Q$1000=Costs!W$617)*('Fixed assets'!$U$2:$U$1000=Costs!$A703)*('Fixed assets'!$S$2:$S$1000))+SUMPRODUCT(('Fixed assets'!$Q$2:$Q$1000=Costs!W$617)*('Fixed assets'!$P$2:$P$1000=Costs!$A703)*('Fixed assets'!$U$2:$U$1000=Costs!$A703)*('Fixed assets'!$R$2:$R$1000))","v":0},{"$f":"SUMPRODUCT(('Fixed assets'!$R$2:$R$1000)*('Fixed assets'!$P$2:$P$1000<$A703)*('Fixed assets'!$Q$2:$Q$1000=Costs!X$617))-SUMPRODUCT(('Fixed assets'!$S$2:$S$1000)*('Fixed assets'!$P$2:$P$1000<Costs!$A703)*('Fixed assets'!$Q$2:$Q$1000=Costs!X$617))-SUMPRODUCT(('Fixed assets'!$Q$2:$Q$1000=Costs!X$617)*('Fixed assets'!$U$2:$U$1000=Costs!$A703)*('Fixed assets'!$S$2:$S$1000))+SUMPRODUCT(('Fixed assets'!$Q$2:$Q$1000=Costs!X$617)*('Fixed assets'!$P$2:$P$1000=Costs!$A703)*('Fixed assets'!$U$2:$U$1000=Costs!$A703)*('Fixed assets'!$R$2:$R$1000))","v":0},{"$f":"SUMPRODUCT(('Fixed assets'!$R$2:$R$1000)*('Fixed assets'!$P$2:$P$1000<$A703)*('Fixed assets'!$Q$2:$Q$1000=Costs!Y$617))-SUMPRODUCT(('Fixed assets'!$S$2:$S$1000)*('Fixed assets'!$P$2:$P$1000<Costs!$A703)*('Fixed assets'!$Q$2:$Q$1000=Costs!Y$617))-SUMPRODUCT(('Fixed assets'!$Q$2:$Q$1000=Costs!Y$617)*('Fixed assets'!$U$2:$U$1000=Costs!$A703)*('Fixed assets'!$S$2:$S$1000))+SUMPRODUCT(('Fixed assets'!$Q$2:$Q$1000=Costs!Y$617)*('Fixed assets'!$P$2:$P$1000=Costs!$A703)*('Fixed assets'!$U$2:$U$1000=Costs!$A703)*('Fixed assets'!$R$2:$R$1000))","v":0},{"$f":"SUMPRODUCT(('Fixed assets'!$R$2:$R$1000)*('Fixed assets'!$P$2:$P$1000<$A703)*('Fixed assets'!$Q$2:$Q$1000=Costs!Z$617))-SUMPRODUCT(('Fixed assets'!$S$2:$S$1000)*('Fixed assets'!$P$2:$P$1000<Costs!$A703)*('Fixed assets'!$Q$2:$Q$1000=Costs!Z$617))-SUMPRODUCT(('Fixed assets'!$Q$2:$Q$1000=Costs!Z$617)*('Fixed assets'!$U$2:$U$1000=Costs!$A703)*('Fixed assets'!$S$2:$S$1000))+SUMPRODUCT(('Fixed assets'!$Q$2:$Q$1000=Costs!Z$617)*('Fixed assets'!$P$2:$P$1000=Costs!$A703)*('Fixed assets'!$U$2:$U$1000=Costs!$A703)*('Fixed assets'!$R$2:$R$1000))","v":0},{"$f":"SUMPRODUCT(('Fixed assets'!$R$2:$R$1000)*('Fixed assets'!$P$2:$P$1000<$A703)*('Fixed assets'!$Q$2:$Q$1000=Costs!AA$617))-SUMPRODUCT(('Fixed assets'!$S$2:$S$1000)*('Fixed assets'!$P$2:$P$1000<Costs!$A703)*('Fixed assets'!$Q$2:$Q$1000=Costs!AA$617))-SUMPRODUCT(('Fixed assets'!$Q$2:$Q$1000=Costs!AA$617)*('Fixed assets'!$U$2:$U$1000=Costs!$A703)*('Fixed assets'!$S$2:$S$1000))+SUMPRODUCT(('Fixed assets'!$Q$2:$Q$1000=Costs!AA$617)*('Fixed assets'!$P$2:$P$1000=Costs!$A703)*('Fixed assets'!$U$2:$U$1000=Costs!$A703)*('Fixed assets'!$R$2:$R$1000))","v":0},{"$f":"SUMPRODUCT(('Fixed assets'!$R$2:$R$1000)*('Fixed assets'!$P$2:$P$1000<$A703)*('Fixed assets'!$Q$2:$Q$1000=Costs!AB$617))-SUMPRODUCT(('Fixed assets'!$S$2:$S$1000)*('Fixed assets'!$P$2:$P$1000<Costs!$A703)*('Fixed assets'!$Q$2:$Q$1000=Costs!AB$617))-SUMPRODUCT(('Fixed assets'!$Q$2:$Q$1000=Costs!AB$617)*('Fixed assets'!$U$2:$U$1000=Costs!$A703)*('Fixed assets'!$S$2:$S$1000))+SUMPRODUCT(('Fixed assets'!$Q$2:$Q$1000=Costs!AB$617)*('Fixed assets'!$P$2:$P$1000=Costs!$A703)*('Fixed assets'!$U$2:$U$1000=Costs!$A703)*('Fixed assets'!$R$2:$R$1000))","v":0},{"$f":"SUMPRODUCT(('Fixed assets'!$R$2:$R$1000)*('Fixed assets'!$P$2:$P$1000<$A703)*('Fixed assets'!$Q$2:$Q$1000=Costs!AC$617))-SUMPRODUCT(('Fixed assets'!$S$2:$S$1000)*('Fixed assets'!$P$2:$P$1000<Costs!$A703)*('Fixed assets'!$Q$2:$Q$1000=Costs!AC$617))-SUMPRODUCT(('Fixed assets'!$Q$2:$Q$1000=Costs!AC$617)*('Fixed assets'!$U$2:$U$1000=Costs!$A703)*('Fixed assets'!$S$2:$S$1000))+SUMPRODUCT(('Fixed assets'!$Q$2:$Q$1000=Costs!AC$617)*('Fixed assets'!$P$2:$P$1000=Costs!$A703)*('Fixed assets'!$U$2:$U$1000=Costs!$A703)*('Fixed assets'!$R$2:$R$1000))","v":0},{"$f":"SUMPRODUCT(('Fixed assets'!$R$2:$R$1000)*('Fixed assets'!$P$2:$P$1000<$A703)*('Fixed assets'!$Q$2:$Q$1000=Costs!AD$617))-SUMPRODUCT(('Fixed assets'!$S$2:$S$1000)*('Fixed assets'!$P$2:$P$1000<Costs!$A703)*('Fixed assets'!$Q$2:$Q$1000=Costs!AD$617))-SUMPRODUCT(('Fixed assets'!$Q$2:$Q$1000=Costs!AD$617)*('Fixed assets'!$U$2:$U$1000=Costs!$A703)*('Fixed assets'!$S$2:$S$1000))+SUMPRODUCT(('Fixed assets'!$Q$2:$Q$1000=Costs!AD$617)*('Fixed assets'!$P$2:$P$1000=Costs!$A703)*('Fixed assets'!$U$2:$U$1000=Costs!$A703)*('Fixed assets'!$R$2:$R$1000))","v":0},{"$f":"SUMPRODUCT(('Fixed assets'!$R$2:$R$1000)*('Fixed assets'!$P$2:$P$1000<$A703)*('Fixed assets'!$Q$2:$Q$1000=Costs!AE$617))-SUMPRODUCT(('Fixed assets'!$S$2:$S$1000)*('Fixed assets'!$P$2:$P$1000<Costs!$A703)*('Fixed assets'!$Q$2:$Q$1000=Costs!AE$617))-SUMPRODUCT(('Fixed assets'!$Q$2:$Q$1000=Costs!AE$617)*('Fixed assets'!$U$2:$U$1000=Costs!$A703)*('Fixed assets'!$S$2:$S$1000))+SUMPRODUCT(('Fixed assets'!$Q$2:$Q$1000=Costs!AE$617)*('Fixed assets'!$P$2:$P$1000=Costs!$A703)*('Fixed assets'!$U$2:$U$1000=Costs!$A703)*('Fixed assets'!$R$2:$R$1000))","v":0},{"$f":"SUMPRODUCT(('Fixed assets'!$R$2:$R$1000)*('Fixed assets'!$P$2:$P$1000<$A703)*('Fixed assets'!$Q$2:$Q$1000=Costs!AF$617))-SUMPRODUCT(('Fixed assets'!$S$2:$S$1000)*('Fixed assets'!$P$2:$P$1000<Costs!$A703)*('Fixed assets'!$Q$2:$Q$1000=Costs!AF$617))-SUMPRODUCT(('Fixed assets'!$Q$2:$Q$1000=Costs!AF$617)*('Fixed assets'!$U$2:$U$1000=Costs!$A703)*('Fixed assets'!$S$2:$S$1000))+SUMPRODUCT(('Fixed assets'!$Q$2:$Q$1000=Costs!AF$617)*('Fixed assets'!$P$2:$P$1000=Costs!$A703)*('Fixed assets'!$U$2:$U$1000=Costs!$A703)*('Fixed assets'!$R$2:$R$1000))","v":0},{"$f":"SUMPRODUCT(('Fixed assets'!$R$2:$R$1000)*('Fixed assets'!$P$2:$P$1000<$A703)*('Fixed assets'!$Q$2:$Q$1000=Costs!AG$617))-SUMPRODUCT(('Fixed assets'!$S$2:$S$1000)*('Fixed assets'!$P$2:$P$1000<Costs!$A703)*('Fixed assets'!$Q$2:$Q$1000=Costs!AG$617))-SUMPRODUCT(('Fixed assets'!$Q$2:$Q$1000=Costs!AG$617)*('Fixed assets'!$U$2:$U$1000=Costs!$A703)*('Fixed assets'!$S$2:$S$1000))+SUMPRODUCT(('Fixed assets'!$Q$2:$Q$1000=Costs!AG$617)*('Fixed assets'!$P$2:$P$1000=Costs!$A703)*('Fixed assets'!$U$2:$U$1000=Costs!$A703)*('Fixed assets'!$R$2:$R$1000))","v":0},{"$f":"SUMPRODUCT(('Fixed assets'!$R$2:$R$1000)*('Fixed assets'!$P$2:$P$1000<$A703)*('Fixed assets'!$Q$2:$Q$1000=Costs!AH$617))-SUMPRODUCT(('Fixed assets'!$S$2:$S$1000)*('Fixed assets'!$P$2:$P$1000<Costs!$A703)*('Fixed assets'!$Q$2:$Q$1000=Costs!AH$617))-SUMPRODUCT(('Fixed assets'!$Q$2:$Q$1000=Costs!AH$617)*('Fixed assets'!$U$2:$U$1000=Costs!$A703)*('Fixed assets'!$S$2:$S$1000))+SUMPRODUCT(('Fixed assets'!$Q$2:$Q$1000=Costs!AH$617)*('Fixed assets'!$P$2:$P$1000=Costs!$A703)*('Fixed assets'!$U$2:$U$1000=Costs!$A703)*('Fixed assets'!$R$2:$R$1000))","v":0},{"$f":"SUMPRODUCT(('Fixed assets'!$R$2:$R$1000)*('Fixed assets'!$P$2:$P$1000<$A703)*('Fixed assets'!$Q$2:$Q$1000=Costs!AI$617))-SUMPRODUCT(('Fixed assets'!$S$2:$S$1000)*('Fixed assets'!$P$2:$P$1000<Costs!$A703)*('Fixed assets'!$Q$2:$Q$1000=Costs!AI$617))-SUMPRODUCT(('Fixed assets'!$Q$2:$Q$1000=Costs!AI$617)*('Fixed assets'!$U$2:$U$1000=Costs!$A703)*('Fixed assets'!$S$2:$S$1000))+SUMPRODUCT(('Fixed assets'!$Q$2:$Q$1000=Costs!AI$617)*('Fixed assets'!$P$2:$P$1000=Costs!$A703)*('Fixed assets'!$U$2:$U$1000=Costs!$A703)*('Fixed assets'!$R$2:$R$1000))","v":0},{"$f":"SUMPRODUCT(('Fixed assets'!$R$2:$R$1000)*('Fixed assets'!$P$2:$P$1000<$A703)*('Fixed assets'!$Q$2:$Q$1000=Costs!AJ$617))-SUMPRODUCT(('Fixed assets'!$S$2:$S$1000)*('Fixed assets'!$P$2:$P$1000<Costs!$A703)*('Fixed assets'!$Q$2:$Q$1000=Costs!AJ$617))-SUMPRODUCT(('Fixed assets'!$Q$2:$Q$1000=Costs!AJ$617)*('Fixed assets'!$U$2:$U$1000=Costs!$A703)*('Fixed assets'!$S$2:$S$1000))+SUMPRODUCT(('Fixed assets'!$Q$2:$Q$1000=Costs!AJ$617)*('Fixed assets'!$P$2:$P$1000=Costs!$A703)*('Fixed assets'!$U$2:$U$1000=Costs!$A703)*('Fixed assets'!$R$2:$R$1000))","v":0},{"$f":"SUMPRODUCT(('Fixed assets'!$R$2:$R$1000)*('Fixed assets'!$P$2:$P$1000<$A703)*('Fixed assets'!$Q$2:$Q$1000=Costs!AK$617))-SUMPRODUCT(('Fixed assets'!$S$2:$S$1000)*('Fixed assets'!$P$2:$P$1000<Costs!$A703)*('Fixed assets'!$Q$2:$Q$1000=Costs!AK$617))-SUMPRODUCT(('Fixed assets'!$Q$2:$Q$1000=Costs!AK$617)*('Fixed assets'!$U$2:$U$1000=Costs!$A703)*('Fixed assets'!$S$2:$S$1000))+SUMPRODUCT(('Fixed assets'!$Q$2:$Q$1000=Costs!AK$617)*('Fixed assets'!$P$2:$P$1000=Costs!$A703)*('Fixed assets'!$U$2:$U$1000=Costs!$A703)*('Fixed assets'!$R$2:$R$1000))","v":0},{"$f":"SUMPRODUCT(('Fixed assets'!$R$2:$R$1000)*('Fixed assets'!$P$2:$P$1000<$A703)*('Fixed assets'!$Q$2:$Q$1000=Costs!AL$617))-SUMPRODUCT(('Fixed assets'!$S$2:$S$1000)*('Fixed assets'!$P$2:$P$1000<Costs!$A703)*('Fixed assets'!$Q$2:$Q$1000=Costs!AL$617))-SUMPRODUCT(('Fixed assets'!$Q$2:$Q$1000=Costs!AL$617)*('Fixed assets'!$U$2:$U$1000=Costs!$A703)*('Fixed assets'!$S$2:$S$1000))+SUMPRODUCT(('Fixed assets'!$Q$2:$Q$1000=Costs!AL$617)*('Fixed assets'!$P$2:$P$1000=Costs!$A703)*('Fixed assets'!$U$2:$U$1000=Costs!$A703)*('Fixed assets'!$R$2:$R$1000))","v":0},{"$f":"SUMPRODUCT(('Fixed assets'!$R$2:$R$1000)*('Fixed assets'!$P$2:$P$1000<$A703)*('Fixed assets'!$Q$2:$Q$1000=Costs!AM$617))-SUMPRODUCT(('Fixed assets'!$S$2:$S$1000)*('Fixed assets'!$P$2:$P$1000<Costs!$A703)*('Fixed assets'!$Q$2:$Q$1000=Costs!AM$617))-SUMPRODUCT(('Fixed assets'!$Q$2:$Q$1000=Costs!AM$617)*('Fixed assets'!$U$2:$U$1000=Costs!$A703)*('Fixed assets'!$S$2:$S$1000))+SUMPRODUCT(('Fixed assets'!$Q$2:$Q$1000=Costs!AM$617)*('Fixed assets'!$P$2:$P$1000=Costs!$A703)*('Fixed assets'!$U$2:$U$1000=Costs!$A703)*('Fixed assets'!$R$2:$R$1000))","v":0},{"$f":"SUMPRODUCT(('Fixed assets'!$R$2:$R$1000)*('Fixed assets'!$P$2:$P$1000<$A703)*('Fixed assets'!$Q$2:$Q$1000=Costs!AN$617))-SUMPRODUCT(('Fixed assets'!$S$2:$S$1000)*('Fixed assets'!$P$2:$P$1000<Costs!$A703)*('Fixed assets'!$Q$2:$Q$1000=Costs!AN$617))-SUMPRODUCT(('Fixed assets'!$Q$2:$Q$1000=Costs!AN$617)*('Fixed assets'!$U$2:$U$1000=Costs!$A703)*('Fixed assets'!$S$2:$S$1000))+SUMPRODUCT(('Fixed assets'!$Q$2:$Q$1000=Costs!AN$617)*('Fixed assets'!$P$2:$P$1000=Costs!$A703)*('Fixed assets'!$U$2:$U$1000=Costs!$A703)*('Fixed assets'!$R$2:$R$1000))","v":0},{"$f":"SUMPRODUCT(('Fixed assets'!$R$2:$R$1000)*('Fixed assets'!$P$2:$P$1000<$A703)*('Fixed assets'!$Q$2:$Q$1000=Costs!AO$617))-SUMPRODUCT(('Fixed assets'!$S$2:$S$1000)*('Fixed assets'!$P$2:$P$1000<Costs!$A703)*('Fixed assets'!$Q$2:$Q$1000=Costs!AO$617))-SUMPRODUCT(('Fixed assets'!$Q$2:$Q$1000=Costs!AO$617)*('Fixed assets'!$U$2:$U$1000=Costs!$A703)*('Fixed assets'!$S$2:$S$1000))+SUMPRODUCT(('Fixed assets'!$Q$2:$Q$1000=Costs!AO$617)*('Fixed assets'!$P$2:$P$1000=Costs!$A703)*('Fixed assets'!$U$2:$U$1000=Costs!$A703)*('Fixed assets'!$R$2:$R$1000))","v":0},{"$f":"SUMPRODUCT(('Fixed assets'!$R$2:$R$1000)*('Fixed assets'!$P$2:$P$1000<$A703)*('Fixed assets'!$Q$2:$Q$1000=Costs!AP$617))-SUMPRODUCT(('Fixed assets'!$S$2:$S$1000)*('Fixed assets'!$P$2:$P$1000<Costs!$A703)*('Fixed assets'!$Q$2:$Q$1000=Costs!AP$617))-SUMPRODUCT(('Fixed assets'!$Q$2:$Q$1000=Costs!AP$617)*('Fixed assets'!$U$2:$U$1000=Costs!$A703)*('Fixed assets'!$S$2:$S$1000))+SUMPRODUCT(('Fixed assets'!$Q$2:$Q$1000=Costs!AP$617)*('Fixed assets'!$P$2:$P$1000=Costs!$A703)*('Fixed assets'!$U$2:$U$1000=Costs!$A703)*('Fixed assets'!$R$2:$R$1000))","v":0},{"$f":"SUMPRODUCT(('Fixed assets'!$R$2:$R$1000)*('Fixed assets'!$P$2:$P$1000<$A703)*('Fixed assets'!$Q$2:$Q$1000=Costs!AQ$617))-SUMPRODUCT(('Fixed assets'!$S$2:$S$1000)*('Fixed assets'!$P$2:$P$1000<Costs!$A703)*('Fixed assets'!$Q$2:$Q$1000=Costs!AQ$617))-SUMPRODUCT(('Fixed assets'!$Q$2:$Q$1000=Costs!AQ$617)*('Fixed assets'!$U$2:$U$1000=Costs!$A703)*('Fixed assets'!$S$2:$S$1000))+SUMPRODUCT(('Fixed assets'!$Q$2:$Q$1000=Costs!AQ$617)*('Fixed assets'!$P$2:$P$1000=Costs!$A703)*('Fixed assets'!$U$2:$U$1000=Costs!$A703)*('Fixed assets'!$R$2:$R$1000))","v":0}]
[]
[null,null,1,2,3,4,5,6,7,8,9,10,11,12,13,14,15,16,17,18,19,20,21,22,23,24,25,26,27,28,29,30,31,32,33,34,35,36,37,38,39,40,41]
["AUC end value","Total","Properties","Property facilities, structures for transport system","Operating buildings","Administrative buildings","Track systems, wagons","Business equipment (without IT/tools/devices)","Tools/devices","Storage facilities","Hardware","Software","Light vehicles","Heavy vehicles","Gas holders","Natural gas compression","Gas purifiers","Piping and fittings","Gas measuring equipment","Safety equipment","Control and energy technology","Ancillary facilities","Buildings, transport routes","Steel pipelines – encapsulated in PE","Steel pipelines – cathodic protection","Steel pipelines – bituminised","Grey cast iron (> DN 150)","Polyethylene (PE - HD)","Polyvinyl chloride (PVC)","Polyvinyl chloride (PVC)","Fittings","Pig traps","Safety equipment","Gas meters of distribution","Service regulators/meter regulators","Metering equipment","Control equipment","Safety equipment","Control and energy technology","Compressors in gas-mixing systems by duration of use","Ancillary facilities","Buildings","Remote control equipment"]
[2016,{"$f":"SUM(C707:AQ707)","v":0},{"$f":"C619+SUMPRODUCT(('Fixed assets'!$Q$2:$Q$1000=Costs!C$705)*('Fixed assets'!$U$2:$U$1000>Costs!$A707)*('Fixed assets'!$P$2:$P$1000=Costs!$A707)*('Fixed assets'!$R$2:$R$1000))-SUMPRODUCT(('Fixed assets'!$Q$2:$Q$1000=Costs!C$705)*('Fixed assets'!$U$2:$U$1000>Costs!$A707)*('Fixed assets'!$P$2:$P$1000=Costs!$A707)*('Fixed assets'!$S$2:$S$1000))","v":0},{"$f":"D619+SUMPRODUCT(('Fixed assets'!$Q$2:$Q$1000=Costs!D$705)*('Fixed assets'!$U$2:$U$1000>Costs!$A707)*('Fixed assets'!$P$2:$P$1000=Costs!$A707)*('Fixed assets'!$R$2:$R$1000))-SUMPRODUCT(('Fixed assets'!$Q$2:$Q$1000=Costs!D$705)*('Fixed assets'!$U$2:$U$1000>Costs!$A707)*('Fixed assets'!$P$2:$P$1000=Costs!$A707)*('Fixed assets'!$S$2:$S$1000))","v":0},{"$f":"E619+SUMPRODUCT(('Fixed assets'!$Q$2:$Q$1000=Costs!E$705)*('Fixed assets'!$U$2:$U$1000>Costs!$A707)*('Fixed assets'!$P$2:$P$1000=Costs!$A707)*('Fixed assets'!$R$2:$R$1000))-SUMPRODUCT(('Fixed assets'!$Q$2:$Q$1000=Costs!E$705)*('Fixed assets'!$U$2:$U$1000>Costs!$A707)*('Fixed assets'!$P$2:$P$1000=Costs!$A707)*('Fixed assets'!$S$2:$S$1000))","v":0},{"$f":"F619+SUMPRODUCT(('Fixed assets'!$Q$2:$Q$1000=Costs!F$705)*('Fixed assets'!$U$2:$U$1000>Costs!$A707)*('Fixed assets'!$P$2:$P$1000=Costs!$A707)*('Fixed assets'!$R$2:$R$1000))-SUMPRODUCT(('Fixed assets'!$Q$2:$Q$1000=Costs!F$705)*('Fixed assets'!$U$2:$U$1000>Costs!$A707)*('Fixed assets'!$P$2:$P$1000=Costs!$A707)*('Fixed assets'!$S$2:$S$1000))","v":0},{"$f":"G619+SUMPRODUCT(('Fixed assets'!$Q$2:$Q$1000=Costs!G$705)*('Fixed assets'!$U$2:$U$1000>Costs!$A707)*('Fixed assets'!$P$2:$P$1000=Costs!$A707)*('Fixed assets'!$R$2:$R$1000))-SUMPRODUCT(('Fixed assets'!$Q$2:$Q$1000=Costs!G$705)*('Fixed assets'!$U$2:$U$1000>Costs!$A707)*('Fixed assets'!$P$2:$P$1000=Costs!$A707)*('Fixed assets'!$S$2:$S$1000))","v":0},{"$f":"H619+SUMPRODUCT(('Fixed assets'!$Q$2:$Q$1000=Costs!H$705)*('Fixed assets'!$U$2:$U$1000>Costs!$A707)*('Fixed assets'!$P$2:$P$1000=Costs!$A707)*('Fixed assets'!$R$2:$R$1000))-SUMPRODUCT(('Fixed assets'!$Q$2:$Q$1000=Costs!H$705)*('Fixed assets'!$U$2:$U$1000>Costs!$A707)*('Fixed assets'!$P$2:$P$1000=Costs!$A707)*('Fixed assets'!$S$2:$S$1000))","v":0},{"$f":"I619+SUMPRODUCT(('Fixed assets'!$Q$2:$Q$1000=Costs!I$705)*('Fixed assets'!$U$2:$U$1000>Costs!$A707)*('Fixed assets'!$P$2:$P$1000=Costs!$A707)*('Fixed assets'!$R$2:$R$1000))-SUMPRODUCT(('Fixed assets'!$Q$2:$Q$1000=Costs!I$705)*('Fixed assets'!$U$2:$U$1000>Costs!$A707)*('Fixed assets'!$P$2:$P$1000=Costs!$A707)*('Fixed assets'!$S$2:$S$1000))","v":0},{"$f":"J619+SUMPRODUCT(('Fixed assets'!$Q$2:$Q$1000=Costs!J$705)*('Fixed assets'!$U$2:$U$1000>Costs!$A707)*('Fixed assets'!$P$2:$P$1000=Costs!$A707)*('Fixed assets'!$R$2:$R$1000))-SUMPRODUCT(('Fixed assets'!$Q$2:$Q$1000=Costs!J$705)*('Fixed assets'!$U$2:$U$1000>Costs!$A707)*('Fixed assets'!$P$2:$P$1000=Costs!$A707)*('Fixed assets'!$S$2:$S$1000))","v":0},{"$f":"K619+SUMPRODUCT(('Fixed assets'!$Q$2:$Q$1000=Costs!K$705)*('Fixed assets'!$U$2:$U$1000>Costs!$A707)*('Fixed assets'!$P$2:$P$1000=Costs!$A707)*('Fixed assets'!$R$2:$R$1000))-SUMPRODUCT(('Fixed assets'!$Q$2:$Q$1000=Costs!K$705)*('Fixed assets'!$U$2:$U$1000>Costs!$A707)*('Fixed assets'!$P$2:$P$1000=Costs!$A707)*('Fixed assets'!$S$2:$S$1000))","v":0},{"$f":"L619+SUMPRODUCT(('Fixed assets'!$Q$2:$Q$1000=Costs!L$705)*('Fixed assets'!$U$2:$U$1000>Costs!$A707)*('Fixed assets'!$P$2:$P$1000=Costs!$A707)*('Fixed assets'!$R$2:$R$1000))-SUMPRODUCT(('Fixed assets'!$Q$2:$Q$1000=Costs!L$705)*('Fixed assets'!$U$2:$U$1000>Costs!$A707)*('Fixed assets'!$P$2:$P$1000=Costs!$A707)*('Fixed assets'!$S$2:$S$1000))","v":0},{"$f":"M619+SUMPRODUCT(('Fixed assets'!$Q$2:$Q$1000=Costs!M$705)*('Fixed assets'!$U$2:$U$1000>Costs!$A707)*('Fixed assets'!$P$2:$P$1000=Costs!$A707)*('Fixed assets'!$R$2:$R$1000))-SUMPRODUCT(('Fixed assets'!$Q$2:$Q$1000=Costs!M$705)*('Fixed assets'!$U$2:$U$1000>Costs!$A707)*('Fixed assets'!$P$2:$P$1000=Costs!$A707)*('Fixed assets'!$S$2:$S$1000))","v":0},{"$f":"N619+SUMPRODUCT(('Fixed assets'!$Q$2:$Q$1000=Costs!N$705)*('Fixed assets'!$U$2:$U$1000>Costs!$A707)*('Fixed assets'!$P$2:$P$1000=Costs!$A707)*('Fixed assets'!$R$2:$R$1000))-SUMPRODUCT(('Fixed assets'!$Q$2:$Q$1000=Costs!N$705)*('Fixed assets'!$U$2:$U$1000>Costs!$A707)*('Fixed assets'!$P$2:$P$1000=Costs!$A707)*('Fixed assets'!$S$2:$S$1000))","v":0},{"$f":"O619+SUMPRODUCT(('Fixed assets'!$Q$2:$Q$1000=Costs!O$705)*('Fixed assets'!$U$2:$U$1000>Costs!$A707)*('Fixed assets'!$P$2:$P$1000=Costs!$A707)*('Fixed assets'!$R$2:$R$1000))-SUMPRODUCT(('Fixed assets'!$Q$2:$Q$1000=Costs!O$705)*('Fixed assets'!$U$2:$U$1000>Costs!$A707)*('Fixed assets'!$P$2:$P$1000=Costs!$A707)*('Fixed assets'!$S$2:$S$1000))","v":0},{"$f":"P619+SUMPRODUCT(('Fixed assets'!$Q$2:$Q$1000=Costs!P$705)*('Fixed assets'!$U$2:$U$1000>Costs!$A707)*('Fixed assets'!$P$2:$P$1000=Costs!$A707)*('Fixed assets'!$R$2:$R$1000))-SUMPRODUCT(('Fixed assets'!$Q$2:$Q$1000=Costs!P$705)*('Fixed assets'!$U$2:$U$1000>Costs!$A707)*('Fixed assets'!$P$2:$P$1000=Costs!$A707)*('Fixed assets'!$S$2:$S$1000))","v":0},{"$f":"Q619+SUMPRODUCT(('Fixed assets'!$Q$2:$Q$1000=Costs!Q$705)*('Fixed assets'!$U$2:$U$1000>Costs!$A707)*('Fixed assets'!$P$2:$P$1000=Costs!$A707)*('Fixed assets'!$R$2:$R$1000))-SUMPRODUCT(('Fixed assets'!$Q$2:$Q$1000=Costs!Q$705)*('Fixed assets'!$U$2:$U$1000>Costs!$A707)*('Fixed assets'!$P$2:$P$1000=Costs!$A707)*('Fixed assets'!$S$2:$S$1000))","v":0},{"$f":"R619+SUMPRODUCT(('Fixed assets'!$Q$2:$Q$1000=Costs!R$705)*('Fixed assets'!$U$2:$U$1000>Costs!$A707)*('Fixed assets'!$P$2:$P$1000=Costs!$A707)*('Fixed assets'!$R$2:$R$1000))-SUMPRODUCT(('Fixed assets'!$Q$2:$Q$1000=Costs!R$705)*('Fixed assets'!$U$2:$U$1000>Costs!$A707)*('Fixed assets'!$P$2:$P$1000=Costs!$A707)*('Fixed assets'!$S$2:$S$1000))","v":0},{"$f":"S619+SUMPRODUCT(('Fixed assets'!$Q$2:$Q$1000=Costs!S$705)*('Fixed assets'!$U$2:$U$1000>Costs!$A707)*('Fixed assets'!$P$2:$P$1000=Costs!$A707)*('Fixed assets'!$R$2:$R$1000))-SUMPRODUCT(('Fixed assets'!$Q$2:$Q$1000=Costs!S$705)*('Fixed assets'!$U$2:$U$1000>Costs!$A707)*('Fixed assets'!$P$2:$P$1000=Costs!$A707)*('Fixed assets'!$S$2:$S$1000))","v":0},{"$f":"T619+SUMPRODUCT(('Fixed assets'!$Q$2:$Q$1000=Costs!T$705)*('Fixed assets'!$U$2:$U$1000>Costs!$A707)*('Fixed assets'!$P$2:$P$1000=Costs!$A707)*('Fixed assets'!$R$2:$R$1000))-SUMPRODUCT(('Fixed assets'!$Q$2:$Q$1000=Costs!T$705)*('Fixed assets'!$U$2:$U$1000>Costs!$A707)*('Fixed assets'!$P$2:$P$1000=Costs!$A707)*('Fixed assets'!$S$2:$S$1000))","v":0},{"$f":"U619+SUMPRODUCT(('Fixed assets'!$Q$2:$Q$1000=Costs!U$705)*('Fixed assets'!$U$2:$U$1000>Costs!$A707)*('Fixed assets'!$P$2:$P$1000=Costs!$A707)*('Fixed assets'!$R$2:$R$1000))-SUMPRODUCT(('Fixed assets'!$Q$2:$Q$1000=Costs!U$705)*('Fixed assets'!$U$2:$U$1000>Costs!$A707)*('Fixed assets'!$P$2:$P$1000=Costs!$A707)*('Fixed assets'!$S$2:$S$1000))","v":0},{"$f":"V619+SUMPRODUCT(('Fixed assets'!$Q$2:$Q$1000=Costs!V$705)*('Fixed assets'!$U$2:$U$1000>Costs!$A707)*('Fixed assets'!$P$2:$P$1000=Costs!$A707)*('Fixed assets'!$R$2:$R$1000))-SUMPRODUCT(('Fixed assets'!$Q$2:$Q$1000=Costs!V$705)*('Fixed assets'!$U$2:$U$1000>Costs!$A707)*('Fixed assets'!$P$2:$P$1000=Costs!$A707)*('Fixed assets'!$S$2:$S$1000))","v":0},{"$f":"W619+SUMPRODUCT(('Fixed assets'!$Q$2:$Q$1000=Costs!W$705)*('Fixed assets'!$U$2:$U$1000>Costs!$A707)*('Fixed assets'!$P$2:$P$1000=Costs!$A707)*('Fixed assets'!$R$2:$R$1000))-SUMPRODUCT(('Fixed assets'!$Q$2:$Q$1000=Costs!W$705)*('Fixed assets'!$U$2:$U$1000>Costs!$A707)*('Fixed assets'!$P$2:$P$1000=Costs!$A707)*('Fixed assets'!$S$2:$S$1000))","v":0},{"$f":"X619+SUMPRODUCT(('Fixed assets'!$Q$2:$Q$1000=Costs!X$705)*('Fixed assets'!$U$2:$U$1000>Costs!$A707)*('Fixed assets'!$P$2:$P$1000=Costs!$A707)*('Fixed assets'!$R$2:$R$1000))-SUMPRODUCT(('Fixed assets'!$Q$2:$Q$1000=Costs!X$705)*('Fixed assets'!$U$2:$U$1000>Costs!$A707)*('Fixed assets'!$P$2:$P$1000=Costs!$A707)*('Fixed assets'!$S$2:$S$1000))","v":0},{"$f":"Y619+SUMPRODUCT(('Fixed assets'!$Q$2:$Q$1000=Costs!Y$705)*('Fixed assets'!$U$2:$U$1000>Costs!$A707)*('Fixed assets'!$P$2:$P$1000=Costs!$A707)*('Fixed assets'!$R$2:$R$1000))-SUMPRODUCT(('Fixed assets'!$Q$2:$Q$1000=Costs!Y$705)*('Fixed assets'!$U$2:$U$1000>Costs!$A707)*('Fixed assets'!$P$2:$P$1000=Costs!$A707)*('Fixed assets'!$S$2:$S$1000))","v":0},{"$f":"Z619+SUMPRODUCT(('Fixed assets'!$Q$2:$Q$1000=Costs!Z$705)*('Fixed assets'!$U$2:$U$1000>Costs!$A707)*('Fixed assets'!$P$2:$P$1000=Costs!$A707)*('Fixed assets'!$R$2:$R$1000))-SUMPRODUCT(('Fixed assets'!$Q$2:$Q$1000=Costs!Z$705)*('Fixed assets'!$U$2:$U$1000>Costs!$A707)*('Fixed assets'!$P$2:$P$1000=Costs!$A707)*('Fixed assets'!$S$2:$S$1000))","v":0},{"$f":"AA619+SUMPRODUCT(('Fixed assets'!$Q$2:$Q$1000=Costs!AA$705)*('Fixed assets'!$U$2:$U$1000>Costs!$A707)*('Fixed assets'!$P$2:$P$1000=Costs!$A707)*('Fixed assets'!$R$2:$R$1000))-SUMPRODUCT(('Fixed assets'!$Q$2:$Q$1000=Costs!AA$705)*('Fixed assets'!$U$2:$U$1000>Costs!$A707)*('Fixed assets'!$P$2:$P$1000=Costs!$A707)*('Fixed assets'!$S$2:$S$1000))","v":0},{"$f":"AB619+SUMPRODUCT(('Fixed assets'!$Q$2:$Q$1000=Costs!AB$705)*('Fixed assets'!$U$2:$U$1000>Costs!$A707)*('Fixed assets'!$P$2:$P$1000=Costs!$A707)*('Fixed assets'!$R$2:$R$1000))-SUMPRODUCT(('Fixed assets'!$Q$2:$Q$1000=Costs!AB$705)*('Fixed assets'!$U$2:$U$1000>Costs!$A707)*('Fixed assets'!$P$2:$P$1000=Costs!$A707)*('Fixed assets'!$S$2:$S$1000))","v":0},{"$f":"AC619+SUMPRODUCT(('Fixed assets'!$Q$2:$Q$1000=Costs!AC$705)*('Fixed assets'!$U$2:$U$1000>Costs!$A707)*('Fixed assets'!$P$2:$P$1000=Costs!$A707)*('Fixed assets'!$R$2:$R$1000))-SUMPRODUCT(('Fixed assets'!$Q$2:$Q$1000=Costs!AC$705)*('Fixed assets'!$U$2:$U$1000>Costs!$A707)*('Fixed assets'!$P$2:$P$1000=Costs!$A707)*('Fixed assets'!$S$2:$S$1000))","v":0},{"$f":"AD619+SUMPRODUCT(('Fixed assets'!$Q$2:$Q$1000=Costs!AD$705)*('Fixed assets'!$U$2:$U$1000>Costs!$A707)*('Fixed assets'!$P$2:$P$1000=Costs!$A707)*('Fixed assets'!$R$2:$R$1000))-SUMPRODUCT(('Fixed assets'!$Q$2:$Q$1000=Costs!AD$705)*('Fixed assets'!$U$2:$U$1000>Costs!$A707)*('Fixed assets'!$P$2:$P$1000=Costs!$A707)*('Fixed assets'!$S$2:$S$1000))","v":0},{"$f":"AE619+SUMPRODUCT(('Fixed assets'!$Q$2:$Q$1000=Costs!AE$705)*('Fixed assets'!$U$2:$U$1000>Costs!$A707)*('Fixed assets'!$P$2:$P$1000=Costs!$A707)*('Fixed assets'!$R$2:$R$1000))-SUMPRODUCT(('Fixed assets'!$Q$2:$Q$1000=Costs!AE$705)*('Fixed assets'!$U$2:$U$1000>Costs!$A707)*('Fixed assets'!$P$2:$P$1000=Costs!$A707)*('Fixed assets'!$S$2:$S$1000))","v":0},{"$f":"AF619+SUMPRODUCT(('Fixed assets'!$Q$2:$Q$1000=Costs!AF$705)*('Fixed assets'!$U$2:$U$1000>Costs!$A707)*('Fixed assets'!$P$2:$P$1000=Costs!$A707)*('Fixed assets'!$R$2:$R$1000))-SUMPRODUCT(('Fixed assets'!$Q$2:$Q$1000=Costs!AF$705)*('Fixed assets'!$U$2:$U$1000>Costs!$A707)*('Fixed assets'!$P$2:$P$1000=Costs!$A707)*('Fixed assets'!$S$2:$S$1000))","v":0},{"$f":"AG619+SUMPRODUCT(('Fixed assets'!$Q$2:$Q$1000=Costs!AG$705)*('Fixed assets'!$U$2:$U$1000>Costs!$A707)*('Fixed assets'!$P$2:$P$1000=Costs!$A707)*('Fixed assets'!$R$2:$R$1000))-SUMPRODUCT(('Fixed assets'!$Q$2:$Q$1000=Costs!AG$705)*('Fixed assets'!$U$2:$U$1000>Costs!$A707)*('Fixed assets'!$P$2:$P$1000=Costs!$A707)*('Fixed assets'!$S$2:$S$1000))","v":0},{"$f":"AH619+SUMPRODUCT(('Fixed assets'!$Q$2:$Q$1000=Costs!AH$705)*('Fixed assets'!$U$2:$U$1000>Costs!$A707)*('Fixed assets'!$P$2:$P$1000=Costs!$A707)*('Fixed assets'!$R$2:$R$1000))-SUMPRODUCT(('Fixed assets'!$Q$2:$Q$1000=Costs!AH$705)*('Fixed assets'!$U$2:$U$1000>Costs!$A707)*('Fixed assets'!$P$2:$P$1000=Costs!$A707)*('Fixed assets'!$S$2:$S$1000))","v":0},{"$f":"AI619+SUMPRODUCT(('Fixed assets'!$Q$2:$Q$1000=Costs!AI$705)*('Fixed assets'!$U$2:$U$1000>Costs!$A707)*('Fixed assets'!$P$2:$P$1000=Costs!$A707)*('Fixed assets'!$R$2:$R$1000))-SUMPRODUCT(('Fixed assets'!$Q$2:$Q$1000=Costs!AI$705)*('Fixed assets'!$U$2:$U$1000>Costs!$A707)*('Fixed assets'!$P$2:$P$1000=Costs!$A707)*('Fixed assets'!$S$2:$S$1000))","v":0},{"$f":"AJ619+SUMPRODUCT(('Fixed assets'!$Q$2:$Q$1000=Costs!AJ$705)*('Fixed assets'!$U$2:$U$1000>Costs!$A707)*('Fixed assets'!$P$2:$P$1000=Costs!$A707)*('Fixed assets'!$R$2:$R$1000))-SUMPRODUCT(('Fixed assets'!$Q$2:$Q$1000=Costs!AJ$705)*('Fixed assets'!$U$2:$U$1000>Costs!$A707)*('Fixed assets'!$P$2:$P$1000=Costs!$A707)*('Fixed assets'!$S$2:$S$1000))","v":0},{"$f":"AK619+SUMPRODUCT(('Fixed assets'!$Q$2:$Q$1000=Costs!AK$705)*('Fixed assets'!$U$2:$U$1000>Costs!$A707)*('Fixed assets'!$P$2:$P$1000=Costs!$A707)*('Fixed assets'!$R$2:$R$1000))-SUMPRODUCT(('Fixed assets'!$Q$2:$Q$1000=Costs!AK$705)*('Fixed assets'!$U$2:$U$1000>Costs!$A707)*('Fixed assets'!$P$2:$P$1000=Costs!$A707)*('Fixed assets'!$S$2:$S$1000))","v":0},{"$f":"AL619+SUMPRODUCT(('Fixed assets'!$Q$2:$Q$1000=Costs!AL$705)*('Fixed assets'!$U$2:$U$1000>Costs!$A707)*('Fixed assets'!$P$2:$P$1000=Costs!$A707)*('Fixed assets'!$R$2:$R$1000))-SUMPRODUCT(('Fixed assets'!$Q$2:$Q$1000=Costs!AL$705)*('Fixed assets'!$U$2:$U$1000>Costs!$A707)*('Fixed assets'!$P$2:$P$1000=Costs!$A707)*('Fixed assets'!$S$2:$S$1000))","v":0},{"$f":"AM619+SUMPRODUCT(('Fixed assets'!$Q$2:$Q$1000=Costs!AM$705)*('Fixed assets'!$U$2:$U$1000>Costs!$A707)*('Fixed assets'!$P$2:$P$1000=Costs!$A707)*('Fixed assets'!$R$2:$R$1000))-SUMPRODUCT(('Fixed assets'!$Q$2:$Q$1000=Costs!AM$705)*('Fixed assets'!$U$2:$U$1000>Costs!$A707)*('Fixed assets'!$P$2:$P$1000=Costs!$A707)*('Fixed assets'!$S$2:$S$1000))","v":0},{"$f":"AN619+SUMPRODUCT(('Fixed assets'!$Q$2:$Q$1000=Costs!AN$705)*('Fixed assets'!$U$2:$U$1000>Costs!$A707)*('Fixed assets'!$P$2:$P$1000=Costs!$A707)*('Fixed assets'!$R$2:$R$1000))-SUMPRODUCT(('Fixed assets'!$Q$2:$Q$1000=Costs!AN$705)*('Fixed assets'!$U$2:$U$1000>Costs!$A707)*('Fixed assets'!$P$2:$P$1000=Costs!$A707)*('Fixed assets'!$S$2:$S$1000))","v":0},{"$f":"AO619+SUMPRODUCT(('Fixed assets'!$Q$2:$Q$1000=Costs!AO$705)*('Fixed assets'!$U$2:$U$1000>Costs!$A707)*('Fixed assets'!$P$2:$P$1000=Costs!$A707)*('Fixed assets'!$R$2:$R$1000))-SUMPRODUCT(('Fixed assets'!$Q$2:$Q$1000=Costs!AO$705)*('Fixed assets'!$U$2:$U$1000>Costs!$A707)*('Fixed assets'!$P$2:$P$1000=Costs!$A707)*('Fixed assets'!$S$2:$S$1000))","v":0},{"$f":"AP619+SUMPRODUCT(('Fixed assets'!$Q$2:$Q$1000=Costs!AP$705)*('Fixed assets'!$U$2:$U$1000>Costs!$A707)*('Fixed assets'!$P$2:$P$1000=Costs!$A707)*('Fixed assets'!$R$2:$R$1000))-SUMPRODUCT(('Fixed assets'!$Q$2:$Q$1000=Costs!AP$705)*('Fixed assets'!$U$2:$U$1000>Costs!$A707)*('Fixed assets'!$P$2:$P$1000=Costs!$A707)*('Fixed assets'!$S$2:$S$1000))","v":0},{"$f":"AQ619+SUMPRODUCT(('Fixed assets'!$Q$2:$Q$1000=Costs!AQ$705)*('Fixed assets'!$U$2:$U$1000>Costs!$A707)*('Fixed assets'!$P$2:$P$1000=Costs!$A707)*('Fixed assets'!$R$2:$R$1000))-SUMPRODUCT(('Fixed assets'!$Q$2:$Q$1000=Costs!AQ$705)*('Fixed assets'!$U$2:$U$1000>Costs!$A707)*('Fixed assets'!$P$2:$P$1000=Costs!$A707)*('Fixed assets'!$S$2:$S$1000))","v":0}]
[2017,0,{"$f":"C620+SUMPRODUCT(('Fixed assets'!$Q$2:$Q$1000=Costs!C$705)*('Fixed assets'!$U$2:$U$1000>Costs!$A708)*('Fixed assets'!$P$2:$P$1000=Costs!$A708)*('Fixed assets'!$R$2:$R$1000))-SUMPRODUCT(('Fixed assets'!$Q$2:$Q$1000=Costs!C$705)*('Fixed assets'!$U$2:$U$1000>Costs!$A708)*('Fixed assets'!$P$2:$P$1000=Costs!$A708)*('Fixed assets'!$S$2:$S$1000))","v":0},{"$f":"D620+SUMPRODUCT(('Fixed assets'!$Q$2:$Q$1000=Costs!D$705)*('Fixed assets'!$U$2:$U$1000>Costs!$A708)*('Fixed assets'!$P$2:$P$1000=Costs!$A708)*('Fixed assets'!$R$2:$R$1000))-SUMPRODUCT(('Fixed assets'!$Q$2:$Q$1000=Costs!D$705)*('Fixed assets'!$U$2:$U$1000>Costs!$A708)*('Fixed assets'!$P$2:$P$1000=Costs!$A708)*('Fixed assets'!$S$2:$S$1000))","v":0},{"$f":"E620+SUMPRODUCT(('Fixed assets'!$Q$2:$Q$1000=Costs!E$705)*('Fixed assets'!$U$2:$U$1000>Costs!$A708)*('Fixed assets'!$P$2:$P$1000=Costs!$A708)*('Fixed assets'!$R$2:$R$1000))-SUMPRODUCT(('Fixed assets'!$Q$2:$Q$1000=Costs!E$705)*('Fixed assets'!$U$2:$U$1000>Costs!$A708)*('Fixed assets'!$P$2:$P$1000=Costs!$A708)*('Fixed assets'!$S$2:$S$1000))","v":0},{"$f":"F620+SUMPRODUCT(('Fixed assets'!$Q$2:$Q$1000=Costs!F$705)*('Fixed assets'!$U$2:$U$1000>Costs!$A708)*('Fixed assets'!$P$2:$P$1000=Costs!$A708)*('Fixed assets'!$R$2:$R$1000))-SUMPRODUCT(('Fixed assets'!$Q$2:$Q$1000=Costs!F$705)*('Fixed assets'!$U$2:$U$1000>Costs!$A708)*('Fixed assets'!$P$2:$P$1000=Costs!$A708)*('Fixed assets'!$S$2:$S$1000))","v":0},{"$f":"G620+SUMPRODUCT(('Fixed assets'!$Q$2:$Q$1000=Costs!G$705)*('Fixed assets'!$U$2:$U$1000>Costs!$A708)*('Fixed assets'!$P$2:$P$1000=Costs!$A708)*('Fixed assets'!$R$2:$R$1000))-SUMPRODUCT(('Fixed assets'!$Q$2:$Q$1000=Costs!G$705)*('Fixed assets'!$U$2:$U$1000>Costs!$A708)*('Fixed assets'!$P$2:$P$1000=Costs!$A708)*('Fixed assets'!$S$2:$S$1000))","v":0},{"$f":"H620+SUMPRODUCT(('Fixed assets'!$Q$2:$Q$1000=Costs!H$705)*('Fixed assets'!$U$2:$U$1000>Costs!$A708)*('Fixed assets'!$P$2:$P$1000=Costs!$A708)*('Fixed assets'!$R$2:$R$1000))-SUMPRODUCT(('Fixed assets'!$Q$2:$Q$1000=Costs!H$705)*('Fixed assets'!$U$2:$U$1000>Costs!$A708)*('Fixed assets'!$P$2:$P$1000=Costs!$A708)*('Fixed assets'!$S$2:$S$1000))","v":0},{"$f":"I620+SUMPRODUCT(('Fixed assets'!$Q$2:$Q$1000=Costs!I$705)*('Fixed assets'!$U$2:$U$1000>Costs!$A708)*('Fixed assets'!$P$2:$P$1000=Costs!$A708)*('Fixed assets'!$R$2:$R$1000))-SUMPRODUCT(('Fixed assets'!$Q$2:$Q$1000=Costs!I$705)*('Fixed assets'!$U$2:$U$1000>Costs!$A708)*('Fixed assets'!$P$2:$P$1000=Costs!$A708)*('Fixed assets'!$S$2:$S$1000))","v":0},{"$f":"J620+SUMPRODUCT(('Fixed assets'!$Q$2:$Q$1000=Costs!J$705)*('Fixed assets'!$U$2:$U$1000>Costs!$A708)*('Fixed assets'!$P$2:$P$1000=Costs!$A708)*('Fixed assets'!$R$2:$R$1000))-SUMPRODUCT(('Fixed assets'!$Q$2:$Q$1000=Costs!J$705)*('Fixed assets'!$U$2:$U$1000>Costs!$A708)*('Fixed assets'!$P$2:$P$1000=Costs!$A708)*('Fixed assets'!$S$2:$S$1000))","v":0},{"$f":"K620+SUMPRODUCT(('Fixed assets'!$Q$2:$Q$1000=Costs!K$705)*('Fixed assets'!$U$2:$U$1000>Costs!$A708)*('Fixed assets'!$P$2:$P$1000=Costs!$A708)*('Fixed assets'!$R$2:$R$1000))-SUMPRODUCT(('Fixed assets'!$Q$2:$Q$1000=Costs!K$705)*('Fixed assets'!$U$2:$U$1000>Costs!$A708)*('Fixed assets'!$P$2:$P$1000=Costs!$A708)*('Fixed assets'!$S$2:$S$1000))","v":0},{"$f":"L620+SUMPRODUCT(('Fixed assets'!$Q$2:$Q$1000=Costs!L$705)*('Fixed assets'!$U$2:$U$1000>Costs!$A708)*('Fixed assets'!$P$2:$P$1000=Costs!$A708)*('Fixed assets'!$R$2:$R$1000))-SUMPRODUCT(('Fixed assets'!$Q$2:$Q$1000=Costs!L$705)*('Fixed assets'!$U$2:$U$1000>Costs!$A708)*('Fixed assets'!$P$2:$P$1000=Costs!$A708)*('Fixed assets'!$S$2:$S$1000))","v":0},{"$f":"M620+SUMPRODUCT(('Fixed assets'!$Q$2:$Q$1000=Costs!M$705)*('Fixed assets'!$U$2:$U$1000>Costs!$A708)*('Fixed assets'!$P$2:$P$1000=Costs!$A708)*('Fixed assets'!$R$2:$R$1000))-SUMPRODUCT(('Fixed assets'!$Q$2:$Q$1000=Costs!M$705)*('Fixed assets'!$U$2:$U$1000>Costs!$A708)*('Fixed assets'!$P$2:$P$1000=Costs!$A708)*('Fixed assets'!$S$2:$S$1000))","v":0},{"$f":"N620+SUMPRODUCT(('Fixed assets'!$Q$2:$Q$1000=Costs!N$705)*('Fixed assets'!$U$2:$U$1000>Costs!$A708)*('Fixed assets'!$P$2:$P$1000=Costs!$A708)*('Fixed assets'!$R$2:$R$1000))-SUMPRODUCT(('Fixed assets'!$Q$2:$Q$1000=Costs!N$705)*('Fixed assets'!$U$2:$U$1000>Costs!$A708)*('Fixed assets'!$P$2:$P$1000=Costs!$A708)*('Fixed assets'!$S$2:$S$1000))","v":0},{"$f":"O620+SUMPRODUCT(('Fixed assets'!$Q$2:$Q$1000=Costs!O$705)*('Fixed assets'!$U$2:$U$1000>Costs!$A708)*('Fixed assets'!$P$2:$P$1000=Costs!$A708)*('Fixed assets'!$R$2:$R$1000))-SUMPRODUCT(('Fixed assets'!$Q$2:$Q$1000=Costs!O$705)*('Fixed assets'!$U$2:$U$1000>Costs!$A708)*('Fixed assets'!$P$2:$P$1000=Costs!$A708)*('Fixed assets'!$S$2:$S$1000))","v":0},{"$f":"P620+SUMPRODUCT(('Fixed assets'!$Q$2:$Q$1000=Costs!P$705)*('Fixed assets'!$U$2:$U$1000>Costs!$A708)*('Fixed assets'!$P$2:$P$1000=Costs!$A708)*('Fixed assets'!$R$2:$R$1000))-SUMPRODUCT(('Fixed assets'!$Q$2:$Q$1000=Costs!P$705)*('Fixed assets'!$U$2:$U$1000>Costs!$A708)*('Fixed assets'!$P$2:$P$1000=Costs!$A708)*('Fixed assets'!$S$2:$S$1000))","v":0},{"$f":"Q620+SUMPRODUCT(('Fixed assets'!$Q$2:$Q$1000=Costs!Q$705)*('Fixed assets'!$U$2:$U$1000>Costs!$A708)*('Fixed assets'!$P$2:$P$1000=Costs!$A708)*('Fixed assets'!$R$2:$R$1000))-SUMPRODUCT(('Fixed assets'!$Q$2:$Q$1000=Costs!Q$705)*('Fixed assets'!$U$2:$U$1000>Costs!$A708)*('Fixed assets'!$P$2:$P$1000=Costs!$A708)*('Fixed assets'!$S$2:$S$1000))","v":0},{"$f":"R620+SUMPRODUCT(('Fixed assets'!$Q$2:$Q$1000=Costs!R$705)*('Fixed assets'!$U$2:$U$1000>Costs!$A708)*('Fixed assets'!$P$2:$P$1000=Costs!$A708)*('Fixed assets'!$R$2:$R$1000))-SUMPRODUCT(('Fixed assets'!$Q$2:$Q$1000=Costs!R$705)*('Fixed assets'!$U$2:$U$1000>Costs!$A708)*('Fixed assets'!$P$2:$P$1000=Costs!$A708)*('Fixed assets'!$S$2:$S$1000))","v":0},{"$f":"S620+SUMPRODUCT(('Fixed assets'!$Q$2:$Q$1000=Costs!S$705)*('Fixed assets'!$U$2:$U$1000>Costs!$A708)*('Fixed assets'!$P$2:$P$1000=Costs!$A708)*('Fixed assets'!$R$2:$R$1000))-SUMPRODUCT(('Fixed assets'!$Q$2:$Q$1000=Costs!S$705)*('Fixed assets'!$U$2:$U$1000>Costs!$A708)*('Fixed assets'!$P$2:$P$1000=Costs!$A708)*('Fixed assets'!$S$2:$S$1000))","v":0},{"$f":"T620+SUMPRODUCT(('Fixed assets'!$Q$2:$Q$1000=Costs!T$705)*('Fixed assets'!$U$2:$U$1000>Costs!$A708)*('Fixed assets'!$P$2:$P$1000=Costs!$A708)*('Fixed assets'!$R$2:$R$1000))-SUMPRODUCT(('Fixed assets'!$Q$2:$Q$1000=Costs!T$705)*('Fixed assets'!$U$2:$U$1000>Costs!$A708)*('Fixed assets'!$P$2:$P$1000=Costs!$A708)*('Fixed assets'!$S$2:$S$1000))","v":0},{"$f":"U620+SUMPRODUCT(('Fixed assets'!$Q$2:$Q$1000=Costs!U$705)*('Fixed assets'!$U$2:$U$1000>Costs!$A708)*('Fixed assets'!$P$2:$P$1000=Costs!$A708)*('Fixed assets'!$R$2:$R$1000))-SUMPRODUCT(('Fixed assets'!$Q$2:$Q$1000=Costs!U$705)*('Fixed assets'!$U$2:$U$1000>Costs!$A708)*('Fixed assets'!$P$2:$P$1000=Costs!$A708)*('Fixed assets'!$S$2:$S$1000))","v":0},{"$f":"V620+SUMPRODUCT(('Fixed assets'!$Q$2:$Q$1000=Costs!V$705)*('Fixed assets'!$U$2:$U$1000>Costs!$A708)*('Fixed assets'!$P$2:$P$1000=Costs!$A708)*('Fixed assets'!$R$2:$R$1000))-SUMPRODUCT(('Fixed assets'!$Q$2:$Q$1000=Costs!V$705)*('Fixed assets'!$U$2:$U$1000>Costs!$A708)*('Fixed assets'!$P$2:$P$1000=Costs!$A708)*('Fixed assets'!$S$2:$S$1000))","v":0},{"$f":"W620+SUMPRODUCT(('Fixed assets'!$Q$2:$Q$1000=Costs!W$705)*('Fixed assets'!$U$2:$U$1000>Costs!$A708)*('Fixed assets'!$P$2:$P$1000=Costs!$A708)*('Fixed assets'!$R$2:$R$1000))-SUMPRODUCT(('Fixed assets'!$Q$2:$Q$1000=Costs!W$705)*('Fixed assets'!$U$2:$U$1000>Costs!$A708)*('Fixed assets'!$P$2:$P$1000=Costs!$A708)*('Fixed assets'!$S$2:$S$1000))","v":0},{"$f":"X620+SUMPRODUCT(('Fixed assets'!$Q$2:$Q$1000=Costs!X$705)*('Fixed assets'!$U$2:$U$1000>Costs!$A708)*('Fixed assets'!$P$2:$P$1000=Costs!$A708)*('Fixed assets'!$R$2:$R$1000))-SUMPRODUCT(('Fixed assets'!$Q$2:$Q$1000=Costs!X$705)*('Fixed assets'!$U$2:$U$1000>Costs!$A708)*('Fixed assets'!$P$2:$P$1000=Costs!$A708)*('Fixed assets'!$S$2:$S$1000))","v":0},{"$f":"Y620+SUMPRODUCT(('Fixed assets'!$Q$2:$Q$1000=Costs!Y$705)*('Fixed assets'!$U$2:$U$1000>Costs!$A708)*('Fixed assets'!$P$2:$P$1000=Costs!$A708)*('Fixed assets'!$R$2:$R$1000))-SUMPRODUCT(('Fixed assets'!$Q$2:$Q$1000=Costs!Y$705)*('Fixed assets'!$U$2:$U$1000>Costs!$A708)*('Fixed assets'!$P$2:$P$1000=Costs!$A708)*('Fixed assets'!$S$2:$S$1000))","v":0},{"$f":"Z620+SUMPRODUCT(('Fixed assets'!$Q$2:$Q$1000=Costs!Z$705)*('Fixed assets'!$U$2:$U$1000>Costs!$A708)*('Fixed assets'!$P$2:$P$1000=Costs!$A708)*('Fixed assets'!$R$2:$R$1000))-SUMPRODUCT(('Fixed assets'!$Q$2:$Q$1000=Costs!Z$705)*('Fixed assets'!$U$2:$U$1000>Costs!$A708)*('Fixed assets'!$P$2:$P$1000=Costs!$A708)*('Fixed assets'!$S$2:$S$1000))","v":0},{"$f":"AA620+SUMPRODUCT(('Fixed assets'!$Q$2:$Q$1000=Costs!AA$705)*('Fixed assets'!$U$2:$U$1000>Costs!$A708)*('Fixed assets'!$P$2:$P$1000=Costs!$A708)*('Fixed assets'!$R$2:$R$1000))-SUMPRODUCT(('Fixed assets'!$Q$2:$Q$1000=Costs!AA$705)*('Fixed assets'!$U$2:$U$1000>Costs!$A708)*('Fixed assets'!$P$2:$P$1000=Costs!$A708)*('Fixed assets'!$S$2:$S$1000))","v":0},{"$f":"AB620+SUMPRODUCT(('Fixed assets'!$Q$2:$Q$1000=Costs!AB$705)*('Fixed assets'!$U$2:$U$1000>Costs!$A708)*('Fixed assets'!$P$2:$P$1000=Costs!$A708)*('Fixed assets'!$R$2:$R$1000))-SUMPRODUCT(('Fixed assets'!$Q$2:$Q$1000=Costs!AB$705)*('Fixed assets'!$U$2:$U$1000>Costs!$A708)*('Fixed assets'!$P$2:$P$1000=Costs!$A708)*('Fixed assets'!$S$2:$S$1000))","v":0},{"$f":"AC620+SUMPRODUCT(('Fixed assets'!$Q$2:$Q$1000=Costs!AC$705)*('Fixed assets'!$U$2:$U$1000>Costs!$A708)*('Fixed assets'!$P$2:$P$1000=Costs!$A708)*('Fixed assets'!$R$2:$R$1000))-SUMPRODUCT(('Fixed assets'!$Q$2:$Q$1000=Costs!AC$705)*('Fixed assets'!$U$2:$U$1000>Costs!$A708)*('Fixed assets'!$P$2:$P$1000=Costs!$A708)*('Fixed assets'!$S$2:$S$1000))","v":0},{"$f":"AD620+SUMPRODUCT(('Fixed assets'!$Q$2:$Q$1000=Costs!AD$705)*('Fixed assets'!$U$2:$U$1000>Costs!$A708)*('Fixed assets'!$P$2:$P$1000=Costs!$A708)*('Fixed assets'!$R$2:$R$1000))-SUMPRODUCT(('Fixed assets'!$Q$2:$Q$1000=Costs!AD$705)*('Fixed assets'!$U$2:$U$1000>Costs!$A708)*('Fixed assets'!$P$2:$P$1000=Costs!$A708)*('Fixed assets'!$S$2:$S$1000))","v":0},{"$f":"AE620+SUMPRODUCT(('Fixed assets'!$Q$2:$Q$1000=Costs!AE$705)*('Fixed assets'!$U$2:$U$1000>Costs!$A708)*('Fixed assets'!$P$2:$P$1000=Costs!$A708)*('Fixed assets'!$R$2:$R$1000))-SUMPRODUCT(('Fixed assets'!$Q$2:$Q$1000=Costs!AE$705)*('Fixed assets'!$U$2:$U$1000>Costs!$A708)*('Fixed assets'!$P$2:$P$1000=Costs!$A708)*('Fixed assets'!$S$2:$S$1000))","v":0},{"$f":"AF620+SUMPRODUCT(('Fixed assets'!$Q$2:$Q$1000=Costs!AF$705)*('Fixed assets'!$U$2:$U$1000>Costs!$A708)*('Fixed assets'!$P$2:$P$1000=Costs!$A708)*('Fixed assets'!$R$2:$R$1000))-SUMPRODUCT(('Fixed assets'!$Q$2:$Q$1000=Costs!AF$705)*('Fixed assets'!$U$2:$U$1000>Costs!$A708)*('Fixed assets'!$P$2:$P$1000=Costs!$A708)*('Fixed assets'!$S$2:$S$1000))","v":0},{"$f":"AG620+SUMPRODUCT(('Fixed assets'!$Q$2:$Q$1000=Costs!AG$705)*('Fixed assets'!$U$2:$U$1000>Costs!$A708)*('Fixed assets'!$P$2:$P$1000=Costs!$A708)*('Fixed assets'!$R$2:$R$1000))-SUMPRODUCT(('Fixed assets'!$Q$2:$Q$1000=Costs!AG$705)*('Fixed assets'!$U$2:$U$1000>Costs!$A708)*('Fixed assets'!$P$2:$P$1000=Costs!$A708)*('Fixed assets'!$S$2:$S$1000))","v":0},{"$f":"AH620+SUMPRODUCT(('Fixed assets'!$Q$2:$Q$1000=Costs!AH$705)*('Fixed assets'!$U$2:$U$1000>Costs!$A708)*('Fixed assets'!$P$2:$P$1000=Costs!$A708)*('Fixed assets'!$R$2:$R$1000))-SUMPRODUCT(('Fixed assets'!$Q$2:$Q$1000=Costs!AH$705)*('Fixed assets'!$U$2:$U$1000>Costs!$A708)*('Fixed assets'!$P$2:$P$1000=Costs!$A708)*('Fixed assets'!$S$2:$S$1000))","v":0},{"$f":"AI620+SUMPRODUCT(('Fixed assets'!$Q$2:$Q$1000=Costs!AI$705)*('Fixed assets'!$U$2:$U$1000>Costs!$A708)*('Fixed assets'!$P$2:$P$1000=Costs!$A708)*('Fixed assets'!$R$2:$R$1000))-SUMPRODUCT(('Fixed assets'!$Q$2:$Q$1000=Costs!AI$705)*('Fixed assets'!$U$2:$U$1000>Costs!$A708)*('Fixed assets'!$P$2:$P$1000=Costs!$A708)*('Fixed assets'!$S$2:$S$1000))","v":0},{"$f":"AJ620+SUMPRODUCT(('Fixed assets'!$Q$2:$Q$1000=Costs!AJ$705)*('Fixed assets'!$U$2:$U$1000>Costs!$A708)*('Fixed assets'!$P$2:$P$1000=Costs!$A708)*('Fixed assets'!$R$2:$R$1000))-SUMPRODUCT(('Fixed assets'!$Q$2:$Q$1000=Costs!AJ$705)*('Fixed assets'!$U$2:$U$1000>Costs!$A708)*('Fixed assets'!$P$2:$P$1000=Costs!$A708)*('Fixed assets'!$S$2:$S$1000))","v":0},{"$f":"AK620+SUMPRODUCT(('Fixed assets'!$Q$2:$Q$1000=Costs!AK$705)*('Fixed assets'!$U$2:$U$1000>Costs!$A708)*('Fixed assets'!$P$2:$P$1000=Costs!$A708)*('Fixed assets'!$R$2:$R$1000))-SUMPRODUCT(('Fixed assets'!$Q$2:$Q$1000=Costs!AK$705)*('Fixed assets'!$U$2:$U$1000>Costs!$A708)*('Fixed assets'!$P$2:$P$1000=Costs!$A708)*('Fixed assets'!$S$2:$S$1000))","v":0},{"$f":"AL620+SUMPRODUCT(('Fixed assets'!$Q$2:$Q$1000=Costs!AL$705)*('Fixed assets'!$U$2:$U$1000>Costs!$A708)*('Fixed assets'!$P$2:$P$1000=Costs!$A708)*('Fixed assets'!$R$2:$R$1000))-SUMPRODUCT(('Fixed assets'!$Q$2:$Q$1000=Costs!AL$705)*('Fixed assets'!$U$2:$U$1000>Costs!$A708)*('Fixed assets'!$P$2:$P$1000=Costs!$A708)*('Fixed assets'!$S$2:$S$1000))","v":0},{"$f":"AM620+SUMPRODUCT(('Fixed assets'!$Q$2:$Q$1000=Costs!AM$705)*('Fixed assets'!$U$2:$U$1000>Costs!$A708)*('Fixed assets'!$P$2:$P$1000=Costs!$A708)*('Fixed assets'!$R$2:$R$1000))-SUMPRODUCT(('Fixed assets'!$Q$2:$Q$1000=Costs!AM$705)*('Fixed assets'!$U$2:$U$1000>Costs!$A708)*('Fixed assets'!$P$2:$P$1000=Costs!$A708)*('Fixed assets'!$S$2:$S$1000))","v":0},{"$f":"AN620+SUMPRODUCT(('Fixed assets'!$Q$2:$Q$1000=Costs!AN$705)*('Fixed assets'!$U$2:$U$1000>Costs!$A708)*('Fixed assets'!$P$2:$P$1000=Costs!$A708)*('Fixed assets'!$R$2:$R$1000))-SUMPRODUCT(('Fixed assets'!$Q$2:$Q$1000=Costs!AN$705)*('Fixed assets'!$U$2:$U$1000>Costs!$A708)*('Fixed assets'!$P$2:$P$1000=Costs!$A708)*('Fixed assets'!$S$2:$S$1000))","v":0},{"$f":"AO620+SUMPRODUCT(('Fixed assets'!$Q$2:$Q$1000=Costs!AO$705)*('Fixed assets'!$U$2:$U$1000>Costs!$A708)*('Fixed assets'!$P$2:$P$1000=Costs!$A708)*('Fixed assets'!$R$2:$R$1000))-SUMPRODUCT(('Fixed assets'!$Q$2:$Q$1000=Costs!AO$705)*('Fixed assets'!$U$2:$U$1000>Costs!$A708)*('Fixed assets'!$P$2:$P$1000=Costs!$A708)*('Fixed assets'!$S$2:$S$1000))","v":0},{"$f":"AP620+SUMPRODUCT(('Fixed assets'!$Q$2:$Q$1000=Costs!AP$705)*('Fixed assets'!$U$2:$U$1000>Costs!$A708)*('Fixed assets'!$P$2:$P$1000=Costs!$A708)*('Fixed assets'!$R$2:$R$1000))-SUMPRODUCT(('Fixed assets'!$Q$2:$Q$1000=Costs!AP$705)*('Fixed assets'!$U$2:$U$1000>Costs!$A708)*('Fixed assets'!$P$2:$P$1000=Costs!$A708)*('Fixed assets'!$S$2:$S$1000))","v":0},{"$f":"AQ620+SUMPRODUCT(('Fixed assets'!$Q$2:$Q$1000=Costs!AQ$705)*('Fixed assets'!$U$2:$U$1000>Costs!$A708)*('Fixed assets'!$P$2:$P$1000=Costs!$A708)*('Fixed assets'!$R$2:$R$1000))-SUMPRODUCT(('Fixed assets'!$Q$2:$Q$1000=Costs!AQ$705)*('Fixed assets'!$U$2:$U$1000>Costs!$A708)*('Fixed assets'!$P$2:$P$1000=Costs!$A708)*('Fixed assets'!$S$2:$S$1000))","v":0}]
[2018,0,{"$f":"C621+SUMPRODUCT(('Fixed assets'!$Q$2:$Q$1000=Costs!C$705)*('Fixed assets'!$U$2:$U$1000>Costs!$A709)*('Fixed assets'!$P$2:$P$1000=Costs!$A709)*('Fixed assets'!$R$2:$R$1000))-SUMPRODUCT(('Fixed assets'!$Q$2:$Q$1000=Costs!C$705)*('Fixed assets'!$U$2:$U$1000>Costs!$A709)*('Fixed assets'!$P$2:$P$1000=Costs!$A709)*('Fixed assets'!$S$2:$S$1000))","v":0},{"$f":"D621+SUMPRODUCT(('Fixed assets'!$Q$2:$Q$1000=Costs!D$705)*('Fixed assets'!$U$2:$U$1000>Costs!$A709)*('Fixed assets'!$P$2:$P$1000=Costs!$A709)*('Fixed assets'!$R$2:$R$1000))-SUMPRODUCT(('Fixed assets'!$Q$2:$Q$1000=Costs!D$705)*('Fixed assets'!$U$2:$U$1000>Costs!$A709)*('Fixed assets'!$P$2:$P$1000=Costs!$A709)*('Fixed assets'!$S$2:$S$1000))","v":0},{"$f":"E621+SUMPRODUCT(('Fixed assets'!$Q$2:$Q$1000=Costs!E$705)*('Fixed assets'!$U$2:$U$1000>Costs!$A709)*('Fixed assets'!$P$2:$P$1000=Costs!$A709)*('Fixed assets'!$R$2:$R$1000))-SUMPRODUCT(('Fixed assets'!$Q$2:$Q$1000=Costs!E$705)*('Fixed assets'!$U$2:$U$1000>Costs!$A709)*('Fixed assets'!$P$2:$P$1000=Costs!$A709)*('Fixed assets'!$S$2:$S$1000))","v":0},{"$f":"F621+SUMPRODUCT(('Fixed assets'!$Q$2:$Q$1000=Costs!F$705)*('Fixed assets'!$U$2:$U$1000>Costs!$A709)*('Fixed assets'!$P$2:$P$1000=Costs!$A709)*('Fixed assets'!$R$2:$R$1000))-SUMPRODUCT(('Fixed assets'!$Q$2:$Q$1000=Costs!F$705)*('Fixed assets'!$U$2:$U$1000>Costs!$A709)*('Fixed assets'!$P$2:$P$1000=Costs!$A709)*('Fixed assets'!$S$2:$S$1000))","v":0},{"$f":"G621+SUMPRODUCT(('Fixed assets'!$Q$2:$Q$1000=Costs!G$705)*('Fixed assets'!$U$2:$U$1000>Costs!$A709)*('Fixed assets'!$P$2:$P$1000=Costs!$A709)*('Fixed assets'!$R$2:$R$1000))-SUMPRODUCT(('Fixed assets'!$Q$2:$Q$1000=Costs!G$705)*('Fixed assets'!$U$2:$U$1000>Costs!$A709)*('Fixed assets'!$P$2:$P$1000=Costs!$A709)*('Fixed assets'!$S$2:$S$1000))","v":0},{"$f":"H621+SUMPRODUCT(('Fixed assets'!$Q$2:$Q$1000=Costs!H$705)*('Fixed assets'!$U$2:$U$1000>Costs!$A709)*('Fixed assets'!$P$2:$P$1000=Costs!$A709)*('Fixed assets'!$R$2:$R$1000))-SUMPRODUCT(('Fixed assets'!$Q$2:$Q$1000=Costs!H$705)*('Fixed assets'!$U$2:$U$1000>Costs!$A709)*('Fixed assets'!$P$2:$P$1000=Costs!$A709)*('Fixed assets'!$S$2:$S$1000))","v":0},{"$f":"I621+SUMPRODUCT(('Fixed assets'!$Q$2:$Q$1000=Costs!I$705)*('Fixed assets'!$U$2:$U$1000>Costs!$A709)*('Fixed assets'!$P$2:$P$1000=Costs!$A709)*('Fixed assets'!$R$2:$R$1000))-SUMPRODUCT(('Fixed assets'!$Q$2:$Q$1000=Costs!I$705)*('Fixed assets'!$U$2:$U$1000>Costs!$A709)*('Fixed assets'!$P$2:$P$1000=Costs!$A709)*('Fixed assets'!$S$2:$S$1000))","v":0},{"$f":"J621+SUMPRODUCT(('Fixed assets'!$Q$2:$Q$1000=Costs!J$705)*('Fixed assets'!$U$2:$U$1000>Costs!$A709)*('Fixed assets'!$P$2:$P$1000=Costs!$A709)*('Fixed assets'!$R$2:$R$1000))-SUMPRODUCT(('Fixed assets'!$Q$2:$Q$1000=Costs!J$705)*('Fixed assets'!$U$2:$U$1000>Costs!$A709)*('Fixed assets'!$P$2:$P$1000=Costs!$A709)*('Fixed assets'!$S$2:$S$1000))","v":0},{"$f":"K621+SUMPRODUCT(('Fixed assets'!$Q$2:$Q$1000=Costs!K$705)*('Fixed assets'!$U$2:$U$1000>Costs!$A709)*('Fixed assets'!$P$2:$P$1000=Costs!$A709)*('Fixed assets'!$R$2:$R$1000))-SUMPRODUCT(('Fixed assets'!$Q$2:$Q$1000=Costs!K$705)*('Fixed assets'!$U$2:$U$1000>Costs!$A709)*('Fixed assets'!$P$2:$P$1000=Costs!$A709)*('Fixed assets'!$S$2:$S$1000))","v":0},{"$f":"L621+SUMPRODUCT(('Fixed assets'!$Q$2:$Q$1000=Costs!L$705)*('Fixed assets'!$U$2:$U$1000>Costs!$A709)*('Fixed assets'!$P$2:$P$1000=Costs!$A709)*('Fixed assets'!$R$2:$R$1000))-SUMPRODUCT(('Fixed assets'!$Q$2:$Q$1000=Costs!L$705)*('Fixed assets'!$U$2:$U$1000>Costs!$A709)*('Fixed assets'!$P$2:$P$1000=Costs!$A709)*('Fixed assets'!$S$2:$S$1000))","v":0},{"$f":"M621+SUMPRODUCT(('Fixed assets'!$Q$2:$Q$1000=Costs!M$705)*('Fixed assets'!$U$2:$U$1000>Costs!$A709)*('Fixed assets'!$P$2:$P$1000=Costs!$A709)*('Fixed assets'!$R$2:$R$1000))-SUMPRODUCT(('Fixed assets'!$Q$2:$Q$1000=Costs!M$705)*('Fixed assets'!$U$2:$U$1000>Costs!$A709)*('Fixed assets'!$P$2:$P$1000=Costs!$A709)*('Fixed assets'!$S$2:$S$1000))","v":0},{"$f":"N621+SUMPRODUCT(('Fixed assets'!$Q$2:$Q$1000=Costs!N$705)*('Fixed assets'!$U$2:$U$1000>Costs!$A709)*('Fixed assets'!$P$2:$P$1000=Costs!$A709)*('Fixed assets'!$R$2:$R$1000))-SUMPRODUCT(('Fixed assets'!$Q$2:$Q$1000=Costs!N$705)*('Fixed assets'!$U$2:$U$1000>Costs!$A709)*('Fixed assets'!$P$2:$P$1000=Costs!$A709)*('Fixed assets'!$S$2:$S$1000))","v":0},{"$f":"O621+SUMPRODUCT(('Fixed assets'!$Q$2:$Q$1000=Costs!O$705)*('Fixed assets'!$U$2:$U$1000>Costs!$A709)*('Fixed assets'!$P$2:$P$1000=Costs!$A709)*('Fixed assets'!$R$2:$R$1000))-SUMPRODUCT(('Fixed assets'!$Q$2:$Q$1000=Costs!O$705)*('Fixed assets'!$U$2:$U$1000>Costs!$A709)*('Fixed assets'!$P$2:$P$1000=Costs!$A709)*('Fixed assets'!$S$2:$S$1000))","v":0},{"$f":"P621+SUMPRODUCT(('Fixed assets'!$Q$2:$Q$1000=Costs!P$705)*('Fixed assets'!$U$2:$U$1000>Costs!$A709)*('Fixed assets'!$P$2:$P$1000=Costs!$A709)*('Fixed assets'!$R$2:$R$1000))-SUMPRODUCT(('Fixed assets'!$Q$2:$Q$1000=Costs!P$705)*('Fixed assets'!$U$2:$U$1000>Costs!$A709)*('Fixed assets'!$P$2:$P$1000=Costs!$A709)*('Fixed assets'!$S$2:$S$1000))","v":0},{"$f":"Q621+SUMPRODUCT(('Fixed assets'!$Q$2:$Q$1000=Costs!Q$705)*('Fixed assets'!$U$2:$U$1000>Costs!$A709)*('Fixed assets'!$P$2:$P$1000=Costs!$A709)*('Fixed assets'!$R$2:$R$1000))-SUMPRODUCT(('Fixed assets'!$Q$2:$Q$1000=Costs!Q$705)*('Fixed assets'!$U$2:$U$1000>Costs!$A709)*('Fixed assets'!$P$2:$P$1000=Costs!$A709)*('Fixed assets'!$S$2:$S$1000))","v":0},{"$f":"R621+SUMPRODUCT(('Fixed assets'!$Q$2:$Q$1000=Costs!R$705)*('Fixed assets'!$U$2:$U$1000>Costs!$A709)*('Fixed assets'!$P$2:$P$1000=Costs!$A709)*('Fixed assets'!$R$2:$R$1000))-SUMPRODUCT(('Fixed assets'!$Q$2:$Q$1000=Costs!R$705)*('Fixed assets'!$U$2:$U$1000>Costs!$A709)*('Fixed assets'!$P$2:$P$1000=Costs!$A709)*('Fixed assets'!$S$2:$S$1000))","v":0},{"$f":"S621+SUMPRODUCT(('Fixed assets'!$Q$2:$Q$1000=Costs!S$705)*('Fixed assets'!$U$2:$U$1000>Costs!$A709)*('Fixed assets'!$P$2:$P$1000=Costs!$A709)*('Fixed assets'!$R$2:$R$1000))-SUMPRODUCT(('Fixed assets'!$Q$2:$Q$1000=Costs!S$705)*('Fixed assets'!$U$2:$U$1000>Costs!$A709)*('Fixed assets'!$P$2:$P$1000=Costs!$A709)*('Fixed assets'!$S$2:$S$1000))","v":0},{"$f":"T621+SUMPRODUCT(('Fixed assets'!$Q$2:$Q$1000=Costs!T$705)*('Fixed assets'!$U$2:$U$1000>Costs!$A709)*('Fixed assets'!$P$2:$P$1000=Costs!$A709)*('Fixed assets'!$R$2:$R$1000))-SUMPRODUCT(('Fixed assets'!$Q$2:$Q$1000=Costs!T$705)*('Fixed assets'!$U$2:$U$1000>Costs!$A709)*('Fixed assets'!$P$2:$P$1000=Costs!$A709)*('Fixed assets'!$S$2:$S$1000))","v":0},{"$f":"U621+SUMPRODUCT(('Fixed assets'!$Q$2:$Q$1000=Costs!U$705)*('Fixed assets'!$U$2:$U$1000>Costs!$A709)*('Fixed assets'!$P$2:$P$1000=Costs!$A709)*('Fixed assets'!$R$2:$R$1000))-SUMPRODUCT(('Fixed assets'!$Q$2:$Q$1000=Costs!U$705)*('Fixed assets'!$U$2:$U$1000>Costs!$A709)*('Fixed assets'!$P$2:$P$1000=Costs!$A709)*('Fixed assets'!$S$2:$S$1000))","v":0},{"$f":"V621+SUMPRODUCT(('Fixed assets'!$Q$2:$Q$1000=Costs!V$705)*('Fixed assets'!$U$2:$U$1000>Costs!$A709)*('Fixed assets'!$P$2:$P$1000=Costs!$A709)*('Fixed assets'!$R$2:$R$1000))-SUMPRODUCT(('Fixed assets'!$Q$2:$Q$1000=Costs!V$705)*('Fixed assets'!$U$2:$U$1000>Costs!$A709)*('Fixed assets'!$P$2:$P$1000=Costs!$A709)*('Fixed assets'!$S$2:$S$1000))","v":0},{"$f":"W621+SUMPRODUCT(('Fixed assets'!$Q$2:$Q$1000=Costs!W$705)*('Fixed assets'!$U$2:$U$1000>Costs!$A709)*('Fixed assets'!$P$2:$P$1000=Costs!$A709)*('Fixed assets'!$R$2:$R$1000))-SUMPRODUCT(('Fixed assets'!$Q$2:$Q$1000=Costs!W$705)*('Fixed assets'!$U$2:$U$1000>Costs!$A709)*('Fixed assets'!$P$2:$P$1000=Costs!$A709)*('Fixed assets'!$S$2:$S$1000))","v":0},{"$f":"X621+SUMPRODUCT(('Fixed assets'!$Q$2:$Q$1000=Costs!X$705)*('Fixed assets'!$U$2:$U$1000>Costs!$A709)*('Fixed assets'!$P$2:$P$1000=Costs!$A709)*('Fixed assets'!$R$2:$R$1000))-SUMPRODUCT(('Fixed assets'!$Q$2:$Q$1000=Costs!X$705)*('Fixed assets'!$U$2:$U$1000>Costs!$A709)*('Fixed assets'!$P$2:$P$1000=Costs!$A709)*('Fixed assets'!$S$2:$S$1000))","v":0},{"$f":"Y621+SUMPRODUCT(('Fixed assets'!$Q$2:$Q$1000=Costs!Y$705)*('Fixed assets'!$U$2:$U$1000>Costs!$A709)*('Fixed assets'!$P$2:$P$1000=Costs!$A709)*('Fixed assets'!$R$2:$R$1000))-SUMPRODUCT(('Fixed assets'!$Q$2:$Q$1000=Costs!Y$705)*('Fixed assets'!$U$2:$U$1000>Costs!$A709)*('Fixed assets'!$P$2:$P$1000=Costs!$A709)*('Fixed assets'!$S$2:$S$1000))","v":0},{"$f":"Z621+SUMPRODUCT(('Fixed assets'!$Q$2:$Q$1000=Costs!Z$705)*('Fixed assets'!$U$2:$U$1000>Costs!$A709)*('Fixed assets'!$P$2:$P$1000=Costs!$A709)*('Fixed assets'!$R$2:$R$1000))-SUMPRODUCT(('Fixed assets'!$Q$2:$Q$1000=Costs!Z$705)*('Fixed assets'!$U$2:$U$1000>Costs!$A709)*('Fixed assets'!$P$2:$P$1000=Costs!$A709)*('Fixed assets'!$S$2:$S$1000))","v":0},{"$f":"AA621+SUMPRODUCT(('Fixed assets'!$Q$2:$Q$1000=Costs!AA$705)*('Fixed assets'!$U$2:$U$1000>Costs!$A709)*('Fixed assets'!$P$2:$P$1000=Costs!$A709)*('Fixed assets'!$R$2:$R$1000))-SUMPRODUCT(('Fixed assets'!$Q$2:$Q$1000=Costs!AA$705)*('Fixed assets'!$U$2:$U$1000>Costs!$A709)*('Fixed assets'!$P$2:$P$1000=Costs!$A709)*('Fixed assets'!$S$2:$S$1000))","v":0},{"$f":"AB621+SUMPRODUCT(('Fixed assets'!$Q$2:$Q$1000=Costs!AB$705)*('Fixed assets'!$U$2:$U$1000>Costs!$A709)*('Fixed assets'!$P$2:$P$1000=Costs!$A709)*('Fixed assets'!$R$2:$R$1000))-SUMPRODUCT(('Fixed assets'!$Q$2:$Q$1000=Costs!AB$705)*('Fixed assets'!$U$2:$U$1000>Costs!$A709)*('Fixed assets'!$P$2:$P$1000=Costs!$A709)*('Fixed assets'!$S$2:$S$1000))","v":0},{"$f":"AC621+SUMPRODUCT(('Fixed assets'!$Q$2:$Q$1000=Costs!AC$705)*('Fixed assets'!$U$2:$U$1000>Costs!$A709)*('Fixed assets'!$P$2:$P$1000=Costs!$A709)*('Fixed assets'!$R$2:$R$1000))-SUMPRODUCT(('Fixed assets'!$Q$2:$Q$1000=Costs!AC$705)*('Fixed assets'!$U$2:$U$1000>Costs!$A709)*('Fixed assets'!$P$2:$P$1000=Costs!$A709)*('Fixed assets'!$S$2:$S$1000))","v":0},{"$f":"AD621+SUMPRODUCT(('Fixed assets'!$Q$2:$Q$1000=Costs!AD$705)*('Fixed assets'!$U$2:$U$1000>Costs!$A709)*('Fixed assets'!$P$2:$P$1000=Costs!$A709)*('Fixed assets'!$R$2:$R$1000))-SUMPRODUCT(('Fixed assets'!$Q$2:$Q$1000=Costs!AD$705)*('Fixed assets'!$U$2:$U$1000>Costs!$A709)*('Fixed assets'!$P$2:$P$1000=Costs!$A709)*('Fixed assets'!$S$2:$S$1000))","v":0},{"$f":"AE621+SUMPRODUCT(('Fixed assets'!$Q$2:$Q$1000=Costs!AE$705)*('Fixed assets'!$U$2:$U$1000>Costs!$A709)*('Fixed assets'!$P$2:$P$1000=Costs!$A709)*('Fixed assets'!$R$2:$R$1000))-SUMPRODUCT(('Fixed assets'!$Q$2:$Q$1000=Costs!AE$705)*('Fixed assets'!$U$2:$U$1000>Costs!$A709)*('Fixed assets'!$P$2:$P$1000=Costs!$A709)*('Fixed assets'!$S$2:$S$1000))","v":0},{"$f":"AF621+SUMPRODUCT(('Fixed assets'!$Q$2:$Q$1000=Costs!AF$705)*('Fixed assets'!$U$2:$U$1000>Costs!$A709)*('Fixed assets'!$P$2:$P$1000=Costs!$A709)*('Fixed assets'!$R$2:$R$1000))-SUMPRODUCT(('Fixed assets'!$Q$2:$Q$1000=Costs!AF$705)*('Fixed assets'!$U$2:$U$1000>Costs!$A709)*('Fixed assets'!$P$2:$P$1000=Costs!$A709)*('Fixed assets'!$S$2:$S$1000))","v":0},{"$f":"AG621+SUMPRODUCT(('Fixed assets'!$Q$2:$Q$1000=Costs!AG$705)*('Fixed assets'!$U$2:$U$1000>Costs!$A709)*('Fixed assets'!$P$2:$P$1000=Costs!$A709)*('Fixed assets'!$R$2:$R$1000))-SUMPRODUCT(('Fixed assets'!$Q$2:$Q$1000=Costs!AG$705)*('Fixed assets'!$U$2:$U$1000>Costs!$A709)*('Fixed assets'!$P$2:$P$1000=Costs!$A709)*('Fixed assets'!$S$2:$S$1000))","v":0},{"$f":"AH621+SUMPRODUCT(('Fixed assets'!$Q$2:$Q$1000=Costs!AH$705)*('Fixed assets'!$U$2:$U$1000>Costs!$A709)*('Fixed assets'!$P$2:$P$1000=Costs!$A709)*('Fixed assets'!$R$2:$R$1000))-SUMPRODUCT(('Fixed assets'!$Q$2:$Q$1000=Costs!AH$705)*('Fixed assets'!$U$2:$U$1000>Costs!$A709)*('Fixed assets'!$P$2:$P$1000=Costs!$A709)*('Fixed assets'!$S$2:$S$1000))","v":0},{"$f":"AI621+SUMPRODUCT(('Fixed assets'!$Q$2:$Q$1000=Costs!AI$705)*('Fixed assets'!$U$2:$U$1000>Costs!$A709)*('Fixed assets'!$P$2:$P$1000=Costs!$A709)*('Fixed assets'!$R$2:$R$1000))-SUMPRODUCT(('Fixed assets'!$Q$2:$Q$1000=Costs!AI$705)*('Fixed assets'!$U$2:$U$1000>Costs!$A709)*('Fixed assets'!$P$2:$P$1000=Costs!$A709)*('Fixed assets'!$S$2:$S$1000))","v":0},{"$f":"AJ621+SUMPRODUCT(('Fixed assets'!$Q$2:$Q$1000=Costs!AJ$705)*('Fixed assets'!$U$2:$U$1000>Costs!$A709)*('Fixed assets'!$P$2:$P$1000=Costs!$A709)*('Fixed assets'!$R$2:$R$1000))-SUMPRODUCT(('Fixed assets'!$Q$2:$Q$1000=Costs!AJ$705)*('Fixed assets'!$U$2:$U$1000>Costs!$A709)*('Fixed assets'!$P$2:$P$1000=Costs!$A709)*('Fixed assets'!$S$2:$S$1000))","v":0},{"$f":"AK621+SUMPRODUCT(('Fixed assets'!$Q$2:$Q$1000=Costs!AK$705)*('Fixed assets'!$U$2:$U$1000>Costs!$A709)*('Fixed assets'!$P$2:$P$1000=Costs!$A709)*('Fixed assets'!$R$2:$R$1000))-SUMPRODUCT(('Fixed assets'!$Q$2:$Q$1000=Costs!AK$705)*('Fixed assets'!$U$2:$U$1000>Costs!$A709)*('Fixed assets'!$P$2:$P$1000=Costs!$A709)*('Fixed assets'!$S$2:$S$1000))","v":0},{"$f":"AL621+SUMPRODUCT(('Fixed assets'!$Q$2:$Q$1000=Costs!AL$705)*('Fixed assets'!$U$2:$U$1000>Costs!$A709)*('Fixed assets'!$P$2:$P$1000=Costs!$A709)*('Fixed assets'!$R$2:$R$1000))-SUMPRODUCT(('Fixed assets'!$Q$2:$Q$1000=Costs!AL$705)*('Fixed assets'!$U$2:$U$1000>Costs!$A709)*('Fixed assets'!$P$2:$P$1000=Costs!$A709)*('Fixed assets'!$S$2:$S$1000))","v":0},{"$f":"AM621+SUMPRODUCT(('Fixed assets'!$Q$2:$Q$1000=Costs!AM$705)*('Fixed assets'!$U$2:$U$1000>Costs!$A709)*('Fixed assets'!$P$2:$P$1000=Costs!$A709)*('Fixed assets'!$R$2:$R$1000))-SUMPRODUCT(('Fixed assets'!$Q$2:$Q$1000=Costs!AM$705)*('Fixed assets'!$U$2:$U$1000>Costs!$A709)*('Fixed assets'!$P$2:$P$1000=Costs!$A709)*('Fixed assets'!$S$2:$S$1000))","v":0},{"$f":"AN621+SUMPRODUCT(('Fixed assets'!$Q$2:$Q$1000=Costs!AN$705)*('Fixed assets'!$U$2:$U$1000>Costs!$A709)*('Fixed assets'!$P$2:$P$1000=Costs!$A709)*('Fixed assets'!$R$2:$R$1000))-SUMPRODUCT(('Fixed assets'!$Q$2:$Q$1000=Costs!AN$705)*('Fixed assets'!$U$2:$U$1000>Costs!$A709)*('Fixed assets'!$P$2:$P$1000=Costs!$A709)*('Fixed assets'!$S$2:$S$1000))","v":0},{"$f":"AO621+SUMPRODUCT(('Fixed assets'!$Q$2:$Q$1000=Costs!AO$705)*('Fixed assets'!$U$2:$U$1000>Costs!$A709)*('Fixed assets'!$P$2:$P$1000=Costs!$A709)*('Fixed assets'!$R$2:$R$1000))-SUMPRODUCT(('Fixed assets'!$Q$2:$Q$1000=Costs!AO$705)*('Fixed assets'!$U$2:$U$1000>Costs!$A709)*('Fixed assets'!$P$2:$P$1000=Costs!$A709)*('Fixed assets'!$S$2:$S$1000))","v":0},{"$f":"AP621+SUMPRODUCT(('Fixed assets'!$Q$2:$Q$1000=Costs!AP$705)*('Fixed assets'!$U$2:$U$1000>Costs!$A709)*('Fixed assets'!$P$2:$P$1000=Costs!$A709)*('Fixed assets'!$R$2:$R$1000))-SUMPRODUCT(('Fixed assets'!$Q$2:$Q$1000=Costs!AP$705)*('Fixed assets'!$U$2:$U$1000>Costs!$A709)*('Fixed assets'!$P$2:$P$1000=Costs!$A709)*('Fixed assets'!$S$2:$S$1000))","v":0},{"$f":"AQ621+SUMPRODUCT(('Fixed assets'!$Q$2:$Q$1000=Costs!AQ$705)*('Fixed assets'!$U$2:$U$1000>Costs!$A709)*('Fixed assets'!$P$2:$P$1000=Costs!$A709)*('Fixed assets'!$R$2:$R$1000))-SUMPRODUCT(('Fixed assets'!$Q$2:$Q$1000=Costs!AQ$705)*('Fixed assets'!$U$2:$U$1000>Costs!$A709)*('Fixed assets'!$P$2:$P$1000=Costs!$A709)*('Fixed assets'!$S$2:$S$1000))","v":0}]
[2019,0,{"$f":"C622+SUMPRODUCT(('Fixed assets'!$Q$2:$Q$1000=Costs!C$705)*('Fixed assets'!$U$2:$U$1000>Costs!$A710)*('Fixed assets'!$P$2:$P$1000=Costs!$A710)*('Fixed assets'!$R$2:$R$1000))-SUMPRODUCT(('Fixed assets'!$Q$2:$Q$1000=Costs!C$705)*('Fixed assets'!$U$2:$U$1000>Costs!$A710)*('Fixed assets'!$P$2:$P$1000=Costs!$A710)*('Fixed assets'!$S$2:$S$1000))","v":0},{"$f":"D622+SUMPRODUCT(('Fixed assets'!$Q$2:$Q$1000=Costs!D$705)*('Fixed assets'!$U$2:$U$1000>Costs!$A710)*('Fixed assets'!$P$2:$P$1000=Costs!$A710)*('Fixed assets'!$R$2:$R$1000))-SUMPRODUCT(('Fixed assets'!$Q$2:$Q$1000=Costs!D$705)*('Fixed assets'!$U$2:$U$1000>Costs!$A710)*('Fixed assets'!$P$2:$P$1000=Costs!$A710)*('Fixed assets'!$S$2:$S$1000))","v":0},{"$f":"E622+SUMPRODUCT(('Fixed assets'!$Q$2:$Q$1000=Costs!E$705)*('Fixed assets'!$U$2:$U$1000>Costs!$A710)*('Fixed assets'!$P$2:$P$1000=Costs!$A710)*('Fixed assets'!$R$2:$R$1000))-SUMPRODUCT(('Fixed assets'!$Q$2:$Q$1000=Costs!E$705)*('Fixed assets'!$U$2:$U$1000>Costs!$A710)*('Fixed assets'!$P$2:$P$1000=Costs!$A710)*('Fixed assets'!$S$2:$S$1000))","v":0},{"$f":"F622+SUMPRODUCT(('Fixed assets'!$Q$2:$Q$1000=Costs!F$705)*('Fixed assets'!$U$2:$U$1000>Costs!$A710)*('Fixed assets'!$P$2:$P$1000=Costs!$A710)*('Fixed assets'!$R$2:$R$1000))-SUMPRODUCT(('Fixed assets'!$Q$2:$Q$1000=Costs!F$705)*('Fixed assets'!$U$2:$U$1000>Costs!$A710)*('Fixed assets'!$P$2:$P$1000=Costs!$A710)*('Fixed assets'!$S$2:$S$1000))","v":0},{"$f":"G622+SUMPRODUCT(('Fixed assets'!$Q$2:$Q$1000=Costs!G$705)*('Fixed assets'!$U$2:$U$1000>Costs!$A710)*('Fixed assets'!$P$2:$P$1000=Costs!$A710)*('Fixed assets'!$R$2:$R$1000))-SUMPRODUCT(('Fixed assets'!$Q$2:$Q$1000=Costs!G$705)*('Fixed assets'!$U$2:$U$1000>Costs!$A710)*('Fixed assets'!$P$2:$P$1000=Costs!$A710)*('Fixed assets'!$S$2:$S$1000))","v":0},{"$f":"H622+SUMPRODUCT(('Fixed assets'!$Q$2:$Q$1000=Costs!H$705)*('Fixed assets'!$U$2:$U$1000>Costs!$A710)*('Fixed assets'!$P$2:$P$1000=Costs!$A710)*('Fixed assets'!$R$2:$R$1000))-SUMPRODUCT(('Fixed assets'!$Q$2:$Q$1000=Costs!H$705)*('Fixed assets'!$U$2:$U$1000>Costs!$A710)*('Fixed assets'!$P$2:$P$1000=Costs!$A710)*('Fixed assets'!$S$2:$S$1000))","v":0},{"$f":"I622+SUMPRODUCT(('Fixed assets'!$Q$2:$Q$1000=Costs!I$705)*('Fixed assets'!$U$2:$U$1000>Costs!$A710)*('Fixed assets'!$P$2:$P$1000=Costs!$A710)*('Fixed assets'!$R$2:$R$1000))-SUMPRODUCT(('Fixed assets'!$Q$2:$Q$1000=Costs!I$705)*('Fixed assets'!$U$2:$U$1000>Costs!$A710)*('Fixed assets'!$P$2:$P$1000=Costs!$A710)*('Fixed assets'!$S$2:$S$1000))","v":0},{"$f":"J622+SUMPRODUCT(('Fixed assets'!$Q$2:$Q$1000=Costs!J$705)*('Fixed assets'!$U$2:$U$1000>Costs!$A710)*('Fixed assets'!$P$2:$P$1000=Costs!$A710)*('Fixed assets'!$R$2:$R$1000))-SUMPRODUCT(('Fixed assets'!$Q$2:$Q$1000=Costs!J$705)*('Fixed assets'!$U$2:$U$1000>Costs!$A710)*('Fixed assets'!$P$2:$P$1000=Costs!$A710)*('Fixed assets'!$S$2:$S$1000))","v":0},{"$f":"K622+SUMPRODUCT(('Fixed assets'!$Q$2:$Q$1000=Costs!K$705)*('Fixed assets'!$U$2:$U$1000>Costs!$A710)*('Fixed assets'!$P$2:$P$1000=Costs!$A710)*('Fixed assets'!$R$2:$R$1000))-SUMPRODUCT(('Fixed assets'!$Q$2:$Q$1000=Costs!K$705)*('Fixed assets'!$U$2:$U$1000>Costs!$A710)*('Fixed assets'!$P$2:$P$1000=Costs!$A710)*('Fixed assets'!$S$2:$S$1000))","v":0},{"$f":"L622+SUMPRODUCT(('Fixed assets'!$Q$2:$Q$1000=Costs!L$705)*('Fixed assets'!$U$2:$U$1000>Costs!$A710)*('Fixed assets'!$P$2:$P$1000=Costs!$A710)*('Fixed assets'!$R$2:$R$1000))-SUMPRODUCT(('Fixed assets'!$Q$2:$Q$1000=Costs!L$705)*('Fixed assets'!$U$2:$U$1000>Costs!$A710)*('Fixed assets'!$P$2:$P$1000=Costs!$A710)*('Fixed assets'!$S$2:$S$1000))","v":0},{"$f":"M622+SUMPRODUCT(('Fixed assets'!$Q$2:$Q$1000=Costs!M$705)*('Fixed assets'!$U$2:$U$1000>Costs!$A710)*('Fixed assets'!$P$2:$P$1000=Costs!$A710)*('Fixed assets'!$R$2:$R$1000))-SUMPRODUCT(('Fixed assets'!$Q$2:$Q$1000=Costs!M$705)*('Fixed assets'!$U$2:$U$1000>Costs!$A710)*('Fixed assets'!$P$2:$P$1000=Costs!$A710)*('Fixed assets'!$S$2:$S$1000))","v":0},{"$f":"N622+SUMPRODUCT(('Fixed assets'!$Q$2:$Q$1000=Costs!N$705)*('Fixed assets'!$U$2:$U$1000>Costs!$A710)*('Fixed assets'!$P$2:$P$1000=Costs!$A710)*('Fixed assets'!$R$2:$R$1000))-SUMPRODUCT(('Fixed assets'!$Q$2:$Q$1000=Costs!N$705)*('Fixed assets'!$U$2:$U$1000>Costs!$A710)*('Fixed assets'!$P$2:$P$1000=Costs!$A710)*('Fixed assets'!$S$2:$S$1000))","v":0},{"$f":"O622+SUMPRODUCT(('Fixed assets'!$Q$2:$Q$1000=Costs!O$705)*('Fixed assets'!$U$2:$U$1000>Costs!$A710)*('Fixed assets'!$P$2:$P$1000=Costs!$A710)*('Fixed assets'!$R$2:$R$1000))-SUMPRODUCT(('Fixed assets'!$Q$2:$Q$1000=Costs!O$705)*('Fixed assets'!$U$2:$U$1000>Costs!$A710)*('Fixed assets'!$P$2:$P$1000=Costs!$A710)*('Fixed assets'!$S$2:$S$1000))","v":0},{"$f":"P622+SUMPRODUCT(('Fixed assets'!$Q$2:$Q$1000=Costs!P$705)*('Fixed assets'!$U$2:$U$1000>Costs!$A710)*('Fixed assets'!$P$2:$P$1000=Costs!$A710)*('Fixed assets'!$R$2:$R$1000))-SUMPRODUCT(('Fixed assets'!$Q$2:$Q$1000=Costs!P$705)*('Fixed assets'!$U$2:$U$1000>Costs!$A710)*('Fixed assets'!$P$2:$P$1000=Costs!$A710)*('Fixed assets'!$S$2:$S$1000))","v":0},{"$f":"Q622+SUMPRODUCT(('Fixed assets'!$Q$2:$Q$1000=Costs!Q$705)*('Fixed assets'!$U$2:$U$1000>Costs!$A710)*('Fixed assets'!$P$2:$P$1000=Costs!$A710)*('Fixed assets'!$R$2:$R$1000))-SUMPRODUCT(('Fixed assets'!$Q$2:$Q$1000=Costs!Q$705)*('Fixed assets'!$U$2:$U$1000>Costs!$A710)*('Fixed assets'!$P$2:$P$1000=Costs!$A710)*('Fixed assets'!$S$2:$S$1000))","v":0},{"$f":"R622+SUMPRODUCT(('Fixed assets'!$Q$2:$Q$1000=Costs!R$705)*('Fixed assets'!$U$2:$U$1000>Costs!$A710)*('Fixed assets'!$P$2:$P$1000=Costs!$A710)*('Fixed assets'!$R$2:$R$1000))-SUMPRODUCT(('Fixed assets'!$Q$2:$Q$1000=Costs!R$705)*('Fixed assets'!$U$2:$U$1000>Costs!$A710)*('Fixed assets'!$P$2:$P$1000=Costs!$A710)*('Fixed assets'!$S$2:$S$1000))","v":0},{"$f":"S622+SUMPRODUCT(('Fixed assets'!$Q$2:$Q$1000=Costs!S$705)*('Fixed assets'!$U$2:$U$1000>Costs!$A710)*('Fixed assets'!$P$2:$P$1000=Costs!$A710)*('Fixed assets'!$R$2:$R$1000))-SUMPRODUCT(('Fixed assets'!$Q$2:$Q$1000=Costs!S$705)*('Fixed assets'!$U$2:$U$1000>Costs!$A710)*('Fixed assets'!$P$2:$P$1000=Costs!$A710)*('Fixed assets'!$S$2:$S$1000))","v":0},{"$f":"T622+SUMPRODUCT(('Fixed assets'!$Q$2:$Q$1000=Costs!T$705)*('Fixed assets'!$U$2:$U$1000>Costs!$A710)*('Fixed assets'!$P$2:$P$1000=Costs!$A710)*('Fixed assets'!$R$2:$R$1000))-SUMPRODUCT(('Fixed assets'!$Q$2:$Q$1000=Costs!T$705)*('Fixed assets'!$U$2:$U$1000>Costs!$A710)*('Fixed assets'!$P$2:$P$1000=Costs!$A710)*('Fixed assets'!$S$2:$S$1000))","v":0},{"$f":"U622+SUMPRODUCT(('Fixed assets'!$Q$2:$Q$1000=Costs!U$705)*('Fixed assets'!$U$2:$U$1000>Costs!$A710)*('Fixed assets'!$P$2:$P$1000=Costs!$A710)*('Fixed assets'!$R$2:$R$1000))-SUMPRODUCT(('Fixed assets'!$Q$2:$Q$1000=Costs!U$705)*('Fixed assets'!$U$2:$U$1000>Costs!$A710)*('Fixed assets'!$P$2:$P$1000=Costs!$A710)*('Fixed assets'!$S$2:$S$1000))","v":0},{"$f":"V622+SUMPRODUCT(('Fixed assets'!$Q$2:$Q$1000=Costs!V$705)*('Fixed assets'!$U$2:$U$1000>Costs!$A710)*('Fixed assets'!$P$2:$P$1000=Costs!$A710)*('Fixed assets'!$R$2:$R$1000))-SUMPRODUCT(('Fixed assets'!$Q$2:$Q$1000=Costs!V$705)*('Fixed assets'!$U$2:$U$1000>Costs!$A710)*('Fixed assets'!$P$2:$P$1000=Costs!$A710)*('Fixed assets'!$S$2:$S$1000))","v":0},{"$f":"W622+SUMPRODUCT(('Fixed assets'!$Q$2:$Q$1000=Costs!W$705)*('Fixed assets'!$U$2:$U$1000>Costs!$A710)*('Fixed assets'!$P$2:$P$1000=Costs!$A710)*('Fixed assets'!$R$2:$R$1000))-SUMPRODUCT(('Fixed assets'!$Q$2:$Q$1000=Costs!W$705)*('Fixed assets'!$U$2:$U$1000>Costs!$A710)*('Fixed assets'!$P$2:$P$1000=Costs!$A710)*('Fixed assets'!$S$2:$S$1000))","v":0},{"$f":"X622+SUMPRODUCT(('Fixed assets'!$Q$2:$Q$1000=Costs!X$705)*('Fixed assets'!$U$2:$U$1000>Costs!$A710)*('Fixed assets'!$P$2:$P$1000=Costs!$A710)*('Fixed assets'!$R$2:$R$1000))-SUMPRODUCT(('Fixed assets'!$Q$2:$Q$1000=Costs!X$705)*('Fixed assets'!$U$2:$U$1000>Costs!$A710)*('Fixed assets'!$P$2:$P$1000=Costs!$A710)*('Fixed assets'!$S$2:$S$1000))","v":0},{"$f":"Y622+SUMPRODUCT(('Fixed assets'!$Q$2:$Q$1000=Costs!Y$705)*('Fixed assets'!$U$2:$U$1000>Costs!$A710)*('Fixed assets'!$P$2:$P$1000=Costs!$A710)*('Fixed assets'!$R$2:$R$1000))-SUMPRODUCT(('Fixed assets'!$Q$2:$Q$1000=Costs!Y$705)*('Fixed assets'!$U$2:$U$1000>Costs!$A710)*('Fixed assets'!$P$2:$P$1000=Costs!$A710)*('Fixed assets'!$S$2:$S$1000))","v":0},{"$f":"Z622+SUMPRODUCT(('Fixed assets'!$Q$2:$Q$1000=Costs!Z$705)*('Fixed assets'!$U$2:$U$1000>Costs!$A710)*('Fixed assets'!$P$2:$P$1000=Costs!$A710)*('Fixed assets'!$R$2:$R$1000))-SUMPRODUCT(('Fixed assets'!$Q$2:$Q$1000=Costs!Z$705)*('Fixed assets'!$U$2:$U$1000>Costs!$A710)*('Fixed assets'!$P$2:$P$1000=Costs!$A710)*('Fixed assets'!$S$2:$S$1000))","v":0},{"$f":"AA622+SUMPRODUCT(('Fixed assets'!$Q$2:$Q$1000=Costs!AA$705)*('Fixed assets'!$U$2:$U$1000>Costs!$A710)*('Fixed assets'!$P$2:$P$1000=Costs!$A710)*('Fixed assets'!$R$2:$R$1000))-SUMPRODUCT(('Fixed assets'!$Q$2:$Q$1000=Costs!AA$705)*('Fixed assets'!$U$2:$U$1000>Costs!$A710)*('Fixed assets'!$P$2:$P$1000=Costs!$A710)*('Fixed assets'!$S$2:$S$1000))","v":0},{"$f":"AB622+SUMPRODUCT(('Fixed assets'!$Q$2:$Q$1000=Costs!AB$705)*('Fixed assets'!$U$2:$U$1000>Costs!$A710)*('Fixed assets'!$P$2:$P$1000=Costs!$A710)*('Fixed assets'!$R$2:$R$1000))-SUMPRODUCT(('Fixed assets'!$Q$2:$Q$1000=Costs!AB$705)*('Fixed assets'!$U$2:$U$1000>Costs!$A710)*('Fixed assets'!$P$2:$P$1000=Costs!$A710)*('Fixed assets'!$S$2:$S$1000))","v":0},{"$f":"AC622+SUMPRODUCT(('Fixed assets'!$Q$2:$Q$1000=Costs!AC$705)*('Fixed assets'!$U$2:$U$1000>Costs!$A710)*('Fixed assets'!$P$2:$P$1000=Costs!$A710)*('Fixed assets'!$R$2:$R$1000))-SUMPRODUCT(('Fixed assets'!$Q$2:$Q$1000=Costs!AC$705)*('Fixed assets'!$U$2:$U$1000>Costs!$A710)*('Fixed assets'!$P$2:$P$1000=Costs!$A710)*('Fixed assets'!$S$2:$S$1000))","v":0},{"$f":"AD622+SUMPRODUCT(('Fixed assets'!$Q$2:$Q$1000=Costs!AD$705)*('Fixed assets'!$U$2:$U$1000>Costs!$A710)*('Fixed assets'!$P$2:$P$1000=Costs!$A710)*('Fixed assets'!$R$2:$R$1000))-SUMPRODUCT(('Fixed assets'!$Q$2:$Q$1000=Costs!AD$705)*('Fixed assets'!$U$2:$U$1000>Costs!$A710)*('Fixed assets'!$P$2:$P$1000=Costs!$A710)*('Fixed assets'!$S$2:$S$1000))","v":0},{"$f":"AE622+SUMPRODUCT(('Fixed assets'!$Q$2:$Q$1000=Costs!AE$705)*('Fixed assets'!$U$2:$U$1000>Costs!$A710)*('Fixed assets'!$P$2:$P$1000=Costs!$A710)*('Fixed assets'!$R$2:$R$1000))-SUMPRODUCT(('Fixed assets'!$Q$2:$Q$1000=Costs!AE$705)*('Fixed assets'!$U$2:$U$1000>Costs!$A710)*('Fixed assets'!$P$2:$P$1000=Costs!$A710)*('Fixed assets'!$S$2:$S$1000))","v":0},{"$f":"AF622+SUMPRODUCT(('Fixed assets'!$Q$2:$Q$1000=Costs!AF$705)*('Fixed assets'!$U$2:$U$1000>Costs!$A710)*('Fixed assets'!$P$2:$P$1000=Costs!$A710)*('Fixed assets'!$R$2:$R$1000))-SUMPRODUCT(('Fixed assets'!$Q$2:$Q$1000=Costs!AF$705)*('Fixed assets'!$U$2:$U$1000>Costs!$A710)*('Fixed assets'!$P$2:$P$1000=Costs!$A710)*('Fixed assets'!$S$2:$S$1000))","v":0},{"$f":"AG622+SUMPRODUCT(('Fixed assets'!$Q$2:$Q$1000=Costs!AG$705)*('Fixed assets'!$U$2:$U$1000>Costs!$A710)*('Fixed assets'!$P$2:$P$1000=Costs!$A710)*('Fixed assets'!$R$2:$R$1000))-SUMPRODUCT(('Fixed assets'!$Q$2:$Q$1000=Costs!AG$705)*('Fixed assets'!$U$2:$U$1000>Costs!$A710)*('Fixed assets'!$P$2:$P$1000=Costs!$A710)*('Fixed assets'!$S$2:$S$1000))","v":0},{"$f":"AH622+SUMPRODUCT(('Fixed assets'!$Q$2:$Q$1000=Costs!AH$705)*('Fixed assets'!$U$2:$U$1000>Costs!$A710)*('Fixed assets'!$P$2:$P$1000=Costs!$A710)*('Fixed assets'!$R$2:$R$1000))-SUMPRODUCT(('Fixed assets'!$Q$2:$Q$1000=Costs!AH$705)*('Fixed assets'!$U$2:$U$1000>Costs!$A710)*('Fixed assets'!$P$2:$P$1000=Costs!$A710)*('Fixed assets'!$S$2:$S$1000))","v":0},{"$f":"AI622+SUMPRODUCT(('Fixed assets'!$Q$2:$Q$1000=Costs!AI$705)*('Fixed assets'!$U$2:$U$1000>Costs!$A710)*('Fixed assets'!$P$2:$P$1000=Costs!$A710)*('Fixed assets'!$R$2:$R$1000))-SUMPRODUCT(('Fixed assets'!$Q$2:$Q$1000=Costs!AI$705)*('Fixed assets'!$U$2:$U$1000>Costs!$A710)*('Fixed assets'!$P$2:$P$1000=Costs!$A710)*('Fixed assets'!$S$2:$S$1000))","v":0},{"$f":"AJ622+SUMPRODUCT(('Fixed assets'!$Q$2:$Q$1000=Costs!AJ$705)*('Fixed assets'!$U$2:$U$1000>Costs!$A710)*('Fixed assets'!$P$2:$P$1000=Costs!$A710)*('Fixed assets'!$R$2:$R$1000))-SUMPRODUCT(('Fixed assets'!$Q$2:$Q$1000=Costs!AJ$705)*('Fixed assets'!$U$2:$U$1000>Costs!$A710)*('Fixed assets'!$P$2:$P$1000=Costs!$A710)*('Fixed assets'!$S$2:$S$1000))","v":0},{"$f":"AK622+SUMPRODUCT(('Fixed assets'!$Q$2:$Q$1000=Costs!AK$705)*('Fixed assets'!$U$2:$U$1000>Costs!$A710)*('Fixed assets'!$P$2:$P$1000=Costs!$A710)*('Fixed assets'!$R$2:$R$1000))-SUMPRODUCT(('Fixed assets'!$Q$2:$Q$1000=Costs!AK$705)*('Fixed assets'!$U$2:$U$1000>Costs!$A710)*('Fixed assets'!$P$2:$P$1000=Costs!$A710)*('Fixed assets'!$S$2:$S$1000))","v":0},{"$f":"AL622+SUMPRODUCT(('Fixed assets'!$Q$2:$Q$1000=Costs!AL$705)*('Fixed assets'!$U$2:$U$1000>Costs!$A710)*('Fixed assets'!$P$2:$P$1000=Costs!$A710)*('Fixed assets'!$R$2:$R$1000))-SUMPRODUCT(('Fixed assets'!$Q$2:$Q$1000=Costs!AL$705)*('Fixed assets'!$U$2:$U$1000>Costs!$A710)*('Fixed assets'!$P$2:$P$1000=Costs!$A710)*('Fixed assets'!$S$2:$S$1000))","v":0},{"$f":"AM622+SUMPRODUCT(('Fixed assets'!$Q$2:$Q$1000=Costs!AM$705)*('Fixed assets'!$U$2:$U$1000>Costs!$A710)*('Fixed assets'!$P$2:$P$1000=Costs!$A710)*('Fixed assets'!$R$2:$R$1000))-SUMPRODUCT(('Fixed assets'!$Q$2:$Q$1000=Costs!AM$705)*('Fixed assets'!$U$2:$U$1000>Costs!$A710)*('Fixed assets'!$P$2:$P$1000=Costs!$A710)*('Fixed assets'!$S$2:$S$1000))","v":0},{"$f":"AN622+SUMPRODUCT(('Fixed assets'!$Q$2:$Q$1000=Costs!AN$705)*('Fixed assets'!$U$2:$U$1000>Costs!$A710)*('Fixed assets'!$P$2:$P$1000=Costs!$A710)*('Fixed assets'!$R$2:$R$1000))-SUMPRODUCT(('Fixed assets'!$Q$2:$Q$1000=Costs!AN$705)*('Fixed assets'!$U$2:$U$1000>Costs!$A710)*('Fixed assets'!$P$2:$P$1000=Costs!$A710)*('Fixed assets'!$S$2:$S$1000))","v":0},{"$f":"AO622+SUMPRODUCT(('Fixed assets'!$Q$2:$Q$1000=Costs!AO$705)*('Fixed assets'!$U$2:$U$1000>Costs!$A710)*('Fixed assets'!$P$2:$P$1000=Costs!$A710)*('Fixed assets'!$R$2:$R$1000))-SUMPRODUCT(('Fixed assets'!$Q$2:$Q$1000=Costs!AO$705)*('Fixed assets'!$U$2:$U$1000>Costs!$A710)*('Fixed assets'!$P$2:$P$1000=Costs!$A710)*('Fixed assets'!$S$2:$S$1000))","v":0},{"$f":"AP622+SUMPRODUCT(('Fixed assets'!$Q$2:$Q$1000=Costs!AP$705)*('Fixed assets'!$U$2:$U$1000>Costs!$A710)*('Fixed assets'!$P$2:$P$1000=Costs!$A710)*('Fixed assets'!$R$2:$R$1000))-SUMPRODUCT(('Fixed assets'!$Q$2:$Q$1000=Costs!AP$705)*('Fixed assets'!$U$2:$U$1000>Costs!$A710)*('Fixed assets'!$P$2:$P$1000=Costs!$A710)*('Fixed assets'!$S$2:$S$1000))","v":0},{"$f":"AQ622+SUMPRODUCT(('Fixed assets'!$Q$2:$Q$1000=Costs!AQ$705)*('Fixed assets'!$U$2:$U$1000>Costs!$A710)*('Fixed assets'!$P$2:$P$1000=Costs!$A710)*('Fixed assets'!$R$2:$R$1000))-SUMPRODUCT(('Fixed assets'!$Q$2:$Q$1000=Costs!AQ$705)*('Fixed assets'!$U$2:$U$1000>Costs!$A710)*('Fixed assets'!$P$2:$P$1000=Costs!$A710)*('Fixed assets'!$S$2:$S$1000))","v":0}]
[2020,1500000,{"$f":"C623+SUMPRODUCT(('Fixed assets'!$Q$2:$Q$1000=Costs!C$705)*('Fixed assets'!$U$2:$U$1000>Costs!$A711)*('Fixed assets'!$P$2:$P$1000=Costs!$A711)*('Fixed assets'!$R$2:$R$1000))-SUMPRODUCT(('Fixed assets'!$Q$2:$Q$1000=Costs!C$705)*('Fixed assets'!$U$2:$U$1000>Costs!$A711)*('Fixed assets'!$P$2:$P$1000=Costs!$A711)*('Fixed assets'!$S$2:$S$1000))","v":0},{"$f":"D623+SUMPRODUCT(('Fixed assets'!$Q$2:$Q$1000=Costs!D$705)*('Fixed assets'!$U$2:$U$1000>Costs!$A711)*('Fixed assets'!$P$2:$P$1000=Costs!$A711)*('Fixed assets'!$R$2:$R$1000))-SUMPRODUCT(('Fixed assets'!$Q$2:$Q$1000=Costs!D$705)*('Fixed assets'!$U$2:$U$1000>Costs!$A711)*('Fixed assets'!$P$2:$P$1000=Costs!$A711)*('Fixed assets'!$S$2:$S$1000))","v":0},{"$f":"E623+SUMPRODUCT(('Fixed assets'!$Q$2:$Q$1000=Costs!E$705)*('Fixed assets'!$U$2:$U$1000>Costs!$A711)*('Fixed assets'!$P$2:$P$1000=Costs!$A711)*('Fixed assets'!$R$2:$R$1000))-SUMPRODUCT(('Fixed assets'!$Q$2:$Q$1000=Costs!E$705)*('Fixed assets'!$U$2:$U$1000>Costs!$A711)*('Fixed assets'!$P$2:$P$1000=Costs!$A711)*('Fixed assets'!$S$2:$S$1000))","v":0},{"$f":"F623+SUMPRODUCT(('Fixed assets'!$Q$2:$Q$1000=Costs!F$705)*('Fixed assets'!$U$2:$U$1000>Costs!$A711)*('Fixed assets'!$P$2:$P$1000=Costs!$A711)*('Fixed assets'!$R$2:$R$1000))-SUMPRODUCT(('Fixed assets'!$Q$2:$Q$1000=Costs!F$705)*('Fixed assets'!$U$2:$U$1000>Costs!$A711)*('Fixed assets'!$P$2:$P$1000=Costs!$A711)*('Fixed assets'!$S$2:$S$1000))","v":0},{"$f":"G623+SUMPRODUCT(('Fixed assets'!$Q$2:$Q$1000=Costs!G$705)*('Fixed assets'!$U$2:$U$1000>Costs!$A711)*('Fixed assets'!$P$2:$P$1000=Costs!$A711)*('Fixed assets'!$R$2:$R$1000))-SUMPRODUCT(('Fixed assets'!$Q$2:$Q$1000=Costs!G$705)*('Fixed assets'!$U$2:$U$1000>Costs!$A711)*('Fixed assets'!$P$2:$P$1000=Costs!$A711)*('Fixed assets'!$S$2:$S$1000))","v":0},{"$f":"H623+SUMPRODUCT(('Fixed assets'!$Q$2:$Q$1000=Costs!H$705)*('Fixed assets'!$U$2:$U$1000>Costs!$A711)*('Fixed assets'!$P$2:$P$1000=Costs!$A711)*('Fixed assets'!$R$2:$R$1000))-SUMPRODUCT(('Fixed assets'!$Q$2:$Q$1000=Costs!H$705)*('Fixed assets'!$U$2:$U$1000>Costs!$A711)*('Fixed assets'!$P$2:$P$1000=Costs!$A711)*('Fixed assets'!$S$2:$S$1000))","v":0},{"$f":"I623+SUMPRODUCT(('Fixed assets'!$Q$2:$Q$1000=Costs!I$705)*('Fixed assets'!$U$2:$U$1000>Costs!$A711)*('Fixed assets'!$P$2:$P$1000=Costs!$A711)*('Fixed assets'!$R$2:$R$1000))-SUMPRODUCT(('Fixed assets'!$Q$2:$Q$1000=Costs!I$705)*('Fixed assets'!$U$2:$U$1000>Costs!$A711)*('Fixed assets'!$P$2:$P$1000=Costs!$A711)*('Fixed assets'!$S$2:$S$1000))","v":0},{"$f":"J623+SUMPRODUCT(('Fixed assets'!$Q$2:$Q$1000=Costs!J$705)*('Fixed assets'!$U$2:$U$1000>Costs!$A711)*('Fixed assets'!$P$2:$P$1000=Costs!$A711)*('Fixed assets'!$R$2:$R$1000))-SUMPRODUCT(('Fixed assets'!$Q$2:$Q$1000=Costs!J$705)*('Fixed assets'!$U$2:$U$1000>Costs!$A711)*('Fixed assets'!$P$2:$P$1000=Costs!$A711)*('Fixed assets'!$S$2:$S$1000))","v":0},{"$f":"K623+SUMPRODUCT(('Fixed assets'!$Q$2:$Q$1000=Costs!K$705)*('Fixed assets'!$U$2:$U$1000>Costs!$A711)*('Fixed assets'!$P$2:$P$1000=Costs!$A711)*('Fixed assets'!$R$2:$R$1000))-SUMPRODUCT(('Fixed assets'!$Q$2:$Q$1000=Costs!K$705)*('Fixed assets'!$U$2:$U$1000>Costs!$A711)*('Fixed assets'!$P$2:$P$1000=Costs!$A711)*('Fixed assets'!$S$2:$S$1000))","v":0},{"$f":"L623+SUMPRODUCT(('Fixed assets'!$Q$2:$Q$1000=Costs!L$705)*('Fixed assets'!$U$2:$U$1000>Costs!$A711)*('Fixed assets'!$P$2:$P$1000=Costs!$A711)*('Fixed assets'!$R$2:$R$1000))-SUMPRODUCT(('Fixed assets'!$Q$2:$Q$1000=Costs!L$705)*('Fixed assets'!$U$2:$U$1000>Costs!$A711)*('Fixed assets'!$P$2:$P$1000=Costs!$A711)*('Fixed assets'!$S$2:$S$1000))","v":0},{"$f":"M623+SUMPRODUCT(('Fixed assets'!$Q$2:$Q$1000=Costs!M$705)*('Fixed assets'!$U$2:$U$1000>Costs!$A711)*('Fixed assets'!$P$2:$P$1000=Costs!$A711)*('Fixed assets'!$R$2:$R$1000))-SUMPRODUCT(('Fixed assets'!$Q$2:$Q$1000=Costs!M$705)*('Fixed assets'!$U$2:$U$1000>Costs!$A711)*('Fixed assets'!$P$2:$P$1000=Costs!$A711)*('Fixed assets'!$S$2:$S$1000))","v":0},{"$f":"N623+SUMPRODUCT(('Fixed assets'!$Q$2:$Q$1000=Costs!N$705)*('Fixed assets'!$U$2:$U$1000>Costs!$A711)*('Fixed assets'!$P$2:$P$1000=Costs!$A711)*('Fixed assets'!$R$2:$R$1000))-SUMPRODUCT(('Fixed assets'!$Q$2:$Q$1000=Costs!N$705)*('Fixed assets'!$U$2:$U$1000>Costs!$A711)*('Fixed assets'!$P$2:$P$1000=Costs!$A711)*('Fixed assets'!$S$2:$S$1000))","v":0},{"$f":"O623+SUMPRODUCT(('Fixed assets'!$Q$2:$Q$1000=Costs!O$705)*('Fixed assets'!$U$2:$U$1000>Costs!$A711)*('Fixed assets'!$P$2:$P$1000=Costs!$A711)*('Fixed assets'!$R$2:$R$1000))-SUMPRODUCT(('Fixed assets'!$Q$2:$Q$1000=Costs!O$705)*('Fixed assets'!$U$2:$U$1000>Costs!$A711)*('Fixed assets'!$P$2:$P$1000=Costs!$A711)*('Fixed assets'!$S$2:$S$1000))","v":0},{"$f":"P623+SUMPRODUCT(('Fixed assets'!$Q$2:$Q$1000=Costs!P$705)*('Fixed assets'!$U$2:$U$1000>Costs!$A711)*('Fixed assets'!$P$2:$P$1000=Costs!$A711)*('Fixed assets'!$R$2:$R$1000))-SUMPRODUCT(('Fixed assets'!$Q$2:$Q$1000=Costs!P$705)*('Fixed assets'!$U$2:$U$1000>Costs!$A711)*('Fixed assets'!$P$2:$P$1000=Costs!$A711)*('Fixed assets'!$S$2:$S$1000))","v":1500000},{"$f":"Q623+SUMPRODUCT(('Fixed assets'!$Q$2:$Q$1000=Costs!Q$705)*('Fixed assets'!$U$2:$U$1000>Costs!$A711)*('Fixed assets'!$P$2:$P$1000=Costs!$A711)*('Fixed assets'!$R$2:$R$1000))-SUMPRODUCT(('Fixed assets'!$Q$2:$Q$1000=Costs!Q$705)*('Fixed assets'!$U$2:$U$1000>Costs!$A711)*('Fixed assets'!$P$2:$P$1000=Costs!$A711)*('Fixed assets'!$S$2:$S$1000))","v":0},{"$f":"R623+SUMPRODUCT(('Fixed assets'!$Q$2:$Q$1000=Costs!R$705)*('Fixed assets'!$U$2:$U$1000>Costs!$A711)*('Fixed assets'!$P$2:$P$1000=Costs!$A711)*('Fixed assets'!$R$2:$R$1000))-SUMPRODUCT(('Fixed assets'!$Q$2:$Q$1000=Costs!R$705)*('Fixed assets'!$U$2:$U$1000>Costs!$A711)*('Fixed assets'!$P$2:$P$1000=Costs!$A711)*('Fixed assets'!$S$2:$S$1000))","v":0},{"$f":"S623+SUMPRODUCT(('Fixed assets'!$Q$2:$Q$1000=Costs!S$705)*('Fixed assets'!$U$2:$U$1000>Costs!$A711)*('Fixed assets'!$P$2:$P$1000=Costs!$A711)*('Fixed assets'!$R$2:$R$1000))-SUMPRODUCT(('Fixed assets'!$Q$2:$Q$1000=Costs!S$705)*('Fixed assets'!$U$2:$U$1000>Costs!$A711)*('Fixed assets'!$P$2:$P$1000=Costs!$A711)*('Fixed assets'!$S$2:$S$1000))","v":0},{"$f":"T623+SUMPRODUCT(('Fixed assets'!$Q$2:$Q$1000=Costs!T$705)*('Fixed assets'!$U$2:$U$1000>Costs!$A711)*('Fixed assets'!$P$2:$P$1000=Costs!$A711)*('Fixed assets'!$R$2:$R$1000))-SUMPRODUCT(('Fixed assets'!$Q$2:$Q$1000=Costs!T$705)*('Fixed assets'!$U$2:$U$1000>Costs!$A711)*('Fixed assets'!$P$2:$P$1000=Costs!$A711)*('Fixed assets'!$S$2:$S$1000))","v":0},{"$f":"U623+SUMPRODUCT(('Fixed assets'!$Q$2:$Q$1000=Costs!U$705)*('Fixed assets'!$U$2:$U$1000>Costs!$A711)*('Fixed assets'!$P$2:$P$1000=Costs!$A711)*('Fixed assets'!$R$2:$R$1000))-SUMPRODUCT(('Fixed assets'!$Q$2:$Q$1000=Costs!U$705)*('Fixed assets'!$U$2:$U$1000>Costs!$A711)*('Fixed assets'!$P$2:$P$1000=Costs!$A711)*('Fixed assets'!$S$2:$S$1000))","v":0},{"$f":"V623+SUMPRODUCT(('Fixed assets'!$Q$2:$Q$1000=Costs!V$705)*('Fixed assets'!$U$2:$U$1000>Costs!$A711)*('Fixed assets'!$P$2:$P$1000=Costs!$A711)*('Fixed assets'!$R$2:$R$1000))-SUMPRODUCT(('Fixed assets'!$Q$2:$Q$1000=Costs!V$705)*('Fixed assets'!$U$2:$U$1000>Costs!$A711)*('Fixed assets'!$P$2:$P$1000=Costs!$A711)*('Fixed assets'!$S$2:$S$1000))","v":0},{"$f":"W623+SUMPRODUCT(('Fixed assets'!$Q$2:$Q$1000=Costs!W$705)*('Fixed assets'!$U$2:$U$1000>Costs!$A711)*('Fixed assets'!$P$2:$P$1000=Costs!$A711)*('Fixed assets'!$R$2:$R$1000))-SUMPRODUCT(('Fixed assets'!$Q$2:$Q$1000=Costs!W$705)*('Fixed assets'!$U$2:$U$1000>Costs!$A711)*('Fixed assets'!$P$2:$P$1000=Costs!$A711)*('Fixed assets'!$S$2:$S$1000))","v":0},{"$f":"X623+SUMPRODUCT(('Fixed assets'!$Q$2:$Q$1000=Costs!X$705)*('Fixed assets'!$U$2:$U$1000>Costs!$A711)*('Fixed assets'!$P$2:$P$1000=Costs!$A711)*('Fixed assets'!$R$2:$R$1000))-SUMPRODUCT(('Fixed assets'!$Q$2:$Q$1000=Costs!X$705)*('Fixed assets'!$U$2:$U$1000>Costs!$A711)*('Fixed assets'!$P$2:$P$1000=Costs!$A711)*('Fixed assets'!$S$2:$S$1000))","v":0},{"$f":"Y623+SUMPRODUCT(('Fixed assets'!$Q$2:$Q$1000=Costs!Y$705)*('Fixed assets'!$U$2:$U$1000>Costs!$A711)*('Fixed assets'!$P$2:$P$1000=Costs!$A711)*('Fixed assets'!$R$2:$R$1000))-SUMPRODUCT(('Fixed assets'!$Q$2:$Q$1000=Costs!Y$705)*('Fixed assets'!$U$2:$U$1000>Costs!$A711)*('Fixed assets'!$P$2:$P$1000=Costs!$A711)*('Fixed assets'!$S$2:$S$1000))","v":0},{"$f":"Z623+SUMPRODUCT(('Fixed assets'!$Q$2:$Q$1000=Costs!Z$705)*('Fixed assets'!$U$2:$U$1000>Costs!$A711)*('Fixed assets'!$P$2:$P$1000=Costs!$A711)*('Fixed assets'!$R$2:$R$1000))-SUMPRODUCT(('Fixed assets'!$Q$2:$Q$1000=Costs!Z$705)*('Fixed assets'!$U$2:$U$1000>Costs!$A711)*('Fixed assets'!$P$2:$P$1000=Costs!$A711)*('Fixed assets'!$S$2:$S$1000))","v":0},{"$f":"AA623+SUMPRODUCT(('Fixed assets'!$Q$2:$Q$1000=Costs!AA$705)*('Fixed assets'!$U$2:$U$1000>Costs!$A711)*('Fixed assets'!$P$2:$P$1000=Costs!$A711)*('Fixed assets'!$R$2:$R$1000))-SUMPRODUCT(('Fixed assets'!$Q$2:$Q$1000=Costs!AA$705)*('Fixed assets'!$U$2:$U$1000>Costs!$A711)*('Fixed assets'!$P$2:$P$1000=Costs!$A711)*('Fixed assets'!$S$2:$S$1000))","v":0},{"$f":"AB623+SUMPRODUCT(('Fixed assets'!$Q$2:$Q$1000=Costs!AB$705)*('Fixed assets'!$U$2:$U$1000>Costs!$A711)*('Fixed assets'!$P$2:$P$1000=Costs!$A711)*('Fixed assets'!$R$2:$R$1000))-SUMPRODUCT(('Fixed assets'!$Q$2:$Q$1000=Costs!AB$705)*('Fixed assets'!$U$2:$U$1000>Costs!$A711)*('Fixed assets'!$P$2:$P$1000=Costs!$A711)*('Fixed assets'!$S$2:$S$1000))","v":0},{"$f":"AC623+SUMPRODUCT(('Fixed assets'!$Q$2:$Q$1000=Costs!AC$705)*('Fixed assets'!$U$2:$U$1000>Costs!$A711)*('Fixed assets'!$P$2:$P$1000=Costs!$A711)*('Fixed assets'!$R$2:$R$1000))-SUMPRODUCT(('Fixed assets'!$Q$2:$Q$1000=Costs!AC$705)*('Fixed assets'!$U$2:$U$1000>Costs!$A711)*('Fixed assets'!$P$2:$P$1000=Costs!$A711)*('Fixed assets'!$S$2:$S$1000))","v":0},{"$f":"AD623+SUMPRODUCT(('Fixed assets'!$Q$2:$Q$1000=Costs!AD$705)*('Fixed assets'!$U$2:$U$1000>Costs!$A711)*('Fixed assets'!$P$2:$P$1000=Costs!$A711)*('Fixed assets'!$R$2:$R$1000))-SUMPRODUCT(('Fixed assets'!$Q$2:$Q$1000=Costs!AD$705)*('Fixed assets'!$U$2:$U$1000>Costs!$A711)*('Fixed assets'!$P$2:$P$1000=Costs!$A711)*('Fixed assets'!$S$2:$S$1000))","v":0},{"$f":"AE623+SUMPRODUCT(('Fixed assets'!$Q$2:$Q$1000=Costs!AE$705)*('Fixed assets'!$U$2:$U$1000>Costs!$A711)*('Fixed assets'!$P$2:$P$1000=Costs!$A711)*('Fixed assets'!$R$2:$R$1000))-SUMPRODUCT(('Fixed assets'!$Q$2:$Q$1000=Costs!AE$705)*('Fixed assets'!$U$2:$U$1000>Costs!$A711)*('Fixed assets'!$P$2:$P$1000=Costs!$A711)*('Fixed assets'!$S$2:$S$1000))","v":0},{"$f":"AF623+SUMPRODUCT(('Fixed assets'!$Q$2:$Q$1000=Costs!AF$705)*('Fixed assets'!$U$2:$U$1000>Costs!$A711)*('Fixed assets'!$P$2:$P$1000=Costs!$A711)*('Fixed assets'!$R$2:$R$1000))-SUMPRODUCT(('Fixed assets'!$Q$2:$Q$1000=Costs!AF$705)*('Fixed assets'!$U$2:$U$1000>Costs!$A711)*('Fixed assets'!$P$2:$P$1000=Costs!$A711)*('Fixed assets'!$S$2:$S$1000))","v":0},{"$f":"AG623+SUMPRODUCT(('Fixed assets'!$Q$2:$Q$1000=Costs!AG$705)*('Fixed assets'!$U$2:$U$1000>Costs!$A711)*('Fixed assets'!$P$2:$P$1000=Costs!$A711)*('Fixed assets'!$R$2:$R$1000))-SUMPRODUCT(('Fixed assets'!$Q$2:$Q$1000=Costs!AG$705)*('Fixed assets'!$U$2:$U$1000>Costs!$A711)*('Fixed assets'!$P$2:$P$1000=Costs!$A711)*('Fixed assets'!$S$2:$S$1000))","v":0},{"$f":"AH623+SUMPRODUCT(('Fixed assets'!$Q$2:$Q$1000=Costs!AH$705)*('Fixed assets'!$U$2:$U$1000>Costs!$A711)*('Fixed assets'!$P$2:$P$1000=Costs!$A711)*('Fixed assets'!$R$2:$R$1000))-SUMPRODUCT(('Fixed assets'!$Q$2:$Q$1000=Costs!AH$705)*('Fixed assets'!$U$2:$U$1000>Costs!$A711)*('Fixed assets'!$P$2:$P$1000=Costs!$A711)*('Fixed assets'!$S$2:$S$1000))","v":0},{"$f":"AI623+SUMPRODUCT(('Fixed assets'!$Q$2:$Q$1000=Costs!AI$705)*('Fixed assets'!$U$2:$U$1000>Costs!$A711)*('Fixed assets'!$P$2:$P$1000=Costs!$A711)*('Fixed assets'!$R$2:$R$1000))-SUMPRODUCT(('Fixed assets'!$Q$2:$Q$1000=Costs!AI$705)*('Fixed assets'!$U$2:$U$1000>Costs!$A711)*('Fixed assets'!$P$2:$P$1000=Costs!$A711)*('Fixed assets'!$S$2:$S$1000))","v":0},{"$f":"AJ623+SUMPRODUCT(('Fixed assets'!$Q$2:$Q$1000=Costs!AJ$705)*('Fixed assets'!$U$2:$U$1000>Costs!$A711)*('Fixed assets'!$P$2:$P$1000=Costs!$A711)*('Fixed assets'!$R$2:$R$1000))-SUMPRODUCT(('Fixed assets'!$Q$2:$Q$1000=Costs!AJ$705)*('Fixed assets'!$U$2:$U$1000>Costs!$A711)*('Fixed assets'!$P$2:$P$1000=Costs!$A711)*('Fixed assets'!$S$2:$S$1000))","v":0},{"$f":"AK623+SUMPRODUCT(('Fixed assets'!$Q$2:$Q$1000=Costs!AK$705)*('Fixed assets'!$U$2:$U$1000>Costs!$A711)*('Fixed assets'!$P$2:$P$1000=Costs!$A711)*('Fixed assets'!$R$2:$R$1000))-SUMPRODUCT(('Fixed assets'!$Q$2:$Q$1000=Costs!AK$705)*('Fixed assets'!$U$2:$U$1000>Costs!$A711)*('Fixed assets'!$P$2:$P$1000=Costs!$A711)*('Fixed assets'!$S$2:$S$1000))","v":0},{"$f":"AL623+SUMPRODUCT(('Fixed assets'!$Q$2:$Q$1000=Costs!AL$705)*('Fixed assets'!$U$2:$U$1000>Costs!$A711)*('Fixed assets'!$P$2:$P$1000=Costs!$A711)*('Fixed assets'!$R$2:$R$1000))-SUMPRODUCT(('Fixed assets'!$Q$2:$Q$1000=Costs!AL$705)*('Fixed assets'!$U$2:$U$1000>Costs!$A711)*('Fixed assets'!$P$2:$P$1000=Costs!$A711)*('Fixed assets'!$S$2:$S$1000))","v":0},{"$f":"AM623+SUMPRODUCT(('Fixed assets'!$Q$2:$Q$1000=Costs!AM$705)*('Fixed assets'!$U$2:$U$1000>Costs!$A711)*('Fixed assets'!$P$2:$P$1000=Costs!$A711)*('Fixed assets'!$R$2:$R$1000))-SUMPRODUCT(('Fixed assets'!$Q$2:$Q$1000=Costs!AM$705)*('Fixed assets'!$U$2:$U$1000>Costs!$A711)*('Fixed assets'!$P$2:$P$1000=Costs!$A711)*('Fixed assets'!$S$2:$S$1000))","v":0},{"$f":"AN623+SUMPRODUCT(('Fixed assets'!$Q$2:$Q$1000=Costs!AN$705)*('Fixed assets'!$U$2:$U$1000>Costs!$A711)*('Fixed assets'!$P$2:$P$1000=Costs!$A711)*('Fixed assets'!$R$2:$R$1000))-SUMPRODUCT(('Fixed assets'!$Q$2:$Q$1000=Costs!AN$705)*('Fixed assets'!$U$2:$U$1000>Costs!$A711)*('Fixed assets'!$P$2:$P$1000=Costs!$A711)*('Fixed assets'!$S$2:$S$1000))","v":0},{"$f":"AO623+SUMPRODUCT(('Fixed assets'!$Q$2:$Q$1000=Costs!AO$705)*('Fixed assets'!$U$2:$U$1000>Costs!$A711)*('Fixed assets'!$P$2:$P$1000=Costs!$A711)*('Fixed assets'!$R$2:$R$1000))-SUMPRODUCT(('Fixed assets'!$Q$2:$Q$1000=Costs!AO$705)*('Fixed assets'!$U$2:$U$1000>Costs!$A711)*('Fixed assets'!$P$2:$P$1000=Costs!$A711)*('Fixed assets'!$S$2:$S$1000))","v":0},{"$f":"AP623+SUMPRODUCT(('Fixed assets'!$Q$2:$Q$1000=Costs!AP$705)*('Fixed assets'!$U$2:$U$1000>Costs!$A711)*('Fixed assets'!$P$2:$P$1000=Costs!$A711)*('Fixed assets'!$R$2:$R$1000))-SUMPRODUCT(('Fixed assets'!$Q$2:$Q$1000=Costs!AP$705)*('Fixed assets'!$U$2:$U$1000>Costs!$A711)*('Fixed assets'!$P$2:$P$1000=Costs!$A711)*('Fixed assets'!$S$2:$S$1000))","v":0},{"$f":"AQ623+SUMPRODUCT(('Fixed assets'!$Q$2:$Q$1000=Costs!AQ$705)*('Fixed assets'!$U$2:$U$1000>Costs!$A711)*('Fixed assets'!$P$2:$P$1000=Costs!$A711)*('Fixed assets'!$R$2:$R$1000))-SUMPRODUCT(('Fixed assets'!$Q$2:$Q$1000=Costs!AQ$705)*('Fixed assets'!$U$2:$U$1000>Costs!$A711)*('Fixed assets'!$P$2:$P$1000=Costs!$A711)*('Fixed assets'!$S$2:$S$1000))","v":0}]
[2021,9000000,{"$f":"C624+SUMPRODUCT(('Fixed assets'!$Q$2:$Q$1000=Costs!C$705)*('Fixed assets'!$U$2:$U$1000>Costs!$A712)*('Fixed assets'!$P$2:$P$1000=Costs!$A712)*('Fixed assets'!$R$2:$R$1000))-SUMPRODUCT(('Fixed assets'!$Q$2:$Q$1000=Costs!C$705)*('Fixed assets'!$U$2:$U$1000>Costs!$A712)*('Fixed assets'!$P$2:$P$1000=Costs!$A712)*('Fixed assets'!$S$2:$S$1000))","v":0},{"$f":"D624+SUMPRODUCT(('Fixed assets'!$Q$2:$Q$1000=Costs!D$705)*('Fixed assets'!$U$2:$U$1000>Costs!$A712)*('Fixed assets'!$P$2:$P$1000=Costs!$A712)*('Fixed assets'!$R$2:$R$1000))-SUMPRODUCT(('Fixed assets'!$Q$2:$Q$1000=Costs!D$705)*('Fixed assets'!$U$2:$U$1000>Costs!$A712)*('Fixed assets'!$P$2:$P$1000=Costs!$A712)*('Fixed assets'!$S$2:$S$1000))","v":0},{"$f":"E624+SUMPRODUCT(('Fixed assets'!$Q$2:$Q$1000=Costs!E$705)*('Fixed assets'!$U$2:$U$1000>Costs!$A712)*('Fixed assets'!$P$2:$P$1000=Costs!$A712)*('Fixed assets'!$R$2:$R$1000))-SUMPRODUCT(('Fixed assets'!$Q$2:$Q$1000=Costs!E$705)*('Fixed assets'!$U$2:$U$1000>Costs!$A712)*('Fixed assets'!$P$2:$P$1000=Costs!$A712)*('Fixed assets'!$S$2:$S$1000))","v":0},{"$f":"F624+SUMPRODUCT(('Fixed assets'!$Q$2:$Q$1000=Costs!F$705)*('Fixed assets'!$U$2:$U$1000>Costs!$A712)*('Fixed assets'!$P$2:$P$1000=Costs!$A712)*('Fixed assets'!$R$2:$R$1000))-SUMPRODUCT(('Fixed assets'!$Q$2:$Q$1000=Costs!F$705)*('Fixed assets'!$U$2:$U$1000>Costs!$A712)*('Fixed assets'!$P$2:$P$1000=Costs!$A712)*('Fixed assets'!$S$2:$S$1000))","v":0},{"$f":"G624+SUMPRODUCT(('Fixed assets'!$Q$2:$Q$1000=Costs!G$705)*('Fixed assets'!$U$2:$U$1000>Costs!$A712)*('Fixed assets'!$P$2:$P$1000=Costs!$A712)*('Fixed assets'!$R$2:$R$1000))-SUMPRODUCT(('Fixed assets'!$Q$2:$Q$1000=Costs!G$705)*('Fixed assets'!$U$2:$U$1000>Costs!$A712)*('Fixed assets'!$P$2:$P$1000=Costs!$A712)*('Fixed assets'!$S$2:$S$1000))","v":0},{"$f":"H624+SUMPRODUCT(('Fixed assets'!$Q$2:$Q$1000=Costs!H$705)*('Fixed assets'!$U$2:$U$1000>Costs!$A712)*('Fixed assets'!$P$2:$P$1000=Costs!$A712)*('Fixed assets'!$R$2:$R$1000))-SUMPRODUCT(('Fixed assets'!$Q$2:$Q$1000=Costs!H$705)*('Fixed assets'!$U$2:$U$1000>Costs!$A712)*('Fixed assets'!$P$2:$P$1000=Costs!$A712)*('Fixed assets'!$S$2:$S$1000))","v":0},{"$f":"I624+SUMPRODUCT(('Fixed assets'!$Q$2:$Q$1000=Costs!I$705)*('Fixed assets'!$U$2:$U$1000>Costs!$A712)*('Fixed assets'!$P$2:$P$1000=Costs!$A712)*('Fixed assets'!$R$2:$R$1000))-SUMPRODUCT(('Fixed assets'!$Q$2:$Q$1000=Costs!I$705)*('Fixed assets'!$U$2:$U$1000>Costs!$A712)*('Fixed assets'!$P$2:$P$1000=Costs!$A712)*('Fixed assets'!$S$2:$S$1000))","v":0},{"$f":"J624+SUMPRODUCT(('Fixed assets'!$Q$2:$Q$1000=Costs!J$705)*('Fixed assets'!$U$2:$U$1000>Costs!$A712)*('Fixed assets'!$P$2:$P$1000=Costs!$A712)*('Fixed assets'!$R$2:$R$1000))-SUMPRODUCT(('Fixed assets'!$Q$2:$Q$1000=Costs!J$705)*('Fixed assets'!$U$2:$U$1000>Costs!$A712)*('Fixed assets'!$P$2:$P$1000=Costs!$A712)*('Fixed assets'!$S$2:$S$1000))","v":0},{"$f":"K624+SUMPRODUCT(('Fixed assets'!$Q$2:$Q$1000=Costs!K$705)*('Fixed assets'!$U$2:$U$1000>Costs!$A712)*('Fixed assets'!$P$2:$P$1000=Costs!$A712)*('Fixed assets'!$R$2:$R$1000))-SUMPRODUCT(('Fixed assets'!$Q$2:$Q$1000=Costs!K$705)*('Fixed assets'!$U$2:$U$1000>Costs!$A712)*('Fixed assets'!$P$2:$P$1000=Costs!$A712)*('Fixed assets'!$S$2:$S$1000))","v":0},{"$f":"L624+SUMPRODUCT(('Fixed assets'!$Q$2:$Q$1000=Costs!L$705)*('Fixed assets'!$U$2:$U$1000>Costs!$A712)*('Fixed assets'!$P$2:$P$1000=Costs!$A712)*('Fixed assets'!$R$2:$R$1000))-SUMPRODUCT(('Fixed assets'!$Q$2:$Q$1000=Costs!L$705)*('Fixed assets'!$U$2:$U$1000>Costs!$A712)*('Fixed assets'!$P$2:$P$1000=Costs!$A712)*('Fixed assets'!$S$2:$S$1000))","v":0},{"$f":"M624+SUMPRODUCT(('Fixed assets'!$Q$2:$Q$1000=Costs!M$705)*('Fixed assets'!$U$2:$U$1000>Costs!$A712)*('Fixed assets'!$P$2:$P$1000=Costs!$A712)*('Fixed assets'!$R$2:$R$1000))-SUMPRODUCT(('Fixed assets'!$Q$2:$Q$1000=Costs!M$705)*('Fixed assets'!$U$2:$U$1000>Costs!$A712)*('Fixed assets'!$P$2:$P$1000=Costs!$A712)*('Fixed assets'!$S$2:$S$1000))","v":0},{"$f":"N624+SUMPRODUCT(('Fixed assets'!$Q$2:$Q$1000=Costs!N$705)*('Fixed assets'!$U$2:$U$1000>Costs!$A712)*('Fixed assets'!$P$2:$P$1000=Costs!$A712)*('Fixed assets'!$R$2:$R$1000))-SUMPRODUCT(('Fixed assets'!$Q$2:$Q$1000=Costs!N$705)*('Fixed assets'!$U$2:$U$1000>Costs!$A712)*('Fixed assets'!$P$2:$P$1000=Costs!$A712)*('Fixed assets'!$S$2:$S$1000))","v":0},{"$f":"O624+SUMPRODUCT(('Fixed assets'!$Q$2:$Q$1000=Costs!O$705)*('Fixed assets'!$U$2:$U$1000>Costs!$A712)*('Fixed assets'!$P$2:$P$1000=Costs!$A712)*('Fixed assets'!$R$2:$R$1000))-SUMPRODUCT(('Fixed assets'!$Q$2:$Q$1000=Costs!O$705)*('Fixed assets'!$U$2:$U$1000>Costs!$A712)*('Fixed assets'!$P$2:$P$1000=Costs!$A712)*('Fixed assets'!$S$2:$S$1000))","v":0},{"$f":"P624+SUMPRODUCT(('Fixed assets'!$Q$2:$Q$1000=Costs!P$705)*('Fixed assets'!$U$2:$U$1000>Costs!$A712)*('Fixed assets'!$P$2:$P$1000=Costs!$A712)*('Fixed assets'!$R$2:$R$1000))-SUMPRODUCT(('Fixed assets'!$Q$2:$Q$1000=Costs!P$705)*('Fixed assets'!$U$2:$U$1000>Costs!$A712)*('Fixed assets'!$P$2:$P$1000=Costs!$A712)*('Fixed assets'!$S$2:$S$1000))","v":9000000},{"$f":"Q624+SUMPRODUCT(('Fixed assets'!$Q$2:$Q$1000=Costs!Q$705)*('Fixed assets'!$U$2:$U$1000>Costs!$A712)*('Fixed assets'!$P$2:$P$1000=Costs!$A712)*('Fixed assets'!$R$2:$R$1000))-SUMPRODUCT(('Fixed assets'!$Q$2:$Q$1000=Costs!Q$705)*('Fixed assets'!$U$2:$U$1000>Costs!$A712)*('Fixed assets'!$P$2:$P$1000=Costs!$A712)*('Fixed assets'!$S$2:$S$1000))","v":0},{"$f":"R624+SUMPRODUCT(('Fixed assets'!$Q$2:$Q$1000=Costs!R$705)*('Fixed assets'!$U$2:$U$1000>Costs!$A712)*('Fixed assets'!$P$2:$P$1000=Costs!$A712)*('Fixed assets'!$R$2:$R$1000))-SUMPRODUCT(('Fixed assets'!$Q$2:$Q$1000=Costs!R$705)*('Fixed assets'!$U$2:$U$1000>Costs!$A712)*('Fixed assets'!$P$2:$P$1000=Costs!$A712)*('Fixed assets'!$S$2:$S$1000))","v":0},{"$f":"S624+SUMPRODUCT(('Fixed assets'!$Q$2:$Q$1000=Costs!S$705)*('Fixed assets'!$U$2:$U$1000>Costs!$A712)*('Fixed assets'!$P$2:$P$1000=Costs!$A712)*('Fixed assets'!$R$2:$R$1000))-SUMPRODUCT(('Fixed assets'!$Q$2:$Q$1000=Costs!S$705)*('Fixed assets'!$U$2:$U$1000>Costs!$A712)*('Fixed assets'!$P$2:$P$1000=Costs!$A712)*('Fixed assets'!$S$2:$S$1000))","v":0},{"$f":"T624+SUMPRODUCT(('Fixed assets'!$Q$2:$Q$1000=Costs!T$705)*('Fixed assets'!$U$2:$U$1000>Costs!$A712)*('Fixed assets'!$P$2:$P$1000=Costs!$A712)*('Fixed assets'!$R$2:$R$1000))-SUMPRODUCT(('Fixed assets'!$Q$2:$Q$1000=Costs!T$705)*('Fixed assets'!$U$2:$U$1000>Costs!$A712)*('Fixed assets'!$P$2:$P$1000=Costs!$A712)*('Fixed assets'!$S$2:$S$1000))","v":0},{"$f":"U624+SUMPRODUCT(('Fixed assets'!$Q$2:$Q$1000=Costs!U$705)*('Fixed assets'!$U$2:$U$1000>Costs!$A712)*('Fixed assets'!$P$2:$P$1000=Costs!$A712)*('Fixed assets'!$R$2:$R$1000))-SUMPRODUCT(('Fixed assets'!$Q$2:$Q$1000=Costs!U$705)*('Fixed assets'!$U$2:$U$1000>Costs!$A712)*('Fixed assets'!$P$2:$P$1000=Costs!$A712)*('Fixed assets'!$S$2:$S$1000))","v":0},{"$f":"V624+SUMPRODUCT(('Fixed assets'!$Q$2:$Q$1000=Costs!V$705)*('Fixed assets'!$U$2:$U$1000>Costs!$A712)*('Fixed assets'!$P$2:$P$1000=Costs!$A712)*('Fixed assets'!$R$2:$R$1000))-SUMPRODUCT(('Fixed assets'!$Q$2:$Q$1000=Costs!V$705)*('Fixed assets'!$U$2:$U$1000>Costs!$A712)*('Fixed assets'!$P$2:$P$1000=Costs!$A712)*('Fixed assets'!$S$2:$S$1000))","v":0},{"$f":"W624+SUMPRODUCT(('Fixed assets'!$Q$2:$Q$1000=Costs!W$705)*('Fixed assets'!$U$2:$U$1000>Costs!$A712)*('Fixed assets'!$P$2:$P$1000=Costs!$A712)*('Fixed assets'!$R$2:$R$1000))-SUMPRODUCT(('Fixed assets'!$Q$2:$Q$1000=Costs!W$705)*('Fixed assets'!$U$2:$U$1000>Costs!$A712)*('Fixed assets'!$P$2:$P$1000=Costs!$A712)*('Fixed assets'!$S$2:$S$1000))","v":0},{"$f":"X624+SUMPRODUCT(('Fixed assets'!$Q$2:$Q$1000=Costs!X$705)*('Fixed assets'!$U$2:$U$1000>Costs!$A712)*('Fixed assets'!$P$2:$P$1000=Costs!$A712)*('Fixed assets'!$R$2:$R$1000))-SUMPRODUCT(('Fixed assets'!$Q$2:$Q$1000=Costs!X$705)*('Fixed assets'!$U$2:$U$1000>Costs!$A712)*('Fixed assets'!$P$2:$P$1000=Costs!$A712)*('Fixed assets'!$S$2:$S$1000))","v":0},{"$f":"Y624+SUMPRODUCT(('Fixed assets'!$Q$2:$Q$1000=Costs!Y$705)*('Fixed assets'!$U$2:$U$1000>Costs!$A712)*('Fixed assets'!$P$2:$P$1000=Costs!$A712)*('Fixed assets'!$R$2:$R$1000))-SUMPRODUCT(('Fixed assets'!$Q$2:$Q$1000=Costs!Y$705)*('Fixed assets'!$U$2:$U$1000>Costs!$A712)*('Fixed assets'!$P$2:$P$1000=Costs!$A712)*('Fixed assets'!$S$2:$S$1000))","v":0},{"$f":"Z624+SUMPRODUCT(('Fixed assets'!$Q$2:$Q$1000=Costs!Z$705)*('Fixed assets'!$U$2:$U$1000>Costs!$A712)*('Fixed assets'!$P$2:$P$1000=Costs!$A712)*('Fixed assets'!$R$2:$R$1000))-SUMPRODUCT(('Fixed assets'!$Q$2:$Q$1000=Costs!Z$705)*('Fixed assets'!$U$2:$U$1000>Costs!$A712)*('Fixed assets'!$P$2:$P$1000=Costs!$A712)*('Fixed assets'!$S$2:$S$1000))","v":0},{"$f":"AA624+SUMPRODUCT(('Fixed assets'!$Q$2:$Q$1000=Costs!AA$705)*('Fixed assets'!$U$2:$U$1000>Costs!$A712)*('Fixed assets'!$P$2:$P$1000=Costs!$A712)*('Fixed assets'!$R$2:$R$1000))-SUMPRODUCT(('Fixed assets'!$Q$2:$Q$1000=Costs!AA$705)*('Fixed assets'!$U$2:$U$1000>Costs!$A712)*('Fixed assets'!$P$2:$P$1000=Costs!$A712)*('Fixed assets'!$S$2:$S$1000))","v":0},{"$f":"AB624+SUMPRODUCT(('Fixed assets'!$Q$2:$Q$1000=Costs!AB$705)*('Fixed assets'!$U$2:$U$1000>Costs!$A712)*('Fixed assets'!$P$2:$P$1000=Costs!$A712)*('Fixed assets'!$R$2:$R$1000))-SUMPRODUCT(('Fixed assets'!$Q$2:$Q$1000=Costs!AB$705)*('Fixed assets'!$U$2:$U$1000>Costs!$A712)*('Fixed assets'!$P$2:$P$1000=Costs!$A712)*('Fixed assets'!$S$2:$S$1000))","v":0},{"$f":"AC624+SUMPRODUCT(('Fixed assets'!$Q$2:$Q$1000=Costs!AC$705)*('Fixed assets'!$U$2:$U$1000>Costs!$A712)*('Fixed assets'!$P$2:$P$1000=Costs!$A712)*('Fixed assets'!$R$2:$R$1000))-SUMPRODUCT(('Fixed assets'!$Q$2:$Q$1000=Costs!AC$705)*('Fixed assets'!$U$2:$U$1000>Costs!$A712)*('Fixed assets'!$P$2:$P$1000=Costs!$A712)*('Fixed assets'!$S$2:$S$1000))","v":0},{"$f":"AD624+SUMPRODUCT(('Fixed assets'!$Q$2:$Q$1000=Costs!AD$705)*('Fixed assets'!$U$2:$U$1000>Costs!$A712)*('Fixed assets'!$P$2:$P$1000=Costs!$A712)*('Fixed assets'!$R$2:$R$1000))-SUMPRODUCT(('Fixed assets'!$Q$2:$Q$1000=Costs!AD$705)*('Fixed assets'!$U$2:$U$1000>Costs!$A712)*('Fixed assets'!$P$2:$P$1000=Costs!$A712)*('Fixed assets'!$S$2:$S$1000))","v":0},{"$f":"AE624+SUMPRODUCT(('Fixed assets'!$Q$2:$Q$1000=Costs!AE$705)*('Fixed assets'!$U$2:$U$1000>Costs!$A712)*('Fixed assets'!$P$2:$P$1000=Costs!$A712)*('Fixed assets'!$R$2:$R$1000))-SUMPRODUCT(('Fixed assets'!$Q$2:$Q$1000=Costs!AE$705)*('Fixed assets'!$U$2:$U$1000>Costs!$A712)*('Fixed assets'!$P$2:$P$1000=Costs!$A712)*('Fixed assets'!$S$2:$S$1000))","v":0},{"$f":"AF624+SUMPRODUCT(('Fixed assets'!$Q$2:$Q$1000=Costs!AF$705)*('Fixed assets'!$U$2:$U$1000>Costs!$A712)*('Fixed assets'!$P$2:$P$1000=Costs!$A712)*('Fixed assets'!$R$2:$R$1000))-SUMPRODUCT(('Fixed assets'!$Q$2:$Q$1000=Costs!AF$705)*('Fixed assets'!$U$2:$U$1000>Costs!$A712)*('Fixed assets'!$P$2:$P$1000=Costs!$A712)*('Fixed assets'!$S$2:$S$1000))","v":0},{"$f":"AG624+SUMPRODUCT(('Fixed assets'!$Q$2:$Q$1000=Costs!AG$705)*('Fixed assets'!$U$2:$U$1000>Costs!$A712)*('Fixed assets'!$P$2:$P$1000=Costs!$A712)*('Fixed assets'!$R$2:$R$1000))-SUMPRODUCT(('Fixed assets'!$Q$2:$Q$1000=Costs!AG$705)*('Fixed assets'!$U$2:$U$1000>Costs!$A712)*('Fixed assets'!$P$2:$P$1000=Costs!$A712)*('Fixed assets'!$S$2:$S$1000))","v":0},{"$f":"AH624+SUMPRODUCT(('Fixed assets'!$Q$2:$Q$1000=Costs!AH$705)*('Fixed assets'!$U$2:$U$1000>Costs!$A712)*('Fixed assets'!$P$2:$P$1000=Costs!$A712)*('Fixed assets'!$R$2:$R$1000))-SUMPRODUCT(('Fixed assets'!$Q$2:$Q$1000=Costs!AH$705)*('Fixed assets'!$U$2:$U$1000>Costs!$A712)*('Fixed assets'!$P$2:$P$1000=Costs!$A712)*('Fixed assets'!$S$2:$S$1000))","v":0},{"$f":"AI624+SUMPRODUCT(('Fixed assets'!$Q$2:$Q$1000=Costs!AI$705)*('Fixed assets'!$U$2:$U$1000>Costs!$A712)*('Fixed assets'!$P$2:$P$1000=Costs!$A712)*('Fixed assets'!$R$2:$R$1000))-SUMPRODUCT(('Fixed assets'!$Q$2:$Q$1000=Costs!AI$705)*('Fixed assets'!$U$2:$U$1000>Costs!$A712)*('Fixed assets'!$P$2:$P$1000=Costs!$A712)*('Fixed assets'!$S$2:$S$1000))","v":0},{"$f":"AJ624+SUMPRODUCT(('Fixed assets'!$Q$2:$Q$1000=Costs!AJ$705)*('Fixed assets'!$U$2:$U$1000>Costs!$A712)*('Fixed assets'!$P$2:$P$1000=Costs!$A712)*('Fixed assets'!$R$2:$R$1000))-SUMPRODUCT(('Fixed assets'!$Q$2:$Q$1000=Costs!AJ$705)*('Fixed assets'!$U$2:$U$1000>Costs!$A712)*('Fixed assets'!$P$2:$P$1000=Costs!$A712)*('Fixed assets'!$S$2:$S$1000))","v":0},{"$f":"AK624+SUMPRODUCT(('Fixed assets'!$Q$2:$Q$1000=Costs!AK$705)*('Fixed assets'!$U$2:$U$1000>Costs!$A712)*('Fixed assets'!$P$2:$P$1000=Costs!$A712)*('Fixed assets'!$R$2:$R$1000))-SUMPRODUCT(('Fixed assets'!$Q$2:$Q$1000=Costs!AK$705)*('Fixed assets'!$U$2:$U$1000>Costs!$A712)*('Fixed assets'!$P$2:$P$1000=Costs!$A712)*('Fixed assets'!$S$2:$S$1000))","v":0},{"$f":"AL624+SUMPRODUCT(('Fixed assets'!$Q$2:$Q$1000=Costs!AL$705)*('Fixed assets'!$U$2:$U$1000>Costs!$A712)*('Fixed assets'!$P$2:$P$1000=Costs!$A712)*('Fixed assets'!$R$2:$R$1000))-SUMPRODUCT(('Fixed assets'!$Q$2:$Q$1000=Costs!AL$705)*('Fixed assets'!$U$2:$U$1000>Costs!$A712)*('Fixed assets'!$P$2:$P$1000=Costs!$A712)*('Fixed assets'!$S$2:$S$1000))","v":0},{"$f":"AM624+SUMPRODUCT(('Fixed assets'!$Q$2:$Q$1000=Costs!AM$705)*('Fixed assets'!$U$2:$U$1000>Costs!$A712)*('Fixed assets'!$P$2:$P$1000=Costs!$A712)*('Fixed assets'!$R$2:$R$1000))-SUMPRODUCT(('Fixed assets'!$Q$2:$Q$1000=Costs!AM$705)*('Fixed assets'!$U$2:$U$1000>Costs!$A712)*('Fixed assets'!$P$2:$P$1000=Costs!$A712)*('Fixed assets'!$S$2:$S$1000))","v":0},{"$f":"AN624+SUMPRODUCT(('Fixed assets'!$Q$2:$Q$1000=Costs!AN$705)*('Fixed assets'!$U$2:$U$1000>Costs!$A712)*('Fixed assets'!$P$2:$P$1000=Costs!$A712)*('Fixed assets'!$R$2:$R$1000))-SUMPRODUCT(('Fixed assets'!$Q$2:$Q$1000=Costs!AN$705)*('Fixed assets'!$U$2:$U$1000>Costs!$A712)*('Fixed assets'!$P$2:$P$1000=Costs!$A712)*('Fixed assets'!$S$2:$S$1000))","v":0},{"$f":"AO624+SUMPRODUCT(('Fixed assets'!$Q$2:$Q$1000=Costs!AO$705)*('Fixed assets'!$U$2:$U$1000>Costs!$A712)*('Fixed assets'!$P$2:$P$1000=Costs!$A712)*('Fixed assets'!$R$2:$R$1000))-SUMPRODUCT(('Fixed assets'!$Q$2:$Q$1000=Costs!AO$705)*('Fixed assets'!$U$2:$U$1000>Costs!$A712)*('Fixed assets'!$P$2:$P$1000=Costs!$A712)*('Fixed assets'!$S$2:$S$1000))","v":0},{"$f":"AP624+SUMPRODUCT(('Fixed assets'!$Q$2:$Q$1000=Costs!AP$705)*('Fixed assets'!$U$2:$U$1000>Costs!$A712)*('Fixed assets'!$P$2:$P$1000=Costs!$A712)*('Fixed assets'!$R$2:$R$1000))-SUMPRODUCT(('Fixed assets'!$Q$2:$Q$1000=Costs!AP$705)*('Fixed assets'!$U$2:$U$1000>Costs!$A712)*('Fixed assets'!$P$2:$P$1000=Costs!$A712)*('Fixed assets'!$S$2:$S$1000))","v":0},{"$f":"AQ624+SUMPRODUCT(('Fixed assets'!$Q$2:$Q$1000=Costs!AQ$705)*('Fixed assets'!$U$2:$U$1000>Costs!$A712)*('Fixed assets'!$P$2:$P$1000=Costs!$A712)*('Fixed assets'!$R$2:$R$1000))-SUMPRODUCT(('Fixed assets'!$Q$2:$Q$1000=Costs!AQ$705)*('Fixed assets'!$U$2:$U$1000>Costs!$A712)*('Fixed assets'!$P$2:$P$1000=Costs!$A712)*('Fixed assets'!$S$2:$S$1000))","v":0}]
[2022,39000000,{"$f":"C625+SUMPRODUCT(('Fixed assets'!$Q$2:$Q$1000=Costs!C$705)*('Fixed assets'!$U$2:$U$1000>Costs!$A713)*('Fixed assets'!$P$2:$P$1000=Costs!$A713)*('Fixed assets'!$R$2:$R$1000))-SUMPRODUCT(('Fixed assets'!$Q$2:$Q$1000=Costs!C$705)*('Fixed assets'!$U$2:$U$1000>Costs!$A713)*('Fixed assets'!$P$2:$P$1000=Costs!$A713)*('Fixed assets'!$S$2:$S$1000))","v":0},{"$f":"D625+SUMPRODUCT(('Fixed assets'!$Q$2:$Q$1000=Costs!D$705)*('Fixed assets'!$U$2:$U$1000>Costs!$A713)*('Fixed assets'!$P$2:$P$1000=Costs!$A713)*('Fixed assets'!$R$2:$R$1000))-SUMPRODUCT(('Fixed assets'!$Q$2:$Q$1000=Costs!D$705)*('Fixed assets'!$U$2:$U$1000>Costs!$A713)*('Fixed assets'!$P$2:$P$1000=Costs!$A713)*('Fixed assets'!$S$2:$S$1000))","v":0},{"$f":"E625+SUMPRODUCT(('Fixed assets'!$Q$2:$Q$1000=Costs!E$705)*('Fixed assets'!$U$2:$U$1000>Costs!$A713)*('Fixed assets'!$P$2:$P$1000=Costs!$A713)*('Fixed assets'!$R$2:$R$1000))-SUMPRODUCT(('Fixed assets'!$Q$2:$Q$1000=Costs!E$705)*('Fixed assets'!$U$2:$U$1000>Costs!$A713)*('Fixed assets'!$P$2:$P$1000=Costs!$A713)*('Fixed assets'!$S$2:$S$1000))","v":0},{"$f":"F625+SUMPRODUCT(('Fixed assets'!$Q$2:$Q$1000=Costs!F$705)*('Fixed assets'!$U$2:$U$1000>Costs!$A713)*('Fixed assets'!$P$2:$P$1000=Costs!$A713)*('Fixed assets'!$R$2:$R$1000))-SUMPRODUCT(('Fixed assets'!$Q$2:$Q$1000=Costs!F$705)*('Fixed assets'!$U$2:$U$1000>Costs!$A713)*('Fixed assets'!$P$2:$P$1000=Costs!$A713)*('Fixed assets'!$S$2:$S$1000))","v":0},{"$f":"G625+SUMPRODUCT(('Fixed assets'!$Q$2:$Q$1000=Costs!G$705)*('Fixed assets'!$U$2:$U$1000>Costs!$A713)*('Fixed assets'!$P$2:$P$1000=Costs!$A713)*('Fixed assets'!$R$2:$R$1000))-SUMPRODUCT(('Fixed assets'!$Q$2:$Q$1000=Costs!G$705)*('Fixed assets'!$U$2:$U$1000>Costs!$A713)*('Fixed assets'!$P$2:$P$1000=Costs!$A713)*('Fixed assets'!$S$2:$S$1000))","v":0},{"$f":"H625+SUMPRODUCT(('Fixed assets'!$Q$2:$Q$1000=Costs!H$705)*('Fixed assets'!$U$2:$U$1000>Costs!$A713)*('Fixed assets'!$P$2:$P$1000=Costs!$A713)*('Fixed assets'!$R$2:$R$1000))-SUMPRODUCT(('Fixed assets'!$Q$2:$Q$1000=Costs!H$705)*('Fixed assets'!$U$2:$U$1000>Costs!$A713)*('Fixed assets'!$P$2:$P$1000=Costs!$A713)*('Fixed assets'!$S$2:$S$1000))","v":0},{"$f":"I625+SUMPRODUCT(('Fixed assets'!$Q$2:$Q$1000=Costs!I$705)*('Fixed assets'!$U$2:$U$1000>Costs!$A713)*('Fixed assets'!$P$2:$P$1000=Costs!$A713)*('Fixed assets'!$R$2:$R$1000))-SUMPRODUCT(('Fixed assets'!$Q$2:$Q$1000=Costs!I$705)*('Fixed assets'!$U$2:$U$1000>Costs!$A713)*('Fixed assets'!$P$2:$P$1000=Costs!$A713)*('Fixed assets'!$S$2:$S$1000))","v":0},{"$f":"J625+SUMPRODUCT(('Fixed assets'!$Q$2:$Q$1000=Costs!J$705)*('Fixed assets'!$U$2:$U$1000>Costs!$A713)*('Fixed assets'!$P$2:$P$1000=Costs!$A713)*('Fixed assets'!$R$2:$R$1000))-SUMPRODUCT(('Fixed assets'!$Q$2:$Q$1000=Costs!J$705)*('Fixed assets'!$U$2:$U$1000>Costs!$A713)*('Fixed assets'!$P$2:$P$1000=Costs!$A713)*('Fixed assets'!$S$2:$S$1000))","v":0},{"$f":"K625+SUMPRODUCT(('Fixed assets'!$Q$2:$Q$1000=Costs!K$705)*('Fixed assets'!$U$2:$U$1000>Costs!$A713)*('Fixed assets'!$P$2:$P$1000=Costs!$A713)*('Fixed assets'!$R$2:$R$1000))-SUMPRODUCT(('Fixed assets'!$Q$2:$Q$1000=Costs!K$705)*('Fixed assets'!$U$2:$U$1000>Costs!$A713)*('Fixed assets'!$P$2:$P$1000=Costs!$A713)*('Fixed assets'!$S$2:$S$1000))","v":0},{"$f":"L625+SUMPRODUCT(('Fixed assets'!$Q$2:$Q$1000=Costs!L$705)*('Fixed assets'!$U$2:$U$1000>Costs!$A713)*('Fixed assets'!$P$2:$P$1000=Costs!$A713)*('Fixed assets'!$R$2:$R$1000))-SUMPRODUCT(('Fixed assets'!$Q$2:$Q$1000=Costs!L$705)*('Fixed assets'!$U$2:$U$1000>Costs!$A713)*('Fixed assets'!$P$2:$P$1000=Costs!$A713)*('Fixed assets'!$S$2:$S$1000))","v":0},{"$f":"M625+SUMPRODUCT(('Fixed assets'!$Q$2:$Q$1000=Costs!M$705)*('Fixed assets'!$U$2:$U$1000>Costs!$A713)*('Fixed assets'!$P$2:$P$1000=Costs!$A713)*('Fixed assets'!$R$2:$R$1000))-SUMPRODUCT(('Fixed assets'!$Q$2:$Q$1000=Costs!M$705)*('Fixed assets'!$U$2:$U$1000>Costs!$A713)*('Fixed assets'!$P$2:$P$1000=Costs!$A713)*('Fixed assets'!$S$2:$S$1000))","v":0},{"$f":"N625+SUMPRODUCT(('Fixed assets'!$Q$2:$Q$1000=Costs!N$705)*('Fixed assets'!$U$2:$U$1000>Costs!$A713)*('Fixed assets'!$P$2:$P$1000=Costs!$A713)*('Fixed assets'!$R$2:$R$1000))-SUMPRODUCT(('Fixed assets'!$Q$2:$Q$1000=Costs!N$705)*('Fixed assets'!$U$2:$U$1000>Costs!$A713)*('Fixed assets'!$P$2:$P$1000=Costs!$A713)*('Fixed assets'!$S$2:$S$1000))","v":0},{"$f":"O625+SUMPRODUCT(('Fixed assets'!$Q$2:$Q$1000=Costs!O$705)*('Fixed assets'!$U$2:$U$1000>Costs!$A713)*('Fixed assets'!$P$2:$P$1000=Costs!$A713)*('Fixed assets'!$R$2:$R$1000))-SUMPRODUCT(('Fixed assets'!$Q$2:$Q$1000=Costs!O$705)*('Fixed assets'!$U$2:$U$1000>Costs!$A713)*('Fixed assets'!$P$2:$P$1000=Costs!$A713)*('Fixed assets'!$S$2:$S$1000))","v":0},{"$f":"P625+SUMPRODUCT(('Fixed assets'!$Q$2:$Q$1000=Costs!P$705)*('Fixed assets'!$U$2:$U$1000>Costs!$A713)*('Fixed assets'!$P$2:$P$1000=Costs!$A713)*('Fixed assets'!$R$2:$R$1000))-SUMPRODUCT(('Fixed assets'!$Q$2:$Q$1000=Costs!P$705)*('Fixed assets'!$U$2:$U$1000>Costs!$A713)*('Fixed assets'!$P$2:$P$1000=Costs!$A713)*('Fixed assets'!$S$2:$S$1000))","v":39000000},{"$f":"Q625+SUMPRODUCT(('Fixed assets'!$Q$2:$Q$1000=Costs!Q$705)*('Fixed assets'!$U$2:$U$1000>Costs!$A713)*('Fixed assets'!$P$2:$P$1000=Costs!$A713)*('Fixed assets'!$R$2:$R$1000))-SUMPRODUCT(('Fixed assets'!$Q$2:$Q$1000=Costs!Q$705)*('Fixed assets'!$U$2:$U$1000>Costs!$A713)*('Fixed assets'!$P$2:$P$1000=Costs!$A713)*('Fixed assets'!$S$2:$S$1000))","v":0},{"$f":"R625+SUMPRODUCT(('Fixed assets'!$Q$2:$Q$1000=Costs!R$705)*('Fixed assets'!$U$2:$U$1000>Costs!$A713)*('Fixed assets'!$P$2:$P$1000=Costs!$A713)*('Fixed assets'!$R$2:$R$1000))-SUMPRODUCT(('Fixed assets'!$Q$2:$Q$1000=Costs!R$705)*('Fixed assets'!$U$2:$U$1000>Costs!$A713)*('Fixed assets'!$P$2:$P$1000=Costs!$A713)*('Fixed assets'!$S$2:$S$1000))","v":0},{"$f":"S625+SUMPRODUCT(('Fixed assets'!$Q$2:$Q$1000=Costs!S$705)*('Fixed assets'!$U$2:$U$1000>Costs!$A713)*('Fixed assets'!$P$2:$P$1000=Costs!$A713)*('Fixed assets'!$R$2:$R$1000))-SUMPRODUCT(('Fixed assets'!$Q$2:$Q$1000=Costs!S$705)*('Fixed assets'!$U$2:$U$1000>Costs!$A713)*('Fixed assets'!$P$2:$P$1000=Costs!$A713)*('Fixed assets'!$S$2:$S$1000))","v":0},{"$f":"T625+SUMPRODUCT(('Fixed assets'!$Q$2:$Q$1000=Costs!T$705)*('Fixed assets'!$U$2:$U$1000>Costs!$A713)*('Fixed assets'!$P$2:$P$1000=Costs!$A713)*('Fixed assets'!$R$2:$R$1000))-SUMPRODUCT(('Fixed assets'!$Q$2:$Q$1000=Costs!T$705)*('Fixed assets'!$U$2:$U$1000>Costs!$A713)*('Fixed assets'!$P$2:$P$1000=Costs!$A713)*('Fixed assets'!$S$2:$S$1000))","v":0},{"$f":"U625+SUMPRODUCT(('Fixed assets'!$Q$2:$Q$1000=Costs!U$705)*('Fixed assets'!$U$2:$U$1000>Costs!$A713)*('Fixed assets'!$P$2:$P$1000=Costs!$A713)*('Fixed assets'!$R$2:$R$1000))-SUMPRODUCT(('Fixed assets'!$Q$2:$Q$1000=Costs!U$705)*('Fixed assets'!$U$2:$U$1000>Costs!$A713)*('Fixed assets'!$P$2:$P$1000=Costs!$A713)*('Fixed assets'!$S$2:$S$1000))","v":0},{"$f":"V625+SUMPRODUCT(('Fixed assets'!$Q$2:$Q$1000=Costs!V$705)*('Fixed assets'!$U$2:$U$1000>Costs!$A713)*('Fixed assets'!$P$2:$P$1000=Costs!$A713)*('Fixed assets'!$R$2:$R$1000))-SUMPRODUCT(('Fixed assets'!$Q$2:$Q$1000=Costs!V$705)*('Fixed assets'!$U$2:$U$1000>Costs!$A713)*('Fixed assets'!$P$2:$P$1000=Costs!$A713)*('Fixed assets'!$S$2:$S$1000))","v":0},{"$f":"W625+SUMPRODUCT(('Fixed assets'!$Q$2:$Q$1000=Costs!W$705)*('Fixed assets'!$U$2:$U$1000>Costs!$A713)*('Fixed assets'!$P$2:$P$1000=Costs!$A713)*('Fixed assets'!$R$2:$R$1000))-SUMPRODUCT(('Fixed assets'!$Q$2:$Q$1000=Costs!W$705)*('Fixed assets'!$U$2:$U$1000>Costs!$A713)*('Fixed assets'!$P$2:$P$1000=Costs!$A713)*('Fixed assets'!$S$2:$S$1000))","v":0},{"$f":"X625+SUMPRODUCT(('Fixed assets'!$Q$2:$Q$1000=Costs!X$705)*('Fixed assets'!$U$2:$U$1000>Costs!$A713)*('Fixed assets'!$P$2:$P$1000=Costs!$A713)*('Fixed assets'!$R$2:$R$1000))-SUMPRODUCT(('Fixed assets'!$Q$2:$Q$1000=Costs!X$705)*('Fixed assets'!$U$2:$U$1000>Costs!$A713)*('Fixed assets'!$P$2:$P$1000=Costs!$A713)*('Fixed assets'!$S$2:$S$1000))","v":0},{"$f":"Y625+SUMPRODUCT(('Fixed assets'!$Q$2:$Q$1000=Costs!Y$705)*('Fixed assets'!$U$2:$U$1000>Costs!$A713)*('Fixed assets'!$P$2:$P$1000=Costs!$A713)*('Fixed assets'!$R$2:$R$1000))-SUMPRODUCT(('Fixed assets'!$Q$2:$Q$1000=Costs!Y$705)*('Fixed assets'!$U$2:$U$1000>Costs!$A713)*('Fixed assets'!$P$2:$P$1000=Costs!$A713)*('Fixed assets'!$S$2:$S$1000))","v":0},{"$f":"Z625+SUMPRODUCT(('Fixed assets'!$Q$2:$Q$1000=Costs!Z$705)*('Fixed assets'!$U$2:$U$1000>Costs!$A713)*('Fixed assets'!$P$2:$P$1000=Costs!$A713)*('Fixed assets'!$R$2:$R$1000))-SUMPRODUCT(('Fixed assets'!$Q$2:$Q$1000=Costs!Z$705)*('Fixed assets'!$U$2:$U$1000>Costs!$A713)*('Fixed assets'!$P$2:$P$1000=Costs!$A713)*('Fixed assets'!$S$2:$S$1000))","v":0},{"$f":"AA625+SUMPRODUCT(('Fixed assets'!$Q$2:$Q$1000=Costs!AA$705)*('Fixed assets'!$U$2:$U$1000>Costs!$A713)*('Fixed assets'!$P$2:$P$1000=Costs!$A713)*('Fixed assets'!$R$2:$R$1000))-SUMPRODUCT(('Fixed assets'!$Q$2:$Q$1000=Costs!AA$705)*('Fixed assets'!$U$2:$U$1000>Costs!$A713)*('Fixed assets'!$P$2:$P$1000=Costs!$A713)*('Fixed assets'!$S$2:$S$1000))","v":0},{"$f":"AB625+SUMPRODUCT(('Fixed assets'!$Q$2:$Q$1000=Costs!AB$705)*('Fixed assets'!$U$2:$U$1000>Costs!$A713)*('Fixed assets'!$P$2:$P$1000=Costs!$A713)*('Fixed assets'!$R$2:$R$1000))-SUMPRODUCT(('Fixed assets'!$Q$2:$Q$1000=Costs!AB$705)*('Fixed assets'!$U$2:$U$1000>Costs!$A713)*('Fixed assets'!$P$2:$P$1000=Costs!$A713)*('Fixed assets'!$S$2:$S$1000))","v":0},{"$f":"AC625+SUMPRODUCT(('Fixed assets'!$Q$2:$Q$1000=Costs!AC$705)*('Fixed assets'!$U$2:$U$1000>Costs!$A713)*('Fixed assets'!$P$2:$P$1000=Costs!$A713)*('Fixed assets'!$R$2:$R$1000))-SUMPRODUCT(('Fixed assets'!$Q$2:$Q$1000=Costs!AC$705)*('Fixed assets'!$U$2:$U$1000>Costs!$A713)*('Fixed assets'!$P$2:$P$1000=Costs!$A713)*('Fixed assets'!$S$2:$S$1000))","v":0},{"$f":"AD625+SUMPRODUCT(('Fixed assets'!$Q$2:$Q$1000=Costs!AD$705)*('Fixed assets'!$U$2:$U$1000>Costs!$A713)*('Fixed assets'!$P$2:$P$1000=Costs!$A713)*('Fixed assets'!$R$2:$R$1000))-SUMPRODUCT(('Fixed assets'!$Q$2:$Q$1000=Costs!AD$705)*('Fixed assets'!$U$2:$U$1000>Costs!$A713)*('Fixed assets'!$P$2:$P$1000=Costs!$A713)*('Fixed assets'!$S$2:$S$1000))","v":0},{"$f":"AE625+SUMPRODUCT(('Fixed assets'!$Q$2:$Q$1000=Costs!AE$705)*('Fixed assets'!$U$2:$U$1000>Costs!$A713)*('Fixed assets'!$P$2:$P$1000=Costs!$A713)*('Fixed assets'!$R$2:$R$1000))-SUMPRODUCT(('Fixed assets'!$Q$2:$Q$1000=Costs!AE$705)*('Fixed assets'!$U$2:$U$1000>Costs!$A713)*('Fixed assets'!$P$2:$P$1000=Costs!$A713)*('Fixed assets'!$S$2:$S$1000))","v":0},{"$f":"AF625+SUMPRODUCT(('Fixed assets'!$Q$2:$Q$1000=Costs!AF$705)*('Fixed assets'!$U$2:$U$1000>Costs!$A713)*('Fixed assets'!$P$2:$P$1000=Costs!$A713)*('Fixed assets'!$R$2:$R$1000))-SUMPRODUCT(('Fixed assets'!$Q$2:$Q$1000=Costs!AF$705)*('Fixed assets'!$U$2:$U$1000>Costs!$A713)*('Fixed assets'!$P$2:$P$1000=Costs!$A713)*('Fixed assets'!$S$2:$S$1000))","v":0},{"$f":"AG625+SUMPRODUCT(('Fixed assets'!$Q$2:$Q$1000=Costs!AG$705)*('Fixed assets'!$U$2:$U$1000>Costs!$A713)*('Fixed assets'!$P$2:$P$1000=Costs!$A713)*('Fixed assets'!$R$2:$R$1000))-SUMPRODUCT(('Fixed assets'!$Q$2:$Q$1000=Costs!AG$705)*('Fixed assets'!$U$2:$U$1000>Costs!$A713)*('Fixed assets'!$P$2:$P$1000=Costs!$A713)*('Fixed assets'!$S$2:$S$1000))","v":0},{"$f":"AH625+SUMPRODUCT(('Fixed assets'!$Q$2:$Q$1000=Costs!AH$705)*('Fixed assets'!$U$2:$U$1000>Costs!$A713)*('Fixed assets'!$P$2:$P$1000=Costs!$A713)*('Fixed assets'!$R$2:$R$1000))-SUMPRODUCT(('Fixed assets'!$Q$2:$Q$1000=Costs!AH$705)*('Fixed assets'!$U$2:$U$1000>Costs!$A713)*('Fixed assets'!$P$2:$P$1000=Costs!$A713)*('Fixed assets'!$S$2:$S$1000))","v":0},{"$f":"AI625+SUMPRODUCT(('Fixed assets'!$Q$2:$Q$1000=Costs!AI$705)*('Fixed assets'!$U$2:$U$1000>Costs!$A713)*('Fixed assets'!$P$2:$P$1000=Costs!$A713)*('Fixed assets'!$R$2:$R$1000))-SUMPRODUCT(('Fixed assets'!$Q$2:$Q$1000=Costs!AI$705)*('Fixed assets'!$U$2:$U$1000>Costs!$A713)*('Fixed assets'!$P$2:$P$1000=Costs!$A713)*('Fixed assets'!$S$2:$S$1000))","v":0},{"$f":"AJ625+SUMPRODUCT(('Fixed assets'!$Q$2:$Q$1000=Costs!AJ$705)*('Fixed assets'!$U$2:$U$1000>Costs!$A713)*('Fixed assets'!$P$2:$P$1000=Costs!$A713)*('Fixed assets'!$R$2:$R$1000))-SUMPRODUCT(('Fixed assets'!$Q$2:$Q$1000=Costs!AJ$705)*('Fixed assets'!$U$2:$U$1000>Costs!$A713)*('Fixed assets'!$P$2:$P$1000=Costs!$A713)*('Fixed assets'!$S$2:$S$1000))","v":0},{"$f":"AK625+SUMPRODUCT(('Fixed assets'!$Q$2:$Q$1000=Costs!AK$705)*('Fixed assets'!$U$2:$U$1000>Costs!$A713)*('Fixed assets'!$P$2:$P$1000=Costs!$A713)*('Fixed assets'!$R$2:$R$1000))-SUMPRODUCT(('Fixed assets'!$Q$2:$Q$1000=Costs!AK$705)*('Fixed assets'!$U$2:$U$1000>Costs!$A713)*('Fixed assets'!$P$2:$P$1000=Costs!$A713)*('Fixed assets'!$S$2:$S$1000))","v":0},{"$f":"AL625+SUMPRODUCT(('Fixed assets'!$Q$2:$Q$1000=Costs!AL$705)*('Fixed assets'!$U$2:$U$1000>Costs!$A713)*('Fixed assets'!$P$2:$P$1000=Costs!$A713)*('Fixed assets'!$R$2:$R$1000))-SUMPRODUCT(('Fixed assets'!$Q$2:$Q$1000=Costs!AL$705)*('Fixed assets'!$U$2:$U$1000>Costs!$A713)*('Fixed assets'!$P$2:$P$1000=Costs!$A713)*('Fixed assets'!$S$2:$S$1000))","v":0},{"$f":"AM625+SUMPRODUCT(('Fixed assets'!$Q$2:$Q$1000=Costs!AM$705)*('Fixed assets'!$U$2:$U$1000>Costs!$A713)*('Fixed assets'!$P$2:$P$1000=Costs!$A713)*('Fixed assets'!$R$2:$R$1000))-SUMPRODUCT(('Fixed assets'!$Q$2:$Q$1000=Costs!AM$705)*('Fixed assets'!$U$2:$U$1000>Costs!$A713)*('Fixed assets'!$P$2:$P$1000=Costs!$A713)*('Fixed assets'!$S$2:$S$1000))","v":0},{"$f":"AN625+SUMPRODUCT(('Fixed assets'!$Q$2:$Q$1000=Costs!AN$705)*('Fixed assets'!$U$2:$U$1000>Costs!$A713)*('Fixed assets'!$P$2:$P$1000=Costs!$A713)*('Fixed assets'!$R$2:$R$1000))-SUMPRODUCT(('Fixed assets'!$Q$2:$Q$1000=Costs!AN$705)*('Fixed assets'!$U$2:$U$1000>Costs!$A713)*('Fixed assets'!$P$2:$P$1000=Costs!$A713)*('Fixed assets'!$S$2:$S$1000))","v":0},{"$f":"AO625+SUMPRODUCT(('Fixed assets'!$Q$2:$Q$1000=Costs!AO$705)*('Fixed assets'!$U$2:$U$1000>Costs!$A713)*('Fixed assets'!$P$2:$P$1000=Costs!$A713)*('Fixed assets'!$R$2:$R$1000))-SUMPRODUCT(('Fixed assets'!$Q$2:$Q$1000=Costs!AO$705)*('Fixed assets'!$U$2:$U$1000>Costs!$A713)*('Fixed assets'!$P$2:$P$1000=Costs!$A713)*('Fixed assets'!$S$2:$S$1000))","v":0},{"$f":"AP625+SUMPRODUCT(('Fixed assets'!$Q$2:$Q$1000=Costs!AP$705)*('Fixed assets'!$U$2:$U$1000>Costs!$A713)*('Fixed assets'!$P$2:$P$1000=Costs!$A713)*('Fixed assets'!$R$2:$R$1000))-SUMPRODUCT(('Fixed assets'!$Q$2:$Q$1000=Costs!AP$705)*('Fixed assets'!$U$2:$U$1000>Costs!$A713)*('Fixed assets'!$P$2:$P$1000=Costs!$A713)*('Fixed assets'!$S$2:$S$1000))","v":0},{"$f":"AQ625+SUMPRODUCT(('Fixed assets'!$Q$2:$Q$1000=Costs!AQ$705)*('Fixed assets'!$U$2:$U$1000>Costs!$A713)*('Fixed assets'!$P$2:$P$1000=Costs!$A713)*('Fixed assets'!$R$2:$R$1000))-SUMPRODUCT(('Fixed assets'!$Q$2:$Q$1000=Costs!AQ$705)*('Fixed assets'!$U$2:$U$1000>Costs!$A713)*('Fixed assets'!$P$2:$P$1000=Costs!$A713)*('Fixed assets'!$S$2:$S$1000))","v":0}]
[2023,90000000,{"$f":"C626+SUMPRODUCT(('Fixed assets'!$Q$2:$Q$1000=Costs!C$705)*('Fixed assets'!$U$2:$U$1000>Costs!$A714)*('Fixed assets'!$P$2:$P$1000=Costs!$A714)*('Fixed assets'!$R$2:$R$1000))-SUMPRODUCT(('Fixed assets'!$Q$2:$Q$1000=Costs!C$705)*('Fixed assets'!$U$2:$U$1000>Costs!$A714)*('Fixed assets'!$P$2:$P$1000=Costs!$A714)*('Fixed assets'!$S$2:$S$1000))","v":0},{"$f":"D626+SUMPRODUCT(('Fixed assets'!$Q$2:$Q$1000=Costs!D$705)*('Fixed assets'!$U$2:$U$1000>Costs!$A714)*('Fixed assets'!$P$2:$P$1000=Costs!$A714)*('Fixed assets'!$R$2:$R$1000))-SUMPRODUCT(('Fixed assets'!$Q$2:$Q$1000=Costs!D$705)*('Fixed assets'!$U$2:$U$1000>Costs!$A714)*('Fixed assets'!$P$2:$P$1000=Costs!$A714)*('Fixed assets'!$S$2:$S$1000))","v":0},{"$f":"E626+SUMPRODUCT(('Fixed assets'!$Q$2:$Q$1000=Costs!E$705)*('Fixed assets'!$U$2:$U$1000>Costs!$A714)*('Fixed assets'!$P$2:$P$1000=Costs!$A714)*('Fixed assets'!$R$2:$R$1000))-SUMPRODUCT(('Fixed assets'!$Q$2:$Q$1000=Costs!E$705)*('Fixed assets'!$U$2:$U$1000>Costs!$A714)*('Fixed assets'!$P$2:$P$1000=Costs!$A714)*('Fixed assets'!$S$2:$S$1000))","v":0},{"$f":"F626+SUMPRODUCT(('Fixed assets'!$Q$2:$Q$1000=Costs!F$705)*('Fixed assets'!$U$2:$U$1000>Costs!$A714)*('Fixed assets'!$P$2:$P$1000=Costs!$A714)*('Fixed assets'!$R$2:$R$1000))-SUMPRODUCT(('Fixed assets'!$Q$2:$Q$1000=Costs!F$705)*('Fixed assets'!$U$2:$U$1000>Costs!$A714)*('Fixed assets'!$P$2:$P$1000=Costs!$A714)*('Fixed assets'!$S$2:$S$1000))","v":0},{"$f":"G626+SUMPRODUCT(('Fixed assets'!$Q$2:$Q$1000=Costs!G$705)*('Fixed assets'!$U$2:$U$1000>Costs!$A714)*('Fixed assets'!$P$2:$P$1000=Costs!$A714)*('Fixed assets'!$R$2:$R$1000))-SUMPRODUCT(('Fixed assets'!$Q$2:$Q$1000=Costs!G$705)*('Fixed assets'!$U$2:$U$1000>Costs!$A714)*('Fixed assets'!$P$2:$P$1000=Costs!$A714)*('Fixed assets'!$S$2:$S$1000))","v":0},{"$f":"H626+SUMPRODUCT(('Fixed assets'!$Q$2:$Q$1000=Costs!H$705)*('Fixed assets'!$U$2:$U$1000>Costs!$A714)*('Fixed assets'!$P$2:$P$1000=Costs!$A714)*('Fixed assets'!$R$2:$R$1000))-SUMPRODUCT(('Fixed assets'!$Q$2:$Q$1000=Costs!H$705)*('Fixed assets'!$U$2:$U$1000>Costs!$A714)*('Fixed assets'!$P$2:$P$1000=Costs!$A714)*('Fixed assets'!$S$2:$S$1000))","v":0},{"$f":"I626+SUMPRODUCT(('Fixed assets'!$Q$2:$Q$1000=Costs!I$705)*('Fixed assets'!$U$2:$U$1000>Costs!$A714)*('Fixed assets'!$P$2:$P$1000=Costs!$A714)*('Fixed assets'!$R$2:$R$1000))-SUMPRODUCT(('Fixed assets'!$Q$2:$Q$1000=Costs!I$705)*('Fixed assets'!$U$2:$U$1000>Costs!$A714)*('Fixed assets'!$P$2:$P$1000=Costs!$A714)*('Fixed assets'!$S$2:$S$1000))","v":0},{"$f":"J626+SUMPRODUCT(('Fixed assets'!$Q$2:$Q$1000=Costs!J$705)*('Fixed assets'!$U$2:$U$1000>Costs!$A714)*('Fixed assets'!$P$2:$P$1000=Costs!$A714)*('Fixed assets'!$R$2:$R$1000))-SUMPRODUCT(('Fixed assets'!$Q$2:$Q$1000=Costs!J$705)*('Fixed assets'!$U$2:$U$1000>Costs!$A714)*('Fixed assets'!$P$2:$P$1000=Costs!$A714)*('Fixed assets'!$S$2:$S$1000))","v":0},{"$f":"K626+SUMPRODUCT(('Fixed assets'!$Q$2:$Q$1000=Costs!K$705)*('Fixed assets'!$U$2:$U$1000>Costs!$A714)*('Fixed assets'!$P$2:$P$1000=Costs!$A714)*('Fixed assets'!$R$2:$R$1000))-SUMPRODUCT(('Fixed assets'!$Q$2:$Q$1000=Costs!K$705)*('Fixed assets'!$U$2:$U$1000>Costs!$A714)*('Fixed assets'!$P$2:$P$1000=Costs!$A714)*('Fixed assets'!$S$2:$S$1000))","v":0},{"$f":"L626+SUMPRODUCT(('Fixed assets'!$Q$2:$Q$1000=Costs!L$705)*('Fixed assets'!$U$2:$U$1000>Costs!$A714)*('Fixed assets'!$P$2:$P$1000=Costs!$A714)*('Fixed assets'!$R$2:$R$1000))-SUMPRODUCT(('Fixed assets'!$Q$2:$Q$1000=Costs!L$705)*('Fixed assets'!$U$2:$U$1000>Costs!$A714)*('Fixed assets'!$P$2:$P$1000=Costs!$A714)*('Fixed assets'!$S$2:$S$1000))","v":0},{"$f":"M626+SUMPRODUCT(('Fixed assets'!$Q$2:$Q$1000=Costs!M$705)*('Fixed assets'!$U$2:$U$1000>Costs!$A714)*('Fixed assets'!$P$2:$P$1000=Costs!$A714)*('Fixed assets'!$R$2:$R$1000))-SUMPRODUCT(('Fixed assets'!$Q$2:$Q$1000=Costs!M$705)*('Fixed assets'!$U$2:$U$1000>Costs!$A714)*('Fixed assets'!$P$2:$P$1000=Costs!$A714)*('Fixed assets'!$S$2:$S$1000))","v":0},{"$f":"N626+SUMPRODUCT(('Fixed assets'!$Q$2:$Q$1000=Costs!N$705)*('Fixed assets'!$U$2:$U$1000>Costs!$A714)*('Fixed assets'!$P$2:$P$1000=Costs!$A714)*('Fixed assets'!$R$2:$R$1000))-SUMPRODUCT(('Fixed assets'!$Q$2:$Q$1000=Costs!N$705)*('Fixed assets'!$U$2:$U$1000>Costs!$A714)*('Fixed assets'!$P$2:$P$1000=Costs!$A714)*('Fixed assets'!$S$2:$S$1000))","v":0},{"$f":"O626+SUMPRODUCT(('Fixed assets'!$Q$2:$Q$1000=Costs!O$705)*('Fixed assets'!$U$2:$U$1000>Costs!$A714)*('Fixed assets'!$P$2:$P$1000=Costs!$A714)*('Fixed assets'!$R$2:$R$1000))-SUMPRODUCT(('Fixed assets'!$Q$2:$Q$1000=Costs!O$705)*('Fixed assets'!$U$2:$U$1000>Costs!$A714)*('Fixed assets'!$P$2:$P$1000=Costs!$A714)*('Fixed assets'!$S$2:$S$1000))","v":0},{"$f":"P626+SUMPRODUCT(('Fixed assets'!$Q$2:$Q$1000=Costs!P$705)*('Fixed assets'!$U$2:$U$1000>Costs!$A714)*('Fixed assets'!$P$2:$P$1000=Costs!$A714)*('Fixed assets'!$R$2:$R$1000))-SUMPRODUCT(('Fixed assets'!$Q$2:$Q$1000=Costs!P$705)*('Fixed assets'!$U$2:$U$1000>Costs!$A714)*('Fixed assets'!$P$2:$P$1000=Costs!$A714)*('Fixed assets'!$S$2:$S$1000))","v":90000000},{"$f":"Q626+SUMPRODUCT(('Fixed assets'!$Q$2:$Q$1000=Costs!Q$705)*('Fixed assets'!$U$2:$U$1000>Costs!$A714)*('Fixed assets'!$P$2:$P$1000=Costs!$A714)*('Fixed assets'!$R$2:$R$1000))-SUMPRODUCT(('Fixed assets'!$Q$2:$Q$1000=Costs!Q$705)*('Fixed assets'!$U$2:$U$1000>Costs!$A714)*('Fixed assets'!$P$2:$P$1000=Costs!$A714)*('Fixed assets'!$S$2:$S$1000))","v":0},{"$f":"R626+SUMPRODUCT(('Fixed assets'!$Q$2:$Q$1000=Costs!R$705)*('Fixed assets'!$U$2:$U$1000>Costs!$A714)*('Fixed assets'!$P$2:$P$1000=Costs!$A714)*('Fixed assets'!$R$2:$R$1000))-SUMPRODUCT(('Fixed assets'!$Q$2:$Q$1000=Costs!R$705)*('Fixed assets'!$U$2:$U$1000>Costs!$A714)*('Fixed assets'!$P$2:$P$1000=Costs!$A714)*('Fixed assets'!$S$2:$S$1000))","v":0},{"$f":"S626+SUMPRODUCT(('Fixed assets'!$Q$2:$Q$1000=Costs!S$705)*('Fixed assets'!$U$2:$U$1000>Costs!$A714)*('Fixed assets'!$P$2:$P$1000=Costs!$A714)*('Fixed assets'!$R$2:$R$1000))-SUMPRODUCT(('Fixed assets'!$Q$2:$Q$1000=Costs!S$705)*('Fixed assets'!$U$2:$U$1000>Costs!$A714)*('Fixed assets'!$P$2:$P$1000=Costs!$A714)*('Fixed assets'!$S$2:$S$1000))","v":0},{"$f":"T626+SUMPRODUCT(('Fixed assets'!$Q$2:$Q$1000=Costs!T$705)*('Fixed assets'!$U$2:$U$1000>Costs!$A714)*('Fixed assets'!$P$2:$P$1000=Costs!$A714)*('Fixed assets'!$R$2:$R$1000))-SUMPRODUCT(('Fixed assets'!$Q$2:$Q$1000=Costs!T$705)*('Fixed assets'!$U$2:$U$1000>Costs!$A714)*('Fixed assets'!$P$2:$P$1000=Costs!$A714)*('Fixed assets'!$S$2:$S$1000))","v":0},{"$f":"U626+SUMPRODUCT(('Fixed assets'!$Q$2:$Q$1000=Costs!U$705)*('Fixed assets'!$U$2:$U$1000>Costs!$A714)*('Fixed assets'!$P$2:$P$1000=Costs!$A714)*('Fixed assets'!$R$2:$R$1000))-SUMPRODUCT(('Fixed assets'!$Q$2:$Q$1000=Costs!U$705)*('Fixed assets'!$U$2:$U$1000>Costs!$A714)*('Fixed assets'!$P$2:$P$1000=Costs!$A714)*('Fixed assets'!$S$2:$S$1000))","v":0},{"$f":"V626+SUMPRODUCT(('Fixed assets'!$Q$2:$Q$1000=Costs!V$705)*('Fixed assets'!$U$2:$U$1000>Costs!$A714)*('Fixed assets'!$P$2:$P$1000=Costs!$A714)*('Fixed assets'!$R$2:$R$1000))-SUMPRODUCT(('Fixed assets'!$Q$2:$Q$1000=Costs!V$705)*('Fixed assets'!$U$2:$U$1000>Costs!$A714)*('Fixed assets'!$P$2:$P$1000=Costs!$A714)*('Fixed assets'!$S$2:$S$1000))","v":0},{"$f":"W626+SUMPRODUCT(('Fixed assets'!$Q$2:$Q$1000=Costs!W$705)*('Fixed assets'!$U$2:$U$1000>Costs!$A714)*('Fixed assets'!$P$2:$P$1000=Costs!$A714)*('Fixed assets'!$R$2:$R$1000))-SUMPRODUCT(('Fixed assets'!$Q$2:$Q$1000=Costs!W$705)*('Fixed assets'!$U$2:$U$1000>Costs!$A714)*('Fixed assets'!$P$2:$P$1000=Costs!$A714)*('Fixed assets'!$S$2:$S$1000))","v":0},{"$f":"X626+SUMPRODUCT(('Fixed assets'!$Q$2:$Q$1000=Costs!X$705)*('Fixed assets'!$U$2:$U$1000>Costs!$A714)*('Fixed assets'!$P$2:$P$1000=Costs!$A714)*('Fixed assets'!$R$2:$R$1000))-SUMPRODUCT(('Fixed assets'!$Q$2:$Q$1000=Costs!X$705)*('Fixed assets'!$U$2:$U$1000>Costs!$A714)*('Fixed assets'!$P$2:$P$1000=Costs!$A714)*('Fixed assets'!$S$2:$S$1000))","v":0},{"$f":"Y626+SUMPRODUCT(('Fixed assets'!$Q$2:$Q$1000=Costs!Y$705)*('Fixed assets'!$U$2:$U$1000>Costs!$A714)*('Fixed assets'!$P$2:$P$1000=Costs!$A714)*('Fixed assets'!$R$2:$R$1000))-SUMPRODUCT(('Fixed assets'!$Q$2:$Q$1000=Costs!Y$705)*('Fixed assets'!$U$2:$U$1000>Costs!$A714)*('Fixed assets'!$P$2:$P$1000=Costs!$A714)*('Fixed assets'!$S$2:$S$1000))","v":0},{"$f":"Z626+SUMPRODUCT(('Fixed assets'!$Q$2:$Q$1000=Costs!Z$705)*('Fixed assets'!$U$2:$U$1000>Costs!$A714)*('Fixed assets'!$P$2:$P$1000=Costs!$A714)*('Fixed assets'!$R$2:$R$1000))-SUMPRODUCT(('Fixed assets'!$Q$2:$Q$1000=Costs!Z$705)*('Fixed assets'!$U$2:$U$1000>Costs!$A714)*('Fixed assets'!$P$2:$P$1000=Costs!$A714)*('Fixed assets'!$S$2:$S$1000))","v":0},{"$f":"AA626+SUMPRODUCT(('Fixed assets'!$Q$2:$Q$1000=Costs!AA$705)*('Fixed assets'!$U$2:$U$1000>Costs!$A714)*('Fixed assets'!$P$2:$P$1000=Costs!$A714)*('Fixed assets'!$R$2:$R$1000))-SUMPRODUCT(('Fixed assets'!$Q$2:$Q$1000=Costs!AA$705)*('Fixed assets'!$U$2:$U$1000>Costs!$A714)*('Fixed assets'!$P$2:$P$1000=Costs!$A714)*('Fixed assets'!$S$2:$S$1000))","v":0},{"$f":"AB626+SUMPRODUCT(('Fixed assets'!$Q$2:$Q$1000=Costs!AB$705)*('Fixed assets'!$U$2:$U$1000>Costs!$A714)*('Fixed assets'!$P$2:$P$1000=Costs!$A714)*('Fixed assets'!$R$2:$R$1000))-SUMPRODUCT(('Fixed assets'!$Q$2:$Q$1000=Costs!AB$705)*('Fixed assets'!$U$2:$U$1000>Costs!$A714)*('Fixed assets'!$P$2:$P$1000=Costs!$A714)*('Fixed assets'!$S$2:$S$1000))","v":0},{"$f":"AC626+SUMPRODUCT(('Fixed assets'!$Q$2:$Q$1000=Costs!AC$705)*('Fixed assets'!$U$2:$U$1000>Costs!$A714)*('Fixed assets'!$P$2:$P$1000=Costs!$A714)*('Fixed assets'!$R$2:$R$1000))-SUMPRODUCT(('Fixed assets'!$Q$2:$Q$1000=Costs!AC$705)*('Fixed assets'!$U$2:$U$1000>Costs!$A714)*('Fixed assets'!$P$2:$P$1000=Costs!$A714)*('Fixed assets'!$S$2:$S$1000))","v":0},{"$f":"AD626+SUMPRODUCT(('Fixed assets'!$Q$2:$Q$1000=Costs!AD$705)*('Fixed assets'!$U$2:$U$1000>Costs!$A714)*('Fixed assets'!$P$2:$P$1000=Costs!$A714)*('Fixed assets'!$R$2:$R$1000))-SUMPRODUCT(('Fixed assets'!$Q$2:$Q$1000=Costs!AD$705)*('Fixed assets'!$U$2:$U$1000>Costs!$A714)*('Fixed assets'!$P$2:$P$1000=Costs!$A714)*('Fixed assets'!$S$2:$S$1000))","v":0},{"$f":"AE626+SUMPRODUCT(('Fixed assets'!$Q$2:$Q$1000=Costs!AE$705)*('Fixed assets'!$U$2:$U$1000>Costs!$A714)*('Fixed assets'!$P$2:$P$1000=Costs!$A714)*('Fixed assets'!$R$2:$R$1000))-SUMPRODUCT(('Fixed assets'!$Q$2:$Q$1000=Costs!AE$705)*('Fixed assets'!$U$2:$U$1000>Costs!$A714)*('Fixed assets'!$P$2:$P$1000=Costs!$A714)*('Fixed assets'!$S$2:$S$1000))","v":0},{"$f":"AF626+SUMPRODUCT(('Fixed assets'!$Q$2:$Q$1000=Costs!AF$705)*('Fixed assets'!$U$2:$U$1000>Costs!$A714)*('Fixed assets'!$P$2:$P$1000=Costs!$A714)*('Fixed assets'!$R$2:$R$1000))-SUMPRODUCT(('Fixed assets'!$Q$2:$Q$1000=Costs!AF$705)*('Fixed assets'!$U$2:$U$1000>Costs!$A714)*('Fixed assets'!$P$2:$P$1000=Costs!$A714)*('Fixed assets'!$S$2:$S$1000))","v":0},{"$f":"AG626+SUMPRODUCT(('Fixed assets'!$Q$2:$Q$1000=Costs!AG$705)*('Fixed assets'!$U$2:$U$1000>Costs!$A714)*('Fixed assets'!$P$2:$P$1000=Costs!$A714)*('Fixed assets'!$R$2:$R$1000))-SUMPRODUCT(('Fixed assets'!$Q$2:$Q$1000=Costs!AG$705)*('Fixed assets'!$U$2:$U$1000>Costs!$A714)*('Fixed assets'!$P$2:$P$1000=Costs!$A714)*('Fixed assets'!$S$2:$S$1000))","v":0},{"$f":"AH626+SUMPRODUCT(('Fixed assets'!$Q$2:$Q$1000=Costs!AH$705)*('Fixed assets'!$U$2:$U$1000>Costs!$A714)*('Fixed assets'!$P$2:$P$1000=Costs!$A714)*('Fixed assets'!$R$2:$R$1000))-SUMPRODUCT(('Fixed assets'!$Q$2:$Q$1000=Costs!AH$705)*('Fixed assets'!$U$2:$U$1000>Costs!$A714)*('Fixed assets'!$P$2:$P$1000=Costs!$A714)*('Fixed assets'!$S$2:$S$1000))","v":0},{"$f":"AI626+SUMPRODUCT(('Fixed assets'!$Q$2:$Q$1000=Costs!AI$705)*('Fixed assets'!$U$2:$U$1000>Costs!$A714)*('Fixed assets'!$P$2:$P$1000=Costs!$A714)*('Fixed assets'!$R$2:$R$1000))-SUMPRODUCT(('Fixed assets'!$Q$2:$Q$1000=Costs!AI$705)*('Fixed assets'!$U$2:$U$1000>Costs!$A714)*('Fixed assets'!$P$2:$P$1000=Costs!$A714)*('Fixed assets'!$S$2:$S$1000))","v":0},{"$f":"AJ626+SUMPRODUCT(('Fixed assets'!$Q$2:$Q$1000=Costs!AJ$705)*('Fixed assets'!$U$2:$U$1000>Costs!$A714)*('Fixed assets'!$P$2:$P$1000=Costs!$A714)*('Fixed assets'!$R$2:$R$1000))-SUMPRODUCT(('Fixed assets'!$Q$2:$Q$1000=Costs!AJ$705)*('Fixed assets'!$U$2:$U$1000>Costs!$A714)*('Fixed assets'!$P$2:$P$1000=Costs!$A714)*('Fixed assets'!$S$2:$S$1000))","v":0},{"$f":"AK626+SUMPRODUCT(('Fixed assets'!$Q$2:$Q$1000=Costs!AK$705)*('Fixed assets'!$U$2:$U$1000>Costs!$A714)*('Fixed assets'!$P$2:$P$1000=Costs!$A714)*('Fixed assets'!$R$2:$R$1000))-SUMPRODUCT(('Fixed assets'!$Q$2:$Q$1000=Costs!AK$705)*('Fixed assets'!$U$2:$U$1000>Costs!$A714)*('Fixed assets'!$P$2:$P$1000=Costs!$A714)*('Fixed assets'!$S$2:$S$1000))","v":0},{"$f":"AL626+SUMPRODUCT(('Fixed assets'!$Q$2:$Q$1000=Costs!AL$705)*('Fixed assets'!$U$2:$U$1000>Costs!$A714)*('Fixed assets'!$P$2:$P$1000=Costs!$A714)*('Fixed assets'!$R$2:$R$1000))-SUMPRODUCT(('Fixed assets'!$Q$2:$Q$1000=Costs!AL$705)*('Fixed assets'!$U$2:$U$1000>Costs!$A714)*('Fixed assets'!$P$2:$P$1000=Costs!$A714)*('Fixed assets'!$S$2:$S$1000))","v":0},{"$f":"AM626+SUMPRODUCT(('Fixed assets'!$Q$2:$Q$1000=Costs!AM$705)*('Fixed assets'!$U$2:$U$1000>Costs!$A714)*('Fixed assets'!$P$2:$P$1000=Costs!$A714)*('Fixed assets'!$R$2:$R$1000))-SUMPRODUCT(('Fixed assets'!$Q$2:$Q$1000=Costs!AM$705)*('Fixed assets'!$U$2:$U$1000>Costs!$A714)*('Fixed assets'!$P$2:$P$1000=Costs!$A714)*('Fixed assets'!$S$2:$S$1000))","v":0},{"$f":"AN626+SUMPRODUCT(('Fixed assets'!$Q$2:$Q$1000=Costs!AN$705)*('Fixed assets'!$U$2:$U$1000>Costs!$A714)*('Fixed assets'!$P$2:$P$1000=Costs!$A714)*('Fixed assets'!$R$2:$R$1000))-SUMPRODUCT(('Fixed assets'!$Q$2:$Q$1000=Costs!AN$705)*('Fixed assets'!$U$2:$U$1000>Costs!$A714)*('Fixed assets'!$P$2:$P$1000=Costs!$A714)*('Fixed assets'!$S$2:$S$1000))","v":0},{"$f":"AO626+SUMPRODUCT(('Fixed assets'!$Q$2:$Q$1000=Costs!AO$705)*('Fixed assets'!$U$2:$U$1000>Costs!$A714)*('Fixed assets'!$P$2:$P$1000=Costs!$A714)*('Fixed assets'!$R$2:$R$1000))-SUMPRODUCT(('Fixed assets'!$Q$2:$Q$1000=Costs!AO$705)*('Fixed assets'!$U$2:$U$1000>Costs!$A714)*('Fixed assets'!$P$2:$P$1000=Costs!$A714)*('Fixed assets'!$S$2:$S$1000))","v":0},{"$f":"AP626+SUMPRODUCT(('Fixed assets'!$Q$2:$Q$1000=Costs!AP$705)*('Fixed assets'!$U$2:$U$1000>Costs!$A714)*('Fixed assets'!$P$2:$P$1000=Costs!$A714)*('Fixed assets'!$R$2:$R$1000))-SUMPRODUCT(('Fixed assets'!$Q$2:$Q$1000=Costs!AP$705)*('Fixed assets'!$U$2:$U$1000>Costs!$A714)*('Fixed assets'!$P$2:$P$1000=Costs!$A714)*('Fixed assets'!$S$2:$S$1000))","v":0},{"$f":"AQ626+SUMPRODUCT(('Fixed assets'!$Q$2:$Q$1000=Costs!AQ$705)*('Fixed assets'!$U$2:$U$1000>Costs!$A714)*('Fixed assets'!$P$2:$P$1000=Costs!$A714)*('Fixed assets'!$R$2:$R$1000))-SUMPRODUCT(('Fixed assets'!$Q$2:$Q$1000=Costs!AQ$705)*('Fixed assets'!$U$2:$U$1000>Costs!$A714)*('Fixed assets'!$P$2:$P$1000=Costs!$A714)*('Fixed assets'!$S$2:$S$1000))","v":0}]
[2024,151000000,{"$f":"C627+SUMPRODUCT(('Fixed assets'!$Q$2:$Q$1000=Costs!C$705)*('Fixed assets'!$U$2:$U$1000>Costs!$A715)*('Fixed assets'!$P$2:$P$1000=Costs!$A715)*('Fixed assets'!$R$2:$R$1000))-SUMPRODUCT(('Fixed assets'!$Q$2:$Q$1000=Costs!C$705)*('Fixed assets'!$U$2:$U$1000>Costs!$A715)*('Fixed assets'!$P$2:$P$1000=Costs!$A715)*('Fixed assets'!$S$2:$S$1000))","v":0},{"$f":"D627+SUMPRODUCT(('Fixed assets'!$Q$2:$Q$1000=Costs!D$705)*('Fixed assets'!$U$2:$U$1000>Costs!$A715)*('Fixed assets'!$P$2:$P$1000=Costs!$A715)*('Fixed assets'!$R$2:$R$1000))-SUMPRODUCT(('Fixed assets'!$Q$2:$Q$1000=Costs!D$705)*('Fixed assets'!$U$2:$U$1000>Costs!$A715)*('Fixed assets'!$P$2:$P$1000=Costs!$A715)*('Fixed assets'!$S$2:$S$1000))","v":0},{"$f":"E627+SUMPRODUCT(('Fixed assets'!$Q$2:$Q$1000=Costs!E$705)*('Fixed assets'!$U$2:$U$1000>Costs!$A715)*('Fixed assets'!$P$2:$P$1000=Costs!$A715)*('Fixed assets'!$R$2:$R$1000))-SUMPRODUCT(('Fixed assets'!$Q$2:$Q$1000=Costs!E$705)*('Fixed assets'!$U$2:$U$1000>Costs!$A715)*('Fixed assets'!$P$2:$P$1000=Costs!$A715)*('Fixed assets'!$S$2:$S$1000))","v":0},{"$f":"F627+SUMPRODUCT(('Fixed assets'!$Q$2:$Q$1000=Costs!F$705)*('Fixed assets'!$U$2:$U$1000>Costs!$A715)*('Fixed assets'!$P$2:$P$1000=Costs!$A715)*('Fixed assets'!$R$2:$R$1000))-SUMPRODUCT(('Fixed assets'!$Q$2:$Q$1000=Costs!F$705)*('Fixed assets'!$U$2:$U$1000>Costs!$A715)*('Fixed assets'!$P$2:$P$1000=Costs!$A715)*('Fixed assets'!$S$2:$S$1000))","v":0},{"$f":"G627+SUMPRODUCT(('Fixed assets'!$Q$2:$Q$1000=Costs!G$705)*('Fixed assets'!$U$2:$U$1000>Costs!$A715)*('Fixed assets'!$P$2:$P$1000=Costs!$A715)*('Fixed assets'!$R$2:$R$1000))-SUMPRODUCT(('Fixed assets'!$Q$2:$Q$1000=Costs!G$705)*('Fixed assets'!$U$2:$U$1000>Costs!$A715)*('Fixed assets'!$P$2:$P$1000=Costs!$A715)*('Fixed assets'!$S$2:$S$1000))","v":0},{"$f":"H627+SUMPRODUCT(('Fixed assets'!$Q$2:$Q$1000=Costs!H$705)*('Fixed assets'!$U$2:$U$1000>Costs!$A715)*('Fixed assets'!$P$2:$P$1000=Costs!$A715)*('Fixed assets'!$R$2:$R$1000))-SUMPRODUCT(('Fixed assets'!$Q$2:$Q$1000=Costs!H$705)*('Fixed assets'!$U$2:$U$1000>Costs!$A715)*('Fixed assets'!$P$2:$P$1000=Costs!$A715)*('Fixed assets'!$S$2:$S$1000))","v":0},{"$f":"I627+SUMPRODUCT(('Fixed assets'!$Q$2:$Q$1000=Costs!I$705)*('Fixed assets'!$U$2:$U$1000>Costs!$A715)*('Fixed assets'!$P$2:$P$1000=Costs!$A715)*('Fixed assets'!$R$2:$R$1000))-SUMPRODUCT(('Fixed assets'!$Q$2:$Q$1000=Costs!I$705)*('Fixed assets'!$U$2:$U$1000>Costs!$A715)*('Fixed assets'!$P$2:$P$1000=Costs!$A715)*('Fixed assets'!$S$2:$S$1000))","v":0},{"$f":"J627+SUMPRODUCT(('Fixed assets'!$Q$2:$Q$1000=Costs!J$705)*('Fixed assets'!$U$2:$U$1000>Costs!$A715)*('Fixed assets'!$P$2:$P$1000=Costs!$A715)*('Fixed assets'!$R$2:$R$1000))-SUMPRODUCT(('Fixed assets'!$Q$2:$Q$1000=Costs!J$705)*('Fixed assets'!$U$2:$U$1000>Costs!$A715)*('Fixed assets'!$P$2:$P$1000=Costs!$A715)*('Fixed assets'!$S$2:$S$1000))","v":0},{"$f":"K627+SUMPRODUCT(('Fixed assets'!$Q$2:$Q$1000=Costs!K$705)*('Fixed assets'!$U$2:$U$1000>Costs!$A715)*('Fixed assets'!$P$2:$P$1000=Costs!$A715)*('Fixed assets'!$R$2:$R$1000))-SUMPRODUCT(('Fixed assets'!$Q$2:$Q$1000=Costs!K$705)*('Fixed assets'!$U$2:$U$1000>Costs!$A715)*('Fixed assets'!$P$2:$P$1000=Costs!$A715)*('Fixed assets'!$S$2:$S$1000))","v":0},{"$f":"L627+SUMPRODUCT(('Fixed assets'!$Q$2:$Q$1000=Costs!L$705)*('Fixed assets'!$U$2:$U$1000>Costs!$A715)*('Fixed assets'!$P$2:$P$1000=Costs!$A715)*('Fixed assets'!$R$2:$R$1000))-SUMPRODUCT(('Fixed assets'!$Q$2:$Q$1000=Costs!L$705)*('Fixed assets'!$U$2:$U$1000>Costs!$A715)*('Fixed assets'!$P$2:$P$1000=Costs!$A715)*('Fixed assets'!$S$2:$S$1000))","v":0},{"$f":"M627+SUMPRODUCT(('Fixed assets'!$Q$2:$Q$1000=Costs!M$705)*('Fixed assets'!$U$2:$U$1000>Costs!$A715)*('Fixed assets'!$P$2:$P$1000=Costs!$A715)*('Fixed assets'!$R$2:$R$1000))-SUMPRODUCT(('Fixed assets'!$Q$2:$Q$1000=Costs!M$705)*('Fixed assets'!$U$2:$U$1000>Costs!$A715)*('Fixed assets'!$P$2:$P$1000=Costs!$A715)*('Fixed assets'!$S$2:$S$1000))","v":0},{"$f":"N627+SUMPRODUCT(('Fixed assets'!$Q$2:$Q$1000=Costs!N$705)*('Fixed assets'!$U$2:$U$1000>Costs!$A715)*('Fixed assets'!$P$2:$P$1000=Costs!$A715)*('Fixed assets'!$R$2:$R$1000))-SUMPRODUCT(('Fixed assets'!$Q$2:$Q$1000=Costs!N$705)*('Fixed assets'!$U$2:$U$1000>Costs!$A715)*('Fixed assets'!$P$2:$P$1000=Costs!$A715)*('Fixed assets'!$S$2:$S$1000))","v":0},{"$f":"O627+SUMPRODUCT(('Fixed assets'!$Q$2:$Q$1000=Costs!O$705)*('Fixed assets'!$U$2:$U$1000>Costs!$A715)*('Fixed assets'!$P$2:$P$1000=Costs!$A715)*('Fixed assets'!$R$2:$R$1000))-SUMPRODUCT(('Fixed assets'!$Q$2:$Q$1000=Costs!O$705)*('Fixed assets'!$U$2:$U$1000>Costs!$A715)*('Fixed assets'!$P$2:$P$1000=Costs!$A715)*('Fixed assets'!$S$2:$S$1000))","v":0},{"$f":"P627+SUMPRODUCT(('Fixed assets'!$Q$2:$Q$1000=Costs!P$705)*('Fixed assets'!$U$2:$U$1000>Costs!$A715)*('Fixed assets'!$P$2:$P$1000=Costs!$A715)*('Fixed assets'!$R$2:$R$1000))-SUMPRODUCT(('Fixed assets'!$Q$2:$Q$1000=Costs!P$705)*('Fixed assets'!$U$2:$U$1000>Costs!$A715)*('Fixed assets'!$P$2:$P$1000=Costs!$A715)*('Fixed assets'!$S$2:$S$1000))","v":150000000},{"$f":"Q627+SUMPRODUCT(('Fixed assets'!$Q$2:$Q$1000=Costs!Q$705)*('Fixed assets'!$U$2:$U$1000>Costs!$A715)*('Fixed assets'!$P$2:$P$1000=Costs!$A715)*('Fixed assets'!$R$2:$R$1000))-SUMPRODUCT(('Fixed assets'!$Q$2:$Q$1000=Costs!Q$705)*('Fixed assets'!$U$2:$U$1000>Costs!$A715)*('Fixed assets'!$P$2:$P$1000=Costs!$A715)*('Fixed assets'!$S$2:$S$1000))","v":0},{"$f":"R627+SUMPRODUCT(('Fixed assets'!$Q$2:$Q$1000=Costs!R$705)*('Fixed assets'!$U$2:$U$1000>Costs!$A715)*('Fixed assets'!$P$2:$P$1000=Costs!$A715)*('Fixed assets'!$R$2:$R$1000))-SUMPRODUCT(('Fixed assets'!$Q$2:$Q$1000=Costs!R$705)*('Fixed assets'!$U$2:$U$1000>Costs!$A715)*('Fixed assets'!$P$2:$P$1000=Costs!$A715)*('Fixed assets'!$S$2:$S$1000))","v":0},{"$f":"S627+SUMPRODUCT(('Fixed assets'!$Q$2:$Q$1000=Costs!S$705)*('Fixed assets'!$U$2:$U$1000>Costs!$A715)*('Fixed assets'!$P$2:$P$1000=Costs!$A715)*('Fixed assets'!$R$2:$R$1000))-SUMPRODUCT(('Fixed assets'!$Q$2:$Q$1000=Costs!S$705)*('Fixed assets'!$U$2:$U$1000>Costs!$A715)*('Fixed assets'!$P$2:$P$1000=Costs!$A715)*('Fixed assets'!$S$2:$S$1000))","v":0},{"$f":"T627+SUMPRODUCT(('Fixed assets'!$Q$2:$Q$1000=Costs!T$705)*('Fixed assets'!$U$2:$U$1000>Costs!$A715)*('Fixed assets'!$P$2:$P$1000=Costs!$A715)*('Fixed assets'!$R$2:$R$1000))-SUMPRODUCT(('Fixed assets'!$Q$2:$Q$1000=Costs!T$705)*('Fixed assets'!$U$2:$U$1000>Costs!$A715)*('Fixed assets'!$P$2:$P$1000=Costs!$A715)*('Fixed assets'!$S$2:$S$1000))","v":0},{"$f":"U627+SUMPRODUCT(('Fixed assets'!$Q$2:$Q$1000=Costs!U$705)*('Fixed assets'!$U$2:$U$1000>Costs!$A715)*('Fixed assets'!$P$2:$P$1000=Costs!$A715)*('Fixed assets'!$R$2:$R$1000))-SUMPRODUCT(('Fixed assets'!$Q$2:$Q$1000=Costs!U$705)*('Fixed assets'!$U$2:$U$1000>Costs!$A715)*('Fixed assets'!$P$2:$P$1000=Costs!$A715)*('Fixed assets'!$S$2:$S$1000))","v":0},{"$f":"V627+SUMPRODUCT(('Fixed assets'!$Q$2:$Q$1000=Costs!V$705)*('Fixed assets'!$U$2:$U$1000>Costs!$A715)*('Fixed assets'!$P$2:$P$1000=Costs!$A715)*('Fixed assets'!$R$2:$R$1000))-SUMPRODUCT(('Fixed assets'!$Q$2:$Q$1000=Costs!V$705)*('Fixed assets'!$U$2:$U$1000>Costs!$A715)*('Fixed assets'!$P$2:$P$1000=Costs!$A715)*('Fixed assets'!$S$2:$S$1000))","v":0},{"$f":"W627+SUMPRODUCT(('Fixed assets'!$Q$2:$Q$1000=Costs!W$705)*('Fixed assets'!$U$2:$U$1000>Costs!$A715)*('Fixed assets'!$P$2:$P$1000=Costs!$A715)*('Fixed assets'!$R$2:$R$1000))-SUMPRODUCT(('Fixed assets'!$Q$2:$Q$1000=Costs!W$705)*('Fixed assets'!$U$2:$U$1000>Costs!$A715)*('Fixed assets'!$P$2:$P$1000=Costs!$A715)*('Fixed assets'!$S$2:$S$1000))","v":0},{"$f":"X627+SUMPRODUCT(('Fixed assets'!$Q$2:$Q$1000=Costs!X$705)*('Fixed assets'!$U$2:$U$1000>Costs!$A715)*('Fixed assets'!$P$2:$P$1000=Costs!$A715)*('Fixed assets'!$R$2:$R$1000))-SUMPRODUCT(('Fixed assets'!$Q$2:$Q$1000=Costs!X$705)*('Fixed assets'!$U$2:$U$1000>Costs!$A715)*('Fixed assets'!$P$2:$P$1000=Costs!$A715)*('Fixed assets'!$S$2:$S$1000))","v":0},{"$f":"Y627+SUMPRODUCT(('Fixed assets'!$Q$2:$Q$1000=Costs!Y$705)*('Fixed assets'!$U$2:$U$1000>Costs!$A715)*('Fixed assets'!$P$2:$P$1000=Costs!$A715)*('Fixed assets'!$R$2:$R$1000))-SUMPRODUCT(('Fixed assets'!$Q$2:$Q$1000=Costs!Y$705)*('Fixed assets'!$U$2:$U$1000>Costs!$A715)*('Fixed assets'!$P$2:$P$1000=Costs!$A715)*('Fixed assets'!$S$2:$S$1000))","v":0},{"$f":"Z627+SUMPRODUCT(('Fixed assets'!$Q$2:$Q$1000=Costs!Z$705)*('Fixed assets'!$U$2:$U$1000>Costs!$A715)*('Fixed assets'!$P$2:$P$1000=Costs!$A715)*('Fixed assets'!$R$2:$R$1000))-SUMPRODUCT(('Fixed assets'!$Q$2:$Q$1000=Costs!Z$705)*('Fixed assets'!$U$2:$U$1000>Costs!$A715)*('Fixed assets'!$P$2:$P$1000=Costs!$A715)*('Fixed assets'!$S$2:$S$1000))","v":0},{"$f":"AA627+SUMPRODUCT(('Fixed assets'!$Q$2:$Q$1000=Costs!AA$705)*('Fixed assets'!$U$2:$U$1000>Costs!$A715)*('Fixed assets'!$P$2:$P$1000=Costs!$A715)*('Fixed assets'!$R$2:$R$1000))-SUMPRODUCT(('Fixed assets'!$Q$2:$Q$1000=Costs!AA$705)*('Fixed assets'!$U$2:$U$1000>Costs!$A715)*('Fixed assets'!$P$2:$P$1000=Costs!$A715)*('Fixed assets'!$S$2:$S$1000))","v":0},{"$f":"AB627+SUMPRODUCT(('Fixed assets'!$Q$2:$Q$1000=Costs!AB$705)*('Fixed assets'!$U$2:$U$1000>Costs!$A715)*('Fixed assets'!$P$2:$P$1000=Costs!$A715)*('Fixed assets'!$R$2:$R$1000))-SUMPRODUCT(('Fixed assets'!$Q$2:$Q$1000=Costs!AB$705)*('Fixed assets'!$U$2:$U$1000>Costs!$A715)*('Fixed assets'!$P$2:$P$1000=Costs!$A715)*('Fixed assets'!$S$2:$S$1000))","v":0},{"$f":"AC627+SUMPRODUCT(('Fixed assets'!$Q$2:$Q$1000=Costs!AC$705)*('Fixed assets'!$U$2:$U$1000>Costs!$A715)*('Fixed assets'!$P$2:$P$1000=Costs!$A715)*('Fixed assets'!$R$2:$R$1000))-SUMPRODUCT(('Fixed assets'!$Q$2:$Q$1000=Costs!AC$705)*('Fixed assets'!$U$2:$U$1000>Costs!$A715)*('Fixed assets'!$P$2:$P$1000=Costs!$A715)*('Fixed assets'!$S$2:$S$1000))","v":0},{"$f":"AD627+SUMPRODUCT(('Fixed assets'!$Q$2:$Q$1000=Costs!AD$705)*('Fixed assets'!$U$2:$U$1000>Costs!$A715)*('Fixed assets'!$P$2:$P$1000=Costs!$A715)*('Fixed assets'!$R$2:$R$1000))-SUMPRODUCT(('Fixed assets'!$Q$2:$Q$1000=Costs!AD$705)*('Fixed assets'!$U$2:$U$1000>Costs!$A715)*('Fixed assets'!$P$2:$P$1000=Costs!$A715)*('Fixed assets'!$S$2:$S$1000))","v":0},{"$f":"AE627+SUMPRODUCT(('Fixed assets'!$Q$2:$Q$1000=Costs!AE$705)*('Fixed assets'!$U$2:$U$1000>Costs!$A715)*('Fixed assets'!$P$2:$P$1000=Costs!$A715)*('Fixed assets'!$R$2:$R$1000))-SUMPRODUCT(('Fixed assets'!$Q$2:$Q$1000=Costs!AE$705)*('Fixed assets'!$U$2:$U$1000>Costs!$A715)*('Fixed assets'!$P$2:$P$1000=Costs!$A715)*('Fixed assets'!$S$2:$S$1000))","v":0},{"$f":"AF627+SUMPRODUCT(('Fixed assets'!$Q$2:$Q$1000=Costs!AF$705)*('Fixed assets'!$U$2:$U$1000>Costs!$A715)*('Fixed assets'!$P$2:$P$1000=Costs!$A715)*('Fixed assets'!$R$2:$R$1000))-SUMPRODUCT(('Fixed assets'!$Q$2:$Q$1000=Costs!AF$705)*('Fixed assets'!$U$2:$U$1000>Costs!$A715)*('Fixed assets'!$P$2:$P$1000=Costs!$A715)*('Fixed assets'!$S$2:$S$1000))","v":0},{"$f":"AG627+SUMPRODUCT(('Fixed assets'!$Q$2:$Q$1000=Costs!AG$705)*('Fixed assets'!$U$2:$U$1000>Costs!$A715)*('Fixed assets'!$P$2:$P$1000=Costs!$A715)*('Fixed assets'!$R$2:$R$1000))-SUMPRODUCT(('Fixed assets'!$Q$2:$Q$1000=Costs!AG$705)*('Fixed assets'!$U$2:$U$1000>Costs!$A715)*('Fixed assets'!$P$2:$P$1000=Costs!$A715)*('Fixed assets'!$S$2:$S$1000))","v":0},{"$f":"AH627+SUMPRODUCT(('Fixed assets'!$Q$2:$Q$1000=Costs!AH$705)*('Fixed assets'!$U$2:$U$1000>Costs!$A715)*('Fixed assets'!$P$2:$P$1000=Costs!$A715)*('Fixed assets'!$R$2:$R$1000))-SUMPRODUCT(('Fixed assets'!$Q$2:$Q$1000=Costs!AH$705)*('Fixed assets'!$U$2:$U$1000>Costs!$A715)*('Fixed assets'!$P$2:$P$1000=Costs!$A715)*('Fixed assets'!$S$2:$S$1000))","v":0},{"$f":"AI627+SUMPRODUCT(('Fixed assets'!$Q$2:$Q$1000=Costs!AI$705)*('Fixed assets'!$U$2:$U$1000>Costs!$A715)*('Fixed assets'!$P$2:$P$1000=Costs!$A715)*('Fixed assets'!$R$2:$R$1000))-SUMPRODUCT(('Fixed assets'!$Q$2:$Q$1000=Costs!AI$705)*('Fixed assets'!$U$2:$U$1000>Costs!$A715)*('Fixed assets'!$P$2:$P$1000=Costs!$A715)*('Fixed assets'!$S$2:$S$1000))","v":0},{"$f":"AJ627+SUMPRODUCT(('Fixed assets'!$Q$2:$Q$1000=Costs!AJ$705)*('Fixed assets'!$U$2:$U$1000>Costs!$A715)*('Fixed assets'!$P$2:$P$1000=Costs!$A715)*('Fixed assets'!$R$2:$R$1000))-SUMPRODUCT(('Fixed assets'!$Q$2:$Q$1000=Costs!AJ$705)*('Fixed assets'!$U$2:$U$1000>Costs!$A715)*('Fixed assets'!$P$2:$P$1000=Costs!$A715)*('Fixed assets'!$S$2:$S$1000))","v":1000000},{"$f":"AK627+SUMPRODUCT(('Fixed assets'!$Q$2:$Q$1000=Costs!AK$705)*('Fixed assets'!$U$2:$U$1000>Costs!$A715)*('Fixed assets'!$P$2:$P$1000=Costs!$A715)*('Fixed assets'!$R$2:$R$1000))-SUMPRODUCT(('Fixed assets'!$Q$2:$Q$1000=Costs!AK$705)*('Fixed assets'!$U$2:$U$1000>Costs!$A715)*('Fixed assets'!$P$2:$P$1000=Costs!$A715)*('Fixed assets'!$S$2:$S$1000))","v":0},{"$f":"AL627+SUMPRODUCT(('Fixed assets'!$Q$2:$Q$1000=Costs!AL$705)*('Fixed assets'!$U$2:$U$1000>Costs!$A715)*('Fixed assets'!$P$2:$P$1000=Costs!$A715)*('Fixed assets'!$R$2:$R$1000))-SUMPRODUCT(('Fixed assets'!$Q$2:$Q$1000=Costs!AL$705)*('Fixed assets'!$U$2:$U$1000>Costs!$A715)*('Fixed assets'!$P$2:$P$1000=Costs!$A715)*('Fixed assets'!$S$2:$S$1000))","v":0},{"$f":"AM627+SUMPRODUCT(('Fixed assets'!$Q$2:$Q$1000=Costs!AM$705)*('Fixed assets'!$U$2:$U$1000>Costs!$A715)*('Fixed assets'!$P$2:$P$1000=Costs!$A715)*('Fixed assets'!$R$2:$R$1000))-SUMPRODUCT(('Fixed assets'!$Q$2:$Q$1000=Costs!AM$705)*('Fixed assets'!$U$2:$U$1000>Costs!$A715)*('Fixed assets'!$P$2:$P$1000=Costs!$A715)*('Fixed assets'!$S$2:$S$1000))","v":0},{"$f":"AN627+SUMPRODUCT(('Fixed assets'!$Q$2:$Q$1000=Costs!AN$705)*('Fixed assets'!$U$2:$U$1000>Costs!$A715)*('Fixed assets'!$P$2:$P$1000=Costs!$A715)*('Fixed assets'!$R$2:$R$1000))-SUMPRODUCT(('Fixed assets'!$Q$2:$Q$1000=Costs!AN$705)*('Fixed assets'!$U$2:$U$1000>Costs!$A715)*('Fixed assets'!$P$2:$P$1000=Costs!$A715)*('Fixed assets'!$S$2:$S$1000))","v":0},{"$f":"AO627+SUMPRODUCT(('Fixed assets'!$Q$2:$Q$1000=Costs!AO$705)*('Fixed assets'!$U$2:$U$1000>Costs!$A715)*('Fixed assets'!$P$2:$P$1000=Costs!$A715)*('Fixed assets'!$R$2:$R$1000))-SUMPRODUCT(('Fixed assets'!$Q$2:$Q$1000=Costs!AO$705)*('Fixed assets'!$U$2:$U$1000>Costs!$A715)*('Fixed assets'!$P$2:$P$1000=Costs!$A715)*('Fixed assets'!$S$2:$S$1000))","v":0},{"$f":"AP627+SUMPRODUCT(('Fixed assets'!$Q$2:$Q$1000=Costs!AP$705)*('Fixed assets'!$U$2:$U$1000>Costs!$A715)*('Fixed assets'!$P$2:$P$1000=Costs!$A715)*('Fixed assets'!$R$2:$R$1000))-SUMPRODUCT(('Fixed assets'!$Q$2:$Q$1000=Costs!AP$705)*('Fixed assets'!$U$2:$U$1000>Costs!$A715)*('Fixed assets'!$P$2:$P$1000=Costs!$A715)*('Fixed assets'!$S$2:$S$1000))","v":0},{"$f":"AQ627+SUMPRODUCT(('Fixed assets'!$Q$2:$Q$1000=Costs!AQ$705)*('Fixed assets'!$U$2:$U$1000>Costs!$A715)*('Fixed assets'!$P$2:$P$1000=Costs!$A715)*('Fixed assets'!$R$2:$R$1000))-SUMPRODUCT(('Fixed assets'!$Q$2:$Q$1000=Costs!AQ$705)*('Fixed assets'!$U$2:$U$1000>Costs!$A715)*('Fixed assets'!$P$2:$P$1000=Costs!$A715)*('Fixed assets'!$S$2:$S$1000))","v":0}]
[2025,0,{"$f":"C628+SUMPRODUCT(('Fixed assets'!$Q$2:$Q$1000=Costs!C$705)*('Fixed assets'!$U$2:$U$1000>Costs!$A716)*('Fixed assets'!$P$2:$P$1000=Costs!$A716)*('Fixed assets'!$R$2:$R$1000))-SUMPRODUCT(('Fixed assets'!$Q$2:$Q$1000=Costs!C$705)*('Fixed assets'!$U$2:$U$1000>Costs!$A716)*('Fixed assets'!$P$2:$P$1000=Costs!$A716)*('Fixed assets'!$S$2:$S$1000))","v":0},{"$f":"D628+SUMPRODUCT(('Fixed assets'!$Q$2:$Q$1000=Costs!D$705)*('Fixed assets'!$U$2:$U$1000>Costs!$A716)*('Fixed assets'!$P$2:$P$1000=Costs!$A716)*('Fixed assets'!$R$2:$R$1000))-SUMPRODUCT(('Fixed assets'!$Q$2:$Q$1000=Costs!D$705)*('Fixed assets'!$U$2:$U$1000>Costs!$A716)*('Fixed assets'!$P$2:$P$1000=Costs!$A716)*('Fixed assets'!$S$2:$S$1000))","v":0},{"$f":"E628+SUMPRODUCT(('Fixed assets'!$Q$2:$Q$1000=Costs!E$705)*('Fixed assets'!$U$2:$U$1000>Costs!$A716)*('Fixed assets'!$P$2:$P$1000=Costs!$A716)*('Fixed assets'!$R$2:$R$1000))-SUMPRODUCT(('Fixed assets'!$Q$2:$Q$1000=Costs!E$705)*('Fixed assets'!$U$2:$U$1000>Costs!$A716)*('Fixed assets'!$P$2:$P$1000=Costs!$A716)*('Fixed assets'!$S$2:$S$1000))","v":0},{"$f":"F628+SUMPRODUCT(('Fixed assets'!$Q$2:$Q$1000=Costs!F$705)*('Fixed assets'!$U$2:$U$1000>Costs!$A716)*('Fixed assets'!$P$2:$P$1000=Costs!$A716)*('Fixed assets'!$R$2:$R$1000))-SUMPRODUCT(('Fixed assets'!$Q$2:$Q$1000=Costs!F$705)*('Fixed assets'!$U$2:$U$1000>Costs!$A716)*('Fixed assets'!$P$2:$P$1000=Costs!$A716)*('Fixed assets'!$S$2:$S$1000))","v":0},{"$f":"G628+SUMPRODUCT(('Fixed assets'!$Q$2:$Q$1000=Costs!G$705)*('Fixed assets'!$U$2:$U$1000>Costs!$A716)*('Fixed assets'!$P$2:$P$1000=Costs!$A716)*('Fixed assets'!$R$2:$R$1000))-SUMPRODUCT(('Fixed assets'!$Q$2:$Q$1000=Costs!G$705)*('Fixed assets'!$U$2:$U$1000>Costs!$A716)*('Fixed assets'!$P$2:$P$1000=Costs!$A716)*('Fixed assets'!$S$2:$S$1000))","v":0},{"$f":"H628+SUMPRODUCT(('Fixed assets'!$Q$2:$Q$1000=Costs!H$705)*('Fixed assets'!$U$2:$U$1000>Costs!$A716)*('Fixed assets'!$P$2:$P$1000=Costs!$A716)*('Fixed assets'!$R$2:$R$1000))-SUMPRODUCT(('Fixed assets'!$Q$2:$Q$1000=Costs!H$705)*('Fixed assets'!$U$2:$U$1000>Costs!$A716)*('Fixed assets'!$P$2:$P$1000=Costs!$A716)*('Fixed assets'!$S$2:$S$1000))","v":0},{"$f":"I628+SUMPRODUCT(('Fixed assets'!$Q$2:$Q$1000=Costs!I$705)*('Fixed assets'!$U$2:$U$1000>Costs!$A716)*('Fixed assets'!$P$2:$P$1000=Costs!$A716)*('Fixed assets'!$R$2:$R$1000))-SUMPRODUCT(('Fixed assets'!$Q$2:$Q$1000=Costs!I$705)*('Fixed assets'!$U$2:$U$1000>Costs!$A716)*('Fixed assets'!$P$2:$P$1000=Costs!$A716)*('Fixed assets'!$S$2:$S$1000))","v":0},{"$f":"J628+SUMPRODUCT(('Fixed assets'!$Q$2:$Q$1000=Costs!J$705)*('Fixed assets'!$U$2:$U$1000>Costs!$A716)*('Fixed assets'!$P$2:$P$1000=Costs!$A716)*('Fixed assets'!$R$2:$R$1000))-SUMPRODUCT(('Fixed assets'!$Q$2:$Q$1000=Costs!J$705)*('Fixed assets'!$U$2:$U$1000>Costs!$A716)*('Fixed assets'!$P$2:$P$1000=Costs!$A716)*('Fixed assets'!$S$2:$S$1000))","v":0},{"$f":"K628+SUMPRODUCT(('Fixed assets'!$Q$2:$Q$1000=Costs!K$705)*('Fixed assets'!$U$2:$U$1000>Costs!$A716)*('Fixed assets'!$P$2:$P$1000=Costs!$A716)*('Fixed assets'!$R$2:$R$1000))-SUMPRODUCT(('Fixed assets'!$Q$2:$Q$1000=Costs!K$705)*('Fixed assets'!$U$2:$U$1000>Costs!$A716)*('Fixed assets'!$P$2:$P$1000=Costs!$A716)*('Fixed assets'!$S$2:$S$1000))","v":0},{"$f":"L628+SUMPRODUCT(('Fixed assets'!$Q$2:$Q$1000=Costs!L$705)*('Fixed assets'!$U$2:$U$1000>Costs!$A716)*('Fixed assets'!$P$2:$P$1000=Costs!$A716)*('Fixed assets'!$R$2:$R$1000))-SUMPRODUCT(('Fixed assets'!$Q$2:$Q$1000=Costs!L$705)*('Fixed assets'!$U$2:$U$1000>Costs!$A716)*('Fixed assets'!$P$2:$P$1000=Costs!$A716)*('Fixed assets'!$S$2:$S$1000))","v":0},{"$f":"M628+SUMPRODUCT(('Fixed assets'!$Q$2:$Q$1000=Costs!M$705)*('Fixed assets'!$U$2:$U$1000>Costs!$A716)*('Fixed assets'!$P$2:$P$1000=Costs!$A716)*('Fixed assets'!$R$2:$R$1000))-SUMPRODUCT(('Fixed assets'!$Q$2:$Q$1000=Costs!M$705)*('Fixed assets'!$U$2:$U$1000>Costs!$A716)*('Fixed assets'!$P$2:$P$1000=Costs!$A716)*('Fixed assets'!$S$2:$S$1000))","v":0},{"$f":"N628+SUMPRODUCT(('Fixed assets'!$Q$2:$Q$1000=Costs!N$705)*('Fixed assets'!$U$2:$U$1000>Costs!$A716)*('Fixed assets'!$P$2:$P$1000=Costs!$A716)*('Fixed assets'!$R$2:$R$1000))-SUMPRODUCT(('Fixed assets'!$Q$2:$Q$1000=Costs!N$705)*('Fixed assets'!$U$2:$U$1000>Costs!$A716)*('Fixed assets'!$P$2:$P$1000=Costs!$A716)*('Fixed assets'!$S$2:$S$1000))","v":0},{"$f":"O628+SUMPRODUCT(('Fixed assets'!$Q$2:$Q$1000=Costs!O$705)*('Fixed assets'!$U$2:$U$1000>Costs!$A716)*('Fixed assets'!$P$2:$P$1000=Costs!$A716)*('Fixed assets'!$R$2:$R$1000))-SUMPRODUCT(('Fixed assets'!$Q$2:$Q$1000=Costs!O$705)*('Fixed assets'!$U$2:$U$1000>Costs!$A716)*('Fixed assets'!$P$2:$P$1000=Costs!$A716)*('Fixed assets'!$S$2:$S$1000))","v":0},{"$f":"P628+SUMPRODUCT(('Fixed assets'!$Q$2:$Q$1000=Costs!P$705)*('Fixed assets'!$U$2:$U$1000>Costs!$A716)*('Fixed assets'!$P$2:$P$1000=Costs!$A716)*('Fixed assets'!$R$2:$R$1000))-SUMPRODUCT(('Fixed assets'!$Q$2:$Q$1000=Costs!P$705)*('Fixed assets'!$U$2:$U$1000>Costs!$A716)*('Fixed assets'!$P$2:$P$1000=Costs!$A716)*('Fixed assets'!$S$2:$S$1000))","v":0},{"$f":"Q628+SUMPRODUCT(('Fixed assets'!$Q$2:$Q$1000=Costs!Q$705)*('Fixed assets'!$U$2:$U$1000>Costs!$A716)*('Fixed assets'!$P$2:$P$1000=Costs!$A716)*('Fixed assets'!$R$2:$R$1000))-SUMPRODUCT(('Fixed assets'!$Q$2:$Q$1000=Costs!Q$705)*('Fixed assets'!$U$2:$U$1000>Costs!$A716)*('Fixed assets'!$P$2:$P$1000=Costs!$A716)*('Fixed assets'!$S$2:$S$1000))","v":0},{"$f":"R628+SUMPRODUCT(('Fixed assets'!$Q$2:$Q$1000=Costs!R$705)*('Fixed assets'!$U$2:$U$1000>Costs!$A716)*('Fixed assets'!$P$2:$P$1000=Costs!$A716)*('Fixed assets'!$R$2:$R$1000))-SUMPRODUCT(('Fixed assets'!$Q$2:$Q$1000=Costs!R$705)*('Fixed assets'!$U$2:$U$1000>Costs!$A716)*('Fixed assets'!$P$2:$P$1000=Costs!$A716)*('Fixed assets'!$S$2:$S$1000))","v":0},{"$f":"S628+SUMPRODUCT(('Fixed assets'!$Q$2:$Q$1000=Costs!S$705)*('Fixed assets'!$U$2:$U$1000>Costs!$A716)*('Fixed assets'!$P$2:$P$1000=Costs!$A716)*('Fixed assets'!$R$2:$R$1000))-SUMPRODUCT(('Fixed assets'!$Q$2:$Q$1000=Costs!S$705)*('Fixed assets'!$U$2:$U$1000>Costs!$A716)*('Fixed assets'!$P$2:$P$1000=Costs!$A716)*('Fixed assets'!$S$2:$S$1000))","v":0},{"$f":"T628+SUMPRODUCT(('Fixed assets'!$Q$2:$Q$1000=Costs!T$705)*('Fixed assets'!$U$2:$U$1000>Costs!$A716)*('Fixed assets'!$P$2:$P$1000=Costs!$A716)*('Fixed assets'!$R$2:$R$1000))-SUMPRODUCT(('Fixed assets'!$Q$2:$Q$1000=Costs!T$705)*('Fixed assets'!$U$2:$U$1000>Costs!$A716)*('Fixed assets'!$P$2:$P$1000=Costs!$A716)*('Fixed assets'!$S$2:$S$1000))","v":0},{"$f":"U628+SUMPRODUCT(('Fixed assets'!$Q$2:$Q$1000=Costs!U$705)*('Fixed assets'!$U$2:$U$1000>Costs!$A716)*('Fixed assets'!$P$2:$P$1000=Costs!$A716)*('Fixed assets'!$R$2:$R$1000))-SUMPRODUCT(('Fixed assets'!$Q$2:$Q$1000=Costs!U$705)*('Fixed assets'!$U$2:$U$1000>Costs!$A716)*('Fixed assets'!$P$2:$P$1000=Costs!$A716)*('Fixed assets'!$S$2:$S$1000))","v":0},{"$f":"V628+SUMPRODUCT(('Fixed assets'!$Q$2:$Q$1000=Costs!V$705)*('Fixed assets'!$U$2:$U$1000>Costs!$A716)*('Fixed assets'!$P$2:$P$1000=Costs!$A716)*('Fixed assets'!$R$2:$R$1000))-SUMPRODUCT(('Fixed assets'!$Q$2:$Q$1000=Costs!V$705)*('Fixed assets'!$U$2:$U$1000>Costs!$A716)*('Fixed assets'!$P$2:$P$1000=Costs!$A716)*('Fixed assets'!$S$2:$S$1000))","v":0},{"$f":"W628+SUMPRODUCT(('Fixed assets'!$Q$2:$Q$1000=Costs!W$705)*('Fixed assets'!$U$2:$U$1000>Costs!$A716)*('Fixed assets'!$P$2:$P$1000=Costs!$A716)*('Fixed assets'!$R$2:$R$1000))-SUMPRODUCT(('Fixed assets'!$Q$2:$Q$1000=Costs!W$705)*('Fixed assets'!$U$2:$U$1000>Costs!$A716)*('Fixed assets'!$P$2:$P$1000=Costs!$A716)*('Fixed assets'!$S$2:$S$1000))","v":0},{"$f":"X628+SUMPRODUCT(('Fixed assets'!$Q$2:$Q$1000=Costs!X$705)*('Fixed assets'!$U$2:$U$1000>Costs!$A716)*('Fixed assets'!$P$2:$P$1000=Costs!$A716)*('Fixed assets'!$R$2:$R$1000))-SUMPRODUCT(('Fixed assets'!$Q$2:$Q$1000=Costs!X$705)*('Fixed assets'!$U$2:$U$1000>Costs!$A716)*('Fixed assets'!$P$2:$P$1000=Costs!$A716)*('Fixed assets'!$S$2:$S$1000))","v":0},{"$f":"Y628+SUMPRODUCT(('Fixed assets'!$Q$2:$Q$1000=Costs!Y$705)*('Fixed assets'!$U$2:$U$1000>Costs!$A716)*('Fixed assets'!$P$2:$P$1000=Costs!$A716)*('Fixed assets'!$R$2:$R$1000))-SUMPRODUCT(('Fixed assets'!$Q$2:$Q$1000=Costs!Y$705)*('Fixed assets'!$U$2:$U$1000>Costs!$A716)*('Fixed assets'!$P$2:$P$1000=Costs!$A716)*('Fixed assets'!$S$2:$S$1000))","v":0},{"$f":"Z628+SUMPRODUCT(('Fixed assets'!$Q$2:$Q$1000=Costs!Z$705)*('Fixed assets'!$U$2:$U$1000>Costs!$A716)*('Fixed assets'!$P$2:$P$1000=Costs!$A716)*('Fixed assets'!$R$2:$R$1000))-SUMPRODUCT(('Fixed assets'!$Q$2:$Q$1000=Costs!Z$705)*('Fixed assets'!$U$2:$U$1000>Costs!$A716)*('Fixed assets'!$P$2:$P$1000=Costs!$A716)*('Fixed assets'!$S$2:$S$1000))","v":0},{"$f":"AA628+SUMPRODUCT(('Fixed assets'!$Q$2:$Q$1000=Costs!AA$705)*('Fixed assets'!$U$2:$U$1000>Costs!$A716)*('Fixed assets'!$P$2:$P$1000=Costs!$A716)*('Fixed assets'!$R$2:$R$1000))-SUMPRODUCT(('Fixed assets'!$Q$2:$Q$1000=Costs!AA$705)*('Fixed assets'!$U$2:$U$1000>Costs!$A716)*('Fixed assets'!$P$2:$P$1000=Costs!$A716)*('Fixed assets'!$S$2:$S$1000))","v":0},{"$f":"AB628+SUMPRODUCT(('Fixed assets'!$Q$2:$Q$1000=Costs!AB$705)*('Fixed assets'!$U$2:$U$1000>Costs!$A716)*('Fixed assets'!$P$2:$P$1000=Costs!$A716)*('Fixed assets'!$R$2:$R$1000))-SUMPRODUCT(('Fixed assets'!$Q$2:$Q$1000=Costs!AB$705)*('Fixed assets'!$U$2:$U$1000>Costs!$A716)*('Fixed assets'!$P$2:$P$1000=Costs!$A716)*('Fixed assets'!$S$2:$S$1000))","v":0},{"$f":"AC628+SUMPRODUCT(('Fixed assets'!$Q$2:$Q$1000=Costs!AC$705)*('Fixed assets'!$U$2:$U$1000>Costs!$A716)*('Fixed assets'!$P$2:$P$1000=Costs!$A716)*('Fixed assets'!$R$2:$R$1000))-SUMPRODUCT(('Fixed assets'!$Q$2:$Q$1000=Costs!AC$705)*('Fixed assets'!$U$2:$U$1000>Costs!$A716)*('Fixed assets'!$P$2:$P$1000=Costs!$A716)*('Fixed assets'!$S$2:$S$1000))","v":0},{"$f":"AD628+SUMPRODUCT(('Fixed assets'!$Q$2:$Q$1000=Costs!AD$705)*('Fixed assets'!$U$2:$U$1000>Costs!$A716)*('Fixed assets'!$P$2:$P$1000=Costs!$A716)*('Fixed assets'!$R$2:$R$1000))-SUMPRODUCT(('Fixed assets'!$Q$2:$Q$1000=Costs!AD$705)*('Fixed assets'!$U$2:$U$1000>Costs!$A716)*('Fixed assets'!$P$2:$P$1000=Costs!$A716)*('Fixed assets'!$S$2:$S$1000))","v":0},{"$f":"AE628+SUMPRODUCT(('Fixed assets'!$Q$2:$Q$1000=Costs!AE$705)*('Fixed assets'!$U$2:$U$1000>Costs!$A716)*('Fixed assets'!$P$2:$P$1000=Costs!$A716)*('Fixed assets'!$R$2:$R$1000))-SUMPRODUCT(('Fixed assets'!$Q$2:$Q$1000=Costs!AE$705)*('Fixed assets'!$U$2:$U$1000>Costs!$A716)*('Fixed assets'!$P$2:$P$1000=Costs!$A716)*('Fixed assets'!$S$2:$S$1000))","v":0},{"$f":"AF628+SUMPRODUCT(('Fixed assets'!$Q$2:$Q$1000=Costs!AF$705)*('Fixed assets'!$U$2:$U$1000>Costs!$A716)*('Fixed assets'!$P$2:$P$1000=Costs!$A716)*('Fixed assets'!$R$2:$R$1000))-SUMPRODUCT(('Fixed assets'!$Q$2:$Q$1000=Costs!AF$705)*('Fixed assets'!$U$2:$U$1000>Costs!$A716)*('Fixed assets'!$P$2:$P$1000=Costs!$A716)*('Fixed assets'!$S$2:$S$1000))","v":0},{"$f":"AG628+SUMPRODUCT(('Fixed assets'!$Q$2:$Q$1000=Costs!AG$705)*('Fixed assets'!$U$2:$U$1000>Costs!$A716)*('Fixed assets'!$P$2:$P$1000=Costs!$A716)*('Fixed assets'!$R$2:$R$1000))-SUMPRODUCT(('Fixed assets'!$Q$2:$Q$1000=Costs!AG$705)*('Fixed assets'!$U$2:$U$1000>Costs!$A716)*('Fixed assets'!$P$2:$P$1000=Costs!$A716)*('Fixed assets'!$S$2:$S$1000))","v":0},{"$f":"AH628+SUMPRODUCT(('Fixed assets'!$Q$2:$Q$1000=Costs!AH$705)*('Fixed assets'!$U$2:$U$1000>Costs!$A716)*('Fixed assets'!$P$2:$P$1000=Costs!$A716)*('Fixed assets'!$R$2:$R$1000))-SUMPRODUCT(('Fixed assets'!$Q$2:$Q$1000=Costs!AH$705)*('Fixed assets'!$U$2:$U$1000>Costs!$A716)*('Fixed assets'!$P$2:$P$1000=Costs!$A716)*('Fixed assets'!$S$2:$S$1000))","v":0},{"$f":"AI628+SUMPRODUCT(('Fixed assets'!$Q$2:$Q$1000=Costs!AI$705)*('Fixed assets'!$U$2:$U$1000>Costs!$A716)*('Fixed assets'!$P$2:$P$1000=Costs!$A716)*('Fixed assets'!$R$2:$R$1000))-SUMPRODUCT(('Fixed assets'!$Q$2:$Q$1000=Costs!AI$705)*('Fixed assets'!$U$2:$U$1000>Costs!$A716)*('Fixed assets'!$P$2:$P$1000=Costs!$A716)*('Fixed assets'!$S$2:$S$1000))","v":0},{"$f":"AJ628+SUMPRODUCT(('Fixed assets'!$Q$2:$Q$1000=Costs!AJ$705)*('Fixed assets'!$U$2:$U$1000>Costs!$A716)*('Fixed assets'!$P$2:$P$1000=Costs!$A716)*('Fixed assets'!$R$2:$R$1000))-SUMPRODUCT(('Fixed assets'!$Q$2:$Q$1000=Costs!AJ$705)*('Fixed assets'!$U$2:$U$1000>Costs!$A716)*('Fixed assets'!$P$2:$P$1000=Costs!$A716)*('Fixed assets'!$S$2:$S$1000))","v":0},{"$f":"AK628+SUMPRODUCT(('Fixed assets'!$Q$2:$Q$1000=Costs!AK$705)*('Fixed assets'!$U$2:$U$1000>Costs!$A716)*('Fixed assets'!$P$2:$P$1000=Costs!$A716)*('Fixed assets'!$R$2:$R$1000))-SUMPRODUCT(('Fixed assets'!$Q$2:$Q$1000=Costs!AK$705)*('Fixed assets'!$U$2:$U$1000>Costs!$A716)*('Fixed assets'!$P$2:$P$1000=Costs!$A716)*('Fixed assets'!$S$2:$S$1000))","v":0},{"$f":"AL628+SUMPRODUCT(('Fixed assets'!$Q$2:$Q$1000=Costs!AL$705)*('Fixed assets'!$U$2:$U$1000>Costs!$A716)*('Fixed assets'!$P$2:$P$1000=Costs!$A716)*('Fixed assets'!$R$2:$R$1000))-SUMPRODUCT(('Fixed assets'!$Q$2:$Q$1000=Costs!AL$705)*('Fixed assets'!$U$2:$U$1000>Costs!$A716)*('Fixed assets'!$P$2:$P$1000=Costs!$A716)*('Fixed assets'!$S$2:$S$1000))","v":0},{"$f":"AM628+SUMPRODUCT(('Fixed assets'!$Q$2:$Q$1000=Costs!AM$705)*('Fixed assets'!$U$2:$U$1000>Costs!$A716)*('Fixed assets'!$P$2:$P$1000=Costs!$A716)*('Fixed assets'!$R$2:$R$1000))-SUMPRODUCT(('Fixed assets'!$Q$2:$Q$1000=Costs!AM$705)*('Fixed assets'!$U$2:$U$1000>Costs!$A716)*('Fixed assets'!$P$2:$P$1000=Costs!$A716)*('Fixed assets'!$S$2:$S$1000))","v":0},{"$f":"AN628+SUMPRODUCT(('Fixed assets'!$Q$2:$Q$1000=Costs!AN$705)*('Fixed assets'!$U$2:$U$1000>Costs!$A716)*('Fixed assets'!$P$2:$P$1000=Costs!$A716)*('Fixed assets'!$R$2:$R$1000))-SUMPRODUCT(('Fixed assets'!$Q$2:$Q$1000=Costs!AN$705)*('Fixed assets'!$U$2:$U$1000>Costs!$A716)*('Fixed assets'!$P$2:$P$1000=Costs!$A716)*('Fixed assets'!$S$2:$S$1000))","v":0},{"$f":"AO628+SUMPRODUCT(('Fixed assets'!$Q$2:$Q$1000=Costs!AO$705)*('Fixed assets'!$U$2:$U$1000>Costs!$A716)*('Fixed assets'!$P$2:$P$1000=Costs!$A716)*('Fixed assets'!$R$2:$R$1000))-SUMPRODUCT(('Fixed assets'!$Q$2:$Q$1000=Costs!AO$705)*('Fixed assets'!$U$2:$U$1000>Costs!$A716)*('Fixed assets'!$P$2:$P$1000=Costs!$A716)*('Fixed assets'!$S$2:$S$1000))","v":0},{"$f":"AP628+SUMPRODUCT(('Fixed assets'!$Q$2:$Q$1000=Costs!AP$705)*('Fixed assets'!$U$2:$U$1000>Costs!$A716)*('Fixed assets'!$P$2:$P$1000=Costs!$A716)*('Fixed assets'!$R$2:$R$1000))-SUMPRODUCT(('Fixed assets'!$Q$2:$Q$1000=Costs!AP$705)*('Fixed assets'!$U$2:$U$1000>Costs!$A716)*('Fixed assets'!$P$2:$P$1000=Costs!$A716)*('Fixed assets'!$S$2:$S$1000))","v":0},{"$f":"AQ628+SUMPRODUCT(('Fixed assets'!$Q$2:$Q$1000=Costs!AQ$705)*('Fixed assets'!$U$2:$U$1000>Costs!$A716)*('Fixed assets'!$P$2:$P$1000=Costs!$A716)*('Fixed assets'!$R$2:$R$1000))-SUMPRODUCT(('Fixed assets'!$Q$2:$Q$1000=Costs!AQ$705)*('Fixed assets'!$U$2:$U$1000>Costs!$A716)*('Fixed assets'!$P$2:$P$1000=Costs!$A716)*('Fixed assets'!$S$2:$S$1000))","v":0}]
[2026,0,{"$f":"C629+SUMPRODUCT(('Fixed assets'!$Q$2:$Q$1000=Costs!C$705)*('Fixed assets'!$U$2:$U$1000>Costs!$A717)*('Fixed assets'!$P$2:$P$1000=Costs!$A717)*('Fixed assets'!$R$2:$R$1000))-SUMPRODUCT(('Fixed assets'!$Q$2:$Q$1000=Costs!C$705)*('Fixed assets'!$U$2:$U$1000>Costs!$A717)*('Fixed assets'!$P$2:$P$1000=Costs!$A717)*('Fixed assets'!$S$2:$S$1000))","v":0},{"$f":"D629+SUMPRODUCT(('Fixed assets'!$Q$2:$Q$1000=Costs!D$705)*('Fixed assets'!$U$2:$U$1000>Costs!$A717)*('Fixed assets'!$P$2:$P$1000=Costs!$A717)*('Fixed assets'!$R$2:$R$1000))-SUMPRODUCT(('Fixed assets'!$Q$2:$Q$1000=Costs!D$705)*('Fixed assets'!$U$2:$U$1000>Costs!$A717)*('Fixed assets'!$P$2:$P$1000=Costs!$A717)*('Fixed assets'!$S$2:$S$1000))","v":0},{"$f":"E629+SUMPRODUCT(('Fixed assets'!$Q$2:$Q$1000=Costs!E$705)*('Fixed assets'!$U$2:$U$1000>Costs!$A717)*('Fixed assets'!$P$2:$P$1000=Costs!$A717)*('Fixed assets'!$R$2:$R$1000))-SUMPRODUCT(('Fixed assets'!$Q$2:$Q$1000=Costs!E$705)*('Fixed assets'!$U$2:$U$1000>Costs!$A717)*('Fixed assets'!$P$2:$P$1000=Costs!$A717)*('Fixed assets'!$S$2:$S$1000))","v":0},{"$f":"F629+SUMPRODUCT(('Fixed assets'!$Q$2:$Q$1000=Costs!F$705)*('Fixed assets'!$U$2:$U$1000>Costs!$A717)*('Fixed assets'!$P$2:$P$1000=Costs!$A717)*('Fixed assets'!$R$2:$R$1000))-SUMPRODUCT(('Fixed assets'!$Q$2:$Q$1000=Costs!F$705)*('Fixed assets'!$U$2:$U$1000>Costs!$A717)*('Fixed assets'!$P$2:$P$1000=Costs!$A717)*('Fixed assets'!$S$2:$S$1000))","v":0},{"$f":"G629+SUMPRODUCT(('Fixed assets'!$Q$2:$Q$1000=Costs!G$705)*('Fixed assets'!$U$2:$U$1000>Costs!$A717)*('Fixed assets'!$P$2:$P$1000=Costs!$A717)*('Fixed assets'!$R$2:$R$1000))-SUMPRODUCT(('Fixed assets'!$Q$2:$Q$1000=Costs!G$705)*('Fixed assets'!$U$2:$U$1000>Costs!$A717)*('Fixed assets'!$P$2:$P$1000=Costs!$A717)*('Fixed assets'!$S$2:$S$1000))","v":0},{"$f":"H629+SUMPRODUCT(('Fixed assets'!$Q$2:$Q$1000=Costs!H$705)*('Fixed assets'!$U$2:$U$1000>Costs!$A717)*('Fixed assets'!$P$2:$P$1000=Costs!$A717)*('Fixed assets'!$R$2:$R$1000))-SUMPRODUCT(('Fixed assets'!$Q$2:$Q$1000=Costs!H$705)*('Fixed assets'!$U$2:$U$1000>Costs!$A717)*('Fixed assets'!$P$2:$P$1000=Costs!$A717)*('Fixed assets'!$S$2:$S$1000))","v":0},{"$f":"I629+SUMPRODUCT(('Fixed assets'!$Q$2:$Q$1000=Costs!I$705)*('Fixed assets'!$U$2:$U$1000>Costs!$A717)*('Fixed assets'!$P$2:$P$1000=Costs!$A717)*('Fixed assets'!$R$2:$R$1000))-SUMPRODUCT(('Fixed assets'!$Q$2:$Q$1000=Costs!I$705)*('Fixed assets'!$U$2:$U$1000>Costs!$A717)*('Fixed assets'!$P$2:$P$1000=Costs!$A717)*('Fixed assets'!$S$2:$S$1000))","v":0},{"$f":"J629+SUMPRODUCT(('Fixed assets'!$Q$2:$Q$1000=Costs!J$705)*('Fixed assets'!$U$2:$U$1000>Costs!$A717)*('Fixed assets'!$P$2:$P$1000=Costs!$A717)*('Fixed assets'!$R$2:$R$1000))-SUMPRODUCT(('Fixed assets'!$Q$2:$Q$1000=Costs!J$705)*('Fixed assets'!$U$2:$U$1000>Costs!$A717)*('Fixed assets'!$P$2:$P$1000=Costs!$A717)*('Fixed assets'!$S$2:$S$1000))","v":0},{"$f":"K629+SUMPRODUCT(('Fixed assets'!$Q$2:$Q$1000=Costs!K$705)*('Fixed assets'!$U$2:$U$1000>Costs!$A717)*('Fixed assets'!$P$2:$P$1000=Costs!$A717)*('Fixed assets'!$R$2:$R$1000))-SUMPRODUCT(('Fixed assets'!$Q$2:$Q$1000=Costs!K$705)*('Fixed assets'!$U$2:$U$1000>Costs!$A717)*('Fixed assets'!$P$2:$P$1000=Costs!$A717)*('Fixed assets'!$S$2:$S$1000))","v":0},{"$f":"L629+SUMPRODUCT(('Fixed assets'!$Q$2:$Q$1000=Costs!L$705)*('Fixed assets'!$U$2:$U$1000>Costs!$A717)*('Fixed assets'!$P$2:$P$1000=Costs!$A717)*('Fixed assets'!$R$2:$R$1000))-SUMPRODUCT(('Fixed assets'!$Q$2:$Q$1000=Costs!L$705)*('Fixed assets'!$U$2:$U$1000>Costs!$A717)*('Fixed assets'!$P$2:$P$1000=Costs!$A717)*('Fixed assets'!$S$2:$S$1000))","v":0},{"$f":"M629+SUMPRODUCT(('Fixed assets'!$Q$2:$Q$1000=Costs!M$705)*('Fixed assets'!$U$2:$U$1000>Costs!$A717)*('Fixed assets'!$P$2:$P$1000=Costs!$A717)*('Fixed assets'!$R$2:$R$1000))-SUMPRODUCT(('Fixed assets'!$Q$2:$Q$1000=Costs!M$705)*('Fixed assets'!$U$2:$U$1000>Costs!$A717)*('Fixed assets'!$P$2:$P$1000=Costs!$A717)*('Fixed assets'!$S$2:$S$1000))","v":0},{"$f":"N629+SUMPRODUCT(('Fixed assets'!$Q$2:$Q$1000=Costs!N$705)*('Fixed assets'!$U$2:$U$1000>Costs!$A717)*('Fixed assets'!$P$2:$P$1000=Costs!$A717)*('Fixed assets'!$R$2:$R$1000))-SUMPRODUCT(('Fixed assets'!$Q$2:$Q$1000=Costs!N$705)*('Fixed assets'!$U$2:$U$1000>Costs!$A717)*('Fixed assets'!$P$2:$P$1000=Costs!$A717)*('Fixed assets'!$S$2:$S$1000))","v":0},{"$f":"O629+SUMPRODUCT(('Fixed assets'!$Q$2:$Q$1000=Costs!O$705)*('Fixed assets'!$U$2:$U$1000>Costs!$A717)*('Fixed assets'!$P$2:$P$1000=Costs!$A717)*('Fixed assets'!$R$2:$R$1000))-SUMPRODUCT(('Fixed assets'!$Q$2:$Q$1000=Costs!O$705)*('Fixed assets'!$U$2:$U$1000>Costs!$A717)*('Fixed assets'!$P$2:$P$1000=Costs!$A717)*('Fixed assets'!$S$2:$S$1000))","v":0},{"$f":"P629+SUMPRODUCT(('Fixed assets'!$Q$2:$Q$1000=Costs!P$705)*('Fixed assets'!$U$2:$U$1000>Costs!$A717)*('Fixed assets'!$P$2:$P$1000=Costs!$A717)*('Fixed assets'!$R$2:$R$1000))-SUMPRODUCT(('Fixed assets'!$Q$2:$Q$1000=Costs!P$705)*('Fixed assets'!$U$2:$U$1000>Costs!$A717)*('Fixed assets'!$P$2:$P$1000=Costs!$A717)*('Fixed assets'!$S$2:$S$1000))","v":0},{"$f":"Q629+SUMPRODUCT(('Fixed assets'!$Q$2:$Q$1000=Costs!Q$705)*('Fixed assets'!$U$2:$U$1000>Costs!$A717)*('Fixed assets'!$P$2:$P$1000=Costs!$A717)*('Fixed assets'!$R$2:$R$1000))-SUMPRODUCT(('Fixed assets'!$Q$2:$Q$1000=Costs!Q$705)*('Fixed assets'!$U$2:$U$1000>Costs!$A717)*('Fixed assets'!$P$2:$P$1000=Costs!$A717)*('Fixed assets'!$S$2:$S$1000))","v":0},{"$f":"R629+SUMPRODUCT(('Fixed assets'!$Q$2:$Q$1000=Costs!R$705)*('Fixed assets'!$U$2:$U$1000>Costs!$A717)*('Fixed assets'!$P$2:$P$1000=Costs!$A717)*('Fixed assets'!$R$2:$R$1000))-SUMPRODUCT(('Fixed assets'!$Q$2:$Q$1000=Costs!R$705)*('Fixed assets'!$U$2:$U$1000>Costs!$A717)*('Fixed assets'!$P$2:$P$1000=Costs!$A717)*('Fixed assets'!$S$2:$S$1000))","v":0},{"$f":"S629+SUMPRODUCT(('Fixed assets'!$Q$2:$Q$1000=Costs!S$705)*('Fixed assets'!$U$2:$U$1000>Costs!$A717)*('Fixed assets'!$P$2:$P$1000=Costs!$A717)*('Fixed assets'!$R$2:$R$1000))-SUMPRODUCT(('Fixed assets'!$Q$2:$Q$1000=Costs!S$705)*('Fixed assets'!$U$2:$U$1000>Costs!$A717)*('Fixed assets'!$P$2:$P$1000=Costs!$A717)*('Fixed assets'!$S$2:$S$1000))","v":0},{"$f":"T629+SUMPRODUCT(('Fixed assets'!$Q$2:$Q$1000=Costs!T$705)*('Fixed assets'!$U$2:$U$1000>Costs!$A717)*('Fixed assets'!$P$2:$P$1000=Costs!$A717)*('Fixed assets'!$R$2:$R$1000))-SUMPRODUCT(('Fixed assets'!$Q$2:$Q$1000=Costs!T$705)*('Fixed assets'!$U$2:$U$1000>Costs!$A717)*('Fixed assets'!$P$2:$P$1000=Costs!$A717)*('Fixed assets'!$S$2:$S$1000))","v":0},{"$f":"U629+SUMPRODUCT(('Fixed assets'!$Q$2:$Q$1000=Costs!U$705)*('Fixed assets'!$U$2:$U$1000>Costs!$A717)*('Fixed assets'!$P$2:$P$1000=Costs!$A717)*('Fixed assets'!$R$2:$R$1000))-SUMPRODUCT(('Fixed assets'!$Q$2:$Q$1000=Costs!U$705)*('Fixed assets'!$U$2:$U$1000>Costs!$A717)*('Fixed assets'!$P$2:$P$1000=Costs!$A717)*('Fixed assets'!$S$2:$S$1000))","v":0},{"$f":"V629+SUMPRODUCT(('Fixed assets'!$Q$2:$Q$1000=Costs!V$705)*('Fixed assets'!$U$2:$U$1000>Costs!$A717)*('Fixed assets'!$P$2:$P$1000=Costs!$A717)*('Fixed assets'!$R$2:$R$1000))-SUMPRODUCT(('Fixed assets'!$Q$2:$Q$1000=Costs!V$705)*('Fixed assets'!$U$2:$U$1000>Costs!$A717)*('Fixed assets'!$P$2:$P$1000=Costs!$A717)*('Fixed assets'!$S$2:$S$1000))","v":0},{"$f":"W629+SUMPRODUCT(('Fixed assets'!$Q$2:$Q$1000=Costs!W$705)*('Fixed assets'!$U$2:$U$1000>Costs!$A717)*('Fixed assets'!$P$2:$P$1000=Costs!$A717)*('Fixed assets'!$R$2:$R$1000))-SUMPRODUCT(('Fixed assets'!$Q$2:$Q$1000=Costs!W$705)*('Fixed assets'!$U$2:$U$1000>Costs!$A717)*('Fixed assets'!$P$2:$P$1000=Costs!$A717)*('Fixed assets'!$S$2:$S$1000))","v":0},{"$f":"X629+SUMPRODUCT(('Fixed assets'!$Q$2:$Q$1000=Costs!X$705)*('Fixed assets'!$U$2:$U$1000>Costs!$A717)*('Fixed assets'!$P$2:$P$1000=Costs!$A717)*('Fixed assets'!$R$2:$R$1000))-SUMPRODUCT(('Fixed assets'!$Q$2:$Q$1000=Costs!X$705)*('Fixed assets'!$U$2:$U$1000>Costs!$A717)*('Fixed assets'!$P$2:$P$1000=Costs!$A717)*('Fixed assets'!$S$2:$S$1000))","v":0},{"$f":"Y629+SUMPRODUCT(('Fixed assets'!$Q$2:$Q$1000=Costs!Y$705)*('Fixed assets'!$U$2:$U$1000>Costs!$A717)*('Fixed assets'!$P$2:$P$1000=Costs!$A717)*('Fixed assets'!$R$2:$R$1000))-SUMPRODUCT(('Fixed assets'!$Q$2:$Q$1000=Costs!Y$705)*('Fixed assets'!$U$2:$U$1000>Costs!$A717)*('Fixed assets'!$P$2:$P$1000=Costs!$A717)*('Fixed assets'!$S$2:$S$1000))","v":0},{"$f":"Z629+SUMPRODUCT(('Fixed assets'!$Q$2:$Q$1000=Costs!Z$705)*('Fixed assets'!$U$2:$U$1000>Costs!$A717)*('Fixed assets'!$P$2:$P$1000=Costs!$A717)*('Fixed assets'!$R$2:$R$1000))-SUMPRODUCT(('Fixed assets'!$Q$2:$Q$1000=Costs!Z$705)*('Fixed assets'!$U$2:$U$1000>Costs!$A717)*('Fixed assets'!$P$2:$P$1000=Costs!$A717)*('Fixed assets'!$S$2:$S$1000))","v":0},{"$f":"AA629+SUMPRODUCT(('Fixed assets'!$Q$2:$Q$1000=Costs!AA$705)*('Fixed assets'!$U$2:$U$1000>Costs!$A717)*('Fixed assets'!$P$2:$P$1000=Costs!$A717)*('Fixed assets'!$R$2:$R$1000))-SUMPRODUCT(('Fixed assets'!$Q$2:$Q$1000=Costs!AA$705)*('Fixed assets'!$U$2:$U$1000>Costs!$A717)*('Fixed assets'!$P$2:$P$1000=Costs!$A717)*('Fixed assets'!$S$2:$S$1000))","v":0},{"$f":"AB629+SUMPRODUCT(('Fixed assets'!$Q$2:$Q$1000=Costs!AB$705)*('Fixed assets'!$U$2:$U$1000>Costs!$A717)*('Fixed assets'!$P$2:$P$1000=Costs!$A717)*('Fixed assets'!$R$2:$R$1000))-SUMPRODUCT(('Fixed assets'!$Q$2:$Q$1000=Costs!AB$705)*('Fixed assets'!$U$2:$U$1000>Costs!$A717)*('Fixed assets'!$P$2:$P$1000=Costs!$A717)*('Fixed assets'!$S$2:$S$1000))","v":0},{"$f":"AC629+SUMPRODUCT(('Fixed assets'!$Q$2:$Q$1000=Costs!AC$705)*('Fixed assets'!$U$2:$U$1000>Costs!$A717)*('Fixed assets'!$P$2:$P$1000=Costs!$A717)*('Fixed assets'!$R$2:$R$1000))-SUMPRODUCT(('Fixed assets'!$Q$2:$Q$1000=Costs!AC$705)*('Fixed assets'!$U$2:$U$1000>Costs!$A717)*('Fixed assets'!$P$2:$P$1000=Costs!$A717)*('Fixed assets'!$S$2:$S$1000))","v":0},{"$f":"AD629+SUMPRODUCT(('Fixed assets'!$Q$2:$Q$1000=Costs!AD$705)*('Fixed assets'!$U$2:$U$1000>Costs!$A717)*('Fixed assets'!$P$2:$P$1000=Costs!$A717)*('Fixed assets'!$R$2:$R$1000))-SUMPRODUCT(('Fixed assets'!$Q$2:$Q$1000=Costs!AD$705)*('Fixed assets'!$U$2:$U$1000>Costs!$A717)*('Fixed assets'!$P$2:$P$1000=Costs!$A717)*('Fixed assets'!$S$2:$S$1000))","v":0},{"$f":"AE629+SUMPRODUCT(('Fixed assets'!$Q$2:$Q$1000=Costs!AE$705)*('Fixed assets'!$U$2:$U$1000>Costs!$A717)*('Fixed assets'!$P$2:$P$1000=Costs!$A717)*('Fixed assets'!$R$2:$R$1000))-SUMPRODUCT(('Fixed assets'!$Q$2:$Q$1000=Costs!AE$705)*('Fixed assets'!$U$2:$U$1000>Costs!$A717)*('Fixed assets'!$P$2:$P$1000=Costs!$A717)*('Fixed assets'!$S$2:$S$1000))","v":0},{"$f":"AF629+SUMPRODUCT(('Fixed assets'!$Q$2:$Q$1000=Costs!AF$705)*('Fixed assets'!$U$2:$U$1000>Costs!$A717)*('Fixed assets'!$P$2:$P$1000=Costs!$A717)*('Fixed assets'!$R$2:$R$1000))-SUMPRODUCT(('Fixed assets'!$Q$2:$Q$1000=Costs!AF$705)*('Fixed assets'!$U$2:$U$1000>Costs!$A717)*('Fixed assets'!$P$2:$P$1000=Costs!$A717)*('Fixed assets'!$S$2:$S$1000))","v":0},{"$f":"AG629+SUMPRODUCT(('Fixed assets'!$Q$2:$Q$1000=Costs!AG$705)*('Fixed assets'!$U$2:$U$1000>Costs!$A717)*('Fixed assets'!$P$2:$P$1000=Costs!$A717)*('Fixed assets'!$R$2:$R$1000))-SUMPRODUCT(('Fixed assets'!$Q$2:$Q$1000=Costs!AG$705)*('Fixed assets'!$U$2:$U$1000>Costs!$A717)*('Fixed assets'!$P$2:$P$1000=Costs!$A717)*('Fixed assets'!$S$2:$S$1000))","v":0},{"$f":"AH629+SUMPRODUCT(('Fixed assets'!$Q$2:$Q$1000=Costs!AH$705)*('Fixed assets'!$U$2:$U$1000>Costs!$A717)*('Fixed assets'!$P$2:$P$1000=Costs!$A717)*('Fixed assets'!$R$2:$R$1000))-SUMPRODUCT(('Fixed assets'!$Q$2:$Q$1000=Costs!AH$705)*('Fixed assets'!$U$2:$U$1000>Costs!$A717)*('Fixed assets'!$P$2:$P$1000=Costs!$A717)*('Fixed assets'!$S$2:$S$1000))","v":0},{"$f":"AI629+SUMPRODUCT(('Fixed assets'!$Q$2:$Q$1000=Costs!AI$705)*('Fixed assets'!$U$2:$U$1000>Costs!$A717)*('Fixed assets'!$P$2:$P$1000=Costs!$A717)*('Fixed assets'!$R$2:$R$1000))-SUMPRODUCT(('Fixed assets'!$Q$2:$Q$1000=Costs!AI$705)*('Fixed assets'!$U$2:$U$1000>Costs!$A717)*('Fixed assets'!$P$2:$P$1000=Costs!$A717)*('Fixed assets'!$S$2:$S$1000))","v":0},{"$f":"AJ629+SUMPRODUCT(('Fixed assets'!$Q$2:$Q$1000=Costs!AJ$705)*('Fixed assets'!$U$2:$U$1000>Costs!$A717)*('Fixed assets'!$P$2:$P$1000=Costs!$A717)*('Fixed assets'!$R$2:$R$1000))-SUMPRODUCT(('Fixed assets'!$Q$2:$Q$1000=Costs!AJ$705)*('Fixed assets'!$U$2:$U$1000>Costs!$A717)*('Fixed assets'!$P$2:$P$1000=Costs!$A717)*('Fixed assets'!$S$2:$S$1000))","v":0},{"$f":"AK629+SUMPRODUCT(('Fixed assets'!$Q$2:$Q$1000=Costs!AK$705)*('Fixed assets'!$U$2:$U$1000>Costs!$A717)*('Fixed assets'!$P$2:$P$1000=Costs!$A717)*('Fixed assets'!$R$2:$R$1000))-SUMPRODUCT(('Fixed assets'!$Q$2:$Q$1000=Costs!AK$705)*('Fixed assets'!$U$2:$U$1000>Costs!$A717)*('Fixed assets'!$P$2:$P$1000=Costs!$A717)*('Fixed assets'!$S$2:$S$1000))","v":0},{"$f":"AL629+SUMPRODUCT(('Fixed assets'!$Q$2:$Q$1000=Costs!AL$705)*('Fixed assets'!$U$2:$U$1000>Costs!$A717)*('Fixed assets'!$P$2:$P$1000=Costs!$A717)*('Fixed assets'!$R$2:$R$1000))-SUMPRODUCT(('Fixed assets'!$Q$2:$Q$1000=Costs!AL$705)*('Fixed assets'!$U$2:$U$1000>Costs!$A717)*('Fixed assets'!$P$2:$P$1000=Costs!$A717)*('Fixed assets'!$S$2:$S$1000))","v":0},{"$f":"AM629+SUMPRODUCT(('Fixed assets'!$Q$2:$Q$1000=Costs!AM$705)*('Fixed assets'!$U$2:$U$1000>Costs!$A717)*('Fixed assets'!$P$2:$P$1000=Costs!$A717)*('Fixed assets'!$R$2:$R$1000))-SUMPRODUCT(('Fixed assets'!$Q$2:$Q$1000=Costs!AM$705)*('Fixed assets'!$U$2:$U$1000>Costs!$A717)*('Fixed assets'!$P$2:$P$1000=Costs!$A717)*('Fixed assets'!$S$2:$S$1000))","v":0},{"$f":"AN629+SUMPRODUCT(('Fixed assets'!$Q$2:$Q$1000=Costs!AN$705)*('Fixed assets'!$U$2:$U$1000>Costs!$A717)*('Fixed assets'!$P$2:$P$1000=Costs!$A717)*('Fixed assets'!$R$2:$R$1000))-SUMPRODUCT(('Fixed assets'!$Q$2:$Q$1000=Costs!AN$705)*('Fixed assets'!$U$2:$U$1000>Costs!$A717)*('Fixed assets'!$P$2:$P$1000=Costs!$A717)*('Fixed assets'!$S$2:$S$1000))","v":0},{"$f":"AO629+SUMPRODUCT(('Fixed assets'!$Q$2:$Q$1000=Costs!AO$705)*('Fixed assets'!$U$2:$U$1000>Costs!$A717)*('Fixed assets'!$P$2:$P$1000=Costs!$A717)*('Fixed assets'!$R$2:$R$1000))-SUMPRODUCT(('Fixed assets'!$Q$2:$Q$1000=Costs!AO$705)*('Fixed assets'!$U$2:$U$1000>Costs!$A717)*('Fixed assets'!$P$2:$P$1000=Costs!$A717)*('Fixed assets'!$S$2:$S$1000))","v":0},{"$f":"AP629+SUMPRODUCT(('Fixed assets'!$Q$2:$Q$1000=Costs!AP$705)*('Fixed assets'!$U$2:$U$1000>Costs!$A717)*('Fixed assets'!$P$2:$P$1000=Costs!$A717)*('Fixed assets'!$R$2:$R$1000))-SUMPRODUCT(('Fixed assets'!$Q$2:$Q$1000=Costs!AP$705)*('Fixed assets'!$U$2:$U$1000>Costs!$A717)*('Fixed assets'!$P$2:$P$1000=Costs!$A717)*('Fixed assets'!$S$2:$S$1000))","v":0},{"$f":"AQ629+SUMPRODUCT(('Fixed assets'!$Q$2:$Q$1000=Costs!AQ$705)*('Fixed assets'!$U$2:$U$1000>Costs!$A717)*('Fixed assets'!$P$2:$P$1000=Costs!$A717)*('Fixed assets'!$R$2:$R$1000))-SUMPRODUCT(('Fixed assets'!$Q$2:$Q$1000=Costs!AQ$705)*('Fixed assets'!$U$2:$U$1000>Costs!$A717)*('Fixed assets'!$P$2:$P$1000=Costs!$A717)*('Fixed assets'!$S$2:$S$1000))","v":0}]
[2027,0,{"$f":"C630+SUMPRODUCT(('Fixed assets'!$Q$2:$Q$1000=Costs!C$705)*('Fixed assets'!$U$2:$U$1000>Costs!$A718)*('Fixed assets'!$P$2:$P$1000=Costs!$A718)*('Fixed assets'!$R$2:$R$1000))-SUMPRODUCT(('Fixed assets'!$Q$2:$Q$1000=Costs!C$705)*('Fixed assets'!$U$2:$U$1000>Costs!$A718)*('Fixed assets'!$P$2:$P$1000=Costs!$A718)*('Fixed assets'!$S$2:$S$1000))","v":0},{"$f":"D630+SUMPRODUCT(('Fixed assets'!$Q$2:$Q$1000=Costs!D$705)*('Fixed assets'!$U$2:$U$1000>Costs!$A718)*('Fixed assets'!$P$2:$P$1000=Costs!$A718)*('Fixed assets'!$R$2:$R$1000))-SUMPRODUCT(('Fixed assets'!$Q$2:$Q$1000=Costs!D$705)*('Fixed assets'!$U$2:$U$1000>Costs!$A718)*('Fixed assets'!$P$2:$P$1000=Costs!$A718)*('Fixed assets'!$S$2:$S$1000))","v":0},{"$f":"E630+SUMPRODUCT(('Fixed assets'!$Q$2:$Q$1000=Costs!E$705)*('Fixed assets'!$U$2:$U$1000>Costs!$A718)*('Fixed assets'!$P$2:$P$1000=Costs!$A718)*('Fixed assets'!$R$2:$R$1000))-SUMPRODUCT(('Fixed assets'!$Q$2:$Q$1000=Costs!E$705)*('Fixed assets'!$U$2:$U$1000>Costs!$A718)*('Fixed assets'!$P$2:$P$1000=Costs!$A718)*('Fixed assets'!$S$2:$S$1000))","v":0},{"$f":"F630+SUMPRODUCT(('Fixed assets'!$Q$2:$Q$1000=Costs!F$705)*('Fixed assets'!$U$2:$U$1000>Costs!$A718)*('Fixed assets'!$P$2:$P$1000=Costs!$A718)*('Fixed assets'!$R$2:$R$1000))-SUMPRODUCT(('Fixed assets'!$Q$2:$Q$1000=Costs!F$705)*('Fixed assets'!$U$2:$U$1000>Costs!$A718)*('Fixed assets'!$P$2:$P$1000=Costs!$A718)*('Fixed assets'!$S$2:$S$1000))","v":0},{"$f":"G630+SUMPRODUCT(('Fixed assets'!$Q$2:$Q$1000=Costs!G$705)*('Fixed assets'!$U$2:$U$1000>Costs!$A718)*('Fixed assets'!$P$2:$P$1000=Costs!$A718)*('Fixed assets'!$R$2:$R$1000))-SUMPRODUCT(('Fixed assets'!$Q$2:$Q$1000=Costs!G$705)*('Fixed assets'!$U$2:$U$1000>Costs!$A718)*('Fixed assets'!$P$2:$P$1000=Costs!$A718)*('Fixed assets'!$S$2:$S$1000))","v":0},{"$f":"H630+SUMPRODUCT(('Fixed assets'!$Q$2:$Q$1000=Costs!H$705)*('Fixed assets'!$U$2:$U$1000>Costs!$A718)*('Fixed assets'!$P$2:$P$1000=Costs!$A718)*('Fixed assets'!$R$2:$R$1000))-SUMPRODUCT(('Fixed assets'!$Q$2:$Q$1000=Costs!H$705)*('Fixed assets'!$U$2:$U$1000>Costs!$A718)*('Fixed assets'!$P$2:$P$1000=Costs!$A718)*('Fixed assets'!$S$2:$S$1000))","v":0},{"$f":"I630+SUMPRODUCT(('Fixed assets'!$Q$2:$Q$1000=Costs!I$705)*('Fixed assets'!$U$2:$U$1000>Costs!$A718)*('Fixed assets'!$P$2:$P$1000=Costs!$A718)*('Fixed assets'!$R$2:$R$1000))-SUMPRODUCT(('Fixed assets'!$Q$2:$Q$1000=Costs!I$705)*('Fixed assets'!$U$2:$U$1000>Costs!$A718)*('Fixed assets'!$P$2:$P$1000=Costs!$A718)*('Fixed assets'!$S$2:$S$1000))","v":0},{"$f":"J630+SUMPRODUCT(('Fixed assets'!$Q$2:$Q$1000=Costs!J$705)*('Fixed assets'!$U$2:$U$1000>Costs!$A718)*('Fixed assets'!$P$2:$P$1000=Costs!$A718)*('Fixed assets'!$R$2:$R$1000))-SUMPRODUCT(('Fixed assets'!$Q$2:$Q$1000=Costs!J$705)*('Fixed assets'!$U$2:$U$1000>Costs!$A718)*('Fixed assets'!$P$2:$P$1000=Costs!$A718)*('Fixed assets'!$S$2:$S$1000))","v":0},{"$f":"K630+SUMPRODUCT(('Fixed assets'!$Q$2:$Q$1000=Costs!K$705)*('Fixed assets'!$U$2:$U$1000>Costs!$A718)*('Fixed assets'!$P$2:$P$1000=Costs!$A718)*('Fixed assets'!$R$2:$R$1000))-SUMPRODUCT(('Fixed assets'!$Q$2:$Q$1000=Costs!K$705)*('Fixed assets'!$U$2:$U$1000>Costs!$A718)*('Fixed assets'!$P$2:$P$1000=Costs!$A718)*('Fixed assets'!$S$2:$S$1000))","v":0},{"$f":"L630+SUMPRODUCT(('Fixed assets'!$Q$2:$Q$1000=Costs!L$705)*('Fixed assets'!$U$2:$U$1000>Costs!$A718)*('Fixed assets'!$P$2:$P$1000=Costs!$A718)*('Fixed assets'!$R$2:$R$1000))-SUMPRODUCT(('Fixed assets'!$Q$2:$Q$1000=Costs!L$705)*('Fixed assets'!$U$2:$U$1000>Costs!$A718)*('Fixed assets'!$P$2:$P$1000=Costs!$A718)*('Fixed assets'!$S$2:$S$1000))","v":0},{"$f":"M630+SUMPRODUCT(('Fixed assets'!$Q$2:$Q$1000=Costs!M$705)*('Fixed assets'!$U$2:$U$1000>Costs!$A718)*('Fixed assets'!$P$2:$P$1000=Costs!$A718)*('Fixed assets'!$R$2:$R$1000))-SUMPRODUCT(('Fixed assets'!$Q$2:$Q$1000=Costs!M$705)*('Fixed assets'!$U$2:$U$1000>Costs!$A718)*('Fixed assets'!$P$2:$P$1000=Costs!$A718)*('Fixed assets'!$S$2:$S$1000))","v":0},{"$f":"N630+SUMPRODUCT(('Fixed assets'!$Q$2:$Q$1000=Costs!N$705)*('Fixed assets'!$U$2:$U$1000>Costs!$A718)*('Fixed assets'!$P$2:$P$1000=Costs!$A718)*('Fixed assets'!$R$2:$R$1000))-SUMPRODUCT(('Fixed assets'!$Q$2:$Q$1000=Costs!N$705)*('Fixed assets'!$U$2:$U$1000>Costs!$A718)*('Fixed assets'!$P$2:$P$1000=Costs!$A718)*('Fixed assets'!$S$2:$S$1000))","v":0},{"$f":"O630+SUMPRODUCT(('Fixed assets'!$Q$2:$Q$1000=Costs!O$705)*('Fixed assets'!$U$2:$U$1000>Costs!$A718)*('Fixed assets'!$P$2:$P$1000=Costs!$A718)*('Fixed assets'!$R$2:$R$1000))-SUMPRODUCT(('Fixed assets'!$Q$2:$Q$1000=Costs!O$705)*('Fixed assets'!$U$2:$U$1000>Costs!$A718)*('Fixed assets'!$P$2:$P$1000=Costs!$A718)*('Fixed assets'!$S$2:$S$1000))","v":0},{"$f":"P630+SUMPRODUCT(('Fixed assets'!$Q$2:$Q$1000=Costs!P$705)*('Fixed assets'!$U$2:$U$1000>Costs!$A718)*('Fixed assets'!$P$2:$P$1000=Costs!$A718)*('Fixed assets'!$R$2:$R$1000))-SUMPRODUCT(('Fixed assets'!$Q$2:$Q$1000=Costs!P$705)*('Fixed assets'!$U$2:$U$1000>Costs!$A718)*('Fixed assets'!$P$2:$P$1000=Costs!$A718)*('Fixed assets'!$S$2:$S$1000))","v":0},{"$f":"Q630+SUMPRODUCT(('Fixed assets'!$Q$2:$Q$1000=Costs!Q$705)*('Fixed assets'!$U$2:$U$1000>Costs!$A718)*('Fixed assets'!$P$2:$P$1000=Costs!$A718)*('Fixed assets'!$R$2:$R$1000))-SUMPRODUCT(('Fixed assets'!$Q$2:$Q$1000=Costs!Q$705)*('Fixed assets'!$U$2:$U$1000>Costs!$A718)*('Fixed assets'!$P$2:$P$1000=Costs!$A718)*('Fixed assets'!$S$2:$S$1000))","v":0},{"$f":"R630+SUMPRODUCT(('Fixed assets'!$Q$2:$Q$1000=Costs!R$705)*('Fixed assets'!$U$2:$U$1000>Costs!$A718)*('Fixed assets'!$P$2:$P$1000=Costs!$A718)*('Fixed assets'!$R$2:$R$1000))-SUMPRODUCT(('Fixed assets'!$Q$2:$Q$1000=Costs!R$705)*('Fixed assets'!$U$2:$U$1000>Costs!$A718)*('Fixed assets'!$P$2:$P$1000=Costs!$A718)*('Fixed assets'!$S$2:$S$1000))","v":0},{"$f":"S630+SUMPRODUCT(('Fixed assets'!$Q$2:$Q$1000=Costs!S$705)*('Fixed assets'!$U$2:$U$1000>Costs!$A718)*('Fixed assets'!$P$2:$P$1000=Costs!$A718)*('Fixed assets'!$R$2:$R$1000))-SUMPRODUCT(('Fixed assets'!$Q$2:$Q$1000=Costs!S$705)*('Fixed assets'!$U$2:$U$1000>Costs!$A718)*('Fixed assets'!$P$2:$P$1000=Costs!$A718)*('Fixed assets'!$S$2:$S$1000))","v":0},{"$f":"T630+SUMPRODUCT(('Fixed assets'!$Q$2:$Q$1000=Costs!T$705)*('Fixed assets'!$U$2:$U$1000>Costs!$A718)*('Fixed assets'!$P$2:$P$1000=Costs!$A718)*('Fixed assets'!$R$2:$R$1000))-SUMPRODUCT(('Fixed assets'!$Q$2:$Q$1000=Costs!T$705)*('Fixed assets'!$U$2:$U$1000>Costs!$A718)*('Fixed assets'!$P$2:$P$1000=Costs!$A718)*('Fixed assets'!$S$2:$S$1000))","v":0},{"$f":"U630+SUMPRODUCT(('Fixed assets'!$Q$2:$Q$1000=Costs!U$705)*('Fixed assets'!$U$2:$U$1000>Costs!$A718)*('Fixed assets'!$P$2:$P$1000=Costs!$A718)*('Fixed assets'!$R$2:$R$1000))-SUMPRODUCT(('Fixed assets'!$Q$2:$Q$1000=Costs!U$705)*('Fixed assets'!$U$2:$U$1000>Costs!$A718)*('Fixed assets'!$P$2:$P$1000=Costs!$A718)*('Fixed assets'!$S$2:$S$1000))","v":0},{"$f":"V630+SUMPRODUCT(('Fixed assets'!$Q$2:$Q$1000=Costs!V$705)*('Fixed assets'!$U$2:$U$1000>Costs!$A718)*('Fixed assets'!$P$2:$P$1000=Costs!$A718)*('Fixed assets'!$R$2:$R$1000))-SUMPRODUCT(('Fixed assets'!$Q$2:$Q$1000=Costs!V$705)*('Fixed assets'!$U$2:$U$1000>Costs!$A718)*('Fixed assets'!$P$2:$P$1000=Costs!$A718)*('Fixed assets'!$S$2:$S$1000))","v":0},{"$f":"W630+SUMPRODUCT(('Fixed assets'!$Q$2:$Q$1000=Costs!W$705)*('Fixed assets'!$U$2:$U$1000>Costs!$A718)*('Fixed assets'!$P$2:$P$1000=Costs!$A718)*('Fixed assets'!$R$2:$R$1000))-SUMPRODUCT(('Fixed assets'!$Q$2:$Q$1000=Costs!W$705)*('Fixed assets'!$U$2:$U$1000>Costs!$A718)*('Fixed assets'!$P$2:$P$1000=Costs!$A718)*('Fixed assets'!$S$2:$S$1000))","v":0},{"$f":"X630+SUMPRODUCT(('Fixed assets'!$Q$2:$Q$1000=Costs!X$705)*('Fixed assets'!$U$2:$U$1000>Costs!$A718)*('Fixed assets'!$P$2:$P$1000=Costs!$A718)*('Fixed assets'!$R$2:$R$1000))-SUMPRODUCT(('Fixed assets'!$Q$2:$Q$1000=Costs!X$705)*('Fixed assets'!$U$2:$U$1000>Costs!$A718)*('Fixed assets'!$P$2:$P$1000=Costs!$A718)*('Fixed assets'!$S$2:$S$1000))","v":0},{"$f":"Y630+SUMPRODUCT(('Fixed assets'!$Q$2:$Q$1000=Costs!Y$705)*('Fixed assets'!$U$2:$U$1000>Costs!$A718)*('Fixed assets'!$P$2:$P$1000=Costs!$A718)*('Fixed assets'!$R$2:$R$1000))-SUMPRODUCT(('Fixed assets'!$Q$2:$Q$1000=Costs!Y$705)*('Fixed assets'!$U$2:$U$1000>Costs!$A718)*('Fixed assets'!$P$2:$P$1000=Costs!$A718)*('Fixed assets'!$S$2:$S$1000))","v":0},{"$f":"Z630+SUMPRODUCT(('Fixed assets'!$Q$2:$Q$1000=Costs!Z$705)*('Fixed assets'!$U$2:$U$1000>Costs!$A718)*('Fixed assets'!$P$2:$P$1000=Costs!$A718)*('Fixed assets'!$R$2:$R$1000))-SUMPRODUCT(('Fixed assets'!$Q$2:$Q$1000=Costs!Z$705)*('Fixed assets'!$U$2:$U$1000>Costs!$A718)*('Fixed assets'!$P$2:$P$1000=Costs!$A718)*('Fixed assets'!$S$2:$S$1000))","v":0},{"$f":"AA630+SUMPRODUCT(('Fixed assets'!$Q$2:$Q$1000=Costs!AA$705)*('Fixed assets'!$U$2:$U$1000>Costs!$A718)*('Fixed assets'!$P$2:$P$1000=Costs!$A718)*('Fixed assets'!$R$2:$R$1000))-SUMPRODUCT(('Fixed assets'!$Q$2:$Q$1000=Costs!AA$705)*('Fixed assets'!$U$2:$U$1000>Costs!$A718)*('Fixed assets'!$P$2:$P$1000=Costs!$A718)*('Fixed assets'!$S$2:$S$1000))","v":0},{"$f":"AB630+SUMPRODUCT(('Fixed assets'!$Q$2:$Q$1000=Costs!AB$705)*('Fixed assets'!$U$2:$U$1000>Costs!$A718)*('Fixed assets'!$P$2:$P$1000=Costs!$A718)*('Fixed assets'!$R$2:$R$1000))-SUMPRODUCT(('Fixed assets'!$Q$2:$Q$1000=Costs!AB$705)*('Fixed assets'!$U$2:$U$1000>Costs!$A718)*('Fixed assets'!$P$2:$P$1000=Costs!$A718)*('Fixed assets'!$S$2:$S$1000))","v":0},{"$f":"AC630+SUMPRODUCT(('Fixed assets'!$Q$2:$Q$1000=Costs!AC$705)*('Fixed assets'!$U$2:$U$1000>Costs!$A718)*('Fixed assets'!$P$2:$P$1000=Costs!$A718)*('Fixed assets'!$R$2:$R$1000))-SUMPRODUCT(('Fixed assets'!$Q$2:$Q$1000=Costs!AC$705)*('Fixed assets'!$U$2:$U$1000>Costs!$A718)*('Fixed assets'!$P$2:$P$1000=Costs!$A718)*('Fixed assets'!$S$2:$S$1000))","v":0},{"$f":"AD630+SUMPRODUCT(('Fixed assets'!$Q$2:$Q$1000=Costs!AD$705)*('Fixed assets'!$U$2:$U$1000>Costs!$A718)*('Fixed assets'!$P$2:$P$1000=Costs!$A718)*('Fixed assets'!$R$2:$R$1000))-SUMPRODUCT(('Fixed assets'!$Q$2:$Q$1000=Costs!AD$705)*('Fixed assets'!$U$2:$U$1000>Costs!$A718)*('Fixed assets'!$P$2:$P$1000=Costs!$A718)*('Fixed assets'!$S$2:$S$1000))","v":0},{"$f":"AE630+SUMPRODUCT(('Fixed assets'!$Q$2:$Q$1000=Costs!AE$705)*('Fixed assets'!$U$2:$U$1000>Costs!$A718)*('Fixed assets'!$P$2:$P$1000=Costs!$A718)*('Fixed assets'!$R$2:$R$1000))-SUMPRODUCT(('Fixed assets'!$Q$2:$Q$1000=Costs!AE$705)*('Fixed assets'!$U$2:$U$1000>Costs!$A718)*('Fixed assets'!$P$2:$P$1000=Costs!$A718)*('Fixed assets'!$S$2:$S$1000))","v":0},{"$f":"AF630+SUMPRODUCT(('Fixed assets'!$Q$2:$Q$1000=Costs!AF$705)*('Fixed assets'!$U$2:$U$1000>Costs!$A718)*('Fixed assets'!$P$2:$P$1000=Costs!$A718)*('Fixed assets'!$R$2:$R$1000))-SUMPRODUCT(('Fixed assets'!$Q$2:$Q$1000=Costs!AF$705)*('Fixed assets'!$U$2:$U$1000>Costs!$A718)*('Fixed assets'!$P$2:$P$1000=Costs!$A718)*('Fixed assets'!$S$2:$S$1000))","v":0},{"$f":"AG630+SUMPRODUCT(('Fixed assets'!$Q$2:$Q$1000=Costs!AG$705)*('Fixed assets'!$U$2:$U$1000>Costs!$A718)*('Fixed assets'!$P$2:$P$1000=Costs!$A718)*('Fixed assets'!$R$2:$R$1000))-SUMPRODUCT(('Fixed assets'!$Q$2:$Q$1000=Costs!AG$705)*('Fixed assets'!$U$2:$U$1000>Costs!$A718)*('Fixed assets'!$P$2:$P$1000=Costs!$A718)*('Fixed assets'!$S$2:$S$1000))","v":0},{"$f":"AH630+SUMPRODUCT(('Fixed assets'!$Q$2:$Q$1000=Costs!AH$705)*('Fixed assets'!$U$2:$U$1000>Costs!$A718)*('Fixed assets'!$P$2:$P$1000=Costs!$A718)*('Fixed assets'!$R$2:$R$1000))-SUMPRODUCT(('Fixed assets'!$Q$2:$Q$1000=Costs!AH$705)*('Fixed assets'!$U$2:$U$1000>Costs!$A718)*('Fixed assets'!$P$2:$P$1000=Costs!$A718)*('Fixed assets'!$S$2:$S$1000))","v":0},{"$f":"AI630+SUMPRODUCT(('Fixed assets'!$Q$2:$Q$1000=Costs!AI$705)*('Fixed assets'!$U$2:$U$1000>Costs!$A718)*('Fixed assets'!$P$2:$P$1000=Costs!$A718)*('Fixed assets'!$R$2:$R$1000))-SUMPRODUCT(('Fixed assets'!$Q$2:$Q$1000=Costs!AI$705)*('Fixed assets'!$U$2:$U$1000>Costs!$A718)*('Fixed assets'!$P$2:$P$1000=Costs!$A718)*('Fixed assets'!$S$2:$S$1000))","v":0},{"$f":"AJ630+SUMPRODUCT(('Fixed assets'!$Q$2:$Q$1000=Costs!AJ$705)*('Fixed assets'!$U$2:$U$1000>Costs!$A718)*('Fixed assets'!$P$2:$P$1000=Costs!$A718)*('Fixed assets'!$R$2:$R$1000))-SUMPRODUCT(('Fixed assets'!$Q$2:$Q$1000=Costs!AJ$705)*('Fixed assets'!$U$2:$U$1000>Costs!$A718)*('Fixed assets'!$P$2:$P$1000=Costs!$A718)*('Fixed assets'!$S$2:$S$1000))","v":0},{"$f":"AK630+SUMPRODUCT(('Fixed assets'!$Q$2:$Q$1000=Costs!AK$705)*('Fixed assets'!$U$2:$U$1000>Costs!$A718)*('Fixed assets'!$P$2:$P$1000=Costs!$A718)*('Fixed assets'!$R$2:$R$1000))-SUMPRODUCT(('Fixed assets'!$Q$2:$Q$1000=Costs!AK$705)*('Fixed assets'!$U$2:$U$1000>Costs!$A718)*('Fixed assets'!$P$2:$P$1000=Costs!$A718)*('Fixed assets'!$S$2:$S$1000))","v":0},{"$f":"AL630+SUMPRODUCT(('Fixed assets'!$Q$2:$Q$1000=Costs!AL$705)*('Fixed assets'!$U$2:$U$1000>Costs!$A718)*('Fixed assets'!$P$2:$P$1000=Costs!$A718)*('Fixed assets'!$R$2:$R$1000))-SUMPRODUCT(('Fixed assets'!$Q$2:$Q$1000=Costs!AL$705)*('Fixed assets'!$U$2:$U$1000>Costs!$A718)*('Fixed assets'!$P$2:$P$1000=Costs!$A718)*('Fixed assets'!$S$2:$S$1000))","v":0},{"$f":"AM630+SUMPRODUCT(('Fixed assets'!$Q$2:$Q$1000=Costs!AM$705)*('Fixed assets'!$U$2:$U$1000>Costs!$A718)*('Fixed assets'!$P$2:$P$1000=Costs!$A718)*('Fixed assets'!$R$2:$R$1000))-SUMPRODUCT(('Fixed assets'!$Q$2:$Q$1000=Costs!AM$705)*('Fixed assets'!$U$2:$U$1000>Costs!$A718)*('Fixed assets'!$P$2:$P$1000=Costs!$A718)*('Fixed assets'!$S$2:$S$1000))","v":0},{"$f":"AN630+SUMPRODUCT(('Fixed assets'!$Q$2:$Q$1000=Costs!AN$705)*('Fixed assets'!$U$2:$U$1000>Costs!$A718)*('Fixed assets'!$P$2:$P$1000=Costs!$A718)*('Fixed assets'!$R$2:$R$1000))-SUMPRODUCT(('Fixed assets'!$Q$2:$Q$1000=Costs!AN$705)*('Fixed assets'!$U$2:$U$1000>Costs!$A718)*('Fixed assets'!$P$2:$P$1000=Costs!$A718)*('Fixed assets'!$S$2:$S$1000))","v":0},{"$f":"AO630+SUMPRODUCT(('Fixed assets'!$Q$2:$Q$1000=Costs!AO$705)*('Fixed assets'!$U$2:$U$1000>Costs!$A718)*('Fixed assets'!$P$2:$P$1000=Costs!$A718)*('Fixed assets'!$R$2:$R$1000))-SUMPRODUCT(('Fixed assets'!$Q$2:$Q$1000=Costs!AO$705)*('Fixed assets'!$U$2:$U$1000>Costs!$A718)*('Fixed assets'!$P$2:$P$1000=Costs!$A718)*('Fixed assets'!$S$2:$S$1000))","v":0},{"$f":"AP630+SUMPRODUCT(('Fixed assets'!$Q$2:$Q$1000=Costs!AP$705)*('Fixed assets'!$U$2:$U$1000>Costs!$A718)*('Fixed assets'!$P$2:$P$1000=Costs!$A718)*('Fixed assets'!$R$2:$R$1000))-SUMPRODUCT(('Fixed assets'!$Q$2:$Q$1000=Costs!AP$705)*('Fixed assets'!$U$2:$U$1000>Costs!$A718)*('Fixed assets'!$P$2:$P$1000=Costs!$A718)*('Fixed assets'!$S$2:$S$1000))","v":0},{"$f":"AQ630+SUMPRODUCT(('Fixed assets'!$Q$2:$Q$1000=Costs!AQ$705)*('Fixed assets'!$U$2:$U$1000>Costs!$A718)*('Fixed assets'!$P$2:$P$1000=Costs!$A718)*('Fixed assets'!$R$2:$R$1000))-SUMPRODUCT(('Fixed assets'!$Q$2:$Q$1000=Costs!AQ$705)*('Fixed assets'!$U$2:$U$1000>Costs!$A718)*('Fixed assets'!$P$2:$P$1000=Costs!$A718)*('Fixed assets'!$S$2:$S$1000))","v":0}]
[2028,0,{"$f":"C631+SUMPRODUCT(('Fixed assets'!$Q$2:$Q$1000=Costs!C$705)*('Fixed assets'!$U$2:$U$1000>Costs!$A719)*('Fixed assets'!$P$2:$P$1000=Costs!$A719)*('Fixed assets'!$R$2:$R$1000))-SUMPRODUCT(('Fixed assets'!$Q$2:$Q$1000=Costs!C$705)*('Fixed assets'!$U$2:$U$1000>Costs!$A719)*('Fixed assets'!$P$2:$P$1000=Costs!$A719)*('Fixed assets'!$S$2:$S$1000))","v":0},{"$f":"D631+SUMPRODUCT(('Fixed assets'!$Q$2:$Q$1000=Costs!D$705)*('Fixed assets'!$U$2:$U$1000>Costs!$A719)*('Fixed assets'!$P$2:$P$1000=Costs!$A719)*('Fixed assets'!$R$2:$R$1000))-SUMPRODUCT(('Fixed assets'!$Q$2:$Q$1000=Costs!D$705)*('Fixed assets'!$U$2:$U$1000>Costs!$A719)*('Fixed assets'!$P$2:$P$1000=Costs!$A719)*('Fixed assets'!$S$2:$S$1000))","v":0},{"$f":"E631+SUMPRODUCT(('Fixed assets'!$Q$2:$Q$1000=Costs!E$705)*('Fixed assets'!$U$2:$U$1000>Costs!$A719)*('Fixed assets'!$P$2:$P$1000=Costs!$A719)*('Fixed assets'!$R$2:$R$1000))-SUMPRODUCT(('Fixed assets'!$Q$2:$Q$1000=Costs!E$705)*('Fixed assets'!$U$2:$U$1000>Costs!$A719)*('Fixed assets'!$P$2:$P$1000=Costs!$A719)*('Fixed assets'!$S$2:$S$1000))","v":0},{"$f":"F631+SUMPRODUCT(('Fixed assets'!$Q$2:$Q$1000=Costs!F$705)*('Fixed assets'!$U$2:$U$1000>Costs!$A719)*('Fixed assets'!$P$2:$P$1000=Costs!$A719)*('Fixed assets'!$R$2:$R$1000))-SUMPRODUCT(('Fixed assets'!$Q$2:$Q$1000=Costs!F$705)*('Fixed assets'!$U$2:$U$1000>Costs!$A719)*('Fixed assets'!$P$2:$P$1000=Costs!$A719)*('Fixed assets'!$S$2:$S$1000))","v":0},{"$f":"G631+SUMPRODUCT(('Fixed assets'!$Q$2:$Q$1000=Costs!G$705)*('Fixed assets'!$U$2:$U$1000>Costs!$A719)*('Fixed assets'!$P$2:$P$1000=Costs!$A719)*('Fixed assets'!$R$2:$R$1000))-SUMPRODUCT(('Fixed assets'!$Q$2:$Q$1000=Costs!G$705)*('Fixed assets'!$U$2:$U$1000>Costs!$A719)*('Fixed assets'!$P$2:$P$1000=Costs!$A719)*('Fixed assets'!$S$2:$S$1000))","v":0},{"$f":"H631+SUMPRODUCT(('Fixed assets'!$Q$2:$Q$1000=Costs!H$705)*('Fixed assets'!$U$2:$U$1000>Costs!$A719)*('Fixed assets'!$P$2:$P$1000=Costs!$A719)*('Fixed assets'!$R$2:$R$1000))-SUMPRODUCT(('Fixed assets'!$Q$2:$Q$1000=Costs!H$705)*('Fixed assets'!$U$2:$U$1000>Costs!$A719)*('Fixed assets'!$P$2:$P$1000=Costs!$A719)*('Fixed assets'!$S$2:$S$1000))","v":0},{"$f":"I631+SUMPRODUCT(('Fixed assets'!$Q$2:$Q$1000=Costs!I$705)*('Fixed assets'!$U$2:$U$1000>Costs!$A719)*('Fixed assets'!$P$2:$P$1000=Costs!$A719)*('Fixed assets'!$R$2:$R$1000))-SUMPRODUCT(('Fixed assets'!$Q$2:$Q$1000=Costs!I$705)*('Fixed assets'!$U$2:$U$1000>Costs!$A719)*('Fixed assets'!$P$2:$P$1000=Costs!$A719)*('Fixed assets'!$S$2:$S$1000))","v":0},{"$f":"J631+SUMPRODUCT(('Fixed assets'!$Q$2:$Q$1000=Costs!J$705)*('Fixed assets'!$U$2:$U$1000>Costs!$A719)*('Fixed assets'!$P$2:$P$1000=Costs!$A719)*('Fixed assets'!$R$2:$R$1000))-SUMPRODUCT(('Fixed assets'!$Q$2:$Q$1000=Costs!J$705)*('Fixed assets'!$U$2:$U$1000>Costs!$A719)*('Fixed assets'!$P$2:$P$1000=Costs!$A719)*('Fixed assets'!$S$2:$S$1000))","v":0},{"$f":"K631+SUMPRODUCT(('Fixed assets'!$Q$2:$Q$1000=Costs!K$705)*('Fixed assets'!$U$2:$U$1000>Costs!$A719)*('Fixed assets'!$P$2:$P$1000=Costs!$A719)*('Fixed assets'!$R$2:$R$1000))-SUMPRODUCT(('Fixed assets'!$Q$2:$Q$1000=Costs!K$705)*('Fixed assets'!$U$2:$U$1000>Costs!$A719)*('Fixed assets'!$P$2:$P$1000=Costs!$A719)*('Fixed assets'!$S$2:$S$1000))","v":0},{"$f":"L631+SUMPRODUCT(('Fixed assets'!$Q$2:$Q$1000=Costs!L$705)*('Fixed assets'!$U$2:$U$1000>Costs!$A719)*('Fixed assets'!$P$2:$P$1000=Costs!$A719)*('Fixed assets'!$R$2:$R$1000))-SUMPRODUCT(('Fixed assets'!$Q$2:$Q$1000=Costs!L$705)*('Fixed assets'!$U$2:$U$1000>Costs!$A719)*('Fixed assets'!$P$2:$P$1000=Costs!$A719)*('Fixed assets'!$S$2:$S$1000))","v":0},{"$f":"M631+SUMPRODUCT(('Fixed assets'!$Q$2:$Q$1000=Costs!M$705)*('Fixed assets'!$U$2:$U$1000>Costs!$A719)*('Fixed assets'!$P$2:$P$1000=Costs!$A719)*('Fixed assets'!$R$2:$R$1000))-SUMPRODUCT(('Fixed assets'!$Q$2:$Q$1000=Costs!M$705)*('Fixed assets'!$U$2:$U$1000>Costs!$A719)*('Fixed assets'!$P$2:$P$1000=Costs!$A719)*('Fixed assets'!$S$2:$S$1000))","v":0},{"$f":"N631+SUMPRODUCT(('Fixed assets'!$Q$2:$Q$1000=Costs!N$705)*('Fixed assets'!$U$2:$U$1000>Costs!$A719)*('Fixed assets'!$P$2:$P$1000=Costs!$A719)*('Fixed assets'!$R$2:$R$1000))-SUMPRODUCT(('Fixed assets'!$Q$2:$Q$1000=Costs!N$705)*('Fixed assets'!$U$2:$U$1000>Costs!$A719)*('Fixed assets'!$P$2:$P$1000=Costs!$A719)*('Fixed assets'!$S$2:$S$1000))","v":0},{"$f":"O631+SUMPRODUCT(('Fixed assets'!$Q$2:$Q$1000=Costs!O$705)*('Fixed assets'!$U$2:$U$1000>Costs!$A719)*('Fixed assets'!$P$2:$P$1000=Costs!$A719)*('Fixed assets'!$R$2:$R$1000))-SUMPRODUCT(('Fixed assets'!$Q$2:$Q$1000=Costs!O$705)*('Fixed assets'!$U$2:$U$1000>Costs!$A719)*('Fixed assets'!$P$2:$P$1000=Costs!$A719)*('Fixed assets'!$S$2:$S$1000))","v":0},{"$f":"P631+SUMPRODUCT(('Fixed assets'!$Q$2:$Q$1000=Costs!P$705)*('Fixed assets'!$U$2:$U$1000>Costs!$A719)*('Fixed assets'!$P$2:$P$1000=Costs!$A719)*('Fixed assets'!$R$2:$R$1000))-SUMPRODUCT(('Fixed assets'!$Q$2:$Q$1000=Costs!P$705)*('Fixed assets'!$U$2:$U$1000>Costs!$A719)*('Fixed assets'!$P$2:$P$1000=Costs!$A719)*('Fixed assets'!$S$2:$S$1000))","v":0},{"$f":"Q631+SUMPRODUCT(('Fixed assets'!$Q$2:$Q$1000=Costs!Q$705)*('Fixed assets'!$U$2:$U$1000>Costs!$A719)*('Fixed assets'!$P$2:$P$1000=Costs!$A719)*('Fixed assets'!$R$2:$R$1000))-SUMPRODUCT(('Fixed assets'!$Q$2:$Q$1000=Costs!Q$705)*('Fixed assets'!$U$2:$U$1000>Costs!$A719)*('Fixed assets'!$P$2:$P$1000=Costs!$A719)*('Fixed assets'!$S$2:$S$1000))","v":0},{"$f":"R631+SUMPRODUCT(('Fixed assets'!$Q$2:$Q$1000=Costs!R$705)*('Fixed assets'!$U$2:$U$1000>Costs!$A719)*('Fixed assets'!$P$2:$P$1000=Costs!$A719)*('Fixed assets'!$R$2:$R$1000))-SUMPRODUCT(('Fixed assets'!$Q$2:$Q$1000=Costs!R$705)*('Fixed assets'!$U$2:$U$1000>Costs!$A719)*('Fixed assets'!$P$2:$P$1000=Costs!$A719)*('Fixed assets'!$S$2:$S$1000))","v":0},{"$f":"S631+SUMPRODUCT(('Fixed assets'!$Q$2:$Q$1000=Costs!S$705)*('Fixed assets'!$U$2:$U$1000>Costs!$A719)*('Fixed assets'!$P$2:$P$1000=Costs!$A719)*('Fixed assets'!$R$2:$R$1000))-SUMPRODUCT(('Fixed assets'!$Q$2:$Q$1000=Costs!S$705)*('Fixed assets'!$U$2:$U$1000>Costs!$A719)*('Fixed assets'!$P$2:$P$1000=Costs!$A719)*('Fixed assets'!$S$2:$S$1000))","v":0},{"$f":"T631+SUMPRODUCT(('Fixed assets'!$Q$2:$Q$1000=Costs!T$705)*('Fixed assets'!$U$2:$U$1000>Costs!$A719)*('Fixed assets'!$P$2:$P$1000=Costs!$A719)*('Fixed assets'!$R$2:$R$1000))-SUMPRODUCT(('Fixed assets'!$Q$2:$Q$1000=Costs!T$705)*('Fixed assets'!$U$2:$U$1000>Costs!$A719)*('Fixed assets'!$P$2:$P$1000=Costs!$A719)*('Fixed assets'!$S$2:$S$1000))","v":0},{"$f":"U631+SUMPRODUCT(('Fixed assets'!$Q$2:$Q$1000=Costs!U$705)*('Fixed assets'!$U$2:$U$1000>Costs!$A719)*('Fixed assets'!$P$2:$P$1000=Costs!$A719)*('Fixed assets'!$R$2:$R$1000))-SUMPRODUCT(('Fixed assets'!$Q$2:$Q$1000=Costs!U$705)*('Fixed assets'!$U$2:$U$1000>Costs!$A719)*('Fixed assets'!$P$2:$P$1000=Costs!$A719)*('Fixed assets'!$S$2:$S$1000))","v":0},{"$f":"V631+SUMPRODUCT(('Fixed assets'!$Q$2:$Q$1000=Costs!V$705)*('Fixed assets'!$U$2:$U$1000>Costs!$A719)*('Fixed assets'!$P$2:$P$1000=Costs!$A719)*('Fixed assets'!$R$2:$R$1000))-SUMPRODUCT(('Fixed assets'!$Q$2:$Q$1000=Costs!V$705)*('Fixed assets'!$U$2:$U$1000>Costs!$A719)*('Fixed assets'!$P$2:$P$1000=Costs!$A719)*('Fixed assets'!$S$2:$S$1000))","v":0},{"$f":"W631+SUMPRODUCT(('Fixed assets'!$Q$2:$Q$1000=Costs!W$705)*('Fixed assets'!$U$2:$U$1000>Costs!$A719)*('Fixed assets'!$P$2:$P$1000=Costs!$A719)*('Fixed assets'!$R$2:$R$1000))-SUMPRODUCT(('Fixed assets'!$Q$2:$Q$1000=Costs!W$705)*('Fixed assets'!$U$2:$U$1000>Costs!$A719)*('Fixed assets'!$P$2:$P$1000=Costs!$A719)*('Fixed assets'!$S$2:$S$1000))","v":0},{"$f":"X631+SUMPRODUCT(('Fixed assets'!$Q$2:$Q$1000=Costs!X$705)*('Fixed assets'!$U$2:$U$1000>Costs!$A719)*('Fixed assets'!$P$2:$P$1000=Costs!$A719)*('Fixed assets'!$R$2:$R$1000))-SUMPRODUCT(('Fixed assets'!$Q$2:$Q$1000=Costs!X$705)*('Fixed assets'!$U$2:$U$1000>Costs!$A719)*('Fixed assets'!$P$2:$P$1000=Costs!$A719)*('Fixed assets'!$S$2:$S$1000))","v":0},{"$f":"Y631+SUMPRODUCT(('Fixed assets'!$Q$2:$Q$1000=Costs!Y$705)*('Fixed assets'!$U$2:$U$1000>Costs!$A719)*('Fixed assets'!$P$2:$P$1000=Costs!$A719)*('Fixed assets'!$R$2:$R$1000))-SUMPRODUCT(('Fixed assets'!$Q$2:$Q$1000=Costs!Y$705)*('Fixed assets'!$U$2:$U$1000>Costs!$A719)*('Fixed assets'!$P$2:$P$1000=Costs!$A719)*('Fixed assets'!$S$2:$S$1000))","v":0},{"$f":"Z631+SUMPRODUCT(('Fixed assets'!$Q$2:$Q$1000=Costs!Z$705)*('Fixed assets'!$U$2:$U$1000>Costs!$A719)*('Fixed assets'!$P$2:$P$1000=Costs!$A719)*('Fixed assets'!$R$2:$R$1000))-SUMPRODUCT(('Fixed assets'!$Q$2:$Q$1000=Costs!Z$705)*('Fixed assets'!$U$2:$U$1000>Costs!$A719)*('Fixed assets'!$P$2:$P$1000=Costs!$A719)*('Fixed assets'!$S$2:$S$1000))","v":0},{"$f":"AA631+SUMPRODUCT(('Fixed assets'!$Q$2:$Q$1000=Costs!AA$705)*('Fixed assets'!$U$2:$U$1000>Costs!$A719)*('Fixed assets'!$P$2:$P$1000=Costs!$A719)*('Fixed assets'!$R$2:$R$1000))-SUMPRODUCT(('Fixed assets'!$Q$2:$Q$1000=Costs!AA$705)*('Fixed assets'!$U$2:$U$1000>Costs!$A719)*('Fixed assets'!$P$2:$P$1000=Costs!$A719)*('Fixed assets'!$S$2:$S$1000))","v":0},{"$f":"AB631+SUMPRODUCT(('Fixed assets'!$Q$2:$Q$1000=Costs!AB$705)*('Fixed assets'!$U$2:$U$1000>Costs!$A719)*('Fixed assets'!$P$2:$P$1000=Costs!$A719)*('Fixed assets'!$R$2:$R$1000))-SUMPRODUCT(('Fixed assets'!$Q$2:$Q$1000=Costs!AB$705)*('Fixed assets'!$U$2:$U$1000>Costs!$A719)*('Fixed assets'!$P$2:$P$1000=Costs!$A719)*('Fixed assets'!$S$2:$S$1000))","v":0},{"$f":"AC631+SUMPRODUCT(('Fixed assets'!$Q$2:$Q$1000=Costs!AC$705)*('Fixed assets'!$U$2:$U$1000>Costs!$A719)*('Fixed assets'!$P$2:$P$1000=Costs!$A719)*('Fixed assets'!$R$2:$R$1000))-SUMPRODUCT(('Fixed assets'!$Q$2:$Q$1000=Costs!AC$705)*('Fixed assets'!$U$2:$U$1000>Costs!$A719)*('Fixed assets'!$P$2:$P$1000=Costs!$A719)*('Fixed assets'!$S$2:$S$1000))","v":0},{"$f":"AD631+SUMPRODUCT(('Fixed assets'!$Q$2:$Q$1000=Costs!AD$705)*('Fixed assets'!$U$2:$U$1000>Costs!$A719)*('Fixed assets'!$P$2:$P$1000=Costs!$A719)*('Fixed assets'!$R$2:$R$1000))-SUMPRODUCT(('Fixed assets'!$Q$2:$Q$1000=Costs!AD$705)*('Fixed assets'!$U$2:$U$1000>Costs!$A719)*('Fixed assets'!$P$2:$P$1000=Costs!$A719)*('Fixed assets'!$S$2:$S$1000))","v":0},{"$f":"AE631+SUMPRODUCT(('Fixed assets'!$Q$2:$Q$1000=Costs!AE$705)*('Fixed assets'!$U$2:$U$1000>Costs!$A719)*('Fixed assets'!$P$2:$P$1000=Costs!$A719)*('Fixed assets'!$R$2:$R$1000))-SUMPRODUCT(('Fixed assets'!$Q$2:$Q$1000=Costs!AE$705)*('Fixed assets'!$U$2:$U$1000>Costs!$A719)*('Fixed assets'!$P$2:$P$1000=Costs!$A719)*('Fixed assets'!$S$2:$S$1000))","v":0},{"$f":"AF631+SUMPRODUCT(('Fixed assets'!$Q$2:$Q$1000=Costs!AF$705)*('Fixed assets'!$U$2:$U$1000>Costs!$A719)*('Fixed assets'!$P$2:$P$1000=Costs!$A719)*('Fixed assets'!$R$2:$R$1000))-SUMPRODUCT(('Fixed assets'!$Q$2:$Q$1000=Costs!AF$705)*('Fixed assets'!$U$2:$U$1000>Costs!$A719)*('Fixed assets'!$P$2:$P$1000=Costs!$A719)*('Fixed assets'!$S$2:$S$1000))","v":0},{"$f":"AG631+SUMPRODUCT(('Fixed assets'!$Q$2:$Q$1000=Costs!AG$705)*('Fixed assets'!$U$2:$U$1000>Costs!$A719)*('Fixed assets'!$P$2:$P$1000=Costs!$A719)*('Fixed assets'!$R$2:$R$1000))-SUMPRODUCT(('Fixed assets'!$Q$2:$Q$1000=Costs!AG$705)*('Fixed assets'!$U$2:$U$1000>Costs!$A719)*('Fixed assets'!$P$2:$P$1000=Costs!$A719)*('Fixed assets'!$S$2:$S$1000))","v":0},{"$f":"AH631+SUMPRODUCT(('Fixed assets'!$Q$2:$Q$1000=Costs!AH$705)*('Fixed assets'!$U$2:$U$1000>Costs!$A719)*('Fixed assets'!$P$2:$P$1000=Costs!$A719)*('Fixed assets'!$R$2:$R$1000))-SUMPRODUCT(('Fixed assets'!$Q$2:$Q$1000=Costs!AH$705)*('Fixed assets'!$U$2:$U$1000>Costs!$A719)*('Fixed assets'!$P$2:$P$1000=Costs!$A719)*('Fixed assets'!$S$2:$S$1000))","v":0},{"$f":"AI631+SUMPRODUCT(('Fixed assets'!$Q$2:$Q$1000=Costs!AI$705)*('Fixed assets'!$U$2:$U$1000>Costs!$A719)*('Fixed assets'!$P$2:$P$1000=Costs!$A719)*('Fixed assets'!$R$2:$R$1000))-SUMPRODUCT(('Fixed assets'!$Q$2:$Q$1000=Costs!AI$705)*('Fixed assets'!$U$2:$U$1000>Costs!$A719)*('Fixed assets'!$P$2:$P$1000=Costs!$A719)*('Fixed assets'!$S$2:$S$1000))","v":0},{"$f":"AJ631+SUMPRODUCT(('Fixed assets'!$Q$2:$Q$1000=Costs!AJ$705)*('Fixed assets'!$U$2:$U$1000>Costs!$A719)*('Fixed assets'!$P$2:$P$1000=Costs!$A719)*('Fixed assets'!$R$2:$R$1000))-SUMPRODUCT(('Fixed assets'!$Q$2:$Q$1000=Costs!AJ$705)*('Fixed assets'!$U$2:$U$1000>Costs!$A719)*('Fixed assets'!$P$2:$P$1000=Costs!$A719)*('Fixed assets'!$S$2:$S$1000))","v":0},{"$f":"AK631+SUMPRODUCT(('Fixed assets'!$Q$2:$Q$1000=Costs!AK$705)*('Fixed assets'!$U$2:$U$1000>Costs!$A719)*('Fixed assets'!$P$2:$P$1000=Costs!$A719)*('Fixed assets'!$R$2:$R$1000))-SUMPRODUCT(('Fixed assets'!$Q$2:$Q$1000=Costs!AK$705)*('Fixed assets'!$U$2:$U$1000>Costs!$A719)*('Fixed assets'!$P$2:$P$1000=Costs!$A719)*('Fixed assets'!$S$2:$S$1000))","v":0},{"$f":"AL631+SUMPRODUCT(('Fixed assets'!$Q$2:$Q$1000=Costs!AL$705)*('Fixed assets'!$U$2:$U$1000>Costs!$A719)*('Fixed assets'!$P$2:$P$1000=Costs!$A719)*('Fixed assets'!$R$2:$R$1000))-SUMPRODUCT(('Fixed assets'!$Q$2:$Q$1000=Costs!AL$705)*('Fixed assets'!$U$2:$U$1000>Costs!$A719)*('Fixed assets'!$P$2:$P$1000=Costs!$A719)*('Fixed assets'!$S$2:$S$1000))","v":0},{"$f":"AM631+SUMPRODUCT(('Fixed assets'!$Q$2:$Q$1000=Costs!AM$705)*('Fixed assets'!$U$2:$U$1000>Costs!$A719)*('Fixed assets'!$P$2:$P$1000=Costs!$A719)*('Fixed assets'!$R$2:$R$1000))-SUMPRODUCT(('Fixed assets'!$Q$2:$Q$1000=Costs!AM$705)*('Fixed assets'!$U$2:$U$1000>Costs!$A719)*('Fixed assets'!$P$2:$P$1000=Costs!$A719)*('Fixed assets'!$S$2:$S$1000))","v":0},{"$f":"AN631+SUMPRODUCT(('Fixed assets'!$Q$2:$Q$1000=Costs!AN$705)*('Fixed assets'!$U$2:$U$1000>Costs!$A719)*('Fixed assets'!$P$2:$P$1000=Costs!$A719)*('Fixed assets'!$R$2:$R$1000))-SUMPRODUCT(('Fixed assets'!$Q$2:$Q$1000=Costs!AN$705)*('Fixed assets'!$U$2:$U$1000>Costs!$A719)*('Fixed assets'!$P$2:$P$1000=Costs!$A719)*('Fixed assets'!$S$2:$S$1000))","v":0},{"$f":"AO631+SUMPRODUCT(('Fixed assets'!$Q$2:$Q$1000=Costs!AO$705)*('Fixed assets'!$U$2:$U$1000>Costs!$A719)*('Fixed assets'!$P$2:$P$1000=Costs!$A719)*('Fixed assets'!$R$2:$R$1000))-SUMPRODUCT(('Fixed assets'!$Q$2:$Q$1000=Costs!AO$705)*('Fixed assets'!$U$2:$U$1000>Costs!$A719)*('Fixed assets'!$P$2:$P$1000=Costs!$A719)*('Fixed assets'!$S$2:$S$1000))","v":0},{"$f":"AP631+SUMPRODUCT(('Fixed assets'!$Q$2:$Q$1000=Costs!AP$705)*('Fixed assets'!$U$2:$U$1000>Costs!$A719)*('Fixed assets'!$P$2:$P$1000=Costs!$A719)*('Fixed assets'!$R$2:$R$1000))-SUMPRODUCT(('Fixed assets'!$Q$2:$Q$1000=Costs!AP$705)*('Fixed assets'!$U$2:$U$1000>Costs!$A719)*('Fixed assets'!$P$2:$P$1000=Costs!$A719)*('Fixed assets'!$S$2:$S$1000))","v":0},{"$f":"AQ631+SUMPRODUCT(('Fixed assets'!$Q$2:$Q$1000=Costs!AQ$705)*('Fixed assets'!$U$2:$U$1000>Costs!$A719)*('Fixed assets'!$P$2:$P$1000=Costs!$A719)*('Fixed assets'!$R$2:$R$1000))-SUMPRODUCT(('Fixed assets'!$Q$2:$Q$1000=Costs!AQ$705)*('Fixed assets'!$U$2:$U$1000>Costs!$A719)*('Fixed assets'!$P$2:$P$1000=Costs!$A719)*('Fixed assets'!$S$2:$S$1000))","v":0}]
[2029,0,{"$f":"C632+SUMPRODUCT(('Fixed assets'!$Q$2:$Q$1000=Costs!C$705)*('Fixed assets'!$U$2:$U$1000>Costs!$A720)*('Fixed assets'!$P$2:$P$1000=Costs!$A720)*('Fixed assets'!$R$2:$R$1000))-SUMPRODUCT(('Fixed assets'!$Q$2:$Q$1000=Costs!C$705)*('Fixed assets'!$U$2:$U$1000>Costs!$A720)*('Fixed assets'!$P$2:$P$1000=Costs!$A720)*('Fixed assets'!$S$2:$S$1000))","v":0},{"$f":"D632+SUMPRODUCT(('Fixed assets'!$Q$2:$Q$1000=Costs!D$705)*('Fixed assets'!$U$2:$U$1000>Costs!$A720)*('Fixed assets'!$P$2:$P$1000=Costs!$A720)*('Fixed assets'!$R$2:$R$1000))-SUMPRODUCT(('Fixed assets'!$Q$2:$Q$1000=Costs!D$705)*('Fixed assets'!$U$2:$U$1000>Costs!$A720)*('Fixed assets'!$P$2:$P$1000=Costs!$A720)*('Fixed assets'!$S$2:$S$1000))","v":0},{"$f":"E632+SUMPRODUCT(('Fixed assets'!$Q$2:$Q$1000=Costs!E$705)*('Fixed assets'!$U$2:$U$1000>Costs!$A720)*('Fixed assets'!$P$2:$P$1000=Costs!$A720)*('Fixed assets'!$R$2:$R$1000))-SUMPRODUCT(('Fixed assets'!$Q$2:$Q$1000=Costs!E$705)*('Fixed assets'!$U$2:$U$1000>Costs!$A720)*('Fixed assets'!$P$2:$P$1000=Costs!$A720)*('Fixed assets'!$S$2:$S$1000))","v":0},{"$f":"F632+SUMPRODUCT(('Fixed assets'!$Q$2:$Q$1000=Costs!F$705)*('Fixed assets'!$U$2:$U$1000>Costs!$A720)*('Fixed assets'!$P$2:$P$1000=Costs!$A720)*('Fixed assets'!$R$2:$R$1000))-SUMPRODUCT(('Fixed assets'!$Q$2:$Q$1000=Costs!F$705)*('Fixed assets'!$U$2:$U$1000>Costs!$A720)*('Fixed assets'!$P$2:$P$1000=Costs!$A720)*('Fixed assets'!$S$2:$S$1000))","v":0},{"$f":"G632+SUMPRODUCT(('Fixed assets'!$Q$2:$Q$1000=Costs!G$705)*('Fixed assets'!$U$2:$U$1000>Costs!$A720)*('Fixed assets'!$P$2:$P$1000=Costs!$A720)*('Fixed assets'!$R$2:$R$1000))-SUMPRODUCT(('Fixed assets'!$Q$2:$Q$1000=Costs!G$705)*('Fixed assets'!$U$2:$U$1000>Costs!$A720)*('Fixed assets'!$P$2:$P$1000=Costs!$A720)*('Fixed assets'!$S$2:$S$1000))","v":0},{"$f":"H632+SUMPRODUCT(('Fixed assets'!$Q$2:$Q$1000=Costs!H$705)*('Fixed assets'!$U$2:$U$1000>Costs!$A720)*('Fixed assets'!$P$2:$P$1000=Costs!$A720)*('Fixed assets'!$R$2:$R$1000))-SUMPRODUCT(('Fixed assets'!$Q$2:$Q$1000=Costs!H$705)*('Fixed assets'!$U$2:$U$1000>Costs!$A720)*('Fixed assets'!$P$2:$P$1000=Costs!$A720)*('Fixed assets'!$S$2:$S$1000))","v":0},{"$f":"I632+SUMPRODUCT(('Fixed assets'!$Q$2:$Q$1000=Costs!I$705)*('Fixed assets'!$U$2:$U$1000>Costs!$A720)*('Fixed assets'!$P$2:$P$1000=Costs!$A720)*('Fixed assets'!$R$2:$R$1000))-SUMPRODUCT(('Fixed assets'!$Q$2:$Q$1000=Costs!I$705)*('Fixed assets'!$U$2:$U$1000>Costs!$A720)*('Fixed assets'!$P$2:$P$1000=Costs!$A720)*('Fixed assets'!$S$2:$S$1000))","v":0},{"$f":"J632+SUMPRODUCT(('Fixed assets'!$Q$2:$Q$1000=Costs!J$705)*('Fixed assets'!$U$2:$U$1000>Costs!$A720)*('Fixed assets'!$P$2:$P$1000=Costs!$A720)*('Fixed assets'!$R$2:$R$1000))-SUMPRODUCT(('Fixed assets'!$Q$2:$Q$1000=Costs!J$705)*('Fixed assets'!$U$2:$U$1000>Costs!$A720)*('Fixed assets'!$P$2:$P$1000=Costs!$A720)*('Fixed assets'!$S$2:$S$1000))","v":0},{"$f":"K632+SUMPRODUCT(('Fixed assets'!$Q$2:$Q$1000=Costs!K$705)*('Fixed assets'!$U$2:$U$1000>Costs!$A720)*('Fixed assets'!$P$2:$P$1000=Costs!$A720)*('Fixed assets'!$R$2:$R$1000))-SUMPRODUCT(('Fixed assets'!$Q$2:$Q$1000=Costs!K$705)*('Fixed assets'!$U$2:$U$1000>Costs!$A720)*('Fixed assets'!$P$2:$P$1000=Costs!$A720)*('Fixed assets'!$S$2:$S$1000))","v":0},{"$f":"L632+SUMPRODUCT(('Fixed assets'!$Q$2:$Q$1000=Costs!L$705)*('Fixed assets'!$U$2:$U$1000>Costs!$A720)*('Fixed assets'!$P$2:$P$1000=Costs!$A720)*('Fixed assets'!$R$2:$R$1000))-SUMPRODUCT(('Fixed assets'!$Q$2:$Q$1000=Costs!L$705)*('Fixed assets'!$U$2:$U$1000>Costs!$A720)*('Fixed assets'!$P$2:$P$1000=Costs!$A720)*('Fixed assets'!$S$2:$S$1000))","v":0},{"$f":"M632+SUMPRODUCT(('Fixed assets'!$Q$2:$Q$1000=Costs!M$705)*('Fixed assets'!$U$2:$U$1000>Costs!$A720)*('Fixed assets'!$P$2:$P$1000=Costs!$A720)*('Fixed assets'!$R$2:$R$1000))-SUMPRODUCT(('Fixed assets'!$Q$2:$Q$1000=Costs!M$705)*('Fixed assets'!$U$2:$U$1000>Costs!$A720)*('Fixed assets'!$P$2:$P$1000=Costs!$A720)*('Fixed assets'!$S$2:$S$1000))","v":0},{"$f":"N632+SUMPRODUCT(('Fixed assets'!$Q$2:$Q$1000=Costs!N$705)*('Fixed assets'!$U$2:$U$1000>Costs!$A720)*('Fixed assets'!$P$2:$P$1000=Costs!$A720)*('Fixed assets'!$R$2:$R$1000))-SUMPRODUCT(('Fixed assets'!$Q$2:$Q$1000=Costs!N$705)*('Fixed assets'!$U$2:$U$1000>Costs!$A720)*('Fixed assets'!$P$2:$P$1000=Costs!$A720)*('Fixed assets'!$S$2:$S$1000))","v":0},{"$f":"O632+SUMPRODUCT(('Fixed assets'!$Q$2:$Q$1000=Costs!O$705)*('Fixed assets'!$U$2:$U$1000>Costs!$A720)*('Fixed assets'!$P$2:$P$1000=Costs!$A720)*('Fixed assets'!$R$2:$R$1000))-SUMPRODUCT(('Fixed assets'!$Q$2:$Q$1000=Costs!O$705)*('Fixed assets'!$U$2:$U$1000>Costs!$A720)*('Fixed assets'!$P$2:$P$1000=Costs!$A720)*('Fixed assets'!$S$2:$S$1000))","v":0},{"$f":"P632+SUMPRODUCT(('Fixed assets'!$Q$2:$Q$1000=Costs!P$705)*('Fixed assets'!$U$2:$U$1000>Costs!$A720)*('Fixed assets'!$P$2:$P$1000=Costs!$A720)*('Fixed assets'!$R$2:$R$1000))-SUMPRODUCT(('Fixed assets'!$Q$2:$Q$1000=Costs!P$705)*('Fixed assets'!$U$2:$U$1000>Costs!$A720)*('Fixed assets'!$P$2:$P$1000=Costs!$A720)*('Fixed assets'!$S$2:$S$1000))","v":0},{"$f":"Q632+SUMPRODUCT(('Fixed assets'!$Q$2:$Q$1000=Costs!Q$705)*('Fixed assets'!$U$2:$U$1000>Costs!$A720)*('Fixed assets'!$P$2:$P$1000=Costs!$A720)*('Fixed assets'!$R$2:$R$1000))-SUMPRODUCT(('Fixed assets'!$Q$2:$Q$1000=Costs!Q$705)*('Fixed assets'!$U$2:$U$1000>Costs!$A720)*('Fixed assets'!$P$2:$P$1000=Costs!$A720)*('Fixed assets'!$S$2:$S$1000))","v":0},{"$f":"R632+SUMPRODUCT(('Fixed assets'!$Q$2:$Q$1000=Costs!R$705)*('Fixed assets'!$U$2:$U$1000>Costs!$A720)*('Fixed assets'!$P$2:$P$1000=Costs!$A720)*('Fixed assets'!$R$2:$R$1000))-SUMPRODUCT(('Fixed assets'!$Q$2:$Q$1000=Costs!R$705)*('Fixed assets'!$U$2:$U$1000>Costs!$A720)*('Fixed assets'!$P$2:$P$1000=Costs!$A720)*('Fixed assets'!$S$2:$S$1000))","v":0},{"$f":"S632+SUMPRODUCT(('Fixed assets'!$Q$2:$Q$1000=Costs!S$705)*('Fixed assets'!$U$2:$U$1000>Costs!$A720)*('Fixed assets'!$P$2:$P$1000=Costs!$A720)*('Fixed assets'!$R$2:$R$1000))-SUMPRODUCT(('Fixed assets'!$Q$2:$Q$1000=Costs!S$705)*('Fixed assets'!$U$2:$U$1000>Costs!$A720)*('Fixed assets'!$P$2:$P$1000=Costs!$A720)*('Fixed assets'!$S$2:$S$1000))","v":0},{"$f":"T632+SUMPRODUCT(('Fixed assets'!$Q$2:$Q$1000=Costs!T$705)*('Fixed assets'!$U$2:$U$1000>Costs!$A720)*('Fixed assets'!$P$2:$P$1000=Costs!$A720)*('Fixed assets'!$R$2:$R$1000))-SUMPRODUCT(('Fixed assets'!$Q$2:$Q$1000=Costs!T$705)*('Fixed assets'!$U$2:$U$1000>Costs!$A720)*('Fixed assets'!$P$2:$P$1000=Costs!$A720)*('Fixed assets'!$S$2:$S$1000))","v":0},{"$f":"U632+SUMPRODUCT(('Fixed assets'!$Q$2:$Q$1000=Costs!U$705)*('Fixed assets'!$U$2:$U$1000>Costs!$A720)*('Fixed assets'!$P$2:$P$1000=Costs!$A720)*('Fixed assets'!$R$2:$R$1000))-SUMPRODUCT(('Fixed assets'!$Q$2:$Q$1000=Costs!U$705)*('Fixed assets'!$U$2:$U$1000>Costs!$A720)*('Fixed assets'!$P$2:$P$1000=Costs!$A720)*('Fixed assets'!$S$2:$S$1000))","v":0},{"$f":"V632+SUMPRODUCT(('Fixed assets'!$Q$2:$Q$1000=Costs!V$705)*('Fixed assets'!$U$2:$U$1000>Costs!$A720)*('Fixed assets'!$P$2:$P$1000=Costs!$A720)*('Fixed assets'!$R$2:$R$1000))-SUMPRODUCT(('Fixed assets'!$Q$2:$Q$1000=Costs!V$705)*('Fixed assets'!$U$2:$U$1000>Costs!$A720)*('Fixed assets'!$P$2:$P$1000=Costs!$A720)*('Fixed assets'!$S$2:$S$1000))","v":0},{"$f":"W632+SUMPRODUCT(('Fixed assets'!$Q$2:$Q$1000=Costs!W$705)*('Fixed assets'!$U$2:$U$1000>Costs!$A720)*('Fixed assets'!$P$2:$P$1000=Costs!$A720)*('Fixed assets'!$R$2:$R$1000))-SUMPRODUCT(('Fixed assets'!$Q$2:$Q$1000=Costs!W$705)*('Fixed assets'!$U$2:$U$1000>Costs!$A720)*('Fixed assets'!$P$2:$P$1000=Costs!$A720)*('Fixed assets'!$S$2:$S$1000))","v":0},{"$f":"X632+SUMPRODUCT(('Fixed assets'!$Q$2:$Q$1000=Costs!X$705)*('Fixed assets'!$U$2:$U$1000>Costs!$A720)*('Fixed assets'!$P$2:$P$1000=Costs!$A720)*('Fixed assets'!$R$2:$R$1000))-SUMPRODUCT(('Fixed assets'!$Q$2:$Q$1000=Costs!X$705)*('Fixed assets'!$U$2:$U$1000>Costs!$A720)*('Fixed assets'!$P$2:$P$1000=Costs!$A720)*('Fixed assets'!$S$2:$S$1000))","v":0},{"$f":"Y632+SUMPRODUCT(('Fixed assets'!$Q$2:$Q$1000=Costs!Y$705)*('Fixed assets'!$U$2:$U$1000>Costs!$A720)*('Fixed assets'!$P$2:$P$1000=Costs!$A720)*('Fixed assets'!$R$2:$R$1000))-SUMPRODUCT(('Fixed assets'!$Q$2:$Q$1000=Costs!Y$705)*('Fixed assets'!$U$2:$U$1000>Costs!$A720)*('Fixed assets'!$P$2:$P$1000=Costs!$A720)*('Fixed assets'!$S$2:$S$1000))","v":0},{"$f":"Z632+SUMPRODUCT(('Fixed assets'!$Q$2:$Q$1000=Costs!Z$705)*('Fixed assets'!$U$2:$U$1000>Costs!$A720)*('Fixed assets'!$P$2:$P$1000=Costs!$A720)*('Fixed assets'!$R$2:$R$1000))-SUMPRODUCT(('Fixed assets'!$Q$2:$Q$1000=Costs!Z$705)*('Fixed assets'!$U$2:$U$1000>Costs!$A720)*('Fixed assets'!$P$2:$P$1000=Costs!$A720)*('Fixed assets'!$S$2:$S$1000))","v":0},{"$f":"AA632+SUMPRODUCT(('Fixed assets'!$Q$2:$Q$1000=Costs!AA$705)*('Fixed assets'!$U$2:$U$1000>Costs!$A720)*('Fixed assets'!$P$2:$P$1000=Costs!$A720)*('Fixed assets'!$R$2:$R$1000))-SUMPRODUCT(('Fixed assets'!$Q$2:$Q$1000=Costs!AA$705)*('Fixed assets'!$U$2:$U$1000>Costs!$A720)*('Fixed assets'!$P$2:$P$1000=Costs!$A720)*('Fixed assets'!$S$2:$S$1000))","v":0},{"$f":"AB632+SUMPRODUCT(('Fixed assets'!$Q$2:$Q$1000=Costs!AB$705)*('Fixed assets'!$U$2:$U$1000>Costs!$A720)*('Fixed assets'!$P$2:$P$1000=Costs!$A720)*('Fixed assets'!$R$2:$R$1000))-SUMPRODUCT(('Fixed assets'!$Q$2:$Q$1000=Costs!AB$705)*('Fixed assets'!$U$2:$U$1000>Costs!$A720)*('Fixed assets'!$P$2:$P$1000=Costs!$A720)*('Fixed assets'!$S$2:$S$1000))","v":0},{"$f":"AC632+SUMPRODUCT(('Fixed assets'!$Q$2:$Q$1000=Costs!AC$705)*('Fixed assets'!$U$2:$U$1000>Costs!$A720)*('Fixed assets'!$P$2:$P$1000=Costs!$A720)*('Fixed assets'!$R$2:$R$1000))-SUMPRODUCT(('Fixed assets'!$Q$2:$Q$1000=Costs!AC$705)*('Fixed assets'!$U$2:$U$1000>Costs!$A720)*('Fixed assets'!$P$2:$P$1000=Costs!$A720)*('Fixed assets'!$S$2:$S$1000))","v":0},{"$f":"AD632+SUMPRODUCT(('Fixed assets'!$Q$2:$Q$1000=Costs!AD$705)*('Fixed assets'!$U$2:$U$1000>Costs!$A720)*('Fixed assets'!$P$2:$P$1000=Costs!$A720)*('Fixed assets'!$R$2:$R$1000))-SUMPRODUCT(('Fixed assets'!$Q$2:$Q$1000=Costs!AD$705)*('Fixed assets'!$U$2:$U$1000>Costs!$A720)*('Fixed assets'!$P$2:$P$1000=Costs!$A720)*('Fixed assets'!$S$2:$S$1000))","v":0},{"$f":"AE632+SUMPRODUCT(('Fixed assets'!$Q$2:$Q$1000=Costs!AE$705)*('Fixed assets'!$U$2:$U$1000>Costs!$A720)*('Fixed assets'!$P$2:$P$1000=Costs!$A720)*('Fixed assets'!$R$2:$R$1000))-SUMPRODUCT(('Fixed assets'!$Q$2:$Q$1000=Costs!AE$705)*('Fixed assets'!$U$2:$U$1000>Costs!$A720)*('Fixed assets'!$P$2:$P$1000=Costs!$A720)*('Fixed assets'!$S$2:$S$1000))","v":0},{"$f":"AF632+SUMPRODUCT(('Fixed assets'!$Q$2:$Q$1000=Costs!AF$705)*('Fixed assets'!$U$2:$U$1000>Costs!$A720)*('Fixed assets'!$P$2:$P$1000=Costs!$A720)*('Fixed assets'!$R$2:$R$1000))-SUMPRODUCT(('Fixed assets'!$Q$2:$Q$1000=Costs!AF$705)*('Fixed assets'!$U$2:$U$1000>Costs!$A720)*('Fixed assets'!$P$2:$P$1000=Costs!$A720)*('Fixed assets'!$S$2:$S$1000))","v":0},{"$f":"AG632+SUMPRODUCT(('Fixed assets'!$Q$2:$Q$1000=Costs!AG$705)*('Fixed assets'!$U$2:$U$1000>Costs!$A720)*('Fixed assets'!$P$2:$P$1000=Costs!$A720)*('Fixed assets'!$R$2:$R$1000))-SUMPRODUCT(('Fixed assets'!$Q$2:$Q$1000=Costs!AG$705)*('Fixed assets'!$U$2:$U$1000>Costs!$A720)*('Fixed assets'!$P$2:$P$1000=Costs!$A720)*('Fixed assets'!$S$2:$S$1000))","v":0},{"$f":"AH632+SUMPRODUCT(('Fixed assets'!$Q$2:$Q$1000=Costs!AH$705)*('Fixed assets'!$U$2:$U$1000>Costs!$A720)*('Fixed assets'!$P$2:$P$1000=Costs!$A720)*('Fixed assets'!$R$2:$R$1000))-SUMPRODUCT(('Fixed assets'!$Q$2:$Q$1000=Costs!AH$705)*('Fixed assets'!$U$2:$U$1000>Costs!$A720)*('Fixed assets'!$P$2:$P$1000=Costs!$A720)*('Fixed assets'!$S$2:$S$1000))","v":0},{"$f":"AI632+SUMPRODUCT(('Fixed assets'!$Q$2:$Q$1000=Costs!AI$705)*('Fixed assets'!$U$2:$U$1000>Costs!$A720)*('Fixed assets'!$P$2:$P$1000=Costs!$A720)*('Fixed assets'!$R$2:$R$1000))-SUMPRODUCT(('Fixed assets'!$Q$2:$Q$1000=Costs!AI$705)*('Fixed assets'!$U$2:$U$1000>Costs!$A720)*('Fixed assets'!$P$2:$P$1000=Costs!$A720)*('Fixed assets'!$S$2:$S$1000))","v":0},{"$f":"AJ632+SUMPRODUCT(('Fixed assets'!$Q$2:$Q$1000=Costs!AJ$705)*('Fixed assets'!$U$2:$U$1000>Costs!$A720)*('Fixed assets'!$P$2:$P$1000=Costs!$A720)*('Fixed assets'!$R$2:$R$1000))-SUMPRODUCT(('Fixed assets'!$Q$2:$Q$1000=Costs!AJ$705)*('Fixed assets'!$U$2:$U$1000>Costs!$A720)*('Fixed assets'!$P$2:$P$1000=Costs!$A720)*('Fixed assets'!$S$2:$S$1000))","v":0},{"$f":"AK632+SUMPRODUCT(('Fixed assets'!$Q$2:$Q$1000=Costs!AK$705)*('Fixed assets'!$U$2:$U$1000>Costs!$A720)*('Fixed assets'!$P$2:$P$1000=Costs!$A720)*('Fixed assets'!$R$2:$R$1000))-SUMPRODUCT(('Fixed assets'!$Q$2:$Q$1000=Costs!AK$705)*('Fixed assets'!$U$2:$U$1000>Costs!$A720)*('Fixed assets'!$P$2:$P$1000=Costs!$A720)*('Fixed assets'!$S$2:$S$1000))","v":0},{"$f":"AL632+SUMPRODUCT(('Fixed assets'!$Q$2:$Q$1000=Costs!AL$705)*('Fixed assets'!$U$2:$U$1000>Costs!$A720)*('Fixed assets'!$P$2:$P$1000=Costs!$A720)*('Fixed assets'!$R$2:$R$1000))-SUMPRODUCT(('Fixed assets'!$Q$2:$Q$1000=Costs!AL$705)*('Fixed assets'!$U$2:$U$1000>Costs!$A720)*('Fixed assets'!$P$2:$P$1000=Costs!$A720)*('Fixed assets'!$S$2:$S$1000))","v":0},{"$f":"AM632+SUMPRODUCT(('Fixed assets'!$Q$2:$Q$1000=Costs!AM$705)*('Fixed assets'!$U$2:$U$1000>Costs!$A720)*('Fixed assets'!$P$2:$P$1000=Costs!$A720)*('Fixed assets'!$R$2:$R$1000))-SUMPRODUCT(('Fixed assets'!$Q$2:$Q$1000=Costs!AM$705)*('Fixed assets'!$U$2:$U$1000>Costs!$A720)*('Fixed assets'!$P$2:$P$1000=Costs!$A720)*('Fixed assets'!$S$2:$S$1000))","v":0},{"$f":"AN632+SUMPRODUCT(('Fixed assets'!$Q$2:$Q$1000=Costs!AN$705)*('Fixed assets'!$U$2:$U$1000>Costs!$A720)*('Fixed assets'!$P$2:$P$1000=Costs!$A720)*('Fixed assets'!$R$2:$R$1000))-SUMPRODUCT(('Fixed assets'!$Q$2:$Q$1000=Costs!AN$705)*('Fixed assets'!$U$2:$U$1000>Costs!$A720)*('Fixed assets'!$P$2:$P$1000=Costs!$A720)*('Fixed assets'!$S$2:$S$1000))","v":0},{"$f":"AO632+SUMPRODUCT(('Fixed assets'!$Q$2:$Q$1000=Costs!AO$705)*('Fixed assets'!$U$2:$U$1000>Costs!$A720)*('Fixed assets'!$P$2:$P$1000=Costs!$A720)*('Fixed assets'!$R$2:$R$1000))-SUMPRODUCT(('Fixed assets'!$Q$2:$Q$1000=Costs!AO$705)*('Fixed assets'!$U$2:$U$1000>Costs!$A720)*('Fixed assets'!$P$2:$P$1000=Costs!$A720)*('Fixed assets'!$S$2:$S$1000))","v":0},{"$f":"AP632+SUMPRODUCT(('Fixed assets'!$Q$2:$Q$1000=Costs!AP$705)*('Fixed assets'!$U$2:$U$1000>Costs!$A720)*('Fixed assets'!$P$2:$P$1000=Costs!$A720)*('Fixed assets'!$R$2:$R$1000))-SUMPRODUCT(('Fixed assets'!$Q$2:$Q$1000=Costs!AP$705)*('Fixed assets'!$U$2:$U$1000>Costs!$A720)*('Fixed assets'!$P$2:$P$1000=Costs!$A720)*('Fixed assets'!$S$2:$S$1000))","v":0},{"$f":"AQ632+SUMPRODUCT(('Fixed assets'!$Q$2:$Q$1000=Costs!AQ$705)*('Fixed assets'!$U$2:$U$1000>Costs!$A720)*('Fixed assets'!$P$2:$P$1000=Costs!$A720)*('Fixed assets'!$R$2:$R$1000))-SUMPRODUCT(('Fixed assets'!$Q$2:$Q$1000=Costs!AQ$705)*('Fixed assets'!$U$2:$U$1000>Costs!$A720)*('Fixed assets'!$P$2:$P$1000=Costs!$A720)*('Fixed assets'!$S$2:$S$1000))","v":0}]
[2030,{"$f":"SUM(C721:AQ721)","v":0},{"$f":"C633+SUMPRODUCT(('Fixed assets'!$Q$2:$Q$1000=Costs!C$705)*('Fixed assets'!$U$2:$U$1000>Costs!$A721)*('Fixed assets'!$P$2:$P$1000=Costs!$A721)*('Fixed assets'!$R$2:$R$1000))-SUMPRODUCT(('Fixed assets'!$Q$2:$Q$1000=Costs!C$705)*('Fixed assets'!$U$2:$U$1000>Costs!$A721)*('Fixed assets'!$P$2:$P$1000=Costs!$A721)*('Fixed assets'!$S$2:$S$1000))","v":0},{"$f":"D633+SUMPRODUCT(('Fixed assets'!$Q$2:$Q$1000=Costs!D$705)*('Fixed assets'!$U$2:$U$1000>Costs!$A721)*('Fixed assets'!$P$2:$P$1000=Costs!$A721)*('Fixed assets'!$R$2:$R$1000))-SUMPRODUCT(('Fixed assets'!$Q$2:$Q$1000=Costs!D$705)*('Fixed assets'!$U$2:$U$1000>Costs!$A721)*('Fixed assets'!$P$2:$P$1000=Costs!$A721)*('Fixed assets'!$S$2:$S$1000))","v":0},{"$f":"E633+SUMPRODUCT(('Fixed assets'!$Q$2:$Q$1000=Costs!E$705)*('Fixed assets'!$U$2:$U$1000>Costs!$A721)*('Fixed assets'!$P$2:$P$1000=Costs!$A721)*('Fixed assets'!$R$2:$R$1000))-SUMPRODUCT(('Fixed assets'!$Q$2:$Q$1000=Costs!E$705)*('Fixed assets'!$U$2:$U$1000>Costs!$A721)*('Fixed assets'!$P$2:$P$1000=Costs!$A721)*('Fixed assets'!$S$2:$S$1000))","v":0},{"$f":"F633+SUMPRODUCT(('Fixed assets'!$Q$2:$Q$1000=Costs!F$705)*('Fixed assets'!$U$2:$U$1000>Costs!$A721)*('Fixed assets'!$P$2:$P$1000=Costs!$A721)*('Fixed assets'!$R$2:$R$1000))-SUMPRODUCT(('Fixed assets'!$Q$2:$Q$1000=Costs!F$705)*('Fixed assets'!$U$2:$U$1000>Costs!$A721)*('Fixed assets'!$P$2:$P$1000=Costs!$A721)*('Fixed assets'!$S$2:$S$1000))","v":0},{"$f":"G633+SUMPRODUCT(('Fixed assets'!$Q$2:$Q$1000=Costs!G$705)*('Fixed assets'!$U$2:$U$1000>Costs!$A721)*('Fixed assets'!$P$2:$P$1000=Costs!$A721)*('Fixed assets'!$R$2:$R$1000))-SUMPRODUCT(('Fixed assets'!$Q$2:$Q$1000=Costs!G$705)*('Fixed assets'!$U$2:$U$1000>Costs!$A721)*('Fixed assets'!$P$2:$P$1000=Costs!$A721)*('Fixed assets'!$S$2:$S$1000))","v":0},{"$f":"H633+SUMPRODUCT(('Fixed assets'!$Q$2:$Q$1000=Costs!H$705)*('Fixed assets'!$U$2:$U$1000>Costs!$A721)*('Fixed assets'!$P$2:$P$1000=Costs!$A721)*('Fixed assets'!$R$2:$R$1000))-SUMPRODUCT(('Fixed assets'!$Q$2:$Q$1000=Costs!H$705)*('Fixed assets'!$U$2:$U$1000>Costs!$A721)*('Fixed assets'!$P$2:$P$1000=Costs!$A721)*('Fixed assets'!$S$2:$S$1000))","v":0},{"$f":"I633+SUMPRODUCT(('Fixed assets'!$Q$2:$Q$1000=Costs!I$705)*('Fixed assets'!$U$2:$U$1000>Costs!$A721)*('Fixed assets'!$P$2:$P$1000=Costs!$A721)*('Fixed assets'!$R$2:$R$1000))-SUMPRODUCT(('Fixed assets'!$Q$2:$Q$1000=Costs!I$705)*('Fixed assets'!$U$2:$U$1000>Costs!$A721)*('Fixed assets'!$P$2:$P$1000=Costs!$A721)*('Fixed assets'!$S$2:$S$1000))","v":0},{"$f":"J633+SUMPRODUCT(('Fixed assets'!$Q$2:$Q$1000=Costs!J$705)*('Fixed assets'!$U$2:$U$1000>Costs!$A721)*('Fixed assets'!$P$2:$P$1000=Costs!$A721)*('Fixed assets'!$R$2:$R$1000))-SUMPRODUCT(('Fixed assets'!$Q$2:$Q$1000=Costs!J$705)*('Fixed assets'!$U$2:$U$1000>Costs!$A721)*('Fixed assets'!$P$2:$P$1000=Costs!$A721)*('Fixed assets'!$S$2:$S$1000))","v":0},{"$f":"K633+SUMPRODUCT(('Fixed assets'!$Q$2:$Q$1000=Costs!K$705)*('Fixed assets'!$U$2:$U$1000>Costs!$A721)*('Fixed assets'!$P$2:$P$1000=Costs!$A721)*('Fixed assets'!$R$2:$R$1000))-SUMPRODUCT(('Fixed assets'!$Q$2:$Q$1000=Costs!K$705)*('Fixed assets'!$U$2:$U$1000>Costs!$A721)*('Fixed assets'!$P$2:$P$1000=Costs!$A721)*('Fixed assets'!$S$2:$S$1000))","v":0},{"$f":"L633+SUMPRODUCT(('Fixed assets'!$Q$2:$Q$1000=Costs!L$705)*('Fixed assets'!$U$2:$U$1000>Costs!$A721)*('Fixed assets'!$P$2:$P$1000=Costs!$A721)*('Fixed assets'!$R$2:$R$1000))-SUMPRODUCT(('Fixed assets'!$Q$2:$Q$1000=Costs!L$705)*('Fixed assets'!$U$2:$U$1000>Costs!$A721)*('Fixed assets'!$P$2:$P$1000=Costs!$A721)*('Fixed assets'!$S$2:$S$1000))","v":0},{"$f":"M633+SUMPRODUCT(('Fixed assets'!$Q$2:$Q$1000=Costs!M$705)*('Fixed assets'!$U$2:$U$1000>Costs!$A721)*('Fixed assets'!$P$2:$P$1000=Costs!$A721)*('Fixed assets'!$R$2:$R$1000))-SUMPRODUCT(('Fixed assets'!$Q$2:$Q$1000=Costs!M$705)*('Fixed assets'!$U$2:$U$1000>Costs!$A721)*('Fixed assets'!$P$2:$P$1000=Costs!$A721)*('Fixed assets'!$S$2:$S$1000))","v":0},{"$f":"N633+SUMPRODUCT(('Fixed assets'!$Q$2:$Q$1000=Costs!N$705)*('Fixed assets'!$U$2:$U$1000>Costs!$A721)*('Fixed assets'!$P$2:$P$1000=Costs!$A721)*('Fixed assets'!$R$2:$R$1000))-SUMPRODUCT(('Fixed assets'!$Q$2:$Q$1000=Costs!N$705)*('Fixed assets'!$U$2:$U$1000>Costs!$A721)*('Fixed assets'!$P$2:$P$1000=Costs!$A721)*('Fixed assets'!$S$2:$S$1000))","v":0},{"$f":"O633+SUMPRODUCT(('Fixed assets'!$Q$2:$Q$1000=Costs!O$705)*('Fixed assets'!$U$2:$U$1000>Costs!$A721)*('Fixed assets'!$P$2:$P$1000=Costs!$A721)*('Fixed assets'!$R$2:$R$1000))-SUMPRODUCT(('Fixed assets'!$Q$2:$Q$1000=Costs!O$705)*('Fixed assets'!$U$2:$U$1000>Costs!$A721)*('Fixed assets'!$P$2:$P$1000=Costs!$A721)*('Fixed assets'!$S$2:$S$1000))","v":0},{"$f":"P633+SUMPRODUCT(('Fixed assets'!$Q$2:$Q$1000=Costs!P$705)*('Fixed assets'!$U$2:$U$1000>Costs!$A721)*('Fixed assets'!$P$2:$P$1000=Costs!$A721)*('Fixed assets'!$R$2:$R$1000))-SUMPRODUCT(('Fixed assets'!$Q$2:$Q$1000=Costs!P$705)*('Fixed assets'!$U$2:$U$1000>Costs!$A721)*('Fixed assets'!$P$2:$P$1000=Costs!$A721)*('Fixed assets'!$S$2:$S$1000))","v":0},{"$f":"Q633+SUMPRODUCT(('Fixed assets'!$Q$2:$Q$1000=Costs!Q$705)*('Fixed assets'!$U$2:$U$1000>Costs!$A721)*('Fixed assets'!$P$2:$P$1000=Costs!$A721)*('Fixed assets'!$R$2:$R$1000))-SUMPRODUCT(('Fixed assets'!$Q$2:$Q$1000=Costs!Q$705)*('Fixed assets'!$U$2:$U$1000>Costs!$A721)*('Fixed assets'!$P$2:$P$1000=Costs!$A721)*('Fixed assets'!$S$2:$S$1000))","v":0},{"$f":"R633+SUMPRODUCT(('Fixed assets'!$Q$2:$Q$1000=Costs!R$705)*('Fixed assets'!$U$2:$U$1000>Costs!$A721)*('Fixed assets'!$P$2:$P$1000=Costs!$A721)*('Fixed assets'!$R$2:$R$1000))-SUMPRODUCT(('Fixed assets'!$Q$2:$Q$1000=Costs!R$705)*('Fixed assets'!$U$2:$U$1000>Costs!$A721)*('Fixed assets'!$P$2:$P$1000=Costs!$A721)*('Fixed assets'!$S$2:$S$1000))","v":0},{"$f":"S633+SUMPRODUCT(('Fixed assets'!$Q$2:$Q$1000=Costs!S$705)*('Fixed assets'!$U$2:$U$1000>Costs!$A721)*('Fixed assets'!$P$2:$P$1000=Costs!$A721)*('Fixed assets'!$R$2:$R$1000))-SUMPRODUCT(('Fixed assets'!$Q$2:$Q$1000=Costs!S$705)*('Fixed assets'!$U$2:$U$1000>Costs!$A721)*('Fixed assets'!$P$2:$P$1000=Costs!$A721)*('Fixed assets'!$S$2:$S$1000))","v":0},{"$f":"T633+SUMPRODUCT(('Fixed assets'!$Q$2:$Q$1000=Costs!T$705)*('Fixed assets'!$U$2:$U$1000>Costs!$A721)*('Fixed assets'!$P$2:$P$1000=Costs!$A721)*('Fixed assets'!$R$2:$R$1000))-SUMPRODUCT(('Fixed assets'!$Q$2:$Q$1000=Costs!T$705)*('Fixed assets'!$U$2:$U$1000>Costs!$A721)*('Fixed assets'!$P$2:$P$1000=Costs!$A721)*('Fixed assets'!$S$2:$S$1000))","v":0},{"$f":"U633+SUMPRODUCT(('Fixed assets'!$Q$2:$Q$1000=Costs!U$705)*('Fixed assets'!$U$2:$U$1000>Costs!$A721)*('Fixed assets'!$P$2:$P$1000=Costs!$A721)*('Fixed assets'!$R$2:$R$1000))-SUMPRODUCT(('Fixed assets'!$Q$2:$Q$1000=Costs!U$705)*('Fixed assets'!$U$2:$U$1000>Costs!$A721)*('Fixed assets'!$P$2:$P$1000=Costs!$A721)*('Fixed assets'!$S$2:$S$1000))","v":0},{"$f":"V633+SUMPRODUCT(('Fixed assets'!$Q$2:$Q$1000=Costs!V$705)*('Fixed assets'!$U$2:$U$1000>Costs!$A721)*('Fixed assets'!$P$2:$P$1000=Costs!$A721)*('Fixed assets'!$R$2:$R$1000))-SUMPRODUCT(('Fixed assets'!$Q$2:$Q$1000=Costs!V$705)*('Fixed assets'!$U$2:$U$1000>Costs!$A721)*('Fixed assets'!$P$2:$P$1000=Costs!$A721)*('Fixed assets'!$S$2:$S$1000))","v":0},{"$f":"W633+SUMPRODUCT(('Fixed assets'!$Q$2:$Q$1000=Costs!W$705)*('Fixed assets'!$U$2:$U$1000>Costs!$A721)*('Fixed assets'!$P$2:$P$1000=Costs!$A721)*('Fixed assets'!$R$2:$R$1000))-SUMPRODUCT(('Fixed assets'!$Q$2:$Q$1000=Costs!W$705)*('Fixed assets'!$U$2:$U$1000>Costs!$A721)*('Fixed assets'!$P$2:$P$1000=Costs!$A721)*('Fixed assets'!$S$2:$S$1000))","v":0},{"$f":"X633+SUMPRODUCT(('Fixed assets'!$Q$2:$Q$1000=Costs!X$705)*('Fixed assets'!$U$2:$U$1000>Costs!$A721)*('Fixed assets'!$P$2:$P$1000=Costs!$A721)*('Fixed assets'!$R$2:$R$1000))-SUMPRODUCT(('Fixed assets'!$Q$2:$Q$1000=Costs!X$705)*('Fixed assets'!$U$2:$U$1000>Costs!$A721)*('Fixed assets'!$P$2:$P$1000=Costs!$A721)*('Fixed assets'!$S$2:$S$1000))","v":0},{"$f":"Y633+SUMPRODUCT(('Fixed assets'!$Q$2:$Q$1000=Costs!Y$705)*('Fixed assets'!$U$2:$U$1000>Costs!$A721)*('Fixed assets'!$P$2:$P$1000=Costs!$A721)*('Fixed assets'!$R$2:$R$1000))-SUMPRODUCT(('Fixed assets'!$Q$2:$Q$1000=Costs!Y$705)*('Fixed assets'!$U$2:$U$1000>Costs!$A721)*('Fixed assets'!$P$2:$P$1000=Costs!$A721)*('Fixed assets'!$S$2:$S$1000))","v":0},{"$f":"Z633+SUMPRODUCT(('Fixed assets'!$Q$2:$Q$1000=Costs!Z$705)*('Fixed assets'!$U$2:$U$1000>Costs!$A721)*('Fixed assets'!$P$2:$P$1000=Costs!$A721)*('Fixed assets'!$R$2:$R$1000))-SUMPRODUCT(('Fixed assets'!$Q$2:$Q$1000=Costs!Z$705)*('Fixed assets'!$U$2:$U$1000>Costs!$A721)*('Fixed assets'!$P$2:$P$1000=Costs!$A721)*('Fixed assets'!$S$2:$S$1000))","v":0},{"$f":"AA633+SUMPRODUCT(('Fixed assets'!$Q$2:$Q$1000=Costs!AA$705)*('Fixed assets'!$U$2:$U$1000>Costs!$A721)*('Fixed assets'!$P$2:$P$1000=Costs!$A721)*('Fixed assets'!$R$2:$R$1000))-SUMPRODUCT(('Fixed assets'!$Q$2:$Q$1000=Costs!AA$705)*('Fixed assets'!$U$2:$U$1000>Costs!$A721)*('Fixed assets'!$P$2:$P$1000=Costs!$A721)*('Fixed assets'!$S$2:$S$1000))","v":0},{"$f":"AB633+SUMPRODUCT(('Fixed assets'!$Q$2:$Q$1000=Costs!AB$705)*('Fixed assets'!$U$2:$U$1000>Costs!$A721)*('Fixed assets'!$P$2:$P$1000=Costs!$A721)*('Fixed assets'!$R$2:$R$1000))-SUMPRODUCT(('Fixed assets'!$Q$2:$Q$1000=Costs!AB$705)*('Fixed assets'!$U$2:$U$1000>Costs!$A721)*('Fixed assets'!$P$2:$P$1000=Costs!$A721)*('Fixed assets'!$S$2:$S$1000))","v":0},{"$f":"AC633+SUMPRODUCT(('Fixed assets'!$Q$2:$Q$1000=Costs!AC$705)*('Fixed assets'!$U$2:$U$1000>Costs!$A721)*('Fixed assets'!$P$2:$P$1000=Costs!$A721)*('Fixed assets'!$R$2:$R$1000))-SUMPRODUCT(('Fixed assets'!$Q$2:$Q$1000=Costs!AC$705)*('Fixed assets'!$U$2:$U$1000>Costs!$A721)*('Fixed assets'!$P$2:$P$1000=Costs!$A721)*('Fixed assets'!$S$2:$S$1000))","v":0},{"$f":"AD633+SUMPRODUCT(('Fixed assets'!$Q$2:$Q$1000=Costs!AD$705)*('Fixed assets'!$U$2:$U$1000>Costs!$A721)*('Fixed assets'!$P$2:$P$1000=Costs!$A721)*('Fixed assets'!$R$2:$R$1000))-SUMPRODUCT(('Fixed assets'!$Q$2:$Q$1000=Costs!AD$705)*('Fixed assets'!$U$2:$U$1000>Costs!$A721)*('Fixed assets'!$P$2:$P$1000=Costs!$A721)*('Fixed assets'!$S$2:$S$1000))","v":0},{"$f":"AE633+SUMPRODUCT(('Fixed assets'!$Q$2:$Q$1000=Costs!AE$705)*('Fixed assets'!$U$2:$U$1000>Costs!$A721)*('Fixed assets'!$P$2:$P$1000=Costs!$A721)*('Fixed assets'!$R$2:$R$1000))-SUMPRODUCT(('Fixed assets'!$Q$2:$Q$1000=Costs!AE$705)*('Fixed assets'!$U$2:$U$1000>Costs!$A721)*('Fixed assets'!$P$2:$P$1000=Costs!$A721)*('Fixed assets'!$S$2:$S$1000))","v":0},{"$f":"AF633+SUMPRODUCT(('Fixed assets'!$Q$2:$Q$1000=Costs!AF$705)*('Fixed assets'!$U$2:$U$1000>Costs!$A721)*('Fixed assets'!$P$2:$P$1000=Costs!$A721)*('Fixed assets'!$R$2:$R$1000))-SUMPRODUCT(('Fixed assets'!$Q$2:$Q$1000=Costs!AF$705)*('Fixed assets'!$U$2:$U$1000>Costs!$A721)*('Fixed assets'!$P$2:$P$1000=Costs!$A721)*('Fixed assets'!$S$2:$S$1000))","v":0},{"$f":"AG633+SUMPRODUCT(('Fixed assets'!$Q$2:$Q$1000=Costs!AG$705)*('Fixed assets'!$U$2:$U$1000>Costs!$A721)*('Fixed assets'!$P$2:$P$1000=Costs!$A721)*('Fixed assets'!$R$2:$R$1000))-SUMPRODUCT(('Fixed assets'!$Q$2:$Q$1000=Costs!AG$705)*('Fixed assets'!$U$2:$U$1000>Costs!$A721)*('Fixed assets'!$P$2:$P$1000=Costs!$A721)*('Fixed assets'!$S$2:$S$1000))","v":0},{"$f":"AH633+SUMPRODUCT(('Fixed assets'!$Q$2:$Q$1000=Costs!AH$705)*('Fixed assets'!$U$2:$U$1000>Costs!$A721)*('Fixed assets'!$P$2:$P$1000=Costs!$A721)*('Fixed assets'!$R$2:$R$1000))-SUMPRODUCT(('Fixed assets'!$Q$2:$Q$1000=Costs!AH$705)*('Fixed assets'!$U$2:$U$1000>Costs!$A721)*('Fixed assets'!$P$2:$P$1000=Costs!$A721)*('Fixed assets'!$S$2:$S$1000))","v":0},{"$f":"AI633+SUMPRODUCT(('Fixed assets'!$Q$2:$Q$1000=Costs!AI$705)*('Fixed assets'!$U$2:$U$1000>Costs!$A721)*('Fixed assets'!$P$2:$P$1000=Costs!$A721)*('Fixed assets'!$R$2:$R$1000))-SUMPRODUCT(('Fixed assets'!$Q$2:$Q$1000=Costs!AI$705)*('Fixed assets'!$U$2:$U$1000>Costs!$A721)*('Fixed assets'!$P$2:$P$1000=Costs!$A721)*('Fixed assets'!$S$2:$S$1000))","v":0},{"$f":"AJ633+SUMPRODUCT(('Fixed assets'!$Q$2:$Q$1000=Costs!AJ$705)*('Fixed assets'!$U$2:$U$1000>Costs!$A721)*('Fixed assets'!$P$2:$P$1000=Costs!$A721)*('Fixed assets'!$R$2:$R$1000))-SUMPRODUCT(('Fixed assets'!$Q$2:$Q$1000=Costs!AJ$705)*('Fixed assets'!$U$2:$U$1000>Costs!$A721)*('Fixed assets'!$P$2:$P$1000=Costs!$A721)*('Fixed assets'!$S$2:$S$1000))","v":0},{"$f":"AK633+SUMPRODUCT(('Fixed assets'!$Q$2:$Q$1000=Costs!AK$705)*('Fixed assets'!$U$2:$U$1000>Costs!$A721)*('Fixed assets'!$P$2:$P$1000=Costs!$A721)*('Fixed assets'!$R$2:$R$1000))-SUMPRODUCT(('Fixed assets'!$Q$2:$Q$1000=Costs!AK$705)*('Fixed assets'!$U$2:$U$1000>Costs!$A721)*('Fixed assets'!$P$2:$P$1000=Costs!$A721)*('Fixed assets'!$S$2:$S$1000))","v":0},{"$f":"AL633+SUMPRODUCT(('Fixed assets'!$Q$2:$Q$1000=Costs!AL$705)*('Fixed assets'!$U$2:$U$1000>Costs!$A721)*('Fixed assets'!$P$2:$P$1000=Costs!$A721)*('Fixed assets'!$R$2:$R$1000))-SUMPRODUCT(('Fixed assets'!$Q$2:$Q$1000=Costs!AL$705)*('Fixed assets'!$U$2:$U$1000>Costs!$A721)*('Fixed assets'!$P$2:$P$1000=Costs!$A721)*('Fixed assets'!$S$2:$S$1000))","v":0},{"$f":"AM633+SUMPRODUCT(('Fixed assets'!$Q$2:$Q$1000=Costs!AM$705)*('Fixed assets'!$U$2:$U$1000>Costs!$A721)*('Fixed assets'!$P$2:$P$1000=Costs!$A721)*('Fixed assets'!$R$2:$R$1000))-SUMPRODUCT(('Fixed assets'!$Q$2:$Q$1000=Costs!AM$705)*('Fixed assets'!$U$2:$U$1000>Costs!$A721)*('Fixed assets'!$P$2:$P$1000=Costs!$A721)*('Fixed assets'!$S$2:$S$1000))","v":0},{"$f":"AN633+SUMPRODUCT(('Fixed assets'!$Q$2:$Q$1000=Costs!AN$705)*('Fixed assets'!$U$2:$U$1000>Costs!$A721)*('Fixed assets'!$P$2:$P$1000=Costs!$A721)*('Fixed assets'!$R$2:$R$1000))-SUMPRODUCT(('Fixed assets'!$Q$2:$Q$1000=Costs!AN$705)*('Fixed assets'!$U$2:$U$1000>Costs!$A721)*('Fixed assets'!$P$2:$P$1000=Costs!$A721)*('Fixed assets'!$S$2:$S$1000))","v":0},{"$f":"AO633+SUMPRODUCT(('Fixed assets'!$Q$2:$Q$1000=Costs!AO$705)*('Fixed assets'!$U$2:$U$1000>Costs!$A721)*('Fixed assets'!$P$2:$P$1000=Costs!$A721)*('Fixed assets'!$R$2:$R$1000))-SUMPRODUCT(('Fixed assets'!$Q$2:$Q$1000=Costs!AO$705)*('Fixed assets'!$U$2:$U$1000>Costs!$A721)*('Fixed assets'!$P$2:$P$1000=Costs!$A721)*('Fixed assets'!$S$2:$S$1000))","v":0},{"$f":"AP633+SUMPRODUCT(('Fixed assets'!$Q$2:$Q$1000=Costs!AP$705)*('Fixed assets'!$U$2:$U$1000>Costs!$A721)*('Fixed assets'!$P$2:$P$1000=Costs!$A721)*('Fixed assets'!$R$2:$R$1000))-SUMPRODUCT(('Fixed assets'!$Q$2:$Q$1000=Costs!AP$705)*('Fixed assets'!$U$2:$U$1000>Costs!$A721)*('Fixed assets'!$P$2:$P$1000=Costs!$A721)*('Fixed assets'!$S$2:$S$1000))","v":0},{"$f":"AQ633+SUMPRODUCT(('Fixed assets'!$Q$2:$Q$1000=Costs!AQ$705)*('Fixed assets'!$U$2:$U$1000>Costs!$A721)*('Fixed assets'!$P$2:$P$1000=Costs!$A721)*('Fixed assets'!$R$2:$R$1000))-SUMPRODUCT(('Fixed assets'!$Q$2:$Q$1000=Costs!AQ$705)*('Fixed assets'!$U$2:$U$1000>Costs!$A721)*('Fixed assets'!$P$2:$P$1000=Costs!$A721)*('Fixed assets'!$S$2:$S$1000))","v":0}]
[2031,0,{"$f":"C634+SUMPRODUCT(('Fixed assets'!$Q$2:$Q$1000=Costs!C$705)*('Fixed assets'!$U$2:$U$1000>Costs!$A722)*('Fixed assets'!$P$2:$P$1000=Costs!$A722)*('Fixed assets'!$R$2:$R$1000))-SUMPRODUCT(('Fixed assets'!$Q$2:$Q$1000=Costs!C$705)*('Fixed assets'!$U$2:$U$1000>Costs!$A722)*('Fixed assets'!$P$2:$P$1000=Costs!$A722)*('Fixed assets'!$S$2:$S$1000))","v":0},{"$f":"D634+SUMPRODUCT(('Fixed assets'!$Q$2:$Q$1000=Costs!D$705)*('Fixed assets'!$U$2:$U$1000>Costs!$A722)*('Fixed assets'!$P$2:$P$1000=Costs!$A722)*('Fixed assets'!$R$2:$R$1000))-SUMPRODUCT(('Fixed assets'!$Q$2:$Q$1000=Costs!D$705)*('Fixed assets'!$U$2:$U$1000>Costs!$A722)*('Fixed assets'!$P$2:$P$1000=Costs!$A722)*('Fixed assets'!$S$2:$S$1000))","v":0},{"$f":"E634+SUMPRODUCT(('Fixed assets'!$Q$2:$Q$1000=Costs!E$705)*('Fixed assets'!$U$2:$U$1000>Costs!$A722)*('Fixed assets'!$P$2:$P$1000=Costs!$A722)*('Fixed assets'!$R$2:$R$1000))-SUMPRODUCT(('Fixed assets'!$Q$2:$Q$1000=Costs!E$705)*('Fixed assets'!$U$2:$U$1000>Costs!$A722)*('Fixed assets'!$P$2:$P$1000=Costs!$A722)*('Fixed assets'!$S$2:$S$1000))","v":0},{"$f":"F634+SUMPRODUCT(('Fixed assets'!$Q$2:$Q$1000=Costs!F$705)*('Fixed assets'!$U$2:$U$1000>Costs!$A722)*('Fixed assets'!$P$2:$P$1000=Costs!$A722)*('Fixed assets'!$R$2:$R$1000))-SUMPRODUCT(('Fixed assets'!$Q$2:$Q$1000=Costs!F$705)*('Fixed assets'!$U$2:$U$1000>Costs!$A722)*('Fixed assets'!$P$2:$P$1000=Costs!$A722)*('Fixed assets'!$S$2:$S$1000))","v":0},{"$f":"G634+SUMPRODUCT(('Fixed assets'!$Q$2:$Q$1000=Costs!G$705)*('Fixed assets'!$U$2:$U$1000>Costs!$A722)*('Fixed assets'!$P$2:$P$1000=Costs!$A722)*('Fixed assets'!$R$2:$R$1000))-SUMPRODUCT(('Fixed assets'!$Q$2:$Q$1000=Costs!G$705)*('Fixed assets'!$U$2:$U$1000>Costs!$A722)*('Fixed assets'!$P$2:$P$1000=Costs!$A722)*('Fixed assets'!$S$2:$S$1000))","v":0},{"$f":"H634+SUMPRODUCT(('Fixed assets'!$Q$2:$Q$1000=Costs!H$705)*('Fixed assets'!$U$2:$U$1000>Costs!$A722)*('Fixed assets'!$P$2:$P$1000=Costs!$A722)*('Fixed assets'!$R$2:$R$1000))-SUMPRODUCT(('Fixed assets'!$Q$2:$Q$1000=Costs!H$705)*('Fixed assets'!$U$2:$U$1000>Costs!$A722)*('Fixed assets'!$P$2:$P$1000=Costs!$A722)*('Fixed assets'!$S$2:$S$1000))","v":0},{"$f":"I634+SUMPRODUCT(('Fixed assets'!$Q$2:$Q$1000=Costs!I$705)*('Fixed assets'!$U$2:$U$1000>Costs!$A722)*('Fixed assets'!$P$2:$P$1000=Costs!$A722)*('Fixed assets'!$R$2:$R$1000))-SUMPRODUCT(('Fixed assets'!$Q$2:$Q$1000=Costs!I$705)*('Fixed assets'!$U$2:$U$1000>Costs!$A722)*('Fixed assets'!$P$2:$P$1000=Costs!$A722)*('Fixed assets'!$S$2:$S$1000))","v":0},{"$f":"J634+SUMPRODUCT(('Fixed assets'!$Q$2:$Q$1000=Costs!J$705)*('Fixed assets'!$U$2:$U$1000>Costs!$A722)*('Fixed assets'!$P$2:$P$1000=Costs!$A722)*('Fixed assets'!$R$2:$R$1000))-SUMPRODUCT(('Fixed assets'!$Q$2:$Q$1000=Costs!J$705)*('Fixed assets'!$U$2:$U$1000>Costs!$A722)*('Fixed assets'!$P$2:$P$1000=Costs!$A722)*('Fixed assets'!$S$2:$S$1000))","v":0},{"$f":"K634+SUMPRODUCT(('Fixed assets'!$Q$2:$Q$1000=Costs!K$705)*('Fixed assets'!$U$2:$U$1000>Costs!$A722)*('Fixed assets'!$P$2:$P$1000=Costs!$A722)*('Fixed assets'!$R$2:$R$1000))-SUMPRODUCT(('Fixed assets'!$Q$2:$Q$1000=Costs!K$705)*('Fixed assets'!$U$2:$U$1000>Costs!$A722)*('Fixed assets'!$P$2:$P$1000=Costs!$A722)*('Fixed assets'!$S$2:$S$1000))","v":0},{"$f":"L634+SUMPRODUCT(('Fixed assets'!$Q$2:$Q$1000=Costs!L$705)*('Fixed assets'!$U$2:$U$1000>Costs!$A722)*('Fixed assets'!$P$2:$P$1000=Costs!$A722)*('Fixed assets'!$R$2:$R$1000))-SUMPRODUCT(('Fixed assets'!$Q$2:$Q$1000=Costs!L$705)*('Fixed assets'!$U$2:$U$1000>Costs!$A722)*('Fixed assets'!$P$2:$P$1000=Costs!$A722)*('Fixed assets'!$S$2:$S$1000))","v":0},{"$f":"M634+SUMPRODUCT(('Fixed assets'!$Q$2:$Q$1000=Costs!M$705)*('Fixed assets'!$U$2:$U$1000>Costs!$A722)*('Fixed assets'!$P$2:$P$1000=Costs!$A722)*('Fixed assets'!$R$2:$R$1000))-SUMPRODUCT(('Fixed assets'!$Q$2:$Q$1000=Costs!M$705)*('Fixed assets'!$U$2:$U$1000>Costs!$A722)*('Fixed assets'!$P$2:$P$1000=Costs!$A722)*('Fixed assets'!$S$2:$S$1000))","v":0},{"$f":"N634+SUMPRODUCT(('Fixed assets'!$Q$2:$Q$1000=Costs!N$705)*('Fixed assets'!$U$2:$U$1000>Costs!$A722)*('Fixed assets'!$P$2:$P$1000=Costs!$A722)*('Fixed assets'!$R$2:$R$1000))-SUMPRODUCT(('Fixed assets'!$Q$2:$Q$1000=Costs!N$705)*('Fixed assets'!$U$2:$U$1000>Costs!$A722)*('Fixed assets'!$P$2:$P$1000=Costs!$A722)*('Fixed assets'!$S$2:$S$1000))","v":0},{"$f":"O634+SUMPRODUCT(('Fixed assets'!$Q$2:$Q$1000=Costs!O$705)*('Fixed assets'!$U$2:$U$1000>Costs!$A722)*('Fixed assets'!$P$2:$P$1000=Costs!$A722)*('Fixed assets'!$R$2:$R$1000))-SUMPRODUCT(('Fixed assets'!$Q$2:$Q$1000=Costs!O$705)*('Fixed assets'!$U$2:$U$1000>Costs!$A722)*('Fixed assets'!$P$2:$P$1000=Costs!$A722)*('Fixed assets'!$S$2:$S$1000))","v":0},{"$f":"P634+SUMPRODUCT(('Fixed assets'!$Q$2:$Q$1000=Costs!P$705)*('Fixed assets'!$U$2:$U$1000>Costs!$A722)*('Fixed assets'!$P$2:$P$1000=Costs!$A722)*('Fixed assets'!$R$2:$R$1000))-SUMPRODUCT(('Fixed assets'!$Q$2:$Q$1000=Costs!P$705)*('Fixed assets'!$U$2:$U$1000>Costs!$A722)*('Fixed assets'!$P$2:$P$1000=Costs!$A722)*('Fixed assets'!$S$2:$S$1000))","v":0},{"$f":"Q634+SUMPRODUCT(('Fixed assets'!$Q$2:$Q$1000=Costs!Q$705)*('Fixed assets'!$U$2:$U$1000>Costs!$A722)*('Fixed assets'!$P$2:$P$1000=Costs!$A722)*('Fixed assets'!$R$2:$R$1000))-SUMPRODUCT(('Fixed assets'!$Q$2:$Q$1000=Costs!Q$705)*('Fixed assets'!$U$2:$U$1000>Costs!$A722)*('Fixed assets'!$P$2:$P$1000=Costs!$A722)*('Fixed assets'!$S$2:$S$1000))","v":0},{"$f":"R634+SUMPRODUCT(('Fixed assets'!$Q$2:$Q$1000=Costs!R$705)*('Fixed assets'!$U$2:$U$1000>Costs!$A722)*('Fixed assets'!$P$2:$P$1000=Costs!$A722)*('Fixed assets'!$R$2:$R$1000))-SUMPRODUCT(('Fixed assets'!$Q$2:$Q$1000=Costs!R$705)*('Fixed assets'!$U$2:$U$1000>Costs!$A722)*('Fixed assets'!$P$2:$P$1000=Costs!$A722)*('Fixed assets'!$S$2:$S$1000))","v":0},{"$f":"S634+SUMPRODUCT(('Fixed assets'!$Q$2:$Q$1000=Costs!S$705)*('Fixed assets'!$U$2:$U$1000>Costs!$A722)*('Fixed assets'!$P$2:$P$1000=Costs!$A722)*('Fixed assets'!$R$2:$R$1000))-SUMPRODUCT(('Fixed assets'!$Q$2:$Q$1000=Costs!S$705)*('Fixed assets'!$U$2:$U$1000>Costs!$A722)*('Fixed assets'!$P$2:$P$1000=Costs!$A722)*('Fixed assets'!$S$2:$S$1000))","v":0},{"$f":"T634+SUMPRODUCT(('Fixed assets'!$Q$2:$Q$1000=Costs!T$705)*('Fixed assets'!$U$2:$U$1000>Costs!$A722)*('Fixed assets'!$P$2:$P$1000=Costs!$A722)*('Fixed assets'!$R$2:$R$1000))-SUMPRODUCT(('Fixed assets'!$Q$2:$Q$1000=Costs!T$705)*('Fixed assets'!$U$2:$U$1000>Costs!$A722)*('Fixed assets'!$P$2:$P$1000=Costs!$A722)*('Fixed assets'!$S$2:$S$1000))","v":0},{"$f":"U634+SUMPRODUCT(('Fixed assets'!$Q$2:$Q$1000=Costs!U$705)*('Fixed assets'!$U$2:$U$1000>Costs!$A722)*('Fixed assets'!$P$2:$P$1000=Costs!$A722)*('Fixed assets'!$R$2:$R$1000))-SUMPRODUCT(('Fixed assets'!$Q$2:$Q$1000=Costs!U$705)*('Fixed assets'!$U$2:$U$1000>Costs!$A722)*('Fixed assets'!$P$2:$P$1000=Costs!$A722)*('Fixed assets'!$S$2:$S$1000))","v":0},{"$f":"V634+SUMPRODUCT(('Fixed assets'!$Q$2:$Q$1000=Costs!V$705)*('Fixed assets'!$U$2:$U$1000>Costs!$A722)*('Fixed assets'!$P$2:$P$1000=Costs!$A722)*('Fixed assets'!$R$2:$R$1000))-SUMPRODUCT(('Fixed assets'!$Q$2:$Q$1000=Costs!V$705)*('Fixed assets'!$U$2:$U$1000>Costs!$A722)*('Fixed assets'!$P$2:$P$1000=Costs!$A722)*('Fixed assets'!$S$2:$S$1000))","v":0},{"$f":"W634+SUMPRODUCT(('Fixed assets'!$Q$2:$Q$1000=Costs!W$705)*('Fixed assets'!$U$2:$U$1000>Costs!$A722)*('Fixed assets'!$P$2:$P$1000=Costs!$A722)*('Fixed assets'!$R$2:$R$1000))-SUMPRODUCT(('Fixed assets'!$Q$2:$Q$1000=Costs!W$705)*('Fixed assets'!$U$2:$U$1000>Costs!$A722)*('Fixed assets'!$P$2:$P$1000=Costs!$A722)*('Fixed assets'!$S$2:$S$1000))","v":0},{"$f":"X634+SUMPRODUCT(('Fixed assets'!$Q$2:$Q$1000=Costs!X$705)*('Fixed assets'!$U$2:$U$1000>Costs!$A722)*('Fixed assets'!$P$2:$P$1000=Costs!$A722)*('Fixed assets'!$R$2:$R$1000))-SUMPRODUCT(('Fixed assets'!$Q$2:$Q$1000=Costs!X$705)*('Fixed assets'!$U$2:$U$1000>Costs!$A722)*('Fixed assets'!$P$2:$P$1000=Costs!$A722)*('Fixed assets'!$S$2:$S$1000))","v":0},{"$f":"Y634+SUMPRODUCT(('Fixed assets'!$Q$2:$Q$1000=Costs!Y$705)*('Fixed assets'!$U$2:$U$1000>Costs!$A722)*('Fixed assets'!$P$2:$P$1000=Costs!$A722)*('Fixed assets'!$R$2:$R$1000))-SUMPRODUCT(('Fixed assets'!$Q$2:$Q$1000=Costs!Y$705)*('Fixed assets'!$U$2:$U$1000>Costs!$A722)*('Fixed assets'!$P$2:$P$1000=Costs!$A722)*('Fixed assets'!$S$2:$S$1000))","v":0},{"$f":"Z634+SUMPRODUCT(('Fixed assets'!$Q$2:$Q$1000=Costs!Z$705)*('Fixed assets'!$U$2:$U$1000>Costs!$A722)*('Fixed assets'!$P$2:$P$1000=Costs!$A722)*('Fixed assets'!$R$2:$R$1000))-SUMPRODUCT(('Fixed assets'!$Q$2:$Q$1000=Costs!Z$705)*('Fixed assets'!$U$2:$U$1000>Costs!$A722)*('Fixed assets'!$P$2:$P$1000=Costs!$A722)*('Fixed assets'!$S$2:$S$1000))","v":0},{"$f":"AA634+SUMPRODUCT(('Fixed assets'!$Q$2:$Q$1000=Costs!AA$705)*('Fixed assets'!$U$2:$U$1000>Costs!$A722)*('Fixed assets'!$P$2:$P$1000=Costs!$A722)*('Fixed assets'!$R$2:$R$1000))-SUMPRODUCT(('Fixed assets'!$Q$2:$Q$1000=Costs!AA$705)*('Fixed assets'!$U$2:$U$1000>Costs!$A722)*('Fixed assets'!$P$2:$P$1000=Costs!$A722)*('Fixed assets'!$S$2:$S$1000))","v":0},{"$f":"AB634+SUMPRODUCT(('Fixed assets'!$Q$2:$Q$1000=Costs!AB$705)*('Fixed assets'!$U$2:$U$1000>Costs!$A722)*('Fixed assets'!$P$2:$P$1000=Costs!$A722)*('Fixed assets'!$R$2:$R$1000))-SUMPRODUCT(('Fixed assets'!$Q$2:$Q$1000=Costs!AB$705)*('Fixed assets'!$U$2:$U$1000>Costs!$A722)*('Fixed assets'!$P$2:$P$1000=Costs!$A722)*('Fixed assets'!$S$2:$S$1000))","v":0},{"$f":"AC634+SUMPRODUCT(('Fixed assets'!$Q$2:$Q$1000=Costs!AC$705)*('Fixed assets'!$U$2:$U$1000>Costs!$A722)*('Fixed assets'!$P$2:$P$1000=Costs!$A722)*('Fixed assets'!$R$2:$R$1000))-SUMPRODUCT(('Fixed assets'!$Q$2:$Q$1000=Costs!AC$705)*('Fixed assets'!$U$2:$U$1000>Costs!$A722)*('Fixed assets'!$P$2:$P$1000=Costs!$A722)*('Fixed assets'!$S$2:$S$1000))","v":0},{"$f":"AD634+SUMPRODUCT(('Fixed assets'!$Q$2:$Q$1000=Costs!AD$705)*('Fixed assets'!$U$2:$U$1000>Costs!$A722)*('Fixed assets'!$P$2:$P$1000=Costs!$A722)*('Fixed assets'!$R$2:$R$1000))-SUMPRODUCT(('Fixed assets'!$Q$2:$Q$1000=Costs!AD$705)*('Fixed assets'!$U$2:$U$1000>Costs!$A722)*('Fixed assets'!$P$2:$P$1000=Costs!$A722)*('Fixed assets'!$S$2:$S$1000))","v":0},{"$f":"AE634+SUMPRODUCT(('Fixed assets'!$Q$2:$Q$1000=Costs!AE$705)*('Fixed assets'!$U$2:$U$1000>Costs!$A722)*('Fixed assets'!$P$2:$P$1000=Costs!$A722)*('Fixed assets'!$R$2:$R$1000))-SUMPRODUCT(('Fixed assets'!$Q$2:$Q$1000=Costs!AE$705)*('Fixed assets'!$U$2:$U$1000>Costs!$A722)*('Fixed assets'!$P$2:$P$1000=Costs!$A722)*('Fixed assets'!$S$2:$S$1000))","v":0},{"$f":"AF634+SUMPRODUCT(('Fixed assets'!$Q$2:$Q$1000=Costs!AF$705)*('Fixed assets'!$U$2:$U$1000>Costs!$A722)*('Fixed assets'!$P$2:$P$1000=Costs!$A722)*('Fixed assets'!$R$2:$R$1000))-SUMPRODUCT(('Fixed assets'!$Q$2:$Q$1000=Costs!AF$705)*('Fixed assets'!$U$2:$U$1000>Costs!$A722)*('Fixed assets'!$P$2:$P$1000=Costs!$A722)*('Fixed assets'!$S$2:$S$1000))","v":0},{"$f":"AG634+SUMPRODUCT(('Fixed assets'!$Q$2:$Q$1000=Costs!AG$705)*('Fixed assets'!$U$2:$U$1000>Costs!$A722)*('Fixed assets'!$P$2:$P$1000=Costs!$A722)*('Fixed assets'!$R$2:$R$1000))-SUMPRODUCT(('Fixed assets'!$Q$2:$Q$1000=Costs!AG$705)*('Fixed assets'!$U$2:$U$1000>Costs!$A722)*('Fixed assets'!$P$2:$P$1000=Costs!$A722)*('Fixed assets'!$S$2:$S$1000))","v":0},{"$f":"AH634+SUMPRODUCT(('Fixed assets'!$Q$2:$Q$1000=Costs!AH$705)*('Fixed assets'!$U$2:$U$1000>Costs!$A722)*('Fixed assets'!$P$2:$P$1000=Costs!$A722)*('Fixed assets'!$R$2:$R$1000))-SUMPRODUCT(('Fixed assets'!$Q$2:$Q$1000=Costs!AH$705)*('Fixed assets'!$U$2:$U$1000>Costs!$A722)*('Fixed assets'!$P$2:$P$1000=Costs!$A722)*('Fixed assets'!$S$2:$S$1000))","v":0},{"$f":"AI634+SUMPRODUCT(('Fixed assets'!$Q$2:$Q$1000=Costs!AI$705)*('Fixed assets'!$U$2:$U$1000>Costs!$A722)*('Fixed assets'!$P$2:$P$1000=Costs!$A722)*('Fixed assets'!$R$2:$R$1000))-SUMPRODUCT(('Fixed assets'!$Q$2:$Q$1000=Costs!AI$705)*('Fixed assets'!$U$2:$U$1000>Costs!$A722)*('Fixed assets'!$P$2:$P$1000=Costs!$A722)*('Fixed assets'!$S$2:$S$1000))","v":0},{"$f":"AJ634+SUMPRODUCT(('Fixed assets'!$Q$2:$Q$1000=Costs!AJ$705)*('Fixed assets'!$U$2:$U$1000>Costs!$A722)*('Fixed assets'!$P$2:$P$1000=Costs!$A722)*('Fixed assets'!$R$2:$R$1000))-SUMPRODUCT(('Fixed assets'!$Q$2:$Q$1000=Costs!AJ$705)*('Fixed assets'!$U$2:$U$1000>Costs!$A722)*('Fixed assets'!$P$2:$P$1000=Costs!$A722)*('Fixed assets'!$S$2:$S$1000))","v":0},{"$f":"AK634+SUMPRODUCT(('Fixed assets'!$Q$2:$Q$1000=Costs!AK$705)*('Fixed assets'!$U$2:$U$1000>Costs!$A722)*('Fixed assets'!$P$2:$P$1000=Costs!$A722)*('Fixed assets'!$R$2:$R$1000))-SUMPRODUCT(('Fixed assets'!$Q$2:$Q$1000=Costs!AK$705)*('Fixed assets'!$U$2:$U$1000>Costs!$A722)*('Fixed assets'!$P$2:$P$1000=Costs!$A722)*('Fixed assets'!$S$2:$S$1000))","v":0},{"$f":"AL634+SUMPRODUCT(('Fixed assets'!$Q$2:$Q$1000=Costs!AL$705)*('Fixed assets'!$U$2:$U$1000>Costs!$A722)*('Fixed assets'!$P$2:$P$1000=Costs!$A722)*('Fixed assets'!$R$2:$R$1000))-SUMPRODUCT(('Fixed assets'!$Q$2:$Q$1000=Costs!AL$705)*('Fixed assets'!$U$2:$U$1000>Costs!$A722)*('Fixed assets'!$P$2:$P$1000=Costs!$A722)*('Fixed assets'!$S$2:$S$1000))","v":0},{"$f":"AM634+SUMPRODUCT(('Fixed assets'!$Q$2:$Q$1000=Costs!AM$705)*('Fixed assets'!$U$2:$U$1000>Costs!$A722)*('Fixed assets'!$P$2:$P$1000=Costs!$A722)*('Fixed assets'!$R$2:$R$1000))-SUMPRODUCT(('Fixed assets'!$Q$2:$Q$1000=Costs!AM$705)*('Fixed assets'!$U$2:$U$1000>Costs!$A722)*('Fixed assets'!$P$2:$P$1000=Costs!$A722)*('Fixed assets'!$S$2:$S$1000))","v":0},{"$f":"AN634+SUMPRODUCT(('Fixed assets'!$Q$2:$Q$1000=Costs!AN$705)*('Fixed assets'!$U$2:$U$1000>Costs!$A722)*('Fixed assets'!$P$2:$P$1000=Costs!$A722)*('Fixed assets'!$R$2:$R$1000))-SUMPRODUCT(('Fixed assets'!$Q$2:$Q$1000=Costs!AN$705)*('Fixed assets'!$U$2:$U$1000>Costs!$A722)*('Fixed assets'!$P$2:$P$1000=Costs!$A722)*('Fixed assets'!$S$2:$S$1000))","v":0},{"$f":"AO634+SUMPRODUCT(('Fixed assets'!$Q$2:$Q$1000=Costs!AO$705)*('Fixed assets'!$U$2:$U$1000>Costs!$A722)*('Fixed assets'!$P$2:$P$1000=Costs!$A722)*('Fixed assets'!$R$2:$R$1000))-SUMPRODUCT(('Fixed assets'!$Q$2:$Q$1000=Costs!AO$705)*('Fixed assets'!$U$2:$U$1000>Costs!$A722)*('Fixed assets'!$P$2:$P$1000=Costs!$A722)*('Fixed assets'!$S$2:$S$1000))","v":0},{"$f":"AP634+SUMPRODUCT(('Fixed assets'!$Q$2:$Q$1000=Costs!AP$705)*('Fixed assets'!$U$2:$U$1000>Costs!$A722)*('Fixed assets'!$P$2:$P$1000=Costs!$A722)*('Fixed assets'!$R$2:$R$1000))-SUMPRODUCT(('Fixed assets'!$Q$2:$Q$1000=Costs!AP$705)*('Fixed assets'!$U$2:$U$1000>Costs!$A722)*('Fixed assets'!$P$2:$P$1000=Costs!$A722)*('Fixed assets'!$S$2:$S$1000))","v":0},{"$f":"AQ634+SUMPRODUCT(('Fixed assets'!$Q$2:$Q$1000=Costs!AQ$705)*('Fixed assets'!$U$2:$U$1000>Costs!$A722)*('Fixed assets'!$P$2:$P$1000=Costs!$A722)*('Fixed assets'!$R$2:$R$1000))-SUMPRODUCT(('Fixed assets'!$Q$2:$Q$1000=Costs!AQ$705)*('Fixed assets'!$U$2:$U$1000>Costs!$A722)*('Fixed assets'!$P$2:$P$1000=Costs!$A722)*('Fixed assets'!$S$2:$S$1000))","v":0}]
[2032,0,{"$f":"C635+SUMPRODUCT(('Fixed assets'!$Q$2:$Q$1000=Costs!C$705)*('Fixed assets'!$U$2:$U$1000>Costs!$A723)*('Fixed assets'!$P$2:$P$1000=Costs!$A723)*('Fixed assets'!$R$2:$R$1000))-SUMPRODUCT(('Fixed assets'!$Q$2:$Q$1000=Costs!C$705)*('Fixed assets'!$U$2:$U$1000>Costs!$A723)*('Fixed assets'!$P$2:$P$1000=Costs!$A723)*('Fixed assets'!$S$2:$S$1000))","v":0},{"$f":"D635+SUMPRODUCT(('Fixed assets'!$Q$2:$Q$1000=Costs!D$705)*('Fixed assets'!$U$2:$U$1000>Costs!$A723)*('Fixed assets'!$P$2:$P$1000=Costs!$A723)*('Fixed assets'!$R$2:$R$1000))-SUMPRODUCT(('Fixed assets'!$Q$2:$Q$1000=Costs!D$705)*('Fixed assets'!$U$2:$U$1000>Costs!$A723)*('Fixed assets'!$P$2:$P$1000=Costs!$A723)*('Fixed assets'!$S$2:$S$1000))","v":0},{"$f":"E635+SUMPRODUCT(('Fixed assets'!$Q$2:$Q$1000=Costs!E$705)*('Fixed assets'!$U$2:$U$1000>Costs!$A723)*('Fixed assets'!$P$2:$P$1000=Costs!$A723)*('Fixed assets'!$R$2:$R$1000))-SUMPRODUCT(('Fixed assets'!$Q$2:$Q$1000=Costs!E$705)*('Fixed assets'!$U$2:$U$1000>Costs!$A723)*('Fixed assets'!$P$2:$P$1000=Costs!$A723)*('Fixed assets'!$S$2:$S$1000))","v":0},{"$f":"F635+SUMPRODUCT(('Fixed assets'!$Q$2:$Q$1000=Costs!F$705)*('Fixed assets'!$U$2:$U$1000>Costs!$A723)*('Fixed assets'!$P$2:$P$1000=Costs!$A723)*('Fixed assets'!$R$2:$R$1000))-SUMPRODUCT(('Fixed assets'!$Q$2:$Q$1000=Costs!F$705)*('Fixed assets'!$U$2:$U$1000>Costs!$A723)*('Fixed assets'!$P$2:$P$1000=Costs!$A723)*('Fixed assets'!$S$2:$S$1000))","v":0},{"$f":"G635+SUMPRODUCT(('Fixed assets'!$Q$2:$Q$1000=Costs!G$705)*('Fixed assets'!$U$2:$U$1000>Costs!$A723)*('Fixed assets'!$P$2:$P$1000=Costs!$A723)*('Fixed assets'!$R$2:$R$1000))-SUMPRODUCT(('Fixed assets'!$Q$2:$Q$1000=Costs!G$705)*('Fixed assets'!$U$2:$U$1000>Costs!$A723)*('Fixed assets'!$P$2:$P$1000=Costs!$A723)*('Fixed assets'!$S$2:$S$1000))","v":0},{"$f":"H635+SUMPRODUCT(('Fixed assets'!$Q$2:$Q$1000=Costs!H$705)*('Fixed assets'!$U$2:$U$1000>Costs!$A723)*('Fixed assets'!$P$2:$P$1000=Costs!$A723)*('Fixed assets'!$R$2:$R$1000))-SUMPRODUCT(('Fixed assets'!$Q$2:$Q$1000=Costs!H$705)*('Fixed assets'!$U$2:$U$1000>Costs!$A723)*('Fixed assets'!$P$2:$P$1000=Costs!$A723)*('Fixed assets'!$S$2:$S$1000))","v":0},{"$f":"I635+SUMPRODUCT(('Fixed assets'!$Q$2:$Q$1000=Costs!I$705)*('Fixed assets'!$U$2:$U$1000>Costs!$A723)*('Fixed assets'!$P$2:$P$1000=Costs!$A723)*('Fixed assets'!$R$2:$R$1000))-SUMPRODUCT(('Fixed assets'!$Q$2:$Q$1000=Costs!I$705)*('Fixed assets'!$U$2:$U$1000>Costs!$A723)*('Fixed assets'!$P$2:$P$1000=Costs!$A723)*('Fixed assets'!$S$2:$S$1000))","v":0},{"$f":"J635+SUMPRODUCT(('Fixed assets'!$Q$2:$Q$1000=Costs!J$705)*('Fixed assets'!$U$2:$U$1000>Costs!$A723)*('Fixed assets'!$P$2:$P$1000=Costs!$A723)*('Fixed assets'!$R$2:$R$1000))-SUMPRODUCT(('Fixed assets'!$Q$2:$Q$1000=Costs!J$705)*('Fixed assets'!$U$2:$U$1000>Costs!$A723)*('Fixed assets'!$P$2:$P$1000=Costs!$A723)*('Fixed assets'!$S$2:$S$1000))","v":0},{"$f":"K635+SUMPRODUCT(('Fixed assets'!$Q$2:$Q$1000=Costs!K$705)*('Fixed assets'!$U$2:$U$1000>Costs!$A723)*('Fixed assets'!$P$2:$P$1000=Costs!$A723)*('Fixed assets'!$R$2:$R$1000))-SUMPRODUCT(('Fixed assets'!$Q$2:$Q$1000=Costs!K$705)*('Fixed assets'!$U$2:$U$1000>Costs!$A723)*('Fixed assets'!$P$2:$P$1000=Costs!$A723)*('Fixed assets'!$S$2:$S$1000))","v":0},{"$f":"L635+SUMPRODUCT(('Fixed assets'!$Q$2:$Q$1000=Costs!L$705)*('Fixed assets'!$U$2:$U$1000>Costs!$A723)*('Fixed assets'!$P$2:$P$1000=Costs!$A723)*('Fixed assets'!$R$2:$R$1000))-SUMPRODUCT(('Fixed assets'!$Q$2:$Q$1000=Costs!L$705)*('Fixed assets'!$U$2:$U$1000>Costs!$A723)*('Fixed assets'!$P$2:$P$1000=Costs!$A723)*('Fixed assets'!$S$2:$S$1000))","v":0},{"$f":"M635+SUMPRODUCT(('Fixed assets'!$Q$2:$Q$1000=Costs!M$705)*('Fixed assets'!$U$2:$U$1000>Costs!$A723)*('Fixed assets'!$P$2:$P$1000=Costs!$A723)*('Fixed assets'!$R$2:$R$1000))-SUMPRODUCT(('Fixed assets'!$Q$2:$Q$1000=Costs!M$705)*('Fixed assets'!$U$2:$U$1000>Costs!$A723)*('Fixed assets'!$P$2:$P$1000=Costs!$A723)*('Fixed assets'!$S$2:$S$1000))","v":0},{"$f":"N635+SUMPRODUCT(('Fixed assets'!$Q$2:$Q$1000=Costs!N$705)*('Fixed assets'!$U$2:$U$1000>Costs!$A723)*('Fixed assets'!$P$2:$P$1000=Costs!$A723)*('Fixed assets'!$R$2:$R$1000))-SUMPRODUCT(('Fixed assets'!$Q$2:$Q$1000=Costs!N$705)*('Fixed assets'!$U$2:$U$1000>Costs!$A723)*('Fixed assets'!$P$2:$P$1000=Costs!$A723)*('Fixed assets'!$S$2:$S$1000))","v":0},{"$f":"O635+SUMPRODUCT(('Fixed assets'!$Q$2:$Q$1000=Costs!O$705)*('Fixed assets'!$U$2:$U$1000>Costs!$A723)*('Fixed assets'!$P$2:$P$1000=Costs!$A723)*('Fixed assets'!$R$2:$R$1000))-SUMPRODUCT(('Fixed assets'!$Q$2:$Q$1000=Costs!O$705)*('Fixed assets'!$U$2:$U$1000>Costs!$A723)*('Fixed assets'!$P$2:$P$1000=Costs!$A723)*('Fixed assets'!$S$2:$S$1000))","v":0},{"$f":"P635+SUMPRODUCT(('Fixed assets'!$Q$2:$Q$1000=Costs!P$705)*('Fixed assets'!$U$2:$U$1000>Costs!$A723)*('Fixed assets'!$P$2:$P$1000=Costs!$A723)*('Fixed assets'!$R$2:$R$1000))-SUMPRODUCT(('Fixed assets'!$Q$2:$Q$1000=Costs!P$705)*('Fixed assets'!$U$2:$U$1000>Costs!$A723)*('Fixed assets'!$P$2:$P$1000=Costs!$A723)*('Fixed assets'!$S$2:$S$1000))","v":0},{"$f":"Q635+SUMPRODUCT(('Fixed assets'!$Q$2:$Q$1000=Costs!Q$705)*('Fixed assets'!$U$2:$U$1000>Costs!$A723)*('Fixed assets'!$P$2:$P$1000=Costs!$A723)*('Fixed assets'!$R$2:$R$1000))-SUMPRODUCT(('Fixed assets'!$Q$2:$Q$1000=Costs!Q$705)*('Fixed assets'!$U$2:$U$1000>Costs!$A723)*('Fixed assets'!$P$2:$P$1000=Costs!$A723)*('Fixed assets'!$S$2:$S$1000))","v":0},{"$f":"R635+SUMPRODUCT(('Fixed assets'!$Q$2:$Q$1000=Costs!R$705)*('Fixed assets'!$U$2:$U$1000>Costs!$A723)*('Fixed assets'!$P$2:$P$1000=Costs!$A723)*('Fixed assets'!$R$2:$R$1000))-SUMPRODUCT(('Fixed assets'!$Q$2:$Q$1000=Costs!R$705)*('Fixed assets'!$U$2:$U$1000>Costs!$A723)*('Fixed assets'!$P$2:$P$1000=Costs!$A723)*('Fixed assets'!$S$2:$S$1000))","v":0},{"$f":"S635+SUMPRODUCT(('Fixed assets'!$Q$2:$Q$1000=Costs!S$705)*('Fixed assets'!$U$2:$U$1000>Costs!$A723)*('Fixed assets'!$P$2:$P$1000=Costs!$A723)*('Fixed assets'!$R$2:$R$1000))-SUMPRODUCT(('Fixed assets'!$Q$2:$Q$1000=Costs!S$705)*('Fixed assets'!$U$2:$U$1000>Costs!$A723)*('Fixed assets'!$P$2:$P$1000=Costs!$A723)*('Fixed assets'!$S$2:$S$1000))","v":0},{"$f":"T635+SUMPRODUCT(('Fixed assets'!$Q$2:$Q$1000=Costs!T$705)*('Fixed assets'!$U$2:$U$1000>Costs!$A723)*('Fixed assets'!$P$2:$P$1000=Costs!$A723)*('Fixed assets'!$R$2:$R$1000))-SUMPRODUCT(('Fixed assets'!$Q$2:$Q$1000=Costs!T$705)*('Fixed assets'!$U$2:$U$1000>Costs!$A723)*('Fixed assets'!$P$2:$P$1000=Costs!$A723)*('Fixed assets'!$S$2:$S$1000))","v":0},{"$f":"U635+SUMPRODUCT(('Fixed assets'!$Q$2:$Q$1000=Costs!U$705)*('Fixed assets'!$U$2:$U$1000>Costs!$A723)*('Fixed assets'!$P$2:$P$1000=Costs!$A723)*('Fixed assets'!$R$2:$R$1000))-SUMPRODUCT(('Fixed assets'!$Q$2:$Q$1000=Costs!U$705)*('Fixed assets'!$U$2:$U$1000>Costs!$A723)*('Fixed assets'!$P$2:$P$1000=Costs!$A723)*('Fixed assets'!$S$2:$S$1000))","v":0},{"$f":"V635+SUMPRODUCT(('Fixed assets'!$Q$2:$Q$1000=Costs!V$705)*('Fixed assets'!$U$2:$U$1000>Costs!$A723)*('Fixed assets'!$P$2:$P$1000=Costs!$A723)*('Fixed assets'!$R$2:$R$1000))-SUMPRODUCT(('Fixed assets'!$Q$2:$Q$1000=Costs!V$705)*('Fixed assets'!$U$2:$U$1000>Costs!$A723)*('Fixed assets'!$P$2:$P$1000=Costs!$A723)*('Fixed assets'!$S$2:$S$1000))","v":0},{"$f":"W635+SUMPRODUCT(('Fixed assets'!$Q$2:$Q$1000=Costs!W$705)*('Fixed assets'!$U$2:$U$1000>Costs!$A723)*('Fixed assets'!$P$2:$P$1000=Costs!$A723)*('Fixed assets'!$R$2:$R$1000))-SUMPRODUCT(('Fixed assets'!$Q$2:$Q$1000=Costs!W$705)*('Fixed assets'!$U$2:$U$1000>Costs!$A723)*('Fixed assets'!$P$2:$P$1000=Costs!$A723)*('Fixed assets'!$S$2:$S$1000))","v":0},{"$f":"X635+SUMPRODUCT(('Fixed assets'!$Q$2:$Q$1000=Costs!X$705)*('Fixed assets'!$U$2:$U$1000>Costs!$A723)*('Fixed assets'!$P$2:$P$1000=Costs!$A723)*('Fixed assets'!$R$2:$R$1000))-SUMPRODUCT(('Fixed assets'!$Q$2:$Q$1000=Costs!X$705)*('Fixed assets'!$U$2:$U$1000>Costs!$A723)*('Fixed assets'!$P$2:$P$1000=Costs!$A723)*('Fixed assets'!$S$2:$S$1000))","v":0},{"$f":"Y635+SUMPRODUCT(('Fixed assets'!$Q$2:$Q$1000=Costs!Y$705)*('Fixed assets'!$U$2:$U$1000>Costs!$A723)*('Fixed assets'!$P$2:$P$1000=Costs!$A723)*('Fixed assets'!$R$2:$R$1000))-SUMPRODUCT(('Fixed assets'!$Q$2:$Q$1000=Costs!Y$705)*('Fixed assets'!$U$2:$U$1000>Costs!$A723)*('Fixed assets'!$P$2:$P$1000=Costs!$A723)*('Fixed assets'!$S$2:$S$1000))","v":0},{"$f":"Z635+SUMPRODUCT(('Fixed assets'!$Q$2:$Q$1000=Costs!Z$705)*('Fixed assets'!$U$2:$U$1000>Costs!$A723)*('Fixed assets'!$P$2:$P$1000=Costs!$A723)*('Fixed assets'!$R$2:$R$1000))-SUMPRODUCT(('Fixed assets'!$Q$2:$Q$1000=Costs!Z$705)*('Fixed assets'!$U$2:$U$1000>Costs!$A723)*('Fixed assets'!$P$2:$P$1000=Costs!$A723)*('Fixed assets'!$S$2:$S$1000))","v":0},{"$f":"AA635+SUMPRODUCT(('Fixed assets'!$Q$2:$Q$1000=Costs!AA$705)*('Fixed assets'!$U$2:$U$1000>Costs!$A723)*('Fixed assets'!$P$2:$P$1000=Costs!$A723)*('Fixed assets'!$R$2:$R$1000))-SUMPRODUCT(('Fixed assets'!$Q$2:$Q$1000=Costs!AA$705)*('Fixed assets'!$U$2:$U$1000>Costs!$A723)*('Fixed assets'!$P$2:$P$1000=Costs!$A723)*('Fixed assets'!$S$2:$S$1000))","v":0},{"$f":"AB635+SUMPRODUCT(('Fixed assets'!$Q$2:$Q$1000=Costs!AB$705)*('Fixed assets'!$U$2:$U$1000>Costs!$A723)*('Fixed assets'!$P$2:$P$1000=Costs!$A723)*('Fixed assets'!$R$2:$R$1000))-SUMPRODUCT(('Fixed assets'!$Q$2:$Q$1000=Costs!AB$705)*('Fixed assets'!$U$2:$U$1000>Costs!$A723)*('Fixed assets'!$P$2:$P$1000=Costs!$A723)*('Fixed assets'!$S$2:$S$1000))","v":0},{"$f":"AC635+SUMPRODUCT(('Fixed assets'!$Q$2:$Q$1000=Costs!AC$705)*('Fixed assets'!$U$2:$U$1000>Costs!$A723)*('Fixed assets'!$P$2:$P$1000=Costs!$A723)*('Fixed assets'!$R$2:$R$1000))-SUMPRODUCT(('Fixed assets'!$Q$2:$Q$1000=Costs!AC$705)*('Fixed assets'!$U$2:$U$1000>Costs!$A723)*('Fixed assets'!$P$2:$P$1000=Costs!$A723)*('Fixed assets'!$S$2:$S$1000))","v":0},{"$f":"AD635+SUMPRODUCT(('Fixed assets'!$Q$2:$Q$1000=Costs!AD$705)*('Fixed assets'!$U$2:$U$1000>Costs!$A723)*('Fixed assets'!$P$2:$P$1000=Costs!$A723)*('Fixed assets'!$R$2:$R$1000))-SUMPRODUCT(('Fixed assets'!$Q$2:$Q$1000=Costs!AD$705)*('Fixed assets'!$U$2:$U$1000>Costs!$A723)*('Fixed assets'!$P$2:$P$1000=Costs!$A723)*('Fixed assets'!$S$2:$S$1000))","v":0},{"$f":"AE635+SUMPRODUCT(('Fixed assets'!$Q$2:$Q$1000=Costs!AE$705)*('Fixed assets'!$U$2:$U$1000>Costs!$A723)*('Fixed assets'!$P$2:$P$1000=Costs!$A723)*('Fixed assets'!$R$2:$R$1000))-SUMPRODUCT(('Fixed assets'!$Q$2:$Q$1000=Costs!AE$705)*('Fixed assets'!$U$2:$U$1000>Costs!$A723)*('Fixed assets'!$P$2:$P$1000=Costs!$A723)*('Fixed assets'!$S$2:$S$1000))","v":0},{"$f":"AF635+SUMPRODUCT(('Fixed assets'!$Q$2:$Q$1000=Costs!AF$705)*('Fixed assets'!$U$2:$U$1000>Costs!$A723)*('Fixed assets'!$P$2:$P$1000=Costs!$A723)*('Fixed assets'!$R$2:$R$1000))-SUMPRODUCT(('Fixed assets'!$Q$2:$Q$1000=Costs!AF$705)*('Fixed assets'!$U$2:$U$1000>Costs!$A723)*('Fixed assets'!$P$2:$P$1000=Costs!$A723)*('Fixed assets'!$S$2:$S$1000))","v":0},{"$f":"AG635+SUMPRODUCT(('Fixed assets'!$Q$2:$Q$1000=Costs!AG$705)*('Fixed assets'!$U$2:$U$1000>Costs!$A723)*('Fixed assets'!$P$2:$P$1000=Costs!$A723)*('Fixed assets'!$R$2:$R$1000))-SUMPRODUCT(('Fixed assets'!$Q$2:$Q$1000=Costs!AG$705)*('Fixed assets'!$U$2:$U$1000>Costs!$A723)*('Fixed assets'!$P$2:$P$1000=Costs!$A723)*('Fixed assets'!$S$2:$S$1000))","v":0},{"$f":"AH635+SUMPRODUCT(('Fixed assets'!$Q$2:$Q$1000=Costs!AH$705)*('Fixed assets'!$U$2:$U$1000>Costs!$A723)*('Fixed assets'!$P$2:$P$1000=Costs!$A723)*('Fixed assets'!$R$2:$R$1000))-SUMPRODUCT(('Fixed assets'!$Q$2:$Q$1000=Costs!AH$705)*('Fixed assets'!$U$2:$U$1000>Costs!$A723)*('Fixed assets'!$P$2:$P$1000=Costs!$A723)*('Fixed assets'!$S$2:$S$1000))","v":0},{"$f":"AI635+SUMPRODUCT(('Fixed assets'!$Q$2:$Q$1000=Costs!AI$705)*('Fixed assets'!$U$2:$U$1000>Costs!$A723)*('Fixed assets'!$P$2:$P$1000=Costs!$A723)*('Fixed assets'!$R$2:$R$1000))-SUMPRODUCT(('Fixed assets'!$Q$2:$Q$1000=Costs!AI$705)*('Fixed assets'!$U$2:$U$1000>Costs!$A723)*('Fixed assets'!$P$2:$P$1000=Costs!$A723)*('Fixed assets'!$S$2:$S$1000))","v":0},{"$f":"AJ635+SUMPRODUCT(('Fixed assets'!$Q$2:$Q$1000=Costs!AJ$705)*('Fixed assets'!$U$2:$U$1000>Costs!$A723)*('Fixed assets'!$P$2:$P$1000=Costs!$A723)*('Fixed assets'!$R$2:$R$1000))-SUMPRODUCT(('Fixed assets'!$Q$2:$Q$1000=Costs!AJ$705)*('Fixed assets'!$U$2:$U$1000>Costs!$A723)*('Fixed assets'!$P$2:$P$1000=Costs!$A723)*('Fixed assets'!$S$2:$S$1000))","v":0},{"$f":"AK635+SUMPRODUCT(('Fixed assets'!$Q$2:$Q$1000=Costs!AK$705)*('Fixed assets'!$U$2:$U$1000>Costs!$A723)*('Fixed assets'!$P$2:$P$1000=Costs!$A723)*('Fixed assets'!$R$2:$R$1000))-SUMPRODUCT(('Fixed assets'!$Q$2:$Q$1000=Costs!AK$705)*('Fixed assets'!$U$2:$U$1000>Costs!$A723)*('Fixed assets'!$P$2:$P$1000=Costs!$A723)*('Fixed assets'!$S$2:$S$1000))","v":0},{"$f":"AL635+SUMPRODUCT(('Fixed assets'!$Q$2:$Q$1000=Costs!AL$705)*('Fixed assets'!$U$2:$U$1000>Costs!$A723)*('Fixed assets'!$P$2:$P$1000=Costs!$A723)*('Fixed assets'!$R$2:$R$1000))-SUMPRODUCT(('Fixed assets'!$Q$2:$Q$1000=Costs!AL$705)*('Fixed assets'!$U$2:$U$1000>Costs!$A723)*('Fixed assets'!$P$2:$P$1000=Costs!$A723)*('Fixed assets'!$S$2:$S$1000))","v":0},{"$f":"AM635+SUMPRODUCT(('Fixed assets'!$Q$2:$Q$1000=Costs!AM$705)*('Fixed assets'!$U$2:$U$1000>Costs!$A723)*('Fixed assets'!$P$2:$P$1000=Costs!$A723)*('Fixed assets'!$R$2:$R$1000))-SUMPRODUCT(('Fixed assets'!$Q$2:$Q$1000=Costs!AM$705)*('Fixed assets'!$U$2:$U$1000>Costs!$A723)*('Fixed assets'!$P$2:$P$1000=Costs!$A723)*('Fixed assets'!$S$2:$S$1000))","v":0},{"$f":"AN635+SUMPRODUCT(('Fixed assets'!$Q$2:$Q$1000=Costs!AN$705)*('Fixed assets'!$U$2:$U$1000>Costs!$A723)*('Fixed assets'!$P$2:$P$1000=Costs!$A723)*('Fixed assets'!$R$2:$R$1000))-SUMPRODUCT(('Fixed assets'!$Q$2:$Q$1000=Costs!AN$705)*('Fixed assets'!$U$2:$U$1000>Costs!$A723)*('Fixed assets'!$P$2:$P$1000=Costs!$A723)*('Fixed assets'!$S$2:$S$1000))","v":0},{"$f":"AO635+SUMPRODUCT(('Fixed assets'!$Q$2:$Q$1000=Costs!AO$705)*('Fixed assets'!$U$2:$U$1000>Costs!$A723)*('Fixed assets'!$P$2:$P$1000=Costs!$A723)*('Fixed assets'!$R$2:$R$1000))-SUMPRODUCT(('Fixed assets'!$Q$2:$Q$1000=Costs!AO$705)*('Fixed assets'!$U$2:$U$1000>Costs!$A723)*('Fixed assets'!$P$2:$P$1000=Costs!$A723)*('Fixed assets'!$S$2:$S$1000))","v":0},{"$f":"AP635+SUMPRODUCT(('Fixed assets'!$Q$2:$Q$1000=Costs!AP$705)*('Fixed assets'!$U$2:$U$1000>Costs!$A723)*('Fixed assets'!$P$2:$P$1000=Costs!$A723)*('Fixed assets'!$R$2:$R$1000))-SUMPRODUCT(('Fixed assets'!$Q$2:$Q$1000=Costs!AP$705)*('Fixed assets'!$U$2:$U$1000>Costs!$A723)*('Fixed assets'!$P$2:$P$1000=Costs!$A723)*('Fixed assets'!$S$2:$S$1000))","v":0},{"$f":"AQ635+SUMPRODUCT(('Fixed assets'!$Q$2:$Q$1000=Costs!AQ$705)*('Fixed assets'!$U$2:$U$1000>Costs!$A723)*('Fixed assets'!$P$2:$P$1000=Costs!$A723)*('Fixed assets'!$R$2:$R$1000))-SUMPRODUCT(('Fixed assets'!$Q$2:$Q$1000=Costs!AQ$705)*('Fixed assets'!$U$2:$U$1000>Costs!$A723)*('Fixed assets'!$P$2:$P$1000=Costs!$A723)*('Fixed assets'!$S$2:$S$1000))","v":0}]
[2033,0,{"$f":"C636+SUMPRODUCT(('Fixed assets'!$Q$2:$Q$1000=Costs!C$705)*('Fixed assets'!$U$2:$U$1000>Costs!$A724)*('Fixed assets'!$P$2:$P$1000=Costs!$A724)*('Fixed assets'!$R$2:$R$1000))-SUMPRODUCT(('Fixed assets'!$Q$2:$Q$1000=Costs!C$705)*('Fixed assets'!$U$2:$U$1000>Costs!$A724)*('Fixed assets'!$P$2:$P$1000=Costs!$A724)*('Fixed assets'!$S$2:$S$1000))","v":0},{"$f":"D636+SUMPRODUCT(('Fixed assets'!$Q$2:$Q$1000=Costs!D$705)*('Fixed assets'!$U$2:$U$1000>Costs!$A724)*('Fixed assets'!$P$2:$P$1000=Costs!$A724)*('Fixed assets'!$R$2:$R$1000))-SUMPRODUCT(('Fixed assets'!$Q$2:$Q$1000=Costs!D$705)*('Fixed assets'!$U$2:$U$1000>Costs!$A724)*('Fixed assets'!$P$2:$P$1000=Costs!$A724)*('Fixed assets'!$S$2:$S$1000))","v":0},{"$f":"E636+SUMPRODUCT(('Fixed assets'!$Q$2:$Q$1000=Costs!E$705)*('Fixed assets'!$U$2:$U$1000>Costs!$A724)*('Fixed assets'!$P$2:$P$1000=Costs!$A724)*('Fixed assets'!$R$2:$R$1000))-SUMPRODUCT(('Fixed assets'!$Q$2:$Q$1000=Costs!E$705)*('Fixed assets'!$U$2:$U$1000>Costs!$A724)*('Fixed assets'!$P$2:$P$1000=Costs!$A724)*('Fixed assets'!$S$2:$S$1000))","v":0},{"$f":"F636+SUMPRODUCT(('Fixed assets'!$Q$2:$Q$1000=Costs!F$705)*('Fixed assets'!$U$2:$U$1000>Costs!$A724)*('Fixed assets'!$P$2:$P$1000=Costs!$A724)*('Fixed assets'!$R$2:$R$1000))-SUMPRODUCT(('Fixed assets'!$Q$2:$Q$1000=Costs!F$705)*('Fixed assets'!$U$2:$U$1000>Costs!$A724)*('Fixed assets'!$P$2:$P$1000=Costs!$A724)*('Fixed assets'!$S$2:$S$1000))","v":0},{"$f":"G636+SUMPRODUCT(('Fixed assets'!$Q$2:$Q$1000=Costs!G$705)*('Fixed assets'!$U$2:$U$1000>Costs!$A724)*('Fixed assets'!$P$2:$P$1000=Costs!$A724)*('Fixed assets'!$R$2:$R$1000))-SUMPRODUCT(('Fixed assets'!$Q$2:$Q$1000=Costs!G$705)*('Fixed assets'!$U$2:$U$1000>Costs!$A724)*('Fixed assets'!$P$2:$P$1000=Costs!$A724)*('Fixed assets'!$S$2:$S$1000))","v":0},{"$f":"H636+SUMPRODUCT(('Fixed assets'!$Q$2:$Q$1000=Costs!H$705)*('Fixed assets'!$U$2:$U$1000>Costs!$A724)*('Fixed assets'!$P$2:$P$1000=Costs!$A724)*('Fixed assets'!$R$2:$R$1000))-SUMPRODUCT(('Fixed assets'!$Q$2:$Q$1000=Costs!H$705)*('Fixed assets'!$U$2:$U$1000>Costs!$A724)*('Fixed assets'!$P$2:$P$1000=Costs!$A724)*('Fixed assets'!$S$2:$S$1000))","v":0},{"$f":"I636+SUMPRODUCT(('Fixed assets'!$Q$2:$Q$1000=Costs!I$705)*('Fixed assets'!$U$2:$U$1000>Costs!$A724)*('Fixed assets'!$P$2:$P$1000=Costs!$A724)*('Fixed assets'!$R$2:$R$1000))-SUMPRODUCT(('Fixed assets'!$Q$2:$Q$1000=Costs!I$705)*('Fixed assets'!$U$2:$U$1000>Costs!$A724)*('Fixed assets'!$P$2:$P$1000=Costs!$A724)*('Fixed assets'!$S$2:$S$1000))","v":0},{"$f":"J636+SUMPRODUCT(('Fixed assets'!$Q$2:$Q$1000=Costs!J$705)*('Fixed assets'!$U$2:$U$1000>Costs!$A724)*('Fixed assets'!$P$2:$P$1000=Costs!$A724)*('Fixed assets'!$R$2:$R$1000))-SUMPRODUCT(('Fixed assets'!$Q$2:$Q$1000=Costs!J$705)*('Fixed assets'!$U$2:$U$1000>Costs!$A724)*('Fixed assets'!$P$2:$P$1000=Costs!$A724)*('Fixed assets'!$S$2:$S$1000))","v":0},{"$f":"K636+SUMPRODUCT(('Fixed assets'!$Q$2:$Q$1000=Costs!K$705)*('Fixed assets'!$U$2:$U$1000>Costs!$A724)*('Fixed assets'!$P$2:$P$1000=Costs!$A724)*('Fixed assets'!$R$2:$R$1000))-SUMPRODUCT(('Fixed assets'!$Q$2:$Q$1000=Costs!K$705)*('Fixed assets'!$U$2:$U$1000>Costs!$A724)*('Fixed assets'!$P$2:$P$1000=Costs!$A724)*('Fixed assets'!$S$2:$S$1000))","v":0},{"$f":"L636+SUMPRODUCT(('Fixed assets'!$Q$2:$Q$1000=Costs!L$705)*('Fixed assets'!$U$2:$U$1000>Costs!$A724)*('Fixed assets'!$P$2:$P$1000=Costs!$A724)*('Fixed assets'!$R$2:$R$1000))-SUMPRODUCT(('Fixed assets'!$Q$2:$Q$1000=Costs!L$705)*('Fixed assets'!$U$2:$U$1000>Costs!$A724)*('Fixed assets'!$P$2:$P$1000=Costs!$A724)*('Fixed assets'!$S$2:$S$1000))","v":0},{"$f":"M636+SUMPRODUCT(('Fixed assets'!$Q$2:$Q$1000=Costs!M$705)*('Fixed assets'!$U$2:$U$1000>Costs!$A724)*('Fixed assets'!$P$2:$P$1000=Costs!$A724)*('Fixed assets'!$R$2:$R$1000))-SUMPRODUCT(('Fixed assets'!$Q$2:$Q$1000=Costs!M$705)*('Fixed assets'!$U$2:$U$1000>Costs!$A724)*('Fixed assets'!$P$2:$P$1000=Costs!$A724)*('Fixed assets'!$S$2:$S$1000))","v":0},{"$f":"N636+SUMPRODUCT(('Fixed assets'!$Q$2:$Q$1000=Costs!N$705)*('Fixed assets'!$U$2:$U$1000>Costs!$A724)*('Fixed assets'!$P$2:$P$1000=Costs!$A724)*('Fixed assets'!$R$2:$R$1000))-SUMPRODUCT(('Fixed assets'!$Q$2:$Q$1000=Costs!N$705)*('Fixed assets'!$U$2:$U$1000>Costs!$A724)*('Fixed assets'!$P$2:$P$1000=Costs!$A724)*('Fixed assets'!$S$2:$S$1000))","v":0},{"$f":"O636+SUMPRODUCT(('Fixed assets'!$Q$2:$Q$1000=Costs!O$705)*('Fixed assets'!$U$2:$U$1000>Costs!$A724)*('Fixed assets'!$P$2:$P$1000=Costs!$A724)*('Fixed assets'!$R$2:$R$1000))-SUMPRODUCT(('Fixed assets'!$Q$2:$Q$1000=Costs!O$705)*('Fixed assets'!$U$2:$U$1000>Costs!$A724)*('Fixed assets'!$P$2:$P$1000=Costs!$A724)*('Fixed assets'!$S$2:$S$1000))","v":0},{"$f":"P636+SUMPRODUCT(('Fixed assets'!$Q$2:$Q$1000=Costs!P$705)*('Fixed assets'!$U$2:$U$1000>Costs!$A724)*('Fixed assets'!$P$2:$P$1000=Costs!$A724)*('Fixed assets'!$R$2:$R$1000))-SUMPRODUCT(('Fixed assets'!$Q$2:$Q$1000=Costs!P$705)*('Fixed assets'!$U$2:$U$1000>Costs!$A724)*('Fixed assets'!$P$2:$P$1000=Costs!$A724)*('Fixed assets'!$S$2:$S$1000))","v":0},{"$f":"Q636+SUMPRODUCT(('Fixed assets'!$Q$2:$Q$1000=Costs!Q$705)*('Fixed assets'!$U$2:$U$1000>Costs!$A724)*('Fixed assets'!$P$2:$P$1000=Costs!$A724)*('Fixed assets'!$R$2:$R$1000))-SUMPRODUCT(('Fixed assets'!$Q$2:$Q$1000=Costs!Q$705)*('Fixed assets'!$U$2:$U$1000>Costs!$A724)*('Fixed assets'!$P$2:$P$1000=Costs!$A724)*('Fixed assets'!$S$2:$S$1000))","v":0},{"$f":"R636+SUMPRODUCT(('Fixed assets'!$Q$2:$Q$1000=Costs!R$705)*('Fixed assets'!$U$2:$U$1000>Costs!$A724)*('Fixed assets'!$P$2:$P$1000=Costs!$A724)*('Fixed assets'!$R$2:$R$1000))-SUMPRODUCT(('Fixed assets'!$Q$2:$Q$1000=Costs!R$705)*('Fixed assets'!$U$2:$U$1000>Costs!$A724)*('Fixed assets'!$P$2:$P$1000=Costs!$A724)*('Fixed assets'!$S$2:$S$1000))","v":0},{"$f":"S636+SUMPRODUCT(('Fixed assets'!$Q$2:$Q$1000=Costs!S$705)*('Fixed assets'!$U$2:$U$1000>Costs!$A724)*('Fixed assets'!$P$2:$P$1000=Costs!$A724)*('Fixed assets'!$R$2:$R$1000))-SUMPRODUCT(('Fixed assets'!$Q$2:$Q$1000=Costs!S$705)*('Fixed assets'!$U$2:$U$1000>Costs!$A724)*('Fixed assets'!$P$2:$P$1000=Costs!$A724)*('Fixed assets'!$S$2:$S$1000))","v":0},{"$f":"T636+SUMPRODUCT(('Fixed assets'!$Q$2:$Q$1000=Costs!T$705)*('Fixed assets'!$U$2:$U$1000>Costs!$A724)*('Fixed assets'!$P$2:$P$1000=Costs!$A724)*('Fixed assets'!$R$2:$R$1000))-SUMPRODUCT(('Fixed assets'!$Q$2:$Q$1000=Costs!T$705)*('Fixed assets'!$U$2:$U$1000>Costs!$A724)*('Fixed assets'!$P$2:$P$1000=Costs!$A724)*('Fixed assets'!$S$2:$S$1000))","v":0},{"$f":"U636+SUMPRODUCT(('Fixed assets'!$Q$2:$Q$1000=Costs!U$705)*('Fixed assets'!$U$2:$U$1000>Costs!$A724)*('Fixed assets'!$P$2:$P$1000=Costs!$A724)*('Fixed assets'!$R$2:$R$1000))-SUMPRODUCT(('Fixed assets'!$Q$2:$Q$1000=Costs!U$705)*('Fixed assets'!$U$2:$U$1000>Costs!$A724)*('Fixed assets'!$P$2:$P$1000=Costs!$A724)*('Fixed assets'!$S$2:$S$1000))","v":0},{"$f":"V636+SUMPRODUCT(('Fixed assets'!$Q$2:$Q$1000=Costs!V$705)*('Fixed assets'!$U$2:$U$1000>Costs!$A724)*('Fixed assets'!$P$2:$P$1000=Costs!$A724)*('Fixed assets'!$R$2:$R$1000))-SUMPRODUCT(('Fixed assets'!$Q$2:$Q$1000=Costs!V$705)*('Fixed assets'!$U$2:$U$1000>Costs!$A724)*('Fixed assets'!$P$2:$P$1000=Costs!$A724)*('Fixed assets'!$S$2:$S$1000))","v":0},{"$f":"W636+SUMPRODUCT(('Fixed assets'!$Q$2:$Q$1000=Costs!W$705)*('Fixed assets'!$U$2:$U$1000>Costs!$A724)*('Fixed assets'!$P$2:$P$1000=Costs!$A724)*('Fixed assets'!$R$2:$R$1000))-SUMPRODUCT(('Fixed assets'!$Q$2:$Q$1000=Costs!W$705)*('Fixed assets'!$U$2:$U$1000>Costs!$A724)*('Fixed assets'!$P$2:$P$1000=Costs!$A724)*('Fixed assets'!$S$2:$S$1000))","v":0},{"$f":"X636+SUMPRODUCT(('Fixed assets'!$Q$2:$Q$1000=Costs!X$705)*('Fixed assets'!$U$2:$U$1000>Costs!$A724)*('Fixed assets'!$P$2:$P$1000=Costs!$A724)*('Fixed assets'!$R$2:$R$1000))-SUMPRODUCT(('Fixed assets'!$Q$2:$Q$1000=Costs!X$705)*('Fixed assets'!$U$2:$U$1000>Costs!$A724)*('Fixed assets'!$P$2:$P$1000=Costs!$A724)*('Fixed assets'!$S$2:$S$1000))","v":0},{"$f":"Y636+SUMPRODUCT(('Fixed assets'!$Q$2:$Q$1000=Costs!Y$705)*('Fixed assets'!$U$2:$U$1000>Costs!$A724)*('Fixed assets'!$P$2:$P$1000=Costs!$A724)*('Fixed assets'!$R$2:$R$1000))-SUMPRODUCT(('Fixed assets'!$Q$2:$Q$1000=Costs!Y$705)*('Fixed assets'!$U$2:$U$1000>Costs!$A724)*('Fixed assets'!$P$2:$P$1000=Costs!$A724)*('Fixed assets'!$S$2:$S$1000))","v":0},{"$f":"Z636+SUMPRODUCT(('Fixed assets'!$Q$2:$Q$1000=Costs!Z$705)*('Fixed assets'!$U$2:$U$1000>Costs!$A724)*('Fixed assets'!$P$2:$P$1000=Costs!$A724)*('Fixed assets'!$R$2:$R$1000))-SUMPRODUCT(('Fixed assets'!$Q$2:$Q$1000=Costs!Z$705)*('Fixed assets'!$U$2:$U$1000>Costs!$A724)*('Fixed assets'!$P$2:$P$1000=Costs!$A724)*('Fixed assets'!$S$2:$S$1000))","v":0},{"$f":"AA636+SUMPRODUCT(('Fixed assets'!$Q$2:$Q$1000=Costs!AA$705)*('Fixed assets'!$U$2:$U$1000>Costs!$A724)*('Fixed assets'!$P$2:$P$1000=Costs!$A724)*('Fixed assets'!$R$2:$R$1000))-SUMPRODUCT(('Fixed assets'!$Q$2:$Q$1000=Costs!AA$705)*('Fixed assets'!$U$2:$U$1000>Costs!$A724)*('Fixed assets'!$P$2:$P$1000=Costs!$A724)*('Fixed assets'!$S$2:$S$1000))","v":0},{"$f":"AB636+SUMPRODUCT(('Fixed assets'!$Q$2:$Q$1000=Costs!AB$705)*('Fixed assets'!$U$2:$U$1000>Costs!$A724)*('Fixed assets'!$P$2:$P$1000=Costs!$A724)*('Fixed assets'!$R$2:$R$1000))-SUMPRODUCT(('Fixed assets'!$Q$2:$Q$1000=Costs!AB$705)*('Fixed assets'!$U$2:$U$1000>Costs!$A724)*('Fixed assets'!$P$2:$P$1000=Costs!$A724)*('Fixed assets'!$S$2:$S$1000))","v":0},{"$f":"AC636+SUMPRODUCT(('Fixed assets'!$Q$2:$Q$1000=Costs!AC$705)*('Fixed assets'!$U$2:$U$1000>Costs!$A724)*('Fixed assets'!$P$2:$P$1000=Costs!$A724)*('Fixed assets'!$R$2:$R$1000))-SUMPRODUCT(('Fixed assets'!$Q$2:$Q$1000=Costs!AC$705)*('Fixed assets'!$U$2:$U$1000>Costs!$A724)*('Fixed assets'!$P$2:$P$1000=Costs!$A724)*('Fixed assets'!$S$2:$S$1000))","v":0},{"$f":"AD636+SUMPRODUCT(('Fixed assets'!$Q$2:$Q$1000=Costs!AD$705)*('Fixed assets'!$U$2:$U$1000>Costs!$A724)*('Fixed assets'!$P$2:$P$1000=Costs!$A724)*('Fixed assets'!$R$2:$R$1000))-SUMPRODUCT(('Fixed assets'!$Q$2:$Q$1000=Costs!AD$705)*('Fixed assets'!$U$2:$U$1000>Costs!$A724)*('Fixed assets'!$P$2:$P$1000=Costs!$A724)*('Fixed assets'!$S$2:$S$1000))","v":0},{"$f":"AE636+SUMPRODUCT(('Fixed assets'!$Q$2:$Q$1000=Costs!AE$705)*('Fixed assets'!$U$2:$U$1000>Costs!$A724)*('Fixed assets'!$P$2:$P$1000=Costs!$A724)*('Fixed assets'!$R$2:$R$1000))-SUMPRODUCT(('Fixed assets'!$Q$2:$Q$1000=Costs!AE$705)*('Fixed assets'!$U$2:$U$1000>Costs!$A724)*('Fixed assets'!$P$2:$P$1000=Costs!$A724)*('Fixed assets'!$S$2:$S$1000))","v":0},{"$f":"AF636+SUMPRODUCT(('Fixed assets'!$Q$2:$Q$1000=Costs!AF$705)*('Fixed assets'!$U$2:$U$1000>Costs!$A724)*('Fixed assets'!$P$2:$P$1000=Costs!$A724)*('Fixed assets'!$R$2:$R$1000))-SUMPRODUCT(('Fixed assets'!$Q$2:$Q$1000=Costs!AF$705)*('Fixed assets'!$U$2:$U$1000>Costs!$A724)*('Fixed assets'!$P$2:$P$1000=Costs!$A724)*('Fixed assets'!$S$2:$S$1000))","v":0},{"$f":"AG636+SUMPRODUCT(('Fixed assets'!$Q$2:$Q$1000=Costs!AG$705)*('Fixed assets'!$U$2:$U$1000>Costs!$A724)*('Fixed assets'!$P$2:$P$1000=Costs!$A724)*('Fixed assets'!$R$2:$R$1000))-SUMPRODUCT(('Fixed assets'!$Q$2:$Q$1000=Costs!AG$705)*('Fixed assets'!$U$2:$U$1000>Costs!$A724)*('Fixed assets'!$P$2:$P$1000=Costs!$A724)*('Fixed assets'!$S$2:$S$1000))","v":0},{"$f":"AH636+SUMPRODUCT(('Fixed assets'!$Q$2:$Q$1000=Costs!AH$705)*('Fixed assets'!$U$2:$U$1000>Costs!$A724)*('Fixed assets'!$P$2:$P$1000=Costs!$A724)*('Fixed assets'!$R$2:$R$1000))-SUMPRODUCT(('Fixed assets'!$Q$2:$Q$1000=Costs!AH$705)*('Fixed assets'!$U$2:$U$1000>Costs!$A724)*('Fixed assets'!$P$2:$P$1000=Costs!$A724)*('Fixed assets'!$S$2:$S$1000))","v":0},{"$f":"AI636+SUMPRODUCT(('Fixed assets'!$Q$2:$Q$1000=Costs!AI$705)*('Fixed assets'!$U$2:$U$1000>Costs!$A724)*('Fixed assets'!$P$2:$P$1000=Costs!$A724)*('Fixed assets'!$R$2:$R$1000))-SUMPRODUCT(('Fixed assets'!$Q$2:$Q$1000=Costs!AI$705)*('Fixed assets'!$U$2:$U$1000>Costs!$A724)*('Fixed assets'!$P$2:$P$1000=Costs!$A724)*('Fixed assets'!$S$2:$S$1000))","v":0},{"$f":"AJ636+SUMPRODUCT(('Fixed assets'!$Q$2:$Q$1000=Costs!AJ$705)*('Fixed assets'!$U$2:$U$1000>Costs!$A724)*('Fixed assets'!$P$2:$P$1000=Costs!$A724)*('Fixed assets'!$R$2:$R$1000))-SUMPRODUCT(('Fixed assets'!$Q$2:$Q$1000=Costs!AJ$705)*('Fixed assets'!$U$2:$U$1000>Costs!$A724)*('Fixed assets'!$P$2:$P$1000=Costs!$A724)*('Fixed assets'!$S$2:$S$1000))","v":0},{"$f":"AK636+SUMPRODUCT(('Fixed assets'!$Q$2:$Q$1000=Costs!AK$705)*('Fixed assets'!$U$2:$U$1000>Costs!$A724)*('Fixed assets'!$P$2:$P$1000=Costs!$A724)*('Fixed assets'!$R$2:$R$1000))-SUMPRODUCT(('Fixed assets'!$Q$2:$Q$1000=Costs!AK$705)*('Fixed assets'!$U$2:$U$1000>Costs!$A724)*('Fixed assets'!$P$2:$P$1000=Costs!$A724)*('Fixed assets'!$S$2:$S$1000))","v":0},{"$f":"AL636+SUMPRODUCT(('Fixed assets'!$Q$2:$Q$1000=Costs!AL$705)*('Fixed assets'!$U$2:$U$1000>Costs!$A724)*('Fixed assets'!$P$2:$P$1000=Costs!$A724)*('Fixed assets'!$R$2:$R$1000))-SUMPRODUCT(('Fixed assets'!$Q$2:$Q$1000=Costs!AL$705)*('Fixed assets'!$U$2:$U$1000>Costs!$A724)*('Fixed assets'!$P$2:$P$1000=Costs!$A724)*('Fixed assets'!$S$2:$S$1000))","v":0},{"$f":"AM636+SUMPRODUCT(('Fixed assets'!$Q$2:$Q$1000=Costs!AM$705)*('Fixed assets'!$U$2:$U$1000>Costs!$A724)*('Fixed assets'!$P$2:$P$1000=Costs!$A724)*('Fixed assets'!$R$2:$R$1000))-SUMPRODUCT(('Fixed assets'!$Q$2:$Q$1000=Costs!AM$705)*('Fixed assets'!$U$2:$U$1000>Costs!$A724)*('Fixed assets'!$P$2:$P$1000=Costs!$A724)*('Fixed assets'!$S$2:$S$1000))","v":0},{"$f":"AN636+SUMPRODUCT(('Fixed assets'!$Q$2:$Q$1000=Costs!AN$705)*('Fixed assets'!$U$2:$U$1000>Costs!$A724)*('Fixed assets'!$P$2:$P$1000=Costs!$A724)*('Fixed assets'!$R$2:$R$1000))-SUMPRODUCT(('Fixed assets'!$Q$2:$Q$1000=Costs!AN$705)*('Fixed assets'!$U$2:$U$1000>Costs!$A724)*('Fixed assets'!$P$2:$P$1000=Costs!$A724)*('Fixed assets'!$S$2:$S$1000))","v":0},{"$f":"AO636+SUMPRODUCT(('Fixed assets'!$Q$2:$Q$1000=Costs!AO$705)*('Fixed assets'!$U$2:$U$1000>Costs!$A724)*('Fixed assets'!$P$2:$P$1000=Costs!$A724)*('Fixed assets'!$R$2:$R$1000))-SUMPRODUCT(('Fixed assets'!$Q$2:$Q$1000=Costs!AO$705)*('Fixed assets'!$U$2:$U$1000>Costs!$A724)*('Fixed assets'!$P$2:$P$1000=Costs!$A724)*('Fixed assets'!$S$2:$S$1000))","v":0},{"$f":"AP636+SUMPRODUCT(('Fixed assets'!$Q$2:$Q$1000=Costs!AP$705)*('Fixed assets'!$U$2:$U$1000>Costs!$A724)*('Fixed assets'!$P$2:$P$1000=Costs!$A724)*('Fixed assets'!$R$2:$R$1000))-SUMPRODUCT(('Fixed assets'!$Q$2:$Q$1000=Costs!AP$705)*('Fixed assets'!$U$2:$U$1000>Costs!$A724)*('Fixed assets'!$P$2:$P$1000=Costs!$A724)*('Fixed assets'!$S$2:$S$1000))","v":0},{"$f":"AQ636+SUMPRODUCT(('Fixed assets'!$Q$2:$Q$1000=Costs!AQ$705)*('Fixed assets'!$U$2:$U$1000>Costs!$A724)*('Fixed assets'!$P$2:$P$1000=Costs!$A724)*('Fixed assets'!$R$2:$R$1000))-SUMPRODUCT(('Fixed assets'!$Q$2:$Q$1000=Costs!AQ$705)*('Fixed assets'!$U$2:$U$1000>Costs!$A724)*('Fixed assets'!$P$2:$P$1000=Costs!$A724)*('Fixed assets'!$S$2:$S$1000))","v":0}]
[2034,0,{"$f":"C637+SUMPRODUCT(('Fixed assets'!$Q$2:$Q$1000=Costs!C$705)*('Fixed assets'!$U$2:$U$1000>Costs!$A725)*('Fixed assets'!$P$2:$P$1000=Costs!$A725)*('Fixed assets'!$R$2:$R$1000))-SUMPRODUCT(('Fixed assets'!$Q$2:$Q$1000=Costs!C$705)*('Fixed assets'!$U$2:$U$1000>Costs!$A725)*('Fixed assets'!$P$2:$P$1000=Costs!$A725)*('Fixed assets'!$S$2:$S$1000))","v":0},{"$f":"D637+SUMPRODUCT(('Fixed assets'!$Q$2:$Q$1000=Costs!D$705)*('Fixed assets'!$U$2:$U$1000>Costs!$A725)*('Fixed assets'!$P$2:$P$1000=Costs!$A725)*('Fixed assets'!$R$2:$R$1000))-SUMPRODUCT(('Fixed assets'!$Q$2:$Q$1000=Costs!D$705)*('Fixed assets'!$U$2:$U$1000>Costs!$A725)*('Fixed assets'!$P$2:$P$1000=Costs!$A725)*('Fixed assets'!$S$2:$S$1000))","v":0},{"$f":"E637+SUMPRODUCT(('Fixed assets'!$Q$2:$Q$1000=Costs!E$705)*('Fixed assets'!$U$2:$U$1000>Costs!$A725)*('Fixed assets'!$P$2:$P$1000=Costs!$A725)*('Fixed assets'!$R$2:$R$1000))-SUMPRODUCT(('Fixed assets'!$Q$2:$Q$1000=Costs!E$705)*('Fixed assets'!$U$2:$U$1000>Costs!$A725)*('Fixed assets'!$P$2:$P$1000=Costs!$A725)*('Fixed assets'!$S$2:$S$1000))","v":0},{"$f":"F637+SUMPRODUCT(('Fixed assets'!$Q$2:$Q$1000=Costs!F$705)*('Fixed assets'!$U$2:$U$1000>Costs!$A725)*('Fixed assets'!$P$2:$P$1000=Costs!$A725)*('Fixed assets'!$R$2:$R$1000))-SUMPRODUCT(('Fixed assets'!$Q$2:$Q$1000=Costs!F$705)*('Fixed assets'!$U$2:$U$1000>Costs!$A725)*('Fixed assets'!$P$2:$P$1000=Costs!$A725)*('Fixed assets'!$S$2:$S$1000))","v":0},{"$f":"G637+SUMPRODUCT(('Fixed assets'!$Q$2:$Q$1000=Costs!G$705)*('Fixed assets'!$U$2:$U$1000>Costs!$A725)*('Fixed assets'!$P$2:$P$1000=Costs!$A725)*('Fixed assets'!$R$2:$R$1000))-SUMPRODUCT(('Fixed assets'!$Q$2:$Q$1000=Costs!G$705)*('Fixed assets'!$U$2:$U$1000>Costs!$A725)*('Fixed assets'!$P$2:$P$1000=Costs!$A725)*('Fixed assets'!$S$2:$S$1000))","v":0},{"$f":"H637+SUMPRODUCT(('Fixed assets'!$Q$2:$Q$1000=Costs!H$705)*('Fixed assets'!$U$2:$U$1000>Costs!$A725)*('Fixed assets'!$P$2:$P$1000=Costs!$A725)*('Fixed assets'!$R$2:$R$1000))-SUMPRODUCT(('Fixed assets'!$Q$2:$Q$1000=Costs!H$705)*('Fixed assets'!$U$2:$U$1000>Costs!$A725)*('Fixed assets'!$P$2:$P$1000=Costs!$A725)*('Fixed assets'!$S$2:$S$1000))","v":0},{"$f":"I637+SUMPRODUCT(('Fixed assets'!$Q$2:$Q$1000=Costs!I$705)*('Fixed assets'!$U$2:$U$1000>Costs!$A725)*('Fixed assets'!$P$2:$P$1000=Costs!$A725)*('Fixed assets'!$R$2:$R$1000))-SUMPRODUCT(('Fixed assets'!$Q$2:$Q$1000=Costs!I$705)*('Fixed assets'!$U$2:$U$1000>Costs!$A725)*('Fixed assets'!$P$2:$P$1000=Costs!$A725)*('Fixed assets'!$S$2:$S$1000))","v":0},{"$f":"J637+SUMPRODUCT(('Fixed assets'!$Q$2:$Q$1000=Costs!J$705)*('Fixed assets'!$U$2:$U$1000>Costs!$A725)*('Fixed assets'!$P$2:$P$1000=Costs!$A725)*('Fixed assets'!$R$2:$R$1000))-SUMPRODUCT(('Fixed assets'!$Q$2:$Q$1000=Costs!J$705)*('Fixed assets'!$U$2:$U$1000>Costs!$A725)*('Fixed assets'!$P$2:$P$1000=Costs!$A725)*('Fixed assets'!$S$2:$S$1000))","v":0},{"$f":"K637+SUMPRODUCT(('Fixed assets'!$Q$2:$Q$1000=Costs!K$705)*('Fixed assets'!$U$2:$U$1000>Costs!$A725)*('Fixed assets'!$P$2:$P$1000=Costs!$A725)*('Fixed assets'!$R$2:$R$1000))-SUMPRODUCT(('Fixed assets'!$Q$2:$Q$1000=Costs!K$705)*('Fixed assets'!$U$2:$U$1000>Costs!$A725)*('Fixed assets'!$P$2:$P$1000=Costs!$A725)*('Fixed assets'!$S$2:$S$1000))","v":0},{"$f":"L637+SUMPRODUCT(('Fixed assets'!$Q$2:$Q$1000=Costs!L$705)*('Fixed assets'!$U$2:$U$1000>Costs!$A725)*('Fixed assets'!$P$2:$P$1000=Costs!$A725)*('Fixed assets'!$R$2:$R$1000))-SUMPRODUCT(('Fixed assets'!$Q$2:$Q$1000=Costs!L$705)*('Fixed assets'!$U$2:$U$1000>Costs!$A725)*('Fixed assets'!$P$2:$P$1000=Costs!$A725)*('Fixed assets'!$S$2:$S$1000))","v":0},{"$f":"M637+SUMPRODUCT(('Fixed assets'!$Q$2:$Q$1000=Costs!M$705)*('Fixed assets'!$U$2:$U$1000>Costs!$A725)*('Fixed assets'!$P$2:$P$1000=Costs!$A725)*('Fixed assets'!$R$2:$R$1000))-SUMPRODUCT(('Fixed assets'!$Q$2:$Q$1000=Costs!M$705)*('Fixed assets'!$U$2:$U$1000>Costs!$A725)*('Fixed assets'!$P$2:$P$1000=Costs!$A725)*('Fixed assets'!$S$2:$S$1000))","v":0},{"$f":"N637+SUMPRODUCT(('Fixed assets'!$Q$2:$Q$1000=Costs!N$705)*('Fixed assets'!$U$2:$U$1000>Costs!$A725)*('Fixed assets'!$P$2:$P$1000=Costs!$A725)*('Fixed assets'!$R$2:$R$1000))-SUMPRODUCT(('Fixed assets'!$Q$2:$Q$1000=Costs!N$705)*('Fixed assets'!$U$2:$U$1000>Costs!$A725)*('Fixed assets'!$P$2:$P$1000=Costs!$A725)*('Fixed assets'!$S$2:$S$1000))","v":0},{"$f":"O637+SUMPRODUCT(('Fixed assets'!$Q$2:$Q$1000=Costs!O$705)*('Fixed assets'!$U$2:$U$1000>Costs!$A725)*('Fixed assets'!$P$2:$P$1000=Costs!$A725)*('Fixed assets'!$R$2:$R$1000))-SUMPRODUCT(('Fixed assets'!$Q$2:$Q$1000=Costs!O$705)*('Fixed assets'!$U$2:$U$1000>Costs!$A725)*('Fixed assets'!$P$2:$P$1000=Costs!$A725)*('Fixed assets'!$S$2:$S$1000))","v":0},{"$f":"P637+SUMPRODUCT(('Fixed assets'!$Q$2:$Q$1000=Costs!P$705)*('Fixed assets'!$U$2:$U$1000>Costs!$A725)*('Fixed assets'!$P$2:$P$1000=Costs!$A725)*('Fixed assets'!$R$2:$R$1000))-SUMPRODUCT(('Fixed assets'!$Q$2:$Q$1000=Costs!P$705)*('Fixed assets'!$U$2:$U$1000>Costs!$A725)*('Fixed assets'!$P$2:$P$1000=Costs!$A725)*('Fixed assets'!$S$2:$S$1000))","v":0},{"$f":"Q637+SUMPRODUCT(('Fixed assets'!$Q$2:$Q$1000=Costs!Q$705)*('Fixed assets'!$U$2:$U$1000>Costs!$A725)*('Fixed assets'!$P$2:$P$1000=Costs!$A725)*('Fixed assets'!$R$2:$R$1000))-SUMPRODUCT(('Fixed assets'!$Q$2:$Q$1000=Costs!Q$705)*('Fixed assets'!$U$2:$U$1000>Costs!$A725)*('Fixed assets'!$P$2:$P$1000=Costs!$A725)*('Fixed assets'!$S$2:$S$1000))","v":0},{"$f":"R637+SUMPRODUCT(('Fixed assets'!$Q$2:$Q$1000=Costs!R$705)*('Fixed assets'!$U$2:$U$1000>Costs!$A725)*('Fixed assets'!$P$2:$P$1000=Costs!$A725)*('Fixed assets'!$R$2:$R$1000))-SUMPRODUCT(('Fixed assets'!$Q$2:$Q$1000=Costs!R$705)*('Fixed assets'!$U$2:$U$1000>Costs!$A725)*('Fixed assets'!$P$2:$P$1000=Costs!$A725)*('Fixed assets'!$S$2:$S$1000))","v":0},{"$f":"S637+SUMPRODUCT(('Fixed assets'!$Q$2:$Q$1000=Costs!S$705)*('Fixed assets'!$U$2:$U$1000>Costs!$A725)*('Fixed assets'!$P$2:$P$1000=Costs!$A725)*('Fixed assets'!$R$2:$R$1000))-SUMPRODUCT(('Fixed assets'!$Q$2:$Q$1000=Costs!S$705)*('Fixed assets'!$U$2:$U$1000>Costs!$A725)*('Fixed assets'!$P$2:$P$1000=Costs!$A725)*('Fixed assets'!$S$2:$S$1000))","v":0},{"$f":"T637+SUMPRODUCT(('Fixed assets'!$Q$2:$Q$1000=Costs!T$705)*('Fixed assets'!$U$2:$U$1000>Costs!$A725)*('Fixed assets'!$P$2:$P$1000=Costs!$A725)*('Fixed assets'!$R$2:$R$1000))-SUMPRODUCT(('Fixed assets'!$Q$2:$Q$1000=Costs!T$705)*('Fixed assets'!$U$2:$U$1000>Costs!$A725)*('Fixed assets'!$P$2:$P$1000=Costs!$A725)*('Fixed assets'!$S$2:$S$1000))","v":0},{"$f":"U637+SUMPRODUCT(('Fixed assets'!$Q$2:$Q$1000=Costs!U$705)*('Fixed assets'!$U$2:$U$1000>Costs!$A725)*('Fixed assets'!$P$2:$P$1000=Costs!$A725)*('Fixed assets'!$R$2:$R$1000))-SUMPRODUCT(('Fixed assets'!$Q$2:$Q$1000=Costs!U$705)*('Fixed assets'!$U$2:$U$1000>Costs!$A725)*('Fixed assets'!$P$2:$P$1000=Costs!$A725)*('Fixed assets'!$S$2:$S$1000))","v":0},{"$f":"V637+SUMPRODUCT(('Fixed assets'!$Q$2:$Q$1000=Costs!V$705)*('Fixed assets'!$U$2:$U$1000>Costs!$A725)*('Fixed assets'!$P$2:$P$1000=Costs!$A725)*('Fixed assets'!$R$2:$R$1000))-SUMPRODUCT(('Fixed assets'!$Q$2:$Q$1000=Costs!V$705)*('Fixed assets'!$U$2:$U$1000>Costs!$A725)*('Fixed assets'!$P$2:$P$1000=Costs!$A725)*('Fixed assets'!$S$2:$S$1000))","v":0},{"$f":"W637+SUMPRODUCT(('Fixed assets'!$Q$2:$Q$1000=Costs!W$705)*('Fixed assets'!$U$2:$U$1000>Costs!$A725)*('Fixed assets'!$P$2:$P$1000=Costs!$A725)*('Fixed assets'!$R$2:$R$1000))-SUMPRODUCT(('Fixed assets'!$Q$2:$Q$1000=Costs!W$705)*('Fixed assets'!$U$2:$U$1000>Costs!$A725)*('Fixed assets'!$P$2:$P$1000=Costs!$A725)*('Fixed assets'!$S$2:$S$1000))","v":0},{"$f":"X637+SUMPRODUCT(('Fixed assets'!$Q$2:$Q$1000=Costs!X$705)*('Fixed assets'!$U$2:$U$1000>Costs!$A725)*('Fixed assets'!$P$2:$P$1000=Costs!$A725)*('Fixed assets'!$R$2:$R$1000))-SUMPRODUCT(('Fixed assets'!$Q$2:$Q$1000=Costs!X$705)*('Fixed assets'!$U$2:$U$1000>Costs!$A725)*('Fixed assets'!$P$2:$P$1000=Costs!$A725)*('Fixed assets'!$S$2:$S$1000))","v":0},{"$f":"Y637+SUMPRODUCT(('Fixed assets'!$Q$2:$Q$1000=Costs!Y$705)*('Fixed assets'!$U$2:$U$1000>Costs!$A725)*('Fixed assets'!$P$2:$P$1000=Costs!$A725)*('Fixed assets'!$R$2:$R$1000))-SUMPRODUCT(('Fixed assets'!$Q$2:$Q$1000=Costs!Y$705)*('Fixed assets'!$U$2:$U$1000>Costs!$A725)*('Fixed assets'!$P$2:$P$1000=Costs!$A725)*('Fixed assets'!$S$2:$S$1000))","v":0},{"$f":"Z637+SUMPRODUCT(('Fixed assets'!$Q$2:$Q$1000=Costs!Z$705)*('Fixed assets'!$U$2:$U$1000>Costs!$A725)*('Fixed assets'!$P$2:$P$1000=Costs!$A725)*('Fixed assets'!$R$2:$R$1000))-SUMPRODUCT(('Fixed assets'!$Q$2:$Q$1000=Costs!Z$705)*('Fixed assets'!$U$2:$U$1000>Costs!$A725)*('Fixed assets'!$P$2:$P$1000=Costs!$A725)*('Fixed assets'!$S$2:$S$1000))","v":0},{"$f":"AA637+SUMPRODUCT(('Fixed assets'!$Q$2:$Q$1000=Costs!AA$705)*('Fixed assets'!$U$2:$U$1000>Costs!$A725)*('Fixed assets'!$P$2:$P$1000=Costs!$A725)*('Fixed assets'!$R$2:$R$1000))-SUMPRODUCT(('Fixed assets'!$Q$2:$Q$1000=Costs!AA$705)*('Fixed assets'!$U$2:$U$1000>Costs!$A725)*('Fixed assets'!$P$2:$P$1000=Costs!$A725)*('Fixed assets'!$S$2:$S$1000))","v":0},{"$f":"AB637+SUMPRODUCT(('Fixed assets'!$Q$2:$Q$1000=Costs!AB$705)*('Fixed assets'!$U$2:$U$1000>Costs!$A725)*('Fixed assets'!$P$2:$P$1000=Costs!$A725)*('Fixed assets'!$R$2:$R$1000))-SUMPRODUCT(('Fixed assets'!$Q$2:$Q$1000=Costs!AB$705)*('Fixed assets'!$U$2:$U$1000>Costs!$A725)*('Fixed assets'!$P$2:$P$1000=Costs!$A725)*('Fixed assets'!$S$2:$S$1000))","v":0},{"$f":"AC637+SUMPRODUCT(('Fixed assets'!$Q$2:$Q$1000=Costs!AC$705)*('Fixed assets'!$U$2:$U$1000>Costs!$A725)*('Fixed assets'!$P$2:$P$1000=Costs!$A725)*('Fixed assets'!$R$2:$R$1000))-SUMPRODUCT(('Fixed assets'!$Q$2:$Q$1000=Costs!AC$705)*('Fixed assets'!$U$2:$U$1000>Costs!$A725)*('Fixed assets'!$P$2:$P$1000=Costs!$A725)*('Fixed assets'!$S$2:$S$1000))","v":0},{"$f":"AD637+SUMPRODUCT(('Fixed assets'!$Q$2:$Q$1000=Costs!AD$705)*('Fixed assets'!$U$2:$U$1000>Costs!$A725)*('Fixed assets'!$P$2:$P$1000=Costs!$A725)*('Fixed assets'!$R$2:$R$1000))-SUMPRODUCT(('Fixed assets'!$Q$2:$Q$1000=Costs!AD$705)*('Fixed assets'!$U$2:$U$1000>Costs!$A725)*('Fixed assets'!$P$2:$P$1000=Costs!$A725)*('Fixed assets'!$S$2:$S$1000))","v":0},{"$f":"AE637+SUMPRODUCT(('Fixed assets'!$Q$2:$Q$1000=Costs!AE$705)*('Fixed assets'!$U$2:$U$1000>Costs!$A725)*('Fixed assets'!$P$2:$P$1000=Costs!$A725)*('Fixed assets'!$R$2:$R$1000))-SUMPRODUCT(('Fixed assets'!$Q$2:$Q$1000=Costs!AE$705)*('Fixed assets'!$U$2:$U$1000>Costs!$A725)*('Fixed assets'!$P$2:$P$1000=Costs!$A725)*('Fixed assets'!$S$2:$S$1000))","v":0},{"$f":"AF637+SUMPRODUCT(('Fixed assets'!$Q$2:$Q$1000=Costs!AF$705)*('Fixed assets'!$U$2:$U$1000>Costs!$A725)*('Fixed assets'!$P$2:$P$1000=Costs!$A725)*('Fixed assets'!$R$2:$R$1000))-SUMPRODUCT(('Fixed assets'!$Q$2:$Q$1000=Costs!AF$705)*('Fixed assets'!$U$2:$U$1000>Costs!$A725)*('Fixed assets'!$P$2:$P$1000=Costs!$A725)*('Fixed assets'!$S$2:$S$1000))","v":0},{"$f":"AG637+SUMPRODUCT(('Fixed assets'!$Q$2:$Q$1000=Costs!AG$705)*('Fixed assets'!$U$2:$U$1000>Costs!$A725)*('Fixed assets'!$P$2:$P$1000=Costs!$A725)*('Fixed assets'!$R$2:$R$1000))-SUMPRODUCT(('Fixed assets'!$Q$2:$Q$1000=Costs!AG$705)*('Fixed assets'!$U$2:$U$1000>Costs!$A725)*('Fixed assets'!$P$2:$P$1000=Costs!$A725)*('Fixed assets'!$S$2:$S$1000))","v":0},{"$f":"AH637+SUMPRODUCT(('Fixed assets'!$Q$2:$Q$1000=Costs!AH$705)*('Fixed assets'!$U$2:$U$1000>Costs!$A725)*('Fixed assets'!$P$2:$P$1000=Costs!$A725)*('Fixed assets'!$R$2:$R$1000))-SUMPRODUCT(('Fixed assets'!$Q$2:$Q$1000=Costs!AH$705)*('Fixed assets'!$U$2:$U$1000>Costs!$A725)*('Fixed assets'!$P$2:$P$1000=Costs!$A725)*('Fixed assets'!$S$2:$S$1000))","v":0},{"$f":"AI637+SUMPRODUCT(('Fixed assets'!$Q$2:$Q$1000=Costs!AI$705)*('Fixed assets'!$U$2:$U$1000>Costs!$A725)*('Fixed assets'!$P$2:$P$1000=Costs!$A725)*('Fixed assets'!$R$2:$R$1000))-SUMPRODUCT(('Fixed assets'!$Q$2:$Q$1000=Costs!AI$705)*('Fixed assets'!$U$2:$U$1000>Costs!$A725)*('Fixed assets'!$P$2:$P$1000=Costs!$A725)*('Fixed assets'!$S$2:$S$1000))","v":0},{"$f":"AJ637+SUMPRODUCT(('Fixed assets'!$Q$2:$Q$1000=Costs!AJ$705)*('Fixed assets'!$U$2:$U$1000>Costs!$A725)*('Fixed assets'!$P$2:$P$1000=Costs!$A725)*('Fixed assets'!$R$2:$R$1000))-SUMPRODUCT(('Fixed assets'!$Q$2:$Q$1000=Costs!AJ$705)*('Fixed assets'!$U$2:$U$1000>Costs!$A725)*('Fixed assets'!$P$2:$P$1000=Costs!$A725)*('Fixed assets'!$S$2:$S$1000))","v":0},{"$f":"AK637+SUMPRODUCT(('Fixed assets'!$Q$2:$Q$1000=Costs!AK$705)*('Fixed assets'!$U$2:$U$1000>Costs!$A725)*('Fixed assets'!$P$2:$P$1000=Costs!$A725)*('Fixed assets'!$R$2:$R$1000))-SUMPRODUCT(('Fixed assets'!$Q$2:$Q$1000=Costs!AK$705)*('Fixed assets'!$U$2:$U$1000>Costs!$A725)*('Fixed assets'!$P$2:$P$1000=Costs!$A725)*('Fixed assets'!$S$2:$S$1000))","v":0},{"$f":"AL637+SUMPRODUCT(('Fixed assets'!$Q$2:$Q$1000=Costs!AL$705)*('Fixed assets'!$U$2:$U$1000>Costs!$A725)*('Fixed assets'!$P$2:$P$1000=Costs!$A725)*('Fixed assets'!$R$2:$R$1000))-SUMPRODUCT(('Fixed assets'!$Q$2:$Q$1000=Costs!AL$705)*('Fixed assets'!$U$2:$U$1000>Costs!$A725)*('Fixed assets'!$P$2:$P$1000=Costs!$A725)*('Fixed assets'!$S$2:$S$1000))","v":0},{"$f":"AM637+SUMPRODUCT(('Fixed assets'!$Q$2:$Q$1000=Costs!AM$705)*('Fixed assets'!$U$2:$U$1000>Costs!$A725)*('Fixed assets'!$P$2:$P$1000=Costs!$A725)*('Fixed assets'!$R$2:$R$1000))-SUMPRODUCT(('Fixed assets'!$Q$2:$Q$1000=Costs!AM$705)*('Fixed assets'!$U$2:$U$1000>Costs!$A725)*('Fixed assets'!$P$2:$P$1000=Costs!$A725)*('Fixed assets'!$S$2:$S$1000))","v":0},{"$f":"AN637+SUMPRODUCT(('Fixed assets'!$Q$2:$Q$1000=Costs!AN$705)*('Fixed assets'!$U$2:$U$1000>Costs!$A725)*('Fixed assets'!$P$2:$P$1000=Costs!$A725)*('Fixed assets'!$R$2:$R$1000))-SUMPRODUCT(('Fixed assets'!$Q$2:$Q$1000=Costs!AN$705)*('Fixed assets'!$U$2:$U$1000>Costs!$A725)*('Fixed assets'!$P$2:$P$1000=Costs!$A725)*('Fixed assets'!$S$2:$S$1000))","v":0},{"$f":"AO637+SUMPRODUCT(('Fixed assets'!$Q$2:$Q$1000=Costs!AO$705)*('Fixed assets'!$U$2:$U$1000>Costs!$A725)*('Fixed assets'!$P$2:$P$1000=Costs!$A725)*('Fixed assets'!$R$2:$R$1000))-SUMPRODUCT(('Fixed assets'!$Q$2:$Q$1000=Costs!AO$705)*('Fixed assets'!$U$2:$U$1000>Costs!$A725)*('Fixed assets'!$P$2:$P$1000=Costs!$A725)*('Fixed assets'!$S$2:$S$1000))","v":0},{"$f":"AP637+SUMPRODUCT(('Fixed assets'!$Q$2:$Q$1000=Costs!AP$705)*('Fixed assets'!$U$2:$U$1000>Costs!$A725)*('Fixed assets'!$P$2:$P$1000=Costs!$A725)*('Fixed assets'!$R$2:$R$1000))-SUMPRODUCT(('Fixed assets'!$Q$2:$Q$1000=Costs!AP$705)*('Fixed assets'!$U$2:$U$1000>Costs!$A725)*('Fixed assets'!$P$2:$P$1000=Costs!$A725)*('Fixed assets'!$S$2:$S$1000))","v":0},{"$f":"AQ637+SUMPRODUCT(('Fixed assets'!$Q$2:$Q$1000=Costs!AQ$705)*('Fixed assets'!$U$2:$U$1000>Costs!$A725)*('Fixed assets'!$P$2:$P$1000=Costs!$A725)*('Fixed assets'!$R$2:$R$1000))-SUMPRODUCT(('Fixed assets'!$Q$2:$Q$1000=Costs!AQ$705)*('Fixed assets'!$U$2:$U$1000>Costs!$A725)*('Fixed assets'!$P$2:$P$1000=Costs!$A725)*('Fixed assets'!$S$2:$S$1000))","v":0}]
[2035,0,{"$f":"C638+SUMPRODUCT(('Fixed assets'!$Q$2:$Q$1000=Costs!C$705)*('Fixed assets'!$U$2:$U$1000>Costs!$A726)*('Fixed assets'!$P$2:$P$1000=Costs!$A726)*('Fixed assets'!$R$2:$R$1000))-SUMPRODUCT(('Fixed assets'!$Q$2:$Q$1000=Costs!C$705)*('Fixed assets'!$U$2:$U$1000>Costs!$A726)*('Fixed assets'!$P$2:$P$1000=Costs!$A726)*('Fixed assets'!$S$2:$S$1000))","v":0},{"$f":"D638+SUMPRODUCT(('Fixed assets'!$Q$2:$Q$1000=Costs!D$705)*('Fixed assets'!$U$2:$U$1000>Costs!$A726)*('Fixed assets'!$P$2:$P$1000=Costs!$A726)*('Fixed assets'!$R$2:$R$1000))-SUMPRODUCT(('Fixed assets'!$Q$2:$Q$1000=Costs!D$705)*('Fixed assets'!$U$2:$U$1000>Costs!$A726)*('Fixed assets'!$P$2:$P$1000=Costs!$A726)*('Fixed assets'!$S$2:$S$1000))","v":0},{"$f":"E638+SUMPRODUCT(('Fixed assets'!$Q$2:$Q$1000=Costs!E$705)*('Fixed assets'!$U$2:$U$1000>Costs!$A726)*('Fixed assets'!$P$2:$P$1000=Costs!$A726)*('Fixed assets'!$R$2:$R$1000))-SUMPRODUCT(('Fixed assets'!$Q$2:$Q$1000=Costs!E$705)*('Fixed assets'!$U$2:$U$1000>Costs!$A726)*('Fixed assets'!$P$2:$P$1000=Costs!$A726)*('Fixed assets'!$S$2:$S$1000))","v":0},{"$f":"F638+SUMPRODUCT(('Fixed assets'!$Q$2:$Q$1000=Costs!F$705)*('Fixed assets'!$U$2:$U$1000>Costs!$A726)*('Fixed assets'!$P$2:$P$1000=Costs!$A726)*('Fixed assets'!$R$2:$R$1000))-SUMPRODUCT(('Fixed assets'!$Q$2:$Q$1000=Costs!F$705)*('Fixed assets'!$U$2:$U$1000>Costs!$A726)*('Fixed assets'!$P$2:$P$1000=Costs!$A726)*('Fixed assets'!$S$2:$S$1000))","v":0},{"$f":"G638+SUMPRODUCT(('Fixed assets'!$Q$2:$Q$1000=Costs!G$705)*('Fixed assets'!$U$2:$U$1000>Costs!$A726)*('Fixed assets'!$P$2:$P$1000=Costs!$A726)*('Fixed assets'!$R$2:$R$1000))-SUMPRODUCT(('Fixed assets'!$Q$2:$Q$1000=Costs!G$705)*('Fixed assets'!$U$2:$U$1000>Costs!$A726)*('Fixed assets'!$P$2:$P$1000=Costs!$A726)*('Fixed assets'!$S$2:$S$1000))","v":0},{"$f":"H638+SUMPRODUCT(('Fixed assets'!$Q$2:$Q$1000=Costs!H$705)*('Fixed assets'!$U$2:$U$1000>Costs!$A726)*('Fixed assets'!$P$2:$P$1000=Costs!$A726)*('Fixed assets'!$R$2:$R$1000))-SUMPRODUCT(('Fixed assets'!$Q$2:$Q$1000=Costs!H$705)*('Fixed assets'!$U$2:$U$1000>Costs!$A726)*('Fixed assets'!$P$2:$P$1000=Costs!$A726)*('Fixed assets'!$S$2:$S$1000))","v":0},{"$f":"I638+SUMPRODUCT(('Fixed assets'!$Q$2:$Q$1000=Costs!I$705)*('Fixed assets'!$U$2:$U$1000>Costs!$A726)*('Fixed assets'!$P$2:$P$1000=Costs!$A726)*('Fixed assets'!$R$2:$R$1000))-SUMPRODUCT(('Fixed assets'!$Q$2:$Q$1000=Costs!I$705)*('Fixed assets'!$U$2:$U$1000>Costs!$A726)*('Fixed assets'!$P$2:$P$1000=Costs!$A726)*('Fixed assets'!$S$2:$S$1000))","v":0},{"$f":"J638+SUMPRODUCT(('Fixed assets'!$Q$2:$Q$1000=Costs!J$705)*('Fixed assets'!$U$2:$U$1000>Costs!$A726)*('Fixed assets'!$P$2:$P$1000=Costs!$A726)*('Fixed assets'!$R$2:$R$1000))-SUMPRODUCT(('Fixed assets'!$Q$2:$Q$1000=Costs!J$705)*('Fixed assets'!$U$2:$U$1000>Costs!$A726)*('Fixed assets'!$P$2:$P$1000=Costs!$A726)*('Fixed assets'!$S$2:$S$1000))","v":0},{"$f":"K638+SUMPRODUCT(('Fixed assets'!$Q$2:$Q$1000=Costs!K$705)*('Fixed assets'!$U$2:$U$1000>Costs!$A726)*('Fixed assets'!$P$2:$P$1000=Costs!$A726)*('Fixed assets'!$R$2:$R$1000))-SUMPRODUCT(('Fixed assets'!$Q$2:$Q$1000=Costs!K$705)*('Fixed assets'!$U$2:$U$1000>Costs!$A726)*('Fixed assets'!$P$2:$P$1000=Costs!$A726)*('Fixed assets'!$S$2:$S$1000))","v":0},{"$f":"L638+SUMPRODUCT(('Fixed assets'!$Q$2:$Q$1000=Costs!L$705)*('Fixed assets'!$U$2:$U$1000>Costs!$A726)*('Fixed assets'!$P$2:$P$1000=Costs!$A726)*('Fixed assets'!$R$2:$R$1000))-SUMPRODUCT(('Fixed assets'!$Q$2:$Q$1000=Costs!L$705)*('Fixed assets'!$U$2:$U$1000>Costs!$A726)*('Fixed assets'!$P$2:$P$1000=Costs!$A726)*('Fixed assets'!$S$2:$S$1000))","v":0},{"$f":"M638+SUMPRODUCT(('Fixed assets'!$Q$2:$Q$1000=Costs!M$705)*('Fixed assets'!$U$2:$U$1000>Costs!$A726)*('Fixed assets'!$P$2:$P$1000=Costs!$A726)*('Fixed assets'!$R$2:$R$1000))-SUMPRODUCT(('Fixed assets'!$Q$2:$Q$1000=Costs!M$705)*('Fixed assets'!$U$2:$U$1000>Costs!$A726)*('Fixed assets'!$P$2:$P$1000=Costs!$A726)*('Fixed assets'!$S$2:$S$1000))","v":0},{"$f":"N638+SUMPRODUCT(('Fixed assets'!$Q$2:$Q$1000=Costs!N$705)*('Fixed assets'!$U$2:$U$1000>Costs!$A726)*('Fixed assets'!$P$2:$P$1000=Costs!$A726)*('Fixed assets'!$R$2:$R$1000))-SUMPRODUCT(('Fixed assets'!$Q$2:$Q$1000=Costs!N$705)*('Fixed assets'!$U$2:$U$1000>Costs!$A726)*('Fixed assets'!$P$2:$P$1000=Costs!$A726)*('Fixed assets'!$S$2:$S$1000))","v":0},{"$f":"O638+SUMPRODUCT(('Fixed assets'!$Q$2:$Q$1000=Costs!O$705)*('Fixed assets'!$U$2:$U$1000>Costs!$A726)*('Fixed assets'!$P$2:$P$1000=Costs!$A726)*('Fixed assets'!$R$2:$R$1000))-SUMPRODUCT(('Fixed assets'!$Q$2:$Q$1000=Costs!O$705)*('Fixed assets'!$U$2:$U$1000>Costs!$A726)*('Fixed assets'!$P$2:$P$1000=Costs!$A726)*('Fixed assets'!$S$2:$S$1000))","v":0},{"$f":"P638+SUMPRODUCT(('Fixed assets'!$Q$2:$Q$1000=Costs!P$705)*('Fixed assets'!$U$2:$U$1000>Costs!$A726)*('Fixed assets'!$P$2:$P$1000=Costs!$A726)*('Fixed assets'!$R$2:$R$1000))-SUMPRODUCT(('Fixed assets'!$Q$2:$Q$1000=Costs!P$705)*('Fixed assets'!$U$2:$U$1000>Costs!$A726)*('Fixed assets'!$P$2:$P$1000=Costs!$A726)*('Fixed assets'!$S$2:$S$1000))","v":0},{"$f":"Q638+SUMPRODUCT(('Fixed assets'!$Q$2:$Q$1000=Costs!Q$705)*('Fixed assets'!$U$2:$U$1000>Costs!$A726)*('Fixed assets'!$P$2:$P$1000=Costs!$A726)*('Fixed assets'!$R$2:$R$1000))-SUMPRODUCT(('Fixed assets'!$Q$2:$Q$1000=Costs!Q$705)*('Fixed assets'!$U$2:$U$1000>Costs!$A726)*('Fixed assets'!$P$2:$P$1000=Costs!$A726)*('Fixed assets'!$S$2:$S$1000))","v":0},{"$f":"R638+SUMPRODUCT(('Fixed assets'!$Q$2:$Q$1000=Costs!R$705)*('Fixed assets'!$U$2:$U$1000>Costs!$A726)*('Fixed assets'!$P$2:$P$1000=Costs!$A726)*('Fixed assets'!$R$2:$R$1000))-SUMPRODUCT(('Fixed assets'!$Q$2:$Q$1000=Costs!R$705)*('Fixed assets'!$U$2:$U$1000>Costs!$A726)*('Fixed assets'!$P$2:$P$1000=Costs!$A726)*('Fixed assets'!$S$2:$S$1000))","v":0},{"$f":"S638+SUMPRODUCT(('Fixed assets'!$Q$2:$Q$1000=Costs!S$705)*('Fixed assets'!$U$2:$U$1000>Costs!$A726)*('Fixed assets'!$P$2:$P$1000=Costs!$A726)*('Fixed assets'!$R$2:$R$1000))-SUMPRODUCT(('Fixed assets'!$Q$2:$Q$1000=Costs!S$705)*('Fixed assets'!$U$2:$U$1000>Costs!$A726)*('Fixed assets'!$P$2:$P$1000=Costs!$A726)*('Fixed assets'!$S$2:$S$1000))","v":0},{"$f":"T638+SUMPRODUCT(('Fixed assets'!$Q$2:$Q$1000=Costs!T$705)*('Fixed assets'!$U$2:$U$1000>Costs!$A726)*('Fixed assets'!$P$2:$P$1000=Costs!$A726)*('Fixed assets'!$R$2:$R$1000))-SUMPRODUCT(('Fixed assets'!$Q$2:$Q$1000=Costs!T$705)*('Fixed assets'!$U$2:$U$1000>Costs!$A726)*('Fixed assets'!$P$2:$P$1000=Costs!$A726)*('Fixed assets'!$S$2:$S$1000))","v":0},{"$f":"U638+SUMPRODUCT(('Fixed assets'!$Q$2:$Q$1000=Costs!U$705)*('Fixed assets'!$U$2:$U$1000>Costs!$A726)*('Fixed assets'!$P$2:$P$1000=Costs!$A726)*('Fixed assets'!$R$2:$R$1000))-SUMPRODUCT(('Fixed assets'!$Q$2:$Q$1000=Costs!U$705)*('Fixed assets'!$U$2:$U$1000>Costs!$A726)*('Fixed assets'!$P$2:$P$1000=Costs!$A726)*('Fixed assets'!$S$2:$S$1000))","v":0},{"$f":"V638+SUMPRODUCT(('Fixed assets'!$Q$2:$Q$1000=Costs!V$705)*('Fixed assets'!$U$2:$U$1000>Costs!$A726)*('Fixed assets'!$P$2:$P$1000=Costs!$A726)*('Fixed assets'!$R$2:$R$1000))-SUMPRODUCT(('Fixed assets'!$Q$2:$Q$1000=Costs!V$705)*('Fixed assets'!$U$2:$U$1000>Costs!$A726)*('Fixed assets'!$P$2:$P$1000=Costs!$A726)*('Fixed assets'!$S$2:$S$1000))","v":0},{"$f":"W638+SUMPRODUCT(('Fixed assets'!$Q$2:$Q$1000=Costs!W$705)*('Fixed assets'!$U$2:$U$1000>Costs!$A726)*('Fixed assets'!$P$2:$P$1000=Costs!$A726)*('Fixed assets'!$R$2:$R$1000))-SUMPRODUCT(('Fixed assets'!$Q$2:$Q$1000=Costs!W$705)*('Fixed assets'!$U$2:$U$1000>Costs!$A726)*('Fixed assets'!$P$2:$P$1000=Costs!$A726)*('Fixed assets'!$S$2:$S$1000))","v":0},{"$f":"X638+SUMPRODUCT(('Fixed assets'!$Q$2:$Q$1000=Costs!X$705)*('Fixed assets'!$U$2:$U$1000>Costs!$A726)*('Fixed assets'!$P$2:$P$1000=Costs!$A726)*('Fixed assets'!$R$2:$R$1000))-SUMPRODUCT(('Fixed assets'!$Q$2:$Q$1000=Costs!X$705)*('Fixed assets'!$U$2:$U$1000>Costs!$A726)*('Fixed assets'!$P$2:$P$1000=Costs!$A726)*('Fixed assets'!$S$2:$S$1000))","v":0},{"$f":"Y638+SUMPRODUCT(('Fixed assets'!$Q$2:$Q$1000=Costs!Y$705)*('Fixed assets'!$U$2:$U$1000>Costs!$A726)*('Fixed assets'!$P$2:$P$1000=Costs!$A726)*('Fixed assets'!$R$2:$R$1000))-SUMPRODUCT(('Fixed assets'!$Q$2:$Q$1000=Costs!Y$705)*('Fixed assets'!$U$2:$U$1000>Costs!$A726)*('Fixed assets'!$P$2:$P$1000=Costs!$A726)*('Fixed assets'!$S$2:$S$1000))","v":0},{"$f":"Z638+SUMPRODUCT(('Fixed assets'!$Q$2:$Q$1000=Costs!Z$705)*('Fixed assets'!$U$2:$U$1000>Costs!$A726)*('Fixed assets'!$P$2:$P$1000=Costs!$A726)*('Fixed assets'!$R$2:$R$1000))-SUMPRODUCT(('Fixed assets'!$Q$2:$Q$1000=Costs!Z$705)*('Fixed assets'!$U$2:$U$1000>Costs!$A726)*('Fixed assets'!$P$2:$P$1000=Costs!$A726)*('Fixed assets'!$S$2:$S$1000))","v":0},{"$f":"AA638+SUMPRODUCT(('Fixed assets'!$Q$2:$Q$1000=Costs!AA$705)*('Fixed assets'!$U$2:$U$1000>Costs!$A726)*('Fixed assets'!$P$2:$P$1000=Costs!$A726)*('Fixed assets'!$R$2:$R$1000))-SUMPRODUCT(('Fixed assets'!$Q$2:$Q$1000=Costs!AA$705)*('Fixed assets'!$U$2:$U$1000>Costs!$A726)*('Fixed assets'!$P$2:$P$1000=Costs!$A726)*('Fixed assets'!$S$2:$S$1000))","v":0},{"$f":"AB638+SUMPRODUCT(('Fixed assets'!$Q$2:$Q$1000=Costs!AB$705)*('Fixed assets'!$U$2:$U$1000>Costs!$A726)*('Fixed assets'!$P$2:$P$1000=Costs!$A726)*('Fixed assets'!$R$2:$R$1000))-SUMPRODUCT(('Fixed assets'!$Q$2:$Q$1000=Costs!AB$705)*('Fixed assets'!$U$2:$U$1000>Costs!$A726)*('Fixed assets'!$P$2:$P$1000=Costs!$A726)*('Fixed assets'!$S$2:$S$1000))","v":0},{"$f":"AC638+SUMPRODUCT(('Fixed assets'!$Q$2:$Q$1000=Costs!AC$705)*('Fixed assets'!$U$2:$U$1000>Costs!$A726)*('Fixed assets'!$P$2:$P$1000=Costs!$A726)*('Fixed assets'!$R$2:$R$1000))-SUMPRODUCT(('Fixed assets'!$Q$2:$Q$1000=Costs!AC$705)*('Fixed assets'!$U$2:$U$1000>Costs!$A726)*('Fixed assets'!$P$2:$P$1000=Costs!$A726)*('Fixed assets'!$S$2:$S$1000))","v":0},{"$f":"AD638+SUMPRODUCT(('Fixed assets'!$Q$2:$Q$1000=Costs!AD$705)*('Fixed assets'!$U$2:$U$1000>Costs!$A726)*('Fixed assets'!$P$2:$P$1000=Costs!$A726)*('Fixed assets'!$R$2:$R$1000))-SUMPRODUCT(('Fixed assets'!$Q$2:$Q$1000=Costs!AD$705)*('Fixed assets'!$U$2:$U$1000>Costs!$A726)*('Fixed assets'!$P$2:$P$1000=Costs!$A726)*('Fixed assets'!$S$2:$S$1000))","v":0},{"$f":"AE638+SUMPRODUCT(('Fixed assets'!$Q$2:$Q$1000=Costs!AE$705)*('Fixed assets'!$U$2:$U$1000>Costs!$A726)*('Fixed assets'!$P$2:$P$1000=Costs!$A726)*('Fixed assets'!$R$2:$R$1000))-SUMPRODUCT(('Fixed assets'!$Q$2:$Q$1000=Costs!AE$705)*('Fixed assets'!$U$2:$U$1000>Costs!$A726)*('Fixed assets'!$P$2:$P$1000=Costs!$A726)*('Fixed assets'!$S$2:$S$1000))","v":0},{"$f":"AF638+SUMPRODUCT(('Fixed assets'!$Q$2:$Q$1000=Costs!AF$705)*('Fixed assets'!$U$2:$U$1000>Costs!$A726)*('Fixed assets'!$P$2:$P$1000=Costs!$A726)*('Fixed assets'!$R$2:$R$1000))-SUMPRODUCT(('Fixed assets'!$Q$2:$Q$1000=Costs!AF$705)*('Fixed assets'!$U$2:$U$1000>Costs!$A726)*('Fixed assets'!$P$2:$P$1000=Costs!$A726)*('Fixed assets'!$S$2:$S$1000))","v":0},{"$f":"AG638+SUMPRODUCT(('Fixed assets'!$Q$2:$Q$1000=Costs!AG$705)*('Fixed assets'!$U$2:$U$1000>Costs!$A726)*('Fixed assets'!$P$2:$P$1000=Costs!$A726)*('Fixed assets'!$R$2:$R$1000))-SUMPRODUCT(('Fixed assets'!$Q$2:$Q$1000=Costs!AG$705)*('Fixed assets'!$U$2:$U$1000>Costs!$A726)*('Fixed assets'!$P$2:$P$1000=Costs!$A726)*('Fixed assets'!$S$2:$S$1000))","v":0},{"$f":"AH638+SUMPRODUCT(('Fixed assets'!$Q$2:$Q$1000=Costs!AH$705)*('Fixed assets'!$U$2:$U$1000>Costs!$A726)*('Fixed assets'!$P$2:$P$1000=Costs!$A726)*('Fixed assets'!$R$2:$R$1000))-SUMPRODUCT(('Fixed assets'!$Q$2:$Q$1000=Costs!AH$705)*('Fixed assets'!$U$2:$U$1000>Costs!$A726)*('Fixed assets'!$P$2:$P$1000=Costs!$A726)*('Fixed assets'!$S$2:$S$1000))","v":0},{"$f":"AI638+SUMPRODUCT(('Fixed assets'!$Q$2:$Q$1000=Costs!AI$705)*('Fixed assets'!$U$2:$U$1000>Costs!$A726)*('Fixed assets'!$P$2:$P$1000=Costs!$A726)*('Fixed assets'!$R$2:$R$1000))-SUMPRODUCT(('Fixed assets'!$Q$2:$Q$1000=Costs!AI$705)*('Fixed assets'!$U$2:$U$1000>Costs!$A726)*('Fixed assets'!$P$2:$P$1000=Costs!$A726)*('Fixed assets'!$S$2:$S$1000))","v":0},{"$f":"AJ638+SUMPRODUCT(('Fixed assets'!$Q$2:$Q$1000=Costs!AJ$705)*('Fixed assets'!$U$2:$U$1000>Costs!$A726)*('Fixed assets'!$P$2:$P$1000=Costs!$A726)*('Fixed assets'!$R$2:$R$1000))-SUMPRODUCT(('Fixed assets'!$Q$2:$Q$1000=Costs!AJ$705)*('Fixed assets'!$U$2:$U$1000>Costs!$A726)*('Fixed assets'!$P$2:$P$1000=Costs!$A726)*('Fixed assets'!$S$2:$S$1000))","v":0},{"$f":"AK638+SUMPRODUCT(('Fixed assets'!$Q$2:$Q$1000=Costs!AK$705)*('Fixed assets'!$U$2:$U$1000>Costs!$A726)*('Fixed assets'!$P$2:$P$1000=Costs!$A726)*('Fixed assets'!$R$2:$R$1000))-SUMPRODUCT(('Fixed assets'!$Q$2:$Q$1000=Costs!AK$705)*('Fixed assets'!$U$2:$U$1000>Costs!$A726)*('Fixed assets'!$P$2:$P$1000=Costs!$A726)*('Fixed assets'!$S$2:$S$1000))","v":0},{"$f":"AL638+SUMPRODUCT(('Fixed assets'!$Q$2:$Q$1000=Costs!AL$705)*('Fixed assets'!$U$2:$U$1000>Costs!$A726)*('Fixed assets'!$P$2:$P$1000=Costs!$A726)*('Fixed assets'!$R$2:$R$1000))-SUMPRODUCT(('Fixed assets'!$Q$2:$Q$1000=Costs!AL$705)*('Fixed assets'!$U$2:$U$1000>Costs!$A726)*('Fixed assets'!$P$2:$P$1000=Costs!$A726)*('Fixed assets'!$S$2:$S$1000))","v":0},{"$f":"AM638+SUMPRODUCT(('Fixed assets'!$Q$2:$Q$1000=Costs!AM$705)*('Fixed assets'!$U$2:$U$1000>Costs!$A726)*('Fixed assets'!$P$2:$P$1000=Costs!$A726)*('Fixed assets'!$R$2:$R$1000))-SUMPRODUCT(('Fixed assets'!$Q$2:$Q$1000=Costs!AM$705)*('Fixed assets'!$U$2:$U$1000>Costs!$A726)*('Fixed assets'!$P$2:$P$1000=Costs!$A726)*('Fixed assets'!$S$2:$S$1000))","v":0},{"$f":"AN638+SUMPRODUCT(('Fixed assets'!$Q$2:$Q$1000=Costs!AN$705)*('Fixed assets'!$U$2:$U$1000>Costs!$A726)*('Fixed assets'!$P$2:$P$1000=Costs!$A726)*('Fixed assets'!$R$2:$R$1000))-SUMPRODUCT(('Fixed assets'!$Q$2:$Q$1000=Costs!AN$705)*('Fixed assets'!$U$2:$U$1000>Costs!$A726)*('Fixed assets'!$P$2:$P$1000=Costs!$A726)*('Fixed assets'!$S$2:$S$1000))","v":0},{"$f":"AO638+SUMPRODUCT(('Fixed assets'!$Q$2:$Q$1000=Costs!AO$705)*('Fixed assets'!$U$2:$U$1000>Costs!$A726)*('Fixed assets'!$P$2:$P$1000=Costs!$A726)*('Fixed assets'!$R$2:$R$1000))-SUMPRODUCT(('Fixed assets'!$Q$2:$Q$1000=Costs!AO$705)*('Fixed assets'!$U$2:$U$1000>Costs!$A726)*('Fixed assets'!$P$2:$P$1000=Costs!$A726)*('Fixed assets'!$S$2:$S$1000))","v":0},{"$f":"AP638+SUMPRODUCT(('Fixed assets'!$Q$2:$Q$1000=Costs!AP$705)*('Fixed assets'!$U$2:$U$1000>Costs!$A726)*('Fixed assets'!$P$2:$P$1000=Costs!$A726)*('Fixed assets'!$R$2:$R$1000))-SUMPRODUCT(('Fixed assets'!$Q$2:$Q$1000=Costs!AP$705)*('Fixed assets'!$U$2:$U$1000>Costs!$A726)*('Fixed assets'!$P$2:$P$1000=Costs!$A726)*('Fixed assets'!$S$2:$S$1000))","v":0},{"$f":"AQ638+SUMPRODUCT(('Fixed assets'!$Q$2:$Q$1000=Costs!AQ$705)*('Fixed assets'!$U$2:$U$1000>Costs!$A726)*('Fixed assets'!$P$2:$P$1000=Costs!$A726)*('Fixed assets'!$R$2:$R$1000))-SUMPRODUCT(('Fixed assets'!$Q$2:$Q$1000=Costs!AQ$705)*('Fixed assets'!$U$2:$U$1000>Costs!$A726)*('Fixed assets'!$P$2:$P$1000=Costs!$A726)*('Fixed assets'!$S$2:$S$1000))","v":0}]
[2036,0,{"$f":"C639+SUMPRODUCT(('Fixed assets'!$Q$2:$Q$1000=Costs!C$705)*('Fixed assets'!$U$2:$U$1000>Costs!$A727)*('Fixed assets'!$P$2:$P$1000=Costs!$A727)*('Fixed assets'!$R$2:$R$1000))-SUMPRODUCT(('Fixed assets'!$Q$2:$Q$1000=Costs!C$705)*('Fixed assets'!$U$2:$U$1000>Costs!$A727)*('Fixed assets'!$P$2:$P$1000=Costs!$A727)*('Fixed assets'!$S$2:$S$1000))","v":0},{"$f":"D639+SUMPRODUCT(('Fixed assets'!$Q$2:$Q$1000=Costs!D$705)*('Fixed assets'!$U$2:$U$1000>Costs!$A727)*('Fixed assets'!$P$2:$P$1000=Costs!$A727)*('Fixed assets'!$R$2:$R$1000))-SUMPRODUCT(('Fixed assets'!$Q$2:$Q$1000=Costs!D$705)*('Fixed assets'!$U$2:$U$1000>Costs!$A727)*('Fixed assets'!$P$2:$P$1000=Costs!$A727)*('Fixed assets'!$S$2:$S$1000))","v":0},{"$f":"E639+SUMPRODUCT(('Fixed assets'!$Q$2:$Q$1000=Costs!E$705)*('Fixed assets'!$U$2:$U$1000>Costs!$A727)*('Fixed assets'!$P$2:$P$1000=Costs!$A727)*('Fixed assets'!$R$2:$R$1000))-SUMPRODUCT(('Fixed assets'!$Q$2:$Q$1000=Costs!E$705)*('Fixed assets'!$U$2:$U$1000>Costs!$A727)*('Fixed assets'!$P$2:$P$1000=Costs!$A727)*('Fixed assets'!$S$2:$S$1000))","v":0},{"$f":"F639+SUMPRODUCT(('Fixed assets'!$Q$2:$Q$1000=Costs!F$705)*('Fixed assets'!$U$2:$U$1000>Costs!$A727)*('Fixed assets'!$P$2:$P$1000=Costs!$A727)*('Fixed assets'!$R$2:$R$1000))-SUMPRODUCT(('Fixed assets'!$Q$2:$Q$1000=Costs!F$705)*('Fixed assets'!$U$2:$U$1000>Costs!$A727)*('Fixed assets'!$P$2:$P$1000=Costs!$A727)*('Fixed assets'!$S$2:$S$1000))","v":0},{"$f":"G639+SUMPRODUCT(('Fixed assets'!$Q$2:$Q$1000=Costs!G$705)*('Fixed assets'!$U$2:$U$1000>Costs!$A727)*('Fixed assets'!$P$2:$P$1000=Costs!$A727)*('Fixed assets'!$R$2:$R$1000))-SUMPRODUCT(('Fixed assets'!$Q$2:$Q$1000=Costs!G$705)*('Fixed assets'!$U$2:$U$1000>Costs!$A727)*('Fixed assets'!$P$2:$P$1000=Costs!$A727)*('Fixed assets'!$S$2:$S$1000))","v":0},{"$f":"H639+SUMPRODUCT(('Fixed assets'!$Q$2:$Q$1000=Costs!H$705)*('Fixed assets'!$U$2:$U$1000>Costs!$A727)*('Fixed assets'!$P$2:$P$1000=Costs!$A727)*('Fixed assets'!$R$2:$R$1000))-SUMPRODUCT(('Fixed assets'!$Q$2:$Q$1000=Costs!H$705)*('Fixed assets'!$U$2:$U$1000>Costs!$A727)*('Fixed assets'!$P$2:$P$1000=Costs!$A727)*('Fixed assets'!$S$2:$S$1000))","v":0},{"$f":"I639+SUMPRODUCT(('Fixed assets'!$Q$2:$Q$1000=Costs!I$705)*('Fixed assets'!$U$2:$U$1000>Costs!$A727)*('Fixed assets'!$P$2:$P$1000=Costs!$A727)*('Fixed assets'!$R$2:$R$1000))-SUMPRODUCT(('Fixed assets'!$Q$2:$Q$1000=Costs!I$705)*('Fixed assets'!$U$2:$U$1000>Costs!$A727)*('Fixed assets'!$P$2:$P$1000=Costs!$A727)*('Fixed assets'!$S$2:$S$1000))","v":0},{"$f":"J639+SUMPRODUCT(('Fixed assets'!$Q$2:$Q$1000=Costs!J$705)*('Fixed assets'!$U$2:$U$1000>Costs!$A727)*('Fixed assets'!$P$2:$P$1000=Costs!$A727)*('Fixed assets'!$R$2:$R$1000))-SUMPRODUCT(('Fixed assets'!$Q$2:$Q$1000=Costs!J$705)*('Fixed assets'!$U$2:$U$1000>Costs!$A727)*('Fixed assets'!$P$2:$P$1000=Costs!$A727)*('Fixed assets'!$S$2:$S$1000))","v":0},{"$f":"K639+SUMPRODUCT(('Fixed assets'!$Q$2:$Q$1000=Costs!K$705)*('Fixed assets'!$U$2:$U$1000>Costs!$A727)*('Fixed assets'!$P$2:$P$1000=Costs!$A727)*('Fixed assets'!$R$2:$R$1000))-SUMPRODUCT(('Fixed assets'!$Q$2:$Q$1000=Costs!K$705)*('Fixed assets'!$U$2:$U$1000>Costs!$A727)*('Fixed assets'!$P$2:$P$1000=Costs!$A727)*('Fixed assets'!$S$2:$S$1000))","v":0},{"$f":"L639+SUMPRODUCT(('Fixed assets'!$Q$2:$Q$1000=Costs!L$705)*('Fixed assets'!$U$2:$U$1000>Costs!$A727)*('Fixed assets'!$P$2:$P$1000=Costs!$A727)*('Fixed assets'!$R$2:$R$1000))-SUMPRODUCT(('Fixed assets'!$Q$2:$Q$1000=Costs!L$705)*('Fixed assets'!$U$2:$U$1000>Costs!$A727)*('Fixed assets'!$P$2:$P$1000=Costs!$A727)*('Fixed assets'!$S$2:$S$1000))","v":0},{"$f":"M639+SUMPRODUCT(('Fixed assets'!$Q$2:$Q$1000=Costs!M$705)*('Fixed assets'!$U$2:$U$1000>Costs!$A727)*('Fixed assets'!$P$2:$P$1000=Costs!$A727)*('Fixed assets'!$R$2:$R$1000))-SUMPRODUCT(('Fixed assets'!$Q$2:$Q$1000=Costs!M$705)*('Fixed assets'!$U$2:$U$1000>Costs!$A727)*('Fixed assets'!$P$2:$P$1000=Costs!$A727)*('Fixed assets'!$S$2:$S$1000))","v":0},{"$f":"N639+SUMPRODUCT(('Fixed assets'!$Q$2:$Q$1000=Costs!N$705)*('Fixed assets'!$U$2:$U$1000>Costs!$A727)*('Fixed assets'!$P$2:$P$1000=Costs!$A727)*('Fixed assets'!$R$2:$R$1000))-SUMPRODUCT(('Fixed assets'!$Q$2:$Q$1000=Costs!N$705)*('Fixed assets'!$U$2:$U$1000>Costs!$A727)*('Fixed assets'!$P$2:$P$1000=Costs!$A727)*('Fixed assets'!$S$2:$S$1000))","v":0},{"$f":"O639+SUMPRODUCT(('Fixed assets'!$Q$2:$Q$1000=Costs!O$705)*('Fixed assets'!$U$2:$U$1000>Costs!$A727)*('Fixed assets'!$P$2:$P$1000=Costs!$A727)*('Fixed assets'!$R$2:$R$1000))-SUMPRODUCT(('Fixed assets'!$Q$2:$Q$1000=Costs!O$705)*('Fixed assets'!$U$2:$U$1000>Costs!$A727)*('Fixed assets'!$P$2:$P$1000=Costs!$A727)*('Fixed assets'!$S$2:$S$1000))","v":0},{"$f":"P639+SUMPRODUCT(('Fixed assets'!$Q$2:$Q$1000=Costs!P$705)*('Fixed assets'!$U$2:$U$1000>Costs!$A727)*('Fixed assets'!$P$2:$P$1000=Costs!$A727)*('Fixed assets'!$R$2:$R$1000))-SUMPRODUCT(('Fixed assets'!$Q$2:$Q$1000=Costs!P$705)*('Fixed assets'!$U$2:$U$1000>Costs!$A727)*('Fixed assets'!$P$2:$P$1000=Costs!$A727)*('Fixed assets'!$S$2:$S$1000))","v":0},{"$f":"Q639+SUMPRODUCT(('Fixed assets'!$Q$2:$Q$1000=Costs!Q$705)*('Fixed assets'!$U$2:$U$1000>Costs!$A727)*('Fixed assets'!$P$2:$P$1000=Costs!$A727)*('Fixed assets'!$R$2:$R$1000))-SUMPRODUCT(('Fixed assets'!$Q$2:$Q$1000=Costs!Q$705)*('Fixed assets'!$U$2:$U$1000>Costs!$A727)*('Fixed assets'!$P$2:$P$1000=Costs!$A727)*('Fixed assets'!$S$2:$S$1000))","v":0},{"$f":"R639+SUMPRODUCT(('Fixed assets'!$Q$2:$Q$1000=Costs!R$705)*('Fixed assets'!$U$2:$U$1000>Costs!$A727)*('Fixed assets'!$P$2:$P$1000=Costs!$A727)*('Fixed assets'!$R$2:$R$1000))-SUMPRODUCT(('Fixed assets'!$Q$2:$Q$1000=Costs!R$705)*('Fixed assets'!$U$2:$U$1000>Costs!$A727)*('Fixed assets'!$P$2:$P$1000=Costs!$A727)*('Fixed assets'!$S$2:$S$1000))","v":0},{"$f":"S639+SUMPRODUCT(('Fixed assets'!$Q$2:$Q$1000=Costs!S$705)*('Fixed assets'!$U$2:$U$1000>Costs!$A727)*('Fixed assets'!$P$2:$P$1000=Costs!$A727)*('Fixed assets'!$R$2:$R$1000))-SUMPRODUCT(('Fixed assets'!$Q$2:$Q$1000=Costs!S$705)*('Fixed assets'!$U$2:$U$1000>Costs!$A727)*('Fixed assets'!$P$2:$P$1000=Costs!$A727)*('Fixed assets'!$S$2:$S$1000))","v":0},{"$f":"T639+SUMPRODUCT(('Fixed assets'!$Q$2:$Q$1000=Costs!T$705)*('Fixed assets'!$U$2:$U$1000>Costs!$A727)*('Fixed assets'!$P$2:$P$1000=Costs!$A727)*('Fixed assets'!$R$2:$R$1000))-SUMPRODUCT(('Fixed assets'!$Q$2:$Q$1000=Costs!T$705)*('Fixed assets'!$U$2:$U$1000>Costs!$A727)*('Fixed assets'!$P$2:$P$1000=Costs!$A727)*('Fixed assets'!$S$2:$S$1000))","v":0},{"$f":"U639+SUMPRODUCT(('Fixed assets'!$Q$2:$Q$1000=Costs!U$705)*('Fixed assets'!$U$2:$U$1000>Costs!$A727)*('Fixed assets'!$P$2:$P$1000=Costs!$A727)*('Fixed assets'!$R$2:$R$1000))-SUMPRODUCT(('Fixed assets'!$Q$2:$Q$1000=Costs!U$705)*('Fixed assets'!$U$2:$U$1000>Costs!$A727)*('Fixed assets'!$P$2:$P$1000=Costs!$A727)*('Fixed assets'!$S$2:$S$1000))","v":0},{"$f":"V639+SUMPRODUCT(('Fixed assets'!$Q$2:$Q$1000=Costs!V$705)*('Fixed assets'!$U$2:$U$1000>Costs!$A727)*('Fixed assets'!$P$2:$P$1000=Costs!$A727)*('Fixed assets'!$R$2:$R$1000))-SUMPRODUCT(('Fixed assets'!$Q$2:$Q$1000=Costs!V$705)*('Fixed assets'!$U$2:$U$1000>Costs!$A727)*('Fixed assets'!$P$2:$P$1000=Costs!$A727)*('Fixed assets'!$S$2:$S$1000))","v":0},{"$f":"W639+SUMPRODUCT(('Fixed assets'!$Q$2:$Q$1000=Costs!W$705)*('Fixed assets'!$U$2:$U$1000>Costs!$A727)*('Fixed assets'!$P$2:$P$1000=Costs!$A727)*('Fixed assets'!$R$2:$R$1000))-SUMPRODUCT(('Fixed assets'!$Q$2:$Q$1000=Costs!W$705)*('Fixed assets'!$U$2:$U$1000>Costs!$A727)*('Fixed assets'!$P$2:$P$1000=Costs!$A727)*('Fixed assets'!$S$2:$S$1000))","v":0},{"$f":"X639+SUMPRODUCT(('Fixed assets'!$Q$2:$Q$1000=Costs!X$705)*('Fixed assets'!$U$2:$U$1000>Costs!$A727)*('Fixed assets'!$P$2:$P$1000=Costs!$A727)*('Fixed assets'!$R$2:$R$1000))-SUMPRODUCT(('Fixed assets'!$Q$2:$Q$1000=Costs!X$705)*('Fixed assets'!$U$2:$U$1000>Costs!$A727)*('Fixed assets'!$P$2:$P$1000=Costs!$A727)*('Fixed assets'!$S$2:$S$1000))","v":0},{"$f":"Y639+SUMPRODUCT(('Fixed assets'!$Q$2:$Q$1000=Costs!Y$705)*('Fixed assets'!$U$2:$U$1000>Costs!$A727)*('Fixed assets'!$P$2:$P$1000=Costs!$A727)*('Fixed assets'!$R$2:$R$1000))-SUMPRODUCT(('Fixed assets'!$Q$2:$Q$1000=Costs!Y$705)*('Fixed assets'!$U$2:$U$1000>Costs!$A727)*('Fixed assets'!$P$2:$P$1000=Costs!$A727)*('Fixed assets'!$S$2:$S$1000))","v":0},{"$f":"Z639+SUMPRODUCT(('Fixed assets'!$Q$2:$Q$1000=Costs!Z$705)*('Fixed assets'!$U$2:$U$1000>Costs!$A727)*('Fixed assets'!$P$2:$P$1000=Costs!$A727)*('Fixed assets'!$R$2:$R$1000))-SUMPRODUCT(('Fixed assets'!$Q$2:$Q$1000=Costs!Z$705)*('Fixed assets'!$U$2:$U$1000>Costs!$A727)*('Fixed assets'!$P$2:$P$1000=Costs!$A727)*('Fixed assets'!$S$2:$S$1000))","v":0},{"$f":"AA639+SUMPRODUCT(('Fixed assets'!$Q$2:$Q$1000=Costs!AA$705)*('Fixed assets'!$U$2:$U$1000>Costs!$A727)*('Fixed assets'!$P$2:$P$1000=Costs!$A727)*('Fixed assets'!$R$2:$R$1000))-SUMPRODUCT(('Fixed assets'!$Q$2:$Q$1000=Costs!AA$705)*('Fixed assets'!$U$2:$U$1000>Costs!$A727)*('Fixed assets'!$P$2:$P$1000=Costs!$A727)*('Fixed assets'!$S$2:$S$1000))","v":0},{"$f":"AB639+SUMPRODUCT(('Fixed assets'!$Q$2:$Q$1000=Costs!AB$705)*('Fixed assets'!$U$2:$U$1000>Costs!$A727)*('Fixed assets'!$P$2:$P$1000=Costs!$A727)*('Fixed assets'!$R$2:$R$1000))-SUMPRODUCT(('Fixed assets'!$Q$2:$Q$1000=Costs!AB$705)*('Fixed assets'!$U$2:$U$1000>Costs!$A727)*('Fixed assets'!$P$2:$P$1000=Costs!$A727)*('Fixed assets'!$S$2:$S$1000))","v":0},{"$f":"AC639+SUMPRODUCT(('Fixed assets'!$Q$2:$Q$1000=Costs!AC$705)*('Fixed assets'!$U$2:$U$1000>Costs!$A727)*('Fixed assets'!$P$2:$P$1000=Costs!$A727)*('Fixed assets'!$R$2:$R$1000))-SUMPRODUCT(('Fixed assets'!$Q$2:$Q$1000=Costs!AC$705)*('Fixed assets'!$U$2:$U$1000>Costs!$A727)*('Fixed assets'!$P$2:$P$1000=Costs!$A727)*('Fixed assets'!$S$2:$S$1000))","v":0},{"$f":"AD639+SUMPRODUCT(('Fixed assets'!$Q$2:$Q$1000=Costs!AD$705)*('Fixed assets'!$U$2:$U$1000>Costs!$A727)*('Fixed assets'!$P$2:$P$1000=Costs!$A727)*('Fixed assets'!$R$2:$R$1000))-SUMPRODUCT(('Fixed assets'!$Q$2:$Q$1000=Costs!AD$705)*('Fixed assets'!$U$2:$U$1000>Costs!$A727)*('Fixed assets'!$P$2:$P$1000=Costs!$A727)*('Fixed assets'!$S$2:$S$1000))","v":0},{"$f":"AE639+SUMPRODUCT(('Fixed assets'!$Q$2:$Q$1000=Costs!AE$705)*('Fixed assets'!$U$2:$U$1000>Costs!$A727)*('Fixed assets'!$P$2:$P$1000=Costs!$A727)*('Fixed assets'!$R$2:$R$1000))-SUMPRODUCT(('Fixed assets'!$Q$2:$Q$1000=Costs!AE$705)*('Fixed assets'!$U$2:$U$1000>Costs!$A727)*('Fixed assets'!$P$2:$P$1000=Costs!$A727)*('Fixed assets'!$S$2:$S$1000))","v":0},{"$f":"AF639+SUMPRODUCT(('Fixed assets'!$Q$2:$Q$1000=Costs!AF$705)*('Fixed assets'!$U$2:$U$1000>Costs!$A727)*('Fixed assets'!$P$2:$P$1000=Costs!$A727)*('Fixed assets'!$R$2:$R$1000))-SUMPRODUCT(('Fixed assets'!$Q$2:$Q$1000=Costs!AF$705)*('Fixed assets'!$U$2:$U$1000>Costs!$A727)*('Fixed assets'!$P$2:$P$1000=Costs!$A727)*('Fixed assets'!$S$2:$S$1000))","v":0},{"$f":"AG639+SUMPRODUCT(('Fixed assets'!$Q$2:$Q$1000=Costs!AG$705)*('Fixed assets'!$U$2:$U$1000>Costs!$A727)*('Fixed assets'!$P$2:$P$1000=Costs!$A727)*('Fixed assets'!$R$2:$R$1000))-SUMPRODUCT(('Fixed assets'!$Q$2:$Q$1000=Costs!AG$705)*('Fixed assets'!$U$2:$U$1000>Costs!$A727)*('Fixed assets'!$P$2:$P$1000=Costs!$A727)*('Fixed assets'!$S$2:$S$1000))","v":0},{"$f":"AH639+SUMPRODUCT(('Fixed assets'!$Q$2:$Q$1000=Costs!AH$705)*('Fixed assets'!$U$2:$U$1000>Costs!$A727)*('Fixed assets'!$P$2:$P$1000=Costs!$A727)*('Fixed assets'!$R$2:$R$1000))-SUMPRODUCT(('Fixed assets'!$Q$2:$Q$1000=Costs!AH$705)*('Fixed assets'!$U$2:$U$1000>Costs!$A727)*('Fixed assets'!$P$2:$P$1000=Costs!$A727)*('Fixed assets'!$S$2:$S$1000))","v":0},{"$f":"AI639+SUMPRODUCT(('Fixed assets'!$Q$2:$Q$1000=Costs!AI$705)*('Fixed assets'!$U$2:$U$1000>Costs!$A727)*('Fixed assets'!$P$2:$P$1000=Costs!$A727)*('Fixed assets'!$R$2:$R$1000))-SUMPRODUCT(('Fixed assets'!$Q$2:$Q$1000=Costs!AI$705)*('Fixed assets'!$U$2:$U$1000>Costs!$A727)*('Fixed assets'!$P$2:$P$1000=Costs!$A727)*('Fixed assets'!$S$2:$S$1000))","v":0},{"$f":"AJ639+SUMPRODUCT(('Fixed assets'!$Q$2:$Q$1000=Costs!AJ$705)*('Fixed assets'!$U$2:$U$1000>Costs!$A727)*('Fixed assets'!$P$2:$P$1000=Costs!$A727)*('Fixed assets'!$R$2:$R$1000))-SUMPRODUCT(('Fixed assets'!$Q$2:$Q$1000=Costs!AJ$705)*('Fixed assets'!$U$2:$U$1000>Costs!$A727)*('Fixed assets'!$P$2:$P$1000=Costs!$A727)*('Fixed assets'!$S$2:$S$1000))","v":0},{"$f":"AK639+SUMPRODUCT(('Fixed assets'!$Q$2:$Q$1000=Costs!AK$705)*('Fixed assets'!$U$2:$U$1000>Costs!$A727)*('Fixed assets'!$P$2:$P$1000=Costs!$A727)*('Fixed assets'!$R$2:$R$1000))-SUMPRODUCT(('Fixed assets'!$Q$2:$Q$1000=Costs!AK$705)*('Fixed assets'!$U$2:$U$1000>Costs!$A727)*('Fixed assets'!$P$2:$P$1000=Costs!$A727)*('Fixed assets'!$S$2:$S$1000))","v":0},{"$f":"AL639+SUMPRODUCT(('Fixed assets'!$Q$2:$Q$1000=Costs!AL$705)*('Fixed assets'!$U$2:$U$1000>Costs!$A727)*('Fixed assets'!$P$2:$P$1000=Costs!$A727)*('Fixed assets'!$R$2:$R$1000))-SUMPRODUCT(('Fixed assets'!$Q$2:$Q$1000=Costs!AL$705)*('Fixed assets'!$U$2:$U$1000>Costs!$A727)*('Fixed assets'!$P$2:$P$1000=Costs!$A727)*('Fixed assets'!$S$2:$S$1000))","v":0},{"$f":"AM639+SUMPRODUCT(('Fixed assets'!$Q$2:$Q$1000=Costs!AM$705)*('Fixed assets'!$U$2:$U$1000>Costs!$A727)*('Fixed assets'!$P$2:$P$1000=Costs!$A727)*('Fixed assets'!$R$2:$R$1000))-SUMPRODUCT(('Fixed assets'!$Q$2:$Q$1000=Costs!AM$705)*('Fixed assets'!$U$2:$U$1000>Costs!$A727)*('Fixed assets'!$P$2:$P$1000=Costs!$A727)*('Fixed assets'!$S$2:$S$1000))","v":0},{"$f":"AN639+SUMPRODUCT(('Fixed assets'!$Q$2:$Q$1000=Costs!AN$705)*('Fixed assets'!$U$2:$U$1000>Costs!$A727)*('Fixed assets'!$P$2:$P$1000=Costs!$A727)*('Fixed assets'!$R$2:$R$1000))-SUMPRODUCT(('Fixed assets'!$Q$2:$Q$1000=Costs!AN$705)*('Fixed assets'!$U$2:$U$1000>Costs!$A727)*('Fixed assets'!$P$2:$P$1000=Costs!$A727)*('Fixed assets'!$S$2:$S$1000))","v":0},{"$f":"AO639+SUMPRODUCT(('Fixed assets'!$Q$2:$Q$1000=Costs!AO$705)*('Fixed assets'!$U$2:$U$1000>Costs!$A727)*('Fixed assets'!$P$2:$P$1000=Costs!$A727)*('Fixed assets'!$R$2:$R$1000))-SUMPRODUCT(('Fixed assets'!$Q$2:$Q$1000=Costs!AO$705)*('Fixed assets'!$U$2:$U$1000>Costs!$A727)*('Fixed assets'!$P$2:$P$1000=Costs!$A727)*('Fixed assets'!$S$2:$S$1000))","v":0},{"$f":"AP639+SUMPRODUCT(('Fixed assets'!$Q$2:$Q$1000=Costs!AP$705)*('Fixed assets'!$U$2:$U$1000>Costs!$A727)*('Fixed assets'!$P$2:$P$1000=Costs!$A727)*('Fixed assets'!$R$2:$R$1000))-SUMPRODUCT(('Fixed assets'!$Q$2:$Q$1000=Costs!AP$705)*('Fixed assets'!$U$2:$U$1000>Costs!$A727)*('Fixed assets'!$P$2:$P$1000=Costs!$A727)*('Fixed assets'!$S$2:$S$1000))","v":0},{"$f":"AQ639+SUMPRODUCT(('Fixed assets'!$Q$2:$Q$1000=Costs!AQ$705)*('Fixed assets'!$U$2:$U$1000>Costs!$A727)*('Fixed assets'!$P$2:$P$1000=Costs!$A727)*('Fixed assets'!$R$2:$R$1000))-SUMPRODUCT(('Fixed assets'!$Q$2:$Q$1000=Costs!AQ$705)*('Fixed assets'!$U$2:$U$1000>Costs!$A727)*('Fixed assets'!$P$2:$P$1000=Costs!$A727)*('Fixed assets'!$S$2:$S$1000))","v":0}]
[2037,0,{"$f":"C640+SUMPRODUCT(('Fixed assets'!$Q$2:$Q$1000=Costs!C$705)*('Fixed assets'!$U$2:$U$1000>Costs!$A728)*('Fixed assets'!$P$2:$P$1000=Costs!$A728)*('Fixed assets'!$R$2:$R$1000))-SUMPRODUCT(('Fixed assets'!$Q$2:$Q$1000=Costs!C$705)*('Fixed assets'!$U$2:$U$1000>Costs!$A728)*('Fixed assets'!$P$2:$P$1000=Costs!$A728)*('Fixed assets'!$S$2:$S$1000))","v":0},{"$f":"D640+SUMPRODUCT(('Fixed assets'!$Q$2:$Q$1000=Costs!D$705)*('Fixed assets'!$U$2:$U$1000>Costs!$A728)*('Fixed assets'!$P$2:$P$1000=Costs!$A728)*('Fixed assets'!$R$2:$R$1000))-SUMPRODUCT(('Fixed assets'!$Q$2:$Q$1000=Costs!D$705)*('Fixed assets'!$U$2:$U$1000>Costs!$A728)*('Fixed assets'!$P$2:$P$1000=Costs!$A728)*('Fixed assets'!$S$2:$S$1000))","v":0},{"$f":"E640+SUMPRODUCT(('Fixed assets'!$Q$2:$Q$1000=Costs!E$705)*('Fixed assets'!$U$2:$U$1000>Costs!$A728)*('Fixed assets'!$P$2:$P$1000=Costs!$A728)*('Fixed assets'!$R$2:$R$1000))-SUMPRODUCT(('Fixed assets'!$Q$2:$Q$1000=Costs!E$705)*('Fixed assets'!$U$2:$U$1000>Costs!$A728)*('Fixed assets'!$P$2:$P$1000=Costs!$A728)*('Fixed assets'!$S$2:$S$1000))","v":0},{"$f":"F640+SUMPRODUCT(('Fixed assets'!$Q$2:$Q$1000=Costs!F$705)*('Fixed assets'!$U$2:$U$1000>Costs!$A728)*('Fixed assets'!$P$2:$P$1000=Costs!$A728)*('Fixed assets'!$R$2:$R$1000))-SUMPRODUCT(('Fixed assets'!$Q$2:$Q$1000=Costs!F$705)*('Fixed assets'!$U$2:$U$1000>Costs!$A728)*('Fixed assets'!$P$2:$P$1000=Costs!$A728)*('Fixed assets'!$S$2:$S$1000))","v":0},{"$f":"G640+SUMPRODUCT(('Fixed assets'!$Q$2:$Q$1000=Costs!G$705)*('Fixed assets'!$U$2:$U$1000>Costs!$A728)*('Fixed assets'!$P$2:$P$1000=Costs!$A728)*('Fixed assets'!$R$2:$R$1000))-SUMPRODUCT(('Fixed assets'!$Q$2:$Q$1000=Costs!G$705)*('Fixed assets'!$U$2:$U$1000>Costs!$A728)*('Fixed assets'!$P$2:$P$1000=Costs!$A728)*('Fixed assets'!$S$2:$S$1000))","v":0},{"$f":"H640+SUMPRODUCT(('Fixed assets'!$Q$2:$Q$1000=Costs!H$705)*('Fixed assets'!$U$2:$U$1000>Costs!$A728)*('Fixed assets'!$P$2:$P$1000=Costs!$A728)*('Fixed assets'!$R$2:$R$1000))-SUMPRODUCT(('Fixed assets'!$Q$2:$Q$1000=Costs!H$705)*('Fixed assets'!$U$2:$U$1000>Costs!$A728)*('Fixed assets'!$P$2:$P$1000=Costs!$A728)*('Fixed assets'!$S$2:$S$1000))","v":0},{"$f":"I640+SUMPRODUCT(('Fixed assets'!$Q$2:$Q$1000=Costs!I$705)*('Fixed assets'!$U$2:$U$1000>Costs!$A728)*('Fixed assets'!$P$2:$P$1000=Costs!$A728)*('Fixed assets'!$R$2:$R$1000))-SUMPRODUCT(('Fixed assets'!$Q$2:$Q$1000=Costs!I$705)*('Fixed assets'!$U$2:$U$1000>Costs!$A728)*('Fixed assets'!$P$2:$P$1000=Costs!$A728)*('Fixed assets'!$S$2:$S$1000))","v":0},{"$f":"J640+SUMPRODUCT(('Fixed assets'!$Q$2:$Q$1000=Costs!J$705)*('Fixed assets'!$U$2:$U$1000>Costs!$A728)*('Fixed assets'!$P$2:$P$1000=Costs!$A728)*('Fixed assets'!$R$2:$R$1000))-SUMPRODUCT(('Fixed assets'!$Q$2:$Q$1000=Costs!J$705)*('Fixed assets'!$U$2:$U$1000>Costs!$A728)*('Fixed assets'!$P$2:$P$1000=Costs!$A728)*('Fixed assets'!$S$2:$S$1000))","v":0},{"$f":"K640+SUMPRODUCT(('Fixed assets'!$Q$2:$Q$1000=Costs!K$705)*('Fixed assets'!$U$2:$U$1000>Costs!$A728)*('Fixed assets'!$P$2:$P$1000=Costs!$A728)*('Fixed assets'!$R$2:$R$1000))-SUMPRODUCT(('Fixed assets'!$Q$2:$Q$1000=Costs!K$705)*('Fixed assets'!$U$2:$U$1000>Costs!$A728)*('Fixed assets'!$P$2:$P$1000=Costs!$A728)*('Fixed assets'!$S$2:$S$1000))","v":0},{"$f":"L640+SUMPRODUCT(('Fixed assets'!$Q$2:$Q$1000=Costs!L$705)*('Fixed assets'!$U$2:$U$1000>Costs!$A728)*('Fixed assets'!$P$2:$P$1000=Costs!$A728)*('Fixed assets'!$R$2:$R$1000))-SUMPRODUCT(('Fixed assets'!$Q$2:$Q$1000=Costs!L$705)*('Fixed assets'!$U$2:$U$1000>Costs!$A728)*('Fixed assets'!$P$2:$P$1000=Costs!$A728)*('Fixed assets'!$S$2:$S$1000))","v":0},{"$f":"M640+SUMPRODUCT(('Fixed assets'!$Q$2:$Q$1000=Costs!M$705)*('Fixed assets'!$U$2:$U$1000>Costs!$A728)*('Fixed assets'!$P$2:$P$1000=Costs!$A728)*('Fixed assets'!$R$2:$R$1000))-SUMPRODUCT(('Fixed assets'!$Q$2:$Q$1000=Costs!M$705)*('Fixed assets'!$U$2:$U$1000>Costs!$A728)*('Fixed assets'!$P$2:$P$1000=Costs!$A728)*('Fixed assets'!$S$2:$S$1000))","v":0},{"$f":"N640+SUMPRODUCT(('Fixed assets'!$Q$2:$Q$1000=Costs!N$705)*('Fixed assets'!$U$2:$U$1000>Costs!$A728)*('Fixed assets'!$P$2:$P$1000=Costs!$A728)*('Fixed assets'!$R$2:$R$1000))-SUMPRODUCT(('Fixed assets'!$Q$2:$Q$1000=Costs!N$705)*('Fixed assets'!$U$2:$U$1000>Costs!$A728)*('Fixed assets'!$P$2:$P$1000=Costs!$A728)*('Fixed assets'!$S$2:$S$1000))","v":0},{"$f":"O640+SUMPRODUCT(('Fixed assets'!$Q$2:$Q$1000=Costs!O$705)*('Fixed assets'!$U$2:$U$1000>Costs!$A728)*('Fixed assets'!$P$2:$P$1000=Costs!$A728)*('Fixed assets'!$R$2:$R$1000))-SUMPRODUCT(('Fixed assets'!$Q$2:$Q$1000=Costs!O$705)*('Fixed assets'!$U$2:$U$1000>Costs!$A728)*('Fixed assets'!$P$2:$P$1000=Costs!$A728)*('Fixed assets'!$S$2:$S$1000))","v":0},{"$f":"P640+SUMPRODUCT(('Fixed assets'!$Q$2:$Q$1000=Costs!P$705)*('Fixed assets'!$U$2:$U$1000>Costs!$A728)*('Fixed assets'!$P$2:$P$1000=Costs!$A728)*('Fixed assets'!$R$2:$R$1000))-SUMPRODUCT(('Fixed assets'!$Q$2:$Q$1000=Costs!P$705)*('Fixed assets'!$U$2:$U$1000>Costs!$A728)*('Fixed assets'!$P$2:$P$1000=Costs!$A728)*('Fixed assets'!$S$2:$S$1000))","v":0},{"$f":"Q640+SUMPRODUCT(('Fixed assets'!$Q$2:$Q$1000=Costs!Q$705)*('Fixed assets'!$U$2:$U$1000>Costs!$A728)*('Fixed assets'!$P$2:$P$1000=Costs!$A728)*('Fixed assets'!$R$2:$R$1000))-SUMPRODUCT(('Fixed assets'!$Q$2:$Q$1000=Costs!Q$705)*('Fixed assets'!$U$2:$U$1000>Costs!$A728)*('Fixed assets'!$P$2:$P$1000=Costs!$A728)*('Fixed assets'!$S$2:$S$1000))","v":0},{"$f":"R640+SUMPRODUCT(('Fixed assets'!$Q$2:$Q$1000=Costs!R$705)*('Fixed assets'!$U$2:$U$1000>Costs!$A728)*('Fixed assets'!$P$2:$P$1000=Costs!$A728)*('Fixed assets'!$R$2:$R$1000))-SUMPRODUCT(('Fixed assets'!$Q$2:$Q$1000=Costs!R$705)*('Fixed assets'!$U$2:$U$1000>Costs!$A728)*('Fixed assets'!$P$2:$P$1000=Costs!$A728)*('Fixed assets'!$S$2:$S$1000))","v":0},{"$f":"S640+SUMPRODUCT(('Fixed assets'!$Q$2:$Q$1000=Costs!S$705)*('Fixed assets'!$U$2:$U$1000>Costs!$A728)*('Fixed assets'!$P$2:$P$1000=Costs!$A728)*('Fixed assets'!$R$2:$R$1000))-SUMPRODUCT(('Fixed assets'!$Q$2:$Q$1000=Costs!S$705)*('Fixed assets'!$U$2:$U$1000>Costs!$A728)*('Fixed assets'!$P$2:$P$1000=Costs!$A728)*('Fixed assets'!$S$2:$S$1000))","v":0},{"$f":"T640+SUMPRODUCT(('Fixed assets'!$Q$2:$Q$1000=Costs!T$705)*('Fixed assets'!$U$2:$U$1000>Costs!$A728)*('Fixed assets'!$P$2:$P$1000=Costs!$A728)*('Fixed assets'!$R$2:$R$1000))-SUMPRODUCT(('Fixed assets'!$Q$2:$Q$1000=Costs!T$705)*('Fixed assets'!$U$2:$U$1000>Costs!$A728)*('Fixed assets'!$P$2:$P$1000=Costs!$A728)*('Fixed assets'!$S$2:$S$1000))","v":0},{"$f":"U640+SUMPRODUCT(('Fixed assets'!$Q$2:$Q$1000=Costs!U$705)*('Fixed assets'!$U$2:$U$1000>Costs!$A728)*('Fixed assets'!$P$2:$P$1000=Costs!$A728)*('Fixed assets'!$R$2:$R$1000))-SUMPRODUCT(('Fixed assets'!$Q$2:$Q$1000=Costs!U$705)*('Fixed assets'!$U$2:$U$1000>Costs!$A728)*('Fixed assets'!$P$2:$P$1000=Costs!$A728)*('Fixed assets'!$S$2:$S$1000))","v":0},{"$f":"V640+SUMPRODUCT(('Fixed assets'!$Q$2:$Q$1000=Costs!V$705)*('Fixed assets'!$U$2:$U$1000>Costs!$A728)*('Fixed assets'!$P$2:$P$1000=Costs!$A728)*('Fixed assets'!$R$2:$R$1000))-SUMPRODUCT(('Fixed assets'!$Q$2:$Q$1000=Costs!V$705)*('Fixed assets'!$U$2:$U$1000>Costs!$A728)*('Fixed assets'!$P$2:$P$1000=Costs!$A728)*('Fixed assets'!$S$2:$S$1000))","v":0},{"$f":"W640+SUMPRODUCT(('Fixed assets'!$Q$2:$Q$1000=Costs!W$705)*('Fixed assets'!$U$2:$U$1000>Costs!$A728)*('Fixed assets'!$P$2:$P$1000=Costs!$A728)*('Fixed assets'!$R$2:$R$1000))-SUMPRODUCT(('Fixed assets'!$Q$2:$Q$1000=Costs!W$705)*('Fixed assets'!$U$2:$U$1000>Costs!$A728)*('Fixed assets'!$P$2:$P$1000=Costs!$A728)*('Fixed assets'!$S$2:$S$1000))","v":0},{"$f":"X640+SUMPRODUCT(('Fixed assets'!$Q$2:$Q$1000=Costs!X$705)*('Fixed assets'!$U$2:$U$1000>Costs!$A728)*('Fixed assets'!$P$2:$P$1000=Costs!$A728)*('Fixed assets'!$R$2:$R$1000))-SUMPRODUCT(('Fixed assets'!$Q$2:$Q$1000=Costs!X$705)*('Fixed assets'!$U$2:$U$1000>Costs!$A728)*('Fixed assets'!$P$2:$P$1000=Costs!$A728)*('Fixed assets'!$S$2:$S$1000))","v":0},{"$f":"Y640+SUMPRODUCT(('Fixed assets'!$Q$2:$Q$1000=Costs!Y$705)*('Fixed assets'!$U$2:$U$1000>Costs!$A728)*('Fixed assets'!$P$2:$P$1000=Costs!$A728)*('Fixed assets'!$R$2:$R$1000))-SUMPRODUCT(('Fixed assets'!$Q$2:$Q$1000=Costs!Y$705)*('Fixed assets'!$U$2:$U$1000>Costs!$A728)*('Fixed assets'!$P$2:$P$1000=Costs!$A728)*('Fixed assets'!$S$2:$S$1000))","v":0},{"$f":"Z640+SUMPRODUCT(('Fixed assets'!$Q$2:$Q$1000=Costs!Z$705)*('Fixed assets'!$U$2:$U$1000>Costs!$A728)*('Fixed assets'!$P$2:$P$1000=Costs!$A728)*('Fixed assets'!$R$2:$R$1000))-SUMPRODUCT(('Fixed assets'!$Q$2:$Q$1000=Costs!Z$705)*('Fixed assets'!$U$2:$U$1000>Costs!$A728)*('Fixed assets'!$P$2:$P$1000=Costs!$A728)*('Fixed assets'!$S$2:$S$1000))","v":0},{"$f":"AA640+SUMPRODUCT(('Fixed assets'!$Q$2:$Q$1000=Costs!AA$705)*('Fixed assets'!$U$2:$U$1000>Costs!$A728)*('Fixed assets'!$P$2:$P$1000=Costs!$A728)*('Fixed assets'!$R$2:$R$1000))-SUMPRODUCT(('Fixed assets'!$Q$2:$Q$1000=Costs!AA$705)*('Fixed assets'!$U$2:$U$1000>Costs!$A728)*('Fixed assets'!$P$2:$P$1000=Costs!$A728)*('Fixed assets'!$S$2:$S$1000))","v":0},{"$f":"AB640+SUMPRODUCT(('Fixed assets'!$Q$2:$Q$1000=Costs!AB$705)*('Fixed assets'!$U$2:$U$1000>Costs!$A728)*('Fixed assets'!$P$2:$P$1000=Costs!$A728)*('Fixed assets'!$R$2:$R$1000))-SUMPRODUCT(('Fixed assets'!$Q$2:$Q$1000=Costs!AB$705)*('Fixed assets'!$U$2:$U$1000>Costs!$A728)*('Fixed assets'!$P$2:$P$1000=Costs!$A728)*('Fixed assets'!$S$2:$S$1000))","v":0},{"$f":"AC640+SUMPRODUCT(('Fixed assets'!$Q$2:$Q$1000=Costs!AC$705)*('Fixed assets'!$U$2:$U$1000>Costs!$A728)*('Fixed assets'!$P$2:$P$1000=Costs!$A728)*('Fixed assets'!$R$2:$R$1000))-SUMPRODUCT(('Fixed assets'!$Q$2:$Q$1000=Costs!AC$705)*('Fixed assets'!$U$2:$U$1000>Costs!$A728)*('Fixed assets'!$P$2:$P$1000=Costs!$A728)*('Fixed assets'!$S$2:$S$1000))","v":0},{"$f":"AD640+SUMPRODUCT(('Fixed assets'!$Q$2:$Q$1000=Costs!AD$705)*('Fixed assets'!$U$2:$U$1000>Costs!$A728)*('Fixed assets'!$P$2:$P$1000=Costs!$A728)*('Fixed assets'!$R$2:$R$1000))-SUMPRODUCT(('Fixed assets'!$Q$2:$Q$1000=Costs!AD$705)*('Fixed assets'!$U$2:$U$1000>Costs!$A728)*('Fixed assets'!$P$2:$P$1000=Costs!$A728)*('Fixed assets'!$S$2:$S$1000))","v":0},{"$f":"AE640+SUMPRODUCT(('Fixed assets'!$Q$2:$Q$1000=Costs!AE$705)*('Fixed assets'!$U$2:$U$1000>Costs!$A728)*('Fixed assets'!$P$2:$P$1000=Costs!$A728)*('Fixed assets'!$R$2:$R$1000))-SUMPRODUCT(('Fixed assets'!$Q$2:$Q$1000=Costs!AE$705)*('Fixed assets'!$U$2:$U$1000>Costs!$A728)*('Fixed assets'!$P$2:$P$1000=Costs!$A728)*('Fixed assets'!$S$2:$S$1000))","v":0},{"$f":"AF640+SUMPRODUCT(('Fixed assets'!$Q$2:$Q$1000=Costs!AF$705)*('Fixed assets'!$U$2:$U$1000>Costs!$A728)*('Fixed assets'!$P$2:$P$1000=Costs!$A728)*('Fixed assets'!$R$2:$R$1000))-SUMPRODUCT(('Fixed assets'!$Q$2:$Q$1000=Costs!AF$705)*('Fixed assets'!$U$2:$U$1000>Costs!$A728)*('Fixed assets'!$P$2:$P$1000=Costs!$A728)*('Fixed assets'!$S$2:$S$1000))","v":0},{"$f":"AG640+SUMPRODUCT(('Fixed assets'!$Q$2:$Q$1000=Costs!AG$705)*('Fixed assets'!$U$2:$U$1000>Costs!$A728)*('Fixed assets'!$P$2:$P$1000=Costs!$A728)*('Fixed assets'!$R$2:$R$1000))-SUMPRODUCT(('Fixed assets'!$Q$2:$Q$1000=Costs!AG$705)*('Fixed assets'!$U$2:$U$1000>Costs!$A728)*('Fixed assets'!$P$2:$P$1000=Costs!$A728)*('Fixed assets'!$S$2:$S$1000))","v":0},{"$f":"AH640+SUMPRODUCT(('Fixed assets'!$Q$2:$Q$1000=Costs!AH$705)*('Fixed assets'!$U$2:$U$1000>Costs!$A728)*('Fixed assets'!$P$2:$P$1000=Costs!$A728)*('Fixed assets'!$R$2:$R$1000))-SUMPRODUCT(('Fixed assets'!$Q$2:$Q$1000=Costs!AH$705)*('Fixed assets'!$U$2:$U$1000>Costs!$A728)*('Fixed assets'!$P$2:$P$1000=Costs!$A728)*('Fixed assets'!$S$2:$S$1000))","v":0},{"$f":"AI640+SUMPRODUCT(('Fixed assets'!$Q$2:$Q$1000=Costs!AI$705)*('Fixed assets'!$U$2:$U$1000>Costs!$A728)*('Fixed assets'!$P$2:$P$1000=Costs!$A728)*('Fixed assets'!$R$2:$R$1000))-SUMPRODUCT(('Fixed assets'!$Q$2:$Q$1000=Costs!AI$705)*('Fixed assets'!$U$2:$U$1000>Costs!$A728)*('Fixed assets'!$P$2:$P$1000=Costs!$A728)*('Fixed assets'!$S$2:$S$1000))","v":0},{"$f":"AJ640+SUMPRODUCT(('Fixed assets'!$Q$2:$Q$1000=Costs!AJ$705)*('Fixed assets'!$U$2:$U$1000>Costs!$A728)*('Fixed assets'!$P$2:$P$1000=Costs!$A728)*('Fixed assets'!$R$2:$R$1000))-SUMPRODUCT(('Fixed assets'!$Q$2:$Q$1000=Costs!AJ$705)*('Fixed assets'!$U$2:$U$1000>Costs!$A728)*('Fixed assets'!$P$2:$P$1000=Costs!$A728)*('Fixed assets'!$S$2:$S$1000))","v":0},{"$f":"AK640+SUMPRODUCT(('Fixed assets'!$Q$2:$Q$1000=Costs!AK$705)*('Fixed assets'!$U$2:$U$1000>Costs!$A728)*('Fixed assets'!$P$2:$P$1000=Costs!$A728)*('Fixed assets'!$R$2:$R$1000))-SUMPRODUCT(('Fixed assets'!$Q$2:$Q$1000=Costs!AK$705)*('Fixed assets'!$U$2:$U$1000>Costs!$A728)*('Fixed assets'!$P$2:$P$1000=Costs!$A728)*('Fixed assets'!$S$2:$S$1000))","v":0},{"$f":"AL640+SUMPRODUCT(('Fixed assets'!$Q$2:$Q$1000=Costs!AL$705)*('Fixed assets'!$U$2:$U$1000>Costs!$A728)*('Fixed assets'!$P$2:$P$1000=Costs!$A728)*('Fixed assets'!$R$2:$R$1000))-SUMPRODUCT(('Fixed assets'!$Q$2:$Q$1000=Costs!AL$705)*('Fixed assets'!$U$2:$U$1000>Costs!$A728)*('Fixed assets'!$P$2:$P$1000=Costs!$A728)*('Fixed assets'!$S$2:$S$1000))","v":0},{"$f":"AM640+SUMPRODUCT(('Fixed assets'!$Q$2:$Q$1000=Costs!AM$705)*('Fixed assets'!$U$2:$U$1000>Costs!$A728)*('Fixed assets'!$P$2:$P$1000=Costs!$A728)*('Fixed assets'!$R$2:$R$1000))-SUMPRODUCT(('Fixed assets'!$Q$2:$Q$1000=Costs!AM$705)*('Fixed assets'!$U$2:$U$1000>Costs!$A728)*('Fixed assets'!$P$2:$P$1000=Costs!$A728)*('Fixed assets'!$S$2:$S$1000))","v":0},{"$f":"AN640+SUMPRODUCT(('Fixed assets'!$Q$2:$Q$1000=Costs!AN$705)*('Fixed assets'!$U$2:$U$1000>Costs!$A728)*('Fixed assets'!$P$2:$P$1000=Costs!$A728)*('Fixed assets'!$R$2:$R$1000))-SUMPRODUCT(('Fixed assets'!$Q$2:$Q$1000=Costs!AN$705)*('Fixed assets'!$U$2:$U$1000>Costs!$A728)*('Fixed assets'!$P$2:$P$1000=Costs!$A728)*('Fixed assets'!$S$2:$S$1000))","v":0},{"$f":"AO640+SUMPRODUCT(('Fixed assets'!$Q$2:$Q$1000=Costs!AO$705)*('Fixed assets'!$U$2:$U$1000>Costs!$A728)*('Fixed assets'!$P$2:$P$1000=Costs!$A728)*('Fixed assets'!$R$2:$R$1000))-SUMPRODUCT(('Fixed assets'!$Q$2:$Q$1000=Costs!AO$705)*('Fixed assets'!$U$2:$U$1000>Costs!$A728)*('Fixed assets'!$P$2:$P$1000=Costs!$A728)*('Fixed assets'!$S$2:$S$1000))","v":0},{"$f":"AP640+SUMPRODUCT(('Fixed assets'!$Q$2:$Q$1000=Costs!AP$705)*('Fixed assets'!$U$2:$U$1000>Costs!$A728)*('Fixed assets'!$P$2:$P$1000=Costs!$A728)*('Fixed assets'!$R$2:$R$1000))-SUMPRODUCT(('Fixed assets'!$Q$2:$Q$1000=Costs!AP$705)*('Fixed assets'!$U$2:$U$1000>Costs!$A728)*('Fixed assets'!$P$2:$P$1000=Costs!$A728)*('Fixed assets'!$S$2:$S$1000))","v":0},{"$f":"AQ640+SUMPRODUCT(('Fixed assets'!$Q$2:$Q$1000=Costs!AQ$705)*('Fixed assets'!$U$2:$U$1000>Costs!$A728)*('Fixed assets'!$P$2:$P$1000=Costs!$A728)*('Fixed assets'!$R$2:$R$1000))-SUMPRODUCT(('Fixed assets'!$Q$2:$Q$1000=Costs!AQ$705)*('Fixed assets'!$U$2:$U$1000>Costs!$A728)*('Fixed assets'!$P$2:$P$1000=Costs!$A728)*('Fixed assets'!$S$2:$S$1000))","v":0}]
[2038,0,{"$f":"C641+SUMPRODUCT(('Fixed assets'!$Q$2:$Q$1000=Costs!C$705)*('Fixed assets'!$U$2:$U$1000>Costs!$A729)*('Fixed assets'!$P$2:$P$1000=Costs!$A729)*('Fixed assets'!$R$2:$R$1000))-SUMPRODUCT(('Fixed assets'!$Q$2:$Q$1000=Costs!C$705)*('Fixed assets'!$U$2:$U$1000>Costs!$A729)*('Fixed assets'!$P$2:$P$1000=Costs!$A729)*('Fixed assets'!$S$2:$S$1000))","v":0},{"$f":"D641+SUMPRODUCT(('Fixed assets'!$Q$2:$Q$1000=Costs!D$705)*('Fixed assets'!$U$2:$U$1000>Costs!$A729)*('Fixed assets'!$P$2:$P$1000=Costs!$A729)*('Fixed assets'!$R$2:$R$1000))-SUMPRODUCT(('Fixed assets'!$Q$2:$Q$1000=Costs!D$705)*('Fixed assets'!$U$2:$U$1000>Costs!$A729)*('Fixed assets'!$P$2:$P$1000=Costs!$A729)*('Fixed assets'!$S$2:$S$1000))","v":0},{"$f":"E641+SUMPRODUCT(('Fixed assets'!$Q$2:$Q$1000=Costs!E$705)*('Fixed assets'!$U$2:$U$1000>Costs!$A729)*('Fixed assets'!$P$2:$P$1000=Costs!$A729)*('Fixed assets'!$R$2:$R$1000))-SUMPRODUCT(('Fixed assets'!$Q$2:$Q$1000=Costs!E$705)*('Fixed assets'!$U$2:$U$1000>Costs!$A729)*('Fixed assets'!$P$2:$P$1000=Costs!$A729)*('Fixed assets'!$S$2:$S$1000))","v":0},{"$f":"F641+SUMPRODUCT(('Fixed assets'!$Q$2:$Q$1000=Costs!F$705)*('Fixed assets'!$U$2:$U$1000>Costs!$A729)*('Fixed assets'!$P$2:$P$1000=Costs!$A729)*('Fixed assets'!$R$2:$R$1000))-SUMPRODUCT(('Fixed assets'!$Q$2:$Q$1000=Costs!F$705)*('Fixed assets'!$U$2:$U$1000>Costs!$A729)*('Fixed assets'!$P$2:$P$1000=Costs!$A729)*('Fixed assets'!$S$2:$S$1000))","v":0},{"$f":"G641+SUMPRODUCT(('Fixed assets'!$Q$2:$Q$1000=Costs!G$705)*('Fixed assets'!$U$2:$U$1000>Costs!$A729)*('Fixed assets'!$P$2:$P$1000=Costs!$A729)*('Fixed assets'!$R$2:$R$1000))-SUMPRODUCT(('Fixed assets'!$Q$2:$Q$1000=Costs!G$705)*('Fixed assets'!$U$2:$U$1000>Costs!$A729)*('Fixed assets'!$P$2:$P$1000=Costs!$A729)*('Fixed assets'!$S$2:$S$1000))","v":0},{"$f":"H641+SUMPRODUCT(('Fixed assets'!$Q$2:$Q$1000=Costs!H$705)*('Fixed assets'!$U$2:$U$1000>Costs!$A729)*('Fixed assets'!$P$2:$P$1000=Costs!$A729)*('Fixed assets'!$R$2:$R$1000))-SUMPRODUCT(('Fixed assets'!$Q$2:$Q$1000=Costs!H$705)*('Fixed assets'!$U$2:$U$1000>Costs!$A729)*('Fixed assets'!$P$2:$P$1000=Costs!$A729)*('Fixed assets'!$S$2:$S$1000))","v":0},{"$f":"I641+SUMPRODUCT(('Fixed assets'!$Q$2:$Q$1000=Costs!I$705)*('Fixed assets'!$U$2:$U$1000>Costs!$A729)*('Fixed assets'!$P$2:$P$1000=Costs!$A729)*('Fixed assets'!$R$2:$R$1000))-SUMPRODUCT(('Fixed assets'!$Q$2:$Q$1000=Costs!I$705)*('Fixed assets'!$U$2:$U$1000>Costs!$A729)*('Fixed assets'!$P$2:$P$1000=Costs!$A729)*('Fixed assets'!$S$2:$S$1000))","v":0},{"$f":"J641+SUMPRODUCT(('Fixed assets'!$Q$2:$Q$1000=Costs!J$705)*('Fixed assets'!$U$2:$U$1000>Costs!$A729)*('Fixed assets'!$P$2:$P$1000=Costs!$A729)*('Fixed assets'!$R$2:$R$1000))-SUMPRODUCT(('Fixed assets'!$Q$2:$Q$1000=Costs!J$705)*('Fixed assets'!$U$2:$U$1000>Costs!$A729)*('Fixed assets'!$P$2:$P$1000=Costs!$A729)*('Fixed assets'!$S$2:$S$1000))","v":0},{"$f":"K641+SUMPRODUCT(('Fixed assets'!$Q$2:$Q$1000=Costs!K$705)*('Fixed assets'!$U$2:$U$1000>Costs!$A729)*('Fixed assets'!$P$2:$P$1000=Costs!$A729)*('Fixed assets'!$R$2:$R$1000))-SUMPRODUCT(('Fixed assets'!$Q$2:$Q$1000=Costs!K$705)*('Fixed assets'!$U$2:$U$1000>Costs!$A729)*('Fixed assets'!$P$2:$P$1000=Costs!$A729)*('Fixed assets'!$S$2:$S$1000))","v":0},{"$f":"L641+SUMPRODUCT(('Fixed assets'!$Q$2:$Q$1000=Costs!L$705)*('Fixed assets'!$U$2:$U$1000>Costs!$A729)*('Fixed assets'!$P$2:$P$1000=Costs!$A729)*('Fixed assets'!$R$2:$R$1000))-SUMPRODUCT(('Fixed assets'!$Q$2:$Q$1000=Costs!L$705)*('Fixed assets'!$U$2:$U$1000>Costs!$A729)*('Fixed assets'!$P$2:$P$1000=Costs!$A729)*('Fixed assets'!$S$2:$S$1000))","v":0},{"$f":"M641+SUMPRODUCT(('Fixed assets'!$Q$2:$Q$1000=Costs!M$705)*('Fixed assets'!$U$2:$U$1000>Costs!$A729)*('Fixed assets'!$P$2:$P$1000=Costs!$A729)*('Fixed assets'!$R$2:$R$1000))-SUMPRODUCT(('Fixed assets'!$Q$2:$Q$1000=Costs!M$705)*('Fixed assets'!$U$2:$U$1000>Costs!$A729)*('Fixed assets'!$P$2:$P$1000=Costs!$A729)*('Fixed assets'!$S$2:$S$1000))","v":0},{"$f":"N641+SUMPRODUCT(('Fixed assets'!$Q$2:$Q$1000=Costs!N$705)*('Fixed assets'!$U$2:$U$1000>Costs!$A729)*('Fixed assets'!$P$2:$P$1000=Costs!$A729)*('Fixed assets'!$R$2:$R$1000))-SUMPRODUCT(('Fixed assets'!$Q$2:$Q$1000=Costs!N$705)*('Fixed assets'!$U$2:$U$1000>Costs!$A729)*('Fixed assets'!$P$2:$P$1000=Costs!$A729)*('Fixed assets'!$S$2:$S$1000))","v":0},{"$f":"O641+SUMPRODUCT(('Fixed assets'!$Q$2:$Q$1000=Costs!O$705)*('Fixed assets'!$U$2:$U$1000>Costs!$A729)*('Fixed assets'!$P$2:$P$1000=Costs!$A729)*('Fixed assets'!$R$2:$R$1000))-SUMPRODUCT(('Fixed assets'!$Q$2:$Q$1000=Costs!O$705)*('Fixed assets'!$U$2:$U$1000>Costs!$A729)*('Fixed assets'!$P$2:$P$1000=Costs!$A729)*('Fixed assets'!$S$2:$S$1000))","v":0},{"$f":"P641+SUMPRODUCT(('Fixed assets'!$Q$2:$Q$1000=Costs!P$705)*('Fixed assets'!$U$2:$U$1000>Costs!$A729)*('Fixed assets'!$P$2:$P$1000=Costs!$A729)*('Fixed assets'!$R$2:$R$1000))-SUMPRODUCT(('Fixed assets'!$Q$2:$Q$1000=Costs!P$705)*('Fixed assets'!$U$2:$U$1000>Costs!$A729)*('Fixed assets'!$P$2:$P$1000=Costs!$A729)*('Fixed assets'!$S$2:$S$1000))","v":0},{"$f":"Q641+SUMPRODUCT(('Fixed assets'!$Q$2:$Q$1000=Costs!Q$705)*('Fixed assets'!$U$2:$U$1000>Costs!$A729)*('Fixed assets'!$P$2:$P$1000=Costs!$A729)*('Fixed assets'!$R$2:$R$1000))-SUMPRODUCT(('Fixed assets'!$Q$2:$Q$1000=Costs!Q$705)*('Fixed assets'!$U$2:$U$1000>Costs!$A729)*('Fixed assets'!$P$2:$P$1000=Costs!$A729)*('Fixed assets'!$S$2:$S$1000))","v":0},{"$f":"R641+SUMPRODUCT(('Fixed assets'!$Q$2:$Q$1000=Costs!R$705)*('Fixed assets'!$U$2:$U$1000>Costs!$A729)*('Fixed assets'!$P$2:$P$1000=Costs!$A729)*('Fixed assets'!$R$2:$R$1000))-SUMPRODUCT(('Fixed assets'!$Q$2:$Q$1000=Costs!R$705)*('Fixed assets'!$U$2:$U$1000>Costs!$A729)*('Fixed assets'!$P$2:$P$1000=Costs!$A729)*('Fixed assets'!$S$2:$S$1000))","v":0},{"$f":"S641+SUMPRODUCT(('Fixed assets'!$Q$2:$Q$1000=Costs!S$705)*('Fixed assets'!$U$2:$U$1000>Costs!$A729)*('Fixed assets'!$P$2:$P$1000=Costs!$A729)*('Fixed assets'!$R$2:$R$1000))-SUMPRODUCT(('Fixed assets'!$Q$2:$Q$1000=Costs!S$705)*('Fixed assets'!$U$2:$U$1000>Costs!$A729)*('Fixed assets'!$P$2:$P$1000=Costs!$A729)*('Fixed assets'!$S$2:$S$1000))","v":0},{"$f":"T641+SUMPRODUCT(('Fixed assets'!$Q$2:$Q$1000=Costs!T$705)*('Fixed assets'!$U$2:$U$1000>Costs!$A729)*('Fixed assets'!$P$2:$P$1000=Costs!$A729)*('Fixed assets'!$R$2:$R$1000))-SUMPRODUCT(('Fixed assets'!$Q$2:$Q$1000=Costs!T$705)*('Fixed assets'!$U$2:$U$1000>Costs!$A729)*('Fixed assets'!$P$2:$P$1000=Costs!$A729)*('Fixed assets'!$S$2:$S$1000))","v":0},{"$f":"U641+SUMPRODUCT(('Fixed assets'!$Q$2:$Q$1000=Costs!U$705)*('Fixed assets'!$U$2:$U$1000>Costs!$A729)*('Fixed assets'!$P$2:$P$1000=Costs!$A729)*('Fixed assets'!$R$2:$R$1000))-SUMPRODUCT(('Fixed assets'!$Q$2:$Q$1000=Costs!U$705)*('Fixed assets'!$U$2:$U$1000>Costs!$A729)*('Fixed assets'!$P$2:$P$1000=Costs!$A729)*('Fixed assets'!$S$2:$S$1000))","v":0},{"$f":"V641+SUMPRODUCT(('Fixed assets'!$Q$2:$Q$1000=Costs!V$705)*('Fixed assets'!$U$2:$U$1000>Costs!$A729)*('Fixed assets'!$P$2:$P$1000=Costs!$A729)*('Fixed assets'!$R$2:$R$1000))-SUMPRODUCT(('Fixed assets'!$Q$2:$Q$1000=Costs!V$705)*('Fixed assets'!$U$2:$U$1000>Costs!$A729)*('Fixed assets'!$P$2:$P$1000=Costs!$A729)*('Fixed assets'!$S$2:$S$1000))","v":0},{"$f":"W641+SUMPRODUCT(('Fixed assets'!$Q$2:$Q$1000=Costs!W$705)*('Fixed assets'!$U$2:$U$1000>Costs!$A729)*('Fixed assets'!$P$2:$P$1000=Costs!$A729)*('Fixed assets'!$R$2:$R$1000))-SUMPRODUCT(('Fixed assets'!$Q$2:$Q$1000=Costs!W$705)*('Fixed assets'!$U$2:$U$1000>Costs!$A729)*('Fixed assets'!$P$2:$P$1000=Costs!$A729)*('Fixed assets'!$S$2:$S$1000))","v":0},{"$f":"X641+SUMPRODUCT(('Fixed assets'!$Q$2:$Q$1000=Costs!X$705)*('Fixed assets'!$U$2:$U$1000>Costs!$A729)*('Fixed assets'!$P$2:$P$1000=Costs!$A729)*('Fixed assets'!$R$2:$R$1000))-SUMPRODUCT(('Fixed assets'!$Q$2:$Q$1000=Costs!X$705)*('Fixed assets'!$U$2:$U$1000>Costs!$A729)*('Fixed assets'!$P$2:$P$1000=Costs!$A729)*('Fixed assets'!$S$2:$S$1000))","v":0},{"$f":"Y641+SUMPRODUCT(('Fixed assets'!$Q$2:$Q$1000=Costs!Y$705)*('Fixed assets'!$U$2:$U$1000>Costs!$A729)*('Fixed assets'!$P$2:$P$1000=Costs!$A729)*('Fixed assets'!$R$2:$R$1000))-SUMPRODUCT(('Fixed assets'!$Q$2:$Q$1000=Costs!Y$705)*('Fixed assets'!$U$2:$U$1000>Costs!$A729)*('Fixed assets'!$P$2:$P$1000=Costs!$A729)*('Fixed assets'!$S$2:$S$1000))","v":0},{"$f":"Z641+SUMPRODUCT(('Fixed assets'!$Q$2:$Q$1000=Costs!Z$705)*('Fixed assets'!$U$2:$U$1000>Costs!$A729)*('Fixed assets'!$P$2:$P$1000=Costs!$A729)*('Fixed assets'!$R$2:$R$1000))-SUMPRODUCT(('Fixed assets'!$Q$2:$Q$1000=Costs!Z$705)*('Fixed assets'!$U$2:$U$1000>Costs!$A729)*('Fixed assets'!$P$2:$P$1000=Costs!$A729)*('Fixed assets'!$S$2:$S$1000))","v":0},{"$f":"AA641+SUMPRODUCT(('Fixed assets'!$Q$2:$Q$1000=Costs!AA$705)*('Fixed assets'!$U$2:$U$1000>Costs!$A729)*('Fixed assets'!$P$2:$P$1000=Costs!$A729)*('Fixed assets'!$R$2:$R$1000))-SUMPRODUCT(('Fixed assets'!$Q$2:$Q$1000=Costs!AA$705)*('Fixed assets'!$U$2:$U$1000>Costs!$A729)*('Fixed assets'!$P$2:$P$1000=Costs!$A729)*('Fixed assets'!$S$2:$S$1000))","v":0},{"$f":"AB641+SUMPRODUCT(('Fixed assets'!$Q$2:$Q$1000=Costs!AB$705)*('Fixed assets'!$U$2:$U$1000>Costs!$A729)*('Fixed assets'!$P$2:$P$1000=Costs!$A729)*('Fixed assets'!$R$2:$R$1000))-SUMPRODUCT(('Fixed assets'!$Q$2:$Q$1000=Costs!AB$705)*('Fixed assets'!$U$2:$U$1000>Costs!$A729)*('Fixed assets'!$P$2:$P$1000=Costs!$A729)*('Fixed assets'!$S$2:$S$1000))","v":0},{"$f":"AC641+SUMPRODUCT(('Fixed assets'!$Q$2:$Q$1000=Costs!AC$705)*('Fixed assets'!$U$2:$U$1000>Costs!$A729)*('Fixed assets'!$P$2:$P$1000=Costs!$A729)*('Fixed assets'!$R$2:$R$1000))-SUMPRODUCT(('Fixed assets'!$Q$2:$Q$1000=Costs!AC$705)*('Fixed assets'!$U$2:$U$1000>Costs!$A729)*('Fixed assets'!$P$2:$P$1000=Costs!$A729)*('Fixed assets'!$S$2:$S$1000))","v":0},{"$f":"AD641+SUMPRODUCT(('Fixed assets'!$Q$2:$Q$1000=Costs!AD$705)*('Fixed assets'!$U$2:$U$1000>Costs!$A729)*('Fixed assets'!$P$2:$P$1000=Costs!$A729)*('Fixed assets'!$R$2:$R$1000))-SUMPRODUCT(('Fixed assets'!$Q$2:$Q$1000=Costs!AD$705)*('Fixed assets'!$U$2:$U$1000>Costs!$A729)*('Fixed assets'!$P$2:$P$1000=Costs!$A729)*('Fixed assets'!$S$2:$S$1000))","v":0},{"$f":"AE641+SUMPRODUCT(('Fixed assets'!$Q$2:$Q$1000=Costs!AE$705)*('Fixed assets'!$U$2:$U$1000>Costs!$A729)*('Fixed assets'!$P$2:$P$1000=Costs!$A729)*('Fixed assets'!$R$2:$R$1000))-SUMPRODUCT(('Fixed assets'!$Q$2:$Q$1000=Costs!AE$705)*('Fixed assets'!$U$2:$U$1000>Costs!$A729)*('Fixed assets'!$P$2:$P$1000=Costs!$A729)*('Fixed assets'!$S$2:$S$1000))","v":0},{"$f":"AF641+SUMPRODUCT(('Fixed assets'!$Q$2:$Q$1000=Costs!AF$705)*('Fixed assets'!$U$2:$U$1000>Costs!$A729)*('Fixed assets'!$P$2:$P$1000=Costs!$A729)*('Fixed assets'!$R$2:$R$1000))-SUMPRODUCT(('Fixed assets'!$Q$2:$Q$1000=Costs!AF$705)*('Fixed assets'!$U$2:$U$1000>Costs!$A729)*('Fixed assets'!$P$2:$P$1000=Costs!$A729)*('Fixed assets'!$S$2:$S$1000))","v":0},{"$f":"AG641+SUMPRODUCT(('Fixed assets'!$Q$2:$Q$1000=Costs!AG$705)*('Fixed assets'!$U$2:$U$1000>Costs!$A729)*('Fixed assets'!$P$2:$P$1000=Costs!$A729)*('Fixed assets'!$R$2:$R$1000))-SUMPRODUCT(('Fixed assets'!$Q$2:$Q$1000=Costs!AG$705)*('Fixed assets'!$U$2:$U$1000>Costs!$A729)*('Fixed assets'!$P$2:$P$1000=Costs!$A729)*('Fixed assets'!$S$2:$S$1000))","v":0},{"$f":"AH641+SUMPRODUCT(('Fixed assets'!$Q$2:$Q$1000=Costs!AH$705)*('Fixed assets'!$U$2:$U$1000>Costs!$A729)*('Fixed assets'!$P$2:$P$1000=Costs!$A729)*('Fixed assets'!$R$2:$R$1000))-SUMPRODUCT(('Fixed assets'!$Q$2:$Q$1000=Costs!AH$705)*('Fixed assets'!$U$2:$U$1000>Costs!$A729)*('Fixed assets'!$P$2:$P$1000=Costs!$A729)*('Fixed assets'!$S$2:$S$1000))","v":0},{"$f":"AI641+SUMPRODUCT(('Fixed assets'!$Q$2:$Q$1000=Costs!AI$705)*('Fixed assets'!$U$2:$U$1000>Costs!$A729)*('Fixed assets'!$P$2:$P$1000=Costs!$A729)*('Fixed assets'!$R$2:$R$1000))-SUMPRODUCT(('Fixed assets'!$Q$2:$Q$1000=Costs!AI$705)*('Fixed assets'!$U$2:$U$1000>Costs!$A729)*('Fixed assets'!$P$2:$P$1000=Costs!$A729)*('Fixed assets'!$S$2:$S$1000))","v":0},{"$f":"AJ641+SUMPRODUCT(('Fixed assets'!$Q$2:$Q$1000=Costs!AJ$705)*('Fixed assets'!$U$2:$U$1000>Costs!$A729)*('Fixed assets'!$P$2:$P$1000=Costs!$A729)*('Fixed assets'!$R$2:$R$1000))-SUMPRODUCT(('Fixed assets'!$Q$2:$Q$1000=Costs!AJ$705)*('Fixed assets'!$U$2:$U$1000>Costs!$A729)*('Fixed assets'!$P$2:$P$1000=Costs!$A729)*('Fixed assets'!$S$2:$S$1000))","v":0},{"$f":"AK641+SUMPRODUCT(('Fixed assets'!$Q$2:$Q$1000=Costs!AK$705)*('Fixed assets'!$U$2:$U$1000>Costs!$A729)*('Fixed assets'!$P$2:$P$1000=Costs!$A729)*('Fixed assets'!$R$2:$R$1000))-SUMPRODUCT(('Fixed assets'!$Q$2:$Q$1000=Costs!AK$705)*('Fixed assets'!$U$2:$U$1000>Costs!$A729)*('Fixed assets'!$P$2:$P$1000=Costs!$A729)*('Fixed assets'!$S$2:$S$1000))","v":0},{"$f":"AL641+SUMPRODUCT(('Fixed assets'!$Q$2:$Q$1000=Costs!AL$705)*('Fixed assets'!$U$2:$U$1000>Costs!$A729)*('Fixed assets'!$P$2:$P$1000=Costs!$A729)*('Fixed assets'!$R$2:$R$1000))-SUMPRODUCT(('Fixed assets'!$Q$2:$Q$1000=Costs!AL$705)*('Fixed assets'!$U$2:$U$1000>Costs!$A729)*('Fixed assets'!$P$2:$P$1000=Costs!$A729)*('Fixed assets'!$S$2:$S$1000))","v":0},{"$f":"AM641+SUMPRODUCT(('Fixed assets'!$Q$2:$Q$1000=Costs!AM$705)*('Fixed assets'!$U$2:$U$1000>Costs!$A729)*('Fixed assets'!$P$2:$P$1000=Costs!$A729)*('Fixed assets'!$R$2:$R$1000))-SUMPRODUCT(('Fixed assets'!$Q$2:$Q$1000=Costs!AM$705)*('Fixed assets'!$U$2:$U$1000>Costs!$A729)*('Fixed assets'!$P$2:$P$1000=Costs!$A729)*('Fixed assets'!$S$2:$S$1000))","v":0},{"$f":"AN641+SUMPRODUCT(('Fixed assets'!$Q$2:$Q$1000=Costs!AN$705)*('Fixed assets'!$U$2:$U$1000>Costs!$A729)*('Fixed assets'!$P$2:$P$1000=Costs!$A729)*('Fixed assets'!$R$2:$R$1000))-SUMPRODUCT(('Fixed assets'!$Q$2:$Q$1000=Costs!AN$705)*('Fixed assets'!$U$2:$U$1000>Costs!$A729)*('Fixed assets'!$P$2:$P$1000=Costs!$A729)*('Fixed assets'!$S$2:$S$1000))","v":0},{"$f":"AO641+SUMPRODUCT(('Fixed assets'!$Q$2:$Q$1000=Costs!AO$705)*('Fixed assets'!$U$2:$U$1000>Costs!$A729)*('Fixed assets'!$P$2:$P$1000=Costs!$A729)*('Fixed assets'!$R$2:$R$1000))-SUMPRODUCT(('Fixed assets'!$Q$2:$Q$1000=Costs!AO$705)*('Fixed assets'!$U$2:$U$1000>Costs!$A729)*('Fixed assets'!$P$2:$P$1000=Costs!$A729)*('Fixed assets'!$S$2:$S$1000))","v":0},{"$f":"AP641+SUMPRODUCT(('Fixed assets'!$Q$2:$Q$1000=Costs!AP$705)*('Fixed assets'!$U$2:$U$1000>Costs!$A729)*('Fixed assets'!$P$2:$P$1000=Costs!$A729)*('Fixed assets'!$R$2:$R$1000))-SUMPRODUCT(('Fixed assets'!$Q$2:$Q$1000=Costs!AP$705)*('Fixed assets'!$U$2:$U$1000>Costs!$A729)*('Fixed assets'!$P$2:$P$1000=Costs!$A729)*('Fixed assets'!$S$2:$S$1000))","v":0},{"$f":"AQ641+SUMPRODUCT(('Fixed assets'!$Q$2:$Q$1000=Costs!AQ$705)*('Fixed assets'!$U$2:$U$1000>Costs!$A729)*('Fixed assets'!$P$2:$P$1000=Costs!$A729)*('Fixed assets'!$R$2:$R$1000))-SUMPRODUCT(('Fixed assets'!$Q$2:$Q$1000=Costs!AQ$705)*('Fixed assets'!$U$2:$U$1000>Costs!$A729)*('Fixed assets'!$P$2:$P$1000=Costs!$A729)*('Fixed assets'!$S$2:$S$1000))","v":0}]
[2039,0,{"$f":"C642+SUMPRODUCT(('Fixed assets'!$Q$2:$Q$1000=Costs!C$705)*('Fixed assets'!$U$2:$U$1000>Costs!$A730)*('Fixed assets'!$P$2:$P$1000=Costs!$A730)*('Fixed assets'!$R$2:$R$1000))-SUMPRODUCT(('Fixed assets'!$Q$2:$Q$1000=Costs!C$705)*('Fixed assets'!$U$2:$U$1000>Costs!$A730)*('Fixed assets'!$P$2:$P$1000=Costs!$A730)*('Fixed assets'!$S$2:$S$1000))","v":0},{"$f":"D642+SUMPRODUCT(('Fixed assets'!$Q$2:$Q$1000=Costs!D$705)*('Fixed assets'!$U$2:$U$1000>Costs!$A730)*('Fixed assets'!$P$2:$P$1000=Costs!$A730)*('Fixed assets'!$R$2:$R$1000))-SUMPRODUCT(('Fixed assets'!$Q$2:$Q$1000=Costs!D$705)*('Fixed assets'!$U$2:$U$1000>Costs!$A730)*('Fixed assets'!$P$2:$P$1000=Costs!$A730)*('Fixed assets'!$S$2:$S$1000))","v":0},{"$f":"E642+SUMPRODUCT(('Fixed assets'!$Q$2:$Q$1000=Costs!E$705)*('Fixed assets'!$U$2:$U$1000>Costs!$A730)*('Fixed assets'!$P$2:$P$1000=Costs!$A730)*('Fixed assets'!$R$2:$R$1000))-SUMPRODUCT(('Fixed assets'!$Q$2:$Q$1000=Costs!E$705)*('Fixed assets'!$U$2:$U$1000>Costs!$A730)*('Fixed assets'!$P$2:$P$1000=Costs!$A730)*('Fixed assets'!$S$2:$S$1000))","v":0},{"$f":"F642+SUMPRODUCT(('Fixed assets'!$Q$2:$Q$1000=Costs!F$705)*('Fixed assets'!$U$2:$U$1000>Costs!$A730)*('Fixed assets'!$P$2:$P$1000=Costs!$A730)*('Fixed assets'!$R$2:$R$1000))-SUMPRODUCT(('Fixed assets'!$Q$2:$Q$1000=Costs!F$705)*('Fixed assets'!$U$2:$U$1000>Costs!$A730)*('Fixed assets'!$P$2:$P$1000=Costs!$A730)*('Fixed assets'!$S$2:$S$1000))","v":0},{"$f":"G642+SUMPRODUCT(('Fixed assets'!$Q$2:$Q$1000=Costs!G$705)*('Fixed assets'!$U$2:$U$1000>Costs!$A730)*('Fixed assets'!$P$2:$P$1000=Costs!$A730)*('Fixed assets'!$R$2:$R$1000))-SUMPRODUCT(('Fixed assets'!$Q$2:$Q$1000=Costs!G$705)*('Fixed assets'!$U$2:$U$1000>Costs!$A730)*('Fixed assets'!$P$2:$P$1000=Costs!$A730)*('Fixed assets'!$S$2:$S$1000))","v":0},{"$f":"H642+SUMPRODUCT(('Fixed assets'!$Q$2:$Q$1000=Costs!H$705)*('Fixed assets'!$U$2:$U$1000>Costs!$A730)*('Fixed assets'!$P$2:$P$1000=Costs!$A730)*('Fixed assets'!$R$2:$R$1000))-SUMPRODUCT(('Fixed assets'!$Q$2:$Q$1000=Costs!H$705)*('Fixed assets'!$U$2:$U$1000>Costs!$A730)*('Fixed assets'!$P$2:$P$1000=Costs!$A730)*('Fixed assets'!$S$2:$S$1000))","v":0},{"$f":"I642+SUMPRODUCT(('Fixed assets'!$Q$2:$Q$1000=Costs!I$705)*('Fixed assets'!$U$2:$U$1000>Costs!$A730)*('Fixed assets'!$P$2:$P$1000=Costs!$A730)*('Fixed assets'!$R$2:$R$1000))-SUMPRODUCT(('Fixed assets'!$Q$2:$Q$1000=Costs!I$705)*('Fixed assets'!$U$2:$U$1000>Costs!$A730)*('Fixed assets'!$P$2:$P$1000=Costs!$A730)*('Fixed assets'!$S$2:$S$1000))","v":0},{"$f":"J642+SUMPRODUCT(('Fixed assets'!$Q$2:$Q$1000=Costs!J$705)*('Fixed assets'!$U$2:$U$1000>Costs!$A730)*('Fixed assets'!$P$2:$P$1000=Costs!$A730)*('Fixed assets'!$R$2:$R$1000))-SUMPRODUCT(('Fixed assets'!$Q$2:$Q$1000=Costs!J$705)*('Fixed assets'!$U$2:$U$1000>Costs!$A730)*('Fixed assets'!$P$2:$P$1000=Costs!$A730)*('Fixed assets'!$S$2:$S$1000))","v":0},{"$f":"K642+SUMPRODUCT(('Fixed assets'!$Q$2:$Q$1000=Costs!K$705)*('Fixed assets'!$U$2:$U$1000>Costs!$A730)*('Fixed assets'!$P$2:$P$1000=Costs!$A730)*('Fixed assets'!$R$2:$R$1000))-SUMPRODUCT(('Fixed assets'!$Q$2:$Q$1000=Costs!K$705)*('Fixed assets'!$U$2:$U$1000>Costs!$A730)*('Fixed assets'!$P$2:$P$1000=Costs!$A730)*('Fixed assets'!$S$2:$S$1000))","v":0},{"$f":"L642+SUMPRODUCT(('Fixed assets'!$Q$2:$Q$1000=Costs!L$705)*('Fixed assets'!$U$2:$U$1000>Costs!$A730)*('Fixed assets'!$P$2:$P$1000=Costs!$A730)*('Fixed assets'!$R$2:$R$1000))-SUMPRODUCT(('Fixed assets'!$Q$2:$Q$1000=Costs!L$705)*('Fixed assets'!$U$2:$U$1000>Costs!$A730)*('Fixed assets'!$P$2:$P$1000=Costs!$A730)*('Fixed assets'!$S$2:$S$1000))","v":0},{"$f":"M642+SUMPRODUCT(('Fixed assets'!$Q$2:$Q$1000=Costs!M$705)*('Fixed assets'!$U$2:$U$1000>Costs!$A730)*('Fixed assets'!$P$2:$P$1000=Costs!$A730)*('Fixed assets'!$R$2:$R$1000))-SUMPRODUCT(('Fixed assets'!$Q$2:$Q$1000=Costs!M$705)*('Fixed assets'!$U$2:$U$1000>Costs!$A730)*('Fixed assets'!$P$2:$P$1000=Costs!$A730)*('Fixed assets'!$S$2:$S$1000))","v":0},{"$f":"N642+SUMPRODUCT(('Fixed assets'!$Q$2:$Q$1000=Costs!N$705)*('Fixed assets'!$U$2:$U$1000>Costs!$A730)*('Fixed assets'!$P$2:$P$1000=Costs!$A730)*('Fixed assets'!$R$2:$R$1000))-SUMPRODUCT(('Fixed assets'!$Q$2:$Q$1000=Costs!N$705)*('Fixed assets'!$U$2:$U$1000>Costs!$A730)*('Fixed assets'!$P$2:$P$1000=Costs!$A730)*('Fixed assets'!$S$2:$S$1000))","v":0},{"$f":"O642+SUMPRODUCT(('Fixed assets'!$Q$2:$Q$1000=Costs!O$705)*('Fixed assets'!$U$2:$U$1000>Costs!$A730)*('Fixed assets'!$P$2:$P$1000=Costs!$A730)*('Fixed assets'!$R$2:$R$1000))-SUMPRODUCT(('Fixed assets'!$Q$2:$Q$1000=Costs!O$705)*('Fixed assets'!$U$2:$U$1000>Costs!$A730)*('Fixed assets'!$P$2:$P$1000=Costs!$A730)*('Fixed assets'!$S$2:$S$1000))","v":0},{"$f":"P642+SUMPRODUCT(('Fixed assets'!$Q$2:$Q$1000=Costs!P$705)*('Fixed assets'!$U$2:$U$1000>Costs!$A730)*('Fixed assets'!$P$2:$P$1000=Costs!$A730)*('Fixed assets'!$R$2:$R$1000))-SUMPRODUCT(('Fixed assets'!$Q$2:$Q$1000=Costs!P$705)*('Fixed assets'!$U$2:$U$1000>Costs!$A730)*('Fixed assets'!$P$2:$P$1000=Costs!$A730)*('Fixed assets'!$S$2:$S$1000))","v":0},{"$f":"Q642+SUMPRODUCT(('Fixed assets'!$Q$2:$Q$1000=Costs!Q$705)*('Fixed assets'!$U$2:$U$1000>Costs!$A730)*('Fixed assets'!$P$2:$P$1000=Costs!$A730)*('Fixed assets'!$R$2:$R$1000))-SUMPRODUCT(('Fixed assets'!$Q$2:$Q$1000=Costs!Q$705)*('Fixed assets'!$U$2:$U$1000>Costs!$A730)*('Fixed assets'!$P$2:$P$1000=Costs!$A730)*('Fixed assets'!$S$2:$S$1000))","v":0},{"$f":"R642+SUMPRODUCT(('Fixed assets'!$Q$2:$Q$1000=Costs!R$705)*('Fixed assets'!$U$2:$U$1000>Costs!$A730)*('Fixed assets'!$P$2:$P$1000=Costs!$A730)*('Fixed assets'!$R$2:$R$1000))-SUMPRODUCT(('Fixed assets'!$Q$2:$Q$1000=Costs!R$705)*('Fixed assets'!$U$2:$U$1000>Costs!$A730)*('Fixed assets'!$P$2:$P$1000=Costs!$A730)*('Fixed assets'!$S$2:$S$1000))","v":0},{"$f":"S642+SUMPRODUCT(('Fixed assets'!$Q$2:$Q$1000=Costs!S$705)*('Fixed assets'!$U$2:$U$1000>Costs!$A730)*('Fixed assets'!$P$2:$P$1000=Costs!$A730)*('Fixed assets'!$R$2:$R$1000))-SUMPRODUCT(('Fixed assets'!$Q$2:$Q$1000=Costs!S$705)*('Fixed assets'!$U$2:$U$1000>Costs!$A730)*('Fixed assets'!$P$2:$P$1000=Costs!$A730)*('Fixed assets'!$S$2:$S$1000))","v":0},{"$f":"T642+SUMPRODUCT(('Fixed assets'!$Q$2:$Q$1000=Costs!T$705)*('Fixed assets'!$U$2:$U$1000>Costs!$A730)*('Fixed assets'!$P$2:$P$1000=Costs!$A730)*('Fixed assets'!$R$2:$R$1000))-SUMPRODUCT(('Fixed assets'!$Q$2:$Q$1000=Costs!T$705)*('Fixed assets'!$U$2:$U$1000>Costs!$A730)*('Fixed assets'!$P$2:$P$1000=Costs!$A730)*('Fixed assets'!$S$2:$S$1000))","v":0},{"$f":"U642+SUMPRODUCT(('Fixed assets'!$Q$2:$Q$1000=Costs!U$705)*('Fixed assets'!$U$2:$U$1000>Costs!$A730)*('Fixed assets'!$P$2:$P$1000=Costs!$A730)*('Fixed assets'!$R$2:$R$1000))-SUMPRODUCT(('Fixed assets'!$Q$2:$Q$1000=Costs!U$705)*('Fixed assets'!$U$2:$U$1000>Costs!$A730)*('Fixed assets'!$P$2:$P$1000=Costs!$A730)*('Fixed assets'!$S$2:$S$1000))","v":0},{"$f":"V642+SUMPRODUCT(('Fixed assets'!$Q$2:$Q$1000=Costs!V$705)*('Fixed assets'!$U$2:$U$1000>Costs!$A730)*('Fixed assets'!$P$2:$P$1000=Costs!$A730)*('Fixed assets'!$R$2:$R$1000))-SUMPRODUCT(('Fixed assets'!$Q$2:$Q$1000=Costs!V$705)*('Fixed assets'!$U$2:$U$1000>Costs!$A730)*('Fixed assets'!$P$2:$P$1000=Costs!$A730)*('Fixed assets'!$S$2:$S$1000))","v":0},{"$f":"W642+SUMPRODUCT(('Fixed assets'!$Q$2:$Q$1000=Costs!W$705)*('Fixed assets'!$U$2:$U$1000>Costs!$A730)*('Fixed assets'!$P$2:$P$1000=Costs!$A730)*('Fixed assets'!$R$2:$R$1000))-SUMPRODUCT(('Fixed assets'!$Q$2:$Q$1000=Costs!W$705)*('Fixed assets'!$U$2:$U$1000>Costs!$A730)*('Fixed assets'!$P$2:$P$1000=Costs!$A730)*('Fixed assets'!$S$2:$S$1000))","v":0},{"$f":"X642+SUMPRODUCT(('Fixed assets'!$Q$2:$Q$1000=Costs!X$705)*('Fixed assets'!$U$2:$U$1000>Costs!$A730)*('Fixed assets'!$P$2:$P$1000=Costs!$A730)*('Fixed assets'!$R$2:$R$1000))-SUMPRODUCT(('Fixed assets'!$Q$2:$Q$1000=Costs!X$705)*('Fixed assets'!$U$2:$U$1000>Costs!$A730)*('Fixed assets'!$P$2:$P$1000=Costs!$A730)*('Fixed assets'!$S$2:$S$1000))","v":0},{"$f":"Y642+SUMPRODUCT(('Fixed assets'!$Q$2:$Q$1000=Costs!Y$705)*('Fixed assets'!$U$2:$U$1000>Costs!$A730)*('Fixed assets'!$P$2:$P$1000=Costs!$A730)*('Fixed assets'!$R$2:$R$1000))-SUMPRODUCT(('Fixed assets'!$Q$2:$Q$1000=Costs!Y$705)*('Fixed assets'!$U$2:$U$1000>Costs!$A730)*('Fixed assets'!$P$2:$P$1000=Costs!$A730)*('Fixed assets'!$S$2:$S$1000))","v":0},{"$f":"Z642+SUMPRODUCT(('Fixed assets'!$Q$2:$Q$1000=Costs!Z$705)*('Fixed assets'!$U$2:$U$1000>Costs!$A730)*('Fixed assets'!$P$2:$P$1000=Costs!$A730)*('Fixed assets'!$R$2:$R$1000))-SUMPRODUCT(('Fixed assets'!$Q$2:$Q$1000=Costs!Z$705)*('Fixed assets'!$U$2:$U$1000>Costs!$A730)*('Fixed assets'!$P$2:$P$1000=Costs!$A730)*('Fixed assets'!$S$2:$S$1000))","v":0},{"$f":"AA642+SUMPRODUCT(('Fixed assets'!$Q$2:$Q$1000=Costs!AA$705)*('Fixed assets'!$U$2:$U$1000>Costs!$A730)*('Fixed assets'!$P$2:$P$1000=Costs!$A730)*('Fixed assets'!$R$2:$R$1000))-SUMPRODUCT(('Fixed assets'!$Q$2:$Q$1000=Costs!AA$705)*('Fixed assets'!$U$2:$U$1000>Costs!$A730)*('Fixed assets'!$P$2:$P$1000=Costs!$A730)*('Fixed assets'!$S$2:$S$1000))","v":0},{"$f":"AB642+SUMPRODUCT(('Fixed assets'!$Q$2:$Q$1000=Costs!AB$705)*('Fixed assets'!$U$2:$U$1000>Costs!$A730)*('Fixed assets'!$P$2:$P$1000=Costs!$A730)*('Fixed assets'!$R$2:$R$1000))-SUMPRODUCT(('Fixed assets'!$Q$2:$Q$1000=Costs!AB$705)*('Fixed assets'!$U$2:$U$1000>Costs!$A730)*('Fixed assets'!$P$2:$P$1000=Costs!$A730)*('Fixed assets'!$S$2:$S$1000))","v":0},{"$f":"AC642+SUMPRODUCT(('Fixed assets'!$Q$2:$Q$1000=Costs!AC$705)*('Fixed assets'!$U$2:$U$1000>Costs!$A730)*('Fixed assets'!$P$2:$P$1000=Costs!$A730)*('Fixed assets'!$R$2:$R$1000))-SUMPRODUCT(('Fixed assets'!$Q$2:$Q$1000=Costs!AC$705)*('Fixed assets'!$U$2:$U$1000>Costs!$A730)*('Fixed assets'!$P$2:$P$1000=Costs!$A730)*('Fixed assets'!$S$2:$S$1000))","v":0},{"$f":"AD642+SUMPRODUCT(('Fixed assets'!$Q$2:$Q$1000=Costs!AD$705)*('Fixed assets'!$U$2:$U$1000>Costs!$A730)*('Fixed assets'!$P$2:$P$1000=Costs!$A730)*('Fixed assets'!$R$2:$R$1000))-SUMPRODUCT(('Fixed assets'!$Q$2:$Q$1000=Costs!AD$705)*('Fixed assets'!$U$2:$U$1000>Costs!$A730)*('Fixed assets'!$P$2:$P$1000=Costs!$A730)*('Fixed assets'!$S$2:$S$1000))","v":0},{"$f":"AE642+SUMPRODUCT(('Fixed assets'!$Q$2:$Q$1000=Costs!AE$705)*('Fixed assets'!$U$2:$U$1000>Costs!$A730)*('Fixed assets'!$P$2:$P$1000=Costs!$A730)*('Fixed assets'!$R$2:$R$1000))-SUMPRODUCT(('Fixed assets'!$Q$2:$Q$1000=Costs!AE$705)*('Fixed assets'!$U$2:$U$1000>Costs!$A730)*('Fixed assets'!$P$2:$P$1000=Costs!$A730)*('Fixed assets'!$S$2:$S$1000))","v":0},{"$f":"AF642+SUMPRODUCT(('Fixed assets'!$Q$2:$Q$1000=Costs!AF$705)*('Fixed assets'!$U$2:$U$1000>Costs!$A730)*('Fixed assets'!$P$2:$P$1000=Costs!$A730)*('Fixed assets'!$R$2:$R$1000))-SUMPRODUCT(('Fixed assets'!$Q$2:$Q$1000=Costs!AF$705)*('Fixed assets'!$U$2:$U$1000>Costs!$A730)*('Fixed assets'!$P$2:$P$1000=Costs!$A730)*('Fixed assets'!$S$2:$S$1000))","v":0},{"$f":"AG642+SUMPRODUCT(('Fixed assets'!$Q$2:$Q$1000=Costs!AG$705)*('Fixed assets'!$U$2:$U$1000>Costs!$A730)*('Fixed assets'!$P$2:$P$1000=Costs!$A730)*('Fixed assets'!$R$2:$R$1000))-SUMPRODUCT(('Fixed assets'!$Q$2:$Q$1000=Costs!AG$705)*('Fixed assets'!$U$2:$U$1000>Costs!$A730)*('Fixed assets'!$P$2:$P$1000=Costs!$A730)*('Fixed assets'!$S$2:$S$1000))","v":0},{"$f":"AH642+SUMPRODUCT(('Fixed assets'!$Q$2:$Q$1000=Costs!AH$705)*('Fixed assets'!$U$2:$U$1000>Costs!$A730)*('Fixed assets'!$P$2:$P$1000=Costs!$A730)*('Fixed assets'!$R$2:$R$1000))-SUMPRODUCT(('Fixed assets'!$Q$2:$Q$1000=Costs!AH$705)*('Fixed assets'!$U$2:$U$1000>Costs!$A730)*('Fixed assets'!$P$2:$P$1000=Costs!$A730)*('Fixed assets'!$S$2:$S$1000))","v":0},{"$f":"AI642+SUMPRODUCT(('Fixed assets'!$Q$2:$Q$1000=Costs!AI$705)*('Fixed assets'!$U$2:$U$1000>Costs!$A730)*('Fixed assets'!$P$2:$P$1000=Costs!$A730)*('Fixed assets'!$R$2:$R$1000))-SUMPRODUCT(('Fixed assets'!$Q$2:$Q$1000=Costs!AI$705)*('Fixed assets'!$U$2:$U$1000>Costs!$A730)*('Fixed assets'!$P$2:$P$1000=Costs!$A730)*('Fixed assets'!$S$2:$S$1000))","v":0},{"$f":"AJ642+SUMPRODUCT(('Fixed assets'!$Q$2:$Q$1000=Costs!AJ$705)*('Fixed assets'!$U$2:$U$1000>Costs!$A730)*('Fixed assets'!$P$2:$P$1000=Costs!$A730)*('Fixed assets'!$R$2:$R$1000))-SUMPRODUCT(('Fixed assets'!$Q$2:$Q$1000=Costs!AJ$705)*('Fixed assets'!$U$2:$U$1000>Costs!$A730)*('Fixed assets'!$P$2:$P$1000=Costs!$A730)*('Fixed assets'!$S$2:$S$1000))","v":0},{"$f":"AK642+SUMPRODUCT(('Fixed assets'!$Q$2:$Q$1000=Costs!AK$705)*('Fixed assets'!$U$2:$U$1000>Costs!$A730)*('Fixed assets'!$P$2:$P$1000=Costs!$A730)*('Fixed assets'!$R$2:$R$1000))-SUMPRODUCT(('Fixed assets'!$Q$2:$Q$1000=Costs!AK$705)*('Fixed assets'!$U$2:$U$1000>Costs!$A730)*('Fixed assets'!$P$2:$P$1000=Costs!$A730)*('Fixed assets'!$S$2:$S$1000))","v":0},{"$f":"AL642+SUMPRODUCT(('Fixed assets'!$Q$2:$Q$1000=Costs!AL$705)*('Fixed assets'!$U$2:$U$1000>Costs!$A730)*('Fixed assets'!$P$2:$P$1000=Costs!$A730)*('Fixed assets'!$R$2:$R$1000))-SUMPRODUCT(('Fixed assets'!$Q$2:$Q$1000=Costs!AL$705)*('Fixed assets'!$U$2:$U$1000>Costs!$A730)*('Fixed assets'!$P$2:$P$1000=Costs!$A730)*('Fixed assets'!$S$2:$S$1000))","v":0},{"$f":"AM642+SUMPRODUCT(('Fixed assets'!$Q$2:$Q$1000=Costs!AM$705)*('Fixed assets'!$U$2:$U$1000>Costs!$A730)*('Fixed assets'!$P$2:$P$1000=Costs!$A730)*('Fixed assets'!$R$2:$R$1000))-SUMPRODUCT(('Fixed assets'!$Q$2:$Q$1000=Costs!AM$705)*('Fixed assets'!$U$2:$U$1000>Costs!$A730)*('Fixed assets'!$P$2:$P$1000=Costs!$A730)*('Fixed assets'!$S$2:$S$1000))","v":0},{"$f":"AN642+SUMPRODUCT(('Fixed assets'!$Q$2:$Q$1000=Costs!AN$705)*('Fixed assets'!$U$2:$U$1000>Costs!$A730)*('Fixed assets'!$P$2:$P$1000=Costs!$A730)*('Fixed assets'!$R$2:$R$1000))-SUMPRODUCT(('Fixed assets'!$Q$2:$Q$1000=Costs!AN$705)*('Fixed assets'!$U$2:$U$1000>Costs!$A730)*('Fixed assets'!$P$2:$P$1000=Costs!$A730)*('Fixed assets'!$S$2:$S$1000))","v":0},{"$f":"AO642+SUMPRODUCT(('Fixed assets'!$Q$2:$Q$1000=Costs!AO$705)*('Fixed assets'!$U$2:$U$1000>Costs!$A730)*('Fixed assets'!$P$2:$P$1000=Costs!$A730)*('Fixed assets'!$R$2:$R$1000))-SUMPRODUCT(('Fixed assets'!$Q$2:$Q$1000=Costs!AO$705)*('Fixed assets'!$U$2:$U$1000>Costs!$A730)*('Fixed assets'!$P$2:$P$1000=Costs!$A730)*('Fixed assets'!$S$2:$S$1000))","v":0},{"$f":"AP642+SUMPRODUCT(('Fixed assets'!$Q$2:$Q$1000=Costs!AP$705)*('Fixed assets'!$U$2:$U$1000>Costs!$A730)*('Fixed assets'!$P$2:$P$1000=Costs!$A730)*('Fixed assets'!$R$2:$R$1000))-SUMPRODUCT(('Fixed assets'!$Q$2:$Q$1000=Costs!AP$705)*('Fixed assets'!$U$2:$U$1000>Costs!$A730)*('Fixed assets'!$P$2:$P$1000=Costs!$A730)*('Fixed assets'!$S$2:$S$1000))","v":0},{"$f":"AQ642+SUMPRODUCT(('Fixed assets'!$Q$2:$Q$1000=Costs!AQ$705)*('Fixed assets'!$U$2:$U$1000>Costs!$A730)*('Fixed assets'!$P$2:$P$1000=Costs!$A730)*('Fixed assets'!$R$2:$R$1000))-SUMPRODUCT(('Fixed assets'!$Q$2:$Q$1000=Costs!AQ$705)*('Fixed assets'!$U$2:$U$1000>Costs!$A730)*('Fixed assets'!$P$2:$P$1000=Costs!$A730)*('Fixed assets'!$S$2:$S$1000))","v":0}]
[2040,0,{"$f":"C643+SUMPRODUCT(('Fixed assets'!$Q$2:$Q$1000=Costs!C$705)*('Fixed assets'!$U$2:$U$1000>Costs!$A731)*('Fixed assets'!$P$2:$P$1000=Costs!$A731)*('Fixed assets'!$R$2:$R$1000))-SUMPRODUCT(('Fixed assets'!$Q$2:$Q$1000=Costs!C$705)*('Fixed assets'!$U$2:$U$1000>Costs!$A731)*('Fixed assets'!$P$2:$P$1000=Costs!$A731)*('Fixed assets'!$S$2:$S$1000))","v":0},{"$f":"D643+SUMPRODUCT(('Fixed assets'!$Q$2:$Q$1000=Costs!D$705)*('Fixed assets'!$U$2:$U$1000>Costs!$A731)*('Fixed assets'!$P$2:$P$1000=Costs!$A731)*('Fixed assets'!$R$2:$R$1000))-SUMPRODUCT(('Fixed assets'!$Q$2:$Q$1000=Costs!D$705)*('Fixed assets'!$U$2:$U$1000>Costs!$A731)*('Fixed assets'!$P$2:$P$1000=Costs!$A731)*('Fixed assets'!$S$2:$S$1000))","v":0},{"$f":"E643+SUMPRODUCT(('Fixed assets'!$Q$2:$Q$1000=Costs!E$705)*('Fixed assets'!$U$2:$U$1000>Costs!$A731)*('Fixed assets'!$P$2:$P$1000=Costs!$A731)*('Fixed assets'!$R$2:$R$1000))-SUMPRODUCT(('Fixed assets'!$Q$2:$Q$1000=Costs!E$705)*('Fixed assets'!$U$2:$U$1000>Costs!$A731)*('Fixed assets'!$P$2:$P$1000=Costs!$A731)*('Fixed assets'!$S$2:$S$1000))","v":0},{"$f":"F643+SUMPRODUCT(('Fixed assets'!$Q$2:$Q$1000=Costs!F$705)*('Fixed assets'!$U$2:$U$1000>Costs!$A731)*('Fixed assets'!$P$2:$P$1000=Costs!$A731)*('Fixed assets'!$R$2:$R$1000))-SUMPRODUCT(('Fixed assets'!$Q$2:$Q$1000=Costs!F$705)*('Fixed assets'!$U$2:$U$1000>Costs!$A731)*('Fixed assets'!$P$2:$P$1000=Costs!$A731)*('Fixed assets'!$S$2:$S$1000))","v":0},{"$f":"G643+SUMPRODUCT(('Fixed assets'!$Q$2:$Q$1000=Costs!G$705)*('Fixed assets'!$U$2:$U$1000>Costs!$A731)*('Fixed assets'!$P$2:$P$1000=Costs!$A731)*('Fixed assets'!$R$2:$R$1000))-SUMPRODUCT(('Fixed assets'!$Q$2:$Q$1000=Costs!G$705)*('Fixed assets'!$U$2:$U$1000>Costs!$A731)*('Fixed assets'!$P$2:$P$1000=Costs!$A731)*('Fixed assets'!$S$2:$S$1000))","v":0},{"$f":"H643+SUMPRODUCT(('Fixed assets'!$Q$2:$Q$1000=Costs!H$705)*('Fixed assets'!$U$2:$U$1000>Costs!$A731)*('Fixed assets'!$P$2:$P$1000=Costs!$A731)*('Fixed assets'!$R$2:$R$1000))-SUMPRODUCT(('Fixed assets'!$Q$2:$Q$1000=Costs!H$705)*('Fixed assets'!$U$2:$U$1000>Costs!$A731)*('Fixed assets'!$P$2:$P$1000=Costs!$A731)*('Fixed assets'!$S$2:$S$1000))","v":0},{"$f":"I643+SUMPRODUCT(('Fixed assets'!$Q$2:$Q$1000=Costs!I$705)*('Fixed assets'!$U$2:$U$1000>Costs!$A731)*('Fixed assets'!$P$2:$P$1000=Costs!$A731)*('Fixed assets'!$R$2:$R$1000))-SUMPRODUCT(('Fixed assets'!$Q$2:$Q$1000=Costs!I$705)*('Fixed assets'!$U$2:$U$1000>Costs!$A731)*('Fixed assets'!$P$2:$P$1000=Costs!$A731)*('Fixed assets'!$S$2:$S$1000))","v":0},{"$f":"J643+SUMPRODUCT(('Fixed assets'!$Q$2:$Q$1000=Costs!J$705)*('Fixed assets'!$U$2:$U$1000>Costs!$A731)*('Fixed assets'!$P$2:$P$1000=Costs!$A731)*('Fixed assets'!$R$2:$R$1000))-SUMPRODUCT(('Fixed assets'!$Q$2:$Q$1000=Costs!J$705)*('Fixed assets'!$U$2:$U$1000>Costs!$A731)*('Fixed assets'!$P$2:$P$1000=Costs!$A731)*('Fixed assets'!$S$2:$S$1000))","v":0},{"$f":"K643+SUMPRODUCT(('Fixed assets'!$Q$2:$Q$1000=Costs!K$705)*('Fixed assets'!$U$2:$U$1000>Costs!$A731)*('Fixed assets'!$P$2:$P$1000=Costs!$A731)*('Fixed assets'!$R$2:$R$1000))-SUMPRODUCT(('Fixed assets'!$Q$2:$Q$1000=Costs!K$705)*('Fixed assets'!$U$2:$U$1000>Costs!$A731)*('Fixed assets'!$P$2:$P$1000=Costs!$A731)*('Fixed assets'!$S$2:$S$1000))","v":0},{"$f":"L643+SUMPRODUCT(('Fixed assets'!$Q$2:$Q$1000=Costs!L$705)*('Fixed assets'!$U$2:$U$1000>Costs!$A731)*('Fixed assets'!$P$2:$P$1000=Costs!$A731)*('Fixed assets'!$R$2:$R$1000))-SUMPRODUCT(('Fixed assets'!$Q$2:$Q$1000=Costs!L$705)*('Fixed assets'!$U$2:$U$1000>Costs!$A731)*('Fixed assets'!$P$2:$P$1000=Costs!$A731)*('Fixed assets'!$S$2:$S$1000))","v":0},{"$f":"M643+SUMPRODUCT(('Fixed assets'!$Q$2:$Q$1000=Costs!M$705)*('Fixed assets'!$U$2:$U$1000>Costs!$A731)*('Fixed assets'!$P$2:$P$1000=Costs!$A731)*('Fixed assets'!$R$2:$R$1000))-SUMPRODUCT(('Fixed assets'!$Q$2:$Q$1000=Costs!M$705)*('Fixed assets'!$U$2:$U$1000>Costs!$A731)*('Fixed assets'!$P$2:$P$1000=Costs!$A731)*('Fixed assets'!$S$2:$S$1000))","v":0},{"$f":"N643+SUMPRODUCT(('Fixed assets'!$Q$2:$Q$1000=Costs!N$705)*('Fixed assets'!$U$2:$U$1000>Costs!$A731)*('Fixed assets'!$P$2:$P$1000=Costs!$A731)*('Fixed assets'!$R$2:$R$1000))-SUMPRODUCT(('Fixed assets'!$Q$2:$Q$1000=Costs!N$705)*('Fixed assets'!$U$2:$U$1000>Costs!$A731)*('Fixed assets'!$P$2:$P$1000=Costs!$A731)*('Fixed assets'!$S$2:$S$1000))","v":0},{"$f":"O643+SUMPRODUCT(('Fixed assets'!$Q$2:$Q$1000=Costs!O$705)*('Fixed assets'!$U$2:$U$1000>Costs!$A731)*('Fixed assets'!$P$2:$P$1000=Costs!$A731)*('Fixed assets'!$R$2:$R$1000))-SUMPRODUCT(('Fixed assets'!$Q$2:$Q$1000=Costs!O$705)*('Fixed assets'!$U$2:$U$1000>Costs!$A731)*('Fixed assets'!$P$2:$P$1000=Costs!$A731)*('Fixed assets'!$S$2:$S$1000))","v":0},{"$f":"P643+SUMPRODUCT(('Fixed assets'!$Q$2:$Q$1000=Costs!P$705)*('Fixed assets'!$U$2:$U$1000>Costs!$A731)*('Fixed assets'!$P$2:$P$1000=Costs!$A731)*('Fixed assets'!$R$2:$R$1000))-SUMPRODUCT(('Fixed assets'!$Q$2:$Q$1000=Costs!P$705)*('Fixed assets'!$U$2:$U$1000>Costs!$A731)*('Fixed assets'!$P$2:$P$1000=Costs!$A731)*('Fixed assets'!$S$2:$S$1000))","v":0},{"$f":"Q643+SUMPRODUCT(('Fixed assets'!$Q$2:$Q$1000=Costs!Q$705)*('Fixed assets'!$U$2:$U$1000>Costs!$A731)*('Fixed assets'!$P$2:$P$1000=Costs!$A731)*('Fixed assets'!$R$2:$R$1000))-SUMPRODUCT(('Fixed assets'!$Q$2:$Q$1000=Costs!Q$705)*('Fixed assets'!$U$2:$U$1000>Costs!$A731)*('Fixed assets'!$P$2:$P$1000=Costs!$A731)*('Fixed assets'!$S$2:$S$1000))","v":0},{"$f":"R643+SUMPRODUCT(('Fixed assets'!$Q$2:$Q$1000=Costs!R$705)*('Fixed assets'!$U$2:$U$1000>Costs!$A731)*('Fixed assets'!$P$2:$P$1000=Costs!$A731)*('Fixed assets'!$R$2:$R$1000))-SUMPRODUCT(('Fixed assets'!$Q$2:$Q$1000=Costs!R$705)*('Fixed assets'!$U$2:$U$1000>Costs!$A731)*('Fixed assets'!$P$2:$P$1000=Costs!$A731)*('Fixed assets'!$S$2:$S$1000))","v":0},{"$f":"S643+SUMPRODUCT(('Fixed assets'!$Q$2:$Q$1000=Costs!S$705)*('Fixed assets'!$U$2:$U$1000>Costs!$A731)*('Fixed assets'!$P$2:$P$1000=Costs!$A731)*('Fixed assets'!$R$2:$R$1000))-SUMPRODUCT(('Fixed assets'!$Q$2:$Q$1000=Costs!S$705)*('Fixed assets'!$U$2:$U$1000>Costs!$A731)*('Fixed assets'!$P$2:$P$1000=Costs!$A731)*('Fixed assets'!$S$2:$S$1000))","v":0},{"$f":"T643+SUMPRODUCT(('Fixed assets'!$Q$2:$Q$1000=Costs!T$705)*('Fixed assets'!$U$2:$U$1000>Costs!$A731)*('Fixed assets'!$P$2:$P$1000=Costs!$A731)*('Fixed assets'!$R$2:$R$1000))-SUMPRODUCT(('Fixed assets'!$Q$2:$Q$1000=Costs!T$705)*('Fixed assets'!$U$2:$U$1000>Costs!$A731)*('Fixed assets'!$P$2:$P$1000=Costs!$A731)*('Fixed assets'!$S$2:$S$1000))","v":0},{"$f":"U643+SUMPRODUCT(('Fixed assets'!$Q$2:$Q$1000=Costs!U$705)*('Fixed assets'!$U$2:$U$1000>Costs!$A731)*('Fixed assets'!$P$2:$P$1000=Costs!$A731)*('Fixed assets'!$R$2:$R$1000))-SUMPRODUCT(('Fixed assets'!$Q$2:$Q$1000=Costs!U$705)*('Fixed assets'!$U$2:$U$1000>Costs!$A731)*('Fixed assets'!$P$2:$P$1000=Costs!$A731)*('Fixed assets'!$S$2:$S$1000))","v":0},{"$f":"V643+SUMPRODUCT(('Fixed assets'!$Q$2:$Q$1000=Costs!V$705)*('Fixed assets'!$U$2:$U$1000>Costs!$A731)*('Fixed assets'!$P$2:$P$1000=Costs!$A731)*('Fixed assets'!$R$2:$R$1000))-SUMPRODUCT(('Fixed assets'!$Q$2:$Q$1000=Costs!V$705)*('Fixed assets'!$U$2:$U$1000>Costs!$A731)*('Fixed assets'!$P$2:$P$1000=Costs!$A731)*('Fixed assets'!$S$2:$S$1000))","v":0},{"$f":"W643+SUMPRODUCT(('Fixed assets'!$Q$2:$Q$1000=Costs!W$705)*('Fixed assets'!$U$2:$U$1000>Costs!$A731)*('Fixed assets'!$P$2:$P$1000=Costs!$A731)*('Fixed assets'!$R$2:$R$1000))-SUMPRODUCT(('Fixed assets'!$Q$2:$Q$1000=Costs!W$705)*('Fixed assets'!$U$2:$U$1000>Costs!$A731)*('Fixed assets'!$P$2:$P$1000=Costs!$A731)*('Fixed assets'!$S$2:$S$1000))","v":0},{"$f":"X643+SUMPRODUCT(('Fixed assets'!$Q$2:$Q$1000=Costs!X$705)*('Fixed assets'!$U$2:$U$1000>Costs!$A731)*('Fixed assets'!$P$2:$P$1000=Costs!$A731)*('Fixed assets'!$R$2:$R$1000))-SUMPRODUCT(('Fixed assets'!$Q$2:$Q$1000=Costs!X$705)*('Fixed assets'!$U$2:$U$1000>Costs!$A731)*('Fixed assets'!$P$2:$P$1000=Costs!$A731)*('Fixed assets'!$S$2:$S$1000))","v":0},{"$f":"Y643+SUMPRODUCT(('Fixed assets'!$Q$2:$Q$1000=Costs!Y$705)*('Fixed assets'!$U$2:$U$1000>Costs!$A731)*('Fixed assets'!$P$2:$P$1000=Costs!$A731)*('Fixed assets'!$R$2:$R$1000))-SUMPRODUCT(('Fixed assets'!$Q$2:$Q$1000=Costs!Y$705)*('Fixed assets'!$U$2:$U$1000>Costs!$A731)*('Fixed assets'!$P$2:$P$1000=Costs!$A731)*('Fixed assets'!$S$2:$S$1000))","v":0},{"$f":"Z643+SUMPRODUCT(('Fixed assets'!$Q$2:$Q$1000=Costs!Z$705)*('Fixed assets'!$U$2:$U$1000>Costs!$A731)*('Fixed assets'!$P$2:$P$1000=Costs!$A731)*('Fixed assets'!$R$2:$R$1000))-SUMPRODUCT(('Fixed assets'!$Q$2:$Q$1000=Costs!Z$705)*('Fixed assets'!$U$2:$U$1000>Costs!$A731)*('Fixed assets'!$P$2:$P$1000=Costs!$A731)*('Fixed assets'!$S$2:$S$1000))","v":0},{"$f":"AA643+SUMPRODUCT(('Fixed assets'!$Q$2:$Q$1000=Costs!AA$705)*('Fixed assets'!$U$2:$U$1000>Costs!$A731)*('Fixed assets'!$P$2:$P$1000=Costs!$A731)*('Fixed assets'!$R$2:$R$1000))-SUMPRODUCT(('Fixed assets'!$Q$2:$Q$1000=Costs!AA$705)*('Fixed assets'!$U$2:$U$1000>Costs!$A731)*('Fixed assets'!$P$2:$P$1000=Costs!$A731)*('Fixed assets'!$S$2:$S$1000))","v":0},{"$f":"AB643+SUMPRODUCT(('Fixed assets'!$Q$2:$Q$1000=Costs!AB$705)*('Fixed assets'!$U$2:$U$1000>Costs!$A731)*('Fixed assets'!$P$2:$P$1000=Costs!$A731)*('Fixed assets'!$R$2:$R$1000))-SUMPRODUCT(('Fixed assets'!$Q$2:$Q$1000=Costs!AB$705)*('Fixed assets'!$U$2:$U$1000>Costs!$A731)*('Fixed assets'!$P$2:$P$1000=Costs!$A731)*('Fixed assets'!$S$2:$S$1000))","v":0},{"$f":"AC643+SUMPRODUCT(('Fixed assets'!$Q$2:$Q$1000=Costs!AC$705)*('Fixed assets'!$U$2:$U$1000>Costs!$A731)*('Fixed assets'!$P$2:$P$1000=Costs!$A731)*('Fixed assets'!$R$2:$R$1000))-SUMPRODUCT(('Fixed assets'!$Q$2:$Q$1000=Costs!AC$705)*('Fixed assets'!$U$2:$U$1000>Costs!$A731)*('Fixed assets'!$P$2:$P$1000=Costs!$A731)*('Fixed assets'!$S$2:$S$1000))","v":0},{"$f":"AD643+SUMPRODUCT(('Fixed assets'!$Q$2:$Q$1000=Costs!AD$705)*('Fixed assets'!$U$2:$U$1000>Costs!$A731)*('Fixed assets'!$P$2:$P$1000=Costs!$A731)*('Fixed assets'!$R$2:$R$1000))-SUMPRODUCT(('Fixed assets'!$Q$2:$Q$1000=Costs!AD$705)*('Fixed assets'!$U$2:$U$1000>Costs!$A731)*('Fixed assets'!$P$2:$P$1000=Costs!$A731)*('Fixed assets'!$S$2:$S$1000))","v":0},{"$f":"AE643+SUMPRODUCT(('Fixed assets'!$Q$2:$Q$1000=Costs!AE$705)*('Fixed assets'!$U$2:$U$1000>Costs!$A731)*('Fixed assets'!$P$2:$P$1000=Costs!$A731)*('Fixed assets'!$R$2:$R$1000))-SUMPRODUCT(('Fixed assets'!$Q$2:$Q$1000=Costs!AE$705)*('Fixed assets'!$U$2:$U$1000>Costs!$A731)*('Fixed assets'!$P$2:$P$1000=Costs!$A731)*('Fixed assets'!$S$2:$S$1000))","v":0},{"$f":"AF643+SUMPRODUCT(('Fixed assets'!$Q$2:$Q$1000=Costs!AF$705)*('Fixed assets'!$U$2:$U$1000>Costs!$A731)*('Fixed assets'!$P$2:$P$1000=Costs!$A731)*('Fixed assets'!$R$2:$R$1000))-SUMPRODUCT(('Fixed assets'!$Q$2:$Q$1000=Costs!AF$705)*('Fixed assets'!$U$2:$U$1000>Costs!$A731)*('Fixed assets'!$P$2:$P$1000=Costs!$A731)*('Fixed assets'!$S$2:$S$1000))","v":0},{"$f":"AG643+SUMPRODUCT(('Fixed assets'!$Q$2:$Q$1000=Costs!AG$705)*('Fixed assets'!$U$2:$U$1000>Costs!$A731)*('Fixed assets'!$P$2:$P$1000=Costs!$A731)*('Fixed assets'!$R$2:$R$1000))-SUMPRODUCT(('Fixed assets'!$Q$2:$Q$1000=Costs!AG$705)*('Fixed assets'!$U$2:$U$1000>Costs!$A731)*('Fixed assets'!$P$2:$P$1000=Costs!$A731)*('Fixed assets'!$S$2:$S$1000))","v":0},{"$f":"AH643+SUMPRODUCT(('Fixed assets'!$Q$2:$Q$1000=Costs!AH$705)*('Fixed assets'!$U$2:$U$1000>Costs!$A731)*('Fixed assets'!$P$2:$P$1000=Costs!$A731)*('Fixed assets'!$R$2:$R$1000))-SUMPRODUCT(('Fixed assets'!$Q$2:$Q$1000=Costs!AH$705)*('Fixed assets'!$U$2:$U$1000>Costs!$A731)*('Fixed assets'!$P$2:$P$1000=Costs!$A731)*('Fixed assets'!$S$2:$S$1000))","v":0},{"$f":"AI643+SUMPRODUCT(('Fixed assets'!$Q$2:$Q$1000=Costs!AI$705)*('Fixed assets'!$U$2:$U$1000>Costs!$A731)*('Fixed assets'!$P$2:$P$1000=Costs!$A731)*('Fixed assets'!$R$2:$R$1000))-SUMPRODUCT(('Fixed assets'!$Q$2:$Q$1000=Costs!AI$705)*('Fixed assets'!$U$2:$U$1000>Costs!$A731)*('Fixed assets'!$P$2:$P$1000=Costs!$A731)*('Fixed assets'!$S$2:$S$1000))","v":0},{"$f":"AJ643+SUMPRODUCT(('Fixed assets'!$Q$2:$Q$1000=Costs!AJ$705)*('Fixed assets'!$U$2:$U$1000>Costs!$A731)*('Fixed assets'!$P$2:$P$1000=Costs!$A731)*('Fixed assets'!$R$2:$R$1000))-SUMPRODUCT(('Fixed assets'!$Q$2:$Q$1000=Costs!AJ$705)*('Fixed assets'!$U$2:$U$1000>Costs!$A731)*('Fixed assets'!$P$2:$P$1000=Costs!$A731)*('Fixed assets'!$S$2:$S$1000))","v":0},{"$f":"AK643+SUMPRODUCT(('Fixed assets'!$Q$2:$Q$1000=Costs!AK$705)*('Fixed assets'!$U$2:$U$1000>Costs!$A731)*('Fixed assets'!$P$2:$P$1000=Costs!$A731)*('Fixed assets'!$R$2:$R$1000))-SUMPRODUCT(('Fixed assets'!$Q$2:$Q$1000=Costs!AK$705)*('Fixed assets'!$U$2:$U$1000>Costs!$A731)*('Fixed assets'!$P$2:$P$1000=Costs!$A731)*('Fixed assets'!$S$2:$S$1000))","v":0},{"$f":"AL643+SUMPRODUCT(('Fixed assets'!$Q$2:$Q$1000=Costs!AL$705)*('Fixed assets'!$U$2:$U$1000>Costs!$A731)*('Fixed assets'!$P$2:$P$1000=Costs!$A731)*('Fixed assets'!$R$2:$R$1000))-SUMPRODUCT(('Fixed assets'!$Q$2:$Q$1000=Costs!AL$705)*('Fixed assets'!$U$2:$U$1000>Costs!$A731)*('Fixed assets'!$P$2:$P$1000=Costs!$A731)*('Fixed assets'!$S$2:$S$1000))","v":0},{"$f":"AM643+SUMPRODUCT(('Fixed assets'!$Q$2:$Q$1000=Costs!AM$705)*('Fixed assets'!$U$2:$U$1000>Costs!$A731)*('Fixed assets'!$P$2:$P$1000=Costs!$A731)*('Fixed assets'!$R$2:$R$1000))-SUMPRODUCT(('Fixed assets'!$Q$2:$Q$1000=Costs!AM$705)*('Fixed assets'!$U$2:$U$1000>Costs!$A731)*('Fixed assets'!$P$2:$P$1000=Costs!$A731)*('Fixed assets'!$S$2:$S$1000))","v":0},{"$f":"AN643+SUMPRODUCT(('Fixed assets'!$Q$2:$Q$1000=Costs!AN$705)*('Fixed assets'!$U$2:$U$1000>Costs!$A731)*('Fixed assets'!$P$2:$P$1000=Costs!$A731)*('Fixed assets'!$R$2:$R$1000))-SUMPRODUCT(('Fixed assets'!$Q$2:$Q$1000=Costs!AN$705)*('Fixed assets'!$U$2:$U$1000>Costs!$A731)*('Fixed assets'!$P$2:$P$1000=Costs!$A731)*('Fixed assets'!$S$2:$S$1000))","v":0},{"$f":"AO643+SUMPRODUCT(('Fixed assets'!$Q$2:$Q$1000=Costs!AO$705)*('Fixed assets'!$U$2:$U$1000>Costs!$A731)*('Fixed assets'!$P$2:$P$1000=Costs!$A731)*('Fixed assets'!$R$2:$R$1000))-SUMPRODUCT(('Fixed assets'!$Q$2:$Q$1000=Costs!AO$705)*('Fixed assets'!$U$2:$U$1000>Costs!$A731)*('Fixed assets'!$P$2:$P$1000=Costs!$A731)*('Fixed assets'!$S$2:$S$1000))","v":0},{"$f":"AP643+SUMPRODUCT(('Fixed assets'!$Q$2:$Q$1000=Costs!AP$705)*('Fixed assets'!$U$2:$U$1000>Costs!$A731)*('Fixed assets'!$P$2:$P$1000=Costs!$A731)*('Fixed assets'!$R$2:$R$1000))-SUMPRODUCT(('Fixed assets'!$Q$2:$Q$1000=Costs!AP$705)*('Fixed assets'!$U$2:$U$1000>Costs!$A731)*('Fixed assets'!$P$2:$P$1000=Costs!$A731)*('Fixed assets'!$S$2:$S$1000))","v":0},{"$f":"AQ643+SUMPRODUCT(('Fixed assets'!$Q$2:$Q$1000=Costs!AQ$705)*('Fixed assets'!$U$2:$U$1000>Costs!$A731)*('Fixed assets'!$P$2:$P$1000=Costs!$A731)*('Fixed assets'!$R$2:$R$1000))-SUMPRODUCT(('Fixed assets'!$Q$2:$Q$1000=Costs!AQ$705)*('Fixed assets'!$U$2:$U$1000>Costs!$A731)*('Fixed assets'!$P$2:$P$1000=Costs!$A731)*('Fixed assets'!$S$2:$S$1000))","v":0}]
[2041,0,{"$f":"C644+SUMPRODUCT(('Fixed assets'!$Q$2:$Q$1000=Costs!C$705)*('Fixed assets'!$U$2:$U$1000>Costs!$A732)*('Fixed assets'!$P$2:$P$1000=Costs!$A732)*('Fixed assets'!$R$2:$R$1000))-SUMPRODUCT(('Fixed assets'!$Q$2:$Q$1000=Costs!C$705)*('Fixed assets'!$U$2:$U$1000>Costs!$A732)*('Fixed assets'!$P$2:$P$1000=Costs!$A732)*('Fixed assets'!$S$2:$S$1000))","v":0},{"$f":"D644+SUMPRODUCT(('Fixed assets'!$Q$2:$Q$1000=Costs!D$705)*('Fixed assets'!$U$2:$U$1000>Costs!$A732)*('Fixed assets'!$P$2:$P$1000=Costs!$A732)*('Fixed assets'!$R$2:$R$1000))-SUMPRODUCT(('Fixed assets'!$Q$2:$Q$1000=Costs!D$705)*('Fixed assets'!$U$2:$U$1000>Costs!$A732)*('Fixed assets'!$P$2:$P$1000=Costs!$A732)*('Fixed assets'!$S$2:$S$1000))","v":0},{"$f":"E644+SUMPRODUCT(('Fixed assets'!$Q$2:$Q$1000=Costs!E$705)*('Fixed assets'!$U$2:$U$1000>Costs!$A732)*('Fixed assets'!$P$2:$P$1000=Costs!$A732)*('Fixed assets'!$R$2:$R$1000))-SUMPRODUCT(('Fixed assets'!$Q$2:$Q$1000=Costs!E$705)*('Fixed assets'!$U$2:$U$1000>Costs!$A732)*('Fixed assets'!$P$2:$P$1000=Costs!$A732)*('Fixed assets'!$S$2:$S$1000))","v":0},{"$f":"F644+SUMPRODUCT(('Fixed assets'!$Q$2:$Q$1000=Costs!F$705)*('Fixed assets'!$U$2:$U$1000>Costs!$A732)*('Fixed assets'!$P$2:$P$1000=Costs!$A732)*('Fixed assets'!$R$2:$R$1000))-SUMPRODUCT(('Fixed assets'!$Q$2:$Q$1000=Costs!F$705)*('Fixed assets'!$U$2:$U$1000>Costs!$A732)*('Fixed assets'!$P$2:$P$1000=Costs!$A732)*('Fixed assets'!$S$2:$S$1000))","v":0},{"$f":"G644+SUMPRODUCT(('Fixed assets'!$Q$2:$Q$1000=Costs!G$705)*('Fixed assets'!$U$2:$U$1000>Costs!$A732)*('Fixed assets'!$P$2:$P$1000=Costs!$A732)*('Fixed assets'!$R$2:$R$1000))-SUMPRODUCT(('Fixed assets'!$Q$2:$Q$1000=Costs!G$705)*('Fixed assets'!$U$2:$U$1000>Costs!$A732)*('Fixed assets'!$P$2:$P$1000=Costs!$A732)*('Fixed assets'!$S$2:$S$1000))","v":0},{"$f":"H644+SUMPRODUCT(('Fixed assets'!$Q$2:$Q$1000=Costs!H$705)*('Fixed assets'!$U$2:$U$1000>Costs!$A732)*('Fixed assets'!$P$2:$P$1000=Costs!$A732)*('Fixed assets'!$R$2:$R$1000))-SUMPRODUCT(('Fixed assets'!$Q$2:$Q$1000=Costs!H$705)*('Fixed assets'!$U$2:$U$1000>Costs!$A732)*('Fixed assets'!$P$2:$P$1000=Costs!$A732)*('Fixed assets'!$S$2:$S$1000))","v":0},{"$f":"I644+SUMPRODUCT(('Fixed assets'!$Q$2:$Q$1000=Costs!I$705)*('Fixed assets'!$U$2:$U$1000>Costs!$A732)*('Fixed assets'!$P$2:$P$1000=Costs!$A732)*('Fixed assets'!$R$2:$R$1000))-SUMPRODUCT(('Fixed assets'!$Q$2:$Q$1000=Costs!I$705)*('Fixed assets'!$U$2:$U$1000>Costs!$A732)*('Fixed assets'!$P$2:$P$1000=Costs!$A732)*('Fixed assets'!$S$2:$S$1000))","v":0},{"$f":"J644+SUMPRODUCT(('Fixed assets'!$Q$2:$Q$1000=Costs!J$705)*('Fixed assets'!$U$2:$U$1000>Costs!$A732)*('Fixed assets'!$P$2:$P$1000=Costs!$A732)*('Fixed assets'!$R$2:$R$1000))-SUMPRODUCT(('Fixed assets'!$Q$2:$Q$1000=Costs!J$705)*('Fixed assets'!$U$2:$U$1000>Costs!$A732)*('Fixed assets'!$P$2:$P$1000=Costs!$A732)*('Fixed assets'!$S$2:$S$1000))","v":0},{"$f":"K644+SUMPRODUCT(('Fixed assets'!$Q$2:$Q$1000=Costs!K$705)*('Fixed assets'!$U$2:$U$1000>Costs!$A732)*('Fixed assets'!$P$2:$P$1000=Costs!$A732)*('Fixed assets'!$R$2:$R$1000))-SUMPRODUCT(('Fixed assets'!$Q$2:$Q$1000=Costs!K$705)*('Fixed assets'!$U$2:$U$1000>Costs!$A732)*('Fixed assets'!$P$2:$P$1000=Costs!$A732)*('Fixed assets'!$S$2:$S$1000))","v":0},{"$f":"L644+SUMPRODUCT(('Fixed assets'!$Q$2:$Q$1000=Costs!L$705)*('Fixed assets'!$U$2:$U$1000>Costs!$A732)*('Fixed assets'!$P$2:$P$1000=Costs!$A732)*('Fixed assets'!$R$2:$R$1000))-SUMPRODUCT(('Fixed assets'!$Q$2:$Q$1000=Costs!L$705)*('Fixed assets'!$U$2:$U$1000>Costs!$A732)*('Fixed assets'!$P$2:$P$1000=Costs!$A732)*('Fixed assets'!$S$2:$S$1000))","v":0},{"$f":"M644+SUMPRODUCT(('Fixed assets'!$Q$2:$Q$1000=Costs!M$705)*('Fixed assets'!$U$2:$U$1000>Costs!$A732)*('Fixed assets'!$P$2:$P$1000=Costs!$A732)*('Fixed assets'!$R$2:$R$1000))-SUMPRODUCT(('Fixed assets'!$Q$2:$Q$1000=Costs!M$705)*('Fixed assets'!$U$2:$U$1000>Costs!$A732)*('Fixed assets'!$P$2:$P$1000=Costs!$A732)*('Fixed assets'!$S$2:$S$1000))","v":0},{"$f":"N644+SUMPRODUCT(('Fixed assets'!$Q$2:$Q$1000=Costs!N$705)*('Fixed assets'!$U$2:$U$1000>Costs!$A732)*('Fixed assets'!$P$2:$P$1000=Costs!$A732)*('Fixed assets'!$R$2:$R$1000))-SUMPRODUCT(('Fixed assets'!$Q$2:$Q$1000=Costs!N$705)*('Fixed assets'!$U$2:$U$1000>Costs!$A732)*('Fixed assets'!$P$2:$P$1000=Costs!$A732)*('Fixed assets'!$S$2:$S$1000))","v":0},{"$f":"O644+SUMPRODUCT(('Fixed assets'!$Q$2:$Q$1000=Costs!O$705)*('Fixed assets'!$U$2:$U$1000>Costs!$A732)*('Fixed assets'!$P$2:$P$1000=Costs!$A732)*('Fixed assets'!$R$2:$R$1000))-SUMPRODUCT(('Fixed assets'!$Q$2:$Q$1000=Costs!O$705)*('Fixed assets'!$U$2:$U$1000>Costs!$A732)*('Fixed assets'!$P$2:$P$1000=Costs!$A732)*('Fixed assets'!$S$2:$S$1000))","v":0},{"$f":"P644+SUMPRODUCT(('Fixed assets'!$Q$2:$Q$1000=Costs!P$705)*('Fixed assets'!$U$2:$U$1000>Costs!$A732)*('Fixed assets'!$P$2:$P$1000=Costs!$A732)*('Fixed assets'!$R$2:$R$1000))-SUMPRODUCT(('Fixed assets'!$Q$2:$Q$1000=Costs!P$705)*('Fixed assets'!$U$2:$U$1000>Costs!$A732)*('Fixed assets'!$P$2:$P$1000=Costs!$A732)*('Fixed assets'!$S$2:$S$1000))","v":0},{"$f":"Q644+SUMPRODUCT(('Fixed assets'!$Q$2:$Q$1000=Costs!Q$705)*('Fixed assets'!$U$2:$U$1000>Costs!$A732)*('Fixed assets'!$P$2:$P$1000=Costs!$A732)*('Fixed assets'!$R$2:$R$1000))-SUMPRODUCT(('Fixed assets'!$Q$2:$Q$1000=Costs!Q$705)*('Fixed assets'!$U$2:$U$1000>Costs!$A732)*('Fixed assets'!$P$2:$P$1000=Costs!$A732)*('Fixed assets'!$S$2:$S$1000))","v":0},{"$f":"R644+SUMPRODUCT(('Fixed assets'!$Q$2:$Q$1000=Costs!R$705)*('Fixed assets'!$U$2:$U$1000>Costs!$A732)*('Fixed assets'!$P$2:$P$1000=Costs!$A732)*('Fixed assets'!$R$2:$R$1000))-SUMPRODUCT(('Fixed assets'!$Q$2:$Q$1000=Costs!R$705)*('Fixed assets'!$U$2:$U$1000>Costs!$A732)*('Fixed assets'!$P$2:$P$1000=Costs!$A732)*('Fixed assets'!$S$2:$S$1000))","v":0},{"$f":"S644+SUMPRODUCT(('Fixed assets'!$Q$2:$Q$1000=Costs!S$705)*('Fixed assets'!$U$2:$U$1000>Costs!$A732)*('Fixed assets'!$P$2:$P$1000=Costs!$A732)*('Fixed assets'!$R$2:$R$1000))-SUMPRODUCT(('Fixed assets'!$Q$2:$Q$1000=Costs!S$705)*('Fixed assets'!$U$2:$U$1000>Costs!$A732)*('Fixed assets'!$P$2:$P$1000=Costs!$A732)*('Fixed assets'!$S$2:$S$1000))","v":0},{"$f":"T644+SUMPRODUCT(('Fixed assets'!$Q$2:$Q$1000=Costs!T$705)*('Fixed assets'!$U$2:$U$1000>Costs!$A732)*('Fixed assets'!$P$2:$P$1000=Costs!$A732)*('Fixed assets'!$R$2:$R$1000))-SUMPRODUCT(('Fixed assets'!$Q$2:$Q$1000=Costs!T$705)*('Fixed assets'!$U$2:$U$1000>Costs!$A732)*('Fixed assets'!$P$2:$P$1000=Costs!$A732)*('Fixed assets'!$S$2:$S$1000))","v":0},{"$f":"U644+SUMPRODUCT(('Fixed assets'!$Q$2:$Q$1000=Costs!U$705)*('Fixed assets'!$U$2:$U$1000>Costs!$A732)*('Fixed assets'!$P$2:$P$1000=Costs!$A732)*('Fixed assets'!$R$2:$R$1000))-SUMPRODUCT(('Fixed assets'!$Q$2:$Q$1000=Costs!U$705)*('Fixed assets'!$U$2:$U$1000>Costs!$A732)*('Fixed assets'!$P$2:$P$1000=Costs!$A732)*('Fixed assets'!$S$2:$S$1000))","v":0},{"$f":"V644+SUMPRODUCT(('Fixed assets'!$Q$2:$Q$1000=Costs!V$705)*('Fixed assets'!$U$2:$U$1000>Costs!$A732)*('Fixed assets'!$P$2:$P$1000=Costs!$A732)*('Fixed assets'!$R$2:$R$1000))-SUMPRODUCT(('Fixed assets'!$Q$2:$Q$1000=Costs!V$705)*('Fixed assets'!$U$2:$U$1000>Costs!$A732)*('Fixed assets'!$P$2:$P$1000=Costs!$A732)*('Fixed assets'!$S$2:$S$1000))","v":0},{"$f":"W644+SUMPRODUCT(('Fixed assets'!$Q$2:$Q$1000=Costs!W$705)*('Fixed assets'!$U$2:$U$1000>Costs!$A732)*('Fixed assets'!$P$2:$P$1000=Costs!$A732)*('Fixed assets'!$R$2:$R$1000))-SUMPRODUCT(('Fixed assets'!$Q$2:$Q$1000=Costs!W$705)*('Fixed assets'!$U$2:$U$1000>Costs!$A732)*('Fixed assets'!$P$2:$P$1000=Costs!$A732)*('Fixed assets'!$S$2:$S$1000))","v":0},{"$f":"X644+SUMPRODUCT(('Fixed assets'!$Q$2:$Q$1000=Costs!X$705)*('Fixed assets'!$U$2:$U$1000>Costs!$A732)*('Fixed assets'!$P$2:$P$1000=Costs!$A732)*('Fixed assets'!$R$2:$R$1000))-SUMPRODUCT(('Fixed assets'!$Q$2:$Q$1000=Costs!X$705)*('Fixed assets'!$U$2:$U$1000>Costs!$A732)*('Fixed assets'!$P$2:$P$1000=Costs!$A732)*('Fixed assets'!$S$2:$S$1000))","v":0},{"$f":"Y644+SUMPRODUCT(('Fixed assets'!$Q$2:$Q$1000=Costs!Y$705)*('Fixed assets'!$U$2:$U$1000>Costs!$A732)*('Fixed assets'!$P$2:$P$1000=Costs!$A732)*('Fixed assets'!$R$2:$R$1000))-SUMPRODUCT(('Fixed assets'!$Q$2:$Q$1000=Costs!Y$705)*('Fixed assets'!$U$2:$U$1000>Costs!$A732)*('Fixed assets'!$P$2:$P$1000=Costs!$A732)*('Fixed assets'!$S$2:$S$1000))","v":0},{"$f":"Z644+SUMPRODUCT(('Fixed assets'!$Q$2:$Q$1000=Costs!Z$705)*('Fixed assets'!$U$2:$U$1000>Costs!$A732)*('Fixed assets'!$P$2:$P$1000=Costs!$A732)*('Fixed assets'!$R$2:$R$1000))-SUMPRODUCT(('Fixed assets'!$Q$2:$Q$1000=Costs!Z$705)*('Fixed assets'!$U$2:$U$1000>Costs!$A732)*('Fixed assets'!$P$2:$P$1000=Costs!$A732)*('Fixed assets'!$S$2:$S$1000))","v":0},{"$f":"AA644+SUMPRODUCT(('Fixed assets'!$Q$2:$Q$1000=Costs!AA$705)*('Fixed assets'!$U$2:$U$1000>Costs!$A732)*('Fixed assets'!$P$2:$P$1000=Costs!$A732)*('Fixed assets'!$R$2:$R$1000))-SUMPRODUCT(('Fixed assets'!$Q$2:$Q$1000=Costs!AA$705)*('Fixed assets'!$U$2:$U$1000>Costs!$A732)*('Fixed assets'!$P$2:$P$1000=Costs!$A732)*('Fixed assets'!$S$2:$S$1000))","v":0},{"$f":"AB644+SUMPRODUCT(('Fixed assets'!$Q$2:$Q$1000=Costs!AB$705)*('Fixed assets'!$U$2:$U$1000>Costs!$A732)*('Fixed assets'!$P$2:$P$1000=Costs!$A732)*('Fixed assets'!$R$2:$R$1000))-SUMPRODUCT(('Fixed assets'!$Q$2:$Q$1000=Costs!AB$705)*('Fixed assets'!$U$2:$U$1000>Costs!$A732)*('Fixed assets'!$P$2:$P$1000=Costs!$A732)*('Fixed assets'!$S$2:$S$1000))","v":0},{"$f":"AC644+SUMPRODUCT(('Fixed assets'!$Q$2:$Q$1000=Costs!AC$705)*('Fixed assets'!$U$2:$U$1000>Costs!$A732)*('Fixed assets'!$P$2:$P$1000=Costs!$A732)*('Fixed assets'!$R$2:$R$1000))-SUMPRODUCT(('Fixed assets'!$Q$2:$Q$1000=Costs!AC$705)*('Fixed assets'!$U$2:$U$1000>Costs!$A732)*('Fixed assets'!$P$2:$P$1000=Costs!$A732)*('Fixed assets'!$S$2:$S$1000))","v":0},{"$f":"AD644+SUMPRODUCT(('Fixed assets'!$Q$2:$Q$1000=Costs!AD$705)*('Fixed assets'!$U$2:$U$1000>Costs!$A732)*('Fixed assets'!$P$2:$P$1000=Costs!$A732)*('Fixed assets'!$R$2:$R$1000))-SUMPRODUCT(('Fixed assets'!$Q$2:$Q$1000=Costs!AD$705)*('Fixed assets'!$U$2:$U$1000>Costs!$A732)*('Fixed assets'!$P$2:$P$1000=Costs!$A732)*('Fixed assets'!$S$2:$S$1000))","v":0},{"$f":"AE644+SUMPRODUCT(('Fixed assets'!$Q$2:$Q$1000=Costs!AE$705)*('Fixed assets'!$U$2:$U$1000>Costs!$A732)*('Fixed assets'!$P$2:$P$1000=Costs!$A732)*('Fixed assets'!$R$2:$R$1000))-SUMPRODUCT(('Fixed assets'!$Q$2:$Q$1000=Costs!AE$705)*('Fixed assets'!$U$2:$U$1000>Costs!$A732)*('Fixed assets'!$P$2:$P$1000=Costs!$A732)*('Fixed assets'!$S$2:$S$1000))","v":0},{"$f":"AF644+SUMPRODUCT(('Fixed assets'!$Q$2:$Q$1000=Costs!AF$705)*('Fixed assets'!$U$2:$U$1000>Costs!$A732)*('Fixed assets'!$P$2:$P$1000=Costs!$A732)*('Fixed assets'!$R$2:$R$1000))-SUMPRODUCT(('Fixed assets'!$Q$2:$Q$1000=Costs!AF$705)*('Fixed assets'!$U$2:$U$1000>Costs!$A732)*('Fixed assets'!$P$2:$P$1000=Costs!$A732)*('Fixed assets'!$S$2:$S$1000))","v":0},{"$f":"AG644+SUMPRODUCT(('Fixed assets'!$Q$2:$Q$1000=Costs!AG$705)*('Fixed assets'!$U$2:$U$1000>Costs!$A732)*('Fixed assets'!$P$2:$P$1000=Costs!$A732)*('Fixed assets'!$R$2:$R$1000))-SUMPRODUCT(('Fixed assets'!$Q$2:$Q$1000=Costs!AG$705)*('Fixed assets'!$U$2:$U$1000>Costs!$A732)*('Fixed assets'!$P$2:$P$1000=Costs!$A732)*('Fixed assets'!$S$2:$S$1000))","v":0},{"$f":"AH644+SUMPRODUCT(('Fixed assets'!$Q$2:$Q$1000=Costs!AH$705)*('Fixed assets'!$U$2:$U$1000>Costs!$A732)*('Fixed assets'!$P$2:$P$1000=Costs!$A732)*('Fixed assets'!$R$2:$R$1000))-SUMPRODUCT(('Fixed assets'!$Q$2:$Q$1000=Costs!AH$705)*('Fixed assets'!$U$2:$U$1000>Costs!$A732)*('Fixed assets'!$P$2:$P$1000=Costs!$A732)*('Fixed assets'!$S$2:$S$1000))","v":0},{"$f":"AI644+SUMPRODUCT(('Fixed assets'!$Q$2:$Q$1000=Costs!AI$705)*('Fixed assets'!$U$2:$U$1000>Costs!$A732)*('Fixed assets'!$P$2:$P$1000=Costs!$A732)*('Fixed assets'!$R$2:$R$1000))-SUMPRODUCT(('Fixed assets'!$Q$2:$Q$1000=Costs!AI$705)*('Fixed assets'!$U$2:$U$1000>Costs!$A732)*('Fixed assets'!$P$2:$P$1000=Costs!$A732)*('Fixed assets'!$S$2:$S$1000))","v":0},{"$f":"AJ644+SUMPRODUCT(('Fixed assets'!$Q$2:$Q$1000=Costs!AJ$705)*('Fixed assets'!$U$2:$U$1000>Costs!$A732)*('Fixed assets'!$P$2:$P$1000=Costs!$A732)*('Fixed assets'!$R$2:$R$1000))-SUMPRODUCT(('Fixed assets'!$Q$2:$Q$1000=Costs!AJ$705)*('Fixed assets'!$U$2:$U$1000>Costs!$A732)*('Fixed assets'!$P$2:$P$1000=Costs!$A732)*('Fixed assets'!$S$2:$S$1000))","v":0},{"$f":"AK644+SUMPRODUCT(('Fixed assets'!$Q$2:$Q$1000=Costs!AK$705)*('Fixed assets'!$U$2:$U$1000>Costs!$A732)*('Fixed assets'!$P$2:$P$1000=Costs!$A732)*('Fixed assets'!$R$2:$R$1000))-SUMPRODUCT(('Fixed assets'!$Q$2:$Q$1000=Costs!AK$705)*('Fixed assets'!$U$2:$U$1000>Costs!$A732)*('Fixed assets'!$P$2:$P$1000=Costs!$A732)*('Fixed assets'!$S$2:$S$1000))","v":0},{"$f":"AL644+SUMPRODUCT(('Fixed assets'!$Q$2:$Q$1000=Costs!AL$705)*('Fixed assets'!$U$2:$U$1000>Costs!$A732)*('Fixed assets'!$P$2:$P$1000=Costs!$A732)*('Fixed assets'!$R$2:$R$1000))-SUMPRODUCT(('Fixed assets'!$Q$2:$Q$1000=Costs!AL$705)*('Fixed assets'!$U$2:$U$1000>Costs!$A732)*('Fixed assets'!$P$2:$P$1000=Costs!$A732)*('Fixed assets'!$S$2:$S$1000))","v":0},{"$f":"AM644+SUMPRODUCT(('Fixed assets'!$Q$2:$Q$1000=Costs!AM$705)*('Fixed assets'!$U$2:$U$1000>Costs!$A732)*('Fixed assets'!$P$2:$P$1000=Costs!$A732)*('Fixed assets'!$R$2:$R$1000))-SUMPRODUCT(('Fixed assets'!$Q$2:$Q$1000=Costs!AM$705)*('Fixed assets'!$U$2:$U$1000>Costs!$A732)*('Fixed assets'!$P$2:$P$1000=Costs!$A732)*('Fixed assets'!$S$2:$S$1000))","v":0},{"$f":"AN644+SUMPRODUCT(('Fixed assets'!$Q$2:$Q$1000=Costs!AN$705)*('Fixed assets'!$U$2:$U$1000>Costs!$A732)*('Fixed assets'!$P$2:$P$1000=Costs!$A732)*('Fixed assets'!$R$2:$R$1000))-SUMPRODUCT(('Fixed assets'!$Q$2:$Q$1000=Costs!AN$705)*('Fixed assets'!$U$2:$U$1000>Costs!$A732)*('Fixed assets'!$P$2:$P$1000=Costs!$A732)*('Fixed assets'!$S$2:$S$1000))","v":0},{"$f":"AO644+SUMPRODUCT(('Fixed assets'!$Q$2:$Q$1000=Costs!AO$705)*('Fixed assets'!$U$2:$U$1000>Costs!$A732)*('Fixed assets'!$P$2:$P$1000=Costs!$A732)*('Fixed assets'!$R$2:$R$1000))-SUMPRODUCT(('Fixed assets'!$Q$2:$Q$1000=Costs!AO$705)*('Fixed assets'!$U$2:$U$1000>Costs!$A732)*('Fixed assets'!$P$2:$P$1000=Costs!$A732)*('Fixed assets'!$S$2:$S$1000))","v":0},{"$f":"AP644+SUMPRODUCT(('Fixed assets'!$Q$2:$Q$1000=Costs!AP$705)*('Fixed assets'!$U$2:$U$1000>Costs!$A732)*('Fixed assets'!$P$2:$P$1000=Costs!$A732)*('Fixed assets'!$R$2:$R$1000))-SUMPRODUCT(('Fixed assets'!$Q$2:$Q$1000=Costs!AP$705)*('Fixed assets'!$U$2:$U$1000>Costs!$A732)*('Fixed assets'!$P$2:$P$1000=Costs!$A732)*('Fixed assets'!$S$2:$S$1000))","v":0},{"$f":"AQ644+SUMPRODUCT(('Fixed assets'!$Q$2:$Q$1000=Costs!AQ$705)*('Fixed assets'!$U$2:$U$1000>Costs!$A732)*('Fixed assets'!$P$2:$P$1000=Costs!$A732)*('Fixed assets'!$R$2:$R$1000))-SUMPRODUCT(('Fixed assets'!$Q$2:$Q$1000=Costs!AQ$705)*('Fixed assets'!$U$2:$U$1000>Costs!$A732)*('Fixed assets'!$P$2:$P$1000=Costs!$A732)*('Fixed assets'!$S$2:$S$1000))","v":0}]
[2042,0,{"$f":"C645+SUMPRODUCT(('Fixed assets'!$Q$2:$Q$1000=Costs!C$705)*('Fixed assets'!$U$2:$U$1000>Costs!$A733)*('Fixed assets'!$P$2:$P$1000=Costs!$A733)*('Fixed assets'!$R$2:$R$1000))-SUMPRODUCT(('Fixed assets'!$Q$2:$Q$1000=Costs!C$705)*('Fixed assets'!$U$2:$U$1000>Costs!$A733)*('Fixed assets'!$P$2:$P$1000=Costs!$A733)*('Fixed assets'!$S$2:$S$1000))","v":0},{"$f":"D645+SUMPRODUCT(('Fixed assets'!$Q$2:$Q$1000=Costs!D$705)*('Fixed assets'!$U$2:$U$1000>Costs!$A733)*('Fixed assets'!$P$2:$P$1000=Costs!$A733)*('Fixed assets'!$R$2:$R$1000))-SUMPRODUCT(('Fixed assets'!$Q$2:$Q$1000=Costs!D$705)*('Fixed assets'!$U$2:$U$1000>Costs!$A733)*('Fixed assets'!$P$2:$P$1000=Costs!$A733)*('Fixed assets'!$S$2:$S$1000))","v":0},{"$f":"E645+SUMPRODUCT(('Fixed assets'!$Q$2:$Q$1000=Costs!E$705)*('Fixed assets'!$U$2:$U$1000>Costs!$A733)*('Fixed assets'!$P$2:$P$1000=Costs!$A733)*('Fixed assets'!$R$2:$R$1000))-SUMPRODUCT(('Fixed assets'!$Q$2:$Q$1000=Costs!E$705)*('Fixed assets'!$U$2:$U$1000>Costs!$A733)*('Fixed assets'!$P$2:$P$1000=Costs!$A733)*('Fixed assets'!$S$2:$S$1000))","v":0},{"$f":"F645+SUMPRODUCT(('Fixed assets'!$Q$2:$Q$1000=Costs!F$705)*('Fixed assets'!$U$2:$U$1000>Costs!$A733)*('Fixed assets'!$P$2:$P$1000=Costs!$A733)*('Fixed assets'!$R$2:$R$1000))-SUMPRODUCT(('Fixed assets'!$Q$2:$Q$1000=Costs!F$705)*('Fixed assets'!$U$2:$U$1000>Costs!$A733)*('Fixed assets'!$P$2:$P$1000=Costs!$A733)*('Fixed assets'!$S$2:$S$1000))","v":0},{"$f":"G645+SUMPRODUCT(('Fixed assets'!$Q$2:$Q$1000=Costs!G$705)*('Fixed assets'!$U$2:$U$1000>Costs!$A733)*('Fixed assets'!$P$2:$P$1000=Costs!$A733)*('Fixed assets'!$R$2:$R$1000))-SUMPRODUCT(('Fixed assets'!$Q$2:$Q$1000=Costs!G$705)*('Fixed assets'!$U$2:$U$1000>Costs!$A733)*('Fixed assets'!$P$2:$P$1000=Costs!$A733)*('Fixed assets'!$S$2:$S$1000))","v":0},{"$f":"H645+SUMPRODUCT(('Fixed assets'!$Q$2:$Q$1000=Costs!H$705)*('Fixed assets'!$U$2:$U$1000>Costs!$A733)*('Fixed assets'!$P$2:$P$1000=Costs!$A733)*('Fixed assets'!$R$2:$R$1000))-SUMPRODUCT(('Fixed assets'!$Q$2:$Q$1000=Costs!H$705)*('Fixed assets'!$U$2:$U$1000>Costs!$A733)*('Fixed assets'!$P$2:$P$1000=Costs!$A733)*('Fixed assets'!$S$2:$S$1000))","v":0},{"$f":"I645+SUMPRODUCT(('Fixed assets'!$Q$2:$Q$1000=Costs!I$705)*('Fixed assets'!$U$2:$U$1000>Costs!$A733)*('Fixed assets'!$P$2:$P$1000=Costs!$A733)*('Fixed assets'!$R$2:$R$1000))-SUMPRODUCT(('Fixed assets'!$Q$2:$Q$1000=Costs!I$705)*('Fixed assets'!$U$2:$U$1000>Costs!$A733)*('Fixed assets'!$P$2:$P$1000=Costs!$A733)*('Fixed assets'!$S$2:$S$1000))","v":0},{"$f":"J645+SUMPRODUCT(('Fixed assets'!$Q$2:$Q$1000=Costs!J$705)*('Fixed assets'!$U$2:$U$1000>Costs!$A733)*('Fixed assets'!$P$2:$P$1000=Costs!$A733)*('Fixed assets'!$R$2:$R$1000))-SUMPRODUCT(('Fixed assets'!$Q$2:$Q$1000=Costs!J$705)*('Fixed assets'!$U$2:$U$1000>Costs!$A733)*('Fixed assets'!$P$2:$P$1000=Costs!$A733)*('Fixed assets'!$S$2:$S$1000))","v":0},{"$f":"K645+SUMPRODUCT(('Fixed assets'!$Q$2:$Q$1000=Costs!K$705)*('Fixed assets'!$U$2:$U$1000>Costs!$A733)*('Fixed assets'!$P$2:$P$1000=Costs!$A733)*('Fixed assets'!$R$2:$R$1000))-SUMPRODUCT(('Fixed assets'!$Q$2:$Q$1000=Costs!K$705)*('Fixed assets'!$U$2:$U$1000>Costs!$A733)*('Fixed assets'!$P$2:$P$1000=Costs!$A733)*('Fixed assets'!$S$2:$S$1000))","v":0},{"$f":"L645+SUMPRODUCT(('Fixed assets'!$Q$2:$Q$1000=Costs!L$705)*('Fixed assets'!$U$2:$U$1000>Costs!$A733)*('Fixed assets'!$P$2:$P$1000=Costs!$A733)*('Fixed assets'!$R$2:$R$1000))-SUMPRODUCT(('Fixed assets'!$Q$2:$Q$1000=Costs!L$705)*('Fixed assets'!$U$2:$U$1000>Costs!$A733)*('Fixed assets'!$P$2:$P$1000=Costs!$A733)*('Fixed assets'!$S$2:$S$1000))","v":0},{"$f":"M645+SUMPRODUCT(('Fixed assets'!$Q$2:$Q$1000=Costs!M$705)*('Fixed assets'!$U$2:$U$1000>Costs!$A733)*('Fixed assets'!$P$2:$P$1000=Costs!$A733)*('Fixed assets'!$R$2:$R$1000))-SUMPRODUCT(('Fixed assets'!$Q$2:$Q$1000=Costs!M$705)*('Fixed assets'!$U$2:$U$1000>Costs!$A733)*('Fixed assets'!$P$2:$P$1000=Costs!$A733)*('Fixed assets'!$S$2:$S$1000))","v":0},{"$f":"N645+SUMPRODUCT(('Fixed assets'!$Q$2:$Q$1000=Costs!N$705)*('Fixed assets'!$U$2:$U$1000>Costs!$A733)*('Fixed assets'!$P$2:$P$1000=Costs!$A733)*('Fixed assets'!$R$2:$R$1000))-SUMPRODUCT(('Fixed assets'!$Q$2:$Q$1000=Costs!N$705)*('Fixed assets'!$U$2:$U$1000>Costs!$A733)*('Fixed assets'!$P$2:$P$1000=Costs!$A733)*('Fixed assets'!$S$2:$S$1000))","v":0},{"$f":"O645+SUMPRODUCT(('Fixed assets'!$Q$2:$Q$1000=Costs!O$705)*('Fixed assets'!$U$2:$U$1000>Costs!$A733)*('Fixed assets'!$P$2:$P$1000=Costs!$A733)*('Fixed assets'!$R$2:$R$1000))-SUMPRODUCT(('Fixed assets'!$Q$2:$Q$1000=Costs!O$705)*('Fixed assets'!$U$2:$U$1000>Costs!$A733)*('Fixed assets'!$P$2:$P$1000=Costs!$A733)*('Fixed assets'!$S$2:$S$1000))","v":0},{"$f":"P645+SUMPRODUCT(('Fixed assets'!$Q$2:$Q$1000=Costs!P$705)*('Fixed assets'!$U$2:$U$1000>Costs!$A733)*('Fixed assets'!$P$2:$P$1000=Costs!$A733)*('Fixed assets'!$R$2:$R$1000))-SUMPRODUCT(('Fixed assets'!$Q$2:$Q$1000=Costs!P$705)*('Fixed assets'!$U$2:$U$1000>Costs!$A733)*('Fixed assets'!$P$2:$P$1000=Costs!$A733)*('Fixed assets'!$S$2:$S$1000))","v":0},{"$f":"Q645+SUMPRODUCT(('Fixed assets'!$Q$2:$Q$1000=Costs!Q$705)*('Fixed assets'!$U$2:$U$1000>Costs!$A733)*('Fixed assets'!$P$2:$P$1000=Costs!$A733)*('Fixed assets'!$R$2:$R$1000))-SUMPRODUCT(('Fixed assets'!$Q$2:$Q$1000=Costs!Q$705)*('Fixed assets'!$U$2:$U$1000>Costs!$A733)*('Fixed assets'!$P$2:$P$1000=Costs!$A733)*('Fixed assets'!$S$2:$S$1000))","v":0},{"$f":"R645+SUMPRODUCT(('Fixed assets'!$Q$2:$Q$1000=Costs!R$705)*('Fixed assets'!$U$2:$U$1000>Costs!$A733)*('Fixed assets'!$P$2:$P$1000=Costs!$A733)*('Fixed assets'!$R$2:$R$1000))-SUMPRODUCT(('Fixed assets'!$Q$2:$Q$1000=Costs!R$705)*('Fixed assets'!$U$2:$U$1000>Costs!$A733)*('Fixed assets'!$P$2:$P$1000=Costs!$A733)*('Fixed assets'!$S$2:$S$1000))","v":0},{"$f":"S645+SUMPRODUCT(('Fixed assets'!$Q$2:$Q$1000=Costs!S$705)*('Fixed assets'!$U$2:$U$1000>Costs!$A733)*('Fixed assets'!$P$2:$P$1000=Costs!$A733)*('Fixed assets'!$R$2:$R$1000))-SUMPRODUCT(('Fixed assets'!$Q$2:$Q$1000=Costs!S$705)*('Fixed assets'!$U$2:$U$1000>Costs!$A733)*('Fixed assets'!$P$2:$P$1000=Costs!$A733)*('Fixed assets'!$S$2:$S$1000))","v":0},{"$f":"T645+SUMPRODUCT(('Fixed assets'!$Q$2:$Q$1000=Costs!T$705)*('Fixed assets'!$U$2:$U$1000>Costs!$A733)*('Fixed assets'!$P$2:$P$1000=Costs!$A733)*('Fixed assets'!$R$2:$R$1000))-SUMPRODUCT(('Fixed assets'!$Q$2:$Q$1000=Costs!T$705)*('Fixed assets'!$U$2:$U$1000>Costs!$A733)*('Fixed assets'!$P$2:$P$1000=Costs!$A733)*('Fixed assets'!$S$2:$S$1000))","v":0},{"$f":"U645+SUMPRODUCT(('Fixed assets'!$Q$2:$Q$1000=Costs!U$705)*('Fixed assets'!$U$2:$U$1000>Costs!$A733)*('Fixed assets'!$P$2:$P$1000=Costs!$A733)*('Fixed assets'!$R$2:$R$1000))-SUMPRODUCT(('Fixed assets'!$Q$2:$Q$1000=Costs!U$705)*('Fixed assets'!$U$2:$U$1000>Costs!$A733)*('Fixed assets'!$P$2:$P$1000=Costs!$A733)*('Fixed assets'!$S$2:$S$1000))","v":0},{"$f":"V645+SUMPRODUCT(('Fixed assets'!$Q$2:$Q$1000=Costs!V$705)*('Fixed assets'!$U$2:$U$1000>Costs!$A733)*('Fixed assets'!$P$2:$P$1000=Costs!$A733)*('Fixed assets'!$R$2:$R$1000))-SUMPRODUCT(('Fixed assets'!$Q$2:$Q$1000=Costs!V$705)*('Fixed assets'!$U$2:$U$1000>Costs!$A733)*('Fixed assets'!$P$2:$P$1000=Costs!$A733)*('Fixed assets'!$S$2:$S$1000))","v":0},{"$f":"W645+SUMPRODUCT(('Fixed assets'!$Q$2:$Q$1000=Costs!W$705)*('Fixed assets'!$U$2:$U$1000>Costs!$A733)*('Fixed assets'!$P$2:$P$1000=Costs!$A733)*('Fixed assets'!$R$2:$R$1000))-SUMPRODUCT(('Fixed assets'!$Q$2:$Q$1000=Costs!W$705)*('Fixed assets'!$U$2:$U$1000>Costs!$A733)*('Fixed assets'!$P$2:$P$1000=Costs!$A733)*('Fixed assets'!$S$2:$S$1000))","v":0},{"$f":"X645+SUMPRODUCT(('Fixed assets'!$Q$2:$Q$1000=Costs!X$705)*('Fixed assets'!$U$2:$U$1000>Costs!$A733)*('Fixed assets'!$P$2:$P$1000=Costs!$A733)*('Fixed assets'!$R$2:$R$1000))-SUMPRODUCT(('Fixed assets'!$Q$2:$Q$1000=Costs!X$705)*('Fixed assets'!$U$2:$U$1000>Costs!$A733)*('Fixed assets'!$P$2:$P$1000=Costs!$A733)*('Fixed assets'!$S$2:$S$1000))","v":0},{"$f":"Y645+SUMPRODUCT(('Fixed assets'!$Q$2:$Q$1000=Costs!Y$705)*('Fixed assets'!$U$2:$U$1000>Costs!$A733)*('Fixed assets'!$P$2:$P$1000=Costs!$A733)*('Fixed assets'!$R$2:$R$1000))-SUMPRODUCT(('Fixed assets'!$Q$2:$Q$1000=Costs!Y$705)*('Fixed assets'!$U$2:$U$1000>Costs!$A733)*('Fixed assets'!$P$2:$P$1000=Costs!$A733)*('Fixed assets'!$S$2:$S$1000))","v":0},{"$f":"Z645+SUMPRODUCT(('Fixed assets'!$Q$2:$Q$1000=Costs!Z$705)*('Fixed assets'!$U$2:$U$1000>Costs!$A733)*('Fixed assets'!$P$2:$P$1000=Costs!$A733)*('Fixed assets'!$R$2:$R$1000))-SUMPRODUCT(('Fixed assets'!$Q$2:$Q$1000=Costs!Z$705)*('Fixed assets'!$U$2:$U$1000>Costs!$A733)*('Fixed assets'!$P$2:$P$1000=Costs!$A733)*('Fixed assets'!$S$2:$S$1000))","v":0},{"$f":"AA645+SUMPRODUCT(('Fixed assets'!$Q$2:$Q$1000=Costs!AA$705)*('Fixed assets'!$U$2:$U$1000>Costs!$A733)*('Fixed assets'!$P$2:$P$1000=Costs!$A733)*('Fixed assets'!$R$2:$R$1000))-SUMPRODUCT(('Fixed assets'!$Q$2:$Q$1000=Costs!AA$705)*('Fixed assets'!$U$2:$U$1000>Costs!$A733)*('Fixed assets'!$P$2:$P$1000=Costs!$A733)*('Fixed assets'!$S$2:$S$1000))","v":0},{"$f":"AB645+SUMPRODUCT(('Fixed assets'!$Q$2:$Q$1000=Costs!AB$705)*('Fixed assets'!$U$2:$U$1000>Costs!$A733)*('Fixed assets'!$P$2:$P$1000=Costs!$A733)*('Fixed assets'!$R$2:$R$1000))-SUMPRODUCT(('Fixed assets'!$Q$2:$Q$1000=Costs!AB$705)*('Fixed assets'!$U$2:$U$1000>Costs!$A733)*('Fixed assets'!$P$2:$P$1000=Costs!$A733)*('Fixed assets'!$S$2:$S$1000))","v":0},{"$f":"AC645+SUMPRODUCT(('Fixed assets'!$Q$2:$Q$1000=Costs!AC$705)*('Fixed assets'!$U$2:$U$1000>Costs!$A733)*('Fixed assets'!$P$2:$P$1000=Costs!$A733)*('Fixed assets'!$R$2:$R$1000))-SUMPRODUCT(('Fixed assets'!$Q$2:$Q$1000=Costs!AC$705)*('Fixed assets'!$U$2:$U$1000>Costs!$A733)*('Fixed assets'!$P$2:$P$1000=Costs!$A733)*('Fixed assets'!$S$2:$S$1000))","v":0},{"$f":"AD645+SUMPRODUCT(('Fixed assets'!$Q$2:$Q$1000=Costs!AD$705)*('Fixed assets'!$U$2:$U$1000>Costs!$A733)*('Fixed assets'!$P$2:$P$1000=Costs!$A733)*('Fixed assets'!$R$2:$R$1000))-SUMPRODUCT(('Fixed assets'!$Q$2:$Q$1000=Costs!AD$705)*('Fixed assets'!$U$2:$U$1000>Costs!$A733)*('Fixed assets'!$P$2:$P$1000=Costs!$A733)*('Fixed assets'!$S$2:$S$1000))","v":0},{"$f":"AE645+SUMPRODUCT(('Fixed assets'!$Q$2:$Q$1000=Costs!AE$705)*('Fixed assets'!$U$2:$U$1000>Costs!$A733)*('Fixed assets'!$P$2:$P$1000=Costs!$A733)*('Fixed assets'!$R$2:$R$1000))-SUMPRODUCT(('Fixed assets'!$Q$2:$Q$1000=Costs!AE$705)*('Fixed assets'!$U$2:$U$1000>Costs!$A733)*('Fixed assets'!$P$2:$P$1000=Costs!$A733)*('Fixed assets'!$S$2:$S$1000))","v":0},{"$f":"AF645+SUMPRODUCT(('Fixed assets'!$Q$2:$Q$1000=Costs!AF$705)*('Fixed assets'!$U$2:$U$1000>Costs!$A733)*('Fixed assets'!$P$2:$P$1000=Costs!$A733)*('Fixed assets'!$R$2:$R$1000))-SUMPRODUCT(('Fixed assets'!$Q$2:$Q$1000=Costs!AF$705)*('Fixed assets'!$U$2:$U$1000>Costs!$A733)*('Fixed assets'!$P$2:$P$1000=Costs!$A733)*('Fixed assets'!$S$2:$S$1000))","v":0},{"$f":"AG645+SUMPRODUCT(('Fixed assets'!$Q$2:$Q$1000=Costs!AG$705)*('Fixed assets'!$U$2:$U$1000>Costs!$A733)*('Fixed assets'!$P$2:$P$1000=Costs!$A733)*('Fixed assets'!$R$2:$R$1000))-SUMPRODUCT(('Fixed assets'!$Q$2:$Q$1000=Costs!AG$705)*('Fixed assets'!$U$2:$U$1000>Costs!$A733)*('Fixed assets'!$P$2:$P$1000=Costs!$A733)*('Fixed assets'!$S$2:$S$1000))","v":0},{"$f":"AH645+SUMPRODUCT(('Fixed assets'!$Q$2:$Q$1000=Costs!AH$705)*('Fixed assets'!$U$2:$U$1000>Costs!$A733)*('Fixed assets'!$P$2:$P$1000=Costs!$A733)*('Fixed assets'!$R$2:$R$1000))-SUMPRODUCT(('Fixed assets'!$Q$2:$Q$1000=Costs!AH$705)*('Fixed assets'!$U$2:$U$1000>Costs!$A733)*('Fixed assets'!$P$2:$P$1000=Costs!$A733)*('Fixed assets'!$S$2:$S$1000))","v":0},{"$f":"AI645+SUMPRODUCT(('Fixed assets'!$Q$2:$Q$1000=Costs!AI$705)*('Fixed assets'!$U$2:$U$1000>Costs!$A733)*('Fixed assets'!$P$2:$P$1000=Costs!$A733)*('Fixed assets'!$R$2:$R$1000))-SUMPRODUCT(('Fixed assets'!$Q$2:$Q$1000=Costs!AI$705)*('Fixed assets'!$U$2:$U$1000>Costs!$A733)*('Fixed assets'!$P$2:$P$1000=Costs!$A733)*('Fixed assets'!$S$2:$S$1000))","v":0},{"$f":"AJ645+SUMPRODUCT(('Fixed assets'!$Q$2:$Q$1000=Costs!AJ$705)*('Fixed assets'!$U$2:$U$1000>Costs!$A733)*('Fixed assets'!$P$2:$P$1000=Costs!$A733)*('Fixed assets'!$R$2:$R$1000))-SUMPRODUCT(('Fixed assets'!$Q$2:$Q$1000=Costs!AJ$705)*('Fixed assets'!$U$2:$U$1000>Costs!$A733)*('Fixed assets'!$P$2:$P$1000=Costs!$A733)*('Fixed assets'!$S$2:$S$1000))","v":0},{"$f":"AK645+SUMPRODUCT(('Fixed assets'!$Q$2:$Q$1000=Costs!AK$705)*('Fixed assets'!$U$2:$U$1000>Costs!$A733)*('Fixed assets'!$P$2:$P$1000=Costs!$A733)*('Fixed assets'!$R$2:$R$1000))-SUMPRODUCT(('Fixed assets'!$Q$2:$Q$1000=Costs!AK$705)*('Fixed assets'!$U$2:$U$1000>Costs!$A733)*('Fixed assets'!$P$2:$P$1000=Costs!$A733)*('Fixed assets'!$S$2:$S$1000))","v":0},{"$f":"AL645+SUMPRODUCT(('Fixed assets'!$Q$2:$Q$1000=Costs!AL$705)*('Fixed assets'!$U$2:$U$1000>Costs!$A733)*('Fixed assets'!$P$2:$P$1000=Costs!$A733)*('Fixed assets'!$R$2:$R$1000))-SUMPRODUCT(('Fixed assets'!$Q$2:$Q$1000=Costs!AL$705)*('Fixed assets'!$U$2:$U$1000>Costs!$A733)*('Fixed assets'!$P$2:$P$1000=Costs!$A733)*('Fixed assets'!$S$2:$S$1000))","v":0},{"$f":"AM645+SUMPRODUCT(('Fixed assets'!$Q$2:$Q$1000=Costs!AM$705)*('Fixed assets'!$U$2:$U$1000>Costs!$A733)*('Fixed assets'!$P$2:$P$1000=Costs!$A733)*('Fixed assets'!$R$2:$R$1000))-SUMPRODUCT(('Fixed assets'!$Q$2:$Q$1000=Costs!AM$705)*('Fixed assets'!$U$2:$U$1000>Costs!$A733)*('Fixed assets'!$P$2:$P$1000=Costs!$A733)*('Fixed assets'!$S$2:$S$1000))","v":0},{"$f":"AN645+SUMPRODUCT(('Fixed assets'!$Q$2:$Q$1000=Costs!AN$705)*('Fixed assets'!$U$2:$U$1000>Costs!$A733)*('Fixed assets'!$P$2:$P$1000=Costs!$A733)*('Fixed assets'!$R$2:$R$1000))-SUMPRODUCT(('Fixed assets'!$Q$2:$Q$1000=Costs!AN$705)*('Fixed assets'!$U$2:$U$1000>Costs!$A733)*('Fixed assets'!$P$2:$P$1000=Costs!$A733)*('Fixed assets'!$S$2:$S$1000))","v":0},{"$f":"AO645+SUMPRODUCT(('Fixed assets'!$Q$2:$Q$1000=Costs!AO$705)*('Fixed assets'!$U$2:$U$1000>Costs!$A733)*('Fixed assets'!$P$2:$P$1000=Costs!$A733)*('Fixed assets'!$R$2:$R$1000))-SUMPRODUCT(('Fixed assets'!$Q$2:$Q$1000=Costs!AO$705)*('Fixed assets'!$U$2:$U$1000>Costs!$A733)*('Fixed assets'!$P$2:$P$1000=Costs!$A733)*('Fixed assets'!$S$2:$S$1000))","v":0},{"$f":"AP645+SUMPRODUCT(('Fixed assets'!$Q$2:$Q$1000=Costs!AP$705)*('Fixed assets'!$U$2:$U$1000>Costs!$A733)*('Fixed assets'!$P$2:$P$1000=Costs!$A733)*('Fixed assets'!$R$2:$R$1000))-SUMPRODUCT(('Fixed assets'!$Q$2:$Q$1000=Costs!AP$705)*('Fixed assets'!$U$2:$U$1000>Costs!$A733)*('Fixed assets'!$P$2:$P$1000=Costs!$A733)*('Fixed assets'!$S$2:$S$1000))","v":0},{"$f":"AQ645+SUMPRODUCT(('Fixed assets'!$Q$2:$Q$1000=Costs!AQ$705)*('Fixed assets'!$U$2:$U$1000>Costs!$A733)*('Fixed assets'!$P$2:$P$1000=Costs!$A733)*('Fixed assets'!$R$2:$R$1000))-SUMPRODUCT(('Fixed assets'!$Q$2:$Q$1000=Costs!AQ$705)*('Fixed assets'!$U$2:$U$1000>Costs!$A733)*('Fixed assets'!$P$2:$P$1000=Costs!$A733)*('Fixed assets'!$S$2:$S$1000))","v":0}]
[2043,0,{"$f":"C646+SUMPRODUCT(('Fixed assets'!$Q$2:$Q$1000=Costs!C$705)*('Fixed assets'!$U$2:$U$1000>Costs!$A734)*('Fixed assets'!$P$2:$P$1000=Costs!$A734)*('Fixed assets'!$R$2:$R$1000))-SUMPRODUCT(('Fixed assets'!$Q$2:$Q$1000=Costs!C$705)*('Fixed assets'!$U$2:$U$1000>Costs!$A734)*('Fixed assets'!$P$2:$P$1000=Costs!$A734)*('Fixed assets'!$S$2:$S$1000))","v":0},{"$f":"D646+SUMPRODUCT(('Fixed assets'!$Q$2:$Q$1000=Costs!D$705)*('Fixed assets'!$U$2:$U$1000>Costs!$A734)*('Fixed assets'!$P$2:$P$1000=Costs!$A734)*('Fixed assets'!$R$2:$R$1000))-SUMPRODUCT(('Fixed assets'!$Q$2:$Q$1000=Costs!D$705)*('Fixed assets'!$U$2:$U$1000>Costs!$A734)*('Fixed assets'!$P$2:$P$1000=Costs!$A734)*('Fixed assets'!$S$2:$S$1000))","v":0},{"$f":"E646+SUMPRODUCT(('Fixed assets'!$Q$2:$Q$1000=Costs!E$705)*('Fixed assets'!$U$2:$U$1000>Costs!$A734)*('Fixed assets'!$P$2:$P$1000=Costs!$A734)*('Fixed assets'!$R$2:$R$1000))-SUMPRODUCT(('Fixed assets'!$Q$2:$Q$1000=Costs!E$705)*('Fixed assets'!$U$2:$U$1000>Costs!$A734)*('Fixed assets'!$P$2:$P$1000=Costs!$A734)*('Fixed assets'!$S$2:$S$1000))","v":0},{"$f":"F646+SUMPRODUCT(('Fixed assets'!$Q$2:$Q$1000=Costs!F$705)*('Fixed assets'!$U$2:$U$1000>Costs!$A734)*('Fixed assets'!$P$2:$P$1000=Costs!$A734)*('Fixed assets'!$R$2:$R$1000))-SUMPRODUCT(('Fixed assets'!$Q$2:$Q$1000=Costs!F$705)*('Fixed assets'!$U$2:$U$1000>Costs!$A734)*('Fixed assets'!$P$2:$P$1000=Costs!$A734)*('Fixed assets'!$S$2:$S$1000))","v":0},{"$f":"G646+SUMPRODUCT(('Fixed assets'!$Q$2:$Q$1000=Costs!G$705)*('Fixed assets'!$U$2:$U$1000>Costs!$A734)*('Fixed assets'!$P$2:$P$1000=Costs!$A734)*('Fixed assets'!$R$2:$R$1000))-SUMPRODUCT(('Fixed assets'!$Q$2:$Q$1000=Costs!G$705)*('Fixed assets'!$U$2:$U$1000>Costs!$A734)*('Fixed assets'!$P$2:$P$1000=Costs!$A734)*('Fixed assets'!$S$2:$S$1000))","v":0},{"$f":"H646+SUMPRODUCT(('Fixed assets'!$Q$2:$Q$1000=Costs!H$705)*('Fixed assets'!$U$2:$U$1000>Costs!$A734)*('Fixed assets'!$P$2:$P$1000=Costs!$A734)*('Fixed assets'!$R$2:$R$1000))-SUMPRODUCT(('Fixed assets'!$Q$2:$Q$1000=Costs!H$705)*('Fixed assets'!$U$2:$U$1000>Costs!$A734)*('Fixed assets'!$P$2:$P$1000=Costs!$A734)*('Fixed assets'!$S$2:$S$1000))","v":0},{"$f":"I646+SUMPRODUCT(('Fixed assets'!$Q$2:$Q$1000=Costs!I$705)*('Fixed assets'!$U$2:$U$1000>Costs!$A734)*('Fixed assets'!$P$2:$P$1000=Costs!$A734)*('Fixed assets'!$R$2:$R$1000))-SUMPRODUCT(('Fixed assets'!$Q$2:$Q$1000=Costs!I$705)*('Fixed assets'!$U$2:$U$1000>Costs!$A734)*('Fixed assets'!$P$2:$P$1000=Costs!$A734)*('Fixed assets'!$S$2:$S$1000))","v":0},{"$f":"J646+SUMPRODUCT(('Fixed assets'!$Q$2:$Q$1000=Costs!J$705)*('Fixed assets'!$U$2:$U$1000>Costs!$A734)*('Fixed assets'!$P$2:$P$1000=Costs!$A734)*('Fixed assets'!$R$2:$R$1000))-SUMPRODUCT(('Fixed assets'!$Q$2:$Q$1000=Costs!J$705)*('Fixed assets'!$U$2:$U$1000>Costs!$A734)*('Fixed assets'!$P$2:$P$1000=Costs!$A734)*('Fixed assets'!$S$2:$S$1000))","v":0},{"$f":"K646+SUMPRODUCT(('Fixed assets'!$Q$2:$Q$1000=Costs!K$705)*('Fixed assets'!$U$2:$U$1000>Costs!$A734)*('Fixed assets'!$P$2:$P$1000=Costs!$A734)*('Fixed assets'!$R$2:$R$1000))-SUMPRODUCT(('Fixed assets'!$Q$2:$Q$1000=Costs!K$705)*('Fixed assets'!$U$2:$U$1000>Costs!$A734)*('Fixed assets'!$P$2:$P$1000=Costs!$A734)*('Fixed assets'!$S$2:$S$1000))","v":0},{"$f":"L646+SUMPRODUCT(('Fixed assets'!$Q$2:$Q$1000=Costs!L$705)*('Fixed assets'!$U$2:$U$1000>Costs!$A734)*('Fixed assets'!$P$2:$P$1000=Costs!$A734)*('Fixed assets'!$R$2:$R$1000))-SUMPRODUCT(('Fixed assets'!$Q$2:$Q$1000=Costs!L$705)*('Fixed assets'!$U$2:$U$1000>Costs!$A734)*('Fixed assets'!$P$2:$P$1000=Costs!$A734)*('Fixed assets'!$S$2:$S$1000))","v":0},{"$f":"M646+SUMPRODUCT(('Fixed assets'!$Q$2:$Q$1000=Costs!M$705)*('Fixed assets'!$U$2:$U$1000>Costs!$A734)*('Fixed assets'!$P$2:$P$1000=Costs!$A734)*('Fixed assets'!$R$2:$R$1000))-SUMPRODUCT(('Fixed assets'!$Q$2:$Q$1000=Costs!M$705)*('Fixed assets'!$U$2:$U$1000>Costs!$A734)*('Fixed assets'!$P$2:$P$1000=Costs!$A734)*('Fixed assets'!$S$2:$S$1000))","v":0},{"$f":"N646+SUMPRODUCT(('Fixed assets'!$Q$2:$Q$1000=Costs!N$705)*('Fixed assets'!$U$2:$U$1000>Costs!$A734)*('Fixed assets'!$P$2:$P$1000=Costs!$A734)*('Fixed assets'!$R$2:$R$1000))-SUMPRODUCT(('Fixed assets'!$Q$2:$Q$1000=Costs!N$705)*('Fixed assets'!$U$2:$U$1000>Costs!$A734)*('Fixed assets'!$P$2:$P$1000=Costs!$A734)*('Fixed assets'!$S$2:$S$1000))","v":0},{"$f":"O646+SUMPRODUCT(('Fixed assets'!$Q$2:$Q$1000=Costs!O$705)*('Fixed assets'!$U$2:$U$1000>Costs!$A734)*('Fixed assets'!$P$2:$P$1000=Costs!$A734)*('Fixed assets'!$R$2:$R$1000))-SUMPRODUCT(('Fixed assets'!$Q$2:$Q$1000=Costs!O$705)*('Fixed assets'!$U$2:$U$1000>Costs!$A734)*('Fixed assets'!$P$2:$P$1000=Costs!$A734)*('Fixed assets'!$S$2:$S$1000))","v":0},{"$f":"P646+SUMPRODUCT(('Fixed assets'!$Q$2:$Q$1000=Costs!P$705)*('Fixed assets'!$U$2:$U$1000>Costs!$A734)*('Fixed assets'!$P$2:$P$1000=Costs!$A734)*('Fixed assets'!$R$2:$R$1000))-SUMPRODUCT(('Fixed assets'!$Q$2:$Q$1000=Costs!P$705)*('Fixed assets'!$U$2:$U$1000>Costs!$A734)*('Fixed assets'!$P$2:$P$1000=Costs!$A734)*('Fixed assets'!$S$2:$S$1000))","v":0},{"$f":"Q646+SUMPRODUCT(('Fixed assets'!$Q$2:$Q$1000=Costs!Q$705)*('Fixed assets'!$U$2:$U$1000>Costs!$A734)*('Fixed assets'!$P$2:$P$1000=Costs!$A734)*('Fixed assets'!$R$2:$R$1000))-SUMPRODUCT(('Fixed assets'!$Q$2:$Q$1000=Costs!Q$705)*('Fixed assets'!$U$2:$U$1000>Costs!$A734)*('Fixed assets'!$P$2:$P$1000=Costs!$A734)*('Fixed assets'!$S$2:$S$1000))","v":0},{"$f":"R646+SUMPRODUCT(('Fixed assets'!$Q$2:$Q$1000=Costs!R$705)*('Fixed assets'!$U$2:$U$1000>Costs!$A734)*('Fixed assets'!$P$2:$P$1000=Costs!$A734)*('Fixed assets'!$R$2:$R$1000))-SUMPRODUCT(('Fixed assets'!$Q$2:$Q$1000=Costs!R$705)*('Fixed assets'!$U$2:$U$1000>Costs!$A734)*('Fixed assets'!$P$2:$P$1000=Costs!$A734)*('Fixed assets'!$S$2:$S$1000))","v":0},{"$f":"S646+SUMPRODUCT(('Fixed assets'!$Q$2:$Q$1000=Costs!S$705)*('Fixed assets'!$U$2:$U$1000>Costs!$A734)*('Fixed assets'!$P$2:$P$1000=Costs!$A734)*('Fixed assets'!$R$2:$R$1000))-SUMPRODUCT(('Fixed assets'!$Q$2:$Q$1000=Costs!S$705)*('Fixed assets'!$U$2:$U$1000>Costs!$A734)*('Fixed assets'!$P$2:$P$1000=Costs!$A734)*('Fixed assets'!$S$2:$S$1000))","v":0},{"$f":"T646+SUMPRODUCT(('Fixed assets'!$Q$2:$Q$1000=Costs!T$705)*('Fixed assets'!$U$2:$U$1000>Costs!$A734)*('Fixed assets'!$P$2:$P$1000=Costs!$A734)*('Fixed assets'!$R$2:$R$1000))-SUMPRODUCT(('Fixed assets'!$Q$2:$Q$1000=Costs!T$705)*('Fixed assets'!$U$2:$U$1000>Costs!$A734)*('Fixed assets'!$P$2:$P$1000=Costs!$A734)*('Fixed assets'!$S$2:$S$1000))","v":0},{"$f":"U646+SUMPRODUCT(('Fixed assets'!$Q$2:$Q$1000=Costs!U$705)*('Fixed assets'!$U$2:$U$1000>Costs!$A734)*('Fixed assets'!$P$2:$P$1000=Costs!$A734)*('Fixed assets'!$R$2:$R$1000))-SUMPRODUCT(('Fixed assets'!$Q$2:$Q$1000=Costs!U$705)*('Fixed assets'!$U$2:$U$1000>Costs!$A734)*('Fixed assets'!$P$2:$P$1000=Costs!$A734)*('Fixed assets'!$S$2:$S$1000))","v":0},{"$f":"V646+SUMPRODUCT(('Fixed assets'!$Q$2:$Q$1000=Costs!V$705)*('Fixed assets'!$U$2:$U$1000>Costs!$A734)*('Fixed assets'!$P$2:$P$1000=Costs!$A734)*('Fixed assets'!$R$2:$R$1000))-SUMPRODUCT(('Fixed assets'!$Q$2:$Q$1000=Costs!V$705)*('Fixed assets'!$U$2:$U$1000>Costs!$A734)*('Fixed assets'!$P$2:$P$1000=Costs!$A734)*('Fixed assets'!$S$2:$S$1000))","v":0},{"$f":"W646+SUMPRODUCT(('Fixed assets'!$Q$2:$Q$1000=Costs!W$705)*('Fixed assets'!$U$2:$U$1000>Costs!$A734)*('Fixed assets'!$P$2:$P$1000=Costs!$A734)*('Fixed assets'!$R$2:$R$1000))-SUMPRODUCT(('Fixed assets'!$Q$2:$Q$1000=Costs!W$705)*('Fixed assets'!$U$2:$U$1000>Costs!$A734)*('Fixed assets'!$P$2:$P$1000=Costs!$A734)*('Fixed assets'!$S$2:$S$1000))","v":0},{"$f":"X646+SUMPRODUCT(('Fixed assets'!$Q$2:$Q$1000=Costs!X$705)*('Fixed assets'!$U$2:$U$1000>Costs!$A734)*('Fixed assets'!$P$2:$P$1000=Costs!$A734)*('Fixed assets'!$R$2:$R$1000))-SUMPRODUCT(('Fixed assets'!$Q$2:$Q$1000=Costs!X$705)*('Fixed assets'!$U$2:$U$1000>Costs!$A734)*('Fixed assets'!$P$2:$P$1000=Costs!$A734)*('Fixed assets'!$S$2:$S$1000))","v":0},{"$f":"Y646+SUMPRODUCT(('Fixed assets'!$Q$2:$Q$1000=Costs!Y$705)*('Fixed assets'!$U$2:$U$1000>Costs!$A734)*('Fixed assets'!$P$2:$P$1000=Costs!$A734)*('Fixed assets'!$R$2:$R$1000))-SUMPRODUCT(('Fixed assets'!$Q$2:$Q$1000=Costs!Y$705)*('Fixed assets'!$U$2:$U$1000>Costs!$A734)*('Fixed assets'!$P$2:$P$1000=Costs!$A734)*('Fixed assets'!$S$2:$S$1000))","v":0},{"$f":"Z646+SUMPRODUCT(('Fixed assets'!$Q$2:$Q$1000=Costs!Z$705)*('Fixed assets'!$U$2:$U$1000>Costs!$A734)*('Fixed assets'!$P$2:$P$1000=Costs!$A734)*('Fixed assets'!$R$2:$R$1000))-SUMPRODUCT(('Fixed assets'!$Q$2:$Q$1000=Costs!Z$705)*('Fixed assets'!$U$2:$U$1000>Costs!$A734)*('Fixed assets'!$P$2:$P$1000=Costs!$A734)*('Fixed assets'!$S$2:$S$1000))","v":0},{"$f":"AA646+SUMPRODUCT(('Fixed assets'!$Q$2:$Q$1000=Costs!AA$705)*('Fixed assets'!$U$2:$U$1000>Costs!$A734)*('Fixed assets'!$P$2:$P$1000=Costs!$A734)*('Fixed assets'!$R$2:$R$1000))-SUMPRODUCT(('Fixed assets'!$Q$2:$Q$1000=Costs!AA$705)*('Fixed assets'!$U$2:$U$1000>Costs!$A734)*('Fixed assets'!$P$2:$P$1000=Costs!$A734)*('Fixed assets'!$S$2:$S$1000))","v":0},{"$f":"AB646+SUMPRODUCT(('Fixed assets'!$Q$2:$Q$1000=Costs!AB$705)*('Fixed assets'!$U$2:$U$1000>Costs!$A734)*('Fixed assets'!$P$2:$P$1000=Costs!$A734)*('Fixed assets'!$R$2:$R$1000))-SUMPRODUCT(('Fixed assets'!$Q$2:$Q$1000=Costs!AB$705)*('Fixed assets'!$U$2:$U$1000>Costs!$A734)*('Fixed assets'!$P$2:$P$1000=Costs!$A734)*('Fixed assets'!$S$2:$S$1000))","v":0},{"$f":"AC646+SUMPRODUCT(('Fixed assets'!$Q$2:$Q$1000=Costs!AC$705)*('Fixed assets'!$U$2:$U$1000>Costs!$A734)*('Fixed assets'!$P$2:$P$1000=Costs!$A734)*('Fixed assets'!$R$2:$R$1000))-SUMPRODUCT(('Fixed assets'!$Q$2:$Q$1000=Costs!AC$705)*('Fixed assets'!$U$2:$U$1000>Costs!$A734)*('Fixed assets'!$P$2:$P$1000=Costs!$A734)*('Fixed assets'!$S$2:$S$1000))","v":0},{"$f":"AD646+SUMPRODUCT(('Fixed assets'!$Q$2:$Q$1000=Costs!AD$705)*('Fixed assets'!$U$2:$U$1000>Costs!$A734)*('Fixed assets'!$P$2:$P$1000=Costs!$A734)*('Fixed assets'!$R$2:$R$1000))-SUMPRODUCT(('Fixed assets'!$Q$2:$Q$1000=Costs!AD$705)*('Fixed assets'!$U$2:$U$1000>Costs!$A734)*('Fixed assets'!$P$2:$P$1000=Costs!$A734)*('Fixed assets'!$S$2:$S$1000))","v":0},{"$f":"AE646+SUMPRODUCT(('Fixed assets'!$Q$2:$Q$1000=Costs!AE$705)*('Fixed assets'!$U$2:$U$1000>Costs!$A734)*('Fixed assets'!$P$2:$P$1000=Costs!$A734)*('Fixed assets'!$R$2:$R$1000))-SUMPRODUCT(('Fixed assets'!$Q$2:$Q$1000=Costs!AE$705)*('Fixed assets'!$U$2:$U$1000>Costs!$A734)*('Fixed assets'!$P$2:$P$1000=Costs!$A734)*('Fixed assets'!$S$2:$S$1000))","v":0},{"$f":"AF646+SUMPRODUCT(('Fixed assets'!$Q$2:$Q$1000=Costs!AF$705)*('Fixed assets'!$U$2:$U$1000>Costs!$A734)*('Fixed assets'!$P$2:$P$1000=Costs!$A734)*('Fixed assets'!$R$2:$R$1000))-SUMPRODUCT(('Fixed assets'!$Q$2:$Q$1000=Costs!AF$705)*('Fixed assets'!$U$2:$U$1000>Costs!$A734)*('Fixed assets'!$P$2:$P$1000=Costs!$A734)*('Fixed assets'!$S$2:$S$1000))","v":0},{"$f":"AG646+SUMPRODUCT(('Fixed assets'!$Q$2:$Q$1000=Costs!AG$705)*('Fixed assets'!$U$2:$U$1000>Costs!$A734)*('Fixed assets'!$P$2:$P$1000=Costs!$A734)*('Fixed assets'!$R$2:$R$1000))-SUMPRODUCT(('Fixed assets'!$Q$2:$Q$1000=Costs!AG$705)*('Fixed assets'!$U$2:$U$1000>Costs!$A734)*('Fixed assets'!$P$2:$P$1000=Costs!$A734)*('Fixed assets'!$S$2:$S$1000))","v":0},{"$f":"AH646+SUMPRODUCT(('Fixed assets'!$Q$2:$Q$1000=Costs!AH$705)*('Fixed assets'!$U$2:$U$1000>Costs!$A734)*('Fixed assets'!$P$2:$P$1000=Costs!$A734)*('Fixed assets'!$R$2:$R$1000))-SUMPRODUCT(('Fixed assets'!$Q$2:$Q$1000=Costs!AH$705)*('Fixed assets'!$U$2:$U$1000>Costs!$A734)*('Fixed assets'!$P$2:$P$1000=Costs!$A734)*('Fixed assets'!$S$2:$S$1000))","v":0},{"$f":"AI646+SUMPRODUCT(('Fixed assets'!$Q$2:$Q$1000=Costs!AI$705)*('Fixed assets'!$U$2:$U$1000>Costs!$A734)*('Fixed assets'!$P$2:$P$1000=Costs!$A734)*('Fixed assets'!$R$2:$R$1000))-SUMPRODUCT(('Fixed assets'!$Q$2:$Q$1000=Costs!AI$705)*('Fixed assets'!$U$2:$U$1000>Costs!$A734)*('Fixed assets'!$P$2:$P$1000=Costs!$A734)*('Fixed assets'!$S$2:$S$1000))","v":0},{"$f":"AJ646+SUMPRODUCT(('Fixed assets'!$Q$2:$Q$1000=Costs!AJ$705)*('Fixed assets'!$U$2:$U$1000>Costs!$A734)*('Fixed assets'!$P$2:$P$1000=Costs!$A734)*('Fixed assets'!$R$2:$R$1000))-SUMPRODUCT(('Fixed assets'!$Q$2:$Q$1000=Costs!AJ$705)*('Fixed assets'!$U$2:$U$1000>Costs!$A734)*('Fixed assets'!$P$2:$P$1000=Costs!$A734)*('Fixed assets'!$S$2:$S$1000))","v":0},{"$f":"AK646+SUMPRODUCT(('Fixed assets'!$Q$2:$Q$1000=Costs!AK$705)*('Fixed assets'!$U$2:$U$1000>Costs!$A734)*('Fixed assets'!$P$2:$P$1000=Costs!$A734)*('Fixed assets'!$R$2:$R$1000))-SUMPRODUCT(('Fixed assets'!$Q$2:$Q$1000=Costs!AK$705)*('Fixed assets'!$U$2:$U$1000>Costs!$A734)*('Fixed assets'!$P$2:$P$1000=Costs!$A734)*('Fixed assets'!$S$2:$S$1000))","v":0},{"$f":"AL646+SUMPRODUCT(('Fixed assets'!$Q$2:$Q$1000=Costs!AL$705)*('Fixed assets'!$U$2:$U$1000>Costs!$A734)*('Fixed assets'!$P$2:$P$1000=Costs!$A734)*('Fixed assets'!$R$2:$R$1000))-SUMPRODUCT(('Fixed assets'!$Q$2:$Q$1000=Costs!AL$705)*('Fixed assets'!$U$2:$U$1000>Costs!$A734)*('Fixed assets'!$P$2:$P$1000=Costs!$A734)*('Fixed assets'!$S$2:$S$1000))","v":0},{"$f":"AM646+SUMPRODUCT(('Fixed assets'!$Q$2:$Q$1000=Costs!AM$705)*('Fixed assets'!$U$2:$U$1000>Costs!$A734)*('Fixed assets'!$P$2:$P$1000=Costs!$A734)*('Fixed assets'!$R$2:$R$1000))-SUMPRODUCT(('Fixed assets'!$Q$2:$Q$1000=Costs!AM$705)*('Fixed assets'!$U$2:$U$1000>Costs!$A734)*('Fixed assets'!$P$2:$P$1000=Costs!$A734)*('Fixed assets'!$S$2:$S$1000))","v":0},{"$f":"AN646+SUMPRODUCT(('Fixed assets'!$Q$2:$Q$1000=Costs!AN$705)*('Fixed assets'!$U$2:$U$1000>Costs!$A734)*('Fixed assets'!$P$2:$P$1000=Costs!$A734)*('Fixed assets'!$R$2:$R$1000))-SUMPRODUCT(('Fixed assets'!$Q$2:$Q$1000=Costs!AN$705)*('Fixed assets'!$U$2:$U$1000>Costs!$A734)*('Fixed assets'!$P$2:$P$1000=Costs!$A734)*('Fixed assets'!$S$2:$S$1000))","v":0},{"$f":"AO646+SUMPRODUCT(('Fixed assets'!$Q$2:$Q$1000=Costs!AO$705)*('Fixed assets'!$U$2:$U$1000>Costs!$A734)*('Fixed assets'!$P$2:$P$1000=Costs!$A734)*('Fixed assets'!$R$2:$R$1000))-SUMPRODUCT(('Fixed assets'!$Q$2:$Q$1000=Costs!AO$705)*('Fixed assets'!$U$2:$U$1000>Costs!$A734)*('Fixed assets'!$P$2:$P$1000=Costs!$A734)*('Fixed assets'!$S$2:$S$1000))","v":0},{"$f":"AP646+SUMPRODUCT(('Fixed assets'!$Q$2:$Q$1000=Costs!AP$705)*('Fixed assets'!$U$2:$U$1000>Costs!$A734)*('Fixed assets'!$P$2:$P$1000=Costs!$A734)*('Fixed assets'!$R$2:$R$1000))-SUMPRODUCT(('Fixed assets'!$Q$2:$Q$1000=Costs!AP$705)*('Fixed assets'!$U$2:$U$1000>Costs!$A734)*('Fixed assets'!$P$2:$P$1000=Costs!$A734)*('Fixed assets'!$S$2:$S$1000))","v":0},{"$f":"AQ646+SUMPRODUCT(('Fixed assets'!$Q$2:$Q$1000=Costs!AQ$705)*('Fixed assets'!$U$2:$U$1000>Costs!$A734)*('Fixed assets'!$P$2:$P$1000=Costs!$A734)*('Fixed assets'!$R$2:$R$1000))-SUMPRODUCT(('Fixed assets'!$Q$2:$Q$1000=Costs!AQ$705)*('Fixed assets'!$U$2:$U$1000>Costs!$A734)*('Fixed assets'!$P$2:$P$1000=Costs!$A734)*('Fixed assets'!$S$2:$S$1000))","v":0}]
[2044,0,{"$f":"C647+SUMPRODUCT(('Fixed assets'!$Q$2:$Q$1000=Costs!C$705)*('Fixed assets'!$U$2:$U$1000>Costs!$A735)*('Fixed assets'!$P$2:$P$1000=Costs!$A735)*('Fixed assets'!$R$2:$R$1000))-SUMPRODUCT(('Fixed assets'!$Q$2:$Q$1000=Costs!C$705)*('Fixed assets'!$U$2:$U$1000>Costs!$A735)*('Fixed assets'!$P$2:$P$1000=Costs!$A735)*('Fixed assets'!$S$2:$S$1000))","v":0},{"$f":"D647+SUMPRODUCT(('Fixed assets'!$Q$2:$Q$1000=Costs!D$705)*('Fixed assets'!$U$2:$U$1000>Costs!$A735)*('Fixed assets'!$P$2:$P$1000=Costs!$A735)*('Fixed assets'!$R$2:$R$1000))-SUMPRODUCT(('Fixed assets'!$Q$2:$Q$1000=Costs!D$705)*('Fixed assets'!$U$2:$U$1000>Costs!$A735)*('Fixed assets'!$P$2:$P$1000=Costs!$A735)*('Fixed assets'!$S$2:$S$1000))","v":0},{"$f":"E647+SUMPRODUCT(('Fixed assets'!$Q$2:$Q$1000=Costs!E$705)*('Fixed assets'!$U$2:$U$1000>Costs!$A735)*('Fixed assets'!$P$2:$P$1000=Costs!$A735)*('Fixed assets'!$R$2:$R$1000))-SUMPRODUCT(('Fixed assets'!$Q$2:$Q$1000=Costs!E$705)*('Fixed assets'!$U$2:$U$1000>Costs!$A735)*('Fixed assets'!$P$2:$P$1000=Costs!$A735)*('Fixed assets'!$S$2:$S$1000))","v":0},{"$f":"F647+SUMPRODUCT(('Fixed assets'!$Q$2:$Q$1000=Costs!F$705)*('Fixed assets'!$U$2:$U$1000>Costs!$A735)*('Fixed assets'!$P$2:$P$1000=Costs!$A735)*('Fixed assets'!$R$2:$R$1000))-SUMPRODUCT(('Fixed assets'!$Q$2:$Q$1000=Costs!F$705)*('Fixed assets'!$U$2:$U$1000>Costs!$A735)*('Fixed assets'!$P$2:$P$1000=Costs!$A735)*('Fixed assets'!$S$2:$S$1000))","v":0},{"$f":"G647+SUMPRODUCT(('Fixed assets'!$Q$2:$Q$1000=Costs!G$705)*('Fixed assets'!$U$2:$U$1000>Costs!$A735)*('Fixed assets'!$P$2:$P$1000=Costs!$A735)*('Fixed assets'!$R$2:$R$1000))-SUMPRODUCT(('Fixed assets'!$Q$2:$Q$1000=Costs!G$705)*('Fixed assets'!$U$2:$U$1000>Costs!$A735)*('Fixed assets'!$P$2:$P$1000=Costs!$A735)*('Fixed assets'!$S$2:$S$1000))","v":0},{"$f":"H647+SUMPRODUCT(('Fixed assets'!$Q$2:$Q$1000=Costs!H$705)*('Fixed assets'!$U$2:$U$1000>Costs!$A735)*('Fixed assets'!$P$2:$P$1000=Costs!$A735)*('Fixed assets'!$R$2:$R$1000))-SUMPRODUCT(('Fixed assets'!$Q$2:$Q$1000=Costs!H$705)*('Fixed assets'!$U$2:$U$1000>Costs!$A735)*('Fixed assets'!$P$2:$P$1000=Costs!$A735)*('Fixed assets'!$S$2:$S$1000))","v":0},{"$f":"I647+SUMPRODUCT(('Fixed assets'!$Q$2:$Q$1000=Costs!I$705)*('Fixed assets'!$U$2:$U$1000>Costs!$A735)*('Fixed assets'!$P$2:$P$1000=Costs!$A735)*('Fixed assets'!$R$2:$R$1000))-SUMPRODUCT(('Fixed assets'!$Q$2:$Q$1000=Costs!I$705)*('Fixed assets'!$U$2:$U$1000>Costs!$A735)*('Fixed assets'!$P$2:$P$1000=Costs!$A735)*('Fixed assets'!$S$2:$S$1000))","v":0},{"$f":"J647+SUMPRODUCT(('Fixed assets'!$Q$2:$Q$1000=Costs!J$705)*('Fixed assets'!$U$2:$U$1000>Costs!$A735)*('Fixed assets'!$P$2:$P$1000=Costs!$A735)*('Fixed assets'!$R$2:$R$1000))-SUMPRODUCT(('Fixed assets'!$Q$2:$Q$1000=Costs!J$705)*('Fixed assets'!$U$2:$U$1000>Costs!$A735)*('Fixed assets'!$P$2:$P$1000=Costs!$A735)*('Fixed assets'!$S$2:$S$1000))","v":0},{"$f":"K647+SUMPRODUCT(('Fixed assets'!$Q$2:$Q$1000=Costs!K$705)*('Fixed assets'!$U$2:$U$1000>Costs!$A735)*('Fixed assets'!$P$2:$P$1000=Costs!$A735)*('Fixed assets'!$R$2:$R$1000))-SUMPRODUCT(('Fixed assets'!$Q$2:$Q$1000=Costs!K$705)*('Fixed assets'!$U$2:$U$1000>Costs!$A735)*('Fixed assets'!$P$2:$P$1000=Costs!$A735)*('Fixed assets'!$S$2:$S$1000))","v":0},{"$f":"L647+SUMPRODUCT(('Fixed assets'!$Q$2:$Q$1000=Costs!L$705)*('Fixed assets'!$U$2:$U$1000>Costs!$A735)*('Fixed assets'!$P$2:$P$1000=Costs!$A735)*('Fixed assets'!$R$2:$R$1000))-SUMPRODUCT(('Fixed assets'!$Q$2:$Q$1000=Costs!L$705)*('Fixed assets'!$U$2:$U$1000>Costs!$A735)*('Fixed assets'!$P$2:$P$1000=Costs!$A735)*('Fixed assets'!$S$2:$S$1000))","v":0},{"$f":"M647+SUMPRODUCT(('Fixed assets'!$Q$2:$Q$1000=Costs!M$705)*('Fixed assets'!$U$2:$U$1000>Costs!$A735)*('Fixed assets'!$P$2:$P$1000=Costs!$A735)*('Fixed assets'!$R$2:$R$1000))-SUMPRODUCT(('Fixed assets'!$Q$2:$Q$1000=Costs!M$705)*('Fixed assets'!$U$2:$U$1000>Costs!$A735)*('Fixed assets'!$P$2:$P$1000=Costs!$A735)*('Fixed assets'!$S$2:$S$1000))","v":0},{"$f":"N647+SUMPRODUCT(('Fixed assets'!$Q$2:$Q$1000=Costs!N$705)*('Fixed assets'!$U$2:$U$1000>Costs!$A735)*('Fixed assets'!$P$2:$P$1000=Costs!$A735)*('Fixed assets'!$R$2:$R$1000))-SUMPRODUCT(('Fixed assets'!$Q$2:$Q$1000=Costs!N$705)*('Fixed assets'!$U$2:$U$1000>Costs!$A735)*('Fixed assets'!$P$2:$P$1000=Costs!$A735)*('Fixed assets'!$S$2:$S$1000))","v":0},{"$f":"O647+SUMPRODUCT(('Fixed assets'!$Q$2:$Q$1000=Costs!O$705)*('Fixed assets'!$U$2:$U$1000>Costs!$A735)*('Fixed assets'!$P$2:$P$1000=Costs!$A735)*('Fixed assets'!$R$2:$R$1000))-SUMPRODUCT(('Fixed assets'!$Q$2:$Q$1000=Costs!O$705)*('Fixed assets'!$U$2:$U$1000>Costs!$A735)*('Fixed assets'!$P$2:$P$1000=Costs!$A735)*('Fixed assets'!$S$2:$S$1000))","v":0},{"$f":"P647+SUMPRODUCT(('Fixed assets'!$Q$2:$Q$1000=Costs!P$705)*('Fixed assets'!$U$2:$U$1000>Costs!$A735)*('Fixed assets'!$P$2:$P$1000=Costs!$A735)*('Fixed assets'!$R$2:$R$1000))-SUMPRODUCT(('Fixed assets'!$Q$2:$Q$1000=Costs!P$705)*('Fixed assets'!$U$2:$U$1000>Costs!$A735)*('Fixed assets'!$P$2:$P$1000=Costs!$A735)*('Fixed assets'!$S$2:$S$1000))","v":0},{"$f":"Q647+SUMPRODUCT(('Fixed assets'!$Q$2:$Q$1000=Costs!Q$705)*('Fixed assets'!$U$2:$U$1000>Costs!$A735)*('Fixed assets'!$P$2:$P$1000=Costs!$A735)*('Fixed assets'!$R$2:$R$1000))-SUMPRODUCT(('Fixed assets'!$Q$2:$Q$1000=Costs!Q$705)*('Fixed assets'!$U$2:$U$1000>Costs!$A735)*('Fixed assets'!$P$2:$P$1000=Costs!$A735)*('Fixed assets'!$S$2:$S$1000))","v":0},{"$f":"R647+SUMPRODUCT(('Fixed assets'!$Q$2:$Q$1000=Costs!R$705)*('Fixed assets'!$U$2:$U$1000>Costs!$A735)*('Fixed assets'!$P$2:$P$1000=Costs!$A735)*('Fixed assets'!$R$2:$R$1000))-SUMPRODUCT(('Fixed assets'!$Q$2:$Q$1000=Costs!R$705)*('Fixed assets'!$U$2:$U$1000>Costs!$A735)*('Fixed assets'!$P$2:$P$1000=Costs!$A735)*('Fixed assets'!$S$2:$S$1000))","v":0},{"$f":"S647+SUMPRODUCT(('Fixed assets'!$Q$2:$Q$1000=Costs!S$705)*('Fixed assets'!$U$2:$U$1000>Costs!$A735)*('Fixed assets'!$P$2:$P$1000=Costs!$A735)*('Fixed assets'!$R$2:$R$1000))-SUMPRODUCT(('Fixed assets'!$Q$2:$Q$1000=Costs!S$705)*('Fixed assets'!$U$2:$U$1000>Costs!$A735)*('Fixed assets'!$P$2:$P$1000=Costs!$A735)*('Fixed assets'!$S$2:$S$1000))","v":0},{"$f":"T647+SUMPRODUCT(('Fixed assets'!$Q$2:$Q$1000=Costs!T$705)*('Fixed assets'!$U$2:$U$1000>Costs!$A735)*('Fixed assets'!$P$2:$P$1000=Costs!$A735)*('Fixed assets'!$R$2:$R$1000))-SUMPRODUCT(('Fixed assets'!$Q$2:$Q$1000=Costs!T$705)*('Fixed assets'!$U$2:$U$1000>Costs!$A735)*('Fixed assets'!$P$2:$P$1000=Costs!$A735)*('Fixed assets'!$S$2:$S$1000))","v":0},{"$f":"U647+SUMPRODUCT(('Fixed assets'!$Q$2:$Q$1000=Costs!U$705)*('Fixed assets'!$U$2:$U$1000>Costs!$A735)*('Fixed assets'!$P$2:$P$1000=Costs!$A735)*('Fixed assets'!$R$2:$R$1000))-SUMPRODUCT(('Fixed assets'!$Q$2:$Q$1000=Costs!U$705)*('Fixed assets'!$U$2:$U$1000>Costs!$A735)*('Fixed assets'!$P$2:$P$1000=Costs!$A735)*('Fixed assets'!$S$2:$S$1000))","v":0},{"$f":"V647+SUMPRODUCT(('Fixed assets'!$Q$2:$Q$1000=Costs!V$705)*('Fixed assets'!$U$2:$U$1000>Costs!$A735)*('Fixed assets'!$P$2:$P$1000=Costs!$A735)*('Fixed assets'!$R$2:$R$1000))-SUMPRODUCT(('Fixed assets'!$Q$2:$Q$1000=Costs!V$705)*('Fixed assets'!$U$2:$U$1000>Costs!$A735)*('Fixed assets'!$P$2:$P$1000=Costs!$A735)*('Fixed assets'!$S$2:$S$1000))","v":0},{"$f":"W647+SUMPRODUCT(('Fixed assets'!$Q$2:$Q$1000=Costs!W$705)*('Fixed assets'!$U$2:$U$1000>Costs!$A735)*('Fixed assets'!$P$2:$P$1000=Costs!$A735)*('Fixed assets'!$R$2:$R$1000))-SUMPRODUCT(('Fixed assets'!$Q$2:$Q$1000=Costs!W$705)*('Fixed assets'!$U$2:$U$1000>Costs!$A735)*('Fixed assets'!$P$2:$P$1000=Costs!$A735)*('Fixed assets'!$S$2:$S$1000))","v":0},{"$f":"X647+SUMPRODUCT(('Fixed assets'!$Q$2:$Q$1000=Costs!X$705)*('Fixed assets'!$U$2:$U$1000>Costs!$A735)*('Fixed assets'!$P$2:$P$1000=Costs!$A735)*('Fixed assets'!$R$2:$R$1000))-SUMPRODUCT(('Fixed assets'!$Q$2:$Q$1000=Costs!X$705)*('Fixed assets'!$U$2:$U$1000>Costs!$A735)*('Fixed assets'!$P$2:$P$1000=Costs!$A735)*('Fixed assets'!$S$2:$S$1000))","v":0},{"$f":"Y647+SUMPRODUCT(('Fixed assets'!$Q$2:$Q$1000=Costs!Y$705)*('Fixed assets'!$U$2:$U$1000>Costs!$A735)*('Fixed assets'!$P$2:$P$1000=Costs!$A735)*('Fixed assets'!$R$2:$R$1000))-SUMPRODUCT(('Fixed assets'!$Q$2:$Q$1000=Costs!Y$705)*('Fixed assets'!$U$2:$U$1000>Costs!$A735)*('Fixed assets'!$P$2:$P$1000=Costs!$A735)*('Fixed assets'!$S$2:$S$1000))","v":0},{"$f":"Z647+SUMPRODUCT(('Fixed assets'!$Q$2:$Q$1000=Costs!Z$705)*('Fixed assets'!$U$2:$U$1000>Costs!$A735)*('Fixed assets'!$P$2:$P$1000=Costs!$A735)*('Fixed assets'!$R$2:$R$1000))-SUMPRODUCT(('Fixed assets'!$Q$2:$Q$1000=Costs!Z$705)*('Fixed assets'!$U$2:$U$1000>Costs!$A735)*('Fixed assets'!$P$2:$P$1000=Costs!$A735)*('Fixed assets'!$S$2:$S$1000))","v":0},{"$f":"AA647+SUMPRODUCT(('Fixed assets'!$Q$2:$Q$1000=Costs!AA$705)*('Fixed assets'!$U$2:$U$1000>Costs!$A735)*('Fixed assets'!$P$2:$P$1000=Costs!$A735)*('Fixed assets'!$R$2:$R$1000))-SUMPRODUCT(('Fixed assets'!$Q$2:$Q$1000=Costs!AA$705)*('Fixed assets'!$U$2:$U$1000>Costs!$A735)*('Fixed assets'!$P$2:$P$1000=Costs!$A735)*('Fixed assets'!$S$2:$S$1000))","v":0},{"$f":"AB647+SUMPRODUCT(('Fixed assets'!$Q$2:$Q$1000=Costs!AB$705)*('Fixed assets'!$U$2:$U$1000>Costs!$A735)*('Fixed assets'!$P$2:$P$1000=Costs!$A735)*('Fixed assets'!$R$2:$R$1000))-SUMPRODUCT(('Fixed assets'!$Q$2:$Q$1000=Costs!AB$705)*('Fixed assets'!$U$2:$U$1000>Costs!$A735)*('Fixed assets'!$P$2:$P$1000=Costs!$A735)*('Fixed assets'!$S$2:$S$1000))","v":0},{"$f":"AC647+SUMPRODUCT(('Fixed assets'!$Q$2:$Q$1000=Costs!AC$705)*('Fixed assets'!$U$2:$U$1000>Costs!$A735)*('Fixed assets'!$P$2:$P$1000=Costs!$A735)*('Fixed assets'!$R$2:$R$1000))-SUMPRODUCT(('Fixed assets'!$Q$2:$Q$1000=Costs!AC$705)*('Fixed assets'!$U$2:$U$1000>Costs!$A735)*('Fixed assets'!$P$2:$P$1000=Costs!$A735)*('Fixed assets'!$S$2:$S$1000))","v":0},{"$f":"AD647+SUMPRODUCT(('Fixed assets'!$Q$2:$Q$1000=Costs!AD$705)*('Fixed assets'!$U$2:$U$1000>Costs!$A735)*('Fixed assets'!$P$2:$P$1000=Costs!$A735)*('Fixed assets'!$R$2:$R$1000))-SUMPRODUCT(('Fixed assets'!$Q$2:$Q$1000=Costs!AD$705)*('Fixed assets'!$U$2:$U$1000>Costs!$A735)*('Fixed assets'!$P$2:$P$1000=Costs!$A735)*('Fixed assets'!$S$2:$S$1000))","v":0},{"$f":"AE647+SUMPRODUCT(('Fixed assets'!$Q$2:$Q$1000=Costs!AE$705)*('Fixed assets'!$U$2:$U$1000>Costs!$A735)*('Fixed assets'!$P$2:$P$1000=Costs!$A735)*('Fixed assets'!$R$2:$R$1000))-SUMPRODUCT(('Fixed assets'!$Q$2:$Q$1000=Costs!AE$705)*('Fixed assets'!$U$2:$U$1000>Costs!$A735)*('Fixed assets'!$P$2:$P$1000=Costs!$A735)*('Fixed assets'!$S$2:$S$1000))","v":0},{"$f":"AF647+SUMPRODUCT(('Fixed assets'!$Q$2:$Q$1000=Costs!AF$705)*('Fixed assets'!$U$2:$U$1000>Costs!$A735)*('Fixed assets'!$P$2:$P$1000=Costs!$A735)*('Fixed assets'!$R$2:$R$1000))-SUMPRODUCT(('Fixed assets'!$Q$2:$Q$1000=Costs!AF$705)*('Fixed assets'!$U$2:$U$1000>Costs!$A735)*('Fixed assets'!$P$2:$P$1000=Costs!$A735)*('Fixed assets'!$S$2:$S$1000))","v":0},{"$f":"AG647+SUMPRODUCT(('Fixed assets'!$Q$2:$Q$1000=Costs!AG$705)*('Fixed assets'!$U$2:$U$1000>Costs!$A735)*('Fixed assets'!$P$2:$P$1000=Costs!$A735)*('Fixed assets'!$R$2:$R$1000))-SUMPRODUCT(('Fixed assets'!$Q$2:$Q$1000=Costs!AG$705)*('Fixed assets'!$U$2:$U$1000>Costs!$A735)*('Fixed assets'!$P$2:$P$1000=Costs!$A735)*('Fixed assets'!$S$2:$S$1000))","v":0},{"$f":"AH647+SUMPRODUCT(('Fixed assets'!$Q$2:$Q$1000=Costs!AH$705)*('Fixed assets'!$U$2:$U$1000>Costs!$A735)*('Fixed assets'!$P$2:$P$1000=Costs!$A735)*('Fixed assets'!$R$2:$R$1000))-SUMPRODUCT(('Fixed assets'!$Q$2:$Q$1000=Costs!AH$705)*('Fixed assets'!$U$2:$U$1000>Costs!$A735)*('Fixed assets'!$P$2:$P$1000=Costs!$A735)*('Fixed assets'!$S$2:$S$1000))","v":0},{"$f":"AI647+SUMPRODUCT(('Fixed assets'!$Q$2:$Q$1000=Costs!AI$705)*('Fixed assets'!$U$2:$U$1000>Costs!$A735)*('Fixed assets'!$P$2:$P$1000=Costs!$A735)*('Fixed assets'!$R$2:$R$1000))-SUMPRODUCT(('Fixed assets'!$Q$2:$Q$1000=Costs!AI$705)*('Fixed assets'!$U$2:$U$1000>Costs!$A735)*('Fixed assets'!$P$2:$P$1000=Costs!$A735)*('Fixed assets'!$S$2:$S$1000))","v":0},{"$f":"AJ647+SUMPRODUCT(('Fixed assets'!$Q$2:$Q$1000=Costs!AJ$705)*('Fixed assets'!$U$2:$U$1000>Costs!$A735)*('Fixed assets'!$P$2:$P$1000=Costs!$A735)*('Fixed assets'!$R$2:$R$1000))-SUMPRODUCT(('Fixed assets'!$Q$2:$Q$1000=Costs!AJ$705)*('Fixed assets'!$U$2:$U$1000>Costs!$A735)*('Fixed assets'!$P$2:$P$1000=Costs!$A735)*('Fixed assets'!$S$2:$S$1000))","v":0},{"$f":"AK647+SUMPRODUCT(('Fixed assets'!$Q$2:$Q$1000=Costs!AK$705)*('Fixed assets'!$U$2:$U$1000>Costs!$A735)*('Fixed assets'!$P$2:$P$1000=Costs!$A735)*('Fixed assets'!$R$2:$R$1000))-SUMPRODUCT(('Fixed assets'!$Q$2:$Q$1000=Costs!AK$705)*('Fixed assets'!$U$2:$U$1000>Costs!$A735)*('Fixed assets'!$P$2:$P$1000=Costs!$A735)*('Fixed assets'!$S$2:$S$1000))","v":0},{"$f":"AL647+SUMPRODUCT(('Fixed assets'!$Q$2:$Q$1000=Costs!AL$705)*('Fixed assets'!$U$2:$U$1000>Costs!$A735)*('Fixed assets'!$P$2:$P$1000=Costs!$A735)*('Fixed assets'!$R$2:$R$1000))-SUMPRODUCT(('Fixed assets'!$Q$2:$Q$1000=Costs!AL$705)*('Fixed assets'!$U$2:$U$1000>Costs!$A735)*('Fixed assets'!$P$2:$P$1000=Costs!$A735)*('Fixed assets'!$S$2:$S$1000))","v":0},{"$f":"AM647+SUMPRODUCT(('Fixed assets'!$Q$2:$Q$1000=Costs!AM$705)*('Fixed assets'!$U$2:$U$1000>Costs!$A735)*('Fixed assets'!$P$2:$P$1000=Costs!$A735)*('Fixed assets'!$R$2:$R$1000))-SUMPRODUCT(('Fixed assets'!$Q$2:$Q$1000=Costs!AM$705)*('Fixed assets'!$U$2:$U$1000>Costs!$A735)*('Fixed assets'!$P$2:$P$1000=Costs!$A735)*('Fixed assets'!$S$2:$S$1000))","v":0},{"$f":"AN647+SUMPRODUCT(('Fixed assets'!$Q$2:$Q$1000=Costs!AN$705)*('Fixed assets'!$U$2:$U$1000>Costs!$A735)*('Fixed assets'!$P$2:$P$1000=Costs!$A735)*('Fixed assets'!$R$2:$R$1000))-SUMPRODUCT(('Fixed assets'!$Q$2:$Q$1000=Costs!AN$705)*('Fixed assets'!$U$2:$U$1000>Costs!$A735)*('Fixed assets'!$P$2:$P$1000=Costs!$A735)*('Fixed assets'!$S$2:$S$1000))","v":0},{"$f":"AO647+SUMPRODUCT(('Fixed assets'!$Q$2:$Q$1000=Costs!AO$705)*('Fixed assets'!$U$2:$U$1000>Costs!$A735)*('Fixed assets'!$P$2:$P$1000=Costs!$A735)*('Fixed assets'!$R$2:$R$1000))-SUMPRODUCT(('Fixed assets'!$Q$2:$Q$1000=Costs!AO$705)*('Fixed assets'!$U$2:$U$1000>Costs!$A735)*('Fixed assets'!$P$2:$P$1000=Costs!$A735)*('Fixed assets'!$S$2:$S$1000))","v":0},{"$f":"AP647+SUMPRODUCT(('Fixed assets'!$Q$2:$Q$1000=Costs!AP$705)*('Fixed assets'!$U$2:$U$1000>Costs!$A735)*('Fixed assets'!$P$2:$P$1000=Costs!$A735)*('Fixed assets'!$R$2:$R$1000))-SUMPRODUCT(('Fixed assets'!$Q$2:$Q$1000=Costs!AP$705)*('Fixed assets'!$U$2:$U$1000>Costs!$A735)*('Fixed assets'!$P$2:$P$1000=Costs!$A735)*('Fixed assets'!$S$2:$S$1000))","v":0},{"$f":"AQ647+SUMPRODUCT(('Fixed assets'!$Q$2:$Q$1000=Costs!AQ$705)*('Fixed assets'!$U$2:$U$1000>Costs!$A735)*('Fixed assets'!$P$2:$P$1000=Costs!$A735)*('Fixed assets'!$R$2:$R$1000))-SUMPRODUCT(('Fixed assets'!$Q$2:$Q$1000=Costs!AQ$705)*('Fixed assets'!$U$2:$U$1000>Costs!$A735)*('Fixed assets'!$P$2:$P$1000=Costs!$A735)*('Fixed assets'!$S$2:$S$1000))","v":0}]
[2045,0,{"$f":"C648+SUMPRODUCT(('Fixed assets'!$Q$2:$Q$1000=Costs!C$705)*('Fixed assets'!$U$2:$U$1000>Costs!$A736)*('Fixed assets'!$P$2:$P$1000=Costs!$A736)*('Fixed assets'!$R$2:$R$1000))-SUMPRODUCT(('Fixed assets'!$Q$2:$Q$1000=Costs!C$705)*('Fixed assets'!$U$2:$U$1000>Costs!$A736)*('Fixed assets'!$P$2:$P$1000=Costs!$A736)*('Fixed assets'!$S$2:$S$1000))","v":0},{"$f":"D648+SUMPRODUCT(('Fixed assets'!$Q$2:$Q$1000=Costs!D$705)*('Fixed assets'!$U$2:$U$1000>Costs!$A736)*('Fixed assets'!$P$2:$P$1000=Costs!$A736)*('Fixed assets'!$R$2:$R$1000))-SUMPRODUCT(('Fixed assets'!$Q$2:$Q$1000=Costs!D$705)*('Fixed assets'!$U$2:$U$1000>Costs!$A736)*('Fixed assets'!$P$2:$P$1000=Costs!$A736)*('Fixed assets'!$S$2:$S$1000))","v":0},{"$f":"E648+SUMPRODUCT(('Fixed assets'!$Q$2:$Q$1000=Costs!E$705)*('Fixed assets'!$U$2:$U$1000>Costs!$A736)*('Fixed assets'!$P$2:$P$1000=Costs!$A736)*('Fixed assets'!$R$2:$R$1000))-SUMPRODUCT(('Fixed assets'!$Q$2:$Q$1000=Costs!E$705)*('Fixed assets'!$U$2:$U$1000>Costs!$A736)*('Fixed assets'!$P$2:$P$1000=Costs!$A736)*('Fixed assets'!$S$2:$S$1000))","v":0},{"$f":"F648+SUMPRODUCT(('Fixed assets'!$Q$2:$Q$1000=Costs!F$705)*('Fixed assets'!$U$2:$U$1000>Costs!$A736)*('Fixed assets'!$P$2:$P$1000=Costs!$A736)*('Fixed assets'!$R$2:$R$1000))-SUMPRODUCT(('Fixed assets'!$Q$2:$Q$1000=Costs!F$705)*('Fixed assets'!$U$2:$U$1000>Costs!$A736)*('Fixed assets'!$P$2:$P$1000=Costs!$A736)*('Fixed assets'!$S$2:$S$1000))","v":0},{"$f":"G648+SUMPRODUCT(('Fixed assets'!$Q$2:$Q$1000=Costs!G$705)*('Fixed assets'!$U$2:$U$1000>Costs!$A736)*('Fixed assets'!$P$2:$P$1000=Costs!$A736)*('Fixed assets'!$R$2:$R$1000))-SUMPRODUCT(('Fixed assets'!$Q$2:$Q$1000=Costs!G$705)*('Fixed assets'!$U$2:$U$1000>Costs!$A736)*('Fixed assets'!$P$2:$P$1000=Costs!$A736)*('Fixed assets'!$S$2:$S$1000))","v":0},{"$f":"H648+SUMPRODUCT(('Fixed assets'!$Q$2:$Q$1000=Costs!H$705)*('Fixed assets'!$U$2:$U$1000>Costs!$A736)*('Fixed assets'!$P$2:$P$1000=Costs!$A736)*('Fixed assets'!$R$2:$R$1000))-SUMPRODUCT(('Fixed assets'!$Q$2:$Q$1000=Costs!H$705)*('Fixed assets'!$U$2:$U$1000>Costs!$A736)*('Fixed assets'!$P$2:$P$1000=Costs!$A736)*('Fixed assets'!$S$2:$S$1000))","v":0},{"$f":"I648+SUMPRODUCT(('Fixed assets'!$Q$2:$Q$1000=Costs!I$705)*('Fixed assets'!$U$2:$U$1000>Costs!$A736)*('Fixed assets'!$P$2:$P$1000=Costs!$A736)*('Fixed assets'!$R$2:$R$1000))-SUMPRODUCT(('Fixed assets'!$Q$2:$Q$1000=Costs!I$705)*('Fixed assets'!$U$2:$U$1000>Costs!$A736)*('Fixed assets'!$P$2:$P$1000=Costs!$A736)*('Fixed assets'!$S$2:$S$1000))","v":0},{"$f":"J648+SUMPRODUCT(('Fixed assets'!$Q$2:$Q$1000=Costs!J$705)*('Fixed assets'!$U$2:$U$1000>Costs!$A736)*('Fixed assets'!$P$2:$P$1000=Costs!$A736)*('Fixed assets'!$R$2:$R$1000))-SUMPRODUCT(('Fixed assets'!$Q$2:$Q$1000=Costs!J$705)*('Fixed assets'!$U$2:$U$1000>Costs!$A736)*('Fixed assets'!$P$2:$P$1000=Costs!$A736)*('Fixed assets'!$S$2:$S$1000))","v":0},{"$f":"K648+SUMPRODUCT(('Fixed assets'!$Q$2:$Q$1000=Costs!K$705)*('Fixed assets'!$U$2:$U$1000>Costs!$A736)*('Fixed assets'!$P$2:$P$1000=Costs!$A736)*('Fixed assets'!$R$2:$R$1000))-SUMPRODUCT(('Fixed assets'!$Q$2:$Q$1000=Costs!K$705)*('Fixed assets'!$U$2:$U$1000>Costs!$A736)*('Fixed assets'!$P$2:$P$1000=Costs!$A736)*('Fixed assets'!$S$2:$S$1000))","v":0},{"$f":"L648+SUMPRODUCT(('Fixed assets'!$Q$2:$Q$1000=Costs!L$705)*('Fixed assets'!$U$2:$U$1000>Costs!$A736)*('Fixed assets'!$P$2:$P$1000=Costs!$A736)*('Fixed assets'!$R$2:$R$1000))-SUMPRODUCT(('Fixed assets'!$Q$2:$Q$1000=Costs!L$705)*('Fixed assets'!$U$2:$U$1000>Costs!$A736)*('Fixed assets'!$P$2:$P$1000=Costs!$A736)*('Fixed assets'!$S$2:$S$1000))","v":0},{"$f":"M648+SUMPRODUCT(('Fixed assets'!$Q$2:$Q$1000=Costs!M$705)*('Fixed assets'!$U$2:$U$1000>Costs!$A736)*('Fixed assets'!$P$2:$P$1000=Costs!$A736)*('Fixed assets'!$R$2:$R$1000))-SUMPRODUCT(('Fixed assets'!$Q$2:$Q$1000=Costs!M$705)*('Fixed assets'!$U$2:$U$1000>Costs!$A736)*('Fixed assets'!$P$2:$P$1000=Costs!$A736)*('Fixed assets'!$S$2:$S$1000))","v":0},{"$f":"N648+SUMPRODUCT(('Fixed assets'!$Q$2:$Q$1000=Costs!N$705)*('Fixed assets'!$U$2:$U$1000>Costs!$A736)*('Fixed assets'!$P$2:$P$1000=Costs!$A736)*('Fixed assets'!$R$2:$R$1000))-SUMPRODUCT(('Fixed assets'!$Q$2:$Q$1000=Costs!N$705)*('Fixed assets'!$U$2:$U$1000>Costs!$A736)*('Fixed assets'!$P$2:$P$1000=Costs!$A736)*('Fixed assets'!$S$2:$S$1000))","v":0},{"$f":"O648+SUMPRODUCT(('Fixed assets'!$Q$2:$Q$1000=Costs!O$705)*('Fixed assets'!$U$2:$U$1000>Costs!$A736)*('Fixed assets'!$P$2:$P$1000=Costs!$A736)*('Fixed assets'!$R$2:$R$1000))-SUMPRODUCT(('Fixed assets'!$Q$2:$Q$1000=Costs!O$705)*('Fixed assets'!$U$2:$U$1000>Costs!$A736)*('Fixed assets'!$P$2:$P$1000=Costs!$A736)*('Fixed assets'!$S$2:$S$1000))","v":0},{"$f":"P648+SUMPRODUCT(('Fixed assets'!$Q$2:$Q$1000=Costs!P$705)*('Fixed assets'!$U$2:$U$1000>Costs!$A736)*('Fixed assets'!$P$2:$P$1000=Costs!$A736)*('Fixed assets'!$R$2:$R$1000))-SUMPRODUCT(('Fixed assets'!$Q$2:$Q$1000=Costs!P$705)*('Fixed assets'!$U$2:$U$1000>Costs!$A736)*('Fixed assets'!$P$2:$P$1000=Costs!$A736)*('Fixed assets'!$S$2:$S$1000))","v":0},{"$f":"Q648+SUMPRODUCT(('Fixed assets'!$Q$2:$Q$1000=Costs!Q$705)*('Fixed assets'!$U$2:$U$1000>Costs!$A736)*('Fixed assets'!$P$2:$P$1000=Costs!$A736)*('Fixed assets'!$R$2:$R$1000))-SUMPRODUCT(('Fixed assets'!$Q$2:$Q$1000=Costs!Q$705)*('Fixed assets'!$U$2:$U$1000>Costs!$A736)*('Fixed assets'!$P$2:$P$1000=Costs!$A736)*('Fixed assets'!$S$2:$S$1000))","v":0},{"$f":"R648+SUMPRODUCT(('Fixed assets'!$Q$2:$Q$1000=Costs!R$705)*('Fixed assets'!$U$2:$U$1000>Costs!$A736)*('Fixed assets'!$P$2:$P$1000=Costs!$A736)*('Fixed assets'!$R$2:$R$1000))-SUMPRODUCT(('Fixed assets'!$Q$2:$Q$1000=Costs!R$705)*('Fixed assets'!$U$2:$U$1000>Costs!$A736)*('Fixed assets'!$P$2:$P$1000=Costs!$A736)*('Fixed assets'!$S$2:$S$1000))","v":0},{"$f":"S648+SUMPRODUCT(('Fixed assets'!$Q$2:$Q$1000=Costs!S$705)*('Fixed assets'!$U$2:$U$1000>Costs!$A736)*('Fixed assets'!$P$2:$P$1000=Costs!$A736)*('Fixed assets'!$R$2:$R$1000))-SUMPRODUCT(('Fixed assets'!$Q$2:$Q$1000=Costs!S$705)*('Fixed assets'!$U$2:$U$1000>Costs!$A736)*('Fixed assets'!$P$2:$P$1000=Costs!$A736)*('Fixed assets'!$S$2:$S$1000))","v":0},{"$f":"T648+SUMPRODUCT(('Fixed assets'!$Q$2:$Q$1000=Costs!T$705)*('Fixed assets'!$U$2:$U$1000>Costs!$A736)*('Fixed assets'!$P$2:$P$1000=Costs!$A736)*('Fixed assets'!$R$2:$R$1000))-SUMPRODUCT(('Fixed assets'!$Q$2:$Q$1000=Costs!T$705)*('Fixed assets'!$U$2:$U$1000>Costs!$A736)*('Fixed assets'!$P$2:$P$1000=Costs!$A736)*('Fixed assets'!$S$2:$S$1000))","v":0},{"$f":"U648+SUMPRODUCT(('Fixed assets'!$Q$2:$Q$1000=Costs!U$705)*('Fixed assets'!$U$2:$U$1000>Costs!$A736)*('Fixed assets'!$P$2:$P$1000=Costs!$A736)*('Fixed assets'!$R$2:$R$1000))-SUMPRODUCT(('Fixed assets'!$Q$2:$Q$1000=Costs!U$705)*('Fixed assets'!$U$2:$U$1000>Costs!$A736)*('Fixed assets'!$P$2:$P$1000=Costs!$A736)*('Fixed assets'!$S$2:$S$1000))","v":0},{"$f":"V648+SUMPRODUCT(('Fixed assets'!$Q$2:$Q$1000=Costs!V$705)*('Fixed assets'!$U$2:$U$1000>Costs!$A736)*('Fixed assets'!$P$2:$P$1000=Costs!$A736)*('Fixed assets'!$R$2:$R$1000))-SUMPRODUCT(('Fixed assets'!$Q$2:$Q$1000=Costs!V$705)*('Fixed assets'!$U$2:$U$1000>Costs!$A736)*('Fixed assets'!$P$2:$P$1000=Costs!$A736)*('Fixed assets'!$S$2:$S$1000))","v":0},{"$f":"W648+SUMPRODUCT(('Fixed assets'!$Q$2:$Q$1000=Costs!W$705)*('Fixed assets'!$U$2:$U$1000>Costs!$A736)*('Fixed assets'!$P$2:$P$1000=Costs!$A736)*('Fixed assets'!$R$2:$R$1000))-SUMPRODUCT(('Fixed assets'!$Q$2:$Q$1000=Costs!W$705)*('Fixed assets'!$U$2:$U$1000>Costs!$A736)*('Fixed assets'!$P$2:$P$1000=Costs!$A736)*('Fixed assets'!$S$2:$S$1000))","v":0},{"$f":"X648+SUMPRODUCT(('Fixed assets'!$Q$2:$Q$1000=Costs!X$705)*('Fixed assets'!$U$2:$U$1000>Costs!$A736)*('Fixed assets'!$P$2:$P$1000=Costs!$A736)*('Fixed assets'!$R$2:$R$1000))-SUMPRODUCT(('Fixed assets'!$Q$2:$Q$1000=Costs!X$705)*('Fixed assets'!$U$2:$U$1000>Costs!$A736)*('Fixed assets'!$P$2:$P$1000=Costs!$A736)*('Fixed assets'!$S$2:$S$1000))","v":0},{"$f":"Y648+SUMPRODUCT(('Fixed assets'!$Q$2:$Q$1000=Costs!Y$705)*('Fixed assets'!$U$2:$U$1000>Costs!$A736)*('Fixed assets'!$P$2:$P$1000=Costs!$A736)*('Fixed assets'!$R$2:$R$1000))-SUMPRODUCT(('Fixed assets'!$Q$2:$Q$1000=Costs!Y$705)*('Fixed assets'!$U$2:$U$1000>Costs!$A736)*('Fixed assets'!$P$2:$P$1000=Costs!$A736)*('Fixed assets'!$S$2:$S$1000))","v":0},{"$f":"Z648+SUMPRODUCT(('Fixed assets'!$Q$2:$Q$1000=Costs!Z$705)*('Fixed assets'!$U$2:$U$1000>Costs!$A736)*('Fixed assets'!$P$2:$P$1000=Costs!$A736)*('Fixed assets'!$R$2:$R$1000))-SUMPRODUCT(('Fixed assets'!$Q$2:$Q$1000=Costs!Z$705)*('Fixed assets'!$U$2:$U$1000>Costs!$A736)*('Fixed assets'!$P$2:$P$1000=Costs!$A736)*('Fixed assets'!$S$2:$S$1000))","v":0},{"$f":"AA648+SUMPRODUCT(('Fixed assets'!$Q$2:$Q$1000=Costs!AA$705)*('Fixed assets'!$U$2:$U$1000>Costs!$A736)*('Fixed assets'!$P$2:$P$1000=Costs!$A736)*('Fixed assets'!$R$2:$R$1000))-SUMPRODUCT(('Fixed assets'!$Q$2:$Q$1000=Costs!AA$705)*('Fixed assets'!$U$2:$U$1000>Costs!$A736)*('Fixed assets'!$P$2:$P$1000=Costs!$A736)*('Fixed assets'!$S$2:$S$1000))","v":0},{"$f":"AB648+SUMPRODUCT(('Fixed assets'!$Q$2:$Q$1000=Costs!AB$705)*('Fixed assets'!$U$2:$U$1000>Costs!$A736)*('Fixed assets'!$P$2:$P$1000=Costs!$A736)*('Fixed assets'!$R$2:$R$1000))-SUMPRODUCT(('Fixed assets'!$Q$2:$Q$1000=Costs!AB$705)*('Fixed assets'!$U$2:$U$1000>Costs!$A736)*('Fixed assets'!$P$2:$P$1000=Costs!$A736)*('Fixed assets'!$S$2:$S$1000))","v":0},{"$f":"AC648+SUMPRODUCT(('Fixed assets'!$Q$2:$Q$1000=Costs!AC$705)*('Fixed assets'!$U$2:$U$1000>Costs!$A736)*('Fixed assets'!$P$2:$P$1000=Costs!$A736)*('Fixed assets'!$R$2:$R$1000))-SUMPRODUCT(('Fixed assets'!$Q$2:$Q$1000=Costs!AC$705)*('Fixed assets'!$U$2:$U$1000>Costs!$A736)*('Fixed assets'!$P$2:$P$1000=Costs!$A736)*('Fixed assets'!$S$2:$S$1000))","v":0},{"$f":"AD648+SUMPRODUCT(('Fixed assets'!$Q$2:$Q$1000=Costs!AD$705)*('Fixed assets'!$U$2:$U$1000>Costs!$A736)*('Fixed assets'!$P$2:$P$1000=Costs!$A736)*('Fixed assets'!$R$2:$R$1000))-SUMPRODUCT(('Fixed assets'!$Q$2:$Q$1000=Costs!AD$705)*('Fixed assets'!$U$2:$U$1000>Costs!$A736)*('Fixed assets'!$P$2:$P$1000=Costs!$A736)*('Fixed assets'!$S$2:$S$1000))","v":0},{"$f":"AE648+SUMPRODUCT(('Fixed assets'!$Q$2:$Q$1000=Costs!AE$705)*('Fixed assets'!$U$2:$U$1000>Costs!$A736)*('Fixed assets'!$P$2:$P$1000=Costs!$A736)*('Fixed assets'!$R$2:$R$1000))-SUMPRODUCT(('Fixed assets'!$Q$2:$Q$1000=Costs!AE$705)*('Fixed assets'!$U$2:$U$1000>Costs!$A736)*('Fixed assets'!$P$2:$P$1000=Costs!$A736)*('Fixed assets'!$S$2:$S$1000))","v":0},{"$f":"AF648+SUMPRODUCT(('Fixed assets'!$Q$2:$Q$1000=Costs!AF$705)*('Fixed assets'!$U$2:$U$1000>Costs!$A736)*('Fixed assets'!$P$2:$P$1000=Costs!$A736)*('Fixed assets'!$R$2:$R$1000))-SUMPRODUCT(('Fixed assets'!$Q$2:$Q$1000=Costs!AF$705)*('Fixed assets'!$U$2:$U$1000>Costs!$A736)*('Fixed assets'!$P$2:$P$1000=Costs!$A736)*('Fixed assets'!$S$2:$S$1000))","v":0},{"$f":"AG648+SUMPRODUCT(('Fixed assets'!$Q$2:$Q$1000=Costs!AG$705)*('Fixed assets'!$U$2:$U$1000>Costs!$A736)*('Fixed assets'!$P$2:$P$1000=Costs!$A736)*('Fixed assets'!$R$2:$R$1000))-SUMPRODUCT(('Fixed assets'!$Q$2:$Q$1000=Costs!AG$705)*('Fixed assets'!$U$2:$U$1000>Costs!$A736)*('Fixed assets'!$P$2:$P$1000=Costs!$A736)*('Fixed assets'!$S$2:$S$1000))","v":0},{"$f":"AH648+SUMPRODUCT(('Fixed assets'!$Q$2:$Q$1000=Costs!AH$705)*('Fixed assets'!$U$2:$U$1000>Costs!$A736)*('Fixed assets'!$P$2:$P$1000=Costs!$A736)*('Fixed assets'!$R$2:$R$1000))-SUMPRODUCT(('Fixed assets'!$Q$2:$Q$1000=Costs!AH$705)*('Fixed assets'!$U$2:$U$1000>Costs!$A736)*('Fixed assets'!$P$2:$P$1000=Costs!$A736)*('Fixed assets'!$S$2:$S$1000))","v":0},{"$f":"AI648+SUMPRODUCT(('Fixed assets'!$Q$2:$Q$1000=Costs!AI$705)*('Fixed assets'!$U$2:$U$1000>Costs!$A736)*('Fixed assets'!$P$2:$P$1000=Costs!$A736)*('Fixed assets'!$R$2:$R$1000))-SUMPRODUCT(('Fixed assets'!$Q$2:$Q$1000=Costs!AI$705)*('Fixed assets'!$U$2:$U$1000>Costs!$A736)*('Fixed assets'!$P$2:$P$1000=Costs!$A736)*('Fixed assets'!$S$2:$S$1000))","v":0},{"$f":"AJ648+SUMPRODUCT(('Fixed assets'!$Q$2:$Q$1000=Costs!AJ$705)*('Fixed assets'!$U$2:$U$1000>Costs!$A736)*('Fixed assets'!$P$2:$P$1000=Costs!$A736)*('Fixed assets'!$R$2:$R$1000))-SUMPRODUCT(('Fixed assets'!$Q$2:$Q$1000=Costs!AJ$705)*('Fixed assets'!$U$2:$U$1000>Costs!$A736)*('Fixed assets'!$P$2:$P$1000=Costs!$A736)*('Fixed assets'!$S$2:$S$1000))","v":0},{"$f":"AK648+SUMPRODUCT(('Fixed assets'!$Q$2:$Q$1000=Costs!AK$705)*('Fixed assets'!$U$2:$U$1000>Costs!$A736)*('Fixed assets'!$P$2:$P$1000=Costs!$A736)*('Fixed assets'!$R$2:$R$1000))-SUMPRODUCT(('Fixed assets'!$Q$2:$Q$1000=Costs!AK$705)*('Fixed assets'!$U$2:$U$1000>Costs!$A736)*('Fixed assets'!$P$2:$P$1000=Costs!$A736)*('Fixed assets'!$S$2:$S$1000))","v":0},{"$f":"AL648+SUMPRODUCT(('Fixed assets'!$Q$2:$Q$1000=Costs!AL$705)*('Fixed assets'!$U$2:$U$1000>Costs!$A736)*('Fixed assets'!$P$2:$P$1000=Costs!$A736)*('Fixed assets'!$R$2:$R$1000))-SUMPRODUCT(('Fixed assets'!$Q$2:$Q$1000=Costs!AL$705)*('Fixed assets'!$U$2:$U$1000>Costs!$A736)*('Fixed assets'!$P$2:$P$1000=Costs!$A736)*('Fixed assets'!$S$2:$S$1000))","v":0},{"$f":"AM648+SUMPRODUCT(('Fixed assets'!$Q$2:$Q$1000=Costs!AM$705)*('Fixed assets'!$U$2:$U$1000>Costs!$A736)*('Fixed assets'!$P$2:$P$1000=Costs!$A736)*('Fixed assets'!$R$2:$R$1000))-SUMPRODUCT(('Fixed assets'!$Q$2:$Q$1000=Costs!AM$705)*('Fixed assets'!$U$2:$U$1000>Costs!$A736)*('Fixed assets'!$P$2:$P$1000=Costs!$A736)*('Fixed assets'!$S$2:$S$1000))","v":0},{"$f":"AN648+SUMPRODUCT(('Fixed assets'!$Q$2:$Q$1000=Costs!AN$705)*('Fixed assets'!$U$2:$U$1000>Costs!$A736)*('Fixed assets'!$P$2:$P$1000=Costs!$A736)*('Fixed assets'!$R$2:$R$1000))-SUMPRODUCT(('Fixed assets'!$Q$2:$Q$1000=Costs!AN$705)*('Fixed assets'!$U$2:$U$1000>Costs!$A736)*('Fixed assets'!$P$2:$P$1000=Costs!$A736)*('Fixed assets'!$S$2:$S$1000))","v":0},{"$f":"AO648+SUMPRODUCT(('Fixed assets'!$Q$2:$Q$1000=Costs!AO$705)*('Fixed assets'!$U$2:$U$1000>Costs!$A736)*('Fixed assets'!$P$2:$P$1000=Costs!$A736)*('Fixed assets'!$R$2:$R$1000))-SUMPRODUCT(('Fixed assets'!$Q$2:$Q$1000=Costs!AO$705)*('Fixed assets'!$U$2:$U$1000>Costs!$A736)*('Fixed assets'!$P$2:$P$1000=Costs!$A736)*('Fixed assets'!$S$2:$S$1000))","v":0},{"$f":"AP648+SUMPRODUCT(('Fixed assets'!$Q$2:$Q$1000=Costs!AP$705)*('Fixed assets'!$U$2:$U$1000>Costs!$A736)*('Fixed assets'!$P$2:$P$1000=Costs!$A736)*('Fixed assets'!$R$2:$R$1000))-SUMPRODUCT(('Fixed assets'!$Q$2:$Q$1000=Costs!AP$705)*('Fixed assets'!$U$2:$U$1000>Costs!$A736)*('Fixed assets'!$P$2:$P$1000=Costs!$A736)*('Fixed assets'!$S$2:$S$1000))","v":0},{"$f":"AQ648+SUMPRODUCT(('Fixed assets'!$Q$2:$Q$1000=Costs!AQ$705)*('Fixed assets'!$U$2:$U$1000>Costs!$A736)*('Fixed assets'!$P$2:$P$1000=Costs!$A736)*('Fixed assets'!$R$2:$R$1000))-SUMPRODUCT(('Fixed assets'!$Q$2:$Q$1000=Costs!AQ$705)*('Fixed assets'!$U$2:$U$1000>Costs!$A736)*('Fixed assets'!$P$2:$P$1000=Costs!$A736)*('Fixed assets'!$S$2:$S$1000))","v":0}]
[2046,0,{"$f":"C649+SUMPRODUCT(('Fixed assets'!$Q$2:$Q$1000=Costs!C$705)*('Fixed assets'!$U$2:$U$1000>Costs!$A737)*('Fixed assets'!$P$2:$P$1000=Costs!$A737)*('Fixed assets'!$R$2:$R$1000))-SUMPRODUCT(('Fixed assets'!$Q$2:$Q$1000=Costs!C$705)*('Fixed assets'!$U$2:$U$1000>Costs!$A737)*('Fixed assets'!$P$2:$P$1000=Costs!$A737)*('Fixed assets'!$S$2:$S$1000))","v":0},{"$f":"D649+SUMPRODUCT(('Fixed assets'!$Q$2:$Q$1000=Costs!D$705)*('Fixed assets'!$U$2:$U$1000>Costs!$A737)*('Fixed assets'!$P$2:$P$1000=Costs!$A737)*('Fixed assets'!$R$2:$R$1000))-SUMPRODUCT(('Fixed assets'!$Q$2:$Q$1000=Costs!D$705)*('Fixed assets'!$U$2:$U$1000>Costs!$A737)*('Fixed assets'!$P$2:$P$1000=Costs!$A737)*('Fixed assets'!$S$2:$S$1000))","v":0},{"$f":"E649+SUMPRODUCT(('Fixed assets'!$Q$2:$Q$1000=Costs!E$705)*('Fixed assets'!$U$2:$U$1000>Costs!$A737)*('Fixed assets'!$P$2:$P$1000=Costs!$A737)*('Fixed assets'!$R$2:$R$1000))-SUMPRODUCT(('Fixed assets'!$Q$2:$Q$1000=Costs!E$705)*('Fixed assets'!$U$2:$U$1000>Costs!$A737)*('Fixed assets'!$P$2:$P$1000=Costs!$A737)*('Fixed assets'!$S$2:$S$1000))","v":0},{"$f":"F649+SUMPRODUCT(('Fixed assets'!$Q$2:$Q$1000=Costs!F$705)*('Fixed assets'!$U$2:$U$1000>Costs!$A737)*('Fixed assets'!$P$2:$P$1000=Costs!$A737)*('Fixed assets'!$R$2:$R$1000))-SUMPRODUCT(('Fixed assets'!$Q$2:$Q$1000=Costs!F$705)*('Fixed assets'!$U$2:$U$1000>Costs!$A737)*('Fixed assets'!$P$2:$P$1000=Costs!$A737)*('Fixed assets'!$S$2:$S$1000))","v":0},{"$f":"G649+SUMPRODUCT(('Fixed assets'!$Q$2:$Q$1000=Costs!G$705)*('Fixed assets'!$U$2:$U$1000>Costs!$A737)*('Fixed assets'!$P$2:$P$1000=Costs!$A737)*('Fixed assets'!$R$2:$R$1000))-SUMPRODUCT(('Fixed assets'!$Q$2:$Q$1000=Costs!G$705)*('Fixed assets'!$U$2:$U$1000>Costs!$A737)*('Fixed assets'!$P$2:$P$1000=Costs!$A737)*('Fixed assets'!$S$2:$S$1000))","v":0},{"$f":"H649+SUMPRODUCT(('Fixed assets'!$Q$2:$Q$1000=Costs!H$705)*('Fixed assets'!$U$2:$U$1000>Costs!$A737)*('Fixed assets'!$P$2:$P$1000=Costs!$A737)*('Fixed assets'!$R$2:$R$1000))-SUMPRODUCT(('Fixed assets'!$Q$2:$Q$1000=Costs!H$705)*('Fixed assets'!$U$2:$U$1000>Costs!$A737)*('Fixed assets'!$P$2:$P$1000=Costs!$A737)*('Fixed assets'!$S$2:$S$1000))","v":0},{"$f":"I649+SUMPRODUCT(('Fixed assets'!$Q$2:$Q$1000=Costs!I$705)*('Fixed assets'!$U$2:$U$1000>Costs!$A737)*('Fixed assets'!$P$2:$P$1000=Costs!$A737)*('Fixed assets'!$R$2:$R$1000))-SUMPRODUCT(('Fixed assets'!$Q$2:$Q$1000=Costs!I$705)*('Fixed assets'!$U$2:$U$1000>Costs!$A737)*('Fixed assets'!$P$2:$P$1000=Costs!$A737)*('Fixed assets'!$S$2:$S$1000))","v":0},{"$f":"J649+SUMPRODUCT(('Fixed assets'!$Q$2:$Q$1000=Costs!J$705)*('Fixed assets'!$U$2:$U$1000>Costs!$A737)*('Fixed assets'!$P$2:$P$1000=Costs!$A737)*('Fixed assets'!$R$2:$R$1000))-SUMPRODUCT(('Fixed assets'!$Q$2:$Q$1000=Costs!J$705)*('Fixed assets'!$U$2:$U$1000>Costs!$A737)*('Fixed assets'!$P$2:$P$1000=Costs!$A737)*('Fixed assets'!$S$2:$S$1000))","v":0},{"$f":"K649+SUMPRODUCT(('Fixed assets'!$Q$2:$Q$1000=Costs!K$705)*('Fixed assets'!$U$2:$U$1000>Costs!$A737)*('Fixed assets'!$P$2:$P$1000=Costs!$A737)*('Fixed assets'!$R$2:$R$1000))-SUMPRODUCT(('Fixed assets'!$Q$2:$Q$1000=Costs!K$705)*('Fixed assets'!$U$2:$U$1000>Costs!$A737)*('Fixed assets'!$P$2:$P$1000=Costs!$A737)*('Fixed assets'!$S$2:$S$1000))","v":0},{"$f":"L649+SUMPRODUCT(('Fixed assets'!$Q$2:$Q$1000=Costs!L$705)*('Fixed assets'!$U$2:$U$1000>Costs!$A737)*('Fixed assets'!$P$2:$P$1000=Costs!$A737)*('Fixed assets'!$R$2:$R$1000))-SUMPRODUCT(('Fixed assets'!$Q$2:$Q$1000=Costs!L$705)*('Fixed assets'!$U$2:$U$1000>Costs!$A737)*('Fixed assets'!$P$2:$P$1000=Costs!$A737)*('Fixed assets'!$S$2:$S$1000))","v":0},{"$f":"M649+SUMPRODUCT(('Fixed assets'!$Q$2:$Q$1000=Costs!M$705)*('Fixed assets'!$U$2:$U$1000>Costs!$A737)*('Fixed assets'!$P$2:$P$1000=Costs!$A737)*('Fixed assets'!$R$2:$R$1000))-SUMPRODUCT(('Fixed assets'!$Q$2:$Q$1000=Costs!M$705)*('Fixed assets'!$U$2:$U$1000>Costs!$A737)*('Fixed assets'!$P$2:$P$1000=Costs!$A737)*('Fixed assets'!$S$2:$S$1000))","v":0},{"$f":"N649+SUMPRODUCT(('Fixed assets'!$Q$2:$Q$1000=Costs!N$705)*('Fixed assets'!$U$2:$U$1000>Costs!$A737)*('Fixed assets'!$P$2:$P$1000=Costs!$A737)*('Fixed assets'!$R$2:$R$1000))-SUMPRODUCT(('Fixed assets'!$Q$2:$Q$1000=Costs!N$705)*('Fixed assets'!$U$2:$U$1000>Costs!$A737)*('Fixed assets'!$P$2:$P$1000=Costs!$A737)*('Fixed assets'!$S$2:$S$1000))","v":0},{"$f":"O649+SUMPRODUCT(('Fixed assets'!$Q$2:$Q$1000=Costs!O$705)*('Fixed assets'!$U$2:$U$1000>Costs!$A737)*('Fixed assets'!$P$2:$P$1000=Costs!$A737)*('Fixed assets'!$R$2:$R$1000))-SUMPRODUCT(('Fixed assets'!$Q$2:$Q$1000=Costs!O$705)*('Fixed assets'!$U$2:$U$1000>Costs!$A737)*('Fixed assets'!$P$2:$P$1000=Costs!$A737)*('Fixed assets'!$S$2:$S$1000))","v":0},{"$f":"P649+SUMPRODUCT(('Fixed assets'!$Q$2:$Q$1000=Costs!P$705)*('Fixed assets'!$U$2:$U$1000>Costs!$A737)*('Fixed assets'!$P$2:$P$1000=Costs!$A737)*('Fixed assets'!$R$2:$R$1000))-SUMPRODUCT(('Fixed assets'!$Q$2:$Q$1000=Costs!P$705)*('Fixed assets'!$U$2:$U$1000>Costs!$A737)*('Fixed assets'!$P$2:$P$1000=Costs!$A737)*('Fixed assets'!$S$2:$S$1000))","v":0},{"$f":"Q649+SUMPRODUCT(('Fixed assets'!$Q$2:$Q$1000=Costs!Q$705)*('Fixed assets'!$U$2:$U$1000>Costs!$A737)*('Fixed assets'!$P$2:$P$1000=Costs!$A737)*('Fixed assets'!$R$2:$R$1000))-SUMPRODUCT(('Fixed assets'!$Q$2:$Q$1000=Costs!Q$705)*('Fixed assets'!$U$2:$U$1000>Costs!$A737)*('Fixed assets'!$P$2:$P$1000=Costs!$A737)*('Fixed assets'!$S$2:$S$1000))","v":0},{"$f":"R649+SUMPRODUCT(('Fixed assets'!$Q$2:$Q$1000=Costs!R$705)*('Fixed assets'!$U$2:$U$1000>Costs!$A737)*('Fixed assets'!$P$2:$P$1000=Costs!$A737)*('Fixed assets'!$R$2:$R$1000))-SUMPRODUCT(('Fixed assets'!$Q$2:$Q$1000=Costs!R$705)*('Fixed assets'!$U$2:$U$1000>Costs!$A737)*('Fixed assets'!$P$2:$P$1000=Costs!$A737)*('Fixed assets'!$S$2:$S$1000))","v":0},{"$f":"S649+SUMPRODUCT(('Fixed assets'!$Q$2:$Q$1000=Costs!S$705)*('Fixed assets'!$U$2:$U$1000>Costs!$A737)*('Fixed assets'!$P$2:$P$1000=Costs!$A737)*('Fixed assets'!$R$2:$R$1000))-SUMPRODUCT(('Fixed assets'!$Q$2:$Q$1000=Costs!S$705)*('Fixed assets'!$U$2:$U$1000>Costs!$A737)*('Fixed assets'!$P$2:$P$1000=Costs!$A737)*('Fixed assets'!$S$2:$S$1000))","v":0},{"$f":"T649+SUMPRODUCT(('Fixed assets'!$Q$2:$Q$1000=Costs!T$705)*('Fixed assets'!$U$2:$U$1000>Costs!$A737)*('Fixed assets'!$P$2:$P$1000=Costs!$A737)*('Fixed assets'!$R$2:$R$1000))-SUMPRODUCT(('Fixed assets'!$Q$2:$Q$1000=Costs!T$705)*('Fixed assets'!$U$2:$U$1000>Costs!$A737)*('Fixed assets'!$P$2:$P$1000=Costs!$A737)*('Fixed assets'!$S$2:$S$1000))","v":0},{"$f":"U649+SUMPRODUCT(('Fixed assets'!$Q$2:$Q$1000=Costs!U$705)*('Fixed assets'!$U$2:$U$1000>Costs!$A737)*('Fixed assets'!$P$2:$P$1000=Costs!$A737)*('Fixed assets'!$R$2:$R$1000))-SUMPRODUCT(('Fixed assets'!$Q$2:$Q$1000=Costs!U$705)*('Fixed assets'!$U$2:$U$1000>Costs!$A737)*('Fixed assets'!$P$2:$P$1000=Costs!$A737)*('Fixed assets'!$S$2:$S$1000))","v":0},{"$f":"V649+SUMPRODUCT(('Fixed assets'!$Q$2:$Q$1000=Costs!V$705)*('Fixed assets'!$U$2:$U$1000>Costs!$A737)*('Fixed assets'!$P$2:$P$1000=Costs!$A737)*('Fixed assets'!$R$2:$R$1000))-SUMPRODUCT(('Fixed assets'!$Q$2:$Q$1000=Costs!V$705)*('Fixed assets'!$U$2:$U$1000>Costs!$A737)*('Fixed assets'!$P$2:$P$1000=Costs!$A737)*('Fixed assets'!$S$2:$S$1000))","v":0},{"$f":"W649+SUMPRODUCT(('Fixed assets'!$Q$2:$Q$1000=Costs!W$705)*('Fixed assets'!$U$2:$U$1000>Costs!$A737)*('Fixed assets'!$P$2:$P$1000=Costs!$A737)*('Fixed assets'!$R$2:$R$1000))-SUMPRODUCT(('Fixed assets'!$Q$2:$Q$1000=Costs!W$705)*('Fixed assets'!$U$2:$U$1000>Costs!$A737)*('Fixed assets'!$P$2:$P$1000=Costs!$A737)*('Fixed assets'!$S$2:$S$1000))","v":0},{"$f":"X649+SUMPRODUCT(('Fixed assets'!$Q$2:$Q$1000=Costs!X$705)*('Fixed assets'!$U$2:$U$1000>Costs!$A737)*('Fixed assets'!$P$2:$P$1000=Costs!$A737)*('Fixed assets'!$R$2:$R$1000))-SUMPRODUCT(('Fixed assets'!$Q$2:$Q$1000=Costs!X$705)*('Fixed assets'!$U$2:$U$1000>Costs!$A737)*('Fixed assets'!$P$2:$P$1000=Costs!$A737)*('Fixed assets'!$S$2:$S$1000))","v":0},{"$f":"Y649+SUMPRODUCT(('Fixed assets'!$Q$2:$Q$1000=Costs!Y$705)*('Fixed assets'!$U$2:$U$1000>Costs!$A737)*('Fixed assets'!$P$2:$P$1000=Costs!$A737)*('Fixed assets'!$R$2:$R$1000))-SUMPRODUCT(('Fixed assets'!$Q$2:$Q$1000=Costs!Y$705)*('Fixed assets'!$U$2:$U$1000>Costs!$A737)*('Fixed assets'!$P$2:$P$1000=Costs!$A737)*('Fixed assets'!$S$2:$S$1000))","v":0},{"$f":"Z649+SUMPRODUCT(('Fixed assets'!$Q$2:$Q$1000=Costs!Z$705)*('Fixed assets'!$U$2:$U$1000>Costs!$A737)*('Fixed assets'!$P$2:$P$1000=Costs!$A737)*('Fixed assets'!$R$2:$R$1000))-SUMPRODUCT(('Fixed assets'!$Q$2:$Q$1000=Costs!Z$705)*('Fixed assets'!$U$2:$U$1000>Costs!$A737)*('Fixed assets'!$P$2:$P$1000=Costs!$A737)*('Fixed assets'!$S$2:$S$1000))","v":0},{"$f":"AA649+SUMPRODUCT(('Fixed assets'!$Q$2:$Q$1000=Costs!AA$705)*('Fixed assets'!$U$2:$U$1000>Costs!$A737)*('Fixed assets'!$P$2:$P$1000=Costs!$A737)*('Fixed assets'!$R$2:$R$1000))-SUMPRODUCT(('Fixed assets'!$Q$2:$Q$1000=Costs!AA$705)*('Fixed assets'!$U$2:$U$1000>Costs!$A737)*('Fixed assets'!$P$2:$P$1000=Costs!$A737)*('Fixed assets'!$S$2:$S$1000))","v":0},{"$f":"AB649+SUMPRODUCT(('Fixed assets'!$Q$2:$Q$1000=Costs!AB$705)*('Fixed assets'!$U$2:$U$1000>Costs!$A737)*('Fixed assets'!$P$2:$P$1000=Costs!$A737)*('Fixed assets'!$R$2:$R$1000))-SUMPRODUCT(('Fixed assets'!$Q$2:$Q$1000=Costs!AB$705)*('Fixed assets'!$U$2:$U$1000>Costs!$A737)*('Fixed assets'!$P$2:$P$1000=Costs!$A737)*('Fixed assets'!$S$2:$S$1000))","v":0},{"$f":"AC649+SUMPRODUCT(('Fixed assets'!$Q$2:$Q$1000=Costs!AC$705)*('Fixed assets'!$U$2:$U$1000>Costs!$A737)*('Fixed assets'!$P$2:$P$1000=Costs!$A737)*('Fixed assets'!$R$2:$R$1000))-SUMPRODUCT(('Fixed assets'!$Q$2:$Q$1000=Costs!AC$705)*('Fixed assets'!$U$2:$U$1000>Costs!$A737)*('Fixed assets'!$P$2:$P$1000=Costs!$A737)*('Fixed assets'!$S$2:$S$1000))","v":0},{"$f":"AD649+SUMPRODUCT(('Fixed assets'!$Q$2:$Q$1000=Costs!AD$705)*('Fixed assets'!$U$2:$U$1000>Costs!$A737)*('Fixed assets'!$P$2:$P$1000=Costs!$A737)*('Fixed assets'!$R$2:$R$1000))-SUMPRODUCT(('Fixed assets'!$Q$2:$Q$1000=Costs!AD$705)*('Fixed assets'!$U$2:$U$1000>Costs!$A737)*('Fixed assets'!$P$2:$P$1000=Costs!$A737)*('Fixed assets'!$S$2:$S$1000))","v":0},{"$f":"AE649+SUMPRODUCT(('Fixed assets'!$Q$2:$Q$1000=Costs!AE$705)*('Fixed assets'!$U$2:$U$1000>Costs!$A737)*('Fixed assets'!$P$2:$P$1000=Costs!$A737)*('Fixed assets'!$R$2:$R$1000))-SUMPRODUCT(('Fixed assets'!$Q$2:$Q$1000=Costs!AE$705)*('Fixed assets'!$U$2:$U$1000>Costs!$A737)*('Fixed assets'!$P$2:$P$1000=Costs!$A737)*('Fixed assets'!$S$2:$S$1000))","v":0},{"$f":"AF649+SUMPRODUCT(('Fixed assets'!$Q$2:$Q$1000=Costs!AF$705)*('Fixed assets'!$U$2:$U$1000>Costs!$A737)*('Fixed assets'!$P$2:$P$1000=Costs!$A737)*('Fixed assets'!$R$2:$R$1000))-SUMPRODUCT(('Fixed assets'!$Q$2:$Q$1000=Costs!AF$705)*('Fixed assets'!$U$2:$U$1000>Costs!$A737)*('Fixed assets'!$P$2:$P$1000=Costs!$A737)*('Fixed assets'!$S$2:$S$1000))","v":0},{"$f":"AG649+SUMPRODUCT(('Fixed assets'!$Q$2:$Q$1000=Costs!AG$705)*('Fixed assets'!$U$2:$U$1000>Costs!$A737)*('Fixed assets'!$P$2:$P$1000=Costs!$A737)*('Fixed assets'!$R$2:$R$1000))-SUMPRODUCT(('Fixed assets'!$Q$2:$Q$1000=Costs!AG$705)*('Fixed assets'!$U$2:$U$1000>Costs!$A737)*('Fixed assets'!$P$2:$P$1000=Costs!$A737)*('Fixed assets'!$S$2:$S$1000))","v":0},{"$f":"AH649+SUMPRODUCT(('Fixed assets'!$Q$2:$Q$1000=Costs!AH$705)*('Fixed assets'!$U$2:$U$1000>Costs!$A737)*('Fixed assets'!$P$2:$P$1000=Costs!$A737)*('Fixed assets'!$R$2:$R$1000))-SUMPRODUCT(('Fixed assets'!$Q$2:$Q$1000=Costs!AH$705)*('Fixed assets'!$U$2:$U$1000>Costs!$A737)*('Fixed assets'!$P$2:$P$1000=Costs!$A737)*('Fixed assets'!$S$2:$S$1000))","v":0},{"$f":"AI649+SUMPRODUCT(('Fixed assets'!$Q$2:$Q$1000=Costs!AI$705)*('Fixed assets'!$U$2:$U$1000>Costs!$A737)*('Fixed assets'!$P$2:$P$1000=Costs!$A737)*('Fixed assets'!$R$2:$R$1000))-SUMPRODUCT(('Fixed assets'!$Q$2:$Q$1000=Costs!AI$705)*('Fixed assets'!$U$2:$U$1000>Costs!$A737)*('Fixed assets'!$P$2:$P$1000=Costs!$A737)*('Fixed assets'!$S$2:$S$1000))","v":0},{"$f":"AJ649+SUMPRODUCT(('Fixed assets'!$Q$2:$Q$1000=Costs!AJ$705)*('Fixed assets'!$U$2:$U$1000>Costs!$A737)*('Fixed assets'!$P$2:$P$1000=Costs!$A737)*('Fixed assets'!$R$2:$R$1000))-SUMPRODUCT(('Fixed assets'!$Q$2:$Q$1000=Costs!AJ$705)*('Fixed assets'!$U$2:$U$1000>Costs!$A737)*('Fixed assets'!$P$2:$P$1000=Costs!$A737)*('Fixed assets'!$S$2:$S$1000))","v":0},{"$f":"AK649+SUMPRODUCT(('Fixed assets'!$Q$2:$Q$1000=Costs!AK$705)*('Fixed assets'!$U$2:$U$1000>Costs!$A737)*('Fixed assets'!$P$2:$P$1000=Costs!$A737)*('Fixed assets'!$R$2:$R$1000))-SUMPRODUCT(('Fixed assets'!$Q$2:$Q$1000=Costs!AK$705)*('Fixed assets'!$U$2:$U$1000>Costs!$A737)*('Fixed assets'!$P$2:$P$1000=Costs!$A737)*('Fixed assets'!$S$2:$S$1000))","v":0},{"$f":"AL649+SUMPRODUCT(('Fixed assets'!$Q$2:$Q$1000=Costs!AL$705)*('Fixed assets'!$U$2:$U$1000>Costs!$A737)*('Fixed assets'!$P$2:$P$1000=Costs!$A737)*('Fixed assets'!$R$2:$R$1000))-SUMPRODUCT(('Fixed assets'!$Q$2:$Q$1000=Costs!AL$705)*('Fixed assets'!$U$2:$U$1000>Costs!$A737)*('Fixed assets'!$P$2:$P$1000=Costs!$A737)*('Fixed assets'!$S$2:$S$1000))","v":0},{"$f":"AM649+SUMPRODUCT(('Fixed assets'!$Q$2:$Q$1000=Costs!AM$705)*('Fixed assets'!$U$2:$U$1000>Costs!$A737)*('Fixed assets'!$P$2:$P$1000=Costs!$A737)*('Fixed assets'!$R$2:$R$1000))-SUMPRODUCT(('Fixed assets'!$Q$2:$Q$1000=Costs!AM$705)*('Fixed assets'!$U$2:$U$1000>Costs!$A737)*('Fixed assets'!$P$2:$P$1000=Costs!$A737)*('Fixed assets'!$S$2:$S$1000))","v":0},{"$f":"AN649+SUMPRODUCT(('Fixed assets'!$Q$2:$Q$1000=Costs!AN$705)*('Fixed assets'!$U$2:$U$1000>Costs!$A737)*('Fixed assets'!$P$2:$P$1000=Costs!$A737)*('Fixed assets'!$R$2:$R$1000))-SUMPRODUCT(('Fixed assets'!$Q$2:$Q$1000=Costs!AN$705)*('Fixed assets'!$U$2:$U$1000>Costs!$A737)*('Fixed assets'!$P$2:$P$1000=Costs!$A737)*('Fixed assets'!$S$2:$S$1000))","v":0},{"$f":"AO649+SUMPRODUCT(('Fixed assets'!$Q$2:$Q$1000=Costs!AO$705)*('Fixed assets'!$U$2:$U$1000>Costs!$A737)*('Fixed assets'!$P$2:$P$1000=Costs!$A737)*('Fixed assets'!$R$2:$R$1000))-SUMPRODUCT(('Fixed assets'!$Q$2:$Q$1000=Costs!AO$705)*('Fixed assets'!$U$2:$U$1000>Costs!$A737)*('Fixed assets'!$P$2:$P$1000=Costs!$A737)*('Fixed assets'!$S$2:$S$1000))","v":0},{"$f":"AP649+SUMPRODUCT(('Fixed assets'!$Q$2:$Q$1000=Costs!AP$705)*('Fixed assets'!$U$2:$U$1000>Costs!$A737)*('Fixed assets'!$P$2:$P$1000=Costs!$A737)*('Fixed assets'!$R$2:$R$1000))-SUMPRODUCT(('Fixed assets'!$Q$2:$Q$1000=Costs!AP$705)*('Fixed assets'!$U$2:$U$1000>Costs!$A737)*('Fixed assets'!$P$2:$P$1000=Costs!$A737)*('Fixed assets'!$S$2:$S$1000))","v":0},{"$f":"AQ649+SUMPRODUCT(('Fixed assets'!$Q$2:$Q$1000=Costs!AQ$705)*('Fixed assets'!$U$2:$U$1000>Costs!$A737)*('Fixed assets'!$P$2:$P$1000=Costs!$A737)*('Fixed assets'!$R$2:$R$1000))-SUMPRODUCT(('Fixed assets'!$Q$2:$Q$1000=Costs!AQ$705)*('Fixed assets'!$U$2:$U$1000>Costs!$A737)*('Fixed assets'!$P$2:$P$1000=Costs!$A737)*('Fixed assets'!$S$2:$S$1000))","v":0}]
[2047,0,{"$f":"C650+SUMPRODUCT(('Fixed assets'!$Q$2:$Q$1000=Costs!C$705)*('Fixed assets'!$U$2:$U$1000>Costs!$A738)*('Fixed assets'!$P$2:$P$1000=Costs!$A738)*('Fixed assets'!$R$2:$R$1000))-SUMPRODUCT(('Fixed assets'!$Q$2:$Q$1000=Costs!C$705)*('Fixed assets'!$U$2:$U$1000>Costs!$A738)*('Fixed assets'!$P$2:$P$1000=Costs!$A738)*('Fixed assets'!$S$2:$S$1000))","v":0},{"$f":"D650+SUMPRODUCT(('Fixed assets'!$Q$2:$Q$1000=Costs!D$705)*('Fixed assets'!$U$2:$U$1000>Costs!$A738)*('Fixed assets'!$P$2:$P$1000=Costs!$A738)*('Fixed assets'!$R$2:$R$1000))-SUMPRODUCT(('Fixed assets'!$Q$2:$Q$1000=Costs!D$705)*('Fixed assets'!$U$2:$U$1000>Costs!$A738)*('Fixed assets'!$P$2:$P$1000=Costs!$A738)*('Fixed assets'!$S$2:$S$1000))","v":0},{"$f":"E650+SUMPRODUCT(('Fixed assets'!$Q$2:$Q$1000=Costs!E$705)*('Fixed assets'!$U$2:$U$1000>Costs!$A738)*('Fixed assets'!$P$2:$P$1000=Costs!$A738)*('Fixed assets'!$R$2:$R$1000))-SUMPRODUCT(('Fixed assets'!$Q$2:$Q$1000=Costs!E$705)*('Fixed assets'!$U$2:$U$1000>Costs!$A738)*('Fixed assets'!$P$2:$P$1000=Costs!$A738)*('Fixed assets'!$S$2:$S$1000))","v":0},{"$f":"F650+SUMPRODUCT(('Fixed assets'!$Q$2:$Q$1000=Costs!F$705)*('Fixed assets'!$U$2:$U$1000>Costs!$A738)*('Fixed assets'!$P$2:$P$1000=Costs!$A738)*('Fixed assets'!$R$2:$R$1000))-SUMPRODUCT(('Fixed assets'!$Q$2:$Q$1000=Costs!F$705)*('Fixed assets'!$U$2:$U$1000>Costs!$A738)*('Fixed assets'!$P$2:$P$1000=Costs!$A738)*('Fixed assets'!$S$2:$S$1000))","v":0},{"$f":"G650+SUMPRODUCT(('Fixed assets'!$Q$2:$Q$1000=Costs!G$705)*('Fixed assets'!$U$2:$U$1000>Costs!$A738)*('Fixed assets'!$P$2:$P$1000=Costs!$A738)*('Fixed assets'!$R$2:$R$1000))-SUMPRODUCT(('Fixed assets'!$Q$2:$Q$1000=Costs!G$705)*('Fixed assets'!$U$2:$U$1000>Costs!$A738)*('Fixed assets'!$P$2:$P$1000=Costs!$A738)*('Fixed assets'!$S$2:$S$1000))","v":0},{"$f":"H650+SUMPRODUCT(('Fixed assets'!$Q$2:$Q$1000=Costs!H$705)*('Fixed assets'!$U$2:$U$1000>Costs!$A738)*('Fixed assets'!$P$2:$P$1000=Costs!$A738)*('Fixed assets'!$R$2:$R$1000))-SUMPRODUCT(('Fixed assets'!$Q$2:$Q$1000=Costs!H$705)*('Fixed assets'!$U$2:$U$1000>Costs!$A738)*('Fixed assets'!$P$2:$P$1000=Costs!$A738)*('Fixed assets'!$S$2:$S$1000))","v":0},{"$f":"I650+SUMPRODUCT(('Fixed assets'!$Q$2:$Q$1000=Costs!I$705)*('Fixed assets'!$U$2:$U$1000>Costs!$A738)*('Fixed assets'!$P$2:$P$1000=Costs!$A738)*('Fixed assets'!$R$2:$R$1000))-SUMPRODUCT(('Fixed assets'!$Q$2:$Q$1000=Costs!I$705)*('Fixed assets'!$U$2:$U$1000>Costs!$A738)*('Fixed assets'!$P$2:$P$1000=Costs!$A738)*('Fixed assets'!$S$2:$S$1000))","v":0},{"$f":"J650+SUMPRODUCT(('Fixed assets'!$Q$2:$Q$1000=Costs!J$705)*('Fixed assets'!$U$2:$U$1000>Costs!$A738)*('Fixed assets'!$P$2:$P$1000=Costs!$A738)*('Fixed assets'!$R$2:$R$1000))-SUMPRODUCT(('Fixed assets'!$Q$2:$Q$1000=Costs!J$705)*('Fixed assets'!$U$2:$U$1000>Costs!$A738)*('Fixed assets'!$P$2:$P$1000=Costs!$A738)*('Fixed assets'!$S$2:$S$1000))","v":0},{"$f":"K650+SUMPRODUCT(('Fixed assets'!$Q$2:$Q$1000=Costs!K$705)*('Fixed assets'!$U$2:$U$1000>Costs!$A738)*('Fixed assets'!$P$2:$P$1000=Costs!$A738)*('Fixed assets'!$R$2:$R$1000))-SUMPRODUCT(('Fixed assets'!$Q$2:$Q$1000=Costs!K$705)*('Fixed assets'!$U$2:$U$1000>Costs!$A738)*('Fixed assets'!$P$2:$P$1000=Costs!$A738)*('Fixed assets'!$S$2:$S$1000))","v":0},{"$f":"L650+SUMPRODUCT(('Fixed assets'!$Q$2:$Q$1000=Costs!L$705)*('Fixed assets'!$U$2:$U$1000>Costs!$A738)*('Fixed assets'!$P$2:$P$1000=Costs!$A738)*('Fixed assets'!$R$2:$R$1000))-SUMPRODUCT(('Fixed assets'!$Q$2:$Q$1000=Costs!L$705)*('Fixed assets'!$U$2:$U$1000>Costs!$A738)*('Fixed assets'!$P$2:$P$1000=Costs!$A738)*('Fixed assets'!$S$2:$S$1000))","v":0},{"$f":"M650+SUMPRODUCT(('Fixed assets'!$Q$2:$Q$1000=Costs!M$705)*('Fixed assets'!$U$2:$U$1000>Costs!$A738)*('Fixed assets'!$P$2:$P$1000=Costs!$A738)*('Fixed assets'!$R$2:$R$1000))-SUMPRODUCT(('Fixed assets'!$Q$2:$Q$1000=Costs!M$705)*('Fixed assets'!$U$2:$U$1000>Costs!$A738)*('Fixed assets'!$P$2:$P$1000=Costs!$A738)*('Fixed assets'!$S$2:$S$1000))","v":0},{"$f":"N650+SUMPRODUCT(('Fixed assets'!$Q$2:$Q$1000=Costs!N$705)*('Fixed assets'!$U$2:$U$1000>Costs!$A738)*('Fixed assets'!$P$2:$P$1000=Costs!$A738)*('Fixed assets'!$R$2:$R$1000))-SUMPRODUCT(('Fixed assets'!$Q$2:$Q$1000=Costs!N$705)*('Fixed assets'!$U$2:$U$1000>Costs!$A738)*('Fixed assets'!$P$2:$P$1000=Costs!$A738)*('Fixed assets'!$S$2:$S$1000))","v":0},{"$f":"O650+SUMPRODUCT(('Fixed assets'!$Q$2:$Q$1000=Costs!O$705)*('Fixed assets'!$U$2:$U$1000>Costs!$A738)*('Fixed assets'!$P$2:$P$1000=Costs!$A738)*('Fixed assets'!$R$2:$R$1000))-SUMPRODUCT(('Fixed assets'!$Q$2:$Q$1000=Costs!O$705)*('Fixed assets'!$U$2:$U$1000>Costs!$A738)*('Fixed assets'!$P$2:$P$1000=Costs!$A738)*('Fixed assets'!$S$2:$S$1000))","v":0},{"$f":"P650+SUMPRODUCT(('Fixed assets'!$Q$2:$Q$1000=Costs!P$705)*('Fixed assets'!$U$2:$U$1000>Costs!$A738)*('Fixed assets'!$P$2:$P$1000=Costs!$A738)*('Fixed assets'!$R$2:$R$1000))-SUMPRODUCT(('Fixed assets'!$Q$2:$Q$1000=Costs!P$705)*('Fixed assets'!$U$2:$U$1000>Costs!$A738)*('Fixed assets'!$P$2:$P$1000=Costs!$A738)*('Fixed assets'!$S$2:$S$1000))","v":0},{"$f":"Q650+SUMPRODUCT(('Fixed assets'!$Q$2:$Q$1000=Costs!Q$705)*('Fixed assets'!$U$2:$U$1000>Costs!$A738)*('Fixed assets'!$P$2:$P$1000=Costs!$A738)*('Fixed assets'!$R$2:$R$1000))-SUMPRODUCT(('Fixed assets'!$Q$2:$Q$1000=Costs!Q$705)*('Fixed assets'!$U$2:$U$1000>Costs!$A738)*('Fixed assets'!$P$2:$P$1000=Costs!$A738)*('Fixed assets'!$S$2:$S$1000))","v":0},{"$f":"R650+SUMPRODUCT(('Fixed assets'!$Q$2:$Q$1000=Costs!R$705)*('Fixed assets'!$U$2:$U$1000>Costs!$A738)*('Fixed assets'!$P$2:$P$1000=Costs!$A738)*('Fixed assets'!$R$2:$R$1000))-SUMPRODUCT(('Fixed assets'!$Q$2:$Q$1000=Costs!R$705)*('Fixed assets'!$U$2:$U$1000>Costs!$A738)*('Fixed assets'!$P$2:$P$1000=Costs!$A738)*('Fixed assets'!$S$2:$S$1000))","v":0},{"$f":"S650+SUMPRODUCT(('Fixed assets'!$Q$2:$Q$1000=Costs!S$705)*('Fixed assets'!$U$2:$U$1000>Costs!$A738)*('Fixed assets'!$P$2:$P$1000=Costs!$A738)*('Fixed assets'!$R$2:$R$1000))-SUMPRODUCT(('Fixed assets'!$Q$2:$Q$1000=Costs!S$705)*('Fixed assets'!$U$2:$U$1000>Costs!$A738)*('Fixed assets'!$P$2:$P$1000=Costs!$A738)*('Fixed assets'!$S$2:$S$1000))","v":0},{"$f":"T650+SUMPRODUCT(('Fixed assets'!$Q$2:$Q$1000=Costs!T$705)*('Fixed assets'!$U$2:$U$1000>Costs!$A738)*('Fixed assets'!$P$2:$P$1000=Costs!$A738)*('Fixed assets'!$R$2:$R$1000))-SUMPRODUCT(('Fixed assets'!$Q$2:$Q$1000=Costs!T$705)*('Fixed assets'!$U$2:$U$1000>Costs!$A738)*('Fixed assets'!$P$2:$P$1000=Costs!$A738)*('Fixed assets'!$S$2:$S$1000))","v":0},{"$f":"U650+SUMPRODUCT(('Fixed assets'!$Q$2:$Q$1000=Costs!U$705)*('Fixed assets'!$U$2:$U$1000>Costs!$A738)*('Fixed assets'!$P$2:$P$1000=Costs!$A738)*('Fixed assets'!$R$2:$R$1000))-SUMPRODUCT(('Fixed assets'!$Q$2:$Q$1000=Costs!U$705)*('Fixed assets'!$U$2:$U$1000>Costs!$A738)*('Fixed assets'!$P$2:$P$1000=Costs!$A738)*('Fixed assets'!$S$2:$S$1000))","v":0},{"$f":"V650+SUMPRODUCT(('Fixed assets'!$Q$2:$Q$1000=Costs!V$705)*('Fixed assets'!$U$2:$U$1000>Costs!$A738)*('Fixed assets'!$P$2:$P$1000=Costs!$A738)*('Fixed assets'!$R$2:$R$1000))-SUMPRODUCT(('Fixed assets'!$Q$2:$Q$1000=Costs!V$705)*('Fixed assets'!$U$2:$U$1000>Costs!$A738)*('Fixed assets'!$P$2:$P$1000=Costs!$A738)*('Fixed assets'!$S$2:$S$1000))","v":0},{"$f":"W650+SUMPRODUCT(('Fixed assets'!$Q$2:$Q$1000=Costs!W$705)*('Fixed assets'!$U$2:$U$1000>Costs!$A738)*('Fixed assets'!$P$2:$P$1000=Costs!$A738)*('Fixed assets'!$R$2:$R$1000))-SUMPRODUCT(('Fixed assets'!$Q$2:$Q$1000=Costs!W$705)*('Fixed assets'!$U$2:$U$1000>Costs!$A738)*('Fixed assets'!$P$2:$P$1000=Costs!$A738)*('Fixed assets'!$S$2:$S$1000))","v":0},{"$f":"X650+SUMPRODUCT(('Fixed assets'!$Q$2:$Q$1000=Costs!X$705)*('Fixed assets'!$U$2:$U$1000>Costs!$A738)*('Fixed assets'!$P$2:$P$1000=Costs!$A738)*('Fixed assets'!$R$2:$R$1000))-SUMPRODUCT(('Fixed assets'!$Q$2:$Q$1000=Costs!X$705)*('Fixed assets'!$U$2:$U$1000>Costs!$A738)*('Fixed assets'!$P$2:$P$1000=Costs!$A738)*('Fixed assets'!$S$2:$S$1000))","v":0},{"$f":"Y650+SUMPRODUCT(('Fixed assets'!$Q$2:$Q$1000=Costs!Y$705)*('Fixed assets'!$U$2:$U$1000>Costs!$A738)*('Fixed assets'!$P$2:$P$1000=Costs!$A738)*('Fixed assets'!$R$2:$R$1000))-SUMPRODUCT(('Fixed assets'!$Q$2:$Q$1000=Costs!Y$705)*('Fixed assets'!$U$2:$U$1000>Costs!$A738)*('Fixed assets'!$P$2:$P$1000=Costs!$A738)*('Fixed assets'!$S$2:$S$1000))","v":0},{"$f":"Z650+SUMPRODUCT(('Fixed assets'!$Q$2:$Q$1000=Costs!Z$705)*('Fixed assets'!$U$2:$U$1000>Costs!$A738)*('Fixed assets'!$P$2:$P$1000=Costs!$A738)*('Fixed assets'!$R$2:$R$1000))-SUMPRODUCT(('Fixed assets'!$Q$2:$Q$1000=Costs!Z$705)*('Fixed assets'!$U$2:$U$1000>Costs!$A738)*('Fixed assets'!$P$2:$P$1000=Costs!$A738)*('Fixed assets'!$S$2:$S$1000))","v":0},{"$f":"AA650+SUMPRODUCT(('Fixed assets'!$Q$2:$Q$1000=Costs!AA$705)*('Fixed assets'!$U$2:$U$1000>Costs!$A738)*('Fixed assets'!$P$2:$P$1000=Costs!$A738)*('Fixed assets'!$R$2:$R$1000))-SUMPRODUCT(('Fixed assets'!$Q$2:$Q$1000=Costs!AA$705)*('Fixed assets'!$U$2:$U$1000>Costs!$A738)*('Fixed assets'!$P$2:$P$1000=Costs!$A738)*('Fixed assets'!$S$2:$S$1000))","v":0},{"$f":"AB650+SUMPRODUCT(('Fixed assets'!$Q$2:$Q$1000=Costs!AB$705)*('Fixed assets'!$U$2:$U$1000>Costs!$A738)*('Fixed assets'!$P$2:$P$1000=Costs!$A738)*('Fixed assets'!$R$2:$R$1000))-SUMPRODUCT(('Fixed assets'!$Q$2:$Q$1000=Costs!AB$705)*('Fixed assets'!$U$2:$U$1000>Costs!$A738)*('Fixed assets'!$P$2:$P$1000=Costs!$A738)*('Fixed assets'!$S$2:$S$1000))","v":0},{"$f":"AC650+SUMPRODUCT(('Fixed assets'!$Q$2:$Q$1000=Costs!AC$705)*('Fixed assets'!$U$2:$U$1000>Costs!$A738)*('Fixed assets'!$P$2:$P$1000=Costs!$A738)*('Fixed assets'!$R$2:$R$1000))-SUMPRODUCT(('Fixed assets'!$Q$2:$Q$1000=Costs!AC$705)*('Fixed assets'!$U$2:$U$1000>Costs!$A738)*('Fixed assets'!$P$2:$P$1000=Costs!$A738)*('Fixed assets'!$S$2:$S$1000))","v":0},{"$f":"AD650+SUMPRODUCT(('Fixed assets'!$Q$2:$Q$1000=Costs!AD$705)*('Fixed assets'!$U$2:$U$1000>Costs!$A738)*('Fixed assets'!$P$2:$P$1000=Costs!$A738)*('Fixed assets'!$R$2:$R$1000))-SUMPRODUCT(('Fixed assets'!$Q$2:$Q$1000=Costs!AD$705)*('Fixed assets'!$U$2:$U$1000>Costs!$A738)*('Fixed assets'!$P$2:$P$1000=Costs!$A738)*('Fixed assets'!$S$2:$S$1000))","v":0},{"$f":"AE650+SUMPRODUCT(('Fixed assets'!$Q$2:$Q$1000=Costs!AE$705)*('Fixed assets'!$U$2:$U$1000>Costs!$A738)*('Fixed assets'!$P$2:$P$1000=Costs!$A738)*('Fixed assets'!$R$2:$R$1000))-SUMPRODUCT(('Fixed assets'!$Q$2:$Q$1000=Costs!AE$705)*('Fixed assets'!$U$2:$U$1000>Costs!$A738)*('Fixed assets'!$P$2:$P$1000=Costs!$A738)*('Fixed assets'!$S$2:$S$1000))","v":0},{"$f":"AF650+SUMPRODUCT(('Fixed assets'!$Q$2:$Q$1000=Costs!AF$705)*('Fixed assets'!$U$2:$U$1000>Costs!$A738)*('Fixed assets'!$P$2:$P$1000=Costs!$A738)*('Fixed assets'!$R$2:$R$1000))-SUMPRODUCT(('Fixed assets'!$Q$2:$Q$1000=Costs!AF$705)*('Fixed assets'!$U$2:$U$1000>Costs!$A738)*('Fixed assets'!$P$2:$P$1000=Costs!$A738)*('Fixed assets'!$S$2:$S$1000))","v":0},{"$f":"AG650+SUMPRODUCT(('Fixed assets'!$Q$2:$Q$1000=Costs!AG$705)*('Fixed assets'!$U$2:$U$1000>Costs!$A738)*('Fixed assets'!$P$2:$P$1000=Costs!$A738)*('Fixed assets'!$R$2:$R$1000))-SUMPRODUCT(('Fixed assets'!$Q$2:$Q$1000=Costs!AG$705)*('Fixed assets'!$U$2:$U$1000>Costs!$A738)*('Fixed assets'!$P$2:$P$1000=Costs!$A738)*('Fixed assets'!$S$2:$S$1000))","v":0},{"$f":"AH650+SUMPRODUCT(('Fixed assets'!$Q$2:$Q$1000=Costs!AH$705)*('Fixed assets'!$U$2:$U$1000>Costs!$A738)*('Fixed assets'!$P$2:$P$1000=Costs!$A738)*('Fixed assets'!$R$2:$R$1000))-SUMPRODUCT(('Fixed assets'!$Q$2:$Q$1000=Costs!AH$705)*('Fixed assets'!$U$2:$U$1000>Costs!$A738)*('Fixed assets'!$P$2:$P$1000=Costs!$A738)*('Fixed assets'!$S$2:$S$1000))","v":0},{"$f":"AI650+SUMPRODUCT(('Fixed assets'!$Q$2:$Q$1000=Costs!AI$705)*('Fixed assets'!$U$2:$U$1000>Costs!$A738)*('Fixed assets'!$P$2:$P$1000=Costs!$A738)*('Fixed assets'!$R$2:$R$1000))-SUMPRODUCT(('Fixed assets'!$Q$2:$Q$1000=Costs!AI$705)*('Fixed assets'!$U$2:$U$1000>Costs!$A738)*('Fixed assets'!$P$2:$P$1000=Costs!$A738)*('Fixed assets'!$S$2:$S$1000))","v":0},{"$f":"AJ650+SUMPRODUCT(('Fixed assets'!$Q$2:$Q$1000=Costs!AJ$705)*('Fixed assets'!$U$2:$U$1000>Costs!$A738)*('Fixed assets'!$P$2:$P$1000=Costs!$A738)*('Fixed assets'!$R$2:$R$1000))-SUMPRODUCT(('Fixed assets'!$Q$2:$Q$1000=Costs!AJ$705)*('Fixed assets'!$U$2:$U$1000>Costs!$A738)*('Fixed assets'!$P$2:$P$1000=Costs!$A738)*('Fixed assets'!$S$2:$S$1000))","v":0},{"$f":"AK650+SUMPRODUCT(('Fixed assets'!$Q$2:$Q$1000=Costs!AK$705)*('Fixed assets'!$U$2:$U$1000>Costs!$A738)*('Fixed assets'!$P$2:$P$1000=Costs!$A738)*('Fixed assets'!$R$2:$R$1000))-SUMPRODUCT(('Fixed assets'!$Q$2:$Q$1000=Costs!AK$705)*('Fixed assets'!$U$2:$U$1000>Costs!$A738)*('Fixed assets'!$P$2:$P$1000=Costs!$A738)*('Fixed assets'!$S$2:$S$1000))","v":0},{"$f":"AL650+SUMPRODUCT(('Fixed assets'!$Q$2:$Q$1000=Costs!AL$705)*('Fixed assets'!$U$2:$U$1000>Costs!$A738)*('Fixed assets'!$P$2:$P$1000=Costs!$A738)*('Fixed assets'!$R$2:$R$1000))-SUMPRODUCT(('Fixed assets'!$Q$2:$Q$1000=Costs!AL$705)*('Fixed assets'!$U$2:$U$1000>Costs!$A738)*('Fixed assets'!$P$2:$P$1000=Costs!$A738)*('Fixed assets'!$S$2:$S$1000))","v":0},{"$f":"AM650+SUMPRODUCT(('Fixed assets'!$Q$2:$Q$1000=Costs!AM$705)*('Fixed assets'!$U$2:$U$1000>Costs!$A738)*('Fixed assets'!$P$2:$P$1000=Costs!$A738)*('Fixed assets'!$R$2:$R$1000))-SUMPRODUCT(('Fixed assets'!$Q$2:$Q$1000=Costs!AM$705)*('Fixed assets'!$U$2:$U$1000>Costs!$A738)*('Fixed assets'!$P$2:$P$1000=Costs!$A738)*('Fixed assets'!$S$2:$S$1000))","v":0},{"$f":"AN650+SUMPRODUCT(('Fixed assets'!$Q$2:$Q$1000=Costs!AN$705)*('Fixed assets'!$U$2:$U$1000>Costs!$A738)*('Fixed assets'!$P$2:$P$1000=Costs!$A738)*('Fixed assets'!$R$2:$R$1000))-SUMPRODUCT(('Fixed assets'!$Q$2:$Q$1000=Costs!AN$705)*('Fixed assets'!$U$2:$U$1000>Costs!$A738)*('Fixed assets'!$P$2:$P$1000=Costs!$A738)*('Fixed assets'!$S$2:$S$1000))","v":0},{"$f":"AO650+SUMPRODUCT(('Fixed assets'!$Q$2:$Q$1000=Costs!AO$705)*('Fixed assets'!$U$2:$U$1000>Costs!$A738)*('Fixed assets'!$P$2:$P$1000=Costs!$A738)*('Fixed assets'!$R$2:$R$1000))-SUMPRODUCT(('Fixed assets'!$Q$2:$Q$1000=Costs!AO$705)*('Fixed assets'!$U$2:$U$1000>Costs!$A738)*('Fixed assets'!$P$2:$P$1000=Costs!$A738)*('Fixed assets'!$S$2:$S$1000))","v":0},{"$f":"AP650+SUMPRODUCT(('Fixed assets'!$Q$2:$Q$1000=Costs!AP$705)*('Fixed assets'!$U$2:$U$1000>Costs!$A738)*('Fixed assets'!$P$2:$P$1000=Costs!$A738)*('Fixed assets'!$R$2:$R$1000))-SUMPRODUCT(('Fixed assets'!$Q$2:$Q$1000=Costs!AP$705)*('Fixed assets'!$U$2:$U$1000>Costs!$A738)*('Fixed assets'!$P$2:$P$1000=Costs!$A738)*('Fixed assets'!$S$2:$S$1000))","v":0},{"$f":"AQ650+SUMPRODUCT(('Fixed assets'!$Q$2:$Q$1000=Costs!AQ$705)*('Fixed assets'!$U$2:$U$1000>Costs!$A738)*('Fixed assets'!$P$2:$P$1000=Costs!$A738)*('Fixed assets'!$R$2:$R$1000))-SUMPRODUCT(('Fixed assets'!$Q$2:$Q$1000=Costs!AQ$705)*('Fixed assets'!$U$2:$U$1000>Costs!$A738)*('Fixed assets'!$P$2:$P$1000=Costs!$A738)*('Fixed assets'!$S$2:$S$1000))","v":0}]
[2048,0,{"$f":"C651+SUMPRODUCT(('Fixed assets'!$Q$2:$Q$1000=Costs!C$705)*('Fixed assets'!$U$2:$U$1000>Costs!$A739)*('Fixed assets'!$P$2:$P$1000=Costs!$A739)*('Fixed assets'!$R$2:$R$1000))-SUMPRODUCT(('Fixed assets'!$Q$2:$Q$1000=Costs!C$705)*('Fixed assets'!$U$2:$U$1000>Costs!$A739)*('Fixed assets'!$P$2:$P$1000=Costs!$A739)*('Fixed assets'!$S$2:$S$1000))","v":0},{"$f":"D651+SUMPRODUCT(('Fixed assets'!$Q$2:$Q$1000=Costs!D$705)*('Fixed assets'!$U$2:$U$1000>Costs!$A739)*('Fixed assets'!$P$2:$P$1000=Costs!$A739)*('Fixed assets'!$R$2:$R$1000))-SUMPRODUCT(('Fixed assets'!$Q$2:$Q$1000=Costs!D$705)*('Fixed assets'!$U$2:$U$1000>Costs!$A739)*('Fixed assets'!$P$2:$P$1000=Costs!$A739)*('Fixed assets'!$S$2:$S$1000))","v":0},{"$f":"E651+SUMPRODUCT(('Fixed assets'!$Q$2:$Q$1000=Costs!E$705)*('Fixed assets'!$U$2:$U$1000>Costs!$A739)*('Fixed assets'!$P$2:$P$1000=Costs!$A739)*('Fixed assets'!$R$2:$R$1000))-SUMPRODUCT(('Fixed assets'!$Q$2:$Q$1000=Costs!E$705)*('Fixed assets'!$U$2:$U$1000>Costs!$A739)*('Fixed assets'!$P$2:$P$1000=Costs!$A739)*('Fixed assets'!$S$2:$S$1000))","v":0},{"$f":"F651+SUMPRODUCT(('Fixed assets'!$Q$2:$Q$1000=Costs!F$705)*('Fixed assets'!$U$2:$U$1000>Costs!$A739)*('Fixed assets'!$P$2:$P$1000=Costs!$A739)*('Fixed assets'!$R$2:$R$1000))-SUMPRODUCT(('Fixed assets'!$Q$2:$Q$1000=Costs!F$705)*('Fixed assets'!$U$2:$U$1000>Costs!$A739)*('Fixed assets'!$P$2:$P$1000=Costs!$A739)*('Fixed assets'!$S$2:$S$1000))","v":0},{"$f":"G651+SUMPRODUCT(('Fixed assets'!$Q$2:$Q$1000=Costs!G$705)*('Fixed assets'!$U$2:$U$1000>Costs!$A739)*('Fixed assets'!$P$2:$P$1000=Costs!$A739)*('Fixed assets'!$R$2:$R$1000))-SUMPRODUCT(('Fixed assets'!$Q$2:$Q$1000=Costs!G$705)*('Fixed assets'!$U$2:$U$1000>Costs!$A739)*('Fixed assets'!$P$2:$P$1000=Costs!$A739)*('Fixed assets'!$S$2:$S$1000))","v":0},{"$f":"H651+SUMPRODUCT(('Fixed assets'!$Q$2:$Q$1000=Costs!H$705)*('Fixed assets'!$U$2:$U$1000>Costs!$A739)*('Fixed assets'!$P$2:$P$1000=Costs!$A739)*('Fixed assets'!$R$2:$R$1000))-SUMPRODUCT(('Fixed assets'!$Q$2:$Q$1000=Costs!H$705)*('Fixed assets'!$U$2:$U$1000>Costs!$A739)*('Fixed assets'!$P$2:$P$1000=Costs!$A739)*('Fixed assets'!$S$2:$S$1000))","v":0},{"$f":"I651+SUMPRODUCT(('Fixed assets'!$Q$2:$Q$1000=Costs!I$705)*('Fixed assets'!$U$2:$U$1000>Costs!$A739)*('Fixed assets'!$P$2:$P$1000=Costs!$A739)*('Fixed assets'!$R$2:$R$1000))-SUMPRODUCT(('Fixed assets'!$Q$2:$Q$1000=Costs!I$705)*('Fixed assets'!$U$2:$U$1000>Costs!$A739)*('Fixed assets'!$P$2:$P$1000=Costs!$A739)*('Fixed assets'!$S$2:$S$1000))","v":0},{"$f":"J651+SUMPRODUCT(('Fixed assets'!$Q$2:$Q$1000=Costs!J$705)*('Fixed assets'!$U$2:$U$1000>Costs!$A739)*('Fixed assets'!$P$2:$P$1000=Costs!$A739)*('Fixed assets'!$R$2:$R$1000))-SUMPRODUCT(('Fixed assets'!$Q$2:$Q$1000=Costs!J$705)*('Fixed assets'!$U$2:$U$1000>Costs!$A739)*('Fixed assets'!$P$2:$P$1000=Costs!$A739)*('Fixed assets'!$S$2:$S$1000))","v":0},{"$f":"K651+SUMPRODUCT(('Fixed assets'!$Q$2:$Q$1000=Costs!K$705)*('Fixed assets'!$U$2:$U$1000>Costs!$A739)*('Fixed assets'!$P$2:$P$1000=Costs!$A739)*('Fixed assets'!$R$2:$R$1000))-SUMPRODUCT(('Fixed assets'!$Q$2:$Q$1000=Costs!K$705)*('Fixed assets'!$U$2:$U$1000>Costs!$A739)*('Fixed assets'!$P$2:$P$1000=Costs!$A739)*('Fixed assets'!$S$2:$S$1000))","v":0},{"$f":"L651+SUMPRODUCT(('Fixed assets'!$Q$2:$Q$1000=Costs!L$705)*('Fixed assets'!$U$2:$U$1000>Costs!$A739)*('Fixed assets'!$P$2:$P$1000=Costs!$A739)*('Fixed assets'!$R$2:$R$1000))-SUMPRODUCT(('Fixed assets'!$Q$2:$Q$1000=Costs!L$705)*('Fixed assets'!$U$2:$U$1000>Costs!$A739)*('Fixed assets'!$P$2:$P$1000=Costs!$A739)*('Fixed assets'!$S$2:$S$1000))","v":0},{"$f":"M651+SUMPRODUCT(('Fixed assets'!$Q$2:$Q$1000=Costs!M$705)*('Fixed assets'!$U$2:$U$1000>Costs!$A739)*('Fixed assets'!$P$2:$P$1000=Costs!$A739)*('Fixed assets'!$R$2:$R$1000))-SUMPRODUCT(('Fixed assets'!$Q$2:$Q$1000=Costs!M$705)*('Fixed assets'!$U$2:$U$1000>Costs!$A739)*('Fixed assets'!$P$2:$P$1000=Costs!$A739)*('Fixed assets'!$S$2:$S$1000))","v":0},{"$f":"N651+SUMPRODUCT(('Fixed assets'!$Q$2:$Q$1000=Costs!N$705)*('Fixed assets'!$U$2:$U$1000>Costs!$A739)*('Fixed assets'!$P$2:$P$1000=Costs!$A739)*('Fixed assets'!$R$2:$R$1000))-SUMPRODUCT(('Fixed assets'!$Q$2:$Q$1000=Costs!N$705)*('Fixed assets'!$U$2:$U$1000>Costs!$A739)*('Fixed assets'!$P$2:$P$1000=Costs!$A739)*('Fixed assets'!$S$2:$S$1000))","v":0},{"$f":"O651+SUMPRODUCT(('Fixed assets'!$Q$2:$Q$1000=Costs!O$705)*('Fixed assets'!$U$2:$U$1000>Costs!$A739)*('Fixed assets'!$P$2:$P$1000=Costs!$A739)*('Fixed assets'!$R$2:$R$1000))-SUMPRODUCT(('Fixed assets'!$Q$2:$Q$1000=Costs!O$705)*('Fixed assets'!$U$2:$U$1000>Costs!$A739)*('Fixed assets'!$P$2:$P$1000=Costs!$A739)*('Fixed assets'!$S$2:$S$1000))","v":0},{"$f":"P651+SUMPRODUCT(('Fixed assets'!$Q$2:$Q$1000=Costs!P$705)*('Fixed assets'!$U$2:$U$1000>Costs!$A739)*('Fixed assets'!$P$2:$P$1000=Costs!$A739)*('Fixed assets'!$R$2:$R$1000))-SUMPRODUCT(('Fixed assets'!$Q$2:$Q$1000=Costs!P$705)*('Fixed assets'!$U$2:$U$1000>Costs!$A739)*('Fixed assets'!$P$2:$P$1000=Costs!$A739)*('Fixed assets'!$S$2:$S$1000))","v":0},{"$f":"Q651+SUMPRODUCT(('Fixed assets'!$Q$2:$Q$1000=Costs!Q$705)*('Fixed assets'!$U$2:$U$1000>Costs!$A739)*('Fixed assets'!$P$2:$P$1000=Costs!$A739)*('Fixed assets'!$R$2:$R$1000))-SUMPRODUCT(('Fixed assets'!$Q$2:$Q$1000=Costs!Q$705)*('Fixed assets'!$U$2:$U$1000>Costs!$A739)*('Fixed assets'!$P$2:$P$1000=Costs!$A739)*('Fixed assets'!$S$2:$S$1000))","v":0},{"$f":"R651+SUMPRODUCT(('Fixed assets'!$Q$2:$Q$1000=Costs!R$705)*('Fixed assets'!$U$2:$U$1000>Costs!$A739)*('Fixed assets'!$P$2:$P$1000=Costs!$A739)*('Fixed assets'!$R$2:$R$1000))-SUMPRODUCT(('Fixed assets'!$Q$2:$Q$1000=Costs!R$705)*('Fixed assets'!$U$2:$U$1000>Costs!$A739)*('Fixed assets'!$P$2:$P$1000=Costs!$A739)*('Fixed assets'!$S$2:$S$1000))","v":0},{"$f":"S651+SUMPRODUCT(('Fixed assets'!$Q$2:$Q$1000=Costs!S$705)*('Fixed assets'!$U$2:$U$1000>Costs!$A739)*('Fixed assets'!$P$2:$P$1000=Costs!$A739)*('Fixed assets'!$R$2:$R$1000))-SUMPRODUCT(('Fixed assets'!$Q$2:$Q$1000=Costs!S$705)*('Fixed assets'!$U$2:$U$1000>Costs!$A739)*('Fixed assets'!$P$2:$P$1000=Costs!$A739)*('Fixed assets'!$S$2:$S$1000))","v":0},{"$f":"T651+SUMPRODUCT(('Fixed assets'!$Q$2:$Q$1000=Costs!T$705)*('Fixed assets'!$U$2:$U$1000>Costs!$A739)*('Fixed assets'!$P$2:$P$1000=Costs!$A739)*('Fixed assets'!$R$2:$R$1000))-SUMPRODUCT(('Fixed assets'!$Q$2:$Q$1000=Costs!T$705)*('Fixed assets'!$U$2:$U$1000>Costs!$A739)*('Fixed assets'!$P$2:$P$1000=Costs!$A739)*('Fixed assets'!$S$2:$S$1000))","v":0},{"$f":"U651+SUMPRODUCT(('Fixed assets'!$Q$2:$Q$1000=Costs!U$705)*('Fixed assets'!$U$2:$U$1000>Costs!$A739)*('Fixed assets'!$P$2:$P$1000=Costs!$A739)*('Fixed assets'!$R$2:$R$1000))-SUMPRODUCT(('Fixed assets'!$Q$2:$Q$1000=Costs!U$705)*('Fixed assets'!$U$2:$U$1000>Costs!$A739)*('Fixed assets'!$P$2:$P$1000=Costs!$A739)*('Fixed assets'!$S$2:$S$1000))","v":0},{"$f":"V651+SUMPRODUCT(('Fixed assets'!$Q$2:$Q$1000=Costs!V$705)*('Fixed assets'!$U$2:$U$1000>Costs!$A739)*('Fixed assets'!$P$2:$P$1000=Costs!$A739)*('Fixed assets'!$R$2:$R$1000))-SUMPRODUCT(('Fixed assets'!$Q$2:$Q$1000=Costs!V$705)*('Fixed assets'!$U$2:$U$1000>Costs!$A739)*('Fixed assets'!$P$2:$P$1000=Costs!$A739)*('Fixed assets'!$S$2:$S$1000))","v":0},{"$f":"W651+SUMPRODUCT(('Fixed assets'!$Q$2:$Q$1000=Costs!W$705)*('Fixed assets'!$U$2:$U$1000>Costs!$A739)*('Fixed assets'!$P$2:$P$1000=Costs!$A739)*('Fixed assets'!$R$2:$R$1000))-SUMPRODUCT(('Fixed assets'!$Q$2:$Q$1000=Costs!W$705)*('Fixed assets'!$U$2:$U$1000>Costs!$A739)*('Fixed assets'!$P$2:$P$1000=Costs!$A739)*('Fixed assets'!$S$2:$S$1000))","v":0},{"$f":"X651+SUMPRODUCT(('Fixed assets'!$Q$2:$Q$1000=Costs!X$705)*('Fixed assets'!$U$2:$U$1000>Costs!$A739)*('Fixed assets'!$P$2:$P$1000=Costs!$A739)*('Fixed assets'!$R$2:$R$1000))-SUMPRODUCT(('Fixed assets'!$Q$2:$Q$1000=Costs!X$705)*('Fixed assets'!$U$2:$U$1000>Costs!$A739)*('Fixed assets'!$P$2:$P$1000=Costs!$A739)*('Fixed assets'!$S$2:$S$1000))","v":0},{"$f":"Y651+SUMPRODUCT(('Fixed assets'!$Q$2:$Q$1000=Costs!Y$705)*('Fixed assets'!$U$2:$U$1000>Costs!$A739)*('Fixed assets'!$P$2:$P$1000=Costs!$A739)*('Fixed assets'!$R$2:$R$1000))-SUMPRODUCT(('Fixed assets'!$Q$2:$Q$1000=Costs!Y$705)*('Fixed assets'!$U$2:$U$1000>Costs!$A739)*('Fixed assets'!$P$2:$P$1000=Costs!$A739)*('Fixed assets'!$S$2:$S$1000))","v":0},{"$f":"Z651+SUMPRODUCT(('Fixed assets'!$Q$2:$Q$1000=Costs!Z$705)*('Fixed assets'!$U$2:$U$1000>Costs!$A739)*('Fixed assets'!$P$2:$P$1000=Costs!$A739)*('Fixed assets'!$R$2:$R$1000))-SUMPRODUCT(('Fixed assets'!$Q$2:$Q$1000=Costs!Z$705)*('Fixed assets'!$U$2:$U$1000>Costs!$A739)*('Fixed assets'!$P$2:$P$1000=Costs!$A739)*('Fixed assets'!$S$2:$S$1000))","v":0},{"$f":"AA651+SUMPRODUCT(('Fixed assets'!$Q$2:$Q$1000=Costs!AA$705)*('Fixed assets'!$U$2:$U$1000>Costs!$A739)*('Fixed assets'!$P$2:$P$1000=Costs!$A739)*('Fixed assets'!$R$2:$R$1000))-SUMPRODUCT(('Fixed assets'!$Q$2:$Q$1000=Costs!AA$705)*('Fixed assets'!$U$2:$U$1000>Costs!$A739)*('Fixed assets'!$P$2:$P$1000=Costs!$A739)*('Fixed assets'!$S$2:$S$1000))","v":0},{"$f":"AB651+SUMPRODUCT(('Fixed assets'!$Q$2:$Q$1000=Costs!AB$705)*('Fixed assets'!$U$2:$U$1000>Costs!$A739)*('Fixed assets'!$P$2:$P$1000=Costs!$A739)*('Fixed assets'!$R$2:$R$1000))-SUMPRODUCT(('Fixed assets'!$Q$2:$Q$1000=Costs!AB$705)*('Fixed assets'!$U$2:$U$1000>Costs!$A739)*('Fixed assets'!$P$2:$P$1000=Costs!$A739)*('Fixed assets'!$S$2:$S$1000))","v":0},{"$f":"AC651+SUMPRODUCT(('Fixed assets'!$Q$2:$Q$1000=Costs!AC$705)*('Fixed assets'!$U$2:$U$1000>Costs!$A739)*('Fixed assets'!$P$2:$P$1000=Costs!$A739)*('Fixed assets'!$R$2:$R$1000))-SUMPRODUCT(('Fixed assets'!$Q$2:$Q$1000=Costs!AC$705)*('Fixed assets'!$U$2:$U$1000>Costs!$A739)*('Fixed assets'!$P$2:$P$1000=Costs!$A739)*('Fixed assets'!$S$2:$S$1000))","v":0},{"$f":"AD651+SUMPRODUCT(('Fixed assets'!$Q$2:$Q$1000=Costs!AD$705)*('Fixed assets'!$U$2:$U$1000>Costs!$A739)*('Fixed assets'!$P$2:$P$1000=Costs!$A739)*('Fixed assets'!$R$2:$R$1000))-SUMPRODUCT(('Fixed assets'!$Q$2:$Q$1000=Costs!AD$705)*('Fixed assets'!$U$2:$U$1000>Costs!$A739)*('Fixed assets'!$P$2:$P$1000=Costs!$A739)*('Fixed assets'!$S$2:$S$1000))","v":0},{"$f":"AE651+SUMPRODUCT(('Fixed assets'!$Q$2:$Q$1000=Costs!AE$705)*('Fixed assets'!$U$2:$U$1000>Costs!$A739)*('Fixed assets'!$P$2:$P$1000=Costs!$A739)*('Fixed assets'!$R$2:$R$1000))-SUMPRODUCT(('Fixed assets'!$Q$2:$Q$1000=Costs!AE$705)*('Fixed assets'!$U$2:$U$1000>Costs!$A739)*('Fixed assets'!$P$2:$P$1000=Costs!$A739)*('Fixed assets'!$S$2:$S$1000))","v":0},{"$f":"AF651+SUMPRODUCT(('Fixed assets'!$Q$2:$Q$1000=Costs!AF$705)*('Fixed assets'!$U$2:$U$1000>Costs!$A739)*('Fixed assets'!$P$2:$P$1000=Costs!$A739)*('Fixed assets'!$R$2:$R$1000))-SUMPRODUCT(('Fixed assets'!$Q$2:$Q$1000=Costs!AF$705)*('Fixed assets'!$U$2:$U$1000>Costs!$A739)*('Fixed assets'!$P$2:$P$1000=Costs!$A739)*('Fixed assets'!$S$2:$S$1000))","v":0},{"$f":"AG651+SUMPRODUCT(('Fixed assets'!$Q$2:$Q$1000=Costs!AG$705)*('Fixed assets'!$U$2:$U$1000>Costs!$A739)*('Fixed assets'!$P$2:$P$1000=Costs!$A739)*('Fixed assets'!$R$2:$R$1000))-SUMPRODUCT(('Fixed assets'!$Q$2:$Q$1000=Costs!AG$705)*('Fixed assets'!$U$2:$U$1000>Costs!$A739)*('Fixed assets'!$P$2:$P$1000=Costs!$A739)*('Fixed assets'!$S$2:$S$1000))","v":0},{"$f":"AH651+SUMPRODUCT(('Fixed assets'!$Q$2:$Q$1000=Costs!AH$705)*('Fixed assets'!$U$2:$U$1000>Costs!$A739)*('Fixed assets'!$P$2:$P$1000=Costs!$A739)*('Fixed assets'!$R$2:$R$1000))-SUMPRODUCT(('Fixed assets'!$Q$2:$Q$1000=Costs!AH$705)*('Fixed assets'!$U$2:$U$1000>Costs!$A739)*('Fixed assets'!$P$2:$P$1000=Costs!$A739)*('Fixed assets'!$S$2:$S$1000))","v":0},{"$f":"AI651+SUMPRODUCT(('Fixed assets'!$Q$2:$Q$1000=Costs!AI$705)*('Fixed assets'!$U$2:$U$1000>Costs!$A739)*('Fixed assets'!$P$2:$P$1000=Costs!$A739)*('Fixed assets'!$R$2:$R$1000))-SUMPRODUCT(('Fixed assets'!$Q$2:$Q$1000=Costs!AI$705)*('Fixed assets'!$U$2:$U$1000>Costs!$A739)*('Fixed assets'!$P$2:$P$1000=Costs!$A739)*('Fixed assets'!$S$2:$S$1000))","v":0},{"$f":"AJ651+SUMPRODUCT(('Fixed assets'!$Q$2:$Q$1000=Costs!AJ$705)*('Fixed assets'!$U$2:$U$1000>Costs!$A739)*('Fixed assets'!$P$2:$P$1000=Costs!$A739)*('Fixed assets'!$R$2:$R$1000))-SUMPRODUCT(('Fixed assets'!$Q$2:$Q$1000=Costs!AJ$705)*('Fixed assets'!$U$2:$U$1000>Costs!$A739)*('Fixed assets'!$P$2:$P$1000=Costs!$A739)*('Fixed assets'!$S$2:$S$1000))","v":0},{"$f":"AK651+SUMPRODUCT(('Fixed assets'!$Q$2:$Q$1000=Costs!AK$705)*('Fixed assets'!$U$2:$U$1000>Costs!$A739)*('Fixed assets'!$P$2:$P$1000=Costs!$A739)*('Fixed assets'!$R$2:$R$1000))-SUMPRODUCT(('Fixed assets'!$Q$2:$Q$1000=Costs!AK$705)*('Fixed assets'!$U$2:$U$1000>Costs!$A739)*('Fixed assets'!$P$2:$P$1000=Costs!$A739)*('Fixed assets'!$S$2:$S$1000))","v":0},{"$f":"AL651+SUMPRODUCT(('Fixed assets'!$Q$2:$Q$1000=Costs!AL$705)*('Fixed assets'!$U$2:$U$1000>Costs!$A739)*('Fixed assets'!$P$2:$P$1000=Costs!$A739)*('Fixed assets'!$R$2:$R$1000))-SUMPRODUCT(('Fixed assets'!$Q$2:$Q$1000=Costs!AL$705)*('Fixed assets'!$U$2:$U$1000>Costs!$A739)*('Fixed assets'!$P$2:$P$1000=Costs!$A739)*('Fixed assets'!$S$2:$S$1000))","v":0},{"$f":"AM651+SUMPRODUCT(('Fixed assets'!$Q$2:$Q$1000=Costs!AM$705)*('Fixed assets'!$U$2:$U$1000>Costs!$A739)*('Fixed assets'!$P$2:$P$1000=Costs!$A739)*('Fixed assets'!$R$2:$R$1000))-SUMPRODUCT(('Fixed assets'!$Q$2:$Q$1000=Costs!AM$705)*('Fixed assets'!$U$2:$U$1000>Costs!$A739)*('Fixed assets'!$P$2:$P$1000=Costs!$A739)*('Fixed assets'!$S$2:$S$1000))","v":0},{"$f":"AN651+SUMPRODUCT(('Fixed assets'!$Q$2:$Q$1000=Costs!AN$705)*('Fixed assets'!$U$2:$U$1000>Costs!$A739)*('Fixed assets'!$P$2:$P$1000=Costs!$A739)*('Fixed assets'!$R$2:$R$1000))-SUMPRODUCT(('Fixed assets'!$Q$2:$Q$1000=Costs!AN$705)*('Fixed assets'!$U$2:$U$1000>Costs!$A739)*('Fixed assets'!$P$2:$P$1000=Costs!$A739)*('Fixed assets'!$S$2:$S$1000))","v":0},{"$f":"AO651+SUMPRODUCT(('Fixed assets'!$Q$2:$Q$1000=Costs!AO$705)*('Fixed assets'!$U$2:$U$1000>Costs!$A739)*('Fixed assets'!$P$2:$P$1000=Costs!$A739)*('Fixed assets'!$R$2:$R$1000))-SUMPRODUCT(('Fixed assets'!$Q$2:$Q$1000=Costs!AO$705)*('Fixed assets'!$U$2:$U$1000>Costs!$A739)*('Fixed assets'!$P$2:$P$1000=Costs!$A739)*('Fixed assets'!$S$2:$S$1000))","v":0},{"$f":"AP651+SUMPRODUCT(('Fixed assets'!$Q$2:$Q$1000=Costs!AP$705)*('Fixed assets'!$U$2:$U$1000>Costs!$A739)*('Fixed assets'!$P$2:$P$1000=Costs!$A739)*('Fixed assets'!$R$2:$R$1000))-SUMPRODUCT(('Fixed assets'!$Q$2:$Q$1000=Costs!AP$705)*('Fixed assets'!$U$2:$U$1000>Costs!$A739)*('Fixed assets'!$P$2:$P$1000=Costs!$A739)*('Fixed assets'!$S$2:$S$1000))","v":0},{"$f":"AQ651+SUMPRODUCT(('Fixed assets'!$Q$2:$Q$1000=Costs!AQ$705)*('Fixed assets'!$U$2:$U$1000>Costs!$A739)*('Fixed assets'!$P$2:$P$1000=Costs!$A739)*('Fixed assets'!$R$2:$R$1000))-SUMPRODUCT(('Fixed assets'!$Q$2:$Q$1000=Costs!AQ$705)*('Fixed assets'!$U$2:$U$1000>Costs!$A739)*('Fixed assets'!$P$2:$P$1000=Costs!$A739)*('Fixed assets'!$S$2:$S$1000))","v":0}]
[2049,0,{"$f":"C652+SUMPRODUCT(('Fixed assets'!$Q$2:$Q$1000=Costs!C$705)*('Fixed assets'!$U$2:$U$1000>Costs!$A740)*('Fixed assets'!$P$2:$P$1000=Costs!$A740)*('Fixed assets'!$R$2:$R$1000))-SUMPRODUCT(('Fixed assets'!$Q$2:$Q$1000=Costs!C$705)*('Fixed assets'!$U$2:$U$1000>Costs!$A740)*('Fixed assets'!$P$2:$P$1000=Costs!$A740)*('Fixed assets'!$S$2:$S$1000))","v":0},{"$f":"D652+SUMPRODUCT(('Fixed assets'!$Q$2:$Q$1000=Costs!D$705)*('Fixed assets'!$U$2:$U$1000>Costs!$A740)*('Fixed assets'!$P$2:$P$1000=Costs!$A740)*('Fixed assets'!$R$2:$R$1000))-SUMPRODUCT(('Fixed assets'!$Q$2:$Q$1000=Costs!D$705)*('Fixed assets'!$U$2:$U$1000>Costs!$A740)*('Fixed assets'!$P$2:$P$1000=Costs!$A740)*('Fixed assets'!$S$2:$S$1000))","v":0},{"$f":"E652+SUMPRODUCT(('Fixed assets'!$Q$2:$Q$1000=Costs!E$705)*('Fixed assets'!$U$2:$U$1000>Costs!$A740)*('Fixed assets'!$P$2:$P$1000=Costs!$A740)*('Fixed assets'!$R$2:$R$1000))-SUMPRODUCT(('Fixed assets'!$Q$2:$Q$1000=Costs!E$705)*('Fixed assets'!$U$2:$U$1000>Costs!$A740)*('Fixed assets'!$P$2:$P$1000=Costs!$A740)*('Fixed assets'!$S$2:$S$1000))","v":0},{"$f":"F652+SUMPRODUCT(('Fixed assets'!$Q$2:$Q$1000=Costs!F$705)*('Fixed assets'!$U$2:$U$1000>Costs!$A740)*('Fixed assets'!$P$2:$P$1000=Costs!$A740)*('Fixed assets'!$R$2:$R$1000))-SUMPRODUCT(('Fixed assets'!$Q$2:$Q$1000=Costs!F$705)*('Fixed assets'!$U$2:$U$1000>Costs!$A740)*('Fixed assets'!$P$2:$P$1000=Costs!$A740)*('Fixed assets'!$S$2:$S$1000))","v":0},{"$f":"G652+SUMPRODUCT(('Fixed assets'!$Q$2:$Q$1000=Costs!G$705)*('Fixed assets'!$U$2:$U$1000>Costs!$A740)*('Fixed assets'!$P$2:$P$1000=Costs!$A740)*('Fixed assets'!$R$2:$R$1000))-SUMPRODUCT(('Fixed assets'!$Q$2:$Q$1000=Costs!G$705)*('Fixed assets'!$U$2:$U$1000>Costs!$A740)*('Fixed assets'!$P$2:$P$1000=Costs!$A740)*('Fixed assets'!$S$2:$S$1000))","v":0},{"$f":"H652+SUMPRODUCT(('Fixed assets'!$Q$2:$Q$1000=Costs!H$705)*('Fixed assets'!$U$2:$U$1000>Costs!$A740)*('Fixed assets'!$P$2:$P$1000=Costs!$A740)*('Fixed assets'!$R$2:$R$1000))-SUMPRODUCT(('Fixed assets'!$Q$2:$Q$1000=Costs!H$705)*('Fixed assets'!$U$2:$U$1000>Costs!$A740)*('Fixed assets'!$P$2:$P$1000=Costs!$A740)*('Fixed assets'!$S$2:$S$1000))","v":0},{"$f":"I652+SUMPRODUCT(('Fixed assets'!$Q$2:$Q$1000=Costs!I$705)*('Fixed assets'!$U$2:$U$1000>Costs!$A740)*('Fixed assets'!$P$2:$P$1000=Costs!$A740)*('Fixed assets'!$R$2:$R$1000))-SUMPRODUCT(('Fixed assets'!$Q$2:$Q$1000=Costs!I$705)*('Fixed assets'!$U$2:$U$1000>Costs!$A740)*('Fixed assets'!$P$2:$P$1000=Costs!$A740)*('Fixed assets'!$S$2:$S$1000))","v":0},{"$f":"J652+SUMPRODUCT(('Fixed assets'!$Q$2:$Q$1000=Costs!J$705)*('Fixed assets'!$U$2:$U$1000>Costs!$A740)*('Fixed assets'!$P$2:$P$1000=Costs!$A740)*('Fixed assets'!$R$2:$R$1000))-SUMPRODUCT(('Fixed assets'!$Q$2:$Q$1000=Costs!J$705)*('Fixed assets'!$U$2:$U$1000>Costs!$A740)*('Fixed assets'!$P$2:$P$1000=Costs!$A740)*('Fixed assets'!$S$2:$S$1000))","v":0},{"$f":"K652+SUMPRODUCT(('Fixed assets'!$Q$2:$Q$1000=Costs!K$705)*('Fixed assets'!$U$2:$U$1000>Costs!$A740)*('Fixed assets'!$P$2:$P$1000=Costs!$A740)*('Fixed assets'!$R$2:$R$1000))-SUMPRODUCT(('Fixed assets'!$Q$2:$Q$1000=Costs!K$705)*('Fixed assets'!$U$2:$U$1000>Costs!$A740)*('Fixed assets'!$P$2:$P$1000=Costs!$A740)*('Fixed assets'!$S$2:$S$1000))","v":0},{"$f":"L652+SUMPRODUCT(('Fixed assets'!$Q$2:$Q$1000=Costs!L$705)*('Fixed assets'!$U$2:$U$1000>Costs!$A740)*('Fixed assets'!$P$2:$P$1000=Costs!$A740)*('Fixed assets'!$R$2:$R$1000))-SUMPRODUCT(('Fixed assets'!$Q$2:$Q$1000=Costs!L$705)*('Fixed assets'!$U$2:$U$1000>Costs!$A740)*('Fixed assets'!$P$2:$P$1000=Costs!$A740)*('Fixed assets'!$S$2:$S$1000))","v":0},{"$f":"M652+SUMPRODUCT(('Fixed assets'!$Q$2:$Q$1000=Costs!M$705)*('Fixed assets'!$U$2:$U$1000>Costs!$A740)*('Fixed assets'!$P$2:$P$1000=Costs!$A740)*('Fixed assets'!$R$2:$R$1000))-SUMPRODUCT(('Fixed assets'!$Q$2:$Q$1000=Costs!M$705)*('Fixed assets'!$U$2:$U$1000>Costs!$A740)*('Fixed assets'!$P$2:$P$1000=Costs!$A740)*('Fixed assets'!$S$2:$S$1000))","v":0},{"$f":"N652+SUMPRODUCT(('Fixed assets'!$Q$2:$Q$1000=Costs!N$705)*('Fixed assets'!$U$2:$U$1000>Costs!$A740)*('Fixed assets'!$P$2:$P$1000=Costs!$A740)*('Fixed assets'!$R$2:$R$1000))-SUMPRODUCT(('Fixed assets'!$Q$2:$Q$1000=Costs!N$705)*('Fixed assets'!$U$2:$U$1000>Costs!$A740)*('Fixed assets'!$P$2:$P$1000=Costs!$A740)*('Fixed assets'!$S$2:$S$1000))","v":0},{"$f":"O652+SUMPRODUCT(('Fixed assets'!$Q$2:$Q$1000=Costs!O$705)*('Fixed assets'!$U$2:$U$1000>Costs!$A740)*('Fixed assets'!$P$2:$P$1000=Costs!$A740)*('Fixed assets'!$R$2:$R$1000))-SUMPRODUCT(('Fixed assets'!$Q$2:$Q$1000=Costs!O$705)*('Fixed assets'!$U$2:$U$1000>Costs!$A740)*('Fixed assets'!$P$2:$P$1000=Costs!$A740)*('Fixed assets'!$S$2:$S$1000))","v":0},{"$f":"P652+SUMPRODUCT(('Fixed assets'!$Q$2:$Q$1000=Costs!P$705)*('Fixed assets'!$U$2:$U$1000>Costs!$A740)*('Fixed assets'!$P$2:$P$1000=Costs!$A740)*('Fixed assets'!$R$2:$R$1000))-SUMPRODUCT(('Fixed assets'!$Q$2:$Q$1000=Costs!P$705)*('Fixed assets'!$U$2:$U$1000>Costs!$A740)*('Fixed assets'!$P$2:$P$1000=Costs!$A740)*('Fixed assets'!$S$2:$S$1000))","v":0},{"$f":"Q652+SUMPRODUCT(('Fixed assets'!$Q$2:$Q$1000=Costs!Q$705)*('Fixed assets'!$U$2:$U$1000>Costs!$A740)*('Fixed assets'!$P$2:$P$1000=Costs!$A740)*('Fixed assets'!$R$2:$R$1000))-SUMPRODUCT(('Fixed assets'!$Q$2:$Q$1000=Costs!Q$705)*('Fixed assets'!$U$2:$U$1000>Costs!$A740)*('Fixed assets'!$P$2:$P$1000=Costs!$A740)*('Fixed assets'!$S$2:$S$1000))","v":0},{"$f":"R652+SUMPRODUCT(('Fixed assets'!$Q$2:$Q$1000=Costs!R$705)*('Fixed assets'!$U$2:$U$1000>Costs!$A740)*('Fixed assets'!$P$2:$P$1000=Costs!$A740)*('Fixed assets'!$R$2:$R$1000))-SUMPRODUCT(('Fixed assets'!$Q$2:$Q$1000=Costs!R$705)*('Fixed assets'!$U$2:$U$1000>Costs!$A740)*('Fixed assets'!$P$2:$P$1000=Costs!$A740)*('Fixed assets'!$S$2:$S$1000))","v":0},{"$f":"S652+SUMPRODUCT(('Fixed assets'!$Q$2:$Q$1000=Costs!S$705)*('Fixed assets'!$U$2:$U$1000>Costs!$A740)*('Fixed assets'!$P$2:$P$1000=Costs!$A740)*('Fixed assets'!$R$2:$R$1000))-SUMPRODUCT(('Fixed assets'!$Q$2:$Q$1000=Costs!S$705)*('Fixed assets'!$U$2:$U$1000>Costs!$A740)*('Fixed assets'!$P$2:$P$1000=Costs!$A740)*('Fixed assets'!$S$2:$S$1000))","v":0},{"$f":"T652+SUMPRODUCT(('Fixed assets'!$Q$2:$Q$1000=Costs!T$705)*('Fixed assets'!$U$2:$U$1000>Costs!$A740)*('Fixed assets'!$P$2:$P$1000=Costs!$A740)*('Fixed assets'!$R$2:$R$1000))-SUMPRODUCT(('Fixed assets'!$Q$2:$Q$1000=Costs!T$705)*('Fixed assets'!$U$2:$U$1000>Costs!$A740)*('Fixed assets'!$P$2:$P$1000=Costs!$A740)*('Fixed assets'!$S$2:$S$1000))","v":0},{"$f":"U652+SUMPRODUCT(('Fixed assets'!$Q$2:$Q$1000=Costs!U$705)*('Fixed assets'!$U$2:$U$1000>Costs!$A740)*('Fixed assets'!$P$2:$P$1000=Costs!$A740)*('Fixed assets'!$R$2:$R$1000))-SUMPRODUCT(('Fixed assets'!$Q$2:$Q$1000=Costs!U$705)*('Fixed assets'!$U$2:$U$1000>Costs!$A740)*('Fixed assets'!$P$2:$P$1000=Costs!$A740)*('Fixed assets'!$S$2:$S$1000))","v":0},{"$f":"V652+SUMPRODUCT(('Fixed assets'!$Q$2:$Q$1000=Costs!V$705)*('Fixed assets'!$U$2:$U$1000>Costs!$A740)*('Fixed assets'!$P$2:$P$1000=Costs!$A740)*('Fixed assets'!$R$2:$R$1000))-SUMPRODUCT(('Fixed assets'!$Q$2:$Q$1000=Costs!V$705)*('Fixed assets'!$U$2:$U$1000>Costs!$A740)*('Fixed assets'!$P$2:$P$1000=Costs!$A740)*('Fixed assets'!$S$2:$S$1000))","v":0},{"$f":"W652+SUMPRODUCT(('Fixed assets'!$Q$2:$Q$1000=Costs!W$705)*('Fixed assets'!$U$2:$U$1000>Costs!$A740)*('Fixed assets'!$P$2:$P$1000=Costs!$A740)*('Fixed assets'!$R$2:$R$1000))-SUMPRODUCT(('Fixed assets'!$Q$2:$Q$1000=Costs!W$705)*('Fixed assets'!$U$2:$U$1000>Costs!$A740)*('Fixed assets'!$P$2:$P$1000=Costs!$A740)*('Fixed assets'!$S$2:$S$1000))","v":0},{"$f":"X652+SUMPRODUCT(('Fixed assets'!$Q$2:$Q$1000=Costs!X$705)*('Fixed assets'!$U$2:$U$1000>Costs!$A740)*('Fixed assets'!$P$2:$P$1000=Costs!$A740)*('Fixed assets'!$R$2:$R$1000))-SUMPRODUCT(('Fixed assets'!$Q$2:$Q$1000=Costs!X$705)*('Fixed assets'!$U$2:$U$1000>Costs!$A740)*('Fixed assets'!$P$2:$P$1000=Costs!$A740)*('Fixed assets'!$S$2:$S$1000))","v":0},{"$f":"Y652+SUMPRODUCT(('Fixed assets'!$Q$2:$Q$1000=Costs!Y$705)*('Fixed assets'!$U$2:$U$1000>Costs!$A740)*('Fixed assets'!$P$2:$P$1000=Costs!$A740)*('Fixed assets'!$R$2:$R$1000))-SUMPRODUCT(('Fixed assets'!$Q$2:$Q$1000=Costs!Y$705)*('Fixed assets'!$U$2:$U$1000>Costs!$A740)*('Fixed assets'!$P$2:$P$1000=Costs!$A740)*('Fixed assets'!$S$2:$S$1000))","v":0},{"$f":"Z652+SUMPRODUCT(('Fixed assets'!$Q$2:$Q$1000=Costs!Z$705)*('Fixed assets'!$U$2:$U$1000>Costs!$A740)*('Fixed assets'!$P$2:$P$1000=Costs!$A740)*('Fixed assets'!$R$2:$R$1000))-SUMPRODUCT(('Fixed assets'!$Q$2:$Q$1000=Costs!Z$705)*('Fixed assets'!$U$2:$U$1000>Costs!$A740)*('Fixed assets'!$P$2:$P$1000=Costs!$A740)*('Fixed assets'!$S$2:$S$1000))","v":0},{"$f":"AA652+SUMPRODUCT(('Fixed assets'!$Q$2:$Q$1000=Costs!AA$705)*('Fixed assets'!$U$2:$U$1000>Costs!$A740)*('Fixed assets'!$P$2:$P$1000=Costs!$A740)*('Fixed assets'!$R$2:$R$1000))-SUMPRODUCT(('Fixed assets'!$Q$2:$Q$1000=Costs!AA$705)*('Fixed assets'!$U$2:$U$1000>Costs!$A740)*('Fixed assets'!$P$2:$P$1000=Costs!$A740)*('Fixed assets'!$S$2:$S$1000))","v":0},{"$f":"AB652+SUMPRODUCT(('Fixed assets'!$Q$2:$Q$1000=Costs!AB$705)*('Fixed assets'!$U$2:$U$1000>Costs!$A740)*('Fixed assets'!$P$2:$P$1000=Costs!$A740)*('Fixed assets'!$R$2:$R$1000))-SUMPRODUCT(('Fixed assets'!$Q$2:$Q$1000=Costs!AB$705)*('Fixed assets'!$U$2:$U$1000>Costs!$A740)*('Fixed assets'!$P$2:$P$1000=Costs!$A740)*('Fixed assets'!$S$2:$S$1000))","v":0},{"$f":"AC652+SUMPRODUCT(('Fixed assets'!$Q$2:$Q$1000=Costs!AC$705)*('Fixed assets'!$U$2:$U$1000>Costs!$A740)*('Fixed assets'!$P$2:$P$1000=Costs!$A740)*('Fixed assets'!$R$2:$R$1000))-SUMPRODUCT(('Fixed assets'!$Q$2:$Q$1000=Costs!AC$705)*('Fixed assets'!$U$2:$U$1000>Costs!$A740)*('Fixed assets'!$P$2:$P$1000=Costs!$A740)*('Fixed assets'!$S$2:$S$1000))","v":0},{"$f":"AD652+SUMPRODUCT(('Fixed assets'!$Q$2:$Q$1000=Costs!AD$705)*('Fixed assets'!$U$2:$U$1000>Costs!$A740)*('Fixed assets'!$P$2:$P$1000=Costs!$A740)*('Fixed assets'!$R$2:$R$1000))-SUMPRODUCT(('Fixed assets'!$Q$2:$Q$1000=Costs!AD$705)*('Fixed assets'!$U$2:$U$1000>Costs!$A740)*('Fixed assets'!$P$2:$P$1000=Costs!$A740)*('Fixed assets'!$S$2:$S$1000))","v":0},{"$f":"AE652+SUMPRODUCT(('Fixed assets'!$Q$2:$Q$1000=Costs!AE$705)*('Fixed assets'!$U$2:$U$1000>Costs!$A740)*('Fixed assets'!$P$2:$P$1000=Costs!$A740)*('Fixed assets'!$R$2:$R$1000))-SUMPRODUCT(('Fixed assets'!$Q$2:$Q$1000=Costs!AE$705)*('Fixed assets'!$U$2:$U$1000>Costs!$A740)*('Fixed assets'!$P$2:$P$1000=Costs!$A740)*('Fixed assets'!$S$2:$S$1000))","v":0},{"$f":"AF652+SUMPRODUCT(('Fixed assets'!$Q$2:$Q$1000=Costs!AF$705)*('Fixed assets'!$U$2:$U$1000>Costs!$A740)*('Fixed assets'!$P$2:$P$1000=Costs!$A740)*('Fixed assets'!$R$2:$R$1000))-SUMPRODUCT(('Fixed assets'!$Q$2:$Q$1000=Costs!AF$705)*('Fixed assets'!$U$2:$U$1000>Costs!$A740)*('Fixed assets'!$P$2:$P$1000=Costs!$A740)*('Fixed assets'!$S$2:$S$1000))","v":0},{"$f":"AG652+SUMPRODUCT(('Fixed assets'!$Q$2:$Q$1000=Costs!AG$705)*('Fixed assets'!$U$2:$U$1000>Costs!$A740)*('Fixed assets'!$P$2:$P$1000=Costs!$A740)*('Fixed assets'!$R$2:$R$1000))-SUMPRODUCT(('Fixed assets'!$Q$2:$Q$1000=Costs!AG$705)*('Fixed assets'!$U$2:$U$1000>Costs!$A740)*('Fixed assets'!$P$2:$P$1000=Costs!$A740)*('Fixed assets'!$S$2:$S$1000))","v":0},{"$f":"AH652+SUMPRODUCT(('Fixed assets'!$Q$2:$Q$1000=Costs!AH$705)*('Fixed assets'!$U$2:$U$1000>Costs!$A740)*('Fixed assets'!$P$2:$P$1000=Costs!$A740)*('Fixed assets'!$R$2:$R$1000))-SUMPRODUCT(('Fixed assets'!$Q$2:$Q$1000=Costs!AH$705)*('Fixed assets'!$U$2:$U$1000>Costs!$A740)*('Fixed assets'!$P$2:$P$1000=Costs!$A740)*('Fixed assets'!$S$2:$S$1000))","v":0},{"$f":"AI652+SUMPRODUCT(('Fixed assets'!$Q$2:$Q$1000=Costs!AI$705)*('Fixed assets'!$U$2:$U$1000>Costs!$A740)*('Fixed assets'!$P$2:$P$1000=Costs!$A740)*('Fixed assets'!$R$2:$R$1000))-SUMPRODUCT(('Fixed assets'!$Q$2:$Q$1000=Costs!AI$705)*('Fixed assets'!$U$2:$U$1000>Costs!$A740)*('Fixed assets'!$P$2:$P$1000=Costs!$A740)*('Fixed assets'!$S$2:$S$1000))","v":0},{"$f":"AJ652+SUMPRODUCT(('Fixed assets'!$Q$2:$Q$1000=Costs!AJ$705)*('Fixed assets'!$U$2:$U$1000>Costs!$A740)*('Fixed assets'!$P$2:$P$1000=Costs!$A740)*('Fixed assets'!$R$2:$R$1000))-SUMPRODUCT(('Fixed assets'!$Q$2:$Q$1000=Costs!AJ$705)*('Fixed assets'!$U$2:$U$1000>Costs!$A740)*('Fixed assets'!$P$2:$P$1000=Costs!$A740)*('Fixed assets'!$S$2:$S$1000))","v":0},{"$f":"AK652+SUMPRODUCT(('Fixed assets'!$Q$2:$Q$1000=Costs!AK$705)*('Fixed assets'!$U$2:$U$1000>Costs!$A740)*('Fixed assets'!$P$2:$P$1000=Costs!$A740)*('Fixed assets'!$R$2:$R$1000))-SUMPRODUCT(('Fixed assets'!$Q$2:$Q$1000=Costs!AK$705)*('Fixed assets'!$U$2:$U$1000>Costs!$A740)*('Fixed assets'!$P$2:$P$1000=Costs!$A740)*('Fixed assets'!$S$2:$S$1000))","v":0},{"$f":"AL652+SUMPRODUCT(('Fixed assets'!$Q$2:$Q$1000=Costs!AL$705)*('Fixed assets'!$U$2:$U$1000>Costs!$A740)*('Fixed assets'!$P$2:$P$1000=Costs!$A740)*('Fixed assets'!$R$2:$R$1000))-SUMPRODUCT(('Fixed assets'!$Q$2:$Q$1000=Costs!AL$705)*('Fixed assets'!$U$2:$U$1000>Costs!$A740)*('Fixed assets'!$P$2:$P$1000=Costs!$A740)*('Fixed assets'!$S$2:$S$1000))","v":0},{"$f":"AM652+SUMPRODUCT(('Fixed assets'!$Q$2:$Q$1000=Costs!AM$705)*('Fixed assets'!$U$2:$U$1000>Costs!$A740)*('Fixed assets'!$P$2:$P$1000=Costs!$A740)*('Fixed assets'!$R$2:$R$1000))-SUMPRODUCT(('Fixed assets'!$Q$2:$Q$1000=Costs!AM$705)*('Fixed assets'!$U$2:$U$1000>Costs!$A740)*('Fixed assets'!$P$2:$P$1000=Costs!$A740)*('Fixed assets'!$S$2:$S$1000))","v":0},{"$f":"AN652+SUMPRODUCT(('Fixed assets'!$Q$2:$Q$1000=Costs!AN$705)*('Fixed assets'!$U$2:$U$1000>Costs!$A740)*('Fixed assets'!$P$2:$P$1000=Costs!$A740)*('Fixed assets'!$R$2:$R$1000))-SUMPRODUCT(('Fixed assets'!$Q$2:$Q$1000=Costs!AN$705)*('Fixed assets'!$U$2:$U$1000>Costs!$A740)*('Fixed assets'!$P$2:$P$1000=Costs!$A740)*('Fixed assets'!$S$2:$S$1000))","v":0},{"$f":"AO652+SUMPRODUCT(('Fixed assets'!$Q$2:$Q$1000=Costs!AO$705)*('Fixed assets'!$U$2:$U$1000>Costs!$A740)*('Fixed assets'!$P$2:$P$1000=Costs!$A740)*('Fixed assets'!$R$2:$R$1000))-SUMPRODUCT(('Fixed assets'!$Q$2:$Q$1000=Costs!AO$705)*('Fixed assets'!$U$2:$U$1000>Costs!$A740)*('Fixed assets'!$P$2:$P$1000=Costs!$A740)*('Fixed assets'!$S$2:$S$1000))","v":0},{"$f":"AP652+SUMPRODUCT(('Fixed assets'!$Q$2:$Q$1000=Costs!AP$705)*('Fixed assets'!$U$2:$U$1000>Costs!$A740)*('Fixed assets'!$P$2:$P$1000=Costs!$A740)*('Fixed assets'!$R$2:$R$1000))-SUMPRODUCT(('Fixed assets'!$Q$2:$Q$1000=Costs!AP$705)*('Fixed assets'!$U$2:$U$1000>Costs!$A740)*('Fixed assets'!$P$2:$P$1000=Costs!$A740)*('Fixed assets'!$S$2:$S$1000))","v":0},{"$f":"AQ652+SUMPRODUCT(('Fixed assets'!$Q$2:$Q$1000=Costs!AQ$705)*('Fixed assets'!$U$2:$U$1000>Costs!$A740)*('Fixed assets'!$P$2:$P$1000=Costs!$A740)*('Fixed assets'!$R$2:$R$1000))-SUMPRODUCT(('Fixed assets'!$Q$2:$Q$1000=Costs!AQ$705)*('Fixed assets'!$U$2:$U$1000>Costs!$A740)*('Fixed assets'!$P$2:$P$1000=Costs!$A740)*('Fixed assets'!$S$2:$S$1000))","v":0}]
[2050,0,{"$f":"C653+SUMPRODUCT(('Fixed assets'!$Q$2:$Q$1000=Costs!C$705)*('Fixed assets'!$U$2:$U$1000>Costs!$A741)*('Fixed assets'!$P$2:$P$1000=Costs!$A741)*('Fixed assets'!$R$2:$R$1000))-SUMPRODUCT(('Fixed assets'!$Q$2:$Q$1000=Costs!C$705)*('Fixed assets'!$U$2:$U$1000>Costs!$A741)*('Fixed assets'!$P$2:$P$1000=Costs!$A741)*('Fixed assets'!$S$2:$S$1000))","v":0},{"$f":"D653+SUMPRODUCT(('Fixed assets'!$Q$2:$Q$1000=Costs!D$705)*('Fixed assets'!$U$2:$U$1000>Costs!$A741)*('Fixed assets'!$P$2:$P$1000=Costs!$A741)*('Fixed assets'!$R$2:$R$1000))-SUMPRODUCT(('Fixed assets'!$Q$2:$Q$1000=Costs!D$705)*('Fixed assets'!$U$2:$U$1000>Costs!$A741)*('Fixed assets'!$P$2:$P$1000=Costs!$A741)*('Fixed assets'!$S$2:$S$1000))","v":0},{"$f":"E653+SUMPRODUCT(('Fixed assets'!$Q$2:$Q$1000=Costs!E$705)*('Fixed assets'!$U$2:$U$1000>Costs!$A741)*('Fixed assets'!$P$2:$P$1000=Costs!$A741)*('Fixed assets'!$R$2:$R$1000))-SUMPRODUCT(('Fixed assets'!$Q$2:$Q$1000=Costs!E$705)*('Fixed assets'!$U$2:$U$1000>Costs!$A741)*('Fixed assets'!$P$2:$P$1000=Costs!$A741)*('Fixed assets'!$S$2:$S$1000))","v":0},{"$f":"F653+SUMPRODUCT(('Fixed assets'!$Q$2:$Q$1000=Costs!F$705)*('Fixed assets'!$U$2:$U$1000>Costs!$A741)*('Fixed assets'!$P$2:$P$1000=Costs!$A741)*('Fixed assets'!$R$2:$R$1000))-SUMPRODUCT(('Fixed assets'!$Q$2:$Q$1000=Costs!F$705)*('Fixed assets'!$U$2:$U$1000>Costs!$A741)*('Fixed assets'!$P$2:$P$1000=Costs!$A741)*('Fixed assets'!$S$2:$S$1000))","v":0},{"$f":"G653+SUMPRODUCT(('Fixed assets'!$Q$2:$Q$1000=Costs!G$705)*('Fixed assets'!$U$2:$U$1000>Costs!$A741)*('Fixed assets'!$P$2:$P$1000=Costs!$A741)*('Fixed assets'!$R$2:$R$1000))-SUMPRODUCT(('Fixed assets'!$Q$2:$Q$1000=Costs!G$705)*('Fixed assets'!$U$2:$U$1000>Costs!$A741)*('Fixed assets'!$P$2:$P$1000=Costs!$A741)*('Fixed assets'!$S$2:$S$1000))","v":0},{"$f":"H653+SUMPRODUCT(('Fixed assets'!$Q$2:$Q$1000=Costs!H$705)*('Fixed assets'!$U$2:$U$1000>Costs!$A741)*('Fixed assets'!$P$2:$P$1000=Costs!$A741)*('Fixed assets'!$R$2:$R$1000))-SUMPRODUCT(('Fixed assets'!$Q$2:$Q$1000=Costs!H$705)*('Fixed assets'!$U$2:$U$1000>Costs!$A741)*('Fixed assets'!$P$2:$P$1000=Costs!$A741)*('Fixed assets'!$S$2:$S$1000))","v":0},{"$f":"I653+SUMPRODUCT(('Fixed assets'!$Q$2:$Q$1000=Costs!I$705)*('Fixed assets'!$U$2:$U$1000>Costs!$A741)*('Fixed assets'!$P$2:$P$1000=Costs!$A741)*('Fixed assets'!$R$2:$R$1000))-SUMPRODUCT(('Fixed assets'!$Q$2:$Q$1000=Costs!I$705)*('Fixed assets'!$U$2:$U$1000>Costs!$A741)*('Fixed assets'!$P$2:$P$1000=Costs!$A741)*('Fixed assets'!$S$2:$S$1000))","v":0},{"$f":"J653+SUMPRODUCT(('Fixed assets'!$Q$2:$Q$1000=Costs!J$705)*('Fixed assets'!$U$2:$U$1000>Costs!$A741)*('Fixed assets'!$P$2:$P$1000=Costs!$A741)*('Fixed assets'!$R$2:$R$1000))-SUMPRODUCT(('Fixed assets'!$Q$2:$Q$1000=Costs!J$705)*('Fixed assets'!$U$2:$U$1000>Costs!$A741)*('Fixed assets'!$P$2:$P$1000=Costs!$A741)*('Fixed assets'!$S$2:$S$1000))","v":0},{"$f":"K653+SUMPRODUCT(('Fixed assets'!$Q$2:$Q$1000=Costs!K$705)*('Fixed assets'!$U$2:$U$1000>Costs!$A741)*('Fixed assets'!$P$2:$P$1000=Costs!$A741)*('Fixed assets'!$R$2:$R$1000))-SUMPRODUCT(('Fixed assets'!$Q$2:$Q$1000=Costs!K$705)*('Fixed assets'!$U$2:$U$1000>Costs!$A741)*('Fixed assets'!$P$2:$P$1000=Costs!$A741)*('Fixed assets'!$S$2:$S$1000))","v":0},{"$f":"L653+SUMPRODUCT(('Fixed assets'!$Q$2:$Q$1000=Costs!L$705)*('Fixed assets'!$U$2:$U$1000>Costs!$A741)*('Fixed assets'!$P$2:$P$1000=Costs!$A741)*('Fixed assets'!$R$2:$R$1000))-SUMPRODUCT(('Fixed assets'!$Q$2:$Q$1000=Costs!L$705)*('Fixed assets'!$U$2:$U$1000>Costs!$A741)*('Fixed assets'!$P$2:$P$1000=Costs!$A741)*('Fixed assets'!$S$2:$S$1000))","v":0},{"$f":"M653+SUMPRODUCT(('Fixed assets'!$Q$2:$Q$1000=Costs!M$705)*('Fixed assets'!$U$2:$U$1000>Costs!$A741)*('Fixed assets'!$P$2:$P$1000=Costs!$A741)*('Fixed assets'!$R$2:$R$1000))-SUMPRODUCT(('Fixed assets'!$Q$2:$Q$1000=Costs!M$705)*('Fixed assets'!$U$2:$U$1000>Costs!$A741)*('Fixed assets'!$P$2:$P$1000=Costs!$A741)*('Fixed assets'!$S$2:$S$1000))","v":0},{"$f":"N653+SUMPRODUCT(('Fixed assets'!$Q$2:$Q$1000=Costs!N$705)*('Fixed assets'!$U$2:$U$1000>Costs!$A741)*('Fixed assets'!$P$2:$P$1000=Costs!$A741)*('Fixed assets'!$R$2:$R$1000))-SUMPRODUCT(('Fixed assets'!$Q$2:$Q$1000=Costs!N$705)*('Fixed assets'!$U$2:$U$1000>Costs!$A741)*('Fixed assets'!$P$2:$P$1000=Costs!$A741)*('Fixed assets'!$S$2:$S$1000))","v":0},{"$f":"O653+SUMPRODUCT(('Fixed assets'!$Q$2:$Q$1000=Costs!O$705)*('Fixed assets'!$U$2:$U$1000>Costs!$A741)*('Fixed assets'!$P$2:$P$1000=Costs!$A741)*('Fixed assets'!$R$2:$R$1000))-SUMPRODUCT(('Fixed assets'!$Q$2:$Q$1000=Costs!O$705)*('Fixed assets'!$U$2:$U$1000>Costs!$A741)*('Fixed assets'!$P$2:$P$1000=Costs!$A741)*('Fixed assets'!$S$2:$S$1000))","v":0},{"$f":"P653+SUMPRODUCT(('Fixed assets'!$Q$2:$Q$1000=Costs!P$705)*('Fixed assets'!$U$2:$U$1000>Costs!$A741)*('Fixed assets'!$P$2:$P$1000=Costs!$A741)*('Fixed assets'!$R$2:$R$1000))-SUMPRODUCT(('Fixed assets'!$Q$2:$Q$1000=Costs!P$705)*('Fixed assets'!$U$2:$U$1000>Costs!$A741)*('Fixed assets'!$P$2:$P$1000=Costs!$A741)*('Fixed assets'!$S$2:$S$1000))","v":0},{"$f":"Q653+SUMPRODUCT(('Fixed assets'!$Q$2:$Q$1000=Costs!Q$705)*('Fixed assets'!$U$2:$U$1000>Costs!$A741)*('Fixed assets'!$P$2:$P$1000=Costs!$A741)*('Fixed assets'!$R$2:$R$1000))-SUMPRODUCT(('Fixed assets'!$Q$2:$Q$1000=Costs!Q$705)*('Fixed assets'!$U$2:$U$1000>Costs!$A741)*('Fixed assets'!$P$2:$P$1000=Costs!$A741)*('Fixed assets'!$S$2:$S$1000))","v":0},{"$f":"R653+SUMPRODUCT(('Fixed assets'!$Q$2:$Q$1000=Costs!R$705)*('Fixed assets'!$U$2:$U$1000>Costs!$A741)*('Fixed assets'!$P$2:$P$1000=Costs!$A741)*('Fixed assets'!$R$2:$R$1000))-SUMPRODUCT(('Fixed assets'!$Q$2:$Q$1000=Costs!R$705)*('Fixed assets'!$U$2:$U$1000>Costs!$A741)*('Fixed assets'!$P$2:$P$1000=Costs!$A741)*('Fixed assets'!$S$2:$S$1000))","v":0},{"$f":"S653+SUMPRODUCT(('Fixed assets'!$Q$2:$Q$1000=Costs!S$705)*('Fixed assets'!$U$2:$U$1000>Costs!$A741)*('Fixed assets'!$P$2:$P$1000=Costs!$A741)*('Fixed assets'!$R$2:$R$1000))-SUMPRODUCT(('Fixed assets'!$Q$2:$Q$1000=Costs!S$705)*('Fixed assets'!$U$2:$U$1000>Costs!$A741)*('Fixed assets'!$P$2:$P$1000=Costs!$A741)*('Fixed assets'!$S$2:$S$1000))","v":0},{"$f":"T653+SUMPRODUCT(('Fixed assets'!$Q$2:$Q$1000=Costs!T$705)*('Fixed assets'!$U$2:$U$1000>Costs!$A741)*('Fixed assets'!$P$2:$P$1000=Costs!$A741)*('Fixed assets'!$R$2:$R$1000))-SUMPRODUCT(('Fixed assets'!$Q$2:$Q$1000=Costs!T$705)*('Fixed assets'!$U$2:$U$1000>Costs!$A741)*('Fixed assets'!$P$2:$P$1000=Costs!$A741)*('Fixed assets'!$S$2:$S$1000))","v":0},{"$f":"U653+SUMPRODUCT(('Fixed assets'!$Q$2:$Q$1000=Costs!U$705)*('Fixed assets'!$U$2:$U$1000>Costs!$A741)*('Fixed assets'!$P$2:$P$1000=Costs!$A741)*('Fixed assets'!$R$2:$R$1000))-SUMPRODUCT(('Fixed assets'!$Q$2:$Q$1000=Costs!U$705)*('Fixed assets'!$U$2:$U$1000>Costs!$A741)*('Fixed assets'!$P$2:$P$1000=Costs!$A741)*('Fixed assets'!$S$2:$S$1000))","v":0},{"$f":"V653+SUMPRODUCT(('Fixed assets'!$Q$2:$Q$1000=Costs!V$705)*('Fixed assets'!$U$2:$U$1000>Costs!$A741)*('Fixed assets'!$P$2:$P$1000=Costs!$A741)*('Fixed assets'!$R$2:$R$1000))-SUMPRODUCT(('Fixed assets'!$Q$2:$Q$1000=Costs!V$705)*('Fixed assets'!$U$2:$U$1000>Costs!$A741)*('Fixed assets'!$P$2:$P$1000=Costs!$A741)*('Fixed assets'!$S$2:$S$1000))","v":0},{"$f":"W653+SUMPRODUCT(('Fixed assets'!$Q$2:$Q$1000=Costs!W$705)*('Fixed assets'!$U$2:$U$1000>Costs!$A741)*('Fixed assets'!$P$2:$P$1000=Costs!$A741)*('Fixed assets'!$R$2:$R$1000))-SUMPRODUCT(('Fixed assets'!$Q$2:$Q$1000=Costs!W$705)*('Fixed assets'!$U$2:$U$1000>Costs!$A741)*('Fixed assets'!$P$2:$P$1000=Costs!$A741)*('Fixed assets'!$S$2:$S$1000))","v":0},{"$f":"X653+SUMPRODUCT(('Fixed assets'!$Q$2:$Q$1000=Costs!X$705)*('Fixed assets'!$U$2:$U$1000>Costs!$A741)*('Fixed assets'!$P$2:$P$1000=Costs!$A741)*('Fixed assets'!$R$2:$R$1000))-SUMPRODUCT(('Fixed assets'!$Q$2:$Q$1000=Costs!X$705)*('Fixed assets'!$U$2:$U$1000>Costs!$A741)*('Fixed assets'!$P$2:$P$1000=Costs!$A741)*('Fixed assets'!$S$2:$S$1000))","v":0},{"$f":"Y653+SUMPRODUCT(('Fixed assets'!$Q$2:$Q$1000=Costs!Y$705)*('Fixed assets'!$U$2:$U$1000>Costs!$A741)*('Fixed assets'!$P$2:$P$1000=Costs!$A741)*('Fixed assets'!$R$2:$R$1000))-SUMPRODUCT(('Fixed assets'!$Q$2:$Q$1000=Costs!Y$705)*('Fixed assets'!$U$2:$U$1000>Costs!$A741)*('Fixed assets'!$P$2:$P$1000=Costs!$A741)*('Fixed assets'!$S$2:$S$1000))","v":0},{"$f":"Z653+SUMPRODUCT(('Fixed assets'!$Q$2:$Q$1000=Costs!Z$705)*('Fixed assets'!$U$2:$U$1000>Costs!$A741)*('Fixed assets'!$P$2:$P$1000=Costs!$A741)*('Fixed assets'!$R$2:$R$1000))-SUMPRODUCT(('Fixed assets'!$Q$2:$Q$1000=Costs!Z$705)*('Fixed assets'!$U$2:$U$1000>Costs!$A741)*('Fixed assets'!$P$2:$P$1000=Costs!$A741)*('Fixed assets'!$S$2:$S$1000))","v":0},{"$f":"AA653+SUMPRODUCT(('Fixed assets'!$Q$2:$Q$1000=Costs!AA$705)*('Fixed assets'!$U$2:$U$1000>Costs!$A741)*('Fixed assets'!$P$2:$P$1000=Costs!$A741)*('Fixed assets'!$R$2:$R$1000))-SUMPRODUCT(('Fixed assets'!$Q$2:$Q$1000=Costs!AA$705)*('Fixed assets'!$U$2:$U$1000>Costs!$A741)*('Fixed assets'!$P$2:$P$1000=Costs!$A741)*('Fixed assets'!$S$2:$S$1000))","v":0},{"$f":"AB653+SUMPRODUCT(('Fixed assets'!$Q$2:$Q$1000=Costs!AB$705)*('Fixed assets'!$U$2:$U$1000>Costs!$A741)*('Fixed assets'!$P$2:$P$1000=Costs!$A741)*('Fixed assets'!$R$2:$R$1000))-SUMPRODUCT(('Fixed assets'!$Q$2:$Q$1000=Costs!AB$705)*('Fixed assets'!$U$2:$U$1000>Costs!$A741)*('Fixed assets'!$P$2:$P$1000=Costs!$A741)*('Fixed assets'!$S$2:$S$1000))","v":0},{"$f":"AC653+SUMPRODUCT(('Fixed assets'!$Q$2:$Q$1000=Costs!AC$705)*('Fixed assets'!$U$2:$U$1000>Costs!$A741)*('Fixed assets'!$P$2:$P$1000=Costs!$A741)*('Fixed assets'!$R$2:$R$1000))-SUMPRODUCT(('Fixed assets'!$Q$2:$Q$1000=Costs!AC$705)*('Fixed assets'!$U$2:$U$1000>Costs!$A741)*('Fixed assets'!$P$2:$P$1000=Costs!$A741)*('Fixed assets'!$S$2:$S$1000))","v":0},{"$f":"AD653+SUMPRODUCT(('Fixed assets'!$Q$2:$Q$1000=Costs!AD$705)*('Fixed assets'!$U$2:$U$1000>Costs!$A741)*('Fixed assets'!$P$2:$P$1000=Costs!$A741)*('Fixed assets'!$R$2:$R$1000))-SUMPRODUCT(('Fixed assets'!$Q$2:$Q$1000=Costs!AD$705)*('Fixed assets'!$U$2:$U$1000>Costs!$A741)*('Fixed assets'!$P$2:$P$1000=Costs!$A741)*('Fixed assets'!$S$2:$S$1000))","v":0},{"$f":"AE653+SUMPRODUCT(('Fixed assets'!$Q$2:$Q$1000=Costs!AE$705)*('Fixed assets'!$U$2:$U$1000>Costs!$A741)*('Fixed assets'!$P$2:$P$1000=Costs!$A741)*('Fixed assets'!$R$2:$R$1000))-SUMPRODUCT(('Fixed assets'!$Q$2:$Q$1000=Costs!AE$705)*('Fixed assets'!$U$2:$U$1000>Costs!$A741)*('Fixed assets'!$P$2:$P$1000=Costs!$A741)*('Fixed assets'!$S$2:$S$1000))","v":0},{"$f":"AF653+SUMPRODUCT(('Fixed assets'!$Q$2:$Q$1000=Costs!AF$705)*('Fixed assets'!$U$2:$U$1000>Costs!$A741)*('Fixed assets'!$P$2:$P$1000=Costs!$A741)*('Fixed assets'!$R$2:$R$1000))-SUMPRODUCT(('Fixed assets'!$Q$2:$Q$1000=Costs!AF$705)*('Fixed assets'!$U$2:$U$1000>Costs!$A741)*('Fixed assets'!$P$2:$P$1000=Costs!$A741)*('Fixed assets'!$S$2:$S$1000))","v":0},{"$f":"AG653+SUMPRODUCT(('Fixed assets'!$Q$2:$Q$1000=Costs!AG$705)*('Fixed assets'!$U$2:$U$1000>Costs!$A741)*('Fixed assets'!$P$2:$P$1000=Costs!$A741)*('Fixed assets'!$R$2:$R$1000))-SUMPRODUCT(('Fixed assets'!$Q$2:$Q$1000=Costs!AG$705)*('Fixed assets'!$U$2:$U$1000>Costs!$A741)*('Fixed assets'!$P$2:$P$1000=Costs!$A741)*('Fixed assets'!$S$2:$S$1000))","v":0},{"$f":"AH653+SUMPRODUCT(('Fixed assets'!$Q$2:$Q$1000=Costs!AH$705)*('Fixed assets'!$U$2:$U$1000>Costs!$A741)*('Fixed assets'!$P$2:$P$1000=Costs!$A741)*('Fixed assets'!$R$2:$R$1000))-SUMPRODUCT(('Fixed assets'!$Q$2:$Q$1000=Costs!AH$705)*('Fixed assets'!$U$2:$U$1000>Costs!$A741)*('Fixed assets'!$P$2:$P$1000=Costs!$A741)*('Fixed assets'!$S$2:$S$1000))","v":0},{"$f":"AI653+SUMPRODUCT(('Fixed assets'!$Q$2:$Q$1000=Costs!AI$705)*('Fixed assets'!$U$2:$U$1000>Costs!$A741)*('Fixed assets'!$P$2:$P$1000=Costs!$A741)*('Fixed assets'!$R$2:$R$1000))-SUMPRODUCT(('Fixed assets'!$Q$2:$Q$1000=Costs!AI$705)*('Fixed assets'!$U$2:$U$1000>Costs!$A741)*('Fixed assets'!$P$2:$P$1000=Costs!$A741)*('Fixed assets'!$S$2:$S$1000))","v":0},{"$f":"AJ653+SUMPRODUCT(('Fixed assets'!$Q$2:$Q$1000=Costs!AJ$705)*('Fixed assets'!$U$2:$U$1000>Costs!$A741)*('Fixed assets'!$P$2:$P$1000=Costs!$A741)*('Fixed assets'!$R$2:$R$1000))-SUMPRODUCT(('Fixed assets'!$Q$2:$Q$1000=Costs!AJ$705)*('Fixed assets'!$U$2:$U$1000>Costs!$A741)*('Fixed assets'!$P$2:$P$1000=Costs!$A741)*('Fixed assets'!$S$2:$S$1000))","v":0},{"$f":"AK653+SUMPRODUCT(('Fixed assets'!$Q$2:$Q$1000=Costs!AK$705)*('Fixed assets'!$U$2:$U$1000>Costs!$A741)*('Fixed assets'!$P$2:$P$1000=Costs!$A741)*('Fixed assets'!$R$2:$R$1000))-SUMPRODUCT(('Fixed assets'!$Q$2:$Q$1000=Costs!AK$705)*('Fixed assets'!$U$2:$U$1000>Costs!$A741)*('Fixed assets'!$P$2:$P$1000=Costs!$A741)*('Fixed assets'!$S$2:$S$1000))","v":0},{"$f":"AL653+SUMPRODUCT(('Fixed assets'!$Q$2:$Q$1000=Costs!AL$705)*('Fixed assets'!$U$2:$U$1000>Costs!$A741)*('Fixed assets'!$P$2:$P$1000=Costs!$A741)*('Fixed assets'!$R$2:$R$1000))-SUMPRODUCT(('Fixed assets'!$Q$2:$Q$1000=Costs!AL$705)*('Fixed assets'!$U$2:$U$1000>Costs!$A741)*('Fixed assets'!$P$2:$P$1000=Costs!$A741)*('Fixed assets'!$S$2:$S$1000))","v":0},{"$f":"AM653+SUMPRODUCT(('Fixed assets'!$Q$2:$Q$1000=Costs!AM$705)*('Fixed assets'!$U$2:$U$1000>Costs!$A741)*('Fixed assets'!$P$2:$P$1000=Costs!$A741)*('Fixed assets'!$R$2:$R$1000))-SUMPRODUCT(('Fixed assets'!$Q$2:$Q$1000=Costs!AM$705)*('Fixed assets'!$U$2:$U$1000>Costs!$A741)*('Fixed assets'!$P$2:$P$1000=Costs!$A741)*('Fixed assets'!$S$2:$S$1000))","v":0},{"$f":"AN653+SUMPRODUCT(('Fixed assets'!$Q$2:$Q$1000=Costs!AN$705)*('Fixed assets'!$U$2:$U$1000>Costs!$A741)*('Fixed assets'!$P$2:$P$1000=Costs!$A741)*('Fixed assets'!$R$2:$R$1000))-SUMPRODUCT(('Fixed assets'!$Q$2:$Q$1000=Costs!AN$705)*('Fixed assets'!$U$2:$U$1000>Costs!$A741)*('Fixed assets'!$P$2:$P$1000=Costs!$A741)*('Fixed assets'!$S$2:$S$1000))","v":0},{"$f":"AO653+SUMPRODUCT(('Fixed assets'!$Q$2:$Q$1000=Costs!AO$705)*('Fixed assets'!$U$2:$U$1000>Costs!$A741)*('Fixed assets'!$P$2:$P$1000=Costs!$A741)*('Fixed assets'!$R$2:$R$1000))-SUMPRODUCT(('Fixed assets'!$Q$2:$Q$1000=Costs!AO$705)*('Fixed assets'!$U$2:$U$1000>Costs!$A741)*('Fixed assets'!$P$2:$P$1000=Costs!$A741)*('Fixed assets'!$S$2:$S$1000))","v":0},{"$f":"AP653+SUMPRODUCT(('Fixed assets'!$Q$2:$Q$1000=Costs!AP$705)*('Fixed assets'!$U$2:$U$1000>Costs!$A741)*('Fixed assets'!$P$2:$P$1000=Costs!$A741)*('Fixed assets'!$R$2:$R$1000))-SUMPRODUCT(('Fixed assets'!$Q$2:$Q$1000=Costs!AP$705)*('Fixed assets'!$U$2:$U$1000>Costs!$A741)*('Fixed assets'!$P$2:$P$1000=Costs!$A741)*('Fixed assets'!$S$2:$S$1000))","v":0},{"$f":"AQ653+SUMPRODUCT(('Fixed assets'!$Q$2:$Q$1000=Costs!AQ$705)*('Fixed assets'!$U$2:$U$1000>Costs!$A741)*('Fixed assets'!$P$2:$P$1000=Costs!$A741)*('Fixed assets'!$R$2:$R$1000))-SUMPRODUCT(('Fixed assets'!$Q$2:$Q$1000=Costs!AQ$705)*('Fixed assets'!$U$2:$U$1000>Costs!$A741)*('Fixed assets'!$P$2:$P$1000=Costs!$A741)*('Fixed assets'!$S$2:$S$1000))","v":0}]
[2051,0,{"$f":"C654+SUMPRODUCT(('Fixed assets'!$Q$2:$Q$1000=Costs!C$705)*('Fixed assets'!$U$2:$U$1000>Costs!$A742)*('Fixed assets'!$P$2:$P$1000=Costs!$A742)*('Fixed assets'!$R$2:$R$1000))-SUMPRODUCT(('Fixed assets'!$Q$2:$Q$1000=Costs!C$705)*('Fixed assets'!$U$2:$U$1000>Costs!$A742)*('Fixed assets'!$P$2:$P$1000=Costs!$A742)*('Fixed assets'!$S$2:$S$1000))","v":0},{"$f":"D654+SUMPRODUCT(('Fixed assets'!$Q$2:$Q$1000=Costs!D$705)*('Fixed assets'!$U$2:$U$1000>Costs!$A742)*('Fixed assets'!$P$2:$P$1000=Costs!$A742)*('Fixed assets'!$R$2:$R$1000))-SUMPRODUCT(('Fixed assets'!$Q$2:$Q$1000=Costs!D$705)*('Fixed assets'!$U$2:$U$1000>Costs!$A742)*('Fixed assets'!$P$2:$P$1000=Costs!$A742)*('Fixed assets'!$S$2:$S$1000))","v":0},{"$f":"E654+SUMPRODUCT(('Fixed assets'!$Q$2:$Q$1000=Costs!E$705)*('Fixed assets'!$U$2:$U$1000>Costs!$A742)*('Fixed assets'!$P$2:$P$1000=Costs!$A742)*('Fixed assets'!$R$2:$R$1000))-SUMPRODUCT(('Fixed assets'!$Q$2:$Q$1000=Costs!E$705)*('Fixed assets'!$U$2:$U$1000>Costs!$A742)*('Fixed assets'!$P$2:$P$1000=Costs!$A742)*('Fixed assets'!$S$2:$S$1000))","v":0},{"$f":"F654+SUMPRODUCT(('Fixed assets'!$Q$2:$Q$1000=Costs!F$705)*('Fixed assets'!$U$2:$U$1000>Costs!$A742)*('Fixed assets'!$P$2:$P$1000=Costs!$A742)*('Fixed assets'!$R$2:$R$1000))-SUMPRODUCT(('Fixed assets'!$Q$2:$Q$1000=Costs!F$705)*('Fixed assets'!$U$2:$U$1000>Costs!$A742)*('Fixed assets'!$P$2:$P$1000=Costs!$A742)*('Fixed assets'!$S$2:$S$1000))","v":0},{"$f":"G654+SUMPRODUCT(('Fixed assets'!$Q$2:$Q$1000=Costs!G$705)*('Fixed assets'!$U$2:$U$1000>Costs!$A742)*('Fixed assets'!$P$2:$P$1000=Costs!$A742)*('Fixed assets'!$R$2:$R$1000))-SUMPRODUCT(('Fixed assets'!$Q$2:$Q$1000=Costs!G$705)*('Fixed assets'!$U$2:$U$1000>Costs!$A742)*('Fixed assets'!$P$2:$P$1000=Costs!$A742)*('Fixed assets'!$S$2:$S$1000))","v":0},{"$f":"H654+SUMPRODUCT(('Fixed assets'!$Q$2:$Q$1000=Costs!H$705)*('Fixed assets'!$U$2:$U$1000>Costs!$A742)*('Fixed assets'!$P$2:$P$1000=Costs!$A742)*('Fixed assets'!$R$2:$R$1000))-SUMPRODUCT(('Fixed assets'!$Q$2:$Q$1000=Costs!H$705)*('Fixed assets'!$U$2:$U$1000>Costs!$A742)*('Fixed assets'!$P$2:$P$1000=Costs!$A742)*('Fixed assets'!$S$2:$S$1000))","v":0},{"$f":"I654+SUMPRODUCT(('Fixed assets'!$Q$2:$Q$1000=Costs!I$705)*('Fixed assets'!$U$2:$U$1000>Costs!$A742)*('Fixed assets'!$P$2:$P$1000=Costs!$A742)*('Fixed assets'!$R$2:$R$1000))-SUMPRODUCT(('Fixed assets'!$Q$2:$Q$1000=Costs!I$705)*('Fixed assets'!$U$2:$U$1000>Costs!$A742)*('Fixed assets'!$P$2:$P$1000=Costs!$A742)*('Fixed assets'!$S$2:$S$1000))","v":0},{"$f":"J654+SUMPRODUCT(('Fixed assets'!$Q$2:$Q$1000=Costs!J$705)*('Fixed assets'!$U$2:$U$1000>Costs!$A742)*('Fixed assets'!$P$2:$P$1000=Costs!$A742)*('Fixed assets'!$R$2:$R$1000))-SUMPRODUCT(('Fixed assets'!$Q$2:$Q$1000=Costs!J$705)*('Fixed assets'!$U$2:$U$1000>Costs!$A742)*('Fixed assets'!$P$2:$P$1000=Costs!$A742)*('Fixed assets'!$S$2:$S$1000))","v":0},{"$f":"K654+SUMPRODUCT(('Fixed assets'!$Q$2:$Q$1000=Costs!K$705)*('Fixed assets'!$U$2:$U$1000>Costs!$A742)*('Fixed assets'!$P$2:$P$1000=Costs!$A742)*('Fixed assets'!$R$2:$R$1000))-SUMPRODUCT(('Fixed assets'!$Q$2:$Q$1000=Costs!K$705)*('Fixed assets'!$U$2:$U$1000>Costs!$A742)*('Fixed assets'!$P$2:$P$1000=Costs!$A742)*('Fixed assets'!$S$2:$S$1000))","v":0},{"$f":"L654+SUMPRODUCT(('Fixed assets'!$Q$2:$Q$1000=Costs!L$705)*('Fixed assets'!$U$2:$U$1000>Costs!$A742)*('Fixed assets'!$P$2:$P$1000=Costs!$A742)*('Fixed assets'!$R$2:$R$1000))-SUMPRODUCT(('Fixed assets'!$Q$2:$Q$1000=Costs!L$705)*('Fixed assets'!$U$2:$U$1000>Costs!$A742)*('Fixed assets'!$P$2:$P$1000=Costs!$A742)*('Fixed assets'!$S$2:$S$1000))","v":0},{"$f":"M654+SUMPRODUCT(('Fixed assets'!$Q$2:$Q$1000=Costs!M$705)*('Fixed assets'!$U$2:$U$1000>Costs!$A742)*('Fixed assets'!$P$2:$P$1000=Costs!$A742)*('Fixed assets'!$R$2:$R$1000))-SUMPRODUCT(('Fixed assets'!$Q$2:$Q$1000=Costs!M$705)*('Fixed assets'!$U$2:$U$1000>Costs!$A742)*('Fixed assets'!$P$2:$P$1000=Costs!$A742)*('Fixed assets'!$S$2:$S$1000))","v":0},{"$f":"N654+SUMPRODUCT(('Fixed assets'!$Q$2:$Q$1000=Costs!N$705)*('Fixed assets'!$U$2:$U$1000>Costs!$A742)*('Fixed assets'!$P$2:$P$1000=Costs!$A742)*('Fixed assets'!$R$2:$R$1000))-SUMPRODUCT(('Fixed assets'!$Q$2:$Q$1000=Costs!N$705)*('Fixed assets'!$U$2:$U$1000>Costs!$A742)*('Fixed assets'!$P$2:$P$1000=Costs!$A742)*('Fixed assets'!$S$2:$S$1000))","v":0},{"$f":"O654+SUMPRODUCT(('Fixed assets'!$Q$2:$Q$1000=Costs!O$705)*('Fixed assets'!$U$2:$U$1000>Costs!$A742)*('Fixed assets'!$P$2:$P$1000=Costs!$A742)*('Fixed assets'!$R$2:$R$1000))-SUMPRODUCT(('Fixed assets'!$Q$2:$Q$1000=Costs!O$705)*('Fixed assets'!$U$2:$U$1000>Costs!$A742)*('Fixed assets'!$P$2:$P$1000=Costs!$A742)*('Fixed assets'!$S$2:$S$1000))","v":0},{"$f":"P654+SUMPRODUCT(('Fixed assets'!$Q$2:$Q$1000=Costs!P$705)*('Fixed assets'!$U$2:$U$1000>Costs!$A742)*('Fixed assets'!$P$2:$P$1000=Costs!$A742)*('Fixed assets'!$R$2:$R$1000))-SUMPRODUCT(('Fixed assets'!$Q$2:$Q$1000=Costs!P$705)*('Fixed assets'!$U$2:$U$1000>Costs!$A742)*('Fixed assets'!$P$2:$P$1000=Costs!$A742)*('Fixed assets'!$S$2:$S$1000))","v":0},{"$f":"Q654+SUMPRODUCT(('Fixed assets'!$Q$2:$Q$1000=Costs!Q$705)*('Fixed assets'!$U$2:$U$1000>Costs!$A742)*('Fixed assets'!$P$2:$P$1000=Costs!$A742)*('Fixed assets'!$R$2:$R$1000))-SUMPRODUCT(('Fixed assets'!$Q$2:$Q$1000=Costs!Q$705)*('Fixed assets'!$U$2:$U$1000>Costs!$A742)*('Fixed assets'!$P$2:$P$1000=Costs!$A742)*('Fixed assets'!$S$2:$S$1000))","v":0},{"$f":"R654+SUMPRODUCT(('Fixed assets'!$Q$2:$Q$1000=Costs!R$705)*('Fixed assets'!$U$2:$U$1000>Costs!$A742)*('Fixed assets'!$P$2:$P$1000=Costs!$A742)*('Fixed assets'!$R$2:$R$1000))-SUMPRODUCT(('Fixed assets'!$Q$2:$Q$1000=Costs!R$705)*('Fixed assets'!$U$2:$U$1000>Costs!$A742)*('Fixed assets'!$P$2:$P$1000=Costs!$A742)*('Fixed assets'!$S$2:$S$1000))","v":0},{"$f":"S654+SUMPRODUCT(('Fixed assets'!$Q$2:$Q$1000=Costs!S$705)*('Fixed assets'!$U$2:$U$1000>Costs!$A742)*('Fixed assets'!$P$2:$P$1000=Costs!$A742)*('Fixed assets'!$R$2:$R$1000))-SUMPRODUCT(('Fixed assets'!$Q$2:$Q$1000=Costs!S$705)*('Fixed assets'!$U$2:$U$1000>Costs!$A742)*('Fixed assets'!$P$2:$P$1000=Costs!$A742)*('Fixed assets'!$S$2:$S$1000))","v":0},{"$f":"T654+SUMPRODUCT(('Fixed assets'!$Q$2:$Q$1000=Costs!T$705)*('Fixed assets'!$U$2:$U$1000>Costs!$A742)*('Fixed assets'!$P$2:$P$1000=Costs!$A742)*('Fixed assets'!$R$2:$R$1000))-SUMPRODUCT(('Fixed assets'!$Q$2:$Q$1000=Costs!T$705)*('Fixed assets'!$U$2:$U$1000>Costs!$A742)*('Fixed assets'!$P$2:$P$1000=Costs!$A742)*('Fixed assets'!$S$2:$S$1000))","v":0},{"$f":"U654+SUMPRODUCT(('Fixed assets'!$Q$2:$Q$1000=Costs!U$705)*('Fixed assets'!$U$2:$U$1000>Costs!$A742)*('Fixed assets'!$P$2:$P$1000=Costs!$A742)*('Fixed assets'!$R$2:$R$1000))-SUMPRODUCT(('Fixed assets'!$Q$2:$Q$1000=Costs!U$705)*('Fixed assets'!$U$2:$U$1000>Costs!$A742)*('Fixed assets'!$P$2:$P$1000=Costs!$A742)*('Fixed assets'!$S$2:$S$1000))","v":0},{"$f":"V654+SUMPRODUCT(('Fixed assets'!$Q$2:$Q$1000=Costs!V$705)*('Fixed assets'!$U$2:$U$1000>Costs!$A742)*('Fixed assets'!$P$2:$P$1000=Costs!$A742)*('Fixed assets'!$R$2:$R$1000))-SUMPRODUCT(('Fixed assets'!$Q$2:$Q$1000=Costs!V$705)*('Fixed assets'!$U$2:$U$1000>Costs!$A742)*('Fixed assets'!$P$2:$P$1000=Costs!$A742)*('Fixed assets'!$S$2:$S$1000))","v":0},{"$f":"W654+SUMPRODUCT(('Fixed assets'!$Q$2:$Q$1000=Costs!W$705)*('Fixed assets'!$U$2:$U$1000>Costs!$A742)*('Fixed assets'!$P$2:$P$1000=Costs!$A742)*('Fixed assets'!$R$2:$R$1000))-SUMPRODUCT(('Fixed assets'!$Q$2:$Q$1000=Costs!W$705)*('Fixed assets'!$U$2:$U$1000>Costs!$A742)*('Fixed assets'!$P$2:$P$1000=Costs!$A742)*('Fixed assets'!$S$2:$S$1000))","v":0},{"$f":"X654+SUMPRODUCT(('Fixed assets'!$Q$2:$Q$1000=Costs!X$705)*('Fixed assets'!$U$2:$U$1000>Costs!$A742)*('Fixed assets'!$P$2:$P$1000=Costs!$A742)*('Fixed assets'!$R$2:$R$1000))-SUMPRODUCT(('Fixed assets'!$Q$2:$Q$1000=Costs!X$705)*('Fixed assets'!$U$2:$U$1000>Costs!$A742)*('Fixed assets'!$P$2:$P$1000=Costs!$A742)*('Fixed assets'!$S$2:$S$1000))","v":0},{"$f":"Y654+SUMPRODUCT(('Fixed assets'!$Q$2:$Q$1000=Costs!Y$705)*('Fixed assets'!$U$2:$U$1000>Costs!$A742)*('Fixed assets'!$P$2:$P$1000=Costs!$A742)*('Fixed assets'!$R$2:$R$1000))-SUMPRODUCT(('Fixed assets'!$Q$2:$Q$1000=Costs!Y$705)*('Fixed assets'!$U$2:$U$1000>Costs!$A742)*('Fixed assets'!$P$2:$P$1000=Costs!$A742)*('Fixed assets'!$S$2:$S$1000))","v":0},{"$f":"Z654+SUMPRODUCT(('Fixed assets'!$Q$2:$Q$1000=Costs!Z$705)*('Fixed assets'!$U$2:$U$1000>Costs!$A742)*('Fixed assets'!$P$2:$P$1000=Costs!$A742)*('Fixed assets'!$R$2:$R$1000))-SUMPRODUCT(('Fixed assets'!$Q$2:$Q$1000=Costs!Z$705)*('Fixed assets'!$U$2:$U$1000>Costs!$A742)*('Fixed assets'!$P$2:$P$1000=Costs!$A742)*('Fixed assets'!$S$2:$S$1000))","v":0},{"$f":"AA654+SUMPRODUCT(('Fixed assets'!$Q$2:$Q$1000=Costs!AA$705)*('Fixed assets'!$U$2:$U$1000>Costs!$A742)*('Fixed assets'!$P$2:$P$1000=Costs!$A742)*('Fixed assets'!$R$2:$R$1000))-SUMPRODUCT(('Fixed assets'!$Q$2:$Q$1000=Costs!AA$705)*('Fixed assets'!$U$2:$U$1000>Costs!$A742)*('Fixed assets'!$P$2:$P$1000=Costs!$A742)*('Fixed assets'!$S$2:$S$1000))","v":0},{"$f":"AB654+SUMPRODUCT(('Fixed assets'!$Q$2:$Q$1000=Costs!AB$705)*('Fixed assets'!$U$2:$U$1000>Costs!$A742)*('Fixed assets'!$P$2:$P$1000=Costs!$A742)*('Fixed assets'!$R$2:$R$1000))-SUMPRODUCT(('Fixed assets'!$Q$2:$Q$1000=Costs!AB$705)*('Fixed assets'!$U$2:$U$1000>Costs!$A742)*('Fixed assets'!$P$2:$P$1000=Costs!$A742)*('Fixed assets'!$S$2:$S$1000))","v":0},{"$f":"AC654+SUMPRODUCT(('Fixed assets'!$Q$2:$Q$1000=Costs!AC$705)*('Fixed assets'!$U$2:$U$1000>Costs!$A742)*('Fixed assets'!$P$2:$P$1000=Costs!$A742)*('Fixed assets'!$R$2:$R$1000))-SUMPRODUCT(('Fixed assets'!$Q$2:$Q$1000=Costs!AC$705)*('Fixed assets'!$U$2:$U$1000>Costs!$A742)*('Fixed assets'!$P$2:$P$1000=Costs!$A742)*('Fixed assets'!$S$2:$S$1000))","v":0},{"$f":"AD654+SUMPRODUCT(('Fixed assets'!$Q$2:$Q$1000=Costs!AD$705)*('Fixed assets'!$U$2:$U$1000>Costs!$A742)*('Fixed assets'!$P$2:$P$1000=Costs!$A742)*('Fixed assets'!$R$2:$R$1000))-SUMPRODUCT(('Fixed assets'!$Q$2:$Q$1000=Costs!AD$705)*('Fixed assets'!$U$2:$U$1000>Costs!$A742)*('Fixed assets'!$P$2:$P$1000=Costs!$A742)*('Fixed assets'!$S$2:$S$1000))","v":0},{"$f":"AE654+SUMPRODUCT(('Fixed assets'!$Q$2:$Q$1000=Costs!AE$705)*('Fixed assets'!$U$2:$U$1000>Costs!$A742)*('Fixed assets'!$P$2:$P$1000=Costs!$A742)*('Fixed assets'!$R$2:$R$1000))-SUMPRODUCT(('Fixed assets'!$Q$2:$Q$1000=Costs!AE$705)*('Fixed assets'!$U$2:$U$1000>Costs!$A742)*('Fixed assets'!$P$2:$P$1000=Costs!$A742)*('Fixed assets'!$S$2:$S$1000))","v":0},{"$f":"AF654+SUMPRODUCT(('Fixed assets'!$Q$2:$Q$1000=Costs!AF$705)*('Fixed assets'!$U$2:$U$1000>Costs!$A742)*('Fixed assets'!$P$2:$P$1000=Costs!$A742)*('Fixed assets'!$R$2:$R$1000))-SUMPRODUCT(('Fixed assets'!$Q$2:$Q$1000=Costs!AF$705)*('Fixed assets'!$U$2:$U$1000>Costs!$A742)*('Fixed assets'!$P$2:$P$1000=Costs!$A742)*('Fixed assets'!$S$2:$S$1000))","v":0},{"$f":"AG654+SUMPRODUCT(('Fixed assets'!$Q$2:$Q$1000=Costs!AG$705)*('Fixed assets'!$U$2:$U$1000>Costs!$A742)*('Fixed assets'!$P$2:$P$1000=Costs!$A742)*('Fixed assets'!$R$2:$R$1000))-SUMPRODUCT(('Fixed assets'!$Q$2:$Q$1000=Costs!AG$705)*('Fixed assets'!$U$2:$U$1000>Costs!$A742)*('Fixed assets'!$P$2:$P$1000=Costs!$A742)*('Fixed assets'!$S$2:$S$1000))","v":0},{"$f":"AH654+SUMPRODUCT(('Fixed assets'!$Q$2:$Q$1000=Costs!AH$705)*('Fixed assets'!$U$2:$U$1000>Costs!$A742)*('Fixed assets'!$P$2:$P$1000=Costs!$A742)*('Fixed assets'!$R$2:$R$1000))-SUMPRODUCT(('Fixed assets'!$Q$2:$Q$1000=Costs!AH$705)*('Fixed assets'!$U$2:$U$1000>Costs!$A742)*('Fixed assets'!$P$2:$P$1000=Costs!$A742)*('Fixed assets'!$S$2:$S$1000))","v":0},{"$f":"AI654+SUMPRODUCT(('Fixed assets'!$Q$2:$Q$1000=Costs!AI$705)*('Fixed assets'!$U$2:$U$1000>Costs!$A742)*('Fixed assets'!$P$2:$P$1000=Costs!$A742)*('Fixed assets'!$R$2:$R$1000))-SUMPRODUCT(('Fixed assets'!$Q$2:$Q$1000=Costs!AI$705)*('Fixed assets'!$U$2:$U$1000>Costs!$A742)*('Fixed assets'!$P$2:$P$1000=Costs!$A742)*('Fixed assets'!$S$2:$S$1000))","v":0},{"$f":"AJ654+SUMPRODUCT(('Fixed assets'!$Q$2:$Q$1000=Costs!AJ$705)*('Fixed assets'!$U$2:$U$1000>Costs!$A742)*('Fixed assets'!$P$2:$P$1000=Costs!$A742)*('Fixed assets'!$R$2:$R$1000))-SUMPRODUCT(('Fixed assets'!$Q$2:$Q$1000=Costs!AJ$705)*('Fixed assets'!$U$2:$U$1000>Costs!$A742)*('Fixed assets'!$P$2:$P$1000=Costs!$A742)*('Fixed assets'!$S$2:$S$1000))","v":0},{"$f":"AK654+SUMPRODUCT(('Fixed assets'!$Q$2:$Q$1000=Costs!AK$705)*('Fixed assets'!$U$2:$U$1000>Costs!$A742)*('Fixed assets'!$P$2:$P$1000=Costs!$A742)*('Fixed assets'!$R$2:$R$1000))-SUMPRODUCT(('Fixed assets'!$Q$2:$Q$1000=Costs!AK$705)*('Fixed assets'!$U$2:$U$1000>Costs!$A742)*('Fixed assets'!$P$2:$P$1000=Costs!$A742)*('Fixed assets'!$S$2:$S$1000))","v":0},{"$f":"AL654+SUMPRODUCT(('Fixed assets'!$Q$2:$Q$1000=Costs!AL$705)*('Fixed assets'!$U$2:$U$1000>Costs!$A742)*('Fixed assets'!$P$2:$P$1000=Costs!$A742)*('Fixed assets'!$R$2:$R$1000))-SUMPRODUCT(('Fixed assets'!$Q$2:$Q$1000=Costs!AL$705)*('Fixed assets'!$U$2:$U$1000>Costs!$A742)*('Fixed assets'!$P$2:$P$1000=Costs!$A742)*('Fixed assets'!$S$2:$S$1000))","v":0},{"$f":"AM654+SUMPRODUCT(('Fixed assets'!$Q$2:$Q$1000=Costs!AM$705)*('Fixed assets'!$U$2:$U$1000>Costs!$A742)*('Fixed assets'!$P$2:$P$1000=Costs!$A742)*('Fixed assets'!$R$2:$R$1000))-SUMPRODUCT(('Fixed assets'!$Q$2:$Q$1000=Costs!AM$705)*('Fixed assets'!$U$2:$U$1000>Costs!$A742)*('Fixed assets'!$P$2:$P$1000=Costs!$A742)*('Fixed assets'!$S$2:$S$1000))","v":0},{"$f":"AN654+SUMPRODUCT(('Fixed assets'!$Q$2:$Q$1000=Costs!AN$705)*('Fixed assets'!$U$2:$U$1000>Costs!$A742)*('Fixed assets'!$P$2:$P$1000=Costs!$A742)*('Fixed assets'!$R$2:$R$1000))-SUMPRODUCT(('Fixed assets'!$Q$2:$Q$1000=Costs!AN$705)*('Fixed assets'!$U$2:$U$1000>Costs!$A742)*('Fixed assets'!$P$2:$P$1000=Costs!$A742)*('Fixed assets'!$S$2:$S$1000))","v":0},{"$f":"AO654+SUMPRODUCT(('Fixed assets'!$Q$2:$Q$1000=Costs!AO$705)*('Fixed assets'!$U$2:$U$1000>Costs!$A742)*('Fixed assets'!$P$2:$P$1000=Costs!$A742)*('Fixed assets'!$R$2:$R$1000))-SUMPRODUCT(('Fixed assets'!$Q$2:$Q$1000=Costs!AO$705)*('Fixed assets'!$U$2:$U$1000>Costs!$A742)*('Fixed assets'!$P$2:$P$1000=Costs!$A742)*('Fixed assets'!$S$2:$S$1000))","v":0},{"$f":"AP654+SUMPRODUCT(('Fixed assets'!$Q$2:$Q$1000=Costs!AP$705)*('Fixed assets'!$U$2:$U$1000>Costs!$A742)*('Fixed assets'!$P$2:$P$1000=Costs!$A742)*('Fixed assets'!$R$2:$R$1000))-SUMPRODUCT(('Fixed assets'!$Q$2:$Q$1000=Costs!AP$705)*('Fixed assets'!$U$2:$U$1000>Costs!$A742)*('Fixed assets'!$P$2:$P$1000=Costs!$A742)*('Fixed assets'!$S$2:$S$1000))","v":0},{"$f":"AQ654+SUMPRODUCT(('Fixed assets'!$Q$2:$Q$1000=Costs!AQ$705)*('Fixed assets'!$U$2:$U$1000>Costs!$A742)*('Fixed assets'!$P$2:$P$1000=Costs!$A742)*('Fixed assets'!$R$2:$R$1000))-SUMPRODUCT(('Fixed assets'!$Q$2:$Q$1000=Costs!AQ$705)*('Fixed assets'!$U$2:$U$1000>Costs!$A742)*('Fixed assets'!$P$2:$P$1000=Costs!$A742)*('Fixed assets'!$S$2:$S$1000))","v":0}]
[2052,0,{"$f":"C655+SUMPRODUCT(('Fixed assets'!$Q$2:$Q$1000=Costs!C$705)*('Fixed assets'!$U$2:$U$1000>Costs!$A743)*('Fixed assets'!$P$2:$P$1000=Costs!$A743)*('Fixed assets'!$R$2:$R$1000))-SUMPRODUCT(('Fixed assets'!$Q$2:$Q$1000=Costs!C$705)*('Fixed assets'!$U$2:$U$1000>Costs!$A743)*('Fixed assets'!$P$2:$P$1000=Costs!$A743)*('Fixed assets'!$S$2:$S$1000))","v":0},{"$f":"D655+SUMPRODUCT(('Fixed assets'!$Q$2:$Q$1000=Costs!D$705)*('Fixed assets'!$U$2:$U$1000>Costs!$A743)*('Fixed assets'!$P$2:$P$1000=Costs!$A743)*('Fixed assets'!$R$2:$R$1000))-SUMPRODUCT(('Fixed assets'!$Q$2:$Q$1000=Costs!D$705)*('Fixed assets'!$U$2:$U$1000>Costs!$A743)*('Fixed assets'!$P$2:$P$1000=Costs!$A743)*('Fixed assets'!$S$2:$S$1000))","v":0},{"$f":"E655+SUMPRODUCT(('Fixed assets'!$Q$2:$Q$1000=Costs!E$705)*('Fixed assets'!$U$2:$U$1000>Costs!$A743)*('Fixed assets'!$P$2:$P$1000=Costs!$A743)*('Fixed assets'!$R$2:$R$1000))-SUMPRODUCT(('Fixed assets'!$Q$2:$Q$1000=Costs!E$705)*('Fixed assets'!$U$2:$U$1000>Costs!$A743)*('Fixed assets'!$P$2:$P$1000=Costs!$A743)*('Fixed assets'!$S$2:$S$1000))","v":0},{"$f":"F655+SUMPRODUCT(('Fixed assets'!$Q$2:$Q$1000=Costs!F$705)*('Fixed assets'!$U$2:$U$1000>Costs!$A743)*('Fixed assets'!$P$2:$P$1000=Costs!$A743)*('Fixed assets'!$R$2:$R$1000))-SUMPRODUCT(('Fixed assets'!$Q$2:$Q$1000=Costs!F$705)*('Fixed assets'!$U$2:$U$1000>Costs!$A743)*('Fixed assets'!$P$2:$P$1000=Costs!$A743)*('Fixed assets'!$S$2:$S$1000))","v":0},{"$f":"G655+SUMPRODUCT(('Fixed assets'!$Q$2:$Q$1000=Costs!G$705)*('Fixed assets'!$U$2:$U$1000>Costs!$A743)*('Fixed assets'!$P$2:$P$1000=Costs!$A743)*('Fixed assets'!$R$2:$R$1000))-SUMPRODUCT(('Fixed assets'!$Q$2:$Q$1000=Costs!G$705)*('Fixed assets'!$U$2:$U$1000>Costs!$A743)*('Fixed assets'!$P$2:$P$1000=Costs!$A743)*('Fixed assets'!$S$2:$S$1000))","v":0},{"$f":"H655+SUMPRODUCT(('Fixed assets'!$Q$2:$Q$1000=Costs!H$705)*('Fixed assets'!$U$2:$U$1000>Costs!$A743)*('Fixed assets'!$P$2:$P$1000=Costs!$A743)*('Fixed assets'!$R$2:$R$1000))-SUMPRODUCT(('Fixed assets'!$Q$2:$Q$1000=Costs!H$705)*('Fixed assets'!$U$2:$U$1000>Costs!$A743)*('Fixed assets'!$P$2:$P$1000=Costs!$A743)*('Fixed assets'!$S$2:$S$1000))","v":0},{"$f":"I655+SUMPRODUCT(('Fixed assets'!$Q$2:$Q$1000=Costs!I$705)*('Fixed assets'!$U$2:$U$1000>Costs!$A743)*('Fixed assets'!$P$2:$P$1000=Costs!$A743)*('Fixed assets'!$R$2:$R$1000))-SUMPRODUCT(('Fixed assets'!$Q$2:$Q$1000=Costs!I$705)*('Fixed assets'!$U$2:$U$1000>Costs!$A743)*('Fixed assets'!$P$2:$P$1000=Costs!$A743)*('Fixed assets'!$S$2:$S$1000))","v":0},{"$f":"J655+SUMPRODUCT(('Fixed assets'!$Q$2:$Q$1000=Costs!J$705)*('Fixed assets'!$U$2:$U$1000>Costs!$A743)*('Fixed assets'!$P$2:$P$1000=Costs!$A743)*('Fixed assets'!$R$2:$R$1000))-SUMPRODUCT(('Fixed assets'!$Q$2:$Q$1000=Costs!J$705)*('Fixed assets'!$U$2:$U$1000>Costs!$A743)*('Fixed assets'!$P$2:$P$1000=Costs!$A743)*('Fixed assets'!$S$2:$S$1000))","v":0},{"$f":"K655+SUMPRODUCT(('Fixed assets'!$Q$2:$Q$1000=Costs!K$705)*('Fixed assets'!$U$2:$U$1000>Costs!$A743)*('Fixed assets'!$P$2:$P$1000=Costs!$A743)*('Fixed assets'!$R$2:$R$1000))-SUMPRODUCT(('Fixed assets'!$Q$2:$Q$1000=Costs!K$705)*('Fixed assets'!$U$2:$U$1000>Costs!$A743)*('Fixed assets'!$P$2:$P$1000=Costs!$A743)*('Fixed assets'!$S$2:$S$1000))","v":0},{"$f":"L655+SUMPRODUCT(('Fixed assets'!$Q$2:$Q$1000=Costs!L$705)*('Fixed assets'!$U$2:$U$1000>Costs!$A743)*('Fixed assets'!$P$2:$P$1000=Costs!$A743)*('Fixed assets'!$R$2:$R$1000))-SUMPRODUCT(('Fixed assets'!$Q$2:$Q$1000=Costs!L$705)*('Fixed assets'!$U$2:$U$1000>Costs!$A743)*('Fixed assets'!$P$2:$P$1000=Costs!$A743)*('Fixed assets'!$S$2:$S$1000))","v":0},{"$f":"M655+SUMPRODUCT(('Fixed assets'!$Q$2:$Q$1000=Costs!M$705)*('Fixed assets'!$U$2:$U$1000>Costs!$A743)*('Fixed assets'!$P$2:$P$1000=Costs!$A743)*('Fixed assets'!$R$2:$R$1000))-SUMPRODUCT(('Fixed assets'!$Q$2:$Q$1000=Costs!M$705)*('Fixed assets'!$U$2:$U$1000>Costs!$A743)*('Fixed assets'!$P$2:$P$1000=Costs!$A743)*('Fixed assets'!$S$2:$S$1000))","v":0},{"$f":"N655+SUMPRODUCT(('Fixed assets'!$Q$2:$Q$1000=Costs!N$705)*('Fixed assets'!$U$2:$U$1000>Costs!$A743)*('Fixed assets'!$P$2:$P$1000=Costs!$A743)*('Fixed assets'!$R$2:$R$1000))-SUMPRODUCT(('Fixed assets'!$Q$2:$Q$1000=Costs!N$705)*('Fixed assets'!$U$2:$U$1000>Costs!$A743)*('Fixed assets'!$P$2:$P$1000=Costs!$A743)*('Fixed assets'!$S$2:$S$1000))","v":0},{"$f":"O655+SUMPRODUCT(('Fixed assets'!$Q$2:$Q$1000=Costs!O$705)*('Fixed assets'!$U$2:$U$1000>Costs!$A743)*('Fixed assets'!$P$2:$P$1000=Costs!$A743)*('Fixed assets'!$R$2:$R$1000))-SUMPRODUCT(('Fixed assets'!$Q$2:$Q$1000=Costs!O$705)*('Fixed assets'!$U$2:$U$1000>Costs!$A743)*('Fixed assets'!$P$2:$P$1000=Costs!$A743)*('Fixed assets'!$S$2:$S$1000))","v":0},{"$f":"P655+SUMPRODUCT(('Fixed assets'!$Q$2:$Q$1000=Costs!P$705)*('Fixed assets'!$U$2:$U$1000>Costs!$A743)*('Fixed assets'!$P$2:$P$1000=Costs!$A743)*('Fixed assets'!$R$2:$R$1000))-SUMPRODUCT(('Fixed assets'!$Q$2:$Q$1000=Costs!P$705)*('Fixed assets'!$U$2:$U$1000>Costs!$A743)*('Fixed assets'!$P$2:$P$1000=Costs!$A743)*('Fixed assets'!$S$2:$S$1000))","v":0},{"$f":"Q655+SUMPRODUCT(('Fixed assets'!$Q$2:$Q$1000=Costs!Q$705)*('Fixed assets'!$U$2:$U$1000>Costs!$A743)*('Fixed assets'!$P$2:$P$1000=Costs!$A743)*('Fixed assets'!$R$2:$R$1000))-SUMPRODUCT(('Fixed assets'!$Q$2:$Q$1000=Costs!Q$705)*('Fixed assets'!$U$2:$U$1000>Costs!$A743)*('Fixed assets'!$P$2:$P$1000=Costs!$A743)*('Fixed assets'!$S$2:$S$1000))","v":0},{"$f":"R655+SUMPRODUCT(('Fixed assets'!$Q$2:$Q$1000=Costs!R$705)*('Fixed assets'!$U$2:$U$1000>Costs!$A743)*('Fixed assets'!$P$2:$P$1000=Costs!$A743)*('Fixed assets'!$R$2:$R$1000))-SUMPRODUCT(('Fixed assets'!$Q$2:$Q$1000=Costs!R$705)*('Fixed assets'!$U$2:$U$1000>Costs!$A743)*('Fixed assets'!$P$2:$P$1000=Costs!$A743)*('Fixed assets'!$S$2:$S$1000))","v":0},{"$f":"S655+SUMPRODUCT(('Fixed assets'!$Q$2:$Q$1000=Costs!S$705)*('Fixed assets'!$U$2:$U$1000>Costs!$A743)*('Fixed assets'!$P$2:$P$1000=Costs!$A743)*('Fixed assets'!$R$2:$R$1000))-SUMPRODUCT(('Fixed assets'!$Q$2:$Q$1000=Costs!S$705)*('Fixed assets'!$U$2:$U$1000>Costs!$A743)*('Fixed assets'!$P$2:$P$1000=Costs!$A743)*('Fixed assets'!$S$2:$S$1000))","v":0},{"$f":"T655+SUMPRODUCT(('Fixed assets'!$Q$2:$Q$1000=Costs!T$705)*('Fixed assets'!$U$2:$U$1000>Costs!$A743)*('Fixed assets'!$P$2:$P$1000=Costs!$A743)*('Fixed assets'!$R$2:$R$1000))-SUMPRODUCT(('Fixed assets'!$Q$2:$Q$1000=Costs!T$705)*('Fixed assets'!$U$2:$U$1000>Costs!$A743)*('Fixed assets'!$P$2:$P$1000=Costs!$A743)*('Fixed assets'!$S$2:$S$1000))","v":0},{"$f":"U655+SUMPRODUCT(('Fixed assets'!$Q$2:$Q$1000=Costs!U$705)*('Fixed assets'!$U$2:$U$1000>Costs!$A743)*('Fixed assets'!$P$2:$P$1000=Costs!$A743)*('Fixed assets'!$R$2:$R$1000))-SUMPRODUCT(('Fixed assets'!$Q$2:$Q$1000=Costs!U$705)*('Fixed assets'!$U$2:$U$1000>Costs!$A743)*('Fixed assets'!$P$2:$P$1000=Costs!$A743)*('Fixed assets'!$S$2:$S$1000))","v":0},{"$f":"V655+SUMPRODUCT(('Fixed assets'!$Q$2:$Q$1000=Costs!V$705)*('Fixed assets'!$U$2:$U$1000>Costs!$A743)*('Fixed assets'!$P$2:$P$1000=Costs!$A743)*('Fixed assets'!$R$2:$R$1000))-SUMPRODUCT(('Fixed assets'!$Q$2:$Q$1000=Costs!V$705)*('Fixed assets'!$U$2:$U$1000>Costs!$A743)*('Fixed assets'!$P$2:$P$1000=Costs!$A743)*('Fixed assets'!$S$2:$S$1000))","v":0},{"$f":"W655+SUMPRODUCT(('Fixed assets'!$Q$2:$Q$1000=Costs!W$705)*('Fixed assets'!$U$2:$U$1000>Costs!$A743)*('Fixed assets'!$P$2:$P$1000=Costs!$A743)*('Fixed assets'!$R$2:$R$1000))-SUMPRODUCT(('Fixed assets'!$Q$2:$Q$1000=Costs!W$705)*('Fixed assets'!$U$2:$U$1000>Costs!$A743)*('Fixed assets'!$P$2:$P$1000=Costs!$A743)*('Fixed assets'!$S$2:$S$1000))","v":0},{"$f":"X655+SUMPRODUCT(('Fixed assets'!$Q$2:$Q$1000=Costs!X$705)*('Fixed assets'!$U$2:$U$1000>Costs!$A743)*('Fixed assets'!$P$2:$P$1000=Costs!$A743)*('Fixed assets'!$R$2:$R$1000))-SUMPRODUCT(('Fixed assets'!$Q$2:$Q$1000=Costs!X$705)*('Fixed assets'!$U$2:$U$1000>Costs!$A743)*('Fixed assets'!$P$2:$P$1000=Costs!$A743)*('Fixed assets'!$S$2:$S$1000))","v":0},{"$f":"Y655+SUMPRODUCT(('Fixed assets'!$Q$2:$Q$1000=Costs!Y$705)*('Fixed assets'!$U$2:$U$1000>Costs!$A743)*('Fixed assets'!$P$2:$P$1000=Costs!$A743)*('Fixed assets'!$R$2:$R$1000))-SUMPRODUCT(('Fixed assets'!$Q$2:$Q$1000=Costs!Y$705)*('Fixed assets'!$U$2:$U$1000>Costs!$A743)*('Fixed assets'!$P$2:$P$1000=Costs!$A743)*('Fixed assets'!$S$2:$S$1000))","v":0},{"$f":"Z655+SUMPRODUCT(('Fixed assets'!$Q$2:$Q$1000=Costs!Z$705)*('Fixed assets'!$U$2:$U$1000>Costs!$A743)*('Fixed assets'!$P$2:$P$1000=Costs!$A743)*('Fixed assets'!$R$2:$R$1000))-SUMPRODUCT(('Fixed assets'!$Q$2:$Q$1000=Costs!Z$705)*('Fixed assets'!$U$2:$U$1000>Costs!$A743)*('Fixed assets'!$P$2:$P$1000=Costs!$A743)*('Fixed assets'!$S$2:$S$1000))","v":0},{"$f":"AA655+SUMPRODUCT(('Fixed assets'!$Q$2:$Q$1000=Costs!AA$705)*('Fixed assets'!$U$2:$U$1000>Costs!$A743)*('Fixed assets'!$P$2:$P$1000=Costs!$A743)*('Fixed assets'!$R$2:$R$1000))-SUMPRODUCT(('Fixed assets'!$Q$2:$Q$1000=Costs!AA$705)*('Fixed assets'!$U$2:$U$1000>Costs!$A743)*('Fixed assets'!$P$2:$P$1000=Costs!$A743)*('Fixed assets'!$S$2:$S$1000))","v":0},{"$f":"AB655+SUMPRODUCT(('Fixed assets'!$Q$2:$Q$1000=Costs!AB$705)*('Fixed assets'!$U$2:$U$1000>Costs!$A743)*('Fixed assets'!$P$2:$P$1000=Costs!$A743)*('Fixed assets'!$R$2:$R$1000))-SUMPRODUCT(('Fixed assets'!$Q$2:$Q$1000=Costs!AB$705)*('Fixed assets'!$U$2:$U$1000>Costs!$A743)*('Fixed assets'!$P$2:$P$1000=Costs!$A743)*('Fixed assets'!$S$2:$S$1000))","v":0},{"$f":"AC655+SUMPRODUCT(('Fixed assets'!$Q$2:$Q$1000=Costs!AC$705)*('Fixed assets'!$U$2:$U$1000>Costs!$A743)*('Fixed assets'!$P$2:$P$1000=Costs!$A743)*('Fixed assets'!$R$2:$R$1000))-SUMPRODUCT(('Fixed assets'!$Q$2:$Q$1000=Costs!AC$705)*('Fixed assets'!$U$2:$U$1000>Costs!$A743)*('Fixed assets'!$P$2:$P$1000=Costs!$A743)*('Fixed assets'!$S$2:$S$1000))","v":0},{"$f":"AD655+SUMPRODUCT(('Fixed assets'!$Q$2:$Q$1000=Costs!AD$705)*('Fixed assets'!$U$2:$U$1000>Costs!$A743)*('Fixed assets'!$P$2:$P$1000=Costs!$A743)*('Fixed assets'!$R$2:$R$1000))-SUMPRODUCT(('Fixed assets'!$Q$2:$Q$1000=Costs!AD$705)*('Fixed assets'!$U$2:$U$1000>Costs!$A743)*('Fixed assets'!$P$2:$P$1000=Costs!$A743)*('Fixed assets'!$S$2:$S$1000))","v":0},{"$f":"AE655+SUMPRODUCT(('Fixed assets'!$Q$2:$Q$1000=Costs!AE$705)*('Fixed assets'!$U$2:$U$1000>Costs!$A743)*('Fixed assets'!$P$2:$P$1000=Costs!$A743)*('Fixed assets'!$R$2:$R$1000))-SUMPRODUCT(('Fixed assets'!$Q$2:$Q$1000=Costs!AE$705)*('Fixed assets'!$U$2:$U$1000>Costs!$A743)*('Fixed assets'!$P$2:$P$1000=Costs!$A743)*('Fixed assets'!$S$2:$S$1000))","v":0},{"$f":"AF655+SUMPRODUCT(('Fixed assets'!$Q$2:$Q$1000=Costs!AF$705)*('Fixed assets'!$U$2:$U$1000>Costs!$A743)*('Fixed assets'!$P$2:$P$1000=Costs!$A743)*('Fixed assets'!$R$2:$R$1000))-SUMPRODUCT(('Fixed assets'!$Q$2:$Q$1000=Costs!AF$705)*('Fixed assets'!$U$2:$U$1000>Costs!$A743)*('Fixed assets'!$P$2:$P$1000=Costs!$A743)*('Fixed assets'!$S$2:$S$1000))","v":0},{"$f":"AG655+SUMPRODUCT(('Fixed assets'!$Q$2:$Q$1000=Costs!AG$705)*('Fixed assets'!$U$2:$U$1000>Costs!$A743)*('Fixed assets'!$P$2:$P$1000=Costs!$A743)*('Fixed assets'!$R$2:$R$1000))-SUMPRODUCT(('Fixed assets'!$Q$2:$Q$1000=Costs!AG$705)*('Fixed assets'!$U$2:$U$1000>Costs!$A743)*('Fixed assets'!$P$2:$P$1000=Costs!$A743)*('Fixed assets'!$S$2:$S$1000))","v":0},{"$f":"AH655+SUMPRODUCT(('Fixed assets'!$Q$2:$Q$1000=Costs!AH$705)*('Fixed assets'!$U$2:$U$1000>Costs!$A743)*('Fixed assets'!$P$2:$P$1000=Costs!$A743)*('Fixed assets'!$R$2:$R$1000))-SUMPRODUCT(('Fixed assets'!$Q$2:$Q$1000=Costs!AH$705)*('Fixed assets'!$U$2:$U$1000>Costs!$A743)*('Fixed assets'!$P$2:$P$1000=Costs!$A743)*('Fixed assets'!$S$2:$S$1000))","v":0},{"$f":"AI655+SUMPRODUCT(('Fixed assets'!$Q$2:$Q$1000=Costs!AI$705)*('Fixed assets'!$U$2:$U$1000>Costs!$A743)*('Fixed assets'!$P$2:$P$1000=Costs!$A743)*('Fixed assets'!$R$2:$R$1000))-SUMPRODUCT(('Fixed assets'!$Q$2:$Q$1000=Costs!AI$705)*('Fixed assets'!$U$2:$U$1000>Costs!$A743)*('Fixed assets'!$P$2:$P$1000=Costs!$A743)*('Fixed assets'!$S$2:$S$1000))","v":0},{"$f":"AJ655+SUMPRODUCT(('Fixed assets'!$Q$2:$Q$1000=Costs!AJ$705)*('Fixed assets'!$U$2:$U$1000>Costs!$A743)*('Fixed assets'!$P$2:$P$1000=Costs!$A743)*('Fixed assets'!$R$2:$R$1000))-SUMPRODUCT(('Fixed assets'!$Q$2:$Q$1000=Costs!AJ$705)*('Fixed assets'!$U$2:$U$1000>Costs!$A743)*('Fixed assets'!$P$2:$P$1000=Costs!$A743)*('Fixed assets'!$S$2:$S$1000))","v":0},{"$f":"AK655+SUMPRODUCT(('Fixed assets'!$Q$2:$Q$1000=Costs!AK$705)*('Fixed assets'!$U$2:$U$1000>Costs!$A743)*('Fixed assets'!$P$2:$P$1000=Costs!$A743)*('Fixed assets'!$R$2:$R$1000))-SUMPRODUCT(('Fixed assets'!$Q$2:$Q$1000=Costs!AK$705)*('Fixed assets'!$U$2:$U$1000>Costs!$A743)*('Fixed assets'!$P$2:$P$1000=Costs!$A743)*('Fixed assets'!$S$2:$S$1000))","v":0},{"$f":"AL655+SUMPRODUCT(('Fixed assets'!$Q$2:$Q$1000=Costs!AL$705)*('Fixed assets'!$U$2:$U$1000>Costs!$A743)*('Fixed assets'!$P$2:$P$1000=Costs!$A743)*('Fixed assets'!$R$2:$R$1000))-SUMPRODUCT(('Fixed assets'!$Q$2:$Q$1000=Costs!AL$705)*('Fixed assets'!$U$2:$U$1000>Costs!$A743)*('Fixed assets'!$P$2:$P$1000=Costs!$A743)*('Fixed assets'!$S$2:$S$1000))","v":0},{"$f":"AM655+SUMPRODUCT(('Fixed assets'!$Q$2:$Q$1000=Costs!AM$705)*('Fixed assets'!$U$2:$U$1000>Costs!$A743)*('Fixed assets'!$P$2:$P$1000=Costs!$A743)*('Fixed assets'!$R$2:$R$1000))-SUMPRODUCT(('Fixed assets'!$Q$2:$Q$1000=Costs!AM$705)*('Fixed assets'!$U$2:$U$1000>Costs!$A743)*('Fixed assets'!$P$2:$P$1000=Costs!$A743)*('Fixed assets'!$S$2:$S$1000))","v":0},{"$f":"AN655+SUMPRODUCT(('Fixed assets'!$Q$2:$Q$1000=Costs!AN$705)*('Fixed assets'!$U$2:$U$1000>Costs!$A743)*('Fixed assets'!$P$2:$P$1000=Costs!$A743)*('Fixed assets'!$R$2:$R$1000))-SUMPRODUCT(('Fixed assets'!$Q$2:$Q$1000=Costs!AN$705)*('Fixed assets'!$U$2:$U$1000>Costs!$A743)*('Fixed assets'!$P$2:$P$1000=Costs!$A743)*('Fixed assets'!$S$2:$S$1000))","v":0},{"$f":"AO655+SUMPRODUCT(('Fixed assets'!$Q$2:$Q$1000=Costs!AO$705)*('Fixed assets'!$U$2:$U$1000>Costs!$A743)*('Fixed assets'!$P$2:$P$1000=Costs!$A743)*('Fixed assets'!$R$2:$R$1000))-SUMPRODUCT(('Fixed assets'!$Q$2:$Q$1000=Costs!AO$705)*('Fixed assets'!$U$2:$U$1000>Costs!$A743)*('Fixed assets'!$P$2:$P$1000=Costs!$A743)*('Fixed assets'!$S$2:$S$1000))","v":0},{"$f":"AP655+SUMPRODUCT(('Fixed assets'!$Q$2:$Q$1000=Costs!AP$705)*('Fixed assets'!$U$2:$U$1000>Costs!$A743)*('Fixed assets'!$P$2:$P$1000=Costs!$A743)*('Fixed assets'!$R$2:$R$1000))-SUMPRODUCT(('Fixed assets'!$Q$2:$Q$1000=Costs!AP$705)*('Fixed assets'!$U$2:$U$1000>Costs!$A743)*('Fixed assets'!$P$2:$P$1000=Costs!$A743)*('Fixed assets'!$S$2:$S$1000))","v":0},{"$f":"AQ655+SUMPRODUCT(('Fixed assets'!$Q$2:$Q$1000=Costs!AQ$705)*('Fixed assets'!$U$2:$U$1000>Costs!$A743)*('Fixed assets'!$P$2:$P$1000=Costs!$A743)*('Fixed assets'!$R$2:$R$1000))-SUMPRODUCT(('Fixed assets'!$Q$2:$Q$1000=Costs!AQ$705)*('Fixed assets'!$U$2:$U$1000>Costs!$A743)*('Fixed assets'!$P$2:$P$1000=Costs!$A743)*('Fixed assets'!$S$2:$S$1000))","v":0}]
[2053,0,{"$f":"C656+SUMPRODUCT(('Fixed assets'!$Q$2:$Q$1000=Costs!C$705)*('Fixed assets'!$U$2:$U$1000>Costs!$A744)*('Fixed assets'!$P$2:$P$1000=Costs!$A744)*('Fixed assets'!$R$2:$R$1000))-SUMPRODUCT(('Fixed assets'!$Q$2:$Q$1000=Costs!C$705)*('Fixed assets'!$U$2:$U$1000>Costs!$A744)*('Fixed assets'!$P$2:$P$1000=Costs!$A744)*('Fixed assets'!$S$2:$S$1000))","v":0},{"$f":"D656+SUMPRODUCT(('Fixed assets'!$Q$2:$Q$1000=Costs!D$705)*('Fixed assets'!$U$2:$U$1000>Costs!$A744)*('Fixed assets'!$P$2:$P$1000=Costs!$A744)*('Fixed assets'!$R$2:$R$1000))-SUMPRODUCT(('Fixed assets'!$Q$2:$Q$1000=Costs!D$705)*('Fixed assets'!$U$2:$U$1000>Costs!$A744)*('Fixed assets'!$P$2:$P$1000=Costs!$A744)*('Fixed assets'!$S$2:$S$1000))","v":0},{"$f":"E656+SUMPRODUCT(('Fixed assets'!$Q$2:$Q$1000=Costs!E$705)*('Fixed assets'!$U$2:$U$1000>Costs!$A744)*('Fixed assets'!$P$2:$P$1000=Costs!$A744)*('Fixed assets'!$R$2:$R$1000))-SUMPRODUCT(('Fixed assets'!$Q$2:$Q$1000=Costs!E$705)*('Fixed assets'!$U$2:$U$1000>Costs!$A744)*('Fixed assets'!$P$2:$P$1000=Costs!$A744)*('Fixed assets'!$S$2:$S$1000))","v":0},{"$f":"F656+SUMPRODUCT(('Fixed assets'!$Q$2:$Q$1000=Costs!F$705)*('Fixed assets'!$U$2:$U$1000>Costs!$A744)*('Fixed assets'!$P$2:$P$1000=Costs!$A744)*('Fixed assets'!$R$2:$R$1000))-SUMPRODUCT(('Fixed assets'!$Q$2:$Q$1000=Costs!F$705)*('Fixed assets'!$U$2:$U$1000>Costs!$A744)*('Fixed assets'!$P$2:$P$1000=Costs!$A744)*('Fixed assets'!$S$2:$S$1000))","v":0},{"$f":"G656+SUMPRODUCT(('Fixed assets'!$Q$2:$Q$1000=Costs!G$705)*('Fixed assets'!$U$2:$U$1000>Costs!$A744)*('Fixed assets'!$P$2:$P$1000=Costs!$A744)*('Fixed assets'!$R$2:$R$1000))-SUMPRODUCT(('Fixed assets'!$Q$2:$Q$1000=Costs!G$705)*('Fixed assets'!$U$2:$U$1000>Costs!$A744)*('Fixed assets'!$P$2:$P$1000=Costs!$A744)*('Fixed assets'!$S$2:$S$1000))","v":0},{"$f":"H656+SUMPRODUCT(('Fixed assets'!$Q$2:$Q$1000=Costs!H$705)*('Fixed assets'!$U$2:$U$1000>Costs!$A744)*('Fixed assets'!$P$2:$P$1000=Costs!$A744)*('Fixed assets'!$R$2:$R$1000))-SUMPRODUCT(('Fixed assets'!$Q$2:$Q$1000=Costs!H$705)*('Fixed assets'!$U$2:$U$1000>Costs!$A744)*('Fixed assets'!$P$2:$P$1000=Costs!$A744)*('Fixed assets'!$S$2:$S$1000))","v":0},{"$f":"I656+SUMPRODUCT(('Fixed assets'!$Q$2:$Q$1000=Costs!I$705)*('Fixed assets'!$U$2:$U$1000>Costs!$A744)*('Fixed assets'!$P$2:$P$1000=Costs!$A744)*('Fixed assets'!$R$2:$R$1000))-SUMPRODUCT(('Fixed assets'!$Q$2:$Q$1000=Costs!I$705)*('Fixed assets'!$U$2:$U$1000>Costs!$A744)*('Fixed assets'!$P$2:$P$1000=Costs!$A744)*('Fixed assets'!$S$2:$S$1000))","v":0},{"$f":"J656+SUMPRODUCT(('Fixed assets'!$Q$2:$Q$1000=Costs!J$705)*('Fixed assets'!$U$2:$U$1000>Costs!$A744)*('Fixed assets'!$P$2:$P$1000=Costs!$A744)*('Fixed assets'!$R$2:$R$1000))-SUMPRODUCT(('Fixed assets'!$Q$2:$Q$1000=Costs!J$705)*('Fixed assets'!$U$2:$U$1000>Costs!$A744)*('Fixed assets'!$P$2:$P$1000=Costs!$A744)*('Fixed assets'!$S$2:$S$1000))","v":0},{"$f":"K656+SUMPRODUCT(('Fixed assets'!$Q$2:$Q$1000=Costs!K$705)*('Fixed assets'!$U$2:$U$1000>Costs!$A744)*('Fixed assets'!$P$2:$P$1000=Costs!$A744)*('Fixed assets'!$R$2:$R$1000))-SUMPRODUCT(('Fixed assets'!$Q$2:$Q$1000=Costs!K$705)*('Fixed assets'!$U$2:$U$1000>Costs!$A744)*('Fixed assets'!$P$2:$P$1000=Costs!$A744)*('Fixed assets'!$S$2:$S$1000))","v":0},{"$f":"L656+SUMPRODUCT(('Fixed assets'!$Q$2:$Q$1000=Costs!L$705)*('Fixed assets'!$U$2:$U$1000>Costs!$A744)*('Fixed assets'!$P$2:$P$1000=Costs!$A744)*('Fixed assets'!$R$2:$R$1000))-SUMPRODUCT(('Fixed assets'!$Q$2:$Q$1000=Costs!L$705)*('Fixed assets'!$U$2:$U$1000>Costs!$A744)*('Fixed assets'!$P$2:$P$1000=Costs!$A744)*('Fixed assets'!$S$2:$S$1000))","v":0},{"$f":"M656+SUMPRODUCT(('Fixed assets'!$Q$2:$Q$1000=Costs!M$705)*('Fixed assets'!$U$2:$U$1000>Costs!$A744)*('Fixed assets'!$P$2:$P$1000=Costs!$A744)*('Fixed assets'!$R$2:$R$1000))-SUMPRODUCT(('Fixed assets'!$Q$2:$Q$1000=Costs!M$705)*('Fixed assets'!$U$2:$U$1000>Costs!$A744)*('Fixed assets'!$P$2:$P$1000=Costs!$A744)*('Fixed assets'!$S$2:$S$1000))","v":0},{"$f":"N656+SUMPRODUCT(('Fixed assets'!$Q$2:$Q$1000=Costs!N$705)*('Fixed assets'!$U$2:$U$1000>Costs!$A744)*('Fixed assets'!$P$2:$P$1000=Costs!$A744)*('Fixed assets'!$R$2:$R$1000))-SUMPRODUCT(('Fixed assets'!$Q$2:$Q$1000=Costs!N$705)*('Fixed assets'!$U$2:$U$1000>Costs!$A744)*('Fixed assets'!$P$2:$P$1000=Costs!$A744)*('Fixed assets'!$S$2:$S$1000))","v":0},{"$f":"O656+SUMPRODUCT(('Fixed assets'!$Q$2:$Q$1000=Costs!O$705)*('Fixed assets'!$U$2:$U$1000>Costs!$A744)*('Fixed assets'!$P$2:$P$1000=Costs!$A744)*('Fixed assets'!$R$2:$R$1000))-SUMPRODUCT(('Fixed assets'!$Q$2:$Q$1000=Costs!O$705)*('Fixed assets'!$U$2:$U$1000>Costs!$A744)*('Fixed assets'!$P$2:$P$1000=Costs!$A744)*('Fixed assets'!$S$2:$S$1000))","v":0},{"$f":"P656+SUMPRODUCT(('Fixed assets'!$Q$2:$Q$1000=Costs!P$705)*('Fixed assets'!$U$2:$U$1000>Costs!$A744)*('Fixed assets'!$P$2:$P$1000=Costs!$A744)*('Fixed assets'!$R$2:$R$1000))-SUMPRODUCT(('Fixed assets'!$Q$2:$Q$1000=Costs!P$705)*('Fixed assets'!$U$2:$U$1000>Costs!$A744)*('Fixed assets'!$P$2:$P$1000=Costs!$A744)*('Fixed assets'!$S$2:$S$1000))","v":0},{"$f":"Q656+SUMPRODUCT(('Fixed assets'!$Q$2:$Q$1000=Costs!Q$705)*('Fixed assets'!$U$2:$U$1000>Costs!$A744)*('Fixed assets'!$P$2:$P$1000=Costs!$A744)*('Fixed assets'!$R$2:$R$1000))-SUMPRODUCT(('Fixed assets'!$Q$2:$Q$1000=Costs!Q$705)*('Fixed assets'!$U$2:$U$1000>Costs!$A744)*('Fixed assets'!$P$2:$P$1000=Costs!$A744)*('Fixed assets'!$S$2:$S$1000))","v":0},{"$f":"R656+SUMPRODUCT(('Fixed assets'!$Q$2:$Q$1000=Costs!R$705)*('Fixed assets'!$U$2:$U$1000>Costs!$A744)*('Fixed assets'!$P$2:$P$1000=Costs!$A744)*('Fixed assets'!$R$2:$R$1000))-SUMPRODUCT(('Fixed assets'!$Q$2:$Q$1000=Costs!R$705)*('Fixed assets'!$U$2:$U$1000>Costs!$A744)*('Fixed assets'!$P$2:$P$1000=Costs!$A744)*('Fixed assets'!$S$2:$S$1000))","v":0},{"$f":"S656+SUMPRODUCT(('Fixed assets'!$Q$2:$Q$1000=Costs!S$705)*('Fixed assets'!$U$2:$U$1000>Costs!$A744)*('Fixed assets'!$P$2:$P$1000=Costs!$A744)*('Fixed assets'!$R$2:$R$1000))-SUMPRODUCT(('Fixed assets'!$Q$2:$Q$1000=Costs!S$705)*('Fixed assets'!$U$2:$U$1000>Costs!$A744)*('Fixed assets'!$P$2:$P$1000=Costs!$A744)*('Fixed assets'!$S$2:$S$1000))","v":0},{"$f":"T656+SUMPRODUCT(('Fixed assets'!$Q$2:$Q$1000=Costs!T$705)*('Fixed assets'!$U$2:$U$1000>Costs!$A744)*('Fixed assets'!$P$2:$P$1000=Costs!$A744)*('Fixed assets'!$R$2:$R$1000))-SUMPRODUCT(('Fixed assets'!$Q$2:$Q$1000=Costs!T$705)*('Fixed assets'!$U$2:$U$1000>Costs!$A744)*('Fixed assets'!$P$2:$P$1000=Costs!$A744)*('Fixed assets'!$S$2:$S$1000))","v":0},{"$f":"U656+SUMPRODUCT(('Fixed assets'!$Q$2:$Q$1000=Costs!U$705)*('Fixed assets'!$U$2:$U$1000>Costs!$A744)*('Fixed assets'!$P$2:$P$1000=Costs!$A744)*('Fixed assets'!$R$2:$R$1000))-SUMPRODUCT(('Fixed assets'!$Q$2:$Q$1000=Costs!U$705)*('Fixed assets'!$U$2:$U$1000>Costs!$A744)*('Fixed assets'!$P$2:$P$1000=Costs!$A744)*('Fixed assets'!$S$2:$S$1000))","v":0},{"$f":"V656+SUMPRODUCT(('Fixed assets'!$Q$2:$Q$1000=Costs!V$705)*('Fixed assets'!$U$2:$U$1000>Costs!$A744)*('Fixed assets'!$P$2:$P$1000=Costs!$A744)*('Fixed assets'!$R$2:$R$1000))-SUMPRODUCT(('Fixed assets'!$Q$2:$Q$1000=Costs!V$705)*('Fixed assets'!$U$2:$U$1000>Costs!$A744)*('Fixed assets'!$P$2:$P$1000=Costs!$A744)*('Fixed assets'!$S$2:$S$1000))","v":0},{"$f":"W656+SUMPRODUCT(('Fixed assets'!$Q$2:$Q$1000=Costs!W$705)*('Fixed assets'!$U$2:$U$1000>Costs!$A744)*('Fixed assets'!$P$2:$P$1000=Costs!$A744)*('Fixed assets'!$R$2:$R$1000))-SUMPRODUCT(('Fixed assets'!$Q$2:$Q$1000=Costs!W$705)*('Fixed assets'!$U$2:$U$1000>Costs!$A744)*('Fixed assets'!$P$2:$P$1000=Costs!$A744)*('Fixed assets'!$S$2:$S$1000))","v":0},{"$f":"X656+SUMPRODUCT(('Fixed assets'!$Q$2:$Q$1000=Costs!X$705)*('Fixed assets'!$U$2:$U$1000>Costs!$A744)*('Fixed assets'!$P$2:$P$1000=Costs!$A744)*('Fixed assets'!$R$2:$R$1000))-SUMPRODUCT(('Fixed assets'!$Q$2:$Q$1000=Costs!X$705)*('Fixed assets'!$U$2:$U$1000>Costs!$A744)*('Fixed assets'!$P$2:$P$1000=Costs!$A744)*('Fixed assets'!$S$2:$S$1000))","v":0},{"$f":"Y656+SUMPRODUCT(('Fixed assets'!$Q$2:$Q$1000=Costs!Y$705)*('Fixed assets'!$U$2:$U$1000>Costs!$A744)*('Fixed assets'!$P$2:$P$1000=Costs!$A744)*('Fixed assets'!$R$2:$R$1000))-SUMPRODUCT(('Fixed assets'!$Q$2:$Q$1000=Costs!Y$705)*('Fixed assets'!$U$2:$U$1000>Costs!$A744)*('Fixed assets'!$P$2:$P$1000=Costs!$A744)*('Fixed assets'!$S$2:$S$1000))","v":0},{"$f":"Z656+SUMPRODUCT(('Fixed assets'!$Q$2:$Q$1000=Costs!Z$705)*('Fixed assets'!$U$2:$U$1000>Costs!$A744)*('Fixed assets'!$P$2:$P$1000=Costs!$A744)*('Fixed assets'!$R$2:$R$1000))-SUMPRODUCT(('Fixed assets'!$Q$2:$Q$1000=Costs!Z$705)*('Fixed assets'!$U$2:$U$1000>Costs!$A744)*('Fixed assets'!$P$2:$P$1000=Costs!$A744)*('Fixed assets'!$S$2:$S$1000))","v":0},{"$f":"AA656+SUMPRODUCT(('Fixed assets'!$Q$2:$Q$1000=Costs!AA$705)*('Fixed assets'!$U$2:$U$1000>Costs!$A744)*('Fixed assets'!$P$2:$P$1000=Costs!$A744)*('Fixed assets'!$R$2:$R$1000))-SUMPRODUCT(('Fixed assets'!$Q$2:$Q$1000=Costs!AA$705)*('Fixed assets'!$U$2:$U$1000>Costs!$A744)*('Fixed assets'!$P$2:$P$1000=Costs!$A744)*('Fixed assets'!$S$2:$S$1000))","v":0},{"$f":"AB656+SUMPRODUCT(('Fixed assets'!$Q$2:$Q$1000=Costs!AB$705)*('Fixed assets'!$U$2:$U$1000>Costs!$A744)*('Fixed assets'!$P$2:$P$1000=Costs!$A744)*('Fixed assets'!$R$2:$R$1000))-SUMPRODUCT(('Fixed assets'!$Q$2:$Q$1000=Costs!AB$705)*('Fixed assets'!$U$2:$U$1000>Costs!$A744)*('Fixed assets'!$P$2:$P$1000=Costs!$A744)*('Fixed assets'!$S$2:$S$1000))","v":0},{"$f":"AC656+SUMPRODUCT(('Fixed assets'!$Q$2:$Q$1000=Costs!AC$705)*('Fixed assets'!$U$2:$U$1000>Costs!$A744)*('Fixed assets'!$P$2:$P$1000=Costs!$A744)*('Fixed assets'!$R$2:$R$1000))-SUMPRODUCT(('Fixed assets'!$Q$2:$Q$1000=Costs!AC$705)*('Fixed assets'!$U$2:$U$1000>Costs!$A744)*('Fixed assets'!$P$2:$P$1000=Costs!$A744)*('Fixed assets'!$S$2:$S$1000))","v":0},{"$f":"AD656+SUMPRODUCT(('Fixed assets'!$Q$2:$Q$1000=Costs!AD$705)*('Fixed assets'!$U$2:$U$1000>Costs!$A744)*('Fixed assets'!$P$2:$P$1000=Costs!$A744)*('Fixed assets'!$R$2:$R$1000))-SUMPRODUCT(('Fixed assets'!$Q$2:$Q$1000=Costs!AD$705)*('Fixed assets'!$U$2:$U$1000>Costs!$A744)*('Fixed assets'!$P$2:$P$1000=Costs!$A744)*('Fixed assets'!$S$2:$S$1000))","v":0},{"$f":"AE656+SUMPRODUCT(('Fixed assets'!$Q$2:$Q$1000=Costs!AE$705)*('Fixed assets'!$U$2:$U$1000>Costs!$A744)*('Fixed assets'!$P$2:$P$1000=Costs!$A744)*('Fixed assets'!$R$2:$R$1000))-SUMPRODUCT(('Fixed assets'!$Q$2:$Q$1000=Costs!AE$705)*('Fixed assets'!$U$2:$U$1000>Costs!$A744)*('Fixed assets'!$P$2:$P$1000=Costs!$A744)*('Fixed assets'!$S$2:$S$1000))","v":0},{"$f":"AF656+SUMPRODUCT(('Fixed assets'!$Q$2:$Q$1000=Costs!AF$705)*('Fixed assets'!$U$2:$U$1000>Costs!$A744)*('Fixed assets'!$P$2:$P$1000=Costs!$A744)*('Fixed assets'!$R$2:$R$1000))-SUMPRODUCT(('Fixed assets'!$Q$2:$Q$1000=Costs!AF$705)*('Fixed assets'!$U$2:$U$1000>Costs!$A744)*('Fixed assets'!$P$2:$P$1000=Costs!$A744)*('Fixed assets'!$S$2:$S$1000))","v":0},{"$f":"AG656+SUMPRODUCT(('Fixed assets'!$Q$2:$Q$1000=Costs!AG$705)*('Fixed assets'!$U$2:$U$1000>Costs!$A744)*('Fixed assets'!$P$2:$P$1000=Costs!$A744)*('Fixed assets'!$R$2:$R$1000))-SUMPRODUCT(('Fixed assets'!$Q$2:$Q$1000=Costs!AG$705)*('Fixed assets'!$U$2:$U$1000>Costs!$A744)*('Fixed assets'!$P$2:$P$1000=Costs!$A744)*('Fixed assets'!$S$2:$S$1000))","v":0},{"$f":"AH656+SUMPRODUCT(('Fixed assets'!$Q$2:$Q$1000=Costs!AH$705)*('Fixed assets'!$U$2:$U$1000>Costs!$A744)*('Fixed assets'!$P$2:$P$1000=Costs!$A744)*('Fixed assets'!$R$2:$R$1000))-SUMPRODUCT(('Fixed assets'!$Q$2:$Q$1000=Costs!AH$705)*('Fixed assets'!$U$2:$U$1000>Costs!$A744)*('Fixed assets'!$P$2:$P$1000=Costs!$A744)*('Fixed assets'!$S$2:$S$1000))","v":0},{"$f":"AI656+SUMPRODUCT(('Fixed assets'!$Q$2:$Q$1000=Costs!AI$705)*('Fixed assets'!$U$2:$U$1000>Costs!$A744)*('Fixed assets'!$P$2:$P$1000=Costs!$A744)*('Fixed assets'!$R$2:$R$1000))-SUMPRODUCT(('Fixed assets'!$Q$2:$Q$1000=Costs!AI$705)*('Fixed assets'!$U$2:$U$1000>Costs!$A744)*('Fixed assets'!$P$2:$P$1000=Costs!$A744)*('Fixed assets'!$S$2:$S$1000))","v":0},{"$f":"AJ656+SUMPRODUCT(('Fixed assets'!$Q$2:$Q$1000=Costs!AJ$705)*('Fixed assets'!$U$2:$U$1000>Costs!$A744)*('Fixed assets'!$P$2:$P$1000=Costs!$A744)*('Fixed assets'!$R$2:$R$1000))-SUMPRODUCT(('Fixed assets'!$Q$2:$Q$1000=Costs!AJ$705)*('Fixed assets'!$U$2:$U$1000>Costs!$A744)*('Fixed assets'!$P$2:$P$1000=Costs!$A744)*('Fixed assets'!$S$2:$S$1000))","v":0},{"$f":"AK656+SUMPRODUCT(('Fixed assets'!$Q$2:$Q$1000=Costs!AK$705)*('Fixed assets'!$U$2:$U$1000>Costs!$A744)*('Fixed assets'!$P$2:$P$1000=Costs!$A744)*('Fixed assets'!$R$2:$R$1000))-SUMPRODUCT(('Fixed assets'!$Q$2:$Q$1000=Costs!AK$705)*('Fixed assets'!$U$2:$U$1000>Costs!$A744)*('Fixed assets'!$P$2:$P$1000=Costs!$A744)*('Fixed assets'!$S$2:$S$1000))","v":0},{"$f":"AL656+SUMPRODUCT(('Fixed assets'!$Q$2:$Q$1000=Costs!AL$705)*('Fixed assets'!$U$2:$U$1000>Costs!$A744)*('Fixed assets'!$P$2:$P$1000=Costs!$A744)*('Fixed assets'!$R$2:$R$1000))-SUMPRODUCT(('Fixed assets'!$Q$2:$Q$1000=Costs!AL$705)*('Fixed assets'!$U$2:$U$1000>Costs!$A744)*('Fixed assets'!$P$2:$P$1000=Costs!$A744)*('Fixed assets'!$S$2:$S$1000))","v":0},{"$f":"AM656+SUMPRODUCT(('Fixed assets'!$Q$2:$Q$1000=Costs!AM$705)*('Fixed assets'!$U$2:$U$1000>Costs!$A744)*('Fixed assets'!$P$2:$P$1000=Costs!$A744)*('Fixed assets'!$R$2:$R$1000))-SUMPRODUCT(('Fixed assets'!$Q$2:$Q$1000=Costs!AM$705)*('Fixed assets'!$U$2:$U$1000>Costs!$A744)*('Fixed assets'!$P$2:$P$1000=Costs!$A744)*('Fixed assets'!$S$2:$S$1000))","v":0},{"$f":"AN656+SUMPRODUCT(('Fixed assets'!$Q$2:$Q$1000=Costs!AN$705)*('Fixed assets'!$U$2:$U$1000>Costs!$A744)*('Fixed assets'!$P$2:$P$1000=Costs!$A744)*('Fixed assets'!$R$2:$R$1000))-SUMPRODUCT(('Fixed assets'!$Q$2:$Q$1000=Costs!AN$705)*('Fixed assets'!$U$2:$U$1000>Costs!$A744)*('Fixed assets'!$P$2:$P$1000=Costs!$A744)*('Fixed assets'!$S$2:$S$1000))","v":0},{"$f":"AO656+SUMPRODUCT(('Fixed assets'!$Q$2:$Q$1000=Costs!AO$705)*('Fixed assets'!$U$2:$U$1000>Costs!$A744)*('Fixed assets'!$P$2:$P$1000=Costs!$A744)*('Fixed assets'!$R$2:$R$1000))-SUMPRODUCT(('Fixed assets'!$Q$2:$Q$1000=Costs!AO$705)*('Fixed assets'!$U$2:$U$1000>Costs!$A744)*('Fixed assets'!$P$2:$P$1000=Costs!$A744)*('Fixed assets'!$S$2:$S$1000))","v":0},{"$f":"AP656+SUMPRODUCT(('Fixed assets'!$Q$2:$Q$1000=Costs!AP$705)*('Fixed assets'!$U$2:$U$1000>Costs!$A744)*('Fixed assets'!$P$2:$P$1000=Costs!$A744)*('Fixed assets'!$R$2:$R$1000))-SUMPRODUCT(('Fixed assets'!$Q$2:$Q$1000=Costs!AP$705)*('Fixed assets'!$U$2:$U$1000>Costs!$A744)*('Fixed assets'!$P$2:$P$1000=Costs!$A744)*('Fixed assets'!$S$2:$S$1000))","v":0},{"$f":"AQ656+SUMPRODUCT(('Fixed assets'!$Q$2:$Q$1000=Costs!AQ$705)*('Fixed assets'!$U$2:$U$1000>Costs!$A744)*('Fixed assets'!$P$2:$P$1000=Costs!$A744)*('Fixed assets'!$R$2:$R$1000))-SUMPRODUCT(('Fixed assets'!$Q$2:$Q$1000=Costs!AQ$705)*('Fixed assets'!$U$2:$U$1000>Costs!$A744)*('Fixed assets'!$P$2:$P$1000=Costs!$A744)*('Fixed assets'!$S$2:$S$1000))","v":0}]
[2054,0,{"$f":"C657+SUMPRODUCT(('Fixed assets'!$Q$2:$Q$1000=Costs!C$705)*('Fixed assets'!$U$2:$U$1000>Costs!$A745)*('Fixed assets'!$P$2:$P$1000=Costs!$A745)*('Fixed assets'!$R$2:$R$1000))-SUMPRODUCT(('Fixed assets'!$Q$2:$Q$1000=Costs!C$705)*('Fixed assets'!$U$2:$U$1000>Costs!$A745)*('Fixed assets'!$P$2:$P$1000=Costs!$A745)*('Fixed assets'!$S$2:$S$1000))","v":0},{"$f":"D657+SUMPRODUCT(('Fixed assets'!$Q$2:$Q$1000=Costs!D$705)*('Fixed assets'!$U$2:$U$1000>Costs!$A745)*('Fixed assets'!$P$2:$P$1000=Costs!$A745)*('Fixed assets'!$R$2:$R$1000))-SUMPRODUCT(('Fixed assets'!$Q$2:$Q$1000=Costs!D$705)*('Fixed assets'!$U$2:$U$1000>Costs!$A745)*('Fixed assets'!$P$2:$P$1000=Costs!$A745)*('Fixed assets'!$S$2:$S$1000))","v":0},{"$f":"E657+SUMPRODUCT(('Fixed assets'!$Q$2:$Q$1000=Costs!E$705)*('Fixed assets'!$U$2:$U$1000>Costs!$A745)*('Fixed assets'!$P$2:$P$1000=Costs!$A745)*('Fixed assets'!$R$2:$R$1000))-SUMPRODUCT(('Fixed assets'!$Q$2:$Q$1000=Costs!E$705)*('Fixed assets'!$U$2:$U$1000>Costs!$A745)*('Fixed assets'!$P$2:$P$1000=Costs!$A745)*('Fixed assets'!$S$2:$S$1000))","v":0},{"$f":"F657+SUMPRODUCT(('Fixed assets'!$Q$2:$Q$1000=Costs!F$705)*('Fixed assets'!$U$2:$U$1000>Costs!$A745)*('Fixed assets'!$P$2:$P$1000=Costs!$A745)*('Fixed assets'!$R$2:$R$1000))-SUMPRODUCT(('Fixed assets'!$Q$2:$Q$1000=Costs!F$705)*('Fixed assets'!$U$2:$U$1000>Costs!$A745)*('Fixed assets'!$P$2:$P$1000=Costs!$A745)*('Fixed assets'!$S$2:$S$1000))","v":0},{"$f":"G657+SUMPRODUCT(('Fixed assets'!$Q$2:$Q$1000=Costs!G$705)*('Fixed assets'!$U$2:$U$1000>Costs!$A745)*('Fixed assets'!$P$2:$P$1000=Costs!$A745)*('Fixed assets'!$R$2:$R$1000))-SUMPRODUCT(('Fixed assets'!$Q$2:$Q$1000=Costs!G$705)*('Fixed assets'!$U$2:$U$1000>Costs!$A745)*('Fixed assets'!$P$2:$P$1000=Costs!$A745)*('Fixed assets'!$S$2:$S$1000))","v":0},{"$f":"H657+SUMPRODUCT(('Fixed assets'!$Q$2:$Q$1000=Costs!H$705)*('Fixed assets'!$U$2:$U$1000>Costs!$A745)*('Fixed assets'!$P$2:$P$1000=Costs!$A745)*('Fixed assets'!$R$2:$R$1000))-SUMPRODUCT(('Fixed assets'!$Q$2:$Q$1000=Costs!H$705)*('Fixed assets'!$U$2:$U$1000>Costs!$A745)*('Fixed assets'!$P$2:$P$1000=Costs!$A745)*('Fixed assets'!$S$2:$S$1000))","v":0},{"$f":"I657+SUMPRODUCT(('Fixed assets'!$Q$2:$Q$1000=Costs!I$705)*('Fixed assets'!$U$2:$U$1000>Costs!$A745)*('Fixed assets'!$P$2:$P$1000=Costs!$A745)*('Fixed assets'!$R$2:$R$1000))-SUMPRODUCT(('Fixed assets'!$Q$2:$Q$1000=Costs!I$705)*('Fixed assets'!$U$2:$U$1000>Costs!$A745)*('Fixed assets'!$P$2:$P$1000=Costs!$A745)*('Fixed assets'!$S$2:$S$1000))","v":0},{"$f":"J657+SUMPRODUCT(('Fixed assets'!$Q$2:$Q$1000=Costs!J$705)*('Fixed assets'!$U$2:$U$1000>Costs!$A745)*('Fixed assets'!$P$2:$P$1000=Costs!$A745)*('Fixed assets'!$R$2:$R$1000))-SUMPRODUCT(('Fixed assets'!$Q$2:$Q$1000=Costs!J$705)*('Fixed assets'!$U$2:$U$1000>Costs!$A745)*('Fixed assets'!$P$2:$P$1000=Costs!$A745)*('Fixed assets'!$S$2:$S$1000))","v":0},{"$f":"K657+SUMPRODUCT(('Fixed assets'!$Q$2:$Q$1000=Costs!K$705)*('Fixed assets'!$U$2:$U$1000>Costs!$A745)*('Fixed assets'!$P$2:$P$1000=Costs!$A745)*('Fixed assets'!$R$2:$R$1000))-SUMPRODUCT(('Fixed assets'!$Q$2:$Q$1000=Costs!K$705)*('Fixed assets'!$U$2:$U$1000>Costs!$A745)*('Fixed assets'!$P$2:$P$1000=Costs!$A745)*('Fixed assets'!$S$2:$S$1000))","v":0},{"$f":"L657+SUMPRODUCT(('Fixed assets'!$Q$2:$Q$1000=Costs!L$705)*('Fixed assets'!$U$2:$U$1000>Costs!$A745)*('Fixed assets'!$P$2:$P$1000=Costs!$A745)*('Fixed assets'!$R$2:$R$1000))-SUMPRODUCT(('Fixed assets'!$Q$2:$Q$1000=Costs!L$705)*('Fixed assets'!$U$2:$U$1000>Costs!$A745)*('Fixed assets'!$P$2:$P$1000=Costs!$A745)*('Fixed assets'!$S$2:$S$1000))","v":0},{"$f":"M657+SUMPRODUCT(('Fixed assets'!$Q$2:$Q$1000=Costs!M$705)*('Fixed assets'!$U$2:$U$1000>Costs!$A745)*('Fixed assets'!$P$2:$P$1000=Costs!$A745)*('Fixed assets'!$R$2:$R$1000))-SUMPRODUCT(('Fixed assets'!$Q$2:$Q$1000=Costs!M$705)*('Fixed assets'!$U$2:$U$1000>Costs!$A745)*('Fixed assets'!$P$2:$P$1000=Costs!$A745)*('Fixed assets'!$S$2:$S$1000))","v":0},{"$f":"N657+SUMPRODUCT(('Fixed assets'!$Q$2:$Q$1000=Costs!N$705)*('Fixed assets'!$U$2:$U$1000>Costs!$A745)*('Fixed assets'!$P$2:$P$1000=Costs!$A745)*('Fixed assets'!$R$2:$R$1000))-SUMPRODUCT(('Fixed assets'!$Q$2:$Q$1000=Costs!N$705)*('Fixed assets'!$U$2:$U$1000>Costs!$A745)*('Fixed assets'!$P$2:$P$1000=Costs!$A745)*('Fixed assets'!$S$2:$S$1000))","v":0},{"$f":"O657+SUMPRODUCT(('Fixed assets'!$Q$2:$Q$1000=Costs!O$705)*('Fixed assets'!$U$2:$U$1000>Costs!$A745)*('Fixed assets'!$P$2:$P$1000=Costs!$A745)*('Fixed assets'!$R$2:$R$1000))-SUMPRODUCT(('Fixed assets'!$Q$2:$Q$1000=Costs!O$705)*('Fixed assets'!$U$2:$U$1000>Costs!$A745)*('Fixed assets'!$P$2:$P$1000=Costs!$A745)*('Fixed assets'!$S$2:$S$1000))","v":0},{"$f":"P657+SUMPRODUCT(('Fixed assets'!$Q$2:$Q$1000=Costs!P$705)*('Fixed assets'!$U$2:$U$1000>Costs!$A745)*('Fixed assets'!$P$2:$P$1000=Costs!$A745)*('Fixed assets'!$R$2:$R$1000))-SUMPRODUCT(('Fixed assets'!$Q$2:$Q$1000=Costs!P$705)*('Fixed assets'!$U$2:$U$1000>Costs!$A745)*('Fixed assets'!$P$2:$P$1000=Costs!$A745)*('Fixed assets'!$S$2:$S$1000))","v":0},{"$f":"Q657+SUMPRODUCT(('Fixed assets'!$Q$2:$Q$1000=Costs!Q$705)*('Fixed assets'!$U$2:$U$1000>Costs!$A745)*('Fixed assets'!$P$2:$P$1000=Costs!$A745)*('Fixed assets'!$R$2:$R$1000))-SUMPRODUCT(('Fixed assets'!$Q$2:$Q$1000=Costs!Q$705)*('Fixed assets'!$U$2:$U$1000>Costs!$A745)*('Fixed assets'!$P$2:$P$1000=Costs!$A745)*('Fixed assets'!$S$2:$S$1000))","v":0},{"$f":"R657+SUMPRODUCT(('Fixed assets'!$Q$2:$Q$1000=Costs!R$705)*('Fixed assets'!$U$2:$U$1000>Costs!$A745)*('Fixed assets'!$P$2:$P$1000=Costs!$A745)*('Fixed assets'!$R$2:$R$1000))-SUMPRODUCT(('Fixed assets'!$Q$2:$Q$1000=Costs!R$705)*('Fixed assets'!$U$2:$U$1000>Costs!$A745)*('Fixed assets'!$P$2:$P$1000=Costs!$A745)*('Fixed assets'!$S$2:$S$1000))","v":0},{"$f":"S657+SUMPRODUCT(('Fixed assets'!$Q$2:$Q$1000=Costs!S$705)*('Fixed assets'!$U$2:$U$1000>Costs!$A745)*('Fixed assets'!$P$2:$P$1000=Costs!$A745)*('Fixed assets'!$R$2:$R$1000))-SUMPRODUCT(('Fixed assets'!$Q$2:$Q$1000=Costs!S$705)*('Fixed assets'!$U$2:$U$1000>Costs!$A745)*('Fixed assets'!$P$2:$P$1000=Costs!$A745)*('Fixed assets'!$S$2:$S$1000))","v":0},{"$f":"T657+SUMPRODUCT(('Fixed assets'!$Q$2:$Q$1000=Costs!T$705)*('Fixed assets'!$U$2:$U$1000>Costs!$A745)*('Fixed assets'!$P$2:$P$1000=Costs!$A745)*('Fixed assets'!$R$2:$R$1000))-SUMPRODUCT(('Fixed assets'!$Q$2:$Q$1000=Costs!T$705)*('Fixed assets'!$U$2:$U$1000>Costs!$A745)*('Fixed assets'!$P$2:$P$1000=Costs!$A745)*('Fixed assets'!$S$2:$S$1000))","v":0},{"$f":"U657+SUMPRODUCT(('Fixed assets'!$Q$2:$Q$1000=Costs!U$705)*('Fixed assets'!$U$2:$U$1000>Costs!$A745)*('Fixed assets'!$P$2:$P$1000=Costs!$A745)*('Fixed assets'!$R$2:$R$1000))-SUMPRODUCT(('Fixed assets'!$Q$2:$Q$1000=Costs!U$705)*('Fixed assets'!$U$2:$U$1000>Costs!$A745)*('Fixed assets'!$P$2:$P$1000=Costs!$A745)*('Fixed assets'!$S$2:$S$1000))","v":0},{"$f":"V657+SUMPRODUCT(('Fixed assets'!$Q$2:$Q$1000=Costs!V$705)*('Fixed assets'!$U$2:$U$1000>Costs!$A745)*('Fixed assets'!$P$2:$P$1000=Costs!$A745)*('Fixed assets'!$R$2:$R$1000))-SUMPRODUCT(('Fixed assets'!$Q$2:$Q$1000=Costs!V$705)*('Fixed assets'!$U$2:$U$1000>Costs!$A745)*('Fixed assets'!$P$2:$P$1000=Costs!$A745)*('Fixed assets'!$S$2:$S$1000))","v":0},{"$f":"W657+SUMPRODUCT(('Fixed assets'!$Q$2:$Q$1000=Costs!W$705)*('Fixed assets'!$U$2:$U$1000>Costs!$A745)*('Fixed assets'!$P$2:$P$1000=Costs!$A745)*('Fixed assets'!$R$2:$R$1000))-SUMPRODUCT(('Fixed assets'!$Q$2:$Q$1000=Costs!W$705)*('Fixed assets'!$U$2:$U$1000>Costs!$A745)*('Fixed assets'!$P$2:$P$1000=Costs!$A745)*('Fixed assets'!$S$2:$S$1000))","v":0},{"$f":"X657+SUMPRODUCT(('Fixed assets'!$Q$2:$Q$1000=Costs!X$705)*('Fixed assets'!$U$2:$U$1000>Costs!$A745)*('Fixed assets'!$P$2:$P$1000=Costs!$A745)*('Fixed assets'!$R$2:$R$1000))-SUMPRODUCT(('Fixed assets'!$Q$2:$Q$1000=Costs!X$705)*('Fixed assets'!$U$2:$U$1000>Costs!$A745)*('Fixed assets'!$P$2:$P$1000=Costs!$A745)*('Fixed assets'!$S$2:$S$1000))","v":0},{"$f":"Y657+SUMPRODUCT(('Fixed assets'!$Q$2:$Q$1000=Costs!Y$705)*('Fixed assets'!$U$2:$U$1000>Costs!$A745)*('Fixed assets'!$P$2:$P$1000=Costs!$A745)*('Fixed assets'!$R$2:$R$1000))-SUMPRODUCT(('Fixed assets'!$Q$2:$Q$1000=Costs!Y$705)*('Fixed assets'!$U$2:$U$1000>Costs!$A745)*('Fixed assets'!$P$2:$P$1000=Costs!$A745)*('Fixed assets'!$S$2:$S$1000))","v":0},{"$f":"Z657+SUMPRODUCT(('Fixed assets'!$Q$2:$Q$1000=Costs!Z$705)*('Fixed assets'!$U$2:$U$1000>Costs!$A745)*('Fixed assets'!$P$2:$P$1000=Costs!$A745)*('Fixed assets'!$R$2:$R$1000))-SUMPRODUCT(('Fixed assets'!$Q$2:$Q$1000=Costs!Z$705)*('Fixed assets'!$U$2:$U$1000>Costs!$A745)*('Fixed assets'!$P$2:$P$1000=Costs!$A745)*('Fixed assets'!$S$2:$S$1000))","v":0},{"$f":"AA657+SUMPRODUCT(('Fixed assets'!$Q$2:$Q$1000=Costs!AA$705)*('Fixed assets'!$U$2:$U$1000>Costs!$A745)*('Fixed assets'!$P$2:$P$1000=Costs!$A745)*('Fixed assets'!$R$2:$R$1000))-SUMPRODUCT(('Fixed assets'!$Q$2:$Q$1000=Costs!AA$705)*('Fixed assets'!$U$2:$U$1000>Costs!$A745)*('Fixed assets'!$P$2:$P$1000=Costs!$A745)*('Fixed assets'!$S$2:$S$1000))","v":0},{"$f":"AB657+SUMPRODUCT(('Fixed assets'!$Q$2:$Q$1000=Costs!AB$705)*('Fixed assets'!$U$2:$U$1000>Costs!$A745)*('Fixed assets'!$P$2:$P$1000=Costs!$A745)*('Fixed assets'!$R$2:$R$1000))-SUMPRODUCT(('Fixed assets'!$Q$2:$Q$1000=Costs!AB$705)*('Fixed assets'!$U$2:$U$1000>Costs!$A745)*('Fixed assets'!$P$2:$P$1000=Costs!$A745)*('Fixed assets'!$S$2:$S$1000))","v":0},{"$f":"AC657+SUMPRODUCT(('Fixed assets'!$Q$2:$Q$1000=Costs!AC$705)*('Fixed assets'!$U$2:$U$1000>Costs!$A745)*('Fixed assets'!$P$2:$P$1000=Costs!$A745)*('Fixed assets'!$R$2:$R$1000))-SUMPRODUCT(('Fixed assets'!$Q$2:$Q$1000=Costs!AC$705)*('Fixed assets'!$U$2:$U$1000>Costs!$A745)*('Fixed assets'!$P$2:$P$1000=Costs!$A745)*('Fixed assets'!$S$2:$S$1000))","v":0},{"$f":"AD657+SUMPRODUCT(('Fixed assets'!$Q$2:$Q$1000=Costs!AD$705)*('Fixed assets'!$U$2:$U$1000>Costs!$A745)*('Fixed assets'!$P$2:$P$1000=Costs!$A745)*('Fixed assets'!$R$2:$R$1000))-SUMPRODUCT(('Fixed assets'!$Q$2:$Q$1000=Costs!AD$705)*('Fixed assets'!$U$2:$U$1000>Costs!$A745)*('Fixed assets'!$P$2:$P$1000=Costs!$A745)*('Fixed assets'!$S$2:$S$1000))","v":0},{"$f":"AE657+SUMPRODUCT(('Fixed assets'!$Q$2:$Q$1000=Costs!AE$705)*('Fixed assets'!$U$2:$U$1000>Costs!$A745)*('Fixed assets'!$P$2:$P$1000=Costs!$A745)*('Fixed assets'!$R$2:$R$1000))-SUMPRODUCT(('Fixed assets'!$Q$2:$Q$1000=Costs!AE$705)*('Fixed assets'!$U$2:$U$1000>Costs!$A745)*('Fixed assets'!$P$2:$P$1000=Costs!$A745)*('Fixed assets'!$S$2:$S$1000))","v":0},{"$f":"AF657+SUMPRODUCT(('Fixed assets'!$Q$2:$Q$1000=Costs!AF$705)*('Fixed assets'!$U$2:$U$1000>Costs!$A745)*('Fixed assets'!$P$2:$P$1000=Costs!$A745)*('Fixed assets'!$R$2:$R$1000))-SUMPRODUCT(('Fixed assets'!$Q$2:$Q$1000=Costs!AF$705)*('Fixed assets'!$U$2:$U$1000>Costs!$A745)*('Fixed assets'!$P$2:$P$1000=Costs!$A745)*('Fixed assets'!$S$2:$S$1000))","v":0},{"$f":"AG657+SUMPRODUCT(('Fixed assets'!$Q$2:$Q$1000=Costs!AG$705)*('Fixed assets'!$U$2:$U$1000>Costs!$A745)*('Fixed assets'!$P$2:$P$1000=Costs!$A745)*('Fixed assets'!$R$2:$R$1000))-SUMPRODUCT(('Fixed assets'!$Q$2:$Q$1000=Costs!AG$705)*('Fixed assets'!$U$2:$U$1000>Costs!$A745)*('Fixed assets'!$P$2:$P$1000=Costs!$A745)*('Fixed assets'!$S$2:$S$1000))","v":0},{"$f":"AH657+SUMPRODUCT(('Fixed assets'!$Q$2:$Q$1000=Costs!AH$705)*('Fixed assets'!$U$2:$U$1000>Costs!$A745)*('Fixed assets'!$P$2:$P$1000=Costs!$A745)*('Fixed assets'!$R$2:$R$1000))-SUMPRODUCT(('Fixed assets'!$Q$2:$Q$1000=Costs!AH$705)*('Fixed assets'!$U$2:$U$1000>Costs!$A745)*('Fixed assets'!$P$2:$P$1000=Costs!$A745)*('Fixed assets'!$S$2:$S$1000))","v":0},{"$f":"AI657+SUMPRODUCT(('Fixed assets'!$Q$2:$Q$1000=Costs!AI$705)*('Fixed assets'!$U$2:$U$1000>Costs!$A745)*('Fixed assets'!$P$2:$P$1000=Costs!$A745)*('Fixed assets'!$R$2:$R$1000))-SUMPRODUCT(('Fixed assets'!$Q$2:$Q$1000=Costs!AI$705)*('Fixed assets'!$U$2:$U$1000>Costs!$A745)*('Fixed assets'!$P$2:$P$1000=Costs!$A745)*('Fixed assets'!$S$2:$S$1000))","v":0},{"$f":"AJ657+SUMPRODUCT(('Fixed assets'!$Q$2:$Q$1000=Costs!AJ$705)*('Fixed assets'!$U$2:$U$1000>Costs!$A745)*('Fixed assets'!$P$2:$P$1000=Costs!$A745)*('Fixed assets'!$R$2:$R$1000))-SUMPRODUCT(('Fixed assets'!$Q$2:$Q$1000=Costs!AJ$705)*('Fixed assets'!$U$2:$U$1000>Costs!$A745)*('Fixed assets'!$P$2:$P$1000=Costs!$A745)*('Fixed assets'!$S$2:$S$1000))","v":0},{"$f":"AK657+SUMPRODUCT(('Fixed assets'!$Q$2:$Q$1000=Costs!AK$705)*('Fixed assets'!$U$2:$U$1000>Costs!$A745)*('Fixed assets'!$P$2:$P$1000=Costs!$A745)*('Fixed assets'!$R$2:$R$1000))-SUMPRODUCT(('Fixed assets'!$Q$2:$Q$1000=Costs!AK$705)*('Fixed assets'!$U$2:$U$1000>Costs!$A745)*('Fixed assets'!$P$2:$P$1000=Costs!$A745)*('Fixed assets'!$S$2:$S$1000))","v":0},{"$f":"AL657+SUMPRODUCT(('Fixed assets'!$Q$2:$Q$1000=Costs!AL$705)*('Fixed assets'!$U$2:$U$1000>Costs!$A745)*('Fixed assets'!$P$2:$P$1000=Costs!$A745)*('Fixed assets'!$R$2:$R$1000))-SUMPRODUCT(('Fixed assets'!$Q$2:$Q$1000=Costs!AL$705)*('Fixed assets'!$U$2:$U$1000>Costs!$A745)*('Fixed assets'!$P$2:$P$1000=Costs!$A745)*('Fixed assets'!$S$2:$S$1000))","v":0},{"$f":"AM657+SUMPRODUCT(('Fixed assets'!$Q$2:$Q$1000=Costs!AM$705)*('Fixed assets'!$U$2:$U$1000>Costs!$A745)*('Fixed assets'!$P$2:$P$1000=Costs!$A745)*('Fixed assets'!$R$2:$R$1000))-SUMPRODUCT(('Fixed assets'!$Q$2:$Q$1000=Costs!AM$705)*('Fixed assets'!$U$2:$U$1000>Costs!$A745)*('Fixed assets'!$P$2:$P$1000=Costs!$A745)*('Fixed assets'!$S$2:$S$1000))","v":0},{"$f":"AN657+SUMPRODUCT(('Fixed assets'!$Q$2:$Q$1000=Costs!AN$705)*('Fixed assets'!$U$2:$U$1000>Costs!$A745)*('Fixed assets'!$P$2:$P$1000=Costs!$A745)*('Fixed assets'!$R$2:$R$1000))-SUMPRODUCT(('Fixed assets'!$Q$2:$Q$1000=Costs!AN$705)*('Fixed assets'!$U$2:$U$1000>Costs!$A745)*('Fixed assets'!$P$2:$P$1000=Costs!$A745)*('Fixed assets'!$S$2:$S$1000))","v":0},{"$f":"AO657+SUMPRODUCT(('Fixed assets'!$Q$2:$Q$1000=Costs!AO$705)*('Fixed assets'!$U$2:$U$1000>Costs!$A745)*('Fixed assets'!$P$2:$P$1000=Costs!$A745)*('Fixed assets'!$R$2:$R$1000))-SUMPRODUCT(('Fixed assets'!$Q$2:$Q$1000=Costs!AO$705)*('Fixed assets'!$U$2:$U$1000>Costs!$A745)*('Fixed assets'!$P$2:$P$1000=Costs!$A745)*('Fixed assets'!$S$2:$S$1000))","v":0},{"$f":"AP657+SUMPRODUCT(('Fixed assets'!$Q$2:$Q$1000=Costs!AP$705)*('Fixed assets'!$U$2:$U$1000>Costs!$A745)*('Fixed assets'!$P$2:$P$1000=Costs!$A745)*('Fixed assets'!$R$2:$R$1000))-SUMPRODUCT(('Fixed assets'!$Q$2:$Q$1000=Costs!AP$705)*('Fixed assets'!$U$2:$U$1000>Costs!$A745)*('Fixed assets'!$P$2:$P$1000=Costs!$A745)*('Fixed assets'!$S$2:$S$1000))","v":0},{"$f":"AQ657+SUMPRODUCT(('Fixed assets'!$Q$2:$Q$1000=Costs!AQ$705)*('Fixed assets'!$U$2:$U$1000>Costs!$A745)*('Fixed assets'!$P$2:$P$1000=Costs!$A745)*('Fixed assets'!$R$2:$R$1000))-SUMPRODUCT(('Fixed assets'!$Q$2:$Q$1000=Costs!AQ$705)*('Fixed assets'!$U$2:$U$1000>Costs!$A745)*('Fixed assets'!$P$2:$P$1000=Costs!$A745)*('Fixed assets'!$S$2:$S$1000))","v":0}]
[2055,0,{"$f":"C658+SUMPRODUCT(('Fixed assets'!$Q$2:$Q$1000=Costs!C$705)*('Fixed assets'!$U$2:$U$1000>Costs!$A746)*('Fixed assets'!$P$2:$P$1000=Costs!$A746)*('Fixed assets'!$R$2:$R$1000))-SUMPRODUCT(('Fixed assets'!$Q$2:$Q$1000=Costs!C$705)*('Fixed assets'!$U$2:$U$1000>Costs!$A746)*('Fixed assets'!$P$2:$P$1000=Costs!$A746)*('Fixed assets'!$S$2:$S$1000))","v":0},{"$f":"D658+SUMPRODUCT(('Fixed assets'!$Q$2:$Q$1000=Costs!D$705)*('Fixed assets'!$U$2:$U$1000>Costs!$A746)*('Fixed assets'!$P$2:$P$1000=Costs!$A746)*('Fixed assets'!$R$2:$R$1000))-SUMPRODUCT(('Fixed assets'!$Q$2:$Q$1000=Costs!D$705)*('Fixed assets'!$U$2:$U$1000>Costs!$A746)*('Fixed assets'!$P$2:$P$1000=Costs!$A746)*('Fixed assets'!$S$2:$S$1000))","v":0},{"$f":"E658+SUMPRODUCT(('Fixed assets'!$Q$2:$Q$1000=Costs!E$705)*('Fixed assets'!$U$2:$U$1000>Costs!$A746)*('Fixed assets'!$P$2:$P$1000=Costs!$A746)*('Fixed assets'!$R$2:$R$1000))-SUMPRODUCT(('Fixed assets'!$Q$2:$Q$1000=Costs!E$705)*('Fixed assets'!$U$2:$U$1000>Costs!$A746)*('Fixed assets'!$P$2:$P$1000=Costs!$A746)*('Fixed assets'!$S$2:$S$1000))","v":0},{"$f":"F658+SUMPRODUCT(('Fixed assets'!$Q$2:$Q$1000=Costs!F$705)*('Fixed assets'!$U$2:$U$1000>Costs!$A746)*('Fixed assets'!$P$2:$P$1000=Costs!$A746)*('Fixed assets'!$R$2:$R$1000))-SUMPRODUCT(('Fixed assets'!$Q$2:$Q$1000=Costs!F$705)*('Fixed assets'!$U$2:$U$1000>Costs!$A746)*('Fixed assets'!$P$2:$P$1000=Costs!$A746)*('Fixed assets'!$S$2:$S$1000))","v":0},{"$f":"G658+SUMPRODUCT(('Fixed assets'!$Q$2:$Q$1000=Costs!G$705)*('Fixed assets'!$U$2:$U$1000>Costs!$A746)*('Fixed assets'!$P$2:$P$1000=Costs!$A746)*('Fixed assets'!$R$2:$R$1000))-SUMPRODUCT(('Fixed assets'!$Q$2:$Q$1000=Costs!G$705)*('Fixed assets'!$U$2:$U$1000>Costs!$A746)*('Fixed assets'!$P$2:$P$1000=Costs!$A746)*('Fixed assets'!$S$2:$S$1000))","v":0},{"$f":"H658+SUMPRODUCT(('Fixed assets'!$Q$2:$Q$1000=Costs!H$705)*('Fixed assets'!$U$2:$U$1000>Costs!$A746)*('Fixed assets'!$P$2:$P$1000=Costs!$A746)*('Fixed assets'!$R$2:$R$1000))-SUMPRODUCT(('Fixed assets'!$Q$2:$Q$1000=Costs!H$705)*('Fixed assets'!$U$2:$U$1000>Costs!$A746)*('Fixed assets'!$P$2:$P$1000=Costs!$A746)*('Fixed assets'!$S$2:$S$1000))","v":0},{"$f":"I658+SUMPRODUCT(('Fixed assets'!$Q$2:$Q$1000=Costs!I$705)*('Fixed assets'!$U$2:$U$1000>Costs!$A746)*('Fixed assets'!$P$2:$P$1000=Costs!$A746)*('Fixed assets'!$R$2:$R$1000))-SUMPRODUCT(('Fixed assets'!$Q$2:$Q$1000=Costs!I$705)*('Fixed assets'!$U$2:$U$1000>Costs!$A746)*('Fixed assets'!$P$2:$P$1000=Costs!$A746)*('Fixed assets'!$S$2:$S$1000))","v":0},{"$f":"J658+SUMPRODUCT(('Fixed assets'!$Q$2:$Q$1000=Costs!J$705)*('Fixed assets'!$U$2:$U$1000>Costs!$A746)*('Fixed assets'!$P$2:$P$1000=Costs!$A746)*('Fixed assets'!$R$2:$R$1000))-SUMPRODUCT(('Fixed assets'!$Q$2:$Q$1000=Costs!J$705)*('Fixed assets'!$U$2:$U$1000>Costs!$A746)*('Fixed assets'!$P$2:$P$1000=Costs!$A746)*('Fixed assets'!$S$2:$S$1000))","v":0},{"$f":"K658+SUMPRODUCT(('Fixed assets'!$Q$2:$Q$1000=Costs!K$705)*('Fixed assets'!$U$2:$U$1000>Costs!$A746)*('Fixed assets'!$P$2:$P$1000=Costs!$A746)*('Fixed assets'!$R$2:$R$1000))-SUMPRODUCT(('Fixed assets'!$Q$2:$Q$1000=Costs!K$705)*('Fixed assets'!$U$2:$U$1000>Costs!$A746)*('Fixed assets'!$P$2:$P$1000=Costs!$A746)*('Fixed assets'!$S$2:$S$1000))","v":0},{"$f":"L658+SUMPRODUCT(('Fixed assets'!$Q$2:$Q$1000=Costs!L$705)*('Fixed assets'!$U$2:$U$1000>Costs!$A746)*('Fixed assets'!$P$2:$P$1000=Costs!$A746)*('Fixed assets'!$R$2:$R$1000))-SUMPRODUCT(('Fixed assets'!$Q$2:$Q$1000=Costs!L$705)*('Fixed assets'!$U$2:$U$1000>Costs!$A746)*('Fixed assets'!$P$2:$P$1000=Costs!$A746)*('Fixed assets'!$S$2:$S$1000))","v":0},{"$f":"M658+SUMPRODUCT(('Fixed assets'!$Q$2:$Q$1000=Costs!M$705)*('Fixed assets'!$U$2:$U$1000>Costs!$A746)*('Fixed assets'!$P$2:$P$1000=Costs!$A746)*('Fixed assets'!$R$2:$R$1000))-SUMPRODUCT(('Fixed assets'!$Q$2:$Q$1000=Costs!M$705)*('Fixed assets'!$U$2:$U$1000>Costs!$A746)*('Fixed assets'!$P$2:$P$1000=Costs!$A746)*('Fixed assets'!$S$2:$S$1000))","v":0},{"$f":"N658+SUMPRODUCT(('Fixed assets'!$Q$2:$Q$1000=Costs!N$705)*('Fixed assets'!$U$2:$U$1000>Costs!$A746)*('Fixed assets'!$P$2:$P$1000=Costs!$A746)*('Fixed assets'!$R$2:$R$1000))-SUMPRODUCT(('Fixed assets'!$Q$2:$Q$1000=Costs!N$705)*('Fixed assets'!$U$2:$U$1000>Costs!$A746)*('Fixed assets'!$P$2:$P$1000=Costs!$A746)*('Fixed assets'!$S$2:$S$1000))","v":0},{"$f":"O658+SUMPRODUCT(('Fixed assets'!$Q$2:$Q$1000=Costs!O$705)*('Fixed assets'!$U$2:$U$1000>Costs!$A746)*('Fixed assets'!$P$2:$P$1000=Costs!$A746)*('Fixed assets'!$R$2:$R$1000))-SUMPRODUCT(('Fixed assets'!$Q$2:$Q$1000=Costs!O$705)*('Fixed assets'!$U$2:$U$1000>Costs!$A746)*('Fixed assets'!$P$2:$P$1000=Costs!$A746)*('Fixed assets'!$S$2:$S$1000))","v":0},{"$f":"P658+SUMPRODUCT(('Fixed assets'!$Q$2:$Q$1000=Costs!P$705)*('Fixed assets'!$U$2:$U$1000>Costs!$A746)*('Fixed assets'!$P$2:$P$1000=Costs!$A746)*('Fixed assets'!$R$2:$R$1000))-SUMPRODUCT(('Fixed assets'!$Q$2:$Q$1000=Costs!P$705)*('Fixed assets'!$U$2:$U$1000>Costs!$A746)*('Fixed assets'!$P$2:$P$1000=Costs!$A746)*('Fixed assets'!$S$2:$S$1000))","v":0},{"$f":"Q658+SUMPRODUCT(('Fixed assets'!$Q$2:$Q$1000=Costs!Q$705)*('Fixed assets'!$U$2:$U$1000>Costs!$A746)*('Fixed assets'!$P$2:$P$1000=Costs!$A746)*('Fixed assets'!$R$2:$R$1000))-SUMPRODUCT(('Fixed assets'!$Q$2:$Q$1000=Costs!Q$705)*('Fixed assets'!$U$2:$U$1000>Costs!$A746)*('Fixed assets'!$P$2:$P$1000=Costs!$A746)*('Fixed assets'!$S$2:$S$1000))","v":0},{"$f":"R658+SUMPRODUCT(('Fixed assets'!$Q$2:$Q$1000=Costs!R$705)*('Fixed assets'!$U$2:$U$1000>Costs!$A746)*('Fixed assets'!$P$2:$P$1000=Costs!$A746)*('Fixed assets'!$R$2:$R$1000))-SUMPRODUCT(('Fixed assets'!$Q$2:$Q$1000=Costs!R$705)*('Fixed assets'!$U$2:$U$1000>Costs!$A746)*('Fixed assets'!$P$2:$P$1000=Costs!$A746)*('Fixed assets'!$S$2:$S$1000))","v":0},{"$f":"S658+SUMPRODUCT(('Fixed assets'!$Q$2:$Q$1000=Costs!S$705)*('Fixed assets'!$U$2:$U$1000>Costs!$A746)*('Fixed assets'!$P$2:$P$1000=Costs!$A746)*('Fixed assets'!$R$2:$R$1000))-SUMPRODUCT(('Fixed assets'!$Q$2:$Q$1000=Costs!S$705)*('Fixed assets'!$U$2:$U$1000>Costs!$A746)*('Fixed assets'!$P$2:$P$1000=Costs!$A746)*('Fixed assets'!$S$2:$S$1000))","v":0},{"$f":"T658+SUMPRODUCT(('Fixed assets'!$Q$2:$Q$1000=Costs!T$705)*('Fixed assets'!$U$2:$U$1000>Costs!$A746)*('Fixed assets'!$P$2:$P$1000=Costs!$A746)*('Fixed assets'!$R$2:$R$1000))-SUMPRODUCT(('Fixed assets'!$Q$2:$Q$1000=Costs!T$705)*('Fixed assets'!$U$2:$U$1000>Costs!$A746)*('Fixed assets'!$P$2:$P$1000=Costs!$A746)*('Fixed assets'!$S$2:$S$1000))","v":0},{"$f":"U658+SUMPRODUCT(('Fixed assets'!$Q$2:$Q$1000=Costs!U$705)*('Fixed assets'!$U$2:$U$1000>Costs!$A746)*('Fixed assets'!$P$2:$P$1000=Costs!$A746)*('Fixed assets'!$R$2:$R$1000))-SUMPRODUCT(('Fixed assets'!$Q$2:$Q$1000=Costs!U$705)*('Fixed assets'!$U$2:$U$1000>Costs!$A746)*('Fixed assets'!$P$2:$P$1000=Costs!$A746)*('Fixed assets'!$S$2:$S$1000))","v":0},{"$f":"V658+SUMPRODUCT(('Fixed assets'!$Q$2:$Q$1000=Costs!V$705)*('Fixed assets'!$U$2:$U$1000>Costs!$A746)*('Fixed assets'!$P$2:$P$1000=Costs!$A746)*('Fixed assets'!$R$2:$R$1000))-SUMPRODUCT(('Fixed assets'!$Q$2:$Q$1000=Costs!V$705)*('Fixed assets'!$U$2:$U$1000>Costs!$A746)*('Fixed assets'!$P$2:$P$1000=Costs!$A746)*('Fixed assets'!$S$2:$S$1000))","v":0},{"$f":"W658+SUMPRODUCT(('Fixed assets'!$Q$2:$Q$1000=Costs!W$705)*('Fixed assets'!$U$2:$U$1000>Costs!$A746)*('Fixed assets'!$P$2:$P$1000=Costs!$A746)*('Fixed assets'!$R$2:$R$1000))-SUMPRODUCT(('Fixed assets'!$Q$2:$Q$1000=Costs!W$705)*('Fixed assets'!$U$2:$U$1000>Costs!$A746)*('Fixed assets'!$P$2:$P$1000=Costs!$A746)*('Fixed assets'!$S$2:$S$1000))","v":0},{"$f":"X658+SUMPRODUCT(('Fixed assets'!$Q$2:$Q$1000=Costs!X$705)*('Fixed assets'!$U$2:$U$1000>Costs!$A746)*('Fixed assets'!$P$2:$P$1000=Costs!$A746)*('Fixed assets'!$R$2:$R$1000))-SUMPRODUCT(('Fixed assets'!$Q$2:$Q$1000=Costs!X$705)*('Fixed assets'!$U$2:$U$1000>Costs!$A746)*('Fixed assets'!$P$2:$P$1000=Costs!$A746)*('Fixed assets'!$S$2:$S$1000))","v":0},{"$f":"Y658+SUMPRODUCT(('Fixed assets'!$Q$2:$Q$1000=Costs!Y$705)*('Fixed assets'!$U$2:$U$1000>Costs!$A746)*('Fixed assets'!$P$2:$P$1000=Costs!$A746)*('Fixed assets'!$R$2:$R$1000))-SUMPRODUCT(('Fixed assets'!$Q$2:$Q$1000=Costs!Y$705)*('Fixed assets'!$U$2:$U$1000>Costs!$A746)*('Fixed assets'!$P$2:$P$1000=Costs!$A746)*('Fixed assets'!$S$2:$S$1000))","v":0},{"$f":"Z658+SUMPRODUCT(('Fixed assets'!$Q$2:$Q$1000=Costs!Z$705)*('Fixed assets'!$U$2:$U$1000>Costs!$A746)*('Fixed assets'!$P$2:$P$1000=Costs!$A746)*('Fixed assets'!$R$2:$R$1000))-SUMPRODUCT(('Fixed assets'!$Q$2:$Q$1000=Costs!Z$705)*('Fixed assets'!$U$2:$U$1000>Costs!$A746)*('Fixed assets'!$P$2:$P$1000=Costs!$A746)*('Fixed assets'!$S$2:$S$1000))","v":0},{"$f":"AA658+SUMPRODUCT(('Fixed assets'!$Q$2:$Q$1000=Costs!AA$705)*('Fixed assets'!$U$2:$U$1000>Costs!$A746)*('Fixed assets'!$P$2:$P$1000=Costs!$A746)*('Fixed assets'!$R$2:$R$1000))-SUMPRODUCT(('Fixed assets'!$Q$2:$Q$1000=Costs!AA$705)*('Fixed assets'!$U$2:$U$1000>Costs!$A746)*('Fixed assets'!$P$2:$P$1000=Costs!$A746)*('Fixed assets'!$S$2:$S$1000))","v":0},{"$f":"AB658+SUMPRODUCT(('Fixed assets'!$Q$2:$Q$1000=Costs!AB$705)*('Fixed assets'!$U$2:$U$1000>Costs!$A746)*('Fixed assets'!$P$2:$P$1000=Costs!$A746)*('Fixed assets'!$R$2:$R$1000))-SUMPRODUCT(('Fixed assets'!$Q$2:$Q$1000=Costs!AB$705)*('Fixed assets'!$U$2:$U$1000>Costs!$A746)*('Fixed assets'!$P$2:$P$1000=Costs!$A746)*('Fixed assets'!$S$2:$S$1000))","v":0},{"$f":"AC658+SUMPRODUCT(('Fixed assets'!$Q$2:$Q$1000=Costs!AC$705)*('Fixed assets'!$U$2:$U$1000>Costs!$A746)*('Fixed assets'!$P$2:$P$1000=Costs!$A746)*('Fixed assets'!$R$2:$R$1000))-SUMPRODUCT(('Fixed assets'!$Q$2:$Q$1000=Costs!AC$705)*('Fixed assets'!$U$2:$U$1000>Costs!$A746)*('Fixed assets'!$P$2:$P$1000=Costs!$A746)*('Fixed assets'!$S$2:$S$1000))","v":0},{"$f":"AD658+SUMPRODUCT(('Fixed assets'!$Q$2:$Q$1000=Costs!AD$705)*('Fixed assets'!$U$2:$U$1000>Costs!$A746)*('Fixed assets'!$P$2:$P$1000=Costs!$A746)*('Fixed assets'!$R$2:$R$1000))-SUMPRODUCT(('Fixed assets'!$Q$2:$Q$1000=Costs!AD$705)*('Fixed assets'!$U$2:$U$1000>Costs!$A746)*('Fixed assets'!$P$2:$P$1000=Costs!$A746)*('Fixed assets'!$S$2:$S$1000))","v":0},{"$f":"AE658+SUMPRODUCT(('Fixed assets'!$Q$2:$Q$1000=Costs!AE$705)*('Fixed assets'!$U$2:$U$1000>Costs!$A746)*('Fixed assets'!$P$2:$P$1000=Costs!$A746)*('Fixed assets'!$R$2:$R$1000))-SUMPRODUCT(('Fixed assets'!$Q$2:$Q$1000=Costs!AE$705)*('Fixed assets'!$U$2:$U$1000>Costs!$A746)*('Fixed assets'!$P$2:$P$1000=Costs!$A746)*('Fixed assets'!$S$2:$S$1000))","v":0},{"$f":"AF658+SUMPRODUCT(('Fixed assets'!$Q$2:$Q$1000=Costs!AF$705)*('Fixed assets'!$U$2:$U$1000>Costs!$A746)*('Fixed assets'!$P$2:$P$1000=Costs!$A746)*('Fixed assets'!$R$2:$R$1000))-SUMPRODUCT(('Fixed assets'!$Q$2:$Q$1000=Costs!AF$705)*('Fixed assets'!$U$2:$U$1000>Costs!$A746)*('Fixed assets'!$P$2:$P$1000=Costs!$A746)*('Fixed assets'!$S$2:$S$1000))","v":0},{"$f":"AG658+SUMPRODUCT(('Fixed assets'!$Q$2:$Q$1000=Costs!AG$705)*('Fixed assets'!$U$2:$U$1000>Costs!$A746)*('Fixed assets'!$P$2:$P$1000=Costs!$A746)*('Fixed assets'!$R$2:$R$1000))-SUMPRODUCT(('Fixed assets'!$Q$2:$Q$1000=Costs!AG$705)*('Fixed assets'!$U$2:$U$1000>Costs!$A746)*('Fixed assets'!$P$2:$P$1000=Costs!$A746)*('Fixed assets'!$S$2:$S$1000))","v":0},{"$f":"AH658+SUMPRODUCT(('Fixed assets'!$Q$2:$Q$1000=Costs!AH$705)*('Fixed assets'!$U$2:$U$1000>Costs!$A746)*('Fixed assets'!$P$2:$P$1000=Costs!$A746)*('Fixed assets'!$R$2:$R$1000))-SUMPRODUCT(('Fixed assets'!$Q$2:$Q$1000=Costs!AH$705)*('Fixed assets'!$U$2:$U$1000>Costs!$A746)*('Fixed assets'!$P$2:$P$1000=Costs!$A746)*('Fixed assets'!$S$2:$S$1000))","v":0},{"$f":"AI658+SUMPRODUCT(('Fixed assets'!$Q$2:$Q$1000=Costs!AI$705)*('Fixed assets'!$U$2:$U$1000>Costs!$A746)*('Fixed assets'!$P$2:$P$1000=Costs!$A746)*('Fixed assets'!$R$2:$R$1000))-SUMPRODUCT(('Fixed assets'!$Q$2:$Q$1000=Costs!AI$705)*('Fixed assets'!$U$2:$U$1000>Costs!$A746)*('Fixed assets'!$P$2:$P$1000=Costs!$A746)*('Fixed assets'!$S$2:$S$1000))","v":0},{"$f":"AJ658+SUMPRODUCT(('Fixed assets'!$Q$2:$Q$1000=Costs!AJ$705)*('Fixed assets'!$U$2:$U$1000>Costs!$A746)*('Fixed assets'!$P$2:$P$1000=Costs!$A746)*('Fixed assets'!$R$2:$R$1000))-SUMPRODUCT(('Fixed assets'!$Q$2:$Q$1000=Costs!AJ$705)*('Fixed assets'!$U$2:$U$1000>Costs!$A746)*('Fixed assets'!$P$2:$P$1000=Costs!$A746)*('Fixed assets'!$S$2:$S$1000))","v":0},{"$f":"AK658+SUMPRODUCT(('Fixed assets'!$Q$2:$Q$1000=Costs!AK$705)*('Fixed assets'!$U$2:$U$1000>Costs!$A746)*('Fixed assets'!$P$2:$P$1000=Costs!$A746)*('Fixed assets'!$R$2:$R$1000))-SUMPRODUCT(('Fixed assets'!$Q$2:$Q$1000=Costs!AK$705)*('Fixed assets'!$U$2:$U$1000>Costs!$A746)*('Fixed assets'!$P$2:$P$1000=Costs!$A746)*('Fixed assets'!$S$2:$S$1000))","v":0},{"$f":"AL658+SUMPRODUCT(('Fixed assets'!$Q$2:$Q$1000=Costs!AL$705)*('Fixed assets'!$U$2:$U$1000>Costs!$A746)*('Fixed assets'!$P$2:$P$1000=Costs!$A746)*('Fixed assets'!$R$2:$R$1000))-SUMPRODUCT(('Fixed assets'!$Q$2:$Q$1000=Costs!AL$705)*('Fixed assets'!$U$2:$U$1000>Costs!$A746)*('Fixed assets'!$P$2:$P$1000=Costs!$A746)*('Fixed assets'!$S$2:$S$1000))","v":0},{"$f":"AM658+SUMPRODUCT(('Fixed assets'!$Q$2:$Q$1000=Costs!AM$705)*('Fixed assets'!$U$2:$U$1000>Costs!$A746)*('Fixed assets'!$P$2:$P$1000=Costs!$A746)*('Fixed assets'!$R$2:$R$1000))-SUMPRODUCT(('Fixed assets'!$Q$2:$Q$1000=Costs!AM$705)*('Fixed assets'!$U$2:$U$1000>Costs!$A746)*('Fixed assets'!$P$2:$P$1000=Costs!$A746)*('Fixed assets'!$S$2:$S$1000))","v":0},{"$f":"AN658+SUMPRODUCT(('Fixed assets'!$Q$2:$Q$1000=Costs!AN$705)*('Fixed assets'!$U$2:$U$1000>Costs!$A746)*('Fixed assets'!$P$2:$P$1000=Costs!$A746)*('Fixed assets'!$R$2:$R$1000))-SUMPRODUCT(('Fixed assets'!$Q$2:$Q$1000=Costs!AN$705)*('Fixed assets'!$U$2:$U$1000>Costs!$A746)*('Fixed assets'!$P$2:$P$1000=Costs!$A746)*('Fixed assets'!$S$2:$S$1000))","v":0},{"$f":"AO658+SUMPRODUCT(('Fixed assets'!$Q$2:$Q$1000=Costs!AO$705)*('Fixed assets'!$U$2:$U$1000>Costs!$A746)*('Fixed assets'!$P$2:$P$1000=Costs!$A746)*('Fixed assets'!$R$2:$R$1000))-SUMPRODUCT(('Fixed assets'!$Q$2:$Q$1000=Costs!AO$705)*('Fixed assets'!$U$2:$U$1000>Costs!$A746)*('Fixed assets'!$P$2:$P$1000=Costs!$A746)*('Fixed assets'!$S$2:$S$1000))","v":0},{"$f":"AP658+SUMPRODUCT(('Fixed assets'!$Q$2:$Q$1000=Costs!AP$705)*('Fixed assets'!$U$2:$U$1000>Costs!$A746)*('Fixed assets'!$P$2:$P$1000=Costs!$A746)*('Fixed assets'!$R$2:$R$1000))-SUMPRODUCT(('Fixed assets'!$Q$2:$Q$1000=Costs!AP$705)*('Fixed assets'!$U$2:$U$1000>Costs!$A746)*('Fixed assets'!$P$2:$P$1000=Costs!$A746)*('Fixed assets'!$S$2:$S$1000))","v":0},{"$f":"AQ658+SUMPRODUCT(('Fixed assets'!$Q$2:$Q$1000=Costs!AQ$705)*('Fixed assets'!$U$2:$U$1000>Costs!$A746)*('Fixed assets'!$P$2:$P$1000=Costs!$A746)*('Fixed assets'!$R$2:$R$1000))-SUMPRODUCT(('Fixed assets'!$Q$2:$Q$1000=Costs!AQ$705)*('Fixed assets'!$U$2:$U$1000>Costs!$A746)*('Fixed assets'!$P$2:$P$1000=Costs!$A746)*('Fixed assets'!$S$2:$S$1000))","v":0}]
[2056,0,{"$f":"C659+SUMPRODUCT(('Fixed assets'!$Q$2:$Q$1000=Costs!C$705)*('Fixed assets'!$U$2:$U$1000>Costs!$A747)*('Fixed assets'!$P$2:$P$1000=Costs!$A747)*('Fixed assets'!$R$2:$R$1000))-SUMPRODUCT(('Fixed assets'!$Q$2:$Q$1000=Costs!C$705)*('Fixed assets'!$U$2:$U$1000>Costs!$A747)*('Fixed assets'!$P$2:$P$1000=Costs!$A747)*('Fixed assets'!$S$2:$S$1000))","v":0},{"$f":"D659+SUMPRODUCT(('Fixed assets'!$Q$2:$Q$1000=Costs!D$705)*('Fixed assets'!$U$2:$U$1000>Costs!$A747)*('Fixed assets'!$P$2:$P$1000=Costs!$A747)*('Fixed assets'!$R$2:$R$1000))-SUMPRODUCT(('Fixed assets'!$Q$2:$Q$1000=Costs!D$705)*('Fixed assets'!$U$2:$U$1000>Costs!$A747)*('Fixed assets'!$P$2:$P$1000=Costs!$A747)*('Fixed assets'!$S$2:$S$1000))","v":0},{"$f":"E659+SUMPRODUCT(('Fixed assets'!$Q$2:$Q$1000=Costs!E$705)*('Fixed assets'!$U$2:$U$1000>Costs!$A747)*('Fixed assets'!$P$2:$P$1000=Costs!$A747)*('Fixed assets'!$R$2:$R$1000))-SUMPRODUCT(('Fixed assets'!$Q$2:$Q$1000=Costs!E$705)*('Fixed assets'!$U$2:$U$1000>Costs!$A747)*('Fixed assets'!$P$2:$P$1000=Costs!$A747)*('Fixed assets'!$S$2:$S$1000))","v":0},{"$f":"F659+SUMPRODUCT(('Fixed assets'!$Q$2:$Q$1000=Costs!F$705)*('Fixed assets'!$U$2:$U$1000>Costs!$A747)*('Fixed assets'!$P$2:$P$1000=Costs!$A747)*('Fixed assets'!$R$2:$R$1000))-SUMPRODUCT(('Fixed assets'!$Q$2:$Q$1000=Costs!F$705)*('Fixed assets'!$U$2:$U$1000>Costs!$A747)*('Fixed assets'!$P$2:$P$1000=Costs!$A747)*('Fixed assets'!$S$2:$S$1000))","v":0},{"$f":"G659+SUMPRODUCT(('Fixed assets'!$Q$2:$Q$1000=Costs!G$705)*('Fixed assets'!$U$2:$U$1000>Costs!$A747)*('Fixed assets'!$P$2:$P$1000=Costs!$A747)*('Fixed assets'!$R$2:$R$1000))-SUMPRODUCT(('Fixed assets'!$Q$2:$Q$1000=Costs!G$705)*('Fixed assets'!$U$2:$U$1000>Costs!$A747)*('Fixed assets'!$P$2:$P$1000=Costs!$A747)*('Fixed assets'!$S$2:$S$1000))","v":0},{"$f":"H659+SUMPRODUCT(('Fixed assets'!$Q$2:$Q$1000=Costs!H$705)*('Fixed assets'!$U$2:$U$1000>Costs!$A747)*('Fixed assets'!$P$2:$P$1000=Costs!$A747)*('Fixed assets'!$R$2:$R$1000))-SUMPRODUCT(('Fixed assets'!$Q$2:$Q$1000=Costs!H$705)*('Fixed assets'!$U$2:$U$1000>Costs!$A747)*('Fixed assets'!$P$2:$P$1000=Costs!$A747)*('Fixed assets'!$S$2:$S$1000))","v":0},{"$f":"I659+SUMPRODUCT(('Fixed assets'!$Q$2:$Q$1000=Costs!I$705)*('Fixed assets'!$U$2:$U$1000>Costs!$A747)*('Fixed assets'!$P$2:$P$1000=Costs!$A747)*('Fixed assets'!$R$2:$R$1000))-SUMPRODUCT(('Fixed assets'!$Q$2:$Q$1000=Costs!I$705)*('Fixed assets'!$U$2:$U$1000>Costs!$A747)*('Fixed assets'!$P$2:$P$1000=Costs!$A747)*('Fixed assets'!$S$2:$S$1000))","v":0},{"$f":"J659+SUMPRODUCT(('Fixed assets'!$Q$2:$Q$1000=Costs!J$705)*('Fixed assets'!$U$2:$U$1000>Costs!$A747)*('Fixed assets'!$P$2:$P$1000=Costs!$A747)*('Fixed assets'!$R$2:$R$1000))-SUMPRODUCT(('Fixed assets'!$Q$2:$Q$1000=Costs!J$705)*('Fixed assets'!$U$2:$U$1000>Costs!$A747)*('Fixed assets'!$P$2:$P$1000=Costs!$A747)*('Fixed assets'!$S$2:$S$1000))","v":0},{"$f":"K659+SUMPRODUCT(('Fixed assets'!$Q$2:$Q$1000=Costs!K$705)*('Fixed assets'!$U$2:$U$1000>Costs!$A747)*('Fixed assets'!$P$2:$P$1000=Costs!$A747)*('Fixed assets'!$R$2:$R$1000))-SUMPRODUCT(('Fixed assets'!$Q$2:$Q$1000=Costs!K$705)*('Fixed assets'!$U$2:$U$1000>Costs!$A747)*('Fixed assets'!$P$2:$P$1000=Costs!$A747)*('Fixed assets'!$S$2:$S$1000))","v":0},{"$f":"L659+SUMPRODUCT(('Fixed assets'!$Q$2:$Q$1000=Costs!L$705)*('Fixed assets'!$U$2:$U$1000>Costs!$A747)*('Fixed assets'!$P$2:$P$1000=Costs!$A747)*('Fixed assets'!$R$2:$R$1000))-SUMPRODUCT(('Fixed assets'!$Q$2:$Q$1000=Costs!L$705)*('Fixed assets'!$U$2:$U$1000>Costs!$A747)*('Fixed assets'!$P$2:$P$1000=Costs!$A747)*('Fixed assets'!$S$2:$S$1000))","v":0},{"$f":"M659+SUMPRODUCT(('Fixed assets'!$Q$2:$Q$1000=Costs!M$705)*('Fixed assets'!$U$2:$U$1000>Costs!$A747)*('Fixed assets'!$P$2:$P$1000=Costs!$A747)*('Fixed assets'!$R$2:$R$1000))-SUMPRODUCT(('Fixed assets'!$Q$2:$Q$1000=Costs!M$705)*('Fixed assets'!$U$2:$U$1000>Costs!$A747)*('Fixed assets'!$P$2:$P$1000=Costs!$A747)*('Fixed assets'!$S$2:$S$1000))","v":0},{"$f":"N659+SUMPRODUCT(('Fixed assets'!$Q$2:$Q$1000=Costs!N$705)*('Fixed assets'!$U$2:$U$1000>Costs!$A747)*('Fixed assets'!$P$2:$P$1000=Costs!$A747)*('Fixed assets'!$R$2:$R$1000))-SUMPRODUCT(('Fixed assets'!$Q$2:$Q$1000=Costs!N$705)*('Fixed assets'!$U$2:$U$1000>Costs!$A747)*('Fixed assets'!$P$2:$P$1000=Costs!$A747)*('Fixed assets'!$S$2:$S$1000))","v":0},{"$f":"O659+SUMPRODUCT(('Fixed assets'!$Q$2:$Q$1000=Costs!O$705)*('Fixed assets'!$U$2:$U$1000>Costs!$A747)*('Fixed assets'!$P$2:$P$1000=Costs!$A747)*('Fixed assets'!$R$2:$R$1000))-SUMPRODUCT(('Fixed assets'!$Q$2:$Q$1000=Costs!O$705)*('Fixed assets'!$U$2:$U$1000>Costs!$A747)*('Fixed assets'!$P$2:$P$1000=Costs!$A747)*('Fixed assets'!$S$2:$S$1000))","v":0},{"$f":"P659+SUMPRODUCT(('Fixed assets'!$Q$2:$Q$1000=Costs!P$705)*('Fixed assets'!$U$2:$U$1000>Costs!$A747)*('Fixed assets'!$P$2:$P$1000=Costs!$A747)*('Fixed assets'!$R$2:$R$1000))-SUMPRODUCT(('Fixed assets'!$Q$2:$Q$1000=Costs!P$705)*('Fixed assets'!$U$2:$U$1000>Costs!$A747)*('Fixed assets'!$P$2:$P$1000=Costs!$A747)*('Fixed assets'!$S$2:$S$1000))","v":0},{"$f":"Q659+SUMPRODUCT(('Fixed assets'!$Q$2:$Q$1000=Costs!Q$705)*('Fixed assets'!$U$2:$U$1000>Costs!$A747)*('Fixed assets'!$P$2:$P$1000=Costs!$A747)*('Fixed assets'!$R$2:$R$1000))-SUMPRODUCT(('Fixed assets'!$Q$2:$Q$1000=Costs!Q$705)*('Fixed assets'!$U$2:$U$1000>Costs!$A747)*('Fixed assets'!$P$2:$P$1000=Costs!$A747)*('Fixed assets'!$S$2:$S$1000))","v":0},{"$f":"R659+SUMPRODUCT(('Fixed assets'!$Q$2:$Q$1000=Costs!R$705)*('Fixed assets'!$U$2:$U$1000>Costs!$A747)*('Fixed assets'!$P$2:$P$1000=Costs!$A747)*('Fixed assets'!$R$2:$R$1000))-SUMPRODUCT(('Fixed assets'!$Q$2:$Q$1000=Costs!R$705)*('Fixed assets'!$U$2:$U$1000>Costs!$A747)*('Fixed assets'!$P$2:$P$1000=Costs!$A747)*('Fixed assets'!$S$2:$S$1000))","v":0},{"$f":"S659+SUMPRODUCT(('Fixed assets'!$Q$2:$Q$1000=Costs!S$705)*('Fixed assets'!$U$2:$U$1000>Costs!$A747)*('Fixed assets'!$P$2:$P$1000=Costs!$A747)*('Fixed assets'!$R$2:$R$1000))-SUMPRODUCT(('Fixed assets'!$Q$2:$Q$1000=Costs!S$705)*('Fixed assets'!$U$2:$U$1000>Costs!$A747)*('Fixed assets'!$P$2:$P$1000=Costs!$A747)*('Fixed assets'!$S$2:$S$1000))","v":0},{"$f":"T659+SUMPRODUCT(('Fixed assets'!$Q$2:$Q$1000=Costs!T$705)*('Fixed assets'!$U$2:$U$1000>Costs!$A747)*('Fixed assets'!$P$2:$P$1000=Costs!$A747)*('Fixed assets'!$R$2:$R$1000))-SUMPRODUCT(('Fixed assets'!$Q$2:$Q$1000=Costs!T$705)*('Fixed assets'!$U$2:$U$1000>Costs!$A747)*('Fixed assets'!$P$2:$P$1000=Costs!$A747)*('Fixed assets'!$S$2:$S$1000))","v":0},{"$f":"U659+SUMPRODUCT(('Fixed assets'!$Q$2:$Q$1000=Costs!U$705)*('Fixed assets'!$U$2:$U$1000>Costs!$A747)*('Fixed assets'!$P$2:$P$1000=Costs!$A747)*('Fixed assets'!$R$2:$R$1000))-SUMPRODUCT(('Fixed assets'!$Q$2:$Q$1000=Costs!U$705)*('Fixed assets'!$U$2:$U$1000>Costs!$A747)*('Fixed assets'!$P$2:$P$1000=Costs!$A747)*('Fixed assets'!$S$2:$S$1000))","v":0},{"$f":"V659+SUMPRODUCT(('Fixed assets'!$Q$2:$Q$1000=Costs!V$705)*('Fixed assets'!$U$2:$U$1000>Costs!$A747)*('Fixed assets'!$P$2:$P$1000=Costs!$A747)*('Fixed assets'!$R$2:$R$1000))-SUMPRODUCT(('Fixed assets'!$Q$2:$Q$1000=Costs!V$705)*('Fixed assets'!$U$2:$U$1000>Costs!$A747)*('Fixed assets'!$P$2:$P$1000=Costs!$A747)*('Fixed assets'!$S$2:$S$1000))","v":0},{"$f":"W659+SUMPRODUCT(('Fixed assets'!$Q$2:$Q$1000=Costs!W$705)*('Fixed assets'!$U$2:$U$1000>Costs!$A747)*('Fixed assets'!$P$2:$P$1000=Costs!$A747)*('Fixed assets'!$R$2:$R$1000))-SUMPRODUCT(('Fixed assets'!$Q$2:$Q$1000=Costs!W$705)*('Fixed assets'!$U$2:$U$1000>Costs!$A747)*('Fixed assets'!$P$2:$P$1000=Costs!$A747)*('Fixed assets'!$S$2:$S$1000))","v":0},{"$f":"X659+SUMPRODUCT(('Fixed assets'!$Q$2:$Q$1000=Costs!X$705)*('Fixed assets'!$U$2:$U$1000>Costs!$A747)*('Fixed assets'!$P$2:$P$1000=Costs!$A747)*('Fixed assets'!$R$2:$R$1000))-SUMPRODUCT(('Fixed assets'!$Q$2:$Q$1000=Costs!X$705)*('Fixed assets'!$U$2:$U$1000>Costs!$A747)*('Fixed assets'!$P$2:$P$1000=Costs!$A747)*('Fixed assets'!$S$2:$S$1000))","v":0},{"$f":"Y659+SUMPRODUCT(('Fixed assets'!$Q$2:$Q$1000=Costs!Y$705)*('Fixed assets'!$U$2:$U$1000>Costs!$A747)*('Fixed assets'!$P$2:$P$1000=Costs!$A747)*('Fixed assets'!$R$2:$R$1000))-SUMPRODUCT(('Fixed assets'!$Q$2:$Q$1000=Costs!Y$705)*('Fixed assets'!$U$2:$U$1000>Costs!$A747)*('Fixed assets'!$P$2:$P$1000=Costs!$A747)*('Fixed assets'!$S$2:$S$1000))","v":0},{"$f":"Z659+SUMPRODUCT(('Fixed assets'!$Q$2:$Q$1000=Costs!Z$705)*('Fixed assets'!$U$2:$U$1000>Costs!$A747)*('Fixed assets'!$P$2:$P$1000=Costs!$A747)*('Fixed assets'!$R$2:$R$1000))-SUMPRODUCT(('Fixed assets'!$Q$2:$Q$1000=Costs!Z$705)*('Fixed assets'!$U$2:$U$1000>Costs!$A747)*('Fixed assets'!$P$2:$P$1000=Costs!$A747)*('Fixed assets'!$S$2:$S$1000))","v":0},{"$f":"AA659+SUMPRODUCT(('Fixed assets'!$Q$2:$Q$1000=Costs!AA$705)*('Fixed assets'!$U$2:$U$1000>Costs!$A747)*('Fixed assets'!$P$2:$P$1000=Costs!$A747)*('Fixed assets'!$R$2:$R$1000))-SUMPRODUCT(('Fixed assets'!$Q$2:$Q$1000=Costs!AA$705)*('Fixed assets'!$U$2:$U$1000>Costs!$A747)*('Fixed assets'!$P$2:$P$1000=Costs!$A747)*('Fixed assets'!$S$2:$S$1000))","v":0},{"$f":"AB659+SUMPRODUCT(('Fixed assets'!$Q$2:$Q$1000=Costs!AB$705)*('Fixed assets'!$U$2:$U$1000>Costs!$A747)*('Fixed assets'!$P$2:$P$1000=Costs!$A747)*('Fixed assets'!$R$2:$R$1000))-SUMPRODUCT(('Fixed assets'!$Q$2:$Q$1000=Costs!AB$705)*('Fixed assets'!$U$2:$U$1000>Costs!$A747)*('Fixed assets'!$P$2:$P$1000=Costs!$A747)*('Fixed assets'!$S$2:$S$1000))","v":0},{"$f":"AC659+SUMPRODUCT(('Fixed assets'!$Q$2:$Q$1000=Costs!AC$705)*('Fixed assets'!$U$2:$U$1000>Costs!$A747)*('Fixed assets'!$P$2:$P$1000=Costs!$A747)*('Fixed assets'!$R$2:$R$1000))-SUMPRODUCT(('Fixed assets'!$Q$2:$Q$1000=Costs!AC$705)*('Fixed assets'!$U$2:$U$1000>Costs!$A747)*('Fixed assets'!$P$2:$P$1000=Costs!$A747)*('Fixed assets'!$S$2:$S$1000))","v":0},{"$f":"AD659+SUMPRODUCT(('Fixed assets'!$Q$2:$Q$1000=Costs!AD$705)*('Fixed assets'!$U$2:$U$1000>Costs!$A747)*('Fixed assets'!$P$2:$P$1000=Costs!$A747)*('Fixed assets'!$R$2:$R$1000))-SUMPRODUCT(('Fixed assets'!$Q$2:$Q$1000=Costs!AD$705)*('Fixed assets'!$U$2:$U$1000>Costs!$A747)*('Fixed assets'!$P$2:$P$1000=Costs!$A747)*('Fixed assets'!$S$2:$S$1000))","v":0},{"$f":"AE659+SUMPRODUCT(('Fixed assets'!$Q$2:$Q$1000=Costs!AE$705)*('Fixed assets'!$U$2:$U$1000>Costs!$A747)*('Fixed assets'!$P$2:$P$1000=Costs!$A747)*('Fixed assets'!$R$2:$R$1000))-SUMPRODUCT(('Fixed assets'!$Q$2:$Q$1000=Costs!AE$705)*('Fixed assets'!$U$2:$U$1000>Costs!$A747)*('Fixed assets'!$P$2:$P$1000=Costs!$A747)*('Fixed assets'!$S$2:$S$1000))","v":0},{"$f":"AF659+SUMPRODUCT(('Fixed assets'!$Q$2:$Q$1000=Costs!AF$705)*('Fixed assets'!$U$2:$U$1000>Costs!$A747)*('Fixed assets'!$P$2:$P$1000=Costs!$A747)*('Fixed assets'!$R$2:$R$1000))-SUMPRODUCT(('Fixed assets'!$Q$2:$Q$1000=Costs!AF$705)*('Fixed assets'!$U$2:$U$1000>Costs!$A747)*('Fixed assets'!$P$2:$P$1000=Costs!$A747)*('Fixed assets'!$S$2:$S$1000))","v":0},{"$f":"AG659+SUMPRODUCT(('Fixed assets'!$Q$2:$Q$1000=Costs!AG$705)*('Fixed assets'!$U$2:$U$1000>Costs!$A747)*('Fixed assets'!$P$2:$P$1000=Costs!$A747)*('Fixed assets'!$R$2:$R$1000))-SUMPRODUCT(('Fixed assets'!$Q$2:$Q$1000=Costs!AG$705)*('Fixed assets'!$U$2:$U$1000>Costs!$A747)*('Fixed assets'!$P$2:$P$1000=Costs!$A747)*('Fixed assets'!$S$2:$S$1000))","v":0},{"$f":"AH659+SUMPRODUCT(('Fixed assets'!$Q$2:$Q$1000=Costs!AH$705)*('Fixed assets'!$U$2:$U$1000>Costs!$A747)*('Fixed assets'!$P$2:$P$1000=Costs!$A747)*('Fixed assets'!$R$2:$R$1000))-SUMPRODUCT(('Fixed assets'!$Q$2:$Q$1000=Costs!AH$705)*('Fixed assets'!$U$2:$U$1000>Costs!$A747)*('Fixed assets'!$P$2:$P$1000=Costs!$A747)*('Fixed assets'!$S$2:$S$1000))","v":0},{"$f":"AI659+SUMPRODUCT(('Fixed assets'!$Q$2:$Q$1000=Costs!AI$705)*('Fixed assets'!$U$2:$U$1000>Costs!$A747)*('Fixed assets'!$P$2:$P$1000=Costs!$A747)*('Fixed assets'!$R$2:$R$1000))-SUMPRODUCT(('Fixed assets'!$Q$2:$Q$1000=Costs!AI$705)*('Fixed assets'!$U$2:$U$1000>Costs!$A747)*('Fixed assets'!$P$2:$P$1000=Costs!$A747)*('Fixed assets'!$S$2:$S$1000))","v":0},{"$f":"AJ659+SUMPRODUCT(('Fixed assets'!$Q$2:$Q$1000=Costs!AJ$705)*('Fixed assets'!$U$2:$U$1000>Costs!$A747)*('Fixed assets'!$P$2:$P$1000=Costs!$A747)*('Fixed assets'!$R$2:$R$1000))-SUMPRODUCT(('Fixed assets'!$Q$2:$Q$1000=Costs!AJ$705)*('Fixed assets'!$U$2:$U$1000>Costs!$A747)*('Fixed assets'!$P$2:$P$1000=Costs!$A747)*('Fixed assets'!$S$2:$S$1000))","v":0},{"$f":"AK659+SUMPRODUCT(('Fixed assets'!$Q$2:$Q$1000=Costs!AK$705)*('Fixed assets'!$U$2:$U$1000>Costs!$A747)*('Fixed assets'!$P$2:$P$1000=Costs!$A747)*('Fixed assets'!$R$2:$R$1000))-SUMPRODUCT(('Fixed assets'!$Q$2:$Q$1000=Costs!AK$705)*('Fixed assets'!$U$2:$U$1000>Costs!$A747)*('Fixed assets'!$P$2:$P$1000=Costs!$A747)*('Fixed assets'!$S$2:$S$1000))","v":0},{"$f":"AL659+SUMPRODUCT(('Fixed assets'!$Q$2:$Q$1000=Costs!AL$705)*('Fixed assets'!$U$2:$U$1000>Costs!$A747)*('Fixed assets'!$P$2:$P$1000=Costs!$A747)*('Fixed assets'!$R$2:$R$1000))-SUMPRODUCT(('Fixed assets'!$Q$2:$Q$1000=Costs!AL$705)*('Fixed assets'!$U$2:$U$1000>Costs!$A747)*('Fixed assets'!$P$2:$P$1000=Costs!$A747)*('Fixed assets'!$S$2:$S$1000))","v":0},{"$f":"AM659+SUMPRODUCT(('Fixed assets'!$Q$2:$Q$1000=Costs!AM$705)*('Fixed assets'!$U$2:$U$1000>Costs!$A747)*('Fixed assets'!$P$2:$P$1000=Costs!$A747)*('Fixed assets'!$R$2:$R$1000))-SUMPRODUCT(('Fixed assets'!$Q$2:$Q$1000=Costs!AM$705)*('Fixed assets'!$U$2:$U$1000>Costs!$A747)*('Fixed assets'!$P$2:$P$1000=Costs!$A747)*('Fixed assets'!$S$2:$S$1000))","v":0},{"$f":"AN659+SUMPRODUCT(('Fixed assets'!$Q$2:$Q$1000=Costs!AN$705)*('Fixed assets'!$U$2:$U$1000>Costs!$A747)*('Fixed assets'!$P$2:$P$1000=Costs!$A747)*('Fixed assets'!$R$2:$R$1000))-SUMPRODUCT(('Fixed assets'!$Q$2:$Q$1000=Costs!AN$705)*('Fixed assets'!$U$2:$U$1000>Costs!$A747)*('Fixed assets'!$P$2:$P$1000=Costs!$A747)*('Fixed assets'!$S$2:$S$1000))","v":0},{"$f":"AO659+SUMPRODUCT(('Fixed assets'!$Q$2:$Q$1000=Costs!AO$705)*('Fixed assets'!$U$2:$U$1000>Costs!$A747)*('Fixed assets'!$P$2:$P$1000=Costs!$A747)*('Fixed assets'!$R$2:$R$1000))-SUMPRODUCT(('Fixed assets'!$Q$2:$Q$1000=Costs!AO$705)*('Fixed assets'!$U$2:$U$1000>Costs!$A747)*('Fixed assets'!$P$2:$P$1000=Costs!$A747)*('Fixed assets'!$S$2:$S$1000))","v":0},{"$f":"AP659+SUMPRODUCT(('Fixed assets'!$Q$2:$Q$1000=Costs!AP$705)*('Fixed assets'!$U$2:$U$1000>Costs!$A747)*('Fixed assets'!$P$2:$P$1000=Costs!$A747)*('Fixed assets'!$R$2:$R$1000))-SUMPRODUCT(('Fixed assets'!$Q$2:$Q$1000=Costs!AP$705)*('Fixed assets'!$U$2:$U$1000>Costs!$A747)*('Fixed assets'!$P$2:$P$1000=Costs!$A747)*('Fixed assets'!$S$2:$S$1000))","v":0},{"$f":"AQ659+SUMPRODUCT(('Fixed assets'!$Q$2:$Q$1000=Costs!AQ$705)*('Fixed assets'!$U$2:$U$1000>Costs!$A747)*('Fixed assets'!$P$2:$P$1000=Costs!$A747)*('Fixed assets'!$R$2:$R$1000))-SUMPRODUCT(('Fixed assets'!$Q$2:$Q$1000=Costs!AQ$705)*('Fixed assets'!$U$2:$U$1000>Costs!$A747)*('Fixed assets'!$P$2:$P$1000=Costs!$A747)*('Fixed assets'!$S$2:$S$1000))","v":0}]
[2057,0,{"$f":"C660+SUMPRODUCT(('Fixed assets'!$Q$2:$Q$1000=Costs!C$705)*('Fixed assets'!$U$2:$U$1000>Costs!$A748)*('Fixed assets'!$P$2:$P$1000=Costs!$A748)*('Fixed assets'!$R$2:$R$1000))-SUMPRODUCT(('Fixed assets'!$Q$2:$Q$1000=Costs!C$705)*('Fixed assets'!$U$2:$U$1000>Costs!$A748)*('Fixed assets'!$P$2:$P$1000=Costs!$A748)*('Fixed assets'!$S$2:$S$1000))","v":0},{"$f":"D660+SUMPRODUCT(('Fixed assets'!$Q$2:$Q$1000=Costs!D$705)*('Fixed assets'!$U$2:$U$1000>Costs!$A748)*('Fixed assets'!$P$2:$P$1000=Costs!$A748)*('Fixed assets'!$R$2:$R$1000))-SUMPRODUCT(('Fixed assets'!$Q$2:$Q$1000=Costs!D$705)*('Fixed assets'!$U$2:$U$1000>Costs!$A748)*('Fixed assets'!$P$2:$P$1000=Costs!$A748)*('Fixed assets'!$S$2:$S$1000))","v":0},{"$f":"E660+SUMPRODUCT(('Fixed assets'!$Q$2:$Q$1000=Costs!E$705)*('Fixed assets'!$U$2:$U$1000>Costs!$A748)*('Fixed assets'!$P$2:$P$1000=Costs!$A748)*('Fixed assets'!$R$2:$R$1000))-SUMPRODUCT(('Fixed assets'!$Q$2:$Q$1000=Costs!E$705)*('Fixed assets'!$U$2:$U$1000>Costs!$A748)*('Fixed assets'!$P$2:$P$1000=Costs!$A748)*('Fixed assets'!$S$2:$S$1000))","v":0},{"$f":"F660+SUMPRODUCT(('Fixed assets'!$Q$2:$Q$1000=Costs!F$705)*('Fixed assets'!$U$2:$U$1000>Costs!$A748)*('Fixed assets'!$P$2:$P$1000=Costs!$A748)*('Fixed assets'!$R$2:$R$1000))-SUMPRODUCT(('Fixed assets'!$Q$2:$Q$1000=Costs!F$705)*('Fixed assets'!$U$2:$U$1000>Costs!$A748)*('Fixed assets'!$P$2:$P$1000=Costs!$A748)*('Fixed assets'!$S$2:$S$1000))","v":0},{"$f":"G660+SUMPRODUCT(('Fixed assets'!$Q$2:$Q$1000=Costs!G$705)*('Fixed assets'!$U$2:$U$1000>Costs!$A748)*('Fixed assets'!$P$2:$P$1000=Costs!$A748)*('Fixed assets'!$R$2:$R$1000))-SUMPRODUCT(('Fixed assets'!$Q$2:$Q$1000=Costs!G$705)*('Fixed assets'!$U$2:$U$1000>Costs!$A748)*('Fixed assets'!$P$2:$P$1000=Costs!$A748)*('Fixed assets'!$S$2:$S$1000))","v":0},{"$f":"H660+SUMPRODUCT(('Fixed assets'!$Q$2:$Q$1000=Costs!H$705)*('Fixed assets'!$U$2:$U$1000>Costs!$A748)*('Fixed assets'!$P$2:$P$1000=Costs!$A748)*('Fixed assets'!$R$2:$R$1000))-SUMPRODUCT(('Fixed assets'!$Q$2:$Q$1000=Costs!H$705)*('Fixed assets'!$U$2:$U$1000>Costs!$A748)*('Fixed assets'!$P$2:$P$1000=Costs!$A748)*('Fixed assets'!$S$2:$S$1000))","v":0},{"$f":"I660+SUMPRODUCT(('Fixed assets'!$Q$2:$Q$1000=Costs!I$705)*('Fixed assets'!$U$2:$U$1000>Costs!$A748)*('Fixed assets'!$P$2:$P$1000=Costs!$A748)*('Fixed assets'!$R$2:$R$1000))-SUMPRODUCT(('Fixed assets'!$Q$2:$Q$1000=Costs!I$705)*('Fixed assets'!$U$2:$U$1000>Costs!$A748)*('Fixed assets'!$P$2:$P$1000=Costs!$A748)*('Fixed assets'!$S$2:$S$1000))","v":0},{"$f":"J660+SUMPRODUCT(('Fixed assets'!$Q$2:$Q$1000=Costs!J$705)*('Fixed assets'!$U$2:$U$1000>Costs!$A748)*('Fixed assets'!$P$2:$P$1000=Costs!$A748)*('Fixed assets'!$R$2:$R$1000))-SUMPRODUCT(('Fixed assets'!$Q$2:$Q$1000=Costs!J$705)*('Fixed assets'!$U$2:$U$1000>Costs!$A748)*('Fixed assets'!$P$2:$P$1000=Costs!$A748)*('Fixed assets'!$S$2:$S$1000))","v":0},{"$f":"K660+SUMPRODUCT(('Fixed assets'!$Q$2:$Q$1000=Costs!K$705)*('Fixed assets'!$U$2:$U$1000>Costs!$A748)*('Fixed assets'!$P$2:$P$1000=Costs!$A748)*('Fixed assets'!$R$2:$R$1000))-SUMPRODUCT(('Fixed assets'!$Q$2:$Q$1000=Costs!K$705)*('Fixed assets'!$U$2:$U$1000>Costs!$A748)*('Fixed assets'!$P$2:$P$1000=Costs!$A748)*('Fixed assets'!$S$2:$S$1000))","v":0},{"$f":"L660+SUMPRODUCT(('Fixed assets'!$Q$2:$Q$1000=Costs!L$705)*('Fixed assets'!$U$2:$U$1000>Costs!$A748)*('Fixed assets'!$P$2:$P$1000=Costs!$A748)*('Fixed assets'!$R$2:$R$1000))-SUMPRODUCT(('Fixed assets'!$Q$2:$Q$1000=Costs!L$705)*('Fixed assets'!$U$2:$U$1000>Costs!$A748)*('Fixed assets'!$P$2:$P$1000=Costs!$A748)*('Fixed assets'!$S$2:$S$1000))","v":0},{"$f":"M660+SUMPRODUCT(('Fixed assets'!$Q$2:$Q$1000=Costs!M$705)*('Fixed assets'!$U$2:$U$1000>Costs!$A748)*('Fixed assets'!$P$2:$P$1000=Costs!$A748)*('Fixed assets'!$R$2:$R$1000))-SUMPRODUCT(('Fixed assets'!$Q$2:$Q$1000=Costs!M$705)*('Fixed assets'!$U$2:$U$1000>Costs!$A748)*('Fixed assets'!$P$2:$P$1000=Costs!$A748)*('Fixed assets'!$S$2:$S$1000))","v":0},{"$f":"N660+SUMPRODUCT(('Fixed assets'!$Q$2:$Q$1000=Costs!N$705)*('Fixed assets'!$U$2:$U$1000>Costs!$A748)*('Fixed assets'!$P$2:$P$1000=Costs!$A748)*('Fixed assets'!$R$2:$R$1000))-SUMPRODUCT(('Fixed assets'!$Q$2:$Q$1000=Costs!N$705)*('Fixed assets'!$U$2:$U$1000>Costs!$A748)*('Fixed assets'!$P$2:$P$1000=Costs!$A748)*('Fixed assets'!$S$2:$S$1000))","v":0},{"$f":"O660+SUMPRODUCT(('Fixed assets'!$Q$2:$Q$1000=Costs!O$705)*('Fixed assets'!$U$2:$U$1000>Costs!$A748)*('Fixed assets'!$P$2:$P$1000=Costs!$A748)*('Fixed assets'!$R$2:$R$1000))-SUMPRODUCT(('Fixed assets'!$Q$2:$Q$1000=Costs!O$705)*('Fixed assets'!$U$2:$U$1000>Costs!$A748)*('Fixed assets'!$P$2:$P$1000=Costs!$A748)*('Fixed assets'!$S$2:$S$1000))","v":0},{"$f":"P660+SUMPRODUCT(('Fixed assets'!$Q$2:$Q$1000=Costs!P$705)*('Fixed assets'!$U$2:$U$1000>Costs!$A748)*('Fixed assets'!$P$2:$P$1000=Costs!$A748)*('Fixed assets'!$R$2:$R$1000))-SUMPRODUCT(('Fixed assets'!$Q$2:$Q$1000=Costs!P$705)*('Fixed assets'!$U$2:$U$1000>Costs!$A748)*('Fixed assets'!$P$2:$P$1000=Costs!$A748)*('Fixed assets'!$S$2:$S$1000))","v":0},{"$f":"Q660+SUMPRODUCT(('Fixed assets'!$Q$2:$Q$1000=Costs!Q$705)*('Fixed assets'!$U$2:$U$1000>Costs!$A748)*('Fixed assets'!$P$2:$P$1000=Costs!$A748)*('Fixed assets'!$R$2:$R$1000))-SUMPRODUCT(('Fixed assets'!$Q$2:$Q$1000=Costs!Q$705)*('Fixed assets'!$U$2:$U$1000>Costs!$A748)*('Fixed assets'!$P$2:$P$1000=Costs!$A748)*('Fixed assets'!$S$2:$S$1000))","v":0},{"$f":"R660+SUMPRODUCT(('Fixed assets'!$Q$2:$Q$1000=Costs!R$705)*('Fixed assets'!$U$2:$U$1000>Costs!$A748)*('Fixed assets'!$P$2:$P$1000=Costs!$A748)*('Fixed assets'!$R$2:$R$1000))-SUMPRODUCT(('Fixed assets'!$Q$2:$Q$1000=Costs!R$705)*('Fixed assets'!$U$2:$U$1000>Costs!$A748)*('Fixed assets'!$P$2:$P$1000=Costs!$A748)*('Fixed assets'!$S$2:$S$1000))","v":0},{"$f":"S660+SUMPRODUCT(('Fixed assets'!$Q$2:$Q$1000=Costs!S$705)*('Fixed assets'!$U$2:$U$1000>Costs!$A748)*('Fixed assets'!$P$2:$P$1000=Costs!$A748)*('Fixed assets'!$R$2:$R$1000))-SUMPRODUCT(('Fixed assets'!$Q$2:$Q$1000=Costs!S$705)*('Fixed assets'!$U$2:$U$1000>Costs!$A748)*('Fixed assets'!$P$2:$P$1000=Costs!$A748)*('Fixed assets'!$S$2:$S$1000))","v":0},{"$f":"T660+SUMPRODUCT(('Fixed assets'!$Q$2:$Q$1000=Costs!T$705)*('Fixed assets'!$U$2:$U$1000>Costs!$A748)*('Fixed assets'!$P$2:$P$1000=Costs!$A748)*('Fixed assets'!$R$2:$R$1000))-SUMPRODUCT(('Fixed assets'!$Q$2:$Q$1000=Costs!T$705)*('Fixed assets'!$U$2:$U$1000>Costs!$A748)*('Fixed assets'!$P$2:$P$1000=Costs!$A748)*('Fixed assets'!$S$2:$S$1000))","v":0},{"$f":"U660+SUMPRODUCT(('Fixed assets'!$Q$2:$Q$1000=Costs!U$705)*('Fixed assets'!$U$2:$U$1000>Costs!$A748)*('Fixed assets'!$P$2:$P$1000=Costs!$A748)*('Fixed assets'!$R$2:$R$1000))-SUMPRODUCT(('Fixed assets'!$Q$2:$Q$1000=Costs!U$705)*('Fixed assets'!$U$2:$U$1000>Costs!$A748)*('Fixed assets'!$P$2:$P$1000=Costs!$A748)*('Fixed assets'!$S$2:$S$1000))","v":0},{"$f":"V660+SUMPRODUCT(('Fixed assets'!$Q$2:$Q$1000=Costs!V$705)*('Fixed assets'!$U$2:$U$1000>Costs!$A748)*('Fixed assets'!$P$2:$P$1000=Costs!$A748)*('Fixed assets'!$R$2:$R$1000))-SUMPRODUCT(('Fixed assets'!$Q$2:$Q$1000=Costs!V$705)*('Fixed assets'!$U$2:$U$1000>Costs!$A748)*('Fixed assets'!$P$2:$P$1000=Costs!$A748)*('Fixed assets'!$S$2:$S$1000))","v":0},{"$f":"W660+SUMPRODUCT(('Fixed assets'!$Q$2:$Q$1000=Costs!W$705)*('Fixed assets'!$U$2:$U$1000>Costs!$A748)*('Fixed assets'!$P$2:$P$1000=Costs!$A748)*('Fixed assets'!$R$2:$R$1000))-SUMPRODUCT(('Fixed assets'!$Q$2:$Q$1000=Costs!W$705)*('Fixed assets'!$U$2:$U$1000>Costs!$A748)*('Fixed assets'!$P$2:$P$1000=Costs!$A748)*('Fixed assets'!$S$2:$S$1000))","v":0},{"$f":"X660+SUMPRODUCT(('Fixed assets'!$Q$2:$Q$1000=Costs!X$705)*('Fixed assets'!$U$2:$U$1000>Costs!$A748)*('Fixed assets'!$P$2:$P$1000=Costs!$A748)*('Fixed assets'!$R$2:$R$1000))-SUMPRODUCT(('Fixed assets'!$Q$2:$Q$1000=Costs!X$705)*('Fixed assets'!$U$2:$U$1000>Costs!$A748)*('Fixed assets'!$P$2:$P$1000=Costs!$A748)*('Fixed assets'!$S$2:$S$1000))","v":0},{"$f":"Y660+SUMPRODUCT(('Fixed assets'!$Q$2:$Q$1000=Costs!Y$705)*('Fixed assets'!$U$2:$U$1000>Costs!$A748)*('Fixed assets'!$P$2:$P$1000=Costs!$A748)*('Fixed assets'!$R$2:$R$1000))-SUMPRODUCT(('Fixed assets'!$Q$2:$Q$1000=Costs!Y$705)*('Fixed assets'!$U$2:$U$1000>Costs!$A748)*('Fixed assets'!$P$2:$P$1000=Costs!$A748)*('Fixed assets'!$S$2:$S$1000))","v":0},{"$f":"Z660+SUMPRODUCT(('Fixed assets'!$Q$2:$Q$1000=Costs!Z$705)*('Fixed assets'!$U$2:$U$1000>Costs!$A748)*('Fixed assets'!$P$2:$P$1000=Costs!$A748)*('Fixed assets'!$R$2:$R$1000))-SUMPRODUCT(('Fixed assets'!$Q$2:$Q$1000=Costs!Z$705)*('Fixed assets'!$U$2:$U$1000>Costs!$A748)*('Fixed assets'!$P$2:$P$1000=Costs!$A748)*('Fixed assets'!$S$2:$S$1000))","v":0},{"$f":"AA660+SUMPRODUCT(('Fixed assets'!$Q$2:$Q$1000=Costs!AA$705)*('Fixed assets'!$U$2:$U$1000>Costs!$A748)*('Fixed assets'!$P$2:$P$1000=Costs!$A748)*('Fixed assets'!$R$2:$R$1000))-SUMPRODUCT(('Fixed assets'!$Q$2:$Q$1000=Costs!AA$705)*('Fixed assets'!$U$2:$U$1000>Costs!$A748)*('Fixed assets'!$P$2:$P$1000=Costs!$A748)*('Fixed assets'!$S$2:$S$1000))","v":0},{"$f":"AB660+SUMPRODUCT(('Fixed assets'!$Q$2:$Q$1000=Costs!AB$705)*('Fixed assets'!$U$2:$U$1000>Costs!$A748)*('Fixed assets'!$P$2:$P$1000=Costs!$A748)*('Fixed assets'!$R$2:$R$1000))-SUMPRODUCT(('Fixed assets'!$Q$2:$Q$1000=Costs!AB$705)*('Fixed assets'!$U$2:$U$1000>Costs!$A748)*('Fixed assets'!$P$2:$P$1000=Costs!$A748)*('Fixed assets'!$S$2:$S$1000))","v":0},{"$f":"AC660+SUMPRODUCT(('Fixed assets'!$Q$2:$Q$1000=Costs!AC$705)*('Fixed assets'!$U$2:$U$1000>Costs!$A748)*('Fixed assets'!$P$2:$P$1000=Costs!$A748)*('Fixed assets'!$R$2:$R$1000))-SUMPRODUCT(('Fixed assets'!$Q$2:$Q$1000=Costs!AC$705)*('Fixed assets'!$U$2:$U$1000>Costs!$A748)*('Fixed assets'!$P$2:$P$1000=Costs!$A748)*('Fixed assets'!$S$2:$S$1000))","v":0},{"$f":"AD660+SUMPRODUCT(('Fixed assets'!$Q$2:$Q$1000=Costs!AD$705)*('Fixed assets'!$U$2:$U$1000>Costs!$A748)*('Fixed assets'!$P$2:$P$1000=Costs!$A748)*('Fixed assets'!$R$2:$R$1000))-SUMPRODUCT(('Fixed assets'!$Q$2:$Q$1000=Costs!AD$705)*('Fixed assets'!$U$2:$U$1000>Costs!$A748)*('Fixed assets'!$P$2:$P$1000=Costs!$A748)*('Fixed assets'!$S$2:$S$1000))","v":0},{"$f":"AE660+SUMPRODUCT(('Fixed assets'!$Q$2:$Q$1000=Costs!AE$705)*('Fixed assets'!$U$2:$U$1000>Costs!$A748)*('Fixed assets'!$P$2:$P$1000=Costs!$A748)*('Fixed assets'!$R$2:$R$1000))-SUMPRODUCT(('Fixed assets'!$Q$2:$Q$1000=Costs!AE$705)*('Fixed assets'!$U$2:$U$1000>Costs!$A748)*('Fixed assets'!$P$2:$P$1000=Costs!$A748)*('Fixed assets'!$S$2:$S$1000))","v":0},{"$f":"AF660+SUMPRODUCT(('Fixed assets'!$Q$2:$Q$1000=Costs!AF$705)*('Fixed assets'!$U$2:$U$1000>Costs!$A748)*('Fixed assets'!$P$2:$P$1000=Costs!$A748)*('Fixed assets'!$R$2:$R$1000))-SUMPRODUCT(('Fixed assets'!$Q$2:$Q$1000=Costs!AF$705)*('Fixed assets'!$U$2:$U$1000>Costs!$A748)*('Fixed assets'!$P$2:$P$1000=Costs!$A748)*('Fixed assets'!$S$2:$S$1000))","v":0},{"$f":"AG660+SUMPRODUCT(('Fixed assets'!$Q$2:$Q$1000=Costs!AG$705)*('Fixed assets'!$U$2:$U$1000>Costs!$A748)*('Fixed assets'!$P$2:$P$1000=Costs!$A748)*('Fixed assets'!$R$2:$R$1000))-SUMPRODUCT(('Fixed assets'!$Q$2:$Q$1000=Costs!AG$705)*('Fixed assets'!$U$2:$U$1000>Costs!$A748)*('Fixed assets'!$P$2:$P$1000=Costs!$A748)*('Fixed assets'!$S$2:$S$1000))","v":0},{"$f":"AH660+SUMPRODUCT(('Fixed assets'!$Q$2:$Q$1000=Costs!AH$705)*('Fixed assets'!$U$2:$U$1000>Costs!$A748)*('Fixed assets'!$P$2:$P$1000=Costs!$A748)*('Fixed assets'!$R$2:$R$1000))-SUMPRODUCT(('Fixed assets'!$Q$2:$Q$1000=Costs!AH$705)*('Fixed assets'!$U$2:$U$1000>Costs!$A748)*('Fixed assets'!$P$2:$P$1000=Costs!$A748)*('Fixed assets'!$S$2:$S$1000))","v":0},{"$f":"AI660+SUMPRODUCT(('Fixed assets'!$Q$2:$Q$1000=Costs!AI$705)*('Fixed assets'!$U$2:$U$1000>Costs!$A748)*('Fixed assets'!$P$2:$P$1000=Costs!$A748)*('Fixed assets'!$R$2:$R$1000))-SUMPRODUCT(('Fixed assets'!$Q$2:$Q$1000=Costs!AI$705)*('Fixed assets'!$U$2:$U$1000>Costs!$A748)*('Fixed assets'!$P$2:$P$1000=Costs!$A748)*('Fixed assets'!$S$2:$S$1000))","v":0},{"$f":"AJ660+SUMPRODUCT(('Fixed assets'!$Q$2:$Q$1000=Costs!AJ$705)*('Fixed assets'!$U$2:$U$1000>Costs!$A748)*('Fixed assets'!$P$2:$P$1000=Costs!$A748)*('Fixed assets'!$R$2:$R$1000))-SUMPRODUCT(('Fixed assets'!$Q$2:$Q$1000=Costs!AJ$705)*('Fixed assets'!$U$2:$U$1000>Costs!$A748)*('Fixed assets'!$P$2:$P$1000=Costs!$A748)*('Fixed assets'!$S$2:$S$1000))","v":0},{"$f":"AK660+SUMPRODUCT(('Fixed assets'!$Q$2:$Q$1000=Costs!AK$705)*('Fixed assets'!$U$2:$U$1000>Costs!$A748)*('Fixed assets'!$P$2:$P$1000=Costs!$A748)*('Fixed assets'!$R$2:$R$1000))-SUMPRODUCT(('Fixed assets'!$Q$2:$Q$1000=Costs!AK$705)*('Fixed assets'!$U$2:$U$1000>Costs!$A748)*('Fixed assets'!$P$2:$P$1000=Costs!$A748)*('Fixed assets'!$S$2:$S$1000))","v":0},{"$f":"AL660+SUMPRODUCT(('Fixed assets'!$Q$2:$Q$1000=Costs!AL$705)*('Fixed assets'!$U$2:$U$1000>Costs!$A748)*('Fixed assets'!$P$2:$P$1000=Costs!$A748)*('Fixed assets'!$R$2:$R$1000))-SUMPRODUCT(('Fixed assets'!$Q$2:$Q$1000=Costs!AL$705)*('Fixed assets'!$U$2:$U$1000>Costs!$A748)*('Fixed assets'!$P$2:$P$1000=Costs!$A748)*('Fixed assets'!$S$2:$S$1000))","v":0},{"$f":"AM660+SUMPRODUCT(('Fixed assets'!$Q$2:$Q$1000=Costs!AM$705)*('Fixed assets'!$U$2:$U$1000>Costs!$A748)*('Fixed assets'!$P$2:$P$1000=Costs!$A748)*('Fixed assets'!$R$2:$R$1000))-SUMPRODUCT(('Fixed assets'!$Q$2:$Q$1000=Costs!AM$705)*('Fixed assets'!$U$2:$U$1000>Costs!$A748)*('Fixed assets'!$P$2:$P$1000=Costs!$A748)*('Fixed assets'!$S$2:$S$1000))","v":0},{"$f":"AN660+SUMPRODUCT(('Fixed assets'!$Q$2:$Q$1000=Costs!AN$705)*('Fixed assets'!$U$2:$U$1000>Costs!$A748)*('Fixed assets'!$P$2:$P$1000=Costs!$A748)*('Fixed assets'!$R$2:$R$1000))-SUMPRODUCT(('Fixed assets'!$Q$2:$Q$1000=Costs!AN$705)*('Fixed assets'!$U$2:$U$1000>Costs!$A748)*('Fixed assets'!$P$2:$P$1000=Costs!$A748)*('Fixed assets'!$S$2:$S$1000))","v":0},{"$f":"AO660+SUMPRODUCT(('Fixed assets'!$Q$2:$Q$1000=Costs!AO$705)*('Fixed assets'!$U$2:$U$1000>Costs!$A748)*('Fixed assets'!$P$2:$P$1000=Costs!$A748)*('Fixed assets'!$R$2:$R$1000))-SUMPRODUCT(('Fixed assets'!$Q$2:$Q$1000=Costs!AO$705)*('Fixed assets'!$U$2:$U$1000>Costs!$A748)*('Fixed assets'!$P$2:$P$1000=Costs!$A748)*('Fixed assets'!$S$2:$S$1000))","v":0},{"$f":"AP660+SUMPRODUCT(('Fixed assets'!$Q$2:$Q$1000=Costs!AP$705)*('Fixed assets'!$U$2:$U$1000>Costs!$A748)*('Fixed assets'!$P$2:$P$1000=Costs!$A748)*('Fixed assets'!$R$2:$R$1000))-SUMPRODUCT(('Fixed assets'!$Q$2:$Q$1000=Costs!AP$705)*('Fixed assets'!$U$2:$U$1000>Costs!$A748)*('Fixed assets'!$P$2:$P$1000=Costs!$A748)*('Fixed assets'!$S$2:$S$1000))","v":0},{"$f":"AQ660+SUMPRODUCT(('Fixed assets'!$Q$2:$Q$1000=Costs!AQ$705)*('Fixed assets'!$U$2:$U$1000>Costs!$A748)*('Fixed assets'!$P$2:$P$1000=Costs!$A748)*('Fixed assets'!$R$2:$R$1000))-SUMPRODUCT(('Fixed assets'!$Q$2:$Q$1000=Costs!AQ$705)*('Fixed assets'!$U$2:$U$1000>Costs!$A748)*('Fixed assets'!$P$2:$P$1000=Costs!$A748)*('Fixed assets'!$S$2:$S$1000))","v":0}]
[2058,0,{"$f":"C661+SUMPRODUCT(('Fixed assets'!$Q$2:$Q$1000=Costs!C$705)*('Fixed assets'!$U$2:$U$1000>Costs!$A749)*('Fixed assets'!$P$2:$P$1000=Costs!$A749)*('Fixed assets'!$R$2:$R$1000))-SUMPRODUCT(('Fixed assets'!$Q$2:$Q$1000=Costs!C$705)*('Fixed assets'!$U$2:$U$1000>Costs!$A749)*('Fixed assets'!$P$2:$P$1000=Costs!$A749)*('Fixed assets'!$S$2:$S$1000))","v":0},{"$f":"D661+SUMPRODUCT(('Fixed assets'!$Q$2:$Q$1000=Costs!D$705)*('Fixed assets'!$U$2:$U$1000>Costs!$A749)*('Fixed assets'!$P$2:$P$1000=Costs!$A749)*('Fixed assets'!$R$2:$R$1000))-SUMPRODUCT(('Fixed assets'!$Q$2:$Q$1000=Costs!D$705)*('Fixed assets'!$U$2:$U$1000>Costs!$A749)*('Fixed assets'!$P$2:$P$1000=Costs!$A749)*('Fixed assets'!$S$2:$S$1000))","v":0},{"$f":"E661+SUMPRODUCT(('Fixed assets'!$Q$2:$Q$1000=Costs!E$705)*('Fixed assets'!$U$2:$U$1000>Costs!$A749)*('Fixed assets'!$P$2:$P$1000=Costs!$A749)*('Fixed assets'!$R$2:$R$1000))-SUMPRODUCT(('Fixed assets'!$Q$2:$Q$1000=Costs!E$705)*('Fixed assets'!$U$2:$U$1000>Costs!$A749)*('Fixed assets'!$P$2:$P$1000=Costs!$A749)*('Fixed assets'!$S$2:$S$1000))","v":0},{"$f":"F661+SUMPRODUCT(('Fixed assets'!$Q$2:$Q$1000=Costs!F$705)*('Fixed assets'!$U$2:$U$1000>Costs!$A749)*('Fixed assets'!$P$2:$P$1000=Costs!$A749)*('Fixed assets'!$R$2:$R$1000))-SUMPRODUCT(('Fixed assets'!$Q$2:$Q$1000=Costs!F$705)*('Fixed assets'!$U$2:$U$1000>Costs!$A749)*('Fixed assets'!$P$2:$P$1000=Costs!$A749)*('Fixed assets'!$S$2:$S$1000))","v":0},{"$f":"G661+SUMPRODUCT(('Fixed assets'!$Q$2:$Q$1000=Costs!G$705)*('Fixed assets'!$U$2:$U$1000>Costs!$A749)*('Fixed assets'!$P$2:$P$1000=Costs!$A749)*('Fixed assets'!$R$2:$R$1000))-SUMPRODUCT(('Fixed assets'!$Q$2:$Q$1000=Costs!G$705)*('Fixed assets'!$U$2:$U$1000>Costs!$A749)*('Fixed assets'!$P$2:$P$1000=Costs!$A749)*('Fixed assets'!$S$2:$S$1000))","v":0},{"$f":"H661+SUMPRODUCT(('Fixed assets'!$Q$2:$Q$1000=Costs!H$705)*('Fixed assets'!$U$2:$U$1000>Costs!$A749)*('Fixed assets'!$P$2:$P$1000=Costs!$A749)*('Fixed assets'!$R$2:$R$1000))-SUMPRODUCT(('Fixed assets'!$Q$2:$Q$1000=Costs!H$705)*('Fixed assets'!$U$2:$U$1000>Costs!$A749)*('Fixed assets'!$P$2:$P$1000=Costs!$A749)*('Fixed assets'!$S$2:$S$1000))","v":0},{"$f":"I661+SUMPRODUCT(('Fixed assets'!$Q$2:$Q$1000=Costs!I$705)*('Fixed assets'!$U$2:$U$1000>Costs!$A749)*('Fixed assets'!$P$2:$P$1000=Costs!$A749)*('Fixed assets'!$R$2:$R$1000))-SUMPRODUCT(('Fixed assets'!$Q$2:$Q$1000=Costs!I$705)*('Fixed assets'!$U$2:$U$1000>Costs!$A749)*('Fixed assets'!$P$2:$P$1000=Costs!$A749)*('Fixed assets'!$S$2:$S$1000))","v":0},{"$f":"J661+SUMPRODUCT(('Fixed assets'!$Q$2:$Q$1000=Costs!J$705)*('Fixed assets'!$U$2:$U$1000>Costs!$A749)*('Fixed assets'!$P$2:$P$1000=Costs!$A749)*('Fixed assets'!$R$2:$R$1000))-SUMPRODUCT(('Fixed assets'!$Q$2:$Q$1000=Costs!J$705)*('Fixed assets'!$U$2:$U$1000>Costs!$A749)*('Fixed assets'!$P$2:$P$1000=Costs!$A749)*('Fixed assets'!$S$2:$S$1000))","v":0},{"$f":"K661+SUMPRODUCT(('Fixed assets'!$Q$2:$Q$1000=Costs!K$705)*('Fixed assets'!$U$2:$U$1000>Costs!$A749)*('Fixed assets'!$P$2:$P$1000=Costs!$A749)*('Fixed assets'!$R$2:$R$1000))-SUMPRODUCT(('Fixed assets'!$Q$2:$Q$1000=Costs!K$705)*('Fixed assets'!$U$2:$U$1000>Costs!$A749)*('Fixed assets'!$P$2:$P$1000=Costs!$A749)*('Fixed assets'!$S$2:$S$1000))","v":0},{"$f":"L661+SUMPRODUCT(('Fixed assets'!$Q$2:$Q$1000=Costs!L$705)*('Fixed assets'!$U$2:$U$1000>Costs!$A749)*('Fixed assets'!$P$2:$P$1000=Costs!$A749)*('Fixed assets'!$R$2:$R$1000))-SUMPRODUCT(('Fixed assets'!$Q$2:$Q$1000=Costs!L$705)*('Fixed assets'!$U$2:$U$1000>Costs!$A749)*('Fixed assets'!$P$2:$P$1000=Costs!$A749)*('Fixed assets'!$S$2:$S$1000))","v":0},{"$f":"M661+SUMPRODUCT(('Fixed assets'!$Q$2:$Q$1000=Costs!M$705)*('Fixed assets'!$U$2:$U$1000>Costs!$A749)*('Fixed assets'!$P$2:$P$1000=Costs!$A749)*('Fixed assets'!$R$2:$R$1000))-SUMPRODUCT(('Fixed assets'!$Q$2:$Q$1000=Costs!M$705)*('Fixed assets'!$U$2:$U$1000>Costs!$A749)*('Fixed assets'!$P$2:$P$1000=Costs!$A749)*('Fixed assets'!$S$2:$S$1000))","v":0},{"$f":"N661+SUMPRODUCT(('Fixed assets'!$Q$2:$Q$1000=Costs!N$705)*('Fixed assets'!$U$2:$U$1000>Costs!$A749)*('Fixed assets'!$P$2:$P$1000=Costs!$A749)*('Fixed assets'!$R$2:$R$1000))-SUMPRODUCT(('Fixed assets'!$Q$2:$Q$1000=Costs!N$705)*('Fixed assets'!$U$2:$U$1000>Costs!$A749)*('Fixed assets'!$P$2:$P$1000=Costs!$A749)*('Fixed assets'!$S$2:$S$1000))","v":0},{"$f":"O661+SUMPRODUCT(('Fixed assets'!$Q$2:$Q$1000=Costs!O$705)*('Fixed assets'!$U$2:$U$1000>Costs!$A749)*('Fixed assets'!$P$2:$P$1000=Costs!$A749)*('Fixed assets'!$R$2:$R$1000))-SUMPRODUCT(('Fixed assets'!$Q$2:$Q$1000=Costs!O$705)*('Fixed assets'!$U$2:$U$1000>Costs!$A749)*('Fixed assets'!$P$2:$P$1000=Costs!$A749)*('Fixed assets'!$S$2:$S$1000))","v":0},{"$f":"P661+SUMPRODUCT(('Fixed assets'!$Q$2:$Q$1000=Costs!P$705)*('Fixed assets'!$U$2:$U$1000>Costs!$A749)*('Fixed assets'!$P$2:$P$1000=Costs!$A749)*('Fixed assets'!$R$2:$R$1000))-SUMPRODUCT(('Fixed assets'!$Q$2:$Q$1000=Costs!P$705)*('Fixed assets'!$U$2:$U$1000>Costs!$A749)*('Fixed assets'!$P$2:$P$1000=Costs!$A749)*('Fixed assets'!$S$2:$S$1000))","v":0},{"$f":"Q661+SUMPRODUCT(('Fixed assets'!$Q$2:$Q$1000=Costs!Q$705)*('Fixed assets'!$U$2:$U$1000>Costs!$A749)*('Fixed assets'!$P$2:$P$1000=Costs!$A749)*('Fixed assets'!$R$2:$R$1000))-SUMPRODUCT(('Fixed assets'!$Q$2:$Q$1000=Costs!Q$705)*('Fixed assets'!$U$2:$U$1000>Costs!$A749)*('Fixed assets'!$P$2:$P$1000=Costs!$A749)*('Fixed assets'!$S$2:$S$1000))","v":0},{"$f":"R661+SUMPRODUCT(('Fixed assets'!$Q$2:$Q$1000=Costs!R$705)*('Fixed assets'!$U$2:$U$1000>Costs!$A749)*('Fixed assets'!$P$2:$P$1000=Costs!$A749)*('Fixed assets'!$R$2:$R$1000))-SUMPRODUCT(('Fixed assets'!$Q$2:$Q$1000=Costs!R$705)*('Fixed assets'!$U$2:$U$1000>Costs!$A749)*('Fixed assets'!$P$2:$P$1000=Costs!$A749)*('Fixed assets'!$S$2:$S$1000))","v":0},{"$f":"S661+SUMPRODUCT(('Fixed assets'!$Q$2:$Q$1000=Costs!S$705)*('Fixed assets'!$U$2:$U$1000>Costs!$A749)*('Fixed assets'!$P$2:$P$1000=Costs!$A749)*('Fixed assets'!$R$2:$R$1000))-SUMPRODUCT(('Fixed assets'!$Q$2:$Q$1000=Costs!S$705)*('Fixed assets'!$U$2:$U$1000>Costs!$A749)*('Fixed assets'!$P$2:$P$1000=Costs!$A749)*('Fixed assets'!$S$2:$S$1000))","v":0},{"$f":"T661+SUMPRODUCT(('Fixed assets'!$Q$2:$Q$1000=Costs!T$705)*('Fixed assets'!$U$2:$U$1000>Costs!$A749)*('Fixed assets'!$P$2:$P$1000=Costs!$A749)*('Fixed assets'!$R$2:$R$1000))-SUMPRODUCT(('Fixed assets'!$Q$2:$Q$1000=Costs!T$705)*('Fixed assets'!$U$2:$U$1000>Costs!$A749)*('Fixed assets'!$P$2:$P$1000=Costs!$A749)*('Fixed assets'!$S$2:$S$1000))","v":0},{"$f":"U661+SUMPRODUCT(('Fixed assets'!$Q$2:$Q$1000=Costs!U$705)*('Fixed assets'!$U$2:$U$1000>Costs!$A749)*('Fixed assets'!$P$2:$P$1000=Costs!$A749)*('Fixed assets'!$R$2:$R$1000))-SUMPRODUCT(('Fixed assets'!$Q$2:$Q$1000=Costs!U$705)*('Fixed assets'!$U$2:$U$1000>Costs!$A749)*('Fixed assets'!$P$2:$P$1000=Costs!$A749)*('Fixed assets'!$S$2:$S$1000))","v":0},{"$f":"V661+SUMPRODUCT(('Fixed assets'!$Q$2:$Q$1000=Costs!V$705)*('Fixed assets'!$U$2:$U$1000>Costs!$A749)*('Fixed assets'!$P$2:$P$1000=Costs!$A749)*('Fixed assets'!$R$2:$R$1000))-SUMPRODUCT(('Fixed assets'!$Q$2:$Q$1000=Costs!V$705)*('Fixed assets'!$U$2:$U$1000>Costs!$A749)*('Fixed assets'!$P$2:$P$1000=Costs!$A749)*('Fixed assets'!$S$2:$S$1000))","v":0},{"$f":"W661+SUMPRODUCT(('Fixed assets'!$Q$2:$Q$1000=Costs!W$705)*('Fixed assets'!$U$2:$U$1000>Costs!$A749)*('Fixed assets'!$P$2:$P$1000=Costs!$A749)*('Fixed assets'!$R$2:$R$1000))-SUMPRODUCT(('Fixed assets'!$Q$2:$Q$1000=Costs!W$705)*('Fixed assets'!$U$2:$U$1000>Costs!$A749)*('Fixed assets'!$P$2:$P$1000=Costs!$A749)*('Fixed assets'!$S$2:$S$1000))","v":0},{"$f":"X661+SUMPRODUCT(('Fixed assets'!$Q$2:$Q$1000=Costs!X$705)*('Fixed assets'!$U$2:$U$1000>Costs!$A749)*('Fixed assets'!$P$2:$P$1000=Costs!$A749)*('Fixed assets'!$R$2:$R$1000))-SUMPRODUCT(('Fixed assets'!$Q$2:$Q$1000=Costs!X$705)*('Fixed assets'!$U$2:$U$1000>Costs!$A749)*('Fixed assets'!$P$2:$P$1000=Costs!$A749)*('Fixed assets'!$S$2:$S$1000))","v":0},{"$f":"Y661+SUMPRODUCT(('Fixed assets'!$Q$2:$Q$1000=Costs!Y$705)*('Fixed assets'!$U$2:$U$1000>Costs!$A749)*('Fixed assets'!$P$2:$P$1000=Costs!$A749)*('Fixed assets'!$R$2:$R$1000))-SUMPRODUCT(('Fixed assets'!$Q$2:$Q$1000=Costs!Y$705)*('Fixed assets'!$U$2:$U$1000>Costs!$A749)*('Fixed assets'!$P$2:$P$1000=Costs!$A749)*('Fixed assets'!$S$2:$S$1000))","v":0},{"$f":"Z661+SUMPRODUCT(('Fixed assets'!$Q$2:$Q$1000=Costs!Z$705)*('Fixed assets'!$U$2:$U$1000>Costs!$A749)*('Fixed assets'!$P$2:$P$1000=Costs!$A749)*('Fixed assets'!$R$2:$R$1000))-SUMPRODUCT(('Fixed assets'!$Q$2:$Q$1000=Costs!Z$705)*('Fixed assets'!$U$2:$U$1000>Costs!$A749)*('Fixed assets'!$P$2:$P$1000=Costs!$A749)*('Fixed assets'!$S$2:$S$1000))","v":0},{"$f":"AA661+SUMPRODUCT(('Fixed assets'!$Q$2:$Q$1000=Costs!AA$705)*('Fixed assets'!$U$2:$U$1000>Costs!$A749)*('Fixed assets'!$P$2:$P$1000=Costs!$A749)*('Fixed assets'!$R$2:$R$1000))-SUMPRODUCT(('Fixed assets'!$Q$2:$Q$1000=Costs!AA$705)*('Fixed assets'!$U$2:$U$1000>Costs!$A749)*('Fixed assets'!$P$2:$P$1000=Costs!$A749)*('Fixed assets'!$S$2:$S$1000))","v":0},{"$f":"AB661+SUMPRODUCT(('Fixed assets'!$Q$2:$Q$1000=Costs!AB$705)*('Fixed assets'!$U$2:$U$1000>Costs!$A749)*('Fixed assets'!$P$2:$P$1000=Costs!$A749)*('Fixed assets'!$R$2:$R$1000))-SUMPRODUCT(('Fixed assets'!$Q$2:$Q$1000=Costs!AB$705)*('Fixed assets'!$U$2:$U$1000>Costs!$A749)*('Fixed assets'!$P$2:$P$1000=Costs!$A749)*('Fixed assets'!$S$2:$S$1000))","v":0},{"$f":"AC661+SUMPRODUCT(('Fixed assets'!$Q$2:$Q$1000=Costs!AC$705)*('Fixed assets'!$U$2:$U$1000>Costs!$A749)*('Fixed assets'!$P$2:$P$1000=Costs!$A749)*('Fixed assets'!$R$2:$R$1000))-SUMPRODUCT(('Fixed assets'!$Q$2:$Q$1000=Costs!AC$705)*('Fixed assets'!$U$2:$U$1000>Costs!$A749)*('Fixed assets'!$P$2:$P$1000=Costs!$A749)*('Fixed assets'!$S$2:$S$1000))","v":0},{"$f":"AD661+SUMPRODUCT(('Fixed assets'!$Q$2:$Q$1000=Costs!AD$705)*('Fixed assets'!$U$2:$U$1000>Costs!$A749)*('Fixed assets'!$P$2:$P$1000=Costs!$A749)*('Fixed assets'!$R$2:$R$1000))-SUMPRODUCT(('Fixed assets'!$Q$2:$Q$1000=Costs!AD$705)*('Fixed assets'!$U$2:$U$1000>Costs!$A749)*('Fixed assets'!$P$2:$P$1000=Costs!$A749)*('Fixed assets'!$S$2:$S$1000))","v":0},{"$f":"AE661+SUMPRODUCT(('Fixed assets'!$Q$2:$Q$1000=Costs!AE$705)*('Fixed assets'!$U$2:$U$1000>Costs!$A749)*('Fixed assets'!$P$2:$P$1000=Costs!$A749)*('Fixed assets'!$R$2:$R$1000))-SUMPRODUCT(('Fixed assets'!$Q$2:$Q$1000=Costs!AE$705)*('Fixed assets'!$U$2:$U$1000>Costs!$A749)*('Fixed assets'!$P$2:$P$1000=Costs!$A749)*('Fixed assets'!$S$2:$S$1000))","v":0},{"$f":"AF661+SUMPRODUCT(('Fixed assets'!$Q$2:$Q$1000=Costs!AF$705)*('Fixed assets'!$U$2:$U$1000>Costs!$A749)*('Fixed assets'!$P$2:$P$1000=Costs!$A749)*('Fixed assets'!$R$2:$R$1000))-SUMPRODUCT(('Fixed assets'!$Q$2:$Q$1000=Costs!AF$705)*('Fixed assets'!$U$2:$U$1000>Costs!$A749)*('Fixed assets'!$P$2:$P$1000=Costs!$A749)*('Fixed assets'!$S$2:$S$1000))","v":0},{"$f":"AG661+SUMPRODUCT(('Fixed assets'!$Q$2:$Q$1000=Costs!AG$705)*('Fixed assets'!$U$2:$U$1000>Costs!$A749)*('Fixed assets'!$P$2:$P$1000=Costs!$A749)*('Fixed assets'!$R$2:$R$1000))-SUMPRODUCT(('Fixed assets'!$Q$2:$Q$1000=Costs!AG$705)*('Fixed assets'!$U$2:$U$1000>Costs!$A749)*('Fixed assets'!$P$2:$P$1000=Costs!$A749)*('Fixed assets'!$S$2:$S$1000))","v":0},{"$f":"AH661+SUMPRODUCT(('Fixed assets'!$Q$2:$Q$1000=Costs!AH$705)*('Fixed assets'!$U$2:$U$1000>Costs!$A749)*('Fixed assets'!$P$2:$P$1000=Costs!$A749)*('Fixed assets'!$R$2:$R$1000))-SUMPRODUCT(('Fixed assets'!$Q$2:$Q$1000=Costs!AH$705)*('Fixed assets'!$U$2:$U$1000>Costs!$A749)*('Fixed assets'!$P$2:$P$1000=Costs!$A749)*('Fixed assets'!$S$2:$S$1000))","v":0},{"$f":"AI661+SUMPRODUCT(('Fixed assets'!$Q$2:$Q$1000=Costs!AI$705)*('Fixed assets'!$U$2:$U$1000>Costs!$A749)*('Fixed assets'!$P$2:$P$1000=Costs!$A749)*('Fixed assets'!$R$2:$R$1000))-SUMPRODUCT(('Fixed assets'!$Q$2:$Q$1000=Costs!AI$705)*('Fixed assets'!$U$2:$U$1000>Costs!$A749)*('Fixed assets'!$P$2:$P$1000=Costs!$A749)*('Fixed assets'!$S$2:$S$1000))","v":0},{"$f":"AJ661+SUMPRODUCT(('Fixed assets'!$Q$2:$Q$1000=Costs!AJ$705)*('Fixed assets'!$U$2:$U$1000>Costs!$A749)*('Fixed assets'!$P$2:$P$1000=Costs!$A749)*('Fixed assets'!$R$2:$R$1000))-SUMPRODUCT(('Fixed assets'!$Q$2:$Q$1000=Costs!AJ$705)*('Fixed assets'!$U$2:$U$1000>Costs!$A749)*('Fixed assets'!$P$2:$P$1000=Costs!$A749)*('Fixed assets'!$S$2:$S$1000))","v":0},{"$f":"AK661+SUMPRODUCT(('Fixed assets'!$Q$2:$Q$1000=Costs!AK$705)*('Fixed assets'!$U$2:$U$1000>Costs!$A749)*('Fixed assets'!$P$2:$P$1000=Costs!$A749)*('Fixed assets'!$R$2:$R$1000))-SUMPRODUCT(('Fixed assets'!$Q$2:$Q$1000=Costs!AK$705)*('Fixed assets'!$U$2:$U$1000>Costs!$A749)*('Fixed assets'!$P$2:$P$1000=Costs!$A749)*('Fixed assets'!$S$2:$S$1000))","v":0},{"$f":"AL661+SUMPRODUCT(('Fixed assets'!$Q$2:$Q$1000=Costs!AL$705)*('Fixed assets'!$U$2:$U$1000>Costs!$A749)*('Fixed assets'!$P$2:$P$1000=Costs!$A749)*('Fixed assets'!$R$2:$R$1000))-SUMPRODUCT(('Fixed assets'!$Q$2:$Q$1000=Costs!AL$705)*('Fixed assets'!$U$2:$U$1000>Costs!$A749)*('Fixed assets'!$P$2:$P$1000=Costs!$A749)*('Fixed assets'!$S$2:$S$1000))","v":0},{"$f":"AM661+SUMPRODUCT(('Fixed assets'!$Q$2:$Q$1000=Costs!AM$705)*('Fixed assets'!$U$2:$U$1000>Costs!$A749)*('Fixed assets'!$P$2:$P$1000=Costs!$A749)*('Fixed assets'!$R$2:$R$1000))-SUMPRODUCT(('Fixed assets'!$Q$2:$Q$1000=Costs!AM$705)*('Fixed assets'!$U$2:$U$1000>Costs!$A749)*('Fixed assets'!$P$2:$P$1000=Costs!$A749)*('Fixed assets'!$S$2:$S$1000))","v":0},{"$f":"AN661+SUMPRODUCT(('Fixed assets'!$Q$2:$Q$1000=Costs!AN$705)*('Fixed assets'!$U$2:$U$1000>Costs!$A749)*('Fixed assets'!$P$2:$P$1000=Costs!$A749)*('Fixed assets'!$R$2:$R$1000))-SUMPRODUCT(('Fixed assets'!$Q$2:$Q$1000=Costs!AN$705)*('Fixed assets'!$U$2:$U$1000>Costs!$A749)*('Fixed assets'!$P$2:$P$1000=Costs!$A749)*('Fixed assets'!$S$2:$S$1000))","v":0},{"$f":"AO661+SUMPRODUCT(('Fixed assets'!$Q$2:$Q$1000=Costs!AO$705)*('Fixed assets'!$U$2:$U$1000>Costs!$A749)*('Fixed assets'!$P$2:$P$1000=Costs!$A749)*('Fixed assets'!$R$2:$R$1000))-SUMPRODUCT(('Fixed assets'!$Q$2:$Q$1000=Costs!AO$705)*('Fixed assets'!$U$2:$U$1000>Costs!$A749)*('Fixed assets'!$P$2:$P$1000=Costs!$A749)*('Fixed assets'!$S$2:$S$1000))","v":0},{"$f":"AP661+SUMPRODUCT(('Fixed assets'!$Q$2:$Q$1000=Costs!AP$705)*('Fixed assets'!$U$2:$U$1000>Costs!$A749)*('Fixed assets'!$P$2:$P$1000=Costs!$A749)*('Fixed assets'!$R$2:$R$1000))-SUMPRODUCT(('Fixed assets'!$Q$2:$Q$1000=Costs!AP$705)*('Fixed assets'!$U$2:$U$1000>Costs!$A749)*('Fixed assets'!$P$2:$P$1000=Costs!$A749)*('Fixed assets'!$S$2:$S$1000))","v":0},{"$f":"AQ661+SUMPRODUCT(('Fixed assets'!$Q$2:$Q$1000=Costs!AQ$705)*('Fixed assets'!$U$2:$U$1000>Costs!$A749)*('Fixed assets'!$P$2:$P$1000=Costs!$A749)*('Fixed assets'!$R$2:$R$1000))-SUMPRODUCT(('Fixed assets'!$Q$2:$Q$1000=Costs!AQ$705)*('Fixed assets'!$U$2:$U$1000>Costs!$A749)*('Fixed assets'!$P$2:$P$1000=Costs!$A749)*('Fixed assets'!$S$2:$S$1000))","v":0}]
[2059,0,{"$f":"C662+SUMPRODUCT(('Fixed assets'!$Q$2:$Q$1000=Costs!C$705)*('Fixed assets'!$U$2:$U$1000>Costs!$A750)*('Fixed assets'!$P$2:$P$1000=Costs!$A750)*('Fixed assets'!$R$2:$R$1000))-SUMPRODUCT(('Fixed assets'!$Q$2:$Q$1000=Costs!C$705)*('Fixed assets'!$U$2:$U$1000>Costs!$A750)*('Fixed assets'!$P$2:$P$1000=Costs!$A750)*('Fixed assets'!$S$2:$S$1000))","v":0},{"$f":"D662+SUMPRODUCT(('Fixed assets'!$Q$2:$Q$1000=Costs!D$705)*('Fixed assets'!$U$2:$U$1000>Costs!$A750)*('Fixed assets'!$P$2:$P$1000=Costs!$A750)*('Fixed assets'!$R$2:$R$1000))-SUMPRODUCT(('Fixed assets'!$Q$2:$Q$1000=Costs!D$705)*('Fixed assets'!$U$2:$U$1000>Costs!$A750)*('Fixed assets'!$P$2:$P$1000=Costs!$A750)*('Fixed assets'!$S$2:$S$1000))","v":0},{"$f":"E662+SUMPRODUCT(('Fixed assets'!$Q$2:$Q$1000=Costs!E$705)*('Fixed assets'!$U$2:$U$1000>Costs!$A750)*('Fixed assets'!$P$2:$P$1000=Costs!$A750)*('Fixed assets'!$R$2:$R$1000))-SUMPRODUCT(('Fixed assets'!$Q$2:$Q$1000=Costs!E$705)*('Fixed assets'!$U$2:$U$1000>Costs!$A750)*('Fixed assets'!$P$2:$P$1000=Costs!$A750)*('Fixed assets'!$S$2:$S$1000))","v":0},{"$f":"F662+SUMPRODUCT(('Fixed assets'!$Q$2:$Q$1000=Costs!F$705)*('Fixed assets'!$U$2:$U$1000>Costs!$A750)*('Fixed assets'!$P$2:$P$1000=Costs!$A750)*('Fixed assets'!$R$2:$R$1000))-SUMPRODUCT(('Fixed assets'!$Q$2:$Q$1000=Costs!F$705)*('Fixed assets'!$U$2:$U$1000>Costs!$A750)*('Fixed assets'!$P$2:$P$1000=Costs!$A750)*('Fixed assets'!$S$2:$S$1000))","v":0},{"$f":"G662+SUMPRODUCT(('Fixed assets'!$Q$2:$Q$1000=Costs!G$705)*('Fixed assets'!$U$2:$U$1000>Costs!$A750)*('Fixed assets'!$P$2:$P$1000=Costs!$A750)*('Fixed assets'!$R$2:$R$1000))-SUMPRODUCT(('Fixed assets'!$Q$2:$Q$1000=Costs!G$705)*('Fixed assets'!$U$2:$U$1000>Costs!$A750)*('Fixed assets'!$P$2:$P$1000=Costs!$A750)*('Fixed assets'!$S$2:$S$1000))","v":0},{"$f":"H662+SUMPRODUCT(('Fixed assets'!$Q$2:$Q$1000=Costs!H$705)*('Fixed assets'!$U$2:$U$1000>Costs!$A750)*('Fixed assets'!$P$2:$P$1000=Costs!$A750)*('Fixed assets'!$R$2:$R$1000))-SUMPRODUCT(('Fixed assets'!$Q$2:$Q$1000=Costs!H$705)*('Fixed assets'!$U$2:$U$1000>Costs!$A750)*('Fixed assets'!$P$2:$P$1000=Costs!$A750)*('Fixed assets'!$S$2:$S$1000))","v":0},{"$f":"I662+SUMPRODUCT(('Fixed assets'!$Q$2:$Q$1000=Costs!I$705)*('Fixed assets'!$U$2:$U$1000>Costs!$A750)*('Fixed assets'!$P$2:$P$1000=Costs!$A750)*('Fixed assets'!$R$2:$R$1000))-SUMPRODUCT(('Fixed assets'!$Q$2:$Q$1000=Costs!I$705)*('Fixed assets'!$U$2:$U$1000>Costs!$A750)*('Fixed assets'!$P$2:$P$1000=Costs!$A750)*('Fixed assets'!$S$2:$S$1000))","v":0},{"$f":"J662+SUMPRODUCT(('Fixed assets'!$Q$2:$Q$1000=Costs!J$705)*('Fixed assets'!$U$2:$U$1000>Costs!$A750)*('Fixed assets'!$P$2:$P$1000=Costs!$A750)*('Fixed assets'!$R$2:$R$1000))-SUMPRODUCT(('Fixed assets'!$Q$2:$Q$1000=Costs!J$705)*('Fixed assets'!$U$2:$U$1000>Costs!$A750)*('Fixed assets'!$P$2:$P$1000=Costs!$A750)*('Fixed assets'!$S$2:$S$1000))","v":0},{"$f":"K662+SUMPRODUCT(('Fixed assets'!$Q$2:$Q$1000=Costs!K$705)*('Fixed assets'!$U$2:$U$1000>Costs!$A750)*('Fixed assets'!$P$2:$P$1000=Costs!$A750)*('Fixed assets'!$R$2:$R$1000))-SUMPRODUCT(('Fixed assets'!$Q$2:$Q$1000=Costs!K$705)*('Fixed assets'!$U$2:$U$1000>Costs!$A750)*('Fixed assets'!$P$2:$P$1000=Costs!$A750)*('Fixed assets'!$S$2:$S$1000))","v":0},{"$f":"L662+SUMPRODUCT(('Fixed assets'!$Q$2:$Q$1000=Costs!L$705)*('Fixed assets'!$U$2:$U$1000>Costs!$A750)*('Fixed assets'!$P$2:$P$1000=Costs!$A750)*('Fixed assets'!$R$2:$R$1000))-SUMPRODUCT(('Fixed assets'!$Q$2:$Q$1000=Costs!L$705)*('Fixed assets'!$U$2:$U$1000>Costs!$A750)*('Fixed assets'!$P$2:$P$1000=Costs!$A750)*('Fixed assets'!$S$2:$S$1000))","v":0},{"$f":"M662+SUMPRODUCT(('Fixed assets'!$Q$2:$Q$1000=Costs!M$705)*('Fixed assets'!$U$2:$U$1000>Costs!$A750)*('Fixed assets'!$P$2:$P$1000=Costs!$A750)*('Fixed assets'!$R$2:$R$1000))-SUMPRODUCT(('Fixed assets'!$Q$2:$Q$1000=Costs!M$705)*('Fixed assets'!$U$2:$U$1000>Costs!$A750)*('Fixed assets'!$P$2:$P$1000=Costs!$A750)*('Fixed assets'!$S$2:$S$1000))","v":0},{"$f":"N662+SUMPRODUCT(('Fixed assets'!$Q$2:$Q$1000=Costs!N$705)*('Fixed assets'!$U$2:$U$1000>Costs!$A750)*('Fixed assets'!$P$2:$P$1000=Costs!$A750)*('Fixed assets'!$R$2:$R$1000))-SUMPRODUCT(('Fixed assets'!$Q$2:$Q$1000=Costs!N$705)*('Fixed assets'!$U$2:$U$1000>Costs!$A750)*('Fixed assets'!$P$2:$P$1000=Costs!$A750)*('Fixed assets'!$S$2:$S$1000))","v":0},{"$f":"O662+SUMPRODUCT(('Fixed assets'!$Q$2:$Q$1000=Costs!O$705)*('Fixed assets'!$U$2:$U$1000>Costs!$A750)*('Fixed assets'!$P$2:$P$1000=Costs!$A750)*('Fixed assets'!$R$2:$R$1000))-SUMPRODUCT(('Fixed assets'!$Q$2:$Q$1000=Costs!O$705)*('Fixed assets'!$U$2:$U$1000>Costs!$A750)*('Fixed assets'!$P$2:$P$1000=Costs!$A750)*('Fixed assets'!$S$2:$S$1000))","v":0},{"$f":"P662+SUMPRODUCT(('Fixed assets'!$Q$2:$Q$1000=Costs!P$705)*('Fixed assets'!$U$2:$U$1000>Costs!$A750)*('Fixed assets'!$P$2:$P$1000=Costs!$A750)*('Fixed assets'!$R$2:$R$1000))-SUMPRODUCT(('Fixed assets'!$Q$2:$Q$1000=Costs!P$705)*('Fixed assets'!$U$2:$U$1000>Costs!$A750)*('Fixed assets'!$P$2:$P$1000=Costs!$A750)*('Fixed assets'!$S$2:$S$1000))","v":0},{"$f":"Q662+SUMPRODUCT(('Fixed assets'!$Q$2:$Q$1000=Costs!Q$705)*('Fixed assets'!$U$2:$U$1000>Costs!$A750)*('Fixed assets'!$P$2:$P$1000=Costs!$A750)*('Fixed assets'!$R$2:$R$1000))-SUMPRODUCT(('Fixed assets'!$Q$2:$Q$1000=Costs!Q$705)*('Fixed assets'!$U$2:$U$1000>Costs!$A750)*('Fixed assets'!$P$2:$P$1000=Costs!$A750)*('Fixed assets'!$S$2:$S$1000))","v":0},{"$f":"R662+SUMPRODUCT(('Fixed assets'!$Q$2:$Q$1000=Costs!R$705)*('Fixed assets'!$U$2:$U$1000>Costs!$A750)*('Fixed assets'!$P$2:$P$1000=Costs!$A750)*('Fixed assets'!$R$2:$R$1000))-SUMPRODUCT(('Fixed assets'!$Q$2:$Q$1000=Costs!R$705)*('Fixed assets'!$U$2:$U$1000>Costs!$A750)*('Fixed assets'!$P$2:$P$1000=Costs!$A750)*('Fixed assets'!$S$2:$S$1000))","v":0},{"$f":"S662+SUMPRODUCT(('Fixed assets'!$Q$2:$Q$1000=Costs!S$705)*('Fixed assets'!$U$2:$U$1000>Costs!$A750)*('Fixed assets'!$P$2:$P$1000=Costs!$A750)*('Fixed assets'!$R$2:$R$1000))-SUMPRODUCT(('Fixed assets'!$Q$2:$Q$1000=Costs!S$705)*('Fixed assets'!$U$2:$U$1000>Costs!$A750)*('Fixed assets'!$P$2:$P$1000=Costs!$A750)*('Fixed assets'!$S$2:$S$1000))","v":0},{"$f":"T662+SUMPRODUCT(('Fixed assets'!$Q$2:$Q$1000=Costs!T$705)*('Fixed assets'!$U$2:$U$1000>Costs!$A750)*('Fixed assets'!$P$2:$P$1000=Costs!$A750)*('Fixed assets'!$R$2:$R$1000))-SUMPRODUCT(('Fixed assets'!$Q$2:$Q$1000=Costs!T$705)*('Fixed assets'!$U$2:$U$1000>Costs!$A750)*('Fixed assets'!$P$2:$P$1000=Costs!$A750)*('Fixed assets'!$S$2:$S$1000))","v":0},{"$f":"U662+SUMPRODUCT(('Fixed assets'!$Q$2:$Q$1000=Costs!U$705)*('Fixed assets'!$U$2:$U$1000>Costs!$A750)*('Fixed assets'!$P$2:$P$1000=Costs!$A750)*('Fixed assets'!$R$2:$R$1000))-SUMPRODUCT(('Fixed assets'!$Q$2:$Q$1000=Costs!U$705)*('Fixed assets'!$U$2:$U$1000>Costs!$A750)*('Fixed assets'!$P$2:$P$1000=Costs!$A750)*('Fixed assets'!$S$2:$S$1000))","v":0},{"$f":"V662+SUMPRODUCT(('Fixed assets'!$Q$2:$Q$1000=Costs!V$705)*('Fixed assets'!$U$2:$U$1000>Costs!$A750)*('Fixed assets'!$P$2:$P$1000=Costs!$A750)*('Fixed assets'!$R$2:$R$1000))-SUMPRODUCT(('Fixed assets'!$Q$2:$Q$1000=Costs!V$705)*('Fixed assets'!$U$2:$U$1000>Costs!$A750)*('Fixed assets'!$P$2:$P$1000=Costs!$A750)*('Fixed assets'!$S$2:$S$1000))","v":0},{"$f":"W662+SUMPRODUCT(('Fixed assets'!$Q$2:$Q$1000=Costs!W$705)*('Fixed assets'!$U$2:$U$1000>Costs!$A750)*('Fixed assets'!$P$2:$P$1000=Costs!$A750)*('Fixed assets'!$R$2:$R$1000))-SUMPRODUCT(('Fixed assets'!$Q$2:$Q$1000=Costs!W$705)*('Fixed assets'!$U$2:$U$1000>Costs!$A750)*('Fixed assets'!$P$2:$P$1000=Costs!$A750)*('Fixed assets'!$S$2:$S$1000))","v":0},{"$f":"X662+SUMPRODUCT(('Fixed assets'!$Q$2:$Q$1000=Costs!X$705)*('Fixed assets'!$U$2:$U$1000>Costs!$A750)*('Fixed assets'!$P$2:$P$1000=Costs!$A750)*('Fixed assets'!$R$2:$R$1000))-SUMPRODUCT(('Fixed assets'!$Q$2:$Q$1000=Costs!X$705)*('Fixed assets'!$U$2:$U$1000>Costs!$A750)*('Fixed assets'!$P$2:$P$1000=Costs!$A750)*('Fixed assets'!$S$2:$S$1000))","v":0},{"$f":"Y662+SUMPRODUCT(('Fixed assets'!$Q$2:$Q$1000=Costs!Y$705)*('Fixed assets'!$U$2:$U$1000>Costs!$A750)*('Fixed assets'!$P$2:$P$1000=Costs!$A750)*('Fixed assets'!$R$2:$R$1000))-SUMPRODUCT(('Fixed assets'!$Q$2:$Q$1000=Costs!Y$705)*('Fixed assets'!$U$2:$U$1000>Costs!$A750)*('Fixed assets'!$P$2:$P$1000=Costs!$A750)*('Fixed assets'!$S$2:$S$1000))","v":0},{"$f":"Z662+SUMPRODUCT(('Fixed assets'!$Q$2:$Q$1000=Costs!Z$705)*('Fixed assets'!$U$2:$U$1000>Costs!$A750)*('Fixed assets'!$P$2:$P$1000=Costs!$A750)*('Fixed assets'!$R$2:$R$1000))-SUMPRODUCT(('Fixed assets'!$Q$2:$Q$1000=Costs!Z$705)*('Fixed assets'!$U$2:$U$1000>Costs!$A750)*('Fixed assets'!$P$2:$P$1000=Costs!$A750)*('Fixed assets'!$S$2:$S$1000))","v":0},{"$f":"AA662+SUMPRODUCT(('Fixed assets'!$Q$2:$Q$1000=Costs!AA$705)*('Fixed assets'!$U$2:$U$1000>Costs!$A750)*('Fixed assets'!$P$2:$P$1000=Costs!$A750)*('Fixed assets'!$R$2:$R$1000))-SUMPRODUCT(('Fixed assets'!$Q$2:$Q$1000=Costs!AA$705)*('Fixed assets'!$U$2:$U$1000>Costs!$A750)*('Fixed assets'!$P$2:$P$1000=Costs!$A750)*('Fixed assets'!$S$2:$S$1000))","v":0},{"$f":"AB662+SUMPRODUCT(('Fixed assets'!$Q$2:$Q$1000=Costs!AB$705)*('Fixed assets'!$U$2:$U$1000>Costs!$A750)*('Fixed assets'!$P$2:$P$1000=Costs!$A750)*('Fixed assets'!$R$2:$R$1000))-SUMPRODUCT(('Fixed assets'!$Q$2:$Q$1000=Costs!AB$705)*('Fixed assets'!$U$2:$U$1000>Costs!$A750)*('Fixed assets'!$P$2:$P$1000=Costs!$A750)*('Fixed assets'!$S$2:$S$1000))","v":0},{"$f":"AC662+SUMPRODUCT(('Fixed assets'!$Q$2:$Q$1000=Costs!AC$705)*('Fixed assets'!$U$2:$U$1000>Costs!$A750)*('Fixed assets'!$P$2:$P$1000=Costs!$A750)*('Fixed assets'!$R$2:$R$1000))-SUMPRODUCT(('Fixed assets'!$Q$2:$Q$1000=Costs!AC$705)*('Fixed assets'!$U$2:$U$1000>Costs!$A750)*('Fixed assets'!$P$2:$P$1000=Costs!$A750)*('Fixed assets'!$S$2:$S$1000))","v":0},{"$f":"AD662+SUMPRODUCT(('Fixed assets'!$Q$2:$Q$1000=Costs!AD$705)*('Fixed assets'!$U$2:$U$1000>Costs!$A750)*('Fixed assets'!$P$2:$P$1000=Costs!$A750)*('Fixed assets'!$R$2:$R$1000))-SUMPRODUCT(('Fixed assets'!$Q$2:$Q$1000=Costs!AD$705)*('Fixed assets'!$U$2:$U$1000>Costs!$A750)*('Fixed assets'!$P$2:$P$1000=Costs!$A750)*('Fixed assets'!$S$2:$S$1000))","v":0},{"$f":"AE662+SUMPRODUCT(('Fixed assets'!$Q$2:$Q$1000=Costs!AE$705)*('Fixed assets'!$U$2:$U$1000>Costs!$A750)*('Fixed assets'!$P$2:$P$1000=Costs!$A750)*('Fixed assets'!$R$2:$R$1000))-SUMPRODUCT(('Fixed assets'!$Q$2:$Q$1000=Costs!AE$705)*('Fixed assets'!$U$2:$U$1000>Costs!$A750)*('Fixed assets'!$P$2:$P$1000=Costs!$A750)*('Fixed assets'!$S$2:$S$1000))","v":0},{"$f":"AF662+SUMPRODUCT(('Fixed assets'!$Q$2:$Q$1000=Costs!AF$705)*('Fixed assets'!$U$2:$U$1000>Costs!$A750)*('Fixed assets'!$P$2:$P$1000=Costs!$A750)*('Fixed assets'!$R$2:$R$1000))-SUMPRODUCT(('Fixed assets'!$Q$2:$Q$1000=Costs!AF$705)*('Fixed assets'!$U$2:$U$1000>Costs!$A750)*('Fixed assets'!$P$2:$P$1000=Costs!$A750)*('Fixed assets'!$S$2:$S$1000))","v":0},{"$f":"AG662+SUMPRODUCT(('Fixed assets'!$Q$2:$Q$1000=Costs!AG$705)*('Fixed assets'!$U$2:$U$1000>Costs!$A750)*('Fixed assets'!$P$2:$P$1000=Costs!$A750)*('Fixed assets'!$R$2:$R$1000))-SUMPRODUCT(('Fixed assets'!$Q$2:$Q$1000=Costs!AG$705)*('Fixed assets'!$U$2:$U$1000>Costs!$A750)*('Fixed assets'!$P$2:$P$1000=Costs!$A750)*('Fixed assets'!$S$2:$S$1000))","v":0},{"$f":"AH662+SUMPRODUCT(('Fixed assets'!$Q$2:$Q$1000=Costs!AH$705)*('Fixed assets'!$U$2:$U$1000>Costs!$A750)*('Fixed assets'!$P$2:$P$1000=Costs!$A750)*('Fixed assets'!$R$2:$R$1000))-SUMPRODUCT(('Fixed assets'!$Q$2:$Q$1000=Costs!AH$705)*('Fixed assets'!$U$2:$U$1000>Costs!$A750)*('Fixed assets'!$P$2:$P$1000=Costs!$A750)*('Fixed assets'!$S$2:$S$1000))","v":0},{"$f":"AI662+SUMPRODUCT(('Fixed assets'!$Q$2:$Q$1000=Costs!AI$705)*('Fixed assets'!$U$2:$U$1000>Costs!$A750)*('Fixed assets'!$P$2:$P$1000=Costs!$A750)*('Fixed assets'!$R$2:$R$1000))-SUMPRODUCT(('Fixed assets'!$Q$2:$Q$1000=Costs!AI$705)*('Fixed assets'!$U$2:$U$1000>Costs!$A750)*('Fixed assets'!$P$2:$P$1000=Costs!$A750)*('Fixed assets'!$S$2:$S$1000))","v":0},{"$f":"AJ662+SUMPRODUCT(('Fixed assets'!$Q$2:$Q$1000=Costs!AJ$705)*('Fixed assets'!$U$2:$U$1000>Costs!$A750)*('Fixed assets'!$P$2:$P$1000=Costs!$A750)*('Fixed assets'!$R$2:$R$1000))-SUMPRODUCT(('Fixed assets'!$Q$2:$Q$1000=Costs!AJ$705)*('Fixed assets'!$U$2:$U$1000>Costs!$A750)*('Fixed assets'!$P$2:$P$1000=Costs!$A750)*('Fixed assets'!$S$2:$S$1000))","v":0},{"$f":"AK662+SUMPRODUCT(('Fixed assets'!$Q$2:$Q$1000=Costs!AK$705)*('Fixed assets'!$U$2:$U$1000>Costs!$A750)*('Fixed assets'!$P$2:$P$1000=Costs!$A750)*('Fixed assets'!$R$2:$R$1000))-SUMPRODUCT(('Fixed assets'!$Q$2:$Q$1000=Costs!AK$705)*('Fixed assets'!$U$2:$U$1000>Costs!$A750)*('Fixed assets'!$P$2:$P$1000=Costs!$A750)*('Fixed assets'!$S$2:$S$1000))","v":0},{"$f":"AL662+SUMPRODUCT(('Fixed assets'!$Q$2:$Q$1000=Costs!AL$705)*('Fixed assets'!$U$2:$U$1000>Costs!$A750)*('Fixed assets'!$P$2:$P$1000=Costs!$A750)*('Fixed assets'!$R$2:$R$1000))-SUMPRODUCT(('Fixed assets'!$Q$2:$Q$1000=Costs!AL$705)*('Fixed assets'!$U$2:$U$1000>Costs!$A750)*('Fixed assets'!$P$2:$P$1000=Costs!$A750)*('Fixed assets'!$S$2:$S$1000))","v":0},{"$f":"AM662+SUMPRODUCT(('Fixed assets'!$Q$2:$Q$1000=Costs!AM$705)*('Fixed assets'!$U$2:$U$1000>Costs!$A750)*('Fixed assets'!$P$2:$P$1000=Costs!$A750)*('Fixed assets'!$R$2:$R$1000))-SUMPRODUCT(('Fixed assets'!$Q$2:$Q$1000=Costs!AM$705)*('Fixed assets'!$U$2:$U$1000>Costs!$A750)*('Fixed assets'!$P$2:$P$1000=Costs!$A750)*('Fixed assets'!$S$2:$S$1000))","v":0},{"$f":"AN662+SUMPRODUCT(('Fixed assets'!$Q$2:$Q$1000=Costs!AN$705)*('Fixed assets'!$U$2:$U$1000>Costs!$A750)*('Fixed assets'!$P$2:$P$1000=Costs!$A750)*('Fixed assets'!$R$2:$R$1000))-SUMPRODUCT(('Fixed assets'!$Q$2:$Q$1000=Costs!AN$705)*('Fixed assets'!$U$2:$U$1000>Costs!$A750)*('Fixed assets'!$P$2:$P$1000=Costs!$A750)*('Fixed assets'!$S$2:$S$1000))","v":0},{"$f":"AO662+SUMPRODUCT(('Fixed assets'!$Q$2:$Q$1000=Costs!AO$705)*('Fixed assets'!$U$2:$U$1000>Costs!$A750)*('Fixed assets'!$P$2:$P$1000=Costs!$A750)*('Fixed assets'!$R$2:$R$1000))-SUMPRODUCT(('Fixed assets'!$Q$2:$Q$1000=Costs!AO$705)*('Fixed assets'!$U$2:$U$1000>Costs!$A750)*('Fixed assets'!$P$2:$P$1000=Costs!$A750)*('Fixed assets'!$S$2:$S$1000))","v":0},{"$f":"AP662+SUMPRODUCT(('Fixed assets'!$Q$2:$Q$1000=Costs!AP$705)*('Fixed assets'!$U$2:$U$1000>Costs!$A750)*('Fixed assets'!$P$2:$P$1000=Costs!$A750)*('Fixed assets'!$R$2:$R$1000))-SUMPRODUCT(('Fixed assets'!$Q$2:$Q$1000=Costs!AP$705)*('Fixed assets'!$U$2:$U$1000>Costs!$A750)*('Fixed assets'!$P$2:$P$1000=Costs!$A750)*('Fixed assets'!$S$2:$S$1000))","v":0},{"$f":"AQ662+SUMPRODUCT(('Fixed assets'!$Q$2:$Q$1000=Costs!AQ$705)*('Fixed assets'!$U$2:$U$1000>Costs!$A750)*('Fixed assets'!$P$2:$P$1000=Costs!$A750)*('Fixed assets'!$R$2:$R$1000))-SUMPRODUCT(('Fixed assets'!$Q$2:$Q$1000=Costs!AQ$705)*('Fixed assets'!$U$2:$U$1000>Costs!$A750)*('Fixed assets'!$P$2:$P$1000=Costs!$A750)*('Fixed assets'!$S$2:$S$1000))","v":0}]
[2060,0,{"$f":"C663+SUMPRODUCT(('Fixed assets'!$Q$2:$Q$1000=Costs!C$705)*('Fixed assets'!$U$2:$U$1000>Costs!$A751)*('Fixed assets'!$P$2:$P$1000=Costs!$A751)*('Fixed assets'!$R$2:$R$1000))-SUMPRODUCT(('Fixed assets'!$Q$2:$Q$1000=Costs!C$705)*('Fixed assets'!$U$2:$U$1000>Costs!$A751)*('Fixed assets'!$P$2:$P$1000=Costs!$A751)*('Fixed assets'!$S$2:$S$1000))","v":0},{"$f":"D663+SUMPRODUCT(('Fixed assets'!$Q$2:$Q$1000=Costs!D$705)*('Fixed assets'!$U$2:$U$1000>Costs!$A751)*('Fixed assets'!$P$2:$P$1000=Costs!$A751)*('Fixed assets'!$R$2:$R$1000))-SUMPRODUCT(('Fixed assets'!$Q$2:$Q$1000=Costs!D$705)*('Fixed assets'!$U$2:$U$1000>Costs!$A751)*('Fixed assets'!$P$2:$P$1000=Costs!$A751)*('Fixed assets'!$S$2:$S$1000))","v":0},{"$f":"E663+SUMPRODUCT(('Fixed assets'!$Q$2:$Q$1000=Costs!E$705)*('Fixed assets'!$U$2:$U$1000>Costs!$A751)*('Fixed assets'!$P$2:$P$1000=Costs!$A751)*('Fixed assets'!$R$2:$R$1000))-SUMPRODUCT(('Fixed assets'!$Q$2:$Q$1000=Costs!E$705)*('Fixed assets'!$U$2:$U$1000>Costs!$A751)*('Fixed assets'!$P$2:$P$1000=Costs!$A751)*('Fixed assets'!$S$2:$S$1000))","v":0},{"$f":"F663+SUMPRODUCT(('Fixed assets'!$Q$2:$Q$1000=Costs!F$705)*('Fixed assets'!$U$2:$U$1000>Costs!$A751)*('Fixed assets'!$P$2:$P$1000=Costs!$A751)*('Fixed assets'!$R$2:$R$1000))-SUMPRODUCT(('Fixed assets'!$Q$2:$Q$1000=Costs!F$705)*('Fixed assets'!$U$2:$U$1000>Costs!$A751)*('Fixed assets'!$P$2:$P$1000=Costs!$A751)*('Fixed assets'!$S$2:$S$1000))","v":0},{"$f":"G663+SUMPRODUCT(('Fixed assets'!$Q$2:$Q$1000=Costs!G$705)*('Fixed assets'!$U$2:$U$1000>Costs!$A751)*('Fixed assets'!$P$2:$P$1000=Costs!$A751)*('Fixed assets'!$R$2:$R$1000))-SUMPRODUCT(('Fixed assets'!$Q$2:$Q$1000=Costs!G$705)*('Fixed assets'!$U$2:$U$1000>Costs!$A751)*('Fixed assets'!$P$2:$P$1000=Costs!$A751)*('Fixed assets'!$S$2:$S$1000))","v":0},{"$f":"H663+SUMPRODUCT(('Fixed assets'!$Q$2:$Q$1000=Costs!H$705)*('Fixed assets'!$U$2:$U$1000>Costs!$A751)*('Fixed assets'!$P$2:$P$1000=Costs!$A751)*('Fixed assets'!$R$2:$R$1000))-SUMPRODUCT(('Fixed assets'!$Q$2:$Q$1000=Costs!H$705)*('Fixed assets'!$U$2:$U$1000>Costs!$A751)*('Fixed assets'!$P$2:$P$1000=Costs!$A751)*('Fixed assets'!$S$2:$S$1000))","v":0},{"$f":"I663+SUMPRODUCT(('Fixed assets'!$Q$2:$Q$1000=Costs!I$705)*('Fixed assets'!$U$2:$U$1000>Costs!$A751)*('Fixed assets'!$P$2:$P$1000=Costs!$A751)*('Fixed assets'!$R$2:$R$1000))-SUMPRODUCT(('Fixed assets'!$Q$2:$Q$1000=Costs!I$705)*('Fixed assets'!$U$2:$U$1000>Costs!$A751)*('Fixed assets'!$P$2:$P$1000=Costs!$A751)*('Fixed assets'!$S$2:$S$1000))","v":0},{"$f":"J663+SUMPRODUCT(('Fixed assets'!$Q$2:$Q$1000=Costs!J$705)*('Fixed assets'!$U$2:$U$1000>Costs!$A751)*('Fixed assets'!$P$2:$P$1000=Costs!$A751)*('Fixed assets'!$R$2:$R$1000))-SUMPRODUCT(('Fixed assets'!$Q$2:$Q$1000=Costs!J$705)*('Fixed assets'!$U$2:$U$1000>Costs!$A751)*('Fixed assets'!$P$2:$P$1000=Costs!$A751)*('Fixed assets'!$S$2:$S$1000))","v":0},{"$f":"K663+SUMPRODUCT(('Fixed assets'!$Q$2:$Q$1000=Costs!K$705)*('Fixed assets'!$U$2:$U$1000>Costs!$A751)*('Fixed assets'!$P$2:$P$1000=Costs!$A751)*('Fixed assets'!$R$2:$R$1000))-SUMPRODUCT(('Fixed assets'!$Q$2:$Q$1000=Costs!K$705)*('Fixed assets'!$U$2:$U$1000>Costs!$A751)*('Fixed assets'!$P$2:$P$1000=Costs!$A751)*('Fixed assets'!$S$2:$S$1000))","v":0},{"$f":"L663+SUMPRODUCT(('Fixed assets'!$Q$2:$Q$1000=Costs!L$705)*('Fixed assets'!$U$2:$U$1000>Costs!$A751)*('Fixed assets'!$P$2:$P$1000=Costs!$A751)*('Fixed assets'!$R$2:$R$1000))-SUMPRODUCT(('Fixed assets'!$Q$2:$Q$1000=Costs!L$705)*('Fixed assets'!$U$2:$U$1000>Costs!$A751)*('Fixed assets'!$P$2:$P$1000=Costs!$A751)*('Fixed assets'!$S$2:$S$1000))","v":0},{"$f":"M663+SUMPRODUCT(('Fixed assets'!$Q$2:$Q$1000=Costs!M$705)*('Fixed assets'!$U$2:$U$1000>Costs!$A751)*('Fixed assets'!$P$2:$P$1000=Costs!$A751)*('Fixed assets'!$R$2:$R$1000))-SUMPRODUCT(('Fixed assets'!$Q$2:$Q$1000=Costs!M$705)*('Fixed assets'!$U$2:$U$1000>Costs!$A751)*('Fixed assets'!$P$2:$P$1000=Costs!$A751)*('Fixed assets'!$S$2:$S$1000))","v":0},{"$f":"N663+SUMPRODUCT(('Fixed assets'!$Q$2:$Q$1000=Costs!N$705)*('Fixed assets'!$U$2:$U$1000>Costs!$A751)*('Fixed assets'!$P$2:$P$1000=Costs!$A751)*('Fixed assets'!$R$2:$R$1000))-SUMPRODUCT(('Fixed assets'!$Q$2:$Q$1000=Costs!N$705)*('Fixed assets'!$U$2:$U$1000>Costs!$A751)*('Fixed assets'!$P$2:$P$1000=Costs!$A751)*('Fixed assets'!$S$2:$S$1000))","v":0},{"$f":"O663+SUMPRODUCT(('Fixed assets'!$Q$2:$Q$1000=Costs!O$705)*('Fixed assets'!$U$2:$U$1000>Costs!$A751)*('Fixed assets'!$P$2:$P$1000=Costs!$A751)*('Fixed assets'!$R$2:$R$1000))-SUMPRODUCT(('Fixed assets'!$Q$2:$Q$1000=Costs!O$705)*('Fixed assets'!$U$2:$U$1000>Costs!$A751)*('Fixed assets'!$P$2:$P$1000=Costs!$A751)*('Fixed assets'!$S$2:$S$1000))","v":0},{"$f":"P663+SUMPRODUCT(('Fixed assets'!$Q$2:$Q$1000=Costs!P$705)*('Fixed assets'!$U$2:$U$1000>Costs!$A751)*('Fixed assets'!$P$2:$P$1000=Costs!$A751)*('Fixed assets'!$R$2:$R$1000))-SUMPRODUCT(('Fixed assets'!$Q$2:$Q$1000=Costs!P$705)*('Fixed assets'!$U$2:$U$1000>Costs!$A751)*('Fixed assets'!$P$2:$P$1000=Costs!$A751)*('Fixed assets'!$S$2:$S$1000))","v":0},{"$f":"Q663+SUMPRODUCT(('Fixed assets'!$Q$2:$Q$1000=Costs!Q$705)*('Fixed assets'!$U$2:$U$1000>Costs!$A751)*('Fixed assets'!$P$2:$P$1000=Costs!$A751)*('Fixed assets'!$R$2:$R$1000))-SUMPRODUCT(('Fixed assets'!$Q$2:$Q$1000=Costs!Q$705)*('Fixed assets'!$U$2:$U$1000>Costs!$A751)*('Fixed assets'!$P$2:$P$1000=Costs!$A751)*('Fixed assets'!$S$2:$S$1000))","v":0},{"$f":"R663+SUMPRODUCT(('Fixed assets'!$Q$2:$Q$1000=Costs!R$705)*('Fixed assets'!$U$2:$U$1000>Costs!$A751)*('Fixed assets'!$P$2:$P$1000=Costs!$A751)*('Fixed assets'!$R$2:$R$1000))-SUMPRODUCT(('Fixed assets'!$Q$2:$Q$1000=Costs!R$705)*('Fixed assets'!$U$2:$U$1000>Costs!$A751)*('Fixed assets'!$P$2:$P$1000=Costs!$A751)*('Fixed assets'!$S$2:$S$1000))","v":0},{"$f":"S663+SUMPRODUCT(('Fixed assets'!$Q$2:$Q$1000=Costs!S$705)*('Fixed assets'!$U$2:$U$1000>Costs!$A751)*('Fixed assets'!$P$2:$P$1000=Costs!$A751)*('Fixed assets'!$R$2:$R$1000))-SUMPRODUCT(('Fixed assets'!$Q$2:$Q$1000=Costs!S$705)*('Fixed assets'!$U$2:$U$1000>Costs!$A751)*('Fixed assets'!$P$2:$P$1000=Costs!$A751)*('Fixed assets'!$S$2:$S$1000))","v":0},{"$f":"T663+SUMPRODUCT(('Fixed assets'!$Q$2:$Q$1000=Costs!T$705)*('Fixed assets'!$U$2:$U$1000>Costs!$A751)*('Fixed assets'!$P$2:$P$1000=Costs!$A751)*('Fixed assets'!$R$2:$R$1000))-SUMPRODUCT(('Fixed assets'!$Q$2:$Q$1000=Costs!T$705)*('Fixed assets'!$U$2:$U$1000>Costs!$A751)*('Fixed assets'!$P$2:$P$1000=Costs!$A751)*('Fixed assets'!$S$2:$S$1000))","v":0},{"$f":"U663+SUMPRODUCT(('Fixed assets'!$Q$2:$Q$1000=Costs!U$705)*('Fixed assets'!$U$2:$U$1000>Costs!$A751)*('Fixed assets'!$P$2:$P$1000=Costs!$A751)*('Fixed assets'!$R$2:$R$1000))-SUMPRODUCT(('Fixed assets'!$Q$2:$Q$1000=Costs!U$705)*('Fixed assets'!$U$2:$U$1000>Costs!$A751)*('Fixed assets'!$P$2:$P$1000=Costs!$A751)*('Fixed assets'!$S$2:$S$1000))","v":0},{"$f":"V663+SUMPRODUCT(('Fixed assets'!$Q$2:$Q$1000=Costs!V$705)*('Fixed assets'!$U$2:$U$1000>Costs!$A751)*('Fixed assets'!$P$2:$P$1000=Costs!$A751)*('Fixed assets'!$R$2:$R$1000))-SUMPRODUCT(('Fixed assets'!$Q$2:$Q$1000=Costs!V$705)*('Fixed assets'!$U$2:$U$1000>Costs!$A751)*('Fixed assets'!$P$2:$P$1000=Costs!$A751)*('Fixed assets'!$S$2:$S$1000))","v":0},{"$f":"W663+SUMPRODUCT(('Fixed assets'!$Q$2:$Q$1000=Costs!W$705)*('Fixed assets'!$U$2:$U$1000>Costs!$A751)*('Fixed assets'!$P$2:$P$1000=Costs!$A751)*('Fixed assets'!$R$2:$R$1000))-SUMPRODUCT(('Fixed assets'!$Q$2:$Q$1000=Costs!W$705)*('Fixed assets'!$U$2:$U$1000>Costs!$A751)*('Fixed assets'!$P$2:$P$1000=Costs!$A751)*('Fixed assets'!$S$2:$S$1000))","v":0},{"$f":"X663+SUMPRODUCT(('Fixed assets'!$Q$2:$Q$1000=Costs!X$705)*('Fixed assets'!$U$2:$U$1000>Costs!$A751)*('Fixed assets'!$P$2:$P$1000=Costs!$A751)*('Fixed assets'!$R$2:$R$1000))-SUMPRODUCT(('Fixed assets'!$Q$2:$Q$1000=Costs!X$705)*('Fixed assets'!$U$2:$U$1000>Costs!$A751)*('Fixed assets'!$P$2:$P$1000=Costs!$A751)*('Fixed assets'!$S$2:$S$1000))","v":0},{"$f":"Y663+SUMPRODUCT(('Fixed assets'!$Q$2:$Q$1000=Costs!Y$705)*('Fixed assets'!$U$2:$U$1000>Costs!$A751)*('Fixed assets'!$P$2:$P$1000=Costs!$A751)*('Fixed assets'!$R$2:$R$1000))-SUMPRODUCT(('Fixed assets'!$Q$2:$Q$1000=Costs!Y$705)*('Fixed assets'!$U$2:$U$1000>Costs!$A751)*('Fixed assets'!$P$2:$P$1000=Costs!$A751)*('Fixed assets'!$S$2:$S$1000))","v":0},{"$f":"Z663+SUMPRODUCT(('Fixed assets'!$Q$2:$Q$1000=Costs!Z$705)*('Fixed assets'!$U$2:$U$1000>Costs!$A751)*('Fixed assets'!$P$2:$P$1000=Costs!$A751)*('Fixed assets'!$R$2:$R$1000))-SUMPRODUCT(('Fixed assets'!$Q$2:$Q$1000=Costs!Z$705)*('Fixed assets'!$U$2:$U$1000>Costs!$A751)*('Fixed assets'!$P$2:$P$1000=Costs!$A751)*('Fixed assets'!$S$2:$S$1000))","v":0},{"$f":"AA663+SUMPRODUCT(('Fixed assets'!$Q$2:$Q$1000=Costs!AA$705)*('Fixed assets'!$U$2:$U$1000>Costs!$A751)*('Fixed assets'!$P$2:$P$1000=Costs!$A751)*('Fixed assets'!$R$2:$R$1000))-SUMPRODUCT(('Fixed assets'!$Q$2:$Q$1000=Costs!AA$705)*('Fixed assets'!$U$2:$U$1000>Costs!$A751)*('Fixed assets'!$P$2:$P$1000=Costs!$A751)*('Fixed assets'!$S$2:$S$1000))","v":0},{"$f":"AB663+SUMPRODUCT(('Fixed assets'!$Q$2:$Q$1000=Costs!AB$705)*('Fixed assets'!$U$2:$U$1000>Costs!$A751)*('Fixed assets'!$P$2:$P$1000=Costs!$A751)*('Fixed assets'!$R$2:$R$1000))-SUMPRODUCT(('Fixed assets'!$Q$2:$Q$1000=Costs!AB$705)*('Fixed assets'!$U$2:$U$1000>Costs!$A751)*('Fixed assets'!$P$2:$P$1000=Costs!$A751)*('Fixed assets'!$S$2:$S$1000))","v":0},{"$f":"AC663+SUMPRODUCT(('Fixed assets'!$Q$2:$Q$1000=Costs!AC$705)*('Fixed assets'!$U$2:$U$1000>Costs!$A751)*('Fixed assets'!$P$2:$P$1000=Costs!$A751)*('Fixed assets'!$R$2:$R$1000))-SUMPRODUCT(('Fixed assets'!$Q$2:$Q$1000=Costs!AC$705)*('Fixed assets'!$U$2:$U$1000>Costs!$A751)*('Fixed assets'!$P$2:$P$1000=Costs!$A751)*('Fixed assets'!$S$2:$S$1000))","v":0},{"$f":"AD663+SUMPRODUCT(('Fixed assets'!$Q$2:$Q$1000=Costs!AD$705)*('Fixed assets'!$U$2:$U$1000>Costs!$A751)*('Fixed assets'!$P$2:$P$1000=Costs!$A751)*('Fixed assets'!$R$2:$R$1000))-SUMPRODUCT(('Fixed assets'!$Q$2:$Q$1000=Costs!AD$705)*('Fixed assets'!$U$2:$U$1000>Costs!$A751)*('Fixed assets'!$P$2:$P$1000=Costs!$A751)*('Fixed assets'!$S$2:$S$1000))","v":0},{"$f":"AE663+SUMPRODUCT(('Fixed assets'!$Q$2:$Q$1000=Costs!AE$705)*('Fixed assets'!$U$2:$U$1000>Costs!$A751)*('Fixed assets'!$P$2:$P$1000=Costs!$A751)*('Fixed assets'!$R$2:$R$1000))-SUMPRODUCT(('Fixed assets'!$Q$2:$Q$1000=Costs!AE$705)*('Fixed assets'!$U$2:$U$1000>Costs!$A751)*('Fixed assets'!$P$2:$P$1000=Costs!$A751)*('Fixed assets'!$S$2:$S$1000))","v":0},{"$f":"AF663+SUMPRODUCT(('Fixed assets'!$Q$2:$Q$1000=Costs!AF$705)*('Fixed assets'!$U$2:$U$1000>Costs!$A751)*('Fixed assets'!$P$2:$P$1000=Costs!$A751)*('Fixed assets'!$R$2:$R$1000))-SUMPRODUCT(('Fixed assets'!$Q$2:$Q$1000=Costs!AF$705)*('Fixed assets'!$U$2:$U$1000>Costs!$A751)*('Fixed assets'!$P$2:$P$1000=Costs!$A751)*('Fixed assets'!$S$2:$S$1000))","v":0},{"$f":"AG663+SUMPRODUCT(('Fixed assets'!$Q$2:$Q$1000=Costs!AG$705)*('Fixed assets'!$U$2:$U$1000>Costs!$A751)*('Fixed assets'!$P$2:$P$1000=Costs!$A751)*('Fixed assets'!$R$2:$R$1000))-SUMPRODUCT(('Fixed assets'!$Q$2:$Q$1000=Costs!AG$705)*('Fixed assets'!$U$2:$U$1000>Costs!$A751)*('Fixed assets'!$P$2:$P$1000=Costs!$A751)*('Fixed assets'!$S$2:$S$1000))","v":0},{"$f":"AH663+SUMPRODUCT(('Fixed assets'!$Q$2:$Q$1000=Costs!AH$705)*('Fixed assets'!$U$2:$U$1000>Costs!$A751)*('Fixed assets'!$P$2:$P$1000=Costs!$A751)*('Fixed assets'!$R$2:$R$1000))-SUMPRODUCT(('Fixed assets'!$Q$2:$Q$1000=Costs!AH$705)*('Fixed assets'!$U$2:$U$1000>Costs!$A751)*('Fixed assets'!$P$2:$P$1000=Costs!$A751)*('Fixed assets'!$S$2:$S$1000))","v":0},{"$f":"AI663+SUMPRODUCT(('Fixed assets'!$Q$2:$Q$1000=Costs!AI$705)*('Fixed assets'!$U$2:$U$1000>Costs!$A751)*('Fixed assets'!$P$2:$P$1000=Costs!$A751)*('Fixed assets'!$R$2:$R$1000))-SUMPRODUCT(('Fixed assets'!$Q$2:$Q$1000=Costs!AI$705)*('Fixed assets'!$U$2:$U$1000>Costs!$A751)*('Fixed assets'!$P$2:$P$1000=Costs!$A751)*('Fixed assets'!$S$2:$S$1000))","v":0},{"$f":"AJ663+SUMPRODUCT(('Fixed assets'!$Q$2:$Q$1000=Costs!AJ$705)*('Fixed assets'!$U$2:$U$1000>Costs!$A751)*('Fixed assets'!$P$2:$P$1000=Costs!$A751)*('Fixed assets'!$R$2:$R$1000))-SUMPRODUCT(('Fixed assets'!$Q$2:$Q$1000=Costs!AJ$705)*('Fixed assets'!$U$2:$U$1000>Costs!$A751)*('Fixed assets'!$P$2:$P$1000=Costs!$A751)*('Fixed assets'!$S$2:$S$1000))","v":0},{"$f":"AK663+SUMPRODUCT(('Fixed assets'!$Q$2:$Q$1000=Costs!AK$705)*('Fixed assets'!$U$2:$U$1000>Costs!$A751)*('Fixed assets'!$P$2:$P$1000=Costs!$A751)*('Fixed assets'!$R$2:$R$1000))-SUMPRODUCT(('Fixed assets'!$Q$2:$Q$1000=Costs!AK$705)*('Fixed assets'!$U$2:$U$1000>Costs!$A751)*('Fixed assets'!$P$2:$P$1000=Costs!$A751)*('Fixed assets'!$S$2:$S$1000))","v":0},{"$f":"AL663+SUMPRODUCT(('Fixed assets'!$Q$2:$Q$1000=Costs!AL$705)*('Fixed assets'!$U$2:$U$1000>Costs!$A751)*('Fixed assets'!$P$2:$P$1000=Costs!$A751)*('Fixed assets'!$R$2:$R$1000))-SUMPRODUCT(('Fixed assets'!$Q$2:$Q$1000=Costs!AL$705)*('Fixed assets'!$U$2:$U$1000>Costs!$A751)*('Fixed assets'!$P$2:$P$1000=Costs!$A751)*('Fixed assets'!$S$2:$S$1000))","v":0},{"$f":"AM663+SUMPRODUCT(('Fixed assets'!$Q$2:$Q$1000=Costs!AM$705)*('Fixed assets'!$U$2:$U$1000>Costs!$A751)*('Fixed assets'!$P$2:$P$1000=Costs!$A751)*('Fixed assets'!$R$2:$R$1000))-SUMPRODUCT(('Fixed assets'!$Q$2:$Q$1000=Costs!AM$705)*('Fixed assets'!$U$2:$U$1000>Costs!$A751)*('Fixed assets'!$P$2:$P$1000=Costs!$A751)*('Fixed assets'!$S$2:$S$1000))","v":0},{"$f":"AN663+SUMPRODUCT(('Fixed assets'!$Q$2:$Q$1000=Costs!AN$705)*('Fixed assets'!$U$2:$U$1000>Costs!$A751)*('Fixed assets'!$P$2:$P$1000=Costs!$A751)*('Fixed assets'!$R$2:$R$1000))-SUMPRODUCT(('Fixed assets'!$Q$2:$Q$1000=Costs!AN$705)*('Fixed assets'!$U$2:$U$1000>Costs!$A751)*('Fixed assets'!$P$2:$P$1000=Costs!$A751)*('Fixed assets'!$S$2:$S$1000))","v":0},{"$f":"AO663+SUMPRODUCT(('Fixed assets'!$Q$2:$Q$1000=Costs!AO$705)*('Fixed assets'!$U$2:$U$1000>Costs!$A751)*('Fixed assets'!$P$2:$P$1000=Costs!$A751)*('Fixed assets'!$R$2:$R$1000))-SUMPRODUCT(('Fixed assets'!$Q$2:$Q$1000=Costs!AO$705)*('Fixed assets'!$U$2:$U$1000>Costs!$A751)*('Fixed assets'!$P$2:$P$1000=Costs!$A751)*('Fixed assets'!$S$2:$S$1000))","v":0},{"$f":"AP663+SUMPRODUCT(('Fixed assets'!$Q$2:$Q$1000=Costs!AP$705)*('Fixed assets'!$U$2:$U$1000>Costs!$A751)*('Fixed assets'!$P$2:$P$1000=Costs!$A751)*('Fixed assets'!$R$2:$R$1000))-SUMPRODUCT(('Fixed assets'!$Q$2:$Q$1000=Costs!AP$705)*('Fixed assets'!$U$2:$U$1000>Costs!$A751)*('Fixed assets'!$P$2:$P$1000=Costs!$A751)*('Fixed assets'!$S$2:$S$1000))","v":0},{"$f":"AQ663+SUMPRODUCT(('Fixed assets'!$Q$2:$Q$1000=Costs!AQ$705)*('Fixed assets'!$U$2:$U$1000>Costs!$A751)*('Fixed assets'!$P$2:$P$1000=Costs!$A751)*('Fixed assets'!$R$2:$R$1000))-SUMPRODUCT(('Fixed assets'!$Q$2:$Q$1000=Costs!AQ$705)*('Fixed assets'!$U$2:$U$1000>Costs!$A751)*('Fixed assets'!$P$2:$P$1000=Costs!$A751)*('Fixed assets'!$S$2:$S$1000))","v":0}]
[2061,0,{"$f":"C664+SUMPRODUCT(('Fixed assets'!$Q$2:$Q$1000=Costs!C$705)*('Fixed assets'!$U$2:$U$1000>Costs!$A752)*('Fixed assets'!$P$2:$P$1000=Costs!$A752)*('Fixed assets'!$R$2:$R$1000))-SUMPRODUCT(('Fixed assets'!$Q$2:$Q$1000=Costs!C$705)*('Fixed assets'!$U$2:$U$1000>Costs!$A752)*('Fixed assets'!$P$2:$P$1000=Costs!$A752)*('Fixed assets'!$S$2:$S$1000))","v":0},{"$f":"D664+SUMPRODUCT(('Fixed assets'!$Q$2:$Q$1000=Costs!D$705)*('Fixed assets'!$U$2:$U$1000>Costs!$A752)*('Fixed assets'!$P$2:$P$1000=Costs!$A752)*('Fixed assets'!$R$2:$R$1000))-SUMPRODUCT(('Fixed assets'!$Q$2:$Q$1000=Costs!D$705)*('Fixed assets'!$U$2:$U$1000>Costs!$A752)*('Fixed assets'!$P$2:$P$1000=Costs!$A752)*('Fixed assets'!$S$2:$S$1000))","v":0},{"$f":"E664+SUMPRODUCT(('Fixed assets'!$Q$2:$Q$1000=Costs!E$705)*('Fixed assets'!$U$2:$U$1000>Costs!$A752)*('Fixed assets'!$P$2:$P$1000=Costs!$A752)*('Fixed assets'!$R$2:$R$1000))-SUMPRODUCT(('Fixed assets'!$Q$2:$Q$1000=Costs!E$705)*('Fixed assets'!$U$2:$U$1000>Costs!$A752)*('Fixed assets'!$P$2:$P$1000=Costs!$A752)*('Fixed assets'!$S$2:$S$1000))","v":0},{"$f":"F664+SUMPRODUCT(('Fixed assets'!$Q$2:$Q$1000=Costs!F$705)*('Fixed assets'!$U$2:$U$1000>Costs!$A752)*('Fixed assets'!$P$2:$P$1000=Costs!$A752)*('Fixed assets'!$R$2:$R$1000))-SUMPRODUCT(('Fixed assets'!$Q$2:$Q$1000=Costs!F$705)*('Fixed assets'!$U$2:$U$1000>Costs!$A752)*('Fixed assets'!$P$2:$P$1000=Costs!$A752)*('Fixed assets'!$S$2:$S$1000))","v":0},{"$f":"G664+SUMPRODUCT(('Fixed assets'!$Q$2:$Q$1000=Costs!G$705)*('Fixed assets'!$U$2:$U$1000>Costs!$A752)*('Fixed assets'!$P$2:$P$1000=Costs!$A752)*('Fixed assets'!$R$2:$R$1000))-SUMPRODUCT(('Fixed assets'!$Q$2:$Q$1000=Costs!G$705)*('Fixed assets'!$U$2:$U$1000>Costs!$A752)*('Fixed assets'!$P$2:$P$1000=Costs!$A752)*('Fixed assets'!$S$2:$S$1000))","v":0},{"$f":"H664+SUMPRODUCT(('Fixed assets'!$Q$2:$Q$1000=Costs!H$705)*('Fixed assets'!$U$2:$U$1000>Costs!$A752)*('Fixed assets'!$P$2:$P$1000=Costs!$A752)*('Fixed assets'!$R$2:$R$1000))-SUMPRODUCT(('Fixed assets'!$Q$2:$Q$1000=Costs!H$705)*('Fixed assets'!$U$2:$U$1000>Costs!$A752)*('Fixed assets'!$P$2:$P$1000=Costs!$A752)*('Fixed assets'!$S$2:$S$1000))","v":0},{"$f":"I664+SUMPRODUCT(('Fixed assets'!$Q$2:$Q$1000=Costs!I$705)*('Fixed assets'!$U$2:$U$1000>Costs!$A752)*('Fixed assets'!$P$2:$P$1000=Costs!$A752)*('Fixed assets'!$R$2:$R$1000))-SUMPRODUCT(('Fixed assets'!$Q$2:$Q$1000=Costs!I$705)*('Fixed assets'!$U$2:$U$1000>Costs!$A752)*('Fixed assets'!$P$2:$P$1000=Costs!$A752)*('Fixed assets'!$S$2:$S$1000))","v":0},{"$f":"J664+SUMPRODUCT(('Fixed assets'!$Q$2:$Q$1000=Costs!J$705)*('Fixed assets'!$U$2:$U$1000>Costs!$A752)*('Fixed assets'!$P$2:$P$1000=Costs!$A752)*('Fixed assets'!$R$2:$R$1000))-SUMPRODUCT(('Fixed assets'!$Q$2:$Q$1000=Costs!J$705)*('Fixed assets'!$U$2:$U$1000>Costs!$A752)*('Fixed assets'!$P$2:$P$1000=Costs!$A752)*('Fixed assets'!$S$2:$S$1000))","v":0},{"$f":"K664+SUMPRODUCT(('Fixed assets'!$Q$2:$Q$1000=Costs!K$705)*('Fixed assets'!$U$2:$U$1000>Costs!$A752)*('Fixed assets'!$P$2:$P$1000=Costs!$A752)*('Fixed assets'!$R$2:$R$1000))-SUMPRODUCT(('Fixed assets'!$Q$2:$Q$1000=Costs!K$705)*('Fixed assets'!$U$2:$U$1000>Costs!$A752)*('Fixed assets'!$P$2:$P$1000=Costs!$A752)*('Fixed assets'!$S$2:$S$1000))","v":0},{"$f":"L664+SUMPRODUCT(('Fixed assets'!$Q$2:$Q$1000=Costs!L$705)*('Fixed assets'!$U$2:$U$1000>Costs!$A752)*('Fixed assets'!$P$2:$P$1000=Costs!$A752)*('Fixed assets'!$R$2:$R$1000))-SUMPRODUCT(('Fixed assets'!$Q$2:$Q$1000=Costs!L$705)*('Fixed assets'!$U$2:$U$1000>Costs!$A752)*('Fixed assets'!$P$2:$P$1000=Costs!$A752)*('Fixed assets'!$S$2:$S$1000))","v":0},{"$f":"M664+SUMPRODUCT(('Fixed assets'!$Q$2:$Q$1000=Costs!M$705)*('Fixed assets'!$U$2:$U$1000>Costs!$A752)*('Fixed assets'!$P$2:$P$1000=Costs!$A752)*('Fixed assets'!$R$2:$R$1000))-SUMPRODUCT(('Fixed assets'!$Q$2:$Q$1000=Costs!M$705)*('Fixed assets'!$U$2:$U$1000>Costs!$A752)*('Fixed assets'!$P$2:$P$1000=Costs!$A752)*('Fixed assets'!$S$2:$S$1000))","v":0},{"$f":"N664+SUMPRODUCT(('Fixed assets'!$Q$2:$Q$1000=Costs!N$705)*('Fixed assets'!$U$2:$U$1000>Costs!$A752)*('Fixed assets'!$P$2:$P$1000=Costs!$A752)*('Fixed assets'!$R$2:$R$1000))-SUMPRODUCT(('Fixed assets'!$Q$2:$Q$1000=Costs!N$705)*('Fixed assets'!$U$2:$U$1000>Costs!$A752)*('Fixed assets'!$P$2:$P$1000=Costs!$A752)*('Fixed assets'!$S$2:$S$1000))","v":0},{"$f":"O664+SUMPRODUCT(('Fixed assets'!$Q$2:$Q$1000=Costs!O$705)*('Fixed assets'!$U$2:$U$1000>Costs!$A752)*('Fixed assets'!$P$2:$P$1000=Costs!$A752)*('Fixed assets'!$R$2:$R$1000))-SUMPRODUCT(('Fixed assets'!$Q$2:$Q$1000=Costs!O$705)*('Fixed assets'!$U$2:$U$1000>Costs!$A752)*('Fixed assets'!$P$2:$P$1000=Costs!$A752)*('Fixed assets'!$S$2:$S$1000))","v":0},{"$f":"P664+SUMPRODUCT(('Fixed assets'!$Q$2:$Q$1000=Costs!P$705)*('Fixed assets'!$U$2:$U$1000>Costs!$A752)*('Fixed assets'!$P$2:$P$1000=Costs!$A752)*('Fixed assets'!$R$2:$R$1000))-SUMPRODUCT(('Fixed assets'!$Q$2:$Q$1000=Costs!P$705)*('Fixed assets'!$U$2:$U$1000>Costs!$A752)*('Fixed assets'!$P$2:$P$1000=Costs!$A752)*('Fixed assets'!$S$2:$S$1000))","v":0},{"$f":"Q664+SUMPRODUCT(('Fixed assets'!$Q$2:$Q$1000=Costs!Q$705)*('Fixed assets'!$U$2:$U$1000>Costs!$A752)*('Fixed assets'!$P$2:$P$1000=Costs!$A752)*('Fixed assets'!$R$2:$R$1000))-SUMPRODUCT(('Fixed assets'!$Q$2:$Q$1000=Costs!Q$705)*('Fixed assets'!$U$2:$U$1000>Costs!$A752)*('Fixed assets'!$P$2:$P$1000=Costs!$A752)*('Fixed assets'!$S$2:$S$1000))","v":0},{"$f":"R664+SUMPRODUCT(('Fixed assets'!$Q$2:$Q$1000=Costs!R$705)*('Fixed assets'!$U$2:$U$1000>Costs!$A752)*('Fixed assets'!$P$2:$P$1000=Costs!$A752)*('Fixed assets'!$R$2:$R$1000))-SUMPRODUCT(('Fixed assets'!$Q$2:$Q$1000=Costs!R$705)*('Fixed assets'!$U$2:$U$1000>Costs!$A752)*('Fixed assets'!$P$2:$P$1000=Costs!$A752)*('Fixed assets'!$S$2:$S$1000))","v":0},{"$f":"S664+SUMPRODUCT(('Fixed assets'!$Q$2:$Q$1000=Costs!S$705)*('Fixed assets'!$U$2:$U$1000>Costs!$A752)*('Fixed assets'!$P$2:$P$1000=Costs!$A752)*('Fixed assets'!$R$2:$R$1000))-SUMPRODUCT(('Fixed assets'!$Q$2:$Q$1000=Costs!S$705)*('Fixed assets'!$U$2:$U$1000>Costs!$A752)*('Fixed assets'!$P$2:$P$1000=Costs!$A752)*('Fixed assets'!$S$2:$S$1000))","v":0},{"$f":"T664+SUMPRODUCT(('Fixed assets'!$Q$2:$Q$1000=Costs!T$705)*('Fixed assets'!$U$2:$U$1000>Costs!$A752)*('Fixed assets'!$P$2:$P$1000=Costs!$A752)*('Fixed assets'!$R$2:$R$1000))-SUMPRODUCT(('Fixed assets'!$Q$2:$Q$1000=Costs!T$705)*('Fixed assets'!$U$2:$U$1000>Costs!$A752)*('Fixed assets'!$P$2:$P$1000=Costs!$A752)*('Fixed assets'!$S$2:$S$1000))","v":0},{"$f":"U664+SUMPRODUCT(('Fixed assets'!$Q$2:$Q$1000=Costs!U$705)*('Fixed assets'!$U$2:$U$1000>Costs!$A752)*('Fixed assets'!$P$2:$P$1000=Costs!$A752)*('Fixed assets'!$R$2:$R$1000))-SUMPRODUCT(('Fixed assets'!$Q$2:$Q$1000=Costs!U$705)*('Fixed assets'!$U$2:$U$1000>Costs!$A752)*('Fixed assets'!$P$2:$P$1000=Costs!$A752)*('Fixed assets'!$S$2:$S$1000))","v":0},{"$f":"V664+SUMPRODUCT(('Fixed assets'!$Q$2:$Q$1000=Costs!V$705)*('Fixed assets'!$U$2:$U$1000>Costs!$A752)*('Fixed assets'!$P$2:$P$1000=Costs!$A752)*('Fixed assets'!$R$2:$R$1000))-SUMPRODUCT(('Fixed assets'!$Q$2:$Q$1000=Costs!V$705)*('Fixed assets'!$U$2:$U$1000>Costs!$A752)*('Fixed assets'!$P$2:$P$1000=Costs!$A752)*('Fixed assets'!$S$2:$S$1000))","v":0},{"$f":"W664+SUMPRODUCT(('Fixed assets'!$Q$2:$Q$1000=Costs!W$705)*('Fixed assets'!$U$2:$U$1000>Costs!$A752)*('Fixed assets'!$P$2:$P$1000=Costs!$A752)*('Fixed assets'!$R$2:$R$1000))-SUMPRODUCT(('Fixed assets'!$Q$2:$Q$1000=Costs!W$705)*('Fixed assets'!$U$2:$U$1000>Costs!$A752)*('Fixed assets'!$P$2:$P$1000=Costs!$A752)*('Fixed assets'!$S$2:$S$1000))","v":0},{"$f":"X664+SUMPRODUCT(('Fixed assets'!$Q$2:$Q$1000=Costs!X$705)*('Fixed assets'!$U$2:$U$1000>Costs!$A752)*('Fixed assets'!$P$2:$P$1000=Costs!$A752)*('Fixed assets'!$R$2:$R$1000))-SUMPRODUCT(('Fixed assets'!$Q$2:$Q$1000=Costs!X$705)*('Fixed assets'!$U$2:$U$1000>Costs!$A752)*('Fixed assets'!$P$2:$P$1000=Costs!$A752)*('Fixed assets'!$S$2:$S$1000))","v":0},{"$f":"Y664+SUMPRODUCT(('Fixed assets'!$Q$2:$Q$1000=Costs!Y$705)*('Fixed assets'!$U$2:$U$1000>Costs!$A752)*('Fixed assets'!$P$2:$P$1000=Costs!$A752)*('Fixed assets'!$R$2:$R$1000))-SUMPRODUCT(('Fixed assets'!$Q$2:$Q$1000=Costs!Y$705)*('Fixed assets'!$U$2:$U$1000>Costs!$A752)*('Fixed assets'!$P$2:$P$1000=Costs!$A752)*('Fixed assets'!$S$2:$S$1000))","v":0},{"$f":"Z664+SUMPRODUCT(('Fixed assets'!$Q$2:$Q$1000=Costs!Z$705)*('Fixed assets'!$U$2:$U$1000>Costs!$A752)*('Fixed assets'!$P$2:$P$1000=Costs!$A752)*('Fixed assets'!$R$2:$R$1000))-SUMPRODUCT(('Fixed assets'!$Q$2:$Q$1000=Costs!Z$705)*('Fixed assets'!$U$2:$U$1000>Costs!$A752)*('Fixed assets'!$P$2:$P$1000=Costs!$A752)*('Fixed assets'!$S$2:$S$1000))","v":0},{"$f":"AA664+SUMPRODUCT(('Fixed assets'!$Q$2:$Q$1000=Costs!AA$705)*('Fixed assets'!$U$2:$U$1000>Costs!$A752)*('Fixed assets'!$P$2:$P$1000=Costs!$A752)*('Fixed assets'!$R$2:$R$1000))-SUMPRODUCT(('Fixed assets'!$Q$2:$Q$1000=Costs!AA$705)*('Fixed assets'!$U$2:$U$1000>Costs!$A752)*('Fixed assets'!$P$2:$P$1000=Costs!$A752)*('Fixed assets'!$S$2:$S$1000))","v":0},{"$f":"AB664+SUMPRODUCT(('Fixed assets'!$Q$2:$Q$1000=Costs!AB$705)*('Fixed assets'!$U$2:$U$1000>Costs!$A752)*('Fixed assets'!$P$2:$P$1000=Costs!$A752)*('Fixed assets'!$R$2:$R$1000))-SUMPRODUCT(('Fixed assets'!$Q$2:$Q$1000=Costs!AB$705)*('Fixed assets'!$U$2:$U$1000>Costs!$A752)*('Fixed assets'!$P$2:$P$1000=Costs!$A752)*('Fixed assets'!$S$2:$S$1000))","v":0},{"$f":"AC664+SUMPRODUCT(('Fixed assets'!$Q$2:$Q$1000=Costs!AC$705)*('Fixed assets'!$U$2:$U$1000>Costs!$A752)*('Fixed assets'!$P$2:$P$1000=Costs!$A752)*('Fixed assets'!$R$2:$R$1000))-SUMPRODUCT(('Fixed assets'!$Q$2:$Q$1000=Costs!AC$705)*('Fixed assets'!$U$2:$U$1000>Costs!$A752)*('Fixed assets'!$P$2:$P$1000=Costs!$A752)*('Fixed assets'!$S$2:$S$1000))","v":0},{"$f":"AD664+SUMPRODUCT(('Fixed assets'!$Q$2:$Q$1000=Costs!AD$705)*('Fixed assets'!$U$2:$U$1000>Costs!$A752)*('Fixed assets'!$P$2:$P$1000=Costs!$A752)*('Fixed assets'!$R$2:$R$1000))-SUMPRODUCT(('Fixed assets'!$Q$2:$Q$1000=Costs!AD$705)*('Fixed assets'!$U$2:$U$1000>Costs!$A752)*('Fixed assets'!$P$2:$P$1000=Costs!$A752)*('Fixed assets'!$S$2:$S$1000))","v":0},{"$f":"AE664+SUMPRODUCT(('Fixed assets'!$Q$2:$Q$1000=Costs!AE$705)*('Fixed assets'!$U$2:$U$1000>Costs!$A752)*('Fixed assets'!$P$2:$P$1000=Costs!$A752)*('Fixed assets'!$R$2:$R$1000))-SUMPRODUCT(('Fixed assets'!$Q$2:$Q$1000=Costs!AE$705)*('Fixed assets'!$U$2:$U$1000>Costs!$A752)*('Fixed assets'!$P$2:$P$1000=Costs!$A752)*('Fixed assets'!$S$2:$S$1000))","v":0},{"$f":"AF664+SUMPRODUCT(('Fixed assets'!$Q$2:$Q$1000=Costs!AF$705)*('Fixed assets'!$U$2:$U$1000>Costs!$A752)*('Fixed assets'!$P$2:$P$1000=Costs!$A752)*('Fixed assets'!$R$2:$R$1000))-SUMPRODUCT(('Fixed assets'!$Q$2:$Q$1000=Costs!AF$705)*('Fixed assets'!$U$2:$U$1000>Costs!$A752)*('Fixed assets'!$P$2:$P$1000=Costs!$A752)*('Fixed assets'!$S$2:$S$1000))","v":0},{"$f":"AG664+SUMPRODUCT(('Fixed assets'!$Q$2:$Q$1000=Costs!AG$705)*('Fixed assets'!$U$2:$U$1000>Costs!$A752)*('Fixed assets'!$P$2:$P$1000=Costs!$A752)*('Fixed assets'!$R$2:$R$1000))-SUMPRODUCT(('Fixed assets'!$Q$2:$Q$1000=Costs!AG$705)*('Fixed assets'!$U$2:$U$1000>Costs!$A752)*('Fixed assets'!$P$2:$P$1000=Costs!$A752)*('Fixed assets'!$S$2:$S$1000))","v":0},{"$f":"AH664+SUMPRODUCT(('Fixed assets'!$Q$2:$Q$1000=Costs!AH$705)*('Fixed assets'!$U$2:$U$1000>Costs!$A752)*('Fixed assets'!$P$2:$P$1000=Costs!$A752)*('Fixed assets'!$R$2:$R$1000))-SUMPRODUCT(('Fixed assets'!$Q$2:$Q$1000=Costs!AH$705)*('Fixed assets'!$U$2:$U$1000>Costs!$A752)*('Fixed assets'!$P$2:$P$1000=Costs!$A752)*('Fixed assets'!$S$2:$S$1000))","v":0},{"$f":"AI664+SUMPRODUCT(('Fixed assets'!$Q$2:$Q$1000=Costs!AI$705)*('Fixed assets'!$U$2:$U$1000>Costs!$A752)*('Fixed assets'!$P$2:$P$1000=Costs!$A752)*('Fixed assets'!$R$2:$R$1000))-SUMPRODUCT(('Fixed assets'!$Q$2:$Q$1000=Costs!AI$705)*('Fixed assets'!$U$2:$U$1000>Costs!$A752)*('Fixed assets'!$P$2:$P$1000=Costs!$A752)*('Fixed assets'!$S$2:$S$1000))","v":0},{"$f":"AJ664+SUMPRODUCT(('Fixed assets'!$Q$2:$Q$1000=Costs!AJ$705)*('Fixed assets'!$U$2:$U$1000>Costs!$A752)*('Fixed assets'!$P$2:$P$1000=Costs!$A752)*('Fixed assets'!$R$2:$R$1000))-SUMPRODUCT(('Fixed assets'!$Q$2:$Q$1000=Costs!AJ$705)*('Fixed assets'!$U$2:$U$1000>Costs!$A752)*('Fixed assets'!$P$2:$P$1000=Costs!$A752)*('Fixed assets'!$S$2:$S$1000))","v":0},{"$f":"AK664+SUMPRODUCT(('Fixed assets'!$Q$2:$Q$1000=Costs!AK$705)*('Fixed assets'!$U$2:$U$1000>Costs!$A752)*('Fixed assets'!$P$2:$P$1000=Costs!$A752)*('Fixed assets'!$R$2:$R$1000))-SUMPRODUCT(('Fixed assets'!$Q$2:$Q$1000=Costs!AK$705)*('Fixed assets'!$U$2:$U$1000>Costs!$A752)*('Fixed assets'!$P$2:$P$1000=Costs!$A752)*('Fixed assets'!$S$2:$S$1000))","v":0},{"$f":"AL664+SUMPRODUCT(('Fixed assets'!$Q$2:$Q$1000=Costs!AL$705)*('Fixed assets'!$U$2:$U$1000>Costs!$A752)*('Fixed assets'!$P$2:$P$1000=Costs!$A752)*('Fixed assets'!$R$2:$R$1000))-SUMPRODUCT(('Fixed assets'!$Q$2:$Q$1000=Costs!AL$705)*('Fixed assets'!$U$2:$U$1000>Costs!$A752)*('Fixed assets'!$P$2:$P$1000=Costs!$A752)*('Fixed assets'!$S$2:$S$1000))","v":0},{"$f":"AM664+SUMPRODUCT(('Fixed assets'!$Q$2:$Q$1000=Costs!AM$705)*('Fixed assets'!$U$2:$U$1000>Costs!$A752)*('Fixed assets'!$P$2:$P$1000=Costs!$A752)*('Fixed assets'!$R$2:$R$1000))-SUMPRODUCT(('Fixed assets'!$Q$2:$Q$1000=Costs!AM$705)*('Fixed assets'!$U$2:$U$1000>Costs!$A752)*('Fixed assets'!$P$2:$P$1000=Costs!$A752)*('Fixed assets'!$S$2:$S$1000))","v":0},{"$f":"AN664+SUMPRODUCT(('Fixed assets'!$Q$2:$Q$1000=Costs!AN$705)*('Fixed assets'!$U$2:$U$1000>Costs!$A752)*('Fixed assets'!$P$2:$P$1000=Costs!$A752)*('Fixed assets'!$R$2:$R$1000))-SUMPRODUCT(('Fixed assets'!$Q$2:$Q$1000=Costs!AN$705)*('Fixed assets'!$U$2:$U$1000>Costs!$A752)*('Fixed assets'!$P$2:$P$1000=Costs!$A752)*('Fixed assets'!$S$2:$S$1000))","v":0},{"$f":"AO664+SUMPRODUCT(('Fixed assets'!$Q$2:$Q$1000=Costs!AO$705)*('Fixed assets'!$U$2:$U$1000>Costs!$A752)*('Fixed assets'!$P$2:$P$1000=Costs!$A752)*('Fixed assets'!$R$2:$R$1000))-SUMPRODUCT(('Fixed assets'!$Q$2:$Q$1000=Costs!AO$705)*('Fixed assets'!$U$2:$U$1000>Costs!$A752)*('Fixed assets'!$P$2:$P$1000=Costs!$A752)*('Fixed assets'!$S$2:$S$1000))","v":0},{"$f":"AP664+SUMPRODUCT(('Fixed assets'!$Q$2:$Q$1000=Costs!AP$705)*('Fixed assets'!$U$2:$U$1000>Costs!$A752)*('Fixed assets'!$P$2:$P$1000=Costs!$A752)*('Fixed assets'!$R$2:$R$1000))-SUMPRODUCT(('Fixed assets'!$Q$2:$Q$1000=Costs!AP$705)*('Fixed assets'!$U$2:$U$1000>Costs!$A752)*('Fixed assets'!$P$2:$P$1000=Costs!$A752)*('Fixed assets'!$S$2:$S$1000))","v":0},{"$f":"AQ664+SUMPRODUCT(('Fixed assets'!$Q$2:$Q$1000=Costs!AQ$705)*('Fixed assets'!$U$2:$U$1000>Costs!$A752)*('Fixed assets'!$P$2:$P$1000=Costs!$A752)*('Fixed assets'!$R$2:$R$1000))-SUMPRODUCT(('Fixed assets'!$Q$2:$Q$1000=Costs!AQ$705)*('Fixed assets'!$U$2:$U$1000>Costs!$A752)*('Fixed assets'!$P$2:$P$1000=Costs!$A752)*('Fixed assets'!$S$2:$S$1000))","v":0}]
[2062,0,{"$f":"C665+SUMPRODUCT(('Fixed assets'!$Q$2:$Q$1000=Costs!C$705)*('Fixed assets'!$U$2:$U$1000>Costs!$A753)*('Fixed assets'!$P$2:$P$1000=Costs!$A753)*('Fixed assets'!$R$2:$R$1000))-SUMPRODUCT(('Fixed assets'!$Q$2:$Q$1000=Costs!C$705)*('Fixed assets'!$U$2:$U$1000>Costs!$A753)*('Fixed assets'!$P$2:$P$1000=Costs!$A753)*('Fixed assets'!$S$2:$S$1000))","v":0},{"$f":"D665+SUMPRODUCT(('Fixed assets'!$Q$2:$Q$1000=Costs!D$705)*('Fixed assets'!$U$2:$U$1000>Costs!$A753)*('Fixed assets'!$P$2:$P$1000=Costs!$A753)*('Fixed assets'!$R$2:$R$1000))-SUMPRODUCT(('Fixed assets'!$Q$2:$Q$1000=Costs!D$705)*('Fixed assets'!$U$2:$U$1000>Costs!$A753)*('Fixed assets'!$P$2:$P$1000=Costs!$A753)*('Fixed assets'!$S$2:$S$1000))","v":0},{"$f":"E665+SUMPRODUCT(('Fixed assets'!$Q$2:$Q$1000=Costs!E$705)*('Fixed assets'!$U$2:$U$1000>Costs!$A753)*('Fixed assets'!$P$2:$P$1000=Costs!$A753)*('Fixed assets'!$R$2:$R$1000))-SUMPRODUCT(('Fixed assets'!$Q$2:$Q$1000=Costs!E$705)*('Fixed assets'!$U$2:$U$1000>Costs!$A753)*('Fixed assets'!$P$2:$P$1000=Costs!$A753)*('Fixed assets'!$S$2:$S$1000))","v":0},{"$f":"F665+SUMPRODUCT(('Fixed assets'!$Q$2:$Q$1000=Costs!F$705)*('Fixed assets'!$U$2:$U$1000>Costs!$A753)*('Fixed assets'!$P$2:$P$1000=Costs!$A753)*('Fixed assets'!$R$2:$R$1000))-SUMPRODUCT(('Fixed assets'!$Q$2:$Q$1000=Costs!F$705)*('Fixed assets'!$U$2:$U$1000>Costs!$A753)*('Fixed assets'!$P$2:$P$1000=Costs!$A753)*('Fixed assets'!$S$2:$S$1000))","v":0},{"$f":"G665+SUMPRODUCT(('Fixed assets'!$Q$2:$Q$1000=Costs!G$705)*('Fixed assets'!$U$2:$U$1000>Costs!$A753)*('Fixed assets'!$P$2:$P$1000=Costs!$A753)*('Fixed assets'!$R$2:$R$1000))-SUMPRODUCT(('Fixed assets'!$Q$2:$Q$1000=Costs!G$705)*('Fixed assets'!$U$2:$U$1000>Costs!$A753)*('Fixed assets'!$P$2:$P$1000=Costs!$A753)*('Fixed assets'!$S$2:$S$1000))","v":0},{"$f":"H665+SUMPRODUCT(('Fixed assets'!$Q$2:$Q$1000=Costs!H$705)*('Fixed assets'!$U$2:$U$1000>Costs!$A753)*('Fixed assets'!$P$2:$P$1000=Costs!$A753)*('Fixed assets'!$R$2:$R$1000))-SUMPRODUCT(('Fixed assets'!$Q$2:$Q$1000=Costs!H$705)*('Fixed assets'!$U$2:$U$1000>Costs!$A753)*('Fixed assets'!$P$2:$P$1000=Costs!$A753)*('Fixed assets'!$S$2:$S$1000))","v":0},{"$f":"I665+SUMPRODUCT(('Fixed assets'!$Q$2:$Q$1000=Costs!I$705)*('Fixed assets'!$U$2:$U$1000>Costs!$A753)*('Fixed assets'!$P$2:$P$1000=Costs!$A753)*('Fixed assets'!$R$2:$R$1000))-SUMPRODUCT(('Fixed assets'!$Q$2:$Q$1000=Costs!I$705)*('Fixed assets'!$U$2:$U$1000>Costs!$A753)*('Fixed assets'!$P$2:$P$1000=Costs!$A753)*('Fixed assets'!$S$2:$S$1000))","v":0},{"$f":"J665+SUMPRODUCT(('Fixed assets'!$Q$2:$Q$1000=Costs!J$705)*('Fixed assets'!$U$2:$U$1000>Costs!$A753)*('Fixed assets'!$P$2:$P$1000=Costs!$A753)*('Fixed assets'!$R$2:$R$1000))-SUMPRODUCT(('Fixed assets'!$Q$2:$Q$1000=Costs!J$705)*('Fixed assets'!$U$2:$U$1000>Costs!$A753)*('Fixed assets'!$P$2:$P$1000=Costs!$A753)*('Fixed assets'!$S$2:$S$1000))","v":0},{"$f":"K665+SUMPRODUCT(('Fixed assets'!$Q$2:$Q$1000=Costs!K$705)*('Fixed assets'!$U$2:$U$1000>Costs!$A753)*('Fixed assets'!$P$2:$P$1000=Costs!$A753)*('Fixed assets'!$R$2:$R$1000))-SUMPRODUCT(('Fixed assets'!$Q$2:$Q$1000=Costs!K$705)*('Fixed assets'!$U$2:$U$1000>Costs!$A753)*('Fixed assets'!$P$2:$P$1000=Costs!$A753)*('Fixed assets'!$S$2:$S$1000))","v":0},{"$f":"L665+SUMPRODUCT(('Fixed assets'!$Q$2:$Q$1000=Costs!L$705)*('Fixed assets'!$U$2:$U$1000>Costs!$A753)*('Fixed assets'!$P$2:$P$1000=Costs!$A753)*('Fixed assets'!$R$2:$R$1000))-SUMPRODUCT(('Fixed assets'!$Q$2:$Q$1000=Costs!L$705)*('Fixed assets'!$U$2:$U$1000>Costs!$A753)*('Fixed assets'!$P$2:$P$1000=Costs!$A753)*('Fixed assets'!$S$2:$S$1000))","v":0},{"$f":"M665+SUMPRODUCT(('Fixed assets'!$Q$2:$Q$1000=Costs!M$705)*('Fixed assets'!$U$2:$U$1000>Costs!$A753)*('Fixed assets'!$P$2:$P$1000=Costs!$A753)*('Fixed assets'!$R$2:$R$1000))-SUMPRODUCT(('Fixed assets'!$Q$2:$Q$1000=Costs!M$705)*('Fixed assets'!$U$2:$U$1000>Costs!$A753)*('Fixed assets'!$P$2:$P$1000=Costs!$A753)*('Fixed assets'!$S$2:$S$1000))","v":0},{"$f":"N665+SUMPRODUCT(('Fixed assets'!$Q$2:$Q$1000=Costs!N$705)*('Fixed assets'!$U$2:$U$1000>Costs!$A753)*('Fixed assets'!$P$2:$P$1000=Costs!$A753)*('Fixed assets'!$R$2:$R$1000))-SUMPRODUCT(('Fixed assets'!$Q$2:$Q$1000=Costs!N$705)*('Fixed assets'!$U$2:$U$1000>Costs!$A753)*('Fixed assets'!$P$2:$P$1000=Costs!$A753)*('Fixed assets'!$S$2:$S$1000))","v":0},{"$f":"O665+SUMPRODUCT(('Fixed assets'!$Q$2:$Q$1000=Costs!O$705)*('Fixed assets'!$U$2:$U$1000>Costs!$A753)*('Fixed assets'!$P$2:$P$1000=Costs!$A753)*('Fixed assets'!$R$2:$R$1000))-SUMPRODUCT(('Fixed assets'!$Q$2:$Q$1000=Costs!O$705)*('Fixed assets'!$U$2:$U$1000>Costs!$A753)*('Fixed assets'!$P$2:$P$1000=Costs!$A753)*('Fixed assets'!$S$2:$S$1000))","v":0},{"$f":"P665+SUMPRODUCT(('Fixed assets'!$Q$2:$Q$1000=Costs!P$705)*('Fixed assets'!$U$2:$U$1000>Costs!$A753)*('Fixed assets'!$P$2:$P$1000=Costs!$A753)*('Fixed assets'!$R$2:$R$1000))-SUMPRODUCT(('Fixed assets'!$Q$2:$Q$1000=Costs!P$705)*('Fixed assets'!$U$2:$U$1000>Costs!$A753)*('Fixed assets'!$P$2:$P$1000=Costs!$A753)*('Fixed assets'!$S$2:$S$1000))","v":0},{"$f":"Q665+SUMPRODUCT(('Fixed assets'!$Q$2:$Q$1000=Costs!Q$705)*('Fixed assets'!$U$2:$U$1000>Costs!$A753)*('Fixed assets'!$P$2:$P$1000=Costs!$A753)*('Fixed assets'!$R$2:$R$1000))-SUMPRODUCT(('Fixed assets'!$Q$2:$Q$1000=Costs!Q$705)*('Fixed assets'!$U$2:$U$1000>Costs!$A753)*('Fixed assets'!$P$2:$P$1000=Costs!$A753)*('Fixed assets'!$S$2:$S$1000))","v":0},{"$f":"R665+SUMPRODUCT(('Fixed assets'!$Q$2:$Q$1000=Costs!R$705)*('Fixed assets'!$U$2:$U$1000>Costs!$A753)*('Fixed assets'!$P$2:$P$1000=Costs!$A753)*('Fixed assets'!$R$2:$R$1000))-SUMPRODUCT(('Fixed assets'!$Q$2:$Q$1000=Costs!R$705)*('Fixed assets'!$U$2:$U$1000>Costs!$A753)*('Fixed assets'!$P$2:$P$1000=Costs!$A753)*('Fixed assets'!$S$2:$S$1000))","v":0},{"$f":"S665+SUMPRODUCT(('Fixed assets'!$Q$2:$Q$1000=Costs!S$705)*('Fixed assets'!$U$2:$U$1000>Costs!$A753)*('Fixed assets'!$P$2:$P$1000=Costs!$A753)*('Fixed assets'!$R$2:$R$1000))-SUMPRODUCT(('Fixed assets'!$Q$2:$Q$1000=Costs!S$705)*('Fixed assets'!$U$2:$U$1000>Costs!$A753)*('Fixed assets'!$P$2:$P$1000=Costs!$A753)*('Fixed assets'!$S$2:$S$1000))","v":0},{"$f":"T665+SUMPRODUCT(('Fixed assets'!$Q$2:$Q$1000=Costs!T$705)*('Fixed assets'!$U$2:$U$1000>Costs!$A753)*('Fixed assets'!$P$2:$P$1000=Costs!$A753)*('Fixed assets'!$R$2:$R$1000))-SUMPRODUCT(('Fixed assets'!$Q$2:$Q$1000=Costs!T$705)*('Fixed assets'!$U$2:$U$1000>Costs!$A753)*('Fixed assets'!$P$2:$P$1000=Costs!$A753)*('Fixed assets'!$S$2:$S$1000))","v":0},{"$f":"U665+SUMPRODUCT(('Fixed assets'!$Q$2:$Q$1000=Costs!U$705)*('Fixed assets'!$U$2:$U$1000>Costs!$A753)*('Fixed assets'!$P$2:$P$1000=Costs!$A753)*('Fixed assets'!$R$2:$R$1000))-SUMPRODUCT(('Fixed assets'!$Q$2:$Q$1000=Costs!U$705)*('Fixed assets'!$U$2:$U$1000>Costs!$A753)*('Fixed assets'!$P$2:$P$1000=Costs!$A753)*('Fixed assets'!$S$2:$S$1000))","v":0},{"$f":"V665+SUMPRODUCT(('Fixed assets'!$Q$2:$Q$1000=Costs!V$705)*('Fixed assets'!$U$2:$U$1000>Costs!$A753)*('Fixed assets'!$P$2:$P$1000=Costs!$A753)*('Fixed assets'!$R$2:$R$1000))-SUMPRODUCT(('Fixed assets'!$Q$2:$Q$1000=Costs!V$705)*('Fixed assets'!$U$2:$U$1000>Costs!$A753)*('Fixed assets'!$P$2:$P$1000=Costs!$A753)*('Fixed assets'!$S$2:$S$1000))","v":0},{"$f":"W665+SUMPRODUCT(('Fixed assets'!$Q$2:$Q$1000=Costs!W$705)*('Fixed assets'!$U$2:$U$1000>Costs!$A753)*('Fixed assets'!$P$2:$P$1000=Costs!$A753)*('Fixed assets'!$R$2:$R$1000))-SUMPRODUCT(('Fixed assets'!$Q$2:$Q$1000=Costs!W$705)*('Fixed assets'!$U$2:$U$1000>Costs!$A753)*('Fixed assets'!$P$2:$P$1000=Costs!$A753)*('Fixed assets'!$S$2:$S$1000))","v":0},{"$f":"X665+SUMPRODUCT(('Fixed assets'!$Q$2:$Q$1000=Costs!X$705)*('Fixed assets'!$U$2:$U$1000>Costs!$A753)*('Fixed assets'!$P$2:$P$1000=Costs!$A753)*('Fixed assets'!$R$2:$R$1000))-SUMPRODUCT(('Fixed assets'!$Q$2:$Q$1000=Costs!X$705)*('Fixed assets'!$U$2:$U$1000>Costs!$A753)*('Fixed assets'!$P$2:$P$1000=Costs!$A753)*('Fixed assets'!$S$2:$S$1000))","v":0},{"$f":"Y665+SUMPRODUCT(('Fixed assets'!$Q$2:$Q$1000=Costs!Y$705)*('Fixed assets'!$U$2:$U$1000>Costs!$A753)*('Fixed assets'!$P$2:$P$1000=Costs!$A753)*('Fixed assets'!$R$2:$R$1000))-SUMPRODUCT(('Fixed assets'!$Q$2:$Q$1000=Costs!Y$705)*('Fixed assets'!$U$2:$U$1000>Costs!$A753)*('Fixed assets'!$P$2:$P$1000=Costs!$A753)*('Fixed assets'!$S$2:$S$1000))","v":0},{"$f":"Z665+SUMPRODUCT(('Fixed assets'!$Q$2:$Q$1000=Costs!Z$705)*('Fixed assets'!$U$2:$U$1000>Costs!$A753)*('Fixed assets'!$P$2:$P$1000=Costs!$A753)*('Fixed assets'!$R$2:$R$1000))-SUMPRODUCT(('Fixed assets'!$Q$2:$Q$1000=Costs!Z$705)*('Fixed assets'!$U$2:$U$1000>Costs!$A753)*('Fixed assets'!$P$2:$P$1000=Costs!$A753)*('Fixed assets'!$S$2:$S$1000))","v":0},{"$f":"AA665+SUMPRODUCT(('Fixed assets'!$Q$2:$Q$1000=Costs!AA$705)*('Fixed assets'!$U$2:$U$1000>Costs!$A753)*('Fixed assets'!$P$2:$P$1000=Costs!$A753)*('Fixed assets'!$R$2:$R$1000))-SUMPRODUCT(('Fixed assets'!$Q$2:$Q$1000=Costs!AA$705)*('Fixed assets'!$U$2:$U$1000>Costs!$A753)*('Fixed assets'!$P$2:$P$1000=Costs!$A753)*('Fixed assets'!$S$2:$S$1000))","v":0},{"$f":"AB665+SUMPRODUCT(('Fixed assets'!$Q$2:$Q$1000=Costs!AB$705)*('Fixed assets'!$U$2:$U$1000>Costs!$A753)*('Fixed assets'!$P$2:$P$1000=Costs!$A753)*('Fixed assets'!$R$2:$R$1000))-SUMPRODUCT(('Fixed assets'!$Q$2:$Q$1000=Costs!AB$705)*('Fixed assets'!$U$2:$U$1000>Costs!$A753)*('Fixed assets'!$P$2:$P$1000=Costs!$A753)*('Fixed assets'!$S$2:$S$1000))","v":0},{"$f":"AC665+SUMPRODUCT(('Fixed assets'!$Q$2:$Q$1000=Costs!AC$705)*('Fixed assets'!$U$2:$U$1000>Costs!$A753)*('Fixed assets'!$P$2:$P$1000=Costs!$A753)*('Fixed assets'!$R$2:$R$1000))-SUMPRODUCT(('Fixed assets'!$Q$2:$Q$1000=Costs!AC$705)*('Fixed assets'!$U$2:$U$1000>Costs!$A753)*('Fixed assets'!$P$2:$P$1000=Costs!$A753)*('Fixed assets'!$S$2:$S$1000))","v":0},{"$f":"AD665+SUMPRODUCT(('Fixed assets'!$Q$2:$Q$1000=Costs!AD$705)*('Fixed assets'!$U$2:$U$1000>Costs!$A753)*('Fixed assets'!$P$2:$P$1000=Costs!$A753)*('Fixed assets'!$R$2:$R$1000))-SUMPRODUCT(('Fixed assets'!$Q$2:$Q$1000=Costs!AD$705)*('Fixed assets'!$U$2:$U$1000>Costs!$A753)*('Fixed assets'!$P$2:$P$1000=Costs!$A753)*('Fixed assets'!$S$2:$S$1000))","v":0},{"$f":"AE665+SUMPRODUCT(('Fixed assets'!$Q$2:$Q$1000=Costs!AE$705)*('Fixed assets'!$U$2:$U$1000>Costs!$A753)*('Fixed assets'!$P$2:$P$1000=Costs!$A753)*('Fixed assets'!$R$2:$R$1000))-SUMPRODUCT(('Fixed assets'!$Q$2:$Q$1000=Costs!AE$705)*('Fixed assets'!$U$2:$U$1000>Costs!$A753)*('Fixed assets'!$P$2:$P$1000=Costs!$A753)*('Fixed assets'!$S$2:$S$1000))","v":0},{"$f":"AF665+SUMPRODUCT(('Fixed assets'!$Q$2:$Q$1000=Costs!AF$705)*('Fixed assets'!$U$2:$U$1000>Costs!$A753)*('Fixed assets'!$P$2:$P$1000=Costs!$A753)*('Fixed assets'!$R$2:$R$1000))-SUMPRODUCT(('Fixed assets'!$Q$2:$Q$1000=Costs!AF$705)*('Fixed assets'!$U$2:$U$1000>Costs!$A753)*('Fixed assets'!$P$2:$P$1000=Costs!$A753)*('Fixed assets'!$S$2:$S$1000))","v":0},{"$f":"AG665+SUMPRODUCT(('Fixed assets'!$Q$2:$Q$1000=Costs!AG$705)*('Fixed assets'!$U$2:$U$1000>Costs!$A753)*('Fixed assets'!$P$2:$P$1000=Costs!$A753)*('Fixed assets'!$R$2:$R$1000))-SUMPRODUCT(('Fixed assets'!$Q$2:$Q$1000=Costs!AG$705)*('Fixed assets'!$U$2:$U$1000>Costs!$A753)*('Fixed assets'!$P$2:$P$1000=Costs!$A753)*('Fixed assets'!$S$2:$S$1000))","v":0},{"$f":"AH665+SUMPRODUCT(('Fixed assets'!$Q$2:$Q$1000=Costs!AH$705)*('Fixed assets'!$U$2:$U$1000>Costs!$A753)*('Fixed assets'!$P$2:$P$1000=Costs!$A753)*('Fixed assets'!$R$2:$R$1000))-SUMPRODUCT(('Fixed assets'!$Q$2:$Q$1000=Costs!AH$705)*('Fixed assets'!$U$2:$U$1000>Costs!$A753)*('Fixed assets'!$P$2:$P$1000=Costs!$A753)*('Fixed assets'!$S$2:$S$1000))","v":0},{"$f":"AI665+SUMPRODUCT(('Fixed assets'!$Q$2:$Q$1000=Costs!AI$705)*('Fixed assets'!$U$2:$U$1000>Costs!$A753)*('Fixed assets'!$P$2:$P$1000=Costs!$A753)*('Fixed assets'!$R$2:$R$1000))-SUMPRODUCT(('Fixed assets'!$Q$2:$Q$1000=Costs!AI$705)*('Fixed assets'!$U$2:$U$1000>Costs!$A753)*('Fixed assets'!$P$2:$P$1000=Costs!$A753)*('Fixed assets'!$S$2:$S$1000))","v":0},{"$f":"AJ665+SUMPRODUCT(('Fixed assets'!$Q$2:$Q$1000=Costs!AJ$705)*('Fixed assets'!$U$2:$U$1000>Costs!$A753)*('Fixed assets'!$P$2:$P$1000=Costs!$A753)*('Fixed assets'!$R$2:$R$1000))-SUMPRODUCT(('Fixed assets'!$Q$2:$Q$1000=Costs!AJ$705)*('Fixed assets'!$U$2:$U$1000>Costs!$A753)*('Fixed assets'!$P$2:$P$1000=Costs!$A753)*('Fixed assets'!$S$2:$S$1000))","v":0},{"$f":"AK665+SUMPRODUCT(('Fixed assets'!$Q$2:$Q$1000=Costs!AK$705)*('Fixed assets'!$U$2:$U$1000>Costs!$A753)*('Fixed assets'!$P$2:$P$1000=Costs!$A753)*('Fixed assets'!$R$2:$R$1000))-SUMPRODUCT(('Fixed assets'!$Q$2:$Q$1000=Costs!AK$705)*('Fixed assets'!$U$2:$U$1000>Costs!$A753)*('Fixed assets'!$P$2:$P$1000=Costs!$A753)*('Fixed assets'!$S$2:$S$1000))","v":0},{"$f":"AL665+SUMPRODUCT(('Fixed assets'!$Q$2:$Q$1000=Costs!AL$705)*('Fixed assets'!$U$2:$U$1000>Costs!$A753)*('Fixed assets'!$P$2:$P$1000=Costs!$A753)*('Fixed assets'!$R$2:$R$1000))-SUMPRODUCT(('Fixed assets'!$Q$2:$Q$1000=Costs!AL$705)*('Fixed assets'!$U$2:$U$1000>Costs!$A753)*('Fixed assets'!$P$2:$P$1000=Costs!$A753)*('Fixed assets'!$S$2:$S$1000))","v":0},{"$f":"AM665+SUMPRODUCT(('Fixed assets'!$Q$2:$Q$1000=Costs!AM$705)*('Fixed assets'!$U$2:$U$1000>Costs!$A753)*('Fixed assets'!$P$2:$P$1000=Costs!$A753)*('Fixed assets'!$R$2:$R$1000))-SUMPRODUCT(('Fixed assets'!$Q$2:$Q$1000=Costs!AM$705)*('Fixed assets'!$U$2:$U$1000>Costs!$A753)*('Fixed assets'!$P$2:$P$1000=Costs!$A753)*('Fixed assets'!$S$2:$S$1000))","v":0},{"$f":"AN665+SUMPRODUCT(('Fixed assets'!$Q$2:$Q$1000=Costs!AN$705)*('Fixed assets'!$U$2:$U$1000>Costs!$A753)*('Fixed assets'!$P$2:$P$1000=Costs!$A753)*('Fixed assets'!$R$2:$R$1000))-SUMPRODUCT(('Fixed assets'!$Q$2:$Q$1000=Costs!AN$705)*('Fixed assets'!$U$2:$U$1000>Costs!$A753)*('Fixed assets'!$P$2:$P$1000=Costs!$A753)*('Fixed assets'!$S$2:$S$1000))","v":0},{"$f":"AO665+SUMPRODUCT(('Fixed assets'!$Q$2:$Q$1000=Costs!AO$705)*('Fixed assets'!$U$2:$U$1000>Costs!$A753)*('Fixed assets'!$P$2:$P$1000=Costs!$A753)*('Fixed assets'!$R$2:$R$1000))-SUMPRODUCT(('Fixed assets'!$Q$2:$Q$1000=Costs!AO$705)*('Fixed assets'!$U$2:$U$1000>Costs!$A753)*('Fixed assets'!$P$2:$P$1000=Costs!$A753)*('Fixed assets'!$S$2:$S$1000))","v":0},{"$f":"AP665+SUMPRODUCT(('Fixed assets'!$Q$2:$Q$1000=Costs!AP$705)*('Fixed assets'!$U$2:$U$1000>Costs!$A753)*('Fixed assets'!$P$2:$P$1000=Costs!$A753)*('Fixed assets'!$R$2:$R$1000))-SUMPRODUCT(('Fixed assets'!$Q$2:$Q$1000=Costs!AP$705)*('Fixed assets'!$U$2:$U$1000>Costs!$A753)*('Fixed assets'!$P$2:$P$1000=Costs!$A753)*('Fixed assets'!$S$2:$S$1000))","v":0},{"$f":"AQ665+SUMPRODUCT(('Fixed assets'!$Q$2:$Q$1000=Costs!AQ$705)*('Fixed assets'!$U$2:$U$1000>Costs!$A753)*('Fixed assets'!$P$2:$P$1000=Costs!$A753)*('Fixed assets'!$R$2:$R$1000))-SUMPRODUCT(('Fixed assets'!$Q$2:$Q$1000=Costs!AQ$705)*('Fixed assets'!$U$2:$U$1000>Costs!$A753)*('Fixed assets'!$P$2:$P$1000=Costs!$A753)*('Fixed assets'!$S$2:$S$1000))","v":0}]
[2063,0,{"$f":"C666+SUMPRODUCT(('Fixed assets'!$Q$2:$Q$1000=Costs!C$705)*('Fixed assets'!$U$2:$U$1000>Costs!$A754)*('Fixed assets'!$P$2:$P$1000=Costs!$A754)*('Fixed assets'!$R$2:$R$1000))-SUMPRODUCT(('Fixed assets'!$Q$2:$Q$1000=Costs!C$705)*('Fixed assets'!$U$2:$U$1000>Costs!$A754)*('Fixed assets'!$P$2:$P$1000=Costs!$A754)*('Fixed assets'!$S$2:$S$1000))","v":0},{"$f":"D666+SUMPRODUCT(('Fixed assets'!$Q$2:$Q$1000=Costs!D$705)*('Fixed assets'!$U$2:$U$1000>Costs!$A754)*('Fixed assets'!$P$2:$P$1000=Costs!$A754)*('Fixed assets'!$R$2:$R$1000))-SUMPRODUCT(('Fixed assets'!$Q$2:$Q$1000=Costs!D$705)*('Fixed assets'!$U$2:$U$1000>Costs!$A754)*('Fixed assets'!$P$2:$P$1000=Costs!$A754)*('Fixed assets'!$S$2:$S$1000))","v":0},{"$f":"E666+SUMPRODUCT(('Fixed assets'!$Q$2:$Q$1000=Costs!E$705)*('Fixed assets'!$U$2:$U$1000>Costs!$A754)*('Fixed assets'!$P$2:$P$1000=Costs!$A754)*('Fixed assets'!$R$2:$R$1000))-SUMPRODUCT(('Fixed assets'!$Q$2:$Q$1000=Costs!E$705)*('Fixed assets'!$U$2:$U$1000>Costs!$A754)*('Fixed assets'!$P$2:$P$1000=Costs!$A754)*('Fixed assets'!$S$2:$S$1000))","v":0},{"$f":"F666+SUMPRODUCT(('Fixed assets'!$Q$2:$Q$1000=Costs!F$705)*('Fixed assets'!$U$2:$U$1000>Costs!$A754)*('Fixed assets'!$P$2:$P$1000=Costs!$A754)*('Fixed assets'!$R$2:$R$1000))-SUMPRODUCT(('Fixed assets'!$Q$2:$Q$1000=Costs!F$705)*('Fixed assets'!$U$2:$U$1000>Costs!$A754)*('Fixed assets'!$P$2:$P$1000=Costs!$A754)*('Fixed assets'!$S$2:$S$1000))","v":0},{"$f":"G666+SUMPRODUCT(('Fixed assets'!$Q$2:$Q$1000=Costs!G$705)*('Fixed assets'!$U$2:$U$1000>Costs!$A754)*('Fixed assets'!$P$2:$P$1000=Costs!$A754)*('Fixed assets'!$R$2:$R$1000))-SUMPRODUCT(('Fixed assets'!$Q$2:$Q$1000=Costs!G$705)*('Fixed assets'!$U$2:$U$1000>Costs!$A754)*('Fixed assets'!$P$2:$P$1000=Costs!$A754)*('Fixed assets'!$S$2:$S$1000))","v":0},{"$f":"H666+SUMPRODUCT(('Fixed assets'!$Q$2:$Q$1000=Costs!H$705)*('Fixed assets'!$U$2:$U$1000>Costs!$A754)*('Fixed assets'!$P$2:$P$1000=Costs!$A754)*('Fixed assets'!$R$2:$R$1000))-SUMPRODUCT(('Fixed assets'!$Q$2:$Q$1000=Costs!H$705)*('Fixed assets'!$U$2:$U$1000>Costs!$A754)*('Fixed assets'!$P$2:$P$1000=Costs!$A754)*('Fixed assets'!$S$2:$S$1000))","v":0},{"$f":"I666+SUMPRODUCT(('Fixed assets'!$Q$2:$Q$1000=Costs!I$705)*('Fixed assets'!$U$2:$U$1000>Costs!$A754)*('Fixed assets'!$P$2:$P$1000=Costs!$A754)*('Fixed assets'!$R$2:$R$1000))-SUMPRODUCT(('Fixed assets'!$Q$2:$Q$1000=Costs!I$705)*('Fixed assets'!$U$2:$U$1000>Costs!$A754)*('Fixed assets'!$P$2:$P$1000=Costs!$A754)*('Fixed assets'!$S$2:$S$1000))","v":0},{"$f":"J666+SUMPRODUCT(('Fixed assets'!$Q$2:$Q$1000=Costs!J$705)*('Fixed assets'!$U$2:$U$1000>Costs!$A754)*('Fixed assets'!$P$2:$P$1000=Costs!$A754)*('Fixed assets'!$R$2:$R$1000))-SUMPRODUCT(('Fixed assets'!$Q$2:$Q$1000=Costs!J$705)*('Fixed assets'!$U$2:$U$1000>Costs!$A754)*('Fixed assets'!$P$2:$P$1000=Costs!$A754)*('Fixed assets'!$S$2:$S$1000))","v":0},{"$f":"K666+SUMPRODUCT(('Fixed assets'!$Q$2:$Q$1000=Costs!K$705)*('Fixed assets'!$U$2:$U$1000>Costs!$A754)*('Fixed assets'!$P$2:$P$1000=Costs!$A754)*('Fixed assets'!$R$2:$R$1000))-SUMPRODUCT(('Fixed assets'!$Q$2:$Q$1000=Costs!K$705)*('Fixed assets'!$U$2:$U$1000>Costs!$A754)*('Fixed assets'!$P$2:$P$1000=Costs!$A754)*('Fixed assets'!$S$2:$S$1000))","v":0},{"$f":"L666+SUMPRODUCT(('Fixed assets'!$Q$2:$Q$1000=Costs!L$705)*('Fixed assets'!$U$2:$U$1000>Costs!$A754)*('Fixed assets'!$P$2:$P$1000=Costs!$A754)*('Fixed assets'!$R$2:$R$1000))-SUMPRODUCT(('Fixed assets'!$Q$2:$Q$1000=Costs!L$705)*('Fixed assets'!$U$2:$U$1000>Costs!$A754)*('Fixed assets'!$P$2:$P$1000=Costs!$A754)*('Fixed assets'!$S$2:$S$1000))","v":0},{"$f":"M666+SUMPRODUCT(('Fixed assets'!$Q$2:$Q$1000=Costs!M$705)*('Fixed assets'!$U$2:$U$1000>Costs!$A754)*('Fixed assets'!$P$2:$P$1000=Costs!$A754)*('Fixed assets'!$R$2:$R$1000))-SUMPRODUCT(('Fixed assets'!$Q$2:$Q$1000=Costs!M$705)*('Fixed assets'!$U$2:$U$1000>Costs!$A754)*('Fixed assets'!$P$2:$P$1000=Costs!$A754)*('Fixed assets'!$S$2:$S$1000))","v":0},{"$f":"N666+SUMPRODUCT(('Fixed assets'!$Q$2:$Q$1000=Costs!N$705)*('Fixed assets'!$U$2:$U$1000>Costs!$A754)*('Fixed assets'!$P$2:$P$1000=Costs!$A754)*('Fixed assets'!$R$2:$R$1000))-SUMPRODUCT(('Fixed assets'!$Q$2:$Q$1000=Costs!N$705)*('Fixed assets'!$U$2:$U$1000>Costs!$A754)*('Fixed assets'!$P$2:$P$1000=Costs!$A754)*('Fixed assets'!$S$2:$S$1000))","v":0},{"$f":"O666+SUMPRODUCT(('Fixed assets'!$Q$2:$Q$1000=Costs!O$705)*('Fixed assets'!$U$2:$U$1000>Costs!$A754)*('Fixed assets'!$P$2:$P$1000=Costs!$A754)*('Fixed assets'!$R$2:$R$1000))-SUMPRODUCT(('Fixed assets'!$Q$2:$Q$1000=Costs!O$705)*('Fixed assets'!$U$2:$U$1000>Costs!$A754)*('Fixed assets'!$P$2:$P$1000=Costs!$A754)*('Fixed assets'!$S$2:$S$1000))","v":0},{"$f":"P666+SUMPRODUCT(('Fixed assets'!$Q$2:$Q$1000=Costs!P$705)*('Fixed assets'!$U$2:$U$1000>Costs!$A754)*('Fixed assets'!$P$2:$P$1000=Costs!$A754)*('Fixed assets'!$R$2:$R$1000))-SUMPRODUCT(('Fixed assets'!$Q$2:$Q$1000=Costs!P$705)*('Fixed assets'!$U$2:$U$1000>Costs!$A754)*('Fixed assets'!$P$2:$P$1000=Costs!$A754)*('Fixed assets'!$S$2:$S$1000))","v":0},{"$f":"Q666+SUMPRODUCT(('Fixed assets'!$Q$2:$Q$1000=Costs!Q$705)*('Fixed assets'!$U$2:$U$1000>Costs!$A754)*('Fixed assets'!$P$2:$P$1000=Costs!$A754)*('Fixed assets'!$R$2:$R$1000))-SUMPRODUCT(('Fixed assets'!$Q$2:$Q$1000=Costs!Q$705)*('Fixed assets'!$U$2:$U$1000>Costs!$A754)*('Fixed assets'!$P$2:$P$1000=Costs!$A754)*('Fixed assets'!$S$2:$S$1000))","v":0},{"$f":"R666+SUMPRODUCT(('Fixed assets'!$Q$2:$Q$1000=Costs!R$705)*('Fixed assets'!$U$2:$U$1000>Costs!$A754)*('Fixed assets'!$P$2:$P$1000=Costs!$A754)*('Fixed assets'!$R$2:$R$1000))-SUMPRODUCT(('Fixed assets'!$Q$2:$Q$1000=Costs!R$705)*('Fixed assets'!$U$2:$U$1000>Costs!$A754)*('Fixed assets'!$P$2:$P$1000=Costs!$A754)*('Fixed assets'!$S$2:$S$1000))","v":0},{"$f":"S666+SUMPRODUCT(('Fixed assets'!$Q$2:$Q$1000=Costs!S$705)*('Fixed assets'!$U$2:$U$1000>Costs!$A754)*('Fixed assets'!$P$2:$P$1000=Costs!$A754)*('Fixed assets'!$R$2:$R$1000))-SUMPRODUCT(('Fixed assets'!$Q$2:$Q$1000=Costs!S$705)*('Fixed assets'!$U$2:$U$1000>Costs!$A754)*('Fixed assets'!$P$2:$P$1000=Costs!$A754)*('Fixed assets'!$S$2:$S$1000))","v":0},{"$f":"T666+SUMPRODUCT(('Fixed assets'!$Q$2:$Q$1000=Costs!T$705)*('Fixed assets'!$U$2:$U$1000>Costs!$A754)*('Fixed assets'!$P$2:$P$1000=Costs!$A754)*('Fixed assets'!$R$2:$R$1000))-SUMPRODUCT(('Fixed assets'!$Q$2:$Q$1000=Costs!T$705)*('Fixed assets'!$U$2:$U$1000>Costs!$A754)*('Fixed assets'!$P$2:$P$1000=Costs!$A754)*('Fixed assets'!$S$2:$S$1000))","v":0},{"$f":"U666+SUMPRODUCT(('Fixed assets'!$Q$2:$Q$1000=Costs!U$705)*('Fixed assets'!$U$2:$U$1000>Costs!$A754)*('Fixed assets'!$P$2:$P$1000=Costs!$A754)*('Fixed assets'!$R$2:$R$1000))-SUMPRODUCT(('Fixed assets'!$Q$2:$Q$1000=Costs!U$705)*('Fixed assets'!$U$2:$U$1000>Costs!$A754)*('Fixed assets'!$P$2:$P$1000=Costs!$A754)*('Fixed assets'!$S$2:$S$1000))","v":0},{"$f":"V666+SUMPRODUCT(('Fixed assets'!$Q$2:$Q$1000=Costs!V$705)*('Fixed assets'!$U$2:$U$1000>Costs!$A754)*('Fixed assets'!$P$2:$P$1000=Costs!$A754)*('Fixed assets'!$R$2:$R$1000))-SUMPRODUCT(('Fixed assets'!$Q$2:$Q$1000=Costs!V$705)*('Fixed assets'!$U$2:$U$1000>Costs!$A754)*('Fixed assets'!$P$2:$P$1000=Costs!$A754)*('Fixed assets'!$S$2:$S$1000))","v":0},{"$f":"W666+SUMPRODUCT(('Fixed assets'!$Q$2:$Q$1000=Costs!W$705)*('Fixed assets'!$U$2:$U$1000>Costs!$A754)*('Fixed assets'!$P$2:$P$1000=Costs!$A754)*('Fixed assets'!$R$2:$R$1000))-SUMPRODUCT(('Fixed assets'!$Q$2:$Q$1000=Costs!W$705)*('Fixed assets'!$U$2:$U$1000>Costs!$A754)*('Fixed assets'!$P$2:$P$1000=Costs!$A754)*('Fixed assets'!$S$2:$S$1000))","v":0},{"$f":"X666+SUMPRODUCT(('Fixed assets'!$Q$2:$Q$1000=Costs!X$705)*('Fixed assets'!$U$2:$U$1000>Costs!$A754)*('Fixed assets'!$P$2:$P$1000=Costs!$A754)*('Fixed assets'!$R$2:$R$1000))-SUMPRODUCT(('Fixed assets'!$Q$2:$Q$1000=Costs!X$705)*('Fixed assets'!$U$2:$U$1000>Costs!$A754)*('Fixed assets'!$P$2:$P$1000=Costs!$A754)*('Fixed assets'!$S$2:$S$1000))","v":0},{"$f":"Y666+SUMPRODUCT(('Fixed assets'!$Q$2:$Q$1000=Costs!Y$705)*('Fixed assets'!$U$2:$U$1000>Costs!$A754)*('Fixed assets'!$P$2:$P$1000=Costs!$A754)*('Fixed assets'!$R$2:$R$1000))-SUMPRODUCT(('Fixed assets'!$Q$2:$Q$1000=Costs!Y$705)*('Fixed assets'!$U$2:$U$1000>Costs!$A754)*('Fixed assets'!$P$2:$P$1000=Costs!$A754)*('Fixed assets'!$S$2:$S$1000))","v":0},{"$f":"Z666+SUMPRODUCT(('Fixed assets'!$Q$2:$Q$1000=Costs!Z$705)*('Fixed assets'!$U$2:$U$1000>Costs!$A754)*('Fixed assets'!$P$2:$P$1000=Costs!$A754)*('Fixed assets'!$R$2:$R$1000))-SUMPRODUCT(('Fixed assets'!$Q$2:$Q$1000=Costs!Z$705)*('Fixed assets'!$U$2:$U$1000>Costs!$A754)*('Fixed assets'!$P$2:$P$1000=Costs!$A754)*('Fixed assets'!$S$2:$S$1000))","v":0},{"$f":"AA666+SUMPRODUCT(('Fixed assets'!$Q$2:$Q$1000=Costs!AA$705)*('Fixed assets'!$U$2:$U$1000>Costs!$A754)*('Fixed assets'!$P$2:$P$1000=Costs!$A754)*('Fixed assets'!$R$2:$R$1000))-SUMPRODUCT(('Fixed assets'!$Q$2:$Q$1000=Costs!AA$705)*('Fixed assets'!$U$2:$U$1000>Costs!$A754)*('Fixed assets'!$P$2:$P$1000=Costs!$A754)*('Fixed assets'!$S$2:$S$1000))","v":0},{"$f":"AB666+SUMPRODUCT(('Fixed assets'!$Q$2:$Q$1000=Costs!AB$705)*('Fixed assets'!$U$2:$U$1000>Costs!$A754)*('Fixed assets'!$P$2:$P$1000=Costs!$A754)*('Fixed assets'!$R$2:$R$1000))-SUMPRODUCT(('Fixed assets'!$Q$2:$Q$1000=Costs!AB$705)*('Fixed assets'!$U$2:$U$1000>Costs!$A754)*('Fixed assets'!$P$2:$P$1000=Costs!$A754)*('Fixed assets'!$S$2:$S$1000))","v":0},{"$f":"AC666+SUMPRODUCT(('Fixed assets'!$Q$2:$Q$1000=Costs!AC$705)*('Fixed assets'!$U$2:$U$1000>Costs!$A754)*('Fixed assets'!$P$2:$P$1000=Costs!$A754)*('Fixed assets'!$R$2:$R$1000))-SUMPRODUCT(('Fixed assets'!$Q$2:$Q$1000=Costs!AC$705)*('Fixed assets'!$U$2:$U$1000>Costs!$A754)*('Fixed assets'!$P$2:$P$1000=Costs!$A754)*('Fixed assets'!$S$2:$S$1000))","v":0},{"$f":"AD666+SUMPRODUCT(('Fixed assets'!$Q$2:$Q$1000=Costs!AD$705)*('Fixed assets'!$U$2:$U$1000>Costs!$A754)*('Fixed assets'!$P$2:$P$1000=Costs!$A754)*('Fixed assets'!$R$2:$R$1000))-SUMPRODUCT(('Fixed assets'!$Q$2:$Q$1000=Costs!AD$705)*('Fixed assets'!$U$2:$U$1000>Costs!$A754)*('Fixed assets'!$P$2:$P$1000=Costs!$A754)*('Fixed assets'!$S$2:$S$1000))","v":0},{"$f":"AE666+SUMPRODUCT(('Fixed assets'!$Q$2:$Q$1000=Costs!AE$705)*('Fixed assets'!$U$2:$U$1000>Costs!$A754)*('Fixed assets'!$P$2:$P$1000=Costs!$A754)*('Fixed assets'!$R$2:$R$1000))-SUMPRODUCT(('Fixed assets'!$Q$2:$Q$1000=Costs!AE$705)*('Fixed assets'!$U$2:$U$1000>Costs!$A754)*('Fixed assets'!$P$2:$P$1000=Costs!$A754)*('Fixed assets'!$S$2:$S$1000))","v":0},{"$f":"AF666+SUMPRODUCT(('Fixed assets'!$Q$2:$Q$1000=Costs!AF$705)*('Fixed assets'!$U$2:$U$1000>Costs!$A754)*('Fixed assets'!$P$2:$P$1000=Costs!$A754)*('Fixed assets'!$R$2:$R$1000))-SUMPRODUCT(('Fixed assets'!$Q$2:$Q$1000=Costs!AF$705)*('Fixed assets'!$U$2:$U$1000>Costs!$A754)*('Fixed assets'!$P$2:$P$1000=Costs!$A754)*('Fixed assets'!$S$2:$S$1000))","v":0},{"$f":"AG666+SUMPRODUCT(('Fixed assets'!$Q$2:$Q$1000=Costs!AG$705)*('Fixed assets'!$U$2:$U$1000>Costs!$A754)*('Fixed assets'!$P$2:$P$1000=Costs!$A754)*('Fixed assets'!$R$2:$R$1000))-SUMPRODUCT(('Fixed assets'!$Q$2:$Q$1000=Costs!AG$705)*('Fixed assets'!$U$2:$U$1000>Costs!$A754)*('Fixed assets'!$P$2:$P$1000=Costs!$A754)*('Fixed assets'!$S$2:$S$1000))","v":0},{"$f":"AH666+SUMPRODUCT(('Fixed assets'!$Q$2:$Q$1000=Costs!AH$705)*('Fixed assets'!$U$2:$U$1000>Costs!$A754)*('Fixed assets'!$P$2:$P$1000=Costs!$A754)*('Fixed assets'!$R$2:$R$1000))-SUMPRODUCT(('Fixed assets'!$Q$2:$Q$1000=Costs!AH$705)*('Fixed assets'!$U$2:$U$1000>Costs!$A754)*('Fixed assets'!$P$2:$P$1000=Costs!$A754)*('Fixed assets'!$S$2:$S$1000))","v":0},{"$f":"AI666+SUMPRODUCT(('Fixed assets'!$Q$2:$Q$1000=Costs!AI$705)*('Fixed assets'!$U$2:$U$1000>Costs!$A754)*('Fixed assets'!$P$2:$P$1000=Costs!$A754)*('Fixed assets'!$R$2:$R$1000))-SUMPRODUCT(('Fixed assets'!$Q$2:$Q$1000=Costs!AI$705)*('Fixed assets'!$U$2:$U$1000>Costs!$A754)*('Fixed assets'!$P$2:$P$1000=Costs!$A754)*('Fixed assets'!$S$2:$S$1000))","v":0},{"$f":"AJ666+SUMPRODUCT(('Fixed assets'!$Q$2:$Q$1000=Costs!AJ$705)*('Fixed assets'!$U$2:$U$1000>Costs!$A754)*('Fixed assets'!$P$2:$P$1000=Costs!$A754)*('Fixed assets'!$R$2:$R$1000))-SUMPRODUCT(('Fixed assets'!$Q$2:$Q$1000=Costs!AJ$705)*('Fixed assets'!$U$2:$U$1000>Costs!$A754)*('Fixed assets'!$P$2:$P$1000=Costs!$A754)*('Fixed assets'!$S$2:$S$1000))","v":0},{"$f":"AK666+SUMPRODUCT(('Fixed assets'!$Q$2:$Q$1000=Costs!AK$705)*('Fixed assets'!$U$2:$U$1000>Costs!$A754)*('Fixed assets'!$P$2:$P$1000=Costs!$A754)*('Fixed assets'!$R$2:$R$1000))-SUMPRODUCT(('Fixed assets'!$Q$2:$Q$1000=Costs!AK$705)*('Fixed assets'!$U$2:$U$1000>Costs!$A754)*('Fixed assets'!$P$2:$P$1000=Costs!$A754)*('Fixed assets'!$S$2:$S$1000))","v":0},{"$f":"AL666+SUMPRODUCT(('Fixed assets'!$Q$2:$Q$1000=Costs!AL$705)*('Fixed assets'!$U$2:$U$1000>Costs!$A754)*('Fixed assets'!$P$2:$P$1000=Costs!$A754)*('Fixed assets'!$R$2:$R$1000))-SUMPRODUCT(('Fixed assets'!$Q$2:$Q$1000=Costs!AL$705)*('Fixed assets'!$U$2:$U$1000>Costs!$A754)*('Fixed assets'!$P$2:$P$1000=Costs!$A754)*('Fixed assets'!$S$2:$S$1000))","v":0},{"$f":"AM666+SUMPRODUCT(('Fixed assets'!$Q$2:$Q$1000=Costs!AM$705)*('Fixed assets'!$U$2:$U$1000>Costs!$A754)*('Fixed assets'!$P$2:$P$1000=Costs!$A754)*('Fixed assets'!$R$2:$R$1000))-SUMPRODUCT(('Fixed assets'!$Q$2:$Q$1000=Costs!AM$705)*('Fixed assets'!$U$2:$U$1000>Costs!$A754)*('Fixed assets'!$P$2:$P$1000=Costs!$A754)*('Fixed assets'!$S$2:$S$1000))","v":0},{"$f":"AN666+SUMPRODUCT(('Fixed assets'!$Q$2:$Q$1000=Costs!AN$705)*('Fixed assets'!$U$2:$U$1000>Costs!$A754)*('Fixed assets'!$P$2:$P$1000=Costs!$A754)*('Fixed assets'!$R$2:$R$1000))-SUMPRODUCT(('Fixed assets'!$Q$2:$Q$1000=Costs!AN$705)*('Fixed assets'!$U$2:$U$1000>Costs!$A754)*('Fixed assets'!$P$2:$P$1000=Costs!$A754)*('Fixed assets'!$S$2:$S$1000))","v":0},{"$f":"AO666+SUMPRODUCT(('Fixed assets'!$Q$2:$Q$1000=Costs!AO$705)*('Fixed assets'!$U$2:$U$1000>Costs!$A754)*('Fixed assets'!$P$2:$P$1000=Costs!$A754)*('Fixed assets'!$R$2:$R$1000))-SUMPRODUCT(('Fixed assets'!$Q$2:$Q$1000=Costs!AO$705)*('Fixed assets'!$U$2:$U$1000>Costs!$A754)*('Fixed assets'!$P$2:$P$1000=Costs!$A754)*('Fixed assets'!$S$2:$S$1000))","v":0},{"$f":"AP666+SUMPRODUCT(('Fixed assets'!$Q$2:$Q$1000=Costs!AP$705)*('Fixed assets'!$U$2:$U$1000>Costs!$A754)*('Fixed assets'!$P$2:$P$1000=Costs!$A754)*('Fixed assets'!$R$2:$R$1000))-SUMPRODUCT(('Fixed assets'!$Q$2:$Q$1000=Costs!AP$705)*('Fixed assets'!$U$2:$U$1000>Costs!$A754)*('Fixed assets'!$P$2:$P$1000=Costs!$A754)*('Fixed assets'!$S$2:$S$1000))","v":0},{"$f":"AQ666+SUMPRODUCT(('Fixed assets'!$Q$2:$Q$1000=Costs!AQ$705)*('Fixed assets'!$U$2:$U$1000>Costs!$A754)*('Fixed assets'!$P$2:$P$1000=Costs!$A754)*('Fixed assets'!$R$2:$R$1000))-SUMPRODUCT(('Fixed assets'!$Q$2:$Q$1000=Costs!AQ$705)*('Fixed assets'!$U$2:$U$1000>Costs!$A754)*('Fixed assets'!$P$2:$P$1000=Costs!$A754)*('Fixed assets'!$S$2:$S$1000))","v":0}]
[2064,0,{"$f":"C667+SUMPRODUCT(('Fixed assets'!$Q$2:$Q$1000=Costs!C$705)*('Fixed assets'!$U$2:$U$1000>Costs!$A755)*('Fixed assets'!$P$2:$P$1000=Costs!$A755)*('Fixed assets'!$R$2:$R$1000))-SUMPRODUCT(('Fixed assets'!$Q$2:$Q$1000=Costs!C$705)*('Fixed assets'!$U$2:$U$1000>Costs!$A755)*('Fixed assets'!$P$2:$P$1000=Costs!$A755)*('Fixed assets'!$S$2:$S$1000))","v":0},{"$f":"D667+SUMPRODUCT(('Fixed assets'!$Q$2:$Q$1000=Costs!D$705)*('Fixed assets'!$U$2:$U$1000>Costs!$A755)*('Fixed assets'!$P$2:$P$1000=Costs!$A755)*('Fixed assets'!$R$2:$R$1000))-SUMPRODUCT(('Fixed assets'!$Q$2:$Q$1000=Costs!D$705)*('Fixed assets'!$U$2:$U$1000>Costs!$A755)*('Fixed assets'!$P$2:$P$1000=Costs!$A755)*('Fixed assets'!$S$2:$S$1000))","v":0},{"$f":"E667+SUMPRODUCT(('Fixed assets'!$Q$2:$Q$1000=Costs!E$705)*('Fixed assets'!$U$2:$U$1000>Costs!$A755)*('Fixed assets'!$P$2:$P$1000=Costs!$A755)*('Fixed assets'!$R$2:$R$1000))-SUMPRODUCT(('Fixed assets'!$Q$2:$Q$1000=Costs!E$705)*('Fixed assets'!$U$2:$U$1000>Costs!$A755)*('Fixed assets'!$P$2:$P$1000=Costs!$A755)*('Fixed assets'!$S$2:$S$1000))","v":0},{"$f":"F667+SUMPRODUCT(('Fixed assets'!$Q$2:$Q$1000=Costs!F$705)*('Fixed assets'!$U$2:$U$1000>Costs!$A755)*('Fixed assets'!$P$2:$P$1000=Costs!$A755)*('Fixed assets'!$R$2:$R$1000))-SUMPRODUCT(('Fixed assets'!$Q$2:$Q$1000=Costs!F$705)*('Fixed assets'!$U$2:$U$1000>Costs!$A755)*('Fixed assets'!$P$2:$P$1000=Costs!$A755)*('Fixed assets'!$S$2:$S$1000))","v":0},{"$f":"G667+SUMPRODUCT(('Fixed assets'!$Q$2:$Q$1000=Costs!G$705)*('Fixed assets'!$U$2:$U$1000>Costs!$A755)*('Fixed assets'!$P$2:$P$1000=Costs!$A755)*('Fixed assets'!$R$2:$R$1000))-SUMPRODUCT(('Fixed assets'!$Q$2:$Q$1000=Costs!G$705)*('Fixed assets'!$U$2:$U$1000>Costs!$A755)*('Fixed assets'!$P$2:$P$1000=Costs!$A755)*('Fixed assets'!$S$2:$S$1000))","v":0},{"$f":"H667+SUMPRODUCT(('Fixed assets'!$Q$2:$Q$1000=Costs!H$705)*('Fixed assets'!$U$2:$U$1000>Costs!$A755)*('Fixed assets'!$P$2:$P$1000=Costs!$A755)*('Fixed assets'!$R$2:$R$1000))-SUMPRODUCT(('Fixed assets'!$Q$2:$Q$1000=Costs!H$705)*('Fixed assets'!$U$2:$U$1000>Costs!$A755)*('Fixed assets'!$P$2:$P$1000=Costs!$A755)*('Fixed assets'!$S$2:$S$1000))","v":0},{"$f":"I667+SUMPRODUCT(('Fixed assets'!$Q$2:$Q$1000=Costs!I$705)*('Fixed assets'!$U$2:$U$1000>Costs!$A755)*('Fixed assets'!$P$2:$P$1000=Costs!$A755)*('Fixed assets'!$R$2:$R$1000))-SUMPRODUCT(('Fixed assets'!$Q$2:$Q$1000=Costs!I$705)*('Fixed assets'!$U$2:$U$1000>Costs!$A755)*('Fixed assets'!$P$2:$P$1000=Costs!$A755)*('Fixed assets'!$S$2:$S$1000))","v":0},{"$f":"J667+SUMPRODUCT(('Fixed assets'!$Q$2:$Q$1000=Costs!J$705)*('Fixed assets'!$U$2:$U$1000>Costs!$A755)*('Fixed assets'!$P$2:$P$1000=Costs!$A755)*('Fixed assets'!$R$2:$R$1000))-SUMPRODUCT(('Fixed assets'!$Q$2:$Q$1000=Costs!J$705)*('Fixed assets'!$U$2:$U$1000>Costs!$A755)*('Fixed assets'!$P$2:$P$1000=Costs!$A755)*('Fixed assets'!$S$2:$S$1000))","v":0},{"$f":"K667+SUMPRODUCT(('Fixed assets'!$Q$2:$Q$1000=Costs!K$705)*('Fixed assets'!$U$2:$U$1000>Costs!$A755)*('Fixed assets'!$P$2:$P$1000=Costs!$A755)*('Fixed assets'!$R$2:$R$1000))-SUMPRODUCT(('Fixed assets'!$Q$2:$Q$1000=Costs!K$705)*('Fixed assets'!$U$2:$U$1000>Costs!$A755)*('Fixed assets'!$P$2:$P$1000=Costs!$A755)*('Fixed assets'!$S$2:$S$1000))","v":0},{"$f":"L667+SUMPRODUCT(('Fixed assets'!$Q$2:$Q$1000=Costs!L$705)*('Fixed assets'!$U$2:$U$1000>Costs!$A755)*('Fixed assets'!$P$2:$P$1000=Costs!$A755)*('Fixed assets'!$R$2:$R$1000))-SUMPRODUCT(('Fixed assets'!$Q$2:$Q$1000=Costs!L$705)*('Fixed assets'!$U$2:$U$1000>Costs!$A755)*('Fixed assets'!$P$2:$P$1000=Costs!$A755)*('Fixed assets'!$S$2:$S$1000))","v":0},{"$f":"M667+SUMPRODUCT(('Fixed assets'!$Q$2:$Q$1000=Costs!M$705)*('Fixed assets'!$U$2:$U$1000>Costs!$A755)*('Fixed assets'!$P$2:$P$1000=Costs!$A755)*('Fixed assets'!$R$2:$R$1000))-SUMPRODUCT(('Fixed assets'!$Q$2:$Q$1000=Costs!M$705)*('Fixed assets'!$U$2:$U$1000>Costs!$A755)*('Fixed assets'!$P$2:$P$1000=Costs!$A755)*('Fixed assets'!$S$2:$S$1000))","v":0},{"$f":"N667+SUMPRODUCT(('Fixed assets'!$Q$2:$Q$1000=Costs!N$705)*('Fixed assets'!$U$2:$U$1000>Costs!$A755)*('Fixed assets'!$P$2:$P$1000=Costs!$A755)*('Fixed assets'!$R$2:$R$1000))-SUMPRODUCT(('Fixed assets'!$Q$2:$Q$1000=Costs!N$705)*('Fixed assets'!$U$2:$U$1000>Costs!$A755)*('Fixed assets'!$P$2:$P$1000=Costs!$A755)*('Fixed assets'!$S$2:$S$1000))","v":0},{"$f":"O667+SUMPRODUCT(('Fixed assets'!$Q$2:$Q$1000=Costs!O$705)*('Fixed assets'!$U$2:$U$1000>Costs!$A755)*('Fixed assets'!$P$2:$P$1000=Costs!$A755)*('Fixed assets'!$R$2:$R$1000))-SUMPRODUCT(('Fixed assets'!$Q$2:$Q$1000=Costs!O$705)*('Fixed assets'!$U$2:$U$1000>Costs!$A755)*('Fixed assets'!$P$2:$P$1000=Costs!$A755)*('Fixed assets'!$S$2:$S$1000))","v":0},{"$f":"P667+SUMPRODUCT(('Fixed assets'!$Q$2:$Q$1000=Costs!P$705)*('Fixed assets'!$U$2:$U$1000>Costs!$A755)*('Fixed assets'!$P$2:$P$1000=Costs!$A755)*('Fixed assets'!$R$2:$R$1000))-SUMPRODUCT(('Fixed assets'!$Q$2:$Q$1000=Costs!P$705)*('Fixed assets'!$U$2:$U$1000>Costs!$A755)*('Fixed assets'!$P$2:$P$1000=Costs!$A755)*('Fixed assets'!$S$2:$S$1000))","v":0},{"$f":"Q667+SUMPRODUCT(('Fixed assets'!$Q$2:$Q$1000=Costs!Q$705)*('Fixed assets'!$U$2:$U$1000>Costs!$A755)*('Fixed assets'!$P$2:$P$1000=Costs!$A755)*('Fixed assets'!$R$2:$R$1000))-SUMPRODUCT(('Fixed assets'!$Q$2:$Q$1000=Costs!Q$705)*('Fixed assets'!$U$2:$U$1000>Costs!$A755)*('Fixed assets'!$P$2:$P$1000=Costs!$A755)*('Fixed assets'!$S$2:$S$1000))","v":0},{"$f":"R667+SUMPRODUCT(('Fixed assets'!$Q$2:$Q$1000=Costs!R$705)*('Fixed assets'!$U$2:$U$1000>Costs!$A755)*('Fixed assets'!$P$2:$P$1000=Costs!$A755)*('Fixed assets'!$R$2:$R$1000))-SUMPRODUCT(('Fixed assets'!$Q$2:$Q$1000=Costs!R$705)*('Fixed assets'!$U$2:$U$1000>Costs!$A755)*('Fixed assets'!$P$2:$P$1000=Costs!$A755)*('Fixed assets'!$S$2:$S$1000))","v":0},{"$f":"S667+SUMPRODUCT(('Fixed assets'!$Q$2:$Q$1000=Costs!S$705)*('Fixed assets'!$U$2:$U$1000>Costs!$A755)*('Fixed assets'!$P$2:$P$1000=Costs!$A755)*('Fixed assets'!$R$2:$R$1000))-SUMPRODUCT(('Fixed assets'!$Q$2:$Q$1000=Costs!S$705)*('Fixed assets'!$U$2:$U$1000>Costs!$A755)*('Fixed assets'!$P$2:$P$1000=Costs!$A755)*('Fixed assets'!$S$2:$S$1000))","v":0},{"$f":"T667+SUMPRODUCT(('Fixed assets'!$Q$2:$Q$1000=Costs!T$705)*('Fixed assets'!$U$2:$U$1000>Costs!$A755)*('Fixed assets'!$P$2:$P$1000=Costs!$A755)*('Fixed assets'!$R$2:$R$1000))-SUMPRODUCT(('Fixed assets'!$Q$2:$Q$1000=Costs!T$705)*('Fixed assets'!$U$2:$U$1000>Costs!$A755)*('Fixed assets'!$P$2:$P$1000=Costs!$A755)*('Fixed assets'!$S$2:$S$1000))","v":0},{"$f":"U667+SUMPRODUCT(('Fixed assets'!$Q$2:$Q$1000=Costs!U$705)*('Fixed assets'!$U$2:$U$1000>Costs!$A755)*('Fixed assets'!$P$2:$P$1000=Costs!$A755)*('Fixed assets'!$R$2:$R$1000))-SUMPRODUCT(('Fixed assets'!$Q$2:$Q$1000=Costs!U$705)*('Fixed assets'!$U$2:$U$1000>Costs!$A755)*('Fixed assets'!$P$2:$P$1000=Costs!$A755)*('Fixed assets'!$S$2:$S$1000))","v":0},{"$f":"V667+SUMPRODUCT(('Fixed assets'!$Q$2:$Q$1000=Costs!V$705)*('Fixed assets'!$U$2:$U$1000>Costs!$A755)*('Fixed assets'!$P$2:$P$1000=Costs!$A755)*('Fixed assets'!$R$2:$R$1000))-SUMPRODUCT(('Fixed assets'!$Q$2:$Q$1000=Costs!V$705)*('Fixed assets'!$U$2:$U$1000>Costs!$A755)*('Fixed assets'!$P$2:$P$1000=Costs!$A755)*('Fixed assets'!$S$2:$S$1000))","v":0},{"$f":"W667+SUMPRODUCT(('Fixed assets'!$Q$2:$Q$1000=Costs!W$705)*('Fixed assets'!$U$2:$U$1000>Costs!$A755)*('Fixed assets'!$P$2:$P$1000=Costs!$A755)*('Fixed assets'!$R$2:$R$1000))-SUMPRODUCT(('Fixed assets'!$Q$2:$Q$1000=Costs!W$705)*('Fixed assets'!$U$2:$U$1000>Costs!$A755)*('Fixed assets'!$P$2:$P$1000=Costs!$A755)*('Fixed assets'!$S$2:$S$1000))","v":0},{"$f":"X667+SUMPRODUCT(('Fixed assets'!$Q$2:$Q$1000=Costs!X$705)*('Fixed assets'!$U$2:$U$1000>Costs!$A755)*('Fixed assets'!$P$2:$P$1000=Costs!$A755)*('Fixed assets'!$R$2:$R$1000))-SUMPRODUCT(('Fixed assets'!$Q$2:$Q$1000=Costs!X$705)*('Fixed assets'!$U$2:$U$1000>Costs!$A755)*('Fixed assets'!$P$2:$P$1000=Costs!$A755)*('Fixed assets'!$S$2:$S$1000))","v":0},{"$f":"Y667+SUMPRODUCT(('Fixed assets'!$Q$2:$Q$1000=Costs!Y$705)*('Fixed assets'!$U$2:$U$1000>Costs!$A755)*('Fixed assets'!$P$2:$P$1000=Costs!$A755)*('Fixed assets'!$R$2:$R$1000))-SUMPRODUCT(('Fixed assets'!$Q$2:$Q$1000=Costs!Y$705)*('Fixed assets'!$U$2:$U$1000>Costs!$A755)*('Fixed assets'!$P$2:$P$1000=Costs!$A755)*('Fixed assets'!$S$2:$S$1000))","v":0},{"$f":"Z667+SUMPRODUCT(('Fixed assets'!$Q$2:$Q$1000=Costs!Z$705)*('Fixed assets'!$U$2:$U$1000>Costs!$A755)*('Fixed assets'!$P$2:$P$1000=Costs!$A755)*('Fixed assets'!$R$2:$R$1000))-SUMPRODUCT(('Fixed assets'!$Q$2:$Q$1000=Costs!Z$705)*('Fixed assets'!$U$2:$U$1000>Costs!$A755)*('Fixed assets'!$P$2:$P$1000=Costs!$A755)*('Fixed assets'!$S$2:$S$1000))","v":0},{"$f":"AA667+SUMPRODUCT(('Fixed assets'!$Q$2:$Q$1000=Costs!AA$705)*('Fixed assets'!$U$2:$U$1000>Costs!$A755)*('Fixed assets'!$P$2:$P$1000=Costs!$A755)*('Fixed assets'!$R$2:$R$1000))-SUMPRODUCT(('Fixed assets'!$Q$2:$Q$1000=Costs!AA$705)*('Fixed assets'!$U$2:$U$1000>Costs!$A755)*('Fixed assets'!$P$2:$P$1000=Costs!$A755)*('Fixed assets'!$S$2:$S$1000))","v":0},{"$f":"AB667+SUMPRODUCT(('Fixed assets'!$Q$2:$Q$1000=Costs!AB$705)*('Fixed assets'!$U$2:$U$1000>Costs!$A755)*('Fixed assets'!$P$2:$P$1000=Costs!$A755)*('Fixed assets'!$R$2:$R$1000))-SUMPRODUCT(('Fixed assets'!$Q$2:$Q$1000=Costs!AB$705)*('Fixed assets'!$U$2:$U$1000>Costs!$A755)*('Fixed assets'!$P$2:$P$1000=Costs!$A755)*('Fixed assets'!$S$2:$S$1000))","v":0},{"$f":"AC667+SUMPRODUCT(('Fixed assets'!$Q$2:$Q$1000=Costs!AC$705)*('Fixed assets'!$U$2:$U$1000>Costs!$A755)*('Fixed assets'!$P$2:$P$1000=Costs!$A755)*('Fixed assets'!$R$2:$R$1000))-SUMPRODUCT(('Fixed assets'!$Q$2:$Q$1000=Costs!AC$705)*('Fixed assets'!$U$2:$U$1000>Costs!$A755)*('Fixed assets'!$P$2:$P$1000=Costs!$A755)*('Fixed assets'!$S$2:$S$1000))","v":0},{"$f":"AD667+SUMPRODUCT(('Fixed assets'!$Q$2:$Q$1000=Costs!AD$705)*('Fixed assets'!$U$2:$U$1000>Costs!$A755)*('Fixed assets'!$P$2:$P$1000=Costs!$A755)*('Fixed assets'!$R$2:$R$1000))-SUMPRODUCT(('Fixed assets'!$Q$2:$Q$1000=Costs!AD$705)*('Fixed assets'!$U$2:$U$1000>Costs!$A755)*('Fixed assets'!$P$2:$P$1000=Costs!$A755)*('Fixed assets'!$S$2:$S$1000))","v":0},{"$f":"AE667+SUMPRODUCT(('Fixed assets'!$Q$2:$Q$1000=Costs!AE$705)*('Fixed assets'!$U$2:$U$1000>Costs!$A755)*('Fixed assets'!$P$2:$P$1000=Costs!$A755)*('Fixed assets'!$R$2:$R$1000))-SUMPRODUCT(('Fixed assets'!$Q$2:$Q$1000=Costs!AE$705)*('Fixed assets'!$U$2:$U$1000>Costs!$A755)*('Fixed assets'!$P$2:$P$1000=Costs!$A755)*('Fixed assets'!$S$2:$S$1000))","v":0},{"$f":"AF667+SUMPRODUCT(('Fixed assets'!$Q$2:$Q$1000=Costs!AF$705)*('Fixed assets'!$U$2:$U$1000>Costs!$A755)*('Fixed assets'!$P$2:$P$1000=Costs!$A755)*('Fixed assets'!$R$2:$R$1000))-SUMPRODUCT(('Fixed assets'!$Q$2:$Q$1000=Costs!AF$705)*('Fixed assets'!$U$2:$U$1000>Costs!$A755)*('Fixed assets'!$P$2:$P$1000=Costs!$A755)*('Fixed assets'!$S$2:$S$1000))","v":0},{"$f":"AG667+SUMPRODUCT(('Fixed assets'!$Q$2:$Q$1000=Costs!AG$705)*('Fixed assets'!$U$2:$U$1000>Costs!$A755)*('Fixed assets'!$P$2:$P$1000=Costs!$A755)*('Fixed assets'!$R$2:$R$1000))-SUMPRODUCT(('Fixed assets'!$Q$2:$Q$1000=Costs!AG$705)*('Fixed assets'!$U$2:$U$1000>Costs!$A755)*('Fixed assets'!$P$2:$P$1000=Costs!$A755)*('Fixed assets'!$S$2:$S$1000))","v":0},{"$f":"AH667+SUMPRODUCT(('Fixed assets'!$Q$2:$Q$1000=Costs!AH$705)*('Fixed assets'!$U$2:$U$1000>Costs!$A755)*('Fixed assets'!$P$2:$P$1000=Costs!$A755)*('Fixed assets'!$R$2:$R$1000))-SUMPRODUCT(('Fixed assets'!$Q$2:$Q$1000=Costs!AH$705)*('Fixed assets'!$U$2:$U$1000>Costs!$A755)*('Fixed assets'!$P$2:$P$1000=Costs!$A755)*('Fixed assets'!$S$2:$S$1000))","v":0},{"$f":"AI667+SUMPRODUCT(('Fixed assets'!$Q$2:$Q$1000=Costs!AI$705)*('Fixed assets'!$U$2:$U$1000>Costs!$A755)*('Fixed assets'!$P$2:$P$1000=Costs!$A755)*('Fixed assets'!$R$2:$R$1000))-SUMPRODUCT(('Fixed assets'!$Q$2:$Q$1000=Costs!AI$705)*('Fixed assets'!$U$2:$U$1000>Costs!$A755)*('Fixed assets'!$P$2:$P$1000=Costs!$A755)*('Fixed assets'!$S$2:$S$1000))","v":0},{"$f":"AJ667+SUMPRODUCT(('Fixed assets'!$Q$2:$Q$1000=Costs!AJ$705)*('Fixed assets'!$U$2:$U$1000>Costs!$A755)*('Fixed assets'!$P$2:$P$1000=Costs!$A755)*('Fixed assets'!$R$2:$R$1000))-SUMPRODUCT(('Fixed assets'!$Q$2:$Q$1000=Costs!AJ$705)*('Fixed assets'!$U$2:$U$1000>Costs!$A755)*('Fixed assets'!$P$2:$P$1000=Costs!$A755)*('Fixed assets'!$S$2:$S$1000))","v":0},{"$f":"AK667+SUMPRODUCT(('Fixed assets'!$Q$2:$Q$1000=Costs!AK$705)*('Fixed assets'!$U$2:$U$1000>Costs!$A755)*('Fixed assets'!$P$2:$P$1000=Costs!$A755)*('Fixed assets'!$R$2:$R$1000))-SUMPRODUCT(('Fixed assets'!$Q$2:$Q$1000=Costs!AK$705)*('Fixed assets'!$U$2:$U$1000>Costs!$A755)*('Fixed assets'!$P$2:$P$1000=Costs!$A755)*('Fixed assets'!$S$2:$S$1000))","v":0},{"$f":"AL667+SUMPRODUCT(('Fixed assets'!$Q$2:$Q$1000=Costs!AL$705)*('Fixed assets'!$U$2:$U$1000>Costs!$A755)*('Fixed assets'!$P$2:$P$1000=Costs!$A755)*('Fixed assets'!$R$2:$R$1000))-SUMPRODUCT(('Fixed assets'!$Q$2:$Q$1000=Costs!AL$705)*('Fixed assets'!$U$2:$U$1000>Costs!$A755)*('Fixed assets'!$P$2:$P$1000=Costs!$A755)*('Fixed assets'!$S$2:$S$1000))","v":0},{"$f":"AM667+SUMPRODUCT(('Fixed assets'!$Q$2:$Q$1000=Costs!AM$705)*('Fixed assets'!$U$2:$U$1000>Costs!$A755)*('Fixed assets'!$P$2:$P$1000=Costs!$A755)*('Fixed assets'!$R$2:$R$1000))-SUMPRODUCT(('Fixed assets'!$Q$2:$Q$1000=Costs!AM$705)*('Fixed assets'!$U$2:$U$1000>Costs!$A755)*('Fixed assets'!$P$2:$P$1000=Costs!$A755)*('Fixed assets'!$S$2:$S$1000))","v":0},{"$f":"AN667+SUMPRODUCT(('Fixed assets'!$Q$2:$Q$1000=Costs!AN$705)*('Fixed assets'!$U$2:$U$1000>Costs!$A755)*('Fixed assets'!$P$2:$P$1000=Costs!$A755)*('Fixed assets'!$R$2:$R$1000))-SUMPRODUCT(('Fixed assets'!$Q$2:$Q$1000=Costs!AN$705)*('Fixed assets'!$U$2:$U$1000>Costs!$A755)*('Fixed assets'!$P$2:$P$1000=Costs!$A755)*('Fixed assets'!$S$2:$S$1000))","v":0},{"$f":"AO667+SUMPRODUCT(('Fixed assets'!$Q$2:$Q$1000=Costs!AO$705)*('Fixed assets'!$U$2:$U$1000>Costs!$A755)*('Fixed assets'!$P$2:$P$1000=Costs!$A755)*('Fixed assets'!$R$2:$R$1000))-SUMPRODUCT(('Fixed assets'!$Q$2:$Q$1000=Costs!AO$705)*('Fixed assets'!$U$2:$U$1000>Costs!$A755)*('Fixed assets'!$P$2:$P$1000=Costs!$A755)*('Fixed assets'!$S$2:$S$1000))","v":0},{"$f":"AP667+SUMPRODUCT(('Fixed assets'!$Q$2:$Q$1000=Costs!AP$705)*('Fixed assets'!$U$2:$U$1000>Costs!$A755)*('Fixed assets'!$P$2:$P$1000=Costs!$A755)*('Fixed assets'!$R$2:$R$1000))-SUMPRODUCT(('Fixed assets'!$Q$2:$Q$1000=Costs!AP$705)*('Fixed assets'!$U$2:$U$1000>Costs!$A755)*('Fixed assets'!$P$2:$P$1000=Costs!$A755)*('Fixed assets'!$S$2:$S$1000))","v":0},{"$f":"AQ667+SUMPRODUCT(('Fixed assets'!$Q$2:$Q$1000=Costs!AQ$705)*('Fixed assets'!$U$2:$U$1000>Costs!$A755)*('Fixed assets'!$P$2:$P$1000=Costs!$A755)*('Fixed assets'!$R$2:$R$1000))-SUMPRODUCT(('Fixed assets'!$Q$2:$Q$1000=Costs!AQ$705)*('Fixed assets'!$U$2:$U$1000>Costs!$A755)*('Fixed assets'!$P$2:$P$1000=Costs!$A755)*('Fixed assets'!$S$2:$S$1000))","v":0}]
[2065,0,{"$f":"C668+SUMPRODUCT(('Fixed assets'!$Q$2:$Q$1000=Costs!C$705)*('Fixed assets'!$U$2:$U$1000>Costs!$A756)*('Fixed assets'!$P$2:$P$1000=Costs!$A756)*('Fixed assets'!$R$2:$R$1000))-SUMPRODUCT(('Fixed assets'!$Q$2:$Q$1000=Costs!C$705)*('Fixed assets'!$U$2:$U$1000>Costs!$A756)*('Fixed assets'!$P$2:$P$1000=Costs!$A756)*('Fixed assets'!$S$2:$S$1000))","v":0},{"$f":"D668+SUMPRODUCT(('Fixed assets'!$Q$2:$Q$1000=Costs!D$705)*('Fixed assets'!$U$2:$U$1000>Costs!$A756)*('Fixed assets'!$P$2:$P$1000=Costs!$A756)*('Fixed assets'!$R$2:$R$1000))-SUMPRODUCT(('Fixed assets'!$Q$2:$Q$1000=Costs!D$705)*('Fixed assets'!$U$2:$U$1000>Costs!$A756)*('Fixed assets'!$P$2:$P$1000=Costs!$A756)*('Fixed assets'!$S$2:$S$1000))","v":0},{"$f":"E668+SUMPRODUCT(('Fixed assets'!$Q$2:$Q$1000=Costs!E$705)*('Fixed assets'!$U$2:$U$1000>Costs!$A756)*('Fixed assets'!$P$2:$P$1000=Costs!$A756)*('Fixed assets'!$R$2:$R$1000))-SUMPRODUCT(('Fixed assets'!$Q$2:$Q$1000=Costs!E$705)*('Fixed assets'!$U$2:$U$1000>Costs!$A756)*('Fixed assets'!$P$2:$P$1000=Costs!$A756)*('Fixed assets'!$S$2:$S$1000))","v":0},{"$f":"F668+SUMPRODUCT(('Fixed assets'!$Q$2:$Q$1000=Costs!F$705)*('Fixed assets'!$U$2:$U$1000>Costs!$A756)*('Fixed assets'!$P$2:$P$1000=Costs!$A756)*('Fixed assets'!$R$2:$R$1000))-SUMPRODUCT(('Fixed assets'!$Q$2:$Q$1000=Costs!F$705)*('Fixed assets'!$U$2:$U$1000>Costs!$A756)*('Fixed assets'!$P$2:$P$1000=Costs!$A756)*('Fixed assets'!$S$2:$S$1000))","v":0},{"$f":"G668+SUMPRODUCT(('Fixed assets'!$Q$2:$Q$1000=Costs!G$705)*('Fixed assets'!$U$2:$U$1000>Costs!$A756)*('Fixed assets'!$P$2:$P$1000=Costs!$A756)*('Fixed assets'!$R$2:$R$1000))-SUMPRODUCT(('Fixed assets'!$Q$2:$Q$1000=Costs!G$705)*('Fixed assets'!$U$2:$U$1000>Costs!$A756)*('Fixed assets'!$P$2:$P$1000=Costs!$A756)*('Fixed assets'!$S$2:$S$1000))","v":0},{"$f":"H668+SUMPRODUCT(('Fixed assets'!$Q$2:$Q$1000=Costs!H$705)*('Fixed assets'!$U$2:$U$1000>Costs!$A756)*('Fixed assets'!$P$2:$P$1000=Costs!$A756)*('Fixed assets'!$R$2:$R$1000))-SUMPRODUCT(('Fixed assets'!$Q$2:$Q$1000=Costs!H$705)*('Fixed assets'!$U$2:$U$1000>Costs!$A756)*('Fixed assets'!$P$2:$P$1000=Costs!$A756)*('Fixed assets'!$S$2:$S$1000))","v":0},{"$f":"I668+SUMPRODUCT(('Fixed assets'!$Q$2:$Q$1000=Costs!I$705)*('Fixed assets'!$U$2:$U$1000>Costs!$A756)*('Fixed assets'!$P$2:$P$1000=Costs!$A756)*('Fixed assets'!$R$2:$R$1000))-SUMPRODUCT(('Fixed assets'!$Q$2:$Q$1000=Costs!I$705)*('Fixed assets'!$U$2:$U$1000>Costs!$A756)*('Fixed assets'!$P$2:$P$1000=Costs!$A756)*('Fixed assets'!$S$2:$S$1000))","v":0},{"$f":"J668+SUMPRODUCT(('Fixed assets'!$Q$2:$Q$1000=Costs!J$705)*('Fixed assets'!$U$2:$U$1000>Costs!$A756)*('Fixed assets'!$P$2:$P$1000=Costs!$A756)*('Fixed assets'!$R$2:$R$1000))-SUMPRODUCT(('Fixed assets'!$Q$2:$Q$1000=Costs!J$705)*('Fixed assets'!$U$2:$U$1000>Costs!$A756)*('Fixed assets'!$P$2:$P$1000=Costs!$A756)*('Fixed assets'!$S$2:$S$1000))","v":0},{"$f":"K668+SUMPRODUCT(('Fixed assets'!$Q$2:$Q$1000=Costs!K$705)*('Fixed assets'!$U$2:$U$1000>Costs!$A756)*('Fixed assets'!$P$2:$P$1000=Costs!$A756)*('Fixed assets'!$R$2:$R$1000))-SUMPRODUCT(('Fixed assets'!$Q$2:$Q$1000=Costs!K$705)*('Fixed assets'!$U$2:$U$1000>Costs!$A756)*('Fixed assets'!$P$2:$P$1000=Costs!$A756)*('Fixed assets'!$S$2:$S$1000))","v":0},{"$f":"L668+SUMPRODUCT(('Fixed assets'!$Q$2:$Q$1000=Costs!L$705)*('Fixed assets'!$U$2:$U$1000>Costs!$A756)*('Fixed assets'!$P$2:$P$1000=Costs!$A756)*('Fixed assets'!$R$2:$R$1000))-SUMPRODUCT(('Fixed assets'!$Q$2:$Q$1000=Costs!L$705)*('Fixed assets'!$U$2:$U$1000>Costs!$A756)*('Fixed assets'!$P$2:$P$1000=Costs!$A756)*('Fixed assets'!$S$2:$S$1000))","v":0},{"$f":"M668+SUMPRODUCT(('Fixed assets'!$Q$2:$Q$1000=Costs!M$705)*('Fixed assets'!$U$2:$U$1000>Costs!$A756)*('Fixed assets'!$P$2:$P$1000=Costs!$A756)*('Fixed assets'!$R$2:$R$1000))-SUMPRODUCT(('Fixed assets'!$Q$2:$Q$1000=Costs!M$705)*('Fixed assets'!$U$2:$U$1000>Costs!$A756)*('Fixed assets'!$P$2:$P$1000=Costs!$A756)*('Fixed assets'!$S$2:$S$1000))","v":0},{"$f":"N668+SUMPRODUCT(('Fixed assets'!$Q$2:$Q$1000=Costs!N$705)*('Fixed assets'!$U$2:$U$1000>Costs!$A756)*('Fixed assets'!$P$2:$P$1000=Costs!$A756)*('Fixed assets'!$R$2:$R$1000))-SUMPRODUCT(('Fixed assets'!$Q$2:$Q$1000=Costs!N$705)*('Fixed assets'!$U$2:$U$1000>Costs!$A756)*('Fixed assets'!$P$2:$P$1000=Costs!$A756)*('Fixed assets'!$S$2:$S$1000))","v":0},{"$f":"O668+SUMPRODUCT(('Fixed assets'!$Q$2:$Q$1000=Costs!O$705)*('Fixed assets'!$U$2:$U$1000>Costs!$A756)*('Fixed assets'!$P$2:$P$1000=Costs!$A756)*('Fixed assets'!$R$2:$R$1000))-SUMPRODUCT(('Fixed assets'!$Q$2:$Q$1000=Costs!O$705)*('Fixed assets'!$U$2:$U$1000>Costs!$A756)*('Fixed assets'!$P$2:$P$1000=Costs!$A756)*('Fixed assets'!$S$2:$S$1000))","v":0},{"$f":"P668+SUMPRODUCT(('Fixed assets'!$Q$2:$Q$1000=Costs!P$705)*('Fixed assets'!$U$2:$U$1000>Costs!$A756)*('Fixed assets'!$P$2:$P$1000=Costs!$A756)*('Fixed assets'!$R$2:$R$1000))-SUMPRODUCT(('Fixed assets'!$Q$2:$Q$1000=Costs!P$705)*('Fixed assets'!$U$2:$U$1000>Costs!$A756)*('Fixed assets'!$P$2:$P$1000=Costs!$A756)*('Fixed assets'!$S$2:$S$1000))","v":0},{"$f":"Q668+SUMPRODUCT(('Fixed assets'!$Q$2:$Q$1000=Costs!Q$705)*('Fixed assets'!$U$2:$U$1000>Costs!$A756)*('Fixed assets'!$P$2:$P$1000=Costs!$A756)*('Fixed assets'!$R$2:$R$1000))-SUMPRODUCT(('Fixed assets'!$Q$2:$Q$1000=Costs!Q$705)*('Fixed assets'!$U$2:$U$1000>Costs!$A756)*('Fixed assets'!$P$2:$P$1000=Costs!$A756)*('Fixed assets'!$S$2:$S$1000))","v":0},{"$f":"R668+SUMPRODUCT(('Fixed assets'!$Q$2:$Q$1000=Costs!R$705)*('Fixed assets'!$U$2:$U$1000>Costs!$A756)*('Fixed assets'!$P$2:$P$1000=Costs!$A756)*('Fixed assets'!$R$2:$R$1000))-SUMPRODUCT(('Fixed assets'!$Q$2:$Q$1000=Costs!R$705)*('Fixed assets'!$U$2:$U$1000>Costs!$A756)*('Fixed assets'!$P$2:$P$1000=Costs!$A756)*('Fixed assets'!$S$2:$S$1000))","v":0},{"$f":"S668+SUMPRODUCT(('Fixed assets'!$Q$2:$Q$1000=Costs!S$705)*('Fixed assets'!$U$2:$U$1000>Costs!$A756)*('Fixed assets'!$P$2:$P$1000=Costs!$A756)*('Fixed assets'!$R$2:$R$1000))-SUMPRODUCT(('Fixed assets'!$Q$2:$Q$1000=Costs!S$705)*('Fixed assets'!$U$2:$U$1000>Costs!$A756)*('Fixed assets'!$P$2:$P$1000=Costs!$A756)*('Fixed assets'!$S$2:$S$1000))","v":0},{"$f":"T668+SUMPRODUCT(('Fixed assets'!$Q$2:$Q$1000=Costs!T$705)*('Fixed assets'!$U$2:$U$1000>Costs!$A756)*('Fixed assets'!$P$2:$P$1000=Costs!$A756)*('Fixed assets'!$R$2:$R$1000))-SUMPRODUCT(('Fixed assets'!$Q$2:$Q$1000=Costs!T$705)*('Fixed assets'!$U$2:$U$1000>Costs!$A756)*('Fixed assets'!$P$2:$P$1000=Costs!$A756)*('Fixed assets'!$S$2:$S$1000))","v":0},{"$f":"U668+SUMPRODUCT(('Fixed assets'!$Q$2:$Q$1000=Costs!U$705)*('Fixed assets'!$U$2:$U$1000>Costs!$A756)*('Fixed assets'!$P$2:$P$1000=Costs!$A756)*('Fixed assets'!$R$2:$R$1000))-SUMPRODUCT(('Fixed assets'!$Q$2:$Q$1000=Costs!U$705)*('Fixed assets'!$U$2:$U$1000>Costs!$A756)*('Fixed assets'!$P$2:$P$1000=Costs!$A756)*('Fixed assets'!$S$2:$S$1000))","v":0},{"$f":"V668+SUMPRODUCT(('Fixed assets'!$Q$2:$Q$1000=Costs!V$705)*('Fixed assets'!$U$2:$U$1000>Costs!$A756)*('Fixed assets'!$P$2:$P$1000=Costs!$A756)*('Fixed assets'!$R$2:$R$1000))-SUMPRODUCT(('Fixed assets'!$Q$2:$Q$1000=Costs!V$705)*('Fixed assets'!$U$2:$U$1000>Costs!$A756)*('Fixed assets'!$P$2:$P$1000=Costs!$A756)*('Fixed assets'!$S$2:$S$1000))","v":0},{"$f":"W668+SUMPRODUCT(('Fixed assets'!$Q$2:$Q$1000=Costs!W$705)*('Fixed assets'!$U$2:$U$1000>Costs!$A756)*('Fixed assets'!$P$2:$P$1000=Costs!$A756)*('Fixed assets'!$R$2:$R$1000))-SUMPRODUCT(('Fixed assets'!$Q$2:$Q$1000=Costs!W$705)*('Fixed assets'!$U$2:$U$1000>Costs!$A756)*('Fixed assets'!$P$2:$P$1000=Costs!$A756)*('Fixed assets'!$S$2:$S$1000))","v":0},{"$f":"X668+SUMPRODUCT(('Fixed assets'!$Q$2:$Q$1000=Costs!X$705)*('Fixed assets'!$U$2:$U$1000>Costs!$A756)*('Fixed assets'!$P$2:$P$1000=Costs!$A756)*('Fixed assets'!$R$2:$R$1000))-SUMPRODUCT(('Fixed assets'!$Q$2:$Q$1000=Costs!X$705)*('Fixed assets'!$U$2:$U$1000>Costs!$A756)*('Fixed assets'!$P$2:$P$1000=Costs!$A756)*('Fixed assets'!$S$2:$S$1000))","v":0},{"$f":"Y668+SUMPRODUCT(('Fixed assets'!$Q$2:$Q$1000=Costs!Y$705)*('Fixed assets'!$U$2:$U$1000>Costs!$A756)*('Fixed assets'!$P$2:$P$1000=Costs!$A756)*('Fixed assets'!$R$2:$R$1000))-SUMPRODUCT(('Fixed assets'!$Q$2:$Q$1000=Costs!Y$705)*('Fixed assets'!$U$2:$U$1000>Costs!$A756)*('Fixed assets'!$P$2:$P$1000=Costs!$A756)*('Fixed assets'!$S$2:$S$1000))","v":0},{"$f":"Z668+SUMPRODUCT(('Fixed assets'!$Q$2:$Q$1000=Costs!Z$705)*('Fixed assets'!$U$2:$U$1000>Costs!$A756)*('Fixed assets'!$P$2:$P$1000=Costs!$A756)*('Fixed assets'!$R$2:$R$1000))-SUMPRODUCT(('Fixed assets'!$Q$2:$Q$1000=Costs!Z$705)*('Fixed assets'!$U$2:$U$1000>Costs!$A756)*('Fixed assets'!$P$2:$P$1000=Costs!$A756)*('Fixed assets'!$S$2:$S$1000))","v":0},{"$f":"AA668+SUMPRODUCT(('Fixed assets'!$Q$2:$Q$1000=Costs!AA$705)*('Fixed assets'!$U$2:$U$1000>Costs!$A756)*('Fixed assets'!$P$2:$P$1000=Costs!$A756)*('Fixed assets'!$R$2:$R$1000))-SUMPRODUCT(('Fixed assets'!$Q$2:$Q$1000=Costs!AA$705)*('Fixed assets'!$U$2:$U$1000>Costs!$A756)*('Fixed assets'!$P$2:$P$1000=Costs!$A756)*('Fixed assets'!$S$2:$S$1000))","v":0},{"$f":"AB668+SUMPRODUCT(('Fixed assets'!$Q$2:$Q$1000=Costs!AB$705)*('Fixed assets'!$U$2:$U$1000>Costs!$A756)*('Fixed assets'!$P$2:$P$1000=Costs!$A756)*('Fixed assets'!$R$2:$R$1000))-SUMPRODUCT(('Fixed assets'!$Q$2:$Q$1000=Costs!AB$705)*('Fixed assets'!$U$2:$U$1000>Costs!$A756)*('Fixed assets'!$P$2:$P$1000=Costs!$A756)*('Fixed assets'!$S$2:$S$1000))","v":0},{"$f":"AC668+SUMPRODUCT(('Fixed assets'!$Q$2:$Q$1000=Costs!AC$705)*('Fixed assets'!$U$2:$U$1000>Costs!$A756)*('Fixed assets'!$P$2:$P$1000=Costs!$A756)*('Fixed assets'!$R$2:$R$1000))-SUMPRODUCT(('Fixed assets'!$Q$2:$Q$1000=Costs!AC$705)*('Fixed assets'!$U$2:$U$1000>Costs!$A756)*('Fixed assets'!$P$2:$P$1000=Costs!$A756)*('Fixed assets'!$S$2:$S$1000))","v":0},{"$f":"AD668+SUMPRODUCT(('Fixed assets'!$Q$2:$Q$1000=Costs!AD$705)*('Fixed assets'!$U$2:$U$1000>Costs!$A756)*('Fixed assets'!$P$2:$P$1000=Costs!$A756)*('Fixed assets'!$R$2:$R$1000))-SUMPRODUCT(('Fixed assets'!$Q$2:$Q$1000=Costs!AD$705)*('Fixed assets'!$U$2:$U$1000>Costs!$A756)*('Fixed assets'!$P$2:$P$1000=Costs!$A756)*('Fixed assets'!$S$2:$S$1000))","v":0},{"$f":"AE668+SUMPRODUCT(('Fixed assets'!$Q$2:$Q$1000=Costs!AE$705)*('Fixed assets'!$U$2:$U$1000>Costs!$A756)*('Fixed assets'!$P$2:$P$1000=Costs!$A756)*('Fixed assets'!$R$2:$R$1000))-SUMPRODUCT(('Fixed assets'!$Q$2:$Q$1000=Costs!AE$705)*('Fixed assets'!$U$2:$U$1000>Costs!$A756)*('Fixed assets'!$P$2:$P$1000=Costs!$A756)*('Fixed assets'!$S$2:$S$1000))","v":0},{"$f":"AF668+SUMPRODUCT(('Fixed assets'!$Q$2:$Q$1000=Costs!AF$705)*('Fixed assets'!$U$2:$U$1000>Costs!$A756)*('Fixed assets'!$P$2:$P$1000=Costs!$A756)*('Fixed assets'!$R$2:$R$1000))-SUMPRODUCT(('Fixed assets'!$Q$2:$Q$1000=Costs!AF$705)*('Fixed assets'!$U$2:$U$1000>Costs!$A756)*('Fixed assets'!$P$2:$P$1000=Costs!$A756)*('Fixed assets'!$S$2:$S$1000))","v":0},{"$f":"AG668+SUMPRODUCT(('Fixed assets'!$Q$2:$Q$1000=Costs!AG$705)*('Fixed assets'!$U$2:$U$1000>Costs!$A756)*('Fixed assets'!$P$2:$P$1000=Costs!$A756)*('Fixed assets'!$R$2:$R$1000))-SUMPRODUCT(('Fixed assets'!$Q$2:$Q$1000=Costs!AG$705)*('Fixed assets'!$U$2:$U$1000>Costs!$A756)*('Fixed assets'!$P$2:$P$1000=Costs!$A756)*('Fixed assets'!$S$2:$S$1000))","v":0},{"$f":"AH668+SUMPRODUCT(('Fixed assets'!$Q$2:$Q$1000=Costs!AH$705)*('Fixed assets'!$U$2:$U$1000>Costs!$A756)*('Fixed assets'!$P$2:$P$1000=Costs!$A756)*('Fixed assets'!$R$2:$R$1000))-SUMPRODUCT(('Fixed assets'!$Q$2:$Q$1000=Costs!AH$705)*('Fixed assets'!$U$2:$U$1000>Costs!$A756)*('Fixed assets'!$P$2:$P$1000=Costs!$A756)*('Fixed assets'!$S$2:$S$1000))","v":0},{"$f":"AI668+SUMPRODUCT(('Fixed assets'!$Q$2:$Q$1000=Costs!AI$705)*('Fixed assets'!$U$2:$U$1000>Costs!$A756)*('Fixed assets'!$P$2:$P$1000=Costs!$A756)*('Fixed assets'!$R$2:$R$1000))-SUMPRODUCT(('Fixed assets'!$Q$2:$Q$1000=Costs!AI$705)*('Fixed assets'!$U$2:$U$1000>Costs!$A756)*('Fixed assets'!$P$2:$P$1000=Costs!$A756)*('Fixed assets'!$S$2:$S$1000))","v":0},{"$f":"AJ668+SUMPRODUCT(('Fixed assets'!$Q$2:$Q$1000=Costs!AJ$705)*('Fixed assets'!$U$2:$U$1000>Costs!$A756)*('Fixed assets'!$P$2:$P$1000=Costs!$A756)*('Fixed assets'!$R$2:$R$1000))-SUMPRODUCT(('Fixed assets'!$Q$2:$Q$1000=Costs!AJ$705)*('Fixed assets'!$U$2:$U$1000>Costs!$A756)*('Fixed assets'!$P$2:$P$1000=Costs!$A756)*('Fixed assets'!$S$2:$S$1000))","v":0},{"$f":"AK668+SUMPRODUCT(('Fixed assets'!$Q$2:$Q$1000=Costs!AK$705)*('Fixed assets'!$U$2:$U$1000>Costs!$A756)*('Fixed assets'!$P$2:$P$1000=Costs!$A756)*('Fixed assets'!$R$2:$R$1000))-SUMPRODUCT(('Fixed assets'!$Q$2:$Q$1000=Costs!AK$705)*('Fixed assets'!$U$2:$U$1000>Costs!$A756)*('Fixed assets'!$P$2:$P$1000=Costs!$A756)*('Fixed assets'!$S$2:$S$1000))","v":0},{"$f":"AL668+SUMPRODUCT(('Fixed assets'!$Q$2:$Q$1000=Costs!AL$705)*('Fixed assets'!$U$2:$U$1000>Costs!$A756)*('Fixed assets'!$P$2:$P$1000=Costs!$A756)*('Fixed assets'!$R$2:$R$1000))-SUMPRODUCT(('Fixed assets'!$Q$2:$Q$1000=Costs!AL$705)*('Fixed assets'!$U$2:$U$1000>Costs!$A756)*('Fixed assets'!$P$2:$P$1000=Costs!$A756)*('Fixed assets'!$S$2:$S$1000))","v":0},{"$f":"AM668+SUMPRODUCT(('Fixed assets'!$Q$2:$Q$1000=Costs!AM$705)*('Fixed assets'!$U$2:$U$1000>Costs!$A756)*('Fixed assets'!$P$2:$P$1000=Costs!$A756)*('Fixed assets'!$R$2:$R$1000))-SUMPRODUCT(('Fixed assets'!$Q$2:$Q$1000=Costs!AM$705)*('Fixed assets'!$U$2:$U$1000>Costs!$A756)*('Fixed assets'!$P$2:$P$1000=Costs!$A756)*('Fixed assets'!$S$2:$S$1000))","v":0},{"$f":"AN668+SUMPRODUCT(('Fixed assets'!$Q$2:$Q$1000=Costs!AN$705)*('Fixed assets'!$U$2:$U$1000>Costs!$A756)*('Fixed assets'!$P$2:$P$1000=Costs!$A756)*('Fixed assets'!$R$2:$R$1000))-SUMPRODUCT(('Fixed assets'!$Q$2:$Q$1000=Costs!AN$705)*('Fixed assets'!$U$2:$U$1000>Costs!$A756)*('Fixed assets'!$P$2:$P$1000=Costs!$A756)*('Fixed assets'!$S$2:$S$1000))","v":0},{"$f":"AO668+SUMPRODUCT(('Fixed assets'!$Q$2:$Q$1000=Costs!AO$705)*('Fixed assets'!$U$2:$U$1000>Costs!$A756)*('Fixed assets'!$P$2:$P$1000=Costs!$A756)*('Fixed assets'!$R$2:$R$1000))-SUMPRODUCT(('Fixed assets'!$Q$2:$Q$1000=Costs!AO$705)*('Fixed assets'!$U$2:$U$1000>Costs!$A756)*('Fixed assets'!$P$2:$P$1000=Costs!$A756)*('Fixed assets'!$S$2:$S$1000))","v":0},{"$f":"AP668+SUMPRODUCT(('Fixed assets'!$Q$2:$Q$1000=Costs!AP$705)*('Fixed assets'!$U$2:$U$1000>Costs!$A756)*('Fixed assets'!$P$2:$P$1000=Costs!$A756)*('Fixed assets'!$R$2:$R$1000))-SUMPRODUCT(('Fixed assets'!$Q$2:$Q$1000=Costs!AP$705)*('Fixed assets'!$U$2:$U$1000>Costs!$A756)*('Fixed assets'!$P$2:$P$1000=Costs!$A756)*('Fixed assets'!$S$2:$S$1000))","v":0},{"$f":"AQ668+SUMPRODUCT(('Fixed assets'!$Q$2:$Q$1000=Costs!AQ$705)*('Fixed assets'!$U$2:$U$1000>Costs!$A756)*('Fixed assets'!$P$2:$P$1000=Costs!$A756)*('Fixed assets'!$R$2:$R$1000))-SUMPRODUCT(('Fixed assets'!$Q$2:$Q$1000=Costs!AQ$705)*('Fixed assets'!$U$2:$U$1000>Costs!$A756)*('Fixed assets'!$P$2:$P$1000=Costs!$A756)*('Fixed assets'!$S$2:$S$1000))","v":0}]
[2066,0,{"$f":"C669+SUMPRODUCT(('Fixed assets'!$Q$2:$Q$1000=Costs!C$705)*('Fixed assets'!$U$2:$U$1000>Costs!$A757)*('Fixed assets'!$P$2:$P$1000=Costs!$A757)*('Fixed assets'!$R$2:$R$1000))-SUMPRODUCT(('Fixed assets'!$Q$2:$Q$1000=Costs!C$705)*('Fixed assets'!$U$2:$U$1000>Costs!$A757)*('Fixed assets'!$P$2:$P$1000=Costs!$A757)*('Fixed assets'!$S$2:$S$1000))","v":0},{"$f":"D669+SUMPRODUCT(('Fixed assets'!$Q$2:$Q$1000=Costs!D$705)*('Fixed assets'!$U$2:$U$1000>Costs!$A757)*('Fixed assets'!$P$2:$P$1000=Costs!$A757)*('Fixed assets'!$R$2:$R$1000))-SUMPRODUCT(('Fixed assets'!$Q$2:$Q$1000=Costs!D$705)*('Fixed assets'!$U$2:$U$1000>Costs!$A757)*('Fixed assets'!$P$2:$P$1000=Costs!$A757)*('Fixed assets'!$S$2:$S$1000))","v":0},{"$f":"E669+SUMPRODUCT(('Fixed assets'!$Q$2:$Q$1000=Costs!E$705)*('Fixed assets'!$U$2:$U$1000>Costs!$A757)*('Fixed assets'!$P$2:$P$1000=Costs!$A757)*('Fixed assets'!$R$2:$R$1000))-SUMPRODUCT(('Fixed assets'!$Q$2:$Q$1000=Costs!E$705)*('Fixed assets'!$U$2:$U$1000>Costs!$A757)*('Fixed assets'!$P$2:$P$1000=Costs!$A757)*('Fixed assets'!$S$2:$S$1000))","v":0},{"$f":"F669+SUMPRODUCT(('Fixed assets'!$Q$2:$Q$1000=Costs!F$705)*('Fixed assets'!$U$2:$U$1000>Costs!$A757)*('Fixed assets'!$P$2:$P$1000=Costs!$A757)*('Fixed assets'!$R$2:$R$1000))-SUMPRODUCT(('Fixed assets'!$Q$2:$Q$1000=Costs!F$705)*('Fixed assets'!$U$2:$U$1000>Costs!$A757)*('Fixed assets'!$P$2:$P$1000=Costs!$A757)*('Fixed assets'!$S$2:$S$1000))","v":0},{"$f":"G669+SUMPRODUCT(('Fixed assets'!$Q$2:$Q$1000=Costs!G$705)*('Fixed assets'!$U$2:$U$1000>Costs!$A757)*('Fixed assets'!$P$2:$P$1000=Costs!$A757)*('Fixed assets'!$R$2:$R$1000))-SUMPRODUCT(('Fixed assets'!$Q$2:$Q$1000=Costs!G$705)*('Fixed assets'!$U$2:$U$1000>Costs!$A757)*('Fixed assets'!$P$2:$P$1000=Costs!$A757)*('Fixed assets'!$S$2:$S$1000))","v":0},{"$f":"H669+SUMPRODUCT(('Fixed assets'!$Q$2:$Q$1000=Costs!H$705)*('Fixed assets'!$U$2:$U$1000>Costs!$A757)*('Fixed assets'!$P$2:$P$1000=Costs!$A757)*('Fixed assets'!$R$2:$R$1000))-SUMPRODUCT(('Fixed assets'!$Q$2:$Q$1000=Costs!H$705)*('Fixed assets'!$U$2:$U$1000>Costs!$A757)*('Fixed assets'!$P$2:$P$1000=Costs!$A757)*('Fixed assets'!$S$2:$S$1000))","v":0},{"$f":"I669+SUMPRODUCT(('Fixed assets'!$Q$2:$Q$1000=Costs!I$705)*('Fixed assets'!$U$2:$U$1000>Costs!$A757)*('Fixed assets'!$P$2:$P$1000=Costs!$A757)*('Fixed assets'!$R$2:$R$1000))-SUMPRODUCT(('Fixed assets'!$Q$2:$Q$1000=Costs!I$705)*('Fixed assets'!$U$2:$U$1000>Costs!$A757)*('Fixed assets'!$P$2:$P$1000=Costs!$A757)*('Fixed assets'!$S$2:$S$1000))","v":0},{"$f":"J669+SUMPRODUCT(('Fixed assets'!$Q$2:$Q$1000=Costs!J$705)*('Fixed assets'!$U$2:$U$1000>Costs!$A757)*('Fixed assets'!$P$2:$P$1000=Costs!$A757)*('Fixed assets'!$R$2:$R$1000))-SUMPRODUCT(('Fixed assets'!$Q$2:$Q$1000=Costs!J$705)*('Fixed assets'!$U$2:$U$1000>Costs!$A757)*('Fixed assets'!$P$2:$P$1000=Costs!$A757)*('Fixed assets'!$S$2:$S$1000))","v":0},{"$f":"K669+SUMPRODUCT(('Fixed assets'!$Q$2:$Q$1000=Costs!K$705)*('Fixed assets'!$U$2:$U$1000>Costs!$A757)*('Fixed assets'!$P$2:$P$1000=Costs!$A757)*('Fixed assets'!$R$2:$R$1000))-SUMPRODUCT(('Fixed assets'!$Q$2:$Q$1000=Costs!K$705)*('Fixed assets'!$U$2:$U$1000>Costs!$A757)*('Fixed assets'!$P$2:$P$1000=Costs!$A757)*('Fixed assets'!$S$2:$S$1000))","v":0},{"$f":"L669+SUMPRODUCT(('Fixed assets'!$Q$2:$Q$1000=Costs!L$705)*('Fixed assets'!$U$2:$U$1000>Costs!$A757)*('Fixed assets'!$P$2:$P$1000=Costs!$A757)*('Fixed assets'!$R$2:$R$1000))-SUMPRODUCT(('Fixed assets'!$Q$2:$Q$1000=Costs!L$705)*('Fixed assets'!$U$2:$U$1000>Costs!$A757)*('Fixed assets'!$P$2:$P$1000=Costs!$A757)*('Fixed assets'!$S$2:$S$1000))","v":0},{"$f":"M669+SUMPRODUCT(('Fixed assets'!$Q$2:$Q$1000=Costs!M$705)*('Fixed assets'!$U$2:$U$1000>Costs!$A757)*('Fixed assets'!$P$2:$P$1000=Costs!$A757)*('Fixed assets'!$R$2:$R$1000))-SUMPRODUCT(('Fixed assets'!$Q$2:$Q$1000=Costs!M$705)*('Fixed assets'!$U$2:$U$1000>Costs!$A757)*('Fixed assets'!$P$2:$P$1000=Costs!$A757)*('Fixed assets'!$S$2:$S$1000))","v":0},{"$f":"N669+SUMPRODUCT(('Fixed assets'!$Q$2:$Q$1000=Costs!N$705)*('Fixed assets'!$U$2:$U$1000>Costs!$A757)*('Fixed assets'!$P$2:$P$1000=Costs!$A757)*('Fixed assets'!$R$2:$R$1000))-SUMPRODUCT(('Fixed assets'!$Q$2:$Q$1000=Costs!N$705)*('Fixed assets'!$U$2:$U$1000>Costs!$A757)*('Fixed assets'!$P$2:$P$1000=Costs!$A757)*('Fixed assets'!$S$2:$S$1000))","v":0},{"$f":"O669+SUMPRODUCT(('Fixed assets'!$Q$2:$Q$1000=Costs!O$705)*('Fixed assets'!$U$2:$U$1000>Costs!$A757)*('Fixed assets'!$P$2:$P$1000=Costs!$A757)*('Fixed assets'!$R$2:$R$1000))-SUMPRODUCT(('Fixed assets'!$Q$2:$Q$1000=Costs!O$705)*('Fixed assets'!$U$2:$U$1000>Costs!$A757)*('Fixed assets'!$P$2:$P$1000=Costs!$A757)*('Fixed assets'!$S$2:$S$1000))","v":0},{"$f":"P669+SUMPRODUCT(('Fixed assets'!$Q$2:$Q$1000=Costs!P$705)*('Fixed assets'!$U$2:$U$1000>Costs!$A757)*('Fixed assets'!$P$2:$P$1000=Costs!$A757)*('Fixed assets'!$R$2:$R$1000))-SUMPRODUCT(('Fixed assets'!$Q$2:$Q$1000=Costs!P$705)*('Fixed assets'!$U$2:$U$1000>Costs!$A757)*('Fixed assets'!$P$2:$P$1000=Costs!$A757)*('Fixed assets'!$S$2:$S$1000))","v":0},{"$f":"Q669+SUMPRODUCT(('Fixed assets'!$Q$2:$Q$1000=Costs!Q$705)*('Fixed assets'!$U$2:$U$1000>Costs!$A757)*('Fixed assets'!$P$2:$P$1000=Costs!$A757)*('Fixed assets'!$R$2:$R$1000))-SUMPRODUCT(('Fixed assets'!$Q$2:$Q$1000=Costs!Q$705)*('Fixed assets'!$U$2:$U$1000>Costs!$A757)*('Fixed assets'!$P$2:$P$1000=Costs!$A757)*('Fixed assets'!$S$2:$S$1000))","v":0},{"$f":"R669+SUMPRODUCT(('Fixed assets'!$Q$2:$Q$1000=Costs!R$705)*('Fixed assets'!$U$2:$U$1000>Costs!$A757)*('Fixed assets'!$P$2:$P$1000=Costs!$A757)*('Fixed assets'!$R$2:$R$1000))-SUMPRODUCT(('Fixed assets'!$Q$2:$Q$1000=Costs!R$705)*('Fixed assets'!$U$2:$U$1000>Costs!$A757)*('Fixed assets'!$P$2:$P$1000=Costs!$A757)*('Fixed assets'!$S$2:$S$1000))","v":0},{"$f":"S669+SUMPRODUCT(('Fixed assets'!$Q$2:$Q$1000=Costs!S$705)*('Fixed assets'!$U$2:$U$1000>Costs!$A757)*('Fixed assets'!$P$2:$P$1000=Costs!$A757)*('Fixed assets'!$R$2:$R$1000))-SUMPRODUCT(('Fixed assets'!$Q$2:$Q$1000=Costs!S$705)*('Fixed assets'!$U$2:$U$1000>Costs!$A757)*('Fixed assets'!$P$2:$P$1000=Costs!$A757)*('Fixed assets'!$S$2:$S$1000))","v":0},{"$f":"T669+SUMPRODUCT(('Fixed assets'!$Q$2:$Q$1000=Costs!T$705)*('Fixed assets'!$U$2:$U$1000>Costs!$A757)*('Fixed assets'!$P$2:$P$1000=Costs!$A757)*('Fixed assets'!$R$2:$R$1000))-SUMPRODUCT(('Fixed assets'!$Q$2:$Q$1000=Costs!T$705)*('Fixed assets'!$U$2:$U$1000>Costs!$A757)*('Fixed assets'!$P$2:$P$1000=Costs!$A757)*('Fixed assets'!$S$2:$S$1000))","v":0},{"$f":"U669+SUMPRODUCT(('Fixed assets'!$Q$2:$Q$1000=Costs!U$705)*('Fixed assets'!$U$2:$U$1000>Costs!$A757)*('Fixed assets'!$P$2:$P$1000=Costs!$A757)*('Fixed assets'!$R$2:$R$1000))-SUMPRODUCT(('Fixed assets'!$Q$2:$Q$1000=Costs!U$705)*('Fixed assets'!$U$2:$U$1000>Costs!$A757)*('Fixed assets'!$P$2:$P$1000=Costs!$A757)*('Fixed assets'!$S$2:$S$1000))","v":0},{"$f":"V669+SUMPRODUCT(('Fixed assets'!$Q$2:$Q$1000=Costs!V$705)*('Fixed assets'!$U$2:$U$1000>Costs!$A757)*('Fixed assets'!$P$2:$P$1000=Costs!$A757)*('Fixed assets'!$R$2:$R$1000))-SUMPRODUCT(('Fixed assets'!$Q$2:$Q$1000=Costs!V$705)*('Fixed assets'!$U$2:$U$1000>Costs!$A757)*('Fixed assets'!$P$2:$P$1000=Costs!$A757)*('Fixed assets'!$S$2:$S$1000))","v":0},{"$f":"W669+SUMPRODUCT(('Fixed assets'!$Q$2:$Q$1000=Costs!W$705)*('Fixed assets'!$U$2:$U$1000>Costs!$A757)*('Fixed assets'!$P$2:$P$1000=Costs!$A757)*('Fixed assets'!$R$2:$R$1000))-SUMPRODUCT(('Fixed assets'!$Q$2:$Q$1000=Costs!W$705)*('Fixed assets'!$U$2:$U$1000>Costs!$A757)*('Fixed assets'!$P$2:$P$1000=Costs!$A757)*('Fixed assets'!$S$2:$S$1000))","v":0},{"$f":"X669+SUMPRODUCT(('Fixed assets'!$Q$2:$Q$1000=Costs!X$705)*('Fixed assets'!$U$2:$U$1000>Costs!$A757)*('Fixed assets'!$P$2:$P$1000=Costs!$A757)*('Fixed assets'!$R$2:$R$1000))-SUMPRODUCT(('Fixed assets'!$Q$2:$Q$1000=Costs!X$705)*('Fixed assets'!$U$2:$U$1000>Costs!$A757)*('Fixed assets'!$P$2:$P$1000=Costs!$A757)*('Fixed assets'!$S$2:$S$1000))","v":0},{"$f":"Y669+SUMPRODUCT(('Fixed assets'!$Q$2:$Q$1000=Costs!Y$705)*('Fixed assets'!$U$2:$U$1000>Costs!$A757)*('Fixed assets'!$P$2:$P$1000=Costs!$A757)*('Fixed assets'!$R$2:$R$1000))-SUMPRODUCT(('Fixed assets'!$Q$2:$Q$1000=Costs!Y$705)*('Fixed assets'!$U$2:$U$1000>Costs!$A757)*('Fixed assets'!$P$2:$P$1000=Costs!$A757)*('Fixed assets'!$S$2:$S$1000))","v":0},{"$f":"Z669+SUMPRODUCT(('Fixed assets'!$Q$2:$Q$1000=Costs!Z$705)*('Fixed assets'!$U$2:$U$1000>Costs!$A757)*('Fixed assets'!$P$2:$P$1000=Costs!$A757)*('Fixed assets'!$R$2:$R$1000))-SUMPRODUCT(('Fixed assets'!$Q$2:$Q$1000=Costs!Z$705)*('Fixed assets'!$U$2:$U$1000>Costs!$A757)*('Fixed assets'!$P$2:$P$1000=Costs!$A757)*('Fixed assets'!$S$2:$S$1000))","v":0},{"$f":"AA669+SUMPRODUCT(('Fixed assets'!$Q$2:$Q$1000=Costs!AA$705)*('Fixed assets'!$U$2:$U$1000>Costs!$A757)*('Fixed assets'!$P$2:$P$1000=Costs!$A757)*('Fixed assets'!$R$2:$R$1000))-SUMPRODUCT(('Fixed assets'!$Q$2:$Q$1000=Costs!AA$705)*('Fixed assets'!$U$2:$U$1000>Costs!$A757)*('Fixed assets'!$P$2:$P$1000=Costs!$A757)*('Fixed assets'!$S$2:$S$1000))","v":0},{"$f":"AB669+SUMPRODUCT(('Fixed assets'!$Q$2:$Q$1000=Costs!AB$705)*('Fixed assets'!$U$2:$U$1000>Costs!$A757)*('Fixed assets'!$P$2:$P$1000=Costs!$A757)*('Fixed assets'!$R$2:$R$1000))-SUMPRODUCT(('Fixed assets'!$Q$2:$Q$1000=Costs!AB$705)*('Fixed assets'!$U$2:$U$1000>Costs!$A757)*('Fixed assets'!$P$2:$P$1000=Costs!$A757)*('Fixed assets'!$S$2:$S$1000))","v":0},{"$f":"AC669+SUMPRODUCT(('Fixed assets'!$Q$2:$Q$1000=Costs!AC$705)*('Fixed assets'!$U$2:$U$1000>Costs!$A757)*('Fixed assets'!$P$2:$P$1000=Costs!$A757)*('Fixed assets'!$R$2:$R$1000))-SUMPRODUCT(('Fixed assets'!$Q$2:$Q$1000=Costs!AC$705)*('Fixed assets'!$U$2:$U$1000>Costs!$A757)*('Fixed assets'!$P$2:$P$1000=Costs!$A757)*('Fixed assets'!$S$2:$S$1000))","v":0},{"$f":"AD669+SUMPRODUCT(('Fixed assets'!$Q$2:$Q$1000=Costs!AD$705)*('Fixed assets'!$U$2:$U$1000>Costs!$A757)*('Fixed assets'!$P$2:$P$1000=Costs!$A757)*('Fixed assets'!$R$2:$R$1000))-SUMPRODUCT(('Fixed assets'!$Q$2:$Q$1000=Costs!AD$705)*('Fixed assets'!$U$2:$U$1000>Costs!$A757)*('Fixed assets'!$P$2:$P$1000=Costs!$A757)*('Fixed assets'!$S$2:$S$1000))","v":0},{"$f":"AE669+SUMPRODUCT(('Fixed assets'!$Q$2:$Q$1000=Costs!AE$705)*('Fixed assets'!$U$2:$U$1000>Costs!$A757)*('Fixed assets'!$P$2:$P$1000=Costs!$A757)*('Fixed assets'!$R$2:$R$1000))-SUMPRODUCT(('Fixed assets'!$Q$2:$Q$1000=Costs!AE$705)*('Fixed assets'!$U$2:$U$1000>Costs!$A757)*('Fixed assets'!$P$2:$P$1000=Costs!$A757)*('Fixed assets'!$S$2:$S$1000))","v":0},{"$f":"AF669+SUMPRODUCT(('Fixed assets'!$Q$2:$Q$1000=Costs!AF$705)*('Fixed assets'!$U$2:$U$1000>Costs!$A757)*('Fixed assets'!$P$2:$P$1000=Costs!$A757)*('Fixed assets'!$R$2:$R$1000))-SUMPRODUCT(('Fixed assets'!$Q$2:$Q$1000=Costs!AF$705)*('Fixed assets'!$U$2:$U$1000>Costs!$A757)*('Fixed assets'!$P$2:$P$1000=Costs!$A757)*('Fixed assets'!$S$2:$S$1000))","v":0},{"$f":"AG669+SUMPRODUCT(('Fixed assets'!$Q$2:$Q$1000=Costs!AG$705)*('Fixed assets'!$U$2:$U$1000>Costs!$A757)*('Fixed assets'!$P$2:$P$1000=Costs!$A757)*('Fixed assets'!$R$2:$R$1000))-SUMPRODUCT(('Fixed assets'!$Q$2:$Q$1000=Costs!AG$705)*('Fixed assets'!$U$2:$U$1000>Costs!$A757)*('Fixed assets'!$P$2:$P$1000=Costs!$A757)*('Fixed assets'!$S$2:$S$1000))","v":0},{"$f":"AH669+SUMPRODUCT(('Fixed assets'!$Q$2:$Q$1000=Costs!AH$705)*('Fixed assets'!$U$2:$U$1000>Costs!$A757)*('Fixed assets'!$P$2:$P$1000=Costs!$A757)*('Fixed assets'!$R$2:$R$1000))-SUMPRODUCT(('Fixed assets'!$Q$2:$Q$1000=Costs!AH$705)*('Fixed assets'!$U$2:$U$1000>Costs!$A757)*('Fixed assets'!$P$2:$P$1000=Costs!$A757)*('Fixed assets'!$S$2:$S$1000))","v":0},{"$f":"AI669+SUMPRODUCT(('Fixed assets'!$Q$2:$Q$1000=Costs!AI$705)*('Fixed assets'!$U$2:$U$1000>Costs!$A757)*('Fixed assets'!$P$2:$P$1000=Costs!$A757)*('Fixed assets'!$R$2:$R$1000))-SUMPRODUCT(('Fixed assets'!$Q$2:$Q$1000=Costs!AI$705)*('Fixed assets'!$U$2:$U$1000>Costs!$A757)*('Fixed assets'!$P$2:$P$1000=Costs!$A757)*('Fixed assets'!$S$2:$S$1000))","v":0},{"$f":"AJ669+SUMPRODUCT(('Fixed assets'!$Q$2:$Q$1000=Costs!AJ$705)*('Fixed assets'!$U$2:$U$1000>Costs!$A757)*('Fixed assets'!$P$2:$P$1000=Costs!$A757)*('Fixed assets'!$R$2:$R$1000))-SUMPRODUCT(('Fixed assets'!$Q$2:$Q$1000=Costs!AJ$705)*('Fixed assets'!$U$2:$U$1000>Costs!$A757)*('Fixed assets'!$P$2:$P$1000=Costs!$A757)*('Fixed assets'!$S$2:$S$1000))","v":0},{"$f":"AK669+SUMPRODUCT(('Fixed assets'!$Q$2:$Q$1000=Costs!AK$705)*('Fixed assets'!$U$2:$U$1000>Costs!$A757)*('Fixed assets'!$P$2:$P$1000=Costs!$A757)*('Fixed assets'!$R$2:$R$1000))-SUMPRODUCT(('Fixed assets'!$Q$2:$Q$1000=Costs!AK$705)*('Fixed assets'!$U$2:$U$1000>Costs!$A757)*('Fixed assets'!$P$2:$P$1000=Costs!$A757)*('Fixed assets'!$S$2:$S$1000))","v":0},{"$f":"AL669+SUMPRODUCT(('Fixed assets'!$Q$2:$Q$1000=Costs!AL$705)*('Fixed assets'!$U$2:$U$1000>Costs!$A757)*('Fixed assets'!$P$2:$P$1000=Costs!$A757)*('Fixed assets'!$R$2:$R$1000))-SUMPRODUCT(('Fixed assets'!$Q$2:$Q$1000=Costs!AL$705)*('Fixed assets'!$U$2:$U$1000>Costs!$A757)*('Fixed assets'!$P$2:$P$1000=Costs!$A757)*('Fixed assets'!$S$2:$S$1000))","v":0},{"$f":"AM669+SUMPRODUCT(('Fixed assets'!$Q$2:$Q$1000=Costs!AM$705)*('Fixed assets'!$U$2:$U$1000>Costs!$A757)*('Fixed assets'!$P$2:$P$1000=Costs!$A757)*('Fixed assets'!$R$2:$R$1000))-SUMPRODUCT(('Fixed assets'!$Q$2:$Q$1000=Costs!AM$705)*('Fixed assets'!$U$2:$U$1000>Costs!$A757)*('Fixed assets'!$P$2:$P$1000=Costs!$A757)*('Fixed assets'!$S$2:$S$1000))","v":0},{"$f":"AN669+SUMPRODUCT(('Fixed assets'!$Q$2:$Q$1000=Costs!AN$705)*('Fixed assets'!$U$2:$U$1000>Costs!$A757)*('Fixed assets'!$P$2:$P$1000=Costs!$A757)*('Fixed assets'!$R$2:$R$1000))-SUMPRODUCT(('Fixed assets'!$Q$2:$Q$1000=Costs!AN$705)*('Fixed assets'!$U$2:$U$1000>Costs!$A757)*('Fixed assets'!$P$2:$P$1000=Costs!$A757)*('Fixed assets'!$S$2:$S$1000))","v":0},{"$f":"AO669+SUMPRODUCT(('Fixed assets'!$Q$2:$Q$1000=Costs!AO$705)*('Fixed assets'!$U$2:$U$1000>Costs!$A757)*('Fixed assets'!$P$2:$P$1000=Costs!$A757)*('Fixed assets'!$R$2:$R$1000))-SUMPRODUCT(('Fixed assets'!$Q$2:$Q$1000=Costs!AO$705)*('Fixed assets'!$U$2:$U$1000>Costs!$A757)*('Fixed assets'!$P$2:$P$1000=Costs!$A757)*('Fixed assets'!$S$2:$S$1000))","v":0},{"$f":"AP669+SUMPRODUCT(('Fixed assets'!$Q$2:$Q$1000=Costs!AP$705)*('Fixed assets'!$U$2:$U$1000>Costs!$A757)*('Fixed assets'!$P$2:$P$1000=Costs!$A757)*('Fixed assets'!$R$2:$R$1000))-SUMPRODUCT(('Fixed assets'!$Q$2:$Q$1000=Costs!AP$705)*('Fixed assets'!$U$2:$U$1000>Costs!$A757)*('Fixed assets'!$P$2:$P$1000=Costs!$A757)*('Fixed assets'!$S$2:$S$1000))","v":0},{"$f":"AQ669+SUMPRODUCT(('Fixed assets'!$Q$2:$Q$1000=Costs!AQ$705)*('Fixed assets'!$U$2:$U$1000>Costs!$A757)*('Fixed assets'!$P$2:$P$1000=Costs!$A757)*('Fixed assets'!$R$2:$R$1000))-SUMPRODUCT(('Fixed assets'!$Q$2:$Q$1000=Costs!AQ$705)*('Fixed assets'!$U$2:$U$1000>Costs!$A757)*('Fixed assets'!$P$2:$P$1000=Costs!$A757)*('Fixed assets'!$S$2:$S$1000))","v":0}]
[2067,0,{"$f":"C670+SUMPRODUCT(('Fixed assets'!$Q$2:$Q$1000=Costs!C$705)*('Fixed assets'!$U$2:$U$1000>Costs!$A758)*('Fixed assets'!$P$2:$P$1000=Costs!$A758)*('Fixed assets'!$R$2:$R$1000))-SUMPRODUCT(('Fixed assets'!$Q$2:$Q$1000=Costs!C$705)*('Fixed assets'!$U$2:$U$1000>Costs!$A758)*('Fixed assets'!$P$2:$P$1000=Costs!$A758)*('Fixed assets'!$S$2:$S$1000))","v":0},{"$f":"D670+SUMPRODUCT(('Fixed assets'!$Q$2:$Q$1000=Costs!D$705)*('Fixed assets'!$U$2:$U$1000>Costs!$A758)*('Fixed assets'!$P$2:$P$1000=Costs!$A758)*('Fixed assets'!$R$2:$R$1000))-SUMPRODUCT(('Fixed assets'!$Q$2:$Q$1000=Costs!D$705)*('Fixed assets'!$U$2:$U$1000>Costs!$A758)*('Fixed assets'!$P$2:$P$1000=Costs!$A758)*('Fixed assets'!$S$2:$S$1000))","v":0},{"$f":"E670+SUMPRODUCT(('Fixed assets'!$Q$2:$Q$1000=Costs!E$705)*('Fixed assets'!$U$2:$U$1000>Costs!$A758)*('Fixed assets'!$P$2:$P$1000=Costs!$A758)*('Fixed assets'!$R$2:$R$1000))-SUMPRODUCT(('Fixed assets'!$Q$2:$Q$1000=Costs!E$705)*('Fixed assets'!$U$2:$U$1000>Costs!$A758)*('Fixed assets'!$P$2:$P$1000=Costs!$A758)*('Fixed assets'!$S$2:$S$1000))","v":0},{"$f":"F670+SUMPRODUCT(('Fixed assets'!$Q$2:$Q$1000=Costs!F$705)*('Fixed assets'!$U$2:$U$1000>Costs!$A758)*('Fixed assets'!$P$2:$P$1000=Costs!$A758)*('Fixed assets'!$R$2:$R$1000))-SUMPRODUCT(('Fixed assets'!$Q$2:$Q$1000=Costs!F$705)*('Fixed assets'!$U$2:$U$1000>Costs!$A758)*('Fixed assets'!$P$2:$P$1000=Costs!$A758)*('Fixed assets'!$S$2:$S$1000))","v":0},{"$f":"G670+SUMPRODUCT(('Fixed assets'!$Q$2:$Q$1000=Costs!G$705)*('Fixed assets'!$U$2:$U$1000>Costs!$A758)*('Fixed assets'!$P$2:$P$1000=Costs!$A758)*('Fixed assets'!$R$2:$R$1000))-SUMPRODUCT(('Fixed assets'!$Q$2:$Q$1000=Costs!G$705)*('Fixed assets'!$U$2:$U$1000>Costs!$A758)*('Fixed assets'!$P$2:$P$1000=Costs!$A758)*('Fixed assets'!$S$2:$S$1000))","v":0},{"$f":"H670+SUMPRODUCT(('Fixed assets'!$Q$2:$Q$1000=Costs!H$705)*('Fixed assets'!$U$2:$U$1000>Costs!$A758)*('Fixed assets'!$P$2:$P$1000=Costs!$A758)*('Fixed assets'!$R$2:$R$1000))-SUMPRODUCT(('Fixed assets'!$Q$2:$Q$1000=Costs!H$705)*('Fixed assets'!$U$2:$U$1000>Costs!$A758)*('Fixed assets'!$P$2:$P$1000=Costs!$A758)*('Fixed assets'!$S$2:$S$1000))","v":0},{"$f":"I670+SUMPRODUCT(('Fixed assets'!$Q$2:$Q$1000=Costs!I$705)*('Fixed assets'!$U$2:$U$1000>Costs!$A758)*('Fixed assets'!$P$2:$P$1000=Costs!$A758)*('Fixed assets'!$R$2:$R$1000))-SUMPRODUCT(('Fixed assets'!$Q$2:$Q$1000=Costs!I$705)*('Fixed assets'!$U$2:$U$1000>Costs!$A758)*('Fixed assets'!$P$2:$P$1000=Costs!$A758)*('Fixed assets'!$S$2:$S$1000))","v":0},{"$f":"J670+SUMPRODUCT(('Fixed assets'!$Q$2:$Q$1000=Costs!J$705)*('Fixed assets'!$U$2:$U$1000>Costs!$A758)*('Fixed assets'!$P$2:$P$1000=Costs!$A758)*('Fixed assets'!$R$2:$R$1000))-SUMPRODUCT(('Fixed assets'!$Q$2:$Q$1000=Costs!J$705)*('Fixed assets'!$U$2:$U$1000>Costs!$A758)*('Fixed assets'!$P$2:$P$1000=Costs!$A758)*('Fixed assets'!$S$2:$S$1000))","v":0},{"$f":"K670+SUMPRODUCT(('Fixed assets'!$Q$2:$Q$1000=Costs!K$705)*('Fixed assets'!$U$2:$U$1000>Costs!$A758)*('Fixed assets'!$P$2:$P$1000=Costs!$A758)*('Fixed assets'!$R$2:$R$1000))-SUMPRODUCT(('Fixed assets'!$Q$2:$Q$1000=Costs!K$705)*('Fixed assets'!$U$2:$U$1000>Costs!$A758)*('Fixed assets'!$P$2:$P$1000=Costs!$A758)*('Fixed assets'!$S$2:$S$1000))","v":0},{"$f":"L670+SUMPRODUCT(('Fixed assets'!$Q$2:$Q$1000=Costs!L$705)*('Fixed assets'!$U$2:$U$1000>Costs!$A758)*('Fixed assets'!$P$2:$P$1000=Costs!$A758)*('Fixed assets'!$R$2:$R$1000))-SUMPRODUCT(('Fixed assets'!$Q$2:$Q$1000=Costs!L$705)*('Fixed assets'!$U$2:$U$1000>Costs!$A758)*('Fixed assets'!$P$2:$P$1000=Costs!$A758)*('Fixed assets'!$S$2:$S$1000))","v":0},{"$f":"M670+SUMPRODUCT(('Fixed assets'!$Q$2:$Q$1000=Costs!M$705)*('Fixed assets'!$U$2:$U$1000>Costs!$A758)*('Fixed assets'!$P$2:$P$1000=Costs!$A758)*('Fixed assets'!$R$2:$R$1000))-SUMPRODUCT(('Fixed assets'!$Q$2:$Q$1000=Costs!M$705)*('Fixed assets'!$U$2:$U$1000>Costs!$A758)*('Fixed assets'!$P$2:$P$1000=Costs!$A758)*('Fixed assets'!$S$2:$S$1000))","v":0},{"$f":"N670+SUMPRODUCT(('Fixed assets'!$Q$2:$Q$1000=Costs!N$705)*('Fixed assets'!$U$2:$U$1000>Costs!$A758)*('Fixed assets'!$P$2:$P$1000=Costs!$A758)*('Fixed assets'!$R$2:$R$1000))-SUMPRODUCT(('Fixed assets'!$Q$2:$Q$1000=Costs!N$705)*('Fixed assets'!$U$2:$U$1000>Costs!$A758)*('Fixed assets'!$P$2:$P$1000=Costs!$A758)*('Fixed assets'!$S$2:$S$1000))","v":0},{"$f":"O670+SUMPRODUCT(('Fixed assets'!$Q$2:$Q$1000=Costs!O$705)*('Fixed assets'!$U$2:$U$1000>Costs!$A758)*('Fixed assets'!$P$2:$P$1000=Costs!$A758)*('Fixed assets'!$R$2:$R$1000))-SUMPRODUCT(('Fixed assets'!$Q$2:$Q$1000=Costs!O$705)*('Fixed assets'!$U$2:$U$1000>Costs!$A758)*('Fixed assets'!$P$2:$P$1000=Costs!$A758)*('Fixed assets'!$S$2:$S$1000))","v":0},{"$f":"P670+SUMPRODUCT(('Fixed assets'!$Q$2:$Q$1000=Costs!P$705)*('Fixed assets'!$U$2:$U$1000>Costs!$A758)*('Fixed assets'!$P$2:$P$1000=Costs!$A758)*('Fixed assets'!$R$2:$R$1000))-SUMPRODUCT(('Fixed assets'!$Q$2:$Q$1000=Costs!P$705)*('Fixed assets'!$U$2:$U$1000>Costs!$A758)*('Fixed assets'!$P$2:$P$1000=Costs!$A758)*('Fixed assets'!$S$2:$S$1000))","v":0},{"$f":"Q670+SUMPRODUCT(('Fixed assets'!$Q$2:$Q$1000=Costs!Q$705)*('Fixed assets'!$U$2:$U$1000>Costs!$A758)*('Fixed assets'!$P$2:$P$1000=Costs!$A758)*('Fixed assets'!$R$2:$R$1000))-SUMPRODUCT(('Fixed assets'!$Q$2:$Q$1000=Costs!Q$705)*('Fixed assets'!$U$2:$U$1000>Costs!$A758)*('Fixed assets'!$P$2:$P$1000=Costs!$A758)*('Fixed assets'!$S$2:$S$1000))","v":0},{"$f":"R670+SUMPRODUCT(('Fixed assets'!$Q$2:$Q$1000=Costs!R$705)*('Fixed assets'!$U$2:$U$1000>Costs!$A758)*('Fixed assets'!$P$2:$P$1000=Costs!$A758)*('Fixed assets'!$R$2:$R$1000))-SUMPRODUCT(('Fixed assets'!$Q$2:$Q$1000=Costs!R$705)*('Fixed assets'!$U$2:$U$1000>Costs!$A758)*('Fixed assets'!$P$2:$P$1000=Costs!$A758)*('Fixed assets'!$S$2:$S$1000))","v":0},{"$f":"S670+SUMPRODUCT(('Fixed assets'!$Q$2:$Q$1000=Costs!S$705)*('Fixed assets'!$U$2:$U$1000>Costs!$A758)*('Fixed assets'!$P$2:$P$1000=Costs!$A758)*('Fixed assets'!$R$2:$R$1000))-SUMPRODUCT(('Fixed assets'!$Q$2:$Q$1000=Costs!S$705)*('Fixed assets'!$U$2:$U$1000>Costs!$A758)*('Fixed assets'!$P$2:$P$1000=Costs!$A758)*('Fixed assets'!$S$2:$S$1000))","v":0},{"$f":"T670+SUMPRODUCT(('Fixed assets'!$Q$2:$Q$1000=Costs!T$705)*('Fixed assets'!$U$2:$U$1000>Costs!$A758)*('Fixed assets'!$P$2:$P$1000=Costs!$A758)*('Fixed assets'!$R$2:$R$1000))-SUMPRODUCT(('Fixed assets'!$Q$2:$Q$1000=Costs!T$705)*('Fixed assets'!$U$2:$U$1000>Costs!$A758)*('Fixed assets'!$P$2:$P$1000=Costs!$A758)*('Fixed assets'!$S$2:$S$1000))","v":0},{"$f":"U670+SUMPRODUCT(('Fixed assets'!$Q$2:$Q$1000=Costs!U$705)*('Fixed assets'!$U$2:$U$1000>Costs!$A758)*('Fixed assets'!$P$2:$P$1000=Costs!$A758)*('Fixed assets'!$R$2:$R$1000))-SUMPRODUCT(('Fixed assets'!$Q$2:$Q$1000=Costs!U$705)*('Fixed assets'!$U$2:$U$1000>Costs!$A758)*('Fixed assets'!$P$2:$P$1000=Costs!$A758)*('Fixed assets'!$S$2:$S$1000))","v":0},{"$f":"V670+SUMPRODUCT(('Fixed assets'!$Q$2:$Q$1000=Costs!V$705)*('Fixed assets'!$U$2:$U$1000>Costs!$A758)*('Fixed assets'!$P$2:$P$1000=Costs!$A758)*('Fixed assets'!$R$2:$R$1000))-SUMPRODUCT(('Fixed assets'!$Q$2:$Q$1000=Costs!V$705)*('Fixed assets'!$U$2:$U$1000>Costs!$A758)*('Fixed assets'!$P$2:$P$1000=Costs!$A758)*('Fixed assets'!$S$2:$S$1000))","v":0},{"$f":"W670+SUMPRODUCT(('Fixed assets'!$Q$2:$Q$1000=Costs!W$705)*('Fixed assets'!$U$2:$U$1000>Costs!$A758)*('Fixed assets'!$P$2:$P$1000=Costs!$A758)*('Fixed assets'!$R$2:$R$1000))-SUMPRODUCT(('Fixed assets'!$Q$2:$Q$1000=Costs!W$705)*('Fixed assets'!$U$2:$U$1000>Costs!$A758)*('Fixed assets'!$P$2:$P$1000=Costs!$A758)*('Fixed assets'!$S$2:$S$1000))","v":0},{"$f":"X670+SUMPRODUCT(('Fixed assets'!$Q$2:$Q$1000=Costs!X$705)*('Fixed assets'!$U$2:$U$1000>Costs!$A758)*('Fixed assets'!$P$2:$P$1000=Costs!$A758)*('Fixed assets'!$R$2:$R$1000))-SUMPRODUCT(('Fixed assets'!$Q$2:$Q$1000=Costs!X$705)*('Fixed assets'!$U$2:$U$1000>Costs!$A758)*('Fixed assets'!$P$2:$P$1000=Costs!$A758)*('Fixed assets'!$S$2:$S$1000))","v":0},{"$f":"Y670+SUMPRODUCT(('Fixed assets'!$Q$2:$Q$1000=Costs!Y$705)*('Fixed assets'!$U$2:$U$1000>Costs!$A758)*('Fixed assets'!$P$2:$P$1000=Costs!$A758)*('Fixed assets'!$R$2:$R$1000))-SUMPRODUCT(('Fixed assets'!$Q$2:$Q$1000=Costs!Y$705)*('Fixed assets'!$U$2:$U$1000>Costs!$A758)*('Fixed assets'!$P$2:$P$1000=Costs!$A758)*('Fixed assets'!$S$2:$S$1000))","v":0},{"$f":"Z670+SUMPRODUCT(('Fixed assets'!$Q$2:$Q$1000=Costs!Z$705)*('Fixed assets'!$U$2:$U$1000>Costs!$A758)*('Fixed assets'!$P$2:$P$1000=Costs!$A758)*('Fixed assets'!$R$2:$R$1000))-SUMPRODUCT(('Fixed assets'!$Q$2:$Q$1000=Costs!Z$705)*('Fixed assets'!$U$2:$U$1000>Costs!$A758)*('Fixed assets'!$P$2:$P$1000=Costs!$A758)*('Fixed assets'!$S$2:$S$1000))","v":0},{"$f":"AA670+SUMPRODUCT(('Fixed assets'!$Q$2:$Q$1000=Costs!AA$705)*('Fixed assets'!$U$2:$U$1000>Costs!$A758)*('Fixed assets'!$P$2:$P$1000=Costs!$A758)*('Fixed assets'!$R$2:$R$1000))-SUMPRODUCT(('Fixed assets'!$Q$2:$Q$1000=Costs!AA$705)*('Fixed assets'!$U$2:$U$1000>Costs!$A758)*('Fixed assets'!$P$2:$P$1000=Costs!$A758)*('Fixed assets'!$S$2:$S$1000))","v":0},{"$f":"AB670+SUMPRODUCT(('Fixed assets'!$Q$2:$Q$1000=Costs!AB$705)*('Fixed assets'!$U$2:$U$1000>Costs!$A758)*('Fixed assets'!$P$2:$P$1000=Costs!$A758)*('Fixed assets'!$R$2:$R$1000))-SUMPRODUCT(('Fixed assets'!$Q$2:$Q$1000=Costs!AB$705)*('Fixed assets'!$U$2:$U$1000>Costs!$A758)*('Fixed assets'!$P$2:$P$1000=Costs!$A758)*('Fixed assets'!$S$2:$S$1000))","v":0},{"$f":"AC670+SUMPRODUCT(('Fixed assets'!$Q$2:$Q$1000=Costs!AC$705)*('Fixed assets'!$U$2:$U$1000>Costs!$A758)*('Fixed assets'!$P$2:$P$1000=Costs!$A758)*('Fixed assets'!$R$2:$R$1000))-SUMPRODUCT(('Fixed assets'!$Q$2:$Q$1000=Costs!AC$705)*('Fixed assets'!$U$2:$U$1000>Costs!$A758)*('Fixed assets'!$P$2:$P$1000=Costs!$A758)*('Fixed assets'!$S$2:$S$1000))","v":0},{"$f":"AD670+SUMPRODUCT(('Fixed assets'!$Q$2:$Q$1000=Costs!AD$705)*('Fixed assets'!$U$2:$U$1000>Costs!$A758)*('Fixed assets'!$P$2:$P$1000=Costs!$A758)*('Fixed assets'!$R$2:$R$1000))-SUMPRODUCT(('Fixed assets'!$Q$2:$Q$1000=Costs!AD$705)*('Fixed assets'!$U$2:$U$1000>Costs!$A758)*('Fixed assets'!$P$2:$P$1000=Costs!$A758)*('Fixed assets'!$S$2:$S$1000))","v":0},{"$f":"AE670+SUMPRODUCT(('Fixed assets'!$Q$2:$Q$1000=Costs!AE$705)*('Fixed assets'!$U$2:$U$1000>Costs!$A758)*('Fixed assets'!$P$2:$P$1000=Costs!$A758)*('Fixed assets'!$R$2:$R$1000))-SUMPRODUCT(('Fixed assets'!$Q$2:$Q$1000=Costs!AE$705)*('Fixed assets'!$U$2:$U$1000>Costs!$A758)*('Fixed assets'!$P$2:$P$1000=Costs!$A758)*('Fixed assets'!$S$2:$S$1000))","v":0},{"$f":"AF670+SUMPRODUCT(('Fixed assets'!$Q$2:$Q$1000=Costs!AF$705)*('Fixed assets'!$U$2:$U$1000>Costs!$A758)*('Fixed assets'!$P$2:$P$1000=Costs!$A758)*('Fixed assets'!$R$2:$R$1000))-SUMPRODUCT(('Fixed assets'!$Q$2:$Q$1000=Costs!AF$705)*('Fixed assets'!$U$2:$U$1000>Costs!$A758)*('Fixed assets'!$P$2:$P$1000=Costs!$A758)*('Fixed assets'!$S$2:$S$1000))","v":0},{"$f":"AG670+SUMPRODUCT(('Fixed assets'!$Q$2:$Q$1000=Costs!AG$705)*('Fixed assets'!$U$2:$U$1000>Costs!$A758)*('Fixed assets'!$P$2:$P$1000=Costs!$A758)*('Fixed assets'!$R$2:$R$1000))-SUMPRODUCT(('Fixed assets'!$Q$2:$Q$1000=Costs!AG$705)*('Fixed assets'!$U$2:$U$1000>Costs!$A758)*('Fixed assets'!$P$2:$P$1000=Costs!$A758)*('Fixed assets'!$S$2:$S$1000))","v":0},{"$f":"AH670+SUMPRODUCT(('Fixed assets'!$Q$2:$Q$1000=Costs!AH$705)*('Fixed assets'!$U$2:$U$1000>Costs!$A758)*('Fixed assets'!$P$2:$P$1000=Costs!$A758)*('Fixed assets'!$R$2:$R$1000))-SUMPRODUCT(('Fixed assets'!$Q$2:$Q$1000=Costs!AH$705)*('Fixed assets'!$U$2:$U$1000>Costs!$A758)*('Fixed assets'!$P$2:$P$1000=Costs!$A758)*('Fixed assets'!$S$2:$S$1000))","v":0},{"$f":"AI670+SUMPRODUCT(('Fixed assets'!$Q$2:$Q$1000=Costs!AI$705)*('Fixed assets'!$U$2:$U$1000>Costs!$A758)*('Fixed assets'!$P$2:$P$1000=Costs!$A758)*('Fixed assets'!$R$2:$R$1000))-SUMPRODUCT(('Fixed assets'!$Q$2:$Q$1000=Costs!AI$705)*('Fixed assets'!$U$2:$U$1000>Costs!$A758)*('Fixed assets'!$P$2:$P$1000=Costs!$A758)*('Fixed assets'!$S$2:$S$1000))","v":0},{"$f":"AJ670+SUMPRODUCT(('Fixed assets'!$Q$2:$Q$1000=Costs!AJ$705)*('Fixed assets'!$U$2:$U$1000>Costs!$A758)*('Fixed assets'!$P$2:$P$1000=Costs!$A758)*('Fixed assets'!$R$2:$R$1000))-SUMPRODUCT(('Fixed assets'!$Q$2:$Q$1000=Costs!AJ$705)*('Fixed assets'!$U$2:$U$1000>Costs!$A758)*('Fixed assets'!$P$2:$P$1000=Costs!$A758)*('Fixed assets'!$S$2:$S$1000))","v":0},{"$f":"AK670+SUMPRODUCT(('Fixed assets'!$Q$2:$Q$1000=Costs!AK$705)*('Fixed assets'!$U$2:$U$1000>Costs!$A758)*('Fixed assets'!$P$2:$P$1000=Costs!$A758)*('Fixed assets'!$R$2:$R$1000))-SUMPRODUCT(('Fixed assets'!$Q$2:$Q$1000=Costs!AK$705)*('Fixed assets'!$U$2:$U$1000>Costs!$A758)*('Fixed assets'!$P$2:$P$1000=Costs!$A758)*('Fixed assets'!$S$2:$S$1000))","v":0},{"$f":"AL670+SUMPRODUCT(('Fixed assets'!$Q$2:$Q$1000=Costs!AL$705)*('Fixed assets'!$U$2:$U$1000>Costs!$A758)*('Fixed assets'!$P$2:$P$1000=Costs!$A758)*('Fixed assets'!$R$2:$R$1000))-SUMPRODUCT(('Fixed assets'!$Q$2:$Q$1000=Costs!AL$705)*('Fixed assets'!$U$2:$U$1000>Costs!$A758)*('Fixed assets'!$P$2:$P$1000=Costs!$A758)*('Fixed assets'!$S$2:$S$1000))","v":0},{"$f":"AM670+SUMPRODUCT(('Fixed assets'!$Q$2:$Q$1000=Costs!AM$705)*('Fixed assets'!$U$2:$U$1000>Costs!$A758)*('Fixed assets'!$P$2:$P$1000=Costs!$A758)*('Fixed assets'!$R$2:$R$1000))-SUMPRODUCT(('Fixed assets'!$Q$2:$Q$1000=Costs!AM$705)*('Fixed assets'!$U$2:$U$1000>Costs!$A758)*('Fixed assets'!$P$2:$P$1000=Costs!$A758)*('Fixed assets'!$S$2:$S$1000))","v":0},{"$f":"AN670+SUMPRODUCT(('Fixed assets'!$Q$2:$Q$1000=Costs!AN$705)*('Fixed assets'!$U$2:$U$1000>Costs!$A758)*('Fixed assets'!$P$2:$P$1000=Costs!$A758)*('Fixed assets'!$R$2:$R$1000))-SUMPRODUCT(('Fixed assets'!$Q$2:$Q$1000=Costs!AN$705)*('Fixed assets'!$U$2:$U$1000>Costs!$A758)*('Fixed assets'!$P$2:$P$1000=Costs!$A758)*('Fixed assets'!$S$2:$S$1000))","v":0},{"$f":"AO670+SUMPRODUCT(('Fixed assets'!$Q$2:$Q$1000=Costs!AO$705)*('Fixed assets'!$U$2:$U$1000>Costs!$A758)*('Fixed assets'!$P$2:$P$1000=Costs!$A758)*('Fixed assets'!$R$2:$R$1000))-SUMPRODUCT(('Fixed assets'!$Q$2:$Q$1000=Costs!AO$705)*('Fixed assets'!$U$2:$U$1000>Costs!$A758)*('Fixed assets'!$P$2:$P$1000=Costs!$A758)*('Fixed assets'!$S$2:$S$1000))","v":0},{"$f":"AP670+SUMPRODUCT(('Fixed assets'!$Q$2:$Q$1000=Costs!AP$705)*('Fixed assets'!$U$2:$U$1000>Costs!$A758)*('Fixed assets'!$P$2:$P$1000=Costs!$A758)*('Fixed assets'!$R$2:$R$1000))-SUMPRODUCT(('Fixed assets'!$Q$2:$Q$1000=Costs!AP$705)*('Fixed assets'!$U$2:$U$1000>Costs!$A758)*('Fixed assets'!$P$2:$P$1000=Costs!$A758)*('Fixed assets'!$S$2:$S$1000))","v":0},{"$f":"AQ670+SUMPRODUCT(('Fixed assets'!$Q$2:$Q$1000=Costs!AQ$705)*('Fixed assets'!$U$2:$U$1000>Costs!$A758)*('Fixed assets'!$P$2:$P$1000=Costs!$A758)*('Fixed assets'!$R$2:$R$1000))-SUMPRODUCT(('Fixed assets'!$Q$2:$Q$1000=Costs!AQ$705)*('Fixed assets'!$U$2:$U$1000>Costs!$A758)*('Fixed assets'!$P$2:$P$1000=Costs!$A758)*('Fixed assets'!$S$2:$S$1000))","v":0}]
[2068,0,{"$f":"C671+SUMPRODUCT(('Fixed assets'!$Q$2:$Q$1000=Costs!C$705)*('Fixed assets'!$U$2:$U$1000>Costs!$A759)*('Fixed assets'!$P$2:$P$1000=Costs!$A759)*('Fixed assets'!$R$2:$R$1000))-SUMPRODUCT(('Fixed assets'!$Q$2:$Q$1000=Costs!C$705)*('Fixed assets'!$U$2:$U$1000>Costs!$A759)*('Fixed assets'!$P$2:$P$1000=Costs!$A759)*('Fixed assets'!$S$2:$S$1000))","v":0},{"$f":"D671+SUMPRODUCT(('Fixed assets'!$Q$2:$Q$1000=Costs!D$705)*('Fixed assets'!$U$2:$U$1000>Costs!$A759)*('Fixed assets'!$P$2:$P$1000=Costs!$A759)*('Fixed assets'!$R$2:$R$1000))-SUMPRODUCT(('Fixed assets'!$Q$2:$Q$1000=Costs!D$705)*('Fixed assets'!$U$2:$U$1000>Costs!$A759)*('Fixed assets'!$P$2:$P$1000=Costs!$A759)*('Fixed assets'!$S$2:$S$1000))","v":0},{"$f":"E671+SUMPRODUCT(('Fixed assets'!$Q$2:$Q$1000=Costs!E$705)*('Fixed assets'!$U$2:$U$1000>Costs!$A759)*('Fixed assets'!$P$2:$P$1000=Costs!$A759)*('Fixed assets'!$R$2:$R$1000))-SUMPRODUCT(('Fixed assets'!$Q$2:$Q$1000=Costs!E$705)*('Fixed assets'!$U$2:$U$1000>Costs!$A759)*('Fixed assets'!$P$2:$P$1000=Costs!$A759)*('Fixed assets'!$S$2:$S$1000))","v":0},{"$f":"F671+SUMPRODUCT(('Fixed assets'!$Q$2:$Q$1000=Costs!F$705)*('Fixed assets'!$U$2:$U$1000>Costs!$A759)*('Fixed assets'!$P$2:$P$1000=Costs!$A759)*('Fixed assets'!$R$2:$R$1000))-SUMPRODUCT(('Fixed assets'!$Q$2:$Q$1000=Costs!F$705)*('Fixed assets'!$U$2:$U$1000>Costs!$A759)*('Fixed assets'!$P$2:$P$1000=Costs!$A759)*('Fixed assets'!$S$2:$S$1000))","v":0},{"$f":"G671+SUMPRODUCT(('Fixed assets'!$Q$2:$Q$1000=Costs!G$705)*('Fixed assets'!$U$2:$U$1000>Costs!$A759)*('Fixed assets'!$P$2:$P$1000=Costs!$A759)*('Fixed assets'!$R$2:$R$1000))-SUMPRODUCT(('Fixed assets'!$Q$2:$Q$1000=Costs!G$705)*('Fixed assets'!$U$2:$U$1000>Costs!$A759)*('Fixed assets'!$P$2:$P$1000=Costs!$A759)*('Fixed assets'!$S$2:$S$1000))","v":0},{"$f":"H671+SUMPRODUCT(('Fixed assets'!$Q$2:$Q$1000=Costs!H$705)*('Fixed assets'!$U$2:$U$1000>Costs!$A759)*('Fixed assets'!$P$2:$P$1000=Costs!$A759)*('Fixed assets'!$R$2:$R$1000))-SUMPRODUCT(('Fixed assets'!$Q$2:$Q$1000=Costs!H$705)*('Fixed assets'!$U$2:$U$1000>Costs!$A759)*('Fixed assets'!$P$2:$P$1000=Costs!$A759)*('Fixed assets'!$S$2:$S$1000))","v":0},{"$f":"I671+SUMPRODUCT(('Fixed assets'!$Q$2:$Q$1000=Costs!I$705)*('Fixed assets'!$U$2:$U$1000>Costs!$A759)*('Fixed assets'!$P$2:$P$1000=Costs!$A759)*('Fixed assets'!$R$2:$R$1000))-SUMPRODUCT(('Fixed assets'!$Q$2:$Q$1000=Costs!I$705)*('Fixed assets'!$U$2:$U$1000>Costs!$A759)*('Fixed assets'!$P$2:$P$1000=Costs!$A759)*('Fixed assets'!$S$2:$S$1000))","v":0},{"$f":"J671+SUMPRODUCT(('Fixed assets'!$Q$2:$Q$1000=Costs!J$705)*('Fixed assets'!$U$2:$U$1000>Costs!$A759)*('Fixed assets'!$P$2:$P$1000=Costs!$A759)*('Fixed assets'!$R$2:$R$1000))-SUMPRODUCT(('Fixed assets'!$Q$2:$Q$1000=Costs!J$705)*('Fixed assets'!$U$2:$U$1000>Costs!$A759)*('Fixed assets'!$P$2:$P$1000=Costs!$A759)*('Fixed assets'!$S$2:$S$1000))","v":0},{"$f":"K671+SUMPRODUCT(('Fixed assets'!$Q$2:$Q$1000=Costs!K$705)*('Fixed assets'!$U$2:$U$1000>Costs!$A759)*('Fixed assets'!$P$2:$P$1000=Costs!$A759)*('Fixed assets'!$R$2:$R$1000))-SUMPRODUCT(('Fixed assets'!$Q$2:$Q$1000=Costs!K$705)*('Fixed assets'!$U$2:$U$1000>Costs!$A759)*('Fixed assets'!$P$2:$P$1000=Costs!$A759)*('Fixed assets'!$S$2:$S$1000))","v":0},{"$f":"L671+SUMPRODUCT(('Fixed assets'!$Q$2:$Q$1000=Costs!L$705)*('Fixed assets'!$U$2:$U$1000>Costs!$A759)*('Fixed assets'!$P$2:$P$1000=Costs!$A759)*('Fixed assets'!$R$2:$R$1000))-SUMPRODUCT(('Fixed assets'!$Q$2:$Q$1000=Costs!L$705)*('Fixed assets'!$U$2:$U$1000>Costs!$A759)*('Fixed assets'!$P$2:$P$1000=Costs!$A759)*('Fixed assets'!$S$2:$S$1000))","v":0},{"$f":"M671+SUMPRODUCT(('Fixed assets'!$Q$2:$Q$1000=Costs!M$705)*('Fixed assets'!$U$2:$U$1000>Costs!$A759)*('Fixed assets'!$P$2:$P$1000=Costs!$A759)*('Fixed assets'!$R$2:$R$1000))-SUMPRODUCT(('Fixed assets'!$Q$2:$Q$1000=Costs!M$705)*('Fixed assets'!$U$2:$U$1000>Costs!$A759)*('Fixed assets'!$P$2:$P$1000=Costs!$A759)*('Fixed assets'!$S$2:$S$1000))","v":0},{"$f":"N671+SUMPRODUCT(('Fixed assets'!$Q$2:$Q$1000=Costs!N$705)*('Fixed assets'!$U$2:$U$1000>Costs!$A759)*('Fixed assets'!$P$2:$P$1000=Costs!$A759)*('Fixed assets'!$R$2:$R$1000))-SUMPRODUCT(('Fixed assets'!$Q$2:$Q$1000=Costs!N$705)*('Fixed assets'!$U$2:$U$1000>Costs!$A759)*('Fixed assets'!$P$2:$P$1000=Costs!$A759)*('Fixed assets'!$S$2:$S$1000))","v":0},{"$f":"O671+SUMPRODUCT(('Fixed assets'!$Q$2:$Q$1000=Costs!O$705)*('Fixed assets'!$U$2:$U$1000>Costs!$A759)*('Fixed assets'!$P$2:$P$1000=Costs!$A759)*('Fixed assets'!$R$2:$R$1000))-SUMPRODUCT(('Fixed assets'!$Q$2:$Q$1000=Costs!O$705)*('Fixed assets'!$U$2:$U$1000>Costs!$A759)*('Fixed assets'!$P$2:$P$1000=Costs!$A759)*('Fixed assets'!$S$2:$S$1000))","v":0},{"$f":"P671+SUMPRODUCT(('Fixed assets'!$Q$2:$Q$1000=Costs!P$705)*('Fixed assets'!$U$2:$U$1000>Costs!$A759)*('Fixed assets'!$P$2:$P$1000=Costs!$A759)*('Fixed assets'!$R$2:$R$1000))-SUMPRODUCT(('Fixed assets'!$Q$2:$Q$1000=Costs!P$705)*('Fixed assets'!$U$2:$U$1000>Costs!$A759)*('Fixed assets'!$P$2:$P$1000=Costs!$A759)*('Fixed assets'!$S$2:$S$1000))","v":0},{"$f":"Q671+SUMPRODUCT(('Fixed assets'!$Q$2:$Q$1000=Costs!Q$705)*('Fixed assets'!$U$2:$U$1000>Costs!$A759)*('Fixed assets'!$P$2:$P$1000=Costs!$A759)*('Fixed assets'!$R$2:$R$1000))-SUMPRODUCT(('Fixed assets'!$Q$2:$Q$1000=Costs!Q$705)*('Fixed assets'!$U$2:$U$1000>Costs!$A759)*('Fixed assets'!$P$2:$P$1000=Costs!$A759)*('Fixed assets'!$S$2:$S$1000))","v":0},{"$f":"R671+SUMPRODUCT(('Fixed assets'!$Q$2:$Q$1000=Costs!R$705)*('Fixed assets'!$U$2:$U$1000>Costs!$A759)*('Fixed assets'!$P$2:$P$1000=Costs!$A759)*('Fixed assets'!$R$2:$R$1000))-SUMPRODUCT(('Fixed assets'!$Q$2:$Q$1000=Costs!R$705)*('Fixed assets'!$U$2:$U$1000>Costs!$A759)*('Fixed assets'!$P$2:$P$1000=Costs!$A759)*('Fixed assets'!$S$2:$S$1000))","v":0},{"$f":"S671+SUMPRODUCT(('Fixed assets'!$Q$2:$Q$1000=Costs!S$705)*('Fixed assets'!$U$2:$U$1000>Costs!$A759)*('Fixed assets'!$P$2:$P$1000=Costs!$A759)*('Fixed assets'!$R$2:$R$1000))-SUMPRODUCT(('Fixed assets'!$Q$2:$Q$1000=Costs!S$705)*('Fixed assets'!$U$2:$U$1000>Costs!$A759)*('Fixed assets'!$P$2:$P$1000=Costs!$A759)*('Fixed assets'!$S$2:$S$1000))","v":0},{"$f":"T671+SUMPRODUCT(('Fixed assets'!$Q$2:$Q$1000=Costs!T$705)*('Fixed assets'!$U$2:$U$1000>Costs!$A759)*('Fixed assets'!$P$2:$P$1000=Costs!$A759)*('Fixed assets'!$R$2:$R$1000))-SUMPRODUCT(('Fixed assets'!$Q$2:$Q$1000=Costs!T$705)*('Fixed assets'!$U$2:$U$1000>Costs!$A759)*('Fixed assets'!$P$2:$P$1000=Costs!$A759)*('Fixed assets'!$S$2:$S$1000))","v":0},{"$f":"U671+SUMPRODUCT(('Fixed assets'!$Q$2:$Q$1000=Costs!U$705)*('Fixed assets'!$U$2:$U$1000>Costs!$A759)*('Fixed assets'!$P$2:$P$1000=Costs!$A759)*('Fixed assets'!$R$2:$R$1000))-SUMPRODUCT(('Fixed assets'!$Q$2:$Q$1000=Costs!U$705)*('Fixed assets'!$U$2:$U$1000>Costs!$A759)*('Fixed assets'!$P$2:$P$1000=Costs!$A759)*('Fixed assets'!$S$2:$S$1000))","v":0},{"$f":"V671+SUMPRODUCT(('Fixed assets'!$Q$2:$Q$1000=Costs!V$705)*('Fixed assets'!$U$2:$U$1000>Costs!$A759)*('Fixed assets'!$P$2:$P$1000=Costs!$A759)*('Fixed assets'!$R$2:$R$1000))-SUMPRODUCT(('Fixed assets'!$Q$2:$Q$1000=Costs!V$705)*('Fixed assets'!$U$2:$U$1000>Costs!$A759)*('Fixed assets'!$P$2:$P$1000=Costs!$A759)*('Fixed assets'!$S$2:$S$1000))","v":0},{"$f":"W671+SUMPRODUCT(('Fixed assets'!$Q$2:$Q$1000=Costs!W$705)*('Fixed assets'!$U$2:$U$1000>Costs!$A759)*('Fixed assets'!$P$2:$P$1000=Costs!$A759)*('Fixed assets'!$R$2:$R$1000))-SUMPRODUCT(('Fixed assets'!$Q$2:$Q$1000=Costs!W$705)*('Fixed assets'!$U$2:$U$1000>Costs!$A759)*('Fixed assets'!$P$2:$P$1000=Costs!$A759)*('Fixed assets'!$S$2:$S$1000))","v":0},{"$f":"X671+SUMPRODUCT(('Fixed assets'!$Q$2:$Q$1000=Costs!X$705)*('Fixed assets'!$U$2:$U$1000>Costs!$A759)*('Fixed assets'!$P$2:$P$1000=Costs!$A759)*('Fixed assets'!$R$2:$R$1000))-SUMPRODUCT(('Fixed assets'!$Q$2:$Q$1000=Costs!X$705)*('Fixed assets'!$U$2:$U$1000>Costs!$A759)*('Fixed assets'!$P$2:$P$1000=Costs!$A759)*('Fixed assets'!$S$2:$S$1000))","v":0},{"$f":"Y671+SUMPRODUCT(('Fixed assets'!$Q$2:$Q$1000=Costs!Y$705)*('Fixed assets'!$U$2:$U$1000>Costs!$A759)*('Fixed assets'!$P$2:$P$1000=Costs!$A759)*('Fixed assets'!$R$2:$R$1000))-SUMPRODUCT(('Fixed assets'!$Q$2:$Q$1000=Costs!Y$705)*('Fixed assets'!$U$2:$U$1000>Costs!$A759)*('Fixed assets'!$P$2:$P$1000=Costs!$A759)*('Fixed assets'!$S$2:$S$1000))","v":0},{"$f":"Z671+SUMPRODUCT(('Fixed assets'!$Q$2:$Q$1000=Costs!Z$705)*('Fixed assets'!$U$2:$U$1000>Costs!$A759)*('Fixed assets'!$P$2:$P$1000=Costs!$A759)*('Fixed assets'!$R$2:$R$1000))-SUMPRODUCT(('Fixed assets'!$Q$2:$Q$1000=Costs!Z$705)*('Fixed assets'!$U$2:$U$1000>Costs!$A759)*('Fixed assets'!$P$2:$P$1000=Costs!$A759)*('Fixed assets'!$S$2:$S$1000))","v":0},{"$f":"AA671+SUMPRODUCT(('Fixed assets'!$Q$2:$Q$1000=Costs!AA$705)*('Fixed assets'!$U$2:$U$1000>Costs!$A759)*('Fixed assets'!$P$2:$P$1000=Costs!$A759)*('Fixed assets'!$R$2:$R$1000))-SUMPRODUCT(('Fixed assets'!$Q$2:$Q$1000=Costs!AA$705)*('Fixed assets'!$U$2:$U$1000>Costs!$A759)*('Fixed assets'!$P$2:$P$1000=Costs!$A759)*('Fixed assets'!$S$2:$S$1000))","v":0},{"$f":"AB671+SUMPRODUCT(('Fixed assets'!$Q$2:$Q$1000=Costs!AB$705)*('Fixed assets'!$U$2:$U$1000>Costs!$A759)*('Fixed assets'!$P$2:$P$1000=Costs!$A759)*('Fixed assets'!$R$2:$R$1000))-SUMPRODUCT(('Fixed assets'!$Q$2:$Q$1000=Costs!AB$705)*('Fixed assets'!$U$2:$U$1000>Costs!$A759)*('Fixed assets'!$P$2:$P$1000=Costs!$A759)*('Fixed assets'!$S$2:$S$1000))","v":0},{"$f":"AC671+SUMPRODUCT(('Fixed assets'!$Q$2:$Q$1000=Costs!AC$705)*('Fixed assets'!$U$2:$U$1000>Costs!$A759)*('Fixed assets'!$P$2:$P$1000=Costs!$A759)*('Fixed assets'!$R$2:$R$1000))-SUMPRODUCT(('Fixed assets'!$Q$2:$Q$1000=Costs!AC$705)*('Fixed assets'!$U$2:$U$1000>Costs!$A759)*('Fixed assets'!$P$2:$P$1000=Costs!$A759)*('Fixed assets'!$S$2:$S$1000))","v":0},{"$f":"AD671+SUMPRODUCT(('Fixed assets'!$Q$2:$Q$1000=Costs!AD$705)*('Fixed assets'!$U$2:$U$1000>Costs!$A759)*('Fixed assets'!$P$2:$P$1000=Costs!$A759)*('Fixed assets'!$R$2:$R$1000))-SUMPRODUCT(('Fixed assets'!$Q$2:$Q$1000=Costs!AD$705)*('Fixed assets'!$U$2:$U$1000>Costs!$A759)*('Fixed assets'!$P$2:$P$1000=Costs!$A759)*('Fixed assets'!$S$2:$S$1000))","v":0},{"$f":"AE671+SUMPRODUCT(('Fixed assets'!$Q$2:$Q$1000=Costs!AE$705)*('Fixed assets'!$U$2:$U$1000>Costs!$A759)*('Fixed assets'!$P$2:$P$1000=Costs!$A759)*('Fixed assets'!$R$2:$R$1000))-SUMPRODUCT(('Fixed assets'!$Q$2:$Q$1000=Costs!AE$705)*('Fixed assets'!$U$2:$U$1000>Costs!$A759)*('Fixed assets'!$P$2:$P$1000=Costs!$A759)*('Fixed assets'!$S$2:$S$1000))","v":0},{"$f":"AF671+SUMPRODUCT(('Fixed assets'!$Q$2:$Q$1000=Costs!AF$705)*('Fixed assets'!$U$2:$U$1000>Costs!$A759)*('Fixed assets'!$P$2:$P$1000=Costs!$A759)*('Fixed assets'!$R$2:$R$1000))-SUMPRODUCT(('Fixed assets'!$Q$2:$Q$1000=Costs!AF$705)*('Fixed assets'!$U$2:$U$1000>Costs!$A759)*('Fixed assets'!$P$2:$P$1000=Costs!$A759)*('Fixed assets'!$S$2:$S$1000))","v":0},{"$f":"AG671+SUMPRODUCT(('Fixed assets'!$Q$2:$Q$1000=Costs!AG$705)*('Fixed assets'!$U$2:$U$1000>Costs!$A759)*('Fixed assets'!$P$2:$P$1000=Costs!$A759)*('Fixed assets'!$R$2:$R$1000))-SUMPRODUCT(('Fixed assets'!$Q$2:$Q$1000=Costs!AG$705)*('Fixed assets'!$U$2:$U$1000>Costs!$A759)*('Fixed assets'!$P$2:$P$1000=Costs!$A759)*('Fixed assets'!$S$2:$S$1000))","v":0},{"$f":"AH671+SUMPRODUCT(('Fixed assets'!$Q$2:$Q$1000=Costs!AH$705)*('Fixed assets'!$U$2:$U$1000>Costs!$A759)*('Fixed assets'!$P$2:$P$1000=Costs!$A759)*('Fixed assets'!$R$2:$R$1000))-SUMPRODUCT(('Fixed assets'!$Q$2:$Q$1000=Costs!AH$705)*('Fixed assets'!$U$2:$U$1000>Costs!$A759)*('Fixed assets'!$P$2:$P$1000=Costs!$A759)*('Fixed assets'!$S$2:$S$1000))","v":0},{"$f":"AI671+SUMPRODUCT(('Fixed assets'!$Q$2:$Q$1000=Costs!AI$705)*('Fixed assets'!$U$2:$U$1000>Costs!$A759)*('Fixed assets'!$P$2:$P$1000=Costs!$A759)*('Fixed assets'!$R$2:$R$1000))-SUMPRODUCT(('Fixed assets'!$Q$2:$Q$1000=Costs!AI$705)*('Fixed assets'!$U$2:$U$1000>Costs!$A759)*('Fixed assets'!$P$2:$P$1000=Costs!$A759)*('Fixed assets'!$S$2:$S$1000))","v":0},{"$f":"AJ671+SUMPRODUCT(('Fixed assets'!$Q$2:$Q$1000=Costs!AJ$705)*('Fixed assets'!$U$2:$U$1000>Costs!$A759)*('Fixed assets'!$P$2:$P$1000=Costs!$A759)*('Fixed assets'!$R$2:$R$1000))-SUMPRODUCT(('Fixed assets'!$Q$2:$Q$1000=Costs!AJ$705)*('Fixed assets'!$U$2:$U$1000>Costs!$A759)*('Fixed assets'!$P$2:$P$1000=Costs!$A759)*('Fixed assets'!$S$2:$S$1000))","v":0},{"$f":"AK671+SUMPRODUCT(('Fixed assets'!$Q$2:$Q$1000=Costs!AK$705)*('Fixed assets'!$U$2:$U$1000>Costs!$A759)*('Fixed assets'!$P$2:$P$1000=Costs!$A759)*('Fixed assets'!$R$2:$R$1000))-SUMPRODUCT(('Fixed assets'!$Q$2:$Q$1000=Costs!AK$705)*('Fixed assets'!$U$2:$U$1000>Costs!$A759)*('Fixed assets'!$P$2:$P$1000=Costs!$A759)*('Fixed assets'!$S$2:$S$1000))","v":0},{"$f":"AL671+SUMPRODUCT(('Fixed assets'!$Q$2:$Q$1000=Costs!AL$705)*('Fixed assets'!$U$2:$U$1000>Costs!$A759)*('Fixed assets'!$P$2:$P$1000=Costs!$A759)*('Fixed assets'!$R$2:$R$1000))-SUMPRODUCT(('Fixed assets'!$Q$2:$Q$1000=Costs!AL$705)*('Fixed assets'!$U$2:$U$1000>Costs!$A759)*('Fixed assets'!$P$2:$P$1000=Costs!$A759)*('Fixed assets'!$S$2:$S$1000))","v":0},{"$f":"AM671+SUMPRODUCT(('Fixed assets'!$Q$2:$Q$1000=Costs!AM$705)*('Fixed assets'!$U$2:$U$1000>Costs!$A759)*('Fixed assets'!$P$2:$P$1000=Costs!$A759)*('Fixed assets'!$R$2:$R$1000))-SUMPRODUCT(('Fixed assets'!$Q$2:$Q$1000=Costs!AM$705)*('Fixed assets'!$U$2:$U$1000>Costs!$A759)*('Fixed assets'!$P$2:$P$1000=Costs!$A759)*('Fixed assets'!$S$2:$S$1000))","v":0},{"$f":"AN671+SUMPRODUCT(('Fixed assets'!$Q$2:$Q$1000=Costs!AN$705)*('Fixed assets'!$U$2:$U$1000>Costs!$A759)*('Fixed assets'!$P$2:$P$1000=Costs!$A759)*('Fixed assets'!$R$2:$R$1000))-SUMPRODUCT(('Fixed assets'!$Q$2:$Q$1000=Costs!AN$705)*('Fixed assets'!$U$2:$U$1000>Costs!$A759)*('Fixed assets'!$P$2:$P$1000=Costs!$A759)*('Fixed assets'!$S$2:$S$1000))","v":0},{"$f":"AO671+SUMPRODUCT(('Fixed assets'!$Q$2:$Q$1000=Costs!AO$705)*('Fixed assets'!$U$2:$U$1000>Costs!$A759)*('Fixed assets'!$P$2:$P$1000=Costs!$A759)*('Fixed assets'!$R$2:$R$1000))-SUMPRODUCT(('Fixed assets'!$Q$2:$Q$1000=Costs!AO$705)*('Fixed assets'!$U$2:$U$1000>Costs!$A759)*('Fixed assets'!$P$2:$P$1000=Costs!$A759)*('Fixed assets'!$S$2:$S$1000))","v":0},{"$f":"AP671+SUMPRODUCT(('Fixed assets'!$Q$2:$Q$1000=Costs!AP$705)*('Fixed assets'!$U$2:$U$1000>Costs!$A759)*('Fixed assets'!$P$2:$P$1000=Costs!$A759)*('Fixed assets'!$R$2:$R$1000))-SUMPRODUCT(('Fixed assets'!$Q$2:$Q$1000=Costs!AP$705)*('Fixed assets'!$U$2:$U$1000>Costs!$A759)*('Fixed assets'!$P$2:$P$1000=Costs!$A759)*('Fixed assets'!$S$2:$S$1000))","v":0},{"$f":"AQ671+SUMPRODUCT(('Fixed assets'!$Q$2:$Q$1000=Costs!AQ$705)*('Fixed assets'!$U$2:$U$1000>Costs!$A759)*('Fixed assets'!$P$2:$P$1000=Costs!$A759)*('Fixed assets'!$R$2:$R$1000))-SUMPRODUCT(('Fixed assets'!$Q$2:$Q$1000=Costs!AQ$705)*('Fixed assets'!$U$2:$U$1000>Costs!$A759)*('Fixed assets'!$P$2:$P$1000=Costs!$A759)*('Fixed assets'!$S$2:$S$1000))","v":0}]
[2069,0,{"$f":"C672+SUMPRODUCT(('Fixed assets'!$Q$2:$Q$1000=Costs!C$705)*('Fixed assets'!$U$2:$U$1000>Costs!$A760)*('Fixed assets'!$P$2:$P$1000=Costs!$A760)*('Fixed assets'!$R$2:$R$1000))-SUMPRODUCT(('Fixed assets'!$Q$2:$Q$1000=Costs!C$705)*('Fixed assets'!$U$2:$U$1000>Costs!$A760)*('Fixed assets'!$P$2:$P$1000=Costs!$A760)*('Fixed assets'!$S$2:$S$1000))","v":0},{"$f":"D672+SUMPRODUCT(('Fixed assets'!$Q$2:$Q$1000=Costs!D$705)*('Fixed assets'!$U$2:$U$1000>Costs!$A760)*('Fixed assets'!$P$2:$P$1000=Costs!$A760)*('Fixed assets'!$R$2:$R$1000))-SUMPRODUCT(('Fixed assets'!$Q$2:$Q$1000=Costs!D$705)*('Fixed assets'!$U$2:$U$1000>Costs!$A760)*('Fixed assets'!$P$2:$P$1000=Costs!$A760)*('Fixed assets'!$S$2:$S$1000))","v":0},{"$f":"E672+SUMPRODUCT(('Fixed assets'!$Q$2:$Q$1000=Costs!E$705)*('Fixed assets'!$U$2:$U$1000>Costs!$A760)*('Fixed assets'!$P$2:$P$1000=Costs!$A760)*('Fixed assets'!$R$2:$R$1000))-SUMPRODUCT(('Fixed assets'!$Q$2:$Q$1000=Costs!E$705)*('Fixed assets'!$U$2:$U$1000>Costs!$A760)*('Fixed assets'!$P$2:$P$1000=Costs!$A760)*('Fixed assets'!$S$2:$S$1000))","v":0},{"$f":"F672+SUMPRODUCT(('Fixed assets'!$Q$2:$Q$1000=Costs!F$705)*('Fixed assets'!$U$2:$U$1000>Costs!$A760)*('Fixed assets'!$P$2:$P$1000=Costs!$A760)*('Fixed assets'!$R$2:$R$1000))-SUMPRODUCT(('Fixed assets'!$Q$2:$Q$1000=Costs!F$705)*('Fixed assets'!$U$2:$U$1000>Costs!$A760)*('Fixed assets'!$P$2:$P$1000=Costs!$A760)*('Fixed assets'!$S$2:$S$1000))","v":0},{"$f":"G672+SUMPRODUCT(('Fixed assets'!$Q$2:$Q$1000=Costs!G$705)*('Fixed assets'!$U$2:$U$1000>Costs!$A760)*('Fixed assets'!$P$2:$P$1000=Costs!$A760)*('Fixed assets'!$R$2:$R$1000))-SUMPRODUCT(('Fixed assets'!$Q$2:$Q$1000=Costs!G$705)*('Fixed assets'!$U$2:$U$1000>Costs!$A760)*('Fixed assets'!$P$2:$P$1000=Costs!$A760)*('Fixed assets'!$S$2:$S$1000))","v":0},{"$f":"H672+SUMPRODUCT(('Fixed assets'!$Q$2:$Q$1000=Costs!H$705)*('Fixed assets'!$U$2:$U$1000>Costs!$A760)*('Fixed assets'!$P$2:$P$1000=Costs!$A760)*('Fixed assets'!$R$2:$R$1000))-SUMPRODUCT(('Fixed assets'!$Q$2:$Q$1000=Costs!H$705)*('Fixed assets'!$U$2:$U$1000>Costs!$A760)*('Fixed assets'!$P$2:$P$1000=Costs!$A760)*('Fixed assets'!$S$2:$S$1000))","v":0},{"$f":"I672+SUMPRODUCT(('Fixed assets'!$Q$2:$Q$1000=Costs!I$705)*('Fixed assets'!$U$2:$U$1000>Costs!$A760)*('Fixed assets'!$P$2:$P$1000=Costs!$A760)*('Fixed assets'!$R$2:$R$1000))-SUMPRODUCT(('Fixed assets'!$Q$2:$Q$1000=Costs!I$705)*('Fixed assets'!$U$2:$U$1000>Costs!$A760)*('Fixed assets'!$P$2:$P$1000=Costs!$A760)*('Fixed assets'!$S$2:$S$1000))","v":0},{"$f":"J672+SUMPRODUCT(('Fixed assets'!$Q$2:$Q$1000=Costs!J$705)*('Fixed assets'!$U$2:$U$1000>Costs!$A760)*('Fixed assets'!$P$2:$P$1000=Costs!$A760)*('Fixed assets'!$R$2:$R$1000))-SUMPRODUCT(('Fixed assets'!$Q$2:$Q$1000=Costs!J$705)*('Fixed assets'!$U$2:$U$1000>Costs!$A760)*('Fixed assets'!$P$2:$P$1000=Costs!$A760)*('Fixed assets'!$S$2:$S$1000))","v":0},{"$f":"K672+SUMPRODUCT(('Fixed assets'!$Q$2:$Q$1000=Costs!K$705)*('Fixed assets'!$U$2:$U$1000>Costs!$A760)*('Fixed assets'!$P$2:$P$1000=Costs!$A760)*('Fixed assets'!$R$2:$R$1000))-SUMPRODUCT(('Fixed assets'!$Q$2:$Q$1000=Costs!K$705)*('Fixed assets'!$U$2:$U$1000>Costs!$A760)*('Fixed assets'!$P$2:$P$1000=Costs!$A760)*('Fixed assets'!$S$2:$S$1000))","v":0},{"$f":"L672+SUMPRODUCT(('Fixed assets'!$Q$2:$Q$1000=Costs!L$705)*('Fixed assets'!$U$2:$U$1000>Costs!$A760)*('Fixed assets'!$P$2:$P$1000=Costs!$A760)*('Fixed assets'!$R$2:$R$1000))-SUMPRODUCT(('Fixed assets'!$Q$2:$Q$1000=Costs!L$705)*('Fixed assets'!$U$2:$U$1000>Costs!$A760)*('Fixed assets'!$P$2:$P$1000=Costs!$A760)*('Fixed assets'!$S$2:$S$1000))","v":0},{"$f":"M672+SUMPRODUCT(('Fixed assets'!$Q$2:$Q$1000=Costs!M$705)*('Fixed assets'!$U$2:$U$1000>Costs!$A760)*('Fixed assets'!$P$2:$P$1000=Costs!$A760)*('Fixed assets'!$R$2:$R$1000))-SUMPRODUCT(('Fixed assets'!$Q$2:$Q$1000=Costs!M$705)*('Fixed assets'!$U$2:$U$1000>Costs!$A760)*('Fixed assets'!$P$2:$P$1000=Costs!$A760)*('Fixed assets'!$S$2:$S$1000))","v":0},{"$f":"N672+SUMPRODUCT(('Fixed assets'!$Q$2:$Q$1000=Costs!N$705)*('Fixed assets'!$U$2:$U$1000>Costs!$A760)*('Fixed assets'!$P$2:$P$1000=Costs!$A760)*('Fixed assets'!$R$2:$R$1000))-SUMPRODUCT(('Fixed assets'!$Q$2:$Q$1000=Costs!N$705)*('Fixed assets'!$U$2:$U$1000>Costs!$A760)*('Fixed assets'!$P$2:$P$1000=Costs!$A760)*('Fixed assets'!$S$2:$S$1000))","v":0},{"$f":"O672+SUMPRODUCT(('Fixed assets'!$Q$2:$Q$1000=Costs!O$705)*('Fixed assets'!$U$2:$U$1000>Costs!$A760)*('Fixed assets'!$P$2:$P$1000=Costs!$A760)*('Fixed assets'!$R$2:$R$1000))-SUMPRODUCT(('Fixed assets'!$Q$2:$Q$1000=Costs!O$705)*('Fixed assets'!$U$2:$U$1000>Costs!$A760)*('Fixed assets'!$P$2:$P$1000=Costs!$A760)*('Fixed assets'!$S$2:$S$1000))","v":0},{"$f":"P672+SUMPRODUCT(('Fixed assets'!$Q$2:$Q$1000=Costs!P$705)*('Fixed assets'!$U$2:$U$1000>Costs!$A760)*('Fixed assets'!$P$2:$P$1000=Costs!$A760)*('Fixed assets'!$R$2:$R$1000))-SUMPRODUCT(('Fixed assets'!$Q$2:$Q$1000=Costs!P$705)*('Fixed assets'!$U$2:$U$1000>Costs!$A760)*('Fixed assets'!$P$2:$P$1000=Costs!$A760)*('Fixed assets'!$S$2:$S$1000))","v":0},{"$f":"Q672+SUMPRODUCT(('Fixed assets'!$Q$2:$Q$1000=Costs!Q$705)*('Fixed assets'!$U$2:$U$1000>Costs!$A760)*('Fixed assets'!$P$2:$P$1000=Costs!$A760)*('Fixed assets'!$R$2:$R$1000))-SUMPRODUCT(('Fixed assets'!$Q$2:$Q$1000=Costs!Q$705)*('Fixed assets'!$U$2:$U$1000>Costs!$A760)*('Fixed assets'!$P$2:$P$1000=Costs!$A760)*('Fixed assets'!$S$2:$S$1000))","v":0},{"$f":"R672+SUMPRODUCT(('Fixed assets'!$Q$2:$Q$1000=Costs!R$705)*('Fixed assets'!$U$2:$U$1000>Costs!$A760)*('Fixed assets'!$P$2:$P$1000=Costs!$A760)*('Fixed assets'!$R$2:$R$1000))-SUMPRODUCT(('Fixed assets'!$Q$2:$Q$1000=Costs!R$705)*('Fixed assets'!$U$2:$U$1000>Costs!$A760)*('Fixed assets'!$P$2:$P$1000=Costs!$A760)*('Fixed assets'!$S$2:$S$1000))","v":0},{"$f":"S672+SUMPRODUCT(('Fixed assets'!$Q$2:$Q$1000=Costs!S$705)*('Fixed assets'!$U$2:$U$1000>Costs!$A760)*('Fixed assets'!$P$2:$P$1000=Costs!$A760)*('Fixed assets'!$R$2:$R$1000))-SUMPRODUCT(('Fixed assets'!$Q$2:$Q$1000=Costs!S$705)*('Fixed assets'!$U$2:$U$1000>Costs!$A760)*('Fixed assets'!$P$2:$P$1000=Costs!$A760)*('Fixed assets'!$S$2:$S$1000))","v":0},{"$f":"T672+SUMPRODUCT(('Fixed assets'!$Q$2:$Q$1000=Costs!T$705)*('Fixed assets'!$U$2:$U$1000>Costs!$A760)*('Fixed assets'!$P$2:$P$1000=Costs!$A760)*('Fixed assets'!$R$2:$R$1000))-SUMPRODUCT(('Fixed assets'!$Q$2:$Q$1000=Costs!T$705)*('Fixed assets'!$U$2:$U$1000>Costs!$A760)*('Fixed assets'!$P$2:$P$1000=Costs!$A760)*('Fixed assets'!$S$2:$S$1000))","v":0},{"$f":"U672+SUMPRODUCT(('Fixed assets'!$Q$2:$Q$1000=Costs!U$705)*('Fixed assets'!$U$2:$U$1000>Costs!$A760)*('Fixed assets'!$P$2:$P$1000=Costs!$A760)*('Fixed assets'!$R$2:$R$1000))-SUMPRODUCT(('Fixed assets'!$Q$2:$Q$1000=Costs!U$705)*('Fixed assets'!$U$2:$U$1000>Costs!$A760)*('Fixed assets'!$P$2:$P$1000=Costs!$A760)*('Fixed assets'!$S$2:$S$1000))","v":0},{"$f":"V672+SUMPRODUCT(('Fixed assets'!$Q$2:$Q$1000=Costs!V$705)*('Fixed assets'!$U$2:$U$1000>Costs!$A760)*('Fixed assets'!$P$2:$P$1000=Costs!$A760)*('Fixed assets'!$R$2:$R$1000))-SUMPRODUCT(('Fixed assets'!$Q$2:$Q$1000=Costs!V$705)*('Fixed assets'!$U$2:$U$1000>Costs!$A760)*('Fixed assets'!$P$2:$P$1000=Costs!$A760)*('Fixed assets'!$S$2:$S$1000))","v":0},{"$f":"W672+SUMPRODUCT(('Fixed assets'!$Q$2:$Q$1000=Costs!W$705)*('Fixed assets'!$U$2:$U$1000>Costs!$A760)*('Fixed assets'!$P$2:$P$1000=Costs!$A760)*('Fixed assets'!$R$2:$R$1000))-SUMPRODUCT(('Fixed assets'!$Q$2:$Q$1000=Costs!W$705)*('Fixed assets'!$U$2:$U$1000>Costs!$A760)*('Fixed assets'!$P$2:$P$1000=Costs!$A760)*('Fixed assets'!$S$2:$S$1000))","v":0},{"$f":"X672+SUMPRODUCT(('Fixed assets'!$Q$2:$Q$1000=Costs!X$705)*('Fixed assets'!$U$2:$U$1000>Costs!$A760)*('Fixed assets'!$P$2:$P$1000=Costs!$A760)*('Fixed assets'!$R$2:$R$1000))-SUMPRODUCT(('Fixed assets'!$Q$2:$Q$1000=Costs!X$705)*('Fixed assets'!$U$2:$U$1000>Costs!$A760)*('Fixed assets'!$P$2:$P$1000=Costs!$A760)*('Fixed assets'!$S$2:$S$1000))","v":0},{"$f":"Y672+SUMPRODUCT(('Fixed assets'!$Q$2:$Q$1000=Costs!Y$705)*('Fixed assets'!$U$2:$U$1000>Costs!$A760)*('Fixed assets'!$P$2:$P$1000=Costs!$A760)*('Fixed assets'!$R$2:$R$1000))-SUMPRODUCT(('Fixed assets'!$Q$2:$Q$1000=Costs!Y$705)*('Fixed assets'!$U$2:$U$1000>Costs!$A760)*('Fixed assets'!$P$2:$P$1000=Costs!$A760)*('Fixed assets'!$S$2:$S$1000))","v":0},{"$f":"Z672+SUMPRODUCT(('Fixed assets'!$Q$2:$Q$1000=Costs!Z$705)*('Fixed assets'!$U$2:$U$1000>Costs!$A760)*('Fixed assets'!$P$2:$P$1000=Costs!$A760)*('Fixed assets'!$R$2:$R$1000))-SUMPRODUCT(('Fixed assets'!$Q$2:$Q$1000=Costs!Z$705)*('Fixed assets'!$U$2:$U$1000>Costs!$A760)*('Fixed assets'!$P$2:$P$1000=Costs!$A760)*('Fixed assets'!$S$2:$S$1000))","v":0},{"$f":"AA672+SUMPRODUCT(('Fixed assets'!$Q$2:$Q$1000=Costs!AA$705)*('Fixed assets'!$U$2:$U$1000>Costs!$A760)*('Fixed assets'!$P$2:$P$1000=Costs!$A760)*('Fixed assets'!$R$2:$R$1000))-SUMPRODUCT(('Fixed assets'!$Q$2:$Q$1000=Costs!AA$705)*('Fixed assets'!$U$2:$U$1000>Costs!$A760)*('Fixed assets'!$P$2:$P$1000=Costs!$A760)*('Fixed assets'!$S$2:$S$1000))","v":0},{"$f":"AB672+SUMPRODUCT(('Fixed assets'!$Q$2:$Q$1000=Costs!AB$705)*('Fixed assets'!$U$2:$U$1000>Costs!$A760)*('Fixed assets'!$P$2:$P$1000=Costs!$A760)*('Fixed assets'!$R$2:$R$1000))-SUMPRODUCT(('Fixed assets'!$Q$2:$Q$1000=Costs!AB$705)*('Fixed assets'!$U$2:$U$1000>Costs!$A760)*('Fixed assets'!$P$2:$P$1000=Costs!$A760)*('Fixed assets'!$S$2:$S$1000))","v":0},{"$f":"AC672+SUMPRODUCT(('Fixed assets'!$Q$2:$Q$1000=Costs!AC$705)*('Fixed assets'!$U$2:$U$1000>Costs!$A760)*('Fixed assets'!$P$2:$P$1000=Costs!$A760)*('Fixed assets'!$R$2:$R$1000))-SUMPRODUCT(('Fixed assets'!$Q$2:$Q$1000=Costs!AC$705)*('Fixed assets'!$U$2:$U$1000>Costs!$A760)*('Fixed assets'!$P$2:$P$1000=Costs!$A760)*('Fixed assets'!$S$2:$S$1000))","v":0},{"$f":"AD672+SUMPRODUCT(('Fixed assets'!$Q$2:$Q$1000=Costs!AD$705)*('Fixed assets'!$U$2:$U$1000>Costs!$A760)*('Fixed assets'!$P$2:$P$1000=Costs!$A760)*('Fixed assets'!$R$2:$R$1000))-SUMPRODUCT(('Fixed assets'!$Q$2:$Q$1000=Costs!AD$705)*('Fixed assets'!$U$2:$U$1000>Costs!$A760)*('Fixed assets'!$P$2:$P$1000=Costs!$A760)*('Fixed assets'!$S$2:$S$1000))","v":0},{"$f":"AE672+SUMPRODUCT(('Fixed assets'!$Q$2:$Q$1000=Costs!AE$705)*('Fixed assets'!$U$2:$U$1000>Costs!$A760)*('Fixed assets'!$P$2:$P$1000=Costs!$A760)*('Fixed assets'!$R$2:$R$1000))-SUMPRODUCT(('Fixed assets'!$Q$2:$Q$1000=Costs!AE$705)*('Fixed assets'!$U$2:$U$1000>Costs!$A760)*('Fixed assets'!$P$2:$P$1000=Costs!$A760)*('Fixed assets'!$S$2:$S$1000))","v":0},{"$f":"AF672+SUMPRODUCT(('Fixed assets'!$Q$2:$Q$1000=Costs!AF$705)*('Fixed assets'!$U$2:$U$1000>Costs!$A760)*('Fixed assets'!$P$2:$P$1000=Costs!$A760)*('Fixed assets'!$R$2:$R$1000))-SUMPRODUCT(('Fixed assets'!$Q$2:$Q$1000=Costs!AF$705)*('Fixed assets'!$U$2:$U$1000>Costs!$A760)*('Fixed assets'!$P$2:$P$1000=Costs!$A760)*('Fixed assets'!$S$2:$S$1000))","v":0},{"$f":"AG672+SUMPRODUCT(('Fixed assets'!$Q$2:$Q$1000=Costs!AG$705)*('Fixed assets'!$U$2:$U$1000>Costs!$A760)*('Fixed assets'!$P$2:$P$1000=Costs!$A760)*('Fixed assets'!$R$2:$R$1000))-SUMPRODUCT(('Fixed assets'!$Q$2:$Q$1000=Costs!AG$705)*('Fixed assets'!$U$2:$U$1000>Costs!$A760)*('Fixed assets'!$P$2:$P$1000=Costs!$A760)*('Fixed assets'!$S$2:$S$1000))","v":0},{"$f":"AH672+SUMPRODUCT(('Fixed assets'!$Q$2:$Q$1000=Costs!AH$705)*('Fixed assets'!$U$2:$U$1000>Costs!$A760)*('Fixed assets'!$P$2:$P$1000=Costs!$A760)*('Fixed assets'!$R$2:$R$1000))-SUMPRODUCT(('Fixed assets'!$Q$2:$Q$1000=Costs!AH$705)*('Fixed assets'!$U$2:$U$1000>Costs!$A760)*('Fixed assets'!$P$2:$P$1000=Costs!$A760)*('Fixed assets'!$S$2:$S$1000))","v":0},{"$f":"AI672+SUMPRODUCT(('Fixed assets'!$Q$2:$Q$1000=Costs!AI$705)*('Fixed assets'!$U$2:$U$1000>Costs!$A760)*('Fixed assets'!$P$2:$P$1000=Costs!$A760)*('Fixed assets'!$R$2:$R$1000))-SUMPRODUCT(('Fixed assets'!$Q$2:$Q$1000=Costs!AI$705)*('Fixed assets'!$U$2:$U$1000>Costs!$A760)*('Fixed assets'!$P$2:$P$1000=Costs!$A760)*('Fixed assets'!$S$2:$S$1000))","v":0},{"$f":"AJ672+SUMPRODUCT(('Fixed assets'!$Q$2:$Q$1000=Costs!AJ$705)*('Fixed assets'!$U$2:$U$1000>Costs!$A760)*('Fixed assets'!$P$2:$P$1000=Costs!$A760)*('Fixed assets'!$R$2:$R$1000))-SUMPRODUCT(('Fixed assets'!$Q$2:$Q$1000=Costs!AJ$705)*('Fixed assets'!$U$2:$U$1000>Costs!$A760)*('Fixed assets'!$P$2:$P$1000=Costs!$A760)*('Fixed assets'!$S$2:$S$1000))","v":0},{"$f":"AK672+SUMPRODUCT(('Fixed assets'!$Q$2:$Q$1000=Costs!AK$705)*('Fixed assets'!$U$2:$U$1000>Costs!$A760)*('Fixed assets'!$P$2:$P$1000=Costs!$A760)*('Fixed assets'!$R$2:$R$1000))-SUMPRODUCT(('Fixed assets'!$Q$2:$Q$1000=Costs!AK$705)*('Fixed assets'!$U$2:$U$1000>Costs!$A760)*('Fixed assets'!$P$2:$P$1000=Costs!$A760)*('Fixed assets'!$S$2:$S$1000))","v":0},{"$f":"AL672+SUMPRODUCT(('Fixed assets'!$Q$2:$Q$1000=Costs!AL$705)*('Fixed assets'!$U$2:$U$1000>Costs!$A760)*('Fixed assets'!$P$2:$P$1000=Costs!$A760)*('Fixed assets'!$R$2:$R$1000))-SUMPRODUCT(('Fixed assets'!$Q$2:$Q$1000=Costs!AL$705)*('Fixed assets'!$U$2:$U$1000>Costs!$A760)*('Fixed assets'!$P$2:$P$1000=Costs!$A760)*('Fixed assets'!$S$2:$S$1000))","v":0},{"$f":"AM672+SUMPRODUCT(('Fixed assets'!$Q$2:$Q$1000=Costs!AM$705)*('Fixed assets'!$U$2:$U$1000>Costs!$A760)*('Fixed assets'!$P$2:$P$1000=Costs!$A760)*('Fixed assets'!$R$2:$R$1000))-SUMPRODUCT(('Fixed assets'!$Q$2:$Q$1000=Costs!AM$705)*('Fixed assets'!$U$2:$U$1000>Costs!$A760)*('Fixed assets'!$P$2:$P$1000=Costs!$A760)*('Fixed assets'!$S$2:$S$1000))","v":0},{"$f":"AN672+SUMPRODUCT(('Fixed assets'!$Q$2:$Q$1000=Costs!AN$705)*('Fixed assets'!$U$2:$U$1000>Costs!$A760)*('Fixed assets'!$P$2:$P$1000=Costs!$A760)*('Fixed assets'!$R$2:$R$1000))-SUMPRODUCT(('Fixed assets'!$Q$2:$Q$1000=Costs!AN$705)*('Fixed assets'!$U$2:$U$1000>Costs!$A760)*('Fixed assets'!$P$2:$P$1000=Costs!$A760)*('Fixed assets'!$S$2:$S$1000))","v":0},{"$f":"AO672+SUMPRODUCT(('Fixed assets'!$Q$2:$Q$1000=Costs!AO$705)*('Fixed assets'!$U$2:$U$1000>Costs!$A760)*('Fixed assets'!$P$2:$P$1000=Costs!$A760)*('Fixed assets'!$R$2:$R$1000))-SUMPRODUCT(('Fixed assets'!$Q$2:$Q$1000=Costs!AO$705)*('Fixed assets'!$U$2:$U$1000>Costs!$A760)*('Fixed assets'!$P$2:$P$1000=Costs!$A760)*('Fixed assets'!$S$2:$S$1000))","v":0},{"$f":"AP672+SUMPRODUCT(('Fixed assets'!$Q$2:$Q$1000=Costs!AP$705)*('Fixed assets'!$U$2:$U$1000>Costs!$A760)*('Fixed assets'!$P$2:$P$1000=Costs!$A760)*('Fixed assets'!$R$2:$R$1000))-SUMPRODUCT(('Fixed assets'!$Q$2:$Q$1000=Costs!AP$705)*('Fixed assets'!$U$2:$U$1000>Costs!$A760)*('Fixed assets'!$P$2:$P$1000=Costs!$A760)*('Fixed assets'!$S$2:$S$1000))","v":0},{"$f":"AQ672+SUMPRODUCT(('Fixed assets'!$Q$2:$Q$1000=Costs!AQ$705)*('Fixed assets'!$U$2:$U$1000>Costs!$A760)*('Fixed assets'!$P$2:$P$1000=Costs!$A760)*('Fixed assets'!$R$2:$R$1000))-SUMPRODUCT(('Fixed assets'!$Q$2:$Q$1000=Costs!AQ$705)*('Fixed assets'!$U$2:$U$1000>Costs!$A760)*('Fixed assets'!$P$2:$P$1000=Costs!$A760)*('Fixed assets'!$S$2:$S$1000))","v":0}]
[2070,0,{"$f":"C673+SUMPRODUCT(('Fixed assets'!$Q$2:$Q$1000=Costs!C$705)*('Fixed assets'!$U$2:$U$1000>Costs!$A761)*('Fixed assets'!$P$2:$P$1000=Costs!$A761)*('Fixed assets'!$R$2:$R$1000))-SUMPRODUCT(('Fixed assets'!$Q$2:$Q$1000=Costs!C$705)*('Fixed assets'!$U$2:$U$1000>Costs!$A761)*('Fixed assets'!$P$2:$P$1000=Costs!$A761)*('Fixed assets'!$S$2:$S$1000))","v":0},{"$f":"D673+SUMPRODUCT(('Fixed assets'!$Q$2:$Q$1000=Costs!D$705)*('Fixed assets'!$U$2:$U$1000>Costs!$A761)*('Fixed assets'!$P$2:$P$1000=Costs!$A761)*('Fixed assets'!$R$2:$R$1000))-SUMPRODUCT(('Fixed assets'!$Q$2:$Q$1000=Costs!D$705)*('Fixed assets'!$U$2:$U$1000>Costs!$A761)*('Fixed assets'!$P$2:$P$1000=Costs!$A761)*('Fixed assets'!$S$2:$S$1000))","v":0},{"$f":"E673+SUMPRODUCT(('Fixed assets'!$Q$2:$Q$1000=Costs!E$705)*('Fixed assets'!$U$2:$U$1000>Costs!$A761)*('Fixed assets'!$P$2:$P$1000=Costs!$A761)*('Fixed assets'!$R$2:$R$1000))-SUMPRODUCT(('Fixed assets'!$Q$2:$Q$1000=Costs!E$705)*('Fixed assets'!$U$2:$U$1000>Costs!$A761)*('Fixed assets'!$P$2:$P$1000=Costs!$A761)*('Fixed assets'!$S$2:$S$1000))","v":0},{"$f":"F673+SUMPRODUCT(('Fixed assets'!$Q$2:$Q$1000=Costs!F$705)*('Fixed assets'!$U$2:$U$1000>Costs!$A761)*('Fixed assets'!$P$2:$P$1000=Costs!$A761)*('Fixed assets'!$R$2:$R$1000))-SUMPRODUCT(('Fixed assets'!$Q$2:$Q$1000=Costs!F$705)*('Fixed assets'!$U$2:$U$1000>Costs!$A761)*('Fixed assets'!$P$2:$P$1000=Costs!$A761)*('Fixed assets'!$S$2:$S$1000))","v":0},{"$f":"G673+SUMPRODUCT(('Fixed assets'!$Q$2:$Q$1000=Costs!G$705)*('Fixed assets'!$U$2:$U$1000>Costs!$A761)*('Fixed assets'!$P$2:$P$1000=Costs!$A761)*('Fixed assets'!$R$2:$R$1000))-SUMPRODUCT(('Fixed assets'!$Q$2:$Q$1000=Costs!G$705)*('Fixed assets'!$U$2:$U$1000>Costs!$A761)*('Fixed assets'!$P$2:$P$1000=Costs!$A761)*('Fixed assets'!$S$2:$S$1000))","v":0},{"$f":"H673+SUMPRODUCT(('Fixed assets'!$Q$2:$Q$1000=Costs!H$705)*('Fixed assets'!$U$2:$U$1000>Costs!$A761)*('Fixed assets'!$P$2:$P$1000=Costs!$A761)*('Fixed assets'!$R$2:$R$1000))-SUMPRODUCT(('Fixed assets'!$Q$2:$Q$1000=Costs!H$705)*('Fixed assets'!$U$2:$U$1000>Costs!$A761)*('Fixed assets'!$P$2:$P$1000=Costs!$A761)*('Fixed assets'!$S$2:$S$1000))","v":0},{"$f":"I673+SUMPRODUCT(('Fixed assets'!$Q$2:$Q$1000=Costs!I$705)*('Fixed assets'!$U$2:$U$1000>Costs!$A761)*('Fixed assets'!$P$2:$P$1000=Costs!$A761)*('Fixed assets'!$R$2:$R$1000))-SUMPRODUCT(('Fixed assets'!$Q$2:$Q$1000=Costs!I$705)*('Fixed assets'!$U$2:$U$1000>Costs!$A761)*('Fixed assets'!$P$2:$P$1000=Costs!$A761)*('Fixed assets'!$S$2:$S$1000))","v":0},{"$f":"J673+SUMPRODUCT(('Fixed assets'!$Q$2:$Q$1000=Costs!J$705)*('Fixed assets'!$U$2:$U$1000>Costs!$A761)*('Fixed assets'!$P$2:$P$1000=Costs!$A761)*('Fixed assets'!$R$2:$R$1000))-SUMPRODUCT(('Fixed assets'!$Q$2:$Q$1000=Costs!J$705)*('Fixed assets'!$U$2:$U$1000>Costs!$A761)*('Fixed assets'!$P$2:$P$1000=Costs!$A761)*('Fixed assets'!$S$2:$S$1000))","v":0},{"$f":"K673+SUMPRODUCT(('Fixed assets'!$Q$2:$Q$1000=Costs!K$705)*('Fixed assets'!$U$2:$U$1000>Costs!$A761)*('Fixed assets'!$P$2:$P$1000=Costs!$A761)*('Fixed assets'!$R$2:$R$1000))-SUMPRODUCT(('Fixed assets'!$Q$2:$Q$1000=Costs!K$705)*('Fixed assets'!$U$2:$U$1000>Costs!$A761)*('Fixed assets'!$P$2:$P$1000=Costs!$A761)*('Fixed assets'!$S$2:$S$1000))","v":0},{"$f":"L673+SUMPRODUCT(('Fixed assets'!$Q$2:$Q$1000=Costs!L$705)*('Fixed assets'!$U$2:$U$1000>Costs!$A761)*('Fixed assets'!$P$2:$P$1000=Costs!$A761)*('Fixed assets'!$R$2:$R$1000))-SUMPRODUCT(('Fixed assets'!$Q$2:$Q$1000=Costs!L$705)*('Fixed assets'!$U$2:$U$1000>Costs!$A761)*('Fixed assets'!$P$2:$P$1000=Costs!$A761)*('Fixed assets'!$S$2:$S$1000))","v":0},{"$f":"M673+SUMPRODUCT(('Fixed assets'!$Q$2:$Q$1000=Costs!M$705)*('Fixed assets'!$U$2:$U$1000>Costs!$A761)*('Fixed assets'!$P$2:$P$1000=Costs!$A761)*('Fixed assets'!$R$2:$R$1000))-SUMPRODUCT(('Fixed assets'!$Q$2:$Q$1000=Costs!M$705)*('Fixed assets'!$U$2:$U$1000>Costs!$A761)*('Fixed assets'!$P$2:$P$1000=Costs!$A761)*('Fixed assets'!$S$2:$S$1000))","v":0},{"$f":"N673+SUMPRODUCT(('Fixed assets'!$Q$2:$Q$1000=Costs!N$705)*('Fixed assets'!$U$2:$U$1000>Costs!$A761)*('Fixed assets'!$P$2:$P$1000=Costs!$A761)*('Fixed assets'!$R$2:$R$1000))-SUMPRODUCT(('Fixed assets'!$Q$2:$Q$1000=Costs!N$705)*('Fixed assets'!$U$2:$U$1000>Costs!$A761)*('Fixed assets'!$P$2:$P$1000=Costs!$A761)*('Fixed assets'!$S$2:$S$1000))","v":0},{"$f":"O673+SUMPRODUCT(('Fixed assets'!$Q$2:$Q$1000=Costs!O$705)*('Fixed assets'!$U$2:$U$1000>Costs!$A761)*('Fixed assets'!$P$2:$P$1000=Costs!$A761)*('Fixed assets'!$R$2:$R$1000))-SUMPRODUCT(('Fixed assets'!$Q$2:$Q$1000=Costs!O$705)*('Fixed assets'!$U$2:$U$1000>Costs!$A761)*('Fixed assets'!$P$2:$P$1000=Costs!$A761)*('Fixed assets'!$S$2:$S$1000))","v":0},{"$f":"P673+SUMPRODUCT(('Fixed assets'!$Q$2:$Q$1000=Costs!P$705)*('Fixed assets'!$U$2:$U$1000>Costs!$A761)*('Fixed assets'!$P$2:$P$1000=Costs!$A761)*('Fixed assets'!$R$2:$R$1000))-SUMPRODUCT(('Fixed assets'!$Q$2:$Q$1000=Costs!P$705)*('Fixed assets'!$U$2:$U$1000>Costs!$A761)*('Fixed assets'!$P$2:$P$1000=Costs!$A761)*('Fixed assets'!$S$2:$S$1000))","v":0},{"$f":"Q673+SUMPRODUCT(('Fixed assets'!$Q$2:$Q$1000=Costs!Q$705)*('Fixed assets'!$U$2:$U$1000>Costs!$A761)*('Fixed assets'!$P$2:$P$1000=Costs!$A761)*('Fixed assets'!$R$2:$R$1000))-SUMPRODUCT(('Fixed assets'!$Q$2:$Q$1000=Costs!Q$705)*('Fixed assets'!$U$2:$U$1000>Costs!$A761)*('Fixed assets'!$P$2:$P$1000=Costs!$A761)*('Fixed assets'!$S$2:$S$1000))","v":0},{"$f":"R673+SUMPRODUCT(('Fixed assets'!$Q$2:$Q$1000=Costs!R$705)*('Fixed assets'!$U$2:$U$1000>Costs!$A761)*('Fixed assets'!$P$2:$P$1000=Costs!$A761)*('Fixed assets'!$R$2:$R$1000))-SUMPRODUCT(('Fixed assets'!$Q$2:$Q$1000=Costs!R$705)*('Fixed assets'!$U$2:$U$1000>Costs!$A761)*('Fixed assets'!$P$2:$P$1000=Costs!$A761)*('Fixed assets'!$S$2:$S$1000))","v":0},{"$f":"S673+SUMPRODUCT(('Fixed assets'!$Q$2:$Q$1000=Costs!S$705)*('Fixed assets'!$U$2:$U$1000>Costs!$A761)*('Fixed assets'!$P$2:$P$1000=Costs!$A761)*('Fixed assets'!$R$2:$R$1000))-SUMPRODUCT(('Fixed assets'!$Q$2:$Q$1000=Costs!S$705)*('Fixed assets'!$U$2:$U$1000>Costs!$A761)*('Fixed assets'!$P$2:$P$1000=Costs!$A761)*('Fixed assets'!$S$2:$S$1000))","v":0},{"$f":"T673+SUMPRODUCT(('Fixed assets'!$Q$2:$Q$1000=Costs!T$705)*('Fixed assets'!$U$2:$U$1000>Costs!$A761)*('Fixed assets'!$P$2:$P$1000=Costs!$A761)*('Fixed assets'!$R$2:$R$1000))-SUMPRODUCT(('Fixed assets'!$Q$2:$Q$1000=Costs!T$705)*('Fixed assets'!$U$2:$U$1000>Costs!$A761)*('Fixed assets'!$P$2:$P$1000=Costs!$A761)*('Fixed assets'!$S$2:$S$1000))","v":0},{"$f":"U673+SUMPRODUCT(('Fixed assets'!$Q$2:$Q$1000=Costs!U$705)*('Fixed assets'!$U$2:$U$1000>Costs!$A761)*('Fixed assets'!$P$2:$P$1000=Costs!$A761)*('Fixed assets'!$R$2:$R$1000))-SUMPRODUCT(('Fixed assets'!$Q$2:$Q$1000=Costs!U$705)*('Fixed assets'!$U$2:$U$1000>Costs!$A761)*('Fixed assets'!$P$2:$P$1000=Costs!$A761)*('Fixed assets'!$S$2:$S$1000))","v":0},{"$f":"V673+SUMPRODUCT(('Fixed assets'!$Q$2:$Q$1000=Costs!V$705)*('Fixed assets'!$U$2:$U$1000>Costs!$A761)*('Fixed assets'!$P$2:$P$1000=Costs!$A761)*('Fixed assets'!$R$2:$R$1000))-SUMPRODUCT(('Fixed assets'!$Q$2:$Q$1000=Costs!V$705)*('Fixed assets'!$U$2:$U$1000>Costs!$A761)*('Fixed assets'!$P$2:$P$1000=Costs!$A761)*('Fixed assets'!$S$2:$S$1000))","v":0},{"$f":"W673+SUMPRODUCT(('Fixed assets'!$Q$2:$Q$1000=Costs!W$705)*('Fixed assets'!$U$2:$U$1000>Costs!$A761)*('Fixed assets'!$P$2:$P$1000=Costs!$A761)*('Fixed assets'!$R$2:$R$1000))-SUMPRODUCT(('Fixed assets'!$Q$2:$Q$1000=Costs!W$705)*('Fixed assets'!$U$2:$U$1000>Costs!$A761)*('Fixed assets'!$P$2:$P$1000=Costs!$A761)*('Fixed assets'!$S$2:$S$1000))","v":0},{"$f":"X673+SUMPRODUCT(('Fixed assets'!$Q$2:$Q$1000=Costs!X$705)*('Fixed assets'!$U$2:$U$1000>Costs!$A761)*('Fixed assets'!$P$2:$P$1000=Costs!$A761)*('Fixed assets'!$R$2:$R$1000))-SUMPRODUCT(('Fixed assets'!$Q$2:$Q$1000=Costs!X$705)*('Fixed assets'!$U$2:$U$1000>Costs!$A761)*('Fixed assets'!$P$2:$P$1000=Costs!$A761)*('Fixed assets'!$S$2:$S$1000))","v":0},{"$f":"Y673+SUMPRODUCT(('Fixed assets'!$Q$2:$Q$1000=Costs!Y$705)*('Fixed assets'!$U$2:$U$1000>Costs!$A761)*('Fixed assets'!$P$2:$P$1000=Costs!$A761)*('Fixed assets'!$R$2:$R$1000))-SUMPRODUCT(('Fixed assets'!$Q$2:$Q$1000=Costs!Y$705)*('Fixed assets'!$U$2:$U$1000>Costs!$A761)*('Fixed assets'!$P$2:$P$1000=Costs!$A761)*('Fixed assets'!$S$2:$S$1000))","v":0},{"$f":"Z673+SUMPRODUCT(('Fixed assets'!$Q$2:$Q$1000=Costs!Z$705)*('Fixed assets'!$U$2:$U$1000>Costs!$A761)*('Fixed assets'!$P$2:$P$1000=Costs!$A761)*('Fixed assets'!$R$2:$R$1000))-SUMPRODUCT(('Fixed assets'!$Q$2:$Q$1000=Costs!Z$705)*('Fixed assets'!$U$2:$U$1000>Costs!$A761)*('Fixed assets'!$P$2:$P$1000=Costs!$A761)*('Fixed assets'!$S$2:$S$1000))","v":0},{"$f":"AA673+SUMPRODUCT(('Fixed assets'!$Q$2:$Q$1000=Costs!AA$705)*('Fixed assets'!$U$2:$U$1000>Costs!$A761)*('Fixed assets'!$P$2:$P$1000=Costs!$A761)*('Fixed assets'!$R$2:$R$1000))-SUMPRODUCT(('Fixed assets'!$Q$2:$Q$1000=Costs!AA$705)*('Fixed assets'!$U$2:$U$1000>Costs!$A761)*('Fixed assets'!$P$2:$P$1000=Costs!$A761)*('Fixed assets'!$S$2:$S$1000))","v":0},{"$f":"AB673+SUMPRODUCT(('Fixed assets'!$Q$2:$Q$1000=Costs!AB$705)*('Fixed assets'!$U$2:$U$1000>Costs!$A761)*('Fixed assets'!$P$2:$P$1000=Costs!$A761)*('Fixed assets'!$R$2:$R$1000))-SUMPRODUCT(('Fixed assets'!$Q$2:$Q$1000=Costs!AB$705)*('Fixed assets'!$U$2:$U$1000>Costs!$A761)*('Fixed assets'!$P$2:$P$1000=Costs!$A761)*('Fixed assets'!$S$2:$S$1000))","v":0},{"$f":"AC673+SUMPRODUCT(('Fixed assets'!$Q$2:$Q$1000=Costs!AC$705)*('Fixed assets'!$U$2:$U$1000>Costs!$A761)*('Fixed assets'!$P$2:$P$1000=Costs!$A761)*('Fixed assets'!$R$2:$R$1000))-SUMPRODUCT(('Fixed assets'!$Q$2:$Q$1000=Costs!AC$705)*('Fixed assets'!$U$2:$U$1000>Costs!$A761)*('Fixed assets'!$P$2:$P$1000=Costs!$A761)*('Fixed assets'!$S$2:$S$1000))","v":0},{"$f":"AD673+SUMPRODUCT(('Fixed assets'!$Q$2:$Q$1000=Costs!AD$705)*('Fixed assets'!$U$2:$U$1000>Costs!$A761)*('Fixed assets'!$P$2:$P$1000=Costs!$A761)*('Fixed assets'!$R$2:$R$1000))-SUMPRODUCT(('Fixed assets'!$Q$2:$Q$1000=Costs!AD$705)*('Fixed assets'!$U$2:$U$1000>Costs!$A761)*('Fixed assets'!$P$2:$P$1000=Costs!$A761)*('Fixed assets'!$S$2:$S$1000))","v":0},{"$f":"AE673+SUMPRODUCT(('Fixed assets'!$Q$2:$Q$1000=Costs!AE$705)*('Fixed assets'!$U$2:$U$1000>Costs!$A761)*('Fixed assets'!$P$2:$P$1000=Costs!$A761)*('Fixed assets'!$R$2:$R$1000))-SUMPRODUCT(('Fixed assets'!$Q$2:$Q$1000=Costs!AE$705)*('Fixed assets'!$U$2:$U$1000>Costs!$A761)*('Fixed assets'!$P$2:$P$1000=Costs!$A761)*('Fixed assets'!$S$2:$S$1000))","v":0},{"$f":"AF673+SUMPRODUCT(('Fixed assets'!$Q$2:$Q$1000=Costs!AF$705)*('Fixed assets'!$U$2:$U$1000>Costs!$A761)*('Fixed assets'!$P$2:$P$1000=Costs!$A761)*('Fixed assets'!$R$2:$R$1000))-SUMPRODUCT(('Fixed assets'!$Q$2:$Q$1000=Costs!AF$705)*('Fixed assets'!$U$2:$U$1000>Costs!$A761)*('Fixed assets'!$P$2:$P$1000=Costs!$A761)*('Fixed assets'!$S$2:$S$1000))","v":0},{"$f":"AG673+SUMPRODUCT(('Fixed assets'!$Q$2:$Q$1000=Costs!AG$705)*('Fixed assets'!$U$2:$U$1000>Costs!$A761)*('Fixed assets'!$P$2:$P$1000=Costs!$A761)*('Fixed assets'!$R$2:$R$1000))-SUMPRODUCT(('Fixed assets'!$Q$2:$Q$1000=Costs!AG$705)*('Fixed assets'!$U$2:$U$1000>Costs!$A761)*('Fixed assets'!$P$2:$P$1000=Costs!$A761)*('Fixed assets'!$S$2:$S$1000))","v":0},{"$f":"AH673+SUMPRODUCT(('Fixed assets'!$Q$2:$Q$1000=Costs!AH$705)*('Fixed assets'!$U$2:$U$1000>Costs!$A761)*('Fixed assets'!$P$2:$P$1000=Costs!$A761)*('Fixed assets'!$R$2:$R$1000))-SUMPRODUCT(('Fixed assets'!$Q$2:$Q$1000=Costs!AH$705)*('Fixed assets'!$U$2:$U$1000>Costs!$A761)*('Fixed assets'!$P$2:$P$1000=Costs!$A761)*('Fixed assets'!$S$2:$S$1000))","v":0},{"$f":"AI673+SUMPRODUCT(('Fixed assets'!$Q$2:$Q$1000=Costs!AI$705)*('Fixed assets'!$U$2:$U$1000>Costs!$A761)*('Fixed assets'!$P$2:$P$1000=Costs!$A761)*('Fixed assets'!$R$2:$R$1000))-SUMPRODUCT(('Fixed assets'!$Q$2:$Q$1000=Costs!AI$705)*('Fixed assets'!$U$2:$U$1000>Costs!$A761)*('Fixed assets'!$P$2:$P$1000=Costs!$A761)*('Fixed assets'!$S$2:$S$1000))","v":0},{"$f":"AJ673+SUMPRODUCT(('Fixed assets'!$Q$2:$Q$1000=Costs!AJ$705)*('Fixed assets'!$U$2:$U$1000>Costs!$A761)*('Fixed assets'!$P$2:$P$1000=Costs!$A761)*('Fixed assets'!$R$2:$R$1000))-SUMPRODUCT(('Fixed assets'!$Q$2:$Q$1000=Costs!AJ$705)*('Fixed assets'!$U$2:$U$1000>Costs!$A761)*('Fixed assets'!$P$2:$P$1000=Costs!$A761)*('Fixed assets'!$S$2:$S$1000))","v":0},{"$f":"AK673+SUMPRODUCT(('Fixed assets'!$Q$2:$Q$1000=Costs!AK$705)*('Fixed assets'!$U$2:$U$1000>Costs!$A761)*('Fixed assets'!$P$2:$P$1000=Costs!$A761)*('Fixed assets'!$R$2:$R$1000))-SUMPRODUCT(('Fixed assets'!$Q$2:$Q$1000=Costs!AK$705)*('Fixed assets'!$U$2:$U$1000>Costs!$A761)*('Fixed assets'!$P$2:$P$1000=Costs!$A761)*('Fixed assets'!$S$2:$S$1000))","v":0},{"$f":"AL673+SUMPRODUCT(('Fixed assets'!$Q$2:$Q$1000=Costs!AL$705)*('Fixed assets'!$U$2:$U$1000>Costs!$A761)*('Fixed assets'!$P$2:$P$1000=Costs!$A761)*('Fixed assets'!$R$2:$R$1000))-SUMPRODUCT(('Fixed assets'!$Q$2:$Q$1000=Costs!AL$705)*('Fixed assets'!$U$2:$U$1000>Costs!$A761)*('Fixed assets'!$P$2:$P$1000=Costs!$A761)*('Fixed assets'!$S$2:$S$1000))","v":0},{"$f":"AM673+SUMPRODUCT(('Fixed assets'!$Q$2:$Q$1000=Costs!AM$705)*('Fixed assets'!$U$2:$U$1000>Costs!$A761)*('Fixed assets'!$P$2:$P$1000=Costs!$A761)*('Fixed assets'!$R$2:$R$1000))-SUMPRODUCT(('Fixed assets'!$Q$2:$Q$1000=Costs!AM$705)*('Fixed assets'!$U$2:$U$1000>Costs!$A761)*('Fixed assets'!$P$2:$P$1000=Costs!$A761)*('Fixed assets'!$S$2:$S$1000))","v":0},{"$f":"AN673+SUMPRODUCT(('Fixed assets'!$Q$2:$Q$1000=Costs!AN$705)*('Fixed assets'!$U$2:$U$1000>Costs!$A761)*('Fixed assets'!$P$2:$P$1000=Costs!$A761)*('Fixed assets'!$R$2:$R$1000))-SUMPRODUCT(('Fixed assets'!$Q$2:$Q$1000=Costs!AN$705)*('Fixed assets'!$U$2:$U$1000>Costs!$A761)*('Fixed assets'!$P$2:$P$1000=Costs!$A761)*('Fixed assets'!$S$2:$S$1000))","v":0},{"$f":"AO673+SUMPRODUCT(('Fixed assets'!$Q$2:$Q$1000=Costs!AO$705)*('Fixed assets'!$U$2:$U$1000>Costs!$A761)*('Fixed assets'!$P$2:$P$1000=Costs!$A761)*('Fixed assets'!$R$2:$R$1000))-SUMPRODUCT(('Fixed assets'!$Q$2:$Q$1000=Costs!AO$705)*('Fixed assets'!$U$2:$U$1000>Costs!$A761)*('Fixed assets'!$P$2:$P$1000=Costs!$A761)*('Fixed assets'!$S$2:$S$1000))","v":0},{"$f":"AP673+SUMPRODUCT(('Fixed assets'!$Q$2:$Q$1000=Costs!AP$705)*('Fixed assets'!$U$2:$U$1000>Costs!$A761)*('Fixed assets'!$P$2:$P$1000=Costs!$A761)*('Fixed assets'!$R$2:$R$1000))-SUMPRODUCT(('Fixed assets'!$Q$2:$Q$1000=Costs!AP$705)*('Fixed assets'!$U$2:$U$1000>Costs!$A761)*('Fixed assets'!$P$2:$P$1000=Costs!$A761)*('Fixed assets'!$S$2:$S$1000))","v":0},{"$f":"AQ673+SUMPRODUCT(('Fixed assets'!$Q$2:$Q$1000=Costs!AQ$705)*('Fixed assets'!$U$2:$U$1000>Costs!$A761)*('Fixed assets'!$P$2:$P$1000=Costs!$A761)*('Fixed assets'!$R$2:$R$1000))-SUMPRODUCT(('Fixed assets'!$Q$2:$Q$1000=Costs!AQ$705)*('Fixed assets'!$U$2:$U$1000>Costs!$A761)*('Fixed assets'!$P$2:$P$1000=Costs!$A761)*('Fixed assets'!$S$2:$S$1000))","v":0}]
[2071,0,{"$f":"C674+SUMPRODUCT(('Fixed assets'!$Q$2:$Q$1000=Costs!C$705)*('Fixed assets'!$U$2:$U$1000>Costs!$A762)*('Fixed assets'!$P$2:$P$1000=Costs!$A762)*('Fixed assets'!$R$2:$R$1000))-SUMPRODUCT(('Fixed assets'!$Q$2:$Q$1000=Costs!C$705)*('Fixed assets'!$U$2:$U$1000>Costs!$A762)*('Fixed assets'!$P$2:$P$1000=Costs!$A762)*('Fixed assets'!$S$2:$S$1000))","v":0},{"$f":"D674+SUMPRODUCT(('Fixed assets'!$Q$2:$Q$1000=Costs!D$705)*('Fixed assets'!$U$2:$U$1000>Costs!$A762)*('Fixed assets'!$P$2:$P$1000=Costs!$A762)*('Fixed assets'!$R$2:$R$1000))-SUMPRODUCT(('Fixed assets'!$Q$2:$Q$1000=Costs!D$705)*('Fixed assets'!$U$2:$U$1000>Costs!$A762)*('Fixed assets'!$P$2:$P$1000=Costs!$A762)*('Fixed assets'!$S$2:$S$1000))","v":0},{"$f":"E674+SUMPRODUCT(('Fixed assets'!$Q$2:$Q$1000=Costs!E$705)*('Fixed assets'!$U$2:$U$1000>Costs!$A762)*('Fixed assets'!$P$2:$P$1000=Costs!$A762)*('Fixed assets'!$R$2:$R$1000))-SUMPRODUCT(('Fixed assets'!$Q$2:$Q$1000=Costs!E$705)*('Fixed assets'!$U$2:$U$1000>Costs!$A762)*('Fixed assets'!$P$2:$P$1000=Costs!$A762)*('Fixed assets'!$S$2:$S$1000))","v":0},{"$f":"F674+SUMPRODUCT(('Fixed assets'!$Q$2:$Q$1000=Costs!F$705)*('Fixed assets'!$U$2:$U$1000>Costs!$A762)*('Fixed assets'!$P$2:$P$1000=Costs!$A762)*('Fixed assets'!$R$2:$R$1000))-SUMPRODUCT(('Fixed assets'!$Q$2:$Q$1000=Costs!F$705)*('Fixed assets'!$U$2:$U$1000>Costs!$A762)*('Fixed assets'!$P$2:$P$1000=Costs!$A762)*('Fixed assets'!$S$2:$S$1000))","v":0},{"$f":"G674+SUMPRODUCT(('Fixed assets'!$Q$2:$Q$1000=Costs!G$705)*('Fixed assets'!$U$2:$U$1000>Costs!$A762)*('Fixed assets'!$P$2:$P$1000=Costs!$A762)*('Fixed assets'!$R$2:$R$1000))-SUMPRODUCT(('Fixed assets'!$Q$2:$Q$1000=Costs!G$705)*('Fixed assets'!$U$2:$U$1000>Costs!$A762)*('Fixed assets'!$P$2:$P$1000=Costs!$A762)*('Fixed assets'!$S$2:$S$1000))","v":0},{"$f":"H674+SUMPRODUCT(('Fixed assets'!$Q$2:$Q$1000=Costs!H$705)*('Fixed assets'!$U$2:$U$1000>Costs!$A762)*('Fixed assets'!$P$2:$P$1000=Costs!$A762)*('Fixed assets'!$R$2:$R$1000))-SUMPRODUCT(('Fixed assets'!$Q$2:$Q$1000=Costs!H$705)*('Fixed assets'!$U$2:$U$1000>Costs!$A762)*('Fixed assets'!$P$2:$P$1000=Costs!$A762)*('Fixed assets'!$S$2:$S$1000))","v":0},{"$f":"I674+SUMPRODUCT(('Fixed assets'!$Q$2:$Q$1000=Costs!I$705)*('Fixed assets'!$U$2:$U$1000>Costs!$A762)*('Fixed assets'!$P$2:$P$1000=Costs!$A762)*('Fixed assets'!$R$2:$R$1000))-SUMPRODUCT(('Fixed assets'!$Q$2:$Q$1000=Costs!I$705)*('Fixed assets'!$U$2:$U$1000>Costs!$A762)*('Fixed assets'!$P$2:$P$1000=Costs!$A762)*('Fixed assets'!$S$2:$S$1000))","v":0},{"$f":"J674+SUMPRODUCT(('Fixed assets'!$Q$2:$Q$1000=Costs!J$705)*('Fixed assets'!$U$2:$U$1000>Costs!$A762)*('Fixed assets'!$P$2:$P$1000=Costs!$A762)*('Fixed assets'!$R$2:$R$1000))-SUMPRODUCT(('Fixed assets'!$Q$2:$Q$1000=Costs!J$705)*('Fixed assets'!$U$2:$U$1000>Costs!$A762)*('Fixed assets'!$P$2:$P$1000=Costs!$A762)*('Fixed assets'!$S$2:$S$1000))","v":0},{"$f":"K674+SUMPRODUCT(('Fixed assets'!$Q$2:$Q$1000=Costs!K$705)*('Fixed assets'!$U$2:$U$1000>Costs!$A762)*('Fixed assets'!$P$2:$P$1000=Costs!$A762)*('Fixed assets'!$R$2:$R$1000))-SUMPRODUCT(('Fixed assets'!$Q$2:$Q$1000=Costs!K$705)*('Fixed assets'!$U$2:$U$1000>Costs!$A762)*('Fixed assets'!$P$2:$P$1000=Costs!$A762)*('Fixed assets'!$S$2:$S$1000))","v":0},{"$f":"L674+SUMPRODUCT(('Fixed assets'!$Q$2:$Q$1000=Costs!L$705)*('Fixed assets'!$U$2:$U$1000>Costs!$A762)*('Fixed assets'!$P$2:$P$1000=Costs!$A762)*('Fixed assets'!$R$2:$R$1000))-SUMPRODUCT(('Fixed assets'!$Q$2:$Q$1000=Costs!L$705)*('Fixed assets'!$U$2:$U$1000>Costs!$A762)*('Fixed assets'!$P$2:$P$1000=Costs!$A762)*('Fixed assets'!$S$2:$S$1000))","v":0},{"$f":"M674+SUMPRODUCT(('Fixed assets'!$Q$2:$Q$1000=Costs!M$705)*('Fixed assets'!$U$2:$U$1000>Costs!$A762)*('Fixed assets'!$P$2:$P$1000=Costs!$A762)*('Fixed assets'!$R$2:$R$1000))-SUMPRODUCT(('Fixed assets'!$Q$2:$Q$1000=Costs!M$705)*('Fixed assets'!$U$2:$U$1000>Costs!$A762)*('Fixed assets'!$P$2:$P$1000=Costs!$A762)*('Fixed assets'!$S$2:$S$1000))","v":0},{"$f":"N674+SUMPRODUCT(('Fixed assets'!$Q$2:$Q$1000=Costs!N$705)*('Fixed assets'!$U$2:$U$1000>Costs!$A762)*('Fixed assets'!$P$2:$P$1000=Costs!$A762)*('Fixed assets'!$R$2:$R$1000))-SUMPRODUCT(('Fixed assets'!$Q$2:$Q$1000=Costs!N$705)*('Fixed assets'!$U$2:$U$1000>Costs!$A762)*('Fixed assets'!$P$2:$P$1000=Costs!$A762)*('Fixed assets'!$S$2:$S$1000))","v":0},{"$f":"O674+SUMPRODUCT(('Fixed assets'!$Q$2:$Q$1000=Costs!O$705)*('Fixed assets'!$U$2:$U$1000>Costs!$A762)*('Fixed assets'!$P$2:$P$1000=Costs!$A762)*('Fixed assets'!$R$2:$R$1000))-SUMPRODUCT(('Fixed assets'!$Q$2:$Q$1000=Costs!O$705)*('Fixed assets'!$U$2:$U$1000>Costs!$A762)*('Fixed assets'!$P$2:$P$1000=Costs!$A762)*('Fixed assets'!$S$2:$S$1000))","v":0},{"$f":"P674+SUMPRODUCT(('Fixed assets'!$Q$2:$Q$1000=Costs!P$705)*('Fixed assets'!$U$2:$U$1000>Costs!$A762)*('Fixed assets'!$P$2:$P$1000=Costs!$A762)*('Fixed assets'!$R$2:$R$1000))-SUMPRODUCT(('Fixed assets'!$Q$2:$Q$1000=Costs!P$705)*('Fixed assets'!$U$2:$U$1000>Costs!$A762)*('Fixed assets'!$P$2:$P$1000=Costs!$A762)*('Fixed assets'!$S$2:$S$1000))","v":0},{"$f":"Q674+SUMPRODUCT(('Fixed assets'!$Q$2:$Q$1000=Costs!Q$705)*('Fixed assets'!$U$2:$U$1000>Costs!$A762)*('Fixed assets'!$P$2:$P$1000=Costs!$A762)*('Fixed assets'!$R$2:$R$1000))-SUMPRODUCT(('Fixed assets'!$Q$2:$Q$1000=Costs!Q$705)*('Fixed assets'!$U$2:$U$1000>Costs!$A762)*('Fixed assets'!$P$2:$P$1000=Costs!$A762)*('Fixed assets'!$S$2:$S$1000))","v":0},{"$f":"R674+SUMPRODUCT(('Fixed assets'!$Q$2:$Q$1000=Costs!R$705)*('Fixed assets'!$U$2:$U$1000>Costs!$A762)*('Fixed assets'!$P$2:$P$1000=Costs!$A762)*('Fixed assets'!$R$2:$R$1000))-SUMPRODUCT(('Fixed assets'!$Q$2:$Q$1000=Costs!R$705)*('Fixed assets'!$U$2:$U$1000>Costs!$A762)*('Fixed assets'!$P$2:$P$1000=Costs!$A762)*('Fixed assets'!$S$2:$S$1000))","v":0},{"$f":"S674+SUMPRODUCT(('Fixed assets'!$Q$2:$Q$1000=Costs!S$705)*('Fixed assets'!$U$2:$U$1000>Costs!$A762)*('Fixed assets'!$P$2:$P$1000=Costs!$A762)*('Fixed assets'!$R$2:$R$1000))-SUMPRODUCT(('Fixed assets'!$Q$2:$Q$1000=Costs!S$705)*('Fixed assets'!$U$2:$U$1000>Costs!$A762)*('Fixed assets'!$P$2:$P$1000=Costs!$A762)*('Fixed assets'!$S$2:$S$1000))","v":0},{"$f":"T674+SUMPRODUCT(('Fixed assets'!$Q$2:$Q$1000=Costs!T$705)*('Fixed assets'!$U$2:$U$1000>Costs!$A762)*('Fixed assets'!$P$2:$P$1000=Costs!$A762)*('Fixed assets'!$R$2:$R$1000))-SUMPRODUCT(('Fixed assets'!$Q$2:$Q$1000=Costs!T$705)*('Fixed assets'!$U$2:$U$1000>Costs!$A762)*('Fixed assets'!$P$2:$P$1000=Costs!$A762)*('Fixed assets'!$S$2:$S$1000))","v":0},{"$f":"U674+SUMPRODUCT(('Fixed assets'!$Q$2:$Q$1000=Costs!U$705)*('Fixed assets'!$U$2:$U$1000>Costs!$A762)*('Fixed assets'!$P$2:$P$1000=Costs!$A762)*('Fixed assets'!$R$2:$R$1000))-SUMPRODUCT(('Fixed assets'!$Q$2:$Q$1000=Costs!U$705)*('Fixed assets'!$U$2:$U$1000>Costs!$A762)*('Fixed assets'!$P$2:$P$1000=Costs!$A762)*('Fixed assets'!$S$2:$S$1000))","v":0},{"$f":"V674+SUMPRODUCT(('Fixed assets'!$Q$2:$Q$1000=Costs!V$705)*('Fixed assets'!$U$2:$U$1000>Costs!$A762)*('Fixed assets'!$P$2:$P$1000=Costs!$A762)*('Fixed assets'!$R$2:$R$1000))-SUMPRODUCT(('Fixed assets'!$Q$2:$Q$1000=Costs!V$705)*('Fixed assets'!$U$2:$U$1000>Costs!$A762)*('Fixed assets'!$P$2:$P$1000=Costs!$A762)*('Fixed assets'!$S$2:$S$1000))","v":0},{"$f":"W674+SUMPRODUCT(('Fixed assets'!$Q$2:$Q$1000=Costs!W$705)*('Fixed assets'!$U$2:$U$1000>Costs!$A762)*('Fixed assets'!$P$2:$P$1000=Costs!$A762)*('Fixed assets'!$R$2:$R$1000))-SUMPRODUCT(('Fixed assets'!$Q$2:$Q$1000=Costs!W$705)*('Fixed assets'!$U$2:$U$1000>Costs!$A762)*('Fixed assets'!$P$2:$P$1000=Costs!$A762)*('Fixed assets'!$S$2:$S$1000))","v":0},{"$f":"X674+SUMPRODUCT(('Fixed assets'!$Q$2:$Q$1000=Costs!X$705)*('Fixed assets'!$U$2:$U$1000>Costs!$A762)*('Fixed assets'!$P$2:$P$1000=Costs!$A762)*('Fixed assets'!$R$2:$R$1000))-SUMPRODUCT(('Fixed assets'!$Q$2:$Q$1000=Costs!X$705)*('Fixed assets'!$U$2:$U$1000>Costs!$A762)*('Fixed assets'!$P$2:$P$1000=Costs!$A762)*('Fixed assets'!$S$2:$S$1000))","v":0},{"$f":"Y674+SUMPRODUCT(('Fixed assets'!$Q$2:$Q$1000=Costs!Y$705)*('Fixed assets'!$U$2:$U$1000>Costs!$A762)*('Fixed assets'!$P$2:$P$1000=Costs!$A762)*('Fixed assets'!$R$2:$R$1000))-SUMPRODUCT(('Fixed assets'!$Q$2:$Q$1000=Costs!Y$705)*('Fixed assets'!$U$2:$U$1000>Costs!$A762)*('Fixed assets'!$P$2:$P$1000=Costs!$A762)*('Fixed assets'!$S$2:$S$1000))","v":0},{"$f":"Z674+SUMPRODUCT(('Fixed assets'!$Q$2:$Q$1000=Costs!Z$705)*('Fixed assets'!$U$2:$U$1000>Costs!$A762)*('Fixed assets'!$P$2:$P$1000=Costs!$A762)*('Fixed assets'!$R$2:$R$1000))-SUMPRODUCT(('Fixed assets'!$Q$2:$Q$1000=Costs!Z$705)*('Fixed assets'!$U$2:$U$1000>Costs!$A762)*('Fixed assets'!$P$2:$P$1000=Costs!$A762)*('Fixed assets'!$S$2:$S$1000))","v":0},{"$f":"AA674+SUMPRODUCT(('Fixed assets'!$Q$2:$Q$1000=Costs!AA$705)*('Fixed assets'!$U$2:$U$1000>Costs!$A762)*('Fixed assets'!$P$2:$P$1000=Costs!$A762)*('Fixed assets'!$R$2:$R$1000))-SUMPRODUCT(('Fixed assets'!$Q$2:$Q$1000=Costs!AA$705)*('Fixed assets'!$U$2:$U$1000>Costs!$A762)*('Fixed assets'!$P$2:$P$1000=Costs!$A762)*('Fixed assets'!$S$2:$S$1000))","v":0},{"$f":"AB674+SUMPRODUCT(('Fixed assets'!$Q$2:$Q$1000=Costs!AB$705)*('Fixed assets'!$U$2:$U$1000>Costs!$A762)*('Fixed assets'!$P$2:$P$1000=Costs!$A762)*('Fixed assets'!$R$2:$R$1000))-SUMPRODUCT(('Fixed assets'!$Q$2:$Q$1000=Costs!AB$705)*('Fixed assets'!$U$2:$U$1000>Costs!$A762)*('Fixed assets'!$P$2:$P$1000=Costs!$A762)*('Fixed assets'!$S$2:$S$1000))","v":0},{"$f":"AC674+SUMPRODUCT(('Fixed assets'!$Q$2:$Q$1000=Costs!AC$705)*('Fixed assets'!$U$2:$U$1000>Costs!$A762)*('Fixed assets'!$P$2:$P$1000=Costs!$A762)*('Fixed assets'!$R$2:$R$1000))-SUMPRODUCT(('Fixed assets'!$Q$2:$Q$1000=Costs!AC$705)*('Fixed assets'!$U$2:$U$1000>Costs!$A762)*('Fixed assets'!$P$2:$P$1000=Costs!$A762)*('Fixed assets'!$S$2:$S$1000))","v":0},{"$f":"AD674+SUMPRODUCT(('Fixed assets'!$Q$2:$Q$1000=Costs!AD$705)*('Fixed assets'!$U$2:$U$1000>Costs!$A762)*('Fixed assets'!$P$2:$P$1000=Costs!$A762)*('Fixed assets'!$R$2:$R$1000))-SUMPRODUCT(('Fixed assets'!$Q$2:$Q$1000=Costs!AD$705)*('Fixed assets'!$U$2:$U$1000>Costs!$A762)*('Fixed assets'!$P$2:$P$1000=Costs!$A762)*('Fixed assets'!$S$2:$S$1000))","v":0},{"$f":"AE674+SUMPRODUCT(('Fixed assets'!$Q$2:$Q$1000=Costs!AE$705)*('Fixed assets'!$U$2:$U$1000>Costs!$A762)*('Fixed assets'!$P$2:$P$1000=Costs!$A762)*('Fixed assets'!$R$2:$R$1000))-SUMPRODUCT(('Fixed assets'!$Q$2:$Q$1000=Costs!AE$705)*('Fixed assets'!$U$2:$U$1000>Costs!$A762)*('Fixed assets'!$P$2:$P$1000=Costs!$A762)*('Fixed assets'!$S$2:$S$1000))","v":0},{"$f":"AF674+SUMPRODUCT(('Fixed assets'!$Q$2:$Q$1000=Costs!AF$705)*('Fixed assets'!$U$2:$U$1000>Costs!$A762)*('Fixed assets'!$P$2:$P$1000=Costs!$A762)*('Fixed assets'!$R$2:$R$1000))-SUMPRODUCT(('Fixed assets'!$Q$2:$Q$1000=Costs!AF$705)*('Fixed assets'!$U$2:$U$1000>Costs!$A762)*('Fixed assets'!$P$2:$P$1000=Costs!$A762)*('Fixed assets'!$S$2:$S$1000))","v":0},{"$f":"AG674+SUMPRODUCT(('Fixed assets'!$Q$2:$Q$1000=Costs!AG$705)*('Fixed assets'!$U$2:$U$1000>Costs!$A762)*('Fixed assets'!$P$2:$P$1000=Costs!$A762)*('Fixed assets'!$R$2:$R$1000))-SUMPRODUCT(('Fixed assets'!$Q$2:$Q$1000=Costs!AG$705)*('Fixed assets'!$U$2:$U$1000>Costs!$A762)*('Fixed assets'!$P$2:$P$1000=Costs!$A762)*('Fixed assets'!$S$2:$S$1000))","v":0},{"$f":"AH674+SUMPRODUCT(('Fixed assets'!$Q$2:$Q$1000=Costs!AH$705)*('Fixed assets'!$U$2:$U$1000>Costs!$A762)*('Fixed assets'!$P$2:$P$1000=Costs!$A762)*('Fixed assets'!$R$2:$R$1000))-SUMPRODUCT(('Fixed assets'!$Q$2:$Q$1000=Costs!AH$705)*('Fixed assets'!$U$2:$U$1000>Costs!$A762)*('Fixed assets'!$P$2:$P$1000=Costs!$A762)*('Fixed assets'!$S$2:$S$1000))","v":0},{"$f":"AI674+SUMPRODUCT(('Fixed assets'!$Q$2:$Q$1000=Costs!AI$705)*('Fixed assets'!$U$2:$U$1000>Costs!$A762)*('Fixed assets'!$P$2:$P$1000=Costs!$A762)*('Fixed assets'!$R$2:$R$1000))-SUMPRODUCT(('Fixed assets'!$Q$2:$Q$1000=Costs!AI$705)*('Fixed assets'!$U$2:$U$1000>Costs!$A762)*('Fixed assets'!$P$2:$P$1000=Costs!$A762)*('Fixed assets'!$S$2:$S$1000))","v":0},{"$f":"AJ674+SUMPRODUCT(('Fixed assets'!$Q$2:$Q$1000=Costs!AJ$705)*('Fixed assets'!$U$2:$U$1000>Costs!$A762)*('Fixed assets'!$P$2:$P$1000=Costs!$A762)*('Fixed assets'!$R$2:$R$1000))-SUMPRODUCT(('Fixed assets'!$Q$2:$Q$1000=Costs!AJ$705)*('Fixed assets'!$U$2:$U$1000>Costs!$A762)*('Fixed assets'!$P$2:$P$1000=Costs!$A762)*('Fixed assets'!$S$2:$S$1000))","v":0},{"$f":"AK674+SUMPRODUCT(('Fixed assets'!$Q$2:$Q$1000=Costs!AK$705)*('Fixed assets'!$U$2:$U$1000>Costs!$A762)*('Fixed assets'!$P$2:$P$1000=Costs!$A762)*('Fixed assets'!$R$2:$R$1000))-SUMPRODUCT(('Fixed assets'!$Q$2:$Q$1000=Costs!AK$705)*('Fixed assets'!$U$2:$U$1000>Costs!$A762)*('Fixed assets'!$P$2:$P$1000=Costs!$A762)*('Fixed assets'!$S$2:$S$1000))","v":0},{"$f":"AL674+SUMPRODUCT(('Fixed assets'!$Q$2:$Q$1000=Costs!AL$705)*('Fixed assets'!$U$2:$U$1000>Costs!$A762)*('Fixed assets'!$P$2:$P$1000=Costs!$A762)*('Fixed assets'!$R$2:$R$1000))-SUMPRODUCT(('Fixed assets'!$Q$2:$Q$1000=Costs!AL$705)*('Fixed assets'!$U$2:$U$1000>Costs!$A762)*('Fixed assets'!$P$2:$P$1000=Costs!$A762)*('Fixed assets'!$S$2:$S$1000))","v":0},{"$f":"AM674+SUMPRODUCT(('Fixed assets'!$Q$2:$Q$1000=Costs!AM$705)*('Fixed assets'!$U$2:$U$1000>Costs!$A762)*('Fixed assets'!$P$2:$P$1000=Costs!$A762)*('Fixed assets'!$R$2:$R$1000))-SUMPRODUCT(('Fixed assets'!$Q$2:$Q$1000=Costs!AM$705)*('Fixed assets'!$U$2:$U$1000>Costs!$A762)*('Fixed assets'!$P$2:$P$1000=Costs!$A762)*('Fixed assets'!$S$2:$S$1000))","v":0},{"$f":"AN674+SUMPRODUCT(('Fixed assets'!$Q$2:$Q$1000=Costs!AN$705)*('Fixed assets'!$U$2:$U$1000>Costs!$A762)*('Fixed assets'!$P$2:$P$1000=Costs!$A762)*('Fixed assets'!$R$2:$R$1000))-SUMPRODUCT(('Fixed assets'!$Q$2:$Q$1000=Costs!AN$705)*('Fixed assets'!$U$2:$U$1000>Costs!$A762)*('Fixed assets'!$P$2:$P$1000=Costs!$A762)*('Fixed assets'!$S$2:$S$1000))","v":0},{"$f":"AO674+SUMPRODUCT(('Fixed assets'!$Q$2:$Q$1000=Costs!AO$705)*('Fixed assets'!$U$2:$U$1000>Costs!$A762)*('Fixed assets'!$P$2:$P$1000=Costs!$A762)*('Fixed assets'!$R$2:$R$1000))-SUMPRODUCT(('Fixed assets'!$Q$2:$Q$1000=Costs!AO$705)*('Fixed assets'!$U$2:$U$1000>Costs!$A762)*('Fixed assets'!$P$2:$P$1000=Costs!$A762)*('Fixed assets'!$S$2:$S$1000))","v":0},{"$f":"AP674+SUMPRODUCT(('Fixed assets'!$Q$2:$Q$1000=Costs!AP$705)*('Fixed assets'!$U$2:$U$1000>Costs!$A762)*('Fixed assets'!$P$2:$P$1000=Costs!$A762)*('Fixed assets'!$R$2:$R$1000))-SUMPRODUCT(('Fixed assets'!$Q$2:$Q$1000=Costs!AP$705)*('Fixed assets'!$U$2:$U$1000>Costs!$A762)*('Fixed assets'!$P$2:$P$1000=Costs!$A762)*('Fixed assets'!$S$2:$S$1000))","v":0},{"$f":"AQ674+SUMPRODUCT(('Fixed assets'!$Q$2:$Q$1000=Costs!AQ$705)*('Fixed assets'!$U$2:$U$1000>Costs!$A762)*('Fixed assets'!$P$2:$P$1000=Costs!$A762)*('Fixed assets'!$R$2:$R$1000))-SUMPRODUCT(('Fixed assets'!$Q$2:$Q$1000=Costs!AQ$705)*('Fixed assets'!$U$2:$U$1000>Costs!$A762)*('Fixed assets'!$P$2:$P$1000=Costs!$A762)*('Fixed assets'!$S$2:$S$1000))","v":0}]
[2072,0,{"$f":"C675+SUMPRODUCT(('Fixed assets'!$Q$2:$Q$1000=Costs!C$705)*('Fixed assets'!$U$2:$U$1000>Costs!$A763)*('Fixed assets'!$P$2:$P$1000=Costs!$A763)*('Fixed assets'!$R$2:$R$1000))-SUMPRODUCT(('Fixed assets'!$Q$2:$Q$1000=Costs!C$705)*('Fixed assets'!$U$2:$U$1000>Costs!$A763)*('Fixed assets'!$P$2:$P$1000=Costs!$A763)*('Fixed assets'!$S$2:$S$1000))","v":0},{"$f":"D675+SUMPRODUCT(('Fixed assets'!$Q$2:$Q$1000=Costs!D$705)*('Fixed assets'!$U$2:$U$1000>Costs!$A763)*('Fixed assets'!$P$2:$P$1000=Costs!$A763)*('Fixed assets'!$R$2:$R$1000))-SUMPRODUCT(('Fixed assets'!$Q$2:$Q$1000=Costs!D$705)*('Fixed assets'!$U$2:$U$1000>Costs!$A763)*('Fixed assets'!$P$2:$P$1000=Costs!$A763)*('Fixed assets'!$S$2:$S$1000))","v":0},{"$f":"E675+SUMPRODUCT(('Fixed assets'!$Q$2:$Q$1000=Costs!E$705)*('Fixed assets'!$U$2:$U$1000>Costs!$A763)*('Fixed assets'!$P$2:$P$1000=Costs!$A763)*('Fixed assets'!$R$2:$R$1000))-SUMPRODUCT(('Fixed assets'!$Q$2:$Q$1000=Costs!E$705)*('Fixed assets'!$U$2:$U$1000>Costs!$A763)*('Fixed assets'!$P$2:$P$1000=Costs!$A763)*('Fixed assets'!$S$2:$S$1000))","v":0},{"$f":"F675+SUMPRODUCT(('Fixed assets'!$Q$2:$Q$1000=Costs!F$705)*('Fixed assets'!$U$2:$U$1000>Costs!$A763)*('Fixed assets'!$P$2:$P$1000=Costs!$A763)*('Fixed assets'!$R$2:$R$1000))-SUMPRODUCT(('Fixed assets'!$Q$2:$Q$1000=Costs!F$705)*('Fixed assets'!$U$2:$U$1000>Costs!$A763)*('Fixed assets'!$P$2:$P$1000=Costs!$A763)*('Fixed assets'!$S$2:$S$1000))","v":0},{"$f":"G675+SUMPRODUCT(('Fixed assets'!$Q$2:$Q$1000=Costs!G$705)*('Fixed assets'!$U$2:$U$1000>Costs!$A763)*('Fixed assets'!$P$2:$P$1000=Costs!$A763)*('Fixed assets'!$R$2:$R$1000))-SUMPRODUCT(('Fixed assets'!$Q$2:$Q$1000=Costs!G$705)*('Fixed assets'!$U$2:$U$1000>Costs!$A763)*('Fixed assets'!$P$2:$P$1000=Costs!$A763)*('Fixed assets'!$S$2:$S$1000))","v":0},{"$f":"H675+SUMPRODUCT(('Fixed assets'!$Q$2:$Q$1000=Costs!H$705)*('Fixed assets'!$U$2:$U$1000>Costs!$A763)*('Fixed assets'!$P$2:$P$1000=Costs!$A763)*('Fixed assets'!$R$2:$R$1000))-SUMPRODUCT(('Fixed assets'!$Q$2:$Q$1000=Costs!H$705)*('Fixed assets'!$U$2:$U$1000>Costs!$A763)*('Fixed assets'!$P$2:$P$1000=Costs!$A763)*('Fixed assets'!$S$2:$S$1000))","v":0},{"$f":"I675+SUMPRODUCT(('Fixed assets'!$Q$2:$Q$1000=Costs!I$705)*('Fixed assets'!$U$2:$U$1000>Costs!$A763)*('Fixed assets'!$P$2:$P$1000=Costs!$A763)*('Fixed assets'!$R$2:$R$1000))-SUMPRODUCT(('Fixed assets'!$Q$2:$Q$1000=Costs!I$705)*('Fixed assets'!$U$2:$U$1000>Costs!$A763)*('Fixed assets'!$P$2:$P$1000=Costs!$A763)*('Fixed assets'!$S$2:$S$1000))","v":0},{"$f":"J675+SUMPRODUCT(('Fixed assets'!$Q$2:$Q$1000=Costs!J$705)*('Fixed assets'!$U$2:$U$1000>Costs!$A763)*('Fixed assets'!$P$2:$P$1000=Costs!$A763)*('Fixed assets'!$R$2:$R$1000))-SUMPRODUCT(('Fixed assets'!$Q$2:$Q$1000=Costs!J$705)*('Fixed assets'!$U$2:$U$1000>Costs!$A763)*('Fixed assets'!$P$2:$P$1000=Costs!$A763)*('Fixed assets'!$S$2:$S$1000))","v":0},{"$f":"K675+SUMPRODUCT(('Fixed assets'!$Q$2:$Q$1000=Costs!K$705)*('Fixed assets'!$U$2:$U$1000>Costs!$A763)*('Fixed assets'!$P$2:$P$1000=Costs!$A763)*('Fixed assets'!$R$2:$R$1000))-SUMPRODUCT(('Fixed assets'!$Q$2:$Q$1000=Costs!K$705)*('Fixed assets'!$U$2:$U$1000>Costs!$A763)*('Fixed assets'!$P$2:$P$1000=Costs!$A763)*('Fixed assets'!$S$2:$S$1000))","v":0},{"$f":"L675+SUMPRODUCT(('Fixed assets'!$Q$2:$Q$1000=Costs!L$705)*('Fixed assets'!$U$2:$U$1000>Costs!$A763)*('Fixed assets'!$P$2:$P$1000=Costs!$A763)*('Fixed assets'!$R$2:$R$1000))-SUMPRODUCT(('Fixed assets'!$Q$2:$Q$1000=Costs!L$705)*('Fixed assets'!$U$2:$U$1000>Costs!$A763)*('Fixed assets'!$P$2:$P$1000=Costs!$A763)*('Fixed assets'!$S$2:$S$1000))","v":0},{"$f":"M675+SUMPRODUCT(('Fixed assets'!$Q$2:$Q$1000=Costs!M$705)*('Fixed assets'!$U$2:$U$1000>Costs!$A763)*('Fixed assets'!$P$2:$P$1000=Costs!$A763)*('Fixed assets'!$R$2:$R$1000))-SUMPRODUCT(('Fixed assets'!$Q$2:$Q$1000=Costs!M$705)*('Fixed assets'!$U$2:$U$1000>Costs!$A763)*('Fixed assets'!$P$2:$P$1000=Costs!$A763)*('Fixed assets'!$S$2:$S$1000))","v":0},{"$f":"N675+SUMPRODUCT(('Fixed assets'!$Q$2:$Q$1000=Costs!N$705)*('Fixed assets'!$U$2:$U$1000>Costs!$A763)*('Fixed assets'!$P$2:$P$1000=Costs!$A763)*('Fixed assets'!$R$2:$R$1000))-SUMPRODUCT(('Fixed assets'!$Q$2:$Q$1000=Costs!N$705)*('Fixed assets'!$U$2:$U$1000>Costs!$A763)*('Fixed assets'!$P$2:$P$1000=Costs!$A763)*('Fixed assets'!$S$2:$S$1000))","v":0},{"$f":"O675+SUMPRODUCT(('Fixed assets'!$Q$2:$Q$1000=Costs!O$705)*('Fixed assets'!$U$2:$U$1000>Costs!$A763)*('Fixed assets'!$P$2:$P$1000=Costs!$A763)*('Fixed assets'!$R$2:$R$1000))-SUMPRODUCT(('Fixed assets'!$Q$2:$Q$1000=Costs!O$705)*('Fixed assets'!$U$2:$U$1000>Costs!$A763)*('Fixed assets'!$P$2:$P$1000=Costs!$A763)*('Fixed assets'!$S$2:$S$1000))","v":0},{"$f":"P675+SUMPRODUCT(('Fixed assets'!$Q$2:$Q$1000=Costs!P$705)*('Fixed assets'!$U$2:$U$1000>Costs!$A763)*('Fixed assets'!$P$2:$P$1000=Costs!$A763)*('Fixed assets'!$R$2:$R$1000))-SUMPRODUCT(('Fixed assets'!$Q$2:$Q$1000=Costs!P$705)*('Fixed assets'!$U$2:$U$1000>Costs!$A763)*('Fixed assets'!$P$2:$P$1000=Costs!$A763)*('Fixed assets'!$S$2:$S$1000))","v":0},{"$f":"Q675+SUMPRODUCT(('Fixed assets'!$Q$2:$Q$1000=Costs!Q$705)*('Fixed assets'!$U$2:$U$1000>Costs!$A763)*('Fixed assets'!$P$2:$P$1000=Costs!$A763)*('Fixed assets'!$R$2:$R$1000))-SUMPRODUCT(('Fixed assets'!$Q$2:$Q$1000=Costs!Q$705)*('Fixed assets'!$U$2:$U$1000>Costs!$A763)*('Fixed assets'!$P$2:$P$1000=Costs!$A763)*('Fixed assets'!$S$2:$S$1000))","v":0},{"$f":"R675+SUMPRODUCT(('Fixed assets'!$Q$2:$Q$1000=Costs!R$705)*('Fixed assets'!$U$2:$U$1000>Costs!$A763)*('Fixed assets'!$P$2:$P$1000=Costs!$A763)*('Fixed assets'!$R$2:$R$1000))-SUMPRODUCT(('Fixed assets'!$Q$2:$Q$1000=Costs!R$705)*('Fixed assets'!$U$2:$U$1000>Costs!$A763)*('Fixed assets'!$P$2:$P$1000=Costs!$A763)*('Fixed assets'!$S$2:$S$1000))","v":0},{"$f":"S675+SUMPRODUCT(('Fixed assets'!$Q$2:$Q$1000=Costs!S$705)*('Fixed assets'!$U$2:$U$1000>Costs!$A763)*('Fixed assets'!$P$2:$P$1000=Costs!$A763)*('Fixed assets'!$R$2:$R$1000))-SUMPRODUCT(('Fixed assets'!$Q$2:$Q$1000=Costs!S$705)*('Fixed assets'!$U$2:$U$1000>Costs!$A763)*('Fixed assets'!$P$2:$P$1000=Costs!$A763)*('Fixed assets'!$S$2:$S$1000))","v":0},{"$f":"T675+SUMPRODUCT(('Fixed assets'!$Q$2:$Q$1000=Costs!T$705)*('Fixed assets'!$U$2:$U$1000>Costs!$A763)*('Fixed assets'!$P$2:$P$1000=Costs!$A763)*('Fixed assets'!$R$2:$R$1000))-SUMPRODUCT(('Fixed assets'!$Q$2:$Q$1000=Costs!T$705)*('Fixed assets'!$U$2:$U$1000>Costs!$A763)*('Fixed assets'!$P$2:$P$1000=Costs!$A763)*('Fixed assets'!$S$2:$S$1000))","v":0},{"$f":"U675+SUMPRODUCT(('Fixed assets'!$Q$2:$Q$1000=Costs!U$705)*('Fixed assets'!$U$2:$U$1000>Costs!$A763)*('Fixed assets'!$P$2:$P$1000=Costs!$A763)*('Fixed assets'!$R$2:$R$1000))-SUMPRODUCT(('Fixed assets'!$Q$2:$Q$1000=Costs!U$705)*('Fixed assets'!$U$2:$U$1000>Costs!$A763)*('Fixed assets'!$P$2:$P$1000=Costs!$A763)*('Fixed assets'!$S$2:$S$1000))","v":0},{"$f":"V675+SUMPRODUCT(('Fixed assets'!$Q$2:$Q$1000=Costs!V$705)*('Fixed assets'!$U$2:$U$1000>Costs!$A763)*('Fixed assets'!$P$2:$P$1000=Costs!$A763)*('Fixed assets'!$R$2:$R$1000))-SUMPRODUCT(('Fixed assets'!$Q$2:$Q$1000=Costs!V$705)*('Fixed assets'!$U$2:$U$1000>Costs!$A763)*('Fixed assets'!$P$2:$P$1000=Costs!$A763)*('Fixed assets'!$S$2:$S$1000))","v":0},{"$f":"W675+SUMPRODUCT(('Fixed assets'!$Q$2:$Q$1000=Costs!W$705)*('Fixed assets'!$U$2:$U$1000>Costs!$A763)*('Fixed assets'!$P$2:$P$1000=Costs!$A763)*('Fixed assets'!$R$2:$R$1000))-SUMPRODUCT(('Fixed assets'!$Q$2:$Q$1000=Costs!W$705)*('Fixed assets'!$U$2:$U$1000>Costs!$A763)*('Fixed assets'!$P$2:$P$1000=Costs!$A763)*('Fixed assets'!$S$2:$S$1000))","v":0},{"$f":"X675+SUMPRODUCT(('Fixed assets'!$Q$2:$Q$1000=Costs!X$705)*('Fixed assets'!$U$2:$U$1000>Costs!$A763)*('Fixed assets'!$P$2:$P$1000=Costs!$A763)*('Fixed assets'!$R$2:$R$1000))-SUMPRODUCT(('Fixed assets'!$Q$2:$Q$1000=Costs!X$705)*('Fixed assets'!$U$2:$U$1000>Costs!$A763)*('Fixed assets'!$P$2:$P$1000=Costs!$A763)*('Fixed assets'!$S$2:$S$1000))","v":0},{"$f":"Y675+SUMPRODUCT(('Fixed assets'!$Q$2:$Q$1000=Costs!Y$705)*('Fixed assets'!$U$2:$U$1000>Costs!$A763)*('Fixed assets'!$P$2:$P$1000=Costs!$A763)*('Fixed assets'!$R$2:$R$1000))-SUMPRODUCT(('Fixed assets'!$Q$2:$Q$1000=Costs!Y$705)*('Fixed assets'!$U$2:$U$1000>Costs!$A763)*('Fixed assets'!$P$2:$P$1000=Costs!$A763)*('Fixed assets'!$S$2:$S$1000))","v":0},{"$f":"Z675+SUMPRODUCT(('Fixed assets'!$Q$2:$Q$1000=Costs!Z$705)*('Fixed assets'!$U$2:$U$1000>Costs!$A763)*('Fixed assets'!$P$2:$P$1000=Costs!$A763)*('Fixed assets'!$R$2:$R$1000))-SUMPRODUCT(('Fixed assets'!$Q$2:$Q$1000=Costs!Z$705)*('Fixed assets'!$U$2:$U$1000>Costs!$A763)*('Fixed assets'!$P$2:$P$1000=Costs!$A763)*('Fixed assets'!$S$2:$S$1000))","v":0},{"$f":"AA675+SUMPRODUCT(('Fixed assets'!$Q$2:$Q$1000=Costs!AA$705)*('Fixed assets'!$U$2:$U$1000>Costs!$A763)*('Fixed assets'!$P$2:$P$1000=Costs!$A763)*('Fixed assets'!$R$2:$R$1000))-SUMPRODUCT(('Fixed assets'!$Q$2:$Q$1000=Costs!AA$705)*('Fixed assets'!$U$2:$U$1000>Costs!$A763)*('Fixed assets'!$P$2:$P$1000=Costs!$A763)*('Fixed assets'!$S$2:$S$1000))","v":0},{"$f":"AB675+SUMPRODUCT(('Fixed assets'!$Q$2:$Q$1000=Costs!AB$705)*('Fixed assets'!$U$2:$U$1000>Costs!$A763)*('Fixed assets'!$P$2:$P$1000=Costs!$A763)*('Fixed assets'!$R$2:$R$1000))-SUMPRODUCT(('Fixed assets'!$Q$2:$Q$1000=Costs!AB$705)*('Fixed assets'!$U$2:$U$1000>Costs!$A763)*('Fixed assets'!$P$2:$P$1000=Costs!$A763)*('Fixed assets'!$S$2:$S$1000))","v":0},{"$f":"AC675+SUMPRODUCT(('Fixed assets'!$Q$2:$Q$1000=Costs!AC$705)*('Fixed assets'!$U$2:$U$1000>Costs!$A763)*('Fixed assets'!$P$2:$P$1000=Costs!$A763)*('Fixed assets'!$R$2:$R$1000))-SUMPRODUCT(('Fixed assets'!$Q$2:$Q$1000=Costs!AC$705)*('Fixed assets'!$U$2:$U$1000>Costs!$A763)*('Fixed assets'!$P$2:$P$1000=Costs!$A763)*('Fixed assets'!$S$2:$S$1000))","v":0},{"$f":"AD675+SUMPRODUCT(('Fixed assets'!$Q$2:$Q$1000=Costs!AD$705)*('Fixed assets'!$U$2:$U$1000>Costs!$A763)*('Fixed assets'!$P$2:$P$1000=Costs!$A763)*('Fixed assets'!$R$2:$R$1000))-SUMPRODUCT(('Fixed assets'!$Q$2:$Q$1000=Costs!AD$705)*('Fixed assets'!$U$2:$U$1000>Costs!$A763)*('Fixed assets'!$P$2:$P$1000=Costs!$A763)*('Fixed assets'!$S$2:$S$1000))","v":0},{"$f":"AE675+SUMPRODUCT(('Fixed assets'!$Q$2:$Q$1000=Costs!AE$705)*('Fixed assets'!$U$2:$U$1000>Costs!$A763)*('Fixed assets'!$P$2:$P$1000=Costs!$A763)*('Fixed assets'!$R$2:$R$1000))-SUMPRODUCT(('Fixed assets'!$Q$2:$Q$1000=Costs!AE$705)*('Fixed assets'!$U$2:$U$1000>Costs!$A763)*('Fixed assets'!$P$2:$P$1000=Costs!$A763)*('Fixed assets'!$S$2:$S$1000))","v":0},{"$f":"AF675+SUMPRODUCT(('Fixed assets'!$Q$2:$Q$1000=Costs!AF$705)*('Fixed assets'!$U$2:$U$1000>Costs!$A763)*('Fixed assets'!$P$2:$P$1000=Costs!$A763)*('Fixed assets'!$R$2:$R$1000))-SUMPRODUCT(('Fixed assets'!$Q$2:$Q$1000=Costs!AF$705)*('Fixed assets'!$U$2:$U$1000>Costs!$A763)*('Fixed assets'!$P$2:$P$1000=Costs!$A763)*('Fixed assets'!$S$2:$S$1000))","v":0},{"$f":"AG675+SUMPRODUCT(('Fixed assets'!$Q$2:$Q$1000=Costs!AG$705)*('Fixed assets'!$U$2:$U$1000>Costs!$A763)*('Fixed assets'!$P$2:$P$1000=Costs!$A763)*('Fixed assets'!$R$2:$R$1000))-SUMPRODUCT(('Fixed assets'!$Q$2:$Q$1000=Costs!AG$705)*('Fixed assets'!$U$2:$U$1000>Costs!$A763)*('Fixed assets'!$P$2:$P$1000=Costs!$A763)*('Fixed assets'!$S$2:$S$1000))","v":0},{"$f":"AH675+SUMPRODUCT(('Fixed assets'!$Q$2:$Q$1000=Costs!AH$705)*('Fixed assets'!$U$2:$U$1000>Costs!$A763)*('Fixed assets'!$P$2:$P$1000=Costs!$A763)*('Fixed assets'!$R$2:$R$1000))-SUMPRODUCT(('Fixed assets'!$Q$2:$Q$1000=Costs!AH$705)*('Fixed assets'!$U$2:$U$1000>Costs!$A763)*('Fixed assets'!$P$2:$P$1000=Costs!$A763)*('Fixed assets'!$S$2:$S$1000))","v":0},{"$f":"AI675+SUMPRODUCT(('Fixed assets'!$Q$2:$Q$1000=Costs!AI$705)*('Fixed assets'!$U$2:$U$1000>Costs!$A763)*('Fixed assets'!$P$2:$P$1000=Costs!$A763)*('Fixed assets'!$R$2:$R$1000))-SUMPRODUCT(('Fixed assets'!$Q$2:$Q$1000=Costs!AI$705)*('Fixed assets'!$U$2:$U$1000>Costs!$A763)*('Fixed assets'!$P$2:$P$1000=Costs!$A763)*('Fixed assets'!$S$2:$S$1000))","v":0},{"$f":"AJ675+SUMPRODUCT(('Fixed assets'!$Q$2:$Q$1000=Costs!AJ$705)*('Fixed assets'!$U$2:$U$1000>Costs!$A763)*('Fixed assets'!$P$2:$P$1000=Costs!$A763)*('Fixed assets'!$R$2:$R$1000))-SUMPRODUCT(('Fixed assets'!$Q$2:$Q$1000=Costs!AJ$705)*('Fixed assets'!$U$2:$U$1000>Costs!$A763)*('Fixed assets'!$P$2:$P$1000=Costs!$A763)*('Fixed assets'!$S$2:$S$1000))","v":0},{"$f":"AK675+SUMPRODUCT(('Fixed assets'!$Q$2:$Q$1000=Costs!AK$705)*('Fixed assets'!$U$2:$U$1000>Costs!$A763)*('Fixed assets'!$P$2:$P$1000=Costs!$A763)*('Fixed assets'!$R$2:$R$1000))-SUMPRODUCT(('Fixed assets'!$Q$2:$Q$1000=Costs!AK$705)*('Fixed assets'!$U$2:$U$1000>Costs!$A763)*('Fixed assets'!$P$2:$P$1000=Costs!$A763)*('Fixed assets'!$S$2:$S$1000))","v":0},{"$f":"AL675+SUMPRODUCT(('Fixed assets'!$Q$2:$Q$1000=Costs!AL$705)*('Fixed assets'!$U$2:$U$1000>Costs!$A763)*('Fixed assets'!$P$2:$P$1000=Costs!$A763)*('Fixed assets'!$R$2:$R$1000))-SUMPRODUCT(('Fixed assets'!$Q$2:$Q$1000=Costs!AL$705)*('Fixed assets'!$U$2:$U$1000>Costs!$A763)*('Fixed assets'!$P$2:$P$1000=Costs!$A763)*('Fixed assets'!$S$2:$S$1000))","v":0},{"$f":"AM675+SUMPRODUCT(('Fixed assets'!$Q$2:$Q$1000=Costs!AM$705)*('Fixed assets'!$U$2:$U$1000>Costs!$A763)*('Fixed assets'!$P$2:$P$1000=Costs!$A763)*('Fixed assets'!$R$2:$R$1000))-SUMPRODUCT(('Fixed assets'!$Q$2:$Q$1000=Costs!AM$705)*('Fixed assets'!$U$2:$U$1000>Costs!$A763)*('Fixed assets'!$P$2:$P$1000=Costs!$A763)*('Fixed assets'!$S$2:$S$1000))","v":0},{"$f":"AN675+SUMPRODUCT(('Fixed assets'!$Q$2:$Q$1000=Costs!AN$705)*('Fixed assets'!$U$2:$U$1000>Costs!$A763)*('Fixed assets'!$P$2:$P$1000=Costs!$A763)*('Fixed assets'!$R$2:$R$1000))-SUMPRODUCT(('Fixed assets'!$Q$2:$Q$1000=Costs!AN$705)*('Fixed assets'!$U$2:$U$1000>Costs!$A763)*('Fixed assets'!$P$2:$P$1000=Costs!$A763)*('Fixed assets'!$S$2:$S$1000))","v":0},{"$f":"AO675+SUMPRODUCT(('Fixed assets'!$Q$2:$Q$1000=Costs!AO$705)*('Fixed assets'!$U$2:$U$1000>Costs!$A763)*('Fixed assets'!$P$2:$P$1000=Costs!$A763)*('Fixed assets'!$R$2:$R$1000))-SUMPRODUCT(('Fixed assets'!$Q$2:$Q$1000=Costs!AO$705)*('Fixed assets'!$U$2:$U$1000>Costs!$A763)*('Fixed assets'!$P$2:$P$1000=Costs!$A763)*('Fixed assets'!$S$2:$S$1000))","v":0},{"$f":"AP675+SUMPRODUCT(('Fixed assets'!$Q$2:$Q$1000=Costs!AP$705)*('Fixed assets'!$U$2:$U$1000>Costs!$A763)*('Fixed assets'!$P$2:$P$1000=Costs!$A763)*('Fixed assets'!$R$2:$R$1000))-SUMPRODUCT(('Fixed assets'!$Q$2:$Q$1000=Costs!AP$705)*('Fixed assets'!$U$2:$U$1000>Costs!$A763)*('Fixed assets'!$P$2:$P$1000=Costs!$A763)*('Fixed assets'!$S$2:$S$1000))","v":0},{"$f":"AQ675+SUMPRODUCT(('Fixed assets'!$Q$2:$Q$1000=Costs!AQ$705)*('Fixed assets'!$U$2:$U$1000>Costs!$A763)*('Fixed assets'!$P$2:$P$1000=Costs!$A763)*('Fixed assets'!$R$2:$R$1000))-SUMPRODUCT(('Fixed assets'!$Q$2:$Q$1000=Costs!AQ$705)*('Fixed assets'!$U$2:$U$1000>Costs!$A763)*('Fixed assets'!$P$2:$P$1000=Costs!$A763)*('Fixed assets'!$S$2:$S$1000))","v":0}]
[2073,0,{"$f":"C676+SUMPRODUCT(('Fixed assets'!$Q$2:$Q$1000=Costs!C$705)*('Fixed assets'!$U$2:$U$1000>Costs!$A764)*('Fixed assets'!$P$2:$P$1000=Costs!$A764)*('Fixed assets'!$R$2:$R$1000))-SUMPRODUCT(('Fixed assets'!$Q$2:$Q$1000=Costs!C$705)*('Fixed assets'!$U$2:$U$1000>Costs!$A764)*('Fixed assets'!$P$2:$P$1000=Costs!$A764)*('Fixed assets'!$S$2:$S$1000))","v":0},{"$f":"D676+SUMPRODUCT(('Fixed assets'!$Q$2:$Q$1000=Costs!D$705)*('Fixed assets'!$U$2:$U$1000>Costs!$A764)*('Fixed assets'!$P$2:$P$1000=Costs!$A764)*('Fixed assets'!$R$2:$R$1000))-SUMPRODUCT(('Fixed assets'!$Q$2:$Q$1000=Costs!D$705)*('Fixed assets'!$U$2:$U$1000>Costs!$A764)*('Fixed assets'!$P$2:$P$1000=Costs!$A764)*('Fixed assets'!$S$2:$S$1000))","v":0},{"$f":"E676+SUMPRODUCT(('Fixed assets'!$Q$2:$Q$1000=Costs!E$705)*('Fixed assets'!$U$2:$U$1000>Costs!$A764)*('Fixed assets'!$P$2:$P$1000=Costs!$A764)*('Fixed assets'!$R$2:$R$1000))-SUMPRODUCT(('Fixed assets'!$Q$2:$Q$1000=Costs!E$705)*('Fixed assets'!$U$2:$U$1000>Costs!$A764)*('Fixed assets'!$P$2:$P$1000=Costs!$A764)*('Fixed assets'!$S$2:$S$1000))","v":0},{"$f":"F676+SUMPRODUCT(('Fixed assets'!$Q$2:$Q$1000=Costs!F$705)*('Fixed assets'!$U$2:$U$1000>Costs!$A764)*('Fixed assets'!$P$2:$P$1000=Costs!$A764)*('Fixed assets'!$R$2:$R$1000))-SUMPRODUCT(('Fixed assets'!$Q$2:$Q$1000=Costs!F$705)*('Fixed assets'!$U$2:$U$1000>Costs!$A764)*('Fixed assets'!$P$2:$P$1000=Costs!$A764)*('Fixed assets'!$S$2:$S$1000))","v":0},{"$f":"G676+SUMPRODUCT(('Fixed assets'!$Q$2:$Q$1000=Costs!G$705)*('Fixed assets'!$U$2:$U$1000>Costs!$A764)*('Fixed assets'!$P$2:$P$1000=Costs!$A764)*('Fixed assets'!$R$2:$R$1000))-SUMPRODUCT(('Fixed assets'!$Q$2:$Q$1000=Costs!G$705)*('Fixed assets'!$U$2:$U$1000>Costs!$A764)*('Fixed assets'!$P$2:$P$1000=Costs!$A764)*('Fixed assets'!$S$2:$S$1000))","v":0},{"$f":"H676+SUMPRODUCT(('Fixed assets'!$Q$2:$Q$1000=Costs!H$705)*('Fixed assets'!$U$2:$U$1000>Costs!$A764)*('Fixed assets'!$P$2:$P$1000=Costs!$A764)*('Fixed assets'!$R$2:$R$1000))-SUMPRODUCT(('Fixed assets'!$Q$2:$Q$1000=Costs!H$705)*('Fixed assets'!$U$2:$U$1000>Costs!$A764)*('Fixed assets'!$P$2:$P$1000=Costs!$A764)*('Fixed assets'!$S$2:$S$1000))","v":0},{"$f":"I676+SUMPRODUCT(('Fixed assets'!$Q$2:$Q$1000=Costs!I$705)*('Fixed assets'!$U$2:$U$1000>Costs!$A764)*('Fixed assets'!$P$2:$P$1000=Costs!$A764)*('Fixed assets'!$R$2:$R$1000))-SUMPRODUCT(('Fixed assets'!$Q$2:$Q$1000=Costs!I$705)*('Fixed assets'!$U$2:$U$1000>Costs!$A764)*('Fixed assets'!$P$2:$P$1000=Costs!$A764)*('Fixed assets'!$S$2:$S$1000))","v":0},{"$f":"J676+SUMPRODUCT(('Fixed assets'!$Q$2:$Q$1000=Costs!J$705)*('Fixed assets'!$U$2:$U$1000>Costs!$A764)*('Fixed assets'!$P$2:$P$1000=Costs!$A764)*('Fixed assets'!$R$2:$R$1000))-SUMPRODUCT(('Fixed assets'!$Q$2:$Q$1000=Costs!J$705)*('Fixed assets'!$U$2:$U$1000>Costs!$A764)*('Fixed assets'!$P$2:$P$1000=Costs!$A764)*('Fixed assets'!$S$2:$S$1000))","v":0},{"$f":"K676+SUMPRODUCT(('Fixed assets'!$Q$2:$Q$1000=Costs!K$705)*('Fixed assets'!$U$2:$U$1000>Costs!$A764)*('Fixed assets'!$P$2:$P$1000=Costs!$A764)*('Fixed assets'!$R$2:$R$1000))-SUMPRODUCT(('Fixed assets'!$Q$2:$Q$1000=Costs!K$705)*('Fixed assets'!$U$2:$U$1000>Costs!$A764)*('Fixed assets'!$P$2:$P$1000=Costs!$A764)*('Fixed assets'!$S$2:$S$1000))","v":0},{"$f":"L676+SUMPRODUCT(('Fixed assets'!$Q$2:$Q$1000=Costs!L$705)*('Fixed assets'!$U$2:$U$1000>Costs!$A764)*('Fixed assets'!$P$2:$P$1000=Costs!$A764)*('Fixed assets'!$R$2:$R$1000))-SUMPRODUCT(('Fixed assets'!$Q$2:$Q$1000=Costs!L$705)*('Fixed assets'!$U$2:$U$1000>Costs!$A764)*('Fixed assets'!$P$2:$P$1000=Costs!$A764)*('Fixed assets'!$S$2:$S$1000))","v":0},{"$f":"M676+SUMPRODUCT(('Fixed assets'!$Q$2:$Q$1000=Costs!M$705)*('Fixed assets'!$U$2:$U$1000>Costs!$A764)*('Fixed assets'!$P$2:$P$1000=Costs!$A764)*('Fixed assets'!$R$2:$R$1000))-SUMPRODUCT(('Fixed assets'!$Q$2:$Q$1000=Costs!M$705)*('Fixed assets'!$U$2:$U$1000>Costs!$A764)*('Fixed assets'!$P$2:$P$1000=Costs!$A764)*('Fixed assets'!$S$2:$S$1000))","v":0},{"$f":"N676+SUMPRODUCT(('Fixed assets'!$Q$2:$Q$1000=Costs!N$705)*('Fixed assets'!$U$2:$U$1000>Costs!$A764)*('Fixed assets'!$P$2:$P$1000=Costs!$A764)*('Fixed assets'!$R$2:$R$1000))-SUMPRODUCT(('Fixed assets'!$Q$2:$Q$1000=Costs!N$705)*('Fixed assets'!$U$2:$U$1000>Costs!$A764)*('Fixed assets'!$P$2:$P$1000=Costs!$A764)*('Fixed assets'!$S$2:$S$1000))","v":0},{"$f":"O676+SUMPRODUCT(('Fixed assets'!$Q$2:$Q$1000=Costs!O$705)*('Fixed assets'!$U$2:$U$1000>Costs!$A764)*('Fixed assets'!$P$2:$P$1000=Costs!$A764)*('Fixed assets'!$R$2:$R$1000))-SUMPRODUCT(('Fixed assets'!$Q$2:$Q$1000=Costs!O$705)*('Fixed assets'!$U$2:$U$1000>Costs!$A764)*('Fixed assets'!$P$2:$P$1000=Costs!$A764)*('Fixed assets'!$S$2:$S$1000))","v":0},{"$f":"P676+SUMPRODUCT(('Fixed assets'!$Q$2:$Q$1000=Costs!P$705)*('Fixed assets'!$U$2:$U$1000>Costs!$A764)*('Fixed assets'!$P$2:$P$1000=Costs!$A764)*('Fixed assets'!$R$2:$R$1000))-SUMPRODUCT(('Fixed assets'!$Q$2:$Q$1000=Costs!P$705)*('Fixed assets'!$U$2:$U$1000>Costs!$A764)*('Fixed assets'!$P$2:$P$1000=Costs!$A764)*('Fixed assets'!$S$2:$S$1000))","v":0},{"$f":"Q676+SUMPRODUCT(('Fixed assets'!$Q$2:$Q$1000=Costs!Q$705)*('Fixed assets'!$U$2:$U$1000>Costs!$A764)*('Fixed assets'!$P$2:$P$1000=Costs!$A764)*('Fixed assets'!$R$2:$R$1000))-SUMPRODUCT(('Fixed assets'!$Q$2:$Q$1000=Costs!Q$705)*('Fixed assets'!$U$2:$U$1000>Costs!$A764)*('Fixed assets'!$P$2:$P$1000=Costs!$A764)*('Fixed assets'!$S$2:$S$1000))","v":0},{"$f":"R676+SUMPRODUCT(('Fixed assets'!$Q$2:$Q$1000=Costs!R$705)*('Fixed assets'!$U$2:$U$1000>Costs!$A764)*('Fixed assets'!$P$2:$P$1000=Costs!$A764)*('Fixed assets'!$R$2:$R$1000))-SUMPRODUCT(('Fixed assets'!$Q$2:$Q$1000=Costs!R$705)*('Fixed assets'!$U$2:$U$1000>Costs!$A764)*('Fixed assets'!$P$2:$P$1000=Costs!$A764)*('Fixed assets'!$S$2:$S$1000))","v":0},{"$f":"S676+SUMPRODUCT(('Fixed assets'!$Q$2:$Q$1000=Costs!S$705)*('Fixed assets'!$U$2:$U$1000>Costs!$A764)*('Fixed assets'!$P$2:$P$1000=Costs!$A764)*('Fixed assets'!$R$2:$R$1000))-SUMPRODUCT(('Fixed assets'!$Q$2:$Q$1000=Costs!S$705)*('Fixed assets'!$U$2:$U$1000>Costs!$A764)*('Fixed assets'!$P$2:$P$1000=Costs!$A764)*('Fixed assets'!$S$2:$S$1000))","v":0},{"$f":"T676+SUMPRODUCT(('Fixed assets'!$Q$2:$Q$1000=Costs!T$705)*('Fixed assets'!$U$2:$U$1000>Costs!$A764)*('Fixed assets'!$P$2:$P$1000=Costs!$A764)*('Fixed assets'!$R$2:$R$1000))-SUMPRODUCT(('Fixed assets'!$Q$2:$Q$1000=Costs!T$705)*('Fixed assets'!$U$2:$U$1000>Costs!$A764)*('Fixed assets'!$P$2:$P$1000=Costs!$A764)*('Fixed assets'!$S$2:$S$1000))","v":0},{"$f":"U676+SUMPRODUCT(('Fixed assets'!$Q$2:$Q$1000=Costs!U$705)*('Fixed assets'!$U$2:$U$1000>Costs!$A764)*('Fixed assets'!$P$2:$P$1000=Costs!$A764)*('Fixed assets'!$R$2:$R$1000))-SUMPRODUCT(('Fixed assets'!$Q$2:$Q$1000=Costs!U$705)*('Fixed assets'!$U$2:$U$1000>Costs!$A764)*('Fixed assets'!$P$2:$P$1000=Costs!$A764)*('Fixed assets'!$S$2:$S$1000))","v":0},{"$f":"V676+SUMPRODUCT(('Fixed assets'!$Q$2:$Q$1000=Costs!V$705)*('Fixed assets'!$U$2:$U$1000>Costs!$A764)*('Fixed assets'!$P$2:$P$1000=Costs!$A764)*('Fixed assets'!$R$2:$R$1000))-SUMPRODUCT(('Fixed assets'!$Q$2:$Q$1000=Costs!V$705)*('Fixed assets'!$U$2:$U$1000>Costs!$A764)*('Fixed assets'!$P$2:$P$1000=Costs!$A764)*('Fixed assets'!$S$2:$S$1000))","v":0},{"$f":"W676+SUMPRODUCT(('Fixed assets'!$Q$2:$Q$1000=Costs!W$705)*('Fixed assets'!$U$2:$U$1000>Costs!$A764)*('Fixed assets'!$P$2:$P$1000=Costs!$A764)*('Fixed assets'!$R$2:$R$1000))-SUMPRODUCT(('Fixed assets'!$Q$2:$Q$1000=Costs!W$705)*('Fixed assets'!$U$2:$U$1000>Costs!$A764)*('Fixed assets'!$P$2:$P$1000=Costs!$A764)*('Fixed assets'!$S$2:$S$1000))","v":0},{"$f":"X676+SUMPRODUCT(('Fixed assets'!$Q$2:$Q$1000=Costs!X$705)*('Fixed assets'!$U$2:$U$1000>Costs!$A764)*('Fixed assets'!$P$2:$P$1000=Costs!$A764)*('Fixed assets'!$R$2:$R$1000))-SUMPRODUCT(('Fixed assets'!$Q$2:$Q$1000=Costs!X$705)*('Fixed assets'!$U$2:$U$1000>Costs!$A764)*('Fixed assets'!$P$2:$P$1000=Costs!$A764)*('Fixed assets'!$S$2:$S$1000))","v":0},{"$f":"Y676+SUMPRODUCT(('Fixed assets'!$Q$2:$Q$1000=Costs!Y$705)*('Fixed assets'!$U$2:$U$1000>Costs!$A764)*('Fixed assets'!$P$2:$P$1000=Costs!$A764)*('Fixed assets'!$R$2:$R$1000))-SUMPRODUCT(('Fixed assets'!$Q$2:$Q$1000=Costs!Y$705)*('Fixed assets'!$U$2:$U$1000>Costs!$A764)*('Fixed assets'!$P$2:$P$1000=Costs!$A764)*('Fixed assets'!$S$2:$S$1000))","v":0},{"$f":"Z676+SUMPRODUCT(('Fixed assets'!$Q$2:$Q$1000=Costs!Z$705)*('Fixed assets'!$U$2:$U$1000>Costs!$A764)*('Fixed assets'!$P$2:$P$1000=Costs!$A764)*('Fixed assets'!$R$2:$R$1000))-SUMPRODUCT(('Fixed assets'!$Q$2:$Q$1000=Costs!Z$705)*('Fixed assets'!$U$2:$U$1000>Costs!$A764)*('Fixed assets'!$P$2:$P$1000=Costs!$A764)*('Fixed assets'!$S$2:$S$1000))","v":0},{"$f":"AA676+SUMPRODUCT(('Fixed assets'!$Q$2:$Q$1000=Costs!AA$705)*('Fixed assets'!$U$2:$U$1000>Costs!$A764)*('Fixed assets'!$P$2:$P$1000=Costs!$A764)*('Fixed assets'!$R$2:$R$1000))-SUMPRODUCT(('Fixed assets'!$Q$2:$Q$1000=Costs!AA$705)*('Fixed assets'!$U$2:$U$1000>Costs!$A764)*('Fixed assets'!$P$2:$P$1000=Costs!$A764)*('Fixed assets'!$S$2:$S$1000))","v":0},{"$f":"AB676+SUMPRODUCT(('Fixed assets'!$Q$2:$Q$1000=Costs!AB$705)*('Fixed assets'!$U$2:$U$1000>Costs!$A764)*('Fixed assets'!$P$2:$P$1000=Costs!$A764)*('Fixed assets'!$R$2:$R$1000))-SUMPRODUCT(('Fixed assets'!$Q$2:$Q$1000=Costs!AB$705)*('Fixed assets'!$U$2:$U$1000>Costs!$A764)*('Fixed assets'!$P$2:$P$1000=Costs!$A764)*('Fixed assets'!$S$2:$S$1000))","v":0},{"$f":"AC676+SUMPRODUCT(('Fixed assets'!$Q$2:$Q$1000=Costs!AC$705)*('Fixed assets'!$U$2:$U$1000>Costs!$A764)*('Fixed assets'!$P$2:$P$1000=Costs!$A764)*('Fixed assets'!$R$2:$R$1000))-SUMPRODUCT(('Fixed assets'!$Q$2:$Q$1000=Costs!AC$705)*('Fixed assets'!$U$2:$U$1000>Costs!$A764)*('Fixed assets'!$P$2:$P$1000=Costs!$A764)*('Fixed assets'!$S$2:$S$1000))","v":0},{"$f":"AD676+SUMPRODUCT(('Fixed assets'!$Q$2:$Q$1000=Costs!AD$705)*('Fixed assets'!$U$2:$U$1000>Costs!$A764)*('Fixed assets'!$P$2:$P$1000=Costs!$A764)*('Fixed assets'!$R$2:$R$1000))-SUMPRODUCT(('Fixed assets'!$Q$2:$Q$1000=Costs!AD$705)*('Fixed assets'!$U$2:$U$1000>Costs!$A764)*('Fixed assets'!$P$2:$P$1000=Costs!$A764)*('Fixed assets'!$S$2:$S$1000))","v":0},{"$f":"AE676+SUMPRODUCT(('Fixed assets'!$Q$2:$Q$1000=Costs!AE$705)*('Fixed assets'!$U$2:$U$1000>Costs!$A764)*('Fixed assets'!$P$2:$P$1000=Costs!$A764)*('Fixed assets'!$R$2:$R$1000))-SUMPRODUCT(('Fixed assets'!$Q$2:$Q$1000=Costs!AE$705)*('Fixed assets'!$U$2:$U$1000>Costs!$A764)*('Fixed assets'!$P$2:$P$1000=Costs!$A764)*('Fixed assets'!$S$2:$S$1000))","v":0},{"$f":"AF676+SUMPRODUCT(('Fixed assets'!$Q$2:$Q$1000=Costs!AF$705)*('Fixed assets'!$U$2:$U$1000>Costs!$A764)*('Fixed assets'!$P$2:$P$1000=Costs!$A764)*('Fixed assets'!$R$2:$R$1000))-SUMPRODUCT(('Fixed assets'!$Q$2:$Q$1000=Costs!AF$705)*('Fixed assets'!$U$2:$U$1000>Costs!$A764)*('Fixed assets'!$P$2:$P$1000=Costs!$A764)*('Fixed assets'!$S$2:$S$1000))","v":0},{"$f":"AG676+SUMPRODUCT(('Fixed assets'!$Q$2:$Q$1000=Costs!AG$705)*('Fixed assets'!$U$2:$U$1000>Costs!$A764)*('Fixed assets'!$P$2:$P$1000=Costs!$A764)*('Fixed assets'!$R$2:$R$1000))-SUMPRODUCT(('Fixed assets'!$Q$2:$Q$1000=Costs!AG$705)*('Fixed assets'!$U$2:$U$1000>Costs!$A764)*('Fixed assets'!$P$2:$P$1000=Costs!$A764)*('Fixed assets'!$S$2:$S$1000))","v":0},{"$f":"AH676+SUMPRODUCT(('Fixed assets'!$Q$2:$Q$1000=Costs!AH$705)*('Fixed assets'!$U$2:$U$1000>Costs!$A764)*('Fixed assets'!$P$2:$P$1000=Costs!$A764)*('Fixed assets'!$R$2:$R$1000))-SUMPRODUCT(('Fixed assets'!$Q$2:$Q$1000=Costs!AH$705)*('Fixed assets'!$U$2:$U$1000>Costs!$A764)*('Fixed assets'!$P$2:$P$1000=Costs!$A764)*('Fixed assets'!$S$2:$S$1000))","v":0},{"$f":"AI676+SUMPRODUCT(('Fixed assets'!$Q$2:$Q$1000=Costs!AI$705)*('Fixed assets'!$U$2:$U$1000>Costs!$A764)*('Fixed assets'!$P$2:$P$1000=Costs!$A764)*('Fixed assets'!$R$2:$R$1000))-SUMPRODUCT(('Fixed assets'!$Q$2:$Q$1000=Costs!AI$705)*('Fixed assets'!$U$2:$U$1000>Costs!$A764)*('Fixed assets'!$P$2:$P$1000=Costs!$A764)*('Fixed assets'!$S$2:$S$1000))","v":0},{"$f":"AJ676+SUMPRODUCT(('Fixed assets'!$Q$2:$Q$1000=Costs!AJ$705)*('Fixed assets'!$U$2:$U$1000>Costs!$A764)*('Fixed assets'!$P$2:$P$1000=Costs!$A764)*('Fixed assets'!$R$2:$R$1000))-SUMPRODUCT(('Fixed assets'!$Q$2:$Q$1000=Costs!AJ$705)*('Fixed assets'!$U$2:$U$1000>Costs!$A764)*('Fixed assets'!$P$2:$P$1000=Costs!$A764)*('Fixed assets'!$S$2:$S$1000))","v":0},{"$f":"AK676+SUMPRODUCT(('Fixed assets'!$Q$2:$Q$1000=Costs!AK$705)*('Fixed assets'!$U$2:$U$1000>Costs!$A764)*('Fixed assets'!$P$2:$P$1000=Costs!$A764)*('Fixed assets'!$R$2:$R$1000))-SUMPRODUCT(('Fixed assets'!$Q$2:$Q$1000=Costs!AK$705)*('Fixed assets'!$U$2:$U$1000>Costs!$A764)*('Fixed assets'!$P$2:$P$1000=Costs!$A764)*('Fixed assets'!$S$2:$S$1000))","v":0},{"$f":"AL676+SUMPRODUCT(('Fixed assets'!$Q$2:$Q$1000=Costs!AL$705)*('Fixed assets'!$U$2:$U$1000>Costs!$A764)*('Fixed assets'!$P$2:$P$1000=Costs!$A764)*('Fixed assets'!$R$2:$R$1000))-SUMPRODUCT(('Fixed assets'!$Q$2:$Q$1000=Costs!AL$705)*('Fixed assets'!$U$2:$U$1000>Costs!$A764)*('Fixed assets'!$P$2:$P$1000=Costs!$A764)*('Fixed assets'!$S$2:$S$1000))","v":0},{"$f":"AM676+SUMPRODUCT(('Fixed assets'!$Q$2:$Q$1000=Costs!AM$705)*('Fixed assets'!$U$2:$U$1000>Costs!$A764)*('Fixed assets'!$P$2:$P$1000=Costs!$A764)*('Fixed assets'!$R$2:$R$1000))-SUMPRODUCT(('Fixed assets'!$Q$2:$Q$1000=Costs!AM$705)*('Fixed assets'!$U$2:$U$1000>Costs!$A764)*('Fixed assets'!$P$2:$P$1000=Costs!$A764)*('Fixed assets'!$S$2:$S$1000))","v":0},{"$f":"AN676+SUMPRODUCT(('Fixed assets'!$Q$2:$Q$1000=Costs!AN$705)*('Fixed assets'!$U$2:$U$1000>Costs!$A764)*('Fixed assets'!$P$2:$P$1000=Costs!$A764)*('Fixed assets'!$R$2:$R$1000))-SUMPRODUCT(('Fixed assets'!$Q$2:$Q$1000=Costs!AN$705)*('Fixed assets'!$U$2:$U$1000>Costs!$A764)*('Fixed assets'!$P$2:$P$1000=Costs!$A764)*('Fixed assets'!$S$2:$S$1000))","v":0},{"$f":"AO676+SUMPRODUCT(('Fixed assets'!$Q$2:$Q$1000=Costs!AO$705)*('Fixed assets'!$U$2:$U$1000>Costs!$A764)*('Fixed assets'!$P$2:$P$1000=Costs!$A764)*('Fixed assets'!$R$2:$R$1000))-SUMPRODUCT(('Fixed assets'!$Q$2:$Q$1000=Costs!AO$705)*('Fixed assets'!$U$2:$U$1000>Costs!$A764)*('Fixed assets'!$P$2:$P$1000=Costs!$A764)*('Fixed assets'!$S$2:$S$1000))","v":0},{"$f":"AP676+SUMPRODUCT(('Fixed assets'!$Q$2:$Q$1000=Costs!AP$705)*('Fixed assets'!$U$2:$U$1000>Costs!$A764)*('Fixed assets'!$P$2:$P$1000=Costs!$A764)*('Fixed assets'!$R$2:$R$1000))-SUMPRODUCT(('Fixed assets'!$Q$2:$Q$1000=Costs!AP$705)*('Fixed assets'!$U$2:$U$1000>Costs!$A764)*('Fixed assets'!$P$2:$P$1000=Costs!$A764)*('Fixed assets'!$S$2:$S$1000))","v":0},{"$f":"AQ676+SUMPRODUCT(('Fixed assets'!$Q$2:$Q$1000=Costs!AQ$705)*('Fixed assets'!$U$2:$U$1000>Costs!$A764)*('Fixed assets'!$P$2:$P$1000=Costs!$A764)*('Fixed assets'!$R$2:$R$1000))-SUMPRODUCT(('Fixed assets'!$Q$2:$Q$1000=Costs!AQ$705)*('Fixed assets'!$U$2:$U$1000>Costs!$A764)*('Fixed assets'!$P$2:$P$1000=Costs!$A764)*('Fixed assets'!$S$2:$S$1000))","v":0}]
[2074,0,{"$f":"C677+SUMPRODUCT(('Fixed assets'!$Q$2:$Q$1000=Costs!C$705)*('Fixed assets'!$U$2:$U$1000>Costs!$A765)*('Fixed assets'!$P$2:$P$1000=Costs!$A765)*('Fixed assets'!$R$2:$R$1000))-SUMPRODUCT(('Fixed assets'!$Q$2:$Q$1000=Costs!C$705)*('Fixed assets'!$U$2:$U$1000>Costs!$A765)*('Fixed assets'!$P$2:$P$1000=Costs!$A765)*('Fixed assets'!$S$2:$S$1000))","v":0},{"$f":"D677+SUMPRODUCT(('Fixed assets'!$Q$2:$Q$1000=Costs!D$705)*('Fixed assets'!$U$2:$U$1000>Costs!$A765)*('Fixed assets'!$P$2:$P$1000=Costs!$A765)*('Fixed assets'!$R$2:$R$1000))-SUMPRODUCT(('Fixed assets'!$Q$2:$Q$1000=Costs!D$705)*('Fixed assets'!$U$2:$U$1000>Costs!$A765)*('Fixed assets'!$P$2:$P$1000=Costs!$A765)*('Fixed assets'!$S$2:$S$1000))","v":0},{"$f":"E677+SUMPRODUCT(('Fixed assets'!$Q$2:$Q$1000=Costs!E$705)*('Fixed assets'!$U$2:$U$1000>Costs!$A765)*('Fixed assets'!$P$2:$P$1000=Costs!$A765)*('Fixed assets'!$R$2:$R$1000))-SUMPRODUCT(('Fixed assets'!$Q$2:$Q$1000=Costs!E$705)*('Fixed assets'!$U$2:$U$1000>Costs!$A765)*('Fixed assets'!$P$2:$P$1000=Costs!$A765)*('Fixed assets'!$S$2:$S$1000))","v":0},{"$f":"F677+SUMPRODUCT(('Fixed assets'!$Q$2:$Q$1000=Costs!F$705)*('Fixed assets'!$U$2:$U$1000>Costs!$A765)*('Fixed assets'!$P$2:$P$1000=Costs!$A765)*('Fixed assets'!$R$2:$R$1000))-SUMPRODUCT(('Fixed assets'!$Q$2:$Q$1000=Costs!F$705)*('Fixed assets'!$U$2:$U$1000>Costs!$A765)*('Fixed assets'!$P$2:$P$1000=Costs!$A765)*('Fixed assets'!$S$2:$S$1000))","v":0},{"$f":"G677+SUMPRODUCT(('Fixed assets'!$Q$2:$Q$1000=Costs!G$705)*('Fixed assets'!$U$2:$U$1000>Costs!$A765)*('Fixed assets'!$P$2:$P$1000=Costs!$A765)*('Fixed assets'!$R$2:$R$1000))-SUMPRODUCT(('Fixed assets'!$Q$2:$Q$1000=Costs!G$705)*('Fixed assets'!$U$2:$U$1000>Costs!$A765)*('Fixed assets'!$P$2:$P$1000=Costs!$A765)*('Fixed assets'!$S$2:$S$1000))","v":0},{"$f":"H677+SUMPRODUCT(('Fixed assets'!$Q$2:$Q$1000=Costs!H$705)*('Fixed assets'!$U$2:$U$1000>Costs!$A765)*('Fixed assets'!$P$2:$P$1000=Costs!$A765)*('Fixed assets'!$R$2:$R$1000))-SUMPRODUCT(('Fixed assets'!$Q$2:$Q$1000=Costs!H$705)*('Fixed assets'!$U$2:$U$1000>Costs!$A765)*('Fixed assets'!$P$2:$P$1000=Costs!$A765)*('Fixed assets'!$S$2:$S$1000))","v":0},{"$f":"I677+SUMPRODUCT(('Fixed assets'!$Q$2:$Q$1000=Costs!I$705)*('Fixed assets'!$U$2:$U$1000>Costs!$A765)*('Fixed assets'!$P$2:$P$1000=Costs!$A765)*('Fixed assets'!$R$2:$R$1000))-SUMPRODUCT(('Fixed assets'!$Q$2:$Q$1000=Costs!I$705)*('Fixed assets'!$U$2:$U$1000>Costs!$A765)*('Fixed assets'!$P$2:$P$1000=Costs!$A765)*('Fixed assets'!$S$2:$S$1000))","v":0},{"$f":"J677+SUMPRODUCT(('Fixed assets'!$Q$2:$Q$1000=Costs!J$705)*('Fixed assets'!$U$2:$U$1000>Costs!$A765)*('Fixed assets'!$P$2:$P$1000=Costs!$A765)*('Fixed assets'!$R$2:$R$1000))-SUMPRODUCT(('Fixed assets'!$Q$2:$Q$1000=Costs!J$705)*('Fixed assets'!$U$2:$U$1000>Costs!$A765)*('Fixed assets'!$P$2:$P$1000=Costs!$A765)*('Fixed assets'!$S$2:$S$1000))","v":0},{"$f":"K677+SUMPRODUCT(('Fixed assets'!$Q$2:$Q$1000=Costs!K$705)*('Fixed assets'!$U$2:$U$1000>Costs!$A765)*('Fixed assets'!$P$2:$P$1000=Costs!$A765)*('Fixed assets'!$R$2:$R$1000))-SUMPRODUCT(('Fixed assets'!$Q$2:$Q$1000=Costs!K$705)*('Fixed assets'!$U$2:$U$1000>Costs!$A765)*('Fixed assets'!$P$2:$P$1000=Costs!$A765)*('Fixed assets'!$S$2:$S$1000))","v":0},{"$f":"L677+SUMPRODUCT(('Fixed assets'!$Q$2:$Q$1000=Costs!L$705)*('Fixed assets'!$U$2:$U$1000>Costs!$A765)*('Fixed assets'!$P$2:$P$1000=Costs!$A765)*('Fixed assets'!$R$2:$R$1000))-SUMPRODUCT(('Fixed assets'!$Q$2:$Q$1000=Costs!L$705)*('Fixed assets'!$U$2:$U$1000>Costs!$A765)*('Fixed assets'!$P$2:$P$1000=Costs!$A765)*('Fixed assets'!$S$2:$S$1000))","v":0},{"$f":"M677+SUMPRODUCT(('Fixed assets'!$Q$2:$Q$1000=Costs!M$705)*('Fixed assets'!$U$2:$U$1000>Costs!$A765)*('Fixed assets'!$P$2:$P$1000=Costs!$A765)*('Fixed assets'!$R$2:$R$1000))-SUMPRODUCT(('Fixed assets'!$Q$2:$Q$1000=Costs!M$705)*('Fixed assets'!$U$2:$U$1000>Costs!$A765)*('Fixed assets'!$P$2:$P$1000=Costs!$A765)*('Fixed assets'!$S$2:$S$1000))","v":0},{"$f":"N677+SUMPRODUCT(('Fixed assets'!$Q$2:$Q$1000=Costs!N$705)*('Fixed assets'!$U$2:$U$1000>Costs!$A765)*('Fixed assets'!$P$2:$P$1000=Costs!$A765)*('Fixed assets'!$R$2:$R$1000))-SUMPRODUCT(('Fixed assets'!$Q$2:$Q$1000=Costs!N$705)*('Fixed assets'!$U$2:$U$1000>Costs!$A765)*('Fixed assets'!$P$2:$P$1000=Costs!$A765)*('Fixed assets'!$S$2:$S$1000))","v":0},{"$f":"O677+SUMPRODUCT(('Fixed assets'!$Q$2:$Q$1000=Costs!O$705)*('Fixed assets'!$U$2:$U$1000>Costs!$A765)*('Fixed assets'!$P$2:$P$1000=Costs!$A765)*('Fixed assets'!$R$2:$R$1000))-SUMPRODUCT(('Fixed assets'!$Q$2:$Q$1000=Costs!O$705)*('Fixed assets'!$U$2:$U$1000>Costs!$A765)*('Fixed assets'!$P$2:$P$1000=Costs!$A765)*('Fixed assets'!$S$2:$S$1000))","v":0},{"$f":"P677+SUMPRODUCT(('Fixed assets'!$Q$2:$Q$1000=Costs!P$705)*('Fixed assets'!$U$2:$U$1000>Costs!$A765)*('Fixed assets'!$P$2:$P$1000=Costs!$A765)*('Fixed assets'!$R$2:$R$1000))-SUMPRODUCT(('Fixed assets'!$Q$2:$Q$1000=Costs!P$705)*('Fixed assets'!$U$2:$U$1000>Costs!$A765)*('Fixed assets'!$P$2:$P$1000=Costs!$A765)*('Fixed assets'!$S$2:$S$1000))","v":0},{"$f":"Q677+SUMPRODUCT(('Fixed assets'!$Q$2:$Q$1000=Costs!Q$705)*('Fixed assets'!$U$2:$U$1000>Costs!$A765)*('Fixed assets'!$P$2:$P$1000=Costs!$A765)*('Fixed assets'!$R$2:$R$1000))-SUMPRODUCT(('Fixed assets'!$Q$2:$Q$1000=Costs!Q$705)*('Fixed assets'!$U$2:$U$1000>Costs!$A765)*('Fixed assets'!$P$2:$P$1000=Costs!$A765)*('Fixed assets'!$S$2:$S$1000))","v":0},{"$f":"R677+SUMPRODUCT(('Fixed assets'!$Q$2:$Q$1000=Costs!R$705)*('Fixed assets'!$U$2:$U$1000>Costs!$A765)*('Fixed assets'!$P$2:$P$1000=Costs!$A765)*('Fixed assets'!$R$2:$R$1000))-SUMPRODUCT(('Fixed assets'!$Q$2:$Q$1000=Costs!R$705)*('Fixed assets'!$U$2:$U$1000>Costs!$A765)*('Fixed assets'!$P$2:$P$1000=Costs!$A765)*('Fixed assets'!$S$2:$S$1000))","v":0},{"$f":"S677+SUMPRODUCT(('Fixed assets'!$Q$2:$Q$1000=Costs!S$705)*('Fixed assets'!$U$2:$U$1000>Costs!$A765)*('Fixed assets'!$P$2:$P$1000=Costs!$A765)*('Fixed assets'!$R$2:$R$1000))-SUMPRODUCT(('Fixed assets'!$Q$2:$Q$1000=Costs!S$705)*('Fixed assets'!$U$2:$U$1000>Costs!$A765)*('Fixed assets'!$P$2:$P$1000=Costs!$A765)*('Fixed assets'!$S$2:$S$1000))","v":0},{"$f":"T677+SUMPRODUCT(('Fixed assets'!$Q$2:$Q$1000=Costs!T$705)*('Fixed assets'!$U$2:$U$1000>Costs!$A765)*('Fixed assets'!$P$2:$P$1000=Costs!$A765)*('Fixed assets'!$R$2:$R$1000))-SUMPRODUCT(('Fixed assets'!$Q$2:$Q$1000=Costs!T$705)*('Fixed assets'!$U$2:$U$1000>Costs!$A765)*('Fixed assets'!$P$2:$P$1000=Costs!$A765)*('Fixed assets'!$S$2:$S$1000))","v":0},{"$f":"U677+SUMPRODUCT(('Fixed assets'!$Q$2:$Q$1000=Costs!U$705)*('Fixed assets'!$U$2:$U$1000>Costs!$A765)*('Fixed assets'!$P$2:$P$1000=Costs!$A765)*('Fixed assets'!$R$2:$R$1000))-SUMPRODUCT(('Fixed assets'!$Q$2:$Q$1000=Costs!U$705)*('Fixed assets'!$U$2:$U$1000>Costs!$A765)*('Fixed assets'!$P$2:$P$1000=Costs!$A765)*('Fixed assets'!$S$2:$S$1000))","v":0},{"$f":"V677+SUMPRODUCT(('Fixed assets'!$Q$2:$Q$1000=Costs!V$705)*('Fixed assets'!$U$2:$U$1000>Costs!$A765)*('Fixed assets'!$P$2:$P$1000=Costs!$A765)*('Fixed assets'!$R$2:$R$1000))-SUMPRODUCT(('Fixed assets'!$Q$2:$Q$1000=Costs!V$705)*('Fixed assets'!$U$2:$U$1000>Costs!$A765)*('Fixed assets'!$P$2:$P$1000=Costs!$A765)*('Fixed assets'!$S$2:$S$1000))","v":0},{"$f":"W677+SUMPRODUCT(('Fixed assets'!$Q$2:$Q$1000=Costs!W$705)*('Fixed assets'!$U$2:$U$1000>Costs!$A765)*('Fixed assets'!$P$2:$P$1000=Costs!$A765)*('Fixed assets'!$R$2:$R$1000))-SUMPRODUCT(('Fixed assets'!$Q$2:$Q$1000=Costs!W$705)*('Fixed assets'!$U$2:$U$1000>Costs!$A765)*('Fixed assets'!$P$2:$P$1000=Costs!$A765)*('Fixed assets'!$S$2:$S$1000))","v":0},{"$f":"X677+SUMPRODUCT(('Fixed assets'!$Q$2:$Q$1000=Costs!X$705)*('Fixed assets'!$U$2:$U$1000>Costs!$A765)*('Fixed assets'!$P$2:$P$1000=Costs!$A765)*('Fixed assets'!$R$2:$R$1000))-SUMPRODUCT(('Fixed assets'!$Q$2:$Q$1000=Costs!X$705)*('Fixed assets'!$U$2:$U$1000>Costs!$A765)*('Fixed assets'!$P$2:$P$1000=Costs!$A765)*('Fixed assets'!$S$2:$S$1000))","v":0},{"$f":"Y677+SUMPRODUCT(('Fixed assets'!$Q$2:$Q$1000=Costs!Y$705)*('Fixed assets'!$U$2:$U$1000>Costs!$A765)*('Fixed assets'!$P$2:$P$1000=Costs!$A765)*('Fixed assets'!$R$2:$R$1000))-SUMPRODUCT(('Fixed assets'!$Q$2:$Q$1000=Costs!Y$705)*('Fixed assets'!$U$2:$U$1000>Costs!$A765)*('Fixed assets'!$P$2:$P$1000=Costs!$A765)*('Fixed assets'!$S$2:$S$1000))","v":0},{"$f":"Z677+SUMPRODUCT(('Fixed assets'!$Q$2:$Q$1000=Costs!Z$705)*('Fixed assets'!$U$2:$U$1000>Costs!$A765)*('Fixed assets'!$P$2:$P$1000=Costs!$A765)*('Fixed assets'!$R$2:$R$1000))-SUMPRODUCT(('Fixed assets'!$Q$2:$Q$1000=Costs!Z$705)*('Fixed assets'!$U$2:$U$1000>Costs!$A765)*('Fixed assets'!$P$2:$P$1000=Costs!$A765)*('Fixed assets'!$S$2:$S$1000))","v":0},{"$f":"AA677+SUMPRODUCT(('Fixed assets'!$Q$2:$Q$1000=Costs!AA$705)*('Fixed assets'!$U$2:$U$1000>Costs!$A765)*('Fixed assets'!$P$2:$P$1000=Costs!$A765)*('Fixed assets'!$R$2:$R$1000))-SUMPRODUCT(('Fixed assets'!$Q$2:$Q$1000=Costs!AA$705)*('Fixed assets'!$U$2:$U$1000>Costs!$A765)*('Fixed assets'!$P$2:$P$1000=Costs!$A765)*('Fixed assets'!$S$2:$S$1000))","v":0},{"$f":"AB677+SUMPRODUCT(('Fixed assets'!$Q$2:$Q$1000=Costs!AB$705)*('Fixed assets'!$U$2:$U$1000>Costs!$A765)*('Fixed assets'!$P$2:$P$1000=Costs!$A765)*('Fixed assets'!$R$2:$R$1000))-SUMPRODUCT(('Fixed assets'!$Q$2:$Q$1000=Costs!AB$705)*('Fixed assets'!$U$2:$U$1000>Costs!$A765)*('Fixed assets'!$P$2:$P$1000=Costs!$A765)*('Fixed assets'!$S$2:$S$1000))","v":0},{"$f":"AC677+SUMPRODUCT(('Fixed assets'!$Q$2:$Q$1000=Costs!AC$705)*('Fixed assets'!$U$2:$U$1000>Costs!$A765)*('Fixed assets'!$P$2:$P$1000=Costs!$A765)*('Fixed assets'!$R$2:$R$1000))-SUMPRODUCT(('Fixed assets'!$Q$2:$Q$1000=Costs!AC$705)*('Fixed assets'!$U$2:$U$1000>Costs!$A765)*('Fixed assets'!$P$2:$P$1000=Costs!$A765)*('Fixed assets'!$S$2:$S$1000))","v":0},{"$f":"AD677+SUMPRODUCT(('Fixed assets'!$Q$2:$Q$1000=Costs!AD$705)*('Fixed assets'!$U$2:$U$1000>Costs!$A765)*('Fixed assets'!$P$2:$P$1000=Costs!$A765)*('Fixed assets'!$R$2:$R$1000))-SUMPRODUCT(('Fixed assets'!$Q$2:$Q$1000=Costs!AD$705)*('Fixed assets'!$U$2:$U$1000>Costs!$A765)*('Fixed assets'!$P$2:$P$1000=Costs!$A765)*('Fixed assets'!$S$2:$S$1000))","v":0},{"$f":"AE677+SUMPRODUCT(('Fixed assets'!$Q$2:$Q$1000=Costs!AE$705)*('Fixed assets'!$U$2:$U$1000>Costs!$A765)*('Fixed assets'!$P$2:$P$1000=Costs!$A765)*('Fixed assets'!$R$2:$R$1000))-SUMPRODUCT(('Fixed assets'!$Q$2:$Q$1000=Costs!AE$705)*('Fixed assets'!$U$2:$U$1000>Costs!$A765)*('Fixed assets'!$P$2:$P$1000=Costs!$A765)*('Fixed assets'!$S$2:$S$1000))","v":0},{"$f":"AF677+SUMPRODUCT(('Fixed assets'!$Q$2:$Q$1000=Costs!AF$705)*('Fixed assets'!$U$2:$U$1000>Costs!$A765)*('Fixed assets'!$P$2:$P$1000=Costs!$A765)*('Fixed assets'!$R$2:$R$1000))-SUMPRODUCT(('Fixed assets'!$Q$2:$Q$1000=Costs!AF$705)*('Fixed assets'!$U$2:$U$1000>Costs!$A765)*('Fixed assets'!$P$2:$P$1000=Costs!$A765)*('Fixed assets'!$S$2:$S$1000))","v":0},{"$f":"AG677+SUMPRODUCT(('Fixed assets'!$Q$2:$Q$1000=Costs!AG$705)*('Fixed assets'!$U$2:$U$1000>Costs!$A765)*('Fixed assets'!$P$2:$P$1000=Costs!$A765)*('Fixed assets'!$R$2:$R$1000))-SUMPRODUCT(('Fixed assets'!$Q$2:$Q$1000=Costs!AG$705)*('Fixed assets'!$U$2:$U$1000>Costs!$A765)*('Fixed assets'!$P$2:$P$1000=Costs!$A765)*('Fixed assets'!$S$2:$S$1000))","v":0},{"$f":"AH677+SUMPRODUCT(('Fixed assets'!$Q$2:$Q$1000=Costs!AH$705)*('Fixed assets'!$U$2:$U$1000>Costs!$A765)*('Fixed assets'!$P$2:$P$1000=Costs!$A765)*('Fixed assets'!$R$2:$R$1000))-SUMPRODUCT(('Fixed assets'!$Q$2:$Q$1000=Costs!AH$705)*('Fixed assets'!$U$2:$U$1000>Costs!$A765)*('Fixed assets'!$P$2:$P$1000=Costs!$A765)*('Fixed assets'!$S$2:$S$1000))","v":0},{"$f":"AI677+SUMPRODUCT(('Fixed assets'!$Q$2:$Q$1000=Costs!AI$705)*('Fixed assets'!$U$2:$U$1000>Costs!$A765)*('Fixed assets'!$P$2:$P$1000=Costs!$A765)*('Fixed assets'!$R$2:$R$1000))-SUMPRODUCT(('Fixed assets'!$Q$2:$Q$1000=Costs!AI$705)*('Fixed assets'!$U$2:$U$1000>Costs!$A765)*('Fixed assets'!$P$2:$P$1000=Costs!$A765)*('Fixed assets'!$S$2:$S$1000))","v":0},{"$f":"AJ677+SUMPRODUCT(('Fixed assets'!$Q$2:$Q$1000=Costs!AJ$705)*('Fixed assets'!$U$2:$U$1000>Costs!$A765)*('Fixed assets'!$P$2:$P$1000=Costs!$A765)*('Fixed assets'!$R$2:$R$1000))-SUMPRODUCT(('Fixed assets'!$Q$2:$Q$1000=Costs!AJ$705)*('Fixed assets'!$U$2:$U$1000>Costs!$A765)*('Fixed assets'!$P$2:$P$1000=Costs!$A765)*('Fixed assets'!$S$2:$S$1000))","v":0},{"$f":"AK677+SUMPRODUCT(('Fixed assets'!$Q$2:$Q$1000=Costs!AK$705)*('Fixed assets'!$U$2:$U$1000>Costs!$A765)*('Fixed assets'!$P$2:$P$1000=Costs!$A765)*('Fixed assets'!$R$2:$R$1000))-SUMPRODUCT(('Fixed assets'!$Q$2:$Q$1000=Costs!AK$705)*('Fixed assets'!$U$2:$U$1000>Costs!$A765)*('Fixed assets'!$P$2:$P$1000=Costs!$A765)*('Fixed assets'!$S$2:$S$1000))","v":0},{"$f":"AL677+SUMPRODUCT(('Fixed assets'!$Q$2:$Q$1000=Costs!AL$705)*('Fixed assets'!$U$2:$U$1000>Costs!$A765)*('Fixed assets'!$P$2:$P$1000=Costs!$A765)*('Fixed assets'!$R$2:$R$1000))-SUMPRODUCT(('Fixed assets'!$Q$2:$Q$1000=Costs!AL$705)*('Fixed assets'!$U$2:$U$1000>Costs!$A765)*('Fixed assets'!$P$2:$P$1000=Costs!$A765)*('Fixed assets'!$S$2:$S$1000))","v":0},{"$f":"AM677+SUMPRODUCT(('Fixed assets'!$Q$2:$Q$1000=Costs!AM$705)*('Fixed assets'!$U$2:$U$1000>Costs!$A765)*('Fixed assets'!$P$2:$P$1000=Costs!$A765)*('Fixed assets'!$R$2:$R$1000))-SUMPRODUCT(('Fixed assets'!$Q$2:$Q$1000=Costs!AM$705)*('Fixed assets'!$U$2:$U$1000>Costs!$A765)*('Fixed assets'!$P$2:$P$1000=Costs!$A765)*('Fixed assets'!$S$2:$S$1000))","v":0},{"$f":"AN677+SUMPRODUCT(('Fixed assets'!$Q$2:$Q$1000=Costs!AN$705)*('Fixed assets'!$U$2:$U$1000>Costs!$A765)*('Fixed assets'!$P$2:$P$1000=Costs!$A765)*('Fixed assets'!$R$2:$R$1000))-SUMPRODUCT(('Fixed assets'!$Q$2:$Q$1000=Costs!AN$705)*('Fixed assets'!$U$2:$U$1000>Costs!$A765)*('Fixed assets'!$P$2:$P$1000=Costs!$A765)*('Fixed assets'!$S$2:$S$1000))","v":0},{"$f":"AO677+SUMPRODUCT(('Fixed assets'!$Q$2:$Q$1000=Costs!AO$705)*('Fixed assets'!$U$2:$U$1000>Costs!$A765)*('Fixed assets'!$P$2:$P$1000=Costs!$A765)*('Fixed assets'!$R$2:$R$1000))-SUMPRODUCT(('Fixed assets'!$Q$2:$Q$1000=Costs!AO$705)*('Fixed assets'!$U$2:$U$1000>Costs!$A765)*('Fixed assets'!$P$2:$P$1000=Costs!$A765)*('Fixed assets'!$S$2:$S$1000))","v":0},{"$f":"AP677+SUMPRODUCT(('Fixed assets'!$Q$2:$Q$1000=Costs!AP$705)*('Fixed assets'!$U$2:$U$1000>Costs!$A765)*('Fixed assets'!$P$2:$P$1000=Costs!$A765)*('Fixed assets'!$R$2:$R$1000))-SUMPRODUCT(('Fixed assets'!$Q$2:$Q$1000=Costs!AP$705)*('Fixed assets'!$U$2:$U$1000>Costs!$A765)*('Fixed assets'!$P$2:$P$1000=Costs!$A765)*('Fixed assets'!$S$2:$S$1000))","v":0},{"$f":"AQ677+SUMPRODUCT(('Fixed assets'!$Q$2:$Q$1000=Costs!AQ$705)*('Fixed assets'!$U$2:$U$1000>Costs!$A765)*('Fixed assets'!$P$2:$P$1000=Costs!$A765)*('Fixed assets'!$R$2:$R$1000))-SUMPRODUCT(('Fixed assets'!$Q$2:$Q$1000=Costs!AQ$705)*('Fixed assets'!$U$2:$U$1000>Costs!$A765)*('Fixed assets'!$P$2:$P$1000=Costs!$A765)*('Fixed assets'!$S$2:$S$1000))","v":0}]
[2075,0,{"$f":"C678+SUMPRODUCT(('Fixed assets'!$Q$2:$Q$1000=Costs!C$705)*('Fixed assets'!$U$2:$U$1000>Costs!$A766)*('Fixed assets'!$P$2:$P$1000=Costs!$A766)*('Fixed assets'!$R$2:$R$1000))-SUMPRODUCT(('Fixed assets'!$Q$2:$Q$1000=Costs!C$705)*('Fixed assets'!$U$2:$U$1000>Costs!$A766)*('Fixed assets'!$P$2:$P$1000=Costs!$A766)*('Fixed assets'!$S$2:$S$1000))","v":0},{"$f":"D678+SUMPRODUCT(('Fixed assets'!$Q$2:$Q$1000=Costs!D$705)*('Fixed assets'!$U$2:$U$1000>Costs!$A766)*('Fixed assets'!$P$2:$P$1000=Costs!$A766)*('Fixed assets'!$R$2:$R$1000))-SUMPRODUCT(('Fixed assets'!$Q$2:$Q$1000=Costs!D$705)*('Fixed assets'!$U$2:$U$1000>Costs!$A766)*('Fixed assets'!$P$2:$P$1000=Costs!$A766)*('Fixed assets'!$S$2:$S$1000))","v":0},{"$f":"E678+SUMPRODUCT(('Fixed assets'!$Q$2:$Q$1000=Costs!E$705)*('Fixed assets'!$U$2:$U$1000>Costs!$A766)*('Fixed assets'!$P$2:$P$1000=Costs!$A766)*('Fixed assets'!$R$2:$R$1000))-SUMPRODUCT(('Fixed assets'!$Q$2:$Q$1000=Costs!E$705)*('Fixed assets'!$U$2:$U$1000>Costs!$A766)*('Fixed assets'!$P$2:$P$1000=Costs!$A766)*('Fixed assets'!$S$2:$S$1000))","v":0},{"$f":"F678+SUMPRODUCT(('Fixed assets'!$Q$2:$Q$1000=Costs!F$705)*('Fixed assets'!$U$2:$U$1000>Costs!$A766)*('Fixed assets'!$P$2:$P$1000=Costs!$A766)*('Fixed assets'!$R$2:$R$1000))-SUMPRODUCT(('Fixed assets'!$Q$2:$Q$1000=Costs!F$705)*('Fixed assets'!$U$2:$U$1000>Costs!$A766)*('Fixed assets'!$P$2:$P$1000=Costs!$A766)*('Fixed assets'!$S$2:$S$1000))","v":0},{"$f":"G678+SUMPRODUCT(('Fixed assets'!$Q$2:$Q$1000=Costs!G$705)*('Fixed assets'!$U$2:$U$1000>Costs!$A766)*('Fixed assets'!$P$2:$P$1000=Costs!$A766)*('Fixed assets'!$R$2:$R$1000))-SUMPRODUCT(('Fixed assets'!$Q$2:$Q$1000=Costs!G$705)*('Fixed assets'!$U$2:$U$1000>Costs!$A766)*('Fixed assets'!$P$2:$P$1000=Costs!$A766)*('Fixed assets'!$S$2:$S$1000))","v":0},{"$f":"H678+SUMPRODUCT(('Fixed assets'!$Q$2:$Q$1000=Costs!H$705)*('Fixed assets'!$U$2:$U$1000>Costs!$A766)*('Fixed assets'!$P$2:$P$1000=Costs!$A766)*('Fixed assets'!$R$2:$R$1000))-SUMPRODUCT(('Fixed assets'!$Q$2:$Q$1000=Costs!H$705)*('Fixed assets'!$U$2:$U$1000>Costs!$A766)*('Fixed assets'!$P$2:$P$1000=Costs!$A766)*('Fixed assets'!$S$2:$S$1000))","v":0},{"$f":"I678+SUMPRODUCT(('Fixed assets'!$Q$2:$Q$1000=Costs!I$705)*('Fixed assets'!$U$2:$U$1000>Costs!$A766)*('Fixed assets'!$P$2:$P$1000=Costs!$A766)*('Fixed assets'!$R$2:$R$1000))-SUMPRODUCT(('Fixed assets'!$Q$2:$Q$1000=Costs!I$705)*('Fixed assets'!$U$2:$U$1000>Costs!$A766)*('Fixed assets'!$P$2:$P$1000=Costs!$A766)*('Fixed assets'!$S$2:$S$1000))","v":0},{"$f":"J678+SUMPRODUCT(('Fixed assets'!$Q$2:$Q$1000=Costs!J$705)*('Fixed assets'!$U$2:$U$1000>Costs!$A766)*('Fixed assets'!$P$2:$P$1000=Costs!$A766)*('Fixed assets'!$R$2:$R$1000))-SUMPRODUCT(('Fixed assets'!$Q$2:$Q$1000=Costs!J$705)*('Fixed assets'!$U$2:$U$1000>Costs!$A766)*('Fixed assets'!$P$2:$P$1000=Costs!$A766)*('Fixed assets'!$S$2:$S$1000))","v":0},{"$f":"K678+SUMPRODUCT(('Fixed assets'!$Q$2:$Q$1000=Costs!K$705)*('Fixed assets'!$U$2:$U$1000>Costs!$A766)*('Fixed assets'!$P$2:$P$1000=Costs!$A766)*('Fixed assets'!$R$2:$R$1000))-SUMPRODUCT(('Fixed assets'!$Q$2:$Q$1000=Costs!K$705)*('Fixed assets'!$U$2:$U$1000>Costs!$A766)*('Fixed assets'!$P$2:$P$1000=Costs!$A766)*('Fixed assets'!$S$2:$S$1000))","v":0},{"$f":"L678+SUMPRODUCT(('Fixed assets'!$Q$2:$Q$1000=Costs!L$705)*('Fixed assets'!$U$2:$U$1000>Costs!$A766)*('Fixed assets'!$P$2:$P$1000=Costs!$A766)*('Fixed assets'!$R$2:$R$1000))-SUMPRODUCT(('Fixed assets'!$Q$2:$Q$1000=Costs!L$705)*('Fixed assets'!$U$2:$U$1000>Costs!$A766)*('Fixed assets'!$P$2:$P$1000=Costs!$A766)*('Fixed assets'!$S$2:$S$1000))","v":0},{"$f":"M678+SUMPRODUCT(('Fixed assets'!$Q$2:$Q$1000=Costs!M$705)*('Fixed assets'!$U$2:$U$1000>Costs!$A766)*('Fixed assets'!$P$2:$P$1000=Costs!$A766)*('Fixed assets'!$R$2:$R$1000))-SUMPRODUCT(('Fixed assets'!$Q$2:$Q$1000=Costs!M$705)*('Fixed assets'!$U$2:$U$1000>Costs!$A766)*('Fixed assets'!$P$2:$P$1000=Costs!$A766)*('Fixed assets'!$S$2:$S$1000))","v":0},{"$f":"N678+SUMPRODUCT(('Fixed assets'!$Q$2:$Q$1000=Costs!N$705)*('Fixed assets'!$U$2:$U$1000>Costs!$A766)*('Fixed assets'!$P$2:$P$1000=Costs!$A766)*('Fixed assets'!$R$2:$R$1000))-SUMPRODUCT(('Fixed assets'!$Q$2:$Q$1000=Costs!N$705)*('Fixed assets'!$U$2:$U$1000>Costs!$A766)*('Fixed assets'!$P$2:$P$1000=Costs!$A766)*('Fixed assets'!$S$2:$S$1000))","v":0},{"$f":"O678+SUMPRODUCT(('Fixed assets'!$Q$2:$Q$1000=Costs!O$705)*('Fixed assets'!$U$2:$U$1000>Costs!$A766)*('Fixed assets'!$P$2:$P$1000=Costs!$A766)*('Fixed assets'!$R$2:$R$1000))-SUMPRODUCT(('Fixed assets'!$Q$2:$Q$1000=Costs!O$705)*('Fixed assets'!$U$2:$U$1000>Costs!$A766)*('Fixed assets'!$P$2:$P$1000=Costs!$A766)*('Fixed assets'!$S$2:$S$1000))","v":0},{"$f":"P678+SUMPRODUCT(('Fixed assets'!$Q$2:$Q$1000=Costs!P$705)*('Fixed assets'!$U$2:$U$1000>Costs!$A766)*('Fixed assets'!$P$2:$P$1000=Costs!$A766)*('Fixed assets'!$R$2:$R$1000))-SUMPRODUCT(('Fixed assets'!$Q$2:$Q$1000=Costs!P$705)*('Fixed assets'!$U$2:$U$1000>Costs!$A766)*('Fixed assets'!$P$2:$P$1000=Costs!$A766)*('Fixed assets'!$S$2:$S$1000))","v":0},{"$f":"Q678+SUMPRODUCT(('Fixed assets'!$Q$2:$Q$1000=Costs!Q$705)*('Fixed assets'!$U$2:$U$1000>Costs!$A766)*('Fixed assets'!$P$2:$P$1000=Costs!$A766)*('Fixed assets'!$R$2:$R$1000))-SUMPRODUCT(('Fixed assets'!$Q$2:$Q$1000=Costs!Q$705)*('Fixed assets'!$U$2:$U$1000>Costs!$A766)*('Fixed assets'!$P$2:$P$1000=Costs!$A766)*('Fixed assets'!$S$2:$S$1000))","v":0},{"$f":"R678+SUMPRODUCT(('Fixed assets'!$Q$2:$Q$1000=Costs!R$705)*('Fixed assets'!$U$2:$U$1000>Costs!$A766)*('Fixed assets'!$P$2:$P$1000=Costs!$A766)*('Fixed assets'!$R$2:$R$1000))-SUMPRODUCT(('Fixed assets'!$Q$2:$Q$1000=Costs!R$705)*('Fixed assets'!$U$2:$U$1000>Costs!$A766)*('Fixed assets'!$P$2:$P$1000=Costs!$A766)*('Fixed assets'!$S$2:$S$1000))","v":0},{"$f":"S678+SUMPRODUCT(('Fixed assets'!$Q$2:$Q$1000=Costs!S$705)*('Fixed assets'!$U$2:$U$1000>Costs!$A766)*('Fixed assets'!$P$2:$P$1000=Costs!$A766)*('Fixed assets'!$R$2:$R$1000))-SUMPRODUCT(('Fixed assets'!$Q$2:$Q$1000=Costs!S$705)*('Fixed assets'!$U$2:$U$1000>Costs!$A766)*('Fixed assets'!$P$2:$P$1000=Costs!$A766)*('Fixed assets'!$S$2:$S$1000))","v":0},{"$f":"T678+SUMPRODUCT(('Fixed assets'!$Q$2:$Q$1000=Costs!T$705)*('Fixed assets'!$U$2:$U$1000>Costs!$A766)*('Fixed assets'!$P$2:$P$1000=Costs!$A766)*('Fixed assets'!$R$2:$R$1000))-SUMPRODUCT(('Fixed assets'!$Q$2:$Q$1000=Costs!T$705)*('Fixed assets'!$U$2:$U$1000>Costs!$A766)*('Fixed assets'!$P$2:$P$1000=Costs!$A766)*('Fixed assets'!$S$2:$S$1000))","v":0},{"$f":"U678+SUMPRODUCT(('Fixed assets'!$Q$2:$Q$1000=Costs!U$705)*('Fixed assets'!$U$2:$U$1000>Costs!$A766)*('Fixed assets'!$P$2:$P$1000=Costs!$A766)*('Fixed assets'!$R$2:$R$1000))-SUMPRODUCT(('Fixed assets'!$Q$2:$Q$1000=Costs!U$705)*('Fixed assets'!$U$2:$U$1000>Costs!$A766)*('Fixed assets'!$P$2:$P$1000=Costs!$A766)*('Fixed assets'!$S$2:$S$1000))","v":0},{"$f":"V678+SUMPRODUCT(('Fixed assets'!$Q$2:$Q$1000=Costs!V$705)*('Fixed assets'!$U$2:$U$1000>Costs!$A766)*('Fixed assets'!$P$2:$P$1000=Costs!$A766)*('Fixed assets'!$R$2:$R$1000))-SUMPRODUCT(('Fixed assets'!$Q$2:$Q$1000=Costs!V$705)*('Fixed assets'!$U$2:$U$1000>Costs!$A766)*('Fixed assets'!$P$2:$P$1000=Costs!$A766)*('Fixed assets'!$S$2:$S$1000))","v":0},{"$f":"W678+SUMPRODUCT(('Fixed assets'!$Q$2:$Q$1000=Costs!W$705)*('Fixed assets'!$U$2:$U$1000>Costs!$A766)*('Fixed assets'!$P$2:$P$1000=Costs!$A766)*('Fixed assets'!$R$2:$R$1000))-SUMPRODUCT(('Fixed assets'!$Q$2:$Q$1000=Costs!W$705)*('Fixed assets'!$U$2:$U$1000>Costs!$A766)*('Fixed assets'!$P$2:$P$1000=Costs!$A766)*('Fixed assets'!$S$2:$S$1000))","v":0},{"$f":"X678+SUMPRODUCT(('Fixed assets'!$Q$2:$Q$1000=Costs!X$705)*('Fixed assets'!$U$2:$U$1000>Costs!$A766)*('Fixed assets'!$P$2:$P$1000=Costs!$A766)*('Fixed assets'!$R$2:$R$1000))-SUMPRODUCT(('Fixed assets'!$Q$2:$Q$1000=Costs!X$705)*('Fixed assets'!$U$2:$U$1000>Costs!$A766)*('Fixed assets'!$P$2:$P$1000=Costs!$A766)*('Fixed assets'!$S$2:$S$1000))","v":0},{"$f":"Y678+SUMPRODUCT(('Fixed assets'!$Q$2:$Q$1000=Costs!Y$705)*('Fixed assets'!$U$2:$U$1000>Costs!$A766)*('Fixed assets'!$P$2:$P$1000=Costs!$A766)*('Fixed assets'!$R$2:$R$1000))-SUMPRODUCT(('Fixed assets'!$Q$2:$Q$1000=Costs!Y$705)*('Fixed assets'!$U$2:$U$1000>Costs!$A766)*('Fixed assets'!$P$2:$P$1000=Costs!$A766)*('Fixed assets'!$S$2:$S$1000))","v":0},{"$f":"Z678+SUMPRODUCT(('Fixed assets'!$Q$2:$Q$1000=Costs!Z$705)*('Fixed assets'!$U$2:$U$1000>Costs!$A766)*('Fixed assets'!$P$2:$P$1000=Costs!$A766)*('Fixed assets'!$R$2:$R$1000))-SUMPRODUCT(('Fixed assets'!$Q$2:$Q$1000=Costs!Z$705)*('Fixed assets'!$U$2:$U$1000>Costs!$A766)*('Fixed assets'!$P$2:$P$1000=Costs!$A766)*('Fixed assets'!$S$2:$S$1000))","v":0},{"$f":"AA678+SUMPRODUCT(('Fixed assets'!$Q$2:$Q$1000=Costs!AA$705)*('Fixed assets'!$U$2:$U$1000>Costs!$A766)*('Fixed assets'!$P$2:$P$1000=Costs!$A766)*('Fixed assets'!$R$2:$R$1000))-SUMPRODUCT(('Fixed assets'!$Q$2:$Q$1000=Costs!AA$705)*('Fixed assets'!$U$2:$U$1000>Costs!$A766)*('Fixed assets'!$P$2:$P$1000=Costs!$A766)*('Fixed assets'!$S$2:$S$1000))","v":0},{"$f":"AB678+SUMPRODUCT(('Fixed assets'!$Q$2:$Q$1000=Costs!AB$705)*('Fixed assets'!$U$2:$U$1000>Costs!$A766)*('Fixed assets'!$P$2:$P$1000=Costs!$A766)*('Fixed assets'!$R$2:$R$1000))-SUMPRODUCT(('Fixed assets'!$Q$2:$Q$1000=Costs!AB$705)*('Fixed assets'!$U$2:$U$1000>Costs!$A766)*('Fixed assets'!$P$2:$P$1000=Costs!$A766)*('Fixed assets'!$S$2:$S$1000))","v":0},{"$f":"AC678+SUMPRODUCT(('Fixed assets'!$Q$2:$Q$1000=Costs!AC$705)*('Fixed assets'!$U$2:$U$1000>Costs!$A766)*('Fixed assets'!$P$2:$P$1000=Costs!$A766)*('Fixed assets'!$R$2:$R$1000))-SUMPRODUCT(('Fixed assets'!$Q$2:$Q$1000=Costs!AC$705)*('Fixed assets'!$U$2:$U$1000>Costs!$A766)*('Fixed assets'!$P$2:$P$1000=Costs!$A766)*('Fixed assets'!$S$2:$S$1000))","v":0},{"$f":"AD678+SUMPRODUCT(('Fixed assets'!$Q$2:$Q$1000=Costs!AD$705)*('Fixed assets'!$U$2:$U$1000>Costs!$A766)*('Fixed assets'!$P$2:$P$1000=Costs!$A766)*('Fixed assets'!$R$2:$R$1000))-SUMPRODUCT(('Fixed assets'!$Q$2:$Q$1000=Costs!AD$705)*('Fixed assets'!$U$2:$U$1000>Costs!$A766)*('Fixed assets'!$P$2:$P$1000=Costs!$A766)*('Fixed assets'!$S$2:$S$1000))","v":0},{"$f":"AE678+SUMPRODUCT(('Fixed assets'!$Q$2:$Q$1000=Costs!AE$705)*('Fixed assets'!$U$2:$U$1000>Costs!$A766)*('Fixed assets'!$P$2:$P$1000=Costs!$A766)*('Fixed assets'!$R$2:$R$1000))-SUMPRODUCT(('Fixed assets'!$Q$2:$Q$1000=Costs!AE$705)*('Fixed assets'!$U$2:$U$1000>Costs!$A766)*('Fixed assets'!$P$2:$P$1000=Costs!$A766)*('Fixed assets'!$S$2:$S$1000))","v":0},{"$f":"AF678+SUMPRODUCT(('Fixed assets'!$Q$2:$Q$1000=Costs!AF$705)*('Fixed assets'!$U$2:$U$1000>Costs!$A766)*('Fixed assets'!$P$2:$P$1000=Costs!$A766)*('Fixed assets'!$R$2:$R$1000))-SUMPRODUCT(('Fixed assets'!$Q$2:$Q$1000=Costs!AF$705)*('Fixed assets'!$U$2:$U$1000>Costs!$A766)*('Fixed assets'!$P$2:$P$1000=Costs!$A766)*('Fixed assets'!$S$2:$S$1000))","v":0},{"$f":"AG678+SUMPRODUCT(('Fixed assets'!$Q$2:$Q$1000=Costs!AG$705)*('Fixed assets'!$U$2:$U$1000>Costs!$A766)*('Fixed assets'!$P$2:$P$1000=Costs!$A766)*('Fixed assets'!$R$2:$R$1000))-SUMPRODUCT(('Fixed assets'!$Q$2:$Q$1000=Costs!AG$705)*('Fixed assets'!$U$2:$U$1000>Costs!$A766)*('Fixed assets'!$P$2:$P$1000=Costs!$A766)*('Fixed assets'!$S$2:$S$1000))","v":0},{"$f":"AH678+SUMPRODUCT(('Fixed assets'!$Q$2:$Q$1000=Costs!AH$705)*('Fixed assets'!$U$2:$U$1000>Costs!$A766)*('Fixed assets'!$P$2:$P$1000=Costs!$A766)*('Fixed assets'!$R$2:$R$1000))-SUMPRODUCT(('Fixed assets'!$Q$2:$Q$1000=Costs!AH$705)*('Fixed assets'!$U$2:$U$1000>Costs!$A766)*('Fixed assets'!$P$2:$P$1000=Costs!$A766)*('Fixed assets'!$S$2:$S$1000))","v":0},{"$f":"AI678+SUMPRODUCT(('Fixed assets'!$Q$2:$Q$1000=Costs!AI$705)*('Fixed assets'!$U$2:$U$1000>Costs!$A766)*('Fixed assets'!$P$2:$P$1000=Costs!$A766)*('Fixed assets'!$R$2:$R$1000))-SUMPRODUCT(('Fixed assets'!$Q$2:$Q$1000=Costs!AI$705)*('Fixed assets'!$U$2:$U$1000>Costs!$A766)*('Fixed assets'!$P$2:$P$1000=Costs!$A766)*('Fixed assets'!$S$2:$S$1000))","v":0},{"$f":"AJ678+SUMPRODUCT(('Fixed assets'!$Q$2:$Q$1000=Costs!AJ$705)*('Fixed assets'!$U$2:$U$1000>Costs!$A766)*('Fixed assets'!$P$2:$P$1000=Costs!$A766)*('Fixed assets'!$R$2:$R$1000))-SUMPRODUCT(('Fixed assets'!$Q$2:$Q$1000=Costs!AJ$705)*('Fixed assets'!$U$2:$U$1000>Costs!$A766)*('Fixed assets'!$P$2:$P$1000=Costs!$A766)*('Fixed assets'!$S$2:$S$1000))","v":0},{"$f":"AK678+SUMPRODUCT(('Fixed assets'!$Q$2:$Q$1000=Costs!AK$705)*('Fixed assets'!$U$2:$U$1000>Costs!$A766)*('Fixed assets'!$P$2:$P$1000=Costs!$A766)*('Fixed assets'!$R$2:$R$1000))-SUMPRODUCT(('Fixed assets'!$Q$2:$Q$1000=Costs!AK$705)*('Fixed assets'!$U$2:$U$1000>Costs!$A766)*('Fixed assets'!$P$2:$P$1000=Costs!$A766)*('Fixed assets'!$S$2:$S$1000))","v":0},{"$f":"AL678+SUMPRODUCT(('Fixed assets'!$Q$2:$Q$1000=Costs!AL$705)*('Fixed assets'!$U$2:$U$1000>Costs!$A766)*('Fixed assets'!$P$2:$P$1000=Costs!$A766)*('Fixed assets'!$R$2:$R$1000))-SUMPRODUCT(('Fixed assets'!$Q$2:$Q$1000=Costs!AL$705)*('Fixed assets'!$U$2:$U$1000>Costs!$A766)*('Fixed assets'!$P$2:$P$1000=Costs!$A766)*('Fixed assets'!$S$2:$S$1000))","v":0},{"$f":"AM678+SUMPRODUCT(('Fixed assets'!$Q$2:$Q$1000=Costs!AM$705)*('Fixed assets'!$U$2:$U$1000>Costs!$A766)*('Fixed assets'!$P$2:$P$1000=Costs!$A766)*('Fixed assets'!$R$2:$R$1000))-SUMPRODUCT(('Fixed assets'!$Q$2:$Q$1000=Costs!AM$705)*('Fixed assets'!$U$2:$U$1000>Costs!$A766)*('Fixed assets'!$P$2:$P$1000=Costs!$A766)*('Fixed assets'!$S$2:$S$1000))","v":0},{"$f":"AN678+SUMPRODUCT(('Fixed assets'!$Q$2:$Q$1000=Costs!AN$705)*('Fixed assets'!$U$2:$U$1000>Costs!$A766)*('Fixed assets'!$P$2:$P$1000=Costs!$A766)*('Fixed assets'!$R$2:$R$1000))-SUMPRODUCT(('Fixed assets'!$Q$2:$Q$1000=Costs!AN$705)*('Fixed assets'!$U$2:$U$1000>Costs!$A766)*('Fixed assets'!$P$2:$P$1000=Costs!$A766)*('Fixed assets'!$S$2:$S$1000))","v":0},{"$f":"AO678+SUMPRODUCT(('Fixed assets'!$Q$2:$Q$1000=Costs!AO$705)*('Fixed assets'!$U$2:$U$1000>Costs!$A766)*('Fixed assets'!$P$2:$P$1000=Costs!$A766)*('Fixed assets'!$R$2:$R$1000))-SUMPRODUCT(('Fixed assets'!$Q$2:$Q$1000=Costs!AO$705)*('Fixed assets'!$U$2:$U$1000>Costs!$A766)*('Fixed assets'!$P$2:$P$1000=Costs!$A766)*('Fixed assets'!$S$2:$S$1000))","v":0},{"$f":"AP678+SUMPRODUCT(('Fixed assets'!$Q$2:$Q$1000=Costs!AP$705)*('Fixed assets'!$U$2:$U$1000>Costs!$A766)*('Fixed assets'!$P$2:$P$1000=Costs!$A766)*('Fixed assets'!$R$2:$R$1000))-SUMPRODUCT(('Fixed assets'!$Q$2:$Q$1000=Costs!AP$705)*('Fixed assets'!$U$2:$U$1000>Costs!$A766)*('Fixed assets'!$P$2:$P$1000=Costs!$A766)*('Fixed assets'!$S$2:$S$1000))","v":0},{"$f":"AQ678+SUMPRODUCT(('Fixed assets'!$Q$2:$Q$1000=Costs!AQ$705)*('Fixed assets'!$U$2:$U$1000>Costs!$A766)*('Fixed assets'!$P$2:$P$1000=Costs!$A766)*('Fixed assets'!$R$2:$R$1000))-SUMPRODUCT(('Fixed assets'!$Q$2:$Q$1000=Costs!AQ$705)*('Fixed assets'!$U$2:$U$1000>Costs!$A766)*('Fixed assets'!$P$2:$P$1000=Costs!$A766)*('Fixed assets'!$S$2:$S$1000))","v":0}]
[2076,0,{"$f":"C679+SUMPRODUCT(('Fixed assets'!$Q$2:$Q$1000=Costs!C$705)*('Fixed assets'!$U$2:$U$1000>Costs!$A767)*('Fixed assets'!$P$2:$P$1000=Costs!$A767)*('Fixed assets'!$R$2:$R$1000))-SUMPRODUCT(('Fixed assets'!$Q$2:$Q$1000=Costs!C$705)*('Fixed assets'!$U$2:$U$1000>Costs!$A767)*('Fixed assets'!$P$2:$P$1000=Costs!$A767)*('Fixed assets'!$S$2:$S$1000))","v":0},{"$f":"D679+SUMPRODUCT(('Fixed assets'!$Q$2:$Q$1000=Costs!D$705)*('Fixed assets'!$U$2:$U$1000>Costs!$A767)*('Fixed assets'!$P$2:$P$1000=Costs!$A767)*('Fixed assets'!$R$2:$R$1000))-SUMPRODUCT(('Fixed assets'!$Q$2:$Q$1000=Costs!D$705)*('Fixed assets'!$U$2:$U$1000>Costs!$A767)*('Fixed assets'!$P$2:$P$1000=Costs!$A767)*('Fixed assets'!$S$2:$S$1000))","v":0},{"$f":"E679+SUMPRODUCT(('Fixed assets'!$Q$2:$Q$1000=Costs!E$705)*('Fixed assets'!$U$2:$U$1000>Costs!$A767)*('Fixed assets'!$P$2:$P$1000=Costs!$A767)*('Fixed assets'!$R$2:$R$1000))-SUMPRODUCT(('Fixed assets'!$Q$2:$Q$1000=Costs!E$705)*('Fixed assets'!$U$2:$U$1000>Costs!$A767)*('Fixed assets'!$P$2:$P$1000=Costs!$A767)*('Fixed assets'!$S$2:$S$1000))","v":0},{"$f":"F679+SUMPRODUCT(('Fixed assets'!$Q$2:$Q$1000=Costs!F$705)*('Fixed assets'!$U$2:$U$1000>Costs!$A767)*('Fixed assets'!$P$2:$P$1000=Costs!$A767)*('Fixed assets'!$R$2:$R$1000))-SUMPRODUCT(('Fixed assets'!$Q$2:$Q$1000=Costs!F$705)*('Fixed assets'!$U$2:$U$1000>Costs!$A767)*('Fixed assets'!$P$2:$P$1000=Costs!$A767)*('Fixed assets'!$S$2:$S$1000))","v":0},{"$f":"G679+SUMPRODUCT(('Fixed assets'!$Q$2:$Q$1000=Costs!G$705)*('Fixed assets'!$U$2:$U$1000>Costs!$A767)*('Fixed assets'!$P$2:$P$1000=Costs!$A767)*('Fixed assets'!$R$2:$R$1000))-SUMPRODUCT(('Fixed assets'!$Q$2:$Q$1000=Costs!G$705)*('Fixed assets'!$U$2:$U$1000>Costs!$A767)*('Fixed assets'!$P$2:$P$1000=Costs!$A767)*('Fixed assets'!$S$2:$S$1000))","v":0},{"$f":"H679+SUMPRODUCT(('Fixed assets'!$Q$2:$Q$1000=Costs!H$705)*('Fixed assets'!$U$2:$U$1000>Costs!$A767)*('Fixed assets'!$P$2:$P$1000=Costs!$A767)*('Fixed assets'!$R$2:$R$1000))-SUMPRODUCT(('Fixed assets'!$Q$2:$Q$1000=Costs!H$705)*('Fixed assets'!$U$2:$U$1000>Costs!$A767)*('Fixed assets'!$P$2:$P$1000=Costs!$A767)*('Fixed assets'!$S$2:$S$1000))","v":0},{"$f":"I679+SUMPRODUCT(('Fixed assets'!$Q$2:$Q$1000=Costs!I$705)*('Fixed assets'!$U$2:$U$1000>Costs!$A767)*('Fixed assets'!$P$2:$P$1000=Costs!$A767)*('Fixed assets'!$R$2:$R$1000))-SUMPRODUCT(('Fixed assets'!$Q$2:$Q$1000=Costs!I$705)*('Fixed assets'!$U$2:$U$1000>Costs!$A767)*('Fixed assets'!$P$2:$P$1000=Costs!$A767)*('Fixed assets'!$S$2:$S$1000))","v":0},{"$f":"J679+SUMPRODUCT(('Fixed assets'!$Q$2:$Q$1000=Costs!J$705)*('Fixed assets'!$U$2:$U$1000>Costs!$A767)*('Fixed assets'!$P$2:$P$1000=Costs!$A767)*('Fixed assets'!$R$2:$R$1000))-SUMPRODUCT(('Fixed assets'!$Q$2:$Q$1000=Costs!J$705)*('Fixed assets'!$U$2:$U$1000>Costs!$A767)*('Fixed assets'!$P$2:$P$1000=Costs!$A767)*('Fixed assets'!$S$2:$S$1000))","v":0},{"$f":"K679+SUMPRODUCT(('Fixed assets'!$Q$2:$Q$1000=Costs!K$705)*('Fixed assets'!$U$2:$U$1000>Costs!$A767)*('Fixed assets'!$P$2:$P$1000=Costs!$A767)*('Fixed assets'!$R$2:$R$1000))-SUMPRODUCT(('Fixed assets'!$Q$2:$Q$1000=Costs!K$705)*('Fixed assets'!$U$2:$U$1000>Costs!$A767)*('Fixed assets'!$P$2:$P$1000=Costs!$A767)*('Fixed assets'!$S$2:$S$1000))","v":0},{"$f":"L679+SUMPRODUCT(('Fixed assets'!$Q$2:$Q$1000=Costs!L$705)*('Fixed assets'!$U$2:$U$1000>Costs!$A767)*('Fixed assets'!$P$2:$P$1000=Costs!$A767)*('Fixed assets'!$R$2:$R$1000))-SUMPRODUCT(('Fixed assets'!$Q$2:$Q$1000=Costs!L$705)*('Fixed assets'!$U$2:$U$1000>Costs!$A767)*('Fixed assets'!$P$2:$P$1000=Costs!$A767)*('Fixed assets'!$S$2:$S$1000))","v":0},{"$f":"M679+SUMPRODUCT(('Fixed assets'!$Q$2:$Q$1000=Costs!M$705)*('Fixed assets'!$U$2:$U$1000>Costs!$A767)*('Fixed assets'!$P$2:$P$1000=Costs!$A767)*('Fixed assets'!$R$2:$R$1000))-SUMPRODUCT(('Fixed assets'!$Q$2:$Q$1000=Costs!M$705)*('Fixed assets'!$U$2:$U$1000>Costs!$A767)*('Fixed assets'!$P$2:$P$1000=Costs!$A767)*('Fixed assets'!$S$2:$S$1000))","v":0},{"$f":"N679+SUMPRODUCT(('Fixed assets'!$Q$2:$Q$1000=Costs!N$705)*('Fixed assets'!$U$2:$U$1000>Costs!$A767)*('Fixed assets'!$P$2:$P$1000=Costs!$A767)*('Fixed assets'!$R$2:$R$1000))-SUMPRODUCT(('Fixed assets'!$Q$2:$Q$1000=Costs!N$705)*('Fixed assets'!$U$2:$U$1000>Costs!$A767)*('Fixed assets'!$P$2:$P$1000=Costs!$A767)*('Fixed assets'!$S$2:$S$1000))","v":0},{"$f":"O679+SUMPRODUCT(('Fixed assets'!$Q$2:$Q$1000=Costs!O$705)*('Fixed assets'!$U$2:$U$1000>Costs!$A767)*('Fixed assets'!$P$2:$P$1000=Costs!$A767)*('Fixed assets'!$R$2:$R$1000))-SUMPRODUCT(('Fixed assets'!$Q$2:$Q$1000=Costs!O$705)*('Fixed assets'!$U$2:$U$1000>Costs!$A767)*('Fixed assets'!$P$2:$P$1000=Costs!$A767)*('Fixed assets'!$S$2:$S$1000))","v":0},{"$f":"P679+SUMPRODUCT(('Fixed assets'!$Q$2:$Q$1000=Costs!P$705)*('Fixed assets'!$U$2:$U$1000>Costs!$A767)*('Fixed assets'!$P$2:$P$1000=Costs!$A767)*('Fixed assets'!$R$2:$R$1000))-SUMPRODUCT(('Fixed assets'!$Q$2:$Q$1000=Costs!P$705)*('Fixed assets'!$U$2:$U$1000>Costs!$A767)*('Fixed assets'!$P$2:$P$1000=Costs!$A767)*('Fixed assets'!$S$2:$S$1000))","v":0},{"$f":"Q679+SUMPRODUCT(('Fixed assets'!$Q$2:$Q$1000=Costs!Q$705)*('Fixed assets'!$U$2:$U$1000>Costs!$A767)*('Fixed assets'!$P$2:$P$1000=Costs!$A767)*('Fixed assets'!$R$2:$R$1000))-SUMPRODUCT(('Fixed assets'!$Q$2:$Q$1000=Costs!Q$705)*('Fixed assets'!$U$2:$U$1000>Costs!$A767)*('Fixed assets'!$P$2:$P$1000=Costs!$A767)*('Fixed assets'!$S$2:$S$1000))","v":0},{"$f":"R679+SUMPRODUCT(('Fixed assets'!$Q$2:$Q$1000=Costs!R$705)*('Fixed assets'!$U$2:$U$1000>Costs!$A767)*('Fixed assets'!$P$2:$P$1000=Costs!$A767)*('Fixed assets'!$R$2:$R$1000))-SUMPRODUCT(('Fixed assets'!$Q$2:$Q$1000=Costs!R$705)*('Fixed assets'!$U$2:$U$1000>Costs!$A767)*('Fixed assets'!$P$2:$P$1000=Costs!$A767)*('Fixed assets'!$S$2:$S$1000))","v":0},{"$f":"S679+SUMPRODUCT(('Fixed assets'!$Q$2:$Q$1000=Costs!S$705)*('Fixed assets'!$U$2:$U$1000>Costs!$A767)*('Fixed assets'!$P$2:$P$1000=Costs!$A767)*('Fixed assets'!$R$2:$R$1000))-SUMPRODUCT(('Fixed assets'!$Q$2:$Q$1000=Costs!S$705)*('Fixed assets'!$U$2:$U$1000>Costs!$A767)*('Fixed assets'!$P$2:$P$1000=Costs!$A767)*('Fixed assets'!$S$2:$S$1000))","v":0},{"$f":"T679+SUMPRODUCT(('Fixed assets'!$Q$2:$Q$1000=Costs!T$705)*('Fixed assets'!$U$2:$U$1000>Costs!$A767)*('Fixed assets'!$P$2:$P$1000=Costs!$A767)*('Fixed assets'!$R$2:$R$1000))-SUMPRODUCT(('Fixed assets'!$Q$2:$Q$1000=Costs!T$705)*('Fixed assets'!$U$2:$U$1000>Costs!$A767)*('Fixed assets'!$P$2:$P$1000=Costs!$A767)*('Fixed assets'!$S$2:$S$1000))","v":0},{"$f":"U679+SUMPRODUCT(('Fixed assets'!$Q$2:$Q$1000=Costs!U$705)*('Fixed assets'!$U$2:$U$1000>Costs!$A767)*('Fixed assets'!$P$2:$P$1000=Costs!$A767)*('Fixed assets'!$R$2:$R$1000))-SUMPRODUCT(('Fixed assets'!$Q$2:$Q$1000=Costs!U$705)*('Fixed assets'!$U$2:$U$1000>Costs!$A767)*('Fixed assets'!$P$2:$P$1000=Costs!$A767)*('Fixed assets'!$S$2:$S$1000))","v":0},{"$f":"V679+SUMPRODUCT(('Fixed assets'!$Q$2:$Q$1000=Costs!V$705)*('Fixed assets'!$U$2:$U$1000>Costs!$A767)*('Fixed assets'!$P$2:$P$1000=Costs!$A767)*('Fixed assets'!$R$2:$R$1000))-SUMPRODUCT(('Fixed assets'!$Q$2:$Q$1000=Costs!V$705)*('Fixed assets'!$U$2:$U$1000>Costs!$A767)*('Fixed assets'!$P$2:$P$1000=Costs!$A767)*('Fixed assets'!$S$2:$S$1000))","v":0},{"$f":"W679+SUMPRODUCT(('Fixed assets'!$Q$2:$Q$1000=Costs!W$705)*('Fixed assets'!$U$2:$U$1000>Costs!$A767)*('Fixed assets'!$P$2:$P$1000=Costs!$A767)*('Fixed assets'!$R$2:$R$1000))-SUMPRODUCT(('Fixed assets'!$Q$2:$Q$1000=Costs!W$705)*('Fixed assets'!$U$2:$U$1000>Costs!$A767)*('Fixed assets'!$P$2:$P$1000=Costs!$A767)*('Fixed assets'!$S$2:$S$1000))","v":0},{"$f":"X679+SUMPRODUCT(('Fixed assets'!$Q$2:$Q$1000=Costs!X$705)*('Fixed assets'!$U$2:$U$1000>Costs!$A767)*('Fixed assets'!$P$2:$P$1000=Costs!$A767)*('Fixed assets'!$R$2:$R$1000))-SUMPRODUCT(('Fixed assets'!$Q$2:$Q$1000=Costs!X$705)*('Fixed assets'!$U$2:$U$1000>Costs!$A767)*('Fixed assets'!$P$2:$P$1000=Costs!$A767)*('Fixed assets'!$S$2:$S$1000))","v":0},{"$f":"Y679+SUMPRODUCT(('Fixed assets'!$Q$2:$Q$1000=Costs!Y$705)*('Fixed assets'!$U$2:$U$1000>Costs!$A767)*('Fixed assets'!$P$2:$P$1000=Costs!$A767)*('Fixed assets'!$R$2:$R$1000))-SUMPRODUCT(('Fixed assets'!$Q$2:$Q$1000=Costs!Y$705)*('Fixed assets'!$U$2:$U$1000>Costs!$A767)*('Fixed assets'!$P$2:$P$1000=Costs!$A767)*('Fixed assets'!$S$2:$S$1000))","v":0},{"$f":"Z679+SUMPRODUCT(('Fixed assets'!$Q$2:$Q$1000=Costs!Z$705)*('Fixed assets'!$U$2:$U$1000>Costs!$A767)*('Fixed assets'!$P$2:$P$1000=Costs!$A767)*('Fixed assets'!$R$2:$R$1000))-SUMPRODUCT(('Fixed assets'!$Q$2:$Q$1000=Costs!Z$705)*('Fixed assets'!$U$2:$U$1000>Costs!$A767)*('Fixed assets'!$P$2:$P$1000=Costs!$A767)*('Fixed assets'!$S$2:$S$1000))","v":0},{"$f":"AA679+SUMPRODUCT(('Fixed assets'!$Q$2:$Q$1000=Costs!AA$705)*('Fixed assets'!$U$2:$U$1000>Costs!$A767)*('Fixed assets'!$P$2:$P$1000=Costs!$A767)*('Fixed assets'!$R$2:$R$1000))-SUMPRODUCT(('Fixed assets'!$Q$2:$Q$1000=Costs!AA$705)*('Fixed assets'!$U$2:$U$1000>Costs!$A767)*('Fixed assets'!$P$2:$P$1000=Costs!$A767)*('Fixed assets'!$S$2:$S$1000))","v":0},{"$f":"AB679+SUMPRODUCT(('Fixed assets'!$Q$2:$Q$1000=Costs!AB$705)*('Fixed assets'!$U$2:$U$1000>Costs!$A767)*('Fixed assets'!$P$2:$P$1000=Costs!$A767)*('Fixed assets'!$R$2:$R$1000))-SUMPRODUCT(('Fixed assets'!$Q$2:$Q$1000=Costs!AB$705)*('Fixed assets'!$U$2:$U$1000>Costs!$A767)*('Fixed assets'!$P$2:$P$1000=Costs!$A767)*('Fixed assets'!$S$2:$S$1000))","v":0},{"$f":"AC679+SUMPRODUCT(('Fixed assets'!$Q$2:$Q$1000=Costs!AC$705)*('Fixed assets'!$U$2:$U$1000>Costs!$A767)*('Fixed assets'!$P$2:$P$1000=Costs!$A767)*('Fixed assets'!$R$2:$R$1000))-SUMPRODUCT(('Fixed assets'!$Q$2:$Q$1000=Costs!AC$705)*('Fixed assets'!$U$2:$U$1000>Costs!$A767)*('Fixed assets'!$P$2:$P$1000=Costs!$A767)*('Fixed assets'!$S$2:$S$1000))","v":0},{"$f":"AD679+SUMPRODUCT(('Fixed assets'!$Q$2:$Q$1000=Costs!AD$705)*('Fixed assets'!$U$2:$U$1000>Costs!$A767)*('Fixed assets'!$P$2:$P$1000=Costs!$A767)*('Fixed assets'!$R$2:$R$1000))-SUMPRODUCT(('Fixed assets'!$Q$2:$Q$1000=Costs!AD$705)*('Fixed assets'!$U$2:$U$1000>Costs!$A767)*('Fixed assets'!$P$2:$P$1000=Costs!$A767)*('Fixed assets'!$S$2:$S$1000))","v":0},{"$f":"AE679+SUMPRODUCT(('Fixed assets'!$Q$2:$Q$1000=Costs!AE$705)*('Fixed assets'!$U$2:$U$1000>Costs!$A767)*('Fixed assets'!$P$2:$P$1000=Costs!$A767)*('Fixed assets'!$R$2:$R$1000))-SUMPRODUCT(('Fixed assets'!$Q$2:$Q$1000=Costs!AE$705)*('Fixed assets'!$U$2:$U$1000>Costs!$A767)*('Fixed assets'!$P$2:$P$1000=Costs!$A767)*('Fixed assets'!$S$2:$S$1000))","v":0},{"$f":"AF679+SUMPRODUCT(('Fixed assets'!$Q$2:$Q$1000=Costs!AF$705)*('Fixed assets'!$U$2:$U$1000>Costs!$A767)*('Fixed assets'!$P$2:$P$1000=Costs!$A767)*('Fixed assets'!$R$2:$R$1000))-SUMPRODUCT(('Fixed assets'!$Q$2:$Q$1000=Costs!AF$705)*('Fixed assets'!$U$2:$U$1000>Costs!$A767)*('Fixed assets'!$P$2:$P$1000=Costs!$A767)*('Fixed assets'!$S$2:$S$1000))","v":0},{"$f":"AG679+SUMPRODUCT(('Fixed assets'!$Q$2:$Q$1000=Costs!AG$705)*('Fixed assets'!$U$2:$U$1000>Costs!$A767)*('Fixed assets'!$P$2:$P$1000=Costs!$A767)*('Fixed assets'!$R$2:$R$1000))-SUMPRODUCT(('Fixed assets'!$Q$2:$Q$1000=Costs!AG$705)*('Fixed assets'!$U$2:$U$1000>Costs!$A767)*('Fixed assets'!$P$2:$P$1000=Costs!$A767)*('Fixed assets'!$S$2:$S$1000))","v":0},{"$f":"AH679+SUMPRODUCT(('Fixed assets'!$Q$2:$Q$1000=Costs!AH$705)*('Fixed assets'!$U$2:$U$1000>Costs!$A767)*('Fixed assets'!$P$2:$P$1000=Costs!$A767)*('Fixed assets'!$R$2:$R$1000))-SUMPRODUCT(('Fixed assets'!$Q$2:$Q$1000=Costs!AH$705)*('Fixed assets'!$U$2:$U$1000>Costs!$A767)*('Fixed assets'!$P$2:$P$1000=Costs!$A767)*('Fixed assets'!$S$2:$S$1000))","v":0},{"$f":"AI679+SUMPRODUCT(('Fixed assets'!$Q$2:$Q$1000=Costs!AI$705)*('Fixed assets'!$U$2:$U$1000>Costs!$A767)*('Fixed assets'!$P$2:$P$1000=Costs!$A767)*('Fixed assets'!$R$2:$R$1000))-SUMPRODUCT(('Fixed assets'!$Q$2:$Q$1000=Costs!AI$705)*('Fixed assets'!$U$2:$U$1000>Costs!$A767)*('Fixed assets'!$P$2:$P$1000=Costs!$A767)*('Fixed assets'!$S$2:$S$1000))","v":0},{"$f":"AJ679+SUMPRODUCT(('Fixed assets'!$Q$2:$Q$1000=Costs!AJ$705)*('Fixed assets'!$U$2:$U$1000>Costs!$A767)*('Fixed assets'!$P$2:$P$1000=Costs!$A767)*('Fixed assets'!$R$2:$R$1000))-SUMPRODUCT(('Fixed assets'!$Q$2:$Q$1000=Costs!AJ$705)*('Fixed assets'!$U$2:$U$1000>Costs!$A767)*('Fixed assets'!$P$2:$P$1000=Costs!$A767)*('Fixed assets'!$S$2:$S$1000))","v":0},{"$f":"AK679+SUMPRODUCT(('Fixed assets'!$Q$2:$Q$1000=Costs!AK$705)*('Fixed assets'!$U$2:$U$1000>Costs!$A767)*('Fixed assets'!$P$2:$P$1000=Costs!$A767)*('Fixed assets'!$R$2:$R$1000))-SUMPRODUCT(('Fixed assets'!$Q$2:$Q$1000=Costs!AK$705)*('Fixed assets'!$U$2:$U$1000>Costs!$A767)*('Fixed assets'!$P$2:$P$1000=Costs!$A767)*('Fixed assets'!$S$2:$S$1000))","v":0},{"$f":"AL679+SUMPRODUCT(('Fixed assets'!$Q$2:$Q$1000=Costs!AL$705)*('Fixed assets'!$U$2:$U$1000>Costs!$A767)*('Fixed assets'!$P$2:$P$1000=Costs!$A767)*('Fixed assets'!$R$2:$R$1000))-SUMPRODUCT(('Fixed assets'!$Q$2:$Q$1000=Costs!AL$705)*('Fixed assets'!$U$2:$U$1000>Costs!$A767)*('Fixed assets'!$P$2:$P$1000=Costs!$A767)*('Fixed assets'!$S$2:$S$1000))","v":0},{"$f":"AM679+SUMPRODUCT(('Fixed assets'!$Q$2:$Q$1000=Costs!AM$705)*('Fixed assets'!$U$2:$U$1000>Costs!$A767)*('Fixed assets'!$P$2:$P$1000=Costs!$A767)*('Fixed assets'!$R$2:$R$1000))-SUMPRODUCT(('Fixed assets'!$Q$2:$Q$1000=Costs!AM$705)*('Fixed assets'!$U$2:$U$1000>Costs!$A767)*('Fixed assets'!$P$2:$P$1000=Costs!$A767)*('Fixed assets'!$S$2:$S$1000))","v":0},{"$f":"AN679+SUMPRODUCT(('Fixed assets'!$Q$2:$Q$1000=Costs!AN$705)*('Fixed assets'!$U$2:$U$1000>Costs!$A767)*('Fixed assets'!$P$2:$P$1000=Costs!$A767)*('Fixed assets'!$R$2:$R$1000))-SUMPRODUCT(('Fixed assets'!$Q$2:$Q$1000=Costs!AN$705)*('Fixed assets'!$U$2:$U$1000>Costs!$A767)*('Fixed assets'!$P$2:$P$1000=Costs!$A767)*('Fixed assets'!$S$2:$S$1000))","v":0},{"$f":"AO679+SUMPRODUCT(('Fixed assets'!$Q$2:$Q$1000=Costs!AO$705)*('Fixed assets'!$U$2:$U$1000>Costs!$A767)*('Fixed assets'!$P$2:$P$1000=Costs!$A767)*('Fixed assets'!$R$2:$R$1000))-SUMPRODUCT(('Fixed assets'!$Q$2:$Q$1000=Costs!AO$705)*('Fixed assets'!$U$2:$U$1000>Costs!$A767)*('Fixed assets'!$P$2:$P$1000=Costs!$A767)*('Fixed assets'!$S$2:$S$1000))","v":0},{"$f":"AP679+SUMPRODUCT(('Fixed assets'!$Q$2:$Q$1000=Costs!AP$705)*('Fixed assets'!$U$2:$U$1000>Costs!$A767)*('Fixed assets'!$P$2:$P$1000=Costs!$A767)*('Fixed assets'!$R$2:$R$1000))-SUMPRODUCT(('Fixed assets'!$Q$2:$Q$1000=Costs!AP$705)*('Fixed assets'!$U$2:$U$1000>Costs!$A767)*('Fixed assets'!$P$2:$P$1000=Costs!$A767)*('Fixed assets'!$S$2:$S$1000))","v":0},{"$f":"AQ679+SUMPRODUCT(('Fixed assets'!$Q$2:$Q$1000=Costs!AQ$705)*('Fixed assets'!$U$2:$U$1000>Costs!$A767)*('Fixed assets'!$P$2:$P$1000=Costs!$A767)*('Fixed assets'!$R$2:$R$1000))-SUMPRODUCT(('Fixed assets'!$Q$2:$Q$1000=Costs!AQ$705)*('Fixed assets'!$U$2:$U$1000>Costs!$A767)*('Fixed assets'!$P$2:$P$1000=Costs!$A767)*('Fixed assets'!$S$2:$S$1000))","v":0}]
[2077,0,{"$f":"C680+SUMPRODUCT(('Fixed assets'!$Q$2:$Q$1000=Costs!C$705)*('Fixed assets'!$U$2:$U$1000>Costs!$A768)*('Fixed assets'!$P$2:$P$1000=Costs!$A768)*('Fixed assets'!$R$2:$R$1000))-SUMPRODUCT(('Fixed assets'!$Q$2:$Q$1000=Costs!C$705)*('Fixed assets'!$U$2:$U$1000>Costs!$A768)*('Fixed assets'!$P$2:$P$1000=Costs!$A768)*('Fixed assets'!$S$2:$S$1000))","v":0},{"$f":"D680+SUMPRODUCT(('Fixed assets'!$Q$2:$Q$1000=Costs!D$705)*('Fixed assets'!$U$2:$U$1000>Costs!$A768)*('Fixed assets'!$P$2:$P$1000=Costs!$A768)*('Fixed assets'!$R$2:$R$1000))-SUMPRODUCT(('Fixed assets'!$Q$2:$Q$1000=Costs!D$705)*('Fixed assets'!$U$2:$U$1000>Costs!$A768)*('Fixed assets'!$P$2:$P$1000=Costs!$A768)*('Fixed assets'!$S$2:$S$1000))","v":0},{"$f":"E680+SUMPRODUCT(('Fixed assets'!$Q$2:$Q$1000=Costs!E$705)*('Fixed assets'!$U$2:$U$1000>Costs!$A768)*('Fixed assets'!$P$2:$P$1000=Costs!$A768)*('Fixed assets'!$R$2:$R$1000))-SUMPRODUCT(('Fixed assets'!$Q$2:$Q$1000=Costs!E$705)*('Fixed assets'!$U$2:$U$1000>Costs!$A768)*('Fixed assets'!$P$2:$P$1000=Costs!$A768)*('Fixed assets'!$S$2:$S$1000))","v":0},{"$f":"F680+SUMPRODUCT(('Fixed assets'!$Q$2:$Q$1000=Costs!F$705)*('Fixed assets'!$U$2:$U$1000>Costs!$A768)*('Fixed assets'!$P$2:$P$1000=Costs!$A768)*('Fixed assets'!$R$2:$R$1000))-SUMPRODUCT(('Fixed assets'!$Q$2:$Q$1000=Costs!F$705)*('Fixed assets'!$U$2:$U$1000>Costs!$A768)*('Fixed assets'!$P$2:$P$1000=Costs!$A768)*('Fixed assets'!$S$2:$S$1000))","v":0},{"$f":"G680+SUMPRODUCT(('Fixed assets'!$Q$2:$Q$1000=Costs!G$705)*('Fixed assets'!$U$2:$U$1000>Costs!$A768)*('Fixed assets'!$P$2:$P$1000=Costs!$A768)*('Fixed assets'!$R$2:$R$1000))-SUMPRODUCT(('Fixed assets'!$Q$2:$Q$1000=Costs!G$705)*('Fixed assets'!$U$2:$U$1000>Costs!$A768)*('Fixed assets'!$P$2:$P$1000=Costs!$A768)*('Fixed assets'!$S$2:$S$1000))","v":0},{"$f":"H680+SUMPRODUCT(('Fixed assets'!$Q$2:$Q$1000=Costs!H$705)*('Fixed assets'!$U$2:$U$1000>Costs!$A768)*('Fixed assets'!$P$2:$P$1000=Costs!$A768)*('Fixed assets'!$R$2:$R$1000))-SUMPRODUCT(('Fixed assets'!$Q$2:$Q$1000=Costs!H$705)*('Fixed assets'!$U$2:$U$1000>Costs!$A768)*('Fixed assets'!$P$2:$P$1000=Costs!$A768)*('Fixed assets'!$S$2:$S$1000))","v":0},{"$f":"I680+SUMPRODUCT(('Fixed assets'!$Q$2:$Q$1000=Costs!I$705)*('Fixed assets'!$U$2:$U$1000>Costs!$A768)*('Fixed assets'!$P$2:$P$1000=Costs!$A768)*('Fixed assets'!$R$2:$R$1000))-SUMPRODUCT(('Fixed assets'!$Q$2:$Q$1000=Costs!I$705)*('Fixed assets'!$U$2:$U$1000>Costs!$A768)*('Fixed assets'!$P$2:$P$1000=Costs!$A768)*('Fixed assets'!$S$2:$S$1000))","v":0},{"$f":"J680+SUMPRODUCT(('Fixed assets'!$Q$2:$Q$1000=Costs!J$705)*('Fixed assets'!$U$2:$U$1000>Costs!$A768)*('Fixed assets'!$P$2:$P$1000=Costs!$A768)*('Fixed assets'!$R$2:$R$1000))-SUMPRODUCT(('Fixed assets'!$Q$2:$Q$1000=Costs!J$705)*('Fixed assets'!$U$2:$U$1000>Costs!$A768)*('Fixed assets'!$P$2:$P$1000=Costs!$A768)*('Fixed assets'!$S$2:$S$1000))","v":0},{"$f":"K680+SUMPRODUCT(('Fixed assets'!$Q$2:$Q$1000=Costs!K$705)*('Fixed assets'!$U$2:$U$1000>Costs!$A768)*('Fixed assets'!$P$2:$P$1000=Costs!$A768)*('Fixed assets'!$R$2:$R$1000))-SUMPRODUCT(('Fixed assets'!$Q$2:$Q$1000=Costs!K$705)*('Fixed assets'!$U$2:$U$1000>Costs!$A768)*('Fixed assets'!$P$2:$P$1000=Costs!$A768)*('Fixed assets'!$S$2:$S$1000))","v":0},{"$f":"L680+SUMPRODUCT(('Fixed assets'!$Q$2:$Q$1000=Costs!L$705)*('Fixed assets'!$U$2:$U$1000>Costs!$A768)*('Fixed assets'!$P$2:$P$1000=Costs!$A768)*('Fixed assets'!$R$2:$R$1000))-SUMPRODUCT(('Fixed assets'!$Q$2:$Q$1000=Costs!L$705)*('Fixed assets'!$U$2:$U$1000>Costs!$A768)*('Fixed assets'!$P$2:$P$1000=Costs!$A768)*('Fixed assets'!$S$2:$S$1000))","v":0},{"$f":"M680+SUMPRODUCT(('Fixed assets'!$Q$2:$Q$1000=Costs!M$705)*('Fixed assets'!$U$2:$U$1000>Costs!$A768)*('Fixed assets'!$P$2:$P$1000=Costs!$A768)*('Fixed assets'!$R$2:$R$1000))-SUMPRODUCT(('Fixed assets'!$Q$2:$Q$1000=Costs!M$705)*('Fixed assets'!$U$2:$U$1000>Costs!$A768)*('Fixed assets'!$P$2:$P$1000=Costs!$A768)*('Fixed assets'!$S$2:$S$1000))","v":0},{"$f":"N680+SUMPRODUCT(('Fixed assets'!$Q$2:$Q$1000=Costs!N$705)*('Fixed assets'!$U$2:$U$1000>Costs!$A768)*('Fixed assets'!$P$2:$P$1000=Costs!$A768)*('Fixed assets'!$R$2:$R$1000))-SUMPRODUCT(('Fixed assets'!$Q$2:$Q$1000=Costs!N$705)*('Fixed assets'!$U$2:$U$1000>Costs!$A768)*('Fixed assets'!$P$2:$P$1000=Costs!$A768)*('Fixed assets'!$S$2:$S$1000))","v":0},{"$f":"O680+SUMPRODUCT(('Fixed assets'!$Q$2:$Q$1000=Costs!O$705)*('Fixed assets'!$U$2:$U$1000>Costs!$A768)*('Fixed assets'!$P$2:$P$1000=Costs!$A768)*('Fixed assets'!$R$2:$R$1000))-SUMPRODUCT(('Fixed assets'!$Q$2:$Q$1000=Costs!O$705)*('Fixed assets'!$U$2:$U$1000>Costs!$A768)*('Fixed assets'!$P$2:$P$1000=Costs!$A768)*('Fixed assets'!$S$2:$S$1000))","v":0},{"$f":"P680+SUMPRODUCT(('Fixed assets'!$Q$2:$Q$1000=Costs!P$705)*('Fixed assets'!$U$2:$U$1000>Costs!$A768)*('Fixed assets'!$P$2:$P$1000=Costs!$A768)*('Fixed assets'!$R$2:$R$1000))-SUMPRODUCT(('Fixed assets'!$Q$2:$Q$1000=Costs!P$705)*('Fixed assets'!$U$2:$U$1000>Costs!$A768)*('Fixed assets'!$P$2:$P$1000=Costs!$A768)*('Fixed assets'!$S$2:$S$1000))","v":0},{"$f":"Q680+SUMPRODUCT(('Fixed assets'!$Q$2:$Q$1000=Costs!Q$705)*('Fixed assets'!$U$2:$U$1000>Costs!$A768)*('Fixed assets'!$P$2:$P$1000=Costs!$A768)*('Fixed assets'!$R$2:$R$1000))-SUMPRODUCT(('Fixed assets'!$Q$2:$Q$1000=Costs!Q$705)*('Fixed assets'!$U$2:$U$1000>Costs!$A768)*('Fixed assets'!$P$2:$P$1000=Costs!$A768)*('Fixed assets'!$S$2:$S$1000))","v":0},{"$f":"R680+SUMPRODUCT(('Fixed assets'!$Q$2:$Q$1000=Costs!R$705)*('Fixed assets'!$U$2:$U$1000>Costs!$A768)*('Fixed assets'!$P$2:$P$1000=Costs!$A768)*('Fixed assets'!$R$2:$R$1000))-SUMPRODUCT(('Fixed assets'!$Q$2:$Q$1000=Costs!R$705)*('Fixed assets'!$U$2:$U$1000>Costs!$A768)*('Fixed assets'!$P$2:$P$1000=Costs!$A768)*('Fixed assets'!$S$2:$S$1000))","v":0},{"$f":"S680+SUMPRODUCT(('Fixed assets'!$Q$2:$Q$1000=Costs!S$705)*('Fixed assets'!$U$2:$U$1000>Costs!$A768)*('Fixed assets'!$P$2:$P$1000=Costs!$A768)*('Fixed assets'!$R$2:$R$1000))-SUMPRODUCT(('Fixed assets'!$Q$2:$Q$1000=Costs!S$705)*('Fixed assets'!$U$2:$U$1000>Costs!$A768)*('Fixed assets'!$P$2:$P$1000=Costs!$A768)*('Fixed assets'!$S$2:$S$1000))","v":0},{"$f":"T680+SUMPRODUCT(('Fixed assets'!$Q$2:$Q$1000=Costs!T$705)*('Fixed assets'!$U$2:$U$1000>Costs!$A768)*('Fixed assets'!$P$2:$P$1000=Costs!$A768)*('Fixed assets'!$R$2:$R$1000))-SUMPRODUCT(('Fixed assets'!$Q$2:$Q$1000=Costs!T$705)*('Fixed assets'!$U$2:$U$1000>Costs!$A768)*('Fixed assets'!$P$2:$P$1000=Costs!$A768)*('Fixed assets'!$S$2:$S$1000))","v":0},{"$f":"U680+SUMPRODUCT(('Fixed assets'!$Q$2:$Q$1000=Costs!U$705)*('Fixed assets'!$U$2:$U$1000>Costs!$A768)*('Fixed assets'!$P$2:$P$1000=Costs!$A768)*('Fixed assets'!$R$2:$R$1000))-SUMPRODUCT(('Fixed assets'!$Q$2:$Q$1000=Costs!U$705)*('Fixed assets'!$U$2:$U$1000>Costs!$A768)*('Fixed assets'!$P$2:$P$1000=Costs!$A768)*('Fixed assets'!$S$2:$S$1000))","v":0},{"$f":"V680+SUMPRODUCT(('Fixed assets'!$Q$2:$Q$1000=Costs!V$705)*('Fixed assets'!$U$2:$U$1000>Costs!$A768)*('Fixed assets'!$P$2:$P$1000=Costs!$A768)*('Fixed assets'!$R$2:$R$1000))-SUMPRODUCT(('Fixed assets'!$Q$2:$Q$1000=Costs!V$705)*('Fixed assets'!$U$2:$U$1000>Costs!$A768)*('Fixed assets'!$P$2:$P$1000=Costs!$A768)*('Fixed assets'!$S$2:$S$1000))","v":0},{"$f":"W680+SUMPRODUCT(('Fixed assets'!$Q$2:$Q$1000=Costs!W$705)*('Fixed assets'!$U$2:$U$1000>Costs!$A768)*('Fixed assets'!$P$2:$P$1000=Costs!$A768)*('Fixed assets'!$R$2:$R$1000))-SUMPRODUCT(('Fixed assets'!$Q$2:$Q$1000=Costs!W$705)*('Fixed assets'!$U$2:$U$1000>Costs!$A768)*('Fixed assets'!$P$2:$P$1000=Costs!$A768)*('Fixed assets'!$S$2:$S$1000))","v":0},{"$f":"X680+SUMPRODUCT(('Fixed assets'!$Q$2:$Q$1000=Costs!X$705)*('Fixed assets'!$U$2:$U$1000>Costs!$A768)*('Fixed assets'!$P$2:$P$1000=Costs!$A768)*('Fixed assets'!$R$2:$R$1000))-SUMPRODUCT(('Fixed assets'!$Q$2:$Q$1000=Costs!X$705)*('Fixed assets'!$U$2:$U$1000>Costs!$A768)*('Fixed assets'!$P$2:$P$1000=Costs!$A768)*('Fixed assets'!$S$2:$S$1000))","v":0},{"$f":"Y680+SUMPRODUCT(('Fixed assets'!$Q$2:$Q$1000=Costs!Y$705)*('Fixed assets'!$U$2:$U$1000>Costs!$A768)*('Fixed assets'!$P$2:$P$1000=Costs!$A768)*('Fixed assets'!$R$2:$R$1000))-SUMPRODUCT(('Fixed assets'!$Q$2:$Q$1000=Costs!Y$705)*('Fixed assets'!$U$2:$U$1000>Costs!$A768)*('Fixed assets'!$P$2:$P$1000=Costs!$A768)*('Fixed assets'!$S$2:$S$1000))","v":0},{"$f":"Z680+SUMPRODUCT(('Fixed assets'!$Q$2:$Q$1000=Costs!Z$705)*('Fixed assets'!$U$2:$U$1000>Costs!$A768)*('Fixed assets'!$P$2:$P$1000=Costs!$A768)*('Fixed assets'!$R$2:$R$1000))-SUMPRODUCT(('Fixed assets'!$Q$2:$Q$1000=Costs!Z$705)*('Fixed assets'!$U$2:$U$1000>Costs!$A768)*('Fixed assets'!$P$2:$P$1000=Costs!$A768)*('Fixed assets'!$S$2:$S$1000))","v":0},{"$f":"AA680+SUMPRODUCT(('Fixed assets'!$Q$2:$Q$1000=Costs!AA$705)*('Fixed assets'!$U$2:$U$1000>Costs!$A768)*('Fixed assets'!$P$2:$P$1000=Costs!$A768)*('Fixed assets'!$R$2:$R$1000))-SUMPRODUCT(('Fixed assets'!$Q$2:$Q$1000=Costs!AA$705)*('Fixed assets'!$U$2:$U$1000>Costs!$A768)*('Fixed assets'!$P$2:$P$1000=Costs!$A768)*('Fixed assets'!$S$2:$S$1000))","v":0},{"$f":"AB680+SUMPRODUCT(('Fixed assets'!$Q$2:$Q$1000=Costs!AB$705)*('Fixed assets'!$U$2:$U$1000>Costs!$A768)*('Fixed assets'!$P$2:$P$1000=Costs!$A768)*('Fixed assets'!$R$2:$R$1000))-SUMPRODUCT(('Fixed assets'!$Q$2:$Q$1000=Costs!AB$705)*('Fixed assets'!$U$2:$U$1000>Costs!$A768)*('Fixed assets'!$P$2:$P$1000=Costs!$A768)*('Fixed assets'!$S$2:$S$1000))","v":0},{"$f":"AC680+SUMPRODUCT(('Fixed assets'!$Q$2:$Q$1000=Costs!AC$705)*('Fixed assets'!$U$2:$U$1000>Costs!$A768)*('Fixed assets'!$P$2:$P$1000=Costs!$A768)*('Fixed assets'!$R$2:$R$1000))-SUMPRODUCT(('Fixed assets'!$Q$2:$Q$1000=Costs!AC$705)*('Fixed assets'!$U$2:$U$1000>Costs!$A768)*('Fixed assets'!$P$2:$P$1000=Costs!$A768)*('Fixed assets'!$S$2:$S$1000))","v":0},{"$f":"AD680+SUMPRODUCT(('Fixed assets'!$Q$2:$Q$1000=Costs!AD$705)*('Fixed assets'!$U$2:$U$1000>Costs!$A768)*('Fixed assets'!$P$2:$P$1000=Costs!$A768)*('Fixed assets'!$R$2:$R$1000))-SUMPRODUCT(('Fixed assets'!$Q$2:$Q$1000=Costs!AD$705)*('Fixed assets'!$U$2:$U$1000>Costs!$A768)*('Fixed assets'!$P$2:$P$1000=Costs!$A768)*('Fixed assets'!$S$2:$S$1000))","v":0},{"$f":"AE680+SUMPRODUCT(('Fixed assets'!$Q$2:$Q$1000=Costs!AE$705)*('Fixed assets'!$U$2:$U$1000>Costs!$A768)*('Fixed assets'!$P$2:$P$1000=Costs!$A768)*('Fixed assets'!$R$2:$R$1000))-SUMPRODUCT(('Fixed assets'!$Q$2:$Q$1000=Costs!AE$705)*('Fixed assets'!$U$2:$U$1000>Costs!$A768)*('Fixed assets'!$P$2:$P$1000=Costs!$A768)*('Fixed assets'!$S$2:$S$1000))","v":0},{"$f":"AF680+SUMPRODUCT(('Fixed assets'!$Q$2:$Q$1000=Costs!AF$705)*('Fixed assets'!$U$2:$U$1000>Costs!$A768)*('Fixed assets'!$P$2:$P$1000=Costs!$A768)*('Fixed assets'!$R$2:$R$1000))-SUMPRODUCT(('Fixed assets'!$Q$2:$Q$1000=Costs!AF$705)*('Fixed assets'!$U$2:$U$1000>Costs!$A768)*('Fixed assets'!$P$2:$P$1000=Costs!$A768)*('Fixed assets'!$S$2:$S$1000))","v":0},{"$f":"AG680+SUMPRODUCT(('Fixed assets'!$Q$2:$Q$1000=Costs!AG$705)*('Fixed assets'!$U$2:$U$1000>Costs!$A768)*('Fixed assets'!$P$2:$P$1000=Costs!$A768)*('Fixed assets'!$R$2:$R$1000))-SUMPRODUCT(('Fixed assets'!$Q$2:$Q$1000=Costs!AG$705)*('Fixed assets'!$U$2:$U$1000>Costs!$A768)*('Fixed assets'!$P$2:$P$1000=Costs!$A768)*('Fixed assets'!$S$2:$S$1000))","v":0},{"$f":"AH680+SUMPRODUCT(('Fixed assets'!$Q$2:$Q$1000=Costs!AH$705)*('Fixed assets'!$U$2:$U$1000>Costs!$A768)*('Fixed assets'!$P$2:$P$1000=Costs!$A768)*('Fixed assets'!$R$2:$R$1000))-SUMPRODUCT(('Fixed assets'!$Q$2:$Q$1000=Costs!AH$705)*('Fixed assets'!$U$2:$U$1000>Costs!$A768)*('Fixed assets'!$P$2:$P$1000=Costs!$A768)*('Fixed assets'!$S$2:$S$1000))","v":0},{"$f":"AI680+SUMPRODUCT(('Fixed assets'!$Q$2:$Q$1000=Costs!AI$705)*('Fixed assets'!$U$2:$U$1000>Costs!$A768)*('Fixed assets'!$P$2:$P$1000=Costs!$A768)*('Fixed assets'!$R$2:$R$1000))-SUMPRODUCT(('Fixed assets'!$Q$2:$Q$1000=Costs!AI$705)*('Fixed assets'!$U$2:$U$1000>Costs!$A768)*('Fixed assets'!$P$2:$P$1000=Costs!$A768)*('Fixed assets'!$S$2:$S$1000))","v":0},{"$f":"AJ680+SUMPRODUCT(('Fixed assets'!$Q$2:$Q$1000=Costs!AJ$705)*('Fixed assets'!$U$2:$U$1000>Costs!$A768)*('Fixed assets'!$P$2:$P$1000=Costs!$A768)*('Fixed assets'!$R$2:$R$1000))-SUMPRODUCT(('Fixed assets'!$Q$2:$Q$1000=Costs!AJ$705)*('Fixed assets'!$U$2:$U$1000>Costs!$A768)*('Fixed assets'!$P$2:$P$1000=Costs!$A768)*('Fixed assets'!$S$2:$S$1000))","v":0},{"$f":"AK680+SUMPRODUCT(('Fixed assets'!$Q$2:$Q$1000=Costs!AK$705)*('Fixed assets'!$U$2:$U$1000>Costs!$A768)*('Fixed assets'!$P$2:$P$1000=Costs!$A768)*('Fixed assets'!$R$2:$R$1000))-SUMPRODUCT(('Fixed assets'!$Q$2:$Q$1000=Costs!AK$705)*('Fixed assets'!$U$2:$U$1000>Costs!$A768)*('Fixed assets'!$P$2:$P$1000=Costs!$A768)*('Fixed assets'!$S$2:$S$1000))","v":0},{"$f":"AL680+SUMPRODUCT(('Fixed assets'!$Q$2:$Q$1000=Costs!AL$705)*('Fixed assets'!$U$2:$U$1000>Costs!$A768)*('Fixed assets'!$P$2:$P$1000=Costs!$A768)*('Fixed assets'!$R$2:$R$1000))-SUMPRODUCT(('Fixed assets'!$Q$2:$Q$1000=Costs!AL$705)*('Fixed assets'!$U$2:$U$1000>Costs!$A768)*('Fixed assets'!$P$2:$P$1000=Costs!$A768)*('Fixed assets'!$S$2:$S$1000))","v":0},{"$f":"AM680+SUMPRODUCT(('Fixed assets'!$Q$2:$Q$1000=Costs!AM$705)*('Fixed assets'!$U$2:$U$1000>Costs!$A768)*('Fixed assets'!$P$2:$P$1000=Costs!$A768)*('Fixed assets'!$R$2:$R$1000))-SUMPRODUCT(('Fixed assets'!$Q$2:$Q$1000=Costs!AM$705)*('Fixed assets'!$U$2:$U$1000>Costs!$A768)*('Fixed assets'!$P$2:$P$1000=Costs!$A768)*('Fixed assets'!$S$2:$S$1000))","v":0},{"$f":"AN680+SUMPRODUCT(('Fixed assets'!$Q$2:$Q$1000=Costs!AN$705)*('Fixed assets'!$U$2:$U$1000>Costs!$A768)*('Fixed assets'!$P$2:$P$1000=Costs!$A768)*('Fixed assets'!$R$2:$R$1000))-SUMPRODUCT(('Fixed assets'!$Q$2:$Q$1000=Costs!AN$705)*('Fixed assets'!$U$2:$U$1000>Costs!$A768)*('Fixed assets'!$P$2:$P$1000=Costs!$A768)*('Fixed assets'!$S$2:$S$1000))","v":0},{"$f":"AO680+SUMPRODUCT(('Fixed assets'!$Q$2:$Q$1000=Costs!AO$705)*('Fixed assets'!$U$2:$U$1000>Costs!$A768)*('Fixed assets'!$P$2:$P$1000=Costs!$A768)*('Fixed assets'!$R$2:$R$1000))-SUMPRODUCT(('Fixed assets'!$Q$2:$Q$1000=Costs!AO$705)*('Fixed assets'!$U$2:$U$1000>Costs!$A768)*('Fixed assets'!$P$2:$P$1000=Costs!$A768)*('Fixed assets'!$S$2:$S$1000))","v":0},{"$f":"AP680+SUMPRODUCT(('Fixed assets'!$Q$2:$Q$1000=Costs!AP$705)*('Fixed assets'!$U$2:$U$1000>Costs!$A768)*('Fixed assets'!$P$2:$P$1000=Costs!$A768)*('Fixed assets'!$R$2:$R$1000))-SUMPRODUCT(('Fixed assets'!$Q$2:$Q$1000=Costs!AP$705)*('Fixed assets'!$U$2:$U$1000>Costs!$A768)*('Fixed assets'!$P$2:$P$1000=Costs!$A768)*('Fixed assets'!$S$2:$S$1000))","v":0},{"$f":"AQ680+SUMPRODUCT(('Fixed assets'!$Q$2:$Q$1000=Costs!AQ$705)*('Fixed assets'!$U$2:$U$1000>Costs!$A768)*('Fixed assets'!$P$2:$P$1000=Costs!$A768)*('Fixed assets'!$R$2:$R$1000))-SUMPRODUCT(('Fixed assets'!$Q$2:$Q$1000=Costs!AQ$705)*('Fixed assets'!$U$2:$U$1000>Costs!$A768)*('Fixed assets'!$P$2:$P$1000=Costs!$A768)*('Fixed assets'!$S$2:$S$1000))","v":0}]
[2078,0,{"$f":"C681+SUMPRODUCT(('Fixed assets'!$Q$2:$Q$1000=Costs!C$705)*('Fixed assets'!$U$2:$U$1000>Costs!$A769)*('Fixed assets'!$P$2:$P$1000=Costs!$A769)*('Fixed assets'!$R$2:$R$1000))-SUMPRODUCT(('Fixed assets'!$Q$2:$Q$1000=Costs!C$705)*('Fixed assets'!$U$2:$U$1000>Costs!$A769)*('Fixed assets'!$P$2:$P$1000=Costs!$A769)*('Fixed assets'!$S$2:$S$1000))","v":0},{"$f":"D681+SUMPRODUCT(('Fixed assets'!$Q$2:$Q$1000=Costs!D$705)*('Fixed assets'!$U$2:$U$1000>Costs!$A769)*('Fixed assets'!$P$2:$P$1000=Costs!$A769)*('Fixed assets'!$R$2:$R$1000))-SUMPRODUCT(('Fixed assets'!$Q$2:$Q$1000=Costs!D$705)*('Fixed assets'!$U$2:$U$1000>Costs!$A769)*('Fixed assets'!$P$2:$P$1000=Costs!$A769)*('Fixed assets'!$S$2:$S$1000))","v":0},{"$f":"E681+SUMPRODUCT(('Fixed assets'!$Q$2:$Q$1000=Costs!E$705)*('Fixed assets'!$U$2:$U$1000>Costs!$A769)*('Fixed assets'!$P$2:$P$1000=Costs!$A769)*('Fixed assets'!$R$2:$R$1000))-SUMPRODUCT(('Fixed assets'!$Q$2:$Q$1000=Costs!E$705)*('Fixed assets'!$U$2:$U$1000>Costs!$A769)*('Fixed assets'!$P$2:$P$1000=Costs!$A769)*('Fixed assets'!$S$2:$S$1000))","v":0},{"$f":"F681+SUMPRODUCT(('Fixed assets'!$Q$2:$Q$1000=Costs!F$705)*('Fixed assets'!$U$2:$U$1000>Costs!$A769)*('Fixed assets'!$P$2:$P$1000=Costs!$A769)*('Fixed assets'!$R$2:$R$1000))-SUMPRODUCT(('Fixed assets'!$Q$2:$Q$1000=Costs!F$705)*('Fixed assets'!$U$2:$U$1000>Costs!$A769)*('Fixed assets'!$P$2:$P$1000=Costs!$A769)*('Fixed assets'!$S$2:$S$1000))","v":0},{"$f":"G681+SUMPRODUCT(('Fixed assets'!$Q$2:$Q$1000=Costs!G$705)*('Fixed assets'!$U$2:$U$1000>Costs!$A769)*('Fixed assets'!$P$2:$P$1000=Costs!$A769)*('Fixed assets'!$R$2:$R$1000))-SUMPRODUCT(('Fixed assets'!$Q$2:$Q$1000=Costs!G$705)*('Fixed assets'!$U$2:$U$1000>Costs!$A769)*('Fixed assets'!$P$2:$P$1000=Costs!$A769)*('Fixed assets'!$S$2:$S$1000))","v":0},{"$f":"H681+SUMPRODUCT(('Fixed assets'!$Q$2:$Q$1000=Costs!H$705)*('Fixed assets'!$U$2:$U$1000>Costs!$A769)*('Fixed assets'!$P$2:$P$1000=Costs!$A769)*('Fixed assets'!$R$2:$R$1000))-SUMPRODUCT(('Fixed assets'!$Q$2:$Q$1000=Costs!H$705)*('Fixed assets'!$U$2:$U$1000>Costs!$A769)*('Fixed assets'!$P$2:$P$1000=Costs!$A769)*('Fixed assets'!$S$2:$S$1000))","v":0},{"$f":"I681+SUMPRODUCT(('Fixed assets'!$Q$2:$Q$1000=Costs!I$705)*('Fixed assets'!$U$2:$U$1000>Costs!$A769)*('Fixed assets'!$P$2:$P$1000=Costs!$A769)*('Fixed assets'!$R$2:$R$1000))-SUMPRODUCT(('Fixed assets'!$Q$2:$Q$1000=Costs!I$705)*('Fixed assets'!$U$2:$U$1000>Costs!$A769)*('Fixed assets'!$P$2:$P$1000=Costs!$A769)*('Fixed assets'!$S$2:$S$1000))","v":0},{"$f":"J681+SUMPRODUCT(('Fixed assets'!$Q$2:$Q$1000=Costs!J$705)*('Fixed assets'!$U$2:$U$1000>Costs!$A769)*('Fixed assets'!$P$2:$P$1000=Costs!$A769)*('Fixed assets'!$R$2:$R$1000))-SUMPRODUCT(('Fixed assets'!$Q$2:$Q$1000=Costs!J$705)*('Fixed assets'!$U$2:$U$1000>Costs!$A769)*('Fixed assets'!$P$2:$P$1000=Costs!$A769)*('Fixed assets'!$S$2:$S$1000))","v":0},{"$f":"K681+SUMPRODUCT(('Fixed assets'!$Q$2:$Q$1000=Costs!K$705)*('Fixed assets'!$U$2:$U$1000>Costs!$A769)*('Fixed assets'!$P$2:$P$1000=Costs!$A769)*('Fixed assets'!$R$2:$R$1000))-SUMPRODUCT(('Fixed assets'!$Q$2:$Q$1000=Costs!K$705)*('Fixed assets'!$U$2:$U$1000>Costs!$A769)*('Fixed assets'!$P$2:$P$1000=Costs!$A769)*('Fixed assets'!$S$2:$S$1000))","v":0},{"$f":"L681+SUMPRODUCT(('Fixed assets'!$Q$2:$Q$1000=Costs!L$705)*('Fixed assets'!$U$2:$U$1000>Costs!$A769)*('Fixed assets'!$P$2:$P$1000=Costs!$A769)*('Fixed assets'!$R$2:$R$1000))-SUMPRODUCT(('Fixed assets'!$Q$2:$Q$1000=Costs!L$705)*('Fixed assets'!$U$2:$U$1000>Costs!$A769)*('Fixed assets'!$P$2:$P$1000=Costs!$A769)*('Fixed assets'!$S$2:$S$1000))","v":0},{"$f":"M681+SUMPRODUCT(('Fixed assets'!$Q$2:$Q$1000=Costs!M$705)*('Fixed assets'!$U$2:$U$1000>Costs!$A769)*('Fixed assets'!$P$2:$P$1000=Costs!$A769)*('Fixed assets'!$R$2:$R$1000))-SUMPRODUCT(('Fixed assets'!$Q$2:$Q$1000=Costs!M$705)*('Fixed assets'!$U$2:$U$1000>Costs!$A769)*('Fixed assets'!$P$2:$P$1000=Costs!$A769)*('Fixed assets'!$S$2:$S$1000))","v":0},{"$f":"N681+SUMPRODUCT(('Fixed assets'!$Q$2:$Q$1000=Costs!N$705)*('Fixed assets'!$U$2:$U$1000>Costs!$A769)*('Fixed assets'!$P$2:$P$1000=Costs!$A769)*('Fixed assets'!$R$2:$R$1000))-SUMPRODUCT(('Fixed assets'!$Q$2:$Q$1000=Costs!N$705)*('Fixed assets'!$U$2:$U$1000>Costs!$A769)*('Fixed assets'!$P$2:$P$1000=Costs!$A769)*('Fixed assets'!$S$2:$S$1000))","v":0},{"$f":"O681+SUMPRODUCT(('Fixed assets'!$Q$2:$Q$1000=Costs!O$705)*('Fixed assets'!$U$2:$U$1000>Costs!$A769)*('Fixed assets'!$P$2:$P$1000=Costs!$A769)*('Fixed assets'!$R$2:$R$1000))-SUMPRODUCT(('Fixed assets'!$Q$2:$Q$1000=Costs!O$705)*('Fixed assets'!$U$2:$U$1000>Costs!$A769)*('Fixed assets'!$P$2:$P$1000=Costs!$A769)*('Fixed assets'!$S$2:$S$1000))","v":0},{"$f":"P681+SUMPRODUCT(('Fixed assets'!$Q$2:$Q$1000=Costs!P$705)*('Fixed assets'!$U$2:$U$1000>Costs!$A769)*('Fixed assets'!$P$2:$P$1000=Costs!$A769)*('Fixed assets'!$R$2:$R$1000))-SUMPRODUCT(('Fixed assets'!$Q$2:$Q$1000=Costs!P$705)*('Fixed assets'!$U$2:$U$1000>Costs!$A769)*('Fixed assets'!$P$2:$P$1000=Costs!$A769)*('Fixed assets'!$S$2:$S$1000))","v":0},{"$f":"Q681+SUMPRODUCT(('Fixed assets'!$Q$2:$Q$1000=Costs!Q$705)*('Fixed assets'!$U$2:$U$1000>Costs!$A769)*('Fixed assets'!$P$2:$P$1000=Costs!$A769)*('Fixed assets'!$R$2:$R$1000))-SUMPRODUCT(('Fixed assets'!$Q$2:$Q$1000=Costs!Q$705)*('Fixed assets'!$U$2:$U$1000>Costs!$A769)*('Fixed assets'!$P$2:$P$1000=Costs!$A769)*('Fixed assets'!$S$2:$S$1000))","v":0},{"$f":"R681+SUMPRODUCT(('Fixed assets'!$Q$2:$Q$1000=Costs!R$705)*('Fixed assets'!$U$2:$U$1000>Costs!$A769)*('Fixed assets'!$P$2:$P$1000=Costs!$A769)*('Fixed assets'!$R$2:$R$1000))-SUMPRODUCT(('Fixed assets'!$Q$2:$Q$1000=Costs!R$705)*('Fixed assets'!$U$2:$U$1000>Costs!$A769)*('Fixed assets'!$P$2:$P$1000=Costs!$A769)*('Fixed assets'!$S$2:$S$1000))","v":0},{"$f":"S681+SUMPRODUCT(('Fixed assets'!$Q$2:$Q$1000=Costs!S$705)*('Fixed assets'!$U$2:$U$1000>Costs!$A769)*('Fixed assets'!$P$2:$P$1000=Costs!$A769)*('Fixed assets'!$R$2:$R$1000))-SUMPRODUCT(('Fixed assets'!$Q$2:$Q$1000=Costs!S$705)*('Fixed assets'!$U$2:$U$1000>Costs!$A769)*('Fixed assets'!$P$2:$P$1000=Costs!$A769)*('Fixed assets'!$S$2:$S$1000))","v":0},{"$f":"T681+SUMPRODUCT(('Fixed assets'!$Q$2:$Q$1000=Costs!T$705)*('Fixed assets'!$U$2:$U$1000>Costs!$A769)*('Fixed assets'!$P$2:$P$1000=Costs!$A769)*('Fixed assets'!$R$2:$R$1000))-SUMPRODUCT(('Fixed assets'!$Q$2:$Q$1000=Costs!T$705)*('Fixed assets'!$U$2:$U$1000>Costs!$A769)*('Fixed assets'!$P$2:$P$1000=Costs!$A769)*('Fixed assets'!$S$2:$S$1000))","v":0},{"$f":"U681+SUMPRODUCT(('Fixed assets'!$Q$2:$Q$1000=Costs!U$705)*('Fixed assets'!$U$2:$U$1000>Costs!$A769)*('Fixed assets'!$P$2:$P$1000=Costs!$A769)*('Fixed assets'!$R$2:$R$1000))-SUMPRODUCT(('Fixed assets'!$Q$2:$Q$1000=Costs!U$705)*('Fixed assets'!$U$2:$U$1000>Costs!$A769)*('Fixed assets'!$P$2:$P$1000=Costs!$A769)*('Fixed assets'!$S$2:$S$1000))","v":0},{"$f":"V681+SUMPRODUCT(('Fixed assets'!$Q$2:$Q$1000=Costs!V$705)*('Fixed assets'!$U$2:$U$1000>Costs!$A769)*('Fixed assets'!$P$2:$P$1000=Costs!$A769)*('Fixed assets'!$R$2:$R$1000))-SUMPRODUCT(('Fixed assets'!$Q$2:$Q$1000=Costs!V$705)*('Fixed assets'!$U$2:$U$1000>Costs!$A769)*('Fixed assets'!$P$2:$P$1000=Costs!$A769)*('Fixed assets'!$S$2:$S$1000))","v":0},{"$f":"W681+SUMPRODUCT(('Fixed assets'!$Q$2:$Q$1000=Costs!W$705)*('Fixed assets'!$U$2:$U$1000>Costs!$A769)*('Fixed assets'!$P$2:$P$1000=Costs!$A769)*('Fixed assets'!$R$2:$R$1000))-SUMPRODUCT(('Fixed assets'!$Q$2:$Q$1000=Costs!W$705)*('Fixed assets'!$U$2:$U$1000>Costs!$A769)*('Fixed assets'!$P$2:$P$1000=Costs!$A769)*('Fixed assets'!$S$2:$S$1000))","v":0},{"$f":"X681+SUMPRODUCT(('Fixed assets'!$Q$2:$Q$1000=Costs!X$705)*('Fixed assets'!$U$2:$U$1000>Costs!$A769)*('Fixed assets'!$P$2:$P$1000=Costs!$A769)*('Fixed assets'!$R$2:$R$1000))-SUMPRODUCT(('Fixed assets'!$Q$2:$Q$1000=Costs!X$705)*('Fixed assets'!$U$2:$U$1000>Costs!$A769)*('Fixed assets'!$P$2:$P$1000=Costs!$A769)*('Fixed assets'!$S$2:$S$1000))","v":0},{"$f":"Y681+SUMPRODUCT(('Fixed assets'!$Q$2:$Q$1000=Costs!Y$705)*('Fixed assets'!$U$2:$U$1000>Costs!$A769)*('Fixed assets'!$P$2:$P$1000=Costs!$A769)*('Fixed assets'!$R$2:$R$1000))-SUMPRODUCT(('Fixed assets'!$Q$2:$Q$1000=Costs!Y$705)*('Fixed assets'!$U$2:$U$1000>Costs!$A769)*('Fixed assets'!$P$2:$P$1000=Costs!$A769)*('Fixed assets'!$S$2:$S$1000))","v":0},{"$f":"Z681+SUMPRODUCT(('Fixed assets'!$Q$2:$Q$1000=Costs!Z$705)*('Fixed assets'!$U$2:$U$1000>Costs!$A769)*('Fixed assets'!$P$2:$P$1000=Costs!$A769)*('Fixed assets'!$R$2:$R$1000))-SUMPRODUCT(('Fixed assets'!$Q$2:$Q$1000=Costs!Z$705)*('Fixed assets'!$U$2:$U$1000>Costs!$A769)*('Fixed assets'!$P$2:$P$1000=Costs!$A769)*('Fixed assets'!$S$2:$S$1000))","v":0},{"$f":"AA681+SUMPRODUCT(('Fixed assets'!$Q$2:$Q$1000=Costs!AA$705)*('Fixed assets'!$U$2:$U$1000>Costs!$A769)*('Fixed assets'!$P$2:$P$1000=Costs!$A769)*('Fixed assets'!$R$2:$R$1000))-SUMPRODUCT(('Fixed assets'!$Q$2:$Q$1000=Costs!AA$705)*('Fixed assets'!$U$2:$U$1000>Costs!$A769)*('Fixed assets'!$P$2:$P$1000=Costs!$A769)*('Fixed assets'!$S$2:$S$1000))","v":0},{"$f":"AB681+SUMPRODUCT(('Fixed assets'!$Q$2:$Q$1000=Costs!AB$705)*('Fixed assets'!$U$2:$U$1000>Costs!$A769)*('Fixed assets'!$P$2:$P$1000=Costs!$A769)*('Fixed assets'!$R$2:$R$1000))-SUMPRODUCT(('Fixed assets'!$Q$2:$Q$1000=Costs!AB$705)*('Fixed assets'!$U$2:$U$1000>Costs!$A769)*('Fixed assets'!$P$2:$P$1000=Costs!$A769)*('Fixed assets'!$S$2:$S$1000))","v":0},{"$f":"AC681+SUMPRODUCT(('Fixed assets'!$Q$2:$Q$1000=Costs!AC$705)*('Fixed assets'!$U$2:$U$1000>Costs!$A769)*('Fixed assets'!$P$2:$P$1000=Costs!$A769)*('Fixed assets'!$R$2:$R$1000))-SUMPRODUCT(('Fixed assets'!$Q$2:$Q$1000=Costs!AC$705)*('Fixed assets'!$U$2:$U$1000>Costs!$A769)*('Fixed assets'!$P$2:$P$1000=Costs!$A769)*('Fixed assets'!$S$2:$S$1000))","v":0},{"$f":"AD681+SUMPRODUCT(('Fixed assets'!$Q$2:$Q$1000=Costs!AD$705)*('Fixed assets'!$U$2:$U$1000>Costs!$A769)*('Fixed assets'!$P$2:$P$1000=Costs!$A769)*('Fixed assets'!$R$2:$R$1000))-SUMPRODUCT(('Fixed assets'!$Q$2:$Q$1000=Costs!AD$705)*('Fixed assets'!$U$2:$U$1000>Costs!$A769)*('Fixed assets'!$P$2:$P$1000=Costs!$A769)*('Fixed assets'!$S$2:$S$1000))","v":0},{"$f":"AE681+SUMPRODUCT(('Fixed assets'!$Q$2:$Q$1000=Costs!AE$705)*('Fixed assets'!$U$2:$U$1000>Costs!$A769)*('Fixed assets'!$P$2:$P$1000=Costs!$A769)*('Fixed assets'!$R$2:$R$1000))-SUMPRODUCT(('Fixed assets'!$Q$2:$Q$1000=Costs!AE$705)*('Fixed assets'!$U$2:$U$1000>Costs!$A769)*('Fixed assets'!$P$2:$P$1000=Costs!$A769)*('Fixed assets'!$S$2:$S$1000))","v":0},{"$f":"AF681+SUMPRODUCT(('Fixed assets'!$Q$2:$Q$1000=Costs!AF$705)*('Fixed assets'!$U$2:$U$1000>Costs!$A769)*('Fixed assets'!$P$2:$P$1000=Costs!$A769)*('Fixed assets'!$R$2:$R$1000))-SUMPRODUCT(('Fixed assets'!$Q$2:$Q$1000=Costs!AF$705)*('Fixed assets'!$U$2:$U$1000>Costs!$A769)*('Fixed assets'!$P$2:$P$1000=Costs!$A769)*('Fixed assets'!$S$2:$S$1000))","v":0},{"$f":"AG681+SUMPRODUCT(('Fixed assets'!$Q$2:$Q$1000=Costs!AG$705)*('Fixed assets'!$U$2:$U$1000>Costs!$A769)*('Fixed assets'!$P$2:$P$1000=Costs!$A769)*('Fixed assets'!$R$2:$R$1000))-SUMPRODUCT(('Fixed assets'!$Q$2:$Q$1000=Costs!AG$705)*('Fixed assets'!$U$2:$U$1000>Costs!$A769)*('Fixed assets'!$P$2:$P$1000=Costs!$A769)*('Fixed assets'!$S$2:$S$1000))","v":0},{"$f":"AH681+SUMPRODUCT(('Fixed assets'!$Q$2:$Q$1000=Costs!AH$705)*('Fixed assets'!$U$2:$U$1000>Costs!$A769)*('Fixed assets'!$P$2:$P$1000=Costs!$A769)*('Fixed assets'!$R$2:$R$1000))-SUMPRODUCT(('Fixed assets'!$Q$2:$Q$1000=Costs!AH$705)*('Fixed assets'!$U$2:$U$1000>Costs!$A769)*('Fixed assets'!$P$2:$P$1000=Costs!$A769)*('Fixed assets'!$S$2:$S$1000))","v":0},{"$f":"AI681+SUMPRODUCT(('Fixed assets'!$Q$2:$Q$1000=Costs!AI$705)*('Fixed assets'!$U$2:$U$1000>Costs!$A769)*('Fixed assets'!$P$2:$P$1000=Costs!$A769)*('Fixed assets'!$R$2:$R$1000))-SUMPRODUCT(('Fixed assets'!$Q$2:$Q$1000=Costs!AI$705)*('Fixed assets'!$U$2:$U$1000>Costs!$A769)*('Fixed assets'!$P$2:$P$1000=Costs!$A769)*('Fixed assets'!$S$2:$S$1000))","v":0},{"$f":"AJ681+SUMPRODUCT(('Fixed assets'!$Q$2:$Q$1000=Costs!AJ$705)*('Fixed assets'!$U$2:$U$1000>Costs!$A769)*('Fixed assets'!$P$2:$P$1000=Costs!$A769)*('Fixed assets'!$R$2:$R$1000))-SUMPRODUCT(('Fixed assets'!$Q$2:$Q$1000=Costs!AJ$705)*('Fixed assets'!$U$2:$U$1000>Costs!$A769)*('Fixed assets'!$P$2:$P$1000=Costs!$A769)*('Fixed assets'!$S$2:$S$1000))","v":0},{"$f":"AK681+SUMPRODUCT(('Fixed assets'!$Q$2:$Q$1000=Costs!AK$705)*('Fixed assets'!$U$2:$U$1000>Costs!$A769)*('Fixed assets'!$P$2:$P$1000=Costs!$A769)*('Fixed assets'!$R$2:$R$1000))-SUMPRODUCT(('Fixed assets'!$Q$2:$Q$1000=Costs!AK$705)*('Fixed assets'!$U$2:$U$1000>Costs!$A769)*('Fixed assets'!$P$2:$P$1000=Costs!$A769)*('Fixed assets'!$S$2:$S$1000))","v":0},{"$f":"AL681+SUMPRODUCT(('Fixed assets'!$Q$2:$Q$1000=Costs!AL$705)*('Fixed assets'!$U$2:$U$1000>Costs!$A769)*('Fixed assets'!$P$2:$P$1000=Costs!$A769)*('Fixed assets'!$R$2:$R$1000))-SUMPRODUCT(('Fixed assets'!$Q$2:$Q$1000=Costs!AL$705)*('Fixed assets'!$U$2:$U$1000>Costs!$A769)*('Fixed assets'!$P$2:$P$1000=Costs!$A769)*('Fixed assets'!$S$2:$S$1000))","v":0},{"$f":"AM681+SUMPRODUCT(('Fixed assets'!$Q$2:$Q$1000=Costs!AM$705)*('Fixed assets'!$U$2:$U$1000>Costs!$A769)*('Fixed assets'!$P$2:$P$1000=Costs!$A769)*('Fixed assets'!$R$2:$R$1000))-SUMPRODUCT(('Fixed assets'!$Q$2:$Q$1000=Costs!AM$705)*('Fixed assets'!$U$2:$U$1000>Costs!$A769)*('Fixed assets'!$P$2:$P$1000=Costs!$A769)*('Fixed assets'!$S$2:$S$1000))","v":0},{"$f":"AN681+SUMPRODUCT(('Fixed assets'!$Q$2:$Q$1000=Costs!AN$705)*('Fixed assets'!$U$2:$U$1000>Costs!$A769)*('Fixed assets'!$P$2:$P$1000=Costs!$A769)*('Fixed assets'!$R$2:$R$1000))-SUMPRODUCT(('Fixed assets'!$Q$2:$Q$1000=Costs!AN$705)*('Fixed assets'!$U$2:$U$1000>Costs!$A769)*('Fixed assets'!$P$2:$P$1000=Costs!$A769)*('Fixed assets'!$S$2:$S$1000))","v":0},{"$f":"AO681+SUMPRODUCT(('Fixed assets'!$Q$2:$Q$1000=Costs!AO$705)*('Fixed assets'!$U$2:$U$1000>Costs!$A769)*('Fixed assets'!$P$2:$P$1000=Costs!$A769)*('Fixed assets'!$R$2:$R$1000))-SUMPRODUCT(('Fixed assets'!$Q$2:$Q$1000=Costs!AO$705)*('Fixed assets'!$U$2:$U$1000>Costs!$A769)*('Fixed assets'!$P$2:$P$1000=Costs!$A769)*('Fixed assets'!$S$2:$S$1000))","v":0},{"$f":"AP681+SUMPRODUCT(('Fixed assets'!$Q$2:$Q$1000=Costs!AP$705)*('Fixed assets'!$U$2:$U$1000>Costs!$A769)*('Fixed assets'!$P$2:$P$1000=Costs!$A769)*('Fixed assets'!$R$2:$R$1000))-SUMPRODUCT(('Fixed assets'!$Q$2:$Q$1000=Costs!AP$705)*('Fixed assets'!$U$2:$U$1000>Costs!$A769)*('Fixed assets'!$P$2:$P$1000=Costs!$A769)*('Fixed assets'!$S$2:$S$1000))","v":0},{"$f":"AQ681+SUMPRODUCT(('Fixed assets'!$Q$2:$Q$1000=Costs!AQ$705)*('Fixed assets'!$U$2:$U$1000>Costs!$A769)*('Fixed assets'!$P$2:$P$1000=Costs!$A769)*('Fixed assets'!$R$2:$R$1000))-SUMPRODUCT(('Fixed assets'!$Q$2:$Q$1000=Costs!AQ$705)*('Fixed assets'!$U$2:$U$1000>Costs!$A769)*('Fixed assets'!$P$2:$P$1000=Costs!$A769)*('Fixed assets'!$S$2:$S$1000))","v":0}]
[2079,0,{"$f":"C682+SUMPRODUCT(('Fixed assets'!$Q$2:$Q$1000=Costs!C$705)*('Fixed assets'!$U$2:$U$1000>Costs!$A770)*('Fixed assets'!$P$2:$P$1000=Costs!$A770)*('Fixed assets'!$R$2:$R$1000))-SUMPRODUCT(('Fixed assets'!$Q$2:$Q$1000=Costs!C$705)*('Fixed assets'!$U$2:$U$1000>Costs!$A770)*('Fixed assets'!$P$2:$P$1000=Costs!$A770)*('Fixed assets'!$S$2:$S$1000))","v":0},{"$f":"D682+SUMPRODUCT(('Fixed assets'!$Q$2:$Q$1000=Costs!D$705)*('Fixed assets'!$U$2:$U$1000>Costs!$A770)*('Fixed assets'!$P$2:$P$1000=Costs!$A770)*('Fixed assets'!$R$2:$R$1000))-SUMPRODUCT(('Fixed assets'!$Q$2:$Q$1000=Costs!D$705)*('Fixed assets'!$U$2:$U$1000>Costs!$A770)*('Fixed assets'!$P$2:$P$1000=Costs!$A770)*('Fixed assets'!$S$2:$S$1000))","v":0},{"$f":"E682+SUMPRODUCT(('Fixed assets'!$Q$2:$Q$1000=Costs!E$705)*('Fixed assets'!$U$2:$U$1000>Costs!$A770)*('Fixed assets'!$P$2:$P$1000=Costs!$A770)*('Fixed assets'!$R$2:$R$1000))-SUMPRODUCT(('Fixed assets'!$Q$2:$Q$1000=Costs!E$705)*('Fixed assets'!$U$2:$U$1000>Costs!$A770)*('Fixed assets'!$P$2:$P$1000=Costs!$A770)*('Fixed assets'!$S$2:$S$1000))","v":0},{"$f":"F682+SUMPRODUCT(('Fixed assets'!$Q$2:$Q$1000=Costs!F$705)*('Fixed assets'!$U$2:$U$1000>Costs!$A770)*('Fixed assets'!$P$2:$P$1000=Costs!$A770)*('Fixed assets'!$R$2:$R$1000))-SUMPRODUCT(('Fixed assets'!$Q$2:$Q$1000=Costs!F$705)*('Fixed assets'!$U$2:$U$1000>Costs!$A770)*('Fixed assets'!$P$2:$P$1000=Costs!$A770)*('Fixed assets'!$S$2:$S$1000))","v":0},{"$f":"G682+SUMPRODUCT(('Fixed assets'!$Q$2:$Q$1000=Costs!G$705)*('Fixed assets'!$U$2:$U$1000>Costs!$A770)*('Fixed assets'!$P$2:$P$1000=Costs!$A770)*('Fixed assets'!$R$2:$R$1000))-SUMPRODUCT(('Fixed assets'!$Q$2:$Q$1000=Costs!G$705)*('Fixed assets'!$U$2:$U$1000>Costs!$A770)*('Fixed assets'!$P$2:$P$1000=Costs!$A770)*('Fixed assets'!$S$2:$S$1000))","v":0},{"$f":"H682+SUMPRODUCT(('Fixed assets'!$Q$2:$Q$1000=Costs!H$705)*('Fixed assets'!$U$2:$U$1000>Costs!$A770)*('Fixed assets'!$P$2:$P$1000=Costs!$A770)*('Fixed assets'!$R$2:$R$1000))-SUMPRODUCT(('Fixed assets'!$Q$2:$Q$1000=Costs!H$705)*('Fixed assets'!$U$2:$U$1000>Costs!$A770)*('Fixed assets'!$P$2:$P$1000=Costs!$A770)*('Fixed assets'!$S$2:$S$1000))","v":0},{"$f":"I682+SUMPRODUCT(('Fixed assets'!$Q$2:$Q$1000=Costs!I$705)*('Fixed assets'!$U$2:$U$1000>Costs!$A770)*('Fixed assets'!$P$2:$P$1000=Costs!$A770)*('Fixed assets'!$R$2:$R$1000))-SUMPRODUCT(('Fixed assets'!$Q$2:$Q$1000=Costs!I$705)*('Fixed assets'!$U$2:$U$1000>Costs!$A770)*('Fixed assets'!$P$2:$P$1000=Costs!$A770)*('Fixed assets'!$S$2:$S$1000))","v":0},{"$f":"J682+SUMPRODUCT(('Fixed assets'!$Q$2:$Q$1000=Costs!J$705)*('Fixed assets'!$U$2:$U$1000>Costs!$A770)*('Fixed assets'!$P$2:$P$1000=Costs!$A770)*('Fixed assets'!$R$2:$R$1000))-SUMPRODUCT(('Fixed assets'!$Q$2:$Q$1000=Costs!J$705)*('Fixed assets'!$U$2:$U$1000>Costs!$A770)*('Fixed assets'!$P$2:$P$1000=Costs!$A770)*('Fixed assets'!$S$2:$S$1000))","v":0},{"$f":"K682+SUMPRODUCT(('Fixed assets'!$Q$2:$Q$1000=Costs!K$705)*('Fixed assets'!$U$2:$U$1000>Costs!$A770)*('Fixed assets'!$P$2:$P$1000=Costs!$A770)*('Fixed assets'!$R$2:$R$1000))-SUMPRODUCT(('Fixed assets'!$Q$2:$Q$1000=Costs!K$705)*('Fixed assets'!$U$2:$U$1000>Costs!$A770)*('Fixed assets'!$P$2:$P$1000=Costs!$A770)*('Fixed assets'!$S$2:$S$1000))","v":0},{"$f":"L682+SUMPRODUCT(('Fixed assets'!$Q$2:$Q$1000=Costs!L$705)*('Fixed assets'!$U$2:$U$1000>Costs!$A770)*('Fixed assets'!$P$2:$P$1000=Costs!$A770)*('Fixed assets'!$R$2:$R$1000))-SUMPRODUCT(('Fixed assets'!$Q$2:$Q$1000=Costs!L$705)*('Fixed assets'!$U$2:$U$1000>Costs!$A770)*('Fixed assets'!$P$2:$P$1000=Costs!$A770)*('Fixed assets'!$S$2:$S$1000))","v":0},{"$f":"M682+SUMPRODUCT(('Fixed assets'!$Q$2:$Q$1000=Costs!M$705)*('Fixed assets'!$U$2:$U$1000>Costs!$A770)*('Fixed assets'!$P$2:$P$1000=Costs!$A770)*('Fixed assets'!$R$2:$R$1000))-SUMPRODUCT(('Fixed assets'!$Q$2:$Q$1000=Costs!M$705)*('Fixed assets'!$U$2:$U$1000>Costs!$A770)*('Fixed assets'!$P$2:$P$1000=Costs!$A770)*('Fixed assets'!$S$2:$S$1000))","v":0},{"$f":"N682+SUMPRODUCT(('Fixed assets'!$Q$2:$Q$1000=Costs!N$705)*('Fixed assets'!$U$2:$U$1000>Costs!$A770)*('Fixed assets'!$P$2:$P$1000=Costs!$A770)*('Fixed assets'!$R$2:$R$1000))-SUMPRODUCT(('Fixed assets'!$Q$2:$Q$1000=Costs!N$705)*('Fixed assets'!$U$2:$U$1000>Costs!$A770)*('Fixed assets'!$P$2:$P$1000=Costs!$A770)*('Fixed assets'!$S$2:$S$1000))","v":0},{"$f":"O682+SUMPRODUCT(('Fixed assets'!$Q$2:$Q$1000=Costs!O$705)*('Fixed assets'!$U$2:$U$1000>Costs!$A770)*('Fixed assets'!$P$2:$P$1000=Costs!$A770)*('Fixed assets'!$R$2:$R$1000))-SUMPRODUCT(('Fixed assets'!$Q$2:$Q$1000=Costs!O$705)*('Fixed assets'!$U$2:$U$1000>Costs!$A770)*('Fixed assets'!$P$2:$P$1000=Costs!$A770)*('Fixed assets'!$S$2:$S$1000))","v":0},{"$f":"P682+SUMPRODUCT(('Fixed assets'!$Q$2:$Q$1000=Costs!P$705)*('Fixed assets'!$U$2:$U$1000>Costs!$A770)*('Fixed assets'!$P$2:$P$1000=Costs!$A770)*('Fixed assets'!$R$2:$R$1000))-SUMPRODUCT(('Fixed assets'!$Q$2:$Q$1000=Costs!P$705)*('Fixed assets'!$U$2:$U$1000>Costs!$A770)*('Fixed assets'!$P$2:$P$1000=Costs!$A770)*('Fixed assets'!$S$2:$S$1000))","v":0},{"$f":"Q682+SUMPRODUCT(('Fixed assets'!$Q$2:$Q$1000=Costs!Q$705)*('Fixed assets'!$U$2:$U$1000>Costs!$A770)*('Fixed assets'!$P$2:$P$1000=Costs!$A770)*('Fixed assets'!$R$2:$R$1000))-SUMPRODUCT(('Fixed assets'!$Q$2:$Q$1000=Costs!Q$705)*('Fixed assets'!$U$2:$U$1000>Costs!$A770)*('Fixed assets'!$P$2:$P$1000=Costs!$A770)*('Fixed assets'!$S$2:$S$1000))","v":0},{"$f":"R682+SUMPRODUCT(('Fixed assets'!$Q$2:$Q$1000=Costs!R$705)*('Fixed assets'!$U$2:$U$1000>Costs!$A770)*('Fixed assets'!$P$2:$P$1000=Costs!$A770)*('Fixed assets'!$R$2:$R$1000))-SUMPRODUCT(('Fixed assets'!$Q$2:$Q$1000=Costs!R$705)*('Fixed assets'!$U$2:$U$1000>Costs!$A770)*('Fixed assets'!$P$2:$P$1000=Costs!$A770)*('Fixed assets'!$S$2:$S$1000))","v":0},{"$f":"S682+SUMPRODUCT(('Fixed assets'!$Q$2:$Q$1000=Costs!S$705)*('Fixed assets'!$U$2:$U$1000>Costs!$A770)*('Fixed assets'!$P$2:$P$1000=Costs!$A770)*('Fixed assets'!$R$2:$R$1000))-SUMPRODUCT(('Fixed assets'!$Q$2:$Q$1000=Costs!S$705)*('Fixed assets'!$U$2:$U$1000>Costs!$A770)*('Fixed assets'!$P$2:$P$1000=Costs!$A770)*('Fixed assets'!$S$2:$S$1000))","v":0},{"$f":"T682+SUMPRODUCT(('Fixed assets'!$Q$2:$Q$1000=Costs!T$705)*('Fixed assets'!$U$2:$U$1000>Costs!$A770)*('Fixed assets'!$P$2:$P$1000=Costs!$A770)*('Fixed assets'!$R$2:$R$1000))-SUMPRODUCT(('Fixed assets'!$Q$2:$Q$1000=Costs!T$705)*('Fixed assets'!$U$2:$U$1000>Costs!$A770)*('Fixed assets'!$P$2:$P$1000=Costs!$A770)*('Fixed assets'!$S$2:$S$1000))","v":0},{"$f":"U682+SUMPRODUCT(('Fixed assets'!$Q$2:$Q$1000=Costs!U$705)*('Fixed assets'!$U$2:$U$1000>Costs!$A770)*('Fixed assets'!$P$2:$P$1000=Costs!$A770)*('Fixed assets'!$R$2:$R$1000))-SUMPRODUCT(('Fixed assets'!$Q$2:$Q$1000=Costs!U$705)*('Fixed assets'!$U$2:$U$1000>Costs!$A770)*('Fixed assets'!$P$2:$P$1000=Costs!$A770)*('Fixed assets'!$S$2:$S$1000))","v":0},{"$f":"V682+SUMPRODUCT(('Fixed assets'!$Q$2:$Q$1000=Costs!V$705)*('Fixed assets'!$U$2:$U$1000>Costs!$A770)*('Fixed assets'!$P$2:$P$1000=Costs!$A770)*('Fixed assets'!$R$2:$R$1000))-SUMPRODUCT(('Fixed assets'!$Q$2:$Q$1000=Costs!V$705)*('Fixed assets'!$U$2:$U$1000>Costs!$A770)*('Fixed assets'!$P$2:$P$1000=Costs!$A770)*('Fixed assets'!$S$2:$S$1000))","v":0},{"$f":"W682+SUMPRODUCT(('Fixed assets'!$Q$2:$Q$1000=Costs!W$705)*('Fixed assets'!$U$2:$U$1000>Costs!$A770)*('Fixed assets'!$P$2:$P$1000=Costs!$A770)*('Fixed assets'!$R$2:$R$1000))-SUMPRODUCT(('Fixed assets'!$Q$2:$Q$1000=Costs!W$705)*('Fixed assets'!$U$2:$U$1000>Costs!$A770)*('Fixed assets'!$P$2:$P$1000=Costs!$A770)*('Fixed assets'!$S$2:$S$1000))","v":0},{"$f":"X682+SUMPRODUCT(('Fixed assets'!$Q$2:$Q$1000=Costs!X$705)*('Fixed assets'!$U$2:$U$1000>Costs!$A770)*('Fixed assets'!$P$2:$P$1000=Costs!$A770)*('Fixed assets'!$R$2:$R$1000))-SUMPRODUCT(('Fixed assets'!$Q$2:$Q$1000=Costs!X$705)*('Fixed assets'!$U$2:$U$1000>Costs!$A770)*('Fixed assets'!$P$2:$P$1000=Costs!$A770)*('Fixed assets'!$S$2:$S$1000))","v":0},{"$f":"Y682+SUMPRODUCT(('Fixed assets'!$Q$2:$Q$1000=Costs!Y$705)*('Fixed assets'!$U$2:$U$1000>Costs!$A770)*('Fixed assets'!$P$2:$P$1000=Costs!$A770)*('Fixed assets'!$R$2:$R$1000))-SUMPRODUCT(('Fixed assets'!$Q$2:$Q$1000=Costs!Y$705)*('Fixed assets'!$U$2:$U$1000>Costs!$A770)*('Fixed assets'!$P$2:$P$1000=Costs!$A770)*('Fixed assets'!$S$2:$S$1000))","v":0},{"$f":"Z682+SUMPRODUCT(('Fixed assets'!$Q$2:$Q$1000=Costs!Z$705)*('Fixed assets'!$U$2:$U$1000>Costs!$A770)*('Fixed assets'!$P$2:$P$1000=Costs!$A770)*('Fixed assets'!$R$2:$R$1000))-SUMPRODUCT(('Fixed assets'!$Q$2:$Q$1000=Costs!Z$705)*('Fixed assets'!$U$2:$U$1000>Costs!$A770)*('Fixed assets'!$P$2:$P$1000=Costs!$A770)*('Fixed assets'!$S$2:$S$1000))","v":0},{"$f":"AA682+SUMPRODUCT(('Fixed assets'!$Q$2:$Q$1000=Costs!AA$705)*('Fixed assets'!$U$2:$U$1000>Costs!$A770)*('Fixed assets'!$P$2:$P$1000=Costs!$A770)*('Fixed assets'!$R$2:$R$1000))-SUMPRODUCT(('Fixed assets'!$Q$2:$Q$1000=Costs!AA$705)*('Fixed assets'!$U$2:$U$1000>Costs!$A770)*('Fixed assets'!$P$2:$P$1000=Costs!$A770)*('Fixed assets'!$S$2:$S$1000))","v":0},{"$f":"AB682+SUMPRODUCT(('Fixed assets'!$Q$2:$Q$1000=Costs!AB$705)*('Fixed assets'!$U$2:$U$1000>Costs!$A770)*('Fixed assets'!$P$2:$P$1000=Costs!$A770)*('Fixed assets'!$R$2:$R$1000))-SUMPRODUCT(('Fixed assets'!$Q$2:$Q$1000=Costs!AB$705)*('Fixed assets'!$U$2:$U$1000>Costs!$A770)*('Fixed assets'!$P$2:$P$1000=Costs!$A770)*('Fixed assets'!$S$2:$S$1000))","v":0},{"$f":"AC682+SUMPRODUCT(('Fixed assets'!$Q$2:$Q$1000=Costs!AC$705)*('Fixed assets'!$U$2:$U$1000>Costs!$A770)*('Fixed assets'!$P$2:$P$1000=Costs!$A770)*('Fixed assets'!$R$2:$R$1000))-SUMPRODUCT(('Fixed assets'!$Q$2:$Q$1000=Costs!AC$705)*('Fixed assets'!$U$2:$U$1000>Costs!$A770)*('Fixed assets'!$P$2:$P$1000=Costs!$A770)*('Fixed assets'!$S$2:$S$1000))","v":0},{"$f":"AD682+SUMPRODUCT(('Fixed assets'!$Q$2:$Q$1000=Costs!AD$705)*('Fixed assets'!$U$2:$U$1000>Costs!$A770)*('Fixed assets'!$P$2:$P$1000=Costs!$A770)*('Fixed assets'!$R$2:$R$1000))-SUMPRODUCT(('Fixed assets'!$Q$2:$Q$1000=Costs!AD$705)*('Fixed assets'!$U$2:$U$1000>Costs!$A770)*('Fixed assets'!$P$2:$P$1000=Costs!$A770)*('Fixed assets'!$S$2:$S$1000))","v":0},{"$f":"AE682+SUMPRODUCT(('Fixed assets'!$Q$2:$Q$1000=Costs!AE$705)*('Fixed assets'!$U$2:$U$1000>Costs!$A770)*('Fixed assets'!$P$2:$P$1000=Costs!$A770)*('Fixed assets'!$R$2:$R$1000))-SUMPRODUCT(('Fixed assets'!$Q$2:$Q$1000=Costs!AE$705)*('Fixed assets'!$U$2:$U$1000>Costs!$A770)*('Fixed assets'!$P$2:$P$1000=Costs!$A770)*('Fixed assets'!$S$2:$S$1000))","v":0},{"$f":"AF682+SUMPRODUCT(('Fixed assets'!$Q$2:$Q$1000=Costs!AF$705)*('Fixed assets'!$U$2:$U$1000>Costs!$A770)*('Fixed assets'!$P$2:$P$1000=Costs!$A770)*('Fixed assets'!$R$2:$R$1000))-SUMPRODUCT(('Fixed assets'!$Q$2:$Q$1000=Costs!AF$705)*('Fixed assets'!$U$2:$U$1000>Costs!$A770)*('Fixed assets'!$P$2:$P$1000=Costs!$A770)*('Fixed assets'!$S$2:$S$1000))","v":0},{"$f":"AG682+SUMPRODUCT(('Fixed assets'!$Q$2:$Q$1000=Costs!AG$705)*('Fixed assets'!$U$2:$U$1000>Costs!$A770)*('Fixed assets'!$P$2:$P$1000=Costs!$A770)*('Fixed assets'!$R$2:$R$1000))-SUMPRODUCT(('Fixed assets'!$Q$2:$Q$1000=Costs!AG$705)*('Fixed assets'!$U$2:$U$1000>Costs!$A770)*('Fixed assets'!$P$2:$P$1000=Costs!$A770)*('Fixed assets'!$S$2:$S$1000))","v":0},{"$f":"AH682+SUMPRODUCT(('Fixed assets'!$Q$2:$Q$1000=Costs!AH$705)*('Fixed assets'!$U$2:$U$1000>Costs!$A770)*('Fixed assets'!$P$2:$P$1000=Costs!$A770)*('Fixed assets'!$R$2:$R$1000))-SUMPRODUCT(('Fixed assets'!$Q$2:$Q$1000=Costs!AH$705)*('Fixed assets'!$U$2:$U$1000>Costs!$A770)*('Fixed assets'!$P$2:$P$1000=Costs!$A770)*('Fixed assets'!$S$2:$S$1000))","v":0},{"$f":"AI682+SUMPRODUCT(('Fixed assets'!$Q$2:$Q$1000=Costs!AI$705)*('Fixed assets'!$U$2:$U$1000>Costs!$A770)*('Fixed assets'!$P$2:$P$1000=Costs!$A770)*('Fixed assets'!$R$2:$R$1000))-SUMPRODUCT(('Fixed assets'!$Q$2:$Q$1000=Costs!AI$705)*('Fixed assets'!$U$2:$U$1000>Costs!$A770)*('Fixed assets'!$P$2:$P$1000=Costs!$A770)*('Fixed assets'!$S$2:$S$1000))","v":0},{"$f":"AJ682+SUMPRODUCT(('Fixed assets'!$Q$2:$Q$1000=Costs!AJ$705)*('Fixed assets'!$U$2:$U$1000>Costs!$A770)*('Fixed assets'!$P$2:$P$1000=Costs!$A770)*('Fixed assets'!$R$2:$R$1000))-SUMPRODUCT(('Fixed assets'!$Q$2:$Q$1000=Costs!AJ$705)*('Fixed assets'!$U$2:$U$1000>Costs!$A770)*('Fixed assets'!$P$2:$P$1000=Costs!$A770)*('Fixed assets'!$S$2:$S$1000))","v":0},{"$f":"AK682+SUMPRODUCT(('Fixed assets'!$Q$2:$Q$1000=Costs!AK$705)*('Fixed assets'!$U$2:$U$1000>Costs!$A770)*('Fixed assets'!$P$2:$P$1000=Costs!$A770)*('Fixed assets'!$R$2:$R$1000))-SUMPRODUCT(('Fixed assets'!$Q$2:$Q$1000=Costs!AK$705)*('Fixed assets'!$U$2:$U$1000>Costs!$A770)*('Fixed assets'!$P$2:$P$1000=Costs!$A770)*('Fixed assets'!$S$2:$S$1000))","v":0},{"$f":"AL682+SUMPRODUCT(('Fixed assets'!$Q$2:$Q$1000=Costs!AL$705)*('Fixed assets'!$U$2:$U$1000>Costs!$A770)*('Fixed assets'!$P$2:$P$1000=Costs!$A770)*('Fixed assets'!$R$2:$R$1000))-SUMPRODUCT(('Fixed assets'!$Q$2:$Q$1000=Costs!AL$705)*('Fixed assets'!$U$2:$U$1000>Costs!$A770)*('Fixed assets'!$P$2:$P$1000=Costs!$A770)*('Fixed assets'!$S$2:$S$1000))","v":0},{"$f":"AM682+SUMPRODUCT(('Fixed assets'!$Q$2:$Q$1000=Costs!AM$705)*('Fixed assets'!$U$2:$U$1000>Costs!$A770)*('Fixed assets'!$P$2:$P$1000=Costs!$A770)*('Fixed assets'!$R$2:$R$1000))-SUMPRODUCT(('Fixed assets'!$Q$2:$Q$1000=Costs!AM$705)*('Fixed assets'!$U$2:$U$1000>Costs!$A770)*('Fixed assets'!$P$2:$P$1000=Costs!$A770)*('Fixed assets'!$S$2:$S$1000))","v":0},{"$f":"AN682+SUMPRODUCT(('Fixed assets'!$Q$2:$Q$1000=Costs!AN$705)*('Fixed assets'!$U$2:$U$1000>Costs!$A770)*('Fixed assets'!$P$2:$P$1000=Costs!$A770)*('Fixed assets'!$R$2:$R$1000))-SUMPRODUCT(('Fixed assets'!$Q$2:$Q$1000=Costs!AN$705)*('Fixed assets'!$U$2:$U$1000>Costs!$A770)*('Fixed assets'!$P$2:$P$1000=Costs!$A770)*('Fixed assets'!$S$2:$S$1000))","v":0},{"$f":"AO682+SUMPRODUCT(('Fixed assets'!$Q$2:$Q$1000=Costs!AO$705)*('Fixed assets'!$U$2:$U$1000>Costs!$A770)*('Fixed assets'!$P$2:$P$1000=Costs!$A770)*('Fixed assets'!$R$2:$R$1000))-SUMPRODUCT(('Fixed assets'!$Q$2:$Q$1000=Costs!AO$705)*('Fixed assets'!$U$2:$U$1000>Costs!$A770)*('Fixed assets'!$P$2:$P$1000=Costs!$A770)*('Fixed assets'!$S$2:$S$1000))","v":0},{"$f":"AP682+SUMPRODUCT(('Fixed assets'!$Q$2:$Q$1000=Costs!AP$705)*('Fixed assets'!$U$2:$U$1000>Costs!$A770)*('Fixed assets'!$P$2:$P$1000=Costs!$A770)*('Fixed assets'!$R$2:$R$1000))-SUMPRODUCT(('Fixed assets'!$Q$2:$Q$1000=Costs!AP$705)*('Fixed assets'!$U$2:$U$1000>Costs!$A770)*('Fixed assets'!$P$2:$P$1000=Costs!$A770)*('Fixed assets'!$S$2:$S$1000))","v":0},{"$f":"AQ682+SUMPRODUCT(('Fixed assets'!$Q$2:$Q$1000=Costs!AQ$705)*('Fixed assets'!$U$2:$U$1000>Costs!$A770)*('Fixed assets'!$P$2:$P$1000=Costs!$A770)*('Fixed assets'!$R$2:$R$1000))-SUMPRODUCT(('Fixed assets'!$Q$2:$Q$1000=Costs!AQ$705)*('Fixed assets'!$U$2:$U$1000>Costs!$A770)*('Fixed assets'!$P$2:$P$1000=Costs!$A770)*('Fixed assets'!$S$2:$S$1000))","v":0}]
[2080,0,{"$f":"C683+SUMPRODUCT(('Fixed assets'!$Q$2:$Q$1000=Costs!C$705)*('Fixed assets'!$U$2:$U$1000>Costs!$A771)*('Fixed assets'!$P$2:$P$1000=Costs!$A771)*('Fixed assets'!$R$2:$R$1000))-SUMPRODUCT(('Fixed assets'!$Q$2:$Q$1000=Costs!C$705)*('Fixed assets'!$U$2:$U$1000>Costs!$A771)*('Fixed assets'!$P$2:$P$1000=Costs!$A771)*('Fixed assets'!$S$2:$S$1000))","v":0},{"$f":"D683+SUMPRODUCT(('Fixed assets'!$Q$2:$Q$1000=Costs!D$705)*('Fixed assets'!$U$2:$U$1000>Costs!$A771)*('Fixed assets'!$P$2:$P$1000=Costs!$A771)*('Fixed assets'!$R$2:$R$1000))-SUMPRODUCT(('Fixed assets'!$Q$2:$Q$1000=Costs!D$705)*('Fixed assets'!$U$2:$U$1000>Costs!$A771)*('Fixed assets'!$P$2:$P$1000=Costs!$A771)*('Fixed assets'!$S$2:$S$1000))","v":0},{"$f":"E683+SUMPRODUCT(('Fixed assets'!$Q$2:$Q$1000=Costs!E$705)*('Fixed assets'!$U$2:$U$1000>Costs!$A771)*('Fixed assets'!$P$2:$P$1000=Costs!$A771)*('Fixed assets'!$R$2:$R$1000))-SUMPRODUCT(('Fixed assets'!$Q$2:$Q$1000=Costs!E$705)*('Fixed assets'!$U$2:$U$1000>Costs!$A771)*('Fixed assets'!$P$2:$P$1000=Costs!$A771)*('Fixed assets'!$S$2:$S$1000))","v":0},{"$f":"F683+SUMPRODUCT(('Fixed assets'!$Q$2:$Q$1000=Costs!F$705)*('Fixed assets'!$U$2:$U$1000>Costs!$A771)*('Fixed assets'!$P$2:$P$1000=Costs!$A771)*('Fixed assets'!$R$2:$R$1000))-SUMPRODUCT(('Fixed assets'!$Q$2:$Q$1000=Costs!F$705)*('Fixed assets'!$U$2:$U$1000>Costs!$A771)*('Fixed assets'!$P$2:$P$1000=Costs!$A771)*('Fixed assets'!$S$2:$S$1000))","v":0},{"$f":"G683+SUMPRODUCT(('Fixed assets'!$Q$2:$Q$1000=Costs!G$705)*('Fixed assets'!$U$2:$U$1000>Costs!$A771)*('Fixed assets'!$P$2:$P$1000=Costs!$A771)*('Fixed assets'!$R$2:$R$1000))-SUMPRODUCT(('Fixed assets'!$Q$2:$Q$1000=Costs!G$705)*('Fixed assets'!$U$2:$U$1000>Costs!$A771)*('Fixed assets'!$P$2:$P$1000=Costs!$A771)*('Fixed assets'!$S$2:$S$1000))","v":0},{"$f":"H683+SUMPRODUCT(('Fixed assets'!$Q$2:$Q$1000=Costs!H$705)*('Fixed assets'!$U$2:$U$1000>Costs!$A771)*('Fixed assets'!$P$2:$P$1000=Costs!$A771)*('Fixed assets'!$R$2:$R$1000))-SUMPRODUCT(('Fixed assets'!$Q$2:$Q$1000=Costs!H$705)*('Fixed assets'!$U$2:$U$1000>Costs!$A771)*('Fixed assets'!$P$2:$P$1000=Costs!$A771)*('Fixed assets'!$S$2:$S$1000))","v":0},{"$f":"I683+SUMPRODUCT(('Fixed assets'!$Q$2:$Q$1000=Costs!I$705)*('Fixed assets'!$U$2:$U$1000>Costs!$A771)*('Fixed assets'!$P$2:$P$1000=Costs!$A771)*('Fixed assets'!$R$2:$R$1000))-SUMPRODUCT(('Fixed assets'!$Q$2:$Q$1000=Costs!I$705)*('Fixed assets'!$U$2:$U$1000>Costs!$A771)*('Fixed assets'!$P$2:$P$1000=Costs!$A771)*('Fixed assets'!$S$2:$S$1000))","v":0},{"$f":"J683+SUMPRODUCT(('Fixed assets'!$Q$2:$Q$1000=Costs!J$705)*('Fixed assets'!$U$2:$U$1000>Costs!$A771)*('Fixed assets'!$P$2:$P$1000=Costs!$A771)*('Fixed assets'!$R$2:$R$1000))-SUMPRODUCT(('Fixed assets'!$Q$2:$Q$1000=Costs!J$705)*('Fixed assets'!$U$2:$U$1000>Costs!$A771)*('Fixed assets'!$P$2:$P$1000=Costs!$A771)*('Fixed assets'!$S$2:$S$1000))","v":0},{"$f":"K683+SUMPRODUCT(('Fixed assets'!$Q$2:$Q$1000=Costs!K$705)*('Fixed assets'!$U$2:$U$1000>Costs!$A771)*('Fixed assets'!$P$2:$P$1000=Costs!$A771)*('Fixed assets'!$R$2:$R$1000))-SUMPRODUCT(('Fixed assets'!$Q$2:$Q$1000=Costs!K$705)*('Fixed assets'!$U$2:$U$1000>Costs!$A771)*('Fixed assets'!$P$2:$P$1000=Costs!$A771)*('Fixed assets'!$S$2:$S$1000))","v":0},{"$f":"L683+SUMPRODUCT(('Fixed assets'!$Q$2:$Q$1000=Costs!L$705)*('Fixed assets'!$U$2:$U$1000>Costs!$A771)*('Fixed assets'!$P$2:$P$1000=Costs!$A771)*('Fixed assets'!$R$2:$R$1000))-SUMPRODUCT(('Fixed assets'!$Q$2:$Q$1000=Costs!L$705)*('Fixed assets'!$U$2:$U$1000>Costs!$A771)*('Fixed assets'!$P$2:$P$1000=Costs!$A771)*('Fixed assets'!$S$2:$S$1000))","v":0},{"$f":"M683+SUMPRODUCT(('Fixed assets'!$Q$2:$Q$1000=Costs!M$705)*('Fixed assets'!$U$2:$U$1000>Costs!$A771)*('Fixed assets'!$P$2:$P$1000=Costs!$A771)*('Fixed assets'!$R$2:$R$1000))-SUMPRODUCT(('Fixed assets'!$Q$2:$Q$1000=Costs!M$705)*('Fixed assets'!$U$2:$U$1000>Costs!$A771)*('Fixed assets'!$P$2:$P$1000=Costs!$A771)*('Fixed assets'!$S$2:$S$1000))","v":0},{"$f":"N683+SUMPRODUCT(('Fixed assets'!$Q$2:$Q$1000=Costs!N$705)*('Fixed assets'!$U$2:$U$1000>Costs!$A771)*('Fixed assets'!$P$2:$P$1000=Costs!$A771)*('Fixed assets'!$R$2:$R$1000))-SUMPRODUCT(('Fixed assets'!$Q$2:$Q$1000=Costs!N$705)*('Fixed assets'!$U$2:$U$1000>Costs!$A771)*('Fixed assets'!$P$2:$P$1000=Costs!$A771)*('Fixed assets'!$S$2:$S$1000))","v":0},{"$f":"O683+SUMPRODUCT(('Fixed assets'!$Q$2:$Q$1000=Costs!O$705)*('Fixed assets'!$U$2:$U$1000>Costs!$A771)*('Fixed assets'!$P$2:$P$1000=Costs!$A771)*('Fixed assets'!$R$2:$R$1000))-SUMPRODUCT(('Fixed assets'!$Q$2:$Q$1000=Costs!O$705)*('Fixed assets'!$U$2:$U$1000>Costs!$A771)*('Fixed assets'!$P$2:$P$1000=Costs!$A771)*('Fixed assets'!$S$2:$S$1000))","v":0},{"$f":"P683+SUMPRODUCT(('Fixed assets'!$Q$2:$Q$1000=Costs!P$705)*('Fixed assets'!$U$2:$U$1000>Costs!$A771)*('Fixed assets'!$P$2:$P$1000=Costs!$A771)*('Fixed assets'!$R$2:$R$1000))-SUMPRODUCT(('Fixed assets'!$Q$2:$Q$1000=Costs!P$705)*('Fixed assets'!$U$2:$U$1000>Costs!$A771)*('Fixed assets'!$P$2:$P$1000=Costs!$A771)*('Fixed assets'!$S$2:$S$1000))","v":0},{"$f":"Q683+SUMPRODUCT(('Fixed assets'!$Q$2:$Q$1000=Costs!Q$705)*('Fixed assets'!$U$2:$U$1000>Costs!$A771)*('Fixed assets'!$P$2:$P$1000=Costs!$A771)*('Fixed assets'!$R$2:$R$1000))-SUMPRODUCT(('Fixed assets'!$Q$2:$Q$1000=Costs!Q$705)*('Fixed assets'!$U$2:$U$1000>Costs!$A771)*('Fixed assets'!$P$2:$P$1000=Costs!$A771)*('Fixed assets'!$S$2:$S$1000))","v":0},{"$f":"R683+SUMPRODUCT(('Fixed assets'!$Q$2:$Q$1000=Costs!R$705)*('Fixed assets'!$U$2:$U$1000>Costs!$A771)*('Fixed assets'!$P$2:$P$1000=Costs!$A771)*('Fixed assets'!$R$2:$R$1000))-SUMPRODUCT(('Fixed assets'!$Q$2:$Q$1000=Costs!R$705)*('Fixed assets'!$U$2:$U$1000>Costs!$A771)*('Fixed assets'!$P$2:$P$1000=Costs!$A771)*('Fixed assets'!$S$2:$S$1000))","v":0},{"$f":"S683+SUMPRODUCT(('Fixed assets'!$Q$2:$Q$1000=Costs!S$705)*('Fixed assets'!$U$2:$U$1000>Costs!$A771)*('Fixed assets'!$P$2:$P$1000=Costs!$A771)*('Fixed assets'!$R$2:$R$1000))-SUMPRODUCT(('Fixed assets'!$Q$2:$Q$1000=Costs!S$705)*('Fixed assets'!$U$2:$U$1000>Costs!$A771)*('Fixed assets'!$P$2:$P$1000=Costs!$A771)*('Fixed assets'!$S$2:$S$1000))","v":0},{"$f":"T683+SUMPRODUCT(('Fixed assets'!$Q$2:$Q$1000=Costs!T$705)*('Fixed assets'!$U$2:$U$1000>Costs!$A771)*('Fixed assets'!$P$2:$P$1000=Costs!$A771)*('Fixed assets'!$R$2:$R$1000))-SUMPRODUCT(('Fixed assets'!$Q$2:$Q$1000=Costs!T$705)*('Fixed assets'!$U$2:$U$1000>Costs!$A771)*('Fixed assets'!$P$2:$P$1000=Costs!$A771)*('Fixed assets'!$S$2:$S$1000))","v":0},{"$f":"U683+SUMPRODUCT(('Fixed assets'!$Q$2:$Q$1000=Costs!U$705)*('Fixed assets'!$U$2:$U$1000>Costs!$A771)*('Fixed assets'!$P$2:$P$1000=Costs!$A771)*('Fixed assets'!$R$2:$R$1000))-SUMPRODUCT(('Fixed assets'!$Q$2:$Q$1000=Costs!U$705)*('Fixed assets'!$U$2:$U$1000>Costs!$A771)*('Fixed assets'!$P$2:$P$1000=Costs!$A771)*('Fixed assets'!$S$2:$S$1000))","v":0},{"$f":"V683+SUMPRODUCT(('Fixed assets'!$Q$2:$Q$1000=Costs!V$705)*('Fixed assets'!$U$2:$U$1000>Costs!$A771)*('Fixed assets'!$P$2:$P$1000=Costs!$A771)*('Fixed assets'!$R$2:$R$1000))-SUMPRODUCT(('Fixed assets'!$Q$2:$Q$1000=Costs!V$705)*('Fixed assets'!$U$2:$U$1000>Costs!$A771)*('Fixed assets'!$P$2:$P$1000=Costs!$A771)*('Fixed assets'!$S$2:$S$1000))","v":0},{"$f":"W683+SUMPRODUCT(('Fixed assets'!$Q$2:$Q$1000=Costs!W$705)*('Fixed assets'!$U$2:$U$1000>Costs!$A771)*('Fixed assets'!$P$2:$P$1000=Costs!$A771)*('Fixed assets'!$R$2:$R$1000))-SUMPRODUCT(('Fixed assets'!$Q$2:$Q$1000=Costs!W$705)*('Fixed assets'!$U$2:$U$1000>Costs!$A771)*('Fixed assets'!$P$2:$P$1000=Costs!$A771)*('Fixed assets'!$S$2:$S$1000))","v":0},{"$f":"X683+SUMPRODUCT(('Fixed assets'!$Q$2:$Q$1000=Costs!X$705)*('Fixed assets'!$U$2:$U$1000>Costs!$A771)*('Fixed assets'!$P$2:$P$1000=Costs!$A771)*('Fixed assets'!$R$2:$R$1000))-SUMPRODUCT(('Fixed assets'!$Q$2:$Q$1000=Costs!X$705)*('Fixed assets'!$U$2:$U$1000>Costs!$A771)*('Fixed assets'!$P$2:$P$1000=Costs!$A771)*('Fixed assets'!$S$2:$S$1000))","v":0},{"$f":"Y683+SUMPRODUCT(('Fixed assets'!$Q$2:$Q$1000=Costs!Y$705)*('Fixed assets'!$U$2:$U$1000>Costs!$A771)*('Fixed assets'!$P$2:$P$1000=Costs!$A771)*('Fixed assets'!$R$2:$R$1000))-SUMPRODUCT(('Fixed assets'!$Q$2:$Q$1000=Costs!Y$705)*('Fixed assets'!$U$2:$U$1000>Costs!$A771)*('Fixed assets'!$P$2:$P$1000=Costs!$A771)*('Fixed assets'!$S$2:$S$1000))","v":0},{"$f":"Z683+SUMPRODUCT(('Fixed assets'!$Q$2:$Q$1000=Costs!Z$705)*('Fixed assets'!$U$2:$U$1000>Costs!$A771)*('Fixed assets'!$P$2:$P$1000=Costs!$A771)*('Fixed assets'!$R$2:$R$1000))-SUMPRODUCT(('Fixed assets'!$Q$2:$Q$1000=Costs!Z$705)*('Fixed assets'!$U$2:$U$1000>Costs!$A771)*('Fixed assets'!$P$2:$P$1000=Costs!$A771)*('Fixed assets'!$S$2:$S$1000))","v":0},{"$f":"AA683+SUMPRODUCT(('Fixed assets'!$Q$2:$Q$1000=Costs!AA$705)*('Fixed assets'!$U$2:$U$1000>Costs!$A771)*('Fixed assets'!$P$2:$P$1000=Costs!$A771)*('Fixed assets'!$R$2:$R$1000))-SUMPRODUCT(('Fixed assets'!$Q$2:$Q$1000=Costs!AA$705)*('Fixed assets'!$U$2:$U$1000>Costs!$A771)*('Fixed assets'!$P$2:$P$1000=Costs!$A771)*('Fixed assets'!$S$2:$S$1000))","v":0},{"$f":"AB683+SUMPRODUCT(('Fixed assets'!$Q$2:$Q$1000=Costs!AB$705)*('Fixed assets'!$U$2:$U$1000>Costs!$A771)*('Fixed assets'!$P$2:$P$1000=Costs!$A771)*('Fixed assets'!$R$2:$R$1000))-SUMPRODUCT(('Fixed assets'!$Q$2:$Q$1000=Costs!AB$705)*('Fixed assets'!$U$2:$U$1000>Costs!$A771)*('Fixed assets'!$P$2:$P$1000=Costs!$A771)*('Fixed assets'!$S$2:$S$1000))","v":0},{"$f":"AC683+SUMPRODUCT(('Fixed assets'!$Q$2:$Q$1000=Costs!AC$705)*('Fixed assets'!$U$2:$U$1000>Costs!$A771)*('Fixed assets'!$P$2:$P$1000=Costs!$A771)*('Fixed assets'!$R$2:$R$1000))-SUMPRODUCT(('Fixed assets'!$Q$2:$Q$1000=Costs!AC$705)*('Fixed assets'!$U$2:$U$1000>Costs!$A771)*('Fixed assets'!$P$2:$P$1000=Costs!$A771)*('Fixed assets'!$S$2:$S$1000))","v":0},{"$f":"AD683+SUMPRODUCT(('Fixed assets'!$Q$2:$Q$1000=Costs!AD$705)*('Fixed assets'!$U$2:$U$1000>Costs!$A771)*('Fixed assets'!$P$2:$P$1000=Costs!$A771)*('Fixed assets'!$R$2:$R$1000))-SUMPRODUCT(('Fixed assets'!$Q$2:$Q$1000=Costs!AD$705)*('Fixed assets'!$U$2:$U$1000>Costs!$A771)*('Fixed assets'!$P$2:$P$1000=Costs!$A771)*('Fixed assets'!$S$2:$S$1000))","v":0},{"$f":"AE683+SUMPRODUCT(('Fixed assets'!$Q$2:$Q$1000=Costs!AE$705)*('Fixed assets'!$U$2:$U$1000>Costs!$A771)*('Fixed assets'!$P$2:$P$1000=Costs!$A771)*('Fixed assets'!$R$2:$R$1000))-SUMPRODUCT(('Fixed assets'!$Q$2:$Q$1000=Costs!AE$705)*('Fixed assets'!$U$2:$U$1000>Costs!$A771)*('Fixed assets'!$P$2:$P$1000=Costs!$A771)*('Fixed assets'!$S$2:$S$1000))","v":0},{"$f":"AF683+SUMPRODUCT(('Fixed assets'!$Q$2:$Q$1000=Costs!AF$705)*('Fixed assets'!$U$2:$U$1000>Costs!$A771)*('Fixed assets'!$P$2:$P$1000=Costs!$A771)*('Fixed assets'!$R$2:$R$1000))-SUMPRODUCT(('Fixed assets'!$Q$2:$Q$1000=Costs!AF$705)*('Fixed assets'!$U$2:$U$1000>Costs!$A771)*('Fixed assets'!$P$2:$P$1000=Costs!$A771)*('Fixed assets'!$S$2:$S$1000))","v":0},{"$f":"AG683+SUMPRODUCT(('Fixed assets'!$Q$2:$Q$1000=Costs!AG$705)*('Fixed assets'!$U$2:$U$1000>Costs!$A771)*('Fixed assets'!$P$2:$P$1000=Costs!$A771)*('Fixed assets'!$R$2:$R$1000))-SUMPRODUCT(('Fixed assets'!$Q$2:$Q$1000=Costs!AG$705)*('Fixed assets'!$U$2:$U$1000>Costs!$A771)*('Fixed assets'!$P$2:$P$1000=Costs!$A771)*('Fixed assets'!$S$2:$S$1000))","v":0},{"$f":"AH683+SUMPRODUCT(('Fixed assets'!$Q$2:$Q$1000=Costs!AH$705)*('Fixed assets'!$U$2:$U$1000>Costs!$A771)*('Fixed assets'!$P$2:$P$1000=Costs!$A771)*('Fixed assets'!$R$2:$R$1000))-SUMPRODUCT(('Fixed assets'!$Q$2:$Q$1000=Costs!AH$705)*('Fixed assets'!$U$2:$U$1000>Costs!$A771)*('Fixed assets'!$P$2:$P$1000=Costs!$A771)*('Fixed assets'!$S$2:$S$1000))","v":0},{"$f":"AI683+SUMPRODUCT(('Fixed assets'!$Q$2:$Q$1000=Costs!AI$705)*('Fixed assets'!$U$2:$U$1000>Costs!$A771)*('Fixed assets'!$P$2:$P$1000=Costs!$A771)*('Fixed assets'!$R$2:$R$1000))-SUMPRODUCT(('Fixed assets'!$Q$2:$Q$1000=Costs!AI$705)*('Fixed assets'!$U$2:$U$1000>Costs!$A771)*('Fixed assets'!$P$2:$P$1000=Costs!$A771)*('Fixed assets'!$S$2:$S$1000))","v":0},{"$f":"AJ683+SUMPRODUCT(('Fixed assets'!$Q$2:$Q$1000=Costs!AJ$705)*('Fixed assets'!$U$2:$U$1000>Costs!$A771)*('Fixed assets'!$P$2:$P$1000=Costs!$A771)*('Fixed assets'!$R$2:$R$1000))-SUMPRODUCT(('Fixed assets'!$Q$2:$Q$1000=Costs!AJ$705)*('Fixed assets'!$U$2:$U$1000>Costs!$A771)*('Fixed assets'!$P$2:$P$1000=Costs!$A771)*('Fixed assets'!$S$2:$S$1000))","v":0},{"$f":"AK683+SUMPRODUCT(('Fixed assets'!$Q$2:$Q$1000=Costs!AK$705)*('Fixed assets'!$U$2:$U$1000>Costs!$A771)*('Fixed assets'!$P$2:$P$1000=Costs!$A771)*('Fixed assets'!$R$2:$R$1000))-SUMPRODUCT(('Fixed assets'!$Q$2:$Q$1000=Costs!AK$705)*('Fixed assets'!$U$2:$U$1000>Costs!$A771)*('Fixed assets'!$P$2:$P$1000=Costs!$A771)*('Fixed assets'!$S$2:$S$1000))","v":0},{"$f":"AL683+SUMPRODUCT(('Fixed assets'!$Q$2:$Q$1000=Costs!AL$705)*('Fixed assets'!$U$2:$U$1000>Costs!$A771)*('Fixed assets'!$P$2:$P$1000=Costs!$A771)*('Fixed assets'!$R$2:$R$1000))-SUMPRODUCT(('Fixed assets'!$Q$2:$Q$1000=Costs!AL$705)*('Fixed assets'!$U$2:$U$1000>Costs!$A771)*('Fixed assets'!$P$2:$P$1000=Costs!$A771)*('Fixed assets'!$S$2:$S$1000))","v":0},{"$f":"AM683+SUMPRODUCT(('Fixed assets'!$Q$2:$Q$1000=Costs!AM$705)*('Fixed assets'!$U$2:$U$1000>Costs!$A771)*('Fixed assets'!$P$2:$P$1000=Costs!$A771)*('Fixed assets'!$R$2:$R$1000))-SUMPRODUCT(('Fixed assets'!$Q$2:$Q$1000=Costs!AM$705)*('Fixed assets'!$U$2:$U$1000>Costs!$A771)*('Fixed assets'!$P$2:$P$1000=Costs!$A771)*('Fixed assets'!$S$2:$S$1000))","v":0},{"$f":"AN683+SUMPRODUCT(('Fixed assets'!$Q$2:$Q$1000=Costs!AN$705)*('Fixed assets'!$U$2:$U$1000>Costs!$A771)*('Fixed assets'!$P$2:$P$1000=Costs!$A771)*('Fixed assets'!$R$2:$R$1000))-SUMPRODUCT(('Fixed assets'!$Q$2:$Q$1000=Costs!AN$705)*('Fixed assets'!$U$2:$U$1000>Costs!$A771)*('Fixed assets'!$P$2:$P$1000=Costs!$A771)*('Fixed assets'!$S$2:$S$1000))","v":0},{"$f":"AO683+SUMPRODUCT(('Fixed assets'!$Q$2:$Q$1000=Costs!AO$705)*('Fixed assets'!$U$2:$U$1000>Costs!$A771)*('Fixed assets'!$P$2:$P$1000=Costs!$A771)*('Fixed assets'!$R$2:$R$1000))-SUMPRODUCT(('Fixed assets'!$Q$2:$Q$1000=Costs!AO$705)*('Fixed assets'!$U$2:$U$1000>Costs!$A771)*('Fixed assets'!$P$2:$P$1000=Costs!$A771)*('Fixed assets'!$S$2:$S$1000))","v":0},{"$f":"AP683+SUMPRODUCT(('Fixed assets'!$Q$2:$Q$1000=Costs!AP$705)*('Fixed assets'!$U$2:$U$1000>Costs!$A771)*('Fixed assets'!$P$2:$P$1000=Costs!$A771)*('Fixed assets'!$R$2:$R$1000))-SUMPRODUCT(('Fixed assets'!$Q$2:$Q$1000=Costs!AP$705)*('Fixed assets'!$U$2:$U$1000>Costs!$A771)*('Fixed assets'!$P$2:$P$1000=Costs!$A771)*('Fixed assets'!$S$2:$S$1000))","v":0},{"$f":"AQ683+SUMPRODUCT(('Fixed assets'!$Q$2:$Q$1000=Costs!AQ$705)*('Fixed assets'!$U$2:$U$1000>Costs!$A771)*('Fixed assets'!$P$2:$P$1000=Costs!$A771)*('Fixed assets'!$R$2:$R$1000))-SUMPRODUCT(('Fixed assets'!$Q$2:$Q$1000=Costs!AQ$705)*('Fixed assets'!$U$2:$U$1000>Costs!$A771)*('Fixed assets'!$P$2:$P$1000=Costs!$A771)*('Fixed assets'!$S$2:$S$1000))","v":0}]
[2081,0,{"$f":"C684+SUMPRODUCT(('Fixed assets'!$Q$2:$Q$1000=Costs!C$705)*('Fixed assets'!$U$2:$U$1000>Costs!$A772)*('Fixed assets'!$P$2:$P$1000=Costs!$A772)*('Fixed assets'!$R$2:$R$1000))-SUMPRODUCT(('Fixed assets'!$Q$2:$Q$1000=Costs!C$705)*('Fixed assets'!$U$2:$U$1000>Costs!$A772)*('Fixed assets'!$P$2:$P$1000=Costs!$A772)*('Fixed assets'!$S$2:$S$1000))","v":0},{"$f":"D684+SUMPRODUCT(('Fixed assets'!$Q$2:$Q$1000=Costs!D$705)*('Fixed assets'!$U$2:$U$1000>Costs!$A772)*('Fixed assets'!$P$2:$P$1000=Costs!$A772)*('Fixed assets'!$R$2:$R$1000))-SUMPRODUCT(('Fixed assets'!$Q$2:$Q$1000=Costs!D$705)*('Fixed assets'!$U$2:$U$1000>Costs!$A772)*('Fixed assets'!$P$2:$P$1000=Costs!$A772)*('Fixed assets'!$S$2:$S$1000))","v":0},{"$f":"E684+SUMPRODUCT(('Fixed assets'!$Q$2:$Q$1000=Costs!E$705)*('Fixed assets'!$U$2:$U$1000>Costs!$A772)*('Fixed assets'!$P$2:$P$1000=Costs!$A772)*('Fixed assets'!$R$2:$R$1000))-SUMPRODUCT(('Fixed assets'!$Q$2:$Q$1000=Costs!E$705)*('Fixed assets'!$U$2:$U$1000>Costs!$A772)*('Fixed assets'!$P$2:$P$1000=Costs!$A772)*('Fixed assets'!$S$2:$S$1000))","v":0},{"$f":"F684+SUMPRODUCT(('Fixed assets'!$Q$2:$Q$1000=Costs!F$705)*('Fixed assets'!$U$2:$U$1000>Costs!$A772)*('Fixed assets'!$P$2:$P$1000=Costs!$A772)*('Fixed assets'!$R$2:$R$1000))-SUMPRODUCT(('Fixed assets'!$Q$2:$Q$1000=Costs!F$705)*('Fixed assets'!$U$2:$U$1000>Costs!$A772)*('Fixed assets'!$P$2:$P$1000=Costs!$A772)*('Fixed assets'!$S$2:$S$1000))","v":0},{"$f":"G684+SUMPRODUCT(('Fixed assets'!$Q$2:$Q$1000=Costs!G$705)*('Fixed assets'!$U$2:$U$1000>Costs!$A772)*('Fixed assets'!$P$2:$P$1000=Costs!$A772)*('Fixed assets'!$R$2:$R$1000))-SUMPRODUCT(('Fixed assets'!$Q$2:$Q$1000=Costs!G$705)*('Fixed assets'!$U$2:$U$1000>Costs!$A772)*('Fixed assets'!$P$2:$P$1000=Costs!$A772)*('Fixed assets'!$S$2:$S$1000))","v":0},{"$f":"H684+SUMPRODUCT(('Fixed assets'!$Q$2:$Q$1000=Costs!H$705)*('Fixed assets'!$U$2:$U$1000>Costs!$A772)*('Fixed assets'!$P$2:$P$1000=Costs!$A772)*('Fixed assets'!$R$2:$R$1000))-SUMPRODUCT(('Fixed assets'!$Q$2:$Q$1000=Costs!H$705)*('Fixed assets'!$U$2:$U$1000>Costs!$A772)*('Fixed assets'!$P$2:$P$1000=Costs!$A772)*('Fixed assets'!$S$2:$S$1000))","v":0},{"$f":"I684+SUMPRODUCT(('Fixed assets'!$Q$2:$Q$1000=Costs!I$705)*('Fixed assets'!$U$2:$U$1000>Costs!$A772)*('Fixed assets'!$P$2:$P$1000=Costs!$A772)*('Fixed assets'!$R$2:$R$1000))-SUMPRODUCT(('Fixed assets'!$Q$2:$Q$1000=Costs!I$705)*('Fixed assets'!$U$2:$U$1000>Costs!$A772)*('Fixed assets'!$P$2:$P$1000=Costs!$A772)*('Fixed assets'!$S$2:$S$1000))","v":0},{"$f":"J684+SUMPRODUCT(('Fixed assets'!$Q$2:$Q$1000=Costs!J$705)*('Fixed assets'!$U$2:$U$1000>Costs!$A772)*('Fixed assets'!$P$2:$P$1000=Costs!$A772)*('Fixed assets'!$R$2:$R$1000))-SUMPRODUCT(('Fixed assets'!$Q$2:$Q$1000=Costs!J$705)*('Fixed assets'!$U$2:$U$1000>Costs!$A772)*('Fixed assets'!$P$2:$P$1000=Costs!$A772)*('Fixed assets'!$S$2:$S$1000))","v":0},{"$f":"K684+SUMPRODUCT(('Fixed assets'!$Q$2:$Q$1000=Costs!K$705)*('Fixed assets'!$U$2:$U$1000>Costs!$A772)*('Fixed assets'!$P$2:$P$1000=Costs!$A772)*('Fixed assets'!$R$2:$R$1000))-SUMPRODUCT(('Fixed assets'!$Q$2:$Q$1000=Costs!K$705)*('Fixed assets'!$U$2:$U$1000>Costs!$A772)*('Fixed assets'!$P$2:$P$1000=Costs!$A772)*('Fixed assets'!$S$2:$S$1000))","v":0},{"$f":"L684+SUMPRODUCT(('Fixed assets'!$Q$2:$Q$1000=Costs!L$705)*('Fixed assets'!$U$2:$U$1000>Costs!$A772)*('Fixed assets'!$P$2:$P$1000=Costs!$A772)*('Fixed assets'!$R$2:$R$1000))-SUMPRODUCT(('Fixed assets'!$Q$2:$Q$1000=Costs!L$705)*('Fixed assets'!$U$2:$U$1000>Costs!$A772)*('Fixed assets'!$P$2:$P$1000=Costs!$A772)*('Fixed assets'!$S$2:$S$1000))","v":0},{"$f":"M684+SUMPRODUCT(('Fixed assets'!$Q$2:$Q$1000=Costs!M$705)*('Fixed assets'!$U$2:$U$1000>Costs!$A772)*('Fixed assets'!$P$2:$P$1000=Costs!$A772)*('Fixed assets'!$R$2:$R$1000))-SUMPRODUCT(('Fixed assets'!$Q$2:$Q$1000=Costs!M$705)*('Fixed assets'!$U$2:$U$1000>Costs!$A772)*('Fixed assets'!$P$2:$P$1000=Costs!$A772)*('Fixed assets'!$S$2:$S$1000))","v":0},{"$f":"N684+SUMPRODUCT(('Fixed assets'!$Q$2:$Q$1000=Costs!N$705)*('Fixed assets'!$U$2:$U$1000>Costs!$A772)*('Fixed assets'!$P$2:$P$1000=Costs!$A772)*('Fixed assets'!$R$2:$R$1000))-SUMPRODUCT(('Fixed assets'!$Q$2:$Q$1000=Costs!N$705)*('Fixed assets'!$U$2:$U$1000>Costs!$A772)*('Fixed assets'!$P$2:$P$1000=Costs!$A772)*('Fixed assets'!$S$2:$S$1000))","v":0},{"$f":"O684+SUMPRODUCT(('Fixed assets'!$Q$2:$Q$1000=Costs!O$705)*('Fixed assets'!$U$2:$U$1000>Costs!$A772)*('Fixed assets'!$P$2:$P$1000=Costs!$A772)*('Fixed assets'!$R$2:$R$1000))-SUMPRODUCT(('Fixed assets'!$Q$2:$Q$1000=Costs!O$705)*('Fixed assets'!$U$2:$U$1000>Costs!$A772)*('Fixed assets'!$P$2:$P$1000=Costs!$A772)*('Fixed assets'!$S$2:$S$1000))","v":0},{"$f":"P684+SUMPRODUCT(('Fixed assets'!$Q$2:$Q$1000=Costs!P$705)*('Fixed assets'!$U$2:$U$1000>Costs!$A772)*('Fixed assets'!$P$2:$P$1000=Costs!$A772)*('Fixed assets'!$R$2:$R$1000))-SUMPRODUCT(('Fixed assets'!$Q$2:$Q$1000=Costs!P$705)*('Fixed assets'!$U$2:$U$1000>Costs!$A772)*('Fixed assets'!$P$2:$P$1000=Costs!$A772)*('Fixed assets'!$S$2:$S$1000))","v":0},{"$f":"Q684+SUMPRODUCT(('Fixed assets'!$Q$2:$Q$1000=Costs!Q$705)*('Fixed assets'!$U$2:$U$1000>Costs!$A772)*('Fixed assets'!$P$2:$P$1000=Costs!$A772)*('Fixed assets'!$R$2:$R$1000))-SUMPRODUCT(('Fixed assets'!$Q$2:$Q$1000=Costs!Q$705)*('Fixed assets'!$U$2:$U$1000>Costs!$A772)*('Fixed assets'!$P$2:$P$1000=Costs!$A772)*('Fixed assets'!$S$2:$S$1000))","v":0},{"$f":"R684+SUMPRODUCT(('Fixed assets'!$Q$2:$Q$1000=Costs!R$705)*('Fixed assets'!$U$2:$U$1000>Costs!$A772)*('Fixed assets'!$P$2:$P$1000=Costs!$A772)*('Fixed assets'!$R$2:$R$1000))-SUMPRODUCT(('Fixed assets'!$Q$2:$Q$1000=Costs!R$705)*('Fixed assets'!$U$2:$U$1000>Costs!$A772)*('Fixed assets'!$P$2:$P$1000=Costs!$A772)*('Fixed assets'!$S$2:$S$1000))","v":0},{"$f":"S684+SUMPRODUCT(('Fixed assets'!$Q$2:$Q$1000=Costs!S$705)*('Fixed assets'!$U$2:$U$1000>Costs!$A772)*('Fixed assets'!$P$2:$P$1000=Costs!$A772)*('Fixed assets'!$R$2:$R$1000))-SUMPRODUCT(('Fixed assets'!$Q$2:$Q$1000=Costs!S$705)*('Fixed assets'!$U$2:$U$1000>Costs!$A772)*('Fixed assets'!$P$2:$P$1000=Costs!$A772)*('Fixed assets'!$S$2:$S$1000))","v":0},{"$f":"T684+SUMPRODUCT(('Fixed assets'!$Q$2:$Q$1000=Costs!T$705)*('Fixed assets'!$U$2:$U$1000>Costs!$A772)*('Fixed assets'!$P$2:$P$1000=Costs!$A772)*('Fixed assets'!$R$2:$R$1000))-SUMPRODUCT(('Fixed assets'!$Q$2:$Q$1000=Costs!T$705)*('Fixed assets'!$U$2:$U$1000>Costs!$A772)*('Fixed assets'!$P$2:$P$1000=Costs!$A772)*('Fixed assets'!$S$2:$S$1000))","v":0},{"$f":"U684+SUMPRODUCT(('Fixed assets'!$Q$2:$Q$1000=Costs!U$705)*('Fixed assets'!$U$2:$U$1000>Costs!$A772)*('Fixed assets'!$P$2:$P$1000=Costs!$A772)*('Fixed assets'!$R$2:$R$1000))-SUMPRODUCT(('Fixed assets'!$Q$2:$Q$1000=Costs!U$705)*('Fixed assets'!$U$2:$U$1000>Costs!$A772)*('Fixed assets'!$P$2:$P$1000=Costs!$A772)*('Fixed assets'!$S$2:$S$1000))","v":0},{"$f":"V684+SUMPRODUCT(('Fixed assets'!$Q$2:$Q$1000=Costs!V$705)*('Fixed assets'!$U$2:$U$1000>Costs!$A772)*('Fixed assets'!$P$2:$P$1000=Costs!$A772)*('Fixed assets'!$R$2:$R$1000))-SUMPRODUCT(('Fixed assets'!$Q$2:$Q$1000=Costs!V$705)*('Fixed assets'!$U$2:$U$1000>Costs!$A772)*('Fixed assets'!$P$2:$P$1000=Costs!$A772)*('Fixed assets'!$S$2:$S$1000))","v":0},{"$f":"W684+SUMPRODUCT(('Fixed assets'!$Q$2:$Q$1000=Costs!W$705)*('Fixed assets'!$U$2:$U$1000>Costs!$A772)*('Fixed assets'!$P$2:$P$1000=Costs!$A772)*('Fixed assets'!$R$2:$R$1000))-SUMPRODUCT(('Fixed assets'!$Q$2:$Q$1000=Costs!W$705)*('Fixed assets'!$U$2:$U$1000>Costs!$A772)*('Fixed assets'!$P$2:$P$1000=Costs!$A772)*('Fixed assets'!$S$2:$S$1000))","v":0},{"$f":"X684+SUMPRODUCT(('Fixed assets'!$Q$2:$Q$1000=Costs!X$705)*('Fixed assets'!$U$2:$U$1000>Costs!$A772)*('Fixed assets'!$P$2:$P$1000=Costs!$A772)*('Fixed assets'!$R$2:$R$1000))-SUMPRODUCT(('Fixed assets'!$Q$2:$Q$1000=Costs!X$705)*('Fixed assets'!$U$2:$U$1000>Costs!$A772)*('Fixed assets'!$P$2:$P$1000=Costs!$A772)*('Fixed assets'!$S$2:$S$1000))","v":0},{"$f":"Y684+SUMPRODUCT(('Fixed assets'!$Q$2:$Q$1000=Costs!Y$705)*('Fixed assets'!$U$2:$U$1000>Costs!$A772)*('Fixed assets'!$P$2:$P$1000=Costs!$A772)*('Fixed assets'!$R$2:$R$1000))-SUMPRODUCT(('Fixed assets'!$Q$2:$Q$1000=Costs!Y$705)*('Fixed assets'!$U$2:$U$1000>Costs!$A772)*('Fixed assets'!$P$2:$P$1000=Costs!$A772)*('Fixed assets'!$S$2:$S$1000))","v":0},{"$f":"Z684+SUMPRODUCT(('Fixed assets'!$Q$2:$Q$1000=Costs!Z$705)*('Fixed assets'!$U$2:$U$1000>Costs!$A772)*('Fixed assets'!$P$2:$P$1000=Costs!$A772)*('Fixed assets'!$R$2:$R$1000))-SUMPRODUCT(('Fixed assets'!$Q$2:$Q$1000=Costs!Z$705)*('Fixed assets'!$U$2:$U$1000>Costs!$A772)*('Fixed assets'!$P$2:$P$1000=Costs!$A772)*('Fixed assets'!$S$2:$S$1000))","v":0},{"$f":"AA684+SUMPRODUCT(('Fixed assets'!$Q$2:$Q$1000=Costs!AA$705)*('Fixed assets'!$U$2:$U$1000>Costs!$A772)*('Fixed assets'!$P$2:$P$1000=Costs!$A772)*('Fixed assets'!$R$2:$R$1000))-SUMPRODUCT(('Fixed assets'!$Q$2:$Q$1000=Costs!AA$705)*('Fixed assets'!$U$2:$U$1000>Costs!$A772)*('Fixed assets'!$P$2:$P$1000=Costs!$A772)*('Fixed assets'!$S$2:$S$1000))","v":0},{"$f":"AB684+SUMPRODUCT(('Fixed assets'!$Q$2:$Q$1000=Costs!AB$705)*('Fixed assets'!$U$2:$U$1000>Costs!$A772)*('Fixed assets'!$P$2:$P$1000=Costs!$A772)*('Fixed assets'!$R$2:$R$1000))-SUMPRODUCT(('Fixed assets'!$Q$2:$Q$1000=Costs!AB$705)*('Fixed assets'!$U$2:$U$1000>Costs!$A772)*('Fixed assets'!$P$2:$P$1000=Costs!$A772)*('Fixed assets'!$S$2:$S$1000))","v":0},{"$f":"AC684+SUMPRODUCT(('Fixed assets'!$Q$2:$Q$1000=Costs!AC$705)*('Fixed assets'!$U$2:$U$1000>Costs!$A772)*('Fixed assets'!$P$2:$P$1000=Costs!$A772)*('Fixed assets'!$R$2:$R$1000))-SUMPRODUCT(('Fixed assets'!$Q$2:$Q$1000=Costs!AC$705)*('Fixed assets'!$U$2:$U$1000>Costs!$A772)*('Fixed assets'!$P$2:$P$1000=Costs!$A772)*('Fixed assets'!$S$2:$S$1000))","v":0},{"$f":"AD684+SUMPRODUCT(('Fixed assets'!$Q$2:$Q$1000=Costs!AD$705)*('Fixed assets'!$U$2:$U$1000>Costs!$A772)*('Fixed assets'!$P$2:$P$1000=Costs!$A772)*('Fixed assets'!$R$2:$R$1000))-SUMPRODUCT(('Fixed assets'!$Q$2:$Q$1000=Costs!AD$705)*('Fixed assets'!$U$2:$U$1000>Costs!$A772)*('Fixed assets'!$P$2:$P$1000=Costs!$A772)*('Fixed assets'!$S$2:$S$1000))","v":0},{"$f":"AE684+SUMPRODUCT(('Fixed assets'!$Q$2:$Q$1000=Costs!AE$705)*('Fixed assets'!$U$2:$U$1000>Costs!$A772)*('Fixed assets'!$P$2:$P$1000=Costs!$A772)*('Fixed assets'!$R$2:$R$1000))-SUMPRODUCT(('Fixed assets'!$Q$2:$Q$1000=Costs!AE$705)*('Fixed assets'!$U$2:$U$1000>Costs!$A772)*('Fixed assets'!$P$2:$P$1000=Costs!$A772)*('Fixed assets'!$S$2:$S$1000))","v":0},{"$f":"AF684+SUMPRODUCT(('Fixed assets'!$Q$2:$Q$1000=Costs!AF$705)*('Fixed assets'!$U$2:$U$1000>Costs!$A772)*('Fixed assets'!$P$2:$P$1000=Costs!$A772)*('Fixed assets'!$R$2:$R$1000))-SUMPRODUCT(('Fixed assets'!$Q$2:$Q$1000=Costs!AF$705)*('Fixed assets'!$U$2:$U$1000>Costs!$A772)*('Fixed assets'!$P$2:$P$1000=Costs!$A772)*('Fixed assets'!$S$2:$S$1000))","v":0},{"$f":"AG684+SUMPRODUCT(('Fixed assets'!$Q$2:$Q$1000=Costs!AG$705)*('Fixed assets'!$U$2:$U$1000>Costs!$A772)*('Fixed assets'!$P$2:$P$1000=Costs!$A772)*('Fixed assets'!$R$2:$R$1000))-SUMPRODUCT(('Fixed assets'!$Q$2:$Q$1000=Costs!AG$705)*('Fixed assets'!$U$2:$U$1000>Costs!$A772)*('Fixed assets'!$P$2:$P$1000=Costs!$A772)*('Fixed assets'!$S$2:$S$1000))","v":0},{"$f":"AH684+SUMPRODUCT(('Fixed assets'!$Q$2:$Q$1000=Costs!AH$705)*('Fixed assets'!$U$2:$U$1000>Costs!$A772)*('Fixed assets'!$P$2:$P$1000=Costs!$A772)*('Fixed assets'!$R$2:$R$1000))-SUMPRODUCT(('Fixed assets'!$Q$2:$Q$1000=Costs!AH$705)*('Fixed assets'!$U$2:$U$1000>Costs!$A772)*('Fixed assets'!$P$2:$P$1000=Costs!$A772)*('Fixed assets'!$S$2:$S$1000))","v":0},{"$f":"AI684+SUMPRODUCT(('Fixed assets'!$Q$2:$Q$1000=Costs!AI$705)*('Fixed assets'!$U$2:$U$1000>Costs!$A772)*('Fixed assets'!$P$2:$P$1000=Costs!$A772)*('Fixed assets'!$R$2:$R$1000))-SUMPRODUCT(('Fixed assets'!$Q$2:$Q$1000=Costs!AI$705)*('Fixed assets'!$U$2:$U$1000>Costs!$A772)*('Fixed assets'!$P$2:$P$1000=Costs!$A772)*('Fixed assets'!$S$2:$S$1000))","v":0},{"$f":"AJ684+SUMPRODUCT(('Fixed assets'!$Q$2:$Q$1000=Costs!AJ$705)*('Fixed assets'!$U$2:$U$1000>Costs!$A772)*('Fixed assets'!$P$2:$P$1000=Costs!$A772)*('Fixed assets'!$R$2:$R$1000))-SUMPRODUCT(('Fixed assets'!$Q$2:$Q$1000=Costs!AJ$705)*('Fixed assets'!$U$2:$U$1000>Costs!$A772)*('Fixed assets'!$P$2:$P$1000=Costs!$A772)*('Fixed assets'!$S$2:$S$1000))","v":0},{"$f":"AK684+SUMPRODUCT(('Fixed assets'!$Q$2:$Q$1000=Costs!AK$705)*('Fixed assets'!$U$2:$U$1000>Costs!$A772)*('Fixed assets'!$P$2:$P$1000=Costs!$A772)*('Fixed assets'!$R$2:$R$1000))-SUMPRODUCT(('Fixed assets'!$Q$2:$Q$1000=Costs!AK$705)*('Fixed assets'!$U$2:$U$1000>Costs!$A772)*('Fixed assets'!$P$2:$P$1000=Costs!$A772)*('Fixed assets'!$S$2:$S$1000))","v":0},{"$f":"AL684+SUMPRODUCT(('Fixed assets'!$Q$2:$Q$1000=Costs!AL$705)*('Fixed assets'!$U$2:$U$1000>Costs!$A772)*('Fixed assets'!$P$2:$P$1000=Costs!$A772)*('Fixed assets'!$R$2:$R$1000))-SUMPRODUCT(('Fixed assets'!$Q$2:$Q$1000=Costs!AL$705)*('Fixed assets'!$U$2:$U$1000>Costs!$A772)*('Fixed assets'!$P$2:$P$1000=Costs!$A772)*('Fixed assets'!$S$2:$S$1000))","v":0},{"$f":"AM684+SUMPRODUCT(('Fixed assets'!$Q$2:$Q$1000=Costs!AM$705)*('Fixed assets'!$U$2:$U$1000>Costs!$A772)*('Fixed assets'!$P$2:$P$1000=Costs!$A772)*('Fixed assets'!$R$2:$R$1000))-SUMPRODUCT(('Fixed assets'!$Q$2:$Q$1000=Costs!AM$705)*('Fixed assets'!$U$2:$U$1000>Costs!$A772)*('Fixed assets'!$P$2:$P$1000=Costs!$A772)*('Fixed assets'!$S$2:$S$1000))","v":0},{"$f":"AN684+SUMPRODUCT(('Fixed assets'!$Q$2:$Q$1000=Costs!AN$705)*('Fixed assets'!$U$2:$U$1000>Costs!$A772)*('Fixed assets'!$P$2:$P$1000=Costs!$A772)*('Fixed assets'!$R$2:$R$1000))-SUMPRODUCT(('Fixed assets'!$Q$2:$Q$1000=Costs!AN$705)*('Fixed assets'!$U$2:$U$1000>Costs!$A772)*('Fixed assets'!$P$2:$P$1000=Costs!$A772)*('Fixed assets'!$S$2:$S$1000))","v":0},{"$f":"AO684+SUMPRODUCT(('Fixed assets'!$Q$2:$Q$1000=Costs!AO$705)*('Fixed assets'!$U$2:$U$1000>Costs!$A772)*('Fixed assets'!$P$2:$P$1000=Costs!$A772)*('Fixed assets'!$R$2:$R$1000))-SUMPRODUCT(('Fixed assets'!$Q$2:$Q$1000=Costs!AO$705)*('Fixed assets'!$U$2:$U$1000>Costs!$A772)*('Fixed assets'!$P$2:$P$1000=Costs!$A772)*('Fixed assets'!$S$2:$S$1000))","v":0},{"$f":"AP684+SUMPRODUCT(('Fixed assets'!$Q$2:$Q$1000=Costs!AP$705)*('Fixed assets'!$U$2:$U$1000>Costs!$A772)*('Fixed assets'!$P$2:$P$1000=Costs!$A772)*('Fixed assets'!$R$2:$R$1000))-SUMPRODUCT(('Fixed assets'!$Q$2:$Q$1000=Costs!AP$705)*('Fixed assets'!$U$2:$U$1000>Costs!$A772)*('Fixed assets'!$P$2:$P$1000=Costs!$A772)*('Fixed assets'!$S$2:$S$1000))","v":0},{"$f":"AQ684+SUMPRODUCT(('Fixed assets'!$Q$2:$Q$1000=Costs!AQ$705)*('Fixed assets'!$U$2:$U$1000>Costs!$A772)*('Fixed assets'!$P$2:$P$1000=Costs!$A772)*('Fixed assets'!$R$2:$R$1000))-SUMPRODUCT(('Fixed assets'!$Q$2:$Q$1000=Costs!AQ$705)*('Fixed assets'!$U$2:$U$1000>Costs!$A772)*('Fixed assets'!$P$2:$P$1000=Costs!$A772)*('Fixed assets'!$S$2:$S$1000))","v":0}]
[2082,0,{"$f":"C685+SUMPRODUCT(('Fixed assets'!$Q$2:$Q$1000=Costs!C$705)*('Fixed assets'!$U$2:$U$1000>Costs!$A773)*('Fixed assets'!$P$2:$P$1000=Costs!$A773)*('Fixed assets'!$R$2:$R$1000))-SUMPRODUCT(('Fixed assets'!$Q$2:$Q$1000=Costs!C$705)*('Fixed assets'!$U$2:$U$1000>Costs!$A773)*('Fixed assets'!$P$2:$P$1000=Costs!$A773)*('Fixed assets'!$S$2:$S$1000))","v":0},{"$f":"D685+SUMPRODUCT(('Fixed assets'!$Q$2:$Q$1000=Costs!D$705)*('Fixed assets'!$U$2:$U$1000>Costs!$A773)*('Fixed assets'!$P$2:$P$1000=Costs!$A773)*('Fixed assets'!$R$2:$R$1000))-SUMPRODUCT(('Fixed assets'!$Q$2:$Q$1000=Costs!D$705)*('Fixed assets'!$U$2:$U$1000>Costs!$A773)*('Fixed assets'!$P$2:$P$1000=Costs!$A773)*('Fixed assets'!$S$2:$S$1000))","v":0},{"$f":"E685+SUMPRODUCT(('Fixed assets'!$Q$2:$Q$1000=Costs!E$705)*('Fixed assets'!$U$2:$U$1000>Costs!$A773)*('Fixed assets'!$P$2:$P$1000=Costs!$A773)*('Fixed assets'!$R$2:$R$1000))-SUMPRODUCT(('Fixed assets'!$Q$2:$Q$1000=Costs!E$705)*('Fixed assets'!$U$2:$U$1000>Costs!$A773)*('Fixed assets'!$P$2:$P$1000=Costs!$A773)*('Fixed assets'!$S$2:$S$1000))","v":0},{"$f":"F685+SUMPRODUCT(('Fixed assets'!$Q$2:$Q$1000=Costs!F$705)*('Fixed assets'!$U$2:$U$1000>Costs!$A773)*('Fixed assets'!$P$2:$P$1000=Costs!$A773)*('Fixed assets'!$R$2:$R$1000))-SUMPRODUCT(('Fixed assets'!$Q$2:$Q$1000=Costs!F$705)*('Fixed assets'!$U$2:$U$1000>Costs!$A773)*('Fixed assets'!$P$2:$P$1000=Costs!$A773)*('Fixed assets'!$S$2:$S$1000))","v":0},{"$f":"G685+SUMPRODUCT(('Fixed assets'!$Q$2:$Q$1000=Costs!G$705)*('Fixed assets'!$U$2:$U$1000>Costs!$A773)*('Fixed assets'!$P$2:$P$1000=Costs!$A773)*('Fixed assets'!$R$2:$R$1000))-SUMPRODUCT(('Fixed assets'!$Q$2:$Q$1000=Costs!G$705)*('Fixed assets'!$U$2:$U$1000>Costs!$A773)*('Fixed assets'!$P$2:$P$1000=Costs!$A773)*('Fixed assets'!$S$2:$S$1000))","v":0},{"$f":"H685+SUMPRODUCT(('Fixed assets'!$Q$2:$Q$1000=Costs!H$705)*('Fixed assets'!$U$2:$U$1000>Costs!$A773)*('Fixed assets'!$P$2:$P$1000=Costs!$A773)*('Fixed assets'!$R$2:$R$1000))-SUMPRODUCT(('Fixed assets'!$Q$2:$Q$1000=Costs!H$705)*('Fixed assets'!$U$2:$U$1000>Costs!$A773)*('Fixed assets'!$P$2:$P$1000=Costs!$A773)*('Fixed assets'!$S$2:$S$1000))","v":0},{"$f":"I685+SUMPRODUCT(('Fixed assets'!$Q$2:$Q$1000=Costs!I$705)*('Fixed assets'!$U$2:$U$1000>Costs!$A773)*('Fixed assets'!$P$2:$P$1000=Costs!$A773)*('Fixed assets'!$R$2:$R$1000))-SUMPRODUCT(('Fixed assets'!$Q$2:$Q$1000=Costs!I$705)*('Fixed assets'!$U$2:$U$1000>Costs!$A773)*('Fixed assets'!$P$2:$P$1000=Costs!$A773)*('Fixed assets'!$S$2:$S$1000))","v":0},{"$f":"J685+SUMPRODUCT(('Fixed assets'!$Q$2:$Q$1000=Costs!J$705)*('Fixed assets'!$U$2:$U$1000>Costs!$A773)*('Fixed assets'!$P$2:$P$1000=Costs!$A773)*('Fixed assets'!$R$2:$R$1000))-SUMPRODUCT(('Fixed assets'!$Q$2:$Q$1000=Costs!J$705)*('Fixed assets'!$U$2:$U$1000>Costs!$A773)*('Fixed assets'!$P$2:$P$1000=Costs!$A773)*('Fixed assets'!$S$2:$S$1000))","v":0},{"$f":"K685+SUMPRODUCT(('Fixed assets'!$Q$2:$Q$1000=Costs!K$705)*('Fixed assets'!$U$2:$U$1000>Costs!$A773)*('Fixed assets'!$P$2:$P$1000=Costs!$A773)*('Fixed assets'!$R$2:$R$1000))-SUMPRODUCT(('Fixed assets'!$Q$2:$Q$1000=Costs!K$705)*('Fixed assets'!$U$2:$U$1000>Costs!$A773)*('Fixed assets'!$P$2:$P$1000=Costs!$A773)*('Fixed assets'!$S$2:$S$1000))","v":0},{"$f":"L685+SUMPRODUCT(('Fixed assets'!$Q$2:$Q$1000=Costs!L$705)*('Fixed assets'!$U$2:$U$1000>Costs!$A773)*('Fixed assets'!$P$2:$P$1000=Costs!$A773)*('Fixed assets'!$R$2:$R$1000))-SUMPRODUCT(('Fixed assets'!$Q$2:$Q$1000=Costs!L$705)*('Fixed assets'!$U$2:$U$1000>Costs!$A773)*('Fixed assets'!$P$2:$P$1000=Costs!$A773)*('Fixed assets'!$S$2:$S$1000))","v":0},{"$f":"M685+SUMPRODUCT(('Fixed assets'!$Q$2:$Q$1000=Costs!M$705)*('Fixed assets'!$U$2:$U$1000>Costs!$A773)*('Fixed assets'!$P$2:$P$1000=Costs!$A773)*('Fixed assets'!$R$2:$R$1000))-SUMPRODUCT(('Fixed assets'!$Q$2:$Q$1000=Costs!M$705)*('Fixed assets'!$U$2:$U$1000>Costs!$A773)*('Fixed assets'!$P$2:$P$1000=Costs!$A773)*('Fixed assets'!$S$2:$S$1000))","v":0},{"$f":"N685+SUMPRODUCT(('Fixed assets'!$Q$2:$Q$1000=Costs!N$705)*('Fixed assets'!$U$2:$U$1000>Costs!$A773)*('Fixed assets'!$P$2:$P$1000=Costs!$A773)*('Fixed assets'!$R$2:$R$1000))-SUMPRODUCT(('Fixed assets'!$Q$2:$Q$1000=Costs!N$705)*('Fixed assets'!$U$2:$U$1000>Costs!$A773)*('Fixed assets'!$P$2:$P$1000=Costs!$A773)*('Fixed assets'!$S$2:$S$1000))","v":0},{"$f":"O685+SUMPRODUCT(('Fixed assets'!$Q$2:$Q$1000=Costs!O$705)*('Fixed assets'!$U$2:$U$1000>Costs!$A773)*('Fixed assets'!$P$2:$P$1000=Costs!$A773)*('Fixed assets'!$R$2:$R$1000))-SUMPRODUCT(('Fixed assets'!$Q$2:$Q$1000=Costs!O$705)*('Fixed assets'!$U$2:$U$1000>Costs!$A773)*('Fixed assets'!$P$2:$P$1000=Costs!$A773)*('Fixed assets'!$S$2:$S$1000))","v":0},{"$f":"P685+SUMPRODUCT(('Fixed assets'!$Q$2:$Q$1000=Costs!P$705)*('Fixed assets'!$U$2:$U$1000>Costs!$A773)*('Fixed assets'!$P$2:$P$1000=Costs!$A773)*('Fixed assets'!$R$2:$R$1000))-SUMPRODUCT(('Fixed assets'!$Q$2:$Q$1000=Costs!P$705)*('Fixed assets'!$U$2:$U$1000>Costs!$A773)*('Fixed assets'!$P$2:$P$1000=Costs!$A773)*('Fixed assets'!$S$2:$S$1000))","v":0},{"$f":"Q685+SUMPRODUCT(('Fixed assets'!$Q$2:$Q$1000=Costs!Q$705)*('Fixed assets'!$U$2:$U$1000>Costs!$A773)*('Fixed assets'!$P$2:$P$1000=Costs!$A773)*('Fixed assets'!$R$2:$R$1000))-SUMPRODUCT(('Fixed assets'!$Q$2:$Q$1000=Costs!Q$705)*('Fixed assets'!$U$2:$U$1000>Costs!$A773)*('Fixed assets'!$P$2:$P$1000=Costs!$A773)*('Fixed assets'!$S$2:$S$1000))","v":0},{"$f":"R685+SUMPRODUCT(('Fixed assets'!$Q$2:$Q$1000=Costs!R$705)*('Fixed assets'!$U$2:$U$1000>Costs!$A773)*('Fixed assets'!$P$2:$P$1000=Costs!$A773)*('Fixed assets'!$R$2:$R$1000))-SUMPRODUCT(('Fixed assets'!$Q$2:$Q$1000=Costs!R$705)*('Fixed assets'!$U$2:$U$1000>Costs!$A773)*('Fixed assets'!$P$2:$P$1000=Costs!$A773)*('Fixed assets'!$S$2:$S$1000))","v":0},{"$f":"S685+SUMPRODUCT(('Fixed assets'!$Q$2:$Q$1000=Costs!S$705)*('Fixed assets'!$U$2:$U$1000>Costs!$A773)*('Fixed assets'!$P$2:$P$1000=Costs!$A773)*('Fixed assets'!$R$2:$R$1000))-SUMPRODUCT(('Fixed assets'!$Q$2:$Q$1000=Costs!S$705)*('Fixed assets'!$U$2:$U$1000>Costs!$A773)*('Fixed assets'!$P$2:$P$1000=Costs!$A773)*('Fixed assets'!$S$2:$S$1000))","v":0},{"$f":"T685+SUMPRODUCT(('Fixed assets'!$Q$2:$Q$1000=Costs!T$705)*('Fixed assets'!$U$2:$U$1000>Costs!$A773)*('Fixed assets'!$P$2:$P$1000=Costs!$A773)*('Fixed assets'!$R$2:$R$1000))-SUMPRODUCT(('Fixed assets'!$Q$2:$Q$1000=Costs!T$705)*('Fixed assets'!$U$2:$U$1000>Costs!$A773)*('Fixed assets'!$P$2:$P$1000=Costs!$A773)*('Fixed assets'!$S$2:$S$1000))","v":0},{"$f":"U685+SUMPRODUCT(('Fixed assets'!$Q$2:$Q$1000=Costs!U$705)*('Fixed assets'!$U$2:$U$1000>Costs!$A773)*('Fixed assets'!$P$2:$P$1000=Costs!$A773)*('Fixed assets'!$R$2:$R$1000))-SUMPRODUCT(('Fixed assets'!$Q$2:$Q$1000=Costs!U$705)*('Fixed assets'!$U$2:$U$1000>Costs!$A773)*('Fixed assets'!$P$2:$P$1000=Costs!$A773)*('Fixed assets'!$S$2:$S$1000))","v":0},{"$f":"V685+SUMPRODUCT(('Fixed assets'!$Q$2:$Q$1000=Costs!V$705)*('Fixed assets'!$U$2:$U$1000>Costs!$A773)*('Fixed assets'!$P$2:$P$1000=Costs!$A773)*('Fixed assets'!$R$2:$R$1000))-SUMPRODUCT(('Fixed assets'!$Q$2:$Q$1000=Costs!V$705)*('Fixed assets'!$U$2:$U$1000>Costs!$A773)*('Fixed assets'!$P$2:$P$1000=Costs!$A773)*('Fixed assets'!$S$2:$S$1000))","v":0},{"$f":"W685+SUMPRODUCT(('Fixed assets'!$Q$2:$Q$1000=Costs!W$705)*('Fixed assets'!$U$2:$U$1000>Costs!$A773)*('Fixed assets'!$P$2:$P$1000=Costs!$A773)*('Fixed assets'!$R$2:$R$1000))-SUMPRODUCT(('Fixed assets'!$Q$2:$Q$1000=Costs!W$705)*('Fixed assets'!$U$2:$U$1000>Costs!$A773)*('Fixed assets'!$P$2:$P$1000=Costs!$A773)*('Fixed assets'!$S$2:$S$1000))","v":0},{"$f":"X685+SUMPRODUCT(('Fixed assets'!$Q$2:$Q$1000=Costs!X$705)*('Fixed assets'!$U$2:$U$1000>Costs!$A773)*('Fixed assets'!$P$2:$P$1000=Costs!$A773)*('Fixed assets'!$R$2:$R$1000))-SUMPRODUCT(('Fixed assets'!$Q$2:$Q$1000=Costs!X$705)*('Fixed assets'!$U$2:$U$1000>Costs!$A773)*('Fixed assets'!$P$2:$P$1000=Costs!$A773)*('Fixed assets'!$S$2:$S$1000))","v":0},{"$f":"Y685+SUMPRODUCT(('Fixed assets'!$Q$2:$Q$1000=Costs!Y$705)*('Fixed assets'!$U$2:$U$1000>Costs!$A773)*('Fixed assets'!$P$2:$P$1000=Costs!$A773)*('Fixed assets'!$R$2:$R$1000))-SUMPRODUCT(('Fixed assets'!$Q$2:$Q$1000=Costs!Y$705)*('Fixed assets'!$U$2:$U$1000>Costs!$A773)*('Fixed assets'!$P$2:$P$1000=Costs!$A773)*('Fixed assets'!$S$2:$S$1000))","v":0},{"$f":"Z685+SUMPRODUCT(('Fixed assets'!$Q$2:$Q$1000=Costs!Z$705)*('Fixed assets'!$U$2:$U$1000>Costs!$A773)*('Fixed assets'!$P$2:$P$1000=Costs!$A773)*('Fixed assets'!$R$2:$R$1000))-SUMPRODUCT(('Fixed assets'!$Q$2:$Q$1000=Costs!Z$705)*('Fixed assets'!$U$2:$U$1000>Costs!$A773)*('Fixed assets'!$P$2:$P$1000=Costs!$A773)*('Fixed assets'!$S$2:$S$1000))","v":0},{"$f":"AA685+SUMPRODUCT(('Fixed assets'!$Q$2:$Q$1000=Costs!AA$705)*('Fixed assets'!$U$2:$U$1000>Costs!$A773)*('Fixed assets'!$P$2:$P$1000=Costs!$A773)*('Fixed assets'!$R$2:$R$1000))-SUMPRODUCT(('Fixed assets'!$Q$2:$Q$1000=Costs!AA$705)*('Fixed assets'!$U$2:$U$1000>Costs!$A773)*('Fixed assets'!$P$2:$P$1000=Costs!$A773)*('Fixed assets'!$S$2:$S$1000))","v":0},{"$f":"AB685+SUMPRODUCT(('Fixed assets'!$Q$2:$Q$1000=Costs!AB$705)*('Fixed assets'!$U$2:$U$1000>Costs!$A773)*('Fixed assets'!$P$2:$P$1000=Costs!$A773)*('Fixed assets'!$R$2:$R$1000))-SUMPRODUCT(('Fixed assets'!$Q$2:$Q$1000=Costs!AB$705)*('Fixed assets'!$U$2:$U$1000>Costs!$A773)*('Fixed assets'!$P$2:$P$1000=Costs!$A773)*('Fixed assets'!$S$2:$S$1000))","v":0},{"$f":"AC685+SUMPRODUCT(('Fixed assets'!$Q$2:$Q$1000=Costs!AC$705)*('Fixed assets'!$U$2:$U$1000>Costs!$A773)*('Fixed assets'!$P$2:$P$1000=Costs!$A773)*('Fixed assets'!$R$2:$R$1000))-SUMPRODUCT(('Fixed assets'!$Q$2:$Q$1000=Costs!AC$705)*('Fixed assets'!$U$2:$U$1000>Costs!$A773)*('Fixed assets'!$P$2:$P$1000=Costs!$A773)*('Fixed assets'!$S$2:$S$1000))","v":0},{"$f":"AD685+SUMPRODUCT(('Fixed assets'!$Q$2:$Q$1000=Costs!AD$705)*('Fixed assets'!$U$2:$U$1000>Costs!$A773)*('Fixed assets'!$P$2:$P$1000=Costs!$A773)*('Fixed assets'!$R$2:$R$1000))-SUMPRODUCT(('Fixed assets'!$Q$2:$Q$1000=Costs!AD$705)*('Fixed assets'!$U$2:$U$1000>Costs!$A773)*('Fixed assets'!$P$2:$P$1000=Costs!$A773)*('Fixed assets'!$S$2:$S$1000))","v":0},{"$f":"AE685+SUMPRODUCT(('Fixed assets'!$Q$2:$Q$1000=Costs!AE$705)*('Fixed assets'!$U$2:$U$1000>Costs!$A773)*('Fixed assets'!$P$2:$P$1000=Costs!$A773)*('Fixed assets'!$R$2:$R$1000))-SUMPRODUCT(('Fixed assets'!$Q$2:$Q$1000=Costs!AE$705)*('Fixed assets'!$U$2:$U$1000>Costs!$A773)*('Fixed assets'!$P$2:$P$1000=Costs!$A773)*('Fixed assets'!$S$2:$S$1000))","v":0},{"$f":"AF685+SUMPRODUCT(('Fixed assets'!$Q$2:$Q$1000=Costs!AF$705)*('Fixed assets'!$U$2:$U$1000>Costs!$A773)*('Fixed assets'!$P$2:$P$1000=Costs!$A773)*('Fixed assets'!$R$2:$R$1000))-SUMPRODUCT(('Fixed assets'!$Q$2:$Q$1000=Costs!AF$705)*('Fixed assets'!$U$2:$U$1000>Costs!$A773)*('Fixed assets'!$P$2:$P$1000=Costs!$A773)*('Fixed assets'!$S$2:$S$1000))","v":0},{"$f":"AG685+SUMPRODUCT(('Fixed assets'!$Q$2:$Q$1000=Costs!AG$705)*('Fixed assets'!$U$2:$U$1000>Costs!$A773)*('Fixed assets'!$P$2:$P$1000=Costs!$A773)*('Fixed assets'!$R$2:$R$1000))-SUMPRODUCT(('Fixed assets'!$Q$2:$Q$1000=Costs!AG$705)*('Fixed assets'!$U$2:$U$1000>Costs!$A773)*('Fixed assets'!$P$2:$P$1000=Costs!$A773)*('Fixed assets'!$S$2:$S$1000))","v":0},{"$f":"AH685+SUMPRODUCT(('Fixed assets'!$Q$2:$Q$1000=Costs!AH$705)*('Fixed assets'!$U$2:$U$1000>Costs!$A773)*('Fixed assets'!$P$2:$P$1000=Costs!$A773)*('Fixed assets'!$R$2:$R$1000))-SUMPRODUCT(('Fixed assets'!$Q$2:$Q$1000=Costs!AH$705)*('Fixed assets'!$U$2:$U$1000>Costs!$A773)*('Fixed assets'!$P$2:$P$1000=Costs!$A773)*('Fixed assets'!$S$2:$S$1000))","v":0},{"$f":"AI685+SUMPRODUCT(('Fixed assets'!$Q$2:$Q$1000=Costs!AI$705)*('Fixed assets'!$U$2:$U$1000>Costs!$A773)*('Fixed assets'!$P$2:$P$1000=Costs!$A773)*('Fixed assets'!$R$2:$R$1000))-SUMPRODUCT(('Fixed assets'!$Q$2:$Q$1000=Costs!AI$705)*('Fixed assets'!$U$2:$U$1000>Costs!$A773)*('Fixed assets'!$P$2:$P$1000=Costs!$A773)*('Fixed assets'!$S$2:$S$1000))","v":0},{"$f":"AJ685+SUMPRODUCT(('Fixed assets'!$Q$2:$Q$1000=Costs!AJ$705)*('Fixed assets'!$U$2:$U$1000>Costs!$A773)*('Fixed assets'!$P$2:$P$1000=Costs!$A773)*('Fixed assets'!$R$2:$R$1000))-SUMPRODUCT(('Fixed assets'!$Q$2:$Q$1000=Costs!AJ$705)*('Fixed assets'!$U$2:$U$1000>Costs!$A773)*('Fixed assets'!$P$2:$P$1000=Costs!$A773)*('Fixed assets'!$S$2:$S$1000))","v":0},{"$f":"AK685+SUMPRODUCT(('Fixed assets'!$Q$2:$Q$1000=Costs!AK$705)*('Fixed assets'!$U$2:$U$1000>Costs!$A773)*('Fixed assets'!$P$2:$P$1000=Costs!$A773)*('Fixed assets'!$R$2:$R$1000))-SUMPRODUCT(('Fixed assets'!$Q$2:$Q$1000=Costs!AK$705)*('Fixed assets'!$U$2:$U$1000>Costs!$A773)*('Fixed assets'!$P$2:$P$1000=Costs!$A773)*('Fixed assets'!$S$2:$S$1000))","v":0},{"$f":"AL685+SUMPRODUCT(('Fixed assets'!$Q$2:$Q$1000=Costs!AL$705)*('Fixed assets'!$U$2:$U$1000>Costs!$A773)*('Fixed assets'!$P$2:$P$1000=Costs!$A773)*('Fixed assets'!$R$2:$R$1000))-SUMPRODUCT(('Fixed assets'!$Q$2:$Q$1000=Costs!AL$705)*('Fixed assets'!$U$2:$U$1000>Costs!$A773)*('Fixed assets'!$P$2:$P$1000=Costs!$A773)*('Fixed assets'!$S$2:$S$1000))","v":0},{"$f":"AM685+SUMPRODUCT(('Fixed assets'!$Q$2:$Q$1000=Costs!AM$705)*('Fixed assets'!$U$2:$U$1000>Costs!$A773)*('Fixed assets'!$P$2:$P$1000=Costs!$A773)*('Fixed assets'!$R$2:$R$1000))-SUMPRODUCT(('Fixed assets'!$Q$2:$Q$1000=Costs!AM$705)*('Fixed assets'!$U$2:$U$1000>Costs!$A773)*('Fixed assets'!$P$2:$P$1000=Costs!$A773)*('Fixed assets'!$S$2:$S$1000))","v":0},{"$f":"AN685+SUMPRODUCT(('Fixed assets'!$Q$2:$Q$1000=Costs!AN$705)*('Fixed assets'!$U$2:$U$1000>Costs!$A773)*('Fixed assets'!$P$2:$P$1000=Costs!$A773)*('Fixed assets'!$R$2:$R$1000))-SUMPRODUCT(('Fixed assets'!$Q$2:$Q$1000=Costs!AN$705)*('Fixed assets'!$U$2:$U$1000>Costs!$A773)*('Fixed assets'!$P$2:$P$1000=Costs!$A773)*('Fixed assets'!$S$2:$S$1000))","v":0},{"$f":"AO685+SUMPRODUCT(('Fixed assets'!$Q$2:$Q$1000=Costs!AO$705)*('Fixed assets'!$U$2:$U$1000>Costs!$A773)*('Fixed assets'!$P$2:$P$1000=Costs!$A773)*('Fixed assets'!$R$2:$R$1000))-SUMPRODUCT(('Fixed assets'!$Q$2:$Q$1000=Costs!AO$705)*('Fixed assets'!$U$2:$U$1000>Costs!$A773)*('Fixed assets'!$P$2:$P$1000=Costs!$A773)*('Fixed assets'!$S$2:$S$1000))","v":0},{"$f":"AP685+SUMPRODUCT(('Fixed assets'!$Q$2:$Q$1000=Costs!AP$705)*('Fixed assets'!$U$2:$U$1000>Costs!$A773)*('Fixed assets'!$P$2:$P$1000=Costs!$A773)*('Fixed assets'!$R$2:$R$1000))-SUMPRODUCT(('Fixed assets'!$Q$2:$Q$1000=Costs!AP$705)*('Fixed assets'!$U$2:$U$1000>Costs!$A773)*('Fixed assets'!$P$2:$P$1000=Costs!$A773)*('Fixed assets'!$S$2:$S$1000))","v":0},{"$f":"AQ685+SUMPRODUCT(('Fixed assets'!$Q$2:$Q$1000=Costs!AQ$705)*('Fixed assets'!$U$2:$U$1000>Costs!$A773)*('Fixed assets'!$P$2:$P$1000=Costs!$A773)*('Fixed assets'!$R$2:$R$1000))-SUMPRODUCT(('Fixed assets'!$Q$2:$Q$1000=Costs!AQ$705)*('Fixed assets'!$U$2:$U$1000>Costs!$A773)*('Fixed assets'!$P$2:$P$1000=Costs!$A773)*('Fixed assets'!$S$2:$S$1000))","v":0}]
[2083,0,{"$f":"C686+SUMPRODUCT(('Fixed assets'!$Q$2:$Q$1000=Costs!C$705)*('Fixed assets'!$U$2:$U$1000>Costs!$A774)*('Fixed assets'!$P$2:$P$1000=Costs!$A774)*('Fixed assets'!$R$2:$R$1000))-SUMPRODUCT(('Fixed assets'!$Q$2:$Q$1000=Costs!C$705)*('Fixed assets'!$U$2:$U$1000>Costs!$A774)*('Fixed assets'!$P$2:$P$1000=Costs!$A774)*('Fixed assets'!$S$2:$S$1000))","v":0},{"$f":"D686+SUMPRODUCT(('Fixed assets'!$Q$2:$Q$1000=Costs!D$705)*('Fixed assets'!$U$2:$U$1000>Costs!$A774)*('Fixed assets'!$P$2:$P$1000=Costs!$A774)*('Fixed assets'!$R$2:$R$1000))-SUMPRODUCT(('Fixed assets'!$Q$2:$Q$1000=Costs!D$705)*('Fixed assets'!$U$2:$U$1000>Costs!$A774)*('Fixed assets'!$P$2:$P$1000=Costs!$A774)*('Fixed assets'!$S$2:$S$1000))","v":0},{"$f":"E686+SUMPRODUCT(('Fixed assets'!$Q$2:$Q$1000=Costs!E$705)*('Fixed assets'!$U$2:$U$1000>Costs!$A774)*('Fixed assets'!$P$2:$P$1000=Costs!$A774)*('Fixed assets'!$R$2:$R$1000))-SUMPRODUCT(('Fixed assets'!$Q$2:$Q$1000=Costs!E$705)*('Fixed assets'!$U$2:$U$1000>Costs!$A774)*('Fixed assets'!$P$2:$P$1000=Costs!$A774)*('Fixed assets'!$S$2:$S$1000))","v":0},{"$f":"F686+SUMPRODUCT(('Fixed assets'!$Q$2:$Q$1000=Costs!F$705)*('Fixed assets'!$U$2:$U$1000>Costs!$A774)*('Fixed assets'!$P$2:$P$1000=Costs!$A774)*('Fixed assets'!$R$2:$R$1000))-SUMPRODUCT(('Fixed assets'!$Q$2:$Q$1000=Costs!F$705)*('Fixed assets'!$U$2:$U$1000>Costs!$A774)*('Fixed assets'!$P$2:$P$1000=Costs!$A774)*('Fixed assets'!$S$2:$S$1000))","v":0},{"$f":"G686+SUMPRODUCT(('Fixed assets'!$Q$2:$Q$1000=Costs!G$705)*('Fixed assets'!$U$2:$U$1000>Costs!$A774)*('Fixed assets'!$P$2:$P$1000=Costs!$A774)*('Fixed assets'!$R$2:$R$1000))-SUMPRODUCT(('Fixed assets'!$Q$2:$Q$1000=Costs!G$705)*('Fixed assets'!$U$2:$U$1000>Costs!$A774)*('Fixed assets'!$P$2:$P$1000=Costs!$A774)*('Fixed assets'!$S$2:$S$1000))","v":0},{"$f":"H686+SUMPRODUCT(('Fixed assets'!$Q$2:$Q$1000=Costs!H$705)*('Fixed assets'!$U$2:$U$1000>Costs!$A774)*('Fixed assets'!$P$2:$P$1000=Costs!$A774)*('Fixed assets'!$R$2:$R$1000))-SUMPRODUCT(('Fixed assets'!$Q$2:$Q$1000=Costs!H$705)*('Fixed assets'!$U$2:$U$1000>Costs!$A774)*('Fixed assets'!$P$2:$P$1000=Costs!$A774)*('Fixed assets'!$S$2:$S$1000))","v":0},{"$f":"I686+SUMPRODUCT(('Fixed assets'!$Q$2:$Q$1000=Costs!I$705)*('Fixed assets'!$U$2:$U$1000>Costs!$A774)*('Fixed assets'!$P$2:$P$1000=Costs!$A774)*('Fixed assets'!$R$2:$R$1000))-SUMPRODUCT(('Fixed assets'!$Q$2:$Q$1000=Costs!I$705)*('Fixed assets'!$U$2:$U$1000>Costs!$A774)*('Fixed assets'!$P$2:$P$1000=Costs!$A774)*('Fixed assets'!$S$2:$S$1000))","v":0},{"$f":"J686+SUMPRODUCT(('Fixed assets'!$Q$2:$Q$1000=Costs!J$705)*('Fixed assets'!$U$2:$U$1000>Costs!$A774)*('Fixed assets'!$P$2:$P$1000=Costs!$A774)*('Fixed assets'!$R$2:$R$1000))-SUMPRODUCT(('Fixed assets'!$Q$2:$Q$1000=Costs!J$705)*('Fixed assets'!$U$2:$U$1000>Costs!$A774)*('Fixed assets'!$P$2:$P$1000=Costs!$A774)*('Fixed assets'!$S$2:$S$1000))","v":0},{"$f":"K686+SUMPRODUCT(('Fixed assets'!$Q$2:$Q$1000=Costs!K$705)*('Fixed assets'!$U$2:$U$1000>Costs!$A774)*('Fixed assets'!$P$2:$P$1000=Costs!$A774)*('Fixed assets'!$R$2:$R$1000))-SUMPRODUCT(('Fixed assets'!$Q$2:$Q$1000=Costs!K$705)*('Fixed assets'!$U$2:$U$1000>Costs!$A774)*('Fixed assets'!$P$2:$P$1000=Costs!$A774)*('Fixed assets'!$S$2:$S$1000))","v":0},{"$f":"L686+SUMPRODUCT(('Fixed assets'!$Q$2:$Q$1000=Costs!L$705)*('Fixed assets'!$U$2:$U$1000>Costs!$A774)*('Fixed assets'!$P$2:$P$1000=Costs!$A774)*('Fixed assets'!$R$2:$R$1000))-SUMPRODUCT(('Fixed assets'!$Q$2:$Q$1000=Costs!L$705)*('Fixed assets'!$U$2:$U$1000>Costs!$A774)*('Fixed assets'!$P$2:$P$1000=Costs!$A774)*('Fixed assets'!$S$2:$S$1000))","v":0},{"$f":"M686+SUMPRODUCT(('Fixed assets'!$Q$2:$Q$1000=Costs!M$705)*('Fixed assets'!$U$2:$U$1000>Costs!$A774)*('Fixed assets'!$P$2:$P$1000=Costs!$A774)*('Fixed assets'!$R$2:$R$1000))-SUMPRODUCT(('Fixed assets'!$Q$2:$Q$1000=Costs!M$705)*('Fixed assets'!$U$2:$U$1000>Costs!$A774)*('Fixed assets'!$P$2:$P$1000=Costs!$A774)*('Fixed assets'!$S$2:$S$1000))","v":0},{"$f":"N686+SUMPRODUCT(('Fixed assets'!$Q$2:$Q$1000=Costs!N$705)*('Fixed assets'!$U$2:$U$1000>Costs!$A774)*('Fixed assets'!$P$2:$P$1000=Costs!$A774)*('Fixed assets'!$R$2:$R$1000))-SUMPRODUCT(('Fixed assets'!$Q$2:$Q$1000=Costs!N$705)*('Fixed assets'!$U$2:$U$1000>Costs!$A774)*('Fixed assets'!$P$2:$P$1000=Costs!$A774)*('Fixed assets'!$S$2:$S$1000))","v":0},{"$f":"O686+SUMPRODUCT(('Fixed assets'!$Q$2:$Q$1000=Costs!O$705)*('Fixed assets'!$U$2:$U$1000>Costs!$A774)*('Fixed assets'!$P$2:$P$1000=Costs!$A774)*('Fixed assets'!$R$2:$R$1000))-SUMPRODUCT(('Fixed assets'!$Q$2:$Q$1000=Costs!O$705)*('Fixed assets'!$U$2:$U$1000>Costs!$A774)*('Fixed assets'!$P$2:$P$1000=Costs!$A774)*('Fixed assets'!$S$2:$S$1000))","v":0},{"$f":"P686+SUMPRODUCT(('Fixed assets'!$Q$2:$Q$1000=Costs!P$705)*('Fixed assets'!$U$2:$U$1000>Costs!$A774)*('Fixed assets'!$P$2:$P$1000=Costs!$A774)*('Fixed assets'!$R$2:$R$1000))-SUMPRODUCT(('Fixed assets'!$Q$2:$Q$1000=Costs!P$705)*('Fixed assets'!$U$2:$U$1000>Costs!$A774)*('Fixed assets'!$P$2:$P$1000=Costs!$A774)*('Fixed assets'!$S$2:$S$1000))","v":0},{"$f":"Q686+SUMPRODUCT(('Fixed assets'!$Q$2:$Q$1000=Costs!Q$705)*('Fixed assets'!$U$2:$U$1000>Costs!$A774)*('Fixed assets'!$P$2:$P$1000=Costs!$A774)*('Fixed assets'!$R$2:$R$1000))-SUMPRODUCT(('Fixed assets'!$Q$2:$Q$1000=Costs!Q$705)*('Fixed assets'!$U$2:$U$1000>Costs!$A774)*('Fixed assets'!$P$2:$P$1000=Costs!$A774)*('Fixed assets'!$S$2:$S$1000))","v":0},{"$f":"R686+SUMPRODUCT(('Fixed assets'!$Q$2:$Q$1000=Costs!R$705)*('Fixed assets'!$U$2:$U$1000>Costs!$A774)*('Fixed assets'!$P$2:$P$1000=Costs!$A774)*('Fixed assets'!$R$2:$R$1000))-SUMPRODUCT(('Fixed assets'!$Q$2:$Q$1000=Costs!R$705)*('Fixed assets'!$U$2:$U$1000>Costs!$A774)*('Fixed assets'!$P$2:$P$1000=Costs!$A774)*('Fixed assets'!$S$2:$S$1000))","v":0},{"$f":"S686+SUMPRODUCT(('Fixed assets'!$Q$2:$Q$1000=Costs!S$705)*('Fixed assets'!$U$2:$U$1000>Costs!$A774)*('Fixed assets'!$P$2:$P$1000=Costs!$A774)*('Fixed assets'!$R$2:$R$1000))-SUMPRODUCT(('Fixed assets'!$Q$2:$Q$1000=Costs!S$705)*('Fixed assets'!$U$2:$U$1000>Costs!$A774)*('Fixed assets'!$P$2:$P$1000=Costs!$A774)*('Fixed assets'!$S$2:$S$1000))","v":0},{"$f":"T686+SUMPRODUCT(('Fixed assets'!$Q$2:$Q$1000=Costs!T$705)*('Fixed assets'!$U$2:$U$1000>Costs!$A774)*('Fixed assets'!$P$2:$P$1000=Costs!$A774)*('Fixed assets'!$R$2:$R$1000))-SUMPRODUCT(('Fixed assets'!$Q$2:$Q$1000=Costs!T$705)*('Fixed assets'!$U$2:$U$1000>Costs!$A774)*('Fixed assets'!$P$2:$P$1000=Costs!$A774)*('Fixed assets'!$S$2:$S$1000))","v":0},{"$f":"U686+SUMPRODUCT(('Fixed assets'!$Q$2:$Q$1000=Costs!U$705)*('Fixed assets'!$U$2:$U$1000>Costs!$A774)*('Fixed assets'!$P$2:$P$1000=Costs!$A774)*('Fixed assets'!$R$2:$R$1000))-SUMPRODUCT(('Fixed assets'!$Q$2:$Q$1000=Costs!U$705)*('Fixed assets'!$U$2:$U$1000>Costs!$A774)*('Fixed assets'!$P$2:$P$1000=Costs!$A774)*('Fixed assets'!$S$2:$S$1000))","v":0},{"$f":"V686+SUMPRODUCT(('Fixed assets'!$Q$2:$Q$1000=Costs!V$705)*('Fixed assets'!$U$2:$U$1000>Costs!$A774)*('Fixed assets'!$P$2:$P$1000=Costs!$A774)*('Fixed assets'!$R$2:$R$1000))-SUMPRODUCT(('Fixed assets'!$Q$2:$Q$1000=Costs!V$705)*('Fixed assets'!$U$2:$U$1000>Costs!$A774)*('Fixed assets'!$P$2:$P$1000=Costs!$A774)*('Fixed assets'!$S$2:$S$1000))","v":0},{"$f":"W686+SUMPRODUCT(('Fixed assets'!$Q$2:$Q$1000=Costs!W$705)*('Fixed assets'!$U$2:$U$1000>Costs!$A774)*('Fixed assets'!$P$2:$P$1000=Costs!$A774)*('Fixed assets'!$R$2:$R$1000))-SUMPRODUCT(('Fixed assets'!$Q$2:$Q$1000=Costs!W$705)*('Fixed assets'!$U$2:$U$1000>Costs!$A774)*('Fixed assets'!$P$2:$P$1000=Costs!$A774)*('Fixed assets'!$S$2:$S$1000))","v":0},{"$f":"X686+SUMPRODUCT(('Fixed assets'!$Q$2:$Q$1000=Costs!X$705)*('Fixed assets'!$U$2:$U$1000>Costs!$A774)*('Fixed assets'!$P$2:$P$1000=Costs!$A774)*('Fixed assets'!$R$2:$R$1000))-SUMPRODUCT(('Fixed assets'!$Q$2:$Q$1000=Costs!X$705)*('Fixed assets'!$U$2:$U$1000>Costs!$A774)*('Fixed assets'!$P$2:$P$1000=Costs!$A774)*('Fixed assets'!$S$2:$S$1000))","v":0},{"$f":"Y686+SUMPRODUCT(('Fixed assets'!$Q$2:$Q$1000=Costs!Y$705)*('Fixed assets'!$U$2:$U$1000>Costs!$A774)*('Fixed assets'!$P$2:$P$1000=Costs!$A774)*('Fixed assets'!$R$2:$R$1000))-SUMPRODUCT(('Fixed assets'!$Q$2:$Q$1000=Costs!Y$705)*('Fixed assets'!$U$2:$U$1000>Costs!$A774)*('Fixed assets'!$P$2:$P$1000=Costs!$A774)*('Fixed assets'!$S$2:$S$1000))","v":0},{"$f":"Z686+SUMPRODUCT(('Fixed assets'!$Q$2:$Q$1000=Costs!Z$705)*('Fixed assets'!$U$2:$U$1000>Costs!$A774)*('Fixed assets'!$P$2:$P$1000=Costs!$A774)*('Fixed assets'!$R$2:$R$1000))-SUMPRODUCT(('Fixed assets'!$Q$2:$Q$1000=Costs!Z$705)*('Fixed assets'!$U$2:$U$1000>Costs!$A774)*('Fixed assets'!$P$2:$P$1000=Costs!$A774)*('Fixed assets'!$S$2:$S$1000))","v":0},{"$f":"AA686+SUMPRODUCT(('Fixed assets'!$Q$2:$Q$1000=Costs!AA$705)*('Fixed assets'!$U$2:$U$1000>Costs!$A774)*('Fixed assets'!$P$2:$P$1000=Costs!$A774)*('Fixed assets'!$R$2:$R$1000))-SUMPRODUCT(('Fixed assets'!$Q$2:$Q$1000=Costs!AA$705)*('Fixed assets'!$U$2:$U$1000>Costs!$A774)*('Fixed assets'!$P$2:$P$1000=Costs!$A774)*('Fixed assets'!$S$2:$S$1000))","v":0},{"$f":"AB686+SUMPRODUCT(('Fixed assets'!$Q$2:$Q$1000=Costs!AB$705)*('Fixed assets'!$U$2:$U$1000>Costs!$A774)*('Fixed assets'!$P$2:$P$1000=Costs!$A774)*('Fixed assets'!$R$2:$R$1000))-SUMPRODUCT(('Fixed assets'!$Q$2:$Q$1000=Costs!AB$705)*('Fixed assets'!$U$2:$U$1000>Costs!$A774)*('Fixed assets'!$P$2:$P$1000=Costs!$A774)*('Fixed assets'!$S$2:$S$1000))","v":0},{"$f":"AC686+SUMPRODUCT(('Fixed assets'!$Q$2:$Q$1000=Costs!AC$705)*('Fixed assets'!$U$2:$U$1000>Costs!$A774)*('Fixed assets'!$P$2:$P$1000=Costs!$A774)*('Fixed assets'!$R$2:$R$1000))-SUMPRODUCT(('Fixed assets'!$Q$2:$Q$1000=Costs!AC$705)*('Fixed assets'!$U$2:$U$1000>Costs!$A774)*('Fixed assets'!$P$2:$P$1000=Costs!$A774)*('Fixed assets'!$S$2:$S$1000))","v":0},{"$f":"AD686+SUMPRODUCT(('Fixed assets'!$Q$2:$Q$1000=Costs!AD$705)*('Fixed assets'!$U$2:$U$1000>Costs!$A774)*('Fixed assets'!$P$2:$P$1000=Costs!$A774)*('Fixed assets'!$R$2:$R$1000))-SUMPRODUCT(('Fixed assets'!$Q$2:$Q$1000=Costs!AD$705)*('Fixed assets'!$U$2:$U$1000>Costs!$A774)*('Fixed assets'!$P$2:$P$1000=Costs!$A774)*('Fixed assets'!$S$2:$S$1000))","v":0},{"$f":"AE686+SUMPRODUCT(('Fixed assets'!$Q$2:$Q$1000=Costs!AE$705)*('Fixed assets'!$U$2:$U$1000>Costs!$A774)*('Fixed assets'!$P$2:$P$1000=Costs!$A774)*('Fixed assets'!$R$2:$R$1000))-SUMPRODUCT(('Fixed assets'!$Q$2:$Q$1000=Costs!AE$705)*('Fixed assets'!$U$2:$U$1000>Costs!$A774)*('Fixed assets'!$P$2:$P$1000=Costs!$A774)*('Fixed assets'!$S$2:$S$1000))","v":0},{"$f":"AF686+SUMPRODUCT(('Fixed assets'!$Q$2:$Q$1000=Costs!AF$705)*('Fixed assets'!$U$2:$U$1000>Costs!$A774)*('Fixed assets'!$P$2:$P$1000=Costs!$A774)*('Fixed assets'!$R$2:$R$1000))-SUMPRODUCT(('Fixed assets'!$Q$2:$Q$1000=Costs!AF$705)*('Fixed assets'!$U$2:$U$1000>Costs!$A774)*('Fixed assets'!$P$2:$P$1000=Costs!$A774)*('Fixed assets'!$S$2:$S$1000))","v":0},{"$f":"AG686+SUMPRODUCT(('Fixed assets'!$Q$2:$Q$1000=Costs!AG$705)*('Fixed assets'!$U$2:$U$1000>Costs!$A774)*('Fixed assets'!$P$2:$P$1000=Costs!$A774)*('Fixed assets'!$R$2:$R$1000))-SUMPRODUCT(('Fixed assets'!$Q$2:$Q$1000=Costs!AG$705)*('Fixed assets'!$U$2:$U$1000>Costs!$A774)*('Fixed assets'!$P$2:$P$1000=Costs!$A774)*('Fixed assets'!$S$2:$S$1000))","v":0},{"$f":"AH686+SUMPRODUCT(('Fixed assets'!$Q$2:$Q$1000=Costs!AH$705)*('Fixed assets'!$U$2:$U$1000>Costs!$A774)*('Fixed assets'!$P$2:$P$1000=Costs!$A774)*('Fixed assets'!$R$2:$R$1000))-SUMPRODUCT(('Fixed assets'!$Q$2:$Q$1000=Costs!AH$705)*('Fixed assets'!$U$2:$U$1000>Costs!$A774)*('Fixed assets'!$P$2:$P$1000=Costs!$A774)*('Fixed assets'!$S$2:$S$1000))","v":0},{"$f":"AI686+SUMPRODUCT(('Fixed assets'!$Q$2:$Q$1000=Costs!AI$705)*('Fixed assets'!$U$2:$U$1000>Costs!$A774)*('Fixed assets'!$P$2:$P$1000=Costs!$A774)*('Fixed assets'!$R$2:$R$1000))-SUMPRODUCT(('Fixed assets'!$Q$2:$Q$1000=Costs!AI$705)*('Fixed assets'!$U$2:$U$1000>Costs!$A774)*('Fixed assets'!$P$2:$P$1000=Costs!$A774)*('Fixed assets'!$S$2:$S$1000))","v":0},{"$f":"AJ686+SUMPRODUCT(('Fixed assets'!$Q$2:$Q$1000=Costs!AJ$705)*('Fixed assets'!$U$2:$U$1000>Costs!$A774)*('Fixed assets'!$P$2:$P$1000=Costs!$A774)*('Fixed assets'!$R$2:$R$1000))-SUMPRODUCT(('Fixed assets'!$Q$2:$Q$1000=Costs!AJ$705)*('Fixed assets'!$U$2:$U$1000>Costs!$A774)*('Fixed assets'!$P$2:$P$1000=Costs!$A774)*('Fixed assets'!$S$2:$S$1000))","v":0},{"$f":"AK686+SUMPRODUCT(('Fixed assets'!$Q$2:$Q$1000=Costs!AK$705)*('Fixed assets'!$U$2:$U$1000>Costs!$A774)*('Fixed assets'!$P$2:$P$1000=Costs!$A774)*('Fixed assets'!$R$2:$R$1000))-SUMPRODUCT(('Fixed assets'!$Q$2:$Q$1000=Costs!AK$705)*('Fixed assets'!$U$2:$U$1000>Costs!$A774)*('Fixed assets'!$P$2:$P$1000=Costs!$A774)*('Fixed assets'!$S$2:$S$1000))","v":0},{"$f":"AL686+SUMPRODUCT(('Fixed assets'!$Q$2:$Q$1000=Costs!AL$705)*('Fixed assets'!$U$2:$U$1000>Costs!$A774)*('Fixed assets'!$P$2:$P$1000=Costs!$A774)*('Fixed assets'!$R$2:$R$1000))-SUMPRODUCT(('Fixed assets'!$Q$2:$Q$1000=Costs!AL$705)*('Fixed assets'!$U$2:$U$1000>Costs!$A774)*('Fixed assets'!$P$2:$P$1000=Costs!$A774)*('Fixed assets'!$S$2:$S$1000))","v":0},{"$f":"AM686+SUMPRODUCT(('Fixed assets'!$Q$2:$Q$1000=Costs!AM$705)*('Fixed assets'!$U$2:$U$1000>Costs!$A774)*('Fixed assets'!$P$2:$P$1000=Costs!$A774)*('Fixed assets'!$R$2:$R$1000))-SUMPRODUCT(('Fixed assets'!$Q$2:$Q$1000=Costs!AM$705)*('Fixed assets'!$U$2:$U$1000>Costs!$A774)*('Fixed assets'!$P$2:$P$1000=Costs!$A774)*('Fixed assets'!$S$2:$S$1000))","v":0},{"$f":"AN686+SUMPRODUCT(('Fixed assets'!$Q$2:$Q$1000=Costs!AN$705)*('Fixed assets'!$U$2:$U$1000>Costs!$A774)*('Fixed assets'!$P$2:$P$1000=Costs!$A774)*('Fixed assets'!$R$2:$R$1000))-SUMPRODUCT(('Fixed assets'!$Q$2:$Q$1000=Costs!AN$705)*('Fixed assets'!$U$2:$U$1000>Costs!$A774)*('Fixed assets'!$P$2:$P$1000=Costs!$A774)*('Fixed assets'!$S$2:$S$1000))","v":0},{"$f":"AO686+SUMPRODUCT(('Fixed assets'!$Q$2:$Q$1000=Costs!AO$705)*('Fixed assets'!$U$2:$U$1000>Costs!$A774)*('Fixed assets'!$P$2:$P$1000=Costs!$A774)*('Fixed assets'!$R$2:$R$1000))-SUMPRODUCT(('Fixed assets'!$Q$2:$Q$1000=Costs!AO$705)*('Fixed assets'!$U$2:$U$1000>Costs!$A774)*('Fixed assets'!$P$2:$P$1000=Costs!$A774)*('Fixed assets'!$S$2:$S$1000))","v":0},{"$f":"AP686+SUMPRODUCT(('Fixed assets'!$Q$2:$Q$1000=Costs!AP$705)*('Fixed assets'!$U$2:$U$1000>Costs!$A774)*('Fixed assets'!$P$2:$P$1000=Costs!$A774)*('Fixed assets'!$R$2:$R$1000))-SUMPRODUCT(('Fixed assets'!$Q$2:$Q$1000=Costs!AP$705)*('Fixed assets'!$U$2:$U$1000>Costs!$A774)*('Fixed assets'!$P$2:$P$1000=Costs!$A774)*('Fixed assets'!$S$2:$S$1000))","v":0},{"$f":"AQ686+SUMPRODUCT(('Fixed assets'!$Q$2:$Q$1000=Costs!AQ$705)*('Fixed assets'!$U$2:$U$1000>Costs!$A774)*('Fixed assets'!$P$2:$P$1000=Costs!$A774)*('Fixed assets'!$R$2:$R$1000))-SUMPRODUCT(('Fixed assets'!$Q$2:$Q$1000=Costs!AQ$705)*('Fixed assets'!$U$2:$U$1000>Costs!$A774)*('Fixed assets'!$P$2:$P$1000=Costs!$A774)*('Fixed assets'!$S$2:$S$1000))","v":0}]
[2084,0,{"$f":"C687+SUMPRODUCT(('Fixed assets'!$Q$2:$Q$1000=Costs!C$705)*('Fixed assets'!$U$2:$U$1000>Costs!$A775)*('Fixed assets'!$P$2:$P$1000=Costs!$A775)*('Fixed assets'!$R$2:$R$1000))-SUMPRODUCT(('Fixed assets'!$Q$2:$Q$1000=Costs!C$705)*('Fixed assets'!$U$2:$U$1000>Costs!$A775)*('Fixed assets'!$P$2:$P$1000=Costs!$A775)*('Fixed assets'!$S$2:$S$1000))","v":0},{"$f":"D687+SUMPRODUCT(('Fixed assets'!$Q$2:$Q$1000=Costs!D$705)*('Fixed assets'!$U$2:$U$1000>Costs!$A775)*('Fixed assets'!$P$2:$P$1000=Costs!$A775)*('Fixed assets'!$R$2:$R$1000))-SUMPRODUCT(('Fixed assets'!$Q$2:$Q$1000=Costs!D$705)*('Fixed assets'!$U$2:$U$1000>Costs!$A775)*('Fixed assets'!$P$2:$P$1000=Costs!$A775)*('Fixed assets'!$S$2:$S$1000))","v":0},{"$f":"E687+SUMPRODUCT(('Fixed assets'!$Q$2:$Q$1000=Costs!E$705)*('Fixed assets'!$U$2:$U$1000>Costs!$A775)*('Fixed assets'!$P$2:$P$1000=Costs!$A775)*('Fixed assets'!$R$2:$R$1000))-SUMPRODUCT(('Fixed assets'!$Q$2:$Q$1000=Costs!E$705)*('Fixed assets'!$U$2:$U$1000>Costs!$A775)*('Fixed assets'!$P$2:$P$1000=Costs!$A775)*('Fixed assets'!$S$2:$S$1000))","v":0},{"$f":"F687+SUMPRODUCT(('Fixed assets'!$Q$2:$Q$1000=Costs!F$705)*('Fixed assets'!$U$2:$U$1000>Costs!$A775)*('Fixed assets'!$P$2:$P$1000=Costs!$A775)*('Fixed assets'!$R$2:$R$1000))-SUMPRODUCT(('Fixed assets'!$Q$2:$Q$1000=Costs!F$705)*('Fixed assets'!$U$2:$U$1000>Costs!$A775)*('Fixed assets'!$P$2:$P$1000=Costs!$A775)*('Fixed assets'!$S$2:$S$1000))","v":0},{"$f":"G687+SUMPRODUCT(('Fixed assets'!$Q$2:$Q$1000=Costs!G$705)*('Fixed assets'!$U$2:$U$1000>Costs!$A775)*('Fixed assets'!$P$2:$P$1000=Costs!$A775)*('Fixed assets'!$R$2:$R$1000))-SUMPRODUCT(('Fixed assets'!$Q$2:$Q$1000=Costs!G$705)*('Fixed assets'!$U$2:$U$1000>Costs!$A775)*('Fixed assets'!$P$2:$P$1000=Costs!$A775)*('Fixed assets'!$S$2:$S$1000))","v":0},{"$f":"H687+SUMPRODUCT(('Fixed assets'!$Q$2:$Q$1000=Costs!H$705)*('Fixed assets'!$U$2:$U$1000>Costs!$A775)*('Fixed assets'!$P$2:$P$1000=Costs!$A775)*('Fixed assets'!$R$2:$R$1000))-SUMPRODUCT(('Fixed assets'!$Q$2:$Q$1000=Costs!H$705)*('Fixed assets'!$U$2:$U$1000>Costs!$A775)*('Fixed assets'!$P$2:$P$1000=Costs!$A775)*('Fixed assets'!$S$2:$S$1000))","v":0},{"$f":"I687+SUMPRODUCT(('Fixed assets'!$Q$2:$Q$1000=Costs!I$705)*('Fixed assets'!$U$2:$U$1000>Costs!$A775)*('Fixed assets'!$P$2:$P$1000=Costs!$A775)*('Fixed assets'!$R$2:$R$1000))-SUMPRODUCT(('Fixed assets'!$Q$2:$Q$1000=Costs!I$705)*('Fixed assets'!$U$2:$U$1000>Costs!$A775)*('Fixed assets'!$P$2:$P$1000=Costs!$A775)*('Fixed assets'!$S$2:$S$1000))","v":0},{"$f":"J687+SUMPRODUCT(('Fixed assets'!$Q$2:$Q$1000=Costs!J$705)*('Fixed assets'!$U$2:$U$1000>Costs!$A775)*('Fixed assets'!$P$2:$P$1000=Costs!$A775)*('Fixed assets'!$R$2:$R$1000))-SUMPRODUCT(('Fixed assets'!$Q$2:$Q$1000=Costs!J$705)*('Fixed assets'!$U$2:$U$1000>Costs!$A775)*('Fixed assets'!$P$2:$P$1000=Costs!$A775)*('Fixed assets'!$S$2:$S$1000))","v":0},{"$f":"K687+SUMPRODUCT(('Fixed assets'!$Q$2:$Q$1000=Costs!K$705)*('Fixed assets'!$U$2:$U$1000>Costs!$A775)*('Fixed assets'!$P$2:$P$1000=Costs!$A775)*('Fixed assets'!$R$2:$R$1000))-SUMPRODUCT(('Fixed assets'!$Q$2:$Q$1000=Costs!K$705)*('Fixed assets'!$U$2:$U$1000>Costs!$A775)*('Fixed assets'!$P$2:$P$1000=Costs!$A775)*('Fixed assets'!$S$2:$S$1000))","v":0},{"$f":"L687+SUMPRODUCT(('Fixed assets'!$Q$2:$Q$1000=Costs!L$705)*('Fixed assets'!$U$2:$U$1000>Costs!$A775)*('Fixed assets'!$P$2:$P$1000=Costs!$A775)*('Fixed assets'!$R$2:$R$1000))-SUMPRODUCT(('Fixed assets'!$Q$2:$Q$1000=Costs!L$705)*('Fixed assets'!$U$2:$U$1000>Costs!$A775)*('Fixed assets'!$P$2:$P$1000=Costs!$A775)*('Fixed assets'!$S$2:$S$1000))","v":0},{"$f":"M687+SUMPRODUCT(('Fixed assets'!$Q$2:$Q$1000=Costs!M$705)*('Fixed assets'!$U$2:$U$1000>Costs!$A775)*('Fixed assets'!$P$2:$P$1000=Costs!$A775)*('Fixed assets'!$R$2:$R$1000))-SUMPRODUCT(('Fixed assets'!$Q$2:$Q$1000=Costs!M$705)*('Fixed assets'!$U$2:$U$1000>Costs!$A775)*('Fixed assets'!$P$2:$P$1000=Costs!$A775)*('Fixed assets'!$S$2:$S$1000))","v":0},{"$f":"N687+SUMPRODUCT(('Fixed assets'!$Q$2:$Q$1000=Costs!N$705)*('Fixed assets'!$U$2:$U$1000>Costs!$A775)*('Fixed assets'!$P$2:$P$1000=Costs!$A775)*('Fixed assets'!$R$2:$R$1000))-SUMPRODUCT(('Fixed assets'!$Q$2:$Q$1000=Costs!N$705)*('Fixed assets'!$U$2:$U$1000>Costs!$A775)*('Fixed assets'!$P$2:$P$1000=Costs!$A775)*('Fixed assets'!$S$2:$S$1000))","v":0},{"$f":"O687+SUMPRODUCT(('Fixed assets'!$Q$2:$Q$1000=Costs!O$705)*('Fixed assets'!$U$2:$U$1000>Costs!$A775)*('Fixed assets'!$P$2:$P$1000=Costs!$A775)*('Fixed assets'!$R$2:$R$1000))-SUMPRODUCT(('Fixed assets'!$Q$2:$Q$1000=Costs!O$705)*('Fixed assets'!$U$2:$U$1000>Costs!$A775)*('Fixed assets'!$P$2:$P$1000=Costs!$A775)*('Fixed assets'!$S$2:$S$1000))","v":0},{"$f":"P687+SUMPRODUCT(('Fixed assets'!$Q$2:$Q$1000=Costs!P$705)*('Fixed assets'!$U$2:$U$1000>Costs!$A775)*('Fixed assets'!$P$2:$P$1000=Costs!$A775)*('Fixed assets'!$R$2:$R$1000))-SUMPRODUCT(('Fixed assets'!$Q$2:$Q$1000=Costs!P$705)*('Fixed assets'!$U$2:$U$1000>Costs!$A775)*('Fixed assets'!$P$2:$P$1000=Costs!$A775)*('Fixed assets'!$S$2:$S$1000))","v":0},{"$f":"Q687+SUMPRODUCT(('Fixed assets'!$Q$2:$Q$1000=Costs!Q$705)*('Fixed assets'!$U$2:$U$1000>Costs!$A775)*('Fixed assets'!$P$2:$P$1000=Costs!$A775)*('Fixed assets'!$R$2:$R$1000))-SUMPRODUCT(('Fixed assets'!$Q$2:$Q$1000=Costs!Q$705)*('Fixed assets'!$U$2:$U$1000>Costs!$A775)*('Fixed assets'!$P$2:$P$1000=Costs!$A775)*('Fixed assets'!$S$2:$S$1000))","v":0},{"$f":"R687+SUMPRODUCT(('Fixed assets'!$Q$2:$Q$1000=Costs!R$705)*('Fixed assets'!$U$2:$U$1000>Costs!$A775)*('Fixed assets'!$P$2:$P$1000=Costs!$A775)*('Fixed assets'!$R$2:$R$1000))-SUMPRODUCT(('Fixed assets'!$Q$2:$Q$1000=Costs!R$705)*('Fixed assets'!$U$2:$U$1000>Costs!$A775)*('Fixed assets'!$P$2:$P$1000=Costs!$A775)*('Fixed assets'!$S$2:$S$1000))","v":0},{"$f":"S687+SUMPRODUCT(('Fixed assets'!$Q$2:$Q$1000=Costs!S$705)*('Fixed assets'!$U$2:$U$1000>Costs!$A775)*('Fixed assets'!$P$2:$P$1000=Costs!$A775)*('Fixed assets'!$R$2:$R$1000))-SUMPRODUCT(('Fixed assets'!$Q$2:$Q$1000=Costs!S$705)*('Fixed assets'!$U$2:$U$1000>Costs!$A775)*('Fixed assets'!$P$2:$P$1000=Costs!$A775)*('Fixed assets'!$S$2:$S$1000))","v":0},{"$f":"T687+SUMPRODUCT(('Fixed assets'!$Q$2:$Q$1000=Costs!T$705)*('Fixed assets'!$U$2:$U$1000>Costs!$A775)*('Fixed assets'!$P$2:$P$1000=Costs!$A775)*('Fixed assets'!$R$2:$R$1000))-SUMPRODUCT(('Fixed assets'!$Q$2:$Q$1000=Costs!T$705)*('Fixed assets'!$U$2:$U$1000>Costs!$A775)*('Fixed assets'!$P$2:$P$1000=Costs!$A775)*('Fixed assets'!$S$2:$S$1000))","v":0},{"$f":"U687+SUMPRODUCT(('Fixed assets'!$Q$2:$Q$1000=Costs!U$705)*('Fixed assets'!$U$2:$U$1000>Costs!$A775)*('Fixed assets'!$P$2:$P$1000=Costs!$A775)*('Fixed assets'!$R$2:$R$1000))-SUMPRODUCT(('Fixed assets'!$Q$2:$Q$1000=Costs!U$705)*('Fixed assets'!$U$2:$U$1000>Costs!$A775)*('Fixed assets'!$P$2:$P$1000=Costs!$A775)*('Fixed assets'!$S$2:$S$1000))","v":0},{"$f":"V687+SUMPRODUCT(('Fixed assets'!$Q$2:$Q$1000=Costs!V$705)*('Fixed assets'!$U$2:$U$1000>Costs!$A775)*('Fixed assets'!$P$2:$P$1000=Costs!$A775)*('Fixed assets'!$R$2:$R$1000))-SUMPRODUCT(('Fixed assets'!$Q$2:$Q$1000=Costs!V$705)*('Fixed assets'!$U$2:$U$1000>Costs!$A775)*('Fixed assets'!$P$2:$P$1000=Costs!$A775)*('Fixed assets'!$S$2:$S$1000))","v":0},{"$f":"W687+SUMPRODUCT(('Fixed assets'!$Q$2:$Q$1000=Costs!W$705)*('Fixed assets'!$U$2:$U$1000>Costs!$A775)*('Fixed assets'!$P$2:$P$1000=Costs!$A775)*('Fixed assets'!$R$2:$R$1000))-SUMPRODUCT(('Fixed assets'!$Q$2:$Q$1000=Costs!W$705)*('Fixed assets'!$U$2:$U$1000>Costs!$A775)*('Fixed assets'!$P$2:$P$1000=Costs!$A775)*('Fixed assets'!$S$2:$S$1000))","v":0},{"$f":"X687+SUMPRODUCT(('Fixed assets'!$Q$2:$Q$1000=Costs!X$705)*('Fixed assets'!$U$2:$U$1000>Costs!$A775)*('Fixed assets'!$P$2:$P$1000=Costs!$A775)*('Fixed assets'!$R$2:$R$1000))-SUMPRODUCT(('Fixed assets'!$Q$2:$Q$1000=Costs!X$705)*('Fixed assets'!$U$2:$U$1000>Costs!$A775)*('Fixed assets'!$P$2:$P$1000=Costs!$A775)*('Fixed assets'!$S$2:$S$1000))","v":0},{"$f":"Y687+SUMPRODUCT(('Fixed assets'!$Q$2:$Q$1000=Costs!Y$705)*('Fixed assets'!$U$2:$U$1000>Costs!$A775)*('Fixed assets'!$P$2:$P$1000=Costs!$A775)*('Fixed assets'!$R$2:$R$1000))-SUMPRODUCT(('Fixed assets'!$Q$2:$Q$1000=Costs!Y$705)*('Fixed assets'!$U$2:$U$1000>Costs!$A775)*('Fixed assets'!$P$2:$P$1000=Costs!$A775)*('Fixed assets'!$S$2:$S$1000))","v":0},{"$f":"Z687+SUMPRODUCT(('Fixed assets'!$Q$2:$Q$1000=Costs!Z$705)*('Fixed assets'!$U$2:$U$1000>Costs!$A775)*('Fixed assets'!$P$2:$P$1000=Costs!$A775)*('Fixed assets'!$R$2:$R$1000))-SUMPRODUCT(('Fixed assets'!$Q$2:$Q$1000=Costs!Z$705)*('Fixed assets'!$U$2:$U$1000>Costs!$A775)*('Fixed assets'!$P$2:$P$1000=Costs!$A775)*('Fixed assets'!$S$2:$S$1000))","v":0},{"$f":"AA687+SUMPRODUCT(('Fixed assets'!$Q$2:$Q$1000=Costs!AA$705)*('Fixed assets'!$U$2:$U$1000>Costs!$A775)*('Fixed assets'!$P$2:$P$1000=Costs!$A775)*('Fixed assets'!$R$2:$R$1000))-SUMPRODUCT(('Fixed assets'!$Q$2:$Q$1000=Costs!AA$705)*('Fixed assets'!$U$2:$U$1000>Costs!$A775)*('Fixed assets'!$P$2:$P$1000=Costs!$A775)*('Fixed assets'!$S$2:$S$1000))","v":0},{"$f":"AB687+SUMPRODUCT(('Fixed assets'!$Q$2:$Q$1000=Costs!AB$705)*('Fixed assets'!$U$2:$U$1000>Costs!$A775)*('Fixed assets'!$P$2:$P$1000=Costs!$A775)*('Fixed assets'!$R$2:$R$1000))-SUMPRODUCT(('Fixed assets'!$Q$2:$Q$1000=Costs!AB$705)*('Fixed assets'!$U$2:$U$1000>Costs!$A775)*('Fixed assets'!$P$2:$P$1000=Costs!$A775)*('Fixed assets'!$S$2:$S$1000))","v":0},{"$f":"AC687+SUMPRODUCT(('Fixed assets'!$Q$2:$Q$1000=Costs!AC$705)*('Fixed assets'!$U$2:$U$1000>Costs!$A775)*('Fixed assets'!$P$2:$P$1000=Costs!$A775)*('Fixed assets'!$R$2:$R$1000))-SUMPRODUCT(('Fixed assets'!$Q$2:$Q$1000=Costs!AC$705)*('Fixed assets'!$U$2:$U$1000>Costs!$A775)*('Fixed assets'!$P$2:$P$1000=Costs!$A775)*('Fixed assets'!$S$2:$S$1000))","v":0},{"$f":"AD687+SUMPRODUCT(('Fixed assets'!$Q$2:$Q$1000=Costs!AD$705)*('Fixed assets'!$U$2:$U$1000>Costs!$A775)*('Fixed assets'!$P$2:$P$1000=Costs!$A775)*('Fixed assets'!$R$2:$R$1000))-SUMPRODUCT(('Fixed assets'!$Q$2:$Q$1000=Costs!AD$705)*('Fixed assets'!$U$2:$U$1000>Costs!$A775)*('Fixed assets'!$P$2:$P$1000=Costs!$A775)*('Fixed assets'!$S$2:$S$1000))","v":0},{"$f":"AE687+SUMPRODUCT(('Fixed assets'!$Q$2:$Q$1000=Costs!AE$705)*('Fixed assets'!$U$2:$U$1000>Costs!$A775)*('Fixed assets'!$P$2:$P$1000=Costs!$A775)*('Fixed assets'!$R$2:$R$1000))-SUMPRODUCT(('Fixed assets'!$Q$2:$Q$1000=Costs!AE$705)*('Fixed assets'!$U$2:$U$1000>Costs!$A775)*('Fixed assets'!$P$2:$P$1000=Costs!$A775)*('Fixed assets'!$S$2:$S$1000))","v":0},{"$f":"AF687+SUMPRODUCT(('Fixed assets'!$Q$2:$Q$1000=Costs!AF$705)*('Fixed assets'!$U$2:$U$1000>Costs!$A775)*('Fixed assets'!$P$2:$P$1000=Costs!$A775)*('Fixed assets'!$R$2:$R$1000))-SUMPRODUCT(('Fixed assets'!$Q$2:$Q$1000=Costs!AF$705)*('Fixed assets'!$U$2:$U$1000>Costs!$A775)*('Fixed assets'!$P$2:$P$1000=Costs!$A775)*('Fixed assets'!$S$2:$S$1000))","v":0},{"$f":"AG687+SUMPRODUCT(('Fixed assets'!$Q$2:$Q$1000=Costs!AG$705)*('Fixed assets'!$U$2:$U$1000>Costs!$A775)*('Fixed assets'!$P$2:$P$1000=Costs!$A775)*('Fixed assets'!$R$2:$R$1000))-SUMPRODUCT(('Fixed assets'!$Q$2:$Q$1000=Costs!AG$705)*('Fixed assets'!$U$2:$U$1000>Costs!$A775)*('Fixed assets'!$P$2:$P$1000=Costs!$A775)*('Fixed assets'!$S$2:$S$1000))","v":0},{"$f":"AH687+SUMPRODUCT(('Fixed assets'!$Q$2:$Q$1000=Costs!AH$705)*('Fixed assets'!$U$2:$U$1000>Costs!$A775)*('Fixed assets'!$P$2:$P$1000=Costs!$A775)*('Fixed assets'!$R$2:$R$1000))-SUMPRODUCT(('Fixed assets'!$Q$2:$Q$1000=Costs!AH$705)*('Fixed assets'!$U$2:$U$1000>Costs!$A775)*('Fixed assets'!$P$2:$P$1000=Costs!$A775)*('Fixed assets'!$S$2:$S$1000))","v":0},{"$f":"AI687+SUMPRODUCT(('Fixed assets'!$Q$2:$Q$1000=Costs!AI$705)*('Fixed assets'!$U$2:$U$1000>Costs!$A775)*('Fixed assets'!$P$2:$P$1000=Costs!$A775)*('Fixed assets'!$R$2:$R$1000))-SUMPRODUCT(('Fixed assets'!$Q$2:$Q$1000=Costs!AI$705)*('Fixed assets'!$U$2:$U$1000>Costs!$A775)*('Fixed assets'!$P$2:$P$1000=Costs!$A775)*('Fixed assets'!$S$2:$S$1000))","v":0},{"$f":"AJ687+SUMPRODUCT(('Fixed assets'!$Q$2:$Q$1000=Costs!AJ$705)*('Fixed assets'!$U$2:$U$1000>Costs!$A775)*('Fixed assets'!$P$2:$P$1000=Costs!$A775)*('Fixed assets'!$R$2:$R$1000))-SUMPRODUCT(('Fixed assets'!$Q$2:$Q$1000=Costs!AJ$705)*('Fixed assets'!$U$2:$U$1000>Costs!$A775)*('Fixed assets'!$P$2:$P$1000=Costs!$A775)*('Fixed assets'!$S$2:$S$1000))","v":0},{"$f":"AK687+SUMPRODUCT(('Fixed assets'!$Q$2:$Q$1000=Costs!AK$705)*('Fixed assets'!$U$2:$U$1000>Costs!$A775)*('Fixed assets'!$P$2:$P$1000=Costs!$A775)*('Fixed assets'!$R$2:$R$1000))-SUMPRODUCT(('Fixed assets'!$Q$2:$Q$1000=Costs!AK$705)*('Fixed assets'!$U$2:$U$1000>Costs!$A775)*('Fixed assets'!$P$2:$P$1000=Costs!$A775)*('Fixed assets'!$S$2:$S$1000))","v":0},{"$f":"AL687+SUMPRODUCT(('Fixed assets'!$Q$2:$Q$1000=Costs!AL$705)*('Fixed assets'!$U$2:$U$1000>Costs!$A775)*('Fixed assets'!$P$2:$P$1000=Costs!$A775)*('Fixed assets'!$R$2:$R$1000))-SUMPRODUCT(('Fixed assets'!$Q$2:$Q$1000=Costs!AL$705)*('Fixed assets'!$U$2:$U$1000>Costs!$A775)*('Fixed assets'!$P$2:$P$1000=Costs!$A775)*('Fixed assets'!$S$2:$S$1000))","v":0},{"$f":"AM687+SUMPRODUCT(('Fixed assets'!$Q$2:$Q$1000=Costs!AM$705)*('Fixed assets'!$U$2:$U$1000>Costs!$A775)*('Fixed assets'!$P$2:$P$1000=Costs!$A775)*('Fixed assets'!$R$2:$R$1000))-SUMPRODUCT(('Fixed assets'!$Q$2:$Q$1000=Costs!AM$705)*('Fixed assets'!$U$2:$U$1000>Costs!$A775)*('Fixed assets'!$P$2:$P$1000=Costs!$A775)*('Fixed assets'!$S$2:$S$1000))","v":0},{"$f":"AN687+SUMPRODUCT(('Fixed assets'!$Q$2:$Q$1000=Costs!AN$705)*('Fixed assets'!$U$2:$U$1000>Costs!$A775)*('Fixed assets'!$P$2:$P$1000=Costs!$A775)*('Fixed assets'!$R$2:$R$1000))-SUMPRODUCT(('Fixed assets'!$Q$2:$Q$1000=Costs!AN$705)*('Fixed assets'!$U$2:$U$1000>Costs!$A775)*('Fixed assets'!$P$2:$P$1000=Costs!$A775)*('Fixed assets'!$S$2:$S$1000))","v":0},{"$f":"AO687+SUMPRODUCT(('Fixed assets'!$Q$2:$Q$1000=Costs!AO$705)*('Fixed assets'!$U$2:$U$1000>Costs!$A775)*('Fixed assets'!$P$2:$P$1000=Costs!$A775)*('Fixed assets'!$R$2:$R$1000))-SUMPRODUCT(('Fixed assets'!$Q$2:$Q$1000=Costs!AO$705)*('Fixed assets'!$U$2:$U$1000>Costs!$A775)*('Fixed assets'!$P$2:$P$1000=Costs!$A775)*('Fixed assets'!$S$2:$S$1000))","v":0},{"$f":"AP687+SUMPRODUCT(('Fixed assets'!$Q$2:$Q$1000=Costs!AP$705)*('Fixed assets'!$U$2:$U$1000>Costs!$A775)*('Fixed assets'!$P$2:$P$1000=Costs!$A775)*('Fixed assets'!$R$2:$R$1000))-SUMPRODUCT(('Fixed assets'!$Q$2:$Q$1000=Costs!AP$705)*('Fixed assets'!$U$2:$U$1000>Costs!$A775)*('Fixed assets'!$P$2:$P$1000=Costs!$A775)*('Fixed assets'!$S$2:$S$1000))","v":0},{"$f":"AQ687+SUMPRODUCT(('Fixed assets'!$Q$2:$Q$1000=Costs!AQ$705)*('Fixed assets'!$U$2:$U$1000>Costs!$A775)*('Fixed assets'!$P$2:$P$1000=Costs!$A775)*('Fixed assets'!$R$2:$R$1000))-SUMPRODUCT(('Fixed assets'!$Q$2:$Q$1000=Costs!AQ$705)*('Fixed assets'!$U$2:$U$1000>Costs!$A775)*('Fixed assets'!$P$2:$P$1000=Costs!$A775)*('Fixed assets'!$S$2:$S$1000))","v":0}]
[2085,0,{"$f":"C688+SUMPRODUCT(('Fixed assets'!$Q$2:$Q$1000=Costs!C$705)*('Fixed assets'!$U$2:$U$1000>Costs!$A776)*('Fixed assets'!$P$2:$P$1000=Costs!$A776)*('Fixed assets'!$R$2:$R$1000))-SUMPRODUCT(('Fixed assets'!$Q$2:$Q$1000=Costs!C$705)*('Fixed assets'!$U$2:$U$1000>Costs!$A776)*('Fixed assets'!$P$2:$P$1000=Costs!$A776)*('Fixed assets'!$S$2:$S$1000))","v":0},{"$f":"D688+SUMPRODUCT(('Fixed assets'!$Q$2:$Q$1000=Costs!D$705)*('Fixed assets'!$U$2:$U$1000>Costs!$A776)*('Fixed assets'!$P$2:$P$1000=Costs!$A776)*('Fixed assets'!$R$2:$R$1000))-SUMPRODUCT(('Fixed assets'!$Q$2:$Q$1000=Costs!D$705)*('Fixed assets'!$U$2:$U$1000>Costs!$A776)*('Fixed assets'!$P$2:$P$1000=Costs!$A776)*('Fixed assets'!$S$2:$S$1000))","v":0},{"$f":"E688+SUMPRODUCT(('Fixed assets'!$Q$2:$Q$1000=Costs!E$705)*('Fixed assets'!$U$2:$U$1000>Costs!$A776)*('Fixed assets'!$P$2:$P$1000=Costs!$A776)*('Fixed assets'!$R$2:$R$1000))-SUMPRODUCT(('Fixed assets'!$Q$2:$Q$1000=Costs!E$705)*('Fixed assets'!$U$2:$U$1000>Costs!$A776)*('Fixed assets'!$P$2:$P$1000=Costs!$A776)*('Fixed assets'!$S$2:$S$1000))","v":0},{"$f":"F688+SUMPRODUCT(('Fixed assets'!$Q$2:$Q$1000=Costs!F$705)*('Fixed assets'!$U$2:$U$1000>Costs!$A776)*('Fixed assets'!$P$2:$P$1000=Costs!$A776)*('Fixed assets'!$R$2:$R$1000))-SUMPRODUCT(('Fixed assets'!$Q$2:$Q$1000=Costs!F$705)*('Fixed assets'!$U$2:$U$1000>Costs!$A776)*('Fixed assets'!$P$2:$P$1000=Costs!$A776)*('Fixed assets'!$S$2:$S$1000))","v":0},{"$f":"G688+SUMPRODUCT(('Fixed assets'!$Q$2:$Q$1000=Costs!G$705)*('Fixed assets'!$U$2:$U$1000>Costs!$A776)*('Fixed assets'!$P$2:$P$1000=Costs!$A776)*('Fixed assets'!$R$2:$R$1000))-SUMPRODUCT(('Fixed assets'!$Q$2:$Q$1000=Costs!G$705)*('Fixed assets'!$U$2:$U$1000>Costs!$A776)*('Fixed assets'!$P$2:$P$1000=Costs!$A776)*('Fixed assets'!$S$2:$S$1000))","v":0},{"$f":"H688+SUMPRODUCT(('Fixed assets'!$Q$2:$Q$1000=Costs!H$705)*('Fixed assets'!$U$2:$U$1000>Costs!$A776)*('Fixed assets'!$P$2:$P$1000=Costs!$A776)*('Fixed assets'!$R$2:$R$1000))-SUMPRODUCT(('Fixed assets'!$Q$2:$Q$1000=Costs!H$705)*('Fixed assets'!$U$2:$U$1000>Costs!$A776)*('Fixed assets'!$P$2:$P$1000=Costs!$A776)*('Fixed assets'!$S$2:$S$1000))","v":0},{"$f":"I688+SUMPRODUCT(('Fixed assets'!$Q$2:$Q$1000=Costs!I$705)*('Fixed assets'!$U$2:$U$1000>Costs!$A776)*('Fixed assets'!$P$2:$P$1000=Costs!$A776)*('Fixed assets'!$R$2:$R$1000))-SUMPRODUCT(('Fixed assets'!$Q$2:$Q$1000=Costs!I$705)*('Fixed assets'!$U$2:$U$1000>Costs!$A776)*('Fixed assets'!$P$2:$P$1000=Costs!$A776)*('Fixed assets'!$S$2:$S$1000))","v":0},{"$f":"J688+SUMPRODUCT(('Fixed assets'!$Q$2:$Q$1000=Costs!J$705)*('Fixed assets'!$U$2:$U$1000>Costs!$A776)*('Fixed assets'!$P$2:$P$1000=Costs!$A776)*('Fixed assets'!$R$2:$R$1000))-SUMPRODUCT(('Fixed assets'!$Q$2:$Q$1000=Costs!J$705)*('Fixed assets'!$U$2:$U$1000>Costs!$A776)*('Fixed assets'!$P$2:$P$1000=Costs!$A776)*('Fixed assets'!$S$2:$S$1000))","v":0},{"$f":"K688+SUMPRODUCT(('Fixed assets'!$Q$2:$Q$1000=Costs!K$705)*('Fixed assets'!$U$2:$U$1000>Costs!$A776)*('Fixed assets'!$P$2:$P$1000=Costs!$A776)*('Fixed assets'!$R$2:$R$1000))-SUMPRODUCT(('Fixed assets'!$Q$2:$Q$1000=Costs!K$705)*('Fixed assets'!$U$2:$U$1000>Costs!$A776)*('Fixed assets'!$P$2:$P$1000=Costs!$A776)*('Fixed assets'!$S$2:$S$1000))","v":0},{"$f":"L688+SUMPRODUCT(('Fixed assets'!$Q$2:$Q$1000=Costs!L$705)*('Fixed assets'!$U$2:$U$1000>Costs!$A776)*('Fixed assets'!$P$2:$P$1000=Costs!$A776)*('Fixed assets'!$R$2:$R$1000))-SUMPRODUCT(('Fixed assets'!$Q$2:$Q$1000=Costs!L$705)*('Fixed assets'!$U$2:$U$1000>Costs!$A776)*('Fixed assets'!$P$2:$P$1000=Costs!$A776)*('Fixed assets'!$S$2:$S$1000))","v":0},{"$f":"M688+SUMPRODUCT(('Fixed assets'!$Q$2:$Q$1000=Costs!M$705)*('Fixed assets'!$U$2:$U$1000>Costs!$A776)*('Fixed assets'!$P$2:$P$1000=Costs!$A776)*('Fixed assets'!$R$2:$R$1000))-SUMPRODUCT(('Fixed assets'!$Q$2:$Q$1000=Costs!M$705)*('Fixed assets'!$U$2:$U$1000>Costs!$A776)*('Fixed assets'!$P$2:$P$1000=Costs!$A776)*('Fixed assets'!$S$2:$S$1000))","v":0},{"$f":"N688+SUMPRODUCT(('Fixed assets'!$Q$2:$Q$1000=Costs!N$705)*('Fixed assets'!$U$2:$U$1000>Costs!$A776)*('Fixed assets'!$P$2:$P$1000=Costs!$A776)*('Fixed assets'!$R$2:$R$1000))-SUMPRODUCT(('Fixed assets'!$Q$2:$Q$1000=Costs!N$705)*('Fixed assets'!$U$2:$U$1000>Costs!$A776)*('Fixed assets'!$P$2:$P$1000=Costs!$A776)*('Fixed assets'!$S$2:$S$1000))","v":0},{"$f":"O688+SUMPRODUCT(('Fixed assets'!$Q$2:$Q$1000=Costs!O$705)*('Fixed assets'!$U$2:$U$1000>Costs!$A776)*('Fixed assets'!$P$2:$P$1000=Costs!$A776)*('Fixed assets'!$R$2:$R$1000))-SUMPRODUCT(('Fixed assets'!$Q$2:$Q$1000=Costs!O$705)*('Fixed assets'!$U$2:$U$1000>Costs!$A776)*('Fixed assets'!$P$2:$P$1000=Costs!$A776)*('Fixed assets'!$S$2:$S$1000))","v":0},{"$f":"P688+SUMPRODUCT(('Fixed assets'!$Q$2:$Q$1000=Costs!P$705)*('Fixed assets'!$U$2:$U$1000>Costs!$A776)*('Fixed assets'!$P$2:$P$1000=Costs!$A776)*('Fixed assets'!$R$2:$R$1000))-SUMPRODUCT(('Fixed assets'!$Q$2:$Q$1000=Costs!P$705)*('Fixed assets'!$U$2:$U$1000>Costs!$A776)*('Fixed assets'!$P$2:$P$1000=Costs!$A776)*('Fixed assets'!$S$2:$S$1000))","v":0},{"$f":"Q688+SUMPRODUCT(('Fixed assets'!$Q$2:$Q$1000=Costs!Q$705)*('Fixed assets'!$U$2:$U$1000>Costs!$A776)*('Fixed assets'!$P$2:$P$1000=Costs!$A776)*('Fixed assets'!$R$2:$R$1000))-SUMPRODUCT(('Fixed assets'!$Q$2:$Q$1000=Costs!Q$705)*('Fixed assets'!$U$2:$U$1000>Costs!$A776)*('Fixed assets'!$P$2:$P$1000=Costs!$A776)*('Fixed assets'!$S$2:$S$1000))","v":0},{"$f":"R688+SUMPRODUCT(('Fixed assets'!$Q$2:$Q$1000=Costs!R$705)*('Fixed assets'!$U$2:$U$1000>Costs!$A776)*('Fixed assets'!$P$2:$P$1000=Costs!$A776)*('Fixed assets'!$R$2:$R$1000))-SUMPRODUCT(('Fixed assets'!$Q$2:$Q$1000=Costs!R$705)*('Fixed assets'!$U$2:$U$1000>Costs!$A776)*('Fixed assets'!$P$2:$P$1000=Costs!$A776)*('Fixed assets'!$S$2:$S$1000))","v":0},{"$f":"S688+SUMPRODUCT(('Fixed assets'!$Q$2:$Q$1000=Costs!S$705)*('Fixed assets'!$U$2:$U$1000>Costs!$A776)*('Fixed assets'!$P$2:$P$1000=Costs!$A776)*('Fixed assets'!$R$2:$R$1000))-SUMPRODUCT(('Fixed assets'!$Q$2:$Q$1000=Costs!S$705)*('Fixed assets'!$U$2:$U$1000>Costs!$A776)*('Fixed assets'!$P$2:$P$1000=Costs!$A776)*('Fixed assets'!$S$2:$S$1000))","v":0},{"$f":"T688+SUMPRODUCT(('Fixed assets'!$Q$2:$Q$1000=Costs!T$705)*('Fixed assets'!$U$2:$U$1000>Costs!$A776)*('Fixed assets'!$P$2:$P$1000=Costs!$A776)*('Fixed assets'!$R$2:$R$1000))-SUMPRODUCT(('Fixed assets'!$Q$2:$Q$1000=Costs!T$705)*('Fixed assets'!$U$2:$U$1000>Costs!$A776)*('Fixed assets'!$P$2:$P$1000=Costs!$A776)*('Fixed assets'!$S$2:$S$1000))","v":0},{"$f":"U688+SUMPRODUCT(('Fixed assets'!$Q$2:$Q$1000=Costs!U$705)*('Fixed assets'!$U$2:$U$1000>Costs!$A776)*('Fixed assets'!$P$2:$P$1000=Costs!$A776)*('Fixed assets'!$R$2:$R$1000))-SUMPRODUCT(('Fixed assets'!$Q$2:$Q$1000=Costs!U$705)*('Fixed assets'!$U$2:$U$1000>Costs!$A776)*('Fixed assets'!$P$2:$P$1000=Costs!$A776)*('Fixed assets'!$S$2:$S$1000))","v":0},{"$f":"V688+SUMPRODUCT(('Fixed assets'!$Q$2:$Q$1000=Costs!V$705)*('Fixed assets'!$U$2:$U$1000>Costs!$A776)*('Fixed assets'!$P$2:$P$1000=Costs!$A776)*('Fixed assets'!$R$2:$R$1000))-SUMPRODUCT(('Fixed assets'!$Q$2:$Q$1000=Costs!V$705)*('Fixed assets'!$U$2:$U$1000>Costs!$A776)*('Fixed assets'!$P$2:$P$1000=Costs!$A776)*('Fixed assets'!$S$2:$S$1000))","v":0},{"$f":"W688+SUMPRODUCT(('Fixed assets'!$Q$2:$Q$1000=Costs!W$705)*('Fixed assets'!$U$2:$U$1000>Costs!$A776)*('Fixed assets'!$P$2:$P$1000=Costs!$A776)*('Fixed assets'!$R$2:$R$1000))-SUMPRODUCT(('Fixed assets'!$Q$2:$Q$1000=Costs!W$705)*('Fixed assets'!$U$2:$U$1000>Costs!$A776)*('Fixed assets'!$P$2:$P$1000=Costs!$A776)*('Fixed assets'!$S$2:$S$1000))","v":0},{"$f":"X688+SUMPRODUCT(('Fixed assets'!$Q$2:$Q$1000=Costs!X$705)*('Fixed assets'!$U$2:$U$1000>Costs!$A776)*('Fixed assets'!$P$2:$P$1000=Costs!$A776)*('Fixed assets'!$R$2:$R$1000))-SUMPRODUCT(('Fixed assets'!$Q$2:$Q$1000=Costs!X$705)*('Fixed assets'!$U$2:$U$1000>Costs!$A776)*('Fixed assets'!$P$2:$P$1000=Costs!$A776)*('Fixed assets'!$S$2:$S$1000))","v":0},{"$f":"Y688+SUMPRODUCT(('Fixed assets'!$Q$2:$Q$1000=Costs!Y$705)*('Fixed assets'!$U$2:$U$1000>Costs!$A776)*('Fixed assets'!$P$2:$P$1000=Costs!$A776)*('Fixed assets'!$R$2:$R$1000))-SUMPRODUCT(('Fixed assets'!$Q$2:$Q$1000=Costs!Y$705)*('Fixed assets'!$U$2:$U$1000>Costs!$A776)*('Fixed assets'!$P$2:$P$1000=Costs!$A776)*('Fixed assets'!$S$2:$S$1000))","v":0},{"$f":"Z688+SUMPRODUCT(('Fixed assets'!$Q$2:$Q$1000=Costs!Z$705)*('Fixed assets'!$U$2:$U$1000>Costs!$A776)*('Fixed assets'!$P$2:$P$1000=Costs!$A776)*('Fixed assets'!$R$2:$R$1000))-SUMPRODUCT(('Fixed assets'!$Q$2:$Q$1000=Costs!Z$705)*('Fixed assets'!$U$2:$U$1000>Costs!$A776)*('Fixed assets'!$P$2:$P$1000=Costs!$A776)*('Fixed assets'!$S$2:$S$1000))","v":0},{"$f":"AA688+SUMPRODUCT(('Fixed assets'!$Q$2:$Q$1000=Costs!AA$705)*('Fixed assets'!$U$2:$U$1000>Costs!$A776)*('Fixed assets'!$P$2:$P$1000=Costs!$A776)*('Fixed assets'!$R$2:$R$1000))-SUMPRODUCT(('Fixed assets'!$Q$2:$Q$1000=Costs!AA$705)*('Fixed assets'!$U$2:$U$1000>Costs!$A776)*('Fixed assets'!$P$2:$P$1000=Costs!$A776)*('Fixed assets'!$S$2:$S$1000))","v":0},{"$f":"AB688+SUMPRODUCT(('Fixed assets'!$Q$2:$Q$1000=Costs!AB$705)*('Fixed assets'!$U$2:$U$1000>Costs!$A776)*('Fixed assets'!$P$2:$P$1000=Costs!$A776)*('Fixed assets'!$R$2:$R$1000))-SUMPRODUCT(('Fixed assets'!$Q$2:$Q$1000=Costs!AB$705)*('Fixed assets'!$U$2:$U$1000>Costs!$A776)*('Fixed assets'!$P$2:$P$1000=Costs!$A776)*('Fixed assets'!$S$2:$S$1000))","v":0},{"$f":"AC688+SUMPRODUCT(('Fixed assets'!$Q$2:$Q$1000=Costs!AC$705)*('Fixed assets'!$U$2:$U$1000>Costs!$A776)*('Fixed assets'!$P$2:$P$1000=Costs!$A776)*('Fixed assets'!$R$2:$R$1000))-SUMPRODUCT(('Fixed assets'!$Q$2:$Q$1000=Costs!AC$705)*('Fixed assets'!$U$2:$U$1000>Costs!$A776)*('Fixed assets'!$P$2:$P$1000=Costs!$A776)*('Fixed assets'!$S$2:$S$1000))","v":0},{"$f":"AD688+SUMPRODUCT(('Fixed assets'!$Q$2:$Q$1000=Costs!AD$705)*('Fixed assets'!$U$2:$U$1000>Costs!$A776)*('Fixed assets'!$P$2:$P$1000=Costs!$A776)*('Fixed assets'!$R$2:$R$1000))-SUMPRODUCT(('Fixed assets'!$Q$2:$Q$1000=Costs!AD$705)*('Fixed assets'!$U$2:$U$1000>Costs!$A776)*('Fixed assets'!$P$2:$P$1000=Costs!$A776)*('Fixed assets'!$S$2:$S$1000))","v":0},{"$f":"AE688+SUMPRODUCT(('Fixed assets'!$Q$2:$Q$1000=Costs!AE$705)*('Fixed assets'!$U$2:$U$1000>Costs!$A776)*('Fixed assets'!$P$2:$P$1000=Costs!$A776)*('Fixed assets'!$R$2:$R$1000))-SUMPRODUCT(('Fixed assets'!$Q$2:$Q$1000=Costs!AE$705)*('Fixed assets'!$U$2:$U$1000>Costs!$A776)*('Fixed assets'!$P$2:$P$1000=Costs!$A776)*('Fixed assets'!$S$2:$S$1000))","v":0},{"$f":"AF688+SUMPRODUCT(('Fixed assets'!$Q$2:$Q$1000=Costs!AF$705)*('Fixed assets'!$U$2:$U$1000>Costs!$A776)*('Fixed assets'!$P$2:$P$1000=Costs!$A776)*('Fixed assets'!$R$2:$R$1000))-SUMPRODUCT(('Fixed assets'!$Q$2:$Q$1000=Costs!AF$705)*('Fixed assets'!$U$2:$U$1000>Costs!$A776)*('Fixed assets'!$P$2:$P$1000=Costs!$A776)*('Fixed assets'!$S$2:$S$1000))","v":0},{"$f":"AG688+SUMPRODUCT(('Fixed assets'!$Q$2:$Q$1000=Costs!AG$705)*('Fixed assets'!$U$2:$U$1000>Costs!$A776)*('Fixed assets'!$P$2:$P$1000=Costs!$A776)*('Fixed assets'!$R$2:$R$1000))-SUMPRODUCT(('Fixed assets'!$Q$2:$Q$1000=Costs!AG$705)*('Fixed assets'!$U$2:$U$1000>Costs!$A776)*('Fixed assets'!$P$2:$P$1000=Costs!$A776)*('Fixed assets'!$S$2:$S$1000))","v":0},{"$f":"AH688+SUMPRODUCT(('Fixed assets'!$Q$2:$Q$1000=Costs!AH$705)*('Fixed assets'!$U$2:$U$1000>Costs!$A776)*('Fixed assets'!$P$2:$P$1000=Costs!$A776)*('Fixed assets'!$R$2:$R$1000))-SUMPRODUCT(('Fixed assets'!$Q$2:$Q$1000=Costs!AH$705)*('Fixed assets'!$U$2:$U$1000>Costs!$A776)*('Fixed assets'!$P$2:$P$1000=Costs!$A776)*('Fixed assets'!$S$2:$S$1000))","v":0},{"$f":"AI688+SUMPRODUCT(('Fixed assets'!$Q$2:$Q$1000=Costs!AI$705)*('Fixed assets'!$U$2:$U$1000>Costs!$A776)*('Fixed assets'!$P$2:$P$1000=Costs!$A776)*('Fixed assets'!$R$2:$R$1000))-SUMPRODUCT(('Fixed assets'!$Q$2:$Q$1000=Costs!AI$705)*('Fixed assets'!$U$2:$U$1000>Costs!$A776)*('Fixed assets'!$P$2:$P$1000=Costs!$A776)*('Fixed assets'!$S$2:$S$1000))","v":0},{"$f":"AJ688+SUMPRODUCT(('Fixed assets'!$Q$2:$Q$1000=Costs!AJ$705)*('Fixed assets'!$U$2:$U$1000>Costs!$A776)*('Fixed assets'!$P$2:$P$1000=Costs!$A776)*('Fixed assets'!$R$2:$R$1000))-SUMPRODUCT(('Fixed assets'!$Q$2:$Q$1000=Costs!AJ$705)*('Fixed assets'!$U$2:$U$1000>Costs!$A776)*('Fixed assets'!$P$2:$P$1000=Costs!$A776)*('Fixed assets'!$S$2:$S$1000))","v":0},{"$f":"AK688+SUMPRODUCT(('Fixed assets'!$Q$2:$Q$1000=Costs!AK$705)*('Fixed assets'!$U$2:$U$1000>Costs!$A776)*('Fixed assets'!$P$2:$P$1000=Costs!$A776)*('Fixed assets'!$R$2:$R$1000))-SUMPRODUCT(('Fixed assets'!$Q$2:$Q$1000=Costs!AK$705)*('Fixed assets'!$U$2:$U$1000>Costs!$A776)*('Fixed assets'!$P$2:$P$1000=Costs!$A776)*('Fixed assets'!$S$2:$S$1000))","v":0},{"$f":"AL688+SUMPRODUCT(('Fixed assets'!$Q$2:$Q$1000=Costs!AL$705)*('Fixed assets'!$U$2:$U$1000>Costs!$A776)*('Fixed assets'!$P$2:$P$1000=Costs!$A776)*('Fixed assets'!$R$2:$R$1000))-SUMPRODUCT(('Fixed assets'!$Q$2:$Q$1000=Costs!AL$705)*('Fixed assets'!$U$2:$U$1000>Costs!$A776)*('Fixed assets'!$P$2:$P$1000=Costs!$A776)*('Fixed assets'!$S$2:$S$1000))","v":0},{"$f":"AM688+SUMPRODUCT(('Fixed assets'!$Q$2:$Q$1000=Costs!AM$705)*('Fixed assets'!$U$2:$U$1000>Costs!$A776)*('Fixed assets'!$P$2:$P$1000=Costs!$A776)*('Fixed assets'!$R$2:$R$1000))-SUMPRODUCT(('Fixed assets'!$Q$2:$Q$1000=Costs!AM$705)*('Fixed assets'!$U$2:$U$1000>Costs!$A776)*('Fixed assets'!$P$2:$P$1000=Costs!$A776)*('Fixed assets'!$S$2:$S$1000))","v":0},{"$f":"AN688+SUMPRODUCT(('Fixed assets'!$Q$2:$Q$1000=Costs!AN$705)*('Fixed assets'!$U$2:$U$1000>Costs!$A776)*('Fixed assets'!$P$2:$P$1000=Costs!$A776)*('Fixed assets'!$R$2:$R$1000))-SUMPRODUCT(('Fixed assets'!$Q$2:$Q$1000=Costs!AN$705)*('Fixed assets'!$U$2:$U$1000>Costs!$A776)*('Fixed assets'!$P$2:$P$1000=Costs!$A776)*('Fixed assets'!$S$2:$S$1000))","v":0},{"$f":"AO688+SUMPRODUCT(('Fixed assets'!$Q$2:$Q$1000=Costs!AO$705)*('Fixed assets'!$U$2:$U$1000>Costs!$A776)*('Fixed assets'!$P$2:$P$1000=Costs!$A776)*('Fixed assets'!$R$2:$R$1000))-SUMPRODUCT(('Fixed assets'!$Q$2:$Q$1000=Costs!AO$705)*('Fixed assets'!$U$2:$U$1000>Costs!$A776)*('Fixed assets'!$P$2:$P$1000=Costs!$A776)*('Fixed assets'!$S$2:$S$1000))","v":0},{"$f":"AP688+SUMPRODUCT(('Fixed assets'!$Q$2:$Q$1000=Costs!AP$705)*('Fixed assets'!$U$2:$U$1000>Costs!$A776)*('Fixed assets'!$P$2:$P$1000=Costs!$A776)*('Fixed assets'!$R$2:$R$1000))-SUMPRODUCT(('Fixed assets'!$Q$2:$Q$1000=Costs!AP$705)*('Fixed assets'!$U$2:$U$1000>Costs!$A776)*('Fixed assets'!$P$2:$P$1000=Costs!$A776)*('Fixed assets'!$S$2:$S$1000))","v":0},{"$f":"AQ688+SUMPRODUCT(('Fixed assets'!$Q$2:$Q$1000=Costs!AQ$705)*('Fixed assets'!$U$2:$U$1000>Costs!$A776)*('Fixed assets'!$P$2:$P$1000=Costs!$A776)*('Fixed assets'!$R$2:$R$1000))-SUMPRODUCT(('Fixed assets'!$Q$2:$Q$1000=Costs!AQ$705)*('Fixed assets'!$U$2:$U$1000>Costs!$A776)*('Fixed assets'!$P$2:$P$1000=Costs!$A776)*('Fixed assets'!$S$2:$S$1000))","v":0}]
[2086,0,{"$f":"C689+SUMPRODUCT(('Fixed assets'!$Q$2:$Q$1000=Costs!C$705)*('Fixed assets'!$U$2:$U$1000>Costs!$A777)*('Fixed assets'!$P$2:$P$1000=Costs!$A777)*('Fixed assets'!$R$2:$R$1000))-SUMPRODUCT(('Fixed assets'!$Q$2:$Q$1000=Costs!C$705)*('Fixed assets'!$U$2:$U$1000>Costs!$A777)*('Fixed assets'!$P$2:$P$1000=Costs!$A777)*('Fixed assets'!$S$2:$S$1000))","v":0},{"$f":"D689+SUMPRODUCT(('Fixed assets'!$Q$2:$Q$1000=Costs!D$705)*('Fixed assets'!$U$2:$U$1000>Costs!$A777)*('Fixed assets'!$P$2:$P$1000=Costs!$A777)*('Fixed assets'!$R$2:$R$1000))-SUMPRODUCT(('Fixed assets'!$Q$2:$Q$1000=Costs!D$705)*('Fixed assets'!$U$2:$U$1000>Costs!$A777)*('Fixed assets'!$P$2:$P$1000=Costs!$A777)*('Fixed assets'!$S$2:$S$1000))","v":0},{"$f":"E689+SUMPRODUCT(('Fixed assets'!$Q$2:$Q$1000=Costs!E$705)*('Fixed assets'!$U$2:$U$1000>Costs!$A777)*('Fixed assets'!$P$2:$P$1000=Costs!$A777)*('Fixed assets'!$R$2:$R$1000))-SUMPRODUCT(('Fixed assets'!$Q$2:$Q$1000=Costs!E$705)*('Fixed assets'!$U$2:$U$1000>Costs!$A777)*('Fixed assets'!$P$2:$P$1000=Costs!$A777)*('Fixed assets'!$S$2:$S$1000))","v":0},{"$f":"F689+SUMPRODUCT(('Fixed assets'!$Q$2:$Q$1000=Costs!F$705)*('Fixed assets'!$U$2:$U$1000>Costs!$A777)*('Fixed assets'!$P$2:$P$1000=Costs!$A777)*('Fixed assets'!$R$2:$R$1000))-SUMPRODUCT(('Fixed assets'!$Q$2:$Q$1000=Costs!F$705)*('Fixed assets'!$U$2:$U$1000>Costs!$A777)*('Fixed assets'!$P$2:$P$1000=Costs!$A777)*('Fixed assets'!$S$2:$S$1000))","v":0},{"$f":"G689+SUMPRODUCT(('Fixed assets'!$Q$2:$Q$1000=Costs!G$705)*('Fixed assets'!$U$2:$U$1000>Costs!$A777)*('Fixed assets'!$P$2:$P$1000=Costs!$A777)*('Fixed assets'!$R$2:$R$1000))-SUMPRODUCT(('Fixed assets'!$Q$2:$Q$1000=Costs!G$705)*('Fixed assets'!$U$2:$U$1000>Costs!$A777)*('Fixed assets'!$P$2:$P$1000=Costs!$A777)*('Fixed assets'!$S$2:$S$1000))","v":0},{"$f":"H689+SUMPRODUCT(('Fixed assets'!$Q$2:$Q$1000=Costs!H$705)*('Fixed assets'!$U$2:$U$1000>Costs!$A777)*('Fixed assets'!$P$2:$P$1000=Costs!$A777)*('Fixed assets'!$R$2:$R$1000))-SUMPRODUCT(('Fixed assets'!$Q$2:$Q$1000=Costs!H$705)*('Fixed assets'!$U$2:$U$1000>Costs!$A777)*('Fixed assets'!$P$2:$P$1000=Costs!$A777)*('Fixed assets'!$S$2:$S$1000))","v":0},{"$f":"I689+SUMPRODUCT(('Fixed assets'!$Q$2:$Q$1000=Costs!I$705)*('Fixed assets'!$U$2:$U$1000>Costs!$A777)*('Fixed assets'!$P$2:$P$1000=Costs!$A777)*('Fixed assets'!$R$2:$R$1000))-SUMPRODUCT(('Fixed assets'!$Q$2:$Q$1000=Costs!I$705)*('Fixed assets'!$U$2:$U$1000>Costs!$A777)*('Fixed assets'!$P$2:$P$1000=Costs!$A777)*('Fixed assets'!$S$2:$S$1000))","v":0},{"$f":"J689+SUMPRODUCT(('Fixed assets'!$Q$2:$Q$1000=Costs!J$705)*('Fixed assets'!$U$2:$U$1000>Costs!$A777)*('Fixed assets'!$P$2:$P$1000=Costs!$A777)*('Fixed assets'!$R$2:$R$1000))-SUMPRODUCT(('Fixed assets'!$Q$2:$Q$1000=Costs!J$705)*('Fixed assets'!$U$2:$U$1000>Costs!$A777)*('Fixed assets'!$P$2:$P$1000=Costs!$A777)*('Fixed assets'!$S$2:$S$1000))","v":0},{"$f":"K689+SUMPRODUCT(('Fixed assets'!$Q$2:$Q$1000=Costs!K$705)*('Fixed assets'!$U$2:$U$1000>Costs!$A777)*('Fixed assets'!$P$2:$P$1000=Costs!$A777)*('Fixed assets'!$R$2:$R$1000))-SUMPRODUCT(('Fixed assets'!$Q$2:$Q$1000=Costs!K$705)*('Fixed assets'!$U$2:$U$1000>Costs!$A777)*('Fixed assets'!$P$2:$P$1000=Costs!$A777)*('Fixed assets'!$S$2:$S$1000))","v":0},{"$f":"L689+SUMPRODUCT(('Fixed assets'!$Q$2:$Q$1000=Costs!L$705)*('Fixed assets'!$U$2:$U$1000>Costs!$A777)*('Fixed assets'!$P$2:$P$1000=Costs!$A777)*('Fixed assets'!$R$2:$R$1000))-SUMPRODUCT(('Fixed assets'!$Q$2:$Q$1000=Costs!L$705)*('Fixed assets'!$U$2:$U$1000>Costs!$A777)*('Fixed assets'!$P$2:$P$1000=Costs!$A777)*('Fixed assets'!$S$2:$S$1000))","v":0},{"$f":"M689+SUMPRODUCT(('Fixed assets'!$Q$2:$Q$1000=Costs!M$705)*('Fixed assets'!$U$2:$U$1000>Costs!$A777)*('Fixed assets'!$P$2:$P$1000=Costs!$A777)*('Fixed assets'!$R$2:$R$1000))-SUMPRODUCT(('Fixed assets'!$Q$2:$Q$1000=Costs!M$705)*('Fixed assets'!$U$2:$U$1000>Costs!$A777)*('Fixed assets'!$P$2:$P$1000=Costs!$A777)*('Fixed assets'!$S$2:$S$1000))","v":0},{"$f":"N689+SUMPRODUCT(('Fixed assets'!$Q$2:$Q$1000=Costs!N$705)*('Fixed assets'!$U$2:$U$1000>Costs!$A777)*('Fixed assets'!$P$2:$P$1000=Costs!$A777)*('Fixed assets'!$R$2:$R$1000))-SUMPRODUCT(('Fixed assets'!$Q$2:$Q$1000=Costs!N$705)*('Fixed assets'!$U$2:$U$1000>Costs!$A777)*('Fixed assets'!$P$2:$P$1000=Costs!$A777)*('Fixed assets'!$S$2:$S$1000))","v":0},{"$f":"O689+SUMPRODUCT(('Fixed assets'!$Q$2:$Q$1000=Costs!O$705)*('Fixed assets'!$U$2:$U$1000>Costs!$A777)*('Fixed assets'!$P$2:$P$1000=Costs!$A777)*('Fixed assets'!$R$2:$R$1000))-SUMPRODUCT(('Fixed assets'!$Q$2:$Q$1000=Costs!O$705)*('Fixed assets'!$U$2:$U$1000>Costs!$A777)*('Fixed assets'!$P$2:$P$1000=Costs!$A777)*('Fixed assets'!$S$2:$S$1000))","v":0},{"$f":"P689+SUMPRODUCT(('Fixed assets'!$Q$2:$Q$1000=Costs!P$705)*('Fixed assets'!$U$2:$U$1000>Costs!$A777)*('Fixed assets'!$P$2:$P$1000=Costs!$A777)*('Fixed assets'!$R$2:$R$1000))-SUMPRODUCT(('Fixed assets'!$Q$2:$Q$1000=Costs!P$705)*('Fixed assets'!$U$2:$U$1000>Costs!$A777)*('Fixed assets'!$P$2:$P$1000=Costs!$A777)*('Fixed assets'!$S$2:$S$1000))","v":0},{"$f":"Q689+SUMPRODUCT(('Fixed assets'!$Q$2:$Q$1000=Costs!Q$705)*('Fixed assets'!$U$2:$U$1000>Costs!$A777)*('Fixed assets'!$P$2:$P$1000=Costs!$A777)*('Fixed assets'!$R$2:$R$1000))-SUMPRODUCT(('Fixed assets'!$Q$2:$Q$1000=Costs!Q$705)*('Fixed assets'!$U$2:$U$1000>Costs!$A777)*('Fixed assets'!$P$2:$P$1000=Costs!$A777)*('Fixed assets'!$S$2:$S$1000))","v":0},{"$f":"R689+SUMPRODUCT(('Fixed assets'!$Q$2:$Q$1000=Costs!R$705)*('Fixed assets'!$U$2:$U$1000>Costs!$A777)*('Fixed assets'!$P$2:$P$1000=Costs!$A777)*('Fixed assets'!$R$2:$R$1000))-SUMPRODUCT(('Fixed assets'!$Q$2:$Q$1000=Costs!R$705)*('Fixed assets'!$U$2:$U$1000>Costs!$A777)*('Fixed assets'!$P$2:$P$1000=Costs!$A777)*('Fixed assets'!$S$2:$S$1000))","v":0},{"$f":"S689+SUMPRODUCT(('Fixed assets'!$Q$2:$Q$1000=Costs!S$705)*('Fixed assets'!$U$2:$U$1000>Costs!$A777)*('Fixed assets'!$P$2:$P$1000=Costs!$A777)*('Fixed assets'!$R$2:$R$1000))-SUMPRODUCT(('Fixed assets'!$Q$2:$Q$1000=Costs!S$705)*('Fixed assets'!$U$2:$U$1000>Costs!$A777)*('Fixed assets'!$P$2:$P$1000=Costs!$A777)*('Fixed assets'!$S$2:$S$1000))","v":0},{"$f":"T689+SUMPRODUCT(('Fixed assets'!$Q$2:$Q$1000=Costs!T$705)*('Fixed assets'!$U$2:$U$1000>Costs!$A777)*('Fixed assets'!$P$2:$P$1000=Costs!$A777)*('Fixed assets'!$R$2:$R$1000))-SUMPRODUCT(('Fixed assets'!$Q$2:$Q$1000=Costs!T$705)*('Fixed assets'!$U$2:$U$1000>Costs!$A777)*('Fixed assets'!$P$2:$P$1000=Costs!$A777)*('Fixed assets'!$S$2:$S$1000))","v":0},{"$f":"U689+SUMPRODUCT(('Fixed assets'!$Q$2:$Q$1000=Costs!U$705)*('Fixed assets'!$U$2:$U$1000>Costs!$A777)*('Fixed assets'!$P$2:$P$1000=Costs!$A777)*('Fixed assets'!$R$2:$R$1000))-SUMPRODUCT(('Fixed assets'!$Q$2:$Q$1000=Costs!U$705)*('Fixed assets'!$U$2:$U$1000>Costs!$A777)*('Fixed assets'!$P$2:$P$1000=Costs!$A777)*('Fixed assets'!$S$2:$S$1000))","v":0},{"$f":"V689+SUMPRODUCT(('Fixed assets'!$Q$2:$Q$1000=Costs!V$705)*('Fixed assets'!$U$2:$U$1000>Costs!$A777)*('Fixed assets'!$P$2:$P$1000=Costs!$A777)*('Fixed assets'!$R$2:$R$1000))-SUMPRODUCT(('Fixed assets'!$Q$2:$Q$1000=Costs!V$705)*('Fixed assets'!$U$2:$U$1000>Costs!$A777)*('Fixed assets'!$P$2:$P$1000=Costs!$A777)*('Fixed assets'!$S$2:$S$1000))","v":0},{"$f":"W689+SUMPRODUCT(('Fixed assets'!$Q$2:$Q$1000=Costs!W$705)*('Fixed assets'!$U$2:$U$1000>Costs!$A777)*('Fixed assets'!$P$2:$P$1000=Costs!$A777)*('Fixed assets'!$R$2:$R$1000))-SUMPRODUCT(('Fixed assets'!$Q$2:$Q$1000=Costs!W$705)*('Fixed assets'!$U$2:$U$1000>Costs!$A777)*('Fixed assets'!$P$2:$P$1000=Costs!$A777)*('Fixed assets'!$S$2:$S$1000))","v":0},{"$f":"X689+SUMPRODUCT(('Fixed assets'!$Q$2:$Q$1000=Costs!X$705)*('Fixed assets'!$U$2:$U$1000>Costs!$A777)*('Fixed assets'!$P$2:$P$1000=Costs!$A777)*('Fixed assets'!$R$2:$R$1000))-SUMPRODUCT(('Fixed assets'!$Q$2:$Q$1000=Costs!X$705)*('Fixed assets'!$U$2:$U$1000>Costs!$A777)*('Fixed assets'!$P$2:$P$1000=Costs!$A777)*('Fixed assets'!$S$2:$S$1000))","v":0},{"$f":"Y689+SUMPRODUCT(('Fixed assets'!$Q$2:$Q$1000=Costs!Y$705)*('Fixed assets'!$U$2:$U$1000>Costs!$A777)*('Fixed assets'!$P$2:$P$1000=Costs!$A777)*('Fixed assets'!$R$2:$R$1000))-SUMPRODUCT(('Fixed assets'!$Q$2:$Q$1000=Costs!Y$705)*('Fixed assets'!$U$2:$U$1000>Costs!$A777)*('Fixed assets'!$P$2:$P$1000=Costs!$A777)*('Fixed assets'!$S$2:$S$1000))","v":0},{"$f":"Z689+SUMPRODUCT(('Fixed assets'!$Q$2:$Q$1000=Costs!Z$705)*('Fixed assets'!$U$2:$U$1000>Costs!$A777)*('Fixed assets'!$P$2:$P$1000=Costs!$A777)*('Fixed assets'!$R$2:$R$1000))-SUMPRODUCT(('Fixed assets'!$Q$2:$Q$1000=Costs!Z$705)*('Fixed assets'!$U$2:$U$1000>Costs!$A777)*('Fixed assets'!$P$2:$P$1000=Costs!$A777)*('Fixed assets'!$S$2:$S$1000))","v":0},{"$f":"AA689+SUMPRODUCT(('Fixed assets'!$Q$2:$Q$1000=Costs!AA$705)*('Fixed assets'!$U$2:$U$1000>Costs!$A777)*('Fixed assets'!$P$2:$P$1000=Costs!$A777)*('Fixed assets'!$R$2:$R$1000))-SUMPRODUCT(('Fixed assets'!$Q$2:$Q$1000=Costs!AA$705)*('Fixed assets'!$U$2:$U$1000>Costs!$A777)*('Fixed assets'!$P$2:$P$1000=Costs!$A777)*('Fixed assets'!$S$2:$S$1000))","v":0},{"$f":"AB689+SUMPRODUCT(('Fixed assets'!$Q$2:$Q$1000=Costs!AB$705)*('Fixed assets'!$U$2:$U$1000>Costs!$A777)*('Fixed assets'!$P$2:$P$1000=Costs!$A777)*('Fixed assets'!$R$2:$R$1000))-SUMPRODUCT(('Fixed assets'!$Q$2:$Q$1000=Costs!AB$705)*('Fixed assets'!$U$2:$U$1000>Costs!$A777)*('Fixed assets'!$P$2:$P$1000=Costs!$A777)*('Fixed assets'!$S$2:$S$1000))","v":0},{"$f":"AC689+SUMPRODUCT(('Fixed assets'!$Q$2:$Q$1000=Costs!AC$705)*('Fixed assets'!$U$2:$U$1000>Costs!$A777)*('Fixed assets'!$P$2:$P$1000=Costs!$A777)*('Fixed assets'!$R$2:$R$1000))-SUMPRODUCT(('Fixed assets'!$Q$2:$Q$1000=Costs!AC$705)*('Fixed assets'!$U$2:$U$1000>Costs!$A777)*('Fixed assets'!$P$2:$P$1000=Costs!$A777)*('Fixed assets'!$S$2:$S$1000))","v":0},{"$f":"AD689+SUMPRODUCT(('Fixed assets'!$Q$2:$Q$1000=Costs!AD$705)*('Fixed assets'!$U$2:$U$1000>Costs!$A777)*('Fixed assets'!$P$2:$P$1000=Costs!$A777)*('Fixed assets'!$R$2:$R$1000))-SUMPRODUCT(('Fixed assets'!$Q$2:$Q$1000=Costs!AD$705)*('Fixed assets'!$U$2:$U$1000>Costs!$A777)*('Fixed assets'!$P$2:$P$1000=Costs!$A777)*('Fixed assets'!$S$2:$S$1000))","v":0},{"$f":"AE689+SUMPRODUCT(('Fixed assets'!$Q$2:$Q$1000=Costs!AE$705)*('Fixed assets'!$U$2:$U$1000>Costs!$A777)*('Fixed assets'!$P$2:$P$1000=Costs!$A777)*('Fixed assets'!$R$2:$R$1000))-SUMPRODUCT(('Fixed assets'!$Q$2:$Q$1000=Costs!AE$705)*('Fixed assets'!$U$2:$U$1000>Costs!$A777)*('Fixed assets'!$P$2:$P$1000=Costs!$A777)*('Fixed assets'!$S$2:$S$1000))","v":0},{"$f":"AF689+SUMPRODUCT(('Fixed assets'!$Q$2:$Q$1000=Costs!AF$705)*('Fixed assets'!$U$2:$U$1000>Costs!$A777)*('Fixed assets'!$P$2:$P$1000=Costs!$A777)*('Fixed assets'!$R$2:$R$1000))-SUMPRODUCT(('Fixed assets'!$Q$2:$Q$1000=Costs!AF$705)*('Fixed assets'!$U$2:$U$1000>Costs!$A777)*('Fixed assets'!$P$2:$P$1000=Costs!$A777)*('Fixed assets'!$S$2:$S$1000))","v":0},{"$f":"AG689+SUMPRODUCT(('Fixed assets'!$Q$2:$Q$1000=Costs!AG$705)*('Fixed assets'!$U$2:$U$1000>Costs!$A777)*('Fixed assets'!$P$2:$P$1000=Costs!$A777)*('Fixed assets'!$R$2:$R$1000))-SUMPRODUCT(('Fixed assets'!$Q$2:$Q$1000=Costs!AG$705)*('Fixed assets'!$U$2:$U$1000>Costs!$A777)*('Fixed assets'!$P$2:$P$1000=Costs!$A777)*('Fixed assets'!$S$2:$S$1000))","v":0},{"$f":"AH689+SUMPRODUCT(('Fixed assets'!$Q$2:$Q$1000=Costs!AH$705)*('Fixed assets'!$U$2:$U$1000>Costs!$A777)*('Fixed assets'!$P$2:$P$1000=Costs!$A777)*('Fixed assets'!$R$2:$R$1000))-SUMPRODUCT(('Fixed assets'!$Q$2:$Q$1000=Costs!AH$705)*('Fixed assets'!$U$2:$U$1000>Costs!$A777)*('Fixed assets'!$P$2:$P$1000=Costs!$A777)*('Fixed assets'!$S$2:$S$1000))","v":0},{"$f":"AI689+SUMPRODUCT(('Fixed assets'!$Q$2:$Q$1000=Costs!AI$705)*('Fixed assets'!$U$2:$U$1000>Costs!$A777)*('Fixed assets'!$P$2:$P$1000=Costs!$A777)*('Fixed assets'!$R$2:$R$1000))-SUMPRODUCT(('Fixed assets'!$Q$2:$Q$1000=Costs!AI$705)*('Fixed assets'!$U$2:$U$1000>Costs!$A777)*('Fixed assets'!$P$2:$P$1000=Costs!$A777)*('Fixed assets'!$S$2:$S$1000))","v":0},{"$f":"AJ689+SUMPRODUCT(('Fixed assets'!$Q$2:$Q$1000=Costs!AJ$705)*('Fixed assets'!$U$2:$U$1000>Costs!$A777)*('Fixed assets'!$P$2:$P$1000=Costs!$A777)*('Fixed assets'!$R$2:$R$1000))-SUMPRODUCT(('Fixed assets'!$Q$2:$Q$1000=Costs!AJ$705)*('Fixed assets'!$U$2:$U$1000>Costs!$A777)*('Fixed assets'!$P$2:$P$1000=Costs!$A777)*('Fixed assets'!$S$2:$S$1000))","v":0},{"$f":"AK689+SUMPRODUCT(('Fixed assets'!$Q$2:$Q$1000=Costs!AK$705)*('Fixed assets'!$U$2:$U$1000>Costs!$A777)*('Fixed assets'!$P$2:$P$1000=Costs!$A777)*('Fixed assets'!$R$2:$R$1000))-SUMPRODUCT(('Fixed assets'!$Q$2:$Q$1000=Costs!AK$705)*('Fixed assets'!$U$2:$U$1000>Costs!$A777)*('Fixed assets'!$P$2:$P$1000=Costs!$A777)*('Fixed assets'!$S$2:$S$1000))","v":0},{"$f":"AL689+SUMPRODUCT(('Fixed assets'!$Q$2:$Q$1000=Costs!AL$705)*('Fixed assets'!$U$2:$U$1000>Costs!$A777)*('Fixed assets'!$P$2:$P$1000=Costs!$A777)*('Fixed assets'!$R$2:$R$1000))-SUMPRODUCT(('Fixed assets'!$Q$2:$Q$1000=Costs!AL$705)*('Fixed assets'!$U$2:$U$1000>Costs!$A777)*('Fixed assets'!$P$2:$P$1000=Costs!$A777)*('Fixed assets'!$S$2:$S$1000))","v":0},{"$f":"AM689+SUMPRODUCT(('Fixed assets'!$Q$2:$Q$1000=Costs!AM$705)*('Fixed assets'!$U$2:$U$1000>Costs!$A777)*('Fixed assets'!$P$2:$P$1000=Costs!$A777)*('Fixed assets'!$R$2:$R$1000))-SUMPRODUCT(('Fixed assets'!$Q$2:$Q$1000=Costs!AM$705)*('Fixed assets'!$U$2:$U$1000>Costs!$A777)*('Fixed assets'!$P$2:$P$1000=Costs!$A777)*('Fixed assets'!$S$2:$S$1000))","v":0},{"$f":"AN689+SUMPRODUCT(('Fixed assets'!$Q$2:$Q$1000=Costs!AN$705)*('Fixed assets'!$U$2:$U$1000>Costs!$A777)*('Fixed assets'!$P$2:$P$1000=Costs!$A777)*('Fixed assets'!$R$2:$R$1000))-SUMPRODUCT(('Fixed assets'!$Q$2:$Q$1000=Costs!AN$705)*('Fixed assets'!$U$2:$U$1000>Costs!$A777)*('Fixed assets'!$P$2:$P$1000=Costs!$A777)*('Fixed assets'!$S$2:$S$1000))","v":0},{"$f":"AO689+SUMPRODUCT(('Fixed assets'!$Q$2:$Q$1000=Costs!AO$705)*('Fixed assets'!$U$2:$U$1000>Costs!$A777)*('Fixed assets'!$P$2:$P$1000=Costs!$A777)*('Fixed assets'!$R$2:$R$1000))-SUMPRODUCT(('Fixed assets'!$Q$2:$Q$1000=Costs!AO$705)*('Fixed assets'!$U$2:$U$1000>Costs!$A777)*('Fixed assets'!$P$2:$P$1000=Costs!$A777)*('Fixed assets'!$S$2:$S$1000))","v":0},{"$f":"AP689+SUMPRODUCT(('Fixed assets'!$Q$2:$Q$1000=Costs!AP$705)*('Fixed assets'!$U$2:$U$1000>Costs!$A777)*('Fixed assets'!$P$2:$P$1000=Costs!$A777)*('Fixed assets'!$R$2:$R$1000))-SUMPRODUCT(('Fixed assets'!$Q$2:$Q$1000=Costs!AP$705)*('Fixed assets'!$U$2:$U$1000>Costs!$A777)*('Fixed assets'!$P$2:$P$1000=Costs!$A777)*('Fixed assets'!$S$2:$S$1000))","v":0},{"$f":"AQ689+SUMPRODUCT(('Fixed assets'!$Q$2:$Q$1000=Costs!AQ$705)*('Fixed assets'!$U$2:$U$1000>Costs!$A777)*('Fixed assets'!$P$2:$P$1000=Costs!$A777)*('Fixed assets'!$R$2:$R$1000))-SUMPRODUCT(('Fixed assets'!$Q$2:$Q$1000=Costs!AQ$705)*('Fixed assets'!$U$2:$U$1000>Costs!$A777)*('Fixed assets'!$P$2:$P$1000=Costs!$A777)*('Fixed assets'!$S$2:$S$1000))","v":0}]
[2087,0,{"$f":"C690+SUMPRODUCT(('Fixed assets'!$Q$2:$Q$1000=Costs!C$705)*('Fixed assets'!$U$2:$U$1000>Costs!$A778)*('Fixed assets'!$P$2:$P$1000=Costs!$A778)*('Fixed assets'!$R$2:$R$1000))-SUMPRODUCT(('Fixed assets'!$Q$2:$Q$1000=Costs!C$705)*('Fixed assets'!$U$2:$U$1000>Costs!$A778)*('Fixed assets'!$P$2:$P$1000=Costs!$A778)*('Fixed assets'!$S$2:$S$1000))","v":0},{"$f":"D690+SUMPRODUCT(('Fixed assets'!$Q$2:$Q$1000=Costs!D$705)*('Fixed assets'!$U$2:$U$1000>Costs!$A778)*('Fixed assets'!$P$2:$P$1000=Costs!$A778)*('Fixed assets'!$R$2:$R$1000))-SUMPRODUCT(('Fixed assets'!$Q$2:$Q$1000=Costs!D$705)*('Fixed assets'!$U$2:$U$1000>Costs!$A778)*('Fixed assets'!$P$2:$P$1000=Costs!$A778)*('Fixed assets'!$S$2:$S$1000))","v":0},{"$f":"E690+SUMPRODUCT(('Fixed assets'!$Q$2:$Q$1000=Costs!E$705)*('Fixed assets'!$U$2:$U$1000>Costs!$A778)*('Fixed assets'!$P$2:$P$1000=Costs!$A778)*('Fixed assets'!$R$2:$R$1000))-SUMPRODUCT(('Fixed assets'!$Q$2:$Q$1000=Costs!E$705)*('Fixed assets'!$U$2:$U$1000>Costs!$A778)*('Fixed assets'!$P$2:$P$1000=Costs!$A778)*('Fixed assets'!$S$2:$S$1000))","v":0},{"$f":"F690+SUMPRODUCT(('Fixed assets'!$Q$2:$Q$1000=Costs!F$705)*('Fixed assets'!$U$2:$U$1000>Costs!$A778)*('Fixed assets'!$P$2:$P$1000=Costs!$A778)*('Fixed assets'!$R$2:$R$1000))-SUMPRODUCT(('Fixed assets'!$Q$2:$Q$1000=Costs!F$705)*('Fixed assets'!$U$2:$U$1000>Costs!$A778)*('Fixed assets'!$P$2:$P$1000=Costs!$A778)*('Fixed assets'!$S$2:$S$1000))","v":0},{"$f":"G690+SUMPRODUCT(('Fixed assets'!$Q$2:$Q$1000=Costs!G$705)*('Fixed assets'!$U$2:$U$1000>Costs!$A778)*('Fixed assets'!$P$2:$P$1000=Costs!$A778)*('Fixed assets'!$R$2:$R$1000))-SUMPRODUCT(('Fixed assets'!$Q$2:$Q$1000=Costs!G$705)*('Fixed assets'!$U$2:$U$1000>Costs!$A778)*('Fixed assets'!$P$2:$P$1000=Costs!$A778)*('Fixed assets'!$S$2:$S$1000))","v":0},{"$f":"H690+SUMPRODUCT(('Fixed assets'!$Q$2:$Q$1000=Costs!H$705)*('Fixed assets'!$U$2:$U$1000>Costs!$A778)*('Fixed assets'!$P$2:$P$1000=Costs!$A778)*('Fixed assets'!$R$2:$R$1000))-SUMPRODUCT(('Fixed assets'!$Q$2:$Q$1000=Costs!H$705)*('Fixed assets'!$U$2:$U$1000>Costs!$A778)*('Fixed assets'!$P$2:$P$1000=Costs!$A778)*('Fixed assets'!$S$2:$S$1000))","v":0},{"$f":"I690+SUMPRODUCT(('Fixed assets'!$Q$2:$Q$1000=Costs!I$705)*('Fixed assets'!$U$2:$U$1000>Costs!$A778)*('Fixed assets'!$P$2:$P$1000=Costs!$A778)*('Fixed assets'!$R$2:$R$1000))-SUMPRODUCT(('Fixed assets'!$Q$2:$Q$1000=Costs!I$705)*('Fixed assets'!$U$2:$U$1000>Costs!$A778)*('Fixed assets'!$P$2:$P$1000=Costs!$A778)*('Fixed assets'!$S$2:$S$1000))","v":0},{"$f":"J690+SUMPRODUCT(('Fixed assets'!$Q$2:$Q$1000=Costs!J$705)*('Fixed assets'!$U$2:$U$1000>Costs!$A778)*('Fixed assets'!$P$2:$P$1000=Costs!$A778)*('Fixed assets'!$R$2:$R$1000))-SUMPRODUCT(('Fixed assets'!$Q$2:$Q$1000=Costs!J$705)*('Fixed assets'!$U$2:$U$1000>Costs!$A778)*('Fixed assets'!$P$2:$P$1000=Costs!$A778)*('Fixed assets'!$S$2:$S$1000))","v":0},{"$f":"K690+SUMPRODUCT(('Fixed assets'!$Q$2:$Q$1000=Costs!K$705)*('Fixed assets'!$U$2:$U$1000>Costs!$A778)*('Fixed assets'!$P$2:$P$1000=Costs!$A778)*('Fixed assets'!$R$2:$R$1000))-SUMPRODUCT(('Fixed assets'!$Q$2:$Q$1000=Costs!K$705)*('Fixed assets'!$U$2:$U$1000>Costs!$A778)*('Fixed assets'!$P$2:$P$1000=Costs!$A778)*('Fixed assets'!$S$2:$S$1000))","v":0},{"$f":"L690+SUMPRODUCT(('Fixed assets'!$Q$2:$Q$1000=Costs!L$705)*('Fixed assets'!$U$2:$U$1000>Costs!$A778)*('Fixed assets'!$P$2:$P$1000=Costs!$A778)*('Fixed assets'!$R$2:$R$1000))-SUMPRODUCT(('Fixed assets'!$Q$2:$Q$1000=Costs!L$705)*('Fixed assets'!$U$2:$U$1000>Costs!$A778)*('Fixed assets'!$P$2:$P$1000=Costs!$A778)*('Fixed assets'!$S$2:$S$1000))","v":0},{"$f":"M690+SUMPRODUCT(('Fixed assets'!$Q$2:$Q$1000=Costs!M$705)*('Fixed assets'!$U$2:$U$1000>Costs!$A778)*('Fixed assets'!$P$2:$P$1000=Costs!$A778)*('Fixed assets'!$R$2:$R$1000))-SUMPRODUCT(('Fixed assets'!$Q$2:$Q$1000=Costs!M$705)*('Fixed assets'!$U$2:$U$1000>Costs!$A778)*('Fixed assets'!$P$2:$P$1000=Costs!$A778)*('Fixed assets'!$S$2:$S$1000))","v":0},{"$f":"N690+SUMPRODUCT(('Fixed assets'!$Q$2:$Q$1000=Costs!N$705)*('Fixed assets'!$U$2:$U$1000>Costs!$A778)*('Fixed assets'!$P$2:$P$1000=Costs!$A778)*('Fixed assets'!$R$2:$R$1000))-SUMPRODUCT(('Fixed assets'!$Q$2:$Q$1000=Costs!N$705)*('Fixed assets'!$U$2:$U$1000>Costs!$A778)*('Fixed assets'!$P$2:$P$1000=Costs!$A778)*('Fixed assets'!$S$2:$S$1000))","v":0},{"$f":"O690+SUMPRODUCT(('Fixed assets'!$Q$2:$Q$1000=Costs!O$705)*('Fixed assets'!$U$2:$U$1000>Costs!$A778)*('Fixed assets'!$P$2:$P$1000=Costs!$A778)*('Fixed assets'!$R$2:$R$1000))-SUMPRODUCT(('Fixed assets'!$Q$2:$Q$1000=Costs!O$705)*('Fixed assets'!$U$2:$U$1000>Costs!$A778)*('Fixed assets'!$P$2:$P$1000=Costs!$A778)*('Fixed assets'!$S$2:$S$1000))","v":0},{"$f":"P690+SUMPRODUCT(('Fixed assets'!$Q$2:$Q$1000=Costs!P$705)*('Fixed assets'!$U$2:$U$1000>Costs!$A778)*('Fixed assets'!$P$2:$P$1000=Costs!$A778)*('Fixed assets'!$R$2:$R$1000))-SUMPRODUCT(('Fixed assets'!$Q$2:$Q$1000=Costs!P$705)*('Fixed assets'!$U$2:$U$1000>Costs!$A778)*('Fixed assets'!$P$2:$P$1000=Costs!$A778)*('Fixed assets'!$S$2:$S$1000))","v":0},{"$f":"Q690+SUMPRODUCT(('Fixed assets'!$Q$2:$Q$1000=Costs!Q$705)*('Fixed assets'!$U$2:$U$1000>Costs!$A778)*('Fixed assets'!$P$2:$P$1000=Costs!$A778)*('Fixed assets'!$R$2:$R$1000))-SUMPRODUCT(('Fixed assets'!$Q$2:$Q$1000=Costs!Q$705)*('Fixed assets'!$U$2:$U$1000>Costs!$A778)*('Fixed assets'!$P$2:$P$1000=Costs!$A778)*('Fixed assets'!$S$2:$S$1000))","v":0},{"$f":"R690+SUMPRODUCT(('Fixed assets'!$Q$2:$Q$1000=Costs!R$705)*('Fixed assets'!$U$2:$U$1000>Costs!$A778)*('Fixed assets'!$P$2:$P$1000=Costs!$A778)*('Fixed assets'!$R$2:$R$1000))-SUMPRODUCT(('Fixed assets'!$Q$2:$Q$1000=Costs!R$705)*('Fixed assets'!$U$2:$U$1000>Costs!$A778)*('Fixed assets'!$P$2:$P$1000=Costs!$A778)*('Fixed assets'!$S$2:$S$1000))","v":0},{"$f":"S690+SUMPRODUCT(('Fixed assets'!$Q$2:$Q$1000=Costs!S$705)*('Fixed assets'!$U$2:$U$1000>Costs!$A778)*('Fixed assets'!$P$2:$P$1000=Costs!$A778)*('Fixed assets'!$R$2:$R$1000))-SUMPRODUCT(('Fixed assets'!$Q$2:$Q$1000=Costs!S$705)*('Fixed assets'!$U$2:$U$1000>Costs!$A778)*('Fixed assets'!$P$2:$P$1000=Costs!$A778)*('Fixed assets'!$S$2:$S$1000))","v":0},{"$f":"T690+SUMPRODUCT(('Fixed assets'!$Q$2:$Q$1000=Costs!T$705)*('Fixed assets'!$U$2:$U$1000>Costs!$A778)*('Fixed assets'!$P$2:$P$1000=Costs!$A778)*('Fixed assets'!$R$2:$R$1000))-SUMPRODUCT(('Fixed assets'!$Q$2:$Q$1000=Costs!T$705)*('Fixed assets'!$U$2:$U$1000>Costs!$A778)*('Fixed assets'!$P$2:$P$1000=Costs!$A778)*('Fixed assets'!$S$2:$S$1000))","v":0},{"$f":"U690+SUMPRODUCT(('Fixed assets'!$Q$2:$Q$1000=Costs!U$705)*('Fixed assets'!$U$2:$U$1000>Costs!$A778)*('Fixed assets'!$P$2:$P$1000=Costs!$A778)*('Fixed assets'!$R$2:$R$1000))-SUMPRODUCT(('Fixed assets'!$Q$2:$Q$1000=Costs!U$705)*('Fixed assets'!$U$2:$U$1000>Costs!$A778)*('Fixed assets'!$P$2:$P$1000=Costs!$A778)*('Fixed assets'!$S$2:$S$1000))","v":0},{"$f":"V690+SUMPRODUCT(('Fixed assets'!$Q$2:$Q$1000=Costs!V$705)*('Fixed assets'!$U$2:$U$1000>Costs!$A778)*('Fixed assets'!$P$2:$P$1000=Costs!$A778)*('Fixed assets'!$R$2:$R$1000))-SUMPRODUCT(('Fixed assets'!$Q$2:$Q$1000=Costs!V$705)*('Fixed assets'!$U$2:$U$1000>Costs!$A778)*('Fixed assets'!$P$2:$P$1000=Costs!$A778)*('Fixed assets'!$S$2:$S$1000))","v":0},{"$f":"W690+SUMPRODUCT(('Fixed assets'!$Q$2:$Q$1000=Costs!W$705)*('Fixed assets'!$U$2:$U$1000>Costs!$A778)*('Fixed assets'!$P$2:$P$1000=Costs!$A778)*('Fixed assets'!$R$2:$R$1000))-SUMPRODUCT(('Fixed assets'!$Q$2:$Q$1000=Costs!W$705)*('Fixed assets'!$U$2:$U$1000>Costs!$A778)*('Fixed assets'!$P$2:$P$1000=Costs!$A778)*('Fixed assets'!$S$2:$S$1000))","v":0},{"$f":"X690+SUMPRODUCT(('Fixed assets'!$Q$2:$Q$1000=Costs!X$705)*('Fixed assets'!$U$2:$U$1000>Costs!$A778)*('Fixed assets'!$P$2:$P$1000=Costs!$A778)*('Fixed assets'!$R$2:$R$1000))-SUMPRODUCT(('Fixed assets'!$Q$2:$Q$1000=Costs!X$705)*('Fixed assets'!$U$2:$U$1000>Costs!$A778)*('Fixed assets'!$P$2:$P$1000=Costs!$A778)*('Fixed assets'!$S$2:$S$1000))","v":0},{"$f":"Y690+SUMPRODUCT(('Fixed assets'!$Q$2:$Q$1000=Costs!Y$705)*('Fixed assets'!$U$2:$U$1000>Costs!$A778)*('Fixed assets'!$P$2:$P$1000=Costs!$A778)*('Fixed assets'!$R$2:$R$1000))-SUMPRODUCT(('Fixed assets'!$Q$2:$Q$1000=Costs!Y$705)*('Fixed assets'!$U$2:$U$1000>Costs!$A778)*('Fixed assets'!$P$2:$P$1000=Costs!$A778)*('Fixed assets'!$S$2:$S$1000))","v":0},{"$f":"Z690+SUMPRODUCT(('Fixed assets'!$Q$2:$Q$1000=Costs!Z$705)*('Fixed assets'!$U$2:$U$1000>Costs!$A778)*('Fixed assets'!$P$2:$P$1000=Costs!$A778)*('Fixed assets'!$R$2:$R$1000))-SUMPRODUCT(('Fixed assets'!$Q$2:$Q$1000=Costs!Z$705)*('Fixed assets'!$U$2:$U$1000>Costs!$A778)*('Fixed assets'!$P$2:$P$1000=Costs!$A778)*('Fixed assets'!$S$2:$S$1000))","v":0},{"$f":"AA690+SUMPRODUCT(('Fixed assets'!$Q$2:$Q$1000=Costs!AA$705)*('Fixed assets'!$U$2:$U$1000>Costs!$A778)*('Fixed assets'!$P$2:$P$1000=Costs!$A778)*('Fixed assets'!$R$2:$R$1000))-SUMPRODUCT(('Fixed assets'!$Q$2:$Q$1000=Costs!AA$705)*('Fixed assets'!$U$2:$U$1000>Costs!$A778)*('Fixed assets'!$P$2:$P$1000=Costs!$A778)*('Fixed assets'!$S$2:$S$1000))","v":0},{"$f":"AB690+SUMPRODUCT(('Fixed assets'!$Q$2:$Q$1000=Costs!AB$705)*('Fixed assets'!$U$2:$U$1000>Costs!$A778)*('Fixed assets'!$P$2:$P$1000=Costs!$A778)*('Fixed assets'!$R$2:$R$1000))-SUMPRODUCT(('Fixed assets'!$Q$2:$Q$1000=Costs!AB$705)*('Fixed assets'!$U$2:$U$1000>Costs!$A778)*('Fixed assets'!$P$2:$P$1000=Costs!$A778)*('Fixed assets'!$S$2:$S$1000))","v":0},{"$f":"AC690+SUMPRODUCT(('Fixed assets'!$Q$2:$Q$1000=Costs!AC$705)*('Fixed assets'!$U$2:$U$1000>Costs!$A778)*('Fixed assets'!$P$2:$P$1000=Costs!$A778)*('Fixed assets'!$R$2:$R$1000))-SUMPRODUCT(('Fixed assets'!$Q$2:$Q$1000=Costs!AC$705)*('Fixed assets'!$U$2:$U$1000>Costs!$A778)*('Fixed assets'!$P$2:$P$1000=Costs!$A778)*('Fixed assets'!$S$2:$S$1000))","v":0},{"$f":"AD690+SUMPRODUCT(('Fixed assets'!$Q$2:$Q$1000=Costs!AD$705)*('Fixed assets'!$U$2:$U$1000>Costs!$A778)*('Fixed assets'!$P$2:$P$1000=Costs!$A778)*('Fixed assets'!$R$2:$R$1000))-SUMPRODUCT(('Fixed assets'!$Q$2:$Q$1000=Costs!AD$705)*('Fixed assets'!$U$2:$U$1000>Costs!$A778)*('Fixed assets'!$P$2:$P$1000=Costs!$A778)*('Fixed assets'!$S$2:$S$1000))","v":0},{"$f":"AE690+SUMPRODUCT(('Fixed assets'!$Q$2:$Q$1000=Costs!AE$705)*('Fixed assets'!$U$2:$U$1000>Costs!$A778)*('Fixed assets'!$P$2:$P$1000=Costs!$A778)*('Fixed assets'!$R$2:$R$1000))-SUMPRODUCT(('Fixed assets'!$Q$2:$Q$1000=Costs!AE$705)*('Fixed assets'!$U$2:$U$1000>Costs!$A778)*('Fixed assets'!$P$2:$P$1000=Costs!$A778)*('Fixed assets'!$S$2:$S$1000))","v":0},{"$f":"AF690+SUMPRODUCT(('Fixed assets'!$Q$2:$Q$1000=Costs!AF$705)*('Fixed assets'!$U$2:$U$1000>Costs!$A778)*('Fixed assets'!$P$2:$P$1000=Costs!$A778)*('Fixed assets'!$R$2:$R$1000))-SUMPRODUCT(('Fixed assets'!$Q$2:$Q$1000=Costs!AF$705)*('Fixed assets'!$U$2:$U$1000>Costs!$A778)*('Fixed assets'!$P$2:$P$1000=Costs!$A778)*('Fixed assets'!$S$2:$S$1000))","v":0},{"$f":"AG690+SUMPRODUCT(('Fixed assets'!$Q$2:$Q$1000=Costs!AG$705)*('Fixed assets'!$U$2:$U$1000>Costs!$A778)*('Fixed assets'!$P$2:$P$1000=Costs!$A778)*('Fixed assets'!$R$2:$R$1000))-SUMPRODUCT(('Fixed assets'!$Q$2:$Q$1000=Costs!AG$705)*('Fixed assets'!$U$2:$U$1000>Costs!$A778)*('Fixed assets'!$P$2:$P$1000=Costs!$A778)*('Fixed assets'!$S$2:$S$1000))","v":0},{"$f":"AH690+SUMPRODUCT(('Fixed assets'!$Q$2:$Q$1000=Costs!AH$705)*('Fixed assets'!$U$2:$U$1000>Costs!$A778)*('Fixed assets'!$P$2:$P$1000=Costs!$A778)*('Fixed assets'!$R$2:$R$1000))-SUMPRODUCT(('Fixed assets'!$Q$2:$Q$1000=Costs!AH$705)*('Fixed assets'!$U$2:$U$1000>Costs!$A778)*('Fixed assets'!$P$2:$P$1000=Costs!$A778)*('Fixed assets'!$S$2:$S$1000))","v":0},{"$f":"AI690+SUMPRODUCT(('Fixed assets'!$Q$2:$Q$1000=Costs!AI$705)*('Fixed assets'!$U$2:$U$1000>Costs!$A778)*('Fixed assets'!$P$2:$P$1000=Costs!$A778)*('Fixed assets'!$R$2:$R$1000))-SUMPRODUCT(('Fixed assets'!$Q$2:$Q$1000=Costs!AI$705)*('Fixed assets'!$U$2:$U$1000>Costs!$A778)*('Fixed assets'!$P$2:$P$1000=Costs!$A778)*('Fixed assets'!$S$2:$S$1000))","v":0},{"$f":"AJ690+SUMPRODUCT(('Fixed assets'!$Q$2:$Q$1000=Costs!AJ$705)*('Fixed assets'!$U$2:$U$1000>Costs!$A778)*('Fixed assets'!$P$2:$P$1000=Costs!$A778)*('Fixed assets'!$R$2:$R$1000))-SUMPRODUCT(('Fixed assets'!$Q$2:$Q$1000=Costs!AJ$705)*('Fixed assets'!$U$2:$U$1000>Costs!$A778)*('Fixed assets'!$P$2:$P$1000=Costs!$A778)*('Fixed assets'!$S$2:$S$1000))","v":0},{"$f":"AK690+SUMPRODUCT(('Fixed assets'!$Q$2:$Q$1000=Costs!AK$705)*('Fixed assets'!$U$2:$U$1000>Costs!$A778)*('Fixed assets'!$P$2:$P$1000=Costs!$A778)*('Fixed assets'!$R$2:$R$1000))-SUMPRODUCT(('Fixed assets'!$Q$2:$Q$1000=Costs!AK$705)*('Fixed assets'!$U$2:$U$1000>Costs!$A778)*('Fixed assets'!$P$2:$P$1000=Costs!$A778)*('Fixed assets'!$S$2:$S$1000))","v":0},{"$f":"AL690+SUMPRODUCT(('Fixed assets'!$Q$2:$Q$1000=Costs!AL$705)*('Fixed assets'!$U$2:$U$1000>Costs!$A778)*('Fixed assets'!$P$2:$P$1000=Costs!$A778)*('Fixed assets'!$R$2:$R$1000))-SUMPRODUCT(('Fixed assets'!$Q$2:$Q$1000=Costs!AL$705)*('Fixed assets'!$U$2:$U$1000>Costs!$A778)*('Fixed assets'!$P$2:$P$1000=Costs!$A778)*('Fixed assets'!$S$2:$S$1000))","v":0},{"$f":"AM690+SUMPRODUCT(('Fixed assets'!$Q$2:$Q$1000=Costs!AM$705)*('Fixed assets'!$U$2:$U$1000>Costs!$A778)*('Fixed assets'!$P$2:$P$1000=Costs!$A778)*('Fixed assets'!$R$2:$R$1000))-SUMPRODUCT(('Fixed assets'!$Q$2:$Q$1000=Costs!AM$705)*('Fixed assets'!$U$2:$U$1000>Costs!$A778)*('Fixed assets'!$P$2:$P$1000=Costs!$A778)*('Fixed assets'!$S$2:$S$1000))","v":0},{"$f":"AN690+SUMPRODUCT(('Fixed assets'!$Q$2:$Q$1000=Costs!AN$705)*('Fixed assets'!$U$2:$U$1000>Costs!$A778)*('Fixed assets'!$P$2:$P$1000=Costs!$A778)*('Fixed assets'!$R$2:$R$1000))-SUMPRODUCT(('Fixed assets'!$Q$2:$Q$1000=Costs!AN$705)*('Fixed assets'!$U$2:$U$1000>Costs!$A778)*('Fixed assets'!$P$2:$P$1000=Costs!$A778)*('Fixed assets'!$S$2:$S$1000))","v":0},{"$f":"AO690+SUMPRODUCT(('Fixed assets'!$Q$2:$Q$1000=Costs!AO$705)*('Fixed assets'!$U$2:$U$1000>Costs!$A778)*('Fixed assets'!$P$2:$P$1000=Costs!$A778)*('Fixed assets'!$R$2:$R$1000))-SUMPRODUCT(('Fixed assets'!$Q$2:$Q$1000=Costs!AO$705)*('Fixed assets'!$U$2:$U$1000>Costs!$A778)*('Fixed assets'!$P$2:$P$1000=Costs!$A778)*('Fixed assets'!$S$2:$S$1000))","v":0},{"$f":"AP690+SUMPRODUCT(('Fixed assets'!$Q$2:$Q$1000=Costs!AP$705)*('Fixed assets'!$U$2:$U$1000>Costs!$A778)*('Fixed assets'!$P$2:$P$1000=Costs!$A778)*('Fixed assets'!$R$2:$R$1000))-SUMPRODUCT(('Fixed assets'!$Q$2:$Q$1000=Costs!AP$705)*('Fixed assets'!$U$2:$U$1000>Costs!$A778)*('Fixed assets'!$P$2:$P$1000=Costs!$A778)*('Fixed assets'!$S$2:$S$1000))","v":0},{"$f":"AQ690+SUMPRODUCT(('Fixed assets'!$Q$2:$Q$1000=Costs!AQ$705)*('Fixed assets'!$U$2:$U$1000>Costs!$A778)*('Fixed assets'!$P$2:$P$1000=Costs!$A778)*('Fixed assets'!$R$2:$R$1000))-SUMPRODUCT(('Fixed assets'!$Q$2:$Q$1000=Costs!AQ$705)*('Fixed assets'!$U$2:$U$1000>Costs!$A778)*('Fixed assets'!$P$2:$P$1000=Costs!$A778)*('Fixed assets'!$S$2:$S$1000))","v":0}]
[2088,0,{"$f":"C691+SUMPRODUCT(('Fixed assets'!$Q$2:$Q$1000=Costs!C$705)*('Fixed assets'!$U$2:$U$1000>Costs!$A779)*('Fixed assets'!$P$2:$P$1000=Costs!$A779)*('Fixed assets'!$R$2:$R$1000))-SUMPRODUCT(('Fixed assets'!$Q$2:$Q$1000=Costs!C$705)*('Fixed assets'!$U$2:$U$1000>Costs!$A779)*('Fixed assets'!$P$2:$P$1000=Costs!$A779)*('Fixed assets'!$S$2:$S$1000))","v":0},{"$f":"D691+SUMPRODUCT(('Fixed assets'!$Q$2:$Q$1000=Costs!D$705)*('Fixed assets'!$U$2:$U$1000>Costs!$A779)*('Fixed assets'!$P$2:$P$1000=Costs!$A779)*('Fixed assets'!$R$2:$R$1000))-SUMPRODUCT(('Fixed assets'!$Q$2:$Q$1000=Costs!D$705)*('Fixed assets'!$U$2:$U$1000>Costs!$A779)*('Fixed assets'!$P$2:$P$1000=Costs!$A779)*('Fixed assets'!$S$2:$S$1000))","v":0},{"$f":"E691+SUMPRODUCT(('Fixed assets'!$Q$2:$Q$1000=Costs!E$705)*('Fixed assets'!$U$2:$U$1000>Costs!$A779)*('Fixed assets'!$P$2:$P$1000=Costs!$A779)*('Fixed assets'!$R$2:$R$1000))-SUMPRODUCT(('Fixed assets'!$Q$2:$Q$1000=Costs!E$705)*('Fixed assets'!$U$2:$U$1000>Costs!$A779)*('Fixed assets'!$P$2:$P$1000=Costs!$A779)*('Fixed assets'!$S$2:$S$1000))","v":0},{"$f":"F691+SUMPRODUCT(('Fixed assets'!$Q$2:$Q$1000=Costs!F$705)*('Fixed assets'!$U$2:$U$1000>Costs!$A779)*('Fixed assets'!$P$2:$P$1000=Costs!$A779)*('Fixed assets'!$R$2:$R$1000))-SUMPRODUCT(('Fixed assets'!$Q$2:$Q$1000=Costs!F$705)*('Fixed assets'!$U$2:$U$1000>Costs!$A779)*('Fixed assets'!$P$2:$P$1000=Costs!$A779)*('Fixed assets'!$S$2:$S$1000))","v":0},{"$f":"G691+SUMPRODUCT(('Fixed assets'!$Q$2:$Q$1000=Costs!G$705)*('Fixed assets'!$U$2:$U$1000>Costs!$A779)*('Fixed assets'!$P$2:$P$1000=Costs!$A779)*('Fixed assets'!$R$2:$R$1000))-SUMPRODUCT(('Fixed assets'!$Q$2:$Q$1000=Costs!G$705)*('Fixed assets'!$U$2:$U$1000>Costs!$A779)*('Fixed assets'!$P$2:$P$1000=Costs!$A779)*('Fixed assets'!$S$2:$S$1000))","v":0},{"$f":"H691+SUMPRODUCT(('Fixed assets'!$Q$2:$Q$1000=Costs!H$705)*('Fixed assets'!$U$2:$U$1000>Costs!$A779)*('Fixed assets'!$P$2:$P$1000=Costs!$A779)*('Fixed assets'!$R$2:$R$1000))-SUMPRODUCT(('Fixed assets'!$Q$2:$Q$1000=Costs!H$705)*('Fixed assets'!$U$2:$U$1000>Costs!$A779)*('Fixed assets'!$P$2:$P$1000=Costs!$A779)*('Fixed assets'!$S$2:$S$1000))","v":0},{"$f":"I691+SUMPRODUCT(('Fixed assets'!$Q$2:$Q$1000=Costs!I$705)*('Fixed assets'!$U$2:$U$1000>Costs!$A779)*('Fixed assets'!$P$2:$P$1000=Costs!$A779)*('Fixed assets'!$R$2:$R$1000))-SUMPRODUCT(('Fixed assets'!$Q$2:$Q$1000=Costs!I$705)*('Fixed assets'!$U$2:$U$1000>Costs!$A779)*('Fixed assets'!$P$2:$P$1000=Costs!$A779)*('Fixed assets'!$S$2:$S$1000))","v":0},{"$f":"J691+SUMPRODUCT(('Fixed assets'!$Q$2:$Q$1000=Costs!J$705)*('Fixed assets'!$U$2:$U$1000>Costs!$A779)*('Fixed assets'!$P$2:$P$1000=Costs!$A779)*('Fixed assets'!$R$2:$R$1000))-SUMPRODUCT(('Fixed assets'!$Q$2:$Q$1000=Costs!J$705)*('Fixed assets'!$U$2:$U$1000>Costs!$A779)*('Fixed assets'!$P$2:$P$1000=Costs!$A779)*('Fixed assets'!$S$2:$S$1000))","v":0},{"$f":"K691+SUMPRODUCT(('Fixed assets'!$Q$2:$Q$1000=Costs!K$705)*('Fixed assets'!$U$2:$U$1000>Costs!$A779)*('Fixed assets'!$P$2:$P$1000=Costs!$A779)*('Fixed assets'!$R$2:$R$1000))-SUMPRODUCT(('Fixed assets'!$Q$2:$Q$1000=Costs!K$705)*('Fixed assets'!$U$2:$U$1000>Costs!$A779)*('Fixed assets'!$P$2:$P$1000=Costs!$A779)*('Fixed assets'!$S$2:$S$1000))","v":0},{"$f":"L691+SUMPRODUCT(('Fixed assets'!$Q$2:$Q$1000=Costs!L$705)*('Fixed assets'!$U$2:$U$1000>Costs!$A779)*('Fixed assets'!$P$2:$P$1000=Costs!$A779)*('Fixed assets'!$R$2:$R$1000))-SUMPRODUCT(('Fixed assets'!$Q$2:$Q$1000=Costs!L$705)*('Fixed assets'!$U$2:$U$1000>Costs!$A779)*('Fixed assets'!$P$2:$P$1000=Costs!$A779)*('Fixed assets'!$S$2:$S$1000))","v":0},{"$f":"M691+SUMPRODUCT(('Fixed assets'!$Q$2:$Q$1000=Costs!M$705)*('Fixed assets'!$U$2:$U$1000>Costs!$A779)*('Fixed assets'!$P$2:$P$1000=Costs!$A779)*('Fixed assets'!$R$2:$R$1000))-SUMPRODUCT(('Fixed assets'!$Q$2:$Q$1000=Costs!M$705)*('Fixed assets'!$U$2:$U$1000>Costs!$A779)*('Fixed assets'!$P$2:$P$1000=Costs!$A779)*('Fixed assets'!$S$2:$S$1000))","v":0},{"$f":"N691+SUMPRODUCT(('Fixed assets'!$Q$2:$Q$1000=Costs!N$705)*('Fixed assets'!$U$2:$U$1000>Costs!$A779)*('Fixed assets'!$P$2:$P$1000=Costs!$A779)*('Fixed assets'!$R$2:$R$1000))-SUMPRODUCT(('Fixed assets'!$Q$2:$Q$1000=Costs!N$705)*('Fixed assets'!$U$2:$U$1000>Costs!$A779)*('Fixed assets'!$P$2:$P$1000=Costs!$A779)*('Fixed assets'!$S$2:$S$1000))","v":0},{"$f":"O691+SUMPRODUCT(('Fixed assets'!$Q$2:$Q$1000=Costs!O$705)*('Fixed assets'!$U$2:$U$1000>Costs!$A779)*('Fixed assets'!$P$2:$P$1000=Costs!$A779)*('Fixed assets'!$R$2:$R$1000))-SUMPRODUCT(('Fixed assets'!$Q$2:$Q$1000=Costs!O$705)*('Fixed assets'!$U$2:$U$1000>Costs!$A779)*('Fixed assets'!$P$2:$P$1000=Costs!$A779)*('Fixed assets'!$S$2:$S$1000))","v":0},{"$f":"P691+SUMPRODUCT(('Fixed assets'!$Q$2:$Q$1000=Costs!P$705)*('Fixed assets'!$U$2:$U$1000>Costs!$A779)*('Fixed assets'!$P$2:$P$1000=Costs!$A779)*('Fixed assets'!$R$2:$R$1000))-SUMPRODUCT(('Fixed assets'!$Q$2:$Q$1000=Costs!P$705)*('Fixed assets'!$U$2:$U$1000>Costs!$A779)*('Fixed assets'!$P$2:$P$1000=Costs!$A779)*('Fixed assets'!$S$2:$S$1000))","v":0},{"$f":"Q691+SUMPRODUCT(('Fixed assets'!$Q$2:$Q$1000=Costs!Q$705)*('Fixed assets'!$U$2:$U$1000>Costs!$A779)*('Fixed assets'!$P$2:$P$1000=Costs!$A779)*('Fixed assets'!$R$2:$R$1000))-SUMPRODUCT(('Fixed assets'!$Q$2:$Q$1000=Costs!Q$705)*('Fixed assets'!$U$2:$U$1000>Costs!$A779)*('Fixed assets'!$P$2:$P$1000=Costs!$A779)*('Fixed assets'!$S$2:$S$1000))","v":0},{"$f":"R691+SUMPRODUCT(('Fixed assets'!$Q$2:$Q$1000=Costs!R$705)*('Fixed assets'!$U$2:$U$1000>Costs!$A779)*('Fixed assets'!$P$2:$P$1000=Costs!$A779)*('Fixed assets'!$R$2:$R$1000))-SUMPRODUCT(('Fixed assets'!$Q$2:$Q$1000=Costs!R$705)*('Fixed assets'!$U$2:$U$1000>Costs!$A779)*('Fixed assets'!$P$2:$P$1000=Costs!$A779)*('Fixed assets'!$S$2:$S$1000))","v":0},{"$f":"S691+SUMPRODUCT(('Fixed assets'!$Q$2:$Q$1000=Costs!S$705)*('Fixed assets'!$U$2:$U$1000>Costs!$A779)*('Fixed assets'!$P$2:$P$1000=Costs!$A779)*('Fixed assets'!$R$2:$R$1000))-SUMPRODUCT(('Fixed assets'!$Q$2:$Q$1000=Costs!S$705)*('Fixed assets'!$U$2:$U$1000>Costs!$A779)*('Fixed assets'!$P$2:$P$1000=Costs!$A779)*('Fixed assets'!$S$2:$S$1000))","v":0},{"$f":"T691+SUMPRODUCT(('Fixed assets'!$Q$2:$Q$1000=Costs!T$705)*('Fixed assets'!$U$2:$U$1000>Costs!$A779)*('Fixed assets'!$P$2:$P$1000=Costs!$A779)*('Fixed assets'!$R$2:$R$1000))-SUMPRODUCT(('Fixed assets'!$Q$2:$Q$1000=Costs!T$705)*('Fixed assets'!$U$2:$U$1000>Costs!$A779)*('Fixed assets'!$P$2:$P$1000=Costs!$A779)*('Fixed assets'!$S$2:$S$1000))","v":0},{"$f":"U691+SUMPRODUCT(('Fixed assets'!$Q$2:$Q$1000=Costs!U$705)*('Fixed assets'!$U$2:$U$1000>Costs!$A779)*('Fixed assets'!$P$2:$P$1000=Costs!$A779)*('Fixed assets'!$R$2:$R$1000))-SUMPRODUCT(('Fixed assets'!$Q$2:$Q$1000=Costs!U$705)*('Fixed assets'!$U$2:$U$1000>Costs!$A779)*('Fixed assets'!$P$2:$P$1000=Costs!$A779)*('Fixed assets'!$S$2:$S$1000))","v":0},{"$f":"V691+SUMPRODUCT(('Fixed assets'!$Q$2:$Q$1000=Costs!V$705)*('Fixed assets'!$U$2:$U$1000>Costs!$A779)*('Fixed assets'!$P$2:$P$1000=Costs!$A779)*('Fixed assets'!$R$2:$R$1000))-SUMPRODUCT(('Fixed assets'!$Q$2:$Q$1000=Costs!V$705)*('Fixed assets'!$U$2:$U$1000>Costs!$A779)*('Fixed assets'!$P$2:$P$1000=Costs!$A779)*('Fixed assets'!$S$2:$S$1000))","v":0},{"$f":"W691+SUMPRODUCT(('Fixed assets'!$Q$2:$Q$1000=Costs!W$705)*('Fixed assets'!$U$2:$U$1000>Costs!$A779)*('Fixed assets'!$P$2:$P$1000=Costs!$A779)*('Fixed assets'!$R$2:$R$1000))-SUMPRODUCT(('Fixed assets'!$Q$2:$Q$1000=Costs!W$705)*('Fixed assets'!$U$2:$U$1000>Costs!$A779)*('Fixed assets'!$P$2:$P$1000=Costs!$A779)*('Fixed assets'!$S$2:$S$1000))","v":0},{"$f":"X691+SUMPRODUCT(('Fixed assets'!$Q$2:$Q$1000=Costs!X$705)*('Fixed assets'!$U$2:$U$1000>Costs!$A779)*('Fixed assets'!$P$2:$P$1000=Costs!$A779)*('Fixed assets'!$R$2:$R$1000))-SUMPRODUCT(('Fixed assets'!$Q$2:$Q$1000=Costs!X$705)*('Fixed assets'!$U$2:$U$1000>Costs!$A779)*('Fixed assets'!$P$2:$P$1000=Costs!$A779)*('Fixed assets'!$S$2:$S$1000))","v":0},{"$f":"Y691+SUMPRODUCT(('Fixed assets'!$Q$2:$Q$1000=Costs!Y$705)*('Fixed assets'!$U$2:$U$1000>Costs!$A779)*('Fixed assets'!$P$2:$P$1000=Costs!$A779)*('Fixed assets'!$R$2:$R$1000))-SUMPRODUCT(('Fixed assets'!$Q$2:$Q$1000=Costs!Y$705)*('Fixed assets'!$U$2:$U$1000>Costs!$A779)*('Fixed assets'!$P$2:$P$1000=Costs!$A779)*('Fixed assets'!$S$2:$S$1000))","v":0},{"$f":"Z691+SUMPRODUCT(('Fixed assets'!$Q$2:$Q$1000=Costs!Z$705)*('Fixed assets'!$U$2:$U$1000>Costs!$A779)*('Fixed assets'!$P$2:$P$1000=Costs!$A779)*('Fixed assets'!$R$2:$R$1000))-SUMPRODUCT(('Fixed assets'!$Q$2:$Q$1000=Costs!Z$705)*('Fixed assets'!$U$2:$U$1000>Costs!$A779)*('Fixed assets'!$P$2:$P$1000=Costs!$A779)*('Fixed assets'!$S$2:$S$1000))","v":0},{"$f":"AA691+SUMPRODUCT(('Fixed assets'!$Q$2:$Q$1000=Costs!AA$705)*('Fixed assets'!$U$2:$U$1000>Costs!$A779)*('Fixed assets'!$P$2:$P$1000=Costs!$A779)*('Fixed assets'!$R$2:$R$1000))-SUMPRODUCT(('Fixed assets'!$Q$2:$Q$1000=Costs!AA$705)*('Fixed assets'!$U$2:$U$1000>Costs!$A779)*('Fixed assets'!$P$2:$P$1000=Costs!$A779)*('Fixed assets'!$S$2:$S$1000))","v":0},{"$f":"AB691+SUMPRODUCT(('Fixed assets'!$Q$2:$Q$1000=Costs!AB$705)*('Fixed assets'!$U$2:$U$1000>Costs!$A779)*('Fixed assets'!$P$2:$P$1000=Costs!$A779)*('Fixed assets'!$R$2:$R$1000))-SUMPRODUCT(('Fixed assets'!$Q$2:$Q$1000=Costs!AB$705)*('Fixed assets'!$U$2:$U$1000>Costs!$A779)*('Fixed assets'!$P$2:$P$1000=Costs!$A779)*('Fixed assets'!$S$2:$S$1000))","v":0},{"$f":"AC691+SUMPRODUCT(('Fixed assets'!$Q$2:$Q$1000=Costs!AC$705)*('Fixed assets'!$U$2:$U$1000>Costs!$A779)*('Fixed assets'!$P$2:$P$1000=Costs!$A779)*('Fixed assets'!$R$2:$R$1000))-SUMPRODUCT(('Fixed assets'!$Q$2:$Q$1000=Costs!AC$705)*('Fixed assets'!$U$2:$U$1000>Costs!$A779)*('Fixed assets'!$P$2:$P$1000=Costs!$A779)*('Fixed assets'!$S$2:$S$1000))","v":0},{"$f":"AD691+SUMPRODUCT(('Fixed assets'!$Q$2:$Q$1000=Costs!AD$705)*('Fixed assets'!$U$2:$U$1000>Costs!$A779)*('Fixed assets'!$P$2:$P$1000=Costs!$A779)*('Fixed assets'!$R$2:$R$1000))-SUMPRODUCT(('Fixed assets'!$Q$2:$Q$1000=Costs!AD$705)*('Fixed assets'!$U$2:$U$1000>Costs!$A779)*('Fixed assets'!$P$2:$P$1000=Costs!$A779)*('Fixed assets'!$S$2:$S$1000))","v":0},{"$f":"AE691+SUMPRODUCT(('Fixed assets'!$Q$2:$Q$1000=Costs!AE$705)*('Fixed assets'!$U$2:$U$1000>Costs!$A779)*('Fixed assets'!$P$2:$P$1000=Costs!$A779)*('Fixed assets'!$R$2:$R$1000))-SUMPRODUCT(('Fixed assets'!$Q$2:$Q$1000=Costs!AE$705)*('Fixed assets'!$U$2:$U$1000>Costs!$A779)*('Fixed assets'!$P$2:$P$1000=Costs!$A779)*('Fixed assets'!$S$2:$S$1000))","v":0},{"$f":"AF691+SUMPRODUCT(('Fixed assets'!$Q$2:$Q$1000=Costs!AF$705)*('Fixed assets'!$U$2:$U$1000>Costs!$A779)*('Fixed assets'!$P$2:$P$1000=Costs!$A779)*('Fixed assets'!$R$2:$R$1000))-SUMPRODUCT(('Fixed assets'!$Q$2:$Q$1000=Costs!AF$705)*('Fixed assets'!$U$2:$U$1000>Costs!$A779)*('Fixed assets'!$P$2:$P$1000=Costs!$A779)*('Fixed assets'!$S$2:$S$1000))","v":0},{"$f":"AG691+SUMPRODUCT(('Fixed assets'!$Q$2:$Q$1000=Costs!AG$705)*('Fixed assets'!$U$2:$U$1000>Costs!$A779)*('Fixed assets'!$P$2:$P$1000=Costs!$A779)*('Fixed assets'!$R$2:$R$1000))-SUMPRODUCT(('Fixed assets'!$Q$2:$Q$1000=Costs!AG$705)*('Fixed assets'!$U$2:$U$1000>Costs!$A779)*('Fixed assets'!$P$2:$P$1000=Costs!$A779)*('Fixed assets'!$S$2:$S$1000))","v":0},{"$f":"AH691+SUMPRODUCT(('Fixed assets'!$Q$2:$Q$1000=Costs!AH$705)*('Fixed assets'!$U$2:$U$1000>Costs!$A779)*('Fixed assets'!$P$2:$P$1000=Costs!$A779)*('Fixed assets'!$R$2:$R$1000))-SUMPRODUCT(('Fixed assets'!$Q$2:$Q$1000=Costs!AH$705)*('Fixed assets'!$U$2:$U$1000>Costs!$A779)*('Fixed assets'!$P$2:$P$1000=Costs!$A779)*('Fixed assets'!$S$2:$S$1000))","v":0},{"$f":"AI691+SUMPRODUCT(('Fixed assets'!$Q$2:$Q$1000=Costs!AI$705)*('Fixed assets'!$U$2:$U$1000>Costs!$A779)*('Fixed assets'!$P$2:$P$1000=Costs!$A779)*('Fixed assets'!$R$2:$R$1000))-SUMPRODUCT(('Fixed assets'!$Q$2:$Q$1000=Costs!AI$705)*('Fixed assets'!$U$2:$U$1000>Costs!$A779)*('Fixed assets'!$P$2:$P$1000=Costs!$A779)*('Fixed assets'!$S$2:$S$1000))","v":0},{"$f":"AJ691+SUMPRODUCT(('Fixed assets'!$Q$2:$Q$1000=Costs!AJ$705)*('Fixed assets'!$U$2:$U$1000>Costs!$A779)*('Fixed assets'!$P$2:$P$1000=Costs!$A779)*('Fixed assets'!$R$2:$R$1000))-SUMPRODUCT(('Fixed assets'!$Q$2:$Q$1000=Costs!AJ$705)*('Fixed assets'!$U$2:$U$1000>Costs!$A779)*('Fixed assets'!$P$2:$P$1000=Costs!$A779)*('Fixed assets'!$S$2:$S$1000))","v":0},{"$f":"AK691+SUMPRODUCT(('Fixed assets'!$Q$2:$Q$1000=Costs!AK$705)*('Fixed assets'!$U$2:$U$1000>Costs!$A779)*('Fixed assets'!$P$2:$P$1000=Costs!$A779)*('Fixed assets'!$R$2:$R$1000))-SUMPRODUCT(('Fixed assets'!$Q$2:$Q$1000=Costs!AK$705)*('Fixed assets'!$U$2:$U$1000>Costs!$A779)*('Fixed assets'!$P$2:$P$1000=Costs!$A779)*('Fixed assets'!$S$2:$S$1000))","v":0},{"$f":"AL691+SUMPRODUCT(('Fixed assets'!$Q$2:$Q$1000=Costs!AL$705)*('Fixed assets'!$U$2:$U$1000>Costs!$A779)*('Fixed assets'!$P$2:$P$1000=Costs!$A779)*('Fixed assets'!$R$2:$R$1000))-SUMPRODUCT(('Fixed assets'!$Q$2:$Q$1000=Costs!AL$705)*('Fixed assets'!$U$2:$U$1000>Costs!$A779)*('Fixed assets'!$P$2:$P$1000=Costs!$A779)*('Fixed assets'!$S$2:$S$1000))","v":0},{"$f":"AM691+SUMPRODUCT(('Fixed assets'!$Q$2:$Q$1000=Costs!AM$705)*('Fixed assets'!$U$2:$U$1000>Costs!$A779)*('Fixed assets'!$P$2:$P$1000=Costs!$A779)*('Fixed assets'!$R$2:$R$1000))-SUMPRODUCT(('Fixed assets'!$Q$2:$Q$1000=Costs!AM$705)*('Fixed assets'!$U$2:$U$1000>Costs!$A779)*('Fixed assets'!$P$2:$P$1000=Costs!$A779)*('Fixed assets'!$S$2:$S$1000))","v":0},{"$f":"AN691+SUMPRODUCT(('Fixed assets'!$Q$2:$Q$1000=Costs!AN$705)*('Fixed assets'!$U$2:$U$1000>Costs!$A779)*('Fixed assets'!$P$2:$P$1000=Costs!$A779)*('Fixed assets'!$R$2:$R$1000))-SUMPRODUCT(('Fixed assets'!$Q$2:$Q$1000=Costs!AN$705)*('Fixed assets'!$U$2:$U$1000>Costs!$A779)*('Fixed assets'!$P$2:$P$1000=Costs!$A779)*('Fixed assets'!$S$2:$S$1000))","v":0},{"$f":"AO691+SUMPRODUCT(('Fixed assets'!$Q$2:$Q$1000=Costs!AO$705)*('Fixed assets'!$U$2:$U$1000>Costs!$A779)*('Fixed assets'!$P$2:$P$1000=Costs!$A779)*('Fixed assets'!$R$2:$R$1000))-SUMPRODUCT(('Fixed assets'!$Q$2:$Q$1000=Costs!AO$705)*('Fixed assets'!$U$2:$U$1000>Costs!$A779)*('Fixed assets'!$P$2:$P$1000=Costs!$A779)*('Fixed assets'!$S$2:$S$1000))","v":0},{"$f":"AP691+SUMPRODUCT(('Fixed assets'!$Q$2:$Q$1000=Costs!AP$705)*('Fixed assets'!$U$2:$U$1000>Costs!$A779)*('Fixed assets'!$P$2:$P$1000=Costs!$A779)*('Fixed assets'!$R$2:$R$1000))-SUMPRODUCT(('Fixed assets'!$Q$2:$Q$1000=Costs!AP$705)*('Fixed assets'!$U$2:$U$1000>Costs!$A779)*('Fixed assets'!$P$2:$P$1000=Costs!$A779)*('Fixed assets'!$S$2:$S$1000))","v":0},{"$f":"AQ691+SUMPRODUCT(('Fixed assets'!$Q$2:$Q$1000=Costs!AQ$705)*('Fixed assets'!$U$2:$U$1000>Costs!$A779)*('Fixed assets'!$P$2:$P$1000=Costs!$A779)*('Fixed assets'!$R$2:$R$1000))-SUMPRODUCT(('Fixed assets'!$Q$2:$Q$1000=Costs!AQ$705)*('Fixed assets'!$U$2:$U$1000>Costs!$A779)*('Fixed assets'!$P$2:$P$1000=Costs!$A779)*('Fixed assets'!$S$2:$S$1000))","v":0}]
[2089,0,{"$f":"C692+SUMPRODUCT(('Fixed assets'!$Q$2:$Q$1000=Costs!C$705)*('Fixed assets'!$U$2:$U$1000>Costs!$A780)*('Fixed assets'!$P$2:$P$1000=Costs!$A780)*('Fixed assets'!$R$2:$R$1000))-SUMPRODUCT(('Fixed assets'!$Q$2:$Q$1000=Costs!C$705)*('Fixed assets'!$U$2:$U$1000>Costs!$A780)*('Fixed assets'!$P$2:$P$1000=Costs!$A780)*('Fixed assets'!$S$2:$S$1000))","v":0},{"$f":"D692+SUMPRODUCT(('Fixed assets'!$Q$2:$Q$1000=Costs!D$705)*('Fixed assets'!$U$2:$U$1000>Costs!$A780)*('Fixed assets'!$P$2:$P$1000=Costs!$A780)*('Fixed assets'!$R$2:$R$1000))-SUMPRODUCT(('Fixed assets'!$Q$2:$Q$1000=Costs!D$705)*('Fixed assets'!$U$2:$U$1000>Costs!$A780)*('Fixed assets'!$P$2:$P$1000=Costs!$A780)*('Fixed assets'!$S$2:$S$1000))","v":0},{"$f":"E692+SUMPRODUCT(('Fixed assets'!$Q$2:$Q$1000=Costs!E$705)*('Fixed assets'!$U$2:$U$1000>Costs!$A780)*('Fixed assets'!$P$2:$P$1000=Costs!$A780)*('Fixed assets'!$R$2:$R$1000))-SUMPRODUCT(('Fixed assets'!$Q$2:$Q$1000=Costs!E$705)*('Fixed assets'!$U$2:$U$1000>Costs!$A780)*('Fixed assets'!$P$2:$P$1000=Costs!$A780)*('Fixed assets'!$S$2:$S$1000))","v":0},{"$f":"F692+SUMPRODUCT(('Fixed assets'!$Q$2:$Q$1000=Costs!F$705)*('Fixed assets'!$U$2:$U$1000>Costs!$A780)*('Fixed assets'!$P$2:$P$1000=Costs!$A780)*('Fixed assets'!$R$2:$R$1000))-SUMPRODUCT(('Fixed assets'!$Q$2:$Q$1000=Costs!F$705)*('Fixed assets'!$U$2:$U$1000>Costs!$A780)*('Fixed assets'!$P$2:$P$1000=Costs!$A780)*('Fixed assets'!$S$2:$S$1000))","v":0},{"$f":"G692+SUMPRODUCT(('Fixed assets'!$Q$2:$Q$1000=Costs!G$705)*('Fixed assets'!$U$2:$U$1000>Costs!$A780)*('Fixed assets'!$P$2:$P$1000=Costs!$A780)*('Fixed assets'!$R$2:$R$1000))-SUMPRODUCT(('Fixed assets'!$Q$2:$Q$1000=Costs!G$705)*('Fixed assets'!$U$2:$U$1000>Costs!$A780)*('Fixed assets'!$P$2:$P$1000=Costs!$A780)*('Fixed assets'!$S$2:$S$1000))","v":0},{"$f":"H692+SUMPRODUCT(('Fixed assets'!$Q$2:$Q$1000=Costs!H$705)*('Fixed assets'!$U$2:$U$1000>Costs!$A780)*('Fixed assets'!$P$2:$P$1000=Costs!$A780)*('Fixed assets'!$R$2:$R$1000))-SUMPRODUCT(('Fixed assets'!$Q$2:$Q$1000=Costs!H$705)*('Fixed assets'!$U$2:$U$1000>Costs!$A780)*('Fixed assets'!$P$2:$P$1000=Costs!$A780)*('Fixed assets'!$S$2:$S$1000))","v":0},{"$f":"I692+SUMPRODUCT(('Fixed assets'!$Q$2:$Q$1000=Costs!I$705)*('Fixed assets'!$U$2:$U$1000>Costs!$A780)*('Fixed assets'!$P$2:$P$1000=Costs!$A780)*('Fixed assets'!$R$2:$R$1000))-SUMPRODUCT(('Fixed assets'!$Q$2:$Q$1000=Costs!I$705)*('Fixed assets'!$U$2:$U$1000>Costs!$A780)*('Fixed assets'!$P$2:$P$1000=Costs!$A780)*('Fixed assets'!$S$2:$S$1000))","v":0},{"$f":"J692+SUMPRODUCT(('Fixed assets'!$Q$2:$Q$1000=Costs!J$705)*('Fixed assets'!$U$2:$U$1000>Costs!$A780)*('Fixed assets'!$P$2:$P$1000=Costs!$A780)*('Fixed assets'!$R$2:$R$1000))-SUMPRODUCT(('Fixed assets'!$Q$2:$Q$1000=Costs!J$705)*('Fixed assets'!$U$2:$U$1000>Costs!$A780)*('Fixed assets'!$P$2:$P$1000=Costs!$A780)*('Fixed assets'!$S$2:$S$1000))","v":0},{"$f":"K692+SUMPRODUCT(('Fixed assets'!$Q$2:$Q$1000=Costs!K$705)*('Fixed assets'!$U$2:$U$1000>Costs!$A780)*('Fixed assets'!$P$2:$P$1000=Costs!$A780)*('Fixed assets'!$R$2:$R$1000))-SUMPRODUCT(('Fixed assets'!$Q$2:$Q$1000=Costs!K$705)*('Fixed assets'!$U$2:$U$1000>Costs!$A780)*('Fixed assets'!$P$2:$P$1000=Costs!$A780)*('Fixed assets'!$S$2:$S$1000))","v":0},{"$f":"L692+SUMPRODUCT(('Fixed assets'!$Q$2:$Q$1000=Costs!L$705)*('Fixed assets'!$U$2:$U$1000>Costs!$A780)*('Fixed assets'!$P$2:$P$1000=Costs!$A780)*('Fixed assets'!$R$2:$R$1000))-SUMPRODUCT(('Fixed assets'!$Q$2:$Q$1000=Costs!L$705)*('Fixed assets'!$U$2:$U$1000>Costs!$A780)*('Fixed assets'!$P$2:$P$1000=Costs!$A780)*('Fixed assets'!$S$2:$S$1000))","v":0},{"$f":"M692+SUMPRODUCT(('Fixed assets'!$Q$2:$Q$1000=Costs!M$705)*('Fixed assets'!$U$2:$U$1000>Costs!$A780)*('Fixed assets'!$P$2:$P$1000=Costs!$A780)*('Fixed assets'!$R$2:$R$1000))-SUMPRODUCT(('Fixed assets'!$Q$2:$Q$1000=Costs!M$705)*('Fixed assets'!$U$2:$U$1000>Costs!$A780)*('Fixed assets'!$P$2:$P$1000=Costs!$A780)*('Fixed assets'!$S$2:$S$1000))","v":0},{"$f":"N692+SUMPRODUCT(('Fixed assets'!$Q$2:$Q$1000=Costs!N$705)*('Fixed assets'!$U$2:$U$1000>Costs!$A780)*('Fixed assets'!$P$2:$P$1000=Costs!$A780)*('Fixed assets'!$R$2:$R$1000))-SUMPRODUCT(('Fixed assets'!$Q$2:$Q$1000=Costs!N$705)*('Fixed assets'!$U$2:$U$1000>Costs!$A780)*('Fixed assets'!$P$2:$P$1000=Costs!$A780)*('Fixed assets'!$S$2:$S$1000))","v":0},{"$f":"O692+SUMPRODUCT(('Fixed assets'!$Q$2:$Q$1000=Costs!O$705)*('Fixed assets'!$U$2:$U$1000>Costs!$A780)*('Fixed assets'!$P$2:$P$1000=Costs!$A780)*('Fixed assets'!$R$2:$R$1000))-SUMPRODUCT(('Fixed assets'!$Q$2:$Q$1000=Costs!O$705)*('Fixed assets'!$U$2:$U$1000>Costs!$A780)*('Fixed assets'!$P$2:$P$1000=Costs!$A780)*('Fixed assets'!$S$2:$S$1000))","v":0},{"$f":"P692+SUMPRODUCT(('Fixed assets'!$Q$2:$Q$1000=Costs!P$705)*('Fixed assets'!$U$2:$U$1000>Costs!$A780)*('Fixed assets'!$P$2:$P$1000=Costs!$A780)*('Fixed assets'!$R$2:$R$1000))-SUMPRODUCT(('Fixed assets'!$Q$2:$Q$1000=Costs!P$705)*('Fixed assets'!$U$2:$U$1000>Costs!$A780)*('Fixed assets'!$P$2:$P$1000=Costs!$A780)*('Fixed assets'!$S$2:$S$1000))","v":0},{"$f":"Q692+SUMPRODUCT(('Fixed assets'!$Q$2:$Q$1000=Costs!Q$705)*('Fixed assets'!$U$2:$U$1000>Costs!$A780)*('Fixed assets'!$P$2:$P$1000=Costs!$A780)*('Fixed assets'!$R$2:$R$1000))-SUMPRODUCT(('Fixed assets'!$Q$2:$Q$1000=Costs!Q$705)*('Fixed assets'!$U$2:$U$1000>Costs!$A780)*('Fixed assets'!$P$2:$P$1000=Costs!$A780)*('Fixed assets'!$S$2:$S$1000))","v":0},{"$f":"R692+SUMPRODUCT(('Fixed assets'!$Q$2:$Q$1000=Costs!R$705)*('Fixed assets'!$U$2:$U$1000>Costs!$A780)*('Fixed assets'!$P$2:$P$1000=Costs!$A780)*('Fixed assets'!$R$2:$R$1000))-SUMPRODUCT(('Fixed assets'!$Q$2:$Q$1000=Costs!R$705)*('Fixed assets'!$U$2:$U$1000>Costs!$A780)*('Fixed assets'!$P$2:$P$1000=Costs!$A780)*('Fixed assets'!$S$2:$S$1000))","v":0},{"$f":"S692+SUMPRODUCT(('Fixed assets'!$Q$2:$Q$1000=Costs!S$705)*('Fixed assets'!$U$2:$U$1000>Costs!$A780)*('Fixed assets'!$P$2:$P$1000=Costs!$A780)*('Fixed assets'!$R$2:$R$1000))-SUMPRODUCT(('Fixed assets'!$Q$2:$Q$1000=Costs!S$705)*('Fixed assets'!$U$2:$U$1000>Costs!$A780)*('Fixed assets'!$P$2:$P$1000=Costs!$A780)*('Fixed assets'!$S$2:$S$1000))","v":0},{"$f":"T692+SUMPRODUCT(('Fixed assets'!$Q$2:$Q$1000=Costs!T$705)*('Fixed assets'!$U$2:$U$1000>Costs!$A780)*('Fixed assets'!$P$2:$P$1000=Costs!$A780)*('Fixed assets'!$R$2:$R$1000))-SUMPRODUCT(('Fixed assets'!$Q$2:$Q$1000=Costs!T$705)*('Fixed assets'!$U$2:$U$1000>Costs!$A780)*('Fixed assets'!$P$2:$P$1000=Costs!$A780)*('Fixed assets'!$S$2:$S$1000))","v":0},{"$f":"U692+SUMPRODUCT(('Fixed assets'!$Q$2:$Q$1000=Costs!U$705)*('Fixed assets'!$U$2:$U$1000>Costs!$A780)*('Fixed assets'!$P$2:$P$1000=Costs!$A780)*('Fixed assets'!$R$2:$R$1000))-SUMPRODUCT(('Fixed assets'!$Q$2:$Q$1000=Costs!U$705)*('Fixed assets'!$U$2:$U$1000>Costs!$A780)*('Fixed assets'!$P$2:$P$1000=Costs!$A780)*('Fixed assets'!$S$2:$S$1000))","v":0},{"$f":"V692+SUMPRODUCT(('Fixed assets'!$Q$2:$Q$1000=Costs!V$705)*('Fixed assets'!$U$2:$U$1000>Costs!$A780)*('Fixed assets'!$P$2:$P$1000=Costs!$A780)*('Fixed assets'!$R$2:$R$1000))-SUMPRODUCT(('Fixed assets'!$Q$2:$Q$1000=Costs!V$705)*('Fixed assets'!$U$2:$U$1000>Costs!$A780)*('Fixed assets'!$P$2:$P$1000=Costs!$A780)*('Fixed assets'!$S$2:$S$1000))","v":0},{"$f":"W692+SUMPRODUCT(('Fixed assets'!$Q$2:$Q$1000=Costs!W$705)*('Fixed assets'!$U$2:$U$1000>Costs!$A780)*('Fixed assets'!$P$2:$P$1000=Costs!$A780)*('Fixed assets'!$R$2:$R$1000))-SUMPRODUCT(('Fixed assets'!$Q$2:$Q$1000=Costs!W$705)*('Fixed assets'!$U$2:$U$1000>Costs!$A780)*('Fixed assets'!$P$2:$P$1000=Costs!$A780)*('Fixed assets'!$S$2:$S$1000))","v":0},{"$f":"X692+SUMPRODUCT(('Fixed assets'!$Q$2:$Q$1000=Costs!X$705)*('Fixed assets'!$U$2:$U$1000>Costs!$A780)*('Fixed assets'!$P$2:$P$1000=Costs!$A780)*('Fixed assets'!$R$2:$R$1000))-SUMPRODUCT(('Fixed assets'!$Q$2:$Q$1000=Costs!X$705)*('Fixed assets'!$U$2:$U$1000>Costs!$A780)*('Fixed assets'!$P$2:$P$1000=Costs!$A780)*('Fixed assets'!$S$2:$S$1000))","v":0},{"$f":"Y692+SUMPRODUCT(('Fixed assets'!$Q$2:$Q$1000=Costs!Y$705)*('Fixed assets'!$U$2:$U$1000>Costs!$A780)*('Fixed assets'!$P$2:$P$1000=Costs!$A780)*('Fixed assets'!$R$2:$R$1000))-SUMPRODUCT(('Fixed assets'!$Q$2:$Q$1000=Costs!Y$705)*('Fixed assets'!$U$2:$U$1000>Costs!$A780)*('Fixed assets'!$P$2:$P$1000=Costs!$A780)*('Fixed assets'!$S$2:$S$1000))","v":0},{"$f":"Z692+SUMPRODUCT(('Fixed assets'!$Q$2:$Q$1000=Costs!Z$705)*('Fixed assets'!$U$2:$U$1000>Costs!$A780)*('Fixed assets'!$P$2:$P$1000=Costs!$A780)*('Fixed assets'!$R$2:$R$1000))-SUMPRODUCT(('Fixed assets'!$Q$2:$Q$1000=Costs!Z$705)*('Fixed assets'!$U$2:$U$1000>Costs!$A780)*('Fixed assets'!$P$2:$P$1000=Costs!$A780)*('Fixed assets'!$S$2:$S$1000))","v":0},{"$f":"AA692+SUMPRODUCT(('Fixed assets'!$Q$2:$Q$1000=Costs!AA$705)*('Fixed assets'!$U$2:$U$1000>Costs!$A780)*('Fixed assets'!$P$2:$P$1000=Costs!$A780)*('Fixed assets'!$R$2:$R$1000))-SUMPRODUCT(('Fixed assets'!$Q$2:$Q$1000=Costs!AA$705)*('Fixed assets'!$U$2:$U$1000>Costs!$A780)*('Fixed assets'!$P$2:$P$1000=Costs!$A780)*('Fixed assets'!$S$2:$S$1000))","v":0},{"$f":"AB692+SUMPRODUCT(('Fixed assets'!$Q$2:$Q$1000=Costs!AB$705)*('Fixed assets'!$U$2:$U$1000>Costs!$A780)*('Fixed assets'!$P$2:$P$1000=Costs!$A780)*('Fixed assets'!$R$2:$R$1000))-SUMPRODUCT(('Fixed assets'!$Q$2:$Q$1000=Costs!AB$705)*('Fixed assets'!$U$2:$U$1000>Costs!$A780)*('Fixed assets'!$P$2:$P$1000=Costs!$A780)*('Fixed assets'!$S$2:$S$1000))","v":0},{"$f":"AC692+SUMPRODUCT(('Fixed assets'!$Q$2:$Q$1000=Costs!AC$705)*('Fixed assets'!$U$2:$U$1000>Costs!$A780)*('Fixed assets'!$P$2:$P$1000=Costs!$A780)*('Fixed assets'!$R$2:$R$1000))-SUMPRODUCT(('Fixed assets'!$Q$2:$Q$1000=Costs!AC$705)*('Fixed assets'!$U$2:$U$1000>Costs!$A780)*('Fixed assets'!$P$2:$P$1000=Costs!$A780)*('Fixed assets'!$S$2:$S$1000))","v":0},{"$f":"AD692+SUMPRODUCT(('Fixed assets'!$Q$2:$Q$1000=Costs!AD$705)*('Fixed assets'!$U$2:$U$1000>Costs!$A780)*('Fixed assets'!$P$2:$P$1000=Costs!$A780)*('Fixed assets'!$R$2:$R$1000))-SUMPRODUCT(('Fixed assets'!$Q$2:$Q$1000=Costs!AD$705)*('Fixed assets'!$U$2:$U$1000>Costs!$A780)*('Fixed assets'!$P$2:$P$1000=Costs!$A780)*('Fixed assets'!$S$2:$S$1000))","v":0},{"$f":"AE692+SUMPRODUCT(('Fixed assets'!$Q$2:$Q$1000=Costs!AE$705)*('Fixed assets'!$U$2:$U$1000>Costs!$A780)*('Fixed assets'!$P$2:$P$1000=Costs!$A780)*('Fixed assets'!$R$2:$R$1000))-SUMPRODUCT(('Fixed assets'!$Q$2:$Q$1000=Costs!AE$705)*('Fixed assets'!$U$2:$U$1000>Costs!$A780)*('Fixed assets'!$P$2:$P$1000=Costs!$A780)*('Fixed assets'!$S$2:$S$1000))","v":0},{"$f":"AF692+SUMPRODUCT(('Fixed assets'!$Q$2:$Q$1000=Costs!AF$705)*('Fixed assets'!$U$2:$U$1000>Costs!$A780)*('Fixed assets'!$P$2:$P$1000=Costs!$A780)*('Fixed assets'!$R$2:$R$1000))-SUMPRODUCT(('Fixed assets'!$Q$2:$Q$1000=Costs!AF$705)*('Fixed assets'!$U$2:$U$1000>Costs!$A780)*('Fixed assets'!$P$2:$P$1000=Costs!$A780)*('Fixed assets'!$S$2:$S$1000))","v":0},{"$f":"AG692+SUMPRODUCT(('Fixed assets'!$Q$2:$Q$1000=Costs!AG$705)*('Fixed assets'!$U$2:$U$1000>Costs!$A780)*('Fixed assets'!$P$2:$P$1000=Costs!$A780)*('Fixed assets'!$R$2:$R$1000))-SUMPRODUCT(('Fixed assets'!$Q$2:$Q$1000=Costs!AG$705)*('Fixed assets'!$U$2:$U$1000>Costs!$A780)*('Fixed assets'!$P$2:$P$1000=Costs!$A780)*('Fixed assets'!$S$2:$S$1000))","v":0},{"$f":"AH692+SUMPRODUCT(('Fixed assets'!$Q$2:$Q$1000=Costs!AH$705)*('Fixed assets'!$U$2:$U$1000>Costs!$A780)*('Fixed assets'!$P$2:$P$1000=Costs!$A780)*('Fixed assets'!$R$2:$R$1000))-SUMPRODUCT(('Fixed assets'!$Q$2:$Q$1000=Costs!AH$705)*('Fixed assets'!$U$2:$U$1000>Costs!$A780)*('Fixed assets'!$P$2:$P$1000=Costs!$A780)*('Fixed assets'!$S$2:$S$1000))","v":0},{"$f":"AI692+SUMPRODUCT(('Fixed assets'!$Q$2:$Q$1000=Costs!AI$705)*('Fixed assets'!$U$2:$U$1000>Costs!$A780)*('Fixed assets'!$P$2:$P$1000=Costs!$A780)*('Fixed assets'!$R$2:$R$1000))-SUMPRODUCT(('Fixed assets'!$Q$2:$Q$1000=Costs!AI$705)*('Fixed assets'!$U$2:$U$1000>Costs!$A780)*('Fixed assets'!$P$2:$P$1000=Costs!$A780)*('Fixed assets'!$S$2:$S$1000))","v":0},{"$f":"AJ692+SUMPRODUCT(('Fixed assets'!$Q$2:$Q$1000=Costs!AJ$705)*('Fixed assets'!$U$2:$U$1000>Costs!$A780)*('Fixed assets'!$P$2:$P$1000=Costs!$A780)*('Fixed assets'!$R$2:$R$1000))-SUMPRODUCT(('Fixed assets'!$Q$2:$Q$1000=Costs!AJ$705)*('Fixed assets'!$U$2:$U$1000>Costs!$A780)*('Fixed assets'!$P$2:$P$1000=Costs!$A780)*('Fixed assets'!$S$2:$S$1000))","v":0},{"$f":"AK692+SUMPRODUCT(('Fixed assets'!$Q$2:$Q$1000=Costs!AK$705)*('Fixed assets'!$U$2:$U$1000>Costs!$A780)*('Fixed assets'!$P$2:$P$1000=Costs!$A780)*('Fixed assets'!$R$2:$R$1000))-SUMPRODUCT(('Fixed assets'!$Q$2:$Q$1000=Costs!AK$705)*('Fixed assets'!$U$2:$U$1000>Costs!$A780)*('Fixed assets'!$P$2:$P$1000=Costs!$A780)*('Fixed assets'!$S$2:$S$1000))","v":0},{"$f":"AL692+SUMPRODUCT(('Fixed assets'!$Q$2:$Q$1000=Costs!AL$705)*('Fixed assets'!$U$2:$U$1000>Costs!$A780)*('Fixed assets'!$P$2:$P$1000=Costs!$A780)*('Fixed assets'!$R$2:$R$1000))-SUMPRODUCT(('Fixed assets'!$Q$2:$Q$1000=Costs!AL$705)*('Fixed assets'!$U$2:$U$1000>Costs!$A780)*('Fixed assets'!$P$2:$P$1000=Costs!$A780)*('Fixed assets'!$S$2:$S$1000))","v":0},{"$f":"AM692+SUMPRODUCT(('Fixed assets'!$Q$2:$Q$1000=Costs!AM$705)*('Fixed assets'!$U$2:$U$1000>Costs!$A780)*('Fixed assets'!$P$2:$P$1000=Costs!$A780)*('Fixed assets'!$R$2:$R$1000))-SUMPRODUCT(('Fixed assets'!$Q$2:$Q$1000=Costs!AM$705)*('Fixed assets'!$U$2:$U$1000>Costs!$A780)*('Fixed assets'!$P$2:$P$1000=Costs!$A780)*('Fixed assets'!$S$2:$S$1000))","v":0},{"$f":"AN692+SUMPRODUCT(('Fixed assets'!$Q$2:$Q$1000=Costs!AN$705)*('Fixed assets'!$U$2:$U$1000>Costs!$A780)*('Fixed assets'!$P$2:$P$1000=Costs!$A780)*('Fixed assets'!$R$2:$R$1000))-SUMPRODUCT(('Fixed assets'!$Q$2:$Q$1000=Costs!AN$705)*('Fixed assets'!$U$2:$U$1000>Costs!$A780)*('Fixed assets'!$P$2:$P$1000=Costs!$A780)*('Fixed assets'!$S$2:$S$1000))","v":0},{"$f":"AO692+SUMPRODUCT(('Fixed assets'!$Q$2:$Q$1000=Costs!AO$705)*('Fixed assets'!$U$2:$U$1000>Costs!$A780)*('Fixed assets'!$P$2:$P$1000=Costs!$A780)*('Fixed assets'!$R$2:$R$1000))-SUMPRODUCT(('Fixed assets'!$Q$2:$Q$1000=Costs!AO$705)*('Fixed assets'!$U$2:$U$1000>Costs!$A780)*('Fixed assets'!$P$2:$P$1000=Costs!$A780)*('Fixed assets'!$S$2:$S$1000))","v":0},{"$f":"AP692+SUMPRODUCT(('Fixed assets'!$Q$2:$Q$1000=Costs!AP$705)*('Fixed assets'!$U$2:$U$1000>Costs!$A780)*('Fixed assets'!$P$2:$P$1000=Costs!$A780)*('Fixed assets'!$R$2:$R$1000))-SUMPRODUCT(('Fixed assets'!$Q$2:$Q$1000=Costs!AP$705)*('Fixed assets'!$U$2:$U$1000>Costs!$A780)*('Fixed assets'!$P$2:$P$1000=Costs!$A780)*('Fixed assets'!$S$2:$S$1000))","v":0},{"$f":"AQ692+SUMPRODUCT(('Fixed assets'!$Q$2:$Q$1000=Costs!AQ$705)*('Fixed assets'!$U$2:$U$1000>Costs!$A780)*('Fixed assets'!$P$2:$P$1000=Costs!$A780)*('Fixed assets'!$R$2:$R$1000))-SUMPRODUCT(('Fixed assets'!$Q$2:$Q$1000=Costs!AQ$705)*('Fixed assets'!$U$2:$U$1000>Costs!$A780)*('Fixed assets'!$P$2:$P$1000=Costs!$A780)*('Fixed assets'!$S$2:$S$1000))","v":0}]
[2090,0,{"$f":"C693+SUMPRODUCT(('Fixed assets'!$Q$2:$Q$1000=Costs!C$705)*('Fixed assets'!$U$2:$U$1000>Costs!$A781)*('Fixed assets'!$P$2:$P$1000=Costs!$A781)*('Fixed assets'!$R$2:$R$1000))-SUMPRODUCT(('Fixed assets'!$Q$2:$Q$1000=Costs!C$705)*('Fixed assets'!$U$2:$U$1000>Costs!$A781)*('Fixed assets'!$P$2:$P$1000=Costs!$A781)*('Fixed assets'!$S$2:$S$1000))","v":0},{"$f":"D693+SUMPRODUCT(('Fixed assets'!$Q$2:$Q$1000=Costs!D$705)*('Fixed assets'!$U$2:$U$1000>Costs!$A781)*('Fixed assets'!$P$2:$P$1000=Costs!$A781)*('Fixed assets'!$R$2:$R$1000))-SUMPRODUCT(('Fixed assets'!$Q$2:$Q$1000=Costs!D$705)*('Fixed assets'!$U$2:$U$1000>Costs!$A781)*('Fixed assets'!$P$2:$P$1000=Costs!$A781)*('Fixed assets'!$S$2:$S$1000))","v":0},{"$f":"E693+SUMPRODUCT(('Fixed assets'!$Q$2:$Q$1000=Costs!E$705)*('Fixed assets'!$U$2:$U$1000>Costs!$A781)*('Fixed assets'!$P$2:$P$1000=Costs!$A781)*('Fixed assets'!$R$2:$R$1000))-SUMPRODUCT(('Fixed assets'!$Q$2:$Q$1000=Costs!E$705)*('Fixed assets'!$U$2:$U$1000>Costs!$A781)*('Fixed assets'!$P$2:$P$1000=Costs!$A781)*('Fixed assets'!$S$2:$S$1000))","v":0},{"$f":"F693+SUMPRODUCT(('Fixed assets'!$Q$2:$Q$1000=Costs!F$705)*('Fixed assets'!$U$2:$U$1000>Costs!$A781)*('Fixed assets'!$P$2:$P$1000=Costs!$A781)*('Fixed assets'!$R$2:$R$1000))-SUMPRODUCT(('Fixed assets'!$Q$2:$Q$1000=Costs!F$705)*('Fixed assets'!$U$2:$U$1000>Costs!$A781)*('Fixed assets'!$P$2:$P$1000=Costs!$A781)*('Fixed assets'!$S$2:$S$1000))","v":0},{"$f":"G693+SUMPRODUCT(('Fixed assets'!$Q$2:$Q$1000=Costs!G$705)*('Fixed assets'!$U$2:$U$1000>Costs!$A781)*('Fixed assets'!$P$2:$P$1000=Costs!$A781)*('Fixed assets'!$R$2:$R$1000))-SUMPRODUCT(('Fixed assets'!$Q$2:$Q$1000=Costs!G$705)*('Fixed assets'!$U$2:$U$1000>Costs!$A781)*('Fixed assets'!$P$2:$P$1000=Costs!$A781)*('Fixed assets'!$S$2:$S$1000))","v":0},{"$f":"H693+SUMPRODUCT(('Fixed assets'!$Q$2:$Q$1000=Costs!H$705)*('Fixed assets'!$U$2:$U$1000>Costs!$A781)*('Fixed assets'!$P$2:$P$1000=Costs!$A781)*('Fixed assets'!$R$2:$R$1000))-SUMPRODUCT(('Fixed assets'!$Q$2:$Q$1000=Costs!H$705)*('Fixed assets'!$U$2:$U$1000>Costs!$A781)*('Fixed assets'!$P$2:$P$1000=Costs!$A781)*('Fixed assets'!$S$2:$S$1000))","v":0},{"$f":"I693+SUMPRODUCT(('Fixed assets'!$Q$2:$Q$1000=Costs!I$705)*('Fixed assets'!$U$2:$U$1000>Costs!$A781)*('Fixed assets'!$P$2:$P$1000=Costs!$A781)*('Fixed assets'!$R$2:$R$1000))-SUMPRODUCT(('Fixed assets'!$Q$2:$Q$1000=Costs!I$705)*('Fixed assets'!$U$2:$U$1000>Costs!$A781)*('Fixed assets'!$P$2:$P$1000=Costs!$A781)*('Fixed assets'!$S$2:$S$1000))","v":0},{"$f":"J693+SUMPRODUCT(('Fixed assets'!$Q$2:$Q$1000=Costs!J$705)*('Fixed assets'!$U$2:$U$1000>Costs!$A781)*('Fixed assets'!$P$2:$P$1000=Costs!$A781)*('Fixed assets'!$R$2:$R$1000))-SUMPRODUCT(('Fixed assets'!$Q$2:$Q$1000=Costs!J$705)*('Fixed assets'!$U$2:$U$1000>Costs!$A781)*('Fixed assets'!$P$2:$P$1000=Costs!$A781)*('Fixed assets'!$S$2:$S$1000))","v":0},{"$f":"K693+SUMPRODUCT(('Fixed assets'!$Q$2:$Q$1000=Costs!K$705)*('Fixed assets'!$U$2:$U$1000>Costs!$A781)*('Fixed assets'!$P$2:$P$1000=Costs!$A781)*('Fixed assets'!$R$2:$R$1000))-SUMPRODUCT(('Fixed assets'!$Q$2:$Q$1000=Costs!K$705)*('Fixed assets'!$U$2:$U$1000>Costs!$A781)*('Fixed assets'!$P$2:$P$1000=Costs!$A781)*('Fixed assets'!$S$2:$S$1000))","v":0},{"$f":"L693+SUMPRODUCT(('Fixed assets'!$Q$2:$Q$1000=Costs!L$705)*('Fixed assets'!$U$2:$U$1000>Costs!$A781)*('Fixed assets'!$P$2:$P$1000=Costs!$A781)*('Fixed assets'!$R$2:$R$1000))-SUMPRODUCT(('Fixed assets'!$Q$2:$Q$1000=Costs!L$705)*('Fixed assets'!$U$2:$U$1000>Costs!$A781)*('Fixed assets'!$P$2:$P$1000=Costs!$A781)*('Fixed assets'!$S$2:$S$1000))","v":0},{"$f":"M693+SUMPRODUCT(('Fixed assets'!$Q$2:$Q$1000=Costs!M$705)*('Fixed assets'!$U$2:$U$1000>Costs!$A781)*('Fixed assets'!$P$2:$P$1000=Costs!$A781)*('Fixed assets'!$R$2:$R$1000))-SUMPRODUCT(('Fixed assets'!$Q$2:$Q$1000=Costs!M$705)*('Fixed assets'!$U$2:$U$1000>Costs!$A781)*('Fixed assets'!$P$2:$P$1000=Costs!$A781)*('Fixed assets'!$S$2:$S$1000))","v":0},{"$f":"N693+SUMPRODUCT(('Fixed assets'!$Q$2:$Q$1000=Costs!N$705)*('Fixed assets'!$U$2:$U$1000>Costs!$A781)*('Fixed assets'!$P$2:$P$1000=Costs!$A781)*('Fixed assets'!$R$2:$R$1000))-SUMPRODUCT(('Fixed assets'!$Q$2:$Q$1000=Costs!N$705)*('Fixed assets'!$U$2:$U$1000>Costs!$A781)*('Fixed assets'!$P$2:$P$1000=Costs!$A781)*('Fixed assets'!$S$2:$S$1000))","v":0},{"$f":"O693+SUMPRODUCT(('Fixed assets'!$Q$2:$Q$1000=Costs!O$705)*('Fixed assets'!$U$2:$U$1000>Costs!$A781)*('Fixed assets'!$P$2:$P$1000=Costs!$A781)*('Fixed assets'!$R$2:$R$1000))-SUMPRODUCT(('Fixed assets'!$Q$2:$Q$1000=Costs!O$705)*('Fixed assets'!$U$2:$U$1000>Costs!$A781)*('Fixed assets'!$P$2:$P$1000=Costs!$A781)*('Fixed assets'!$S$2:$S$1000))","v":0},{"$f":"P693+SUMPRODUCT(('Fixed assets'!$Q$2:$Q$1000=Costs!P$705)*('Fixed assets'!$U$2:$U$1000>Costs!$A781)*('Fixed assets'!$P$2:$P$1000=Costs!$A781)*('Fixed assets'!$R$2:$R$1000))-SUMPRODUCT(('Fixed assets'!$Q$2:$Q$1000=Costs!P$705)*('Fixed assets'!$U$2:$U$1000>Costs!$A781)*('Fixed assets'!$P$2:$P$1000=Costs!$A781)*('Fixed assets'!$S$2:$S$1000))","v":0},{"$f":"Q693+SUMPRODUCT(('Fixed assets'!$Q$2:$Q$1000=Costs!Q$705)*('Fixed assets'!$U$2:$U$1000>Costs!$A781)*('Fixed assets'!$P$2:$P$1000=Costs!$A781)*('Fixed assets'!$R$2:$R$1000))-SUMPRODUCT(('Fixed assets'!$Q$2:$Q$1000=Costs!Q$705)*('Fixed assets'!$U$2:$U$1000>Costs!$A781)*('Fixed assets'!$P$2:$P$1000=Costs!$A781)*('Fixed assets'!$S$2:$S$1000))","v":0},{"$f":"R693+SUMPRODUCT(('Fixed assets'!$Q$2:$Q$1000=Costs!R$705)*('Fixed assets'!$U$2:$U$1000>Costs!$A781)*('Fixed assets'!$P$2:$P$1000=Costs!$A781)*('Fixed assets'!$R$2:$R$1000))-SUMPRODUCT(('Fixed assets'!$Q$2:$Q$1000=Costs!R$705)*('Fixed assets'!$U$2:$U$1000>Costs!$A781)*('Fixed assets'!$P$2:$P$1000=Costs!$A781)*('Fixed assets'!$S$2:$S$1000))","v":0},{"$f":"S693+SUMPRODUCT(('Fixed assets'!$Q$2:$Q$1000=Costs!S$705)*('Fixed assets'!$U$2:$U$1000>Costs!$A781)*('Fixed assets'!$P$2:$P$1000=Costs!$A781)*('Fixed assets'!$R$2:$R$1000))-SUMPRODUCT(('Fixed assets'!$Q$2:$Q$1000=Costs!S$705)*('Fixed assets'!$U$2:$U$1000>Costs!$A781)*('Fixed assets'!$P$2:$P$1000=Costs!$A781)*('Fixed assets'!$S$2:$S$1000))","v":0},{"$f":"T693+SUMPRODUCT(('Fixed assets'!$Q$2:$Q$1000=Costs!T$705)*('Fixed assets'!$U$2:$U$1000>Costs!$A781)*('Fixed assets'!$P$2:$P$1000=Costs!$A781)*('Fixed assets'!$R$2:$R$1000))-SUMPRODUCT(('Fixed assets'!$Q$2:$Q$1000=Costs!T$705)*('Fixed assets'!$U$2:$U$1000>Costs!$A781)*('Fixed assets'!$P$2:$P$1000=Costs!$A781)*('Fixed assets'!$S$2:$S$1000))","v":0},{"$f":"U693+SUMPRODUCT(('Fixed assets'!$Q$2:$Q$1000=Costs!U$705)*('Fixed assets'!$U$2:$U$1000>Costs!$A781)*('Fixed assets'!$P$2:$P$1000=Costs!$A781)*('Fixed assets'!$R$2:$R$1000))-SUMPRODUCT(('Fixed assets'!$Q$2:$Q$1000=Costs!U$705)*('Fixed assets'!$U$2:$U$1000>Costs!$A781)*('Fixed assets'!$P$2:$P$1000=Costs!$A781)*('Fixed assets'!$S$2:$S$1000))","v":0},{"$f":"V693+SUMPRODUCT(('Fixed assets'!$Q$2:$Q$1000=Costs!V$705)*('Fixed assets'!$U$2:$U$1000>Costs!$A781)*('Fixed assets'!$P$2:$P$1000=Costs!$A781)*('Fixed assets'!$R$2:$R$1000))-SUMPRODUCT(('Fixed assets'!$Q$2:$Q$1000=Costs!V$705)*('Fixed assets'!$U$2:$U$1000>Costs!$A781)*('Fixed assets'!$P$2:$P$1000=Costs!$A781)*('Fixed assets'!$S$2:$S$1000))","v":0},{"$f":"W693+SUMPRODUCT(('Fixed assets'!$Q$2:$Q$1000=Costs!W$705)*('Fixed assets'!$U$2:$U$1000>Costs!$A781)*('Fixed assets'!$P$2:$P$1000=Costs!$A781)*('Fixed assets'!$R$2:$R$1000))-SUMPRODUCT(('Fixed assets'!$Q$2:$Q$1000=Costs!W$705)*('Fixed assets'!$U$2:$U$1000>Costs!$A781)*('Fixed assets'!$P$2:$P$1000=Costs!$A781)*('Fixed assets'!$S$2:$S$1000))","v":0},{"$f":"X693+SUMPRODUCT(('Fixed assets'!$Q$2:$Q$1000=Costs!X$705)*('Fixed assets'!$U$2:$U$1000>Costs!$A781)*('Fixed assets'!$P$2:$P$1000=Costs!$A781)*('Fixed assets'!$R$2:$R$1000))-SUMPRODUCT(('Fixed assets'!$Q$2:$Q$1000=Costs!X$705)*('Fixed assets'!$U$2:$U$1000>Costs!$A781)*('Fixed assets'!$P$2:$P$1000=Costs!$A781)*('Fixed assets'!$S$2:$S$1000))","v":0},{"$f":"Y693+SUMPRODUCT(('Fixed assets'!$Q$2:$Q$1000=Costs!Y$705)*('Fixed assets'!$U$2:$U$1000>Costs!$A781)*('Fixed assets'!$P$2:$P$1000=Costs!$A781)*('Fixed assets'!$R$2:$R$1000))-SUMPRODUCT(('Fixed assets'!$Q$2:$Q$1000=Costs!Y$705)*('Fixed assets'!$U$2:$U$1000>Costs!$A781)*('Fixed assets'!$P$2:$P$1000=Costs!$A781)*('Fixed assets'!$S$2:$S$1000))","v":0},{"$f":"Z693+SUMPRODUCT(('Fixed assets'!$Q$2:$Q$1000=Costs!Z$705)*('Fixed assets'!$U$2:$U$1000>Costs!$A781)*('Fixed assets'!$P$2:$P$1000=Costs!$A781)*('Fixed assets'!$R$2:$R$1000))-SUMPRODUCT(('Fixed assets'!$Q$2:$Q$1000=Costs!Z$705)*('Fixed assets'!$U$2:$U$1000>Costs!$A781)*('Fixed assets'!$P$2:$P$1000=Costs!$A781)*('Fixed assets'!$S$2:$S$1000))","v":0},{"$f":"AA693+SUMPRODUCT(('Fixed assets'!$Q$2:$Q$1000=Costs!AA$705)*('Fixed assets'!$U$2:$U$1000>Costs!$A781)*('Fixed assets'!$P$2:$P$1000=Costs!$A781)*('Fixed assets'!$R$2:$R$1000))-SUMPRODUCT(('Fixed assets'!$Q$2:$Q$1000=Costs!AA$705)*('Fixed assets'!$U$2:$U$1000>Costs!$A781)*('Fixed assets'!$P$2:$P$1000=Costs!$A781)*('Fixed assets'!$S$2:$S$1000))","v":0},{"$f":"AB693+SUMPRODUCT(('Fixed assets'!$Q$2:$Q$1000=Costs!AB$705)*('Fixed assets'!$U$2:$U$1000>Costs!$A781)*('Fixed assets'!$P$2:$P$1000=Costs!$A781)*('Fixed assets'!$R$2:$R$1000))-SUMPRODUCT(('Fixed assets'!$Q$2:$Q$1000=Costs!AB$705)*('Fixed assets'!$U$2:$U$1000>Costs!$A781)*('Fixed assets'!$P$2:$P$1000=Costs!$A781)*('Fixed assets'!$S$2:$S$1000))","v":0},{"$f":"AC693+SUMPRODUCT(('Fixed assets'!$Q$2:$Q$1000=Costs!AC$705)*('Fixed assets'!$U$2:$U$1000>Costs!$A781)*('Fixed assets'!$P$2:$P$1000=Costs!$A781)*('Fixed assets'!$R$2:$R$1000))-SUMPRODUCT(('Fixed assets'!$Q$2:$Q$1000=Costs!AC$705)*('Fixed assets'!$U$2:$U$1000>Costs!$A781)*('Fixed assets'!$P$2:$P$1000=Costs!$A781)*('Fixed assets'!$S$2:$S$1000))","v":0},{"$f":"AD693+SUMPRODUCT(('Fixed assets'!$Q$2:$Q$1000=Costs!AD$705)*('Fixed assets'!$U$2:$U$1000>Costs!$A781)*('Fixed assets'!$P$2:$P$1000=Costs!$A781)*('Fixed assets'!$R$2:$R$1000))-SUMPRODUCT(('Fixed assets'!$Q$2:$Q$1000=Costs!AD$705)*('Fixed assets'!$U$2:$U$1000>Costs!$A781)*('Fixed assets'!$P$2:$P$1000=Costs!$A781)*('Fixed assets'!$S$2:$S$1000))","v":0},{"$f":"AE693+SUMPRODUCT(('Fixed assets'!$Q$2:$Q$1000=Costs!AE$705)*('Fixed assets'!$U$2:$U$1000>Costs!$A781)*('Fixed assets'!$P$2:$P$1000=Costs!$A781)*('Fixed assets'!$R$2:$R$1000))-SUMPRODUCT(('Fixed assets'!$Q$2:$Q$1000=Costs!AE$705)*('Fixed assets'!$U$2:$U$1000>Costs!$A781)*('Fixed assets'!$P$2:$P$1000=Costs!$A781)*('Fixed assets'!$S$2:$S$1000))","v":0},{"$f":"AF693+SUMPRODUCT(('Fixed assets'!$Q$2:$Q$1000=Costs!AF$705)*('Fixed assets'!$U$2:$U$1000>Costs!$A781)*('Fixed assets'!$P$2:$P$1000=Costs!$A781)*('Fixed assets'!$R$2:$R$1000))-SUMPRODUCT(('Fixed assets'!$Q$2:$Q$1000=Costs!AF$705)*('Fixed assets'!$U$2:$U$1000>Costs!$A781)*('Fixed assets'!$P$2:$P$1000=Costs!$A781)*('Fixed assets'!$S$2:$S$1000))","v":0},{"$f":"AG693+SUMPRODUCT(('Fixed assets'!$Q$2:$Q$1000=Costs!AG$705)*('Fixed assets'!$U$2:$U$1000>Costs!$A781)*('Fixed assets'!$P$2:$P$1000=Costs!$A781)*('Fixed assets'!$R$2:$R$1000))-SUMPRODUCT(('Fixed assets'!$Q$2:$Q$1000=Costs!AG$705)*('Fixed assets'!$U$2:$U$1000>Costs!$A781)*('Fixed assets'!$P$2:$P$1000=Costs!$A781)*('Fixed assets'!$S$2:$S$1000))","v":0},{"$f":"AH693+SUMPRODUCT(('Fixed assets'!$Q$2:$Q$1000=Costs!AH$705)*('Fixed assets'!$U$2:$U$1000>Costs!$A781)*('Fixed assets'!$P$2:$P$1000=Costs!$A781)*('Fixed assets'!$R$2:$R$1000))-SUMPRODUCT(('Fixed assets'!$Q$2:$Q$1000=Costs!AH$705)*('Fixed assets'!$U$2:$U$1000>Costs!$A781)*('Fixed assets'!$P$2:$P$1000=Costs!$A781)*('Fixed assets'!$S$2:$S$1000))","v":0},{"$f":"AI693+SUMPRODUCT(('Fixed assets'!$Q$2:$Q$1000=Costs!AI$705)*('Fixed assets'!$U$2:$U$1000>Costs!$A781)*('Fixed assets'!$P$2:$P$1000=Costs!$A781)*('Fixed assets'!$R$2:$R$1000))-SUMPRODUCT(('Fixed assets'!$Q$2:$Q$1000=Costs!AI$705)*('Fixed assets'!$U$2:$U$1000>Costs!$A781)*('Fixed assets'!$P$2:$P$1000=Costs!$A781)*('Fixed assets'!$S$2:$S$1000))","v":0},{"$f":"AJ693+SUMPRODUCT(('Fixed assets'!$Q$2:$Q$1000=Costs!AJ$705)*('Fixed assets'!$U$2:$U$1000>Costs!$A781)*('Fixed assets'!$P$2:$P$1000=Costs!$A781)*('Fixed assets'!$R$2:$R$1000))-SUMPRODUCT(('Fixed assets'!$Q$2:$Q$1000=Costs!AJ$705)*('Fixed assets'!$U$2:$U$1000>Costs!$A781)*('Fixed assets'!$P$2:$P$1000=Costs!$A781)*('Fixed assets'!$S$2:$S$1000))","v":0},{"$f":"AK693+SUMPRODUCT(('Fixed assets'!$Q$2:$Q$1000=Costs!AK$705)*('Fixed assets'!$U$2:$U$1000>Costs!$A781)*('Fixed assets'!$P$2:$P$1000=Costs!$A781)*('Fixed assets'!$R$2:$R$1000))-SUMPRODUCT(('Fixed assets'!$Q$2:$Q$1000=Costs!AK$705)*('Fixed assets'!$U$2:$U$1000>Costs!$A781)*('Fixed assets'!$P$2:$P$1000=Costs!$A781)*('Fixed assets'!$S$2:$S$1000))","v":0},{"$f":"AL693+SUMPRODUCT(('Fixed assets'!$Q$2:$Q$1000=Costs!AL$705)*('Fixed assets'!$U$2:$U$1000>Costs!$A781)*('Fixed assets'!$P$2:$P$1000=Costs!$A781)*('Fixed assets'!$R$2:$R$1000))-SUMPRODUCT(('Fixed assets'!$Q$2:$Q$1000=Costs!AL$705)*('Fixed assets'!$U$2:$U$1000>Costs!$A781)*('Fixed assets'!$P$2:$P$1000=Costs!$A781)*('Fixed assets'!$S$2:$S$1000))","v":0},{"$f":"AM693+SUMPRODUCT(('Fixed assets'!$Q$2:$Q$1000=Costs!AM$705)*('Fixed assets'!$U$2:$U$1000>Costs!$A781)*('Fixed assets'!$P$2:$P$1000=Costs!$A781)*('Fixed assets'!$R$2:$R$1000))-SUMPRODUCT(('Fixed assets'!$Q$2:$Q$1000=Costs!AM$705)*('Fixed assets'!$U$2:$U$1000>Costs!$A781)*('Fixed assets'!$P$2:$P$1000=Costs!$A781)*('Fixed assets'!$S$2:$S$1000))","v":0},{"$f":"AN693+SUMPRODUCT(('Fixed assets'!$Q$2:$Q$1000=Costs!AN$705)*('Fixed assets'!$U$2:$U$1000>Costs!$A781)*('Fixed assets'!$P$2:$P$1000=Costs!$A781)*('Fixed assets'!$R$2:$R$1000))-SUMPRODUCT(('Fixed assets'!$Q$2:$Q$1000=Costs!AN$705)*('Fixed assets'!$U$2:$U$1000>Costs!$A781)*('Fixed assets'!$P$2:$P$1000=Costs!$A781)*('Fixed assets'!$S$2:$S$1000))","v":0},{"$f":"AO693+SUMPRODUCT(('Fixed assets'!$Q$2:$Q$1000=Costs!AO$705)*('Fixed assets'!$U$2:$U$1000>Costs!$A781)*('Fixed assets'!$P$2:$P$1000=Costs!$A781)*('Fixed assets'!$R$2:$R$1000))-SUMPRODUCT(('Fixed assets'!$Q$2:$Q$1000=Costs!AO$705)*('Fixed assets'!$U$2:$U$1000>Costs!$A781)*('Fixed assets'!$P$2:$P$1000=Costs!$A781)*('Fixed assets'!$S$2:$S$1000))","v":0},{"$f":"AP693+SUMPRODUCT(('Fixed assets'!$Q$2:$Q$1000=Costs!AP$705)*('Fixed assets'!$U$2:$U$1000>Costs!$A781)*('Fixed assets'!$P$2:$P$1000=Costs!$A781)*('Fixed assets'!$R$2:$R$1000))-SUMPRODUCT(('Fixed assets'!$Q$2:$Q$1000=Costs!AP$705)*('Fixed assets'!$U$2:$U$1000>Costs!$A781)*('Fixed assets'!$P$2:$P$1000=Costs!$A781)*('Fixed assets'!$S$2:$S$1000))","v":0},{"$f":"AQ693+SUMPRODUCT(('Fixed assets'!$Q$2:$Q$1000=Costs!AQ$705)*('Fixed assets'!$U$2:$U$1000>Costs!$A781)*('Fixed assets'!$P$2:$P$1000=Costs!$A781)*('Fixed assets'!$R$2:$R$1000))-SUMPRODUCT(('Fixed assets'!$Q$2:$Q$1000=Costs!AQ$705)*('Fixed assets'!$U$2:$U$1000>Costs!$A781)*('Fixed assets'!$P$2:$P$1000=Costs!$A781)*('Fixed assets'!$S$2:$S$1000))","v":0}]
[2091,0,{"$f":"C694+SUMPRODUCT(('Fixed assets'!$Q$2:$Q$1000=Costs!C$705)*('Fixed assets'!$U$2:$U$1000>Costs!$A782)*('Fixed assets'!$P$2:$P$1000=Costs!$A782)*('Fixed assets'!$R$2:$R$1000))-SUMPRODUCT(('Fixed assets'!$Q$2:$Q$1000=Costs!C$705)*('Fixed assets'!$U$2:$U$1000>Costs!$A782)*('Fixed assets'!$P$2:$P$1000=Costs!$A782)*('Fixed assets'!$S$2:$S$1000))","v":0},{"$f":"D694+SUMPRODUCT(('Fixed assets'!$Q$2:$Q$1000=Costs!D$705)*('Fixed assets'!$U$2:$U$1000>Costs!$A782)*('Fixed assets'!$P$2:$P$1000=Costs!$A782)*('Fixed assets'!$R$2:$R$1000))-SUMPRODUCT(('Fixed assets'!$Q$2:$Q$1000=Costs!D$705)*('Fixed assets'!$U$2:$U$1000>Costs!$A782)*('Fixed assets'!$P$2:$P$1000=Costs!$A782)*('Fixed assets'!$S$2:$S$1000))","v":0},{"$f":"E694+SUMPRODUCT(('Fixed assets'!$Q$2:$Q$1000=Costs!E$705)*('Fixed assets'!$U$2:$U$1000>Costs!$A782)*('Fixed assets'!$P$2:$P$1000=Costs!$A782)*('Fixed assets'!$R$2:$R$1000))-SUMPRODUCT(('Fixed assets'!$Q$2:$Q$1000=Costs!E$705)*('Fixed assets'!$U$2:$U$1000>Costs!$A782)*('Fixed assets'!$P$2:$P$1000=Costs!$A782)*('Fixed assets'!$S$2:$S$1000))","v":0},{"$f":"F694+SUMPRODUCT(('Fixed assets'!$Q$2:$Q$1000=Costs!F$705)*('Fixed assets'!$U$2:$U$1000>Costs!$A782)*('Fixed assets'!$P$2:$P$1000=Costs!$A782)*('Fixed assets'!$R$2:$R$1000))-SUMPRODUCT(('Fixed assets'!$Q$2:$Q$1000=Costs!F$705)*('Fixed assets'!$U$2:$U$1000>Costs!$A782)*('Fixed assets'!$P$2:$P$1000=Costs!$A782)*('Fixed assets'!$S$2:$S$1000))","v":0},{"$f":"G694+SUMPRODUCT(('Fixed assets'!$Q$2:$Q$1000=Costs!G$705)*('Fixed assets'!$U$2:$U$1000>Costs!$A782)*('Fixed assets'!$P$2:$P$1000=Costs!$A782)*('Fixed assets'!$R$2:$R$1000))-SUMPRODUCT(('Fixed assets'!$Q$2:$Q$1000=Costs!G$705)*('Fixed assets'!$U$2:$U$1000>Costs!$A782)*('Fixed assets'!$P$2:$P$1000=Costs!$A782)*('Fixed assets'!$S$2:$S$1000))","v":0},{"$f":"H694+SUMPRODUCT(('Fixed assets'!$Q$2:$Q$1000=Costs!H$705)*('Fixed assets'!$U$2:$U$1000>Costs!$A782)*('Fixed assets'!$P$2:$P$1000=Costs!$A782)*('Fixed assets'!$R$2:$R$1000))-SUMPRODUCT(('Fixed assets'!$Q$2:$Q$1000=Costs!H$705)*('Fixed assets'!$U$2:$U$1000>Costs!$A782)*('Fixed assets'!$P$2:$P$1000=Costs!$A782)*('Fixed assets'!$S$2:$S$1000))","v":0},{"$f":"I694+SUMPRODUCT(('Fixed assets'!$Q$2:$Q$1000=Costs!I$705)*('Fixed assets'!$U$2:$U$1000>Costs!$A782)*('Fixed assets'!$P$2:$P$1000=Costs!$A782)*('Fixed assets'!$R$2:$R$1000))-SUMPRODUCT(('Fixed assets'!$Q$2:$Q$1000=Costs!I$705)*('Fixed assets'!$U$2:$U$1000>Costs!$A782)*('Fixed assets'!$P$2:$P$1000=Costs!$A782)*('Fixed assets'!$S$2:$S$1000))","v":0},{"$f":"J694+SUMPRODUCT(('Fixed assets'!$Q$2:$Q$1000=Costs!J$705)*('Fixed assets'!$U$2:$U$1000>Costs!$A782)*('Fixed assets'!$P$2:$P$1000=Costs!$A782)*('Fixed assets'!$R$2:$R$1000))-SUMPRODUCT(('Fixed assets'!$Q$2:$Q$1000=Costs!J$705)*('Fixed assets'!$U$2:$U$1000>Costs!$A782)*('Fixed assets'!$P$2:$P$1000=Costs!$A782)*('Fixed assets'!$S$2:$S$1000))","v":0},{"$f":"K694+SUMPRODUCT(('Fixed assets'!$Q$2:$Q$1000=Costs!K$705)*('Fixed assets'!$U$2:$U$1000>Costs!$A782)*('Fixed assets'!$P$2:$P$1000=Costs!$A782)*('Fixed assets'!$R$2:$R$1000))-SUMPRODUCT(('Fixed assets'!$Q$2:$Q$1000=Costs!K$705)*('Fixed assets'!$U$2:$U$1000>Costs!$A782)*('Fixed assets'!$P$2:$P$1000=Costs!$A782)*('Fixed assets'!$S$2:$S$1000))","v":0},{"$f":"L694+SUMPRODUCT(('Fixed assets'!$Q$2:$Q$1000=Costs!L$705)*('Fixed assets'!$U$2:$U$1000>Costs!$A782)*('Fixed assets'!$P$2:$P$1000=Costs!$A782)*('Fixed assets'!$R$2:$R$1000))-SUMPRODUCT(('Fixed assets'!$Q$2:$Q$1000=Costs!L$705)*('Fixed assets'!$U$2:$U$1000>Costs!$A782)*('Fixed assets'!$P$2:$P$1000=Costs!$A782)*('Fixed assets'!$S$2:$S$1000))","v":0},{"$f":"M694+SUMPRODUCT(('Fixed assets'!$Q$2:$Q$1000=Costs!M$705)*('Fixed assets'!$U$2:$U$1000>Costs!$A782)*('Fixed assets'!$P$2:$P$1000=Costs!$A782)*('Fixed assets'!$R$2:$R$1000))-SUMPRODUCT(('Fixed assets'!$Q$2:$Q$1000=Costs!M$705)*('Fixed assets'!$U$2:$U$1000>Costs!$A782)*('Fixed assets'!$P$2:$P$1000=Costs!$A782)*('Fixed assets'!$S$2:$S$1000))","v":0},{"$f":"N694+SUMPRODUCT(('Fixed assets'!$Q$2:$Q$1000=Costs!N$705)*('Fixed assets'!$U$2:$U$1000>Costs!$A782)*('Fixed assets'!$P$2:$P$1000=Costs!$A782)*('Fixed assets'!$R$2:$R$1000))-SUMPRODUCT(('Fixed assets'!$Q$2:$Q$1000=Costs!N$705)*('Fixed assets'!$U$2:$U$1000>Costs!$A782)*('Fixed assets'!$P$2:$P$1000=Costs!$A782)*('Fixed assets'!$S$2:$S$1000))","v":0},{"$f":"O694+SUMPRODUCT(('Fixed assets'!$Q$2:$Q$1000=Costs!O$705)*('Fixed assets'!$U$2:$U$1000>Costs!$A782)*('Fixed assets'!$P$2:$P$1000=Costs!$A782)*('Fixed assets'!$R$2:$R$1000))-SUMPRODUCT(('Fixed assets'!$Q$2:$Q$1000=Costs!O$705)*('Fixed assets'!$U$2:$U$1000>Costs!$A782)*('Fixed assets'!$P$2:$P$1000=Costs!$A782)*('Fixed assets'!$S$2:$S$1000))","v":0},{"$f":"P694+SUMPRODUCT(('Fixed assets'!$Q$2:$Q$1000=Costs!P$705)*('Fixed assets'!$U$2:$U$1000>Costs!$A782)*('Fixed assets'!$P$2:$P$1000=Costs!$A782)*('Fixed assets'!$R$2:$R$1000))-SUMPRODUCT(('Fixed assets'!$Q$2:$Q$1000=Costs!P$705)*('Fixed assets'!$U$2:$U$1000>Costs!$A782)*('Fixed assets'!$P$2:$P$1000=Costs!$A782)*('Fixed assets'!$S$2:$S$1000))","v":0},{"$f":"Q694+SUMPRODUCT(('Fixed assets'!$Q$2:$Q$1000=Costs!Q$705)*('Fixed assets'!$U$2:$U$1000>Costs!$A782)*('Fixed assets'!$P$2:$P$1000=Costs!$A782)*('Fixed assets'!$R$2:$R$1000))-SUMPRODUCT(('Fixed assets'!$Q$2:$Q$1000=Costs!Q$705)*('Fixed assets'!$U$2:$U$1000>Costs!$A782)*('Fixed assets'!$P$2:$P$1000=Costs!$A782)*('Fixed assets'!$S$2:$S$1000))","v":0},{"$f":"R694+SUMPRODUCT(('Fixed assets'!$Q$2:$Q$1000=Costs!R$705)*('Fixed assets'!$U$2:$U$1000>Costs!$A782)*('Fixed assets'!$P$2:$P$1000=Costs!$A782)*('Fixed assets'!$R$2:$R$1000))-SUMPRODUCT(('Fixed assets'!$Q$2:$Q$1000=Costs!R$705)*('Fixed assets'!$U$2:$U$1000>Costs!$A782)*('Fixed assets'!$P$2:$P$1000=Costs!$A782)*('Fixed assets'!$S$2:$S$1000))","v":0},{"$f":"S694+SUMPRODUCT(('Fixed assets'!$Q$2:$Q$1000=Costs!S$705)*('Fixed assets'!$U$2:$U$1000>Costs!$A782)*('Fixed assets'!$P$2:$P$1000=Costs!$A782)*('Fixed assets'!$R$2:$R$1000))-SUMPRODUCT(('Fixed assets'!$Q$2:$Q$1000=Costs!S$705)*('Fixed assets'!$U$2:$U$1000>Costs!$A782)*('Fixed assets'!$P$2:$P$1000=Costs!$A782)*('Fixed assets'!$S$2:$S$1000))","v":0},{"$f":"T694+SUMPRODUCT(('Fixed assets'!$Q$2:$Q$1000=Costs!T$705)*('Fixed assets'!$U$2:$U$1000>Costs!$A782)*('Fixed assets'!$P$2:$P$1000=Costs!$A782)*('Fixed assets'!$R$2:$R$1000))-SUMPRODUCT(('Fixed assets'!$Q$2:$Q$1000=Costs!T$705)*('Fixed assets'!$U$2:$U$1000>Costs!$A782)*('Fixed assets'!$P$2:$P$1000=Costs!$A782)*('Fixed assets'!$S$2:$S$1000))","v":0},{"$f":"U694+SUMPRODUCT(('Fixed assets'!$Q$2:$Q$1000=Costs!U$705)*('Fixed assets'!$U$2:$U$1000>Costs!$A782)*('Fixed assets'!$P$2:$P$1000=Costs!$A782)*('Fixed assets'!$R$2:$R$1000))-SUMPRODUCT(('Fixed assets'!$Q$2:$Q$1000=Costs!U$705)*('Fixed assets'!$U$2:$U$1000>Costs!$A782)*('Fixed assets'!$P$2:$P$1000=Costs!$A782)*('Fixed assets'!$S$2:$S$1000))","v":0},{"$f":"V694+SUMPRODUCT(('Fixed assets'!$Q$2:$Q$1000=Costs!V$705)*('Fixed assets'!$U$2:$U$1000>Costs!$A782)*('Fixed assets'!$P$2:$P$1000=Costs!$A782)*('Fixed assets'!$R$2:$R$1000))-SUMPRODUCT(('Fixed assets'!$Q$2:$Q$1000=Costs!V$705)*('Fixed assets'!$U$2:$U$1000>Costs!$A782)*('Fixed assets'!$P$2:$P$1000=Costs!$A782)*('Fixed assets'!$S$2:$S$1000))","v":0},{"$f":"W694+SUMPRODUCT(('Fixed assets'!$Q$2:$Q$1000=Costs!W$705)*('Fixed assets'!$U$2:$U$1000>Costs!$A782)*('Fixed assets'!$P$2:$P$1000=Costs!$A782)*('Fixed assets'!$R$2:$R$1000))-SUMPRODUCT(('Fixed assets'!$Q$2:$Q$1000=Costs!W$705)*('Fixed assets'!$U$2:$U$1000>Costs!$A782)*('Fixed assets'!$P$2:$P$1000=Costs!$A782)*('Fixed assets'!$S$2:$S$1000))","v":0},{"$f":"X694+SUMPRODUCT(('Fixed assets'!$Q$2:$Q$1000=Costs!X$705)*('Fixed assets'!$U$2:$U$1000>Costs!$A782)*('Fixed assets'!$P$2:$P$1000=Costs!$A782)*('Fixed assets'!$R$2:$R$1000))-SUMPRODUCT(('Fixed assets'!$Q$2:$Q$1000=Costs!X$705)*('Fixed assets'!$U$2:$U$1000>Costs!$A782)*('Fixed assets'!$P$2:$P$1000=Costs!$A782)*('Fixed assets'!$S$2:$S$1000))","v":0},{"$f":"Y694+SUMPRODUCT(('Fixed assets'!$Q$2:$Q$1000=Costs!Y$705)*('Fixed assets'!$U$2:$U$1000>Costs!$A782)*('Fixed assets'!$P$2:$P$1000=Costs!$A782)*('Fixed assets'!$R$2:$R$1000))-SUMPRODUCT(('Fixed assets'!$Q$2:$Q$1000=Costs!Y$705)*('Fixed assets'!$U$2:$U$1000>Costs!$A782)*('Fixed assets'!$P$2:$P$1000=Costs!$A782)*('Fixed assets'!$S$2:$S$1000))","v":0},{"$f":"Z694+SUMPRODUCT(('Fixed assets'!$Q$2:$Q$1000=Costs!Z$705)*('Fixed assets'!$U$2:$U$1000>Costs!$A782)*('Fixed assets'!$P$2:$P$1000=Costs!$A782)*('Fixed assets'!$R$2:$R$1000))-SUMPRODUCT(('Fixed assets'!$Q$2:$Q$1000=Costs!Z$705)*('Fixed assets'!$U$2:$U$1000>Costs!$A782)*('Fixed assets'!$P$2:$P$1000=Costs!$A782)*('Fixed assets'!$S$2:$S$1000))","v":0},{"$f":"AA694+SUMPRODUCT(('Fixed assets'!$Q$2:$Q$1000=Costs!AA$705)*('Fixed assets'!$U$2:$U$1000>Costs!$A782)*('Fixed assets'!$P$2:$P$1000=Costs!$A782)*('Fixed assets'!$R$2:$R$1000))-SUMPRODUCT(('Fixed assets'!$Q$2:$Q$1000=Costs!AA$705)*('Fixed assets'!$U$2:$U$1000>Costs!$A782)*('Fixed assets'!$P$2:$P$1000=Costs!$A782)*('Fixed assets'!$S$2:$S$1000))","v":0},{"$f":"AB694+SUMPRODUCT(('Fixed assets'!$Q$2:$Q$1000=Costs!AB$705)*('Fixed assets'!$U$2:$U$1000>Costs!$A782)*('Fixed assets'!$P$2:$P$1000=Costs!$A782)*('Fixed assets'!$R$2:$R$1000))-SUMPRODUCT(('Fixed assets'!$Q$2:$Q$1000=Costs!AB$705)*('Fixed assets'!$U$2:$U$1000>Costs!$A782)*('Fixed assets'!$P$2:$P$1000=Costs!$A782)*('Fixed assets'!$S$2:$S$1000))","v":0},{"$f":"AC694+SUMPRODUCT(('Fixed assets'!$Q$2:$Q$1000=Costs!AC$705)*('Fixed assets'!$U$2:$U$1000>Costs!$A782)*('Fixed assets'!$P$2:$P$1000=Costs!$A782)*('Fixed assets'!$R$2:$R$1000))-SUMPRODUCT(('Fixed assets'!$Q$2:$Q$1000=Costs!AC$705)*('Fixed assets'!$U$2:$U$1000>Costs!$A782)*('Fixed assets'!$P$2:$P$1000=Costs!$A782)*('Fixed assets'!$S$2:$S$1000))","v":0},{"$f":"AD694+SUMPRODUCT(('Fixed assets'!$Q$2:$Q$1000=Costs!AD$705)*('Fixed assets'!$U$2:$U$1000>Costs!$A782)*('Fixed assets'!$P$2:$P$1000=Costs!$A782)*('Fixed assets'!$R$2:$R$1000))-SUMPRODUCT(('Fixed assets'!$Q$2:$Q$1000=Costs!AD$705)*('Fixed assets'!$U$2:$U$1000>Costs!$A782)*('Fixed assets'!$P$2:$P$1000=Costs!$A782)*('Fixed assets'!$S$2:$S$1000))","v":0},{"$f":"AE694+SUMPRODUCT(('Fixed assets'!$Q$2:$Q$1000=Costs!AE$705)*('Fixed assets'!$U$2:$U$1000>Costs!$A782)*('Fixed assets'!$P$2:$P$1000=Costs!$A782)*('Fixed assets'!$R$2:$R$1000))-SUMPRODUCT(('Fixed assets'!$Q$2:$Q$1000=Costs!AE$705)*('Fixed assets'!$U$2:$U$1000>Costs!$A782)*('Fixed assets'!$P$2:$P$1000=Costs!$A782)*('Fixed assets'!$S$2:$S$1000))","v":0},{"$f":"AF694+SUMPRODUCT(('Fixed assets'!$Q$2:$Q$1000=Costs!AF$705)*('Fixed assets'!$U$2:$U$1000>Costs!$A782)*('Fixed assets'!$P$2:$P$1000=Costs!$A782)*('Fixed assets'!$R$2:$R$1000))-SUMPRODUCT(('Fixed assets'!$Q$2:$Q$1000=Costs!AF$705)*('Fixed assets'!$U$2:$U$1000>Costs!$A782)*('Fixed assets'!$P$2:$P$1000=Costs!$A782)*('Fixed assets'!$S$2:$S$1000))","v":0},{"$f":"AG694+SUMPRODUCT(('Fixed assets'!$Q$2:$Q$1000=Costs!AG$705)*('Fixed assets'!$U$2:$U$1000>Costs!$A782)*('Fixed assets'!$P$2:$P$1000=Costs!$A782)*('Fixed assets'!$R$2:$R$1000))-SUMPRODUCT(('Fixed assets'!$Q$2:$Q$1000=Costs!AG$705)*('Fixed assets'!$U$2:$U$1000>Costs!$A782)*('Fixed assets'!$P$2:$P$1000=Costs!$A782)*('Fixed assets'!$S$2:$S$1000))","v":0},{"$f":"AH694+SUMPRODUCT(('Fixed assets'!$Q$2:$Q$1000=Costs!AH$705)*('Fixed assets'!$U$2:$U$1000>Costs!$A782)*('Fixed assets'!$P$2:$P$1000=Costs!$A782)*('Fixed assets'!$R$2:$R$1000))-SUMPRODUCT(('Fixed assets'!$Q$2:$Q$1000=Costs!AH$705)*('Fixed assets'!$U$2:$U$1000>Costs!$A782)*('Fixed assets'!$P$2:$P$1000=Costs!$A782)*('Fixed assets'!$S$2:$S$1000))","v":0},{"$f":"AI694+SUMPRODUCT(('Fixed assets'!$Q$2:$Q$1000=Costs!AI$705)*('Fixed assets'!$U$2:$U$1000>Costs!$A782)*('Fixed assets'!$P$2:$P$1000=Costs!$A782)*('Fixed assets'!$R$2:$R$1000))-SUMPRODUCT(('Fixed assets'!$Q$2:$Q$1000=Costs!AI$705)*('Fixed assets'!$U$2:$U$1000>Costs!$A782)*('Fixed assets'!$P$2:$P$1000=Costs!$A782)*('Fixed assets'!$S$2:$S$1000))","v":0},{"$f":"AJ694+SUMPRODUCT(('Fixed assets'!$Q$2:$Q$1000=Costs!AJ$705)*('Fixed assets'!$U$2:$U$1000>Costs!$A782)*('Fixed assets'!$P$2:$P$1000=Costs!$A782)*('Fixed assets'!$R$2:$R$1000))-SUMPRODUCT(('Fixed assets'!$Q$2:$Q$1000=Costs!AJ$705)*('Fixed assets'!$U$2:$U$1000>Costs!$A782)*('Fixed assets'!$P$2:$P$1000=Costs!$A782)*('Fixed assets'!$S$2:$S$1000))","v":0},{"$f":"AK694+SUMPRODUCT(('Fixed assets'!$Q$2:$Q$1000=Costs!AK$705)*('Fixed assets'!$U$2:$U$1000>Costs!$A782)*('Fixed assets'!$P$2:$P$1000=Costs!$A782)*('Fixed assets'!$R$2:$R$1000))-SUMPRODUCT(('Fixed assets'!$Q$2:$Q$1000=Costs!AK$705)*('Fixed assets'!$U$2:$U$1000>Costs!$A782)*('Fixed assets'!$P$2:$P$1000=Costs!$A782)*('Fixed assets'!$S$2:$S$1000))","v":0},{"$f":"AL694+SUMPRODUCT(('Fixed assets'!$Q$2:$Q$1000=Costs!AL$705)*('Fixed assets'!$U$2:$U$1000>Costs!$A782)*('Fixed assets'!$P$2:$P$1000=Costs!$A782)*('Fixed assets'!$R$2:$R$1000))-SUMPRODUCT(('Fixed assets'!$Q$2:$Q$1000=Costs!AL$705)*('Fixed assets'!$U$2:$U$1000>Costs!$A782)*('Fixed assets'!$P$2:$P$1000=Costs!$A782)*('Fixed assets'!$S$2:$S$1000))","v":0},{"$f":"AM694+SUMPRODUCT(('Fixed assets'!$Q$2:$Q$1000=Costs!AM$705)*('Fixed assets'!$U$2:$U$1000>Costs!$A782)*('Fixed assets'!$P$2:$P$1000=Costs!$A782)*('Fixed assets'!$R$2:$R$1000))-SUMPRODUCT(('Fixed assets'!$Q$2:$Q$1000=Costs!AM$705)*('Fixed assets'!$U$2:$U$1000>Costs!$A782)*('Fixed assets'!$P$2:$P$1000=Costs!$A782)*('Fixed assets'!$S$2:$S$1000))","v":0},{"$f":"AN694+SUMPRODUCT(('Fixed assets'!$Q$2:$Q$1000=Costs!AN$705)*('Fixed assets'!$U$2:$U$1000>Costs!$A782)*('Fixed assets'!$P$2:$P$1000=Costs!$A782)*('Fixed assets'!$R$2:$R$1000))-SUMPRODUCT(('Fixed assets'!$Q$2:$Q$1000=Costs!AN$705)*('Fixed assets'!$U$2:$U$1000>Costs!$A782)*('Fixed assets'!$P$2:$P$1000=Costs!$A782)*('Fixed assets'!$S$2:$S$1000))","v":0},{"$f":"AO694+SUMPRODUCT(('Fixed assets'!$Q$2:$Q$1000=Costs!AO$705)*('Fixed assets'!$U$2:$U$1000>Costs!$A782)*('Fixed assets'!$P$2:$P$1000=Costs!$A782)*('Fixed assets'!$R$2:$R$1000))-SUMPRODUCT(('Fixed assets'!$Q$2:$Q$1000=Costs!AO$705)*('Fixed assets'!$U$2:$U$1000>Costs!$A782)*('Fixed assets'!$P$2:$P$1000=Costs!$A782)*('Fixed assets'!$S$2:$S$1000))","v":0},{"$f":"AP694+SUMPRODUCT(('Fixed assets'!$Q$2:$Q$1000=Costs!AP$705)*('Fixed assets'!$U$2:$U$1000>Costs!$A782)*('Fixed assets'!$P$2:$P$1000=Costs!$A782)*('Fixed assets'!$R$2:$R$1000))-SUMPRODUCT(('Fixed assets'!$Q$2:$Q$1000=Costs!AP$705)*('Fixed assets'!$U$2:$U$1000>Costs!$A782)*('Fixed assets'!$P$2:$P$1000=Costs!$A782)*('Fixed assets'!$S$2:$S$1000))","v":0},{"$f":"AQ694+SUMPRODUCT(('Fixed assets'!$Q$2:$Q$1000=Costs!AQ$705)*('Fixed assets'!$U$2:$U$1000>Costs!$A782)*('Fixed assets'!$P$2:$P$1000=Costs!$A782)*('Fixed assets'!$R$2:$R$1000))-SUMPRODUCT(('Fixed assets'!$Q$2:$Q$1000=Costs!AQ$705)*('Fixed assets'!$U$2:$U$1000>Costs!$A782)*('Fixed assets'!$P$2:$P$1000=Costs!$A782)*('Fixed assets'!$S$2:$S$1000))","v":0}]
[2092,0,{"$f":"C695+SUMPRODUCT(('Fixed assets'!$Q$2:$Q$1000=Costs!C$705)*('Fixed assets'!$U$2:$U$1000>Costs!$A783)*('Fixed assets'!$P$2:$P$1000=Costs!$A783)*('Fixed assets'!$R$2:$R$1000))-SUMPRODUCT(('Fixed assets'!$Q$2:$Q$1000=Costs!C$705)*('Fixed assets'!$U$2:$U$1000>Costs!$A783)*('Fixed assets'!$P$2:$P$1000=Costs!$A783)*('Fixed assets'!$S$2:$S$1000))","v":0},{"$f":"D695+SUMPRODUCT(('Fixed assets'!$Q$2:$Q$1000=Costs!D$705)*('Fixed assets'!$U$2:$U$1000>Costs!$A783)*('Fixed assets'!$P$2:$P$1000=Costs!$A783)*('Fixed assets'!$R$2:$R$1000))-SUMPRODUCT(('Fixed assets'!$Q$2:$Q$1000=Costs!D$705)*('Fixed assets'!$U$2:$U$1000>Costs!$A783)*('Fixed assets'!$P$2:$P$1000=Costs!$A783)*('Fixed assets'!$S$2:$S$1000))","v":0},{"$f":"E695+SUMPRODUCT(('Fixed assets'!$Q$2:$Q$1000=Costs!E$705)*('Fixed assets'!$U$2:$U$1000>Costs!$A783)*('Fixed assets'!$P$2:$P$1000=Costs!$A783)*('Fixed assets'!$R$2:$R$1000))-SUMPRODUCT(('Fixed assets'!$Q$2:$Q$1000=Costs!E$705)*('Fixed assets'!$U$2:$U$1000>Costs!$A783)*('Fixed assets'!$P$2:$P$1000=Costs!$A783)*('Fixed assets'!$S$2:$S$1000))","v":0},{"$f":"F695+SUMPRODUCT(('Fixed assets'!$Q$2:$Q$1000=Costs!F$705)*('Fixed assets'!$U$2:$U$1000>Costs!$A783)*('Fixed assets'!$P$2:$P$1000=Costs!$A783)*('Fixed assets'!$R$2:$R$1000))-SUMPRODUCT(('Fixed assets'!$Q$2:$Q$1000=Costs!F$705)*('Fixed assets'!$U$2:$U$1000>Costs!$A783)*('Fixed assets'!$P$2:$P$1000=Costs!$A783)*('Fixed assets'!$S$2:$S$1000))","v":0},{"$f":"G695+SUMPRODUCT(('Fixed assets'!$Q$2:$Q$1000=Costs!G$705)*('Fixed assets'!$U$2:$U$1000>Costs!$A783)*('Fixed assets'!$P$2:$P$1000=Costs!$A783)*('Fixed assets'!$R$2:$R$1000))-SUMPRODUCT(('Fixed assets'!$Q$2:$Q$1000=Costs!G$705)*('Fixed assets'!$U$2:$U$1000>Costs!$A783)*('Fixed assets'!$P$2:$P$1000=Costs!$A783)*('Fixed assets'!$S$2:$S$1000))","v":0},{"$f":"H695+SUMPRODUCT(('Fixed assets'!$Q$2:$Q$1000=Costs!H$705)*('Fixed assets'!$U$2:$U$1000>Costs!$A783)*('Fixed assets'!$P$2:$P$1000=Costs!$A783)*('Fixed assets'!$R$2:$R$1000))-SUMPRODUCT(('Fixed assets'!$Q$2:$Q$1000=Costs!H$705)*('Fixed assets'!$U$2:$U$1000>Costs!$A783)*('Fixed assets'!$P$2:$P$1000=Costs!$A783)*('Fixed assets'!$S$2:$S$1000))","v":0},{"$f":"I695+SUMPRODUCT(('Fixed assets'!$Q$2:$Q$1000=Costs!I$705)*('Fixed assets'!$U$2:$U$1000>Costs!$A783)*('Fixed assets'!$P$2:$P$1000=Costs!$A783)*('Fixed assets'!$R$2:$R$1000))-SUMPRODUCT(('Fixed assets'!$Q$2:$Q$1000=Costs!I$705)*('Fixed assets'!$U$2:$U$1000>Costs!$A783)*('Fixed assets'!$P$2:$P$1000=Costs!$A783)*('Fixed assets'!$S$2:$S$1000))","v":0},{"$f":"J695+SUMPRODUCT(('Fixed assets'!$Q$2:$Q$1000=Costs!J$705)*('Fixed assets'!$U$2:$U$1000>Costs!$A783)*('Fixed assets'!$P$2:$P$1000=Costs!$A783)*('Fixed assets'!$R$2:$R$1000))-SUMPRODUCT(('Fixed assets'!$Q$2:$Q$1000=Costs!J$705)*('Fixed assets'!$U$2:$U$1000>Costs!$A783)*('Fixed assets'!$P$2:$P$1000=Costs!$A783)*('Fixed assets'!$S$2:$S$1000))","v":0},{"$f":"K695+SUMPRODUCT(('Fixed assets'!$Q$2:$Q$1000=Costs!K$705)*('Fixed assets'!$U$2:$U$1000>Costs!$A783)*('Fixed assets'!$P$2:$P$1000=Costs!$A783)*('Fixed assets'!$R$2:$R$1000))-SUMPRODUCT(('Fixed assets'!$Q$2:$Q$1000=Costs!K$705)*('Fixed assets'!$U$2:$U$1000>Costs!$A783)*('Fixed assets'!$P$2:$P$1000=Costs!$A783)*('Fixed assets'!$S$2:$S$1000))","v":0},{"$f":"L695+SUMPRODUCT(('Fixed assets'!$Q$2:$Q$1000=Costs!L$705)*('Fixed assets'!$U$2:$U$1000>Costs!$A783)*('Fixed assets'!$P$2:$P$1000=Costs!$A783)*('Fixed assets'!$R$2:$R$1000))-SUMPRODUCT(('Fixed assets'!$Q$2:$Q$1000=Costs!L$705)*('Fixed assets'!$U$2:$U$1000>Costs!$A783)*('Fixed assets'!$P$2:$P$1000=Costs!$A783)*('Fixed assets'!$S$2:$S$1000))","v":0},{"$f":"M695+SUMPRODUCT(('Fixed assets'!$Q$2:$Q$1000=Costs!M$705)*('Fixed assets'!$U$2:$U$1000>Costs!$A783)*('Fixed assets'!$P$2:$P$1000=Costs!$A783)*('Fixed assets'!$R$2:$R$1000))-SUMPRODUCT(('Fixed assets'!$Q$2:$Q$1000=Costs!M$705)*('Fixed assets'!$U$2:$U$1000>Costs!$A783)*('Fixed assets'!$P$2:$P$1000=Costs!$A783)*('Fixed assets'!$S$2:$S$1000))","v":0},{"$f":"N695+SUMPRODUCT(('Fixed assets'!$Q$2:$Q$1000=Costs!N$705)*('Fixed assets'!$U$2:$U$1000>Costs!$A783)*('Fixed assets'!$P$2:$P$1000=Costs!$A783)*('Fixed assets'!$R$2:$R$1000))-SUMPRODUCT(('Fixed assets'!$Q$2:$Q$1000=Costs!N$705)*('Fixed assets'!$U$2:$U$1000>Costs!$A783)*('Fixed assets'!$P$2:$P$1000=Costs!$A783)*('Fixed assets'!$S$2:$S$1000))","v":0},{"$f":"O695+SUMPRODUCT(('Fixed assets'!$Q$2:$Q$1000=Costs!O$705)*('Fixed assets'!$U$2:$U$1000>Costs!$A783)*('Fixed assets'!$P$2:$P$1000=Costs!$A783)*('Fixed assets'!$R$2:$R$1000))-SUMPRODUCT(('Fixed assets'!$Q$2:$Q$1000=Costs!O$705)*('Fixed assets'!$U$2:$U$1000>Costs!$A783)*('Fixed assets'!$P$2:$P$1000=Costs!$A783)*('Fixed assets'!$S$2:$S$1000))","v":0},{"$f":"P695+SUMPRODUCT(('Fixed assets'!$Q$2:$Q$1000=Costs!P$705)*('Fixed assets'!$U$2:$U$1000>Costs!$A783)*('Fixed assets'!$P$2:$P$1000=Costs!$A783)*('Fixed assets'!$R$2:$R$1000))-SUMPRODUCT(('Fixed assets'!$Q$2:$Q$1000=Costs!P$705)*('Fixed assets'!$U$2:$U$1000>Costs!$A783)*('Fixed assets'!$P$2:$P$1000=Costs!$A783)*('Fixed assets'!$S$2:$S$1000))","v":0},{"$f":"Q695+SUMPRODUCT(('Fixed assets'!$Q$2:$Q$1000=Costs!Q$705)*('Fixed assets'!$U$2:$U$1000>Costs!$A783)*('Fixed assets'!$P$2:$P$1000=Costs!$A783)*('Fixed assets'!$R$2:$R$1000))-SUMPRODUCT(('Fixed assets'!$Q$2:$Q$1000=Costs!Q$705)*('Fixed assets'!$U$2:$U$1000>Costs!$A783)*('Fixed assets'!$P$2:$P$1000=Costs!$A783)*('Fixed assets'!$S$2:$S$1000))","v":0},{"$f":"R695+SUMPRODUCT(('Fixed assets'!$Q$2:$Q$1000=Costs!R$705)*('Fixed assets'!$U$2:$U$1000>Costs!$A783)*('Fixed assets'!$P$2:$P$1000=Costs!$A783)*('Fixed assets'!$R$2:$R$1000))-SUMPRODUCT(('Fixed assets'!$Q$2:$Q$1000=Costs!R$705)*('Fixed assets'!$U$2:$U$1000>Costs!$A783)*('Fixed assets'!$P$2:$P$1000=Costs!$A783)*('Fixed assets'!$S$2:$S$1000))","v":0},{"$f":"S695+SUMPRODUCT(('Fixed assets'!$Q$2:$Q$1000=Costs!S$705)*('Fixed assets'!$U$2:$U$1000>Costs!$A783)*('Fixed assets'!$P$2:$P$1000=Costs!$A783)*('Fixed assets'!$R$2:$R$1000))-SUMPRODUCT(('Fixed assets'!$Q$2:$Q$1000=Costs!S$705)*('Fixed assets'!$U$2:$U$1000>Costs!$A783)*('Fixed assets'!$P$2:$P$1000=Costs!$A783)*('Fixed assets'!$S$2:$S$1000))","v":0},{"$f":"T695+SUMPRODUCT(('Fixed assets'!$Q$2:$Q$1000=Costs!T$705)*('Fixed assets'!$U$2:$U$1000>Costs!$A783)*('Fixed assets'!$P$2:$P$1000=Costs!$A783)*('Fixed assets'!$R$2:$R$1000))-SUMPRODUCT(('Fixed assets'!$Q$2:$Q$1000=Costs!T$705)*('Fixed assets'!$U$2:$U$1000>Costs!$A783)*('Fixed assets'!$P$2:$P$1000=Costs!$A783)*('Fixed assets'!$S$2:$S$1000))","v":0},{"$f":"U695+SUMPRODUCT(('Fixed assets'!$Q$2:$Q$1000=Costs!U$705)*('Fixed assets'!$U$2:$U$1000>Costs!$A783)*('Fixed assets'!$P$2:$P$1000=Costs!$A783)*('Fixed assets'!$R$2:$R$1000))-SUMPRODUCT(('Fixed assets'!$Q$2:$Q$1000=Costs!U$705)*('Fixed assets'!$U$2:$U$1000>Costs!$A783)*('Fixed assets'!$P$2:$P$1000=Costs!$A783)*('Fixed assets'!$S$2:$S$1000))","v":0},{"$f":"V695+SUMPRODUCT(('Fixed assets'!$Q$2:$Q$1000=Costs!V$705)*('Fixed assets'!$U$2:$U$1000>Costs!$A783)*('Fixed assets'!$P$2:$P$1000=Costs!$A783)*('Fixed assets'!$R$2:$R$1000))-SUMPRODUCT(('Fixed assets'!$Q$2:$Q$1000=Costs!V$705)*('Fixed assets'!$U$2:$U$1000>Costs!$A783)*('Fixed assets'!$P$2:$P$1000=Costs!$A783)*('Fixed assets'!$S$2:$S$1000))","v":0},{"$f":"W695+SUMPRODUCT(('Fixed assets'!$Q$2:$Q$1000=Costs!W$705)*('Fixed assets'!$U$2:$U$1000>Costs!$A783)*('Fixed assets'!$P$2:$P$1000=Costs!$A783)*('Fixed assets'!$R$2:$R$1000))-SUMPRODUCT(('Fixed assets'!$Q$2:$Q$1000=Costs!W$705)*('Fixed assets'!$U$2:$U$1000>Costs!$A783)*('Fixed assets'!$P$2:$P$1000=Costs!$A783)*('Fixed assets'!$S$2:$S$1000))","v":0},{"$f":"X695+SUMPRODUCT(('Fixed assets'!$Q$2:$Q$1000=Costs!X$705)*('Fixed assets'!$U$2:$U$1000>Costs!$A783)*('Fixed assets'!$P$2:$P$1000=Costs!$A783)*('Fixed assets'!$R$2:$R$1000))-SUMPRODUCT(('Fixed assets'!$Q$2:$Q$1000=Costs!X$705)*('Fixed assets'!$U$2:$U$1000>Costs!$A783)*('Fixed assets'!$P$2:$P$1000=Costs!$A783)*('Fixed assets'!$S$2:$S$1000))","v":0},{"$f":"Y695+SUMPRODUCT(('Fixed assets'!$Q$2:$Q$1000=Costs!Y$705)*('Fixed assets'!$U$2:$U$1000>Costs!$A783)*('Fixed assets'!$P$2:$P$1000=Costs!$A783)*('Fixed assets'!$R$2:$R$1000))-SUMPRODUCT(('Fixed assets'!$Q$2:$Q$1000=Costs!Y$705)*('Fixed assets'!$U$2:$U$1000>Costs!$A783)*('Fixed assets'!$P$2:$P$1000=Costs!$A783)*('Fixed assets'!$S$2:$S$1000))","v":0},{"$f":"Z695+SUMPRODUCT(('Fixed assets'!$Q$2:$Q$1000=Costs!Z$705)*('Fixed assets'!$U$2:$U$1000>Costs!$A783)*('Fixed assets'!$P$2:$P$1000=Costs!$A783)*('Fixed assets'!$R$2:$R$1000))-SUMPRODUCT(('Fixed assets'!$Q$2:$Q$1000=Costs!Z$705)*('Fixed assets'!$U$2:$U$1000>Costs!$A783)*('Fixed assets'!$P$2:$P$1000=Costs!$A783)*('Fixed assets'!$S$2:$S$1000))","v":0},{"$f":"AA695+SUMPRODUCT(('Fixed assets'!$Q$2:$Q$1000=Costs!AA$705)*('Fixed assets'!$U$2:$U$1000>Costs!$A783)*('Fixed assets'!$P$2:$P$1000=Costs!$A783)*('Fixed assets'!$R$2:$R$1000))-SUMPRODUCT(('Fixed assets'!$Q$2:$Q$1000=Costs!AA$705)*('Fixed assets'!$U$2:$U$1000>Costs!$A783)*('Fixed assets'!$P$2:$P$1000=Costs!$A783)*('Fixed assets'!$S$2:$S$1000))","v":0},{"$f":"AB695+SUMPRODUCT(('Fixed assets'!$Q$2:$Q$1000=Costs!AB$705)*('Fixed assets'!$U$2:$U$1000>Costs!$A783)*('Fixed assets'!$P$2:$P$1000=Costs!$A783)*('Fixed assets'!$R$2:$R$1000))-SUMPRODUCT(('Fixed assets'!$Q$2:$Q$1000=Costs!AB$705)*('Fixed assets'!$U$2:$U$1000>Costs!$A783)*('Fixed assets'!$P$2:$P$1000=Costs!$A783)*('Fixed assets'!$S$2:$S$1000))","v":0},{"$f":"AC695+SUMPRODUCT(('Fixed assets'!$Q$2:$Q$1000=Costs!AC$705)*('Fixed assets'!$U$2:$U$1000>Costs!$A783)*('Fixed assets'!$P$2:$P$1000=Costs!$A783)*('Fixed assets'!$R$2:$R$1000))-SUMPRODUCT(('Fixed assets'!$Q$2:$Q$1000=Costs!AC$705)*('Fixed assets'!$U$2:$U$1000>Costs!$A783)*('Fixed assets'!$P$2:$P$1000=Costs!$A783)*('Fixed assets'!$S$2:$S$1000))","v":0},{"$f":"AD695+SUMPRODUCT(('Fixed assets'!$Q$2:$Q$1000=Costs!AD$705)*('Fixed assets'!$U$2:$U$1000>Costs!$A783)*('Fixed assets'!$P$2:$P$1000=Costs!$A783)*('Fixed assets'!$R$2:$R$1000))-SUMPRODUCT(('Fixed assets'!$Q$2:$Q$1000=Costs!AD$705)*('Fixed assets'!$U$2:$U$1000>Costs!$A783)*('Fixed assets'!$P$2:$P$1000=Costs!$A783)*('Fixed assets'!$S$2:$S$1000))","v":0},{"$f":"AE695+SUMPRODUCT(('Fixed assets'!$Q$2:$Q$1000=Costs!AE$705)*('Fixed assets'!$U$2:$U$1000>Costs!$A783)*('Fixed assets'!$P$2:$P$1000=Costs!$A783)*('Fixed assets'!$R$2:$R$1000))-SUMPRODUCT(('Fixed assets'!$Q$2:$Q$1000=Costs!AE$705)*('Fixed assets'!$U$2:$U$1000>Costs!$A783)*('Fixed assets'!$P$2:$P$1000=Costs!$A783)*('Fixed assets'!$S$2:$S$1000))","v":0},{"$f":"AF695+SUMPRODUCT(('Fixed assets'!$Q$2:$Q$1000=Costs!AF$705)*('Fixed assets'!$U$2:$U$1000>Costs!$A783)*('Fixed assets'!$P$2:$P$1000=Costs!$A783)*('Fixed assets'!$R$2:$R$1000))-SUMPRODUCT(('Fixed assets'!$Q$2:$Q$1000=Costs!AF$705)*('Fixed assets'!$U$2:$U$1000>Costs!$A783)*('Fixed assets'!$P$2:$P$1000=Costs!$A783)*('Fixed assets'!$S$2:$S$1000))","v":0},{"$f":"AG695+SUMPRODUCT(('Fixed assets'!$Q$2:$Q$1000=Costs!AG$705)*('Fixed assets'!$U$2:$U$1000>Costs!$A783)*('Fixed assets'!$P$2:$P$1000=Costs!$A783)*('Fixed assets'!$R$2:$R$1000))-SUMPRODUCT(('Fixed assets'!$Q$2:$Q$1000=Costs!AG$705)*('Fixed assets'!$U$2:$U$1000>Costs!$A783)*('Fixed assets'!$P$2:$P$1000=Costs!$A783)*('Fixed assets'!$S$2:$S$1000))","v":0},{"$f":"AH695+SUMPRODUCT(('Fixed assets'!$Q$2:$Q$1000=Costs!AH$705)*('Fixed assets'!$U$2:$U$1000>Costs!$A783)*('Fixed assets'!$P$2:$P$1000=Costs!$A783)*('Fixed assets'!$R$2:$R$1000))-SUMPRODUCT(('Fixed assets'!$Q$2:$Q$1000=Costs!AH$705)*('Fixed assets'!$U$2:$U$1000>Costs!$A783)*('Fixed assets'!$P$2:$P$1000=Costs!$A783)*('Fixed assets'!$S$2:$S$1000))","v":0},{"$f":"AI695+SUMPRODUCT(('Fixed assets'!$Q$2:$Q$1000=Costs!AI$705)*('Fixed assets'!$U$2:$U$1000>Costs!$A783)*('Fixed assets'!$P$2:$P$1000=Costs!$A783)*('Fixed assets'!$R$2:$R$1000))-SUMPRODUCT(('Fixed assets'!$Q$2:$Q$1000=Costs!AI$705)*('Fixed assets'!$U$2:$U$1000>Costs!$A783)*('Fixed assets'!$P$2:$P$1000=Costs!$A783)*('Fixed assets'!$S$2:$S$1000))","v":0},{"$f":"AJ695+SUMPRODUCT(('Fixed assets'!$Q$2:$Q$1000=Costs!AJ$705)*('Fixed assets'!$U$2:$U$1000>Costs!$A783)*('Fixed assets'!$P$2:$P$1000=Costs!$A783)*('Fixed assets'!$R$2:$R$1000))-SUMPRODUCT(('Fixed assets'!$Q$2:$Q$1000=Costs!AJ$705)*('Fixed assets'!$U$2:$U$1000>Costs!$A783)*('Fixed assets'!$P$2:$P$1000=Costs!$A783)*('Fixed assets'!$S$2:$S$1000))","v":0},{"$f":"AK695+SUMPRODUCT(('Fixed assets'!$Q$2:$Q$1000=Costs!AK$705)*('Fixed assets'!$U$2:$U$1000>Costs!$A783)*('Fixed assets'!$P$2:$P$1000=Costs!$A783)*('Fixed assets'!$R$2:$R$1000))-SUMPRODUCT(('Fixed assets'!$Q$2:$Q$1000=Costs!AK$705)*('Fixed assets'!$U$2:$U$1000>Costs!$A783)*('Fixed assets'!$P$2:$P$1000=Costs!$A783)*('Fixed assets'!$S$2:$S$1000))","v":0},{"$f":"AL695+SUMPRODUCT(('Fixed assets'!$Q$2:$Q$1000=Costs!AL$705)*('Fixed assets'!$U$2:$U$1000>Costs!$A783)*('Fixed assets'!$P$2:$P$1000=Costs!$A783)*('Fixed assets'!$R$2:$R$1000))-SUMPRODUCT(('Fixed assets'!$Q$2:$Q$1000=Costs!AL$705)*('Fixed assets'!$U$2:$U$1000>Costs!$A783)*('Fixed assets'!$P$2:$P$1000=Costs!$A783)*('Fixed assets'!$S$2:$S$1000))","v":0},{"$f":"AM695+SUMPRODUCT(('Fixed assets'!$Q$2:$Q$1000=Costs!AM$705)*('Fixed assets'!$U$2:$U$1000>Costs!$A783)*('Fixed assets'!$P$2:$P$1000=Costs!$A783)*('Fixed assets'!$R$2:$R$1000))-SUMPRODUCT(('Fixed assets'!$Q$2:$Q$1000=Costs!AM$705)*('Fixed assets'!$U$2:$U$1000>Costs!$A783)*('Fixed assets'!$P$2:$P$1000=Costs!$A783)*('Fixed assets'!$S$2:$S$1000))","v":0},{"$f":"AN695+SUMPRODUCT(('Fixed assets'!$Q$2:$Q$1000=Costs!AN$705)*('Fixed assets'!$U$2:$U$1000>Costs!$A783)*('Fixed assets'!$P$2:$P$1000=Costs!$A783)*('Fixed assets'!$R$2:$R$1000))-SUMPRODUCT(('Fixed assets'!$Q$2:$Q$1000=Costs!AN$705)*('Fixed assets'!$U$2:$U$1000>Costs!$A783)*('Fixed assets'!$P$2:$P$1000=Costs!$A783)*('Fixed assets'!$S$2:$S$1000))","v":0},{"$f":"AO695+SUMPRODUCT(('Fixed assets'!$Q$2:$Q$1000=Costs!AO$705)*('Fixed assets'!$U$2:$U$1000>Costs!$A783)*('Fixed assets'!$P$2:$P$1000=Costs!$A783)*('Fixed assets'!$R$2:$R$1000))-SUMPRODUCT(('Fixed assets'!$Q$2:$Q$1000=Costs!AO$705)*('Fixed assets'!$U$2:$U$1000>Costs!$A783)*('Fixed assets'!$P$2:$P$1000=Costs!$A783)*('Fixed assets'!$S$2:$S$1000))","v":0},{"$f":"AP695+SUMPRODUCT(('Fixed assets'!$Q$2:$Q$1000=Costs!AP$705)*('Fixed assets'!$U$2:$U$1000>Costs!$A783)*('Fixed assets'!$P$2:$P$1000=Costs!$A783)*('Fixed assets'!$R$2:$R$1000))-SUMPRODUCT(('Fixed assets'!$Q$2:$Q$1000=Costs!AP$705)*('Fixed assets'!$U$2:$U$1000>Costs!$A783)*('Fixed assets'!$P$2:$P$1000=Costs!$A783)*('Fixed assets'!$S$2:$S$1000))","v":0},{"$f":"AQ695+SUMPRODUCT(('Fixed assets'!$Q$2:$Q$1000=Costs!AQ$705)*('Fixed assets'!$U$2:$U$1000>Costs!$A783)*('Fixed assets'!$P$2:$P$1000=Costs!$A783)*('Fixed assets'!$R$2:$R$1000))-SUMPRODUCT(('Fixed assets'!$Q$2:$Q$1000=Costs!AQ$705)*('Fixed assets'!$U$2:$U$1000>Costs!$A783)*('Fixed assets'!$P$2:$P$1000=Costs!$A783)*('Fixed assets'!$S$2:$S$1000))","v":0}]
[2093,0,{"$f":"C696+SUMPRODUCT(('Fixed assets'!$Q$2:$Q$1000=Costs!C$705)*('Fixed assets'!$U$2:$U$1000>Costs!$A784)*('Fixed assets'!$P$2:$P$1000=Costs!$A784)*('Fixed assets'!$R$2:$R$1000))-SUMPRODUCT(('Fixed assets'!$Q$2:$Q$1000=Costs!C$705)*('Fixed assets'!$U$2:$U$1000>Costs!$A784)*('Fixed assets'!$P$2:$P$1000=Costs!$A784)*('Fixed assets'!$S$2:$S$1000))","v":0},{"$f":"D696+SUMPRODUCT(('Fixed assets'!$Q$2:$Q$1000=Costs!D$705)*('Fixed assets'!$U$2:$U$1000>Costs!$A784)*('Fixed assets'!$P$2:$P$1000=Costs!$A784)*('Fixed assets'!$R$2:$R$1000))-SUMPRODUCT(('Fixed assets'!$Q$2:$Q$1000=Costs!D$705)*('Fixed assets'!$U$2:$U$1000>Costs!$A784)*('Fixed assets'!$P$2:$P$1000=Costs!$A784)*('Fixed assets'!$S$2:$S$1000))","v":0},{"$f":"E696+SUMPRODUCT(('Fixed assets'!$Q$2:$Q$1000=Costs!E$705)*('Fixed assets'!$U$2:$U$1000>Costs!$A784)*('Fixed assets'!$P$2:$P$1000=Costs!$A784)*('Fixed assets'!$R$2:$R$1000))-SUMPRODUCT(('Fixed assets'!$Q$2:$Q$1000=Costs!E$705)*('Fixed assets'!$U$2:$U$1000>Costs!$A784)*('Fixed assets'!$P$2:$P$1000=Costs!$A784)*('Fixed assets'!$S$2:$S$1000))","v":0},{"$f":"F696+SUMPRODUCT(('Fixed assets'!$Q$2:$Q$1000=Costs!F$705)*('Fixed assets'!$U$2:$U$1000>Costs!$A784)*('Fixed assets'!$P$2:$P$1000=Costs!$A784)*('Fixed assets'!$R$2:$R$1000))-SUMPRODUCT(('Fixed assets'!$Q$2:$Q$1000=Costs!F$705)*('Fixed assets'!$U$2:$U$1000>Costs!$A784)*('Fixed assets'!$P$2:$P$1000=Costs!$A784)*('Fixed assets'!$S$2:$S$1000))","v":0},{"$f":"G696+SUMPRODUCT(('Fixed assets'!$Q$2:$Q$1000=Costs!G$705)*('Fixed assets'!$U$2:$U$1000>Costs!$A784)*('Fixed assets'!$P$2:$P$1000=Costs!$A784)*('Fixed assets'!$R$2:$R$1000))-SUMPRODUCT(('Fixed assets'!$Q$2:$Q$1000=Costs!G$705)*('Fixed assets'!$U$2:$U$1000>Costs!$A784)*('Fixed assets'!$P$2:$P$1000=Costs!$A784)*('Fixed assets'!$S$2:$S$1000))","v":0},{"$f":"H696+SUMPRODUCT(('Fixed assets'!$Q$2:$Q$1000=Costs!H$705)*('Fixed assets'!$U$2:$U$1000>Costs!$A784)*('Fixed assets'!$P$2:$P$1000=Costs!$A784)*('Fixed assets'!$R$2:$R$1000))-SUMPRODUCT(('Fixed assets'!$Q$2:$Q$1000=Costs!H$705)*('Fixed assets'!$U$2:$U$1000>Costs!$A784)*('Fixed assets'!$P$2:$P$1000=Costs!$A784)*('Fixed assets'!$S$2:$S$1000))","v":0},{"$f":"I696+SUMPRODUCT(('Fixed assets'!$Q$2:$Q$1000=Costs!I$705)*('Fixed assets'!$U$2:$U$1000>Costs!$A784)*('Fixed assets'!$P$2:$P$1000=Costs!$A784)*('Fixed assets'!$R$2:$R$1000))-SUMPRODUCT(('Fixed assets'!$Q$2:$Q$1000=Costs!I$705)*('Fixed assets'!$U$2:$U$1000>Costs!$A784)*('Fixed assets'!$P$2:$P$1000=Costs!$A784)*('Fixed assets'!$S$2:$S$1000))","v":0},{"$f":"J696+SUMPRODUCT(('Fixed assets'!$Q$2:$Q$1000=Costs!J$705)*('Fixed assets'!$U$2:$U$1000>Costs!$A784)*('Fixed assets'!$P$2:$P$1000=Costs!$A784)*('Fixed assets'!$R$2:$R$1000))-SUMPRODUCT(('Fixed assets'!$Q$2:$Q$1000=Costs!J$705)*('Fixed assets'!$U$2:$U$1000>Costs!$A784)*('Fixed assets'!$P$2:$P$1000=Costs!$A784)*('Fixed assets'!$S$2:$S$1000))","v":0},{"$f":"K696+SUMPRODUCT(('Fixed assets'!$Q$2:$Q$1000=Costs!K$705)*('Fixed assets'!$U$2:$U$1000>Costs!$A784)*('Fixed assets'!$P$2:$P$1000=Costs!$A784)*('Fixed assets'!$R$2:$R$1000))-SUMPRODUCT(('Fixed assets'!$Q$2:$Q$1000=Costs!K$705)*('Fixed assets'!$U$2:$U$1000>Costs!$A784)*('Fixed assets'!$P$2:$P$1000=Costs!$A784)*('Fixed assets'!$S$2:$S$1000))","v":0},{"$f":"L696+SUMPRODUCT(('Fixed assets'!$Q$2:$Q$1000=Costs!L$705)*('Fixed assets'!$U$2:$U$1000>Costs!$A784)*('Fixed assets'!$P$2:$P$1000=Costs!$A784)*('Fixed assets'!$R$2:$R$1000))-SUMPRODUCT(('Fixed assets'!$Q$2:$Q$1000=Costs!L$705)*('Fixed assets'!$U$2:$U$1000>Costs!$A784)*('Fixed assets'!$P$2:$P$1000=Costs!$A784)*('Fixed assets'!$S$2:$S$1000))","v":0},{"$f":"M696+SUMPRODUCT(('Fixed assets'!$Q$2:$Q$1000=Costs!M$705)*('Fixed assets'!$U$2:$U$1000>Costs!$A784)*('Fixed assets'!$P$2:$P$1000=Costs!$A784)*('Fixed assets'!$R$2:$R$1000))-SUMPRODUCT(('Fixed assets'!$Q$2:$Q$1000=Costs!M$705)*('Fixed assets'!$U$2:$U$1000>Costs!$A784)*('Fixed assets'!$P$2:$P$1000=Costs!$A784)*('Fixed assets'!$S$2:$S$1000))","v":0},{"$f":"N696+SUMPRODUCT(('Fixed assets'!$Q$2:$Q$1000=Costs!N$705)*('Fixed assets'!$U$2:$U$1000>Costs!$A784)*('Fixed assets'!$P$2:$P$1000=Costs!$A784)*('Fixed assets'!$R$2:$R$1000))-SUMPRODUCT(('Fixed assets'!$Q$2:$Q$1000=Costs!N$705)*('Fixed assets'!$U$2:$U$1000>Costs!$A784)*('Fixed assets'!$P$2:$P$1000=Costs!$A784)*('Fixed assets'!$S$2:$S$1000))","v":0},{"$f":"O696+SUMPRODUCT(('Fixed assets'!$Q$2:$Q$1000=Costs!O$705)*('Fixed assets'!$U$2:$U$1000>Costs!$A784)*('Fixed assets'!$P$2:$P$1000=Costs!$A784)*('Fixed assets'!$R$2:$R$1000))-SUMPRODUCT(('Fixed assets'!$Q$2:$Q$1000=Costs!O$705)*('Fixed assets'!$U$2:$U$1000>Costs!$A784)*('Fixed assets'!$P$2:$P$1000=Costs!$A784)*('Fixed assets'!$S$2:$S$1000))","v":0},{"$f":"P696+SUMPRODUCT(('Fixed assets'!$Q$2:$Q$1000=Costs!P$705)*('Fixed assets'!$U$2:$U$1000>Costs!$A784)*('Fixed assets'!$P$2:$P$1000=Costs!$A784)*('Fixed assets'!$R$2:$R$1000))-SUMPRODUCT(('Fixed assets'!$Q$2:$Q$1000=Costs!P$705)*('Fixed assets'!$U$2:$U$1000>Costs!$A784)*('Fixed assets'!$P$2:$P$1000=Costs!$A784)*('Fixed assets'!$S$2:$S$1000))","v":0},{"$f":"Q696+SUMPRODUCT(('Fixed assets'!$Q$2:$Q$1000=Costs!Q$705)*('Fixed assets'!$U$2:$U$1000>Costs!$A784)*('Fixed assets'!$P$2:$P$1000=Costs!$A784)*('Fixed assets'!$R$2:$R$1000))-SUMPRODUCT(('Fixed assets'!$Q$2:$Q$1000=Costs!Q$705)*('Fixed assets'!$U$2:$U$1000>Costs!$A784)*('Fixed assets'!$P$2:$P$1000=Costs!$A784)*('Fixed assets'!$S$2:$S$1000))","v":0},{"$f":"R696+SUMPRODUCT(('Fixed assets'!$Q$2:$Q$1000=Costs!R$705)*('Fixed assets'!$U$2:$U$1000>Costs!$A784)*('Fixed assets'!$P$2:$P$1000=Costs!$A784)*('Fixed assets'!$R$2:$R$1000))-SUMPRODUCT(('Fixed assets'!$Q$2:$Q$1000=Costs!R$705)*('Fixed assets'!$U$2:$U$1000>Costs!$A784)*('Fixed assets'!$P$2:$P$1000=Costs!$A784)*('Fixed assets'!$S$2:$S$1000))","v":0},{"$f":"S696+SUMPRODUCT(('Fixed assets'!$Q$2:$Q$1000=Costs!S$705)*('Fixed assets'!$U$2:$U$1000>Costs!$A784)*('Fixed assets'!$P$2:$P$1000=Costs!$A784)*('Fixed assets'!$R$2:$R$1000))-SUMPRODUCT(('Fixed assets'!$Q$2:$Q$1000=Costs!S$705)*('Fixed assets'!$U$2:$U$1000>Costs!$A784)*('Fixed assets'!$P$2:$P$1000=Costs!$A784)*('Fixed assets'!$S$2:$S$1000))","v":0},{"$f":"T696+SUMPRODUCT(('Fixed assets'!$Q$2:$Q$1000=Costs!T$705)*('Fixed assets'!$U$2:$U$1000>Costs!$A784)*('Fixed assets'!$P$2:$P$1000=Costs!$A784)*('Fixed assets'!$R$2:$R$1000))-SUMPRODUCT(('Fixed assets'!$Q$2:$Q$1000=Costs!T$705)*('Fixed assets'!$U$2:$U$1000>Costs!$A784)*('Fixed assets'!$P$2:$P$1000=Costs!$A784)*('Fixed assets'!$S$2:$S$1000))","v":0},{"$f":"U696+SUMPRODUCT(('Fixed assets'!$Q$2:$Q$1000=Costs!U$705)*('Fixed assets'!$U$2:$U$1000>Costs!$A784)*('Fixed assets'!$P$2:$P$1000=Costs!$A784)*('Fixed assets'!$R$2:$R$1000))-SUMPRODUCT(('Fixed assets'!$Q$2:$Q$1000=Costs!U$705)*('Fixed assets'!$U$2:$U$1000>Costs!$A784)*('Fixed assets'!$P$2:$P$1000=Costs!$A784)*('Fixed assets'!$S$2:$S$1000))","v":0},{"$f":"V696+SUMPRODUCT(('Fixed assets'!$Q$2:$Q$1000=Costs!V$705)*('Fixed assets'!$U$2:$U$1000>Costs!$A784)*('Fixed assets'!$P$2:$P$1000=Costs!$A784)*('Fixed assets'!$R$2:$R$1000))-SUMPRODUCT(('Fixed assets'!$Q$2:$Q$1000=Costs!V$705)*('Fixed assets'!$U$2:$U$1000>Costs!$A784)*('Fixed assets'!$P$2:$P$1000=Costs!$A784)*('Fixed assets'!$S$2:$S$1000))","v":0},{"$f":"W696+SUMPRODUCT(('Fixed assets'!$Q$2:$Q$1000=Costs!W$705)*('Fixed assets'!$U$2:$U$1000>Costs!$A784)*('Fixed assets'!$P$2:$P$1000=Costs!$A784)*('Fixed assets'!$R$2:$R$1000))-SUMPRODUCT(('Fixed assets'!$Q$2:$Q$1000=Costs!W$705)*('Fixed assets'!$U$2:$U$1000>Costs!$A784)*('Fixed assets'!$P$2:$P$1000=Costs!$A784)*('Fixed assets'!$S$2:$S$1000))","v":0},{"$f":"X696+SUMPRODUCT(('Fixed assets'!$Q$2:$Q$1000=Costs!X$705)*('Fixed assets'!$U$2:$U$1000>Costs!$A784)*('Fixed assets'!$P$2:$P$1000=Costs!$A784)*('Fixed assets'!$R$2:$R$1000))-SUMPRODUCT(('Fixed assets'!$Q$2:$Q$1000=Costs!X$705)*('Fixed assets'!$U$2:$U$1000>Costs!$A784)*('Fixed assets'!$P$2:$P$1000=Costs!$A784)*('Fixed assets'!$S$2:$S$1000))","v":0},{"$f":"Y696+SUMPRODUCT(('Fixed assets'!$Q$2:$Q$1000=Costs!Y$705)*('Fixed assets'!$U$2:$U$1000>Costs!$A784)*('Fixed assets'!$P$2:$P$1000=Costs!$A784)*('Fixed assets'!$R$2:$R$1000))-SUMPRODUCT(('Fixed assets'!$Q$2:$Q$1000=Costs!Y$705)*('Fixed assets'!$U$2:$U$1000>Costs!$A784)*('Fixed assets'!$P$2:$P$1000=Costs!$A784)*('Fixed assets'!$S$2:$S$1000))","v":0},{"$f":"Z696+SUMPRODUCT(('Fixed assets'!$Q$2:$Q$1000=Costs!Z$705)*('Fixed assets'!$U$2:$U$1000>Costs!$A784)*('Fixed assets'!$P$2:$P$1000=Costs!$A784)*('Fixed assets'!$R$2:$R$1000))-SUMPRODUCT(('Fixed assets'!$Q$2:$Q$1000=Costs!Z$705)*('Fixed assets'!$U$2:$U$1000>Costs!$A784)*('Fixed assets'!$P$2:$P$1000=Costs!$A784)*('Fixed assets'!$S$2:$S$1000))","v":0},{"$f":"AA696+SUMPRODUCT(('Fixed assets'!$Q$2:$Q$1000=Costs!AA$705)*('Fixed assets'!$U$2:$U$1000>Costs!$A784)*('Fixed assets'!$P$2:$P$1000=Costs!$A784)*('Fixed assets'!$R$2:$R$1000))-SUMPRODUCT(('Fixed assets'!$Q$2:$Q$1000=Costs!AA$705)*('Fixed assets'!$U$2:$U$1000>Costs!$A784)*('Fixed assets'!$P$2:$P$1000=Costs!$A784)*('Fixed assets'!$S$2:$S$1000))","v":0},{"$f":"AB696+SUMPRODUCT(('Fixed assets'!$Q$2:$Q$1000=Costs!AB$705)*('Fixed assets'!$U$2:$U$1000>Costs!$A784)*('Fixed assets'!$P$2:$P$1000=Costs!$A784)*('Fixed assets'!$R$2:$R$1000))-SUMPRODUCT(('Fixed assets'!$Q$2:$Q$1000=Costs!AB$705)*('Fixed assets'!$U$2:$U$1000>Costs!$A784)*('Fixed assets'!$P$2:$P$1000=Costs!$A784)*('Fixed assets'!$S$2:$S$1000))","v":0},{"$f":"AC696+SUMPRODUCT(('Fixed assets'!$Q$2:$Q$1000=Costs!AC$705)*('Fixed assets'!$U$2:$U$1000>Costs!$A784)*('Fixed assets'!$P$2:$P$1000=Costs!$A784)*('Fixed assets'!$R$2:$R$1000))-SUMPRODUCT(('Fixed assets'!$Q$2:$Q$1000=Costs!AC$705)*('Fixed assets'!$U$2:$U$1000>Costs!$A784)*('Fixed assets'!$P$2:$P$1000=Costs!$A784)*('Fixed assets'!$S$2:$S$1000))","v":0},{"$f":"AD696+SUMPRODUCT(('Fixed assets'!$Q$2:$Q$1000=Costs!AD$705)*('Fixed assets'!$U$2:$U$1000>Costs!$A784)*('Fixed assets'!$P$2:$P$1000=Costs!$A784)*('Fixed assets'!$R$2:$R$1000))-SUMPRODUCT(('Fixed assets'!$Q$2:$Q$1000=Costs!AD$705)*('Fixed assets'!$U$2:$U$1000>Costs!$A784)*('Fixed assets'!$P$2:$P$1000=Costs!$A784)*('Fixed assets'!$S$2:$S$1000))","v":0},{"$f":"AE696+SUMPRODUCT(('Fixed assets'!$Q$2:$Q$1000=Costs!AE$705)*('Fixed assets'!$U$2:$U$1000>Costs!$A784)*('Fixed assets'!$P$2:$P$1000=Costs!$A784)*('Fixed assets'!$R$2:$R$1000))-SUMPRODUCT(('Fixed assets'!$Q$2:$Q$1000=Costs!AE$705)*('Fixed assets'!$U$2:$U$1000>Costs!$A784)*('Fixed assets'!$P$2:$P$1000=Costs!$A784)*('Fixed assets'!$S$2:$S$1000))","v":0},{"$f":"AF696+SUMPRODUCT(('Fixed assets'!$Q$2:$Q$1000=Costs!AF$705)*('Fixed assets'!$U$2:$U$1000>Costs!$A784)*('Fixed assets'!$P$2:$P$1000=Costs!$A784)*('Fixed assets'!$R$2:$R$1000))-SUMPRODUCT(('Fixed assets'!$Q$2:$Q$1000=Costs!AF$705)*('Fixed assets'!$U$2:$U$1000>Costs!$A784)*('Fixed assets'!$P$2:$P$1000=Costs!$A784)*('Fixed assets'!$S$2:$S$1000))","v":0},{"$f":"AG696+SUMPRODUCT(('Fixed assets'!$Q$2:$Q$1000=Costs!AG$705)*('Fixed assets'!$U$2:$U$1000>Costs!$A784)*('Fixed assets'!$P$2:$P$1000=Costs!$A784)*('Fixed assets'!$R$2:$R$1000))-SUMPRODUCT(('Fixed assets'!$Q$2:$Q$1000=Costs!AG$705)*('Fixed assets'!$U$2:$U$1000>Costs!$A784)*('Fixed assets'!$P$2:$P$1000=Costs!$A784)*('Fixed assets'!$S$2:$S$1000))","v":0},{"$f":"AH696+SUMPRODUCT(('Fixed assets'!$Q$2:$Q$1000=Costs!AH$705)*('Fixed assets'!$U$2:$U$1000>Costs!$A784)*('Fixed assets'!$P$2:$P$1000=Costs!$A784)*('Fixed assets'!$R$2:$R$1000))-SUMPRODUCT(('Fixed assets'!$Q$2:$Q$1000=Costs!AH$705)*('Fixed assets'!$U$2:$U$1000>Costs!$A784)*('Fixed assets'!$P$2:$P$1000=Costs!$A784)*('Fixed assets'!$S$2:$S$1000))","v":0},{"$f":"AI696+SUMPRODUCT(('Fixed assets'!$Q$2:$Q$1000=Costs!AI$705)*('Fixed assets'!$U$2:$U$1000>Costs!$A784)*('Fixed assets'!$P$2:$P$1000=Costs!$A784)*('Fixed assets'!$R$2:$R$1000))-SUMPRODUCT(('Fixed assets'!$Q$2:$Q$1000=Costs!AI$705)*('Fixed assets'!$U$2:$U$1000>Costs!$A784)*('Fixed assets'!$P$2:$P$1000=Costs!$A784)*('Fixed assets'!$S$2:$S$1000))","v":0},{"$f":"AJ696+SUMPRODUCT(('Fixed assets'!$Q$2:$Q$1000=Costs!AJ$705)*('Fixed assets'!$U$2:$U$1000>Costs!$A784)*('Fixed assets'!$P$2:$P$1000=Costs!$A784)*('Fixed assets'!$R$2:$R$1000))-SUMPRODUCT(('Fixed assets'!$Q$2:$Q$1000=Costs!AJ$705)*('Fixed assets'!$U$2:$U$1000>Costs!$A784)*('Fixed assets'!$P$2:$P$1000=Costs!$A784)*('Fixed assets'!$S$2:$S$1000))","v":0},{"$f":"AK696+SUMPRODUCT(('Fixed assets'!$Q$2:$Q$1000=Costs!AK$705)*('Fixed assets'!$U$2:$U$1000>Costs!$A784)*('Fixed assets'!$P$2:$P$1000=Costs!$A784)*('Fixed assets'!$R$2:$R$1000))-SUMPRODUCT(('Fixed assets'!$Q$2:$Q$1000=Costs!AK$705)*('Fixed assets'!$U$2:$U$1000>Costs!$A784)*('Fixed assets'!$P$2:$P$1000=Costs!$A784)*('Fixed assets'!$S$2:$S$1000))","v":0},{"$f":"AL696+SUMPRODUCT(('Fixed assets'!$Q$2:$Q$1000=Costs!AL$705)*('Fixed assets'!$U$2:$U$1000>Costs!$A784)*('Fixed assets'!$P$2:$P$1000=Costs!$A784)*('Fixed assets'!$R$2:$R$1000))-SUMPRODUCT(('Fixed assets'!$Q$2:$Q$1000=Costs!AL$705)*('Fixed assets'!$U$2:$U$1000>Costs!$A784)*('Fixed assets'!$P$2:$P$1000=Costs!$A784)*('Fixed assets'!$S$2:$S$1000))","v":0},{"$f":"AM696+SUMPRODUCT(('Fixed assets'!$Q$2:$Q$1000=Costs!AM$705)*('Fixed assets'!$U$2:$U$1000>Costs!$A784)*('Fixed assets'!$P$2:$P$1000=Costs!$A784)*('Fixed assets'!$R$2:$R$1000))-SUMPRODUCT(('Fixed assets'!$Q$2:$Q$1000=Costs!AM$705)*('Fixed assets'!$U$2:$U$1000>Costs!$A784)*('Fixed assets'!$P$2:$P$1000=Costs!$A784)*('Fixed assets'!$S$2:$S$1000))","v":0},{"$f":"AN696+SUMPRODUCT(('Fixed assets'!$Q$2:$Q$1000=Costs!AN$705)*('Fixed assets'!$U$2:$U$1000>Costs!$A784)*('Fixed assets'!$P$2:$P$1000=Costs!$A784)*('Fixed assets'!$R$2:$R$1000))-SUMPRODUCT(('Fixed assets'!$Q$2:$Q$1000=Costs!AN$705)*('Fixed assets'!$U$2:$U$1000>Costs!$A784)*('Fixed assets'!$P$2:$P$1000=Costs!$A784)*('Fixed assets'!$S$2:$S$1000))","v":0},{"$f":"AO696+SUMPRODUCT(('Fixed assets'!$Q$2:$Q$1000=Costs!AO$705)*('Fixed assets'!$U$2:$U$1000>Costs!$A784)*('Fixed assets'!$P$2:$P$1000=Costs!$A784)*('Fixed assets'!$R$2:$R$1000))-SUMPRODUCT(('Fixed assets'!$Q$2:$Q$1000=Costs!AO$705)*('Fixed assets'!$U$2:$U$1000>Costs!$A784)*('Fixed assets'!$P$2:$P$1000=Costs!$A784)*('Fixed assets'!$S$2:$S$1000))","v":0},{"$f":"AP696+SUMPRODUCT(('Fixed assets'!$Q$2:$Q$1000=Costs!AP$705)*('Fixed assets'!$U$2:$U$1000>Costs!$A784)*('Fixed assets'!$P$2:$P$1000=Costs!$A784)*('Fixed assets'!$R$2:$R$1000))-SUMPRODUCT(('Fixed assets'!$Q$2:$Q$1000=Costs!AP$705)*('Fixed assets'!$U$2:$U$1000>Costs!$A784)*('Fixed assets'!$P$2:$P$1000=Costs!$A784)*('Fixed assets'!$S$2:$S$1000))","v":0},{"$f":"AQ696+SUMPRODUCT(('Fixed assets'!$Q$2:$Q$1000=Costs!AQ$705)*('Fixed assets'!$U$2:$U$1000>Costs!$A784)*('Fixed assets'!$P$2:$P$1000=Costs!$A784)*('Fixed assets'!$R$2:$R$1000))-SUMPRODUCT(('Fixed assets'!$Q$2:$Q$1000=Costs!AQ$705)*('Fixed assets'!$U$2:$U$1000>Costs!$A784)*('Fixed assets'!$P$2:$P$1000=Costs!$A784)*('Fixed assets'!$S$2:$S$1000))","v":0}]
[2094,{"$f":"SUM(C785:AQ785)","v":0},{"$f":"C697+SUMPRODUCT(('Fixed assets'!$Q$2:$Q$1000=Costs!C$705)*('Fixed assets'!$U$2:$U$1000>Costs!$A785)*('Fixed assets'!$P$2:$P$1000=Costs!$A785)*('Fixed assets'!$R$2:$R$1000))-SUMPRODUCT(('Fixed assets'!$Q$2:$Q$1000=Costs!C$705)*('Fixed assets'!$U$2:$U$1000>Costs!$A785)*('Fixed assets'!$P$2:$P$1000=Costs!$A785)*('Fixed assets'!$S$2:$S$1000))","v":0},{"$f":"D697+SUMPRODUCT(('Fixed assets'!$Q$2:$Q$1000=Costs!D$705)*('Fixed assets'!$U$2:$U$1000>Costs!$A785)*('Fixed assets'!$P$2:$P$1000=Costs!$A785)*('Fixed assets'!$R$2:$R$1000))-SUMPRODUCT(('Fixed assets'!$Q$2:$Q$1000=Costs!D$705)*('Fixed assets'!$U$2:$U$1000>Costs!$A785)*('Fixed assets'!$P$2:$P$1000=Costs!$A785)*('Fixed assets'!$S$2:$S$1000))","v":0},{"$f":"E697+SUMPRODUCT(('Fixed assets'!$Q$2:$Q$1000=Costs!E$705)*('Fixed assets'!$U$2:$U$1000>Costs!$A785)*('Fixed assets'!$P$2:$P$1000=Costs!$A785)*('Fixed assets'!$R$2:$R$1000))-SUMPRODUCT(('Fixed assets'!$Q$2:$Q$1000=Costs!E$705)*('Fixed assets'!$U$2:$U$1000>Costs!$A785)*('Fixed assets'!$P$2:$P$1000=Costs!$A785)*('Fixed assets'!$S$2:$S$1000))","v":0},{"$f":"F697+SUMPRODUCT(('Fixed assets'!$Q$2:$Q$1000=Costs!F$705)*('Fixed assets'!$U$2:$U$1000>Costs!$A785)*('Fixed assets'!$P$2:$P$1000=Costs!$A785)*('Fixed assets'!$R$2:$R$1000))-SUMPRODUCT(('Fixed assets'!$Q$2:$Q$1000=Costs!F$705)*('Fixed assets'!$U$2:$U$1000>Costs!$A785)*('Fixed assets'!$P$2:$P$1000=Costs!$A785)*('Fixed assets'!$S$2:$S$1000))","v":0},{"$f":"G697+SUMPRODUCT(('Fixed assets'!$Q$2:$Q$1000=Costs!G$705)*('Fixed assets'!$U$2:$U$1000>Costs!$A785)*('Fixed assets'!$P$2:$P$1000=Costs!$A785)*('Fixed assets'!$R$2:$R$1000))-SUMPRODUCT(('Fixed assets'!$Q$2:$Q$1000=Costs!G$705)*('Fixed assets'!$U$2:$U$1000>Costs!$A785)*('Fixed assets'!$P$2:$P$1000=Costs!$A785)*('Fixed assets'!$S$2:$S$1000))","v":0},{"$f":"H697+SUMPRODUCT(('Fixed assets'!$Q$2:$Q$1000=Costs!H$705)*('Fixed assets'!$U$2:$U$1000>Costs!$A785)*('Fixed assets'!$P$2:$P$1000=Costs!$A785)*('Fixed assets'!$R$2:$R$1000))-SUMPRODUCT(('Fixed assets'!$Q$2:$Q$1000=Costs!H$705)*('Fixed assets'!$U$2:$U$1000>Costs!$A785)*('Fixed assets'!$P$2:$P$1000=Costs!$A785)*('Fixed assets'!$S$2:$S$1000))","v":0},{"$f":"I697+SUMPRODUCT(('Fixed assets'!$Q$2:$Q$1000=Costs!I$705)*('Fixed assets'!$U$2:$U$1000>Costs!$A785)*('Fixed assets'!$P$2:$P$1000=Costs!$A785)*('Fixed assets'!$R$2:$R$1000))-SUMPRODUCT(('Fixed assets'!$Q$2:$Q$1000=Costs!I$705)*('Fixed assets'!$U$2:$U$1000>Costs!$A785)*('Fixed assets'!$P$2:$P$1000=Costs!$A785)*('Fixed assets'!$S$2:$S$1000))","v":0},{"$f":"J697+SUMPRODUCT(('Fixed assets'!$Q$2:$Q$1000=Costs!J$705)*('Fixed assets'!$U$2:$U$1000>Costs!$A785)*('Fixed assets'!$P$2:$P$1000=Costs!$A785)*('Fixed assets'!$R$2:$R$1000))-SUMPRODUCT(('Fixed assets'!$Q$2:$Q$1000=Costs!J$705)*('Fixed assets'!$U$2:$U$1000>Costs!$A785)*('Fixed assets'!$P$2:$P$1000=Costs!$A785)*('Fixed assets'!$S$2:$S$1000))","v":0},{"$f":"K697+SUMPRODUCT(('Fixed assets'!$Q$2:$Q$1000=Costs!K$705)*('Fixed assets'!$U$2:$U$1000>Costs!$A785)*('Fixed assets'!$P$2:$P$1000=Costs!$A785)*('Fixed assets'!$R$2:$R$1000))-SUMPRODUCT(('Fixed assets'!$Q$2:$Q$1000=Costs!K$705)*('Fixed assets'!$U$2:$U$1000>Costs!$A785)*('Fixed assets'!$P$2:$P$1000=Costs!$A785)*('Fixed assets'!$S$2:$S$1000))","v":0},{"$f":"L697+SUMPRODUCT(('Fixed assets'!$Q$2:$Q$1000=Costs!L$705)*('Fixed assets'!$U$2:$U$1000>Costs!$A785)*('Fixed assets'!$P$2:$P$1000=Costs!$A785)*('Fixed assets'!$R$2:$R$1000))-SUMPRODUCT(('Fixed assets'!$Q$2:$Q$1000=Costs!L$705)*('Fixed assets'!$U$2:$U$1000>Costs!$A785)*('Fixed assets'!$P$2:$P$1000=Costs!$A785)*('Fixed assets'!$S$2:$S$1000))","v":0},{"$f":"M697+SUMPRODUCT(('Fixed assets'!$Q$2:$Q$1000=Costs!M$705)*('Fixed assets'!$U$2:$U$1000>Costs!$A785)*('Fixed assets'!$P$2:$P$1000=Costs!$A785)*('Fixed assets'!$R$2:$R$1000))-SUMPRODUCT(('Fixed assets'!$Q$2:$Q$1000=Costs!M$705)*('Fixed assets'!$U$2:$U$1000>Costs!$A785)*('Fixed assets'!$P$2:$P$1000=Costs!$A785)*('Fixed assets'!$S$2:$S$1000))","v":0},{"$f":"N697+SUMPRODUCT(('Fixed assets'!$Q$2:$Q$1000=Costs!N$705)*('Fixed assets'!$U$2:$U$1000>Costs!$A785)*('Fixed assets'!$P$2:$P$1000=Costs!$A785)*('Fixed assets'!$R$2:$R$1000))-SUMPRODUCT(('Fixed assets'!$Q$2:$Q$1000=Costs!N$705)*('Fixed assets'!$U$2:$U$1000>Costs!$A785)*('Fixed assets'!$P$2:$P$1000=Costs!$A785)*('Fixed assets'!$S$2:$S$1000))","v":0},{"$f":"O697+SUMPRODUCT(('Fixed assets'!$Q$2:$Q$1000=Costs!O$705)*('Fixed assets'!$U$2:$U$1000>Costs!$A785)*('Fixed assets'!$P$2:$P$1000=Costs!$A785)*('Fixed assets'!$R$2:$R$1000))-SUMPRODUCT(('Fixed assets'!$Q$2:$Q$1000=Costs!O$705)*('Fixed assets'!$U$2:$U$1000>Costs!$A785)*('Fixed assets'!$P$2:$P$1000=Costs!$A785)*('Fixed assets'!$S$2:$S$1000))","v":0},{"$f":"P697+SUMPRODUCT(('Fixed assets'!$Q$2:$Q$1000=Costs!P$705)*('Fixed assets'!$U$2:$U$1000>Costs!$A785)*('Fixed assets'!$P$2:$P$1000=Costs!$A785)*('Fixed assets'!$R$2:$R$1000))-SUMPRODUCT(('Fixed assets'!$Q$2:$Q$1000=Costs!P$705)*('Fixed assets'!$U$2:$U$1000>Costs!$A785)*('Fixed assets'!$P$2:$P$1000=Costs!$A785)*('Fixed assets'!$S$2:$S$1000))","v":0},{"$f":"Q697+SUMPRODUCT(('Fixed assets'!$Q$2:$Q$1000=Costs!Q$705)*('Fixed assets'!$U$2:$U$1000>Costs!$A785)*('Fixed assets'!$P$2:$P$1000=Costs!$A785)*('Fixed assets'!$R$2:$R$1000))-SUMPRODUCT(('Fixed assets'!$Q$2:$Q$1000=Costs!Q$705)*('Fixed assets'!$U$2:$U$1000>Costs!$A785)*('Fixed assets'!$P$2:$P$1000=Costs!$A785)*('Fixed assets'!$S$2:$S$1000))","v":0},{"$f":"R697+SUMPRODUCT(('Fixed assets'!$Q$2:$Q$1000=Costs!R$705)*('Fixed assets'!$U$2:$U$1000>Costs!$A785)*('Fixed assets'!$P$2:$P$1000=Costs!$A785)*('Fixed assets'!$R$2:$R$1000))-SUMPRODUCT(('Fixed assets'!$Q$2:$Q$1000=Costs!R$705)*('Fixed assets'!$U$2:$U$1000>Costs!$A785)*('Fixed assets'!$P$2:$P$1000=Costs!$A785)*('Fixed assets'!$S$2:$S$1000))","v":0},{"$f":"S697+SUMPRODUCT(('Fixed assets'!$Q$2:$Q$1000=Costs!S$705)*('Fixed assets'!$U$2:$U$1000>Costs!$A785)*('Fixed assets'!$P$2:$P$1000=Costs!$A785)*('Fixed assets'!$R$2:$R$1000))-SUMPRODUCT(('Fixed assets'!$Q$2:$Q$1000=Costs!S$705)*('Fixed assets'!$U$2:$U$1000>Costs!$A785)*('Fixed assets'!$P$2:$P$1000=Costs!$A785)*('Fixed assets'!$S$2:$S$1000))","v":0},{"$f":"T697+SUMPRODUCT(('Fixed assets'!$Q$2:$Q$1000=Costs!T$705)*('Fixed assets'!$U$2:$U$1000>Costs!$A785)*('Fixed assets'!$P$2:$P$1000=Costs!$A785)*('Fixed assets'!$R$2:$R$1000))-SUMPRODUCT(('Fixed assets'!$Q$2:$Q$1000=Costs!T$705)*('Fixed assets'!$U$2:$U$1000>Costs!$A785)*('Fixed assets'!$P$2:$P$1000=Costs!$A785)*('Fixed assets'!$S$2:$S$1000))","v":0},{"$f":"U697+SUMPRODUCT(('Fixed assets'!$Q$2:$Q$1000=Costs!U$705)*('Fixed assets'!$U$2:$U$1000>Costs!$A785)*('Fixed assets'!$P$2:$P$1000=Costs!$A785)*('Fixed assets'!$R$2:$R$1000))-SUMPRODUCT(('Fixed assets'!$Q$2:$Q$1000=Costs!U$705)*('Fixed assets'!$U$2:$U$1000>Costs!$A785)*('Fixed assets'!$P$2:$P$1000=Costs!$A785)*('Fixed assets'!$S$2:$S$1000))","v":0},{"$f":"V697+SUMPRODUCT(('Fixed assets'!$Q$2:$Q$1000=Costs!V$705)*('Fixed assets'!$U$2:$U$1000>Costs!$A785)*('Fixed assets'!$P$2:$P$1000=Costs!$A785)*('Fixed assets'!$R$2:$R$1000))-SUMPRODUCT(('Fixed assets'!$Q$2:$Q$1000=Costs!V$705)*('Fixed assets'!$U$2:$U$1000>Costs!$A785)*('Fixed assets'!$P$2:$P$1000=Costs!$A785)*('Fixed assets'!$S$2:$S$1000))","v":0},{"$f":"W697+SUMPRODUCT(('Fixed assets'!$Q$2:$Q$1000=Costs!W$705)*('Fixed assets'!$U$2:$U$1000>Costs!$A785)*('Fixed assets'!$P$2:$P$1000=Costs!$A785)*('Fixed assets'!$R$2:$R$1000))-SUMPRODUCT(('Fixed assets'!$Q$2:$Q$1000=Costs!W$705)*('Fixed assets'!$U$2:$U$1000>Costs!$A785)*('Fixed assets'!$P$2:$P$1000=Costs!$A785)*('Fixed assets'!$S$2:$S$1000))","v":0},{"$f":"X697+SUMPRODUCT(('Fixed assets'!$Q$2:$Q$1000=Costs!X$705)*('Fixed assets'!$U$2:$U$1000>Costs!$A785)*('Fixed assets'!$P$2:$P$1000=Costs!$A785)*('Fixed assets'!$R$2:$R$1000))-SUMPRODUCT(('Fixed assets'!$Q$2:$Q$1000=Costs!X$705)*('Fixed assets'!$U$2:$U$1000>Costs!$A785)*('Fixed assets'!$P$2:$P$1000=Costs!$A785)*('Fixed assets'!$S$2:$S$1000))","v":0},{"$f":"Y697+SUMPRODUCT(('Fixed assets'!$Q$2:$Q$1000=Costs!Y$705)*('Fixed assets'!$U$2:$U$1000>Costs!$A785)*('Fixed assets'!$P$2:$P$1000=Costs!$A785)*('Fixed assets'!$R$2:$R$1000))-SUMPRODUCT(('Fixed assets'!$Q$2:$Q$1000=Costs!Y$705)*('Fixed assets'!$U$2:$U$1000>Costs!$A785)*('Fixed assets'!$P$2:$P$1000=Costs!$A785)*('Fixed assets'!$S$2:$S$1000))","v":0},{"$f":"Z697+SUMPRODUCT(('Fixed assets'!$Q$2:$Q$1000=Costs!Z$705)*('Fixed assets'!$U$2:$U$1000>Costs!$A785)*('Fixed assets'!$P$2:$P$1000=Costs!$A785)*('Fixed assets'!$R$2:$R$1000))-SUMPRODUCT(('Fixed assets'!$Q$2:$Q$1000=Costs!Z$705)*('Fixed assets'!$U$2:$U$1000>Costs!$A785)*('Fixed assets'!$P$2:$P$1000=Costs!$A785)*('Fixed assets'!$S$2:$S$1000))","v":0},{"$f":"AA697+SUMPRODUCT(('Fixed assets'!$Q$2:$Q$1000=Costs!AA$705)*('Fixed assets'!$U$2:$U$1000>Costs!$A785)*('Fixed assets'!$P$2:$P$1000=Costs!$A785)*('Fixed assets'!$R$2:$R$1000))-SUMPRODUCT(('Fixed assets'!$Q$2:$Q$1000=Costs!AA$705)*('Fixed assets'!$U$2:$U$1000>Costs!$A785)*('Fixed assets'!$P$2:$P$1000=Costs!$A785)*('Fixed assets'!$S$2:$S$1000))","v":0},{"$f":"AB697+SUMPRODUCT(('Fixed assets'!$Q$2:$Q$1000=Costs!AB$705)*('Fixed assets'!$U$2:$U$1000>Costs!$A785)*('Fixed assets'!$P$2:$P$1000=Costs!$A785)*('Fixed assets'!$R$2:$R$1000))-SUMPRODUCT(('Fixed assets'!$Q$2:$Q$1000=Costs!AB$705)*('Fixed assets'!$U$2:$U$1000>Costs!$A785)*('Fixed assets'!$P$2:$P$1000=Costs!$A785)*('Fixed assets'!$S$2:$S$1000))","v":0},{"$f":"AC697+SUMPRODUCT(('Fixed assets'!$Q$2:$Q$1000=Costs!AC$705)*('Fixed assets'!$U$2:$U$1000>Costs!$A785)*('Fixed assets'!$P$2:$P$1000=Costs!$A785)*('Fixed assets'!$R$2:$R$1000))-SUMPRODUCT(('Fixed assets'!$Q$2:$Q$1000=Costs!AC$705)*('Fixed assets'!$U$2:$U$1000>Costs!$A785)*('Fixed assets'!$P$2:$P$1000=Costs!$A785)*('Fixed assets'!$S$2:$S$1000))","v":0},{"$f":"AD697+SUMPRODUCT(('Fixed assets'!$Q$2:$Q$1000=Costs!AD$705)*('Fixed assets'!$U$2:$U$1000>Costs!$A785)*('Fixed assets'!$P$2:$P$1000=Costs!$A785)*('Fixed assets'!$R$2:$R$1000))-SUMPRODUCT(('Fixed assets'!$Q$2:$Q$1000=Costs!AD$705)*('Fixed assets'!$U$2:$U$1000>Costs!$A785)*('Fixed assets'!$P$2:$P$1000=Costs!$A785)*('Fixed assets'!$S$2:$S$1000))","v":0},{"$f":"AE697+SUMPRODUCT(('Fixed assets'!$Q$2:$Q$1000=Costs!AE$705)*('Fixed assets'!$U$2:$U$1000>Costs!$A785)*('Fixed assets'!$P$2:$P$1000=Costs!$A785)*('Fixed assets'!$R$2:$R$1000))-SUMPRODUCT(('Fixed assets'!$Q$2:$Q$1000=Costs!AE$705)*('Fixed assets'!$U$2:$U$1000>Costs!$A785)*('Fixed assets'!$P$2:$P$1000=Costs!$A785)*('Fixed assets'!$S$2:$S$1000))","v":0},{"$f":"AF697+SUMPRODUCT(('Fixed assets'!$Q$2:$Q$1000=Costs!AF$705)*('Fixed assets'!$U$2:$U$1000>Costs!$A785)*('Fixed assets'!$P$2:$P$1000=Costs!$A785)*('Fixed assets'!$R$2:$R$1000))-SUMPRODUCT(('Fixed assets'!$Q$2:$Q$1000=Costs!AF$705)*('Fixed assets'!$U$2:$U$1000>Costs!$A785)*('Fixed assets'!$P$2:$P$1000=Costs!$A785)*('Fixed assets'!$S$2:$S$1000))","v":0},{"$f":"AG697+SUMPRODUCT(('Fixed assets'!$Q$2:$Q$1000=Costs!AG$705)*('Fixed assets'!$U$2:$U$1000>Costs!$A785)*('Fixed assets'!$P$2:$P$1000=Costs!$A785)*('Fixed assets'!$R$2:$R$1000))-SUMPRODUCT(('Fixed assets'!$Q$2:$Q$1000=Costs!AG$705)*('Fixed assets'!$U$2:$U$1000>Costs!$A785)*('Fixed assets'!$P$2:$P$1000=Costs!$A785)*('Fixed assets'!$S$2:$S$1000))","v":0},{"$f":"AH697+SUMPRODUCT(('Fixed assets'!$Q$2:$Q$1000=Costs!AH$705)*('Fixed assets'!$U$2:$U$1000>Costs!$A785)*('Fixed assets'!$P$2:$P$1000=Costs!$A785)*('Fixed assets'!$R$2:$R$1000))-SUMPRODUCT(('Fixed assets'!$Q$2:$Q$1000=Costs!AH$705)*('Fixed assets'!$U$2:$U$1000>Costs!$A785)*('Fixed assets'!$P$2:$P$1000=Costs!$A785)*('Fixed assets'!$S$2:$S$1000))","v":0},{"$f":"AI697+SUMPRODUCT(('Fixed assets'!$Q$2:$Q$1000=Costs!AI$705)*('Fixed assets'!$U$2:$U$1000>Costs!$A785)*('Fixed assets'!$P$2:$P$1000=Costs!$A785)*('Fixed assets'!$R$2:$R$1000))-SUMPRODUCT(('Fixed assets'!$Q$2:$Q$1000=Costs!AI$705)*('Fixed assets'!$U$2:$U$1000>Costs!$A785)*('Fixed assets'!$P$2:$P$1000=Costs!$A785)*('Fixed assets'!$S$2:$S$1000))","v":0},{"$f":"AJ697+SUMPRODUCT(('Fixed assets'!$Q$2:$Q$1000=Costs!AJ$705)*('Fixed assets'!$U$2:$U$1000>Costs!$A785)*('Fixed assets'!$P$2:$P$1000=Costs!$A785)*('Fixed assets'!$R$2:$R$1000))-SUMPRODUCT(('Fixed assets'!$Q$2:$Q$1000=Costs!AJ$705)*('Fixed assets'!$U$2:$U$1000>Costs!$A785)*('Fixed assets'!$P$2:$P$1000=Costs!$A785)*('Fixed assets'!$S$2:$S$1000))","v":0},{"$f":"AK697+SUMPRODUCT(('Fixed assets'!$Q$2:$Q$1000=Costs!AK$705)*('Fixed assets'!$U$2:$U$1000>Costs!$A785)*('Fixed assets'!$P$2:$P$1000=Costs!$A785)*('Fixed assets'!$R$2:$R$1000))-SUMPRODUCT(('Fixed assets'!$Q$2:$Q$1000=Costs!AK$705)*('Fixed assets'!$U$2:$U$1000>Costs!$A785)*('Fixed assets'!$P$2:$P$1000=Costs!$A785)*('Fixed assets'!$S$2:$S$1000))","v":0},{"$f":"AL697+SUMPRODUCT(('Fixed assets'!$Q$2:$Q$1000=Costs!AL$705)*('Fixed assets'!$U$2:$U$1000>Costs!$A785)*('Fixed assets'!$P$2:$P$1000=Costs!$A785)*('Fixed assets'!$R$2:$R$1000))-SUMPRODUCT(('Fixed assets'!$Q$2:$Q$1000=Costs!AL$705)*('Fixed assets'!$U$2:$U$1000>Costs!$A785)*('Fixed assets'!$P$2:$P$1000=Costs!$A785)*('Fixed assets'!$S$2:$S$1000))","v":0},{"$f":"AM697+SUMPRODUCT(('Fixed assets'!$Q$2:$Q$1000=Costs!AM$705)*('Fixed assets'!$U$2:$U$1000>Costs!$A785)*('Fixed assets'!$P$2:$P$1000=Costs!$A785)*('Fixed assets'!$R$2:$R$1000))-SUMPRODUCT(('Fixed assets'!$Q$2:$Q$1000=Costs!AM$705)*('Fixed assets'!$U$2:$U$1000>Costs!$A785)*('Fixed assets'!$P$2:$P$1000=Costs!$A785)*('Fixed assets'!$S$2:$S$1000))","v":0},{"$f":"AN697+SUMPRODUCT(('Fixed assets'!$Q$2:$Q$1000=Costs!AN$705)*('Fixed assets'!$U$2:$U$1000>Costs!$A785)*('Fixed assets'!$P$2:$P$1000=Costs!$A785)*('Fixed assets'!$R$2:$R$1000))-SUMPRODUCT(('Fixed assets'!$Q$2:$Q$1000=Costs!AN$705)*('Fixed assets'!$U$2:$U$1000>Costs!$A785)*('Fixed assets'!$P$2:$P$1000=Costs!$A785)*('Fixed assets'!$S$2:$S$1000))","v":0},{"$f":"AO697+SUMPRODUCT(('Fixed assets'!$Q$2:$Q$1000=Costs!AO$705)*('Fixed assets'!$U$2:$U$1000>Costs!$A785)*('Fixed assets'!$P$2:$P$1000=Costs!$A785)*('Fixed assets'!$R$2:$R$1000))-SUMPRODUCT(('Fixed assets'!$Q$2:$Q$1000=Costs!AO$705)*('Fixed assets'!$U$2:$U$1000>Costs!$A785)*('Fixed assets'!$P$2:$P$1000=Costs!$A785)*('Fixed assets'!$S$2:$S$1000))","v":0},{"$f":"AP697+SUMPRODUCT(('Fixed assets'!$Q$2:$Q$1000=Costs!AP$705)*('Fixed assets'!$U$2:$U$1000>Costs!$A785)*('Fixed assets'!$P$2:$P$1000=Costs!$A785)*('Fixed assets'!$R$2:$R$1000))-SUMPRODUCT(('Fixed assets'!$Q$2:$Q$1000=Costs!AP$705)*('Fixed assets'!$U$2:$U$1000>Costs!$A785)*('Fixed assets'!$P$2:$P$1000=Costs!$A785)*('Fixed assets'!$S$2:$S$1000))","v":0},{"$f":"AQ697+SUMPRODUCT(('Fixed assets'!$Q$2:$Q$1000=Costs!AQ$705)*('Fixed assets'!$U$2:$U$1000>Costs!$A785)*('Fixed assets'!$P$2:$P$1000=Costs!$A785)*('Fixed assets'!$R$2:$R$1000))-SUMPRODUCT(('Fixed assets'!$Q$2:$Q$1000=Costs!AQ$705)*('Fixed assets'!$U$2:$U$1000>Costs!$A785)*('Fixed assets'!$P$2:$P$1000=Costs!$A785)*('Fixed assets'!$S$2:$S$1000))","v":0}]
[2095,0,{"$f":"C698+SUMPRODUCT(('Fixed assets'!$Q$2:$Q$1000=Costs!C$705)*('Fixed assets'!$U$2:$U$1000>Costs!$A786)*('Fixed assets'!$P$2:$P$1000=Costs!$A786)*('Fixed assets'!$R$2:$R$1000))-SUMPRODUCT(('Fixed assets'!$Q$2:$Q$1000=Costs!C$705)*('Fixed assets'!$U$2:$U$1000>Costs!$A786)*('Fixed assets'!$P$2:$P$1000=Costs!$A786)*('Fixed assets'!$S$2:$S$1000))","v":0},{"$f":"D698+SUMPRODUCT(('Fixed assets'!$Q$2:$Q$1000=Costs!D$705)*('Fixed assets'!$U$2:$U$1000>Costs!$A786)*('Fixed assets'!$P$2:$P$1000=Costs!$A786)*('Fixed assets'!$R$2:$R$1000))-SUMPRODUCT(('Fixed assets'!$Q$2:$Q$1000=Costs!D$705)*('Fixed assets'!$U$2:$U$1000>Costs!$A786)*('Fixed assets'!$P$2:$P$1000=Costs!$A786)*('Fixed assets'!$S$2:$S$1000))","v":0},{"$f":"E698+SUMPRODUCT(('Fixed assets'!$Q$2:$Q$1000=Costs!E$705)*('Fixed assets'!$U$2:$U$1000>Costs!$A786)*('Fixed assets'!$P$2:$P$1000=Costs!$A786)*('Fixed assets'!$R$2:$R$1000))-SUMPRODUCT(('Fixed assets'!$Q$2:$Q$1000=Costs!E$705)*('Fixed assets'!$U$2:$U$1000>Costs!$A786)*('Fixed assets'!$P$2:$P$1000=Costs!$A786)*('Fixed assets'!$S$2:$S$1000))","v":0},{"$f":"F698+SUMPRODUCT(('Fixed assets'!$Q$2:$Q$1000=Costs!F$705)*('Fixed assets'!$U$2:$U$1000>Costs!$A786)*('Fixed assets'!$P$2:$P$1000=Costs!$A786)*('Fixed assets'!$R$2:$R$1000))-SUMPRODUCT(('Fixed assets'!$Q$2:$Q$1000=Costs!F$705)*('Fixed assets'!$U$2:$U$1000>Costs!$A786)*('Fixed assets'!$P$2:$P$1000=Costs!$A786)*('Fixed assets'!$S$2:$S$1000))","v":0},{"$f":"G698+SUMPRODUCT(('Fixed assets'!$Q$2:$Q$1000=Costs!G$705)*('Fixed assets'!$U$2:$U$1000>Costs!$A786)*('Fixed assets'!$P$2:$P$1000=Costs!$A786)*('Fixed assets'!$R$2:$R$1000))-SUMPRODUCT(('Fixed assets'!$Q$2:$Q$1000=Costs!G$705)*('Fixed assets'!$U$2:$U$1000>Costs!$A786)*('Fixed assets'!$P$2:$P$1000=Costs!$A786)*('Fixed assets'!$S$2:$S$1000))","v":0},{"$f":"H698+SUMPRODUCT(('Fixed assets'!$Q$2:$Q$1000=Costs!H$705)*('Fixed assets'!$U$2:$U$1000>Costs!$A786)*('Fixed assets'!$P$2:$P$1000=Costs!$A786)*('Fixed assets'!$R$2:$R$1000))-SUMPRODUCT(('Fixed assets'!$Q$2:$Q$1000=Costs!H$705)*('Fixed assets'!$U$2:$U$1000>Costs!$A786)*('Fixed assets'!$P$2:$P$1000=Costs!$A786)*('Fixed assets'!$S$2:$S$1000))","v":0},{"$f":"I698+SUMPRODUCT(('Fixed assets'!$Q$2:$Q$1000=Costs!I$705)*('Fixed assets'!$U$2:$U$1000>Costs!$A786)*('Fixed assets'!$P$2:$P$1000=Costs!$A786)*('Fixed assets'!$R$2:$R$1000))-SUMPRODUCT(('Fixed assets'!$Q$2:$Q$1000=Costs!I$705)*('Fixed assets'!$U$2:$U$1000>Costs!$A786)*('Fixed assets'!$P$2:$P$1000=Costs!$A786)*('Fixed assets'!$S$2:$S$1000))","v":0},{"$f":"J698+SUMPRODUCT(('Fixed assets'!$Q$2:$Q$1000=Costs!J$705)*('Fixed assets'!$U$2:$U$1000>Costs!$A786)*('Fixed assets'!$P$2:$P$1000=Costs!$A786)*('Fixed assets'!$R$2:$R$1000))-SUMPRODUCT(('Fixed assets'!$Q$2:$Q$1000=Costs!J$705)*('Fixed assets'!$U$2:$U$1000>Costs!$A786)*('Fixed assets'!$P$2:$P$1000=Costs!$A786)*('Fixed assets'!$S$2:$S$1000))","v":0},{"$f":"K698+SUMPRODUCT(('Fixed assets'!$Q$2:$Q$1000=Costs!K$705)*('Fixed assets'!$U$2:$U$1000>Costs!$A786)*('Fixed assets'!$P$2:$P$1000=Costs!$A786)*('Fixed assets'!$R$2:$R$1000))-SUMPRODUCT(('Fixed assets'!$Q$2:$Q$1000=Costs!K$705)*('Fixed assets'!$U$2:$U$1000>Costs!$A786)*('Fixed assets'!$P$2:$P$1000=Costs!$A786)*('Fixed assets'!$S$2:$S$1000))","v":0},{"$f":"L698+SUMPRODUCT(('Fixed assets'!$Q$2:$Q$1000=Costs!L$705)*('Fixed assets'!$U$2:$U$1000>Costs!$A786)*('Fixed assets'!$P$2:$P$1000=Costs!$A786)*('Fixed assets'!$R$2:$R$1000))-SUMPRODUCT(('Fixed assets'!$Q$2:$Q$1000=Costs!L$705)*('Fixed assets'!$U$2:$U$1000>Costs!$A786)*('Fixed assets'!$P$2:$P$1000=Costs!$A786)*('Fixed assets'!$S$2:$S$1000))","v":0},{"$f":"M698+SUMPRODUCT(('Fixed assets'!$Q$2:$Q$1000=Costs!M$705)*('Fixed assets'!$U$2:$U$1000>Costs!$A786)*('Fixed assets'!$P$2:$P$1000=Costs!$A786)*('Fixed assets'!$R$2:$R$1000))-SUMPRODUCT(('Fixed assets'!$Q$2:$Q$1000=Costs!M$705)*('Fixed assets'!$U$2:$U$1000>Costs!$A786)*('Fixed assets'!$P$2:$P$1000=Costs!$A786)*('Fixed assets'!$S$2:$S$1000))","v":0},{"$f":"N698+SUMPRODUCT(('Fixed assets'!$Q$2:$Q$1000=Costs!N$705)*('Fixed assets'!$U$2:$U$1000>Costs!$A786)*('Fixed assets'!$P$2:$P$1000=Costs!$A786)*('Fixed assets'!$R$2:$R$1000))-SUMPRODUCT(('Fixed assets'!$Q$2:$Q$1000=Costs!N$705)*('Fixed assets'!$U$2:$U$1000>Costs!$A786)*('Fixed assets'!$P$2:$P$1000=Costs!$A786)*('Fixed assets'!$S$2:$S$1000))","v":0},{"$f":"O698+SUMPRODUCT(('Fixed assets'!$Q$2:$Q$1000=Costs!O$705)*('Fixed assets'!$U$2:$U$1000>Costs!$A786)*('Fixed assets'!$P$2:$P$1000=Costs!$A786)*('Fixed assets'!$R$2:$R$1000))-SUMPRODUCT(('Fixed assets'!$Q$2:$Q$1000=Costs!O$705)*('Fixed assets'!$U$2:$U$1000>Costs!$A786)*('Fixed assets'!$P$2:$P$1000=Costs!$A786)*('Fixed assets'!$S$2:$S$1000))","v":0},{"$f":"P698+SUMPRODUCT(('Fixed assets'!$Q$2:$Q$1000=Costs!P$705)*('Fixed assets'!$U$2:$U$1000>Costs!$A786)*('Fixed assets'!$P$2:$P$1000=Costs!$A786)*('Fixed assets'!$R$2:$R$1000))-SUMPRODUCT(('Fixed assets'!$Q$2:$Q$1000=Costs!P$705)*('Fixed assets'!$U$2:$U$1000>Costs!$A786)*('Fixed assets'!$P$2:$P$1000=Costs!$A786)*('Fixed assets'!$S$2:$S$1000))","v":0},{"$f":"Q698+SUMPRODUCT(('Fixed assets'!$Q$2:$Q$1000=Costs!Q$705)*('Fixed assets'!$U$2:$U$1000>Costs!$A786)*('Fixed assets'!$P$2:$P$1000=Costs!$A786)*('Fixed assets'!$R$2:$R$1000))-SUMPRODUCT(('Fixed assets'!$Q$2:$Q$1000=Costs!Q$705)*('Fixed assets'!$U$2:$U$1000>Costs!$A786)*('Fixed assets'!$P$2:$P$1000=Costs!$A786)*('Fixed assets'!$S$2:$S$1000))","v":0},{"$f":"R698+SUMPRODUCT(('Fixed assets'!$Q$2:$Q$1000=Costs!R$705)*('Fixed assets'!$U$2:$U$1000>Costs!$A786)*('Fixed assets'!$P$2:$P$1000=Costs!$A786)*('Fixed assets'!$R$2:$R$1000))-SUMPRODUCT(('Fixed assets'!$Q$2:$Q$1000=Costs!R$705)*('Fixed assets'!$U$2:$U$1000>Costs!$A786)*('Fixed assets'!$P$2:$P$1000=Costs!$A786)*('Fixed assets'!$S$2:$S$1000))","v":0},{"$f":"S698+SUMPRODUCT(('Fixed assets'!$Q$2:$Q$1000=Costs!S$705)*('Fixed assets'!$U$2:$U$1000>Costs!$A786)*('Fixed assets'!$P$2:$P$1000=Costs!$A786)*('Fixed assets'!$R$2:$R$1000))-SUMPRODUCT(('Fixed assets'!$Q$2:$Q$1000=Costs!S$705)*('Fixed assets'!$U$2:$U$1000>Costs!$A786)*('Fixed assets'!$P$2:$P$1000=Costs!$A786)*('Fixed assets'!$S$2:$S$1000))","v":0},{"$f":"T698+SUMPRODUCT(('Fixed assets'!$Q$2:$Q$1000=Costs!T$705)*('Fixed assets'!$U$2:$U$1000>Costs!$A786)*('Fixed assets'!$P$2:$P$1000=Costs!$A786)*('Fixed assets'!$R$2:$R$1000))-SUMPRODUCT(('Fixed assets'!$Q$2:$Q$1000=Costs!T$705)*('Fixed assets'!$U$2:$U$1000>Costs!$A786)*('Fixed assets'!$P$2:$P$1000=Costs!$A786)*('Fixed assets'!$S$2:$S$1000))","v":0},{"$f":"U698+SUMPRODUCT(('Fixed assets'!$Q$2:$Q$1000=Costs!U$705)*('Fixed assets'!$U$2:$U$1000>Costs!$A786)*('Fixed assets'!$P$2:$P$1000=Costs!$A786)*('Fixed assets'!$R$2:$R$1000))-SUMPRODUCT(('Fixed assets'!$Q$2:$Q$1000=Costs!U$705)*('Fixed assets'!$U$2:$U$1000>Costs!$A786)*('Fixed assets'!$P$2:$P$1000=Costs!$A786)*('Fixed assets'!$S$2:$S$1000))","v":0},{"$f":"V698+SUMPRODUCT(('Fixed assets'!$Q$2:$Q$1000=Costs!V$705)*('Fixed assets'!$U$2:$U$1000>Costs!$A786)*('Fixed assets'!$P$2:$P$1000=Costs!$A786)*('Fixed assets'!$R$2:$R$1000))-SUMPRODUCT(('Fixed assets'!$Q$2:$Q$1000=Costs!V$705)*('Fixed assets'!$U$2:$U$1000>Costs!$A786)*('Fixed assets'!$P$2:$P$1000=Costs!$A786)*('Fixed assets'!$S$2:$S$1000))","v":0},{"$f":"W698+SUMPRODUCT(('Fixed assets'!$Q$2:$Q$1000=Costs!W$705)*('Fixed assets'!$U$2:$U$1000>Costs!$A786)*('Fixed assets'!$P$2:$P$1000=Costs!$A786)*('Fixed assets'!$R$2:$R$1000))-SUMPRODUCT(('Fixed assets'!$Q$2:$Q$1000=Costs!W$705)*('Fixed assets'!$U$2:$U$1000>Costs!$A786)*('Fixed assets'!$P$2:$P$1000=Costs!$A786)*('Fixed assets'!$S$2:$S$1000))","v":0},{"$f":"X698+SUMPRODUCT(('Fixed assets'!$Q$2:$Q$1000=Costs!X$705)*('Fixed assets'!$U$2:$U$1000>Costs!$A786)*('Fixed assets'!$P$2:$P$1000=Costs!$A786)*('Fixed assets'!$R$2:$R$1000))-SUMPRODUCT(('Fixed assets'!$Q$2:$Q$1000=Costs!X$705)*('Fixed assets'!$U$2:$U$1000>Costs!$A786)*('Fixed assets'!$P$2:$P$1000=Costs!$A786)*('Fixed assets'!$S$2:$S$1000))","v":0},{"$f":"Y698+SUMPRODUCT(('Fixed assets'!$Q$2:$Q$1000=Costs!Y$705)*('Fixed assets'!$U$2:$U$1000>Costs!$A786)*('Fixed assets'!$P$2:$P$1000=Costs!$A786)*('Fixed assets'!$R$2:$R$1000))-SUMPRODUCT(('Fixed assets'!$Q$2:$Q$1000=Costs!Y$705)*('Fixed assets'!$U$2:$U$1000>Costs!$A786)*('Fixed assets'!$P$2:$P$1000=Costs!$A786)*('Fixed assets'!$S$2:$S$1000))","v":0},{"$f":"Z698+SUMPRODUCT(('Fixed assets'!$Q$2:$Q$1000=Costs!Z$705)*('Fixed assets'!$U$2:$U$1000>Costs!$A786)*('Fixed assets'!$P$2:$P$1000=Costs!$A786)*('Fixed assets'!$R$2:$R$1000))-SUMPRODUCT(('Fixed assets'!$Q$2:$Q$1000=Costs!Z$705)*('Fixed assets'!$U$2:$U$1000>Costs!$A786)*('Fixed assets'!$P$2:$P$1000=Costs!$A786)*('Fixed assets'!$S$2:$S$1000))","v":0},{"$f":"AA698+SUMPRODUCT(('Fixed assets'!$Q$2:$Q$1000=Costs!AA$705)*('Fixed assets'!$U$2:$U$1000>Costs!$A786)*('Fixed assets'!$P$2:$P$1000=Costs!$A786)*('Fixed assets'!$R$2:$R$1000))-SUMPRODUCT(('Fixed assets'!$Q$2:$Q$1000=Costs!AA$705)*('Fixed assets'!$U$2:$U$1000>Costs!$A786)*('Fixed assets'!$P$2:$P$1000=Costs!$A786)*('Fixed assets'!$S$2:$S$1000))","v":0},{"$f":"AB698+SUMPRODUCT(('Fixed assets'!$Q$2:$Q$1000=Costs!AB$705)*('Fixed assets'!$U$2:$U$1000>Costs!$A786)*('Fixed assets'!$P$2:$P$1000=Costs!$A786)*('Fixed assets'!$R$2:$R$1000))-SUMPRODUCT(('Fixed assets'!$Q$2:$Q$1000=Costs!AB$705)*('Fixed assets'!$U$2:$U$1000>Costs!$A786)*('Fixed assets'!$P$2:$P$1000=Costs!$A786)*('Fixed assets'!$S$2:$S$1000))","v":0},{"$f":"AC698+SUMPRODUCT(('Fixed assets'!$Q$2:$Q$1000=Costs!AC$705)*('Fixed assets'!$U$2:$U$1000>Costs!$A786)*('Fixed assets'!$P$2:$P$1000=Costs!$A786)*('Fixed assets'!$R$2:$R$1000))-SUMPRODUCT(('Fixed assets'!$Q$2:$Q$1000=Costs!AC$705)*('Fixed assets'!$U$2:$U$1000>Costs!$A786)*('Fixed assets'!$P$2:$P$1000=Costs!$A786)*('Fixed assets'!$S$2:$S$1000))","v":0},{"$f":"AD698+SUMPRODUCT(('Fixed assets'!$Q$2:$Q$1000=Costs!AD$705)*('Fixed assets'!$U$2:$U$1000>Costs!$A786)*('Fixed assets'!$P$2:$P$1000=Costs!$A786)*('Fixed assets'!$R$2:$R$1000))-SUMPRODUCT(('Fixed assets'!$Q$2:$Q$1000=Costs!AD$705)*('Fixed assets'!$U$2:$U$1000>Costs!$A786)*('Fixed assets'!$P$2:$P$1000=Costs!$A786)*('Fixed assets'!$S$2:$S$1000))","v":0},{"$f":"AE698+SUMPRODUCT(('Fixed assets'!$Q$2:$Q$1000=Costs!AE$705)*('Fixed assets'!$U$2:$U$1000>Costs!$A786)*('Fixed assets'!$P$2:$P$1000=Costs!$A786)*('Fixed assets'!$R$2:$R$1000))-SUMPRODUCT(('Fixed assets'!$Q$2:$Q$1000=Costs!AE$705)*('Fixed assets'!$U$2:$U$1000>Costs!$A786)*('Fixed assets'!$P$2:$P$1000=Costs!$A786)*('Fixed assets'!$S$2:$S$1000))","v":0},{"$f":"AF698+SUMPRODUCT(('Fixed assets'!$Q$2:$Q$1000=Costs!AF$705)*('Fixed assets'!$U$2:$U$1000>Costs!$A786)*('Fixed assets'!$P$2:$P$1000=Costs!$A786)*('Fixed assets'!$R$2:$R$1000))-SUMPRODUCT(('Fixed assets'!$Q$2:$Q$1000=Costs!AF$705)*('Fixed assets'!$U$2:$U$1000>Costs!$A786)*('Fixed assets'!$P$2:$P$1000=Costs!$A786)*('Fixed assets'!$S$2:$S$1000))","v":0},{"$f":"AG698+SUMPRODUCT(('Fixed assets'!$Q$2:$Q$1000=Costs!AG$705)*('Fixed assets'!$U$2:$U$1000>Costs!$A786)*('Fixed assets'!$P$2:$P$1000=Costs!$A786)*('Fixed assets'!$R$2:$R$1000))-SUMPRODUCT(('Fixed assets'!$Q$2:$Q$1000=Costs!AG$705)*('Fixed assets'!$U$2:$U$1000>Costs!$A786)*('Fixed assets'!$P$2:$P$1000=Costs!$A786)*('Fixed assets'!$S$2:$S$1000))","v":0},{"$f":"AH698+SUMPRODUCT(('Fixed assets'!$Q$2:$Q$1000=Costs!AH$705)*('Fixed assets'!$U$2:$U$1000>Costs!$A786)*('Fixed assets'!$P$2:$P$1000=Costs!$A786)*('Fixed assets'!$R$2:$R$1000))-SUMPRODUCT(('Fixed assets'!$Q$2:$Q$1000=Costs!AH$705)*('Fixed assets'!$U$2:$U$1000>Costs!$A786)*('Fixed assets'!$P$2:$P$1000=Costs!$A786)*('Fixed assets'!$S$2:$S$1000))","v":0},{"$f":"AI698+SUMPRODUCT(('Fixed assets'!$Q$2:$Q$1000=Costs!AI$705)*('Fixed assets'!$U$2:$U$1000>Costs!$A786)*('Fixed assets'!$P$2:$P$1000=Costs!$A786)*('Fixed assets'!$R$2:$R$1000))-SUMPRODUCT(('Fixed assets'!$Q$2:$Q$1000=Costs!AI$705)*('Fixed assets'!$U$2:$U$1000>Costs!$A786)*('Fixed assets'!$P$2:$P$1000=Costs!$A786)*('Fixed assets'!$S$2:$S$1000))","v":0},{"$f":"AJ698+SUMPRODUCT(('Fixed assets'!$Q$2:$Q$1000=Costs!AJ$705)*('Fixed assets'!$U$2:$U$1000>Costs!$A786)*('Fixed assets'!$P$2:$P$1000=Costs!$A786)*('Fixed assets'!$R$2:$R$1000))-SUMPRODUCT(('Fixed assets'!$Q$2:$Q$1000=Costs!AJ$705)*('Fixed assets'!$U$2:$U$1000>Costs!$A786)*('Fixed assets'!$P$2:$P$1000=Costs!$A786)*('Fixed assets'!$S$2:$S$1000))","v":0},{"$f":"AK698+SUMPRODUCT(('Fixed assets'!$Q$2:$Q$1000=Costs!AK$705)*('Fixed assets'!$U$2:$U$1000>Costs!$A786)*('Fixed assets'!$P$2:$P$1000=Costs!$A786)*('Fixed assets'!$R$2:$R$1000))-SUMPRODUCT(('Fixed assets'!$Q$2:$Q$1000=Costs!AK$705)*('Fixed assets'!$U$2:$U$1000>Costs!$A786)*('Fixed assets'!$P$2:$P$1000=Costs!$A786)*('Fixed assets'!$S$2:$S$1000))","v":0},{"$f":"AL698+SUMPRODUCT(('Fixed assets'!$Q$2:$Q$1000=Costs!AL$705)*('Fixed assets'!$U$2:$U$1000>Costs!$A786)*('Fixed assets'!$P$2:$P$1000=Costs!$A786)*('Fixed assets'!$R$2:$R$1000))-SUMPRODUCT(('Fixed assets'!$Q$2:$Q$1000=Costs!AL$705)*('Fixed assets'!$U$2:$U$1000>Costs!$A786)*('Fixed assets'!$P$2:$P$1000=Costs!$A786)*('Fixed assets'!$S$2:$S$1000))","v":0},{"$f":"AM698+SUMPRODUCT(('Fixed assets'!$Q$2:$Q$1000=Costs!AM$705)*('Fixed assets'!$U$2:$U$1000>Costs!$A786)*('Fixed assets'!$P$2:$P$1000=Costs!$A786)*('Fixed assets'!$R$2:$R$1000))-SUMPRODUCT(('Fixed assets'!$Q$2:$Q$1000=Costs!AM$705)*('Fixed assets'!$U$2:$U$1000>Costs!$A786)*('Fixed assets'!$P$2:$P$1000=Costs!$A786)*('Fixed assets'!$S$2:$S$1000))","v":0},{"$f":"AN698+SUMPRODUCT(('Fixed assets'!$Q$2:$Q$1000=Costs!AN$705)*('Fixed assets'!$U$2:$U$1000>Costs!$A786)*('Fixed assets'!$P$2:$P$1000=Costs!$A786)*('Fixed assets'!$R$2:$R$1000))-SUMPRODUCT(('Fixed assets'!$Q$2:$Q$1000=Costs!AN$705)*('Fixed assets'!$U$2:$U$1000>Costs!$A786)*('Fixed assets'!$P$2:$P$1000=Costs!$A786)*('Fixed assets'!$S$2:$S$1000))","v":0},{"$f":"AO698+SUMPRODUCT(('Fixed assets'!$Q$2:$Q$1000=Costs!AO$705)*('Fixed assets'!$U$2:$U$1000>Costs!$A786)*('Fixed assets'!$P$2:$P$1000=Costs!$A786)*('Fixed assets'!$R$2:$R$1000))-SUMPRODUCT(('Fixed assets'!$Q$2:$Q$1000=Costs!AO$705)*('Fixed assets'!$U$2:$U$1000>Costs!$A786)*('Fixed assets'!$P$2:$P$1000=Costs!$A786)*('Fixed assets'!$S$2:$S$1000))","v":0},{"$f":"AP698+SUMPRODUCT(('Fixed assets'!$Q$2:$Q$1000=Costs!AP$705)*('Fixed assets'!$U$2:$U$1000>Costs!$A786)*('Fixed assets'!$P$2:$P$1000=Costs!$A786)*('Fixed assets'!$R$2:$R$1000))-SUMPRODUCT(('Fixed assets'!$Q$2:$Q$1000=Costs!AP$705)*('Fixed assets'!$U$2:$U$1000>Costs!$A786)*('Fixed assets'!$P$2:$P$1000=Costs!$A786)*('Fixed assets'!$S$2:$S$1000))","v":0},{"$f":"AQ698+SUMPRODUCT(('Fixed assets'!$Q$2:$Q$1000=Costs!AQ$705)*('Fixed assets'!$U$2:$U$1000>Costs!$A786)*('Fixed assets'!$P$2:$P$1000=Costs!$A786)*('Fixed assets'!$R$2:$R$1000))-SUMPRODUCT(('Fixed assets'!$Q$2:$Q$1000=Costs!AQ$705)*('Fixed assets'!$U$2:$U$1000>Costs!$A786)*('Fixed assets'!$P$2:$P$1000=Costs!$A786)*('Fixed assets'!$S$2:$S$1000))","v":0}]
[2096,0,{"$f":"C699+SUMPRODUCT(('Fixed assets'!$Q$2:$Q$1000=Costs!C$705)*('Fixed assets'!$U$2:$U$1000>Costs!$A787)*('Fixed assets'!$P$2:$P$1000=Costs!$A787)*('Fixed assets'!$R$2:$R$1000))-SUMPRODUCT(('Fixed assets'!$Q$2:$Q$1000=Costs!C$705)*('Fixed assets'!$U$2:$U$1000>Costs!$A787)*('Fixed assets'!$P$2:$P$1000=Costs!$A787)*('Fixed assets'!$S$2:$S$1000))","v":0},{"$f":"D699+SUMPRODUCT(('Fixed assets'!$Q$2:$Q$1000=Costs!D$705)*('Fixed assets'!$U$2:$U$1000>Costs!$A787)*('Fixed assets'!$P$2:$P$1000=Costs!$A787)*('Fixed assets'!$R$2:$R$1000))-SUMPRODUCT(('Fixed assets'!$Q$2:$Q$1000=Costs!D$705)*('Fixed assets'!$U$2:$U$1000>Costs!$A787)*('Fixed assets'!$P$2:$P$1000=Costs!$A787)*('Fixed assets'!$S$2:$S$1000))","v":0},{"$f":"E699+SUMPRODUCT(('Fixed assets'!$Q$2:$Q$1000=Costs!E$705)*('Fixed assets'!$U$2:$U$1000>Costs!$A787)*('Fixed assets'!$P$2:$P$1000=Costs!$A787)*('Fixed assets'!$R$2:$R$1000))-SUMPRODUCT(('Fixed assets'!$Q$2:$Q$1000=Costs!E$705)*('Fixed assets'!$U$2:$U$1000>Costs!$A787)*('Fixed assets'!$P$2:$P$1000=Costs!$A787)*('Fixed assets'!$S$2:$S$1000))","v":0},{"$f":"F699+SUMPRODUCT(('Fixed assets'!$Q$2:$Q$1000=Costs!F$705)*('Fixed assets'!$U$2:$U$1000>Costs!$A787)*('Fixed assets'!$P$2:$P$1000=Costs!$A787)*('Fixed assets'!$R$2:$R$1000))-SUMPRODUCT(('Fixed assets'!$Q$2:$Q$1000=Costs!F$705)*('Fixed assets'!$U$2:$U$1000>Costs!$A787)*('Fixed assets'!$P$2:$P$1000=Costs!$A787)*('Fixed assets'!$S$2:$S$1000))","v":0},{"$f":"G699+SUMPRODUCT(('Fixed assets'!$Q$2:$Q$1000=Costs!G$705)*('Fixed assets'!$U$2:$U$1000>Costs!$A787)*('Fixed assets'!$P$2:$P$1000=Costs!$A787)*('Fixed assets'!$R$2:$R$1000))-SUMPRODUCT(('Fixed assets'!$Q$2:$Q$1000=Costs!G$705)*('Fixed assets'!$U$2:$U$1000>Costs!$A787)*('Fixed assets'!$P$2:$P$1000=Costs!$A787)*('Fixed assets'!$S$2:$S$1000))","v":0},{"$f":"H699+SUMPRODUCT(('Fixed assets'!$Q$2:$Q$1000=Costs!H$705)*('Fixed assets'!$U$2:$U$1000>Costs!$A787)*('Fixed assets'!$P$2:$P$1000=Costs!$A787)*('Fixed assets'!$R$2:$R$1000))-SUMPRODUCT(('Fixed assets'!$Q$2:$Q$1000=Costs!H$705)*('Fixed assets'!$U$2:$U$1000>Costs!$A787)*('Fixed assets'!$P$2:$P$1000=Costs!$A787)*('Fixed assets'!$S$2:$S$1000))","v":0},{"$f":"I699+SUMPRODUCT(('Fixed assets'!$Q$2:$Q$1000=Costs!I$705)*('Fixed assets'!$U$2:$U$1000>Costs!$A787)*('Fixed assets'!$P$2:$P$1000=Costs!$A787)*('Fixed assets'!$R$2:$R$1000))-SUMPRODUCT(('Fixed assets'!$Q$2:$Q$1000=Costs!I$705)*('Fixed assets'!$U$2:$U$1000>Costs!$A787)*('Fixed assets'!$P$2:$P$1000=Costs!$A787)*('Fixed assets'!$S$2:$S$1000))","v":0},{"$f":"J699+SUMPRODUCT(('Fixed assets'!$Q$2:$Q$1000=Costs!J$705)*('Fixed assets'!$U$2:$U$1000>Costs!$A787)*('Fixed assets'!$P$2:$P$1000=Costs!$A787)*('Fixed assets'!$R$2:$R$1000))-SUMPRODUCT(('Fixed assets'!$Q$2:$Q$1000=Costs!J$705)*('Fixed assets'!$U$2:$U$1000>Costs!$A787)*('Fixed assets'!$P$2:$P$1000=Costs!$A787)*('Fixed assets'!$S$2:$S$1000))","v":0},{"$f":"K699+SUMPRODUCT(('Fixed assets'!$Q$2:$Q$1000=Costs!K$705)*('Fixed assets'!$U$2:$U$1000>Costs!$A787)*('Fixed assets'!$P$2:$P$1000=Costs!$A787)*('Fixed assets'!$R$2:$R$1000))-SUMPRODUCT(('Fixed assets'!$Q$2:$Q$1000=Costs!K$705)*('Fixed assets'!$U$2:$U$1000>Costs!$A787)*('Fixed assets'!$P$2:$P$1000=Costs!$A787)*('Fixed assets'!$S$2:$S$1000))","v":0},{"$f":"L699+SUMPRODUCT(('Fixed assets'!$Q$2:$Q$1000=Costs!L$705)*('Fixed assets'!$U$2:$U$1000>Costs!$A787)*('Fixed assets'!$P$2:$P$1000=Costs!$A787)*('Fixed assets'!$R$2:$R$1000))-SUMPRODUCT(('Fixed assets'!$Q$2:$Q$1000=Costs!L$705)*('Fixed assets'!$U$2:$U$1000>Costs!$A787)*('Fixed assets'!$P$2:$P$1000=Costs!$A787)*('Fixed assets'!$S$2:$S$1000))","v":0},{"$f":"M699+SUMPRODUCT(('Fixed assets'!$Q$2:$Q$1000=Costs!M$705)*('Fixed assets'!$U$2:$U$1000>Costs!$A787)*('Fixed assets'!$P$2:$P$1000=Costs!$A787)*('Fixed assets'!$R$2:$R$1000))-SUMPRODUCT(('Fixed assets'!$Q$2:$Q$1000=Costs!M$705)*('Fixed assets'!$U$2:$U$1000>Costs!$A787)*('Fixed assets'!$P$2:$P$1000=Costs!$A787)*('Fixed assets'!$S$2:$S$1000))","v":0},{"$f":"N699+SUMPRODUCT(('Fixed assets'!$Q$2:$Q$1000=Costs!N$705)*('Fixed assets'!$U$2:$U$1000>Costs!$A787)*('Fixed assets'!$P$2:$P$1000=Costs!$A787)*('Fixed assets'!$R$2:$R$1000))-SUMPRODUCT(('Fixed assets'!$Q$2:$Q$1000=Costs!N$705)*('Fixed assets'!$U$2:$U$1000>Costs!$A787)*('Fixed assets'!$P$2:$P$1000=Costs!$A787)*('Fixed assets'!$S$2:$S$1000))","v":0},{"$f":"O699+SUMPRODUCT(('Fixed assets'!$Q$2:$Q$1000=Costs!O$705)*('Fixed assets'!$U$2:$U$1000>Costs!$A787)*('Fixed assets'!$P$2:$P$1000=Costs!$A787)*('Fixed assets'!$R$2:$R$1000))-SUMPRODUCT(('Fixed assets'!$Q$2:$Q$1000=Costs!O$705)*('Fixed assets'!$U$2:$U$1000>Costs!$A787)*('Fixed assets'!$P$2:$P$1000=Costs!$A787)*('Fixed assets'!$S$2:$S$1000))","v":0},{"$f":"P699+SUMPRODUCT(('Fixed assets'!$Q$2:$Q$1000=Costs!P$705)*('Fixed assets'!$U$2:$U$1000>Costs!$A787)*('Fixed assets'!$P$2:$P$1000=Costs!$A787)*('Fixed assets'!$R$2:$R$1000))-SUMPRODUCT(('Fixed assets'!$Q$2:$Q$1000=Costs!P$705)*('Fixed assets'!$U$2:$U$1000>Costs!$A787)*('Fixed assets'!$P$2:$P$1000=Costs!$A787)*('Fixed assets'!$S$2:$S$1000))","v":0},{"$f":"Q699+SUMPRODUCT(('Fixed assets'!$Q$2:$Q$1000=Costs!Q$705)*('Fixed assets'!$U$2:$U$1000>Costs!$A787)*('Fixed assets'!$P$2:$P$1000=Costs!$A787)*('Fixed assets'!$R$2:$R$1000))-SUMPRODUCT(('Fixed assets'!$Q$2:$Q$1000=Costs!Q$705)*('Fixed assets'!$U$2:$U$1000>Costs!$A787)*('Fixed assets'!$P$2:$P$1000=Costs!$A787)*('Fixed assets'!$S$2:$S$1000))","v":0},{"$f":"R699+SUMPRODUCT(('Fixed assets'!$Q$2:$Q$1000=Costs!R$705)*('Fixed assets'!$U$2:$U$1000>Costs!$A787)*('Fixed assets'!$P$2:$P$1000=Costs!$A787)*('Fixed assets'!$R$2:$R$1000))-SUMPRODUCT(('Fixed assets'!$Q$2:$Q$1000=Costs!R$705)*('Fixed assets'!$U$2:$U$1000>Costs!$A787)*('Fixed assets'!$P$2:$P$1000=Costs!$A787)*('Fixed assets'!$S$2:$S$1000))","v":0},{"$f":"S699+SUMPRODUCT(('Fixed assets'!$Q$2:$Q$1000=Costs!S$705)*('Fixed assets'!$U$2:$U$1000>Costs!$A787)*('Fixed assets'!$P$2:$P$1000=Costs!$A787)*('Fixed assets'!$R$2:$R$1000))-SUMPRODUCT(('Fixed assets'!$Q$2:$Q$1000=Costs!S$705)*('Fixed assets'!$U$2:$U$1000>Costs!$A787)*('Fixed assets'!$P$2:$P$1000=Costs!$A787)*('Fixed assets'!$S$2:$S$1000))","v":0},{"$f":"T699+SUMPRODUCT(('Fixed assets'!$Q$2:$Q$1000=Costs!T$705)*('Fixed assets'!$U$2:$U$1000>Costs!$A787)*('Fixed assets'!$P$2:$P$1000=Costs!$A787)*('Fixed assets'!$R$2:$R$1000))-SUMPRODUCT(('Fixed assets'!$Q$2:$Q$1000=Costs!T$705)*('Fixed assets'!$U$2:$U$1000>Costs!$A787)*('Fixed assets'!$P$2:$P$1000=Costs!$A787)*('Fixed assets'!$S$2:$S$1000))","v":0},{"$f":"U699+SUMPRODUCT(('Fixed assets'!$Q$2:$Q$1000=Costs!U$705)*('Fixed assets'!$U$2:$U$1000>Costs!$A787)*('Fixed assets'!$P$2:$P$1000=Costs!$A787)*('Fixed assets'!$R$2:$R$1000))-SUMPRODUCT(('Fixed assets'!$Q$2:$Q$1000=Costs!U$705)*('Fixed assets'!$U$2:$U$1000>Costs!$A787)*('Fixed assets'!$P$2:$P$1000=Costs!$A787)*('Fixed assets'!$S$2:$S$1000))","v":0},{"$f":"V699+SUMPRODUCT(('Fixed assets'!$Q$2:$Q$1000=Costs!V$705)*('Fixed assets'!$U$2:$U$1000>Costs!$A787)*('Fixed assets'!$P$2:$P$1000=Costs!$A787)*('Fixed assets'!$R$2:$R$1000))-SUMPRODUCT(('Fixed assets'!$Q$2:$Q$1000=Costs!V$705)*('Fixed assets'!$U$2:$U$1000>Costs!$A787)*('Fixed assets'!$P$2:$P$1000=Costs!$A787)*('Fixed assets'!$S$2:$S$1000))","v":0},{"$f":"W699+SUMPRODUCT(('Fixed assets'!$Q$2:$Q$1000=Costs!W$705)*('Fixed assets'!$U$2:$U$1000>Costs!$A787)*('Fixed assets'!$P$2:$P$1000=Costs!$A787)*('Fixed assets'!$R$2:$R$1000))-SUMPRODUCT(('Fixed assets'!$Q$2:$Q$1000=Costs!W$705)*('Fixed assets'!$U$2:$U$1000>Costs!$A787)*('Fixed assets'!$P$2:$P$1000=Costs!$A787)*('Fixed assets'!$S$2:$S$1000))","v":0},{"$f":"X699+SUMPRODUCT(('Fixed assets'!$Q$2:$Q$1000=Costs!X$705)*('Fixed assets'!$U$2:$U$1000>Costs!$A787)*('Fixed assets'!$P$2:$P$1000=Costs!$A787)*('Fixed assets'!$R$2:$R$1000))-SUMPRODUCT(('Fixed assets'!$Q$2:$Q$1000=Costs!X$705)*('Fixed assets'!$U$2:$U$1000>Costs!$A787)*('Fixed assets'!$P$2:$P$1000=Costs!$A787)*('Fixed assets'!$S$2:$S$1000))","v":0},{"$f":"Y699+SUMPRODUCT(('Fixed assets'!$Q$2:$Q$1000=Costs!Y$705)*('Fixed assets'!$U$2:$U$1000>Costs!$A787)*('Fixed assets'!$P$2:$P$1000=Costs!$A787)*('Fixed assets'!$R$2:$R$1000))-SUMPRODUCT(('Fixed assets'!$Q$2:$Q$1000=Costs!Y$705)*('Fixed assets'!$U$2:$U$1000>Costs!$A787)*('Fixed assets'!$P$2:$P$1000=Costs!$A787)*('Fixed assets'!$S$2:$S$1000))","v":0},{"$f":"Z699+SUMPRODUCT(('Fixed assets'!$Q$2:$Q$1000=Costs!Z$705)*('Fixed assets'!$U$2:$U$1000>Costs!$A787)*('Fixed assets'!$P$2:$P$1000=Costs!$A787)*('Fixed assets'!$R$2:$R$1000))-SUMPRODUCT(('Fixed assets'!$Q$2:$Q$1000=Costs!Z$705)*('Fixed assets'!$U$2:$U$1000>Costs!$A787)*('Fixed assets'!$P$2:$P$1000=Costs!$A787)*('Fixed assets'!$S$2:$S$1000))","v":0},{"$f":"AA699+SUMPRODUCT(('Fixed assets'!$Q$2:$Q$1000=Costs!AA$705)*('Fixed assets'!$U$2:$U$1000>Costs!$A787)*('Fixed assets'!$P$2:$P$1000=Costs!$A787)*('Fixed assets'!$R$2:$R$1000))-SUMPRODUCT(('Fixed assets'!$Q$2:$Q$1000=Costs!AA$705)*('Fixed assets'!$U$2:$U$1000>Costs!$A787)*('Fixed assets'!$P$2:$P$1000=Costs!$A787)*('Fixed assets'!$S$2:$S$1000))","v":0},{"$f":"AB699+SUMPRODUCT(('Fixed assets'!$Q$2:$Q$1000=Costs!AB$705)*('Fixed assets'!$U$2:$U$1000>Costs!$A787)*('Fixed assets'!$P$2:$P$1000=Costs!$A787)*('Fixed assets'!$R$2:$R$1000))-SUMPRODUCT(('Fixed assets'!$Q$2:$Q$1000=Costs!AB$705)*('Fixed assets'!$U$2:$U$1000>Costs!$A787)*('Fixed assets'!$P$2:$P$1000=Costs!$A787)*('Fixed assets'!$S$2:$S$1000))","v":0},{"$f":"AC699+SUMPRODUCT(('Fixed assets'!$Q$2:$Q$1000=Costs!AC$705)*('Fixed assets'!$U$2:$U$1000>Costs!$A787)*('Fixed assets'!$P$2:$P$1000=Costs!$A787)*('Fixed assets'!$R$2:$R$1000))-SUMPRODUCT(('Fixed assets'!$Q$2:$Q$1000=Costs!AC$705)*('Fixed assets'!$U$2:$U$1000>Costs!$A787)*('Fixed assets'!$P$2:$P$1000=Costs!$A787)*('Fixed assets'!$S$2:$S$1000))","v":0},{"$f":"AD699+SUMPRODUCT(('Fixed assets'!$Q$2:$Q$1000=Costs!AD$705)*('Fixed assets'!$U$2:$U$1000>Costs!$A787)*('Fixed assets'!$P$2:$P$1000=Costs!$A787)*('Fixed assets'!$R$2:$R$1000))-SUMPRODUCT(('Fixed assets'!$Q$2:$Q$1000=Costs!AD$705)*('Fixed assets'!$U$2:$U$1000>Costs!$A787)*('Fixed assets'!$P$2:$P$1000=Costs!$A787)*('Fixed assets'!$S$2:$S$1000))","v":0},{"$f":"AE699+SUMPRODUCT(('Fixed assets'!$Q$2:$Q$1000=Costs!AE$705)*('Fixed assets'!$U$2:$U$1000>Costs!$A787)*('Fixed assets'!$P$2:$P$1000=Costs!$A787)*('Fixed assets'!$R$2:$R$1000))-SUMPRODUCT(('Fixed assets'!$Q$2:$Q$1000=Costs!AE$705)*('Fixed assets'!$U$2:$U$1000>Costs!$A787)*('Fixed assets'!$P$2:$P$1000=Costs!$A787)*('Fixed assets'!$S$2:$S$1000))","v":0},{"$f":"AF699+SUMPRODUCT(('Fixed assets'!$Q$2:$Q$1000=Costs!AF$705)*('Fixed assets'!$U$2:$U$1000>Costs!$A787)*('Fixed assets'!$P$2:$P$1000=Costs!$A787)*('Fixed assets'!$R$2:$R$1000))-SUMPRODUCT(('Fixed assets'!$Q$2:$Q$1000=Costs!AF$705)*('Fixed assets'!$U$2:$U$1000>Costs!$A787)*('Fixed assets'!$P$2:$P$1000=Costs!$A787)*('Fixed assets'!$S$2:$S$1000))","v":0},{"$f":"AG699+SUMPRODUCT(('Fixed assets'!$Q$2:$Q$1000=Costs!AG$705)*('Fixed assets'!$U$2:$U$1000>Costs!$A787)*('Fixed assets'!$P$2:$P$1000=Costs!$A787)*('Fixed assets'!$R$2:$R$1000))-SUMPRODUCT(('Fixed assets'!$Q$2:$Q$1000=Costs!AG$705)*('Fixed assets'!$U$2:$U$1000>Costs!$A787)*('Fixed assets'!$P$2:$P$1000=Costs!$A787)*('Fixed assets'!$S$2:$S$1000))","v":0},{"$f":"AH699+SUMPRODUCT(('Fixed assets'!$Q$2:$Q$1000=Costs!AH$705)*('Fixed assets'!$U$2:$U$1000>Costs!$A787)*('Fixed assets'!$P$2:$P$1000=Costs!$A787)*('Fixed assets'!$R$2:$R$1000))-SUMPRODUCT(('Fixed assets'!$Q$2:$Q$1000=Costs!AH$705)*('Fixed assets'!$U$2:$U$1000>Costs!$A787)*('Fixed assets'!$P$2:$P$1000=Costs!$A787)*('Fixed assets'!$S$2:$S$1000))","v":0},{"$f":"AI699+SUMPRODUCT(('Fixed assets'!$Q$2:$Q$1000=Costs!AI$705)*('Fixed assets'!$U$2:$U$1000>Costs!$A787)*('Fixed assets'!$P$2:$P$1000=Costs!$A787)*('Fixed assets'!$R$2:$R$1000))-SUMPRODUCT(('Fixed assets'!$Q$2:$Q$1000=Costs!AI$705)*('Fixed assets'!$U$2:$U$1000>Costs!$A787)*('Fixed assets'!$P$2:$P$1000=Costs!$A787)*('Fixed assets'!$S$2:$S$1000))","v":0},{"$f":"AJ699+SUMPRODUCT(('Fixed assets'!$Q$2:$Q$1000=Costs!AJ$705)*('Fixed assets'!$U$2:$U$1000>Costs!$A787)*('Fixed assets'!$P$2:$P$1000=Costs!$A787)*('Fixed assets'!$R$2:$R$1000))-SUMPRODUCT(('Fixed assets'!$Q$2:$Q$1000=Costs!AJ$705)*('Fixed assets'!$U$2:$U$1000>Costs!$A787)*('Fixed assets'!$P$2:$P$1000=Costs!$A787)*('Fixed assets'!$S$2:$S$1000))","v":0},{"$f":"AK699+SUMPRODUCT(('Fixed assets'!$Q$2:$Q$1000=Costs!AK$705)*('Fixed assets'!$U$2:$U$1000>Costs!$A787)*('Fixed assets'!$P$2:$P$1000=Costs!$A787)*('Fixed assets'!$R$2:$R$1000))-SUMPRODUCT(('Fixed assets'!$Q$2:$Q$1000=Costs!AK$705)*('Fixed assets'!$U$2:$U$1000>Costs!$A787)*('Fixed assets'!$P$2:$P$1000=Costs!$A787)*('Fixed assets'!$S$2:$S$1000))","v":0},{"$f":"AL699+SUMPRODUCT(('Fixed assets'!$Q$2:$Q$1000=Costs!AL$705)*('Fixed assets'!$U$2:$U$1000>Costs!$A787)*('Fixed assets'!$P$2:$P$1000=Costs!$A787)*('Fixed assets'!$R$2:$R$1000))-SUMPRODUCT(('Fixed assets'!$Q$2:$Q$1000=Costs!AL$705)*('Fixed assets'!$U$2:$U$1000>Costs!$A787)*('Fixed assets'!$P$2:$P$1000=Costs!$A787)*('Fixed assets'!$S$2:$S$1000))","v":0},{"$f":"AM699+SUMPRODUCT(('Fixed assets'!$Q$2:$Q$1000=Costs!AM$705)*('Fixed assets'!$U$2:$U$1000>Costs!$A787)*('Fixed assets'!$P$2:$P$1000=Costs!$A787)*('Fixed assets'!$R$2:$R$1000))-SUMPRODUCT(('Fixed assets'!$Q$2:$Q$1000=Costs!AM$705)*('Fixed assets'!$U$2:$U$1000>Costs!$A787)*('Fixed assets'!$P$2:$P$1000=Costs!$A787)*('Fixed assets'!$S$2:$S$1000))","v":0},{"$f":"AN699+SUMPRODUCT(('Fixed assets'!$Q$2:$Q$1000=Costs!AN$705)*('Fixed assets'!$U$2:$U$1000>Costs!$A787)*('Fixed assets'!$P$2:$P$1000=Costs!$A787)*('Fixed assets'!$R$2:$R$1000))-SUMPRODUCT(('Fixed assets'!$Q$2:$Q$1000=Costs!AN$705)*('Fixed assets'!$U$2:$U$1000>Costs!$A787)*('Fixed assets'!$P$2:$P$1000=Costs!$A787)*('Fixed assets'!$S$2:$S$1000))","v":0},{"$f":"AO699+SUMPRODUCT(('Fixed assets'!$Q$2:$Q$1000=Costs!AO$705)*('Fixed assets'!$U$2:$U$1000>Costs!$A787)*('Fixed assets'!$P$2:$P$1000=Costs!$A787)*('Fixed assets'!$R$2:$R$1000))-SUMPRODUCT(('Fixed assets'!$Q$2:$Q$1000=Costs!AO$705)*('Fixed assets'!$U$2:$U$1000>Costs!$A787)*('Fixed assets'!$P$2:$P$1000=Costs!$A787)*('Fixed assets'!$S$2:$S$1000))","v":0},{"$f":"AP699+SUMPRODUCT(('Fixed assets'!$Q$2:$Q$1000=Costs!AP$705)*('Fixed assets'!$U$2:$U$1000>Costs!$A787)*('Fixed assets'!$P$2:$P$1000=Costs!$A787)*('Fixed assets'!$R$2:$R$1000))-SUMPRODUCT(('Fixed assets'!$Q$2:$Q$1000=Costs!AP$705)*('Fixed assets'!$U$2:$U$1000>Costs!$A787)*('Fixed assets'!$P$2:$P$1000=Costs!$A787)*('Fixed assets'!$S$2:$S$1000))","v":0},{"$f":"AQ699+SUMPRODUCT(('Fixed assets'!$Q$2:$Q$1000=Costs!AQ$705)*('Fixed assets'!$U$2:$U$1000>Costs!$A787)*('Fixed assets'!$P$2:$P$1000=Costs!$A787)*('Fixed assets'!$R$2:$R$1000))-SUMPRODUCT(('Fixed assets'!$Q$2:$Q$1000=Costs!AQ$705)*('Fixed assets'!$U$2:$U$1000>Costs!$A787)*('Fixed assets'!$P$2:$P$1000=Costs!$A787)*('Fixed assets'!$S$2:$S$1000))","v":0}]
[2097,0,{"$f":"C700+SUMPRODUCT(('Fixed assets'!$Q$2:$Q$1000=Costs!C$705)*('Fixed assets'!$U$2:$U$1000>Costs!$A788)*('Fixed assets'!$P$2:$P$1000=Costs!$A788)*('Fixed assets'!$R$2:$R$1000))-SUMPRODUCT(('Fixed assets'!$Q$2:$Q$1000=Costs!C$705)*('Fixed assets'!$U$2:$U$1000>Costs!$A788)*('Fixed assets'!$P$2:$P$1000=Costs!$A788)*('Fixed assets'!$S$2:$S$1000))","v":0},{"$f":"D700+SUMPRODUCT(('Fixed assets'!$Q$2:$Q$1000=Costs!D$705)*('Fixed assets'!$U$2:$U$1000>Costs!$A788)*('Fixed assets'!$P$2:$P$1000=Costs!$A788)*('Fixed assets'!$R$2:$R$1000))-SUMPRODUCT(('Fixed assets'!$Q$2:$Q$1000=Costs!D$705)*('Fixed assets'!$U$2:$U$1000>Costs!$A788)*('Fixed assets'!$P$2:$P$1000=Costs!$A788)*('Fixed assets'!$S$2:$S$1000))","v":0},{"$f":"E700+SUMPRODUCT(('Fixed assets'!$Q$2:$Q$1000=Costs!E$705)*('Fixed assets'!$U$2:$U$1000>Costs!$A788)*('Fixed assets'!$P$2:$P$1000=Costs!$A788)*('Fixed assets'!$R$2:$R$1000))-SUMPRODUCT(('Fixed assets'!$Q$2:$Q$1000=Costs!E$705)*('Fixed assets'!$U$2:$U$1000>Costs!$A788)*('Fixed assets'!$P$2:$P$1000=Costs!$A788)*('Fixed assets'!$S$2:$S$1000))","v":0},{"$f":"F700+SUMPRODUCT(('Fixed assets'!$Q$2:$Q$1000=Costs!F$705)*('Fixed assets'!$U$2:$U$1000>Costs!$A788)*('Fixed assets'!$P$2:$P$1000=Costs!$A788)*('Fixed assets'!$R$2:$R$1000))-SUMPRODUCT(('Fixed assets'!$Q$2:$Q$1000=Costs!F$705)*('Fixed assets'!$U$2:$U$1000>Costs!$A788)*('Fixed assets'!$P$2:$P$1000=Costs!$A788)*('Fixed assets'!$S$2:$S$1000))","v":0},{"$f":"G700+SUMPRODUCT(('Fixed assets'!$Q$2:$Q$1000=Costs!G$705)*('Fixed assets'!$U$2:$U$1000>Costs!$A788)*('Fixed assets'!$P$2:$P$1000=Costs!$A788)*('Fixed assets'!$R$2:$R$1000))-SUMPRODUCT(('Fixed assets'!$Q$2:$Q$1000=Costs!G$705)*('Fixed assets'!$U$2:$U$1000>Costs!$A788)*('Fixed assets'!$P$2:$P$1000=Costs!$A788)*('Fixed assets'!$S$2:$S$1000))","v":0},{"$f":"H700+SUMPRODUCT(('Fixed assets'!$Q$2:$Q$1000=Costs!H$705)*('Fixed assets'!$U$2:$U$1000>Costs!$A788)*('Fixed assets'!$P$2:$P$1000=Costs!$A788)*('Fixed assets'!$R$2:$R$1000))-SUMPRODUCT(('Fixed assets'!$Q$2:$Q$1000=Costs!H$705)*('Fixed assets'!$U$2:$U$1000>Costs!$A788)*('Fixed assets'!$P$2:$P$1000=Costs!$A788)*('Fixed assets'!$S$2:$S$1000))","v":0},{"$f":"I700+SUMPRODUCT(('Fixed assets'!$Q$2:$Q$1000=Costs!I$705)*('Fixed assets'!$U$2:$U$1000>Costs!$A788)*('Fixed assets'!$P$2:$P$1000=Costs!$A788)*('Fixed assets'!$R$2:$R$1000))-SUMPRODUCT(('Fixed assets'!$Q$2:$Q$1000=Costs!I$705)*('Fixed assets'!$U$2:$U$1000>Costs!$A788)*('Fixed assets'!$P$2:$P$1000=Costs!$A788)*('Fixed assets'!$S$2:$S$1000))","v":0},{"$f":"J700+SUMPRODUCT(('Fixed assets'!$Q$2:$Q$1000=Costs!J$705)*('Fixed assets'!$U$2:$U$1000>Costs!$A788)*('Fixed assets'!$P$2:$P$1000=Costs!$A788)*('Fixed assets'!$R$2:$R$1000))-SUMPRODUCT(('Fixed assets'!$Q$2:$Q$1000=Costs!J$705)*('Fixed assets'!$U$2:$U$1000>Costs!$A788)*('Fixed assets'!$P$2:$P$1000=Costs!$A788)*('Fixed assets'!$S$2:$S$1000))","v":0},{"$f":"K700+SUMPRODUCT(('Fixed assets'!$Q$2:$Q$1000=Costs!K$705)*('Fixed assets'!$U$2:$U$1000>Costs!$A788)*('Fixed assets'!$P$2:$P$1000=Costs!$A788)*('Fixed assets'!$R$2:$R$1000))-SUMPRODUCT(('Fixed assets'!$Q$2:$Q$1000=Costs!K$705)*('Fixed assets'!$U$2:$U$1000>Costs!$A788)*('Fixed assets'!$P$2:$P$1000=Costs!$A788)*('Fixed assets'!$S$2:$S$1000))","v":0},{"$f":"L700+SUMPRODUCT(('Fixed assets'!$Q$2:$Q$1000=Costs!L$705)*('Fixed assets'!$U$2:$U$1000>Costs!$A788)*('Fixed assets'!$P$2:$P$1000=Costs!$A788)*('Fixed assets'!$R$2:$R$1000))-SUMPRODUCT(('Fixed assets'!$Q$2:$Q$1000=Costs!L$705)*('Fixed assets'!$U$2:$U$1000>Costs!$A788)*('Fixed assets'!$P$2:$P$1000=Costs!$A788)*('Fixed assets'!$S$2:$S$1000))","v":0},{"$f":"M700+SUMPRODUCT(('Fixed assets'!$Q$2:$Q$1000=Costs!M$705)*('Fixed assets'!$U$2:$U$1000>Costs!$A788)*('Fixed assets'!$P$2:$P$1000=Costs!$A788)*('Fixed assets'!$R$2:$R$1000))-SUMPRODUCT(('Fixed assets'!$Q$2:$Q$1000=Costs!M$705)*('Fixed assets'!$U$2:$U$1000>Costs!$A788)*('Fixed assets'!$P$2:$P$1000=Costs!$A788)*('Fixed assets'!$S$2:$S$1000))","v":0},{"$f":"N700+SUMPRODUCT(('Fixed assets'!$Q$2:$Q$1000=Costs!N$705)*('Fixed assets'!$U$2:$U$1000>Costs!$A788)*('Fixed assets'!$P$2:$P$1000=Costs!$A788)*('Fixed assets'!$R$2:$R$1000))-SUMPRODUCT(('Fixed assets'!$Q$2:$Q$1000=Costs!N$705)*('Fixed assets'!$U$2:$U$1000>Costs!$A788)*('Fixed assets'!$P$2:$P$1000=Costs!$A788)*('Fixed assets'!$S$2:$S$1000))","v":0},{"$f":"O700+SUMPRODUCT(('Fixed assets'!$Q$2:$Q$1000=Costs!O$705)*('Fixed assets'!$U$2:$U$1000>Costs!$A788)*('Fixed assets'!$P$2:$P$1000=Costs!$A788)*('Fixed assets'!$R$2:$R$1000))-SUMPRODUCT(('Fixed assets'!$Q$2:$Q$1000=Costs!O$705)*('Fixed assets'!$U$2:$U$1000>Costs!$A788)*('Fixed assets'!$P$2:$P$1000=Costs!$A788)*('Fixed assets'!$S$2:$S$1000))","v":0},{"$f":"P700+SUMPRODUCT(('Fixed assets'!$Q$2:$Q$1000=Costs!P$705)*('Fixed assets'!$U$2:$U$1000>Costs!$A788)*('Fixed assets'!$P$2:$P$1000=Costs!$A788)*('Fixed assets'!$R$2:$R$1000))-SUMPRODUCT(('Fixed assets'!$Q$2:$Q$1000=Costs!P$705)*('Fixed assets'!$U$2:$U$1000>Costs!$A788)*('Fixed assets'!$P$2:$P$1000=Costs!$A788)*('Fixed assets'!$S$2:$S$1000))","v":0},{"$f":"Q700+SUMPRODUCT(('Fixed assets'!$Q$2:$Q$1000=Costs!Q$705)*('Fixed assets'!$U$2:$U$1000>Costs!$A788)*('Fixed assets'!$P$2:$P$1000=Costs!$A788)*('Fixed assets'!$R$2:$R$1000))-SUMPRODUCT(('Fixed assets'!$Q$2:$Q$1000=Costs!Q$705)*('Fixed assets'!$U$2:$U$1000>Costs!$A788)*('Fixed assets'!$P$2:$P$1000=Costs!$A788)*('Fixed assets'!$S$2:$S$1000))","v":0},{"$f":"R700+SUMPRODUCT(('Fixed assets'!$Q$2:$Q$1000=Costs!R$705)*('Fixed assets'!$U$2:$U$1000>Costs!$A788)*('Fixed assets'!$P$2:$P$1000=Costs!$A788)*('Fixed assets'!$R$2:$R$1000))-SUMPRODUCT(('Fixed assets'!$Q$2:$Q$1000=Costs!R$705)*('Fixed assets'!$U$2:$U$1000>Costs!$A788)*('Fixed assets'!$P$2:$P$1000=Costs!$A788)*('Fixed assets'!$S$2:$S$1000))","v":0},{"$f":"S700+SUMPRODUCT(('Fixed assets'!$Q$2:$Q$1000=Costs!S$705)*('Fixed assets'!$U$2:$U$1000>Costs!$A788)*('Fixed assets'!$P$2:$P$1000=Costs!$A788)*('Fixed assets'!$R$2:$R$1000))-SUMPRODUCT(('Fixed assets'!$Q$2:$Q$1000=Costs!S$705)*('Fixed assets'!$U$2:$U$1000>Costs!$A788)*('Fixed assets'!$P$2:$P$1000=Costs!$A788)*('Fixed assets'!$S$2:$S$1000))","v":0},{"$f":"T700+SUMPRODUCT(('Fixed assets'!$Q$2:$Q$1000=Costs!T$705)*('Fixed assets'!$U$2:$U$1000>Costs!$A788)*('Fixed assets'!$P$2:$P$1000=Costs!$A788)*('Fixed assets'!$R$2:$R$1000))-SUMPRODUCT(('Fixed assets'!$Q$2:$Q$1000=Costs!T$705)*('Fixed assets'!$U$2:$U$1000>Costs!$A788)*('Fixed assets'!$P$2:$P$1000=Costs!$A788)*('Fixed assets'!$S$2:$S$1000))","v":0},{"$f":"U700+SUMPRODUCT(('Fixed assets'!$Q$2:$Q$1000=Costs!U$705)*('Fixed assets'!$U$2:$U$1000>Costs!$A788)*('Fixed assets'!$P$2:$P$1000=Costs!$A788)*('Fixed assets'!$R$2:$R$1000))-SUMPRODUCT(('Fixed assets'!$Q$2:$Q$1000=Costs!U$705)*('Fixed assets'!$U$2:$U$1000>Costs!$A788)*('Fixed assets'!$P$2:$P$1000=Costs!$A788)*('Fixed assets'!$S$2:$S$1000))","v":0},{"$f":"V700+SUMPRODUCT(('Fixed assets'!$Q$2:$Q$1000=Costs!V$705)*('Fixed assets'!$U$2:$U$1000>Costs!$A788)*('Fixed assets'!$P$2:$P$1000=Costs!$A788)*('Fixed assets'!$R$2:$R$1000))-SUMPRODUCT(('Fixed assets'!$Q$2:$Q$1000=Costs!V$705)*('Fixed assets'!$U$2:$U$1000>Costs!$A788)*('Fixed assets'!$P$2:$P$1000=Costs!$A788)*('Fixed assets'!$S$2:$S$1000))","v":0},{"$f":"W700+SUMPRODUCT(('Fixed assets'!$Q$2:$Q$1000=Costs!W$705)*('Fixed assets'!$U$2:$U$1000>Costs!$A788)*('Fixed assets'!$P$2:$P$1000=Costs!$A788)*('Fixed assets'!$R$2:$R$1000))-SUMPRODUCT(('Fixed assets'!$Q$2:$Q$1000=Costs!W$705)*('Fixed assets'!$U$2:$U$1000>Costs!$A788)*('Fixed assets'!$P$2:$P$1000=Costs!$A788)*('Fixed assets'!$S$2:$S$1000))","v":0},{"$f":"X700+SUMPRODUCT(('Fixed assets'!$Q$2:$Q$1000=Costs!X$705)*('Fixed assets'!$U$2:$U$1000>Costs!$A788)*('Fixed assets'!$P$2:$P$1000=Costs!$A788)*('Fixed assets'!$R$2:$R$1000))-SUMPRODUCT(('Fixed assets'!$Q$2:$Q$1000=Costs!X$705)*('Fixed assets'!$U$2:$U$1000>Costs!$A788)*('Fixed assets'!$P$2:$P$1000=Costs!$A788)*('Fixed assets'!$S$2:$S$1000))","v":0},{"$f":"Y700+SUMPRODUCT(('Fixed assets'!$Q$2:$Q$1000=Costs!Y$705)*('Fixed assets'!$U$2:$U$1000>Costs!$A788)*('Fixed assets'!$P$2:$P$1000=Costs!$A788)*('Fixed assets'!$R$2:$R$1000))-SUMPRODUCT(('Fixed assets'!$Q$2:$Q$1000=Costs!Y$705)*('Fixed assets'!$U$2:$U$1000>Costs!$A788)*('Fixed assets'!$P$2:$P$1000=Costs!$A788)*('Fixed assets'!$S$2:$S$1000))","v":0},{"$f":"Z700+SUMPRODUCT(('Fixed assets'!$Q$2:$Q$1000=Costs!Z$705)*('Fixed assets'!$U$2:$U$1000>Costs!$A788)*('Fixed assets'!$P$2:$P$1000=Costs!$A788)*('Fixed assets'!$R$2:$R$1000))-SUMPRODUCT(('Fixed assets'!$Q$2:$Q$1000=Costs!Z$705)*('Fixed assets'!$U$2:$U$1000>Costs!$A788)*('Fixed assets'!$P$2:$P$1000=Costs!$A788)*('Fixed assets'!$S$2:$S$1000))","v":0},{"$f":"AA700+SUMPRODUCT(('Fixed assets'!$Q$2:$Q$1000=Costs!AA$705)*('Fixed assets'!$U$2:$U$1000>Costs!$A788)*('Fixed assets'!$P$2:$P$1000=Costs!$A788)*('Fixed assets'!$R$2:$R$1000))-SUMPRODUCT(('Fixed assets'!$Q$2:$Q$1000=Costs!AA$705)*('Fixed assets'!$U$2:$U$1000>Costs!$A788)*('Fixed assets'!$P$2:$P$1000=Costs!$A788)*('Fixed assets'!$S$2:$S$1000))","v":0},{"$f":"AB700+SUMPRODUCT(('Fixed assets'!$Q$2:$Q$1000=Costs!AB$705)*('Fixed assets'!$U$2:$U$1000>Costs!$A788)*('Fixed assets'!$P$2:$P$1000=Costs!$A788)*('Fixed assets'!$R$2:$R$1000))-SUMPRODUCT(('Fixed assets'!$Q$2:$Q$1000=Costs!AB$705)*('Fixed assets'!$U$2:$U$1000>Costs!$A788)*('Fixed assets'!$P$2:$P$1000=Costs!$A788)*('Fixed assets'!$S$2:$S$1000))","v":0},{"$f":"AC700+SUMPRODUCT(('Fixed assets'!$Q$2:$Q$1000=Costs!AC$705)*('Fixed assets'!$U$2:$U$1000>Costs!$A788)*('Fixed assets'!$P$2:$P$1000=Costs!$A788)*('Fixed assets'!$R$2:$R$1000))-SUMPRODUCT(('Fixed assets'!$Q$2:$Q$1000=Costs!AC$705)*('Fixed assets'!$U$2:$U$1000>Costs!$A788)*('Fixed assets'!$P$2:$P$1000=Costs!$A788)*('Fixed assets'!$S$2:$S$1000))","v":0},{"$f":"AD700+SUMPRODUCT(('Fixed assets'!$Q$2:$Q$1000=Costs!AD$705)*('Fixed assets'!$U$2:$U$1000>Costs!$A788)*('Fixed assets'!$P$2:$P$1000=Costs!$A788)*('Fixed assets'!$R$2:$R$1000))-SUMPRODUCT(('Fixed assets'!$Q$2:$Q$1000=Costs!AD$705)*('Fixed assets'!$U$2:$U$1000>Costs!$A788)*('Fixed assets'!$P$2:$P$1000=Costs!$A788)*('Fixed assets'!$S$2:$S$1000))","v":0},{"$f":"AE700+SUMPRODUCT(('Fixed assets'!$Q$2:$Q$1000=Costs!AE$705)*('Fixed assets'!$U$2:$U$1000>Costs!$A788)*('Fixed assets'!$P$2:$P$1000=Costs!$A788)*('Fixed assets'!$R$2:$R$1000))-SUMPRODUCT(('Fixed assets'!$Q$2:$Q$1000=Costs!AE$705)*('Fixed assets'!$U$2:$U$1000>Costs!$A788)*('Fixed assets'!$P$2:$P$1000=Costs!$A788)*('Fixed assets'!$S$2:$S$1000))","v":0},{"$f":"AF700+SUMPRODUCT(('Fixed assets'!$Q$2:$Q$1000=Costs!AF$705)*('Fixed assets'!$U$2:$U$1000>Costs!$A788)*('Fixed assets'!$P$2:$P$1000=Costs!$A788)*('Fixed assets'!$R$2:$R$1000))-SUMPRODUCT(('Fixed assets'!$Q$2:$Q$1000=Costs!AF$705)*('Fixed assets'!$U$2:$U$1000>Costs!$A788)*('Fixed assets'!$P$2:$P$1000=Costs!$A788)*('Fixed assets'!$S$2:$S$1000))","v":0},{"$f":"AG700+SUMPRODUCT(('Fixed assets'!$Q$2:$Q$1000=Costs!AG$705)*('Fixed assets'!$U$2:$U$1000>Costs!$A788)*('Fixed assets'!$P$2:$P$1000=Costs!$A788)*('Fixed assets'!$R$2:$R$1000))-SUMPRODUCT(('Fixed assets'!$Q$2:$Q$1000=Costs!AG$705)*('Fixed assets'!$U$2:$U$1000>Costs!$A788)*('Fixed assets'!$P$2:$P$1000=Costs!$A788)*('Fixed assets'!$S$2:$S$1000))","v":0},{"$f":"AH700+SUMPRODUCT(('Fixed assets'!$Q$2:$Q$1000=Costs!AH$705)*('Fixed assets'!$U$2:$U$1000>Costs!$A788)*('Fixed assets'!$P$2:$P$1000=Costs!$A788)*('Fixed assets'!$R$2:$R$1000))-SUMPRODUCT(('Fixed assets'!$Q$2:$Q$1000=Costs!AH$705)*('Fixed assets'!$U$2:$U$1000>Costs!$A788)*('Fixed assets'!$P$2:$P$1000=Costs!$A788)*('Fixed assets'!$S$2:$S$1000))","v":0},{"$f":"AI700+SUMPRODUCT(('Fixed assets'!$Q$2:$Q$1000=Costs!AI$705)*('Fixed assets'!$U$2:$U$1000>Costs!$A788)*('Fixed assets'!$P$2:$P$1000=Costs!$A788)*('Fixed assets'!$R$2:$R$1000))-SUMPRODUCT(('Fixed assets'!$Q$2:$Q$1000=Costs!AI$705)*('Fixed assets'!$U$2:$U$1000>Costs!$A788)*('Fixed assets'!$P$2:$P$1000=Costs!$A788)*('Fixed assets'!$S$2:$S$1000))","v":0},{"$f":"AJ700+SUMPRODUCT(('Fixed assets'!$Q$2:$Q$1000=Costs!AJ$705)*('Fixed assets'!$U$2:$U$1000>Costs!$A788)*('Fixed assets'!$P$2:$P$1000=Costs!$A788)*('Fixed assets'!$R$2:$R$1000))-SUMPRODUCT(('Fixed assets'!$Q$2:$Q$1000=Costs!AJ$705)*('Fixed assets'!$U$2:$U$1000>Costs!$A788)*('Fixed assets'!$P$2:$P$1000=Costs!$A788)*('Fixed assets'!$S$2:$S$1000))","v":0},{"$f":"AK700+SUMPRODUCT(('Fixed assets'!$Q$2:$Q$1000=Costs!AK$705)*('Fixed assets'!$U$2:$U$1000>Costs!$A788)*('Fixed assets'!$P$2:$P$1000=Costs!$A788)*('Fixed assets'!$R$2:$R$1000))-SUMPRODUCT(('Fixed assets'!$Q$2:$Q$1000=Costs!AK$705)*('Fixed assets'!$U$2:$U$1000>Costs!$A788)*('Fixed assets'!$P$2:$P$1000=Costs!$A788)*('Fixed assets'!$S$2:$S$1000))","v":0},{"$f":"AL700+SUMPRODUCT(('Fixed assets'!$Q$2:$Q$1000=Costs!AL$705)*('Fixed assets'!$U$2:$U$1000>Costs!$A788)*('Fixed assets'!$P$2:$P$1000=Costs!$A788)*('Fixed assets'!$R$2:$R$1000))-SUMPRODUCT(('Fixed assets'!$Q$2:$Q$1000=Costs!AL$705)*('Fixed assets'!$U$2:$U$1000>Costs!$A788)*('Fixed assets'!$P$2:$P$1000=Costs!$A788)*('Fixed assets'!$S$2:$S$1000))","v":0},{"$f":"AM700+SUMPRODUCT(('Fixed assets'!$Q$2:$Q$1000=Costs!AM$705)*('Fixed assets'!$U$2:$U$1000>Costs!$A788)*('Fixed assets'!$P$2:$P$1000=Costs!$A788)*('Fixed assets'!$R$2:$R$1000))-SUMPRODUCT(('Fixed assets'!$Q$2:$Q$1000=Costs!AM$705)*('Fixed assets'!$U$2:$U$1000>Costs!$A788)*('Fixed assets'!$P$2:$P$1000=Costs!$A788)*('Fixed assets'!$S$2:$S$1000))","v":0},{"$f":"AN700+SUMPRODUCT(('Fixed assets'!$Q$2:$Q$1000=Costs!AN$705)*('Fixed assets'!$U$2:$U$1000>Costs!$A788)*('Fixed assets'!$P$2:$P$1000=Costs!$A788)*('Fixed assets'!$R$2:$R$1000))-SUMPRODUCT(('Fixed assets'!$Q$2:$Q$1000=Costs!AN$705)*('Fixed assets'!$U$2:$U$1000>Costs!$A788)*('Fixed assets'!$P$2:$P$1000=Costs!$A788)*('Fixed assets'!$S$2:$S$1000))","v":0},{"$f":"AO700+SUMPRODUCT(('Fixed assets'!$Q$2:$Q$1000=Costs!AO$705)*('Fixed assets'!$U$2:$U$1000>Costs!$A788)*('Fixed assets'!$P$2:$P$1000=Costs!$A788)*('Fixed assets'!$R$2:$R$1000))-SUMPRODUCT(('Fixed assets'!$Q$2:$Q$1000=Costs!AO$705)*('Fixed assets'!$U$2:$U$1000>Costs!$A788)*('Fixed assets'!$P$2:$P$1000=Costs!$A788)*('Fixed assets'!$S$2:$S$1000))","v":0},{"$f":"AP700+SUMPRODUCT(('Fixed assets'!$Q$2:$Q$1000=Costs!AP$705)*('Fixed assets'!$U$2:$U$1000>Costs!$A788)*('Fixed assets'!$P$2:$P$1000=Costs!$A788)*('Fixed assets'!$R$2:$R$1000))-SUMPRODUCT(('Fixed assets'!$Q$2:$Q$1000=Costs!AP$705)*('Fixed assets'!$U$2:$U$1000>Costs!$A788)*('Fixed assets'!$P$2:$P$1000=Costs!$A788)*('Fixed assets'!$S$2:$S$1000))","v":0},{"$f":"AQ700+SUMPRODUCT(('Fixed assets'!$Q$2:$Q$1000=Costs!AQ$705)*('Fixed assets'!$U$2:$U$1000>Costs!$A788)*('Fixed assets'!$P$2:$P$1000=Costs!$A788)*('Fixed assets'!$R$2:$R$1000))-SUMPRODUCT(('Fixed assets'!$Q$2:$Q$1000=Costs!AQ$705)*('Fixed assets'!$U$2:$U$1000>Costs!$A788)*('Fixed assets'!$P$2:$P$1000=Costs!$A788)*('Fixed assets'!$S$2:$S$1000))","v":0}]
[2098,0,{"$f":"C701+SUMPRODUCT(('Fixed assets'!$Q$2:$Q$1000=Costs!C$705)*('Fixed assets'!$U$2:$U$1000>Costs!$A789)*('Fixed assets'!$P$2:$P$1000=Costs!$A789)*('Fixed assets'!$R$2:$R$1000))-SUMPRODUCT(('Fixed assets'!$Q$2:$Q$1000=Costs!C$705)*('Fixed assets'!$U$2:$U$1000>Costs!$A789)*('Fixed assets'!$P$2:$P$1000=Costs!$A789)*('Fixed assets'!$S$2:$S$1000))","v":0},{"$f":"D701+SUMPRODUCT(('Fixed assets'!$Q$2:$Q$1000=Costs!D$705)*('Fixed assets'!$U$2:$U$1000>Costs!$A789)*('Fixed assets'!$P$2:$P$1000=Costs!$A789)*('Fixed assets'!$R$2:$R$1000))-SUMPRODUCT(('Fixed assets'!$Q$2:$Q$1000=Costs!D$705)*('Fixed assets'!$U$2:$U$1000>Costs!$A789)*('Fixed assets'!$P$2:$P$1000=Costs!$A789)*('Fixed assets'!$S$2:$S$1000))","v":0},{"$f":"E701+SUMPRODUCT(('Fixed assets'!$Q$2:$Q$1000=Costs!E$705)*('Fixed assets'!$U$2:$U$1000>Costs!$A789)*('Fixed assets'!$P$2:$P$1000=Costs!$A789)*('Fixed assets'!$R$2:$R$1000))-SUMPRODUCT(('Fixed assets'!$Q$2:$Q$1000=Costs!E$705)*('Fixed assets'!$U$2:$U$1000>Costs!$A789)*('Fixed assets'!$P$2:$P$1000=Costs!$A789)*('Fixed assets'!$S$2:$S$1000))","v":0},{"$f":"F701+SUMPRODUCT(('Fixed assets'!$Q$2:$Q$1000=Costs!F$705)*('Fixed assets'!$U$2:$U$1000>Costs!$A789)*('Fixed assets'!$P$2:$P$1000=Costs!$A789)*('Fixed assets'!$R$2:$R$1000))-SUMPRODUCT(('Fixed assets'!$Q$2:$Q$1000=Costs!F$705)*('Fixed assets'!$U$2:$U$1000>Costs!$A789)*('Fixed assets'!$P$2:$P$1000=Costs!$A789)*('Fixed assets'!$S$2:$S$1000))","v":0},{"$f":"G701+SUMPRODUCT(('Fixed assets'!$Q$2:$Q$1000=Costs!G$705)*('Fixed assets'!$U$2:$U$1000>Costs!$A789)*('Fixed assets'!$P$2:$P$1000=Costs!$A789)*('Fixed assets'!$R$2:$R$1000))-SUMPRODUCT(('Fixed assets'!$Q$2:$Q$1000=Costs!G$705)*('Fixed assets'!$U$2:$U$1000>Costs!$A789)*('Fixed assets'!$P$2:$P$1000=Costs!$A789)*('Fixed assets'!$S$2:$S$1000))","v":0},{"$f":"H701+SUMPRODUCT(('Fixed assets'!$Q$2:$Q$1000=Costs!H$705)*('Fixed assets'!$U$2:$U$1000>Costs!$A789)*('Fixed assets'!$P$2:$P$1000=Costs!$A789)*('Fixed assets'!$R$2:$R$1000))-SUMPRODUCT(('Fixed assets'!$Q$2:$Q$1000=Costs!H$705)*('Fixed assets'!$U$2:$U$1000>Costs!$A789)*('Fixed assets'!$P$2:$P$1000=Costs!$A789)*('Fixed assets'!$S$2:$S$1000))","v":0},{"$f":"I701+SUMPRODUCT(('Fixed assets'!$Q$2:$Q$1000=Costs!I$705)*('Fixed assets'!$U$2:$U$1000>Costs!$A789)*('Fixed assets'!$P$2:$P$1000=Costs!$A789)*('Fixed assets'!$R$2:$R$1000))-SUMPRODUCT(('Fixed assets'!$Q$2:$Q$1000=Costs!I$705)*('Fixed assets'!$U$2:$U$1000>Costs!$A789)*('Fixed assets'!$P$2:$P$1000=Costs!$A789)*('Fixed assets'!$S$2:$S$1000))","v":0},{"$f":"J701+SUMPRODUCT(('Fixed assets'!$Q$2:$Q$1000=Costs!J$705)*('Fixed assets'!$U$2:$U$1000>Costs!$A789)*('Fixed assets'!$P$2:$P$1000=Costs!$A789)*('Fixed assets'!$R$2:$R$1000))-SUMPRODUCT(('Fixed assets'!$Q$2:$Q$1000=Costs!J$705)*('Fixed assets'!$U$2:$U$1000>Costs!$A789)*('Fixed assets'!$P$2:$P$1000=Costs!$A789)*('Fixed assets'!$S$2:$S$1000))","v":0},{"$f":"K701+SUMPRODUCT(('Fixed assets'!$Q$2:$Q$1000=Costs!K$705)*('Fixed assets'!$U$2:$U$1000>Costs!$A789)*('Fixed assets'!$P$2:$P$1000=Costs!$A789)*('Fixed assets'!$R$2:$R$1000))-SUMPRODUCT(('Fixed assets'!$Q$2:$Q$1000=Costs!K$705)*('Fixed assets'!$U$2:$U$1000>Costs!$A789)*('Fixed assets'!$P$2:$P$1000=Costs!$A789)*('Fixed assets'!$S$2:$S$1000))","v":0},{"$f":"L701+SUMPRODUCT(('Fixed assets'!$Q$2:$Q$1000=Costs!L$705)*('Fixed assets'!$U$2:$U$1000>Costs!$A789)*('Fixed assets'!$P$2:$P$1000=Costs!$A789)*('Fixed assets'!$R$2:$R$1000))-SUMPRODUCT(('Fixed assets'!$Q$2:$Q$1000=Costs!L$705)*('Fixed assets'!$U$2:$U$1000>Costs!$A789)*('Fixed assets'!$P$2:$P$1000=Costs!$A789)*('Fixed assets'!$S$2:$S$1000))","v":0},{"$f":"M701+SUMPRODUCT(('Fixed assets'!$Q$2:$Q$1000=Costs!M$705)*('Fixed assets'!$U$2:$U$1000>Costs!$A789)*('Fixed assets'!$P$2:$P$1000=Costs!$A789)*('Fixed assets'!$R$2:$R$1000))-SUMPRODUCT(('Fixed assets'!$Q$2:$Q$1000=Costs!M$705)*('Fixed assets'!$U$2:$U$1000>Costs!$A789)*('Fixed assets'!$P$2:$P$1000=Costs!$A789)*('Fixed assets'!$S$2:$S$1000))","v":0},{"$f":"N701+SUMPRODUCT(('Fixed assets'!$Q$2:$Q$1000=Costs!N$705)*('Fixed assets'!$U$2:$U$1000>Costs!$A789)*('Fixed assets'!$P$2:$P$1000=Costs!$A789)*('Fixed assets'!$R$2:$R$1000))-SUMPRODUCT(('Fixed assets'!$Q$2:$Q$1000=Costs!N$705)*('Fixed assets'!$U$2:$U$1000>Costs!$A789)*('Fixed assets'!$P$2:$P$1000=Costs!$A789)*('Fixed assets'!$S$2:$S$1000))","v":0},{"$f":"O701+SUMPRODUCT(('Fixed assets'!$Q$2:$Q$1000=Costs!O$705)*('Fixed assets'!$U$2:$U$1000>Costs!$A789)*('Fixed assets'!$P$2:$P$1000=Costs!$A789)*('Fixed assets'!$R$2:$R$1000))-SUMPRODUCT(('Fixed assets'!$Q$2:$Q$1000=Costs!O$705)*('Fixed assets'!$U$2:$U$1000>Costs!$A789)*('Fixed assets'!$P$2:$P$1000=Costs!$A789)*('Fixed assets'!$S$2:$S$1000))","v":0},{"$f":"P701+SUMPRODUCT(('Fixed assets'!$Q$2:$Q$1000=Costs!P$705)*('Fixed assets'!$U$2:$U$1000>Costs!$A789)*('Fixed assets'!$P$2:$P$1000=Costs!$A789)*('Fixed assets'!$R$2:$R$1000))-SUMPRODUCT(('Fixed assets'!$Q$2:$Q$1000=Costs!P$705)*('Fixed assets'!$U$2:$U$1000>Costs!$A789)*('Fixed assets'!$P$2:$P$1000=Costs!$A789)*('Fixed assets'!$S$2:$S$1000))","v":0},{"$f":"Q701+SUMPRODUCT(('Fixed assets'!$Q$2:$Q$1000=Costs!Q$705)*('Fixed assets'!$U$2:$U$1000>Costs!$A789)*('Fixed assets'!$P$2:$P$1000=Costs!$A789)*('Fixed assets'!$R$2:$R$1000))-SUMPRODUCT(('Fixed assets'!$Q$2:$Q$1000=Costs!Q$705)*('Fixed assets'!$U$2:$U$1000>Costs!$A789)*('Fixed assets'!$P$2:$P$1000=Costs!$A789)*('Fixed assets'!$S$2:$S$1000))","v":0},{"$f":"R701+SUMPRODUCT(('Fixed assets'!$Q$2:$Q$1000=Costs!R$705)*('Fixed assets'!$U$2:$U$1000>Costs!$A789)*('Fixed assets'!$P$2:$P$1000=Costs!$A789)*('Fixed assets'!$R$2:$R$1000))-SUMPRODUCT(('Fixed assets'!$Q$2:$Q$1000=Costs!R$705)*('Fixed assets'!$U$2:$U$1000>Costs!$A789)*('Fixed assets'!$P$2:$P$1000=Costs!$A789)*('Fixed assets'!$S$2:$S$1000))","v":0},{"$f":"S701+SUMPRODUCT(('Fixed assets'!$Q$2:$Q$1000=Costs!S$705)*('Fixed assets'!$U$2:$U$1000>Costs!$A789)*('Fixed assets'!$P$2:$P$1000=Costs!$A789)*('Fixed assets'!$R$2:$R$1000))-SUMPRODUCT(('Fixed assets'!$Q$2:$Q$1000=Costs!S$705)*('Fixed assets'!$U$2:$U$1000>Costs!$A789)*('Fixed assets'!$P$2:$P$1000=Costs!$A789)*('Fixed assets'!$S$2:$S$1000))","v":0},{"$f":"T701+SUMPRODUCT(('Fixed assets'!$Q$2:$Q$1000=Costs!T$705)*('Fixed assets'!$U$2:$U$1000>Costs!$A789)*('Fixed assets'!$P$2:$P$1000=Costs!$A789)*('Fixed assets'!$R$2:$R$1000))-SUMPRODUCT(('Fixed assets'!$Q$2:$Q$1000=Costs!T$705)*('Fixed assets'!$U$2:$U$1000>Costs!$A789)*('Fixed assets'!$P$2:$P$1000=Costs!$A789)*('Fixed assets'!$S$2:$S$1000))","v":0},{"$f":"U701+SUMPRODUCT(('Fixed assets'!$Q$2:$Q$1000=Costs!U$705)*('Fixed assets'!$U$2:$U$1000>Costs!$A789)*('Fixed assets'!$P$2:$P$1000=Costs!$A789)*('Fixed assets'!$R$2:$R$1000))-SUMPRODUCT(('Fixed assets'!$Q$2:$Q$1000=Costs!U$705)*('Fixed assets'!$U$2:$U$1000>Costs!$A789)*('Fixed assets'!$P$2:$P$1000=Costs!$A789)*('Fixed assets'!$S$2:$S$1000))","v":0},{"$f":"V701+SUMPRODUCT(('Fixed assets'!$Q$2:$Q$1000=Costs!V$705)*('Fixed assets'!$U$2:$U$1000>Costs!$A789)*('Fixed assets'!$P$2:$P$1000=Costs!$A789)*('Fixed assets'!$R$2:$R$1000))-SUMPRODUCT(('Fixed assets'!$Q$2:$Q$1000=Costs!V$705)*('Fixed assets'!$U$2:$U$1000>Costs!$A789)*('Fixed assets'!$P$2:$P$1000=Costs!$A789)*('Fixed assets'!$S$2:$S$1000))","v":0},{"$f":"W701+SUMPRODUCT(('Fixed assets'!$Q$2:$Q$1000=Costs!W$705)*('Fixed assets'!$U$2:$U$1000>Costs!$A789)*('Fixed assets'!$P$2:$P$1000=Costs!$A789)*('Fixed assets'!$R$2:$R$1000))-SUMPRODUCT(('Fixed assets'!$Q$2:$Q$1000=Costs!W$705)*('Fixed assets'!$U$2:$U$1000>Costs!$A789)*('Fixed assets'!$P$2:$P$1000=Costs!$A789)*('Fixed assets'!$S$2:$S$1000))","v":0},{"$f":"X701+SUMPRODUCT(('Fixed assets'!$Q$2:$Q$1000=Costs!X$705)*('Fixed assets'!$U$2:$U$1000>Costs!$A789)*('Fixed assets'!$P$2:$P$1000=Costs!$A789)*('Fixed assets'!$R$2:$R$1000))-SUMPRODUCT(('Fixed assets'!$Q$2:$Q$1000=Costs!X$705)*('Fixed assets'!$U$2:$U$1000>Costs!$A789)*('Fixed assets'!$P$2:$P$1000=Costs!$A789)*('Fixed assets'!$S$2:$S$1000))","v":0},{"$f":"Y701+SUMPRODUCT(('Fixed assets'!$Q$2:$Q$1000=Costs!Y$705)*('Fixed assets'!$U$2:$U$1000>Costs!$A789)*('Fixed assets'!$P$2:$P$1000=Costs!$A789)*('Fixed assets'!$R$2:$R$1000))-SUMPRODUCT(('Fixed assets'!$Q$2:$Q$1000=Costs!Y$705)*('Fixed assets'!$U$2:$U$1000>Costs!$A789)*('Fixed assets'!$P$2:$P$1000=Costs!$A789)*('Fixed assets'!$S$2:$S$1000))","v":0},{"$f":"Z701+SUMPRODUCT(('Fixed assets'!$Q$2:$Q$1000=Costs!Z$705)*('Fixed assets'!$U$2:$U$1000>Costs!$A789)*('Fixed assets'!$P$2:$P$1000=Costs!$A789)*('Fixed assets'!$R$2:$R$1000))-SUMPRODUCT(('Fixed assets'!$Q$2:$Q$1000=Costs!Z$705)*('Fixed assets'!$U$2:$U$1000>Costs!$A789)*('Fixed assets'!$P$2:$P$1000=Costs!$A789)*('Fixed assets'!$S$2:$S$1000))","v":0},{"$f":"AA701+SUMPRODUCT(('Fixed assets'!$Q$2:$Q$1000=Costs!AA$705)*('Fixed assets'!$U$2:$U$1000>Costs!$A789)*('Fixed assets'!$P$2:$P$1000=Costs!$A789)*('Fixed assets'!$R$2:$R$1000))-SUMPRODUCT(('Fixed assets'!$Q$2:$Q$1000=Costs!AA$705)*('Fixed assets'!$U$2:$U$1000>Costs!$A789)*('Fixed assets'!$P$2:$P$1000=Costs!$A789)*('Fixed assets'!$S$2:$S$1000))","v":0},{"$f":"AB701+SUMPRODUCT(('Fixed assets'!$Q$2:$Q$1000=Costs!AB$705)*('Fixed assets'!$U$2:$U$1000>Costs!$A789)*('Fixed assets'!$P$2:$P$1000=Costs!$A789)*('Fixed assets'!$R$2:$R$1000))-SUMPRODUCT(('Fixed assets'!$Q$2:$Q$1000=Costs!AB$705)*('Fixed assets'!$U$2:$U$1000>Costs!$A789)*('Fixed assets'!$P$2:$P$1000=Costs!$A789)*('Fixed assets'!$S$2:$S$1000))","v":0},{"$f":"AC701+SUMPRODUCT(('Fixed assets'!$Q$2:$Q$1000=Costs!AC$705)*('Fixed assets'!$U$2:$U$1000>Costs!$A789)*('Fixed assets'!$P$2:$P$1000=Costs!$A789)*('Fixed assets'!$R$2:$R$1000))-SUMPRODUCT(('Fixed assets'!$Q$2:$Q$1000=Costs!AC$705)*('Fixed assets'!$U$2:$U$1000>Costs!$A789)*('Fixed assets'!$P$2:$P$1000=Costs!$A789)*('Fixed assets'!$S$2:$S$1000))","v":0},{"$f":"AD701+SUMPRODUCT(('Fixed assets'!$Q$2:$Q$1000=Costs!AD$705)*('Fixed assets'!$U$2:$U$1000>Costs!$A789)*('Fixed assets'!$P$2:$P$1000=Costs!$A789)*('Fixed assets'!$R$2:$R$1000))-SUMPRODUCT(('Fixed assets'!$Q$2:$Q$1000=Costs!AD$705)*('Fixed assets'!$U$2:$U$1000>Costs!$A789)*('Fixed assets'!$P$2:$P$1000=Costs!$A789)*('Fixed assets'!$S$2:$S$1000))","v":0},{"$f":"AE701+SUMPRODUCT(('Fixed assets'!$Q$2:$Q$1000=Costs!AE$705)*('Fixed assets'!$U$2:$U$1000>Costs!$A789)*('Fixed assets'!$P$2:$P$1000=Costs!$A789)*('Fixed assets'!$R$2:$R$1000))-SUMPRODUCT(('Fixed assets'!$Q$2:$Q$1000=Costs!AE$705)*('Fixed assets'!$U$2:$U$1000>Costs!$A789)*('Fixed assets'!$P$2:$P$1000=Costs!$A789)*('Fixed assets'!$S$2:$S$1000))","v":0},{"$f":"AF701+SUMPRODUCT(('Fixed assets'!$Q$2:$Q$1000=Costs!AF$705)*('Fixed assets'!$U$2:$U$1000>Costs!$A789)*('Fixed assets'!$P$2:$P$1000=Costs!$A789)*('Fixed assets'!$R$2:$R$1000))-SUMPRODUCT(('Fixed assets'!$Q$2:$Q$1000=Costs!AF$705)*('Fixed assets'!$U$2:$U$1000>Costs!$A789)*('Fixed assets'!$P$2:$P$1000=Costs!$A789)*('Fixed assets'!$S$2:$S$1000))","v":0},{"$f":"AG701+SUMPRODUCT(('Fixed assets'!$Q$2:$Q$1000=Costs!AG$705)*('Fixed assets'!$U$2:$U$1000>Costs!$A789)*('Fixed assets'!$P$2:$P$1000=Costs!$A789)*('Fixed assets'!$R$2:$R$1000))-SUMPRODUCT(('Fixed assets'!$Q$2:$Q$1000=Costs!AG$705)*('Fixed assets'!$U$2:$U$1000>Costs!$A789)*('Fixed assets'!$P$2:$P$1000=Costs!$A789)*('Fixed assets'!$S$2:$S$1000))","v":0},{"$f":"AH701+SUMPRODUCT(('Fixed assets'!$Q$2:$Q$1000=Costs!AH$705)*('Fixed assets'!$U$2:$U$1000>Costs!$A789)*('Fixed assets'!$P$2:$P$1000=Costs!$A789)*('Fixed assets'!$R$2:$R$1000))-SUMPRODUCT(('Fixed assets'!$Q$2:$Q$1000=Costs!AH$705)*('Fixed assets'!$U$2:$U$1000>Costs!$A789)*('Fixed assets'!$P$2:$P$1000=Costs!$A789)*('Fixed assets'!$S$2:$S$1000))","v":0},{"$f":"AI701+SUMPRODUCT(('Fixed assets'!$Q$2:$Q$1000=Costs!AI$705)*('Fixed assets'!$U$2:$U$1000>Costs!$A789)*('Fixed assets'!$P$2:$P$1000=Costs!$A789)*('Fixed assets'!$R$2:$R$1000))-SUMPRODUCT(('Fixed assets'!$Q$2:$Q$1000=Costs!AI$705)*('Fixed assets'!$U$2:$U$1000>Costs!$A789)*('Fixed assets'!$P$2:$P$1000=Costs!$A789)*('Fixed assets'!$S$2:$S$1000))","v":0},{"$f":"AJ701+SUMPRODUCT(('Fixed assets'!$Q$2:$Q$1000=Costs!AJ$705)*('Fixed assets'!$U$2:$U$1000>Costs!$A789)*('Fixed assets'!$P$2:$P$1000=Costs!$A789)*('Fixed assets'!$R$2:$R$1000))-SUMPRODUCT(('Fixed assets'!$Q$2:$Q$1000=Costs!AJ$705)*('Fixed assets'!$U$2:$U$1000>Costs!$A789)*('Fixed assets'!$P$2:$P$1000=Costs!$A789)*('Fixed assets'!$S$2:$S$1000))","v":0},{"$f":"AK701+SUMPRODUCT(('Fixed assets'!$Q$2:$Q$1000=Costs!AK$705)*('Fixed assets'!$U$2:$U$1000>Costs!$A789)*('Fixed assets'!$P$2:$P$1000=Costs!$A789)*('Fixed assets'!$R$2:$R$1000))-SUMPRODUCT(('Fixed assets'!$Q$2:$Q$1000=Costs!AK$705)*('Fixed assets'!$U$2:$U$1000>Costs!$A789)*('Fixed assets'!$P$2:$P$1000=Costs!$A789)*('Fixed assets'!$S$2:$S$1000))","v":0},{"$f":"AL701+SUMPRODUCT(('Fixed assets'!$Q$2:$Q$1000=Costs!AL$705)*('Fixed assets'!$U$2:$U$1000>Costs!$A789)*('Fixed assets'!$P$2:$P$1000=Costs!$A789)*('Fixed assets'!$R$2:$R$1000))-SUMPRODUCT(('Fixed assets'!$Q$2:$Q$1000=Costs!AL$705)*('Fixed assets'!$U$2:$U$1000>Costs!$A789)*('Fixed assets'!$P$2:$P$1000=Costs!$A789)*('Fixed assets'!$S$2:$S$1000))","v":0},{"$f":"AM701+SUMPRODUCT(('Fixed assets'!$Q$2:$Q$1000=Costs!AM$705)*('Fixed assets'!$U$2:$U$1000>Costs!$A789)*('Fixed assets'!$P$2:$P$1000=Costs!$A789)*('Fixed assets'!$R$2:$R$1000))-SUMPRODUCT(('Fixed assets'!$Q$2:$Q$1000=Costs!AM$705)*('Fixed assets'!$U$2:$U$1000>Costs!$A789)*('Fixed assets'!$P$2:$P$1000=Costs!$A789)*('Fixed assets'!$S$2:$S$1000))","v":0},{"$f":"AN701+SUMPRODUCT(('Fixed assets'!$Q$2:$Q$1000=Costs!AN$705)*('Fixed assets'!$U$2:$U$1000>Costs!$A789)*('Fixed assets'!$P$2:$P$1000=Costs!$A789)*('Fixed assets'!$R$2:$R$1000))-SUMPRODUCT(('Fixed assets'!$Q$2:$Q$1000=Costs!AN$705)*('Fixed assets'!$U$2:$U$1000>Costs!$A789)*('Fixed assets'!$P$2:$P$1000=Costs!$A789)*('Fixed assets'!$S$2:$S$1000))","v":0},{"$f":"AO701+SUMPRODUCT(('Fixed assets'!$Q$2:$Q$1000=Costs!AO$705)*('Fixed assets'!$U$2:$U$1000>Costs!$A789)*('Fixed assets'!$P$2:$P$1000=Costs!$A789)*('Fixed assets'!$R$2:$R$1000))-SUMPRODUCT(('Fixed assets'!$Q$2:$Q$1000=Costs!AO$705)*('Fixed assets'!$U$2:$U$1000>Costs!$A789)*('Fixed assets'!$P$2:$P$1000=Costs!$A789)*('Fixed assets'!$S$2:$S$1000))","v":0},{"$f":"AP701+SUMPRODUCT(('Fixed assets'!$Q$2:$Q$1000=Costs!AP$705)*('Fixed assets'!$U$2:$U$1000>Costs!$A789)*('Fixed assets'!$P$2:$P$1000=Costs!$A789)*('Fixed assets'!$R$2:$R$1000))-SUMPRODUCT(('Fixed assets'!$Q$2:$Q$1000=Costs!AP$705)*('Fixed assets'!$U$2:$U$1000>Costs!$A789)*('Fixed assets'!$P$2:$P$1000=Costs!$A789)*('Fixed assets'!$S$2:$S$1000))","v":0},{"$f":"AQ701+SUMPRODUCT(('Fixed assets'!$Q$2:$Q$1000=Costs!AQ$705)*('Fixed assets'!$U$2:$U$1000>Costs!$A789)*('Fixed assets'!$P$2:$P$1000=Costs!$A789)*('Fixed assets'!$R$2:$R$1000))-SUMPRODUCT(('Fixed assets'!$Q$2:$Q$1000=Costs!AQ$705)*('Fixed assets'!$U$2:$U$1000>Costs!$A789)*('Fixed assets'!$P$2:$P$1000=Costs!$A789)*('Fixed assets'!$S$2:$S$1000))","v":0}]
[2099,0,{"$f":"C702+SUMPRODUCT(('Fixed assets'!$Q$2:$Q$1000=Costs!C$705)*('Fixed assets'!$U$2:$U$1000>Costs!$A790)*('Fixed assets'!$P$2:$P$1000=Costs!$A790)*('Fixed assets'!$R$2:$R$1000))-SUMPRODUCT(('Fixed assets'!$Q$2:$Q$1000=Costs!C$705)*('Fixed assets'!$U$2:$U$1000>Costs!$A790)*('Fixed assets'!$P$2:$P$1000=Costs!$A790)*('Fixed assets'!$S$2:$S$1000))","v":0},{"$f":"D702+SUMPRODUCT(('Fixed assets'!$Q$2:$Q$1000=Costs!D$705)*('Fixed assets'!$U$2:$U$1000>Costs!$A790)*('Fixed assets'!$P$2:$P$1000=Costs!$A790)*('Fixed assets'!$R$2:$R$1000))-SUMPRODUCT(('Fixed assets'!$Q$2:$Q$1000=Costs!D$705)*('Fixed assets'!$U$2:$U$1000>Costs!$A790)*('Fixed assets'!$P$2:$P$1000=Costs!$A790)*('Fixed assets'!$S$2:$S$1000))","v":0},{"$f":"E702+SUMPRODUCT(('Fixed assets'!$Q$2:$Q$1000=Costs!E$705)*('Fixed assets'!$U$2:$U$1000>Costs!$A790)*('Fixed assets'!$P$2:$P$1000=Costs!$A790)*('Fixed assets'!$R$2:$R$1000))-SUMPRODUCT(('Fixed assets'!$Q$2:$Q$1000=Costs!E$705)*('Fixed assets'!$U$2:$U$1000>Costs!$A790)*('Fixed assets'!$P$2:$P$1000=Costs!$A790)*('Fixed assets'!$S$2:$S$1000))","v":0},{"$f":"F702+SUMPRODUCT(('Fixed assets'!$Q$2:$Q$1000=Costs!F$705)*('Fixed assets'!$U$2:$U$1000>Costs!$A790)*('Fixed assets'!$P$2:$P$1000=Costs!$A790)*('Fixed assets'!$R$2:$R$1000))-SUMPRODUCT(('Fixed assets'!$Q$2:$Q$1000=Costs!F$705)*('Fixed assets'!$U$2:$U$1000>Costs!$A790)*('Fixed assets'!$P$2:$P$1000=Costs!$A790)*('Fixed assets'!$S$2:$S$1000))","v":0},{"$f":"G702+SUMPRODUCT(('Fixed assets'!$Q$2:$Q$1000=Costs!G$705)*('Fixed assets'!$U$2:$U$1000>Costs!$A790)*('Fixed assets'!$P$2:$P$1000=Costs!$A790)*('Fixed assets'!$R$2:$R$1000))-SUMPRODUCT(('Fixed assets'!$Q$2:$Q$1000=Costs!G$705)*('Fixed assets'!$U$2:$U$1000>Costs!$A790)*('Fixed assets'!$P$2:$P$1000=Costs!$A790)*('Fixed assets'!$S$2:$S$1000))","v":0},{"$f":"H702+SUMPRODUCT(('Fixed assets'!$Q$2:$Q$1000=Costs!H$705)*('Fixed assets'!$U$2:$U$1000>Costs!$A790)*('Fixed assets'!$P$2:$P$1000=Costs!$A790)*('Fixed assets'!$R$2:$R$1000))-SUMPRODUCT(('Fixed assets'!$Q$2:$Q$1000=Costs!H$705)*('Fixed assets'!$U$2:$U$1000>Costs!$A790)*('Fixed assets'!$P$2:$P$1000=Costs!$A790)*('Fixed assets'!$S$2:$S$1000))","v":0},{"$f":"I702+SUMPRODUCT(('Fixed assets'!$Q$2:$Q$1000=Costs!I$705)*('Fixed assets'!$U$2:$U$1000>Costs!$A790)*('Fixed assets'!$P$2:$P$1000=Costs!$A790)*('Fixed assets'!$R$2:$R$1000))-SUMPRODUCT(('Fixed assets'!$Q$2:$Q$1000=Costs!I$705)*('Fixed assets'!$U$2:$U$1000>Costs!$A790)*('Fixed assets'!$P$2:$P$1000=Costs!$A790)*('Fixed assets'!$S$2:$S$1000))","v":0},{"$f":"J702+SUMPRODUCT(('Fixed assets'!$Q$2:$Q$1000=Costs!J$705)*('Fixed assets'!$U$2:$U$1000>Costs!$A790)*('Fixed assets'!$P$2:$P$1000=Costs!$A790)*('Fixed assets'!$R$2:$R$1000))-SUMPRODUCT(('Fixed assets'!$Q$2:$Q$1000=Costs!J$705)*('Fixed assets'!$U$2:$U$1000>Costs!$A790)*('Fixed assets'!$P$2:$P$1000=Costs!$A790)*('Fixed assets'!$S$2:$S$1000))","v":0},{"$f":"K702+SUMPRODUCT(('Fixed assets'!$Q$2:$Q$1000=Costs!K$705)*('Fixed assets'!$U$2:$U$1000>Costs!$A790)*('Fixed assets'!$P$2:$P$1000=Costs!$A790)*('Fixed assets'!$R$2:$R$1000))-SUMPRODUCT(('Fixed assets'!$Q$2:$Q$1000=Costs!K$705)*('Fixed assets'!$U$2:$U$1000>Costs!$A790)*('Fixed assets'!$P$2:$P$1000=Costs!$A790)*('Fixed assets'!$S$2:$S$1000))","v":0},{"$f":"L702+SUMPRODUCT(('Fixed assets'!$Q$2:$Q$1000=Costs!L$705)*('Fixed assets'!$U$2:$U$1000>Costs!$A790)*('Fixed assets'!$P$2:$P$1000=Costs!$A790)*('Fixed assets'!$R$2:$R$1000))-SUMPRODUCT(('Fixed assets'!$Q$2:$Q$1000=Costs!L$705)*('Fixed assets'!$U$2:$U$1000>Costs!$A790)*('Fixed assets'!$P$2:$P$1000=Costs!$A790)*('Fixed assets'!$S$2:$S$1000))","v":0},{"$f":"M702+SUMPRODUCT(('Fixed assets'!$Q$2:$Q$1000=Costs!M$705)*('Fixed assets'!$U$2:$U$1000>Costs!$A790)*('Fixed assets'!$P$2:$P$1000=Costs!$A790)*('Fixed assets'!$R$2:$R$1000))-SUMPRODUCT(('Fixed assets'!$Q$2:$Q$1000=Costs!M$705)*('Fixed assets'!$U$2:$U$1000>Costs!$A790)*('Fixed assets'!$P$2:$P$1000=Costs!$A790)*('Fixed assets'!$S$2:$S$1000))","v":0},{"$f":"N702+SUMPRODUCT(('Fixed assets'!$Q$2:$Q$1000=Costs!N$705)*('Fixed assets'!$U$2:$U$1000>Costs!$A790)*('Fixed assets'!$P$2:$P$1000=Costs!$A790)*('Fixed assets'!$R$2:$R$1000))-SUMPRODUCT(('Fixed assets'!$Q$2:$Q$1000=Costs!N$705)*('Fixed assets'!$U$2:$U$1000>Costs!$A790)*('Fixed assets'!$P$2:$P$1000=Costs!$A790)*('Fixed assets'!$S$2:$S$1000))","v":0},{"$f":"O702+SUMPRODUCT(('Fixed assets'!$Q$2:$Q$1000=Costs!O$705)*('Fixed assets'!$U$2:$U$1000>Costs!$A790)*('Fixed assets'!$P$2:$P$1000=Costs!$A790)*('Fixed assets'!$R$2:$R$1000))-SUMPRODUCT(('Fixed assets'!$Q$2:$Q$1000=Costs!O$705)*('Fixed assets'!$U$2:$U$1000>Costs!$A790)*('Fixed assets'!$P$2:$P$1000=Costs!$A790)*('Fixed assets'!$S$2:$S$1000))","v":0},{"$f":"P702+SUMPRODUCT(('Fixed assets'!$Q$2:$Q$1000=Costs!P$705)*('Fixed assets'!$U$2:$U$1000>Costs!$A790)*('Fixed assets'!$P$2:$P$1000=Costs!$A790)*('Fixed assets'!$R$2:$R$1000))-SUMPRODUCT(('Fixed assets'!$Q$2:$Q$1000=Costs!P$705)*('Fixed assets'!$U$2:$U$1000>Costs!$A790)*('Fixed assets'!$P$2:$P$1000=Costs!$A790)*('Fixed assets'!$S$2:$S$1000))","v":0},{"$f":"Q702+SUMPRODUCT(('Fixed assets'!$Q$2:$Q$1000=Costs!Q$705)*('Fixed assets'!$U$2:$U$1000>Costs!$A790)*('Fixed assets'!$P$2:$P$1000=Costs!$A790)*('Fixed assets'!$R$2:$R$1000))-SUMPRODUCT(('Fixed assets'!$Q$2:$Q$1000=Costs!Q$705)*('Fixed assets'!$U$2:$U$1000>Costs!$A790)*('Fixed assets'!$P$2:$P$1000=Costs!$A790)*('Fixed assets'!$S$2:$S$1000))","v":0},{"$f":"R702+SUMPRODUCT(('Fixed assets'!$Q$2:$Q$1000=Costs!R$705)*('Fixed assets'!$U$2:$U$1000>Costs!$A790)*('Fixed assets'!$P$2:$P$1000=Costs!$A790)*('Fixed assets'!$R$2:$R$1000))-SUMPRODUCT(('Fixed assets'!$Q$2:$Q$1000=Costs!R$705)*('Fixed assets'!$U$2:$U$1000>Costs!$A790)*('Fixed assets'!$P$2:$P$1000=Costs!$A790)*('Fixed assets'!$S$2:$S$1000))","v":0},{"$f":"S702+SUMPRODUCT(('Fixed assets'!$Q$2:$Q$1000=Costs!S$705)*('Fixed assets'!$U$2:$U$1000>Costs!$A790)*('Fixed assets'!$P$2:$P$1000=Costs!$A790)*('Fixed assets'!$R$2:$R$1000))-SUMPRODUCT(('Fixed assets'!$Q$2:$Q$1000=Costs!S$705)*('Fixed assets'!$U$2:$U$1000>Costs!$A790)*('Fixed assets'!$P$2:$P$1000=Costs!$A790)*('Fixed assets'!$S$2:$S$1000))","v":0},{"$f":"T702+SUMPRODUCT(('Fixed assets'!$Q$2:$Q$1000=Costs!T$705)*('Fixed assets'!$U$2:$U$1000>Costs!$A790)*('Fixed assets'!$P$2:$P$1000=Costs!$A790)*('Fixed assets'!$R$2:$R$1000))-SUMPRODUCT(('Fixed assets'!$Q$2:$Q$1000=Costs!T$705)*('Fixed assets'!$U$2:$U$1000>Costs!$A790)*('Fixed assets'!$P$2:$P$1000=Costs!$A790)*('Fixed assets'!$S$2:$S$1000))","v":0},{"$f":"U702+SUMPRODUCT(('Fixed assets'!$Q$2:$Q$1000=Costs!U$705)*('Fixed assets'!$U$2:$U$1000>Costs!$A790)*('Fixed assets'!$P$2:$P$1000=Costs!$A790)*('Fixed assets'!$R$2:$R$1000))-SUMPRODUCT(('Fixed assets'!$Q$2:$Q$1000=Costs!U$705)*('Fixed assets'!$U$2:$U$1000>Costs!$A790)*('Fixed assets'!$P$2:$P$1000=Costs!$A790)*('Fixed assets'!$S$2:$S$1000))","v":0},{"$f":"V702+SUMPRODUCT(('Fixed assets'!$Q$2:$Q$1000=Costs!V$705)*('Fixed assets'!$U$2:$U$1000>Costs!$A790)*('Fixed assets'!$P$2:$P$1000=Costs!$A790)*('Fixed assets'!$R$2:$R$1000))-SUMPRODUCT(('Fixed assets'!$Q$2:$Q$1000=Costs!V$705)*('Fixed assets'!$U$2:$U$1000>Costs!$A790)*('Fixed assets'!$P$2:$P$1000=Costs!$A790)*('Fixed assets'!$S$2:$S$1000))","v":0},{"$f":"W702+SUMPRODUCT(('Fixed assets'!$Q$2:$Q$1000=Costs!W$705)*('Fixed assets'!$U$2:$U$1000>Costs!$A790)*('Fixed assets'!$P$2:$P$1000=Costs!$A790)*('Fixed assets'!$R$2:$R$1000))-SUMPRODUCT(('Fixed assets'!$Q$2:$Q$1000=Costs!W$705)*('Fixed assets'!$U$2:$U$1000>Costs!$A790)*('Fixed assets'!$P$2:$P$1000=Costs!$A790)*('Fixed assets'!$S$2:$S$1000))","v":0},{"$f":"X702+SUMPRODUCT(('Fixed assets'!$Q$2:$Q$1000=Costs!X$705)*('Fixed assets'!$U$2:$U$1000>Costs!$A790)*('Fixed assets'!$P$2:$P$1000=Costs!$A790)*('Fixed assets'!$R$2:$R$1000))-SUMPRODUCT(('Fixed assets'!$Q$2:$Q$1000=Costs!X$705)*('Fixed assets'!$U$2:$U$1000>Costs!$A790)*('Fixed assets'!$P$2:$P$1000=Costs!$A790)*('Fixed assets'!$S$2:$S$1000))","v":0},{"$f":"Y702+SUMPRODUCT(('Fixed assets'!$Q$2:$Q$1000=Costs!Y$705)*('Fixed assets'!$U$2:$U$1000>Costs!$A790)*('Fixed assets'!$P$2:$P$1000=Costs!$A790)*('Fixed assets'!$R$2:$R$1000))-SUMPRODUCT(('Fixed assets'!$Q$2:$Q$1000=Costs!Y$705)*('Fixed assets'!$U$2:$U$1000>Costs!$A790)*('Fixed assets'!$P$2:$P$1000=Costs!$A790)*('Fixed assets'!$S$2:$S$1000))","v":0},{"$f":"Z702+SUMPRODUCT(('Fixed assets'!$Q$2:$Q$1000=Costs!Z$705)*('Fixed assets'!$U$2:$U$1000>Costs!$A790)*('Fixed assets'!$P$2:$P$1000=Costs!$A790)*('Fixed assets'!$R$2:$R$1000))-SUMPRODUCT(('Fixed assets'!$Q$2:$Q$1000=Costs!Z$705)*('Fixed assets'!$U$2:$U$1000>Costs!$A790)*('Fixed assets'!$P$2:$P$1000=Costs!$A790)*('Fixed assets'!$S$2:$S$1000))","v":0},{"$f":"AA702+SUMPRODUCT(('Fixed assets'!$Q$2:$Q$1000=Costs!AA$705)*('Fixed assets'!$U$2:$U$1000>Costs!$A790)*('Fixed assets'!$P$2:$P$1000=Costs!$A790)*('Fixed assets'!$R$2:$R$1000))-SUMPRODUCT(('Fixed assets'!$Q$2:$Q$1000=Costs!AA$705)*('Fixed assets'!$U$2:$U$1000>Costs!$A790)*('Fixed assets'!$P$2:$P$1000=Costs!$A790)*('Fixed assets'!$S$2:$S$1000))","v":0},{"$f":"AB702+SUMPRODUCT(('Fixed assets'!$Q$2:$Q$1000=Costs!AB$705)*('Fixed assets'!$U$2:$U$1000>Costs!$A790)*('Fixed assets'!$P$2:$P$1000=Costs!$A790)*('Fixed assets'!$R$2:$R$1000))-SUMPRODUCT(('Fixed assets'!$Q$2:$Q$1000=Costs!AB$705)*('Fixed assets'!$U$2:$U$1000>Costs!$A790)*('Fixed assets'!$P$2:$P$1000=Costs!$A790)*('Fixed assets'!$S$2:$S$1000))","v":0},{"$f":"AC702+SUMPRODUCT(('Fixed assets'!$Q$2:$Q$1000=Costs!AC$705)*('Fixed assets'!$U$2:$U$1000>Costs!$A790)*('Fixed assets'!$P$2:$P$1000=Costs!$A790)*('Fixed assets'!$R$2:$R$1000))-SUMPRODUCT(('Fixed assets'!$Q$2:$Q$1000=Costs!AC$705)*('Fixed assets'!$U$2:$U$1000>Costs!$A790)*('Fixed assets'!$P$2:$P$1000=Costs!$A790)*('Fixed assets'!$S$2:$S$1000))","v":0},{"$f":"AD702+SUMPRODUCT(('Fixed assets'!$Q$2:$Q$1000=Costs!AD$705)*('Fixed assets'!$U$2:$U$1000>Costs!$A790)*('Fixed assets'!$P$2:$P$1000=Costs!$A790)*('Fixed assets'!$R$2:$R$1000))-SUMPRODUCT(('Fixed assets'!$Q$2:$Q$1000=Costs!AD$705)*('Fixed assets'!$U$2:$U$1000>Costs!$A790)*('Fixed assets'!$P$2:$P$1000=Costs!$A790)*('Fixed assets'!$S$2:$S$1000))","v":0},{"$f":"AE702+SUMPRODUCT(('Fixed assets'!$Q$2:$Q$1000=Costs!AE$705)*('Fixed assets'!$U$2:$U$1000>Costs!$A790)*('Fixed assets'!$P$2:$P$1000=Costs!$A790)*('Fixed assets'!$R$2:$R$1000))-SUMPRODUCT(('Fixed assets'!$Q$2:$Q$1000=Costs!AE$705)*('Fixed assets'!$U$2:$U$1000>Costs!$A790)*('Fixed assets'!$P$2:$P$1000=Costs!$A790)*('Fixed assets'!$S$2:$S$1000))","v":0},{"$f":"AF702+SUMPRODUCT(('Fixed assets'!$Q$2:$Q$1000=Costs!AF$705)*('Fixed assets'!$U$2:$U$1000>Costs!$A790)*('Fixed assets'!$P$2:$P$1000=Costs!$A790)*('Fixed assets'!$R$2:$R$1000))-SUMPRODUCT(('Fixed assets'!$Q$2:$Q$1000=Costs!AF$705)*('Fixed assets'!$U$2:$U$1000>Costs!$A790)*('Fixed assets'!$P$2:$P$1000=Costs!$A790)*('Fixed assets'!$S$2:$S$1000))","v":0},{"$f":"AG702+SUMPRODUCT(('Fixed assets'!$Q$2:$Q$1000=Costs!AG$705)*('Fixed assets'!$U$2:$U$1000>Costs!$A790)*('Fixed assets'!$P$2:$P$1000=Costs!$A790)*('Fixed assets'!$R$2:$R$1000))-SUMPRODUCT(('Fixed assets'!$Q$2:$Q$1000=Costs!AG$705)*('Fixed assets'!$U$2:$U$1000>Costs!$A790)*('Fixed assets'!$P$2:$P$1000=Costs!$A790)*('Fixed assets'!$S$2:$S$1000))","v":0},{"$f":"AH702+SUMPRODUCT(('Fixed assets'!$Q$2:$Q$1000=Costs!AH$705)*('Fixed assets'!$U$2:$U$1000>Costs!$A790)*('Fixed assets'!$P$2:$P$1000=Costs!$A790)*('Fixed assets'!$R$2:$R$1000))-SUMPRODUCT(('Fixed assets'!$Q$2:$Q$1000=Costs!AH$705)*('Fixed assets'!$U$2:$U$1000>Costs!$A790)*('Fixed assets'!$P$2:$P$1000=Costs!$A790)*('Fixed assets'!$S$2:$S$1000))","v":0},{"$f":"AI702+SUMPRODUCT(('Fixed assets'!$Q$2:$Q$1000=Costs!AI$705)*('Fixed assets'!$U$2:$U$1000>Costs!$A790)*('Fixed assets'!$P$2:$P$1000=Costs!$A790)*('Fixed assets'!$R$2:$R$1000))-SUMPRODUCT(('Fixed assets'!$Q$2:$Q$1000=Costs!AI$705)*('Fixed assets'!$U$2:$U$1000>Costs!$A790)*('Fixed assets'!$P$2:$P$1000=Costs!$A790)*('Fixed assets'!$S$2:$S$1000))","v":0},{"$f":"AJ702+SUMPRODUCT(('Fixed assets'!$Q$2:$Q$1000=Costs!AJ$705)*('Fixed assets'!$U$2:$U$1000>Costs!$A790)*('Fixed assets'!$P$2:$P$1000=Costs!$A790)*('Fixed assets'!$R$2:$R$1000))-SUMPRODUCT(('Fixed assets'!$Q$2:$Q$1000=Costs!AJ$705)*('Fixed assets'!$U$2:$U$1000>Costs!$A790)*('Fixed assets'!$P$2:$P$1000=Costs!$A790)*('Fixed assets'!$S$2:$S$1000))","v":0},{"$f":"AK702+SUMPRODUCT(('Fixed assets'!$Q$2:$Q$1000=Costs!AK$705)*('Fixed assets'!$U$2:$U$1000>Costs!$A790)*('Fixed assets'!$P$2:$P$1000=Costs!$A790)*('Fixed assets'!$R$2:$R$1000))-SUMPRODUCT(('Fixed assets'!$Q$2:$Q$1000=Costs!AK$705)*('Fixed assets'!$U$2:$U$1000>Costs!$A790)*('Fixed assets'!$P$2:$P$1000=Costs!$A790)*('Fixed assets'!$S$2:$S$1000))","v":0},{"$f":"AL702+SUMPRODUCT(('Fixed assets'!$Q$2:$Q$1000=Costs!AL$705)*('Fixed assets'!$U$2:$U$1000>Costs!$A790)*('Fixed assets'!$P$2:$P$1000=Costs!$A790)*('Fixed assets'!$R$2:$R$1000))-SUMPRODUCT(('Fixed assets'!$Q$2:$Q$1000=Costs!AL$705)*('Fixed assets'!$U$2:$U$1000>Costs!$A790)*('Fixed assets'!$P$2:$P$1000=Costs!$A790)*('Fixed assets'!$S$2:$S$1000))","v":0},{"$f":"AM702+SUMPRODUCT(('Fixed assets'!$Q$2:$Q$1000=Costs!AM$705)*('Fixed assets'!$U$2:$U$1000>Costs!$A790)*('Fixed assets'!$P$2:$P$1000=Costs!$A790)*('Fixed assets'!$R$2:$R$1000))-SUMPRODUCT(('Fixed assets'!$Q$2:$Q$1000=Costs!AM$705)*('Fixed assets'!$U$2:$U$1000>Costs!$A790)*('Fixed assets'!$P$2:$P$1000=Costs!$A790)*('Fixed assets'!$S$2:$S$1000))","v":0},{"$f":"AN702+SUMPRODUCT(('Fixed assets'!$Q$2:$Q$1000=Costs!AN$705)*('Fixed assets'!$U$2:$U$1000>Costs!$A790)*('Fixed assets'!$P$2:$P$1000=Costs!$A790)*('Fixed assets'!$R$2:$R$1000))-SUMPRODUCT(('Fixed assets'!$Q$2:$Q$1000=Costs!AN$705)*('Fixed assets'!$U$2:$U$1000>Costs!$A790)*('Fixed assets'!$P$2:$P$1000=Costs!$A790)*('Fixed assets'!$S$2:$S$1000))","v":0},{"$f":"AO702+SUMPRODUCT(('Fixed assets'!$Q$2:$Q$1000=Costs!AO$705)*('Fixed assets'!$U$2:$U$1000>Costs!$A790)*('Fixed assets'!$P$2:$P$1000=Costs!$A790)*('Fixed assets'!$R$2:$R$1000))-SUMPRODUCT(('Fixed assets'!$Q$2:$Q$1000=Costs!AO$705)*('Fixed assets'!$U$2:$U$1000>Costs!$A790)*('Fixed assets'!$P$2:$P$1000=Costs!$A790)*('Fixed assets'!$S$2:$S$1000))","v":0},{"$f":"AP702+SUMPRODUCT(('Fixed assets'!$Q$2:$Q$1000=Costs!AP$705)*('Fixed assets'!$U$2:$U$1000>Costs!$A790)*('Fixed assets'!$P$2:$P$1000=Costs!$A790)*('Fixed assets'!$R$2:$R$1000))-SUMPRODUCT(('Fixed assets'!$Q$2:$Q$1000=Costs!AP$705)*('Fixed assets'!$U$2:$U$1000>Costs!$A790)*('Fixed assets'!$P$2:$P$1000=Costs!$A790)*('Fixed assets'!$S$2:$S$1000))","v":0},{"$f":"AQ702+SUMPRODUCT(('Fixed assets'!$Q$2:$Q$1000=Costs!AQ$705)*('Fixed assets'!$U$2:$U$1000>Costs!$A790)*('Fixed assets'!$P$2:$P$1000=Costs!$A790)*('Fixed assets'!$R$2:$R$1000))-SUMPRODUCT(('Fixed assets'!$Q$2:$Q$1000=Costs!AQ$705)*('Fixed assets'!$U$2:$U$1000>Costs!$A790)*('Fixed assets'!$P$2:$P$1000=Costs!$A790)*('Fixed assets'!$S$2:$S$1000))","v":0}]
[2100,0,{"$f":"C703+SUMPRODUCT(('Fixed assets'!$Q$2:$Q$1000=Costs!C$705)*('Fixed assets'!$U$2:$U$1000>Costs!$A791)*('Fixed assets'!$P$2:$P$1000=Costs!$A791)*('Fixed assets'!$R$2:$R$1000))-SUMPRODUCT(('Fixed assets'!$Q$2:$Q$1000=Costs!C$705)*('Fixed assets'!$U$2:$U$1000>Costs!$A791)*('Fixed assets'!$P$2:$P$1000=Costs!$A791)*('Fixed assets'!$S$2:$S$1000))","v":0},{"$f":"D703+SUMPRODUCT(('Fixed assets'!$Q$2:$Q$1000=Costs!D$705)*('Fixed assets'!$U$2:$U$1000>Costs!$A791)*('Fixed assets'!$P$2:$P$1000=Costs!$A791)*('Fixed assets'!$R$2:$R$1000))-SUMPRODUCT(('Fixed assets'!$Q$2:$Q$1000=Costs!D$705)*('Fixed assets'!$U$2:$U$1000>Costs!$A791)*('Fixed assets'!$P$2:$P$1000=Costs!$A791)*('Fixed assets'!$S$2:$S$1000))","v":0},{"$f":"E703+SUMPRODUCT(('Fixed assets'!$Q$2:$Q$1000=Costs!E$705)*('Fixed assets'!$U$2:$U$1000>Costs!$A791)*('Fixed assets'!$P$2:$P$1000=Costs!$A791)*('Fixed assets'!$R$2:$R$1000))-SUMPRODUCT(('Fixed assets'!$Q$2:$Q$1000=Costs!E$705)*('Fixed assets'!$U$2:$U$1000>Costs!$A791)*('Fixed assets'!$P$2:$P$1000=Costs!$A791)*('Fixed assets'!$S$2:$S$1000))","v":0},{"$f":"F703+SUMPRODUCT(('Fixed assets'!$Q$2:$Q$1000=Costs!F$705)*('Fixed assets'!$U$2:$U$1000>Costs!$A791)*('Fixed assets'!$P$2:$P$1000=Costs!$A791)*('Fixed assets'!$R$2:$R$1000))-SUMPRODUCT(('Fixed assets'!$Q$2:$Q$1000=Costs!F$705)*('Fixed assets'!$U$2:$U$1000>Costs!$A791)*('Fixed assets'!$P$2:$P$1000=Costs!$A791)*('Fixed assets'!$S$2:$S$1000))","v":0},{"$f":"G703+SUMPRODUCT(('Fixed assets'!$Q$2:$Q$1000=Costs!G$705)*('Fixed assets'!$U$2:$U$1000>Costs!$A791)*('Fixed assets'!$P$2:$P$1000=Costs!$A791)*('Fixed assets'!$R$2:$R$1000))-SUMPRODUCT(('Fixed assets'!$Q$2:$Q$1000=Costs!G$705)*('Fixed assets'!$U$2:$U$1000>Costs!$A791)*('Fixed assets'!$P$2:$P$1000=Costs!$A791)*('Fixed assets'!$S$2:$S$1000))","v":0},{"$f":"H703+SUMPRODUCT(('Fixed assets'!$Q$2:$Q$1000=Costs!H$705)*('Fixed assets'!$U$2:$U$1000>Costs!$A791)*('Fixed assets'!$P$2:$P$1000=Costs!$A791)*('Fixed assets'!$R$2:$R$1000))-SUMPRODUCT(('Fixed assets'!$Q$2:$Q$1000=Costs!H$705)*('Fixed assets'!$U$2:$U$1000>Costs!$A791)*('Fixed assets'!$P$2:$P$1000=Costs!$A791)*('Fixed assets'!$S$2:$S$1000))","v":0},{"$f":"I703+SUMPRODUCT(('Fixed assets'!$Q$2:$Q$1000=Costs!I$705)*('Fixed assets'!$U$2:$U$1000>Costs!$A791)*('Fixed assets'!$P$2:$P$1000=Costs!$A791)*('Fixed assets'!$R$2:$R$1000))-SUMPRODUCT(('Fixed assets'!$Q$2:$Q$1000=Costs!I$705)*('Fixed assets'!$U$2:$U$1000>Costs!$A791)*('Fixed assets'!$P$2:$P$1000=Costs!$A791)*('Fixed assets'!$S$2:$S$1000))","v":0},{"$f":"J703+SUMPRODUCT(('Fixed assets'!$Q$2:$Q$1000=Costs!J$705)*('Fixed assets'!$U$2:$U$1000>Costs!$A791)*('Fixed assets'!$P$2:$P$1000=Costs!$A791)*('Fixed assets'!$R$2:$R$1000))-SUMPRODUCT(('Fixed assets'!$Q$2:$Q$1000=Costs!J$705)*('Fixed assets'!$U$2:$U$1000>Costs!$A791)*('Fixed assets'!$P$2:$P$1000=Costs!$A791)*('Fixed assets'!$S$2:$S$1000))","v":0},{"$f":"K703+SUMPRODUCT(('Fixed assets'!$Q$2:$Q$1000=Costs!K$705)*('Fixed assets'!$U$2:$U$1000>Costs!$A791)*('Fixed assets'!$P$2:$P$1000=Costs!$A791)*('Fixed assets'!$R$2:$R$1000))-SUMPRODUCT(('Fixed assets'!$Q$2:$Q$1000=Costs!K$705)*('Fixed assets'!$U$2:$U$1000>Costs!$A791)*('Fixed assets'!$P$2:$P$1000=Costs!$A791)*('Fixed assets'!$S$2:$S$1000))","v":0},{"$f":"L703+SUMPRODUCT(('Fixed assets'!$Q$2:$Q$1000=Costs!L$705)*('Fixed assets'!$U$2:$U$1000>Costs!$A791)*('Fixed assets'!$P$2:$P$1000=Costs!$A791)*('Fixed assets'!$R$2:$R$1000))-SUMPRODUCT(('Fixed assets'!$Q$2:$Q$1000=Costs!L$705)*('Fixed assets'!$U$2:$U$1000>Costs!$A791)*('Fixed assets'!$P$2:$P$1000=Costs!$A791)*('Fixed assets'!$S$2:$S$1000))","v":0},{"$f":"M703+SUMPRODUCT(('Fixed assets'!$Q$2:$Q$1000=Costs!M$705)*('Fixed assets'!$U$2:$U$1000>Costs!$A791)*('Fixed assets'!$P$2:$P$1000=Costs!$A791)*('Fixed assets'!$R$2:$R$1000))-SUMPRODUCT(('Fixed assets'!$Q$2:$Q$1000=Costs!M$705)*('Fixed assets'!$U$2:$U$1000>Costs!$A791)*('Fixed assets'!$P$2:$P$1000=Costs!$A791)*('Fixed assets'!$S$2:$S$1000))","v":0},{"$f":"N703+SUMPRODUCT(('Fixed assets'!$Q$2:$Q$1000=Costs!N$705)*('Fixed assets'!$U$2:$U$1000>Costs!$A791)*('Fixed assets'!$P$2:$P$1000=Costs!$A791)*('Fixed assets'!$R$2:$R$1000))-SUMPRODUCT(('Fixed assets'!$Q$2:$Q$1000=Costs!N$705)*('Fixed assets'!$U$2:$U$1000>Costs!$A791)*('Fixed assets'!$P$2:$P$1000=Costs!$A791)*('Fixed assets'!$S$2:$S$1000))","v":0},{"$f":"O703+SUMPRODUCT(('Fixed assets'!$Q$2:$Q$1000=Costs!O$705)*('Fixed assets'!$U$2:$U$1000>Costs!$A791)*('Fixed assets'!$P$2:$P$1000=Costs!$A791)*('Fixed assets'!$R$2:$R$1000))-SUMPRODUCT(('Fixed assets'!$Q$2:$Q$1000=Costs!O$705)*('Fixed assets'!$U$2:$U$1000>Costs!$A791)*('Fixed assets'!$P$2:$P$1000=Costs!$A791)*('Fixed assets'!$S$2:$S$1000))","v":0},{"$f":"P703+SUMPRODUCT(('Fixed assets'!$Q$2:$Q$1000=Costs!P$705)*('Fixed assets'!$U$2:$U$1000>Costs!$A791)*('Fixed assets'!$P$2:$P$1000=Costs!$A791)*('Fixed assets'!$R$2:$R$1000))-SUMPRODUCT(('Fixed assets'!$Q$2:$Q$1000=Costs!P$705)*('Fixed assets'!$U$2:$U$1000>Costs!$A791)*('Fixed assets'!$P$2:$P$1000=Costs!$A791)*('Fixed assets'!$S$2:$S$1000))","v":0},{"$f":"Q703+SUMPRODUCT(('Fixed assets'!$Q$2:$Q$1000=Costs!Q$705)*('Fixed assets'!$U$2:$U$1000>Costs!$A791)*('Fixed assets'!$P$2:$P$1000=Costs!$A791)*('Fixed assets'!$R$2:$R$1000))-SUMPRODUCT(('Fixed assets'!$Q$2:$Q$1000=Costs!Q$705)*('Fixed assets'!$U$2:$U$1000>Costs!$A791)*('Fixed assets'!$P$2:$P$1000=Costs!$A791)*('Fixed assets'!$S$2:$S$1000))","v":0},{"$f":"R703+SUMPRODUCT(('Fixed assets'!$Q$2:$Q$1000=Costs!R$705)*('Fixed assets'!$U$2:$U$1000>Costs!$A791)*('Fixed assets'!$P$2:$P$1000=Costs!$A791)*('Fixed assets'!$R$2:$R$1000))-SUMPRODUCT(('Fixed assets'!$Q$2:$Q$1000=Costs!R$705)*('Fixed assets'!$U$2:$U$1000>Costs!$A791)*('Fixed assets'!$P$2:$P$1000=Costs!$A791)*('Fixed assets'!$S$2:$S$1000))","v":0},{"$f":"S703+SUMPRODUCT(('Fixed assets'!$Q$2:$Q$1000=Costs!S$705)*('Fixed assets'!$U$2:$U$1000>Costs!$A791)*('Fixed assets'!$P$2:$P$1000=Costs!$A791)*('Fixed assets'!$R$2:$R$1000))-SUMPRODUCT(('Fixed assets'!$Q$2:$Q$1000=Costs!S$705)*('Fixed assets'!$U$2:$U$1000>Costs!$A791)*('Fixed assets'!$P$2:$P$1000=Costs!$A791)*('Fixed assets'!$S$2:$S$1000))","v":0},{"$f":"T703+SUMPRODUCT(('Fixed assets'!$Q$2:$Q$1000=Costs!T$705)*('Fixed assets'!$U$2:$U$1000>Costs!$A791)*('Fixed assets'!$P$2:$P$1000=Costs!$A791)*('Fixed assets'!$R$2:$R$1000))-SUMPRODUCT(('Fixed assets'!$Q$2:$Q$1000=Costs!T$705)*('Fixed assets'!$U$2:$U$1000>Costs!$A791)*('Fixed assets'!$P$2:$P$1000=Costs!$A791)*('Fixed assets'!$S$2:$S$1000))","v":0},{"$f":"U703+SUMPRODUCT(('Fixed assets'!$Q$2:$Q$1000=Costs!U$705)*('Fixed assets'!$U$2:$U$1000>Costs!$A791)*('Fixed assets'!$P$2:$P$1000=Costs!$A791)*('Fixed assets'!$R$2:$R$1000))-SUMPRODUCT(('Fixed assets'!$Q$2:$Q$1000=Costs!U$705)*('Fixed assets'!$U$2:$U$1000>Costs!$A791)*('Fixed assets'!$P$2:$P$1000=Costs!$A791)*('Fixed assets'!$S$2:$S$1000))","v":0},{"$f":"V703+SUMPRODUCT(('Fixed assets'!$Q$2:$Q$1000=Costs!V$705)*('Fixed assets'!$U$2:$U$1000>Costs!$A791)*('Fixed assets'!$P$2:$P$1000=Costs!$A791)*('Fixed assets'!$R$2:$R$1000))-SUMPRODUCT(('Fixed assets'!$Q$2:$Q$1000=Costs!V$705)*('Fixed assets'!$U$2:$U$1000>Costs!$A791)*('Fixed assets'!$P$2:$P$1000=Costs!$A791)*('Fixed assets'!$S$2:$S$1000))","v":0},{"$f":"W703+SUMPRODUCT(('Fixed assets'!$Q$2:$Q$1000=Costs!W$705)*('Fixed assets'!$U$2:$U$1000>Costs!$A791)*('Fixed assets'!$P$2:$P$1000=Costs!$A791)*('Fixed assets'!$R$2:$R$1000))-SUMPRODUCT(('Fixed assets'!$Q$2:$Q$1000=Costs!W$705)*('Fixed assets'!$U$2:$U$1000>Costs!$A791)*('Fixed assets'!$P$2:$P$1000=Costs!$A791)*('Fixed assets'!$S$2:$S$1000))","v":0},{"$f":"X703+SUMPRODUCT(('Fixed assets'!$Q$2:$Q$1000=Costs!X$705)*('Fixed assets'!$U$2:$U$1000>Costs!$A791)*('Fixed assets'!$P$2:$P$1000=Costs!$A791)*('Fixed assets'!$R$2:$R$1000))-SUMPRODUCT(('Fixed assets'!$Q$2:$Q$1000=Costs!X$705)*('Fixed assets'!$U$2:$U$1000>Costs!$A791)*('Fixed assets'!$P$2:$P$1000=Costs!$A791)*('Fixed assets'!$S$2:$S$1000))","v":0},{"$f":"Y703+SUMPRODUCT(('Fixed assets'!$Q$2:$Q$1000=Costs!Y$705)*('Fixed assets'!$U$2:$U$1000>Costs!$A791)*('Fixed assets'!$P$2:$P$1000=Costs!$A791)*('Fixed assets'!$R$2:$R$1000))-SUMPRODUCT(('Fixed assets'!$Q$2:$Q$1000=Costs!Y$705)*('Fixed assets'!$U$2:$U$1000>Costs!$A791)*('Fixed assets'!$P$2:$P$1000=Costs!$A791)*('Fixed assets'!$S$2:$S$1000))","v":0},{"$f":"Z703+SUMPRODUCT(('Fixed assets'!$Q$2:$Q$1000=Costs!Z$705)*('Fixed assets'!$U$2:$U$1000>Costs!$A791)*('Fixed assets'!$P$2:$P$1000=Costs!$A791)*('Fixed assets'!$R$2:$R$1000))-SUMPRODUCT(('Fixed assets'!$Q$2:$Q$1000=Costs!Z$705)*('Fixed assets'!$U$2:$U$1000>Costs!$A791)*('Fixed assets'!$P$2:$P$1000=Costs!$A791)*('Fixed assets'!$S$2:$S$1000))","v":0},{"$f":"AA703+SUMPRODUCT(('Fixed assets'!$Q$2:$Q$1000=Costs!AA$705)*('Fixed assets'!$U$2:$U$1000>Costs!$A791)*('Fixed assets'!$P$2:$P$1000=Costs!$A791)*('Fixed assets'!$R$2:$R$1000))-SUMPRODUCT(('Fixed assets'!$Q$2:$Q$1000=Costs!AA$705)*('Fixed assets'!$U$2:$U$1000>Costs!$A791)*('Fixed assets'!$P$2:$P$1000=Costs!$A791)*('Fixed assets'!$S$2:$S$1000))","v":0},{"$f":"AB703+SUMPRODUCT(('Fixed assets'!$Q$2:$Q$1000=Costs!AB$705)*('Fixed assets'!$U$2:$U$1000>Costs!$A791)*('Fixed assets'!$P$2:$P$1000=Costs!$A791)*('Fixed assets'!$R$2:$R$1000))-SUMPRODUCT(('Fixed assets'!$Q$2:$Q$1000=Costs!AB$705)*('Fixed assets'!$U$2:$U$1000>Costs!$A791)*('Fixed assets'!$P$2:$P$1000=Costs!$A791)*('Fixed assets'!$S$2:$S$1000))","v":0},{"$f":"AC703+SUMPRODUCT(('Fixed assets'!$Q$2:$Q$1000=Costs!AC$705)*('Fixed assets'!$U$2:$U$1000>Costs!$A791)*('Fixed assets'!$P$2:$P$1000=Costs!$A791)*('Fixed assets'!$R$2:$R$1000))-SUMPRODUCT(('Fixed assets'!$Q$2:$Q$1000=Costs!AC$705)*('Fixed assets'!$U$2:$U$1000>Costs!$A791)*('Fixed assets'!$P$2:$P$1000=Costs!$A791)*('Fixed assets'!$S$2:$S$1000))","v":0},{"$f":"AD703+SUMPRODUCT(('Fixed assets'!$Q$2:$Q$1000=Costs!AD$705)*('Fixed assets'!$U$2:$U$1000>Costs!$A791)*('Fixed assets'!$P$2:$P$1000=Costs!$A791)*('Fixed assets'!$R$2:$R$1000))-SUMPRODUCT(('Fixed assets'!$Q$2:$Q$1000=Costs!AD$705)*('Fixed assets'!$U$2:$U$1000>Costs!$A791)*('Fixed assets'!$P$2:$P$1000=Costs!$A791)*('Fixed assets'!$S$2:$S$1000))","v":0},{"$f":"AE703+SUMPRODUCT(('Fixed assets'!$Q$2:$Q$1000=Costs!AE$705)*('Fixed assets'!$U$2:$U$1000>Costs!$A791)*('Fixed assets'!$P$2:$P$1000=Costs!$A791)*('Fixed assets'!$R$2:$R$1000))-SUMPRODUCT(('Fixed assets'!$Q$2:$Q$1000=Costs!AE$705)*('Fixed assets'!$U$2:$U$1000>Costs!$A791)*('Fixed assets'!$P$2:$P$1000=Costs!$A791)*('Fixed assets'!$S$2:$S$1000))","v":0},{"$f":"AF703+SUMPRODUCT(('Fixed assets'!$Q$2:$Q$1000=Costs!AF$705)*('Fixed assets'!$U$2:$U$1000>Costs!$A791)*('Fixed assets'!$P$2:$P$1000=Costs!$A791)*('Fixed assets'!$R$2:$R$1000))-SUMPRODUCT(('Fixed assets'!$Q$2:$Q$1000=Costs!AF$705)*('Fixed assets'!$U$2:$U$1000>Costs!$A791)*('Fixed assets'!$P$2:$P$1000=Costs!$A791)*('Fixed assets'!$S$2:$S$1000))","v":0},{"$f":"AG703+SUMPRODUCT(('Fixed assets'!$Q$2:$Q$1000=Costs!AG$705)*('Fixed assets'!$U$2:$U$1000>Costs!$A791)*('Fixed assets'!$P$2:$P$1000=Costs!$A791)*('Fixed assets'!$R$2:$R$1000))-SUMPRODUCT(('Fixed assets'!$Q$2:$Q$1000=Costs!AG$705)*('Fixed assets'!$U$2:$U$1000>Costs!$A791)*('Fixed assets'!$P$2:$P$1000=Costs!$A791)*('Fixed assets'!$S$2:$S$1000))","v":0},{"$f":"AH703+SUMPRODUCT(('Fixed assets'!$Q$2:$Q$1000=Costs!AH$705)*('Fixed assets'!$U$2:$U$1000>Costs!$A791)*('Fixed assets'!$P$2:$P$1000=Costs!$A791)*('Fixed assets'!$R$2:$R$1000))-SUMPRODUCT(('Fixed assets'!$Q$2:$Q$1000=Costs!AH$705)*('Fixed assets'!$U$2:$U$1000>Costs!$A791)*('Fixed assets'!$P$2:$P$1000=Costs!$A791)*('Fixed assets'!$S$2:$S$1000))","v":0},{"$f":"AI703+SUMPRODUCT(('Fixed assets'!$Q$2:$Q$1000=Costs!AI$705)*('Fixed assets'!$U$2:$U$1000>Costs!$A791)*('Fixed assets'!$P$2:$P$1000=Costs!$A791)*('Fixed assets'!$R$2:$R$1000))-SUMPRODUCT(('Fixed assets'!$Q$2:$Q$1000=Costs!AI$705)*('Fixed assets'!$U$2:$U$1000>Costs!$A791)*('Fixed assets'!$P$2:$P$1000=Costs!$A791)*('Fixed assets'!$S$2:$S$1000))","v":0},{"$f":"AJ703+SUMPRODUCT(('Fixed assets'!$Q$2:$Q$1000=Costs!AJ$705)*('Fixed assets'!$U$2:$U$1000>Costs!$A791)*('Fixed assets'!$P$2:$P$1000=Costs!$A791)*('Fixed assets'!$R$2:$R$1000))-SUMPRODUCT(('Fixed assets'!$Q$2:$Q$1000=Costs!AJ$705)*('Fixed assets'!$U$2:$U$1000>Costs!$A791)*('Fixed assets'!$P$2:$P$1000=Costs!$A791)*('Fixed assets'!$S$2:$S$1000))","v":0},{"$f":"AK703+SUMPRODUCT(('Fixed assets'!$Q$2:$Q$1000=Costs!AK$705)*('Fixed assets'!$U$2:$U$1000>Costs!$A791)*('Fixed assets'!$P$2:$P$1000=Costs!$A791)*('Fixed assets'!$R$2:$R$1000))-SUMPRODUCT(('Fixed assets'!$Q$2:$Q$1000=Costs!AK$705)*('Fixed assets'!$U$2:$U$1000>Costs!$A791)*('Fixed assets'!$P$2:$P$1000=Costs!$A791)*('Fixed assets'!$S$2:$S$1000))","v":0},{"$f":"AL703+SUMPRODUCT(('Fixed assets'!$Q$2:$Q$1000=Costs!AL$705)*('Fixed assets'!$U$2:$U$1000>Costs!$A791)*('Fixed assets'!$P$2:$P$1000=Costs!$A791)*('Fixed assets'!$R$2:$R$1000))-SUMPRODUCT(('Fixed assets'!$Q$2:$Q$1000=Costs!AL$705)*('Fixed assets'!$U$2:$U$1000>Costs!$A791)*('Fixed assets'!$P$2:$P$1000=Costs!$A791)*('Fixed assets'!$S$2:$S$1000))","v":0},{"$f":"AM703+SUMPRODUCT(('Fixed assets'!$Q$2:$Q$1000=Costs!AM$705)*('Fixed assets'!$U$2:$U$1000>Costs!$A791)*('Fixed assets'!$P$2:$P$1000=Costs!$A791)*('Fixed assets'!$R$2:$R$1000))-SUMPRODUCT(('Fixed assets'!$Q$2:$Q$1000=Costs!AM$705)*('Fixed assets'!$U$2:$U$1000>Costs!$A791)*('Fixed assets'!$P$2:$P$1000=Costs!$A791)*('Fixed assets'!$S$2:$S$1000))","v":0},{"$f":"AN703+SUMPRODUCT(('Fixed assets'!$Q$2:$Q$1000=Costs!AN$705)*('Fixed assets'!$U$2:$U$1000>Costs!$A791)*('Fixed assets'!$P$2:$P$1000=Costs!$A791)*('Fixed assets'!$R$2:$R$1000))-SUMPRODUCT(('Fixed assets'!$Q$2:$Q$1000=Costs!AN$705)*('Fixed assets'!$U$2:$U$1000>Costs!$A791)*('Fixed assets'!$P$2:$P$1000=Costs!$A791)*('Fixed assets'!$S$2:$S$1000))","v":0},{"$f":"AO703+SUMPRODUCT(('Fixed assets'!$Q$2:$Q$1000=Costs!AO$705)*('Fixed assets'!$U$2:$U$1000>Costs!$A791)*('Fixed assets'!$P$2:$P$1000=Costs!$A791)*('Fixed assets'!$R$2:$R$1000))-SUMPRODUCT(('Fixed assets'!$Q$2:$Q$1000=Costs!AO$705)*('Fixed assets'!$U$2:$U$1000>Costs!$A791)*('Fixed assets'!$P$2:$P$1000=Costs!$A791)*('Fixed assets'!$S$2:$S$1000))","v":0},{"$f":"AP703+SUMPRODUCT(('Fixed assets'!$Q$2:$Q$1000=Costs!AP$705)*('Fixed assets'!$U$2:$U$1000>Costs!$A791)*('Fixed assets'!$P$2:$P$1000=Costs!$A791)*('Fixed assets'!$R$2:$R$1000))-SUMPRODUCT(('Fixed assets'!$Q$2:$Q$1000=Costs!AP$705)*('Fixed assets'!$U$2:$U$1000>Costs!$A791)*('Fixed assets'!$P$2:$P$1000=Costs!$A791)*('Fixed assets'!$S$2:$S$1000))","v":0},{"$f":"AQ703+SUMPRODUCT(('Fixed assets'!$Q$2:$Q$1000=Costs!AQ$705)*('Fixed assets'!$U$2:$U$1000>Costs!$A791)*('Fixed assets'!$P$2:$P$1000=Costs!$A791)*('Fixed assets'!$R$2:$R$1000))-SUMPRODUCT(('Fixed assets'!$Q$2:$Q$1000=Costs!AQ$705)*('Fixed assets'!$U$2:$U$1000>Costs!$A791)*('Fixed assets'!$P$2:$P$1000=Costs!$A791)*('Fixed assets'!$S$2:$S$1000))","v":0}]
[]
[null,null,1,2,3,4,5,6,7,8,9,10,11,12,13,14,15,16,17,18,19,20,21,22,23,24,25,26,27,28,29,30,31,32,33,34,35,36,37,38,39,40,41]
["AUC average after replacement proportion","Total","Properties","Property facilities, structures for transport system","Operating buildings","Administrative buildings","Track systems, wagons","Business equipment (without IT/tools/devices)","Tools/devices","Storage facilities","Hardware","Software","Light vehicles","Heavy vehicles","Gas holders","Natural gas compression","Gas purifiers","Piping and fittings","Gas measuring equipment","Safety equipment","Control and energy technology","Ancillary facilities","Buildings, transport routes","Steel pipelines – encapsulated in PE","Steel pipelines – cathodic protection","Steel pipelines – bituminised","Grey cast iron (> DN 150)","Polyethylene (PE - HD)","Polyvinyl chloride (PVC)","Polyvinyl chloride (PVC)","Fittings","Pig traps","Safety equipment","Gas meters of distribution","Service regulators/meter regulators","Metering equipment","Control equipment","Safety equipment","Control and energy technology","Compressors in gas-mixing systems by duration of use","Ancillary facilities","Buildings","Remote control equipment"]
[2016,{"$f":"SUM(C795:AQ795)","v":0},{"$f":"(C619+C707)/2*(1-'B. Parameters'!$B217)","v":0},{"$f":"(D619+D707)/2*(1-'B. Parameters'!$B217)","v":0},{"$f":"(E619+E707)/2*(1-'B. Parameters'!$B217)","v":0},{"$f":"(F619+F707)/2*(1-'B. Parameters'!$B217)","v":0},{"$f":"(G619+G707)/2*(1-'B. Parameters'!$B217)","v":0},{"$f":"(H619+H707)/2*(1-'B. Parameters'!$B217)","v":0},{"$f":"(I619+I707)/2*(1-'B. Parameters'!$B217)","v":0},{"$f":"(J619+J707)/2*(1-'B. Parameters'!$B217)","v":0},{"$f":"(K619+K707)/2*(1-'B. Parameters'!$B217)","v":0},{"$f":"(L619+L707)/2*(1-'B. Parameters'!$B217)","v":0},{"$f":"(M619+M707)/2*(1-'B. Parameters'!$B217)","v":0},{"$f":"(N619+N707)/2*(1-'B. Parameters'!$B217)","v":0},{"$f":"(O619+O707)/2*(1-'B. Parameters'!$B217)","v":0},{"$f":"(P619+P707)/2*(1-'B. Parameters'!$B217)","v":0},{"$f":"(Q619+Q707)/2*(1-'B. Parameters'!$B217)","v":0},{"$f":"(R619+R707)/2*(1-'B. Parameters'!$B217)","v":0},{"$f":"(S619+S707)/2*(1-'B. Parameters'!$B217)","v":0},{"$f":"(T619+T707)/2*(1-'B. Parameters'!$B217)","v":0},{"$f":"(U619+U707)/2*(1-'B. Parameters'!$B217)","v":0},{"$f":"(V619+V707)/2*(1-'B. Parameters'!$B217)","v":0},{"$f":"(W619+W707)/2*(1-'B. Parameters'!$B217)","v":0},{"$f":"(X619+X707)/2*(1-'B. Parameters'!$B217)","v":0},{"$f":"(Y619+Y707)/2*(1-'B. Parameters'!$B217)","v":0},{"$f":"(Z619+Z707)/2*(1-'B. Parameters'!$B217)","v":0},{"$f":"(AA619+AA707)/2*(1-'B. Parameters'!$B217)","v":0},{"$f":"(AB619+AB707)/2*(1-'B. Parameters'!$B217)","v":0},{"$f":"(AC619+AC707)/2*(1-'B. Parameters'!$B217)","v":0},{"$f":"(AD619+AD707)/2*(1-'B. Parameters'!$B217)","v":0},{"$f":"(AE619+AE707)/2*(1-'B. Parameters'!$B217)","v":0},{"$f":"(AF619+AF707)/2*(1-'B. Parameters'!$B217)","v":0},{"$f":"(AG619+AG707)/2*(1-'B. Parameters'!$B217)","v":0},{"$f":"(AH619+AH707)/2*(1-'B. Parameters'!$B217)","v":0},{"$f":"(AI619+AI707)/2*(1-'B. Parameters'!$B217)","v":0},{"$f":"(AJ619+AJ707)/2*(1-'B. Parameters'!$B217)","v":0},{"$f":"(AK619+AK707)/2*(1-'B. Parameters'!$B217)","v":0},{"$f":"(AL619+AL707)/2*(1-'B. Parameters'!$B217)","v":0},{"$f":"(AM619+AM707)/2*(1-'B. Parameters'!$B217)","v":0},{"$f":"(AN619+AN707)/2*(1-'B. Parameters'!$B217)","v":0},{"$f":"(AO619+AO707)/2*(1-'B. Parameters'!$B217)","v":0},{"$f":"(AP619+AP707)/2*(1-'B. Parameters'!$B217)","v":0},{"$f":"(AQ619+AQ707)/2*(1-'B. Parameters'!$B217)","v":0}]
[2017,0,{"$f":"(C620+C708)/2*(1-'B. Parameters'!$B218)","v":0},{"$f":"(D620+D708)/2*(1-'B. Parameters'!$B218)","v":0},{"$f":"(E620+E708)/2*(1-'B. Parameters'!$B218)","v":0},{"$f":"(F620+F708)/2*(1-'B. Parameters'!$B218)","v":0},{"$f":"(G620+G708)/2*(1-'B. Parameters'!$B218)","v":0},{"$f":"(H620+H708)/2*(1-'B. Parameters'!$B218)","v":0},{"$f":"(I620+I708)/2*(1-'B. Parameters'!$B218)","v":0},{"$f":"(J620+J708)/2*(1-'B. Parameters'!$B218)","v":0},{"$f":"(K620+K708)/2*(1-'B. Parameters'!$B218)","v":0},{"$f":"(L620+L708)/2*(1-'B. Parameters'!$B218)","v":0},{"$f":"(M620+M708)/2*(1-'B. Parameters'!$B218)","v":0},{"$f":"(N620+N708)/2*(1-'B. Parameters'!$B218)","v":0},{"$f":"(O620+O708)/2*(1-'B. Parameters'!$B218)","v":0},{"$f":"(P620+P708)/2*(1-'B. Parameters'!$B218)","v":0},{"$f":"(Q620+Q708)/2*(1-'B. Parameters'!$B218)","v":0},{"$f":"(R620+R708)/2*(1-'B. Parameters'!$B218)","v":0},{"$f":"(S620+S708)/2*(1-'B. Parameters'!$B218)","v":0},{"$f":"(T620+T708)/2*(1-'B. Parameters'!$B218)","v":0},{"$f":"(U620+U708)/2*(1-'B. Parameters'!$B218)","v":0},{"$f":"(V620+V708)/2*(1-'B. Parameters'!$B218)","v":0},{"$f":"(W620+W708)/2*(1-'B. Parameters'!$B218)","v":0},{"$f":"(X620+X708)/2*(1-'B. Parameters'!$B218)","v":0},{"$f":"(Y620+Y708)/2*(1-'B. Parameters'!$B218)","v":0},{"$f":"(Z620+Z708)/2*(1-'B. Parameters'!$B218)","v":0},{"$f":"(AA620+AA708)/2*(1-'B. Parameters'!$B218)","v":0},{"$f":"(AB620+AB708)/2*(1-'B. Parameters'!$B218)","v":0},{"$f":"(AC620+AC708)/2*(1-'B. Parameters'!$B218)","v":0},{"$f":"(AD620+AD708)/2*(1-'B. Parameters'!$B218)","v":0},{"$f":"(AE620+AE708)/2*(1-'B. Parameters'!$B218)","v":0},{"$f":"(AF620+AF708)/2*(1-'B. Parameters'!$B218)","v":0},{"$f":"(AG620+AG708)/2*(1-'B. Parameters'!$B218)","v":0},{"$f":"(AH620+AH708)/2*(1-'B. Parameters'!$B218)","v":0},{"$f":"(AI620+AI708)/2*(1-'B. Parameters'!$B218)","v":0},{"$f":"(AJ620+AJ708)/2*(1-'B. Parameters'!$B218)","v":0},{"$f":"(AK620+AK708)/2*(1-'B. Parameters'!$B218)","v":0},{"$f":"(AL620+AL708)/2*(1-'B. Parameters'!$B218)","v":0},{"$f":"(AM620+AM708)/2*(1-'B. Parameters'!$B218)","v":0},{"$f":"(AN620+AN708)/2*(1-'B. Parameters'!$B218)","v":0},{"$f":"(AO620+AO708)/2*(1-'B. Parameters'!$B218)","v":0},{"$f":"(AP620+AP708)/2*(1-'B. Parameters'!$B218)","v":0},{"$f":"(AQ620+AQ708)/2*(1-'B. Parameters'!$B218)","v":0}]
[2018,0,{"$f":"(C621+C709)/2*(1-'B. Parameters'!$B219)","v":0},{"$f":"(D621+D709)/2*(1-'B. Parameters'!$B219)","v":0},{"$f":"(E621+E709)/2*(1-'B. Parameters'!$B219)","v":0},{"$f":"(F621+F709)/2*(1-'B. Parameters'!$B219)","v":0},{"$f":"(G621+G709)/2*(1-'B. Parameters'!$B219)","v":0},{"$f":"(H621+H709)/2*(1-'B. Parameters'!$B219)","v":0},{"$f":"(I621+I709)/2*(1-'B. Parameters'!$B219)","v":0},{"$f":"(J621+J709)/2*(1-'B. Parameters'!$B219)","v":0},{"$f":"(K621+K709)/2*(1-'B. Parameters'!$B219)","v":0},{"$f":"(L621+L709)/2*(1-'B. Parameters'!$B219)","v":0},{"$f":"(M621+M709)/2*(1-'B. Parameters'!$B219)","v":0},{"$f":"(N621+N709)/2*(1-'B. Parameters'!$B219)","v":0},{"$f":"(O621+O709)/2*(1-'B. Parameters'!$B219)","v":0},{"$f":"(P621+P709)/2*(1-'B. Parameters'!$B219)","v":0},{"$f":"(Q621+Q709)/2*(1-'B. Parameters'!$B219)","v":0},{"$f":"(R621+R709)/2*(1-'B. Parameters'!$B219)","v":0},{"$f":"(S621+S709)/2*(1-'B. Parameters'!$B219)","v":0},{"$f":"(T621+T709)/2*(1-'B. Parameters'!$B219)","v":0},{"$f":"(U621+U709)/2*(1-'B. Parameters'!$B219)","v":0},{"$f":"(V621+V709)/2*(1-'B. Parameters'!$B219)","v":0},{"$f":"(W621+W709)/2*(1-'B. Parameters'!$B219)","v":0},{"$f":"(X621+X709)/2*(1-'B. Parameters'!$B219)","v":0},{"$f":"(Y621+Y709)/2*(1-'B. Parameters'!$B219)","v":0},{"$f":"(Z621+Z709)/2*(1-'B. Parameters'!$B219)","v":0},{"$f":"(AA621+AA709)/2*(1-'B. Parameters'!$B219)","v":0},{"$f":"(AB621+AB709)/2*(1-'B. Parameters'!$B219)","v":0},{"$f":"(AC621+AC709)/2*(1-'B. Parameters'!$B219)","v":0},{"$f":"(AD621+AD709)/2*(1-'B. Parameters'!$B219)","v":0},{"$f":"(AE621+AE709)/2*(1-'B. Parameters'!$B219)","v":0},{"$f":"(AF621+AF709)/2*(1-'B. Parameters'!$B219)","v":0},{"$f":"(AG621+AG709)/2*(1-'B. Parameters'!$B219)","v":0},{"$f":"(AH621+AH709)/2*(1-'B. Parameters'!$B219)","v":0},{"$f":"(AI621+AI709)/2*(1-'B. Parameters'!$B219)","v":0},{"$f":"(AJ621+AJ709)/2*(1-'B. Parameters'!$B219)","v":0},{"$f":"(AK621+AK709)/2*(1-'B. Parameters'!$B219)","v":0},{"$f":"(AL621+AL709)/2*(1-'B. Parameters'!$B219)","v":0},{"$f":"(AM621+AM709)/2*(1-'B. Parameters'!$B219)","v":0},{"$f":"(AN621+AN709)/2*(1-'B. Parameters'!$B219)","v":0},{"$f":"(AO621+AO709)/2*(1-'B. Parameters'!$B219)","v":0},{"$f":"(AP621+AP709)/2*(1-'B. Parameters'!$B219)","v":0},{"$f":"(AQ621+AQ709)/2*(1-'B. Parameters'!$B219)","v":0}]
[2019,0,{"$f":"(C622+C710)/2*(1-'B. Parameters'!$B220)","v":0},{"$f":"(D622+D710)/2*(1-'B. Parameters'!$B220)","v":0},{"$f":"(E622+E710)/2*(1-'B. Parameters'!$B220)","v":0},{"$f":"(F622+F710)/2*(1-'B. Parameters'!$B220)","v":0},{"$f":"(G622+G710)/2*(1-'B. Parameters'!$B220)","v":0},{"$f":"(H622+H710)/2*(1-'B. Parameters'!$B220)","v":0},{"$f":"(I622+I710)/2*(1-'B. Parameters'!$B220)","v":0},{"$f":"(J622+J710)/2*(1-'B. Parameters'!$B220)","v":0},{"$f":"(K622+K710)/2*(1-'B. Parameters'!$B220)","v":0},{"$f":"(L622+L710)/2*(1-'B. Parameters'!$B220)","v":0},{"$f":"(M622+M710)/2*(1-'B. Parameters'!$B220)","v":0},{"$f":"(N622+N710)/2*(1-'B. Parameters'!$B220)","v":0},{"$f":"(O622+O710)/2*(1-'B. Parameters'!$B220)","v":0},{"$f":"(P622+P710)/2*(1-'B. Parameters'!$B220)","v":0},{"$f":"(Q622+Q710)/2*(1-'B. Parameters'!$B220)","v":0},{"$f":"(R622+R710)/2*(1-'B. Parameters'!$B220)","v":0},{"$f":"(S622+S710)/2*(1-'B. Parameters'!$B220)","v":0},{"$f":"(T622+T710)/2*(1-'B. Parameters'!$B220)","v":0},{"$f":"(U622+U710)/2*(1-'B. Parameters'!$B220)","v":0},{"$f":"(V622+V710)/2*(1-'B. Parameters'!$B220)","v":0},{"$f":"(W622+W710)/2*(1-'B. Parameters'!$B220)","v":0},{"$f":"(X622+X710)/2*(1-'B. Parameters'!$B220)","v":0},{"$f":"(Y622+Y710)/2*(1-'B. Parameters'!$B220)","v":0},{"$f":"(Z622+Z710)/2*(1-'B. Parameters'!$B220)","v":0},{"$f":"(AA622+AA710)/2*(1-'B. Parameters'!$B220)","v":0},{"$f":"(AB622+AB710)/2*(1-'B. Parameters'!$B220)","v":0},{"$f":"(AC622+AC710)/2*(1-'B. Parameters'!$B220)","v":0},{"$f":"(AD622+AD710)/2*(1-'B. Parameters'!$B220)","v":0},{"$f":"(AE622+AE710)/2*(1-'B. Parameters'!$B220)","v":0},{"$f":"(AF622+AF710)/2*(1-'B. Parameters'!$B220)","v":0},{"$f":"(AG622+AG710)/2*(1-'B. Parameters'!$B220)","v":0},{"$f":"(AH622+AH710)/2*(1-'B. Parameters'!$B220)","v":0},{"$f":"(AI622+AI710)/2*(1-'B. Parameters'!$B220)","v":0},{"$f":"(AJ622+AJ710)/2*(1-'B. Parameters'!$B220)","v":0},{"$f":"(AK622+AK710)/2*(1-'B. Parameters'!$B220)","v":0},{"$f":"(AL622+AL710)/2*(1-'B. Parameters'!$B220)","v":0},{"$f":"(AM622+AM710)/2*(1-'B. Parameters'!$B220)","v":0},{"$f":"(AN622+AN710)/2*(1-'B. Parameters'!$B220)","v":0},{"$f":"(AO622+AO710)/2*(1-'B. Parameters'!$B220)","v":0},{"$f":"(AP622+AP710)/2*(1-'B. Parameters'!$B220)","v":0},{"$f":"(AQ622+AQ710)/2*(1-'B. Parameters'!$B220)","v":0}]
[2020,750000,{"$f":"(C623+C711)/2*(1-'B. Parameters'!$B221)","v":0},{"$f":"(D623+D711)/2*(1-'B. Parameters'!$B221)","v":0},{"$f":"(E623+E711)/2*(1-'B. Parameters'!$B221)","v":0},{"$f":"(F623+F711)/2*(1-'B. Parameters'!$B221)","v":0},{"$f":"(G623+G711)/2*(1-'B. Parameters'!$B221)","v":0},{"$f":"(H623+H711)/2*(1-'B. Parameters'!$B221)","v":0},{"$f":"(I623+I711)/2*(1-'B. Parameters'!$B221)","v":0},{"$f":"(J623+J711)/2*(1-'B. Parameters'!$B221)","v":0},{"$f":"(K623+K711)/2*(1-'B. Parameters'!$B221)","v":0},{"$f":"(L623+L711)/2*(1-'B. Parameters'!$B221)","v":0},{"$f":"(M623+M711)/2*(1-'B. Parameters'!$B221)","v":0},{"$f":"(N623+N711)/2*(1-'B. Parameters'!$B221)","v":0},{"$f":"(O623+O711)/2*(1-'B. Parameters'!$B221)","v":0},{"$f":"(P623+P711)/2*(1-'B. Parameters'!$B221)","v":750000},{"$f":"(Q623+Q711)/2*(1-'B. Parameters'!$B221)","v":0},{"$f":"(R623+R711)/2*(1-'B. Parameters'!$B221)","v":0},{"$f":"(S623+S711)/2*(1-'B. Parameters'!$B221)","v":0},{"$f":"(T623+T711)/2*(1-'B. Parameters'!$B221)","v":0},{"$f":"(U623+U711)/2*(1-'B. Parameters'!$B221)","v":0},{"$f":"(V623+V711)/2*(1-'B. Parameters'!$B221)","v":0},{"$f":"(W623+W711)/2*(1-'B. Parameters'!$B221)","v":0},{"$f":"(X623+X711)/2*(1-'B. Parameters'!$B221)","v":0},{"$f":"(Y623+Y711)/2*(1-'B. Parameters'!$B221)","v":0},{"$f":"(Z623+Z711)/2*(1-'B. Parameters'!$B221)","v":0},{"$f":"(AA623+AA711)/2*(1-'B. Parameters'!$B221)","v":0},{"$f":"(AB623+AB711)/2*(1-'B. Parameters'!$B221)","v":0},{"$f":"(AC623+AC711)/2*(1-'B. Parameters'!$B221)","v":0},{"$f":"(AD623+AD711)/2*(1-'B. Parameters'!$B221)","v":0},{"$f":"(AE623+AE711)/2*(1-'B. Parameters'!$B221)","v":0},{"$f":"(AF623+AF711)/2*(1-'B. Parameters'!$B221)","v":0},{"$f":"(AG623+AG711)/2*(1-'B. Parameters'!$B221)","v":0},{"$f":"(AH623+AH711)/2*(1-'B. Parameters'!$B221)","v":0},{"$f":"(AI623+AI711)/2*(1-'B. Parameters'!$B221)","v":0},{"$f":"(AJ623+AJ711)/2*(1-'B. Parameters'!$B221)","v":0},{"$f":"(AK623+AK711)/2*(1-'B. Parameters'!$B221)","v":0},{"$f":"(AL623+AL711)/2*(1-'B. Parameters'!$B221)","v":0},{"$f":"(AM623+AM711)/2*(1-'B. Parameters'!$B221)","v":0},{"$f":"(AN623+AN711)/2*(1-'B. Parameters'!$B221)","v":0},{"$f":"(AO623+AO711)/2*(1-'B. Parameters'!$B221)","v":0},{"$f":"(AP623+AP711)/2*(1-'B. Parameters'!$B221)","v":0},{"$f":"(AQ623+AQ711)/2*(1-'B. Parameters'!$B221)","v":0}]
[2021,5250000,{"$f":"(C624+C712)/2*(1-'B. Parameters'!$B222)","v":0},{"$f":"(D624+D712)/2*(1-'B. Parameters'!$B222)","v":0},{"$f":"(E624+E712)/2*(1-'B. Parameters'!$B222)","v":0},{"$f":"(F624+F712)/2*(1-'B. Parameters'!$B222)","v":0},{"$f":"(G624+G712)/2*(1-'B. Parameters'!$B222)","v":0},{"$f":"(H624+H712)/2*(1-'B. Parameters'!$B222)","v":0},{"$f":"(I624+I712)/2*(1-'B. Parameters'!$B222)","v":0},{"$f":"(J624+J712)/2*(1-'B. Parameters'!$B222)","v":0},{"$f":"(K624+K712)/2*(1-'B. Parameters'!$B222)","v":0},{"$f":"(L624+L712)/2*(1-'B. Parameters'!$B222)","v":0},{"$f":"(M624+M712)/2*(1-'B. Parameters'!$B222)","v":0},{"$f":"(N624+N712)/2*(1-'B. Parameters'!$B222)","v":0},{"$f":"(O624+O712)/2*(1-'B. Parameters'!$B222)","v":0},{"$f":"(P624+P712)/2*(1-'B. Parameters'!$B222)","v":5250000},{"$f":"(Q624+Q712)/2*(1-'B. Parameters'!$B222)","v":0},{"$f":"(R624+R712)/2*(1-'B. Parameters'!$B222)","v":0},{"$f":"(S624+S712)/2*(1-'B. Parameters'!$B222)","v":0},{"$f":"(T624+T712)/2*(1-'B. Parameters'!$B222)","v":0},{"$f":"(U624+U712)/2*(1-'B. Parameters'!$B222)","v":0},{"$f":"(V624+V712)/2*(1-'B. Parameters'!$B222)","v":0},{"$f":"(W624+W712)/2*(1-'B. Parameters'!$B222)","v":0},{"$f":"(X624+X712)/2*(1-'B. Parameters'!$B222)","v":0},{"$f":"(Y624+Y712)/2*(1-'B. Parameters'!$B222)","v":0},{"$f":"(Z624+Z712)/2*(1-'B. Parameters'!$B222)","v":0},{"$f":"(AA624+AA712)/2*(1-'B. Parameters'!$B222)","v":0},{"$f":"(AB624+AB712)/2*(1-'B. Parameters'!$B222)","v":0},{"$f":"(AC624+AC712)/2*(1-'B. Parameters'!$B222)","v":0},{"$f":"(AD624+AD712)/2*(1-'B. Parameters'!$B222)","v":0},{"$f":"(AE624+AE712)/2*(1-'B. Parameters'!$B222)","v":0},{"$f":"(AF624+AF712)/2*(1-'B. Parameters'!$B222)","v":0},{"$f":"(AG624+AG712)/2*(1-'B. Parameters'!$B222)","v":0},{"$f":"(AH624+AH712)/2*(1-'B. Parameters'!$B222)","v":0},{"$f":"(AI624+AI712)/2*(1-'B. Parameters'!$B222)","v":0},{"$f":"(AJ624+AJ712)/2*(1-'B. Parameters'!$B222)","v":0},{"$f":"(AK624+AK712)/2*(1-'B. Parameters'!$B222)","v":0},{"$f":"(AL624+AL712)/2*(1-'B. Parameters'!$B222)","v":0},{"$f":"(AM624+AM712)/2*(1-'B. Parameters'!$B222)","v":0},{"$f":"(AN624+AN712)/2*(1-'B. Parameters'!$B222)","v":0},{"$f":"(AO624+AO712)/2*(1-'B. Parameters'!$B222)","v":0},{"$f":"(AP624+AP712)/2*(1-'B. Parameters'!$B222)","v":0},{"$f":"(AQ624+AQ712)/2*(1-'B. Parameters'!$B222)","v":0}]
[2022,24000000,{"$f":"(C625+C713)/2*(1-'B. Parameters'!$B223)","v":0},{"$f":"(D625+D713)/2*(1-'B. Parameters'!$B223)","v":0},{"$f":"(E625+E713)/2*(1-'B. Parameters'!$B223)","v":0},{"$f":"(F625+F713)/2*(1-'B. Parameters'!$B223)","v":0},{"$f":"(G625+G713)/2*(1-'B. Parameters'!$B223)","v":0},{"$f":"(H625+H713)/2*(1-'B. Parameters'!$B223)","v":0},{"$f":"(I625+I713)/2*(1-'B. Parameters'!$B223)","v":0},{"$f":"(J625+J713)/2*(1-'B. Parameters'!$B223)","v":0},{"$f":"(K625+K713)/2*(1-'B. Parameters'!$B223)","v":0},{"$f":"(L625+L713)/2*(1-'B. Parameters'!$B223)","v":0},{"$f":"(M625+M713)/2*(1-'B. Parameters'!$B223)","v":0},{"$f":"(N625+N713)/2*(1-'B. Parameters'!$B223)","v":0},{"$f":"(O625+O713)/2*(1-'B. Parameters'!$B223)","v":0},{"$f":"(P625+P713)/2*(1-'B. Parameters'!$B223)","v":24000000},{"$f":"(Q625+Q713)/2*(1-'B. Parameters'!$B223)","v":0},{"$f":"(R625+R713)/2*(1-'B. Parameters'!$B223)","v":0},{"$f":"(S625+S713)/2*(1-'B. Parameters'!$B223)","v":0},{"$f":"(T625+T713)/2*(1-'B. Parameters'!$B223)","v":0},{"$f":"(U625+U713)/2*(1-'B. Parameters'!$B223)","v":0},{"$f":"(V625+V713)/2*(1-'B. Parameters'!$B223)","v":0},{"$f":"(W625+W713)/2*(1-'B. Parameters'!$B223)","v":0},{"$f":"(X625+X713)/2*(1-'B. Parameters'!$B223)","v":0},{"$f":"(Y625+Y713)/2*(1-'B. Parameters'!$B223)","v":0},{"$f":"(Z625+Z713)/2*(1-'B. Parameters'!$B223)","v":0},{"$f":"(AA625+AA713)/2*(1-'B. Parameters'!$B223)","v":0},{"$f":"(AB625+AB713)/2*(1-'B. Parameters'!$B223)","v":0},{"$f":"(AC625+AC713)/2*(1-'B. Parameters'!$B223)","v":0},{"$f":"(AD625+AD713)/2*(1-'B. Parameters'!$B223)","v":0},{"$f":"(AE625+AE713)/2*(1-'B. Parameters'!$B223)","v":0},{"$f":"(AF625+AF713)/2*(1-'B. Parameters'!$B223)","v":0},{"$f":"(AG625+AG713)/2*(1-'B. Parameters'!$B223)","v":0},{"$f":"(AH625+AH713)/2*(1-'B. Parameters'!$B223)","v":0},{"$f":"(AI625+AI713)/2*(1-'B. Parameters'!$B223)","v":0},{"$f":"(AJ625+AJ713)/2*(1-'B. Parameters'!$B223)","v":0},{"$f":"(AK625+AK713)/2*(1-'B. Parameters'!$B223)","v":0},{"$f":"(AL625+AL713)/2*(1-'B. Parameters'!$B223)","v":0},{"$f":"(AM625+AM713)/2*(1-'B. Parameters'!$B223)","v":0},{"$f":"(AN625+AN713)/2*(1-'B. Parameters'!$B223)","v":0},{"$f":"(AO625+AO713)/2*(1-'B. Parameters'!$B223)","v":0},{"$f":"(AP625+AP713)/2*(1-'B. Parameters'!$B223)","v":0},{"$f":"(AQ625+AQ713)/2*(1-'B. Parameters'!$B223)","v":0}]
[2023,64500000,{"$f":"(C626+C714)/2*(1-'B. Parameters'!$B224)","v":0},{"$f":"(D626+D714)/2*(1-'B. Parameters'!$B224)","v":0},{"$f":"(E626+E714)/2*(1-'B. Parameters'!$B224)","v":0},{"$f":"(F626+F714)/2*(1-'B. Parameters'!$B224)","v":0},{"$f":"(G626+G714)/2*(1-'B. Parameters'!$B224)","v":0},{"$f":"(H626+H714)/2*(1-'B. Parameters'!$B224)","v":0},{"$f":"(I626+I714)/2*(1-'B. Parameters'!$B224)","v":0},{"$f":"(J626+J714)/2*(1-'B. Parameters'!$B224)","v":0},{"$f":"(K626+K714)/2*(1-'B. Parameters'!$B224)","v":0},{"$f":"(L626+L714)/2*(1-'B. Parameters'!$B224)","v":0},{"$f":"(M626+M714)/2*(1-'B. Parameters'!$B224)","v":0},{"$f":"(N626+N714)/2*(1-'B. Parameters'!$B224)","v":0},{"$f":"(O626+O714)/2*(1-'B. Parameters'!$B224)","v":0},{"$f":"(P626+P714)/2*(1-'B. Parameters'!$B224)","v":64500000},{"$f":"(Q626+Q714)/2*(1-'B. Parameters'!$B224)","v":0},{"$f":"(R626+R714)/2*(1-'B. Parameters'!$B224)","v":0},{"$f":"(S626+S714)/2*(1-'B. Parameters'!$B224)","v":0},{"$f":"(T626+T714)/2*(1-'B. Parameters'!$B224)","v":0},{"$f":"(U626+U714)/2*(1-'B. Parameters'!$B224)","v":0},{"$f":"(V626+V714)/2*(1-'B. Parameters'!$B224)","v":0},{"$f":"(W626+W714)/2*(1-'B. Parameters'!$B224)","v":0},{"$f":"(X626+X714)/2*(1-'B. Parameters'!$B224)","v":0},{"$f":"(Y626+Y714)/2*(1-'B. Parameters'!$B224)","v":0},{"$f":"(Z626+Z714)/2*(1-'B. Parameters'!$B224)","v":0},{"$f":"(AA626+AA714)/2*(1-'B. Parameters'!$B224)","v":0},{"$f":"(AB626+AB714)/2*(1-'B. Parameters'!$B224)","v":0},{"$f":"(AC626+AC714)/2*(1-'B. Parameters'!$B224)","v":0},{"$f":"(AD626+AD714)/2*(1-'B. Parameters'!$B224)","v":0},{"$f":"(AE626+AE714)/2*(1-'B. Parameters'!$B224)","v":0},{"$f":"(AF626+AF714)/2*(1-'B. Parameters'!$B224)","v":0},{"$f":"(AG626+AG714)/2*(1-'B. Parameters'!$B224)","v":0},{"$f":"(AH626+AH714)/2*(1-'B. Parameters'!$B224)","v":0},{"$f":"(AI626+AI714)/2*(1-'B. Parameters'!$B224)","v":0},{"$f":"(AJ626+AJ714)/2*(1-'B. Parameters'!$B224)","v":0},{"$f":"(AK626+AK714)/2*(1-'B. Parameters'!$B224)","v":0},{"$f":"(AL626+AL714)/2*(1-'B. Parameters'!$B224)","v":0},{"$f":"(AM626+AM714)/2*(1-'B. Parameters'!$B224)","v":0},{"$f":"(AN626+AN714)/2*(1-'B. Parameters'!$B224)","v":0},{"$f":"(AO626+AO714)/2*(1-'B. Parameters'!$B224)","v":0},{"$f":"(AP626+AP714)/2*(1-'B. Parameters'!$B224)","v":0},{"$f":"(AQ626+AQ714)/2*(1-'B. Parameters'!$B224)","v":0}]
[2024,120500000,{"$f":"(C627+C715)/2*(1-'B. Parameters'!$B225)","v":0},{"$f":"(D627+D715)/2*(1-'B. Parameters'!$B225)","v":0},{"$f":"(E627+E715)/2*(1-'B. Parameters'!$B225)","v":0},{"$f":"(F627+F715)/2*(1-'B. Parameters'!$B225)","v":0},{"$f":"(G627+G715)/2*(1-'B. Parameters'!$B225)","v":0},{"$f":"(H627+H715)/2*(1-'B. Parameters'!$B225)","v":0},{"$f":"(I627+I715)/2*(1-'B. Parameters'!$B225)","v":0},{"$f":"(J627+J715)/2*(1-'B. Parameters'!$B225)","v":0},{"$f":"(K627+K715)/2*(1-'B. Parameters'!$B225)","v":0},{"$f":"(L627+L715)/2*(1-'B. Parameters'!$B225)","v":0},{"$f":"(M627+M715)/2*(1-'B. Parameters'!$B225)","v":0},{"$f":"(N627+N715)/2*(1-'B. Parameters'!$B225)","v":0},{"$f":"(O627+O715)/2*(1-'B. Parameters'!$B225)","v":0},{"$f":"(P627+P715)/2*(1-'B. Parameters'!$B225)","v":120000000},{"$f":"(Q627+Q715)/2*(1-'B. Parameters'!$B225)","v":0},{"$f":"(R627+R715)/2*(1-'B. Parameters'!$B225)","v":0},{"$f":"(S627+S715)/2*(1-'B. Parameters'!$B225)","v":0},{"$f":"(T627+T715)/2*(1-'B. Parameters'!$B225)","v":0},{"$f":"(U627+U715)/2*(1-'B. Parameters'!$B225)","v":0},{"$f":"(V627+V715)/2*(1-'B. Parameters'!$B225)","v":0},{"$f":"(W627+W715)/2*(1-'B. Parameters'!$B225)","v":0},{"$f":"(X627+X715)/2*(1-'B. Parameters'!$B225)","v":0},{"$f":"(Y627+Y715)/2*(1-'B. Parameters'!$B225)","v":0},{"$f":"(Z627+Z715)/2*(1-'B. Parameters'!$B225)","v":0},{"$f":"(AA627+AA715)/2*(1-'B. Parameters'!$B225)","v":0},{"$f":"(AB627+AB715)/2*(1-'B. Parameters'!$B225)","v":0},{"$f":"(AC627+AC715)/2*(1-'B. Parameters'!$B225)","v":0},{"$f":"(AD627+AD715)/2*(1-'B. Parameters'!$B225)","v":0},{"$f":"(AE627+AE715)/2*(1-'B. Parameters'!$B225)","v":0},{"$f":"(AF627+AF715)/2*(1-'B. Parameters'!$B225)","v":0},{"$f":"(AG627+AG715)/2*(1-'B. Parameters'!$B225)","v":0},{"$f":"(AH627+AH715)/2*(1-'B. Parameters'!$B225)","v":0},{"$f":"(AI627+AI715)/2*(1-'B. Parameters'!$B225)","v":0},{"$f":"(AJ627+AJ715)/2*(1-'B. Parameters'!$B225)","v":500000},{"$f":"(AK627+AK715)/2*(1-'B. Parameters'!$B225)","v":0},{"$f":"(AL627+AL715)/2*(1-'B. Parameters'!$B225)","v":0},{"$f":"(AM627+AM715)/2*(1-'B. Parameters'!$B225)","v":0},{"$f":"(AN627+AN715)/2*(1-'B. Parameters'!$B225)","v":0},{"$f":"(AO627+AO715)/2*(1-'B. Parameters'!$B225)","v":0},{"$f":"(AP627+AP715)/2*(1-'B. Parameters'!$B225)","v":0},{"$f":"(AQ627+AQ715)/2*(1-'B. Parameters'!$B225)","v":0}]
[2025,0,{"$f":"(C628+C716)/2*(1-'B. Parameters'!$B226)","v":0},{"$f":"(D628+D716)/2*(1-'B. Parameters'!$B226)","v":0},{"$f":"(E628+E716)/2*(1-'B. Parameters'!$B226)","v":0},{"$f":"(F628+F716)/2*(1-'B. Parameters'!$B226)","v":0},{"$f":"(G628+G716)/2*(1-'B. Parameters'!$B226)","v":0},{"$f":"(H628+H716)/2*(1-'B. Parameters'!$B226)","v":0},{"$f":"(I628+I716)/2*(1-'B. Parameters'!$B226)","v":0},{"$f":"(J628+J716)/2*(1-'B. Parameters'!$B226)","v":0},{"$f":"(K628+K716)/2*(1-'B. Parameters'!$B226)","v":0},{"$f":"(L628+L716)/2*(1-'B. Parameters'!$B226)","v":0},{"$f":"(M628+M716)/2*(1-'B. Parameters'!$B226)","v":0},{"$f":"(N628+N716)/2*(1-'B. Parameters'!$B226)","v":0},{"$f":"(O628+O716)/2*(1-'B. Parameters'!$B226)","v":0},{"$f":"(P628+P716)/2*(1-'B. Parameters'!$B226)","v":0},{"$f":"(Q628+Q716)/2*(1-'B. Parameters'!$B226)","v":0},{"$f":"(R628+R716)/2*(1-'B. Parameters'!$B226)","v":0},{"$f":"(S628+S716)/2*(1-'B. Parameters'!$B226)","v":0},{"$f":"(T628+T716)/2*(1-'B. Parameters'!$B226)","v":0},{"$f":"(U628+U716)/2*(1-'B. Parameters'!$B226)","v":0},{"$f":"(V628+V716)/2*(1-'B. Parameters'!$B226)","v":0},{"$f":"(W628+W716)/2*(1-'B. Parameters'!$B226)","v":0},{"$f":"(X628+X716)/2*(1-'B. Parameters'!$B226)","v":0},{"$f":"(Y628+Y716)/2*(1-'B. Parameters'!$B226)","v":0},{"$f":"(Z628+Z716)/2*(1-'B. Parameters'!$B226)","v":0},{"$f":"(AA628+AA716)/2*(1-'B. Parameters'!$B226)","v":0},{"$f":"(AB628+AB716)/2*(1-'B. Parameters'!$B226)","v":0},{"$f":"(AC628+AC716)/2*(1-'B. Parameters'!$B226)","v":0},{"$f":"(AD628+AD716)/2*(1-'B. Parameters'!$B226)","v":0},{"$f":"(AE628+AE716)/2*(1-'B. Parameters'!$B226)","v":0},{"$f":"(AF628+AF716)/2*(1-'B. Parameters'!$B226)","v":0},{"$f":"(AG628+AG716)/2*(1-'B. Parameters'!$B226)","v":0},{"$f":"(AH628+AH716)/2*(1-'B. Parameters'!$B226)","v":0},{"$f":"(AI628+AI716)/2*(1-'B. Parameters'!$B226)","v":0},{"$f":"(AJ628+AJ716)/2*(1-'B. Parameters'!$B226)","v":0},{"$f":"(AK628+AK716)/2*(1-'B. Parameters'!$B226)","v":0},{"$f":"(AL628+AL716)/2*(1-'B. Parameters'!$B226)","v":0},{"$f":"(AM628+AM716)/2*(1-'B. Parameters'!$B226)","v":0},{"$f":"(AN628+AN716)/2*(1-'B. Parameters'!$B226)","v":0},{"$f":"(AO628+AO716)/2*(1-'B. Parameters'!$B226)","v":0},{"$f":"(AP628+AP716)/2*(1-'B. Parameters'!$B226)","v":0},{"$f":"(AQ628+AQ716)/2*(1-'B. Parameters'!$B226)","v":0}]
[2026,0,{"$f":"(C629+C717)/2*(1-'B. Parameters'!$B227)","v":0},{"$f":"(D629+D717)/2*(1-'B. Parameters'!$B227)","v":0},{"$f":"(E629+E717)/2*(1-'B. Parameters'!$B227)","v":0},{"$f":"(F629+F717)/2*(1-'B. Parameters'!$B227)","v":0},{"$f":"(G629+G717)/2*(1-'B. Parameters'!$B227)","v":0},{"$f":"(H629+H717)/2*(1-'B. Parameters'!$B227)","v":0},{"$f":"(I629+I717)/2*(1-'B. Parameters'!$B227)","v":0},{"$f":"(J629+J717)/2*(1-'B. Parameters'!$B227)","v":0},{"$f":"(K629+K717)/2*(1-'B. Parameters'!$B227)","v":0},{"$f":"(L629+L717)/2*(1-'B. Parameters'!$B227)","v":0},{"$f":"(M629+M717)/2*(1-'B. Parameters'!$B227)","v":0},{"$f":"(N629+N717)/2*(1-'B. Parameters'!$B227)","v":0},{"$f":"(O629+O717)/2*(1-'B. Parameters'!$B227)","v":0},{"$f":"(P629+P717)/2*(1-'B. Parameters'!$B227)","v":0},{"$f":"(Q629+Q717)/2*(1-'B. Parameters'!$B227)","v":0},{"$f":"(R629+R717)/2*(1-'B. Parameters'!$B227)","v":0},{"$f":"(S629+S717)/2*(1-'B. Parameters'!$B227)","v":0},{"$f":"(T629+T717)/2*(1-'B. Parameters'!$B227)","v":0},{"$f":"(U629+U717)/2*(1-'B. Parameters'!$B227)","v":0},{"$f":"(V629+V717)/2*(1-'B. Parameters'!$B227)","v":0},{"$f":"(W629+W717)/2*(1-'B. Parameters'!$B227)","v":0},{"$f":"(X629+X717)/2*(1-'B. Parameters'!$B227)","v":0},{"$f":"(Y629+Y717)/2*(1-'B. Parameters'!$B227)","v":0},{"$f":"(Z629+Z717)/2*(1-'B. Parameters'!$B227)","v":0},{"$f":"(AA629+AA717)/2*(1-'B. Parameters'!$B227)","v":0},{"$f":"(AB629+AB717)/2*(1-'B. Parameters'!$B227)","v":0},{"$f":"(AC629+AC717)/2*(1-'B. Parameters'!$B227)","v":0},{"$f":"(AD629+AD717)/2*(1-'B. Parameters'!$B227)","v":0},{"$f":"(AE629+AE717)/2*(1-'B. Parameters'!$B227)","v":0},{"$f":"(AF629+AF717)/2*(1-'B. Parameters'!$B227)","v":0},{"$f":"(AG629+AG717)/2*(1-'B. Parameters'!$B227)","v":0},{"$f":"(AH629+AH717)/2*(1-'B. Parameters'!$B227)","v":0},{"$f":"(AI629+AI717)/2*(1-'B. Parameters'!$B227)","v":0},{"$f":"(AJ629+AJ717)/2*(1-'B. Parameters'!$B227)","v":0},{"$f":"(AK629+AK717)/2*(1-'B. Parameters'!$B227)","v":0},{"$f":"(AL629+AL717)/2*(1-'B. Parameters'!$B227)","v":0},{"$f":"(AM629+AM717)/2*(1-'B. Parameters'!$B227)","v":0},{"$f":"(AN629+AN717)/2*(1-'B. Parameters'!$B227)","v":0},{"$f":"(AO629+AO717)/2*(1-'B. Parameters'!$B227)","v":0},{"$f":"(AP629+AP717)/2*(1-'B. Parameters'!$B227)","v":0},{"$f":"(AQ629+AQ717)/2*(1-'B. Parameters'!$B227)","v":0}]
[2027,0,{"$f":"(C630+C718)/2*(1-'B. Parameters'!$B228)","v":0},{"$f":"(D630+D718)/2*(1-'B. Parameters'!$B228)","v":0},{"$f":"(E630+E718)/2*(1-'B. Parameters'!$B228)","v":0},{"$f":"(F630+F718)/2*(1-'B. Parameters'!$B228)","v":0},{"$f":"(G630+G718)/2*(1-'B. Parameters'!$B228)","v":0},{"$f":"(H630+H718)/2*(1-'B. Parameters'!$B228)","v":0},{"$f":"(I630+I718)/2*(1-'B. Parameters'!$B228)","v":0},{"$f":"(J630+J718)/2*(1-'B. Parameters'!$B228)","v":0},{"$f":"(K630+K718)/2*(1-'B. Parameters'!$B228)","v":0},{"$f":"(L630+L718)/2*(1-'B. Parameters'!$B228)","v":0},{"$f":"(M630+M718)/2*(1-'B. Parameters'!$B228)","v":0},{"$f":"(N630+N718)/2*(1-'B. Parameters'!$B228)","v":0},{"$f":"(O630+O718)/2*(1-'B. Parameters'!$B228)","v":0},{"$f":"(P630+P718)/2*(1-'B. Parameters'!$B228)","v":0},{"$f":"(Q630+Q718)/2*(1-'B. Parameters'!$B228)","v":0},{"$f":"(R630+R718)/2*(1-'B. Parameters'!$B228)","v":0},{"$f":"(S630+S718)/2*(1-'B. Parameters'!$B228)","v":0},{"$f":"(T630+T718)/2*(1-'B. Parameters'!$B228)","v":0},{"$f":"(U630+U718)/2*(1-'B. Parameters'!$B228)","v":0},{"$f":"(V630+V718)/2*(1-'B. Parameters'!$B228)","v":0},{"$f":"(W630+W718)/2*(1-'B. Parameters'!$B228)","v":0},{"$f":"(X630+X718)/2*(1-'B. Parameters'!$B228)","v":0},{"$f":"(Y630+Y718)/2*(1-'B. Parameters'!$B228)","v":0},{"$f":"(Z630+Z718)/2*(1-'B. Parameters'!$B228)","v":0},{"$f":"(AA630+AA718)/2*(1-'B. Parameters'!$B228)","v":0},{"$f":"(AB630+AB718)/2*(1-'B. Parameters'!$B228)","v":0},{"$f":"(AC630+AC718)/2*(1-'B. Parameters'!$B228)","v":0},{"$f":"(AD630+AD718)/2*(1-'B. Parameters'!$B228)","v":0},{"$f":"(AE630+AE718)/2*(1-'B. Parameters'!$B228)","v":0},{"$f":"(AF630+AF718)/2*(1-'B. Parameters'!$B228)","v":0},{"$f":"(AG630+AG718)/2*(1-'B. Parameters'!$B228)","v":0},{"$f":"(AH630+AH718)/2*(1-'B. Parameters'!$B228)","v":0},{"$f":"(AI630+AI718)/2*(1-'B. Parameters'!$B228)","v":0},{"$f":"(AJ630+AJ718)/2*(1-'B. Parameters'!$B228)","v":0},{"$f":"(AK630+AK718)/2*(1-'B. Parameters'!$B228)","v":0},{"$f":"(AL630+AL718)/2*(1-'B. Parameters'!$B228)","v":0},{"$f":"(AM630+AM718)/2*(1-'B. Parameters'!$B228)","v":0},{"$f":"(AN630+AN718)/2*(1-'B. Parameters'!$B228)","v":0},{"$f":"(AO630+AO718)/2*(1-'B. Parameters'!$B228)","v":0},{"$f":"(AP630+AP718)/2*(1-'B. Parameters'!$B228)","v":0},{"$f":"(AQ630+AQ718)/2*(1-'B. Parameters'!$B228)","v":0}]
[2028,0,{"$f":"(C631+C719)/2*(1-'B. Parameters'!$B229)","v":0},{"$f":"(D631+D719)/2*(1-'B. Parameters'!$B229)","v":0},{"$f":"(E631+E719)/2*(1-'B. Parameters'!$B229)","v":0},{"$f":"(F631+F719)/2*(1-'B. Parameters'!$B229)","v":0},{"$f":"(G631+G719)/2*(1-'B. Parameters'!$B229)","v":0},{"$f":"(H631+H719)/2*(1-'B. Parameters'!$B229)","v":0},{"$f":"(I631+I719)/2*(1-'B. Parameters'!$B229)","v":0},{"$f":"(J631+J719)/2*(1-'B. Parameters'!$B229)","v":0},{"$f":"(K631+K719)/2*(1-'B. Parameters'!$B229)","v":0},{"$f":"(L631+L719)/2*(1-'B. Parameters'!$B229)","v":0},{"$f":"(M631+M719)/2*(1-'B. Parameters'!$B229)","v":0},{"$f":"(N631+N719)/2*(1-'B. Parameters'!$B229)","v":0},{"$f":"(O631+O719)/2*(1-'B. Parameters'!$B229)","v":0},{"$f":"(P631+P719)/2*(1-'B. Parameters'!$B229)","v":0},{"$f":"(Q631+Q719)/2*(1-'B. Parameters'!$B229)","v":0},{"$f":"(R631+R719)/2*(1-'B. Parameters'!$B229)","v":0},{"$f":"(S631+S719)/2*(1-'B. Parameters'!$B229)","v":0},{"$f":"(T631+T719)/2*(1-'B. Parameters'!$B229)","v":0},{"$f":"(U631+U719)/2*(1-'B. Parameters'!$B229)","v":0},{"$f":"(V631+V719)/2*(1-'B. Parameters'!$B229)","v":0},{"$f":"(W631+W719)/2*(1-'B. Parameters'!$B229)","v":0},{"$f":"(X631+X719)/2*(1-'B. Parameters'!$B229)","v":0},{"$f":"(Y631+Y719)/2*(1-'B. Parameters'!$B229)","v":0},{"$f":"(Z631+Z719)/2*(1-'B. Parameters'!$B229)","v":0},{"$f":"(AA631+AA719)/2*(1-'B. Parameters'!$B229)","v":0},{"$f":"(AB631+AB719)/2*(1-'B. Parameters'!$B229)","v":0},{"$f":"(AC631+AC719)/2*(1-'B. Parameters'!$B229)","v":0},{"$f":"(AD631+AD719)/2*(1-'B. Parameters'!$B229)","v":0},{"$f":"(AE631+AE719)/2*(1-'B. Parameters'!$B229)","v":0},{"$f":"(AF631+AF719)/2*(1-'B. Parameters'!$B229)","v":0},{"$f":"(AG631+AG719)/2*(1-'B. Parameters'!$B229)","v":0},{"$f":"(AH631+AH719)/2*(1-'B. Parameters'!$B229)","v":0},{"$f":"(AI631+AI719)/2*(1-'B. Parameters'!$B229)","v":0},{"$f":"(AJ631+AJ719)/2*(1-'B. Parameters'!$B229)","v":0},{"$f":"(AK631+AK719)/2*(1-'B. Parameters'!$B229)","v":0},{"$f":"(AL631+AL719)/2*(1-'B. Parameters'!$B229)","v":0},{"$f":"(AM631+AM719)/2*(1-'B. Parameters'!$B229)","v":0},{"$f":"(AN631+AN719)/2*(1-'B. Parameters'!$B229)","v":0},{"$f":"(AO631+AO719)/2*(1-'B. Parameters'!$B229)","v":0},{"$f":"(AP631+AP719)/2*(1-'B. Parameters'!$B229)","v":0},{"$f":"(AQ631+AQ719)/2*(1-'B. Parameters'!$B229)","v":0}]
[2029,0,{"$f":"(C632+C720)/2*(1-'B. Parameters'!$B230)","v":0},{"$f":"(D632+D720)/2*(1-'B. Parameters'!$B230)","v":0},{"$f":"(E632+E720)/2*(1-'B. Parameters'!$B230)","v":0},{"$f":"(F632+F720)/2*(1-'B. Parameters'!$B230)","v":0},{"$f":"(G632+G720)/2*(1-'B. Parameters'!$B230)","v":0},{"$f":"(H632+H720)/2*(1-'B. Parameters'!$B230)","v":0},{"$f":"(I632+I720)/2*(1-'B. Parameters'!$B230)","v":0},{"$f":"(J632+J720)/2*(1-'B. Parameters'!$B230)","v":0},{"$f":"(K632+K720)/2*(1-'B. Parameters'!$B230)","v":0},{"$f":"(L632+L720)/2*(1-'B. Parameters'!$B230)","v":0},{"$f":"(M632+M720)/2*(1-'B. Parameters'!$B230)","v":0},{"$f":"(N632+N720)/2*(1-'B. Parameters'!$B230)","v":0},{"$f":"(O632+O720)/2*(1-'B. Parameters'!$B230)","v":0},{"$f":"(P632+P720)/2*(1-'B. Parameters'!$B230)","v":0},{"$f":"(Q632+Q720)/2*(1-'B. Parameters'!$B230)","v":0},{"$f":"(R632+R720)/2*(1-'B. Parameters'!$B230)","v":0},{"$f":"(S632+S720)/2*(1-'B. Parameters'!$B230)","v":0},{"$f":"(T632+T720)/2*(1-'B. Parameters'!$B230)","v":0},{"$f":"(U632+U720)/2*(1-'B. Parameters'!$B230)","v":0},{"$f":"(V632+V720)/2*(1-'B. Parameters'!$B230)","v":0},{"$f":"(W632+W720)/2*(1-'B. Parameters'!$B230)","v":0},{"$f":"(X632+X720)/2*(1-'B. Parameters'!$B230)","v":0},{"$f":"(Y632+Y720)/2*(1-'B. Parameters'!$B230)","v":0},{"$f":"(Z632+Z720)/2*(1-'B. Parameters'!$B230)","v":0},{"$f":"(AA632+AA720)/2*(1-'B. Parameters'!$B230)","v":0},{"$f":"(AB632+AB720)/2*(1-'B. Parameters'!$B230)","v":0},{"$f":"(AC632+AC720)/2*(1-'B. Parameters'!$B230)","v":0},{"$f":"(AD632+AD720)/2*(1-'B. Parameters'!$B230)","v":0},{"$f":"(AE632+AE720)/2*(1-'B. Parameters'!$B230)","v":0},{"$f":"(AF632+AF720)/2*(1-'B. Parameters'!$B230)","v":0},{"$f":"(AG632+AG720)/2*(1-'B. Parameters'!$B230)","v":0},{"$f":"(AH632+AH720)/2*(1-'B. Parameters'!$B230)","v":0},{"$f":"(AI632+AI720)/2*(1-'B. Parameters'!$B230)","v":0},{"$f":"(AJ632+AJ720)/2*(1-'B. Parameters'!$B230)","v":0},{"$f":"(AK632+AK720)/2*(1-'B. Parameters'!$B230)","v":0},{"$f":"(AL632+AL720)/2*(1-'B. Parameters'!$B230)","v":0},{"$f":"(AM632+AM720)/2*(1-'B. Parameters'!$B230)","v":0},{"$f":"(AN632+AN720)/2*(1-'B. Parameters'!$B230)","v":0},{"$f":"(AO632+AO720)/2*(1-'B. Parameters'!$B230)","v":0},{"$f":"(AP632+AP720)/2*(1-'B. Parameters'!$B230)","v":0},{"$f":"(AQ632+AQ720)/2*(1-'B. Parameters'!$B230)","v":0}]
[2030,0,{"$f":"(C633+C721)/2*(1-'B. Parameters'!$B231)","v":0},{"$f":"(D633+D721)/2*(1-'B. Parameters'!$B231)","v":0},{"$f":"(E633+E721)/2*(1-'B. Parameters'!$B231)","v":0},{"$f":"(F633+F721)/2*(1-'B. Parameters'!$B231)","v":0},{"$f":"(G633+G721)/2*(1-'B. Parameters'!$B231)","v":0},{"$f":"(H633+H721)/2*(1-'B. Parameters'!$B231)","v":0},{"$f":"(I633+I721)/2*(1-'B. Parameters'!$B231)","v":0},{"$f":"(J633+J721)/2*(1-'B. Parameters'!$B231)","v":0},{"$f":"(K633+K721)/2*(1-'B. Parameters'!$B231)","v":0},{"$f":"(L633+L721)/2*(1-'B. Parameters'!$B231)","v":0},{"$f":"(M633+M721)/2*(1-'B. Parameters'!$B231)","v":0},{"$f":"(N633+N721)/2*(1-'B. Parameters'!$B231)","v":0},{"$f":"(O633+O721)/2*(1-'B. Parameters'!$B231)","v":0},{"$f":"(P633+P721)/2*(1-'B. Parameters'!$B231)","v":0},{"$f":"(Q633+Q721)/2*(1-'B. Parameters'!$B231)","v":0},{"$f":"(R633+R721)/2*(1-'B. Parameters'!$B231)","v":0},{"$f":"(S633+S721)/2*(1-'B. Parameters'!$B231)","v":0},{"$f":"(T633+T721)/2*(1-'B. Parameters'!$B231)","v":0},{"$f":"(U633+U721)/2*(1-'B. Parameters'!$B231)","v":0},{"$f":"(V633+V721)/2*(1-'B. Parameters'!$B231)","v":0},{"$f":"(W633+W721)/2*(1-'B. Parameters'!$B231)","v":0},{"$f":"(X633+X721)/2*(1-'B. Parameters'!$B231)","v":0},{"$f":"(Y633+Y721)/2*(1-'B. Parameters'!$B231)","v":0},{"$f":"(Z633+Z721)/2*(1-'B. Parameters'!$B231)","v":0},{"$f":"(AA633+AA721)/2*(1-'B. Parameters'!$B231)","v":0},{"$f":"(AB633+AB721)/2*(1-'B. Parameters'!$B231)","v":0},{"$f":"(AC633+AC721)/2*(1-'B. Parameters'!$B231)","v":0},{"$f":"(AD633+AD721)/2*(1-'B. Parameters'!$B231)","v":0},{"$f":"(AE633+AE721)/2*(1-'B. Parameters'!$B231)","v":0},{"$f":"(AF633+AF721)/2*(1-'B. Parameters'!$B231)","v":0},{"$f":"(AG633+AG721)/2*(1-'B. Parameters'!$B231)","v":0},{"$f":"(AH633+AH721)/2*(1-'B. Parameters'!$B231)","v":0},{"$f":"(AI633+AI721)/2*(1-'B. Parameters'!$B231)","v":0},{"$f":"(AJ633+AJ721)/2*(1-'B. Parameters'!$B231)","v":0},{"$f":"(AK633+AK721)/2*(1-'B. Parameters'!$B231)","v":0},{"$f":"(AL633+AL721)/2*(1-'B. Parameters'!$B231)","v":0},{"$f":"(AM633+AM721)/2*(1-'B. Parameters'!$B231)","v":0},{"$f":"(AN633+AN721)/2*(1-'B. Parameters'!$B231)","v":0},{"$f":"(AO633+AO721)/2*(1-'B. Parameters'!$B231)","v":0},{"$f":"(AP633+AP721)/2*(1-'B. Parameters'!$B231)","v":0},{"$f":"(AQ633+AQ721)/2*(1-'B. Parameters'!$B231)","v":0}]
[2031,0,{"$f":"(C634+C722)/2*(1-'B. Parameters'!$B232)","v":0},{"$f":"(D634+D722)/2*(1-'B. Parameters'!$B232)","v":0},{"$f":"(E634+E722)/2*(1-'B. Parameters'!$B232)","v":0},{"$f":"(F634+F722)/2*(1-'B. Parameters'!$B232)","v":0},{"$f":"(G634+G722)/2*(1-'B. Parameters'!$B232)","v":0},{"$f":"(H634+H722)/2*(1-'B. Parameters'!$B232)","v":0},{"$f":"(I634+I722)/2*(1-'B. Parameters'!$B232)","v":0},{"$f":"(J634+J722)/2*(1-'B. Parameters'!$B232)","v":0},{"$f":"(K634+K722)/2*(1-'B. Parameters'!$B232)","v":0},{"$f":"(L634+L722)/2*(1-'B. Parameters'!$B232)","v":0},{"$f":"(M634+M722)/2*(1-'B. Parameters'!$B232)","v":0},{"$f":"(N634+N722)/2*(1-'B. Parameters'!$B232)","v":0},{"$f":"(O634+O722)/2*(1-'B. Parameters'!$B232)","v":0},{"$f":"(P634+P722)/2*(1-'B. Parameters'!$B232)","v":0},{"$f":"(Q634+Q722)/2*(1-'B. Parameters'!$B232)","v":0},{"$f":"(R634+R722)/2*(1-'B. Parameters'!$B232)","v":0},{"$f":"(S634+S722)/2*(1-'B. Parameters'!$B232)","v":0},{"$f":"(T634+T722)/2*(1-'B. Parameters'!$B232)","v":0},{"$f":"(U634+U722)/2*(1-'B. Parameters'!$B232)","v":0},{"$f":"(V634+V722)/2*(1-'B. Parameters'!$B232)","v":0},{"$f":"(W634+W722)/2*(1-'B. Parameters'!$B232)","v":0},{"$f":"(X634+X722)/2*(1-'B. Parameters'!$B232)","v":0},{"$f":"(Y634+Y722)/2*(1-'B. Parameters'!$B232)","v":0},{"$f":"(Z634+Z722)/2*(1-'B. Parameters'!$B232)","v":0},{"$f":"(AA634+AA722)/2*(1-'B. Parameters'!$B232)","v":0},{"$f":"(AB634+AB722)/2*(1-'B. Parameters'!$B232)","v":0},{"$f":"(AC634+AC722)/2*(1-'B. Parameters'!$B232)","v":0},{"$f":"(AD634+AD722)/2*(1-'B. Parameters'!$B232)","v":0},{"$f":"(AE634+AE722)/2*(1-'B. Parameters'!$B232)","v":0},{"$f":"(AF634+AF722)/2*(1-'B. Parameters'!$B232)","v":0},{"$f":"(AG634+AG722)/2*(1-'B. Parameters'!$B232)","v":0},{"$f":"(AH634+AH722)/2*(1-'B. Parameters'!$B232)","v":0},{"$f":"(AI634+AI722)/2*(1-'B. Parameters'!$B232)","v":0},{"$f":"(AJ634+AJ722)/2*(1-'B. Parameters'!$B232)","v":0},{"$f":"(AK634+AK722)/2*(1-'B. Parameters'!$B232)","v":0},{"$f":"(AL634+AL722)/2*(1-'B. Parameters'!$B232)","v":0},{"$f":"(AM634+AM722)/2*(1-'B. Parameters'!$B232)","v":0},{"$f":"(AN634+AN722)/2*(1-'B. Parameters'!$B232)","v":0},{"$f":"(AO634+AO722)/2*(1-'B. Parameters'!$B232)","v":0},{"$f":"(AP634+AP722)/2*(1-'B. Parameters'!$B232)","v":0},{"$f":"(AQ634+AQ722)/2*(1-'B. Parameters'!$B232)","v":0}]
[2032,0,{"$f":"(C635+C723)/2*(1-'B. Parameters'!$B233)","v":0},{"$f":"(D635+D723)/2*(1-'B. Parameters'!$B233)","v":0},{"$f":"(E635+E723)/2*(1-'B. Parameters'!$B233)","v":0},{"$f":"(F635+F723)/2*(1-'B. Parameters'!$B233)","v":0},{"$f":"(G635+G723)/2*(1-'B. Parameters'!$B233)","v":0},{"$f":"(H635+H723)/2*(1-'B. Parameters'!$B233)","v":0},{"$f":"(I635+I723)/2*(1-'B. Parameters'!$B233)","v":0},{"$f":"(J635+J723)/2*(1-'B. Parameters'!$B233)","v":0},{"$f":"(K635+K723)/2*(1-'B. Parameters'!$B233)","v":0},{"$f":"(L635+L723)/2*(1-'B. Parameters'!$B233)","v":0},{"$f":"(M635+M723)/2*(1-'B. Parameters'!$B233)","v":0},{"$f":"(N635+N723)/2*(1-'B. Parameters'!$B233)","v":0},{"$f":"(O635+O723)/2*(1-'B. Parameters'!$B233)","v":0},{"$f":"(P635+P723)/2*(1-'B. Parameters'!$B233)","v":0},{"$f":"(Q635+Q723)/2*(1-'B. Parameters'!$B233)","v":0},{"$f":"(R635+R723)/2*(1-'B. Parameters'!$B233)","v":0},{"$f":"(S635+S723)/2*(1-'B. Parameters'!$B233)","v":0},{"$f":"(T635+T723)/2*(1-'B. Parameters'!$B233)","v":0},{"$f":"(U635+U723)/2*(1-'B. Parameters'!$B233)","v":0},{"$f":"(V635+V723)/2*(1-'B. Parameters'!$B233)","v":0},{"$f":"(W635+W723)/2*(1-'B. Parameters'!$B233)","v":0},{"$f":"(X635+X723)/2*(1-'B. Parameters'!$B233)","v":0},{"$f":"(Y635+Y723)/2*(1-'B. Parameters'!$B233)","v":0},{"$f":"(Z635+Z723)/2*(1-'B. Parameters'!$B233)","v":0},{"$f":"(AA635+AA723)/2*(1-'B. Parameters'!$B233)","v":0},{"$f":"(AB635+AB723)/2*(1-'B. Parameters'!$B233)","v":0},{"$f":"(AC635+AC723)/2*(1-'B. Parameters'!$B233)","v":0},{"$f":"(AD635+AD723)/2*(1-'B. Parameters'!$B233)","v":0},{"$f":"(AE635+AE723)/2*(1-'B. Parameters'!$B233)","v":0},{"$f":"(AF635+AF723)/2*(1-'B. Parameters'!$B233)","v":0},{"$f":"(AG635+AG723)/2*(1-'B. Parameters'!$B233)","v":0},{"$f":"(AH635+AH723)/2*(1-'B. Parameters'!$B233)","v":0},{"$f":"(AI635+AI723)/2*(1-'B. Parameters'!$B233)","v":0},{"$f":"(AJ635+AJ723)/2*(1-'B. Parameters'!$B233)","v":0},{"$f":"(AK635+AK723)/2*(1-'B. Parameters'!$B233)","v":0},{"$f":"(AL635+AL723)/2*(1-'B. Parameters'!$B233)","v":0},{"$f":"(AM635+AM723)/2*(1-'B. Parameters'!$B233)","v":0},{"$f":"(AN635+AN723)/2*(1-'B. Parameters'!$B233)","v":0},{"$f":"(AO635+AO723)/2*(1-'B. Parameters'!$B233)","v":0},{"$f":"(AP635+AP723)/2*(1-'B. Parameters'!$B233)","v":0},{"$f":"(AQ635+AQ723)/2*(1-'B. Parameters'!$B233)","v":0}]
[2033,0,{"$f":"(C636+C724)/2*(1-'B. Parameters'!$B234)","v":0},{"$f":"(D636+D724)/2*(1-'B. Parameters'!$B234)","v":0},{"$f":"(E636+E724)/2*(1-'B. Parameters'!$B234)","v":0},{"$f":"(F636+F724)/2*(1-'B. Parameters'!$B234)","v":0},{"$f":"(G636+G724)/2*(1-'B. Parameters'!$B234)","v":0},{"$f":"(H636+H724)/2*(1-'B. Parameters'!$B234)","v":0},{"$f":"(I636+I724)/2*(1-'B. Parameters'!$B234)","v":0},{"$f":"(J636+J724)/2*(1-'B. Parameters'!$B234)","v":0},{"$f":"(K636+K724)/2*(1-'B. Parameters'!$B234)","v":0},{"$f":"(L636+L724)/2*(1-'B. Parameters'!$B234)","v":0},{"$f":"(M636+M724)/2*(1-'B. Parameters'!$B234)","v":0},{"$f":"(N636+N724)/2*(1-'B. Parameters'!$B234)","v":0},{"$f":"(O636+O724)/2*(1-'B. Parameters'!$B234)","v":0},{"$f":"(P636+P724)/2*(1-'B. Parameters'!$B234)","v":0},{"$f":"(Q636+Q724)/2*(1-'B. Parameters'!$B234)","v":0},{"$f":"(R636+R724)/2*(1-'B. Parameters'!$B234)","v":0},{"$f":"(S636+S724)/2*(1-'B. Parameters'!$B234)","v":0},{"$f":"(T636+T724)/2*(1-'B. Parameters'!$B234)","v":0},{"$f":"(U636+U724)/2*(1-'B. Parameters'!$B234)","v":0},{"$f":"(V636+V724)/2*(1-'B. Parameters'!$B234)","v":0},{"$f":"(W636+W724)/2*(1-'B. Parameters'!$B234)","v":0},{"$f":"(X636+X724)/2*(1-'B. Parameters'!$B234)","v":0},{"$f":"(Y636+Y724)/2*(1-'B. Parameters'!$B234)","v":0},{"$f":"(Z636+Z724)/2*(1-'B. Parameters'!$B234)","v":0},{"$f":"(AA636+AA724)/2*(1-'B. Parameters'!$B234)","v":0},{"$f":"(AB636+AB724)/2*(1-'B. Parameters'!$B234)","v":0},{"$f":"(AC636+AC724)/2*(1-'B. Parameters'!$B234)","v":0},{"$f":"(AD636+AD724)/2*(1-'B. Parameters'!$B234)","v":0},{"$f":"(AE636+AE724)/2*(1-'B. Parameters'!$B234)","v":0},{"$f":"(AF636+AF724)/2*(1-'B. Parameters'!$B234)","v":0},{"$f":"(AG636+AG724)/2*(1-'B. Parameters'!$B234)","v":0},{"$f":"(AH636+AH724)/2*(1-'B. Parameters'!$B234)","v":0},{"$f":"(AI636+AI724)/2*(1-'B. Parameters'!$B234)","v":0},{"$f":"(AJ636+AJ724)/2*(1-'B. Parameters'!$B234)","v":0},{"$f":"(AK636+AK724)/2*(1-'B. Parameters'!$B234)","v":0},{"$f":"(AL636+AL724)/2*(1-'B. Parameters'!$B234)","v":0},{"$f":"(AM636+AM724)/2*(1-'B. Parameters'!$B234)","v":0},{"$f":"(AN636+AN724)/2*(1-'B. Parameters'!$B234)","v":0},{"$f":"(AO636+AO724)/2*(1-'B. Parameters'!$B234)","v":0},{"$f":"(AP636+AP724)/2*(1-'B. Parameters'!$B234)","v":0},{"$f":"(AQ636+AQ724)/2*(1-'B. Parameters'!$B234)","v":0}]
[2034,0,{"$f":"(C637+C725)/2*(1-'B. Parameters'!$B235)","v":0},{"$f":"(D637+D725)/2*(1-'B. Parameters'!$B235)","v":0},{"$f":"(E637+E725)/2*(1-'B. Parameters'!$B235)","v":0},{"$f":"(F637+F725)/2*(1-'B. Parameters'!$B235)","v":0},{"$f":"(G637+G725)/2*(1-'B. Parameters'!$B235)","v":0},{"$f":"(H637+H725)/2*(1-'B. Parameters'!$B235)","v":0},{"$f":"(I637+I725)/2*(1-'B. Parameters'!$B235)","v":0},{"$f":"(J637+J725)/2*(1-'B. Parameters'!$B235)","v":0},{"$f":"(K637+K725)/2*(1-'B. Parameters'!$B235)","v":0},{"$f":"(L637+L725)/2*(1-'B. Parameters'!$B235)","v":0},{"$f":"(M637+M725)/2*(1-'B. Parameters'!$B235)","v":0},{"$f":"(N637+N725)/2*(1-'B. Parameters'!$B235)","v":0},{"$f":"(O637+O725)/2*(1-'B. Parameters'!$B235)","v":0},{"$f":"(P637+P725)/2*(1-'B. Parameters'!$B235)","v":0},{"$f":"(Q637+Q725)/2*(1-'B. Parameters'!$B235)","v":0},{"$f":"(R637+R725)/2*(1-'B. Parameters'!$B235)","v":0},{"$f":"(S637+S725)/2*(1-'B. Parameters'!$B235)","v":0},{"$f":"(T637+T725)/2*(1-'B. Parameters'!$B235)","v":0},{"$f":"(U637+U725)/2*(1-'B. Parameters'!$B235)","v":0},{"$f":"(V637+V725)/2*(1-'B. Parameters'!$B235)","v":0},{"$f":"(W637+W725)/2*(1-'B. Parameters'!$B235)","v":0},{"$f":"(X637+X725)/2*(1-'B. Parameters'!$B235)","v":0},{"$f":"(Y637+Y725)/2*(1-'B. Parameters'!$B235)","v":0},{"$f":"(Z637+Z725)/2*(1-'B. Parameters'!$B235)","v":0},{"$f":"(AA637+AA725)/2*(1-'B. Parameters'!$B235)","v":0},{"$f":"(AB637+AB725)/2*(1-'B. Parameters'!$B235)","v":0},{"$f":"(AC637+AC725)/2*(1-'B. Parameters'!$B235)","v":0},{"$f":"(AD637+AD725)/2*(1-'B. Parameters'!$B235)","v":0},{"$f":"(AE637+AE725)/2*(1-'B. Parameters'!$B235)","v":0},{"$f":"(AF637+AF725)/2*(1-'B. Parameters'!$B235)","v":0},{"$f":"(AG637+AG725)/2*(1-'B. Parameters'!$B235)","v":0},{"$f":"(AH637+AH725)/2*(1-'B. Parameters'!$B235)","v":0},{"$f":"(AI637+AI725)/2*(1-'B. Parameters'!$B235)","v":0},{"$f":"(AJ637+AJ725)/2*(1-'B. Parameters'!$B235)","v":0},{"$f":"(AK637+AK725)/2*(1-'B. Parameters'!$B235)","v":0},{"$f":"(AL637+AL725)/2*(1-'B. Parameters'!$B235)","v":0},{"$f":"(AM637+AM725)/2*(1-'B. Parameters'!$B235)","v":0},{"$f":"(AN637+AN725)/2*(1-'B. Parameters'!$B235)","v":0},{"$f":"(AO637+AO725)/2*(1-'B. Parameters'!$B235)","v":0},{"$f":"(AP637+AP725)/2*(1-'B. Parameters'!$B235)","v":0},{"$f":"(AQ637+AQ725)/2*(1-'B. Parameters'!$B235)","v":0}]
[2035,0,{"$f":"(C638+C726)/2*(1-'B. Parameters'!$B236)","v":0},{"$f":"(D638+D726)/2*(1-'B. Parameters'!$B236)","v":0},{"$f":"(E638+E726)/2*(1-'B. Parameters'!$B236)","v":0},{"$f":"(F638+F726)/2*(1-'B. Parameters'!$B236)","v":0},{"$f":"(G638+G726)/2*(1-'B. Parameters'!$B236)","v":0},{"$f":"(H638+H726)/2*(1-'B. Parameters'!$B236)","v":0},{"$f":"(I638+I726)/2*(1-'B. Parameters'!$B236)","v":0},{"$f":"(J638+J726)/2*(1-'B. Parameters'!$B236)","v":0},{"$f":"(K638+K726)/2*(1-'B. Parameters'!$B236)","v":0},{"$f":"(L638+L726)/2*(1-'B. Parameters'!$B236)","v":0},{"$f":"(M638+M726)/2*(1-'B. Parameters'!$B236)","v":0},{"$f":"(N638+N726)/2*(1-'B. Parameters'!$B236)","v":0},{"$f":"(O638+O726)/2*(1-'B. Parameters'!$B236)","v":0},{"$f":"(P638+P726)/2*(1-'B. Parameters'!$B236)","v":0},{"$f":"(Q638+Q726)/2*(1-'B. Parameters'!$B236)","v":0},{"$f":"(R638+R726)/2*(1-'B. Parameters'!$B236)","v":0},{"$f":"(S638+S726)/2*(1-'B. Parameters'!$B236)","v":0},{"$f":"(T638+T726)/2*(1-'B. Parameters'!$B236)","v":0},{"$f":"(U638+U726)/2*(1-'B. Parameters'!$B236)","v":0},{"$f":"(V638+V726)/2*(1-'B. Parameters'!$B236)","v":0},{"$f":"(W638+W726)/2*(1-'B. Parameters'!$B236)","v":0},{"$f":"(X638+X726)/2*(1-'B. Parameters'!$B236)","v":0},{"$f":"(Y638+Y726)/2*(1-'B. Parameters'!$B236)","v":0},{"$f":"(Z638+Z726)/2*(1-'B. Parameters'!$B236)","v":0},{"$f":"(AA638+AA726)/2*(1-'B. Parameters'!$B236)","v":0},{"$f":"(AB638+AB726)/2*(1-'B. Parameters'!$B236)","v":0},{"$f":"(AC638+AC726)/2*(1-'B. Parameters'!$B236)","v":0},{"$f":"(AD638+AD726)/2*(1-'B. Parameters'!$B236)","v":0},{"$f":"(AE638+AE726)/2*(1-'B. Parameters'!$B236)","v":0},{"$f":"(AF638+AF726)/2*(1-'B. Parameters'!$B236)","v":0},{"$f":"(AG638+AG726)/2*(1-'B. Parameters'!$B236)","v":0},{"$f":"(AH638+AH726)/2*(1-'B. Parameters'!$B236)","v":0},{"$f":"(AI638+AI726)/2*(1-'B. Parameters'!$B236)","v":0},{"$f":"(AJ638+AJ726)/2*(1-'B. Parameters'!$B236)","v":0},{"$f":"(AK638+AK726)/2*(1-'B. Parameters'!$B236)","v":0},{"$f":"(AL638+AL726)/2*(1-'B. Parameters'!$B236)","v":0},{"$f":"(AM638+AM726)/2*(1-'B. Parameters'!$B236)","v":0},{"$f":"(AN638+AN726)/2*(1-'B. Parameters'!$B236)","v":0},{"$f":"(AO638+AO726)/2*(1-'B. Parameters'!$B236)","v":0},{"$f":"(AP638+AP726)/2*(1-'B. Parameters'!$B236)","v":0},{"$f":"(AQ638+AQ726)/2*(1-'B. Parameters'!$B236)","v":0}]
[2036,0,{"$f":"(C639+C727)/2*(1-'B. Parameters'!$B237)","v":0},{"$f":"(D639+D727)/2*(1-'B. Parameters'!$B237)","v":0},{"$f":"(E639+E727)/2*(1-'B. Parameters'!$B237)","v":0},{"$f":"(F639+F727)/2*(1-'B. Parameters'!$B237)","v":0},{"$f":"(G639+G727)/2*(1-'B. Parameters'!$B237)","v":0},{"$f":"(H639+H727)/2*(1-'B. Parameters'!$B237)","v":0},{"$f":"(I639+I727)/2*(1-'B. Parameters'!$B237)","v":0},{"$f":"(J639+J727)/2*(1-'B. Parameters'!$B237)","v":0},{"$f":"(K639+K727)/2*(1-'B. Parameters'!$B237)","v":0},{"$f":"(L639+L727)/2*(1-'B. Parameters'!$B237)","v":0},{"$f":"(M639+M727)/2*(1-'B. Parameters'!$B237)","v":0},{"$f":"(N639+N727)/2*(1-'B. Parameters'!$B237)","v":0},{"$f":"(O639+O727)/2*(1-'B. Parameters'!$B237)","v":0},{"$f":"(P639+P727)/2*(1-'B. Parameters'!$B237)","v":0},{"$f":"(Q639+Q727)/2*(1-'B. Parameters'!$B237)","v":0},{"$f":"(R639+R727)/2*(1-'B. Parameters'!$B237)","v":0},{"$f":"(S639+S727)/2*(1-'B. Parameters'!$B237)","v":0},{"$f":"(T639+T727)/2*(1-'B. Parameters'!$B237)","v":0},{"$f":"(U639+U727)/2*(1-'B. Parameters'!$B237)","v":0},{"$f":"(V639+V727)/2*(1-'B. Parameters'!$B237)","v":0},{"$f":"(W639+W727)/2*(1-'B. Parameters'!$B237)","v":0},{"$f":"(X639+X727)/2*(1-'B. Parameters'!$B237)","v":0},{"$f":"(Y639+Y727)/2*(1-'B. Parameters'!$B237)","v":0},{"$f":"(Z639+Z727)/2*(1-'B. Parameters'!$B237)","v":0},{"$f":"(AA639+AA727)/2*(1-'B. Parameters'!$B237)","v":0},{"$f":"(AB639+AB727)/2*(1-'B. Parameters'!$B237)","v":0},{"$f":"(AC639+AC727)/2*(1-'B. Parameters'!$B237)","v":0},{"$f":"(AD639+AD727)/2*(1-'B. Parameters'!$B237)","v":0},{"$f":"(AE639+AE727)/2*(1-'B. Parameters'!$B237)","v":0},{"$f":"(AF639+AF727)/2*(1-'B. Parameters'!$B237)","v":0},{"$f":"(AG639+AG727)/2*(1-'B. Parameters'!$B237)","v":0},{"$f":"(AH639+AH727)/2*(1-'B. Parameters'!$B237)","v":0},{"$f":"(AI639+AI727)/2*(1-'B. Parameters'!$B237)","v":0},{"$f":"(AJ639+AJ727)/2*(1-'B. Parameters'!$B237)","v":0},{"$f":"(AK639+AK727)/2*(1-'B. Parameters'!$B237)","v":0},{"$f":"(AL639+AL727)/2*(1-'B. Parameters'!$B237)","v":0},{"$f":"(AM639+AM727)/2*(1-'B. Parameters'!$B237)","v":0},{"$f":"(AN639+AN727)/2*(1-'B. Parameters'!$B237)","v":0},{"$f":"(AO639+AO727)/2*(1-'B. Parameters'!$B237)","v":0},{"$f":"(AP639+AP727)/2*(1-'B. Parameters'!$B237)","v":0},{"$f":"(AQ639+AQ727)/2*(1-'B. Parameters'!$B237)","v":0}]
[2037,0,{"$f":"(C640+C728)/2*(1-'B. Parameters'!$B238)","v":0},{"$f":"(D640+D728)/2*(1-'B. Parameters'!$B238)","v":0},{"$f":"(E640+E728)/2*(1-'B. Parameters'!$B238)","v":0},{"$f":"(F640+F728)/2*(1-'B. Parameters'!$B238)","v":0},{"$f":"(G640+G728)/2*(1-'B. Parameters'!$B238)","v":0},{"$f":"(H640+H728)/2*(1-'B. Parameters'!$B238)","v":0},{"$f":"(I640+I728)/2*(1-'B. Parameters'!$B238)","v":0},{"$f":"(J640+J728)/2*(1-'B. Parameters'!$B238)","v":0},{"$f":"(K640+K728)/2*(1-'B. Parameters'!$B238)","v":0},{"$f":"(L640+L728)/2*(1-'B. Parameters'!$B238)","v":0},{"$f":"(M640+M728)/2*(1-'B. Parameters'!$B238)","v":0},{"$f":"(N640+N728)/2*(1-'B. Parameters'!$B238)","v":0},{"$f":"(O640+O728)/2*(1-'B. Parameters'!$B238)","v":0},{"$f":"(P640+P728)/2*(1-'B. Parameters'!$B238)","v":0},{"$f":"(Q640+Q728)/2*(1-'B. Parameters'!$B238)","v":0},{"$f":"(R640+R728)/2*(1-'B. Parameters'!$B238)","v":0},{"$f":"(S640+S728)/2*(1-'B. Parameters'!$B238)","v":0},{"$f":"(T640+T728)/2*(1-'B. Parameters'!$B238)","v":0},{"$f":"(U640+U728)/2*(1-'B. Parameters'!$B238)","v":0},{"$f":"(V640+V728)/2*(1-'B. Parameters'!$B238)","v":0},{"$f":"(W640+W728)/2*(1-'B. Parameters'!$B238)","v":0},{"$f":"(X640+X728)/2*(1-'B. Parameters'!$B238)","v":0},{"$f":"(Y640+Y728)/2*(1-'B. Parameters'!$B238)","v":0},{"$f":"(Z640+Z728)/2*(1-'B. Parameters'!$B238)","v":0},{"$f":"(AA640+AA728)/2*(1-'B. Parameters'!$B238)","v":0},{"$f":"(AB640+AB728)/2*(1-'B. Parameters'!$B238)","v":0},{"$f":"(AC640+AC728)/2*(1-'B. Parameters'!$B238)","v":0},{"$f":"(AD640+AD728)/2*(1-'B. Parameters'!$B238)","v":0},{"$f":"(AE640+AE728)/2*(1-'B. Parameters'!$B238)","v":0},{"$f":"(AF640+AF728)/2*(1-'B. Parameters'!$B238)","v":0},{"$f":"(AG640+AG728)/2*(1-'B. Parameters'!$B238)","v":0},{"$f":"(AH640+AH728)/2*(1-'B. Parameters'!$B238)","v":0},{"$f":"(AI640+AI728)/2*(1-'B. Parameters'!$B238)","v":0},{"$f":"(AJ640+AJ728)/2*(1-'B. Parameters'!$B238)","v":0},{"$f":"(AK640+AK728)/2*(1-'B. Parameters'!$B238)","v":0},{"$f":"(AL640+AL728)/2*(1-'B. Parameters'!$B238)","v":0},{"$f":"(AM640+AM728)/2*(1-'B. Parameters'!$B238)","v":0},{"$f":"(AN640+AN728)/2*(1-'B. Parameters'!$B238)","v":0},{"$f":"(AO640+AO728)/2*(1-'B. Parameters'!$B238)","v":0},{"$f":"(AP640+AP728)/2*(1-'B. Parameters'!$B238)","v":0},{"$f":"(AQ640+AQ728)/2*(1-'B. Parameters'!$B238)","v":0}]
[2038,0,{"$f":"(C641+C729)/2*(1-'B. Parameters'!$B239)","v":0},{"$f":"(D641+D729)/2*(1-'B. Parameters'!$B239)","v":0},{"$f":"(E641+E729)/2*(1-'B. Parameters'!$B239)","v":0},{"$f":"(F641+F729)/2*(1-'B. Parameters'!$B239)","v":0},{"$f":"(G641+G729)/2*(1-'B. Parameters'!$B239)","v":0},{"$f":"(H641+H729)/2*(1-'B. Parameters'!$B239)","v":0},{"$f":"(I641+I729)/2*(1-'B. Parameters'!$B239)","v":0},{"$f":"(J641+J729)/2*(1-'B. Parameters'!$B239)","v":0},{"$f":"(K641+K729)/2*(1-'B. Parameters'!$B239)","v":0},{"$f":"(L641+L729)/2*(1-'B. Parameters'!$B239)","v":0},{"$f":"(M641+M729)/2*(1-'B. Parameters'!$B239)","v":0},{"$f":"(N641+N729)/2*(1-'B. Parameters'!$B239)","v":0},{"$f":"(O641+O729)/2*(1-'B. Parameters'!$B239)","v":0},{"$f":"(P641+P729)/2*(1-'B. Parameters'!$B239)","v":0},{"$f":"(Q641+Q729)/2*(1-'B. Parameters'!$B239)","v":0},{"$f":"(R641+R729)/2*(1-'B. Parameters'!$B239)","v":0},{"$f":"(S641+S729)/2*(1-'B. Parameters'!$B239)","v":0},{"$f":"(T641+T729)/2*(1-'B. Parameters'!$B239)","v":0},{"$f":"(U641+U729)/2*(1-'B. Parameters'!$B239)","v":0},{"$f":"(V641+V729)/2*(1-'B. Parameters'!$B239)","v":0},{"$f":"(W641+W729)/2*(1-'B. Parameters'!$B239)","v":0},{"$f":"(X641+X729)/2*(1-'B. Parameters'!$B239)","v":0},{"$f":"(Y641+Y729)/2*(1-'B. Parameters'!$B239)","v":0},{"$f":"(Z641+Z729)/2*(1-'B. Parameters'!$B239)","v":0},{"$f":"(AA641+AA729)/2*(1-'B. Parameters'!$B239)","v":0},{"$f":"(AB641+AB729)/2*(1-'B. Parameters'!$B239)","v":0},{"$f":"(AC641+AC729)/2*(1-'B. Parameters'!$B239)","v":0},{"$f":"(AD641+AD729)/2*(1-'B. Parameters'!$B239)","v":0},{"$f":"(AE641+AE729)/2*(1-'B. Parameters'!$B239)","v":0},{"$f":"(AF641+AF729)/2*(1-'B. Parameters'!$B239)","v":0},{"$f":"(AG641+AG729)/2*(1-'B. Parameters'!$B239)","v":0},{"$f":"(AH641+AH729)/2*(1-'B. Parameters'!$B239)","v":0},{"$f":"(AI641+AI729)/2*(1-'B. Parameters'!$B239)","v":0},{"$f":"(AJ641+AJ729)/2*(1-'B. Parameters'!$B239)","v":0},{"$f":"(AK641+AK729)/2*(1-'B. Parameters'!$B239)","v":0},{"$f":"(AL641+AL729)/2*(1-'B. Parameters'!$B239)","v":0},{"$f":"(AM641+AM729)/2*(1-'B. Parameters'!$B239)","v":0},{"$f":"(AN641+AN729)/2*(1-'B. Parameters'!$B239)","v":0},{"$f":"(AO641+AO729)/2*(1-'B. Parameters'!$B239)","v":0},{"$f":"(AP641+AP729)/2*(1-'B. Parameters'!$B239)","v":0},{"$f":"(AQ641+AQ729)/2*(1-'B. Parameters'!$B239)","v":0}]
[2039,0,{"$f":"(C642+C730)/2*(1-'B. Parameters'!$B240)","v":0},{"$f":"(D642+D730)/2*(1-'B. Parameters'!$B240)","v":0},{"$f":"(E642+E730)/2*(1-'B. Parameters'!$B240)","v":0},{"$f":"(F642+F730)/2*(1-'B. Parameters'!$B240)","v":0},{"$f":"(G642+G730)/2*(1-'B. Parameters'!$B240)","v":0},{"$f":"(H642+H730)/2*(1-'B. Parameters'!$B240)","v":0},{"$f":"(I642+I730)/2*(1-'B. Parameters'!$B240)","v":0},{"$f":"(J642+J730)/2*(1-'B. Parameters'!$B240)","v":0},{"$f":"(K642+K730)/2*(1-'B. Parameters'!$B240)","v":0},{"$f":"(L642+L730)/2*(1-'B. Parameters'!$B240)","v":0},{"$f":"(M642+M730)/2*(1-'B. Parameters'!$B240)","v":0},{"$f":"(N642+N730)/2*(1-'B. Parameters'!$B240)","v":0},{"$f":"(O642+O730)/2*(1-'B. Parameters'!$B240)","v":0},{"$f":"(P642+P730)/2*(1-'B. Parameters'!$B240)","v":0},{"$f":"(Q642+Q730)/2*(1-'B. Parameters'!$B240)","v":0},{"$f":"(R642+R730)/2*(1-'B. Parameters'!$B240)","v":0},{"$f":"(S642+S730)/2*(1-'B. Parameters'!$B240)","v":0},{"$f":"(T642+T730)/2*(1-'B. Parameters'!$B240)","v":0},{"$f":"(U642+U730)/2*(1-'B. Parameters'!$B240)","v":0},{"$f":"(V642+V730)/2*(1-'B. Parameters'!$B240)","v":0},{"$f":"(W642+W730)/2*(1-'B. Parameters'!$B240)","v":0},{"$f":"(X642+X730)/2*(1-'B. Parameters'!$B240)","v":0},{"$f":"(Y642+Y730)/2*(1-'B. Parameters'!$B240)","v":0},{"$f":"(Z642+Z730)/2*(1-'B. Parameters'!$B240)","v":0},{"$f":"(AA642+AA730)/2*(1-'B. Parameters'!$B240)","v":0},{"$f":"(AB642+AB730)/2*(1-'B. Parameters'!$B240)","v":0},{"$f":"(AC642+AC730)/2*(1-'B. Parameters'!$B240)","v":0},{"$f":"(AD642+AD730)/2*(1-'B. Parameters'!$B240)","v":0},{"$f":"(AE642+AE730)/2*(1-'B. Parameters'!$B240)","v":0},{"$f":"(AF642+AF730)/2*(1-'B. Parameters'!$B240)","v":0},{"$f":"(AG642+AG730)/2*(1-'B. Parameters'!$B240)","v":0},{"$f":"(AH642+AH730)/2*(1-'B. Parameters'!$B240)","v":0},{"$f":"(AI642+AI730)/2*(1-'B. Parameters'!$B240)","v":0},{"$f":"(AJ642+AJ730)/2*(1-'B. Parameters'!$B240)","v":0},{"$f":"(AK642+AK730)/2*(1-'B. Parameters'!$B240)","v":0},{"$f":"(AL642+AL730)/2*(1-'B. Parameters'!$B240)","v":0},{"$f":"(AM642+AM730)/2*(1-'B. Parameters'!$B240)","v":0},{"$f":"(AN642+AN730)/2*(1-'B. Parameters'!$B240)","v":0},{"$f":"(AO642+AO730)/2*(1-'B. Parameters'!$B240)","v":0},{"$f":"(AP642+AP730)/2*(1-'B. Parameters'!$B240)","v":0},{"$f":"(AQ642+AQ730)/2*(1-'B. Parameters'!$B240)","v":0}]
[2040,0,{"$f":"(C643+C731)/2*(1-'B. Parameters'!$B241)","v":0},{"$f":"(D643+D731)/2*(1-'B. Parameters'!$B241)","v":0},{"$f":"(E643+E731)/2*(1-'B. Parameters'!$B241)","v":0},{"$f":"(F643+F731)/2*(1-'B. Parameters'!$B241)","v":0},{"$f":"(G643+G731)/2*(1-'B. Parameters'!$B241)","v":0},{"$f":"(H643+H731)/2*(1-'B. Parameters'!$B241)","v":0},{"$f":"(I643+I731)/2*(1-'B. Parameters'!$B241)","v":0},{"$f":"(J643+J731)/2*(1-'B. Parameters'!$B241)","v":0},{"$f":"(K643+K731)/2*(1-'B. Parameters'!$B241)","v":0},{"$f":"(L643+L731)/2*(1-'B. Parameters'!$B241)","v":0},{"$f":"(M643+M731)/2*(1-'B. Parameters'!$B241)","v":0},{"$f":"(N643+N731)/2*(1-'B. Parameters'!$B241)","v":0},{"$f":"(O643+O731)/2*(1-'B. Parameters'!$B241)","v":0},{"$f":"(P643+P731)/2*(1-'B. Parameters'!$B241)","v":0},{"$f":"(Q643+Q731)/2*(1-'B. Parameters'!$B241)","v":0},{"$f":"(R643+R731)/2*(1-'B. Parameters'!$B241)","v":0},{"$f":"(S643+S731)/2*(1-'B. Parameters'!$B241)","v":0},{"$f":"(T643+T731)/2*(1-'B. Parameters'!$B241)","v":0},{"$f":"(U643+U731)/2*(1-'B. Parameters'!$B241)","v":0},{"$f":"(V643+V731)/2*(1-'B. Parameters'!$B241)","v":0},{"$f":"(W643+W731)/2*(1-'B. Parameters'!$B241)","v":0},{"$f":"(X643+X731)/2*(1-'B. Parameters'!$B241)","v":0},{"$f":"(Y643+Y731)/2*(1-'B. Parameters'!$B241)","v":0},{"$f":"(Z643+Z731)/2*(1-'B. Parameters'!$B241)","v":0},{"$f":"(AA643+AA731)/2*(1-'B. Parameters'!$B241)","v":0},{"$f":"(AB643+AB731)/2*(1-'B. Parameters'!$B241)","v":0},{"$f":"(AC643+AC731)/2*(1-'B. Parameters'!$B241)","v":0},{"$f":"(AD643+AD731)/2*(1-'B. Parameters'!$B241)","v":0},{"$f":"(AE643+AE731)/2*(1-'B. Parameters'!$B241)","v":0},{"$f":"(AF643+AF731)/2*(1-'B. Parameters'!$B241)","v":0},{"$f":"(AG643+AG731)/2*(1-'B. Parameters'!$B241)","v":0},{"$f":"(AH643+AH731)/2*(1-'B. Parameters'!$B241)","v":0},{"$f":"(AI643+AI731)/2*(1-'B. Parameters'!$B241)","v":0},{"$f":"(AJ643+AJ731)/2*(1-'B. Parameters'!$B241)","v":0},{"$f":"(AK643+AK731)/2*(1-'B. Parameters'!$B241)","v":0},{"$f":"(AL643+AL731)/2*(1-'B. Parameters'!$B241)","v":0},{"$f":"(AM643+AM731)/2*(1-'B. Parameters'!$B241)","v":0},{"$f":"(AN643+AN731)/2*(1-'B. Parameters'!$B241)","v":0},{"$f":"(AO643+AO731)/2*(1-'B. Parameters'!$B241)","v":0},{"$f":"(AP643+AP731)/2*(1-'B. Parameters'!$B241)","v":0},{"$f":"(AQ643+AQ731)/2*(1-'B. Parameters'!$B241)","v":0}]
[2041,0,{"$f":"(C644+C732)/2*(1-'B. Parameters'!$B242)","v":0},{"$f":"(D644+D732)/2*(1-'B. Parameters'!$B242)","v":0},{"$f":"(E644+E732)/2*(1-'B. Parameters'!$B242)","v":0},{"$f":"(F644+F732)/2*(1-'B. Parameters'!$B242)","v":0},{"$f":"(G644+G732)/2*(1-'B. Parameters'!$B242)","v":0},{"$f":"(H644+H732)/2*(1-'B. Parameters'!$B242)","v":0},{"$f":"(I644+I732)/2*(1-'B. Parameters'!$B242)","v":0},{"$f":"(J644+J732)/2*(1-'B. Parameters'!$B242)","v":0},{"$f":"(K644+K732)/2*(1-'B. Parameters'!$B242)","v":0},{"$f":"(L644+L732)/2*(1-'B. Parameters'!$B242)","v":0},{"$f":"(M644+M732)/2*(1-'B. Parameters'!$B242)","v":0},{"$f":"(N644+N732)/2*(1-'B. Parameters'!$B242)","v":0},{"$f":"(O644+O732)/2*(1-'B. Parameters'!$B242)","v":0},{"$f":"(P644+P732)/2*(1-'B. Parameters'!$B242)","v":0},{"$f":"(Q644+Q732)/2*(1-'B. Parameters'!$B242)","v":0},{"$f":"(R644+R732)/2*(1-'B. Parameters'!$B242)","v":0},{"$f":"(S644+S732)/2*(1-'B. Parameters'!$B242)","v":0},{"$f":"(T644+T732)/2*(1-'B. Parameters'!$B242)","v":0},{"$f":"(U644+U732)/2*(1-'B. Parameters'!$B242)","v":0},{"$f":"(V644+V732)/2*(1-'B. Parameters'!$B242)","v":0},{"$f":"(W644+W732)/2*(1-'B. Parameters'!$B242)","v":0},{"$f":"(X644+X732)/2*(1-'B. Parameters'!$B242)","v":0},{"$f":"(Y644+Y732)/2*(1-'B. Parameters'!$B242)","v":0},{"$f":"(Z644+Z732)/2*(1-'B. Parameters'!$B242)","v":0},{"$f":"(AA644+AA732)/2*(1-'B. Parameters'!$B242)","v":0},{"$f":"(AB644+AB732)/2*(1-'B. Parameters'!$B242)","v":0},{"$f":"(AC644+AC732)/2*(1-'B. Parameters'!$B242)","v":0},{"$f":"(AD644+AD732)/2*(1-'B. Parameters'!$B242)","v":0},{"$f":"(AE644+AE732)/2*(1-'B. Parameters'!$B242)","v":0},{"$f":"(AF644+AF732)/2*(1-'B. Parameters'!$B242)","v":0},{"$f":"(AG644+AG732)/2*(1-'B. Parameters'!$B242)","v":0},{"$f":"(AH644+AH732)/2*(1-'B. Parameters'!$B242)","v":0},{"$f":"(AI644+AI732)/2*(1-'B. Parameters'!$B242)","v":0},{"$f":"(AJ644+AJ732)/2*(1-'B. Parameters'!$B242)","v":0},{"$f":"(AK644+AK732)/2*(1-'B. Parameters'!$B242)","v":0},{"$f":"(AL644+AL732)/2*(1-'B. Parameters'!$B242)","v":0},{"$f":"(AM644+AM732)/2*(1-'B. Parameters'!$B242)","v":0},{"$f":"(AN644+AN732)/2*(1-'B. Parameters'!$B242)","v":0},{"$f":"(AO644+AO732)/2*(1-'B. Parameters'!$B242)","v":0},{"$f":"(AP644+AP732)/2*(1-'B. Parameters'!$B242)","v":0},{"$f":"(AQ644+AQ732)/2*(1-'B. Parameters'!$B242)","v":0}]
[2042,0,{"$f":"(C645+C733)/2*(1-'B. Parameters'!$B243)","v":0},{"$f":"(D645+D733)/2*(1-'B. Parameters'!$B243)","v":0},{"$f":"(E645+E733)/2*(1-'B. Parameters'!$B243)","v":0},{"$f":"(F645+F733)/2*(1-'B. Parameters'!$B243)","v":0},{"$f":"(G645+G733)/2*(1-'B. Parameters'!$B243)","v":0},{"$f":"(H645+H733)/2*(1-'B. Parameters'!$B243)","v":0},{"$f":"(I645+I733)/2*(1-'B. Parameters'!$B243)","v":0},{"$f":"(J645+J733)/2*(1-'B. Parameters'!$B243)","v":0},{"$f":"(K645+K733)/2*(1-'B. Parameters'!$B243)","v":0},{"$f":"(L645+L733)/2*(1-'B. Parameters'!$B243)","v":0},{"$f":"(M645+M733)/2*(1-'B. Parameters'!$B243)","v":0},{"$f":"(N645+N733)/2*(1-'B. Parameters'!$B243)","v":0},{"$f":"(O645+O733)/2*(1-'B. Parameters'!$B243)","v":0},{"$f":"(P645+P733)/2*(1-'B. Parameters'!$B243)","v":0},{"$f":"(Q645+Q733)/2*(1-'B. Parameters'!$B243)","v":0},{"$f":"(R645+R733)/2*(1-'B. Parameters'!$B243)","v":0},{"$f":"(S645+S733)/2*(1-'B. Parameters'!$B243)","v":0},{"$f":"(T645+T733)/2*(1-'B. Parameters'!$B243)","v":0},{"$f":"(U645+U733)/2*(1-'B. Parameters'!$B243)","v":0},{"$f":"(V645+V733)/2*(1-'B. Parameters'!$B243)","v":0},{"$f":"(W645+W733)/2*(1-'B. Parameters'!$B243)","v":0},{"$f":"(X645+X733)/2*(1-'B. Parameters'!$B243)","v":0},{"$f":"(Y645+Y733)/2*(1-'B. Parameters'!$B243)","v":0},{"$f":"(Z645+Z733)/2*(1-'B. Parameters'!$B243)","v":0},{"$f":"(AA645+AA733)/2*(1-'B. Parameters'!$B243)","v":0},{"$f":"(AB645+AB733)/2*(1-'B. Parameters'!$B243)","v":0},{"$f":"(AC645+AC733)/2*(1-'B. Parameters'!$B243)","v":0},{"$f":"(AD645+AD733)/2*(1-'B. Parameters'!$B243)","v":0},{"$f":"(AE645+AE733)/2*(1-'B. Parameters'!$B243)","v":0},{"$f":"(AF645+AF733)/2*(1-'B. Parameters'!$B243)","v":0},{"$f":"(AG645+AG733)/2*(1-'B. Parameters'!$B243)","v":0},{"$f":"(AH645+AH733)/2*(1-'B. Parameters'!$B243)","v":0},{"$f":"(AI645+AI733)/2*(1-'B. Parameters'!$B243)","v":0},{"$f":"(AJ645+AJ733)/2*(1-'B. Parameters'!$B243)","v":0},{"$f":"(AK645+AK733)/2*(1-'B. Parameters'!$B243)","v":0},{"$f":"(AL645+AL733)/2*(1-'B. Parameters'!$B243)","v":0},{"$f":"(AM645+AM733)/2*(1-'B. Parameters'!$B243)","v":0},{"$f":"(AN645+AN733)/2*(1-'B. Parameters'!$B243)","v":0},{"$f":"(AO645+AO733)/2*(1-'B. Parameters'!$B243)","v":0},{"$f":"(AP645+AP733)/2*(1-'B. Parameters'!$B243)","v":0},{"$f":"(AQ645+AQ733)/2*(1-'B. Parameters'!$B243)","v":0}]
[2043,0,{"$f":"(C646+C734)/2*(1-'B. Parameters'!$B244)","v":0},{"$f":"(D646+D734)/2*(1-'B. Parameters'!$B244)","v":0},{"$f":"(E646+E734)/2*(1-'B. Parameters'!$B244)","v":0},{"$f":"(F646+F734)/2*(1-'B. Parameters'!$B244)","v":0},{"$f":"(G646+G734)/2*(1-'B. Parameters'!$B244)","v":0},{"$f":"(H646+H734)/2*(1-'B. Parameters'!$B244)","v":0},{"$f":"(I646+I734)/2*(1-'B. Parameters'!$B244)","v":0},{"$f":"(J646+J734)/2*(1-'B. Parameters'!$B244)","v":0},{"$f":"(K646+K734)/2*(1-'B. Parameters'!$B244)","v":0},{"$f":"(L646+L734)/2*(1-'B. Parameters'!$B244)","v":0},{"$f":"(M646+M734)/2*(1-'B. Parameters'!$B244)","v":0},{"$f":"(N646+N734)/2*(1-'B. Parameters'!$B244)","v":0},{"$f":"(O646+O734)/2*(1-'B. Parameters'!$B244)","v":0},{"$f":"(P646+P734)/2*(1-'B. Parameters'!$B244)","v":0},{"$f":"(Q646+Q734)/2*(1-'B. Parameters'!$B244)","v":0},{"$f":"(R646+R734)/2*(1-'B. Parameters'!$B244)","v":0},{"$f":"(S646+S734)/2*(1-'B. Parameters'!$B244)","v":0},{"$f":"(T646+T734)/2*(1-'B. Parameters'!$B244)","v":0},{"$f":"(U646+U734)/2*(1-'B. Parameters'!$B244)","v":0},{"$f":"(V646+V734)/2*(1-'B. Parameters'!$B244)","v":0},{"$f":"(W646+W734)/2*(1-'B. Parameters'!$B244)","v":0},{"$f":"(X646+X734)/2*(1-'B. Parameters'!$B244)","v":0},{"$f":"(Y646+Y734)/2*(1-'B. Parameters'!$B244)","v":0},{"$f":"(Z646+Z734)/2*(1-'B. Parameters'!$B244)","v":0},{"$f":"(AA646+AA734)/2*(1-'B. Parameters'!$B244)","v":0},{"$f":"(AB646+AB734)/2*(1-'B. Parameters'!$B244)","v":0},{"$f":"(AC646+AC734)/2*(1-'B. Parameters'!$B244)","v":0},{"$f":"(AD646+AD734)/2*(1-'B. Parameters'!$B244)","v":0},{"$f":"(AE646+AE734)/2*(1-'B. Parameters'!$B244)","v":0},{"$f":"(AF646+AF734)/2*(1-'B. Parameters'!$B244)","v":0},{"$f":"(AG646+AG734)/2*(1-'B. Parameters'!$B244)","v":0},{"$f":"(AH646+AH734)/2*(1-'B. Parameters'!$B244)","v":0},{"$f":"(AI646+AI734)/2*(1-'B. Parameters'!$B244)","v":0},{"$f":"(AJ646+AJ734)/2*(1-'B. Parameters'!$B244)","v":0},{"$f":"(AK646+AK734)/2*(1-'B. Parameters'!$B244)","v":0},{"$f":"(AL646+AL734)/2*(1-'B. Parameters'!$B244)","v":0},{"$f":"(AM646+AM734)/2*(1-'B. Parameters'!$B244)","v":0},{"$f":"(AN646+AN734)/2*(1-'B. Parameters'!$B244)","v":0},{"$f":"(AO646+AO734)/2*(1-'B. Parameters'!$B244)","v":0},{"$f":"(AP646+AP734)/2*(1-'B. Parameters'!$B244)","v":0},{"$f":"(AQ646+AQ734)/2*(1-'B. Parameters'!$B244)","v":0}]
[2044,0,{"$f":"(C647+C735)/2*(1-'B. Parameters'!$B245)","v":0},{"$f":"(D647+D735)/2*(1-'B. Parameters'!$B245)","v":0},{"$f":"(E647+E735)/2*(1-'B. Parameters'!$B245)","v":0},{"$f":"(F647+F735)/2*(1-'B. Parameters'!$B245)","v":0},{"$f":"(G647+G735)/2*(1-'B. Parameters'!$B245)","v":0},{"$f":"(H647+H735)/2*(1-'B. Parameters'!$B245)","v":0},{"$f":"(I647+I735)/2*(1-'B. Parameters'!$B245)","v":0},{"$f":"(J647+J735)/2*(1-'B. Parameters'!$B245)","v":0},{"$f":"(K647+K735)/2*(1-'B. Parameters'!$B245)","v":0},{"$f":"(L647+L735)/2*(1-'B. Parameters'!$B245)","v":0},{"$f":"(M647+M735)/2*(1-'B. Parameters'!$B245)","v":0},{"$f":"(N647+N735)/2*(1-'B. Parameters'!$B245)","v":0},{"$f":"(O647+O735)/2*(1-'B. Parameters'!$B245)","v":0},{"$f":"(P647+P735)/2*(1-'B. Parameters'!$B245)","v":0},{"$f":"(Q647+Q735)/2*(1-'B. Parameters'!$B245)","v":0},{"$f":"(R647+R735)/2*(1-'B. Parameters'!$B245)","v":0},{"$f":"(S647+S735)/2*(1-'B. Parameters'!$B245)","v":0},{"$f":"(T647+T735)/2*(1-'B. Parameters'!$B245)","v":0},{"$f":"(U647+U735)/2*(1-'B. Parameters'!$B245)","v":0},{"$f":"(V647+V735)/2*(1-'B. Parameters'!$B245)","v":0},{"$f":"(W647+W735)/2*(1-'B. Parameters'!$B245)","v":0},{"$f":"(X647+X735)/2*(1-'B. Parameters'!$B245)","v":0},{"$f":"(Y647+Y735)/2*(1-'B. Parameters'!$B245)","v":0},{"$f":"(Z647+Z735)/2*(1-'B. Parameters'!$B245)","v":0},{"$f":"(AA647+AA735)/2*(1-'B. Parameters'!$B245)","v":0},{"$f":"(AB647+AB735)/2*(1-'B. Parameters'!$B245)","v":0},{"$f":"(AC647+AC735)/2*(1-'B. Parameters'!$B245)","v":0},{"$f":"(AD647+AD735)/2*(1-'B. Parameters'!$B245)","v":0},{"$f":"(AE647+AE735)/2*(1-'B. Parameters'!$B245)","v":0},{"$f":"(AF647+AF735)/2*(1-'B. Parameters'!$B245)","v":0},{"$f":"(AG647+AG735)/2*(1-'B. Parameters'!$B245)","v":0},{"$f":"(AH647+AH735)/2*(1-'B. Parameters'!$B245)","v":0},{"$f":"(AI647+AI735)/2*(1-'B. Parameters'!$B245)","v":0},{"$f":"(AJ647+AJ735)/2*(1-'B. Parameters'!$B245)","v":0},{"$f":"(AK647+AK735)/2*(1-'B. Parameters'!$B245)","v":0},{"$f":"(AL647+AL735)/2*(1-'B. Parameters'!$B245)","v":0},{"$f":"(AM647+AM735)/2*(1-'B. Parameters'!$B245)","v":0},{"$f":"(AN647+AN735)/2*(1-'B. Parameters'!$B245)","v":0},{"$f":"(AO647+AO735)/2*(1-'B. Parameters'!$B245)","v":0},{"$f":"(AP647+AP735)/2*(1-'B. Parameters'!$B245)","v":0},{"$f":"(AQ647+AQ735)/2*(1-'B. Parameters'!$B245)","v":0}]
[2045,0,{"$f":"(C648+C736)/2*(1-'B. Parameters'!$B246)","v":0},{"$f":"(D648+D736)/2*(1-'B. Parameters'!$B246)","v":0},{"$f":"(E648+E736)/2*(1-'B. Parameters'!$B246)","v":0},{"$f":"(F648+F736)/2*(1-'B. Parameters'!$B246)","v":0},{"$f":"(G648+G736)/2*(1-'B. Parameters'!$B246)","v":0},{"$f":"(H648+H736)/2*(1-'B. Parameters'!$B246)","v":0},{"$f":"(I648+I736)/2*(1-'B. Parameters'!$B246)","v":0},{"$f":"(J648+J736)/2*(1-'B. Parameters'!$B246)","v":0},{"$f":"(K648+K736)/2*(1-'B. Parameters'!$B246)","v":0},{"$f":"(L648+L736)/2*(1-'B. Parameters'!$B246)","v":0},{"$f":"(M648+M736)/2*(1-'B. Parameters'!$B246)","v":0},{"$f":"(N648+N736)/2*(1-'B. Parameters'!$B246)","v":0},{"$f":"(O648+O736)/2*(1-'B. Parameters'!$B246)","v":0},{"$f":"(P648+P736)/2*(1-'B. Parameters'!$B246)","v":0},{"$f":"(Q648+Q736)/2*(1-'B. Parameters'!$B246)","v":0},{"$f":"(R648+R736)/2*(1-'B. Parameters'!$B246)","v":0},{"$f":"(S648+S736)/2*(1-'B. Parameters'!$B246)","v":0},{"$f":"(T648+T736)/2*(1-'B. Parameters'!$B246)","v":0},{"$f":"(U648+U736)/2*(1-'B. Parameters'!$B246)","v":0},{"$f":"(V648+V736)/2*(1-'B. Parameters'!$B246)","v":0},{"$f":"(W648+W736)/2*(1-'B. Parameters'!$B246)","v":0},{"$f":"(X648+X736)/2*(1-'B. Parameters'!$B246)","v":0},{"$f":"(Y648+Y736)/2*(1-'B. Parameters'!$B246)","v":0},{"$f":"(Z648+Z736)/2*(1-'B. Parameters'!$B246)","v":0},{"$f":"(AA648+AA736)/2*(1-'B. Parameters'!$B246)","v":0},{"$f":"(AB648+AB736)/2*(1-'B. Parameters'!$B246)","v":0},{"$f":"(AC648+AC736)/2*(1-'B. Parameters'!$B246)","v":0},{"$f":"(AD648+AD736)/2*(1-'B. Parameters'!$B246)","v":0},{"$f":"(AE648+AE736)/2*(1-'B. Parameters'!$B246)","v":0},{"$f":"(AF648+AF736)/2*(1-'B. Parameters'!$B246)","v":0},{"$f":"(AG648+AG736)/2*(1-'B. Parameters'!$B246)","v":0},{"$f":"(AH648+AH736)/2*(1-'B. Parameters'!$B246)","v":0},{"$f":"(AI648+AI736)/2*(1-'B. Parameters'!$B246)","v":0},{"$f":"(AJ648+AJ736)/2*(1-'B. Parameters'!$B246)","v":0},{"$f":"(AK648+AK736)/2*(1-'B. Parameters'!$B246)","v":0},{"$f":"(AL648+AL736)/2*(1-'B. Parameters'!$B246)","v":0},{"$f":"(AM648+AM736)/2*(1-'B. Parameters'!$B246)","v":0},{"$f":"(AN648+AN736)/2*(1-'B. Parameters'!$B246)","v":0},{"$f":"(AO648+AO736)/2*(1-'B. Parameters'!$B246)","v":0},{"$f":"(AP648+AP736)/2*(1-'B. Parameters'!$B246)","v":0},{"$f":"(AQ648+AQ736)/2*(1-'B. Parameters'!$B246)","v":0}]
[2046,0,{"$f":"(C649+C737)/2*(1-'B. Parameters'!$B247)","v":0},{"$f":"(D649+D737)/2*(1-'B. Parameters'!$B247)","v":0},{"$f":"(E649+E737)/2*(1-'B. Parameters'!$B247)","v":0},{"$f":"(F649+F737)/2*(1-'B. Parameters'!$B247)","v":0},{"$f":"(G649+G737)/2*(1-'B. Parameters'!$B247)","v":0},{"$f":"(H649+H737)/2*(1-'B. Parameters'!$B247)","v":0},{"$f":"(I649+I737)/2*(1-'B. Parameters'!$B247)","v":0},{"$f":"(J649+J737)/2*(1-'B. Parameters'!$B247)","v":0},{"$f":"(K649+K737)/2*(1-'B. Parameters'!$B247)","v":0},{"$f":"(L649+L737)/2*(1-'B. Parameters'!$B247)","v":0},{"$f":"(M649+M737)/2*(1-'B. Parameters'!$B247)","v":0},{"$f":"(N649+N737)/2*(1-'B. Parameters'!$B247)","v":0},{"$f":"(O649+O737)/2*(1-'B. Parameters'!$B247)","v":0},{"$f":"(P649+P737)/2*(1-'B. Parameters'!$B247)","v":0},{"$f":"(Q649+Q737)/2*(1-'B. Parameters'!$B247)","v":0},{"$f":"(R649+R737)/2*(1-'B. Parameters'!$B247)","v":0},{"$f":"(S649+S737)/2*(1-'B. Parameters'!$B247)","v":0},{"$f":"(T649+T737)/2*(1-'B. Parameters'!$B247)","v":0},{"$f":"(U649+U737)/2*(1-'B. Parameters'!$B247)","v":0},{"$f":"(V649+V737)/2*(1-'B. Parameters'!$B247)","v":0},{"$f":"(W649+W737)/2*(1-'B. Parameters'!$B247)","v":0},{"$f":"(X649+X737)/2*(1-'B. Parameters'!$B247)","v":0},{"$f":"(Y649+Y737)/2*(1-'B. Parameters'!$B247)","v":0},{"$f":"(Z649+Z737)/2*(1-'B. Parameters'!$B247)","v":0},{"$f":"(AA649+AA737)/2*(1-'B. Parameters'!$B247)","v":0},{"$f":"(AB649+AB737)/2*(1-'B. Parameters'!$B247)","v":0},{"$f":"(AC649+AC737)/2*(1-'B. Parameters'!$B247)","v":0},{"$f":"(AD649+AD737)/2*(1-'B. Parameters'!$B247)","v":0},{"$f":"(AE649+AE737)/2*(1-'B. Parameters'!$B247)","v":0},{"$f":"(AF649+AF737)/2*(1-'B. Parameters'!$B247)","v":0},{"$f":"(AG649+AG737)/2*(1-'B. Parameters'!$B247)","v":0},{"$f":"(AH649+AH737)/2*(1-'B. Parameters'!$B247)","v":0},{"$f":"(AI649+AI737)/2*(1-'B. Parameters'!$B247)","v":0},{"$f":"(AJ649+AJ737)/2*(1-'B. Parameters'!$B247)","v":0},{"$f":"(AK649+AK737)/2*(1-'B. Parameters'!$B247)","v":0},{"$f":"(AL649+AL737)/2*(1-'B. Parameters'!$B247)","v":0},{"$f":"(AM649+AM737)/2*(1-'B. Parameters'!$B247)","v":0},{"$f":"(AN649+AN737)/2*(1-'B. Parameters'!$B247)","v":0},{"$f":"(AO649+AO737)/2*(1-'B. Parameters'!$B247)","v":0},{"$f":"(AP649+AP737)/2*(1-'B. Parameters'!$B247)","v":0},{"$f":"(AQ649+AQ737)/2*(1-'B. Parameters'!$B247)","v":0}]
[2047,0,{"$f":"(C650+C738)/2*(1-'B. Parameters'!$B248)","v":0},{"$f":"(D650+D738)/2*(1-'B. Parameters'!$B248)","v":0},{"$f":"(E650+E738)/2*(1-'B. Parameters'!$B248)","v":0},{"$f":"(F650+F738)/2*(1-'B. Parameters'!$B248)","v":0},{"$f":"(G650+G738)/2*(1-'B. Parameters'!$B248)","v":0},{"$f":"(H650+H738)/2*(1-'B. Parameters'!$B248)","v":0},{"$f":"(I650+I738)/2*(1-'B. Parameters'!$B248)","v":0},{"$f":"(J650+J738)/2*(1-'B. Parameters'!$B248)","v":0},{"$f":"(K650+K738)/2*(1-'B. Parameters'!$B248)","v":0},{"$f":"(L650+L738)/2*(1-'B. Parameters'!$B248)","v":0},{"$f":"(M650+M738)/2*(1-'B. Parameters'!$B248)","v":0},{"$f":"(N650+N738)/2*(1-'B. Parameters'!$B248)","v":0},{"$f":"(O650+O738)/2*(1-'B. Parameters'!$B248)","v":0},{"$f":"(P650+P738)/2*(1-'B. Parameters'!$B248)","v":0},{"$f":"(Q650+Q738)/2*(1-'B. Parameters'!$B248)","v":0},{"$f":"(R650+R738)/2*(1-'B. Parameters'!$B248)","v":0},{"$f":"(S650+S738)/2*(1-'B. Parameters'!$B248)","v":0},{"$f":"(T650+T738)/2*(1-'B. Parameters'!$B248)","v":0},{"$f":"(U650+U738)/2*(1-'B. Parameters'!$B248)","v":0},{"$f":"(V650+V738)/2*(1-'B. Parameters'!$B248)","v":0},{"$f":"(W650+W738)/2*(1-'B. Parameters'!$B248)","v":0},{"$f":"(X650+X738)/2*(1-'B. Parameters'!$B248)","v":0},{"$f":"(Y650+Y738)/2*(1-'B. Parameters'!$B248)","v":0},{"$f":"(Z650+Z738)/2*(1-'B. Parameters'!$B248)","v":0},{"$f":"(AA650+AA738)/2*(1-'B. Parameters'!$B248)","v":0},{"$f":"(AB650+AB738)/2*(1-'B. Parameters'!$B248)","v":0},{"$f":"(AC650+AC738)/2*(1-'B. Parameters'!$B248)","v":0},{"$f":"(AD650+AD738)/2*(1-'B. Parameters'!$B248)","v":0},{"$f":"(AE650+AE738)/2*(1-'B. Parameters'!$B248)","v":0},{"$f":"(AF650+AF738)/2*(1-'B. Parameters'!$B248)","v":0},{"$f":"(AG650+AG738)/2*(1-'B. Parameters'!$B248)","v":0},{"$f":"(AH650+AH738)/2*(1-'B. Parameters'!$B248)","v":0},{"$f":"(AI650+AI738)/2*(1-'B. Parameters'!$B248)","v":0},{"$f":"(AJ650+AJ738)/2*(1-'B. Parameters'!$B248)","v":0},{"$f":"(AK650+AK738)/2*(1-'B. Parameters'!$B248)","v":0},{"$f":"(AL650+AL738)/2*(1-'B. Parameters'!$B248)","v":0},{"$f":"(AM650+AM738)/2*(1-'B. Parameters'!$B248)","v":0},{"$f":"(AN650+AN738)/2*(1-'B. Parameters'!$B248)","v":0},{"$f":"(AO650+AO738)/2*(1-'B. Parameters'!$B248)","v":0},{"$f":"(AP650+AP738)/2*(1-'B. Parameters'!$B248)","v":0},{"$f":"(AQ650+AQ738)/2*(1-'B. Parameters'!$B248)","v":0}]
[2048,0,{"$f":"(C651+C739)/2*(1-'B. Parameters'!$B249)","v":0},{"$f":"(D651+D739)/2*(1-'B. Parameters'!$B249)","v":0},{"$f":"(E651+E739)/2*(1-'B. Parameters'!$B249)","v":0},{"$f":"(F651+F739)/2*(1-'B. Parameters'!$B249)","v":0},{"$f":"(G651+G739)/2*(1-'B. Parameters'!$B249)","v":0},{"$f":"(H651+H739)/2*(1-'B. Parameters'!$B249)","v":0},{"$f":"(I651+I739)/2*(1-'B. Parameters'!$B249)","v":0},{"$f":"(J651+J739)/2*(1-'B. Parameters'!$B249)","v":0},{"$f":"(K651+K739)/2*(1-'B. Parameters'!$B249)","v":0},{"$f":"(L651+L739)/2*(1-'B. Parameters'!$B249)","v":0},{"$f":"(M651+M739)/2*(1-'B. Parameters'!$B249)","v":0},{"$f":"(N651+N739)/2*(1-'B. Parameters'!$B249)","v":0},{"$f":"(O651+O739)/2*(1-'B. Parameters'!$B249)","v":0},{"$f":"(P651+P739)/2*(1-'B. Parameters'!$B249)","v":0},{"$f":"(Q651+Q739)/2*(1-'B. Parameters'!$B249)","v":0},{"$f":"(R651+R739)/2*(1-'B. Parameters'!$B249)","v":0},{"$f":"(S651+S739)/2*(1-'B. Parameters'!$B249)","v":0},{"$f":"(T651+T739)/2*(1-'B. Parameters'!$B249)","v":0},{"$f":"(U651+U739)/2*(1-'B. Parameters'!$B249)","v":0},{"$f":"(V651+V739)/2*(1-'B. Parameters'!$B249)","v":0},{"$f":"(W651+W739)/2*(1-'B. Parameters'!$B249)","v":0},{"$f":"(X651+X739)/2*(1-'B. Parameters'!$B249)","v":0},{"$f":"(Y651+Y739)/2*(1-'B. Parameters'!$B249)","v":0},{"$f":"(Z651+Z739)/2*(1-'B. Parameters'!$B249)","v":0},{"$f":"(AA651+AA739)/2*(1-'B. Parameters'!$B249)","v":0},{"$f":"(AB651+AB739)/2*(1-'B. Parameters'!$B249)","v":0},{"$f":"(AC651+AC739)/2*(1-'B. Parameters'!$B249)","v":0},{"$f":"(AD651+AD739)/2*(1-'B. Parameters'!$B249)","v":0},{"$f":"(AE651+AE739)/2*(1-'B. Parameters'!$B249)","v":0},{"$f":"(AF651+AF739)/2*(1-'B. Parameters'!$B249)","v":0},{"$f":"(AG651+AG739)/2*(1-'B. Parameters'!$B249)","v":0},{"$f":"(AH651+AH739)/2*(1-'B. Parameters'!$B249)","v":0},{"$f":"(AI651+AI739)/2*(1-'B. Parameters'!$B249)","v":0},{"$f":"(AJ651+AJ739)/2*(1-'B. Parameters'!$B249)","v":0},{"$f":"(AK651+AK739)/2*(1-'B. Parameters'!$B249)","v":0},{"$f":"(AL651+AL739)/2*(1-'B. Parameters'!$B249)","v":0},{"$f":"(AM651+AM739)/2*(1-'B. Parameters'!$B249)","v":0},{"$f":"(AN651+AN739)/2*(1-'B. Parameters'!$B249)","v":0},{"$f":"(AO651+AO739)/2*(1-'B. Parameters'!$B249)","v":0},{"$f":"(AP651+AP739)/2*(1-'B. Parameters'!$B249)","v":0},{"$f":"(AQ651+AQ739)/2*(1-'B. Parameters'!$B249)","v":0}]
[2049,0,{"$f":"(C652+C740)/2*(1-'B. Parameters'!$B250)","v":0},{"$f":"(D652+D740)/2*(1-'B. Parameters'!$B250)","v":0},{"$f":"(E652+E740)/2*(1-'B. Parameters'!$B250)","v":0},{"$f":"(F652+F740)/2*(1-'B. Parameters'!$B250)","v":0},{"$f":"(G652+G740)/2*(1-'B. Parameters'!$B250)","v":0},{"$f":"(H652+H740)/2*(1-'B. Parameters'!$B250)","v":0},{"$f":"(I652+I740)/2*(1-'B. Parameters'!$B250)","v":0},{"$f":"(J652+J740)/2*(1-'B. Parameters'!$B250)","v":0},{"$f":"(K652+K740)/2*(1-'B. Parameters'!$B250)","v":0},{"$f":"(L652+L740)/2*(1-'B. Parameters'!$B250)","v":0},{"$f":"(M652+M740)/2*(1-'B. Parameters'!$B250)","v":0},{"$f":"(N652+N740)/2*(1-'B. Parameters'!$B250)","v":0},{"$f":"(O652+O740)/2*(1-'B. Parameters'!$B250)","v":0},{"$f":"(P652+P740)/2*(1-'B. Parameters'!$B250)","v":0},{"$f":"(Q652+Q740)/2*(1-'B. Parameters'!$B250)","v":0},{"$f":"(R652+R740)/2*(1-'B. Parameters'!$B250)","v":0},{"$f":"(S652+S740)/2*(1-'B. Parameters'!$B250)","v":0},{"$f":"(T652+T740)/2*(1-'B. Parameters'!$B250)","v":0},{"$f":"(U652+U740)/2*(1-'B. Parameters'!$B250)","v":0},{"$f":"(V652+V740)/2*(1-'B. Parameters'!$B250)","v":0},{"$f":"(W652+W740)/2*(1-'B. Parameters'!$B250)","v":0},{"$f":"(X652+X740)/2*(1-'B. Parameters'!$B250)","v":0},{"$f":"(Y652+Y740)/2*(1-'B. Parameters'!$B250)","v":0},{"$f":"(Z652+Z740)/2*(1-'B. Parameters'!$B250)","v":0},{"$f":"(AA652+AA740)/2*(1-'B. Parameters'!$B250)","v":0},{"$f":"(AB652+AB740)/2*(1-'B. Parameters'!$B250)","v":0},{"$f":"(AC652+AC740)/2*(1-'B. Parameters'!$B250)","v":0},{"$f":"(AD652+AD740)/2*(1-'B. Parameters'!$B250)","v":0},{"$f":"(AE652+AE740)/2*(1-'B. Parameters'!$B250)","v":0},{"$f":"(AF652+AF740)/2*(1-'B. Parameters'!$B250)","v":0},{"$f":"(AG652+AG740)/2*(1-'B. Parameters'!$B250)","v":0},{"$f":"(AH652+AH740)/2*(1-'B. Parameters'!$B250)","v":0},{"$f":"(AI652+AI740)/2*(1-'B. Parameters'!$B250)","v":0},{"$f":"(AJ652+AJ740)/2*(1-'B. Parameters'!$B250)","v":0},{"$f":"(AK652+AK740)/2*(1-'B. Parameters'!$B250)","v":0},{"$f":"(AL652+AL740)/2*(1-'B. Parameters'!$B250)","v":0},{"$f":"(AM652+AM740)/2*(1-'B. Parameters'!$B250)","v":0},{"$f":"(AN652+AN740)/2*(1-'B. Parameters'!$B250)","v":0},{"$f":"(AO652+AO740)/2*(1-'B. Parameters'!$B250)","v":0},{"$f":"(AP652+AP740)/2*(1-'B. Parameters'!$B250)","v":0},{"$f":"(AQ652+AQ740)/2*(1-'B. Parameters'!$B250)","v":0}]
[2050,0,{"$f":"(C653+C741)/2*(1-'B. Parameters'!$B251)","v":0},{"$f":"(D653+D741)/2*(1-'B. Parameters'!$B251)","v":0},{"$f":"(E653+E741)/2*(1-'B. Parameters'!$B251)","v":0},{"$f":"(F653+F741)/2*(1-'B. Parameters'!$B251)","v":0},{"$f":"(G653+G741)/2*(1-'B. Parameters'!$B251)","v":0},{"$f":"(H653+H741)/2*(1-'B. Parameters'!$B251)","v":0},{"$f":"(I653+I741)/2*(1-'B. Parameters'!$B251)","v":0},{"$f":"(J653+J741)/2*(1-'B. Parameters'!$B251)","v":0},{"$f":"(K653+K741)/2*(1-'B. Parameters'!$B251)","v":0},{"$f":"(L653+L741)/2*(1-'B. Parameters'!$B251)","v":0},{"$f":"(M653+M741)/2*(1-'B. Parameters'!$B251)","v":0},{"$f":"(N653+N741)/2*(1-'B. Parameters'!$B251)","v":0},{"$f":"(O653+O741)/2*(1-'B. Parameters'!$B251)","v":0},{"$f":"(P653+P741)/2*(1-'B. Parameters'!$B251)","v":0},{"$f":"(Q653+Q741)/2*(1-'B. Parameters'!$B251)","v":0},{"$f":"(R653+R741)/2*(1-'B. Parameters'!$B251)","v":0},{"$f":"(S653+S741)/2*(1-'B. Parameters'!$B251)","v":0},{"$f":"(T653+T741)/2*(1-'B. Parameters'!$B251)","v":0},{"$f":"(U653+U741)/2*(1-'B. Parameters'!$B251)","v":0},{"$f":"(V653+V741)/2*(1-'B. Parameters'!$B251)","v":0},{"$f":"(W653+W741)/2*(1-'B. Parameters'!$B251)","v":0},{"$f":"(X653+X741)/2*(1-'B. Parameters'!$B251)","v":0},{"$f":"(Y653+Y741)/2*(1-'B. Parameters'!$B251)","v":0},{"$f":"(Z653+Z741)/2*(1-'B. Parameters'!$B251)","v":0},{"$f":"(AA653+AA741)/2*(1-'B. Parameters'!$B251)","v":0},{"$f":"(AB653+AB741)/2*(1-'B. Parameters'!$B251)","v":0},{"$f":"(AC653+AC741)/2*(1-'B. Parameters'!$B251)","v":0},{"$f":"(AD653+AD741)/2*(1-'B. Parameters'!$B251)","v":0},{"$f":"(AE653+AE741)/2*(1-'B. Parameters'!$B251)","v":0},{"$f":"(AF653+AF741)/2*(1-'B. Parameters'!$B251)","v":0},{"$f":"(AG653+AG741)/2*(1-'B. Parameters'!$B251)","v":0},{"$f":"(AH653+AH741)/2*(1-'B. Parameters'!$B251)","v":0},{"$f":"(AI653+AI741)/2*(1-'B. Parameters'!$B251)","v":0},{"$f":"(AJ653+AJ741)/2*(1-'B. Parameters'!$B251)","v":0},{"$f":"(AK653+AK741)/2*(1-'B. Parameters'!$B251)","v":0},{"$f":"(AL653+AL741)/2*(1-'B. Parameters'!$B251)","v":0},{"$f":"(AM653+AM741)/2*(1-'B. Parameters'!$B251)","v":0},{"$f":"(AN653+AN741)/2*(1-'B. Parameters'!$B251)","v":0},{"$f":"(AO653+AO741)/2*(1-'B. Parameters'!$B251)","v":0},{"$f":"(AP653+AP741)/2*(1-'B. Parameters'!$B251)","v":0},{"$f":"(AQ653+AQ741)/2*(1-'B. Parameters'!$B251)","v":0}]
[2051,0,{"$f":"(C654+C742)/2*(1-'B. Parameters'!$B252)","v":0},{"$f":"(D654+D742)/2*(1-'B. Parameters'!$B252)","v":0},{"$f":"(E654+E742)/2*(1-'B. Parameters'!$B252)","v":0},{"$f":"(F654+F742)/2*(1-'B. Parameters'!$B252)","v":0},{"$f":"(G654+G742)/2*(1-'B. Parameters'!$B252)","v":0},{"$f":"(H654+H742)/2*(1-'B. Parameters'!$B252)","v":0},{"$f":"(I654+I742)/2*(1-'B. Parameters'!$B252)","v":0},{"$f":"(J654+J742)/2*(1-'B. Parameters'!$B252)","v":0},{"$f":"(K654+K742)/2*(1-'B. Parameters'!$B252)","v":0},{"$f":"(L654+L742)/2*(1-'B. Parameters'!$B252)","v":0},{"$f":"(M654+M742)/2*(1-'B. Parameters'!$B252)","v":0},{"$f":"(N654+N742)/2*(1-'B. Parameters'!$B252)","v":0},{"$f":"(O654+O742)/2*(1-'B. Parameters'!$B252)","v":0},{"$f":"(P654+P742)/2*(1-'B. Parameters'!$B252)","v":0},{"$f":"(Q654+Q742)/2*(1-'B. Parameters'!$B252)","v":0},{"$f":"(R654+R742)/2*(1-'B. Parameters'!$B252)","v":0},{"$f":"(S654+S742)/2*(1-'B. Parameters'!$B252)","v":0},{"$f":"(T654+T742)/2*(1-'B. Parameters'!$B252)","v":0},{"$f":"(U654+U742)/2*(1-'B. Parameters'!$B252)","v":0},{"$f":"(V654+V742)/2*(1-'B. Parameters'!$B252)","v":0},{"$f":"(W654+W742)/2*(1-'B. Parameters'!$B252)","v":0},{"$f":"(X654+X742)/2*(1-'B. Parameters'!$B252)","v":0},{"$f":"(Y654+Y742)/2*(1-'B. Parameters'!$B252)","v":0},{"$f":"(Z654+Z742)/2*(1-'B. Parameters'!$B252)","v":0},{"$f":"(AA654+AA742)/2*(1-'B. Parameters'!$B252)","v":0},{"$f":"(AB654+AB742)/2*(1-'B. Parameters'!$B252)","v":0},{"$f":"(AC654+AC742)/2*(1-'B. Parameters'!$B252)","v":0},{"$f":"(AD654+AD742)/2*(1-'B. Parameters'!$B252)","v":0},{"$f":"(AE654+AE742)/2*(1-'B. Parameters'!$B252)","v":0},{"$f":"(AF654+AF742)/2*(1-'B. Parameters'!$B252)","v":0},{"$f":"(AG654+AG742)/2*(1-'B. Parameters'!$B252)","v":0},{"$f":"(AH654+AH742)/2*(1-'B. Parameters'!$B252)","v":0},{"$f":"(AI654+AI742)/2*(1-'B. Parameters'!$B252)","v":0},{"$f":"(AJ654+AJ742)/2*(1-'B. Parameters'!$B252)","v":0},{"$f":"(AK654+AK742)/2*(1-'B. Parameters'!$B252)","v":0},{"$f":"(AL654+AL742)/2*(1-'B. Parameters'!$B252)","v":0},{"$f":"(AM654+AM742)/2*(1-'B. Parameters'!$B252)","v":0},{"$f":"(AN654+AN742)/2*(1-'B. Parameters'!$B252)","v":0},{"$f":"(AO654+AO742)/2*(1-'B. Parameters'!$B252)","v":0},{"$f":"(AP654+AP742)/2*(1-'B. Parameters'!$B252)","v":0},{"$f":"(AQ654+AQ742)/2*(1-'B. Parameters'!$B252)","v":0}]
[2052,0,{"$f":"(C655+C743)/2*(1-'B. Parameters'!$B253)","v":0},{"$f":"(D655+D743)/2*(1-'B. Parameters'!$B253)","v":0},{"$f":"(E655+E743)/2*(1-'B. Parameters'!$B253)","v":0},{"$f":"(F655+F743)/2*(1-'B. Parameters'!$B253)","v":0},{"$f":"(G655+G743)/2*(1-'B. Parameters'!$B253)","v":0},{"$f":"(H655+H743)/2*(1-'B. Parameters'!$B253)","v":0},{"$f":"(I655+I743)/2*(1-'B. Parameters'!$B253)","v":0},{"$f":"(J655+J743)/2*(1-'B. Parameters'!$B253)","v":0},{"$f":"(K655+K743)/2*(1-'B. Parameters'!$B253)","v":0},{"$f":"(L655+L743)/2*(1-'B. Parameters'!$B253)","v":0},{"$f":"(M655+M743)/2*(1-'B. Parameters'!$B253)","v":0},{"$f":"(N655+N743)/2*(1-'B. Parameters'!$B253)","v":0},{"$f":"(O655+O743)/2*(1-'B. Parameters'!$B253)","v":0},{"$f":"(P655+P743)/2*(1-'B. Parameters'!$B253)","v":0},{"$f":"(Q655+Q743)/2*(1-'B. Parameters'!$B253)","v":0},{"$f":"(R655+R743)/2*(1-'B. Parameters'!$B253)","v":0},{"$f":"(S655+S743)/2*(1-'B. Parameters'!$B253)","v":0},{"$f":"(T655+T743)/2*(1-'B. Parameters'!$B253)","v":0},{"$f":"(U655+U743)/2*(1-'B. Parameters'!$B253)","v":0},{"$f":"(V655+V743)/2*(1-'B. Parameters'!$B253)","v":0},{"$f":"(W655+W743)/2*(1-'B. Parameters'!$B253)","v":0},{"$f":"(X655+X743)/2*(1-'B. Parameters'!$B253)","v":0},{"$f":"(Y655+Y743)/2*(1-'B. Parameters'!$B253)","v":0},{"$f":"(Z655+Z743)/2*(1-'B. Parameters'!$B253)","v":0},{"$f":"(AA655+AA743)/2*(1-'B. Parameters'!$B253)","v":0},{"$f":"(AB655+AB743)/2*(1-'B. Parameters'!$B253)","v":0},{"$f":"(AC655+AC743)/2*(1-'B. Parameters'!$B253)","v":0},{"$f":"(AD655+AD743)/2*(1-'B. Parameters'!$B253)","v":0},{"$f":"(AE655+AE743)/2*(1-'B. Parameters'!$B253)","v":0},{"$f":"(AF655+AF743)/2*(1-'B. Parameters'!$B253)","v":0},{"$f":"(AG655+AG743)/2*(1-'B. Parameters'!$B253)","v":0},{"$f":"(AH655+AH743)/2*(1-'B. Parameters'!$B253)","v":0},{"$f":"(AI655+AI743)/2*(1-'B. Parameters'!$B253)","v":0},{"$f":"(AJ655+AJ743)/2*(1-'B. Parameters'!$B253)","v":0},{"$f":"(AK655+AK743)/2*(1-'B. Parameters'!$B253)","v":0},{"$f":"(AL655+AL743)/2*(1-'B. Parameters'!$B253)","v":0},{"$f":"(AM655+AM743)/2*(1-'B. Parameters'!$B253)","v":0},{"$f":"(AN655+AN743)/2*(1-'B. Parameters'!$B253)","v":0},{"$f":"(AO655+AO743)/2*(1-'B. Parameters'!$B253)","v":0},{"$f":"(AP655+AP743)/2*(1-'B. Parameters'!$B253)","v":0},{"$f":"(AQ655+AQ743)/2*(1-'B. Parameters'!$B253)","v":0}]
[2053,0,{"$f":"(C656+C744)/2*(1-'B. Parameters'!$B254)","v":0},{"$f":"(D656+D744)/2*(1-'B. Parameters'!$B254)","v":0},{"$f":"(E656+E744)/2*(1-'B. Parameters'!$B254)","v":0},{"$f":"(F656+F744)/2*(1-'B. Parameters'!$B254)","v":0},{"$f":"(G656+G744)/2*(1-'B. Parameters'!$B254)","v":0},{"$f":"(H656+H744)/2*(1-'B. Parameters'!$B254)","v":0},{"$f":"(I656+I744)/2*(1-'B. Parameters'!$B254)","v":0},{"$f":"(J656+J744)/2*(1-'B. Parameters'!$B254)","v":0},{"$f":"(K656+K744)/2*(1-'B. Parameters'!$B254)","v":0},{"$f":"(L656+L744)/2*(1-'B. Parameters'!$B254)","v":0},{"$f":"(M656+M744)/2*(1-'B. Parameters'!$B254)","v":0},{"$f":"(N656+N744)/2*(1-'B. Parameters'!$B254)","v":0},{"$f":"(O656+O744)/2*(1-'B. Parameters'!$B254)","v":0},{"$f":"(P656+P744)/2*(1-'B. Parameters'!$B254)","v":0},{"$f":"(Q656+Q744)/2*(1-'B. Parameters'!$B254)","v":0},{"$f":"(R656+R744)/2*(1-'B. Parameters'!$B254)","v":0},{"$f":"(S656+S744)/2*(1-'B. Parameters'!$B254)","v":0},{"$f":"(T656+T744)/2*(1-'B. Parameters'!$B254)","v":0},{"$f":"(U656+U744)/2*(1-'B. Parameters'!$B254)","v":0},{"$f":"(V656+V744)/2*(1-'B. Parameters'!$B254)","v":0},{"$f":"(W656+W744)/2*(1-'B. Parameters'!$B254)","v":0},{"$f":"(X656+X744)/2*(1-'B. Parameters'!$B254)","v":0},{"$f":"(Y656+Y744)/2*(1-'B. Parameters'!$B254)","v":0},{"$f":"(Z656+Z744)/2*(1-'B. Parameters'!$B254)","v":0},{"$f":"(AA656+AA744)/2*(1-'B. Parameters'!$B254)","v":0},{"$f":"(AB656+AB744)/2*(1-'B. Parameters'!$B254)","v":0},{"$f":"(AC656+AC744)/2*(1-'B. Parameters'!$B254)","v":0},{"$f":"(AD656+AD744)/2*(1-'B. Parameters'!$B254)","v":0},{"$f":"(AE656+AE744)/2*(1-'B. Parameters'!$B254)","v":0},{"$f":"(AF656+AF744)/2*(1-'B. Parameters'!$B254)","v":0},{"$f":"(AG656+AG744)/2*(1-'B. Parameters'!$B254)","v":0},{"$f":"(AH656+AH744)/2*(1-'B. Parameters'!$B254)","v":0},{"$f":"(AI656+AI744)/2*(1-'B. Parameters'!$B254)","v":0},{"$f":"(AJ656+AJ744)/2*(1-'B. Parameters'!$B254)","v":0},{"$f":"(AK656+AK744)/2*(1-'B. Parameters'!$B254)","v":0},{"$f":"(AL656+AL744)/2*(1-'B. Parameters'!$B254)","v":0},{"$f":"(AM656+AM744)/2*(1-'B. Parameters'!$B254)","v":0},{"$f":"(AN656+AN744)/2*(1-'B. Parameters'!$B254)","v":0},{"$f":"(AO656+AO744)/2*(1-'B. Parameters'!$B254)","v":0},{"$f":"(AP656+AP744)/2*(1-'B. Parameters'!$B254)","v":0},{"$f":"(AQ656+AQ744)/2*(1-'B. Parameters'!$B254)","v":0}]
[2054,0,{"$f":"(C657+C745)/2*(1-'B. Parameters'!$B255)","v":0},{"$f":"(D657+D745)/2*(1-'B. Parameters'!$B255)","v":0},{"$f":"(E657+E745)/2*(1-'B. Parameters'!$B255)","v":0},{"$f":"(F657+F745)/2*(1-'B. Parameters'!$B255)","v":0},{"$f":"(G657+G745)/2*(1-'B. Parameters'!$B255)","v":0},{"$f":"(H657+H745)/2*(1-'B. Parameters'!$B255)","v":0},{"$f":"(I657+I745)/2*(1-'B. Parameters'!$B255)","v":0},{"$f":"(J657+J745)/2*(1-'B. Parameters'!$B255)","v":0},{"$f":"(K657+K745)/2*(1-'B. Parameters'!$B255)","v":0},{"$f":"(L657+L745)/2*(1-'B. Parameters'!$B255)","v":0},{"$f":"(M657+M745)/2*(1-'B. Parameters'!$B255)","v":0},{"$f":"(N657+N745)/2*(1-'B. Parameters'!$B255)","v":0},{"$f":"(O657+O745)/2*(1-'B. Parameters'!$B255)","v":0},{"$f":"(P657+P745)/2*(1-'B. Parameters'!$B255)","v":0},{"$f":"(Q657+Q745)/2*(1-'B. Parameters'!$B255)","v":0},{"$f":"(R657+R745)/2*(1-'B. Parameters'!$B255)","v":0},{"$f":"(S657+S745)/2*(1-'B. Parameters'!$B255)","v":0},{"$f":"(T657+T745)/2*(1-'B. Parameters'!$B255)","v":0},{"$f":"(U657+U745)/2*(1-'B. Parameters'!$B255)","v":0},{"$f":"(V657+V745)/2*(1-'B. Parameters'!$B255)","v":0},{"$f":"(W657+W745)/2*(1-'B. Parameters'!$B255)","v":0},{"$f":"(X657+X745)/2*(1-'B. Parameters'!$B255)","v":0},{"$f":"(Y657+Y745)/2*(1-'B. Parameters'!$B255)","v":0},{"$f":"(Z657+Z745)/2*(1-'B. Parameters'!$B255)","v":0},{"$f":"(AA657+AA745)/2*(1-'B. Parameters'!$B255)","v":0},{"$f":"(AB657+AB745)/2*(1-'B. Parameters'!$B255)","v":0},{"$f":"(AC657+AC745)/2*(1-'B. Parameters'!$B255)","v":0},{"$f":"(AD657+AD745)/2*(1-'B. Parameters'!$B255)","v":0},{"$f":"(AE657+AE745)/2*(1-'B. Parameters'!$B255)","v":0},{"$f":"(AF657+AF745)/2*(1-'B. Parameters'!$B255)","v":0},{"$f":"(AG657+AG745)/2*(1-'B. Parameters'!$B255)","v":0},{"$f":"(AH657+AH745)/2*(1-'B. Parameters'!$B255)","v":0},{"$f":"(AI657+AI745)/2*(1-'B. Parameters'!$B255)","v":0},{"$f":"(AJ657+AJ745)/2*(1-'B. Parameters'!$B255)","v":0},{"$f":"(AK657+AK745)/2*(1-'B. Parameters'!$B255)","v":0},{"$f":"(AL657+AL745)/2*(1-'B. Parameters'!$B255)","v":0},{"$f":"(AM657+AM745)/2*(1-'B. Parameters'!$B255)","v":0},{"$f":"(AN657+AN745)/2*(1-'B. Parameters'!$B255)","v":0},{"$f":"(AO657+AO745)/2*(1-'B. Parameters'!$B255)","v":0},{"$f":"(AP657+AP745)/2*(1-'B. Parameters'!$B255)","v":0},{"$f":"(AQ657+AQ745)/2*(1-'B. Parameters'!$B255)","v":0}]
[2055,0,{"$f":"(C658+C746)/2*(1-'B. Parameters'!$B256)","v":0},{"$f":"(D658+D746)/2*(1-'B. Parameters'!$B256)","v":0},{"$f":"(E658+E746)/2*(1-'B. Parameters'!$B256)","v":0},{"$f":"(F658+F746)/2*(1-'B. Parameters'!$B256)","v":0},{"$f":"(G658+G746)/2*(1-'B. Parameters'!$B256)","v":0},{"$f":"(H658+H746)/2*(1-'B. Parameters'!$B256)","v":0},{"$f":"(I658+I746)/2*(1-'B. Parameters'!$B256)","v":0},{"$f":"(J658+J746)/2*(1-'B. Parameters'!$B256)","v":0},{"$f":"(K658+K746)/2*(1-'B. Parameters'!$B256)","v":0},{"$f":"(L658+L746)/2*(1-'B. Parameters'!$B256)","v":0},{"$f":"(M658+M746)/2*(1-'B. Parameters'!$B256)","v":0},{"$f":"(N658+N746)/2*(1-'B. Parameters'!$B256)","v":0},{"$f":"(O658+O746)/2*(1-'B. Parameters'!$B256)","v":0},{"$f":"(P658+P746)/2*(1-'B. Parameters'!$B256)","v":0},{"$f":"(Q658+Q746)/2*(1-'B. Parameters'!$B256)","v":0},{"$f":"(R658+R746)/2*(1-'B. Parameters'!$B256)","v":0},{"$f":"(S658+S746)/2*(1-'B. Parameters'!$B256)","v":0},{"$f":"(T658+T746)/2*(1-'B. Parameters'!$B256)","v":0},{"$f":"(U658+U746)/2*(1-'B. Parameters'!$B256)","v":0},{"$f":"(V658+V746)/2*(1-'B. Parameters'!$B256)","v":0},{"$f":"(W658+W746)/2*(1-'B. Parameters'!$B256)","v":0},{"$f":"(X658+X746)/2*(1-'B. Parameters'!$B256)","v":0},{"$f":"(Y658+Y746)/2*(1-'B. Parameters'!$B256)","v":0},{"$f":"(Z658+Z746)/2*(1-'B. Parameters'!$B256)","v":0},{"$f":"(AA658+AA746)/2*(1-'B. Parameters'!$B256)","v":0},{"$f":"(AB658+AB746)/2*(1-'B. Parameters'!$B256)","v":0},{"$f":"(AC658+AC746)/2*(1-'B. Parameters'!$B256)","v":0},{"$f":"(AD658+AD746)/2*(1-'B. Parameters'!$B256)","v":0},{"$f":"(AE658+AE746)/2*(1-'B. Parameters'!$B256)","v":0},{"$f":"(AF658+AF746)/2*(1-'B. Parameters'!$B256)","v":0},{"$f":"(AG658+AG746)/2*(1-'B. Parameters'!$B256)","v":0},{"$f":"(AH658+AH746)/2*(1-'B. Parameters'!$B256)","v":0},{"$f":"(AI658+AI746)/2*(1-'B. Parameters'!$B256)","v":0},{"$f":"(AJ658+AJ746)/2*(1-'B. Parameters'!$B256)","v":0},{"$f":"(AK658+AK746)/2*(1-'B. Parameters'!$B256)","v":0},{"$f":"(AL658+AL746)/2*(1-'B. Parameters'!$B256)","v":0},{"$f":"(AM658+AM746)/2*(1-'B. Parameters'!$B256)","v":0},{"$f":"(AN658+AN746)/2*(1-'B. Parameters'!$B256)","v":0},{"$f":"(AO658+AO746)/2*(1-'B. Parameters'!$B256)","v":0},{"$f":"(AP658+AP746)/2*(1-'B. Parameters'!$B256)","v":0},{"$f":"(AQ658+AQ746)/2*(1-'B. Parameters'!$B256)","v":0}]
[2056,0,{"$f":"(C659+C747)/2*(1-'B. Parameters'!$B257)","v":0},{"$f":"(D659+D747)/2*(1-'B. Parameters'!$B257)","v":0},{"$f":"(E659+E747)/2*(1-'B. Parameters'!$B257)","v":0},{"$f":"(F659+F747)/2*(1-'B. Parameters'!$B257)","v":0},{"$f":"(G659+G747)/2*(1-'B. Parameters'!$B257)","v":0},{"$f":"(H659+H747)/2*(1-'B. Parameters'!$B257)","v":0},{"$f":"(I659+I747)/2*(1-'B. Parameters'!$B257)","v":0},{"$f":"(J659+J747)/2*(1-'B. Parameters'!$B257)","v":0},{"$f":"(K659+K747)/2*(1-'B. Parameters'!$B257)","v":0},{"$f":"(L659+L747)/2*(1-'B. Parameters'!$B257)","v":0},{"$f":"(M659+M747)/2*(1-'B. Parameters'!$B257)","v":0},{"$f":"(N659+N747)/2*(1-'B. Parameters'!$B257)","v":0},{"$f":"(O659+O747)/2*(1-'B. Parameters'!$B257)","v":0},{"$f":"(P659+P747)/2*(1-'B. Parameters'!$B257)","v":0},{"$f":"(Q659+Q747)/2*(1-'B. Parameters'!$B257)","v":0},{"$f":"(R659+R747)/2*(1-'B. Parameters'!$B257)","v":0},{"$f":"(S659+S747)/2*(1-'B. Parameters'!$B257)","v":0},{"$f":"(T659+T747)/2*(1-'B. Parameters'!$B257)","v":0},{"$f":"(U659+U747)/2*(1-'B. Parameters'!$B257)","v":0},{"$f":"(V659+V747)/2*(1-'B. Parameters'!$B257)","v":0},{"$f":"(W659+W747)/2*(1-'B. Parameters'!$B257)","v":0},{"$f":"(X659+X747)/2*(1-'B. Parameters'!$B257)","v":0},{"$f":"(Y659+Y747)/2*(1-'B. Parameters'!$B257)","v":0},{"$f":"(Z659+Z747)/2*(1-'B. Parameters'!$B257)","v":0},{"$f":"(AA659+AA747)/2*(1-'B. Parameters'!$B257)","v":0},{"$f":"(AB659+AB747)/2*(1-'B. Parameters'!$B257)","v":0},{"$f":"(AC659+AC747)/2*(1-'B. Parameters'!$B257)","v":0},{"$f":"(AD659+AD747)/2*(1-'B. Parameters'!$B257)","v":0},{"$f":"(AE659+AE747)/2*(1-'B. Parameters'!$B257)","v":0},{"$f":"(AF659+AF747)/2*(1-'B. Parameters'!$B257)","v":0},{"$f":"(AG659+AG747)/2*(1-'B. Parameters'!$B257)","v":0},{"$f":"(AH659+AH747)/2*(1-'B. Parameters'!$B257)","v":0},{"$f":"(AI659+AI747)/2*(1-'B. Parameters'!$B257)","v":0},{"$f":"(AJ659+AJ747)/2*(1-'B. Parameters'!$B257)","v":0},{"$f":"(AK659+AK747)/2*(1-'B. Parameters'!$B257)","v":0},{"$f":"(AL659+AL747)/2*(1-'B. Parameters'!$B257)","v":0},{"$f":"(AM659+AM747)/2*(1-'B. Parameters'!$B257)","v":0},{"$f":"(AN659+AN747)/2*(1-'B. Parameters'!$B257)","v":0},{"$f":"(AO659+AO747)/2*(1-'B. Parameters'!$B257)","v":0},{"$f":"(AP659+AP747)/2*(1-'B. Parameters'!$B257)","v":0},{"$f":"(AQ659+AQ747)/2*(1-'B. Parameters'!$B257)","v":0}]
[2057,0,{"$f":"(C660+C748)/2*(1-'B. Parameters'!$B258)","v":0},{"$f":"(D660+D748)/2*(1-'B. Parameters'!$B258)","v":0},{"$f":"(E660+E748)/2*(1-'B. Parameters'!$B258)","v":0},{"$f":"(F660+F748)/2*(1-'B. Parameters'!$B258)","v":0},{"$f":"(G660+G748)/2*(1-'B. Parameters'!$B258)","v":0},{"$f":"(H660+H748)/2*(1-'B. Parameters'!$B258)","v":0},{"$f":"(I660+I748)/2*(1-'B. Parameters'!$B258)","v":0},{"$f":"(J660+J748)/2*(1-'B. Parameters'!$B258)","v":0},{"$f":"(K660+K748)/2*(1-'B. Parameters'!$B258)","v":0},{"$f":"(L660+L748)/2*(1-'B. Parameters'!$B258)","v":0},{"$f":"(M660+M748)/2*(1-'B. Parameters'!$B258)","v":0},{"$f":"(N660+N748)/2*(1-'B. Parameters'!$B258)","v":0},{"$f":"(O660+O748)/2*(1-'B. Parameters'!$B258)","v":0},{"$f":"(P660+P748)/2*(1-'B. Parameters'!$B258)","v":0},{"$f":"(Q660+Q748)/2*(1-'B. Parameters'!$B258)","v":0},{"$f":"(R660+R748)/2*(1-'B. Parameters'!$B258)","v":0},{"$f":"(S660+S748)/2*(1-'B. Parameters'!$B258)","v":0},{"$f":"(T660+T748)/2*(1-'B. Parameters'!$B258)","v":0},{"$f":"(U660+U748)/2*(1-'B. Parameters'!$B258)","v":0},{"$f":"(V660+V748)/2*(1-'B. Parameters'!$B258)","v":0},{"$f":"(W660+W748)/2*(1-'B. Parameters'!$B258)","v":0},{"$f":"(X660+X748)/2*(1-'B. Parameters'!$B258)","v":0},{"$f":"(Y660+Y748)/2*(1-'B. Parameters'!$B258)","v":0},{"$f":"(Z660+Z748)/2*(1-'B. Parameters'!$B258)","v":0},{"$f":"(AA660+AA748)/2*(1-'B. Parameters'!$B258)","v":0},{"$f":"(AB660+AB748)/2*(1-'B. Parameters'!$B258)","v":0},{"$f":"(AC660+AC748)/2*(1-'B. Parameters'!$B258)","v":0},{"$f":"(AD660+AD748)/2*(1-'B. Parameters'!$B258)","v":0},{"$f":"(AE660+AE748)/2*(1-'B. Parameters'!$B258)","v":0},{"$f":"(AF660+AF748)/2*(1-'B. Parameters'!$B258)","v":0},{"$f":"(AG660+AG748)/2*(1-'B. Parameters'!$B258)","v":0},{"$f":"(AH660+AH748)/2*(1-'B. Parameters'!$B258)","v":0},{"$f":"(AI660+AI748)/2*(1-'B. Parameters'!$B258)","v":0},{"$f":"(AJ660+AJ748)/2*(1-'B. Parameters'!$B258)","v":0},{"$f":"(AK660+AK748)/2*(1-'B. Parameters'!$B258)","v":0},{"$f":"(AL660+AL748)/2*(1-'B. Parameters'!$B258)","v":0},{"$f":"(AM660+AM748)/2*(1-'B. Parameters'!$B258)","v":0},{"$f":"(AN660+AN748)/2*(1-'B. Parameters'!$B258)","v":0},{"$f":"(AO660+AO748)/2*(1-'B. Parameters'!$B258)","v":0},{"$f":"(AP660+AP748)/2*(1-'B. Parameters'!$B258)","v":0},{"$f":"(AQ660+AQ748)/2*(1-'B. Parameters'!$B258)","v":0}]
[2058,0,{"$f":"(C661+C749)/2*(1-'B. Parameters'!$B259)","v":0},{"$f":"(D661+D749)/2*(1-'B. Parameters'!$B259)","v":0},{"$f":"(E661+E749)/2*(1-'B. Parameters'!$B259)","v":0},{"$f":"(F661+F749)/2*(1-'B. Parameters'!$B259)","v":0},{"$f":"(G661+G749)/2*(1-'B. Parameters'!$B259)","v":0},{"$f":"(H661+H749)/2*(1-'B. Parameters'!$B259)","v":0},{"$f":"(I661+I749)/2*(1-'B. Parameters'!$B259)","v":0},{"$f":"(J661+J749)/2*(1-'B. Parameters'!$B259)","v":0},{"$f":"(K661+K749)/2*(1-'B. Parameters'!$B259)","v":0},{"$f":"(L661+L749)/2*(1-'B. Parameters'!$B259)","v":0},{"$f":"(M661+M749)/2*(1-'B. Parameters'!$B259)","v":0},{"$f":"(N661+N749)/2*(1-'B. Parameters'!$B259)","v":0},{"$f":"(O661+O749)/2*(1-'B. Parameters'!$B259)","v":0},{"$f":"(P661+P749)/2*(1-'B. Parameters'!$B259)","v":0},{"$f":"(Q661+Q749)/2*(1-'B. Parameters'!$B259)","v":0},{"$f":"(R661+R749)/2*(1-'B. Parameters'!$B259)","v":0},{"$f":"(S661+S749)/2*(1-'B. Parameters'!$B259)","v":0},{"$f":"(T661+T749)/2*(1-'B. Parameters'!$B259)","v":0},{"$f":"(U661+U749)/2*(1-'B. Parameters'!$B259)","v":0},{"$f":"(V661+V749)/2*(1-'B. Parameters'!$B259)","v":0},{"$f":"(W661+W749)/2*(1-'B. Parameters'!$B259)","v":0},{"$f":"(X661+X749)/2*(1-'B. Parameters'!$B259)","v":0},{"$f":"(Y661+Y749)/2*(1-'B. Parameters'!$B259)","v":0},{"$f":"(Z661+Z749)/2*(1-'B. Parameters'!$B259)","v":0},{"$f":"(AA661+AA749)/2*(1-'B. Parameters'!$B259)","v":0},{"$f":"(AB661+AB749)/2*(1-'B. Parameters'!$B259)","v":0},{"$f":"(AC661+AC749)/2*(1-'B. Parameters'!$B259)","v":0},{"$f":"(AD661+AD749)/2*(1-'B. Parameters'!$B259)","v":0},{"$f":"(AE661+AE749)/2*(1-'B. Parameters'!$B259)","v":0},{"$f":"(AF661+AF749)/2*(1-'B. Parameters'!$B259)","v":0},{"$f":"(AG661+AG749)/2*(1-'B. Parameters'!$B259)","v":0},{"$f":"(AH661+AH749)/2*(1-'B. Parameters'!$B259)","v":0},{"$f":"(AI661+AI749)/2*(1-'B. Parameters'!$B259)","v":0},{"$f":"(AJ661+AJ749)/2*(1-'B. Parameters'!$B259)","v":0},{"$f":"(AK661+AK749)/2*(1-'B. Parameters'!$B259)","v":0},{"$f":"(AL661+AL749)/2*(1-'B. Parameters'!$B259)","v":0},{"$f":"(AM661+AM749)/2*(1-'B. Parameters'!$B259)","v":0},{"$f":"(AN661+AN749)/2*(1-'B. Parameters'!$B259)","v":0},{"$f":"(AO661+AO749)/2*(1-'B. Parameters'!$B259)","v":0},{"$f":"(AP661+AP749)/2*(1-'B. Parameters'!$B259)","v":0},{"$f":"(AQ661+AQ749)/2*(1-'B. Parameters'!$B259)","v":0}]
[2059,0,{"$f":"(C662+C750)/2*(1-'B. Parameters'!$B260)","v":0},{"$f":"(D662+D750)/2*(1-'B. Parameters'!$B260)","v":0},{"$f":"(E662+E750)/2*(1-'B. Parameters'!$B260)","v":0},{"$f":"(F662+F750)/2*(1-'B. Parameters'!$B260)","v":0},{"$f":"(G662+G750)/2*(1-'B. Parameters'!$B260)","v":0},{"$f":"(H662+H750)/2*(1-'B. Parameters'!$B260)","v":0},{"$f":"(I662+I750)/2*(1-'B. Parameters'!$B260)","v":0},{"$f":"(J662+J750)/2*(1-'B. Parameters'!$B260)","v":0},{"$f":"(K662+K750)/2*(1-'B. Parameters'!$B260)","v":0},{"$f":"(L662+L750)/2*(1-'B. Parameters'!$B260)","v":0},{"$f":"(M662+M750)/2*(1-'B. Parameters'!$B260)","v":0},{"$f":"(N662+N750)/2*(1-'B. Parameters'!$B260)","v":0},{"$f":"(O662+O750)/2*(1-'B. Parameters'!$B260)","v":0},{"$f":"(P662+P750)/2*(1-'B. Parameters'!$B260)","v":0},{"$f":"(Q662+Q750)/2*(1-'B. Parameters'!$B260)","v":0},{"$f":"(R662+R750)/2*(1-'B. Parameters'!$B260)","v":0},{"$f":"(S662+S750)/2*(1-'B. Parameters'!$B260)","v":0},{"$f":"(T662+T750)/2*(1-'B. Parameters'!$B260)","v":0},{"$f":"(U662+U750)/2*(1-'B. Parameters'!$B260)","v":0},{"$f":"(V662+V750)/2*(1-'B. Parameters'!$B260)","v":0},{"$f":"(W662+W750)/2*(1-'B. Parameters'!$B260)","v":0},{"$f":"(X662+X750)/2*(1-'B. Parameters'!$B260)","v":0},{"$f":"(Y662+Y750)/2*(1-'B. Parameters'!$B260)","v":0},{"$f":"(Z662+Z750)/2*(1-'B. Parameters'!$B260)","v":0},{"$f":"(AA662+AA750)/2*(1-'B. Parameters'!$B260)","v":0},{"$f":"(AB662+AB750)/2*(1-'B. Parameters'!$B260)","v":0},{"$f":"(AC662+AC750)/2*(1-'B. Parameters'!$B260)","v":0},{"$f":"(AD662+AD750)/2*(1-'B. Parameters'!$B260)","v":0},{"$f":"(AE662+AE750)/2*(1-'B. Parameters'!$B260)","v":0},{"$f":"(AF662+AF750)/2*(1-'B. Parameters'!$B260)","v":0},{"$f":"(AG662+AG750)/2*(1-'B. Parameters'!$B260)","v":0},{"$f":"(AH662+AH750)/2*(1-'B. Parameters'!$B260)","v":0},{"$f":"(AI662+AI750)/2*(1-'B. Parameters'!$B260)","v":0},{"$f":"(AJ662+AJ750)/2*(1-'B. Parameters'!$B260)","v":0},{"$f":"(AK662+AK750)/2*(1-'B. Parameters'!$B260)","v":0},{"$f":"(AL662+AL750)/2*(1-'B. Parameters'!$B260)","v":0},{"$f":"(AM662+AM750)/2*(1-'B. Parameters'!$B260)","v":0},{"$f":"(AN662+AN750)/2*(1-'B. Parameters'!$B260)","v":0},{"$f":"(AO662+AO750)/2*(1-'B. Parameters'!$B260)","v":0},{"$f":"(AP662+AP750)/2*(1-'B. Parameters'!$B260)","v":0},{"$f":"(AQ662+AQ750)/2*(1-'B. Parameters'!$B260)","v":0}]
[2060,0,{"$f":"(C663+C751)/2*(1-'B. Parameters'!$B261)","v":0},{"$f":"(D663+D751)/2*(1-'B. Parameters'!$B261)","v":0},{"$f":"(E663+E751)/2*(1-'B. Parameters'!$B261)","v":0},{"$f":"(F663+F751)/2*(1-'B. Parameters'!$B261)","v":0},{"$f":"(G663+G751)/2*(1-'B. Parameters'!$B261)","v":0},{"$f":"(H663+H751)/2*(1-'B. Parameters'!$B261)","v":0},{"$f":"(I663+I751)/2*(1-'B. Parameters'!$B261)","v":0},{"$f":"(J663+J751)/2*(1-'B. Parameters'!$B261)","v":0},{"$f":"(K663+K751)/2*(1-'B. Parameters'!$B261)","v":0},{"$f":"(L663+L751)/2*(1-'B. Parameters'!$B261)","v":0},{"$f":"(M663+M751)/2*(1-'B. Parameters'!$B261)","v":0},{"$f":"(N663+N751)/2*(1-'B. Parameters'!$B261)","v":0},{"$f":"(O663+O751)/2*(1-'B. Parameters'!$B261)","v":0},{"$f":"(P663+P751)/2*(1-'B. Parameters'!$B261)","v":0},{"$f":"(Q663+Q751)/2*(1-'B. Parameters'!$B261)","v":0},{"$f":"(R663+R751)/2*(1-'B. Parameters'!$B261)","v":0},{"$f":"(S663+S751)/2*(1-'B. Parameters'!$B261)","v":0},{"$f":"(T663+T751)/2*(1-'B. Parameters'!$B261)","v":0},{"$f":"(U663+U751)/2*(1-'B. Parameters'!$B261)","v":0},{"$f":"(V663+V751)/2*(1-'B. Parameters'!$B261)","v":0},{"$f":"(W663+W751)/2*(1-'B. Parameters'!$B261)","v":0},{"$f":"(X663+X751)/2*(1-'B. Parameters'!$B261)","v":0},{"$f":"(Y663+Y751)/2*(1-'B. Parameters'!$B261)","v":0},{"$f":"(Z663+Z751)/2*(1-'B. Parameters'!$B261)","v":0},{"$f":"(AA663+AA751)/2*(1-'B. Parameters'!$B261)","v":0},{"$f":"(AB663+AB751)/2*(1-'B. Parameters'!$B261)","v":0},{"$f":"(AC663+AC751)/2*(1-'B. Parameters'!$B261)","v":0},{"$f":"(AD663+AD751)/2*(1-'B. Parameters'!$B261)","v":0},{"$f":"(AE663+AE751)/2*(1-'B. Parameters'!$B261)","v":0},{"$f":"(AF663+AF751)/2*(1-'B. Parameters'!$B261)","v":0},{"$f":"(AG663+AG751)/2*(1-'B. Parameters'!$B261)","v":0},{"$f":"(AH663+AH751)/2*(1-'B. Parameters'!$B261)","v":0},{"$f":"(AI663+AI751)/2*(1-'B. Parameters'!$B261)","v":0},{"$f":"(AJ663+AJ751)/2*(1-'B. Parameters'!$B261)","v":0},{"$f":"(AK663+AK751)/2*(1-'B. Parameters'!$B261)","v":0},{"$f":"(AL663+AL751)/2*(1-'B. Parameters'!$B261)","v":0},{"$f":"(AM663+AM751)/2*(1-'B. Parameters'!$B261)","v":0},{"$f":"(AN663+AN751)/2*(1-'B. Parameters'!$B261)","v":0},{"$f":"(AO663+AO751)/2*(1-'B. Parameters'!$B261)","v":0},{"$f":"(AP663+AP751)/2*(1-'B. Parameters'!$B261)","v":0},{"$f":"(AQ663+AQ751)/2*(1-'B. Parameters'!$B261)","v":0}]
[2061,0,{"$f":"(C664+C752)/2*(1-'B. Parameters'!$B262)","v":0},{"$f":"(D664+D752)/2*(1-'B. Parameters'!$B262)","v":0},{"$f":"(E664+E752)/2*(1-'B. Parameters'!$B262)","v":0},{"$f":"(F664+F752)/2*(1-'B. Parameters'!$B262)","v":0},{"$f":"(G664+G752)/2*(1-'B. Parameters'!$B262)","v":0},{"$f":"(H664+H752)/2*(1-'B. Parameters'!$B262)","v":0},{"$f":"(I664+I752)/2*(1-'B. Parameters'!$B262)","v":0},{"$f":"(J664+J752)/2*(1-'B. Parameters'!$B262)","v":0},{"$f":"(K664+K752)/2*(1-'B. Parameters'!$B262)","v":0},{"$f":"(L664+L752)/2*(1-'B. Parameters'!$B262)","v":0},{"$f":"(M664+M752)/2*(1-'B. Parameters'!$B262)","v":0},{"$f":"(N664+N752)/2*(1-'B. Parameters'!$B262)","v":0},{"$f":"(O664+O752)/2*(1-'B. Parameters'!$B262)","v":0},{"$f":"(P664+P752)/2*(1-'B. Parameters'!$B262)","v":0},{"$f":"(Q664+Q752)/2*(1-'B. Parameters'!$B262)","v":0},{"$f":"(R664+R752)/2*(1-'B. Parameters'!$B262)","v":0},{"$f":"(S664+S752)/2*(1-'B. Parameters'!$B262)","v":0},{"$f":"(T664+T752)/2*(1-'B. Parameters'!$B262)","v":0},{"$f":"(U664+U752)/2*(1-'B. Parameters'!$B262)","v":0},{"$f":"(V664+V752)/2*(1-'B. Parameters'!$B262)","v":0},{"$f":"(W664+W752)/2*(1-'B. Parameters'!$B262)","v":0},{"$f":"(X664+X752)/2*(1-'B. Parameters'!$B262)","v":0},{"$f":"(Y664+Y752)/2*(1-'B. Parameters'!$B262)","v":0},{"$f":"(Z664+Z752)/2*(1-'B. Parameters'!$B262)","v":0},{"$f":"(AA664+AA752)/2*(1-'B. Parameters'!$B262)","v":0},{"$f":"(AB664+AB752)/2*(1-'B. Parameters'!$B262)","v":0},{"$f":"(AC664+AC752)/2*(1-'B. Parameters'!$B262)","v":0},{"$f":"(AD664+AD752)/2*(1-'B. Parameters'!$B262)","v":0},{"$f":"(AE664+AE752)/2*(1-'B. Parameters'!$B262)","v":0},{"$f":"(AF664+AF752)/2*(1-'B. Parameters'!$B262)","v":0},{"$f":"(AG664+AG752)/2*(1-'B. Parameters'!$B262)","v":0},{"$f":"(AH664+AH752)/2*(1-'B. Parameters'!$B262)","v":0},{"$f":"(AI664+AI752)/2*(1-'B. Parameters'!$B262)","v":0},{"$f":"(AJ664+AJ752)/2*(1-'B. Parameters'!$B262)","v":0},{"$f":"(AK664+AK752)/2*(1-'B. Parameters'!$B262)","v":0},{"$f":"(AL664+AL752)/2*(1-'B. Parameters'!$B262)","v":0},{"$f":"(AM664+AM752)/2*(1-'B. Parameters'!$B262)","v":0},{"$f":"(AN664+AN752)/2*(1-'B. Parameters'!$B262)","v":0},{"$f":"(AO664+AO752)/2*(1-'B. Parameters'!$B262)","v":0},{"$f":"(AP664+AP752)/2*(1-'B. Parameters'!$B262)","v":0},{"$f":"(AQ664+AQ752)/2*(1-'B. Parameters'!$B262)","v":0}]
[2062,0,{"$f":"(C665+C753)/2*(1-'B. Parameters'!$B263)","v":0},{"$f":"(D665+D753)/2*(1-'B. Parameters'!$B263)","v":0},{"$f":"(E665+E753)/2*(1-'B. Parameters'!$B263)","v":0},{"$f":"(F665+F753)/2*(1-'B. Parameters'!$B263)","v":0},{"$f":"(G665+G753)/2*(1-'B. Parameters'!$B263)","v":0},{"$f":"(H665+H753)/2*(1-'B. Parameters'!$B263)","v":0},{"$f":"(I665+I753)/2*(1-'B. Parameters'!$B263)","v":0},{"$f":"(J665+J753)/2*(1-'B. Parameters'!$B263)","v":0},{"$f":"(K665+K753)/2*(1-'B. Parameters'!$B263)","v":0},{"$f":"(L665+L753)/2*(1-'B. Parameters'!$B263)","v":0},{"$f":"(M665+M753)/2*(1-'B. Parameters'!$B263)","v":0},{"$f":"(N665+N753)/2*(1-'B. Parameters'!$B263)","v":0},{"$f":"(O665+O753)/2*(1-'B. Parameters'!$B263)","v":0},{"$f":"(P665+P753)/2*(1-'B. Parameters'!$B263)","v":0},{"$f":"(Q665+Q753)/2*(1-'B. Parameters'!$B263)","v":0},{"$f":"(R665+R753)/2*(1-'B. Parameters'!$B263)","v":0},{"$f":"(S665+S753)/2*(1-'B. Parameters'!$B263)","v":0},{"$f":"(T665+T753)/2*(1-'B. Parameters'!$B263)","v":0},{"$f":"(U665+U753)/2*(1-'B. Parameters'!$B263)","v":0},{"$f":"(V665+V753)/2*(1-'B. Parameters'!$B263)","v":0},{"$f":"(W665+W753)/2*(1-'B. Parameters'!$B263)","v":0},{"$f":"(X665+X753)/2*(1-'B. Parameters'!$B263)","v":0},{"$f":"(Y665+Y753)/2*(1-'B. Parameters'!$B263)","v":0},{"$f":"(Z665+Z753)/2*(1-'B. Parameters'!$B263)","v":0},{"$f":"(AA665+AA753)/2*(1-'B. Parameters'!$B263)","v":0},{"$f":"(AB665+AB753)/2*(1-'B. Parameters'!$B263)","v":0},{"$f":"(AC665+AC753)/2*(1-'B. Parameters'!$B263)","v":0},{"$f":"(AD665+AD753)/2*(1-'B. Parameters'!$B263)","v":0},{"$f":"(AE665+AE753)/2*(1-'B. Parameters'!$B263)","v":0},{"$f":"(AF665+AF753)/2*(1-'B. Parameters'!$B263)","v":0},{"$f":"(AG665+AG753)/2*(1-'B. Parameters'!$B263)","v":0},{"$f":"(AH665+AH753)/2*(1-'B. Parameters'!$B263)","v":0},{"$f":"(AI665+AI753)/2*(1-'B. Parameters'!$B263)","v":0},{"$f":"(AJ665+AJ753)/2*(1-'B. Parameters'!$B263)","v":0},{"$f":"(AK665+AK753)/2*(1-'B. Parameters'!$B263)","v":0},{"$f":"(AL665+AL753)/2*(1-'B. Parameters'!$B263)","v":0},{"$f":"(AM665+AM753)/2*(1-'B. Parameters'!$B263)","v":0},{"$f":"(AN665+AN753)/2*(1-'B. Parameters'!$B263)","v":0},{"$f":"(AO665+AO753)/2*(1-'B. Parameters'!$B263)","v":0},{"$f":"(AP665+AP753)/2*(1-'B. Parameters'!$B263)","v":0},{"$f":"(AQ665+AQ753)/2*(1-'B. Parameters'!$B263)","v":0}]
[2063,0,{"$f":"(C666+C754)/2*(1-'B. Parameters'!$B264)","v":0},{"$f":"(D666+D754)/2*(1-'B. Parameters'!$B264)","v":0},{"$f":"(E666+E754)/2*(1-'B. Parameters'!$B264)","v":0},{"$f":"(F666+F754)/2*(1-'B. Parameters'!$B264)","v":0},{"$f":"(G666+G754)/2*(1-'B. Parameters'!$B264)","v":0},{"$f":"(H666+H754)/2*(1-'B. Parameters'!$B264)","v":0},{"$f":"(I666+I754)/2*(1-'B. Parameters'!$B264)","v":0},{"$f":"(J666+J754)/2*(1-'B. Parameters'!$B264)","v":0},{"$f":"(K666+K754)/2*(1-'B. Parameters'!$B264)","v":0},{"$f":"(L666+L754)/2*(1-'B. Parameters'!$B264)","v":0},{"$f":"(M666+M754)/2*(1-'B. Parameters'!$B264)","v":0},{"$f":"(N666+N754)/2*(1-'B. Parameters'!$B264)","v":0},{"$f":"(O666+O754)/2*(1-'B. Parameters'!$B264)","v":0},{"$f":"(P666+P754)/2*(1-'B. Parameters'!$B264)","v":0},{"$f":"(Q666+Q754)/2*(1-'B. Parameters'!$B264)","v":0},{"$f":"(R666+R754)/2*(1-'B. Parameters'!$B264)","v":0},{"$f":"(S666+S754)/2*(1-'B. Parameters'!$B264)","v":0},{"$f":"(T666+T754)/2*(1-'B. Parameters'!$B264)","v":0},{"$f":"(U666+U754)/2*(1-'B. Parameters'!$B264)","v":0},{"$f":"(V666+V754)/2*(1-'B. Parameters'!$B264)","v":0},{"$f":"(W666+W754)/2*(1-'B. Parameters'!$B264)","v":0},{"$f":"(X666+X754)/2*(1-'B. Parameters'!$B264)","v":0},{"$f":"(Y666+Y754)/2*(1-'B. Parameters'!$B264)","v":0},{"$f":"(Z666+Z754)/2*(1-'B. Parameters'!$B264)","v":0},{"$f":"(AA666+AA754)/2*(1-'B. Parameters'!$B264)","v":0},{"$f":"(AB666+AB754)/2*(1-'B. Parameters'!$B264)","v":0},{"$f":"(AC666+AC754)/2*(1-'B. Parameters'!$B264)","v":0},{"$f":"(AD666+AD754)/2*(1-'B. Parameters'!$B264)","v":0},{"$f":"(AE666+AE754)/2*(1-'B. Parameters'!$B264)","v":0},{"$f":"(AF666+AF754)/2*(1-'B. Parameters'!$B264)","v":0},{"$f":"(AG666+AG754)/2*(1-'B. Parameters'!$B264)","v":0},{"$f":"(AH666+AH754)/2*(1-'B. Parameters'!$B264)","v":0},{"$f":"(AI666+AI754)/2*(1-'B. Parameters'!$B264)","v":0},{"$f":"(AJ666+AJ754)/2*(1-'B. Parameters'!$B264)","v":0},{"$f":"(AK666+AK754)/2*(1-'B. Parameters'!$B264)","v":0},{"$f":"(AL666+AL754)/2*(1-'B. Parameters'!$B264)","v":0},{"$f":"(AM666+AM754)/2*(1-'B. Parameters'!$B264)","v":0},{"$f":"(AN666+AN754)/2*(1-'B. Parameters'!$B264)","v":0},{"$f":"(AO666+AO754)/2*(1-'B. Parameters'!$B264)","v":0},{"$f":"(AP666+AP754)/2*(1-'B. Parameters'!$B264)","v":0},{"$f":"(AQ666+AQ754)/2*(1-'B. Parameters'!$B264)","v":0}]
[2064,0,{"$f":"(C667+C755)/2*(1-'B. Parameters'!$B265)","v":0},{"$f":"(D667+D755)/2*(1-'B. Parameters'!$B265)","v":0},{"$f":"(E667+E755)/2*(1-'B. Parameters'!$B265)","v":0},{"$f":"(F667+F755)/2*(1-'B. Parameters'!$B265)","v":0},{"$f":"(G667+G755)/2*(1-'B. Parameters'!$B265)","v":0},{"$f":"(H667+H755)/2*(1-'B. Parameters'!$B265)","v":0},{"$f":"(I667+I755)/2*(1-'B. Parameters'!$B265)","v":0},{"$f":"(J667+J755)/2*(1-'B. Parameters'!$B265)","v":0},{"$f":"(K667+K755)/2*(1-'B. Parameters'!$B265)","v":0},{"$f":"(L667+L755)/2*(1-'B. Parameters'!$B265)","v":0},{"$f":"(M667+M755)/2*(1-'B. Parameters'!$B265)","v":0},{"$f":"(N667+N755)/2*(1-'B. Parameters'!$B265)","v":0},{"$f":"(O667+O755)/2*(1-'B. Parameters'!$B265)","v":0},{"$f":"(P667+P755)/2*(1-'B. Parameters'!$B265)","v":0},{"$f":"(Q667+Q755)/2*(1-'B. Parameters'!$B265)","v":0},{"$f":"(R667+R755)/2*(1-'B. Parameters'!$B265)","v":0},{"$f":"(S667+S755)/2*(1-'B. Parameters'!$B265)","v":0},{"$f":"(T667+T755)/2*(1-'B. Parameters'!$B265)","v":0},{"$f":"(U667+U755)/2*(1-'B. Parameters'!$B265)","v":0},{"$f":"(V667+V755)/2*(1-'B. Parameters'!$B265)","v":0},{"$f":"(W667+W755)/2*(1-'B. Parameters'!$B265)","v":0},{"$f":"(X667+X755)/2*(1-'B. Parameters'!$B265)","v":0},{"$f":"(Y667+Y755)/2*(1-'B. Parameters'!$B265)","v":0},{"$f":"(Z667+Z755)/2*(1-'B. Parameters'!$B265)","v":0},{"$f":"(AA667+AA755)/2*(1-'B. Parameters'!$B265)","v":0},{"$f":"(AB667+AB755)/2*(1-'B. Parameters'!$B265)","v":0},{"$f":"(AC667+AC755)/2*(1-'B. Parameters'!$B265)","v":0},{"$f":"(AD667+AD755)/2*(1-'B. Parameters'!$B265)","v":0},{"$f":"(AE667+AE755)/2*(1-'B. Parameters'!$B265)","v":0},{"$f":"(AF667+AF755)/2*(1-'B. Parameters'!$B265)","v":0},{"$f":"(AG667+AG755)/2*(1-'B. Parameters'!$B265)","v":0},{"$f":"(AH667+AH755)/2*(1-'B. Parameters'!$B265)","v":0},{"$f":"(AI667+AI755)/2*(1-'B. Parameters'!$B265)","v":0},{"$f":"(AJ667+AJ755)/2*(1-'B. Parameters'!$B265)","v":0},{"$f":"(AK667+AK755)/2*(1-'B. Parameters'!$B265)","v":0},{"$f":"(AL667+AL755)/2*(1-'B. Parameters'!$B265)","v":0},{"$f":"(AM667+AM755)/2*(1-'B. Parameters'!$B265)","v":0},{"$f":"(AN667+AN755)/2*(1-'B. Parameters'!$B265)","v":0},{"$f":"(AO667+AO755)/2*(1-'B. Parameters'!$B265)","v":0},{"$f":"(AP667+AP755)/2*(1-'B. Parameters'!$B265)","v":0},{"$f":"(AQ667+AQ755)/2*(1-'B. Parameters'!$B265)","v":0}]
[2065,0,{"$f":"(C668+C756)/2*(1-'B. Parameters'!$B266)","v":0},{"$f":"(D668+D756)/2*(1-'B. Parameters'!$B266)","v":0},{"$f":"(E668+E756)/2*(1-'B. Parameters'!$B266)","v":0},{"$f":"(F668+F756)/2*(1-'B. Parameters'!$B266)","v":0},{"$f":"(G668+G756)/2*(1-'B. Parameters'!$B266)","v":0},{"$f":"(H668+H756)/2*(1-'B. Parameters'!$B266)","v":0},{"$f":"(I668+I756)/2*(1-'B. Parameters'!$B266)","v":0},{"$f":"(J668+J756)/2*(1-'B. Parameters'!$B266)","v":0},{"$f":"(K668+K756)/2*(1-'B. Parameters'!$B266)","v":0},{"$f":"(L668+L756)/2*(1-'B. Parameters'!$B266)","v":0},{"$f":"(M668+M756)/2*(1-'B. Parameters'!$B266)","v":0},{"$f":"(N668+N756)/2*(1-'B. Parameters'!$B266)","v":0},{"$f":"(O668+O756)/2*(1-'B. Parameters'!$B266)","v":0},{"$f":"(P668+P756)/2*(1-'B. Parameters'!$B266)","v":0},{"$f":"(Q668+Q756)/2*(1-'B. Parameters'!$B266)","v":0},{"$f":"(R668+R756)/2*(1-'B. Parameters'!$B266)","v":0},{"$f":"(S668+S756)/2*(1-'B. Parameters'!$B266)","v":0},{"$f":"(T668+T756)/2*(1-'B. Parameters'!$B266)","v":0},{"$f":"(U668+U756)/2*(1-'B. Parameters'!$B266)","v":0},{"$f":"(V668+V756)/2*(1-'B. Parameters'!$B266)","v":0},{"$f":"(W668+W756)/2*(1-'B. Parameters'!$B266)","v":0},{"$f":"(X668+X756)/2*(1-'B. Parameters'!$B266)","v":0},{"$f":"(Y668+Y756)/2*(1-'B. Parameters'!$B266)","v":0},{"$f":"(Z668+Z756)/2*(1-'B. Parameters'!$B266)","v":0},{"$f":"(AA668+AA756)/2*(1-'B. Parameters'!$B266)","v":0},{"$f":"(AB668+AB756)/2*(1-'B. Parameters'!$B266)","v":0},{"$f":"(AC668+AC756)/2*(1-'B. Parameters'!$B266)","v":0},{"$f":"(AD668+AD756)/2*(1-'B. Parameters'!$B266)","v":0},{"$f":"(AE668+AE756)/2*(1-'B. Parameters'!$B266)","v":0},{"$f":"(AF668+AF756)/2*(1-'B. Parameters'!$B266)","v":0},{"$f":"(AG668+AG756)/2*(1-'B. Parameters'!$B266)","v":0},{"$f":"(AH668+AH756)/2*(1-'B. Parameters'!$B266)","v":0},{"$f":"(AI668+AI756)/2*(1-'B. Parameters'!$B266)","v":0},{"$f":"(AJ668+AJ756)/2*(1-'B. Parameters'!$B266)","v":0},{"$f":"(AK668+AK756)/2*(1-'B. Parameters'!$B266)","v":0},{"$f":"(AL668+AL756)/2*(1-'B. Parameters'!$B266)","v":0},{"$f":"(AM668+AM756)/2*(1-'B. Parameters'!$B266)","v":0},{"$f":"(AN668+AN756)/2*(1-'B. Parameters'!$B266)","v":0},{"$f":"(AO668+AO756)/2*(1-'B. Parameters'!$B266)","v":0},{"$f":"(AP668+AP756)/2*(1-'B. Parameters'!$B266)","v":0},{"$f":"(AQ668+AQ756)/2*(1-'B. Parameters'!$B266)","v":0}]
[2066,0,{"$f":"(C669+C757)/2*(1-'B. Parameters'!$B267)","v":0},{"$f":"(D669+D757)/2*(1-'B. Parameters'!$B267)","v":0},{"$f":"(E669+E757)/2*(1-'B. Parameters'!$B267)","v":0},{"$f":"(F669+F757)/2*(1-'B. Parameters'!$B267)","v":0},{"$f":"(G669+G757)/2*(1-'B. Parameters'!$B267)","v":0},{"$f":"(H669+H757)/2*(1-'B. Parameters'!$B267)","v":0},{"$f":"(I669+I757)/2*(1-'B. Parameters'!$B267)","v":0},{"$f":"(J669+J757)/2*(1-'B. Parameters'!$B267)","v":0},{"$f":"(K669+K757)/2*(1-'B. Parameters'!$B267)","v":0},{"$f":"(L669+L757)/2*(1-'B. Parameters'!$B267)","v":0},{"$f":"(M669+M757)/2*(1-'B. Parameters'!$B267)","v":0},{"$f":"(N669+N757)/2*(1-'B. Parameters'!$B267)","v":0},{"$f":"(O669+O757)/2*(1-'B. Parameters'!$B267)","v":0},{"$f":"(P669+P757)/2*(1-'B. Parameters'!$B267)","v":0},{"$f":"(Q669+Q757)/2*(1-'B. Parameters'!$B267)","v":0},{"$f":"(R669+R757)/2*(1-'B. Parameters'!$B267)","v":0},{"$f":"(S669+S757)/2*(1-'B. Parameters'!$B267)","v":0},{"$f":"(T669+T757)/2*(1-'B. Parameters'!$B267)","v":0},{"$f":"(U669+U757)/2*(1-'B. Parameters'!$B267)","v":0},{"$f":"(V669+V757)/2*(1-'B. Parameters'!$B267)","v":0},{"$f":"(W669+W757)/2*(1-'B. Parameters'!$B267)","v":0},{"$f":"(X669+X757)/2*(1-'B. Parameters'!$B267)","v":0},{"$f":"(Y669+Y757)/2*(1-'B. Parameters'!$B267)","v":0},{"$f":"(Z669+Z757)/2*(1-'B. Parameters'!$B267)","v":0},{"$f":"(AA669+AA757)/2*(1-'B. Parameters'!$B267)","v":0},{"$f":"(AB669+AB757)/2*(1-'B. Parameters'!$B267)","v":0},{"$f":"(AC669+AC757)/2*(1-'B. Parameters'!$B267)","v":0},{"$f":"(AD669+AD757)/2*(1-'B. Parameters'!$B267)","v":0},{"$f":"(AE669+AE757)/2*(1-'B. Parameters'!$B267)","v":0},{"$f":"(AF669+AF757)/2*(1-'B. Parameters'!$B267)","v":0},{"$f":"(AG669+AG757)/2*(1-'B. Parameters'!$B267)","v":0},{"$f":"(AH669+AH757)/2*(1-'B. Parameters'!$B267)","v":0},{"$f":"(AI669+AI757)/2*(1-'B. Parameters'!$B267)","v":0},{"$f":"(AJ669+AJ757)/2*(1-'B. Parameters'!$B267)","v":0},{"$f":"(AK669+AK757)/2*(1-'B. Parameters'!$B267)","v":0},{"$f":"(AL669+AL757)/2*(1-'B. Parameters'!$B267)","v":0},{"$f":"(AM669+AM757)/2*(1-'B. Parameters'!$B267)","v":0},{"$f":"(AN669+AN757)/2*(1-'B. Parameters'!$B267)","v":0},{"$f":"(AO669+AO757)/2*(1-'B. Parameters'!$B267)","v":0},{"$f":"(AP669+AP757)/2*(1-'B. Parameters'!$B267)","v":0},{"$f":"(AQ669+AQ757)/2*(1-'B. Parameters'!$B267)","v":0}]
[2067,0,{"$f":"(C670+C758)/2*(1-'B. Parameters'!$B268)","v":0},{"$f":"(D670+D758)/2*(1-'B. Parameters'!$B268)","v":0},{"$f":"(E670+E758)/2*(1-'B. Parameters'!$B268)","v":0},{"$f":"(F670+F758)/2*(1-'B. Parameters'!$B268)","v":0},{"$f":"(G670+G758)/2*(1-'B. Parameters'!$B268)","v":0},{"$f":"(H670+H758)/2*(1-'B. Parameters'!$B268)","v":0},{"$f":"(I670+I758)/2*(1-'B. Parameters'!$B268)","v":0},{"$f":"(J670+J758)/2*(1-'B. Parameters'!$B268)","v":0},{"$f":"(K670+K758)/2*(1-'B. Parameters'!$B268)","v":0},{"$f":"(L670+L758)/2*(1-'B. Parameters'!$B268)","v":0},{"$f":"(M670+M758)/2*(1-'B. Parameters'!$B268)","v":0},{"$f":"(N670+N758)/2*(1-'B. Parameters'!$B268)","v":0},{"$f":"(O670+O758)/2*(1-'B. Parameters'!$B268)","v":0},{"$f":"(P670+P758)/2*(1-'B. Parameters'!$B268)","v":0},{"$f":"(Q670+Q758)/2*(1-'B. Parameters'!$B268)","v":0},{"$f":"(R670+R758)/2*(1-'B. Parameters'!$B268)","v":0},{"$f":"(S670+S758)/2*(1-'B. Parameters'!$B268)","v":0},{"$f":"(T670+T758)/2*(1-'B. Parameters'!$B268)","v":0},{"$f":"(U670+U758)/2*(1-'B. Parameters'!$B268)","v":0},{"$f":"(V670+V758)/2*(1-'B. Parameters'!$B268)","v":0},{"$f":"(W670+W758)/2*(1-'B. Parameters'!$B268)","v":0},{"$f":"(X670+X758)/2*(1-'B. Parameters'!$B268)","v":0},{"$f":"(Y670+Y758)/2*(1-'B. Parameters'!$B268)","v":0},{"$f":"(Z670+Z758)/2*(1-'B. Parameters'!$B268)","v":0},{"$f":"(AA670+AA758)/2*(1-'B. Parameters'!$B268)","v":0},{"$f":"(AB670+AB758)/2*(1-'B. Parameters'!$B268)","v":0},{"$f":"(AC670+AC758)/2*(1-'B. Parameters'!$B268)","v":0},{"$f":"(AD670+AD758)/2*(1-'B. Parameters'!$B268)","v":0},{"$f":"(AE670+AE758)/2*(1-'B. Parameters'!$B268)","v":0},{"$f":"(AF670+AF758)/2*(1-'B. Parameters'!$B268)","v":0},{"$f":"(AG670+AG758)/2*(1-'B. Parameters'!$B268)","v":0},{"$f":"(AH670+AH758)/2*(1-'B. Parameters'!$B268)","v":0},{"$f":"(AI670+AI758)/2*(1-'B. Parameters'!$B268)","v":0},{"$f":"(AJ670+AJ758)/2*(1-'B. Parameters'!$B268)","v":0},{"$f":"(AK670+AK758)/2*(1-'B. Parameters'!$B268)","v":0},{"$f":"(AL670+AL758)/2*(1-'B. Parameters'!$B268)","v":0},{"$f":"(AM670+AM758)/2*(1-'B. Parameters'!$B268)","v":0},{"$f":"(AN670+AN758)/2*(1-'B. Parameters'!$B268)","v":0},{"$f":"(AO670+AO758)/2*(1-'B. Parameters'!$B268)","v":0},{"$f":"(AP670+AP758)/2*(1-'B. Parameters'!$B268)","v":0},{"$f":"(AQ670+AQ758)/2*(1-'B. Parameters'!$B268)","v":0}]
[2068,0,{"$f":"(C671+C759)/2*(1-'B. Parameters'!$B269)","v":0},{"$f":"(D671+D759)/2*(1-'B. Parameters'!$B269)","v":0},{"$f":"(E671+E759)/2*(1-'B. Parameters'!$B269)","v":0},{"$f":"(F671+F759)/2*(1-'B. Parameters'!$B269)","v":0},{"$f":"(G671+G759)/2*(1-'B. Parameters'!$B269)","v":0},{"$f":"(H671+H759)/2*(1-'B. Parameters'!$B269)","v":0},{"$f":"(I671+I759)/2*(1-'B. Parameters'!$B269)","v":0},{"$f":"(J671+J759)/2*(1-'B. Parameters'!$B269)","v":0},{"$f":"(K671+K759)/2*(1-'B. Parameters'!$B269)","v":0},{"$f":"(L671+L759)/2*(1-'B. Parameters'!$B269)","v":0},{"$f":"(M671+M759)/2*(1-'B. Parameters'!$B269)","v":0},{"$f":"(N671+N759)/2*(1-'B. Parameters'!$B269)","v":0},{"$f":"(O671+O759)/2*(1-'B. Parameters'!$B269)","v":0},{"$f":"(P671+P759)/2*(1-'B. Parameters'!$B269)","v":0},{"$f":"(Q671+Q759)/2*(1-'B. Parameters'!$B269)","v":0},{"$f":"(R671+R759)/2*(1-'B. Parameters'!$B269)","v":0},{"$f":"(S671+S759)/2*(1-'B. Parameters'!$B269)","v":0},{"$f":"(T671+T759)/2*(1-'B. Parameters'!$B269)","v":0},{"$f":"(U671+U759)/2*(1-'B. Parameters'!$B269)","v":0},{"$f":"(V671+V759)/2*(1-'B. Parameters'!$B269)","v":0},{"$f":"(W671+W759)/2*(1-'B. Parameters'!$B269)","v":0},{"$f":"(X671+X759)/2*(1-'B. Parameters'!$B269)","v":0},{"$f":"(Y671+Y759)/2*(1-'B. Parameters'!$B269)","v":0},{"$f":"(Z671+Z759)/2*(1-'B. Parameters'!$B269)","v":0},{"$f":"(AA671+AA759)/2*(1-'B. Parameters'!$B269)","v":0},{"$f":"(AB671+AB759)/2*(1-'B. Parameters'!$B269)","v":0},{"$f":"(AC671+AC759)/2*(1-'B. Parameters'!$B269)","v":0},{"$f":"(AD671+AD759)/2*(1-'B. Parameters'!$B269)","v":0},{"$f":"(AE671+AE759)/2*(1-'B. Parameters'!$B269)","v":0},{"$f":"(AF671+AF759)/2*(1-'B. Parameters'!$B269)","v":0},{"$f":"(AG671+AG759)/2*(1-'B. Parameters'!$B269)","v":0},{"$f":"(AH671+AH759)/2*(1-'B. Parameters'!$B269)","v":0},{"$f":"(AI671+AI759)/2*(1-'B. Parameters'!$B269)","v":0},{"$f":"(AJ671+AJ759)/2*(1-'B. Parameters'!$B269)","v":0},{"$f":"(AK671+AK759)/2*(1-'B. Parameters'!$B269)","v":0},{"$f":"(AL671+AL759)/2*(1-'B. Parameters'!$B269)","v":0},{"$f":"(AM671+AM759)/2*(1-'B. Parameters'!$B269)","v":0},{"$f":"(AN671+AN759)/2*(1-'B. Parameters'!$B269)","v":0},{"$f":"(AO671+AO759)/2*(1-'B. Parameters'!$B269)","v":0},{"$f":"(AP671+AP759)/2*(1-'B. Parameters'!$B269)","v":0},{"$f":"(AQ671+AQ759)/2*(1-'B. Parameters'!$B269)","v":0}]
[2069,0,{"$f":"(C672+C760)/2*(1-'B. Parameters'!$B270)","v":0},{"$f":"(D672+D760)/2*(1-'B. Parameters'!$B270)","v":0},{"$f":"(E672+E760)/2*(1-'B. Parameters'!$B270)","v":0},{"$f":"(F672+F760)/2*(1-'B. Parameters'!$B270)","v":0},{"$f":"(G672+G760)/2*(1-'B. Parameters'!$B270)","v":0},{"$f":"(H672+H760)/2*(1-'B. Parameters'!$B270)","v":0},{"$f":"(I672+I760)/2*(1-'B. Parameters'!$B270)","v":0},{"$f":"(J672+J760)/2*(1-'B. Parameters'!$B270)","v":0},{"$f":"(K672+K760)/2*(1-'B. Parameters'!$B270)","v":0},{"$f":"(L672+L760)/2*(1-'B. Parameters'!$B270)","v":0},{"$f":"(M672+M760)/2*(1-'B. Parameters'!$B270)","v":0},{"$f":"(N672+N760)/2*(1-'B. Parameters'!$B270)","v":0},{"$f":"(O672+O760)/2*(1-'B. Parameters'!$B270)","v":0},{"$f":"(P672+P760)/2*(1-'B. Parameters'!$B270)","v":0},{"$f":"(Q672+Q760)/2*(1-'B. Parameters'!$B270)","v":0},{"$f":"(R672+R760)/2*(1-'B. Parameters'!$B270)","v":0},{"$f":"(S672+S760)/2*(1-'B. Parameters'!$B270)","v":0},{"$f":"(T672+T760)/2*(1-'B. Parameters'!$B270)","v":0},{"$f":"(U672+U760)/2*(1-'B. Parameters'!$B270)","v":0},{"$f":"(V672+V760)/2*(1-'B. Parameters'!$B270)","v":0},{"$f":"(W672+W760)/2*(1-'B. Parameters'!$B270)","v":0},{"$f":"(X672+X760)/2*(1-'B. Parameters'!$B270)","v":0},{"$f":"(Y672+Y760)/2*(1-'B. Parameters'!$B270)","v":0},{"$f":"(Z672+Z760)/2*(1-'B. Parameters'!$B270)","v":0},{"$f":"(AA672+AA760)/2*(1-'B. Parameters'!$B270)","v":0},{"$f":"(AB672+AB760)/2*(1-'B. Parameters'!$B270)","v":0},{"$f":"(AC672+AC760)/2*(1-'B. Parameters'!$B270)","v":0},{"$f":"(AD672+AD760)/2*(1-'B. Parameters'!$B270)","v":0},{"$f":"(AE672+AE760)/2*(1-'B. Parameters'!$B270)","v":0},{"$f":"(AF672+AF760)/2*(1-'B. Parameters'!$B270)","v":0},{"$f":"(AG672+AG760)/2*(1-'B. Parameters'!$B270)","v":0},{"$f":"(AH672+AH760)/2*(1-'B. Parameters'!$B270)","v":0},{"$f":"(AI672+AI760)/2*(1-'B. Parameters'!$B270)","v":0},{"$f":"(AJ672+AJ760)/2*(1-'B. Parameters'!$B270)","v":0},{"$f":"(AK672+AK760)/2*(1-'B. Parameters'!$B270)","v":0},{"$f":"(AL672+AL760)/2*(1-'B. Parameters'!$B270)","v":0},{"$f":"(AM672+AM760)/2*(1-'B. Parameters'!$B270)","v":0},{"$f":"(AN672+AN760)/2*(1-'B. Parameters'!$B270)","v":0},{"$f":"(AO672+AO760)/2*(1-'B. Parameters'!$B270)","v":0},{"$f":"(AP672+AP760)/2*(1-'B. Parameters'!$B270)","v":0},{"$f":"(AQ672+AQ760)/2*(1-'B. Parameters'!$B270)","v":0}]
[2070,0,{"$f":"(C673+C761)/2*(1-'B. Parameters'!$B271)","v":0},{"$f":"(D673+D761)/2*(1-'B. Parameters'!$B271)","v":0},{"$f":"(E673+E761)/2*(1-'B. Parameters'!$B271)","v":0},{"$f":"(F673+F761)/2*(1-'B. Parameters'!$B271)","v":0},{"$f":"(G673+G761)/2*(1-'B. Parameters'!$B271)","v":0},{"$f":"(H673+H761)/2*(1-'B. Parameters'!$B271)","v":0},{"$f":"(I673+I761)/2*(1-'B. Parameters'!$B271)","v":0},{"$f":"(J673+J761)/2*(1-'B. Parameters'!$B271)","v":0},{"$f":"(K673+K761)/2*(1-'B. Parameters'!$B271)","v":0},{"$f":"(L673+L761)/2*(1-'B. Parameters'!$B271)","v":0},{"$f":"(M673+M761)/2*(1-'B. Parameters'!$B271)","v":0},{"$f":"(N673+N761)/2*(1-'B. Parameters'!$B271)","v":0},{"$f":"(O673+O761)/2*(1-'B. Parameters'!$B271)","v":0},{"$f":"(P673+P761)/2*(1-'B. Parameters'!$B271)","v":0},{"$f":"(Q673+Q761)/2*(1-'B. Parameters'!$B271)","v":0},{"$f":"(R673+R761)/2*(1-'B. Parameters'!$B271)","v":0},{"$f":"(S673+S761)/2*(1-'B. Parameters'!$B271)","v":0},{"$f":"(T673+T761)/2*(1-'B. Parameters'!$B271)","v":0},{"$f":"(U673+U761)/2*(1-'B. Parameters'!$B271)","v":0},{"$f":"(V673+V761)/2*(1-'B. Parameters'!$B271)","v":0},{"$f":"(W673+W761)/2*(1-'B. Parameters'!$B271)","v":0},{"$f":"(X673+X761)/2*(1-'B. Parameters'!$B271)","v":0},{"$f":"(Y673+Y761)/2*(1-'B. Parameters'!$B271)","v":0},{"$f":"(Z673+Z761)/2*(1-'B. Parameters'!$B271)","v":0},{"$f":"(AA673+AA761)/2*(1-'B. Parameters'!$B271)","v":0},{"$f":"(AB673+AB761)/2*(1-'B. Parameters'!$B271)","v":0},{"$f":"(AC673+AC761)/2*(1-'B. Parameters'!$B271)","v":0},{"$f":"(AD673+AD761)/2*(1-'B. Parameters'!$B271)","v":0},{"$f":"(AE673+AE761)/2*(1-'B. Parameters'!$B271)","v":0},{"$f":"(AF673+AF761)/2*(1-'B. Parameters'!$B271)","v":0},{"$f":"(AG673+AG761)/2*(1-'B. Parameters'!$B271)","v":0},{"$f":"(AH673+AH761)/2*(1-'B. Parameters'!$B271)","v":0},{"$f":"(AI673+AI761)/2*(1-'B. Parameters'!$B271)","v":0},{"$f":"(AJ673+AJ761)/2*(1-'B. Parameters'!$B271)","v":0},{"$f":"(AK673+AK761)/2*(1-'B. Parameters'!$B271)","v":0},{"$f":"(AL673+AL761)/2*(1-'B. Parameters'!$B271)","v":0},{"$f":"(AM673+AM761)/2*(1-'B. Parameters'!$B271)","v":0},{"$f":"(AN673+AN761)/2*(1-'B. Parameters'!$B271)","v":0},{"$f":"(AO673+AO761)/2*(1-'B. Parameters'!$B271)","v":0},{"$f":"(AP673+AP761)/2*(1-'B. Parameters'!$B271)","v":0},{"$f":"(AQ673+AQ761)/2*(1-'B. Parameters'!$B271)","v":0}]
[2071,0,{"$f":"(C674+C762)/2*(1-'B. Parameters'!$B272)","v":0},{"$f":"(D674+D762)/2*(1-'B. Parameters'!$B272)","v":0},{"$f":"(E674+E762)/2*(1-'B. Parameters'!$B272)","v":0},{"$f":"(F674+F762)/2*(1-'B. Parameters'!$B272)","v":0},{"$f":"(G674+G762)/2*(1-'B. Parameters'!$B272)","v":0},{"$f":"(H674+H762)/2*(1-'B. Parameters'!$B272)","v":0},{"$f":"(I674+I762)/2*(1-'B. Parameters'!$B272)","v":0},{"$f":"(J674+J762)/2*(1-'B. Parameters'!$B272)","v":0},{"$f":"(K674+K762)/2*(1-'B. Parameters'!$B272)","v":0},{"$f":"(L674+L762)/2*(1-'B. Parameters'!$B272)","v":0},{"$f":"(M674+M762)/2*(1-'B. Parameters'!$B272)","v":0},{"$f":"(N674+N762)/2*(1-'B. Parameters'!$B272)","v":0},{"$f":"(O674+O762)/2*(1-'B. Parameters'!$B272)","v":0},{"$f":"(P674+P762)/2*(1-'B. Parameters'!$B272)","v":0},{"$f":"(Q674+Q762)/2*(1-'B. Parameters'!$B272)","v":0},{"$f":"(R674+R762)/2*(1-'B. Parameters'!$B272)","v":0},{"$f":"(S674+S762)/2*(1-'B. Parameters'!$B272)","v":0},{"$f":"(T674+T762)/2*(1-'B. Parameters'!$B272)","v":0},{"$f":"(U674+U762)/2*(1-'B. Parameters'!$B272)","v":0},{"$f":"(V674+V762)/2*(1-'B. Parameters'!$B272)","v":0},{"$f":"(W674+W762)/2*(1-'B. Parameters'!$B272)","v":0},{"$f":"(X674+X762)/2*(1-'B. Parameters'!$B272)","v":0},{"$f":"(Y674+Y762)/2*(1-'B. Parameters'!$B272)","v":0},{"$f":"(Z674+Z762)/2*(1-'B. Parameters'!$B272)","v":0},{"$f":"(AA674+AA762)/2*(1-'B. Parameters'!$B272)","v":0},{"$f":"(AB674+AB762)/2*(1-'B. Parameters'!$B272)","v":0},{"$f":"(AC674+AC762)/2*(1-'B. Parameters'!$B272)","v":0},{"$f":"(AD674+AD762)/2*(1-'B. Parameters'!$B272)","v":0},{"$f":"(AE674+AE762)/2*(1-'B. Parameters'!$B272)","v":0},{"$f":"(AF674+AF762)/2*(1-'B. Parameters'!$B272)","v":0},{"$f":"(AG674+AG762)/2*(1-'B. Parameters'!$B272)","v":0},{"$f":"(AH674+AH762)/2*(1-'B. Parameters'!$B272)","v":0},{"$f":"(AI674+AI762)/2*(1-'B. Parameters'!$B272)","v":0},{"$f":"(AJ674+AJ762)/2*(1-'B. Parameters'!$B272)","v":0},{"$f":"(AK674+AK762)/2*(1-'B. Parameters'!$B272)","v":0},{"$f":"(AL674+AL762)/2*(1-'B. Parameters'!$B272)","v":0},{"$f":"(AM674+AM762)/2*(1-'B. Parameters'!$B272)","v":0},{"$f":"(AN674+AN762)/2*(1-'B. Parameters'!$B272)","v":0},{"$f":"(AO674+AO762)/2*(1-'B. Parameters'!$B272)","v":0},{"$f":"(AP674+AP762)/2*(1-'B. Parameters'!$B272)","v":0},{"$f":"(AQ674+AQ762)/2*(1-'B. Parameters'!$B272)","v":0}]
[2072,0,{"$f":"(C675+C763)/2*(1-'B. Parameters'!$B273)","v":0},{"$f":"(D675+D763)/2*(1-'B. Parameters'!$B273)","v":0},{"$f":"(E675+E763)/2*(1-'B. Parameters'!$B273)","v":0},{"$f":"(F675+F763)/2*(1-'B. Parameters'!$B273)","v":0},{"$f":"(G675+G763)/2*(1-'B. Parameters'!$B273)","v":0},{"$f":"(H675+H763)/2*(1-'B. Parameters'!$B273)","v":0},{"$f":"(I675+I763)/2*(1-'B. Parameters'!$B273)","v":0},{"$f":"(J675+J763)/2*(1-'B. Parameters'!$B273)","v":0},{"$f":"(K675+K763)/2*(1-'B. Parameters'!$B273)","v":0},{"$f":"(L675+L763)/2*(1-'B. Parameters'!$B273)","v":0},{"$f":"(M675+M763)/2*(1-'B. Parameters'!$B273)","v":0},{"$f":"(N675+N763)/2*(1-'B. Parameters'!$B273)","v":0},{"$f":"(O675+O763)/2*(1-'B. Parameters'!$B273)","v":0},{"$f":"(P675+P763)/2*(1-'B. Parameters'!$B273)","v":0},{"$f":"(Q675+Q763)/2*(1-'B. Parameters'!$B273)","v":0},{"$f":"(R675+R763)/2*(1-'B. Parameters'!$B273)","v":0},{"$f":"(S675+S763)/2*(1-'B. Parameters'!$B273)","v":0},{"$f":"(T675+T763)/2*(1-'B. Parameters'!$B273)","v":0},{"$f":"(U675+U763)/2*(1-'B. Parameters'!$B273)","v":0},{"$f":"(V675+V763)/2*(1-'B. Parameters'!$B273)","v":0},{"$f":"(W675+W763)/2*(1-'B. Parameters'!$B273)","v":0},{"$f":"(X675+X763)/2*(1-'B. Parameters'!$B273)","v":0},{"$f":"(Y675+Y763)/2*(1-'B. Parameters'!$B273)","v":0},{"$f":"(Z675+Z763)/2*(1-'B. Parameters'!$B273)","v":0},{"$f":"(AA675+AA763)/2*(1-'B. Parameters'!$B273)","v":0},{"$f":"(AB675+AB763)/2*(1-'B. Parameters'!$B273)","v":0},{"$f":"(AC675+AC763)/2*(1-'B. Parameters'!$B273)","v":0},{"$f":"(AD675+AD763)/2*(1-'B. Parameters'!$B273)","v":0},{"$f":"(AE675+AE763)/2*(1-'B. Parameters'!$B273)","v":0},{"$f":"(AF675+AF763)/2*(1-'B. Parameters'!$B273)","v":0},{"$f":"(AG675+AG763)/2*(1-'B. Parameters'!$B273)","v":0},{"$f":"(AH675+AH763)/2*(1-'B. Parameters'!$B273)","v":0},{"$f":"(AI675+AI763)/2*(1-'B. Parameters'!$B273)","v":0},{"$f":"(AJ675+AJ763)/2*(1-'B. Parameters'!$B273)","v":0},{"$f":"(AK675+AK763)/2*(1-'B. Parameters'!$B273)","v":0},{"$f":"(AL675+AL763)/2*(1-'B. Parameters'!$B273)","v":0},{"$f":"(AM675+AM763)/2*(1-'B. Parameters'!$B273)","v":0},{"$f":"(AN675+AN763)/2*(1-'B. Parameters'!$B273)","v":0},{"$f":"(AO675+AO763)/2*(1-'B. Parameters'!$B273)","v":0},{"$f":"(AP675+AP763)/2*(1-'B. Parameters'!$B273)","v":0},{"$f":"(AQ675+AQ763)/2*(1-'B. Parameters'!$B273)","v":0}]
[2073,0,{"$f":"(C676+C764)/2*(1-'B. Parameters'!$B274)","v":0},{"$f":"(D676+D764)/2*(1-'B. Parameters'!$B274)","v":0},{"$f":"(E676+E764)/2*(1-'B. Parameters'!$B274)","v":0},{"$f":"(F676+F764)/2*(1-'B. Parameters'!$B274)","v":0},{"$f":"(G676+G764)/2*(1-'B. Parameters'!$B274)","v":0},{"$f":"(H676+H764)/2*(1-'B. Parameters'!$B274)","v":0},{"$f":"(I676+I764)/2*(1-'B. Parameters'!$B274)","v":0},{"$f":"(J676+J764)/2*(1-'B. Parameters'!$B274)","v":0},{"$f":"(K676+K764)/2*(1-'B. Parameters'!$B274)","v":0},{"$f":"(L676+L764)/2*(1-'B. Parameters'!$B274)","v":0},{"$f":"(M676+M764)/2*(1-'B. Parameters'!$B274)","v":0},{"$f":"(N676+N764)/2*(1-'B. Parameters'!$B274)","v":0},{"$f":"(O676+O764)/2*(1-'B. Parameters'!$B274)","v":0},{"$f":"(P676+P764)/2*(1-'B. Parameters'!$B274)","v":0},{"$f":"(Q676+Q764)/2*(1-'B. Parameters'!$B274)","v":0},{"$f":"(R676+R764)/2*(1-'B. Parameters'!$B274)","v":0},{"$f":"(S676+S764)/2*(1-'B. Parameters'!$B274)","v":0},{"$f":"(T676+T764)/2*(1-'B. Parameters'!$B274)","v":0},{"$f":"(U676+U764)/2*(1-'B. Parameters'!$B274)","v":0},{"$f":"(V676+V764)/2*(1-'B. Parameters'!$B274)","v":0},{"$f":"(W676+W764)/2*(1-'B. Parameters'!$B274)","v":0},{"$f":"(X676+X764)/2*(1-'B. Parameters'!$B274)","v":0},{"$f":"(Y676+Y764)/2*(1-'B. Parameters'!$B274)","v":0},{"$f":"(Z676+Z764)/2*(1-'B. Parameters'!$B274)","v":0},{"$f":"(AA676+AA764)/2*(1-'B. Parameters'!$B274)","v":0},{"$f":"(AB676+AB764)/2*(1-'B. Parameters'!$B274)","v":0},{"$f":"(AC676+AC764)/2*(1-'B. Parameters'!$B274)","v":0},{"$f":"(AD676+AD764)/2*(1-'B. Parameters'!$B274)","v":0},{"$f":"(AE676+AE764)/2*(1-'B. Parameters'!$B274)","v":0},{"$f":"(AF676+AF764)/2*(1-'B. Parameters'!$B274)","v":0},{"$f":"(AG676+AG764)/2*(1-'B. Parameters'!$B274)","v":0},{"$f":"(AH676+AH764)/2*(1-'B. Parameters'!$B274)","v":0},{"$f":"(AI676+AI764)/2*(1-'B. Parameters'!$B274)","v":0},{"$f":"(AJ676+AJ764)/2*(1-'B. Parameters'!$B274)","v":0},{"$f":"(AK676+AK764)/2*(1-'B. Parameters'!$B274)","v":0},{"$f":"(AL676+AL764)/2*(1-'B. Parameters'!$B274)","v":0},{"$f":"(AM676+AM764)/2*(1-'B. Parameters'!$B274)","v":0},{"$f":"(AN676+AN764)/2*(1-'B. Parameters'!$B274)","v":0},{"$f":"(AO676+AO764)/2*(1-'B. Parameters'!$B274)","v":0},{"$f":"(AP676+AP764)/2*(1-'B. Parameters'!$B274)","v":0},{"$f":"(AQ676+AQ764)/2*(1-'B. Parameters'!$B274)","v":0}]
[2074,0,{"$f":"(C677+C765)/2*(1-'B. Parameters'!$B275)","v":0},{"$f":"(D677+D765)/2*(1-'B. Parameters'!$B275)","v":0},{"$f":"(E677+E765)/2*(1-'B. Parameters'!$B275)","v":0},{"$f":"(F677+F765)/2*(1-'B. Parameters'!$B275)","v":0},{"$f":"(G677+G765)/2*(1-'B. Parameters'!$B275)","v":0},{"$f":"(H677+H765)/2*(1-'B. Parameters'!$B275)","v":0},{"$f":"(I677+I765)/2*(1-'B. Parameters'!$B275)","v":0},{"$f":"(J677+J765)/2*(1-'B. Parameters'!$B275)","v":0},{"$f":"(K677+K765)/2*(1-'B. Parameters'!$B275)","v":0},{"$f":"(L677+L765)/2*(1-'B. Parameters'!$B275)","v":0},{"$f":"(M677+M765)/2*(1-'B. Parameters'!$B275)","v":0},{"$f":"(N677+N765)/2*(1-'B. Parameters'!$B275)","v":0},{"$f":"(O677+O765)/2*(1-'B. Parameters'!$B275)","v":0},{"$f":"(P677+P765)/2*(1-'B. Parameters'!$B275)","v":0},{"$f":"(Q677+Q765)/2*(1-'B. Parameters'!$B275)","v":0},{"$f":"(R677+R765)/2*(1-'B. Parameters'!$B275)","v":0},{"$f":"(S677+S765)/2*(1-'B. Parameters'!$B275)","v":0},{"$f":"(T677+T765)/2*(1-'B. Parameters'!$B275)","v":0},{"$f":"(U677+U765)/2*(1-'B. Parameters'!$B275)","v":0},{"$f":"(V677+V765)/2*(1-'B. Parameters'!$B275)","v":0},{"$f":"(W677+W765)/2*(1-'B. Parameters'!$B275)","v":0},{"$f":"(X677+X765)/2*(1-'B. Parameters'!$B275)","v":0},{"$f":"(Y677+Y765)/2*(1-'B. Parameters'!$B275)","v":0},{"$f":"(Z677+Z765)/2*(1-'B. Parameters'!$B275)","v":0},{"$f":"(AA677+AA765)/2*(1-'B. Parameters'!$B275)","v":0},{"$f":"(AB677+AB765)/2*(1-'B. Parameters'!$B275)","v":0},{"$f":"(AC677+AC765)/2*(1-'B. Parameters'!$B275)","v":0},{"$f":"(AD677+AD765)/2*(1-'B. Parameters'!$B275)","v":0},{"$f":"(AE677+AE765)/2*(1-'B. Parameters'!$B275)","v":0},{"$f":"(AF677+AF765)/2*(1-'B. Parameters'!$B275)","v":0},{"$f":"(AG677+AG765)/2*(1-'B. Parameters'!$B275)","v":0},{"$f":"(AH677+AH765)/2*(1-'B. Parameters'!$B275)","v":0},{"$f":"(AI677+AI765)/2*(1-'B. Parameters'!$B275)","v":0},{"$f":"(AJ677+AJ765)/2*(1-'B. Parameters'!$B275)","v":0},{"$f":"(AK677+AK765)/2*(1-'B. Parameters'!$B275)","v":0},{"$f":"(AL677+AL765)/2*(1-'B. Parameters'!$B275)","v":0},{"$f":"(AM677+AM765)/2*(1-'B. Parameters'!$B275)","v":0},{"$f":"(AN677+AN765)/2*(1-'B. Parameters'!$B275)","v":0},{"$f":"(AO677+AO765)/2*(1-'B. Parameters'!$B275)","v":0},{"$f":"(AP677+AP765)/2*(1-'B. Parameters'!$B275)","v":0},{"$f":"(AQ677+AQ765)/2*(1-'B. Parameters'!$B275)","v":0}]
[2075,0,{"$f":"(C678+C766)/2*(1-'B. Parameters'!$B276)","v":0},{"$f":"(D678+D766)/2*(1-'B. Parameters'!$B276)","v":0},{"$f":"(E678+E766)/2*(1-'B. Parameters'!$B276)","v":0},{"$f":"(F678+F766)/2*(1-'B. Parameters'!$B276)","v":0},{"$f":"(G678+G766)/2*(1-'B. Parameters'!$B276)","v":0},{"$f":"(H678+H766)/2*(1-'B. Parameters'!$B276)","v":0},{"$f":"(I678+I766)/2*(1-'B. Parameters'!$B276)","v":0},{"$f":"(J678+J766)/2*(1-'B. Parameters'!$B276)","v":0},{"$f":"(K678+K766)/2*(1-'B. Parameters'!$B276)","v":0},{"$f":"(L678+L766)/2*(1-'B. Parameters'!$B276)","v":0},{"$f":"(M678+M766)/2*(1-'B. Parameters'!$B276)","v":0},{"$f":"(N678+N766)/2*(1-'B. Parameters'!$B276)","v":0},{"$f":"(O678+O766)/2*(1-'B. Parameters'!$B276)","v":0},{"$f":"(P678+P766)/2*(1-'B. Parameters'!$B276)","v":0},{"$f":"(Q678+Q766)/2*(1-'B. Parameters'!$B276)","v":0},{"$f":"(R678+R766)/2*(1-'B. Parameters'!$B276)","v":0},{"$f":"(S678+S766)/2*(1-'B. Parameters'!$B276)","v":0},{"$f":"(T678+T766)/2*(1-'B. Parameters'!$B276)","v":0},{"$f":"(U678+U766)/2*(1-'B. Parameters'!$B276)","v":0},{"$f":"(V678+V766)/2*(1-'B. Parameters'!$B276)","v":0},{"$f":"(W678+W766)/2*(1-'B. Parameters'!$B276)","v":0},{"$f":"(X678+X766)/2*(1-'B. Parameters'!$B276)","v":0},{"$f":"(Y678+Y766)/2*(1-'B. Parameters'!$B276)","v":0},{"$f":"(Z678+Z766)/2*(1-'B. Parameters'!$B276)","v":0},{"$f":"(AA678+AA766)/2*(1-'B. Parameters'!$B276)","v":0},{"$f":"(AB678+AB766)/2*(1-'B. Parameters'!$B276)","v":0},{"$f":"(AC678+AC766)/2*(1-'B. Parameters'!$B276)","v":0},{"$f":"(AD678+AD766)/2*(1-'B. Parameters'!$B276)","v":0},{"$f":"(AE678+AE766)/2*(1-'B. Parameters'!$B276)","v":0},{"$f":"(AF678+AF766)/2*(1-'B. Parameters'!$B276)","v":0},{"$f":"(AG678+AG766)/2*(1-'B. Parameters'!$B276)","v":0},{"$f":"(AH678+AH766)/2*(1-'B. Parameters'!$B276)","v":0},{"$f":"(AI678+AI766)/2*(1-'B. Parameters'!$B276)","v":0},{"$f":"(AJ678+AJ766)/2*(1-'B. Parameters'!$B276)","v":0},{"$f":"(AK678+AK766)/2*(1-'B. Parameters'!$B276)","v":0},{"$f":"(AL678+AL766)/2*(1-'B. Parameters'!$B276)","v":0},{"$f":"(AM678+AM766)/2*(1-'B. Parameters'!$B276)","v":0},{"$f":"(AN678+AN766)/2*(1-'B. Parameters'!$B276)","v":0},{"$f":"(AO678+AO766)/2*(1-'B. Parameters'!$B276)","v":0},{"$f":"(AP678+AP766)/2*(1-'B. Parameters'!$B276)","v":0},{"$f":"(AQ678+AQ766)/2*(1-'B. Parameters'!$B276)","v":0}]
[2076,0,{"$f":"(C679+C767)/2*(1-'B. Parameters'!$B277)","v":0},{"$f":"(D679+D767)/2*(1-'B. Parameters'!$B277)","v":0},{"$f":"(E679+E767)/2*(1-'B. Parameters'!$B277)","v":0},{"$f":"(F679+F767)/2*(1-'B. Parameters'!$B277)","v":0},{"$f":"(G679+G767)/2*(1-'B. Parameters'!$B277)","v":0},{"$f":"(H679+H767)/2*(1-'B. Parameters'!$B277)","v":0},{"$f":"(I679+I767)/2*(1-'B. Parameters'!$B277)","v":0},{"$f":"(J679+J767)/2*(1-'B. Parameters'!$B277)","v":0},{"$f":"(K679+K767)/2*(1-'B. Parameters'!$B277)","v":0},{"$f":"(L679+L767)/2*(1-'B. Parameters'!$B277)","v":0},{"$f":"(M679+M767)/2*(1-'B. Parameters'!$B277)","v":0},{"$f":"(N679+N767)/2*(1-'B. Parameters'!$B277)","v":0},{"$f":"(O679+O767)/2*(1-'B. Parameters'!$B277)","v":0},{"$f":"(P679+P767)/2*(1-'B. Parameters'!$B277)","v":0},{"$f":"(Q679+Q767)/2*(1-'B. Parameters'!$B277)","v":0},{"$f":"(R679+R767)/2*(1-'B. Parameters'!$B277)","v":0},{"$f":"(S679+S767)/2*(1-'B. Parameters'!$B277)","v":0},{"$f":"(T679+T767)/2*(1-'B. Parameters'!$B277)","v":0},{"$f":"(U679+U767)/2*(1-'B. Parameters'!$B277)","v":0},{"$f":"(V679+V767)/2*(1-'B. Parameters'!$B277)","v":0},{"$f":"(W679+W767)/2*(1-'B. Parameters'!$B277)","v":0},{"$f":"(X679+X767)/2*(1-'B. Parameters'!$B277)","v":0},{"$f":"(Y679+Y767)/2*(1-'B. Parameters'!$B277)","v":0},{"$f":"(Z679+Z767)/2*(1-'B. Parameters'!$B277)","v":0},{"$f":"(AA679+AA767)/2*(1-'B. Parameters'!$B277)","v":0},{"$f":"(AB679+AB767)/2*(1-'B. Parameters'!$B277)","v":0},{"$f":"(AC679+AC767)/2*(1-'B. Parameters'!$B277)","v":0},{"$f":"(AD679+AD767)/2*(1-'B. Parameters'!$B277)","v":0},{"$f":"(AE679+AE767)/2*(1-'B. Parameters'!$B277)","v":0},{"$f":"(AF679+AF767)/2*(1-'B. Parameters'!$B277)","v":0},{"$f":"(AG679+AG767)/2*(1-'B. Parameters'!$B277)","v":0},{"$f":"(AH679+AH767)/2*(1-'B. Parameters'!$B277)","v":0},{"$f":"(AI679+AI767)/2*(1-'B. Parameters'!$B277)","v":0},{"$f":"(AJ679+AJ767)/2*(1-'B. Parameters'!$B277)","v":0},{"$f":"(AK679+AK767)/2*(1-'B. Parameters'!$B277)","v":0},{"$f":"(AL679+AL767)/2*(1-'B. Parameters'!$B277)","v":0},{"$f":"(AM679+AM767)/2*(1-'B. Parameters'!$B277)","v":0},{"$f":"(AN679+AN767)/2*(1-'B. Parameters'!$B277)","v":0},{"$f":"(AO679+AO767)/2*(1-'B. Parameters'!$B277)","v":0},{"$f":"(AP679+AP767)/2*(1-'B. Parameters'!$B277)","v":0},{"$f":"(AQ679+AQ767)/2*(1-'B. Parameters'!$B277)","v":0}]
[2077,0,{"$f":"(C680+C768)/2*(1-'B. Parameters'!$B278)","v":0},{"$f":"(D680+D768)/2*(1-'B. Parameters'!$B278)","v":0},{"$f":"(E680+E768)/2*(1-'B. Parameters'!$B278)","v":0},{"$f":"(F680+F768)/2*(1-'B. Parameters'!$B278)","v":0},{"$f":"(G680+G768)/2*(1-'B. Parameters'!$B278)","v":0},{"$f":"(H680+H768)/2*(1-'B. Parameters'!$B278)","v":0},{"$f":"(I680+I768)/2*(1-'B. Parameters'!$B278)","v":0},{"$f":"(J680+J768)/2*(1-'B. Parameters'!$B278)","v":0},{"$f":"(K680+K768)/2*(1-'B. Parameters'!$B278)","v":0},{"$f":"(L680+L768)/2*(1-'B. Parameters'!$B278)","v":0},{"$f":"(M680+M768)/2*(1-'B. Parameters'!$B278)","v":0},{"$f":"(N680+N768)/2*(1-'B. Parameters'!$B278)","v":0},{"$f":"(O680+O768)/2*(1-'B. Parameters'!$B278)","v":0},{"$f":"(P680+P768)/2*(1-'B. Parameters'!$B278)","v":0},{"$f":"(Q680+Q768)/2*(1-'B. Parameters'!$B278)","v":0},{"$f":"(R680+R768)/2*(1-'B. Parameters'!$B278)","v":0},{"$f":"(S680+S768)/2*(1-'B. Parameters'!$B278)","v":0},{"$f":"(T680+T768)/2*(1-'B. Parameters'!$B278)","v":0},{"$f":"(U680+U768)/2*(1-'B. Parameters'!$B278)","v":0},{"$f":"(V680+V768)/2*(1-'B. Parameters'!$B278)","v":0},{"$f":"(W680+W768)/2*(1-'B. Parameters'!$B278)","v":0},{"$f":"(X680+X768)/2*(1-'B. Parameters'!$B278)","v":0},{"$f":"(Y680+Y768)/2*(1-'B. Parameters'!$B278)","v":0},{"$f":"(Z680+Z768)/2*(1-'B. Parameters'!$B278)","v":0},{"$f":"(AA680+AA768)/2*(1-'B. Parameters'!$B278)","v":0},{"$f":"(AB680+AB768)/2*(1-'B. Parameters'!$B278)","v":0},{"$f":"(AC680+AC768)/2*(1-'B. Parameters'!$B278)","v":0},{"$f":"(AD680+AD768)/2*(1-'B. Parameters'!$B278)","v":0},{"$f":"(AE680+AE768)/2*(1-'B. Parameters'!$B278)","v":0},{"$f":"(AF680+AF768)/2*(1-'B. Parameters'!$B278)","v":0},{"$f":"(AG680+AG768)/2*(1-'B. Parameters'!$B278)","v":0},{"$f":"(AH680+AH768)/2*(1-'B. Parameters'!$B278)","v":0},{"$f":"(AI680+AI768)/2*(1-'B. Parameters'!$B278)","v":0},{"$f":"(AJ680+AJ768)/2*(1-'B. Parameters'!$B278)","v":0},{"$f":"(AK680+AK768)/2*(1-'B. Parameters'!$B278)","v":0},{"$f":"(AL680+AL768)/2*(1-'B. Parameters'!$B278)","v":0},{"$f":"(AM680+AM768)/2*(1-'B. Parameters'!$B278)","v":0},{"$f":"(AN680+AN768)/2*(1-'B. Parameters'!$B278)","v":0},{"$f":"(AO680+AO768)/2*(1-'B. Parameters'!$B278)","v":0},{"$f":"(AP680+AP768)/2*(1-'B. Parameters'!$B278)","v":0},{"$f":"(AQ680+AQ768)/2*(1-'B. Parameters'!$B278)","v":0}]
[2078,0,{"$f":"(C681+C769)/2*(1-'B. Parameters'!$B279)","v":0},{"$f":"(D681+D769)/2*(1-'B. Parameters'!$B279)","v":0},{"$f":"(E681+E769)/2*(1-'B. Parameters'!$B279)","v":0},{"$f":"(F681+F769)/2*(1-'B. Parameters'!$B279)","v":0},{"$f":"(G681+G769)/2*(1-'B. Parameters'!$B279)","v":0},{"$f":"(H681+H769)/2*(1-'B. Parameters'!$B279)","v":0},{"$f":"(I681+I769)/2*(1-'B. Parameters'!$B279)","v":0},{"$f":"(J681+J769)/2*(1-'B. Parameters'!$B279)","v":0},{"$f":"(K681+K769)/2*(1-'B. Parameters'!$B279)","v":0},{"$f":"(L681+L769)/2*(1-'B. Parameters'!$B279)","v":0},{"$f":"(M681+M769)/2*(1-'B. Parameters'!$B279)","v":0},{"$f":"(N681+N769)/2*(1-'B. Parameters'!$B279)","v":0},{"$f":"(O681+O769)/2*(1-'B. Parameters'!$B279)","v":0},{"$f":"(P681+P769)/2*(1-'B. Parameters'!$B279)","v":0},{"$f":"(Q681+Q769)/2*(1-'B. Parameters'!$B279)","v":0},{"$f":"(R681+R769)/2*(1-'B. Parameters'!$B279)","v":0},{"$f":"(S681+S769)/2*(1-'B. Parameters'!$B279)","v":0},{"$f":"(T681+T769)/2*(1-'B. Parameters'!$B279)","v":0},{"$f":"(U681+U769)/2*(1-'B. Parameters'!$B279)","v":0},{"$f":"(V681+V769)/2*(1-'B. Parameters'!$B279)","v":0},{"$f":"(W681+W769)/2*(1-'B. Parameters'!$B279)","v":0},{"$f":"(X681+X769)/2*(1-'B. Parameters'!$B279)","v":0},{"$f":"(Y681+Y769)/2*(1-'B. Parameters'!$B279)","v":0},{"$f":"(Z681+Z769)/2*(1-'B. Parameters'!$B279)","v":0},{"$f":"(AA681+AA769)/2*(1-'B. Parameters'!$B279)","v":0},{"$f":"(AB681+AB769)/2*(1-'B. Parameters'!$B279)","v":0},{"$f":"(AC681+AC769)/2*(1-'B. Parameters'!$B279)","v":0},{"$f":"(AD681+AD769)/2*(1-'B. Parameters'!$B279)","v":0},{"$f":"(AE681+AE769)/2*(1-'B. Parameters'!$B279)","v":0},{"$f":"(AF681+AF769)/2*(1-'B. Parameters'!$B279)","v":0},{"$f":"(AG681+AG769)/2*(1-'B. Parameters'!$B279)","v":0},{"$f":"(AH681+AH769)/2*(1-'B. Parameters'!$B279)","v":0},{"$f":"(AI681+AI769)/2*(1-'B. Parameters'!$B279)","v":0},{"$f":"(AJ681+AJ769)/2*(1-'B. Parameters'!$B279)","v":0},{"$f":"(AK681+AK769)/2*(1-'B. Parameters'!$B279)","v":0},{"$f":"(AL681+AL769)/2*(1-'B. Parameters'!$B279)","v":0},{"$f":"(AM681+AM769)/2*(1-'B. Parameters'!$B279)","v":0},{"$f":"(AN681+AN769)/2*(1-'B. Parameters'!$B279)","v":0},{"$f":"(AO681+AO769)/2*(1-'B. Parameters'!$B279)","v":0},{"$f":"(AP681+AP769)/2*(1-'B. Parameters'!$B279)","v":0},{"$f":"(AQ681+AQ769)/2*(1-'B. Parameters'!$B279)","v":0}]
[2079,{"$f":"SUM(C858:AQ858)","v":0},{"$f":"(C682+C770)/2*(1-'B. Parameters'!$B280)","v":0},{"$f":"(D682+D770)/2*(1-'B. Parameters'!$B280)","v":0},{"$f":"(E682+E770)/2*(1-'B. Parameters'!$B280)","v":0},{"$f":"(F682+F770)/2*(1-'B. Parameters'!$B280)","v":0},{"$f":"(G682+G770)/2*(1-'B. Parameters'!$B280)","v":0},{"$f":"(H682+H770)/2*(1-'B. Parameters'!$B280)","v":0},{"$f":"(I682+I770)/2*(1-'B. Parameters'!$B280)","v":0},{"$f":"(J682+J770)/2*(1-'B. Parameters'!$B280)","v":0},{"$f":"(K682+K770)/2*(1-'B. Parameters'!$B280)","v":0},{"$f":"(L682+L770)/2*(1-'B. Parameters'!$B280)","v":0},{"$f":"(M682+M770)/2*(1-'B. Parameters'!$B280)","v":0},{"$f":"(N682+N770)/2*(1-'B. Parameters'!$B280)","v":0},{"$f":"(O682+O770)/2*(1-'B. Parameters'!$B280)","v":0},{"$f":"(P682+P770)/2*(1-'B. Parameters'!$B280)","v":0},{"$f":"(Q682+Q770)/2*(1-'B. Parameters'!$B280)","v":0},{"$f":"(R682+R770)/2*(1-'B. Parameters'!$B280)","v":0},{"$f":"(S682+S770)/2*(1-'B. Parameters'!$B280)","v":0},{"$f":"(T682+T770)/2*(1-'B. Parameters'!$B280)","v":0},{"$f":"(U682+U770)/2*(1-'B. Parameters'!$B280)","v":0},{"$f":"(V682+V770)/2*(1-'B. Parameters'!$B280)","v":0},{"$f":"(W682+W770)/2*(1-'B. Parameters'!$B280)","v":0},{"$f":"(X682+X770)/2*(1-'B. Parameters'!$B280)","v":0},{"$f":"(Y682+Y770)/2*(1-'B. Parameters'!$B280)","v":0},{"$f":"(Z682+Z770)/2*(1-'B. Parameters'!$B280)","v":0},{"$f":"(AA682+AA770)/2*(1-'B. Parameters'!$B280)","v":0},{"$f":"(AB682+AB770)/2*(1-'B. Parameters'!$B280)","v":0},{"$f":"(AC682+AC770)/2*(1-'B. Parameters'!$B280)","v":0},{"$f":"(AD682+AD770)/2*(1-'B. Parameters'!$B280)","v":0},{"$f":"(AE682+AE770)/2*(1-'B. Parameters'!$B280)","v":0},{"$f":"(AF682+AF770)/2*(1-'B. Parameters'!$B280)","v":0},{"$f":"(AG682+AG770)/2*(1-'B. Parameters'!$B280)","v":0},{"$f":"(AH682+AH770)/2*(1-'B. Parameters'!$B280)","v":0},{"$f":"(AI682+AI770)/2*(1-'B. Parameters'!$B280)","v":0},{"$f":"(AJ682+AJ770)/2*(1-'B. Parameters'!$B280)","v":0},{"$f":"(AK682+AK770)/2*(1-'B. Parameters'!$B280)","v":0},{"$f":"(AL682+AL770)/2*(1-'B. Parameters'!$B280)","v":0},{"$f":"(AM682+AM770)/2*(1-'B. Parameters'!$B280)","v":0},{"$f":"(AN682+AN770)/2*(1-'B. Parameters'!$B280)","v":0},{"$f":"(AO682+AO770)/2*(1-'B. Parameters'!$B280)","v":0},{"$f":"(AP682+AP770)/2*(1-'B. Parameters'!$B280)","v":0},{"$f":"(AQ682+AQ770)/2*(1-'B. Parameters'!$B280)","v":0}]
[2080,0,{"$f":"(C683+C771)/2*(1-'B. Parameters'!$B281)","v":0},{"$f":"(D683+D771)/2*(1-'B. Parameters'!$B281)","v":0},{"$f":"(E683+E771)/2*(1-'B. Parameters'!$B281)","v":0},{"$f":"(F683+F771)/2*(1-'B. Parameters'!$B281)","v":0},{"$f":"(G683+G771)/2*(1-'B. Parameters'!$B281)","v":0},{"$f":"(H683+H771)/2*(1-'B. Parameters'!$B281)","v":0},{"$f":"(I683+I771)/2*(1-'B. Parameters'!$B281)","v":0},{"$f":"(J683+J771)/2*(1-'B. Parameters'!$B281)","v":0},{"$f":"(K683+K771)/2*(1-'B. Parameters'!$B281)","v":0},{"$f":"(L683+L771)/2*(1-'B. Parameters'!$B281)","v":0},{"$f":"(M683+M771)/2*(1-'B. Parameters'!$B281)","v":0},{"$f":"(N683+N771)/2*(1-'B. Parameters'!$B281)","v":0},{"$f":"(O683+O771)/2*(1-'B. Parameters'!$B281)","v":0},{"$f":"(P683+P771)/2*(1-'B. Parameters'!$B281)","v":0},{"$f":"(Q683+Q771)/2*(1-'B. Parameters'!$B281)","v":0},{"$f":"(R683+R771)/2*(1-'B. Parameters'!$B281)","v":0},{"$f":"(S683+S771)/2*(1-'B. Parameters'!$B281)","v":0},{"$f":"(T683+T771)/2*(1-'B. Parameters'!$B281)","v":0},{"$f":"(U683+U771)/2*(1-'B. Parameters'!$B281)","v":0},{"$f":"(V683+V771)/2*(1-'B. Parameters'!$B281)","v":0},{"$f":"(W683+W771)/2*(1-'B. Parameters'!$B281)","v":0},{"$f":"(X683+X771)/2*(1-'B. Parameters'!$B281)","v":0},{"$f":"(Y683+Y771)/2*(1-'B. Parameters'!$B281)","v":0},{"$f":"(Z683+Z771)/2*(1-'B. Parameters'!$B281)","v":0},{"$f":"(AA683+AA771)/2*(1-'B. Parameters'!$B281)","v":0},{"$f":"(AB683+AB771)/2*(1-'B. Parameters'!$B281)","v":0},{"$f":"(AC683+AC771)/2*(1-'B. Parameters'!$B281)","v":0},{"$f":"(AD683+AD771)/2*(1-'B. Parameters'!$B281)","v":0},{"$f":"(AE683+AE771)/2*(1-'B. Parameters'!$B281)","v":0},{"$f":"(AF683+AF771)/2*(1-'B. Parameters'!$B281)","v":0},{"$f":"(AG683+AG771)/2*(1-'B. Parameters'!$B281)","v":0},{"$f":"(AH683+AH771)/2*(1-'B. Parameters'!$B281)","v":0},{"$f":"(AI683+AI771)/2*(1-'B. Parameters'!$B281)","v":0},{"$f":"(AJ683+AJ771)/2*(1-'B. Parameters'!$B281)","v":0},{"$f":"(AK683+AK771)/2*(1-'B. Parameters'!$B281)","v":0},{"$f":"(AL683+AL771)/2*(1-'B. Parameters'!$B281)","v":0},{"$f":"(AM683+AM771)/2*(1-'B. Parameters'!$B281)","v":0},{"$f":"(AN683+AN771)/2*(1-'B. Parameters'!$B281)","v":0},{"$f":"(AO683+AO771)/2*(1-'B. Parameters'!$B281)","v":0},{"$f":"(AP683+AP771)/2*(1-'B. Parameters'!$B281)","v":0},{"$f":"(AQ683+AQ771)/2*(1-'B. Parameters'!$B281)","v":0}]
[2081,0,{"$f":"(C684+C772)/2*(1-'B. Parameters'!$B282)","v":0},{"$f":"(D684+D772)/2*(1-'B. Parameters'!$B282)","v":0},{"$f":"(E684+E772)/2*(1-'B. Parameters'!$B282)","v":0},{"$f":"(F684+F772)/2*(1-'B. Parameters'!$B282)","v":0},{"$f":"(G684+G772)/2*(1-'B. Parameters'!$B282)","v":0},{"$f":"(H684+H772)/2*(1-'B. Parameters'!$B282)","v":0},{"$f":"(I684+I772)/2*(1-'B. Parameters'!$B282)","v":0},{"$f":"(J684+J772)/2*(1-'B. Parameters'!$B282)","v":0},{"$f":"(K684+K772)/2*(1-'B. Parameters'!$B282)","v":0},{"$f":"(L684+L772)/2*(1-'B. Parameters'!$B282)","v":0},{"$f":"(M684+M772)/2*(1-'B. Parameters'!$B282)","v":0},{"$f":"(N684+N772)/2*(1-'B. Parameters'!$B282)","v":0},{"$f":"(O684+O772)/2*(1-'B. Parameters'!$B282)","v":0},{"$f":"(P684+P772)/2*(1-'B. Parameters'!$B282)","v":0},{"$f":"(Q684+Q772)/2*(1-'B. Parameters'!$B282)","v":0},{"$f":"(R684+R772)/2*(1-'B. Parameters'!$B282)","v":0},{"$f":"(S684+S772)/2*(1-'B. Parameters'!$B282)","v":0},{"$f":"(T684+T772)/2*(1-'B. Parameters'!$B282)","v":0},{"$f":"(U684+U772)/2*(1-'B. Parameters'!$B282)","v":0},{"$f":"(V684+V772)/2*(1-'B. Parameters'!$B282)","v":0},{"$f":"(W684+W772)/2*(1-'B. Parameters'!$B282)","v":0},{"$f":"(X684+X772)/2*(1-'B. Parameters'!$B282)","v":0},{"$f":"(Y684+Y772)/2*(1-'B. Parameters'!$B282)","v":0},{"$f":"(Z684+Z772)/2*(1-'B. Parameters'!$B282)","v":0},{"$f":"(AA684+AA772)/2*(1-'B. Parameters'!$B282)","v":0},{"$f":"(AB684+AB772)/2*(1-'B. Parameters'!$B282)","v":0},{"$f":"(AC684+AC772)/2*(1-'B. Parameters'!$B282)","v":0},{"$f":"(AD684+AD772)/2*(1-'B. Parameters'!$B282)","v":0},{"$f":"(AE684+AE772)/2*(1-'B. Parameters'!$B282)","v":0},{"$f":"(AF684+AF772)/2*(1-'B. Parameters'!$B282)","v":0},{"$f":"(AG684+AG772)/2*(1-'B. Parameters'!$B282)","v":0},{"$f":"(AH684+AH772)/2*(1-'B. Parameters'!$B282)","v":0},{"$f":"(AI684+AI772)/2*(1-'B. Parameters'!$B282)","v":0},{"$f":"(AJ684+AJ772)/2*(1-'B. Parameters'!$B282)","v":0},{"$f":"(AK684+AK772)/2*(1-'B. Parameters'!$B282)","v":0},{"$f":"(AL684+AL772)/2*(1-'B. Parameters'!$B282)","v":0},{"$f":"(AM684+AM772)/2*(1-'B. Parameters'!$B282)","v":0},{"$f":"(AN684+AN772)/2*(1-'B. Parameters'!$B282)","v":0},{"$f":"(AO684+AO772)/2*(1-'B. Parameters'!$B282)","v":0},{"$f":"(AP684+AP772)/2*(1-'B. Parameters'!$B282)","v":0},{"$f":"(AQ684+AQ772)/2*(1-'B. Parameters'!$B282)","v":0}]
[2082,0,{"$f":"(C685+C773)/2*(1-'B. Parameters'!$B283)","v":0},{"$f":"(D685+D773)/2*(1-'B. Parameters'!$B283)","v":0},{"$f":"(E685+E773)/2*(1-'B. Parameters'!$B283)","v":0},{"$f":"(F685+F773)/2*(1-'B. Parameters'!$B283)","v":0},{"$f":"(G685+G773)/2*(1-'B. Parameters'!$B283)","v":0},{"$f":"(H685+H773)/2*(1-'B. Parameters'!$B283)","v":0},{"$f":"(I685+I773)/2*(1-'B. Parameters'!$B283)","v":0},{"$f":"(J685+J773)/2*(1-'B. Parameters'!$B283)","v":0},{"$f":"(K685+K773)/2*(1-'B. Parameters'!$B283)","v":0},{"$f":"(L685+L773)/2*(1-'B. Parameters'!$B283)","v":0},{"$f":"(M685+M773)/2*(1-'B. Parameters'!$B283)","v":0},{"$f":"(N685+N773)/2*(1-'B. Parameters'!$B283)","v":0},{"$f":"(O685+O773)/2*(1-'B. Parameters'!$B283)","v":0},{"$f":"(P685+P773)/2*(1-'B. Parameters'!$B283)","v":0},{"$f":"(Q685+Q773)/2*(1-'B. Parameters'!$B283)","v":0},{"$f":"(R685+R773)/2*(1-'B. Parameters'!$B283)","v":0},{"$f":"(S685+S773)/2*(1-'B. Parameters'!$B283)","v":0},{"$f":"(T685+T773)/2*(1-'B. Parameters'!$B283)","v":0},{"$f":"(U685+U773)/2*(1-'B. Parameters'!$B283)","v":0},{"$f":"(V685+V773)/2*(1-'B. Parameters'!$B283)","v":0},{"$f":"(W685+W773)/2*(1-'B. Parameters'!$B283)","v":0},{"$f":"(X685+X773)/2*(1-'B. Parameters'!$B283)","v":0},{"$f":"(Y685+Y773)/2*(1-'B. Parameters'!$B283)","v":0},{"$f":"(Z685+Z773)/2*(1-'B. Parameters'!$B283)","v":0},{"$f":"(AA685+AA773)/2*(1-'B. Parameters'!$B283)","v":0},{"$f":"(AB685+AB773)/2*(1-'B. Parameters'!$B283)","v":0},{"$f":"(AC685+AC773)/2*(1-'B. Parameters'!$B283)","v":0},{"$f":"(AD685+AD773)/2*(1-'B. Parameters'!$B283)","v":0},{"$f":"(AE685+AE773)/2*(1-'B. Parameters'!$B283)","v":0},{"$f":"(AF685+AF773)/2*(1-'B. Parameters'!$B283)","v":0},{"$f":"(AG685+AG773)/2*(1-'B. Parameters'!$B283)","v":0},{"$f":"(AH685+AH773)/2*(1-'B. Parameters'!$B283)","v":0},{"$f":"(AI685+AI773)/2*(1-'B. Parameters'!$B283)","v":0},{"$f":"(AJ685+AJ773)/2*(1-'B. Parameters'!$B283)","v":0},{"$f":"(AK685+AK773)/2*(1-'B. Parameters'!$B283)","v":0},{"$f":"(AL685+AL773)/2*(1-'B. Parameters'!$B283)","v":0},{"$f":"(AM685+AM773)/2*(1-'B. Parameters'!$B283)","v":0},{"$f":"(AN685+AN773)/2*(1-'B. Parameters'!$B283)","v":0},{"$f":"(AO685+AO773)/2*(1-'B. Parameters'!$B283)","v":0},{"$f":"(AP685+AP773)/2*(1-'B. Parameters'!$B283)","v":0},{"$f":"(AQ685+AQ773)/2*(1-'B. Parameters'!$B283)","v":0}]
[2083,0,{"$f":"(C686+C774)/2*(1-'B. Parameters'!$B284)","v":0},{"$f":"(D686+D774)/2*(1-'B. Parameters'!$B284)","v":0},{"$f":"(E686+E774)/2*(1-'B. Parameters'!$B284)","v":0},{"$f":"(F686+F774)/2*(1-'B. Parameters'!$B284)","v":0},{"$f":"(G686+G774)/2*(1-'B. Parameters'!$B284)","v":0},{"$f":"(H686+H774)/2*(1-'B. Parameters'!$B284)","v":0},{"$f":"(I686+I774)/2*(1-'B. Parameters'!$B284)","v":0},{"$f":"(J686+J774)/2*(1-'B. Parameters'!$B284)","v":0},{"$f":"(K686+K774)/2*(1-'B. Parameters'!$B284)","v":0},{"$f":"(L686+L774)/2*(1-'B. Parameters'!$B284)","v":0},{"$f":"(M686+M774)/2*(1-'B. Parameters'!$B284)","v":0},{"$f":"(N686+N774)/2*(1-'B. Parameters'!$B284)","v":0},{"$f":"(O686+O774)/2*(1-'B. Parameters'!$B284)","v":0},{"$f":"(P686+P774)/2*(1-'B. Parameters'!$B284)","v":0},{"$f":"(Q686+Q774)/2*(1-'B. Parameters'!$B284)","v":0},{"$f":"(R686+R774)/2*(1-'B. Parameters'!$B284)","v":0},{"$f":"(S686+S774)/2*(1-'B. Parameters'!$B284)","v":0},{"$f":"(T686+T774)/2*(1-'B. Parameters'!$B284)","v":0},{"$f":"(U686+U774)/2*(1-'B. Parameters'!$B284)","v":0},{"$f":"(V686+V774)/2*(1-'B. Parameters'!$B284)","v":0},{"$f":"(W686+W774)/2*(1-'B. Parameters'!$B284)","v":0},{"$f":"(X686+X774)/2*(1-'B. Parameters'!$B284)","v":0},{"$f":"(Y686+Y774)/2*(1-'B. Parameters'!$B284)","v":0},{"$f":"(Z686+Z774)/2*(1-'B. Parameters'!$B284)","v":0},{"$f":"(AA686+AA774)/2*(1-'B. Parameters'!$B284)","v":0},{"$f":"(AB686+AB774)/2*(1-'B. Parameters'!$B284)","v":0},{"$f":"(AC686+AC774)/2*(1-'B. Parameters'!$B284)","v":0},{"$f":"(AD686+AD774)/2*(1-'B. Parameters'!$B284)","v":0},{"$f":"(AE686+AE774)/2*(1-'B. Parameters'!$B284)","v":0},{"$f":"(AF686+AF774)/2*(1-'B. Parameters'!$B284)","v":0},{"$f":"(AG686+AG774)/2*(1-'B. Parameters'!$B284)","v":0},{"$f":"(AH686+AH774)/2*(1-'B. Parameters'!$B284)","v":0},{"$f":"(AI686+AI774)/2*(1-'B. Parameters'!$B284)","v":0},{"$f":"(AJ686+AJ774)/2*(1-'B. Parameters'!$B284)","v":0},{"$f":"(AK686+AK774)/2*(1-'B. Parameters'!$B284)","v":0},{"$f":"(AL686+AL774)/2*(1-'B. Parameters'!$B284)","v":0},{"$f":"(AM686+AM774)/2*(1-'B. Parameters'!$B284)","v":0},{"$f":"(AN686+AN774)/2*(1-'B. Parameters'!$B284)","v":0},{"$f":"(AO686+AO774)/2*(1-'B. Parameters'!$B284)","v":0},{"$f":"(AP686+AP774)/2*(1-'B. Parameters'!$B284)","v":0},{"$f":"(AQ686+AQ774)/2*(1-'B. Parameters'!$B284)","v":0}]
[2084,0,{"$f":"(C687+C775)/2*(1-'B. Parameters'!$B285)","v":0},{"$f":"(D687+D775)/2*(1-'B. Parameters'!$B285)","v":0},{"$f":"(E687+E775)/2*(1-'B. Parameters'!$B285)","v":0},{"$f":"(F687+F775)/2*(1-'B. Parameters'!$B285)","v":0},{"$f":"(G687+G775)/2*(1-'B. Parameters'!$B285)","v":0},{"$f":"(H687+H775)/2*(1-'B. Parameters'!$B285)","v":0},{"$f":"(I687+I775)/2*(1-'B. Parameters'!$B285)","v":0},{"$f":"(J687+J775)/2*(1-'B. Parameters'!$B285)","v":0},{"$f":"(K687+K775)/2*(1-'B. Parameters'!$B285)","v":0},{"$f":"(L687+L775)/2*(1-'B. Parameters'!$B285)","v":0},{"$f":"(M687+M775)/2*(1-'B. Parameters'!$B285)","v":0},{"$f":"(N687+N775)/2*(1-'B. Parameters'!$B285)","v":0},{"$f":"(O687+O775)/2*(1-'B. Parameters'!$B285)","v":0},{"$f":"(P687+P775)/2*(1-'B. Parameters'!$B285)","v":0},{"$f":"(Q687+Q775)/2*(1-'B. Parameters'!$B285)","v":0},{"$f":"(R687+R775)/2*(1-'B. Parameters'!$B285)","v":0},{"$f":"(S687+S775)/2*(1-'B. Parameters'!$B285)","v":0},{"$f":"(T687+T775)/2*(1-'B. Parameters'!$B285)","v":0},{"$f":"(U687+U775)/2*(1-'B. Parameters'!$B285)","v":0},{"$f":"(V687+V775)/2*(1-'B. Parameters'!$B285)","v":0},{"$f":"(W687+W775)/2*(1-'B. Parameters'!$B285)","v":0},{"$f":"(X687+X775)/2*(1-'B. Parameters'!$B285)","v":0},{"$f":"(Y687+Y775)/2*(1-'B. Parameters'!$B285)","v":0},{"$f":"(Z687+Z775)/2*(1-'B. Parameters'!$B285)","v":0},{"$f":"(AA687+AA775)/2*(1-'B. Parameters'!$B285)","v":0},{"$f":"(AB687+AB775)/2*(1-'B. Parameters'!$B285)","v":0},{"$f":"(AC687+AC775)/2*(1-'B. Parameters'!$B285)","v":0},{"$f":"(AD687+AD775)/2*(1-'B. Parameters'!$B285)","v":0},{"$f":"(AE687+AE775)/2*(1-'B. Parameters'!$B285)","v":0},{"$f":"(AF687+AF775)/2*(1-'B. Parameters'!$B285)","v":0},{"$f":"(AG687+AG775)/2*(1-'B. Parameters'!$B285)","v":0},{"$f":"(AH687+AH775)/2*(1-'B. Parameters'!$B285)","v":0},{"$f":"(AI687+AI775)/2*(1-'B. Parameters'!$B285)","v":0},{"$f":"(AJ687+AJ775)/2*(1-'B. Parameters'!$B285)","v":0},{"$f":"(AK687+AK775)/2*(1-'B. Parameters'!$B285)","v":0},{"$f":"(AL687+AL775)/2*(1-'B. Parameters'!$B285)","v":0},{"$f":"(AM687+AM775)/2*(1-'B. Parameters'!$B285)","v":0},{"$f":"(AN687+AN775)/2*(1-'B. Parameters'!$B285)","v":0},{"$f":"(AO687+AO775)/2*(1-'B. Parameters'!$B285)","v":0},{"$f":"(AP687+AP775)/2*(1-'B. Parameters'!$B285)","v":0},{"$f":"(AQ687+AQ775)/2*(1-'B. Parameters'!$B285)","v":0}]
[2085,0,{"$f":"(C688+C776)/2*(1-'B. Parameters'!$B286)","v":0},{"$f":"(D688+D776)/2*(1-'B. Parameters'!$B286)","v":0},{"$f":"(E688+E776)/2*(1-'B. Parameters'!$B286)","v":0},{"$f":"(F688+F776)/2*(1-'B. Parameters'!$B286)","v":0},{"$f":"(G688+G776)/2*(1-'B. Parameters'!$B286)","v":0},{"$f":"(H688+H776)/2*(1-'B. Parameters'!$B286)","v":0},{"$f":"(I688+I776)/2*(1-'B. Parameters'!$B286)","v":0},{"$f":"(J688+J776)/2*(1-'B. Parameters'!$B286)","v":0},{"$f":"(K688+K776)/2*(1-'B. Parameters'!$B286)","v":0},{"$f":"(L688+L776)/2*(1-'B. Parameters'!$B286)","v":0},{"$f":"(M688+M776)/2*(1-'B. Parameters'!$B286)","v":0},{"$f":"(N688+N776)/2*(1-'B. Parameters'!$B286)","v":0},{"$f":"(O688+O776)/2*(1-'B. Parameters'!$B286)","v":0},{"$f":"(P688+P776)/2*(1-'B. Parameters'!$B286)","v":0},{"$f":"(Q688+Q776)/2*(1-'B. Parameters'!$B286)","v":0},{"$f":"(R688+R776)/2*(1-'B. Parameters'!$B286)","v":0},{"$f":"(S688+S776)/2*(1-'B. Parameters'!$B286)","v":0},{"$f":"(T688+T776)/2*(1-'B. Parameters'!$B286)","v":0},{"$f":"(U688+U776)/2*(1-'B. Parameters'!$B286)","v":0},{"$f":"(V688+V776)/2*(1-'B. Parameters'!$B286)","v":0},{"$f":"(W688+W776)/2*(1-'B. Parameters'!$B286)","v":0},{"$f":"(X688+X776)/2*(1-'B. Parameters'!$B286)","v":0},{"$f":"(Y688+Y776)/2*(1-'B. Parameters'!$B286)","v":0},{"$f":"(Z688+Z776)/2*(1-'B. Parameters'!$B286)","v":0},{"$f":"(AA688+AA776)/2*(1-'B. Parameters'!$B286)","v":0},{"$f":"(AB688+AB776)/2*(1-'B. Parameters'!$B286)","v":0},{"$f":"(AC688+AC776)/2*(1-'B. Parameters'!$B286)","v":0},{"$f":"(AD688+AD776)/2*(1-'B. Parameters'!$B286)","v":0},{"$f":"(AE688+AE776)/2*(1-'B. Parameters'!$B286)","v":0},{"$f":"(AF688+AF776)/2*(1-'B. Parameters'!$B286)","v":0},{"$f":"(AG688+AG776)/2*(1-'B. Parameters'!$B286)","v":0},{"$f":"(AH688+AH776)/2*(1-'B. Parameters'!$B286)","v":0},{"$f":"(AI688+AI776)/2*(1-'B. Parameters'!$B286)","v":0},{"$f":"(AJ688+AJ776)/2*(1-'B. Parameters'!$B286)","v":0},{"$f":"(AK688+AK776)/2*(1-'B. Parameters'!$B286)","v":0},{"$f":"(AL688+AL776)/2*(1-'B. Parameters'!$B286)","v":0},{"$f":"(AM688+AM776)/2*(1-'B. Parameters'!$B286)","v":0},{"$f":"(AN688+AN776)/2*(1-'B. Parameters'!$B286)","v":0},{"$f":"(AO688+AO776)/2*(1-'B. Parameters'!$B286)","v":0},{"$f":"(AP688+AP776)/2*(1-'B. Parameters'!$B286)","v":0},{"$f":"(AQ688+AQ776)/2*(1-'B. Parameters'!$B286)","v":0}]
[2086,0,{"$f":"(C689+C777)/2*(1-'B. Parameters'!$B287)","v":0},{"$f":"(D689+D777)/2*(1-'B. Parameters'!$B287)","v":0},{"$f":"(E689+E777)/2*(1-'B. Parameters'!$B287)","v":0},{"$f":"(F689+F777)/2*(1-'B. Parameters'!$B287)","v":0},{"$f":"(G689+G777)/2*(1-'B. Parameters'!$B287)","v":0},{"$f":"(H689+H777)/2*(1-'B. Parameters'!$B287)","v":0},{"$f":"(I689+I777)/2*(1-'B. Parameters'!$B287)","v":0},{"$f":"(J689+J777)/2*(1-'B. Parameters'!$B287)","v":0},{"$f":"(K689+K777)/2*(1-'B. Parameters'!$B287)","v":0},{"$f":"(L689+L777)/2*(1-'B. Parameters'!$B287)","v":0},{"$f":"(M689+M777)/2*(1-'B. Parameters'!$B287)","v":0},{"$f":"(N689+N777)/2*(1-'B. Parameters'!$B287)","v":0},{"$f":"(O689+O777)/2*(1-'B. Parameters'!$B287)","v":0},{"$f":"(P689+P777)/2*(1-'B. Parameters'!$B287)","v":0},{"$f":"(Q689+Q777)/2*(1-'B. Parameters'!$B287)","v":0},{"$f":"(R689+R777)/2*(1-'B. Parameters'!$B287)","v":0},{"$f":"(S689+S777)/2*(1-'B. Parameters'!$B287)","v":0},{"$f":"(T689+T777)/2*(1-'B. Parameters'!$B287)","v":0},{"$f":"(U689+U777)/2*(1-'B. Parameters'!$B287)","v":0},{"$f":"(V689+V777)/2*(1-'B. Parameters'!$B287)","v":0},{"$f":"(W689+W777)/2*(1-'B. Parameters'!$B287)","v":0},{"$f":"(X689+X777)/2*(1-'B. Parameters'!$B287)","v":0},{"$f":"(Y689+Y777)/2*(1-'B. Parameters'!$B287)","v":0},{"$f":"(Z689+Z777)/2*(1-'B. Parameters'!$B287)","v":0},{"$f":"(AA689+AA777)/2*(1-'B. Parameters'!$B287)","v":0},{"$f":"(AB689+AB777)/2*(1-'B. Parameters'!$B287)","v":0},{"$f":"(AC689+AC777)/2*(1-'B. Parameters'!$B287)","v":0},{"$f":"(AD689+AD777)/2*(1-'B. Parameters'!$B287)","v":0},{"$f":"(AE689+AE777)/2*(1-'B. Parameters'!$B287)","v":0},{"$f":"(AF689+AF777)/2*(1-'B. Parameters'!$B287)","v":0},{"$f":"(AG689+AG777)/2*(1-'B. Parameters'!$B287)","v":0},{"$f":"(AH689+AH777)/2*(1-'B. Parameters'!$B287)","v":0},{"$f":"(AI689+AI777)/2*(1-'B. Parameters'!$B287)","v":0},{"$f":"(AJ689+AJ777)/2*(1-'B. Parameters'!$B287)","v":0},{"$f":"(AK689+AK777)/2*(1-'B. Parameters'!$B287)","v":0},{"$f":"(AL689+AL777)/2*(1-'B. Parameters'!$B287)","v":0},{"$f":"(AM689+AM777)/2*(1-'B. Parameters'!$B287)","v":0},{"$f":"(AN689+AN777)/2*(1-'B. Parameters'!$B287)","v":0},{"$f":"(AO689+AO777)/2*(1-'B. Parameters'!$B287)","v":0},{"$f":"(AP689+AP777)/2*(1-'B. Parameters'!$B287)","v":0},{"$f":"(AQ689+AQ777)/2*(1-'B. Parameters'!$B287)","v":0}]
[2087,0,{"$f":"(C690+C778)/2*(1-'B. Parameters'!$B288)","v":0},{"$f":"(D690+D778)/2*(1-'B. Parameters'!$B288)","v":0},{"$f":"(E690+E778)/2*(1-'B. Parameters'!$B288)","v":0},{"$f":"(F690+F778)/2*(1-'B. Parameters'!$B288)","v":0},{"$f":"(G690+G778)/2*(1-'B. Parameters'!$B288)","v":0},{"$f":"(H690+H778)/2*(1-'B. Parameters'!$B288)","v":0},{"$f":"(I690+I778)/2*(1-'B. Parameters'!$B288)","v":0},{"$f":"(J690+J778)/2*(1-'B. Parameters'!$B288)","v":0},{"$f":"(K690+K778)/2*(1-'B. Parameters'!$B288)","v":0},{"$f":"(L690+L778)/2*(1-'B. Parameters'!$B288)","v":0},{"$f":"(M690+M778)/2*(1-'B. Parameters'!$B288)","v":0},{"$f":"(N690+N778)/2*(1-'B. Parameters'!$B288)","v":0},{"$f":"(O690+O778)/2*(1-'B. Parameters'!$B288)","v":0},{"$f":"(P690+P778)/2*(1-'B. Parameters'!$B288)","v":0},{"$f":"(Q690+Q778)/2*(1-'B. Parameters'!$B288)","v":0},{"$f":"(R690+R778)/2*(1-'B. Parameters'!$B288)","v":0},{"$f":"(S690+S778)/2*(1-'B. Parameters'!$B288)","v":0},{"$f":"(T690+T778)/2*(1-'B. Parameters'!$B288)","v":0},{"$f":"(U690+U778)/2*(1-'B. Parameters'!$B288)","v":0},{"$f":"(V690+V778)/2*(1-'B. Parameters'!$B288)","v":0},{"$f":"(W690+W778)/2*(1-'B. Parameters'!$B288)","v":0},{"$f":"(X690+X778)/2*(1-'B. Parameters'!$B288)","v":0},{"$f":"(Y690+Y778)/2*(1-'B. Parameters'!$B288)","v":0},{"$f":"(Z690+Z778)/2*(1-'B. Parameters'!$B288)","v":0},{"$f":"(AA690+AA778)/2*(1-'B. Parameters'!$B288)","v":0},{"$f":"(AB690+AB778)/2*(1-'B. Parameters'!$B288)","v":0},{"$f":"(AC690+AC778)/2*(1-'B. Parameters'!$B288)","v":0},{"$f":"(AD690+AD778)/2*(1-'B. Parameters'!$B288)","v":0},{"$f":"(AE690+AE778)/2*(1-'B. Parameters'!$B288)","v":0},{"$f":"(AF690+AF778)/2*(1-'B. Parameters'!$B288)","v":0},{"$f":"(AG690+AG778)/2*(1-'B. Parameters'!$B288)","v":0},{"$f":"(AH690+AH778)/2*(1-'B. Parameters'!$B288)","v":0},{"$f":"(AI690+AI778)/2*(1-'B. Parameters'!$B288)","v":0},{"$f":"(AJ690+AJ778)/2*(1-'B. Parameters'!$B288)","v":0},{"$f":"(AK690+AK778)/2*(1-'B. Parameters'!$B288)","v":0},{"$f":"(AL690+AL778)/2*(1-'B. Parameters'!$B288)","v":0},{"$f":"(AM690+AM778)/2*(1-'B. Parameters'!$B288)","v":0},{"$f":"(AN690+AN778)/2*(1-'B. Parameters'!$B288)","v":0},{"$f":"(AO690+AO778)/2*(1-'B. Parameters'!$B288)","v":0},{"$f":"(AP690+AP778)/2*(1-'B. Parameters'!$B288)","v":0},{"$f":"(AQ690+AQ778)/2*(1-'B. Parameters'!$B288)","v":0}]
[2088,0,{"$f":"(C691+C779)/2*(1-'B. Parameters'!$B289)","v":0},{"$f":"(D691+D779)/2*(1-'B. Parameters'!$B289)","v":0},{"$f":"(E691+E779)/2*(1-'B. Parameters'!$B289)","v":0},{"$f":"(F691+F779)/2*(1-'B. Parameters'!$B289)","v":0},{"$f":"(G691+G779)/2*(1-'B. Parameters'!$B289)","v":0},{"$f":"(H691+H779)/2*(1-'B. Parameters'!$B289)","v":0},{"$f":"(I691+I779)/2*(1-'B. Parameters'!$B289)","v":0},{"$f":"(J691+J779)/2*(1-'B. Parameters'!$B289)","v":0},{"$f":"(K691+K779)/2*(1-'B. Parameters'!$B289)","v":0},{"$f":"(L691+L779)/2*(1-'B. Parameters'!$B289)","v":0},{"$f":"(M691+M779)/2*(1-'B. Parameters'!$B289)","v":0},{"$f":"(N691+N779)/2*(1-'B. Parameters'!$B289)","v":0},{"$f":"(O691+O779)/2*(1-'B. Parameters'!$B289)","v":0},{"$f":"(P691+P779)/2*(1-'B. Parameters'!$B289)","v":0},{"$f":"(Q691+Q779)/2*(1-'B. Parameters'!$B289)","v":0},{"$f":"(R691+R779)/2*(1-'B. Parameters'!$B289)","v":0},{"$f":"(S691+S779)/2*(1-'B. Parameters'!$B289)","v":0},{"$f":"(T691+T779)/2*(1-'B. Parameters'!$B289)","v":0},{"$f":"(U691+U779)/2*(1-'B. Parameters'!$B289)","v":0},{"$f":"(V691+V779)/2*(1-'B. Parameters'!$B289)","v":0},{"$f":"(W691+W779)/2*(1-'B. Parameters'!$B289)","v":0},{"$f":"(X691+X779)/2*(1-'B. Parameters'!$B289)","v":0},{"$f":"(Y691+Y779)/2*(1-'B. Parameters'!$B289)","v":0},{"$f":"(Z691+Z779)/2*(1-'B. Parameters'!$B289)","v":0},{"$f":"(AA691+AA779)/2*(1-'B. Parameters'!$B289)","v":0},{"$f":"(AB691+AB779)/2*(1-'B. Parameters'!$B289)","v":0},{"$f":"(AC691+AC779)/2*(1-'B. Parameters'!$B289)","v":0},{"$f":"(AD691+AD779)/2*(1-'B. Parameters'!$B289)","v":0},{"$f":"(AE691+AE779)/2*(1-'B. Parameters'!$B289)","v":0},{"$f":"(AF691+AF779)/2*(1-'B. Parameters'!$B289)","v":0},{"$f":"(AG691+AG779)/2*(1-'B. Parameters'!$B289)","v":0},{"$f":"(AH691+AH779)/2*(1-'B. Parameters'!$B289)","v":0},{"$f":"(AI691+AI779)/2*(1-'B. Parameters'!$B289)","v":0},{"$f":"(AJ691+AJ779)/2*(1-'B. Parameters'!$B289)","v":0},{"$f":"(AK691+AK779)/2*(1-'B. Parameters'!$B289)","v":0},{"$f":"(AL691+AL779)/2*(1-'B. Parameters'!$B289)","v":0},{"$f":"(AM691+AM779)/2*(1-'B. Parameters'!$B289)","v":0},{"$f":"(AN691+AN779)/2*(1-'B. Parameters'!$B289)","v":0},{"$f":"(AO691+AO779)/2*(1-'B. Parameters'!$B289)","v":0},{"$f":"(AP691+AP779)/2*(1-'B. Parameters'!$B289)","v":0},{"$f":"(AQ691+AQ779)/2*(1-'B. Parameters'!$B289)","v":0}]
[2089,0,{"$f":"(C692+C780)/2*(1-'B. Parameters'!$B290)","v":0},{"$f":"(D692+D780)/2*(1-'B. Parameters'!$B290)","v":0},{"$f":"(E692+E780)/2*(1-'B. Parameters'!$B290)","v":0},{"$f":"(F692+F780)/2*(1-'B. Parameters'!$B290)","v":0},{"$f":"(G692+G780)/2*(1-'B. Parameters'!$B290)","v":0},{"$f":"(H692+H780)/2*(1-'B. Parameters'!$B290)","v":0},{"$f":"(I692+I780)/2*(1-'B. Parameters'!$B290)","v":0},{"$f":"(J692+J780)/2*(1-'B. Parameters'!$B290)","v":0},{"$f":"(K692+K780)/2*(1-'B. Parameters'!$B290)","v":0},{"$f":"(L692+L780)/2*(1-'B. Parameters'!$B290)","v":0},{"$f":"(M692+M780)/2*(1-'B. Parameters'!$B290)","v":0},{"$f":"(N692+N780)/2*(1-'B. Parameters'!$B290)","v":0},{"$f":"(O692+O780)/2*(1-'B. Parameters'!$B290)","v":0},{"$f":"(P692+P780)/2*(1-'B. Parameters'!$B290)","v":0},{"$f":"(Q692+Q780)/2*(1-'B. Parameters'!$B290)","v":0},{"$f":"(R692+R780)/2*(1-'B. Parameters'!$B290)","v":0},{"$f":"(S692+S780)/2*(1-'B. Parameters'!$B290)","v":0},{"$f":"(T692+T780)/2*(1-'B. Parameters'!$B290)","v":0},{"$f":"(U692+U780)/2*(1-'B. Parameters'!$B290)","v":0},{"$f":"(V692+V780)/2*(1-'B. Parameters'!$B290)","v":0},{"$f":"(W692+W780)/2*(1-'B. Parameters'!$B290)","v":0},{"$f":"(X692+X780)/2*(1-'B. Parameters'!$B290)","v":0},{"$f":"(Y692+Y780)/2*(1-'B. Parameters'!$B290)","v":0},{"$f":"(Z692+Z780)/2*(1-'B. Parameters'!$B290)","v":0},{"$f":"(AA692+AA780)/2*(1-'B. Parameters'!$B290)","v":0},{"$f":"(AB692+AB780)/2*(1-'B. Parameters'!$B290)","v":0},{"$f":"(AC692+AC780)/2*(1-'B. Parameters'!$B290)","v":0},{"$f":"(AD692+AD780)/2*(1-'B. Parameters'!$B290)","v":0},{"$f":"(AE692+AE780)/2*(1-'B. Parameters'!$B290)","v":0},{"$f":"(AF692+AF780)/2*(1-'B. Parameters'!$B290)","v":0},{"$f":"(AG692+AG780)/2*(1-'B. Parameters'!$B290)","v":0},{"$f":"(AH692+AH780)/2*(1-'B. Parameters'!$B290)","v":0},{"$f":"(AI692+AI780)/2*(1-'B. Parameters'!$B290)","v":0},{"$f":"(AJ692+AJ780)/2*(1-'B. Parameters'!$B290)","v":0},{"$f":"(AK692+AK780)/2*(1-'B. Parameters'!$B290)","v":0},{"$f":"(AL692+AL780)/2*(1-'B. Parameters'!$B290)","v":0},{"$f":"(AM692+AM780)/2*(1-'B. Parameters'!$B290)","v":0},{"$f":"(AN692+AN780)/2*(1-'B. Parameters'!$B290)","v":0},{"$f":"(AO692+AO780)/2*(1-'B. Parameters'!$B290)","v":0},{"$f":"(AP692+AP780)/2*(1-'B. Parameters'!$B290)","v":0},{"$f":"(AQ692+AQ780)/2*(1-'B. Parameters'!$B290)","v":0}]
[2090,0,{"$f":"(C693+C781)/2*(1-'B. Parameters'!$B291)","v":0},{"$f":"(D693+D781)/2*(1-'B. Parameters'!$B291)","v":0},{"$f":"(E693+E781)/2*(1-'B. Parameters'!$B291)","v":0},{"$f":"(F693+F781)/2*(1-'B. Parameters'!$B291)","v":0},{"$f":"(G693+G781)/2*(1-'B. Parameters'!$B291)","v":0},{"$f":"(H693+H781)/2*(1-'B. Parameters'!$B291)","v":0},{"$f":"(I693+I781)/2*(1-'B. Parameters'!$B291)","v":0},{"$f":"(J693+J781)/2*(1-'B. Parameters'!$B291)","v":0},{"$f":"(K693+K781)/2*(1-'B. Parameters'!$B291)","v":0},{"$f":"(L693+L781)/2*(1-'B. Parameters'!$B291)","v":0},{"$f":"(M693+M781)/2*(1-'B. Parameters'!$B291)","v":0},{"$f":"(N693+N781)/2*(1-'B. Parameters'!$B291)","v":0},{"$f":"(O693+O781)/2*(1-'B. Parameters'!$B291)","v":0},{"$f":"(P693+P781)/2*(1-'B. Parameters'!$B291)","v":0},{"$f":"(Q693+Q781)/2*(1-'B. Parameters'!$B291)","v":0},{"$f":"(R693+R781)/2*(1-'B. Parameters'!$B291)","v":0},{"$f":"(S693+S781)/2*(1-'B. Parameters'!$B291)","v":0},{"$f":"(T693+T781)/2*(1-'B. Parameters'!$B291)","v":0},{"$f":"(U693+U781)/2*(1-'B. Parameters'!$B291)","v":0},{"$f":"(V693+V781)/2*(1-'B. Parameters'!$B291)","v":0},{"$f":"(W693+W781)/2*(1-'B. Parameters'!$B291)","v":0},{"$f":"(X693+X781)/2*(1-'B. Parameters'!$B291)","v":0},{"$f":"(Y693+Y781)/2*(1-'B. Parameters'!$B291)","v":0},{"$f":"(Z693+Z781)/2*(1-'B. Parameters'!$B291)","v":0},{"$f":"(AA693+AA781)/2*(1-'B. Parameters'!$B291)","v":0},{"$f":"(AB693+AB781)/2*(1-'B. Parameters'!$B291)","v":0},{"$f":"(AC693+AC781)/2*(1-'B. Parameters'!$B291)","v":0},{"$f":"(AD693+AD781)/2*(1-'B. Parameters'!$B291)","v":0},{"$f":"(AE693+AE781)/2*(1-'B. Parameters'!$B291)","v":0},{"$f":"(AF693+AF781)/2*(1-'B. Parameters'!$B291)","v":0},{"$f":"(AG693+AG781)/2*(1-'B. Parameters'!$B291)","v":0},{"$f":"(AH693+AH781)/2*(1-'B. Parameters'!$B291)","v":0},{"$f":"(AI693+AI781)/2*(1-'B. Parameters'!$B291)","v":0},{"$f":"(AJ693+AJ781)/2*(1-'B. Parameters'!$B291)","v":0},{"$f":"(AK693+AK781)/2*(1-'B. Parameters'!$B291)","v":0},{"$f":"(AL693+AL781)/2*(1-'B. Parameters'!$B291)","v":0},{"$f":"(AM693+AM781)/2*(1-'B. Parameters'!$B291)","v":0},{"$f":"(AN693+AN781)/2*(1-'B. Parameters'!$B291)","v":0},{"$f":"(AO693+AO781)/2*(1-'B. Parameters'!$B291)","v":0},{"$f":"(AP693+AP781)/2*(1-'B. Parameters'!$B291)","v":0},{"$f":"(AQ693+AQ781)/2*(1-'B. Parameters'!$B291)","v":0}]
[2091,0,{"$f":"(C694+C782)/2*(1-'B. Parameters'!$B292)","v":0},{"$f":"(D694+D782)/2*(1-'B. Parameters'!$B292)","v":0},{"$f":"(E694+E782)/2*(1-'B. Parameters'!$B292)","v":0},{"$f":"(F694+F782)/2*(1-'B. Parameters'!$B292)","v":0},{"$f":"(G694+G782)/2*(1-'B. Parameters'!$B292)","v":0},{"$f":"(H694+H782)/2*(1-'B. Parameters'!$B292)","v":0},{"$f":"(I694+I782)/2*(1-'B. Parameters'!$B292)","v":0},{"$f":"(J694+J782)/2*(1-'B. Parameters'!$B292)","v":0},{"$f":"(K694+K782)/2*(1-'B. Parameters'!$B292)","v":0},{"$f":"(L694+L782)/2*(1-'B. Parameters'!$B292)","v":0},{"$f":"(M694+M782)/2*(1-'B. Parameters'!$B292)","v":0},{"$f":"(N694+N782)/2*(1-'B. Parameters'!$B292)","v":0},{"$f":"(O694+O782)/2*(1-'B. Parameters'!$B292)","v":0},{"$f":"(P694+P782)/2*(1-'B. Parameters'!$B292)","v":0},{"$f":"(Q694+Q782)/2*(1-'B. Parameters'!$B292)","v":0},{"$f":"(R694+R782)/2*(1-'B. Parameters'!$B292)","v":0},{"$f":"(S694+S782)/2*(1-'B. Parameters'!$B292)","v":0},{"$f":"(T694+T782)/2*(1-'B. Parameters'!$B292)","v":0},{"$f":"(U694+U782)/2*(1-'B. Parameters'!$B292)","v":0},{"$f":"(V694+V782)/2*(1-'B. Parameters'!$B292)","v":0},{"$f":"(W694+W782)/2*(1-'B. Parameters'!$B292)","v":0},{"$f":"(X694+X782)/2*(1-'B. Parameters'!$B292)","v":0},{"$f":"(Y694+Y782)/2*(1-'B. Parameters'!$B292)","v":0},{"$f":"(Z694+Z782)/2*(1-'B. Parameters'!$B292)","v":0},{"$f":"(AA694+AA782)/2*(1-'B. Parameters'!$B292)","v":0},{"$f":"(AB694+AB782)/2*(1-'B. Parameters'!$B292)","v":0},{"$f":"(AC694+AC782)/2*(1-'B. Parameters'!$B292)","v":0},{"$f":"(AD694+AD782)/2*(1-'B. Parameters'!$B292)","v":0},{"$f":"(AE694+AE782)/2*(1-'B. Parameters'!$B292)","v":0},{"$f":"(AF694+AF782)/2*(1-'B. Parameters'!$B292)","v":0},{"$f":"(AG694+AG782)/2*(1-'B. Parameters'!$B292)","v":0},{"$f":"(AH694+AH782)/2*(1-'B. Parameters'!$B292)","v":0},{"$f":"(AI694+AI782)/2*(1-'B. Parameters'!$B292)","v":0},{"$f":"(AJ694+AJ782)/2*(1-'B. Parameters'!$B292)","v":0},{"$f":"(AK694+AK782)/2*(1-'B. Parameters'!$B292)","v":0},{"$f":"(AL694+AL782)/2*(1-'B. Parameters'!$B292)","v":0},{"$f":"(AM694+AM782)/2*(1-'B. Parameters'!$B292)","v":0},{"$f":"(AN694+AN782)/2*(1-'B. Parameters'!$B292)","v":0},{"$f":"(AO694+AO782)/2*(1-'B. Parameters'!$B292)","v":0},{"$f":"(AP694+AP782)/2*(1-'B. Parameters'!$B292)","v":0},{"$f":"(AQ694+AQ782)/2*(1-'B. Parameters'!$B292)","v":0}]
[2092,0,{"$f":"(C695+C783)/2*(1-'B. Parameters'!$B293)","v":0},{"$f":"(D695+D783)/2*(1-'B. Parameters'!$B293)","v":0},{"$f":"(E695+E783)/2*(1-'B. Parameters'!$B293)","v":0},{"$f":"(F695+F783)/2*(1-'B. Parameters'!$B293)","v":0},{"$f":"(G695+G783)/2*(1-'B. Parameters'!$B293)","v":0},{"$f":"(H695+H783)/2*(1-'B. Parameters'!$B293)","v":0},{"$f":"(I695+I783)/2*(1-'B. Parameters'!$B293)","v":0},{"$f":"(J695+J783)/2*(1-'B. Parameters'!$B293)","v":0},{"$f":"(K695+K783)/2*(1-'B. Parameters'!$B293)","v":0},{"$f":"(L695+L783)/2*(1-'B. Parameters'!$B293)","v":0},{"$f":"(M695+M783)/2*(1-'B. Parameters'!$B293)","v":0},{"$f":"(N695+N783)/2*(1-'B. Parameters'!$B293)","v":0},{"$f":"(O695+O783)/2*(1-'B. Parameters'!$B293)","v":0},{"$f":"(P695+P783)/2*(1-'B. Parameters'!$B293)","v":0},{"$f":"(Q695+Q783)/2*(1-'B. Parameters'!$B293)","v":0},{"$f":"(R695+R783)/2*(1-'B. Parameters'!$B293)","v":0},{"$f":"(S695+S783)/2*(1-'B. Parameters'!$B293)","v":0},{"$f":"(T695+T783)/2*(1-'B. Parameters'!$B293)","v":0},{"$f":"(U695+U783)/2*(1-'B. Parameters'!$B293)","v":0},{"$f":"(V695+V783)/2*(1-'B. Parameters'!$B293)","v":0},{"$f":"(W695+W783)/2*(1-'B. Parameters'!$B293)","v":0},{"$f":"(X695+X783)/2*(1-'B. Parameters'!$B293)","v":0},{"$f":"(Y695+Y783)/2*(1-'B. Parameters'!$B293)","v":0},{"$f":"(Z695+Z783)/2*(1-'B. Parameters'!$B293)","v":0},{"$f":"(AA695+AA783)/2*(1-'B. Parameters'!$B293)","v":0},{"$f":"(AB695+AB783)/2*(1-'B. Parameters'!$B293)","v":0},{"$f":"(AC695+AC783)/2*(1-'B. Parameters'!$B293)","v":0},{"$f":"(AD695+AD783)/2*(1-'B. Parameters'!$B293)","v":0},{"$f":"(AE695+AE783)/2*(1-'B. Parameters'!$B293)","v":0},{"$f":"(AF695+AF783)/2*(1-'B. Parameters'!$B293)","v":0},{"$f":"(AG695+AG783)/2*(1-'B. Parameters'!$B293)","v":0},{"$f":"(AH695+AH783)/2*(1-'B. Parameters'!$B293)","v":0},{"$f":"(AI695+AI783)/2*(1-'B. Parameters'!$B293)","v":0},{"$f":"(AJ695+AJ783)/2*(1-'B. Parameters'!$B293)","v":0},{"$f":"(AK695+AK783)/2*(1-'B. Parameters'!$B293)","v":0},{"$f":"(AL695+AL783)/2*(1-'B. Parameters'!$B293)","v":0},{"$f":"(AM695+AM783)/2*(1-'B. Parameters'!$B293)","v":0},{"$f":"(AN695+AN783)/2*(1-'B. Parameters'!$B293)","v":0},{"$f":"(AO695+AO783)/2*(1-'B. Parameters'!$B293)","v":0},{"$f":"(AP695+AP783)/2*(1-'B. Parameters'!$B293)","v":0},{"$f":"(AQ695+AQ783)/2*(1-'B. Parameters'!$B293)","v":0}]
[2093,0,{"$f":"(C696+C784)/2*(1-'B. Parameters'!$B294)","v":0},{"$f":"(D696+D784)/2*(1-'B. Parameters'!$B294)","v":0},{"$f":"(E696+E784)/2*(1-'B. Parameters'!$B294)","v":0},{"$f":"(F696+F784)/2*(1-'B. Parameters'!$B294)","v":0},{"$f":"(G696+G784)/2*(1-'B. Parameters'!$B294)","v":0},{"$f":"(H696+H784)/2*(1-'B. Parameters'!$B294)","v":0},{"$f":"(I696+I784)/2*(1-'B. Parameters'!$B294)","v":0},{"$f":"(J696+J784)/2*(1-'B. Parameters'!$B294)","v":0},{"$f":"(K696+K784)/2*(1-'B. Parameters'!$B294)","v":0},{"$f":"(L696+L784)/2*(1-'B. Parameters'!$B294)","v":0},{"$f":"(M696+M784)/2*(1-'B. Parameters'!$B294)","v":0},{"$f":"(N696+N784)/2*(1-'B. Parameters'!$B294)","v":0},{"$f":"(O696+O784)/2*(1-'B. Parameters'!$B294)","v":0},{"$f":"(P696+P784)/2*(1-'B. Parameters'!$B294)","v":0},{"$f":"(Q696+Q784)/2*(1-'B. Parameters'!$B294)","v":0},{"$f":"(R696+R784)/2*(1-'B. Parameters'!$B294)","v":0},{"$f":"(S696+S784)/2*(1-'B. Parameters'!$B294)","v":0},{"$f":"(T696+T784)/2*(1-'B. Parameters'!$B294)","v":0},{"$f":"(U696+U784)/2*(1-'B. Parameters'!$B294)","v":0},{"$f":"(V696+V784)/2*(1-'B. Parameters'!$B294)","v":0},{"$f":"(W696+W784)/2*(1-'B. Parameters'!$B294)","v":0},{"$f":"(X696+X784)/2*(1-'B. Parameters'!$B294)","v":0},{"$f":"(Y696+Y784)/2*(1-'B. Parameters'!$B294)","v":0},{"$f":"(Z696+Z784)/2*(1-'B. Parameters'!$B294)","v":0},{"$f":"(AA696+AA784)/2*(1-'B. Parameters'!$B294)","v":0},{"$f":"(AB696+AB784)/2*(1-'B. Parameters'!$B294)","v":0},{"$f":"(AC696+AC784)/2*(1-'B. Parameters'!$B294)","v":0},{"$f":"(AD696+AD784)/2*(1-'B. Parameters'!$B294)","v":0},{"$f":"(AE696+AE784)/2*(1-'B. Parameters'!$B294)","v":0},{"$f":"(AF696+AF784)/2*(1-'B. Parameters'!$B294)","v":0},{"$f":"(AG696+AG784)/2*(1-'B. Parameters'!$B294)","v":0},{"$f":"(AH696+AH784)/2*(1-'B. Parameters'!$B294)","v":0},{"$f":"(AI696+AI784)/2*(1-'B. Parameters'!$B294)","v":0},{"$f":"(AJ696+AJ784)/2*(1-'B. Parameters'!$B294)","v":0},{"$f":"(AK696+AK784)/2*(1-'B. Parameters'!$B294)","v":0},{"$f":"(AL696+AL784)/2*(1-'B. Parameters'!$B294)","v":0},{"$f":"(AM696+AM784)/2*(1-'B. Parameters'!$B294)","v":0},{"$f":"(AN696+AN784)/2*(1-'B. Parameters'!$B294)","v":0},{"$f":"(AO696+AO784)/2*(1-'B. Parameters'!$B294)","v":0},{"$f":"(AP696+AP784)/2*(1-'B. Parameters'!$B294)","v":0},{"$f":"(AQ696+AQ784)/2*(1-'B. Parameters'!$B294)","v":0}]
[2094,0,{"$f":"(C697+C785)/2*(1-'B. Parameters'!$B295)","v":0},{"$f":"(D697+D785)/2*(1-'B. Parameters'!$B295)","v":0},{"$f":"(E697+E785)/2*(1-'B. Parameters'!$B295)","v":0},{"$f":"(F697+F785)/2*(1-'B. Parameters'!$B295)","v":0},{"$f":"(G697+G785)/2*(1-'B. Parameters'!$B295)","v":0},{"$f":"(H697+H785)/2*(1-'B. Parameters'!$B295)","v":0},{"$f":"(I697+I785)/2*(1-'B. Parameters'!$B295)","v":0},{"$f":"(J697+J785)/2*(1-'B. Parameters'!$B295)","v":0},{"$f":"(K697+K785)/2*(1-'B. Parameters'!$B295)","v":0},{"$f":"(L697+L785)/2*(1-'B. Parameters'!$B295)","v":0},{"$f":"(M697+M785)/2*(1-'B. Parameters'!$B295)","v":0},{"$f":"(N697+N785)/2*(1-'B. Parameters'!$B295)","v":0},{"$f":"(O697+O785)/2*(1-'B. Parameters'!$B295)","v":0},{"$f":"(P697+P785)/2*(1-'B. Parameters'!$B295)","v":0},{"$f":"(Q697+Q785)/2*(1-'B. Parameters'!$B295)","v":0},{"$f":"(R697+R785)/2*(1-'B. Parameters'!$B295)","v":0},{"$f":"(S697+S785)/2*(1-'B. Parameters'!$B295)","v":0},{"$f":"(T697+T785)/2*(1-'B. Parameters'!$B295)","v":0},{"$f":"(U697+U785)/2*(1-'B. Parameters'!$B295)","v":0},{"$f":"(V697+V785)/2*(1-'B. Parameters'!$B295)","v":0},{"$f":"(W697+W785)/2*(1-'B. Parameters'!$B295)","v":0},{"$f":"(X697+X785)/2*(1-'B. Parameters'!$B295)","v":0},{"$f":"(Y697+Y785)/2*(1-'B. Parameters'!$B295)","v":0},{"$f":"(Z697+Z785)/2*(1-'B. Parameters'!$B295)","v":0},{"$f":"(AA697+AA785)/2*(1-'B. Parameters'!$B295)","v":0},{"$f":"(AB697+AB785)/2*(1-'B. Parameters'!$B295)","v":0},{"$f":"(AC697+AC785)/2*(1-'B. Parameters'!$B295)","v":0},{"$f":"(AD697+AD785)/2*(1-'B. Parameters'!$B295)","v":0},{"$f":"(AE697+AE785)/2*(1-'B. Parameters'!$B295)","v":0},{"$f":"(AF697+AF785)/2*(1-'B. Parameters'!$B295)","v":0},{"$f":"(AG697+AG785)/2*(1-'B. Parameters'!$B295)","v":0},{"$f":"(AH697+AH785)/2*(1-'B. Parameters'!$B295)","v":0},{"$f":"(AI697+AI785)/2*(1-'B. Parameters'!$B295)","v":0},{"$f":"(AJ697+AJ785)/2*(1-'B. Parameters'!$B295)","v":0},{"$f":"(AK697+AK785)/2*(1-'B. Parameters'!$B295)","v":0},{"$f":"(AL697+AL785)/2*(1-'B. Parameters'!$B295)","v":0},{"$f":"(AM697+AM785)/2*(1-'B. Parameters'!$B295)","v":0},{"$f":"(AN697+AN785)/2*(1-'B. Parameters'!$B295)","v":0},{"$f":"(AO697+AO785)/2*(1-'B. Parameters'!$B295)","v":0},{"$f":"(AP697+AP785)/2*(1-'B. Parameters'!$B295)","v":0},{"$f":"(AQ697+AQ785)/2*(1-'B. Parameters'!$B295)","v":0}]
[2095,0,{"$f":"(C698+C786)/2*(1-'B. Parameters'!$B296)","v":0},{"$f":"(D698+D786)/2*(1-'B. Parameters'!$B296)","v":0},{"$f":"(E698+E786)/2*(1-'B. Parameters'!$B296)","v":0},{"$f":"(F698+F786)/2*(1-'B. Parameters'!$B296)","v":0},{"$f":"(G698+G786)/2*(1-'B. Parameters'!$B296)","v":0},{"$f":"(H698+H786)/2*(1-'B. Parameters'!$B296)","v":0},{"$f":"(I698+I786)/2*(1-'B. Parameters'!$B296)","v":0},{"$f":"(J698+J786)/2*(1-'B. Parameters'!$B296)","v":0},{"$f":"(K698+K786)/2*(1-'B. Parameters'!$B296)","v":0},{"$f":"(L698+L786)/2*(1-'B. Parameters'!$B296)","v":0},{"$f":"(M698+M786)/2*(1-'B. Parameters'!$B296)","v":0},{"$f":"(N698+N786)/2*(1-'B. Parameters'!$B296)","v":0},{"$f":"(O698+O786)/2*(1-'B. Parameters'!$B296)","v":0},{"$f":"(P698+P786)/2*(1-'B. Parameters'!$B296)","v":0},{"$f":"(Q698+Q786)/2*(1-'B. Parameters'!$B296)","v":0},{"$f":"(R698+R786)/2*(1-'B. Parameters'!$B296)","v":0},{"$f":"(S698+S786)/2*(1-'B. Parameters'!$B296)","v":0},{"$f":"(T698+T786)/2*(1-'B. Parameters'!$B296)","v":0},{"$f":"(U698+U786)/2*(1-'B. Parameters'!$B296)","v":0},{"$f":"(V698+V786)/2*(1-'B. Parameters'!$B296)","v":0},{"$f":"(W698+W786)/2*(1-'B. Parameters'!$B296)","v":0},{"$f":"(X698+X786)/2*(1-'B. Parameters'!$B296)","v":0},{"$f":"(Y698+Y786)/2*(1-'B. Parameters'!$B296)","v":0},{"$f":"(Z698+Z786)/2*(1-'B. Parameters'!$B296)","v":0},{"$f":"(AA698+AA786)/2*(1-'B. Parameters'!$B296)","v":0},{"$f":"(AB698+AB786)/2*(1-'B. Parameters'!$B296)","v":0},{"$f":"(AC698+AC786)/2*(1-'B. Parameters'!$B296)","v":0},{"$f":"(AD698+AD786)/2*(1-'B. Parameters'!$B296)","v":0},{"$f":"(AE698+AE786)/2*(1-'B. Parameters'!$B296)","v":0},{"$f":"(AF698+AF786)/2*(1-'B. Parameters'!$B296)","v":0},{"$f":"(AG698+AG786)/2*(1-'B. Parameters'!$B296)","v":0},{"$f":"(AH698+AH786)/2*(1-'B. Parameters'!$B296)","v":0},{"$f":"(AI698+AI786)/2*(1-'B. Parameters'!$B296)","v":0},{"$f":"(AJ698+AJ786)/2*(1-'B. Parameters'!$B296)","v":0},{"$f":"(AK698+AK786)/2*(1-'B. Parameters'!$B296)","v":0},{"$f":"(AL698+AL786)/2*(1-'B. Parameters'!$B296)","v":0},{"$f":"(AM698+AM786)/2*(1-'B. Parameters'!$B296)","v":0},{"$f":"(AN698+AN786)/2*(1-'B. Parameters'!$B296)","v":0},{"$f":"(AO698+AO786)/2*(1-'B. Parameters'!$B296)","v":0},{"$f":"(AP698+AP786)/2*(1-'B. Parameters'!$B296)","v":0},{"$f":"(AQ698+AQ786)/2*(1-'B. Parameters'!$B296)","v":0}]
[2096,0,{"$f":"(C699+C787)/2*(1-'B. Parameters'!$B297)","v":0},{"$f":"(D699+D787)/2*(1-'B. Parameters'!$B297)","v":0},{"$f":"(E699+E787)/2*(1-'B. Parameters'!$B297)","v":0},{"$f":"(F699+F787)/2*(1-'B. Parameters'!$B297)","v":0},{"$f":"(G699+G787)/2*(1-'B. Parameters'!$B297)","v":0},{"$f":"(H699+H787)/2*(1-'B. Parameters'!$B297)","v":0},{"$f":"(I699+I787)/2*(1-'B. Parameters'!$B297)","v":0},{"$f":"(J699+J787)/2*(1-'B. Parameters'!$B297)","v":0},{"$f":"(K699+K787)/2*(1-'B. Parameters'!$B297)","v":0},{"$f":"(L699+L787)/2*(1-'B. Parameters'!$B297)","v":0},{"$f":"(M699+M787)/2*(1-'B. Parameters'!$B297)","v":0},{"$f":"(N699+N787)/2*(1-'B. Parameters'!$B297)","v":0},{"$f":"(O699+O787)/2*(1-'B. Parameters'!$B297)","v":0},{"$f":"(P699+P787)/2*(1-'B. Parameters'!$B297)","v":0},{"$f":"(Q699+Q787)/2*(1-'B. Parameters'!$B297)","v":0},{"$f":"(R699+R787)/2*(1-'B. Parameters'!$B297)","v":0},{"$f":"(S699+S787)/2*(1-'B. Parameters'!$B297)","v":0},{"$f":"(T699+T787)/2*(1-'B. Parameters'!$B297)","v":0},{"$f":"(U699+U787)/2*(1-'B. Parameters'!$B297)","v":0},{"$f":"(V699+V787)/2*(1-'B. Parameters'!$B297)","v":0},{"$f":"(W699+W787)/2*(1-'B. Parameters'!$B297)","v":0},{"$f":"(X699+X787)/2*(1-'B. Parameters'!$B297)","v":0},{"$f":"(Y699+Y787)/2*(1-'B. Parameters'!$B297)","v":0},{"$f":"(Z699+Z787)/2*(1-'B. Parameters'!$B297)","v":0},{"$f":"(AA699+AA787)/2*(1-'B. Parameters'!$B297)","v":0},{"$f":"(AB699+AB787)/2*(1-'B. Parameters'!$B297)","v":0},{"$f":"(AC699+AC787)/2*(1-'B. Parameters'!$B297)","v":0},{"$f":"(AD699+AD787)/2*(1-'B. Parameters'!$B297)","v":0},{"$f":"(AE699+AE787)/2*(1-'B. Parameters'!$B297)","v":0},{"$f":"(AF699+AF787)/2*(1-'B. Parameters'!$B297)","v":0},{"$f":"(AG699+AG787)/2*(1-'B. Parameters'!$B297)","v":0},{"$f":"(AH699+AH787)/2*(1-'B. Parameters'!$B297)","v":0},{"$f":"(AI699+AI787)/2*(1-'B. Parameters'!$B297)","v":0},{"$f":"(AJ699+AJ787)/2*(1-'B. Parameters'!$B297)","v":0},{"$f":"(AK699+AK787)/2*(1-'B. Parameters'!$B297)","v":0},{"$f":"(AL699+AL787)/2*(1-'B. Parameters'!$B297)","v":0},{"$f":"(AM699+AM787)/2*(1-'B. Parameters'!$B297)","v":0},{"$f":"(AN699+AN787)/2*(1-'B. Parameters'!$B297)","v":0},{"$f":"(AO699+AO787)/2*(1-'B. Parameters'!$B297)","v":0},{"$f":"(AP699+AP787)/2*(1-'B. Parameters'!$B297)","v":0},{"$f":"(AQ699+AQ787)/2*(1-'B. Parameters'!$B297)","v":0}]
[2097,0,{"$f":"(C700+C788)/2*(1-'B. Parameters'!$B298)","v":0},{"$f":"(D700+D788)/2*(1-'B. Parameters'!$B298)","v":0},{"$f":"(E700+E788)/2*(1-'B. Parameters'!$B298)","v":0},{"$f":"(F700+F788)/2*(1-'B. Parameters'!$B298)","v":0},{"$f":"(G700+G788)/2*(1-'B. Parameters'!$B298)","v":0},{"$f":"(H700+H788)/2*(1-'B. Parameters'!$B298)","v":0},{"$f":"(I700+I788)/2*(1-'B. Parameters'!$B298)","v":0},{"$f":"(J700+J788)/2*(1-'B. Parameters'!$B298)","v":0},{"$f":"(K700+K788)/2*(1-'B. Parameters'!$B298)","v":0},{"$f":"(L700+L788)/2*(1-'B. Parameters'!$B298)","v":0},{"$f":"(M700+M788)/2*(1-'B. Parameters'!$B298)","v":0},{"$f":"(N700+N788)/2*(1-'B. Parameters'!$B298)","v":0},{"$f":"(O700+O788)/2*(1-'B. Parameters'!$B298)","v":0},{"$f":"(P700+P788)/2*(1-'B. Parameters'!$B298)","v":0},{"$f":"(Q700+Q788)/2*(1-'B. Parameters'!$B298)","v":0},{"$f":"(R700+R788)/2*(1-'B. Parameters'!$B298)","v":0},{"$f":"(S700+S788)/2*(1-'B. Parameters'!$B298)","v":0},{"$f":"(T700+T788)/2*(1-'B. Parameters'!$B298)","v":0},{"$f":"(U700+U788)/2*(1-'B. Parameters'!$B298)","v":0},{"$f":"(V700+V788)/2*(1-'B. Parameters'!$B298)","v":0},{"$f":"(W700+W788)/2*(1-'B. Parameters'!$B298)","v":0},{"$f":"(X700+X788)/2*(1-'B. Parameters'!$B298)","v":0},{"$f":"(Y700+Y788)/2*(1-'B. Parameters'!$B298)","v":0},{"$f":"(Z700+Z788)/2*(1-'B. Parameters'!$B298)","v":0},{"$f":"(AA700+AA788)/2*(1-'B. Parameters'!$B298)","v":0},{"$f":"(AB700+AB788)/2*(1-'B. Parameters'!$B298)","v":0},{"$f":"(AC700+AC788)/2*(1-'B. Parameters'!$B298)","v":0},{"$f":"(AD700+AD788)/2*(1-'B. Parameters'!$B298)","v":0},{"$f":"(AE700+AE788)/2*(1-'B. Parameters'!$B298)","v":0},{"$f":"(AF700+AF788)/2*(1-'B. Parameters'!$B298)","v":0},{"$f":"(AG700+AG788)/2*(1-'B. Parameters'!$B298)","v":0},{"$f":"(AH700+AH788)/2*(1-'B. Parameters'!$B298)","v":0},{"$f":"(AI700+AI788)/2*(1-'B. Parameters'!$B298)","v":0},{"$f":"(AJ700+AJ788)/2*(1-'B. Parameters'!$B298)","v":0},{"$f":"(AK700+AK788)/2*(1-'B. Parameters'!$B298)","v":0},{"$f":"(AL700+AL788)/2*(1-'B. Parameters'!$B298)","v":0},{"$f":"(AM700+AM788)/2*(1-'B. Parameters'!$B298)","v":0},{"$f":"(AN700+AN788)/2*(1-'B. Parameters'!$B298)","v":0},{"$f":"(AO700+AO788)/2*(1-'B. Parameters'!$B298)","v":0},{"$f":"(AP700+AP788)/2*(1-'B. Parameters'!$B298)","v":0},{"$f":"(AQ700+AQ788)/2*(1-'B. Parameters'!$B298)","v":0}]
[2098,0,{"$f":"(C701+C789)/2*(1-'B. Parameters'!$B299)","v":0},{"$f":"(D701+D789)/2*(1-'B. Parameters'!$B299)","v":0},{"$f":"(E701+E789)/2*(1-'B. Parameters'!$B299)","v":0},{"$f":"(F701+F789)/2*(1-'B. Parameters'!$B299)","v":0},{"$f":"(G701+G789)/2*(1-'B. Parameters'!$B299)","v":0},{"$f":"(H701+H789)/2*(1-'B. Parameters'!$B299)","v":0},{"$f":"(I701+I789)/2*(1-'B. Parameters'!$B299)","v":0},{"$f":"(J701+J789)/2*(1-'B. Parameters'!$B299)","v":0},{"$f":"(K701+K789)/2*(1-'B. Parameters'!$B299)","v":0},{"$f":"(L701+L789)/2*(1-'B. Parameters'!$B299)","v":0},{"$f":"(M701+M789)/2*(1-'B. Parameters'!$B299)","v":0},{"$f":"(N701+N789)/2*(1-'B. Parameters'!$B299)","v":0},{"$f":"(O701+O789)/2*(1-'B. Parameters'!$B299)","v":0},{"$f":"(P701+P789)/2*(1-'B. Parameters'!$B299)","v":0},{"$f":"(Q701+Q789)/2*(1-'B. Parameters'!$B299)","v":0},{"$f":"(R701+R789)/2*(1-'B. Parameters'!$B299)","v":0},{"$f":"(S701+S789)/2*(1-'B. Parameters'!$B299)","v":0},{"$f":"(T701+T789)/2*(1-'B. Parameters'!$B299)","v":0},{"$f":"(U701+U789)/2*(1-'B. Parameters'!$B299)","v":0},{"$f":"(V701+V789)/2*(1-'B. Parameters'!$B299)","v":0},{"$f":"(W701+W789)/2*(1-'B. Parameters'!$B299)","v":0},{"$f":"(X701+X789)/2*(1-'B. Parameters'!$B299)","v":0},{"$f":"(Y701+Y789)/2*(1-'B. Parameters'!$B299)","v":0},{"$f":"(Z701+Z789)/2*(1-'B. Parameters'!$B299)","v":0},{"$f":"(AA701+AA789)/2*(1-'B. Parameters'!$B299)","v":0},{"$f":"(AB701+AB789)/2*(1-'B. Parameters'!$B299)","v":0},{"$f":"(AC701+AC789)/2*(1-'B. Parameters'!$B299)","v":0},{"$f":"(AD701+AD789)/2*(1-'B. Parameters'!$B299)","v":0},{"$f":"(AE701+AE789)/2*(1-'B. Parameters'!$B299)","v":0},{"$f":"(AF701+AF789)/2*(1-'B. Parameters'!$B299)","v":0},{"$f":"(AG701+AG789)/2*(1-'B. Parameters'!$B299)","v":0},{"$f":"(AH701+AH789)/2*(1-'B. Parameters'!$B299)","v":0},{"$f":"(AI701+AI789)/2*(1-'B. Parameters'!$B299)","v":0},{"$f":"(AJ701+AJ789)/2*(1-'B. Parameters'!$B299)","v":0},{"$f":"(AK701+AK789)/2*(1-'B. Parameters'!$B299)","v":0},{"$f":"(AL701+AL789)/2*(1-'B. Parameters'!$B299)","v":0},{"$f":"(AM701+AM789)/2*(1-'B. Parameters'!$B299)","v":0},{"$f":"(AN701+AN789)/2*(1-'B. Parameters'!$B299)","v":0},{"$f":"(AO701+AO789)/2*(1-'B. Parameters'!$B299)","v":0},{"$f":"(AP701+AP789)/2*(1-'B. Parameters'!$B299)","v":0},{"$f":"(AQ701+AQ789)/2*(1-'B. Parameters'!$B299)","v":0}]
[2099,0,{"$f":"(C702+C790)/2*(1-'B. Parameters'!$B300)","v":0},{"$f":"(D702+D790)/2*(1-'B. Parameters'!$B300)","v":0},{"$f":"(E702+E790)/2*(1-'B. Parameters'!$B300)","v":0},{"$f":"(F702+F790)/2*(1-'B. Parameters'!$B300)","v":0},{"$f":"(G702+G790)/2*(1-'B. Parameters'!$B300)","v":0},{"$f":"(H702+H790)/2*(1-'B. Parameters'!$B300)","v":0},{"$f":"(I702+I790)/2*(1-'B. Parameters'!$B300)","v":0},{"$f":"(J702+J790)/2*(1-'B. Parameters'!$B300)","v":0},{"$f":"(K702+K790)/2*(1-'B. Parameters'!$B300)","v":0},{"$f":"(L702+L790)/2*(1-'B. Parameters'!$B300)","v":0},{"$f":"(M702+M790)/2*(1-'B. Parameters'!$B300)","v":0},{"$f":"(N702+N790)/2*(1-'B. Parameters'!$B300)","v":0},{"$f":"(O702+O790)/2*(1-'B. Parameters'!$B300)","v":0},{"$f":"(P702+P790)/2*(1-'B. Parameters'!$B300)","v":0},{"$f":"(Q702+Q790)/2*(1-'B. Parameters'!$B300)","v":0},{"$f":"(R702+R790)/2*(1-'B. Parameters'!$B300)","v":0},{"$f":"(S702+S790)/2*(1-'B. Parameters'!$B300)","v":0},{"$f":"(T702+T790)/2*(1-'B. Parameters'!$B300)","v":0},{"$f":"(U702+U790)/2*(1-'B. Parameters'!$B300)","v":0},{"$f":"(V702+V790)/2*(1-'B. Parameters'!$B300)","v":0},{"$f":"(W702+W790)/2*(1-'B. Parameters'!$B300)","v":0},{"$f":"(X702+X790)/2*(1-'B. Parameters'!$B300)","v":0},{"$f":"(Y702+Y790)/2*(1-'B. Parameters'!$B300)","v":0},{"$f":"(Z702+Z790)/2*(1-'B. Parameters'!$B300)","v":0},{"$f":"(AA702+AA790)/2*(1-'B. Parameters'!$B300)","v":0},{"$f":"(AB702+AB790)/2*(1-'B. Parameters'!$B300)","v":0},{"$f":"(AC702+AC790)/2*(1-'B. Parameters'!$B300)","v":0},{"$f":"(AD702+AD790)/2*(1-'B. Parameters'!$B300)","v":0},{"$f":"(AE702+AE790)/2*(1-'B. Parameters'!$B300)","v":0},{"$f":"(AF702+AF790)/2*(1-'B. Parameters'!$B300)","v":0},{"$f":"(AG702+AG790)/2*(1-'B. Parameters'!$B300)","v":0},{"$f":"(AH702+AH790)/2*(1-'B. Parameters'!$B300)","v":0},{"$f":"(AI702+AI790)/2*(1-'B. Parameters'!$B300)","v":0},{"$f":"(AJ702+AJ790)/2*(1-'B. Parameters'!$B300)","v":0},{"$f":"(AK702+AK790)/2*(1-'B. Parameters'!$B300)","v":0},{"$f":"(AL702+AL790)/2*(1-'B. Parameters'!$B300)","v":0},{"$f":"(AM702+AM790)/2*(1-'B. Parameters'!$B300)","v":0},{"$f":"(AN702+AN790)/2*(1-'B. Parameters'!$B300)","v":0},{"$f":"(AO702+AO790)/2*(1-'B. Parameters'!$B300)","v":0},{"$f":"(AP702+AP790)/2*(1-'B. Parameters'!$B300)","v":0},{"$f":"(AQ702+AQ790)/2*(1-'B. Parameters'!$B300)","v":0}]
[2100,0,{"$f":"(C703+C791)/2*(1-'B. Parameters'!$B301)","v":0},{"$f":"(D703+D791)/2*(1-'B. Parameters'!$B301)","v":0},{"$f":"(E703+E791)/2*(1-'B. Parameters'!$B301)","v":0},{"$f":"(F703+F791)/2*(1-'B. Parameters'!$B301)","v":0},{"$f":"(G703+G791)/2*(1-'B. Parameters'!$B301)","v":0},{"$f":"(H703+H791)/2*(1-'B. Parameters'!$B301)","v":0},{"$f":"(I703+I791)/2*(1-'B. Parameters'!$B301)","v":0},{"$f":"(J703+J791)/2*(1-'B. Parameters'!$B301)","v":0},{"$f":"(K703+K791)/2*(1-'B. Parameters'!$B301)","v":0},{"$f":"(L703+L791)/2*(1-'B. Parameters'!$B301)","v":0},{"$f":"(M703+M791)/2*(1-'B. Parameters'!$B301)","v":0},{"$f":"(N703+N791)/2*(1-'B. Parameters'!$B301)","v":0},{"$f":"(O703+O791)/2*(1-'B. Parameters'!$B301)","v":0},{"$f":"(P703+P791)/2*(1-'B. Parameters'!$B301)","v":0},{"$f":"(Q703+Q791)/2*(1-'B. Parameters'!$B301)","v":0},{"$f":"(R703+R791)/2*(1-'B. Parameters'!$B301)","v":0},{"$f":"(S703+S791)/2*(1-'B. Parameters'!$B301)","v":0},{"$f":"(T703+T791)/2*(1-'B. Parameters'!$B301)","v":0},{"$f":"(U703+U791)/2*(1-'B. Parameters'!$B301)","v":0},{"$f":"(V703+V791)/2*(1-'B. Parameters'!$B301)","v":0},{"$f":"(W703+W791)/2*(1-'B. Parameters'!$B301)","v":0},{"$f":"(X703+X791)/2*(1-'B. Parameters'!$B301)","v":0},{"$f":"(Y703+Y791)/2*(1-'B. Parameters'!$B301)","v":0},{"$f":"(Z703+Z791)/2*(1-'B. Parameters'!$B301)","v":0},{"$f":"(AA703+AA791)/2*(1-'B. Parameters'!$B301)","v":0},{"$f":"(AB703+AB791)/2*(1-'B. Parameters'!$B301)","v":0},{"$f":"(AC703+AC791)/2*(1-'B. Parameters'!$B301)","v":0},{"$f":"(AD703+AD791)/2*(1-'B. Parameters'!$B301)","v":0},{"$f":"(AE703+AE791)/2*(1-'B. Parameters'!$B301)","v":0},{"$f":"(AF703+AF791)/2*(1-'B. Parameters'!$B301)","v":0},{"$f":"(AG703+AG791)/2*(1-'B. Parameters'!$B301)","v":0},{"$f":"(AH703+AH791)/2*(1-'B. Parameters'!$B301)","v":0},{"$f":"(AI703+AI791)/2*(1-'B. Parameters'!$B301)","v":0},{"$f":"(AJ703+AJ791)/2*(1-'B. Parameters'!$B301)","v":0},{"$f":"(AK703+AK791)/2*(1-'B. Parameters'!$B301)","v":0},{"$f":"(AL703+AL791)/2*(1-'B. Parameters'!$B301)","v":0},{"$f":"(AM703+AM791)/2*(1-'B. Parameters'!$B301)","v":0},{"$f":"(AN703+AN791)/2*(1-'B. Parameters'!$B301)","v":0},{"$f":"(AO703+AO791)/2*(1-'B. Parameters'!$B301)","v":0},{"$f":"(AP703+AP791)/2*(1-'B. Parameters'!$B301)","v":0},{"$f":"(AQ703+AQ791)/2*(1-'B. Parameters'!$B301)","v":0}]
[]
[null,null,1,2,3,4,5,6,7,8,9,10,11,12,13,14,15,16,17,18,19,20,21,22,23,24,25,26,27,28,29,30,31,32,33,34,35,36,37,38,39,40,41]
["OPEX","Total","Properties","Property facilities, structures for transport system","Operating buildings","Administrative buildings","Track systems, wagons","Business equipment (without IT/tools/devices)","Tools/devices","Storage facilities","Hardware","Software","Light vehicles","Heavy vehicles","Gas holders","Natural gas compression","Gas purifiers","Piping and fittings","Gas measuring equipment","Safety equipment","Control and energy technology","Ancillary facilities","Buildings, transport routes","Steel pipelines – encapsulated in PE","Steel pipelines – cathodic protection","Steel pipelines – bituminised","Grey cast iron (> DN 150)","Polyethylene (PE - HD)","Polyvinyl chloride (PVC)","Polyvinyl chloride (PVC)","Fittings","Pig traps","Safety equipment","Gas meters of distribution","Service regulators/meter regulators","Metering equipment","Control equipment","Safety equipment","Control and energy technology","Compressors in gas-mixing systems by duration of use","Ancillary facilities","Buildings","Remote control equipment"]
[2016,{"$f":"SUM(C883:AQ883)","v":0},{"$f":"(SUMPRODUCT(($A$3:$A3>($A883-VLOOKUP(C$881,'F. UL & OPEX flat rates'!$B$2:$G$43,5)))*1,C$3:C3)+C707)*VLOOKUP(C$881,'F. UL & OPEX flat rates'!$B$2:$G$43,6,0)","v":0},{"$f":"(SUMPRODUCT(($A$3:$A3>($A883-VLOOKUP(D$881,'F. UL & OPEX flat rates'!$B$2:$G$43,5)))*1,D$3:D3)+D707)*VLOOKUP(D$881,'F. UL & OPEX flat rates'!$B$2:$G$43,6,0)","v":0},{"$f":"(SUMPRODUCT(($A$3:$A3>($A883-VLOOKUP(E$881,'F. UL & OPEX flat rates'!$B$2:$G$43,5)))*1,E$3:E3)+E707)*VLOOKUP(E$881,'F. UL & OPEX flat rates'!$B$2:$G$43,6,0)","v":0},{"$f":"(SUMPRODUCT(($A$3:$A3>($A883-VLOOKUP(F$881,'F. UL & OPEX flat rates'!$B$2:$G$43,5)))*1,F$3:F3)+F707)*VLOOKUP(F$881,'F. UL & OPEX flat rates'!$B$2:$G$43,6,0)","v":0},{"$f":"(SUMPRODUCT(($A$3:$A3>($A883-VLOOKUP(G$881,'F. UL & OPEX flat rates'!$B$2:$G$43,5)))*1,G$3:G3)+G707)*VLOOKUP(G$881,'F. UL & OPEX flat rates'!$B$2:$G$43,6,0)","v":0},{"$f":"(SUMPRODUCT(($A$3:$A3>($A883-VLOOKUP(H$881,'F. UL & OPEX flat rates'!$B$2:$G$43,5)))*1,H$3:H3)+H707)*VLOOKUP(H$881,'F. UL & OPEX flat rates'!$B$2:$G$43,6,0)","v":0},{"$f":"(SUMPRODUCT(($A$3:$A3>($A883-VLOOKUP(I$881,'F. UL & OPEX flat rates'!$B$2:$G$43,5)))*1,I$3:I3)+I707)*VLOOKUP(I$881,'F. UL & OPEX flat rates'!$B$2:$G$43,6,0)","v":0},{"$f":"(SUMPRODUCT(($A$3:$A3>($A883-VLOOKUP(J$881,'F. UL & OPEX flat rates'!$B$2:$G$43,5)))*1,J$3:J3)+J707)*VLOOKUP(J$881,'F. UL & OPEX flat rates'!$B$2:$G$43,6,0)","v":0},{"$f":"(SUMPRODUCT(($A$3:$A3>($A883-VLOOKUP(K$881,'F. UL & OPEX flat rates'!$B$2:$G$43,5)))*1,K$3:K3)+K707)*VLOOKUP(K$881,'F. UL & OPEX flat rates'!$B$2:$G$43,6,0)","v":0},{"$f":"(SUMPRODUCT(($A$3:$A3>($A883-VLOOKUP(L$881,'F. UL & OPEX flat rates'!$B$2:$G$43,5)))*1,L$3:L3)+L707)*VLOOKUP(L$881,'F. UL & OPEX flat rates'!$B$2:$G$43,6,0)","v":0},{"$f":"(SUMPRODUCT(($A$3:$A3>($A883-VLOOKUP(M$881,'F. UL & OPEX flat rates'!$B$2:$G$43,5)))*1,M$3:M3)+M707)*VLOOKUP(M$881,'F. UL & OPEX flat rates'!$B$2:$G$43,6,0)","v":0},{"$f":"(SUMPRODUCT(($A$3:$A3>($A883-VLOOKUP(N$881,'F. UL & OPEX flat rates'!$B$2:$G$43,5)))*1,N$3:N3)+N707)*VLOOKUP(N$881,'F. UL & OPEX flat rates'!$B$2:$G$43,6,0)","v":0},{"$f":"(SUMPRODUCT(($A$3:$A3>($A883-VLOOKUP(O$881,'F. UL & OPEX flat rates'!$B$2:$G$43,5)))*1,O$3:O3)+O707)*VLOOKUP(O$881,'F. UL & OPEX flat rates'!$B$2:$G$43,6,0)","v":0},{"$f":"(SUMPRODUCT(($A$3:$A3>($A883-VLOOKUP(P$881,'F. UL & OPEX flat rates'!$B$2:$G$43,5)))*1,P$3:P3)+P707)*VLOOKUP(P$881,'F. UL & OPEX flat rates'!$B$2:$G$43,6,0)","v":0},{"$f":"(SUMPRODUCT(($A$3:$A3>($A883-VLOOKUP(Q$881,'F. UL & OPEX flat rates'!$B$2:$G$43,5)))*1,Q$3:Q3)+Q707)*VLOOKUP(Q$881,'F. UL & OPEX flat rates'!$B$2:$G$43,6,0)","v":0},{"$f":"(SUMPRODUCT(($A$3:$A3>($A883-VLOOKUP(R$881,'F. UL & OPEX flat rates'!$B$2:$G$43,5)))*1,R$3:R3)+R707)*VLOOKUP(R$881,'F. UL & OPEX flat rates'!$B$2:$G$43,6,0)","v":0},{"$f":"(SUMPRODUCT(($A$3:$A3>($A883-VLOOKUP(S$881,'F. UL & OPEX flat rates'!$B$2:$G$43,5)))*1,S$3:S3)+S707)*VLOOKUP(S$881,'F. UL & OPEX flat rates'!$B$2:$G$43,6,0)","v":0},{"$f":"(SUMPRODUCT(($A$3:$A3>($A883-VLOOKUP(T$881,'F. UL & OPEX flat rates'!$B$2:$G$43,5)))*1,T$3:T3)+T707)*VLOOKUP(T$881,'F. UL & OPEX flat rates'!$B$2:$G$43,6,0)","v":0},{"$f":"(SUMPRODUCT(($A$3:$A3>($A883-VLOOKUP(U$881,'F. UL & OPEX flat rates'!$B$2:$G$43,5)))*1,U$3:U3)+U707)*VLOOKUP(U$881,'F. UL & OPEX flat rates'!$B$2:$G$43,6,0)","v":0},{"$f":"(SUMPRODUCT(($A$3:$A3>($A883-VLOOKUP(V$881,'F. UL & OPEX flat rates'!$B$2:$G$43,5)))*1,V$3:V3)+V707)*VLOOKUP(V$881,'F. UL & OPEX flat rates'!$B$2:$G$43,6,0)","v":0},{"$f":"(SUMPRODUCT(($A$3:$A3>($A883-VLOOKUP(W$881,'F. UL & OPEX flat rates'!$B$2:$G$43,5)))*1,W$3:W3)+W707)*VLOOKUP(W$881,'F. UL & OPEX flat rates'!$B$2:$G$43,6,0)","v":0},{"$f":"(SUMPRODUCT(($A$3:$A3>($A883-VLOOKUP(X$881,'F. UL & OPEX flat rates'!$B$2:$G$43,5)))*1,X$3:X3)+X707)*VLOOKUP(X$881,'F. UL & OPEX flat rates'!$B$2:$G$43,6,0)","v":0},{"$f":"(SUMPRODUCT(($A$3:$A3>($A883-VLOOKUP(Y$881,'F. UL & OPEX flat rates'!$B$2:$G$43,5)))*1,Y$3:Y3)+Y707)*VLOOKUP(Y$881,'F. UL & OPEX flat rates'!$B$2:$G$43,6,0)","v":0},{"$f":"(SUMPRODUCT(($A$3:$A3>($A883-VLOOKUP(Z$881,'F. UL & OPEX flat rates'!$B$2:$G$43,5)))*1,Z$3:Z3)+Z707)*VLOOKUP(Z$881,'F. UL & OPEX flat rates'!$B$2:$G$43,6,0)","v":0},{"$f":"(SUMPRODUCT(($A$3:$A3>($A883-VLOOKUP(AA$881,'F. UL & OPEX flat rates'!$B$2:$G$43,5)))*1,AA$3:AA3)+AA707)*VLOOKUP(AA$881,'F. UL & OPEX flat rates'!$B$2:$G$43,6,0)","v":0},{"$f":"(SUMPRODUCT(($A$3:$A3>($A883-VLOOKUP(AB$881,'F. UL & OPEX flat rates'!$B$2:$G$43,5)))*1,AB$3:AB3)+AB707)*VLOOKUP(AB$881,'F. UL & OPEX flat rates'!$B$2:$G$43,6,0)","v":0},{"$f":"(SUMPRODUCT(($A$3:$A3>($A883-VLOOKUP(AC$881,'F. UL & OPEX flat rates'!$B$2:$G$43,5)))*1,AC$3:AC3)+AC707)*VLOOKUP(AC$881,'F. UL & OPEX flat rates'!$B$2:$G$43,6,0)","v":0},{"$f":"(SUMPRODUCT(($A$3:$A3>($A883-VLOOKUP(AD$881,'F. UL & OPEX flat rates'!$B$2:$G$43,5)))*1,AD$3:AD3)+AD707)*VLOOKUP(AD$881,'F. UL & OPEX flat rates'!$B$2:$G$43,6,0)","v":0},{"$f":"(SUMPRODUCT(($A$3:$A3>($A883-VLOOKUP(AE$881,'F. UL & OPEX flat rates'!$B$2:$G$43,5)))*1,AE$3:AE3)+AE707)*VLOOKUP(AE$881,'F. UL & OPEX flat rates'!$B$2:$G$43,6,0)","v":0},{"$f":"(SUMPRODUCT(($A$3:$A3>($A883-VLOOKUP(AF$881,'F. UL & OPEX flat rates'!$B$2:$G$43,5)))*1,AF$3:AF3)+AF707)*VLOOKUP(AF$881,'F. UL & OPEX flat rates'!$B$2:$G$43,6,0)","v":0},{"$f":"(SUMPRODUCT(($A$3:$A3>($A883-VLOOKUP(AG$881,'F. UL & OPEX flat rates'!$B$2:$G$43,5)))*1,AG$3:AG3)+AG707)*VLOOKUP(AG$881,'F. UL & OPEX flat rates'!$B$2:$G$43,6,0)","v":0},{"$f":"(SUMPRODUCT(($A$3:$A3>($A883-VLOOKUP(AH$881,'F. UL & OPEX flat rates'!$B$2:$G$43,5)))*1,AH$3:AH3)+AH707)*VLOOKUP(AH$881,'F. UL & OPEX flat rates'!$B$2:$G$43,6,0)","v":0},{"$f":"(SUMPRODUCT(($A$3:$A3>($A883-VLOOKUP(AI$881,'F. UL & OPEX flat rates'!$B$2:$G$43,5)))*1,AI$3:AI3)+AI707)*VLOOKUP(AI$881,'F. UL & OPEX flat rates'!$B$2:$G$43,6,0)","v":0},{"$f":"(SUMPRODUCT(($A$3:$A3>($A883-VLOOKUP(AJ$881,'F. UL & OPEX flat rates'!$B$2:$G$43,5)))*1,AJ$3:AJ3)+AJ707)*VLOOKUP(AJ$881,'F. UL & OPEX flat rates'!$B$2:$G$43,6,0)","v":0},{"$f":"(SUMPRODUCT(($A$3:$A3>($A883-VLOOKUP(AK$881,'F. UL & OPEX flat rates'!$B$2:$G$43,5)))*1,AK$3:AK3)+AK707)*VLOOKUP(AK$881,'F. UL & OPEX flat rates'!$B$2:$G$43,6,0)","v":0},{"$f":"(SUMPRODUCT(($A$3:$A3>($A883-VLOOKUP(AL$881,'F. UL & OPEX flat rates'!$B$2:$G$43,5)))*1,AL$3:AL3)+AL707)*VLOOKUP(AL$881,'F. UL & OPEX flat rates'!$B$2:$G$43,6,0)","v":0},{"$f":"(SUMPRODUCT(($A$3:$A3>($A883-VLOOKUP(AM$881,'F. UL & OPEX flat rates'!$B$2:$G$43,5)))*1,AM$3:AM3)+AM707)*VLOOKUP(AM$881,'F. UL & OPEX flat rates'!$B$2:$G$43,6,0)","v":0},{"$f":"(SUMPRODUCT(($A$3:$A3>($A883-VLOOKUP(AN$881,'F. UL & OPEX flat rates'!$B$2:$G$43,5)))*1,AN$3:AN3)+AN707)*VLOOKUP(AN$881,'F. UL & OPEX flat rates'!$B$2:$G$43,6,0)","v":0},{"$f":"(SUMPRODUCT(($A$3:$A3>($A883-VLOOKUP(AO$881,'F. UL & OPEX flat rates'!$B$2:$G$43,5)))*1,AO$3:AO3)+AO707)*VLOOKUP(AO$881,'F. UL & OPEX flat rates'!$B$2:$G$43,6,0)","v":0},{"$f":"(SUMPRODUCT(($A$3:$A3>($A883-VLOOKUP(AP$881,'F. UL & OPEX flat rates'!$B$2:$G$43,5)))*1,AP$3:AP3)+AP707)*VLOOKUP(AP$881,'F. UL & OPEX flat rates'!$B$2:$G$43,6,0)","v":0},{"$f":"(SUMPRODUCT(($A$3:$A3>($A883-VLOOKUP(AQ$881,'F. UL & OPEX flat rates'!$B$2:$G$43,5)))*1,AQ$3:AQ3)+AQ707)*VLOOKUP(AQ$881,'F. UL & OPEX flat rates'!$B$2:$G$43,6,0)","v":0}]
[2017,0,{"$f":"(SUMPRODUCT(($A$3:$A4>($A884-VLOOKUP(C$881,'F. UL & OPEX flat rates'!$B$2:$G$43,5)))*1,C$3:C4)+C708)*VLOOKUP(C$881,'F. UL & OPEX flat rates'!$B$2:$G$43,6,0)","v":0},{"$f":"(SUMPRODUCT(($A$3:$A4>($A884-VLOOKUP(D$881,'F. UL & OPEX flat rates'!$B$2:$G$43,5)))*1,D$3:D4)+D708)*VLOOKUP(D$881,'F. UL & OPEX flat rates'!$B$2:$G$43,6,0)","v":0},{"$f":"(SUMPRODUCT(($A$3:$A4>($A884-VLOOKUP(E$881,'F. UL & OPEX flat rates'!$B$2:$G$43,5)))*1,E$3:E4)+E708)*VLOOKUP(E$881,'F. UL & OPEX flat rates'!$B$2:$G$43,6,0)","v":0},{"$f":"(SUMPRODUCT(($A$3:$A4>($A884-VLOOKUP(F$881,'F. UL & OPEX flat rates'!$B$2:$G$43,5)))*1,F$3:F4)+F708)*VLOOKUP(F$881,'F. UL & OPEX flat rates'!$B$2:$G$43,6,0)","v":0},{"$f":"(SUMPRODUCT(($A$3:$A4>($A884-VLOOKUP(G$881,'F. UL & OPEX flat rates'!$B$2:$G$43,5)))*1,G$3:G4)+G708)*VLOOKUP(G$881,'F. UL & OPEX flat rates'!$B$2:$G$43,6,0)","v":0},{"$f":"(SUMPRODUCT(($A$3:$A4>($A884-VLOOKUP(H$881,'F. UL & OPEX flat rates'!$B$2:$G$43,5)))*1,H$3:H4)+H708)*VLOOKUP(H$881,'F. UL & OPEX flat rates'!$B$2:$G$43,6,0)","v":0},{"$f":"(SUMPRODUCT(($A$3:$A4>($A884-VLOOKUP(I$881,'F. UL & OPEX flat rates'!$B$2:$G$43,5)))*1,I$3:I4)+I708)*VLOOKUP(I$881,'F. UL & OPEX flat rates'!$B$2:$G$43,6,0)","v":0},{"$f":"(SUMPRODUCT(($A$3:$A4>($A884-VLOOKUP(J$881,'F. UL & OPEX flat rates'!$B$2:$G$43,5)))*1,J$3:J4)+J708)*VLOOKUP(J$881,'F. UL & OPEX flat rates'!$B$2:$G$43,6,0)","v":0},{"$f":"(SUMPRODUCT(($A$3:$A4>($A884-VLOOKUP(K$881,'F. UL & OPEX flat rates'!$B$2:$G$43,5)))*1,K$3:K4)+K708)*VLOOKUP(K$881,'F. UL & OPEX flat rates'!$B$2:$G$43,6,0)","v":0},{"$f":"(SUMPRODUCT(($A$3:$A4>($A884-VLOOKUP(L$881,'F. UL & OPEX flat rates'!$B$2:$G$43,5)))*1,L$3:L4)+L708)*VLOOKUP(L$881,'F. UL & OPEX flat rates'!$B$2:$G$43,6,0)","v":0},{"$f":"(SUMPRODUCT(($A$3:$A4>($A884-VLOOKUP(M$881,'F. UL & OPEX flat rates'!$B$2:$G$43,5)))*1,M$3:M4)+M708)*VLOOKUP(M$881,'F. UL & OPEX flat rates'!$B$2:$G$43,6,0)","v":0},{"$f":"(SUMPRODUCT(($A$3:$A4>($A884-VLOOKUP(N$881,'F. UL & OPEX flat rates'!$B$2:$G$43,5)))*1,N$3:N4)+N708)*VLOOKUP(N$881,'F. UL & OPEX flat rates'!$B$2:$G$43,6,0)","v":0},{"$f":"(SUMPRODUCT(($A$3:$A4>($A884-VLOOKUP(O$881,'F. UL & OPEX flat rates'!$B$2:$G$43,5)))*1,O$3:O4)+O708)*VLOOKUP(O$881,'F. UL & OPEX flat rates'!$B$2:$G$43,6,0)","v":0},{"$f":"(SUMPRODUCT(($A$3:$A4>($A884-VLOOKUP(P$881,'F. UL & OPEX flat rates'!$B$2:$G$43,5)))*1,P$3:P4)+P708)*VLOOKUP(P$881,'F. UL & OPEX flat rates'!$B$2:$G$43,6,0)","v":0},{"$f":"(SUMPRODUCT(($A$3:$A4>($A884-VLOOKUP(Q$881,'F. UL & OPEX flat rates'!$B$2:$G$43,5)))*1,Q$3:Q4)+Q708)*VLOOKUP(Q$881,'F. UL & OPEX flat rates'!$B$2:$G$43,6,0)","v":0},{"$f":"(SUMPRODUCT(($A$3:$A4>($A884-VLOOKUP(R$881,'F. UL & OPEX flat rates'!$B$2:$G$43,5)))*1,R$3:R4)+R708)*VLOOKUP(R$881,'F. UL & OPEX flat rates'!$B$2:$G$43,6,0)","v":0},{"$f":"(SUMPRODUCT(($A$3:$A4>($A884-VLOOKUP(S$881,'F. UL & OPEX flat rates'!$B$2:$G$43,5)))*1,S$3:S4)+S708)*VLOOKUP(S$881,'F. UL & OPEX flat rates'!$B$2:$G$43,6,0)","v":0},{"$f":"(SUMPRODUCT(($A$3:$A4>($A884-VLOOKUP(T$881,'F. UL & OPEX flat rates'!$B$2:$G$43,5)))*1,T$3:T4)+T708)*VLOOKUP(T$881,'F. UL & OPEX flat rates'!$B$2:$G$43,6,0)","v":0},{"$f":"(SUMPRODUCT(($A$3:$A4>($A884-VLOOKUP(U$881,'F. UL & OPEX flat rates'!$B$2:$G$43,5)))*1,U$3:U4)+U708)*VLOOKUP(U$881,'F. UL & OPEX flat rates'!$B$2:$G$43,6,0)","v":0},{"$f":"(SUMPRODUCT(($A$3:$A4>($A884-VLOOKUP(V$881,'F. UL & OPEX flat rates'!$B$2:$G$43,5)))*1,V$3:V4)+V708)*VLOOKUP(V$881,'F. UL & OPEX flat rates'!$B$2:$G$43,6,0)","v":0},{"$f":"(SUMPRODUCT(($A$3:$A4>($A884-VLOOKUP(W$881,'F. UL & OPEX flat rates'!$B$2:$G$43,5)))*1,W$3:W4)+W708)*VLOOKUP(W$881,'F. UL & OPEX flat rates'!$B$2:$G$43,6,0)","v":0},{"$f":"(SUMPRODUCT(($A$3:$A4>($A884-VLOOKUP(X$881,'F. UL & OPEX flat rates'!$B$2:$G$43,5)))*1,X$3:X4)+X708)*VLOOKUP(X$881,'F. UL & OPEX flat rates'!$B$2:$G$43,6,0)","v":0},{"$f":"(SUMPRODUCT(($A$3:$A4>($A884-VLOOKUP(Y$881,'F. UL & OPEX flat rates'!$B$2:$G$43,5)))*1,Y$3:Y4)+Y708)*VLOOKUP(Y$881,'F. UL & OPEX flat rates'!$B$2:$G$43,6,0)","v":0},{"$f":"(SUMPRODUCT(($A$3:$A4>($A884-VLOOKUP(Z$881,'F. UL & OPEX flat rates'!$B$2:$G$43,5)))*1,Z$3:Z4)+Z708)*VLOOKUP(Z$881,'F. UL & OPEX flat rates'!$B$2:$G$43,6,0)","v":0},{"$f":"(SUMPRODUCT(($A$3:$A4>($A884-VLOOKUP(AA$881,'F. UL & OPEX flat rates'!$B$2:$G$43,5)))*1,AA$3:AA4)+AA708)*VLOOKUP(AA$881,'F. UL & OPEX flat rates'!$B$2:$G$43,6,0)","v":0},{"$f":"(SUMPRODUCT(($A$3:$A4>($A884-VLOOKUP(AB$881,'F. UL & OPEX flat rates'!$B$2:$G$43,5)))*1,AB$3:AB4)+AB708)*VLOOKUP(AB$881,'F. UL & OPEX flat rates'!$B$2:$G$43,6,0)","v":0},{"$f":"(SUMPRODUCT(($A$3:$A4>($A884-VLOOKUP(AC$881,'F. UL & OPEX flat rates'!$B$2:$G$43,5)))*1,AC$3:AC4)+AC708)*VLOOKUP(AC$881,'F. UL & OPEX flat rates'!$B$2:$G$43,6,0)","v":0},{"$f":"(SUMPRODUCT(($A$3:$A4>($A884-VLOOKUP(AD$881,'F. UL & OPEX flat rates'!$B$2:$G$43,5)))*1,AD$3:AD4)+AD708)*VLOOKUP(AD$881,'F. UL & OPEX flat rates'!$B$2:$G$43,6,0)","v":0},{"$f":"(SUMPRODUCT(($A$3:$A4>($A884-VLOOKUP(AE$881,'F. UL & OPEX flat rates'!$B$2:$G$43,5)))*1,AE$3:AE4)+AE708)*VLOOKUP(AE$881,'F. UL & OPEX flat rates'!$B$2:$G$43,6,0)","v":0},{"$f":"(SUMPRODUCT(($A$3:$A4>($A884-VLOOKUP(AF$881,'F. UL & OPEX flat rates'!$B$2:$G$43,5)))*1,AF$3:AF4)+AF708)*VLOOKUP(AF$881,'F. UL & OPEX flat rates'!$B$2:$G$43,6,0)","v":0},{"$f":"(SUMPRODUCT(($A$3:$A4>($A884-VLOOKUP(AG$881,'F. UL & OPEX flat rates'!$B$2:$G$43,5)))*1,AG$3:AG4)+AG708)*VLOOKUP(AG$881,'F. UL & OPEX flat rates'!$B$2:$G$43,6,0)","v":0},{"$f":"(SUMPRODUCT(($A$3:$A4>($A884-VLOOKUP(AH$881,'F. UL & OPEX flat rates'!$B$2:$G$43,5)))*1,AH$3:AH4)+AH708)*VLOOKUP(AH$881,'F. UL & OPEX flat rates'!$B$2:$G$43,6,0)","v":0},{"$f":"(SUMPRODUCT(($A$3:$A4>($A884-VLOOKUP(AI$881,'F. UL & OPEX flat rates'!$B$2:$G$43,5)))*1,AI$3:AI4)+AI708)*VLOOKUP(AI$881,'F. UL & OPEX flat rates'!$B$2:$G$43,6,0)","v":0},{"$f":"(SUMPRODUCT(($A$3:$A4>($A884-VLOOKUP(AJ$881,'F. UL & OPEX flat rates'!$B$2:$G$43,5)))*1,AJ$3:AJ4)+AJ708)*VLOOKUP(AJ$881,'F. UL & OPEX flat rates'!$B$2:$G$43,6,0)","v":0},{"$f":"(SUMPRODUCT(($A$3:$A4>($A884-VLOOKUP(AK$881,'F. UL & OPEX flat rates'!$B$2:$G$43,5)))*1,AK$3:AK4)+AK708)*VLOOKUP(AK$881,'F. UL & OPEX flat rates'!$B$2:$G$43,6,0)","v":0},{"$f":"(SUMPRODUCT(($A$3:$A4>($A884-VLOOKUP(AL$881,'F. UL & OPEX flat rates'!$B$2:$G$43,5)))*1,AL$3:AL4)+AL708)*VLOOKUP(AL$881,'F. UL & OPEX flat rates'!$B$2:$G$43,6,0)","v":0},{"$f":"(SUMPRODUCT(($A$3:$A4>($A884-VLOOKUP(AM$881,'F. UL & OPEX flat rates'!$B$2:$G$43,5)))*1,AM$3:AM4)+AM708)*VLOOKUP(AM$881,'F. UL & OPEX flat rates'!$B$2:$G$43,6,0)","v":0},{"$f":"(SUMPRODUCT(($A$3:$A4>($A884-VLOOKUP(AN$881,'F. UL & OPEX flat rates'!$B$2:$G$43,5)))*1,AN$3:AN4)+AN708)*VLOOKUP(AN$881,'F. UL & OPEX flat rates'!$B$2:$G$43,6,0)","v":0},{"$f":"(SUMPRODUCT(($A$3:$A4>($A884-VLOOKUP(AO$881,'F. UL & OPEX flat rates'!$B$2:$G$43,5)))*1,AO$3:AO4)+AO708)*VLOOKUP(AO$881,'F. UL & OPEX flat rates'!$B$2:$G$43,6,0)","v":0},{"$f":"(SUMPRODUCT(($A$3:$A4>($A884-VLOOKUP(AP$881,'F. UL & OPEX flat rates'!$B$2:$G$43,5)))*1,AP$3:AP4)+AP708)*VLOOKUP(AP$881,'F. UL & OPEX flat rates'!$B$2:$G$43,6,0)","v":0},{"$f":"(SUMPRODUCT(($A$3:$A4>($A884-VLOOKUP(AQ$881,'F. UL & OPEX flat rates'!$B$2:$G$43,5)))*1,AQ$3:AQ4)+AQ708)*VLOOKUP(AQ$881,'F. UL & OPEX flat rates'!$B$2:$G$43,6,0)","v":0}]
[2018,{"$f":"SUM(C885:AQ885)","v":0},{"$f":"(SUMPRODUCT(($A$3:$A5>($A885-VLOOKUP(C$881,'F. UL & OPEX flat rates'!$B$2:$G$43,5)))*1,C$3:C5)+C709)*VLOOKUP(C$881,'F. UL & OPEX flat rates'!$B$2:$G$43,6,0)","v":0},{"$f":"(SUMPRODUCT(($A$3:$A5>($A885-VLOOKUP(D$881,'F. UL & OPEX flat rates'!$B$2:$G$43,5)))*1,D$3:D5)+D709)*VLOOKUP(D$881,'F. UL & OPEX flat rates'!$B$2:$G$43,6,0)","v":0},{"$f":"(SUMPRODUCT(($A$3:$A5>($A885-VLOOKUP(E$881,'F. UL & OPEX flat rates'!$B$2:$G$43,5)))*1,E$3:E5)+E709)*VLOOKUP(E$881,'F. UL & OPEX flat rates'!$B$2:$G$43,6,0)","v":0},{"$f":"(SUMPRODUCT(($A$3:$A5>($A885-VLOOKUP(F$881,'F. UL & OPEX flat rates'!$B$2:$G$43,5)))*1,F$3:F5)+F709)*VLOOKUP(F$881,'F. UL & OPEX flat rates'!$B$2:$G$43,6,0)","v":0},{"$f":"(SUMPRODUCT(($A$3:$A5>($A885-VLOOKUP(G$881,'F. UL & OPEX flat rates'!$B$2:$G$43,5)))*1,G$3:G5)+G709)*VLOOKUP(G$881,'F. UL & OPEX flat rates'!$B$2:$G$43,6,0)","v":0},{"$f":"(SUMPRODUCT(($A$3:$A5>($A885-VLOOKUP(H$881,'F. UL & OPEX flat rates'!$B$2:$G$43,5)))*1,H$3:H5)+H709)*VLOOKUP(H$881,'F. UL & OPEX flat rates'!$B$2:$G$43,6,0)","v":0},{"$f":"(SUMPRODUCT(($A$3:$A5>($A885-VLOOKUP(I$881,'F. UL & OPEX flat rates'!$B$2:$G$43,5)))*1,I$3:I5)+I709)*VLOOKUP(I$881,'F. UL & OPEX flat rates'!$B$2:$G$43,6,0)","v":0},{"$f":"(SUMPRODUCT(($A$3:$A5>($A885-VLOOKUP(J$881,'F. UL & OPEX flat rates'!$B$2:$G$43,5)))*1,J$3:J5)+J709)*VLOOKUP(J$881,'F. UL & OPEX flat rates'!$B$2:$G$43,6,0)","v":0},{"$f":"(SUMPRODUCT(($A$3:$A5>($A885-VLOOKUP(K$881,'F. UL & OPEX flat rates'!$B$2:$G$43,5)))*1,K$3:K5)+K709)*VLOOKUP(K$881,'F. UL & OPEX flat rates'!$B$2:$G$43,6,0)","v":0},{"$f":"(SUMPRODUCT(($A$3:$A5>($A885-VLOOKUP(L$881,'F. UL & OPEX flat rates'!$B$2:$G$43,5)))*1,L$3:L5)+L709)*VLOOKUP(L$881,'F. UL & OPEX flat rates'!$B$2:$G$43,6,0)","v":0},{"$f":"(SUMPRODUCT(($A$3:$A5>($A885-VLOOKUP(M$881,'F. UL & OPEX flat rates'!$B$2:$G$43,5)))*1,M$3:M5)+M709)*VLOOKUP(M$881,'F. UL & OPEX flat rates'!$B$2:$G$43,6,0)","v":0},{"$f":"(SUMPRODUCT(($A$3:$A5>($A885-VLOOKUP(N$881,'F. UL & OPEX flat rates'!$B$2:$G$43,5)))*1,N$3:N5)+N709)*VLOOKUP(N$881,'F. UL & OPEX flat rates'!$B$2:$G$43,6,0)","v":0},{"$f":"(SUMPRODUCT(($A$3:$A5>($A885-VLOOKUP(O$881,'F. UL & OPEX flat rates'!$B$2:$G$43,5)))*1,O$3:O5)+O709)*VLOOKUP(O$881,'F. UL & OPEX flat rates'!$B$2:$G$43,6,0)","v":0},{"$f":"(SUMPRODUCT(($A$3:$A5>($A885-VLOOKUP(P$881,'F. UL & OPEX flat rates'!$B$2:$G$43,5)))*1,P$3:P5)+P709)*VLOOKUP(P$881,'F. UL & OPEX flat rates'!$B$2:$G$43,6,0)","v":0},{"$f":"(SUMPRODUCT(($A$3:$A5>($A885-VLOOKUP(Q$881,'F. UL & OPEX flat rates'!$B$2:$G$43,5)))*1,Q$3:Q5)+Q709)*VLOOKUP(Q$881,'F. UL & OPEX flat rates'!$B$2:$G$43,6,0)","v":0},{"$f":"(SUMPRODUCT(($A$3:$A5>($A885-VLOOKUP(R$881,'F. UL & OPEX flat rates'!$B$2:$G$43,5)))*1,R$3:R5)+R709)*VLOOKUP(R$881,'F. UL & OPEX flat rates'!$B$2:$G$43,6,0)","v":0},{"$f":"(SUMPRODUCT(($A$3:$A5>($A885-VLOOKUP(S$881,'F. UL & OPEX flat rates'!$B$2:$G$43,5)))*1,S$3:S5)+S709)*VLOOKUP(S$881,'F. UL & OPEX flat rates'!$B$2:$G$43,6,0)","v":0},{"$f":"(SUMPRODUCT(($A$3:$A5>($A885-VLOOKUP(T$881,'F. UL & OPEX flat rates'!$B$2:$G$43,5)))*1,T$3:T5)+T709)*VLOOKUP(T$881,'F. UL & OPEX flat rates'!$B$2:$G$43,6,0)","v":0},{"$f":"(SUMPRODUCT(($A$3:$A5>($A885-VLOOKUP(U$881,'F. UL & OPEX flat rates'!$B$2:$G$43,5)))*1,U$3:U5)+U709)*VLOOKUP(U$881,'F. UL & OPEX flat rates'!$B$2:$G$43,6,0)","v":0},{"$f":"(SUMPRODUCT(($A$3:$A5>($A885-VLOOKUP(V$881,'F. UL & OPEX flat rates'!$B$2:$G$43,5)))*1,V$3:V5)+V709)*VLOOKUP(V$881,'F. UL & OPEX flat rates'!$B$2:$G$43,6,0)","v":0},{"$f":"(SUMPRODUCT(($A$3:$A5>($A885-VLOOKUP(W$881,'F. UL & OPEX flat rates'!$B$2:$G$43,5)))*1,W$3:W5)+W709)*VLOOKUP(W$881,'F. UL & OPEX flat rates'!$B$2:$G$43,6,0)","v":0},{"$f":"(SUMPRODUCT(($A$3:$A5>($A885-VLOOKUP(X$881,'F. UL & OPEX flat rates'!$B$2:$G$43,5)))*1,X$3:X5)+X709)*VLOOKUP(X$881,'F. UL & OPEX flat rates'!$B$2:$G$43,6,0)","v":0},{"$f":"(SUMPRODUCT(($A$3:$A5>($A885-VLOOKUP(Y$881,'F. UL & OPEX flat rates'!$B$2:$G$43,5)))*1,Y$3:Y5)+Y709)*VLOOKUP(Y$881,'F. UL & OPEX flat rates'!$B$2:$G$43,6,0)","v":0},{"$f":"(SUMPRODUCT(($A$3:$A5>($A885-VLOOKUP(Z$881,'F. UL & OPEX flat rates'!$B$2:$G$43,5)))*1,Z$3:Z5)+Z709)*VLOOKUP(Z$881,'F. UL & OPEX flat rates'!$B$2:$G$43,6,0)","v":0},{"$f":"(SUMPRODUCT(($A$3:$A5>($A885-VLOOKUP(AA$881,'F. UL & OPEX flat rates'!$B$2:$G$43,5)))*1,AA$3:AA5)+AA709)*VLOOKUP(AA$881,'F. UL & OPEX flat rates'!$B$2:$G$43,6,0)","v":0},{"$f":"(SUMPRODUCT(($A$3:$A5>($A885-VLOOKUP(AB$881,'F. UL & OPEX flat rates'!$B$2:$G$43,5)))*1,AB$3:AB5)+AB709)*VLOOKUP(AB$881,'F. UL & OPEX flat rates'!$B$2:$G$43,6,0)","v":0},{"$f":"(SUMPRODUCT(($A$3:$A5>($A885-VLOOKUP(AC$881,'F. UL & OPEX flat rates'!$B$2:$G$43,5)))*1,AC$3:AC5)+AC709)*VLOOKUP(AC$881,'F. UL & OPEX flat rates'!$B$2:$G$43,6,0)","v":0},{"$f":"(SUMPRODUCT(($A$3:$A5>($A885-VLOOKUP(AD$881,'F. UL & OPEX flat rates'!$B$2:$G$43,5)))*1,AD$3:AD5)+AD709)*VLOOKUP(AD$881,'F. UL & OPEX flat rates'!$B$2:$G$43,6,0)","v":0},{"$f":"(SUMPRODUCT(($A$3:$A5>($A885-VLOOKUP(AE$881,'F. UL & OPEX flat rates'!$B$2:$G$43,5)))*1,AE$3:AE5)+AE709)*VLOOKUP(AE$881,'F. UL & OPEX flat rates'!$B$2:$G$43,6,0)","v":0},{"$f":"(SUMPRODUCT(($A$3:$A5>($A885-VLOOKUP(AF$881,'F. UL & OPEX flat rates'!$B$2:$G$43,5)))*1,AF$3:AF5)+AF709)*VLOOKUP(AF$881,'F. UL & OPEX flat rates'!$B$2:$G$43,6,0)","v":0},{"$f":"(SUMPRODUCT(($A$3:$A5>($A885-VLOOKUP(AG$881,'F. UL & OPEX flat rates'!$B$2:$G$43,5)))*1,AG$3:AG5)+AG709)*VLOOKUP(AG$881,'F. UL & OPEX flat rates'!$B$2:$G$43,6,0)","v":0},{"$f":"(SUMPRODUCT(($A$3:$A5>($A885-VLOOKUP(AH$881,'F. UL & OPEX flat rates'!$B$2:$G$43,5)))*1,AH$3:AH5)+AH709)*VLOOKUP(AH$881,'F. UL & OPEX flat rates'!$B$2:$G$43,6,0)","v":0},{"$f":"(SUMPRODUCT(($A$3:$A5>($A885-VLOOKUP(AI$881,'F. UL & OPEX flat rates'!$B$2:$G$43,5)))*1,AI$3:AI5)+AI709)*VLOOKUP(AI$881,'F. UL & OPEX flat rates'!$B$2:$G$43,6,0)","v":0},{"$f":"(SUMPRODUCT(($A$3:$A5>($A885-VLOOKUP(AJ$881,'F. UL & OPEX flat rates'!$B$2:$G$43,5)))*1,AJ$3:AJ5)+AJ709)*VLOOKUP(AJ$881,'F. UL & OPEX flat rates'!$B$2:$G$43,6,0)","v":0},{"$f":"(SUMPRODUCT(($A$3:$A5>($A885-VLOOKUP(AK$881,'F. UL & OPEX flat rates'!$B$2:$G$43,5)))*1,AK$3:AK5)+AK709)*VLOOKUP(AK$881,'F. UL & OPEX flat rates'!$B$2:$G$43,6,0)","v":0},{"$f":"(SUMPRODUCT(($A$3:$A5>($A885-VLOOKUP(AL$881,'F. UL & OPEX flat rates'!$B$2:$G$43,5)))*1,AL$3:AL5)+AL709)*VLOOKUP(AL$881,'F. UL & OPEX flat rates'!$B$2:$G$43,6,0)","v":0},{"$f":"(SUMPRODUCT(($A$3:$A5>($A885-VLOOKUP(AM$881,'F. UL & OPEX flat rates'!$B$2:$G$43,5)))*1,AM$3:AM5)+AM709)*VLOOKUP(AM$881,'F. UL & OPEX flat rates'!$B$2:$G$43,6,0)","v":0},{"$f":"(SUMPRODUCT(($A$3:$A5>($A885-VLOOKUP(AN$881,'F. UL & OPEX flat rates'!$B$2:$G$43,5)))*1,AN$3:AN5)+AN709)*VLOOKUP(AN$881,'F. UL & OPEX flat rates'!$B$2:$G$43,6,0)","v":0},{"$f":"(SUMPRODUCT(($A$3:$A5>($A885-VLOOKUP(AO$881,'F. UL & OPEX flat rates'!$B$2:$G$43,5)))*1,AO$3:AO5)+AO709)*VLOOKUP(AO$881,'F. UL & OPEX flat rates'!$B$2:$G$43,6,0)","v":0},{"$f":"(SUMPRODUCT(($A$3:$A5>($A885-VLOOKUP(AP$881,'F. UL & OPEX flat rates'!$B$2:$G$43,5)))*1,AP$3:AP5)+AP709)*VLOOKUP(AP$881,'F. UL & OPEX flat rates'!$B$2:$G$43,6,0)","v":0},{"$f":"(SUMPRODUCT(($A$3:$A5>($A885-VLOOKUP(AQ$881,'F. UL & OPEX flat rates'!$B$2:$G$43,5)))*1,AQ$3:AQ5)+AQ709)*VLOOKUP(AQ$881,'F. UL & OPEX flat rates'!$B$2:$G$43,6,0)","v":0}]
[2019,0,{"$f":"(SUMPRODUCT(($A$3:$A6>($A886-VLOOKUP(C$881,'F. UL & OPEX flat rates'!$B$2:$G$43,5)))*1,C$3:C6)+C710)*VLOOKUP(C$881,'F. UL & OPEX flat rates'!$B$2:$G$43,6,0)","v":0},{"$f":"(SUMPRODUCT(($A$3:$A6>($A886-VLOOKUP(D$881,'F. UL & OPEX flat rates'!$B$2:$G$43,5)))*1,D$3:D6)+D710)*VLOOKUP(D$881,'F. UL & OPEX flat rates'!$B$2:$G$43,6,0)","v":0},{"$f":"(SUMPRODUCT(($A$3:$A6>($A886-VLOOKUP(E$881,'F. UL & OPEX flat rates'!$B$2:$G$43,5)))*1,E$3:E6)+E710)*VLOOKUP(E$881,'F. UL & OPEX flat rates'!$B$2:$G$43,6,0)","v":0},{"$f":"(SUMPRODUCT(($A$3:$A6>($A886-VLOOKUP(F$881,'F. UL & OPEX flat rates'!$B$2:$G$43,5)))*1,F$3:F6)+F710)*VLOOKUP(F$881,'F. UL & OPEX flat rates'!$B$2:$G$43,6,0)","v":0},{"$f":"(SUMPRODUCT(($A$3:$A6>($A886-VLOOKUP(G$881,'F. UL & OPEX flat rates'!$B$2:$G$43,5)))*1,G$3:G6)+G710)*VLOOKUP(G$881,'F. UL & OPEX flat rates'!$B$2:$G$43,6,0)","v":0},{"$f":"(SUMPRODUCT(($A$3:$A6>($A886-VLOOKUP(H$881,'F. UL & OPEX flat rates'!$B$2:$G$43,5)))*1,H$3:H6)+H710)*VLOOKUP(H$881,'F. UL & OPEX flat rates'!$B$2:$G$43,6,0)","v":0},{"$f":"(SUMPRODUCT(($A$3:$A6>($A886-VLOOKUP(I$881,'F. UL & OPEX flat rates'!$B$2:$G$43,5)))*1,I$3:I6)+I710)*VLOOKUP(I$881,'F. UL & OPEX flat rates'!$B$2:$G$43,6,0)","v":0},{"$f":"(SUMPRODUCT(($A$3:$A6>($A886-VLOOKUP(J$881,'F. UL & OPEX flat rates'!$B$2:$G$43,5)))*1,J$3:J6)+J710)*VLOOKUP(J$881,'F. UL & OPEX flat rates'!$B$2:$G$43,6,0)","v":0},{"$f":"(SUMPRODUCT(($A$3:$A6>($A886-VLOOKUP(K$881,'F. UL & OPEX flat rates'!$B$2:$G$43,5)))*1,K$3:K6)+K710)*VLOOKUP(K$881,'F. UL & OPEX flat rates'!$B$2:$G$43,6,0)","v":0},{"$f":"(SUMPRODUCT(($A$3:$A6>($A886-VLOOKUP(L$881,'F. UL & OPEX flat rates'!$B$2:$G$43,5)))*1,L$3:L6)+L710)*VLOOKUP(L$881,'F. UL & OPEX flat rates'!$B$2:$G$43,6,0)","v":0},{"$f":"(SUMPRODUCT(($A$3:$A6>($A886-VLOOKUP(M$881,'F. UL & OPEX flat rates'!$B$2:$G$43,5)))*1,M$3:M6)+M710)*VLOOKUP(M$881,'F. UL & OPEX flat rates'!$B$2:$G$43,6,0)","v":0},{"$f":"(SUMPRODUCT(($A$3:$A6>($A886-VLOOKUP(N$881,'F. UL & OPEX flat rates'!$B$2:$G$43,5)))*1,N$3:N6)+N710)*VLOOKUP(N$881,'F. UL & OPEX flat rates'!$B$2:$G$43,6,0)","v":0},{"$f":"(SUMPRODUCT(($A$3:$A6>($A886-VLOOKUP(O$881,'F. UL & OPEX flat rates'!$B$2:$G$43,5)))*1,O$3:O6)+O710)*VLOOKUP(O$881,'F. UL & OPEX flat rates'!$B$2:$G$43,6,0)","v":0},{"$f":"(SUMPRODUCT(($A$3:$A6>($A886-VLOOKUP(P$881,'F. UL & OPEX flat rates'!$B$2:$G$43,5)))*1,P$3:P6)+P710)*VLOOKUP(P$881,'F. UL & OPEX flat rates'!$B$2:$G$43,6,0)","v":0},{"$f":"(SUMPRODUCT(($A$3:$A6>($A886-VLOOKUP(Q$881,'F. UL & OPEX flat rates'!$B$2:$G$43,5)))*1,Q$3:Q6)+Q710)*VLOOKUP(Q$881,'F. UL & OPEX flat rates'!$B$2:$G$43,6,0)","v":0},{"$f":"(SUMPRODUCT(($A$3:$A6>($A886-VLOOKUP(R$881,'F. UL & OPEX flat rates'!$B$2:$G$43,5)))*1,R$3:R6)+R710)*VLOOKUP(R$881,'F. UL & OPEX flat rates'!$B$2:$G$43,6,0)","v":0},{"$f":"(SUMPRODUCT(($A$3:$A6>($A886-VLOOKUP(S$881,'F. UL & OPEX flat rates'!$B$2:$G$43,5)))*1,S$3:S6)+S710)*VLOOKUP(S$881,'F. UL & OPEX flat rates'!$B$2:$G$43,6,0)","v":0},{"$f":"(SUMPRODUCT(($A$3:$A6>($A886-VLOOKUP(T$881,'F. UL & OPEX flat rates'!$B$2:$G$43,5)))*1,T$3:T6)+T710)*VLOOKUP(T$881,'F. UL & OPEX flat rates'!$B$2:$G$43,6,0)","v":0},{"$f":"(SUMPRODUCT(($A$3:$A6>($A886-VLOOKUP(U$881,'F. UL & OPEX flat rates'!$B$2:$G$43,5)))*1,U$3:U6)+U710)*VLOOKUP(U$881,'F. UL & OPEX flat rates'!$B$2:$G$43,6,0)","v":0},{"$f":"(SUMPRODUCT(($A$3:$A6>($A886-VLOOKUP(V$881,'F. UL & OPEX flat rates'!$B$2:$G$43,5)))*1,V$3:V6)+V710)*VLOOKUP(V$881,'F. UL & OPEX flat rates'!$B$2:$G$43,6,0)","v":0},{"$f":"(SUMPRODUCT(($A$3:$A6>($A886-VLOOKUP(W$881,'F. UL & OPEX flat rates'!$B$2:$G$43,5)))*1,W$3:W6)+W710)*VLOOKUP(W$881,'F. UL & OPEX flat rates'!$B$2:$G$43,6,0)","v":0},{"$f":"(SUMPRODUCT(($A$3:$A6>($A886-VLOOKUP(X$881,'F. UL & OPEX flat rates'!$B$2:$G$43,5)))*1,X$3:X6)+X710)*VLOOKUP(X$881,'F. UL & OPEX flat rates'!$B$2:$G$43,6,0)","v":0},{"$f":"(SUMPRODUCT(($A$3:$A6>($A886-VLOOKUP(Y$881,'F. UL & OPEX flat rates'!$B$2:$G$43,5)))*1,Y$3:Y6)+Y710)*VLOOKUP(Y$881,'F. UL & OPEX flat rates'!$B$2:$G$43,6,0)","v":0},{"$f":"(SUMPRODUCT(($A$3:$A6>($A886-VLOOKUP(Z$881,'F. UL & OPEX flat rates'!$B$2:$G$43,5)))*1,Z$3:Z6)+Z710)*VLOOKUP(Z$881,'F. UL & OPEX flat rates'!$B$2:$G$43,6,0)","v":0},{"$f":"(SUMPRODUCT(($A$3:$A6>($A886-VLOOKUP(AA$881,'F. UL & OPEX flat rates'!$B$2:$G$43,5)))*1,AA$3:AA6)+AA710)*VLOOKUP(AA$881,'F. UL & OPEX flat rates'!$B$2:$G$43,6,0)","v":0},{"$f":"(SUMPRODUCT(($A$3:$A6>($A886-VLOOKUP(AB$881,'F. UL & OPEX flat rates'!$B$2:$G$43,5)))*1,AB$3:AB6)+AB710)*VLOOKUP(AB$881,'F. UL & OPEX flat rates'!$B$2:$G$43,6,0)","v":0},{"$f":"(SUMPRODUCT(($A$3:$A6>($A886-VLOOKUP(AC$881,'F. UL & OPEX flat rates'!$B$2:$G$43,5)))*1,AC$3:AC6)+AC710)*VLOOKUP(AC$881,'F. UL & OPEX flat rates'!$B$2:$G$43,6,0)","v":0},{"$f":"(SUMPRODUCT(($A$3:$A6>($A886-VLOOKUP(AD$881,'F. UL & OPEX flat rates'!$B$2:$G$43,5)))*1,AD$3:AD6)+AD710)*VLOOKUP(AD$881,'F. UL & OPEX flat rates'!$B$2:$G$43,6,0)","v":0},{"$f":"(SUMPRODUCT(($A$3:$A6>($A886-VLOOKUP(AE$881,'F. UL & OPEX flat rates'!$B$2:$G$43,5)))*1,AE$3:AE6)+AE710)*VLOOKUP(AE$881,'F. UL & OPEX flat rates'!$B$2:$G$43,6,0)","v":0},{"$f":"(SUMPRODUCT(($A$3:$A6>($A886-VLOOKUP(AF$881,'F. UL & OPEX flat rates'!$B$2:$G$43,5)))*1,AF$3:AF6)+AF710)*VLOOKUP(AF$881,'F. UL & OPEX flat rates'!$B$2:$G$43,6,0)","v":0},{"$f":"(SUMPRODUCT(($A$3:$A6>($A886-VLOOKUP(AG$881,'F. UL & OPEX flat rates'!$B$2:$G$43,5)))*1,AG$3:AG6)+AG710)*VLOOKUP(AG$881,'F. UL & OPEX flat rates'!$B$2:$G$43,6,0)","v":0},{"$f":"(SUMPRODUCT(($A$3:$A6>($A886-VLOOKUP(AH$881,'F. UL & OPEX flat rates'!$B$2:$G$43,5)))*1,AH$3:AH6)+AH710)*VLOOKUP(AH$881,'F. UL & OPEX flat rates'!$B$2:$G$43,6,0)","v":0},{"$f":"(SUMPRODUCT(($A$3:$A6>($A886-VLOOKUP(AI$881,'F. UL & OPEX flat rates'!$B$2:$G$43,5)))*1,AI$3:AI6)+AI710)*VLOOKUP(AI$881,'F. UL & OPEX flat rates'!$B$2:$G$43,6,0)","v":0},{"$f":"(SUMPRODUCT(($A$3:$A6>($A886-VLOOKUP(AJ$881,'F. UL & OPEX flat rates'!$B$2:$G$43,5)))*1,AJ$3:AJ6)+AJ710)*VLOOKUP(AJ$881,'F. UL & OPEX flat rates'!$B$2:$G$43,6,0)","v":0},{"$f":"(SUMPRODUCT(($A$3:$A6>($A886-VLOOKUP(AK$881,'F. UL & OPEX flat rates'!$B$2:$G$43,5)))*1,AK$3:AK6)+AK710)*VLOOKUP(AK$881,'F. UL & OPEX flat rates'!$B$2:$G$43,6,0)","v":0},{"$f":"(SUMPRODUCT(($A$3:$A6>($A886-VLOOKUP(AL$881,'F. UL & OPEX flat rates'!$B$2:$G$43,5)))*1,AL$3:AL6)+AL710)*VLOOKUP(AL$881,'F. UL & OPEX flat rates'!$B$2:$G$43,6,0)","v":0},{"$f":"(SUMPRODUCT(($A$3:$A6>($A886-VLOOKUP(AM$881,'F. UL & OPEX flat rates'!$B$2:$G$43,5)))*1,AM$3:AM6)+AM710)*VLOOKUP(AM$881,'F. UL & OPEX flat rates'!$B$2:$G$43,6,0)","v":0},{"$f":"(SUMPRODUCT(($A$3:$A6>($A886-VLOOKUP(AN$881,'F. UL & OPEX flat rates'!$B$2:$G$43,5)))*1,AN$3:AN6)+AN710)*VLOOKUP(AN$881,'F. UL & OPEX flat rates'!$B$2:$G$43,6,0)","v":0},{"$f":"(SUMPRODUCT(($A$3:$A6>($A886-VLOOKUP(AO$881,'F. UL & OPEX flat rates'!$B$2:$G$43,5)))*1,AO$3:AO6)+AO710)*VLOOKUP(AO$881,'F. UL & OPEX flat rates'!$B$2:$G$43,6,0)","v":0},{"$f":"(SUMPRODUCT(($A$3:$A6>($A886-VLOOKUP(AP$881,'F. UL & OPEX flat rates'!$B$2:$G$43,5)))*1,AP$3:AP6)+AP710)*VLOOKUP(AP$881,'F. UL & OPEX flat rates'!$B$2:$G$43,6,0)","v":0},{"$f":"(SUMPRODUCT(($A$3:$A6>($A886-VLOOKUP(AQ$881,'F. UL & OPEX flat rates'!$B$2:$G$43,5)))*1,AQ$3:AQ6)+AQ710)*VLOOKUP(AQ$881,'F. UL & OPEX flat rates'!$B$2:$G$43,6,0)","v":0}]
[2020,78000,{"$f":"(SUMPRODUCT(($A$3:$A7>($A887-VLOOKUP(C$881,'F. UL & OPEX flat rates'!$B$2:$G$43,5)))*1,C$3:C7)+C711)*VLOOKUP(C$881,'F. UL & OPEX flat rates'!$B$2:$G$43,6,0)","v":0},{"$f":"(SUMPRODUCT(($A$3:$A7>($A887-VLOOKUP(D$881,'F. UL & OPEX flat rates'!$B$2:$G$43,5)))*1,D$3:D7)+D711)*VLOOKUP(D$881,'F. UL & OPEX flat rates'!$B$2:$G$43,6,0)","v":0},{"$f":"(SUMPRODUCT(($A$3:$A7>($A887-VLOOKUP(E$881,'F. UL & OPEX flat rates'!$B$2:$G$43,5)))*1,E$3:E7)+E711)*VLOOKUP(E$881,'F. UL & OPEX flat rates'!$B$2:$G$43,6,0)","v":0},{"$f":"(SUMPRODUCT(($A$3:$A7>($A887-VLOOKUP(F$881,'F. UL & OPEX flat rates'!$B$2:$G$43,5)))*1,F$3:F7)+F711)*VLOOKUP(F$881,'F. UL & OPEX flat rates'!$B$2:$G$43,6,0)","v":0},{"$f":"(SUMPRODUCT(($A$3:$A7>($A887-VLOOKUP(G$881,'F. UL & OPEX flat rates'!$B$2:$G$43,5)))*1,G$3:G7)+G711)*VLOOKUP(G$881,'F. UL & OPEX flat rates'!$B$2:$G$43,6,0)","v":0},{"$f":"(SUMPRODUCT(($A$3:$A7>($A887-VLOOKUP(H$881,'F. UL & OPEX flat rates'!$B$2:$G$43,5)))*1,H$3:H7)+H711)*VLOOKUP(H$881,'F. UL & OPEX flat rates'!$B$2:$G$43,6,0)","v":0},{"$f":"(SUMPRODUCT(($A$3:$A7>($A887-VLOOKUP(I$881,'F. UL & OPEX flat rates'!$B$2:$G$43,5)))*1,I$3:I7)+I711)*VLOOKUP(I$881,'F. UL & OPEX flat rates'!$B$2:$G$43,6,0)","v":0},{"$f":"(SUMPRODUCT(($A$3:$A7>($A887-VLOOKUP(J$881,'F. UL & OPEX flat rates'!$B$2:$G$43,5)))*1,J$3:J7)+J711)*VLOOKUP(J$881,'F. UL & OPEX flat rates'!$B$2:$G$43,6,0)","v":0},{"$f":"(SUMPRODUCT(($A$3:$A7>($A887-VLOOKUP(K$881,'F. UL & OPEX flat rates'!$B$2:$G$43,5)))*1,K$3:K7)+K711)*VLOOKUP(K$881,'F. UL & OPEX flat rates'!$B$2:$G$43,6,0)","v":0},{"$f":"(SUMPRODUCT(($A$3:$A7>($A887-VLOOKUP(L$881,'F. UL & OPEX flat rates'!$B$2:$G$43,5)))*1,L$3:L7)+L711)*VLOOKUP(L$881,'F. UL & OPEX flat rates'!$B$2:$G$43,6,0)","v":0},{"$f":"(SUMPRODUCT(($A$3:$A7>($A887-VLOOKUP(M$881,'F. UL & OPEX flat rates'!$B$2:$G$43,5)))*1,M$3:M7)+M711)*VLOOKUP(M$881,'F. UL & OPEX flat rates'!$B$2:$G$43,6,0)","v":0},{"$f":"(SUMPRODUCT(($A$3:$A7>($A887-VLOOKUP(N$881,'F. UL & OPEX flat rates'!$B$2:$G$43,5)))*1,N$3:N7)+N711)*VLOOKUP(N$881,'F. UL & OPEX flat rates'!$B$2:$G$43,6,0)","v":0},{"$f":"(SUMPRODUCT(($A$3:$A7>($A887-VLOOKUP(O$881,'F. UL & OPEX flat rates'!$B$2:$G$43,5)))*1,O$3:O7)+O711)*VLOOKUP(O$881,'F. UL & OPEX flat rates'!$B$2:$G$43,6,0)","v":0},{"$f":"(SUMPRODUCT(($A$3:$A7>($A887-VLOOKUP(P$881,'F. UL & OPEX flat rates'!$B$2:$G$43,5)))*1,P$3:P7)+P711)*VLOOKUP(P$881,'F. UL & OPEX flat rates'!$B$2:$G$43,6,0)","v":78000},{"$f":"(SUMPRODUCT(($A$3:$A7>($A887-VLOOKUP(Q$881,'F. UL & OPEX flat rates'!$B$2:$G$43,5)))*1,Q$3:Q7)+Q711)*VLOOKUP(Q$881,'F. UL & OPEX flat rates'!$B$2:$G$43,6,0)","v":0},{"$f":"(SUMPRODUCT(($A$3:$A7>($A887-VLOOKUP(R$881,'F. UL & OPEX flat rates'!$B$2:$G$43,5)))*1,R$3:R7)+R711)*VLOOKUP(R$881,'F. UL & OPEX flat rates'!$B$2:$G$43,6,0)","v":0},{"$f":"(SUMPRODUCT(($A$3:$A7>($A887-VLOOKUP(S$881,'F. UL & OPEX flat rates'!$B$2:$G$43,5)))*1,S$3:S7)+S711)*VLOOKUP(S$881,'F. UL & OPEX flat rates'!$B$2:$G$43,6,0)","v":0},{"$f":"(SUMPRODUCT(($A$3:$A7>($A887-VLOOKUP(T$881,'F. UL & OPEX flat rates'!$B$2:$G$43,5)))*1,T$3:T7)+T711)*VLOOKUP(T$881,'F. UL & OPEX flat rates'!$B$2:$G$43,6,0)","v":0},{"$f":"(SUMPRODUCT(($A$3:$A7>($A887-VLOOKUP(U$881,'F. UL & OPEX flat rates'!$B$2:$G$43,5)))*1,U$3:U7)+U711)*VLOOKUP(U$881,'F. UL & OPEX flat rates'!$B$2:$G$43,6,0)","v":0},{"$f":"(SUMPRODUCT(($A$3:$A7>($A887-VLOOKUP(V$881,'F. UL & OPEX flat rates'!$B$2:$G$43,5)))*1,V$3:V7)+V711)*VLOOKUP(V$881,'F. UL & OPEX flat rates'!$B$2:$G$43,6,0)","v":0},{"$f":"(SUMPRODUCT(($A$3:$A7>($A887-VLOOKUP(W$881,'F. UL & OPEX flat rates'!$B$2:$G$43,5)))*1,W$3:W7)+W711)*VLOOKUP(W$881,'F. UL & OPEX flat rates'!$B$2:$G$43,6,0)","v":0},{"$f":"(SUMPRODUCT(($A$3:$A7>($A887-VLOOKUP(X$881,'F. UL & OPEX flat rates'!$B$2:$G$43,5)))*1,X$3:X7)+X711)*VLOOKUP(X$881,'F. UL & OPEX flat rates'!$B$2:$G$43,6,0)","v":0},{"$f":"(SUMPRODUCT(($A$3:$A7>($A887-VLOOKUP(Y$881,'F. UL & OPEX flat rates'!$B$2:$G$43,5)))*1,Y$3:Y7)+Y711)*VLOOKUP(Y$881,'F. UL & OPEX flat rates'!$B$2:$G$43,6,0)","v":0},{"$f":"(SUMPRODUCT(($A$3:$A7>($A887-VLOOKUP(Z$881,'F. UL & OPEX flat rates'!$B$2:$G$43,5)))*1,Z$3:Z7)+Z711)*VLOOKUP(Z$881,'F. UL & OPEX flat rates'!$B$2:$G$43,6,0)","v":0},{"$f":"(SUMPRODUCT(($A$3:$A7>($A887-VLOOKUP(AA$881,'F. UL & OPEX flat rates'!$B$2:$G$43,5)))*1,AA$3:AA7)+AA711)*VLOOKUP(AA$881,'F. UL & OPEX flat rates'!$B$2:$G$43,6,0)","v":0},{"$f":"(SUMPRODUCT(($A$3:$A7>($A887-VLOOKUP(AB$881,'F. UL & OPEX flat rates'!$B$2:$G$43,5)))*1,AB$3:AB7)+AB711)*VLOOKUP(AB$881,'F. UL & OPEX flat rates'!$B$2:$G$43,6,0)","v":0},{"$f":"(SUMPRODUCT(($A$3:$A7>($A887-VLOOKUP(AC$881,'F. UL & OPEX flat rates'!$B$2:$G$43,5)))*1,AC$3:AC7)+AC711)*VLOOKUP(AC$881,'F. UL & OPEX flat rates'!$B$2:$G$43,6,0)","v":0},{"$f":"(SUMPRODUCT(($A$3:$A7>($A887-VLOOKUP(AD$881,'F. UL & OPEX flat rates'!$B$2:$G$43,5)))*1,AD$3:AD7)+AD711)*VLOOKUP(AD$881,'F. UL & OPEX flat rates'!$B$2:$G$43,6,0)","v":0},{"$f":"(SUMPRODUCT(($A$3:$A7>($A887-VLOOKUP(AE$881,'F. UL & OPEX flat rates'!$B$2:$G$43,5)))*1,AE$3:AE7)+AE711)*VLOOKUP(AE$881,'F. UL & OPEX flat rates'!$B$2:$G$43,6,0)","v":0},{"$f":"(SUMPRODUCT(($A$3:$A7>($A887-VLOOKUP(AF$881,'F. UL & OPEX flat rates'!$B$2:$G$43,5)))*1,AF$3:AF7)+AF711)*VLOOKUP(AF$881,'F. UL & OPEX flat rates'!$B$2:$G$43,6,0)","v":0},{"$f":"(SUMPRODUCT(($A$3:$A7>($A887-VLOOKUP(AG$881,'F. UL & OPEX flat rates'!$B$2:$G$43,5)))*1,AG$3:AG7)+AG711)*VLOOKUP(AG$881,'F. UL & OPEX flat rates'!$B$2:$G$43,6,0)","v":0},{"$f":"(SUMPRODUCT(($A$3:$A7>($A887-VLOOKUP(AH$881,'F. UL & OPEX flat rates'!$B$2:$G$43,5)))*1,AH$3:AH7)+AH711)*VLOOKUP(AH$881,'F. UL & OPEX flat rates'!$B$2:$G$43,6,0)","v":0},{"$f":"(SUMPRODUCT(($A$3:$A7>($A887-VLOOKUP(AI$881,'F. UL & OPEX flat rates'!$B$2:$G$43,5)))*1,AI$3:AI7)+AI711)*VLOOKUP(AI$881,'F. UL & OPEX flat rates'!$B$2:$G$43,6,0)","v":0},{"$f":"(SUMPRODUCT(($A$3:$A7>($A887-VLOOKUP(AJ$881,'F. UL & OPEX flat rates'!$B$2:$G$43,5)))*1,AJ$3:AJ7)+AJ711)*VLOOKUP(AJ$881,'F. UL & OPEX flat rates'!$B$2:$G$43,6,0)","v":0},{"$f":"(SUMPRODUCT(($A$3:$A7>($A887-VLOOKUP(AK$881,'F. UL & OPEX flat rates'!$B$2:$G$43,5)))*1,AK$3:AK7)+AK711)*VLOOKUP(AK$881,'F. UL & OPEX flat rates'!$B$2:$G$43,6,0)","v":0},{"$f":"(SUMPRODUCT(($A$3:$A7>($A887-VLOOKUP(AL$881,'F. UL & OPEX flat rates'!$B$2:$G$43,5)))*1,AL$3:AL7)+AL711)*VLOOKUP(AL$881,'F. UL & OPEX flat rates'!$B$2:$G$43,6,0)","v":0},{"$f":"(SUMPRODUCT(($A$3:$A7>($A887-VLOOKUP(AM$881,'F. UL & OPEX flat rates'!$B$2:$G$43,5)))*1,AM$3:AM7)+AM711)*VLOOKUP(AM$881,'F. UL & OPEX flat rates'!$B$2:$G$43,6,0)","v":0},{"$f":"(SUMPRODUCT(($A$3:$A7>($A887-VLOOKUP(AN$881,'F. UL & OPEX flat rates'!$B$2:$G$43,5)))*1,AN$3:AN7)+AN711)*VLOOKUP(AN$881,'F. UL & OPEX flat rates'!$B$2:$G$43,6,0)","v":0},{"$f":"(SUMPRODUCT(($A$3:$A7>($A887-VLOOKUP(AO$881,'F. UL & OPEX flat rates'!$B$2:$G$43,5)))*1,AO$3:AO7)+AO711)*VLOOKUP(AO$881,'F. UL & OPEX flat rates'!$B$2:$G$43,6,0)","v":0},{"$f":"(SUMPRODUCT(($A$3:$A7>($A887-VLOOKUP(AP$881,'F. UL & OPEX flat rates'!$B$2:$G$43,5)))*1,AP$3:AP7)+AP711)*VLOOKUP(AP$881,'F. UL & OPEX flat rates'!$B$2:$G$43,6,0)","v":0},{"$f":"(SUMPRODUCT(($A$3:$A7>($A887-VLOOKUP(AQ$881,'F. UL & OPEX flat rates'!$B$2:$G$43,5)))*1,AQ$3:AQ7)+AQ711)*VLOOKUP(AQ$881,'F. UL & OPEX flat rates'!$B$2:$G$43,6,0)","v":0}]
[2021,468000,{"$f":"(SUMPRODUCT(($A$3:$A8>($A888-VLOOKUP(C$881,'F. UL & OPEX flat rates'!$B$2:$G$43,5)))*1,C$3:C8)+C712)*VLOOKUP(C$881,'F. UL & OPEX flat rates'!$B$2:$G$43,6,0)","v":0},{"$f":"(SUMPRODUCT(($A$3:$A8>($A888-VLOOKUP(D$881,'F. UL & OPEX flat rates'!$B$2:$G$43,5)))*1,D$3:D8)+D712)*VLOOKUP(D$881,'F. UL & OPEX flat rates'!$B$2:$G$43,6,0)","v":0},{"$f":"(SUMPRODUCT(($A$3:$A8>($A888-VLOOKUP(E$881,'F. UL & OPEX flat rates'!$B$2:$G$43,5)))*1,E$3:E8)+E712)*VLOOKUP(E$881,'F. UL & OPEX flat rates'!$B$2:$G$43,6,0)","v":0},{"$f":"(SUMPRODUCT(($A$3:$A8>($A888-VLOOKUP(F$881,'F. UL & OPEX flat rates'!$B$2:$G$43,5)))*1,F$3:F8)+F712)*VLOOKUP(F$881,'F. UL & OPEX flat rates'!$B$2:$G$43,6,0)","v":0},{"$f":"(SUMPRODUCT(($A$3:$A8>($A888-VLOOKUP(G$881,'F. UL & OPEX flat rates'!$B$2:$G$43,5)))*1,G$3:G8)+G712)*VLOOKUP(G$881,'F. UL & OPEX flat rates'!$B$2:$G$43,6,0)","v":0},{"$f":"(SUMPRODUCT(($A$3:$A8>($A888-VLOOKUP(H$881,'F. UL & OPEX flat rates'!$B$2:$G$43,5)))*1,H$3:H8)+H712)*VLOOKUP(H$881,'F. UL & OPEX flat rates'!$B$2:$G$43,6,0)","v":0},{"$f":"(SUMPRODUCT(($A$3:$A8>($A888-VLOOKUP(I$881,'F. UL & OPEX flat rates'!$B$2:$G$43,5)))*1,I$3:I8)+I712)*VLOOKUP(I$881,'F. UL & OPEX flat rates'!$B$2:$G$43,6,0)","v":0},{"$f":"(SUMPRODUCT(($A$3:$A8>($A888-VLOOKUP(J$881,'F. UL & OPEX flat rates'!$B$2:$G$43,5)))*1,J$3:J8)+J712)*VLOOKUP(J$881,'F. UL & OPEX flat rates'!$B$2:$G$43,6,0)","v":0},{"$f":"(SUMPRODUCT(($A$3:$A8>($A888-VLOOKUP(K$881,'F. UL & OPEX flat rates'!$B$2:$G$43,5)))*1,K$3:K8)+K712)*VLOOKUP(K$881,'F. UL & OPEX flat rates'!$B$2:$G$43,6,0)","v":0},{"$f":"(SUMPRODUCT(($A$3:$A8>($A888-VLOOKUP(L$881,'F. UL & OPEX flat rates'!$B$2:$G$43,5)))*1,L$3:L8)+L712)*VLOOKUP(L$881,'F. UL & OPEX flat rates'!$B$2:$G$43,6,0)","v":0},{"$f":"(SUMPRODUCT(($A$3:$A8>($A888-VLOOKUP(M$881,'F. UL & OPEX flat rates'!$B$2:$G$43,5)))*1,M$3:M8)+M712)*VLOOKUP(M$881,'F. UL & OPEX flat rates'!$B$2:$G$43,6,0)","v":0},{"$f":"(SUMPRODUCT(($A$3:$A8>($A888-VLOOKUP(N$881,'F. UL & OPEX flat rates'!$B$2:$G$43,5)))*1,N$3:N8)+N712)*VLOOKUP(N$881,'F. UL & OPEX flat rates'!$B$2:$G$43,6,0)","v":0},{"$f":"(SUMPRODUCT(($A$3:$A8>($A888-VLOOKUP(O$881,'F. UL & OPEX flat rates'!$B$2:$G$43,5)))*1,O$3:O8)+O712)*VLOOKUP(O$881,'F. UL & OPEX flat rates'!$B$2:$G$43,6,0)","v":0},{"$f":"(SUMPRODUCT(($A$3:$A8>($A888-VLOOKUP(P$881,'F. UL & OPEX flat rates'!$B$2:$G$43,5)))*1,P$3:P8)+P712)*VLOOKUP(P$881,'F. UL & OPEX flat rates'!$B$2:$G$43,6,0)","v":468000},{"$f":"(SUMPRODUCT(($A$3:$A8>($A888-VLOOKUP(Q$881,'F. UL & OPEX flat rates'!$B$2:$G$43,5)))*1,Q$3:Q8)+Q712)*VLOOKUP(Q$881,'F. UL & OPEX flat rates'!$B$2:$G$43,6,0)","v":0},{"$f":"(SUMPRODUCT(($A$3:$A8>($A888-VLOOKUP(R$881,'F. UL & OPEX flat rates'!$B$2:$G$43,5)))*1,R$3:R8)+R712)*VLOOKUP(R$881,'F. UL & OPEX flat rates'!$B$2:$G$43,6,0)","v":0},{"$f":"(SUMPRODUCT(($A$3:$A8>($A888-VLOOKUP(S$881,'F. UL & OPEX flat rates'!$B$2:$G$43,5)))*1,S$3:S8)+S712)*VLOOKUP(S$881,'F. UL & OPEX flat rates'!$B$2:$G$43,6,0)","v":0},{"$f":"(SUMPRODUCT(($A$3:$A8>($A888-VLOOKUP(T$881,'F. UL & OPEX flat rates'!$B$2:$G$43,5)))*1,T$3:T8)+T712)*VLOOKUP(T$881,'F. UL & OPEX flat rates'!$B$2:$G$43,6,0)","v":0},{"$f":"(SUMPRODUCT(($A$3:$A8>($A888-VLOOKUP(U$881,'F. UL & OPEX flat rates'!$B$2:$G$43,5)))*1,U$3:U8)+U712)*VLOOKUP(U$881,'F. UL & OPEX flat rates'!$B$2:$G$43,6,0)","v":0},{"$f":"(SUMPRODUCT(($A$3:$A8>($A888-VLOOKUP(V$881,'F. UL & OPEX flat rates'!$B$2:$G$43,5)))*1,V$3:V8)+V712)*VLOOKUP(V$881,'F. UL & OPEX flat rates'!$B$2:$G$43,6,0)","v":0},{"$f":"(SUMPRODUCT(($A$3:$A8>($A888-VLOOKUP(W$881,'F. UL & OPEX flat rates'!$B$2:$G$43,5)))*1,W$3:W8)+W712)*VLOOKUP(W$881,'F. UL & OPEX flat rates'!$B$2:$G$43,6,0)","v":0},{"$f":"(SUMPRODUCT(($A$3:$A8>($A888-VLOOKUP(X$881,'F. UL & OPEX flat rates'!$B$2:$G$43,5)))*1,X$3:X8)+X712)*VLOOKUP(X$881,'F. UL & OPEX flat rates'!$B$2:$G$43,6,0)","v":0},{"$f":"(SUMPRODUCT(($A$3:$A8>($A888-VLOOKUP(Y$881,'F. UL & OPEX flat rates'!$B$2:$G$43,5)))*1,Y$3:Y8)+Y712)*VLOOKUP(Y$881,'F. UL & OPEX flat rates'!$B$2:$G$43,6,0)","v":0},{"$f":"(SUMPRODUCT(($A$3:$A8>($A888-VLOOKUP(Z$881,'F. UL & OPEX flat rates'!$B$2:$G$43,5)))*1,Z$3:Z8)+Z712)*VLOOKUP(Z$881,'F. UL & OPEX flat rates'!$B$2:$G$43,6,0)","v":0},{"$f":"(SUMPRODUCT(($A$3:$A8>($A888-VLOOKUP(AA$881,'F. UL & OPEX flat rates'!$B$2:$G$43,5)))*1,AA$3:AA8)+AA712)*VLOOKUP(AA$881,'F. UL & OPEX flat rates'!$B$2:$G$43,6,0)","v":0},{"$f":"(SUMPRODUCT(($A$3:$A8>($A888-VLOOKUP(AB$881,'F. UL & OPEX flat rates'!$B$2:$G$43,5)))*1,AB$3:AB8)+AB712)*VLOOKUP(AB$881,'F. UL & OPEX flat rates'!$B$2:$G$43,6,0)","v":0},{"$f":"(SUMPRODUCT(($A$3:$A8>($A888-VLOOKUP(AC$881,'F. UL & OPEX flat rates'!$B$2:$G$43,5)))*1,AC$3:AC8)+AC712)*VLOOKUP(AC$881,'F. UL & OPEX flat rates'!$B$2:$G$43,6,0)","v":0},{"$f":"(SUMPRODUCT(($A$3:$A8>($A888-VLOOKUP(AD$881,'F. UL & OPEX flat rates'!$B$2:$G$43,5)))*1,AD$3:AD8)+AD712)*VLOOKUP(AD$881,'F. UL & OPEX flat rates'!$B$2:$G$43,6,0)","v":0},{"$f":"(SUMPRODUCT(($A$3:$A8>($A888-VLOOKUP(AE$881,'F. UL & OPEX flat rates'!$B$2:$G$43,5)))*1,AE$3:AE8)+AE712)*VLOOKUP(AE$881,'F. UL & OPEX flat rates'!$B$2:$G$43,6,0)","v":0},{"$f":"(SUMPRODUCT(($A$3:$A8>($A888-VLOOKUP(AF$881,'F. UL & OPEX flat rates'!$B$2:$G$43,5)))*1,AF$3:AF8)+AF712)*VLOOKUP(AF$881,'F. UL & OPEX flat rates'!$B$2:$G$43,6,0)","v":0},{"$f":"(SUMPRODUCT(($A$3:$A8>($A888-VLOOKUP(AG$881,'F. UL & OPEX flat rates'!$B$2:$G$43,5)))*1,AG$3:AG8)+AG712)*VLOOKUP(AG$881,'F. UL & OPEX flat rates'!$B$2:$G$43,6,0)","v":0},{"$f":"(SUMPRODUCT(($A$3:$A8>($A888-VLOOKUP(AH$881,'F. UL & OPEX flat rates'!$B$2:$G$43,5)))*1,AH$3:AH8)+AH712)*VLOOKUP(AH$881,'F. UL & OPEX flat rates'!$B$2:$G$43,6,0)","v":0},{"$f":"(SUMPRODUCT(($A$3:$A8>($A888-VLOOKUP(AI$881,'F. UL & OPEX flat rates'!$B$2:$G$43,5)))*1,AI$3:AI8)+AI712)*VLOOKUP(AI$881,'F. UL & OPEX flat rates'!$B$2:$G$43,6,0)","v":0},{"$f":"(SUMPRODUCT(($A$3:$A8>($A888-VLOOKUP(AJ$881,'F. UL & OPEX flat rates'!$B$2:$G$43,5)))*1,AJ$3:AJ8)+AJ712)*VLOOKUP(AJ$881,'F. UL & OPEX flat rates'!$B$2:$G$43,6,0)","v":0},{"$f":"(SUMPRODUCT(($A$3:$A8>($A888-VLOOKUP(AK$881,'F. UL & OPEX flat rates'!$B$2:$G$43,5)))*1,AK$3:AK8)+AK712)*VLOOKUP(AK$881,'F. UL & OPEX flat rates'!$B$2:$G$43,6,0)","v":0},{"$f":"(SUMPRODUCT(($A$3:$A8>($A888-VLOOKUP(AL$881,'F. UL & OPEX flat rates'!$B$2:$G$43,5)))*1,AL$3:AL8)+AL712)*VLOOKUP(AL$881,'F. UL & OPEX flat rates'!$B$2:$G$43,6,0)","v":0},{"$f":"(SUMPRODUCT(($A$3:$A8>($A888-VLOOKUP(AM$881,'F. UL & OPEX flat rates'!$B$2:$G$43,5)))*1,AM$3:AM8)+AM712)*VLOOKUP(AM$881,'F. UL & OPEX flat rates'!$B$2:$G$43,6,0)","v":0},{"$f":"(SUMPRODUCT(($A$3:$A8>($A888-VLOOKUP(AN$881,'F. UL & OPEX flat rates'!$B$2:$G$43,5)))*1,AN$3:AN8)+AN712)*VLOOKUP(AN$881,'F. UL & OPEX flat rates'!$B$2:$G$43,6,0)","v":0},{"$f":"(SUMPRODUCT(($A$3:$A8>($A888-VLOOKUP(AO$881,'F. UL & OPEX flat rates'!$B$2:$G$43,5)))*1,AO$3:AO8)+AO712)*VLOOKUP(AO$881,'F. UL & OPEX flat rates'!$B$2:$G$43,6,0)","v":0},{"$f":"(SUMPRODUCT(($A$3:$A8>($A888-VLOOKUP(AP$881,'F. UL & OPEX flat rates'!$B$2:$G$43,5)))*1,AP$3:AP8)+AP712)*VLOOKUP(AP$881,'F. UL & OPEX flat rates'!$B$2:$G$43,6,0)","v":0},{"$f":"(SUMPRODUCT(($A$3:$A8>($A888-VLOOKUP(AQ$881,'F. UL & OPEX flat rates'!$B$2:$G$43,5)))*1,AQ$3:AQ8)+AQ712)*VLOOKUP(AQ$881,'F. UL & OPEX flat rates'!$B$2:$G$43,6,0)","v":0}]
[2022,2028000,{"$f":"(SUMPRODUCT(($A$3:$A9>($A889-VLOOKUP(C$881,'F. UL & OPEX flat rates'!$B$2:$G$43,5)))*1,C$3:C9)+C713)*VLOOKUP(C$881,'F. UL & OPEX flat rates'!$B$2:$G$43,6,0)","v":0},{"$f":"(SUMPRODUCT(($A$3:$A9>($A889-VLOOKUP(D$881,'F. UL & OPEX flat rates'!$B$2:$G$43,5)))*1,D$3:D9)+D713)*VLOOKUP(D$881,'F. UL & OPEX flat rates'!$B$2:$G$43,6,0)","v":0},{"$f":"(SUMPRODUCT(($A$3:$A9>($A889-VLOOKUP(E$881,'F. UL & OPEX flat rates'!$B$2:$G$43,5)))*1,E$3:E9)+E713)*VLOOKUP(E$881,'F. UL & OPEX flat rates'!$B$2:$G$43,6,0)","v":0},{"$f":"(SUMPRODUCT(($A$3:$A9>($A889-VLOOKUP(F$881,'F. UL & OPEX flat rates'!$B$2:$G$43,5)))*1,F$3:F9)+F713)*VLOOKUP(F$881,'F. UL & OPEX flat rates'!$B$2:$G$43,6,0)","v":0},{"$f":"(SUMPRODUCT(($A$3:$A9>($A889-VLOOKUP(G$881,'F. UL & OPEX flat rates'!$B$2:$G$43,5)))*1,G$3:G9)+G713)*VLOOKUP(G$881,'F. UL & OPEX flat rates'!$B$2:$G$43,6,0)","v":0},{"$f":"(SUMPRODUCT(($A$3:$A9>($A889-VLOOKUP(H$881,'F. UL & OPEX flat rates'!$B$2:$G$43,5)))*1,H$3:H9)+H713)*VLOOKUP(H$881,'F. UL & OPEX flat rates'!$B$2:$G$43,6,0)","v":0},{"$f":"(SUMPRODUCT(($A$3:$A9>($A889-VLOOKUP(I$881,'F. UL & OPEX flat rates'!$B$2:$G$43,5)))*1,I$3:I9)+I713)*VLOOKUP(I$881,'F. UL & OPEX flat rates'!$B$2:$G$43,6,0)","v":0},{"$f":"(SUMPRODUCT(($A$3:$A9>($A889-VLOOKUP(J$881,'F. UL & OPEX flat rates'!$B$2:$G$43,5)))*1,J$3:J9)+J713)*VLOOKUP(J$881,'F. UL & OPEX flat rates'!$B$2:$G$43,6,0)","v":0},{"$f":"(SUMPRODUCT(($A$3:$A9>($A889-VLOOKUP(K$881,'F. UL & OPEX flat rates'!$B$2:$G$43,5)))*1,K$3:K9)+K713)*VLOOKUP(K$881,'F. UL & OPEX flat rates'!$B$2:$G$43,6,0)","v":0},{"$f":"(SUMPRODUCT(($A$3:$A9>($A889-VLOOKUP(L$881,'F. UL & OPEX flat rates'!$B$2:$G$43,5)))*1,L$3:L9)+L713)*VLOOKUP(L$881,'F. UL & OPEX flat rates'!$B$2:$G$43,6,0)","v":0},{"$f":"(SUMPRODUCT(($A$3:$A9>($A889-VLOOKUP(M$881,'F. UL & OPEX flat rates'!$B$2:$G$43,5)))*1,M$3:M9)+M713)*VLOOKUP(M$881,'F. UL & OPEX flat rates'!$B$2:$G$43,6,0)","v":0},{"$f":"(SUMPRODUCT(($A$3:$A9>($A889-VLOOKUP(N$881,'F. UL & OPEX flat rates'!$B$2:$G$43,5)))*1,N$3:N9)+N713)*VLOOKUP(N$881,'F. UL & OPEX flat rates'!$B$2:$G$43,6,0)","v":0},{"$f":"(SUMPRODUCT(($A$3:$A9>($A889-VLOOKUP(O$881,'F. UL & OPEX flat rates'!$B$2:$G$43,5)))*1,O$3:O9)+O713)*VLOOKUP(O$881,'F. UL & OPEX flat rates'!$B$2:$G$43,6,0)","v":0},{"$f":"(SUMPRODUCT(($A$3:$A9>($A889-VLOOKUP(P$881,'F. UL & OPEX flat rates'!$B$2:$G$43,5)))*1,P$3:P9)+P713)*VLOOKUP(P$881,'F. UL & OPEX flat rates'!$B$2:$G$43,6,0)","v":2028000},{"$f":"(SUMPRODUCT(($A$3:$A9>($A889-VLOOKUP(Q$881,'F. UL & OPEX flat rates'!$B$2:$G$43,5)))*1,Q$3:Q9)+Q713)*VLOOKUP(Q$881,'F. UL & OPEX flat rates'!$B$2:$G$43,6,0)","v":0},{"$f":"(SUMPRODUCT(($A$3:$A9>($A889-VLOOKUP(R$881,'F. UL & OPEX flat rates'!$B$2:$G$43,5)))*1,R$3:R9)+R713)*VLOOKUP(R$881,'F. UL & OPEX flat rates'!$B$2:$G$43,6,0)","v":0},{"$f":"(SUMPRODUCT(($A$3:$A9>($A889-VLOOKUP(S$881,'F. UL & OPEX flat rates'!$B$2:$G$43,5)))*1,S$3:S9)+S713)*VLOOKUP(S$881,'F. UL & OPEX flat rates'!$B$2:$G$43,6,0)","v":0},{"$f":"(SUMPRODUCT(($A$3:$A9>($A889-VLOOKUP(T$881,'F. UL & OPEX flat rates'!$B$2:$G$43,5)))*1,T$3:T9)+T713)*VLOOKUP(T$881,'F. UL & OPEX flat rates'!$B$2:$G$43,6,0)","v":0},{"$f":"(SUMPRODUCT(($A$3:$A9>($A889-VLOOKUP(U$881,'F. UL & OPEX flat rates'!$B$2:$G$43,5)))*1,U$3:U9)+U713)*VLOOKUP(U$881,'F. UL & OPEX flat rates'!$B$2:$G$43,6,0)","v":0},{"$f":"(SUMPRODUCT(($A$3:$A9>($A889-VLOOKUP(V$881,'F. UL & OPEX flat rates'!$B$2:$G$43,5)))*1,V$3:V9)+V713)*VLOOKUP(V$881,'F. UL & OPEX flat rates'!$B$2:$G$43,6,0)","v":0},{"$f":"(SUMPRODUCT(($A$3:$A9>($A889-VLOOKUP(W$881,'F. UL & OPEX flat rates'!$B$2:$G$43,5)))*1,W$3:W9)+W713)*VLOOKUP(W$881,'F. UL & OPEX flat rates'!$B$2:$G$43,6,0)","v":0},{"$f":"(SUMPRODUCT(($A$3:$A9>($A889-VLOOKUP(X$881,'F. UL & OPEX flat rates'!$B$2:$G$43,5)))*1,X$3:X9)+X713)*VLOOKUP(X$881,'F. UL & OPEX flat rates'!$B$2:$G$43,6,0)","v":0},{"$f":"(SUMPRODUCT(($A$3:$A9>($A889-VLOOKUP(Y$881,'F. UL & OPEX flat rates'!$B$2:$G$43,5)))*1,Y$3:Y9)+Y713)*VLOOKUP(Y$881,'F. UL & OPEX flat rates'!$B$2:$G$43,6,0)","v":0},{"$f":"(SUMPRODUCT(($A$3:$A9>($A889-VLOOKUP(Z$881,'F. UL & OPEX flat rates'!$B$2:$G$43,5)))*1,Z$3:Z9)+Z713)*VLOOKUP(Z$881,'F. UL & OPEX flat rates'!$B$2:$G$43,6,0)","v":0},{"$f":"(SUMPRODUCT(($A$3:$A9>($A889-VLOOKUP(AA$881,'F. UL & OPEX flat rates'!$B$2:$G$43,5)))*1,AA$3:AA9)+AA713)*VLOOKUP(AA$881,'F. UL & OPEX flat rates'!$B$2:$G$43,6,0)","v":0},{"$f":"(SUMPRODUCT(($A$3:$A9>($A889-VLOOKUP(AB$881,'F. UL & OPEX flat rates'!$B$2:$G$43,5)))*1,AB$3:AB9)+AB713)*VLOOKUP(AB$881,'F. UL & OPEX flat rates'!$B$2:$G$43,6,0)","v":0},{"$f":"(SUMPRODUCT(($A$3:$A9>($A889-VLOOKUP(AC$881,'F. UL & OPEX flat rates'!$B$2:$G$43,5)))*1,AC$3:AC9)+AC713)*VLOOKUP(AC$881,'F. UL & OPEX flat rates'!$B$2:$G$43,6,0)","v":0},{"$f":"(SUMPRODUCT(($A$3:$A9>($A889-VLOOKUP(AD$881,'F. UL & OPEX flat rates'!$B$2:$G$43,5)))*1,AD$3:AD9)+AD713)*VLOOKUP(AD$881,'F. UL & OPEX flat rates'!$B$2:$G$43,6,0)","v":0},{"$f":"(SUMPRODUCT(($A$3:$A9>($A889-VLOOKUP(AE$881,'F. UL & OPEX flat rates'!$B$2:$G$43,5)))*1,AE$3:AE9)+AE713)*VLOOKUP(AE$881,'F. UL & OPEX flat rates'!$B$2:$G$43,6,0)","v":0},{"$f":"(SUMPRODUCT(($A$3:$A9>($A889-VLOOKUP(AF$881,'F. UL & OPEX flat rates'!$B$2:$G$43,5)))*1,AF$3:AF9)+AF713)*VLOOKUP(AF$881,'F. UL & OPEX flat rates'!$B$2:$G$43,6,0)","v":0},{"$f":"(SUMPRODUCT(($A$3:$A9>($A889-VLOOKUP(AG$881,'F. UL & OPEX flat rates'!$B$2:$G$43,5)))*1,AG$3:AG9)+AG713)*VLOOKUP(AG$881,'F. UL & OPEX flat rates'!$B$2:$G$43,6,0)","v":0},{"$f":"(SUMPRODUCT(($A$3:$A9>($A889-VLOOKUP(AH$881,'F. UL & OPEX flat rates'!$B$2:$G$43,5)))*1,AH$3:AH9)+AH713)*VLOOKUP(AH$881,'F. UL & OPEX flat rates'!$B$2:$G$43,6,0)","v":0},{"$f":"(SUMPRODUCT(($A$3:$A9>($A889-VLOOKUP(AI$881,'F. UL & OPEX flat rates'!$B$2:$G$43,5)))*1,AI$3:AI9)+AI713)*VLOOKUP(AI$881,'F. UL & OPEX flat rates'!$B$2:$G$43,6,0)","v":0},{"$f":"(SUMPRODUCT(($A$3:$A9>($A889-VLOOKUP(AJ$881,'F. UL & OPEX flat rates'!$B$2:$G$43,5)))*1,AJ$3:AJ9)+AJ713)*VLOOKUP(AJ$881,'F. UL & OPEX flat rates'!$B$2:$G$43,6,0)","v":0},{"$f":"(SUMPRODUCT(($A$3:$A9>($A889-VLOOKUP(AK$881,'F. UL & OPEX flat rates'!$B$2:$G$43,5)))*1,AK$3:AK9)+AK713)*VLOOKUP(AK$881,'F. UL & OPEX flat rates'!$B$2:$G$43,6,0)","v":0},{"$f":"(SUMPRODUCT(($A$3:$A9>($A889-VLOOKUP(AL$881,'F. UL & OPEX flat rates'!$B$2:$G$43,5)))*1,AL$3:AL9)+AL713)*VLOOKUP(AL$881,'F. UL & OPEX flat rates'!$B$2:$G$43,6,0)","v":0},{"$f":"(SUMPRODUCT(($A$3:$A9>($A889-VLOOKUP(AM$881,'F. UL & OPEX flat rates'!$B$2:$G$43,5)))*1,AM$3:AM9)+AM713)*VLOOKUP(AM$881,'F. UL & OPEX flat rates'!$B$2:$G$43,6,0)","v":0},{"$f":"(SUMPRODUCT(($A$3:$A9>($A889-VLOOKUP(AN$881,'F. UL & OPEX flat rates'!$B$2:$G$43,5)))*1,AN$3:AN9)+AN713)*VLOOKUP(AN$881,'F. UL & OPEX flat rates'!$B$2:$G$43,6,0)","v":0},{"$f":"(SUMPRODUCT(($A$3:$A9>($A889-VLOOKUP(AO$881,'F. UL & OPEX flat rates'!$B$2:$G$43,5)))*1,AO$3:AO9)+AO713)*VLOOKUP(AO$881,'F. UL & OPEX flat rates'!$B$2:$G$43,6,0)","v":0},{"$f":"(SUMPRODUCT(($A$3:$A9>($A889-VLOOKUP(AP$881,'F. UL & OPEX flat rates'!$B$2:$G$43,5)))*1,AP$3:AP9)+AP713)*VLOOKUP(AP$881,'F. UL & OPEX flat rates'!$B$2:$G$43,6,0)","v":0},{"$f":"(SUMPRODUCT(($A$3:$A9>($A889-VLOOKUP(AQ$881,'F. UL & OPEX flat rates'!$B$2:$G$43,5)))*1,AQ$3:AQ9)+AQ713)*VLOOKUP(AQ$881,'F. UL & OPEX flat rates'!$B$2:$G$43,6,0)","v":0}]
[2023,4680000,{"$f":"(SUMPRODUCT(($A$3:$A10>($A890-VLOOKUP(C$881,'F. UL & OPEX flat rates'!$B$2:$G$43,5)))*1,C$3:C10)+C714)*VLOOKUP(C$881,'F. UL & OPEX flat rates'!$B$2:$G$43,6,0)","v":0},{"$f":"(SUMPRODUCT(($A$3:$A10>($A890-VLOOKUP(D$881,'F. UL & OPEX flat rates'!$B$2:$G$43,5)))*1,D$3:D10)+D714)*VLOOKUP(D$881,'F. UL & OPEX flat rates'!$B$2:$G$43,6,0)","v":0},{"$f":"(SUMPRODUCT(($A$3:$A10>($A890-VLOOKUP(E$881,'F. UL & OPEX flat rates'!$B$2:$G$43,5)))*1,E$3:E10)+E714)*VLOOKUP(E$881,'F. UL & OPEX flat rates'!$B$2:$G$43,6,0)","v":0},{"$f":"(SUMPRODUCT(($A$3:$A10>($A890-VLOOKUP(F$881,'F. UL & OPEX flat rates'!$B$2:$G$43,5)))*1,F$3:F10)+F714)*VLOOKUP(F$881,'F. UL & OPEX flat rates'!$B$2:$G$43,6,0)","v":0},{"$f":"(SUMPRODUCT(($A$3:$A10>($A890-VLOOKUP(G$881,'F. UL & OPEX flat rates'!$B$2:$G$43,5)))*1,G$3:G10)+G714)*VLOOKUP(G$881,'F. UL & OPEX flat rates'!$B$2:$G$43,6,0)","v":0},{"$f":"(SUMPRODUCT(($A$3:$A10>($A890-VLOOKUP(H$881,'F. UL & OPEX flat rates'!$B$2:$G$43,5)))*1,H$3:H10)+H714)*VLOOKUP(H$881,'F. UL & OPEX flat rates'!$B$2:$G$43,6,0)","v":0},{"$f":"(SUMPRODUCT(($A$3:$A10>($A890-VLOOKUP(I$881,'F. UL & OPEX flat rates'!$B$2:$G$43,5)))*1,I$3:I10)+I714)*VLOOKUP(I$881,'F. UL & OPEX flat rates'!$B$2:$G$43,6,0)","v":0},{"$f":"(SUMPRODUCT(($A$3:$A10>($A890-VLOOKUP(J$881,'F. UL & OPEX flat rates'!$B$2:$G$43,5)))*1,J$3:J10)+J714)*VLOOKUP(J$881,'F. UL & OPEX flat rates'!$B$2:$G$43,6,0)","v":0},{"$f":"(SUMPRODUCT(($A$3:$A10>($A890-VLOOKUP(K$881,'F. UL & OPEX flat rates'!$B$2:$G$43,5)))*1,K$3:K10)+K714)*VLOOKUP(K$881,'F. UL & OPEX flat rates'!$B$2:$G$43,6,0)","v":0},{"$f":"(SUMPRODUCT(($A$3:$A10>($A890-VLOOKUP(L$881,'F. UL & OPEX flat rates'!$B$2:$G$43,5)))*1,L$3:L10)+L714)*VLOOKUP(L$881,'F. UL & OPEX flat rates'!$B$2:$G$43,6,0)","v":0},{"$f":"(SUMPRODUCT(($A$3:$A10>($A890-VLOOKUP(M$881,'F. UL & OPEX flat rates'!$B$2:$G$43,5)))*1,M$3:M10)+M714)*VLOOKUP(M$881,'F. UL & OPEX flat rates'!$B$2:$G$43,6,0)","v":0},{"$f":"(SUMPRODUCT(($A$3:$A10>($A890-VLOOKUP(N$881,'F. UL & OPEX flat rates'!$B$2:$G$43,5)))*1,N$3:N10)+N714)*VLOOKUP(N$881,'F. UL & OPEX flat rates'!$B$2:$G$43,6,0)","v":0},{"$f":"(SUMPRODUCT(($A$3:$A10>($A890-VLOOKUP(O$881,'F. UL & OPEX flat rates'!$B$2:$G$43,5)))*1,O$3:O10)+O714)*VLOOKUP(O$881,'F. UL & OPEX flat rates'!$B$2:$G$43,6,0)","v":0},{"$f":"(SUMPRODUCT(($A$3:$A10>($A890-VLOOKUP(P$881,'F. UL & OPEX flat rates'!$B$2:$G$43,5)))*1,P$3:P10)+P714)*VLOOKUP(P$881,'F. UL & OPEX flat rates'!$B$2:$G$43,6,0)","v":4680000},{"$f":"(SUMPRODUCT(($A$3:$A10>($A890-VLOOKUP(Q$881,'F. UL & OPEX flat rates'!$B$2:$G$43,5)))*1,Q$3:Q10)+Q714)*VLOOKUP(Q$881,'F. UL & OPEX flat rates'!$B$2:$G$43,6,0)","v":0},{"$f":"(SUMPRODUCT(($A$3:$A10>($A890-VLOOKUP(R$881,'F. UL & OPEX flat rates'!$B$2:$G$43,5)))*1,R$3:R10)+R714)*VLOOKUP(R$881,'F. UL & OPEX flat rates'!$B$2:$G$43,6,0)","v":0},{"$f":"(SUMPRODUCT(($A$3:$A10>($A890-VLOOKUP(S$881,'F. UL & OPEX flat rates'!$B$2:$G$43,5)))*1,S$3:S10)+S714)*VLOOKUP(S$881,'F. UL & OPEX flat rates'!$B$2:$G$43,6,0)","v":0},{"$f":"(SUMPRODUCT(($A$3:$A10>($A890-VLOOKUP(T$881,'F. UL & OPEX flat rates'!$B$2:$G$43,5)))*1,T$3:T10)+T714)*VLOOKUP(T$881,'F. UL & OPEX flat rates'!$B$2:$G$43,6,0)","v":0},{"$f":"(SUMPRODUCT(($A$3:$A10>($A890-VLOOKUP(U$881,'F. UL & OPEX flat rates'!$B$2:$G$43,5)))*1,U$3:U10)+U714)*VLOOKUP(U$881,'F. UL & OPEX flat rates'!$B$2:$G$43,6,0)","v":0},{"$f":"(SUMPRODUCT(($A$3:$A10>($A890-VLOOKUP(V$881,'F. UL & OPEX flat rates'!$B$2:$G$43,5)))*1,V$3:V10)+V714)*VLOOKUP(V$881,'F. UL & OPEX flat rates'!$B$2:$G$43,6,0)","v":0},{"$f":"(SUMPRODUCT(($A$3:$A10>($A890-VLOOKUP(W$881,'F. UL & OPEX flat rates'!$B$2:$G$43,5)))*1,W$3:W10)+W714)*VLOOKUP(W$881,'F. UL & OPEX flat rates'!$B$2:$G$43,6,0)","v":0},{"$f":"(SUMPRODUCT(($A$3:$A10>($A890-VLOOKUP(X$881,'F. UL & OPEX flat rates'!$B$2:$G$43,5)))*1,X$3:X10)+X714)*VLOOKUP(X$881,'F. UL & OPEX flat rates'!$B$2:$G$43,6,0)","v":0},{"$f":"(SUMPRODUCT(($A$3:$A10>($A890-VLOOKUP(Y$881,'F. UL & OPEX flat rates'!$B$2:$G$43,5)))*1,Y$3:Y10)+Y714)*VLOOKUP(Y$881,'F. UL & OPEX flat rates'!$B$2:$G$43,6,0)","v":0},{"$f":"(SUMPRODUCT(($A$3:$A10>($A890-VLOOKUP(Z$881,'F. UL & OPEX flat rates'!$B$2:$G$43,5)))*1,Z$3:Z10)+Z714)*VLOOKUP(Z$881,'F. UL & OPEX flat rates'!$B$2:$G$43,6,0)","v":0},{"$f":"(SUMPRODUCT(($A$3:$A10>($A890-VLOOKUP(AA$881,'F. UL & OPEX flat rates'!$B$2:$G$43,5)))*1,AA$3:AA10)+AA714)*VLOOKUP(AA$881,'F. UL & OPEX flat rates'!$B$2:$G$43,6,0)","v":0},{"$f":"(SUMPRODUCT(($A$3:$A10>($A890-VLOOKUP(AB$881,'F. UL & OPEX flat rates'!$B$2:$G$43,5)))*1,AB$3:AB10)+AB714)*VLOOKUP(AB$881,'F. UL & OPEX flat rates'!$B$2:$G$43,6,0)","v":0},{"$f":"(SUMPRODUCT(($A$3:$A10>($A890-VLOOKUP(AC$881,'F. UL & OPEX flat rates'!$B$2:$G$43,5)))*1,AC$3:AC10)+AC714)*VLOOKUP(AC$881,'F. UL & OPEX flat rates'!$B$2:$G$43,6,0)","v":0},{"$f":"(SUMPRODUCT(($A$3:$A10>($A890-VLOOKUP(AD$881,'F. UL & OPEX flat rates'!$B$2:$G$43,5)))*1,AD$3:AD10)+AD714)*VLOOKUP(AD$881,'F. UL & OPEX flat rates'!$B$2:$G$43,6,0)","v":0},{"$f":"(SUMPRODUCT(($A$3:$A10>($A890-VLOOKUP(AE$881,'F. UL & OPEX flat rates'!$B$2:$G$43,5)))*1,AE$3:AE10)+AE714)*VLOOKUP(AE$881,'F. UL & OPEX flat rates'!$B$2:$G$43,6,0)","v":0},{"$f":"(SUMPRODUCT(($A$3:$A10>($A890-VLOOKUP(AF$881,'F. UL & OPEX flat rates'!$B$2:$G$43,5)))*1,AF$3:AF10)+AF714)*VLOOKUP(AF$881,'F. UL & OPEX flat rates'!$B$2:$G$43,6,0)","v":0},{"$f":"(SUMPRODUCT(($A$3:$A10>($A890-VLOOKUP(AG$881,'F. UL & OPEX flat rates'!$B$2:$G$43,5)))*1,AG$3:AG10)+AG714)*VLOOKUP(AG$881,'F. UL & OPEX flat rates'!$B$2:$G$43,6,0)","v":0},{"$f":"(SUMPRODUCT(($A$3:$A10>($A890-VLOOKUP(AH$881,'F. UL & OPEX flat rates'!$B$2:$G$43,5)))*1,AH$3:AH10)+AH714)*VLOOKUP(AH$881,'F. UL & OPEX flat rates'!$B$2:$G$43,6,0)","v":0},{"$f":"(SUMPRODUCT(($A$3:$A10>($A890-VLOOKUP(AI$881,'F. UL & OPEX flat rates'!$B$2:$G$43,5)))*1,AI$3:AI10)+AI714)*VLOOKUP(AI$881,'F. UL & OPEX flat rates'!$B$2:$G$43,6,0)","v":0},{"$f":"(SUMPRODUCT(($A$3:$A10>($A890-VLOOKUP(AJ$881,'F. UL & OPEX flat rates'!$B$2:$G$43,5)))*1,AJ$3:AJ10)+AJ714)*VLOOKUP(AJ$881,'F. UL & OPEX flat rates'!$B$2:$G$43,6,0)","v":0},{"$f":"(SUMPRODUCT(($A$3:$A10>($A890-VLOOKUP(AK$881,'F. UL & OPEX flat rates'!$B$2:$G$43,5)))*1,AK$3:AK10)+AK714)*VLOOKUP(AK$881,'F. UL & OPEX flat rates'!$B$2:$G$43,6,0)","v":0},{"$f":"(SUMPRODUCT(($A$3:$A10>($A890-VLOOKUP(AL$881,'F. UL & OPEX flat rates'!$B$2:$G$43,5)))*1,AL$3:AL10)+AL714)*VLOOKUP(AL$881,'F. UL & OPEX flat rates'!$B$2:$G$43,6,0)","v":0},{"$f":"(SUMPRODUCT(($A$3:$A10>($A890-VLOOKUP(AM$881,'F. UL & OPEX flat rates'!$B$2:$G$43,5)))*1,AM$3:AM10)+AM714)*VLOOKUP(AM$881,'F. UL & OPEX flat rates'!$B$2:$G$43,6,0)","v":0},{"$f":"(SUMPRODUCT(($A$3:$A10>($A890-VLOOKUP(AN$881,'F. UL & OPEX flat rates'!$B$2:$G$43,5)))*1,AN$3:AN10)+AN714)*VLOOKUP(AN$881,'F. UL & OPEX flat rates'!$B$2:$G$43,6,0)","v":0},{"$f":"(SUMPRODUCT(($A$3:$A10>($A890-VLOOKUP(AO$881,'F. UL & OPEX flat rates'!$B$2:$G$43,5)))*1,AO$3:AO10)+AO714)*VLOOKUP(AO$881,'F. UL & OPEX flat rates'!$B$2:$G$43,6,0)","v":0},{"$f":"(SUMPRODUCT(($A$3:$A10>($A890-VLOOKUP(AP$881,'F. UL & OPEX flat rates'!$B$2:$G$43,5)))*1,AP$3:AP10)+AP714)*VLOOKUP(AP$881,'F. UL & OPEX flat rates'!$B$2:$G$43,6,0)","v":0},{"$f":"(SUMPRODUCT(($A$3:$A10>($A890-VLOOKUP(AQ$881,'F. UL & OPEX flat rates'!$B$2:$G$43,5)))*1,AQ$3:AQ10)+AQ714)*VLOOKUP(AQ$881,'F. UL & OPEX flat rates'!$B$2:$G$43,6,0)","v":0}]
[2024,7858000,{"$f":"(SUMPRODUCT(($A$3:$A11>($A891-VLOOKUP(C$881,'F. UL & OPEX flat rates'!$B$2:$G$43,5)))*1,C$3:C11)+C715)*VLOOKUP(C$881,'F. UL & OPEX flat rates'!$B$2:$G$43,6,0)","v":0},{"$f":"(SUMPRODUCT(($A$3:$A11>($A891-VLOOKUP(D$881,'F. UL & OPEX flat rates'!$B$2:$G$43,5)))*1,D$3:D11)+D715)*VLOOKUP(D$881,'F. UL & OPEX flat rates'!$B$2:$G$43,6,0)","v":0},{"$f":"(SUMPRODUCT(($A$3:$A11>($A891-VLOOKUP(E$881,'F. UL & OPEX flat rates'!$B$2:$G$43,5)))*1,E$3:E11)+E715)*VLOOKUP(E$881,'F. UL & OPEX flat rates'!$B$2:$G$43,6,0)","v":0},{"$f":"(SUMPRODUCT(($A$3:$A11>($A891-VLOOKUP(F$881,'F. UL & OPEX flat rates'!$B$2:$G$43,5)))*1,F$3:F11)+F715)*VLOOKUP(F$881,'F. UL & OPEX flat rates'!$B$2:$G$43,6,0)","v":0},{"$f":"(SUMPRODUCT(($A$3:$A11>($A891-VLOOKUP(G$881,'F. UL & OPEX flat rates'!$B$2:$G$43,5)))*1,G$3:G11)+G715)*VLOOKUP(G$881,'F. UL & OPEX flat rates'!$B$2:$G$43,6,0)","v":0},{"$f":"(SUMPRODUCT(($A$3:$A11>($A891-VLOOKUP(H$881,'F. UL & OPEX flat rates'!$B$2:$G$43,5)))*1,H$3:H11)+H715)*VLOOKUP(H$881,'F. UL & OPEX flat rates'!$B$2:$G$43,6,0)","v":0},{"$f":"(SUMPRODUCT(($A$3:$A11>($A891-VLOOKUP(I$881,'F. UL & OPEX flat rates'!$B$2:$G$43,5)))*1,I$3:I11)+I715)*VLOOKUP(I$881,'F. UL & OPEX flat rates'!$B$2:$G$43,6,0)","v":0},{"$f":"(SUMPRODUCT(($A$3:$A11>($A891-VLOOKUP(J$881,'F. UL & OPEX flat rates'!$B$2:$G$43,5)))*1,J$3:J11)+J715)*VLOOKUP(J$881,'F. UL & OPEX flat rates'!$B$2:$G$43,6,0)","v":0},{"$f":"(SUMPRODUCT(($A$3:$A11>($A891-VLOOKUP(K$881,'F. UL & OPEX flat rates'!$B$2:$G$43,5)))*1,K$3:K11)+K715)*VLOOKUP(K$881,'F. UL & OPEX flat rates'!$B$2:$G$43,6,0)","v":0},{"$f":"(SUMPRODUCT(($A$3:$A11>($A891-VLOOKUP(L$881,'F. UL & OPEX flat rates'!$B$2:$G$43,5)))*1,L$3:L11)+L715)*VLOOKUP(L$881,'F. UL & OPEX flat rates'!$B$2:$G$43,6,0)","v":0},{"$f":"(SUMPRODUCT(($A$3:$A11>($A891-VLOOKUP(M$881,'F. UL & OPEX flat rates'!$B$2:$G$43,5)))*1,M$3:M11)+M715)*VLOOKUP(M$881,'F. UL & OPEX flat rates'!$B$2:$G$43,6,0)","v":0},{"$f":"(SUMPRODUCT(($A$3:$A11>($A891-VLOOKUP(N$881,'F. UL & OPEX flat rates'!$B$2:$G$43,5)))*1,N$3:N11)+N715)*VLOOKUP(N$881,'F. UL & OPEX flat rates'!$B$2:$G$43,6,0)","v":0},{"$f":"(SUMPRODUCT(($A$3:$A11>($A891-VLOOKUP(O$881,'F. UL & OPEX flat rates'!$B$2:$G$43,5)))*1,O$3:O11)+O715)*VLOOKUP(O$881,'F. UL & OPEX flat rates'!$B$2:$G$43,6,0)","v":0},{"$f":"(SUMPRODUCT(($A$3:$A11>($A891-VLOOKUP(P$881,'F. UL & OPEX flat rates'!$B$2:$G$43,5)))*1,P$3:P11)+P715)*VLOOKUP(P$881,'F. UL & OPEX flat rates'!$B$2:$G$43,6,0)","v":7800000},{"$f":"(SUMPRODUCT(($A$3:$A11>($A891-VLOOKUP(Q$881,'F. UL & OPEX flat rates'!$B$2:$G$43,5)))*1,Q$3:Q11)+Q715)*VLOOKUP(Q$881,'F. UL & OPEX flat rates'!$B$2:$G$43,6,0)","v":0},{"$f":"(SUMPRODUCT(($A$3:$A11>($A891-VLOOKUP(R$881,'F. UL & OPEX flat rates'!$B$2:$G$43,5)))*1,R$3:R11)+R715)*VLOOKUP(R$881,'F. UL & OPEX flat rates'!$B$2:$G$43,6,0)","v":0},{"$f":"(SUMPRODUCT(($A$3:$A11>($A891-VLOOKUP(S$881,'F. UL & OPEX flat rates'!$B$2:$G$43,5)))*1,S$3:S11)+S715)*VLOOKUP(S$881,'F. UL & OPEX flat rates'!$B$2:$G$43,6,0)","v":0},{"$f":"(SUMPRODUCT(($A$3:$A11>($A891-VLOOKUP(T$881,'F. UL & OPEX flat rates'!$B$2:$G$43,5)))*1,T$3:T11)+T715)*VLOOKUP(T$881,'F. UL & OPEX flat rates'!$B$2:$G$43,6,0)","v":0},{"$f":"(SUMPRODUCT(($A$3:$A11>($A891-VLOOKUP(U$881,'F. UL & OPEX flat rates'!$B$2:$G$43,5)))*1,U$3:U11)+U715)*VLOOKUP(U$881,'F. UL & OPEX flat rates'!$B$2:$G$43,6,0)","v":0},{"$f":"(SUMPRODUCT(($A$3:$A11>($A891-VLOOKUP(V$881,'F. UL & OPEX flat rates'!$B$2:$G$43,5)))*1,V$3:V11)+V715)*VLOOKUP(V$881,'F. UL & OPEX flat rates'!$B$2:$G$43,6,0)","v":0},{"$f":"(SUMPRODUCT(($A$3:$A11>($A891-VLOOKUP(W$881,'F. UL & OPEX flat rates'!$B$2:$G$43,5)))*1,W$3:W11)+W715)*VLOOKUP(W$881,'F. UL & OPEX flat rates'!$B$2:$G$43,6,0)","v":0},{"$f":"(SUMPRODUCT(($A$3:$A11>($A891-VLOOKUP(X$881,'F. UL & OPEX flat rates'!$B$2:$G$43,5)))*1,X$3:X11)+X715)*VLOOKUP(X$881,'F. UL & OPEX flat rates'!$B$2:$G$43,6,0)","v":0},{"$f":"(SUMPRODUCT(($A$3:$A11>($A891-VLOOKUP(Y$881,'F. UL & OPEX flat rates'!$B$2:$G$43,5)))*1,Y$3:Y11)+Y715)*VLOOKUP(Y$881,'F. UL & OPEX flat rates'!$B$2:$G$43,6,0)","v":0},{"$f":"(SUMPRODUCT(($A$3:$A11>($A891-VLOOKUP(Z$881,'F. UL & OPEX flat rates'!$B$2:$G$43,5)))*1,Z$3:Z11)+Z715)*VLOOKUP(Z$881,'F. UL & OPEX flat rates'!$B$2:$G$43,6,0)","v":0},{"$f":"(SUMPRODUCT(($A$3:$A11>($A891-VLOOKUP(AA$881,'F. UL & OPEX flat rates'!$B$2:$G$43,5)))*1,AA$3:AA11)+AA715)*VLOOKUP(AA$881,'F. UL & OPEX flat rates'!$B$2:$G$43,6,0)","v":0},{"$f":"(SUMPRODUCT(($A$3:$A11>($A891-VLOOKUP(AB$881,'F. UL & OPEX flat rates'!$B$2:$G$43,5)))*1,AB$3:AB11)+AB715)*VLOOKUP(AB$881,'F. UL & OPEX flat rates'!$B$2:$G$43,6,0)","v":0},{"$f":"(SUMPRODUCT(($A$3:$A11>($A891-VLOOKUP(AC$881,'F. UL & OPEX flat rates'!$B$2:$G$43,5)))*1,AC$3:AC11)+AC715)*VLOOKUP(AC$881,'F. UL & OPEX flat rates'!$B$2:$G$43,6,0)","v":0},{"$f":"(SUMPRODUCT(($A$3:$A11>($A891-VLOOKUP(AD$881,'F. UL & OPEX flat rates'!$B$2:$G$43,5)))*1,AD$3:AD11)+AD715)*VLOOKUP(AD$881,'F. UL & OPEX flat rates'!$B$2:$G$43,6,0)","v":0},{"$f":"(SUMPRODUCT(($A$3:$A11>($A891-VLOOKUP(AE$881,'F. UL & OPEX flat rates'!$B$2:$G$43,5)))*1,AE$3:AE11)+AE715)*VLOOKUP(AE$881,'F. UL & OPEX flat rates'!$B$2:$G$43,6,0)","v":0},{"$f":"(SUMPRODUCT(($A$3:$A11>($A891-VLOOKUP(AF$881,'F. UL & OPEX flat rates'!$B$2:$G$43,5)))*1,AF$3:AF11)+AF715)*VLOOKUP(AF$881,'F. UL & OPEX flat rates'!$B$2:$G$43,6,0)","v":0},{"$f":"(SUMPRODUCT(($A$3:$A11>($A891-VLOOKUP(AG$881,'F. UL & OPEX flat rates'!$B$2:$G$43,5)))*1,AG$3:AG11)+AG715)*VLOOKUP(AG$881,'F. UL & OPEX flat rates'!$B$2:$G$43,6,0)","v":0},{"$f":"(SUMPRODUCT(($A$3:$A11>($A891-VLOOKUP(AH$881,'F. UL & OPEX flat rates'!$B$2:$G$43,5)))*1,AH$3:AH11)+AH715)*VLOOKUP(AH$881,'F. UL & OPEX flat rates'!$B$2:$G$43,6,0)","v":0},{"$f":"(SUMPRODUCT(($A$3:$A11>($A891-VLOOKUP(AI$881,'F. UL & OPEX flat rates'!$B$2:$G$43,5)))*1,AI$3:AI11)+AI715)*VLOOKUP(AI$881,'F. UL & OPEX flat rates'!$B$2:$G$43,6,0)","v":0},{"$f":"(SUMPRODUCT(($A$3:$A11>($A891-VLOOKUP(AJ$881,'F. UL & OPEX flat rates'!$B$2:$G$43,5)))*1,AJ$3:AJ11)+AJ715)*VLOOKUP(AJ$881,'F. UL & OPEX flat rates'!$B$2:$G$43,6,0)","v":58000},{"$f":"(SUMPRODUCT(($A$3:$A11>($A891-VLOOKUP(AK$881,'F. UL & OPEX flat rates'!$B$2:$G$43,5)))*1,AK$3:AK11)+AK715)*VLOOKUP(AK$881,'F. UL & OPEX flat rates'!$B$2:$G$43,6,0)","v":0},{"$f":"(SUMPRODUCT(($A$3:$A11>($A891-VLOOKUP(AL$881,'F. UL & OPEX flat rates'!$B$2:$G$43,5)))*1,AL$3:AL11)+AL715)*VLOOKUP(AL$881,'F. UL & OPEX flat rates'!$B$2:$G$43,6,0)","v":0},{"$f":"(SUMPRODUCT(($A$3:$A11>($A891-VLOOKUP(AM$881,'F. UL & OPEX flat rates'!$B$2:$G$43,5)))*1,AM$3:AM11)+AM715)*VLOOKUP(AM$881,'F. UL & OPEX flat rates'!$B$2:$G$43,6,0)","v":0},{"$f":"(SUMPRODUCT(($A$3:$A11>($A891-VLOOKUP(AN$881,'F. UL & OPEX flat rates'!$B$2:$G$43,5)))*1,AN$3:AN11)+AN715)*VLOOKUP(AN$881,'F. UL & OPEX flat rates'!$B$2:$G$43,6,0)","v":0},{"$f":"(SUMPRODUCT(($A$3:$A11>($A891-VLOOKUP(AO$881,'F. UL & OPEX flat rates'!$B$2:$G$43,5)))*1,AO$3:AO11)+AO715)*VLOOKUP(AO$881,'F. UL & OPEX flat rates'!$B$2:$G$43,6,0)","v":0},{"$f":"(SUMPRODUCT(($A$3:$A11>($A891-VLOOKUP(AP$881,'F. UL & OPEX flat rates'!$B$2:$G$43,5)))*1,AP$3:AP11)+AP715)*VLOOKUP(AP$881,'F. UL & OPEX flat rates'!$B$2:$G$43,6,0)","v":0},{"$f":"(SUMPRODUCT(($A$3:$A11>($A891-VLOOKUP(AQ$881,'F. UL & OPEX flat rates'!$B$2:$G$43,5)))*1,AQ$3:AQ11)+AQ715)*VLOOKUP(AQ$881,'F. UL & OPEX flat rates'!$B$2:$G$43,6,0)","v":0}]
[2025,7858000,{"$f":"(SUMPRODUCT(($A$3:$A12>($A892-VLOOKUP(C$881,'F. UL & OPEX flat rates'!$B$2:$G$43,5)))*1,C$3:C12)+C716)*VLOOKUP(C$881,'F. UL & OPEX flat rates'!$B$2:$G$43,6,0)","v":0},{"$f":"(SUMPRODUCT(($A$3:$A12>($A892-VLOOKUP(D$881,'F. UL & OPEX flat rates'!$B$2:$G$43,5)))*1,D$3:D12)+D716)*VLOOKUP(D$881,'F. UL & OPEX flat rates'!$B$2:$G$43,6,0)","v":0},{"$f":"(SUMPRODUCT(($A$3:$A12>($A892-VLOOKUP(E$881,'F. UL & OPEX flat rates'!$B$2:$G$43,5)))*1,E$3:E12)+E716)*VLOOKUP(E$881,'F. UL & OPEX flat rates'!$B$2:$G$43,6,0)","v":0},{"$f":"(SUMPRODUCT(($A$3:$A12>($A892-VLOOKUP(F$881,'F. UL & OPEX flat rates'!$B$2:$G$43,5)))*1,F$3:F12)+F716)*VLOOKUP(F$881,'F. UL & OPEX flat rates'!$B$2:$G$43,6,0)","v":0},{"$f":"(SUMPRODUCT(($A$3:$A12>($A892-VLOOKUP(G$881,'F. UL & OPEX flat rates'!$B$2:$G$43,5)))*1,G$3:G12)+G716)*VLOOKUP(G$881,'F. UL & OPEX flat rates'!$B$2:$G$43,6,0)","v":0},{"$f":"(SUMPRODUCT(($A$3:$A12>($A892-VLOOKUP(H$881,'F. UL & OPEX flat rates'!$B$2:$G$43,5)))*1,H$3:H12)+H716)*VLOOKUP(H$881,'F. UL & OPEX flat rates'!$B$2:$G$43,6,0)","v":0},{"$f":"(SUMPRODUCT(($A$3:$A12>($A892-VLOOKUP(I$881,'F. UL & OPEX flat rates'!$B$2:$G$43,5)))*1,I$3:I12)+I716)*VLOOKUP(I$881,'F. UL & OPEX flat rates'!$B$2:$G$43,6,0)","v":0},{"$f":"(SUMPRODUCT(($A$3:$A12>($A892-VLOOKUP(J$881,'F. UL & OPEX flat rates'!$B$2:$G$43,5)))*1,J$3:J12)+J716)*VLOOKUP(J$881,'F. UL & OPEX flat rates'!$B$2:$G$43,6,0)","v":0},{"$f":"(SUMPRODUCT(($A$3:$A12>($A892-VLOOKUP(K$881,'F. UL & OPEX flat rates'!$B$2:$G$43,5)))*1,K$3:K12)+K716)*VLOOKUP(K$881,'F. UL & OPEX flat rates'!$B$2:$G$43,6,0)","v":0},{"$f":"(SUMPRODUCT(($A$3:$A12>($A892-VLOOKUP(L$881,'F. UL & OPEX flat rates'!$B$2:$G$43,5)))*1,L$3:L12)+L716)*VLOOKUP(L$881,'F. UL & OPEX flat rates'!$B$2:$G$43,6,0)","v":0},{"$f":"(SUMPRODUCT(($A$3:$A12>($A892-VLOOKUP(M$881,'F. UL & OPEX flat rates'!$B$2:$G$43,5)))*1,M$3:M12)+M716)*VLOOKUP(M$881,'F. UL & OPEX flat rates'!$B$2:$G$43,6,0)","v":0},{"$f":"(SUMPRODUCT(($A$3:$A12>($A892-VLOOKUP(N$881,'F. UL & OPEX flat rates'!$B$2:$G$43,5)))*1,N$3:N12)+N716)*VLOOKUP(N$881,'F. UL & OPEX flat rates'!$B$2:$G$43,6,0)","v":0},{"$f":"(SUMPRODUCT(($A$3:$A12>($A892-VLOOKUP(O$881,'F. UL & OPEX flat rates'!$B$2:$G$43,5)))*1,O$3:O12)+O716)*VLOOKUP(O$881,'F. UL & OPEX flat rates'!$B$2:$G$43,6,0)","v":0},{"$f":"(SUMPRODUCT(($A$3:$A12>($A892-VLOOKUP(P$881,'F. UL & OPEX flat rates'!$B$2:$G$43,5)))*1,P$3:P12)+P716)*VLOOKUP(P$881,'F. UL & OPEX flat rates'!$B$2:$G$43,6,0)","v":7800000},{"$f":"(SUMPRODUCT(($A$3:$A12>($A892-VLOOKUP(Q$881,'F. UL & OPEX flat rates'!$B$2:$G$43,5)))*1,Q$3:Q12)+Q716)*VLOOKUP(Q$881,'F. UL & OPEX flat rates'!$B$2:$G$43,6,0)","v":0},{"$f":"(SUMPRODUCT(($A$3:$A12>($A892-VLOOKUP(R$881,'F. UL & OPEX flat rates'!$B$2:$G$43,5)))*1,R$3:R12)+R716)*VLOOKUP(R$881,'F. UL & OPEX flat rates'!$B$2:$G$43,6,0)","v":0},{"$f":"(SUMPRODUCT(($A$3:$A12>($A892-VLOOKUP(S$881,'F. UL & OPEX flat rates'!$B$2:$G$43,5)))*1,S$3:S12)+S716)*VLOOKUP(S$881,'F. UL & OPEX flat rates'!$B$2:$G$43,6,0)","v":0},{"$f":"(SUMPRODUCT(($A$3:$A12>($A892-VLOOKUP(T$881,'F. UL & OPEX flat rates'!$B$2:$G$43,5)))*1,T$3:T12)+T716)*VLOOKUP(T$881,'F. UL & OPEX flat rates'!$B$2:$G$43,6,0)","v":0},{"$f":"(SUMPRODUCT(($A$3:$A12>($A892-VLOOKUP(U$881,'F. UL & OPEX flat rates'!$B$2:$G$43,5)))*1,U$3:U12)+U716)*VLOOKUP(U$881,'F. UL & OPEX flat rates'!$B$2:$G$43,6,0)","v":0},{"$f":"(SUMPRODUCT(($A$3:$A12>($A892-VLOOKUP(V$881,'F. UL & OPEX flat rates'!$B$2:$G$43,5)))*1,V$3:V12)+V716)*VLOOKUP(V$881,'F. UL & OPEX flat rates'!$B$2:$G$43,6,0)","v":0},{"$f":"(SUMPRODUCT(($A$3:$A12>($A892-VLOOKUP(W$881,'F. UL & OPEX flat rates'!$B$2:$G$43,5)))*1,W$3:W12)+W716)*VLOOKUP(W$881,'F. UL & OPEX flat rates'!$B$2:$G$43,6,0)","v":0},{"$f":"(SUMPRODUCT(($A$3:$A12>($A892-VLOOKUP(X$881,'F. UL & OPEX flat rates'!$B$2:$G$43,5)))*1,X$3:X12)+X716)*VLOOKUP(X$881,'F. UL & OPEX flat rates'!$B$2:$G$43,6,0)","v":0},{"$f":"(SUMPRODUCT(($A$3:$A12>($A892-VLOOKUP(Y$881,'F. UL & OPEX flat rates'!$B$2:$G$43,5)))*1,Y$3:Y12)+Y716)*VLOOKUP(Y$881,'F. UL & OPEX flat rates'!$B$2:$G$43,6,0)","v":0},{"$f":"(SUMPRODUCT(($A$3:$A12>($A892-VLOOKUP(Z$881,'F. UL & OPEX flat rates'!$B$2:$G$43,5)))*1,Z$3:Z12)+Z716)*VLOOKUP(Z$881,'F. UL & OPEX flat rates'!$B$2:$G$43,6,0)","v":0},{"$f":"(SUMPRODUCT(($A$3:$A12>($A892-VLOOKUP(AA$881,'F. UL & OPEX flat rates'!$B$2:$G$43,5)))*1,AA$3:AA12)+AA716)*VLOOKUP(AA$881,'F. UL & OPEX flat rates'!$B$2:$G$43,6,0)","v":0},{"$f":"(SUMPRODUCT(($A$3:$A12>($A892-VLOOKUP(AB$881,'F. UL & OPEX flat rates'!$B$2:$G$43,5)))*1,AB$3:AB12)+AB716)*VLOOKUP(AB$881,'F. UL & OPEX flat rates'!$B$2:$G$43,6,0)","v":0},{"$f":"(SUMPRODUCT(($A$3:$A12>($A892-VLOOKUP(AC$881,'F. UL & OPEX flat rates'!$B$2:$G$43,5)))*1,AC$3:AC12)+AC716)*VLOOKUP(AC$881,'F. UL & OPEX flat rates'!$B$2:$G$43,6,0)","v":0},{"$f":"(SUMPRODUCT(($A$3:$A12>($A892-VLOOKUP(AD$881,'F. UL & OPEX flat rates'!$B$2:$G$43,5)))*1,AD$3:AD12)+AD716)*VLOOKUP(AD$881,'F. UL & OPEX flat rates'!$B$2:$G$43,6,0)","v":0},{"$f":"(SUMPRODUCT(($A$3:$A12>($A892-VLOOKUP(AE$881,'F. UL & OPEX flat rates'!$B$2:$G$43,5)))*1,AE$3:AE12)+AE716)*VLOOKUP(AE$881,'F. UL & OPEX flat rates'!$B$2:$G$43,6,0)","v":0},{"$f":"(SUMPRODUCT(($A$3:$A12>($A892-VLOOKUP(AF$881,'F. UL & OPEX flat rates'!$B$2:$G$43,5)))*1,AF$3:AF12)+AF716)*VLOOKUP(AF$881,'F. UL & OPEX flat rates'!$B$2:$G$43,6,0)","v":0},{"$f":"(SUMPRODUCT(($A$3:$A12>($A892-VLOOKUP(AG$881,'F. UL & OPEX flat rates'!$B$2:$G$43,5)))*1,AG$3:AG12)+AG716)*VLOOKUP(AG$881,'F. UL & OPEX flat rates'!$B$2:$G$43,6,0)","v":0},{"$f":"(SUMPRODUCT(($A$3:$A12>($A892-VLOOKUP(AH$881,'F. UL & OPEX flat rates'!$B$2:$G$43,5)))*1,AH$3:AH12)+AH716)*VLOOKUP(AH$881,'F. UL & OPEX flat rates'!$B$2:$G$43,6,0)","v":0},{"$f":"(SUMPRODUCT(($A$3:$A12>($A892-VLOOKUP(AI$881,'F. UL & OPEX flat rates'!$B$2:$G$43,5)))*1,AI$3:AI12)+AI716)*VLOOKUP(AI$881,'F. UL & OPEX flat rates'!$B$2:$G$43,6,0)","v":0},{"$f":"(SUMPRODUCT(($A$3:$A12>($A892-VLOOKUP(AJ$881,'F. UL & OPEX flat rates'!$B$2:$G$43,5)))*1,AJ$3:AJ12)+AJ716)*VLOOKUP(AJ$881,'F. UL & OPEX flat rates'!$B$2:$G$43,6,0)","v":58000},{"$f":"(SUMPRODUCT(($A$3:$A12>($A892-VLOOKUP(AK$881,'F. UL & OPEX flat rates'!$B$2:$G$43,5)))*1,AK$3:AK12)+AK716)*VLOOKUP(AK$881,'F. UL & OPEX flat rates'!$B$2:$G$43,6,0)","v":0},{"$f":"(SUMPRODUCT(($A$3:$A12>($A892-VLOOKUP(AL$881,'F. UL & OPEX flat rates'!$B$2:$G$43,5)))*1,AL$3:AL12)+AL716)*VLOOKUP(AL$881,'F. UL & OPEX flat rates'!$B$2:$G$43,6,0)","v":0},{"$f":"(SUMPRODUCT(($A$3:$A12>($A892-VLOOKUP(AM$881,'F. UL & OPEX flat rates'!$B$2:$G$43,5)))*1,AM$3:AM12)+AM716)*VLOOKUP(AM$881,'F. UL & OPEX flat rates'!$B$2:$G$43,6,0)","v":0},{"$f":"(SUMPRODUCT(($A$3:$A12>($A892-VLOOKUP(AN$881,'F. UL & OPEX flat rates'!$B$2:$G$43,5)))*1,AN$3:AN12)+AN716)*VLOOKUP(AN$881,'F. UL & OPEX flat rates'!$B$2:$G$43,6,0)","v":0},{"$f":"(SUMPRODUCT(($A$3:$A12>($A892-VLOOKUP(AO$881,'F. UL & OPEX flat rates'!$B$2:$G$43,5)))*1,AO$3:AO12)+AO716)*VLOOKUP(AO$881,'F. UL & OPEX flat rates'!$B$2:$G$43,6,0)","v":0},{"$f":"(SUMPRODUCT(($A$3:$A12>($A892-VLOOKUP(AP$881,'F. UL & OPEX flat rates'!$B$2:$G$43,5)))*1,AP$3:AP12)+AP716)*VLOOKUP(AP$881,'F. UL & OPEX flat rates'!$B$2:$G$43,6,0)","v":0},{"$f":"(SUMPRODUCT(($A$3:$A12>($A892-VLOOKUP(AQ$881,'F. UL & OPEX flat rates'!$B$2:$G$43,5)))*1,AQ$3:AQ12)+AQ716)*VLOOKUP(AQ$881,'F. UL & OPEX flat rates'!$B$2:$G$43,6,0)","v":0}]
[2026,7858000,{"$f":"(SUMPRODUCT(($A$3:$A13>($A893-VLOOKUP(C$881,'F. UL & OPEX flat rates'!$B$2:$G$43,5)))*1,C$3:C13)+C717)*VLOOKUP(C$881,'F. UL & OPEX flat rates'!$B$2:$G$43,6,0)","v":0},{"$f":"(SUMPRODUCT(($A$3:$A13>($A893-VLOOKUP(D$881,'F. UL & OPEX flat rates'!$B$2:$G$43,5)))*1,D$3:D13)+D717)*VLOOKUP(D$881,'F. UL & OPEX flat rates'!$B$2:$G$43,6,0)","v":0},{"$f":"(SUMPRODUCT(($A$3:$A13>($A893-VLOOKUP(E$881,'F. UL & OPEX flat rates'!$B$2:$G$43,5)))*1,E$3:E13)+E717)*VLOOKUP(E$881,'F. UL & OPEX flat rates'!$B$2:$G$43,6,0)","v":0},{"$f":"(SUMPRODUCT(($A$3:$A13>($A893-VLOOKUP(F$881,'F. UL & OPEX flat rates'!$B$2:$G$43,5)))*1,F$3:F13)+F717)*VLOOKUP(F$881,'F. UL & OPEX flat rates'!$B$2:$G$43,6,0)","v":0},{"$f":"(SUMPRODUCT(($A$3:$A13>($A893-VLOOKUP(G$881,'F. UL & OPEX flat rates'!$B$2:$G$43,5)))*1,G$3:G13)+G717)*VLOOKUP(G$881,'F. UL & OPEX flat rates'!$B$2:$G$43,6,0)","v":0},{"$f":"(SUMPRODUCT(($A$3:$A13>($A893-VLOOKUP(H$881,'F. UL & OPEX flat rates'!$B$2:$G$43,5)))*1,H$3:H13)+H717)*VLOOKUP(H$881,'F. UL & OPEX flat rates'!$B$2:$G$43,6,0)","v":0},{"$f":"(SUMPRODUCT(($A$3:$A13>($A893-VLOOKUP(I$881,'F. UL & OPEX flat rates'!$B$2:$G$43,5)))*1,I$3:I13)+I717)*VLOOKUP(I$881,'F. UL & OPEX flat rates'!$B$2:$G$43,6,0)","v":0},{"$f":"(SUMPRODUCT(($A$3:$A13>($A893-VLOOKUP(J$881,'F. UL & OPEX flat rates'!$B$2:$G$43,5)))*1,J$3:J13)+J717)*VLOOKUP(J$881,'F. UL & OPEX flat rates'!$B$2:$G$43,6,0)","v":0},{"$f":"(SUMPRODUCT(($A$3:$A13>($A893-VLOOKUP(K$881,'F. UL & OPEX flat rates'!$B$2:$G$43,5)))*1,K$3:K13)+K717)*VLOOKUP(K$881,'F. UL & OPEX flat rates'!$B$2:$G$43,6,0)","v":0},{"$f":"(SUMPRODUCT(($A$3:$A13>($A893-VLOOKUP(L$881,'F. UL & OPEX flat rates'!$B$2:$G$43,5)))*1,L$3:L13)+L717)*VLOOKUP(L$881,'F. UL & OPEX flat rates'!$B$2:$G$43,6,0)","v":0},{"$f":"(SUMPRODUCT(($A$3:$A13>($A893-VLOOKUP(M$881,'F. UL & OPEX flat rates'!$B$2:$G$43,5)))*1,M$3:M13)+M717)*VLOOKUP(M$881,'F. UL & OPEX flat rates'!$B$2:$G$43,6,0)","v":0},{"$f":"(SUMPRODUCT(($A$3:$A13>($A893-VLOOKUP(N$881,'F. UL & OPEX flat rates'!$B$2:$G$43,5)))*1,N$3:N13)+N717)*VLOOKUP(N$881,'F. UL & OPEX flat rates'!$B$2:$G$43,6,0)","v":0},{"$f":"(SUMPRODUCT(($A$3:$A13>($A893-VLOOKUP(O$881,'F. UL & OPEX flat rates'!$B$2:$G$43,5)))*1,O$3:O13)+O717)*VLOOKUP(O$881,'F. UL & OPEX flat rates'!$B$2:$G$43,6,0)","v":0},{"$f":"(SUMPRODUCT(($A$3:$A13>($A893-VLOOKUP(P$881,'F. UL & OPEX flat rates'!$B$2:$G$43,5)))*1,P$3:P13)+P717)*VLOOKUP(P$881,'F. UL & OPEX flat rates'!$B$2:$G$43,6,0)","v":7800000},{"$f":"(SUMPRODUCT(($A$3:$A13>($A893-VLOOKUP(Q$881,'F. UL & OPEX flat rates'!$B$2:$G$43,5)))*1,Q$3:Q13)+Q717)*VLOOKUP(Q$881,'F. UL & OPEX flat rates'!$B$2:$G$43,6,0)","v":0},{"$f":"(SUMPRODUCT(($A$3:$A13>($A893-VLOOKUP(R$881,'F. UL & OPEX flat rates'!$B$2:$G$43,5)))*1,R$3:R13)+R717)*VLOOKUP(R$881,'F. UL & OPEX flat rates'!$B$2:$G$43,6,0)","v":0},{"$f":"(SUMPRODUCT(($A$3:$A13>($A893-VLOOKUP(S$881,'F. UL & OPEX flat rates'!$B$2:$G$43,5)))*1,S$3:S13)+S717)*VLOOKUP(S$881,'F. UL & OPEX flat rates'!$B$2:$G$43,6,0)","v":0},{"$f":"(SUMPRODUCT(($A$3:$A13>($A893-VLOOKUP(T$881,'F. UL & OPEX flat rates'!$B$2:$G$43,5)))*1,T$3:T13)+T717)*VLOOKUP(T$881,'F. UL & OPEX flat rates'!$B$2:$G$43,6,0)","v":0},{"$f":"(SUMPRODUCT(($A$3:$A13>($A893-VLOOKUP(U$881,'F. UL & OPEX flat rates'!$B$2:$G$43,5)))*1,U$3:U13)+U717)*VLOOKUP(U$881,'F. UL & OPEX flat rates'!$B$2:$G$43,6,0)","v":0},{"$f":"(SUMPRODUCT(($A$3:$A13>($A893-VLOOKUP(V$881,'F. UL & OPEX flat rates'!$B$2:$G$43,5)))*1,V$3:V13)+V717)*VLOOKUP(V$881,'F. UL & OPEX flat rates'!$B$2:$G$43,6,0)","v":0},{"$f":"(SUMPRODUCT(($A$3:$A13>($A893-VLOOKUP(W$881,'F. UL & OPEX flat rates'!$B$2:$G$43,5)))*1,W$3:W13)+W717)*VLOOKUP(W$881,'F. UL & OPEX flat rates'!$B$2:$G$43,6,0)","v":0},{"$f":"(SUMPRODUCT(($A$3:$A13>($A893-VLOOKUP(X$881,'F. UL & OPEX flat rates'!$B$2:$G$43,5)))*1,X$3:X13)+X717)*VLOOKUP(X$881,'F. UL & OPEX flat rates'!$B$2:$G$43,6,0)","v":0},{"$f":"(SUMPRODUCT(($A$3:$A13>($A893-VLOOKUP(Y$881,'F. UL & OPEX flat rates'!$B$2:$G$43,5)))*1,Y$3:Y13)+Y717)*VLOOKUP(Y$881,'F. UL & OPEX flat rates'!$B$2:$G$43,6,0)","v":0},{"$f":"(SUMPRODUCT(($A$3:$A13>($A893-VLOOKUP(Z$881,'F. UL & OPEX flat rates'!$B$2:$G$43,5)))*1,Z$3:Z13)+Z717)*VLOOKUP(Z$881,'F. UL & OPEX flat rates'!$B$2:$G$43,6,0)","v":0},{"$f":"(SUMPRODUCT(($A$3:$A13>($A893-VLOOKUP(AA$881,'F. UL & OPEX flat rates'!$B$2:$G$43,5)))*1,AA$3:AA13)+AA717)*VLOOKUP(AA$881,'F. UL & OPEX flat rates'!$B$2:$G$43,6,0)","v":0},{"$f":"(SUMPRODUCT(($A$3:$A13>($A893-VLOOKUP(AB$881,'F. UL & OPEX flat rates'!$B$2:$G$43,5)))*1,AB$3:AB13)+AB717)*VLOOKUP(AB$881,'F. UL & OPEX flat rates'!$B$2:$G$43,6,0)","v":0},{"$f":"(SUMPRODUCT(($A$3:$A13>($A893-VLOOKUP(AC$881,'F. UL & OPEX flat rates'!$B$2:$G$43,5)))*1,AC$3:AC13)+AC717)*VLOOKUP(AC$881,'F. UL & OPEX flat rates'!$B$2:$G$43,6,0)","v":0},{"$f":"(SUMPRODUCT(($A$3:$A13>($A893-VLOOKUP(AD$881,'F. UL & OPEX flat rates'!$B$2:$G$43,5)))*1,AD$3:AD13)+AD717)*VLOOKUP(AD$881,'F. UL & OPEX flat rates'!$B$2:$G$43,6,0)","v":0},{"$f":"(SUMPRODUCT(($A$3:$A13>($A893-VLOOKUP(AE$881,'F. UL & OPEX flat rates'!$B$2:$G$43,5)))*1,AE$3:AE13)+AE717)*VLOOKUP(AE$881,'F. UL & OPEX flat rates'!$B$2:$G$43,6,0)","v":0},{"$f":"(SUMPRODUCT(($A$3:$A13>($A893-VLOOKUP(AF$881,'F. UL & OPEX flat rates'!$B$2:$G$43,5)))*1,AF$3:AF13)+AF717)*VLOOKUP(AF$881,'F. UL & OPEX flat rates'!$B$2:$G$43,6,0)","v":0},{"$f":"(SUMPRODUCT(($A$3:$A13>($A893-VLOOKUP(AG$881,'F. UL & OPEX flat rates'!$B$2:$G$43,5)))*1,AG$3:AG13)+AG717)*VLOOKUP(AG$881,'F. UL & OPEX flat rates'!$B$2:$G$43,6,0)","v":0},{"$f":"(SUMPRODUCT(($A$3:$A13>($A893-VLOOKUP(AH$881,'F. UL & OPEX flat rates'!$B$2:$G$43,5)))*1,AH$3:AH13)+AH717)*VLOOKUP(AH$881,'F. UL & OPEX flat rates'!$B$2:$G$43,6,0)","v":0},{"$f":"(SUMPRODUCT(($A$3:$A13>($A893-VLOOKUP(AI$881,'F. UL & OPEX flat rates'!$B$2:$G$43,5)))*1,AI$3:AI13)+AI717)*VLOOKUP(AI$881,'F. UL & OPEX flat rates'!$B$2:$G$43,6,0)","v":0},{"$f":"(SUMPRODUCT(($A$3:$A13>($A893-VLOOKUP(AJ$881,'F. UL & OPEX flat rates'!$B$2:$G$43,5)))*1,AJ$3:AJ13)+AJ717)*VLOOKUP(AJ$881,'F. UL & OPEX flat rates'!$B$2:$G$43,6,0)","v":58000},{"$f":"(SUMPRODUCT(($A$3:$A13>($A893-VLOOKUP(AK$881,'F. UL & OPEX flat rates'!$B$2:$G$43,5)))*1,AK$3:AK13)+AK717)*VLOOKUP(AK$881,'F. UL & OPEX flat rates'!$B$2:$G$43,6,0)","v":0},{"$f":"(SUMPRODUCT(($A$3:$A13>($A893-VLOOKUP(AL$881,'F. UL & OPEX flat rates'!$B$2:$G$43,5)))*1,AL$3:AL13)+AL717)*VLOOKUP(AL$881,'F. UL & OPEX flat rates'!$B$2:$G$43,6,0)","v":0},{"$f":"(SUMPRODUCT(($A$3:$A13>($A893-VLOOKUP(AM$881,'F. UL & OPEX flat rates'!$B$2:$G$43,5)))*1,AM$3:AM13)+AM717)*VLOOKUP(AM$881,'F. UL & OPEX flat rates'!$B$2:$G$43,6,0)","v":0},{"$f":"(SUMPRODUCT(($A$3:$A13>($A893-VLOOKUP(AN$881,'F. UL & OPEX flat rates'!$B$2:$G$43,5)))*1,AN$3:AN13)+AN717)*VLOOKUP(AN$881,'F. UL & OPEX flat rates'!$B$2:$G$43,6,0)","v":0},{"$f":"(SUMPRODUCT(($A$3:$A13>($A893-VLOOKUP(AO$881,'F. UL & OPEX flat rates'!$B$2:$G$43,5)))*1,AO$3:AO13)+AO717)*VLOOKUP(AO$881,'F. UL & OPEX flat rates'!$B$2:$G$43,6,0)","v":0},{"$f":"(SUMPRODUCT(($A$3:$A13>($A893-VLOOKUP(AP$881,'F. UL & OPEX flat rates'!$B$2:$G$43,5)))*1,AP$3:AP13)+AP717)*VLOOKUP(AP$881,'F. UL & OPEX flat rates'!$B$2:$G$43,6,0)","v":0},{"$f":"(SUMPRODUCT(($A$3:$A13>($A893-VLOOKUP(AQ$881,'F. UL & OPEX flat rates'!$B$2:$G$43,5)))*1,AQ$3:AQ13)+AQ717)*VLOOKUP(AQ$881,'F. UL & OPEX flat rates'!$B$2:$G$43,6,0)","v":0}]
[2027,7858000,{"$f":"(SUMPRODUCT(($A$3:$A14>($A894-VLOOKUP(C$881,'F. UL & OPEX flat rates'!$B$2:$G$43,5)))*1,C$3:C14)+C718)*VLOOKUP(C$881,'F. UL & OPEX flat rates'!$B$2:$G$43,6,0)","v":0},{"$f":"(SUMPRODUCT(($A$3:$A14>($A894-VLOOKUP(D$881,'F. UL & OPEX flat rates'!$B$2:$G$43,5)))*1,D$3:D14)+D718)*VLOOKUP(D$881,'F. UL & OPEX flat rates'!$B$2:$G$43,6,0)","v":0},{"$f":"(SUMPRODUCT(($A$3:$A14>($A894-VLOOKUP(E$881,'F. UL & OPEX flat rates'!$B$2:$G$43,5)))*1,E$3:E14)+E718)*VLOOKUP(E$881,'F. UL & OPEX flat rates'!$B$2:$G$43,6,0)","v":0},{"$f":"(SUMPRODUCT(($A$3:$A14>($A894-VLOOKUP(F$881,'F. UL & OPEX flat rates'!$B$2:$G$43,5)))*1,F$3:F14)+F718)*VLOOKUP(F$881,'F. UL & OPEX flat rates'!$B$2:$G$43,6,0)","v":0},{"$f":"(SUMPRODUCT(($A$3:$A14>($A894-VLOOKUP(G$881,'F. UL & OPEX flat rates'!$B$2:$G$43,5)))*1,G$3:G14)+G718)*VLOOKUP(G$881,'F. UL & OPEX flat rates'!$B$2:$G$43,6,0)","v":0},{"$f":"(SUMPRODUCT(($A$3:$A14>($A894-VLOOKUP(H$881,'F. UL & OPEX flat rates'!$B$2:$G$43,5)))*1,H$3:H14)+H718)*VLOOKUP(H$881,'F. UL & OPEX flat rates'!$B$2:$G$43,6,0)","v":0},{"$f":"(SUMPRODUCT(($A$3:$A14>($A894-VLOOKUP(I$881,'F. UL & OPEX flat rates'!$B$2:$G$43,5)))*1,I$3:I14)+I718)*VLOOKUP(I$881,'F. UL & OPEX flat rates'!$B$2:$G$43,6,0)","v":0},{"$f":"(SUMPRODUCT(($A$3:$A14>($A894-VLOOKUP(J$881,'F. UL & OPEX flat rates'!$B$2:$G$43,5)))*1,J$3:J14)+J718)*VLOOKUP(J$881,'F. UL & OPEX flat rates'!$B$2:$G$43,6,0)","v":0},{"$f":"(SUMPRODUCT(($A$3:$A14>($A894-VLOOKUP(K$881,'F. UL & OPEX flat rates'!$B$2:$G$43,5)))*1,K$3:K14)+K718)*VLOOKUP(K$881,'F. UL & OPEX flat rates'!$B$2:$G$43,6,0)","v":0},{"$f":"(SUMPRODUCT(($A$3:$A14>($A894-VLOOKUP(L$881,'F. UL & OPEX flat rates'!$B$2:$G$43,5)))*1,L$3:L14)+L718)*VLOOKUP(L$881,'F. UL & OPEX flat rates'!$B$2:$G$43,6,0)","v":0},{"$f":"(SUMPRODUCT(($A$3:$A14>($A894-VLOOKUP(M$881,'F. UL & OPEX flat rates'!$B$2:$G$43,5)))*1,M$3:M14)+M718)*VLOOKUP(M$881,'F. UL & OPEX flat rates'!$B$2:$G$43,6,0)","v":0},{"$f":"(SUMPRODUCT(($A$3:$A14>($A894-VLOOKUP(N$881,'F. UL & OPEX flat rates'!$B$2:$G$43,5)))*1,N$3:N14)+N718)*VLOOKUP(N$881,'F. UL & OPEX flat rates'!$B$2:$G$43,6,0)","v":0},{"$f":"(SUMPRODUCT(($A$3:$A14>($A894-VLOOKUP(O$881,'F. UL & OPEX flat rates'!$B$2:$G$43,5)))*1,O$3:O14)+O718)*VLOOKUP(O$881,'F. UL & OPEX flat rates'!$B$2:$G$43,6,0)","v":0},{"$f":"(SUMPRODUCT(($A$3:$A14>($A894-VLOOKUP(P$881,'F. UL & OPEX flat rates'!$B$2:$G$43,5)))*1,P$3:P14)+P718)*VLOOKUP(P$881,'F. UL & OPEX flat rates'!$B$2:$G$43,6,0)","v":7800000},{"$f":"(SUMPRODUCT(($A$3:$A14>($A894-VLOOKUP(Q$881,'F. UL & OPEX flat rates'!$B$2:$G$43,5)))*1,Q$3:Q14)+Q718)*VLOOKUP(Q$881,'F. UL & OPEX flat rates'!$B$2:$G$43,6,0)","v":0},{"$f":"(SUMPRODUCT(($A$3:$A14>($A894-VLOOKUP(R$881,'F. UL & OPEX flat rates'!$B$2:$G$43,5)))*1,R$3:R14)+R718)*VLOOKUP(R$881,'F. UL & OPEX flat rates'!$B$2:$G$43,6,0)","v":0},{"$f":"(SUMPRODUCT(($A$3:$A14>($A894-VLOOKUP(S$881,'F. UL & OPEX flat rates'!$B$2:$G$43,5)))*1,S$3:S14)+S718)*VLOOKUP(S$881,'F. UL & OPEX flat rates'!$B$2:$G$43,6,0)","v":0},{"$f":"(SUMPRODUCT(($A$3:$A14>($A894-VLOOKUP(T$881,'F. UL & OPEX flat rates'!$B$2:$G$43,5)))*1,T$3:T14)+T718)*VLOOKUP(T$881,'F. UL & OPEX flat rates'!$B$2:$G$43,6,0)","v":0},{"$f":"(SUMPRODUCT(($A$3:$A14>($A894-VLOOKUP(U$881,'F. UL & OPEX flat rates'!$B$2:$G$43,5)))*1,U$3:U14)+U718)*VLOOKUP(U$881,'F. UL & OPEX flat rates'!$B$2:$G$43,6,0)","v":0},{"$f":"(SUMPRODUCT(($A$3:$A14>($A894-VLOOKUP(V$881,'F. UL & OPEX flat rates'!$B$2:$G$43,5)))*1,V$3:V14)+V718)*VLOOKUP(V$881,'F. UL & OPEX flat rates'!$B$2:$G$43,6,0)","v":0},{"$f":"(SUMPRODUCT(($A$3:$A14>($A894-VLOOKUP(W$881,'F. UL & OPEX flat rates'!$B$2:$G$43,5)))*1,W$3:W14)+W718)*VLOOKUP(W$881,'F. UL & OPEX flat rates'!$B$2:$G$43,6,0)","v":0},{"$f":"(SUMPRODUCT(($A$3:$A14>($A894-VLOOKUP(X$881,'F. UL & OPEX flat rates'!$B$2:$G$43,5)))*1,X$3:X14)+X718)*VLOOKUP(X$881,'F. UL & OPEX flat rates'!$B$2:$G$43,6,0)","v":0},{"$f":"(SUMPRODUCT(($A$3:$A14>($A894-VLOOKUP(Y$881,'F. UL & OPEX flat rates'!$B$2:$G$43,5)))*1,Y$3:Y14)+Y718)*VLOOKUP(Y$881,'F. UL & OPEX flat rates'!$B$2:$G$43,6,0)","v":0},{"$f":"(SUMPRODUCT(($A$3:$A14>($A894-VLOOKUP(Z$881,'F. UL & OPEX flat rates'!$B$2:$G$43,5)))*1,Z$3:Z14)+Z718)*VLOOKUP(Z$881,'F. UL & OPEX flat rates'!$B$2:$G$43,6,0)","v":0},{"$f":"(SUMPRODUCT(($A$3:$A14>($A894-VLOOKUP(AA$881,'F. UL & OPEX flat rates'!$B$2:$G$43,5)))*1,AA$3:AA14)+AA718)*VLOOKUP(AA$881,'F. UL & OPEX flat rates'!$B$2:$G$43,6,0)","v":0},{"$f":"(SUMPRODUCT(($A$3:$A14>($A894-VLOOKUP(AB$881,'F. UL & OPEX flat rates'!$B$2:$G$43,5)))*1,AB$3:AB14)+AB718)*VLOOKUP(AB$881,'F. UL & OPEX flat rates'!$B$2:$G$43,6,0)","v":0},{"$f":"(SUMPRODUCT(($A$3:$A14>($A894-VLOOKUP(AC$881,'F. UL & OPEX flat rates'!$B$2:$G$43,5)))*1,AC$3:AC14)+AC718)*VLOOKUP(AC$881,'F. UL & OPEX flat rates'!$B$2:$G$43,6,0)","v":0},{"$f":"(SUMPRODUCT(($A$3:$A14>($A894-VLOOKUP(AD$881,'F. UL & OPEX flat rates'!$B$2:$G$43,5)))*1,AD$3:AD14)+AD718)*VLOOKUP(AD$881,'F. UL & OPEX flat rates'!$B$2:$G$43,6,0)","v":0},{"$f":"(SUMPRODUCT(($A$3:$A14>($A894-VLOOKUP(AE$881,'F. UL & OPEX flat rates'!$B$2:$G$43,5)))*1,AE$3:AE14)+AE718)*VLOOKUP(AE$881,'F. UL & OPEX flat rates'!$B$2:$G$43,6,0)","v":0},{"$f":"(SUMPRODUCT(($A$3:$A14>($A894-VLOOKUP(AF$881,'F. UL & OPEX flat rates'!$B$2:$G$43,5)))*1,AF$3:AF14)+AF718)*VLOOKUP(AF$881,'F. UL & OPEX flat rates'!$B$2:$G$43,6,0)","v":0},{"$f":"(SUMPRODUCT(($A$3:$A14>($A894-VLOOKUP(AG$881,'F. UL & OPEX flat rates'!$B$2:$G$43,5)))*1,AG$3:AG14)+AG718)*VLOOKUP(AG$881,'F. UL & OPEX flat rates'!$B$2:$G$43,6,0)","v":0},{"$f":"(SUMPRODUCT(($A$3:$A14>($A894-VLOOKUP(AH$881,'F. UL & OPEX flat rates'!$B$2:$G$43,5)))*1,AH$3:AH14)+AH718)*VLOOKUP(AH$881,'F. UL & OPEX flat rates'!$B$2:$G$43,6,0)","v":0},{"$f":"(SUMPRODUCT(($A$3:$A14>($A894-VLOOKUP(AI$881,'F. UL & OPEX flat rates'!$B$2:$G$43,5)))*1,AI$3:AI14)+AI718)*VLOOKUP(AI$881,'F. UL & OPEX flat rates'!$B$2:$G$43,6,0)","v":0},{"$f":"(SUMPRODUCT(($A$3:$A14>($A894-VLOOKUP(AJ$881,'F. UL & OPEX flat rates'!$B$2:$G$43,5)))*1,AJ$3:AJ14)+AJ718)*VLOOKUP(AJ$881,'F. UL & OPEX flat rates'!$B$2:$G$43,6,0)","v":58000},{"$f":"(SUMPRODUCT(($A$3:$A14>($A894-VLOOKUP(AK$881,'F. UL & OPEX flat rates'!$B$2:$G$43,5)))*1,AK$3:AK14)+AK718)*VLOOKUP(AK$881,'F. UL & OPEX flat rates'!$B$2:$G$43,6,0)","v":0},{"$f":"(SUMPRODUCT(($A$3:$A14>($A894-VLOOKUP(AL$881,'F. UL & OPEX flat rates'!$B$2:$G$43,5)))*1,AL$3:AL14)+AL718)*VLOOKUP(AL$881,'F. UL & OPEX flat rates'!$B$2:$G$43,6,0)","v":0},{"$f":"(SUMPRODUCT(($A$3:$A14>($A894-VLOOKUP(AM$881,'F. UL & OPEX flat rates'!$B$2:$G$43,5)))*1,AM$3:AM14)+AM718)*VLOOKUP(AM$881,'F. UL & OPEX flat rates'!$B$2:$G$43,6,0)","v":0},{"$f":"(SUMPRODUCT(($A$3:$A14>($A894-VLOOKUP(AN$881,'F. UL & OPEX flat rates'!$B$2:$G$43,5)))*1,AN$3:AN14)+AN718)*VLOOKUP(AN$881,'F. UL & OPEX flat rates'!$B$2:$G$43,6,0)","v":0},{"$f":"(SUMPRODUCT(($A$3:$A14>($A894-VLOOKUP(AO$881,'F. UL & OPEX flat rates'!$B$2:$G$43,5)))*1,AO$3:AO14)+AO718)*VLOOKUP(AO$881,'F. UL & OPEX flat rates'!$B$2:$G$43,6,0)","v":0},{"$f":"(SUMPRODUCT(($A$3:$A14>($A894-VLOOKUP(AP$881,'F. UL & OPEX flat rates'!$B$2:$G$43,5)))*1,AP$3:AP14)+AP718)*VLOOKUP(AP$881,'F. UL & OPEX flat rates'!$B$2:$G$43,6,0)","v":0},{"$f":"(SUMPRODUCT(($A$3:$A14>($A894-VLOOKUP(AQ$881,'F. UL & OPEX flat rates'!$B$2:$G$43,5)))*1,AQ$3:AQ14)+AQ718)*VLOOKUP(AQ$881,'F. UL & OPEX flat rates'!$B$2:$G$43,6,0)","v":0}]
[2028,7858000,{"$f":"(SUMPRODUCT(($A$3:$A15>($A895-VLOOKUP(C$881,'F. UL & OPEX flat rates'!$B$2:$G$43,5)))*1,C$3:C15)+C719)*VLOOKUP(C$881,'F. UL & OPEX flat rates'!$B$2:$G$43,6,0)","v":0},{"$f":"(SUMPRODUCT(($A$3:$A15>($A895-VLOOKUP(D$881,'F. UL & OPEX flat rates'!$B$2:$G$43,5)))*1,D$3:D15)+D719)*VLOOKUP(D$881,'F. UL & OPEX flat rates'!$B$2:$G$43,6,0)","v":0},{"$f":"(SUMPRODUCT(($A$3:$A15>($A895-VLOOKUP(E$881,'F. UL & OPEX flat rates'!$B$2:$G$43,5)))*1,E$3:E15)+E719)*VLOOKUP(E$881,'F. UL & OPEX flat rates'!$B$2:$G$43,6,0)","v":0},{"$f":"(SUMPRODUCT(($A$3:$A15>($A895-VLOOKUP(F$881,'F. UL & OPEX flat rates'!$B$2:$G$43,5)))*1,F$3:F15)+F719)*VLOOKUP(F$881,'F. UL & OPEX flat rates'!$B$2:$G$43,6,0)","v":0},{"$f":"(SUMPRODUCT(($A$3:$A15>($A895-VLOOKUP(G$881,'F. UL & OPEX flat rates'!$B$2:$G$43,5)))*1,G$3:G15)+G719)*VLOOKUP(G$881,'F. UL & OPEX flat rates'!$B$2:$G$43,6,0)","v":0},{"$f":"(SUMPRODUCT(($A$3:$A15>($A895-VLOOKUP(H$881,'F. UL & OPEX flat rates'!$B$2:$G$43,5)))*1,H$3:H15)+H719)*VLOOKUP(H$881,'F. UL & OPEX flat rates'!$B$2:$G$43,6,0)","v":0},{"$f":"(SUMPRODUCT(($A$3:$A15>($A895-VLOOKUP(I$881,'F. UL & OPEX flat rates'!$B$2:$G$43,5)))*1,I$3:I15)+I719)*VLOOKUP(I$881,'F. UL & OPEX flat rates'!$B$2:$G$43,6,0)","v":0},{"$f":"(SUMPRODUCT(($A$3:$A15>($A895-VLOOKUP(J$881,'F. UL & OPEX flat rates'!$B$2:$G$43,5)))*1,J$3:J15)+J719)*VLOOKUP(J$881,'F. UL & OPEX flat rates'!$B$2:$G$43,6,0)","v":0},{"$f":"(SUMPRODUCT(($A$3:$A15>($A895-VLOOKUP(K$881,'F. UL & OPEX flat rates'!$B$2:$G$43,5)))*1,K$3:K15)+K719)*VLOOKUP(K$881,'F. UL & OPEX flat rates'!$B$2:$G$43,6,0)","v":0},{"$f":"(SUMPRODUCT(($A$3:$A15>($A895-VLOOKUP(L$881,'F. UL & OPEX flat rates'!$B$2:$G$43,5)))*1,L$3:L15)+L719)*VLOOKUP(L$881,'F. UL & OPEX flat rates'!$B$2:$G$43,6,0)","v":0},{"$f":"(SUMPRODUCT(($A$3:$A15>($A895-VLOOKUP(M$881,'F. UL & OPEX flat rates'!$B$2:$G$43,5)))*1,M$3:M15)+M719)*VLOOKUP(M$881,'F. UL & OPEX flat rates'!$B$2:$G$43,6,0)","v":0},{"$f":"(SUMPRODUCT(($A$3:$A15>($A895-VLOOKUP(N$881,'F. UL & OPEX flat rates'!$B$2:$G$43,5)))*1,N$3:N15)+N719)*VLOOKUP(N$881,'F. UL & OPEX flat rates'!$B$2:$G$43,6,0)","v":0},{"$f":"(SUMPRODUCT(($A$3:$A15>($A895-VLOOKUP(O$881,'F. UL & OPEX flat rates'!$B$2:$G$43,5)))*1,O$3:O15)+O719)*VLOOKUP(O$881,'F. UL & OPEX flat rates'!$B$2:$G$43,6,0)","v":0},{"$f":"(SUMPRODUCT(($A$3:$A15>($A895-VLOOKUP(P$881,'F. UL & OPEX flat rates'!$B$2:$G$43,5)))*1,P$3:P15)+P719)*VLOOKUP(P$881,'F. UL & OPEX flat rates'!$B$2:$G$43,6,0)","v":7800000},{"$f":"(SUMPRODUCT(($A$3:$A15>($A895-VLOOKUP(Q$881,'F. UL & OPEX flat rates'!$B$2:$G$43,5)))*1,Q$3:Q15)+Q719)*VLOOKUP(Q$881,'F. UL & OPEX flat rates'!$B$2:$G$43,6,0)","v":0},{"$f":"(SUMPRODUCT(($A$3:$A15>($A895-VLOOKUP(R$881,'F. UL & OPEX flat rates'!$B$2:$G$43,5)))*1,R$3:R15)+R719)*VLOOKUP(R$881,'F. UL & OPEX flat rates'!$B$2:$G$43,6,0)","v":0},{"$f":"(SUMPRODUCT(($A$3:$A15>($A895-VLOOKUP(S$881,'F. UL & OPEX flat rates'!$B$2:$G$43,5)))*1,S$3:S15)+S719)*VLOOKUP(S$881,'F. UL & OPEX flat rates'!$B$2:$G$43,6,0)","v":0},{"$f":"(SUMPRODUCT(($A$3:$A15>($A895-VLOOKUP(T$881,'F. UL & OPEX flat rates'!$B$2:$G$43,5)))*1,T$3:T15)+T719)*VLOOKUP(T$881,'F. UL & OPEX flat rates'!$B$2:$G$43,6,0)","v":0},{"$f":"(SUMPRODUCT(($A$3:$A15>($A895-VLOOKUP(U$881,'F. UL & OPEX flat rates'!$B$2:$G$43,5)))*1,U$3:U15)+U719)*VLOOKUP(U$881,'F. UL & OPEX flat rates'!$B$2:$G$43,6,0)","v":0},{"$f":"(SUMPRODUCT(($A$3:$A15>($A895-VLOOKUP(V$881,'F. UL & OPEX flat rates'!$B$2:$G$43,5)))*1,V$3:V15)+V719)*VLOOKUP(V$881,'F. UL & OPEX flat rates'!$B$2:$G$43,6,0)","v":0},{"$f":"(SUMPRODUCT(($A$3:$A15>($A895-VLOOKUP(W$881,'F. UL & OPEX flat rates'!$B$2:$G$43,5)))*1,W$3:W15)+W719)*VLOOKUP(W$881,'F. UL & OPEX flat rates'!$B$2:$G$43,6,0)","v":0},{"$f":"(SUMPRODUCT(($A$3:$A15>($A895-VLOOKUP(X$881,'F. UL & OPEX flat rates'!$B$2:$G$43,5)))*1,X$3:X15)+X719)*VLOOKUP(X$881,'F. UL & OPEX flat rates'!$B$2:$G$43,6,0)","v":0},{"$f":"(SUMPRODUCT(($A$3:$A15>($A895-VLOOKUP(Y$881,'F. UL & OPEX flat rates'!$B$2:$G$43,5)))*1,Y$3:Y15)+Y719)*VLOOKUP(Y$881,'F. UL & OPEX flat rates'!$B$2:$G$43,6,0)","v":0},{"$f":"(SUMPRODUCT(($A$3:$A15>($A895-VLOOKUP(Z$881,'F. UL & OPEX flat rates'!$B$2:$G$43,5)))*1,Z$3:Z15)+Z719)*VLOOKUP(Z$881,'F. UL & OPEX flat rates'!$B$2:$G$43,6,0)","v":0},{"$f":"(SUMPRODUCT(($A$3:$A15>($A895-VLOOKUP(AA$881,'F. UL & OPEX flat rates'!$B$2:$G$43,5)))*1,AA$3:AA15)+AA719)*VLOOKUP(AA$881,'F. UL & OPEX flat rates'!$B$2:$G$43,6,0)","v":0},{"$f":"(SUMPRODUCT(($A$3:$A15>($A895-VLOOKUP(AB$881,'F. UL & OPEX flat rates'!$B$2:$G$43,5)))*1,AB$3:AB15)+AB719)*VLOOKUP(AB$881,'F. UL & OPEX flat rates'!$B$2:$G$43,6,0)","v":0},{"$f":"(SUMPRODUCT(($A$3:$A15>($A895-VLOOKUP(AC$881,'F. UL & OPEX flat rates'!$B$2:$G$43,5)))*1,AC$3:AC15)+AC719)*VLOOKUP(AC$881,'F. UL & OPEX flat rates'!$B$2:$G$43,6,0)","v":0},{"$f":"(SUMPRODUCT(($A$3:$A15>($A895-VLOOKUP(AD$881,'F. UL & OPEX flat rates'!$B$2:$G$43,5)))*1,AD$3:AD15)+AD719)*VLOOKUP(AD$881,'F. UL & OPEX flat rates'!$B$2:$G$43,6,0)","v":0},{"$f":"(SUMPRODUCT(($A$3:$A15>($A895-VLOOKUP(AE$881,'F. UL & OPEX flat rates'!$B$2:$G$43,5)))*1,AE$3:AE15)+AE719)*VLOOKUP(AE$881,'F. UL & OPEX flat rates'!$B$2:$G$43,6,0)","v":0},{"$f":"(SUMPRODUCT(($A$3:$A15>($A895-VLOOKUP(AF$881,'F. UL & OPEX flat rates'!$B$2:$G$43,5)))*1,AF$3:AF15)+AF719)*VLOOKUP(AF$881,'F. UL & OPEX flat rates'!$B$2:$G$43,6,0)","v":0},{"$f":"(SUMPRODUCT(($A$3:$A15>($A895-VLOOKUP(AG$881,'F. UL & OPEX flat rates'!$B$2:$G$43,5)))*1,AG$3:AG15)+AG719)*VLOOKUP(AG$881,'F. UL & OPEX flat rates'!$B$2:$G$43,6,0)","v":0},{"$f":"(SUMPRODUCT(($A$3:$A15>($A895-VLOOKUP(AH$881,'F. UL & OPEX flat rates'!$B$2:$G$43,5)))*1,AH$3:AH15)+AH719)*VLOOKUP(AH$881,'F. UL & OPEX flat rates'!$B$2:$G$43,6,0)","v":0},{"$f":"(SUMPRODUCT(($A$3:$A15>($A895-VLOOKUP(AI$881,'F. UL & OPEX flat rates'!$B$2:$G$43,5)))*1,AI$3:AI15)+AI719)*VLOOKUP(AI$881,'F. UL & OPEX flat rates'!$B$2:$G$43,6,0)","v":0},{"$f":"(SUMPRODUCT(($A$3:$A15>($A895-VLOOKUP(AJ$881,'F. UL & OPEX flat rates'!$B$2:$G$43,5)))*1,AJ$3:AJ15)+AJ719)*VLOOKUP(AJ$881,'F. UL & OPEX flat rates'!$B$2:$G$43,6,0)","v":58000},{"$f":"(SUMPRODUCT(($A$3:$A15>($A895-VLOOKUP(AK$881,'F. UL & OPEX flat rates'!$B$2:$G$43,5)))*1,AK$3:AK15)+AK719)*VLOOKUP(AK$881,'F. UL & OPEX flat rates'!$B$2:$G$43,6,0)","v":0},{"$f":"(SUMPRODUCT(($A$3:$A15>($A895-VLOOKUP(AL$881,'F. UL & OPEX flat rates'!$B$2:$G$43,5)))*1,AL$3:AL15)+AL719)*VLOOKUP(AL$881,'F. UL & OPEX flat rates'!$B$2:$G$43,6,0)","v":0},{"$f":"(SUMPRODUCT(($A$3:$A15>($A895-VLOOKUP(AM$881,'F. UL & OPEX flat rates'!$B$2:$G$43,5)))*1,AM$3:AM15)+AM719)*VLOOKUP(AM$881,'F. UL & OPEX flat rates'!$B$2:$G$43,6,0)","v":0},{"$f":"(SUMPRODUCT(($A$3:$A15>($A895-VLOOKUP(AN$881,'F. UL & OPEX flat rates'!$B$2:$G$43,5)))*1,AN$3:AN15)+AN719)*VLOOKUP(AN$881,'F. UL & OPEX flat rates'!$B$2:$G$43,6,0)","v":0},{"$f":"(SUMPRODUCT(($A$3:$A15>($A895-VLOOKUP(AO$881,'F. UL & OPEX flat rates'!$B$2:$G$43,5)))*1,AO$3:AO15)+AO719)*VLOOKUP(AO$881,'F. UL & OPEX flat rates'!$B$2:$G$43,6,0)","v":0},{"$f":"(SUMPRODUCT(($A$3:$A15>($A895-VLOOKUP(AP$881,'F. UL & OPEX flat rates'!$B$2:$G$43,5)))*1,AP$3:AP15)+AP719)*VLOOKUP(AP$881,'F. UL & OPEX flat rates'!$B$2:$G$43,6,0)","v":0},{"$f":"(SUMPRODUCT(($A$3:$A15>($A895-VLOOKUP(AQ$881,'F. UL & OPEX flat rates'!$B$2:$G$43,5)))*1,AQ$3:AQ15)+AQ719)*VLOOKUP(AQ$881,'F. UL & OPEX flat rates'!$B$2:$G$43,6,0)","v":0}]
[2029,7858000,{"$f":"(SUMPRODUCT(($A$3:$A16>($A896-VLOOKUP(C$881,'F. UL & OPEX flat rates'!$B$2:$G$43,5)))*1,C$3:C16)+C720)*VLOOKUP(C$881,'F. UL & OPEX flat rates'!$B$2:$G$43,6,0)","v":0},{"$f":"(SUMPRODUCT(($A$3:$A16>($A896-VLOOKUP(D$881,'F. UL & OPEX flat rates'!$B$2:$G$43,5)))*1,D$3:D16)+D720)*VLOOKUP(D$881,'F. UL & OPEX flat rates'!$B$2:$G$43,6,0)","v":0},{"$f":"(SUMPRODUCT(($A$3:$A16>($A896-VLOOKUP(E$881,'F. UL & OPEX flat rates'!$B$2:$G$43,5)))*1,E$3:E16)+E720)*VLOOKUP(E$881,'F. UL & OPEX flat rates'!$B$2:$G$43,6,0)","v":0},{"$f":"(SUMPRODUCT(($A$3:$A16>($A896-VLOOKUP(F$881,'F. UL & OPEX flat rates'!$B$2:$G$43,5)))*1,F$3:F16)+F720)*VLOOKUP(F$881,'F. UL & OPEX flat rates'!$B$2:$G$43,6,0)","v":0},{"$f":"(SUMPRODUCT(($A$3:$A16>($A896-VLOOKUP(G$881,'F. UL & OPEX flat rates'!$B$2:$G$43,5)))*1,G$3:G16)+G720)*VLOOKUP(G$881,'F. UL & OPEX flat rates'!$B$2:$G$43,6,0)","v":0},{"$f":"(SUMPRODUCT(($A$3:$A16>($A896-VLOOKUP(H$881,'F. UL & OPEX flat rates'!$B$2:$G$43,5)))*1,H$3:H16)+H720)*VLOOKUP(H$881,'F. UL & OPEX flat rates'!$B$2:$G$43,6,0)","v":0},{"$f":"(SUMPRODUCT(($A$3:$A16>($A896-VLOOKUP(I$881,'F. UL & OPEX flat rates'!$B$2:$G$43,5)))*1,I$3:I16)+I720)*VLOOKUP(I$881,'F. UL & OPEX flat rates'!$B$2:$G$43,6,0)","v":0},{"$f":"(SUMPRODUCT(($A$3:$A16>($A896-VLOOKUP(J$881,'F. UL & OPEX flat rates'!$B$2:$G$43,5)))*1,J$3:J16)+J720)*VLOOKUP(J$881,'F. UL & OPEX flat rates'!$B$2:$G$43,6,0)","v":0},{"$f":"(SUMPRODUCT(($A$3:$A16>($A896-VLOOKUP(K$881,'F. UL & OPEX flat rates'!$B$2:$G$43,5)))*1,K$3:K16)+K720)*VLOOKUP(K$881,'F. UL & OPEX flat rates'!$B$2:$G$43,6,0)","v":0},{"$f":"(SUMPRODUCT(($A$3:$A16>($A896-VLOOKUP(L$881,'F. UL & OPEX flat rates'!$B$2:$G$43,5)))*1,L$3:L16)+L720)*VLOOKUP(L$881,'F. UL & OPEX flat rates'!$B$2:$G$43,6,0)","v":0},{"$f":"(SUMPRODUCT(($A$3:$A16>($A896-VLOOKUP(M$881,'F. UL & OPEX flat rates'!$B$2:$G$43,5)))*1,M$3:M16)+M720)*VLOOKUP(M$881,'F. UL & OPEX flat rates'!$B$2:$G$43,6,0)","v":0},{"$f":"(SUMPRODUCT(($A$3:$A16>($A896-VLOOKUP(N$881,'F. UL & OPEX flat rates'!$B$2:$G$43,5)))*1,N$3:N16)+N720)*VLOOKUP(N$881,'F. UL & OPEX flat rates'!$B$2:$G$43,6,0)","v":0},{"$f":"(SUMPRODUCT(($A$3:$A16>($A896-VLOOKUP(O$881,'F. UL & OPEX flat rates'!$B$2:$G$43,5)))*1,O$3:O16)+O720)*VLOOKUP(O$881,'F. UL & OPEX flat rates'!$B$2:$G$43,6,0)","v":0},{"$f":"(SUMPRODUCT(($A$3:$A16>($A896-VLOOKUP(P$881,'F. UL & OPEX flat rates'!$B$2:$G$43,5)))*1,P$3:P16)+P720)*VLOOKUP(P$881,'F. UL & OPEX flat rates'!$B$2:$G$43,6,0)","v":7800000},{"$f":"(SUMPRODUCT(($A$3:$A16>($A896-VLOOKUP(Q$881,'F. UL & OPEX flat rates'!$B$2:$G$43,5)))*1,Q$3:Q16)+Q720)*VLOOKUP(Q$881,'F. UL & OPEX flat rates'!$B$2:$G$43,6,0)","v":0},{"$f":"(SUMPRODUCT(($A$3:$A16>($A896-VLOOKUP(R$881,'F. UL & OPEX flat rates'!$B$2:$G$43,5)))*1,R$3:R16)+R720)*VLOOKUP(R$881,'F. UL & OPEX flat rates'!$B$2:$G$43,6,0)","v":0},{"$f":"(SUMPRODUCT(($A$3:$A16>($A896-VLOOKUP(S$881,'F. UL & OPEX flat rates'!$B$2:$G$43,5)))*1,S$3:S16)+S720)*VLOOKUP(S$881,'F. UL & OPEX flat rates'!$B$2:$G$43,6,0)","v":0},{"$f":"(SUMPRODUCT(($A$3:$A16>($A896-VLOOKUP(T$881,'F. UL & OPEX flat rates'!$B$2:$G$43,5)))*1,T$3:T16)+T720)*VLOOKUP(T$881,'F. UL & OPEX flat rates'!$B$2:$G$43,6,0)","v":0},{"$f":"(SUMPRODUCT(($A$3:$A16>($A896-VLOOKUP(U$881,'F. UL & OPEX flat rates'!$B$2:$G$43,5)))*1,U$3:U16)+U720)*VLOOKUP(U$881,'F. UL & OPEX flat rates'!$B$2:$G$43,6,0)","v":0},{"$f":"(SUMPRODUCT(($A$3:$A16>($A896-VLOOKUP(V$881,'F. UL & OPEX flat rates'!$B$2:$G$43,5)))*1,V$3:V16)+V720)*VLOOKUP(V$881,'F. UL & OPEX flat rates'!$B$2:$G$43,6,0)","v":0},{"$f":"(SUMPRODUCT(($A$3:$A16>($A896-VLOOKUP(W$881,'F. UL & OPEX flat rates'!$B$2:$G$43,5)))*1,W$3:W16)+W720)*VLOOKUP(W$881,'F. UL & OPEX flat rates'!$B$2:$G$43,6,0)","v":0},{"$f":"(SUMPRODUCT(($A$3:$A16>($A896-VLOOKUP(X$881,'F. UL & OPEX flat rates'!$B$2:$G$43,5)))*1,X$3:X16)+X720)*VLOOKUP(X$881,'F. UL & OPEX flat rates'!$B$2:$G$43,6,0)","v":0},{"$f":"(SUMPRODUCT(($A$3:$A16>($A896-VLOOKUP(Y$881,'F. UL & OPEX flat rates'!$B$2:$G$43,5)))*1,Y$3:Y16)+Y720)*VLOOKUP(Y$881,'F. UL & OPEX flat rates'!$B$2:$G$43,6,0)","v":0},{"$f":"(SUMPRODUCT(($A$3:$A16>($A896-VLOOKUP(Z$881,'F. UL & OPEX flat rates'!$B$2:$G$43,5)))*1,Z$3:Z16)+Z720)*VLOOKUP(Z$881,'F. UL & OPEX flat rates'!$B$2:$G$43,6,0)","v":0},{"$f":"(SUMPRODUCT(($A$3:$A16>($A896-VLOOKUP(AA$881,'F. UL & OPEX flat rates'!$B$2:$G$43,5)))*1,AA$3:AA16)+AA720)*VLOOKUP(AA$881,'F. UL & OPEX flat rates'!$B$2:$G$43,6,0)","v":0},{"$f":"(SUMPRODUCT(($A$3:$A16>($A896-VLOOKUP(AB$881,'F. UL & OPEX flat rates'!$B$2:$G$43,5)))*1,AB$3:AB16)+AB720)*VLOOKUP(AB$881,'F. UL & OPEX flat rates'!$B$2:$G$43,6,0)","v":0},{"$f":"(SUMPRODUCT(($A$3:$A16>($A896-VLOOKUP(AC$881,'F. UL & OPEX flat rates'!$B$2:$G$43,5)))*1,AC$3:AC16)+AC720)*VLOOKUP(AC$881,'F. UL & OPEX flat rates'!$B$2:$G$43,6,0)","v":0},{"$f":"(SUMPRODUCT(($A$3:$A16>($A896-VLOOKUP(AD$881,'F. UL & OPEX flat rates'!$B$2:$G$43,5)))*1,AD$3:AD16)+AD720)*VLOOKUP(AD$881,'F. UL & OPEX flat rates'!$B$2:$G$43,6,0)","v":0},{"$f":"(SUMPRODUCT(($A$3:$A16>($A896-VLOOKUP(AE$881,'F. UL & OPEX flat rates'!$B$2:$G$43,5)))*1,AE$3:AE16)+AE720)*VLOOKUP(AE$881,'F. UL & OPEX flat rates'!$B$2:$G$43,6,0)","v":0},{"$f":"(SUMPRODUCT(($A$3:$A16>($A896-VLOOKUP(AF$881,'F. UL & OPEX flat rates'!$B$2:$G$43,5)))*1,AF$3:AF16)+AF720)*VLOOKUP(AF$881,'F. UL & OPEX flat rates'!$B$2:$G$43,6,0)","v":0},{"$f":"(SUMPRODUCT(($A$3:$A16>($A896-VLOOKUP(AG$881,'F. UL & OPEX flat rates'!$B$2:$G$43,5)))*1,AG$3:AG16)+AG720)*VLOOKUP(AG$881,'F. UL & OPEX flat rates'!$B$2:$G$43,6,0)","v":0},{"$f":"(SUMPRODUCT(($A$3:$A16>($A896-VLOOKUP(AH$881,'F. UL & OPEX flat rates'!$B$2:$G$43,5)))*1,AH$3:AH16)+AH720)*VLOOKUP(AH$881,'F. UL & OPEX flat rates'!$B$2:$G$43,6,0)","v":0},{"$f":"(SUMPRODUCT(($A$3:$A16>($A896-VLOOKUP(AI$881,'F. UL & OPEX flat rates'!$B$2:$G$43,5)))*1,AI$3:AI16)+AI720)*VLOOKUP(AI$881,'F. UL & OPEX flat rates'!$B$2:$G$43,6,0)","v":0},{"$f":"(SUMPRODUCT(($A$3:$A16>($A896-VLOOKUP(AJ$881,'F. UL & OPEX flat rates'!$B$2:$G$43,5)))*1,AJ$3:AJ16)+AJ720)*VLOOKUP(AJ$881,'F. UL & OPEX flat rates'!$B$2:$G$43,6,0)","v":58000},{"$f":"(SUMPRODUCT(($A$3:$A16>($A896-VLOOKUP(AK$881,'F. UL & OPEX flat rates'!$B$2:$G$43,5)))*1,AK$3:AK16)+AK720)*VLOOKUP(AK$881,'F. UL & OPEX flat rates'!$B$2:$G$43,6,0)","v":0},{"$f":"(SUMPRODUCT(($A$3:$A16>($A896-VLOOKUP(AL$881,'F. UL & OPEX flat rates'!$B$2:$G$43,5)))*1,AL$3:AL16)+AL720)*VLOOKUP(AL$881,'F. UL & OPEX flat rates'!$B$2:$G$43,6,0)","v":0},{"$f":"(SUMPRODUCT(($A$3:$A16>($A896-VLOOKUP(AM$881,'F. UL & OPEX flat rates'!$B$2:$G$43,5)))*1,AM$3:AM16)+AM720)*VLOOKUP(AM$881,'F. UL & OPEX flat rates'!$B$2:$G$43,6,0)","v":0},{"$f":"(SUMPRODUCT(($A$3:$A16>($A896-VLOOKUP(AN$881,'F. UL & OPEX flat rates'!$B$2:$G$43,5)))*1,AN$3:AN16)+AN720)*VLOOKUP(AN$881,'F. UL & OPEX flat rates'!$B$2:$G$43,6,0)","v":0},{"$f":"(SUMPRODUCT(($A$3:$A16>($A896-VLOOKUP(AO$881,'F. UL & OPEX flat rates'!$B$2:$G$43,5)))*1,AO$3:AO16)+AO720)*VLOOKUP(AO$881,'F. UL & OPEX flat rates'!$B$2:$G$43,6,0)","v":0},{"$f":"(SUMPRODUCT(($A$3:$A16>($A896-VLOOKUP(AP$881,'F. UL & OPEX flat rates'!$B$2:$G$43,5)))*1,AP$3:AP16)+AP720)*VLOOKUP(AP$881,'F. UL & OPEX flat rates'!$B$2:$G$43,6,0)","v":0},{"$f":"(SUMPRODUCT(($A$3:$A16>($A896-VLOOKUP(AQ$881,'F. UL & OPEX flat rates'!$B$2:$G$43,5)))*1,AQ$3:AQ16)+AQ720)*VLOOKUP(AQ$881,'F. UL & OPEX flat rates'!$B$2:$G$43,6,0)","v":0}]
[2030,7858000,{"$f":"(SUMPRODUCT(($A$3:$A17>($A897-VLOOKUP(C$881,'F. UL & OPEX flat rates'!$B$2:$G$43,5)))*1,C$3:C17)+C721)*VLOOKUP(C$881,'F. UL & OPEX flat rates'!$B$2:$G$43,6,0)","v":0},{"$f":"(SUMPRODUCT(($A$3:$A17>($A897-VLOOKUP(D$881,'F. UL & OPEX flat rates'!$B$2:$G$43,5)))*1,D$3:D17)+D721)*VLOOKUP(D$881,'F. UL & OPEX flat rates'!$B$2:$G$43,6,0)","v":0},{"$f":"(SUMPRODUCT(($A$3:$A17>($A897-VLOOKUP(E$881,'F. UL & OPEX flat rates'!$B$2:$G$43,5)))*1,E$3:E17)+E721)*VLOOKUP(E$881,'F. UL & OPEX flat rates'!$B$2:$G$43,6,0)","v":0},{"$f":"(SUMPRODUCT(($A$3:$A17>($A897-VLOOKUP(F$881,'F. UL & OPEX flat rates'!$B$2:$G$43,5)))*1,F$3:F17)+F721)*VLOOKUP(F$881,'F. UL & OPEX flat rates'!$B$2:$G$43,6,0)","v":0},{"$f":"(SUMPRODUCT(($A$3:$A17>($A897-VLOOKUP(G$881,'F. UL & OPEX flat rates'!$B$2:$G$43,5)))*1,G$3:G17)+G721)*VLOOKUP(G$881,'F. UL & OPEX flat rates'!$B$2:$G$43,6,0)","v":0},{"$f":"(SUMPRODUCT(($A$3:$A17>($A897-VLOOKUP(H$881,'F. UL & OPEX flat rates'!$B$2:$G$43,5)))*1,H$3:H17)+H721)*VLOOKUP(H$881,'F. UL & OPEX flat rates'!$B$2:$G$43,6,0)","v":0},{"$f":"(SUMPRODUCT(($A$3:$A17>($A897-VLOOKUP(I$881,'F. UL & OPEX flat rates'!$B$2:$G$43,5)))*1,I$3:I17)+I721)*VLOOKUP(I$881,'F. UL & OPEX flat rates'!$B$2:$G$43,6,0)","v":0},{"$f":"(SUMPRODUCT(($A$3:$A17>($A897-VLOOKUP(J$881,'F. UL & OPEX flat rates'!$B$2:$G$43,5)))*1,J$3:J17)+J721)*VLOOKUP(J$881,'F. UL & OPEX flat rates'!$B$2:$G$43,6,0)","v":0},{"$f":"(SUMPRODUCT(($A$3:$A17>($A897-VLOOKUP(K$881,'F. UL & OPEX flat rates'!$B$2:$G$43,5)))*1,K$3:K17)+K721)*VLOOKUP(K$881,'F. UL & OPEX flat rates'!$B$2:$G$43,6,0)","v":0},{"$f":"(SUMPRODUCT(($A$3:$A17>($A897-VLOOKUP(L$881,'F. UL & OPEX flat rates'!$B$2:$G$43,5)))*1,L$3:L17)+L721)*VLOOKUP(L$881,'F. UL & OPEX flat rates'!$B$2:$G$43,6,0)","v":0},{"$f":"(SUMPRODUCT(($A$3:$A17>($A897-VLOOKUP(M$881,'F. UL & OPEX flat rates'!$B$2:$G$43,5)))*1,M$3:M17)+M721)*VLOOKUP(M$881,'F. UL & OPEX flat rates'!$B$2:$G$43,6,0)","v":0},{"$f":"(SUMPRODUCT(($A$3:$A17>($A897-VLOOKUP(N$881,'F. UL & OPEX flat rates'!$B$2:$G$43,5)))*1,N$3:N17)+N721)*VLOOKUP(N$881,'F. UL & OPEX flat rates'!$B$2:$G$43,6,0)","v":0},{"$f":"(SUMPRODUCT(($A$3:$A17>($A897-VLOOKUP(O$881,'F. UL & OPEX flat rates'!$B$2:$G$43,5)))*1,O$3:O17)+O721)*VLOOKUP(O$881,'F. UL & OPEX flat rates'!$B$2:$G$43,6,0)","v":0},{"$f":"(SUMPRODUCT(($A$3:$A17>($A897-VLOOKUP(P$881,'F. UL & OPEX flat rates'!$B$2:$G$43,5)))*1,P$3:P17)+P721)*VLOOKUP(P$881,'F. UL & OPEX flat rates'!$B$2:$G$43,6,0)","v":7800000},{"$f":"(SUMPRODUCT(($A$3:$A17>($A897-VLOOKUP(Q$881,'F. UL & OPEX flat rates'!$B$2:$G$43,5)))*1,Q$3:Q17)+Q721)*VLOOKUP(Q$881,'F. UL & OPEX flat rates'!$B$2:$G$43,6,0)","v":0},{"$f":"(SUMPRODUCT(($A$3:$A17>($A897-VLOOKUP(R$881,'F. UL & OPEX flat rates'!$B$2:$G$43,5)))*1,R$3:R17)+R721)*VLOOKUP(R$881,'F. UL & OPEX flat rates'!$B$2:$G$43,6,0)","v":0},{"$f":"(SUMPRODUCT(($A$3:$A17>($A897-VLOOKUP(S$881,'F. UL & OPEX flat rates'!$B$2:$G$43,5)))*1,S$3:S17)+S721)*VLOOKUP(S$881,'F. UL & OPEX flat rates'!$B$2:$G$43,6,0)","v":0},{"$f":"(SUMPRODUCT(($A$3:$A17>($A897-VLOOKUP(T$881,'F. UL & OPEX flat rates'!$B$2:$G$43,5)))*1,T$3:T17)+T721)*VLOOKUP(T$881,'F. UL & OPEX flat rates'!$B$2:$G$43,6,0)","v":0},{"$f":"(SUMPRODUCT(($A$3:$A17>($A897-VLOOKUP(U$881,'F. UL & OPEX flat rates'!$B$2:$G$43,5)))*1,U$3:U17)+U721)*VLOOKUP(U$881,'F. UL & OPEX flat rates'!$B$2:$G$43,6,0)","v":0},{"$f":"(SUMPRODUCT(($A$3:$A17>($A897-VLOOKUP(V$881,'F. UL & OPEX flat rates'!$B$2:$G$43,5)))*1,V$3:V17)+V721)*VLOOKUP(V$881,'F. UL & OPEX flat rates'!$B$2:$G$43,6,0)","v":0},{"$f":"(SUMPRODUCT(($A$3:$A17>($A897-VLOOKUP(W$881,'F. UL & OPEX flat rates'!$B$2:$G$43,5)))*1,W$3:W17)+W721)*VLOOKUP(W$881,'F. UL & OPEX flat rates'!$B$2:$G$43,6,0)","v":0},{"$f":"(SUMPRODUCT(($A$3:$A17>($A897-VLOOKUP(X$881,'F. UL & OPEX flat rates'!$B$2:$G$43,5)))*1,X$3:X17)+X721)*VLOOKUP(X$881,'F. UL & OPEX flat rates'!$B$2:$G$43,6,0)","v":0},{"$f":"(SUMPRODUCT(($A$3:$A17>($A897-VLOOKUP(Y$881,'F. UL & OPEX flat rates'!$B$2:$G$43,5)))*1,Y$3:Y17)+Y721)*VLOOKUP(Y$881,'F. UL & OPEX flat rates'!$B$2:$G$43,6,0)","v":0},{"$f":"(SUMPRODUCT(($A$3:$A17>($A897-VLOOKUP(Z$881,'F. UL & OPEX flat rates'!$B$2:$G$43,5)))*1,Z$3:Z17)+Z721)*VLOOKUP(Z$881,'F. UL & OPEX flat rates'!$B$2:$G$43,6,0)","v":0},{"$f":"(SUMPRODUCT(($A$3:$A17>($A897-VLOOKUP(AA$881,'F. UL & OPEX flat rates'!$B$2:$G$43,5)))*1,AA$3:AA17)+AA721)*VLOOKUP(AA$881,'F. UL & OPEX flat rates'!$B$2:$G$43,6,0)","v":0},{"$f":"(SUMPRODUCT(($A$3:$A17>($A897-VLOOKUP(AB$881,'F. UL & OPEX flat rates'!$B$2:$G$43,5)))*1,AB$3:AB17)+AB721)*VLOOKUP(AB$881,'F. UL & OPEX flat rates'!$B$2:$G$43,6,0)","v":0},{"$f":"(SUMPRODUCT(($A$3:$A17>($A897-VLOOKUP(AC$881,'F. UL & OPEX flat rates'!$B$2:$G$43,5)))*1,AC$3:AC17)+AC721)*VLOOKUP(AC$881,'F. UL & OPEX flat rates'!$B$2:$G$43,6,0)","v":0},{"$f":"(SUMPRODUCT(($A$3:$A17>($A897-VLOOKUP(AD$881,'F. UL & OPEX flat rates'!$B$2:$G$43,5)))*1,AD$3:AD17)+AD721)*VLOOKUP(AD$881,'F. UL & OPEX flat rates'!$B$2:$G$43,6,0)","v":0},{"$f":"(SUMPRODUCT(($A$3:$A17>($A897-VLOOKUP(AE$881,'F. UL & OPEX flat rates'!$B$2:$G$43,5)))*1,AE$3:AE17)+AE721)*VLOOKUP(AE$881,'F. UL & OPEX flat rates'!$B$2:$G$43,6,0)","v":0},{"$f":"(SUMPRODUCT(($A$3:$A17>($A897-VLOOKUP(AF$881,'F. UL & OPEX flat rates'!$B$2:$G$43,5)))*1,AF$3:AF17)+AF721)*VLOOKUP(AF$881,'F. UL & OPEX flat rates'!$B$2:$G$43,6,0)","v":0},{"$f":"(SUMPRODUCT(($A$3:$A17>($A897-VLOOKUP(AG$881,'F. UL & OPEX flat rates'!$B$2:$G$43,5)))*1,AG$3:AG17)+AG721)*VLOOKUP(AG$881,'F. UL & OPEX flat rates'!$B$2:$G$43,6,0)","v":0},{"$f":"(SUMPRODUCT(($A$3:$A17>($A897-VLOOKUP(AH$881,'F. UL & OPEX flat rates'!$B$2:$G$43,5)))*1,AH$3:AH17)+AH721)*VLOOKUP(AH$881,'F. UL & OPEX flat rates'!$B$2:$G$43,6,0)","v":0},{"$f":"(SUMPRODUCT(($A$3:$A17>($A897-VLOOKUP(AI$881,'F. UL & OPEX flat rates'!$B$2:$G$43,5)))*1,AI$3:AI17)+AI721)*VLOOKUP(AI$881,'F. UL & OPEX flat rates'!$B$2:$G$43,6,0)","v":0},{"$f":"(SUMPRODUCT(($A$3:$A17>($A897-VLOOKUP(AJ$881,'F. UL & OPEX flat rates'!$B$2:$G$43,5)))*1,AJ$3:AJ17)+AJ721)*VLOOKUP(AJ$881,'F. UL & OPEX flat rates'!$B$2:$G$43,6,0)","v":58000},{"$f":"(SUMPRODUCT(($A$3:$A17>($A897-VLOOKUP(AK$881,'F. UL & OPEX flat rates'!$B$2:$G$43,5)))*1,AK$3:AK17)+AK721)*VLOOKUP(AK$881,'F. UL & OPEX flat rates'!$B$2:$G$43,6,0)","v":0},{"$f":"(SUMPRODUCT(($A$3:$A17>($A897-VLOOKUP(AL$881,'F. UL & OPEX flat rates'!$B$2:$G$43,5)))*1,AL$3:AL17)+AL721)*VLOOKUP(AL$881,'F. UL & OPEX flat rates'!$B$2:$G$43,6,0)","v":0},{"$f":"(SUMPRODUCT(($A$3:$A17>($A897-VLOOKUP(AM$881,'F. UL & OPEX flat rates'!$B$2:$G$43,5)))*1,AM$3:AM17)+AM721)*VLOOKUP(AM$881,'F. UL & OPEX flat rates'!$B$2:$G$43,6,0)","v":0},{"$f":"(SUMPRODUCT(($A$3:$A17>($A897-VLOOKUP(AN$881,'F. UL & OPEX flat rates'!$B$2:$G$43,5)))*1,AN$3:AN17)+AN721)*VLOOKUP(AN$881,'F. UL & OPEX flat rates'!$B$2:$G$43,6,0)","v":0},{"$f":"(SUMPRODUCT(($A$3:$A17>($A897-VLOOKUP(AO$881,'F. UL & OPEX flat rates'!$B$2:$G$43,5)))*1,AO$3:AO17)+AO721)*VLOOKUP(AO$881,'F. UL & OPEX flat rates'!$B$2:$G$43,6,0)","v":0},{"$f":"(SUMPRODUCT(($A$3:$A17>($A897-VLOOKUP(AP$881,'F. UL & OPEX flat rates'!$B$2:$G$43,5)))*1,AP$3:AP17)+AP721)*VLOOKUP(AP$881,'F. UL & OPEX flat rates'!$B$2:$G$43,6,0)","v":0},{"$f":"(SUMPRODUCT(($A$3:$A17>($A897-VLOOKUP(AQ$881,'F. UL & OPEX flat rates'!$B$2:$G$43,5)))*1,AQ$3:AQ17)+AQ721)*VLOOKUP(AQ$881,'F. UL & OPEX flat rates'!$B$2:$G$43,6,0)","v":0}]
[2031,7858000,{"$f":"(SUMPRODUCT(($A$3:$A18>($A898-VLOOKUP(C$881,'F. UL & OPEX flat rates'!$B$2:$G$43,5)))*1,C$3:C18)+C722)*VLOOKUP(C$881,'F. UL & OPEX flat rates'!$B$2:$G$43,6,0)","v":0},{"$f":"(SUMPRODUCT(($A$3:$A18>($A898-VLOOKUP(D$881,'F. UL & OPEX flat rates'!$B$2:$G$43,5)))*1,D$3:D18)+D722)*VLOOKUP(D$881,'F. UL & OPEX flat rates'!$B$2:$G$43,6,0)","v":0},{"$f":"(SUMPRODUCT(($A$3:$A18>($A898-VLOOKUP(E$881,'F. UL & OPEX flat rates'!$B$2:$G$43,5)))*1,E$3:E18)+E722)*VLOOKUP(E$881,'F. UL & OPEX flat rates'!$B$2:$G$43,6,0)","v":0},{"$f":"(SUMPRODUCT(($A$3:$A18>($A898-VLOOKUP(F$881,'F. UL & OPEX flat rates'!$B$2:$G$43,5)))*1,F$3:F18)+F722)*VLOOKUP(F$881,'F. UL & OPEX flat rates'!$B$2:$G$43,6,0)","v":0},{"$f":"(SUMPRODUCT(($A$3:$A18>($A898-VLOOKUP(G$881,'F. UL & OPEX flat rates'!$B$2:$G$43,5)))*1,G$3:G18)+G722)*VLOOKUP(G$881,'F. UL & OPEX flat rates'!$B$2:$G$43,6,0)","v":0},{"$f":"(SUMPRODUCT(($A$3:$A18>($A898-VLOOKUP(H$881,'F. UL & OPEX flat rates'!$B$2:$G$43,5)))*1,H$3:H18)+H722)*VLOOKUP(H$881,'F. UL & OPEX flat rates'!$B$2:$G$43,6,0)","v":0},{"$f":"(SUMPRODUCT(($A$3:$A18>($A898-VLOOKUP(I$881,'F. UL & OPEX flat rates'!$B$2:$G$43,5)))*1,I$3:I18)+I722)*VLOOKUP(I$881,'F. UL & OPEX flat rates'!$B$2:$G$43,6,0)","v":0},{"$f":"(SUMPRODUCT(($A$3:$A18>($A898-VLOOKUP(J$881,'F. UL & OPEX flat rates'!$B$2:$G$43,5)))*1,J$3:J18)+J722)*VLOOKUP(J$881,'F. UL & OPEX flat rates'!$B$2:$G$43,6,0)","v":0},{"$f":"(SUMPRODUCT(($A$3:$A18>($A898-VLOOKUP(K$881,'F. UL & OPEX flat rates'!$B$2:$G$43,5)))*1,K$3:K18)+K722)*VLOOKUP(K$881,'F. UL & OPEX flat rates'!$B$2:$G$43,6,0)","v":0},{"$f":"(SUMPRODUCT(($A$3:$A18>($A898-VLOOKUP(L$881,'F. UL & OPEX flat rates'!$B$2:$G$43,5)))*1,L$3:L18)+L722)*VLOOKUP(L$881,'F. UL & OPEX flat rates'!$B$2:$G$43,6,0)","v":0},{"$f":"(SUMPRODUCT(($A$3:$A18>($A898-VLOOKUP(M$881,'F. UL & OPEX flat rates'!$B$2:$G$43,5)))*1,M$3:M18)+M722)*VLOOKUP(M$881,'F. UL & OPEX flat rates'!$B$2:$G$43,6,0)","v":0},{"$f":"(SUMPRODUCT(($A$3:$A18>($A898-VLOOKUP(N$881,'F. UL & OPEX flat rates'!$B$2:$G$43,5)))*1,N$3:N18)+N722)*VLOOKUP(N$881,'F. UL & OPEX flat rates'!$B$2:$G$43,6,0)","v":0},{"$f":"(SUMPRODUCT(($A$3:$A18>($A898-VLOOKUP(O$881,'F. UL & OPEX flat rates'!$B$2:$G$43,5)))*1,O$3:O18)+O722)*VLOOKUP(O$881,'F. UL & OPEX flat rates'!$B$2:$G$43,6,0)","v":0},{"$f":"(SUMPRODUCT(($A$3:$A18>($A898-VLOOKUP(P$881,'F. UL & OPEX flat rates'!$B$2:$G$43,5)))*1,P$3:P18)+P722)*VLOOKUP(P$881,'F. UL & OPEX flat rates'!$B$2:$G$43,6,0)","v":7800000},{"$f":"(SUMPRODUCT(($A$3:$A18>($A898-VLOOKUP(Q$881,'F. UL & OPEX flat rates'!$B$2:$G$43,5)))*1,Q$3:Q18)+Q722)*VLOOKUP(Q$881,'F. UL & OPEX flat rates'!$B$2:$G$43,6,0)","v":0},{"$f":"(SUMPRODUCT(($A$3:$A18>($A898-VLOOKUP(R$881,'F. UL & OPEX flat rates'!$B$2:$G$43,5)))*1,R$3:R18)+R722)*VLOOKUP(R$881,'F. UL & OPEX flat rates'!$B$2:$G$43,6,0)","v":0},{"$f":"(SUMPRODUCT(($A$3:$A18>($A898-VLOOKUP(S$881,'F. UL & OPEX flat rates'!$B$2:$G$43,5)))*1,S$3:S18)+S722)*VLOOKUP(S$881,'F. UL & OPEX flat rates'!$B$2:$G$43,6,0)","v":0},{"$f":"(SUMPRODUCT(($A$3:$A18>($A898-VLOOKUP(T$881,'F. UL & OPEX flat rates'!$B$2:$G$43,5)))*1,T$3:T18)+T722)*VLOOKUP(T$881,'F. UL & OPEX flat rates'!$B$2:$G$43,6,0)","v":0},{"$f":"(SUMPRODUCT(($A$3:$A18>($A898-VLOOKUP(U$881,'F. UL & OPEX flat rates'!$B$2:$G$43,5)))*1,U$3:U18)+U722)*VLOOKUP(U$881,'F. UL & OPEX flat rates'!$B$2:$G$43,6,0)","v":0},{"$f":"(SUMPRODUCT(($A$3:$A18>($A898-VLOOKUP(V$881,'F. UL & OPEX flat rates'!$B$2:$G$43,5)))*1,V$3:V18)+V722)*VLOOKUP(V$881,'F. UL & OPEX flat rates'!$B$2:$G$43,6,0)","v":0},{"$f":"(SUMPRODUCT(($A$3:$A18>($A898-VLOOKUP(W$881,'F. UL & OPEX flat rates'!$B$2:$G$43,5)))*1,W$3:W18)+W722)*VLOOKUP(W$881,'F. UL & OPEX flat rates'!$B$2:$G$43,6,0)","v":0},{"$f":"(SUMPRODUCT(($A$3:$A18>($A898-VLOOKUP(X$881,'F. UL & OPEX flat rates'!$B$2:$G$43,5)))*1,X$3:X18)+X722)*VLOOKUP(X$881,'F. UL & OPEX flat rates'!$B$2:$G$43,6,0)","v":0},{"$f":"(SUMPRODUCT(($A$3:$A18>($A898-VLOOKUP(Y$881,'F. UL & OPEX flat rates'!$B$2:$G$43,5)))*1,Y$3:Y18)+Y722)*VLOOKUP(Y$881,'F. UL & OPEX flat rates'!$B$2:$G$43,6,0)","v":0},{"$f":"(SUMPRODUCT(($A$3:$A18>($A898-VLOOKUP(Z$881,'F. UL & OPEX flat rates'!$B$2:$G$43,5)))*1,Z$3:Z18)+Z722)*VLOOKUP(Z$881,'F. UL & OPEX flat rates'!$B$2:$G$43,6,0)","v":0},{"$f":"(SUMPRODUCT(($A$3:$A18>($A898-VLOOKUP(AA$881,'F. UL & OPEX flat rates'!$B$2:$G$43,5)))*1,AA$3:AA18)+AA722)*VLOOKUP(AA$881,'F. UL & OPEX flat rates'!$B$2:$G$43,6,0)","v":0},{"$f":"(SUMPRODUCT(($A$3:$A18>($A898-VLOOKUP(AB$881,'F. UL & OPEX flat rates'!$B$2:$G$43,5)))*1,AB$3:AB18)+AB722)*VLOOKUP(AB$881,'F. UL & OPEX flat rates'!$B$2:$G$43,6,0)","v":0},{"$f":"(SUMPRODUCT(($A$3:$A18>($A898-VLOOKUP(AC$881,'F. UL & OPEX flat rates'!$B$2:$G$43,5)))*1,AC$3:AC18)+AC722)*VLOOKUP(AC$881,'F. UL & OPEX flat rates'!$B$2:$G$43,6,0)","v":0},{"$f":"(SUMPRODUCT(($A$3:$A18>($A898-VLOOKUP(AD$881,'F. UL & OPEX flat rates'!$B$2:$G$43,5)))*1,AD$3:AD18)+AD722)*VLOOKUP(AD$881,'F. UL & OPEX flat rates'!$B$2:$G$43,6,0)","v":0},{"$f":"(SUMPRODUCT(($A$3:$A18>($A898-VLOOKUP(AE$881,'F. UL & OPEX flat rates'!$B$2:$G$43,5)))*1,AE$3:AE18)+AE722)*VLOOKUP(AE$881,'F. UL & OPEX flat rates'!$B$2:$G$43,6,0)","v":0},{"$f":"(SUMPRODUCT(($A$3:$A18>($A898-VLOOKUP(AF$881,'F. UL & OPEX flat rates'!$B$2:$G$43,5)))*1,AF$3:AF18)+AF722)*VLOOKUP(AF$881,'F. UL & OPEX flat rates'!$B$2:$G$43,6,0)","v":0},{"$f":"(SUMPRODUCT(($A$3:$A18>($A898-VLOOKUP(AG$881,'F. UL & OPEX flat rates'!$B$2:$G$43,5)))*1,AG$3:AG18)+AG722)*VLOOKUP(AG$881,'F. UL & OPEX flat rates'!$B$2:$G$43,6,0)","v":0},{"$f":"(SUMPRODUCT(($A$3:$A18>($A898-VLOOKUP(AH$881,'F. UL & OPEX flat rates'!$B$2:$G$43,5)))*1,AH$3:AH18)+AH722)*VLOOKUP(AH$881,'F. UL & OPEX flat rates'!$B$2:$G$43,6,0)","v":0},{"$f":"(SUMPRODUCT(($A$3:$A18>($A898-VLOOKUP(AI$881,'F. UL & OPEX flat rates'!$B$2:$G$43,5)))*1,AI$3:AI18)+AI722)*VLOOKUP(AI$881,'F. UL & OPEX flat rates'!$B$2:$G$43,6,0)","v":0},{"$f":"(SUMPRODUCT(($A$3:$A18>($A898-VLOOKUP(AJ$881,'F. UL & OPEX flat rates'!$B$2:$G$43,5)))*1,AJ$3:AJ18)+AJ722)*VLOOKUP(AJ$881,'F. UL & OPEX flat rates'!$B$2:$G$43,6,0)","v":58000},{"$f":"(SUMPRODUCT(($A$3:$A18>($A898-VLOOKUP(AK$881,'F. UL & OPEX flat rates'!$B$2:$G$43,5)))*1,AK$3:AK18)+AK722)*VLOOKUP(AK$881,'F. UL & OPEX flat rates'!$B$2:$G$43,6,0)","v":0},{"$f":"(SUMPRODUCT(($A$3:$A18>($A898-VLOOKUP(AL$881,'F. UL & OPEX flat rates'!$B$2:$G$43,5)))*1,AL$3:AL18)+AL722)*VLOOKUP(AL$881,'F. UL & OPEX flat rates'!$B$2:$G$43,6,0)","v":0},{"$f":"(SUMPRODUCT(($A$3:$A18>($A898-VLOOKUP(AM$881,'F. UL & OPEX flat rates'!$B$2:$G$43,5)))*1,AM$3:AM18)+AM722)*VLOOKUP(AM$881,'F. UL & OPEX flat rates'!$B$2:$G$43,6,0)","v":0},{"$f":"(SUMPRODUCT(($A$3:$A18>($A898-VLOOKUP(AN$881,'F. UL & OPEX flat rates'!$B$2:$G$43,5)))*1,AN$3:AN18)+AN722)*VLOOKUP(AN$881,'F. UL & OPEX flat rates'!$B$2:$G$43,6,0)","v":0},{"$f":"(SUMPRODUCT(($A$3:$A18>($A898-VLOOKUP(AO$881,'F. UL & OPEX flat rates'!$B$2:$G$43,5)))*1,AO$3:AO18)+AO722)*VLOOKUP(AO$881,'F. UL & OPEX flat rates'!$B$2:$G$43,6,0)","v":0},{"$f":"(SUMPRODUCT(($A$3:$A18>($A898-VLOOKUP(AP$881,'F. UL & OPEX flat rates'!$B$2:$G$43,5)))*1,AP$3:AP18)+AP722)*VLOOKUP(AP$881,'F. UL & OPEX flat rates'!$B$2:$G$43,6,0)","v":0},{"$f":"(SUMPRODUCT(($A$3:$A18>($A898-VLOOKUP(AQ$881,'F. UL & OPEX flat rates'!$B$2:$G$43,5)))*1,AQ$3:AQ18)+AQ722)*VLOOKUP(AQ$881,'F. UL & OPEX flat rates'!$B$2:$G$43,6,0)","v":0}]
[2032,7858000,{"$f":"(SUMPRODUCT(($A$3:$A19>($A899-VLOOKUP(C$881,'F. UL & OPEX flat rates'!$B$2:$G$43,5)))*1,C$3:C19)+C723)*VLOOKUP(C$881,'F. UL & OPEX flat rates'!$B$2:$G$43,6,0)","v":0},{"$f":"(SUMPRODUCT(($A$3:$A19>($A899-VLOOKUP(D$881,'F. UL & OPEX flat rates'!$B$2:$G$43,5)))*1,D$3:D19)+D723)*VLOOKUP(D$881,'F. UL & OPEX flat rates'!$B$2:$G$43,6,0)","v":0},{"$f":"(SUMPRODUCT(($A$3:$A19>($A899-VLOOKUP(E$881,'F. UL & OPEX flat rates'!$B$2:$G$43,5)))*1,E$3:E19)+E723)*VLOOKUP(E$881,'F. UL & OPEX flat rates'!$B$2:$G$43,6,0)","v":0},{"$f":"(SUMPRODUCT(($A$3:$A19>($A899-VLOOKUP(F$881,'F. UL & OPEX flat rates'!$B$2:$G$43,5)))*1,F$3:F19)+F723)*VLOOKUP(F$881,'F. UL & OPEX flat rates'!$B$2:$G$43,6,0)","v":0},{"$f":"(SUMPRODUCT(($A$3:$A19>($A899-VLOOKUP(G$881,'F. UL & OPEX flat rates'!$B$2:$G$43,5)))*1,G$3:G19)+G723)*VLOOKUP(G$881,'F. UL & OPEX flat rates'!$B$2:$G$43,6,0)","v":0},{"$f":"(SUMPRODUCT(($A$3:$A19>($A899-VLOOKUP(H$881,'F. UL & OPEX flat rates'!$B$2:$G$43,5)))*1,H$3:H19)+H723)*VLOOKUP(H$881,'F. UL & OPEX flat rates'!$B$2:$G$43,6,0)","v":0},{"$f":"(SUMPRODUCT(($A$3:$A19>($A899-VLOOKUP(I$881,'F. UL & OPEX flat rates'!$B$2:$G$43,5)))*1,I$3:I19)+I723)*VLOOKUP(I$881,'F. UL & OPEX flat rates'!$B$2:$G$43,6,0)","v":0},{"$f":"(SUMPRODUCT(($A$3:$A19>($A899-VLOOKUP(J$881,'F. UL & OPEX flat rates'!$B$2:$G$43,5)))*1,J$3:J19)+J723)*VLOOKUP(J$881,'F. UL & OPEX flat rates'!$B$2:$G$43,6,0)","v":0},{"$f":"(SUMPRODUCT(($A$3:$A19>($A899-VLOOKUP(K$881,'F. UL & OPEX flat rates'!$B$2:$G$43,5)))*1,K$3:K19)+K723)*VLOOKUP(K$881,'F. UL & OPEX flat rates'!$B$2:$G$43,6,0)","v":0},{"$f":"(SUMPRODUCT(($A$3:$A19>($A899-VLOOKUP(L$881,'F. UL & OPEX flat rates'!$B$2:$G$43,5)))*1,L$3:L19)+L723)*VLOOKUP(L$881,'F. UL & OPEX flat rates'!$B$2:$G$43,6,0)","v":0},{"$f":"(SUMPRODUCT(($A$3:$A19>($A899-VLOOKUP(M$881,'F. UL & OPEX flat rates'!$B$2:$G$43,5)))*1,M$3:M19)+M723)*VLOOKUP(M$881,'F. UL & OPEX flat rates'!$B$2:$G$43,6,0)","v":0},{"$f":"(SUMPRODUCT(($A$3:$A19>($A899-VLOOKUP(N$881,'F. UL & OPEX flat rates'!$B$2:$G$43,5)))*1,N$3:N19)+N723)*VLOOKUP(N$881,'F. UL & OPEX flat rates'!$B$2:$G$43,6,0)","v":0},{"$f":"(SUMPRODUCT(($A$3:$A19>($A899-VLOOKUP(O$881,'F. UL & OPEX flat rates'!$B$2:$G$43,5)))*1,O$3:O19)+O723)*VLOOKUP(O$881,'F. UL & OPEX flat rates'!$B$2:$G$43,6,0)","v":0},{"$f":"(SUMPRODUCT(($A$3:$A19>($A899-VLOOKUP(P$881,'F. UL & OPEX flat rates'!$B$2:$G$43,5)))*1,P$3:P19)+P723)*VLOOKUP(P$881,'F. UL & OPEX flat rates'!$B$2:$G$43,6,0)","v":7800000},{"$f":"(SUMPRODUCT(($A$3:$A19>($A899-VLOOKUP(Q$881,'F. UL & OPEX flat rates'!$B$2:$G$43,5)))*1,Q$3:Q19)+Q723)*VLOOKUP(Q$881,'F. UL & OPEX flat rates'!$B$2:$G$43,6,0)","v":0},{"$f":"(SUMPRODUCT(($A$3:$A19>($A899-VLOOKUP(R$881,'F. UL & OPEX flat rates'!$B$2:$G$43,5)))*1,R$3:R19)+R723)*VLOOKUP(R$881,'F. UL & OPEX flat rates'!$B$2:$G$43,6,0)","v":0},{"$f":"(SUMPRODUCT(($A$3:$A19>($A899-VLOOKUP(S$881,'F. UL & OPEX flat rates'!$B$2:$G$43,5)))*1,S$3:S19)+S723)*VLOOKUP(S$881,'F. UL & OPEX flat rates'!$B$2:$G$43,6,0)","v":0},{"$f":"(SUMPRODUCT(($A$3:$A19>($A899-VLOOKUP(T$881,'F. UL & OPEX flat rates'!$B$2:$G$43,5)))*1,T$3:T19)+T723)*VLOOKUP(T$881,'F. UL & OPEX flat rates'!$B$2:$G$43,6,0)","v":0},{"$f":"(SUMPRODUCT(($A$3:$A19>($A899-VLOOKUP(U$881,'F. UL & OPEX flat rates'!$B$2:$G$43,5)))*1,U$3:U19)+U723)*VLOOKUP(U$881,'F. UL & OPEX flat rates'!$B$2:$G$43,6,0)","v":0},{"$f":"(SUMPRODUCT(($A$3:$A19>($A899-VLOOKUP(V$881,'F. UL & OPEX flat rates'!$B$2:$G$43,5)))*1,V$3:V19)+V723)*VLOOKUP(V$881,'F. UL & OPEX flat rates'!$B$2:$G$43,6,0)","v":0},{"$f":"(SUMPRODUCT(($A$3:$A19>($A899-VLOOKUP(W$881,'F. UL & OPEX flat rates'!$B$2:$G$43,5)))*1,W$3:W19)+W723)*VLOOKUP(W$881,'F. UL & OPEX flat rates'!$B$2:$G$43,6,0)","v":0},{"$f":"(SUMPRODUCT(($A$3:$A19>($A899-VLOOKUP(X$881,'F. UL & OPEX flat rates'!$B$2:$G$43,5)))*1,X$3:X19)+X723)*VLOOKUP(X$881,'F. UL & OPEX flat rates'!$B$2:$G$43,6,0)","v":0},{"$f":"(SUMPRODUCT(($A$3:$A19>($A899-VLOOKUP(Y$881,'F. UL & OPEX flat rates'!$B$2:$G$43,5)))*1,Y$3:Y19)+Y723)*VLOOKUP(Y$881,'F. UL & OPEX flat rates'!$B$2:$G$43,6,0)","v":0},{"$f":"(SUMPRODUCT(($A$3:$A19>($A899-VLOOKUP(Z$881,'F. UL & OPEX flat rates'!$B$2:$G$43,5)))*1,Z$3:Z19)+Z723)*VLOOKUP(Z$881,'F. UL & OPEX flat rates'!$B$2:$G$43,6,0)","v":0},{"$f":"(SUMPRODUCT(($A$3:$A19>($A899-VLOOKUP(AA$881,'F. UL & OPEX flat rates'!$B$2:$G$43,5)))*1,AA$3:AA19)+AA723)*VLOOKUP(AA$881,'F. UL & OPEX flat rates'!$B$2:$G$43,6,0)","v":0},{"$f":"(SUMPRODUCT(($A$3:$A19>($A899-VLOOKUP(AB$881,'F. UL & OPEX flat rates'!$B$2:$G$43,5)))*1,AB$3:AB19)+AB723)*VLOOKUP(AB$881,'F. UL & OPEX flat rates'!$B$2:$G$43,6,0)","v":0},{"$f":"(SUMPRODUCT(($A$3:$A19>($A899-VLOOKUP(AC$881,'F. UL & OPEX flat rates'!$B$2:$G$43,5)))*1,AC$3:AC19)+AC723)*VLOOKUP(AC$881,'F. UL & OPEX flat rates'!$B$2:$G$43,6,0)","v":0},{"$f":"(SUMPRODUCT(($A$3:$A19>($A899-VLOOKUP(AD$881,'F. UL & OPEX flat rates'!$B$2:$G$43,5)))*1,AD$3:AD19)+AD723)*VLOOKUP(AD$881,'F. UL & OPEX flat rates'!$B$2:$G$43,6,0)","v":0},{"$f":"(SUMPRODUCT(($A$3:$A19>($A899-VLOOKUP(AE$881,'F. UL & OPEX flat rates'!$B$2:$G$43,5)))*1,AE$3:AE19)+AE723)*VLOOKUP(AE$881,'F. UL & OPEX flat rates'!$B$2:$G$43,6,0)","v":0},{"$f":"(SUMPRODUCT(($A$3:$A19>($A899-VLOOKUP(AF$881,'F. UL & OPEX flat rates'!$B$2:$G$43,5)))*1,AF$3:AF19)+AF723)*VLOOKUP(AF$881,'F. UL & OPEX flat rates'!$B$2:$G$43,6,0)","v":0},{"$f":"(SUMPRODUCT(($A$3:$A19>($A899-VLOOKUP(AG$881,'F. UL & OPEX flat rates'!$B$2:$G$43,5)))*1,AG$3:AG19)+AG723)*VLOOKUP(AG$881,'F. UL & OPEX flat rates'!$B$2:$G$43,6,0)","v":0},{"$f":"(SUMPRODUCT(($A$3:$A19>($A899-VLOOKUP(AH$881,'F. UL & OPEX flat rates'!$B$2:$G$43,5)))*1,AH$3:AH19)+AH723)*VLOOKUP(AH$881,'F. UL & OPEX flat rates'!$B$2:$G$43,6,0)","v":0},{"$f":"(SUMPRODUCT(($A$3:$A19>($A899-VLOOKUP(AI$881,'F. UL & OPEX flat rates'!$B$2:$G$43,5)))*1,AI$3:AI19)+AI723)*VLOOKUP(AI$881,'F. UL & OPEX flat rates'!$B$2:$G$43,6,0)","v":0},{"$f":"(SUMPRODUCT(($A$3:$A19>($A899-VLOOKUP(AJ$881,'F. UL & OPEX flat rates'!$B$2:$G$43,5)))*1,AJ$3:AJ19)+AJ723)*VLOOKUP(AJ$881,'F. UL & OPEX flat rates'!$B$2:$G$43,6,0)","v":58000},{"$f":"(SUMPRODUCT(($A$3:$A19>($A899-VLOOKUP(AK$881,'F. UL & OPEX flat rates'!$B$2:$G$43,5)))*1,AK$3:AK19)+AK723)*VLOOKUP(AK$881,'F. UL & OPEX flat rates'!$B$2:$G$43,6,0)","v":0},{"$f":"(SUMPRODUCT(($A$3:$A19>($A899-VLOOKUP(AL$881,'F. UL & OPEX flat rates'!$B$2:$G$43,5)))*1,AL$3:AL19)+AL723)*VLOOKUP(AL$881,'F. UL & OPEX flat rates'!$B$2:$G$43,6,0)","v":0},{"$f":"(SUMPRODUCT(($A$3:$A19>($A899-VLOOKUP(AM$881,'F. UL & OPEX flat rates'!$B$2:$G$43,5)))*1,AM$3:AM19)+AM723)*VLOOKUP(AM$881,'F. UL & OPEX flat rates'!$B$2:$G$43,6,0)","v":0},{"$f":"(SUMPRODUCT(($A$3:$A19>($A899-VLOOKUP(AN$881,'F. UL & OPEX flat rates'!$B$2:$G$43,5)))*1,AN$3:AN19)+AN723)*VLOOKUP(AN$881,'F. UL & OPEX flat rates'!$B$2:$G$43,6,0)","v":0},{"$f":"(SUMPRODUCT(($A$3:$A19>($A899-VLOOKUP(AO$881,'F. UL & OPEX flat rates'!$B$2:$G$43,5)))*1,AO$3:AO19)+AO723)*VLOOKUP(AO$881,'F. UL & OPEX flat rates'!$B$2:$G$43,6,0)","v":0},{"$f":"(SUMPRODUCT(($A$3:$A19>($A899-VLOOKUP(AP$881,'F. UL & OPEX flat rates'!$B$2:$G$43,5)))*1,AP$3:AP19)+AP723)*VLOOKUP(AP$881,'F. UL & OPEX flat rates'!$B$2:$G$43,6,0)","v":0},{"$f":"(SUMPRODUCT(($A$3:$A19>($A899-VLOOKUP(AQ$881,'F. UL & OPEX flat rates'!$B$2:$G$43,5)))*1,AQ$3:AQ19)+AQ723)*VLOOKUP(AQ$881,'F. UL & OPEX flat rates'!$B$2:$G$43,6,0)","v":0}]
[2033,7858000,{"$f":"(SUMPRODUCT(($A$3:$A20>($A900-VLOOKUP(C$881,'F. UL & OPEX flat rates'!$B$2:$G$43,5)))*1,C$3:C20)+C724)*VLOOKUP(C$881,'F. UL & OPEX flat rates'!$B$2:$G$43,6,0)","v":0},{"$f":"(SUMPRODUCT(($A$3:$A20>($A900-VLOOKUP(D$881,'F. UL & OPEX flat rates'!$B$2:$G$43,5)))*1,D$3:D20)+D724)*VLOOKUP(D$881,'F. UL & OPEX flat rates'!$B$2:$G$43,6,0)","v":0},{"$f":"(SUMPRODUCT(($A$3:$A20>($A900-VLOOKUP(E$881,'F. UL & OPEX flat rates'!$B$2:$G$43,5)))*1,E$3:E20)+E724)*VLOOKUP(E$881,'F. UL & OPEX flat rates'!$B$2:$G$43,6,0)","v":0},{"$f":"(SUMPRODUCT(($A$3:$A20>($A900-VLOOKUP(F$881,'F. UL & OPEX flat rates'!$B$2:$G$43,5)))*1,F$3:F20)+F724)*VLOOKUP(F$881,'F. UL & OPEX flat rates'!$B$2:$G$43,6,0)","v":0},{"$f":"(SUMPRODUCT(($A$3:$A20>($A900-VLOOKUP(G$881,'F. UL & OPEX flat rates'!$B$2:$G$43,5)))*1,G$3:G20)+G724)*VLOOKUP(G$881,'F. UL & OPEX flat rates'!$B$2:$G$43,6,0)","v":0},{"$f":"(SUMPRODUCT(($A$3:$A20>($A900-VLOOKUP(H$881,'F. UL & OPEX flat rates'!$B$2:$G$43,5)))*1,H$3:H20)+H724)*VLOOKUP(H$881,'F. UL & OPEX flat rates'!$B$2:$G$43,6,0)","v":0},{"$f":"(SUMPRODUCT(($A$3:$A20>($A900-VLOOKUP(I$881,'F. UL & OPEX flat rates'!$B$2:$G$43,5)))*1,I$3:I20)+I724)*VLOOKUP(I$881,'F. UL & OPEX flat rates'!$B$2:$G$43,6,0)","v":0},{"$f":"(SUMPRODUCT(($A$3:$A20>($A900-VLOOKUP(J$881,'F. UL & OPEX flat rates'!$B$2:$G$43,5)))*1,J$3:J20)+J724)*VLOOKUP(J$881,'F. UL & OPEX flat rates'!$B$2:$G$43,6,0)","v":0},{"$f":"(SUMPRODUCT(($A$3:$A20>($A900-VLOOKUP(K$881,'F. UL & OPEX flat rates'!$B$2:$G$43,5)))*1,K$3:K20)+K724)*VLOOKUP(K$881,'F. UL & OPEX flat rates'!$B$2:$G$43,6,0)","v":0},{"$f":"(SUMPRODUCT(($A$3:$A20>($A900-VLOOKUP(L$881,'F. UL & OPEX flat rates'!$B$2:$G$43,5)))*1,L$3:L20)+L724)*VLOOKUP(L$881,'F. UL & OPEX flat rates'!$B$2:$G$43,6,0)","v":0},{"$f":"(SUMPRODUCT(($A$3:$A20>($A900-VLOOKUP(M$881,'F. UL & OPEX flat rates'!$B$2:$G$43,5)))*1,M$3:M20)+M724)*VLOOKUP(M$881,'F. UL & OPEX flat rates'!$B$2:$G$43,6,0)","v":0},{"$f":"(SUMPRODUCT(($A$3:$A20>($A900-VLOOKUP(N$881,'F. UL & OPEX flat rates'!$B$2:$G$43,5)))*1,N$3:N20)+N724)*VLOOKUP(N$881,'F. UL & OPEX flat rates'!$B$2:$G$43,6,0)","v":0},{"$f":"(SUMPRODUCT(($A$3:$A20>($A900-VLOOKUP(O$881,'F. UL & OPEX flat rates'!$B$2:$G$43,5)))*1,O$3:O20)+O724)*VLOOKUP(O$881,'F. UL & OPEX flat rates'!$B$2:$G$43,6,0)","v":0},{"$f":"(SUMPRODUCT(($A$3:$A20>($A900-VLOOKUP(P$881,'F. UL & OPEX flat rates'!$B$2:$G$43,5)))*1,P$3:P20)+P724)*VLOOKUP(P$881,'F. UL & OPEX flat rates'!$B$2:$G$43,6,0)","v":7800000},{"$f":"(SUMPRODUCT(($A$3:$A20>($A900-VLOOKUP(Q$881,'F. UL & OPEX flat rates'!$B$2:$G$43,5)))*1,Q$3:Q20)+Q724)*VLOOKUP(Q$881,'F. UL & OPEX flat rates'!$B$2:$G$43,6,0)","v":0},{"$f":"(SUMPRODUCT(($A$3:$A20>($A900-VLOOKUP(R$881,'F. UL & OPEX flat rates'!$B$2:$G$43,5)))*1,R$3:R20)+R724)*VLOOKUP(R$881,'F. UL & OPEX flat rates'!$B$2:$G$43,6,0)","v":0},{"$f":"(SUMPRODUCT(($A$3:$A20>($A900-VLOOKUP(S$881,'F. UL & OPEX flat rates'!$B$2:$G$43,5)))*1,S$3:S20)+S724)*VLOOKUP(S$881,'F. UL & OPEX flat rates'!$B$2:$G$43,6,0)","v":0},{"$f":"(SUMPRODUCT(($A$3:$A20>($A900-VLOOKUP(T$881,'F. UL & OPEX flat rates'!$B$2:$G$43,5)))*1,T$3:T20)+T724)*VLOOKUP(T$881,'F. UL & OPEX flat rates'!$B$2:$G$43,6,0)","v":0},{"$f":"(SUMPRODUCT(($A$3:$A20>($A900-VLOOKUP(U$881,'F. UL & OPEX flat rates'!$B$2:$G$43,5)))*1,U$3:U20)+U724)*VLOOKUP(U$881,'F. UL & OPEX flat rates'!$B$2:$G$43,6,0)","v":0},{"$f":"(SUMPRODUCT(($A$3:$A20>($A900-VLOOKUP(V$881,'F. UL & OPEX flat rates'!$B$2:$G$43,5)))*1,V$3:V20)+V724)*VLOOKUP(V$881,'F. UL & OPEX flat rates'!$B$2:$G$43,6,0)","v":0},{"$f":"(SUMPRODUCT(($A$3:$A20>($A900-VLOOKUP(W$881,'F. UL & OPEX flat rates'!$B$2:$G$43,5)))*1,W$3:W20)+W724)*VLOOKUP(W$881,'F. UL & OPEX flat rates'!$B$2:$G$43,6,0)","v":0},{"$f":"(SUMPRODUCT(($A$3:$A20>($A900-VLOOKUP(X$881,'F. UL & OPEX flat rates'!$B$2:$G$43,5)))*1,X$3:X20)+X724)*VLOOKUP(X$881,'F. UL & OPEX flat rates'!$B$2:$G$43,6,0)","v":0},{"$f":"(SUMPRODUCT(($A$3:$A20>($A900-VLOOKUP(Y$881,'F. UL & OPEX flat rates'!$B$2:$G$43,5)))*1,Y$3:Y20)+Y724)*VLOOKUP(Y$881,'F. UL & OPEX flat rates'!$B$2:$G$43,6,0)","v":0},{"$f":"(SUMPRODUCT(($A$3:$A20>($A900-VLOOKUP(Z$881,'F. UL & OPEX flat rates'!$B$2:$G$43,5)))*1,Z$3:Z20)+Z724)*VLOOKUP(Z$881,'F. UL & OPEX flat rates'!$B$2:$G$43,6,0)","v":0},{"$f":"(SUMPRODUCT(($A$3:$A20>($A900-VLOOKUP(AA$881,'F. UL & OPEX flat rates'!$B$2:$G$43,5)))*1,AA$3:AA20)+AA724)*VLOOKUP(AA$881,'F. UL & OPEX flat rates'!$B$2:$G$43,6,0)","v":0},{"$f":"(SUMPRODUCT(($A$3:$A20>($A900-VLOOKUP(AB$881,'F. UL & OPEX flat rates'!$B$2:$G$43,5)))*1,AB$3:AB20)+AB724)*VLOOKUP(AB$881,'F. UL & OPEX flat rates'!$B$2:$G$43,6,0)","v":0},{"$f":"(SUMPRODUCT(($A$3:$A20>($A900-VLOOKUP(AC$881,'F. UL & OPEX flat rates'!$B$2:$G$43,5)))*1,AC$3:AC20)+AC724)*VLOOKUP(AC$881,'F. UL & OPEX flat rates'!$B$2:$G$43,6,0)","v":0},{"$f":"(SUMPRODUCT(($A$3:$A20>($A900-VLOOKUP(AD$881,'F. UL & OPEX flat rates'!$B$2:$G$43,5)))*1,AD$3:AD20)+AD724)*VLOOKUP(AD$881,'F. UL & OPEX flat rates'!$B$2:$G$43,6,0)","v":0},{"$f":"(SUMPRODUCT(($A$3:$A20>($A900-VLOOKUP(AE$881,'F. UL & OPEX flat rates'!$B$2:$G$43,5)))*1,AE$3:AE20)+AE724)*VLOOKUP(AE$881,'F. UL & OPEX flat rates'!$B$2:$G$43,6,0)","v":0},{"$f":"(SUMPRODUCT(($A$3:$A20>($A900-VLOOKUP(AF$881,'F. UL & OPEX flat rates'!$B$2:$G$43,5)))*1,AF$3:AF20)+AF724)*VLOOKUP(AF$881,'F. UL & OPEX flat rates'!$B$2:$G$43,6,0)","v":0},{"$f":"(SUMPRODUCT(($A$3:$A20>($A900-VLOOKUP(AG$881,'F. UL & OPEX flat rates'!$B$2:$G$43,5)))*1,AG$3:AG20)+AG724)*VLOOKUP(AG$881,'F. UL & OPEX flat rates'!$B$2:$G$43,6,0)","v":0},{"$f":"(SUMPRODUCT(($A$3:$A20>($A900-VLOOKUP(AH$881,'F. UL & OPEX flat rates'!$B$2:$G$43,5)))*1,AH$3:AH20)+AH724)*VLOOKUP(AH$881,'F. UL & OPEX flat rates'!$B$2:$G$43,6,0)","v":0},{"$f":"(SUMPRODUCT(($A$3:$A20>($A900-VLOOKUP(AI$881,'F. UL & OPEX flat rates'!$B$2:$G$43,5)))*1,AI$3:AI20)+AI724)*VLOOKUP(AI$881,'F. UL & OPEX flat rates'!$B$2:$G$43,6,0)","v":0},{"$f":"(SUMPRODUCT(($A$3:$A20>($A900-VLOOKUP(AJ$881,'F. UL & OPEX flat rates'!$B$2:$G$43,5)))*1,AJ$3:AJ20)+AJ724)*VLOOKUP(AJ$881,'F. UL & OPEX flat rates'!$B$2:$G$43,6,0)","v":58000},{"$f":"(SUMPRODUCT(($A$3:$A20>($A900-VLOOKUP(AK$881,'F. UL & OPEX flat rates'!$B$2:$G$43,5)))*1,AK$3:AK20)+AK724)*VLOOKUP(AK$881,'F. UL & OPEX flat rates'!$B$2:$G$43,6,0)","v":0},{"$f":"(SUMPRODUCT(($A$3:$A20>($A900-VLOOKUP(AL$881,'F. UL & OPEX flat rates'!$B$2:$G$43,5)))*1,AL$3:AL20)+AL724)*VLOOKUP(AL$881,'F. UL & OPEX flat rates'!$B$2:$G$43,6,0)","v":0},{"$f":"(SUMPRODUCT(($A$3:$A20>($A900-VLOOKUP(AM$881,'F. UL & OPEX flat rates'!$B$2:$G$43,5)))*1,AM$3:AM20)+AM724)*VLOOKUP(AM$881,'F. UL & OPEX flat rates'!$B$2:$G$43,6,0)","v":0},{"$f":"(SUMPRODUCT(($A$3:$A20>($A900-VLOOKUP(AN$881,'F. UL & OPEX flat rates'!$B$2:$G$43,5)))*1,AN$3:AN20)+AN724)*VLOOKUP(AN$881,'F. UL & OPEX flat rates'!$B$2:$G$43,6,0)","v":0},{"$f":"(SUMPRODUCT(($A$3:$A20>($A900-VLOOKUP(AO$881,'F. UL & OPEX flat rates'!$B$2:$G$43,5)))*1,AO$3:AO20)+AO724)*VLOOKUP(AO$881,'F. UL & OPEX flat rates'!$B$2:$G$43,6,0)","v":0},{"$f":"(SUMPRODUCT(($A$3:$A20>($A900-VLOOKUP(AP$881,'F. UL & OPEX flat rates'!$B$2:$G$43,5)))*1,AP$3:AP20)+AP724)*VLOOKUP(AP$881,'F. UL & OPEX flat rates'!$B$2:$G$43,6,0)","v":0},{"$f":"(SUMPRODUCT(($A$3:$A20>($A900-VLOOKUP(AQ$881,'F. UL & OPEX flat rates'!$B$2:$G$43,5)))*1,AQ$3:AQ20)+AQ724)*VLOOKUP(AQ$881,'F. UL & OPEX flat rates'!$B$2:$G$43,6,0)","v":0}]
[2034,7858000,{"$f":"(SUMPRODUCT(($A$3:$A21>($A901-VLOOKUP(C$881,'F. UL & OPEX flat rates'!$B$2:$G$43,5)))*1,C$3:C21)+C725)*VLOOKUP(C$881,'F. UL & OPEX flat rates'!$B$2:$G$43,6,0)","v":0},{"$f":"(SUMPRODUCT(($A$3:$A21>($A901-VLOOKUP(D$881,'F. UL & OPEX flat rates'!$B$2:$G$43,5)))*1,D$3:D21)+D725)*VLOOKUP(D$881,'F. UL & OPEX flat rates'!$B$2:$G$43,6,0)","v":0},{"$f":"(SUMPRODUCT(($A$3:$A21>($A901-VLOOKUP(E$881,'F. UL & OPEX flat rates'!$B$2:$G$43,5)))*1,E$3:E21)+E725)*VLOOKUP(E$881,'F. UL & OPEX flat rates'!$B$2:$G$43,6,0)","v":0},{"$f":"(SUMPRODUCT(($A$3:$A21>($A901-VLOOKUP(F$881,'F. UL & OPEX flat rates'!$B$2:$G$43,5)))*1,F$3:F21)+F725)*VLOOKUP(F$881,'F. UL & OPEX flat rates'!$B$2:$G$43,6,0)","v":0},{"$f":"(SUMPRODUCT(($A$3:$A21>($A901-VLOOKUP(G$881,'F. UL & OPEX flat rates'!$B$2:$G$43,5)))*1,G$3:G21)+G725)*VLOOKUP(G$881,'F. UL & OPEX flat rates'!$B$2:$G$43,6,0)","v":0},{"$f":"(SUMPRODUCT(($A$3:$A21>($A901-VLOOKUP(H$881,'F. UL & OPEX flat rates'!$B$2:$G$43,5)))*1,H$3:H21)+H725)*VLOOKUP(H$881,'F. UL & OPEX flat rates'!$B$2:$G$43,6,0)","v":0},{"$f":"(SUMPRODUCT(($A$3:$A21>($A901-VLOOKUP(I$881,'F. UL & OPEX flat rates'!$B$2:$G$43,5)))*1,I$3:I21)+I725)*VLOOKUP(I$881,'F. UL & OPEX flat rates'!$B$2:$G$43,6,0)","v":0},{"$f":"(SUMPRODUCT(($A$3:$A21>($A901-VLOOKUP(J$881,'F. UL & OPEX flat rates'!$B$2:$G$43,5)))*1,J$3:J21)+J725)*VLOOKUP(J$881,'F. UL & OPEX flat rates'!$B$2:$G$43,6,0)","v":0},{"$f":"(SUMPRODUCT(($A$3:$A21>($A901-VLOOKUP(K$881,'F. UL & OPEX flat rates'!$B$2:$G$43,5)))*1,K$3:K21)+K725)*VLOOKUP(K$881,'F. UL & OPEX flat rates'!$B$2:$G$43,6,0)","v":0},{"$f":"(SUMPRODUCT(($A$3:$A21>($A901-VLOOKUP(L$881,'F. UL & OPEX flat rates'!$B$2:$G$43,5)))*1,L$3:L21)+L725)*VLOOKUP(L$881,'F. UL & OPEX flat rates'!$B$2:$G$43,6,0)","v":0},{"$f":"(SUMPRODUCT(($A$3:$A21>($A901-VLOOKUP(M$881,'F. UL & OPEX flat rates'!$B$2:$G$43,5)))*1,M$3:M21)+M725)*VLOOKUP(M$881,'F. UL & OPEX flat rates'!$B$2:$G$43,6,0)","v":0},{"$f":"(SUMPRODUCT(($A$3:$A21>($A901-VLOOKUP(N$881,'F. UL & OPEX flat rates'!$B$2:$G$43,5)))*1,N$3:N21)+N725)*VLOOKUP(N$881,'F. UL & OPEX flat rates'!$B$2:$G$43,6,0)","v":0},{"$f":"(SUMPRODUCT(($A$3:$A21>($A901-VLOOKUP(O$881,'F. UL & OPEX flat rates'!$B$2:$G$43,5)))*1,O$3:O21)+O725)*VLOOKUP(O$881,'F. UL & OPEX flat rates'!$B$2:$G$43,6,0)","v":0},{"$f":"(SUMPRODUCT(($A$3:$A21>($A901-VLOOKUP(P$881,'F. UL & OPEX flat rates'!$B$2:$G$43,5)))*1,P$3:P21)+P725)*VLOOKUP(P$881,'F. UL & OPEX flat rates'!$B$2:$G$43,6,0)","v":7800000},{"$f":"(SUMPRODUCT(($A$3:$A21>($A901-VLOOKUP(Q$881,'F. UL & OPEX flat rates'!$B$2:$G$43,5)))*1,Q$3:Q21)+Q725)*VLOOKUP(Q$881,'F. UL & OPEX flat rates'!$B$2:$G$43,6,0)","v":0},{"$f":"(SUMPRODUCT(($A$3:$A21>($A901-VLOOKUP(R$881,'F. UL & OPEX flat rates'!$B$2:$G$43,5)))*1,R$3:R21)+R725)*VLOOKUP(R$881,'F. UL & OPEX flat rates'!$B$2:$G$43,6,0)","v":0},{"$f":"(SUMPRODUCT(($A$3:$A21>($A901-VLOOKUP(S$881,'F. UL & OPEX flat rates'!$B$2:$G$43,5)))*1,S$3:S21)+S725)*VLOOKUP(S$881,'F. UL & OPEX flat rates'!$B$2:$G$43,6,0)","v":0},{"$f":"(SUMPRODUCT(($A$3:$A21>($A901-VLOOKUP(T$881,'F. UL & OPEX flat rates'!$B$2:$G$43,5)))*1,T$3:T21)+T725)*VLOOKUP(T$881,'F. UL & OPEX flat rates'!$B$2:$G$43,6,0)","v":0},{"$f":"(SUMPRODUCT(($A$3:$A21>($A901-VLOOKUP(U$881,'F. UL & OPEX flat rates'!$B$2:$G$43,5)))*1,U$3:U21)+U725)*VLOOKUP(U$881,'F. UL & OPEX flat rates'!$B$2:$G$43,6,0)","v":0},{"$f":"(SUMPRODUCT(($A$3:$A21>($A901-VLOOKUP(V$881,'F. UL & OPEX flat rates'!$B$2:$G$43,5)))*1,V$3:V21)+V725)*VLOOKUP(V$881,'F. UL & OPEX flat rates'!$B$2:$G$43,6,0)","v":0},{"$f":"(SUMPRODUCT(($A$3:$A21>($A901-VLOOKUP(W$881,'F. UL & OPEX flat rates'!$B$2:$G$43,5)))*1,W$3:W21)+W725)*VLOOKUP(W$881,'F. UL & OPEX flat rates'!$B$2:$G$43,6,0)","v":0},{"$f":"(SUMPRODUCT(($A$3:$A21>($A901-VLOOKUP(X$881,'F. UL & OPEX flat rates'!$B$2:$G$43,5)))*1,X$3:X21)+X725)*VLOOKUP(X$881,'F. UL & OPEX flat rates'!$B$2:$G$43,6,0)","v":0},{"$f":"(SUMPRODUCT(($A$3:$A21>($A901-VLOOKUP(Y$881,'F. UL & OPEX flat rates'!$B$2:$G$43,5)))*1,Y$3:Y21)+Y725)*VLOOKUP(Y$881,'F. UL & OPEX flat rates'!$B$2:$G$43,6,0)","v":0},{"$f":"(SUMPRODUCT(($A$3:$A21>($A901-VLOOKUP(Z$881,'F. UL & OPEX flat rates'!$B$2:$G$43,5)))*1,Z$3:Z21)+Z725)*VLOOKUP(Z$881,'F. UL & OPEX flat rates'!$B$2:$G$43,6,0)","v":0},{"$f":"(SUMPRODUCT(($A$3:$A21>($A901-VLOOKUP(AA$881,'F. UL & OPEX flat rates'!$B$2:$G$43,5)))*1,AA$3:AA21)+AA725)*VLOOKUP(AA$881,'F. UL & OPEX flat rates'!$B$2:$G$43,6,0)","v":0},{"$f":"(SUMPRODUCT(($A$3:$A21>($A901-VLOOKUP(AB$881,'F. UL & OPEX flat rates'!$B$2:$G$43,5)))*1,AB$3:AB21)+AB725)*VLOOKUP(AB$881,'F. UL & OPEX flat rates'!$B$2:$G$43,6,0)","v":0},{"$f":"(SUMPRODUCT(($A$3:$A21>($A901-VLOOKUP(AC$881,'F. UL & OPEX flat rates'!$B$2:$G$43,5)))*1,AC$3:AC21)+AC725)*VLOOKUP(AC$881,'F. UL & OPEX flat rates'!$B$2:$G$43,6,0)","v":0},{"$f":"(SUMPRODUCT(($A$3:$A21>($A901-VLOOKUP(AD$881,'F. UL & OPEX flat rates'!$B$2:$G$43,5)))*1,AD$3:AD21)+AD725)*VLOOKUP(AD$881,'F. UL & OPEX flat rates'!$B$2:$G$43,6,0)","v":0},{"$f":"(SUMPRODUCT(($A$3:$A21>($A901-VLOOKUP(AE$881,'F. UL & OPEX flat rates'!$B$2:$G$43,5)))*1,AE$3:AE21)+AE725)*VLOOKUP(AE$881,'F. UL & OPEX flat rates'!$B$2:$G$43,6,0)","v":0},{"$f":"(SUMPRODUCT(($A$3:$A21>($A901-VLOOKUP(AF$881,'F. UL & OPEX flat rates'!$B$2:$G$43,5)))*1,AF$3:AF21)+AF725)*VLOOKUP(AF$881,'F. UL & OPEX flat rates'!$B$2:$G$43,6,0)","v":0},{"$f":"(SUMPRODUCT(($A$3:$A21>($A901-VLOOKUP(AG$881,'F. UL & OPEX flat rates'!$B$2:$G$43,5)))*1,AG$3:AG21)+AG725)*VLOOKUP(AG$881,'F. UL & OPEX flat rates'!$B$2:$G$43,6,0)","v":0},{"$f":"(SUMPRODUCT(($A$3:$A21>($A901-VLOOKUP(AH$881,'F. UL & OPEX flat rates'!$B$2:$G$43,5)))*1,AH$3:AH21)+AH725)*VLOOKUP(AH$881,'F. UL & OPEX flat rates'!$B$2:$G$43,6,0)","v":0},{"$f":"(SUMPRODUCT(($A$3:$A21>($A901-VLOOKUP(AI$881,'F. UL & OPEX flat rates'!$B$2:$G$43,5)))*1,AI$3:AI21)+AI725)*VLOOKUP(AI$881,'F. UL & OPEX flat rates'!$B$2:$G$43,6,0)","v":0},{"$f":"(SUMPRODUCT(($A$3:$A21>($A901-VLOOKUP(AJ$881,'F. UL & OPEX flat rates'!$B$2:$G$43,5)))*1,AJ$3:AJ21)+AJ725)*VLOOKUP(AJ$881,'F. UL & OPEX flat rates'!$B$2:$G$43,6,0)","v":58000},{"$f":"(SUMPRODUCT(($A$3:$A21>($A901-VLOOKUP(AK$881,'F. UL & OPEX flat rates'!$B$2:$G$43,5)))*1,AK$3:AK21)+AK725)*VLOOKUP(AK$881,'F. UL & OPEX flat rates'!$B$2:$G$43,6,0)","v":0},{"$f":"(SUMPRODUCT(($A$3:$A21>($A901-VLOOKUP(AL$881,'F. UL & OPEX flat rates'!$B$2:$G$43,5)))*1,AL$3:AL21)+AL725)*VLOOKUP(AL$881,'F. UL & OPEX flat rates'!$B$2:$G$43,6,0)","v":0},{"$f":"(SUMPRODUCT(($A$3:$A21>($A901-VLOOKUP(AM$881,'F. UL & OPEX flat rates'!$B$2:$G$43,5)))*1,AM$3:AM21)+AM725)*VLOOKUP(AM$881,'F. UL & OPEX flat rates'!$B$2:$G$43,6,0)","v":0},{"$f":"(SUMPRODUCT(($A$3:$A21>($A901-VLOOKUP(AN$881,'F. UL & OPEX flat rates'!$B$2:$G$43,5)))*1,AN$3:AN21)+AN725)*VLOOKUP(AN$881,'F. UL & OPEX flat rates'!$B$2:$G$43,6,0)","v":0},{"$f":"(SUMPRODUCT(($A$3:$A21>($A901-VLOOKUP(AO$881,'F. UL & OPEX flat rates'!$B$2:$G$43,5)))*1,AO$3:AO21)+AO725)*VLOOKUP(AO$881,'F. UL & OPEX flat rates'!$B$2:$G$43,6,0)","v":0},{"$f":"(SUMPRODUCT(($A$3:$A21>($A901-VLOOKUP(AP$881,'F. UL & OPEX flat rates'!$B$2:$G$43,5)))*1,AP$3:AP21)+AP725)*VLOOKUP(AP$881,'F. UL & OPEX flat rates'!$B$2:$G$43,6,0)","v":0},{"$f":"(SUMPRODUCT(($A$3:$A21>($A901-VLOOKUP(AQ$881,'F. UL & OPEX flat rates'!$B$2:$G$43,5)))*1,AQ$3:AQ21)+AQ725)*VLOOKUP(AQ$881,'F. UL & OPEX flat rates'!$B$2:$G$43,6,0)","v":0}]
[2035,7858000,{"$f":"(SUMPRODUCT(($A$3:$A22>($A902-VLOOKUP(C$881,'F. UL & OPEX flat rates'!$B$2:$G$43,5)))*1,C$3:C22)+C726)*VLOOKUP(C$881,'F. UL & OPEX flat rates'!$B$2:$G$43,6,0)","v":0},{"$f":"(SUMPRODUCT(($A$3:$A22>($A902-VLOOKUP(D$881,'F. UL & OPEX flat rates'!$B$2:$G$43,5)))*1,D$3:D22)+D726)*VLOOKUP(D$881,'F. UL & OPEX flat rates'!$B$2:$G$43,6,0)","v":0},{"$f":"(SUMPRODUCT(($A$3:$A22>($A902-VLOOKUP(E$881,'F. UL & OPEX flat rates'!$B$2:$G$43,5)))*1,E$3:E22)+E726)*VLOOKUP(E$881,'F. UL & OPEX flat rates'!$B$2:$G$43,6,0)","v":0},{"$f":"(SUMPRODUCT(($A$3:$A22>($A902-VLOOKUP(F$881,'F. UL & OPEX flat rates'!$B$2:$G$43,5)))*1,F$3:F22)+F726)*VLOOKUP(F$881,'F. UL & OPEX flat rates'!$B$2:$G$43,6,0)","v":0},{"$f":"(SUMPRODUCT(($A$3:$A22>($A902-VLOOKUP(G$881,'F. UL & OPEX flat rates'!$B$2:$G$43,5)))*1,G$3:G22)+G726)*VLOOKUP(G$881,'F. UL & OPEX flat rates'!$B$2:$G$43,6,0)","v":0},{"$f":"(SUMPRODUCT(($A$3:$A22>($A902-VLOOKUP(H$881,'F. UL & OPEX flat rates'!$B$2:$G$43,5)))*1,H$3:H22)+H726)*VLOOKUP(H$881,'F. UL & OPEX flat rates'!$B$2:$G$43,6,0)","v":0},{"$f":"(SUMPRODUCT(($A$3:$A22>($A902-VLOOKUP(I$881,'F. UL & OPEX flat rates'!$B$2:$G$43,5)))*1,I$3:I22)+I726)*VLOOKUP(I$881,'F. UL & OPEX flat rates'!$B$2:$G$43,6,0)","v":0},{"$f":"(SUMPRODUCT(($A$3:$A22>($A902-VLOOKUP(J$881,'F. UL & OPEX flat rates'!$B$2:$G$43,5)))*1,J$3:J22)+J726)*VLOOKUP(J$881,'F. UL & OPEX flat rates'!$B$2:$G$43,6,0)","v":0},{"$f":"(SUMPRODUCT(($A$3:$A22>($A902-VLOOKUP(K$881,'F. UL & OPEX flat rates'!$B$2:$G$43,5)))*1,K$3:K22)+K726)*VLOOKUP(K$881,'F. UL & OPEX flat rates'!$B$2:$G$43,6,0)","v":0},{"$f":"(SUMPRODUCT(($A$3:$A22>($A902-VLOOKUP(L$881,'F. UL & OPEX flat rates'!$B$2:$G$43,5)))*1,L$3:L22)+L726)*VLOOKUP(L$881,'F. UL & OPEX flat rates'!$B$2:$G$43,6,0)","v":0},{"$f":"(SUMPRODUCT(($A$3:$A22>($A902-VLOOKUP(M$881,'F. UL & OPEX flat rates'!$B$2:$G$43,5)))*1,M$3:M22)+M726)*VLOOKUP(M$881,'F. UL & OPEX flat rates'!$B$2:$G$43,6,0)","v":0},{"$f":"(SUMPRODUCT(($A$3:$A22>($A902-VLOOKUP(N$881,'F. UL & OPEX flat rates'!$B$2:$G$43,5)))*1,N$3:N22)+N726)*VLOOKUP(N$881,'F. UL & OPEX flat rates'!$B$2:$G$43,6,0)","v":0},{"$f":"(SUMPRODUCT(($A$3:$A22>($A902-VLOOKUP(O$881,'F. UL & OPEX flat rates'!$B$2:$G$43,5)))*1,O$3:O22)+O726)*VLOOKUP(O$881,'F. UL & OPEX flat rates'!$B$2:$G$43,6,0)","v":0},{"$f":"(SUMPRODUCT(($A$3:$A22>($A902-VLOOKUP(P$881,'F. UL & OPEX flat rates'!$B$2:$G$43,5)))*1,P$3:P22)+P726)*VLOOKUP(P$881,'F. UL & OPEX flat rates'!$B$2:$G$43,6,0)","v":7800000},{"$f":"(SUMPRODUCT(($A$3:$A22>($A902-VLOOKUP(Q$881,'F. UL & OPEX flat rates'!$B$2:$G$43,5)))*1,Q$3:Q22)+Q726)*VLOOKUP(Q$881,'F. UL & OPEX flat rates'!$B$2:$G$43,6,0)","v":0},{"$f":"(SUMPRODUCT(($A$3:$A22>($A902-VLOOKUP(R$881,'F. UL & OPEX flat rates'!$B$2:$G$43,5)))*1,R$3:R22)+R726)*VLOOKUP(R$881,'F. UL & OPEX flat rates'!$B$2:$G$43,6,0)","v":0},{"$f":"(SUMPRODUCT(($A$3:$A22>($A902-VLOOKUP(S$881,'F. UL & OPEX flat rates'!$B$2:$G$43,5)))*1,S$3:S22)+S726)*VLOOKUP(S$881,'F. UL & OPEX flat rates'!$B$2:$G$43,6,0)","v":0},{"$f":"(SUMPRODUCT(($A$3:$A22>($A902-VLOOKUP(T$881,'F. UL & OPEX flat rates'!$B$2:$G$43,5)))*1,T$3:T22)+T726)*VLOOKUP(T$881,'F. UL & OPEX flat rates'!$B$2:$G$43,6,0)","v":0},{"$f":"(SUMPRODUCT(($A$3:$A22>($A902-VLOOKUP(U$881,'F. UL & OPEX flat rates'!$B$2:$G$43,5)))*1,U$3:U22)+U726)*VLOOKUP(U$881,'F. UL & OPEX flat rates'!$B$2:$G$43,6,0)","v":0},{"$f":"(SUMPRODUCT(($A$3:$A22>($A902-VLOOKUP(V$881,'F. UL & OPEX flat rates'!$B$2:$G$43,5)))*1,V$3:V22)+V726)*VLOOKUP(V$881,'F. UL & OPEX flat rates'!$B$2:$G$43,6,0)","v":0},{"$f":"(SUMPRODUCT(($A$3:$A22>($A902-VLOOKUP(W$881,'F. UL & OPEX flat rates'!$B$2:$G$43,5)))*1,W$3:W22)+W726)*VLOOKUP(W$881,'F. UL & OPEX flat rates'!$B$2:$G$43,6,0)","v":0},{"$f":"(SUMPRODUCT(($A$3:$A22>($A902-VLOOKUP(X$881,'F. UL & OPEX flat rates'!$B$2:$G$43,5)))*1,X$3:X22)+X726)*VLOOKUP(X$881,'F. UL & OPEX flat rates'!$B$2:$G$43,6,0)","v":0},{"$f":"(SUMPRODUCT(($A$3:$A22>($A902-VLOOKUP(Y$881,'F. UL & OPEX flat rates'!$B$2:$G$43,5)))*1,Y$3:Y22)+Y726)*VLOOKUP(Y$881,'F. UL & OPEX flat rates'!$B$2:$G$43,6,0)","v":0},{"$f":"(SUMPRODUCT(($A$3:$A22>($A902-VLOOKUP(Z$881,'F. UL & OPEX flat rates'!$B$2:$G$43,5)))*1,Z$3:Z22)+Z726)*VLOOKUP(Z$881,'F. UL & OPEX flat rates'!$B$2:$G$43,6,0)","v":0},{"$f":"(SUMPRODUCT(($A$3:$A22>($A902-VLOOKUP(AA$881,'F. UL & OPEX flat rates'!$B$2:$G$43,5)))*1,AA$3:AA22)+AA726)*VLOOKUP(AA$881,'F. UL & OPEX flat rates'!$B$2:$G$43,6,0)","v":0},{"$f":"(SUMPRODUCT(($A$3:$A22>($A902-VLOOKUP(AB$881,'F. UL & OPEX flat rates'!$B$2:$G$43,5)))*1,AB$3:AB22)+AB726)*VLOOKUP(AB$881,'F. UL & OPEX flat rates'!$B$2:$G$43,6,0)","v":0},{"$f":"(SUMPRODUCT(($A$3:$A22>($A902-VLOOKUP(AC$881,'F. UL & OPEX flat rates'!$B$2:$G$43,5)))*1,AC$3:AC22)+AC726)*VLOOKUP(AC$881,'F. UL & OPEX flat rates'!$B$2:$G$43,6,0)","v":0},{"$f":"(SUMPRODUCT(($A$3:$A22>($A902-VLOOKUP(AD$881,'F. UL & OPEX flat rates'!$B$2:$G$43,5)))*1,AD$3:AD22)+AD726)*VLOOKUP(AD$881,'F. UL & OPEX flat rates'!$B$2:$G$43,6,0)","v":0},{"$f":"(SUMPRODUCT(($A$3:$A22>($A902-VLOOKUP(AE$881,'F. UL & OPEX flat rates'!$B$2:$G$43,5)))*1,AE$3:AE22)+AE726)*VLOOKUP(AE$881,'F. UL & OPEX flat rates'!$B$2:$G$43,6,0)","v":0},{"$f":"(SUMPRODUCT(($A$3:$A22>($A902-VLOOKUP(AF$881,'F. UL & OPEX flat rates'!$B$2:$G$43,5)))*1,AF$3:AF22)+AF726)*VLOOKUP(AF$881,'F. UL & OPEX flat rates'!$B$2:$G$43,6,0)","v":0},{"$f":"(SUMPRODUCT(($A$3:$A22>($A902-VLOOKUP(AG$881,'F. UL & OPEX flat rates'!$B$2:$G$43,5)))*1,AG$3:AG22)+AG726)*VLOOKUP(AG$881,'F. UL & OPEX flat rates'!$B$2:$G$43,6,0)","v":0},{"$f":"(SUMPRODUCT(($A$3:$A22>($A902-VLOOKUP(AH$881,'F. UL & OPEX flat rates'!$B$2:$G$43,5)))*1,AH$3:AH22)+AH726)*VLOOKUP(AH$881,'F. UL & OPEX flat rates'!$B$2:$G$43,6,0)","v":0},{"$f":"(SUMPRODUCT(($A$3:$A22>($A902-VLOOKUP(AI$881,'F. UL & OPEX flat rates'!$B$2:$G$43,5)))*1,AI$3:AI22)+AI726)*VLOOKUP(AI$881,'F. UL & OPEX flat rates'!$B$2:$G$43,6,0)","v":0},{"$f":"(SUMPRODUCT(($A$3:$A22>($A902-VLOOKUP(AJ$881,'F. UL & OPEX flat rates'!$B$2:$G$43,5)))*1,AJ$3:AJ22)+AJ726)*VLOOKUP(AJ$881,'F. UL & OPEX flat rates'!$B$2:$G$43,6,0)","v":58000},{"$f":"(SUMPRODUCT(($A$3:$A22>($A902-VLOOKUP(AK$881,'F. UL & OPEX flat rates'!$B$2:$G$43,5)))*1,AK$3:AK22)+AK726)*VLOOKUP(AK$881,'F. UL & OPEX flat rates'!$B$2:$G$43,6,0)","v":0},{"$f":"(SUMPRODUCT(($A$3:$A22>($A902-VLOOKUP(AL$881,'F. UL & OPEX flat rates'!$B$2:$G$43,5)))*1,AL$3:AL22)+AL726)*VLOOKUP(AL$881,'F. UL & OPEX flat rates'!$B$2:$G$43,6,0)","v":0},{"$f":"(SUMPRODUCT(($A$3:$A22>($A902-VLOOKUP(AM$881,'F. UL & OPEX flat rates'!$B$2:$G$43,5)))*1,AM$3:AM22)+AM726)*VLOOKUP(AM$881,'F. UL & OPEX flat rates'!$B$2:$G$43,6,0)","v":0},{"$f":"(SUMPRODUCT(($A$3:$A22>($A902-VLOOKUP(AN$881,'F. UL & OPEX flat rates'!$B$2:$G$43,5)))*1,AN$3:AN22)+AN726)*VLOOKUP(AN$881,'F. UL & OPEX flat rates'!$B$2:$G$43,6,0)","v":0},{"$f":"(SUMPRODUCT(($A$3:$A22>($A902-VLOOKUP(AO$881,'F. UL & OPEX flat rates'!$B$2:$G$43,5)))*1,AO$3:AO22)+AO726)*VLOOKUP(AO$881,'F. UL & OPEX flat rates'!$B$2:$G$43,6,0)","v":0},{"$f":"(SUMPRODUCT(($A$3:$A22>($A902-VLOOKUP(AP$881,'F. UL & OPEX flat rates'!$B$2:$G$43,5)))*1,AP$3:AP22)+AP726)*VLOOKUP(AP$881,'F. UL & OPEX flat rates'!$B$2:$G$43,6,0)","v":0},{"$f":"(SUMPRODUCT(($A$3:$A22>($A902-VLOOKUP(AQ$881,'F. UL & OPEX flat rates'!$B$2:$G$43,5)))*1,AQ$3:AQ22)+AQ726)*VLOOKUP(AQ$881,'F. UL & OPEX flat rates'!$B$2:$G$43,6,0)","v":0}]
[2036,7858000,{"$f":"(SUMPRODUCT(($A$3:$A23>($A903-VLOOKUP(C$881,'F. UL & OPEX flat rates'!$B$2:$G$43,5)))*1,C$3:C23)+C727)*VLOOKUP(C$881,'F. UL & OPEX flat rates'!$B$2:$G$43,6,0)","v":0},{"$f":"(SUMPRODUCT(($A$3:$A23>($A903-VLOOKUP(D$881,'F. UL & OPEX flat rates'!$B$2:$G$43,5)))*1,D$3:D23)+D727)*VLOOKUP(D$881,'F. UL & OPEX flat rates'!$B$2:$G$43,6,0)","v":0},{"$f":"(SUMPRODUCT(($A$3:$A23>($A903-VLOOKUP(E$881,'F. UL & OPEX flat rates'!$B$2:$G$43,5)))*1,E$3:E23)+E727)*VLOOKUP(E$881,'F. UL & OPEX flat rates'!$B$2:$G$43,6,0)","v":0},{"$f":"(SUMPRODUCT(($A$3:$A23>($A903-VLOOKUP(F$881,'F. UL & OPEX flat rates'!$B$2:$G$43,5)))*1,F$3:F23)+F727)*VLOOKUP(F$881,'F. UL & OPEX flat rates'!$B$2:$G$43,6,0)","v":0},{"$f":"(SUMPRODUCT(($A$3:$A23>($A903-VLOOKUP(G$881,'F. UL & OPEX flat rates'!$B$2:$G$43,5)))*1,G$3:G23)+G727)*VLOOKUP(G$881,'F. UL & OPEX flat rates'!$B$2:$G$43,6,0)","v":0},{"$f":"(SUMPRODUCT(($A$3:$A23>($A903-VLOOKUP(H$881,'F. UL & OPEX flat rates'!$B$2:$G$43,5)))*1,H$3:H23)+H727)*VLOOKUP(H$881,'F. UL & OPEX flat rates'!$B$2:$G$43,6,0)","v":0},{"$f":"(SUMPRODUCT(($A$3:$A23>($A903-VLOOKUP(I$881,'F. UL & OPEX flat rates'!$B$2:$G$43,5)))*1,I$3:I23)+I727)*VLOOKUP(I$881,'F. UL & OPEX flat rates'!$B$2:$G$43,6,0)","v":0},{"$f":"(SUMPRODUCT(($A$3:$A23>($A903-VLOOKUP(J$881,'F. UL & OPEX flat rates'!$B$2:$G$43,5)))*1,J$3:J23)+J727)*VLOOKUP(J$881,'F. UL & OPEX flat rates'!$B$2:$G$43,6,0)","v":0},{"$f":"(SUMPRODUCT(($A$3:$A23>($A903-VLOOKUP(K$881,'F. UL & OPEX flat rates'!$B$2:$G$43,5)))*1,K$3:K23)+K727)*VLOOKUP(K$881,'F. UL & OPEX flat rates'!$B$2:$G$43,6,0)","v":0},{"$f":"(SUMPRODUCT(($A$3:$A23>($A903-VLOOKUP(L$881,'F. UL & OPEX flat rates'!$B$2:$G$43,5)))*1,L$3:L23)+L727)*VLOOKUP(L$881,'F. UL & OPEX flat rates'!$B$2:$G$43,6,0)","v":0},{"$f":"(SUMPRODUCT(($A$3:$A23>($A903-VLOOKUP(M$881,'F. UL & OPEX flat rates'!$B$2:$G$43,5)))*1,M$3:M23)+M727)*VLOOKUP(M$881,'F. UL & OPEX flat rates'!$B$2:$G$43,6,0)","v":0},{"$f":"(SUMPRODUCT(($A$3:$A23>($A903-VLOOKUP(N$881,'F. UL & OPEX flat rates'!$B$2:$G$43,5)))*1,N$3:N23)+N727)*VLOOKUP(N$881,'F. UL & OPEX flat rates'!$B$2:$G$43,6,0)","v":0},{"$f":"(SUMPRODUCT(($A$3:$A23>($A903-VLOOKUP(O$881,'F. UL & OPEX flat rates'!$B$2:$G$43,5)))*1,O$3:O23)+O727)*VLOOKUP(O$881,'F. UL & OPEX flat rates'!$B$2:$G$43,6,0)","v":0},{"$f":"(SUMPRODUCT(($A$3:$A23>($A903-VLOOKUP(P$881,'F. UL & OPEX flat rates'!$B$2:$G$43,5)))*1,P$3:P23)+P727)*VLOOKUP(P$881,'F. UL & OPEX flat rates'!$B$2:$G$43,6,0)","v":7800000},{"$f":"(SUMPRODUCT(($A$3:$A23>($A903-VLOOKUP(Q$881,'F. UL & OPEX flat rates'!$B$2:$G$43,5)))*1,Q$3:Q23)+Q727)*VLOOKUP(Q$881,'F. UL & OPEX flat rates'!$B$2:$G$43,6,0)","v":0},{"$f":"(SUMPRODUCT(($A$3:$A23>($A903-VLOOKUP(R$881,'F. UL & OPEX flat rates'!$B$2:$G$43,5)))*1,R$3:R23)+R727)*VLOOKUP(R$881,'F. UL & OPEX flat rates'!$B$2:$G$43,6,0)","v":0},{"$f":"(SUMPRODUCT(($A$3:$A23>($A903-VLOOKUP(S$881,'F. UL & OPEX flat rates'!$B$2:$G$43,5)))*1,S$3:S23)+S727)*VLOOKUP(S$881,'F. UL & OPEX flat rates'!$B$2:$G$43,6,0)","v":0},{"$f":"(SUMPRODUCT(($A$3:$A23>($A903-VLOOKUP(T$881,'F. UL & OPEX flat rates'!$B$2:$G$43,5)))*1,T$3:T23)+T727)*VLOOKUP(T$881,'F. UL & OPEX flat rates'!$B$2:$G$43,6,0)","v":0},{"$f":"(SUMPRODUCT(($A$3:$A23>($A903-VLOOKUP(U$881,'F. UL & OPEX flat rates'!$B$2:$G$43,5)))*1,U$3:U23)+U727)*VLOOKUP(U$881,'F. UL & OPEX flat rates'!$B$2:$G$43,6,0)","v":0},{"$f":"(SUMPRODUCT(($A$3:$A23>($A903-VLOOKUP(V$881,'F. UL & OPEX flat rates'!$B$2:$G$43,5)))*1,V$3:V23)+V727)*VLOOKUP(V$881,'F. UL & OPEX flat rates'!$B$2:$G$43,6,0)","v":0},{"$f":"(SUMPRODUCT(($A$3:$A23>($A903-VLOOKUP(W$881,'F. UL & OPEX flat rates'!$B$2:$G$43,5)))*1,W$3:W23)+W727)*VLOOKUP(W$881,'F. UL & OPEX flat rates'!$B$2:$G$43,6,0)","v":0},{"$f":"(SUMPRODUCT(($A$3:$A23>($A903-VLOOKUP(X$881,'F. UL & OPEX flat rates'!$B$2:$G$43,5)))*1,X$3:X23)+X727)*VLOOKUP(X$881,'F. UL & OPEX flat rates'!$B$2:$G$43,6,0)","v":0},{"$f":"(SUMPRODUCT(($A$3:$A23>($A903-VLOOKUP(Y$881,'F. UL & OPEX flat rates'!$B$2:$G$43,5)))*1,Y$3:Y23)+Y727)*VLOOKUP(Y$881,'F. UL & OPEX flat rates'!$B$2:$G$43,6,0)","v":0},{"$f":"(SUMPRODUCT(($A$3:$A23>($A903-VLOOKUP(Z$881,'F. UL & OPEX flat rates'!$B$2:$G$43,5)))*1,Z$3:Z23)+Z727)*VLOOKUP(Z$881,'F. UL & OPEX flat rates'!$B$2:$G$43,6,0)","v":0},{"$f":"(SUMPRODUCT(($A$3:$A23>($A903-VLOOKUP(AA$881,'F. UL & OPEX flat rates'!$B$2:$G$43,5)))*1,AA$3:AA23)+AA727)*VLOOKUP(AA$881,'F. UL & OPEX flat rates'!$B$2:$G$43,6,0)","v":0},{"$f":"(SUMPRODUCT(($A$3:$A23>($A903-VLOOKUP(AB$881,'F. UL & OPEX flat rates'!$B$2:$G$43,5)))*1,AB$3:AB23)+AB727)*VLOOKUP(AB$881,'F. UL & OPEX flat rates'!$B$2:$G$43,6,0)","v":0},{"$f":"(SUMPRODUCT(($A$3:$A23>($A903-VLOOKUP(AC$881,'F. UL & OPEX flat rates'!$B$2:$G$43,5)))*1,AC$3:AC23)+AC727)*VLOOKUP(AC$881,'F. UL & OPEX flat rates'!$B$2:$G$43,6,0)","v":0},{"$f":"(SUMPRODUCT(($A$3:$A23>($A903-VLOOKUP(AD$881,'F. UL & OPEX flat rates'!$B$2:$G$43,5)))*1,AD$3:AD23)+AD727)*VLOOKUP(AD$881,'F. UL & OPEX flat rates'!$B$2:$G$43,6,0)","v":0},{"$f":"(SUMPRODUCT(($A$3:$A23>($A903-VLOOKUP(AE$881,'F. UL & OPEX flat rates'!$B$2:$G$43,5)))*1,AE$3:AE23)+AE727)*VLOOKUP(AE$881,'F. UL & OPEX flat rates'!$B$2:$G$43,6,0)","v":0},{"$f":"(SUMPRODUCT(($A$3:$A23>($A903-VLOOKUP(AF$881,'F. UL & OPEX flat rates'!$B$2:$G$43,5)))*1,AF$3:AF23)+AF727)*VLOOKUP(AF$881,'F. UL & OPEX flat rates'!$B$2:$G$43,6,0)","v":0},{"$f":"(SUMPRODUCT(($A$3:$A23>($A903-VLOOKUP(AG$881,'F. UL & OPEX flat rates'!$B$2:$G$43,5)))*1,AG$3:AG23)+AG727)*VLOOKUP(AG$881,'F. UL & OPEX flat rates'!$B$2:$G$43,6,0)","v":0},{"$f":"(SUMPRODUCT(($A$3:$A23>($A903-VLOOKUP(AH$881,'F. UL & OPEX flat rates'!$B$2:$G$43,5)))*1,AH$3:AH23)+AH727)*VLOOKUP(AH$881,'F. UL & OPEX flat rates'!$B$2:$G$43,6,0)","v":0},{"$f":"(SUMPRODUCT(($A$3:$A23>($A903-VLOOKUP(AI$881,'F. UL & OPEX flat rates'!$B$2:$G$43,5)))*1,AI$3:AI23)+AI727)*VLOOKUP(AI$881,'F. UL & OPEX flat rates'!$B$2:$G$43,6,0)","v":0},{"$f":"(SUMPRODUCT(($A$3:$A23>($A903-VLOOKUP(AJ$881,'F. UL & OPEX flat rates'!$B$2:$G$43,5)))*1,AJ$3:AJ23)+AJ727)*VLOOKUP(AJ$881,'F. UL & OPEX flat rates'!$B$2:$G$43,6,0)","v":58000},{"$f":"(SUMPRODUCT(($A$3:$A23>($A903-VLOOKUP(AK$881,'F. UL & OPEX flat rates'!$B$2:$G$43,5)))*1,AK$3:AK23)+AK727)*VLOOKUP(AK$881,'F. UL & OPEX flat rates'!$B$2:$G$43,6,0)","v":0},{"$f":"(SUMPRODUCT(($A$3:$A23>($A903-VLOOKUP(AL$881,'F. UL & OPEX flat rates'!$B$2:$G$43,5)))*1,AL$3:AL23)+AL727)*VLOOKUP(AL$881,'F. UL & OPEX flat rates'!$B$2:$G$43,6,0)","v":0},{"$f":"(SUMPRODUCT(($A$3:$A23>($A903-VLOOKUP(AM$881,'F. UL & OPEX flat rates'!$B$2:$G$43,5)))*1,AM$3:AM23)+AM727)*VLOOKUP(AM$881,'F. UL & OPEX flat rates'!$B$2:$G$43,6,0)","v":0},{"$f":"(SUMPRODUCT(($A$3:$A23>($A903-VLOOKUP(AN$881,'F. UL & OPEX flat rates'!$B$2:$G$43,5)))*1,AN$3:AN23)+AN727)*VLOOKUP(AN$881,'F. UL & OPEX flat rates'!$B$2:$G$43,6,0)","v":0},{"$f":"(SUMPRODUCT(($A$3:$A23>($A903-VLOOKUP(AO$881,'F. UL & OPEX flat rates'!$B$2:$G$43,5)))*1,AO$3:AO23)+AO727)*VLOOKUP(AO$881,'F. UL & OPEX flat rates'!$B$2:$G$43,6,0)","v":0},{"$f":"(SUMPRODUCT(($A$3:$A23>($A903-VLOOKUP(AP$881,'F. UL & OPEX flat rates'!$B$2:$G$43,5)))*1,AP$3:AP23)+AP727)*VLOOKUP(AP$881,'F. UL & OPEX flat rates'!$B$2:$G$43,6,0)","v":0},{"$f":"(SUMPRODUCT(($A$3:$A23>($A903-VLOOKUP(AQ$881,'F. UL & OPEX flat rates'!$B$2:$G$43,5)))*1,AQ$3:AQ23)+AQ727)*VLOOKUP(AQ$881,'F. UL & OPEX flat rates'!$B$2:$G$43,6,0)","v":0}]
[2037,7858000,{"$f":"(SUMPRODUCT(($A$3:$A24>($A904-VLOOKUP(C$881,'F. UL & OPEX flat rates'!$B$2:$G$43,5)))*1,C$3:C24)+C728)*VLOOKUP(C$881,'F. UL & OPEX flat rates'!$B$2:$G$43,6,0)","v":0},{"$f":"(SUMPRODUCT(($A$3:$A24>($A904-VLOOKUP(D$881,'F. UL & OPEX flat rates'!$B$2:$G$43,5)))*1,D$3:D24)+D728)*VLOOKUP(D$881,'F. UL & OPEX flat rates'!$B$2:$G$43,6,0)","v":0},{"$f":"(SUMPRODUCT(($A$3:$A24>($A904-VLOOKUP(E$881,'F. UL & OPEX flat rates'!$B$2:$G$43,5)))*1,E$3:E24)+E728)*VLOOKUP(E$881,'F. UL & OPEX flat rates'!$B$2:$G$43,6,0)","v":0},{"$f":"(SUMPRODUCT(($A$3:$A24>($A904-VLOOKUP(F$881,'F. UL & OPEX flat rates'!$B$2:$G$43,5)))*1,F$3:F24)+F728)*VLOOKUP(F$881,'F. UL & OPEX flat rates'!$B$2:$G$43,6,0)","v":0},{"$f":"(SUMPRODUCT(($A$3:$A24>($A904-VLOOKUP(G$881,'F. UL & OPEX flat rates'!$B$2:$G$43,5)))*1,G$3:G24)+G728)*VLOOKUP(G$881,'F. UL & OPEX flat rates'!$B$2:$G$43,6,0)","v":0},{"$f":"(SUMPRODUCT(($A$3:$A24>($A904-VLOOKUP(H$881,'F. UL & OPEX flat rates'!$B$2:$G$43,5)))*1,H$3:H24)+H728)*VLOOKUP(H$881,'F. UL & OPEX flat rates'!$B$2:$G$43,6,0)","v":0},{"$f":"(SUMPRODUCT(($A$3:$A24>($A904-VLOOKUP(I$881,'F. UL & OPEX flat rates'!$B$2:$G$43,5)))*1,I$3:I24)+I728)*VLOOKUP(I$881,'F. UL & OPEX flat rates'!$B$2:$G$43,6,0)","v":0},{"$f":"(SUMPRODUCT(($A$3:$A24>($A904-VLOOKUP(J$881,'F. UL & OPEX flat rates'!$B$2:$G$43,5)))*1,J$3:J24)+J728)*VLOOKUP(J$881,'F. UL & OPEX flat rates'!$B$2:$G$43,6,0)","v":0},{"$f":"(SUMPRODUCT(($A$3:$A24>($A904-VLOOKUP(K$881,'F. UL & OPEX flat rates'!$B$2:$G$43,5)))*1,K$3:K24)+K728)*VLOOKUP(K$881,'F. UL & OPEX flat rates'!$B$2:$G$43,6,0)","v":0},{"$f":"(SUMPRODUCT(($A$3:$A24>($A904-VLOOKUP(L$881,'F. UL & OPEX flat rates'!$B$2:$G$43,5)))*1,L$3:L24)+L728)*VLOOKUP(L$881,'F. UL & OPEX flat rates'!$B$2:$G$43,6,0)","v":0},{"$f":"(SUMPRODUCT(($A$3:$A24>($A904-VLOOKUP(M$881,'F. UL & OPEX flat rates'!$B$2:$G$43,5)))*1,M$3:M24)+M728)*VLOOKUP(M$881,'F. UL & OPEX flat rates'!$B$2:$G$43,6,0)","v":0},{"$f":"(SUMPRODUCT(($A$3:$A24>($A904-VLOOKUP(N$881,'F. UL & OPEX flat rates'!$B$2:$G$43,5)))*1,N$3:N24)+N728)*VLOOKUP(N$881,'F. UL & OPEX flat rates'!$B$2:$G$43,6,0)","v":0},{"$f":"(SUMPRODUCT(($A$3:$A24>($A904-VLOOKUP(O$881,'F. UL & OPEX flat rates'!$B$2:$G$43,5)))*1,O$3:O24)+O728)*VLOOKUP(O$881,'F. UL & OPEX flat rates'!$B$2:$G$43,6,0)","v":0},{"$f":"(SUMPRODUCT(($A$3:$A24>($A904-VLOOKUP(P$881,'F. UL & OPEX flat rates'!$B$2:$G$43,5)))*1,P$3:P24)+P728)*VLOOKUP(P$881,'F. UL & OPEX flat rates'!$B$2:$G$43,6,0)","v":7800000},{"$f":"(SUMPRODUCT(($A$3:$A24>($A904-VLOOKUP(Q$881,'F. UL & OPEX flat rates'!$B$2:$G$43,5)))*1,Q$3:Q24)+Q728)*VLOOKUP(Q$881,'F. UL & OPEX flat rates'!$B$2:$G$43,6,0)","v":0},{"$f":"(SUMPRODUCT(($A$3:$A24>($A904-VLOOKUP(R$881,'F. UL & OPEX flat rates'!$B$2:$G$43,5)))*1,R$3:R24)+R728)*VLOOKUP(R$881,'F. UL & OPEX flat rates'!$B$2:$G$43,6,0)","v":0},{"$f":"(SUMPRODUCT(($A$3:$A24>($A904-VLOOKUP(S$881,'F. UL & OPEX flat rates'!$B$2:$G$43,5)))*1,S$3:S24)+S728)*VLOOKUP(S$881,'F. UL & OPEX flat rates'!$B$2:$G$43,6,0)","v":0},{"$f":"(SUMPRODUCT(($A$3:$A24>($A904-VLOOKUP(T$881,'F. UL & OPEX flat rates'!$B$2:$G$43,5)))*1,T$3:T24)+T728)*VLOOKUP(T$881,'F. UL & OPEX flat rates'!$B$2:$G$43,6,0)","v":0},{"$f":"(SUMPRODUCT(($A$3:$A24>($A904-VLOOKUP(U$881,'F. UL & OPEX flat rates'!$B$2:$G$43,5)))*1,U$3:U24)+U728)*VLOOKUP(U$881,'F. UL & OPEX flat rates'!$B$2:$G$43,6,0)","v":0},{"$f":"(SUMPRODUCT(($A$3:$A24>($A904-VLOOKUP(V$881,'F. UL & OPEX flat rates'!$B$2:$G$43,5)))*1,V$3:V24)+V728)*VLOOKUP(V$881,'F. UL & OPEX flat rates'!$B$2:$G$43,6,0)","v":0},{"$f":"(SUMPRODUCT(($A$3:$A24>($A904-VLOOKUP(W$881,'F. UL & OPEX flat rates'!$B$2:$G$43,5)))*1,W$3:W24)+W728)*VLOOKUP(W$881,'F. UL & OPEX flat rates'!$B$2:$G$43,6,0)","v":0},{"$f":"(SUMPRODUCT(($A$3:$A24>($A904-VLOOKUP(X$881,'F. UL & OPEX flat rates'!$B$2:$G$43,5)))*1,X$3:X24)+X728)*VLOOKUP(X$881,'F. UL & OPEX flat rates'!$B$2:$G$43,6,0)","v":0},{"$f":"(SUMPRODUCT(($A$3:$A24>($A904-VLOOKUP(Y$881,'F. UL & OPEX flat rates'!$B$2:$G$43,5)))*1,Y$3:Y24)+Y728)*VLOOKUP(Y$881,'F. UL & OPEX flat rates'!$B$2:$G$43,6,0)","v":0},{"$f":"(SUMPRODUCT(($A$3:$A24>($A904-VLOOKUP(Z$881,'F. UL & OPEX flat rates'!$B$2:$G$43,5)))*1,Z$3:Z24)+Z728)*VLOOKUP(Z$881,'F. UL & OPEX flat rates'!$B$2:$G$43,6,0)","v":0},{"$f":"(SUMPRODUCT(($A$3:$A24>($A904-VLOOKUP(AA$881,'F. UL & OPEX flat rates'!$B$2:$G$43,5)))*1,AA$3:AA24)+AA728)*VLOOKUP(AA$881,'F. UL & OPEX flat rates'!$B$2:$G$43,6,0)","v":0},{"$f":"(SUMPRODUCT(($A$3:$A24>($A904-VLOOKUP(AB$881,'F. UL & OPEX flat rates'!$B$2:$G$43,5)))*1,AB$3:AB24)+AB728)*VLOOKUP(AB$881,'F. UL & OPEX flat rates'!$B$2:$G$43,6,0)","v":0},{"$f":"(SUMPRODUCT(($A$3:$A24>($A904-VLOOKUP(AC$881,'F. UL & OPEX flat rates'!$B$2:$G$43,5)))*1,AC$3:AC24)+AC728)*VLOOKUP(AC$881,'F. UL & OPEX flat rates'!$B$2:$G$43,6,0)","v":0},{"$f":"(SUMPRODUCT(($A$3:$A24>($A904-VLOOKUP(AD$881,'F. UL & OPEX flat rates'!$B$2:$G$43,5)))*1,AD$3:AD24)+AD728)*VLOOKUP(AD$881,'F. UL & OPEX flat rates'!$B$2:$G$43,6,0)","v":0},{"$f":"(SUMPRODUCT(($A$3:$A24>($A904-VLOOKUP(AE$881,'F. UL & OPEX flat rates'!$B$2:$G$43,5)))*1,AE$3:AE24)+AE728)*VLOOKUP(AE$881,'F. UL & OPEX flat rates'!$B$2:$G$43,6,0)","v":0},{"$f":"(SUMPRODUCT(($A$3:$A24>($A904-VLOOKUP(AF$881,'F. UL & OPEX flat rates'!$B$2:$G$43,5)))*1,AF$3:AF24)+AF728)*VLOOKUP(AF$881,'F. UL & OPEX flat rates'!$B$2:$G$43,6,0)","v":0},{"$f":"(SUMPRODUCT(($A$3:$A24>($A904-VLOOKUP(AG$881,'F. UL & OPEX flat rates'!$B$2:$G$43,5)))*1,AG$3:AG24)+AG728)*VLOOKUP(AG$881,'F. UL & OPEX flat rates'!$B$2:$G$43,6,0)","v":0},{"$f":"(SUMPRODUCT(($A$3:$A24>($A904-VLOOKUP(AH$881,'F. UL & OPEX flat rates'!$B$2:$G$43,5)))*1,AH$3:AH24)+AH728)*VLOOKUP(AH$881,'F. UL & OPEX flat rates'!$B$2:$G$43,6,0)","v":0},{"$f":"(SUMPRODUCT(($A$3:$A24>($A904-VLOOKUP(AI$881,'F. UL & OPEX flat rates'!$B$2:$G$43,5)))*1,AI$3:AI24)+AI728)*VLOOKUP(AI$881,'F. UL & OPEX flat rates'!$B$2:$G$43,6,0)","v":0},{"$f":"(SUMPRODUCT(($A$3:$A24>($A904-VLOOKUP(AJ$881,'F. UL & OPEX flat rates'!$B$2:$G$43,5)))*1,AJ$3:AJ24)+AJ728)*VLOOKUP(AJ$881,'F. UL & OPEX flat rates'!$B$2:$G$43,6,0)","v":58000},{"$f":"(SUMPRODUCT(($A$3:$A24>($A904-VLOOKUP(AK$881,'F. UL & OPEX flat rates'!$B$2:$G$43,5)))*1,AK$3:AK24)+AK728)*VLOOKUP(AK$881,'F. UL & OPEX flat rates'!$B$2:$G$43,6,0)","v":0},{"$f":"(SUMPRODUCT(($A$3:$A24>($A904-VLOOKUP(AL$881,'F. UL & OPEX flat rates'!$B$2:$G$43,5)))*1,AL$3:AL24)+AL728)*VLOOKUP(AL$881,'F. UL & OPEX flat rates'!$B$2:$G$43,6,0)","v":0},{"$f":"(SUMPRODUCT(($A$3:$A24>($A904-VLOOKUP(AM$881,'F. UL & OPEX flat rates'!$B$2:$G$43,5)))*1,AM$3:AM24)+AM728)*VLOOKUP(AM$881,'F. UL & OPEX flat rates'!$B$2:$G$43,6,0)","v":0},{"$f":"(SUMPRODUCT(($A$3:$A24>($A904-VLOOKUP(AN$881,'F. UL & OPEX flat rates'!$B$2:$G$43,5)))*1,AN$3:AN24)+AN728)*VLOOKUP(AN$881,'F. UL & OPEX flat rates'!$B$2:$G$43,6,0)","v":0},{"$f":"(SUMPRODUCT(($A$3:$A24>($A904-VLOOKUP(AO$881,'F. UL & OPEX flat rates'!$B$2:$G$43,5)))*1,AO$3:AO24)+AO728)*VLOOKUP(AO$881,'F. UL & OPEX flat rates'!$B$2:$G$43,6,0)","v":0},{"$f":"(SUMPRODUCT(($A$3:$A24>($A904-VLOOKUP(AP$881,'F. UL & OPEX flat rates'!$B$2:$G$43,5)))*1,AP$3:AP24)+AP728)*VLOOKUP(AP$881,'F. UL & OPEX flat rates'!$B$2:$G$43,6,0)","v":0},{"$f":"(SUMPRODUCT(($A$3:$A24>($A904-VLOOKUP(AQ$881,'F. UL & OPEX flat rates'!$B$2:$G$43,5)))*1,AQ$3:AQ24)+AQ728)*VLOOKUP(AQ$881,'F. UL & OPEX flat rates'!$B$2:$G$43,6,0)","v":0}]
[2038,7858000,{"$f":"(SUMPRODUCT(($A$3:$A25>($A905-VLOOKUP(C$881,'F. UL & OPEX flat rates'!$B$2:$G$43,5)))*1,C$3:C25)+C729)*VLOOKUP(C$881,'F. UL & OPEX flat rates'!$B$2:$G$43,6,0)","v":0},{"$f":"(SUMPRODUCT(($A$3:$A25>($A905-VLOOKUP(D$881,'F. UL & OPEX flat rates'!$B$2:$G$43,5)))*1,D$3:D25)+D729)*VLOOKUP(D$881,'F. UL & OPEX flat rates'!$B$2:$G$43,6,0)","v":0},{"$f":"(SUMPRODUCT(($A$3:$A25>($A905-VLOOKUP(E$881,'F. UL & OPEX flat rates'!$B$2:$G$43,5)))*1,E$3:E25)+E729)*VLOOKUP(E$881,'F. UL & OPEX flat rates'!$B$2:$G$43,6,0)","v":0},{"$f":"(SUMPRODUCT(($A$3:$A25>($A905-VLOOKUP(F$881,'F. UL & OPEX flat rates'!$B$2:$G$43,5)))*1,F$3:F25)+F729)*VLOOKUP(F$881,'F. UL & OPEX flat rates'!$B$2:$G$43,6,0)","v":0},{"$f":"(SUMPRODUCT(($A$3:$A25>($A905-VLOOKUP(G$881,'F. UL & OPEX flat rates'!$B$2:$G$43,5)))*1,G$3:G25)+G729)*VLOOKUP(G$881,'F. UL & OPEX flat rates'!$B$2:$G$43,6,0)","v":0},{"$f":"(SUMPRODUCT(($A$3:$A25>($A905-VLOOKUP(H$881,'F. UL & OPEX flat rates'!$B$2:$G$43,5)))*1,H$3:H25)+H729)*VLOOKUP(H$881,'F. UL & OPEX flat rates'!$B$2:$G$43,6,0)","v":0},{"$f":"(SUMPRODUCT(($A$3:$A25>($A905-VLOOKUP(I$881,'F. UL & OPEX flat rates'!$B$2:$G$43,5)))*1,I$3:I25)+I729)*VLOOKUP(I$881,'F. UL & OPEX flat rates'!$B$2:$G$43,6,0)","v":0},{"$f":"(SUMPRODUCT(($A$3:$A25>($A905-VLOOKUP(J$881,'F. UL & OPEX flat rates'!$B$2:$G$43,5)))*1,J$3:J25)+J729)*VLOOKUP(J$881,'F. UL & OPEX flat rates'!$B$2:$G$43,6,0)","v":0},{"$f":"(SUMPRODUCT(($A$3:$A25>($A905-VLOOKUP(K$881,'F. UL & OPEX flat rates'!$B$2:$G$43,5)))*1,K$3:K25)+K729)*VLOOKUP(K$881,'F. UL & OPEX flat rates'!$B$2:$G$43,6,0)","v":0},{"$f":"(SUMPRODUCT(($A$3:$A25>($A905-VLOOKUP(L$881,'F. UL & OPEX flat rates'!$B$2:$G$43,5)))*1,L$3:L25)+L729)*VLOOKUP(L$881,'F. UL & OPEX flat rates'!$B$2:$G$43,6,0)","v":0},{"$f":"(SUMPRODUCT(($A$3:$A25>($A905-VLOOKUP(M$881,'F. UL & OPEX flat rates'!$B$2:$G$43,5)))*1,M$3:M25)+M729)*VLOOKUP(M$881,'F. UL & OPEX flat rates'!$B$2:$G$43,6,0)","v":0},{"$f":"(SUMPRODUCT(($A$3:$A25>($A905-VLOOKUP(N$881,'F. UL & OPEX flat rates'!$B$2:$G$43,5)))*1,N$3:N25)+N729)*VLOOKUP(N$881,'F. UL & OPEX flat rates'!$B$2:$G$43,6,0)","v":0},{"$f":"(SUMPRODUCT(($A$3:$A25>($A905-VLOOKUP(O$881,'F. UL & OPEX flat rates'!$B$2:$G$43,5)))*1,O$3:O25)+O729)*VLOOKUP(O$881,'F. UL & OPEX flat rates'!$B$2:$G$43,6,0)","v":0},{"$f":"(SUMPRODUCT(($A$3:$A25>($A905-VLOOKUP(P$881,'F. UL & OPEX flat rates'!$B$2:$G$43,5)))*1,P$3:P25)+P729)*VLOOKUP(P$881,'F. UL & OPEX flat rates'!$B$2:$G$43,6,0)","v":7800000},{"$f":"(SUMPRODUCT(($A$3:$A25>($A905-VLOOKUP(Q$881,'F. UL & OPEX flat rates'!$B$2:$G$43,5)))*1,Q$3:Q25)+Q729)*VLOOKUP(Q$881,'F. UL & OPEX flat rates'!$B$2:$G$43,6,0)","v":0},{"$f":"(SUMPRODUCT(($A$3:$A25>($A905-VLOOKUP(R$881,'F. UL & OPEX flat rates'!$B$2:$G$43,5)))*1,R$3:R25)+R729)*VLOOKUP(R$881,'F. UL & OPEX flat rates'!$B$2:$G$43,6,0)","v":0},{"$f":"(SUMPRODUCT(($A$3:$A25>($A905-VLOOKUP(S$881,'F. UL & OPEX flat rates'!$B$2:$G$43,5)))*1,S$3:S25)+S729)*VLOOKUP(S$881,'F. UL & OPEX flat rates'!$B$2:$G$43,6,0)","v":0},{"$f":"(SUMPRODUCT(($A$3:$A25>($A905-VLOOKUP(T$881,'F. UL & OPEX flat rates'!$B$2:$G$43,5)))*1,T$3:T25)+T729)*VLOOKUP(T$881,'F. UL & OPEX flat rates'!$B$2:$G$43,6,0)","v":0},{"$f":"(SUMPRODUCT(($A$3:$A25>($A905-VLOOKUP(U$881,'F. UL & OPEX flat rates'!$B$2:$G$43,5)))*1,U$3:U25)+U729)*VLOOKUP(U$881,'F. UL & OPEX flat rates'!$B$2:$G$43,6,0)","v":0},{"$f":"(SUMPRODUCT(($A$3:$A25>($A905-VLOOKUP(V$881,'F. UL & OPEX flat rates'!$B$2:$G$43,5)))*1,V$3:V25)+V729)*VLOOKUP(V$881,'F. UL & OPEX flat rates'!$B$2:$G$43,6,0)","v":0},{"$f":"(SUMPRODUCT(($A$3:$A25>($A905-VLOOKUP(W$881,'F. UL & OPEX flat rates'!$B$2:$G$43,5)))*1,W$3:W25)+W729)*VLOOKUP(W$881,'F. UL & OPEX flat rates'!$B$2:$G$43,6,0)","v":0},{"$f":"(SUMPRODUCT(($A$3:$A25>($A905-VLOOKUP(X$881,'F. UL & OPEX flat rates'!$B$2:$G$43,5)))*1,X$3:X25)+X729)*VLOOKUP(X$881,'F. UL & OPEX flat rates'!$B$2:$G$43,6,0)","v":0},{"$f":"(SUMPRODUCT(($A$3:$A25>($A905-VLOOKUP(Y$881,'F. UL & OPEX flat rates'!$B$2:$G$43,5)))*1,Y$3:Y25)+Y729)*VLOOKUP(Y$881,'F. UL & OPEX flat rates'!$B$2:$G$43,6,0)","v":0},{"$f":"(SUMPRODUCT(($A$3:$A25>($A905-VLOOKUP(Z$881,'F. UL & OPEX flat rates'!$B$2:$G$43,5)))*1,Z$3:Z25)+Z729)*VLOOKUP(Z$881,'F. UL & OPEX flat rates'!$B$2:$G$43,6,0)","v":0},{"$f":"(SUMPRODUCT(($A$3:$A25>($A905-VLOOKUP(AA$881,'F. UL & OPEX flat rates'!$B$2:$G$43,5)))*1,AA$3:AA25)+AA729)*VLOOKUP(AA$881,'F. UL & OPEX flat rates'!$B$2:$G$43,6,0)","v":0},{"$f":"(SUMPRODUCT(($A$3:$A25>($A905-VLOOKUP(AB$881,'F. UL & OPEX flat rates'!$B$2:$G$43,5)))*1,AB$3:AB25)+AB729)*VLOOKUP(AB$881,'F. UL & OPEX flat rates'!$B$2:$G$43,6,0)","v":0},{"$f":"(SUMPRODUCT(($A$3:$A25>($A905-VLOOKUP(AC$881,'F. UL & OPEX flat rates'!$B$2:$G$43,5)))*1,AC$3:AC25)+AC729)*VLOOKUP(AC$881,'F. UL & OPEX flat rates'!$B$2:$G$43,6,0)","v":0},{"$f":"(SUMPRODUCT(($A$3:$A25>($A905-VLOOKUP(AD$881,'F. UL & OPEX flat rates'!$B$2:$G$43,5)))*1,AD$3:AD25)+AD729)*VLOOKUP(AD$881,'F. UL & OPEX flat rates'!$B$2:$G$43,6,0)","v":0},{"$f":"(SUMPRODUCT(($A$3:$A25>($A905-VLOOKUP(AE$881,'F. UL & OPEX flat rates'!$B$2:$G$43,5)))*1,AE$3:AE25)+AE729)*VLOOKUP(AE$881,'F. UL & OPEX flat rates'!$B$2:$G$43,6,0)","v":0},{"$f":"(SUMPRODUCT(($A$3:$A25>($A905-VLOOKUP(AF$881,'F. UL & OPEX flat rates'!$B$2:$G$43,5)))*1,AF$3:AF25)+AF729)*VLOOKUP(AF$881,'F. UL & OPEX flat rates'!$B$2:$G$43,6,0)","v":0},{"$f":"(SUMPRODUCT(($A$3:$A25>($A905-VLOOKUP(AG$881,'F. UL & OPEX flat rates'!$B$2:$G$43,5)))*1,AG$3:AG25)+AG729)*VLOOKUP(AG$881,'F. UL & OPEX flat rates'!$B$2:$G$43,6,0)","v":0},{"$f":"(SUMPRODUCT(($A$3:$A25>($A905-VLOOKUP(AH$881,'F. UL & OPEX flat rates'!$B$2:$G$43,5)))*1,AH$3:AH25)+AH729)*VLOOKUP(AH$881,'F. UL & OPEX flat rates'!$B$2:$G$43,6,0)","v":0},{"$f":"(SUMPRODUCT(($A$3:$A25>($A905-VLOOKUP(AI$881,'F. UL & OPEX flat rates'!$B$2:$G$43,5)))*1,AI$3:AI25)+AI729)*VLOOKUP(AI$881,'F. UL & OPEX flat rates'!$B$2:$G$43,6,0)","v":0},{"$f":"(SUMPRODUCT(($A$3:$A25>($A905-VLOOKUP(AJ$881,'F. UL & OPEX flat rates'!$B$2:$G$43,5)))*1,AJ$3:AJ25)+AJ729)*VLOOKUP(AJ$881,'F. UL & OPEX flat rates'!$B$2:$G$43,6,0)","v":58000},{"$f":"(SUMPRODUCT(($A$3:$A25>($A905-VLOOKUP(AK$881,'F. UL & OPEX flat rates'!$B$2:$G$43,5)))*1,AK$3:AK25)+AK729)*VLOOKUP(AK$881,'F. UL & OPEX flat rates'!$B$2:$G$43,6,0)","v":0},{"$f":"(SUMPRODUCT(($A$3:$A25>($A905-VLOOKUP(AL$881,'F. UL & OPEX flat rates'!$B$2:$G$43,5)))*1,AL$3:AL25)+AL729)*VLOOKUP(AL$881,'F. UL & OPEX flat rates'!$B$2:$G$43,6,0)","v":0},{"$f":"(SUMPRODUCT(($A$3:$A25>($A905-VLOOKUP(AM$881,'F. UL & OPEX flat rates'!$B$2:$G$43,5)))*1,AM$3:AM25)+AM729)*VLOOKUP(AM$881,'F. UL & OPEX flat rates'!$B$2:$G$43,6,0)","v":0},{"$f":"(SUMPRODUCT(($A$3:$A25>($A905-VLOOKUP(AN$881,'F. UL & OPEX flat rates'!$B$2:$G$43,5)))*1,AN$3:AN25)+AN729)*VLOOKUP(AN$881,'F. UL & OPEX flat rates'!$B$2:$G$43,6,0)","v":0},{"$f":"(SUMPRODUCT(($A$3:$A25>($A905-VLOOKUP(AO$881,'F. UL & OPEX flat rates'!$B$2:$G$43,5)))*1,AO$3:AO25)+AO729)*VLOOKUP(AO$881,'F. UL & OPEX flat rates'!$B$2:$G$43,6,0)","v":0},{"$f":"(SUMPRODUCT(($A$3:$A25>($A905-VLOOKUP(AP$881,'F. UL & OPEX flat rates'!$B$2:$G$43,5)))*1,AP$3:AP25)+AP729)*VLOOKUP(AP$881,'F. UL & OPEX flat rates'!$B$2:$G$43,6,0)","v":0},{"$f":"(SUMPRODUCT(($A$3:$A25>($A905-VLOOKUP(AQ$881,'F. UL & OPEX flat rates'!$B$2:$G$43,5)))*1,AQ$3:AQ25)+AQ729)*VLOOKUP(AQ$881,'F. UL & OPEX flat rates'!$B$2:$G$43,6,0)","v":0}]
[2039,7858000,{"$f":"(SUMPRODUCT(($A$3:$A26>($A906-VLOOKUP(C$881,'F. UL & OPEX flat rates'!$B$2:$G$43,5)))*1,C$3:C26)+C730)*VLOOKUP(C$881,'F. UL & OPEX flat rates'!$B$2:$G$43,6,0)","v":0},{"$f":"(SUMPRODUCT(($A$3:$A26>($A906-VLOOKUP(D$881,'F. UL & OPEX flat rates'!$B$2:$G$43,5)))*1,D$3:D26)+D730)*VLOOKUP(D$881,'F. UL & OPEX flat rates'!$B$2:$G$43,6,0)","v":0},{"$f":"(SUMPRODUCT(($A$3:$A26>($A906-VLOOKUP(E$881,'F. UL & OPEX flat rates'!$B$2:$G$43,5)))*1,E$3:E26)+E730)*VLOOKUP(E$881,'F. UL & OPEX flat rates'!$B$2:$G$43,6,0)","v":0},{"$f":"(SUMPRODUCT(($A$3:$A26>($A906-VLOOKUP(F$881,'F. UL & OPEX flat rates'!$B$2:$G$43,5)))*1,F$3:F26)+F730)*VLOOKUP(F$881,'F. UL & OPEX flat rates'!$B$2:$G$43,6,0)","v":0},{"$f":"(SUMPRODUCT(($A$3:$A26>($A906-VLOOKUP(G$881,'F. UL & OPEX flat rates'!$B$2:$G$43,5)))*1,G$3:G26)+G730)*VLOOKUP(G$881,'F. UL & OPEX flat rates'!$B$2:$G$43,6,0)","v":0},{"$f":"(SUMPRODUCT(($A$3:$A26>($A906-VLOOKUP(H$881,'F. UL & OPEX flat rates'!$B$2:$G$43,5)))*1,H$3:H26)+H730)*VLOOKUP(H$881,'F. UL & OPEX flat rates'!$B$2:$G$43,6,0)","v":0},{"$f":"(SUMPRODUCT(($A$3:$A26>($A906-VLOOKUP(I$881,'F. UL & OPEX flat rates'!$B$2:$G$43,5)))*1,I$3:I26)+I730)*VLOOKUP(I$881,'F. UL & OPEX flat rates'!$B$2:$G$43,6,0)","v":0},{"$f":"(SUMPRODUCT(($A$3:$A26>($A906-VLOOKUP(J$881,'F. UL & OPEX flat rates'!$B$2:$G$43,5)))*1,J$3:J26)+J730)*VLOOKUP(J$881,'F. UL & OPEX flat rates'!$B$2:$G$43,6,0)","v":0},{"$f":"(SUMPRODUCT(($A$3:$A26>($A906-VLOOKUP(K$881,'F. UL & OPEX flat rates'!$B$2:$G$43,5)))*1,K$3:K26)+K730)*VLOOKUP(K$881,'F. UL & OPEX flat rates'!$B$2:$G$43,6,0)","v":0},{"$f":"(SUMPRODUCT(($A$3:$A26>($A906-VLOOKUP(L$881,'F. UL & OPEX flat rates'!$B$2:$G$43,5)))*1,L$3:L26)+L730)*VLOOKUP(L$881,'F. UL & OPEX flat rates'!$B$2:$G$43,6,0)","v":0},{"$f":"(SUMPRODUCT(($A$3:$A26>($A906-VLOOKUP(M$881,'F. UL & OPEX flat rates'!$B$2:$G$43,5)))*1,M$3:M26)+M730)*VLOOKUP(M$881,'F. UL & OPEX flat rates'!$B$2:$G$43,6,0)","v":0},{"$f":"(SUMPRODUCT(($A$3:$A26>($A906-VLOOKUP(N$881,'F. UL & OPEX flat rates'!$B$2:$G$43,5)))*1,N$3:N26)+N730)*VLOOKUP(N$881,'F. UL & OPEX flat rates'!$B$2:$G$43,6,0)","v":0},{"$f":"(SUMPRODUCT(($A$3:$A26>($A906-VLOOKUP(O$881,'F. UL & OPEX flat rates'!$B$2:$G$43,5)))*1,O$3:O26)+O730)*VLOOKUP(O$881,'F. UL & OPEX flat rates'!$B$2:$G$43,6,0)","v":0},{"$f":"(SUMPRODUCT(($A$3:$A26>($A906-VLOOKUP(P$881,'F. UL & OPEX flat rates'!$B$2:$G$43,5)))*1,P$3:P26)+P730)*VLOOKUP(P$881,'F. UL & OPEX flat rates'!$B$2:$G$43,6,0)","v":7800000},{"$f":"(SUMPRODUCT(($A$3:$A26>($A906-VLOOKUP(Q$881,'F. UL & OPEX flat rates'!$B$2:$G$43,5)))*1,Q$3:Q26)+Q730)*VLOOKUP(Q$881,'F. UL & OPEX flat rates'!$B$2:$G$43,6,0)","v":0},{"$f":"(SUMPRODUCT(($A$3:$A26>($A906-VLOOKUP(R$881,'F. UL & OPEX flat rates'!$B$2:$G$43,5)))*1,R$3:R26)+R730)*VLOOKUP(R$881,'F. UL & OPEX flat rates'!$B$2:$G$43,6,0)","v":0},{"$f":"(SUMPRODUCT(($A$3:$A26>($A906-VLOOKUP(S$881,'F. UL & OPEX flat rates'!$B$2:$G$43,5)))*1,S$3:S26)+S730)*VLOOKUP(S$881,'F. UL & OPEX flat rates'!$B$2:$G$43,6,0)","v":0},{"$f":"(SUMPRODUCT(($A$3:$A26>($A906-VLOOKUP(T$881,'F. UL & OPEX flat rates'!$B$2:$G$43,5)))*1,T$3:T26)+T730)*VLOOKUP(T$881,'F. UL & OPEX flat rates'!$B$2:$G$43,6,0)","v":0},{"$f":"(SUMPRODUCT(($A$3:$A26>($A906-VLOOKUP(U$881,'F. UL & OPEX flat rates'!$B$2:$G$43,5)))*1,U$3:U26)+U730)*VLOOKUP(U$881,'F. UL & OPEX flat rates'!$B$2:$G$43,6,0)","v":0},{"$f":"(SUMPRODUCT(($A$3:$A26>($A906-VLOOKUP(V$881,'F. UL & OPEX flat rates'!$B$2:$G$43,5)))*1,V$3:V26)+V730)*VLOOKUP(V$881,'F. UL & OPEX flat rates'!$B$2:$G$43,6,0)","v":0},{"$f":"(SUMPRODUCT(($A$3:$A26>($A906-VLOOKUP(W$881,'F. UL & OPEX flat rates'!$B$2:$G$43,5)))*1,W$3:W26)+W730)*VLOOKUP(W$881,'F. UL & OPEX flat rates'!$B$2:$G$43,6,0)","v":0},{"$f":"(SUMPRODUCT(($A$3:$A26>($A906-VLOOKUP(X$881,'F. UL & OPEX flat rates'!$B$2:$G$43,5)))*1,X$3:X26)+X730)*VLOOKUP(X$881,'F. UL & OPEX flat rates'!$B$2:$G$43,6,0)","v":0},{"$f":"(SUMPRODUCT(($A$3:$A26>($A906-VLOOKUP(Y$881,'F. UL & OPEX flat rates'!$B$2:$G$43,5)))*1,Y$3:Y26)+Y730)*VLOOKUP(Y$881,'F. UL & OPEX flat rates'!$B$2:$G$43,6,0)","v":0},{"$f":"(SUMPRODUCT(($A$3:$A26>($A906-VLOOKUP(Z$881,'F. UL & OPEX flat rates'!$B$2:$G$43,5)))*1,Z$3:Z26)+Z730)*VLOOKUP(Z$881,'F. UL & OPEX flat rates'!$B$2:$G$43,6,0)","v":0},{"$f":"(SUMPRODUCT(($A$3:$A26>($A906-VLOOKUP(AA$881,'F. UL & OPEX flat rates'!$B$2:$G$43,5)))*1,AA$3:AA26)+AA730)*VLOOKUP(AA$881,'F. UL & OPEX flat rates'!$B$2:$G$43,6,0)","v":0},{"$f":"(SUMPRODUCT(($A$3:$A26>($A906-VLOOKUP(AB$881,'F. UL & OPEX flat rates'!$B$2:$G$43,5)))*1,AB$3:AB26)+AB730)*VLOOKUP(AB$881,'F. UL & OPEX flat rates'!$B$2:$G$43,6,0)","v":0},{"$f":"(SUMPRODUCT(($A$3:$A26>($A906-VLOOKUP(AC$881,'F. UL & OPEX flat rates'!$B$2:$G$43,5)))*1,AC$3:AC26)+AC730)*VLOOKUP(AC$881,'F. UL & OPEX flat rates'!$B$2:$G$43,6,0)","v":0},{"$f":"(SUMPRODUCT(($A$3:$A26>($A906-VLOOKUP(AD$881,'F. UL & OPEX flat rates'!$B$2:$G$43,5)))*1,AD$3:AD26)+AD730)*VLOOKUP(AD$881,'F. UL & OPEX flat rates'!$B$2:$G$43,6,0)","v":0},{"$f":"(SUMPRODUCT(($A$3:$A26>($A906-VLOOKUP(AE$881,'F. UL & OPEX flat rates'!$B$2:$G$43,5)))*1,AE$3:AE26)+AE730)*VLOOKUP(AE$881,'F. UL & OPEX flat rates'!$B$2:$G$43,6,0)","v":0},{"$f":"(SUMPRODUCT(($A$3:$A26>($A906-VLOOKUP(AF$881,'F. UL & OPEX flat rates'!$B$2:$G$43,5)))*1,AF$3:AF26)+AF730)*VLOOKUP(AF$881,'F. UL & OPEX flat rates'!$B$2:$G$43,6,0)","v":0},{"$f":"(SUMPRODUCT(($A$3:$A26>($A906-VLOOKUP(AG$881,'F. UL & OPEX flat rates'!$B$2:$G$43,5)))*1,AG$3:AG26)+AG730)*VLOOKUP(AG$881,'F. UL & OPEX flat rates'!$B$2:$G$43,6,0)","v":0},{"$f":"(SUMPRODUCT(($A$3:$A26>($A906-VLOOKUP(AH$881,'F. UL & OPEX flat rates'!$B$2:$G$43,5)))*1,AH$3:AH26)+AH730)*VLOOKUP(AH$881,'F. UL & OPEX flat rates'!$B$2:$G$43,6,0)","v":0},{"$f":"(SUMPRODUCT(($A$3:$A26>($A906-VLOOKUP(AI$881,'F. UL & OPEX flat rates'!$B$2:$G$43,5)))*1,AI$3:AI26)+AI730)*VLOOKUP(AI$881,'F. UL & OPEX flat rates'!$B$2:$G$43,6,0)","v":0},{"$f":"(SUMPRODUCT(($A$3:$A26>($A906-VLOOKUP(AJ$881,'F. UL & OPEX flat rates'!$B$2:$G$43,5)))*1,AJ$3:AJ26)+AJ730)*VLOOKUP(AJ$881,'F. UL & OPEX flat rates'!$B$2:$G$43,6,0)","v":58000},{"$f":"(SUMPRODUCT(($A$3:$A26>($A906-VLOOKUP(AK$881,'F. UL & OPEX flat rates'!$B$2:$G$43,5)))*1,AK$3:AK26)+AK730)*VLOOKUP(AK$881,'F. UL & OPEX flat rates'!$B$2:$G$43,6,0)","v":0},{"$f":"(SUMPRODUCT(($A$3:$A26>($A906-VLOOKUP(AL$881,'F. UL & OPEX flat rates'!$B$2:$G$43,5)))*1,AL$3:AL26)+AL730)*VLOOKUP(AL$881,'F. UL & OPEX flat rates'!$B$2:$G$43,6,0)","v":0},{"$f":"(SUMPRODUCT(($A$3:$A26>($A906-VLOOKUP(AM$881,'F. UL & OPEX flat rates'!$B$2:$G$43,5)))*1,AM$3:AM26)+AM730)*VLOOKUP(AM$881,'F. UL & OPEX flat rates'!$B$2:$G$43,6,0)","v":0},{"$f":"(SUMPRODUCT(($A$3:$A26>($A906-VLOOKUP(AN$881,'F. UL & OPEX flat rates'!$B$2:$G$43,5)))*1,AN$3:AN26)+AN730)*VLOOKUP(AN$881,'F. UL & OPEX flat rates'!$B$2:$G$43,6,0)","v":0},{"$f":"(SUMPRODUCT(($A$3:$A26>($A906-VLOOKUP(AO$881,'F. UL & OPEX flat rates'!$B$2:$G$43,5)))*1,AO$3:AO26)+AO730)*VLOOKUP(AO$881,'F. UL & OPEX flat rates'!$B$2:$G$43,6,0)","v":0},{"$f":"(SUMPRODUCT(($A$3:$A26>($A906-VLOOKUP(AP$881,'F. UL & OPEX flat rates'!$B$2:$G$43,5)))*1,AP$3:AP26)+AP730)*VLOOKUP(AP$881,'F. UL & OPEX flat rates'!$B$2:$G$43,6,0)","v":0},{"$f":"(SUMPRODUCT(($A$3:$A26>($A906-VLOOKUP(AQ$881,'F. UL & OPEX flat rates'!$B$2:$G$43,5)))*1,AQ$3:AQ26)+AQ730)*VLOOKUP(AQ$881,'F. UL & OPEX flat rates'!$B$2:$G$43,6,0)","v":0}]
[2040,7858000,{"$f":"(SUMPRODUCT(($A$3:$A27>($A907-VLOOKUP(C$881,'F. UL & OPEX flat rates'!$B$2:$G$43,5)))*1,C$3:C27)+C731)*VLOOKUP(C$881,'F. UL & OPEX flat rates'!$B$2:$G$43,6,0)","v":0},{"$f":"(SUMPRODUCT(($A$3:$A27>($A907-VLOOKUP(D$881,'F. UL & OPEX flat rates'!$B$2:$G$43,5)))*1,D$3:D27)+D731)*VLOOKUP(D$881,'F. UL & OPEX flat rates'!$B$2:$G$43,6,0)","v":0},{"$f":"(SUMPRODUCT(($A$3:$A27>($A907-VLOOKUP(E$881,'F. UL & OPEX flat rates'!$B$2:$G$43,5)))*1,E$3:E27)+E731)*VLOOKUP(E$881,'F. UL & OPEX flat rates'!$B$2:$G$43,6,0)","v":0},{"$f":"(SUMPRODUCT(($A$3:$A27>($A907-VLOOKUP(F$881,'F. UL & OPEX flat rates'!$B$2:$G$43,5)))*1,F$3:F27)+F731)*VLOOKUP(F$881,'F. UL & OPEX flat rates'!$B$2:$G$43,6,0)","v":0},{"$f":"(SUMPRODUCT(($A$3:$A27>($A907-VLOOKUP(G$881,'F. UL & OPEX flat rates'!$B$2:$G$43,5)))*1,G$3:G27)+G731)*VLOOKUP(G$881,'F. UL & OPEX flat rates'!$B$2:$G$43,6,0)","v":0},{"$f":"(SUMPRODUCT(($A$3:$A27>($A907-VLOOKUP(H$881,'F. UL & OPEX flat rates'!$B$2:$G$43,5)))*1,H$3:H27)+H731)*VLOOKUP(H$881,'F. UL & OPEX flat rates'!$B$2:$G$43,6,0)","v":0},{"$f":"(SUMPRODUCT(($A$3:$A27>($A907-VLOOKUP(I$881,'F. UL & OPEX flat rates'!$B$2:$G$43,5)))*1,I$3:I27)+I731)*VLOOKUP(I$881,'F. UL & OPEX flat rates'!$B$2:$G$43,6,0)","v":0},{"$f":"(SUMPRODUCT(($A$3:$A27>($A907-VLOOKUP(J$881,'F. UL & OPEX flat rates'!$B$2:$G$43,5)))*1,J$3:J27)+J731)*VLOOKUP(J$881,'F. UL & OPEX flat rates'!$B$2:$G$43,6,0)","v":0},{"$f":"(SUMPRODUCT(($A$3:$A27>($A907-VLOOKUP(K$881,'F. UL & OPEX flat rates'!$B$2:$G$43,5)))*1,K$3:K27)+K731)*VLOOKUP(K$881,'F. UL & OPEX flat rates'!$B$2:$G$43,6,0)","v":0},{"$f":"(SUMPRODUCT(($A$3:$A27>($A907-VLOOKUP(L$881,'F. UL & OPEX flat rates'!$B$2:$G$43,5)))*1,L$3:L27)+L731)*VLOOKUP(L$881,'F. UL & OPEX flat rates'!$B$2:$G$43,6,0)","v":0},{"$f":"(SUMPRODUCT(($A$3:$A27>($A907-VLOOKUP(M$881,'F. UL & OPEX flat rates'!$B$2:$G$43,5)))*1,M$3:M27)+M731)*VLOOKUP(M$881,'F. UL & OPEX flat rates'!$B$2:$G$43,6,0)","v":0},{"$f":"(SUMPRODUCT(($A$3:$A27>($A907-VLOOKUP(N$881,'F. UL & OPEX flat rates'!$B$2:$G$43,5)))*1,N$3:N27)+N731)*VLOOKUP(N$881,'F. UL & OPEX flat rates'!$B$2:$G$43,6,0)","v":0},{"$f":"(SUMPRODUCT(($A$3:$A27>($A907-VLOOKUP(O$881,'F. UL & OPEX flat rates'!$B$2:$G$43,5)))*1,O$3:O27)+O731)*VLOOKUP(O$881,'F. UL & OPEX flat rates'!$B$2:$G$43,6,0)","v":0},{"$f":"(SUMPRODUCT(($A$3:$A27>($A907-VLOOKUP(P$881,'F. UL & OPEX flat rates'!$B$2:$G$43,5)))*1,P$3:P27)+P731)*VLOOKUP(P$881,'F. UL & OPEX flat rates'!$B$2:$G$43,6,0)","v":7800000},{"$f":"(SUMPRODUCT(($A$3:$A27>($A907-VLOOKUP(Q$881,'F. UL & OPEX flat rates'!$B$2:$G$43,5)))*1,Q$3:Q27)+Q731)*VLOOKUP(Q$881,'F. UL & OPEX flat rates'!$B$2:$G$43,6,0)","v":0},{"$f":"(SUMPRODUCT(($A$3:$A27>($A907-VLOOKUP(R$881,'F. UL & OPEX flat rates'!$B$2:$G$43,5)))*1,R$3:R27)+R731)*VLOOKUP(R$881,'F. UL & OPEX flat rates'!$B$2:$G$43,6,0)","v":0},{"$f":"(SUMPRODUCT(($A$3:$A27>($A907-VLOOKUP(S$881,'F. UL & OPEX flat rates'!$B$2:$G$43,5)))*1,S$3:S27)+S731)*VLOOKUP(S$881,'F. UL & OPEX flat rates'!$B$2:$G$43,6,0)","v":0},{"$f":"(SUMPRODUCT(($A$3:$A27>($A907-VLOOKUP(T$881,'F. UL & OPEX flat rates'!$B$2:$G$43,5)))*1,T$3:T27)+T731)*VLOOKUP(T$881,'F. UL & OPEX flat rates'!$B$2:$G$43,6,0)","v":0},{"$f":"(SUMPRODUCT(($A$3:$A27>($A907-VLOOKUP(U$881,'F. UL & OPEX flat rates'!$B$2:$G$43,5)))*1,U$3:U27)+U731)*VLOOKUP(U$881,'F. UL & OPEX flat rates'!$B$2:$G$43,6,0)","v":0},{"$f":"(SUMPRODUCT(($A$3:$A27>($A907-VLOOKUP(V$881,'F. UL & OPEX flat rates'!$B$2:$G$43,5)))*1,V$3:V27)+V731)*VLOOKUP(V$881,'F. UL & OPEX flat rates'!$B$2:$G$43,6,0)","v":0},{"$f":"(SUMPRODUCT(($A$3:$A27>($A907-VLOOKUP(W$881,'F. UL & OPEX flat rates'!$B$2:$G$43,5)))*1,W$3:W27)+W731)*VLOOKUP(W$881,'F. UL & OPEX flat rates'!$B$2:$G$43,6,0)","v":0},{"$f":"(SUMPRODUCT(($A$3:$A27>($A907-VLOOKUP(X$881,'F. UL & OPEX flat rates'!$B$2:$G$43,5)))*1,X$3:X27)+X731)*VLOOKUP(X$881,'F. UL & OPEX flat rates'!$B$2:$G$43,6,0)","v":0},{"$f":"(SUMPRODUCT(($A$3:$A27>($A907-VLOOKUP(Y$881,'F. UL & OPEX flat rates'!$B$2:$G$43,5)))*1,Y$3:Y27)+Y731)*VLOOKUP(Y$881,'F. UL & OPEX flat rates'!$B$2:$G$43,6,0)","v":0},{"$f":"(SUMPRODUCT(($A$3:$A27>($A907-VLOOKUP(Z$881,'F. UL & OPEX flat rates'!$B$2:$G$43,5)))*1,Z$3:Z27)+Z731)*VLOOKUP(Z$881,'F. UL & OPEX flat rates'!$B$2:$G$43,6,0)","v":0},{"$f":"(SUMPRODUCT(($A$3:$A27>($A907-VLOOKUP(AA$881,'F. UL & OPEX flat rates'!$B$2:$G$43,5)))*1,AA$3:AA27)+AA731)*VLOOKUP(AA$881,'F. UL & OPEX flat rates'!$B$2:$G$43,6,0)","v":0},{"$f":"(SUMPRODUCT(($A$3:$A27>($A907-VLOOKUP(AB$881,'F. UL & OPEX flat rates'!$B$2:$G$43,5)))*1,AB$3:AB27)+AB731)*VLOOKUP(AB$881,'F. UL & OPEX flat rates'!$B$2:$G$43,6,0)","v":0},{"$f":"(SUMPRODUCT(($A$3:$A27>($A907-VLOOKUP(AC$881,'F. UL & OPEX flat rates'!$B$2:$G$43,5)))*1,AC$3:AC27)+AC731)*VLOOKUP(AC$881,'F. UL & OPEX flat rates'!$B$2:$G$43,6,0)","v":0},{"$f":"(SUMPRODUCT(($A$3:$A27>($A907-VLOOKUP(AD$881,'F. UL & OPEX flat rates'!$B$2:$G$43,5)))*1,AD$3:AD27)+AD731)*VLOOKUP(AD$881,'F. UL & OPEX flat rates'!$B$2:$G$43,6,0)","v":0},{"$f":"(SUMPRODUCT(($A$3:$A27>($A907-VLOOKUP(AE$881,'F. UL & OPEX flat rates'!$B$2:$G$43,5)))*1,AE$3:AE27)+AE731)*VLOOKUP(AE$881,'F. UL & OPEX flat rates'!$B$2:$G$43,6,0)","v":0},{"$f":"(SUMPRODUCT(($A$3:$A27>($A907-VLOOKUP(AF$881,'F. UL & OPEX flat rates'!$B$2:$G$43,5)))*1,AF$3:AF27)+AF731)*VLOOKUP(AF$881,'F. UL & OPEX flat rates'!$B$2:$G$43,6,0)","v":0},{"$f":"(SUMPRODUCT(($A$3:$A27>($A907-VLOOKUP(AG$881,'F. UL & OPEX flat rates'!$B$2:$G$43,5)))*1,AG$3:AG27)+AG731)*VLOOKUP(AG$881,'F. UL & OPEX flat rates'!$B$2:$G$43,6,0)","v":0},{"$f":"(SUMPRODUCT(($A$3:$A27>($A907-VLOOKUP(AH$881,'F. UL & OPEX flat rates'!$B$2:$G$43,5)))*1,AH$3:AH27)+AH731)*VLOOKUP(AH$881,'F. UL & OPEX flat rates'!$B$2:$G$43,6,0)","v":0},{"$f":"(SUMPRODUCT(($A$3:$A27>($A907-VLOOKUP(AI$881,'F. UL & OPEX flat rates'!$B$2:$G$43,5)))*1,AI$3:AI27)+AI731)*VLOOKUP(AI$881,'F. UL & OPEX flat rates'!$B$2:$G$43,6,0)","v":0},{"$f":"(SUMPRODUCT(($A$3:$A27>($A907-VLOOKUP(AJ$881,'F. UL & OPEX flat rates'!$B$2:$G$43,5)))*1,AJ$3:AJ27)+AJ731)*VLOOKUP(AJ$881,'F. UL & OPEX flat rates'!$B$2:$G$43,6,0)","v":58000},{"$f":"(SUMPRODUCT(($A$3:$A27>($A907-VLOOKUP(AK$881,'F. UL & OPEX flat rates'!$B$2:$G$43,5)))*1,AK$3:AK27)+AK731)*VLOOKUP(AK$881,'F. UL & OPEX flat rates'!$B$2:$G$43,6,0)","v":0},{"$f":"(SUMPRODUCT(($A$3:$A27>($A907-VLOOKUP(AL$881,'F. UL & OPEX flat rates'!$B$2:$G$43,5)))*1,AL$3:AL27)+AL731)*VLOOKUP(AL$881,'F. UL & OPEX flat rates'!$B$2:$G$43,6,0)","v":0},{"$f":"(SUMPRODUCT(($A$3:$A27>($A907-VLOOKUP(AM$881,'F. UL & OPEX flat rates'!$B$2:$G$43,5)))*1,AM$3:AM27)+AM731)*VLOOKUP(AM$881,'F. UL & OPEX flat rates'!$B$2:$G$43,6,0)","v":0},{"$f":"(SUMPRODUCT(($A$3:$A27>($A907-VLOOKUP(AN$881,'F. UL & OPEX flat rates'!$B$2:$G$43,5)))*1,AN$3:AN27)+AN731)*VLOOKUP(AN$881,'F. UL & OPEX flat rates'!$B$2:$G$43,6,0)","v":0},{"$f":"(SUMPRODUCT(($A$3:$A27>($A907-VLOOKUP(AO$881,'F. UL & OPEX flat rates'!$B$2:$G$43,5)))*1,AO$3:AO27)+AO731)*VLOOKUP(AO$881,'F. UL & OPEX flat rates'!$B$2:$G$43,6,0)","v":0},{"$f":"(SUMPRODUCT(($A$3:$A27>($A907-VLOOKUP(AP$881,'F. UL & OPEX flat rates'!$B$2:$G$43,5)))*1,AP$3:AP27)+AP731)*VLOOKUP(AP$881,'F. UL & OPEX flat rates'!$B$2:$G$43,6,0)","v":0},{"$f":"(SUMPRODUCT(($A$3:$A27>($A907-VLOOKUP(AQ$881,'F. UL & OPEX flat rates'!$B$2:$G$43,5)))*1,AQ$3:AQ27)+AQ731)*VLOOKUP(AQ$881,'F. UL & OPEX flat rates'!$B$2:$G$43,6,0)","v":0}]
[2041,7858000,{"$f":"(SUMPRODUCT(($A$3:$A28>($A908-VLOOKUP(C$881,'F. UL & OPEX flat rates'!$B$2:$G$43,5)))*1,C$3:C28)+C732)*VLOOKUP(C$881,'F. UL & OPEX flat rates'!$B$2:$G$43,6,0)","v":0},{"$f":"(SUMPRODUCT(($A$3:$A28>($A908-VLOOKUP(D$881,'F. UL & OPEX flat rates'!$B$2:$G$43,5)))*1,D$3:D28)+D732)*VLOOKUP(D$881,'F. UL & OPEX flat rates'!$B$2:$G$43,6,0)","v":0},{"$f":"(SUMPRODUCT(($A$3:$A28>($A908-VLOOKUP(E$881,'F. UL & OPEX flat rates'!$B$2:$G$43,5)))*1,E$3:E28)+E732)*VLOOKUP(E$881,'F. UL & OPEX flat rates'!$B$2:$G$43,6,0)","v":0},{"$f":"(SUMPRODUCT(($A$3:$A28>($A908-VLOOKUP(F$881,'F. UL & OPEX flat rates'!$B$2:$G$43,5)))*1,F$3:F28)+F732)*VLOOKUP(F$881,'F. UL & OPEX flat rates'!$B$2:$G$43,6,0)","v":0},{"$f":"(SUMPRODUCT(($A$3:$A28>($A908-VLOOKUP(G$881,'F. UL & OPEX flat rates'!$B$2:$G$43,5)))*1,G$3:G28)+G732)*VLOOKUP(G$881,'F. UL & OPEX flat rates'!$B$2:$G$43,6,0)","v":0},{"$f":"(SUMPRODUCT(($A$3:$A28>($A908-VLOOKUP(H$881,'F. UL & OPEX flat rates'!$B$2:$G$43,5)))*1,H$3:H28)+H732)*VLOOKUP(H$881,'F. UL & OPEX flat rates'!$B$2:$G$43,6,0)","v":0},{"$f":"(SUMPRODUCT(($A$3:$A28>($A908-VLOOKUP(I$881,'F. UL & OPEX flat rates'!$B$2:$G$43,5)))*1,I$3:I28)+I732)*VLOOKUP(I$881,'F. UL & OPEX flat rates'!$B$2:$G$43,6,0)","v":0},{"$f":"(SUMPRODUCT(($A$3:$A28>($A908-VLOOKUP(J$881,'F. UL & OPEX flat rates'!$B$2:$G$43,5)))*1,J$3:J28)+J732)*VLOOKUP(J$881,'F. UL & OPEX flat rates'!$B$2:$G$43,6,0)","v":0},{"$f":"(SUMPRODUCT(($A$3:$A28>($A908-VLOOKUP(K$881,'F. UL & OPEX flat rates'!$B$2:$G$43,5)))*1,K$3:K28)+K732)*VLOOKUP(K$881,'F. UL & OPEX flat rates'!$B$2:$G$43,6,0)","v":0},{"$f":"(SUMPRODUCT(($A$3:$A28>($A908-VLOOKUP(L$881,'F. UL & OPEX flat rates'!$B$2:$G$43,5)))*1,L$3:L28)+L732)*VLOOKUP(L$881,'F. UL & OPEX flat rates'!$B$2:$G$43,6,0)","v":0},{"$f":"(SUMPRODUCT(($A$3:$A28>($A908-VLOOKUP(M$881,'F. UL & OPEX flat rates'!$B$2:$G$43,5)))*1,M$3:M28)+M732)*VLOOKUP(M$881,'F. UL & OPEX flat rates'!$B$2:$G$43,6,0)","v":0},{"$f":"(SUMPRODUCT(($A$3:$A28>($A908-VLOOKUP(N$881,'F. UL & OPEX flat rates'!$B$2:$G$43,5)))*1,N$3:N28)+N732)*VLOOKUP(N$881,'F. UL & OPEX flat rates'!$B$2:$G$43,6,0)","v":0},{"$f":"(SUMPRODUCT(($A$3:$A28>($A908-VLOOKUP(O$881,'F. UL & OPEX flat rates'!$B$2:$G$43,5)))*1,O$3:O28)+O732)*VLOOKUP(O$881,'F. UL & OPEX flat rates'!$B$2:$G$43,6,0)","v":0},{"$f":"(SUMPRODUCT(($A$3:$A28>($A908-VLOOKUP(P$881,'F. UL & OPEX flat rates'!$B$2:$G$43,5)))*1,P$3:P28)+P732)*VLOOKUP(P$881,'F. UL & OPEX flat rates'!$B$2:$G$43,6,0)","v":7800000},{"$f":"(SUMPRODUCT(($A$3:$A28>($A908-VLOOKUP(Q$881,'F. UL & OPEX flat rates'!$B$2:$G$43,5)))*1,Q$3:Q28)+Q732)*VLOOKUP(Q$881,'F. UL & OPEX flat rates'!$B$2:$G$43,6,0)","v":0},{"$f":"(SUMPRODUCT(($A$3:$A28>($A908-VLOOKUP(R$881,'F. UL & OPEX flat rates'!$B$2:$G$43,5)))*1,R$3:R28)+R732)*VLOOKUP(R$881,'F. UL & OPEX flat rates'!$B$2:$G$43,6,0)","v":0},{"$f":"(SUMPRODUCT(($A$3:$A28>($A908-VLOOKUP(S$881,'F. UL & OPEX flat rates'!$B$2:$G$43,5)))*1,S$3:S28)+S732)*VLOOKUP(S$881,'F. UL & OPEX flat rates'!$B$2:$G$43,6,0)","v":0},{"$f":"(SUMPRODUCT(($A$3:$A28>($A908-VLOOKUP(T$881,'F. UL & OPEX flat rates'!$B$2:$G$43,5)))*1,T$3:T28)+T732)*VLOOKUP(T$881,'F. UL & OPEX flat rates'!$B$2:$G$43,6,0)","v":0},{"$f":"(SUMPRODUCT(($A$3:$A28>($A908-VLOOKUP(U$881,'F. UL & OPEX flat rates'!$B$2:$G$43,5)))*1,U$3:U28)+U732)*VLOOKUP(U$881,'F. UL & OPEX flat rates'!$B$2:$G$43,6,0)","v":0},{"$f":"(SUMPRODUCT(($A$3:$A28>($A908-VLOOKUP(V$881,'F. UL & OPEX flat rates'!$B$2:$G$43,5)))*1,V$3:V28)+V732)*VLOOKUP(V$881,'F. UL & OPEX flat rates'!$B$2:$G$43,6,0)","v":0},{"$f":"(SUMPRODUCT(($A$3:$A28>($A908-VLOOKUP(W$881,'F. UL & OPEX flat rates'!$B$2:$G$43,5)))*1,W$3:W28)+W732)*VLOOKUP(W$881,'F. UL & OPEX flat rates'!$B$2:$G$43,6,0)","v":0},{"$f":"(SUMPRODUCT(($A$3:$A28>($A908-VLOOKUP(X$881,'F. UL & OPEX flat rates'!$B$2:$G$43,5)))*1,X$3:X28)+X732)*VLOOKUP(X$881,'F. UL & OPEX flat rates'!$B$2:$G$43,6,0)","v":0},{"$f":"(SUMPRODUCT(($A$3:$A28>($A908-VLOOKUP(Y$881,'F. UL & OPEX flat rates'!$B$2:$G$43,5)))*1,Y$3:Y28)+Y732)*VLOOKUP(Y$881,'F. UL & OPEX flat rates'!$B$2:$G$43,6,0)","v":0},{"$f":"(SUMPRODUCT(($A$3:$A28>($A908-VLOOKUP(Z$881,'F. UL & OPEX flat rates'!$B$2:$G$43,5)))*1,Z$3:Z28)+Z732)*VLOOKUP(Z$881,'F. UL & OPEX flat rates'!$B$2:$G$43,6,0)","v":0},{"$f":"(SUMPRODUCT(($A$3:$A28>($A908-VLOOKUP(AA$881,'F. UL & OPEX flat rates'!$B$2:$G$43,5)))*1,AA$3:AA28)+AA732)*VLOOKUP(AA$881,'F. UL & OPEX flat rates'!$B$2:$G$43,6,0)","v":0},{"$f":"(SUMPRODUCT(($A$3:$A28>($A908-VLOOKUP(AB$881,'F. UL & OPEX flat rates'!$B$2:$G$43,5)))*1,AB$3:AB28)+AB732)*VLOOKUP(AB$881,'F. UL & OPEX flat rates'!$B$2:$G$43,6,0)","v":0},{"$f":"(SUMPRODUCT(($A$3:$A28>($A908-VLOOKUP(AC$881,'F. UL & OPEX flat rates'!$B$2:$G$43,5)))*1,AC$3:AC28)+AC732)*VLOOKUP(AC$881,'F. UL & OPEX flat rates'!$B$2:$G$43,6,0)","v":0},{"$f":"(SUMPRODUCT(($A$3:$A28>($A908-VLOOKUP(AD$881,'F. UL & OPEX flat rates'!$B$2:$G$43,5)))*1,AD$3:AD28)+AD732)*VLOOKUP(AD$881,'F. UL & OPEX flat rates'!$B$2:$G$43,6,0)","v":0},{"$f":"(SUMPRODUCT(($A$3:$A28>($A908-VLOOKUP(AE$881,'F. UL & OPEX flat rates'!$B$2:$G$43,5)))*1,AE$3:AE28)+AE732)*VLOOKUP(AE$881,'F. UL & OPEX flat rates'!$B$2:$G$43,6,0)","v":0},{"$f":"(SUMPRODUCT(($A$3:$A28>($A908-VLOOKUP(AF$881,'F. UL & OPEX flat rates'!$B$2:$G$43,5)))*1,AF$3:AF28)+AF732)*VLOOKUP(AF$881,'F. UL & OPEX flat rates'!$B$2:$G$43,6,0)","v":0},{"$f":"(SUMPRODUCT(($A$3:$A28>($A908-VLOOKUP(AG$881,'F. UL & OPEX flat rates'!$B$2:$G$43,5)))*1,AG$3:AG28)+AG732)*VLOOKUP(AG$881,'F. UL & OPEX flat rates'!$B$2:$G$43,6,0)","v":0},{"$f":"(SUMPRODUCT(($A$3:$A28>($A908-VLOOKUP(AH$881,'F. UL & OPEX flat rates'!$B$2:$G$43,5)))*1,AH$3:AH28)+AH732)*VLOOKUP(AH$881,'F. UL & OPEX flat rates'!$B$2:$G$43,6,0)","v":0},{"$f":"(SUMPRODUCT(($A$3:$A28>($A908-VLOOKUP(AI$881,'F. UL & OPEX flat rates'!$B$2:$G$43,5)))*1,AI$3:AI28)+AI732)*VLOOKUP(AI$881,'F. UL & OPEX flat rates'!$B$2:$G$43,6,0)","v":0},{"$f":"(SUMPRODUCT(($A$3:$A28>($A908-VLOOKUP(AJ$881,'F. UL & OPEX flat rates'!$B$2:$G$43,5)))*1,AJ$3:AJ28)+AJ732)*VLOOKUP(AJ$881,'F. UL & OPEX flat rates'!$B$2:$G$43,6,0)","v":58000},{"$f":"(SUMPRODUCT(($A$3:$A28>($A908-VLOOKUP(AK$881,'F. UL & OPEX flat rates'!$B$2:$G$43,5)))*1,AK$3:AK28)+AK732)*VLOOKUP(AK$881,'F. UL & OPEX flat rates'!$B$2:$G$43,6,0)","v":0},{"$f":"(SUMPRODUCT(($A$3:$A28>($A908-VLOOKUP(AL$881,'F. UL & OPEX flat rates'!$B$2:$G$43,5)))*1,AL$3:AL28)+AL732)*VLOOKUP(AL$881,'F. UL & OPEX flat rates'!$B$2:$G$43,6,0)","v":0},{"$f":"(SUMPRODUCT(($A$3:$A28>($A908-VLOOKUP(AM$881,'F. UL & OPEX flat rates'!$B$2:$G$43,5)))*1,AM$3:AM28)+AM732)*VLOOKUP(AM$881,'F. UL & OPEX flat rates'!$B$2:$G$43,6,0)","v":0},{"$f":"(SUMPRODUCT(($A$3:$A28>($A908-VLOOKUP(AN$881,'F. UL & OPEX flat rates'!$B$2:$G$43,5)))*1,AN$3:AN28)+AN732)*VLOOKUP(AN$881,'F. UL & OPEX flat rates'!$B$2:$G$43,6,0)","v":0},{"$f":"(SUMPRODUCT(($A$3:$A28>($A908-VLOOKUP(AO$881,'F. UL & OPEX flat rates'!$B$2:$G$43,5)))*1,AO$3:AO28)+AO732)*VLOOKUP(AO$881,'F. UL & OPEX flat rates'!$B$2:$G$43,6,0)","v":0},{"$f":"(SUMPRODUCT(($A$3:$A28>($A908-VLOOKUP(AP$881,'F. UL & OPEX flat rates'!$B$2:$G$43,5)))*1,AP$3:AP28)+AP732)*VLOOKUP(AP$881,'F. UL & OPEX flat rates'!$B$2:$G$43,6,0)","v":0},{"$f":"(SUMPRODUCT(($A$3:$A28>($A908-VLOOKUP(AQ$881,'F. UL & OPEX flat rates'!$B$2:$G$43,5)))*1,AQ$3:AQ28)+AQ732)*VLOOKUP(AQ$881,'F. UL & OPEX flat rates'!$B$2:$G$43,6,0)","v":0}]
[2042,7858000,{"$f":"(SUMPRODUCT(($A$3:$A29>($A909-VLOOKUP(C$881,'F. UL & OPEX flat rates'!$B$2:$G$43,5)))*1,C$3:C29)+C733)*VLOOKUP(C$881,'F. UL & OPEX flat rates'!$B$2:$G$43,6,0)","v":0},{"$f":"(SUMPRODUCT(($A$3:$A29>($A909-VLOOKUP(D$881,'F. UL & OPEX flat rates'!$B$2:$G$43,5)))*1,D$3:D29)+D733)*VLOOKUP(D$881,'F. UL & OPEX flat rates'!$B$2:$G$43,6,0)","v":0},{"$f":"(SUMPRODUCT(($A$3:$A29>($A909-VLOOKUP(E$881,'F. UL & OPEX flat rates'!$B$2:$G$43,5)))*1,E$3:E29)+E733)*VLOOKUP(E$881,'F. UL & OPEX flat rates'!$B$2:$G$43,6,0)","v":0},{"$f":"(SUMPRODUCT(($A$3:$A29>($A909-VLOOKUP(F$881,'F. UL & OPEX flat rates'!$B$2:$G$43,5)))*1,F$3:F29)+F733)*VLOOKUP(F$881,'F. UL & OPEX flat rates'!$B$2:$G$43,6,0)","v":0},{"$f":"(SUMPRODUCT(($A$3:$A29>($A909-VLOOKUP(G$881,'F. UL & OPEX flat rates'!$B$2:$G$43,5)))*1,G$3:G29)+G733)*VLOOKUP(G$881,'F. UL & OPEX flat rates'!$B$2:$G$43,6,0)","v":0},{"$f":"(SUMPRODUCT(($A$3:$A29>($A909-VLOOKUP(H$881,'F. UL & OPEX flat rates'!$B$2:$G$43,5)))*1,H$3:H29)+H733)*VLOOKUP(H$881,'F. UL & OPEX flat rates'!$B$2:$G$43,6,0)","v":0},{"$f":"(SUMPRODUCT(($A$3:$A29>($A909-VLOOKUP(I$881,'F. UL & OPEX flat rates'!$B$2:$G$43,5)))*1,I$3:I29)+I733)*VLOOKUP(I$881,'F. UL & OPEX flat rates'!$B$2:$G$43,6,0)","v":0},{"$f":"(SUMPRODUCT(($A$3:$A29>($A909-VLOOKUP(J$881,'F. UL & OPEX flat rates'!$B$2:$G$43,5)))*1,J$3:J29)+J733)*VLOOKUP(J$881,'F. UL & OPEX flat rates'!$B$2:$G$43,6,0)","v":0},{"$f":"(SUMPRODUCT(($A$3:$A29>($A909-VLOOKUP(K$881,'F. UL & OPEX flat rates'!$B$2:$G$43,5)))*1,K$3:K29)+K733)*VLOOKUP(K$881,'F. UL & OPEX flat rates'!$B$2:$G$43,6,0)","v":0},{"$f":"(SUMPRODUCT(($A$3:$A29>($A909-VLOOKUP(L$881,'F. UL & OPEX flat rates'!$B$2:$G$43,5)))*1,L$3:L29)+L733)*VLOOKUP(L$881,'F. UL & OPEX flat rates'!$B$2:$G$43,6,0)","v":0},{"$f":"(SUMPRODUCT(($A$3:$A29>($A909-VLOOKUP(M$881,'F. UL & OPEX flat rates'!$B$2:$G$43,5)))*1,M$3:M29)+M733)*VLOOKUP(M$881,'F. UL & OPEX flat rates'!$B$2:$G$43,6,0)","v":0},{"$f":"(SUMPRODUCT(($A$3:$A29>($A909-VLOOKUP(N$881,'F. UL & OPEX flat rates'!$B$2:$G$43,5)))*1,N$3:N29)+N733)*VLOOKUP(N$881,'F. UL & OPEX flat rates'!$B$2:$G$43,6,0)","v":0},{"$f":"(SUMPRODUCT(($A$3:$A29>($A909-VLOOKUP(O$881,'F. UL & OPEX flat rates'!$B$2:$G$43,5)))*1,O$3:O29)+O733)*VLOOKUP(O$881,'F. UL & OPEX flat rates'!$B$2:$G$43,6,0)","v":0},{"$f":"(SUMPRODUCT(($A$3:$A29>($A909-VLOOKUP(P$881,'F. UL & OPEX flat rates'!$B$2:$G$43,5)))*1,P$3:P29)+P733)*VLOOKUP(P$881,'F. UL & OPEX flat rates'!$B$2:$G$43,6,0)","v":7800000},{"$f":"(SUMPRODUCT(($A$3:$A29>($A909-VLOOKUP(Q$881,'F. UL & OPEX flat rates'!$B$2:$G$43,5)))*1,Q$3:Q29)+Q733)*VLOOKUP(Q$881,'F. UL & OPEX flat rates'!$B$2:$G$43,6,0)","v":0},{"$f":"(SUMPRODUCT(($A$3:$A29>($A909-VLOOKUP(R$881,'F. UL & OPEX flat rates'!$B$2:$G$43,5)))*1,R$3:R29)+R733)*VLOOKUP(R$881,'F. UL & OPEX flat rates'!$B$2:$G$43,6,0)","v":0},{"$f":"(SUMPRODUCT(($A$3:$A29>($A909-VLOOKUP(S$881,'F. UL & OPEX flat rates'!$B$2:$G$43,5)))*1,S$3:S29)+S733)*VLOOKUP(S$881,'F. UL & OPEX flat rates'!$B$2:$G$43,6,0)","v":0},{"$f":"(SUMPRODUCT(($A$3:$A29>($A909-VLOOKUP(T$881,'F. UL & OPEX flat rates'!$B$2:$G$43,5)))*1,T$3:T29)+T733)*VLOOKUP(T$881,'F. UL & OPEX flat rates'!$B$2:$G$43,6,0)","v":0},{"$f":"(SUMPRODUCT(($A$3:$A29>($A909-VLOOKUP(U$881,'F. UL & OPEX flat rates'!$B$2:$G$43,5)))*1,U$3:U29)+U733)*VLOOKUP(U$881,'F. UL & OPEX flat rates'!$B$2:$G$43,6,0)","v":0},{"$f":"(SUMPRODUCT(($A$3:$A29>($A909-VLOOKUP(V$881,'F. UL & OPEX flat rates'!$B$2:$G$43,5)))*1,V$3:V29)+V733)*VLOOKUP(V$881,'F. UL & OPEX flat rates'!$B$2:$G$43,6,0)","v":0},{"$f":"(SUMPRODUCT(($A$3:$A29>($A909-VLOOKUP(W$881,'F. UL & OPEX flat rates'!$B$2:$G$43,5)))*1,W$3:W29)+W733)*VLOOKUP(W$881,'F. UL & OPEX flat rates'!$B$2:$G$43,6,0)","v":0},{"$f":"(SUMPRODUCT(($A$3:$A29>($A909-VLOOKUP(X$881,'F. UL & OPEX flat rates'!$B$2:$G$43,5)))*1,X$3:X29)+X733)*VLOOKUP(X$881,'F. UL & OPEX flat rates'!$B$2:$G$43,6,0)","v":0},{"$f":"(SUMPRODUCT(($A$3:$A29>($A909-VLOOKUP(Y$881,'F. UL & OPEX flat rates'!$B$2:$G$43,5)))*1,Y$3:Y29)+Y733)*VLOOKUP(Y$881,'F. UL & OPEX flat rates'!$B$2:$G$43,6,0)","v":0},{"$f":"(SUMPRODUCT(($A$3:$A29>($A909-VLOOKUP(Z$881,'F. UL & OPEX flat rates'!$B$2:$G$43,5)))*1,Z$3:Z29)+Z733)*VLOOKUP(Z$881,'F. UL & OPEX flat rates'!$B$2:$G$43,6,0)","v":0},{"$f":"(SUMPRODUCT(($A$3:$A29>($A909-VLOOKUP(AA$881,'F. UL & OPEX flat rates'!$B$2:$G$43,5)))*1,AA$3:AA29)+AA733)*VLOOKUP(AA$881,'F. UL & OPEX flat rates'!$B$2:$G$43,6,0)","v":0},{"$f":"(SUMPRODUCT(($A$3:$A29>($A909-VLOOKUP(AB$881,'F. UL & OPEX flat rates'!$B$2:$G$43,5)))*1,AB$3:AB29)+AB733)*VLOOKUP(AB$881,'F. UL & OPEX flat rates'!$B$2:$G$43,6,0)","v":0},{"$f":"(SUMPRODUCT(($A$3:$A29>($A909-VLOOKUP(AC$881,'F. UL & OPEX flat rates'!$B$2:$G$43,5)))*1,AC$3:AC29)+AC733)*VLOOKUP(AC$881,'F. UL & OPEX flat rates'!$B$2:$G$43,6,0)","v":0},{"$f":"(SUMPRODUCT(($A$3:$A29>($A909-VLOOKUP(AD$881,'F. UL & OPEX flat rates'!$B$2:$G$43,5)))*1,AD$3:AD29)+AD733)*VLOOKUP(AD$881,'F. UL & OPEX flat rates'!$B$2:$G$43,6,0)","v":0},{"$f":"(SUMPRODUCT(($A$3:$A29>($A909-VLOOKUP(AE$881,'F. UL & OPEX flat rates'!$B$2:$G$43,5)))*1,AE$3:AE29)+AE733)*VLOOKUP(AE$881,'F. UL & OPEX flat rates'!$B$2:$G$43,6,0)","v":0},{"$f":"(SUMPRODUCT(($A$3:$A29>($A909-VLOOKUP(AF$881,'F. UL & OPEX flat rates'!$B$2:$G$43,5)))*1,AF$3:AF29)+AF733)*VLOOKUP(AF$881,'F. UL & OPEX flat rates'!$B$2:$G$43,6,0)","v":0},{"$f":"(SUMPRODUCT(($A$3:$A29>($A909-VLOOKUP(AG$881,'F. UL & OPEX flat rates'!$B$2:$G$43,5)))*1,AG$3:AG29)+AG733)*VLOOKUP(AG$881,'F. UL & OPEX flat rates'!$B$2:$G$43,6,0)","v":0},{"$f":"(SUMPRODUCT(($A$3:$A29>($A909-VLOOKUP(AH$881,'F. UL & OPEX flat rates'!$B$2:$G$43,5)))*1,AH$3:AH29)+AH733)*VLOOKUP(AH$881,'F. UL & OPEX flat rates'!$B$2:$G$43,6,0)","v":0},{"$f":"(SUMPRODUCT(($A$3:$A29>($A909-VLOOKUP(AI$881,'F. UL & OPEX flat rates'!$B$2:$G$43,5)))*1,AI$3:AI29)+AI733)*VLOOKUP(AI$881,'F. UL & OPEX flat rates'!$B$2:$G$43,6,0)","v":0},{"$f":"(SUMPRODUCT(($A$3:$A29>($A909-VLOOKUP(AJ$881,'F. UL & OPEX flat rates'!$B$2:$G$43,5)))*1,AJ$3:AJ29)+AJ733)*VLOOKUP(AJ$881,'F. UL & OPEX flat rates'!$B$2:$G$43,6,0)","v":58000},{"$f":"(SUMPRODUCT(($A$3:$A29>($A909-VLOOKUP(AK$881,'F. UL & OPEX flat rates'!$B$2:$G$43,5)))*1,AK$3:AK29)+AK733)*VLOOKUP(AK$881,'F. UL & OPEX flat rates'!$B$2:$G$43,6,0)","v":0},{"$f":"(SUMPRODUCT(($A$3:$A29>($A909-VLOOKUP(AL$881,'F. UL & OPEX flat rates'!$B$2:$G$43,5)))*1,AL$3:AL29)+AL733)*VLOOKUP(AL$881,'F. UL & OPEX flat rates'!$B$2:$G$43,6,0)","v":0},{"$f":"(SUMPRODUCT(($A$3:$A29>($A909-VLOOKUP(AM$881,'F. UL & OPEX flat rates'!$B$2:$G$43,5)))*1,AM$3:AM29)+AM733)*VLOOKUP(AM$881,'F. UL & OPEX flat rates'!$B$2:$G$43,6,0)","v":0},{"$f":"(SUMPRODUCT(($A$3:$A29>($A909-VLOOKUP(AN$881,'F. UL & OPEX flat rates'!$B$2:$G$43,5)))*1,AN$3:AN29)+AN733)*VLOOKUP(AN$881,'F. UL & OPEX flat rates'!$B$2:$G$43,6,0)","v":0},{"$f":"(SUMPRODUCT(($A$3:$A29>($A909-VLOOKUP(AO$881,'F. UL & OPEX flat rates'!$B$2:$G$43,5)))*1,AO$3:AO29)+AO733)*VLOOKUP(AO$881,'F. UL & OPEX flat rates'!$B$2:$G$43,6,0)","v":0},{"$f":"(SUMPRODUCT(($A$3:$A29>($A909-VLOOKUP(AP$881,'F. UL & OPEX flat rates'!$B$2:$G$43,5)))*1,AP$3:AP29)+AP733)*VLOOKUP(AP$881,'F. UL & OPEX flat rates'!$B$2:$G$43,6,0)","v":0},{"$f":"(SUMPRODUCT(($A$3:$A29>($A909-VLOOKUP(AQ$881,'F. UL & OPEX flat rates'!$B$2:$G$43,5)))*1,AQ$3:AQ29)+AQ733)*VLOOKUP(AQ$881,'F. UL & OPEX flat rates'!$B$2:$G$43,6,0)","v":0}]
[2043,7858000,{"$f":"(SUMPRODUCT(($A$3:$A30>($A910-VLOOKUP(C$881,'F. UL & OPEX flat rates'!$B$2:$G$43,5)))*1,C$3:C30)+C734)*VLOOKUP(C$881,'F. UL & OPEX flat rates'!$B$2:$G$43,6,0)","v":0},{"$f":"(SUMPRODUCT(($A$3:$A30>($A910-VLOOKUP(D$881,'F. UL & OPEX flat rates'!$B$2:$G$43,5)))*1,D$3:D30)+D734)*VLOOKUP(D$881,'F. UL & OPEX flat rates'!$B$2:$G$43,6,0)","v":0},{"$f":"(SUMPRODUCT(($A$3:$A30>($A910-VLOOKUP(E$881,'F. UL & OPEX flat rates'!$B$2:$G$43,5)))*1,E$3:E30)+E734)*VLOOKUP(E$881,'F. UL & OPEX flat rates'!$B$2:$G$43,6,0)","v":0},{"$f":"(SUMPRODUCT(($A$3:$A30>($A910-VLOOKUP(F$881,'F. UL & OPEX flat rates'!$B$2:$G$43,5)))*1,F$3:F30)+F734)*VLOOKUP(F$881,'F. UL & OPEX flat rates'!$B$2:$G$43,6,0)","v":0},{"$f":"(SUMPRODUCT(($A$3:$A30>($A910-VLOOKUP(G$881,'F. UL & OPEX flat rates'!$B$2:$G$43,5)))*1,G$3:G30)+G734)*VLOOKUP(G$881,'F. UL & OPEX flat rates'!$B$2:$G$43,6,0)","v":0},{"$f":"(SUMPRODUCT(($A$3:$A30>($A910-VLOOKUP(H$881,'F. UL & OPEX flat rates'!$B$2:$G$43,5)))*1,H$3:H30)+H734)*VLOOKUP(H$881,'F. UL & OPEX flat rates'!$B$2:$G$43,6,0)","v":0},{"$f":"(SUMPRODUCT(($A$3:$A30>($A910-VLOOKUP(I$881,'F. UL & OPEX flat rates'!$B$2:$G$43,5)))*1,I$3:I30)+I734)*VLOOKUP(I$881,'F. UL & OPEX flat rates'!$B$2:$G$43,6,0)","v":0},{"$f":"(SUMPRODUCT(($A$3:$A30>($A910-VLOOKUP(J$881,'F. UL & OPEX flat rates'!$B$2:$G$43,5)))*1,J$3:J30)+J734)*VLOOKUP(J$881,'F. UL & OPEX flat rates'!$B$2:$G$43,6,0)","v":0},{"$f":"(SUMPRODUCT(($A$3:$A30>($A910-VLOOKUP(K$881,'F. UL & OPEX flat rates'!$B$2:$G$43,5)))*1,K$3:K30)+K734)*VLOOKUP(K$881,'F. UL & OPEX flat rates'!$B$2:$G$43,6,0)","v":0},{"$f":"(SUMPRODUCT(($A$3:$A30>($A910-VLOOKUP(L$881,'F. UL & OPEX flat rates'!$B$2:$G$43,5)))*1,L$3:L30)+L734)*VLOOKUP(L$881,'F. UL & OPEX flat rates'!$B$2:$G$43,6,0)","v":0},{"$f":"(SUMPRODUCT(($A$3:$A30>($A910-VLOOKUP(M$881,'F. UL & OPEX flat rates'!$B$2:$G$43,5)))*1,M$3:M30)+M734)*VLOOKUP(M$881,'F. UL & OPEX flat rates'!$B$2:$G$43,6,0)","v":0},{"$f":"(SUMPRODUCT(($A$3:$A30>($A910-VLOOKUP(N$881,'F. UL & OPEX flat rates'!$B$2:$G$43,5)))*1,N$3:N30)+N734)*VLOOKUP(N$881,'F. UL & OPEX flat rates'!$B$2:$G$43,6,0)","v":0},{"$f":"(SUMPRODUCT(($A$3:$A30>($A910-VLOOKUP(O$881,'F. UL & OPEX flat rates'!$B$2:$G$43,5)))*1,O$3:O30)+O734)*VLOOKUP(O$881,'F. UL & OPEX flat rates'!$B$2:$G$43,6,0)","v":0},{"$f":"(SUMPRODUCT(($A$3:$A30>($A910-VLOOKUP(P$881,'F. UL & OPEX flat rates'!$B$2:$G$43,5)))*1,P$3:P30)+P734)*VLOOKUP(P$881,'F. UL & OPEX flat rates'!$B$2:$G$43,6,0)","v":7800000},{"$f":"(SUMPRODUCT(($A$3:$A30>($A910-VLOOKUP(Q$881,'F. UL & OPEX flat rates'!$B$2:$G$43,5)))*1,Q$3:Q30)+Q734)*VLOOKUP(Q$881,'F. UL & OPEX flat rates'!$B$2:$G$43,6,0)","v":0},{"$f":"(SUMPRODUCT(($A$3:$A30>($A910-VLOOKUP(R$881,'F. UL & OPEX flat rates'!$B$2:$G$43,5)))*1,R$3:R30)+R734)*VLOOKUP(R$881,'F. UL & OPEX flat rates'!$B$2:$G$43,6,0)","v":0},{"$f":"(SUMPRODUCT(($A$3:$A30>($A910-VLOOKUP(S$881,'F. UL & OPEX flat rates'!$B$2:$G$43,5)))*1,S$3:S30)+S734)*VLOOKUP(S$881,'F. UL & OPEX flat rates'!$B$2:$G$43,6,0)","v":0},{"$f":"(SUMPRODUCT(($A$3:$A30>($A910-VLOOKUP(T$881,'F. UL & OPEX flat rates'!$B$2:$G$43,5)))*1,T$3:T30)+T734)*VLOOKUP(T$881,'F. UL & OPEX flat rates'!$B$2:$G$43,6,0)","v":0},{"$f":"(SUMPRODUCT(($A$3:$A30>($A910-VLOOKUP(U$881,'F. UL & OPEX flat rates'!$B$2:$G$43,5)))*1,U$3:U30)+U734)*VLOOKUP(U$881,'F. UL & OPEX flat rates'!$B$2:$G$43,6,0)","v":0},{"$f":"(SUMPRODUCT(($A$3:$A30>($A910-VLOOKUP(V$881,'F. UL & OPEX flat rates'!$B$2:$G$43,5)))*1,V$3:V30)+V734)*VLOOKUP(V$881,'F. UL & OPEX flat rates'!$B$2:$G$43,6,0)","v":0},{"$f":"(SUMPRODUCT(($A$3:$A30>($A910-VLOOKUP(W$881,'F. UL & OPEX flat rates'!$B$2:$G$43,5)))*1,W$3:W30)+W734)*VLOOKUP(W$881,'F. UL & OPEX flat rates'!$B$2:$G$43,6,0)","v":0},{"$f":"(SUMPRODUCT(($A$3:$A30>($A910-VLOOKUP(X$881,'F. UL & OPEX flat rates'!$B$2:$G$43,5)))*1,X$3:X30)+X734)*VLOOKUP(X$881,'F. UL & OPEX flat rates'!$B$2:$G$43,6,0)","v":0},{"$f":"(SUMPRODUCT(($A$3:$A30>($A910-VLOOKUP(Y$881,'F. UL & OPEX flat rates'!$B$2:$G$43,5)))*1,Y$3:Y30)+Y734)*VLOOKUP(Y$881,'F. UL & OPEX flat rates'!$B$2:$G$43,6,0)","v":0},{"$f":"(SUMPRODUCT(($A$3:$A30>($A910-VLOOKUP(Z$881,'F. UL & OPEX flat rates'!$B$2:$G$43,5)))*1,Z$3:Z30)+Z734)*VLOOKUP(Z$881,'F. UL & OPEX flat rates'!$B$2:$G$43,6,0)","v":0},{"$f":"(SUMPRODUCT(($A$3:$A30>($A910-VLOOKUP(AA$881,'F. UL & OPEX flat rates'!$B$2:$G$43,5)))*1,AA$3:AA30)+AA734)*VLOOKUP(AA$881,'F. UL & OPEX flat rates'!$B$2:$G$43,6,0)","v":0},{"$f":"(SUMPRODUCT(($A$3:$A30>($A910-VLOOKUP(AB$881,'F. UL & OPEX flat rates'!$B$2:$G$43,5)))*1,AB$3:AB30)+AB734)*VLOOKUP(AB$881,'F. UL & OPEX flat rates'!$B$2:$G$43,6,0)","v":0},{"$f":"(SUMPRODUCT(($A$3:$A30>($A910-VLOOKUP(AC$881,'F. UL & OPEX flat rates'!$B$2:$G$43,5)))*1,AC$3:AC30)+AC734)*VLOOKUP(AC$881,'F. UL & OPEX flat rates'!$B$2:$G$43,6,0)","v":0},{"$f":"(SUMPRODUCT(($A$3:$A30>($A910-VLOOKUP(AD$881,'F. UL & OPEX flat rates'!$B$2:$G$43,5)))*1,AD$3:AD30)+AD734)*VLOOKUP(AD$881,'F. UL & OPEX flat rates'!$B$2:$G$43,6,0)","v":0},{"$f":"(SUMPRODUCT(($A$3:$A30>($A910-VLOOKUP(AE$881,'F. UL & OPEX flat rates'!$B$2:$G$43,5)))*1,AE$3:AE30)+AE734)*VLOOKUP(AE$881,'F. UL & OPEX flat rates'!$B$2:$G$43,6,0)","v":0},{"$f":"(SUMPRODUCT(($A$3:$A30>($A910-VLOOKUP(AF$881,'F. UL & OPEX flat rates'!$B$2:$G$43,5)))*1,AF$3:AF30)+AF734)*VLOOKUP(AF$881,'F. UL & OPEX flat rates'!$B$2:$G$43,6,0)","v":0},{"$f":"(SUMPRODUCT(($A$3:$A30>($A910-VLOOKUP(AG$881,'F. UL & OPEX flat rates'!$B$2:$G$43,5)))*1,AG$3:AG30)+AG734)*VLOOKUP(AG$881,'F. UL & OPEX flat rates'!$B$2:$G$43,6,0)","v":0},{"$f":"(SUMPRODUCT(($A$3:$A30>($A910-VLOOKUP(AH$881,'F. UL & OPEX flat rates'!$B$2:$G$43,5)))*1,AH$3:AH30)+AH734)*VLOOKUP(AH$881,'F. UL & OPEX flat rates'!$B$2:$G$43,6,0)","v":0},{"$f":"(SUMPRODUCT(($A$3:$A30>($A910-VLOOKUP(AI$881,'F. UL & OPEX flat rates'!$B$2:$G$43,5)))*1,AI$3:AI30)+AI734)*VLOOKUP(AI$881,'F. UL & OPEX flat rates'!$B$2:$G$43,6,0)","v":0},{"$f":"(SUMPRODUCT(($A$3:$A30>($A910-VLOOKUP(AJ$881,'F. UL & OPEX flat rates'!$B$2:$G$43,5)))*1,AJ$3:AJ30)+AJ734)*VLOOKUP(AJ$881,'F. UL & OPEX flat rates'!$B$2:$G$43,6,0)","v":58000},{"$f":"(SUMPRODUCT(($A$3:$A30>($A910-VLOOKUP(AK$881,'F. UL & OPEX flat rates'!$B$2:$G$43,5)))*1,AK$3:AK30)+AK734)*VLOOKUP(AK$881,'F. UL & OPEX flat rates'!$B$2:$G$43,6,0)","v":0},{"$f":"(SUMPRODUCT(($A$3:$A30>($A910-VLOOKUP(AL$881,'F. UL & OPEX flat rates'!$B$2:$G$43,5)))*1,AL$3:AL30)+AL734)*VLOOKUP(AL$881,'F. UL & OPEX flat rates'!$B$2:$G$43,6,0)","v":0},{"$f":"(SUMPRODUCT(($A$3:$A30>($A910-VLOOKUP(AM$881,'F. UL & OPEX flat rates'!$B$2:$G$43,5)))*1,AM$3:AM30)+AM734)*VLOOKUP(AM$881,'F. UL & OPEX flat rates'!$B$2:$G$43,6,0)","v":0},{"$f":"(SUMPRODUCT(($A$3:$A30>($A910-VLOOKUP(AN$881,'F. UL & OPEX flat rates'!$B$2:$G$43,5)))*1,AN$3:AN30)+AN734)*VLOOKUP(AN$881,'F. UL & OPEX flat rates'!$B$2:$G$43,6,0)","v":0},{"$f":"(SUMPRODUCT(($A$3:$A30>($A910-VLOOKUP(AO$881,'F. UL & OPEX flat rates'!$B$2:$G$43,5)))*1,AO$3:AO30)+AO734)*VLOOKUP(AO$881,'F. UL & OPEX flat rates'!$B$2:$G$43,6,0)","v":0},{"$f":"(SUMPRODUCT(($A$3:$A30>($A910-VLOOKUP(AP$881,'F. UL & OPEX flat rates'!$B$2:$G$43,5)))*1,AP$3:AP30)+AP734)*VLOOKUP(AP$881,'F. UL & OPEX flat rates'!$B$2:$G$43,6,0)","v":0},{"$f":"(SUMPRODUCT(($A$3:$A30>($A910-VLOOKUP(AQ$881,'F. UL & OPEX flat rates'!$B$2:$G$43,5)))*1,AQ$3:AQ30)+AQ734)*VLOOKUP(AQ$881,'F. UL & OPEX flat rates'!$B$2:$G$43,6,0)","v":0}]
[2044,7858000,{"$f":"(SUMPRODUCT(($A$3:$A31>($A911-VLOOKUP(C$881,'F. UL & OPEX flat rates'!$B$2:$G$43,5)))*1,C$3:C31)+C735)*VLOOKUP(C$881,'F. UL & OPEX flat rates'!$B$2:$G$43,6,0)","v":0},{"$f":"(SUMPRODUCT(($A$3:$A31>($A911-VLOOKUP(D$881,'F. UL & OPEX flat rates'!$B$2:$G$43,5)))*1,D$3:D31)+D735)*VLOOKUP(D$881,'F. UL & OPEX flat rates'!$B$2:$G$43,6,0)","v":0},{"$f":"(SUMPRODUCT(($A$3:$A31>($A911-VLOOKUP(E$881,'F. UL & OPEX flat rates'!$B$2:$G$43,5)))*1,E$3:E31)+E735)*VLOOKUP(E$881,'F. UL & OPEX flat rates'!$B$2:$G$43,6,0)","v":0},{"$f":"(SUMPRODUCT(($A$3:$A31>($A911-VLOOKUP(F$881,'F. UL & OPEX flat rates'!$B$2:$G$43,5)))*1,F$3:F31)+F735)*VLOOKUP(F$881,'F. UL & OPEX flat rates'!$B$2:$G$43,6,0)","v":0},{"$f":"(SUMPRODUCT(($A$3:$A31>($A911-VLOOKUP(G$881,'F. UL & OPEX flat rates'!$B$2:$G$43,5)))*1,G$3:G31)+G735)*VLOOKUP(G$881,'F. UL & OPEX flat rates'!$B$2:$G$43,6,0)","v":0},{"$f":"(SUMPRODUCT(($A$3:$A31>($A911-VLOOKUP(H$881,'F. UL & OPEX flat rates'!$B$2:$G$43,5)))*1,H$3:H31)+H735)*VLOOKUP(H$881,'F. UL & OPEX flat rates'!$B$2:$G$43,6,0)","v":0},{"$f":"(SUMPRODUCT(($A$3:$A31>($A911-VLOOKUP(I$881,'F. UL & OPEX flat rates'!$B$2:$G$43,5)))*1,I$3:I31)+I735)*VLOOKUP(I$881,'F. UL & OPEX flat rates'!$B$2:$G$43,6,0)","v":0},{"$f":"(SUMPRODUCT(($A$3:$A31>($A911-VLOOKUP(J$881,'F. UL & OPEX flat rates'!$B$2:$G$43,5)))*1,J$3:J31)+J735)*VLOOKUP(J$881,'F. UL & OPEX flat rates'!$B$2:$G$43,6,0)","v":0},{"$f":"(SUMPRODUCT(($A$3:$A31>($A911-VLOOKUP(K$881,'F. UL & OPEX flat rates'!$B$2:$G$43,5)))*1,K$3:K31)+K735)*VLOOKUP(K$881,'F. UL & OPEX flat rates'!$B$2:$G$43,6,0)","v":0},{"$f":"(SUMPRODUCT(($A$3:$A31>($A911-VLOOKUP(L$881,'F. UL & OPEX flat rates'!$B$2:$G$43,5)))*1,L$3:L31)+L735)*VLOOKUP(L$881,'F. UL & OPEX flat rates'!$B$2:$G$43,6,0)","v":0},{"$f":"(SUMPRODUCT(($A$3:$A31>($A911-VLOOKUP(M$881,'F. UL & OPEX flat rates'!$B$2:$G$43,5)))*1,M$3:M31)+M735)*VLOOKUP(M$881,'F. UL & OPEX flat rates'!$B$2:$G$43,6,0)","v":0},{"$f":"(SUMPRODUCT(($A$3:$A31>($A911-VLOOKUP(N$881,'F. UL & OPEX flat rates'!$B$2:$G$43,5)))*1,N$3:N31)+N735)*VLOOKUP(N$881,'F. UL & OPEX flat rates'!$B$2:$G$43,6,0)","v":0},{"$f":"(SUMPRODUCT(($A$3:$A31>($A911-VLOOKUP(O$881,'F. UL & OPEX flat rates'!$B$2:$G$43,5)))*1,O$3:O31)+O735)*VLOOKUP(O$881,'F. UL & OPEX flat rates'!$B$2:$G$43,6,0)","v":0},{"$f":"(SUMPRODUCT(($A$3:$A31>($A911-VLOOKUP(P$881,'F. UL & OPEX flat rates'!$B$2:$G$43,5)))*1,P$3:P31)+P735)*VLOOKUP(P$881,'F. UL & OPEX flat rates'!$B$2:$G$43,6,0)","v":7800000},{"$f":"(SUMPRODUCT(($A$3:$A31>($A911-VLOOKUP(Q$881,'F. UL & OPEX flat rates'!$B$2:$G$43,5)))*1,Q$3:Q31)+Q735)*VLOOKUP(Q$881,'F. UL & OPEX flat rates'!$B$2:$G$43,6,0)","v":0},{"$f":"(SUMPRODUCT(($A$3:$A31>($A911-VLOOKUP(R$881,'F. UL & OPEX flat rates'!$B$2:$G$43,5)))*1,R$3:R31)+R735)*VLOOKUP(R$881,'F. UL & OPEX flat rates'!$B$2:$G$43,6,0)","v":0},{"$f":"(SUMPRODUCT(($A$3:$A31>($A911-VLOOKUP(S$881,'F. UL & OPEX flat rates'!$B$2:$G$43,5)))*1,S$3:S31)+S735)*VLOOKUP(S$881,'F. UL & OPEX flat rates'!$B$2:$G$43,6,0)","v":0},{"$f":"(SUMPRODUCT(($A$3:$A31>($A911-VLOOKUP(T$881,'F. UL & OPEX flat rates'!$B$2:$G$43,5)))*1,T$3:T31)+T735)*VLOOKUP(T$881,'F. UL & OPEX flat rates'!$B$2:$G$43,6,0)","v":0},{"$f":"(SUMPRODUCT(($A$3:$A31>($A911-VLOOKUP(U$881,'F. UL & OPEX flat rates'!$B$2:$G$43,5)))*1,U$3:U31)+U735)*VLOOKUP(U$881,'F. UL & OPEX flat rates'!$B$2:$G$43,6,0)","v":0},{"$f":"(SUMPRODUCT(($A$3:$A31>($A911-VLOOKUP(V$881,'F. UL & OPEX flat rates'!$B$2:$G$43,5)))*1,V$3:V31)+V735)*VLOOKUP(V$881,'F. UL & OPEX flat rates'!$B$2:$G$43,6,0)","v":0},{"$f":"(SUMPRODUCT(($A$3:$A31>($A911-VLOOKUP(W$881,'F. UL & OPEX flat rates'!$B$2:$G$43,5)))*1,W$3:W31)+W735)*VLOOKUP(W$881,'F. UL & OPEX flat rates'!$B$2:$G$43,6,0)","v":0},{"$f":"(SUMPRODUCT(($A$3:$A31>($A911-VLOOKUP(X$881,'F. UL & OPEX flat rates'!$B$2:$G$43,5)))*1,X$3:X31)+X735)*VLOOKUP(X$881,'F. UL & OPEX flat rates'!$B$2:$G$43,6,0)","v":0},{"$f":"(SUMPRODUCT(($A$3:$A31>($A911-VLOOKUP(Y$881,'F. UL & OPEX flat rates'!$B$2:$G$43,5)))*1,Y$3:Y31)+Y735)*VLOOKUP(Y$881,'F. UL & OPEX flat rates'!$B$2:$G$43,6,0)","v":0},{"$f":"(SUMPRODUCT(($A$3:$A31>($A911-VLOOKUP(Z$881,'F. UL & OPEX flat rates'!$B$2:$G$43,5)))*1,Z$3:Z31)+Z735)*VLOOKUP(Z$881,'F. UL & OPEX flat rates'!$B$2:$G$43,6,0)","v":0},{"$f":"(SUMPRODUCT(($A$3:$A31>($A911-VLOOKUP(AA$881,'F. UL & OPEX flat rates'!$B$2:$G$43,5)))*1,AA$3:AA31)+AA735)*VLOOKUP(AA$881,'F. UL & OPEX flat rates'!$B$2:$G$43,6,0)","v":0},{"$f":"(SUMPRODUCT(($A$3:$A31>($A911-VLOOKUP(AB$881,'F. UL & OPEX flat rates'!$B$2:$G$43,5)))*1,AB$3:AB31)+AB735)*VLOOKUP(AB$881,'F. UL & OPEX flat rates'!$B$2:$G$43,6,0)","v":0},{"$f":"(SUMPRODUCT(($A$3:$A31>($A911-VLOOKUP(AC$881,'F. UL & OPEX flat rates'!$B$2:$G$43,5)))*1,AC$3:AC31)+AC735)*VLOOKUP(AC$881,'F. UL & OPEX flat rates'!$B$2:$G$43,6,0)","v":0},{"$f":"(SUMPRODUCT(($A$3:$A31>($A911-VLOOKUP(AD$881,'F. UL & OPEX flat rates'!$B$2:$G$43,5)))*1,AD$3:AD31)+AD735)*VLOOKUP(AD$881,'F. UL & OPEX flat rates'!$B$2:$G$43,6,0)","v":0},{"$f":"(SUMPRODUCT(($A$3:$A31>($A911-VLOOKUP(AE$881,'F. UL & OPEX flat rates'!$B$2:$G$43,5)))*1,AE$3:AE31)+AE735)*VLOOKUP(AE$881,'F. UL & OPEX flat rates'!$B$2:$G$43,6,0)","v":0},{"$f":"(SUMPRODUCT(($A$3:$A31>($A911-VLOOKUP(AF$881,'F. UL & OPEX flat rates'!$B$2:$G$43,5)))*1,AF$3:AF31)+AF735)*VLOOKUP(AF$881,'F. UL & OPEX flat rates'!$B$2:$G$43,6,0)","v":0},{"$f":"(SUMPRODUCT(($A$3:$A31>($A911-VLOOKUP(AG$881,'F. UL & OPEX flat rates'!$B$2:$G$43,5)))*1,AG$3:AG31)+AG735)*VLOOKUP(AG$881,'F. UL & OPEX flat rates'!$B$2:$G$43,6,0)","v":0},{"$f":"(SUMPRODUCT(($A$3:$A31>($A911-VLOOKUP(AH$881,'F. UL & OPEX flat rates'!$B$2:$G$43,5)))*1,AH$3:AH31)+AH735)*VLOOKUP(AH$881,'F. UL & OPEX flat rates'!$B$2:$G$43,6,0)","v":0},{"$f":"(SUMPRODUCT(($A$3:$A31>($A911-VLOOKUP(AI$881,'F. UL & OPEX flat rates'!$B$2:$G$43,5)))*1,AI$3:AI31)+AI735)*VLOOKUP(AI$881,'F. UL & OPEX flat rates'!$B$2:$G$43,6,0)","v":0},{"$f":"(SUMPRODUCT(($A$3:$A31>($A911-VLOOKUP(AJ$881,'F. UL & OPEX flat rates'!$B$2:$G$43,5)))*1,AJ$3:AJ31)+AJ735)*VLOOKUP(AJ$881,'F. UL & OPEX flat rates'!$B$2:$G$43,6,0)","v":58000},{"$f":"(SUMPRODUCT(($A$3:$A31>($A911-VLOOKUP(AK$881,'F. UL & OPEX flat rates'!$B$2:$G$43,5)))*1,AK$3:AK31)+AK735)*VLOOKUP(AK$881,'F. UL & OPEX flat rates'!$B$2:$G$43,6,0)","v":0},{"$f":"(SUMPRODUCT(($A$3:$A31>($A911-VLOOKUP(AL$881,'F. UL & OPEX flat rates'!$B$2:$G$43,5)))*1,AL$3:AL31)+AL735)*VLOOKUP(AL$881,'F. UL & OPEX flat rates'!$B$2:$G$43,6,0)","v":0},{"$f":"(SUMPRODUCT(($A$3:$A31>($A911-VLOOKUP(AM$881,'F. UL & OPEX flat rates'!$B$2:$G$43,5)))*1,AM$3:AM31)+AM735)*VLOOKUP(AM$881,'F. UL & OPEX flat rates'!$B$2:$G$43,6,0)","v":0},{"$f":"(SUMPRODUCT(($A$3:$A31>($A911-VLOOKUP(AN$881,'F. UL & OPEX flat rates'!$B$2:$G$43,5)))*1,AN$3:AN31)+AN735)*VLOOKUP(AN$881,'F. UL & OPEX flat rates'!$B$2:$G$43,6,0)","v":0},{"$f":"(SUMPRODUCT(($A$3:$A31>($A911-VLOOKUP(AO$881,'F. UL & OPEX flat rates'!$B$2:$G$43,5)))*1,AO$3:AO31)+AO735)*VLOOKUP(AO$881,'F. UL & OPEX flat rates'!$B$2:$G$43,6,0)","v":0},{"$f":"(SUMPRODUCT(($A$3:$A31>($A911-VLOOKUP(AP$881,'F. UL & OPEX flat rates'!$B$2:$G$43,5)))*1,AP$3:AP31)+AP735)*VLOOKUP(AP$881,'F. UL & OPEX flat rates'!$B$2:$G$43,6,0)","v":0},{"$f":"(SUMPRODUCT(($A$3:$A31>($A911-VLOOKUP(AQ$881,'F. UL & OPEX flat rates'!$B$2:$G$43,5)))*1,AQ$3:AQ31)+AQ735)*VLOOKUP(AQ$881,'F. UL & OPEX flat rates'!$B$2:$G$43,6,0)","v":0}]
[2045,7858000,{"$f":"(SUMPRODUCT(($A$3:$A32>($A912-VLOOKUP(C$881,'F. UL & OPEX flat rates'!$B$2:$G$43,5)))*1,C$3:C32)+C736)*VLOOKUP(C$881,'F. UL & OPEX flat rates'!$B$2:$G$43,6,0)","v":0},{"$f":"(SUMPRODUCT(($A$3:$A32>($A912-VLOOKUP(D$881,'F. UL & OPEX flat rates'!$B$2:$G$43,5)))*1,D$3:D32)+D736)*VLOOKUP(D$881,'F. UL & OPEX flat rates'!$B$2:$G$43,6,0)","v":0},{"$f":"(SUMPRODUCT(($A$3:$A32>($A912-VLOOKUP(E$881,'F. UL & OPEX flat rates'!$B$2:$G$43,5)))*1,E$3:E32)+E736)*VLOOKUP(E$881,'F. UL & OPEX flat rates'!$B$2:$G$43,6,0)","v":0},{"$f":"(SUMPRODUCT(($A$3:$A32>($A912-VLOOKUP(F$881,'F. UL & OPEX flat rates'!$B$2:$G$43,5)))*1,F$3:F32)+F736)*VLOOKUP(F$881,'F. UL & OPEX flat rates'!$B$2:$G$43,6,0)","v":0},{"$f":"(SUMPRODUCT(($A$3:$A32>($A912-VLOOKUP(G$881,'F. UL & OPEX flat rates'!$B$2:$G$43,5)))*1,G$3:G32)+G736)*VLOOKUP(G$881,'F. UL & OPEX flat rates'!$B$2:$G$43,6,0)","v":0},{"$f":"(SUMPRODUCT(($A$3:$A32>($A912-VLOOKUP(H$881,'F. UL & OPEX flat rates'!$B$2:$G$43,5)))*1,H$3:H32)+H736)*VLOOKUP(H$881,'F. UL & OPEX flat rates'!$B$2:$G$43,6,0)","v":0},{"$f":"(SUMPRODUCT(($A$3:$A32>($A912-VLOOKUP(I$881,'F. UL & OPEX flat rates'!$B$2:$G$43,5)))*1,I$3:I32)+I736)*VLOOKUP(I$881,'F. UL & OPEX flat rates'!$B$2:$G$43,6,0)","v":0},{"$f":"(SUMPRODUCT(($A$3:$A32>($A912-VLOOKUP(J$881,'F. UL & OPEX flat rates'!$B$2:$G$43,5)))*1,J$3:J32)+J736)*VLOOKUP(J$881,'F. UL & OPEX flat rates'!$B$2:$G$43,6,0)","v":0},{"$f":"(SUMPRODUCT(($A$3:$A32>($A912-VLOOKUP(K$881,'F. UL & OPEX flat rates'!$B$2:$G$43,5)))*1,K$3:K32)+K736)*VLOOKUP(K$881,'F. UL & OPEX flat rates'!$B$2:$G$43,6,0)","v":0},{"$f":"(SUMPRODUCT(($A$3:$A32>($A912-VLOOKUP(L$881,'F. UL & OPEX flat rates'!$B$2:$G$43,5)))*1,L$3:L32)+L736)*VLOOKUP(L$881,'F. UL & OPEX flat rates'!$B$2:$G$43,6,0)","v":0},{"$f":"(SUMPRODUCT(($A$3:$A32>($A912-VLOOKUP(M$881,'F. UL & OPEX flat rates'!$B$2:$G$43,5)))*1,M$3:M32)+M736)*VLOOKUP(M$881,'F. UL & OPEX flat rates'!$B$2:$G$43,6,0)","v":0},{"$f":"(SUMPRODUCT(($A$3:$A32>($A912-VLOOKUP(N$881,'F. UL & OPEX flat rates'!$B$2:$G$43,5)))*1,N$3:N32)+N736)*VLOOKUP(N$881,'F. UL & OPEX flat rates'!$B$2:$G$43,6,0)","v":0},{"$f":"(SUMPRODUCT(($A$3:$A32>($A912-VLOOKUP(O$881,'F. UL & OPEX flat rates'!$B$2:$G$43,5)))*1,O$3:O32)+O736)*VLOOKUP(O$881,'F. UL & OPEX flat rates'!$B$2:$G$43,6,0)","v":0},{"$f":"(SUMPRODUCT(($A$3:$A32>($A912-VLOOKUP(P$881,'F. UL & OPEX flat rates'!$B$2:$G$43,5)))*1,P$3:P32)+P736)*VLOOKUP(P$881,'F. UL & OPEX flat rates'!$B$2:$G$43,6,0)","v":7800000},{"$f":"(SUMPRODUCT(($A$3:$A32>($A912-VLOOKUP(Q$881,'F. UL & OPEX flat rates'!$B$2:$G$43,5)))*1,Q$3:Q32)+Q736)*VLOOKUP(Q$881,'F. UL & OPEX flat rates'!$B$2:$G$43,6,0)","v":0},{"$f":"(SUMPRODUCT(($A$3:$A32>($A912-VLOOKUP(R$881,'F. UL & OPEX flat rates'!$B$2:$G$43,5)))*1,R$3:R32)+R736)*VLOOKUP(R$881,'F. UL & OPEX flat rates'!$B$2:$G$43,6,0)","v":0},{"$f":"(SUMPRODUCT(($A$3:$A32>($A912-VLOOKUP(S$881,'F. UL & OPEX flat rates'!$B$2:$G$43,5)))*1,S$3:S32)+S736)*VLOOKUP(S$881,'F. UL & OPEX flat rates'!$B$2:$G$43,6,0)","v":0},{"$f":"(SUMPRODUCT(($A$3:$A32>($A912-VLOOKUP(T$881,'F. UL & OPEX flat rates'!$B$2:$G$43,5)))*1,T$3:T32)+T736)*VLOOKUP(T$881,'F. UL & OPEX flat rates'!$B$2:$G$43,6,0)","v":0},{"$f":"(SUMPRODUCT(($A$3:$A32>($A912-VLOOKUP(U$881,'F. UL & OPEX flat rates'!$B$2:$G$43,5)))*1,U$3:U32)+U736)*VLOOKUP(U$881,'F. UL & OPEX flat rates'!$B$2:$G$43,6,0)","v":0},{"$f":"(SUMPRODUCT(($A$3:$A32>($A912-VLOOKUP(V$881,'F. UL & OPEX flat rates'!$B$2:$G$43,5)))*1,V$3:V32)+V736)*VLOOKUP(V$881,'F. UL & OPEX flat rates'!$B$2:$G$43,6,0)","v":0},{"$f":"(SUMPRODUCT(($A$3:$A32>($A912-VLOOKUP(W$881,'F. UL & OPEX flat rates'!$B$2:$G$43,5)))*1,W$3:W32)+W736)*VLOOKUP(W$881,'F. UL & OPEX flat rates'!$B$2:$G$43,6,0)","v":0},{"$f":"(SUMPRODUCT(($A$3:$A32>($A912-VLOOKUP(X$881,'F. UL & OPEX flat rates'!$B$2:$G$43,5)))*1,X$3:X32)+X736)*VLOOKUP(X$881,'F. UL & OPEX flat rates'!$B$2:$G$43,6,0)","v":0},{"$f":"(SUMPRODUCT(($A$3:$A32>($A912-VLOOKUP(Y$881,'F. UL & OPEX flat rates'!$B$2:$G$43,5)))*1,Y$3:Y32)+Y736)*VLOOKUP(Y$881,'F. UL & OPEX flat rates'!$B$2:$G$43,6,0)","v":0},{"$f":"(SUMPRODUCT(($A$3:$A32>($A912-VLOOKUP(Z$881,'F. UL & OPEX flat rates'!$B$2:$G$43,5)))*1,Z$3:Z32)+Z736)*VLOOKUP(Z$881,'F. UL & OPEX flat rates'!$B$2:$G$43,6,0)","v":0},{"$f":"(SUMPRODUCT(($A$3:$A32>($A912-VLOOKUP(AA$881,'F. UL & OPEX flat rates'!$B$2:$G$43,5)))*1,AA$3:AA32)+AA736)*VLOOKUP(AA$881,'F. UL & OPEX flat rates'!$B$2:$G$43,6,0)","v":0},{"$f":"(SUMPRODUCT(($A$3:$A32>($A912-VLOOKUP(AB$881,'F. UL & OPEX flat rates'!$B$2:$G$43,5)))*1,AB$3:AB32)+AB736)*VLOOKUP(AB$881,'F. UL & OPEX flat rates'!$B$2:$G$43,6,0)","v":0},{"$f":"(SUMPRODUCT(($A$3:$A32>($A912-VLOOKUP(AC$881,'F. UL & OPEX flat rates'!$B$2:$G$43,5)))*1,AC$3:AC32)+AC736)*VLOOKUP(AC$881,'F. UL & OPEX flat rates'!$B$2:$G$43,6,0)","v":0},{"$f":"(SUMPRODUCT(($A$3:$A32>($A912-VLOOKUP(AD$881,'F. UL & OPEX flat rates'!$B$2:$G$43,5)))*1,AD$3:AD32)+AD736)*VLOOKUP(AD$881,'F. UL & OPEX flat rates'!$B$2:$G$43,6,0)","v":0},{"$f":"(SUMPRODUCT(($A$3:$A32>($A912-VLOOKUP(AE$881,'F. UL & OPEX flat rates'!$B$2:$G$43,5)))*1,AE$3:AE32)+AE736)*VLOOKUP(AE$881,'F. UL & OPEX flat rates'!$B$2:$G$43,6,0)","v":0},{"$f":"(SUMPRODUCT(($A$3:$A32>($A912-VLOOKUP(AF$881,'F. UL & OPEX flat rates'!$B$2:$G$43,5)))*1,AF$3:AF32)+AF736)*VLOOKUP(AF$881,'F. UL & OPEX flat rates'!$B$2:$G$43,6,0)","v":0},{"$f":"(SUMPRODUCT(($A$3:$A32>($A912-VLOOKUP(AG$881,'F. UL & OPEX flat rates'!$B$2:$G$43,5)))*1,AG$3:AG32)+AG736)*VLOOKUP(AG$881,'F. UL & OPEX flat rates'!$B$2:$G$43,6,0)","v":0},{"$f":"(SUMPRODUCT(($A$3:$A32>($A912-VLOOKUP(AH$881,'F. UL & OPEX flat rates'!$B$2:$G$43,5)))*1,AH$3:AH32)+AH736)*VLOOKUP(AH$881,'F. UL & OPEX flat rates'!$B$2:$G$43,6,0)","v":0},{"$f":"(SUMPRODUCT(($A$3:$A32>($A912-VLOOKUP(AI$881,'F. UL & OPEX flat rates'!$B$2:$G$43,5)))*1,AI$3:AI32)+AI736)*VLOOKUP(AI$881,'F. UL & OPEX flat rates'!$B$2:$G$43,6,0)","v":0},{"$f":"(SUMPRODUCT(($A$3:$A32>($A912-VLOOKUP(AJ$881,'F. UL & OPEX flat rates'!$B$2:$G$43,5)))*1,AJ$3:AJ32)+AJ736)*VLOOKUP(AJ$881,'F. UL & OPEX flat rates'!$B$2:$G$43,6,0)","v":58000},{"$f":"(SUMPRODUCT(($A$3:$A32>($A912-VLOOKUP(AK$881,'F. UL & OPEX flat rates'!$B$2:$G$43,5)))*1,AK$3:AK32)+AK736)*VLOOKUP(AK$881,'F. UL & OPEX flat rates'!$B$2:$G$43,6,0)","v":0},{"$f":"(SUMPRODUCT(($A$3:$A32>($A912-VLOOKUP(AL$881,'F. UL & OPEX flat rates'!$B$2:$G$43,5)))*1,AL$3:AL32)+AL736)*VLOOKUP(AL$881,'F. UL & OPEX flat rates'!$B$2:$G$43,6,0)","v":0},{"$f":"(SUMPRODUCT(($A$3:$A32>($A912-VLOOKUP(AM$881,'F. UL & OPEX flat rates'!$B$2:$G$43,5)))*1,AM$3:AM32)+AM736)*VLOOKUP(AM$881,'F. UL & OPEX flat rates'!$B$2:$G$43,6,0)","v":0},{"$f":"(SUMPRODUCT(($A$3:$A32>($A912-VLOOKUP(AN$881,'F. UL & OPEX flat rates'!$B$2:$G$43,5)))*1,AN$3:AN32)+AN736)*VLOOKUP(AN$881,'F. UL & OPEX flat rates'!$B$2:$G$43,6,0)","v":0},{"$f":"(SUMPRODUCT(($A$3:$A32>($A912-VLOOKUP(AO$881,'F. UL & OPEX flat rates'!$B$2:$G$43,5)))*1,AO$3:AO32)+AO736)*VLOOKUP(AO$881,'F. UL & OPEX flat rates'!$B$2:$G$43,6,0)","v":0},{"$f":"(SUMPRODUCT(($A$3:$A32>($A912-VLOOKUP(AP$881,'F. UL & OPEX flat rates'!$B$2:$G$43,5)))*1,AP$3:AP32)+AP736)*VLOOKUP(AP$881,'F. UL & OPEX flat rates'!$B$2:$G$43,6,0)","v":0},{"$f":"(SUMPRODUCT(($A$3:$A32>($A912-VLOOKUP(AQ$881,'F. UL & OPEX flat rates'!$B$2:$G$43,5)))*1,AQ$3:AQ32)+AQ736)*VLOOKUP(AQ$881,'F. UL & OPEX flat rates'!$B$2:$G$43,6,0)","v":0}]
[2046,7858000,{"$f":"(SUMPRODUCT(($A$3:$A33>($A913-VLOOKUP(C$881,'F. UL & OPEX flat rates'!$B$2:$G$43,5)))*1,C$3:C33)+C737)*VLOOKUP(C$881,'F. UL & OPEX flat rates'!$B$2:$G$43,6,0)","v":0},{"$f":"(SUMPRODUCT(($A$3:$A33>($A913-VLOOKUP(D$881,'F. UL & OPEX flat rates'!$B$2:$G$43,5)))*1,D$3:D33)+D737)*VLOOKUP(D$881,'F. UL & OPEX flat rates'!$B$2:$G$43,6,0)","v":0},{"$f":"(SUMPRODUCT(($A$3:$A33>($A913-VLOOKUP(E$881,'F. UL & OPEX flat rates'!$B$2:$G$43,5)))*1,E$3:E33)+E737)*VLOOKUP(E$881,'F. UL & OPEX flat rates'!$B$2:$G$43,6,0)","v":0},{"$f":"(SUMPRODUCT(($A$3:$A33>($A913-VLOOKUP(F$881,'F. UL & OPEX flat rates'!$B$2:$G$43,5)))*1,F$3:F33)+F737)*VLOOKUP(F$881,'F. UL & OPEX flat rates'!$B$2:$G$43,6,0)","v":0},{"$f":"(SUMPRODUCT(($A$3:$A33>($A913-VLOOKUP(G$881,'F. UL & OPEX flat rates'!$B$2:$G$43,5)))*1,G$3:G33)+G737)*VLOOKUP(G$881,'F. UL & OPEX flat rates'!$B$2:$G$43,6,0)","v":0},{"$f":"(SUMPRODUCT(($A$3:$A33>($A913-VLOOKUP(H$881,'F. UL & OPEX flat rates'!$B$2:$G$43,5)))*1,H$3:H33)+H737)*VLOOKUP(H$881,'F. UL & OPEX flat rates'!$B$2:$G$43,6,0)","v":0},{"$f":"(SUMPRODUCT(($A$3:$A33>($A913-VLOOKUP(I$881,'F. UL & OPEX flat rates'!$B$2:$G$43,5)))*1,I$3:I33)+I737)*VLOOKUP(I$881,'F. UL & OPEX flat rates'!$B$2:$G$43,6,0)","v":0},{"$f":"(SUMPRODUCT(($A$3:$A33>($A913-VLOOKUP(J$881,'F. UL & OPEX flat rates'!$B$2:$G$43,5)))*1,J$3:J33)+J737)*VLOOKUP(J$881,'F. UL & OPEX flat rates'!$B$2:$G$43,6,0)","v":0},{"$f":"(SUMPRODUCT(($A$3:$A33>($A913-VLOOKUP(K$881,'F. UL & OPEX flat rates'!$B$2:$G$43,5)))*1,K$3:K33)+K737)*VLOOKUP(K$881,'F. UL & OPEX flat rates'!$B$2:$G$43,6,0)","v":0},{"$f":"(SUMPRODUCT(($A$3:$A33>($A913-VLOOKUP(L$881,'F. UL & OPEX flat rates'!$B$2:$G$43,5)))*1,L$3:L33)+L737)*VLOOKUP(L$881,'F. UL & OPEX flat rates'!$B$2:$G$43,6,0)","v":0},{"$f":"(SUMPRODUCT(($A$3:$A33>($A913-VLOOKUP(M$881,'F. UL & OPEX flat rates'!$B$2:$G$43,5)))*1,M$3:M33)+M737)*VLOOKUP(M$881,'F. UL & OPEX flat rates'!$B$2:$G$43,6,0)","v":0},{"$f":"(SUMPRODUCT(($A$3:$A33>($A913-VLOOKUP(N$881,'F. UL & OPEX flat rates'!$B$2:$G$43,5)))*1,N$3:N33)+N737)*VLOOKUP(N$881,'F. UL & OPEX flat rates'!$B$2:$G$43,6,0)","v":0},{"$f":"(SUMPRODUCT(($A$3:$A33>($A913-VLOOKUP(O$881,'F. UL & OPEX flat rates'!$B$2:$G$43,5)))*1,O$3:O33)+O737)*VLOOKUP(O$881,'F. UL & OPEX flat rates'!$B$2:$G$43,6,0)","v":0},{"$f":"(SUMPRODUCT(($A$3:$A33>($A913-VLOOKUP(P$881,'F. UL & OPEX flat rates'!$B$2:$G$43,5)))*1,P$3:P33)+P737)*VLOOKUP(P$881,'F. UL & OPEX flat rates'!$B$2:$G$43,6,0)","v":7800000},{"$f":"(SUMPRODUCT(($A$3:$A33>($A913-VLOOKUP(Q$881,'F. UL & OPEX flat rates'!$B$2:$G$43,5)))*1,Q$3:Q33)+Q737)*VLOOKUP(Q$881,'F. UL & OPEX flat rates'!$B$2:$G$43,6,0)","v":0},{"$f":"(SUMPRODUCT(($A$3:$A33>($A913-VLOOKUP(R$881,'F. UL & OPEX flat rates'!$B$2:$G$43,5)))*1,R$3:R33)+R737)*VLOOKUP(R$881,'F. UL & OPEX flat rates'!$B$2:$G$43,6,0)","v":0},{"$f":"(SUMPRODUCT(($A$3:$A33>($A913-VLOOKUP(S$881,'F. UL & OPEX flat rates'!$B$2:$G$43,5)))*1,S$3:S33)+S737)*VLOOKUP(S$881,'F. UL & OPEX flat rates'!$B$2:$G$43,6,0)","v":0},{"$f":"(SUMPRODUCT(($A$3:$A33>($A913-VLOOKUP(T$881,'F. UL & OPEX flat rates'!$B$2:$G$43,5)))*1,T$3:T33)+T737)*VLOOKUP(T$881,'F. UL & OPEX flat rates'!$B$2:$G$43,6,0)","v":0},{"$f":"(SUMPRODUCT(($A$3:$A33>($A913-VLOOKUP(U$881,'F. UL & OPEX flat rates'!$B$2:$G$43,5)))*1,U$3:U33)+U737)*VLOOKUP(U$881,'F. UL & OPEX flat rates'!$B$2:$G$43,6,0)","v":0},{"$f":"(SUMPRODUCT(($A$3:$A33>($A913-VLOOKUP(V$881,'F. UL & OPEX flat rates'!$B$2:$G$43,5)))*1,V$3:V33)+V737)*VLOOKUP(V$881,'F. UL & OPEX flat rates'!$B$2:$G$43,6,0)","v":0},{"$f":"(SUMPRODUCT(($A$3:$A33>($A913-VLOOKUP(W$881,'F. UL & OPEX flat rates'!$B$2:$G$43,5)))*1,W$3:W33)+W737)*VLOOKUP(W$881,'F. UL & OPEX flat rates'!$B$2:$G$43,6,0)","v":0},{"$f":"(SUMPRODUCT(($A$3:$A33>($A913-VLOOKUP(X$881,'F. UL & OPEX flat rates'!$B$2:$G$43,5)))*1,X$3:X33)+X737)*VLOOKUP(X$881,'F. UL & OPEX flat rates'!$B$2:$G$43,6,0)","v":0},{"$f":"(SUMPRODUCT(($A$3:$A33>($A913-VLOOKUP(Y$881,'F. UL & OPEX flat rates'!$B$2:$G$43,5)))*1,Y$3:Y33)+Y737)*VLOOKUP(Y$881,'F. UL & OPEX flat rates'!$B$2:$G$43,6,0)","v":0},{"$f":"(SUMPRODUCT(($A$3:$A33>($A913-VLOOKUP(Z$881,'F. UL & OPEX flat rates'!$B$2:$G$43,5)))*1,Z$3:Z33)+Z737)*VLOOKUP(Z$881,'F. UL & OPEX flat rates'!$B$2:$G$43,6,0)","v":0},{"$f":"(SUMPRODUCT(($A$3:$A33>($A913-VLOOKUP(AA$881,'F. UL & OPEX flat rates'!$B$2:$G$43,5)))*1,AA$3:AA33)+AA737)*VLOOKUP(AA$881,'F. UL & OPEX flat rates'!$B$2:$G$43,6,0)","v":0},{"$f":"(SUMPRODUCT(($A$3:$A33>($A913-VLOOKUP(AB$881,'F. UL & OPEX flat rates'!$B$2:$G$43,5)))*1,AB$3:AB33)+AB737)*VLOOKUP(AB$881,'F. UL & OPEX flat rates'!$B$2:$G$43,6,0)","v":0},{"$f":"(SUMPRODUCT(($A$3:$A33>($A913-VLOOKUP(AC$881,'F. UL & OPEX flat rates'!$B$2:$G$43,5)))*1,AC$3:AC33)+AC737)*VLOOKUP(AC$881,'F. UL & OPEX flat rates'!$B$2:$G$43,6,0)","v":0},{"$f":"(SUMPRODUCT(($A$3:$A33>($A913-VLOOKUP(AD$881,'F. UL & OPEX flat rates'!$B$2:$G$43,5)))*1,AD$3:AD33)+AD737)*VLOOKUP(AD$881,'F. UL & OPEX flat rates'!$B$2:$G$43,6,0)","v":0},{"$f":"(SUMPRODUCT(($A$3:$A33>($A913-VLOOKUP(AE$881,'F. UL & OPEX flat rates'!$B$2:$G$43,5)))*1,AE$3:AE33)+AE737)*VLOOKUP(AE$881,'F. UL & OPEX flat rates'!$B$2:$G$43,6,0)","v":0},{"$f":"(SUMPRODUCT(($A$3:$A33>($A913-VLOOKUP(AF$881,'F. UL & OPEX flat rates'!$B$2:$G$43,5)))*1,AF$3:AF33)+AF737)*VLOOKUP(AF$881,'F. UL & OPEX flat rates'!$B$2:$G$43,6,0)","v":0},{"$f":"(SUMPRODUCT(($A$3:$A33>($A913-VLOOKUP(AG$881,'F. UL & OPEX flat rates'!$B$2:$G$43,5)))*1,AG$3:AG33)+AG737)*VLOOKUP(AG$881,'F. UL & OPEX flat rates'!$B$2:$G$43,6,0)","v":0},{"$f":"(SUMPRODUCT(($A$3:$A33>($A913-VLOOKUP(AH$881,'F. UL & OPEX flat rates'!$B$2:$G$43,5)))*1,AH$3:AH33)+AH737)*VLOOKUP(AH$881,'F. UL & OPEX flat rates'!$B$2:$G$43,6,0)","v":0},{"$f":"(SUMPRODUCT(($A$3:$A33>($A913-VLOOKUP(AI$881,'F. UL & OPEX flat rates'!$B$2:$G$43,5)))*1,AI$3:AI33)+AI737)*VLOOKUP(AI$881,'F. UL & OPEX flat rates'!$B$2:$G$43,6,0)","v":0},{"$f":"(SUMPRODUCT(($A$3:$A33>($A913-VLOOKUP(AJ$881,'F. UL & OPEX flat rates'!$B$2:$G$43,5)))*1,AJ$3:AJ33)+AJ737)*VLOOKUP(AJ$881,'F. UL & OPEX flat rates'!$B$2:$G$43,6,0)","v":58000},{"$f":"(SUMPRODUCT(($A$3:$A33>($A913-VLOOKUP(AK$881,'F. UL & OPEX flat rates'!$B$2:$G$43,5)))*1,AK$3:AK33)+AK737)*VLOOKUP(AK$881,'F. UL & OPEX flat rates'!$B$2:$G$43,6,0)","v":0},{"$f":"(SUMPRODUCT(($A$3:$A33>($A913-VLOOKUP(AL$881,'F. UL & OPEX flat rates'!$B$2:$G$43,5)))*1,AL$3:AL33)+AL737)*VLOOKUP(AL$881,'F. UL & OPEX flat rates'!$B$2:$G$43,6,0)","v":0},{"$f":"(SUMPRODUCT(($A$3:$A33>($A913-VLOOKUP(AM$881,'F. UL & OPEX flat rates'!$B$2:$G$43,5)))*1,AM$3:AM33)+AM737)*VLOOKUP(AM$881,'F. UL & OPEX flat rates'!$B$2:$G$43,6,0)","v":0},{"$f":"(SUMPRODUCT(($A$3:$A33>($A913-VLOOKUP(AN$881,'F. UL & OPEX flat rates'!$B$2:$G$43,5)))*1,AN$3:AN33)+AN737)*VLOOKUP(AN$881,'F. UL & OPEX flat rates'!$B$2:$G$43,6,0)","v":0},{"$f":"(SUMPRODUCT(($A$3:$A33>($A913-VLOOKUP(AO$881,'F. UL & OPEX flat rates'!$B$2:$G$43,5)))*1,AO$3:AO33)+AO737)*VLOOKUP(AO$881,'F. UL & OPEX flat rates'!$B$2:$G$43,6,0)","v":0},{"$f":"(SUMPRODUCT(($A$3:$A33>($A913-VLOOKUP(AP$881,'F. UL & OPEX flat rates'!$B$2:$G$43,5)))*1,AP$3:AP33)+AP737)*VLOOKUP(AP$881,'F. UL & OPEX flat rates'!$B$2:$G$43,6,0)","v":0},{"$f":"(SUMPRODUCT(($A$3:$A33>($A913-VLOOKUP(AQ$881,'F. UL & OPEX flat rates'!$B$2:$G$43,5)))*1,AQ$3:AQ33)+AQ737)*VLOOKUP(AQ$881,'F. UL & OPEX flat rates'!$B$2:$G$43,6,0)","v":0}]
[2047,7858000,{"$f":"(SUMPRODUCT(($A$3:$A34>($A914-VLOOKUP(C$881,'F. UL & OPEX flat rates'!$B$2:$G$43,5)))*1,C$3:C34)+C738)*VLOOKUP(C$881,'F. UL & OPEX flat rates'!$B$2:$G$43,6,0)","v":0},{"$f":"(SUMPRODUCT(($A$3:$A34>($A914-VLOOKUP(D$881,'F. UL & OPEX flat rates'!$B$2:$G$43,5)))*1,D$3:D34)+D738)*VLOOKUP(D$881,'F. UL & OPEX flat rates'!$B$2:$G$43,6,0)","v":0},{"$f":"(SUMPRODUCT(($A$3:$A34>($A914-VLOOKUP(E$881,'F. UL & OPEX flat rates'!$B$2:$G$43,5)))*1,E$3:E34)+E738)*VLOOKUP(E$881,'F. UL & OPEX flat rates'!$B$2:$G$43,6,0)","v":0},{"$f":"(SUMPRODUCT(($A$3:$A34>($A914-VLOOKUP(F$881,'F. UL & OPEX flat rates'!$B$2:$G$43,5)))*1,F$3:F34)+F738)*VLOOKUP(F$881,'F. UL & OPEX flat rates'!$B$2:$G$43,6,0)","v":0},{"$f":"(SUMPRODUCT(($A$3:$A34>($A914-VLOOKUP(G$881,'F. UL & OPEX flat rates'!$B$2:$G$43,5)))*1,G$3:G34)+G738)*VLOOKUP(G$881,'F. UL & OPEX flat rates'!$B$2:$G$43,6,0)","v":0},{"$f":"(SUMPRODUCT(($A$3:$A34>($A914-VLOOKUP(H$881,'F. UL & OPEX flat rates'!$B$2:$G$43,5)))*1,H$3:H34)+H738)*VLOOKUP(H$881,'F. UL & OPEX flat rates'!$B$2:$G$43,6,0)","v":0},{"$f":"(SUMPRODUCT(($A$3:$A34>($A914-VLOOKUP(I$881,'F. UL & OPEX flat rates'!$B$2:$G$43,5)))*1,I$3:I34)+I738)*VLOOKUP(I$881,'F. UL & OPEX flat rates'!$B$2:$G$43,6,0)","v":0},{"$f":"(SUMPRODUCT(($A$3:$A34>($A914-VLOOKUP(J$881,'F. UL & OPEX flat rates'!$B$2:$G$43,5)))*1,J$3:J34)+J738)*VLOOKUP(J$881,'F. UL & OPEX flat rates'!$B$2:$G$43,6,0)","v":0},{"$f":"(SUMPRODUCT(($A$3:$A34>($A914-VLOOKUP(K$881,'F. UL & OPEX flat rates'!$B$2:$G$43,5)))*1,K$3:K34)+K738)*VLOOKUP(K$881,'F. UL & OPEX flat rates'!$B$2:$G$43,6,0)","v":0},{"$f":"(SUMPRODUCT(($A$3:$A34>($A914-VLOOKUP(L$881,'F. UL & OPEX flat rates'!$B$2:$G$43,5)))*1,L$3:L34)+L738)*VLOOKUP(L$881,'F. UL & OPEX flat rates'!$B$2:$G$43,6,0)","v":0},{"$f":"(SUMPRODUCT(($A$3:$A34>($A914-VLOOKUP(M$881,'F. UL & OPEX flat rates'!$B$2:$G$43,5)))*1,M$3:M34)+M738)*VLOOKUP(M$881,'F. UL & OPEX flat rates'!$B$2:$G$43,6,0)","v":0},{"$f":"(SUMPRODUCT(($A$3:$A34>($A914-VLOOKUP(N$881,'F. UL & OPEX flat rates'!$B$2:$G$43,5)))*1,N$3:N34)+N738)*VLOOKUP(N$881,'F. UL & OPEX flat rates'!$B$2:$G$43,6,0)","v":0},{"$f":"(SUMPRODUCT(($A$3:$A34>($A914-VLOOKUP(O$881,'F. UL & OPEX flat rates'!$B$2:$G$43,5)))*1,O$3:O34)+O738)*VLOOKUP(O$881,'F. UL & OPEX flat rates'!$B$2:$G$43,6,0)","v":0},{"$f":"(SUMPRODUCT(($A$3:$A34>($A914-VLOOKUP(P$881,'F. UL & OPEX flat rates'!$B$2:$G$43,5)))*1,P$3:P34)+P738)*VLOOKUP(P$881,'F. UL & OPEX flat rates'!$B$2:$G$43,6,0)","v":7800000},{"$f":"(SUMPRODUCT(($A$3:$A34>($A914-VLOOKUP(Q$881,'F. UL & OPEX flat rates'!$B$2:$G$43,5)))*1,Q$3:Q34)+Q738)*VLOOKUP(Q$881,'F. UL & OPEX flat rates'!$B$2:$G$43,6,0)","v":0},{"$f":"(SUMPRODUCT(($A$3:$A34>($A914-VLOOKUP(R$881,'F. UL & OPEX flat rates'!$B$2:$G$43,5)))*1,R$3:R34)+R738)*VLOOKUP(R$881,'F. UL & OPEX flat rates'!$B$2:$G$43,6,0)","v":0},{"$f":"(SUMPRODUCT(($A$3:$A34>($A914-VLOOKUP(S$881,'F. UL & OPEX flat rates'!$B$2:$G$43,5)))*1,S$3:S34)+S738)*VLOOKUP(S$881,'F. UL & OPEX flat rates'!$B$2:$G$43,6,0)","v":0},{"$f":"(SUMPRODUCT(($A$3:$A34>($A914-VLOOKUP(T$881,'F. UL & OPEX flat rates'!$B$2:$G$43,5)))*1,T$3:T34)+T738)*VLOOKUP(T$881,'F. UL & OPEX flat rates'!$B$2:$G$43,6,0)","v":0},{"$f":"(SUMPRODUCT(($A$3:$A34>($A914-VLOOKUP(U$881,'F. UL & OPEX flat rates'!$B$2:$G$43,5)))*1,U$3:U34)+U738)*VLOOKUP(U$881,'F. UL & OPEX flat rates'!$B$2:$G$43,6,0)","v":0},{"$f":"(SUMPRODUCT(($A$3:$A34>($A914-VLOOKUP(V$881,'F. UL & OPEX flat rates'!$B$2:$G$43,5)))*1,V$3:V34)+V738)*VLOOKUP(V$881,'F. UL & OPEX flat rates'!$B$2:$G$43,6,0)","v":0},{"$f":"(SUMPRODUCT(($A$3:$A34>($A914-VLOOKUP(W$881,'F. UL & OPEX flat rates'!$B$2:$G$43,5)))*1,W$3:W34)+W738)*VLOOKUP(W$881,'F. UL & OPEX flat rates'!$B$2:$G$43,6,0)","v":0},{"$f":"(SUMPRODUCT(($A$3:$A34>($A914-VLOOKUP(X$881,'F. UL & OPEX flat rates'!$B$2:$G$43,5)))*1,X$3:X34)+X738)*VLOOKUP(X$881,'F. UL & OPEX flat rates'!$B$2:$G$43,6,0)","v":0},{"$f":"(SUMPRODUCT(($A$3:$A34>($A914-VLOOKUP(Y$881,'F. UL & OPEX flat rates'!$B$2:$G$43,5)))*1,Y$3:Y34)+Y738)*VLOOKUP(Y$881,'F. UL & OPEX flat rates'!$B$2:$G$43,6,0)","v":0},{"$f":"(SUMPRODUCT(($A$3:$A34>($A914-VLOOKUP(Z$881,'F. UL & OPEX flat rates'!$B$2:$G$43,5)))*1,Z$3:Z34)+Z738)*VLOOKUP(Z$881,'F. UL & OPEX flat rates'!$B$2:$G$43,6,0)","v":0},{"$f":"(SUMPRODUCT(($A$3:$A34>($A914-VLOOKUP(AA$881,'F. UL & OPEX flat rates'!$B$2:$G$43,5)))*1,AA$3:AA34)+AA738)*VLOOKUP(AA$881,'F. UL & OPEX flat rates'!$B$2:$G$43,6,0)","v":0},{"$f":"(SUMPRODUCT(($A$3:$A34>($A914-VLOOKUP(AB$881,'F. UL & OPEX flat rates'!$B$2:$G$43,5)))*1,AB$3:AB34)+AB738)*VLOOKUP(AB$881,'F. UL & OPEX flat rates'!$B$2:$G$43,6,0)","v":0},{"$f":"(SUMPRODUCT(($A$3:$A34>($A914-VLOOKUP(AC$881,'F. UL & OPEX flat rates'!$B$2:$G$43,5)))*1,AC$3:AC34)+AC738)*VLOOKUP(AC$881,'F. UL & OPEX flat rates'!$B$2:$G$43,6,0)","v":0},{"$f":"(SUMPRODUCT(($A$3:$A34>($A914-VLOOKUP(AD$881,'F. UL & OPEX flat rates'!$B$2:$G$43,5)))*1,AD$3:AD34)+AD738)*VLOOKUP(AD$881,'F. UL & OPEX flat rates'!$B$2:$G$43,6,0)","v":0},{"$f":"(SUMPRODUCT(($A$3:$A34>($A914-VLOOKUP(AE$881,'F. UL & OPEX flat rates'!$B$2:$G$43,5)))*1,AE$3:AE34)+AE738)*VLOOKUP(AE$881,'F. UL & OPEX flat rates'!$B$2:$G$43,6,0)","v":0},{"$f":"(SUMPRODUCT(($A$3:$A34>($A914-VLOOKUP(AF$881,'F. UL & OPEX flat rates'!$B$2:$G$43,5)))*1,AF$3:AF34)+AF738)*VLOOKUP(AF$881,'F. UL & OPEX flat rates'!$B$2:$G$43,6,0)","v":0},{"$f":"(SUMPRODUCT(($A$3:$A34>($A914-VLOOKUP(AG$881,'F. UL & OPEX flat rates'!$B$2:$G$43,5)))*1,AG$3:AG34)+AG738)*VLOOKUP(AG$881,'F. UL & OPEX flat rates'!$B$2:$G$43,6,0)","v":0},{"$f":"(SUMPRODUCT(($A$3:$A34>($A914-VLOOKUP(AH$881,'F. UL & OPEX flat rates'!$B$2:$G$43,5)))*1,AH$3:AH34)+AH738)*VLOOKUP(AH$881,'F. UL & OPEX flat rates'!$B$2:$G$43,6,0)","v":0},{"$f":"(SUMPRODUCT(($A$3:$A34>($A914-VLOOKUP(AI$881,'F. UL & OPEX flat rates'!$B$2:$G$43,5)))*1,AI$3:AI34)+AI738)*VLOOKUP(AI$881,'F. UL & OPEX flat rates'!$B$2:$G$43,6,0)","v":0},{"$f":"(SUMPRODUCT(($A$3:$A34>($A914-VLOOKUP(AJ$881,'F. UL & OPEX flat rates'!$B$2:$G$43,5)))*1,AJ$3:AJ34)+AJ738)*VLOOKUP(AJ$881,'F. UL & OPEX flat rates'!$B$2:$G$43,6,0)","v":58000},{"$f":"(SUMPRODUCT(($A$3:$A34>($A914-VLOOKUP(AK$881,'F. UL & OPEX flat rates'!$B$2:$G$43,5)))*1,AK$3:AK34)+AK738)*VLOOKUP(AK$881,'F. UL & OPEX flat rates'!$B$2:$G$43,6,0)","v":0},{"$f":"(SUMPRODUCT(($A$3:$A34>($A914-VLOOKUP(AL$881,'F. UL & OPEX flat rates'!$B$2:$G$43,5)))*1,AL$3:AL34)+AL738)*VLOOKUP(AL$881,'F. UL & OPEX flat rates'!$B$2:$G$43,6,0)","v":0},{"$f":"(SUMPRODUCT(($A$3:$A34>($A914-VLOOKUP(AM$881,'F. UL & OPEX flat rates'!$B$2:$G$43,5)))*1,AM$3:AM34)+AM738)*VLOOKUP(AM$881,'F. UL & OPEX flat rates'!$B$2:$G$43,6,0)","v":0},{"$f":"(SUMPRODUCT(($A$3:$A34>($A914-VLOOKUP(AN$881,'F. UL & OPEX flat rates'!$B$2:$G$43,5)))*1,AN$3:AN34)+AN738)*VLOOKUP(AN$881,'F. UL & OPEX flat rates'!$B$2:$G$43,6,0)","v":0},{"$f":"(SUMPRODUCT(($A$3:$A34>($A914-VLOOKUP(AO$881,'F. UL & OPEX flat rates'!$B$2:$G$43,5)))*1,AO$3:AO34)+AO738)*VLOOKUP(AO$881,'F. UL & OPEX flat rates'!$B$2:$G$43,6,0)","v":0},{"$f":"(SUMPRODUCT(($A$3:$A34>($A914-VLOOKUP(AP$881,'F. UL & OPEX flat rates'!$B$2:$G$43,5)))*1,AP$3:AP34)+AP738)*VLOOKUP(AP$881,'F. UL & OPEX flat rates'!$B$2:$G$43,6,0)","v":0},{"$f":"(SUMPRODUCT(($A$3:$A34>($A914-VLOOKUP(AQ$881,'F. UL & OPEX flat rates'!$B$2:$G$43,5)))*1,AQ$3:AQ34)+AQ738)*VLOOKUP(AQ$881,'F. UL & OPEX flat rates'!$B$2:$G$43,6,0)","v":0}]
[2048,7858000,{"$f":"(SUMPRODUCT(($A$3:$A35>($A915-VLOOKUP(C$881,'F. UL & OPEX flat rates'!$B$2:$G$43,5)))*1,C$3:C35)+C739)*VLOOKUP(C$881,'F. UL & OPEX flat rates'!$B$2:$G$43,6,0)","v":0},{"$f":"(SUMPRODUCT(($A$3:$A35>($A915-VLOOKUP(D$881,'F. UL & OPEX flat rates'!$B$2:$G$43,5)))*1,D$3:D35)+D739)*VLOOKUP(D$881,'F. UL & OPEX flat rates'!$B$2:$G$43,6,0)","v":0},{"$f":"(SUMPRODUCT(($A$3:$A35>($A915-VLOOKUP(E$881,'F. UL & OPEX flat rates'!$B$2:$G$43,5)))*1,E$3:E35)+E739)*VLOOKUP(E$881,'F. UL & OPEX flat rates'!$B$2:$G$43,6,0)","v":0},{"$f":"(SUMPRODUCT(($A$3:$A35>($A915-VLOOKUP(F$881,'F. UL & OPEX flat rates'!$B$2:$G$43,5)))*1,F$3:F35)+F739)*VLOOKUP(F$881,'F. UL & OPEX flat rates'!$B$2:$G$43,6,0)","v":0},{"$f":"(SUMPRODUCT(($A$3:$A35>($A915-VLOOKUP(G$881,'F. UL & OPEX flat rates'!$B$2:$G$43,5)))*1,G$3:G35)+G739)*VLOOKUP(G$881,'F. UL & OPEX flat rates'!$B$2:$G$43,6,0)","v":0},{"$f":"(SUMPRODUCT(($A$3:$A35>($A915-VLOOKUP(H$881,'F. UL & OPEX flat rates'!$B$2:$G$43,5)))*1,H$3:H35)+H739)*VLOOKUP(H$881,'F. UL & OPEX flat rates'!$B$2:$G$43,6,0)","v":0},{"$f":"(SUMPRODUCT(($A$3:$A35>($A915-VLOOKUP(I$881,'F. UL & OPEX flat rates'!$B$2:$G$43,5)))*1,I$3:I35)+I739)*VLOOKUP(I$881,'F. UL & OPEX flat rates'!$B$2:$G$43,6,0)","v":0},{"$f":"(SUMPRODUCT(($A$3:$A35>($A915-VLOOKUP(J$881,'F. UL & OPEX flat rates'!$B$2:$G$43,5)))*1,J$3:J35)+J739)*VLOOKUP(J$881,'F. UL & OPEX flat rates'!$B$2:$G$43,6,0)","v":0},{"$f":"(SUMPRODUCT(($A$3:$A35>($A915-VLOOKUP(K$881,'F. UL & OPEX flat rates'!$B$2:$G$43,5)))*1,K$3:K35)+K739)*VLOOKUP(K$881,'F. UL & OPEX flat rates'!$B$2:$G$43,6,0)","v":0},{"$f":"(SUMPRODUCT(($A$3:$A35>($A915-VLOOKUP(L$881,'F. UL & OPEX flat rates'!$B$2:$G$43,5)))*1,L$3:L35)+L739)*VLOOKUP(L$881,'F. UL & OPEX flat rates'!$B$2:$G$43,6,0)","v":0},{"$f":"(SUMPRODUCT(($A$3:$A35>($A915-VLOOKUP(M$881,'F. UL & OPEX flat rates'!$B$2:$G$43,5)))*1,M$3:M35)+M739)*VLOOKUP(M$881,'F. UL & OPEX flat rates'!$B$2:$G$43,6,0)","v":0},{"$f":"(SUMPRODUCT(($A$3:$A35>($A915-VLOOKUP(N$881,'F. UL & OPEX flat rates'!$B$2:$G$43,5)))*1,N$3:N35)+N739)*VLOOKUP(N$881,'F. UL & OPEX flat rates'!$B$2:$G$43,6,0)","v":0},{"$f":"(SUMPRODUCT(($A$3:$A35>($A915-VLOOKUP(O$881,'F. UL & OPEX flat rates'!$B$2:$G$43,5)))*1,O$3:O35)+O739)*VLOOKUP(O$881,'F. UL & OPEX flat rates'!$B$2:$G$43,6,0)","v":0},{"$f":"(SUMPRODUCT(($A$3:$A35>($A915-VLOOKUP(P$881,'F. UL & OPEX flat rates'!$B$2:$G$43,5)))*1,P$3:P35)+P739)*VLOOKUP(P$881,'F. UL & OPEX flat rates'!$B$2:$G$43,6,0)","v":7800000},{"$f":"(SUMPRODUCT(($A$3:$A35>($A915-VLOOKUP(Q$881,'F. UL & OPEX flat rates'!$B$2:$G$43,5)))*1,Q$3:Q35)+Q739)*VLOOKUP(Q$881,'F. UL & OPEX flat rates'!$B$2:$G$43,6,0)","v":0},{"$f":"(SUMPRODUCT(($A$3:$A35>($A915-VLOOKUP(R$881,'F. UL & OPEX flat rates'!$B$2:$G$43,5)))*1,R$3:R35)+R739)*VLOOKUP(R$881,'F. UL & OPEX flat rates'!$B$2:$G$43,6,0)","v":0},{"$f":"(SUMPRODUCT(($A$3:$A35>($A915-VLOOKUP(S$881,'F. UL & OPEX flat rates'!$B$2:$G$43,5)))*1,S$3:S35)+S739)*VLOOKUP(S$881,'F. UL & OPEX flat rates'!$B$2:$G$43,6,0)","v":0},{"$f":"(SUMPRODUCT(($A$3:$A35>($A915-VLOOKUP(T$881,'F. UL & OPEX flat rates'!$B$2:$G$43,5)))*1,T$3:T35)+T739)*VLOOKUP(T$881,'F. UL & OPEX flat rates'!$B$2:$G$43,6,0)","v":0},{"$f":"(SUMPRODUCT(($A$3:$A35>($A915-VLOOKUP(U$881,'F. UL & OPEX flat rates'!$B$2:$G$43,5)))*1,U$3:U35)+U739)*VLOOKUP(U$881,'F. UL & OPEX flat rates'!$B$2:$G$43,6,0)","v":0},{"$f":"(SUMPRODUCT(($A$3:$A35>($A915-VLOOKUP(V$881,'F. UL & OPEX flat rates'!$B$2:$G$43,5)))*1,V$3:V35)+V739)*VLOOKUP(V$881,'F. UL & OPEX flat rates'!$B$2:$G$43,6,0)","v":0},{"$f":"(SUMPRODUCT(($A$3:$A35>($A915-VLOOKUP(W$881,'F. UL & OPEX flat rates'!$B$2:$G$43,5)))*1,W$3:W35)+W739)*VLOOKUP(W$881,'F. UL & OPEX flat rates'!$B$2:$G$43,6,0)","v":0},{"$f":"(SUMPRODUCT(($A$3:$A35>($A915-VLOOKUP(X$881,'F. UL & OPEX flat rates'!$B$2:$G$43,5)))*1,X$3:X35)+X739)*VLOOKUP(X$881,'F. UL & OPEX flat rates'!$B$2:$G$43,6,0)","v":0},{"$f":"(SUMPRODUCT(($A$3:$A35>($A915-VLOOKUP(Y$881,'F. UL & OPEX flat rates'!$B$2:$G$43,5)))*1,Y$3:Y35)+Y739)*VLOOKUP(Y$881,'F. UL & OPEX flat rates'!$B$2:$G$43,6,0)","v":0},{"$f":"(SUMPRODUCT(($A$3:$A35>($A915-VLOOKUP(Z$881,'F. UL & OPEX flat rates'!$B$2:$G$43,5)))*1,Z$3:Z35)+Z739)*VLOOKUP(Z$881,'F. UL & OPEX flat rates'!$B$2:$G$43,6,0)","v":0},{"$f":"(SUMPRODUCT(($A$3:$A35>($A915-VLOOKUP(AA$881,'F. UL & OPEX flat rates'!$B$2:$G$43,5)))*1,AA$3:AA35)+AA739)*VLOOKUP(AA$881,'F. UL & OPEX flat rates'!$B$2:$G$43,6,0)","v":0},{"$f":"(SUMPRODUCT(($A$3:$A35>($A915-VLOOKUP(AB$881,'F. UL & OPEX flat rates'!$B$2:$G$43,5)))*1,AB$3:AB35)+AB739)*VLOOKUP(AB$881,'F. UL & OPEX flat rates'!$B$2:$G$43,6,0)","v":0},{"$f":"(SUMPRODUCT(($A$3:$A35>($A915-VLOOKUP(AC$881,'F. UL & OPEX flat rates'!$B$2:$G$43,5)))*1,AC$3:AC35)+AC739)*VLOOKUP(AC$881,'F. UL & OPEX flat rates'!$B$2:$G$43,6,0)","v":0},{"$f":"(SUMPRODUCT(($A$3:$A35>($A915-VLOOKUP(AD$881,'F. UL & OPEX flat rates'!$B$2:$G$43,5)))*1,AD$3:AD35)+AD739)*VLOOKUP(AD$881,'F. UL & OPEX flat rates'!$B$2:$G$43,6,0)","v":0},{"$f":"(SUMPRODUCT(($A$3:$A35>($A915-VLOOKUP(AE$881,'F. UL & OPEX flat rates'!$B$2:$G$43,5)))*1,AE$3:AE35)+AE739)*VLOOKUP(AE$881,'F. UL & OPEX flat rates'!$B$2:$G$43,6,0)","v":0},{"$f":"(SUMPRODUCT(($A$3:$A35>($A915-VLOOKUP(AF$881,'F. UL & OPEX flat rates'!$B$2:$G$43,5)))*1,AF$3:AF35)+AF739)*VLOOKUP(AF$881,'F. UL & OPEX flat rates'!$B$2:$G$43,6,0)","v":0},{"$f":"(SUMPRODUCT(($A$3:$A35>($A915-VLOOKUP(AG$881,'F. UL & OPEX flat rates'!$B$2:$G$43,5)))*1,AG$3:AG35)+AG739)*VLOOKUP(AG$881,'F. UL & OPEX flat rates'!$B$2:$G$43,6,0)","v":0},{"$f":"(SUMPRODUCT(($A$3:$A35>($A915-VLOOKUP(AH$881,'F. UL & OPEX flat rates'!$B$2:$G$43,5)))*1,AH$3:AH35)+AH739)*VLOOKUP(AH$881,'F. UL & OPEX flat rates'!$B$2:$G$43,6,0)","v":0},{"$f":"(SUMPRODUCT(($A$3:$A35>($A915-VLOOKUP(AI$881,'F. UL & OPEX flat rates'!$B$2:$G$43,5)))*1,AI$3:AI35)+AI739)*VLOOKUP(AI$881,'F. UL & OPEX flat rates'!$B$2:$G$43,6,0)","v":0},{"$f":"(SUMPRODUCT(($A$3:$A35>($A915-VLOOKUP(AJ$881,'F. UL & OPEX flat rates'!$B$2:$G$43,5)))*1,AJ$3:AJ35)+AJ739)*VLOOKUP(AJ$881,'F. UL & OPEX flat rates'!$B$2:$G$43,6,0)","v":58000},{"$f":"(SUMPRODUCT(($A$3:$A35>($A915-VLOOKUP(AK$881,'F. UL & OPEX flat rates'!$B$2:$G$43,5)))*1,AK$3:AK35)+AK739)*VLOOKUP(AK$881,'F. UL & OPEX flat rates'!$B$2:$G$43,6,0)","v":0},{"$f":"(SUMPRODUCT(($A$3:$A35>($A915-VLOOKUP(AL$881,'F. UL & OPEX flat rates'!$B$2:$G$43,5)))*1,AL$3:AL35)+AL739)*VLOOKUP(AL$881,'F. UL & OPEX flat rates'!$B$2:$G$43,6,0)","v":0},{"$f":"(SUMPRODUCT(($A$3:$A35>($A915-VLOOKUP(AM$881,'F. UL & OPEX flat rates'!$B$2:$G$43,5)))*1,AM$3:AM35)+AM739)*VLOOKUP(AM$881,'F. UL & OPEX flat rates'!$B$2:$G$43,6,0)","v":0},{"$f":"(SUMPRODUCT(($A$3:$A35>($A915-VLOOKUP(AN$881,'F. UL & OPEX flat rates'!$B$2:$G$43,5)))*1,AN$3:AN35)+AN739)*VLOOKUP(AN$881,'F. UL & OPEX flat rates'!$B$2:$G$43,6,0)","v":0},{"$f":"(SUMPRODUCT(($A$3:$A35>($A915-VLOOKUP(AO$881,'F. UL & OPEX flat rates'!$B$2:$G$43,5)))*1,AO$3:AO35)+AO739)*VLOOKUP(AO$881,'F. UL & OPEX flat rates'!$B$2:$G$43,6,0)","v":0},{"$f":"(SUMPRODUCT(($A$3:$A35>($A915-VLOOKUP(AP$881,'F. UL & OPEX flat rates'!$B$2:$G$43,5)))*1,AP$3:AP35)+AP739)*VLOOKUP(AP$881,'F. UL & OPEX flat rates'!$B$2:$G$43,6,0)","v":0},{"$f":"(SUMPRODUCT(($A$3:$A35>($A915-VLOOKUP(AQ$881,'F. UL & OPEX flat rates'!$B$2:$G$43,5)))*1,AQ$3:AQ35)+AQ739)*VLOOKUP(AQ$881,'F. UL & OPEX flat rates'!$B$2:$G$43,6,0)","v":0}]
[2049,7858000,{"$f":"(SUMPRODUCT(($A$3:$A36>($A916-VLOOKUP(C$881,'F. UL & OPEX flat rates'!$B$2:$G$43,5)))*1,C$3:C36)+C740)*VLOOKUP(C$881,'F. UL & OPEX flat rates'!$B$2:$G$43,6,0)","v":0},{"$f":"(SUMPRODUCT(($A$3:$A36>($A916-VLOOKUP(D$881,'F. UL & OPEX flat rates'!$B$2:$G$43,5)))*1,D$3:D36)+D740)*VLOOKUP(D$881,'F. UL & OPEX flat rates'!$B$2:$G$43,6,0)","v":0},{"$f":"(SUMPRODUCT(($A$3:$A36>($A916-VLOOKUP(E$881,'F. UL & OPEX flat rates'!$B$2:$G$43,5)))*1,E$3:E36)+E740)*VLOOKUP(E$881,'F. UL & OPEX flat rates'!$B$2:$G$43,6,0)","v":0},{"$f":"(SUMPRODUCT(($A$3:$A36>($A916-VLOOKUP(F$881,'F. UL & OPEX flat rates'!$B$2:$G$43,5)))*1,F$3:F36)+F740)*VLOOKUP(F$881,'F. UL & OPEX flat rates'!$B$2:$G$43,6,0)","v":0},{"$f":"(SUMPRODUCT(($A$3:$A36>($A916-VLOOKUP(G$881,'F. UL & OPEX flat rates'!$B$2:$G$43,5)))*1,G$3:G36)+G740)*VLOOKUP(G$881,'F. UL & OPEX flat rates'!$B$2:$G$43,6,0)","v":0},{"$f":"(SUMPRODUCT(($A$3:$A36>($A916-VLOOKUP(H$881,'F. UL & OPEX flat rates'!$B$2:$G$43,5)))*1,H$3:H36)+H740)*VLOOKUP(H$881,'F. UL & OPEX flat rates'!$B$2:$G$43,6,0)","v":0},{"$f":"(SUMPRODUCT(($A$3:$A36>($A916-VLOOKUP(I$881,'F. UL & OPEX flat rates'!$B$2:$G$43,5)))*1,I$3:I36)+I740)*VLOOKUP(I$881,'F. UL & OPEX flat rates'!$B$2:$G$43,6,0)","v":0},{"$f":"(SUMPRODUCT(($A$3:$A36>($A916-VLOOKUP(J$881,'F. UL & OPEX flat rates'!$B$2:$G$43,5)))*1,J$3:J36)+J740)*VLOOKUP(J$881,'F. UL & OPEX flat rates'!$B$2:$G$43,6,0)","v":0},{"$f":"(SUMPRODUCT(($A$3:$A36>($A916-VLOOKUP(K$881,'F. UL & OPEX flat rates'!$B$2:$G$43,5)))*1,K$3:K36)+K740)*VLOOKUP(K$881,'F. UL & OPEX flat rates'!$B$2:$G$43,6,0)","v":0},{"$f":"(SUMPRODUCT(($A$3:$A36>($A916-VLOOKUP(L$881,'F. UL & OPEX flat rates'!$B$2:$G$43,5)))*1,L$3:L36)+L740)*VLOOKUP(L$881,'F. UL & OPEX flat rates'!$B$2:$G$43,6,0)","v":0},{"$f":"(SUMPRODUCT(($A$3:$A36>($A916-VLOOKUP(M$881,'F. UL & OPEX flat rates'!$B$2:$G$43,5)))*1,M$3:M36)+M740)*VLOOKUP(M$881,'F. UL & OPEX flat rates'!$B$2:$G$43,6,0)","v":0},{"$f":"(SUMPRODUCT(($A$3:$A36>($A916-VLOOKUP(N$881,'F. UL & OPEX flat rates'!$B$2:$G$43,5)))*1,N$3:N36)+N740)*VLOOKUP(N$881,'F. UL & OPEX flat rates'!$B$2:$G$43,6,0)","v":0},{"$f":"(SUMPRODUCT(($A$3:$A36>($A916-VLOOKUP(O$881,'F. UL & OPEX flat rates'!$B$2:$G$43,5)))*1,O$3:O36)+O740)*VLOOKUP(O$881,'F. UL & OPEX flat rates'!$B$2:$G$43,6,0)","v":0},{"$f":"(SUMPRODUCT(($A$3:$A36>($A916-VLOOKUP(P$881,'F. UL & OPEX flat rates'!$B$2:$G$43,5)))*1,P$3:P36)+P740)*VLOOKUP(P$881,'F. UL & OPEX flat rates'!$B$2:$G$43,6,0)","v":7800000},{"$f":"(SUMPRODUCT(($A$3:$A36>($A916-VLOOKUP(Q$881,'F. UL & OPEX flat rates'!$B$2:$G$43,5)))*1,Q$3:Q36)+Q740)*VLOOKUP(Q$881,'F. UL & OPEX flat rates'!$B$2:$G$43,6,0)","v":0},{"$f":"(SUMPRODUCT(($A$3:$A36>($A916-VLOOKUP(R$881,'F. UL & OPEX flat rates'!$B$2:$G$43,5)))*1,R$3:R36)+R740)*VLOOKUP(R$881,'F. UL & OPEX flat rates'!$B$2:$G$43,6,0)","v":0},{"$f":"(SUMPRODUCT(($A$3:$A36>($A916-VLOOKUP(S$881,'F. UL & OPEX flat rates'!$B$2:$G$43,5)))*1,S$3:S36)+S740)*VLOOKUP(S$881,'F. UL & OPEX flat rates'!$B$2:$G$43,6,0)","v":0},{"$f":"(SUMPRODUCT(($A$3:$A36>($A916-VLOOKUP(T$881,'F. UL & OPEX flat rates'!$B$2:$G$43,5)))*1,T$3:T36)+T740)*VLOOKUP(T$881,'F. UL & OPEX flat rates'!$B$2:$G$43,6,0)","v":0},{"$f":"(SUMPRODUCT(($A$3:$A36>($A916-VLOOKUP(U$881,'F. UL & OPEX flat rates'!$B$2:$G$43,5)))*1,U$3:U36)+U740)*VLOOKUP(U$881,'F. UL & OPEX flat rates'!$B$2:$G$43,6,0)","v":0},{"$f":"(SUMPRODUCT(($A$3:$A36>($A916-VLOOKUP(V$881,'F. UL & OPEX flat rates'!$B$2:$G$43,5)))*1,V$3:V36)+V740)*VLOOKUP(V$881,'F. UL & OPEX flat rates'!$B$2:$G$43,6,0)","v":0},{"$f":"(SUMPRODUCT(($A$3:$A36>($A916-VLOOKUP(W$881,'F. UL & OPEX flat rates'!$B$2:$G$43,5)))*1,W$3:W36)+W740)*VLOOKUP(W$881,'F. UL & OPEX flat rates'!$B$2:$G$43,6,0)","v":0},{"$f":"(SUMPRODUCT(($A$3:$A36>($A916-VLOOKUP(X$881,'F. UL & OPEX flat rates'!$B$2:$G$43,5)))*1,X$3:X36)+X740)*VLOOKUP(X$881,'F. UL & OPEX flat rates'!$B$2:$G$43,6,0)","v":0},{"$f":"(SUMPRODUCT(($A$3:$A36>($A916-VLOOKUP(Y$881,'F. UL & OPEX flat rates'!$B$2:$G$43,5)))*1,Y$3:Y36)+Y740)*VLOOKUP(Y$881,'F. UL & OPEX flat rates'!$B$2:$G$43,6,0)","v":0},{"$f":"(SUMPRODUCT(($A$3:$A36>($A916-VLOOKUP(Z$881,'F. UL & OPEX flat rates'!$B$2:$G$43,5)))*1,Z$3:Z36)+Z740)*VLOOKUP(Z$881,'F. UL & OPEX flat rates'!$B$2:$G$43,6,0)","v":0},{"$f":"(SUMPRODUCT(($A$3:$A36>($A916-VLOOKUP(AA$881,'F. UL & OPEX flat rates'!$B$2:$G$43,5)))*1,AA$3:AA36)+AA740)*VLOOKUP(AA$881,'F. UL & OPEX flat rates'!$B$2:$G$43,6,0)","v":0},{"$f":"(SUMPRODUCT(($A$3:$A36>($A916-VLOOKUP(AB$881,'F. UL & OPEX flat rates'!$B$2:$G$43,5)))*1,AB$3:AB36)+AB740)*VLOOKUP(AB$881,'F. UL & OPEX flat rates'!$B$2:$G$43,6,0)","v":0},{"$f":"(SUMPRODUCT(($A$3:$A36>($A916-VLOOKUP(AC$881,'F. UL & OPEX flat rates'!$B$2:$G$43,5)))*1,AC$3:AC36)+AC740)*VLOOKUP(AC$881,'F. UL & OPEX flat rates'!$B$2:$G$43,6,0)","v":0},{"$f":"(SUMPRODUCT(($A$3:$A36>($A916-VLOOKUP(AD$881,'F. UL & OPEX flat rates'!$B$2:$G$43,5)))*1,AD$3:AD36)+AD740)*VLOOKUP(AD$881,'F. UL & OPEX flat rates'!$B$2:$G$43,6,0)","v":0},{"$f":"(SUMPRODUCT(($A$3:$A36>($A916-VLOOKUP(AE$881,'F. UL & OPEX flat rates'!$B$2:$G$43,5)))*1,AE$3:AE36)+AE740)*VLOOKUP(AE$881,'F. UL & OPEX flat rates'!$B$2:$G$43,6,0)","v":0},{"$f":"(SUMPRODUCT(($A$3:$A36>($A916-VLOOKUP(AF$881,'F. UL & OPEX flat rates'!$B$2:$G$43,5)))*1,AF$3:AF36)+AF740)*VLOOKUP(AF$881,'F. UL & OPEX flat rates'!$B$2:$G$43,6,0)","v":0},{"$f":"(SUMPRODUCT(($A$3:$A36>($A916-VLOOKUP(AG$881,'F. UL & OPEX flat rates'!$B$2:$G$43,5)))*1,AG$3:AG36)+AG740)*VLOOKUP(AG$881,'F. UL & OPEX flat rates'!$B$2:$G$43,6,0)","v":0},{"$f":"(SUMPRODUCT(($A$3:$A36>($A916-VLOOKUP(AH$881,'F. UL & OPEX flat rates'!$B$2:$G$43,5)))*1,AH$3:AH36)+AH740)*VLOOKUP(AH$881,'F. UL & OPEX flat rates'!$B$2:$G$43,6,0)","v":0},{"$f":"(SUMPRODUCT(($A$3:$A36>($A916-VLOOKUP(AI$881,'F. UL & OPEX flat rates'!$B$2:$G$43,5)))*1,AI$3:AI36)+AI740)*VLOOKUP(AI$881,'F. UL & OPEX flat rates'!$B$2:$G$43,6,0)","v":0},{"$f":"(SUMPRODUCT(($A$3:$A36>($A916-VLOOKUP(AJ$881,'F. UL & OPEX flat rates'!$B$2:$G$43,5)))*1,AJ$3:AJ36)+AJ740)*VLOOKUP(AJ$881,'F. UL & OPEX flat rates'!$B$2:$G$43,6,0)","v":58000},{"$f":"(SUMPRODUCT(($A$3:$A36>($A916-VLOOKUP(AK$881,'F. UL & OPEX flat rates'!$B$2:$G$43,5)))*1,AK$3:AK36)+AK740)*VLOOKUP(AK$881,'F. UL & OPEX flat rates'!$B$2:$G$43,6,0)","v":0},{"$f":"(SUMPRODUCT(($A$3:$A36>($A916-VLOOKUP(AL$881,'F. UL & OPEX flat rates'!$B$2:$G$43,5)))*1,AL$3:AL36)+AL740)*VLOOKUP(AL$881,'F. UL & OPEX flat rates'!$B$2:$G$43,6,0)","v":0},{"$f":"(SUMPRODUCT(($A$3:$A36>($A916-VLOOKUP(AM$881,'F. UL & OPEX flat rates'!$B$2:$G$43,5)))*1,AM$3:AM36)+AM740)*VLOOKUP(AM$881,'F. UL & OPEX flat rates'!$B$2:$G$43,6,0)","v":0},{"$f":"(SUMPRODUCT(($A$3:$A36>($A916-VLOOKUP(AN$881,'F. UL & OPEX flat rates'!$B$2:$G$43,5)))*1,AN$3:AN36)+AN740)*VLOOKUP(AN$881,'F. UL & OPEX flat rates'!$B$2:$G$43,6,0)","v":0},{"$f":"(SUMPRODUCT(($A$3:$A36>($A916-VLOOKUP(AO$881,'F. UL & OPEX flat rates'!$B$2:$G$43,5)))*1,AO$3:AO36)+AO740)*VLOOKUP(AO$881,'F. UL & OPEX flat rates'!$B$2:$G$43,6,0)","v":0},{"$f":"(SUMPRODUCT(($A$3:$A36>($A916-VLOOKUP(AP$881,'F. UL & OPEX flat rates'!$B$2:$G$43,5)))*1,AP$3:AP36)+AP740)*VLOOKUP(AP$881,'F. UL & OPEX flat rates'!$B$2:$G$43,6,0)","v":0},{"$f":"(SUMPRODUCT(($A$3:$A36>($A916-VLOOKUP(AQ$881,'F. UL & OPEX flat rates'!$B$2:$G$43,5)))*1,AQ$3:AQ36)+AQ740)*VLOOKUP(AQ$881,'F. UL & OPEX flat rates'!$B$2:$G$43,6,0)","v":0}]
[2050,58000,{"$f":"(SUMPRODUCT(($A$3:$A37>($A917-VLOOKUP(C$881,'F. UL & OPEX flat rates'!$B$2:$G$43,5)))*1,C$3:C37)+C741)*VLOOKUP(C$881,'F. UL & OPEX flat rates'!$B$2:$G$43,6,0)","v":0},{"$f":"(SUMPRODUCT(($A$3:$A37>($A917-VLOOKUP(D$881,'F. UL & OPEX flat rates'!$B$2:$G$43,5)))*1,D$3:D37)+D741)*VLOOKUP(D$881,'F. UL & OPEX flat rates'!$B$2:$G$43,6,0)","v":0},{"$f":"(SUMPRODUCT(($A$3:$A37>($A917-VLOOKUP(E$881,'F. UL & OPEX flat rates'!$B$2:$G$43,5)))*1,E$3:E37)+E741)*VLOOKUP(E$881,'F. UL & OPEX flat rates'!$B$2:$G$43,6,0)","v":0},{"$f":"(SUMPRODUCT(($A$3:$A37>($A917-VLOOKUP(F$881,'F. UL & OPEX flat rates'!$B$2:$G$43,5)))*1,F$3:F37)+F741)*VLOOKUP(F$881,'F. UL & OPEX flat rates'!$B$2:$G$43,6,0)","v":0},{"$f":"(SUMPRODUCT(($A$3:$A37>($A917-VLOOKUP(G$881,'F. UL & OPEX flat rates'!$B$2:$G$43,5)))*1,G$3:G37)+G741)*VLOOKUP(G$881,'F. UL & OPEX flat rates'!$B$2:$G$43,6,0)","v":0},{"$f":"(SUMPRODUCT(($A$3:$A37>($A917-VLOOKUP(H$881,'F. UL & OPEX flat rates'!$B$2:$G$43,5)))*1,H$3:H37)+H741)*VLOOKUP(H$881,'F. UL & OPEX flat rates'!$B$2:$G$43,6,0)","v":0},{"$f":"(SUMPRODUCT(($A$3:$A37>($A917-VLOOKUP(I$881,'F. UL & OPEX flat rates'!$B$2:$G$43,5)))*1,I$3:I37)+I741)*VLOOKUP(I$881,'F. UL & OPEX flat rates'!$B$2:$G$43,6,0)","v":0},{"$f":"(SUMPRODUCT(($A$3:$A37>($A917-VLOOKUP(J$881,'F. UL & OPEX flat rates'!$B$2:$G$43,5)))*1,J$3:J37)+J741)*VLOOKUP(J$881,'F. UL & OPEX flat rates'!$B$2:$G$43,6,0)","v":0},{"$f":"(SUMPRODUCT(($A$3:$A37>($A917-VLOOKUP(K$881,'F. UL & OPEX flat rates'!$B$2:$G$43,5)))*1,K$3:K37)+K741)*VLOOKUP(K$881,'F. UL & OPEX flat rates'!$B$2:$G$43,6,0)","v":0},{"$f":"(SUMPRODUCT(($A$3:$A37>($A917-VLOOKUP(L$881,'F. UL & OPEX flat rates'!$B$2:$G$43,5)))*1,L$3:L37)+L741)*VLOOKUP(L$881,'F. UL & OPEX flat rates'!$B$2:$G$43,6,0)","v":0},{"$f":"(SUMPRODUCT(($A$3:$A37>($A917-VLOOKUP(M$881,'F. UL & OPEX flat rates'!$B$2:$G$43,5)))*1,M$3:M37)+M741)*VLOOKUP(M$881,'F. UL & OPEX flat rates'!$B$2:$G$43,6,0)","v":0},{"$f":"(SUMPRODUCT(($A$3:$A37>($A917-VLOOKUP(N$881,'F. UL & OPEX flat rates'!$B$2:$G$43,5)))*1,N$3:N37)+N741)*VLOOKUP(N$881,'F. UL & OPEX flat rates'!$B$2:$G$43,6,0)","v":0},{"$f":"(SUMPRODUCT(($A$3:$A37>($A917-VLOOKUP(O$881,'F. UL & OPEX flat rates'!$B$2:$G$43,5)))*1,O$3:O37)+O741)*VLOOKUP(O$881,'F. UL & OPEX flat rates'!$B$2:$G$43,6,0)","v":0},{"$f":"(SUMPRODUCT(($A$3:$A37>($A917-VLOOKUP(P$881,'F. UL & OPEX flat rates'!$B$2:$G$43,5)))*1,P$3:P37)+P741)*VLOOKUP(P$881,'F. UL & OPEX flat rates'!$B$2:$G$43,6,0)","v":0},{"$f":"(SUMPRODUCT(($A$3:$A37>($A917-VLOOKUP(Q$881,'F. UL & OPEX flat rates'!$B$2:$G$43,5)))*1,Q$3:Q37)+Q741)*VLOOKUP(Q$881,'F. UL & OPEX flat rates'!$B$2:$G$43,6,0)","v":0},{"$f":"(SUMPRODUCT(($A$3:$A37>($A917-VLOOKUP(R$881,'F. UL & OPEX flat rates'!$B$2:$G$43,5)))*1,R$3:R37)+R741)*VLOOKUP(R$881,'F. UL & OPEX flat rates'!$B$2:$G$43,6,0)","v":0},{"$f":"(SUMPRODUCT(($A$3:$A37>($A917-VLOOKUP(S$881,'F. UL & OPEX flat rates'!$B$2:$G$43,5)))*1,S$3:S37)+S741)*VLOOKUP(S$881,'F. UL & OPEX flat rates'!$B$2:$G$43,6,0)","v":0},{"$f":"(SUMPRODUCT(($A$3:$A37>($A917-VLOOKUP(T$881,'F. UL & OPEX flat rates'!$B$2:$G$43,5)))*1,T$3:T37)+T741)*VLOOKUP(T$881,'F. UL & OPEX flat rates'!$B$2:$G$43,6,0)","v":0},{"$f":"(SUMPRODUCT(($A$3:$A37>($A917-VLOOKUP(U$881,'F. UL & OPEX flat rates'!$B$2:$G$43,5)))*1,U$3:U37)+U741)*VLOOKUP(U$881,'F. UL & OPEX flat rates'!$B$2:$G$43,6,0)","v":0},{"$f":"(SUMPRODUCT(($A$3:$A37>($A917-VLOOKUP(V$881,'F. UL & OPEX flat rates'!$B$2:$G$43,5)))*1,V$3:V37)+V741)*VLOOKUP(V$881,'F. UL & OPEX flat rates'!$B$2:$G$43,6,0)","v":0},{"$f":"(SUMPRODUCT(($A$3:$A37>($A917-VLOOKUP(W$881,'F. UL & OPEX flat rates'!$B$2:$G$43,5)))*1,W$3:W37)+W741)*VLOOKUP(W$881,'F. UL & OPEX flat rates'!$B$2:$G$43,6,0)","v":0},{"$f":"(SUMPRODUCT(($A$3:$A37>($A917-VLOOKUP(X$881,'F. UL & OPEX flat rates'!$B$2:$G$43,5)))*1,X$3:X37)+X741)*VLOOKUP(X$881,'F. UL & OPEX flat rates'!$B$2:$G$43,6,0)","v":0},{"$f":"(SUMPRODUCT(($A$3:$A37>($A917-VLOOKUP(Y$881,'F. UL & OPEX flat rates'!$B$2:$G$43,5)))*1,Y$3:Y37)+Y741)*VLOOKUP(Y$881,'F. UL & OPEX flat rates'!$B$2:$G$43,6,0)","v":0},{"$f":"(SUMPRODUCT(($A$3:$A37>($A917-VLOOKUP(Z$881,'F. UL & OPEX flat rates'!$B$2:$G$43,5)))*1,Z$3:Z37)+Z741)*VLOOKUP(Z$881,'F. UL & OPEX flat rates'!$B$2:$G$43,6,0)","v":0},{"$f":"(SUMPRODUCT(($A$3:$A37>($A917-VLOOKUP(AA$881,'F. UL & OPEX flat rates'!$B$2:$G$43,5)))*1,AA$3:AA37)+AA741)*VLOOKUP(AA$881,'F. UL & OPEX flat rates'!$B$2:$G$43,6,0)","v":0},{"$f":"(SUMPRODUCT(($A$3:$A37>($A917-VLOOKUP(AB$881,'F. UL & OPEX flat rates'!$B$2:$G$43,5)))*1,AB$3:AB37)+AB741)*VLOOKUP(AB$881,'F. UL & OPEX flat rates'!$B$2:$G$43,6,0)","v":0},{"$f":"(SUMPRODUCT(($A$3:$A37>($A917-VLOOKUP(AC$881,'F. UL & OPEX flat rates'!$B$2:$G$43,5)))*1,AC$3:AC37)+AC741)*VLOOKUP(AC$881,'F. UL & OPEX flat rates'!$B$2:$G$43,6,0)","v":0},{"$f":"(SUMPRODUCT(($A$3:$A37>($A917-VLOOKUP(AD$881,'F. UL & OPEX flat rates'!$B$2:$G$43,5)))*1,AD$3:AD37)+AD741)*VLOOKUP(AD$881,'F. UL & OPEX flat rates'!$B$2:$G$43,6,0)","v":0},{"$f":"(SUMPRODUCT(($A$3:$A37>($A917-VLOOKUP(AE$881,'F. UL & OPEX flat rates'!$B$2:$G$43,5)))*1,AE$3:AE37)+AE741)*VLOOKUP(AE$881,'F. UL & OPEX flat rates'!$B$2:$G$43,6,0)","v":0},{"$f":"(SUMPRODUCT(($A$3:$A37>($A917-VLOOKUP(AF$881,'F. UL & OPEX flat rates'!$B$2:$G$43,5)))*1,AF$3:AF37)+AF741)*VLOOKUP(AF$881,'F. UL & OPEX flat rates'!$B$2:$G$43,6,0)","v":0},{"$f":"(SUMPRODUCT(($A$3:$A37>($A917-VLOOKUP(AG$881,'F. UL & OPEX flat rates'!$B$2:$G$43,5)))*1,AG$3:AG37)+AG741)*VLOOKUP(AG$881,'F. UL & OPEX flat rates'!$B$2:$G$43,6,0)","v":0},{"$f":"(SUMPRODUCT(($A$3:$A37>($A917-VLOOKUP(AH$881,'F. UL & OPEX flat rates'!$B$2:$G$43,5)))*1,AH$3:AH37)+AH741)*VLOOKUP(AH$881,'F. UL & OPEX flat rates'!$B$2:$G$43,6,0)","v":0},{"$f":"(SUMPRODUCT(($A$3:$A37>($A917-VLOOKUP(AI$881,'F. UL & OPEX flat rates'!$B$2:$G$43,5)))*1,AI$3:AI37)+AI741)*VLOOKUP(AI$881,'F. UL & OPEX flat rates'!$B$2:$G$43,6,0)","v":0},{"$f":"(SUMPRODUCT(($A$3:$A37>($A917-VLOOKUP(AJ$881,'F. UL & OPEX flat rates'!$B$2:$G$43,5)))*1,AJ$3:AJ37)+AJ741)*VLOOKUP(AJ$881,'F. UL & OPEX flat rates'!$B$2:$G$43,6,0)","v":58000},{"$f":"(SUMPRODUCT(($A$3:$A37>($A917-VLOOKUP(AK$881,'F. UL & OPEX flat rates'!$B$2:$G$43,5)))*1,AK$3:AK37)+AK741)*VLOOKUP(AK$881,'F. UL & OPEX flat rates'!$B$2:$G$43,6,0)","v":0},{"$f":"(SUMPRODUCT(($A$3:$A37>($A917-VLOOKUP(AL$881,'F. UL & OPEX flat rates'!$B$2:$G$43,5)))*1,AL$3:AL37)+AL741)*VLOOKUP(AL$881,'F. UL & OPEX flat rates'!$B$2:$G$43,6,0)","v":0},{"$f":"(SUMPRODUCT(($A$3:$A37>($A917-VLOOKUP(AM$881,'F. UL & OPEX flat rates'!$B$2:$G$43,5)))*1,AM$3:AM37)+AM741)*VLOOKUP(AM$881,'F. UL & OPEX flat rates'!$B$2:$G$43,6,0)","v":0},{"$f":"(SUMPRODUCT(($A$3:$A37>($A917-VLOOKUP(AN$881,'F. UL & OPEX flat rates'!$B$2:$G$43,5)))*1,AN$3:AN37)+AN741)*VLOOKUP(AN$881,'F. UL & OPEX flat rates'!$B$2:$G$43,6,0)","v":0},{"$f":"(SUMPRODUCT(($A$3:$A37>($A917-VLOOKUP(AO$881,'F. UL & OPEX flat rates'!$B$2:$G$43,5)))*1,AO$3:AO37)+AO741)*VLOOKUP(AO$881,'F. UL & OPEX flat rates'!$B$2:$G$43,6,0)","v":0},{"$f":"(SUMPRODUCT(($A$3:$A37>($A917-VLOOKUP(AP$881,'F. UL & OPEX flat rates'!$B$2:$G$43,5)))*1,AP$3:AP37)+AP741)*VLOOKUP(AP$881,'F. UL & OPEX flat rates'!$B$2:$G$43,6,0)","v":0},{"$f":"(SUMPRODUCT(($A$3:$A37>($A917-VLOOKUP(AQ$881,'F. UL & OPEX flat rates'!$B$2:$G$43,5)))*1,AQ$3:AQ37)+AQ741)*VLOOKUP(AQ$881,'F. UL & OPEX flat rates'!$B$2:$G$43,6,0)","v":0}]
[2051,58000,{"$f":"(SUMPRODUCT(($A$3:$A38>($A918-VLOOKUP(C$881,'F. UL & OPEX flat rates'!$B$2:$G$43,5)))*1,C$3:C38)+C742)*VLOOKUP(C$881,'F. UL & OPEX flat rates'!$B$2:$G$43,6,0)","v":0},{"$f":"(SUMPRODUCT(($A$3:$A38>($A918-VLOOKUP(D$881,'F. UL & OPEX flat rates'!$B$2:$G$43,5)))*1,D$3:D38)+D742)*VLOOKUP(D$881,'F. UL & OPEX flat rates'!$B$2:$G$43,6,0)","v":0},{"$f":"(SUMPRODUCT(($A$3:$A38>($A918-VLOOKUP(E$881,'F. UL & OPEX flat rates'!$B$2:$G$43,5)))*1,E$3:E38)+E742)*VLOOKUP(E$881,'F. UL & OPEX flat rates'!$B$2:$G$43,6,0)","v":0},{"$f":"(SUMPRODUCT(($A$3:$A38>($A918-VLOOKUP(F$881,'F. UL & OPEX flat rates'!$B$2:$G$43,5)))*1,F$3:F38)+F742)*VLOOKUP(F$881,'F. UL & OPEX flat rates'!$B$2:$G$43,6,0)","v":0},{"$f":"(SUMPRODUCT(($A$3:$A38>($A918-VLOOKUP(G$881,'F. UL & OPEX flat rates'!$B$2:$G$43,5)))*1,G$3:G38)+G742)*VLOOKUP(G$881,'F. UL & OPEX flat rates'!$B$2:$G$43,6,0)","v":0},{"$f":"(SUMPRODUCT(($A$3:$A38>($A918-VLOOKUP(H$881,'F. UL & OPEX flat rates'!$B$2:$G$43,5)))*1,H$3:H38)+H742)*VLOOKUP(H$881,'F. UL & OPEX flat rates'!$B$2:$G$43,6,0)","v":0},{"$f":"(SUMPRODUCT(($A$3:$A38>($A918-VLOOKUP(I$881,'F. UL & OPEX flat rates'!$B$2:$G$43,5)))*1,I$3:I38)+I742)*VLOOKUP(I$881,'F. UL & OPEX flat rates'!$B$2:$G$43,6,0)","v":0},{"$f":"(SUMPRODUCT(($A$3:$A38>($A918-VLOOKUP(J$881,'F. UL & OPEX flat rates'!$B$2:$G$43,5)))*1,J$3:J38)+J742)*VLOOKUP(J$881,'F. UL & OPEX flat rates'!$B$2:$G$43,6,0)","v":0},{"$f":"(SUMPRODUCT(($A$3:$A38>($A918-VLOOKUP(K$881,'F. UL & OPEX flat rates'!$B$2:$G$43,5)))*1,K$3:K38)+K742)*VLOOKUP(K$881,'F. UL & OPEX flat rates'!$B$2:$G$43,6,0)","v":0},{"$f":"(SUMPRODUCT(($A$3:$A38>($A918-VLOOKUP(L$881,'F. UL & OPEX flat rates'!$B$2:$G$43,5)))*1,L$3:L38)+L742)*VLOOKUP(L$881,'F. UL & OPEX flat rates'!$B$2:$G$43,6,0)","v":0},{"$f":"(SUMPRODUCT(($A$3:$A38>($A918-VLOOKUP(M$881,'F. UL & OPEX flat rates'!$B$2:$G$43,5)))*1,M$3:M38)+M742)*VLOOKUP(M$881,'F. UL & OPEX flat rates'!$B$2:$G$43,6,0)","v":0},{"$f":"(SUMPRODUCT(($A$3:$A38>($A918-VLOOKUP(N$881,'F. UL & OPEX flat rates'!$B$2:$G$43,5)))*1,N$3:N38)+N742)*VLOOKUP(N$881,'F. UL & OPEX flat rates'!$B$2:$G$43,6,0)","v":0},{"$f":"(SUMPRODUCT(($A$3:$A38>($A918-VLOOKUP(O$881,'F. UL & OPEX flat rates'!$B$2:$G$43,5)))*1,O$3:O38)+O742)*VLOOKUP(O$881,'F. UL & OPEX flat rates'!$B$2:$G$43,6,0)","v":0},{"$f":"(SUMPRODUCT(($A$3:$A38>($A918-VLOOKUP(P$881,'F. UL & OPEX flat rates'!$B$2:$G$43,5)))*1,P$3:P38)+P742)*VLOOKUP(P$881,'F. UL & OPEX flat rates'!$B$2:$G$43,6,0)","v":0},{"$f":"(SUMPRODUCT(($A$3:$A38>($A918-VLOOKUP(Q$881,'F. UL & OPEX flat rates'!$B$2:$G$43,5)))*1,Q$3:Q38)+Q742)*VLOOKUP(Q$881,'F. UL & OPEX flat rates'!$B$2:$G$43,6,0)","v":0},{"$f":"(SUMPRODUCT(($A$3:$A38>($A918-VLOOKUP(R$881,'F. UL & OPEX flat rates'!$B$2:$G$43,5)))*1,R$3:R38)+R742)*VLOOKUP(R$881,'F. UL & OPEX flat rates'!$B$2:$G$43,6,0)","v":0},{"$f":"(SUMPRODUCT(($A$3:$A38>($A918-VLOOKUP(S$881,'F. UL & OPEX flat rates'!$B$2:$G$43,5)))*1,S$3:S38)+S742)*VLOOKUP(S$881,'F. UL & OPEX flat rates'!$B$2:$G$43,6,0)","v":0},{"$f":"(SUMPRODUCT(($A$3:$A38>($A918-VLOOKUP(T$881,'F. UL & OPEX flat rates'!$B$2:$G$43,5)))*1,T$3:T38)+T742)*VLOOKUP(T$881,'F. UL & OPEX flat rates'!$B$2:$G$43,6,0)","v":0},{"$f":"(SUMPRODUCT(($A$3:$A38>($A918-VLOOKUP(U$881,'F. UL & OPEX flat rates'!$B$2:$G$43,5)))*1,U$3:U38)+U742)*VLOOKUP(U$881,'F. UL & OPEX flat rates'!$B$2:$G$43,6,0)","v":0},{"$f":"(SUMPRODUCT(($A$3:$A38>($A918-VLOOKUP(V$881,'F. UL & OPEX flat rates'!$B$2:$G$43,5)))*1,V$3:V38)+V742)*VLOOKUP(V$881,'F. UL & OPEX flat rates'!$B$2:$G$43,6,0)","v":0},{"$f":"(SUMPRODUCT(($A$3:$A38>($A918-VLOOKUP(W$881,'F. UL & OPEX flat rates'!$B$2:$G$43,5)))*1,W$3:W38)+W742)*VLOOKUP(W$881,'F. UL & OPEX flat rates'!$B$2:$G$43,6,0)","v":0},{"$f":"(SUMPRODUCT(($A$3:$A38>($A918-VLOOKUP(X$881,'F. UL & OPEX flat rates'!$B$2:$G$43,5)))*1,X$3:X38)+X742)*VLOOKUP(X$881,'F. UL & OPEX flat rates'!$B$2:$G$43,6,0)","v":0},{"$f":"(SUMPRODUCT(($A$3:$A38>($A918-VLOOKUP(Y$881,'F. UL & OPEX flat rates'!$B$2:$G$43,5)))*1,Y$3:Y38)+Y742)*VLOOKUP(Y$881,'F. UL & OPEX flat rates'!$B$2:$G$43,6,0)","v":0},{"$f":"(SUMPRODUCT(($A$3:$A38>($A918-VLOOKUP(Z$881,'F. UL & OPEX flat rates'!$B$2:$G$43,5)))*1,Z$3:Z38)+Z742)*VLOOKUP(Z$881,'F. UL & OPEX flat rates'!$B$2:$G$43,6,0)","v":0},{"$f":"(SUMPRODUCT(($A$3:$A38>($A918-VLOOKUP(AA$881,'F. UL & OPEX flat rates'!$B$2:$G$43,5)))*1,AA$3:AA38)+AA742)*VLOOKUP(AA$881,'F. UL & OPEX flat rates'!$B$2:$G$43,6,0)","v":0},{"$f":"(SUMPRODUCT(($A$3:$A38>($A918-VLOOKUP(AB$881,'F. UL & OPEX flat rates'!$B$2:$G$43,5)))*1,AB$3:AB38)+AB742)*VLOOKUP(AB$881,'F. UL & OPEX flat rates'!$B$2:$G$43,6,0)","v":0},{"$f":"(SUMPRODUCT(($A$3:$A38>($A918-VLOOKUP(AC$881,'F. UL & OPEX flat rates'!$B$2:$G$43,5)))*1,AC$3:AC38)+AC742)*VLOOKUP(AC$881,'F. UL & OPEX flat rates'!$B$2:$G$43,6,0)","v":0},{"$f":"(SUMPRODUCT(($A$3:$A38>($A918-VLOOKUP(AD$881,'F. UL & OPEX flat rates'!$B$2:$G$43,5)))*1,AD$3:AD38)+AD742)*VLOOKUP(AD$881,'F. UL & OPEX flat rates'!$B$2:$G$43,6,0)","v":0},{"$f":"(SUMPRODUCT(($A$3:$A38>($A918-VLOOKUP(AE$881,'F. UL & OPEX flat rates'!$B$2:$G$43,5)))*1,AE$3:AE38)+AE742)*VLOOKUP(AE$881,'F. UL & OPEX flat rates'!$B$2:$G$43,6,0)","v":0},{"$f":"(SUMPRODUCT(($A$3:$A38>($A918-VLOOKUP(AF$881,'F. UL & OPEX flat rates'!$B$2:$G$43,5)))*1,AF$3:AF38)+AF742)*VLOOKUP(AF$881,'F. UL & OPEX flat rates'!$B$2:$G$43,6,0)","v":0},{"$f":"(SUMPRODUCT(($A$3:$A38>($A918-VLOOKUP(AG$881,'F. UL & OPEX flat rates'!$B$2:$G$43,5)))*1,AG$3:AG38)+AG742)*VLOOKUP(AG$881,'F. UL & OPEX flat rates'!$B$2:$G$43,6,0)","v":0},{"$f":"(SUMPRODUCT(($A$3:$A38>($A918-VLOOKUP(AH$881,'F. UL & OPEX flat rates'!$B$2:$G$43,5)))*1,AH$3:AH38)+AH742)*VLOOKUP(AH$881,'F. UL & OPEX flat rates'!$B$2:$G$43,6,0)","v":0},{"$f":"(SUMPRODUCT(($A$3:$A38>($A918-VLOOKUP(AI$881,'F. UL & OPEX flat rates'!$B$2:$G$43,5)))*1,AI$3:AI38)+AI742)*VLOOKUP(AI$881,'F. UL & OPEX flat rates'!$B$2:$G$43,6,0)","v":0},{"$f":"(SUMPRODUCT(($A$3:$A38>($A918-VLOOKUP(AJ$881,'F. UL & OPEX flat rates'!$B$2:$G$43,5)))*1,AJ$3:AJ38)+AJ742)*VLOOKUP(AJ$881,'F. UL & OPEX flat rates'!$B$2:$G$43,6,0)","v":58000},{"$f":"(SUMPRODUCT(($A$3:$A38>($A918-VLOOKUP(AK$881,'F. UL & OPEX flat rates'!$B$2:$G$43,5)))*1,AK$3:AK38)+AK742)*VLOOKUP(AK$881,'F. UL & OPEX flat rates'!$B$2:$G$43,6,0)","v":0},{"$f":"(SUMPRODUCT(($A$3:$A38>($A918-VLOOKUP(AL$881,'F. UL & OPEX flat rates'!$B$2:$G$43,5)))*1,AL$3:AL38)+AL742)*VLOOKUP(AL$881,'F. UL & OPEX flat rates'!$B$2:$G$43,6,0)","v":0},{"$f":"(SUMPRODUCT(($A$3:$A38>($A918-VLOOKUP(AM$881,'F. UL & OPEX flat rates'!$B$2:$G$43,5)))*1,AM$3:AM38)+AM742)*VLOOKUP(AM$881,'F. UL & OPEX flat rates'!$B$2:$G$43,6,0)","v":0},{"$f":"(SUMPRODUCT(($A$3:$A38>($A918-VLOOKUP(AN$881,'F. UL & OPEX flat rates'!$B$2:$G$43,5)))*1,AN$3:AN38)+AN742)*VLOOKUP(AN$881,'F. UL & OPEX flat rates'!$B$2:$G$43,6,0)","v":0},{"$f":"(SUMPRODUCT(($A$3:$A38>($A918-VLOOKUP(AO$881,'F. UL & OPEX flat rates'!$B$2:$G$43,5)))*1,AO$3:AO38)+AO742)*VLOOKUP(AO$881,'F. UL & OPEX flat rates'!$B$2:$G$43,6,0)","v":0},{"$f":"(SUMPRODUCT(($A$3:$A38>($A918-VLOOKUP(AP$881,'F. UL & OPEX flat rates'!$B$2:$G$43,5)))*1,AP$3:AP38)+AP742)*VLOOKUP(AP$881,'F. UL & OPEX flat rates'!$B$2:$G$43,6,0)","v":0},{"$f":"(SUMPRODUCT(($A$3:$A38>($A918-VLOOKUP(AQ$881,'F. UL & OPEX flat rates'!$B$2:$G$43,5)))*1,AQ$3:AQ38)+AQ742)*VLOOKUP(AQ$881,'F. UL & OPEX flat rates'!$B$2:$G$43,6,0)","v":0}]
[2052,58000,{"$f":"(SUMPRODUCT(($A$3:$A39>($A919-VLOOKUP(C$881,'F. UL & OPEX flat rates'!$B$2:$G$43,5)))*1,C$3:C39)+C743)*VLOOKUP(C$881,'F. UL & OPEX flat rates'!$B$2:$G$43,6,0)","v":0},{"$f":"(SUMPRODUCT(($A$3:$A39>($A919-VLOOKUP(D$881,'F. UL & OPEX flat rates'!$B$2:$G$43,5)))*1,D$3:D39)+D743)*VLOOKUP(D$881,'F. UL & OPEX flat rates'!$B$2:$G$43,6,0)","v":0},{"$f":"(SUMPRODUCT(($A$3:$A39>($A919-VLOOKUP(E$881,'F. UL & OPEX flat rates'!$B$2:$G$43,5)))*1,E$3:E39)+E743)*VLOOKUP(E$881,'F. UL & OPEX flat rates'!$B$2:$G$43,6,0)","v":0},{"$f":"(SUMPRODUCT(($A$3:$A39>($A919-VLOOKUP(F$881,'F. UL & OPEX flat rates'!$B$2:$G$43,5)))*1,F$3:F39)+F743)*VLOOKUP(F$881,'F. UL & OPEX flat rates'!$B$2:$G$43,6,0)","v":0},{"$f":"(SUMPRODUCT(($A$3:$A39>($A919-VLOOKUP(G$881,'F. UL & OPEX flat rates'!$B$2:$G$43,5)))*1,G$3:G39)+G743)*VLOOKUP(G$881,'F. UL & OPEX flat rates'!$B$2:$G$43,6,0)","v":0},{"$f":"(SUMPRODUCT(($A$3:$A39>($A919-VLOOKUP(H$881,'F. UL & OPEX flat rates'!$B$2:$G$43,5)))*1,H$3:H39)+H743)*VLOOKUP(H$881,'F. UL & OPEX flat rates'!$B$2:$G$43,6,0)","v":0},{"$f":"(SUMPRODUCT(($A$3:$A39>($A919-VLOOKUP(I$881,'F. UL & OPEX flat rates'!$B$2:$G$43,5)))*1,I$3:I39)+I743)*VLOOKUP(I$881,'F. UL & OPEX flat rates'!$B$2:$G$43,6,0)","v":0},{"$f":"(SUMPRODUCT(($A$3:$A39>($A919-VLOOKUP(J$881,'F. UL & OPEX flat rates'!$B$2:$G$43,5)))*1,J$3:J39)+J743)*VLOOKUP(J$881,'F. UL & OPEX flat rates'!$B$2:$G$43,6,0)","v":0},{"$f":"(SUMPRODUCT(($A$3:$A39>($A919-VLOOKUP(K$881,'F. UL & OPEX flat rates'!$B$2:$G$43,5)))*1,K$3:K39)+K743)*VLOOKUP(K$881,'F. UL & OPEX flat rates'!$B$2:$G$43,6,0)","v":0},{"$f":"(SUMPRODUCT(($A$3:$A39>($A919-VLOOKUP(L$881,'F. UL & OPEX flat rates'!$B$2:$G$43,5)))*1,L$3:L39)+L743)*VLOOKUP(L$881,'F. UL & OPEX flat rates'!$B$2:$G$43,6,0)","v":0},{"$f":"(SUMPRODUCT(($A$3:$A39>($A919-VLOOKUP(M$881,'F. UL & OPEX flat rates'!$B$2:$G$43,5)))*1,M$3:M39)+M743)*VLOOKUP(M$881,'F. UL & OPEX flat rates'!$B$2:$G$43,6,0)","v":0},{"$f":"(SUMPRODUCT(($A$3:$A39>($A919-VLOOKUP(N$881,'F. UL & OPEX flat rates'!$B$2:$G$43,5)))*1,N$3:N39)+N743)*VLOOKUP(N$881,'F. UL & OPEX flat rates'!$B$2:$G$43,6,0)","v":0},{"$f":"(SUMPRODUCT(($A$3:$A39>($A919-VLOOKUP(O$881,'F. UL & OPEX flat rates'!$B$2:$G$43,5)))*1,O$3:O39)+O743)*VLOOKUP(O$881,'F. UL & OPEX flat rates'!$B$2:$G$43,6,0)","v":0},{"$f":"(SUMPRODUCT(($A$3:$A39>($A919-VLOOKUP(P$881,'F. UL & OPEX flat rates'!$B$2:$G$43,5)))*1,P$3:P39)+P743)*VLOOKUP(P$881,'F. UL & OPEX flat rates'!$B$2:$G$43,6,0)","v":0},{"$f":"(SUMPRODUCT(($A$3:$A39>($A919-VLOOKUP(Q$881,'F. UL & OPEX flat rates'!$B$2:$G$43,5)))*1,Q$3:Q39)+Q743)*VLOOKUP(Q$881,'F. UL & OPEX flat rates'!$B$2:$G$43,6,0)","v":0},{"$f":"(SUMPRODUCT(($A$3:$A39>($A919-VLOOKUP(R$881,'F. UL & OPEX flat rates'!$B$2:$G$43,5)))*1,R$3:R39)+R743)*VLOOKUP(R$881,'F. UL & OPEX flat rates'!$B$2:$G$43,6,0)","v":0},{"$f":"(SUMPRODUCT(($A$3:$A39>($A919-VLOOKUP(S$881,'F. UL & OPEX flat rates'!$B$2:$G$43,5)))*1,S$3:S39)+S743)*VLOOKUP(S$881,'F. UL & OPEX flat rates'!$B$2:$G$43,6,0)","v":0},{"$f":"(SUMPRODUCT(($A$3:$A39>($A919-VLOOKUP(T$881,'F. UL & OPEX flat rates'!$B$2:$G$43,5)))*1,T$3:T39)+T743)*VLOOKUP(T$881,'F. UL & OPEX flat rates'!$B$2:$G$43,6,0)","v":0},{"$f":"(SUMPRODUCT(($A$3:$A39>($A919-VLOOKUP(U$881,'F. UL & OPEX flat rates'!$B$2:$G$43,5)))*1,U$3:U39)+U743)*VLOOKUP(U$881,'F. UL & OPEX flat rates'!$B$2:$G$43,6,0)","v":0},{"$f":"(SUMPRODUCT(($A$3:$A39>($A919-VLOOKUP(V$881,'F. UL & OPEX flat rates'!$B$2:$G$43,5)))*1,V$3:V39)+V743)*VLOOKUP(V$881,'F. UL & OPEX flat rates'!$B$2:$G$43,6,0)","v":0},{"$f":"(SUMPRODUCT(($A$3:$A39>($A919-VLOOKUP(W$881,'F. UL & OPEX flat rates'!$B$2:$G$43,5)))*1,W$3:W39)+W743)*VLOOKUP(W$881,'F. UL & OPEX flat rates'!$B$2:$G$43,6,0)","v":0},{"$f":"(SUMPRODUCT(($A$3:$A39>($A919-VLOOKUP(X$881,'F. UL & OPEX flat rates'!$B$2:$G$43,5)))*1,X$3:X39)+X743)*VLOOKUP(X$881,'F. UL & OPEX flat rates'!$B$2:$G$43,6,0)","v":0},{"$f":"(SUMPRODUCT(($A$3:$A39>($A919-VLOOKUP(Y$881,'F. UL & OPEX flat rates'!$B$2:$G$43,5)))*1,Y$3:Y39)+Y743)*VLOOKUP(Y$881,'F. UL & OPEX flat rates'!$B$2:$G$43,6,0)","v":0},{"$f":"(SUMPRODUCT(($A$3:$A39>($A919-VLOOKUP(Z$881,'F. UL & OPEX flat rates'!$B$2:$G$43,5)))*1,Z$3:Z39)+Z743)*VLOOKUP(Z$881,'F. UL & OPEX flat rates'!$B$2:$G$43,6,0)","v":0},{"$f":"(SUMPRODUCT(($A$3:$A39>($A919-VLOOKUP(AA$881,'F. UL & OPEX flat rates'!$B$2:$G$43,5)))*1,AA$3:AA39)+AA743)*VLOOKUP(AA$881,'F. UL & OPEX flat rates'!$B$2:$G$43,6,0)","v":0},{"$f":"(SUMPRODUCT(($A$3:$A39>($A919-VLOOKUP(AB$881,'F. UL & OPEX flat rates'!$B$2:$G$43,5)))*1,AB$3:AB39)+AB743)*VLOOKUP(AB$881,'F. UL & OPEX flat rates'!$B$2:$G$43,6,0)","v":0},{"$f":"(SUMPRODUCT(($A$3:$A39>($A919-VLOOKUP(AC$881,'F. UL & OPEX flat rates'!$B$2:$G$43,5)))*1,AC$3:AC39)+AC743)*VLOOKUP(AC$881,'F. UL & OPEX flat rates'!$B$2:$G$43,6,0)","v":0},{"$f":"(SUMPRODUCT(($A$3:$A39>($A919-VLOOKUP(AD$881,'F. UL & OPEX flat rates'!$B$2:$G$43,5)))*1,AD$3:AD39)+AD743)*VLOOKUP(AD$881,'F. UL & OPEX flat rates'!$B$2:$G$43,6,0)","v":0},{"$f":"(SUMPRODUCT(($A$3:$A39>($A919-VLOOKUP(AE$881,'F. UL & OPEX flat rates'!$B$2:$G$43,5)))*1,AE$3:AE39)+AE743)*VLOOKUP(AE$881,'F. UL & OPEX flat rates'!$B$2:$G$43,6,0)","v":0},{"$f":"(SUMPRODUCT(($A$3:$A39>($A919-VLOOKUP(AF$881,'F. UL & OPEX flat rates'!$B$2:$G$43,5)))*1,AF$3:AF39)+AF743)*VLOOKUP(AF$881,'F. UL & OPEX flat rates'!$B$2:$G$43,6,0)","v":0},{"$f":"(SUMPRODUCT(($A$3:$A39>($A919-VLOOKUP(AG$881,'F. UL & OPEX flat rates'!$B$2:$G$43,5)))*1,AG$3:AG39)+AG743)*VLOOKUP(AG$881,'F. UL & OPEX flat rates'!$B$2:$G$43,6,0)","v":0},{"$f":"(SUMPRODUCT(($A$3:$A39>($A919-VLOOKUP(AH$881,'F. UL & OPEX flat rates'!$B$2:$G$43,5)))*1,AH$3:AH39)+AH743)*VLOOKUP(AH$881,'F. UL & OPEX flat rates'!$B$2:$G$43,6,0)","v":0},{"$f":"(SUMPRODUCT(($A$3:$A39>($A919-VLOOKUP(AI$881,'F. UL & OPEX flat rates'!$B$2:$G$43,5)))*1,AI$3:AI39)+AI743)*VLOOKUP(AI$881,'F. UL & OPEX flat rates'!$B$2:$G$43,6,0)","v":0},{"$f":"(SUMPRODUCT(($A$3:$A39>($A919-VLOOKUP(AJ$881,'F. UL & OPEX flat rates'!$B$2:$G$43,5)))*1,AJ$3:AJ39)+AJ743)*VLOOKUP(AJ$881,'F. UL & OPEX flat rates'!$B$2:$G$43,6,0)","v":58000},{"$f":"(SUMPRODUCT(($A$3:$A39>($A919-VLOOKUP(AK$881,'F. UL & OPEX flat rates'!$B$2:$G$43,5)))*1,AK$3:AK39)+AK743)*VLOOKUP(AK$881,'F. UL & OPEX flat rates'!$B$2:$G$43,6,0)","v":0},{"$f":"(SUMPRODUCT(($A$3:$A39>($A919-VLOOKUP(AL$881,'F. UL & OPEX flat rates'!$B$2:$G$43,5)))*1,AL$3:AL39)+AL743)*VLOOKUP(AL$881,'F. UL & OPEX flat rates'!$B$2:$G$43,6,0)","v":0},{"$f":"(SUMPRODUCT(($A$3:$A39>($A919-VLOOKUP(AM$881,'F. UL & OPEX flat rates'!$B$2:$G$43,5)))*1,AM$3:AM39)+AM743)*VLOOKUP(AM$881,'F. UL & OPEX flat rates'!$B$2:$G$43,6,0)","v":0},{"$f":"(SUMPRODUCT(($A$3:$A39>($A919-VLOOKUP(AN$881,'F. UL & OPEX flat rates'!$B$2:$G$43,5)))*1,AN$3:AN39)+AN743)*VLOOKUP(AN$881,'F. UL & OPEX flat rates'!$B$2:$G$43,6,0)","v":0},{"$f":"(SUMPRODUCT(($A$3:$A39>($A919-VLOOKUP(AO$881,'F. UL & OPEX flat rates'!$B$2:$G$43,5)))*1,AO$3:AO39)+AO743)*VLOOKUP(AO$881,'F. UL & OPEX flat rates'!$B$2:$G$43,6,0)","v":0},{"$f":"(SUMPRODUCT(($A$3:$A39>($A919-VLOOKUP(AP$881,'F. UL & OPEX flat rates'!$B$2:$G$43,5)))*1,AP$3:AP39)+AP743)*VLOOKUP(AP$881,'F. UL & OPEX flat rates'!$B$2:$G$43,6,0)","v":0},{"$f":"(SUMPRODUCT(($A$3:$A39>($A919-VLOOKUP(AQ$881,'F. UL & OPEX flat rates'!$B$2:$G$43,5)))*1,AQ$3:AQ39)+AQ743)*VLOOKUP(AQ$881,'F. UL & OPEX flat rates'!$B$2:$G$43,6,0)","v":0}]
[2053,58000,{"$f":"(SUMPRODUCT(($A$3:$A40>($A920-VLOOKUP(C$881,'F. UL & OPEX flat rates'!$B$2:$G$43,5)))*1,C$3:C40)+C744)*VLOOKUP(C$881,'F. UL & OPEX flat rates'!$B$2:$G$43,6,0)","v":0},{"$f":"(SUMPRODUCT(($A$3:$A40>($A920-VLOOKUP(D$881,'F. UL & OPEX flat rates'!$B$2:$G$43,5)))*1,D$3:D40)+D744)*VLOOKUP(D$881,'F. UL & OPEX flat rates'!$B$2:$G$43,6,0)","v":0},{"$f":"(SUMPRODUCT(($A$3:$A40>($A920-VLOOKUP(E$881,'F. UL & OPEX flat rates'!$B$2:$G$43,5)))*1,E$3:E40)+E744)*VLOOKUP(E$881,'F. UL & OPEX flat rates'!$B$2:$G$43,6,0)","v":0},{"$f":"(SUMPRODUCT(($A$3:$A40>($A920-VLOOKUP(F$881,'F. UL & OPEX flat rates'!$B$2:$G$43,5)))*1,F$3:F40)+F744)*VLOOKUP(F$881,'F. UL & OPEX flat rates'!$B$2:$G$43,6,0)","v":0},{"$f":"(SUMPRODUCT(($A$3:$A40>($A920-VLOOKUP(G$881,'F. UL & OPEX flat rates'!$B$2:$G$43,5)))*1,G$3:G40)+G744)*VLOOKUP(G$881,'F. UL & OPEX flat rates'!$B$2:$G$43,6,0)","v":0},{"$f":"(SUMPRODUCT(($A$3:$A40>($A920-VLOOKUP(H$881,'F. UL & OPEX flat rates'!$B$2:$G$43,5)))*1,H$3:H40)+H744)*VLOOKUP(H$881,'F. UL & OPEX flat rates'!$B$2:$G$43,6,0)","v":0},{"$f":"(SUMPRODUCT(($A$3:$A40>($A920-VLOOKUP(I$881,'F. UL & OPEX flat rates'!$B$2:$G$43,5)))*1,I$3:I40)+I744)*VLOOKUP(I$881,'F. UL & OPEX flat rates'!$B$2:$G$43,6,0)","v":0},{"$f":"(SUMPRODUCT(($A$3:$A40>($A920-VLOOKUP(J$881,'F. UL & OPEX flat rates'!$B$2:$G$43,5)))*1,J$3:J40)+J744)*VLOOKUP(J$881,'F. UL & OPEX flat rates'!$B$2:$G$43,6,0)","v":0},{"$f":"(SUMPRODUCT(($A$3:$A40>($A920-VLOOKUP(K$881,'F. UL & OPEX flat rates'!$B$2:$G$43,5)))*1,K$3:K40)+K744)*VLOOKUP(K$881,'F. UL & OPEX flat rates'!$B$2:$G$43,6,0)","v":0},{"$f":"(SUMPRODUCT(($A$3:$A40>($A920-VLOOKUP(L$881,'F. UL & OPEX flat rates'!$B$2:$G$43,5)))*1,L$3:L40)+L744)*VLOOKUP(L$881,'F. UL & OPEX flat rates'!$B$2:$G$43,6,0)","v":0},{"$f":"(SUMPRODUCT(($A$3:$A40>($A920-VLOOKUP(M$881,'F. UL & OPEX flat rates'!$B$2:$G$43,5)))*1,M$3:M40)+M744)*VLOOKUP(M$881,'F. UL & OPEX flat rates'!$B$2:$G$43,6,0)","v":0},{"$f":"(SUMPRODUCT(($A$3:$A40>($A920-VLOOKUP(N$881,'F. UL & OPEX flat rates'!$B$2:$G$43,5)))*1,N$3:N40)+N744)*VLOOKUP(N$881,'F. UL & OPEX flat rates'!$B$2:$G$43,6,0)","v":0},{"$f":"(SUMPRODUCT(($A$3:$A40>($A920-VLOOKUP(O$881,'F. UL & OPEX flat rates'!$B$2:$G$43,5)))*1,O$3:O40)+O744)*VLOOKUP(O$881,'F. UL & OPEX flat rates'!$B$2:$G$43,6,0)","v":0},{"$f":"(SUMPRODUCT(($A$3:$A40>($A920-VLOOKUP(P$881,'F. UL & OPEX flat rates'!$B$2:$G$43,5)))*1,P$3:P40)+P744)*VLOOKUP(P$881,'F. UL & OPEX flat rates'!$B$2:$G$43,6,0)","v":0},{"$f":"(SUMPRODUCT(($A$3:$A40>($A920-VLOOKUP(Q$881,'F. UL & OPEX flat rates'!$B$2:$G$43,5)))*1,Q$3:Q40)+Q744)*VLOOKUP(Q$881,'F. UL & OPEX flat rates'!$B$2:$G$43,6,0)","v":0},{"$f":"(SUMPRODUCT(($A$3:$A40>($A920-VLOOKUP(R$881,'F. UL & OPEX flat rates'!$B$2:$G$43,5)))*1,R$3:R40)+R744)*VLOOKUP(R$881,'F. UL & OPEX flat rates'!$B$2:$G$43,6,0)","v":0},{"$f":"(SUMPRODUCT(($A$3:$A40>($A920-VLOOKUP(S$881,'F. UL & OPEX flat rates'!$B$2:$G$43,5)))*1,S$3:S40)+S744)*VLOOKUP(S$881,'F. UL & OPEX flat rates'!$B$2:$G$43,6,0)","v":0},{"$f":"(SUMPRODUCT(($A$3:$A40>($A920-VLOOKUP(T$881,'F. UL & OPEX flat rates'!$B$2:$G$43,5)))*1,T$3:T40)+T744)*VLOOKUP(T$881,'F. UL & OPEX flat rates'!$B$2:$G$43,6,0)","v":0},{"$f":"(SUMPRODUCT(($A$3:$A40>($A920-VLOOKUP(U$881,'F. UL & OPEX flat rates'!$B$2:$G$43,5)))*1,U$3:U40)+U744)*VLOOKUP(U$881,'F. UL & OPEX flat rates'!$B$2:$G$43,6,0)","v":0},{"$f":"(SUMPRODUCT(($A$3:$A40>($A920-VLOOKUP(V$881,'F. UL & OPEX flat rates'!$B$2:$G$43,5)))*1,V$3:V40)+V744)*VLOOKUP(V$881,'F. UL & OPEX flat rates'!$B$2:$G$43,6,0)","v":0},{"$f":"(SUMPRODUCT(($A$3:$A40>($A920-VLOOKUP(W$881,'F. UL & OPEX flat rates'!$B$2:$G$43,5)))*1,W$3:W40)+W744)*VLOOKUP(W$881,'F. UL & OPEX flat rates'!$B$2:$G$43,6,0)","v":0},{"$f":"(SUMPRODUCT(($A$3:$A40>($A920-VLOOKUP(X$881,'F. UL & OPEX flat rates'!$B$2:$G$43,5)))*1,X$3:X40)+X744)*VLOOKUP(X$881,'F. UL & OPEX flat rates'!$B$2:$G$43,6,0)","v":0},{"$f":"(SUMPRODUCT(($A$3:$A40>($A920-VLOOKUP(Y$881,'F. UL & OPEX flat rates'!$B$2:$G$43,5)))*1,Y$3:Y40)+Y744)*VLOOKUP(Y$881,'F. UL & OPEX flat rates'!$B$2:$G$43,6,0)","v":0},{"$f":"(SUMPRODUCT(($A$3:$A40>($A920-VLOOKUP(Z$881,'F. UL & OPEX flat rates'!$B$2:$G$43,5)))*1,Z$3:Z40)+Z744)*VLOOKUP(Z$881,'F. UL & OPEX flat rates'!$B$2:$G$43,6,0)","v":0},{"$f":"(SUMPRODUCT(($A$3:$A40>($A920-VLOOKUP(AA$881,'F. UL & OPEX flat rates'!$B$2:$G$43,5)))*1,AA$3:AA40)+AA744)*VLOOKUP(AA$881,'F. UL & OPEX flat rates'!$B$2:$G$43,6,0)","v":0},{"$f":"(SUMPRODUCT(($A$3:$A40>($A920-VLOOKUP(AB$881,'F. UL & OPEX flat rates'!$B$2:$G$43,5)))*1,AB$3:AB40)+AB744)*VLOOKUP(AB$881,'F. UL & OPEX flat rates'!$B$2:$G$43,6,0)","v":0},{"$f":"(SUMPRODUCT(($A$3:$A40>($A920-VLOOKUP(AC$881,'F. UL & OPEX flat rates'!$B$2:$G$43,5)))*1,AC$3:AC40)+AC744)*VLOOKUP(AC$881,'F. UL & OPEX flat rates'!$B$2:$G$43,6,0)","v":0},{"$f":"(SUMPRODUCT(($A$3:$A40>($A920-VLOOKUP(AD$881,'F. UL & OPEX flat rates'!$B$2:$G$43,5)))*1,AD$3:AD40)+AD744)*VLOOKUP(AD$881,'F. UL & OPEX flat rates'!$B$2:$G$43,6,0)","v":0},{"$f":"(SUMPRODUCT(($A$3:$A40>($A920-VLOOKUP(AE$881,'F. UL & OPEX flat rates'!$B$2:$G$43,5)))*1,AE$3:AE40)+AE744)*VLOOKUP(AE$881,'F. UL & OPEX flat rates'!$B$2:$G$43,6,0)","v":0},{"$f":"(SUMPRODUCT(($A$3:$A40>($A920-VLOOKUP(AF$881,'F. UL & OPEX flat rates'!$B$2:$G$43,5)))*1,AF$3:AF40)+AF744)*VLOOKUP(AF$881,'F. UL & OPEX flat rates'!$B$2:$G$43,6,0)","v":0},{"$f":"(SUMPRODUCT(($A$3:$A40>($A920-VLOOKUP(AG$881,'F. UL & OPEX flat rates'!$B$2:$G$43,5)))*1,AG$3:AG40)+AG744)*VLOOKUP(AG$881,'F. UL & OPEX flat rates'!$B$2:$G$43,6,0)","v":0},{"$f":"(SUMPRODUCT(($A$3:$A40>($A920-VLOOKUP(AH$881,'F. UL & OPEX flat rates'!$B$2:$G$43,5)))*1,AH$3:AH40)+AH744)*VLOOKUP(AH$881,'F. UL & OPEX flat rates'!$B$2:$G$43,6,0)","v":0},{"$f":"(SUMPRODUCT(($A$3:$A40>($A920-VLOOKUP(AI$881,'F. UL & OPEX flat rates'!$B$2:$G$43,5)))*1,AI$3:AI40)+AI744)*VLOOKUP(AI$881,'F. UL & OPEX flat rates'!$B$2:$G$43,6,0)","v":0},{"$f":"(SUMPRODUCT(($A$3:$A40>($A920-VLOOKUP(AJ$881,'F. UL & OPEX flat rates'!$B$2:$G$43,5)))*1,AJ$3:AJ40)+AJ744)*VLOOKUP(AJ$881,'F. UL & OPEX flat rates'!$B$2:$G$43,6,0)","v":58000},{"$f":"(SUMPRODUCT(($A$3:$A40>($A920-VLOOKUP(AK$881,'F. UL & OPEX flat rates'!$B$2:$G$43,5)))*1,AK$3:AK40)+AK744)*VLOOKUP(AK$881,'F. UL & OPEX flat rates'!$B$2:$G$43,6,0)","v":0},{"$f":"(SUMPRODUCT(($A$3:$A40>($A920-VLOOKUP(AL$881,'F. UL & OPEX flat rates'!$B$2:$G$43,5)))*1,AL$3:AL40)+AL744)*VLOOKUP(AL$881,'F. UL & OPEX flat rates'!$B$2:$G$43,6,0)","v":0},{"$f":"(SUMPRODUCT(($A$3:$A40>($A920-VLOOKUP(AM$881,'F. UL & OPEX flat rates'!$B$2:$G$43,5)))*1,AM$3:AM40)+AM744)*VLOOKUP(AM$881,'F. UL & OPEX flat rates'!$B$2:$G$43,6,0)","v":0},{"$f":"(SUMPRODUCT(($A$3:$A40>($A920-VLOOKUP(AN$881,'F. UL & OPEX flat rates'!$B$2:$G$43,5)))*1,AN$3:AN40)+AN744)*VLOOKUP(AN$881,'F. UL & OPEX flat rates'!$B$2:$G$43,6,0)","v":0},{"$f":"(SUMPRODUCT(($A$3:$A40>($A920-VLOOKUP(AO$881,'F. UL & OPEX flat rates'!$B$2:$G$43,5)))*1,AO$3:AO40)+AO744)*VLOOKUP(AO$881,'F. UL & OPEX flat rates'!$B$2:$G$43,6,0)","v":0},{"$f":"(SUMPRODUCT(($A$3:$A40>($A920-VLOOKUP(AP$881,'F. UL & OPEX flat rates'!$B$2:$G$43,5)))*1,AP$3:AP40)+AP744)*VLOOKUP(AP$881,'F. UL & OPEX flat rates'!$B$2:$G$43,6,0)","v":0},{"$f":"(SUMPRODUCT(($A$3:$A40>($A920-VLOOKUP(AQ$881,'F. UL & OPEX flat rates'!$B$2:$G$43,5)))*1,AQ$3:AQ40)+AQ744)*VLOOKUP(AQ$881,'F. UL & OPEX flat rates'!$B$2:$G$43,6,0)","v":0}]
[2054,58000,{"$f":"(SUMPRODUCT(($A$3:$A41>($A921-VLOOKUP(C$881,'F. UL & OPEX flat rates'!$B$2:$G$43,5)))*1,C$3:C41)+C745)*VLOOKUP(C$881,'F. UL & OPEX flat rates'!$B$2:$G$43,6,0)","v":0},{"$f":"(SUMPRODUCT(($A$3:$A41>($A921-VLOOKUP(D$881,'F. UL & OPEX flat rates'!$B$2:$G$43,5)))*1,D$3:D41)+D745)*VLOOKUP(D$881,'F. UL & OPEX flat rates'!$B$2:$G$43,6,0)","v":0},{"$f":"(SUMPRODUCT(($A$3:$A41>($A921-VLOOKUP(E$881,'F. UL & OPEX flat rates'!$B$2:$G$43,5)))*1,E$3:E41)+E745)*VLOOKUP(E$881,'F. UL & OPEX flat rates'!$B$2:$G$43,6,0)","v":0},{"$f":"(SUMPRODUCT(($A$3:$A41>($A921-VLOOKUP(F$881,'F. UL & OPEX flat rates'!$B$2:$G$43,5)))*1,F$3:F41)+F745)*VLOOKUP(F$881,'F. UL & OPEX flat rates'!$B$2:$G$43,6,0)","v":0},{"$f":"(SUMPRODUCT(($A$3:$A41>($A921-VLOOKUP(G$881,'F. UL & OPEX flat rates'!$B$2:$G$43,5)))*1,G$3:G41)+G745)*VLOOKUP(G$881,'F. UL & OPEX flat rates'!$B$2:$G$43,6,0)","v":0},{"$f":"(SUMPRODUCT(($A$3:$A41>($A921-VLOOKUP(H$881,'F. UL & OPEX flat rates'!$B$2:$G$43,5)))*1,H$3:H41)+H745)*VLOOKUP(H$881,'F. UL & OPEX flat rates'!$B$2:$G$43,6,0)","v":0},{"$f":"(SUMPRODUCT(($A$3:$A41>($A921-VLOOKUP(I$881,'F. UL & OPEX flat rates'!$B$2:$G$43,5)))*1,I$3:I41)+I745)*VLOOKUP(I$881,'F. UL & OPEX flat rates'!$B$2:$G$43,6,0)","v":0},{"$f":"(SUMPRODUCT(($A$3:$A41>($A921-VLOOKUP(J$881,'F. UL & OPEX flat rates'!$B$2:$G$43,5)))*1,J$3:J41)+J745)*VLOOKUP(J$881,'F. UL & OPEX flat rates'!$B$2:$G$43,6,0)","v":0},{"$f":"(SUMPRODUCT(($A$3:$A41>($A921-VLOOKUP(K$881,'F. UL & OPEX flat rates'!$B$2:$G$43,5)))*1,K$3:K41)+K745)*VLOOKUP(K$881,'F. UL & OPEX flat rates'!$B$2:$G$43,6,0)","v":0},{"$f":"(SUMPRODUCT(($A$3:$A41>($A921-VLOOKUP(L$881,'F. UL & OPEX flat rates'!$B$2:$G$43,5)))*1,L$3:L41)+L745)*VLOOKUP(L$881,'F. UL & OPEX flat rates'!$B$2:$G$43,6,0)","v":0},{"$f":"(SUMPRODUCT(($A$3:$A41>($A921-VLOOKUP(M$881,'F. UL & OPEX flat rates'!$B$2:$G$43,5)))*1,M$3:M41)+M745)*VLOOKUP(M$881,'F. UL & OPEX flat rates'!$B$2:$G$43,6,0)","v":0},{"$f":"(SUMPRODUCT(($A$3:$A41>($A921-VLOOKUP(N$881,'F. UL & OPEX flat rates'!$B$2:$G$43,5)))*1,N$3:N41)+N745)*VLOOKUP(N$881,'F. UL & OPEX flat rates'!$B$2:$G$43,6,0)","v":0},{"$f":"(SUMPRODUCT(($A$3:$A41>($A921-VLOOKUP(O$881,'F. UL & OPEX flat rates'!$B$2:$G$43,5)))*1,O$3:O41)+O745)*VLOOKUP(O$881,'F. UL & OPEX flat rates'!$B$2:$G$43,6,0)","v":0},{"$f":"(SUMPRODUCT(($A$3:$A41>($A921-VLOOKUP(P$881,'F. UL & OPEX flat rates'!$B$2:$G$43,5)))*1,P$3:P41)+P745)*VLOOKUP(P$881,'F. UL & OPEX flat rates'!$B$2:$G$43,6,0)","v":0},{"$f":"(SUMPRODUCT(($A$3:$A41>($A921-VLOOKUP(Q$881,'F. UL & OPEX flat rates'!$B$2:$G$43,5)))*1,Q$3:Q41)+Q745)*VLOOKUP(Q$881,'F. UL & OPEX flat rates'!$B$2:$G$43,6,0)","v":0},{"$f":"(SUMPRODUCT(($A$3:$A41>($A921-VLOOKUP(R$881,'F. UL & OPEX flat rates'!$B$2:$G$43,5)))*1,R$3:R41)+R745)*VLOOKUP(R$881,'F. UL & OPEX flat rates'!$B$2:$G$43,6,0)","v":0},{"$f":"(SUMPRODUCT(($A$3:$A41>($A921-VLOOKUP(S$881,'F. UL & OPEX flat rates'!$B$2:$G$43,5)))*1,S$3:S41)+S745)*VLOOKUP(S$881,'F. UL & OPEX flat rates'!$B$2:$G$43,6,0)","v":0},{"$f":"(SUMPRODUCT(($A$3:$A41>($A921-VLOOKUP(T$881,'F. UL & OPEX flat rates'!$B$2:$G$43,5)))*1,T$3:T41)+T745)*VLOOKUP(T$881,'F. UL & OPEX flat rates'!$B$2:$G$43,6,0)","v":0},{"$f":"(SUMPRODUCT(($A$3:$A41>($A921-VLOOKUP(U$881,'F. UL & OPEX flat rates'!$B$2:$G$43,5)))*1,U$3:U41)+U745)*VLOOKUP(U$881,'F. UL & OPEX flat rates'!$B$2:$G$43,6,0)","v":0},{"$f":"(SUMPRODUCT(($A$3:$A41>($A921-VLOOKUP(V$881,'F. UL & OPEX flat rates'!$B$2:$G$43,5)))*1,V$3:V41)+V745)*VLOOKUP(V$881,'F. UL & OPEX flat rates'!$B$2:$G$43,6,0)","v":0},{"$f":"(SUMPRODUCT(($A$3:$A41>($A921-VLOOKUP(W$881,'F. UL & OPEX flat rates'!$B$2:$G$43,5)))*1,W$3:W41)+W745)*VLOOKUP(W$881,'F. UL & OPEX flat rates'!$B$2:$G$43,6,0)","v":0},{"$f":"(SUMPRODUCT(($A$3:$A41>($A921-VLOOKUP(X$881,'F. UL & OPEX flat rates'!$B$2:$G$43,5)))*1,X$3:X41)+X745)*VLOOKUP(X$881,'F. UL & OPEX flat rates'!$B$2:$G$43,6,0)","v":0},{"$f":"(SUMPRODUCT(($A$3:$A41>($A921-VLOOKUP(Y$881,'F. UL & OPEX flat rates'!$B$2:$G$43,5)))*1,Y$3:Y41)+Y745)*VLOOKUP(Y$881,'F. UL & OPEX flat rates'!$B$2:$G$43,6,0)","v":0},{"$f":"(SUMPRODUCT(($A$3:$A41>($A921-VLOOKUP(Z$881,'F. UL & OPEX flat rates'!$B$2:$G$43,5)))*1,Z$3:Z41)+Z745)*VLOOKUP(Z$881,'F. UL & OPEX flat rates'!$B$2:$G$43,6,0)","v":0},{"$f":"(SUMPRODUCT(($A$3:$A41>($A921-VLOOKUP(AA$881,'F. UL & OPEX flat rates'!$B$2:$G$43,5)))*1,AA$3:AA41)+AA745)*VLOOKUP(AA$881,'F. UL & OPEX flat rates'!$B$2:$G$43,6,0)","v":0},{"$f":"(SUMPRODUCT(($A$3:$A41>($A921-VLOOKUP(AB$881,'F. UL & OPEX flat rates'!$B$2:$G$43,5)))*1,AB$3:AB41)+AB745)*VLOOKUP(AB$881,'F. UL & OPEX flat rates'!$B$2:$G$43,6,0)","v":0},{"$f":"(SUMPRODUCT(($A$3:$A41>($A921-VLOOKUP(AC$881,'F. UL & OPEX flat rates'!$B$2:$G$43,5)))*1,AC$3:AC41)+AC745)*VLOOKUP(AC$881,'F. UL & OPEX flat rates'!$B$2:$G$43,6,0)","v":0},{"$f":"(SUMPRODUCT(($A$3:$A41>($A921-VLOOKUP(AD$881,'F. UL & OPEX flat rates'!$B$2:$G$43,5)))*1,AD$3:AD41)+AD745)*VLOOKUP(AD$881,'F. UL & OPEX flat rates'!$B$2:$G$43,6,0)","v":0},{"$f":"(SUMPRODUCT(($A$3:$A41>($A921-VLOOKUP(AE$881,'F. UL & OPEX flat rates'!$B$2:$G$43,5)))*1,AE$3:AE41)+AE745)*VLOOKUP(AE$881,'F. UL & OPEX flat rates'!$B$2:$G$43,6,0)","v":0},{"$f":"(SUMPRODUCT(($A$3:$A41>($A921-VLOOKUP(AF$881,'F. UL & OPEX flat rates'!$B$2:$G$43,5)))*1,AF$3:AF41)+AF745)*VLOOKUP(AF$881,'F. UL & OPEX flat rates'!$B$2:$G$43,6,0)","v":0},{"$f":"(SUMPRODUCT(($A$3:$A41>($A921-VLOOKUP(AG$881,'F. UL & OPEX flat rates'!$B$2:$G$43,5)))*1,AG$3:AG41)+AG745)*VLOOKUP(AG$881,'F. UL & OPEX flat rates'!$B$2:$G$43,6,0)","v":0},{"$f":"(SUMPRODUCT(($A$3:$A41>($A921-VLOOKUP(AH$881,'F. UL & OPEX flat rates'!$B$2:$G$43,5)))*1,AH$3:AH41)+AH745)*VLOOKUP(AH$881,'F. UL & OPEX flat rates'!$B$2:$G$43,6,0)","v":0},{"$f":"(SUMPRODUCT(($A$3:$A41>($A921-VLOOKUP(AI$881,'F. UL & OPEX flat rates'!$B$2:$G$43,5)))*1,AI$3:AI41)+AI745)*VLOOKUP(AI$881,'F. UL & OPEX flat rates'!$B$2:$G$43,6,0)","v":0},{"$f":"(SUMPRODUCT(($A$3:$A41>($A921-VLOOKUP(AJ$881,'F. UL & OPEX flat rates'!$B$2:$G$43,5)))*1,AJ$3:AJ41)+AJ745)*VLOOKUP(AJ$881,'F. UL & OPEX flat rates'!$B$2:$G$43,6,0)","v":58000},{"$f":"(SUMPRODUCT(($A$3:$A41>($A921-VLOOKUP(AK$881,'F. UL & OPEX flat rates'!$B$2:$G$43,5)))*1,AK$3:AK41)+AK745)*VLOOKUP(AK$881,'F. UL & OPEX flat rates'!$B$2:$G$43,6,0)","v":0},{"$f":"(SUMPRODUCT(($A$3:$A41>($A921-VLOOKUP(AL$881,'F. UL & OPEX flat rates'!$B$2:$G$43,5)))*1,AL$3:AL41)+AL745)*VLOOKUP(AL$881,'F. UL & OPEX flat rates'!$B$2:$G$43,6,0)","v":0},{"$f":"(SUMPRODUCT(($A$3:$A41>($A921-VLOOKUP(AM$881,'F. UL & OPEX flat rates'!$B$2:$G$43,5)))*1,AM$3:AM41)+AM745)*VLOOKUP(AM$881,'F. UL & OPEX flat rates'!$B$2:$G$43,6,0)","v":0},{"$f":"(SUMPRODUCT(($A$3:$A41>($A921-VLOOKUP(AN$881,'F. UL & OPEX flat rates'!$B$2:$G$43,5)))*1,AN$3:AN41)+AN745)*VLOOKUP(AN$881,'F. UL & OPEX flat rates'!$B$2:$G$43,6,0)","v":0},{"$f":"(SUMPRODUCT(($A$3:$A41>($A921-VLOOKUP(AO$881,'F. UL & OPEX flat rates'!$B$2:$G$43,5)))*1,AO$3:AO41)+AO745)*VLOOKUP(AO$881,'F. UL & OPEX flat rates'!$B$2:$G$43,6,0)","v":0},{"$f":"(SUMPRODUCT(($A$3:$A41>($A921-VLOOKUP(AP$881,'F. UL & OPEX flat rates'!$B$2:$G$43,5)))*1,AP$3:AP41)+AP745)*VLOOKUP(AP$881,'F. UL & OPEX flat rates'!$B$2:$G$43,6,0)","v":0},{"$f":"(SUMPRODUCT(($A$3:$A41>($A921-VLOOKUP(AQ$881,'F. UL & OPEX flat rates'!$B$2:$G$43,5)))*1,AQ$3:AQ41)+AQ745)*VLOOKUP(AQ$881,'F. UL & OPEX flat rates'!$B$2:$G$43,6,0)","v":0}]
[2055,58000,{"$f":"(SUMPRODUCT(($A$3:$A42>($A922-VLOOKUP(C$881,'F. UL & OPEX flat rates'!$B$2:$G$43,5)))*1,C$3:C42)+C746)*VLOOKUP(C$881,'F. UL & OPEX flat rates'!$B$2:$G$43,6,0)","v":0},{"$f":"(SUMPRODUCT(($A$3:$A42>($A922-VLOOKUP(D$881,'F. UL & OPEX flat rates'!$B$2:$G$43,5)))*1,D$3:D42)+D746)*VLOOKUP(D$881,'F. UL & OPEX flat rates'!$B$2:$G$43,6,0)","v":0},{"$f":"(SUMPRODUCT(($A$3:$A42>($A922-VLOOKUP(E$881,'F. UL & OPEX flat rates'!$B$2:$G$43,5)))*1,E$3:E42)+E746)*VLOOKUP(E$881,'F. UL & OPEX flat rates'!$B$2:$G$43,6,0)","v":0},{"$f":"(SUMPRODUCT(($A$3:$A42>($A922-VLOOKUP(F$881,'F. UL & OPEX flat rates'!$B$2:$G$43,5)))*1,F$3:F42)+F746)*VLOOKUP(F$881,'F. UL & OPEX flat rates'!$B$2:$G$43,6,0)","v":0},{"$f":"(SUMPRODUCT(($A$3:$A42>($A922-VLOOKUP(G$881,'F. UL & OPEX flat rates'!$B$2:$G$43,5)))*1,G$3:G42)+G746)*VLOOKUP(G$881,'F. UL & OPEX flat rates'!$B$2:$G$43,6,0)","v":0},{"$f":"(SUMPRODUCT(($A$3:$A42>($A922-VLOOKUP(H$881,'F. UL & OPEX flat rates'!$B$2:$G$43,5)))*1,H$3:H42)+H746)*VLOOKUP(H$881,'F. UL & OPEX flat rates'!$B$2:$G$43,6,0)","v":0},{"$f":"(SUMPRODUCT(($A$3:$A42>($A922-VLOOKUP(I$881,'F. UL & OPEX flat rates'!$B$2:$G$43,5)))*1,I$3:I42)+I746)*VLOOKUP(I$881,'F. UL & OPEX flat rates'!$B$2:$G$43,6,0)","v":0},{"$f":"(SUMPRODUCT(($A$3:$A42>($A922-VLOOKUP(J$881,'F. UL & OPEX flat rates'!$B$2:$G$43,5)))*1,J$3:J42)+J746)*VLOOKUP(J$881,'F. UL & OPEX flat rates'!$B$2:$G$43,6,0)","v":0},{"$f":"(SUMPRODUCT(($A$3:$A42>($A922-VLOOKUP(K$881,'F. UL & OPEX flat rates'!$B$2:$G$43,5)))*1,K$3:K42)+K746)*VLOOKUP(K$881,'F. UL & OPEX flat rates'!$B$2:$G$43,6,0)","v":0},{"$f":"(SUMPRODUCT(($A$3:$A42>($A922-VLOOKUP(L$881,'F. UL & OPEX flat rates'!$B$2:$G$43,5)))*1,L$3:L42)+L746)*VLOOKUP(L$881,'F. UL & OPEX flat rates'!$B$2:$G$43,6,0)","v":0},{"$f":"(SUMPRODUCT(($A$3:$A42>($A922-VLOOKUP(M$881,'F. UL & OPEX flat rates'!$B$2:$G$43,5)))*1,M$3:M42)+M746)*VLOOKUP(M$881,'F. UL & OPEX flat rates'!$B$2:$G$43,6,0)","v":0},{"$f":"(SUMPRODUCT(($A$3:$A42>($A922-VLOOKUP(N$881,'F. UL & OPEX flat rates'!$B$2:$G$43,5)))*1,N$3:N42)+N746)*VLOOKUP(N$881,'F. UL & OPEX flat rates'!$B$2:$G$43,6,0)","v":0},{"$f":"(SUMPRODUCT(($A$3:$A42>($A922-VLOOKUP(O$881,'F. UL & OPEX flat rates'!$B$2:$G$43,5)))*1,O$3:O42)+O746)*VLOOKUP(O$881,'F. UL & OPEX flat rates'!$B$2:$G$43,6,0)","v":0},{"$f":"(SUMPRODUCT(($A$3:$A42>($A922-VLOOKUP(P$881,'F. UL & OPEX flat rates'!$B$2:$G$43,5)))*1,P$3:P42)+P746)*VLOOKUP(P$881,'F. UL & OPEX flat rates'!$B$2:$G$43,6,0)","v":0},{"$f":"(SUMPRODUCT(($A$3:$A42>($A922-VLOOKUP(Q$881,'F. UL & OPEX flat rates'!$B$2:$G$43,5)))*1,Q$3:Q42)+Q746)*VLOOKUP(Q$881,'F. UL & OPEX flat rates'!$B$2:$G$43,6,0)","v":0},{"$f":"(SUMPRODUCT(($A$3:$A42>($A922-VLOOKUP(R$881,'F. UL & OPEX flat rates'!$B$2:$G$43,5)))*1,R$3:R42)+R746)*VLOOKUP(R$881,'F. UL & OPEX flat rates'!$B$2:$G$43,6,0)","v":0},{"$f":"(SUMPRODUCT(($A$3:$A42>($A922-VLOOKUP(S$881,'F. UL & OPEX flat rates'!$B$2:$G$43,5)))*1,S$3:S42)+S746)*VLOOKUP(S$881,'F. UL & OPEX flat rates'!$B$2:$G$43,6,0)","v":0},{"$f":"(SUMPRODUCT(($A$3:$A42>($A922-VLOOKUP(T$881,'F. UL & OPEX flat rates'!$B$2:$G$43,5)))*1,T$3:T42)+T746)*VLOOKUP(T$881,'F. UL & OPEX flat rates'!$B$2:$G$43,6,0)","v":0},{"$f":"(SUMPRODUCT(($A$3:$A42>($A922-VLOOKUP(U$881,'F. UL & OPEX flat rates'!$B$2:$G$43,5)))*1,U$3:U42)+U746)*VLOOKUP(U$881,'F. UL & OPEX flat rates'!$B$2:$G$43,6,0)","v":0},{"$f":"(SUMPRODUCT(($A$3:$A42>($A922-VLOOKUP(V$881,'F. UL & OPEX flat rates'!$B$2:$G$43,5)))*1,V$3:V42)+V746)*VLOOKUP(V$881,'F. UL & OPEX flat rates'!$B$2:$G$43,6,0)","v":0},{"$f":"(SUMPRODUCT(($A$3:$A42>($A922-VLOOKUP(W$881,'F. UL & OPEX flat rates'!$B$2:$G$43,5)))*1,W$3:W42)+W746)*VLOOKUP(W$881,'F. UL & OPEX flat rates'!$B$2:$G$43,6,0)","v":0},{"$f":"(SUMPRODUCT(($A$3:$A42>($A922-VLOOKUP(X$881,'F. UL & OPEX flat rates'!$B$2:$G$43,5)))*1,X$3:X42)+X746)*VLOOKUP(X$881,'F. UL & OPEX flat rates'!$B$2:$G$43,6,0)","v":0},{"$f":"(SUMPRODUCT(($A$3:$A42>($A922-VLOOKUP(Y$881,'F. UL & OPEX flat rates'!$B$2:$G$43,5)))*1,Y$3:Y42)+Y746)*VLOOKUP(Y$881,'F. UL & OPEX flat rates'!$B$2:$G$43,6,0)","v":0},{"$f":"(SUMPRODUCT(($A$3:$A42>($A922-VLOOKUP(Z$881,'F. UL & OPEX flat rates'!$B$2:$G$43,5)))*1,Z$3:Z42)+Z746)*VLOOKUP(Z$881,'F. UL & OPEX flat rates'!$B$2:$G$43,6,0)","v":0},{"$f":"(SUMPRODUCT(($A$3:$A42>($A922-VLOOKUP(AA$881,'F. UL & OPEX flat rates'!$B$2:$G$43,5)))*1,AA$3:AA42)+AA746)*VLOOKUP(AA$881,'F. UL & OPEX flat rates'!$B$2:$G$43,6,0)","v":0},{"$f":"(SUMPRODUCT(($A$3:$A42>($A922-VLOOKUP(AB$881,'F. UL & OPEX flat rates'!$B$2:$G$43,5)))*1,AB$3:AB42)+AB746)*VLOOKUP(AB$881,'F. UL & OPEX flat rates'!$B$2:$G$43,6,0)","v":0},{"$f":"(SUMPRODUCT(($A$3:$A42>($A922-VLOOKUP(AC$881,'F. UL & OPEX flat rates'!$B$2:$G$43,5)))*1,AC$3:AC42)+AC746)*VLOOKUP(AC$881,'F. UL & OPEX flat rates'!$B$2:$G$43,6,0)","v":0},{"$f":"(SUMPRODUCT(($A$3:$A42>($A922-VLOOKUP(AD$881,'F. UL & OPEX flat rates'!$B$2:$G$43,5)))*1,AD$3:AD42)+AD746)*VLOOKUP(AD$881,'F. UL & OPEX flat rates'!$B$2:$G$43,6,0)","v":0},{"$f":"(SUMPRODUCT(($A$3:$A42>($A922-VLOOKUP(AE$881,'F. UL & OPEX flat rates'!$B$2:$G$43,5)))*1,AE$3:AE42)+AE746)*VLOOKUP(AE$881,'F. UL & OPEX flat rates'!$B$2:$G$43,6,0)","v":0},{"$f":"(SUMPRODUCT(($A$3:$A42>($A922-VLOOKUP(AF$881,'F. UL & OPEX flat rates'!$B$2:$G$43,5)))*1,AF$3:AF42)+AF746)*VLOOKUP(AF$881,'F. UL & OPEX flat rates'!$B$2:$G$43,6,0)","v":0},{"$f":"(SUMPRODUCT(($A$3:$A42>($A922-VLOOKUP(AG$881,'F. UL & OPEX flat rates'!$B$2:$G$43,5)))*1,AG$3:AG42)+AG746)*VLOOKUP(AG$881,'F. UL & OPEX flat rates'!$B$2:$G$43,6,0)","v":0},{"$f":"(SUMPRODUCT(($A$3:$A42>($A922-VLOOKUP(AH$881,'F. UL & OPEX flat rates'!$B$2:$G$43,5)))*1,AH$3:AH42)+AH746)*VLOOKUP(AH$881,'F. UL & OPEX flat rates'!$B$2:$G$43,6,0)","v":0},{"$f":"(SUMPRODUCT(($A$3:$A42>($A922-VLOOKUP(AI$881,'F. UL & OPEX flat rates'!$B$2:$G$43,5)))*1,AI$3:AI42)+AI746)*VLOOKUP(AI$881,'F. UL & OPEX flat rates'!$B$2:$G$43,6,0)","v":0},{"$f":"(SUMPRODUCT(($A$3:$A42>($A922-VLOOKUP(AJ$881,'F. UL & OPEX flat rates'!$B$2:$G$43,5)))*1,AJ$3:AJ42)+AJ746)*VLOOKUP(AJ$881,'F. UL & OPEX flat rates'!$B$2:$G$43,6,0)","v":58000},{"$f":"(SUMPRODUCT(($A$3:$A42>($A922-VLOOKUP(AK$881,'F. UL & OPEX flat rates'!$B$2:$G$43,5)))*1,AK$3:AK42)+AK746)*VLOOKUP(AK$881,'F. UL & OPEX flat rates'!$B$2:$G$43,6,0)","v":0},{"$f":"(SUMPRODUCT(($A$3:$A42>($A922-VLOOKUP(AL$881,'F. UL & OPEX flat rates'!$B$2:$G$43,5)))*1,AL$3:AL42)+AL746)*VLOOKUP(AL$881,'F. UL & OPEX flat rates'!$B$2:$G$43,6,0)","v":0},{"$f":"(SUMPRODUCT(($A$3:$A42>($A922-VLOOKUP(AM$881,'F. UL & OPEX flat rates'!$B$2:$G$43,5)))*1,AM$3:AM42)+AM746)*VLOOKUP(AM$881,'F. UL & OPEX flat rates'!$B$2:$G$43,6,0)","v":0},{"$f":"(SUMPRODUCT(($A$3:$A42>($A922-VLOOKUP(AN$881,'F. UL & OPEX flat rates'!$B$2:$G$43,5)))*1,AN$3:AN42)+AN746)*VLOOKUP(AN$881,'F. UL & OPEX flat rates'!$B$2:$G$43,6,0)","v":0},{"$f":"(SUMPRODUCT(($A$3:$A42>($A922-VLOOKUP(AO$881,'F. UL & OPEX flat rates'!$B$2:$G$43,5)))*1,AO$3:AO42)+AO746)*VLOOKUP(AO$881,'F. UL & OPEX flat rates'!$B$2:$G$43,6,0)","v":0},{"$f":"(SUMPRODUCT(($A$3:$A42>($A922-VLOOKUP(AP$881,'F. UL & OPEX flat rates'!$B$2:$G$43,5)))*1,AP$3:AP42)+AP746)*VLOOKUP(AP$881,'F. UL & OPEX flat rates'!$B$2:$G$43,6,0)","v":0},{"$f":"(SUMPRODUCT(($A$3:$A42>($A922-VLOOKUP(AQ$881,'F. UL & OPEX flat rates'!$B$2:$G$43,5)))*1,AQ$3:AQ42)+AQ746)*VLOOKUP(AQ$881,'F. UL & OPEX flat rates'!$B$2:$G$43,6,0)","v":0}]
[2056,58000,{"$f":"(SUMPRODUCT(($A$3:$A43>($A923-VLOOKUP(C$881,'F. UL & OPEX flat rates'!$B$2:$G$43,5)))*1,C$3:C43)+C747)*VLOOKUP(C$881,'F. UL & OPEX flat rates'!$B$2:$G$43,6,0)","v":0},{"$f":"(SUMPRODUCT(($A$3:$A43>($A923-VLOOKUP(D$881,'F. UL & OPEX flat rates'!$B$2:$G$43,5)))*1,D$3:D43)+D747)*VLOOKUP(D$881,'F. UL & OPEX flat rates'!$B$2:$G$43,6,0)","v":0},{"$f":"(SUMPRODUCT(($A$3:$A43>($A923-VLOOKUP(E$881,'F. UL & OPEX flat rates'!$B$2:$G$43,5)))*1,E$3:E43)+E747)*VLOOKUP(E$881,'F. UL & OPEX flat rates'!$B$2:$G$43,6,0)","v":0},{"$f":"(SUMPRODUCT(($A$3:$A43>($A923-VLOOKUP(F$881,'F. UL & OPEX flat rates'!$B$2:$G$43,5)))*1,F$3:F43)+F747)*VLOOKUP(F$881,'F. UL & OPEX flat rates'!$B$2:$G$43,6,0)","v":0},{"$f":"(SUMPRODUCT(($A$3:$A43>($A923-VLOOKUP(G$881,'F. UL & OPEX flat rates'!$B$2:$G$43,5)))*1,G$3:G43)+G747)*VLOOKUP(G$881,'F. UL & OPEX flat rates'!$B$2:$G$43,6,0)","v":0},{"$f":"(SUMPRODUCT(($A$3:$A43>($A923-VLOOKUP(H$881,'F. UL & OPEX flat rates'!$B$2:$G$43,5)))*1,H$3:H43)+H747)*VLOOKUP(H$881,'F. UL & OPEX flat rates'!$B$2:$G$43,6,0)","v":0},{"$f":"(SUMPRODUCT(($A$3:$A43>($A923-VLOOKUP(I$881,'F. UL & OPEX flat rates'!$B$2:$G$43,5)))*1,I$3:I43)+I747)*VLOOKUP(I$881,'F. UL & OPEX flat rates'!$B$2:$G$43,6,0)","v":0},{"$f":"(SUMPRODUCT(($A$3:$A43>($A923-VLOOKUP(J$881,'F. UL & OPEX flat rates'!$B$2:$G$43,5)))*1,J$3:J43)+J747)*VLOOKUP(J$881,'F. UL & OPEX flat rates'!$B$2:$G$43,6,0)","v":0},{"$f":"(SUMPRODUCT(($A$3:$A43>($A923-VLOOKUP(K$881,'F. UL & OPEX flat rates'!$B$2:$G$43,5)))*1,K$3:K43)+K747)*VLOOKUP(K$881,'F. UL & OPEX flat rates'!$B$2:$G$43,6,0)","v":0},{"$f":"(SUMPRODUCT(($A$3:$A43>($A923-VLOOKUP(L$881,'F. UL & OPEX flat rates'!$B$2:$G$43,5)))*1,L$3:L43)+L747)*VLOOKUP(L$881,'F. UL & OPEX flat rates'!$B$2:$G$43,6,0)","v":0},{"$f":"(SUMPRODUCT(($A$3:$A43>($A923-VLOOKUP(M$881,'F. UL & OPEX flat rates'!$B$2:$G$43,5)))*1,M$3:M43)+M747)*VLOOKUP(M$881,'F. UL & OPEX flat rates'!$B$2:$G$43,6,0)","v":0},{"$f":"(SUMPRODUCT(($A$3:$A43>($A923-VLOOKUP(N$881,'F. UL & OPEX flat rates'!$B$2:$G$43,5)))*1,N$3:N43)+N747)*VLOOKUP(N$881,'F. UL & OPEX flat rates'!$B$2:$G$43,6,0)","v":0},{"$f":"(SUMPRODUCT(($A$3:$A43>($A923-VLOOKUP(O$881,'F. UL & OPEX flat rates'!$B$2:$G$43,5)))*1,O$3:O43)+O747)*VLOOKUP(O$881,'F. UL & OPEX flat rates'!$B$2:$G$43,6,0)","v":0},{"$f":"(SUMPRODUCT(($A$3:$A43>($A923-VLOOKUP(P$881,'F. UL & OPEX flat rates'!$B$2:$G$43,5)))*1,P$3:P43)+P747)*VLOOKUP(P$881,'F. UL & OPEX flat rates'!$B$2:$G$43,6,0)","v":0},{"$f":"(SUMPRODUCT(($A$3:$A43>($A923-VLOOKUP(Q$881,'F. UL & OPEX flat rates'!$B$2:$G$43,5)))*1,Q$3:Q43)+Q747)*VLOOKUP(Q$881,'F. UL & OPEX flat rates'!$B$2:$G$43,6,0)","v":0},{"$f":"(SUMPRODUCT(($A$3:$A43>($A923-VLOOKUP(R$881,'F. UL & OPEX flat rates'!$B$2:$G$43,5)))*1,R$3:R43)+R747)*VLOOKUP(R$881,'F. UL & OPEX flat rates'!$B$2:$G$43,6,0)","v":0},{"$f":"(SUMPRODUCT(($A$3:$A43>($A923-VLOOKUP(S$881,'F. UL & OPEX flat rates'!$B$2:$G$43,5)))*1,S$3:S43)+S747)*VLOOKUP(S$881,'F. UL & OPEX flat rates'!$B$2:$G$43,6,0)","v":0},{"$f":"(SUMPRODUCT(($A$3:$A43>($A923-VLOOKUP(T$881,'F. UL & OPEX flat rates'!$B$2:$G$43,5)))*1,T$3:T43)+T747)*VLOOKUP(T$881,'F. UL & OPEX flat rates'!$B$2:$G$43,6,0)","v":0},{"$f":"(SUMPRODUCT(($A$3:$A43>($A923-VLOOKUP(U$881,'F. UL & OPEX flat rates'!$B$2:$G$43,5)))*1,U$3:U43)+U747)*VLOOKUP(U$881,'F. UL & OPEX flat rates'!$B$2:$G$43,6,0)","v":0},{"$f":"(SUMPRODUCT(($A$3:$A43>($A923-VLOOKUP(V$881,'F. UL & OPEX flat rates'!$B$2:$G$43,5)))*1,V$3:V43)+V747)*VLOOKUP(V$881,'F. UL & OPEX flat rates'!$B$2:$G$43,6,0)","v":0},{"$f":"(SUMPRODUCT(($A$3:$A43>($A923-VLOOKUP(W$881,'F. UL & OPEX flat rates'!$B$2:$G$43,5)))*1,W$3:W43)+W747)*VLOOKUP(W$881,'F. UL & OPEX flat rates'!$B$2:$G$43,6,0)","v":0},{"$f":"(SUMPRODUCT(($A$3:$A43>($A923-VLOOKUP(X$881,'F. UL & OPEX flat rates'!$B$2:$G$43,5)))*1,X$3:X43)+X747)*VLOOKUP(X$881,'F. UL & OPEX flat rates'!$B$2:$G$43,6,0)","v":0},{"$f":"(SUMPRODUCT(($A$3:$A43>($A923-VLOOKUP(Y$881,'F. UL & OPEX flat rates'!$B$2:$G$43,5)))*1,Y$3:Y43)+Y747)*VLOOKUP(Y$881,'F. UL & OPEX flat rates'!$B$2:$G$43,6,0)","v":0},{"$f":"(SUMPRODUCT(($A$3:$A43>($A923-VLOOKUP(Z$881,'F. UL & OPEX flat rates'!$B$2:$G$43,5)))*1,Z$3:Z43)+Z747)*VLOOKUP(Z$881,'F. UL & OPEX flat rates'!$B$2:$G$43,6,0)","v":0},{"$f":"(SUMPRODUCT(($A$3:$A43>($A923-VLOOKUP(AA$881,'F. UL & OPEX flat rates'!$B$2:$G$43,5)))*1,AA$3:AA43)+AA747)*VLOOKUP(AA$881,'F. UL & OPEX flat rates'!$B$2:$G$43,6,0)","v":0},{"$f":"(SUMPRODUCT(($A$3:$A43>($A923-VLOOKUP(AB$881,'F. UL & OPEX flat rates'!$B$2:$G$43,5)))*1,AB$3:AB43)+AB747)*VLOOKUP(AB$881,'F. UL & OPEX flat rates'!$B$2:$G$43,6,0)","v":0},{"$f":"(SUMPRODUCT(($A$3:$A43>($A923-VLOOKUP(AC$881,'F. UL & OPEX flat rates'!$B$2:$G$43,5)))*1,AC$3:AC43)+AC747)*VLOOKUP(AC$881,'F. UL & OPEX flat rates'!$B$2:$G$43,6,0)","v":0},{"$f":"(SUMPRODUCT(($A$3:$A43>($A923-VLOOKUP(AD$881,'F. UL & OPEX flat rates'!$B$2:$G$43,5)))*1,AD$3:AD43)+AD747)*VLOOKUP(AD$881,'F. UL & OPEX flat rates'!$B$2:$G$43,6,0)","v":0},{"$f":"(SUMPRODUCT(($A$3:$A43>($A923-VLOOKUP(AE$881,'F. UL & OPEX flat rates'!$B$2:$G$43,5)))*1,AE$3:AE43)+AE747)*VLOOKUP(AE$881,'F. UL & OPEX flat rates'!$B$2:$G$43,6,0)","v":0},{"$f":"(SUMPRODUCT(($A$3:$A43>($A923-VLOOKUP(AF$881,'F. UL & OPEX flat rates'!$B$2:$G$43,5)))*1,AF$3:AF43)+AF747)*VLOOKUP(AF$881,'F. UL & OPEX flat rates'!$B$2:$G$43,6,0)","v":0},{"$f":"(SUMPRODUCT(($A$3:$A43>($A923-VLOOKUP(AG$881,'F. UL & OPEX flat rates'!$B$2:$G$43,5)))*1,AG$3:AG43)+AG747)*VLOOKUP(AG$881,'F. UL & OPEX flat rates'!$B$2:$G$43,6,0)","v":0},{"$f":"(SUMPRODUCT(($A$3:$A43>($A923-VLOOKUP(AH$881,'F. UL & OPEX flat rates'!$B$2:$G$43,5)))*1,AH$3:AH43)+AH747)*VLOOKUP(AH$881,'F. UL & OPEX flat rates'!$B$2:$G$43,6,0)","v":0},{"$f":"(SUMPRODUCT(($A$3:$A43>($A923-VLOOKUP(AI$881,'F. UL & OPEX flat rates'!$B$2:$G$43,5)))*1,AI$3:AI43)+AI747)*VLOOKUP(AI$881,'F. UL & OPEX flat rates'!$B$2:$G$43,6,0)","v":0},{"$f":"(SUMPRODUCT(($A$3:$A43>($A923-VLOOKUP(AJ$881,'F. UL & OPEX flat rates'!$B$2:$G$43,5)))*1,AJ$3:AJ43)+AJ747)*VLOOKUP(AJ$881,'F. UL & OPEX flat rates'!$B$2:$G$43,6,0)","v":58000},{"$f":"(SUMPRODUCT(($A$3:$A43>($A923-VLOOKUP(AK$881,'F. UL & OPEX flat rates'!$B$2:$G$43,5)))*1,AK$3:AK43)+AK747)*VLOOKUP(AK$881,'F. UL & OPEX flat rates'!$B$2:$G$43,6,0)","v":0},{"$f":"(SUMPRODUCT(($A$3:$A43>($A923-VLOOKUP(AL$881,'F. UL & OPEX flat rates'!$B$2:$G$43,5)))*1,AL$3:AL43)+AL747)*VLOOKUP(AL$881,'F. UL & OPEX flat rates'!$B$2:$G$43,6,0)","v":0},{"$f":"(SUMPRODUCT(($A$3:$A43>($A923-VLOOKUP(AM$881,'F. UL & OPEX flat rates'!$B$2:$G$43,5)))*1,AM$3:AM43)+AM747)*VLOOKUP(AM$881,'F. UL & OPEX flat rates'!$B$2:$G$43,6,0)","v":0},{"$f":"(SUMPRODUCT(($A$3:$A43>($A923-VLOOKUP(AN$881,'F. UL & OPEX flat rates'!$B$2:$G$43,5)))*1,AN$3:AN43)+AN747)*VLOOKUP(AN$881,'F. UL & OPEX flat rates'!$B$2:$G$43,6,0)","v":0},{"$f":"(SUMPRODUCT(($A$3:$A43>($A923-VLOOKUP(AO$881,'F. UL & OPEX flat rates'!$B$2:$G$43,5)))*1,AO$3:AO43)+AO747)*VLOOKUP(AO$881,'F. UL & OPEX flat rates'!$B$2:$G$43,6,0)","v":0},{"$f":"(SUMPRODUCT(($A$3:$A43>($A923-VLOOKUP(AP$881,'F. UL & OPEX flat rates'!$B$2:$G$43,5)))*1,AP$3:AP43)+AP747)*VLOOKUP(AP$881,'F. UL & OPEX flat rates'!$B$2:$G$43,6,0)","v":0},{"$f":"(SUMPRODUCT(($A$3:$A43>($A923-VLOOKUP(AQ$881,'F. UL & OPEX flat rates'!$B$2:$G$43,5)))*1,AQ$3:AQ43)+AQ747)*VLOOKUP(AQ$881,'F. UL & OPEX flat rates'!$B$2:$G$43,6,0)","v":0}]
[2057,58000,{"$f":"(SUMPRODUCT(($A$3:$A44>($A924-VLOOKUP(C$881,'F. UL & OPEX flat rates'!$B$2:$G$43,5)))*1,C$3:C44)+C748)*VLOOKUP(C$881,'F. UL & OPEX flat rates'!$B$2:$G$43,6,0)","v":0},{"$f":"(SUMPRODUCT(($A$3:$A44>($A924-VLOOKUP(D$881,'F. UL & OPEX flat rates'!$B$2:$G$43,5)))*1,D$3:D44)+D748)*VLOOKUP(D$881,'F. UL & OPEX flat rates'!$B$2:$G$43,6,0)","v":0},{"$f":"(SUMPRODUCT(($A$3:$A44>($A924-VLOOKUP(E$881,'F. UL & OPEX flat rates'!$B$2:$G$43,5)))*1,E$3:E44)+E748)*VLOOKUP(E$881,'F. UL & OPEX flat rates'!$B$2:$G$43,6,0)","v":0},{"$f":"(SUMPRODUCT(($A$3:$A44>($A924-VLOOKUP(F$881,'F. UL & OPEX flat rates'!$B$2:$G$43,5)))*1,F$3:F44)+F748)*VLOOKUP(F$881,'F. UL & OPEX flat rates'!$B$2:$G$43,6,0)","v":0},{"$f":"(SUMPRODUCT(($A$3:$A44>($A924-VLOOKUP(G$881,'F. UL & OPEX flat rates'!$B$2:$G$43,5)))*1,G$3:G44)+G748)*VLOOKUP(G$881,'F. UL & OPEX flat rates'!$B$2:$G$43,6,0)","v":0},{"$f":"(SUMPRODUCT(($A$3:$A44>($A924-VLOOKUP(H$881,'F. UL & OPEX flat rates'!$B$2:$G$43,5)))*1,H$3:H44)+H748)*VLOOKUP(H$881,'F. UL & OPEX flat rates'!$B$2:$G$43,6,0)","v":0},{"$f":"(SUMPRODUCT(($A$3:$A44>($A924-VLOOKUP(I$881,'F. UL & OPEX flat rates'!$B$2:$G$43,5)))*1,I$3:I44)+I748)*VLOOKUP(I$881,'F. UL & OPEX flat rates'!$B$2:$G$43,6,0)","v":0},{"$f":"(SUMPRODUCT(($A$3:$A44>($A924-VLOOKUP(J$881,'F. UL & OPEX flat rates'!$B$2:$G$43,5)))*1,J$3:J44)+J748)*VLOOKUP(J$881,'F. UL & OPEX flat rates'!$B$2:$G$43,6,0)","v":0},{"$f":"(SUMPRODUCT(($A$3:$A44>($A924-VLOOKUP(K$881,'F. UL & OPEX flat rates'!$B$2:$G$43,5)))*1,K$3:K44)+K748)*VLOOKUP(K$881,'F. UL & OPEX flat rates'!$B$2:$G$43,6,0)","v":0},{"$f":"(SUMPRODUCT(($A$3:$A44>($A924-VLOOKUP(L$881,'F. UL & OPEX flat rates'!$B$2:$G$43,5)))*1,L$3:L44)+L748)*VLOOKUP(L$881,'F. UL & OPEX flat rates'!$B$2:$G$43,6,0)","v":0},{"$f":"(SUMPRODUCT(($A$3:$A44>($A924-VLOOKUP(M$881,'F. UL & OPEX flat rates'!$B$2:$G$43,5)))*1,M$3:M44)+M748)*VLOOKUP(M$881,'F. UL & OPEX flat rates'!$B$2:$G$43,6,0)","v":0},{"$f":"(SUMPRODUCT(($A$3:$A44>($A924-VLOOKUP(N$881,'F. UL & OPEX flat rates'!$B$2:$G$43,5)))*1,N$3:N44)+N748)*VLOOKUP(N$881,'F. UL & OPEX flat rates'!$B$2:$G$43,6,0)","v":0},{"$f":"(SUMPRODUCT(($A$3:$A44>($A924-VLOOKUP(O$881,'F. UL & OPEX flat rates'!$B$2:$G$43,5)))*1,O$3:O44)+O748)*VLOOKUP(O$881,'F. UL & OPEX flat rates'!$B$2:$G$43,6,0)","v":0},{"$f":"(SUMPRODUCT(($A$3:$A44>($A924-VLOOKUP(P$881,'F. UL & OPEX flat rates'!$B$2:$G$43,5)))*1,P$3:P44)+P748)*VLOOKUP(P$881,'F. UL & OPEX flat rates'!$B$2:$G$43,6,0)","v":0},{"$f":"(SUMPRODUCT(($A$3:$A44>($A924-VLOOKUP(Q$881,'F. UL & OPEX flat rates'!$B$2:$G$43,5)))*1,Q$3:Q44)+Q748)*VLOOKUP(Q$881,'F. UL & OPEX flat rates'!$B$2:$G$43,6,0)","v":0},{"$f":"(SUMPRODUCT(($A$3:$A44>($A924-VLOOKUP(R$881,'F. UL & OPEX flat rates'!$B$2:$G$43,5)))*1,R$3:R44)+R748)*VLOOKUP(R$881,'F. UL & OPEX flat rates'!$B$2:$G$43,6,0)","v":0},{"$f":"(SUMPRODUCT(($A$3:$A44>($A924-VLOOKUP(S$881,'F. UL & OPEX flat rates'!$B$2:$G$43,5)))*1,S$3:S44)+S748)*VLOOKUP(S$881,'F. UL & OPEX flat rates'!$B$2:$G$43,6,0)","v":0},{"$f":"(SUMPRODUCT(($A$3:$A44>($A924-VLOOKUP(T$881,'F. UL & OPEX flat rates'!$B$2:$G$43,5)))*1,T$3:T44)+T748)*VLOOKUP(T$881,'F. UL & OPEX flat rates'!$B$2:$G$43,6,0)","v":0},{"$f":"(SUMPRODUCT(($A$3:$A44>($A924-VLOOKUP(U$881,'F. UL & OPEX flat rates'!$B$2:$G$43,5)))*1,U$3:U44)+U748)*VLOOKUP(U$881,'F. UL & OPEX flat rates'!$B$2:$G$43,6,0)","v":0},{"$f":"(SUMPRODUCT(($A$3:$A44>($A924-VLOOKUP(V$881,'F. UL & OPEX flat rates'!$B$2:$G$43,5)))*1,V$3:V44)+V748)*VLOOKUP(V$881,'F. UL & OPEX flat rates'!$B$2:$G$43,6,0)","v":0},{"$f":"(SUMPRODUCT(($A$3:$A44>($A924-VLOOKUP(W$881,'F. UL & OPEX flat rates'!$B$2:$G$43,5)))*1,W$3:W44)+W748)*VLOOKUP(W$881,'F. UL & OPEX flat rates'!$B$2:$G$43,6,0)","v":0},{"$f":"(SUMPRODUCT(($A$3:$A44>($A924-VLOOKUP(X$881,'F. UL & OPEX flat rates'!$B$2:$G$43,5)))*1,X$3:X44)+X748)*VLOOKUP(X$881,'F. UL & OPEX flat rates'!$B$2:$G$43,6,0)","v":0},{"$f":"(SUMPRODUCT(($A$3:$A44>($A924-VLOOKUP(Y$881,'F. UL & OPEX flat rates'!$B$2:$G$43,5)))*1,Y$3:Y44)+Y748)*VLOOKUP(Y$881,'F. UL & OPEX flat rates'!$B$2:$G$43,6,0)","v":0},{"$f":"(SUMPRODUCT(($A$3:$A44>($A924-VLOOKUP(Z$881,'F. UL & OPEX flat rates'!$B$2:$G$43,5)))*1,Z$3:Z44)+Z748)*VLOOKUP(Z$881,'F. UL & OPEX flat rates'!$B$2:$G$43,6,0)","v":0},{"$f":"(SUMPRODUCT(($A$3:$A44>($A924-VLOOKUP(AA$881,'F. UL & OPEX flat rates'!$B$2:$G$43,5)))*1,AA$3:AA44)+AA748)*VLOOKUP(AA$881,'F. UL & OPEX flat rates'!$B$2:$G$43,6,0)","v":0},{"$f":"(SUMPRODUCT(($A$3:$A44>($A924-VLOOKUP(AB$881,'F. UL & OPEX flat rates'!$B$2:$G$43,5)))*1,AB$3:AB44)+AB748)*VLOOKUP(AB$881,'F. UL & OPEX flat rates'!$B$2:$G$43,6,0)","v":0},{"$f":"(SUMPRODUCT(($A$3:$A44>($A924-VLOOKUP(AC$881,'F. UL & OPEX flat rates'!$B$2:$G$43,5)))*1,AC$3:AC44)+AC748)*VLOOKUP(AC$881,'F. UL & OPEX flat rates'!$B$2:$G$43,6,0)","v":0},{"$f":"(SUMPRODUCT(($A$3:$A44>($A924-VLOOKUP(AD$881,'F. UL & OPEX flat rates'!$B$2:$G$43,5)))*1,AD$3:AD44)+AD748)*VLOOKUP(AD$881,'F. UL & OPEX flat rates'!$B$2:$G$43,6,0)","v":0},{"$f":"(SUMPRODUCT(($A$3:$A44>($A924-VLOOKUP(AE$881,'F. UL & OPEX flat rates'!$B$2:$G$43,5)))*1,AE$3:AE44)+AE748)*VLOOKUP(AE$881,'F. UL & OPEX flat rates'!$B$2:$G$43,6,0)","v":0},{"$f":"(SUMPRODUCT(($A$3:$A44>($A924-VLOOKUP(AF$881,'F. UL & OPEX flat rates'!$B$2:$G$43,5)))*1,AF$3:AF44)+AF748)*VLOOKUP(AF$881,'F. UL & OPEX flat rates'!$B$2:$G$43,6,0)","v":0},{"$f":"(SUMPRODUCT(($A$3:$A44>($A924-VLOOKUP(AG$881,'F. UL & OPEX flat rates'!$B$2:$G$43,5)))*1,AG$3:AG44)+AG748)*VLOOKUP(AG$881,'F. UL & OPEX flat rates'!$B$2:$G$43,6,0)","v":0},{"$f":"(SUMPRODUCT(($A$3:$A44>($A924-VLOOKUP(AH$881,'F. UL & OPEX flat rates'!$B$2:$G$43,5)))*1,AH$3:AH44)+AH748)*VLOOKUP(AH$881,'F. UL & OPEX flat rates'!$B$2:$G$43,6,0)","v":0},{"$f":"(SUMPRODUCT(($A$3:$A44>($A924-VLOOKUP(AI$881,'F. UL & OPEX flat rates'!$B$2:$G$43,5)))*1,AI$3:AI44)+AI748)*VLOOKUP(AI$881,'F. UL & OPEX flat rates'!$B$2:$G$43,6,0)","v":0},{"$f":"(SUMPRODUCT(($A$3:$A44>($A924-VLOOKUP(AJ$881,'F. UL & OPEX flat rates'!$B$2:$G$43,5)))*1,AJ$3:AJ44)+AJ748)*VLOOKUP(AJ$881,'F. UL & OPEX flat rates'!$B$2:$G$43,6,0)","v":58000},{"$f":"(SUMPRODUCT(($A$3:$A44>($A924-VLOOKUP(AK$881,'F. UL & OPEX flat rates'!$B$2:$G$43,5)))*1,AK$3:AK44)+AK748)*VLOOKUP(AK$881,'F. UL & OPEX flat rates'!$B$2:$G$43,6,0)","v":0},{"$f":"(SUMPRODUCT(($A$3:$A44>($A924-VLOOKUP(AL$881,'F. UL & OPEX flat rates'!$B$2:$G$43,5)))*1,AL$3:AL44)+AL748)*VLOOKUP(AL$881,'F. UL & OPEX flat rates'!$B$2:$G$43,6,0)","v":0},{"$f":"(SUMPRODUCT(($A$3:$A44>($A924-VLOOKUP(AM$881,'F. UL & OPEX flat rates'!$B$2:$G$43,5)))*1,AM$3:AM44)+AM748)*VLOOKUP(AM$881,'F. UL & OPEX flat rates'!$B$2:$G$43,6,0)","v":0},{"$f":"(SUMPRODUCT(($A$3:$A44>($A924-VLOOKUP(AN$881,'F. UL & OPEX flat rates'!$B$2:$G$43,5)))*1,AN$3:AN44)+AN748)*VLOOKUP(AN$881,'F. UL & OPEX flat rates'!$B$2:$G$43,6,0)","v":0},{"$f":"(SUMPRODUCT(($A$3:$A44>($A924-VLOOKUP(AO$881,'F. UL & OPEX flat rates'!$B$2:$G$43,5)))*1,AO$3:AO44)+AO748)*VLOOKUP(AO$881,'F. UL & OPEX flat rates'!$B$2:$G$43,6,0)","v":0},{"$f":"(SUMPRODUCT(($A$3:$A44>($A924-VLOOKUP(AP$881,'F. UL & OPEX flat rates'!$B$2:$G$43,5)))*1,AP$3:AP44)+AP748)*VLOOKUP(AP$881,'F. UL & OPEX flat rates'!$B$2:$G$43,6,0)","v":0},{"$f":"(SUMPRODUCT(($A$3:$A44>($A924-VLOOKUP(AQ$881,'F. UL & OPEX flat rates'!$B$2:$G$43,5)))*1,AQ$3:AQ44)+AQ748)*VLOOKUP(AQ$881,'F. UL & OPEX flat rates'!$B$2:$G$43,6,0)","v":0}]
[2058,58000,{"$f":"(SUMPRODUCT(($A$3:$A45>($A925-VLOOKUP(C$881,'F. UL & OPEX flat rates'!$B$2:$G$43,5)))*1,C$3:C45)+C749)*VLOOKUP(C$881,'F. UL & OPEX flat rates'!$B$2:$G$43,6,0)","v":0},{"$f":"(SUMPRODUCT(($A$3:$A45>($A925-VLOOKUP(D$881,'F. UL & OPEX flat rates'!$B$2:$G$43,5)))*1,D$3:D45)+D749)*VLOOKUP(D$881,'F. UL & OPEX flat rates'!$B$2:$G$43,6,0)","v":0},{"$f":"(SUMPRODUCT(($A$3:$A45>($A925-VLOOKUP(E$881,'F. UL & OPEX flat rates'!$B$2:$G$43,5)))*1,E$3:E45)+E749)*VLOOKUP(E$881,'F. UL & OPEX flat rates'!$B$2:$G$43,6,0)","v":0},{"$f":"(SUMPRODUCT(($A$3:$A45>($A925-VLOOKUP(F$881,'F. UL & OPEX flat rates'!$B$2:$G$43,5)))*1,F$3:F45)+F749)*VLOOKUP(F$881,'F. UL & OPEX flat rates'!$B$2:$G$43,6,0)","v":0},{"$f":"(SUMPRODUCT(($A$3:$A45>($A925-VLOOKUP(G$881,'F. UL & OPEX flat rates'!$B$2:$G$43,5)))*1,G$3:G45)+G749)*VLOOKUP(G$881,'F. UL & OPEX flat rates'!$B$2:$G$43,6,0)","v":0},{"$f":"(SUMPRODUCT(($A$3:$A45>($A925-VLOOKUP(H$881,'F. UL & OPEX flat rates'!$B$2:$G$43,5)))*1,H$3:H45)+H749)*VLOOKUP(H$881,'F. UL & OPEX flat rates'!$B$2:$G$43,6,0)","v":0},{"$f":"(SUMPRODUCT(($A$3:$A45>($A925-VLOOKUP(I$881,'F. UL & OPEX flat rates'!$B$2:$G$43,5)))*1,I$3:I45)+I749)*VLOOKUP(I$881,'F. UL & OPEX flat rates'!$B$2:$G$43,6,0)","v":0},{"$f":"(SUMPRODUCT(($A$3:$A45>($A925-VLOOKUP(J$881,'F. UL & OPEX flat rates'!$B$2:$G$43,5)))*1,J$3:J45)+J749)*VLOOKUP(J$881,'F. UL & OPEX flat rates'!$B$2:$G$43,6,0)","v":0},{"$f":"(SUMPRODUCT(($A$3:$A45>($A925-VLOOKUP(K$881,'F. UL & OPEX flat rates'!$B$2:$G$43,5)))*1,K$3:K45)+K749)*VLOOKUP(K$881,'F. UL & OPEX flat rates'!$B$2:$G$43,6,0)","v":0},{"$f":"(SUMPRODUCT(($A$3:$A45>($A925-VLOOKUP(L$881,'F. UL & OPEX flat rates'!$B$2:$G$43,5)))*1,L$3:L45)+L749)*VLOOKUP(L$881,'F. UL & OPEX flat rates'!$B$2:$G$43,6,0)","v":0},{"$f":"(SUMPRODUCT(($A$3:$A45>($A925-VLOOKUP(M$881,'F. UL & OPEX flat rates'!$B$2:$G$43,5)))*1,M$3:M45)+M749)*VLOOKUP(M$881,'F. UL & OPEX flat rates'!$B$2:$G$43,6,0)","v":0},{"$f":"(SUMPRODUCT(($A$3:$A45>($A925-VLOOKUP(N$881,'F. UL & OPEX flat rates'!$B$2:$G$43,5)))*1,N$3:N45)+N749)*VLOOKUP(N$881,'F. UL & OPEX flat rates'!$B$2:$G$43,6,0)","v":0},{"$f":"(SUMPRODUCT(($A$3:$A45>($A925-VLOOKUP(O$881,'F. UL & OPEX flat rates'!$B$2:$G$43,5)))*1,O$3:O45)+O749)*VLOOKUP(O$881,'F. UL & OPEX flat rates'!$B$2:$G$43,6,0)","v":0},{"$f":"(SUMPRODUCT(($A$3:$A45>($A925-VLOOKUP(P$881,'F. UL & OPEX flat rates'!$B$2:$G$43,5)))*1,P$3:P45)+P749)*VLOOKUP(P$881,'F. UL & OPEX flat rates'!$B$2:$G$43,6,0)","v":0},{"$f":"(SUMPRODUCT(($A$3:$A45>($A925-VLOOKUP(Q$881,'F. UL & OPEX flat rates'!$B$2:$G$43,5)))*1,Q$3:Q45)+Q749)*VLOOKUP(Q$881,'F. UL & OPEX flat rates'!$B$2:$G$43,6,0)","v":0},{"$f":"(SUMPRODUCT(($A$3:$A45>($A925-VLOOKUP(R$881,'F. UL & OPEX flat rates'!$B$2:$G$43,5)))*1,R$3:R45)+R749)*VLOOKUP(R$881,'F. UL & OPEX flat rates'!$B$2:$G$43,6,0)","v":0},{"$f":"(SUMPRODUCT(($A$3:$A45>($A925-VLOOKUP(S$881,'F. UL & OPEX flat rates'!$B$2:$G$43,5)))*1,S$3:S45)+S749)*VLOOKUP(S$881,'F. UL & OPEX flat rates'!$B$2:$G$43,6,0)","v":0},{"$f":"(SUMPRODUCT(($A$3:$A45>($A925-VLOOKUP(T$881,'F. UL & OPEX flat rates'!$B$2:$G$43,5)))*1,T$3:T45)+T749)*VLOOKUP(T$881,'F. UL & OPEX flat rates'!$B$2:$G$43,6,0)","v":0},{"$f":"(SUMPRODUCT(($A$3:$A45>($A925-VLOOKUP(U$881,'F. UL & OPEX flat rates'!$B$2:$G$43,5)))*1,U$3:U45)+U749)*VLOOKUP(U$881,'F. UL & OPEX flat rates'!$B$2:$G$43,6,0)","v":0},{"$f":"(SUMPRODUCT(($A$3:$A45>($A925-VLOOKUP(V$881,'F. UL & OPEX flat rates'!$B$2:$G$43,5)))*1,V$3:V45)+V749)*VLOOKUP(V$881,'F. UL & OPEX flat rates'!$B$2:$G$43,6,0)","v":0},{"$f":"(SUMPRODUCT(($A$3:$A45>($A925-VLOOKUP(W$881,'F. UL & OPEX flat rates'!$B$2:$G$43,5)))*1,W$3:W45)+W749)*VLOOKUP(W$881,'F. UL & OPEX flat rates'!$B$2:$G$43,6,0)","v":0},{"$f":"(SUMPRODUCT(($A$3:$A45>($A925-VLOOKUP(X$881,'F. UL & OPEX flat rates'!$B$2:$G$43,5)))*1,X$3:X45)+X749)*VLOOKUP(X$881,'F. UL & OPEX flat rates'!$B$2:$G$43,6,0)","v":0},{"$f":"(SUMPRODUCT(($A$3:$A45>($A925-VLOOKUP(Y$881,'F. UL & OPEX flat rates'!$B$2:$G$43,5)))*1,Y$3:Y45)+Y749)*VLOOKUP(Y$881,'F. UL & OPEX flat rates'!$B$2:$G$43,6,0)","v":0},{"$f":"(SUMPRODUCT(($A$3:$A45>($A925-VLOOKUP(Z$881,'F. UL & OPEX flat rates'!$B$2:$G$43,5)))*1,Z$3:Z45)+Z749)*VLOOKUP(Z$881,'F. UL & OPEX flat rates'!$B$2:$G$43,6,0)","v":0},{"$f":"(SUMPRODUCT(($A$3:$A45>($A925-VLOOKUP(AA$881,'F. UL & OPEX flat rates'!$B$2:$G$43,5)))*1,AA$3:AA45)+AA749)*VLOOKUP(AA$881,'F. UL & OPEX flat rates'!$B$2:$G$43,6,0)","v":0},{"$f":"(SUMPRODUCT(($A$3:$A45>($A925-VLOOKUP(AB$881,'F. UL & OPEX flat rates'!$B$2:$G$43,5)))*1,AB$3:AB45)+AB749)*VLOOKUP(AB$881,'F. UL & OPEX flat rates'!$B$2:$G$43,6,0)","v":0},{"$f":"(SUMPRODUCT(($A$3:$A45>($A925-VLOOKUP(AC$881,'F. UL & OPEX flat rates'!$B$2:$G$43,5)))*1,AC$3:AC45)+AC749)*VLOOKUP(AC$881,'F. UL & OPEX flat rates'!$B$2:$G$43,6,0)","v":0},{"$f":"(SUMPRODUCT(($A$3:$A45>($A925-VLOOKUP(AD$881,'F. UL & OPEX flat rates'!$B$2:$G$43,5)))*1,AD$3:AD45)+AD749)*VLOOKUP(AD$881,'F. UL & OPEX flat rates'!$B$2:$G$43,6,0)","v":0},{"$f":"(SUMPRODUCT(($A$3:$A45>($A925-VLOOKUP(AE$881,'F. UL & OPEX flat rates'!$B$2:$G$43,5)))*1,AE$3:AE45)+AE749)*VLOOKUP(AE$881,'F. UL & OPEX flat rates'!$B$2:$G$43,6,0)","v":0},{"$f":"(SUMPRODUCT(($A$3:$A45>($A925-VLOOKUP(AF$881,'F. UL & OPEX flat rates'!$B$2:$G$43,5)))*1,AF$3:AF45)+AF749)*VLOOKUP(AF$881,'F. UL & OPEX flat rates'!$B$2:$G$43,6,0)","v":0},{"$f":"(SUMPRODUCT(($A$3:$A45>($A925-VLOOKUP(AG$881,'F. UL & OPEX flat rates'!$B$2:$G$43,5)))*1,AG$3:AG45)+AG749)*VLOOKUP(AG$881,'F. UL & OPEX flat rates'!$B$2:$G$43,6,0)","v":0},{"$f":"(SUMPRODUCT(($A$3:$A45>($A925-VLOOKUP(AH$881,'F. UL & OPEX flat rates'!$B$2:$G$43,5)))*1,AH$3:AH45)+AH749)*VLOOKUP(AH$881,'F. UL & OPEX flat rates'!$B$2:$G$43,6,0)","v":0},{"$f":"(SUMPRODUCT(($A$3:$A45>($A925-VLOOKUP(AI$881,'F. UL & OPEX flat rates'!$B$2:$G$43,5)))*1,AI$3:AI45)+AI749)*VLOOKUP(AI$881,'F. UL & OPEX flat rates'!$B$2:$G$43,6,0)","v":0},{"$f":"(SUMPRODUCT(($A$3:$A45>($A925-VLOOKUP(AJ$881,'F. UL & OPEX flat rates'!$B$2:$G$43,5)))*1,AJ$3:AJ45)+AJ749)*VLOOKUP(AJ$881,'F. UL & OPEX flat rates'!$B$2:$G$43,6,0)","v":58000},{"$f":"(SUMPRODUCT(($A$3:$A45>($A925-VLOOKUP(AK$881,'F. UL & OPEX flat rates'!$B$2:$G$43,5)))*1,AK$3:AK45)+AK749)*VLOOKUP(AK$881,'F. UL & OPEX flat rates'!$B$2:$G$43,6,0)","v":0},{"$f":"(SUMPRODUCT(($A$3:$A45>($A925-VLOOKUP(AL$881,'F. UL & OPEX flat rates'!$B$2:$G$43,5)))*1,AL$3:AL45)+AL749)*VLOOKUP(AL$881,'F. UL & OPEX flat rates'!$B$2:$G$43,6,0)","v":0},{"$f":"(SUMPRODUCT(($A$3:$A45>($A925-VLOOKUP(AM$881,'F. UL & OPEX flat rates'!$B$2:$G$43,5)))*1,AM$3:AM45)+AM749)*VLOOKUP(AM$881,'F. UL & OPEX flat rates'!$B$2:$G$43,6,0)","v":0},{"$f":"(SUMPRODUCT(($A$3:$A45>($A925-VLOOKUP(AN$881,'F. UL & OPEX flat rates'!$B$2:$G$43,5)))*1,AN$3:AN45)+AN749)*VLOOKUP(AN$881,'F. UL & OPEX flat rates'!$B$2:$G$43,6,0)","v":0},{"$f":"(SUMPRODUCT(($A$3:$A45>($A925-VLOOKUP(AO$881,'F. UL & OPEX flat rates'!$B$2:$G$43,5)))*1,AO$3:AO45)+AO749)*VLOOKUP(AO$881,'F. UL & OPEX flat rates'!$B$2:$G$43,6,0)","v":0},{"$f":"(SUMPRODUCT(($A$3:$A45>($A925-VLOOKUP(AP$881,'F. UL & OPEX flat rates'!$B$2:$G$43,5)))*1,AP$3:AP45)+AP749)*VLOOKUP(AP$881,'F. UL & OPEX flat rates'!$B$2:$G$43,6,0)","v":0},{"$f":"(SUMPRODUCT(($A$3:$A45>($A925-VLOOKUP(AQ$881,'F. UL & OPEX flat rates'!$B$2:$G$43,5)))*1,AQ$3:AQ45)+AQ749)*VLOOKUP(AQ$881,'F. UL & OPEX flat rates'!$B$2:$G$43,6,0)","v":0}]
[2059,58000,{"$f":"(SUMPRODUCT(($A$3:$A46>($A926-VLOOKUP(C$881,'F. UL & OPEX flat rates'!$B$2:$G$43,5)))*1,C$3:C46)+C750)*VLOOKUP(C$881,'F. UL & OPEX flat rates'!$B$2:$G$43,6,0)","v":0},{"$f":"(SUMPRODUCT(($A$3:$A46>($A926-VLOOKUP(D$881,'F. UL & OPEX flat rates'!$B$2:$G$43,5)))*1,D$3:D46)+D750)*VLOOKUP(D$881,'F. UL & OPEX flat rates'!$B$2:$G$43,6,0)","v":0},{"$f":"(SUMPRODUCT(($A$3:$A46>($A926-VLOOKUP(E$881,'F. UL & OPEX flat rates'!$B$2:$G$43,5)))*1,E$3:E46)+E750)*VLOOKUP(E$881,'F. UL & OPEX flat rates'!$B$2:$G$43,6,0)","v":0},{"$f":"(SUMPRODUCT(($A$3:$A46>($A926-VLOOKUP(F$881,'F. UL & OPEX flat rates'!$B$2:$G$43,5)))*1,F$3:F46)+F750)*VLOOKUP(F$881,'F. UL & OPEX flat rates'!$B$2:$G$43,6,0)","v":0},{"$f":"(SUMPRODUCT(($A$3:$A46>($A926-VLOOKUP(G$881,'F. UL & OPEX flat rates'!$B$2:$G$43,5)))*1,G$3:G46)+G750)*VLOOKUP(G$881,'F. UL & OPEX flat rates'!$B$2:$G$43,6,0)","v":0},{"$f":"(SUMPRODUCT(($A$3:$A46>($A926-VLOOKUP(H$881,'F. UL & OPEX flat rates'!$B$2:$G$43,5)))*1,H$3:H46)+H750)*VLOOKUP(H$881,'F. UL & OPEX flat rates'!$B$2:$G$43,6,0)","v":0},{"$f":"(SUMPRODUCT(($A$3:$A46>($A926-VLOOKUP(I$881,'F. UL & OPEX flat rates'!$B$2:$G$43,5)))*1,I$3:I46)+I750)*VLOOKUP(I$881,'F. UL & OPEX flat rates'!$B$2:$G$43,6,0)","v":0},{"$f":"(SUMPRODUCT(($A$3:$A46>($A926-VLOOKUP(J$881,'F. UL & OPEX flat rates'!$B$2:$G$43,5)))*1,J$3:J46)+J750)*VLOOKUP(J$881,'F. UL & OPEX flat rates'!$B$2:$G$43,6,0)","v":0},{"$f":"(SUMPRODUCT(($A$3:$A46>($A926-VLOOKUP(K$881,'F. UL & OPEX flat rates'!$B$2:$G$43,5)))*1,K$3:K46)+K750)*VLOOKUP(K$881,'F. UL & OPEX flat rates'!$B$2:$G$43,6,0)","v":0},{"$f":"(SUMPRODUCT(($A$3:$A46>($A926-VLOOKUP(L$881,'F. UL & OPEX flat rates'!$B$2:$G$43,5)))*1,L$3:L46)+L750)*VLOOKUP(L$881,'F. UL & OPEX flat rates'!$B$2:$G$43,6,0)","v":0},{"$f":"(SUMPRODUCT(($A$3:$A46>($A926-VLOOKUP(M$881,'F. UL & OPEX flat rates'!$B$2:$G$43,5)))*1,M$3:M46)+M750)*VLOOKUP(M$881,'F. UL & OPEX flat rates'!$B$2:$G$43,6,0)","v":0},{"$f":"(SUMPRODUCT(($A$3:$A46>($A926-VLOOKUP(N$881,'F. UL & OPEX flat rates'!$B$2:$G$43,5)))*1,N$3:N46)+N750)*VLOOKUP(N$881,'F. UL & OPEX flat rates'!$B$2:$G$43,6,0)","v":0},{"$f":"(SUMPRODUCT(($A$3:$A46>($A926-VLOOKUP(O$881,'F. UL & OPEX flat rates'!$B$2:$G$43,5)))*1,O$3:O46)+O750)*VLOOKUP(O$881,'F. UL & OPEX flat rates'!$B$2:$G$43,6,0)","v":0},{"$f":"(SUMPRODUCT(($A$3:$A46>($A926-VLOOKUP(P$881,'F. UL & OPEX flat rates'!$B$2:$G$43,5)))*1,P$3:P46)+P750)*VLOOKUP(P$881,'F. UL & OPEX flat rates'!$B$2:$G$43,6,0)","v":0},{"$f":"(SUMPRODUCT(($A$3:$A46>($A926-VLOOKUP(Q$881,'F. UL & OPEX flat rates'!$B$2:$G$43,5)))*1,Q$3:Q46)+Q750)*VLOOKUP(Q$881,'F. UL & OPEX flat rates'!$B$2:$G$43,6,0)","v":0},{"$f":"(SUMPRODUCT(($A$3:$A46>($A926-VLOOKUP(R$881,'F. UL & OPEX flat rates'!$B$2:$G$43,5)))*1,R$3:R46)+R750)*VLOOKUP(R$881,'F. UL & OPEX flat rates'!$B$2:$G$43,6,0)","v":0},{"$f":"(SUMPRODUCT(($A$3:$A46>($A926-VLOOKUP(S$881,'F. UL & OPEX flat rates'!$B$2:$G$43,5)))*1,S$3:S46)+S750)*VLOOKUP(S$881,'F. UL & OPEX flat rates'!$B$2:$G$43,6,0)","v":0},{"$f":"(SUMPRODUCT(($A$3:$A46>($A926-VLOOKUP(T$881,'F. UL & OPEX flat rates'!$B$2:$G$43,5)))*1,T$3:T46)+T750)*VLOOKUP(T$881,'F. UL & OPEX flat rates'!$B$2:$G$43,6,0)","v":0},{"$f":"(SUMPRODUCT(($A$3:$A46>($A926-VLOOKUP(U$881,'F. UL & OPEX flat rates'!$B$2:$G$43,5)))*1,U$3:U46)+U750)*VLOOKUP(U$881,'F. UL & OPEX flat rates'!$B$2:$G$43,6,0)","v":0},{"$f":"(SUMPRODUCT(($A$3:$A46>($A926-VLOOKUP(V$881,'F. UL & OPEX flat rates'!$B$2:$G$43,5)))*1,V$3:V46)+V750)*VLOOKUP(V$881,'F. UL & OPEX flat rates'!$B$2:$G$43,6,0)","v":0},{"$f":"(SUMPRODUCT(($A$3:$A46>($A926-VLOOKUP(W$881,'F. UL & OPEX flat rates'!$B$2:$G$43,5)))*1,W$3:W46)+W750)*VLOOKUP(W$881,'F. UL & OPEX flat rates'!$B$2:$G$43,6,0)","v":0},{"$f":"(SUMPRODUCT(($A$3:$A46>($A926-VLOOKUP(X$881,'F. UL & OPEX flat rates'!$B$2:$G$43,5)))*1,X$3:X46)+X750)*VLOOKUP(X$881,'F. UL & OPEX flat rates'!$B$2:$G$43,6,0)","v":0},{"$f":"(SUMPRODUCT(($A$3:$A46>($A926-VLOOKUP(Y$881,'F. UL & OPEX flat rates'!$B$2:$G$43,5)))*1,Y$3:Y46)+Y750)*VLOOKUP(Y$881,'F. UL & OPEX flat rates'!$B$2:$G$43,6,0)","v":0},{"$f":"(SUMPRODUCT(($A$3:$A46>($A926-VLOOKUP(Z$881,'F. UL & OPEX flat rates'!$B$2:$G$43,5)))*1,Z$3:Z46)+Z750)*VLOOKUP(Z$881,'F. UL & OPEX flat rates'!$B$2:$G$43,6,0)","v":0},{"$f":"(SUMPRODUCT(($A$3:$A46>($A926-VLOOKUP(AA$881,'F. UL & OPEX flat rates'!$B$2:$G$43,5)))*1,AA$3:AA46)+AA750)*VLOOKUP(AA$881,'F. UL & OPEX flat rates'!$B$2:$G$43,6,0)","v":0},{"$f":"(SUMPRODUCT(($A$3:$A46>($A926-VLOOKUP(AB$881,'F. UL & OPEX flat rates'!$B$2:$G$43,5)))*1,AB$3:AB46)+AB750)*VLOOKUP(AB$881,'F. UL & OPEX flat rates'!$B$2:$G$43,6,0)","v":0},{"$f":"(SUMPRODUCT(($A$3:$A46>($A926-VLOOKUP(AC$881,'F. UL & OPEX flat rates'!$B$2:$G$43,5)))*1,AC$3:AC46)+AC750)*VLOOKUP(AC$881,'F. UL & OPEX flat rates'!$B$2:$G$43,6,0)","v":0},{"$f":"(SUMPRODUCT(($A$3:$A46>($A926-VLOOKUP(AD$881,'F. UL & OPEX flat rates'!$B$2:$G$43,5)))*1,AD$3:AD46)+AD750)*VLOOKUP(AD$881,'F. UL & OPEX flat rates'!$B$2:$G$43,6,0)","v":0},{"$f":"(SUMPRODUCT(($A$3:$A46>($A926-VLOOKUP(AE$881,'F. UL & OPEX flat rates'!$B$2:$G$43,5)))*1,AE$3:AE46)+AE750)*VLOOKUP(AE$881,'F. UL & OPEX flat rates'!$B$2:$G$43,6,0)","v":0},{"$f":"(SUMPRODUCT(($A$3:$A46>($A926-VLOOKUP(AF$881,'F. UL & OPEX flat rates'!$B$2:$G$43,5)))*1,AF$3:AF46)+AF750)*VLOOKUP(AF$881,'F. UL & OPEX flat rates'!$B$2:$G$43,6,0)","v":0},{"$f":"(SUMPRODUCT(($A$3:$A46>($A926-VLOOKUP(AG$881,'F. UL & OPEX flat rates'!$B$2:$G$43,5)))*1,AG$3:AG46)+AG750)*VLOOKUP(AG$881,'F. UL & OPEX flat rates'!$B$2:$G$43,6,0)","v":0},{"$f":"(SUMPRODUCT(($A$3:$A46>($A926-VLOOKUP(AH$881,'F. UL & OPEX flat rates'!$B$2:$G$43,5)))*1,AH$3:AH46)+AH750)*VLOOKUP(AH$881,'F. UL & OPEX flat rates'!$B$2:$G$43,6,0)","v":0},{"$f":"(SUMPRODUCT(($A$3:$A46>($A926-VLOOKUP(AI$881,'F. UL & OPEX flat rates'!$B$2:$G$43,5)))*1,AI$3:AI46)+AI750)*VLOOKUP(AI$881,'F. UL & OPEX flat rates'!$B$2:$G$43,6,0)","v":0},{"$f":"(SUMPRODUCT(($A$3:$A46>($A926-VLOOKUP(AJ$881,'F. UL & OPEX flat rates'!$B$2:$G$43,5)))*1,AJ$3:AJ46)+AJ750)*VLOOKUP(AJ$881,'F. UL & OPEX flat rates'!$B$2:$G$43,6,0)","v":58000},{"$f":"(SUMPRODUCT(($A$3:$A46>($A926-VLOOKUP(AK$881,'F. UL & OPEX flat rates'!$B$2:$G$43,5)))*1,AK$3:AK46)+AK750)*VLOOKUP(AK$881,'F. UL & OPEX flat rates'!$B$2:$G$43,6,0)","v":0},{"$f":"(SUMPRODUCT(($A$3:$A46>($A926-VLOOKUP(AL$881,'F. UL & OPEX flat rates'!$B$2:$G$43,5)))*1,AL$3:AL46)+AL750)*VLOOKUP(AL$881,'F. UL & OPEX flat rates'!$B$2:$G$43,6,0)","v":0},{"$f":"(SUMPRODUCT(($A$3:$A46>($A926-VLOOKUP(AM$881,'F. UL & OPEX flat rates'!$B$2:$G$43,5)))*1,AM$3:AM46)+AM750)*VLOOKUP(AM$881,'F. UL & OPEX flat rates'!$B$2:$G$43,6,0)","v":0},{"$f":"(SUMPRODUCT(($A$3:$A46>($A926-VLOOKUP(AN$881,'F. UL & OPEX flat rates'!$B$2:$G$43,5)))*1,AN$3:AN46)+AN750)*VLOOKUP(AN$881,'F. UL & OPEX flat rates'!$B$2:$G$43,6,0)","v":0},{"$f":"(SUMPRODUCT(($A$3:$A46>($A926-VLOOKUP(AO$881,'F. UL & OPEX flat rates'!$B$2:$G$43,5)))*1,AO$3:AO46)+AO750)*VLOOKUP(AO$881,'F. UL & OPEX flat rates'!$B$2:$G$43,6,0)","v":0},{"$f":"(SUMPRODUCT(($A$3:$A46>($A926-VLOOKUP(AP$881,'F. UL & OPEX flat rates'!$B$2:$G$43,5)))*1,AP$3:AP46)+AP750)*VLOOKUP(AP$881,'F. UL & OPEX flat rates'!$B$2:$G$43,6,0)","v":0},{"$f":"(SUMPRODUCT(($A$3:$A46>($A926-VLOOKUP(AQ$881,'F. UL & OPEX flat rates'!$B$2:$G$43,5)))*1,AQ$3:AQ46)+AQ750)*VLOOKUP(AQ$881,'F. UL & OPEX flat rates'!$B$2:$G$43,6,0)","v":0}]
[2060,58000,{"$f":"(SUMPRODUCT(($A$3:$A47>($A927-VLOOKUP(C$881,'F. UL & OPEX flat rates'!$B$2:$G$43,5)))*1,C$3:C47)+C751)*VLOOKUP(C$881,'F. UL & OPEX flat rates'!$B$2:$G$43,6,0)","v":0},{"$f":"(SUMPRODUCT(($A$3:$A47>($A927-VLOOKUP(D$881,'F. UL & OPEX flat rates'!$B$2:$G$43,5)))*1,D$3:D47)+D751)*VLOOKUP(D$881,'F. UL & OPEX flat rates'!$B$2:$G$43,6,0)","v":0},{"$f":"(SUMPRODUCT(($A$3:$A47>($A927-VLOOKUP(E$881,'F. UL & OPEX flat rates'!$B$2:$G$43,5)))*1,E$3:E47)+E751)*VLOOKUP(E$881,'F. UL & OPEX flat rates'!$B$2:$G$43,6,0)","v":0},{"$f":"(SUMPRODUCT(($A$3:$A47>($A927-VLOOKUP(F$881,'F. UL & OPEX flat rates'!$B$2:$G$43,5)))*1,F$3:F47)+F751)*VLOOKUP(F$881,'F. UL & OPEX flat rates'!$B$2:$G$43,6,0)","v":0},{"$f":"(SUMPRODUCT(($A$3:$A47>($A927-VLOOKUP(G$881,'F. UL & OPEX flat rates'!$B$2:$G$43,5)))*1,G$3:G47)+G751)*VLOOKUP(G$881,'F. UL & OPEX flat rates'!$B$2:$G$43,6,0)","v":0},{"$f":"(SUMPRODUCT(($A$3:$A47>($A927-VLOOKUP(H$881,'F. UL & OPEX flat rates'!$B$2:$G$43,5)))*1,H$3:H47)+H751)*VLOOKUP(H$881,'F. UL & OPEX flat rates'!$B$2:$G$43,6,0)","v":0},{"$f":"(SUMPRODUCT(($A$3:$A47>($A927-VLOOKUP(I$881,'F. UL & OPEX flat rates'!$B$2:$G$43,5)))*1,I$3:I47)+I751)*VLOOKUP(I$881,'F. UL & OPEX flat rates'!$B$2:$G$43,6,0)","v":0},{"$f":"(SUMPRODUCT(($A$3:$A47>($A927-VLOOKUP(J$881,'F. UL & OPEX flat rates'!$B$2:$G$43,5)))*1,J$3:J47)+J751)*VLOOKUP(J$881,'F. UL & OPEX flat rates'!$B$2:$G$43,6,0)","v":0},{"$f":"(SUMPRODUCT(($A$3:$A47>($A927-VLOOKUP(K$881,'F. UL & OPEX flat rates'!$B$2:$G$43,5)))*1,K$3:K47)+K751)*VLOOKUP(K$881,'F. UL & OPEX flat rates'!$B$2:$G$43,6,0)","v":0},{"$f":"(SUMPRODUCT(($A$3:$A47>($A927-VLOOKUP(L$881,'F. UL & OPEX flat rates'!$B$2:$G$43,5)))*1,L$3:L47)+L751)*VLOOKUP(L$881,'F. UL & OPEX flat rates'!$B$2:$G$43,6,0)","v":0},{"$f":"(SUMPRODUCT(($A$3:$A47>($A927-VLOOKUP(M$881,'F. UL & OPEX flat rates'!$B$2:$G$43,5)))*1,M$3:M47)+M751)*VLOOKUP(M$881,'F. UL & OPEX flat rates'!$B$2:$G$43,6,0)","v":0},{"$f":"(SUMPRODUCT(($A$3:$A47>($A927-VLOOKUP(N$881,'F. UL & OPEX flat rates'!$B$2:$G$43,5)))*1,N$3:N47)+N751)*VLOOKUP(N$881,'F. UL & OPEX flat rates'!$B$2:$G$43,6,0)","v":0},{"$f":"(SUMPRODUCT(($A$3:$A47>($A927-VLOOKUP(O$881,'F. UL & OPEX flat rates'!$B$2:$G$43,5)))*1,O$3:O47)+O751)*VLOOKUP(O$881,'F. UL & OPEX flat rates'!$B$2:$G$43,6,0)","v":0},{"$f":"(SUMPRODUCT(($A$3:$A47>($A927-VLOOKUP(P$881,'F. UL & OPEX flat rates'!$B$2:$G$43,5)))*1,P$3:P47)+P751)*VLOOKUP(P$881,'F. UL & OPEX flat rates'!$B$2:$G$43,6,0)","v":0},{"$f":"(SUMPRODUCT(($A$3:$A47>($A927-VLOOKUP(Q$881,'F. UL & OPEX flat rates'!$B$2:$G$43,5)))*1,Q$3:Q47)+Q751)*VLOOKUP(Q$881,'F. UL & OPEX flat rates'!$B$2:$G$43,6,0)","v":0},{"$f":"(SUMPRODUCT(($A$3:$A47>($A927-VLOOKUP(R$881,'F. UL & OPEX flat rates'!$B$2:$G$43,5)))*1,R$3:R47)+R751)*VLOOKUP(R$881,'F. UL & OPEX flat rates'!$B$2:$G$43,6,0)","v":0},{"$f":"(SUMPRODUCT(($A$3:$A47>($A927-VLOOKUP(S$881,'F. UL & OPEX flat rates'!$B$2:$G$43,5)))*1,S$3:S47)+S751)*VLOOKUP(S$881,'F. UL & OPEX flat rates'!$B$2:$G$43,6,0)","v":0},{"$f":"(SUMPRODUCT(($A$3:$A47>($A927-VLOOKUP(T$881,'F. UL & OPEX flat rates'!$B$2:$G$43,5)))*1,T$3:T47)+T751)*VLOOKUP(T$881,'F. UL & OPEX flat rates'!$B$2:$G$43,6,0)","v":0},{"$f":"(SUMPRODUCT(($A$3:$A47>($A927-VLOOKUP(U$881,'F. UL & OPEX flat rates'!$B$2:$G$43,5)))*1,U$3:U47)+U751)*VLOOKUP(U$881,'F. UL & OPEX flat rates'!$B$2:$G$43,6,0)","v":0},{"$f":"(SUMPRODUCT(($A$3:$A47>($A927-VLOOKUP(V$881,'F. UL & OPEX flat rates'!$B$2:$G$43,5)))*1,V$3:V47)+V751)*VLOOKUP(V$881,'F. UL & OPEX flat rates'!$B$2:$G$43,6,0)","v":0},{"$f":"(SUMPRODUCT(($A$3:$A47>($A927-VLOOKUP(W$881,'F. UL & OPEX flat rates'!$B$2:$G$43,5)))*1,W$3:W47)+W751)*VLOOKUP(W$881,'F. UL & OPEX flat rates'!$B$2:$G$43,6,0)","v":0},{"$f":"(SUMPRODUCT(($A$3:$A47>($A927-VLOOKUP(X$881,'F. UL & OPEX flat rates'!$B$2:$G$43,5)))*1,X$3:X47)+X751)*VLOOKUP(X$881,'F. UL & OPEX flat rates'!$B$2:$G$43,6,0)","v":0},{"$f":"(SUMPRODUCT(($A$3:$A47>($A927-VLOOKUP(Y$881,'F. UL & OPEX flat rates'!$B$2:$G$43,5)))*1,Y$3:Y47)+Y751)*VLOOKUP(Y$881,'F. UL & OPEX flat rates'!$B$2:$G$43,6,0)","v":0},{"$f":"(SUMPRODUCT(($A$3:$A47>($A927-VLOOKUP(Z$881,'F. UL & OPEX flat rates'!$B$2:$G$43,5)))*1,Z$3:Z47)+Z751)*VLOOKUP(Z$881,'F. UL & OPEX flat rates'!$B$2:$G$43,6,0)","v":0},{"$f":"(SUMPRODUCT(($A$3:$A47>($A927-VLOOKUP(AA$881,'F. UL & OPEX flat rates'!$B$2:$G$43,5)))*1,AA$3:AA47)+AA751)*VLOOKUP(AA$881,'F. UL & OPEX flat rates'!$B$2:$G$43,6,0)","v":0},{"$f":"(SUMPRODUCT(($A$3:$A47>($A927-VLOOKUP(AB$881,'F. UL & OPEX flat rates'!$B$2:$G$43,5)))*1,AB$3:AB47)+AB751)*VLOOKUP(AB$881,'F. UL & OPEX flat rates'!$B$2:$G$43,6,0)","v":0},{"$f":"(SUMPRODUCT(($A$3:$A47>($A927-VLOOKUP(AC$881,'F. UL & OPEX flat rates'!$B$2:$G$43,5)))*1,AC$3:AC47)+AC751)*VLOOKUP(AC$881,'F. UL & OPEX flat rates'!$B$2:$G$43,6,0)","v":0},{"$f":"(SUMPRODUCT(($A$3:$A47>($A927-VLOOKUP(AD$881,'F. UL & OPEX flat rates'!$B$2:$G$43,5)))*1,AD$3:AD47)+AD751)*VLOOKUP(AD$881,'F. UL & OPEX flat rates'!$B$2:$G$43,6,0)","v":0},{"$f":"(SUMPRODUCT(($A$3:$A47>($A927-VLOOKUP(AE$881,'F. UL & OPEX flat rates'!$B$2:$G$43,5)))*1,AE$3:AE47)+AE751)*VLOOKUP(AE$881,'F. UL & OPEX flat rates'!$B$2:$G$43,6,0)","v":0},{"$f":"(SUMPRODUCT(($A$3:$A47>($A927-VLOOKUP(AF$881,'F. UL & OPEX flat rates'!$B$2:$G$43,5)))*1,AF$3:AF47)+AF751)*VLOOKUP(AF$881,'F. UL & OPEX flat rates'!$B$2:$G$43,6,0)","v":0},{"$f":"(SUMPRODUCT(($A$3:$A47>($A927-VLOOKUP(AG$881,'F. UL & OPEX flat rates'!$B$2:$G$43,5)))*1,AG$3:AG47)+AG751)*VLOOKUP(AG$881,'F. UL & OPEX flat rates'!$B$2:$G$43,6,0)","v":0},{"$f":"(SUMPRODUCT(($A$3:$A47>($A927-VLOOKUP(AH$881,'F. UL & OPEX flat rates'!$B$2:$G$43,5)))*1,AH$3:AH47)+AH751)*VLOOKUP(AH$881,'F. UL & OPEX flat rates'!$B$2:$G$43,6,0)","v":0},{"$f":"(SUMPRODUCT(($A$3:$A47>($A927-VLOOKUP(AI$881,'F. UL & OPEX flat rates'!$B$2:$G$43,5)))*1,AI$3:AI47)+AI751)*VLOOKUP(AI$881,'F. UL & OPEX flat rates'!$B$2:$G$43,6,0)","v":0},{"$f":"(SUMPRODUCT(($A$3:$A47>($A927-VLOOKUP(AJ$881,'F. UL & OPEX flat rates'!$B$2:$G$43,5)))*1,AJ$3:AJ47)+AJ751)*VLOOKUP(AJ$881,'F. UL & OPEX flat rates'!$B$2:$G$43,6,0)","v":58000},{"$f":"(SUMPRODUCT(($A$3:$A47>($A927-VLOOKUP(AK$881,'F. UL & OPEX flat rates'!$B$2:$G$43,5)))*1,AK$3:AK47)+AK751)*VLOOKUP(AK$881,'F. UL & OPEX flat rates'!$B$2:$G$43,6,0)","v":0},{"$f":"(SUMPRODUCT(($A$3:$A47>($A927-VLOOKUP(AL$881,'F. UL & OPEX flat rates'!$B$2:$G$43,5)))*1,AL$3:AL47)+AL751)*VLOOKUP(AL$881,'F. UL & OPEX flat rates'!$B$2:$G$43,6,0)","v":0},{"$f":"(SUMPRODUCT(($A$3:$A47>($A927-VLOOKUP(AM$881,'F. UL & OPEX flat rates'!$B$2:$G$43,5)))*1,AM$3:AM47)+AM751)*VLOOKUP(AM$881,'F. UL & OPEX flat rates'!$B$2:$G$43,6,0)","v":0},{"$f":"(SUMPRODUCT(($A$3:$A47>($A927-VLOOKUP(AN$881,'F. UL & OPEX flat rates'!$B$2:$G$43,5)))*1,AN$3:AN47)+AN751)*VLOOKUP(AN$881,'F. UL & OPEX flat rates'!$B$2:$G$43,6,0)","v":0},{"$f":"(SUMPRODUCT(($A$3:$A47>($A927-VLOOKUP(AO$881,'F. UL & OPEX flat rates'!$B$2:$G$43,5)))*1,AO$3:AO47)+AO751)*VLOOKUP(AO$881,'F. UL & OPEX flat rates'!$B$2:$G$43,6,0)","v":0},{"$f":"(SUMPRODUCT(($A$3:$A47>($A927-VLOOKUP(AP$881,'F. UL & OPEX flat rates'!$B$2:$G$43,5)))*1,AP$3:AP47)+AP751)*VLOOKUP(AP$881,'F. UL & OPEX flat rates'!$B$2:$G$43,6,0)","v":0},{"$f":"(SUMPRODUCT(($A$3:$A47>($A927-VLOOKUP(AQ$881,'F. UL & OPEX flat rates'!$B$2:$G$43,5)))*1,AQ$3:AQ47)+AQ751)*VLOOKUP(AQ$881,'F. UL & OPEX flat rates'!$B$2:$G$43,6,0)","v":0}]
[2061,58000,{"$f":"(SUMPRODUCT(($A$3:$A48>($A928-VLOOKUP(C$881,'F. UL & OPEX flat rates'!$B$2:$G$43,5)))*1,C$3:C48)+C752)*VLOOKUP(C$881,'F. UL & OPEX flat rates'!$B$2:$G$43,6,0)","v":0},{"$f":"(SUMPRODUCT(($A$3:$A48>($A928-VLOOKUP(D$881,'F. UL & OPEX flat rates'!$B$2:$G$43,5)))*1,D$3:D48)+D752)*VLOOKUP(D$881,'F. UL & OPEX flat rates'!$B$2:$G$43,6,0)","v":0},{"$f":"(SUMPRODUCT(($A$3:$A48>($A928-VLOOKUP(E$881,'F. UL & OPEX flat rates'!$B$2:$G$43,5)))*1,E$3:E48)+E752)*VLOOKUP(E$881,'F. UL & OPEX flat rates'!$B$2:$G$43,6,0)","v":0},{"$f":"(SUMPRODUCT(($A$3:$A48>($A928-VLOOKUP(F$881,'F. UL & OPEX flat rates'!$B$2:$G$43,5)))*1,F$3:F48)+F752)*VLOOKUP(F$881,'F. UL & OPEX flat rates'!$B$2:$G$43,6,0)","v":0},{"$f":"(SUMPRODUCT(($A$3:$A48>($A928-VLOOKUP(G$881,'F. UL & OPEX flat rates'!$B$2:$G$43,5)))*1,G$3:G48)+G752)*VLOOKUP(G$881,'F. UL & OPEX flat rates'!$B$2:$G$43,6,0)","v":0},{"$f":"(SUMPRODUCT(($A$3:$A48>($A928-VLOOKUP(H$881,'F. UL & OPEX flat rates'!$B$2:$G$43,5)))*1,H$3:H48)+H752)*VLOOKUP(H$881,'F. UL & OPEX flat rates'!$B$2:$G$43,6,0)","v":0},{"$f":"(SUMPRODUCT(($A$3:$A48>($A928-VLOOKUP(I$881,'F. UL & OPEX flat rates'!$B$2:$G$43,5)))*1,I$3:I48)+I752)*VLOOKUP(I$881,'F. UL & OPEX flat rates'!$B$2:$G$43,6,0)","v":0},{"$f":"(SUMPRODUCT(($A$3:$A48>($A928-VLOOKUP(J$881,'F. UL & OPEX flat rates'!$B$2:$G$43,5)))*1,J$3:J48)+J752)*VLOOKUP(J$881,'F. UL & OPEX flat rates'!$B$2:$G$43,6,0)","v":0},{"$f":"(SUMPRODUCT(($A$3:$A48>($A928-VLOOKUP(K$881,'F. UL & OPEX flat rates'!$B$2:$G$43,5)))*1,K$3:K48)+K752)*VLOOKUP(K$881,'F. UL & OPEX flat rates'!$B$2:$G$43,6,0)","v":0},{"$f":"(SUMPRODUCT(($A$3:$A48>($A928-VLOOKUP(L$881,'F. UL & OPEX flat rates'!$B$2:$G$43,5)))*1,L$3:L48)+L752)*VLOOKUP(L$881,'F. UL & OPEX flat rates'!$B$2:$G$43,6,0)","v":0},{"$f":"(SUMPRODUCT(($A$3:$A48>($A928-VLOOKUP(M$881,'F. UL & OPEX flat rates'!$B$2:$G$43,5)))*1,M$3:M48)+M752)*VLOOKUP(M$881,'F. UL & OPEX flat rates'!$B$2:$G$43,6,0)","v":0},{"$f":"(SUMPRODUCT(($A$3:$A48>($A928-VLOOKUP(N$881,'F. UL & OPEX flat rates'!$B$2:$G$43,5)))*1,N$3:N48)+N752)*VLOOKUP(N$881,'F. UL & OPEX flat rates'!$B$2:$G$43,6,0)","v":0},{"$f":"(SUMPRODUCT(($A$3:$A48>($A928-VLOOKUP(O$881,'F. UL & OPEX flat rates'!$B$2:$G$43,5)))*1,O$3:O48)+O752)*VLOOKUP(O$881,'F. UL & OPEX flat rates'!$B$2:$G$43,6,0)","v":0},{"$f":"(SUMPRODUCT(($A$3:$A48>($A928-VLOOKUP(P$881,'F. UL & OPEX flat rates'!$B$2:$G$43,5)))*1,P$3:P48)+P752)*VLOOKUP(P$881,'F. UL & OPEX flat rates'!$B$2:$G$43,6,0)","v":0},{"$f":"(SUMPRODUCT(($A$3:$A48>($A928-VLOOKUP(Q$881,'F. UL & OPEX flat rates'!$B$2:$G$43,5)))*1,Q$3:Q48)+Q752)*VLOOKUP(Q$881,'F. UL & OPEX flat rates'!$B$2:$G$43,6,0)","v":0},{"$f":"(SUMPRODUCT(($A$3:$A48>($A928-VLOOKUP(R$881,'F. UL & OPEX flat rates'!$B$2:$G$43,5)))*1,R$3:R48)+R752)*VLOOKUP(R$881,'F. UL & OPEX flat rates'!$B$2:$G$43,6,0)","v":0},{"$f":"(SUMPRODUCT(($A$3:$A48>($A928-VLOOKUP(S$881,'F. UL & OPEX flat rates'!$B$2:$G$43,5)))*1,S$3:S48)+S752)*VLOOKUP(S$881,'F. UL & OPEX flat rates'!$B$2:$G$43,6,0)","v":0},{"$f":"(SUMPRODUCT(($A$3:$A48>($A928-VLOOKUP(T$881,'F. UL & OPEX flat rates'!$B$2:$G$43,5)))*1,T$3:T48)+T752)*VLOOKUP(T$881,'F. UL & OPEX flat rates'!$B$2:$G$43,6,0)","v":0},{"$f":"(SUMPRODUCT(($A$3:$A48>($A928-VLOOKUP(U$881,'F. UL & OPEX flat rates'!$B$2:$G$43,5)))*1,U$3:U48)+U752)*VLOOKUP(U$881,'F. UL & OPEX flat rates'!$B$2:$G$43,6,0)","v":0},{"$f":"(SUMPRODUCT(($A$3:$A48>($A928-VLOOKUP(V$881,'F. UL & OPEX flat rates'!$B$2:$G$43,5)))*1,V$3:V48)+V752)*VLOOKUP(V$881,'F. UL & OPEX flat rates'!$B$2:$G$43,6,0)","v":0},{"$f":"(SUMPRODUCT(($A$3:$A48>($A928-VLOOKUP(W$881,'F. UL & OPEX flat rates'!$B$2:$G$43,5)))*1,W$3:W48)+W752)*VLOOKUP(W$881,'F. UL & OPEX flat rates'!$B$2:$G$43,6,0)","v":0},{"$f":"(SUMPRODUCT(($A$3:$A48>($A928-VLOOKUP(X$881,'F. UL & OPEX flat rates'!$B$2:$G$43,5)))*1,X$3:X48)+X752)*VLOOKUP(X$881,'F. UL & OPEX flat rates'!$B$2:$G$43,6,0)","v":0},{"$f":"(SUMPRODUCT(($A$3:$A48>($A928-VLOOKUP(Y$881,'F. UL & OPEX flat rates'!$B$2:$G$43,5)))*1,Y$3:Y48)+Y752)*VLOOKUP(Y$881,'F. UL & OPEX flat rates'!$B$2:$G$43,6,0)","v":0},{"$f":"(SUMPRODUCT(($A$3:$A48>($A928-VLOOKUP(Z$881,'F. UL & OPEX flat rates'!$B$2:$G$43,5)))*1,Z$3:Z48)+Z752)*VLOOKUP(Z$881,'F. UL & OPEX flat rates'!$B$2:$G$43,6,0)","v":0},{"$f":"(SUMPRODUCT(($A$3:$A48>($A928-VLOOKUP(AA$881,'F. UL & OPEX flat rates'!$B$2:$G$43,5)))*1,AA$3:AA48)+AA752)*VLOOKUP(AA$881,'F. UL & OPEX flat rates'!$B$2:$G$43,6,0)","v":0},{"$f":"(SUMPRODUCT(($A$3:$A48>($A928-VLOOKUP(AB$881,'F. UL & OPEX flat rates'!$B$2:$G$43,5)))*1,AB$3:AB48)+AB752)*VLOOKUP(AB$881,'F. UL & OPEX flat rates'!$B$2:$G$43,6,0)","v":0},{"$f":"(SUMPRODUCT(($A$3:$A48>($A928-VLOOKUP(AC$881,'F. UL & OPEX flat rates'!$B$2:$G$43,5)))*1,AC$3:AC48)+AC752)*VLOOKUP(AC$881,'F. UL & OPEX flat rates'!$B$2:$G$43,6,0)","v":0},{"$f":"(SUMPRODUCT(($A$3:$A48>($A928-VLOOKUP(AD$881,'F. UL & OPEX flat rates'!$B$2:$G$43,5)))*1,AD$3:AD48)+AD752)*VLOOKUP(AD$881,'F. UL & OPEX flat rates'!$B$2:$G$43,6,0)","v":0},{"$f":"(SUMPRODUCT(($A$3:$A48>($A928-VLOOKUP(AE$881,'F. UL & OPEX flat rates'!$B$2:$G$43,5)))*1,AE$3:AE48)+AE752)*VLOOKUP(AE$881,'F. UL & OPEX flat rates'!$B$2:$G$43,6,0)","v":0},{"$f":"(SUMPRODUCT(($A$3:$A48>($A928-VLOOKUP(AF$881,'F. UL & OPEX flat rates'!$B$2:$G$43,5)))*1,AF$3:AF48)+AF752)*VLOOKUP(AF$881,'F. UL & OPEX flat rates'!$B$2:$G$43,6,0)","v":0},{"$f":"(SUMPRODUCT(($A$3:$A48>($A928-VLOOKUP(AG$881,'F. UL & OPEX flat rates'!$B$2:$G$43,5)))*1,AG$3:AG48)+AG752)*VLOOKUP(AG$881,'F. UL & OPEX flat rates'!$B$2:$G$43,6,0)","v":0},{"$f":"(SUMPRODUCT(($A$3:$A48>($A928-VLOOKUP(AH$881,'F. UL & OPEX flat rates'!$B$2:$G$43,5)))*1,AH$3:AH48)+AH752)*VLOOKUP(AH$881,'F. UL & OPEX flat rates'!$B$2:$G$43,6,0)","v":0},{"$f":"(SUMPRODUCT(($A$3:$A48>($A928-VLOOKUP(AI$881,'F. UL & OPEX flat rates'!$B$2:$G$43,5)))*1,AI$3:AI48)+AI752)*VLOOKUP(AI$881,'F. UL & OPEX flat rates'!$B$2:$G$43,6,0)","v":0},{"$f":"(SUMPRODUCT(($A$3:$A48>($A928-VLOOKUP(AJ$881,'F. UL & OPEX flat rates'!$B$2:$G$43,5)))*1,AJ$3:AJ48)+AJ752)*VLOOKUP(AJ$881,'F. UL & OPEX flat rates'!$B$2:$G$43,6,0)","v":58000},{"$f":"(SUMPRODUCT(($A$3:$A48>($A928-VLOOKUP(AK$881,'F. UL & OPEX flat rates'!$B$2:$G$43,5)))*1,AK$3:AK48)+AK752)*VLOOKUP(AK$881,'F. UL & OPEX flat rates'!$B$2:$G$43,6,0)","v":0},{"$f":"(SUMPRODUCT(($A$3:$A48>($A928-VLOOKUP(AL$881,'F. UL & OPEX flat rates'!$B$2:$G$43,5)))*1,AL$3:AL48)+AL752)*VLOOKUP(AL$881,'F. UL & OPEX flat rates'!$B$2:$G$43,6,0)","v":0},{"$f":"(SUMPRODUCT(($A$3:$A48>($A928-VLOOKUP(AM$881,'F. UL & OPEX flat rates'!$B$2:$G$43,5)))*1,AM$3:AM48)+AM752)*VLOOKUP(AM$881,'F. UL & OPEX flat rates'!$B$2:$G$43,6,0)","v":0},{"$f":"(SUMPRODUCT(($A$3:$A48>($A928-VLOOKUP(AN$881,'F. UL & OPEX flat rates'!$B$2:$G$43,5)))*1,AN$3:AN48)+AN752)*VLOOKUP(AN$881,'F. UL & OPEX flat rates'!$B$2:$G$43,6,0)","v":0},{"$f":"(SUMPRODUCT(($A$3:$A48>($A928-VLOOKUP(AO$881,'F. UL & OPEX flat rates'!$B$2:$G$43,5)))*1,AO$3:AO48)+AO752)*VLOOKUP(AO$881,'F. UL & OPEX flat rates'!$B$2:$G$43,6,0)","v":0},{"$f":"(SUMPRODUCT(($A$3:$A48>($A928-VLOOKUP(AP$881,'F. UL & OPEX flat rates'!$B$2:$G$43,5)))*1,AP$3:AP48)+AP752)*VLOOKUP(AP$881,'F. UL & OPEX flat rates'!$B$2:$G$43,6,0)","v":0},{"$f":"(SUMPRODUCT(($A$3:$A48>($A928-VLOOKUP(AQ$881,'F. UL & OPEX flat rates'!$B$2:$G$43,5)))*1,AQ$3:AQ48)+AQ752)*VLOOKUP(AQ$881,'F. UL & OPEX flat rates'!$B$2:$G$43,6,0)","v":0}]
[2062,58000,{"$f":"(SUMPRODUCT(($A$3:$A49>($A929-VLOOKUP(C$881,'F. UL & OPEX flat rates'!$B$2:$G$43,5)))*1,C$3:C49)+C753)*VLOOKUP(C$881,'F. UL & OPEX flat rates'!$B$2:$G$43,6,0)","v":0},{"$f":"(SUMPRODUCT(($A$3:$A49>($A929-VLOOKUP(D$881,'F. UL & OPEX flat rates'!$B$2:$G$43,5)))*1,D$3:D49)+D753)*VLOOKUP(D$881,'F. UL & OPEX flat rates'!$B$2:$G$43,6,0)","v":0},{"$f":"(SUMPRODUCT(($A$3:$A49>($A929-VLOOKUP(E$881,'F. UL & OPEX flat rates'!$B$2:$G$43,5)))*1,E$3:E49)+E753)*VLOOKUP(E$881,'F. UL & OPEX flat rates'!$B$2:$G$43,6,0)","v":0},{"$f":"(SUMPRODUCT(($A$3:$A49>($A929-VLOOKUP(F$881,'F. UL & OPEX flat rates'!$B$2:$G$43,5)))*1,F$3:F49)+F753)*VLOOKUP(F$881,'F. UL & OPEX flat rates'!$B$2:$G$43,6,0)","v":0},{"$f":"(SUMPRODUCT(($A$3:$A49>($A929-VLOOKUP(G$881,'F. UL & OPEX flat rates'!$B$2:$G$43,5)))*1,G$3:G49)+G753)*VLOOKUP(G$881,'F. UL & OPEX flat rates'!$B$2:$G$43,6,0)","v":0},{"$f":"(SUMPRODUCT(($A$3:$A49>($A929-VLOOKUP(H$881,'F. UL & OPEX flat rates'!$B$2:$G$43,5)))*1,H$3:H49)+H753)*VLOOKUP(H$881,'F. UL & OPEX flat rates'!$B$2:$G$43,6,0)","v":0},{"$f":"(SUMPRODUCT(($A$3:$A49>($A929-VLOOKUP(I$881,'F. UL & OPEX flat rates'!$B$2:$G$43,5)))*1,I$3:I49)+I753)*VLOOKUP(I$881,'F. UL & OPEX flat rates'!$B$2:$G$43,6,0)","v":0},{"$f":"(SUMPRODUCT(($A$3:$A49>($A929-VLOOKUP(J$881,'F. UL & OPEX flat rates'!$B$2:$G$43,5)))*1,J$3:J49)+J753)*VLOOKUP(J$881,'F. UL & OPEX flat rates'!$B$2:$G$43,6,0)","v":0},{"$f":"(SUMPRODUCT(($A$3:$A49>($A929-VLOOKUP(K$881,'F. UL & OPEX flat rates'!$B$2:$G$43,5)))*1,K$3:K49)+K753)*VLOOKUP(K$881,'F. UL & OPEX flat rates'!$B$2:$G$43,6,0)","v":0},{"$f":"(SUMPRODUCT(($A$3:$A49>($A929-VLOOKUP(L$881,'F. UL & OPEX flat rates'!$B$2:$G$43,5)))*1,L$3:L49)+L753)*VLOOKUP(L$881,'F. UL & OPEX flat rates'!$B$2:$G$43,6,0)","v":0},{"$f":"(SUMPRODUCT(($A$3:$A49>($A929-VLOOKUP(M$881,'F. UL & OPEX flat rates'!$B$2:$G$43,5)))*1,M$3:M49)+M753)*VLOOKUP(M$881,'F. UL & OPEX flat rates'!$B$2:$G$43,6,0)","v":0},{"$f":"(SUMPRODUCT(($A$3:$A49>($A929-VLOOKUP(N$881,'F. UL & OPEX flat rates'!$B$2:$G$43,5)))*1,N$3:N49)+N753)*VLOOKUP(N$881,'F. UL & OPEX flat rates'!$B$2:$G$43,6,0)","v":0},{"$f":"(SUMPRODUCT(($A$3:$A49>($A929-VLOOKUP(O$881,'F. UL & OPEX flat rates'!$B$2:$G$43,5)))*1,O$3:O49)+O753)*VLOOKUP(O$881,'F. UL & OPEX flat rates'!$B$2:$G$43,6,0)","v":0},{"$f":"(SUMPRODUCT(($A$3:$A49>($A929-VLOOKUP(P$881,'F. UL & OPEX flat rates'!$B$2:$G$43,5)))*1,P$3:P49)+P753)*VLOOKUP(P$881,'F. UL & OPEX flat rates'!$B$2:$G$43,6,0)","v":0},{"$f":"(SUMPRODUCT(($A$3:$A49>($A929-VLOOKUP(Q$881,'F. UL & OPEX flat rates'!$B$2:$G$43,5)))*1,Q$3:Q49)+Q753)*VLOOKUP(Q$881,'F. UL & OPEX flat rates'!$B$2:$G$43,6,0)","v":0},{"$f":"(SUMPRODUCT(($A$3:$A49>($A929-VLOOKUP(R$881,'F. UL & OPEX flat rates'!$B$2:$G$43,5)))*1,R$3:R49)+R753)*VLOOKUP(R$881,'F. UL & OPEX flat rates'!$B$2:$G$43,6,0)","v":0},{"$f":"(SUMPRODUCT(($A$3:$A49>($A929-VLOOKUP(S$881,'F. UL & OPEX flat rates'!$B$2:$G$43,5)))*1,S$3:S49)+S753)*VLOOKUP(S$881,'F. UL & OPEX flat rates'!$B$2:$G$43,6,0)","v":0},{"$f":"(SUMPRODUCT(($A$3:$A49>($A929-VLOOKUP(T$881,'F. UL & OPEX flat rates'!$B$2:$G$43,5)))*1,T$3:T49)+T753)*VLOOKUP(T$881,'F. UL & OPEX flat rates'!$B$2:$G$43,6,0)","v":0},{"$f":"(SUMPRODUCT(($A$3:$A49>($A929-VLOOKUP(U$881,'F. UL & OPEX flat rates'!$B$2:$G$43,5)))*1,U$3:U49)+U753)*VLOOKUP(U$881,'F. UL & OPEX flat rates'!$B$2:$G$43,6,0)","v":0},{"$f":"(SUMPRODUCT(($A$3:$A49>($A929-VLOOKUP(V$881,'F. UL & OPEX flat rates'!$B$2:$G$43,5)))*1,V$3:V49)+V753)*VLOOKUP(V$881,'F. UL & OPEX flat rates'!$B$2:$G$43,6,0)","v":0},{"$f":"(SUMPRODUCT(($A$3:$A49>($A929-VLOOKUP(W$881,'F. UL & OPEX flat rates'!$B$2:$G$43,5)))*1,W$3:W49)+W753)*VLOOKUP(W$881,'F. UL & OPEX flat rates'!$B$2:$G$43,6,0)","v":0},{"$f":"(SUMPRODUCT(($A$3:$A49>($A929-VLOOKUP(X$881,'F. UL & OPEX flat rates'!$B$2:$G$43,5)))*1,X$3:X49)+X753)*VLOOKUP(X$881,'F. UL & OPEX flat rates'!$B$2:$G$43,6,0)","v":0},{"$f":"(SUMPRODUCT(($A$3:$A49>($A929-VLOOKUP(Y$881,'F. UL & OPEX flat rates'!$B$2:$G$43,5)))*1,Y$3:Y49)+Y753)*VLOOKUP(Y$881,'F. UL & OPEX flat rates'!$B$2:$G$43,6,0)","v":0},{"$f":"(SUMPRODUCT(($A$3:$A49>($A929-VLOOKUP(Z$881,'F. UL & OPEX flat rates'!$B$2:$G$43,5)))*1,Z$3:Z49)+Z753)*VLOOKUP(Z$881,'F. UL & OPEX flat rates'!$B$2:$G$43,6,0)","v":0},{"$f":"(SUMPRODUCT(($A$3:$A49>($A929-VLOOKUP(AA$881,'F. UL & OPEX flat rates'!$B$2:$G$43,5)))*1,AA$3:AA49)+AA753)*VLOOKUP(AA$881,'F. UL & OPEX flat rates'!$B$2:$G$43,6,0)","v":0},{"$f":"(SUMPRODUCT(($A$3:$A49>($A929-VLOOKUP(AB$881,'F. UL & OPEX flat rates'!$B$2:$G$43,5)))*1,AB$3:AB49)+AB753)*VLOOKUP(AB$881,'F. UL & OPEX flat rates'!$B$2:$G$43,6,0)","v":0},{"$f":"(SUMPRODUCT(($A$3:$A49>($A929-VLOOKUP(AC$881,'F. UL & OPEX flat rates'!$B$2:$G$43,5)))*1,AC$3:AC49)+AC753)*VLOOKUP(AC$881,'F. UL & OPEX flat rates'!$B$2:$G$43,6,0)","v":0},{"$f":"(SUMPRODUCT(($A$3:$A49>($A929-VLOOKUP(AD$881,'F. UL & OPEX flat rates'!$B$2:$G$43,5)))*1,AD$3:AD49)+AD753)*VLOOKUP(AD$881,'F. UL & OPEX flat rates'!$B$2:$G$43,6,0)","v":0},{"$f":"(SUMPRODUCT(($A$3:$A49>($A929-VLOOKUP(AE$881,'F. UL & OPEX flat rates'!$B$2:$G$43,5)))*1,AE$3:AE49)+AE753)*VLOOKUP(AE$881,'F. UL & OPEX flat rates'!$B$2:$G$43,6,0)","v":0},{"$f":"(SUMPRODUCT(($A$3:$A49>($A929-VLOOKUP(AF$881,'F. UL & OPEX flat rates'!$B$2:$G$43,5)))*1,AF$3:AF49)+AF753)*VLOOKUP(AF$881,'F. UL & OPEX flat rates'!$B$2:$G$43,6,0)","v":0},{"$f":"(SUMPRODUCT(($A$3:$A49>($A929-VLOOKUP(AG$881,'F. UL & OPEX flat rates'!$B$2:$G$43,5)))*1,AG$3:AG49)+AG753)*VLOOKUP(AG$881,'F. UL & OPEX flat rates'!$B$2:$G$43,6,0)","v":0},{"$f":"(SUMPRODUCT(($A$3:$A49>($A929-VLOOKUP(AH$881,'F. UL & OPEX flat rates'!$B$2:$G$43,5)))*1,AH$3:AH49)+AH753)*VLOOKUP(AH$881,'F. UL & OPEX flat rates'!$B$2:$G$43,6,0)","v":0},{"$f":"(SUMPRODUCT(($A$3:$A49>($A929-VLOOKUP(AI$881,'F. UL & OPEX flat rates'!$B$2:$G$43,5)))*1,AI$3:AI49)+AI753)*VLOOKUP(AI$881,'F. UL & OPEX flat rates'!$B$2:$G$43,6,0)","v":0},{"$f":"(SUMPRODUCT(($A$3:$A49>($A929-VLOOKUP(AJ$881,'F. UL & OPEX flat rates'!$B$2:$G$43,5)))*1,AJ$3:AJ49)+AJ753)*VLOOKUP(AJ$881,'F. UL & OPEX flat rates'!$B$2:$G$43,6,0)","v":58000},{"$f":"(SUMPRODUCT(($A$3:$A49>($A929-VLOOKUP(AK$881,'F. UL & OPEX flat rates'!$B$2:$G$43,5)))*1,AK$3:AK49)+AK753)*VLOOKUP(AK$881,'F. UL & OPEX flat rates'!$B$2:$G$43,6,0)","v":0},{"$f":"(SUMPRODUCT(($A$3:$A49>($A929-VLOOKUP(AL$881,'F. UL & OPEX flat rates'!$B$2:$G$43,5)))*1,AL$3:AL49)+AL753)*VLOOKUP(AL$881,'F. UL & OPEX flat rates'!$B$2:$G$43,6,0)","v":0},{"$f":"(SUMPRODUCT(($A$3:$A49>($A929-VLOOKUP(AM$881,'F. UL & OPEX flat rates'!$B$2:$G$43,5)))*1,AM$3:AM49)+AM753)*VLOOKUP(AM$881,'F. UL & OPEX flat rates'!$B$2:$G$43,6,0)","v":0},{"$f":"(SUMPRODUCT(($A$3:$A49>($A929-VLOOKUP(AN$881,'F. UL & OPEX flat rates'!$B$2:$G$43,5)))*1,AN$3:AN49)+AN753)*VLOOKUP(AN$881,'F. UL & OPEX flat rates'!$B$2:$G$43,6,0)","v":0},{"$f":"(SUMPRODUCT(($A$3:$A49>($A929-VLOOKUP(AO$881,'F. UL & OPEX flat rates'!$B$2:$G$43,5)))*1,AO$3:AO49)+AO753)*VLOOKUP(AO$881,'F. UL & OPEX flat rates'!$B$2:$G$43,6,0)","v":0},{"$f":"(SUMPRODUCT(($A$3:$A49>($A929-VLOOKUP(AP$881,'F. UL & OPEX flat rates'!$B$2:$G$43,5)))*1,AP$3:AP49)+AP753)*VLOOKUP(AP$881,'F. UL & OPEX flat rates'!$B$2:$G$43,6,0)","v":0},{"$f":"(SUMPRODUCT(($A$3:$A49>($A929-VLOOKUP(AQ$881,'F. UL & OPEX flat rates'!$B$2:$G$43,5)))*1,AQ$3:AQ49)+AQ753)*VLOOKUP(AQ$881,'F. UL & OPEX flat rates'!$B$2:$G$43,6,0)","v":0}]
[2063,58000,{"$f":"(SUMPRODUCT(($A$3:$A50>($A930-VLOOKUP(C$881,'F. UL & OPEX flat rates'!$B$2:$G$43,5)))*1,C$3:C50)+C754)*VLOOKUP(C$881,'F. UL & OPEX flat rates'!$B$2:$G$43,6,0)","v":0},{"$f":"(SUMPRODUCT(($A$3:$A50>($A930-VLOOKUP(D$881,'F. UL & OPEX flat rates'!$B$2:$G$43,5)))*1,D$3:D50)+D754)*VLOOKUP(D$881,'F. UL & OPEX flat rates'!$B$2:$G$43,6,0)","v":0},{"$f":"(SUMPRODUCT(($A$3:$A50>($A930-VLOOKUP(E$881,'F. UL & OPEX flat rates'!$B$2:$G$43,5)))*1,E$3:E50)+E754)*VLOOKUP(E$881,'F. UL & OPEX flat rates'!$B$2:$G$43,6,0)","v":0},{"$f":"(SUMPRODUCT(($A$3:$A50>($A930-VLOOKUP(F$881,'F. UL & OPEX flat rates'!$B$2:$G$43,5)))*1,F$3:F50)+F754)*VLOOKUP(F$881,'F. UL & OPEX flat rates'!$B$2:$G$43,6,0)","v":0},{"$f":"(SUMPRODUCT(($A$3:$A50>($A930-VLOOKUP(G$881,'F. UL & OPEX flat rates'!$B$2:$G$43,5)))*1,G$3:G50)+G754)*VLOOKUP(G$881,'F. UL & OPEX flat rates'!$B$2:$G$43,6,0)","v":0},{"$f":"(SUMPRODUCT(($A$3:$A50>($A930-VLOOKUP(H$881,'F. UL & OPEX flat rates'!$B$2:$G$43,5)))*1,H$3:H50)+H754)*VLOOKUP(H$881,'F. UL & OPEX flat rates'!$B$2:$G$43,6,0)","v":0},{"$f":"(SUMPRODUCT(($A$3:$A50>($A930-VLOOKUP(I$881,'F. UL & OPEX flat rates'!$B$2:$G$43,5)))*1,I$3:I50)+I754)*VLOOKUP(I$881,'F. UL & OPEX flat rates'!$B$2:$G$43,6,0)","v":0},{"$f":"(SUMPRODUCT(($A$3:$A50>($A930-VLOOKUP(J$881,'F. UL & OPEX flat rates'!$B$2:$G$43,5)))*1,J$3:J50)+J754)*VLOOKUP(J$881,'F. UL & OPEX flat rates'!$B$2:$G$43,6,0)","v":0},{"$f":"(SUMPRODUCT(($A$3:$A50>($A930-VLOOKUP(K$881,'F. UL & OPEX flat rates'!$B$2:$G$43,5)))*1,K$3:K50)+K754)*VLOOKUP(K$881,'F. UL & OPEX flat rates'!$B$2:$G$43,6,0)","v":0},{"$f":"(SUMPRODUCT(($A$3:$A50>($A930-VLOOKUP(L$881,'F. UL & OPEX flat rates'!$B$2:$G$43,5)))*1,L$3:L50)+L754)*VLOOKUP(L$881,'F. UL & OPEX flat rates'!$B$2:$G$43,6,0)","v":0},{"$f":"(SUMPRODUCT(($A$3:$A50>($A930-VLOOKUP(M$881,'F. UL & OPEX flat rates'!$B$2:$G$43,5)))*1,M$3:M50)+M754)*VLOOKUP(M$881,'F. UL & OPEX flat rates'!$B$2:$G$43,6,0)","v":0},{"$f":"(SUMPRODUCT(($A$3:$A50>($A930-VLOOKUP(N$881,'F. UL & OPEX flat rates'!$B$2:$G$43,5)))*1,N$3:N50)+N754)*VLOOKUP(N$881,'F. UL & OPEX flat rates'!$B$2:$G$43,6,0)","v":0},{"$f":"(SUMPRODUCT(($A$3:$A50>($A930-VLOOKUP(O$881,'F. UL & OPEX flat rates'!$B$2:$G$43,5)))*1,O$3:O50)+O754)*VLOOKUP(O$881,'F. UL & OPEX flat rates'!$B$2:$G$43,6,0)","v":0},{"$f":"(SUMPRODUCT(($A$3:$A50>($A930-VLOOKUP(P$881,'F. UL & OPEX flat rates'!$B$2:$G$43,5)))*1,P$3:P50)+P754)*VLOOKUP(P$881,'F. UL & OPEX flat rates'!$B$2:$G$43,6,0)","v":0},{"$f":"(SUMPRODUCT(($A$3:$A50>($A930-VLOOKUP(Q$881,'F. UL & OPEX flat rates'!$B$2:$G$43,5)))*1,Q$3:Q50)+Q754)*VLOOKUP(Q$881,'F. UL & OPEX flat rates'!$B$2:$G$43,6,0)","v":0},{"$f":"(SUMPRODUCT(($A$3:$A50>($A930-VLOOKUP(R$881,'F. UL & OPEX flat rates'!$B$2:$G$43,5)))*1,R$3:R50)+R754)*VLOOKUP(R$881,'F. UL & OPEX flat rates'!$B$2:$G$43,6,0)","v":0},{"$f":"(SUMPRODUCT(($A$3:$A50>($A930-VLOOKUP(S$881,'F. UL & OPEX flat rates'!$B$2:$G$43,5)))*1,S$3:S50)+S754)*VLOOKUP(S$881,'F. UL & OPEX flat rates'!$B$2:$G$43,6,0)","v":0},{"$f":"(SUMPRODUCT(($A$3:$A50>($A930-VLOOKUP(T$881,'F. UL & OPEX flat rates'!$B$2:$G$43,5)))*1,T$3:T50)+T754)*VLOOKUP(T$881,'F. UL & OPEX flat rates'!$B$2:$G$43,6,0)","v":0},{"$f":"(SUMPRODUCT(($A$3:$A50>($A930-VLOOKUP(U$881,'F. UL & OPEX flat rates'!$B$2:$G$43,5)))*1,U$3:U50)+U754)*VLOOKUP(U$881,'F. UL & OPEX flat rates'!$B$2:$G$43,6,0)","v":0},{"$f":"(SUMPRODUCT(($A$3:$A50>($A930-VLOOKUP(V$881,'F. UL & OPEX flat rates'!$B$2:$G$43,5)))*1,V$3:V50)+V754)*VLOOKUP(V$881,'F. UL & OPEX flat rates'!$B$2:$G$43,6,0)","v":0},{"$f":"(SUMPRODUCT(($A$3:$A50>($A930-VLOOKUP(W$881,'F. UL & OPEX flat rates'!$B$2:$G$43,5)))*1,W$3:W50)+W754)*VLOOKUP(W$881,'F. UL & OPEX flat rates'!$B$2:$G$43,6,0)","v":0},{"$f":"(SUMPRODUCT(($A$3:$A50>($A930-VLOOKUP(X$881,'F. UL & OPEX flat rates'!$B$2:$G$43,5)))*1,X$3:X50)+X754)*VLOOKUP(X$881,'F. UL & OPEX flat rates'!$B$2:$G$43,6,0)","v":0},{"$f":"(SUMPRODUCT(($A$3:$A50>($A930-VLOOKUP(Y$881,'F. UL & OPEX flat rates'!$B$2:$G$43,5)))*1,Y$3:Y50)+Y754)*VLOOKUP(Y$881,'F. UL & OPEX flat rates'!$B$2:$G$43,6,0)","v":0},{"$f":"(SUMPRODUCT(($A$3:$A50>($A930-VLOOKUP(Z$881,'F. UL & OPEX flat rates'!$B$2:$G$43,5)))*1,Z$3:Z50)+Z754)*VLOOKUP(Z$881,'F. UL & OPEX flat rates'!$B$2:$G$43,6,0)","v":0},{"$f":"(SUMPRODUCT(($A$3:$A50>($A930-VLOOKUP(AA$881,'F. UL & OPEX flat rates'!$B$2:$G$43,5)))*1,AA$3:AA50)+AA754)*VLOOKUP(AA$881,'F. UL & OPEX flat rates'!$B$2:$G$43,6,0)","v":0},{"$f":"(SUMPRODUCT(($A$3:$A50>($A930-VLOOKUP(AB$881,'F. UL & OPEX flat rates'!$B$2:$G$43,5)))*1,AB$3:AB50)+AB754)*VLOOKUP(AB$881,'F. UL & OPEX flat rates'!$B$2:$G$43,6,0)","v":0},{"$f":"(SUMPRODUCT(($A$3:$A50>($A930-VLOOKUP(AC$881,'F. UL & OPEX flat rates'!$B$2:$G$43,5)))*1,AC$3:AC50)+AC754)*VLOOKUP(AC$881,'F. UL & OPEX flat rates'!$B$2:$G$43,6,0)","v":0},{"$f":"(SUMPRODUCT(($A$3:$A50>($A930-VLOOKUP(AD$881,'F. UL & OPEX flat rates'!$B$2:$G$43,5)))*1,AD$3:AD50)+AD754)*VLOOKUP(AD$881,'F. UL & OPEX flat rates'!$B$2:$G$43,6,0)","v":0},{"$f":"(SUMPRODUCT(($A$3:$A50>($A930-VLOOKUP(AE$881,'F. UL & OPEX flat rates'!$B$2:$G$43,5)))*1,AE$3:AE50)+AE754)*VLOOKUP(AE$881,'F. UL & OPEX flat rates'!$B$2:$G$43,6,0)","v":0},{"$f":"(SUMPRODUCT(($A$3:$A50>($A930-VLOOKUP(AF$881,'F. UL & OPEX flat rates'!$B$2:$G$43,5)))*1,AF$3:AF50)+AF754)*VLOOKUP(AF$881,'F. UL & OPEX flat rates'!$B$2:$G$43,6,0)","v":0},{"$f":"(SUMPRODUCT(($A$3:$A50>($A930-VLOOKUP(AG$881,'F. UL & OPEX flat rates'!$B$2:$G$43,5)))*1,AG$3:AG50)+AG754)*VLOOKUP(AG$881,'F. UL & OPEX flat rates'!$B$2:$G$43,6,0)","v":0},{"$f":"(SUMPRODUCT(($A$3:$A50>($A930-VLOOKUP(AH$881,'F. UL & OPEX flat rates'!$B$2:$G$43,5)))*1,AH$3:AH50)+AH754)*VLOOKUP(AH$881,'F. UL & OPEX flat rates'!$B$2:$G$43,6,0)","v":0},{"$f":"(SUMPRODUCT(($A$3:$A50>($A930-VLOOKUP(AI$881,'F. UL & OPEX flat rates'!$B$2:$G$43,5)))*1,AI$3:AI50)+AI754)*VLOOKUP(AI$881,'F. UL & OPEX flat rates'!$B$2:$G$43,6,0)","v":0},{"$f":"(SUMPRODUCT(($A$3:$A50>($A930-VLOOKUP(AJ$881,'F. UL & OPEX flat rates'!$B$2:$G$43,5)))*1,AJ$3:AJ50)+AJ754)*VLOOKUP(AJ$881,'F. UL & OPEX flat rates'!$B$2:$G$43,6,0)","v":58000},{"$f":"(SUMPRODUCT(($A$3:$A50>($A930-VLOOKUP(AK$881,'F. UL & OPEX flat rates'!$B$2:$G$43,5)))*1,AK$3:AK50)+AK754)*VLOOKUP(AK$881,'F. UL & OPEX flat rates'!$B$2:$G$43,6,0)","v":0},{"$f":"(SUMPRODUCT(($A$3:$A50>($A930-VLOOKUP(AL$881,'F. UL & OPEX flat rates'!$B$2:$G$43,5)))*1,AL$3:AL50)+AL754)*VLOOKUP(AL$881,'F. UL & OPEX flat rates'!$B$2:$G$43,6,0)","v":0},{"$f":"(SUMPRODUCT(($A$3:$A50>($A930-VLOOKUP(AM$881,'F. UL & OPEX flat rates'!$B$2:$G$43,5)))*1,AM$3:AM50)+AM754)*VLOOKUP(AM$881,'F. UL & OPEX flat rates'!$B$2:$G$43,6,0)","v":0},{"$f":"(SUMPRODUCT(($A$3:$A50>($A930-VLOOKUP(AN$881,'F. UL & OPEX flat rates'!$B$2:$G$43,5)))*1,AN$3:AN50)+AN754)*VLOOKUP(AN$881,'F. UL & OPEX flat rates'!$B$2:$G$43,6,0)","v":0},{"$f":"(SUMPRODUCT(($A$3:$A50>($A930-VLOOKUP(AO$881,'F. UL & OPEX flat rates'!$B$2:$G$43,5)))*1,AO$3:AO50)+AO754)*VLOOKUP(AO$881,'F. UL & OPEX flat rates'!$B$2:$G$43,6,0)","v":0},{"$f":"(SUMPRODUCT(($A$3:$A50>($A930-VLOOKUP(AP$881,'F. UL & OPEX flat rates'!$B$2:$G$43,5)))*1,AP$3:AP50)+AP754)*VLOOKUP(AP$881,'F. UL & OPEX flat rates'!$B$2:$G$43,6,0)","v":0},{"$f":"(SUMPRODUCT(($A$3:$A50>($A930-VLOOKUP(AQ$881,'F. UL & OPEX flat rates'!$B$2:$G$43,5)))*1,AQ$3:AQ50)+AQ754)*VLOOKUP(AQ$881,'F. UL & OPEX flat rates'!$B$2:$G$43,6,0)","v":0}]
[2064,58000,{"$f":"(SUMPRODUCT(($A$3:$A51>($A931-VLOOKUP(C$881,'F. UL & OPEX flat rates'!$B$2:$G$43,5)))*1,C$3:C51)+C755)*VLOOKUP(C$881,'F. UL & OPEX flat rates'!$B$2:$G$43,6,0)","v":0},{"$f":"(SUMPRODUCT(($A$3:$A51>($A931-VLOOKUP(D$881,'F. UL & OPEX flat rates'!$B$2:$G$43,5)))*1,D$3:D51)+D755)*VLOOKUP(D$881,'F. UL & OPEX flat rates'!$B$2:$G$43,6,0)","v":0},{"$f":"(SUMPRODUCT(($A$3:$A51>($A931-VLOOKUP(E$881,'F. UL & OPEX flat rates'!$B$2:$G$43,5)))*1,E$3:E51)+E755)*VLOOKUP(E$881,'F. UL & OPEX flat rates'!$B$2:$G$43,6,0)","v":0},{"$f":"(SUMPRODUCT(($A$3:$A51>($A931-VLOOKUP(F$881,'F. UL & OPEX flat rates'!$B$2:$G$43,5)))*1,F$3:F51)+F755)*VLOOKUP(F$881,'F. UL & OPEX flat rates'!$B$2:$G$43,6,0)","v":0},{"$f":"(SUMPRODUCT(($A$3:$A51>($A931-VLOOKUP(G$881,'F. UL & OPEX flat rates'!$B$2:$G$43,5)))*1,G$3:G51)+G755)*VLOOKUP(G$881,'F. UL & OPEX flat rates'!$B$2:$G$43,6,0)","v":0},{"$f":"(SUMPRODUCT(($A$3:$A51>($A931-VLOOKUP(H$881,'F. UL & OPEX flat rates'!$B$2:$G$43,5)))*1,H$3:H51)+H755)*VLOOKUP(H$881,'F. UL & OPEX flat rates'!$B$2:$G$43,6,0)","v":0},{"$f":"(SUMPRODUCT(($A$3:$A51>($A931-VLOOKUP(I$881,'F. UL & OPEX flat rates'!$B$2:$G$43,5)))*1,I$3:I51)+I755)*VLOOKUP(I$881,'F. UL & OPEX flat rates'!$B$2:$G$43,6,0)","v":0},{"$f":"(SUMPRODUCT(($A$3:$A51>($A931-VLOOKUP(J$881,'F. UL & OPEX flat rates'!$B$2:$G$43,5)))*1,J$3:J51)+J755)*VLOOKUP(J$881,'F. UL & OPEX flat rates'!$B$2:$G$43,6,0)","v":0},{"$f":"(SUMPRODUCT(($A$3:$A51>($A931-VLOOKUP(K$881,'F. UL & OPEX flat rates'!$B$2:$G$43,5)))*1,K$3:K51)+K755)*VLOOKUP(K$881,'F. UL & OPEX flat rates'!$B$2:$G$43,6,0)","v":0},{"$f":"(SUMPRODUCT(($A$3:$A51>($A931-VLOOKUP(L$881,'F. UL & OPEX flat rates'!$B$2:$G$43,5)))*1,L$3:L51)+L755)*VLOOKUP(L$881,'F. UL & OPEX flat rates'!$B$2:$G$43,6,0)","v":0},{"$f":"(SUMPRODUCT(($A$3:$A51>($A931-VLOOKUP(M$881,'F. UL & OPEX flat rates'!$B$2:$G$43,5)))*1,M$3:M51)+M755)*VLOOKUP(M$881,'F. UL & OPEX flat rates'!$B$2:$G$43,6,0)","v":0},{"$f":"(SUMPRODUCT(($A$3:$A51>($A931-VLOOKUP(N$881,'F. UL & OPEX flat rates'!$B$2:$G$43,5)))*1,N$3:N51)+N755)*VLOOKUP(N$881,'F. UL & OPEX flat rates'!$B$2:$G$43,6,0)","v":0},{"$f":"(SUMPRODUCT(($A$3:$A51>($A931-VLOOKUP(O$881,'F. UL & OPEX flat rates'!$B$2:$G$43,5)))*1,O$3:O51)+O755)*VLOOKUP(O$881,'F. UL & OPEX flat rates'!$B$2:$G$43,6,0)","v":0},{"$f":"(SUMPRODUCT(($A$3:$A51>($A931-VLOOKUP(P$881,'F. UL & OPEX flat rates'!$B$2:$G$43,5)))*1,P$3:P51)+P755)*VLOOKUP(P$881,'F. UL & OPEX flat rates'!$B$2:$G$43,6,0)","v":0},{"$f":"(SUMPRODUCT(($A$3:$A51>($A931-VLOOKUP(Q$881,'F. UL & OPEX flat rates'!$B$2:$G$43,5)))*1,Q$3:Q51)+Q755)*VLOOKUP(Q$881,'F. UL & OPEX flat rates'!$B$2:$G$43,6,0)","v":0},{"$f":"(SUMPRODUCT(($A$3:$A51>($A931-VLOOKUP(R$881,'F. UL & OPEX flat rates'!$B$2:$G$43,5)))*1,R$3:R51)+R755)*VLOOKUP(R$881,'F. UL & OPEX flat rates'!$B$2:$G$43,6,0)","v":0},{"$f":"(SUMPRODUCT(($A$3:$A51>($A931-VLOOKUP(S$881,'F. UL & OPEX flat rates'!$B$2:$G$43,5)))*1,S$3:S51)+S755)*VLOOKUP(S$881,'F. UL & OPEX flat rates'!$B$2:$G$43,6,0)","v":0},{"$f":"(SUMPRODUCT(($A$3:$A51>($A931-VLOOKUP(T$881,'F. UL & OPEX flat rates'!$B$2:$G$43,5)))*1,T$3:T51)+T755)*VLOOKUP(T$881,'F. UL & OPEX flat rates'!$B$2:$G$43,6,0)","v":0},{"$f":"(SUMPRODUCT(($A$3:$A51>($A931-VLOOKUP(U$881,'F. UL & OPEX flat rates'!$B$2:$G$43,5)))*1,U$3:U51)+U755)*VLOOKUP(U$881,'F. UL & OPEX flat rates'!$B$2:$G$43,6,0)","v":0},{"$f":"(SUMPRODUCT(($A$3:$A51>($A931-VLOOKUP(V$881,'F. UL & OPEX flat rates'!$B$2:$G$43,5)))*1,V$3:V51)+V755)*VLOOKUP(V$881,'F. UL & OPEX flat rates'!$B$2:$G$43,6,0)","v":0},{"$f":"(SUMPRODUCT(($A$3:$A51>($A931-VLOOKUP(W$881,'F. UL & OPEX flat rates'!$B$2:$G$43,5)))*1,W$3:W51)+W755)*VLOOKUP(W$881,'F. UL & OPEX flat rates'!$B$2:$G$43,6,0)","v":0},{"$f":"(SUMPRODUCT(($A$3:$A51>($A931-VLOOKUP(X$881,'F. UL & OPEX flat rates'!$B$2:$G$43,5)))*1,X$3:X51)+X755)*VLOOKUP(X$881,'F. UL & OPEX flat rates'!$B$2:$G$43,6,0)","v":0},{"$f":"(SUMPRODUCT(($A$3:$A51>($A931-VLOOKUP(Y$881,'F. UL & OPEX flat rates'!$B$2:$G$43,5)))*1,Y$3:Y51)+Y755)*VLOOKUP(Y$881,'F. UL & OPEX flat rates'!$B$2:$G$43,6,0)","v":0},{"$f":"(SUMPRODUCT(($A$3:$A51>($A931-VLOOKUP(Z$881,'F. UL & OPEX flat rates'!$B$2:$G$43,5)))*1,Z$3:Z51)+Z755)*VLOOKUP(Z$881,'F. UL & OPEX flat rates'!$B$2:$G$43,6,0)","v":0},{"$f":"(SUMPRODUCT(($A$3:$A51>($A931-VLOOKUP(AA$881,'F. UL & OPEX flat rates'!$B$2:$G$43,5)))*1,AA$3:AA51)+AA755)*VLOOKUP(AA$881,'F. UL & OPEX flat rates'!$B$2:$G$43,6,0)","v":0},{"$f":"(SUMPRODUCT(($A$3:$A51>($A931-VLOOKUP(AB$881,'F. UL & OPEX flat rates'!$B$2:$G$43,5)))*1,AB$3:AB51)+AB755)*VLOOKUP(AB$881,'F. UL & OPEX flat rates'!$B$2:$G$43,6,0)","v":0},{"$f":"(SUMPRODUCT(($A$3:$A51>($A931-VLOOKUP(AC$881,'F. UL & OPEX flat rates'!$B$2:$G$43,5)))*1,AC$3:AC51)+AC755)*VLOOKUP(AC$881,'F. UL & OPEX flat rates'!$B$2:$G$43,6,0)","v":0},{"$f":"(SUMPRODUCT(($A$3:$A51>($A931-VLOOKUP(AD$881,'F. UL & OPEX flat rates'!$B$2:$G$43,5)))*1,AD$3:AD51)+AD755)*VLOOKUP(AD$881,'F. UL & OPEX flat rates'!$B$2:$G$43,6,0)","v":0},{"$f":"(SUMPRODUCT(($A$3:$A51>($A931-VLOOKUP(AE$881,'F. UL & OPEX flat rates'!$B$2:$G$43,5)))*1,AE$3:AE51)+AE755)*VLOOKUP(AE$881,'F. UL & OPEX flat rates'!$B$2:$G$43,6,0)","v":0},{"$f":"(SUMPRODUCT(($A$3:$A51>($A931-VLOOKUP(AF$881,'F. UL & OPEX flat rates'!$B$2:$G$43,5)))*1,AF$3:AF51)+AF755)*VLOOKUP(AF$881,'F. UL & OPEX flat rates'!$B$2:$G$43,6,0)","v":0},{"$f":"(SUMPRODUCT(($A$3:$A51>($A931-VLOOKUP(AG$881,'F. UL & OPEX flat rates'!$B$2:$G$43,5)))*1,AG$3:AG51)+AG755)*VLOOKUP(AG$881,'F. UL & OPEX flat rates'!$B$2:$G$43,6,0)","v":0},{"$f":"(SUMPRODUCT(($A$3:$A51>($A931-VLOOKUP(AH$881,'F. UL & OPEX flat rates'!$B$2:$G$43,5)))*1,AH$3:AH51)+AH755)*VLOOKUP(AH$881,'F. UL & OPEX flat rates'!$B$2:$G$43,6,0)","v":0},{"$f":"(SUMPRODUCT(($A$3:$A51>($A931-VLOOKUP(AI$881,'F. UL & OPEX flat rates'!$B$2:$G$43,5)))*1,AI$3:AI51)+AI755)*VLOOKUP(AI$881,'F. UL & OPEX flat rates'!$B$2:$G$43,6,0)","v":0},{"$f":"(SUMPRODUCT(($A$3:$A51>($A931-VLOOKUP(AJ$881,'F. UL & OPEX flat rates'!$B$2:$G$43,5)))*1,AJ$3:AJ51)+AJ755)*VLOOKUP(AJ$881,'F. UL & OPEX flat rates'!$B$2:$G$43,6,0)","v":58000},{"$f":"(SUMPRODUCT(($A$3:$A51>($A931-VLOOKUP(AK$881,'F. UL & OPEX flat rates'!$B$2:$G$43,5)))*1,AK$3:AK51)+AK755)*VLOOKUP(AK$881,'F. UL & OPEX flat rates'!$B$2:$G$43,6,0)","v":0},{"$f":"(SUMPRODUCT(($A$3:$A51>($A931-VLOOKUP(AL$881,'F. UL & OPEX flat rates'!$B$2:$G$43,5)))*1,AL$3:AL51)+AL755)*VLOOKUP(AL$881,'F. UL & OPEX flat rates'!$B$2:$G$43,6,0)","v":0},{"$f":"(SUMPRODUCT(($A$3:$A51>($A931-VLOOKUP(AM$881,'F. UL & OPEX flat rates'!$B$2:$G$43,5)))*1,AM$3:AM51)+AM755)*VLOOKUP(AM$881,'F. UL & OPEX flat rates'!$B$2:$G$43,6,0)","v":0},{"$f":"(SUMPRODUCT(($A$3:$A51>($A931-VLOOKUP(AN$881,'F. UL & OPEX flat rates'!$B$2:$G$43,5)))*1,AN$3:AN51)+AN755)*VLOOKUP(AN$881,'F. UL & OPEX flat rates'!$B$2:$G$43,6,0)","v":0},{"$f":"(SUMPRODUCT(($A$3:$A51>($A931-VLOOKUP(AO$881,'F. UL & OPEX flat rates'!$B$2:$G$43,5)))*1,AO$3:AO51)+AO755)*VLOOKUP(AO$881,'F. UL & OPEX flat rates'!$B$2:$G$43,6,0)","v":0},{"$f":"(SUMPRODUCT(($A$3:$A51>($A931-VLOOKUP(AP$881,'F. UL & OPEX flat rates'!$B$2:$G$43,5)))*1,AP$3:AP51)+AP755)*VLOOKUP(AP$881,'F. UL & OPEX flat rates'!$B$2:$G$43,6,0)","v":0},{"$f":"(SUMPRODUCT(($A$3:$A51>($A931-VLOOKUP(AQ$881,'F. UL & OPEX flat rates'!$B$2:$G$43,5)))*1,AQ$3:AQ51)+AQ755)*VLOOKUP(AQ$881,'F. UL & OPEX flat rates'!$B$2:$G$43,6,0)","v":0}]
[2065,58000,{"$f":"(SUMPRODUCT(($A$3:$A52>($A932-VLOOKUP(C$881,'F. UL & OPEX flat rates'!$B$2:$G$43,5)))*1,C$3:C52)+C756)*VLOOKUP(C$881,'F. UL & OPEX flat rates'!$B$2:$G$43,6,0)","v":0},{"$f":"(SUMPRODUCT(($A$3:$A52>($A932-VLOOKUP(D$881,'F. UL & OPEX flat rates'!$B$2:$G$43,5)))*1,D$3:D52)+D756)*VLOOKUP(D$881,'F. UL & OPEX flat rates'!$B$2:$G$43,6,0)","v":0},{"$f":"(SUMPRODUCT(($A$3:$A52>($A932-VLOOKUP(E$881,'F. UL & OPEX flat rates'!$B$2:$G$43,5)))*1,E$3:E52)+E756)*VLOOKUP(E$881,'F. UL & OPEX flat rates'!$B$2:$G$43,6,0)","v":0},{"$f":"(SUMPRODUCT(($A$3:$A52>($A932-VLOOKUP(F$881,'F. UL & OPEX flat rates'!$B$2:$G$43,5)))*1,F$3:F52)+F756)*VLOOKUP(F$881,'F. UL & OPEX flat rates'!$B$2:$G$43,6,0)","v":0},{"$f":"(SUMPRODUCT(($A$3:$A52>($A932-VLOOKUP(G$881,'F. UL & OPEX flat rates'!$B$2:$G$43,5)))*1,G$3:G52)+G756)*VLOOKUP(G$881,'F. UL & OPEX flat rates'!$B$2:$G$43,6,0)","v":0},{"$f":"(SUMPRODUCT(($A$3:$A52>($A932-VLOOKUP(H$881,'F. UL & OPEX flat rates'!$B$2:$G$43,5)))*1,H$3:H52)+H756)*VLOOKUP(H$881,'F. UL & OPEX flat rates'!$B$2:$G$43,6,0)","v":0},{"$f":"(SUMPRODUCT(($A$3:$A52>($A932-VLOOKUP(I$881,'F. UL & OPEX flat rates'!$B$2:$G$43,5)))*1,I$3:I52)+I756)*VLOOKUP(I$881,'F. UL & OPEX flat rates'!$B$2:$G$43,6,0)","v":0},{"$f":"(SUMPRODUCT(($A$3:$A52>($A932-VLOOKUP(J$881,'F. UL & OPEX flat rates'!$B$2:$G$43,5)))*1,J$3:J52)+J756)*VLOOKUP(J$881,'F. UL & OPEX flat rates'!$B$2:$G$43,6,0)","v":0},{"$f":"(SUMPRODUCT(($A$3:$A52>($A932-VLOOKUP(K$881,'F. UL & OPEX flat rates'!$B$2:$G$43,5)))*1,K$3:K52)+K756)*VLOOKUP(K$881,'F. UL & OPEX flat rates'!$B$2:$G$43,6,0)","v":0},{"$f":"(SUMPRODUCT(($A$3:$A52>($A932-VLOOKUP(L$881,'F. UL & OPEX flat rates'!$B$2:$G$43,5)))*1,L$3:L52)+L756)*VLOOKUP(L$881,'F. UL & OPEX flat rates'!$B$2:$G$43,6,0)","v":0},{"$f":"(SUMPRODUCT(($A$3:$A52>($A932-VLOOKUP(M$881,'F. UL & OPEX flat rates'!$B$2:$G$43,5)))*1,M$3:M52)+M756)*VLOOKUP(M$881,'F. UL & OPEX flat rates'!$B$2:$G$43,6,0)","v":0},{"$f":"(SUMPRODUCT(($A$3:$A52>($A932-VLOOKUP(N$881,'F. UL & OPEX flat rates'!$B$2:$G$43,5)))*1,N$3:N52)+N756)*VLOOKUP(N$881,'F. UL & OPEX flat rates'!$B$2:$G$43,6,0)","v":0},{"$f":"(SUMPRODUCT(($A$3:$A52>($A932-VLOOKUP(O$881,'F. UL & OPEX flat rates'!$B$2:$G$43,5)))*1,O$3:O52)+O756)*VLOOKUP(O$881,'F. UL & OPEX flat rates'!$B$2:$G$43,6,0)","v":0},{"$f":"(SUMPRODUCT(($A$3:$A52>($A932-VLOOKUP(P$881,'F. UL & OPEX flat rates'!$B$2:$G$43,5)))*1,P$3:P52)+P756)*VLOOKUP(P$881,'F. UL & OPEX flat rates'!$B$2:$G$43,6,0)","v":0},{"$f":"(SUMPRODUCT(($A$3:$A52>($A932-VLOOKUP(Q$881,'F. UL & OPEX flat rates'!$B$2:$G$43,5)))*1,Q$3:Q52)+Q756)*VLOOKUP(Q$881,'F. UL & OPEX flat rates'!$B$2:$G$43,6,0)","v":0},{"$f":"(SUMPRODUCT(($A$3:$A52>($A932-VLOOKUP(R$881,'F. UL & OPEX flat rates'!$B$2:$G$43,5)))*1,R$3:R52)+R756)*VLOOKUP(R$881,'F. UL & OPEX flat rates'!$B$2:$G$43,6,0)","v":0},{"$f":"(SUMPRODUCT(($A$3:$A52>($A932-VLOOKUP(S$881,'F. UL & OPEX flat rates'!$B$2:$G$43,5)))*1,S$3:S52)+S756)*VLOOKUP(S$881,'F. UL & OPEX flat rates'!$B$2:$G$43,6,0)","v":0},{"$f":"(SUMPRODUCT(($A$3:$A52>($A932-VLOOKUP(T$881,'F. UL & OPEX flat rates'!$B$2:$G$43,5)))*1,T$3:T52)+T756)*VLOOKUP(T$881,'F. UL & OPEX flat rates'!$B$2:$G$43,6,0)","v":0},{"$f":"(SUMPRODUCT(($A$3:$A52>($A932-VLOOKUP(U$881,'F. UL & OPEX flat rates'!$B$2:$G$43,5)))*1,U$3:U52)+U756)*VLOOKUP(U$881,'F. UL & OPEX flat rates'!$B$2:$G$43,6,0)","v":0},{"$f":"(SUMPRODUCT(($A$3:$A52>($A932-VLOOKUP(V$881,'F. UL & OPEX flat rates'!$B$2:$G$43,5)))*1,V$3:V52)+V756)*VLOOKUP(V$881,'F. UL & OPEX flat rates'!$B$2:$G$43,6,0)","v":0},{"$f":"(SUMPRODUCT(($A$3:$A52>($A932-VLOOKUP(W$881,'F. UL & OPEX flat rates'!$B$2:$G$43,5)))*1,W$3:W52)+W756)*VLOOKUP(W$881,'F. UL & OPEX flat rates'!$B$2:$G$43,6,0)","v":0},{"$f":"(SUMPRODUCT(($A$3:$A52>($A932-VLOOKUP(X$881,'F. UL & OPEX flat rates'!$B$2:$G$43,5)))*1,X$3:X52)+X756)*VLOOKUP(X$881,'F. UL & OPEX flat rates'!$B$2:$G$43,6,0)","v":0},{"$f":"(SUMPRODUCT(($A$3:$A52>($A932-VLOOKUP(Y$881,'F. UL & OPEX flat rates'!$B$2:$G$43,5)))*1,Y$3:Y52)+Y756)*VLOOKUP(Y$881,'F. UL & OPEX flat rates'!$B$2:$G$43,6,0)","v":0},{"$f":"(SUMPRODUCT(($A$3:$A52>($A932-VLOOKUP(Z$881,'F. UL & OPEX flat rates'!$B$2:$G$43,5)))*1,Z$3:Z52)+Z756)*VLOOKUP(Z$881,'F. UL & OPEX flat rates'!$B$2:$G$43,6,0)","v":0},{"$f":"(SUMPRODUCT(($A$3:$A52>($A932-VLOOKUP(AA$881,'F. UL & OPEX flat rates'!$B$2:$G$43,5)))*1,AA$3:AA52)+AA756)*VLOOKUP(AA$881,'F. UL & OPEX flat rates'!$B$2:$G$43,6,0)","v":0},{"$f":"(SUMPRODUCT(($A$3:$A52>($A932-VLOOKUP(AB$881,'F. UL & OPEX flat rates'!$B$2:$G$43,5)))*1,AB$3:AB52)+AB756)*VLOOKUP(AB$881,'F. UL & OPEX flat rates'!$B$2:$G$43,6,0)","v":0},{"$f":"(SUMPRODUCT(($A$3:$A52>($A932-VLOOKUP(AC$881,'F. UL & OPEX flat rates'!$B$2:$G$43,5)))*1,AC$3:AC52)+AC756)*VLOOKUP(AC$881,'F. UL & OPEX flat rates'!$B$2:$G$43,6,0)","v":0},{"$f":"(SUMPRODUCT(($A$3:$A52>($A932-VLOOKUP(AD$881,'F. UL & OPEX flat rates'!$B$2:$G$43,5)))*1,AD$3:AD52)+AD756)*VLOOKUP(AD$881,'F. UL & OPEX flat rates'!$B$2:$G$43,6,0)","v":0},{"$f":"(SUMPRODUCT(($A$3:$A52>($A932-VLOOKUP(AE$881,'F. UL & OPEX flat rates'!$B$2:$G$43,5)))*1,AE$3:AE52)+AE756)*VLOOKUP(AE$881,'F. UL & OPEX flat rates'!$B$2:$G$43,6,0)","v":0},{"$f":"(SUMPRODUCT(($A$3:$A52>($A932-VLOOKUP(AF$881,'F. UL & OPEX flat rates'!$B$2:$G$43,5)))*1,AF$3:AF52)+AF756)*VLOOKUP(AF$881,'F. UL & OPEX flat rates'!$B$2:$G$43,6,0)","v":0},{"$f":"(SUMPRODUCT(($A$3:$A52>($A932-VLOOKUP(AG$881,'F. UL & OPEX flat rates'!$B$2:$G$43,5)))*1,AG$3:AG52)+AG756)*VLOOKUP(AG$881,'F. UL & OPEX flat rates'!$B$2:$G$43,6,0)","v":0},{"$f":"(SUMPRODUCT(($A$3:$A52>($A932-VLOOKUP(AH$881,'F. UL & OPEX flat rates'!$B$2:$G$43,5)))*1,AH$3:AH52)+AH756)*VLOOKUP(AH$881,'F. UL & OPEX flat rates'!$B$2:$G$43,6,0)","v":0},{"$f":"(SUMPRODUCT(($A$3:$A52>($A932-VLOOKUP(AI$881,'F. UL & OPEX flat rates'!$B$2:$G$43,5)))*1,AI$3:AI52)+AI756)*VLOOKUP(AI$881,'F. UL & OPEX flat rates'!$B$2:$G$43,6,0)","v":0},{"$f":"(SUMPRODUCT(($A$3:$A52>($A932-VLOOKUP(AJ$881,'F. UL & OPEX flat rates'!$B$2:$G$43,5)))*1,AJ$3:AJ52)+AJ756)*VLOOKUP(AJ$881,'F. UL & OPEX flat rates'!$B$2:$G$43,6,0)","v":58000},{"$f":"(SUMPRODUCT(($A$3:$A52>($A932-VLOOKUP(AK$881,'F. UL & OPEX flat rates'!$B$2:$G$43,5)))*1,AK$3:AK52)+AK756)*VLOOKUP(AK$881,'F. UL & OPEX flat rates'!$B$2:$G$43,6,0)","v":0},{"$f":"(SUMPRODUCT(($A$3:$A52>($A932-VLOOKUP(AL$881,'F. UL & OPEX flat rates'!$B$2:$G$43,5)))*1,AL$3:AL52)+AL756)*VLOOKUP(AL$881,'F. UL & OPEX flat rates'!$B$2:$G$43,6,0)","v":0},{"$f":"(SUMPRODUCT(($A$3:$A52>($A932-VLOOKUP(AM$881,'F. UL & OPEX flat rates'!$B$2:$G$43,5)))*1,AM$3:AM52)+AM756)*VLOOKUP(AM$881,'F. UL & OPEX flat rates'!$B$2:$G$43,6,0)","v":0},{"$f":"(SUMPRODUCT(($A$3:$A52>($A932-VLOOKUP(AN$881,'F. UL & OPEX flat rates'!$B$2:$G$43,5)))*1,AN$3:AN52)+AN756)*VLOOKUP(AN$881,'F. UL & OPEX flat rates'!$B$2:$G$43,6,0)","v":0},{"$f":"(SUMPRODUCT(($A$3:$A52>($A932-VLOOKUP(AO$881,'F. UL & OPEX flat rates'!$B$2:$G$43,5)))*1,AO$3:AO52)+AO756)*VLOOKUP(AO$881,'F. UL & OPEX flat rates'!$B$2:$G$43,6,0)","v":0},{"$f":"(SUMPRODUCT(($A$3:$A52>($A932-VLOOKUP(AP$881,'F. UL & OPEX flat rates'!$B$2:$G$43,5)))*1,AP$3:AP52)+AP756)*VLOOKUP(AP$881,'F. UL & OPEX flat rates'!$B$2:$G$43,6,0)","v":0},{"$f":"(SUMPRODUCT(($A$3:$A52>($A932-VLOOKUP(AQ$881,'F. UL & OPEX flat rates'!$B$2:$G$43,5)))*1,AQ$3:AQ52)+AQ756)*VLOOKUP(AQ$881,'F. UL & OPEX flat rates'!$B$2:$G$43,6,0)","v":0}]
[2066,58000,{"$f":"(SUMPRODUCT(($A$3:$A53>($A933-VLOOKUP(C$881,'F. UL & OPEX flat rates'!$B$2:$G$43,5)))*1,C$3:C53)+C757)*VLOOKUP(C$881,'F. UL & OPEX flat rates'!$B$2:$G$43,6,0)","v":0},{"$f":"(SUMPRODUCT(($A$3:$A53>($A933-VLOOKUP(D$881,'F. UL & OPEX flat rates'!$B$2:$G$43,5)))*1,D$3:D53)+D757)*VLOOKUP(D$881,'F. UL & OPEX flat rates'!$B$2:$G$43,6,0)","v":0},{"$f":"(SUMPRODUCT(($A$3:$A53>($A933-VLOOKUP(E$881,'F. UL & OPEX flat rates'!$B$2:$G$43,5)))*1,E$3:E53)+E757)*VLOOKUP(E$881,'F. UL & OPEX flat rates'!$B$2:$G$43,6,0)","v":0},{"$f":"(SUMPRODUCT(($A$3:$A53>($A933-VLOOKUP(F$881,'F. UL & OPEX flat rates'!$B$2:$G$43,5)))*1,F$3:F53)+F757)*VLOOKUP(F$881,'F. UL & OPEX flat rates'!$B$2:$G$43,6,0)","v":0},{"$f":"(SUMPRODUCT(($A$3:$A53>($A933-VLOOKUP(G$881,'F. UL & OPEX flat rates'!$B$2:$G$43,5)))*1,G$3:G53)+G757)*VLOOKUP(G$881,'F. UL & OPEX flat rates'!$B$2:$G$43,6,0)","v":0},{"$f":"(SUMPRODUCT(($A$3:$A53>($A933-VLOOKUP(H$881,'F. UL & OPEX flat rates'!$B$2:$G$43,5)))*1,H$3:H53)+H757)*VLOOKUP(H$881,'F. UL & OPEX flat rates'!$B$2:$G$43,6,0)","v":0},{"$f":"(SUMPRODUCT(($A$3:$A53>($A933-VLOOKUP(I$881,'F. UL & OPEX flat rates'!$B$2:$G$43,5)))*1,I$3:I53)+I757)*VLOOKUP(I$881,'F. UL & OPEX flat rates'!$B$2:$G$43,6,0)","v":0},{"$f":"(SUMPRODUCT(($A$3:$A53>($A933-VLOOKUP(J$881,'F. UL & OPEX flat rates'!$B$2:$G$43,5)))*1,J$3:J53)+J757)*VLOOKUP(J$881,'F. UL & OPEX flat rates'!$B$2:$G$43,6,0)","v":0},{"$f":"(SUMPRODUCT(($A$3:$A53>($A933-VLOOKUP(K$881,'F. UL & OPEX flat rates'!$B$2:$G$43,5)))*1,K$3:K53)+K757)*VLOOKUP(K$881,'F. UL & OPEX flat rates'!$B$2:$G$43,6,0)","v":0},{"$f":"(SUMPRODUCT(($A$3:$A53>($A933-VLOOKUP(L$881,'F. UL & OPEX flat rates'!$B$2:$G$43,5)))*1,L$3:L53)+L757)*VLOOKUP(L$881,'F. UL & OPEX flat rates'!$B$2:$G$43,6,0)","v":0},{"$f":"(SUMPRODUCT(($A$3:$A53>($A933-VLOOKUP(M$881,'F. UL & OPEX flat rates'!$B$2:$G$43,5)))*1,M$3:M53)+M757)*VLOOKUP(M$881,'F. UL & OPEX flat rates'!$B$2:$G$43,6,0)","v":0},{"$f":"(SUMPRODUCT(($A$3:$A53>($A933-VLOOKUP(N$881,'F. UL & OPEX flat rates'!$B$2:$G$43,5)))*1,N$3:N53)+N757)*VLOOKUP(N$881,'F. UL & OPEX flat rates'!$B$2:$G$43,6,0)","v":0},{"$f":"(SUMPRODUCT(($A$3:$A53>($A933-VLOOKUP(O$881,'F. UL & OPEX flat rates'!$B$2:$G$43,5)))*1,O$3:O53)+O757)*VLOOKUP(O$881,'F. UL & OPEX flat rates'!$B$2:$G$43,6,0)","v":0},{"$f":"(SUMPRODUCT(($A$3:$A53>($A933-VLOOKUP(P$881,'F. UL & OPEX flat rates'!$B$2:$G$43,5)))*1,P$3:P53)+P757)*VLOOKUP(P$881,'F. UL & OPEX flat rates'!$B$2:$G$43,6,0)","v":0},{"$f":"(SUMPRODUCT(($A$3:$A53>($A933-VLOOKUP(Q$881,'F. UL & OPEX flat rates'!$B$2:$G$43,5)))*1,Q$3:Q53)+Q757)*VLOOKUP(Q$881,'F. UL & OPEX flat rates'!$B$2:$G$43,6,0)","v":0},{"$f":"(SUMPRODUCT(($A$3:$A53>($A933-VLOOKUP(R$881,'F. UL & OPEX flat rates'!$B$2:$G$43,5)))*1,R$3:R53)+R757)*VLOOKUP(R$881,'F. UL & OPEX flat rates'!$B$2:$G$43,6,0)","v":0},{"$f":"(SUMPRODUCT(($A$3:$A53>($A933-VLOOKUP(S$881,'F. UL & OPEX flat rates'!$B$2:$G$43,5)))*1,S$3:S53)+S757)*VLOOKUP(S$881,'F. UL & OPEX flat rates'!$B$2:$G$43,6,0)","v":0},{"$f":"(SUMPRODUCT(($A$3:$A53>($A933-VLOOKUP(T$881,'F. UL & OPEX flat rates'!$B$2:$G$43,5)))*1,T$3:T53)+T757)*VLOOKUP(T$881,'F. UL & OPEX flat rates'!$B$2:$G$43,6,0)","v":0},{"$f":"(SUMPRODUCT(($A$3:$A53>($A933-VLOOKUP(U$881,'F. UL & OPEX flat rates'!$B$2:$G$43,5)))*1,U$3:U53)+U757)*VLOOKUP(U$881,'F. UL & OPEX flat rates'!$B$2:$G$43,6,0)","v":0},{"$f":"(SUMPRODUCT(($A$3:$A53>($A933-VLOOKUP(V$881,'F. UL & OPEX flat rates'!$B$2:$G$43,5)))*1,V$3:V53)+V757)*VLOOKUP(V$881,'F. UL & OPEX flat rates'!$B$2:$G$43,6,0)","v":0},{"$f":"(SUMPRODUCT(($A$3:$A53>($A933-VLOOKUP(W$881,'F. UL & OPEX flat rates'!$B$2:$G$43,5)))*1,W$3:W53)+W757)*VLOOKUP(W$881,'F. UL & OPEX flat rates'!$B$2:$G$43,6,0)","v":0},{"$f":"(SUMPRODUCT(($A$3:$A53>($A933-VLOOKUP(X$881,'F. UL & OPEX flat rates'!$B$2:$G$43,5)))*1,X$3:X53)+X757)*VLOOKUP(X$881,'F. UL & OPEX flat rates'!$B$2:$G$43,6,0)","v":0},{"$f":"(SUMPRODUCT(($A$3:$A53>($A933-VLOOKUP(Y$881,'F. UL & OPEX flat rates'!$B$2:$G$43,5)))*1,Y$3:Y53)+Y757)*VLOOKUP(Y$881,'F. UL & OPEX flat rates'!$B$2:$G$43,6,0)","v":0},{"$f":"(SUMPRODUCT(($A$3:$A53>($A933-VLOOKUP(Z$881,'F. UL & OPEX flat rates'!$B$2:$G$43,5)))*1,Z$3:Z53)+Z757)*VLOOKUP(Z$881,'F. UL & OPEX flat rates'!$B$2:$G$43,6,0)","v":0},{"$f":"(SUMPRODUCT(($A$3:$A53>($A933-VLOOKUP(AA$881,'F. UL & OPEX flat rates'!$B$2:$G$43,5)))*1,AA$3:AA53)+AA757)*VLOOKUP(AA$881,'F. UL & OPEX flat rates'!$B$2:$G$43,6,0)","v":0},{"$f":"(SUMPRODUCT(($A$3:$A53>($A933-VLOOKUP(AB$881,'F. UL & OPEX flat rates'!$B$2:$G$43,5)))*1,AB$3:AB53)+AB757)*VLOOKUP(AB$881,'F. UL & OPEX flat rates'!$B$2:$G$43,6,0)","v":0},{"$f":"(SUMPRODUCT(($A$3:$A53>($A933-VLOOKUP(AC$881,'F. UL & OPEX flat rates'!$B$2:$G$43,5)))*1,AC$3:AC53)+AC757)*VLOOKUP(AC$881,'F. UL & OPEX flat rates'!$B$2:$G$43,6,0)","v":0},{"$f":"(SUMPRODUCT(($A$3:$A53>($A933-VLOOKUP(AD$881,'F. UL & OPEX flat rates'!$B$2:$G$43,5)))*1,AD$3:AD53)+AD757)*VLOOKUP(AD$881,'F. UL & OPEX flat rates'!$B$2:$G$43,6,0)","v":0},{"$f":"(SUMPRODUCT(($A$3:$A53>($A933-VLOOKUP(AE$881,'F. UL & OPEX flat rates'!$B$2:$G$43,5)))*1,AE$3:AE53)+AE757)*VLOOKUP(AE$881,'F. UL & OPEX flat rates'!$B$2:$G$43,6,0)","v":0},{"$f":"(SUMPRODUCT(($A$3:$A53>($A933-VLOOKUP(AF$881,'F. UL & OPEX flat rates'!$B$2:$G$43,5)))*1,AF$3:AF53)+AF757)*VLOOKUP(AF$881,'F. UL & OPEX flat rates'!$B$2:$G$43,6,0)","v":0},{"$f":"(SUMPRODUCT(($A$3:$A53>($A933-VLOOKUP(AG$881,'F. UL & OPEX flat rates'!$B$2:$G$43,5)))*1,AG$3:AG53)+AG757)*VLOOKUP(AG$881,'F. UL & OPEX flat rates'!$B$2:$G$43,6,0)","v":0},{"$f":"(SUMPRODUCT(($A$3:$A53>($A933-VLOOKUP(AH$881,'F. UL & OPEX flat rates'!$B$2:$G$43,5)))*1,AH$3:AH53)+AH757)*VLOOKUP(AH$881,'F. UL & OPEX flat rates'!$B$2:$G$43,6,0)","v":0},{"$f":"(SUMPRODUCT(($A$3:$A53>($A933-VLOOKUP(AI$881,'F. UL & OPEX flat rates'!$B$2:$G$43,5)))*1,AI$3:AI53)+AI757)*VLOOKUP(AI$881,'F. UL & OPEX flat rates'!$B$2:$G$43,6,0)","v":0},{"$f":"(SUMPRODUCT(($A$3:$A53>($A933-VLOOKUP(AJ$881,'F. UL & OPEX flat rates'!$B$2:$G$43,5)))*1,AJ$3:AJ53)+AJ757)*VLOOKUP(AJ$881,'F. UL & OPEX flat rates'!$B$2:$G$43,6,0)","v":58000},{"$f":"(SUMPRODUCT(($A$3:$A53>($A933-VLOOKUP(AK$881,'F. UL & OPEX flat rates'!$B$2:$G$43,5)))*1,AK$3:AK53)+AK757)*VLOOKUP(AK$881,'F. UL & OPEX flat rates'!$B$2:$G$43,6,0)","v":0},{"$f":"(SUMPRODUCT(($A$3:$A53>($A933-VLOOKUP(AL$881,'F. UL & OPEX flat rates'!$B$2:$G$43,5)))*1,AL$3:AL53)+AL757)*VLOOKUP(AL$881,'F. UL & OPEX flat rates'!$B$2:$G$43,6,0)","v":0},{"$f":"(SUMPRODUCT(($A$3:$A53>($A933-VLOOKUP(AM$881,'F. UL & OPEX flat rates'!$B$2:$G$43,5)))*1,AM$3:AM53)+AM757)*VLOOKUP(AM$881,'F. UL & OPEX flat rates'!$B$2:$G$43,6,0)","v":0},{"$f":"(SUMPRODUCT(($A$3:$A53>($A933-VLOOKUP(AN$881,'F. UL & OPEX flat rates'!$B$2:$G$43,5)))*1,AN$3:AN53)+AN757)*VLOOKUP(AN$881,'F. UL & OPEX flat rates'!$B$2:$G$43,6,0)","v":0},{"$f":"(SUMPRODUCT(($A$3:$A53>($A933-VLOOKUP(AO$881,'F. UL & OPEX flat rates'!$B$2:$G$43,5)))*1,AO$3:AO53)+AO757)*VLOOKUP(AO$881,'F. UL & OPEX flat rates'!$B$2:$G$43,6,0)","v":0},{"$f":"(SUMPRODUCT(($A$3:$A53>($A933-VLOOKUP(AP$881,'F. UL & OPEX flat rates'!$B$2:$G$43,5)))*1,AP$3:AP53)+AP757)*VLOOKUP(AP$881,'F. UL & OPEX flat rates'!$B$2:$G$43,6,0)","v":0},{"$f":"(SUMPRODUCT(($A$3:$A53>($A933-VLOOKUP(AQ$881,'F. UL & OPEX flat rates'!$B$2:$G$43,5)))*1,AQ$3:AQ53)+AQ757)*VLOOKUP(AQ$881,'F. UL & OPEX flat rates'!$B$2:$G$43,6,0)","v":0}]
[2067,58000,{"$f":"(SUMPRODUCT(($A$3:$A54>($A934-VLOOKUP(C$881,'F. UL & OPEX flat rates'!$B$2:$G$43,5)))*1,C$3:C54)+C758)*VLOOKUP(C$881,'F. UL & OPEX flat rates'!$B$2:$G$43,6,0)","v":0},{"$f":"(SUMPRODUCT(($A$3:$A54>($A934-VLOOKUP(D$881,'F. UL & OPEX flat rates'!$B$2:$G$43,5)))*1,D$3:D54)+D758)*VLOOKUP(D$881,'F. UL & OPEX flat rates'!$B$2:$G$43,6,0)","v":0},{"$f":"(SUMPRODUCT(($A$3:$A54>($A934-VLOOKUP(E$881,'F. UL & OPEX flat rates'!$B$2:$G$43,5)))*1,E$3:E54)+E758)*VLOOKUP(E$881,'F. UL & OPEX flat rates'!$B$2:$G$43,6,0)","v":0},{"$f":"(SUMPRODUCT(($A$3:$A54>($A934-VLOOKUP(F$881,'F. UL & OPEX flat rates'!$B$2:$G$43,5)))*1,F$3:F54)+F758)*VLOOKUP(F$881,'F. UL & OPEX flat rates'!$B$2:$G$43,6,0)","v":0},{"$f":"(SUMPRODUCT(($A$3:$A54>($A934-VLOOKUP(G$881,'F. UL & OPEX flat rates'!$B$2:$G$43,5)))*1,G$3:G54)+G758)*VLOOKUP(G$881,'F. UL & OPEX flat rates'!$B$2:$G$43,6,0)","v":0},{"$f":"(SUMPRODUCT(($A$3:$A54>($A934-VLOOKUP(H$881,'F. UL & OPEX flat rates'!$B$2:$G$43,5)))*1,H$3:H54)+H758)*VLOOKUP(H$881,'F. UL & OPEX flat rates'!$B$2:$G$43,6,0)","v":0},{"$f":"(SUMPRODUCT(($A$3:$A54>($A934-VLOOKUP(I$881,'F. UL & OPEX flat rates'!$B$2:$G$43,5)))*1,I$3:I54)+I758)*VLOOKUP(I$881,'F. UL & OPEX flat rates'!$B$2:$G$43,6,0)","v":0},{"$f":"(SUMPRODUCT(($A$3:$A54>($A934-VLOOKUP(J$881,'F. UL & OPEX flat rates'!$B$2:$G$43,5)))*1,J$3:J54)+J758)*VLOOKUP(J$881,'F. UL & OPEX flat rates'!$B$2:$G$43,6,0)","v":0},{"$f":"(SUMPRODUCT(($A$3:$A54>($A934-VLOOKUP(K$881,'F. UL & OPEX flat rates'!$B$2:$G$43,5)))*1,K$3:K54)+K758)*VLOOKUP(K$881,'F. UL & OPEX flat rates'!$B$2:$G$43,6,0)","v":0},{"$f":"(SUMPRODUCT(($A$3:$A54>($A934-VLOOKUP(L$881,'F. UL & OPEX flat rates'!$B$2:$G$43,5)))*1,L$3:L54)+L758)*VLOOKUP(L$881,'F. UL & OPEX flat rates'!$B$2:$G$43,6,0)","v":0},{"$f":"(SUMPRODUCT(($A$3:$A54>($A934-VLOOKUP(M$881,'F. UL & OPEX flat rates'!$B$2:$G$43,5)))*1,M$3:M54)+M758)*VLOOKUP(M$881,'F. UL & OPEX flat rates'!$B$2:$G$43,6,0)","v":0},{"$f":"(SUMPRODUCT(($A$3:$A54>($A934-VLOOKUP(N$881,'F. UL & OPEX flat rates'!$B$2:$G$43,5)))*1,N$3:N54)+N758)*VLOOKUP(N$881,'F. UL & OPEX flat rates'!$B$2:$G$43,6,0)","v":0},{"$f":"(SUMPRODUCT(($A$3:$A54>($A934-VLOOKUP(O$881,'F. UL & OPEX flat rates'!$B$2:$G$43,5)))*1,O$3:O54)+O758)*VLOOKUP(O$881,'F. UL & OPEX flat rates'!$B$2:$G$43,6,0)","v":0},{"$f":"(SUMPRODUCT(($A$3:$A54>($A934-VLOOKUP(P$881,'F. UL & OPEX flat rates'!$B$2:$G$43,5)))*1,P$3:P54)+P758)*VLOOKUP(P$881,'F. UL & OPEX flat rates'!$B$2:$G$43,6,0)","v":0},{"$f":"(SUMPRODUCT(($A$3:$A54>($A934-VLOOKUP(Q$881,'F. UL & OPEX flat rates'!$B$2:$G$43,5)))*1,Q$3:Q54)+Q758)*VLOOKUP(Q$881,'F. UL & OPEX flat rates'!$B$2:$G$43,6,0)","v":0},{"$f":"(SUMPRODUCT(($A$3:$A54>($A934-VLOOKUP(R$881,'F. UL & OPEX flat rates'!$B$2:$G$43,5)))*1,R$3:R54)+R758)*VLOOKUP(R$881,'F. UL & OPEX flat rates'!$B$2:$G$43,6,0)","v":0},{"$f":"(SUMPRODUCT(($A$3:$A54>($A934-VLOOKUP(S$881,'F. UL & OPEX flat rates'!$B$2:$G$43,5)))*1,S$3:S54)+S758)*VLOOKUP(S$881,'F. UL & OPEX flat rates'!$B$2:$G$43,6,0)","v":0},{"$f":"(SUMPRODUCT(($A$3:$A54>($A934-VLOOKUP(T$881,'F. UL & OPEX flat rates'!$B$2:$G$43,5)))*1,T$3:T54)+T758)*VLOOKUP(T$881,'F. UL & OPEX flat rates'!$B$2:$G$43,6,0)","v":0},{"$f":"(SUMPRODUCT(($A$3:$A54>($A934-VLOOKUP(U$881,'F. UL & OPEX flat rates'!$B$2:$G$43,5)))*1,U$3:U54)+U758)*VLOOKUP(U$881,'F. UL & OPEX flat rates'!$B$2:$G$43,6,0)","v":0},{"$f":"(SUMPRODUCT(($A$3:$A54>($A934-VLOOKUP(V$881,'F. UL & OPEX flat rates'!$B$2:$G$43,5)))*1,V$3:V54)+V758)*VLOOKUP(V$881,'F. UL & OPEX flat rates'!$B$2:$G$43,6,0)","v":0},{"$f":"(SUMPRODUCT(($A$3:$A54>($A934-VLOOKUP(W$881,'F. UL & OPEX flat rates'!$B$2:$G$43,5)))*1,W$3:W54)+W758)*VLOOKUP(W$881,'F. UL & OPEX flat rates'!$B$2:$G$43,6,0)","v":0},{"$f":"(SUMPRODUCT(($A$3:$A54>($A934-VLOOKUP(X$881,'F. UL & OPEX flat rates'!$B$2:$G$43,5)))*1,X$3:X54)+X758)*VLOOKUP(X$881,'F. UL & OPEX flat rates'!$B$2:$G$43,6,0)","v":0},{"$f":"(SUMPRODUCT(($A$3:$A54>($A934-VLOOKUP(Y$881,'F. UL & OPEX flat rates'!$B$2:$G$43,5)))*1,Y$3:Y54)+Y758)*VLOOKUP(Y$881,'F. UL & OPEX flat rates'!$B$2:$G$43,6,0)","v":0},{"$f":"(SUMPRODUCT(($A$3:$A54>($A934-VLOOKUP(Z$881,'F. UL & OPEX flat rates'!$B$2:$G$43,5)))*1,Z$3:Z54)+Z758)*VLOOKUP(Z$881,'F. UL & OPEX flat rates'!$B$2:$G$43,6,0)","v":0},{"$f":"(SUMPRODUCT(($A$3:$A54>($A934-VLOOKUP(AA$881,'F. UL & OPEX flat rates'!$B$2:$G$43,5)))*1,AA$3:AA54)+AA758)*VLOOKUP(AA$881,'F. UL & OPEX flat rates'!$B$2:$G$43,6,0)","v":0},{"$f":"(SUMPRODUCT(($A$3:$A54>($A934-VLOOKUP(AB$881,'F. UL & OPEX flat rates'!$B$2:$G$43,5)))*1,AB$3:AB54)+AB758)*VLOOKUP(AB$881,'F. UL & OPEX flat rates'!$B$2:$G$43,6,0)","v":0},{"$f":"(SUMPRODUCT(($A$3:$A54>($A934-VLOOKUP(AC$881,'F. UL & OPEX flat rates'!$B$2:$G$43,5)))*1,AC$3:AC54)+AC758)*VLOOKUP(AC$881,'F. UL & OPEX flat rates'!$B$2:$G$43,6,0)","v":0},{"$f":"(SUMPRODUCT(($A$3:$A54>($A934-VLOOKUP(AD$881,'F. UL & OPEX flat rates'!$B$2:$G$43,5)))*1,AD$3:AD54)+AD758)*VLOOKUP(AD$881,'F. UL & OPEX flat rates'!$B$2:$G$43,6,0)","v":0},{"$f":"(SUMPRODUCT(($A$3:$A54>($A934-VLOOKUP(AE$881,'F. UL & OPEX flat rates'!$B$2:$G$43,5)))*1,AE$3:AE54)+AE758)*VLOOKUP(AE$881,'F. UL & OPEX flat rates'!$B$2:$G$43,6,0)","v":0},{"$f":"(SUMPRODUCT(($A$3:$A54>($A934-VLOOKUP(AF$881,'F. UL & OPEX flat rates'!$B$2:$G$43,5)))*1,AF$3:AF54)+AF758)*VLOOKUP(AF$881,'F. UL & OPEX flat rates'!$B$2:$G$43,6,0)","v":0},{"$f":"(SUMPRODUCT(($A$3:$A54>($A934-VLOOKUP(AG$881,'F. UL & OPEX flat rates'!$B$2:$G$43,5)))*1,AG$3:AG54)+AG758)*VLOOKUP(AG$881,'F. UL & OPEX flat rates'!$B$2:$G$43,6,0)","v":0},{"$f":"(SUMPRODUCT(($A$3:$A54>($A934-VLOOKUP(AH$881,'F. UL & OPEX flat rates'!$B$2:$G$43,5)))*1,AH$3:AH54)+AH758)*VLOOKUP(AH$881,'F. UL & OPEX flat rates'!$B$2:$G$43,6,0)","v":0},{"$f":"(SUMPRODUCT(($A$3:$A54>($A934-VLOOKUP(AI$881,'F. UL & OPEX flat rates'!$B$2:$G$43,5)))*1,AI$3:AI54)+AI758)*VLOOKUP(AI$881,'F. UL & OPEX flat rates'!$B$2:$G$43,6,0)","v":0},{"$f":"(SUMPRODUCT(($A$3:$A54>($A934-VLOOKUP(AJ$881,'F. UL & OPEX flat rates'!$B$2:$G$43,5)))*1,AJ$3:AJ54)+AJ758)*VLOOKUP(AJ$881,'F. UL & OPEX flat rates'!$B$2:$G$43,6,0)","v":58000},{"$f":"(SUMPRODUCT(($A$3:$A54>($A934-VLOOKUP(AK$881,'F. UL & OPEX flat rates'!$B$2:$G$43,5)))*1,AK$3:AK54)+AK758)*VLOOKUP(AK$881,'F. UL & OPEX flat rates'!$B$2:$G$43,6,0)","v":0},{"$f":"(SUMPRODUCT(($A$3:$A54>($A934-VLOOKUP(AL$881,'F. UL & OPEX flat rates'!$B$2:$G$43,5)))*1,AL$3:AL54)+AL758)*VLOOKUP(AL$881,'F. UL & OPEX flat rates'!$B$2:$G$43,6,0)","v":0},{"$f":"(SUMPRODUCT(($A$3:$A54>($A934-VLOOKUP(AM$881,'F. UL & OPEX flat rates'!$B$2:$G$43,5)))*1,AM$3:AM54)+AM758)*VLOOKUP(AM$881,'F. UL & OPEX flat rates'!$B$2:$G$43,6,0)","v":0},{"$f":"(SUMPRODUCT(($A$3:$A54>($A934-VLOOKUP(AN$881,'F. UL & OPEX flat rates'!$B$2:$G$43,5)))*1,AN$3:AN54)+AN758)*VLOOKUP(AN$881,'F. UL & OPEX flat rates'!$B$2:$G$43,6,0)","v":0},{"$f":"(SUMPRODUCT(($A$3:$A54>($A934-VLOOKUP(AO$881,'F. UL & OPEX flat rates'!$B$2:$G$43,5)))*1,AO$3:AO54)+AO758)*VLOOKUP(AO$881,'F. UL & OPEX flat rates'!$B$2:$G$43,6,0)","v":0},{"$f":"(SUMPRODUCT(($A$3:$A54>($A934-VLOOKUP(AP$881,'F. UL & OPEX flat rates'!$B$2:$G$43,5)))*1,AP$3:AP54)+AP758)*VLOOKUP(AP$881,'F. UL & OPEX flat rates'!$B$2:$G$43,6,0)","v":0},{"$f":"(SUMPRODUCT(($A$3:$A54>($A934-VLOOKUP(AQ$881,'F. UL & OPEX flat rates'!$B$2:$G$43,5)))*1,AQ$3:AQ54)+AQ758)*VLOOKUP(AQ$881,'F. UL & OPEX flat rates'!$B$2:$G$43,6,0)","v":0}]
[2068,58000,{"$f":"(SUMPRODUCT(($A$3:$A55>($A935-VLOOKUP(C$881,'F. UL & OPEX flat rates'!$B$2:$G$43,5)))*1,C$3:C55)+C759)*VLOOKUP(C$881,'F. UL & OPEX flat rates'!$B$2:$G$43,6,0)","v":0},{"$f":"(SUMPRODUCT(($A$3:$A55>($A935-VLOOKUP(D$881,'F. UL & OPEX flat rates'!$B$2:$G$43,5)))*1,D$3:D55)+D759)*VLOOKUP(D$881,'F. UL & OPEX flat rates'!$B$2:$G$43,6,0)","v":0},{"$f":"(SUMPRODUCT(($A$3:$A55>($A935-VLOOKUP(E$881,'F. UL & OPEX flat rates'!$B$2:$G$43,5)))*1,E$3:E55)+E759)*VLOOKUP(E$881,'F. UL & OPEX flat rates'!$B$2:$G$43,6,0)","v":0},{"$f":"(SUMPRODUCT(($A$3:$A55>($A935-VLOOKUP(F$881,'F. UL & OPEX flat rates'!$B$2:$G$43,5)))*1,F$3:F55)+F759)*VLOOKUP(F$881,'F. UL & OPEX flat rates'!$B$2:$G$43,6,0)","v":0},{"$f":"(SUMPRODUCT(($A$3:$A55>($A935-VLOOKUP(G$881,'F. UL & OPEX flat rates'!$B$2:$G$43,5)))*1,G$3:G55)+G759)*VLOOKUP(G$881,'F. UL & OPEX flat rates'!$B$2:$G$43,6,0)","v":0},{"$f":"(SUMPRODUCT(($A$3:$A55>($A935-VLOOKUP(H$881,'F. UL & OPEX flat rates'!$B$2:$G$43,5)))*1,H$3:H55)+H759)*VLOOKUP(H$881,'F. UL & OPEX flat rates'!$B$2:$G$43,6,0)","v":0},{"$f":"(SUMPRODUCT(($A$3:$A55>($A935-VLOOKUP(I$881,'F. UL & OPEX flat rates'!$B$2:$G$43,5)))*1,I$3:I55)+I759)*VLOOKUP(I$881,'F. UL & OPEX flat rates'!$B$2:$G$43,6,0)","v":0},{"$f":"(SUMPRODUCT(($A$3:$A55>($A935-VLOOKUP(J$881,'F. UL & OPEX flat rates'!$B$2:$G$43,5)))*1,J$3:J55)+J759)*VLOOKUP(J$881,'F. UL & OPEX flat rates'!$B$2:$G$43,6,0)","v":0},{"$f":"(SUMPRODUCT(($A$3:$A55>($A935-VLOOKUP(K$881,'F. UL & OPEX flat rates'!$B$2:$G$43,5)))*1,K$3:K55)+K759)*VLOOKUP(K$881,'F. UL & OPEX flat rates'!$B$2:$G$43,6,0)","v":0},{"$f":"(SUMPRODUCT(($A$3:$A55>($A935-VLOOKUP(L$881,'F. UL & OPEX flat rates'!$B$2:$G$43,5)))*1,L$3:L55)+L759)*VLOOKUP(L$881,'F. UL & OPEX flat rates'!$B$2:$G$43,6,0)","v":0},{"$f":"(SUMPRODUCT(($A$3:$A55>($A935-VLOOKUP(M$881,'F. UL & OPEX flat rates'!$B$2:$G$43,5)))*1,M$3:M55)+M759)*VLOOKUP(M$881,'F. UL & OPEX flat rates'!$B$2:$G$43,6,0)","v":0},{"$f":"(SUMPRODUCT(($A$3:$A55>($A935-VLOOKUP(N$881,'F. UL & OPEX flat rates'!$B$2:$G$43,5)))*1,N$3:N55)+N759)*VLOOKUP(N$881,'F. UL & OPEX flat rates'!$B$2:$G$43,6,0)","v":0},{"$f":"(SUMPRODUCT(($A$3:$A55>($A935-VLOOKUP(O$881,'F. UL & OPEX flat rates'!$B$2:$G$43,5)))*1,O$3:O55)+O759)*VLOOKUP(O$881,'F. UL & OPEX flat rates'!$B$2:$G$43,6,0)","v":0},{"$f":"(SUMPRODUCT(($A$3:$A55>($A935-VLOOKUP(P$881,'F. UL & OPEX flat rates'!$B$2:$G$43,5)))*1,P$3:P55)+P759)*VLOOKUP(P$881,'F. UL & OPEX flat rates'!$B$2:$G$43,6,0)","v":0},{"$f":"(SUMPRODUCT(($A$3:$A55>($A935-VLOOKUP(Q$881,'F. UL & OPEX flat rates'!$B$2:$G$43,5)))*1,Q$3:Q55)+Q759)*VLOOKUP(Q$881,'F. UL & OPEX flat rates'!$B$2:$G$43,6,0)","v":0},{"$f":"(SUMPRODUCT(($A$3:$A55>($A935-VLOOKUP(R$881,'F. UL & OPEX flat rates'!$B$2:$G$43,5)))*1,R$3:R55)+R759)*VLOOKUP(R$881,'F. UL & OPEX flat rates'!$B$2:$G$43,6,0)","v":0},{"$f":"(SUMPRODUCT(($A$3:$A55>($A935-VLOOKUP(S$881,'F. UL & OPEX flat rates'!$B$2:$G$43,5)))*1,S$3:S55)+S759)*VLOOKUP(S$881,'F. UL & OPEX flat rates'!$B$2:$G$43,6,0)","v":0},{"$f":"(SUMPRODUCT(($A$3:$A55>($A935-VLOOKUP(T$881,'F. UL & OPEX flat rates'!$B$2:$G$43,5)))*1,T$3:T55)+T759)*VLOOKUP(T$881,'F. UL & OPEX flat rates'!$B$2:$G$43,6,0)","v":0},{"$f":"(SUMPRODUCT(($A$3:$A55>($A935-VLOOKUP(U$881,'F. UL & OPEX flat rates'!$B$2:$G$43,5)))*1,U$3:U55)+U759)*VLOOKUP(U$881,'F. UL & OPEX flat rates'!$B$2:$G$43,6,0)","v":0},{"$f":"(SUMPRODUCT(($A$3:$A55>($A935-VLOOKUP(V$881,'F. UL & OPEX flat rates'!$B$2:$G$43,5)))*1,V$3:V55)+V759)*VLOOKUP(V$881,'F. UL & OPEX flat rates'!$B$2:$G$43,6,0)","v":0},{"$f":"(SUMPRODUCT(($A$3:$A55>($A935-VLOOKUP(W$881,'F. UL & OPEX flat rates'!$B$2:$G$43,5)))*1,W$3:W55)+W759)*VLOOKUP(W$881,'F. UL & OPEX flat rates'!$B$2:$G$43,6,0)","v":0},{"$f":"(SUMPRODUCT(($A$3:$A55>($A935-VLOOKUP(X$881,'F. UL & OPEX flat rates'!$B$2:$G$43,5)))*1,X$3:X55)+X759)*VLOOKUP(X$881,'F. UL & OPEX flat rates'!$B$2:$G$43,6,0)","v":0},{"$f":"(SUMPRODUCT(($A$3:$A55>($A935-VLOOKUP(Y$881,'F. UL & OPEX flat rates'!$B$2:$G$43,5)))*1,Y$3:Y55)+Y759)*VLOOKUP(Y$881,'F. UL & OPEX flat rates'!$B$2:$G$43,6,0)","v":0},{"$f":"(SUMPRODUCT(($A$3:$A55>($A935-VLOOKUP(Z$881,'F. UL & OPEX flat rates'!$B$2:$G$43,5)))*1,Z$3:Z55)+Z759)*VLOOKUP(Z$881,'F. UL & OPEX flat rates'!$B$2:$G$43,6,0)","v":0},{"$f":"(SUMPRODUCT(($A$3:$A55>($A935-VLOOKUP(AA$881,'F. UL & OPEX flat rates'!$B$2:$G$43,5)))*1,AA$3:AA55)+AA759)*VLOOKUP(AA$881,'F. UL & OPEX flat rates'!$B$2:$G$43,6,0)","v":0},{"$f":"(SUMPRODUCT(($A$3:$A55>($A935-VLOOKUP(AB$881,'F. UL & OPEX flat rates'!$B$2:$G$43,5)))*1,AB$3:AB55)+AB759)*VLOOKUP(AB$881,'F. UL & OPEX flat rates'!$B$2:$G$43,6,0)","v":0},{"$f":"(SUMPRODUCT(($A$3:$A55>($A935-VLOOKUP(AC$881,'F. UL & OPEX flat rates'!$B$2:$G$43,5)))*1,AC$3:AC55)+AC759)*VLOOKUP(AC$881,'F. UL & OPEX flat rates'!$B$2:$G$43,6,0)","v":0},{"$f":"(SUMPRODUCT(($A$3:$A55>($A935-VLOOKUP(AD$881,'F. UL & OPEX flat rates'!$B$2:$G$43,5)))*1,AD$3:AD55)+AD759)*VLOOKUP(AD$881,'F. UL & OPEX flat rates'!$B$2:$G$43,6,0)","v":0},{"$f":"(SUMPRODUCT(($A$3:$A55>($A935-VLOOKUP(AE$881,'F. UL & OPEX flat rates'!$B$2:$G$43,5)))*1,AE$3:AE55)+AE759)*VLOOKUP(AE$881,'F. UL & OPEX flat rates'!$B$2:$G$43,6,0)","v":0},{"$f":"(SUMPRODUCT(($A$3:$A55>($A935-VLOOKUP(AF$881,'F. UL & OPEX flat rates'!$B$2:$G$43,5)))*1,AF$3:AF55)+AF759)*VLOOKUP(AF$881,'F. UL & OPEX flat rates'!$B$2:$G$43,6,0)","v":0},{"$f":"(SUMPRODUCT(($A$3:$A55>($A935-VLOOKUP(AG$881,'F. UL & OPEX flat rates'!$B$2:$G$43,5)))*1,AG$3:AG55)+AG759)*VLOOKUP(AG$881,'F. UL & OPEX flat rates'!$B$2:$G$43,6,0)","v":0},{"$f":"(SUMPRODUCT(($A$3:$A55>($A935-VLOOKUP(AH$881,'F. UL & OPEX flat rates'!$B$2:$G$43,5)))*1,AH$3:AH55)+AH759)*VLOOKUP(AH$881,'F. UL & OPEX flat rates'!$B$2:$G$43,6,0)","v":0},{"$f":"(SUMPRODUCT(($A$3:$A55>($A935-VLOOKUP(AI$881,'F. UL & OPEX flat rates'!$B$2:$G$43,5)))*1,AI$3:AI55)+AI759)*VLOOKUP(AI$881,'F. UL & OPEX flat rates'!$B$2:$G$43,6,0)","v":0},{"$f":"(SUMPRODUCT(($A$3:$A55>($A935-VLOOKUP(AJ$881,'F. UL & OPEX flat rates'!$B$2:$G$43,5)))*1,AJ$3:AJ55)+AJ759)*VLOOKUP(AJ$881,'F. UL & OPEX flat rates'!$B$2:$G$43,6,0)","v":58000},{"$f":"(SUMPRODUCT(($A$3:$A55>($A935-VLOOKUP(AK$881,'F. UL & OPEX flat rates'!$B$2:$G$43,5)))*1,AK$3:AK55)+AK759)*VLOOKUP(AK$881,'F. UL & OPEX flat rates'!$B$2:$G$43,6,0)","v":0},{"$f":"(SUMPRODUCT(($A$3:$A55>($A935-VLOOKUP(AL$881,'F. UL & OPEX flat rates'!$B$2:$G$43,5)))*1,AL$3:AL55)+AL759)*VLOOKUP(AL$881,'F. UL & OPEX flat rates'!$B$2:$G$43,6,0)","v":0},{"$f":"(SUMPRODUCT(($A$3:$A55>($A935-VLOOKUP(AM$881,'F. UL & OPEX flat rates'!$B$2:$G$43,5)))*1,AM$3:AM55)+AM759)*VLOOKUP(AM$881,'F. UL & OPEX flat rates'!$B$2:$G$43,6,0)","v":0},{"$f":"(SUMPRODUCT(($A$3:$A55>($A935-VLOOKUP(AN$881,'F. UL & OPEX flat rates'!$B$2:$G$43,5)))*1,AN$3:AN55)+AN759)*VLOOKUP(AN$881,'F. UL & OPEX flat rates'!$B$2:$G$43,6,0)","v":0},{"$f":"(SUMPRODUCT(($A$3:$A55>($A935-VLOOKUP(AO$881,'F. UL & OPEX flat rates'!$B$2:$G$43,5)))*1,AO$3:AO55)+AO759)*VLOOKUP(AO$881,'F. UL & OPEX flat rates'!$B$2:$G$43,6,0)","v":0},{"$f":"(SUMPRODUCT(($A$3:$A55>($A935-VLOOKUP(AP$881,'F. UL & OPEX flat rates'!$B$2:$G$43,5)))*1,AP$3:AP55)+AP759)*VLOOKUP(AP$881,'F. UL & OPEX flat rates'!$B$2:$G$43,6,0)","v":0},{"$f":"(SUMPRODUCT(($A$3:$A55>($A935-VLOOKUP(AQ$881,'F. UL & OPEX flat rates'!$B$2:$G$43,5)))*1,AQ$3:AQ55)+AQ759)*VLOOKUP(AQ$881,'F. UL & OPEX flat rates'!$B$2:$G$43,6,0)","v":0}]
[2069,58000,{"$f":"(SUMPRODUCT(($A$3:$A56>($A936-VLOOKUP(C$881,'F. UL & OPEX flat rates'!$B$2:$G$43,5)))*1,C$3:C56)+C760)*VLOOKUP(C$881,'F. UL & OPEX flat rates'!$B$2:$G$43,6,0)","v":0},{"$f":"(SUMPRODUCT(($A$3:$A56>($A936-VLOOKUP(D$881,'F. UL & OPEX flat rates'!$B$2:$G$43,5)))*1,D$3:D56)+D760)*VLOOKUP(D$881,'F. UL & OPEX flat rates'!$B$2:$G$43,6,0)","v":0},{"$f":"(SUMPRODUCT(($A$3:$A56>($A936-VLOOKUP(E$881,'F. UL & OPEX flat rates'!$B$2:$G$43,5)))*1,E$3:E56)+E760)*VLOOKUP(E$881,'F. UL & OPEX flat rates'!$B$2:$G$43,6,0)","v":0},{"$f":"(SUMPRODUCT(($A$3:$A56>($A936-VLOOKUP(F$881,'F. UL & OPEX flat rates'!$B$2:$G$43,5)))*1,F$3:F56)+F760)*VLOOKUP(F$881,'F. UL & OPEX flat rates'!$B$2:$G$43,6,0)","v":0},{"$f":"(SUMPRODUCT(($A$3:$A56>($A936-VLOOKUP(G$881,'F. UL & OPEX flat rates'!$B$2:$G$43,5)))*1,G$3:G56)+G760)*VLOOKUP(G$881,'F. UL & OPEX flat rates'!$B$2:$G$43,6,0)","v":0},{"$f":"(SUMPRODUCT(($A$3:$A56>($A936-VLOOKUP(H$881,'F. UL & OPEX flat rates'!$B$2:$G$43,5)))*1,H$3:H56)+H760)*VLOOKUP(H$881,'F. UL & OPEX flat rates'!$B$2:$G$43,6,0)","v":0},{"$f":"(SUMPRODUCT(($A$3:$A56>($A936-VLOOKUP(I$881,'F. UL & OPEX flat rates'!$B$2:$G$43,5)))*1,I$3:I56)+I760)*VLOOKUP(I$881,'F. UL & OPEX flat rates'!$B$2:$G$43,6,0)","v":0},{"$f":"(SUMPRODUCT(($A$3:$A56>($A936-VLOOKUP(J$881,'F. UL & OPEX flat rates'!$B$2:$G$43,5)))*1,J$3:J56)+J760)*VLOOKUP(J$881,'F. UL & OPEX flat rates'!$B$2:$G$43,6,0)","v":0},{"$f":"(SUMPRODUCT(($A$3:$A56>($A936-VLOOKUP(K$881,'F. UL & OPEX flat rates'!$B$2:$G$43,5)))*1,K$3:K56)+K760)*VLOOKUP(K$881,'F. UL & OPEX flat rates'!$B$2:$G$43,6,0)","v":0},{"$f":"(SUMPRODUCT(($A$3:$A56>($A936-VLOOKUP(L$881,'F. UL & OPEX flat rates'!$B$2:$G$43,5)))*1,L$3:L56)+L760)*VLOOKUP(L$881,'F. UL & OPEX flat rates'!$B$2:$G$43,6,0)","v":0},{"$f":"(SUMPRODUCT(($A$3:$A56>($A936-VLOOKUP(M$881,'F. UL & OPEX flat rates'!$B$2:$G$43,5)))*1,M$3:M56)+M760)*VLOOKUP(M$881,'F. UL & OPEX flat rates'!$B$2:$G$43,6,0)","v":0},{"$f":"(SUMPRODUCT(($A$3:$A56>($A936-VLOOKUP(N$881,'F. UL & OPEX flat rates'!$B$2:$G$43,5)))*1,N$3:N56)+N760)*VLOOKUP(N$881,'F. UL & OPEX flat rates'!$B$2:$G$43,6,0)","v":0},{"$f":"(SUMPRODUCT(($A$3:$A56>($A936-VLOOKUP(O$881,'F. UL & OPEX flat rates'!$B$2:$G$43,5)))*1,O$3:O56)+O760)*VLOOKUP(O$881,'F. UL & OPEX flat rates'!$B$2:$G$43,6,0)","v":0},{"$f":"(SUMPRODUCT(($A$3:$A56>($A936-VLOOKUP(P$881,'F. UL & OPEX flat rates'!$B$2:$G$43,5)))*1,P$3:P56)+P760)*VLOOKUP(P$881,'F. UL & OPEX flat rates'!$B$2:$G$43,6,0)","v":0},{"$f":"(SUMPRODUCT(($A$3:$A56>($A936-VLOOKUP(Q$881,'F. UL & OPEX flat rates'!$B$2:$G$43,5)))*1,Q$3:Q56)+Q760)*VLOOKUP(Q$881,'F. UL & OPEX flat rates'!$B$2:$G$43,6,0)","v":0},{"$f":"(SUMPRODUCT(($A$3:$A56>($A936-VLOOKUP(R$881,'F. UL & OPEX flat rates'!$B$2:$G$43,5)))*1,R$3:R56)+R760)*VLOOKUP(R$881,'F. UL & OPEX flat rates'!$B$2:$G$43,6,0)","v":0},{"$f":"(SUMPRODUCT(($A$3:$A56>($A936-VLOOKUP(S$881,'F. UL & OPEX flat rates'!$B$2:$G$43,5)))*1,S$3:S56)+S760)*VLOOKUP(S$881,'F. UL & OPEX flat rates'!$B$2:$G$43,6,0)","v":0},{"$f":"(SUMPRODUCT(($A$3:$A56>($A936-VLOOKUP(T$881,'F. UL & OPEX flat rates'!$B$2:$G$43,5)))*1,T$3:T56)+T760)*VLOOKUP(T$881,'F. UL & OPEX flat rates'!$B$2:$G$43,6,0)","v":0},{"$f":"(SUMPRODUCT(($A$3:$A56>($A936-VLOOKUP(U$881,'F. UL & OPEX flat rates'!$B$2:$G$43,5)))*1,U$3:U56)+U760)*VLOOKUP(U$881,'F. UL & OPEX flat rates'!$B$2:$G$43,6,0)","v":0},{"$f":"(SUMPRODUCT(($A$3:$A56>($A936-VLOOKUP(V$881,'F. UL & OPEX flat rates'!$B$2:$G$43,5)))*1,V$3:V56)+V760)*VLOOKUP(V$881,'F. UL & OPEX flat rates'!$B$2:$G$43,6,0)","v":0},{"$f":"(SUMPRODUCT(($A$3:$A56>($A936-VLOOKUP(W$881,'F. UL & OPEX flat rates'!$B$2:$G$43,5)))*1,W$3:W56)+W760)*VLOOKUP(W$881,'F. UL & OPEX flat rates'!$B$2:$G$43,6,0)","v":0},{"$f":"(SUMPRODUCT(($A$3:$A56>($A936-VLOOKUP(X$881,'F. UL & OPEX flat rates'!$B$2:$G$43,5)))*1,X$3:X56)+X760)*VLOOKUP(X$881,'F. UL & OPEX flat rates'!$B$2:$G$43,6,0)","v":0},{"$f":"(SUMPRODUCT(($A$3:$A56>($A936-VLOOKUP(Y$881,'F. UL & OPEX flat rates'!$B$2:$G$43,5)))*1,Y$3:Y56)+Y760)*VLOOKUP(Y$881,'F. UL & OPEX flat rates'!$B$2:$G$43,6,0)","v":0},{"$f":"(SUMPRODUCT(($A$3:$A56>($A936-VLOOKUP(Z$881,'F. UL & OPEX flat rates'!$B$2:$G$43,5)))*1,Z$3:Z56)+Z760)*VLOOKUP(Z$881,'F. UL & OPEX flat rates'!$B$2:$G$43,6,0)","v":0},{"$f":"(SUMPRODUCT(($A$3:$A56>($A936-VLOOKUP(AA$881,'F. UL & OPEX flat rates'!$B$2:$G$43,5)))*1,AA$3:AA56)+AA760)*VLOOKUP(AA$881,'F. UL & OPEX flat rates'!$B$2:$G$43,6,0)","v":0},{"$f":"(SUMPRODUCT(($A$3:$A56>($A936-VLOOKUP(AB$881,'F. UL & OPEX flat rates'!$B$2:$G$43,5)))*1,AB$3:AB56)+AB760)*VLOOKUP(AB$881,'F. UL & OPEX flat rates'!$B$2:$G$43,6,0)","v":0},{"$f":"(SUMPRODUCT(($A$3:$A56>($A936-VLOOKUP(AC$881,'F. UL & OPEX flat rates'!$B$2:$G$43,5)))*1,AC$3:AC56)+AC760)*VLOOKUP(AC$881,'F. UL & OPEX flat rates'!$B$2:$G$43,6,0)","v":0},{"$f":"(SUMPRODUCT(($A$3:$A56>($A936-VLOOKUP(AD$881,'F. UL & OPEX flat rates'!$B$2:$G$43,5)))*1,AD$3:AD56)+AD760)*VLOOKUP(AD$881,'F. UL & OPEX flat rates'!$B$2:$G$43,6,0)","v":0},{"$f":"(SUMPRODUCT(($A$3:$A56>($A936-VLOOKUP(AE$881,'F. UL & OPEX flat rates'!$B$2:$G$43,5)))*1,AE$3:AE56)+AE760)*VLOOKUP(AE$881,'F. UL & OPEX flat rates'!$B$2:$G$43,6,0)","v":0},{"$f":"(SUMPRODUCT(($A$3:$A56>($A936-VLOOKUP(AF$881,'F. UL & OPEX flat rates'!$B$2:$G$43,5)))*1,AF$3:AF56)+AF760)*VLOOKUP(AF$881,'F. UL & OPEX flat rates'!$B$2:$G$43,6,0)","v":0},{"$f":"(SUMPRODUCT(($A$3:$A56>($A936-VLOOKUP(AG$881,'F. UL & OPEX flat rates'!$B$2:$G$43,5)))*1,AG$3:AG56)+AG760)*VLOOKUP(AG$881,'F. UL & OPEX flat rates'!$B$2:$G$43,6,0)","v":0},{"$f":"(SUMPRODUCT(($A$3:$A56>($A936-VLOOKUP(AH$881,'F. UL & OPEX flat rates'!$B$2:$G$43,5)))*1,AH$3:AH56)+AH760)*VLOOKUP(AH$881,'F. UL & OPEX flat rates'!$B$2:$G$43,6,0)","v":0},{"$f":"(SUMPRODUCT(($A$3:$A56>($A936-VLOOKUP(AI$881,'F. UL & OPEX flat rates'!$B$2:$G$43,5)))*1,AI$3:AI56)+AI760)*VLOOKUP(AI$881,'F. UL & OPEX flat rates'!$B$2:$G$43,6,0)","v":0},{"$f":"(SUMPRODUCT(($A$3:$A56>($A936-VLOOKUP(AJ$881,'F. UL & OPEX flat rates'!$B$2:$G$43,5)))*1,AJ$3:AJ56)+AJ760)*VLOOKUP(AJ$881,'F. UL & OPEX flat rates'!$B$2:$G$43,6,0)","v":58000},{"$f":"(SUMPRODUCT(($A$3:$A56>($A936-VLOOKUP(AK$881,'F. UL & OPEX flat rates'!$B$2:$G$43,5)))*1,AK$3:AK56)+AK760)*VLOOKUP(AK$881,'F. UL & OPEX flat rates'!$B$2:$G$43,6,0)","v":0},{"$f":"(SUMPRODUCT(($A$3:$A56>($A936-VLOOKUP(AL$881,'F. UL & OPEX flat rates'!$B$2:$G$43,5)))*1,AL$3:AL56)+AL760)*VLOOKUP(AL$881,'F. UL & OPEX flat rates'!$B$2:$G$43,6,0)","v":0},{"$f":"(SUMPRODUCT(($A$3:$A56>($A936-VLOOKUP(AM$881,'F. UL & OPEX flat rates'!$B$2:$G$43,5)))*1,AM$3:AM56)+AM760)*VLOOKUP(AM$881,'F. UL & OPEX flat rates'!$B$2:$G$43,6,0)","v":0},{"$f":"(SUMPRODUCT(($A$3:$A56>($A936-VLOOKUP(AN$881,'F. UL & OPEX flat rates'!$B$2:$G$43,5)))*1,AN$3:AN56)+AN760)*VLOOKUP(AN$881,'F. UL & OPEX flat rates'!$B$2:$G$43,6,0)","v":0},{"$f":"(SUMPRODUCT(($A$3:$A56>($A936-VLOOKUP(AO$881,'F. UL & OPEX flat rates'!$B$2:$G$43,5)))*1,AO$3:AO56)+AO760)*VLOOKUP(AO$881,'F. UL & OPEX flat rates'!$B$2:$G$43,6,0)","v":0},{"$f":"(SUMPRODUCT(($A$3:$A56>($A936-VLOOKUP(AP$881,'F. UL & OPEX flat rates'!$B$2:$G$43,5)))*1,AP$3:AP56)+AP760)*VLOOKUP(AP$881,'F. UL & OPEX flat rates'!$B$2:$G$43,6,0)","v":0},{"$f":"(SUMPRODUCT(($A$3:$A56>($A936-VLOOKUP(AQ$881,'F. UL & OPEX flat rates'!$B$2:$G$43,5)))*1,AQ$3:AQ56)+AQ760)*VLOOKUP(AQ$881,'F. UL & OPEX flat rates'!$B$2:$G$43,6,0)","v":0}]
[2070,0,{"$f":"(SUMPRODUCT(($A$3:$A57>($A937-VLOOKUP(C$881,'F. UL & OPEX flat rates'!$B$2:$G$43,5)))*1,C$3:C57)+C761)*VLOOKUP(C$881,'F. UL & OPEX flat rates'!$B$2:$G$43,6,0)","v":0},{"$f":"(SUMPRODUCT(($A$3:$A57>($A937-VLOOKUP(D$881,'F. UL & OPEX flat rates'!$B$2:$G$43,5)))*1,D$3:D57)+D761)*VLOOKUP(D$881,'F. UL & OPEX flat rates'!$B$2:$G$43,6,0)","v":0},{"$f":"(SUMPRODUCT(($A$3:$A57>($A937-VLOOKUP(E$881,'F. UL & OPEX flat rates'!$B$2:$G$43,5)))*1,E$3:E57)+E761)*VLOOKUP(E$881,'F. UL & OPEX flat rates'!$B$2:$G$43,6,0)","v":0},{"$f":"(SUMPRODUCT(($A$3:$A57>($A937-VLOOKUP(F$881,'F. UL & OPEX flat rates'!$B$2:$G$43,5)))*1,F$3:F57)+F761)*VLOOKUP(F$881,'F. UL & OPEX flat rates'!$B$2:$G$43,6,0)","v":0},{"$f":"(SUMPRODUCT(($A$3:$A57>($A937-VLOOKUP(G$881,'F. UL & OPEX flat rates'!$B$2:$G$43,5)))*1,G$3:G57)+G761)*VLOOKUP(G$881,'F. UL & OPEX flat rates'!$B$2:$G$43,6,0)","v":0},{"$f":"(SUMPRODUCT(($A$3:$A57>($A937-VLOOKUP(H$881,'F. UL & OPEX flat rates'!$B$2:$G$43,5)))*1,H$3:H57)+H761)*VLOOKUP(H$881,'F. UL & OPEX flat rates'!$B$2:$G$43,6,0)","v":0},{"$f":"(SUMPRODUCT(($A$3:$A57>($A937-VLOOKUP(I$881,'F. UL & OPEX flat rates'!$B$2:$G$43,5)))*1,I$3:I57)+I761)*VLOOKUP(I$881,'F. UL & OPEX flat rates'!$B$2:$G$43,6,0)","v":0},{"$f":"(SUMPRODUCT(($A$3:$A57>($A937-VLOOKUP(J$881,'F. UL & OPEX flat rates'!$B$2:$G$43,5)))*1,J$3:J57)+J761)*VLOOKUP(J$881,'F. UL & OPEX flat rates'!$B$2:$G$43,6,0)","v":0},{"$f":"(SUMPRODUCT(($A$3:$A57>($A937-VLOOKUP(K$881,'F. UL & OPEX flat rates'!$B$2:$G$43,5)))*1,K$3:K57)+K761)*VLOOKUP(K$881,'F. UL & OPEX flat rates'!$B$2:$G$43,6,0)","v":0},{"$f":"(SUMPRODUCT(($A$3:$A57>($A937-VLOOKUP(L$881,'F. UL & OPEX flat rates'!$B$2:$G$43,5)))*1,L$3:L57)+L761)*VLOOKUP(L$881,'F. UL & OPEX flat rates'!$B$2:$G$43,6,0)","v":0},{"$f":"(SUMPRODUCT(($A$3:$A57>($A937-VLOOKUP(M$881,'F. UL & OPEX flat rates'!$B$2:$G$43,5)))*1,M$3:M57)+M761)*VLOOKUP(M$881,'F. UL & OPEX flat rates'!$B$2:$G$43,6,0)","v":0},{"$f":"(SUMPRODUCT(($A$3:$A57>($A937-VLOOKUP(N$881,'F. UL & OPEX flat rates'!$B$2:$G$43,5)))*1,N$3:N57)+N761)*VLOOKUP(N$881,'F. UL & OPEX flat rates'!$B$2:$G$43,6,0)","v":0},{"$f":"(SUMPRODUCT(($A$3:$A57>($A937-VLOOKUP(O$881,'F. UL & OPEX flat rates'!$B$2:$G$43,5)))*1,O$3:O57)+O761)*VLOOKUP(O$881,'F. UL & OPEX flat rates'!$B$2:$G$43,6,0)","v":0},{"$f":"(SUMPRODUCT(($A$3:$A57>($A937-VLOOKUP(P$881,'F. UL & OPEX flat rates'!$B$2:$G$43,5)))*1,P$3:P57)+P761)*VLOOKUP(P$881,'F. UL & OPEX flat rates'!$B$2:$G$43,6,0)","v":0},{"$f":"(SUMPRODUCT(($A$3:$A57>($A937-VLOOKUP(Q$881,'F. UL & OPEX flat rates'!$B$2:$G$43,5)))*1,Q$3:Q57)+Q761)*VLOOKUP(Q$881,'F. UL & OPEX flat rates'!$B$2:$G$43,6,0)","v":0},{"$f":"(SUMPRODUCT(($A$3:$A57>($A937-VLOOKUP(R$881,'F. UL & OPEX flat rates'!$B$2:$G$43,5)))*1,R$3:R57)+R761)*VLOOKUP(R$881,'F. UL & OPEX flat rates'!$B$2:$G$43,6,0)","v":0},{"$f":"(SUMPRODUCT(($A$3:$A57>($A937-VLOOKUP(S$881,'F. UL & OPEX flat rates'!$B$2:$G$43,5)))*1,S$3:S57)+S761)*VLOOKUP(S$881,'F. UL & OPEX flat rates'!$B$2:$G$43,6,0)","v":0},{"$f":"(SUMPRODUCT(($A$3:$A57>($A937-VLOOKUP(T$881,'F. UL & OPEX flat rates'!$B$2:$G$43,5)))*1,T$3:T57)+T761)*VLOOKUP(T$881,'F. UL & OPEX flat rates'!$B$2:$G$43,6,0)","v":0},{"$f":"(SUMPRODUCT(($A$3:$A57>($A937-VLOOKUP(U$881,'F. UL & OPEX flat rates'!$B$2:$G$43,5)))*1,U$3:U57)+U761)*VLOOKUP(U$881,'F. UL & OPEX flat rates'!$B$2:$G$43,6,0)","v":0},{"$f":"(SUMPRODUCT(($A$3:$A57>($A937-VLOOKUP(V$881,'F. UL & OPEX flat rates'!$B$2:$G$43,5)))*1,V$3:V57)+V761)*VLOOKUP(V$881,'F. UL & OPEX flat rates'!$B$2:$G$43,6,0)","v":0},{"$f":"(SUMPRODUCT(($A$3:$A57>($A937-VLOOKUP(W$881,'F. UL & OPEX flat rates'!$B$2:$G$43,5)))*1,W$3:W57)+W761)*VLOOKUP(W$881,'F. UL & OPEX flat rates'!$B$2:$G$43,6,0)","v":0},{"$f":"(SUMPRODUCT(($A$3:$A57>($A937-VLOOKUP(X$881,'F. UL & OPEX flat rates'!$B$2:$G$43,5)))*1,X$3:X57)+X761)*VLOOKUP(X$881,'F. UL & OPEX flat rates'!$B$2:$G$43,6,0)","v":0},{"$f":"(SUMPRODUCT(($A$3:$A57>($A937-VLOOKUP(Y$881,'F. UL & OPEX flat rates'!$B$2:$G$43,5)))*1,Y$3:Y57)+Y761)*VLOOKUP(Y$881,'F. UL & OPEX flat rates'!$B$2:$G$43,6,0)","v":0},{"$f":"(SUMPRODUCT(($A$3:$A57>($A937-VLOOKUP(Z$881,'F. UL & OPEX flat rates'!$B$2:$G$43,5)))*1,Z$3:Z57)+Z761)*VLOOKUP(Z$881,'F. UL & OPEX flat rates'!$B$2:$G$43,6,0)","v":0},{"$f":"(SUMPRODUCT(($A$3:$A57>($A937-VLOOKUP(AA$881,'F. UL & OPEX flat rates'!$B$2:$G$43,5)))*1,AA$3:AA57)+AA761)*VLOOKUP(AA$881,'F. UL & OPEX flat rates'!$B$2:$G$43,6,0)","v":0},{"$f":"(SUMPRODUCT(($A$3:$A57>($A937-VLOOKUP(AB$881,'F. UL & OPEX flat rates'!$B$2:$G$43,5)))*1,AB$3:AB57)+AB761)*VLOOKUP(AB$881,'F. UL & OPEX flat rates'!$B$2:$G$43,6,0)","v":0},{"$f":"(SUMPRODUCT(($A$3:$A57>($A937-VLOOKUP(AC$881,'F. UL & OPEX flat rates'!$B$2:$G$43,5)))*1,AC$3:AC57)+AC761)*VLOOKUP(AC$881,'F. UL & OPEX flat rates'!$B$2:$G$43,6,0)","v":0},{"$f":"(SUMPRODUCT(($A$3:$A57>($A937-VLOOKUP(AD$881,'F. UL & OPEX flat rates'!$B$2:$G$43,5)))*1,AD$3:AD57)+AD761)*VLOOKUP(AD$881,'F. UL & OPEX flat rates'!$B$2:$G$43,6,0)","v":0},{"$f":"(SUMPRODUCT(($A$3:$A57>($A937-VLOOKUP(AE$881,'F. UL & OPEX flat rates'!$B$2:$G$43,5)))*1,AE$3:AE57)+AE761)*VLOOKUP(AE$881,'F. UL & OPEX flat rates'!$B$2:$G$43,6,0)","v":0},{"$f":"(SUMPRODUCT(($A$3:$A57>($A937-VLOOKUP(AF$881,'F. UL & OPEX flat rates'!$B$2:$G$43,5)))*1,AF$3:AF57)+AF761)*VLOOKUP(AF$881,'F. UL & OPEX flat rates'!$B$2:$G$43,6,0)","v":0},{"$f":"(SUMPRODUCT(($A$3:$A57>($A937-VLOOKUP(AG$881,'F. UL & OPEX flat rates'!$B$2:$G$43,5)))*1,AG$3:AG57)+AG761)*VLOOKUP(AG$881,'F. UL & OPEX flat rates'!$B$2:$G$43,6,0)","v":0},{"$f":"(SUMPRODUCT(($A$3:$A57>($A937-VLOOKUP(AH$881,'F. UL & OPEX flat rates'!$B$2:$G$43,5)))*1,AH$3:AH57)+AH761)*VLOOKUP(AH$881,'F. UL & OPEX flat rates'!$B$2:$G$43,6,0)","v":0},{"$f":"(SUMPRODUCT(($A$3:$A57>($A937-VLOOKUP(AI$881,'F. UL & OPEX flat rates'!$B$2:$G$43,5)))*1,AI$3:AI57)+AI761)*VLOOKUP(AI$881,'F. UL & OPEX flat rates'!$B$2:$G$43,6,0)","v":0},{"$f":"(SUMPRODUCT(($A$3:$A57>($A937-VLOOKUP(AJ$881,'F. UL & OPEX flat rates'!$B$2:$G$43,5)))*1,AJ$3:AJ57)+AJ761)*VLOOKUP(AJ$881,'F. UL & OPEX flat rates'!$B$2:$G$43,6,0)","v":0},{"$f":"(SUMPRODUCT(($A$3:$A57>($A937-VLOOKUP(AK$881,'F. UL & OPEX flat rates'!$B$2:$G$43,5)))*1,AK$3:AK57)+AK761)*VLOOKUP(AK$881,'F. UL & OPEX flat rates'!$B$2:$G$43,6,0)","v":0},{"$f":"(SUMPRODUCT(($A$3:$A57>($A937-VLOOKUP(AL$881,'F. UL & OPEX flat rates'!$B$2:$G$43,5)))*1,AL$3:AL57)+AL761)*VLOOKUP(AL$881,'F. UL & OPEX flat rates'!$B$2:$G$43,6,0)","v":0},{"$f":"(SUMPRODUCT(($A$3:$A57>($A937-VLOOKUP(AM$881,'F. UL & OPEX flat rates'!$B$2:$G$43,5)))*1,AM$3:AM57)+AM761)*VLOOKUP(AM$881,'F. UL & OPEX flat rates'!$B$2:$G$43,6,0)","v":0},{"$f":"(SUMPRODUCT(($A$3:$A57>($A937-VLOOKUP(AN$881,'F. UL & OPEX flat rates'!$B$2:$G$43,5)))*1,AN$3:AN57)+AN761)*VLOOKUP(AN$881,'F. UL & OPEX flat rates'!$B$2:$G$43,6,0)","v":0},{"$f":"(SUMPRODUCT(($A$3:$A57>($A937-VLOOKUP(AO$881,'F. UL & OPEX flat rates'!$B$2:$G$43,5)))*1,AO$3:AO57)+AO761)*VLOOKUP(AO$881,'F. UL & OPEX flat rates'!$B$2:$G$43,6,0)","v":0},{"$f":"(SUMPRODUCT(($A$3:$A57>($A937-VLOOKUP(AP$881,'F. UL & OPEX flat rates'!$B$2:$G$43,5)))*1,AP$3:AP57)+AP761)*VLOOKUP(AP$881,'F. UL & OPEX flat rates'!$B$2:$G$43,6,0)","v":0},{"$f":"(SUMPRODUCT(($A$3:$A57>($A937-VLOOKUP(AQ$881,'F. UL & OPEX flat rates'!$B$2:$G$43,5)))*1,AQ$3:AQ57)+AQ761)*VLOOKUP(AQ$881,'F. UL & OPEX flat rates'!$B$2:$G$43,6,0)","v":0}]
[2071,0,{"$f":"(SUMPRODUCT(($A$3:$A58>($A938-VLOOKUP(C$881,'F. UL & OPEX flat rates'!$B$2:$G$43,5)))*1,C$3:C58)+C762)*VLOOKUP(C$881,'F. UL & OPEX flat rates'!$B$2:$G$43,6,0)","v":0},{"$f":"(SUMPRODUCT(($A$3:$A58>($A938-VLOOKUP(D$881,'F. UL & OPEX flat rates'!$B$2:$G$43,5)))*1,D$3:D58)+D762)*VLOOKUP(D$881,'F. UL & OPEX flat rates'!$B$2:$G$43,6,0)","v":0},{"$f":"(SUMPRODUCT(($A$3:$A58>($A938-VLOOKUP(E$881,'F. UL & OPEX flat rates'!$B$2:$G$43,5)))*1,E$3:E58)+E762)*VLOOKUP(E$881,'F. UL & OPEX flat rates'!$B$2:$G$43,6,0)","v":0},{"$f":"(SUMPRODUCT(($A$3:$A58>($A938-VLOOKUP(F$881,'F. UL & OPEX flat rates'!$B$2:$G$43,5)))*1,F$3:F58)+F762)*VLOOKUP(F$881,'F. UL & OPEX flat rates'!$B$2:$G$43,6,0)","v":0},{"$f":"(SUMPRODUCT(($A$3:$A58>($A938-VLOOKUP(G$881,'F. UL & OPEX flat rates'!$B$2:$G$43,5)))*1,G$3:G58)+G762)*VLOOKUP(G$881,'F. UL & OPEX flat rates'!$B$2:$G$43,6,0)","v":0},{"$f":"(SUMPRODUCT(($A$3:$A58>($A938-VLOOKUP(H$881,'F. UL & OPEX flat rates'!$B$2:$G$43,5)))*1,H$3:H58)+H762)*VLOOKUP(H$881,'F. UL & OPEX flat rates'!$B$2:$G$43,6,0)","v":0},{"$f":"(SUMPRODUCT(($A$3:$A58>($A938-VLOOKUP(I$881,'F. UL & OPEX flat rates'!$B$2:$G$43,5)))*1,I$3:I58)+I762)*VLOOKUP(I$881,'F. UL & OPEX flat rates'!$B$2:$G$43,6,0)","v":0},{"$f":"(SUMPRODUCT(($A$3:$A58>($A938-VLOOKUP(J$881,'F. UL & OPEX flat rates'!$B$2:$G$43,5)))*1,J$3:J58)+J762)*VLOOKUP(J$881,'F. UL & OPEX flat rates'!$B$2:$G$43,6,0)","v":0},{"$f":"(SUMPRODUCT(($A$3:$A58>($A938-VLOOKUP(K$881,'F. UL & OPEX flat rates'!$B$2:$G$43,5)))*1,K$3:K58)+K762)*VLOOKUP(K$881,'F. UL & OPEX flat rates'!$B$2:$G$43,6,0)","v":0},{"$f":"(SUMPRODUCT(($A$3:$A58>($A938-VLOOKUP(L$881,'F. UL & OPEX flat rates'!$B$2:$G$43,5)))*1,L$3:L58)+L762)*VLOOKUP(L$881,'F. UL & OPEX flat rates'!$B$2:$G$43,6,0)","v":0},{"$f":"(SUMPRODUCT(($A$3:$A58>($A938-VLOOKUP(M$881,'F. UL & OPEX flat rates'!$B$2:$G$43,5)))*1,M$3:M58)+M762)*VLOOKUP(M$881,'F. UL & OPEX flat rates'!$B$2:$G$43,6,0)","v":0},{"$f":"(SUMPRODUCT(($A$3:$A58>($A938-VLOOKUP(N$881,'F. UL & OPEX flat rates'!$B$2:$G$43,5)))*1,N$3:N58)+N762)*VLOOKUP(N$881,'F. UL & OPEX flat rates'!$B$2:$G$43,6,0)","v":0},{"$f":"(SUMPRODUCT(($A$3:$A58>($A938-VLOOKUP(O$881,'F. UL & OPEX flat rates'!$B$2:$G$43,5)))*1,O$3:O58)+O762)*VLOOKUP(O$881,'F. UL & OPEX flat rates'!$B$2:$G$43,6,0)","v":0},{"$f":"(SUMPRODUCT(($A$3:$A58>($A938-VLOOKUP(P$881,'F. UL & OPEX flat rates'!$B$2:$G$43,5)))*1,P$3:P58)+P762)*VLOOKUP(P$881,'F. UL & OPEX flat rates'!$B$2:$G$43,6,0)","v":0},{"$f":"(SUMPRODUCT(($A$3:$A58>($A938-VLOOKUP(Q$881,'F. UL & OPEX flat rates'!$B$2:$G$43,5)))*1,Q$3:Q58)+Q762)*VLOOKUP(Q$881,'F. UL & OPEX flat rates'!$B$2:$G$43,6,0)","v":0},{"$f":"(SUMPRODUCT(($A$3:$A58>($A938-VLOOKUP(R$881,'F. UL & OPEX flat rates'!$B$2:$G$43,5)))*1,R$3:R58)+R762)*VLOOKUP(R$881,'F. UL & OPEX flat rates'!$B$2:$G$43,6,0)","v":0},{"$f":"(SUMPRODUCT(($A$3:$A58>($A938-VLOOKUP(S$881,'F. UL & OPEX flat rates'!$B$2:$G$43,5)))*1,S$3:S58)+S762)*VLOOKUP(S$881,'F. UL & OPEX flat rates'!$B$2:$G$43,6,0)","v":0},{"$f":"(SUMPRODUCT(($A$3:$A58>($A938-VLOOKUP(T$881,'F. UL & OPEX flat rates'!$B$2:$G$43,5)))*1,T$3:T58)+T762)*VLOOKUP(T$881,'F. UL & OPEX flat rates'!$B$2:$G$43,6,0)","v":0},{"$f":"(SUMPRODUCT(($A$3:$A58>($A938-VLOOKUP(U$881,'F. UL & OPEX flat rates'!$B$2:$G$43,5)))*1,U$3:U58)+U762)*VLOOKUP(U$881,'F. UL & OPEX flat rates'!$B$2:$G$43,6,0)","v":0},{"$f":"(SUMPRODUCT(($A$3:$A58>($A938-VLOOKUP(V$881,'F. UL & OPEX flat rates'!$B$2:$G$43,5)))*1,V$3:V58)+V762)*VLOOKUP(V$881,'F. UL & OPEX flat rates'!$B$2:$G$43,6,0)","v":0},{"$f":"(SUMPRODUCT(($A$3:$A58>($A938-VLOOKUP(W$881,'F. UL & OPEX flat rates'!$B$2:$G$43,5)))*1,W$3:W58)+W762)*VLOOKUP(W$881,'F. UL & OPEX flat rates'!$B$2:$G$43,6,0)","v":0},{"$f":"(SUMPRODUCT(($A$3:$A58>($A938-VLOOKUP(X$881,'F. UL & OPEX flat rates'!$B$2:$G$43,5)))*1,X$3:X58)+X762)*VLOOKUP(X$881,'F. UL & OPEX flat rates'!$B$2:$G$43,6,0)","v":0},{"$f":"(SUMPRODUCT(($A$3:$A58>($A938-VLOOKUP(Y$881,'F. UL & OPEX flat rates'!$B$2:$G$43,5)))*1,Y$3:Y58)+Y762)*VLOOKUP(Y$881,'F. UL & OPEX flat rates'!$B$2:$G$43,6,0)","v":0},{"$f":"(SUMPRODUCT(($A$3:$A58>($A938-VLOOKUP(Z$881,'F. UL & OPEX flat rates'!$B$2:$G$43,5)))*1,Z$3:Z58)+Z762)*VLOOKUP(Z$881,'F. UL & OPEX flat rates'!$B$2:$G$43,6,0)","v":0},{"$f":"(SUMPRODUCT(($A$3:$A58>($A938-VLOOKUP(AA$881,'F. UL & OPEX flat rates'!$B$2:$G$43,5)))*1,AA$3:AA58)+AA762)*VLOOKUP(AA$881,'F. UL & OPEX flat rates'!$B$2:$G$43,6,0)","v":0},{"$f":"(SUMPRODUCT(($A$3:$A58>($A938-VLOOKUP(AB$881,'F. UL & OPEX flat rates'!$B$2:$G$43,5)))*1,AB$3:AB58)+AB762)*VLOOKUP(AB$881,'F. UL & OPEX flat rates'!$B$2:$G$43,6,0)","v":0},{"$f":"(SUMPRODUCT(($A$3:$A58>($A938-VLOOKUP(AC$881,'F. UL & OPEX flat rates'!$B$2:$G$43,5)))*1,AC$3:AC58)+AC762)*VLOOKUP(AC$881,'F. UL & OPEX flat rates'!$B$2:$G$43,6,0)","v":0},{"$f":"(SUMPRODUCT(($A$3:$A58>($A938-VLOOKUP(AD$881,'F. UL & OPEX flat rates'!$B$2:$G$43,5)))*1,AD$3:AD58)+AD762)*VLOOKUP(AD$881,'F. UL & OPEX flat rates'!$B$2:$G$43,6,0)","v":0},{"$f":"(SUMPRODUCT(($A$3:$A58>($A938-VLOOKUP(AE$881,'F. UL & OPEX flat rates'!$B$2:$G$43,5)))*1,AE$3:AE58)+AE762)*VLOOKUP(AE$881,'F. UL & OPEX flat rates'!$B$2:$G$43,6,0)","v":0},{"$f":"(SUMPRODUCT(($A$3:$A58>($A938-VLOOKUP(AF$881,'F. UL & OPEX flat rates'!$B$2:$G$43,5)))*1,AF$3:AF58)+AF762)*VLOOKUP(AF$881,'F. UL & OPEX flat rates'!$B$2:$G$43,6,0)","v":0},{"$f":"(SUMPRODUCT(($A$3:$A58>($A938-VLOOKUP(AG$881,'F. UL & OPEX flat rates'!$B$2:$G$43,5)))*1,AG$3:AG58)+AG762)*VLOOKUP(AG$881,'F. UL & OPEX flat rates'!$B$2:$G$43,6,0)","v":0},{"$f":"(SUMPRODUCT(($A$3:$A58>($A938-VLOOKUP(AH$881,'F. UL & OPEX flat rates'!$B$2:$G$43,5)))*1,AH$3:AH58)+AH762)*VLOOKUP(AH$881,'F. UL & OPEX flat rates'!$B$2:$G$43,6,0)","v":0},{"$f":"(SUMPRODUCT(($A$3:$A58>($A938-VLOOKUP(AI$881,'F. UL & OPEX flat rates'!$B$2:$G$43,5)))*1,AI$3:AI58)+AI762)*VLOOKUP(AI$881,'F. UL & OPEX flat rates'!$B$2:$G$43,6,0)","v":0},{"$f":"(SUMPRODUCT(($A$3:$A58>($A938-VLOOKUP(AJ$881,'F. UL & OPEX flat rates'!$B$2:$G$43,5)))*1,AJ$3:AJ58)+AJ762)*VLOOKUP(AJ$881,'F. UL & OPEX flat rates'!$B$2:$G$43,6,0)","v":0},{"$f":"(SUMPRODUCT(($A$3:$A58>($A938-VLOOKUP(AK$881,'F. UL & OPEX flat rates'!$B$2:$G$43,5)))*1,AK$3:AK58)+AK762)*VLOOKUP(AK$881,'F. UL & OPEX flat rates'!$B$2:$G$43,6,0)","v":0},{"$f":"(SUMPRODUCT(($A$3:$A58>($A938-VLOOKUP(AL$881,'F. UL & OPEX flat rates'!$B$2:$G$43,5)))*1,AL$3:AL58)+AL762)*VLOOKUP(AL$881,'F. UL & OPEX flat rates'!$B$2:$G$43,6,0)","v":0},{"$f":"(SUMPRODUCT(($A$3:$A58>($A938-VLOOKUP(AM$881,'F. UL & OPEX flat rates'!$B$2:$G$43,5)))*1,AM$3:AM58)+AM762)*VLOOKUP(AM$881,'F. UL & OPEX flat rates'!$B$2:$G$43,6,0)","v":0},{"$f":"(SUMPRODUCT(($A$3:$A58>($A938-VLOOKUP(AN$881,'F. UL & OPEX flat rates'!$B$2:$G$43,5)))*1,AN$3:AN58)+AN762)*VLOOKUP(AN$881,'F. UL & OPEX flat rates'!$B$2:$G$43,6,0)","v":0},{"$f":"(SUMPRODUCT(($A$3:$A58>($A938-VLOOKUP(AO$881,'F. UL & OPEX flat rates'!$B$2:$G$43,5)))*1,AO$3:AO58)+AO762)*VLOOKUP(AO$881,'F. UL & OPEX flat rates'!$B$2:$G$43,6,0)","v":0},{"$f":"(SUMPRODUCT(($A$3:$A58>($A938-VLOOKUP(AP$881,'F. UL & OPEX flat rates'!$B$2:$G$43,5)))*1,AP$3:AP58)+AP762)*VLOOKUP(AP$881,'F. UL & OPEX flat rates'!$B$2:$G$43,6,0)","v":0},{"$f":"(SUMPRODUCT(($A$3:$A58>($A938-VLOOKUP(AQ$881,'F. UL & OPEX flat rates'!$B$2:$G$43,5)))*1,AQ$3:AQ58)+AQ762)*VLOOKUP(AQ$881,'F. UL & OPEX flat rates'!$B$2:$G$43,6,0)","v":0}]
[2072,0,{"$f":"(SUMPRODUCT(($A$3:$A59>($A939-VLOOKUP(C$881,'F. UL & OPEX flat rates'!$B$2:$G$43,5)))*1,C$3:C59)+C763)*VLOOKUP(C$881,'F. UL & OPEX flat rates'!$B$2:$G$43,6,0)","v":0},{"$f":"(SUMPRODUCT(($A$3:$A59>($A939-VLOOKUP(D$881,'F. UL & OPEX flat rates'!$B$2:$G$43,5)))*1,D$3:D59)+D763)*VLOOKUP(D$881,'F. UL & OPEX flat rates'!$B$2:$G$43,6,0)","v":0},{"$f":"(SUMPRODUCT(($A$3:$A59>($A939-VLOOKUP(E$881,'F. UL & OPEX flat rates'!$B$2:$G$43,5)))*1,E$3:E59)+E763)*VLOOKUP(E$881,'F. UL & OPEX flat rates'!$B$2:$G$43,6,0)","v":0},{"$f":"(SUMPRODUCT(($A$3:$A59>($A939-VLOOKUP(F$881,'F. UL & OPEX flat rates'!$B$2:$G$43,5)))*1,F$3:F59)+F763)*VLOOKUP(F$881,'F. UL & OPEX flat rates'!$B$2:$G$43,6,0)","v":0},{"$f":"(SUMPRODUCT(($A$3:$A59>($A939-VLOOKUP(G$881,'F. UL & OPEX flat rates'!$B$2:$G$43,5)))*1,G$3:G59)+G763)*VLOOKUP(G$881,'F. UL & OPEX flat rates'!$B$2:$G$43,6,0)","v":0},{"$f":"(SUMPRODUCT(($A$3:$A59>($A939-VLOOKUP(H$881,'F. UL & OPEX flat rates'!$B$2:$G$43,5)))*1,H$3:H59)+H763)*VLOOKUP(H$881,'F. UL & OPEX flat rates'!$B$2:$G$43,6,0)","v":0},{"$f":"(SUMPRODUCT(($A$3:$A59>($A939-VLOOKUP(I$881,'F. UL & OPEX flat rates'!$B$2:$G$43,5)))*1,I$3:I59)+I763)*VLOOKUP(I$881,'F. UL & OPEX flat rates'!$B$2:$G$43,6,0)","v":0},{"$f":"(SUMPRODUCT(($A$3:$A59>($A939-VLOOKUP(J$881,'F. UL & OPEX flat rates'!$B$2:$G$43,5)))*1,J$3:J59)+J763)*VLOOKUP(J$881,'F. UL & OPEX flat rates'!$B$2:$G$43,6,0)","v":0},{"$f":"(SUMPRODUCT(($A$3:$A59>($A939-VLOOKUP(K$881,'F. UL & OPEX flat rates'!$B$2:$G$43,5)))*1,K$3:K59)+K763)*VLOOKUP(K$881,'F. UL & OPEX flat rates'!$B$2:$G$43,6,0)","v":0},{"$f":"(SUMPRODUCT(($A$3:$A59>($A939-VLOOKUP(L$881,'F. UL & OPEX flat rates'!$B$2:$G$43,5)))*1,L$3:L59)+L763)*VLOOKUP(L$881,'F. UL & OPEX flat rates'!$B$2:$G$43,6,0)","v":0},{"$f":"(SUMPRODUCT(($A$3:$A59>($A939-VLOOKUP(M$881,'F. UL & OPEX flat rates'!$B$2:$G$43,5)))*1,M$3:M59)+M763)*VLOOKUP(M$881,'F. UL & OPEX flat rates'!$B$2:$G$43,6,0)","v":0},{"$f":"(SUMPRODUCT(($A$3:$A59>($A939-VLOOKUP(N$881,'F. UL & OPEX flat rates'!$B$2:$G$43,5)))*1,N$3:N59)+N763)*VLOOKUP(N$881,'F. UL & OPEX flat rates'!$B$2:$G$43,6,0)","v":0},{"$f":"(SUMPRODUCT(($A$3:$A59>($A939-VLOOKUP(O$881,'F. UL & OPEX flat rates'!$B$2:$G$43,5)))*1,O$3:O59)+O763)*VLOOKUP(O$881,'F. UL & OPEX flat rates'!$B$2:$G$43,6,0)","v":0},{"$f":"(SUMPRODUCT(($A$3:$A59>($A939-VLOOKUP(P$881,'F. UL & OPEX flat rates'!$B$2:$G$43,5)))*1,P$3:P59)+P763)*VLOOKUP(P$881,'F. UL & OPEX flat rates'!$B$2:$G$43,6,0)","v":0},{"$f":"(SUMPRODUCT(($A$3:$A59>($A939-VLOOKUP(Q$881,'F. UL & OPEX flat rates'!$B$2:$G$43,5)))*1,Q$3:Q59)+Q763)*VLOOKUP(Q$881,'F. UL & OPEX flat rates'!$B$2:$G$43,6,0)","v":0},{"$f":"(SUMPRODUCT(($A$3:$A59>($A939-VLOOKUP(R$881,'F. UL & OPEX flat rates'!$B$2:$G$43,5)))*1,R$3:R59)+R763)*VLOOKUP(R$881,'F. UL & OPEX flat rates'!$B$2:$G$43,6,0)","v":0},{"$f":"(SUMPRODUCT(($A$3:$A59>($A939-VLOOKUP(S$881,'F. UL & OPEX flat rates'!$B$2:$G$43,5)))*1,S$3:S59)+S763)*VLOOKUP(S$881,'F. UL & OPEX flat rates'!$B$2:$G$43,6,0)","v":0},{"$f":"(SUMPRODUCT(($A$3:$A59>($A939-VLOOKUP(T$881,'F. UL & OPEX flat rates'!$B$2:$G$43,5)))*1,T$3:T59)+T763)*VLOOKUP(T$881,'F. UL & OPEX flat rates'!$B$2:$G$43,6,0)","v":0},{"$f":"(SUMPRODUCT(($A$3:$A59>($A939-VLOOKUP(U$881,'F. UL & OPEX flat rates'!$B$2:$G$43,5)))*1,U$3:U59)+U763)*VLOOKUP(U$881,'F. UL & OPEX flat rates'!$B$2:$G$43,6,0)","v":0},{"$f":"(SUMPRODUCT(($A$3:$A59>($A939-VLOOKUP(V$881,'F. UL & OPEX flat rates'!$B$2:$G$43,5)))*1,V$3:V59)+V763)*VLOOKUP(V$881,'F. UL & OPEX flat rates'!$B$2:$G$43,6,0)","v":0},{"$f":"(SUMPRODUCT(($A$3:$A59>($A939-VLOOKUP(W$881,'F. UL & OPEX flat rates'!$B$2:$G$43,5)))*1,W$3:W59)+W763)*VLOOKUP(W$881,'F. UL & OPEX flat rates'!$B$2:$G$43,6,0)","v":0},{"$f":"(SUMPRODUCT(($A$3:$A59>($A939-VLOOKUP(X$881,'F. UL & OPEX flat rates'!$B$2:$G$43,5)))*1,X$3:X59)+X763)*VLOOKUP(X$881,'F. UL & OPEX flat rates'!$B$2:$G$43,6,0)","v":0},{"$f":"(SUMPRODUCT(($A$3:$A59>($A939-VLOOKUP(Y$881,'F. UL & OPEX flat rates'!$B$2:$G$43,5)))*1,Y$3:Y59)+Y763)*VLOOKUP(Y$881,'F. UL & OPEX flat rates'!$B$2:$G$43,6,0)","v":0},{"$f":"(SUMPRODUCT(($A$3:$A59>($A939-VLOOKUP(Z$881,'F. UL & OPEX flat rates'!$B$2:$G$43,5)))*1,Z$3:Z59)+Z763)*VLOOKUP(Z$881,'F. UL & OPEX flat rates'!$B$2:$G$43,6,0)","v":0},{"$f":"(SUMPRODUCT(($A$3:$A59>($A939-VLOOKUP(AA$881,'F. UL & OPEX flat rates'!$B$2:$G$43,5)))*1,AA$3:AA59)+AA763)*VLOOKUP(AA$881,'F. UL & OPEX flat rates'!$B$2:$G$43,6,0)","v":0},{"$f":"(SUMPRODUCT(($A$3:$A59>($A939-VLOOKUP(AB$881,'F. UL & OPEX flat rates'!$B$2:$G$43,5)))*1,AB$3:AB59)+AB763)*VLOOKUP(AB$881,'F. UL & OPEX flat rates'!$B$2:$G$43,6,0)","v":0},{"$f":"(SUMPRODUCT(($A$3:$A59>($A939-VLOOKUP(AC$881,'F. UL & OPEX flat rates'!$B$2:$G$43,5)))*1,AC$3:AC59)+AC763)*VLOOKUP(AC$881,'F. UL & OPEX flat rates'!$B$2:$G$43,6,0)","v":0},{"$f":"(SUMPRODUCT(($A$3:$A59>($A939-VLOOKUP(AD$881,'F. UL & OPEX flat rates'!$B$2:$G$43,5)))*1,AD$3:AD59)+AD763)*VLOOKUP(AD$881,'F. UL & OPEX flat rates'!$B$2:$G$43,6,0)","v":0},{"$f":"(SUMPRODUCT(($A$3:$A59>($A939-VLOOKUP(AE$881,'F. UL & OPEX flat rates'!$B$2:$G$43,5)))*1,AE$3:AE59)+AE763)*VLOOKUP(AE$881,'F. UL & OPEX flat rates'!$B$2:$G$43,6,0)","v":0},{"$f":"(SUMPRODUCT(($A$3:$A59>($A939-VLOOKUP(AF$881,'F. UL & OPEX flat rates'!$B$2:$G$43,5)))*1,AF$3:AF59)+AF763)*VLOOKUP(AF$881,'F. UL & OPEX flat rates'!$B$2:$G$43,6,0)","v":0},{"$f":"(SUMPRODUCT(($A$3:$A59>($A939-VLOOKUP(AG$881,'F. UL & OPEX flat rates'!$B$2:$G$43,5)))*1,AG$3:AG59)+AG763)*VLOOKUP(AG$881,'F. UL & OPEX flat rates'!$B$2:$G$43,6,0)","v":0},{"$f":"(SUMPRODUCT(($A$3:$A59>($A939-VLOOKUP(AH$881,'F. UL & OPEX flat rates'!$B$2:$G$43,5)))*1,AH$3:AH59)+AH763)*VLOOKUP(AH$881,'F. UL & OPEX flat rates'!$B$2:$G$43,6,0)","v":0},{"$f":"(SUMPRODUCT(($A$3:$A59>($A939-VLOOKUP(AI$881,'F. UL & OPEX flat rates'!$B$2:$G$43,5)))*1,AI$3:AI59)+AI763)*VLOOKUP(AI$881,'F. UL & OPEX flat rates'!$B$2:$G$43,6,0)","v":0},{"$f":"(SUMPRODUCT(($A$3:$A59>($A939-VLOOKUP(AJ$881,'F. UL & OPEX flat rates'!$B$2:$G$43,5)))*1,AJ$3:AJ59)+AJ763)*VLOOKUP(AJ$881,'F. UL & OPEX flat rates'!$B$2:$G$43,6,0)","v":0},{"$f":"(SUMPRODUCT(($A$3:$A59>($A939-VLOOKUP(AK$881,'F. UL & OPEX flat rates'!$B$2:$G$43,5)))*1,AK$3:AK59)+AK763)*VLOOKUP(AK$881,'F. UL & OPEX flat rates'!$B$2:$G$43,6,0)","v":0},{"$f":"(SUMPRODUCT(($A$3:$A59>($A939-VLOOKUP(AL$881,'F. UL & OPEX flat rates'!$B$2:$G$43,5)))*1,AL$3:AL59)+AL763)*VLOOKUP(AL$881,'F. UL & OPEX flat rates'!$B$2:$G$43,6,0)","v":0},{"$f":"(SUMPRODUCT(($A$3:$A59>($A939-VLOOKUP(AM$881,'F. UL & OPEX flat rates'!$B$2:$G$43,5)))*1,AM$3:AM59)+AM763)*VLOOKUP(AM$881,'F. UL & OPEX flat rates'!$B$2:$G$43,6,0)","v":0},{"$f":"(SUMPRODUCT(($A$3:$A59>($A939-VLOOKUP(AN$881,'F. UL & OPEX flat rates'!$B$2:$G$43,5)))*1,AN$3:AN59)+AN763)*VLOOKUP(AN$881,'F. UL & OPEX flat rates'!$B$2:$G$43,6,0)","v":0},{"$f":"(SUMPRODUCT(($A$3:$A59>($A939-VLOOKUP(AO$881,'F. UL & OPEX flat rates'!$B$2:$G$43,5)))*1,AO$3:AO59)+AO763)*VLOOKUP(AO$881,'F. UL & OPEX flat rates'!$B$2:$G$43,6,0)","v":0},{"$f":"(SUMPRODUCT(($A$3:$A59>($A939-VLOOKUP(AP$881,'F. UL & OPEX flat rates'!$B$2:$G$43,5)))*1,AP$3:AP59)+AP763)*VLOOKUP(AP$881,'F. UL & OPEX flat rates'!$B$2:$G$43,6,0)","v":0},{"$f":"(SUMPRODUCT(($A$3:$A59>($A939-VLOOKUP(AQ$881,'F. UL & OPEX flat rates'!$B$2:$G$43,5)))*1,AQ$3:AQ59)+AQ763)*VLOOKUP(AQ$881,'F. UL & OPEX flat rates'!$B$2:$G$43,6,0)","v":0}]
[2073,0,{"$f":"(SUMPRODUCT(($A$3:$A60>($A940-VLOOKUP(C$881,'F. UL & OPEX flat rates'!$B$2:$G$43,5)))*1,C$3:C60)+C764)*VLOOKUP(C$881,'F. UL & OPEX flat rates'!$B$2:$G$43,6,0)","v":0},{"$f":"(SUMPRODUCT(($A$3:$A60>($A940-VLOOKUP(D$881,'F. UL & OPEX flat rates'!$B$2:$G$43,5)))*1,D$3:D60)+D764)*VLOOKUP(D$881,'F. UL & OPEX flat rates'!$B$2:$G$43,6,0)","v":0},{"$f":"(SUMPRODUCT(($A$3:$A60>($A940-VLOOKUP(E$881,'F. UL & OPEX flat rates'!$B$2:$G$43,5)))*1,E$3:E60)+E764)*VLOOKUP(E$881,'F. UL & OPEX flat rates'!$B$2:$G$43,6,0)","v":0},{"$f":"(SUMPRODUCT(($A$3:$A60>($A940-VLOOKUP(F$881,'F. UL & OPEX flat rates'!$B$2:$G$43,5)))*1,F$3:F60)+F764)*VLOOKUP(F$881,'F. UL & OPEX flat rates'!$B$2:$G$43,6,0)","v":0},{"$f":"(SUMPRODUCT(($A$3:$A60>($A940-VLOOKUP(G$881,'F. UL & OPEX flat rates'!$B$2:$G$43,5)))*1,G$3:G60)+G764)*VLOOKUP(G$881,'F. UL & OPEX flat rates'!$B$2:$G$43,6,0)","v":0},{"$f":"(SUMPRODUCT(($A$3:$A60>($A940-VLOOKUP(H$881,'F. UL & OPEX flat rates'!$B$2:$G$43,5)))*1,H$3:H60)+H764)*VLOOKUP(H$881,'F. UL & OPEX flat rates'!$B$2:$G$43,6,0)","v":0},{"$f":"(SUMPRODUCT(($A$3:$A60>($A940-VLOOKUP(I$881,'F. UL & OPEX flat rates'!$B$2:$G$43,5)))*1,I$3:I60)+I764)*VLOOKUP(I$881,'F. UL & OPEX flat rates'!$B$2:$G$43,6,0)","v":0},{"$f":"(SUMPRODUCT(($A$3:$A60>($A940-VLOOKUP(J$881,'F. UL & OPEX flat rates'!$B$2:$G$43,5)))*1,J$3:J60)+J764)*VLOOKUP(J$881,'F. UL & OPEX flat rates'!$B$2:$G$43,6,0)","v":0},{"$f":"(SUMPRODUCT(($A$3:$A60>($A940-VLOOKUP(K$881,'F. UL & OPEX flat rates'!$B$2:$G$43,5)))*1,K$3:K60)+K764)*VLOOKUP(K$881,'F. UL & OPEX flat rates'!$B$2:$G$43,6,0)","v":0},{"$f":"(SUMPRODUCT(($A$3:$A60>($A940-VLOOKUP(L$881,'F. UL & OPEX flat rates'!$B$2:$G$43,5)))*1,L$3:L60)+L764)*VLOOKUP(L$881,'F. UL & OPEX flat rates'!$B$2:$G$43,6,0)","v":0},{"$f":"(SUMPRODUCT(($A$3:$A60>($A940-VLOOKUP(M$881,'F. UL & OPEX flat rates'!$B$2:$G$43,5)))*1,M$3:M60)+M764)*VLOOKUP(M$881,'F. UL & OPEX flat rates'!$B$2:$G$43,6,0)","v":0},{"$f":"(SUMPRODUCT(($A$3:$A60>($A940-VLOOKUP(N$881,'F. UL & OPEX flat rates'!$B$2:$G$43,5)))*1,N$3:N60)+N764)*VLOOKUP(N$881,'F. UL & OPEX flat rates'!$B$2:$G$43,6,0)","v":0},{"$f":"(SUMPRODUCT(($A$3:$A60>($A940-VLOOKUP(O$881,'F. UL & OPEX flat rates'!$B$2:$G$43,5)))*1,O$3:O60)+O764)*VLOOKUP(O$881,'F. UL & OPEX flat rates'!$B$2:$G$43,6,0)","v":0},{"$f":"(SUMPRODUCT(($A$3:$A60>($A940-VLOOKUP(P$881,'F. UL & OPEX flat rates'!$B$2:$G$43,5)))*1,P$3:P60)+P764)*VLOOKUP(P$881,'F. UL & OPEX flat rates'!$B$2:$G$43,6,0)","v":0},{"$f":"(SUMPRODUCT(($A$3:$A60>($A940-VLOOKUP(Q$881,'F. UL & OPEX flat rates'!$B$2:$G$43,5)))*1,Q$3:Q60)+Q764)*VLOOKUP(Q$881,'F. UL & OPEX flat rates'!$B$2:$G$43,6,0)","v":0},{"$f":"(SUMPRODUCT(($A$3:$A60>($A940-VLOOKUP(R$881,'F. UL & OPEX flat rates'!$B$2:$G$43,5)))*1,R$3:R60)+R764)*VLOOKUP(R$881,'F. UL & OPEX flat rates'!$B$2:$G$43,6,0)","v":0},{"$f":"(SUMPRODUCT(($A$3:$A60>($A940-VLOOKUP(S$881,'F. UL & OPEX flat rates'!$B$2:$G$43,5)))*1,S$3:S60)+S764)*VLOOKUP(S$881,'F. UL & OPEX flat rates'!$B$2:$G$43,6,0)","v":0},{"$f":"(SUMPRODUCT(($A$3:$A60>($A940-VLOOKUP(T$881,'F. UL & OPEX flat rates'!$B$2:$G$43,5)))*1,T$3:T60)+T764)*VLOOKUP(T$881,'F. UL & OPEX flat rates'!$B$2:$G$43,6,0)","v":0},{"$f":"(SUMPRODUCT(($A$3:$A60>($A940-VLOOKUP(U$881,'F. UL & OPEX flat rates'!$B$2:$G$43,5)))*1,U$3:U60)+U764)*VLOOKUP(U$881,'F. UL & OPEX flat rates'!$B$2:$G$43,6,0)","v":0},{"$f":"(SUMPRODUCT(($A$3:$A60>($A940-VLOOKUP(V$881,'F. UL & OPEX flat rates'!$B$2:$G$43,5)))*1,V$3:V60)+V764)*VLOOKUP(V$881,'F. UL & OPEX flat rates'!$B$2:$G$43,6,0)","v":0},{"$f":"(SUMPRODUCT(($A$3:$A60>($A940-VLOOKUP(W$881,'F. UL & OPEX flat rates'!$B$2:$G$43,5)))*1,W$3:W60)+W764)*VLOOKUP(W$881,'F. UL & OPEX flat rates'!$B$2:$G$43,6,0)","v":0},{"$f":"(SUMPRODUCT(($A$3:$A60>($A940-VLOOKUP(X$881,'F. UL & OPEX flat rates'!$B$2:$G$43,5)))*1,X$3:X60)+X764)*VLOOKUP(X$881,'F. UL & OPEX flat rates'!$B$2:$G$43,6,0)","v":0},{"$f":"(SUMPRODUCT(($A$3:$A60>($A940-VLOOKUP(Y$881,'F. UL & OPEX flat rates'!$B$2:$G$43,5)))*1,Y$3:Y60)+Y764)*VLOOKUP(Y$881,'F. UL & OPEX flat rates'!$B$2:$G$43,6,0)","v":0},{"$f":"(SUMPRODUCT(($A$3:$A60>($A940-VLOOKUP(Z$881,'F. UL & OPEX flat rates'!$B$2:$G$43,5)))*1,Z$3:Z60)+Z764)*VLOOKUP(Z$881,'F. UL & OPEX flat rates'!$B$2:$G$43,6,0)","v":0},{"$f":"(SUMPRODUCT(($A$3:$A60>($A940-VLOOKUP(AA$881,'F. UL & OPEX flat rates'!$B$2:$G$43,5)))*1,AA$3:AA60)+AA764)*VLOOKUP(AA$881,'F. UL & OPEX flat rates'!$B$2:$G$43,6,0)","v":0},{"$f":"(SUMPRODUCT(($A$3:$A60>($A940-VLOOKUP(AB$881,'F. UL & OPEX flat rates'!$B$2:$G$43,5)))*1,AB$3:AB60)+AB764)*VLOOKUP(AB$881,'F. UL & OPEX flat rates'!$B$2:$G$43,6,0)","v":0},{"$f":"(SUMPRODUCT(($A$3:$A60>($A940-VLOOKUP(AC$881,'F. UL & OPEX flat rates'!$B$2:$G$43,5)))*1,AC$3:AC60)+AC764)*VLOOKUP(AC$881,'F. UL & OPEX flat rates'!$B$2:$G$43,6,0)","v":0},{"$f":"(SUMPRODUCT(($A$3:$A60>($A940-VLOOKUP(AD$881,'F. UL & OPEX flat rates'!$B$2:$G$43,5)))*1,AD$3:AD60)+AD764)*VLOOKUP(AD$881,'F. UL & OPEX flat rates'!$B$2:$G$43,6,0)","v":0},{"$f":"(SUMPRODUCT(($A$3:$A60>($A940-VLOOKUP(AE$881,'F. UL & OPEX flat rates'!$B$2:$G$43,5)))*1,AE$3:AE60)+AE764)*VLOOKUP(AE$881,'F. UL & OPEX flat rates'!$B$2:$G$43,6,0)","v":0},{"$f":"(SUMPRODUCT(($A$3:$A60>($A940-VLOOKUP(AF$881,'F. UL & OPEX flat rates'!$B$2:$G$43,5)))*1,AF$3:AF60)+AF764)*VLOOKUP(AF$881,'F. UL & OPEX flat rates'!$B$2:$G$43,6,0)","v":0},{"$f":"(SUMPRODUCT(($A$3:$A60>($A940-VLOOKUP(AG$881,'F. UL & OPEX flat rates'!$B$2:$G$43,5)))*1,AG$3:AG60)+AG764)*VLOOKUP(AG$881,'F. UL & OPEX flat rates'!$B$2:$G$43,6,0)","v":0},{"$f":"(SUMPRODUCT(($A$3:$A60>($A940-VLOOKUP(AH$881,'F. UL & OPEX flat rates'!$B$2:$G$43,5)))*1,AH$3:AH60)+AH764)*VLOOKUP(AH$881,'F. UL & OPEX flat rates'!$B$2:$G$43,6,0)","v":0},{"$f":"(SUMPRODUCT(($A$3:$A60>($A940-VLOOKUP(AI$881,'F. UL & OPEX flat rates'!$B$2:$G$43,5)))*1,AI$3:AI60)+AI764)*VLOOKUP(AI$881,'F. UL & OPEX flat rates'!$B$2:$G$43,6,0)","v":0},{"$f":"(SUMPRODUCT(($A$3:$A60>($A940-VLOOKUP(AJ$881,'F. UL & OPEX flat rates'!$B$2:$G$43,5)))*1,AJ$3:AJ60)+AJ764)*VLOOKUP(AJ$881,'F. UL & OPEX flat rates'!$B$2:$G$43,6,0)","v":0},{"$f":"(SUMPRODUCT(($A$3:$A60>($A940-VLOOKUP(AK$881,'F. UL & OPEX flat rates'!$B$2:$G$43,5)))*1,AK$3:AK60)+AK764)*VLOOKUP(AK$881,'F. UL & OPEX flat rates'!$B$2:$G$43,6,0)","v":0},{"$f":"(SUMPRODUCT(($A$3:$A60>($A940-VLOOKUP(AL$881,'F. UL & OPEX flat rates'!$B$2:$G$43,5)))*1,AL$3:AL60)+AL764)*VLOOKUP(AL$881,'F. UL & OPEX flat rates'!$B$2:$G$43,6,0)","v":0},{"$f":"(SUMPRODUCT(($A$3:$A60>($A940-VLOOKUP(AM$881,'F. UL & OPEX flat rates'!$B$2:$G$43,5)))*1,AM$3:AM60)+AM764)*VLOOKUP(AM$881,'F. UL & OPEX flat rates'!$B$2:$G$43,6,0)","v":0},{"$f":"(SUMPRODUCT(($A$3:$A60>($A940-VLOOKUP(AN$881,'F. UL & OPEX flat rates'!$B$2:$G$43,5)))*1,AN$3:AN60)+AN764)*VLOOKUP(AN$881,'F. UL & OPEX flat rates'!$B$2:$G$43,6,0)","v":0},{"$f":"(SUMPRODUCT(($A$3:$A60>($A940-VLOOKUP(AO$881,'F. UL & OPEX flat rates'!$B$2:$G$43,5)))*1,AO$3:AO60)+AO764)*VLOOKUP(AO$881,'F. UL & OPEX flat rates'!$B$2:$G$43,6,0)","v":0},{"$f":"(SUMPRODUCT(($A$3:$A60>($A940-VLOOKUP(AP$881,'F. UL & OPEX flat rates'!$B$2:$G$43,5)))*1,AP$3:AP60)+AP764)*VLOOKUP(AP$881,'F. UL & OPEX flat rates'!$B$2:$G$43,6,0)","v":0},{"$f":"(SUMPRODUCT(($A$3:$A60>($A940-VLOOKUP(AQ$881,'F. UL & OPEX flat rates'!$B$2:$G$43,5)))*1,AQ$3:AQ60)+AQ764)*VLOOKUP(AQ$881,'F. UL & OPEX flat rates'!$B$2:$G$43,6,0)","v":0}]
[2074,0,{"$f":"(SUMPRODUCT(($A$3:$A61>($A941-VLOOKUP(C$881,'F. UL & OPEX flat rates'!$B$2:$G$43,5)))*1,C$3:C61)+C765)*VLOOKUP(C$881,'F. UL & OPEX flat rates'!$B$2:$G$43,6,0)","v":0},{"$f":"(SUMPRODUCT(($A$3:$A61>($A941-VLOOKUP(D$881,'F. UL & OPEX flat rates'!$B$2:$G$43,5)))*1,D$3:D61)+D765)*VLOOKUP(D$881,'F. UL & OPEX flat rates'!$B$2:$G$43,6,0)","v":0},{"$f":"(SUMPRODUCT(($A$3:$A61>($A941-VLOOKUP(E$881,'F. UL & OPEX flat rates'!$B$2:$G$43,5)))*1,E$3:E61)+E765)*VLOOKUP(E$881,'F. UL & OPEX flat rates'!$B$2:$G$43,6,0)","v":0},{"$f":"(SUMPRODUCT(($A$3:$A61>($A941-VLOOKUP(F$881,'F. UL & OPEX flat rates'!$B$2:$G$43,5)))*1,F$3:F61)+F765)*VLOOKUP(F$881,'F. UL & OPEX flat rates'!$B$2:$G$43,6,0)","v":0},{"$f":"(SUMPRODUCT(($A$3:$A61>($A941-VLOOKUP(G$881,'F. UL & OPEX flat rates'!$B$2:$G$43,5)))*1,G$3:G61)+G765)*VLOOKUP(G$881,'F. UL & OPEX flat rates'!$B$2:$G$43,6,0)","v":0},{"$f":"(SUMPRODUCT(($A$3:$A61>($A941-VLOOKUP(H$881,'F. UL & OPEX flat rates'!$B$2:$G$43,5)))*1,H$3:H61)+H765)*VLOOKUP(H$881,'F. UL & OPEX flat rates'!$B$2:$G$43,6,0)","v":0},{"$f":"(SUMPRODUCT(($A$3:$A61>($A941-VLOOKUP(I$881,'F. UL & OPEX flat rates'!$B$2:$G$43,5)))*1,I$3:I61)+I765)*VLOOKUP(I$881,'F. UL & OPEX flat rates'!$B$2:$G$43,6,0)","v":0},{"$f":"(SUMPRODUCT(($A$3:$A61>($A941-VLOOKUP(J$881,'F. UL & OPEX flat rates'!$B$2:$G$43,5)))*1,J$3:J61)+J765)*VLOOKUP(J$881,'F. UL & OPEX flat rates'!$B$2:$G$43,6,0)","v":0},{"$f":"(SUMPRODUCT(($A$3:$A61>($A941-VLOOKUP(K$881,'F. UL & OPEX flat rates'!$B$2:$G$43,5)))*1,K$3:K61)+K765)*VLOOKUP(K$881,'F. UL & OPEX flat rates'!$B$2:$G$43,6,0)","v":0},{"$f":"(SUMPRODUCT(($A$3:$A61>($A941-VLOOKUP(L$881,'F. UL & OPEX flat rates'!$B$2:$G$43,5)))*1,L$3:L61)+L765)*VLOOKUP(L$881,'F. UL & OPEX flat rates'!$B$2:$G$43,6,0)","v":0},{"$f":"(SUMPRODUCT(($A$3:$A61>($A941-VLOOKUP(M$881,'F. UL & OPEX flat rates'!$B$2:$G$43,5)))*1,M$3:M61)+M765)*VLOOKUP(M$881,'F. UL & OPEX flat rates'!$B$2:$G$43,6,0)","v":0},{"$f":"(SUMPRODUCT(($A$3:$A61>($A941-VLOOKUP(N$881,'F. UL & OPEX flat rates'!$B$2:$G$43,5)))*1,N$3:N61)+N765)*VLOOKUP(N$881,'F. UL & OPEX flat rates'!$B$2:$G$43,6,0)","v":0},{"$f":"(SUMPRODUCT(($A$3:$A61>($A941-VLOOKUP(O$881,'F. UL & OPEX flat rates'!$B$2:$G$43,5)))*1,O$3:O61)+O765)*VLOOKUP(O$881,'F. UL & OPEX flat rates'!$B$2:$G$43,6,0)","v":0},{"$f":"(SUMPRODUCT(($A$3:$A61>($A941-VLOOKUP(P$881,'F. UL & OPEX flat rates'!$B$2:$G$43,5)))*1,P$3:P61)+P765)*VLOOKUP(P$881,'F. UL & OPEX flat rates'!$B$2:$G$43,6,0)","v":0},{"$f":"(SUMPRODUCT(($A$3:$A61>($A941-VLOOKUP(Q$881,'F. UL & OPEX flat rates'!$B$2:$G$43,5)))*1,Q$3:Q61)+Q765)*VLOOKUP(Q$881,'F. UL & OPEX flat rates'!$B$2:$G$43,6,0)","v":0},{"$f":"(SUMPRODUCT(($A$3:$A61>($A941-VLOOKUP(R$881,'F. UL & OPEX flat rates'!$B$2:$G$43,5)))*1,R$3:R61)+R765)*VLOOKUP(R$881,'F. UL & OPEX flat rates'!$B$2:$G$43,6,0)","v":0},{"$f":"(SUMPRODUCT(($A$3:$A61>($A941-VLOOKUP(S$881,'F. UL & OPEX flat rates'!$B$2:$G$43,5)))*1,S$3:S61)+S765)*VLOOKUP(S$881,'F. UL & OPEX flat rates'!$B$2:$G$43,6,0)","v":0},{"$f":"(SUMPRODUCT(($A$3:$A61>($A941-VLOOKUP(T$881,'F. UL & OPEX flat rates'!$B$2:$G$43,5)))*1,T$3:T61)+T765)*VLOOKUP(T$881,'F. UL & OPEX flat rates'!$B$2:$G$43,6,0)","v":0},{"$f":"(SUMPRODUCT(($A$3:$A61>($A941-VLOOKUP(U$881,'F. UL & OPEX flat rates'!$B$2:$G$43,5)))*1,U$3:U61)+U765)*VLOOKUP(U$881,'F. UL & OPEX flat rates'!$B$2:$G$43,6,0)","v":0},{"$f":"(SUMPRODUCT(($A$3:$A61>($A941-VLOOKUP(V$881,'F. UL & OPEX flat rates'!$B$2:$G$43,5)))*1,V$3:V61)+V765)*VLOOKUP(V$881,'F. UL & OPEX flat rates'!$B$2:$G$43,6,0)","v":0},{"$f":"(SUMPRODUCT(($A$3:$A61>($A941-VLOOKUP(W$881,'F. UL & OPEX flat rates'!$B$2:$G$43,5)))*1,W$3:W61)+W765)*VLOOKUP(W$881,'F. UL & OPEX flat rates'!$B$2:$G$43,6,0)","v":0},{"$f":"(SUMPRODUCT(($A$3:$A61>($A941-VLOOKUP(X$881,'F. UL & OPEX flat rates'!$B$2:$G$43,5)))*1,X$3:X61)+X765)*VLOOKUP(X$881,'F. UL & OPEX flat rates'!$B$2:$G$43,6,0)","v":0},{"$f":"(SUMPRODUCT(($A$3:$A61>($A941-VLOOKUP(Y$881,'F. UL & OPEX flat rates'!$B$2:$G$43,5)))*1,Y$3:Y61)+Y765)*VLOOKUP(Y$881,'F. UL & OPEX flat rates'!$B$2:$G$43,6,0)","v":0},{"$f":"(SUMPRODUCT(($A$3:$A61>($A941-VLOOKUP(Z$881,'F. UL & OPEX flat rates'!$B$2:$G$43,5)))*1,Z$3:Z61)+Z765)*VLOOKUP(Z$881,'F. UL & OPEX flat rates'!$B$2:$G$43,6,0)","v":0},{"$f":"(SUMPRODUCT(($A$3:$A61>($A941-VLOOKUP(AA$881,'F. UL & OPEX flat rates'!$B$2:$G$43,5)))*1,AA$3:AA61)+AA765)*VLOOKUP(AA$881,'F. UL & OPEX flat rates'!$B$2:$G$43,6,0)","v":0},{"$f":"(SUMPRODUCT(($A$3:$A61>($A941-VLOOKUP(AB$881,'F. UL & OPEX flat rates'!$B$2:$G$43,5)))*1,AB$3:AB61)+AB765)*VLOOKUP(AB$881,'F. UL & OPEX flat rates'!$B$2:$G$43,6,0)","v":0},{"$f":"(SUMPRODUCT(($A$3:$A61>($A941-VLOOKUP(AC$881,'F. UL & OPEX flat rates'!$B$2:$G$43,5)))*1,AC$3:AC61)+AC765)*VLOOKUP(AC$881,'F. UL & OPEX flat rates'!$B$2:$G$43,6,0)","v":0},{"$f":"(SUMPRODUCT(($A$3:$A61>($A941-VLOOKUP(AD$881,'F. UL & OPEX flat rates'!$B$2:$G$43,5)))*1,AD$3:AD61)+AD765)*VLOOKUP(AD$881,'F. UL & OPEX flat rates'!$B$2:$G$43,6,0)","v":0},{"$f":"(SUMPRODUCT(($A$3:$A61>($A941-VLOOKUP(AE$881,'F. UL & OPEX flat rates'!$B$2:$G$43,5)))*1,AE$3:AE61)+AE765)*VLOOKUP(AE$881,'F. UL & OPEX flat rates'!$B$2:$G$43,6,0)","v":0},{"$f":"(SUMPRODUCT(($A$3:$A61>($A941-VLOOKUP(AF$881,'F. UL & OPEX flat rates'!$B$2:$G$43,5)))*1,AF$3:AF61)+AF765)*VLOOKUP(AF$881,'F. UL & OPEX flat rates'!$B$2:$G$43,6,0)","v":0},{"$f":"(SUMPRODUCT(($A$3:$A61>($A941-VLOOKUP(AG$881,'F. UL & OPEX flat rates'!$B$2:$G$43,5)))*1,AG$3:AG61)+AG765)*VLOOKUP(AG$881,'F. UL & OPEX flat rates'!$B$2:$G$43,6,0)","v":0},{"$f":"(SUMPRODUCT(($A$3:$A61>($A941-VLOOKUP(AH$881,'F. UL & OPEX flat rates'!$B$2:$G$43,5)))*1,AH$3:AH61)+AH765)*VLOOKUP(AH$881,'F. UL & OPEX flat rates'!$B$2:$G$43,6,0)","v":0},{"$f":"(SUMPRODUCT(($A$3:$A61>($A941-VLOOKUP(AI$881,'F. UL & OPEX flat rates'!$B$2:$G$43,5)))*1,AI$3:AI61)+AI765)*VLOOKUP(AI$881,'F. UL & OPEX flat rates'!$B$2:$G$43,6,0)","v":0},{"$f":"(SUMPRODUCT(($A$3:$A61>($A941-VLOOKUP(AJ$881,'F. UL & OPEX flat rates'!$B$2:$G$43,5)))*1,AJ$3:AJ61)+AJ765)*VLOOKUP(AJ$881,'F. UL & OPEX flat rates'!$B$2:$G$43,6,0)","v":0},{"$f":"(SUMPRODUCT(($A$3:$A61>($A941-VLOOKUP(AK$881,'F. UL & OPEX flat rates'!$B$2:$G$43,5)))*1,AK$3:AK61)+AK765)*VLOOKUP(AK$881,'F. UL & OPEX flat rates'!$B$2:$G$43,6,0)","v":0},{"$f":"(SUMPRODUCT(($A$3:$A61>($A941-VLOOKUP(AL$881,'F. UL & OPEX flat rates'!$B$2:$G$43,5)))*1,AL$3:AL61)+AL765)*VLOOKUP(AL$881,'F. UL & OPEX flat rates'!$B$2:$G$43,6,0)","v":0},{"$f":"(SUMPRODUCT(($A$3:$A61>($A941-VLOOKUP(AM$881,'F. UL & OPEX flat rates'!$B$2:$G$43,5)))*1,AM$3:AM61)+AM765)*VLOOKUP(AM$881,'F. UL & OPEX flat rates'!$B$2:$G$43,6,0)","v":0},{"$f":"(SUMPRODUCT(($A$3:$A61>($A941-VLOOKUP(AN$881,'F. UL & OPEX flat rates'!$B$2:$G$43,5)))*1,AN$3:AN61)+AN765)*VLOOKUP(AN$881,'F. UL & OPEX flat rates'!$B$2:$G$43,6,0)","v":0},{"$f":"(SUMPRODUCT(($A$3:$A61>($A941-VLOOKUP(AO$881,'F. UL & OPEX flat rates'!$B$2:$G$43,5)))*1,AO$3:AO61)+AO765)*VLOOKUP(AO$881,'F. UL & OPEX flat rates'!$B$2:$G$43,6,0)","v":0},{"$f":"(SUMPRODUCT(($A$3:$A61>($A941-VLOOKUP(AP$881,'F. UL & OPEX flat rates'!$B$2:$G$43,5)))*1,AP$3:AP61)+AP765)*VLOOKUP(AP$881,'F. UL & OPEX flat rates'!$B$2:$G$43,6,0)","v":0},{"$f":"(SUMPRODUCT(($A$3:$A61>($A941-VLOOKUP(AQ$881,'F. UL & OPEX flat rates'!$B$2:$G$43,5)))*1,AQ$3:AQ61)+AQ765)*VLOOKUP(AQ$881,'F. UL & OPEX flat rates'!$B$2:$G$43,6,0)","v":0}]
[2075,0,{"$f":"(SUMPRODUCT(($A$3:$A62>($A942-VLOOKUP(C$881,'F. UL & OPEX flat rates'!$B$2:$G$43,5)))*1,C$3:C62)+C766)*VLOOKUP(C$881,'F. UL & OPEX flat rates'!$B$2:$G$43,6,0)","v":0},{"$f":"(SUMPRODUCT(($A$3:$A62>($A942-VLOOKUP(D$881,'F. UL & OPEX flat rates'!$B$2:$G$43,5)))*1,D$3:D62)+D766)*VLOOKUP(D$881,'F. UL & OPEX flat rates'!$B$2:$G$43,6,0)","v":0},{"$f":"(SUMPRODUCT(($A$3:$A62>($A942-VLOOKUP(E$881,'F. UL & OPEX flat rates'!$B$2:$G$43,5)))*1,E$3:E62)+E766)*VLOOKUP(E$881,'F. UL & OPEX flat rates'!$B$2:$G$43,6,0)","v":0},{"$f":"(SUMPRODUCT(($A$3:$A62>($A942-VLOOKUP(F$881,'F. UL & OPEX flat rates'!$B$2:$G$43,5)))*1,F$3:F62)+F766)*VLOOKUP(F$881,'F. UL & OPEX flat rates'!$B$2:$G$43,6,0)","v":0},{"$f":"(SUMPRODUCT(($A$3:$A62>($A942-VLOOKUP(G$881,'F. UL & OPEX flat rates'!$B$2:$G$43,5)))*1,G$3:G62)+G766)*VLOOKUP(G$881,'F. UL & OPEX flat rates'!$B$2:$G$43,6,0)","v":0},{"$f":"(SUMPRODUCT(($A$3:$A62>($A942-VLOOKUP(H$881,'F. UL & OPEX flat rates'!$B$2:$G$43,5)))*1,H$3:H62)+H766)*VLOOKUP(H$881,'F. UL & OPEX flat rates'!$B$2:$G$43,6,0)","v":0},{"$f":"(SUMPRODUCT(($A$3:$A62>($A942-VLOOKUP(I$881,'F. UL & OPEX flat rates'!$B$2:$G$43,5)))*1,I$3:I62)+I766)*VLOOKUP(I$881,'F. UL & OPEX flat rates'!$B$2:$G$43,6,0)","v":0},{"$f":"(SUMPRODUCT(($A$3:$A62>($A942-VLOOKUP(J$881,'F. UL & OPEX flat rates'!$B$2:$G$43,5)))*1,J$3:J62)+J766)*VLOOKUP(J$881,'F. UL & OPEX flat rates'!$B$2:$G$43,6,0)","v":0},{"$f":"(SUMPRODUCT(($A$3:$A62>($A942-VLOOKUP(K$881,'F. UL & OPEX flat rates'!$B$2:$G$43,5)))*1,K$3:K62)+K766)*VLOOKUP(K$881,'F. UL & OPEX flat rates'!$B$2:$G$43,6,0)","v":0},{"$f":"(SUMPRODUCT(($A$3:$A62>($A942-VLOOKUP(L$881,'F. UL & OPEX flat rates'!$B$2:$G$43,5)))*1,L$3:L62)+L766)*VLOOKUP(L$881,'F. UL & OPEX flat rates'!$B$2:$G$43,6,0)","v":0},{"$f":"(SUMPRODUCT(($A$3:$A62>($A942-VLOOKUP(M$881,'F. UL & OPEX flat rates'!$B$2:$G$43,5)))*1,M$3:M62)+M766)*VLOOKUP(M$881,'F. UL & OPEX flat rates'!$B$2:$G$43,6,0)","v":0},{"$f":"(SUMPRODUCT(($A$3:$A62>($A942-VLOOKUP(N$881,'F. UL & OPEX flat rates'!$B$2:$G$43,5)))*1,N$3:N62)+N766)*VLOOKUP(N$881,'F. UL & OPEX flat rates'!$B$2:$G$43,6,0)","v":0},{"$f":"(SUMPRODUCT(($A$3:$A62>($A942-VLOOKUP(O$881,'F. UL & OPEX flat rates'!$B$2:$G$43,5)))*1,O$3:O62)+O766)*VLOOKUP(O$881,'F. UL & OPEX flat rates'!$B$2:$G$43,6,0)","v":0},{"$f":"(SUMPRODUCT(($A$3:$A62>($A942-VLOOKUP(P$881,'F. UL & OPEX flat rates'!$B$2:$G$43,5)))*1,P$3:P62)+P766)*VLOOKUP(P$881,'F. UL & OPEX flat rates'!$B$2:$G$43,6,0)","v":0},{"$f":"(SUMPRODUCT(($A$3:$A62>($A942-VLOOKUP(Q$881,'F. UL & OPEX flat rates'!$B$2:$G$43,5)))*1,Q$3:Q62)+Q766)*VLOOKUP(Q$881,'F. UL & OPEX flat rates'!$B$2:$G$43,6,0)","v":0},{"$f":"(SUMPRODUCT(($A$3:$A62>($A942-VLOOKUP(R$881,'F. UL & OPEX flat rates'!$B$2:$G$43,5)))*1,R$3:R62)+R766)*VLOOKUP(R$881,'F. UL & OPEX flat rates'!$B$2:$G$43,6,0)","v":0},{"$f":"(SUMPRODUCT(($A$3:$A62>($A942-VLOOKUP(S$881,'F. UL & OPEX flat rates'!$B$2:$G$43,5)))*1,S$3:S62)+S766)*VLOOKUP(S$881,'F. UL & OPEX flat rates'!$B$2:$G$43,6,0)","v":0},{"$f":"(SUMPRODUCT(($A$3:$A62>($A942-VLOOKUP(T$881,'F. UL & OPEX flat rates'!$B$2:$G$43,5)))*1,T$3:T62)+T766)*VLOOKUP(T$881,'F. UL & OPEX flat rates'!$B$2:$G$43,6,0)","v":0},{"$f":"(SUMPRODUCT(($A$3:$A62>($A942-VLOOKUP(U$881,'F. UL & OPEX flat rates'!$B$2:$G$43,5)))*1,U$3:U62)+U766)*VLOOKUP(U$881,'F. UL & OPEX flat rates'!$B$2:$G$43,6,0)","v":0},{"$f":"(SUMPRODUCT(($A$3:$A62>($A942-VLOOKUP(V$881,'F. UL & OPEX flat rates'!$B$2:$G$43,5)))*1,V$3:V62)+V766)*VLOOKUP(V$881,'F. UL & OPEX flat rates'!$B$2:$G$43,6,0)","v":0},{"$f":"(SUMPRODUCT(($A$3:$A62>($A942-VLOOKUP(W$881,'F. UL & OPEX flat rates'!$B$2:$G$43,5)))*1,W$3:W62)+W766)*VLOOKUP(W$881,'F. UL & OPEX flat rates'!$B$2:$G$43,6,0)","v":0},{"$f":"(SUMPRODUCT(($A$3:$A62>($A942-VLOOKUP(X$881,'F. UL & OPEX flat rates'!$B$2:$G$43,5)))*1,X$3:X62)+X766)*VLOOKUP(X$881,'F. UL & OPEX flat rates'!$B$2:$G$43,6,0)","v":0},{"$f":"(SUMPRODUCT(($A$3:$A62>($A942-VLOOKUP(Y$881,'F. UL & OPEX flat rates'!$B$2:$G$43,5)))*1,Y$3:Y62)+Y766)*VLOOKUP(Y$881,'F. UL & OPEX flat rates'!$B$2:$G$43,6,0)","v":0},{"$f":"(SUMPRODUCT(($A$3:$A62>($A942-VLOOKUP(Z$881,'F. UL & OPEX flat rates'!$B$2:$G$43,5)))*1,Z$3:Z62)+Z766)*VLOOKUP(Z$881,'F. UL & OPEX flat rates'!$B$2:$G$43,6,0)","v":0},{"$f":"(SUMPRODUCT(($A$3:$A62>($A942-VLOOKUP(AA$881,'F. UL & OPEX flat rates'!$B$2:$G$43,5)))*1,AA$3:AA62)+AA766)*VLOOKUP(AA$881,'F. UL & OPEX flat rates'!$B$2:$G$43,6,0)","v":0},{"$f":"(SUMPRODUCT(($A$3:$A62>($A942-VLOOKUP(AB$881,'F. UL & OPEX flat rates'!$B$2:$G$43,5)))*1,AB$3:AB62)+AB766)*VLOOKUP(AB$881,'F. UL & OPEX flat rates'!$B$2:$G$43,6,0)","v":0},{"$f":"(SUMPRODUCT(($A$3:$A62>($A942-VLOOKUP(AC$881,'F. UL & OPEX flat rates'!$B$2:$G$43,5)))*1,AC$3:AC62)+AC766)*VLOOKUP(AC$881,'F. UL & OPEX flat rates'!$B$2:$G$43,6,0)","v":0},{"$f":"(SUMPRODUCT(($A$3:$A62>($A942-VLOOKUP(AD$881,'F. UL & OPEX flat rates'!$B$2:$G$43,5)))*1,AD$3:AD62)+AD766)*VLOOKUP(AD$881,'F. UL & OPEX flat rates'!$B$2:$G$43,6,0)","v":0},{"$f":"(SUMPRODUCT(($A$3:$A62>($A942-VLOOKUP(AE$881,'F. UL & OPEX flat rates'!$B$2:$G$43,5)))*1,AE$3:AE62)+AE766)*VLOOKUP(AE$881,'F. UL & OPEX flat rates'!$B$2:$G$43,6,0)","v":0},{"$f":"(SUMPRODUCT(($A$3:$A62>($A942-VLOOKUP(AF$881,'F. UL & OPEX flat rates'!$B$2:$G$43,5)))*1,AF$3:AF62)+AF766)*VLOOKUP(AF$881,'F. UL & OPEX flat rates'!$B$2:$G$43,6,0)","v":0},{"$f":"(SUMPRODUCT(($A$3:$A62>($A942-VLOOKUP(AG$881,'F. UL & OPEX flat rates'!$B$2:$G$43,5)))*1,AG$3:AG62)+AG766)*VLOOKUP(AG$881,'F. UL & OPEX flat rates'!$B$2:$G$43,6,0)","v":0},{"$f":"(SUMPRODUCT(($A$3:$A62>($A942-VLOOKUP(AH$881,'F. UL & OPEX flat rates'!$B$2:$G$43,5)))*1,AH$3:AH62)+AH766)*VLOOKUP(AH$881,'F. UL & OPEX flat rates'!$B$2:$G$43,6,0)","v":0},{"$f":"(SUMPRODUCT(($A$3:$A62>($A942-VLOOKUP(AI$881,'F. UL & OPEX flat rates'!$B$2:$G$43,5)))*1,AI$3:AI62)+AI766)*VLOOKUP(AI$881,'F. UL & OPEX flat rates'!$B$2:$G$43,6,0)","v":0},{"$f":"(SUMPRODUCT(($A$3:$A62>($A942-VLOOKUP(AJ$881,'F. UL & OPEX flat rates'!$B$2:$G$43,5)))*1,AJ$3:AJ62)+AJ766)*VLOOKUP(AJ$881,'F. UL & OPEX flat rates'!$B$2:$G$43,6,0)","v":0},{"$f":"(SUMPRODUCT(($A$3:$A62>($A942-VLOOKUP(AK$881,'F. UL & OPEX flat rates'!$B$2:$G$43,5)))*1,AK$3:AK62)+AK766)*VLOOKUP(AK$881,'F. UL & OPEX flat rates'!$B$2:$G$43,6,0)","v":0},{"$f":"(SUMPRODUCT(($A$3:$A62>($A942-VLOOKUP(AL$881,'F. UL & OPEX flat rates'!$B$2:$G$43,5)))*1,AL$3:AL62)+AL766)*VLOOKUP(AL$881,'F. UL & OPEX flat rates'!$B$2:$G$43,6,0)","v":0},{"$f":"(SUMPRODUCT(($A$3:$A62>($A942-VLOOKUP(AM$881,'F. UL & OPEX flat rates'!$B$2:$G$43,5)))*1,AM$3:AM62)+AM766)*VLOOKUP(AM$881,'F. UL & OPEX flat rates'!$B$2:$G$43,6,0)","v":0},{"$f":"(SUMPRODUCT(($A$3:$A62>($A942-VLOOKUP(AN$881,'F. UL & OPEX flat rates'!$B$2:$G$43,5)))*1,AN$3:AN62)+AN766)*VLOOKUP(AN$881,'F. UL & OPEX flat rates'!$B$2:$G$43,6,0)","v":0},{"$f":"(SUMPRODUCT(($A$3:$A62>($A942-VLOOKUP(AO$881,'F. UL & OPEX flat rates'!$B$2:$G$43,5)))*1,AO$3:AO62)+AO766)*VLOOKUP(AO$881,'F. UL & OPEX flat rates'!$B$2:$G$43,6,0)","v":0},{"$f":"(SUMPRODUCT(($A$3:$A62>($A942-VLOOKUP(AP$881,'F. UL & OPEX flat rates'!$B$2:$G$43,5)))*1,AP$3:AP62)+AP766)*VLOOKUP(AP$881,'F. UL & OPEX flat rates'!$B$2:$G$43,6,0)","v":0},{"$f":"(SUMPRODUCT(($A$3:$A62>($A942-VLOOKUP(AQ$881,'F. UL & OPEX flat rates'!$B$2:$G$43,5)))*1,AQ$3:AQ62)+AQ766)*VLOOKUP(AQ$881,'F. UL & OPEX flat rates'!$B$2:$G$43,6,0)","v":0}]
[2076,0,{"$f":"(SUMPRODUCT(($A$3:$A63>($A943-VLOOKUP(C$881,'F. UL & OPEX flat rates'!$B$2:$G$43,5)))*1,C$3:C63)+C767)*VLOOKUP(C$881,'F. UL & OPEX flat rates'!$B$2:$G$43,6,0)","v":0},{"$f":"(SUMPRODUCT(($A$3:$A63>($A943-VLOOKUP(D$881,'F. UL & OPEX flat rates'!$B$2:$G$43,5)))*1,D$3:D63)+D767)*VLOOKUP(D$881,'F. UL & OPEX flat rates'!$B$2:$G$43,6,0)","v":0},{"$f":"(SUMPRODUCT(($A$3:$A63>($A943-VLOOKUP(E$881,'F. UL & OPEX flat rates'!$B$2:$G$43,5)))*1,E$3:E63)+E767)*VLOOKUP(E$881,'F. UL & OPEX flat rates'!$B$2:$G$43,6,0)","v":0},{"$f":"(SUMPRODUCT(($A$3:$A63>($A943-VLOOKUP(F$881,'F. UL & OPEX flat rates'!$B$2:$G$43,5)))*1,F$3:F63)+F767)*VLOOKUP(F$881,'F. UL & OPEX flat rates'!$B$2:$G$43,6,0)","v":0},{"$f":"(SUMPRODUCT(($A$3:$A63>($A943-VLOOKUP(G$881,'F. UL & OPEX flat rates'!$B$2:$G$43,5)))*1,G$3:G63)+G767)*VLOOKUP(G$881,'F. UL & OPEX flat rates'!$B$2:$G$43,6,0)","v":0},{"$f":"(SUMPRODUCT(($A$3:$A63>($A943-VLOOKUP(H$881,'F. UL & OPEX flat rates'!$B$2:$G$43,5)))*1,H$3:H63)+H767)*VLOOKUP(H$881,'F. UL & OPEX flat rates'!$B$2:$G$43,6,0)","v":0},{"$f":"(SUMPRODUCT(($A$3:$A63>($A943-VLOOKUP(I$881,'F. UL & OPEX flat rates'!$B$2:$G$43,5)))*1,I$3:I63)+I767)*VLOOKUP(I$881,'F. UL & OPEX flat rates'!$B$2:$G$43,6,0)","v":0},{"$f":"(SUMPRODUCT(($A$3:$A63>($A943-VLOOKUP(J$881,'F. UL & OPEX flat rates'!$B$2:$G$43,5)))*1,J$3:J63)+J767)*VLOOKUP(J$881,'F. UL & OPEX flat rates'!$B$2:$G$43,6,0)","v":0},{"$f":"(SUMPRODUCT(($A$3:$A63>($A943-VLOOKUP(K$881,'F. UL & OPEX flat rates'!$B$2:$G$43,5)))*1,K$3:K63)+K767)*VLOOKUP(K$881,'F. UL & OPEX flat rates'!$B$2:$G$43,6,0)","v":0},{"$f":"(SUMPRODUCT(($A$3:$A63>($A943-VLOOKUP(L$881,'F. UL & OPEX flat rates'!$B$2:$G$43,5)))*1,L$3:L63)+L767)*VLOOKUP(L$881,'F. UL & OPEX flat rates'!$B$2:$G$43,6,0)","v":0},{"$f":"(SUMPRODUCT(($A$3:$A63>($A943-VLOOKUP(M$881,'F. UL & OPEX flat rates'!$B$2:$G$43,5)))*1,M$3:M63)+M767)*VLOOKUP(M$881,'F. UL & OPEX flat rates'!$B$2:$G$43,6,0)","v":0},{"$f":"(SUMPRODUCT(($A$3:$A63>($A943-VLOOKUP(N$881,'F. UL & OPEX flat rates'!$B$2:$G$43,5)))*1,N$3:N63)+N767)*VLOOKUP(N$881,'F. UL & OPEX flat rates'!$B$2:$G$43,6,0)","v":0},{"$f":"(SUMPRODUCT(($A$3:$A63>($A943-VLOOKUP(O$881,'F. UL & OPEX flat rates'!$B$2:$G$43,5)))*1,O$3:O63)+O767)*VLOOKUP(O$881,'F. UL & OPEX flat rates'!$B$2:$G$43,6,0)","v":0},{"$f":"(SUMPRODUCT(($A$3:$A63>($A943-VLOOKUP(P$881,'F. UL & OPEX flat rates'!$B$2:$G$43,5)))*1,P$3:P63)+P767)*VLOOKUP(P$881,'F. UL & OPEX flat rates'!$B$2:$G$43,6,0)","v":0},{"$f":"(SUMPRODUCT(($A$3:$A63>($A943-VLOOKUP(Q$881,'F. UL & OPEX flat rates'!$B$2:$G$43,5)))*1,Q$3:Q63)+Q767)*VLOOKUP(Q$881,'F. UL & OPEX flat rates'!$B$2:$G$43,6,0)","v":0},{"$f":"(SUMPRODUCT(($A$3:$A63>($A943-VLOOKUP(R$881,'F. UL & OPEX flat rates'!$B$2:$G$43,5)))*1,R$3:R63)+R767)*VLOOKUP(R$881,'F. UL & OPEX flat rates'!$B$2:$G$43,6,0)","v":0},{"$f":"(SUMPRODUCT(($A$3:$A63>($A943-VLOOKUP(S$881,'F. UL & OPEX flat rates'!$B$2:$G$43,5)))*1,S$3:S63)+S767)*VLOOKUP(S$881,'F. UL & OPEX flat rates'!$B$2:$G$43,6,0)","v":0},{"$f":"(SUMPRODUCT(($A$3:$A63>($A943-VLOOKUP(T$881,'F. UL & OPEX flat rates'!$B$2:$G$43,5)))*1,T$3:T63)+T767)*VLOOKUP(T$881,'F. UL & OPEX flat rates'!$B$2:$G$43,6,0)","v":0},{"$f":"(SUMPRODUCT(($A$3:$A63>($A943-VLOOKUP(U$881,'F. UL & OPEX flat rates'!$B$2:$G$43,5)))*1,U$3:U63)+U767)*VLOOKUP(U$881,'F. UL & OPEX flat rates'!$B$2:$G$43,6,0)","v":0},{"$f":"(SUMPRODUCT(($A$3:$A63>($A943-VLOOKUP(V$881,'F. UL & OPEX flat rates'!$B$2:$G$43,5)))*1,V$3:V63)+V767)*VLOOKUP(V$881,'F. UL & OPEX flat rates'!$B$2:$G$43,6,0)","v":0},{"$f":"(SUMPRODUCT(($A$3:$A63>($A943-VLOOKUP(W$881,'F. UL & OPEX flat rates'!$B$2:$G$43,5)))*1,W$3:W63)+W767)*VLOOKUP(W$881,'F. UL & OPEX flat rates'!$B$2:$G$43,6,0)","v":0},{"$f":"(SUMPRODUCT(($A$3:$A63>($A943-VLOOKUP(X$881,'F. UL & OPEX flat rates'!$B$2:$G$43,5)))*1,X$3:X63)+X767)*VLOOKUP(X$881,'F. UL & OPEX flat rates'!$B$2:$G$43,6,0)","v":0},{"$f":"(SUMPRODUCT(($A$3:$A63>($A943-VLOOKUP(Y$881,'F. UL & OPEX flat rates'!$B$2:$G$43,5)))*1,Y$3:Y63)+Y767)*VLOOKUP(Y$881,'F. UL & OPEX flat rates'!$B$2:$G$43,6,0)","v":0},{"$f":"(SUMPRODUCT(($A$3:$A63>($A943-VLOOKUP(Z$881,'F. UL & OPEX flat rates'!$B$2:$G$43,5)))*1,Z$3:Z63)+Z767)*VLOOKUP(Z$881,'F. UL & OPEX flat rates'!$B$2:$G$43,6,0)","v":0},{"$f":"(SUMPRODUCT(($A$3:$A63>($A943-VLOOKUP(AA$881,'F. UL & OPEX flat rates'!$B$2:$G$43,5)))*1,AA$3:AA63)+AA767)*VLOOKUP(AA$881,'F. UL & OPEX flat rates'!$B$2:$G$43,6,0)","v":0},{"$f":"(SUMPRODUCT(($A$3:$A63>($A943-VLOOKUP(AB$881,'F. UL & OPEX flat rates'!$B$2:$G$43,5)))*1,AB$3:AB63)+AB767)*VLOOKUP(AB$881,'F. UL & OPEX flat rates'!$B$2:$G$43,6,0)","v":0},{"$f":"(SUMPRODUCT(($A$3:$A63>($A943-VLOOKUP(AC$881,'F. UL & OPEX flat rates'!$B$2:$G$43,5)))*1,AC$3:AC63)+AC767)*VLOOKUP(AC$881,'F. UL & OPEX flat rates'!$B$2:$G$43,6,0)","v":0},{"$f":"(SUMPRODUCT(($A$3:$A63>($A943-VLOOKUP(AD$881,'F. UL & OPEX flat rates'!$B$2:$G$43,5)))*1,AD$3:AD63)+AD767)*VLOOKUP(AD$881,'F. UL & OPEX flat rates'!$B$2:$G$43,6,0)","v":0},{"$f":"(SUMPRODUCT(($A$3:$A63>($A943-VLOOKUP(AE$881,'F. UL & OPEX flat rates'!$B$2:$G$43,5)))*1,AE$3:AE63)+AE767)*VLOOKUP(AE$881,'F. UL & OPEX flat rates'!$B$2:$G$43,6,0)","v":0},{"$f":"(SUMPRODUCT(($A$3:$A63>($A943-VLOOKUP(AF$881,'F. UL & OPEX flat rates'!$B$2:$G$43,5)))*1,AF$3:AF63)+AF767)*VLOOKUP(AF$881,'F. UL & OPEX flat rates'!$B$2:$G$43,6,0)","v":0},{"$f":"(SUMPRODUCT(($A$3:$A63>($A943-VLOOKUP(AG$881,'F. UL & OPEX flat rates'!$B$2:$G$43,5)))*1,AG$3:AG63)+AG767)*VLOOKUP(AG$881,'F. UL & OPEX flat rates'!$B$2:$G$43,6,0)","v":0},{"$f":"(SUMPRODUCT(($A$3:$A63>($A943-VLOOKUP(AH$881,'F. UL & OPEX flat rates'!$B$2:$G$43,5)))*1,AH$3:AH63)+AH767)*VLOOKUP(AH$881,'F. UL & OPEX flat rates'!$B$2:$G$43,6,0)","v":0},{"$f":"(SUMPRODUCT(($A$3:$A63>($A943-VLOOKUP(AI$881,'F. UL & OPEX flat rates'!$B$2:$G$43,5)))*1,AI$3:AI63)+AI767)*VLOOKUP(AI$881,'F. UL & OPEX flat rates'!$B$2:$G$43,6,0)","v":0},{"$f":"(SUMPRODUCT(($A$3:$A63>($A943-VLOOKUP(AJ$881,'F. UL & OPEX flat rates'!$B$2:$G$43,5)))*1,AJ$3:AJ63)+AJ767)*VLOOKUP(AJ$881,'F. UL & OPEX flat rates'!$B$2:$G$43,6,0)","v":0},{"$f":"(SUMPRODUCT(($A$3:$A63>($A943-VLOOKUP(AK$881,'F. UL & OPEX flat rates'!$B$2:$G$43,5)))*1,AK$3:AK63)+AK767)*VLOOKUP(AK$881,'F. UL & OPEX flat rates'!$B$2:$G$43,6,0)","v":0},{"$f":"(SUMPRODUCT(($A$3:$A63>($A943-VLOOKUP(AL$881,'F. UL & OPEX flat rates'!$B$2:$G$43,5)))*1,AL$3:AL63)+AL767)*VLOOKUP(AL$881,'F. UL & OPEX flat rates'!$B$2:$G$43,6,0)","v":0},{"$f":"(SUMPRODUCT(($A$3:$A63>($A943-VLOOKUP(AM$881,'F. UL & OPEX flat rates'!$B$2:$G$43,5)))*1,AM$3:AM63)+AM767)*VLOOKUP(AM$881,'F. UL & OPEX flat rates'!$B$2:$G$43,6,0)","v":0},{"$f":"(SUMPRODUCT(($A$3:$A63>($A943-VLOOKUP(AN$881,'F. UL & OPEX flat rates'!$B$2:$G$43,5)))*1,AN$3:AN63)+AN767)*VLOOKUP(AN$881,'F. UL & OPEX flat rates'!$B$2:$G$43,6,0)","v":0},{"$f":"(SUMPRODUCT(($A$3:$A63>($A943-VLOOKUP(AO$881,'F. UL & OPEX flat rates'!$B$2:$G$43,5)))*1,AO$3:AO63)+AO767)*VLOOKUP(AO$881,'F. UL & OPEX flat rates'!$B$2:$G$43,6,0)","v":0},{"$f":"(SUMPRODUCT(($A$3:$A63>($A943-VLOOKUP(AP$881,'F. UL & OPEX flat rates'!$B$2:$G$43,5)))*1,AP$3:AP63)+AP767)*VLOOKUP(AP$881,'F. UL & OPEX flat rates'!$B$2:$G$43,6,0)","v":0},{"$f":"(SUMPRODUCT(($A$3:$A63>($A943-VLOOKUP(AQ$881,'F. UL & OPEX flat rates'!$B$2:$G$43,5)))*1,AQ$3:AQ63)+AQ767)*VLOOKUP(AQ$881,'F. UL & OPEX flat rates'!$B$2:$G$43,6,0)","v":0}]
[2077,0,{"$f":"(SUMPRODUCT(($A$3:$A64>($A944-VLOOKUP(C$881,'F. UL & OPEX flat rates'!$B$2:$G$43,5)))*1,C$3:C64)+C768)*VLOOKUP(C$881,'F. UL & OPEX flat rates'!$B$2:$G$43,6,0)","v":0},{"$f":"(SUMPRODUCT(($A$3:$A64>($A944-VLOOKUP(D$881,'F. UL & OPEX flat rates'!$B$2:$G$43,5)))*1,D$3:D64)+D768)*VLOOKUP(D$881,'F. UL & OPEX flat rates'!$B$2:$G$43,6,0)","v":0},{"$f":"(SUMPRODUCT(($A$3:$A64>($A944-VLOOKUP(E$881,'F. UL & OPEX flat rates'!$B$2:$G$43,5)))*1,E$3:E64)+E768)*VLOOKUP(E$881,'F. UL & OPEX flat rates'!$B$2:$G$43,6,0)","v":0},{"$f":"(SUMPRODUCT(($A$3:$A64>($A944-VLOOKUP(F$881,'F. UL & OPEX flat rates'!$B$2:$G$43,5)))*1,F$3:F64)+F768)*VLOOKUP(F$881,'F. UL & OPEX flat rates'!$B$2:$G$43,6,0)","v":0},{"$f":"(SUMPRODUCT(($A$3:$A64>($A944-VLOOKUP(G$881,'F. UL & OPEX flat rates'!$B$2:$G$43,5)))*1,G$3:G64)+G768)*VLOOKUP(G$881,'F. UL & OPEX flat rates'!$B$2:$G$43,6,0)","v":0},{"$f":"(SUMPRODUCT(($A$3:$A64>($A944-VLOOKUP(H$881,'F. UL & OPEX flat rates'!$B$2:$G$43,5)))*1,H$3:H64)+H768)*VLOOKUP(H$881,'F. UL & OPEX flat rates'!$B$2:$G$43,6,0)","v":0},{"$f":"(SUMPRODUCT(($A$3:$A64>($A944-VLOOKUP(I$881,'F. UL & OPEX flat rates'!$B$2:$G$43,5)))*1,I$3:I64)+I768)*VLOOKUP(I$881,'F. UL & OPEX flat rates'!$B$2:$G$43,6,0)","v":0},{"$f":"(SUMPRODUCT(($A$3:$A64>($A944-VLOOKUP(J$881,'F. UL & OPEX flat rates'!$B$2:$G$43,5)))*1,J$3:J64)+J768)*VLOOKUP(J$881,'F. UL & OPEX flat rates'!$B$2:$G$43,6,0)","v":0},{"$f":"(SUMPRODUCT(($A$3:$A64>($A944-VLOOKUP(K$881,'F. UL & OPEX flat rates'!$B$2:$G$43,5)))*1,K$3:K64)+K768)*VLOOKUP(K$881,'F. UL & OPEX flat rates'!$B$2:$G$43,6,0)","v":0},{"$f":"(SUMPRODUCT(($A$3:$A64>($A944-VLOOKUP(L$881,'F. UL & OPEX flat rates'!$B$2:$G$43,5)))*1,L$3:L64)+L768)*VLOOKUP(L$881,'F. UL & OPEX flat rates'!$B$2:$G$43,6,0)","v":0},{"$f":"(SUMPRODUCT(($A$3:$A64>($A944-VLOOKUP(M$881,'F. UL & OPEX flat rates'!$B$2:$G$43,5)))*1,M$3:M64)+M768)*VLOOKUP(M$881,'F. UL & OPEX flat rates'!$B$2:$G$43,6,0)","v":0},{"$f":"(SUMPRODUCT(($A$3:$A64>($A944-VLOOKUP(N$881,'F. UL & OPEX flat rates'!$B$2:$G$43,5)))*1,N$3:N64)+N768)*VLOOKUP(N$881,'F. UL & OPEX flat rates'!$B$2:$G$43,6,0)","v":0},{"$f":"(SUMPRODUCT(($A$3:$A64>($A944-VLOOKUP(O$881,'F. UL & OPEX flat rates'!$B$2:$G$43,5)))*1,O$3:O64)+O768)*VLOOKUP(O$881,'F. UL & OPEX flat rates'!$B$2:$G$43,6,0)","v":0},{"$f":"(SUMPRODUCT(($A$3:$A64>($A944-VLOOKUP(P$881,'F. UL & OPEX flat rates'!$B$2:$G$43,5)))*1,P$3:P64)+P768)*VLOOKUP(P$881,'F. UL & OPEX flat rates'!$B$2:$G$43,6,0)","v":0},{"$f":"(SUMPRODUCT(($A$3:$A64>($A944-VLOOKUP(Q$881,'F. UL & OPEX flat rates'!$B$2:$G$43,5)))*1,Q$3:Q64)+Q768)*VLOOKUP(Q$881,'F. UL & OPEX flat rates'!$B$2:$G$43,6,0)","v":0},{"$f":"(SUMPRODUCT(($A$3:$A64>($A944-VLOOKUP(R$881,'F. UL & OPEX flat rates'!$B$2:$G$43,5)))*1,R$3:R64)+R768)*VLOOKUP(R$881,'F. UL & OPEX flat rates'!$B$2:$G$43,6,0)","v":0},{"$f":"(SUMPRODUCT(($A$3:$A64>($A944-VLOOKUP(S$881,'F. UL & OPEX flat rates'!$B$2:$G$43,5)))*1,S$3:S64)+S768)*VLOOKUP(S$881,'F. UL & OPEX flat rates'!$B$2:$G$43,6,0)","v":0},{"$f":"(SUMPRODUCT(($A$3:$A64>($A944-VLOOKUP(T$881,'F. UL & OPEX flat rates'!$B$2:$G$43,5)))*1,T$3:T64)+T768)*VLOOKUP(T$881,'F. UL & OPEX flat rates'!$B$2:$G$43,6,0)","v":0},{"$f":"(SUMPRODUCT(($A$3:$A64>($A944-VLOOKUP(U$881,'F. UL & OPEX flat rates'!$B$2:$G$43,5)))*1,U$3:U64)+U768)*VLOOKUP(U$881,'F. UL & OPEX flat rates'!$B$2:$G$43,6,0)","v":0},{"$f":"(SUMPRODUCT(($A$3:$A64>($A944-VLOOKUP(V$881,'F. UL & OPEX flat rates'!$B$2:$G$43,5)))*1,V$3:V64)+V768)*VLOOKUP(V$881,'F. UL & OPEX flat rates'!$B$2:$G$43,6,0)","v":0},{"$f":"(SUMPRODUCT(($A$3:$A64>($A944-VLOOKUP(W$881,'F. UL & OPEX flat rates'!$B$2:$G$43,5)))*1,W$3:W64)+W768)*VLOOKUP(W$881,'F. UL & OPEX flat rates'!$B$2:$G$43,6,0)","v":0},{"$f":"(SUMPRODUCT(($A$3:$A64>($A944-VLOOKUP(X$881,'F. UL & OPEX flat rates'!$B$2:$G$43,5)))*1,X$3:X64)+X768)*VLOOKUP(X$881,'F. UL & OPEX flat rates'!$B$2:$G$43,6,0)","v":0},{"$f":"(SUMPRODUCT(($A$3:$A64>($A944-VLOOKUP(Y$881,'F. UL & OPEX flat rates'!$B$2:$G$43,5)))*1,Y$3:Y64)+Y768)*VLOOKUP(Y$881,'F. UL & OPEX flat rates'!$B$2:$G$43,6,0)","v":0},{"$f":"(SUMPRODUCT(($A$3:$A64>($A944-VLOOKUP(Z$881,'F. UL & OPEX flat rates'!$B$2:$G$43,5)))*1,Z$3:Z64)+Z768)*VLOOKUP(Z$881,'F. UL & OPEX flat rates'!$B$2:$G$43,6,0)","v":0},{"$f":"(SUMPRODUCT(($A$3:$A64>($A944-VLOOKUP(AA$881,'F. UL & OPEX flat rates'!$B$2:$G$43,5)))*1,AA$3:AA64)+AA768)*VLOOKUP(AA$881,'F. UL & OPEX flat rates'!$B$2:$G$43,6,0)","v":0},{"$f":"(SUMPRODUCT(($A$3:$A64>($A944-VLOOKUP(AB$881,'F. UL & OPEX flat rates'!$B$2:$G$43,5)))*1,AB$3:AB64)+AB768)*VLOOKUP(AB$881,'F. UL & OPEX flat rates'!$B$2:$G$43,6,0)","v":0},{"$f":"(SUMPRODUCT(($A$3:$A64>($A944-VLOOKUP(AC$881,'F. UL & OPEX flat rates'!$B$2:$G$43,5)))*1,AC$3:AC64)+AC768)*VLOOKUP(AC$881,'F. UL & OPEX flat rates'!$B$2:$G$43,6,0)","v":0},{"$f":"(SUMPRODUCT(($A$3:$A64>($A944-VLOOKUP(AD$881,'F. UL & OPEX flat rates'!$B$2:$G$43,5)))*1,AD$3:AD64)+AD768)*VLOOKUP(AD$881,'F. UL & OPEX flat rates'!$B$2:$G$43,6,0)","v":0},{"$f":"(SUMPRODUCT(($A$3:$A64>($A944-VLOOKUP(AE$881,'F. UL & OPEX flat rates'!$B$2:$G$43,5)))*1,AE$3:AE64)+AE768)*VLOOKUP(AE$881,'F. UL & OPEX flat rates'!$B$2:$G$43,6,0)","v":0},{"$f":"(SUMPRODUCT(($A$3:$A64>($A944-VLOOKUP(AF$881,'F. UL & OPEX flat rates'!$B$2:$G$43,5)))*1,AF$3:AF64)+AF768)*VLOOKUP(AF$881,'F. UL & OPEX flat rates'!$B$2:$G$43,6,0)","v":0},{"$f":"(SUMPRODUCT(($A$3:$A64>($A944-VLOOKUP(AG$881,'F. UL & OPEX flat rates'!$B$2:$G$43,5)))*1,AG$3:AG64)+AG768)*VLOOKUP(AG$881,'F. UL & OPEX flat rates'!$B$2:$G$43,6,0)","v":0},{"$f":"(SUMPRODUCT(($A$3:$A64>($A944-VLOOKUP(AH$881,'F. UL & OPEX flat rates'!$B$2:$G$43,5)))*1,AH$3:AH64)+AH768)*VLOOKUP(AH$881,'F. UL & OPEX flat rates'!$B$2:$G$43,6,0)","v":0},{"$f":"(SUMPRODUCT(($A$3:$A64>($A944-VLOOKUP(AI$881,'F. UL & OPEX flat rates'!$B$2:$G$43,5)))*1,AI$3:AI64)+AI768)*VLOOKUP(AI$881,'F. UL & OPEX flat rates'!$B$2:$G$43,6,0)","v":0},{"$f":"(SUMPRODUCT(($A$3:$A64>($A944-VLOOKUP(AJ$881,'F. UL & OPEX flat rates'!$B$2:$G$43,5)))*1,AJ$3:AJ64)+AJ768)*VLOOKUP(AJ$881,'F. UL & OPEX flat rates'!$B$2:$G$43,6,0)","v":0},{"$f":"(SUMPRODUCT(($A$3:$A64>($A944-VLOOKUP(AK$881,'F. UL & OPEX flat rates'!$B$2:$G$43,5)))*1,AK$3:AK64)+AK768)*VLOOKUP(AK$881,'F. UL & OPEX flat rates'!$B$2:$G$43,6,0)","v":0},{"$f":"(SUMPRODUCT(($A$3:$A64>($A944-VLOOKUP(AL$881,'F. UL & OPEX flat rates'!$B$2:$G$43,5)))*1,AL$3:AL64)+AL768)*VLOOKUP(AL$881,'F. UL & OPEX flat rates'!$B$2:$G$43,6,0)","v":0},{"$f":"(SUMPRODUCT(($A$3:$A64>($A944-VLOOKUP(AM$881,'F. UL & OPEX flat rates'!$B$2:$G$43,5)))*1,AM$3:AM64)+AM768)*VLOOKUP(AM$881,'F. UL & OPEX flat rates'!$B$2:$G$43,6,0)","v":0},{"$f":"(SUMPRODUCT(($A$3:$A64>($A944-VLOOKUP(AN$881,'F. UL & OPEX flat rates'!$B$2:$G$43,5)))*1,AN$3:AN64)+AN768)*VLOOKUP(AN$881,'F. UL & OPEX flat rates'!$B$2:$G$43,6,0)","v":0},{"$f":"(SUMPRODUCT(($A$3:$A64>($A944-VLOOKUP(AO$881,'F. UL & OPEX flat rates'!$B$2:$G$43,5)))*1,AO$3:AO64)+AO768)*VLOOKUP(AO$881,'F. UL & OPEX flat rates'!$B$2:$G$43,6,0)","v":0},{"$f":"(SUMPRODUCT(($A$3:$A64>($A944-VLOOKUP(AP$881,'F. UL & OPEX flat rates'!$B$2:$G$43,5)))*1,AP$3:AP64)+AP768)*VLOOKUP(AP$881,'F. UL & OPEX flat rates'!$B$2:$G$43,6,0)","v":0},{"$f":"(SUMPRODUCT(($A$3:$A64>($A944-VLOOKUP(AQ$881,'F. UL & OPEX flat rates'!$B$2:$G$43,5)))*1,AQ$3:AQ64)+AQ768)*VLOOKUP(AQ$881,'F. UL & OPEX flat rates'!$B$2:$G$43,6,0)","v":0}]
[2078,0,{"$f":"(SUMPRODUCT(($A$3:$A65>($A945-VLOOKUP(C$881,'F. UL & OPEX flat rates'!$B$2:$G$43,5)))*1,C$3:C65)+C769)*VLOOKUP(C$881,'F. UL & OPEX flat rates'!$B$2:$G$43,6,0)","v":0},{"$f":"(SUMPRODUCT(($A$3:$A65>($A945-VLOOKUP(D$881,'F. UL & OPEX flat rates'!$B$2:$G$43,5)))*1,D$3:D65)+D769)*VLOOKUP(D$881,'F. UL & OPEX flat rates'!$B$2:$G$43,6,0)","v":0},{"$f":"(SUMPRODUCT(($A$3:$A65>($A945-VLOOKUP(E$881,'F. UL & OPEX flat rates'!$B$2:$G$43,5)))*1,E$3:E65)+E769)*VLOOKUP(E$881,'F. UL & OPEX flat rates'!$B$2:$G$43,6,0)","v":0},{"$f":"(SUMPRODUCT(($A$3:$A65>($A945-VLOOKUP(F$881,'F. UL & OPEX flat rates'!$B$2:$G$43,5)))*1,F$3:F65)+F769)*VLOOKUP(F$881,'F. UL & OPEX flat rates'!$B$2:$G$43,6,0)","v":0},{"$f":"(SUMPRODUCT(($A$3:$A65>($A945-VLOOKUP(G$881,'F. UL & OPEX flat rates'!$B$2:$G$43,5)))*1,G$3:G65)+G769)*VLOOKUP(G$881,'F. UL & OPEX flat rates'!$B$2:$G$43,6,0)","v":0},{"$f":"(SUMPRODUCT(($A$3:$A65>($A945-VLOOKUP(H$881,'F. UL & OPEX flat rates'!$B$2:$G$43,5)))*1,H$3:H65)+H769)*VLOOKUP(H$881,'F. UL & OPEX flat rates'!$B$2:$G$43,6,0)","v":0},{"$f":"(SUMPRODUCT(($A$3:$A65>($A945-VLOOKUP(I$881,'F. UL & OPEX flat rates'!$B$2:$G$43,5)))*1,I$3:I65)+I769)*VLOOKUP(I$881,'F. UL & OPEX flat rates'!$B$2:$G$43,6,0)","v":0},{"$f":"(SUMPRODUCT(($A$3:$A65>($A945-VLOOKUP(J$881,'F. UL & OPEX flat rates'!$B$2:$G$43,5)))*1,J$3:J65)+J769)*VLOOKUP(J$881,'F. UL & OPEX flat rates'!$B$2:$G$43,6,0)","v":0},{"$f":"(SUMPRODUCT(($A$3:$A65>($A945-VLOOKUP(K$881,'F. UL & OPEX flat rates'!$B$2:$G$43,5)))*1,K$3:K65)+K769)*VLOOKUP(K$881,'F. UL & OPEX flat rates'!$B$2:$G$43,6,0)","v":0},{"$f":"(SUMPRODUCT(($A$3:$A65>($A945-VLOOKUP(L$881,'F. UL & OPEX flat rates'!$B$2:$G$43,5)))*1,L$3:L65)+L769)*VLOOKUP(L$881,'F. UL & OPEX flat rates'!$B$2:$G$43,6,0)","v":0},{"$f":"(SUMPRODUCT(($A$3:$A65>($A945-VLOOKUP(M$881,'F. UL & OPEX flat rates'!$B$2:$G$43,5)))*1,M$3:M65)+M769)*VLOOKUP(M$881,'F. UL & OPEX flat rates'!$B$2:$G$43,6,0)","v":0},{"$f":"(SUMPRODUCT(($A$3:$A65>($A945-VLOOKUP(N$881,'F. UL & OPEX flat rates'!$B$2:$G$43,5)))*1,N$3:N65)+N769)*VLOOKUP(N$881,'F. UL & OPEX flat rates'!$B$2:$G$43,6,0)","v":0},{"$f":"(SUMPRODUCT(($A$3:$A65>($A945-VLOOKUP(O$881,'F. UL & OPEX flat rates'!$B$2:$G$43,5)))*1,O$3:O65)+O769)*VLOOKUP(O$881,'F. UL & OPEX flat rates'!$B$2:$G$43,6,0)","v":0},{"$f":"(SUMPRODUCT(($A$3:$A65>($A945-VLOOKUP(P$881,'F. UL & OPEX flat rates'!$B$2:$G$43,5)))*1,P$3:P65)+P769)*VLOOKUP(P$881,'F. UL & OPEX flat rates'!$B$2:$G$43,6,0)","v":0},{"$f":"(SUMPRODUCT(($A$3:$A65>($A945-VLOOKUP(Q$881,'F. UL & OPEX flat rates'!$B$2:$G$43,5)))*1,Q$3:Q65)+Q769)*VLOOKUP(Q$881,'F. UL & OPEX flat rates'!$B$2:$G$43,6,0)","v":0},{"$f":"(SUMPRODUCT(($A$3:$A65>($A945-VLOOKUP(R$881,'F. UL & OPEX flat rates'!$B$2:$G$43,5)))*1,R$3:R65)+R769)*VLOOKUP(R$881,'F. UL & OPEX flat rates'!$B$2:$G$43,6,0)","v":0},{"$f":"(SUMPRODUCT(($A$3:$A65>($A945-VLOOKUP(S$881,'F. UL & OPEX flat rates'!$B$2:$G$43,5)))*1,S$3:S65)+S769)*VLOOKUP(S$881,'F. UL & OPEX flat rates'!$B$2:$G$43,6,0)","v":0},{"$f":"(SUMPRODUCT(($A$3:$A65>($A945-VLOOKUP(T$881,'F. UL & OPEX flat rates'!$B$2:$G$43,5)))*1,T$3:T65)+T769)*VLOOKUP(T$881,'F. UL & OPEX flat rates'!$B$2:$G$43,6,0)","v":0},{"$f":"(SUMPRODUCT(($A$3:$A65>($A945-VLOOKUP(U$881,'F. UL & OPEX flat rates'!$B$2:$G$43,5)))*1,U$3:U65)+U769)*VLOOKUP(U$881,'F. UL & OPEX flat rates'!$B$2:$G$43,6,0)","v":0},{"$f":"(SUMPRODUCT(($A$3:$A65>($A945-VLOOKUP(V$881,'F. UL & OPEX flat rates'!$B$2:$G$43,5)))*1,V$3:V65)+V769)*VLOOKUP(V$881,'F. UL & OPEX flat rates'!$B$2:$G$43,6,0)","v":0},{"$f":"(SUMPRODUCT(($A$3:$A65>($A945-VLOOKUP(W$881,'F. UL & OPEX flat rates'!$B$2:$G$43,5)))*1,W$3:W65)+W769)*VLOOKUP(W$881,'F. UL & OPEX flat rates'!$B$2:$G$43,6,0)","v":0},{"$f":"(SUMPRODUCT(($A$3:$A65>($A945-VLOOKUP(X$881,'F. UL & OPEX flat rates'!$B$2:$G$43,5)))*1,X$3:X65)+X769)*VLOOKUP(X$881,'F. UL & OPEX flat rates'!$B$2:$G$43,6,0)","v":0},{"$f":"(SUMPRODUCT(($A$3:$A65>($A945-VLOOKUP(Y$881,'F. UL & OPEX flat rates'!$B$2:$G$43,5)))*1,Y$3:Y65)+Y769)*VLOOKUP(Y$881,'F. UL & OPEX flat rates'!$B$2:$G$43,6,0)","v":0},{"$f":"(SUMPRODUCT(($A$3:$A65>($A945-VLOOKUP(Z$881,'F. UL & OPEX flat rates'!$B$2:$G$43,5)))*1,Z$3:Z65)+Z769)*VLOOKUP(Z$881,'F. UL & OPEX flat rates'!$B$2:$G$43,6,0)","v":0},{"$f":"(SUMPRODUCT(($A$3:$A65>($A945-VLOOKUP(AA$881,'F. UL & OPEX flat rates'!$B$2:$G$43,5)))*1,AA$3:AA65)+AA769)*VLOOKUP(AA$881,'F. UL & OPEX flat rates'!$B$2:$G$43,6,0)","v":0},{"$f":"(SUMPRODUCT(($A$3:$A65>($A945-VLOOKUP(AB$881,'F. UL & OPEX flat rates'!$B$2:$G$43,5)))*1,AB$3:AB65)+AB769)*VLOOKUP(AB$881,'F. UL & OPEX flat rates'!$B$2:$G$43,6,0)","v":0},{"$f":"(SUMPRODUCT(($A$3:$A65>($A945-VLOOKUP(AC$881,'F. UL & OPEX flat rates'!$B$2:$G$43,5)))*1,AC$3:AC65)+AC769)*VLOOKUP(AC$881,'F. UL & OPEX flat rates'!$B$2:$G$43,6,0)","v":0},{"$f":"(SUMPRODUCT(($A$3:$A65>($A945-VLOOKUP(AD$881,'F. UL & OPEX flat rates'!$B$2:$G$43,5)))*1,AD$3:AD65)+AD769)*VLOOKUP(AD$881,'F. UL & OPEX flat rates'!$B$2:$G$43,6,0)","v":0},{"$f":"(SUMPRODUCT(($A$3:$A65>($A945-VLOOKUP(AE$881,'F. UL & OPEX flat rates'!$B$2:$G$43,5)))*1,AE$3:AE65)+AE769)*VLOOKUP(AE$881,'F. UL & OPEX flat rates'!$B$2:$G$43,6,0)","v":0},{"$f":"(SUMPRODUCT(($A$3:$A65>($A945-VLOOKUP(AF$881,'F. UL & OPEX flat rates'!$B$2:$G$43,5)))*1,AF$3:AF65)+AF769)*VLOOKUP(AF$881,'F. UL & OPEX flat rates'!$B$2:$G$43,6,0)","v":0},{"$f":"(SUMPRODUCT(($A$3:$A65>($A945-VLOOKUP(AG$881,'F. UL & OPEX flat rates'!$B$2:$G$43,5)))*1,AG$3:AG65)+AG769)*VLOOKUP(AG$881,'F. UL & OPEX flat rates'!$B$2:$G$43,6,0)","v":0},{"$f":"(SUMPRODUCT(($A$3:$A65>($A945-VLOOKUP(AH$881,'F. UL & OPEX flat rates'!$B$2:$G$43,5)))*1,AH$3:AH65)+AH769)*VLOOKUP(AH$881,'F. UL & OPEX flat rates'!$B$2:$G$43,6,0)","v":0},{"$f":"(SUMPRODUCT(($A$3:$A65>($A945-VLOOKUP(AI$881,'F. UL & OPEX flat rates'!$B$2:$G$43,5)))*1,AI$3:AI65)+AI769)*VLOOKUP(AI$881,'F. UL & OPEX flat rates'!$B$2:$G$43,6,0)","v":0},{"$f":"(SUMPRODUCT(($A$3:$A65>($A945-VLOOKUP(AJ$881,'F. UL & OPEX flat rates'!$B$2:$G$43,5)))*1,AJ$3:AJ65)+AJ769)*VLOOKUP(AJ$881,'F. UL & OPEX flat rates'!$B$2:$G$43,6,0)","v":0},{"$f":"(SUMPRODUCT(($A$3:$A65>($A945-VLOOKUP(AK$881,'F. UL & OPEX flat rates'!$B$2:$G$43,5)))*1,AK$3:AK65)+AK769)*VLOOKUP(AK$881,'F. UL & OPEX flat rates'!$B$2:$G$43,6,0)","v":0},{"$f":"(SUMPRODUCT(($A$3:$A65>($A945-VLOOKUP(AL$881,'F. UL & OPEX flat rates'!$B$2:$G$43,5)))*1,AL$3:AL65)+AL769)*VLOOKUP(AL$881,'F. UL & OPEX flat rates'!$B$2:$G$43,6,0)","v":0},{"$f":"(SUMPRODUCT(($A$3:$A65>($A945-VLOOKUP(AM$881,'F. UL & OPEX flat rates'!$B$2:$G$43,5)))*1,AM$3:AM65)+AM769)*VLOOKUP(AM$881,'F. UL & OPEX flat rates'!$B$2:$G$43,6,0)","v":0},{"$f":"(SUMPRODUCT(($A$3:$A65>($A945-VLOOKUP(AN$881,'F. UL & OPEX flat rates'!$B$2:$G$43,5)))*1,AN$3:AN65)+AN769)*VLOOKUP(AN$881,'F. UL & OPEX flat rates'!$B$2:$G$43,6,0)","v":0},{"$f":"(SUMPRODUCT(($A$3:$A65>($A945-VLOOKUP(AO$881,'F. UL & OPEX flat rates'!$B$2:$G$43,5)))*1,AO$3:AO65)+AO769)*VLOOKUP(AO$881,'F. UL & OPEX flat rates'!$B$2:$G$43,6,0)","v":0},{"$f":"(SUMPRODUCT(($A$3:$A65>($A945-VLOOKUP(AP$881,'F. UL & OPEX flat rates'!$B$2:$G$43,5)))*1,AP$3:AP65)+AP769)*VLOOKUP(AP$881,'F. UL & OPEX flat rates'!$B$2:$G$43,6,0)","v":0},{"$f":"(SUMPRODUCT(($A$3:$A65>($A945-VLOOKUP(AQ$881,'F. UL & OPEX flat rates'!$B$2:$G$43,5)))*1,AQ$3:AQ65)+AQ769)*VLOOKUP(AQ$881,'F. UL & OPEX flat rates'!$B$2:$G$43,6,0)","v":0}]
[2079,0,{"$f":"(SUMPRODUCT(($A$3:$A66>($A946-VLOOKUP(C$881,'F. UL & OPEX flat rates'!$B$2:$G$43,5)))*1,C$3:C66)+C770)*VLOOKUP(C$881,'F. UL & OPEX flat rates'!$B$2:$G$43,6,0)","v":0},{"$f":"(SUMPRODUCT(($A$3:$A66>($A946-VLOOKUP(D$881,'F. UL & OPEX flat rates'!$B$2:$G$43,5)))*1,D$3:D66)+D770)*VLOOKUP(D$881,'F. UL & OPEX flat rates'!$B$2:$G$43,6,0)","v":0},{"$f":"(SUMPRODUCT(($A$3:$A66>($A946-VLOOKUP(E$881,'F. UL & OPEX flat rates'!$B$2:$G$43,5)))*1,E$3:E66)+E770)*VLOOKUP(E$881,'F. UL & OPEX flat rates'!$B$2:$G$43,6,0)","v":0},{"$f":"(SUMPRODUCT(($A$3:$A66>($A946-VLOOKUP(F$881,'F. UL & OPEX flat rates'!$B$2:$G$43,5)))*1,F$3:F66)+F770)*VLOOKUP(F$881,'F. UL & OPEX flat rates'!$B$2:$G$43,6,0)","v":0},{"$f":"(SUMPRODUCT(($A$3:$A66>($A946-VLOOKUP(G$881,'F. UL & OPEX flat rates'!$B$2:$G$43,5)))*1,G$3:G66)+G770)*VLOOKUP(G$881,'F. UL & OPEX flat rates'!$B$2:$G$43,6,0)","v":0},{"$f":"(SUMPRODUCT(($A$3:$A66>($A946-VLOOKUP(H$881,'F. UL & OPEX flat rates'!$B$2:$G$43,5)))*1,H$3:H66)+H770)*VLOOKUP(H$881,'F. UL & OPEX flat rates'!$B$2:$G$43,6,0)","v":0},{"$f":"(SUMPRODUCT(($A$3:$A66>($A946-VLOOKUP(I$881,'F. UL & OPEX flat rates'!$B$2:$G$43,5)))*1,I$3:I66)+I770)*VLOOKUP(I$881,'F. UL & OPEX flat rates'!$B$2:$G$43,6,0)","v":0},{"$f":"(SUMPRODUCT(($A$3:$A66>($A946-VLOOKUP(J$881,'F. UL & OPEX flat rates'!$B$2:$G$43,5)))*1,J$3:J66)+J770)*VLOOKUP(J$881,'F. UL & OPEX flat rates'!$B$2:$G$43,6,0)","v":0},{"$f":"(SUMPRODUCT(($A$3:$A66>($A946-VLOOKUP(K$881,'F. UL & OPEX flat rates'!$B$2:$G$43,5)))*1,K$3:K66)+K770)*VLOOKUP(K$881,'F. UL & OPEX flat rates'!$B$2:$G$43,6,0)","v":0},{"$f":"(SUMPRODUCT(($A$3:$A66>($A946-VLOOKUP(L$881,'F. UL & OPEX flat rates'!$B$2:$G$43,5)))*1,L$3:L66)+L770)*VLOOKUP(L$881,'F. UL & OPEX flat rates'!$B$2:$G$43,6,0)","v":0},{"$f":"(SUMPRODUCT(($A$3:$A66>($A946-VLOOKUP(M$881,'F. UL & OPEX flat rates'!$B$2:$G$43,5)))*1,M$3:M66)+M770)*VLOOKUP(M$881,'F. UL & OPEX flat rates'!$B$2:$G$43,6,0)","v":0},{"$f":"(SUMPRODUCT(($A$3:$A66>($A946-VLOOKUP(N$881,'F. UL & OPEX flat rates'!$B$2:$G$43,5)))*1,N$3:N66)+N770)*VLOOKUP(N$881,'F. UL & OPEX flat rates'!$B$2:$G$43,6,0)","v":0},{"$f":"(SUMPRODUCT(($A$3:$A66>($A946-VLOOKUP(O$881,'F. UL & OPEX flat rates'!$B$2:$G$43,5)))*1,O$3:O66)+O770)*VLOOKUP(O$881,'F. UL & OPEX flat rates'!$B$2:$G$43,6,0)","v":0},{"$f":"(SUMPRODUCT(($A$3:$A66>($A946-VLOOKUP(P$881,'F. UL & OPEX flat rates'!$B$2:$G$43,5)))*1,P$3:P66)+P770)*VLOOKUP(P$881,'F. UL & OPEX flat rates'!$B$2:$G$43,6,0)","v":0},{"$f":"(SUMPRODUCT(($A$3:$A66>($A946-VLOOKUP(Q$881,'F. UL & OPEX flat rates'!$B$2:$G$43,5)))*1,Q$3:Q66)+Q770)*VLOOKUP(Q$881,'F. UL & OPEX flat rates'!$B$2:$G$43,6,0)","v":0},{"$f":"(SUMPRODUCT(($A$3:$A66>($A946-VLOOKUP(R$881,'F. UL & OPEX flat rates'!$B$2:$G$43,5)))*1,R$3:R66)+R770)*VLOOKUP(R$881,'F. UL & OPEX flat rates'!$B$2:$G$43,6,0)","v":0},{"$f":"(SUMPRODUCT(($A$3:$A66>($A946-VLOOKUP(S$881,'F. UL & OPEX flat rates'!$B$2:$G$43,5)))*1,S$3:S66)+S770)*VLOOKUP(S$881,'F. UL & OPEX flat rates'!$B$2:$G$43,6,0)","v":0},{"$f":"(SUMPRODUCT(($A$3:$A66>($A946-VLOOKUP(T$881,'F. UL & OPEX flat rates'!$B$2:$G$43,5)))*1,T$3:T66)+T770)*VLOOKUP(T$881,'F. UL & OPEX flat rates'!$B$2:$G$43,6,0)","v":0},{"$f":"(SUMPRODUCT(($A$3:$A66>($A946-VLOOKUP(U$881,'F. UL & OPEX flat rates'!$B$2:$G$43,5)))*1,U$3:U66)+U770)*VLOOKUP(U$881,'F. UL & OPEX flat rates'!$B$2:$G$43,6,0)","v":0},{"$f":"(SUMPRODUCT(($A$3:$A66>($A946-VLOOKUP(V$881,'F. UL & OPEX flat rates'!$B$2:$G$43,5)))*1,V$3:V66)+V770)*VLOOKUP(V$881,'F. UL & OPEX flat rates'!$B$2:$G$43,6,0)","v":0},{"$f":"(SUMPRODUCT(($A$3:$A66>($A946-VLOOKUP(W$881,'F. UL & OPEX flat rates'!$B$2:$G$43,5)))*1,W$3:W66)+W770)*VLOOKUP(W$881,'F. UL & OPEX flat rates'!$B$2:$G$43,6,0)","v":0},{"$f":"(SUMPRODUCT(($A$3:$A66>($A946-VLOOKUP(X$881,'F. UL & OPEX flat rates'!$B$2:$G$43,5)))*1,X$3:X66)+X770)*VLOOKUP(X$881,'F. UL & OPEX flat rates'!$B$2:$G$43,6,0)","v":0},{"$f":"(SUMPRODUCT(($A$3:$A66>($A946-VLOOKUP(Y$881,'F. UL & OPEX flat rates'!$B$2:$G$43,5)))*1,Y$3:Y66)+Y770)*VLOOKUP(Y$881,'F. UL & OPEX flat rates'!$B$2:$G$43,6,0)","v":0},{"$f":"(SUMPRODUCT(($A$3:$A66>($A946-VLOOKUP(Z$881,'F. UL & OPEX flat rates'!$B$2:$G$43,5)))*1,Z$3:Z66)+Z770)*VLOOKUP(Z$881,'F. UL & OPEX flat rates'!$B$2:$G$43,6,0)","v":0},{"$f":"(SUMPRODUCT(($A$3:$A66>($A946-VLOOKUP(AA$881,'F. UL & OPEX flat rates'!$B$2:$G$43,5)))*1,AA$3:AA66)+AA770)*VLOOKUP(AA$881,'F. UL & OPEX flat rates'!$B$2:$G$43,6,0)","v":0},{"$f":"(SUMPRODUCT(($A$3:$A66>($A946-VLOOKUP(AB$881,'F. UL & OPEX flat rates'!$B$2:$G$43,5)))*1,AB$3:AB66)+AB770)*VLOOKUP(AB$881,'F. UL & OPEX flat rates'!$B$2:$G$43,6,0)","v":0},{"$f":"(SUMPRODUCT(($A$3:$A66>($A946-VLOOKUP(AC$881,'F. UL & OPEX flat rates'!$B$2:$G$43,5)))*1,AC$3:AC66)+AC770)*VLOOKUP(AC$881,'F. UL & OPEX flat rates'!$B$2:$G$43,6,0)","v":0},{"$f":"(SUMPRODUCT(($A$3:$A66>($A946-VLOOKUP(AD$881,'F. UL & OPEX flat rates'!$B$2:$G$43,5)))*1,AD$3:AD66)+AD770)*VLOOKUP(AD$881,'F. UL & OPEX flat rates'!$B$2:$G$43,6,0)","v":0},{"$f":"(SUMPRODUCT(($A$3:$A66>($A946-VLOOKUP(AE$881,'F. UL & OPEX flat rates'!$B$2:$G$43,5)))*1,AE$3:AE66)+AE770)*VLOOKUP(AE$881,'F. UL & OPEX flat rates'!$B$2:$G$43,6,0)","v":0},{"$f":"(SUMPRODUCT(($A$3:$A66>($A946-VLOOKUP(AF$881,'F. UL & OPEX flat rates'!$B$2:$G$43,5)))*1,AF$3:AF66)+AF770)*VLOOKUP(AF$881,'F. UL & OPEX flat rates'!$B$2:$G$43,6,0)","v":0},{"$f":"(SUMPRODUCT(($A$3:$A66>($A946-VLOOKUP(AG$881,'F. UL & OPEX flat rates'!$B$2:$G$43,5)))*1,AG$3:AG66)+AG770)*VLOOKUP(AG$881,'F. UL & OPEX flat rates'!$B$2:$G$43,6,0)","v":0},{"$f":"(SUMPRODUCT(($A$3:$A66>($A946-VLOOKUP(AH$881,'F. UL & OPEX flat rates'!$B$2:$G$43,5)))*1,AH$3:AH66)+AH770)*VLOOKUP(AH$881,'F. UL & OPEX flat rates'!$B$2:$G$43,6,0)","v":0},{"$f":"(SUMPRODUCT(($A$3:$A66>($A946-VLOOKUP(AI$881,'F. UL & OPEX flat rates'!$B$2:$G$43,5)))*1,AI$3:AI66)+AI770)*VLOOKUP(AI$881,'F. UL & OPEX flat rates'!$B$2:$G$43,6,0)","v":0},{"$f":"(SUMPRODUCT(($A$3:$A66>($A946-VLOOKUP(AJ$881,'F. UL & OPEX flat rates'!$B$2:$G$43,5)))*1,AJ$3:AJ66)+AJ770)*VLOOKUP(AJ$881,'F. UL & OPEX flat rates'!$B$2:$G$43,6,0)","v":0},{"$f":"(SUMPRODUCT(($A$3:$A66>($A946-VLOOKUP(AK$881,'F. UL & OPEX flat rates'!$B$2:$G$43,5)))*1,AK$3:AK66)+AK770)*VLOOKUP(AK$881,'F. UL & OPEX flat rates'!$B$2:$G$43,6,0)","v":0},{"$f":"(SUMPRODUCT(($A$3:$A66>($A946-VLOOKUP(AL$881,'F. UL & OPEX flat rates'!$B$2:$G$43,5)))*1,AL$3:AL66)+AL770)*VLOOKUP(AL$881,'F. UL & OPEX flat rates'!$B$2:$G$43,6,0)","v":0},{"$f":"(SUMPRODUCT(($A$3:$A66>($A946-VLOOKUP(AM$881,'F. UL & OPEX flat rates'!$B$2:$G$43,5)))*1,AM$3:AM66)+AM770)*VLOOKUP(AM$881,'F. UL & OPEX flat rates'!$B$2:$G$43,6,0)","v":0},{"$f":"(SUMPRODUCT(($A$3:$A66>($A946-VLOOKUP(AN$881,'F. UL & OPEX flat rates'!$B$2:$G$43,5)))*1,AN$3:AN66)+AN770)*VLOOKUP(AN$881,'F. UL & OPEX flat rates'!$B$2:$G$43,6,0)","v":0},{"$f":"(SUMPRODUCT(($A$3:$A66>($A946-VLOOKUP(AO$881,'F. UL & OPEX flat rates'!$B$2:$G$43,5)))*1,AO$3:AO66)+AO770)*VLOOKUP(AO$881,'F. UL & OPEX flat rates'!$B$2:$G$43,6,0)","v":0},{"$f":"(SUMPRODUCT(($A$3:$A66>($A946-VLOOKUP(AP$881,'F. UL & OPEX flat rates'!$B$2:$G$43,5)))*1,AP$3:AP66)+AP770)*VLOOKUP(AP$881,'F. UL & OPEX flat rates'!$B$2:$G$43,6,0)","v":0},{"$f":"(SUMPRODUCT(($A$3:$A66>($A946-VLOOKUP(AQ$881,'F. UL & OPEX flat rates'!$B$2:$G$43,5)))*1,AQ$3:AQ66)+AQ770)*VLOOKUP(AQ$881,'F. UL & OPEX flat rates'!$B$2:$G$43,6,0)","v":0}]
[2080,0,{"$f":"(SUMPRODUCT(($A$3:$A67>($A947-VLOOKUP(C$881,'F. UL & OPEX flat rates'!$B$2:$G$43,5)))*1,C$3:C67)+C771)*VLOOKUP(C$881,'F. UL & OPEX flat rates'!$B$2:$G$43,6,0)","v":0},{"$f":"(SUMPRODUCT(($A$3:$A67>($A947-VLOOKUP(D$881,'F. UL & OPEX flat rates'!$B$2:$G$43,5)))*1,D$3:D67)+D771)*VLOOKUP(D$881,'F. UL & OPEX flat rates'!$B$2:$G$43,6,0)","v":0},{"$f":"(SUMPRODUCT(($A$3:$A67>($A947-VLOOKUP(E$881,'F. UL & OPEX flat rates'!$B$2:$G$43,5)))*1,E$3:E67)+E771)*VLOOKUP(E$881,'F. UL & OPEX flat rates'!$B$2:$G$43,6,0)","v":0},{"$f":"(SUMPRODUCT(($A$3:$A67>($A947-VLOOKUP(F$881,'F. UL & OPEX flat rates'!$B$2:$G$43,5)))*1,F$3:F67)+F771)*VLOOKUP(F$881,'F. UL & OPEX flat rates'!$B$2:$G$43,6,0)","v":0},{"$f":"(SUMPRODUCT(($A$3:$A67>($A947-VLOOKUP(G$881,'F. UL & OPEX flat rates'!$B$2:$G$43,5)))*1,G$3:G67)+G771)*VLOOKUP(G$881,'F. UL & OPEX flat rates'!$B$2:$G$43,6,0)","v":0},{"$f":"(SUMPRODUCT(($A$3:$A67>($A947-VLOOKUP(H$881,'F. UL & OPEX flat rates'!$B$2:$G$43,5)))*1,H$3:H67)+H771)*VLOOKUP(H$881,'F. UL & OPEX flat rates'!$B$2:$G$43,6,0)","v":0},{"$f":"(SUMPRODUCT(($A$3:$A67>($A947-VLOOKUP(I$881,'F. UL & OPEX flat rates'!$B$2:$G$43,5)))*1,I$3:I67)+I771)*VLOOKUP(I$881,'F. UL & OPEX flat rates'!$B$2:$G$43,6,0)","v":0},{"$f":"(SUMPRODUCT(($A$3:$A67>($A947-VLOOKUP(J$881,'F. UL & OPEX flat rates'!$B$2:$G$43,5)))*1,J$3:J67)+J771)*VLOOKUP(J$881,'F. UL & OPEX flat rates'!$B$2:$G$43,6,0)","v":0},{"$f":"(SUMPRODUCT(($A$3:$A67>($A947-VLOOKUP(K$881,'F. UL & OPEX flat rates'!$B$2:$G$43,5)))*1,K$3:K67)+K771)*VLOOKUP(K$881,'F. UL & OPEX flat rates'!$B$2:$G$43,6,0)","v":0},{"$f":"(SUMPRODUCT(($A$3:$A67>($A947-VLOOKUP(L$881,'F. UL & OPEX flat rates'!$B$2:$G$43,5)))*1,L$3:L67)+L771)*VLOOKUP(L$881,'F. UL & OPEX flat rates'!$B$2:$G$43,6,0)","v":0},{"$f":"(SUMPRODUCT(($A$3:$A67>($A947-VLOOKUP(M$881,'F. UL & OPEX flat rates'!$B$2:$G$43,5)))*1,M$3:M67)+M771)*VLOOKUP(M$881,'F. UL & OPEX flat rates'!$B$2:$G$43,6,0)","v":0},{"$f":"(SUMPRODUCT(($A$3:$A67>($A947-VLOOKUP(N$881,'F. UL & OPEX flat rates'!$B$2:$G$43,5)))*1,N$3:N67)+N771)*VLOOKUP(N$881,'F. UL & OPEX flat rates'!$B$2:$G$43,6,0)","v":0},{"$f":"(SUMPRODUCT(($A$3:$A67>($A947-VLOOKUP(O$881,'F. UL & OPEX flat rates'!$B$2:$G$43,5)))*1,O$3:O67)+O771)*VLOOKUP(O$881,'F. UL & OPEX flat rates'!$B$2:$G$43,6,0)","v":0},{"$f":"(SUMPRODUCT(($A$3:$A67>($A947-VLOOKUP(P$881,'F. UL & OPEX flat rates'!$B$2:$G$43,5)))*1,P$3:P67)+P771)*VLOOKUP(P$881,'F. UL & OPEX flat rates'!$B$2:$G$43,6,0)","v":0},{"$f":"(SUMPRODUCT(($A$3:$A67>($A947-VLOOKUP(Q$881,'F. UL & OPEX flat rates'!$B$2:$G$43,5)))*1,Q$3:Q67)+Q771)*VLOOKUP(Q$881,'F. UL & OPEX flat rates'!$B$2:$G$43,6,0)","v":0},{"$f":"(SUMPRODUCT(($A$3:$A67>($A947-VLOOKUP(R$881,'F. UL & OPEX flat rates'!$B$2:$G$43,5)))*1,R$3:R67)+R771)*VLOOKUP(R$881,'F. UL & OPEX flat rates'!$B$2:$G$43,6,0)","v":0},{"$f":"(SUMPRODUCT(($A$3:$A67>($A947-VLOOKUP(S$881,'F. UL & OPEX flat rates'!$B$2:$G$43,5)))*1,S$3:S67)+S771)*VLOOKUP(S$881,'F. UL & OPEX flat rates'!$B$2:$G$43,6,0)","v":0},{"$f":"(SUMPRODUCT(($A$3:$A67>($A947-VLOOKUP(T$881,'F. UL & OPEX flat rates'!$B$2:$G$43,5)))*1,T$3:T67)+T771)*VLOOKUP(T$881,'F. UL & OPEX flat rates'!$B$2:$G$43,6,0)","v":0},{"$f":"(SUMPRODUCT(($A$3:$A67>($A947-VLOOKUP(U$881,'F. UL & OPEX flat rates'!$B$2:$G$43,5)))*1,U$3:U67)+U771)*VLOOKUP(U$881,'F. UL & OPEX flat rates'!$B$2:$G$43,6,0)","v":0},{"$f":"(SUMPRODUCT(($A$3:$A67>($A947-VLOOKUP(V$881,'F. UL & OPEX flat rates'!$B$2:$G$43,5)))*1,V$3:V67)+V771)*VLOOKUP(V$881,'F. UL & OPEX flat rates'!$B$2:$G$43,6,0)","v":0},{"$f":"(SUMPRODUCT(($A$3:$A67>($A947-VLOOKUP(W$881,'F. UL & OPEX flat rates'!$B$2:$G$43,5)))*1,W$3:W67)+W771)*VLOOKUP(W$881,'F. UL & OPEX flat rates'!$B$2:$G$43,6,0)","v":0},{"$f":"(SUMPRODUCT(($A$3:$A67>($A947-VLOOKUP(X$881,'F. UL & OPEX flat rates'!$B$2:$G$43,5)))*1,X$3:X67)+X771)*VLOOKUP(X$881,'F. UL & OPEX flat rates'!$B$2:$G$43,6,0)","v":0},{"$f":"(SUMPRODUCT(($A$3:$A67>($A947-VLOOKUP(Y$881,'F. UL & OPEX flat rates'!$B$2:$G$43,5)))*1,Y$3:Y67)+Y771)*VLOOKUP(Y$881,'F. UL & OPEX flat rates'!$B$2:$G$43,6,0)","v":0},{"$f":"(SUMPRODUCT(($A$3:$A67>($A947-VLOOKUP(Z$881,'F. UL & OPEX flat rates'!$B$2:$G$43,5)))*1,Z$3:Z67)+Z771)*VLOOKUP(Z$881,'F. UL & OPEX flat rates'!$B$2:$G$43,6,0)","v":0},{"$f":"(SUMPRODUCT(($A$3:$A67>($A947-VLOOKUP(AA$881,'F. UL & OPEX flat rates'!$B$2:$G$43,5)))*1,AA$3:AA67)+AA771)*VLOOKUP(AA$881,'F. UL & OPEX flat rates'!$B$2:$G$43,6,0)","v":0},{"$f":"(SUMPRODUCT(($A$3:$A67>($A947-VLOOKUP(AB$881,'F. UL & OPEX flat rates'!$B$2:$G$43,5)))*1,AB$3:AB67)+AB771)*VLOOKUP(AB$881,'F. UL & OPEX flat rates'!$B$2:$G$43,6,0)","v":0},{"$f":"(SUMPRODUCT(($A$3:$A67>($A947-VLOOKUP(AC$881,'F. UL & OPEX flat rates'!$B$2:$G$43,5)))*1,AC$3:AC67)+AC771)*VLOOKUP(AC$881,'F. UL & OPEX flat rates'!$B$2:$G$43,6,0)","v":0},{"$f":"(SUMPRODUCT(($A$3:$A67>($A947-VLOOKUP(AD$881,'F. UL & OPEX flat rates'!$B$2:$G$43,5)))*1,AD$3:AD67)+AD771)*VLOOKUP(AD$881,'F. UL & OPEX flat rates'!$B$2:$G$43,6,0)","v":0},{"$f":"(SUMPRODUCT(($A$3:$A67>($A947-VLOOKUP(AE$881,'F. UL & OPEX flat rates'!$B$2:$G$43,5)))*1,AE$3:AE67)+AE771)*VLOOKUP(AE$881,'F. UL & OPEX flat rates'!$B$2:$G$43,6,0)","v":0},{"$f":"(SUMPRODUCT(($A$3:$A67>($A947-VLOOKUP(AF$881,'F. UL & OPEX flat rates'!$B$2:$G$43,5)))*1,AF$3:AF67)+AF771)*VLOOKUP(AF$881,'F. UL & OPEX flat rates'!$B$2:$G$43,6,0)","v":0},{"$f":"(SUMPRODUCT(($A$3:$A67>($A947-VLOOKUP(AG$881,'F. UL & OPEX flat rates'!$B$2:$G$43,5)))*1,AG$3:AG67)+AG771)*VLOOKUP(AG$881,'F. UL & OPEX flat rates'!$B$2:$G$43,6,0)","v":0},{"$f":"(SUMPRODUCT(($A$3:$A67>($A947-VLOOKUP(AH$881,'F. UL & OPEX flat rates'!$B$2:$G$43,5)))*1,AH$3:AH67)+AH771)*VLOOKUP(AH$881,'F. UL & OPEX flat rates'!$B$2:$G$43,6,0)","v":0},{"$f":"(SUMPRODUCT(($A$3:$A67>($A947-VLOOKUP(AI$881,'F. UL & OPEX flat rates'!$B$2:$G$43,5)))*1,AI$3:AI67)+AI771)*VLOOKUP(AI$881,'F. UL & OPEX flat rates'!$B$2:$G$43,6,0)","v":0},{"$f":"(SUMPRODUCT(($A$3:$A67>($A947-VLOOKUP(AJ$881,'F. UL & OPEX flat rates'!$B$2:$G$43,5)))*1,AJ$3:AJ67)+AJ771)*VLOOKUP(AJ$881,'F. UL & OPEX flat rates'!$B$2:$G$43,6,0)","v":0},{"$f":"(SUMPRODUCT(($A$3:$A67>($A947-VLOOKUP(AK$881,'F. UL & OPEX flat rates'!$B$2:$G$43,5)))*1,AK$3:AK67)+AK771)*VLOOKUP(AK$881,'F. UL & OPEX flat rates'!$B$2:$G$43,6,0)","v":0},{"$f":"(SUMPRODUCT(($A$3:$A67>($A947-VLOOKUP(AL$881,'F. UL & OPEX flat rates'!$B$2:$G$43,5)))*1,AL$3:AL67)+AL771)*VLOOKUP(AL$881,'F. UL & OPEX flat rates'!$B$2:$G$43,6,0)","v":0},{"$f":"(SUMPRODUCT(($A$3:$A67>($A947-VLOOKUP(AM$881,'F. UL & OPEX flat rates'!$B$2:$G$43,5)))*1,AM$3:AM67)+AM771)*VLOOKUP(AM$881,'F. UL & OPEX flat rates'!$B$2:$G$43,6,0)","v":0},{"$f":"(SUMPRODUCT(($A$3:$A67>($A947-VLOOKUP(AN$881,'F. UL & OPEX flat rates'!$B$2:$G$43,5)))*1,AN$3:AN67)+AN771)*VLOOKUP(AN$881,'F. UL & OPEX flat rates'!$B$2:$G$43,6,0)","v":0},{"$f":"(SUMPRODUCT(($A$3:$A67>($A947-VLOOKUP(AO$881,'F. UL & OPEX flat rates'!$B$2:$G$43,5)))*1,AO$3:AO67)+AO771)*VLOOKUP(AO$881,'F. UL & OPEX flat rates'!$B$2:$G$43,6,0)","v":0},{"$f":"(SUMPRODUCT(($A$3:$A67>($A947-VLOOKUP(AP$881,'F. UL & OPEX flat rates'!$B$2:$G$43,5)))*1,AP$3:AP67)+AP771)*VLOOKUP(AP$881,'F. UL & OPEX flat rates'!$B$2:$G$43,6,0)","v":0},{"$f":"(SUMPRODUCT(($A$3:$A67>($A947-VLOOKUP(AQ$881,'F. UL & OPEX flat rates'!$B$2:$G$43,5)))*1,AQ$3:AQ67)+AQ771)*VLOOKUP(AQ$881,'F. UL & OPEX flat rates'!$B$2:$G$43,6,0)","v":0}]
[2081,0,{"$f":"(SUMPRODUCT(($A$3:$A68>($A948-VLOOKUP(C$881,'F. UL & OPEX flat rates'!$B$2:$G$43,5)))*1,C$3:C68)+C772)*VLOOKUP(C$881,'F. UL & OPEX flat rates'!$B$2:$G$43,6,0)","v":0},{"$f":"(SUMPRODUCT(($A$3:$A68>($A948-VLOOKUP(D$881,'F. UL & OPEX flat rates'!$B$2:$G$43,5)))*1,D$3:D68)+D772)*VLOOKUP(D$881,'F. UL & OPEX flat rates'!$B$2:$G$43,6,0)","v":0},{"$f":"(SUMPRODUCT(($A$3:$A68>($A948-VLOOKUP(E$881,'F. UL & OPEX flat rates'!$B$2:$G$43,5)))*1,E$3:E68)+E772)*VLOOKUP(E$881,'F. UL & OPEX flat rates'!$B$2:$G$43,6,0)","v":0},{"$f":"(SUMPRODUCT(($A$3:$A68>($A948-VLOOKUP(F$881,'F. UL & OPEX flat rates'!$B$2:$G$43,5)))*1,F$3:F68)+F772)*VLOOKUP(F$881,'F. UL & OPEX flat rates'!$B$2:$G$43,6,0)","v":0},{"$f":"(SUMPRODUCT(($A$3:$A68>($A948-VLOOKUP(G$881,'F. UL & OPEX flat rates'!$B$2:$G$43,5)))*1,G$3:G68)+G772)*VLOOKUP(G$881,'F. UL & OPEX flat rates'!$B$2:$G$43,6,0)","v":0},{"$f":"(SUMPRODUCT(($A$3:$A68>($A948-VLOOKUP(H$881,'F. UL & OPEX flat rates'!$B$2:$G$43,5)))*1,H$3:H68)+H772)*VLOOKUP(H$881,'F. UL & OPEX flat rates'!$B$2:$G$43,6,0)","v":0},{"$f":"(SUMPRODUCT(($A$3:$A68>($A948-VLOOKUP(I$881,'F. UL & OPEX flat rates'!$B$2:$G$43,5)))*1,I$3:I68)+I772)*VLOOKUP(I$881,'F. UL & OPEX flat rates'!$B$2:$G$43,6,0)","v":0},{"$f":"(SUMPRODUCT(($A$3:$A68>($A948-VLOOKUP(J$881,'F. UL & OPEX flat rates'!$B$2:$G$43,5)))*1,J$3:J68)+J772)*VLOOKUP(J$881,'F. UL & OPEX flat rates'!$B$2:$G$43,6,0)","v":0},{"$f":"(SUMPRODUCT(($A$3:$A68>($A948-VLOOKUP(K$881,'F. UL & OPEX flat rates'!$B$2:$G$43,5)))*1,K$3:K68)+K772)*VLOOKUP(K$881,'F. UL & OPEX flat rates'!$B$2:$G$43,6,0)","v":0},{"$f":"(SUMPRODUCT(($A$3:$A68>($A948-VLOOKUP(L$881,'F. UL & OPEX flat rates'!$B$2:$G$43,5)))*1,L$3:L68)+L772)*VLOOKUP(L$881,'F. UL & OPEX flat rates'!$B$2:$G$43,6,0)","v":0},{"$f":"(SUMPRODUCT(($A$3:$A68>($A948-VLOOKUP(M$881,'F. UL & OPEX flat rates'!$B$2:$G$43,5)))*1,M$3:M68)+M772)*VLOOKUP(M$881,'F. UL & OPEX flat rates'!$B$2:$G$43,6,0)","v":0},{"$f":"(SUMPRODUCT(($A$3:$A68>($A948-VLOOKUP(N$881,'F. UL & OPEX flat rates'!$B$2:$G$43,5)))*1,N$3:N68)+N772)*VLOOKUP(N$881,'F. UL & OPEX flat rates'!$B$2:$G$43,6,0)","v":0},{"$f":"(SUMPRODUCT(($A$3:$A68>($A948-VLOOKUP(O$881,'F. UL & OPEX flat rates'!$B$2:$G$43,5)))*1,O$3:O68)+O772)*VLOOKUP(O$881,'F. UL & OPEX flat rates'!$B$2:$G$43,6,0)","v":0},{"$f":"(SUMPRODUCT(($A$3:$A68>($A948-VLOOKUP(P$881,'F. UL & OPEX flat rates'!$B$2:$G$43,5)))*1,P$3:P68)+P772)*VLOOKUP(P$881,'F. UL & OPEX flat rates'!$B$2:$G$43,6,0)","v":0},{"$f":"(SUMPRODUCT(($A$3:$A68>($A948-VLOOKUP(Q$881,'F. UL & OPEX flat rates'!$B$2:$G$43,5)))*1,Q$3:Q68)+Q772)*VLOOKUP(Q$881,'F. UL & OPEX flat rates'!$B$2:$G$43,6,0)","v":0},{"$f":"(SUMPRODUCT(($A$3:$A68>($A948-VLOOKUP(R$881,'F. UL & OPEX flat rates'!$B$2:$G$43,5)))*1,R$3:R68)+R772)*VLOOKUP(R$881,'F. UL & OPEX flat rates'!$B$2:$G$43,6,0)","v":0},{"$f":"(SUMPRODUCT(($A$3:$A68>($A948-VLOOKUP(S$881,'F. UL & OPEX flat rates'!$B$2:$G$43,5)))*1,S$3:S68)+S772)*VLOOKUP(S$881,'F. UL & OPEX flat rates'!$B$2:$G$43,6,0)","v":0},{"$f":"(SUMPRODUCT(($A$3:$A68>($A948-VLOOKUP(T$881,'F. UL & OPEX flat rates'!$B$2:$G$43,5)))*1,T$3:T68)+T772)*VLOOKUP(T$881,'F. UL & OPEX flat rates'!$B$2:$G$43,6,0)","v":0},{"$f":"(SUMPRODUCT(($A$3:$A68>($A948-VLOOKUP(U$881,'F. UL & OPEX flat rates'!$B$2:$G$43,5)))*1,U$3:U68)+U772)*VLOOKUP(U$881,'F. UL & OPEX flat rates'!$B$2:$G$43,6,0)","v":0},{"$f":"(SUMPRODUCT(($A$3:$A68>($A948-VLOOKUP(V$881,'F. UL & OPEX flat rates'!$B$2:$G$43,5)))*1,V$3:V68)+V772)*VLOOKUP(V$881,'F. UL & OPEX flat rates'!$B$2:$G$43,6,0)","v":0},{"$f":"(SUMPRODUCT(($A$3:$A68>($A948-VLOOKUP(W$881,'F. UL & OPEX flat rates'!$B$2:$G$43,5)))*1,W$3:W68)+W772)*VLOOKUP(W$881,'F. UL & OPEX flat rates'!$B$2:$G$43,6,0)","v":0},{"$f":"(SUMPRODUCT(($A$3:$A68>($A948-VLOOKUP(X$881,'F. UL & OPEX flat rates'!$B$2:$G$43,5)))*1,X$3:X68)+X772)*VLOOKUP(X$881,'F. UL & OPEX flat rates'!$B$2:$G$43,6,0)","v":0},{"$f":"(SUMPRODUCT(($A$3:$A68>($A948-VLOOKUP(Y$881,'F. UL & OPEX flat rates'!$B$2:$G$43,5)))*1,Y$3:Y68)+Y772)*VLOOKUP(Y$881,'F. UL & OPEX flat rates'!$B$2:$G$43,6,0)","v":0},{"$f":"(SUMPRODUCT(($A$3:$A68>($A948-VLOOKUP(Z$881,'F. UL & OPEX flat rates'!$B$2:$G$43,5)))*1,Z$3:Z68)+Z772)*VLOOKUP(Z$881,'F. UL & OPEX flat rates'!$B$2:$G$43,6,0)","v":0},{"$f":"(SUMPRODUCT(($A$3:$A68>($A948-VLOOKUP(AA$881,'F. UL & OPEX flat rates'!$B$2:$G$43,5)))*1,AA$3:AA68)+AA772)*VLOOKUP(AA$881,'F. UL & OPEX flat rates'!$B$2:$G$43,6,0)","v":0},{"$f":"(SUMPRODUCT(($A$3:$A68>($A948-VLOOKUP(AB$881,'F. UL & OPEX flat rates'!$B$2:$G$43,5)))*1,AB$3:AB68)+AB772)*VLOOKUP(AB$881,'F. UL & OPEX flat rates'!$B$2:$G$43,6,0)","v":0},{"$f":"(SUMPRODUCT(($A$3:$A68>($A948-VLOOKUP(AC$881,'F. UL & OPEX flat rates'!$B$2:$G$43,5)))*1,AC$3:AC68)+AC772)*VLOOKUP(AC$881,'F. UL & OPEX flat rates'!$B$2:$G$43,6,0)","v":0},{"$f":"(SUMPRODUCT(($A$3:$A68>($A948-VLOOKUP(AD$881,'F. UL & OPEX flat rates'!$B$2:$G$43,5)))*1,AD$3:AD68)+AD772)*VLOOKUP(AD$881,'F. UL & OPEX flat rates'!$B$2:$G$43,6,0)","v":0},{"$f":"(SUMPRODUCT(($A$3:$A68>($A948-VLOOKUP(AE$881,'F. UL & OPEX flat rates'!$B$2:$G$43,5)))*1,AE$3:AE68)+AE772)*VLOOKUP(AE$881,'F. UL & OPEX flat rates'!$B$2:$G$43,6,0)","v":0},{"$f":"(SUMPRODUCT(($A$3:$A68>($A948-VLOOKUP(AF$881,'F. UL & OPEX flat rates'!$B$2:$G$43,5)))*1,AF$3:AF68)+AF772)*VLOOKUP(AF$881,'F. UL & OPEX flat rates'!$B$2:$G$43,6,0)","v":0},{"$f":"(SUMPRODUCT(($A$3:$A68>($A948-VLOOKUP(AG$881,'F. UL & OPEX flat rates'!$B$2:$G$43,5)))*1,AG$3:AG68)+AG772)*VLOOKUP(AG$881,'F. UL & OPEX flat rates'!$B$2:$G$43,6,0)","v":0},{"$f":"(SUMPRODUCT(($A$3:$A68>($A948-VLOOKUP(AH$881,'F. UL & OPEX flat rates'!$B$2:$G$43,5)))*1,AH$3:AH68)+AH772)*VLOOKUP(AH$881,'F. UL & OPEX flat rates'!$B$2:$G$43,6,0)","v":0},{"$f":"(SUMPRODUCT(($A$3:$A68>($A948-VLOOKUP(AI$881,'F. UL & OPEX flat rates'!$B$2:$G$43,5)))*1,AI$3:AI68)+AI772)*VLOOKUP(AI$881,'F. UL & OPEX flat rates'!$B$2:$G$43,6,0)","v":0},{"$f":"(SUMPRODUCT(($A$3:$A68>($A948-VLOOKUP(AJ$881,'F. UL & OPEX flat rates'!$B$2:$G$43,5)))*1,AJ$3:AJ68)+AJ772)*VLOOKUP(AJ$881,'F. UL & OPEX flat rates'!$B$2:$G$43,6,0)","v":0},{"$f":"(SUMPRODUCT(($A$3:$A68>($A948-VLOOKUP(AK$881,'F. UL & OPEX flat rates'!$B$2:$G$43,5)))*1,AK$3:AK68)+AK772)*VLOOKUP(AK$881,'F. UL & OPEX flat rates'!$B$2:$G$43,6,0)","v":0},{"$f":"(SUMPRODUCT(($A$3:$A68>($A948-VLOOKUP(AL$881,'F. UL & OPEX flat rates'!$B$2:$G$43,5)))*1,AL$3:AL68)+AL772)*VLOOKUP(AL$881,'F. UL & OPEX flat rates'!$B$2:$G$43,6,0)","v":0},{"$f":"(SUMPRODUCT(($A$3:$A68>($A948-VLOOKUP(AM$881,'F. UL & OPEX flat rates'!$B$2:$G$43,5)))*1,AM$3:AM68)+AM772)*VLOOKUP(AM$881,'F. UL & OPEX flat rates'!$B$2:$G$43,6,0)","v":0},{"$f":"(SUMPRODUCT(($A$3:$A68>($A948-VLOOKUP(AN$881,'F. UL & OPEX flat rates'!$B$2:$G$43,5)))*1,AN$3:AN68)+AN772)*VLOOKUP(AN$881,'F. UL & OPEX flat rates'!$B$2:$G$43,6,0)","v":0},{"$f":"(SUMPRODUCT(($A$3:$A68>($A948-VLOOKUP(AO$881,'F. UL & OPEX flat rates'!$B$2:$G$43,5)))*1,AO$3:AO68)+AO772)*VLOOKUP(AO$881,'F. UL & OPEX flat rates'!$B$2:$G$43,6,0)","v":0},{"$f":"(SUMPRODUCT(($A$3:$A68>($A948-VLOOKUP(AP$881,'F. UL & OPEX flat rates'!$B$2:$G$43,5)))*1,AP$3:AP68)+AP772)*VLOOKUP(AP$881,'F. UL & OPEX flat rates'!$B$2:$G$43,6,0)","v":0},{"$f":"(SUMPRODUCT(($A$3:$A68>($A948-VLOOKUP(AQ$881,'F. UL & OPEX flat rates'!$B$2:$G$43,5)))*1,AQ$3:AQ68)+AQ772)*VLOOKUP(AQ$881,'F. UL & OPEX flat rates'!$B$2:$G$43,6,0)","v":0}]
[2082,{"$f":"SUM(C949:AQ949)","v":0},{"$f":"(SUMPRODUCT(($A$3:$A69>($A949-VLOOKUP(C$881,'F. UL & OPEX flat rates'!$B$2:$G$43,5)))*1,C$3:C69)+C773)*VLOOKUP(C$881,'F. UL & OPEX flat rates'!$B$2:$G$43,6,0)","v":0},{"$f":"(SUMPRODUCT(($A$3:$A69>($A949-VLOOKUP(D$881,'F. UL & OPEX flat rates'!$B$2:$G$43,5)))*1,D$3:D69)+D773)*VLOOKUP(D$881,'F. UL & OPEX flat rates'!$B$2:$G$43,6,0)","v":0},{"$f":"(SUMPRODUCT(($A$3:$A69>($A949-VLOOKUP(E$881,'F. UL & OPEX flat rates'!$B$2:$G$43,5)))*1,E$3:E69)+E773)*VLOOKUP(E$881,'F. UL & OPEX flat rates'!$B$2:$G$43,6,0)","v":0},{"$f":"(SUMPRODUCT(($A$3:$A69>($A949-VLOOKUP(F$881,'F. UL & OPEX flat rates'!$B$2:$G$43,5)))*1,F$3:F69)+F773)*VLOOKUP(F$881,'F. UL & OPEX flat rates'!$B$2:$G$43,6,0)","v":0},{"$f":"(SUMPRODUCT(($A$3:$A69>($A949-VLOOKUP(G$881,'F. UL & OPEX flat rates'!$B$2:$G$43,5)))*1,G$3:G69)+G773)*VLOOKUP(G$881,'F. UL & OPEX flat rates'!$B$2:$G$43,6,0)","v":0},{"$f":"(SUMPRODUCT(($A$3:$A69>($A949-VLOOKUP(H$881,'F. UL & OPEX flat rates'!$B$2:$G$43,5)))*1,H$3:H69)+H773)*VLOOKUP(H$881,'F. UL & OPEX flat rates'!$B$2:$G$43,6,0)","v":0},{"$f":"(SUMPRODUCT(($A$3:$A69>($A949-VLOOKUP(I$881,'F. UL & OPEX flat rates'!$B$2:$G$43,5)))*1,I$3:I69)+I773)*VLOOKUP(I$881,'F. UL & OPEX flat rates'!$B$2:$G$43,6,0)","v":0},{"$f":"(SUMPRODUCT(($A$3:$A69>($A949-VLOOKUP(J$881,'F. UL & OPEX flat rates'!$B$2:$G$43,5)))*1,J$3:J69)+J773)*VLOOKUP(J$881,'F. UL & OPEX flat rates'!$B$2:$G$43,6,0)","v":0},{"$f":"(SUMPRODUCT(($A$3:$A69>($A949-VLOOKUP(K$881,'F. UL & OPEX flat rates'!$B$2:$G$43,5)))*1,K$3:K69)+K773)*VLOOKUP(K$881,'F. UL & OPEX flat rates'!$B$2:$G$43,6,0)","v":0},{"$f":"(SUMPRODUCT(($A$3:$A69>($A949-VLOOKUP(L$881,'F. UL & OPEX flat rates'!$B$2:$G$43,5)))*1,L$3:L69)+L773)*VLOOKUP(L$881,'F. UL & OPEX flat rates'!$B$2:$G$43,6,0)","v":0},{"$f":"(SUMPRODUCT(($A$3:$A69>($A949-VLOOKUP(M$881,'F. UL & OPEX flat rates'!$B$2:$G$43,5)))*1,M$3:M69)+M773)*VLOOKUP(M$881,'F. UL & OPEX flat rates'!$B$2:$G$43,6,0)","v":0},{"$f":"(SUMPRODUCT(($A$3:$A69>($A949-VLOOKUP(N$881,'F. UL & OPEX flat rates'!$B$2:$G$43,5)))*1,N$3:N69)+N773)*VLOOKUP(N$881,'F. UL & OPEX flat rates'!$B$2:$G$43,6,0)","v":0},{"$f":"(SUMPRODUCT(($A$3:$A69>($A949-VLOOKUP(O$881,'F. UL & OPEX flat rates'!$B$2:$G$43,5)))*1,O$3:O69)+O773)*VLOOKUP(O$881,'F. UL & OPEX flat rates'!$B$2:$G$43,6,0)","v":0},{"$f":"(SUMPRODUCT(($A$3:$A69>($A949-VLOOKUP(P$881,'F. UL & OPEX flat rates'!$B$2:$G$43,5)))*1,P$3:P69)+P773)*VLOOKUP(P$881,'F. UL & OPEX flat rates'!$B$2:$G$43,6,0)","v":0},{"$f":"(SUMPRODUCT(($A$3:$A69>($A949-VLOOKUP(Q$881,'F. UL & OPEX flat rates'!$B$2:$G$43,5)))*1,Q$3:Q69)+Q773)*VLOOKUP(Q$881,'F. UL & OPEX flat rates'!$B$2:$G$43,6,0)","v":0},{"$f":"(SUMPRODUCT(($A$3:$A69>($A949-VLOOKUP(R$881,'F. UL & OPEX flat rates'!$B$2:$G$43,5)))*1,R$3:R69)+R773)*VLOOKUP(R$881,'F. UL & OPEX flat rates'!$B$2:$G$43,6,0)","v":0},{"$f":"(SUMPRODUCT(($A$3:$A69>($A949-VLOOKUP(S$881,'F. UL & OPEX flat rates'!$B$2:$G$43,5)))*1,S$3:S69)+S773)*VLOOKUP(S$881,'F. UL & OPEX flat rates'!$B$2:$G$43,6,0)","v":0},{"$f":"(SUMPRODUCT(($A$3:$A69>($A949-VLOOKUP(T$881,'F. UL & OPEX flat rates'!$B$2:$G$43,5)))*1,T$3:T69)+T773)*VLOOKUP(T$881,'F. UL & OPEX flat rates'!$B$2:$G$43,6,0)","v":0},{"$f":"(SUMPRODUCT(($A$3:$A69>($A949-VLOOKUP(U$881,'F. UL & OPEX flat rates'!$B$2:$G$43,5)))*1,U$3:U69)+U773)*VLOOKUP(U$881,'F. UL & OPEX flat rates'!$B$2:$G$43,6,0)","v":0},{"$f":"(SUMPRODUCT(($A$3:$A69>($A949-VLOOKUP(V$881,'F. UL & OPEX flat rates'!$B$2:$G$43,5)))*1,V$3:V69)+V773)*VLOOKUP(V$881,'F. UL & OPEX flat rates'!$B$2:$G$43,6,0)","v":0},{"$f":"(SUMPRODUCT(($A$3:$A69>($A949-VLOOKUP(W$881,'F. UL & OPEX flat rates'!$B$2:$G$43,5)))*1,W$3:W69)+W773)*VLOOKUP(W$881,'F. UL & OPEX flat rates'!$B$2:$G$43,6,0)","v":0},{"$f":"(SUMPRODUCT(($A$3:$A69>($A949-VLOOKUP(X$881,'F. UL & OPEX flat rates'!$B$2:$G$43,5)))*1,X$3:X69)+X773)*VLOOKUP(X$881,'F. UL & OPEX flat rates'!$B$2:$G$43,6,0)","v":0},{"$f":"(SUMPRODUCT(($A$3:$A69>($A949-VLOOKUP(Y$881,'F. UL & OPEX flat rates'!$B$2:$G$43,5)))*1,Y$3:Y69)+Y773)*VLOOKUP(Y$881,'F. UL & OPEX flat rates'!$B$2:$G$43,6,0)","v":0},{"$f":"(SUMPRODUCT(($A$3:$A69>($A949-VLOOKUP(Z$881,'F. UL & OPEX flat rates'!$B$2:$G$43,5)))*1,Z$3:Z69)+Z773)*VLOOKUP(Z$881,'F. UL & OPEX flat rates'!$B$2:$G$43,6,0)","v":0},{"$f":"(SUMPRODUCT(($A$3:$A69>($A949-VLOOKUP(AA$881,'F. UL & OPEX flat rates'!$B$2:$G$43,5)))*1,AA$3:AA69)+AA773)*VLOOKUP(AA$881,'F. UL & OPEX flat rates'!$B$2:$G$43,6,0)","v":0},{"$f":"(SUMPRODUCT(($A$3:$A69>($A949-VLOOKUP(AB$881,'F. UL & OPEX flat rates'!$B$2:$G$43,5)))*1,AB$3:AB69)+AB773)*VLOOKUP(AB$881,'F. UL & OPEX flat rates'!$B$2:$G$43,6,0)","v":0},{"$f":"(SUMPRODUCT(($A$3:$A69>($A949-VLOOKUP(AC$881,'F. UL & OPEX flat rates'!$B$2:$G$43,5)))*1,AC$3:AC69)+AC773)*VLOOKUP(AC$881,'F. UL & OPEX flat rates'!$B$2:$G$43,6,0)","v":0},{"$f":"(SUMPRODUCT(($A$3:$A69>($A949-VLOOKUP(AD$881,'F. UL & OPEX flat rates'!$B$2:$G$43,5)))*1,AD$3:AD69)+AD773)*VLOOKUP(AD$881,'F. UL & OPEX flat rates'!$B$2:$G$43,6,0)","v":0},{"$f":"(SUMPRODUCT(($A$3:$A69>($A949-VLOOKUP(AE$881,'F. UL & OPEX flat rates'!$B$2:$G$43,5)))*1,AE$3:AE69)+AE773)*VLOOKUP(AE$881,'F. UL & OPEX flat rates'!$B$2:$G$43,6,0)","v":0},{"$f":"(SUMPRODUCT(($A$3:$A69>($A949-VLOOKUP(AF$881,'F. UL & OPEX flat rates'!$B$2:$G$43,5)))*1,AF$3:AF69)+AF773)*VLOOKUP(AF$881,'F. UL & OPEX flat rates'!$B$2:$G$43,6,0)","v":0},{"$f":"(SUMPRODUCT(($A$3:$A69>($A949-VLOOKUP(AG$881,'F. UL & OPEX flat rates'!$B$2:$G$43,5)))*1,AG$3:AG69)+AG773)*VLOOKUP(AG$881,'F. UL & OPEX flat rates'!$B$2:$G$43,6,0)","v":0},{"$f":"(SUMPRODUCT(($A$3:$A69>($A949-VLOOKUP(AH$881,'F. UL & OPEX flat rates'!$B$2:$G$43,5)))*1,AH$3:AH69)+AH773)*VLOOKUP(AH$881,'F. UL & OPEX flat rates'!$B$2:$G$43,6,0)","v":0},{"$f":"(SUMPRODUCT(($A$3:$A69>($A949-VLOOKUP(AI$881,'F. UL & OPEX flat rates'!$B$2:$G$43,5)))*1,AI$3:AI69)+AI773)*VLOOKUP(AI$881,'F. UL & OPEX flat rates'!$B$2:$G$43,6,0)","v":0},{"$f":"(SUMPRODUCT(($A$3:$A69>($A949-VLOOKUP(AJ$881,'F. UL & OPEX flat rates'!$B$2:$G$43,5)))*1,AJ$3:AJ69)+AJ773)*VLOOKUP(AJ$881,'F. UL & OPEX flat rates'!$B$2:$G$43,6,0)","v":0},{"$f":"(SUMPRODUCT(($A$3:$A69>($A949-VLOOKUP(AK$881,'F. UL & OPEX flat rates'!$B$2:$G$43,5)))*1,AK$3:AK69)+AK773)*VLOOKUP(AK$881,'F. UL & OPEX flat rates'!$B$2:$G$43,6,0)","v":0},{"$f":"(SUMPRODUCT(($A$3:$A69>($A949-VLOOKUP(AL$881,'F. UL & OPEX flat rates'!$B$2:$G$43,5)))*1,AL$3:AL69)+AL773)*VLOOKUP(AL$881,'F. UL & OPEX flat rates'!$B$2:$G$43,6,0)","v":0},{"$f":"(SUMPRODUCT(($A$3:$A69>($A949-VLOOKUP(AM$881,'F. UL & OPEX flat rates'!$B$2:$G$43,5)))*1,AM$3:AM69)+AM773)*VLOOKUP(AM$881,'F. UL & OPEX flat rates'!$B$2:$G$43,6,0)","v":0},{"$f":"(SUMPRODUCT(($A$3:$A69>($A949-VLOOKUP(AN$881,'F. UL & OPEX flat rates'!$B$2:$G$43,5)))*1,AN$3:AN69)+AN773)*VLOOKUP(AN$881,'F. UL & OPEX flat rates'!$B$2:$G$43,6,0)","v":0},{"$f":"(SUMPRODUCT(($A$3:$A69>($A949-VLOOKUP(AO$881,'F. UL & OPEX flat rates'!$B$2:$G$43,5)))*1,AO$3:AO69)+AO773)*VLOOKUP(AO$881,'F. UL & OPEX flat rates'!$B$2:$G$43,6,0)","v":0},{"$f":"(SUMPRODUCT(($A$3:$A69>($A949-VLOOKUP(AP$881,'F. UL & OPEX flat rates'!$B$2:$G$43,5)))*1,AP$3:AP69)+AP773)*VLOOKUP(AP$881,'F. UL & OPEX flat rates'!$B$2:$G$43,6,0)","v":0},{"$f":"(SUMPRODUCT(($A$3:$A69>($A949-VLOOKUP(AQ$881,'F. UL & OPEX flat rates'!$B$2:$G$43,5)))*1,AQ$3:AQ69)+AQ773)*VLOOKUP(AQ$881,'F. UL & OPEX flat rates'!$B$2:$G$43,6,0)","v":0}]
[2083,0,{"$f":"(SUMPRODUCT(($A$3:$A70>($A950-VLOOKUP(C$881,'F. UL & OPEX flat rates'!$B$2:$G$43,5)))*1,C$3:C70)+C774)*VLOOKUP(C$881,'F. UL & OPEX flat rates'!$B$2:$G$43,6,0)","v":0},{"$f":"(SUMPRODUCT(($A$3:$A70>($A950-VLOOKUP(D$881,'F. UL & OPEX flat rates'!$B$2:$G$43,5)))*1,D$3:D70)+D774)*VLOOKUP(D$881,'F. UL & OPEX flat rates'!$B$2:$G$43,6,0)","v":0},{"$f":"(SUMPRODUCT(($A$3:$A70>($A950-VLOOKUP(E$881,'F. UL & OPEX flat rates'!$B$2:$G$43,5)))*1,E$3:E70)+E774)*VLOOKUP(E$881,'F. UL & OPEX flat rates'!$B$2:$G$43,6,0)","v":0},{"$f":"(SUMPRODUCT(($A$3:$A70>($A950-VLOOKUP(F$881,'F. UL & OPEX flat rates'!$B$2:$G$43,5)))*1,F$3:F70)+F774)*VLOOKUP(F$881,'F. UL & OPEX flat rates'!$B$2:$G$43,6,0)","v":0},{"$f":"(SUMPRODUCT(($A$3:$A70>($A950-VLOOKUP(G$881,'F. UL & OPEX flat rates'!$B$2:$G$43,5)))*1,G$3:G70)+G774)*VLOOKUP(G$881,'F. UL & OPEX flat rates'!$B$2:$G$43,6,0)","v":0},{"$f":"(SUMPRODUCT(($A$3:$A70>($A950-VLOOKUP(H$881,'F. UL & OPEX flat rates'!$B$2:$G$43,5)))*1,H$3:H70)+H774)*VLOOKUP(H$881,'F. UL & OPEX flat rates'!$B$2:$G$43,6,0)","v":0},{"$f":"(SUMPRODUCT(($A$3:$A70>($A950-VLOOKUP(I$881,'F. UL & OPEX flat rates'!$B$2:$G$43,5)))*1,I$3:I70)+I774)*VLOOKUP(I$881,'F. UL & OPEX flat rates'!$B$2:$G$43,6,0)","v":0},{"$f":"(SUMPRODUCT(($A$3:$A70>($A950-VLOOKUP(J$881,'F. UL & OPEX flat rates'!$B$2:$G$43,5)))*1,J$3:J70)+J774)*VLOOKUP(J$881,'F. UL & OPEX flat rates'!$B$2:$G$43,6,0)","v":0},{"$f":"(SUMPRODUCT(($A$3:$A70>($A950-VLOOKUP(K$881,'F. UL & OPEX flat rates'!$B$2:$G$43,5)))*1,K$3:K70)+K774)*VLOOKUP(K$881,'F. UL & OPEX flat rates'!$B$2:$G$43,6,0)","v":0},{"$f":"(SUMPRODUCT(($A$3:$A70>($A950-VLOOKUP(L$881,'F. UL & OPEX flat rates'!$B$2:$G$43,5)))*1,L$3:L70)+L774)*VLOOKUP(L$881,'F. UL & OPEX flat rates'!$B$2:$G$43,6,0)","v":0},{"$f":"(SUMPRODUCT(($A$3:$A70>($A950-VLOOKUP(M$881,'F. UL & OPEX flat rates'!$B$2:$G$43,5)))*1,M$3:M70)+M774)*VLOOKUP(M$881,'F. UL & OPEX flat rates'!$B$2:$G$43,6,0)","v":0},{"$f":"(SUMPRODUCT(($A$3:$A70>($A950-VLOOKUP(N$881,'F. UL & OPEX flat rates'!$B$2:$G$43,5)))*1,N$3:N70)+N774)*VLOOKUP(N$881,'F. UL & OPEX flat rates'!$B$2:$G$43,6,0)","v":0},{"$f":"(SUMPRODUCT(($A$3:$A70>($A950-VLOOKUP(O$881,'F. UL & OPEX flat rates'!$B$2:$G$43,5)))*1,O$3:O70)+O774)*VLOOKUP(O$881,'F. UL & OPEX flat rates'!$B$2:$G$43,6,0)","v":0},{"$f":"(SUMPRODUCT(($A$3:$A70>($A950-VLOOKUP(P$881,'F. UL & OPEX flat rates'!$B$2:$G$43,5)))*1,P$3:P70)+P774)*VLOOKUP(P$881,'F. UL & OPEX flat rates'!$B$2:$G$43,6,0)","v":0},{"$f":"(SUMPRODUCT(($A$3:$A70>($A950-VLOOKUP(Q$881,'F. UL & OPEX flat rates'!$B$2:$G$43,5)))*1,Q$3:Q70)+Q774)*VLOOKUP(Q$881,'F. UL & OPEX flat rates'!$B$2:$G$43,6,0)","v":0},{"$f":"(SUMPRODUCT(($A$3:$A70>($A950-VLOOKUP(R$881,'F. UL & OPEX flat rates'!$B$2:$G$43,5)))*1,R$3:R70)+R774)*VLOOKUP(R$881,'F. UL & OPEX flat rates'!$B$2:$G$43,6,0)","v":0},{"$f":"(SUMPRODUCT(($A$3:$A70>($A950-VLOOKUP(S$881,'F. UL & OPEX flat rates'!$B$2:$G$43,5)))*1,S$3:S70)+S774)*VLOOKUP(S$881,'F. UL & OPEX flat rates'!$B$2:$G$43,6,0)","v":0},{"$f":"(SUMPRODUCT(($A$3:$A70>($A950-VLOOKUP(T$881,'F. UL & OPEX flat rates'!$B$2:$G$43,5)))*1,T$3:T70)+T774)*VLOOKUP(T$881,'F. UL & OPEX flat rates'!$B$2:$G$43,6,0)","v":0},{"$f":"(SUMPRODUCT(($A$3:$A70>($A950-VLOOKUP(U$881,'F. UL & OPEX flat rates'!$B$2:$G$43,5)))*1,U$3:U70)+U774)*VLOOKUP(U$881,'F. UL & OPEX flat rates'!$B$2:$G$43,6,0)","v":0},{"$f":"(SUMPRODUCT(($A$3:$A70>($A950-VLOOKUP(V$881,'F. UL & OPEX flat rates'!$B$2:$G$43,5)))*1,V$3:V70)+V774)*VLOOKUP(V$881,'F. UL & OPEX flat rates'!$B$2:$G$43,6,0)","v":0},{"$f":"(SUMPRODUCT(($A$3:$A70>($A950-VLOOKUP(W$881,'F. UL & OPEX flat rates'!$B$2:$G$43,5)))*1,W$3:W70)+W774)*VLOOKUP(W$881,'F. UL & OPEX flat rates'!$B$2:$G$43,6,0)","v":0},{"$f":"(SUMPRODUCT(($A$3:$A70>($A950-VLOOKUP(X$881,'F. UL & OPEX flat rates'!$B$2:$G$43,5)))*1,X$3:X70)+X774)*VLOOKUP(X$881,'F. UL & OPEX flat rates'!$B$2:$G$43,6,0)","v":0},{"$f":"(SUMPRODUCT(($A$3:$A70>($A950-VLOOKUP(Y$881,'F. UL & OPEX flat rates'!$B$2:$G$43,5)))*1,Y$3:Y70)+Y774)*VLOOKUP(Y$881,'F. UL & OPEX flat rates'!$B$2:$G$43,6,0)","v":0},{"$f":"(SUMPRODUCT(($A$3:$A70>($A950-VLOOKUP(Z$881,'F. UL & OPEX flat rates'!$B$2:$G$43,5)))*1,Z$3:Z70)+Z774)*VLOOKUP(Z$881,'F. UL & OPEX flat rates'!$B$2:$G$43,6,0)","v":0},{"$f":"(SUMPRODUCT(($A$3:$A70>($A950-VLOOKUP(AA$881,'F. UL & OPEX flat rates'!$B$2:$G$43,5)))*1,AA$3:AA70)+AA774)*VLOOKUP(AA$881,'F. UL & OPEX flat rates'!$B$2:$G$43,6,0)","v":0},{"$f":"(SUMPRODUCT(($A$3:$A70>($A950-VLOOKUP(AB$881,'F. UL & OPEX flat rates'!$B$2:$G$43,5)))*1,AB$3:AB70)+AB774)*VLOOKUP(AB$881,'F. UL & OPEX flat rates'!$B$2:$G$43,6,0)","v":0},{"$f":"(SUMPRODUCT(($A$3:$A70>($A950-VLOOKUP(AC$881,'F. UL & OPEX flat rates'!$B$2:$G$43,5)))*1,AC$3:AC70)+AC774)*VLOOKUP(AC$881,'F. UL & OPEX flat rates'!$B$2:$G$43,6,0)","v":0},{"$f":"(SUMPRODUCT(($A$3:$A70>($A950-VLOOKUP(AD$881,'F. UL & OPEX flat rates'!$B$2:$G$43,5)))*1,AD$3:AD70)+AD774)*VLOOKUP(AD$881,'F. UL & OPEX flat rates'!$B$2:$G$43,6,0)","v":0},{"$f":"(SUMPRODUCT(($A$3:$A70>($A950-VLOOKUP(AE$881,'F. UL & OPEX flat rates'!$B$2:$G$43,5)))*1,AE$3:AE70)+AE774)*VLOOKUP(AE$881,'F. UL & OPEX flat rates'!$B$2:$G$43,6,0)","v":0},{"$f":"(SUMPRODUCT(($A$3:$A70>($A950-VLOOKUP(AF$881,'F. UL & OPEX flat rates'!$B$2:$G$43,5)))*1,AF$3:AF70)+AF774)*VLOOKUP(AF$881,'F. UL & OPEX flat rates'!$B$2:$G$43,6,0)","v":0},{"$f":"(SUMPRODUCT(($A$3:$A70>($A950-VLOOKUP(AG$881,'F. UL & OPEX flat rates'!$B$2:$G$43,5)))*1,AG$3:AG70)+AG774)*VLOOKUP(AG$881,'F. UL & OPEX flat rates'!$B$2:$G$43,6,0)","v":0},{"$f":"(SUMPRODUCT(($A$3:$A70>($A950-VLOOKUP(AH$881,'F. UL & OPEX flat rates'!$B$2:$G$43,5)))*1,AH$3:AH70)+AH774)*VLOOKUP(AH$881,'F. UL & OPEX flat rates'!$B$2:$G$43,6,0)","v":0},{"$f":"(SUMPRODUCT(($A$3:$A70>($A950-VLOOKUP(AI$881,'F. UL & OPEX flat rates'!$B$2:$G$43,5)))*1,AI$3:AI70)+AI774)*VLOOKUP(AI$881,'F. UL & OPEX flat rates'!$B$2:$G$43,6,0)","v":0},{"$f":"(SUMPRODUCT(($A$3:$A70>($A950-VLOOKUP(AJ$881,'F. UL & OPEX flat rates'!$B$2:$G$43,5)))*1,AJ$3:AJ70)+AJ774)*VLOOKUP(AJ$881,'F. UL & OPEX flat rates'!$B$2:$G$43,6,0)","v":0},{"$f":"(SUMPRODUCT(($A$3:$A70>($A950-VLOOKUP(AK$881,'F. UL & OPEX flat rates'!$B$2:$G$43,5)))*1,AK$3:AK70)+AK774)*VLOOKUP(AK$881,'F. UL & OPEX flat rates'!$B$2:$G$43,6,0)","v":0},{"$f":"(SUMPRODUCT(($A$3:$A70>($A950-VLOOKUP(AL$881,'F. UL & OPEX flat rates'!$B$2:$G$43,5)))*1,AL$3:AL70)+AL774)*VLOOKUP(AL$881,'F. UL & OPEX flat rates'!$B$2:$G$43,6,0)","v":0},{"$f":"(SUMPRODUCT(($A$3:$A70>($A950-VLOOKUP(AM$881,'F. UL & OPEX flat rates'!$B$2:$G$43,5)))*1,AM$3:AM70)+AM774)*VLOOKUP(AM$881,'F. UL & OPEX flat rates'!$B$2:$G$43,6,0)","v":0},{"$f":"(SUMPRODUCT(($A$3:$A70>($A950-VLOOKUP(AN$881,'F. UL & OPEX flat rates'!$B$2:$G$43,5)))*1,AN$3:AN70)+AN774)*VLOOKUP(AN$881,'F. UL & OPEX flat rates'!$B$2:$G$43,6,0)","v":0},{"$f":"(SUMPRODUCT(($A$3:$A70>($A950-VLOOKUP(AO$881,'F. UL & OPEX flat rates'!$B$2:$G$43,5)))*1,AO$3:AO70)+AO774)*VLOOKUP(AO$881,'F. UL & OPEX flat rates'!$B$2:$G$43,6,0)","v":0},{"$f":"(SUMPRODUCT(($A$3:$A70>($A950-VLOOKUP(AP$881,'F. UL & OPEX flat rates'!$B$2:$G$43,5)))*1,AP$3:AP70)+AP774)*VLOOKUP(AP$881,'F. UL & OPEX flat rates'!$B$2:$G$43,6,0)","v":0},{"$f":"(SUMPRODUCT(($A$3:$A70>($A950-VLOOKUP(AQ$881,'F. UL & OPEX flat rates'!$B$2:$G$43,5)))*1,AQ$3:AQ70)+AQ774)*VLOOKUP(AQ$881,'F. UL & OPEX flat rates'!$B$2:$G$43,6,0)","v":0}]
[2084,0,{"$f":"(SUMPRODUCT(($A$3:$A71>($A951-VLOOKUP(C$881,'F. UL & OPEX flat rates'!$B$2:$G$43,5)))*1,C$3:C71)+C775)*VLOOKUP(C$881,'F. UL & OPEX flat rates'!$B$2:$G$43,6,0)","v":0},{"$f":"(SUMPRODUCT(($A$3:$A71>($A951-VLOOKUP(D$881,'F. UL & OPEX flat rates'!$B$2:$G$43,5)))*1,D$3:D71)+D775)*VLOOKUP(D$881,'F. UL & OPEX flat rates'!$B$2:$G$43,6,0)","v":0},{"$f":"(SUMPRODUCT(($A$3:$A71>($A951-VLOOKUP(E$881,'F. UL & OPEX flat rates'!$B$2:$G$43,5)))*1,E$3:E71)+E775)*VLOOKUP(E$881,'F. UL & OPEX flat rates'!$B$2:$G$43,6,0)","v":0},{"$f":"(SUMPRODUCT(($A$3:$A71>($A951-VLOOKUP(F$881,'F. UL & OPEX flat rates'!$B$2:$G$43,5)))*1,F$3:F71)+F775)*VLOOKUP(F$881,'F. UL & OPEX flat rates'!$B$2:$G$43,6,0)","v":0},{"$f":"(SUMPRODUCT(($A$3:$A71>($A951-VLOOKUP(G$881,'F. UL & OPEX flat rates'!$B$2:$G$43,5)))*1,G$3:G71)+G775)*VLOOKUP(G$881,'F. UL & OPEX flat rates'!$B$2:$G$43,6,0)","v":0},{"$f":"(SUMPRODUCT(($A$3:$A71>($A951-VLOOKUP(H$881,'F. UL & OPEX flat rates'!$B$2:$G$43,5)))*1,H$3:H71)+H775)*VLOOKUP(H$881,'F. UL & OPEX flat rates'!$B$2:$G$43,6,0)","v":0},{"$f":"(SUMPRODUCT(($A$3:$A71>($A951-VLOOKUP(I$881,'F. UL & OPEX flat rates'!$B$2:$G$43,5)))*1,I$3:I71)+I775)*VLOOKUP(I$881,'F. UL & OPEX flat rates'!$B$2:$G$43,6,0)","v":0},{"$f":"(SUMPRODUCT(($A$3:$A71>($A951-VLOOKUP(J$881,'F. UL & OPEX flat rates'!$B$2:$G$43,5)))*1,J$3:J71)+J775)*VLOOKUP(J$881,'F. UL & OPEX flat rates'!$B$2:$G$43,6,0)","v":0},{"$f":"(SUMPRODUCT(($A$3:$A71>($A951-VLOOKUP(K$881,'F. UL & OPEX flat rates'!$B$2:$G$43,5)))*1,K$3:K71)+K775)*VLOOKUP(K$881,'F. UL & OPEX flat rates'!$B$2:$G$43,6,0)","v":0},{"$f":"(SUMPRODUCT(($A$3:$A71>($A951-VLOOKUP(L$881,'F. UL & OPEX flat rates'!$B$2:$G$43,5)))*1,L$3:L71)+L775)*VLOOKUP(L$881,'F. UL & OPEX flat rates'!$B$2:$G$43,6,0)","v":0},{"$f":"(SUMPRODUCT(($A$3:$A71>($A951-VLOOKUP(M$881,'F. UL & OPEX flat rates'!$B$2:$G$43,5)))*1,M$3:M71)+M775)*VLOOKUP(M$881,'F. UL & OPEX flat rates'!$B$2:$G$43,6,0)","v":0},{"$f":"(SUMPRODUCT(($A$3:$A71>($A951-VLOOKUP(N$881,'F. UL & OPEX flat rates'!$B$2:$G$43,5)))*1,N$3:N71)+N775)*VLOOKUP(N$881,'F. UL & OPEX flat rates'!$B$2:$G$43,6,0)","v":0},{"$f":"(SUMPRODUCT(($A$3:$A71>($A951-VLOOKUP(O$881,'F. UL & OPEX flat rates'!$B$2:$G$43,5)))*1,O$3:O71)+O775)*VLOOKUP(O$881,'F. UL & OPEX flat rates'!$B$2:$G$43,6,0)","v":0},{"$f":"(SUMPRODUCT(($A$3:$A71>($A951-VLOOKUP(P$881,'F. UL & OPEX flat rates'!$B$2:$G$43,5)))*1,P$3:P71)+P775)*VLOOKUP(P$881,'F. UL & OPEX flat rates'!$B$2:$G$43,6,0)","v":0},{"$f":"(SUMPRODUCT(($A$3:$A71>($A951-VLOOKUP(Q$881,'F. UL & OPEX flat rates'!$B$2:$G$43,5)))*1,Q$3:Q71)+Q775)*VLOOKUP(Q$881,'F. UL & OPEX flat rates'!$B$2:$G$43,6,0)","v":0},{"$f":"(SUMPRODUCT(($A$3:$A71>($A951-VLOOKUP(R$881,'F. UL & OPEX flat rates'!$B$2:$G$43,5)))*1,R$3:R71)+R775)*VLOOKUP(R$881,'F. UL & OPEX flat rates'!$B$2:$G$43,6,0)","v":0},{"$f":"(SUMPRODUCT(($A$3:$A71>($A951-VLOOKUP(S$881,'F. UL & OPEX flat rates'!$B$2:$G$43,5)))*1,S$3:S71)+S775)*VLOOKUP(S$881,'F. UL & OPEX flat rates'!$B$2:$G$43,6,0)","v":0},{"$f":"(SUMPRODUCT(($A$3:$A71>($A951-VLOOKUP(T$881,'F. UL & OPEX flat rates'!$B$2:$G$43,5)))*1,T$3:T71)+T775)*VLOOKUP(T$881,'F. UL & OPEX flat rates'!$B$2:$G$43,6,0)","v":0},{"$f":"(SUMPRODUCT(($A$3:$A71>($A951-VLOOKUP(U$881,'F. UL & OPEX flat rates'!$B$2:$G$43,5)))*1,U$3:U71)+U775)*VLOOKUP(U$881,'F. UL & OPEX flat rates'!$B$2:$G$43,6,0)","v":0},{"$f":"(SUMPRODUCT(($A$3:$A71>($A951-VLOOKUP(V$881,'F. UL & OPEX flat rates'!$B$2:$G$43,5)))*1,V$3:V71)+V775)*VLOOKUP(V$881,'F. UL & OPEX flat rates'!$B$2:$G$43,6,0)","v":0},{"$f":"(SUMPRODUCT(($A$3:$A71>($A951-VLOOKUP(W$881,'F. UL & OPEX flat rates'!$B$2:$G$43,5)))*1,W$3:W71)+W775)*VLOOKUP(W$881,'F. UL & OPEX flat rates'!$B$2:$G$43,6,0)","v":0},{"$f":"(SUMPRODUCT(($A$3:$A71>($A951-VLOOKUP(X$881,'F. UL & OPEX flat rates'!$B$2:$G$43,5)))*1,X$3:X71)+X775)*VLOOKUP(X$881,'F. UL & OPEX flat rates'!$B$2:$G$43,6,0)","v":0},{"$f":"(SUMPRODUCT(($A$3:$A71>($A951-VLOOKUP(Y$881,'F. UL & OPEX flat rates'!$B$2:$G$43,5)))*1,Y$3:Y71)+Y775)*VLOOKUP(Y$881,'F. UL & OPEX flat rates'!$B$2:$G$43,6,0)","v":0},{"$f":"(SUMPRODUCT(($A$3:$A71>($A951-VLOOKUP(Z$881,'F. UL & OPEX flat rates'!$B$2:$G$43,5)))*1,Z$3:Z71)+Z775)*VLOOKUP(Z$881,'F. UL & OPEX flat rates'!$B$2:$G$43,6,0)","v":0},{"$f":"(SUMPRODUCT(($A$3:$A71>($A951-VLOOKUP(AA$881,'F. UL & OPEX flat rates'!$B$2:$G$43,5)))*1,AA$3:AA71)+AA775)*VLOOKUP(AA$881,'F. UL & OPEX flat rates'!$B$2:$G$43,6,0)","v":0},{"$f":"(SUMPRODUCT(($A$3:$A71>($A951-VLOOKUP(AB$881,'F. UL & OPEX flat rates'!$B$2:$G$43,5)))*1,AB$3:AB71)+AB775)*VLOOKUP(AB$881,'F. UL & OPEX flat rates'!$B$2:$G$43,6,0)","v":0},{"$f":"(SUMPRODUCT(($A$3:$A71>($A951-VLOOKUP(AC$881,'F. UL & OPEX flat rates'!$B$2:$G$43,5)))*1,AC$3:AC71)+AC775)*VLOOKUP(AC$881,'F. UL & OPEX flat rates'!$B$2:$G$43,6,0)","v":0},{"$f":"(SUMPRODUCT(($A$3:$A71>($A951-VLOOKUP(AD$881,'F. UL & OPEX flat rates'!$B$2:$G$43,5)))*1,AD$3:AD71)+AD775)*VLOOKUP(AD$881,'F. UL & OPEX flat rates'!$B$2:$G$43,6,0)","v":0},{"$f":"(SUMPRODUCT(($A$3:$A71>($A951-VLOOKUP(AE$881,'F. UL & OPEX flat rates'!$B$2:$G$43,5)))*1,AE$3:AE71)+AE775)*VLOOKUP(AE$881,'F. UL & OPEX flat rates'!$B$2:$G$43,6,0)","v":0},{"$f":"(SUMPRODUCT(($A$3:$A71>($A951-VLOOKUP(AF$881,'F. UL & OPEX flat rates'!$B$2:$G$43,5)))*1,AF$3:AF71)+AF775)*VLOOKUP(AF$881,'F. UL & OPEX flat rates'!$B$2:$G$43,6,0)","v":0},{"$f":"(SUMPRODUCT(($A$3:$A71>($A951-VLOOKUP(AG$881,'F. UL & OPEX flat rates'!$B$2:$G$43,5)))*1,AG$3:AG71)+AG775)*VLOOKUP(AG$881,'F. UL & OPEX flat rates'!$B$2:$G$43,6,0)","v":0},{"$f":"(SUMPRODUCT(($A$3:$A71>($A951-VLOOKUP(AH$881,'F. UL & OPEX flat rates'!$B$2:$G$43,5)))*1,AH$3:AH71)+AH775)*VLOOKUP(AH$881,'F. UL & OPEX flat rates'!$B$2:$G$43,6,0)","v":0},{"$f":"(SUMPRODUCT(($A$3:$A71>($A951-VLOOKUP(AI$881,'F. UL & OPEX flat rates'!$B$2:$G$43,5)))*1,AI$3:AI71)+AI775)*VLOOKUP(AI$881,'F. UL & OPEX flat rates'!$B$2:$G$43,6,0)","v":0},{"$f":"(SUMPRODUCT(($A$3:$A71>($A951-VLOOKUP(AJ$881,'F. UL & OPEX flat rates'!$B$2:$G$43,5)))*1,AJ$3:AJ71)+AJ775)*VLOOKUP(AJ$881,'F. UL & OPEX flat rates'!$B$2:$G$43,6,0)","v":0},{"$f":"(SUMPRODUCT(($A$3:$A71>($A951-VLOOKUP(AK$881,'F. UL & OPEX flat rates'!$B$2:$G$43,5)))*1,AK$3:AK71)+AK775)*VLOOKUP(AK$881,'F. UL & OPEX flat rates'!$B$2:$G$43,6,0)","v":0},{"$f":"(SUMPRODUCT(($A$3:$A71>($A951-VLOOKUP(AL$881,'F. UL & OPEX flat rates'!$B$2:$G$43,5)))*1,AL$3:AL71)+AL775)*VLOOKUP(AL$881,'F. UL & OPEX flat rates'!$B$2:$G$43,6,0)","v":0},{"$f":"(SUMPRODUCT(($A$3:$A71>($A951-VLOOKUP(AM$881,'F. UL & OPEX flat rates'!$B$2:$G$43,5)))*1,AM$3:AM71)+AM775)*VLOOKUP(AM$881,'F. UL & OPEX flat rates'!$B$2:$G$43,6,0)","v":0},{"$f":"(SUMPRODUCT(($A$3:$A71>($A951-VLOOKUP(AN$881,'F. UL & OPEX flat rates'!$B$2:$G$43,5)))*1,AN$3:AN71)+AN775)*VLOOKUP(AN$881,'F. UL & OPEX flat rates'!$B$2:$G$43,6,0)","v":0},{"$f":"(SUMPRODUCT(($A$3:$A71>($A951-VLOOKUP(AO$881,'F. UL & OPEX flat rates'!$B$2:$G$43,5)))*1,AO$3:AO71)+AO775)*VLOOKUP(AO$881,'F. UL & OPEX flat rates'!$B$2:$G$43,6,0)","v":0},{"$f":"(SUMPRODUCT(($A$3:$A71>($A951-VLOOKUP(AP$881,'F. UL & OPEX flat rates'!$B$2:$G$43,5)))*1,AP$3:AP71)+AP775)*VLOOKUP(AP$881,'F. UL & OPEX flat rates'!$B$2:$G$43,6,0)","v":0},{"$f":"(SUMPRODUCT(($A$3:$A71>($A951-VLOOKUP(AQ$881,'F. UL & OPEX flat rates'!$B$2:$G$43,5)))*1,AQ$3:AQ71)+AQ775)*VLOOKUP(AQ$881,'F. UL & OPEX flat rates'!$B$2:$G$43,6,0)","v":0}]
[2085,0,{"$f":"(SUMPRODUCT(($A$3:$A72>($A952-VLOOKUP(C$881,'F. UL & OPEX flat rates'!$B$2:$G$43,5)))*1,C$3:C72)+C776)*VLOOKUP(C$881,'F. UL & OPEX flat rates'!$B$2:$G$43,6,0)","v":0},{"$f":"(SUMPRODUCT(($A$3:$A72>($A952-VLOOKUP(D$881,'F. UL & OPEX flat rates'!$B$2:$G$43,5)))*1,D$3:D72)+D776)*VLOOKUP(D$881,'F. UL & OPEX flat rates'!$B$2:$G$43,6,0)","v":0},{"$f":"(SUMPRODUCT(($A$3:$A72>($A952-VLOOKUP(E$881,'F. UL & OPEX flat rates'!$B$2:$G$43,5)))*1,E$3:E72)+E776)*VLOOKUP(E$881,'F. UL & OPEX flat rates'!$B$2:$G$43,6,0)","v":0},{"$f":"(SUMPRODUCT(($A$3:$A72>($A952-VLOOKUP(F$881,'F. UL & OPEX flat rates'!$B$2:$G$43,5)))*1,F$3:F72)+F776)*VLOOKUP(F$881,'F. UL & OPEX flat rates'!$B$2:$G$43,6,0)","v":0},{"$f":"(SUMPRODUCT(($A$3:$A72>($A952-VLOOKUP(G$881,'F. UL & OPEX flat rates'!$B$2:$G$43,5)))*1,G$3:G72)+G776)*VLOOKUP(G$881,'F. UL & OPEX flat rates'!$B$2:$G$43,6,0)","v":0},{"$f":"(SUMPRODUCT(($A$3:$A72>($A952-VLOOKUP(H$881,'F. UL & OPEX flat rates'!$B$2:$G$43,5)))*1,H$3:H72)+H776)*VLOOKUP(H$881,'F. UL & OPEX flat rates'!$B$2:$G$43,6,0)","v":0},{"$f":"(SUMPRODUCT(($A$3:$A72>($A952-VLOOKUP(I$881,'F. UL & OPEX flat rates'!$B$2:$G$43,5)))*1,I$3:I72)+I776)*VLOOKUP(I$881,'F. UL & OPEX flat rates'!$B$2:$G$43,6,0)","v":0},{"$f":"(SUMPRODUCT(($A$3:$A72>($A952-VLOOKUP(J$881,'F. UL & OPEX flat rates'!$B$2:$G$43,5)))*1,J$3:J72)+J776)*VLOOKUP(J$881,'F. UL & OPEX flat rates'!$B$2:$G$43,6,0)","v":0},{"$f":"(SUMPRODUCT(($A$3:$A72>($A952-VLOOKUP(K$881,'F. UL & OPEX flat rates'!$B$2:$G$43,5)))*1,K$3:K72)+K776)*VLOOKUP(K$881,'F. UL & OPEX flat rates'!$B$2:$G$43,6,0)","v":0},{"$f":"(SUMPRODUCT(($A$3:$A72>($A952-VLOOKUP(L$881,'F. UL & OPEX flat rates'!$B$2:$G$43,5)))*1,L$3:L72)+L776)*VLOOKUP(L$881,'F. UL & OPEX flat rates'!$B$2:$G$43,6,0)","v":0},{"$f":"(SUMPRODUCT(($A$3:$A72>($A952-VLOOKUP(M$881,'F. UL & OPEX flat rates'!$B$2:$G$43,5)))*1,M$3:M72)+M776)*VLOOKUP(M$881,'F. UL & OPEX flat rates'!$B$2:$G$43,6,0)","v":0},{"$f":"(SUMPRODUCT(($A$3:$A72>($A952-VLOOKUP(N$881,'F. UL & OPEX flat rates'!$B$2:$G$43,5)))*1,N$3:N72)+N776)*VLOOKUP(N$881,'F. UL & OPEX flat rates'!$B$2:$G$43,6,0)","v":0},{"$f":"(SUMPRODUCT(($A$3:$A72>($A952-VLOOKUP(O$881,'F. UL & OPEX flat rates'!$B$2:$G$43,5)))*1,O$3:O72)+O776)*VLOOKUP(O$881,'F. UL & OPEX flat rates'!$B$2:$G$43,6,0)","v":0},{"$f":"(SUMPRODUCT(($A$3:$A72>($A952-VLOOKUP(P$881,'F. UL & OPEX flat rates'!$B$2:$G$43,5)))*1,P$3:P72)+P776)*VLOOKUP(P$881,'F. UL & OPEX flat rates'!$B$2:$G$43,6,0)","v":0},{"$f":"(SUMPRODUCT(($A$3:$A72>($A952-VLOOKUP(Q$881,'F. UL & OPEX flat rates'!$B$2:$G$43,5)))*1,Q$3:Q72)+Q776)*VLOOKUP(Q$881,'F. UL & OPEX flat rates'!$B$2:$G$43,6,0)","v":0},{"$f":"(SUMPRODUCT(($A$3:$A72>($A952-VLOOKUP(R$881,'F. UL & OPEX flat rates'!$B$2:$G$43,5)))*1,R$3:R72)+R776)*VLOOKUP(R$881,'F. UL & OPEX flat rates'!$B$2:$G$43,6,0)","v":0},{"$f":"(SUMPRODUCT(($A$3:$A72>($A952-VLOOKUP(S$881,'F. UL & OPEX flat rates'!$B$2:$G$43,5)))*1,S$3:S72)+S776)*VLOOKUP(S$881,'F. UL & OPEX flat rates'!$B$2:$G$43,6,0)","v":0},{"$f":"(SUMPRODUCT(($A$3:$A72>($A952-VLOOKUP(T$881,'F. UL & OPEX flat rates'!$B$2:$G$43,5)))*1,T$3:T72)+T776)*VLOOKUP(T$881,'F. UL & OPEX flat rates'!$B$2:$G$43,6,0)","v":0},{"$f":"(SUMPRODUCT(($A$3:$A72>($A952-VLOOKUP(U$881,'F. UL & OPEX flat rates'!$B$2:$G$43,5)))*1,U$3:U72)+U776)*VLOOKUP(U$881,'F. UL & OPEX flat rates'!$B$2:$G$43,6,0)","v":0},{"$f":"(SUMPRODUCT(($A$3:$A72>($A952-VLOOKUP(V$881,'F. UL & OPEX flat rates'!$B$2:$G$43,5)))*1,V$3:V72)+V776)*VLOOKUP(V$881,'F. UL & OPEX flat rates'!$B$2:$G$43,6,0)","v":0},{"$f":"(SUMPRODUCT(($A$3:$A72>($A952-VLOOKUP(W$881,'F. UL & OPEX flat rates'!$B$2:$G$43,5)))*1,W$3:W72)+W776)*VLOOKUP(W$881,'F. UL & OPEX flat rates'!$B$2:$G$43,6,0)","v":0},{"$f":"(SUMPRODUCT(($A$3:$A72>($A952-VLOOKUP(X$881,'F. UL & OPEX flat rates'!$B$2:$G$43,5)))*1,X$3:X72)+X776)*VLOOKUP(X$881,'F. UL & OPEX flat rates'!$B$2:$G$43,6,0)","v":0},{"$f":"(SUMPRODUCT(($A$3:$A72>($A952-VLOOKUP(Y$881,'F. UL & OPEX flat rates'!$B$2:$G$43,5)))*1,Y$3:Y72)+Y776)*VLOOKUP(Y$881,'F. UL & OPEX flat rates'!$B$2:$G$43,6,0)","v":0},{"$f":"(SUMPRODUCT(($A$3:$A72>($A952-VLOOKUP(Z$881,'F. UL & OPEX flat rates'!$B$2:$G$43,5)))*1,Z$3:Z72)+Z776)*VLOOKUP(Z$881,'F. UL & OPEX flat rates'!$B$2:$G$43,6,0)","v":0},{"$f":"(SUMPRODUCT(($A$3:$A72>($A952-VLOOKUP(AA$881,'F. UL & OPEX flat rates'!$B$2:$G$43,5)))*1,AA$3:AA72)+AA776)*VLOOKUP(AA$881,'F. UL & OPEX flat rates'!$B$2:$G$43,6,0)","v":0},{"$f":"(SUMPRODUCT(($A$3:$A72>($A952-VLOOKUP(AB$881,'F. UL & OPEX flat rates'!$B$2:$G$43,5)))*1,AB$3:AB72)+AB776)*VLOOKUP(AB$881,'F. UL & OPEX flat rates'!$B$2:$G$43,6,0)","v":0},{"$f":"(SUMPRODUCT(($A$3:$A72>($A952-VLOOKUP(AC$881,'F. UL & OPEX flat rates'!$B$2:$G$43,5)))*1,AC$3:AC72)+AC776)*VLOOKUP(AC$881,'F. UL & OPEX flat rates'!$B$2:$G$43,6,0)","v":0},{"$f":"(SUMPRODUCT(($A$3:$A72>($A952-VLOOKUP(AD$881,'F. UL & OPEX flat rates'!$B$2:$G$43,5)))*1,AD$3:AD72)+AD776)*VLOOKUP(AD$881,'F. UL & OPEX flat rates'!$B$2:$G$43,6,0)","v":0},{"$f":"(SUMPRODUCT(($A$3:$A72>($A952-VLOOKUP(AE$881,'F. UL & OPEX flat rates'!$B$2:$G$43,5)))*1,AE$3:AE72)+AE776)*VLOOKUP(AE$881,'F. UL & OPEX flat rates'!$B$2:$G$43,6,0)","v":0},{"$f":"(SUMPRODUCT(($A$3:$A72>($A952-VLOOKUP(AF$881,'F. UL & OPEX flat rates'!$B$2:$G$43,5)))*1,AF$3:AF72)+AF776)*VLOOKUP(AF$881,'F. UL & OPEX flat rates'!$B$2:$G$43,6,0)","v":0},{"$f":"(SUMPRODUCT(($A$3:$A72>($A952-VLOOKUP(AG$881,'F. UL & OPEX flat rates'!$B$2:$G$43,5)))*1,AG$3:AG72)+AG776)*VLOOKUP(AG$881,'F. UL & OPEX flat rates'!$B$2:$G$43,6,0)","v":0},{"$f":"(SUMPRODUCT(($A$3:$A72>($A952-VLOOKUP(AH$881,'F. UL & OPEX flat rates'!$B$2:$G$43,5)))*1,AH$3:AH72)+AH776)*VLOOKUP(AH$881,'F. UL & OPEX flat rates'!$B$2:$G$43,6,0)","v":0},{"$f":"(SUMPRODUCT(($A$3:$A72>($A952-VLOOKUP(AI$881,'F. UL & OPEX flat rates'!$B$2:$G$43,5)))*1,AI$3:AI72)+AI776)*VLOOKUP(AI$881,'F. UL & OPEX flat rates'!$B$2:$G$43,6,0)","v":0},{"$f":"(SUMPRODUCT(($A$3:$A72>($A952-VLOOKUP(AJ$881,'F. UL & OPEX flat rates'!$B$2:$G$43,5)))*1,AJ$3:AJ72)+AJ776)*VLOOKUP(AJ$881,'F. UL & OPEX flat rates'!$B$2:$G$43,6,0)","v":0},{"$f":"(SUMPRODUCT(($A$3:$A72>($A952-VLOOKUP(AK$881,'F. UL & OPEX flat rates'!$B$2:$G$43,5)))*1,AK$3:AK72)+AK776)*VLOOKUP(AK$881,'F. UL & OPEX flat rates'!$B$2:$G$43,6,0)","v":0},{"$f":"(SUMPRODUCT(($A$3:$A72>($A952-VLOOKUP(AL$881,'F. UL & OPEX flat rates'!$B$2:$G$43,5)))*1,AL$3:AL72)+AL776)*VLOOKUP(AL$881,'F. UL & OPEX flat rates'!$B$2:$G$43,6,0)","v":0},{"$f":"(SUMPRODUCT(($A$3:$A72>($A952-VLOOKUP(AM$881,'F. UL & OPEX flat rates'!$B$2:$G$43,5)))*1,AM$3:AM72)+AM776)*VLOOKUP(AM$881,'F. UL & OPEX flat rates'!$B$2:$G$43,6,0)","v":0},{"$f":"(SUMPRODUCT(($A$3:$A72>($A952-VLOOKUP(AN$881,'F. UL & OPEX flat rates'!$B$2:$G$43,5)))*1,AN$3:AN72)+AN776)*VLOOKUP(AN$881,'F. UL & OPEX flat rates'!$B$2:$G$43,6,0)","v":0},{"$f":"(SUMPRODUCT(($A$3:$A72>($A952-VLOOKUP(AO$881,'F. UL & OPEX flat rates'!$B$2:$G$43,5)))*1,AO$3:AO72)+AO776)*VLOOKUP(AO$881,'F. UL & OPEX flat rates'!$B$2:$G$43,6,0)","v":0},{"$f":"(SUMPRODUCT(($A$3:$A72>($A952-VLOOKUP(AP$881,'F. UL & OPEX flat rates'!$B$2:$G$43,5)))*1,AP$3:AP72)+AP776)*VLOOKUP(AP$881,'F. UL & OPEX flat rates'!$B$2:$G$43,6,0)","v":0},{"$f":"(SUMPRODUCT(($A$3:$A72>($A952-VLOOKUP(AQ$881,'F. UL & OPEX flat rates'!$B$2:$G$43,5)))*1,AQ$3:AQ72)+AQ776)*VLOOKUP(AQ$881,'F. UL & OPEX flat rates'!$B$2:$G$43,6,0)","v":0}]
[2086,0,{"$f":"(SUMPRODUCT(($A$3:$A73>($A953-VLOOKUP(C$881,'F. UL & OPEX flat rates'!$B$2:$G$43,5)))*1,C$3:C73)+C777)*VLOOKUP(C$881,'F. UL & OPEX flat rates'!$B$2:$G$43,6,0)","v":0},{"$f":"(SUMPRODUCT(($A$3:$A73>($A953-VLOOKUP(D$881,'F. UL & OPEX flat rates'!$B$2:$G$43,5)))*1,D$3:D73)+D777)*VLOOKUP(D$881,'F. UL & OPEX flat rates'!$B$2:$G$43,6,0)","v":0},{"$f":"(SUMPRODUCT(($A$3:$A73>($A953-VLOOKUP(E$881,'F. UL & OPEX flat rates'!$B$2:$G$43,5)))*1,E$3:E73)+E777)*VLOOKUP(E$881,'F. UL & OPEX flat rates'!$B$2:$G$43,6,0)","v":0},{"$f":"(SUMPRODUCT(($A$3:$A73>($A953-VLOOKUP(F$881,'F. UL & OPEX flat rates'!$B$2:$G$43,5)))*1,F$3:F73)+F777)*VLOOKUP(F$881,'F. UL & OPEX flat rates'!$B$2:$G$43,6,0)","v":0},{"$f":"(SUMPRODUCT(($A$3:$A73>($A953-VLOOKUP(G$881,'F. UL & OPEX flat rates'!$B$2:$G$43,5)))*1,G$3:G73)+G777)*VLOOKUP(G$881,'F. UL & OPEX flat rates'!$B$2:$G$43,6,0)","v":0},{"$f":"(SUMPRODUCT(($A$3:$A73>($A953-VLOOKUP(H$881,'F. UL & OPEX flat rates'!$B$2:$G$43,5)))*1,H$3:H73)+H777)*VLOOKUP(H$881,'F. UL & OPEX flat rates'!$B$2:$G$43,6,0)","v":0},{"$f":"(SUMPRODUCT(($A$3:$A73>($A953-VLOOKUP(I$881,'F. UL & OPEX flat rates'!$B$2:$G$43,5)))*1,I$3:I73)+I777)*VLOOKUP(I$881,'F. UL & OPEX flat rates'!$B$2:$G$43,6,0)","v":0},{"$f":"(SUMPRODUCT(($A$3:$A73>($A953-VLOOKUP(J$881,'F. UL & OPEX flat rates'!$B$2:$G$43,5)))*1,J$3:J73)+J777)*VLOOKUP(J$881,'F. UL & OPEX flat rates'!$B$2:$G$43,6,0)","v":0},{"$f":"(SUMPRODUCT(($A$3:$A73>($A953-VLOOKUP(K$881,'F. UL & OPEX flat rates'!$B$2:$G$43,5)))*1,K$3:K73)+K777)*VLOOKUP(K$881,'F. UL & OPEX flat rates'!$B$2:$G$43,6,0)","v":0},{"$f":"(SUMPRODUCT(($A$3:$A73>($A953-VLOOKUP(L$881,'F. UL & OPEX flat rates'!$B$2:$G$43,5)))*1,L$3:L73)+L777)*VLOOKUP(L$881,'F. UL & OPEX flat rates'!$B$2:$G$43,6,0)","v":0},{"$f":"(SUMPRODUCT(($A$3:$A73>($A953-VLOOKUP(M$881,'F. UL & OPEX flat rates'!$B$2:$G$43,5)))*1,M$3:M73)+M777)*VLOOKUP(M$881,'F. UL & OPEX flat rates'!$B$2:$G$43,6,0)","v":0},{"$f":"(SUMPRODUCT(($A$3:$A73>($A953-VLOOKUP(N$881,'F. UL & OPEX flat rates'!$B$2:$G$43,5)))*1,N$3:N73)+N777)*VLOOKUP(N$881,'F. UL & OPEX flat rates'!$B$2:$G$43,6,0)","v":0},{"$f":"(SUMPRODUCT(($A$3:$A73>($A953-VLOOKUP(O$881,'F. UL & OPEX flat rates'!$B$2:$G$43,5)))*1,O$3:O73)+O777)*VLOOKUP(O$881,'F. UL & OPEX flat rates'!$B$2:$G$43,6,0)","v":0},{"$f":"(SUMPRODUCT(($A$3:$A73>($A953-VLOOKUP(P$881,'F. UL & OPEX flat rates'!$B$2:$G$43,5)))*1,P$3:P73)+P777)*VLOOKUP(P$881,'F. UL & OPEX flat rates'!$B$2:$G$43,6,0)","v":0},{"$f":"(SUMPRODUCT(($A$3:$A73>($A953-VLOOKUP(Q$881,'F. UL & OPEX flat rates'!$B$2:$G$43,5)))*1,Q$3:Q73)+Q777)*VLOOKUP(Q$881,'F. UL & OPEX flat rates'!$B$2:$G$43,6,0)","v":0},{"$f":"(SUMPRODUCT(($A$3:$A73>($A953-VLOOKUP(R$881,'F. UL & OPEX flat rates'!$B$2:$G$43,5)))*1,R$3:R73)+R777)*VLOOKUP(R$881,'F. UL & OPEX flat rates'!$B$2:$G$43,6,0)","v":0},{"$f":"(SUMPRODUCT(($A$3:$A73>($A953-VLOOKUP(S$881,'F. UL & OPEX flat rates'!$B$2:$G$43,5)))*1,S$3:S73)+S777)*VLOOKUP(S$881,'F. UL & OPEX flat rates'!$B$2:$G$43,6,0)","v":0},{"$f":"(SUMPRODUCT(($A$3:$A73>($A953-VLOOKUP(T$881,'F. UL & OPEX flat rates'!$B$2:$G$43,5)))*1,T$3:T73)+T777)*VLOOKUP(T$881,'F. UL & OPEX flat rates'!$B$2:$G$43,6,0)","v":0},{"$f":"(SUMPRODUCT(($A$3:$A73>($A953-VLOOKUP(U$881,'F. UL & OPEX flat rates'!$B$2:$G$43,5)))*1,U$3:U73)+U777)*VLOOKUP(U$881,'F. UL & OPEX flat rates'!$B$2:$G$43,6,0)","v":0},{"$f":"(SUMPRODUCT(($A$3:$A73>($A953-VLOOKUP(V$881,'F. UL & OPEX flat rates'!$B$2:$G$43,5)))*1,V$3:V73)+V777)*VLOOKUP(V$881,'F. UL & OPEX flat rates'!$B$2:$G$43,6,0)","v":0},{"$f":"(SUMPRODUCT(($A$3:$A73>($A953-VLOOKUP(W$881,'F. UL & OPEX flat rates'!$B$2:$G$43,5)))*1,W$3:W73)+W777)*VLOOKUP(W$881,'F. UL & OPEX flat rates'!$B$2:$G$43,6,0)","v":0},{"$f":"(SUMPRODUCT(($A$3:$A73>($A953-VLOOKUP(X$881,'F. UL & OPEX flat rates'!$B$2:$G$43,5)))*1,X$3:X73)+X777)*VLOOKUP(X$881,'F. UL & OPEX flat rates'!$B$2:$G$43,6,0)","v":0},{"$f":"(SUMPRODUCT(($A$3:$A73>($A953-VLOOKUP(Y$881,'F. UL & OPEX flat rates'!$B$2:$G$43,5)))*1,Y$3:Y73)+Y777)*VLOOKUP(Y$881,'F. UL & OPEX flat rates'!$B$2:$G$43,6,0)","v":0},{"$f":"(SUMPRODUCT(($A$3:$A73>($A953-VLOOKUP(Z$881,'F. UL & OPEX flat rates'!$B$2:$G$43,5)))*1,Z$3:Z73)+Z777)*VLOOKUP(Z$881,'F. UL & OPEX flat rates'!$B$2:$G$43,6,0)","v":0},{"$f":"(SUMPRODUCT(($A$3:$A73>($A953-VLOOKUP(AA$881,'F. UL & OPEX flat rates'!$B$2:$G$43,5)))*1,AA$3:AA73)+AA777)*VLOOKUP(AA$881,'F. UL & OPEX flat rates'!$B$2:$G$43,6,0)","v":0},{"$f":"(SUMPRODUCT(($A$3:$A73>($A953-VLOOKUP(AB$881,'F. UL & OPEX flat rates'!$B$2:$G$43,5)))*1,AB$3:AB73)+AB777)*VLOOKUP(AB$881,'F. UL & OPEX flat rates'!$B$2:$G$43,6,0)","v":0},{"$f":"(SUMPRODUCT(($A$3:$A73>($A953-VLOOKUP(AC$881,'F. UL & OPEX flat rates'!$B$2:$G$43,5)))*1,AC$3:AC73)+AC777)*VLOOKUP(AC$881,'F. UL & OPEX flat rates'!$B$2:$G$43,6,0)","v":0},{"$f":"(SUMPRODUCT(($A$3:$A73>($A953-VLOOKUP(AD$881,'F. UL & OPEX flat rates'!$B$2:$G$43,5)))*1,AD$3:AD73)+AD777)*VLOOKUP(AD$881,'F. UL & OPEX flat rates'!$B$2:$G$43,6,0)","v":0},{"$f":"(SUMPRODUCT(($A$3:$A73>($A953-VLOOKUP(AE$881,'F. UL & OPEX flat rates'!$B$2:$G$43,5)))*1,AE$3:AE73)+AE777)*VLOOKUP(AE$881,'F. UL & OPEX flat rates'!$B$2:$G$43,6,0)","v":0},{"$f":"(SUMPRODUCT(($A$3:$A73>($A953-VLOOKUP(AF$881,'F. UL & OPEX flat rates'!$B$2:$G$43,5)))*1,AF$3:AF73)+AF777)*VLOOKUP(AF$881,'F. UL & OPEX flat rates'!$B$2:$G$43,6,0)","v":0},{"$f":"(SUMPRODUCT(($A$3:$A73>($A953-VLOOKUP(AG$881,'F. UL & OPEX flat rates'!$B$2:$G$43,5)))*1,AG$3:AG73)+AG777)*VLOOKUP(AG$881,'F. UL & OPEX flat rates'!$B$2:$G$43,6,0)","v":0},{"$f":"(SUMPRODUCT(($A$3:$A73>($A953-VLOOKUP(AH$881,'F. UL & OPEX flat rates'!$B$2:$G$43,5)))*1,AH$3:AH73)+AH777)*VLOOKUP(AH$881,'F. UL & OPEX flat rates'!$B$2:$G$43,6,0)","v":0},{"$f":"(SUMPRODUCT(($A$3:$A73>($A953-VLOOKUP(AI$881,'F. UL & OPEX flat rates'!$B$2:$G$43,5)))*1,AI$3:AI73)+AI777)*VLOOKUP(AI$881,'F. UL & OPEX flat rates'!$B$2:$G$43,6,0)","v":0},{"$f":"(SUMPRODUCT(($A$3:$A73>($A953-VLOOKUP(AJ$881,'F. UL & OPEX flat rates'!$B$2:$G$43,5)))*1,AJ$3:AJ73)+AJ777)*VLOOKUP(AJ$881,'F. UL & OPEX flat rates'!$B$2:$G$43,6,0)","v":0},{"$f":"(SUMPRODUCT(($A$3:$A73>($A953-VLOOKUP(AK$881,'F. UL & OPEX flat rates'!$B$2:$G$43,5)))*1,AK$3:AK73)+AK777)*VLOOKUP(AK$881,'F. UL & OPEX flat rates'!$B$2:$G$43,6,0)","v":0},{"$f":"(SUMPRODUCT(($A$3:$A73>($A953-VLOOKUP(AL$881,'F. UL & OPEX flat rates'!$B$2:$G$43,5)))*1,AL$3:AL73)+AL777)*VLOOKUP(AL$881,'F. UL & OPEX flat rates'!$B$2:$G$43,6,0)","v":0},{"$f":"(SUMPRODUCT(($A$3:$A73>($A953-VLOOKUP(AM$881,'F. UL & OPEX flat rates'!$B$2:$G$43,5)))*1,AM$3:AM73)+AM777)*VLOOKUP(AM$881,'F. UL & OPEX flat rates'!$B$2:$G$43,6,0)","v":0},{"$f":"(SUMPRODUCT(($A$3:$A73>($A953-VLOOKUP(AN$881,'F. UL & OPEX flat rates'!$B$2:$G$43,5)))*1,AN$3:AN73)+AN777)*VLOOKUP(AN$881,'F. UL & OPEX flat rates'!$B$2:$G$43,6,0)","v":0},{"$f":"(SUMPRODUCT(($A$3:$A73>($A953-VLOOKUP(AO$881,'F. UL & OPEX flat rates'!$B$2:$G$43,5)))*1,AO$3:AO73)+AO777)*VLOOKUP(AO$881,'F. UL & OPEX flat rates'!$B$2:$G$43,6,0)","v":0},{"$f":"(SUMPRODUCT(($A$3:$A73>($A953-VLOOKUP(AP$881,'F. UL & OPEX flat rates'!$B$2:$G$43,5)))*1,AP$3:AP73)+AP777)*VLOOKUP(AP$881,'F. UL & OPEX flat rates'!$B$2:$G$43,6,0)","v":0},{"$f":"(SUMPRODUCT(($A$3:$A73>($A953-VLOOKUP(AQ$881,'F. UL & OPEX flat rates'!$B$2:$G$43,5)))*1,AQ$3:AQ73)+AQ777)*VLOOKUP(AQ$881,'F. UL & OPEX flat rates'!$B$2:$G$43,6,0)","v":0}]
[2087,0,{"$f":"(SUMPRODUCT(($A$3:$A74>($A954-VLOOKUP(C$881,'F. UL & OPEX flat rates'!$B$2:$G$43,5)))*1,C$3:C74)+C778)*VLOOKUP(C$881,'F. UL & OPEX flat rates'!$B$2:$G$43,6,0)","v":0},{"$f":"(SUMPRODUCT(($A$3:$A74>($A954-VLOOKUP(D$881,'F. UL & OPEX flat rates'!$B$2:$G$43,5)))*1,D$3:D74)+D778)*VLOOKUP(D$881,'F. UL & OPEX flat rates'!$B$2:$G$43,6,0)","v":0},{"$f":"(SUMPRODUCT(($A$3:$A74>($A954-VLOOKUP(E$881,'F. UL & OPEX flat rates'!$B$2:$G$43,5)))*1,E$3:E74)+E778)*VLOOKUP(E$881,'F. UL & OPEX flat rates'!$B$2:$G$43,6,0)","v":0},{"$f":"(SUMPRODUCT(($A$3:$A74>($A954-VLOOKUP(F$881,'F. UL & OPEX flat rates'!$B$2:$G$43,5)))*1,F$3:F74)+F778)*VLOOKUP(F$881,'F. UL & OPEX flat rates'!$B$2:$G$43,6,0)","v":0},{"$f":"(SUMPRODUCT(($A$3:$A74>($A954-VLOOKUP(G$881,'F. UL & OPEX flat rates'!$B$2:$G$43,5)))*1,G$3:G74)+G778)*VLOOKUP(G$881,'F. UL & OPEX flat rates'!$B$2:$G$43,6,0)","v":0},{"$f":"(SUMPRODUCT(($A$3:$A74>($A954-VLOOKUP(H$881,'F. UL & OPEX flat rates'!$B$2:$G$43,5)))*1,H$3:H74)+H778)*VLOOKUP(H$881,'F. UL & OPEX flat rates'!$B$2:$G$43,6,0)","v":0},{"$f":"(SUMPRODUCT(($A$3:$A74>($A954-VLOOKUP(I$881,'F. UL & OPEX flat rates'!$B$2:$G$43,5)))*1,I$3:I74)+I778)*VLOOKUP(I$881,'F. UL & OPEX flat rates'!$B$2:$G$43,6,0)","v":0},{"$f":"(SUMPRODUCT(($A$3:$A74>($A954-VLOOKUP(J$881,'F. UL & OPEX flat rates'!$B$2:$G$43,5)))*1,J$3:J74)+J778)*VLOOKUP(J$881,'F. UL & OPEX flat rates'!$B$2:$G$43,6,0)","v":0},{"$f":"(SUMPRODUCT(($A$3:$A74>($A954-VLOOKUP(K$881,'F. UL & OPEX flat rates'!$B$2:$G$43,5)))*1,K$3:K74)+K778)*VLOOKUP(K$881,'F. UL & OPEX flat rates'!$B$2:$G$43,6,0)","v":0},{"$f":"(SUMPRODUCT(($A$3:$A74>($A954-VLOOKUP(L$881,'F. UL & OPEX flat rates'!$B$2:$G$43,5)))*1,L$3:L74)+L778)*VLOOKUP(L$881,'F. UL & OPEX flat rates'!$B$2:$G$43,6,0)","v":0},{"$f":"(SUMPRODUCT(($A$3:$A74>($A954-VLOOKUP(M$881,'F. UL & OPEX flat rates'!$B$2:$G$43,5)))*1,M$3:M74)+M778)*VLOOKUP(M$881,'F. UL & OPEX flat rates'!$B$2:$G$43,6,0)","v":0},{"$f":"(SUMPRODUCT(($A$3:$A74>($A954-VLOOKUP(N$881,'F. UL & OPEX flat rates'!$B$2:$G$43,5)))*1,N$3:N74)+N778)*VLOOKUP(N$881,'F. UL & OPEX flat rates'!$B$2:$G$43,6,0)","v":0},{"$f":"(SUMPRODUCT(($A$3:$A74>($A954-VLOOKUP(O$881,'F. UL & OPEX flat rates'!$B$2:$G$43,5)))*1,O$3:O74)+O778)*VLOOKUP(O$881,'F. UL & OPEX flat rates'!$B$2:$G$43,6,0)","v":0},{"$f":"(SUMPRODUCT(($A$3:$A74>($A954-VLOOKUP(P$881,'F. UL & OPEX flat rates'!$B$2:$G$43,5)))*1,P$3:P74)+P778)*VLOOKUP(P$881,'F. UL & OPEX flat rates'!$B$2:$G$43,6,0)","v":0},{"$f":"(SUMPRODUCT(($A$3:$A74>($A954-VLOOKUP(Q$881,'F. UL & OPEX flat rates'!$B$2:$G$43,5)))*1,Q$3:Q74)+Q778)*VLOOKUP(Q$881,'F. UL & OPEX flat rates'!$B$2:$G$43,6,0)","v":0},{"$f":"(SUMPRODUCT(($A$3:$A74>($A954-VLOOKUP(R$881,'F. UL & OPEX flat rates'!$B$2:$G$43,5)))*1,R$3:R74)+R778)*VLOOKUP(R$881,'F. UL & OPEX flat rates'!$B$2:$G$43,6,0)","v":0},{"$f":"(SUMPRODUCT(($A$3:$A74>($A954-VLOOKUP(S$881,'F. UL & OPEX flat rates'!$B$2:$G$43,5)))*1,S$3:S74)+S778)*VLOOKUP(S$881,'F. UL & OPEX flat rates'!$B$2:$G$43,6,0)","v":0},{"$f":"(SUMPRODUCT(($A$3:$A74>($A954-VLOOKUP(T$881,'F. UL & OPEX flat rates'!$B$2:$G$43,5)))*1,T$3:T74)+T778)*VLOOKUP(T$881,'F. UL & OPEX flat rates'!$B$2:$G$43,6,0)","v":0},{"$f":"(SUMPRODUCT(($A$3:$A74>($A954-VLOOKUP(U$881,'F. UL & OPEX flat rates'!$B$2:$G$43,5)))*1,U$3:U74)+U778)*VLOOKUP(U$881,'F. UL & OPEX flat rates'!$B$2:$G$43,6,0)","v":0},{"$f":"(SUMPRODUCT(($A$3:$A74>($A954-VLOOKUP(V$881,'F. UL & OPEX flat rates'!$B$2:$G$43,5)))*1,V$3:V74)+V778)*VLOOKUP(V$881,'F. UL & OPEX flat rates'!$B$2:$G$43,6,0)","v":0},{"$f":"(SUMPRODUCT(($A$3:$A74>($A954-VLOOKUP(W$881,'F. UL & OPEX flat rates'!$B$2:$G$43,5)))*1,W$3:W74)+W778)*VLOOKUP(W$881,'F. UL & OPEX flat rates'!$B$2:$G$43,6,0)","v":0},{"$f":"(SUMPRODUCT(($A$3:$A74>($A954-VLOOKUP(X$881,'F. UL & OPEX flat rates'!$B$2:$G$43,5)))*1,X$3:X74)+X778)*VLOOKUP(X$881,'F. UL & OPEX flat rates'!$B$2:$G$43,6,0)","v":0},{"$f":"(SUMPRODUCT(($A$3:$A74>($A954-VLOOKUP(Y$881,'F. UL & OPEX flat rates'!$B$2:$G$43,5)))*1,Y$3:Y74)+Y778)*VLOOKUP(Y$881,'F. UL & OPEX flat rates'!$B$2:$G$43,6,0)","v":0},{"$f":"(SUMPRODUCT(($A$3:$A74>($A954-VLOOKUP(Z$881,'F. UL & OPEX flat rates'!$B$2:$G$43,5)))*1,Z$3:Z74)+Z778)*VLOOKUP(Z$881,'F. UL & OPEX flat rates'!$B$2:$G$43,6,0)","v":0},{"$f":"(SUMPRODUCT(($A$3:$A74>($A954-VLOOKUP(AA$881,'F. UL & OPEX flat rates'!$B$2:$G$43,5)))*1,AA$3:AA74)+AA778)*VLOOKUP(AA$881,'F. UL & OPEX flat rates'!$B$2:$G$43,6,0)","v":0},{"$f":"(SUMPRODUCT(($A$3:$A74>($A954-VLOOKUP(AB$881,'F. UL & OPEX flat rates'!$B$2:$G$43,5)))*1,AB$3:AB74)+AB778)*VLOOKUP(AB$881,'F. UL & OPEX flat rates'!$B$2:$G$43,6,0)","v":0},{"$f":"(SUMPRODUCT(($A$3:$A74>($A954-VLOOKUP(AC$881,'F. UL & OPEX flat rates'!$B$2:$G$43,5)))*1,AC$3:AC74)+AC778)*VLOOKUP(AC$881,'F. UL & OPEX flat rates'!$B$2:$G$43,6,0)","v":0},{"$f":"(SUMPRODUCT(($A$3:$A74>($A954-VLOOKUP(AD$881,'F. UL & OPEX flat rates'!$B$2:$G$43,5)))*1,AD$3:AD74)+AD778)*VLOOKUP(AD$881,'F. UL & OPEX flat rates'!$B$2:$G$43,6,0)","v":0},{"$f":"(SUMPRODUCT(($A$3:$A74>($A954-VLOOKUP(AE$881,'F. UL & OPEX flat rates'!$B$2:$G$43,5)))*1,AE$3:AE74)+AE778)*VLOOKUP(AE$881,'F. UL & OPEX flat rates'!$B$2:$G$43,6,0)","v":0},{"$f":"(SUMPRODUCT(($A$3:$A74>($A954-VLOOKUP(AF$881,'F. UL & OPEX flat rates'!$B$2:$G$43,5)))*1,AF$3:AF74)+AF778)*VLOOKUP(AF$881,'F. UL & OPEX flat rates'!$B$2:$G$43,6,0)","v":0},{"$f":"(SUMPRODUCT(($A$3:$A74>($A954-VLOOKUP(AG$881,'F. UL & OPEX flat rates'!$B$2:$G$43,5)))*1,AG$3:AG74)+AG778)*VLOOKUP(AG$881,'F. UL & OPEX flat rates'!$B$2:$G$43,6,0)","v":0},{"$f":"(SUMPRODUCT(($A$3:$A74>($A954-VLOOKUP(AH$881,'F. UL & OPEX flat rates'!$B$2:$G$43,5)))*1,AH$3:AH74)+AH778)*VLOOKUP(AH$881,'F. UL & OPEX flat rates'!$B$2:$G$43,6,0)","v":0},{"$f":"(SUMPRODUCT(($A$3:$A74>($A954-VLOOKUP(AI$881,'F. UL & OPEX flat rates'!$B$2:$G$43,5)))*1,AI$3:AI74)+AI778)*VLOOKUP(AI$881,'F. UL & OPEX flat rates'!$B$2:$G$43,6,0)","v":0},{"$f":"(SUMPRODUCT(($A$3:$A74>($A954-VLOOKUP(AJ$881,'F. UL & OPEX flat rates'!$B$2:$G$43,5)))*1,AJ$3:AJ74)+AJ778)*VLOOKUP(AJ$881,'F. UL & OPEX flat rates'!$B$2:$G$43,6,0)","v":0},{"$f":"(SUMPRODUCT(($A$3:$A74>($A954-VLOOKUP(AK$881,'F. UL & OPEX flat rates'!$B$2:$G$43,5)))*1,AK$3:AK74)+AK778)*VLOOKUP(AK$881,'F. UL & OPEX flat rates'!$B$2:$G$43,6,0)","v":0},{"$f":"(SUMPRODUCT(($A$3:$A74>($A954-VLOOKUP(AL$881,'F. UL & OPEX flat rates'!$B$2:$G$43,5)))*1,AL$3:AL74)+AL778)*VLOOKUP(AL$881,'F. UL & OPEX flat rates'!$B$2:$G$43,6,0)","v":0},{"$f":"(SUMPRODUCT(($A$3:$A74>($A954-VLOOKUP(AM$881,'F. UL & OPEX flat rates'!$B$2:$G$43,5)))*1,AM$3:AM74)+AM778)*VLOOKUP(AM$881,'F. UL & OPEX flat rates'!$B$2:$G$43,6,0)","v":0},{"$f":"(SUMPRODUCT(($A$3:$A74>($A954-VLOOKUP(AN$881,'F. UL & OPEX flat rates'!$B$2:$G$43,5)))*1,AN$3:AN74)+AN778)*VLOOKUP(AN$881,'F. UL & OPEX flat rates'!$B$2:$G$43,6,0)","v":0},{"$f":"(SUMPRODUCT(($A$3:$A74>($A954-VLOOKUP(AO$881,'F. UL & OPEX flat rates'!$B$2:$G$43,5)))*1,AO$3:AO74)+AO778)*VLOOKUP(AO$881,'F. UL & OPEX flat rates'!$B$2:$G$43,6,0)","v":0},{"$f":"(SUMPRODUCT(($A$3:$A74>($A954-VLOOKUP(AP$881,'F. UL & OPEX flat rates'!$B$2:$G$43,5)))*1,AP$3:AP74)+AP778)*VLOOKUP(AP$881,'F. UL & OPEX flat rates'!$B$2:$G$43,6,0)","v":0},{"$f":"(SUMPRODUCT(($A$3:$A74>($A954-VLOOKUP(AQ$881,'F. UL & OPEX flat rates'!$B$2:$G$43,5)))*1,AQ$3:AQ74)+AQ778)*VLOOKUP(AQ$881,'F. UL & OPEX flat rates'!$B$2:$G$43,6,0)","v":0}]
[2088,0,{"$f":"(SUMPRODUCT(($A$3:$A75>($A955-VLOOKUP(C$881,'F. UL & OPEX flat rates'!$B$2:$G$43,5)))*1,C$3:C75)+C779)*VLOOKUP(C$881,'F. UL & OPEX flat rates'!$B$2:$G$43,6,0)","v":0},{"$f":"(SUMPRODUCT(($A$3:$A75>($A955-VLOOKUP(D$881,'F. UL & OPEX flat rates'!$B$2:$G$43,5)))*1,D$3:D75)+D779)*VLOOKUP(D$881,'F. UL & OPEX flat rates'!$B$2:$G$43,6,0)","v":0},{"$f":"(SUMPRODUCT(($A$3:$A75>($A955-VLOOKUP(E$881,'F. UL & OPEX flat rates'!$B$2:$G$43,5)))*1,E$3:E75)+E779)*VLOOKUP(E$881,'F. UL & OPEX flat rates'!$B$2:$G$43,6,0)","v":0},{"$f":"(SUMPRODUCT(($A$3:$A75>($A955-VLOOKUP(F$881,'F. UL & OPEX flat rates'!$B$2:$G$43,5)))*1,F$3:F75)+F779)*VLOOKUP(F$881,'F. UL & OPEX flat rates'!$B$2:$G$43,6,0)","v":0},{"$f":"(SUMPRODUCT(($A$3:$A75>($A955-VLOOKUP(G$881,'F. UL & OPEX flat rates'!$B$2:$G$43,5)))*1,G$3:G75)+G779)*VLOOKUP(G$881,'F. UL & OPEX flat rates'!$B$2:$G$43,6,0)","v":0},{"$f":"(SUMPRODUCT(($A$3:$A75>($A955-VLOOKUP(H$881,'F. UL & OPEX flat rates'!$B$2:$G$43,5)))*1,H$3:H75)+H779)*VLOOKUP(H$881,'F. UL & OPEX flat rates'!$B$2:$G$43,6,0)","v":0},{"$f":"(SUMPRODUCT(($A$3:$A75>($A955-VLOOKUP(I$881,'F. UL & OPEX flat rates'!$B$2:$G$43,5)))*1,I$3:I75)+I779)*VLOOKUP(I$881,'F. UL & OPEX flat rates'!$B$2:$G$43,6,0)","v":0},{"$f":"(SUMPRODUCT(($A$3:$A75>($A955-VLOOKUP(J$881,'F. UL & OPEX flat rates'!$B$2:$G$43,5)))*1,J$3:J75)+J779)*VLOOKUP(J$881,'F. UL & OPEX flat rates'!$B$2:$G$43,6,0)","v":0},{"$f":"(SUMPRODUCT(($A$3:$A75>($A955-VLOOKUP(K$881,'F. UL & OPEX flat rates'!$B$2:$G$43,5)))*1,K$3:K75)+K779)*VLOOKUP(K$881,'F. UL & OPEX flat rates'!$B$2:$G$43,6,0)","v":0},{"$f":"(SUMPRODUCT(($A$3:$A75>($A955-VLOOKUP(L$881,'F. UL & OPEX flat rates'!$B$2:$G$43,5)))*1,L$3:L75)+L779)*VLOOKUP(L$881,'F. UL & OPEX flat rates'!$B$2:$G$43,6,0)","v":0},{"$f":"(SUMPRODUCT(($A$3:$A75>($A955-VLOOKUP(M$881,'F. UL & OPEX flat rates'!$B$2:$G$43,5)))*1,M$3:M75)+M779)*VLOOKUP(M$881,'F. UL & OPEX flat rates'!$B$2:$G$43,6,0)","v":0},{"$f":"(SUMPRODUCT(($A$3:$A75>($A955-VLOOKUP(N$881,'F. UL & OPEX flat rates'!$B$2:$G$43,5)))*1,N$3:N75)+N779)*VLOOKUP(N$881,'F. UL & OPEX flat rates'!$B$2:$G$43,6,0)","v":0},{"$f":"(SUMPRODUCT(($A$3:$A75>($A955-VLOOKUP(O$881,'F. UL & OPEX flat rates'!$B$2:$G$43,5)))*1,O$3:O75)+O779)*VLOOKUP(O$881,'F. UL & OPEX flat rates'!$B$2:$G$43,6,0)","v":0},{"$f":"(SUMPRODUCT(($A$3:$A75>($A955-VLOOKUP(P$881,'F. UL & OPEX flat rates'!$B$2:$G$43,5)))*1,P$3:P75)+P779)*VLOOKUP(P$881,'F. UL & OPEX flat rates'!$B$2:$G$43,6,0)","v":0},{"$f":"(SUMPRODUCT(($A$3:$A75>($A955-VLOOKUP(Q$881,'F. UL & OPEX flat rates'!$B$2:$G$43,5)))*1,Q$3:Q75)+Q779)*VLOOKUP(Q$881,'F. UL & OPEX flat rates'!$B$2:$G$43,6,0)","v":0},{"$f":"(SUMPRODUCT(($A$3:$A75>($A955-VLOOKUP(R$881,'F. UL & OPEX flat rates'!$B$2:$G$43,5)))*1,R$3:R75)+R779)*VLOOKUP(R$881,'F. UL & OPEX flat rates'!$B$2:$G$43,6,0)","v":0},{"$f":"(SUMPRODUCT(($A$3:$A75>($A955-VLOOKUP(S$881,'F. UL & OPEX flat rates'!$B$2:$G$43,5)))*1,S$3:S75)+S779)*VLOOKUP(S$881,'F. UL & OPEX flat rates'!$B$2:$G$43,6,0)","v":0},{"$f":"(SUMPRODUCT(($A$3:$A75>($A955-VLOOKUP(T$881,'F. UL & OPEX flat rates'!$B$2:$G$43,5)))*1,T$3:T75)+T779)*VLOOKUP(T$881,'F. UL & OPEX flat rates'!$B$2:$G$43,6,0)","v":0},{"$f":"(SUMPRODUCT(($A$3:$A75>($A955-VLOOKUP(U$881,'F. UL & OPEX flat rates'!$B$2:$G$43,5)))*1,U$3:U75)+U779)*VLOOKUP(U$881,'F. UL & OPEX flat rates'!$B$2:$G$43,6,0)","v":0},{"$f":"(SUMPRODUCT(($A$3:$A75>($A955-VLOOKUP(V$881,'F. UL & OPEX flat rates'!$B$2:$G$43,5)))*1,V$3:V75)+V779)*VLOOKUP(V$881,'F. UL & OPEX flat rates'!$B$2:$G$43,6,0)","v":0},{"$f":"(SUMPRODUCT(($A$3:$A75>($A955-VLOOKUP(W$881,'F. UL & OPEX flat rates'!$B$2:$G$43,5)))*1,W$3:W75)+W779)*VLOOKUP(W$881,'F. UL & OPEX flat rates'!$B$2:$G$43,6,0)","v":0},{"$f":"(SUMPRODUCT(($A$3:$A75>($A955-VLOOKUP(X$881,'F. UL & OPEX flat rates'!$B$2:$G$43,5)))*1,X$3:X75)+X779)*VLOOKUP(X$881,'F. UL & OPEX flat rates'!$B$2:$G$43,6,0)","v":0},{"$f":"(SUMPRODUCT(($A$3:$A75>($A955-VLOOKUP(Y$881,'F. UL & OPEX flat rates'!$B$2:$G$43,5)))*1,Y$3:Y75)+Y779)*VLOOKUP(Y$881,'F. UL & OPEX flat rates'!$B$2:$G$43,6,0)","v":0},{"$f":"(SUMPRODUCT(($A$3:$A75>($A955-VLOOKUP(Z$881,'F. UL & OPEX flat rates'!$B$2:$G$43,5)))*1,Z$3:Z75)+Z779)*VLOOKUP(Z$881,'F. UL & OPEX flat rates'!$B$2:$G$43,6,0)","v":0},{"$f":"(SUMPRODUCT(($A$3:$A75>($A955-VLOOKUP(AA$881,'F. UL & OPEX flat rates'!$B$2:$G$43,5)))*1,AA$3:AA75)+AA779)*VLOOKUP(AA$881,'F. UL & OPEX flat rates'!$B$2:$G$43,6,0)","v":0},{"$f":"(SUMPRODUCT(($A$3:$A75>($A955-VLOOKUP(AB$881,'F. UL & OPEX flat rates'!$B$2:$G$43,5)))*1,AB$3:AB75)+AB779)*VLOOKUP(AB$881,'F. UL & OPEX flat rates'!$B$2:$G$43,6,0)","v":0},{"$f":"(SUMPRODUCT(($A$3:$A75>($A955-VLOOKUP(AC$881,'F. UL & OPEX flat rates'!$B$2:$G$43,5)))*1,AC$3:AC75)+AC779)*VLOOKUP(AC$881,'F. UL & OPEX flat rates'!$B$2:$G$43,6,0)","v":0},{"$f":"(SUMPRODUCT(($A$3:$A75>($A955-VLOOKUP(AD$881,'F. UL & OPEX flat rates'!$B$2:$G$43,5)))*1,AD$3:AD75)+AD779)*VLOOKUP(AD$881,'F. UL & OPEX flat rates'!$B$2:$G$43,6,0)","v":0},{"$f":"(SUMPRODUCT(($A$3:$A75>($A955-VLOOKUP(AE$881,'F. UL & OPEX flat rates'!$B$2:$G$43,5)))*1,AE$3:AE75)+AE779)*VLOOKUP(AE$881,'F. UL & OPEX flat rates'!$B$2:$G$43,6,0)","v":0},{"$f":"(SUMPRODUCT(($A$3:$A75>($A955-VLOOKUP(AF$881,'F. UL & OPEX flat rates'!$B$2:$G$43,5)))*1,AF$3:AF75)+AF779)*VLOOKUP(AF$881,'F. UL & OPEX flat rates'!$B$2:$G$43,6,0)","v":0},{"$f":"(SUMPRODUCT(($A$3:$A75>($A955-VLOOKUP(AG$881,'F. UL & OPEX flat rates'!$B$2:$G$43,5)))*1,AG$3:AG75)+AG779)*VLOOKUP(AG$881,'F. UL & OPEX flat rates'!$B$2:$G$43,6,0)","v":0},{"$f":"(SUMPRODUCT(($A$3:$A75>($A955-VLOOKUP(AH$881,'F. UL & OPEX flat rates'!$B$2:$G$43,5)))*1,AH$3:AH75)+AH779)*VLOOKUP(AH$881,'F. UL & OPEX flat rates'!$B$2:$G$43,6,0)","v":0},{"$f":"(SUMPRODUCT(($A$3:$A75>($A955-VLOOKUP(AI$881,'F. UL & OPEX flat rates'!$B$2:$G$43,5)))*1,AI$3:AI75)+AI779)*VLOOKUP(AI$881,'F. UL & OPEX flat rates'!$B$2:$G$43,6,0)","v":0},{"$f":"(SUMPRODUCT(($A$3:$A75>($A955-VLOOKUP(AJ$881,'F. UL & OPEX flat rates'!$B$2:$G$43,5)))*1,AJ$3:AJ75)+AJ779)*VLOOKUP(AJ$881,'F. UL & OPEX flat rates'!$B$2:$G$43,6,0)","v":0},{"$f":"(SUMPRODUCT(($A$3:$A75>($A955-VLOOKUP(AK$881,'F. UL & OPEX flat rates'!$B$2:$G$43,5)))*1,AK$3:AK75)+AK779)*VLOOKUP(AK$881,'F. UL & OPEX flat rates'!$B$2:$G$43,6,0)","v":0},{"$f":"(SUMPRODUCT(($A$3:$A75>($A955-VLOOKUP(AL$881,'F. UL & OPEX flat rates'!$B$2:$G$43,5)))*1,AL$3:AL75)+AL779)*VLOOKUP(AL$881,'F. UL & OPEX flat rates'!$B$2:$G$43,6,0)","v":0},{"$f":"(SUMPRODUCT(($A$3:$A75>($A955-VLOOKUP(AM$881,'F. UL & OPEX flat rates'!$B$2:$G$43,5)))*1,AM$3:AM75)+AM779)*VLOOKUP(AM$881,'F. UL & OPEX flat rates'!$B$2:$G$43,6,0)","v":0},{"$f":"(SUMPRODUCT(($A$3:$A75>($A955-VLOOKUP(AN$881,'F. UL & OPEX flat rates'!$B$2:$G$43,5)))*1,AN$3:AN75)+AN779)*VLOOKUP(AN$881,'F. UL & OPEX flat rates'!$B$2:$G$43,6,0)","v":0},{"$f":"(SUMPRODUCT(($A$3:$A75>($A955-VLOOKUP(AO$881,'F. UL & OPEX flat rates'!$B$2:$G$43,5)))*1,AO$3:AO75)+AO779)*VLOOKUP(AO$881,'F. UL & OPEX flat rates'!$B$2:$G$43,6,0)","v":0},{"$f":"(SUMPRODUCT(($A$3:$A75>($A955-VLOOKUP(AP$881,'F. UL & OPEX flat rates'!$B$2:$G$43,5)))*1,AP$3:AP75)+AP779)*VLOOKUP(AP$881,'F. UL & OPEX flat rates'!$B$2:$G$43,6,0)","v":0},{"$f":"(SUMPRODUCT(($A$3:$A75>($A955-VLOOKUP(AQ$881,'F. UL & OPEX flat rates'!$B$2:$G$43,5)))*1,AQ$3:AQ75)+AQ779)*VLOOKUP(AQ$881,'F. UL & OPEX flat rates'!$B$2:$G$43,6,0)","v":0}]
[2089,0,{"$f":"(SUMPRODUCT(($A$3:$A76>($A956-VLOOKUP(C$881,'F. UL & OPEX flat rates'!$B$2:$G$43,5)))*1,C$3:C76)+C780)*VLOOKUP(C$881,'F. UL & OPEX flat rates'!$B$2:$G$43,6,0)","v":0},{"$f":"(SUMPRODUCT(($A$3:$A76>($A956-VLOOKUP(D$881,'F. UL & OPEX flat rates'!$B$2:$G$43,5)))*1,D$3:D76)+D780)*VLOOKUP(D$881,'F. UL & OPEX flat rates'!$B$2:$G$43,6,0)","v":0},{"$f":"(SUMPRODUCT(($A$3:$A76>($A956-VLOOKUP(E$881,'F. UL & OPEX flat rates'!$B$2:$G$43,5)))*1,E$3:E76)+E780)*VLOOKUP(E$881,'F. UL & OPEX flat rates'!$B$2:$G$43,6,0)","v":0},{"$f":"(SUMPRODUCT(($A$3:$A76>($A956-VLOOKUP(F$881,'F. UL & OPEX flat rates'!$B$2:$G$43,5)))*1,F$3:F76)+F780)*VLOOKUP(F$881,'F. UL & OPEX flat rates'!$B$2:$G$43,6,0)","v":0},{"$f":"(SUMPRODUCT(($A$3:$A76>($A956-VLOOKUP(G$881,'F. UL & OPEX flat rates'!$B$2:$G$43,5)))*1,G$3:G76)+G780)*VLOOKUP(G$881,'F. UL & OPEX flat rates'!$B$2:$G$43,6,0)","v":0},{"$f":"(SUMPRODUCT(($A$3:$A76>($A956-VLOOKUP(H$881,'F. UL & OPEX flat rates'!$B$2:$G$43,5)))*1,H$3:H76)+H780)*VLOOKUP(H$881,'F. UL & OPEX flat rates'!$B$2:$G$43,6,0)","v":0},{"$f":"(SUMPRODUCT(($A$3:$A76>($A956-VLOOKUP(I$881,'F. UL & OPEX flat rates'!$B$2:$G$43,5)))*1,I$3:I76)+I780)*VLOOKUP(I$881,'F. UL & OPEX flat rates'!$B$2:$G$43,6,0)","v":0},{"$f":"(SUMPRODUCT(($A$3:$A76>($A956-VLOOKUP(J$881,'F. UL & OPEX flat rates'!$B$2:$G$43,5)))*1,J$3:J76)+J780)*VLOOKUP(J$881,'F. UL & OPEX flat rates'!$B$2:$G$43,6,0)","v":0},{"$f":"(SUMPRODUCT(($A$3:$A76>($A956-VLOOKUP(K$881,'F. UL & OPEX flat rates'!$B$2:$G$43,5)))*1,K$3:K76)+K780)*VLOOKUP(K$881,'F. UL & OPEX flat rates'!$B$2:$G$43,6,0)","v":0},{"$f":"(SUMPRODUCT(($A$3:$A76>($A956-VLOOKUP(L$881,'F. UL & OPEX flat rates'!$B$2:$G$43,5)))*1,L$3:L76)+L780)*VLOOKUP(L$881,'F. UL & OPEX flat rates'!$B$2:$G$43,6,0)","v":0},{"$f":"(SUMPRODUCT(($A$3:$A76>($A956-VLOOKUP(M$881,'F. UL & OPEX flat rates'!$B$2:$G$43,5)))*1,M$3:M76)+M780)*VLOOKUP(M$881,'F. UL & OPEX flat rates'!$B$2:$G$43,6,0)","v":0},{"$f":"(SUMPRODUCT(($A$3:$A76>($A956-VLOOKUP(N$881,'F. UL & OPEX flat rates'!$B$2:$G$43,5)))*1,N$3:N76)+N780)*VLOOKUP(N$881,'F. UL & OPEX flat rates'!$B$2:$G$43,6,0)","v":0},{"$f":"(SUMPRODUCT(($A$3:$A76>($A956-VLOOKUP(O$881,'F. UL & OPEX flat rates'!$B$2:$G$43,5)))*1,O$3:O76)+O780)*VLOOKUP(O$881,'F. UL & OPEX flat rates'!$B$2:$G$43,6,0)","v":0},{"$f":"(SUMPRODUCT(($A$3:$A76>($A956-VLOOKUP(P$881,'F. UL & OPEX flat rates'!$B$2:$G$43,5)))*1,P$3:P76)+P780)*VLOOKUP(P$881,'F. UL & OPEX flat rates'!$B$2:$G$43,6,0)","v":0},{"$f":"(SUMPRODUCT(($A$3:$A76>($A956-VLOOKUP(Q$881,'F. UL & OPEX flat rates'!$B$2:$G$43,5)))*1,Q$3:Q76)+Q780)*VLOOKUP(Q$881,'F. UL & OPEX flat rates'!$B$2:$G$43,6,0)","v":0},{"$f":"(SUMPRODUCT(($A$3:$A76>($A956-VLOOKUP(R$881,'F. UL & OPEX flat rates'!$B$2:$G$43,5)))*1,R$3:R76)+R780)*VLOOKUP(R$881,'F. UL & OPEX flat rates'!$B$2:$G$43,6,0)","v":0},{"$f":"(SUMPRODUCT(($A$3:$A76>($A956-VLOOKUP(S$881,'F. UL & OPEX flat rates'!$B$2:$G$43,5)))*1,S$3:S76)+S780)*VLOOKUP(S$881,'F. UL & OPEX flat rates'!$B$2:$G$43,6,0)","v":0},{"$f":"(SUMPRODUCT(($A$3:$A76>($A956-VLOOKUP(T$881,'F. UL & OPEX flat rates'!$B$2:$G$43,5)))*1,T$3:T76)+T780)*VLOOKUP(T$881,'F. UL & OPEX flat rates'!$B$2:$G$43,6,0)","v":0},{"$f":"(SUMPRODUCT(($A$3:$A76>($A956-VLOOKUP(U$881,'F. UL & OPEX flat rates'!$B$2:$G$43,5)))*1,U$3:U76)+U780)*VLOOKUP(U$881,'F. UL & OPEX flat rates'!$B$2:$G$43,6,0)","v":0},{"$f":"(SUMPRODUCT(($A$3:$A76>($A956-VLOOKUP(V$881,'F. UL & OPEX flat rates'!$B$2:$G$43,5)))*1,V$3:V76)+V780)*VLOOKUP(V$881,'F. UL & OPEX flat rates'!$B$2:$G$43,6,0)","v":0},{"$f":"(SUMPRODUCT(($A$3:$A76>($A956-VLOOKUP(W$881,'F. UL & OPEX flat rates'!$B$2:$G$43,5)))*1,W$3:W76)+W780)*VLOOKUP(W$881,'F. UL & OPEX flat rates'!$B$2:$G$43,6,0)","v":0},{"$f":"(SUMPRODUCT(($A$3:$A76>($A956-VLOOKUP(X$881,'F. UL & OPEX flat rates'!$B$2:$G$43,5)))*1,X$3:X76)+X780)*VLOOKUP(X$881,'F. UL & OPEX flat rates'!$B$2:$G$43,6,0)","v":0},{"$f":"(SUMPRODUCT(($A$3:$A76>($A956-VLOOKUP(Y$881,'F. UL & OPEX flat rates'!$B$2:$G$43,5)))*1,Y$3:Y76)+Y780)*VLOOKUP(Y$881,'F. UL & OPEX flat rates'!$B$2:$G$43,6,0)","v":0},{"$f":"(SUMPRODUCT(($A$3:$A76>($A956-VLOOKUP(Z$881,'F. UL & OPEX flat rates'!$B$2:$G$43,5)))*1,Z$3:Z76)+Z780)*VLOOKUP(Z$881,'F. UL & OPEX flat rates'!$B$2:$G$43,6,0)","v":0},{"$f":"(SUMPRODUCT(($A$3:$A76>($A956-VLOOKUP(AA$881,'F. UL & OPEX flat rates'!$B$2:$G$43,5)))*1,AA$3:AA76)+AA780)*VLOOKUP(AA$881,'F. UL & OPEX flat rates'!$B$2:$G$43,6,0)","v":0},{"$f":"(SUMPRODUCT(($A$3:$A76>($A956-VLOOKUP(AB$881,'F. UL & OPEX flat rates'!$B$2:$G$43,5)))*1,AB$3:AB76)+AB780)*VLOOKUP(AB$881,'F. UL & OPEX flat rates'!$B$2:$G$43,6,0)","v":0},{"$f":"(SUMPRODUCT(($A$3:$A76>($A956-VLOOKUP(AC$881,'F. UL & OPEX flat rates'!$B$2:$G$43,5)))*1,AC$3:AC76)+AC780)*VLOOKUP(AC$881,'F. UL & OPEX flat rates'!$B$2:$G$43,6,0)","v":0},{"$f":"(SUMPRODUCT(($A$3:$A76>($A956-VLOOKUP(AD$881,'F. UL & OPEX flat rates'!$B$2:$G$43,5)))*1,AD$3:AD76)+AD780)*VLOOKUP(AD$881,'F. UL & OPEX flat rates'!$B$2:$G$43,6,0)","v":0},{"$f":"(SUMPRODUCT(($A$3:$A76>($A956-VLOOKUP(AE$881,'F. UL & OPEX flat rates'!$B$2:$G$43,5)))*1,AE$3:AE76)+AE780)*VLOOKUP(AE$881,'F. UL & OPEX flat rates'!$B$2:$G$43,6,0)","v":0},{"$f":"(SUMPRODUCT(($A$3:$A76>($A956-VLOOKUP(AF$881,'F. UL & OPEX flat rates'!$B$2:$G$43,5)))*1,AF$3:AF76)+AF780)*VLOOKUP(AF$881,'F. UL & OPEX flat rates'!$B$2:$G$43,6,0)","v":0},{"$f":"(SUMPRODUCT(($A$3:$A76>($A956-VLOOKUP(AG$881,'F. UL & OPEX flat rates'!$B$2:$G$43,5)))*1,AG$3:AG76)+AG780)*VLOOKUP(AG$881,'F. UL & OPEX flat rates'!$B$2:$G$43,6,0)","v":0},{"$f":"(SUMPRODUCT(($A$3:$A76>($A956-VLOOKUP(AH$881,'F. UL & OPEX flat rates'!$B$2:$G$43,5)))*1,AH$3:AH76)+AH780)*VLOOKUP(AH$881,'F. UL & OPEX flat rates'!$B$2:$G$43,6,0)","v":0},{"$f":"(SUMPRODUCT(($A$3:$A76>($A956-VLOOKUP(AI$881,'F. UL & OPEX flat rates'!$B$2:$G$43,5)))*1,AI$3:AI76)+AI780)*VLOOKUP(AI$881,'F. UL & OPEX flat rates'!$B$2:$G$43,6,0)","v":0},{"$f":"(SUMPRODUCT(($A$3:$A76>($A956-VLOOKUP(AJ$881,'F. UL & OPEX flat rates'!$B$2:$G$43,5)))*1,AJ$3:AJ76)+AJ780)*VLOOKUP(AJ$881,'F. UL & OPEX flat rates'!$B$2:$G$43,6,0)","v":0},{"$f":"(SUMPRODUCT(($A$3:$A76>($A956-VLOOKUP(AK$881,'F. UL & OPEX flat rates'!$B$2:$G$43,5)))*1,AK$3:AK76)+AK780)*VLOOKUP(AK$881,'F. UL & OPEX flat rates'!$B$2:$G$43,6,0)","v":0},{"$f":"(SUMPRODUCT(($A$3:$A76>($A956-VLOOKUP(AL$881,'F. UL & OPEX flat rates'!$B$2:$G$43,5)))*1,AL$3:AL76)+AL780)*VLOOKUP(AL$881,'F. UL & OPEX flat rates'!$B$2:$G$43,6,0)","v":0},{"$f":"(SUMPRODUCT(($A$3:$A76>($A956-VLOOKUP(AM$881,'F. UL & OPEX flat rates'!$B$2:$G$43,5)))*1,AM$3:AM76)+AM780)*VLOOKUP(AM$881,'F. UL & OPEX flat rates'!$B$2:$G$43,6,0)","v":0},{"$f":"(SUMPRODUCT(($A$3:$A76>($A956-VLOOKUP(AN$881,'F. UL & OPEX flat rates'!$B$2:$G$43,5)))*1,AN$3:AN76)+AN780)*VLOOKUP(AN$881,'F. UL & OPEX flat rates'!$B$2:$G$43,6,0)","v":0},{"$f":"(SUMPRODUCT(($A$3:$A76>($A956-VLOOKUP(AO$881,'F. UL & OPEX flat rates'!$B$2:$G$43,5)))*1,AO$3:AO76)+AO780)*VLOOKUP(AO$881,'F. UL & OPEX flat rates'!$B$2:$G$43,6,0)","v":0},{"$f":"(SUMPRODUCT(($A$3:$A76>($A956-VLOOKUP(AP$881,'F. UL & OPEX flat rates'!$B$2:$G$43,5)))*1,AP$3:AP76)+AP780)*VLOOKUP(AP$881,'F. UL & OPEX flat rates'!$B$2:$G$43,6,0)","v":0},{"$f":"(SUMPRODUCT(($A$3:$A76>($A956-VLOOKUP(AQ$881,'F. UL & OPEX flat rates'!$B$2:$G$43,5)))*1,AQ$3:AQ76)+AQ780)*VLOOKUP(AQ$881,'F. UL & OPEX flat rates'!$B$2:$G$43,6,0)","v":0}]
[2090,0,{"$f":"(SUMPRODUCT(($A$3:$A77>($A957-VLOOKUP(C$881,'F. UL & OPEX flat rates'!$B$2:$G$43,5)))*1,C$3:C77)+C781)*VLOOKUP(C$881,'F. UL & OPEX flat rates'!$B$2:$G$43,6,0)","v":0},{"$f":"(SUMPRODUCT(($A$3:$A77>($A957-VLOOKUP(D$881,'F. UL & OPEX flat rates'!$B$2:$G$43,5)))*1,D$3:D77)+D781)*VLOOKUP(D$881,'F. UL & OPEX flat rates'!$B$2:$G$43,6,0)","v":0},{"$f":"(SUMPRODUCT(($A$3:$A77>($A957-VLOOKUP(E$881,'F. UL & OPEX flat rates'!$B$2:$G$43,5)))*1,E$3:E77)+E781)*VLOOKUP(E$881,'F. UL & OPEX flat rates'!$B$2:$G$43,6,0)","v":0},{"$f":"(SUMPRODUCT(($A$3:$A77>($A957-VLOOKUP(F$881,'F. UL & OPEX flat rates'!$B$2:$G$43,5)))*1,F$3:F77)+F781)*VLOOKUP(F$881,'F. UL & OPEX flat rates'!$B$2:$G$43,6,0)","v":0},{"$f":"(SUMPRODUCT(($A$3:$A77>($A957-VLOOKUP(G$881,'F. UL & OPEX flat rates'!$B$2:$G$43,5)))*1,G$3:G77)+G781)*VLOOKUP(G$881,'F. UL & OPEX flat rates'!$B$2:$G$43,6,0)","v":0},{"$f":"(SUMPRODUCT(($A$3:$A77>($A957-VLOOKUP(H$881,'F. UL & OPEX flat rates'!$B$2:$G$43,5)))*1,H$3:H77)+H781)*VLOOKUP(H$881,'F. UL & OPEX flat rates'!$B$2:$G$43,6,0)","v":0},{"$f":"(SUMPRODUCT(($A$3:$A77>($A957-VLOOKUP(I$881,'F. UL & OPEX flat rates'!$B$2:$G$43,5)))*1,I$3:I77)+I781)*VLOOKUP(I$881,'F. UL & OPEX flat rates'!$B$2:$G$43,6,0)","v":0},{"$f":"(SUMPRODUCT(($A$3:$A77>($A957-VLOOKUP(J$881,'F. UL & OPEX flat rates'!$B$2:$G$43,5)))*1,J$3:J77)+J781)*VLOOKUP(J$881,'F. UL & OPEX flat rates'!$B$2:$G$43,6,0)","v":0},{"$f":"(SUMPRODUCT(($A$3:$A77>($A957-VLOOKUP(K$881,'F. UL & OPEX flat rates'!$B$2:$G$43,5)))*1,K$3:K77)+K781)*VLOOKUP(K$881,'F. UL & OPEX flat rates'!$B$2:$G$43,6,0)","v":0},{"$f":"(SUMPRODUCT(($A$3:$A77>($A957-VLOOKUP(L$881,'F. UL & OPEX flat rates'!$B$2:$G$43,5)))*1,L$3:L77)+L781)*VLOOKUP(L$881,'F. UL & OPEX flat rates'!$B$2:$G$43,6,0)","v":0},{"$f":"(SUMPRODUCT(($A$3:$A77>($A957-VLOOKUP(M$881,'F. UL & OPEX flat rates'!$B$2:$G$43,5)))*1,M$3:M77)+M781)*VLOOKUP(M$881,'F. UL & OPEX flat rates'!$B$2:$G$43,6,0)","v":0},{"$f":"(SUMPRODUCT(($A$3:$A77>($A957-VLOOKUP(N$881,'F. UL & OPEX flat rates'!$B$2:$G$43,5)))*1,N$3:N77)+N781)*VLOOKUP(N$881,'F. UL & OPEX flat rates'!$B$2:$G$43,6,0)","v":0},{"$f":"(SUMPRODUCT(($A$3:$A77>($A957-VLOOKUP(O$881,'F. UL & OPEX flat rates'!$B$2:$G$43,5)))*1,O$3:O77)+O781)*VLOOKUP(O$881,'F. UL & OPEX flat rates'!$B$2:$G$43,6,0)","v":0},{"$f":"(SUMPRODUCT(($A$3:$A77>($A957-VLOOKUP(P$881,'F. UL & OPEX flat rates'!$B$2:$G$43,5)))*1,P$3:P77)+P781)*VLOOKUP(P$881,'F. UL & OPEX flat rates'!$B$2:$G$43,6,0)","v":0},{"$f":"(SUMPRODUCT(($A$3:$A77>($A957-VLOOKUP(Q$881,'F. UL & OPEX flat rates'!$B$2:$G$43,5)))*1,Q$3:Q77)+Q781)*VLOOKUP(Q$881,'F. UL & OPEX flat rates'!$B$2:$G$43,6,0)","v":0},{"$f":"(SUMPRODUCT(($A$3:$A77>($A957-VLOOKUP(R$881,'F. UL & OPEX flat rates'!$B$2:$G$43,5)))*1,R$3:R77)+R781)*VLOOKUP(R$881,'F. UL & OPEX flat rates'!$B$2:$G$43,6,0)","v":0},{"$f":"(SUMPRODUCT(($A$3:$A77>($A957-VLOOKUP(S$881,'F. UL & OPEX flat rates'!$B$2:$G$43,5)))*1,S$3:S77)+S781)*VLOOKUP(S$881,'F. UL & OPEX flat rates'!$B$2:$G$43,6,0)","v":0},{"$f":"(SUMPRODUCT(($A$3:$A77>($A957-VLOOKUP(T$881,'F. UL & OPEX flat rates'!$B$2:$G$43,5)))*1,T$3:T77)+T781)*VLOOKUP(T$881,'F. UL & OPEX flat rates'!$B$2:$G$43,6,0)","v":0},{"$f":"(SUMPRODUCT(($A$3:$A77>($A957-VLOOKUP(U$881,'F. UL & OPEX flat rates'!$B$2:$G$43,5)))*1,U$3:U77)+U781)*VLOOKUP(U$881,'F. UL & OPEX flat rates'!$B$2:$G$43,6,0)","v":0},{"$f":"(SUMPRODUCT(($A$3:$A77>($A957-VLOOKUP(V$881,'F. UL & OPEX flat rates'!$B$2:$G$43,5)))*1,V$3:V77)+V781)*VLOOKUP(V$881,'F. UL & OPEX flat rates'!$B$2:$G$43,6,0)","v":0},{"$f":"(SUMPRODUCT(($A$3:$A77>($A957-VLOOKUP(W$881,'F. UL & OPEX flat rates'!$B$2:$G$43,5)))*1,W$3:W77)+W781)*VLOOKUP(W$881,'F. UL & OPEX flat rates'!$B$2:$G$43,6,0)","v":0},{"$f":"(SUMPRODUCT(($A$3:$A77>($A957-VLOOKUP(X$881,'F. UL & OPEX flat rates'!$B$2:$G$43,5)))*1,X$3:X77)+X781)*VLOOKUP(X$881,'F. UL & OPEX flat rates'!$B$2:$G$43,6,0)","v":0},{"$f":"(SUMPRODUCT(($A$3:$A77>($A957-VLOOKUP(Y$881,'F. UL & OPEX flat rates'!$B$2:$G$43,5)))*1,Y$3:Y77)+Y781)*VLOOKUP(Y$881,'F. UL & OPEX flat rates'!$B$2:$G$43,6,0)","v":0},{"$f":"(SUMPRODUCT(($A$3:$A77>($A957-VLOOKUP(Z$881,'F. UL & OPEX flat rates'!$B$2:$G$43,5)))*1,Z$3:Z77)+Z781)*VLOOKUP(Z$881,'F. UL & OPEX flat rates'!$B$2:$G$43,6,0)","v":0},{"$f":"(SUMPRODUCT(($A$3:$A77>($A957-VLOOKUP(AA$881,'F. UL & OPEX flat rates'!$B$2:$G$43,5)))*1,AA$3:AA77)+AA781)*VLOOKUP(AA$881,'F. UL & OPEX flat rates'!$B$2:$G$43,6,0)","v":0},{"$f":"(SUMPRODUCT(($A$3:$A77>($A957-VLOOKUP(AB$881,'F. UL & OPEX flat rates'!$B$2:$G$43,5)))*1,AB$3:AB77)+AB781)*VLOOKUP(AB$881,'F. UL & OPEX flat rates'!$B$2:$G$43,6,0)","v":0},{"$f":"(SUMPRODUCT(($A$3:$A77>($A957-VLOOKUP(AC$881,'F. UL & OPEX flat rates'!$B$2:$G$43,5)))*1,AC$3:AC77)+AC781)*VLOOKUP(AC$881,'F. UL & OPEX flat rates'!$B$2:$G$43,6,0)","v":0},{"$f":"(SUMPRODUCT(($A$3:$A77>($A957-VLOOKUP(AD$881,'F. UL & OPEX flat rates'!$B$2:$G$43,5)))*1,AD$3:AD77)+AD781)*VLOOKUP(AD$881,'F. UL & OPEX flat rates'!$B$2:$G$43,6,0)","v":0},{"$f":"(SUMPRODUCT(($A$3:$A77>($A957-VLOOKUP(AE$881,'F. UL & OPEX flat rates'!$B$2:$G$43,5)))*1,AE$3:AE77)+AE781)*VLOOKUP(AE$881,'F. UL & OPEX flat rates'!$B$2:$G$43,6,0)","v":0},{"$f":"(SUMPRODUCT(($A$3:$A77>($A957-VLOOKUP(AF$881,'F. UL & OPEX flat rates'!$B$2:$G$43,5)))*1,AF$3:AF77)+AF781)*VLOOKUP(AF$881,'F. UL & OPEX flat rates'!$B$2:$G$43,6,0)","v":0},{"$f":"(SUMPRODUCT(($A$3:$A77>($A957-VLOOKUP(AG$881,'F. UL & OPEX flat rates'!$B$2:$G$43,5)))*1,AG$3:AG77)+AG781)*VLOOKUP(AG$881,'F. UL & OPEX flat rates'!$B$2:$G$43,6,0)","v":0},{"$f":"(SUMPRODUCT(($A$3:$A77>($A957-VLOOKUP(AH$881,'F. UL & OPEX flat rates'!$B$2:$G$43,5)))*1,AH$3:AH77)+AH781)*VLOOKUP(AH$881,'F. UL & OPEX flat rates'!$B$2:$G$43,6,0)","v":0},{"$f":"(SUMPRODUCT(($A$3:$A77>($A957-VLOOKUP(AI$881,'F. UL & OPEX flat rates'!$B$2:$G$43,5)))*1,AI$3:AI77)+AI781)*VLOOKUP(AI$881,'F. UL & OPEX flat rates'!$B$2:$G$43,6,0)","v":0},{"$f":"(SUMPRODUCT(($A$3:$A77>($A957-VLOOKUP(AJ$881,'F. UL & OPEX flat rates'!$B$2:$G$43,5)))*1,AJ$3:AJ77)+AJ781)*VLOOKUP(AJ$881,'F. UL & OPEX flat rates'!$B$2:$G$43,6,0)","v":0},{"$f":"(SUMPRODUCT(($A$3:$A77>($A957-VLOOKUP(AK$881,'F. UL & OPEX flat rates'!$B$2:$G$43,5)))*1,AK$3:AK77)+AK781)*VLOOKUP(AK$881,'F. UL & OPEX flat rates'!$B$2:$G$43,6,0)","v":0},{"$f":"(SUMPRODUCT(($A$3:$A77>($A957-VLOOKUP(AL$881,'F. UL & OPEX flat rates'!$B$2:$G$43,5)))*1,AL$3:AL77)+AL781)*VLOOKUP(AL$881,'F. UL & OPEX flat rates'!$B$2:$G$43,6,0)","v":0},{"$f":"(SUMPRODUCT(($A$3:$A77>($A957-VLOOKUP(AM$881,'F. UL & OPEX flat rates'!$B$2:$G$43,5)))*1,AM$3:AM77)+AM781)*VLOOKUP(AM$881,'F. UL & OPEX flat rates'!$B$2:$G$43,6,0)","v":0},{"$f":"(SUMPRODUCT(($A$3:$A77>($A957-VLOOKUP(AN$881,'F. UL & OPEX flat rates'!$B$2:$G$43,5)))*1,AN$3:AN77)+AN781)*VLOOKUP(AN$881,'F. UL & OPEX flat rates'!$B$2:$G$43,6,0)","v":0},{"$f":"(SUMPRODUCT(($A$3:$A77>($A957-VLOOKUP(AO$881,'F. UL & OPEX flat rates'!$B$2:$G$43,5)))*1,AO$3:AO77)+AO781)*VLOOKUP(AO$881,'F. UL & OPEX flat rates'!$B$2:$G$43,6,0)","v":0},{"$f":"(SUMPRODUCT(($A$3:$A77>($A957-VLOOKUP(AP$881,'F. UL & OPEX flat rates'!$B$2:$G$43,5)))*1,AP$3:AP77)+AP781)*VLOOKUP(AP$881,'F. UL & OPEX flat rates'!$B$2:$G$43,6,0)","v":0},{"$f":"(SUMPRODUCT(($A$3:$A77>($A957-VLOOKUP(AQ$881,'F. UL & OPEX flat rates'!$B$2:$G$43,5)))*1,AQ$3:AQ77)+AQ781)*VLOOKUP(AQ$881,'F. UL & OPEX flat rates'!$B$2:$G$43,6,0)","v":0}]
[2091,0,{"$f":"(SUMPRODUCT(($A$3:$A78>($A958-VLOOKUP(C$881,'F. UL & OPEX flat rates'!$B$2:$G$43,5)))*1,C$3:C78)+C782)*VLOOKUP(C$881,'F. UL & OPEX flat rates'!$B$2:$G$43,6,0)","v":0},{"$f":"(SUMPRODUCT(($A$3:$A78>($A958-VLOOKUP(D$881,'F. UL & OPEX flat rates'!$B$2:$G$43,5)))*1,D$3:D78)+D782)*VLOOKUP(D$881,'F. UL & OPEX flat rates'!$B$2:$G$43,6,0)","v":0},{"$f":"(SUMPRODUCT(($A$3:$A78>($A958-VLOOKUP(E$881,'F. UL & OPEX flat rates'!$B$2:$G$43,5)))*1,E$3:E78)+E782)*VLOOKUP(E$881,'F. UL & OPEX flat rates'!$B$2:$G$43,6,0)","v":0},{"$f":"(SUMPRODUCT(($A$3:$A78>($A958-VLOOKUP(F$881,'F. UL & OPEX flat rates'!$B$2:$G$43,5)))*1,F$3:F78)+F782)*VLOOKUP(F$881,'F. UL & OPEX flat rates'!$B$2:$G$43,6,0)","v":0},{"$f":"(SUMPRODUCT(($A$3:$A78>($A958-VLOOKUP(G$881,'F. UL & OPEX flat rates'!$B$2:$G$43,5)))*1,G$3:G78)+G782)*VLOOKUP(G$881,'F. UL & OPEX flat rates'!$B$2:$G$43,6,0)","v":0},{"$f":"(SUMPRODUCT(($A$3:$A78>($A958-VLOOKUP(H$881,'F. UL & OPEX flat rates'!$B$2:$G$43,5)))*1,H$3:H78)+H782)*VLOOKUP(H$881,'F. UL & OPEX flat rates'!$B$2:$G$43,6,0)","v":0},{"$f":"(SUMPRODUCT(($A$3:$A78>($A958-VLOOKUP(I$881,'F. UL & OPEX flat rates'!$B$2:$G$43,5)))*1,I$3:I78)+I782)*VLOOKUP(I$881,'F. UL & OPEX flat rates'!$B$2:$G$43,6,0)","v":0},{"$f":"(SUMPRODUCT(($A$3:$A78>($A958-VLOOKUP(J$881,'F. UL & OPEX flat rates'!$B$2:$G$43,5)))*1,J$3:J78)+J782)*VLOOKUP(J$881,'F. UL & OPEX flat rates'!$B$2:$G$43,6,0)","v":0},{"$f":"(SUMPRODUCT(($A$3:$A78>($A958-VLOOKUP(K$881,'F. UL & OPEX flat rates'!$B$2:$G$43,5)))*1,K$3:K78)+K782)*VLOOKUP(K$881,'F. UL & OPEX flat rates'!$B$2:$G$43,6,0)","v":0},{"$f":"(SUMPRODUCT(($A$3:$A78>($A958-VLOOKUP(L$881,'F. UL & OPEX flat rates'!$B$2:$G$43,5)))*1,L$3:L78)+L782)*VLOOKUP(L$881,'F. UL & OPEX flat rates'!$B$2:$G$43,6,0)","v":0},{"$f":"(SUMPRODUCT(($A$3:$A78>($A958-VLOOKUP(M$881,'F. UL & OPEX flat rates'!$B$2:$G$43,5)))*1,M$3:M78)+M782)*VLOOKUP(M$881,'F. UL & OPEX flat rates'!$B$2:$G$43,6,0)","v":0},{"$f":"(SUMPRODUCT(($A$3:$A78>($A958-VLOOKUP(N$881,'F. UL & OPEX flat rates'!$B$2:$G$43,5)))*1,N$3:N78)+N782)*VLOOKUP(N$881,'F. UL & OPEX flat rates'!$B$2:$G$43,6,0)","v":0},{"$f":"(SUMPRODUCT(($A$3:$A78>($A958-VLOOKUP(O$881,'F. UL & OPEX flat rates'!$B$2:$G$43,5)))*1,O$3:O78)+O782)*VLOOKUP(O$881,'F. UL & OPEX flat rates'!$B$2:$G$43,6,0)","v":0},{"$f":"(SUMPRODUCT(($A$3:$A78>($A958-VLOOKUP(P$881,'F. UL & OPEX flat rates'!$B$2:$G$43,5)))*1,P$3:P78)+P782)*VLOOKUP(P$881,'F. UL & OPEX flat rates'!$B$2:$G$43,6,0)","v":0},{"$f":"(SUMPRODUCT(($A$3:$A78>($A958-VLOOKUP(Q$881,'F. UL & OPEX flat rates'!$B$2:$G$43,5)))*1,Q$3:Q78)+Q782)*VLOOKUP(Q$881,'F. UL & OPEX flat rates'!$B$2:$G$43,6,0)","v":0},{"$f":"(SUMPRODUCT(($A$3:$A78>($A958-VLOOKUP(R$881,'F. UL & OPEX flat rates'!$B$2:$G$43,5)))*1,R$3:R78)+R782)*VLOOKUP(R$881,'F. UL & OPEX flat rates'!$B$2:$G$43,6,0)","v":0},{"$f":"(SUMPRODUCT(($A$3:$A78>($A958-VLOOKUP(S$881,'F. UL & OPEX flat rates'!$B$2:$G$43,5)))*1,S$3:S78)+S782)*VLOOKUP(S$881,'F. UL & OPEX flat rates'!$B$2:$G$43,6,0)","v":0},{"$f":"(SUMPRODUCT(($A$3:$A78>($A958-VLOOKUP(T$881,'F. UL & OPEX flat rates'!$B$2:$G$43,5)))*1,T$3:T78)+T782)*VLOOKUP(T$881,'F. UL & OPEX flat rates'!$B$2:$G$43,6,0)","v":0},{"$f":"(SUMPRODUCT(($A$3:$A78>($A958-VLOOKUP(U$881,'F. UL & OPEX flat rates'!$B$2:$G$43,5)))*1,U$3:U78)+U782)*VLOOKUP(U$881,'F. UL & OPEX flat rates'!$B$2:$G$43,6,0)","v":0},{"$f":"(SUMPRODUCT(($A$3:$A78>($A958-VLOOKUP(V$881,'F. UL & OPEX flat rates'!$B$2:$G$43,5)))*1,V$3:V78)+V782)*VLOOKUP(V$881,'F. UL & OPEX flat rates'!$B$2:$G$43,6,0)","v":0},{"$f":"(SUMPRODUCT(($A$3:$A78>($A958-VLOOKUP(W$881,'F. UL & OPEX flat rates'!$B$2:$G$43,5)))*1,W$3:W78)+W782)*VLOOKUP(W$881,'F. UL & OPEX flat rates'!$B$2:$G$43,6,0)","v":0},{"$f":"(SUMPRODUCT(($A$3:$A78>($A958-VLOOKUP(X$881,'F. UL & OPEX flat rates'!$B$2:$G$43,5)))*1,X$3:X78)+X782)*VLOOKUP(X$881,'F. UL & OPEX flat rates'!$B$2:$G$43,6,0)","v":0},{"$f":"(SUMPRODUCT(($A$3:$A78>($A958-VLOOKUP(Y$881,'F. UL & OPEX flat rates'!$B$2:$G$43,5)))*1,Y$3:Y78)+Y782)*VLOOKUP(Y$881,'F. UL & OPEX flat rates'!$B$2:$G$43,6,0)","v":0},{"$f":"(SUMPRODUCT(($A$3:$A78>($A958-VLOOKUP(Z$881,'F. UL & OPEX flat rates'!$B$2:$G$43,5)))*1,Z$3:Z78)+Z782)*VLOOKUP(Z$881,'F. UL & OPEX flat rates'!$B$2:$G$43,6,0)","v":0},{"$f":"(SUMPRODUCT(($A$3:$A78>($A958-VLOOKUP(AA$881,'F. UL & OPEX flat rates'!$B$2:$G$43,5)))*1,AA$3:AA78)+AA782)*VLOOKUP(AA$881,'F. UL & OPEX flat rates'!$B$2:$G$43,6,0)","v":0},{"$f":"(SUMPRODUCT(($A$3:$A78>($A958-VLOOKUP(AB$881,'F. UL & OPEX flat rates'!$B$2:$G$43,5)))*1,AB$3:AB78)+AB782)*VLOOKUP(AB$881,'F. UL & OPEX flat rates'!$B$2:$G$43,6,0)","v":0},{"$f":"(SUMPRODUCT(($A$3:$A78>($A958-VLOOKUP(AC$881,'F. UL & OPEX flat rates'!$B$2:$G$43,5)))*1,AC$3:AC78)+AC782)*VLOOKUP(AC$881,'F. UL & OPEX flat rates'!$B$2:$G$43,6,0)","v":0},{"$f":"(SUMPRODUCT(($A$3:$A78>($A958-VLOOKUP(AD$881,'F. UL & OPEX flat rates'!$B$2:$G$43,5)))*1,AD$3:AD78)+AD782)*VLOOKUP(AD$881,'F. UL & OPEX flat rates'!$B$2:$G$43,6,0)","v":0},{"$f":"(SUMPRODUCT(($A$3:$A78>($A958-VLOOKUP(AE$881,'F. UL & OPEX flat rates'!$B$2:$G$43,5)))*1,AE$3:AE78)+AE782)*VLOOKUP(AE$881,'F. UL & OPEX flat rates'!$B$2:$G$43,6,0)","v":0},{"$f":"(SUMPRODUCT(($A$3:$A78>($A958-VLOOKUP(AF$881,'F. UL & OPEX flat rates'!$B$2:$G$43,5)))*1,AF$3:AF78)+AF782)*VLOOKUP(AF$881,'F. UL & OPEX flat rates'!$B$2:$G$43,6,0)","v":0},{"$f":"(SUMPRODUCT(($A$3:$A78>($A958-VLOOKUP(AG$881,'F. UL & OPEX flat rates'!$B$2:$G$43,5)))*1,AG$3:AG78)+AG782)*VLOOKUP(AG$881,'F. UL & OPEX flat rates'!$B$2:$G$43,6,0)","v":0},{"$f":"(SUMPRODUCT(($A$3:$A78>($A958-VLOOKUP(AH$881,'F. UL & OPEX flat rates'!$B$2:$G$43,5)))*1,AH$3:AH78)+AH782)*VLOOKUP(AH$881,'F. UL & OPEX flat rates'!$B$2:$G$43,6,0)","v":0},{"$f":"(SUMPRODUCT(($A$3:$A78>($A958-VLOOKUP(AI$881,'F. UL & OPEX flat rates'!$B$2:$G$43,5)))*1,AI$3:AI78)+AI782)*VLOOKUP(AI$881,'F. UL & OPEX flat rates'!$B$2:$G$43,6,0)","v":0},{"$f":"(SUMPRODUCT(($A$3:$A78>($A958-VLOOKUP(AJ$881,'F. UL & OPEX flat rates'!$B$2:$G$43,5)))*1,AJ$3:AJ78)+AJ782)*VLOOKUP(AJ$881,'F. UL & OPEX flat rates'!$B$2:$G$43,6,0)","v":0},{"$f":"(SUMPRODUCT(($A$3:$A78>($A958-VLOOKUP(AK$881,'F. UL & OPEX flat rates'!$B$2:$G$43,5)))*1,AK$3:AK78)+AK782)*VLOOKUP(AK$881,'F. UL & OPEX flat rates'!$B$2:$G$43,6,0)","v":0},{"$f":"(SUMPRODUCT(($A$3:$A78>($A958-VLOOKUP(AL$881,'F. UL & OPEX flat rates'!$B$2:$G$43,5)))*1,AL$3:AL78)+AL782)*VLOOKUP(AL$881,'F. UL & OPEX flat rates'!$B$2:$G$43,6,0)","v":0},{"$f":"(SUMPRODUCT(($A$3:$A78>($A958-VLOOKUP(AM$881,'F. UL & OPEX flat rates'!$B$2:$G$43,5)))*1,AM$3:AM78)+AM782)*VLOOKUP(AM$881,'F. UL & OPEX flat rates'!$B$2:$G$43,6,0)","v":0},{"$f":"(SUMPRODUCT(($A$3:$A78>($A958-VLOOKUP(AN$881,'F. UL & OPEX flat rates'!$B$2:$G$43,5)))*1,AN$3:AN78)+AN782)*VLOOKUP(AN$881,'F. UL & OPEX flat rates'!$B$2:$G$43,6,0)","v":0},{"$f":"(SUMPRODUCT(($A$3:$A78>($A958-VLOOKUP(AO$881,'F. UL & OPEX flat rates'!$B$2:$G$43,5)))*1,AO$3:AO78)+AO782)*VLOOKUP(AO$881,'F. UL & OPEX flat rates'!$B$2:$G$43,6,0)","v":0},{"$f":"(SUMPRODUCT(($A$3:$A78>($A958-VLOOKUP(AP$881,'F. UL & OPEX flat rates'!$B$2:$G$43,5)))*1,AP$3:AP78)+AP782)*VLOOKUP(AP$881,'F. UL & OPEX flat rates'!$B$2:$G$43,6,0)","v":0},{"$f":"(SUMPRODUCT(($A$3:$A78>($A958-VLOOKUP(AQ$881,'F. UL & OPEX flat rates'!$B$2:$G$43,5)))*1,AQ$3:AQ78)+AQ782)*VLOOKUP(AQ$881,'F. UL & OPEX flat rates'!$B$2:$G$43,6,0)","v":0}]
[2092,0,{"$f":"(SUMPRODUCT(($A$3:$A79>($A959-VLOOKUP(C$881,'F. UL & OPEX flat rates'!$B$2:$G$43,5)))*1,C$3:C79)+C783)*VLOOKUP(C$881,'F. UL & OPEX flat rates'!$B$2:$G$43,6,0)","v":0},{"$f":"(SUMPRODUCT(($A$3:$A79>($A959-VLOOKUP(D$881,'F. UL & OPEX flat rates'!$B$2:$G$43,5)))*1,D$3:D79)+D783)*VLOOKUP(D$881,'F. UL & OPEX flat rates'!$B$2:$G$43,6,0)","v":0},{"$f":"(SUMPRODUCT(($A$3:$A79>($A959-VLOOKUP(E$881,'F. UL & OPEX flat rates'!$B$2:$G$43,5)))*1,E$3:E79)+E783)*VLOOKUP(E$881,'F. UL & OPEX flat rates'!$B$2:$G$43,6,0)","v":0},{"$f":"(SUMPRODUCT(($A$3:$A79>($A959-VLOOKUP(F$881,'F. UL & OPEX flat rates'!$B$2:$G$43,5)))*1,F$3:F79)+F783)*VLOOKUP(F$881,'F. UL & OPEX flat rates'!$B$2:$G$43,6,0)","v":0},{"$f":"(SUMPRODUCT(($A$3:$A79>($A959-VLOOKUP(G$881,'F. UL & OPEX flat rates'!$B$2:$G$43,5)))*1,G$3:G79)+G783)*VLOOKUP(G$881,'F. UL & OPEX flat rates'!$B$2:$G$43,6,0)","v":0},{"$f":"(SUMPRODUCT(($A$3:$A79>($A959-VLOOKUP(H$881,'F. UL & OPEX flat rates'!$B$2:$G$43,5)))*1,H$3:H79)+H783)*VLOOKUP(H$881,'F. UL & OPEX flat rates'!$B$2:$G$43,6,0)","v":0},{"$f":"(SUMPRODUCT(($A$3:$A79>($A959-VLOOKUP(I$881,'F. UL & OPEX flat rates'!$B$2:$G$43,5)))*1,I$3:I79)+I783)*VLOOKUP(I$881,'F. UL & OPEX flat rates'!$B$2:$G$43,6,0)","v":0},{"$f":"(SUMPRODUCT(($A$3:$A79>($A959-VLOOKUP(J$881,'F. UL & OPEX flat rates'!$B$2:$G$43,5)))*1,J$3:J79)+J783)*VLOOKUP(J$881,'F. UL & OPEX flat rates'!$B$2:$G$43,6,0)","v":0},{"$f":"(SUMPRODUCT(($A$3:$A79>($A959-VLOOKUP(K$881,'F. UL & OPEX flat rates'!$B$2:$G$43,5)))*1,K$3:K79)+K783)*VLOOKUP(K$881,'F. UL & OPEX flat rates'!$B$2:$G$43,6,0)","v":0},{"$f":"(SUMPRODUCT(($A$3:$A79>($A959-VLOOKUP(L$881,'F. UL & OPEX flat rates'!$B$2:$G$43,5)))*1,L$3:L79)+L783)*VLOOKUP(L$881,'F. UL & OPEX flat rates'!$B$2:$G$43,6,0)","v":0},{"$f":"(SUMPRODUCT(($A$3:$A79>($A959-VLOOKUP(M$881,'F. UL & OPEX flat rates'!$B$2:$G$43,5)))*1,M$3:M79)+M783)*VLOOKUP(M$881,'F. UL & OPEX flat rates'!$B$2:$G$43,6,0)","v":0},{"$f":"(SUMPRODUCT(($A$3:$A79>($A959-VLOOKUP(N$881,'F. UL & OPEX flat rates'!$B$2:$G$43,5)))*1,N$3:N79)+N783)*VLOOKUP(N$881,'F. UL & OPEX flat rates'!$B$2:$G$43,6,0)","v":0},{"$f":"(SUMPRODUCT(($A$3:$A79>($A959-VLOOKUP(O$881,'F. UL & OPEX flat rates'!$B$2:$G$43,5)))*1,O$3:O79)+O783)*VLOOKUP(O$881,'F. UL & OPEX flat rates'!$B$2:$G$43,6,0)","v":0},{"$f":"(SUMPRODUCT(($A$3:$A79>($A959-VLOOKUP(P$881,'F. UL & OPEX flat rates'!$B$2:$G$43,5)))*1,P$3:P79)+P783)*VLOOKUP(P$881,'F. UL & OPEX flat rates'!$B$2:$G$43,6,0)","v":0},{"$f":"(SUMPRODUCT(($A$3:$A79>($A959-VLOOKUP(Q$881,'F. UL & OPEX flat rates'!$B$2:$G$43,5)))*1,Q$3:Q79)+Q783)*VLOOKUP(Q$881,'F. UL & OPEX flat rates'!$B$2:$G$43,6,0)","v":0},{"$f":"(SUMPRODUCT(($A$3:$A79>($A959-VLOOKUP(R$881,'F. UL & OPEX flat rates'!$B$2:$G$43,5)))*1,R$3:R79)+R783)*VLOOKUP(R$881,'F. UL & OPEX flat rates'!$B$2:$G$43,6,0)","v":0},{"$f":"(SUMPRODUCT(($A$3:$A79>($A959-VLOOKUP(S$881,'F. UL & OPEX flat rates'!$B$2:$G$43,5)))*1,S$3:S79)+S783)*VLOOKUP(S$881,'F. UL & OPEX flat rates'!$B$2:$G$43,6,0)","v":0},{"$f":"(SUMPRODUCT(($A$3:$A79>($A959-VLOOKUP(T$881,'F. UL & OPEX flat rates'!$B$2:$G$43,5)))*1,T$3:T79)+T783)*VLOOKUP(T$881,'F. UL & OPEX flat rates'!$B$2:$G$43,6,0)","v":0},{"$f":"(SUMPRODUCT(($A$3:$A79>($A959-VLOOKUP(U$881,'F. UL & OPEX flat rates'!$B$2:$G$43,5)))*1,U$3:U79)+U783)*VLOOKUP(U$881,'F. UL & OPEX flat rates'!$B$2:$G$43,6,0)","v":0},{"$f":"(SUMPRODUCT(($A$3:$A79>($A959-VLOOKUP(V$881,'F. UL & OPEX flat rates'!$B$2:$G$43,5)))*1,V$3:V79)+V783)*VLOOKUP(V$881,'F. UL & OPEX flat rates'!$B$2:$G$43,6,0)","v":0},{"$f":"(SUMPRODUCT(($A$3:$A79>($A959-VLOOKUP(W$881,'F. UL & OPEX flat rates'!$B$2:$G$43,5)))*1,W$3:W79)+W783)*VLOOKUP(W$881,'F. UL & OPEX flat rates'!$B$2:$G$43,6,0)","v":0},{"$f":"(SUMPRODUCT(($A$3:$A79>($A959-VLOOKUP(X$881,'F. UL & OPEX flat rates'!$B$2:$G$43,5)))*1,X$3:X79)+X783)*VLOOKUP(X$881,'F. UL & OPEX flat rates'!$B$2:$G$43,6,0)","v":0},{"$f":"(SUMPRODUCT(($A$3:$A79>($A959-VLOOKUP(Y$881,'F. UL & OPEX flat rates'!$B$2:$G$43,5)))*1,Y$3:Y79)+Y783)*VLOOKUP(Y$881,'F. UL & OPEX flat rates'!$B$2:$G$43,6,0)","v":0},{"$f":"(SUMPRODUCT(($A$3:$A79>($A959-VLOOKUP(Z$881,'F. UL & OPEX flat rates'!$B$2:$G$43,5)))*1,Z$3:Z79)+Z783)*VLOOKUP(Z$881,'F. UL & OPEX flat rates'!$B$2:$G$43,6,0)","v":0},{"$f":"(SUMPRODUCT(($A$3:$A79>($A959-VLOOKUP(AA$881,'F. UL & OPEX flat rates'!$B$2:$G$43,5)))*1,AA$3:AA79)+AA783)*VLOOKUP(AA$881,'F. UL & OPEX flat rates'!$B$2:$G$43,6,0)","v":0},{"$f":"(SUMPRODUCT(($A$3:$A79>($A959-VLOOKUP(AB$881,'F. UL & OPEX flat rates'!$B$2:$G$43,5)))*1,AB$3:AB79)+AB783)*VLOOKUP(AB$881,'F. UL & OPEX flat rates'!$B$2:$G$43,6,0)","v":0},{"$f":"(SUMPRODUCT(($A$3:$A79>($A959-VLOOKUP(AC$881,'F. UL & OPEX flat rates'!$B$2:$G$43,5)))*1,AC$3:AC79)+AC783)*VLOOKUP(AC$881,'F. UL & OPEX flat rates'!$B$2:$G$43,6,0)","v":0},{"$f":"(SUMPRODUCT(($A$3:$A79>($A959-VLOOKUP(AD$881,'F. UL & OPEX flat rates'!$B$2:$G$43,5)))*1,AD$3:AD79)+AD783)*VLOOKUP(AD$881,'F. UL & OPEX flat rates'!$B$2:$G$43,6,0)","v":0},{"$f":"(SUMPRODUCT(($A$3:$A79>($A959-VLOOKUP(AE$881,'F. UL & OPEX flat rates'!$B$2:$G$43,5)))*1,AE$3:AE79)+AE783)*VLOOKUP(AE$881,'F. UL & OPEX flat rates'!$B$2:$G$43,6,0)","v":0},{"$f":"(SUMPRODUCT(($A$3:$A79>($A959-VLOOKUP(AF$881,'F. UL & OPEX flat rates'!$B$2:$G$43,5)))*1,AF$3:AF79)+AF783)*VLOOKUP(AF$881,'F. UL & OPEX flat rates'!$B$2:$G$43,6,0)","v":0},{"$f":"(SUMPRODUCT(($A$3:$A79>($A959-VLOOKUP(AG$881,'F. UL & OPEX flat rates'!$B$2:$G$43,5)))*1,AG$3:AG79)+AG783)*VLOOKUP(AG$881,'F. UL & OPEX flat rates'!$B$2:$G$43,6,0)","v":0},{"$f":"(SUMPRODUCT(($A$3:$A79>($A959-VLOOKUP(AH$881,'F. UL & OPEX flat rates'!$B$2:$G$43,5)))*1,AH$3:AH79)+AH783)*VLOOKUP(AH$881,'F. UL & OPEX flat rates'!$B$2:$G$43,6,0)","v":0},{"$f":"(SUMPRODUCT(($A$3:$A79>($A959-VLOOKUP(AI$881,'F. UL & OPEX flat rates'!$B$2:$G$43,5)))*1,AI$3:AI79)+AI783)*VLOOKUP(AI$881,'F. UL & OPEX flat rates'!$B$2:$G$43,6,0)","v":0},{"$f":"(SUMPRODUCT(($A$3:$A79>($A959-VLOOKUP(AJ$881,'F. UL & OPEX flat rates'!$B$2:$G$43,5)))*1,AJ$3:AJ79)+AJ783)*VLOOKUP(AJ$881,'F. UL & OPEX flat rates'!$B$2:$G$43,6,0)","v":0},{"$f":"(SUMPRODUCT(($A$3:$A79>($A959-VLOOKUP(AK$881,'F. UL & OPEX flat rates'!$B$2:$G$43,5)))*1,AK$3:AK79)+AK783)*VLOOKUP(AK$881,'F. UL & OPEX flat rates'!$B$2:$G$43,6,0)","v":0},{"$f":"(SUMPRODUCT(($A$3:$A79>($A959-VLOOKUP(AL$881,'F. UL & OPEX flat rates'!$B$2:$G$43,5)))*1,AL$3:AL79)+AL783)*VLOOKUP(AL$881,'F. UL & OPEX flat rates'!$B$2:$G$43,6,0)","v":0},{"$f":"(SUMPRODUCT(($A$3:$A79>($A959-VLOOKUP(AM$881,'F. UL & OPEX flat rates'!$B$2:$G$43,5)))*1,AM$3:AM79)+AM783)*VLOOKUP(AM$881,'F. UL & OPEX flat rates'!$B$2:$G$43,6,0)","v":0},{"$f":"(SUMPRODUCT(($A$3:$A79>($A959-VLOOKUP(AN$881,'F. UL & OPEX flat rates'!$B$2:$G$43,5)))*1,AN$3:AN79)+AN783)*VLOOKUP(AN$881,'F. UL & OPEX flat rates'!$B$2:$G$43,6,0)","v":0},{"$f":"(SUMPRODUCT(($A$3:$A79>($A959-VLOOKUP(AO$881,'F. UL & OPEX flat rates'!$B$2:$G$43,5)))*1,AO$3:AO79)+AO783)*VLOOKUP(AO$881,'F. UL & OPEX flat rates'!$B$2:$G$43,6,0)","v":0},{"$f":"(SUMPRODUCT(($A$3:$A79>($A959-VLOOKUP(AP$881,'F. UL & OPEX flat rates'!$B$2:$G$43,5)))*1,AP$3:AP79)+AP783)*VLOOKUP(AP$881,'F. UL & OPEX flat rates'!$B$2:$G$43,6,0)","v":0},{"$f":"(SUMPRODUCT(($A$3:$A79>($A959-VLOOKUP(AQ$881,'F. UL & OPEX flat rates'!$B$2:$G$43,5)))*1,AQ$3:AQ79)+AQ783)*VLOOKUP(AQ$881,'F. UL & OPEX flat rates'!$B$2:$G$43,6,0)","v":0}]
[2093,0,{"$f":"(SUMPRODUCT(($A$3:$A80>($A960-VLOOKUP(C$881,'F. UL & OPEX flat rates'!$B$2:$G$43,5)))*1,C$3:C80)+C784)*VLOOKUP(C$881,'F. UL & OPEX flat rates'!$B$2:$G$43,6,0)","v":0},{"$f":"(SUMPRODUCT(($A$3:$A80>($A960-VLOOKUP(D$881,'F. UL & OPEX flat rates'!$B$2:$G$43,5)))*1,D$3:D80)+D784)*VLOOKUP(D$881,'F. UL & OPEX flat rates'!$B$2:$G$43,6,0)","v":0},{"$f":"(SUMPRODUCT(($A$3:$A80>($A960-VLOOKUP(E$881,'F. UL & OPEX flat rates'!$B$2:$G$43,5)))*1,E$3:E80)+E784)*VLOOKUP(E$881,'F. UL & OPEX flat rates'!$B$2:$G$43,6,0)","v":0},{"$f":"(SUMPRODUCT(($A$3:$A80>($A960-VLOOKUP(F$881,'F. UL & OPEX flat rates'!$B$2:$G$43,5)))*1,F$3:F80)+F784)*VLOOKUP(F$881,'F. UL & OPEX flat rates'!$B$2:$G$43,6,0)","v":0},{"$f":"(SUMPRODUCT(($A$3:$A80>($A960-VLOOKUP(G$881,'F. UL & OPEX flat rates'!$B$2:$G$43,5)))*1,G$3:G80)+G784)*VLOOKUP(G$881,'F. UL & OPEX flat rates'!$B$2:$G$43,6,0)","v":0},{"$f":"(SUMPRODUCT(($A$3:$A80>($A960-VLOOKUP(H$881,'F. UL & OPEX flat rates'!$B$2:$G$43,5)))*1,H$3:H80)+H784)*VLOOKUP(H$881,'F. UL & OPEX flat rates'!$B$2:$G$43,6,0)","v":0},{"$f":"(SUMPRODUCT(($A$3:$A80>($A960-VLOOKUP(I$881,'F. UL & OPEX flat rates'!$B$2:$G$43,5)))*1,I$3:I80)+I784)*VLOOKUP(I$881,'F. UL & OPEX flat rates'!$B$2:$G$43,6,0)","v":0},{"$f":"(SUMPRODUCT(($A$3:$A80>($A960-VLOOKUP(J$881,'F. UL & OPEX flat rates'!$B$2:$G$43,5)))*1,J$3:J80)+J784)*VLOOKUP(J$881,'F. UL & OPEX flat rates'!$B$2:$G$43,6,0)","v":0},{"$f":"(SUMPRODUCT(($A$3:$A80>($A960-VLOOKUP(K$881,'F. UL & OPEX flat rates'!$B$2:$G$43,5)))*1,K$3:K80)+K784)*VLOOKUP(K$881,'F. UL & OPEX flat rates'!$B$2:$G$43,6,0)","v":0},{"$f":"(SUMPRODUCT(($A$3:$A80>($A960-VLOOKUP(L$881,'F. UL & OPEX flat rates'!$B$2:$G$43,5)))*1,L$3:L80)+L784)*VLOOKUP(L$881,'F. UL & OPEX flat rates'!$B$2:$G$43,6,0)","v":0},{"$f":"(SUMPRODUCT(($A$3:$A80>($A960-VLOOKUP(M$881,'F. UL & OPEX flat rates'!$B$2:$G$43,5)))*1,M$3:M80)+M784)*VLOOKUP(M$881,'F. UL & OPEX flat rates'!$B$2:$G$43,6,0)","v":0},{"$f":"(SUMPRODUCT(($A$3:$A80>($A960-VLOOKUP(N$881,'F. UL & OPEX flat rates'!$B$2:$G$43,5)))*1,N$3:N80)+N784)*VLOOKUP(N$881,'F. UL & OPEX flat rates'!$B$2:$G$43,6,0)","v":0},{"$f":"(SUMPRODUCT(($A$3:$A80>($A960-VLOOKUP(O$881,'F. UL & OPEX flat rates'!$B$2:$G$43,5)))*1,O$3:O80)+O784)*VLOOKUP(O$881,'F. UL & OPEX flat rates'!$B$2:$G$43,6,0)","v":0},{"$f":"(SUMPRODUCT(($A$3:$A80>($A960-VLOOKUP(P$881,'F. UL & OPEX flat rates'!$B$2:$G$43,5)))*1,P$3:P80)+P784)*VLOOKUP(P$881,'F. UL & OPEX flat rates'!$B$2:$G$43,6,0)","v":0},{"$f":"(SUMPRODUCT(($A$3:$A80>($A960-VLOOKUP(Q$881,'F. UL & OPEX flat rates'!$B$2:$G$43,5)))*1,Q$3:Q80)+Q784)*VLOOKUP(Q$881,'F. UL & OPEX flat rates'!$B$2:$G$43,6,0)","v":0},{"$f":"(SUMPRODUCT(($A$3:$A80>($A960-VLOOKUP(R$881,'F. UL & OPEX flat rates'!$B$2:$G$43,5)))*1,R$3:R80)+R784)*VLOOKUP(R$881,'F. UL & OPEX flat rates'!$B$2:$G$43,6,0)","v":0},{"$f":"(SUMPRODUCT(($A$3:$A80>($A960-VLOOKUP(S$881,'F. UL & OPEX flat rates'!$B$2:$G$43,5)))*1,S$3:S80)+S784)*VLOOKUP(S$881,'F. UL & OPEX flat rates'!$B$2:$G$43,6,0)","v":0},{"$f":"(SUMPRODUCT(($A$3:$A80>($A960-VLOOKUP(T$881,'F. UL & OPEX flat rates'!$B$2:$G$43,5)))*1,T$3:T80)+T784)*VLOOKUP(T$881,'F. UL & OPEX flat rates'!$B$2:$G$43,6,0)","v":0},{"$f":"(SUMPRODUCT(($A$3:$A80>($A960-VLOOKUP(U$881,'F. UL & OPEX flat rates'!$B$2:$G$43,5)))*1,U$3:U80)+U784)*VLOOKUP(U$881,'F. UL & OPEX flat rates'!$B$2:$G$43,6,0)","v":0},{"$f":"(SUMPRODUCT(($A$3:$A80>($A960-VLOOKUP(V$881,'F. UL & OPEX flat rates'!$B$2:$G$43,5)))*1,V$3:V80)+V784)*VLOOKUP(V$881,'F. UL & OPEX flat rates'!$B$2:$G$43,6,0)","v":0},{"$f":"(SUMPRODUCT(($A$3:$A80>($A960-VLOOKUP(W$881,'F. UL & OPEX flat rates'!$B$2:$G$43,5)))*1,W$3:W80)+W784)*VLOOKUP(W$881,'F. UL & OPEX flat rates'!$B$2:$G$43,6,0)","v":0},{"$f":"(SUMPRODUCT(($A$3:$A80>($A960-VLOOKUP(X$881,'F. UL & OPEX flat rates'!$B$2:$G$43,5)))*1,X$3:X80)+X784)*VLOOKUP(X$881,'F. UL & OPEX flat rates'!$B$2:$G$43,6,0)","v":0},{"$f":"(SUMPRODUCT(($A$3:$A80>($A960-VLOOKUP(Y$881,'F. UL & OPEX flat rates'!$B$2:$G$43,5)))*1,Y$3:Y80)+Y784)*VLOOKUP(Y$881,'F. UL & OPEX flat rates'!$B$2:$G$43,6,0)","v":0},{"$f":"(SUMPRODUCT(($A$3:$A80>($A960-VLOOKUP(Z$881,'F. UL & OPEX flat rates'!$B$2:$G$43,5)))*1,Z$3:Z80)+Z784)*VLOOKUP(Z$881,'F. UL & OPEX flat rates'!$B$2:$G$43,6,0)","v":0},{"$f":"(SUMPRODUCT(($A$3:$A80>($A960-VLOOKUP(AA$881,'F. UL & OPEX flat rates'!$B$2:$G$43,5)))*1,AA$3:AA80)+AA784)*VLOOKUP(AA$881,'F. UL & OPEX flat rates'!$B$2:$G$43,6,0)","v":0},{"$f":"(SUMPRODUCT(($A$3:$A80>($A960-VLOOKUP(AB$881,'F. UL & OPEX flat rates'!$B$2:$G$43,5)))*1,AB$3:AB80)+AB784)*VLOOKUP(AB$881,'F. UL & OPEX flat rates'!$B$2:$G$43,6,0)","v":0},{"$f":"(SUMPRODUCT(($A$3:$A80>($A960-VLOOKUP(AC$881,'F. UL & OPEX flat rates'!$B$2:$G$43,5)))*1,AC$3:AC80)+AC784)*VLOOKUP(AC$881,'F. UL & OPEX flat rates'!$B$2:$G$43,6,0)","v":0},{"$f":"(SUMPRODUCT(($A$3:$A80>($A960-VLOOKUP(AD$881,'F. UL & OPEX flat rates'!$B$2:$G$43,5)))*1,AD$3:AD80)+AD784)*VLOOKUP(AD$881,'F. UL & OPEX flat rates'!$B$2:$G$43,6,0)","v":0},{"$f":"(SUMPRODUCT(($A$3:$A80>($A960-VLOOKUP(AE$881,'F. UL & OPEX flat rates'!$B$2:$G$43,5)))*1,AE$3:AE80)+AE784)*VLOOKUP(AE$881,'F. UL & OPEX flat rates'!$B$2:$G$43,6,0)","v":0},{"$f":"(SUMPRODUCT(($A$3:$A80>($A960-VLOOKUP(AF$881,'F. UL & OPEX flat rates'!$B$2:$G$43,5)))*1,AF$3:AF80)+AF784)*VLOOKUP(AF$881,'F. UL & OPEX flat rates'!$B$2:$G$43,6,0)","v":0},{"$f":"(SUMPRODUCT(($A$3:$A80>($A960-VLOOKUP(AG$881,'F. UL & OPEX flat rates'!$B$2:$G$43,5)))*1,AG$3:AG80)+AG784)*VLOOKUP(AG$881,'F. UL & OPEX flat rates'!$B$2:$G$43,6,0)","v":0},{"$f":"(SUMPRODUCT(($A$3:$A80>($A960-VLOOKUP(AH$881,'F. UL & OPEX flat rates'!$B$2:$G$43,5)))*1,AH$3:AH80)+AH784)*VLOOKUP(AH$881,'F. UL & OPEX flat rates'!$B$2:$G$43,6,0)","v":0},{"$f":"(SUMPRODUCT(($A$3:$A80>($A960-VLOOKUP(AI$881,'F. UL & OPEX flat rates'!$B$2:$G$43,5)))*1,AI$3:AI80)+AI784)*VLOOKUP(AI$881,'F. UL & OPEX flat rates'!$B$2:$G$43,6,0)","v":0},{"$f":"(SUMPRODUCT(($A$3:$A80>($A960-VLOOKUP(AJ$881,'F. UL & OPEX flat rates'!$B$2:$G$43,5)))*1,AJ$3:AJ80)+AJ784)*VLOOKUP(AJ$881,'F. UL & OPEX flat rates'!$B$2:$G$43,6,0)","v":0},{"$f":"(SUMPRODUCT(($A$3:$A80>($A960-VLOOKUP(AK$881,'F. UL & OPEX flat rates'!$B$2:$G$43,5)))*1,AK$3:AK80)+AK784)*VLOOKUP(AK$881,'F. UL & OPEX flat rates'!$B$2:$G$43,6,0)","v":0},{"$f":"(SUMPRODUCT(($A$3:$A80>($A960-VLOOKUP(AL$881,'F. UL & OPEX flat rates'!$B$2:$G$43,5)))*1,AL$3:AL80)+AL784)*VLOOKUP(AL$881,'F. UL & OPEX flat rates'!$B$2:$G$43,6,0)","v":0},{"$f":"(SUMPRODUCT(($A$3:$A80>($A960-VLOOKUP(AM$881,'F. UL & OPEX flat rates'!$B$2:$G$43,5)))*1,AM$3:AM80)+AM784)*VLOOKUP(AM$881,'F. UL & OPEX flat rates'!$B$2:$G$43,6,0)","v":0},{"$f":"(SUMPRODUCT(($A$3:$A80>($A960-VLOOKUP(AN$881,'F. UL & OPEX flat rates'!$B$2:$G$43,5)))*1,AN$3:AN80)+AN784)*VLOOKUP(AN$881,'F. UL & OPEX flat rates'!$B$2:$G$43,6,0)","v":0},{"$f":"(SUMPRODUCT(($A$3:$A80>($A960-VLOOKUP(AO$881,'F. UL & OPEX flat rates'!$B$2:$G$43,5)))*1,AO$3:AO80)+AO784)*VLOOKUP(AO$881,'F. UL & OPEX flat rates'!$B$2:$G$43,6,0)","v":0},{"$f":"(SUMPRODUCT(($A$3:$A80>($A960-VLOOKUP(AP$881,'F. UL & OPEX flat rates'!$B$2:$G$43,5)))*1,AP$3:AP80)+AP784)*VLOOKUP(AP$881,'F. UL & OPEX flat rates'!$B$2:$G$43,6,0)","v":0},{"$f":"(SUMPRODUCT(($A$3:$A80>($A960-VLOOKUP(AQ$881,'F. UL & OPEX flat rates'!$B$2:$G$43,5)))*1,AQ$3:AQ80)+AQ784)*VLOOKUP(AQ$881,'F. UL & OPEX flat rates'!$B$2:$G$43,6,0)","v":0}]
[2094,0,{"$f":"(SUMPRODUCT(($A$3:$A81>($A961-VLOOKUP(C$881,'F. UL & OPEX flat rates'!$B$2:$G$43,5)))*1,C$3:C81)+C785)*VLOOKUP(C$881,'F. UL & OPEX flat rates'!$B$2:$G$43,6,0)","v":0},{"$f":"(SUMPRODUCT(($A$3:$A81>($A961-VLOOKUP(D$881,'F. UL & OPEX flat rates'!$B$2:$G$43,5)))*1,D$3:D81)+D785)*VLOOKUP(D$881,'F. UL & OPEX flat rates'!$B$2:$G$43,6,0)","v":0},{"$f":"(SUMPRODUCT(($A$3:$A81>($A961-VLOOKUP(E$881,'F. UL & OPEX flat rates'!$B$2:$G$43,5)))*1,E$3:E81)+E785)*VLOOKUP(E$881,'F. UL & OPEX flat rates'!$B$2:$G$43,6,0)","v":0},{"$f":"(SUMPRODUCT(($A$3:$A81>($A961-VLOOKUP(F$881,'F. UL & OPEX flat rates'!$B$2:$G$43,5)))*1,F$3:F81)+F785)*VLOOKUP(F$881,'F. UL & OPEX flat rates'!$B$2:$G$43,6,0)","v":0},{"$f":"(SUMPRODUCT(($A$3:$A81>($A961-VLOOKUP(G$881,'F. UL & OPEX flat rates'!$B$2:$G$43,5)))*1,G$3:G81)+G785)*VLOOKUP(G$881,'F. UL & OPEX flat rates'!$B$2:$G$43,6,0)","v":0},{"$f":"(SUMPRODUCT(($A$3:$A81>($A961-VLOOKUP(H$881,'F. UL & OPEX flat rates'!$B$2:$G$43,5)))*1,H$3:H81)+H785)*VLOOKUP(H$881,'F. UL & OPEX flat rates'!$B$2:$G$43,6,0)","v":0},{"$f":"(SUMPRODUCT(($A$3:$A81>($A961-VLOOKUP(I$881,'F. UL & OPEX flat rates'!$B$2:$G$43,5)))*1,I$3:I81)+I785)*VLOOKUP(I$881,'F. UL & OPEX flat rates'!$B$2:$G$43,6,0)","v":0},{"$f":"(SUMPRODUCT(($A$3:$A81>($A961-VLOOKUP(J$881,'F. UL & OPEX flat rates'!$B$2:$G$43,5)))*1,J$3:J81)+J785)*VLOOKUP(J$881,'F. UL & OPEX flat rates'!$B$2:$G$43,6,0)","v":0},{"$f":"(SUMPRODUCT(($A$3:$A81>($A961-VLOOKUP(K$881,'F. UL & OPEX flat rates'!$B$2:$G$43,5)))*1,K$3:K81)+K785)*VLOOKUP(K$881,'F. UL & OPEX flat rates'!$B$2:$G$43,6,0)","v":0},{"$f":"(SUMPRODUCT(($A$3:$A81>($A961-VLOOKUP(L$881,'F. UL & OPEX flat rates'!$B$2:$G$43,5)))*1,L$3:L81)+L785)*VLOOKUP(L$881,'F. UL & OPEX flat rates'!$B$2:$G$43,6,0)","v":0},{"$f":"(SUMPRODUCT(($A$3:$A81>($A961-VLOOKUP(M$881,'F. UL & OPEX flat rates'!$B$2:$G$43,5)))*1,M$3:M81)+M785)*VLOOKUP(M$881,'F. UL & OPEX flat rates'!$B$2:$G$43,6,0)","v":0},{"$f":"(SUMPRODUCT(($A$3:$A81>($A961-VLOOKUP(N$881,'F. UL & OPEX flat rates'!$B$2:$G$43,5)))*1,N$3:N81)+N785)*VLOOKUP(N$881,'F. UL & OPEX flat rates'!$B$2:$G$43,6,0)","v":0},{"$f":"(SUMPRODUCT(($A$3:$A81>($A961-VLOOKUP(O$881,'F. UL & OPEX flat rates'!$B$2:$G$43,5)))*1,O$3:O81)+O785)*VLOOKUP(O$881,'F. UL & OPEX flat rates'!$B$2:$G$43,6,0)","v":0},{"$f":"(SUMPRODUCT(($A$3:$A81>($A961-VLOOKUP(P$881,'F. UL & OPEX flat rates'!$B$2:$G$43,5)))*1,P$3:P81)+P785)*VLOOKUP(P$881,'F. UL & OPEX flat rates'!$B$2:$G$43,6,0)","v":0},{"$f":"(SUMPRODUCT(($A$3:$A81>($A961-VLOOKUP(Q$881,'F. UL & OPEX flat rates'!$B$2:$G$43,5)))*1,Q$3:Q81)+Q785)*VLOOKUP(Q$881,'F. UL & OPEX flat rates'!$B$2:$G$43,6,0)","v":0},{"$f":"(SUMPRODUCT(($A$3:$A81>($A961-VLOOKUP(R$881,'F. UL & OPEX flat rates'!$B$2:$G$43,5)))*1,R$3:R81)+R785)*VLOOKUP(R$881,'F. UL & OPEX flat rates'!$B$2:$G$43,6,0)","v":0},{"$f":"(SUMPRODUCT(($A$3:$A81>($A961-VLOOKUP(S$881,'F. UL & OPEX flat rates'!$B$2:$G$43,5)))*1,S$3:S81)+S785)*VLOOKUP(S$881,'F. UL & OPEX flat rates'!$B$2:$G$43,6,0)","v":0},{"$f":"(SUMPRODUCT(($A$3:$A81>($A961-VLOOKUP(T$881,'F. UL & OPEX flat rates'!$B$2:$G$43,5)))*1,T$3:T81)+T785)*VLOOKUP(T$881,'F. UL & OPEX flat rates'!$B$2:$G$43,6,0)","v":0},{"$f":"(SUMPRODUCT(($A$3:$A81>($A961-VLOOKUP(U$881,'F. UL & OPEX flat rates'!$B$2:$G$43,5)))*1,U$3:U81)+U785)*VLOOKUP(U$881,'F. UL & OPEX flat rates'!$B$2:$G$43,6,0)","v":0},{"$f":"(SUMPRODUCT(($A$3:$A81>($A961-VLOOKUP(V$881,'F. UL & OPEX flat rates'!$B$2:$G$43,5)))*1,V$3:V81)+V785)*VLOOKUP(V$881,'F. UL & OPEX flat rates'!$B$2:$G$43,6,0)","v":0},{"$f":"(SUMPRODUCT(($A$3:$A81>($A961-VLOOKUP(W$881,'F. UL & OPEX flat rates'!$B$2:$G$43,5)))*1,W$3:W81)+W785)*VLOOKUP(W$881,'F. UL & OPEX flat rates'!$B$2:$G$43,6,0)","v":0},{"$f":"(SUMPRODUCT(($A$3:$A81>($A961-VLOOKUP(X$881,'F. UL & OPEX flat rates'!$B$2:$G$43,5)))*1,X$3:X81)+X785)*VLOOKUP(X$881,'F. UL & OPEX flat rates'!$B$2:$G$43,6,0)","v":0},{"$f":"(SUMPRODUCT(($A$3:$A81>($A961-VLOOKUP(Y$881,'F. UL & OPEX flat rates'!$B$2:$G$43,5)))*1,Y$3:Y81)+Y785)*VLOOKUP(Y$881,'F. UL & OPEX flat rates'!$B$2:$G$43,6,0)","v":0},{"$f":"(SUMPRODUCT(($A$3:$A81>($A961-VLOOKUP(Z$881,'F. UL & OPEX flat rates'!$B$2:$G$43,5)))*1,Z$3:Z81)+Z785)*VLOOKUP(Z$881,'F. UL & OPEX flat rates'!$B$2:$G$43,6,0)","v":0},{"$f":"(SUMPRODUCT(($A$3:$A81>($A961-VLOOKUP(AA$881,'F. UL & OPEX flat rates'!$B$2:$G$43,5)))*1,AA$3:AA81)+AA785)*VLOOKUP(AA$881,'F. UL & OPEX flat rates'!$B$2:$G$43,6,0)","v":0},{"$f":"(SUMPRODUCT(($A$3:$A81>($A961-VLOOKUP(AB$881,'F. UL & OPEX flat rates'!$B$2:$G$43,5)))*1,AB$3:AB81)+AB785)*VLOOKUP(AB$881,'F. UL & OPEX flat rates'!$B$2:$G$43,6,0)","v":0},{"$f":"(SUMPRODUCT(($A$3:$A81>($A961-VLOOKUP(AC$881,'F. UL & OPEX flat rates'!$B$2:$G$43,5)))*1,AC$3:AC81)+AC785)*VLOOKUP(AC$881,'F. UL & OPEX flat rates'!$B$2:$G$43,6,0)","v":0},{"$f":"(SUMPRODUCT(($A$3:$A81>($A961-VLOOKUP(AD$881,'F. UL & OPEX flat rates'!$B$2:$G$43,5)))*1,AD$3:AD81)+AD785)*VLOOKUP(AD$881,'F. UL & OPEX flat rates'!$B$2:$G$43,6,0)","v":0},{"$f":"(SUMPRODUCT(($A$3:$A81>($A961-VLOOKUP(AE$881,'F. UL & OPEX flat rates'!$B$2:$G$43,5)))*1,AE$3:AE81)+AE785)*VLOOKUP(AE$881,'F. UL & OPEX flat rates'!$B$2:$G$43,6,0)","v":0},{"$f":"(SUMPRODUCT(($A$3:$A81>($A961-VLOOKUP(AF$881,'F. UL & OPEX flat rates'!$B$2:$G$43,5)))*1,AF$3:AF81)+AF785)*VLOOKUP(AF$881,'F. UL & OPEX flat rates'!$B$2:$G$43,6,0)","v":0},{"$f":"(SUMPRODUCT(($A$3:$A81>($A961-VLOOKUP(AG$881,'F. UL & OPEX flat rates'!$B$2:$G$43,5)))*1,AG$3:AG81)+AG785)*VLOOKUP(AG$881,'F. UL & OPEX flat rates'!$B$2:$G$43,6,0)","v":0},{"$f":"(SUMPRODUCT(($A$3:$A81>($A961-VLOOKUP(AH$881,'F. UL & OPEX flat rates'!$B$2:$G$43,5)))*1,AH$3:AH81)+AH785)*VLOOKUP(AH$881,'F. UL & OPEX flat rates'!$B$2:$G$43,6,0)","v":0},{"$f":"(SUMPRODUCT(($A$3:$A81>($A961-VLOOKUP(AI$881,'F. UL & OPEX flat rates'!$B$2:$G$43,5)))*1,AI$3:AI81)+AI785)*VLOOKUP(AI$881,'F. UL & OPEX flat rates'!$B$2:$G$43,6,0)","v":0},{"$f":"(SUMPRODUCT(($A$3:$A81>($A961-VLOOKUP(AJ$881,'F. UL & OPEX flat rates'!$B$2:$G$43,5)))*1,AJ$3:AJ81)+AJ785)*VLOOKUP(AJ$881,'F. UL & OPEX flat rates'!$B$2:$G$43,6,0)","v":0},{"$f":"(SUMPRODUCT(($A$3:$A81>($A961-VLOOKUP(AK$881,'F. UL & OPEX flat rates'!$B$2:$G$43,5)))*1,AK$3:AK81)+AK785)*VLOOKUP(AK$881,'F. UL & OPEX flat rates'!$B$2:$G$43,6,0)","v":0},{"$f":"(SUMPRODUCT(($A$3:$A81>($A961-VLOOKUP(AL$881,'F. UL & OPEX flat rates'!$B$2:$G$43,5)))*1,AL$3:AL81)+AL785)*VLOOKUP(AL$881,'F. UL & OPEX flat rates'!$B$2:$G$43,6,0)","v":0},{"$f":"(SUMPRODUCT(($A$3:$A81>($A961-VLOOKUP(AM$881,'F. UL & OPEX flat rates'!$B$2:$G$43,5)))*1,AM$3:AM81)+AM785)*VLOOKUP(AM$881,'F. UL & OPEX flat rates'!$B$2:$G$43,6,0)","v":0},{"$f":"(SUMPRODUCT(($A$3:$A81>($A961-VLOOKUP(AN$881,'F. UL & OPEX flat rates'!$B$2:$G$43,5)))*1,AN$3:AN81)+AN785)*VLOOKUP(AN$881,'F. UL & OPEX flat rates'!$B$2:$G$43,6,0)","v":0},{"$f":"(SUMPRODUCT(($A$3:$A81>($A961-VLOOKUP(AO$881,'F. UL & OPEX flat rates'!$B$2:$G$43,5)))*1,AO$3:AO81)+AO785)*VLOOKUP(AO$881,'F. UL & OPEX flat rates'!$B$2:$G$43,6,0)","v":0},{"$f":"(SUMPRODUCT(($A$3:$A81>($A961-VLOOKUP(AP$881,'F. UL & OPEX flat rates'!$B$2:$G$43,5)))*1,AP$3:AP81)+AP785)*VLOOKUP(AP$881,'F. UL & OPEX flat rates'!$B$2:$G$43,6,0)","v":0},{"$f":"(SUMPRODUCT(($A$3:$A81>($A961-VLOOKUP(AQ$881,'F. UL & OPEX flat rates'!$B$2:$G$43,5)))*1,AQ$3:AQ81)+AQ785)*VLOOKUP(AQ$881,'F. UL & OPEX flat rates'!$B$2:$G$43,6,0)","v":0}]
[2095,0,{"$f":"(SUMPRODUCT(($A$3:$A82>($A962-VLOOKUP(C$881,'F. UL & OPEX flat rates'!$B$2:$G$43,5)))*1,C$3:C82)+C786)*VLOOKUP(C$881,'F. UL & OPEX flat rates'!$B$2:$G$43,6,0)","v":0},{"$f":"(SUMPRODUCT(($A$3:$A82>($A962-VLOOKUP(D$881,'F. UL & OPEX flat rates'!$B$2:$G$43,5)))*1,D$3:D82)+D786)*VLOOKUP(D$881,'F. UL & OPEX flat rates'!$B$2:$G$43,6,0)","v":0},{"$f":"(SUMPRODUCT(($A$3:$A82>($A962-VLOOKUP(E$881,'F. UL & OPEX flat rates'!$B$2:$G$43,5)))*1,E$3:E82)+E786)*VLOOKUP(E$881,'F. UL & OPEX flat rates'!$B$2:$G$43,6,0)","v":0},{"$f":"(SUMPRODUCT(($A$3:$A82>($A962-VLOOKUP(F$881,'F. UL & OPEX flat rates'!$B$2:$G$43,5)))*1,F$3:F82)+F786)*VLOOKUP(F$881,'F. UL & OPEX flat rates'!$B$2:$G$43,6,0)","v":0},{"$f":"(SUMPRODUCT(($A$3:$A82>($A962-VLOOKUP(G$881,'F. UL & OPEX flat rates'!$B$2:$G$43,5)))*1,G$3:G82)+G786)*VLOOKUP(G$881,'F. UL & OPEX flat rates'!$B$2:$G$43,6,0)","v":0},{"$f":"(SUMPRODUCT(($A$3:$A82>($A962-VLOOKUP(H$881,'F. UL & OPEX flat rates'!$B$2:$G$43,5)))*1,H$3:H82)+H786)*VLOOKUP(H$881,'F. UL & OPEX flat rates'!$B$2:$G$43,6,0)","v":0},{"$f":"(SUMPRODUCT(($A$3:$A82>($A962-VLOOKUP(I$881,'F. UL & OPEX flat rates'!$B$2:$G$43,5)))*1,I$3:I82)+I786)*VLOOKUP(I$881,'F. UL & OPEX flat rates'!$B$2:$G$43,6,0)","v":0},{"$f":"(SUMPRODUCT(($A$3:$A82>($A962-VLOOKUP(J$881,'F. UL & OPEX flat rates'!$B$2:$G$43,5)))*1,J$3:J82)+J786)*VLOOKUP(J$881,'F. UL & OPEX flat rates'!$B$2:$G$43,6,0)","v":0},{"$f":"(SUMPRODUCT(($A$3:$A82>($A962-VLOOKUP(K$881,'F. UL & OPEX flat rates'!$B$2:$G$43,5)))*1,K$3:K82)+K786)*VLOOKUP(K$881,'F. UL & OPEX flat rates'!$B$2:$G$43,6,0)","v":0},{"$f":"(SUMPRODUCT(($A$3:$A82>($A962-VLOOKUP(L$881,'F. UL & OPEX flat rates'!$B$2:$G$43,5)))*1,L$3:L82)+L786)*VLOOKUP(L$881,'F. UL & OPEX flat rates'!$B$2:$G$43,6,0)","v":0},{"$f":"(SUMPRODUCT(($A$3:$A82>($A962-VLOOKUP(M$881,'F. UL & OPEX flat rates'!$B$2:$G$43,5)))*1,M$3:M82)+M786)*VLOOKUP(M$881,'F. UL & OPEX flat rates'!$B$2:$G$43,6,0)","v":0},{"$f":"(SUMPRODUCT(($A$3:$A82>($A962-VLOOKUP(N$881,'F. UL & OPEX flat rates'!$B$2:$G$43,5)))*1,N$3:N82)+N786)*VLOOKUP(N$881,'F. UL & OPEX flat rates'!$B$2:$G$43,6,0)","v":0},{"$f":"(SUMPRODUCT(($A$3:$A82>($A962-VLOOKUP(O$881,'F. UL & OPEX flat rates'!$B$2:$G$43,5)))*1,O$3:O82)+O786)*VLOOKUP(O$881,'F. UL & OPEX flat rates'!$B$2:$G$43,6,0)","v":0},{"$f":"(SUMPRODUCT(($A$3:$A82>($A962-VLOOKUP(P$881,'F. UL & OPEX flat rates'!$B$2:$G$43,5)))*1,P$3:P82)+P786)*VLOOKUP(P$881,'F. UL & OPEX flat rates'!$B$2:$G$43,6,0)","v":0},{"$f":"(SUMPRODUCT(($A$3:$A82>($A962-VLOOKUP(Q$881,'F. UL & OPEX flat rates'!$B$2:$G$43,5)))*1,Q$3:Q82)+Q786)*VLOOKUP(Q$881,'F. UL & OPEX flat rates'!$B$2:$G$43,6,0)","v":0},{"$f":"(SUMPRODUCT(($A$3:$A82>($A962-VLOOKUP(R$881,'F. UL & OPEX flat rates'!$B$2:$G$43,5)))*1,R$3:R82)+R786)*VLOOKUP(R$881,'F. UL & OPEX flat rates'!$B$2:$G$43,6,0)","v":0},{"$f":"(SUMPRODUCT(($A$3:$A82>($A962-VLOOKUP(S$881,'F. UL & OPEX flat rates'!$B$2:$G$43,5)))*1,S$3:S82)+S786)*VLOOKUP(S$881,'F. UL & OPEX flat rates'!$B$2:$G$43,6,0)","v":0},{"$f":"(SUMPRODUCT(($A$3:$A82>($A962-VLOOKUP(T$881,'F. UL & OPEX flat rates'!$B$2:$G$43,5)))*1,T$3:T82)+T786)*VLOOKUP(T$881,'F. UL & OPEX flat rates'!$B$2:$G$43,6,0)","v":0},{"$f":"(SUMPRODUCT(($A$3:$A82>($A962-VLOOKUP(U$881,'F. UL & OPEX flat rates'!$B$2:$G$43,5)))*1,U$3:U82)+U786)*VLOOKUP(U$881,'F. UL & OPEX flat rates'!$B$2:$G$43,6,0)","v":0},{"$f":"(SUMPRODUCT(($A$3:$A82>($A962-VLOOKUP(V$881,'F. UL & OPEX flat rates'!$B$2:$G$43,5)))*1,V$3:V82)+V786)*VLOOKUP(V$881,'F. UL & OPEX flat rates'!$B$2:$G$43,6,0)","v":0},{"$f":"(SUMPRODUCT(($A$3:$A82>($A962-VLOOKUP(W$881,'F. UL & OPEX flat rates'!$B$2:$G$43,5)))*1,W$3:W82)+W786)*VLOOKUP(W$881,'F. UL & OPEX flat rates'!$B$2:$G$43,6,0)","v":0},{"$f":"(SUMPRODUCT(($A$3:$A82>($A962-VLOOKUP(X$881,'F. UL & OPEX flat rates'!$B$2:$G$43,5)))*1,X$3:X82)+X786)*VLOOKUP(X$881,'F. UL & OPEX flat rates'!$B$2:$G$43,6,0)","v":0},{"$f":"(SUMPRODUCT(($A$3:$A82>($A962-VLOOKUP(Y$881,'F. UL & OPEX flat rates'!$B$2:$G$43,5)))*1,Y$3:Y82)+Y786)*VLOOKUP(Y$881,'F. UL & OPEX flat rates'!$B$2:$G$43,6,0)","v":0},{"$f":"(SUMPRODUCT(($A$3:$A82>($A962-VLOOKUP(Z$881,'F. UL & OPEX flat rates'!$B$2:$G$43,5)))*1,Z$3:Z82)+Z786)*VLOOKUP(Z$881,'F. UL & OPEX flat rates'!$B$2:$G$43,6,0)","v":0},{"$f":"(SUMPRODUCT(($A$3:$A82>($A962-VLOOKUP(AA$881,'F. UL & OPEX flat rates'!$B$2:$G$43,5)))*1,AA$3:AA82)+AA786)*VLOOKUP(AA$881,'F. UL & OPEX flat rates'!$B$2:$G$43,6,0)","v":0},{"$f":"(SUMPRODUCT(($A$3:$A82>($A962-VLOOKUP(AB$881,'F. UL & OPEX flat rates'!$B$2:$G$43,5)))*1,AB$3:AB82)+AB786)*VLOOKUP(AB$881,'F. UL & OPEX flat rates'!$B$2:$G$43,6,0)","v":0},{"$f":"(SUMPRODUCT(($A$3:$A82>($A962-VLOOKUP(AC$881,'F. UL & OPEX flat rates'!$B$2:$G$43,5)))*1,AC$3:AC82)+AC786)*VLOOKUP(AC$881,'F. UL & OPEX flat rates'!$B$2:$G$43,6,0)","v":0},{"$f":"(SUMPRODUCT(($A$3:$A82>($A962-VLOOKUP(AD$881,'F. UL & OPEX flat rates'!$B$2:$G$43,5)))*1,AD$3:AD82)+AD786)*VLOOKUP(AD$881,'F. UL & OPEX flat rates'!$B$2:$G$43,6,0)","v":0},{"$f":"(SUMPRODUCT(($A$3:$A82>($A962-VLOOKUP(AE$881,'F. UL & OPEX flat rates'!$B$2:$G$43,5)))*1,AE$3:AE82)+AE786)*VLOOKUP(AE$881,'F. UL & OPEX flat rates'!$B$2:$G$43,6,0)","v":0},{"$f":"(SUMPRODUCT(($A$3:$A82>($A962-VLOOKUP(AF$881,'F. UL & OPEX flat rates'!$B$2:$G$43,5)))*1,AF$3:AF82)+AF786)*VLOOKUP(AF$881,'F. UL & OPEX flat rates'!$B$2:$G$43,6,0)","v":0},{"$f":"(SUMPRODUCT(($A$3:$A82>($A962-VLOOKUP(AG$881,'F. UL & OPEX flat rates'!$B$2:$G$43,5)))*1,AG$3:AG82)+AG786)*VLOOKUP(AG$881,'F. UL & OPEX flat rates'!$B$2:$G$43,6,0)","v":0},{"$f":"(SUMPRODUCT(($A$3:$A82>($A962-VLOOKUP(AH$881,'F. UL & OPEX flat rates'!$B$2:$G$43,5)))*1,AH$3:AH82)+AH786)*VLOOKUP(AH$881,'F. UL & OPEX flat rates'!$B$2:$G$43,6,0)","v":0},{"$f":"(SUMPRODUCT(($A$3:$A82>($A962-VLOOKUP(AI$881,'F. UL & OPEX flat rates'!$B$2:$G$43,5)))*1,AI$3:AI82)+AI786)*VLOOKUP(AI$881,'F. UL & OPEX flat rates'!$B$2:$G$43,6,0)","v":0},{"$f":"(SUMPRODUCT(($A$3:$A82>($A962-VLOOKUP(AJ$881,'F. UL & OPEX flat rates'!$B$2:$G$43,5)))*1,AJ$3:AJ82)+AJ786)*VLOOKUP(AJ$881,'F. UL & OPEX flat rates'!$B$2:$G$43,6,0)","v":0},{"$f":"(SUMPRODUCT(($A$3:$A82>($A962-VLOOKUP(AK$881,'F. UL & OPEX flat rates'!$B$2:$G$43,5)))*1,AK$3:AK82)+AK786)*VLOOKUP(AK$881,'F. UL & OPEX flat rates'!$B$2:$G$43,6,0)","v":0},{"$f":"(SUMPRODUCT(($A$3:$A82>($A962-VLOOKUP(AL$881,'F. UL & OPEX flat rates'!$B$2:$G$43,5)))*1,AL$3:AL82)+AL786)*VLOOKUP(AL$881,'F. UL & OPEX flat rates'!$B$2:$G$43,6,0)","v":0},{"$f":"(SUMPRODUCT(($A$3:$A82>($A962-VLOOKUP(AM$881,'F. UL & OPEX flat rates'!$B$2:$G$43,5)))*1,AM$3:AM82)+AM786)*VLOOKUP(AM$881,'F. UL & OPEX flat rates'!$B$2:$G$43,6,0)","v":0},{"$f":"(SUMPRODUCT(($A$3:$A82>($A962-VLOOKUP(AN$881,'F. UL & OPEX flat rates'!$B$2:$G$43,5)))*1,AN$3:AN82)+AN786)*VLOOKUP(AN$881,'F. UL & OPEX flat rates'!$B$2:$G$43,6,0)","v":0},{"$f":"(SUMPRODUCT(($A$3:$A82>($A962-VLOOKUP(AO$881,'F. UL & OPEX flat rates'!$B$2:$G$43,5)))*1,AO$3:AO82)+AO786)*VLOOKUP(AO$881,'F. UL & OPEX flat rates'!$B$2:$G$43,6,0)","v":0},{"$f":"(SUMPRODUCT(($A$3:$A82>($A962-VLOOKUP(AP$881,'F. UL & OPEX flat rates'!$B$2:$G$43,5)))*1,AP$3:AP82)+AP786)*VLOOKUP(AP$881,'F. UL & OPEX flat rates'!$B$2:$G$43,6,0)","v":0},{"$f":"(SUMPRODUCT(($A$3:$A82>($A962-VLOOKUP(AQ$881,'F. UL & OPEX flat rates'!$B$2:$G$43,5)))*1,AQ$3:AQ82)+AQ786)*VLOOKUP(AQ$881,'F. UL & OPEX flat rates'!$B$2:$G$43,6,0)","v":0}]
[2096,0,{"$f":"(SUMPRODUCT(($A$3:$A83>($A963-VLOOKUP(C$881,'F. UL & OPEX flat rates'!$B$2:$G$43,5)))*1,C$3:C83)+C787)*VLOOKUP(C$881,'F. UL & OPEX flat rates'!$B$2:$G$43,6,0)","v":0},{"$f":"(SUMPRODUCT(($A$3:$A83>($A963-VLOOKUP(D$881,'F. UL & OPEX flat rates'!$B$2:$G$43,5)))*1,D$3:D83)+D787)*VLOOKUP(D$881,'F. UL & OPEX flat rates'!$B$2:$G$43,6,0)","v":0},{"$f":"(SUMPRODUCT(($A$3:$A83>($A963-VLOOKUP(E$881,'F. UL & OPEX flat rates'!$B$2:$G$43,5)))*1,E$3:E83)+E787)*VLOOKUP(E$881,'F. UL & OPEX flat rates'!$B$2:$G$43,6,0)","v":0},{"$f":"(SUMPRODUCT(($A$3:$A83>($A963-VLOOKUP(F$881,'F. UL & OPEX flat rates'!$B$2:$G$43,5)))*1,F$3:F83)+F787)*VLOOKUP(F$881,'F. UL & OPEX flat rates'!$B$2:$G$43,6,0)","v":0},{"$f":"(SUMPRODUCT(($A$3:$A83>($A963-VLOOKUP(G$881,'F. UL & OPEX flat rates'!$B$2:$G$43,5)))*1,G$3:G83)+G787)*VLOOKUP(G$881,'F. UL & OPEX flat rates'!$B$2:$G$43,6,0)","v":0},{"$f":"(SUMPRODUCT(($A$3:$A83>($A963-VLOOKUP(H$881,'F. UL & OPEX flat rates'!$B$2:$G$43,5)))*1,H$3:H83)+H787)*VLOOKUP(H$881,'F. UL & OPEX flat rates'!$B$2:$G$43,6,0)","v":0},{"$f":"(SUMPRODUCT(($A$3:$A83>($A963-VLOOKUP(I$881,'F. UL & OPEX flat rates'!$B$2:$G$43,5)))*1,I$3:I83)+I787)*VLOOKUP(I$881,'F. UL & OPEX flat rates'!$B$2:$G$43,6,0)","v":0},{"$f":"(SUMPRODUCT(($A$3:$A83>($A963-VLOOKUP(J$881,'F. UL & OPEX flat rates'!$B$2:$G$43,5)))*1,J$3:J83)+J787)*VLOOKUP(J$881,'F. UL & OPEX flat rates'!$B$2:$G$43,6,0)","v":0},{"$f":"(SUMPRODUCT(($A$3:$A83>($A963-VLOOKUP(K$881,'F. UL & OPEX flat rates'!$B$2:$G$43,5)))*1,K$3:K83)+K787)*VLOOKUP(K$881,'F. UL & OPEX flat rates'!$B$2:$G$43,6,0)","v":0},{"$f":"(SUMPRODUCT(($A$3:$A83>($A963-VLOOKUP(L$881,'F. UL & OPEX flat rates'!$B$2:$G$43,5)))*1,L$3:L83)+L787)*VLOOKUP(L$881,'F. UL & OPEX flat rates'!$B$2:$G$43,6,0)","v":0},{"$f":"(SUMPRODUCT(($A$3:$A83>($A963-VLOOKUP(M$881,'F. UL & OPEX flat rates'!$B$2:$G$43,5)))*1,M$3:M83)+M787)*VLOOKUP(M$881,'F. UL & OPEX flat rates'!$B$2:$G$43,6,0)","v":0},{"$f":"(SUMPRODUCT(($A$3:$A83>($A963-VLOOKUP(N$881,'F. UL & OPEX flat rates'!$B$2:$G$43,5)))*1,N$3:N83)+N787)*VLOOKUP(N$881,'F. UL & OPEX flat rates'!$B$2:$G$43,6,0)","v":0},{"$f":"(SUMPRODUCT(($A$3:$A83>($A963-VLOOKUP(O$881,'F. UL & OPEX flat rates'!$B$2:$G$43,5)))*1,O$3:O83)+O787)*VLOOKUP(O$881,'F. UL & OPEX flat rates'!$B$2:$G$43,6,0)","v":0},{"$f":"(SUMPRODUCT(($A$3:$A83>($A963-VLOOKUP(P$881,'F. UL & OPEX flat rates'!$B$2:$G$43,5)))*1,P$3:P83)+P787)*VLOOKUP(P$881,'F. UL & OPEX flat rates'!$B$2:$G$43,6,0)","v":0},{"$f":"(SUMPRODUCT(($A$3:$A83>($A963-VLOOKUP(Q$881,'F. UL & OPEX flat rates'!$B$2:$G$43,5)))*1,Q$3:Q83)+Q787)*VLOOKUP(Q$881,'F. UL & OPEX flat rates'!$B$2:$G$43,6,0)","v":0},{"$f":"(SUMPRODUCT(($A$3:$A83>($A963-VLOOKUP(R$881,'F. UL & OPEX flat rates'!$B$2:$G$43,5)))*1,R$3:R83)+R787)*VLOOKUP(R$881,'F. UL & OPEX flat rates'!$B$2:$G$43,6,0)","v":0},{"$f":"(SUMPRODUCT(($A$3:$A83>($A963-VLOOKUP(S$881,'F. UL & OPEX flat rates'!$B$2:$G$43,5)))*1,S$3:S83)+S787)*VLOOKUP(S$881,'F. UL & OPEX flat rates'!$B$2:$G$43,6,0)","v":0},{"$f":"(SUMPRODUCT(($A$3:$A83>($A963-VLOOKUP(T$881,'F. UL & OPEX flat rates'!$B$2:$G$43,5)))*1,T$3:T83)+T787)*VLOOKUP(T$881,'F. UL & OPEX flat rates'!$B$2:$G$43,6,0)","v":0},{"$f":"(SUMPRODUCT(($A$3:$A83>($A963-VLOOKUP(U$881,'F. UL & OPEX flat rates'!$B$2:$G$43,5)))*1,U$3:U83)+U787)*VLOOKUP(U$881,'F. UL & OPEX flat rates'!$B$2:$G$43,6,0)","v":0},{"$f":"(SUMPRODUCT(($A$3:$A83>($A963-VLOOKUP(V$881,'F. UL & OPEX flat rates'!$B$2:$G$43,5)))*1,V$3:V83)+V787)*VLOOKUP(V$881,'F. UL & OPEX flat rates'!$B$2:$G$43,6,0)","v":0},{"$f":"(SUMPRODUCT(($A$3:$A83>($A963-VLOOKUP(W$881,'F. UL & OPEX flat rates'!$B$2:$G$43,5)))*1,W$3:W83)+W787)*VLOOKUP(W$881,'F. UL & OPEX flat rates'!$B$2:$G$43,6,0)","v":0},{"$f":"(SUMPRODUCT(($A$3:$A83>($A963-VLOOKUP(X$881,'F. UL & OPEX flat rates'!$B$2:$G$43,5)))*1,X$3:X83)+X787)*VLOOKUP(X$881,'F. UL & OPEX flat rates'!$B$2:$G$43,6,0)","v":0},{"$f":"(SUMPRODUCT(($A$3:$A83>($A963-VLOOKUP(Y$881,'F. UL & OPEX flat rates'!$B$2:$G$43,5)))*1,Y$3:Y83)+Y787)*VLOOKUP(Y$881,'F. UL & OPEX flat rates'!$B$2:$G$43,6,0)","v":0},{"$f":"(SUMPRODUCT(($A$3:$A83>($A963-VLOOKUP(Z$881,'F. UL & OPEX flat rates'!$B$2:$G$43,5)))*1,Z$3:Z83)+Z787)*VLOOKUP(Z$881,'F. UL & OPEX flat rates'!$B$2:$G$43,6,0)","v":0},{"$f":"(SUMPRODUCT(($A$3:$A83>($A963-VLOOKUP(AA$881,'F. UL & OPEX flat rates'!$B$2:$G$43,5)))*1,AA$3:AA83)+AA787)*VLOOKUP(AA$881,'F. UL & OPEX flat rates'!$B$2:$G$43,6,0)","v":0},{"$f":"(SUMPRODUCT(($A$3:$A83>($A963-VLOOKUP(AB$881,'F. UL & OPEX flat rates'!$B$2:$G$43,5)))*1,AB$3:AB83)+AB787)*VLOOKUP(AB$881,'F. UL & OPEX flat rates'!$B$2:$G$43,6,0)","v":0},{"$f":"(SUMPRODUCT(($A$3:$A83>($A963-VLOOKUP(AC$881,'F. UL & OPEX flat rates'!$B$2:$G$43,5)))*1,AC$3:AC83)+AC787)*VLOOKUP(AC$881,'F. UL & OPEX flat rates'!$B$2:$G$43,6,0)","v":0},{"$f":"(SUMPRODUCT(($A$3:$A83>($A963-VLOOKUP(AD$881,'F. UL & OPEX flat rates'!$B$2:$G$43,5)))*1,AD$3:AD83)+AD787)*VLOOKUP(AD$881,'F. UL & OPEX flat rates'!$B$2:$G$43,6,0)","v":0},{"$f":"(SUMPRODUCT(($A$3:$A83>($A963-VLOOKUP(AE$881,'F. UL & OPEX flat rates'!$B$2:$G$43,5)))*1,AE$3:AE83)+AE787)*VLOOKUP(AE$881,'F. UL & OPEX flat rates'!$B$2:$G$43,6,0)","v":0},{"$f":"(SUMPRODUCT(($A$3:$A83>($A963-VLOOKUP(AF$881,'F. UL & OPEX flat rates'!$B$2:$G$43,5)))*1,AF$3:AF83)+AF787)*VLOOKUP(AF$881,'F. UL & OPEX flat rates'!$B$2:$G$43,6,0)","v":0},{"$f":"(SUMPRODUCT(($A$3:$A83>($A963-VLOOKUP(AG$881,'F. UL & OPEX flat rates'!$B$2:$G$43,5)))*1,AG$3:AG83)+AG787)*VLOOKUP(AG$881,'F. UL & OPEX flat rates'!$B$2:$G$43,6,0)","v":0},{"$f":"(SUMPRODUCT(($A$3:$A83>($A963-VLOOKUP(AH$881,'F. UL & OPEX flat rates'!$B$2:$G$43,5)))*1,AH$3:AH83)+AH787)*VLOOKUP(AH$881,'F. UL & OPEX flat rates'!$B$2:$G$43,6,0)","v":0},{"$f":"(SUMPRODUCT(($A$3:$A83>($A963-VLOOKUP(AI$881,'F. UL & OPEX flat rates'!$B$2:$G$43,5)))*1,AI$3:AI83)+AI787)*VLOOKUP(AI$881,'F. UL & OPEX flat rates'!$B$2:$G$43,6,0)","v":0},{"$f":"(SUMPRODUCT(($A$3:$A83>($A963-VLOOKUP(AJ$881,'F. UL & OPEX flat rates'!$B$2:$G$43,5)))*1,AJ$3:AJ83)+AJ787)*VLOOKUP(AJ$881,'F. UL & OPEX flat rates'!$B$2:$G$43,6,0)","v":0},{"$f":"(SUMPRODUCT(($A$3:$A83>($A963-VLOOKUP(AK$881,'F. UL & OPEX flat rates'!$B$2:$G$43,5)))*1,AK$3:AK83)+AK787)*VLOOKUP(AK$881,'F. UL & OPEX flat rates'!$B$2:$G$43,6,0)","v":0},{"$f":"(SUMPRODUCT(($A$3:$A83>($A963-VLOOKUP(AL$881,'F. UL & OPEX flat rates'!$B$2:$G$43,5)))*1,AL$3:AL83)+AL787)*VLOOKUP(AL$881,'F. UL & OPEX flat rates'!$B$2:$G$43,6,0)","v":0},{"$f":"(SUMPRODUCT(($A$3:$A83>($A963-VLOOKUP(AM$881,'F. UL & OPEX flat rates'!$B$2:$G$43,5)))*1,AM$3:AM83)+AM787)*VLOOKUP(AM$881,'F. UL & OPEX flat rates'!$B$2:$G$43,6,0)","v":0},{"$f":"(SUMPRODUCT(($A$3:$A83>($A963-VLOOKUP(AN$881,'F. UL & OPEX flat rates'!$B$2:$G$43,5)))*1,AN$3:AN83)+AN787)*VLOOKUP(AN$881,'F. UL & OPEX flat rates'!$B$2:$G$43,6,0)","v":0},{"$f":"(SUMPRODUCT(($A$3:$A83>($A963-VLOOKUP(AO$881,'F. UL & OPEX flat rates'!$B$2:$G$43,5)))*1,AO$3:AO83)+AO787)*VLOOKUP(AO$881,'F. UL & OPEX flat rates'!$B$2:$G$43,6,0)","v":0},{"$f":"(SUMPRODUCT(($A$3:$A83>($A963-VLOOKUP(AP$881,'F. UL & OPEX flat rates'!$B$2:$G$43,5)))*1,AP$3:AP83)+AP787)*VLOOKUP(AP$881,'F. UL & OPEX flat rates'!$B$2:$G$43,6,0)","v":0},{"$f":"(SUMPRODUCT(($A$3:$A83>($A963-VLOOKUP(AQ$881,'F. UL & OPEX flat rates'!$B$2:$G$43,5)))*1,AQ$3:AQ83)+AQ787)*VLOOKUP(AQ$881,'F. UL & OPEX flat rates'!$B$2:$G$43,6,0)","v":0}]
[2097,0,{"$f":"(SUMPRODUCT(($A$3:$A84>($A964-VLOOKUP(C$881,'F. UL & OPEX flat rates'!$B$2:$G$43,5)))*1,C$3:C84)+C788)*VLOOKUP(C$881,'F. UL & OPEX flat rates'!$B$2:$G$43,6,0)","v":0},{"$f":"(SUMPRODUCT(($A$3:$A84>($A964-VLOOKUP(D$881,'F. UL & OPEX flat rates'!$B$2:$G$43,5)))*1,D$3:D84)+D788)*VLOOKUP(D$881,'F. UL & OPEX flat rates'!$B$2:$G$43,6,0)","v":0},{"$f":"(SUMPRODUCT(($A$3:$A84>($A964-VLOOKUP(E$881,'F. UL & OPEX flat rates'!$B$2:$G$43,5)))*1,E$3:E84)+E788)*VLOOKUP(E$881,'F. UL & OPEX flat rates'!$B$2:$G$43,6,0)","v":0},{"$f":"(SUMPRODUCT(($A$3:$A84>($A964-VLOOKUP(F$881,'F. UL & OPEX flat rates'!$B$2:$G$43,5)))*1,F$3:F84)+F788)*VLOOKUP(F$881,'F. UL & OPEX flat rates'!$B$2:$G$43,6,0)","v":0},{"$f":"(SUMPRODUCT(($A$3:$A84>($A964-VLOOKUP(G$881,'F. UL & OPEX flat rates'!$B$2:$G$43,5)))*1,G$3:G84)+G788)*VLOOKUP(G$881,'F. UL & OPEX flat rates'!$B$2:$G$43,6,0)","v":0},{"$f":"(SUMPRODUCT(($A$3:$A84>($A964-VLOOKUP(H$881,'F. UL & OPEX flat rates'!$B$2:$G$43,5)))*1,H$3:H84)+H788)*VLOOKUP(H$881,'F. UL & OPEX flat rates'!$B$2:$G$43,6,0)","v":0},{"$f":"(SUMPRODUCT(($A$3:$A84>($A964-VLOOKUP(I$881,'F. UL & OPEX flat rates'!$B$2:$G$43,5)))*1,I$3:I84)+I788)*VLOOKUP(I$881,'F. UL & OPEX flat rates'!$B$2:$G$43,6,0)","v":0},{"$f":"(SUMPRODUCT(($A$3:$A84>($A964-VLOOKUP(J$881,'F. UL & OPEX flat rates'!$B$2:$G$43,5)))*1,J$3:J84)+J788)*VLOOKUP(J$881,'F. UL & OPEX flat rates'!$B$2:$G$43,6,0)","v":0},{"$f":"(SUMPRODUCT(($A$3:$A84>($A964-VLOOKUP(K$881,'F. UL & OPEX flat rates'!$B$2:$G$43,5)))*1,K$3:K84)+K788)*VLOOKUP(K$881,'F. UL & OPEX flat rates'!$B$2:$G$43,6,0)","v":0},{"$f":"(SUMPRODUCT(($A$3:$A84>($A964-VLOOKUP(L$881,'F. UL & OPEX flat rates'!$B$2:$G$43,5)))*1,L$3:L84)+L788)*VLOOKUP(L$881,'F. UL & OPEX flat rates'!$B$2:$G$43,6,0)","v":0},{"$f":"(SUMPRODUCT(($A$3:$A84>($A964-VLOOKUP(M$881,'F. UL & OPEX flat rates'!$B$2:$G$43,5)))*1,M$3:M84)+M788)*VLOOKUP(M$881,'F. UL & OPEX flat rates'!$B$2:$G$43,6,0)","v":0},{"$f":"(SUMPRODUCT(($A$3:$A84>($A964-VLOOKUP(N$881,'F. UL & OPEX flat rates'!$B$2:$G$43,5)))*1,N$3:N84)+N788)*VLOOKUP(N$881,'F. UL & OPEX flat rates'!$B$2:$G$43,6,0)","v":0},{"$f":"(SUMPRODUCT(($A$3:$A84>($A964-VLOOKUP(O$881,'F. UL & OPEX flat rates'!$B$2:$G$43,5)))*1,O$3:O84)+O788)*VLOOKUP(O$881,'F. UL & OPEX flat rates'!$B$2:$G$43,6,0)","v":0},{"$f":"(SUMPRODUCT(($A$3:$A84>($A964-VLOOKUP(P$881,'F. UL & OPEX flat rates'!$B$2:$G$43,5)))*1,P$3:P84)+P788)*VLOOKUP(P$881,'F. UL & OPEX flat rates'!$B$2:$G$43,6,0)","v":0},{"$f":"(SUMPRODUCT(($A$3:$A84>($A964-VLOOKUP(Q$881,'F. UL & OPEX flat rates'!$B$2:$G$43,5)))*1,Q$3:Q84)+Q788)*VLOOKUP(Q$881,'F. UL & OPEX flat rates'!$B$2:$G$43,6,0)","v":0},{"$f":"(SUMPRODUCT(($A$3:$A84>($A964-VLOOKUP(R$881,'F. UL & OPEX flat rates'!$B$2:$G$43,5)))*1,R$3:R84)+R788)*VLOOKUP(R$881,'F. UL & OPEX flat rates'!$B$2:$G$43,6,0)","v":0},{"$f":"(SUMPRODUCT(($A$3:$A84>($A964-VLOOKUP(S$881,'F. UL & OPEX flat rates'!$B$2:$G$43,5)))*1,S$3:S84)+S788)*VLOOKUP(S$881,'F. UL & OPEX flat rates'!$B$2:$G$43,6,0)","v":0},{"$f":"(SUMPRODUCT(($A$3:$A84>($A964-VLOOKUP(T$881,'F. UL & OPEX flat rates'!$B$2:$G$43,5)))*1,T$3:T84)+T788)*VLOOKUP(T$881,'F. UL & OPEX flat rates'!$B$2:$G$43,6,0)","v":0},{"$f":"(SUMPRODUCT(($A$3:$A84>($A964-VLOOKUP(U$881,'F. UL & OPEX flat rates'!$B$2:$G$43,5)))*1,U$3:U84)+U788)*VLOOKUP(U$881,'F. UL & OPEX flat rates'!$B$2:$G$43,6,0)","v":0},{"$f":"(SUMPRODUCT(($A$3:$A84>($A964-VLOOKUP(V$881,'F. UL & OPEX flat rates'!$B$2:$G$43,5)))*1,V$3:V84)+V788)*VLOOKUP(V$881,'F. UL & OPEX flat rates'!$B$2:$G$43,6,0)","v":0},{"$f":"(SUMPRODUCT(($A$3:$A84>($A964-VLOOKUP(W$881,'F. UL & OPEX flat rates'!$B$2:$G$43,5)))*1,W$3:W84)+W788)*VLOOKUP(W$881,'F. UL & OPEX flat rates'!$B$2:$G$43,6,0)","v":0},{"$f":"(SUMPRODUCT(($A$3:$A84>($A964-VLOOKUP(X$881,'F. UL & OPEX flat rates'!$B$2:$G$43,5)))*1,X$3:X84)+X788)*VLOOKUP(X$881,'F. UL & OPEX flat rates'!$B$2:$G$43,6,0)","v":0},{"$f":"(SUMPRODUCT(($A$3:$A84>($A964-VLOOKUP(Y$881,'F. UL & OPEX flat rates'!$B$2:$G$43,5)))*1,Y$3:Y84)+Y788)*VLOOKUP(Y$881,'F. UL & OPEX flat rates'!$B$2:$G$43,6,0)","v":0},{"$f":"(SUMPRODUCT(($A$3:$A84>($A964-VLOOKUP(Z$881,'F. UL & OPEX flat rates'!$B$2:$G$43,5)))*1,Z$3:Z84)+Z788)*VLOOKUP(Z$881,'F. UL & OPEX flat rates'!$B$2:$G$43,6,0)","v":0},{"$f":"(SUMPRODUCT(($A$3:$A84>($A964-VLOOKUP(AA$881,'F. UL & OPEX flat rates'!$B$2:$G$43,5)))*1,AA$3:AA84)+AA788)*VLOOKUP(AA$881,'F. UL & OPEX flat rates'!$B$2:$G$43,6,0)","v":0},{"$f":"(SUMPRODUCT(($A$3:$A84>($A964-VLOOKUP(AB$881,'F. UL & OPEX flat rates'!$B$2:$G$43,5)))*1,AB$3:AB84)+AB788)*VLOOKUP(AB$881,'F. UL & OPEX flat rates'!$B$2:$G$43,6,0)","v":0},{"$f":"(SUMPRODUCT(($A$3:$A84>($A964-VLOOKUP(AC$881,'F. UL & OPEX flat rates'!$B$2:$G$43,5)))*1,AC$3:AC84)+AC788)*VLOOKUP(AC$881,'F. UL & OPEX flat rates'!$B$2:$G$43,6,0)","v":0},{"$f":"(SUMPRODUCT(($A$3:$A84>($A964-VLOOKUP(AD$881,'F. UL & OPEX flat rates'!$B$2:$G$43,5)))*1,AD$3:AD84)+AD788)*VLOOKUP(AD$881,'F. UL & OPEX flat rates'!$B$2:$G$43,6,0)","v":0},{"$f":"(SUMPRODUCT(($A$3:$A84>($A964-VLOOKUP(AE$881,'F. UL & OPEX flat rates'!$B$2:$G$43,5)))*1,AE$3:AE84)+AE788)*VLOOKUP(AE$881,'F. UL & OPEX flat rates'!$B$2:$G$43,6,0)","v":0},{"$f":"(SUMPRODUCT(($A$3:$A84>($A964-VLOOKUP(AF$881,'F. UL & OPEX flat rates'!$B$2:$G$43,5)))*1,AF$3:AF84)+AF788)*VLOOKUP(AF$881,'F. UL & OPEX flat rates'!$B$2:$G$43,6,0)","v":0},{"$f":"(SUMPRODUCT(($A$3:$A84>($A964-VLOOKUP(AG$881,'F. UL & OPEX flat rates'!$B$2:$G$43,5)))*1,AG$3:AG84)+AG788)*VLOOKUP(AG$881,'F. UL & OPEX flat rates'!$B$2:$G$43,6,0)","v":0},{"$f":"(SUMPRODUCT(($A$3:$A84>($A964-VLOOKUP(AH$881,'F. UL & OPEX flat rates'!$B$2:$G$43,5)))*1,AH$3:AH84)+AH788)*VLOOKUP(AH$881,'F. UL & OPEX flat rates'!$B$2:$G$43,6,0)","v":0},{"$f":"(SUMPRODUCT(($A$3:$A84>($A964-VLOOKUP(AI$881,'F. UL & OPEX flat rates'!$B$2:$G$43,5)))*1,AI$3:AI84)+AI788)*VLOOKUP(AI$881,'F. UL & OPEX flat rates'!$B$2:$G$43,6,0)","v":0},{"$f":"(SUMPRODUCT(($A$3:$A84>($A964-VLOOKUP(AJ$881,'F. UL & OPEX flat rates'!$B$2:$G$43,5)))*1,AJ$3:AJ84)+AJ788)*VLOOKUP(AJ$881,'F. UL & OPEX flat rates'!$B$2:$G$43,6,0)","v":0},{"$f":"(SUMPRODUCT(($A$3:$A84>($A964-VLOOKUP(AK$881,'F. UL & OPEX flat rates'!$B$2:$G$43,5)))*1,AK$3:AK84)+AK788)*VLOOKUP(AK$881,'F. UL & OPEX flat rates'!$B$2:$G$43,6,0)","v":0},{"$f":"(SUMPRODUCT(($A$3:$A84>($A964-VLOOKUP(AL$881,'F. UL & OPEX flat rates'!$B$2:$G$43,5)))*1,AL$3:AL84)+AL788)*VLOOKUP(AL$881,'F. UL & OPEX flat rates'!$B$2:$G$43,6,0)","v":0},{"$f":"(SUMPRODUCT(($A$3:$A84>($A964-VLOOKUP(AM$881,'F. UL & OPEX flat rates'!$B$2:$G$43,5)))*1,AM$3:AM84)+AM788)*VLOOKUP(AM$881,'F. UL & OPEX flat rates'!$B$2:$G$43,6,0)","v":0},{"$f":"(SUMPRODUCT(($A$3:$A84>($A964-VLOOKUP(AN$881,'F. UL & OPEX flat rates'!$B$2:$G$43,5)))*1,AN$3:AN84)+AN788)*VLOOKUP(AN$881,'F. UL & OPEX flat rates'!$B$2:$G$43,6,0)","v":0},{"$f":"(SUMPRODUCT(($A$3:$A84>($A964-VLOOKUP(AO$881,'F. UL & OPEX flat rates'!$B$2:$G$43,5)))*1,AO$3:AO84)+AO788)*VLOOKUP(AO$881,'F. UL & OPEX flat rates'!$B$2:$G$43,6,0)","v":0},{"$f":"(SUMPRODUCT(($A$3:$A84>($A964-VLOOKUP(AP$881,'F. UL & OPEX flat rates'!$B$2:$G$43,5)))*1,AP$3:AP84)+AP788)*VLOOKUP(AP$881,'F. UL & OPEX flat rates'!$B$2:$G$43,6,0)","v":0},{"$f":"(SUMPRODUCT(($A$3:$A84>($A964-VLOOKUP(AQ$881,'F. UL & OPEX flat rates'!$B$2:$G$43,5)))*1,AQ$3:AQ84)+AQ788)*VLOOKUP(AQ$881,'F. UL & OPEX flat rates'!$B$2:$G$43,6,0)","v":0}]
[2098,0,{"$f":"(SUMPRODUCT(($A$3:$A85>($A965-VLOOKUP(C$881,'F. UL & OPEX flat rates'!$B$2:$G$43,5)))*1,C$3:C85)+C789)*VLOOKUP(C$881,'F. UL & OPEX flat rates'!$B$2:$G$43,6,0)","v":0},{"$f":"(SUMPRODUCT(($A$3:$A85>($A965-VLOOKUP(D$881,'F. UL & OPEX flat rates'!$B$2:$G$43,5)))*1,D$3:D85)+D789)*VLOOKUP(D$881,'F. UL & OPEX flat rates'!$B$2:$G$43,6,0)","v":0},{"$f":"(SUMPRODUCT(($A$3:$A85>($A965-VLOOKUP(E$881,'F. UL & OPEX flat rates'!$B$2:$G$43,5)))*1,E$3:E85)+E789)*VLOOKUP(E$881,'F. UL & OPEX flat rates'!$B$2:$G$43,6,0)","v":0},{"$f":"(SUMPRODUCT(($A$3:$A85>($A965-VLOOKUP(F$881,'F. UL & OPEX flat rates'!$B$2:$G$43,5)))*1,F$3:F85)+F789)*VLOOKUP(F$881,'F. UL & OPEX flat rates'!$B$2:$G$43,6,0)","v":0},{"$f":"(SUMPRODUCT(($A$3:$A85>($A965-VLOOKUP(G$881,'F. UL & OPEX flat rates'!$B$2:$G$43,5)))*1,G$3:G85)+G789)*VLOOKUP(G$881,'F. UL & OPEX flat rates'!$B$2:$G$43,6,0)","v":0},{"$f":"(SUMPRODUCT(($A$3:$A85>($A965-VLOOKUP(H$881,'F. UL & OPEX flat rates'!$B$2:$G$43,5)))*1,H$3:H85)+H789)*VLOOKUP(H$881,'F. UL & OPEX flat rates'!$B$2:$G$43,6,0)","v":0},{"$f":"(SUMPRODUCT(($A$3:$A85>($A965-VLOOKUP(I$881,'F. UL & OPEX flat rates'!$B$2:$G$43,5)))*1,I$3:I85)+I789)*VLOOKUP(I$881,'F. UL & OPEX flat rates'!$B$2:$G$43,6,0)","v":0},{"$f":"(SUMPRODUCT(($A$3:$A85>($A965-VLOOKUP(J$881,'F. UL & OPEX flat rates'!$B$2:$G$43,5)))*1,J$3:J85)+J789)*VLOOKUP(J$881,'F. UL & OPEX flat rates'!$B$2:$G$43,6,0)","v":0},{"$f":"(SUMPRODUCT(($A$3:$A85>($A965-VLOOKUP(K$881,'F. UL & OPEX flat rates'!$B$2:$G$43,5)))*1,K$3:K85)+K789)*VLOOKUP(K$881,'F. UL & OPEX flat rates'!$B$2:$G$43,6,0)","v":0},{"$f":"(SUMPRODUCT(($A$3:$A85>($A965-VLOOKUP(L$881,'F. UL & OPEX flat rates'!$B$2:$G$43,5)))*1,L$3:L85)+L789)*VLOOKUP(L$881,'F. UL & OPEX flat rates'!$B$2:$G$43,6,0)","v":0},{"$f":"(SUMPRODUCT(($A$3:$A85>($A965-VLOOKUP(M$881,'F. UL & OPEX flat rates'!$B$2:$G$43,5)))*1,M$3:M85)+M789)*VLOOKUP(M$881,'F. UL & OPEX flat rates'!$B$2:$G$43,6,0)","v":0},{"$f":"(SUMPRODUCT(($A$3:$A85>($A965-VLOOKUP(N$881,'F. UL & OPEX flat rates'!$B$2:$G$43,5)))*1,N$3:N85)+N789)*VLOOKUP(N$881,'F. UL & OPEX flat rates'!$B$2:$G$43,6,0)","v":0},{"$f":"(SUMPRODUCT(($A$3:$A85>($A965-VLOOKUP(O$881,'F. UL & OPEX flat rates'!$B$2:$G$43,5)))*1,O$3:O85)+O789)*VLOOKUP(O$881,'F. UL & OPEX flat rates'!$B$2:$G$43,6,0)","v":0},{"$f":"(SUMPRODUCT(($A$3:$A85>($A965-VLOOKUP(P$881,'F. UL & OPEX flat rates'!$B$2:$G$43,5)))*1,P$3:P85)+P789)*VLOOKUP(P$881,'F. UL & OPEX flat rates'!$B$2:$G$43,6,0)","v":0},{"$f":"(SUMPRODUCT(($A$3:$A85>($A965-VLOOKUP(Q$881,'F. UL & OPEX flat rates'!$B$2:$G$43,5)))*1,Q$3:Q85)+Q789)*VLOOKUP(Q$881,'F. UL & OPEX flat rates'!$B$2:$G$43,6,0)","v":0},{"$f":"(SUMPRODUCT(($A$3:$A85>($A965-VLOOKUP(R$881,'F. UL & OPEX flat rates'!$B$2:$G$43,5)))*1,R$3:R85)+R789)*VLOOKUP(R$881,'F. UL & OPEX flat rates'!$B$2:$G$43,6,0)","v":0},{"$f":"(SUMPRODUCT(($A$3:$A85>($A965-VLOOKUP(S$881,'F. UL & OPEX flat rates'!$B$2:$G$43,5)))*1,S$3:S85)+S789)*VLOOKUP(S$881,'F. UL & OPEX flat rates'!$B$2:$G$43,6,0)","v":0},{"$f":"(SUMPRODUCT(($A$3:$A85>($A965-VLOOKUP(T$881,'F. UL & OPEX flat rates'!$B$2:$G$43,5)))*1,T$3:T85)+T789)*VLOOKUP(T$881,'F. UL & OPEX flat rates'!$B$2:$G$43,6,0)","v":0},{"$f":"(SUMPRODUCT(($A$3:$A85>($A965-VLOOKUP(U$881,'F. UL & OPEX flat rates'!$B$2:$G$43,5)))*1,U$3:U85)+U789)*VLOOKUP(U$881,'F. UL & OPEX flat rates'!$B$2:$G$43,6,0)","v":0},{"$f":"(SUMPRODUCT(($A$3:$A85>($A965-VLOOKUP(V$881,'F. UL & OPEX flat rates'!$B$2:$G$43,5)))*1,V$3:V85)+V789)*VLOOKUP(V$881,'F. UL & OPEX flat rates'!$B$2:$G$43,6,0)","v":0},{"$f":"(SUMPRODUCT(($A$3:$A85>($A965-VLOOKUP(W$881,'F. UL & OPEX flat rates'!$B$2:$G$43,5)))*1,W$3:W85)+W789)*VLOOKUP(W$881,'F. UL & OPEX flat rates'!$B$2:$G$43,6,0)","v":0},{"$f":"(SUMPRODUCT(($A$3:$A85>($A965-VLOOKUP(X$881,'F. UL & OPEX flat rates'!$B$2:$G$43,5)))*1,X$3:X85)+X789)*VLOOKUP(X$881,'F. UL & OPEX flat rates'!$B$2:$G$43,6,0)","v":0},{"$f":"(SUMPRODUCT(($A$3:$A85>($A965-VLOOKUP(Y$881,'F. UL & OPEX flat rates'!$B$2:$G$43,5)))*1,Y$3:Y85)+Y789)*VLOOKUP(Y$881,'F. UL & OPEX flat rates'!$B$2:$G$43,6,0)","v":0},{"$f":"(SUMPRODUCT(($A$3:$A85>($A965-VLOOKUP(Z$881,'F. UL & OPEX flat rates'!$B$2:$G$43,5)))*1,Z$3:Z85)+Z789)*VLOOKUP(Z$881,'F. UL & OPEX flat rates'!$B$2:$G$43,6,0)","v":0},{"$f":"(SUMPRODUCT(($A$3:$A85>($A965-VLOOKUP(AA$881,'F. UL & OPEX flat rates'!$B$2:$G$43,5)))*1,AA$3:AA85)+AA789)*VLOOKUP(AA$881,'F. UL & OPEX flat rates'!$B$2:$G$43,6,0)","v":0},{"$f":"(SUMPRODUCT(($A$3:$A85>($A965-VLOOKUP(AB$881,'F. UL & OPEX flat rates'!$B$2:$G$43,5)))*1,AB$3:AB85)+AB789)*VLOOKUP(AB$881,'F. UL & OPEX flat rates'!$B$2:$G$43,6,0)","v":0},{"$f":"(SUMPRODUCT(($A$3:$A85>($A965-VLOOKUP(AC$881,'F. UL & OPEX flat rates'!$B$2:$G$43,5)))*1,AC$3:AC85)+AC789)*VLOOKUP(AC$881,'F. UL & OPEX flat rates'!$B$2:$G$43,6,0)","v":0},{"$f":"(SUMPRODUCT(($A$3:$A85>($A965-VLOOKUP(AD$881,'F. UL & OPEX flat rates'!$B$2:$G$43,5)))*1,AD$3:AD85)+AD789)*VLOOKUP(AD$881,'F. UL & OPEX flat rates'!$B$2:$G$43,6,0)","v":0},{"$f":"(SUMPRODUCT(($A$3:$A85>($A965-VLOOKUP(AE$881,'F. UL & OPEX flat rates'!$B$2:$G$43,5)))*1,AE$3:AE85)+AE789)*VLOOKUP(AE$881,'F. UL & OPEX flat rates'!$B$2:$G$43,6,0)","v":0},{"$f":"(SUMPRODUCT(($A$3:$A85>($A965-VLOOKUP(AF$881,'F. UL & OPEX flat rates'!$B$2:$G$43,5)))*1,AF$3:AF85)+AF789)*VLOOKUP(AF$881,'F. UL & OPEX flat rates'!$B$2:$G$43,6,0)","v":0},{"$f":"(SUMPRODUCT(($A$3:$A85>($A965-VLOOKUP(AG$881,'F. UL & OPEX flat rates'!$B$2:$G$43,5)))*1,AG$3:AG85)+AG789)*VLOOKUP(AG$881,'F. UL & OPEX flat rates'!$B$2:$G$43,6,0)","v":0},{"$f":"(SUMPRODUCT(($A$3:$A85>($A965-VLOOKUP(AH$881,'F. UL & OPEX flat rates'!$B$2:$G$43,5)))*1,AH$3:AH85)+AH789)*VLOOKUP(AH$881,'F. UL & OPEX flat rates'!$B$2:$G$43,6,0)","v":0},{"$f":"(SUMPRODUCT(($A$3:$A85>($A965-VLOOKUP(AI$881,'F. UL & OPEX flat rates'!$B$2:$G$43,5)))*1,AI$3:AI85)+AI789)*VLOOKUP(AI$881,'F. UL & OPEX flat rates'!$B$2:$G$43,6,0)","v":0},{"$f":"(SUMPRODUCT(($A$3:$A85>($A965-VLOOKUP(AJ$881,'F. UL & OPEX flat rates'!$B$2:$G$43,5)))*1,AJ$3:AJ85)+AJ789)*VLOOKUP(AJ$881,'F. UL & OPEX flat rates'!$B$2:$G$43,6,0)","v":0},{"$f":"(SUMPRODUCT(($A$3:$A85>($A965-VLOOKUP(AK$881,'F. UL & OPEX flat rates'!$B$2:$G$43,5)))*1,AK$3:AK85)+AK789)*VLOOKUP(AK$881,'F. UL & OPEX flat rates'!$B$2:$G$43,6,0)","v":0},{"$f":"(SUMPRODUCT(($A$3:$A85>($A965-VLOOKUP(AL$881,'F. UL & OPEX flat rates'!$B$2:$G$43,5)))*1,AL$3:AL85)+AL789)*VLOOKUP(AL$881,'F. UL & OPEX flat rates'!$B$2:$G$43,6,0)","v":0},{"$f":"(SUMPRODUCT(($A$3:$A85>($A965-VLOOKUP(AM$881,'F. UL & OPEX flat rates'!$B$2:$G$43,5)))*1,AM$3:AM85)+AM789)*VLOOKUP(AM$881,'F. UL & OPEX flat rates'!$B$2:$G$43,6,0)","v":0},{"$f":"(SUMPRODUCT(($A$3:$A85>($A965-VLOOKUP(AN$881,'F. UL & OPEX flat rates'!$B$2:$G$43,5)))*1,AN$3:AN85)+AN789)*VLOOKUP(AN$881,'F. UL & OPEX flat rates'!$B$2:$G$43,6,0)","v":0},{"$f":"(SUMPRODUCT(($A$3:$A85>($A965-VLOOKUP(AO$881,'F. UL & OPEX flat rates'!$B$2:$G$43,5)))*1,AO$3:AO85)+AO789)*VLOOKUP(AO$881,'F. UL & OPEX flat rates'!$B$2:$G$43,6,0)","v":0},{"$f":"(SUMPRODUCT(($A$3:$A85>($A965-VLOOKUP(AP$881,'F. UL & OPEX flat rates'!$B$2:$G$43,5)))*1,AP$3:AP85)+AP789)*VLOOKUP(AP$881,'F. UL & OPEX flat rates'!$B$2:$G$43,6,0)","v":0},{"$f":"(SUMPRODUCT(($A$3:$A85>($A965-VLOOKUP(AQ$881,'F. UL & OPEX flat rates'!$B$2:$G$43,5)))*1,AQ$3:AQ85)+AQ789)*VLOOKUP(AQ$881,'F. UL & OPEX flat rates'!$B$2:$G$43,6,0)","v":0}]
[2099,0,{"$f":"(SUMPRODUCT(($A$3:$A86>($A966-VLOOKUP(C$881,'F. UL & OPEX flat rates'!$B$2:$G$43,5)))*1,C$3:C86)+C790)*VLOOKUP(C$881,'F. UL & OPEX flat rates'!$B$2:$G$43,6,0)","v":0},{"$f":"(SUMPRODUCT(($A$3:$A86>($A966-VLOOKUP(D$881,'F. UL & OPEX flat rates'!$B$2:$G$43,5)))*1,D$3:D86)+D790)*VLOOKUP(D$881,'F. UL & OPEX flat rates'!$B$2:$G$43,6,0)","v":0},{"$f":"(SUMPRODUCT(($A$3:$A86>($A966-VLOOKUP(E$881,'F. UL & OPEX flat rates'!$B$2:$G$43,5)))*1,E$3:E86)+E790)*VLOOKUP(E$881,'F. UL & OPEX flat rates'!$B$2:$G$43,6,0)","v":0},{"$f":"(SUMPRODUCT(($A$3:$A86>($A966-VLOOKUP(F$881,'F. UL & OPEX flat rates'!$B$2:$G$43,5)))*1,F$3:F86)+F790)*VLOOKUP(F$881,'F. UL & OPEX flat rates'!$B$2:$G$43,6,0)","v":0},{"$f":"(SUMPRODUCT(($A$3:$A86>($A966-VLOOKUP(G$881,'F. UL & OPEX flat rates'!$B$2:$G$43,5)))*1,G$3:G86)+G790)*VLOOKUP(G$881,'F. UL & OPEX flat rates'!$B$2:$G$43,6,0)","v":0},{"$f":"(SUMPRODUCT(($A$3:$A86>($A966-VLOOKUP(H$881,'F. UL & OPEX flat rates'!$B$2:$G$43,5)))*1,H$3:H86)+H790)*VLOOKUP(H$881,'F. UL & OPEX flat rates'!$B$2:$G$43,6,0)","v":0},{"$f":"(SUMPRODUCT(($A$3:$A86>($A966-VLOOKUP(I$881,'F. UL & OPEX flat rates'!$B$2:$G$43,5)))*1,I$3:I86)+I790)*VLOOKUP(I$881,'F. UL & OPEX flat rates'!$B$2:$G$43,6,0)","v":0},{"$f":"(SUMPRODUCT(($A$3:$A86>($A966-VLOOKUP(J$881,'F. UL & OPEX flat rates'!$B$2:$G$43,5)))*1,J$3:J86)+J790)*VLOOKUP(J$881,'F. UL & OPEX flat rates'!$B$2:$G$43,6,0)","v":0},{"$f":"(SUMPRODUCT(($A$3:$A86>($A966-VLOOKUP(K$881,'F. UL & OPEX flat rates'!$B$2:$G$43,5)))*1,K$3:K86)+K790)*VLOOKUP(K$881,'F. UL & OPEX flat rates'!$B$2:$G$43,6,0)","v":0},{"$f":"(SUMPRODUCT(($A$3:$A86>($A966-VLOOKUP(L$881,'F. UL & OPEX flat rates'!$B$2:$G$43,5)))*1,L$3:L86)+L790)*VLOOKUP(L$881,'F. UL & OPEX flat rates'!$B$2:$G$43,6,0)","v":0},{"$f":"(SUMPRODUCT(($A$3:$A86>($A966-VLOOKUP(M$881,'F. UL & OPEX flat rates'!$B$2:$G$43,5)))*1,M$3:M86)+M790)*VLOOKUP(M$881,'F. UL & OPEX flat rates'!$B$2:$G$43,6,0)","v":0},{"$f":"(SUMPRODUCT(($A$3:$A86>($A966-VLOOKUP(N$881,'F. UL & OPEX flat rates'!$B$2:$G$43,5)))*1,N$3:N86)+N790)*VLOOKUP(N$881,'F. UL & OPEX flat rates'!$B$2:$G$43,6,0)","v":0},{"$f":"(SUMPRODUCT(($A$3:$A86>($A966-VLOOKUP(O$881,'F. UL & OPEX flat rates'!$B$2:$G$43,5)))*1,O$3:O86)+O790)*VLOOKUP(O$881,'F. UL & OPEX flat rates'!$B$2:$G$43,6,0)","v":0},{"$f":"(SUMPRODUCT(($A$3:$A86>($A966-VLOOKUP(P$881,'F. UL & OPEX flat rates'!$B$2:$G$43,5)))*1,P$3:P86)+P790)*VLOOKUP(P$881,'F. UL & OPEX flat rates'!$B$2:$G$43,6,0)","v":0},{"$f":"(SUMPRODUCT(($A$3:$A86>($A966-VLOOKUP(Q$881,'F. UL & OPEX flat rates'!$B$2:$G$43,5)))*1,Q$3:Q86)+Q790)*VLOOKUP(Q$881,'F. UL & OPEX flat rates'!$B$2:$G$43,6,0)","v":0},{"$f":"(SUMPRODUCT(($A$3:$A86>($A966-VLOOKUP(R$881,'F. UL & OPEX flat rates'!$B$2:$G$43,5)))*1,R$3:R86)+R790)*VLOOKUP(R$881,'F. UL & OPEX flat rates'!$B$2:$G$43,6,0)","v":0},{"$f":"(SUMPRODUCT(($A$3:$A86>($A966-VLOOKUP(S$881,'F. UL & OPEX flat rates'!$B$2:$G$43,5)))*1,S$3:S86)+S790)*VLOOKUP(S$881,'F. UL & OPEX flat rates'!$B$2:$G$43,6,0)","v":0},{"$f":"(SUMPRODUCT(($A$3:$A86>($A966-VLOOKUP(T$881,'F. UL & OPEX flat rates'!$B$2:$G$43,5)))*1,T$3:T86)+T790)*VLOOKUP(T$881,'F. UL & OPEX flat rates'!$B$2:$G$43,6,0)","v":0},{"$f":"(SUMPRODUCT(($A$3:$A86>($A966-VLOOKUP(U$881,'F. UL & OPEX flat rates'!$B$2:$G$43,5)))*1,U$3:U86)+U790)*VLOOKUP(U$881,'F. UL & OPEX flat rates'!$B$2:$G$43,6,0)","v":0},{"$f":"(SUMPRODUCT(($A$3:$A86>($A966-VLOOKUP(V$881,'F. UL & OPEX flat rates'!$B$2:$G$43,5)))*1,V$3:V86)+V790)*VLOOKUP(V$881,'F. UL & OPEX flat rates'!$B$2:$G$43,6,0)","v":0},{"$f":"(SUMPRODUCT(($A$3:$A86>($A966-VLOOKUP(W$881,'F. UL & OPEX flat rates'!$B$2:$G$43,5)))*1,W$3:W86)+W790)*VLOOKUP(W$881,'F. UL & OPEX flat rates'!$B$2:$G$43,6,0)","v":0},{"$f":"(SUMPRODUCT(($A$3:$A86>($A966-VLOOKUP(X$881,'F. UL & OPEX flat rates'!$B$2:$G$43,5)))*1,X$3:X86)+X790)*VLOOKUP(X$881,'F. UL & OPEX flat rates'!$B$2:$G$43,6,0)","v":0},{"$f":"(SUMPRODUCT(($A$3:$A86>($A966-VLOOKUP(Y$881,'F. UL & OPEX flat rates'!$B$2:$G$43,5)))*1,Y$3:Y86)+Y790)*VLOOKUP(Y$881,'F. UL & OPEX flat rates'!$B$2:$G$43,6,0)","v":0},{"$f":"(SUMPRODUCT(($A$3:$A86>($A966-VLOOKUP(Z$881,'F. UL & OPEX flat rates'!$B$2:$G$43,5)))*1,Z$3:Z86)+Z790)*VLOOKUP(Z$881,'F. UL & OPEX flat rates'!$B$2:$G$43,6,0)","v":0},{"$f":"(SUMPRODUCT(($A$3:$A86>($A966-VLOOKUP(AA$881,'F. UL & OPEX flat rates'!$B$2:$G$43,5)))*1,AA$3:AA86)+AA790)*VLOOKUP(AA$881,'F. UL & OPEX flat rates'!$B$2:$G$43,6,0)","v":0},{"$f":"(SUMPRODUCT(($A$3:$A86>($A966-VLOOKUP(AB$881,'F. UL & OPEX flat rates'!$B$2:$G$43,5)))*1,AB$3:AB86)+AB790)*VLOOKUP(AB$881,'F. UL & OPEX flat rates'!$B$2:$G$43,6,0)","v":0},{"$f":"(SUMPRODUCT(($A$3:$A86>($A966-VLOOKUP(AC$881,'F. UL & OPEX flat rates'!$B$2:$G$43,5)))*1,AC$3:AC86)+AC790)*VLOOKUP(AC$881,'F. UL & OPEX flat rates'!$B$2:$G$43,6,0)","v":0},{"$f":"(SUMPRODUCT(($A$3:$A86>($A966-VLOOKUP(AD$881,'F. UL & OPEX flat rates'!$B$2:$G$43,5)))*1,AD$3:AD86)+AD790)*VLOOKUP(AD$881,'F. UL & OPEX flat rates'!$B$2:$G$43,6,0)","v":0},{"$f":"(SUMPRODUCT(($A$3:$A86>($A966-VLOOKUP(AE$881,'F. UL & OPEX flat rates'!$B$2:$G$43,5)))*1,AE$3:AE86)+AE790)*VLOOKUP(AE$881,'F. UL & OPEX flat rates'!$B$2:$G$43,6,0)","v":0},{"$f":"(SUMPRODUCT(($A$3:$A86>($A966-VLOOKUP(AF$881,'F. UL & OPEX flat rates'!$B$2:$G$43,5)))*1,AF$3:AF86)+AF790)*VLOOKUP(AF$881,'F. UL & OPEX flat rates'!$B$2:$G$43,6,0)","v":0},{"$f":"(SUMPRODUCT(($A$3:$A86>($A966-VLOOKUP(AG$881,'F. UL & OPEX flat rates'!$B$2:$G$43,5)))*1,AG$3:AG86)+AG790)*VLOOKUP(AG$881,'F. UL & OPEX flat rates'!$B$2:$G$43,6,0)","v":0},{"$f":"(SUMPRODUCT(($A$3:$A86>($A966-VLOOKUP(AH$881,'F. UL & OPEX flat rates'!$B$2:$G$43,5)))*1,AH$3:AH86)+AH790)*VLOOKUP(AH$881,'F. UL & OPEX flat rates'!$B$2:$G$43,6,0)","v":0},{"$f":"(SUMPRODUCT(($A$3:$A86>($A966-VLOOKUP(AI$881,'F. UL & OPEX flat rates'!$B$2:$G$43,5)))*1,AI$3:AI86)+AI790)*VLOOKUP(AI$881,'F. UL & OPEX flat rates'!$B$2:$G$43,6,0)","v":0},{"$f":"(SUMPRODUCT(($A$3:$A86>($A966-VLOOKUP(AJ$881,'F. UL & OPEX flat rates'!$B$2:$G$43,5)))*1,AJ$3:AJ86)+AJ790)*VLOOKUP(AJ$881,'F. UL & OPEX flat rates'!$B$2:$G$43,6,0)","v":0},{"$f":"(SUMPRODUCT(($A$3:$A86>($A966-VLOOKUP(AK$881,'F. UL & OPEX flat rates'!$B$2:$G$43,5)))*1,AK$3:AK86)+AK790)*VLOOKUP(AK$881,'F. UL & OPEX flat rates'!$B$2:$G$43,6,0)","v":0},{"$f":"(SUMPRODUCT(($A$3:$A86>($A966-VLOOKUP(AL$881,'F. UL & OPEX flat rates'!$B$2:$G$43,5)))*1,AL$3:AL86)+AL790)*VLOOKUP(AL$881,'F. UL & OPEX flat rates'!$B$2:$G$43,6,0)","v":0},{"$f":"(SUMPRODUCT(($A$3:$A86>($A966-VLOOKUP(AM$881,'F. UL & OPEX flat rates'!$B$2:$G$43,5)))*1,AM$3:AM86)+AM790)*VLOOKUP(AM$881,'F. UL & OPEX flat rates'!$B$2:$G$43,6,0)","v":0},{"$f":"(SUMPRODUCT(($A$3:$A86>($A966-VLOOKUP(AN$881,'F. UL & OPEX flat rates'!$B$2:$G$43,5)))*1,AN$3:AN86)+AN790)*VLOOKUP(AN$881,'F. UL & OPEX flat rates'!$B$2:$G$43,6,0)","v":0},{"$f":"(SUMPRODUCT(($A$3:$A86>($A966-VLOOKUP(AO$881,'F. UL & OPEX flat rates'!$B$2:$G$43,5)))*1,AO$3:AO86)+AO790)*VLOOKUP(AO$881,'F. UL & OPEX flat rates'!$B$2:$G$43,6,0)","v":0},{"$f":"(SUMPRODUCT(($A$3:$A86>($A966-VLOOKUP(AP$881,'F. UL & OPEX flat rates'!$B$2:$G$43,5)))*1,AP$3:AP86)+AP790)*VLOOKUP(AP$881,'F. UL & OPEX flat rates'!$B$2:$G$43,6,0)","v":0},{"$f":"(SUMPRODUCT(($A$3:$A86>($A966-VLOOKUP(AQ$881,'F. UL & OPEX flat rates'!$B$2:$G$43,5)))*1,AQ$3:AQ86)+AQ790)*VLOOKUP(AQ$881,'F. UL & OPEX flat rates'!$B$2:$G$43,6,0)","v":0}]
[2100,0,{"$f":"(SUMPRODUCT(($A$3:$A87>($A967-VLOOKUP(C$881,'F. UL & OPEX flat rates'!$B$2:$G$43,5)))*1,C$3:C87)+C791)*VLOOKUP(C$881,'F. UL & OPEX flat rates'!$B$2:$G$43,6,0)","v":0},{"$f":"(SUMPRODUCT(($A$3:$A87>($A967-VLOOKUP(D$881,'F. UL & OPEX flat rates'!$B$2:$G$43,5)))*1,D$3:D87)+D791)*VLOOKUP(D$881,'F. UL & OPEX flat rates'!$B$2:$G$43,6,0)","v":0},{"$f":"(SUMPRODUCT(($A$3:$A87>($A967-VLOOKUP(E$881,'F. UL & OPEX flat rates'!$B$2:$G$43,5)))*1,E$3:E87)+E791)*VLOOKUP(E$881,'F. UL & OPEX flat rates'!$B$2:$G$43,6,0)","v":0},{"$f":"(SUMPRODUCT(($A$3:$A87>($A967-VLOOKUP(F$881,'F. UL & OPEX flat rates'!$B$2:$G$43,5)))*1,F$3:F87)+F791)*VLOOKUP(F$881,'F. UL & OPEX flat rates'!$B$2:$G$43,6,0)","v":0},{"$f":"(SUMPRODUCT(($A$3:$A87>($A967-VLOOKUP(G$881,'F. UL & OPEX flat rates'!$B$2:$G$43,5)))*1,G$3:G87)+G791)*VLOOKUP(G$881,'F. UL & OPEX flat rates'!$B$2:$G$43,6,0)","v":0},{"$f":"(SUMPRODUCT(($A$3:$A87>($A967-VLOOKUP(H$881,'F. UL & OPEX flat rates'!$B$2:$G$43,5)))*1,H$3:H87)+H791)*VLOOKUP(H$881,'F. UL & OPEX flat rates'!$B$2:$G$43,6,0)","v":0},{"$f":"(SUMPRODUCT(($A$3:$A87>($A967-VLOOKUP(I$881,'F. UL & OPEX flat rates'!$B$2:$G$43,5)))*1,I$3:I87)+I791)*VLOOKUP(I$881,'F. UL & OPEX flat rates'!$B$2:$G$43,6,0)","v":0},{"$f":"(SUMPRODUCT(($A$3:$A87>($A967-VLOOKUP(J$881,'F. UL & OPEX flat rates'!$B$2:$G$43,5)))*1,J$3:J87)+J791)*VLOOKUP(J$881,'F. UL & OPEX flat rates'!$B$2:$G$43,6,0)","v":0},{"$f":"(SUMPRODUCT(($A$3:$A87>($A967-VLOOKUP(K$881,'F. UL & OPEX flat rates'!$B$2:$G$43,5)))*1,K$3:K87)+K791)*VLOOKUP(K$881,'F. UL & OPEX flat rates'!$B$2:$G$43,6,0)","v":0},{"$f":"(SUMPRODUCT(($A$3:$A87>($A967-VLOOKUP(L$881,'F. UL & OPEX flat rates'!$B$2:$G$43,5)))*1,L$3:L87)+L791)*VLOOKUP(L$881,'F. UL & OPEX flat rates'!$B$2:$G$43,6,0)","v":0},{"$f":"(SUMPRODUCT(($A$3:$A87>($A967-VLOOKUP(M$881,'F. UL & OPEX flat rates'!$B$2:$G$43,5)))*1,M$3:M87)+M791)*VLOOKUP(M$881,'F. UL & OPEX flat rates'!$B$2:$G$43,6,0)","v":0},{"$f":"(SUMPRODUCT(($A$3:$A87>($A967-VLOOKUP(N$881,'F. UL & OPEX flat rates'!$B$2:$G$43,5)))*1,N$3:N87)+N791)*VLOOKUP(N$881,'F. UL & OPEX flat rates'!$B$2:$G$43,6,0)","v":0},{"$f":"(SUMPRODUCT(($A$3:$A87>($A967-VLOOKUP(O$881,'F. UL & OPEX flat rates'!$B$2:$G$43,5)))*1,O$3:O87)+O791)*VLOOKUP(O$881,'F. UL & OPEX flat rates'!$B$2:$G$43,6,0)","v":0},{"$f":"(SUMPRODUCT(($A$3:$A87>($A967-VLOOKUP(P$881,'F. UL & OPEX flat rates'!$B$2:$G$43,5)))*1,P$3:P87)+P791)*VLOOKUP(P$881,'F. UL & OPEX flat rates'!$B$2:$G$43,6,0)","v":0},{"$f":"(SUMPRODUCT(($A$3:$A87>($A967-VLOOKUP(Q$881,'F. UL & OPEX flat rates'!$B$2:$G$43,5)))*1,Q$3:Q87)+Q791)*VLOOKUP(Q$881,'F. UL & OPEX flat rates'!$B$2:$G$43,6,0)","v":0},{"$f":"(SUMPRODUCT(($A$3:$A87>($A967-VLOOKUP(R$881,'F. UL & OPEX flat rates'!$B$2:$G$43,5)))*1,R$3:R87)+R791)*VLOOKUP(R$881,'F. UL & OPEX flat rates'!$B$2:$G$43,6,0)","v":0},{"$f":"(SUMPRODUCT(($A$3:$A87>($A967-VLOOKUP(S$881,'F. UL & OPEX flat rates'!$B$2:$G$43,5)))*1,S$3:S87)+S791)*VLOOKUP(S$881,'F. UL & OPEX flat rates'!$B$2:$G$43,6,0)","v":0},{"$f":"(SUMPRODUCT(($A$3:$A87>($A967-VLOOKUP(T$881,'F. UL & OPEX flat rates'!$B$2:$G$43,5)))*1,T$3:T87)+T791)*VLOOKUP(T$881,'F. UL & OPEX flat rates'!$B$2:$G$43,6,0)","v":0},{"$f":"(SUMPRODUCT(($A$3:$A87>($A967-VLOOKUP(U$881,'F. UL & OPEX flat rates'!$B$2:$G$43,5)))*1,U$3:U87)+U791)*VLOOKUP(U$881,'F. UL & OPEX flat rates'!$B$2:$G$43,6,0)","v":0},{"$f":"(SUMPRODUCT(($A$3:$A87>($A967-VLOOKUP(V$881,'F. UL & OPEX flat rates'!$B$2:$G$43,5)))*1,V$3:V87)+V791)*VLOOKUP(V$881,'F. UL & OPEX flat rates'!$B$2:$G$43,6,0)","v":0},{"$f":"(SUMPRODUCT(($A$3:$A87>($A967-VLOOKUP(W$881,'F. UL & OPEX flat rates'!$B$2:$G$43,5)))*1,W$3:W87)+W791)*VLOOKUP(W$881,'F. UL & OPEX flat rates'!$B$2:$G$43,6,0)","v":0},{"$f":"(SUMPRODUCT(($A$3:$A87>($A967-VLOOKUP(X$881,'F. UL & OPEX flat rates'!$B$2:$G$43,5)))*1,X$3:X87)+X791)*VLOOKUP(X$881,'F. UL & OPEX flat rates'!$B$2:$G$43,6,0)","v":0},{"$f":"(SUMPRODUCT(($A$3:$A87>($A967-VLOOKUP(Y$881,'F. UL & OPEX flat rates'!$B$2:$G$43,5)))*1,Y$3:Y87)+Y791)*VLOOKUP(Y$881,'F. UL & OPEX flat rates'!$B$2:$G$43,6,0)","v":0},{"$f":"(SUMPRODUCT(($A$3:$A87>($A967-VLOOKUP(Z$881,'F. UL & OPEX flat rates'!$B$2:$G$43,5)))*1,Z$3:Z87)+Z791)*VLOOKUP(Z$881,'F. UL & OPEX flat rates'!$B$2:$G$43,6,0)","v":0},{"$f":"(SUMPRODUCT(($A$3:$A87>($A967-VLOOKUP(AA$881,'F. UL & OPEX flat rates'!$B$2:$G$43,5)))*1,AA$3:AA87)+AA791)*VLOOKUP(AA$881,'F. UL & OPEX flat rates'!$B$2:$G$43,6,0)","v":0},{"$f":"(SUMPRODUCT(($A$3:$A87>($A967-VLOOKUP(AB$881,'F. UL & OPEX flat rates'!$B$2:$G$43,5)))*1,AB$3:AB87)+AB791)*VLOOKUP(AB$881,'F. UL & OPEX flat rates'!$B$2:$G$43,6,0)","v":0},{"$f":"(SUMPRODUCT(($A$3:$A87>($A967-VLOOKUP(AC$881,'F. UL & OPEX flat rates'!$B$2:$G$43,5)))*1,AC$3:AC87)+AC791)*VLOOKUP(AC$881,'F. UL & OPEX flat rates'!$B$2:$G$43,6,0)","v":0},{"$f":"(SUMPRODUCT(($A$3:$A87>($A967-VLOOKUP(AD$881,'F. UL & OPEX flat rates'!$B$2:$G$43,5)))*1,AD$3:AD87)+AD791)*VLOOKUP(AD$881,'F. UL & OPEX flat rates'!$B$2:$G$43,6,0)","v":0},{"$f":"(SUMPRODUCT(($A$3:$A87>($A967-VLOOKUP(AE$881,'F. UL & OPEX flat rates'!$B$2:$G$43,5)))*1,AE$3:AE87)+AE791)*VLOOKUP(AE$881,'F. UL & OPEX flat rates'!$B$2:$G$43,6,0)","v":0},{"$f":"(SUMPRODUCT(($A$3:$A87>($A967-VLOOKUP(AF$881,'F. UL & OPEX flat rates'!$B$2:$G$43,5)))*1,AF$3:AF87)+AF791)*VLOOKUP(AF$881,'F. UL & OPEX flat rates'!$B$2:$G$43,6,0)","v":0},{"$f":"(SUMPRODUCT(($A$3:$A87>($A967-VLOOKUP(AG$881,'F. UL & OPEX flat rates'!$B$2:$G$43,5)))*1,AG$3:AG87)+AG791)*VLOOKUP(AG$881,'F. UL & OPEX flat rates'!$B$2:$G$43,6,0)","v":0},{"$f":"(SUMPRODUCT(($A$3:$A87>($A967-VLOOKUP(AH$881,'F. UL & OPEX flat rates'!$B$2:$G$43,5)))*1,AH$3:AH87)+AH791)*VLOOKUP(AH$881,'F. UL & OPEX flat rates'!$B$2:$G$43,6,0)","v":0},{"$f":"(SUMPRODUCT(($A$3:$A87>($A967-VLOOKUP(AI$881,'F. UL & OPEX flat rates'!$B$2:$G$43,5)))*1,AI$3:AI87)+AI791)*VLOOKUP(AI$881,'F. UL & OPEX flat rates'!$B$2:$G$43,6,0)","v":0},{"$f":"(SUMPRODUCT(($A$3:$A87>($A967-VLOOKUP(AJ$881,'F. UL & OPEX flat rates'!$B$2:$G$43,5)))*1,AJ$3:AJ87)+AJ791)*VLOOKUP(AJ$881,'F. UL & OPEX flat rates'!$B$2:$G$43,6,0)","v":0},{"$f":"(SUMPRODUCT(($A$3:$A87>($A967-VLOOKUP(AK$881,'F. UL & OPEX flat rates'!$B$2:$G$43,5)))*1,AK$3:AK87)+AK791)*VLOOKUP(AK$881,'F. UL & OPEX flat rates'!$B$2:$G$43,6,0)","v":0},{"$f":"(SUMPRODUCT(($A$3:$A87>($A967-VLOOKUP(AL$881,'F. UL & OPEX flat rates'!$B$2:$G$43,5)))*1,AL$3:AL87)+AL791)*VLOOKUP(AL$881,'F. UL & OPEX flat rates'!$B$2:$G$43,6,0)","v":0},{"$f":"(SUMPRODUCT(($A$3:$A87>($A967-VLOOKUP(AM$881,'F. UL & OPEX flat rates'!$B$2:$G$43,5)))*1,AM$3:AM87)+AM791)*VLOOKUP(AM$881,'F. UL & OPEX flat rates'!$B$2:$G$43,6,0)","v":0},{"$f":"(SUMPRODUCT(($A$3:$A87>($A967-VLOOKUP(AN$881,'F. UL & OPEX flat rates'!$B$2:$G$43,5)))*1,AN$3:AN87)+AN791)*VLOOKUP(AN$881,'F. UL & OPEX flat rates'!$B$2:$G$43,6,0)","v":0},{"$f":"(SUMPRODUCT(($A$3:$A87>($A967-VLOOKUP(AO$881,'F. UL & OPEX flat rates'!$B$2:$G$43,5)))*1,AO$3:AO87)+AO791)*VLOOKUP(AO$881,'F. UL & OPEX flat rates'!$B$2:$G$43,6,0)","v":0},{"$f":"(SUMPRODUCT(($A$3:$A87>($A967-VLOOKUP(AP$881,'F. UL & OPEX flat rates'!$B$2:$G$43,5)))*1,AP$3:AP87)+AP791)*VLOOKUP(AP$881,'F. UL & OPEX flat rates'!$B$2:$G$43,6,0)","v":0},{"$f":"(SUMPRODUCT(($A$3:$A87>($A967-VLOOKUP(AQ$881,'F. UL & OPEX flat rates'!$B$2:$G$43,5)))*1,AQ$3:AQ87)+AQ791)*VLOOKUP(AQ$881,'F. UL & OPEX flat rates'!$B$2:$G$43,6,0)","v":0}]
[]
["Average contributions to installation costs","Additions","Release","Value at beginning of year","Value at year-end","Average"]
[2016,{"$f":"'E. CIC'!C4","v":0},{"$f":"'E. CIC'!D89","v":0},0,{"$f":"D970+B970-C970","v":0},{"$f":"(D970+E970)/2","v":0}]
[2017,{"$f":"'E. CIC'!C5","v":0},{"$f":"'E. CIC'!E89","v":0},{"$f":"E970","v":0},0,0]
[2018,{"$f":"'E. CIC'!C6","v":0},{"$f":"'E. CIC'!F89","v":0},0,0,0,"BKZ und NAB werden zum Zwecke der Wirtschaftlichkeitsprüfung  aus Vereinfachungsgründen direkt von den AK/HK abgezogen."]
[2019,{"$f":"'E. CIC'!C7","v":0},{"$f":"'E. CIC'!G89","v":0},0,0,0,"Daher werden die BKZ und NAB  hier nicht berücksichtigt. Die tatsächliche Höhe der Zuschüsse bitte im Tabellenblatt  \"B. Parameters\" eintragen."]
[2020,{"$f":"'E. CIC'!C8","v":0},{"$f":"'E. CIC'!H89","v":0},0,0,0]
[2021,{"$f":"'E. CIC'!C9","v":0},{"$f":"'E. CIC'!I89","v":0},0,0,0]
[2022,{"$f":"'E. CIC'!C10","v":0},{"$f":"'E. CIC'!J89","v":0},0,0,0]
[2023,{"$f":"'E. CIC'!C11","v":0},{"$f":"'E. CIC'!K89","v":0},0,0,0]
[2024,{"$f":"'E. CIC'!C12","v":0},{"$f":"'E. CIC'!L89","v":0},0,0,0]
[2025,{"$f":"'E. CIC'!C13","v":0},{"$f":"'E. CIC'!M89","v":0},0,0,0]
[2026,{"$f":"'E. CIC'!C14","v":0},{"$f":"'E. CIC'!N89","v":0},0,0,0]
[2027,{"$f":"'E. CIC'!C15","v":0},{"$f":"'E. CIC'!O89","v":0},0,0,0]
[2028,{"$f":"'E. CIC'!C16","v":0},{"$f":"'E. CIC'!P89","v":0},0,0,0]
[2029,{"$f":"'E. CIC'!C17","v":0},{"$f":"'E. CIC'!Q89","v":0},0,0,0]
[2030,{"$f":"'E. CIC'!C18","v":0},{"$f":"'E. CIC'!R89","v":0},{"$f":"E983","v":0},{"$f":"D984+B984-C984","v":0},{"$f":"(D984+E984)/2","v":0}]
[2031,{"$f":"'E. CIC'!C19","v":0},{"$f":"'E. CIC'!S89","v":0},0,0,0]
[2032,{"$f":"'E. CIC'!C20","v":0},{"$f":"'E. CIC'!T89","v":0},0,0,0]
[2033,{"$f":"'E. CIC'!C21","v":0},{"$f":"'E. CIC'!U89","v":0},0,0,0]
[2034,{"$f":"'E. CIC'!C22","v":0},{"$f":"'E. CIC'!V89","v":0},0,0,0]
[2035,{"$f":"'E. CIC'!C23","v":0},{"$f":"'E. CIC'!W89","v":0},0,0,0]
[2036,{"$f":"'E. CIC'!C24","v":0},{"$f":"'E. CIC'!X89","v":0},0,0,0]
[2037,{"$f":"'E. CIC'!C25","v":0},{"$f":"'E. CIC'!Y89","v":0},0,0,0]
[2038,{"$f":"'E. CIC'!C26","v":0},{"$f":"'E. CIC'!Z89","v":0},0,0,0]
[2039,{"$f":"'E. CIC'!C27","v":0},{"$f":"'E. CIC'!AA89","v":0},0,0,0]
[2040,{"$f":"'E. CIC'!C28","v":0},{"$f":"'E. CIC'!AB89","v":0},0,0,0]
[2041,{"$f":"'E. CIC'!C29","v":0},{"$f":"'E. CIC'!AC89","v":0},0,0,0]
[2042,{"$f":"'E. CIC'!C30","v":0},{"$f":"'E. CIC'!AD89","v":0},0,0,0]
[2043,{"$f":"'E. CIC'!C31","v":0},{"$f":"'E. CIC'!AE89","v":0},0,0,0]
[2044,{"$f":"'E. CIC'!C32","v":0},{"$f":"'E. CIC'!AF89","v":0},0,0,0]
[2045,{"$f":"'E. CIC'!C33","v":0},{"$f":"'E. CIC'!AG89","v":0},0,0,0]
[2046,{"$f":"'E. CIC'!C34","v":0},{"$f":"'E. CIC'!AH89","v":0},0,0,0]
[2047,{"$f":"'E. CIC'!C35","v":0},{"$f":"'E. CIC'!AI89","v":0},0,0,0]
[2048,{"$f":"'E. CIC'!C36","v":0},{"$f":"'E. CIC'!AJ89","v":0},0,0,0]
[2049,{"$f":"'E. CIC'!C37","v":0},{"$f":"'E. CIC'!AK89","v":0},0,0,0]
[2050,{"$f":"'E. CIC'!C38","v":0},{"$f":"'E. CIC'!AL89","v":0},0,0,0]
[2051,{"$f":"'E. CIC'!C39","v":0},{"$f":"'E. CIC'!AM89","v":0},0,0,0]
[2052,{"$f":"'E. CIC'!C40","v":0},{"$f":"'E. CIC'!AN89","v":0},0,0,0]
[2053,{"$f":"'E. CIC'!C41","v":0},{"$f":"'E. CIC'!AO89","v":0},0,0,0]
[2054,{"$f":"'E. CIC'!C42","v":0},{"$f":"'E. CIC'!AP89","v":0},0,0,0]
[2055,{"$f":"'E. CIC'!C43","v":0},{"$f":"'E. CIC'!AQ89","v":0},0,0,0]
[2056,{"$f":"'E. CIC'!C44","v":0},{"$f":"'E. CIC'!AR89","v":0},0,0,0]
[2057,{"$f":"'E. CIC'!C45","v":0},{"$f":"'E. CIC'!AS89","v":0},0,0,0]
[2058,{"$f":"'E. CIC'!C46","v":0},{"$f":"'E. CIC'!AT89","v":0},0,0,0]
[2059,{"$f":"'E. CIC'!C47","v":0},{"$f":"'E. CIC'!AU89","v":0},0,0,0]
[2060,{"$f":"'E. CIC'!C48","v":0},{"$f":"'E. CIC'!AV89","v":0},0,0,0]
[2061,{"$f":"'E. CIC'!C49","v":0},{"$f":"'E. CIC'!AW89","v":0},0,0,0]
[2062,{"$f":"'E. CIC'!C50","v":0},{"$f":"'E. CIC'!AX89","v":0},0,0,0]
[2063,{"$f":"'E. CIC'!C51","v":0},{"$f":"'E. CIC'!AY89","v":0},0,0,0]
[2064,{"$f":"'E. CIC'!C52","v":0},{"$f":"'E. CIC'!AZ89","v":0},0,0,0]
[2065,{"$f":"'E. CIC'!C53","v":0},{"$f":"'E. CIC'!BA89","v":0},0,0,0]
[2066,{"$f":"'E. CIC'!C54","v":0},{"$f":"'E. CIC'!BB89","v":0},0,0,0]
[2067,{"$f":"'E. CIC'!C55","v":0},{"$f":"'E. CIC'!BC89","v":0},0,0,0]
[2068,{"$f":"'E. CIC'!C56","v":0},{"$f":"'E. CIC'!BD89","v":0},0,0,0]
[2069,{"$f":"'E. CIC'!C57","v":0},{"$f":"'E. CIC'!BE89","v":0},0,0,0]
[2070,{"$f":"'E. CIC'!C58","v":0},{"$f":"'E. CIC'!BF89","v":0},0,0,0]
[2071,{"$f":"'E. CIC'!C59","v":0},{"$f":"'E. CIC'!BG89","v":0},0,0,0]
[2072,{"$f":"'E. CIC'!C60","v":0},{"$f":"'E. CIC'!BH89","v":0},0,0,0]
[2073,{"$f":"'E. CIC'!C61","v":0},{"$f":"'E. CIC'!BI89","v":0},0,0,0]
[2074,{"$f":"'E. CIC'!C62","v":0},{"$f":"'E. CIC'!BJ89","v":0},0,0,0]
[2075,{"$f":"'E. CIC'!C63","v":0},{"$f":"'E. CIC'!BK89","v":0},0,0,0]
[2076,{"$f":"'E. CIC'!C64","v":0},{"$f":"'E. CIC'!BL89","v":0},0,0,0]
[2077,{"$f":"'E. CIC'!C65","v":0},{"$f":"'E. CIC'!BM89","v":0},0,0,0]
[2078,{"$f":"'E. CIC'!C66","v":0},{"$f":"'E. CIC'!BN89","v":0},0,0,0]
[2079,{"$f":"'E. CIC'!C67","v":0},{"$f":"'E. CIC'!BO89","v":0},0,0,0]
[2080,{"$f":"'E. CIC'!C68","v":0},{"$f":"'E. CIC'!BP89","v":0},0,0,0]
[2081,{"$f":"'E. CIC'!C69","v":0},{"$f":"'E. CIC'!BQ89","v":0},0,0,0]
[2082,{"$f":"'E. CIC'!C70","v":0},{"$f":"'E. CIC'!BR89","v":0},0,0,0]
[2083,{"$f":"'E. CIC'!C71","v":0},{"$f":"'E. CIC'!BS89","v":0},0,0,0]
[2084,{"$f":"'E. CIC'!C72","v":0},{"$f":"'E. CIC'!BT89","v":0},0,0,0]
[2085,{"$f":"'E. CIC'!C73","v":0},{"$f":"'E. CIC'!BU89","v":0},0,0,0]
[2086,{"$f":"'E. CIC'!C74","v":0},{"$f":"'E. CIC'!BV89","v":0},0,0,0]
[2087,{"$f":"'E. CIC'!C75","v":0},{"$f":"'E. CIC'!BW89","v":0},0,0,0]
[2088,{"$f":"'E. CIC'!C76","v":0},{"$f":"'E. CIC'!BX89","v":0},0,0,0]
[2089,{"$f":"'E. CIC'!C77","v":0},{"$f":"'E. CIC'!BY89","v":0},0,0,0]
[2090,{"$f":"'E. CIC'!C78","v":0},{"$f":"'E. CIC'!BZ89","v":0},0,0,0]
[2091,{"$f":"'E. CIC'!C79","v":0},{"$f":"'E. CIC'!CA89","v":0},0,0,0]
[2092,{"$f":"'E. CIC'!C80","v":0},{"$f":"'E. CIC'!CB89","v":0},0,0,0]
[2093,{"$f":"'E. CIC'!C81","v":0},{"$f":"'E. CIC'!CC89","v":0},0,0,0]
[2094,{"$f":"'E. CIC'!C82","v":0},{"$f":"'E. CIC'!CD89","v":0},{"$f":"E1047","v":0},{"$f":"D1048+B1048-C1048","v":0},{"$f":"(D1048+E1048)/2","v":0}]
[2095,{"$f":"'E. CIC'!C83","v":0},{"$f":"'E. CIC'!CE89","v":0},0,0,0]
[2096,{"$f":"'E. CIC'!C84","v":0},{"$f":"'E. CIC'!CF89","v":0},0,0,0]
[2097,{"$f":"'E. CIC'!C85","v":0},{"$f":"'E. CIC'!CG89","v":0},0,0,0]
[2098,{"$f":"'E. CIC'!C86","v":0},{"$f":"'E. CIC'!CH89","v":0},0,0,0]
[2099,{"$f":"'E. CIC'!C87","v":0},{"$f":"'E. CIC'!CI89","v":0},0,0,0]
[2100,{"$f":"'E. CIC'!C88","v":0},{"$f":"'E. CIC'!CJ89","v":0},0,0,0]
[]
[null,"Imputed residual values of fixed assets","Assets under construction","Necessary investment assets (V)","D. CIC","Interest-bearing debt","Necessary investment equity (EK)","Equity ratio","Debt ratio","RoE total","Depreciation","Trade tax","Interest on debt","Total capital costs","Operating costs (inc compressor energy costs)","Cost-reducing revenues","Total costs"]
[2016,{"$f":"B531","v":0},{"$f":"B795","v":0},{"$f":"B1057+C1057","v":0},{"$f":"F970*0","v":0},{"$f":"0.6*(D1057-E1057)","v":0},{"$f":"0.4*(D1057-E1057)","v":0},{"$f":"IF(D1057<>0,MIN(G1057/D1057,0.4),0)","v":0},{"$f":"IF(D1057<>0,MIN(F1057/D1057,0.6),0)","v":0},{"$f":"G1057*'B. Parameters'!D8","v":0},{"$f":"B267","v":0},{"$f":"J1057*'B. Parameters'!B8*0.035","v":0},{"$f":"F1057*'B. Parameters'!C8","v":0},{"$f":"B267+J1057+L1057+M1057","v":0},{"$f":"B883+'D. Compression energy'!C5","v":0},{"$f":"'B. Parameters'!J125","v":0},{"$f":"N1057+O1057-P1057","v":0}]
[2017,0,0,0,{"$f":"F971*0","v":0},0,{"$f":"0.4*(D1058-E1058)","v":0},0,0,{"$f":"G1058*'B. Parameters'!D9","v":0},0,{"$f":"J1058*'B. Parameters'!B9*0.035","v":0},{"$f":"F1058*'B. Parameters'!C9","v":0},0,{"$f":"B884+'D. Compression energy'!C6","v":0},{"$f":"'B. Parameters'!J126","v":0},0]
[2018,0,0,0,0,0,0,0,0,{"$f":"G1059*'B. Parameters'!D10","v":0},0,{"$f":"J1059*'B. Parameters'!B10*0.035","v":0},{"$f":"F1059*'B. Parameters'!C10","v":0},0,{"$f":"B885+'D. Compression energy'!C7","v":0},{"$f":"'B. Parameters'!J127","v":0},0]
[2019,0,0,0,0,0,0,0,0,{"$f":"G1060*'B. Parameters'!D11","v":0},0,{"$f":"J1060*'B. Parameters'!B11*0.035","v":0},{"$f":"F1060*'B. Parameters'!C11","v":0},0,{"$f":"B886+'D. Compression energy'!C8","v":0},{"$f":"'B. Parameters'!J128","v":0},0]
[2020,0,750000,750000,0,{"$f":"0.6*(D1061-E1061)","v":450000},300000,0.4,{"$f":"IF(D1061<>0,MIN(F1061/D1061,0.6),0)","v":0.6},{"$f":"G1061*'B. Parameters'!D12","v":20730},0,{"$f":"J1061*'B. Parameters'!B12*0.035","v":0},{"$f":"F1061*'B. Parameters'!C12","v":16562.4375},37292.4375,{"$f":"B887+'D. Compression energy'!C9","v":78000},{"$f":"'B. Parameters'!J129","v":0},115292.4375]
[2021,0,5250000,5250000,0,3150000,2100000,0.4,{"$f":"IF(D1062<>0,MIN(F1062/D1062,0.6),0)","v":0.6},{"$f":"G1062*'B. Parameters'!D13","v":145110},0,{"$f":"J1062*'B. Parameters'!B13*0.035","v":0},{"$f":"F1062*'B. Parameters'!C13","v":115937.0625},261047.0625,{"$f":"B888+'D. Compression energy'!C10","v":468000},{"$f":"'B. Parameters'!J130","v":0},729047.0625]
[2022,0,24000000,24000000,0,14400000,9600000,0.4,0.6,{"$f":"G1063*'B. Parameters'!D14","v":663360},0,{"$f":"J1063*'B. Parameters'!B14*0.035","v":0},{"$f":"F1063*'B. Parameters'!C14","v":529998},1193358,{"$f":"B889+'D. Compression energy'!C11","v":2028000},{"$f":"'B. Parameters'!J131","v":0},3221358]
[2023,0,64500000,64500000,0,38700000,25800000,0.4,0.6,{"$f":"G1064*'B. Parameters'!D15","v":1782779.9999999998},0,{"$f":"J1064*'B. Parameters'!B15*0.035","v":0},{"$f":"F1064*'B. Parameters'!C15","v":1424369.625},3207149.625,{"$f":"B890+'D. Compression energy'!C12","v":4680000},{"$f":"'B. Parameters'!J132","v":0},7887149.625]
[2024,0,120500000,120500000,0,72300000,48200000,0.4,0.6,{"$f":"G1065*'B. Parameters'!D16","v":3330619.9999999995},0,{"$f":"J1065*'B. Parameters'!B16*0.035","v":0},{"$f":"F1065*'B. Parameters'!C16","v":2661031.625},5991651.625,{"$f":"B891+'D. Compression energy'!C13","v":7858000},{"$f":"'B. Parameters'!J133","v":0},13849651.625]
[2025,147988888.8888889,0,147988888.8888889,0,88793333.333333328,59195555.55555556,0.4,0.6,{"$f":"G1066*'B. Parameters'!D17","v":4090412.888888889},6022222.222222222,{"$f":"J1066*'B. Parameters'!B17*0.035","v":0},{"$f":"F1066*'B. Parameters'!C17","v":3268075.6305555552},13380710.741666667,{"$f":"B892+'D. Compression energy'!C14","v":9940783.8900000006},{"$f":"'B. Parameters'!J134","v":0},23321494.631666668]
[2026,141966666.66666666,0,141966666.66666666,0,85179999.999999985,56786666.666666664,0.4,0.6,{"$f":"G1067*'B. Parameters'!D18","v":3923958.666666666},6022222.222222222,{"$f":"J1067*'B. Parameters'!B18*0.035","v":0},{"$f":"F1067*'B. Parameters'!C18","v":3135085.3916666661},13081266.280555554,{"$f":"B893+'D. Compression energy'!C15","v":18271918.649999999},{"$f":"'B. Parameters'!J135","v":0},31353184.930555552]
[2027,135944444.44444445,0,135944444.44444445,0,81566666.666666672,54377777.777777784,0.4,0.6,{"$f":"G1068*'B. Parameters'!D19","v":3757504.4444444445},6022222.222222222,{"$f":"J1068*'B. Parameters'!B19*0.035","v":0},{"$f":"F1068*'B. Parameters'!C19","v":3002095.152777778},12781821.819444444,{"$f":"B894+'D. Compression energy'!C16","v":24520267.949999999},{"$f":"'B. Parameters'!J136","v":0},37302089.769444443]
[2028,129922222.22222222,0,129922222.22222222,0,77953333.333333328,51968888.888888896,0.4,0.6,{"$f":"G1069*'B. Parameters'!D20","v":3591050.2222222225},6022222.222222222,{"$f":"J1069*'B. Parameters'!B20*0.035","v":0},{"$f":"F1069*'B. Parameters'!C20","v":2869104.9138888889},12482377.358333332,{"$f":"B895+'D. Compression energy'!C17","v":24520267.949999999},{"$f":"'B. Parameters'!J137","v":0},37002645.30833333]
[2029,123900000,0,123900000,0,74340000,49560000,0.4,0.6,{"$f":"G1070*'B. Parameters'!D21","v":3424595.9999999995},6022222.222222222,{"$f":"J1070*'B. Parameters'!B21*0.035","v":0},{"$f":"F1070*'B. Parameters'!C21","v":2736114.6749999998},12182932.897222221,{"$f":"B896+'D. Compression energy'!C18","v":24520267.949999999},{"$f":"'B. Parameters'!J138","v":0},36703200.847222224]
[2030,117877777.77777778,0,117877777.77777778,0,70726666.666666657,47151111.111111112,0.4,0.6,{"$f":"G1071*'B. Parameters'!D22","v":3258141.7777777775},6022222.222222222,{"$f":"J1071*'B. Parameters'!B22*0.035","v":0},{"$f":"F1071*'B. Parameters'!C22","v":2603124.4361111107},11883488.436111111,{"$f":"B897+'D. Compression energy'!C19","v":29727227.280000001},{"$f":"'B. Parameters'!J139","v":0},41610715.716111109]
[2031,111855555.55555555,0,111855555.55555555,0,67113333.333333328,44742222.222222224,0.4,0.6,{"$f":"G1072*'B. Parameters'!D23","v":3091687.5555555555},6022222.222222222,{"$f":"J1072*'B. Parameters'!B23*0.035","v":0},{"$f":"F1072*'B. Parameters'!C23","v":2470134.1972222221},11584043.975,{"$f":"B898+'D. Compression energy'!C20","v":45348105.259999998},{"$f":"'B. Parameters'!J140","v":0},56932149.234999999]
[2032,105833333.33333333,0,105833333.33333333,0,63499999.999999993,42333333.333333336,0.4,0.6,{"$f":"G1073*'B. Parameters'!D24","v":2925233.3333333335},6022222.222222222,{"$f":"J1073*'B. Parameters'!B24*0.035","v":0},{"$f":"F1073*'B. Parameters'!C24","v":2337143.958333333},11284599.513888888,{"$f":"B899+'D. Compression energy'!C21","v":45348105.259999998},{"$f":"'B. Parameters'!J141","v":0},56632704.773888886]
[2033,99811111.111111104,0,99811111.111111104,0,59886666.666666664,39924444.44444444,0.39999999999999997,0.6,{"$f":"G1074*'B. Parameters'!D25","v":2758779.1111111105},6022222.222222222,{"$f":"J1074*'B. Parameters'!B25*0.035","v":0},{"$f":"F1074*'B. Parameters'!C25","v":2204153.7194444444},10985155.052777776,{"$f":"B900+'D. Compression energy'!C22","v":45348105.259999998},{"$f":"'B. Parameters'!J142","v":0},56333260.312777773]
[2034,93788888.888888896,0,93788888.888888896,0,56273333.333333336,37515555.55555556,0.4,0.6,{"$f":"G1075*'B. Parameters'!D26","v":2592324.888888889},6022222.222222222,{"$f":"J1075*'B. Parameters'!B26*0.035","v":0},{"$f":"F1075*'B. Parameters'!C26","v":2071163.4805555556},10685710.591666667,{"$f":"B901+'D. Compression energy'!C23","v":45348105.259999998},{"$f":"'B. Parameters'!J143","v":0},56033815.851666667]
[2035,87766666.666666672,0,87766666.666666672,0,52660000,35106666.666666672,0.4,0.6,{"$f":"G1076*'B. Parameters'!D27","v":2425870.666666667},6022222.222222222,{"$f":"J1076*'B. Parameters'!B27*0.035","v":0},{"$f":"F1076*'B. Parameters'!C27","v":1938173.2416666667},10386266.130555555,{"$f":"B902+'D. Compression energy'!C24","v":45348105.259999998},{"$f":"'B. Parameters'!J144","v":0},55734371.390555553]
[2036,81744444.444444448,0,81744444.444444448,0,49046666.666666664,32697777.77777778,0.4,0.6,{"$f":"G1077*'B. Parameters'!D28","v":2259416.4444444445},6022222.222222222,{"$f":"J1077*'B. Parameters'!B28*0.035","v":0},{"$f":"F1077*'B. Parameters'!C28","v":1805183.0027777776},10086821.669444444,{"$f":"B903+'D. Compression energy'!C25","v":45348105.259999998},{"$f":"'B. Parameters'!J145","v":0},55434926.92944444]
[2037,75722222.222222224,0,75722222.222222224,0,45433333.333333336,30288888.888888892,0.4,0.6,{"$f":"G1078*'B. Parameters'!D29","v":2092962.2222222222},6022222.222222222,{"$f":"J1078*'B. Parameters'!B29*0.035","v":0},{"$f":"F1078*'B. Parameters'!C29","v":1672192.763888889},9787377.2083333321,{"$f":"B904+'D. Compression energy'!C26","v":45348105.259999998},{"$f":"'B. Parameters'!J146","v":0},55135482.468333334]
[2038,69700000,0,69700000,0,41820000,27880000,0.4,0.6,{"$f":"G1079*'B. Parameters'!D30","v":1926507.9999999998},6022222.222222222,{"$f":"J1079*'B. Parameters'!B30*0.035","v":0},{"$f":"F1079*'B. Parameters'!C30","v":1539202.5249999999},9487932.7472222224,{"$f":"B905+'D. Compression energy'!C27","v":45348105.259999998},{"$f":"'B. Parameters'!J147","v":0},54836038.00722222]
[2039,63677777.777777776,0,63677777.777777776,0,38206666.666666664,25471111.111111112,0.4,0.6,{"$f":"G1080*'B. Parameters'!D31","v":1760053.7777777778},6022222.222222222,{"$f":"J1080*'B. Parameters'!B31*0.035","v":0},{"$f":"F1080*'B. Parameters'!C31","v":1406212.2861111111},9188488.2861111108,{"$f":"B906+'D. Compression energy'!C28","v":45348105.259999998},{"$f":"'B. Parameters'!J148","v":0},54536593.546111107]
[2040,57655555.555555552,0,57655555.555555552,0,34593333.333333328,23062222.222222224,0.4,0.6,{"$f":"G1081*'B. Parameters'!D32","v":1593599.5555555555},6022222.222222222,{"$f":"J1081*'B. Parameters'!B32*0.035","v":0},{"$f":"F1081*'B. Parameters'!C32","v":1273222.047222222},8889043.8249999993,{"$f":"B907+'D. Compression energy'!C29","v":40661842.109999999},{"$f":"'B. Parameters'!J149","v":0},49550885.935000002]
[2041,51633333.333333336,0,51633333.333333336,0,30980000,20653333.333333336,0.4,0.6,{"$f":"G1082*'B. Parameters'!D33","v":1427145.3333333335},6022222.222222222,{"$f":"J1082*'B. Parameters'!B33*0.035","v":0},{"$f":"F1082*'B. Parameters'!C33","v":1140231.8083333333},8589599.3638888896,{"$f":"B908+'D. Compression energy'!C30","v":26603052.629999999},{"$f":"'B. Parameters'!J150","v":0},35192651.993888885]
[2042,45611111.111111112,0,45611111.111111112,0,27366666.666666668,18244444.444444444,0.39999999999999997,0.6,{"$f":"G1083*'B. Parameters'!D34","v":1260691.111111111},6022222.222222222,{"$f":"J1083*'B. Parameters'!B34*0.035","v":0},{"$f":"F1083*'B. Parameters'!C34","v":1007241.5694444445},8290154.902777778,{"$f":"B909+'D. Compression energy'!C31","v":26603052.629999999},{"$f":"'B. Parameters'!J151","v":0},34893207.532777779]
[2043,39588888.888888888,0,39588888.888888888,0,23753333.333333332,15835555.555555556,0.4,0.6,{"$f":"G1084*'B. Parameters'!D35","v":1094236.8888888888},6022222.222222222,{"$f":"J1084*'B. Parameters'!B35*0.035","v":0},{"$f":"F1084*'B. Parameters'!C35","v":874251.33055555553},7990710.4416666664,{"$f":"B910+'D. Compression energy'!C32","v":26603052.629999999},{"$f":"'B. Parameters'!J152","v":0},34593763.071666665]
[2044,33566666.666666664,0,33566666.666666664,0,20139999.999999996,13426666.666666666,0.4,0.6,{"$f":"G1085*'B. Parameters'!D36","v":927782.66666666651},6022222.222222222,{"$f":"J1085*'B. Parameters'!B36*0.035","v":0},{"$f":"F1085*'B. Parameters'!C36","v":741261.09166666656},7691265.9805555549,{"$f":"B911+'D. Compression energy'!C33","v":26603052.629999999},{"$f":"'B. Parameters'!J153","v":0},34294318.610555552]
[2045,27544444.444444444,0,27544444.444444444,0,16526666.666666666,11017777.777777778,0.4,0.6,{"$f":"G1086*'B. Parameters'!D37","v":761328.44444444438},6022222.222222222,{"$f":"J1086*'B. Parameters'!B37*0.035","v":0},{"$f":"F1086*'B. Parameters'!C37","v":608270.85277777771},7391821.5194444433,{"$f":"B912+'D. Compression energy'!C34","v":26603052.629999999},{"$f":"'B. Parameters'!J154","v":0},33994874.149444446]
[2046,21522222.22222222,0,21522222.22222222,0,12913333.333333332,8608888.8888888881,0.4,0.6,{"$f":"G1087*'B. Parameters'!D38","v":594874.22222222213},6022222.222222222,{"$f":"J1087*'B. Parameters'!B38*0.035","v":0},{"$f":"F1087*'B. Parameters'!C38","v":475280.61388888885},7092377.0583333327,{"$f":"B913+'D. Compression energy'!C35","v":26603052.629999999},{"$f":"'B. Parameters'!J155","v":0},33695429.688333333]
[2047,15500000,0,15500000,0,9300000,6200000,0.4,0.6,{"$f":"G1088*'B. Parameters'!D39","v":428419.99999999994},6022222.222222222,{"$f":"J1088*'B. Parameters'!B39*0.035","v":0},{"$f":"F1088*'B. Parameters'!C39","v":342290.375},6792932.597222222,{"$f":"B914+'D. Compression energy'!C36","v":26603052.629999999},{"$f":"'B. Parameters'!J156","v":0},33395985.227222219]
[2048,{"$f":"B563","v":9477777.777777778},{"$f":"B827","v":0},9477777.777777778,0,5686666.666666667,3791111.1111111115,0.4,0.6,{"$f":"G1089*'B. Parameters'!D40","v":261965.77777777778},{"$f":"B299","v":6022222.222222222},{"$f":"J1089*'B. Parameters'!B40*0.035","v":0},{"$f":"F1089*'B. Parameters'!C40","v":209300.13611111112},{"$f":"B299+J1089+L1089+M1089","v":6493488.1361111114},{"$f":"B915+'D. Compression energy'!C37","v":26603052.629999999},{"$f":"'B. Parameters'!J157","v":0},33096540.766111109]
[2049,3455555.555555555,0,3455555.555555555,0,2073333.333333333,1382222.222222222,0.4,0.6,{"$f":"G1090*'B. Parameters'!D41","v":95511.555555555533},6022222.222222222,{"$f":"J1090*'B. Parameters'!B41*0.035","v":0},{"$f":"F1090*'B. Parameters'!C41","v":76309.897222222207},6194043.6749999998,{"$f":"B916+'D. Compression energy'!C38","v":26603052.629999999},{"$f":"'B. Parameters'!J158","v":0},32797096.305]
[2050,433333.33333333302,0,433333.33333333302,0,259999.9999999998,173333.33333333323,0.4,0.6,{"$f":"G1091*'B. Parameters'!D42","v":11977.333333333325},22222.222222222223,{"$f":"J1091*'B. Parameters'!B42*0.035","v":0},{"$f":"F1091*'B. Parameters'!C42","v":9569.4083333333256},43768.963888888873,{"$f":"B917+'D. Compression energy'!C39","v":58000},{"$f":"'B. Parameters'!J159","v":0},101768.96388888887]
[2051,411111.11111111077,0,411111.11111111077,0,246666.66666666645,164444.44444444432,0.4,0.6,{"$f":"G1092*'B. Parameters'!D43","v":11363.111111111102},22222.222222222223,{"$f":"J1092*'B. Parameters'!B43*0.035","v":0},{"$f":"F1092*'B. Parameters'!C43","v":9078.6694444444365},42664.002777777765,{"$f":"B918+'D. Compression energy'!C40","v":58000},{"$f":"'B. Parameters'!J160","v":0},100664.00277777776]
[2052,388888.88888888853,0,388888.88888888853,0,233333.33333333311,155555.55555555542,0.4,0.6,{"$f":"G1093*'B. Parameters'!D44","v":10748.888888888878},22222.222222222223,{"$f":"J1093*'B. Parameters'!B44*0.035","v":0},{"$f":"F1093*'B. Parameters'!C44","v":8587.9305555555475},41559.04166666665,{"$f":"B919+'D. Compression energy'!C41","v":58000},{"$f":"'B. Parameters'!J161","v":0},99559.041666666657]
[2053,366666.66666666628,0,366666.66666666628,0,219999.99999999977,146666.66666666651,0.4,0.6,{"$f":"G1094*'B. Parameters'!D45","v":10134.666666666655},22222.222222222223,{"$f":"J1094*'B. Parameters'!B45*0.035","v":0},{"$f":"F1094*'B. Parameters'!C45","v":8097.1916666666584},40454.080555555534,{"$f":"B920+'D. Compression energy'!C42","v":58000},{"$f":"'B. Parameters'!J162","v":0},98454.080555555527]
[2054,344444.44444444403,0,344444.44444444403,0,206666.66666666642,137777.77777777761,0.39999999999999997,0.6,{"$f":"G1095*'B. Parameters'!D46","v":9520.4444444444325},22222.222222222223,{"$f":"J1095*'B. Parameters'!B46*0.035","v":0},{"$f":"F1095*'B. Parameters'!C46","v":7606.4527777777685},39349.119444444426,{"$f":"B921+'D. Compression energy'!C43","v":58000},{"$f":"'B. Parameters'!J163","v":0},97349.119444444426]
[2055,322222.22222222178,0,322222.22222222178,0,193333.33333333305,128888.88888888872,0.4,0.6,{"$f":"G1096*'B. Parameters'!D47","v":8906.2222222222099},22222.222222222223,{"$f":"J1096*'B. Parameters'!B47*0.035","v":0},{"$f":"F1096*'B. Parameters'!C47","v":7115.7138888888785},38244.158333333311,{"$f":"B922+'D. Compression energy'!C44","v":58000},{"$f":"'B. Parameters'!J164","v":0},96244.158333333311]
[2056,299999.99999999953,0,299999.99999999953,0,179999.99999999971,119999.99999999983,0.4,0.6,{"$f":"G1097*'B. Parameters'!D48","v":8291.9999999999873},22222.222222222223,{"$f":"J1097*'B. Parameters'!B48*0.035","v":0},{"$f":"F1097*'B. Parameters'!C48","v":6624.9749999999894},37139.197222222203,{"$f":"B923+'D. Compression energy'!C45","v":58000},{"$f":"'B. Parameters'!J165","v":0},95139.197222222196]
[2057,277777.77777777729,0,277777.77777777729,0,166666.66666666637,111111.11111111092,0.4,0.6,{"$f":"G1098*'B. Parameters'!D49","v":7677.7777777777637},22222.222222222223,{"$f":"J1098*'B. Parameters'!B49*0.035","v":0},{"$f":"F1098*'B. Parameters'!C49","v":6134.2361111111004},36034.236111111088,{"$f":"B924+'D. Compression energy'!C46","v":58000},{"$f":"'B. Parameters'!J166","v":0},94034.236111111095]
[2058,255555.55555555504,0,255555.55555555504,0,153333.33333333302,102222.22222222202,0.4,0.6,{"$f":"G1099*'B. Parameters'!D50","v":7063.5555555555411},22222.222222222223,{"$f":"J1099*'B. Parameters'!B50*0.035","v":0},{"$f":"F1099*'B. Parameters'!C50","v":5643.4972222222104},34929.274999999972,{"$f":"B925+'D. Compression energy'!C47","v":58000},{"$f":"'B. Parameters'!J167","v":0},92929.274999999965]
[2059,233333.33333333279,0,233333.33333333279,0,139999.99999999968,93333.333333333125,0.4,0.6,{"$f":"G1100*'B. Parameters'!D51","v":6449.3333333333185},22222.222222222223,{"$f":"J1100*'B. Parameters'!B51*0.035","v":0},{"$f":"F1100*'B. Parameters'!C51","v":5152.7583333333214},33824.313888888864,{"$f":"B926+'D. Compression energy'!C48","v":58000},{"$f":"'B. Parameters'!J168","v":0},91824.313888888864]
[2060,211111.11111111054,0,211111.11111111054,0,126666.66666666632,84444.44444444422,0.4,0.6,{"$f":"G1101*'B. Parameters'!D52","v":5835.1111111110949},22222.222222222223,{"$f":"J1101*'B. Parameters'!B52*0.035","v":0},{"$f":"F1101*'B. Parameters'!C52","v":4662.0194444444314},32719.352777777749,{"$f":"B927+'D. Compression energy'!C49","v":58000},{"$f":"'B. Parameters'!J169","v":0},90719.352777777749]
[2061,188888.88888888829,0,188888.88888888829,0,113333.33333333298,75555.555555555315,0.39999999999999997,0.6,{"$f":"G1102*'B. Parameters'!D53","v":5220.8888888888714},22222.222222222223,{"$f":"J1102*'B. Parameters'!B53*0.035","v":0},{"$f":"F1102*'B. Parameters'!C53","v":4171.2805555555424},31614.391666666637,{"$f":"B928+'D. Compression energy'!C50","v":58000},{"$f":"'B. Parameters'!J170","v":0},89614.391666666634]
[2062,166666.66666666605,0,166666.66666666605,0,99999.999999999622,66666.666666666424,0.4,0.6,{"$f":"G1103*'B. Parameters'!D54","v":4606.6666666666497},22222.222222222223,{"$f":"J1103*'B. Parameters'!B54*0.035","v":0},{"$f":"F1103*'B. Parameters'!C54","v":3680.5416666666529},30509.430555555526,{"$f":"B929+'D. Compression energy'!C51","v":58000},{"$f":"'B. Parameters'!J171","v":0},88509.430555555533]
[2063,144444.4444444438,0,144444.4444444438,0,86666.666666666279,57777.777777777519,0.4,0.6,{"$f":"G1104*'B. Parameters'!D55","v":3992.4444444444262},22222.222222222223,{"$f":"J1104*'B. Parameters'!B55*0.035","v":0},{"$f":"F1104*'B. Parameters'!C55","v":3189.8027777777634},29404.469444444414,{"$f":"B930+'D. Compression energy'!C52","v":58000},{"$f":"'B. Parameters'!J172","v":0},87404.469444444418]
[2064,122222.22222222155,0,122222.22222222155,0,73333.333333332921,48888.888888888621,0.4,0.6,{"$f":"G1105*'B. Parameters'!D56","v":3378.2222222222035},22222.222222222223,{"$f":"J1105*'B. Parameters'!B56*0.035","v":0},{"$f":"F1105*'B. Parameters'!C56","v":2699.0638888888739},28299.508333333302,{"$f":"B931+'D. Compression energy'!C53","v":58000},{"$f":"'B. Parameters'!J173","v":0},86299.508333333302]
[2065,99999.999999999302,0,99999.999999999302,0,59999.999999999578,39999.999999999724,0.4,0.6,{"$f":"G1106*'B. Parameters'!D57","v":2763.9999999999809},22222.222222222223,{"$f":"J1106*'B. Parameters'!B57*0.035","v":0},{"$f":"F1106*'B. Parameters'!C57","v":2208.3249999999844},27194.547222222187,{"$f":"B932+'D. Compression energy'!C54","v":58000},{"$f":"'B. Parameters'!J174","v":0},85194.547222222187]
[2066,77777.777777777053,0,77777.777777777053,0,46666.666666666228,31111.111111110822,0.4,0.6,{"$f":"G1107*'B. Parameters'!D58","v":2149.7777777777578},22222.222222222223,{"$f":"J1107*'B. Parameters'!B58*0.035","v":0},{"$f":"F1107*'B. Parameters'!C58","v":1717.5861111110949},26089.586111111075,{"$f":"B933+'D. Compression energy'!C55","v":58000},{"$f":"'B. Parameters'!J175","v":0},84089.586111111072]
[2067,55555.555555554805,0,55555.555555554805,0,33333.333333332885,22222.222222221924,0.4,0.6,{"$f":"G1108*'B. Parameters'!D59","v":1535.555555555535},22222.222222222223,{"$f":"J1108*'B. Parameters'!B59*0.035","v":0},{"$f":"F1108*'B. Parameters'!C59","v":1226.8472222222058},24984.624999999964,{"$f":"B934+'D. Compression energy'!C56","v":58000},{"$f":"'B. Parameters'!J176","v":0},82984.624999999971]
[2068,33333.333333332557,0,33333.333333332557,0,19999.999999999534,13333.333333333023,0.4,0.6,{"$f":"G1109*'B. Parameters'!D60","v":921.33333333331177},22222.222222222223,{"$f":"J1109*'B. Parameters'!B60*0.035","v":0},{"$f":"F1109*'B. Parameters'!C60","v":736.10833333331618},23879.663888888848,{"$f":"B935+'D. Compression energy'!C57","v":58000},{"$f":"'B. Parameters'!J177","v":0},81879.663888888841]
[2069,11111.111111110717,0,11111.111111110717,0,6666.6666666664296,4444.444444444287,0.4,0.6,{"$f":"G1110*'B. Parameters'!D61","v":307.11111111110023},22222.222222222223,{"$f":"J1110*'B. Parameters'!B61*0.035","v":0},{"$f":"F1110*'B. Parameters'!C61","v":245.36944444443571},22774.702777777758,{"$f":"B936+'D. Compression energy'!C58","v":58000},{"$f":"'B. Parameters'!J178","v":0},80774.702777777755]
[2070,-4.0745362639427185E-10,0,-4.0745362639427185E-10,0,-2.4447217583656312E-10,-1.6298145055770876E-10,0.4,0.6,{"$f":"G1111*'B. Parameters'!D62","v":-1.1262018233537675E-11},0,{"$f":"J1111*'B. Parameters'!B62*0.035","v":0},{"$f":"F1111*'B. Parameters'!C62","v":-8.9979002950713049E-12},-2.025991852860898E-11,{"$f":"B937+'D. Compression energy'!C59","v":0},{"$f":"'B. Parameters'!J179","v":0},-2.025991852860898E-11]
[2071,-4.0745362639427185E-10,0,-4.0745362639427185E-10,0,-2.4447217583656312E-10,-1.6298145055770876E-10,0.4,0.6,{"$f":"G1112*'B. Parameters'!D63","v":-1.1262018233537675E-11},0,{"$f":"J1112*'B. Parameters'!B63*0.035","v":0},{"$f":"F1112*'B. Parameters'!C63","v":-8.9979002950713049E-12},-2.025991852860898E-11,{"$f":"B938+'D. Compression energy'!C60","v":0},{"$f":"'B. Parameters'!J180","v":0},-2.025991852860898E-11]
[2072,-4.0745362639427185E-10,0,-4.0745362639427185E-10,0,-2.4447217583656312E-10,-1.6298145055770876E-10,0.4,0.6,{"$f":"G1113*'B. Parameters'!D64","v":-1.1262018233537675E-11},0,{"$f":"J1113*'B. Parameters'!B64*0.035","v":0},{"$f":"F1113*'B. Parameters'!C64","v":-8.9979002950713049E-12},-2.025991852860898E-11,{"$f":"B939+'D. Compression energy'!C61","v":0},{"$f":"'B. Parameters'!J181","v":0},-2.025991852860898E-11]
[2073,-4.0745362639427185E-10,0,-4.0745362639427185E-10,0,-2.4447217583656312E-10,-1.6298145055770876E-10,0.4,0.6,{"$f":"G1114*'B. Parameters'!D65","v":-1.1262018233537675E-11},0,{"$f":"J1114*'B. Parameters'!B65*0.035","v":0},{"$f":"F1114*'B. Parameters'!C65","v":-8.9979002950713049E-12},-2.025991852860898E-11,{"$f":"B940+'D. Compression energy'!C62","v":0},{"$f":"'B. Parameters'!J182","v":0},-2.025991852860898E-11]
[2074,-4.0745362639427185E-10,0,-4.0745362639427185E-10,0,-2.4447217583656312E-10,-1.6298145055770876E-10,0.4,0.6,{"$f":"G1115*'B. Parameters'!D66","v":-1.1262018233537675E-11},0,{"$f":"J1115*'B. Parameters'!B66*0.035","v":0},{"$f":"F1115*'B. Parameters'!C66","v":-8.9979002950713049E-12},-2.025991852860898E-11,{"$f":"B941+'D. Compression energy'!C63","v":0},{"$f":"'B. Parameters'!J183","v":0},-2.025991852860898E-11]
[2075,-4.0745362639427185E-10,0,-4.0745362639427185E-10,0,-2.4447217583656312E-10,-1.6298145055770876E-10,0.4,0.6,{"$f":"G1116*'B. Parameters'!D67","v":-1.1262018233537675E-11},0,{"$f":"J1116*'B. Parameters'!B67*0.035","v":0},{"$f":"F1116*'B. Parameters'!C67","v":-8.9979002950713049E-12},-2.025991852860898E-11,{"$f":"B942+'D. Compression energy'!C64","v":0},{"$f":"'B. Parameters'!J184","v":0},-2.025991852860898E-11]
[2076,-4.0745362639427185E-10,0,-4.0745362639427185E-10,0,-2.4447217583656312E-10,-1.6298145055770876E-10,0.4,0.6,{"$f":"G1117*'B. Parameters'!D68","v":-1.1262018233537675E-11},0,{"$f":"J1117*'B. Parameters'!B68*0.035","v":0},{"$f":"F1117*'B. Parameters'!C68","v":-8.9979002950713049E-12},-2.025991852860898E-11,{"$f":"B943+'D. Compression energy'!C65","v":0},{"$f":"'B. Parameters'!J185","v":0},-2.025991852860898E-11]
[2077,-4.0745362639427185E-10,0,-4.0745362639427185E-10,0,-2.4447217583656312E-10,-1.6298145055770876E-10,0.4,0.6,{"$f":"G1118*'B. Parameters'!D69","v":-1.1262018233537675E-11},0,{"$f":"J1118*'B. Parameters'!B69*0.035","v":0},{"$f":"F1118*'B. Parameters'!C69","v":-8.9979002950713049E-12},-2.025991852860898E-11,{"$f":"B944+'D. Compression energy'!C66","v":0},{"$f":"'B. Parameters'!J186","v":0},-2.025991852860898E-11]
[2078,-4.0745362639427185E-10,0,-4.0745362639427185E-10,0,-2.4447217583656312E-10,-1.6298145055770876E-10,0.4,0.6,{"$f":"G1119*'B. Parameters'!D70","v":-1.1262018233537675E-11},0,{"$f":"J1119*'B. Parameters'!B70*0.035","v":0},{"$f":"F1119*'B. Parameters'!C70","v":-8.9979002950713049E-12},-2.025991852860898E-11,{"$f":"B945+'D. Compression energy'!C67","v":0},{"$f":"'B. Parameters'!J187","v":0},-2.025991852860898E-11]
[2079,-4.0745362639427185E-10,0,-4.0745362639427185E-10,0,-2.4447217583656312E-10,-1.6298145055770876E-10,0.4,0.6,{"$f":"G1120*'B. Parameters'!D71","v":-1.1262018233537675E-11},0,{"$f":"J1120*'B. Parameters'!B71*0.035","v":0},{"$f":"F1120*'B. Parameters'!C71","v":-8.9979002950713049E-12},-2.025991852860898E-11,{"$f":"B946+'D. Compression energy'!C68","v":0},{"$f":"'B. Parameters'!J188","v":0},-2.025991852860898E-11]
[2080,{"$f":"B595","v":-4.0745362639427185E-10},{"$f":"B859","v":0},{"$f":"B1121+C1121","v":-4.0745362639427185E-10},0,{"$f":"0.6*(D1121-E1121)","v":-2.4447217583656312E-10},-1.6298145055770876E-10,{"$f":"IF(D1121<>0,MIN(G1121/D1121,0.4),0)","v":0.4},0.6,{"$f":"G1121*'B. Parameters'!D72","v":-1.1262018233537675E-11},{"$f":"B331","v":0},{"$f":"J1121*'B. Parameters'!B72*0.035","v":0},{"$f":"F1121*'B. Parameters'!C72","v":-8.9979002950713049E-12},{"$f":"B331+J1121+L1121+M1121","v":-2.025991852860898E-11},{"$f":"B947+'D. Compression energy'!C69","v":0},{"$f":"'B. Parameters'!J189","v":0},{"$f":"N1121+O1121-P1121","v":-2.025991852860898E-11}]
[2081,-4.0745362639427185E-10,0,-4.0745362639427185E-10,{"$f":"F1035*0","v":0},-2.4447217583656312E-10,{"$f":"0.4*(D1122-E1122)","v":-1.6298145055770876E-10},0.4,0.6,{"$f":"G1122*'B. Parameters'!D73","v":-1.1262018233537675E-11},0,{"$f":"J1122*'B. Parameters'!B73*0.035","v":0},{"$f":"F1122*'B. Parameters'!C73","v":-8.9979002950713049E-12},-2.025991852860898E-11,{"$f":"B948+'D. Compression energy'!C70","v":0},{"$f":"'B. Parameters'!J190","v":0},-2.025991852860898E-11]
[2082,-4.0745362639427185E-10,0,-4.0745362639427185E-10,0,-2.4447217583656312E-10,-1.6298145055770876E-10,0.4,0.6,{"$f":"G1123*'B. Parameters'!D74","v":-1.1262018233537675E-11},0,{"$f":"J1123*'B. Parameters'!B74*0.035","v":0},{"$f":"F1123*'B. Parameters'!C74","v":-8.9979002950713049E-12},-2.025991852860898E-11,{"$f":"B949+'D. Compression energy'!C71","v":0},{"$f":"'B. Parameters'!J191","v":0},-2.025991852860898E-11]
[2083,-4.0745362639427185E-10,0,-4.0745362639427185E-10,0,-2.4447217583656312E-10,-1.6298145055770876E-10,0.4,0.6,{"$f":"G1124*'B. Parameters'!D75","v":-1.1262018233537675E-11},0,{"$f":"J1124*'B. Parameters'!B75*0.035","v":0},{"$f":"F1124*'B. Parameters'!C75","v":-8.9979002950713049E-12},-2.025991852860898E-11,{"$f":"B950+'D. Compression energy'!C72","v":0},{"$f":"'B. Parameters'!J192","v":0},-2.025991852860898E-11]
[2084,-4.0745362639427185E-10,0,-4.0745362639427185E-10,0,-2.4447217583656312E-10,-1.6298145055770876E-10,0.4,0.6,{"$f":"G1125*'B. Parameters'!D76","v":-1.1262018233537675E-11},0,{"$f":"J1125*'B. Parameters'!B76*0.035","v":0},{"$f":"F1125*'B. Parameters'!C76","v":-8.9979002950713049E-12},-2.025991852860898E-11,{"$f":"B951+'D. Compression energy'!C73","v":0},{"$f":"'B. Parameters'!J193","v":0},-2.025991852860898E-11]
[2085,-4.0745362639427185E-10,0,-4.0745362639427185E-10,0,-2.4447217583656312E-10,-1.6298145055770876E-10,0.4,{"$f":"IF(D1126<>0,MIN(F1126/D1126,0.6),0)","v":0.6},{"$f":"G1126*'B. Parameters'!D77","v":-1.1262018233537675E-11},0,{"$f":"J1126*'B. Parameters'!B77*0.035","v":0},{"$f":"F1126*'B. Parameters'!C77","v":-8.9979002950713049E-12},-2.025991852860898E-11,{"$f":"B952+'D. Compression energy'!C74","v":0},{"$f":"'B. Parameters'!J194","v":0},-2.025991852860898E-11]
[2086,-4.0745362639427185E-10,0,-4.0745362639427185E-10,0,-2.4447217583656312E-10,-1.6298145055770876E-10,0.4,0.6,{"$f":"G1127*'B. Parameters'!D78","v":-1.1262018233537675E-11},0,{"$f":"J1127*'B. Parameters'!B78*0.035","v":0},{"$f":"F1127*'B. Parameters'!C78","v":-8.9979002950713049E-12},-2.025991852860898E-11,{"$f":"B953+'D. Compression energy'!C75","v":0},{"$f":"'B. Parameters'!J195","v":0},-2.025991852860898E-11]
[2087,-4.0745362639427185E-10,0,-4.0745362639427185E-10,0,-2.4447217583656312E-10,-1.6298145055770876E-10,0.4,0.6,{"$f":"G1128*'B. Parameters'!D79","v":-1.1262018233537675E-11},0,{"$f":"J1128*'B. Parameters'!B79*0.035","v":0},{"$f":"F1128*'B. Parameters'!C79","v":-8.9979002950713049E-12},-2.025991852860898E-11,{"$f":"B954+'D. Compression energy'!C76","v":0},{"$f":"'B. Parameters'!J196","v":0},-2.025991852860898E-11]
[2088,-4.0745362639427185E-10,0,-4.0745362639427185E-10,0,-2.4447217583656312E-10,-1.6298145055770876E-10,0.4,0.6,{"$f":"G1129*'B. Parameters'!D80","v":-1.1262018233537675E-11},0,{"$f":"J1129*'B. Parameters'!B80*0.035","v":0},{"$f":"F1129*'B. Parameters'!C80","v":-8.9979002950713049E-12},-2.025991852860898E-11,{"$f":"B955+'D. Compression energy'!C77","v":0},{"$f":"'B. Parameters'!J197","v":0},-2.025991852860898E-11]
[2089,-4.0745362639427185E-10,0,-4.0745362639427185E-10,0,-2.4447217583656312E-10,-1.6298145055770876E-10,0.4,0.6,{"$f":"G1130*'B. Parameters'!D81","v":-1.1262018233537675E-11},0,{"$f":"J1130*'B. Parameters'!B81*0.035","v":0},{"$f":"F1130*'B. Parameters'!C81","v":-8.9979002950713049E-12},-2.025991852860898E-11,{"$f":"B956+'D. Compression energy'!C78","v":0},{"$f":"'B. Parameters'!J198","v":0},-2.025991852860898E-11]
[2090,-4.0745362639427185E-10,0,-4.0745362639427185E-10,0,-2.4447217583656312E-10,-1.6298145055770876E-10,0.4,0.6,{"$f":"G1131*'B. Parameters'!D82","v":-1.1262018233537675E-11},0,{"$f":"J1131*'B. Parameters'!B82*0.035","v":0},{"$f":"F1131*'B. Parameters'!C82","v":-8.9979002950713049E-12},-2.025991852860898E-11,{"$f":"B957+'D. Compression energy'!C79","v":0},{"$f":"'B. Parameters'!J199","v":0},-2.025991852860898E-11]
[2091,-4.0745362639427185E-10,0,-4.0745362639427185E-10,0,-2.4447217583656312E-10,-1.6298145055770876E-10,0.4,0.6,{"$f":"G1132*'B. Parameters'!D83","v":-1.1262018233537675E-11},0,{"$f":"J1132*'B. Parameters'!B83*0.035","v":0},{"$f":"F1132*'B. Parameters'!C83","v":-8.9979002950713049E-12},-2.025991852860898E-11,{"$f":"B958+'D. Compression energy'!C80","v":0},{"$f":"'B. Parameters'!J200","v":0},-2.025991852860898E-11]
[2092,-4.0745362639427185E-10,0,-4.0745362639427185E-10,0,-2.4447217583656312E-10,-1.6298145055770876E-10,0.4,0.6,{"$f":"G1133*'B. Parameters'!D84","v":-1.1262018233537675E-11},0,{"$f":"J1133*'B. Parameters'!B84*0.035","v":0},{"$f":"F1133*'B. Parameters'!C84","v":-8.9979002950713049E-12},-2.025991852860898E-11,{"$f":"B959+'D. Compression energy'!C81","v":0},{"$f":"'B. Parameters'!J201","v":0},-2.025991852860898E-11]
[2093,-4.0745362639427185E-10,0,-4.0745362639427185E-10,0,-2.4447217583656312E-10,-1.6298145055770876E-10,0.4,0.6,{"$f":"G1134*'B. Parameters'!D85","v":-1.1262018233537675E-11},0,{"$f":"J1134*'B. Parameters'!B85*0.035","v":0},{"$f":"F1134*'B. Parameters'!C85","v":-8.9979002950713049E-12},-2.025991852860898E-11,{"$f":"B960+'D. Compression energy'!C82","v":0},{"$f":"'B. Parameters'!J202","v":0},-2.025991852860898E-11]
[2094,-4.0745362639427185E-10,0,-4.0745362639427185E-10,0,-2.4447217583656312E-10,-1.6298145055770876E-10,0.4,0.6,{"$f":"G1135*'B. Parameters'!D86","v":-1.1262018233537675E-11},0,{"$f":"J1135*'B. Parameters'!B86*0.035","v":0},{"$f":"F1135*'B. Parameters'!C86","v":-8.9979002950713049E-12},-2.025991852860898E-11,{"$f":"B961+'D. Compression energy'!C83","v":0},{"$f":"'B. Parameters'!J203","v":0},-2.025991852860898E-11]
[2095,-4.0745362639427185E-10,0,-4.0745362639427185E-10,0,-2.4447217583656312E-10,-1.6298145055770876E-10,0.4,0.6,{"$f":"G1136*'B. Parameters'!D87","v":-1.1262018233537675E-11},0,{"$f":"J1136*'B. Parameters'!B87*0.035","v":0},{"$f":"F1136*'B. Parameters'!C87","v":-8.9979002950713049E-12},-2.025991852860898E-11,{"$f":"B962+'D. Compression energy'!C84","v":0},{"$f":"'B. Parameters'!J204","v":0},-2.025991852860898E-11]
[2096,-4.0745362639427185E-10,0,-4.0745362639427185E-10,0,-2.4447217583656312E-10,-1.6298145055770876E-10,0.4,0.6,{"$f":"G1137*'B. Parameters'!D88","v":-1.1262018233537675E-11},0,{"$f":"J1137*'B. Parameters'!B88*0.035","v":0},{"$f":"F1137*'B. Parameters'!C88","v":-8.9979002950713049E-12},-2.025991852860898E-11,{"$f":"B963+'D. Compression energy'!C85","v":0},{"$f":"'B. Parameters'!J205","v":0},-2.025991852860898E-11]
[2097,-4.0745362639427185E-10,0,-4.0745362639427185E-10,0,-2.4447217583656312E-10,-1.6298145055770876E-10,0.4,0.6,{"$f":"G1138*'B. Parameters'!D89","v":-1.1262018233537675E-11},0,{"$f":"J1138*'B. Parameters'!B89*0.035","v":0},{"$f":"F1138*'B. Parameters'!C89","v":-8.9979002950713049E-12},-2.025991852860898E-11,{"$f":"B964+'D. Compression energy'!C86","v":0},{"$f":"'B. Parameters'!J206","v":0},-2.025991852860898E-11]
[2098,-4.0745362639427185E-10,0,-4.0745362639427185E-10,0,-2.4447217583656312E-10,-1.6298145055770876E-10,0.4,0.6,{"$f":"G1139*'B. Parameters'!D90","v":-1.1262018233537675E-11},0,{"$f":"J1139*'B. Parameters'!B90*0.035","v":0},{"$f":"F1139*'B. Parameters'!C90","v":-8.9979002950713049E-12},-2.025991852860898E-11,{"$f":"B965+'D. Compression energy'!C87","v":0},{"$f":"'B. Parameters'!J207","v":0},-2.025991852860898E-11]
[2099,-4.0745362639427185E-10,0,-4.0745362639427185E-10,0,-2.4447217583656312E-10,-1.6298145055770876E-10,0.4,0.6,{"$f":"G1140*'B. Parameters'!D91","v":-1.1262018233537675E-11},0,{"$f":"J1140*'B. Parameters'!B91*0.035","v":0},{"$f":"F1140*'B. Parameters'!C91","v":-8.9979002950713049E-12},-2.025991852860898E-11,{"$f":"B966+'D. Compression energy'!C88","v":0},{"$f":"'B. Parameters'!J208","v":0},-2.025991852860898E-11]
[2100,-4.0745362639427185E-10,0,{"$f":"B1141+C1141","v":-4.0745362639427185E-10},0,-2.4447217583656312E-10,-1.6298145055770876E-10,{"$f":"IF(D1141<>0,MIN(G1141/D1141,0.4),0)","v":0.4},0.6,{"$f":"G1141*'B. Parameters'!D92","v":-1.1262018233537675E-11},0,{"$f":"J1141*'B. Parameters'!B92*0.035","v":0},{"$f":"F1141*'B. Parameters'!C92","v":-8.9979002950713049E-12},-2.025991852860898E-11,{"$f":"B967+'D. Compression energy'!C89","v":0},{"$f":"'B. Parameters'!J209","v":0},{"$f":"N1141+O1141-P1141","v":-2.025991852860898E-11}]

{"sheet":"Economic test","index":16,"n_rows":95,"n_cols":32,"rows_kept":95,"cut":false,"hidden":false,"merged":[[8,27,9,27],[1,22,1,25],[2,1,2,7],[8,4,8,6],[2,10,2,16],[8,13,8,14]]}
[]
[null,"a) Present value of binding commitments of network users for contracting capacity",null,null,null,null,null,null,null,null,null,null,null,null,null,null,null,null,null,null,null,null,"b) Present value of the estimated increase in the allowed revenue of the TSO associated with the incremental capacity included in the respective offer level",null,null,null,null,"c) f-factor",null,"Result: b) x c)",null,"Economic test\npassed?"]
[null,"(i) Sum of the respective estimated reference prices and a potential auction premium and a potential mandatory minimum premium multiplied by the amount of contracted incremental capacity",null,null,null,null,null,null,null,null,"(ii) Sum of a potential auction premium and a potential mandatory minimum premium multiplied by the amount of available capacity that was contracted in combination with the incremental capacity"]
[]
[null,"(please only fill out the yellow fields in columns C, F and G, please delete values in grey fields in columns C, F and G)",null,null,null,null,null,null,null,null,"(please only fill out the yellow fields in columns L, N and O, please delete values in grey fields in columns L, N and O)",null,null,null,null,null,null,null,null,null,"Present value related to the year",null,null,null,null,"Present value related to the year ",null,"f-factor ",null,"Result",null,"Passed?"]
[null,null,null,null,null,null,null,null,null,null,null,null,null,null,null,null,null,null,null,null,{"$f":"'A. General information'!D22","v":2019},null,null,null,null,{"$f":"'A. General information'!D22","v":2019}]
[]
[null,null,null,null,null,null,null,null,null,null,null,null,null,null,null,null,null,null,null,null,{"$f":"SUM(U11:U95)","v":215846924.23610419},null,null,null,null,{"$f":"SUM(Z11:Z95)","v":495579471.69762903},null,0.43,null,{"$f":"Z8*AB8","v":213099172.82998049},null,{"$f":"IF(U8>AD8,\"JA\",\"NEIN\")","v":"JA"}]
[null,null,"Amount of contracted incremental capacity","x","Sum of estimated reference prices and a potential auction premium and a potential mandatory minimum premium",null,null,"=","Result ",null,null,"Amount of available capacity that was contracted in combination with the incremental capacity","x","Sum of potential auction premium and potential mandatory minimum premium",null,"=","Result",null,"Overall result",null,null,null,null,null,null,null,null,"\nWorksheet f-factor is suggestion;\nalternatively please delete, enter own value and reasoning"]
[null,"Year ","Amount of contracted incremental capacity in kWh/h/a","x","Reference prices in €/kWh/h/a","Auction premium in €/kWh/h/a","Minimum premium in €/kWh/h/a","=","Result in €",null,"Year ","Amount of available capacity that was contracted in combination with the incremental capacity in kWh/h/a","x","Auction premium in €/kWh/h/a","Minimum premium in €/kWh/h/a","=","Result in €",null,"Overall result in €",null,"Present values related to year of binding capacity request in €",null,"Year","Overall costs per year in €",null,"Present values related to year of binding capacity request in € "]
[null,2016,0,"x",{"$f":"'A. General information'!$D$21","v":3.6524000000000001},null,null,null,null,null,2016,null,"x",null,null,"=",{"$f":"L11*(N11+O11)","v":0},null,{"$f":"I11+Q11","v":0},null,{"$f":"(1+VLOOKUP(B11,'B. Parameters'!$A$8:$E$92,5))^($U$6-B11)*S11","v":0},null,2016,{"$f":"Costs!Q1057","v":0},null,{"$f":"(1+VLOOKUP('Economic test'!W11,'B. Parameters'!$A$8:$E$92,5))^($Z$6-W11)*X11","v":0}]
[null,{"$f":"B11+1","v":2017},0,"x",{"$f":"'A. General information'!$D$21","v":3.6524000000000001},null,null,"=",{"$f":"C12*(E12+F12+G12)","v":0},null,2017,null,"x",null,null,"=",{"$f":"L12*(N12+O12)","v":0},null,0,null,{"$f":"(1+VLOOKUP(B12,'B. Parameters'!$A$8:$E$92,5))^($U$6-B12)*S12","v":0},null,{"$f":"W11+1","v":2017},{"$f":"Costs!Q1058","v":0},null,{"$f":"(1+VLOOKUP('Economic test'!W12,'B. Parameters'!$A$8:$E$92,5))^($Z$6-W12)*X12","v":0}]
[null,2018,0,"x",{"$f":"'A. General information'!$D$21","v":3.6524000000000001},null,null,"=",{"$f":"C13*(E13+F13+G13)","v":0},null,2018,null,"x",null,null,"=",{"$f":"L13*(N13+O13)","v":0},null,0,null,{"$f":"(1+VLOOKUP(B13,'B. Parameters'!$A$8:$E$92,5))^($U$6-B13)*S13","v":0},null,2018,{"$f":"Costs!Q1059","v":0},null,{"$f":"(1+VLOOKUP('Economic test'!W13,'B. Parameters'!$A$8:$E$92,5))^($Z$6-W13)*X13","v":0}]
[null,2019,0,"x",{"$f":"'A. General information'!$D$21","v":3.6524000000000001},null,null,"=",{"$f":"C14*(E14+F14+G14)","v":0},null,2019,null,"x",null,null,"=",{"$f":"L14*(N14+O14)","v":0},null,0,null,{"$f":"(1+VLOOKUP(B14,'B. Parameters'!$A$8:$E$92,5))^($U$6-B14)*S14","v":0},null,2019,{"$f":"Costs!Q1060","v":0},null,{"$f":"(1+VLOOKUP('Economic test'!W14,'B. Parameters'!$A$8:$E$92,5))^($Z$6-W14)*X14","v":0}]
[null,2020,0,"x",{"$f":"'A. General information'!$D$21","v":3.6524000000000001},null,null,"=",{"$f":"C15*(E15+F15+G15)","v":0},null,2020,null,"x",null,null,"=",{"$f":"L15*(N15+O15)","v":0},null,0,null,{"$f":"(1+VLOOKUP(B15,'B. Parameters'!$A$8:$E$92,5))^($U$6-B15)*S15","v":0},null,2020,{"$f":"Costs!Q1061","v":115292.4375},null,{"$f":"(1+VLOOKUP('Economic test'!W15,'B. Parameters'!$A$8:$E$92,5))^($Z$6-W15)*X15","v":109831.26981325792}]
[null,2021,0,"x",{"$f":"'A. General information'!$D$21","v":3.6524000000000001},null,null,"=",{"$f":"C16*(E16+F16+G16)","v":0},null,2021,null,"x",null,null,"=",{"$f":"L16*(N16+O16)","v":0},null,0,null,{"$f":"(1+VLOOKUP(B16,'B. Parameters'!$A$8:$E$92,5))^($U$6-B16)*S16","v":0},null,2021,{"$f":"Costs!Q1062","v":729047.0625},null,{"$f":"(1+VLOOKUP('Economic test'!W16,'B. Parameters'!$A$8:$E$92,5))^($Z$6-W16)*X16","v":661615.89700263669}]
[null,2022,0,"x",{"$f":"'A. General information'!$D$21","v":3.6524000000000001},null,null,"=",0,null,2022,null,"x",null,null,"=",0,null,0,null,{"$f":"(1+VLOOKUP(B17,'B. Parameters'!$A$8:$E$92,5))^($U$6-B17)*S17","v":0},null,2022,{"$f":"Costs!Q1063","v":3221358},null,{"$f":"(1+VLOOKUP('Economic test'!W17,'B. Parameters'!$A$8:$E$92,5))^($Z$6-W17)*X17","v":2784931.663625563}]
[null,2023,0,"x",{"$f":"'A. General information'!$D$21","v":3.6524000000000001},null,null,"=",0,null,2023,null,"x",null,null,"=",0,null,0,null,{"$f":"(1+VLOOKUP(B18,'B. Parameters'!$A$8:$E$92,5))^($U$6-B18)*S18","v":0},null,2023,{"$f":"Costs!Q1064","v":7887149.625},null,{"$f":"(1+VLOOKUP('Economic test'!W18,'B. Parameters'!$A$8:$E$92,5))^($Z$6-W18)*X18","v":6495623.0511036217}]
[null,2024,0,"x",{"$f":"'A. General information'!$D$21","v":3.6524000000000001},null,null,"=",0,null,2024,null,"x",null,null,"=",0,null,0,null,{"$f":"(1+VLOOKUP(B19,'B. Parameters'!$A$8:$E$92,5))^($U$6-B19)*S19","v":0},null,2024,{"$f":"Costs!Q1065","v":13849651.625},null,{"$f":"(1+VLOOKUP('Economic test'!W19,'B. Parameters'!$A$8:$E$92,5))^($Z$6-W19)*X19","v":10865876.571188604}]
[null,2025,659563.75,"x",{"$f":"'A. General information'!$D$21","v":3.6524000000000001},null,0,"=",2408990.6405000002,null,2025,2275768.1000000006,"x",null,0,"=",0,null,2408990.6405000002,null,{"$f":"(1+VLOOKUP(B20,'B. Parameters'!$A$8:$E$92,5))^($U$6-B20)*S20","v":1800471.347606576},null,2025,{"$f":"Costs!Q1066","v":23321494.631666668},null,{"$f":"(1+VLOOKUP('Economic test'!W20,'B. Parameters'!$A$8:$E$92,5))^($Z$6-W20)*X20","v":17430405.150499549}]
[null,2026,3297818.5,"x",{"$f":"'A. General information'!$D$21","v":3.6524000000000001},null,0,"=",12044952.2894,null,2026,9103072.4000000022,"x",null,0,"=",0,null,12044952.2894,null,{"$f":"(1+VLOOKUP(B21,'B. Parameters'!$A$8:$E$92,5))^($U$6-B21)*S21","v":8575932.804751223},null,2026,{"$f":"Costs!Q1067","v":31353184.930555552},null,{"$f":"(1+VLOOKUP('Economic test'!W21,'B. Parameters'!$A$8:$E$92,5))^($Z$6-W21)*X21","v":22323277.064037006}]
[null,2027,5276509,"x",{"$f":"'A. General information'!$D$21","v":3.6524000000000001},null,0,"=",19271921.4716,null,2027,9103072.4000000022,"x",null,0,"=",0,null,19271921.4716,null,{"$f":"(1+VLOOKUP(B22,'B. Parameters'!$A$8:$E$92,5))^($U$6-B22)*S22","v":13071531.879769266},null,2027,{"$f":"Costs!Q1068","v":37302089.769444443},null,{"$f":"(1+VLOOKUP('Economic test'!W22,'B. Parameters'!$A$8:$E$92,5))^($Z$6-W22)*X22","v":25300822.044229027}]
[null,2028,5276509,"x",{"$f":"'A. General information'!$D$21","v":3.6524000000000001},null,0,"=",19271921.4716,null,2028,9816744.4000000004,"x",null,0,"=",0,null,19271921.4716,null,{"$f":"(1+VLOOKUP(B23,'B. Parameters'!$A$8:$E$92,5))^($U$6-B23)*S23","v":12452360.067064594},null,2028,{"$f":"Costs!Q1069","v":37002645.30833333},null,{"$f":"(1+VLOOKUP('Economic test'!W23,'B. Parameters'!$A$8:$E$92,5))^($Z$6-W23)*X23","v":23908890.63616503}]
[null,2029,5276509,"x",{"$f":"'A. General information'!$D$21","v":3.6524000000000001},null,0,"=",19271921.4716,null,2029,11957760.399999999,"x",null,0,"=",0,null,19271921.4716,null,{"$f":"(1+VLOOKUP([6]Wirtschaftlichkeitsprüfung!B24,'B. Parameters'!$A$8:$E$92,5))^($U$6-B24)*S24","v":11862517.160656005},null,2029,{"$f":"Costs!Q1070","v":36703200.847222224},null,{"$f":"(1+VLOOKUP('Economic test'!W24,'B. Parameters'!$A$8:$E$92,5))^($Z$6-W24)*X24","v":22592057.078625612}]
[null,2030,6337381.75,"x",{"$f":"'A. General information'!$D$21","v":3.6524000000000001},null,0,"=",23146653.103700001,null,2030,11957760.399999999,"x",null,0,"=",0,null,23146653.103700001,null,{"$f":"(1+VLOOKUP([6]Wirtschaftlichkeitsprüfung!B25,'B. Parameters'!$A$8:$E$92,5))^($U$6-B25)*S25","v":13572667.905496951},null,2030,{"$f":"Costs!Q1071","v":41610715.716111109},null,{"$f":"(1+VLOOKUP('Economic test'!W25,'B. Parameters'!$A$8:$E$92,5))^($Z$6-W25)*X25","v":24399571.860112268}]
[null,2031,9520000,"x",{"$f":"'A. General information'!$D$21","v":3.6524000000000001},null,0,"=",34770848,null,2031,11957760.399999999,"x",null,0,"=",0,null,34770848,null,{"$f":"(1+VLOOKUP([6]Wirtschaftlichkeitsprüfung!B26,'B. Parameters'!$A$8:$E$92,5))^($U$6-B26)*S26","v":19423052.592032146},null,2031,{"$f":"Costs!Q1072","v":56932149.234999999},null,{"$f":"(1+VLOOKUP('Economic test'!W26,'B. Parameters'!$A$8:$E$92,5))^($Z$6-W26)*X26","v":31802391.726794459}]
[null,2032,9520000,"x",{"$f":"'A. General information'!$D$21","v":3.6524000000000001},null,0,"=",34770848,null,2032,10414499.908401126,"x",null,0,"=",0,null,34770848,null,{"$f":"(1+VLOOKUP([6]Wirtschaftlichkeitsprüfung!B27,'B. Parameters'!$A$8:$E$92,5))^($U$6-B27)*S27","v":18503022.193737391},null,2032,{"$f":"Costs!Q1073","v":56632704.773888886},null,{"$f":"(1+VLOOKUP('Economic test'!W27,'B. Parameters'!$A$8:$E$92,5))^($Z$6-W27)*X27","v":30136630.3554818}]
[null,2033,9520000,"x",{"$f":"'A. General information'!$D$21","v":3.6524000000000001},null,0,"=",34770848,null,2033,6142468.433604504,"x",null,0,"=",0,null,34770848,null,{"$f":"(1+VLOOKUP([6]Wirtschaftlichkeitsprüfung!B28,'B. Parameters'!$A$8:$E$92,5))^($U$6-B28)*S28","v":17626571.759496983},null,2033,{"$f":"Costs!Q1074","v":56333260.312777773},null,{"$f":"(1+VLOOKUP('Economic test'!W28,'B. Parameters'!$A$8:$E$92,5))^($Z$6-W28)*X28","v":28557320.642556686}]
[null,2034,9520000,"x",{"$f":"'A. General information'!$D$21","v":3.6524000000000001},null,0,"=",34770848,null,2034,8575107.6836045031,"x",null,0,"=",0,null,34770848,null,{"$f":"(1+VLOOKUP([6]Wirtschaftlichkeitsprüfung!B29,'B. Parameters'!$A$8:$E$92,5))^($U$6-B29)*S29","v":16791636.995271835},null,2034,{"$f":"Costs!Q1075","v":56033815.851666667},null,{"$f":"(1+VLOOKUP('Economic test'!W29,'B. Parameters'!$A$8:$E$92,5))^($Z$6-W29)*X29","v":27060010.018769041}]
[null,2035,9520000,"x",{"$f":"'A. General information'!$D$21","v":3.6524000000000001},null,0,"=",34770848,null,2035,13168876.575203374,"x",null,0,"=",0,null,34770848,null,{"$f":"(1+VLOOKUP([6]Wirtschaftlichkeitsprüfung!B30,'B. Parameters'!$A$8:$E$92,5))^($U$6-B30)*S30","v":15996251.388422463},null,2035,{"$f":"Costs!Q1076","v":55734371.390555553},null,{"$f":"(1+VLOOKUP('Economic test'!W30,'B. Parameters'!$A$8:$E$92,5))^($Z$6-W30)*X30","v":25640473.759484597}]
[null,2036,9520000,"x",{"$f":"'A. General information'!$D$21","v":3.6524000000000001},null,0,"=",34770848,null,2036,14715680,"x",null,0,"=",0,null,34770848,null,{"$f":"(1+VLOOKUP([6]Wirtschaftlichkeitsprüfung!B31,'B. Parameters'!$A$8:$E$92,5))^($U$6-B31)*S31","v":15238541.576003447},null,2036,{"$f":"Costs!Q1077","v":55434926.92944444},null,{"$f":"(1+VLOOKUP('Economic test'!W31,'B. Parameters'!$A$8:$E$92,5))^($Z$6-W31)*X31","v":24294703.389950462}]
[null,2037,9520000,"x",{"$f":"'A. General information'!$D$21","v":3.6524000000000001},null,0,"=",34770848,null,2037,14715680,"x",null,0,"=",0,null,34770848,null,{"$f":"(1+VLOOKUP([6]Wirtschaftlichkeitsprüfung!B32,'B. Parameters'!$A$8:$E$92,5))^($U$6-B32)*S32","v":14516722.932452386},null,2037,{"$f":"Costs!Q1078","v":55135482.468333334},null,{"$f":"(1+VLOOKUP('Economic test'!W32,'B. Parameters'!$A$8:$E$92,5))^($Z$6-W32)*X32","v":23018895.677778147}]
[null,2038,9520000,"x",{"$f":"'A. General information'!$D$21","v":3.6524000000000001},null,0,"=",34770848,null,2038,14715680,"x",null,0,"=",0,null,34770848,null,{"$f":"(1+VLOOKUP([6]Wirtschaftlichkeitsprüfung!B33,'B. Parameters'!$A$8:$E$92,5))^($U$6-B33)*S33","v":13829095.366280958},null,2038,{"$f":"Costs!Q1079","v":54836038.00722222},null,{"$f":"(1+VLOOKUP('Economic test'!W33,'B. Parameters'!$A$8:$E$92,5))^($Z$6-W33)*X33","v":21809442.183028821}]
[null,2039,9520000,"x",{"$f":"'A. General information'!$D$21","v":3.6524000000000001},null,0,"=",34770848,null,2039,14715680,"x",null,0,"=",0,null,34770848,null,{"$f":"(1+VLOOKUP([6]Wirtschaftlichkeitsprüfung!B34,'B. Parameters'!$A$8:$E$92,5))^($U$6-B34)*S34","v":13174039.315868216},null,2039,{"$f":"Costs!Q1080","v":54536593.546111107},null,{"$f":"(1+VLOOKUP('Economic test'!W34,'B. Parameters'!$A$8:$E$92,5))^($Z$6-W34)*X34","v":20662919.337773774}]
[null,2040,7140000,"x",{"$f":"'A. General information'!$D$21","v":3.6524000000000001},null,0,"=",26078136,null,2040,11036760,"x",null,0,"=",0,null,26078136,null,{"$f":"(1+VLOOKUP([6]Wirtschaftlichkeitsprüfung!B35,'B. Parameters'!$A$8:$E$92,5))^($U$6-B35)*S35","v":9412508.9511937182},null,2040,{"$f":"Costs!Q1081","v":49550885.935000002},null,{"$f":"(1+VLOOKUP('Economic test'!W35,'B. Parameters'!$A$8:$E$92,5))^($Z$6-W35)*X35","v":17884643.189327888}]
[null,2041,0,"x",{"$f":"'A. General information'!$D$21","v":3.6524000000000001},null,null,"=",0,null,2041,null,"x",null,null,"=",0,null,0,null,{"$f":"(1+VLOOKUP([6]Wirtschaftlichkeitsprüfung!B36,'B. Parameters'!$A$8:$E$92,5))^($U$6-B36)*S36","v":0},null,2041,{"$f":"Costs!Q1082","v":35192651.993888885},null,{"$f":"(1+VLOOKUP('Economic test'!W36,'B. Parameters'!$A$8:$E$92,5))^($Z$6-W36)*X36","v":12100575.756389504}]
[null,2042,{"$f":"C36","v":0},"x",{"$f":"'A. General information'!$D$21","v":3.6524000000000001},null,null,"=",0,null,2042,null,"x",null,null,"=",0,null,0,null,{"$f":"(1+VLOOKUP([6]Wirtschaftlichkeitsprüfung!B37,'B. Parameters'!$A$8:$E$92,5))^($U$6-B37)*S37","v":0},null,2042,{"$f":"Costs!Q1083","v":34893207.532777779},null,{"$f":"(1+VLOOKUP('Economic test'!W37,'B. Parameters'!$A$8:$E$92,5))^($Z$6-W37)*X37","v":11429312.756431937}]
[null,2043,0,"x",{"$f":"'A. General information'!$D$21","v":3.6524000000000001},null,null,"=",0,null,2043,null,"x",null,null,"=",0,null,0,null,{"$f":"(1+VLOOKUP([6]Wirtschaftlichkeitsprüfung!B38,'B. Parameters'!$A$8:$E$92,5))^($U$6-B38)*S38","v":0},null,2043,{"$f":"Costs!Q1084","v":34593763.071666665},null,{"$f":"(1+VLOOKUP('Economic test'!W38,'B. Parameters'!$A$8:$E$92,5))^($Z$6-W38)*X38","v":10794492.126723271}]
[null,2044,0,"x",{"$f":"'A. General information'!$D$21","v":3.6524000000000001},null,null,"=",0,null,2044,null,"x",null,null,"=",0,null,0,null,{"$f":"(1+VLOOKUP([6]Wirtschaftlichkeitsprüfung!B39,'B. Parameters'!$A$8:$E$92,5))^($U$6-B39)*S39","v":0},null,2044,{"$f":"Costs!Q1085","v":34294318.610555552},null,{"$f":"(1+VLOOKUP('Economic test'!W39,'B. Parameters'!$A$8:$E$92,5))^($Z$6-W39)*X39","v":10194167.594439413}]
[null,2045,0,"x",{"$f":"'A. General information'!$D$21","v":3.6524000000000001},null,null,"=",0,null,2045,null,"x",null,null,"=",0,null,0,null,{"$f":"(1+VLOOKUP([6]Wirtschaftlichkeitsprüfung!B40,'B. Parameters'!$A$8:$E$92,5))^($U$6-B40)*S40","v":0},null,2045,{"$f":"Costs!Q1086","v":33994874.149444446},null,{"$f":"(1+VLOOKUP('Economic test'!W40,'B. Parameters'!$A$8:$E$92,5))^($Z$6-W40)*X40","v":9626495.5020958763}]
[null,2046,0,"x",{"$f":"'A. General information'!$D$21","v":3.6524000000000001},null,null,"=",0,null,2046,null,"x",null,null,"=",0,null,0,null,{"$f":"(1+VLOOKUP([6]Wirtschaftlichkeitsprüfung!B41,'B. Parameters'!$A$8:$E$92,5))^($U$6-B41)*S41","v":0},null,2046,{"$f":"Costs!Q1087","v":33695429.688333333},null,{"$f":"(1+VLOOKUP('Economic test'!W41,'B. Parameters'!$A$8:$E$92,5))^($Z$6-W41)*X41","v":9089729.4530874565}]
[null,2047,0,"x",{"$f":"'A. General information'!$D$21","v":3.6524000000000001},null,null,"=",0,null,2047,null,"x",null,null,"=",0,null,0,null,{"$f":"(1+VLOOKUP([6]Wirtschaftlichkeitsprüfung!B42,'B. Parameters'!$A$8:$E$92,5))^($U$6-B42)*S42","v":0},null,2047,{"$f":"Costs!Q1088","v":33395985.227222219},null,{"$f":"(1+VLOOKUP('Economic test'!W42,'B. Parameters'!$A$8:$E$92,5))^($Z$6-W42)*X42","v":8582215.23424723}]
[null,2048,0,"x",{"$f":"'A. General information'!$D$21","v":3.6524000000000001},null,null,"=",0,null,2048,null,"x",null,null,"=",0,null,0,null,{"$f":"(1+VLOOKUP([6]Wirtschaftlichkeitsprüfung!B43,'B. Parameters'!$A$8:$E$92,5))^($U$6-B43)*S43","v":0},null,2048,{"$f":"Costs!Q1089","v":33096540.766111109},null,{"$f":"(1+VLOOKUP('Economic test'!W43,'B. Parameters'!$A$8:$E$92,5))^($Z$6-W43)*X43","v":8102386.0011950238}]
[null,2049,0,"x",{"$f":"'A. General information'!$D$21","v":3.6524000000000001},null,null,"=",0,null,2049,null,"x",null,null,"=",0,null,0,null,{"$f":"(1+VLOOKUP([6]Wirtschaftlichkeitsprüfung!B44,'B. Parameters'!$A$8:$E$92,5))^($U$6-B44)*S44","v":0},null,2049,{"$f":"Costs!Q1090","v":32797096.305},null,{"$f":"(1+VLOOKUP('Economic test'!W44,'B. Parameters'!$A$8:$E$92,5))^($Z$6-W44)*X44","v":7648757.7129721912}]
[null,2050,0,"x",{"$f":"'A. General information'!$D$21","v":3.6524000000000001},null,null,"=",0,null,2050,null,"x",null,null,"=",0,null,0,null,{"$f":"(1+VLOOKUP([6]Wirtschaftlichkeitsprüfung!B45,'B. Parameters'!$A$8:$E$92,5))^($U$6-B45)*S45","v":0},null,2050,{"$f":"Costs!Q1091","v":101768.96388888887},null,{"$f":"(1+VLOOKUP('Economic test'!W45,'B. Parameters'!$A$8:$E$92,5))^($Z$6-W45)*X45","v":22609.764856298018}]
[null,2051,0,"x",{"$f":"'A. General information'!$D$21","v":3.6524000000000001},null,null,"=",0,null,2051,null,"x",null,null,"=",0,null,0,null,{"$f":"(1+VLOOKUP([6]Wirtschaftlichkeitsprüfung!B46,'B. Parameters'!$A$8:$E$92,5))^($U$6-B46)*S46","v":0},null,2051,{"$f":"Costs!Q1092","v":100664.00277777776},null,{"$f":"(1+VLOOKUP('Economic test'!W46,'B. Parameters'!$A$8:$E$92,5))^($Z$6-W46)*X46","v":21304.928051826664}]
[null,2052,0,"x",{"$f":"'A. General information'!$D$21","v":3.6524000000000001},null,null,"=",0,null,2052,null,"x",null,null,"=",0,null,0,null,{"$f":"(1+VLOOKUP([6]Wirtschaftlichkeitsprüfung!B47,'B. Parameters'!$A$8:$E$92,5))^($U$6-B47)*S47","v":0},null,2052,{"$f":"Costs!Q1093","v":99559.041666666657},null,{"$f":"(1+VLOOKUP('Economic test'!W47,'B. Parameters'!$A$8:$E$92,5))^($Z$6-W47)*X47","v":20072.976099179315}]
[null,2053,0,"x",{"$f":"'A. General information'!$D$21","v":3.6524000000000001},null,null,"=",0,null,2053,null,"x",null,null,"=",0,null,0,null,{"$f":"(1+VLOOKUP([6]Wirtschaftlichkeitsprüfung!B48,'B. Parameters'!$A$8:$E$92,5))^($U$6-B48)*S48","v":0},null,2053,{"$f":"Costs!Q1094","v":98454.080555555527},null,{"$f":"(1+VLOOKUP('Economic test'!W48,'B. Parameters'!$A$8:$E$92,5))^($Z$6-W48)*X48","v":18909.931878018946}]
[null,2054,0,"x",{"$f":"'A. General information'!$D$21","v":3.6524000000000001},null,null,"=",0,null,2054,null,"x",null,null,"=",0,null,0,null,{"$f":"(1+VLOOKUP([6]Wirtschaftlichkeitsprüfung!B49,'B. Parameters'!$A$8:$E$92,5))^($U$6-B49)*S49","v":0},null,2054,{"$f":"Costs!Q1095","v":97349.119444444426},null,{"$f":"(1+VLOOKUP('Economic test'!W49,'B. Parameters'!$A$8:$E$92,5))^($Z$6-W49)*X49","v":17812.03151069906}]
[null,2055,0,"x",{"$f":"'A. General information'!$D$21","v":3.6524000000000001},null,null,"=",0,null,2055,null,"x",null,null,"=",0,null,0,null,{"$f":"(1+VLOOKUP([6]Wirtschaftlichkeitsprüfung!B50,'B. Parameters'!$A$8:$E$92,5))^($U$6-B50)*S50","v":0},null,2055,{"$f":"Costs!Q1096","v":96244.158333333311},null,{"$f":"(1+VLOOKUP('Economic test'!W50,'B. Parameters'!$A$8:$E$92,5))^($Z$6-W50)*X50","v":16775.713084080038}]
[null,2056,0,"x",{"$f":"'A. General information'!$D$21","v":3.6524000000000001},null,null,"=",0,null,2056,null,"x",null,null,"=",0,null,0,null,{"$f":"(1+VLOOKUP([6]Wirtschaftlichkeitsprüfung!B51,'B. Parameters'!$A$8:$E$92,5))^($U$6-B51)*S51","v":0},null,2056,{"$f":"Costs!Q1097","v":95139.197222222196},null,{"$f":"(1+VLOOKUP('Economic test'!W51,'B. Parameters'!$A$8:$E$92,5))^($Z$6-W51)*X51","v":15797.605961336993}]
[null,2057,0,"x",{"$f":"'A. General information'!$D$21","v":3.6524000000000001},null,null,"=",0,null,2057,null,"x",null,null,"=",0,null,0,null,{"$f":"(1+VLOOKUP([6]Wirtschaftlichkeitsprüfung!B52,'B. Parameters'!$A$8:$E$92,5))^($U$6-B52)*S52","v":0},null,2057,{"$f":"Costs!Q1098","v":94034.236111111095},null,{"$f":"(1+VLOOKUP('Economic test'!W52,'B. Parameters'!$A$8:$E$92,5))^($Z$6-W52)*X52","v":14874.52065317075}]
[null,2058,0,"x",{"$f":"'A. General information'!$D$21","v":3.6524000000000001},null,null,"=",0,null,2058,null,"x",null,null,"=",0,null,0,null,{"$f":"(1+VLOOKUP([6]Wirtschaftlichkeitsprüfung!B53,'B. Parameters'!$A$8:$E$92,5))^($U$6-B53)*S53","v":0},null,2058,{"$f":"Costs!Q1099","v":92929.274999999965},null,{"$f":"(1+VLOOKUP('Economic test'!W53,'B. Parameters'!$A$8:$E$92,5))^($Z$6-W53)*X53","v":14003.439219407797}]
[null,2059,0,"x",{"$f":"'A. General information'!$D$21","v":3.6524000000000001},null,null,"=",0,null,2059,null,"x",null,null,"=",0,null,0,null,{"$f":"(1+VLOOKUP([6]Wirtschaftlichkeitsprüfung!B54,'B. Parameters'!$A$8:$E$92,5))^($U$6-B54)*S54","v":0},null,2059,{"$f":"Costs!Q1100","v":91824.313888888864},null,{"$f":"(1+VLOOKUP('Economic test'!W54,'B. Parameters'!$A$8:$E$92,5))^($Z$6-W54)*X54","v":13181.506173468559}]
[null,2060,0,"x",{"$f":"'A. General information'!$D$21","v":3.6524000000000001},null,null,"=",0,null,2060,null,"x",null,null,"=",0,null,0,null,{"$f":"(1+VLOOKUP([6]Wirtschaftlichkeitsprüfung!B55,'B. Parameters'!$A$8:$E$92,5))^($U$6-B55)*S55","v":0},null,2060,{"$f":"Costs!Q1101","v":90719.352777777749},null,{"$f":"(1+VLOOKUP('Economic test'!W55,'B. Parameters'!$A$8:$E$92,5))^($Z$6-W55)*X55","v":12406.019863600312}]
[null,2061,0,"x",{"$f":"'A. General information'!$D$21","v":3.6524000000000001},null,null,"=",0,null,2061,null,"x",null,null,"=",0,null,0,null,{"$f":"(1+VLOOKUP([6]Wirtschaftlichkeitsprüfung!B56,'B. Parameters'!$A$8:$E$92,5))^($U$6-B56)*S56","v":0},null,2061,{"$f":"Costs!Q1102","v":89614.391666666634},null,{"$f":"(1+VLOOKUP('Economic test'!W56,'B. Parameters'!$A$8:$E$92,5))^($Z$6-W56)*X56","v":11674.424306116078}]
[null,2062,0,"x",{"$f":"'A. General information'!$D$21","v":3.6524000000000001},null,null,"=",0,null,2062,null,"x",null,null,"=",0,null,0,null,{"$f":"(1+VLOOKUP([6]Wirtschaftlichkeitsprüfung!B57,'B. Parameters'!$A$8:$E$92,5))^($U$6-B57)*S57","v":0},null,2062,{"$f":"Costs!Q1103","v":88509.430555555533},null,{"$f":"(1+VLOOKUP('Economic test'!W57,'B. Parameters'!$A$8:$E$92,5))^($Z$6-W57)*X57","v":10984.301447156231}]
[null,2063,0,"x",{"$f":"'A. General information'!$D$21","v":3.6524000000000001},null,null,"=",0,null,2063,null,"x",null,null,"=",0,null,0,null,{"$f":"(1+VLOOKUP([6]Wirtschaftlichkeitsprüfung!B58,'B. Parameters'!$A$8:$E$92,5))^($U$6-B58)*S58","v":0},null,2063,{"$f":"Costs!Q1104","v":87404.469444444418},null,{"$f":"(1+VLOOKUP('Economic test'!W58,'B. Parameters'!$A$8:$E$92,5))^($Z$6-W58)*X58","v":10333.363830700375}]
[null,2064,0,"x",{"$f":"'A. General information'!$D$21","v":3.6524000000000001},null,null,"=",0,null,2064,null,"x",null,null,"=",0,null,0,null,{"$f":"(1+VLOOKUP([6]Wirtschaftlichkeitsprüfung!B59,'B. Parameters'!$A$8:$E$92,5))^($U$6-B59)*S59","v":0},null,2064,{"$f":"Costs!Q1105","v":86299.508333333302},null,{"$f":"(1+VLOOKUP('Economic test'!W59,'B. Parameters'!$A$8:$E$92,5))^($Z$6-W59)*X59","v":9719.4476517054682}]
[null,2065,0,"x",{"$f":"'A. General information'!$D$21","v":3.6524000000000001},null,null,"=",0,null,2065,null,"x",null,null,"=",0,null,0,null,{"$f":"(1+VLOOKUP([6]Wirtschaftlichkeitsprüfung!B60,'B. Parameters'!$A$8:$E$92,5))^($U$6-B60)*S60","v":0},null,2065,{"$f":"Costs!Q1106","v":85194.547222222187},null,{"$f":"(1+VLOOKUP('Economic test'!W60,'B. Parameters'!$A$8:$E$92,5))^($Z$6-W60)*X60","v":9140.5061743358274}]
[null,2066,0,"x",{"$f":"'A. General information'!$D$21","v":3.6524000000000001},null,null,"=",0,null,2066,null,"x",null,null,"=",0,null,0,null,{"$f":"(1+VLOOKUP([6]Wirtschaftlichkeitsprüfung!B61,'B. Parameters'!$A$8:$E$92,5))^($U$6-B61)*S61","v":0},null,2066,{"$f":"Costs!Q1107","v":84089.586111111072},null,{"$f":"(1+VLOOKUP('Economic test'!W61,'B. Parameters'!$A$8:$E$92,5))^($Z$6-W61)*X61","v":8594.6034962845479}]
[null,2067,0,"x",{"$f":"'A. General information'!$D$21","v":3.6524000000000001},null,null,"=",0,null,2067,null,"x",null,null,"=",0,null,0,null,{"$f":"(1+VLOOKUP([6]Wirtschaftlichkeitsprüfung!B62,'B. Parameters'!$A$8:$E$92,5))^($U$6-B62)*S62","v":0},null,2067,{"$f":"Costs!Q1108","v":82984.624999999971},null,{"$f":"(1+VLOOKUP('Economic test'!W62,'B. Parameters'!$A$8:$E$92,5))^($Z$6-W62)*X62","v":8079.9086411667222}]
[null,2068,0,"x",{"$f":"'A. General information'!$D$21","v":3.6524000000000001},null,null,"=",0,null,2068,null,"x",null,null,"=",0,null,0,null,{"$f":"(1+VLOOKUP([6]Wirtschaftlichkeitsprüfung!B63,'B. Parameters'!$A$8:$E$92,5))^($U$6-B63)*S63","v":0},null,2068,{"$f":"Costs!Q1109","v":81879.663888888841},null,{"$f":"(1+VLOOKUP('Economic test'!W63,'B. Parameters'!$A$8:$E$92,5))^($Z$6-W63)*X63","v":7594.6899618954267}]
[null,2069,0,"x",{"$f":"'A. General information'!$D$21","v":3.6524000000000001},null,null,"=",0,null,2069,null,"x",null,null,"=",0,null,0,null,{"$f":"(1+VLOOKUP([6]Wirtschaftlichkeitsprüfung!B64,'B. Parameters'!$A$8:$E$92,5))^($U$6-B64)*S64","v":0},null,2069,{"$f":"Costs!Q1110","v":80774.702777777755},null,{"$f":"(1+VLOOKUP('Economic test'!W64,'B. Parameters'!$A$8:$E$92,5))^($Z$6-W64)*X64","v":7137.3098388342678}]
[null,2070,0,"x",{"$f":"'A. General information'!$D$21","v":3.6524000000000001},null,null,"=",0,null,2070,null,"x",null,null,"=",0,null,0,null,{"$f":"(1+VLOOKUP([6]Wirtschaftlichkeitsprüfung!B65,'B. Parameters'!$A$8:$E$92,5))^($U$6-B65)*S65","v":0},null,2070,{"$f":"Costs!Q1111","v":-2.025991852860898E-11},null,{"$f":"(1+VLOOKUP('Economic test'!W65,'B. Parameters'!$A$8:$E$92,5))^($Z$6-W65)*X65","v":-1.7053835126199617E-12}]
[null,2071,0,"x",{"$f":"'A. General information'!$D$21","v":3.6524000000000001},null,null,"=",0,null,2071,null,"x",null,null,"=",0,null,0,null,{"$f":"(1+VLOOKUP([6]Wirtschaftlichkeitsprüfung!B66,'B. Parameters'!$A$8:$E$92,5))^($U$6-B66)*S66","v":0},null,2071,{"$f":"Costs!Q1112","v":-2.025991852860898E-11},null,{"$f":"(1+VLOOKUP('Economic test'!W66,'B. Parameters'!$A$8:$E$92,5))^($Z$6-W66)*X66","v":-1.624602972850189E-12}]
[null,2072,0,"x",{"$f":"'A. General information'!$D$21","v":3.6524000000000001},null,null,"=",0,null,2072,null,"x",null,null,"=",0,null,0,null,{"$f":"(1+VLOOKUP([6]Wirtschaftlichkeitsprüfung!B67,'B. Parameters'!$A$8:$E$92,5))^($U$6-B67)*S67","v":0},null,2072,{"$f":"Costs!Q1113","v":-2.025991852860898E-11},null,{"$f":"(1+VLOOKUP('Economic test'!W67,'B. Parameters'!$A$8:$E$92,5))^($Z$6-W67)*X67","v":-1.5476488425403446E-12}]
[null,2073,0,"x",{"$f":"'A. General information'!$D$21","v":3.6524000000000001},null,null,"=",0,null,2073,null,"x",null,null,"=",0,null,0,null,{"$f":"(1+VLOOKUP([6]Wirtschaftlichkeitsprüfung!B68,'B. Parameters'!$A$8:$E$92,5))^($U$6-B68)*S68","v":0},null,2073,{"$f":"Costs!Q1114","v":-2.025991852860898E-11},null,{"$f":"(1+VLOOKUP('Economic test'!W68,'B. Parameters'!$A$8:$E$92,5))^($Z$6-W68)*X68","v":-1.4743398724762405E-12}]
[null,2074,0,"x",{"$f":"'A. General information'!$D$21","v":3.6524000000000001},null,null,"=",0,null,2074,null,"x",null,null,"=",0,null,0,null,{"$f":"(1+VLOOKUP([6]Wirtschaftlichkeitsprüfung!B69,'B. Parameters'!$A$8:$E$92,5))^($U$6-B69)*S69","v":0},null,2074,{"$f":"Costs!Q1115","v":-2.025991852860898E-11},null,{"$f":"(1+VLOOKUP('Economic test'!W69,'B. Parameters'!$A$8:$E$92,5))^($Z$6-W69)*X69","v":-1.4045033988494023E-12}]
[null,2075,0,"x",{"$f":"'A. General information'!$D$21","v":3.6524000000000001},null,null,"=",0,null,2075,null,"x",null,null,"=",0,null,0,null,{"$f":"(1+VLOOKUP([6]Wirtschaftlichkeitsprüfung!B70,'B. Parameters'!$A$8:$E$92,5))^($U$6-B70)*S70","v":0},null,2075,{"$f":"Costs!Q1116","v":-2.025991852860898E-11},null,{"$f":"(1+VLOOKUP('Economic test'!W70,'B. Parameters'!$A$8:$E$92,5))^($Z$6-W70)*X70","v":-1.3379749365839066E-12}]
[null,2076,0,"x",{"$f":"'A. General information'!$D$21","v":3.6524000000000001},null,null,"=",0,null,2076,null,"x",null,null,"=",0,null,0,null,{"$f":"(1+VLOOKUP([6]Wirtschaftlichkeitsprüfung!B71,'B. Parameters'!$A$8:$E$92,5))^($U$6-B71)*S71","v":0},null,2076,{"$f":"Costs!Q1117","v":-2.025991852860898E-11},null,{"$f":"(1+VLOOKUP('Economic test'!W71,'B. Parameters'!$A$8:$E$92,5))^($Z$6-W71)*X71","v":-1.2745977919264973E-12}]
[null,2077,0,"x",{"$f":"'A. General information'!$D$21","v":3.6524000000000001},null,null,"=",0,null,2077,null,"x",null,null,"=",0,null,0,null,{"$f":"(1+VLOOKUP([6]Wirtschaftlichkeitsprüfung!B72,'B. Parameters'!$A$8:$E$92,5))^($U$6-B72)*S72","v":0},null,2077,{"$f":"Costs!Q1118","v":-2.025991852860898E-11},null,{"$f":"(1+VLOOKUP('Economic test'!W72,'B. Parameters'!$A$8:$E$92,5))^($Z$6-W72)*X72","v":-1.2142226933875168E-12}]
[null,2078,0,"x",{"$f":"'A. General information'!$D$21","v":3.6524000000000001},null,null,"=",0,null,2078,null,"x",null,null,"=",0,null,0,null,{"$f":"(1+VLOOKUP([6]Wirtschaftlichkeitsprüfung!B73,'B. Parameters'!$A$8:$E$92,5))^($U$6-B73)*S73","v":0},null,2078,{"$f":"Costs!Q1119","v":-2.025991852860898E-11},null,{"$f":"(1+VLOOKUP('Economic test'!W73,'B. Parameters'!$A$8:$E$92,5))^($Z$6-W73)*X73","v":-1.1567074401634113E-12}]
[null,2079,0,"x",{"$f":"'A. General information'!$D$21","v":3.6524000000000001},null,null,"=",0,null,2079,null,"x",null,null,"=",0,null,0,null,{"$f":"(1+VLOOKUP([6]Wirtschaftlichkeitsprüfung!B74,'B. Parameters'!$A$8:$E$92,5))^($U$6-B74)*S74","v":0},null,2079,{"$f":"Costs!Q1120","v":-2.025991852860898E-11},null,{"$f":"(1+VLOOKUP('Economic test'!W74,'B. Parameters'!$A$8:$E$92,5))^($Z$6-W74)*X74","v":-1.1019165672127501E-12}]
[null,2080,0,"x",{"$f":"'A. General information'!$D$21","v":3.6524000000000001},null,null,"=",0,null,2080,null,"x",null,null,"=",0,null,{"$f":"I75+Q75","v":0},null,{"$f":"(1+VLOOKUP([6]Wirtschaftlichkeitsprüfung!B75,'B. Parameters'!$A$8:$E$92,5))^($U$6-B75)*S75","v":0},null,2080,{"$f":"Costs!Q1121","v":-2.025991852860898E-11},null,{"$f":"(1+VLOOKUP('Economic test'!W75,'B. Parameters'!$A$8:$E$92,5))^($Z$6-W75)*X75","v":-1.049721026196905E-12}]
[null,{"$f":"B75+1","v":2081},0,"x",{"$f":"'A. General information'!$D$21","v":3.6524000000000001},null,null,"=",0,null,2081,null,"x",null,null,"=",0,null,0,null,{"$f":"(1+VLOOKUP([6]Wirtschaftlichkeitsprüfung!B76,'B. Parameters'!$A$8:$E$92,5))^($U$6-B76)*S76","v":0},null,{"$f":"W75+1","v":2081},{"$f":"Costs!Q1122","v":-2.025991852860898E-11},null,{"$f":"(1+VLOOKUP('Economic test'!W76,'B. Parameters'!$A$8:$E$92,5))^($Z$6-W76)*X76","v":-9.9999788153392345E-13}]
[null,2082,0,"x",{"$f":"'A. General information'!$D$21","v":3.6524000000000001},null,null,"=",0,null,2082,null,"x",null,null,"=",0,null,0,null,{"$f":"(1+VLOOKUP([6]Wirtschaftlichkeitsprüfung!B77,'B. Parameters'!$A$8:$E$92,5))^($U$6-B77)*S77","v":0},null,2082,{"$f":"Costs!Q1123","v":-2.025991852860898E-11},null,{"$f":"(1+VLOOKUP('Economic test'!W77,'B. Parameters'!$A$8:$E$92,5))^($Z$6-W77)*X77","v":-9.5263002084970808E-13}]
[null,2083,0,"x",{"$f":"'A. General information'!$D$21","v":3.6524000000000001},null,null,"=",0,null,2083,null,"x",null,null,"=",0,null,0,null,{"$f":"(1+VLOOKUP([6]Wirtschaftlichkeitsprüfung!B78,'B. Parameters'!$A$8:$E$92,5))^($U$6-B78)*S78","v":0},null,2083,{"$f":"Costs!Q1124","v":-2.025991852860898E-11},null,{"$f":"(1+VLOOKUP('Economic test'!W78,'B. Parameters'!$A$8:$E$92,5))^($Z$6-W78)*X78","v":-9.0750587914453492E-13}]
[null,2084,0,"x",{"$f":"'A. General information'!$D$21","v":3.6524000000000001},null,null,"=",0,null,2084,null,"x",null,null,"=",0,null,0,null,{"$f":"(1+VLOOKUP([6]Wirtschaftlichkeitsprüfung!B79,'B. Parameters'!$A$8:$E$92,5))^($U$6-B79)*S79","v":0},null,2084,{"$f":"Costs!Q1125","v":-2.025991852860898E-11},null,{"$f":"(1+VLOOKUP('Economic test'!W79,'B. Parameters'!$A$8:$E$92,5))^($Z$6-W79)*X79","v":-8.6451917602523803E-13}]
[null,2085,0,"x",{"$f":"'A. General information'!$D$21","v":3.6524000000000001},null,null,"=",{"$f":"C80*(E80+F80+G80)","v":0},null,2085,null,"x",null,null,"=",{"$f":"L80*(N80+O80)","v":0},null,0,null,{"$f":"(1+VLOOKUP([6]Wirtschaftlichkeitsprüfung!B80,'B. Parameters'!$A$8:$E$92,5))^($U$6-B80)*S80","v":0},null,2085,{"$f":"Costs!Q1126","v":-2.025991852860898E-11},null,{"$f":"(1+VLOOKUP('Economic test'!W80,'B. Parameters'!$A$8:$E$92,5))^($Z$6-W80)*X80","v":-8.2356866538417435E-13}]
[null,2086,{"$f":"C80","v":0},"x",{"$f":"'A. General information'!$D$21","v":3.6524000000000001},null,null,"=",0,null,2086,null,"x",null,null,"=",0,null,0,null,{"$f":"(1+VLOOKUP([6]Wirtschaftlichkeitsprüfung!B81,'B. Parameters'!$A$8:$E$92,5))^($U$6-B81)*S81","v":0},null,2086,{"$f":"Costs!Q1127","v":-2.025991852860898E-11},null,{"$f":"(1+VLOOKUP('Economic test'!W81,'B. Parameters'!$A$8:$E$92,5))^($Z$6-W81)*X81","v":-7.845578969353821E-13}]
[null,2087,0,"x",{"$f":"'A. General information'!$D$21","v":3.6524000000000001},null,null,"=",0,null,2087,null,"x",null,null,"=",0,null,0,null,{"$f":"(1+VLOOKUP([6]Wirtschaftlichkeitsprüfung!B82,'B. Parameters'!$A$8:$E$92,5))^($U$6-B82)*S82","v":0},null,2087,{"$f":"Costs!Q1128","v":-2.025991852860898E-11},null,{"$f":"(1+VLOOKUP('Economic test'!W82,'B. Parameters'!$A$8:$E$92,5))^($Z$6-W82)*X82","v":-7.4739498904628648E-13}]
[null,2088,0,"x",{"$f":"'A. General information'!$D$21","v":3.6524000000000001},null,null,"=",0,null,2088,null,"x",null,null,"=",0,null,0,null,{"$f":"(1+VLOOKUP([6]Wirtschaftlichkeitsprüfung!B83,'B. Parameters'!$A$8:$E$92,5))^($U$6-B83)*S83","v":0},null,2088,{"$f":"Costs!Q1129","v":-2.025991852860898E-11},null,{"$f":"(1+VLOOKUP('Economic test'!W83,'B. Parameters'!$A$8:$E$92,5))^($Z$6-W83)*X83","v":-7.1199241232990367E-13}]
[null,2089,0,"x",{"$f":"'A. General information'!$D$21","v":3.6524000000000001},null,null,"=",0,null,2089,null,"x",null,null,"=",0,null,0,null,{"$f":"(1+VLOOKUP([6]Wirtschaftlichkeitsprüfung!B84,'B. Parameters'!$A$8:$E$92,5))^($U$6-B84)*S84","v":0},null,2089,{"$f":"Costs!Q1130","v":-2.025991852860898E-11},null,{"$f":"(1+VLOOKUP('Economic test'!W84,'B. Parameters'!$A$8:$E$92,5))^($Z$6-W84)*X84","v":-6.7826678348784188E-13}]
[null,2090,0,"x",{"$f":"'A. General information'!$D$21","v":3.6524000000000001},null,null,"=",0,null,2090,null,"x",null,null,"=",0,null,0,null,{"$f":"(1+VLOOKUP([6]Wirtschaftlichkeitsprüfung!B85,'B. Parameters'!$A$8:$E$92,5))^($U$6-B85)*S85","v":0},null,2090,{"$f":"Costs!Q1131","v":-2.025991852860898E-11},null,{"$f":"(1+VLOOKUP('Economic test'!W85,'B. Parameters'!$A$8:$E$92,5))^($Z$6-W85)*X85","v":-6.461386689185382E-13}]
[null,2091,0,"x",{"$f":"'A. General information'!$D$21","v":3.6524000000000001},null,null,"=",0,null,2091,null,"x",null,null,"=",0,null,0,null,{"$f":"(1+VLOOKUP([6]Wirtschaftlichkeitsprüfung!B86,'B. Parameters'!$A$8:$E$92,5))^($U$6-B86)*S86","v":0},null,2091,{"$f":"Costs!Q1132","v":-2.025991852860898E-11},null,{"$f":"(1+VLOOKUP('Economic test'!W86,'B. Parameters'!$A$8:$E$92,5))^($Z$6-W86)*X86","v":-6.1553239762817327E-13}]
[null,2092,0,"x",{"$f":"'A. General information'!$D$21","v":3.6524000000000001},null,null,"=",0,null,2092,null,"x",null,null,"=",0,null,0,null,{"$f":"(1+VLOOKUP([6]Wirtschaftlichkeitsprüfung!B87,'B. Parameters'!$A$8:$E$92,5))^($U$6-B87)*S87","v":0},null,2092,{"$f":"Costs!Q1133","v":-2.025991852860898E-11},null,{"$f":"(1+VLOOKUP('Economic test'!W87,'B. Parameters'!$A$8:$E$92,5))^($Z$6-W87)*X87","v":-5.8637588300361373E-13}]
[null,2093,0,"x",{"$f":"'A. General information'!$D$21","v":3.6524000000000001},null,null,"=",0,null,2093,null,"x",null,null,"=",0,null,0,null,{"$f":"(1+VLOOKUP([6]Wirtschaftlichkeitsprüfung!B88,'B. Parameters'!$A$8:$E$92,5))^($U$6-B88)*S88","v":0},null,2093,{"$f":"Costs!Q1134","v":-2.025991852860898E-11},null,{"$f":"(1+VLOOKUP('Economic test'!W88,'B. Parameters'!$A$8:$E$92,5))^($Z$6-W88)*X88","v":-5.5860045302760879E-13}]
[null,2094,0,"x",{"$f":"'A. General information'!$D$21","v":3.6524000000000001},null,null,"=",0,null,2094,null,"x",null,null,"=",0,null,0,null,{"$f":"(1+VLOOKUP([6]Wirtschaftlichkeitsprüfung!B89,'B. Parameters'!$A$8:$E$92,5))^($U$6-B89)*S89","v":0},null,2094,{"$f":"Costs!Q1135","v":-2.025991852860898E-11},null,{"$f":"(1+VLOOKUP('Economic test'!W89,'B. Parameters'!$A$8:$E$92,5))^($Z$6-W89)*X89","v":-5.32140688536344E-13}]
[null,2095,0,"x",{"$f":"'A. General information'!$D$21","v":3.6524000000000001},null,null,"=",0,null,2095,null,"x",null,null,"=",0,null,0,null,{"$f":"(1+VLOOKUP([6]Wirtschaftlichkeitsprüfung!B90,'B. Parameters'!$A$8:$E$92,5))^($U$6-B90)*S90","v":0},null,2095,{"$f":"Costs!Q1136","v":-2.025991852860898E-11},null,{"$f":"(1+VLOOKUP('Economic test'!W90,'B. Parameters'!$A$8:$E$92,5))^($Z$6-W90)*X90","v":-5.0693426913840773E-13}]
[null,2096,0,"x",{"$f":"'A. General information'!$D$21","v":3.6524000000000001},null,null,"=",0,null,2096,null,"x",null,null,"=",0,null,0,null,{"$f":"(1+VLOOKUP([6]Wirtschaftlichkeitsprüfung!B91,'B. Parameters'!$A$8:$E$92,5))^($U$6-B91)*S91","v":0},null,2096,{"$f":"Costs!Q1137","v":-2.025991852860898E-11},null,{"$f":"(1+VLOOKUP('Economic test'!W91,'B. Parameters'!$A$8:$E$92,5))^($Z$6-W91)*X91","v":-4.8292182643225987E-13}]
[null,2097,0,"x",{"$f":"'A. General information'!$D$21","v":3.6524000000000001},null,null,"=",0,null,2097,null,"x",null,null,"=",0,null,0,null,{"$f":"(1+VLOOKUP([6]Wirtschaftlichkeitsprüfung!B92,'B. Parameters'!$A$8:$E$92,5))^($U$6-B92)*S92","v":0},null,2097,{"$f":"Costs!Q1138","v":-2.025991852860898E-11},null,{"$f":"(1+VLOOKUP('Economic test'!W92,'B. Parameters'!$A$8:$E$92,5))^($Z$6-W92)*X92","v":-4.6004680417649127E-13}]
[null,2098,0,"x",{"$f":"'A. General information'!$D$21","v":3.6524000000000001},null,null,"=",0,null,2098,null,"x",null,null,"=",0,null,0,null,{"$f":"(1+VLOOKUP([6]Wirtschaftlichkeitsprüfung!B93,'B. Parameters'!$A$8:$E$92,5))^($U$6-B93)*S93","v":0},null,2098,{"$f":"Costs!Q1139","v":-2.025991852860898E-11},null,{"$f":"(1+VLOOKUP('Economic test'!W93,'B. Parameters'!$A$8:$E$92,5))^($Z$6-W93)*X93","v":-4.3825532508353158E-13}]
[null,2099,0,"x",{"$f":"'A. General information'!$D$21","v":3.6524000000000001},null,null,"=",0,null,2099,null,"x",null,null,"=",0,null,0,null,{"$f":"(1+VLOOKUP([6]Wirtschaftlichkeitsprüfung!B94,'B. Parameters'!$A$8:$E$92,5))^($U$6-B94)*S94","v":0},null,2099,{"$f":"Costs!Q1140","v":-2.025991852860898E-11},null,{"$f":"(1+VLOOKUP('Economic test'!W94,'B. Parameters'!$A$8:$E$92,5))^($Z$6-W94)*X94","v":-4.1749606392306891E-13}]
[null,2100,0,"x",{"$f":"'A. General information'!$D$21","v":3.6524000000000001},null,null,"=",0,null,2100,null,"x",null,null,"=",0,null,0,null,{"$f":"(1+VLOOKUP([6]Wirtschaftlichkeitsprüfung!B95,'B. Parameters'!$A$8:$E$92,5))^($U$6-B95)*S95","v":0},null,2100,{"$f":"Costs!Q1141","v":-2.025991852860898E-11},null,{"$f":"(1+VLOOKUP('Economic test'!W95,'B. Parameters'!$A$8:$E$92,5))^($Z$6-W95)*X95","v":-3.9772012663630044E-13}]

{"sheet":"f-factor","index":17,"n_rows":95,"n_cols":27,"rows_kept":95,"cut":false,"hidden":false,"merged":[[12,22,14,26],[1,1,1,14],[2,10,3,16],[3,26,4,26],[8,4,8,6],[3,22,4,22],[3,24,4,24],[2,1,3,8]]}
[]
[null,"Suggested calculation of the f-factor from Article 23(1) NC CAM",null,null,null,null,null,null,null,null,null,null,null,null,null,null,null,null,null,null,null,null,"Suggested f-factor"]
[null,"i) Income from incremental capacity after the period of binding capacity requests and income from incremental capacity which is set aside",null,null,null,null,null,null,null,null,"ii) Income from auction proceeds for existing capacity which was contracted in combination with the incremental capacity after the period of binding capacity requests"]
[null,null,null,null,null,null,null,null,null,null,null,null,null,null,null,null,null,null,null,null,null,null,"Present value from charges from binding capacity requests related to the year",null,"Present value from later charges and set aside capacity related to the year",null,"Total present value related to the year"]
[null,"(please only fill out the yellow and red fields in columns C and F, values in grey fields in columns C and F must be 0)",null,null,null,null,null,null,null,null,"(please only fill out the yellow fields in columns L and N, values in grey fields in columns L and N must be 0)",null,null,null,null,null,null,null,null,null,"Present value related to the year"]
[null,null,null,null,null,null,null,null,null,null,null,null,null,null,null,null,null,null,null,null,{"$f":"'A. General information'!D22","v":2019},null,{"$f":"U6","v":2019},null,{"$f":"U6","v":2019},null,{"$f":"U6","v":2019}]
[null,"Explanation:  Income after the period of binding capacity requests are yellow, income from set aside capacity red"]
[null,null,null,null,null,null,null,null,null,null,null,null,null,null,null,null,null,null,null,null,{"$f":"SUM(U11:U95)","v":126574775.45105638},null,{"$f":"'Economic test'!U8","v":215846924.23610419},null,{"$f":"U8","v":126574775.45105638},null,{"$f":"W8+Y8","v":342421699.68716055}]
[null,null,"Amount of incremental capacity likely to be sold after the period of binding capacity request/from the set aside capacity ","x","Sum of estimated reference prices and a potential auction premium ",null,null,"=","Result ",null,null,"Amount of existing capacity likely to be sold after the period of binding capacity requests","x","Potential auction premium ",null,"=","Result",null,"Overall result"]
[null,"Year ","Amount of incremental capacity likely to be sold in kWh/h/a","x","Reference prices in €/kWh/h/a","Auction premium in €/kWh/h/a","Minimum premium in €/kWh/h/a","=","Result in €",null,"Year ","Amount of existing capacity likely to be sold in kWh/h/a","x","Auction premium in €/kWh/h/a","Minimum premium in €/kWh/h/a","=","Result in €",null,"Overall result in €",null,"Present values related to year of binding capacity request in € ",null,{"$f":"\"=> Vorschlag f-Faktor aus Art. 23 NC CAM (1) a), c) und d) :\"","v":"=> Vorschlag f-Faktor aus Art. 23 NC CAM (1) a), c) und d) :"},null,{"$f":"W8/AA8","v":0.63035410557597205}]
[null,2016,0,"x",{"$f":"'A. General information'!$D$21","v":3.6524000000000001},null,null,"=",{"$f":"C11*(E11+F11+G11)","v":0},null,2016,null,"x",null,null,"=",{"$f":"L11*(N11+O11)","v":0},null,{"$f":"I11+Q11","v":0},null,{"$f":"(1+VLOOKUP(B11,'B. Parameters'!$A$8:$E$92,5))^($U$6-B11)*S11","v":0}]
[null,{"$f":"B11+1","v":2017},0,"x",{"$f":"'A. General information'!$D$21","v":3.6524000000000001},null,null,"=",{"$f":"C12*(E12+F12+G12)","v":0},null,2017,null,"x",null,null,"=",{"$f":"L12*(N12+O12)","v":0},null,0,null,{"$f":"(1+VLOOKUP(B12,'B. Parameters'!$A$8:$E$92,5))^($U$6-B12)*S12","v":0}]
[null,2018,0,"x",{"$f":"'A. General information'!$D$21","v":3.6524000000000001},null,null,"=",{"$f":"C13*(E13+F13+G13)","v":0},null,2018,null,"x",null,null,"=",{"$f":"L13*(N13+O13)","v":0},null,0,null,{"$f":"(1+VLOOKUP(B13,'B. Parameters'!$A$8:$E$92,5))^($U$6-B13)*S13","v":0},null,"Result suggestion for f-factor from (a), (c) and (d) Present value from charges from binding capacity requests/Sum of present values from binding capacity requests and present value of revenue after the period of binding capacity requests and present value of income from the capacity set aside\n"]
[null,2019,0,"x",{"$f":"'A. General information'!$D$21","v":3.6524000000000001},null,null,"=",{"$f":"C14*(E14+F14+G14)","v":0},null,2019,null,"x",null,null,"=",{"$f":"L14*(N14+O14)","v":0},null,0,null,{"$f":"(1+VLOOKUP(B14,'B. Parameters'!$A$8:$E$92,5))^($U$6-B14)*S14","v":0}]
[null,2020,0,"x",{"$f":"'A. General information'!$D$21","v":3.6524000000000001},null,null,"=",{"$f":"C15*(E15+F15+G15)","v":0},null,2020,null,"x",null,null,"=",{"$f":"L15*(N15+O15)","v":0},null,0,null,{"$f":"(1+VLOOKUP(B15,'B. Parameters'!$A$8:$E$92,5))^($U$6-B15)*S15","v":0}]
[null,2021,0,"x",{"$f":"'A. General information'!$D$21","v":3.6524000000000001},null,null,"=",{"$f":"C16*(E16+F16+G16)","v":0},null,2021,null,"x",null,null,"=",{"$f":"L16*(N16+O16)","v":0},null,0,null,{"$f":"(1+VLOOKUP(B16,'B. Parameters'!$A$8:$E$92,5))^($U$6-B16)*S16","v":0}]
[null,2022,0,"x",{"$f":"'A. General information'!$D$21","v":3.6524000000000001},null,null,"=",0,null,2022,null,"x",null,null,"=",0,null,0,null,{"$f":"(1+VLOOKUP(B17,'B. Parameters'!$A$8:$E$92,5))^($U$6-B17)*S17","v":0}]
[null,2023,0,"x",{"$f":"'A. General information'!$D$21","v":3.6524000000000001},null,null,"=",0,null,2023,null,"x",null,null,"=",0,null,0,null,{"$f":"(1+VLOOKUP(B18,'B. Parameters'!$A$8:$E$92,5))^($U$6-B18)*S18","v":0},null,"Adjustment factor for Article 23(1)(b) NC CAM",null,0.68]
[null,2024,0,"x",{"$f":"'A. General information'!$D$21","v":3.6524000000000001},null,null,"=",0,null,2024,null,"x",null,null,"=",0,null,0,null,{"$f":"(1+VLOOKUP(B19,'B. Parameters'!$A$8:$E$92,5))^($U$6-B19)*S19","v":0},null,"Explanation: must be estimated and justified by network operator"]
[null,2025,0,"x",{"$f":"'A. General information'!$D$21","v":3.6524000000000001},null,null,"=",0,null,2025,null,"x",null,null,"=",0,null,0,null,{"$f":"(1+VLOOKUP(B20,'B. Parameters'!$A$8:$E$92,5))^($U$6-B20)*S20","v":0}]
[null,2026,0,"x",{"$f":"'A. General information'!$D$21","v":3.6524000000000001},null,null,"=",0,null,2026,null,"x",null,null,"=",0,null,0,null,{"$f":"(1+VLOOKUP(B21,'B. Parameters'!$A$8:$E$92,5))^($U$6-B21)*S21","v":0},null,"Suggested f-factor",null,{"$f":"Y10*Y18","v":0.42864079179166104}]
[null,2027,0,"x",{"$f":"'A. General information'!$D$21","v":3.6524000000000001},null,null,"=",0,null,2027,null,"x",null,null,"=",0,null,0,null,{"$f":"(1+VLOOKUP(B22,'B. Parameters'!$A$8:$E$92,5))^($U$6-B22)*S22","v":0}]
[null,2028,0,"x",{"$f":"'A. General information'!$D$21","v":3.6524000000000001},null,null,"=",0,null,2028,null,"x",null,null,"=",0,null,0,null,{"$f":"(1+VLOOKUP(B23,'B. Parameters'!$A$8:$E$92,5))^($U$6-B23)*S23","v":0}]
[null,2029,0,"x",{"$f":"'A. General information'!$D$21","v":3.6524000000000001},null,null,"=",0,null,2029,null,"x",null,null,"=",0,null,0,null,{"$f":"(1+VLOOKUP(B24,'B. Parameters'!$A$8:$E$92,5))^($U$6-B24)*S24","v":0}]
[null,2030,595000,"x",{"$f":"'A. General information'!$D$21","v":3.6524000000000001},null,null,"=",2173178,null,2030,null,"x",null,null,"=",0,null,2173178,null,{"$f":"(1+VLOOKUP(B25,'B. Parameters'!$A$8:$E$92,5))^($U$6-B25)*S25","v":1274301.8682393064}]
[null,2031,2380000,"x",{"$f":"'A. General information'!$D$21","v":3.6524000000000001},null,null,"=",8692712,null,2031,null,"x",null,null,"=",0,null,8692712,null,{"$f":"(1+VLOOKUP(B26,'B. Parameters'!$A$8:$E$92,5))^($U$6-B26)*S26","v":4855763.1480080364}]
[null,2032,2380000,"x",{"$f":"'A. General information'!$D$21","v":3.6524000000000001},null,null,"=",8692712,null,2032,null,"x",null,null,"=",0,null,8692712,null,{"$f":"(1+VLOOKUP(B27,'B. Parameters'!$A$8:$E$92,5))^($U$6-B27)*S27","v":4625755.5484343478}]
[null,2033,2380000,"x",{"$f":"'A. General information'!$D$21","v":3.6524000000000001},null,null,"=",8692712,null,2033,null,"x",null,null,"=",0,null,8692712,null,{"$f":"(1+VLOOKUP(B28,'B. Parameters'!$A$8:$E$92,5))^($U$6-B28)*S28","v":4406642.9398742458}]
[null,2034,2380000,"x",{"$f":"'A. General information'!$D$21","v":3.6524000000000001},null,null,"=",8692712,null,2034,null,"x",null,null,"=",0,null,8692712,null,{"$f":"(1+VLOOKUP(B29,'B. Parameters'!$A$8:$E$92,5))^($U$6-B29)*S29","v":4197909.2488179589}]
[null,2035,2380000,"x",{"$f":"'A. General information'!$D$21","v":3.6524000000000001},null,null,"=",8692712,null,2035,null,"x",null,null,"=",0,null,8692712,null,{"$f":"(1+VLOOKUP(B30,'B. Parameters'!$A$8:$E$92,5))^($U$6-B30)*S30","v":3999062.8471056158}]
[null,2036,2380000,"x",{"$f":"'A. General information'!$D$21","v":3.6524000000000001},null,null,"=",8692712,null,2036,null,"x",null,null,"=",0,null,8692712,null,{"$f":"(1+VLOOKUP(B31,'B. Parameters'!$A$8:$E$92,5))^($U$6-B31)*S31","v":3809635.3940008618}]
[null,2037,2380000,"x",{"$f":"'A. General information'!$D$21","v":3.6524000000000001},null,null,"=",8692712,null,2037,null,"x",null,null,"=",0,null,8692712,null,{"$f":"(1+VLOOKUP(B32,'B. Parameters'!$A$8:$E$92,5))^($U$6-B32)*S32","v":3629180.7331130966}]
[null,2038,2380000,"x",{"$f":"'A. General information'!$D$21","v":3.6524000000000001},null,null,"=",8692712,null,2038,null,"x",null,null,"=",0,null,8692712,null,{"$f":"(1+VLOOKUP(B33,'B. Parameters'!$A$8:$E$92,5))^($U$6-B33)*S33","v":3457273.8415702395}]
[null,2039,2380000,"x",{"$f":"'A. General information'!$D$21","v":3.6524000000000001},null,null,"=",8692712,null,2039,null,"x",null,null,"=",0,null,8692712,null,{"$f":"(1+VLOOKUP(B34,'B. Parameters'!$A$8:$E$92,5))^($U$6-B34)*S34","v":3293509.8289670539}]
[null,2040,4016250,"x",{"$f":"'A. General information'!$D$21","v":3.6524000000000001},null,null,"=",14668951.5,null,2040,null,"x",null,null,"=",0,null,14668951.5,null,{"$f":"(1+VLOOKUP(B35,'B. Parameters'!$A$8:$E$92,5))^($U$6-B35)*S35","v":5294536.2850464657}]
[null,2041,8925000,"x",{"$f":"'A. General information'!$D$21","v":3.6524000000000001},null,null,"=",32597670,null,2041,null,"x",null,null,"=",0,null,32597670,null,{"$f":"(1+VLOOKUP(B36,'B. Parameters'!$A$8:$E$92,5))^($U$6-B36)*S36","v":11208321.992479589}]
[null,2042,8925000,"x",{"$f":"'A. General information'!$D$21","v":3.6524000000000001},null,null,"=",32597670,null,2042,null,"x",null,null,"=",0,null,32597670,null,{"$f":"(1+VLOOKUP(B37,'B. Parameters'!$A$8:$E$92,5))^($U$6-B37)*S37","v":10677406.633109812}]
[null,2043,8925000,"x",{"$f":"'A. General information'!$D$21","v":3.6524000000000001},null,null,"=",32597670,null,2043,null,"x",null,null,"=",0,null,32597670,null,{"$f":"(1+VLOOKUP(B38,'B. Parameters'!$A$8:$E$92,5))^($U$6-B38)*S38","v":10171639.651793759}]
[null,2044,8925000,"x",{"$f":"'A. General information'!$D$21","v":3.6524000000000001},null,null,"=",32597670,null,2044,null,"x",null,null,"=",0,null,32597670,null,{"$f":"(1+VLOOKUP(B39,'B. Parameters'!$A$8:$E$92,5))^($U$6-B39)*S39","v":9689829.8211397715}]
[null,2045,8925000,"x",{"$f":"'A. General information'!$D$21","v":3.6524000000000001},null,null,"=",32597670,null,2045,null,"x",null,null,"=",0,null,32597670,null,{"$f":"(1+VLOOKUP(B40,'B. Parameters'!$A$8:$E$92,5))^($U$6-B40)*S40","v":9230842.3397688586}]
[null,2046,8925000,"x",{"$f":"'A. General information'!$D$21","v":3.6524000000000001},null,null,"=",32597670,null,2046,null,"x",null,null,"=",0,null,32597670,null,{"$f":"(1+VLOOKUP(B41,'B. Parameters'!$A$8:$E$92,5))^($U$6-B41)*S41","v":8793596.1595295332}]
[null,2047,8925000,"x",{"$f":"'A. General information'!$D$21","v":3.6524000000000001},null,null,"=",32597670,null,2047,null,"x",null,null,"=",0,null,32597670,null,{"$f":"(1+VLOOKUP(B42,'B. Parameters'!$A$8:$E$92,5))^($U$6-B42)*S42","v":8377061.4393170141}]
[null,2048,8925000,"x",{"$f":"'A. General information'!$D$21","v":3.6524000000000001},null,null,"=",32597670,null,2048,null,"x",null,null,"=",0,null,32597670,null,{"$f":"(1+VLOOKUP(B43,'B. Parameters'!$A$8:$E$92,5))^($U$6-B43)*S43","v":7980257.1194998436}]
[null,2049,8925000,"x",{"$f":"'A. General information'!$D$21","v":3.6524000000000001},null,null,"=",32597670,null,2049,null,"x",null,null,"=",0,null,32597670,null,{"$f":"(1+VLOOKUP(B44,'B. Parameters'!$A$8:$E$92,5))^($U$6-B44)*S44","v":7602248.6112409579}]
[null,2050,0,"x",{"$f":"'A. General information'!$D$21","v":3.6524000000000001},null,null,"=",0,null,2050,null,"x",null,null,"=",0,null,0,null,{"$f":"(1+VLOOKUP(B45,'B. Parameters'!$A$8:$E$92,5))^($U$6-B45)*S45","v":0}]
[null,2051,0,"x",{"$f":"'A. General information'!$D$21","v":3.6524000000000001},null,null,"=",0,null,2051,null,"x",null,null,"=",0,null,0,null,{"$f":"(1+VLOOKUP(B46,'B. Parameters'!$A$8:$E$92,5))^($U$6-B46)*S46","v":0}]
[null,2052,0,"x",{"$f":"'A. General information'!$D$21","v":3.6524000000000001},null,null,"=",0,null,2052,null,"x",null,null,"=",0,null,0,null,{"$f":"(1+VLOOKUP(B47,'B. Parameters'!$A$8:$E$92,5))^($U$6-B47)*S47","v":0}]
[null,2053,0,"x",{"$f":"'A. General information'!$D$21","v":3.6524000000000001},null,null,"=",0,null,2053,null,"x",null,null,"=",0,null,0,null,{"$f":"(1+VLOOKUP(B48,'B. Parameters'!$A$8:$E$92,5))^($U$6-B48)*S48","v":0}]
[null,2054,0,"x",{"$f":"'A. General information'!$D$21","v":3.6524000000000001},null,null,"=",0,null,2054,null,"x",null,null,"=",0,null,0,null,{"$f":"(1+VLOOKUP(B49,'B. Parameters'!$A$8:$E$92,5))^($U$6-B49)*S49","v":0}]
[null,2055,0,"x",{"$f":"'A. General information'!$D$21","v":3.6524000000000001},null,null,"=",0,null,2055,null,"x",null,null,"=",0,null,0,null,{"$f":"(1+VLOOKUP(B50,'B. Parameters'!$A$8:$E$92,5))^($U$6-B50)*S50","v":0}]
[null,2056,0,"x",{"$f":"'A. General information'!$D$21","v":3.6524000000000001},null,null,"=",0,null,2056,null,"x",null,null,"=",0,null,0,null,{"$f":"(1+VLOOKUP(B51,'B. Parameters'!$A$8:$E$92,5))^($U$6-B51)*S51","v":0}]
[null,2057,0,"x",{"$f":"'A. General information'!$D$21","v":3.6524000000000001},null,null,"=",0,null,2057,null,"x",null,null,"=",0,null,0,null,{"$f":"(1+VLOOKUP(B52,'B. Parameters'!$A$8:$E$92,5))^($U$6-B52)*S52","v":0}]
[null,2058,0,"x",{"$f":"'A. General information'!$D$21","v":3.6524000000000001},null,null,"=",0,null,2058,null,"x",null,null,"=",0,null,0,null,{"$f":"(1+VLOOKUP(B53,'B. Parameters'!$A$8:$E$92,5))^($U$6-B53)*S53","v":0}]
[null,2059,0,"x",{"$f":"'A. General information'!$D$21","v":3.6524000000000001},null,null,"=",0,null,2059,null,"x",null,null,"=",0,null,0,null,{"$f":"(1+VLOOKUP(B54,'B. Parameters'!$A$8:$E$92,5))^($U$6-B54)*S54","v":0}]
[null,2060,0,"x",{"$f":"'A. General information'!$D$21","v":3.6524000000000001},null,null,"=",0,null,2060,null,"x",null,null,"=",0,null,0,null,{"$f":"(1+VLOOKUP(B55,'B. Parameters'!$A$8:$E$92,5))^($U$6-B55)*S55","v":0}]
[null,2061,0,"x",{"$f":"'A. General information'!$D$21","v":3.6524000000000001},null,null,"=",0,null,2061,null,"x",null,null,"=",0,null,0,null,{"$f":"(1+VLOOKUP(B56,'B. Parameters'!$A$8:$E$92,5))^($U$6-B56)*S56","v":0}]
[null,2062,0,"x",{"$f":"'A. General information'!$D$21","v":3.6524000000000001},null,null,"=",0,null,2062,null,"x",null,null,"=",0,null,0,null,{"$f":"(1+VLOOKUP(B57,'B. Parameters'!$A$8:$E$92,5))^($U$6-B57)*S57","v":0}]
[null,2063,0,"x",{"$f":"'A. General information'!$D$21","v":3.6524000000000001},null,null,"=",0,null,2063,null,"x",null,null,"=",0,null,0,null,{"$f":"(1+VLOOKUP(B58,'B. Parameters'!$A$8:$E$92,5))^($U$6-B58)*S58","v":0}]
[null,2064,0,"x",{"$f":"'A. General information'!$D$21","v":3.6524000000000001},null,null,"=",0,null,2064,null,"x",null,null,"=",0,null,0,null,{"$f":"(1+VLOOKUP(B59,'B. Parameters'!$A$8:$E$92,5))^($U$6-B59)*S59","v":0}]
[null,2065,0,"x",{"$f":"'A. General information'!$D$21","v":3.6524000000000001},null,null,"=",0,null,2065,null,"x",null,null,"=",0,null,0,null,{"$f":"(1+VLOOKUP(B60,'B. Parameters'!$A$8:$E$92,5))^($U$6-B60)*S60","v":0}]
[null,2066,0,"x",{"$f":"'A. General information'!$D$21","v":3.6524000000000001},null,null,"=",0,null,2066,null,"x",null,null,"=",0,null,0,null,{"$f":"(1+VLOOKUP(B61,'B. Parameters'!$A$8:$E$92,5))^($U$6-B61)*S61","v":0}]
[null,2067,0,"x",{"$f":"'A. General information'!$D$21","v":3.6524000000000001},null,null,"=",0,null,2067,null,"x",null,null,"=",0,null,0,null,{"$f":"(1+VLOOKUP(B62,'B. Parameters'!$A$8:$E$92,5))^($U$6-B62)*S62","v":0}]
[null,2068,0,"x",{"$f":"'A. General information'!$D$21","v":3.6524000000000001},null,null,"=",0,null,2068,null,"x",null,null,"=",0,null,0,null,{"$f":"(1+VLOOKUP(B63,'B. Parameters'!$A$8:$E$92,5))^($U$6-B63)*S63","v":0}]
[null,2069,0,"x",{"$f":"'A. General information'!$D$21","v":3.6524000000000001},null,null,"=",0,null,2069,null,"x",null,null,"=",0,null,0,null,{"$f":"(1+VLOOKUP(B64,'B. Parameters'!$A$8:$E$92,5))^($U$6-B64)*S64","v":0}]
[null,2070,0,"x",{"$f":"'A. General information'!$D$21","v":3.6524000000000001},null,null,"=",0,null,2070,null,"x",null,null,"=",0,null,0,null,{"$f":"(1+VLOOKUP(B65,'B. Parameters'!$A$8:$E$92,5))^($U$6-B65)*S65","v":0}]
[null,2071,0,"x",{"$f":"'A. General information'!$D$21","v":3.6524000000000001},null,null,"=",0,null,2071,null,"x",null,null,"=",0,null,0,null,{"$f":"(1+VLOOKUP(B66,'B. Parameters'!$A$8:$E$92,5))^($U$6-B66)*S66","v":0}]
[null,2072,0,"x",{"$f":"'A. General information'!$D$21","v":3.6524000000000001},null,null,"=",0,null,2072,null,"x",null,null,"=",0,null,0,null,{"$f":"(1+VLOOKUP(B67,'B. Parameters'!$A$8:$E$92,5))^($U$6-B67)*S67","v":0}]
[null,2073,0,"x",{"$f":"'A. General information'!$D$21","v":3.6524000000000001},null,null,"=",0,null,2073,null,"x",null,null,"=",0,null,0,null,{"$f":"(1+VLOOKUP(B68,'B. Parameters'!$A$8:$E$92,5))^($U$6-B68)*S68","v":0}]
[null,2074,0,"x",{"$f":"'A. General information'!$D$21","v":3.6524000000000001},null,null,"=",0,null,2074,null,"x",null,null,"=",0,null,0,null,{"$f":"(1+VLOOKUP(B69,'B. Parameters'!$A$8:$E$92,5))^($U$6-B69)*S69","v":0}]
[null,2075,0,"x",{"$f":"'A. General information'!$D$21","v":3.6524000000000001},null,null,"=",0,null,2075,null,"x",null,null,"=",0,null,0,null,{"$f":"(1+VLOOKUP(B70,'B. Parameters'!$A$8:$E$92,5))^($U$6-B70)*S70","v":0}]
[null,2076,0,"x",{"$f":"'A. General information'!$D$21","v":3.6524000000000001},null,null,"=",0,null,2076,null,"x",null,null,"=",0,null,0,null,{"$f":"(1+VLOOKUP(B71,'B. Parameters'!$A$8:$E$92,5))^($U$6-B71)*S71","v":0}]
[null,2077,0,"x",{"$f":"'A. General information'!$D$21","v":3.6524000000000001},null,null,"=",0,null,2077,null,"x",null,null,"=",0,null,0,null,{"$f":"(1+VLOOKUP(B72,'B. Parameters'!$A$8:$E$92,5))^($U$6-B72)*S72","v":0}]
[null,2078,0,"x",{"$f":"'A. General information'!$D$21","v":3.6524000000000001},null,null,"=",0,null,2078,null,"x",null,null,"=",0,null,0,null,{"$f":"(1+VLOOKUP(B73,'B. Parameters'!$A$8:$E$92,5))^($U$6-B73)*S73","v":0}]
[null,2079,0,"x",{"$f":"'A. General information'!$D$21","v":3.6524000000000001},null,null,"=",0,null,2079,null,"x",null,null,"=",0,null,0,null,{"$f":"(1+VLOOKUP(B74,'B. Parameters'!$A$8:$E$92,5))^($U$6-B74)*S74","v":0}]
[null,2080,0,"x",{"$f":"'A. General information'!$D$21","v":3.6524000000000001},null,null,"=",0,null,2080,null,"x",null,null,"=",0,null,{"$f":"I75+Q75","v":0},null,{"$f":"(1+VLOOKUP(B75,'B. Parameters'!$A$8:$E$92,5))^($U$6-B75)*S75","v":0}]
[null,{"$f":"B75+1","v":2081},0,"x",{"$f":"'A. General information'!$D$21","v":3.6524000000000001},null,null,"=",0,null,2081,null,"x",null,null,"=",0,null,0,null,{"$f":"(1+VLOOKUP(B76,'B. Parameters'!$A$8:$E$92,5))^($U$6-B76)*S76","v":0}]
[null,2082,0,"x",{"$f":"'A. General information'!$D$21","v":3.6524000000000001},null,null,"=",0,null,2082,null,"x",null,null,"=",0,null,0,null,{"$f":"(1+VLOOKUP(B77,'B. Parameters'!$A$8:$E$92,5))^($U$6-B77)*S77","v":0}]
[null,2083,0,"x",{"$f":"'A. General information'!$D$21","v":3.6524000000000001},null,null,"=",0,null,2083,null,"x",null,null,"=",0,null,0,null,{"$f":"(1+VLOOKUP(B78,'B. Parameters'!$A$8:$E$92,5))^($U$6-B78)*S78","v":0}]
[null,2084,0,"x",{"$f":"'A. General information'!$D$21","v":3.6524000000000001},null,null,"=",0,null,2084,null,"x",null,null,"=",0,null,0,null,{"$f":"(1+VLOOKUP(B79,'B. Parameters'!$A$8:$E$92,5))^($U$6-B79)*S79","v":0}]
[null,2085,0,"x",{"$f":"'A. General information'!$D$21","v":3.6524000000000001},null,null,"=",{"$f":"C80*(E80+F80+G80)","v":0},null,2085,null,"x",null,null,"=",{"$f":"L80*(N80+O80)","v":0},null,0,null,{"$f":"(1+VLOOKUP(B80,'B. Parameters'!$A$8:$E$92,5))^($U$6-B80)*S80","v":0}]
[null,2086,0,"x",{"$f":"'A. General information'!$D$21","v":3.6524000000000001},null,null,"=",0,null,2086,null,"x",null,null,"=",0,null,0,null,{"$f":"(1+VLOOKUP(B81,'B. Parameters'!$A$8:$E$92,5))^($U$6-B81)*S81","v":0}]
[null,2087,0,"x",{"$f":"'A. General information'!$D$21","v":3.6524000000000001},null,null,"=",0,null,2087,null,"x",null,null,"=",0,null,0,null,{"$f":"(1+VLOOKUP(B82,'B. Parameters'!$A$8:$E$92,5))^($U$6-B82)*S82","v":0}]
[null,2088,0,"x",{"$f":"'A. General information'!$D$21","v":3.6524000000000001},null,null,"=",0,null,2088,null,"x",null,null,"=",0,null,0,null,{"$f":"(1+VLOOKUP(B83,'B. Parameters'!$A$8:$E$92,5))^($U$6-B83)*S83","v":0}]
[null,2089,0,"x",{"$f":"'A. General information'!$D$21","v":3.6524000000000001},null,null,"=",0,null,2089,null,"x",null,null,"=",0,null,0,null,{"$f":"(1+VLOOKUP(B84,'B. Parameters'!$A$8:$E$92,5))^($U$6-B84)*S84","v":0}]
[null,2090,0,"x",{"$f":"'A. General information'!$D$21","v":3.6524000000000001},null,null,"=",0,null,2090,null,"x",null,null,"=",0,null,0,null,{"$f":"(1+VLOOKUP(B85,'B. Parameters'!$A$8:$E$92,5))^($U$6-B85)*S85","v":0}]
[null,2091,0,"x",{"$f":"'A. General information'!$D$21","v":3.6524000000000001},null,null,"=",0,null,2091,null,"x",null,null,"=",0,null,0,null,{"$f":"(1+VLOOKUP(B86,'B. Parameters'!$A$8:$E$92,5))^($U$6-B86)*S86","v":0}]
[null,2092,0,"x",{"$f":"'A. General information'!$D$21","v":3.6524000000000001},null,null,"=",0,null,2092,null,"x",null,null,"=",0,null,0,null,{"$f":"(1+VLOOKUP(B87,'B. Parameters'!$A$8:$E$92,5))^($U$6-B87)*S87","v":0}]
[null,2093,0,"x",{"$f":"'A. General information'!$D$21","v":3.6524000000000001},null,null,"=",0,null,2093,null,"x",null,null,"=",0,null,0,null,{"$f":"(1+VLOOKUP(B88,'B. Parameters'!$A$8:$E$92,5))^($U$6-B88)*S88","v":0}]
[null,2094,0,"x",{"$f":"'A. General information'!$D$21","v":3.6524000000000001},null,null,"=",0,null,2094,null,"x",null,null,"=",0,null,0,null,{"$f":"(1+VLOOKUP(B89,'B. Parameters'!$A$8:$E$92,5))^($U$6-B89)*S89","v":0}]
[null,2095,0,"x",{"$f":"'A. General information'!$D$21","v":3.6524000000000001},null,null,"=",0,null,2095,null,"x",null,null,"=",0,null,0,null,{"$f":"(1+VLOOKUP(B90,'B. Parameters'!$A$8:$E$92,5))^($U$6-B90)*S90","v":0}]
[null,2096,0,"x",{"$f":"'A. General information'!$D$21","v":3.6524000000000001},null,null,"=",0,null,2096,null,"x",null,null,"=",0,null,0,null,{"$f":"(1+VLOOKUP(B91,'B. Parameters'!$A$8:$E$92,5))^($U$6-B91)*S91","v":0}]
[null,2097,0,"x",{"$f":"'A. General information'!$D$21","v":3.6524000000000001},null,null,"=",0,null,2097,null,"x",null,null,"=",0,null,0,null,{"$f":"(1+VLOOKUP(B92,'B. Parameters'!$A$8:$E$92,5))^($U$6-B92)*S92","v":0}]
[null,2098,0,"x",{"$f":"'A. General information'!$D$21","v":3.6524000000000001},null,null,"=",0,null,2098,null,"x",null,null,"=",0,null,0,null,{"$f":"(1+VLOOKUP(B93,'B. Parameters'!$A$8:$E$92,5))^($U$6-B93)*S93","v":0}]
[null,2099,0,"x",{"$f":"'A. General information'!$D$21","v":3.6524000000000001},null,null,"=",0,null,2099,null,"x",null,null,"=",0,null,0,null,{"$f":"(1+VLOOKUP(B94,'B. Parameters'!$A$8:$E$92,5))^($U$6-B94)*S94","v":0}]
[null,2100,0,"x",{"$f":"'A. General information'!$D$21","v":3.6524000000000001},null,null,"=",0,null,2100,null,"x",null,null,"=",0,null,0,null,{"$f":"(1+VLOOKUP(B95,'B. Parameters'!$A$8:$E$92,5))^($U$6-B95)*S95","v":0}]